{"text_format":"1","workbook":"xlsx","n_sheets":11,"sheets":["Index","Monthly","Quarterly","Annual","Mo. MM","Mo. YY","Qtr QQ","Qtr YY","Monthly Charts","Qtrly Charts","notes"],"not_rendered":{"charts":122,"images":2,"macros":1,"external_links":0,"defined_names":2,"comments":0,"pivot_tables":0},"unopened":[],"bounds":{"document_bytes":16777216,"sheet_cells":100000,"rows_first":2000,"rows_last":500,"rows_between":2000,"halvings":0,"cell_chars":16384,"cell_head_chars":4096},"cells_cut":0,"cells_raw":0,"read":"whole","date_system":"1900"}

{"sheet":"Index","index":0,"n_rows":202,"n_cols":18,"rows_kept":202,"cut":false,"hidden":false,"merged":[[9,7,9,8],[9,10,9,11],[5,3,5,4]]}
[]
[]
[]
[null,null,null,"Economic Database"]
[null,null,null,"Table of Contents"]
[null,null,null,"2017-10-30"]
[]
[]
[]
[null,null,null,null,null,null,null,"Data",null,null,"Data Comparison",null,null,"Graphs"]
[null,"Category",null,null,"Description","Series ID",null,"M/Q Values","Annual",null,"Sequential","Y/Y",null,"Mo./Qtr.","Starting Year",null,"Data Source","Last Observation Date"]
[null,"GDP",null,null,"Nominal Gross Domestic Product","GDP001",null,"GDP001Q","GDP001A",null,"GDP001Q","GDP001A",null,"Quarterly",1959,null,"Bureau of Economic Analysis","2017-07-01"]
[null,"GDP",null,null,"Real Gross Domestic Product","GDP004",null,"GDP004Q","GDP004A",null,"GDP004Q","GDP004A",null,"Quarterly",1959,null,"Bureau of Economic Analysis","2017-07-01"]
[null,"GDP",null,null,"Real Final Sales of Domestic Product","GDP007",null,"GDP007Q","GDP007A",null,"GDP007Q","GDP007A",null,"Quarterly",1959,null,"Bureau of Economic Analysis","2017-07-01"]
[null,"GDP",null,null,"Real PCE - Billions of Chained 2005 Dollars","GDP010",null,"GDP010M","GDP010A",null,"GDP010M","GDP010A",null,"Quarterly",1959,null,"Bureau of Economic Analysis","2017-09-01"]
[null,"GDP",null,null,"Real PCE: Durable Goods - Billions of Chained 2009 Dollars","GDP014",null,"GDP014M","GDP014A",null,"GDP014M","GDP014A",null,"Quarterly",1959,null,"Bureau of Economic Analysis","2017-09-01"]
[null,"GDP",null,null,"Real PCE: Nondurable Goods - Billions of Chained 2009 Dollars","GDP018",null,"GDP018M","GDP018A",null,"GDP018M","GDP018A",null,"Quarterly",1988,null,"Bureau of Economic Analysis","2017-09-01"]
[null,"GDP",null,null,"Real PCE: Services - Billions of Chained 2009 Dollars","GDP022",null,"GDP022M","GDP022A",null,"GDP022M","GDP022A",null,"Quarterly",1959,null,"Bureau of Economic Analysis","2017-09-01"]
[null,"GDP",null,null,"Real Private Nonres. Fixed Investment - Billions of Chained 2009 Dollars","GDP026",null,"GDP026Q","GDP026A",null,"GDP026Q","GDP026A",null,"Quarterly",1959,null,"Bureau of Economic Analysis","2017-07-01"]
[null,"GDP",null,null,"Real Nonres. Invest.: Equip. & Software - Billions of Chained 2009 Dollars","GDP029",null,"GDP029Q","GDP029A",null,"GDP029Q","GDP029A",null,"Quarterly",1959,null,"Bureau of Economic Analysis","2017-07-01"]
[null,"GDP",null,null,"Real Private Residential Fixed Investment - Billions of Chained 2009 Dollars","GDP032",null,"GDP032Q","GDP032A",null,"GDP032Q","GDP032A",null,"Quarterly",1959,null,"Bureau of Economic Analysis","2017-07-01"]
[null,"GDP",null,null,"Real Change in Private Inventories - Billions of Chained 2009 Dollars","GDP035",null,"GDP035Q","GDP035A",null,"GDP035Q","GDP035A",null,"Quarterly",1959,null,"Bureau of Economic Analysis","2017-07-01"]
[null,"GDP",null,null,"Real Imports of Goods & Services - Billions of Chained 2009 Dollars","GDP036",null,"GDP036Q","GDP036A",null,"GDP036Q","GDP036A",null,"Quarterly",1959,null,"Bureau of Economic Analysis","2017-07-01"]
[null,"GDP",null,null,"Real Exports of Goods & Services - Billions of Chained 2009 Dollars","GDP039",null,"GDP039Q","GDP039A",null,"GDP039Q","GDP039A",null,"Quarterly",1959,null,"Bureau of Economic Analysis","2017-07-01"]
[null,"GDP",null,null,"Net Exports of Goods & Services - Billions of Chained 2009 Dollars","GDP042",null,"GDP042Q","GDP042A",null,"GDP042Q","GDP042A",null,"Quarterly",1959,null,"Bureau of Economic Analysis","2017-07-01"]
[null,"GDP",null,null,"Real Gov't Cons. & Invest. - Billions of Chained 2009 Dollars","GDP043",null,"GDP043Q","GDP043A",null,"GDP043Q","GDP043A",null,"Quarterly",1959,null,"Bureau of Economic Analysis","2017-07-01"]
[null,"GDP",null,null,"Federal Government Surplus or Deficit [-], NIPA - Billions of Chained 2005 Dollars","GDP046",null,"GDP046Q","GDP046A",null,"GDP046Q","GDP046A",null,"Quarterly",1959,null,"Bureau of Economic Analysis","2017-04-01"]
[]
[]
[]
[]
[]
[null,"Business",null,null,"Capacity Utilization: Mfg (NAICS) - Percent of Capacity, SA","BUS001",null,"BUS001Q","BUS001A",null,"BUS001Q","BUS001A",null,"Quarterly",1972,null,"Bureau of Economic Analysis","2017-07-01"]
[null,"Business",null,null,"Capacity Utilization: Total Industry - Percent of Capacity, SA","BUS002",null,"BUS002M","BUS002A",null,"BUS002M","BUS002A",null,"Monthly",1976,null,"Bureau of Economic Analysis","2017-09-01"]
[null,"Business",null,null,"Commercial and Industrial Loans, Commercial Banks - Billions of Dolllars, SA","BUS003",null,"BUS003M","BUS003A",null,"BUS003M","BUS003A",null,"Monthly",1959,null,"Federal Reserve Bank","2017-09-01"]
[null,"Business",null,null,"Commercial Net Loan Charge-offs - Ratio","BUS004",null,"BUS004Q","BUS004A",null,"BUS004Q","BUS004A",null,"Quarterly",1988,null,"Federal Reserve Bank","2017-04-01"]
[null,"Business",null,null,"Corporate Profits After Tax - Billions of Dollars, SAAR","BUS005",null,"BUS005Q","BUS005A",null,"BUS005Q","BUS005A",null,"Quarterly",1959,null,"Federal Reserve Bank","2017-04-01"]
[null,"Business",null,null,"Corporate Profits Less Financial After Tax - Billions of Dollars, SAAR","BUS006",null,"BUS006Q","BUS006A",null,"BUS006Q","BUS006A",null,"Quarterly",1959,null,"Federal Reserve Bank","2017-04-01"]
[null,"Business",null,null,"Bank Willingness to Make Consumer Loans - Net Percent","BUS007",null,"BUS007Q","BUS007A",null,"BUS007Q","BUS007A",null,"Quarterly",1990,null,"Federal Reserve Bank","2017-07-01"]
[null,"Business",null,null,"Demand for Commercial & Industrial Loans by Small Firms - Net Percent","BUS008","","BUS008Q","BUS008A",null,"BUS008Q","BUS008A",null,"Quarterly",1991,null,"Federal Reserve Bank","2017-07-01"]
[null,"Business",null,null,"Nonperforming Loans - Total","BUS009","","BUS009Q","BUS009A",null,"BUS009Q","BUS009A",null,"Quarterly",1988,null,"Federal Reserve Bank","2017-04-01"]
[null,"Business",null,null,"Commercial Net Loan Charge-offs - Ratio","BUS010","","BUS010Q","BUS010A",null,"BUS010Q","BUS010A",null,"Quarterly",1988,null,"Federal Reserve Bank","2017-04-01"]
[null,"Business",null,null,"Total Loan Charge-offs - Ratio","BUS011","","BUS011Q","BUS011A",null,"BUS011Q","BUS011A",null,"Quarterly",1988,null,"Federal Reserve Bank","2017-04-01"]
[null,"Business",null,null,"E-Commerce Sales - Millions of Dollars","BUS012","","BUS012Q","BUS012A",null,"BUS012Q","BUS012A",null,"Quarterly",1999,null,"U.S. Census Bureau","2017-04-01"]
[null,null,null,null,"E-Commerce Sales as a % of Total Retail Sales",null,null,"BUS013Q","BUS013A",null,null,null,null,"Quarterly",1999,null,"ACT Research, LLC",{"$f":"+$D$6","v":"2017-10-30"}]
[null,"Business",null,null,"ECI: Benefits: Private Industry Workers - Index 2005=100","BUS014","","BUS014Q","BUS014A",null,"BUS014Q","BUS014A",null,"",2001,null,"Bureau of Labor Statistics","2017-04-01"]
[null,"Business",null,null,"ECI: Compensation: Private Industry Workers - Index 2005=100","BUS015","","BUS015Q","BUS015A",null,"BUS015Q","BUS015A",null,"",2001,null,"Bureau of Labor Statistics","2017-04-01"]
[null,"Business",null,null,"ECI: Wages & Salaries: Private Industry Workers - Index 2005=100","BUS016","","BUS016Q","BUS016A",null,"BUS016Q","BUS016A",null,"",2001,null,"Bureau of Labor Statistics","2017-04-01"]
[null,"Business",null,null,"Industrial Production Index","BUS019",null,"BUS019M","BUS019A",null,"BUS019M","BUS019A",null,"Monthly",1959,null,"Federal Reserve Bank","2017-09-01"]
[null,"Business",null,null,"Industrial Production Index - Mfg.","BUS020",null,"BUS020M","BUS020A",null,"BUS020M","BUS020A",null,"Monthly",1972,null,"Federal Reserve Bank","2017-09-01"]
[null,"Business",null,null,"Inventories: Total Business - Millions of Dollars, SA","BUS021",null,"BUS021M","BUS021A",null,"BUS021M","BUS021A",null,"Monthly",1992,null,"U.S. Census Bureau","2017-08-01"]
[null,"Business",null,null,"Inventory to Sales Ratio: Total Business","BUS022",null,"BUS022M","BUS022A",null,"BUS022M","BUS022A",null,"Monthly",1992,null,"U.S. Census Bureau","2017-08-01"]
[null,"Business",null,null,"ISM INDEX: PMI Manufacturing Composite Index","BUS023",null,"BUS023M","BUS023A",null,"BUS023M","BUS023A",null,"Monthly",1959,null,"Bureau of Economic Analysis",{"$f":"+$D$6","v":"2017-10-30"}]
[null,"Business",null,null,"ISM INDEX Backlogs","BUS024",null,"BUS024M","BUS024A",null,"BUS024M","BUS024A",null,null,1993,null,"Institute for Supply Management",{"$f":"+$D$6","v":"2017-10-30"}]
[null,"Business",null,null,"ISM INDEX Customer Inventories","BUS025",null,"BUS025M","BUS025A",null,"BUS025M","BUS025A",null,null,1997,null,"Institute for Supply Management","2017-10-30"]
[null,"Business",null,null,"ISM INDEX Employment ","BUS026",null,"BUS026M","BUS026A",null,"BUS026M","BUS026A",null,null,1959,null,"Institute for Supply Management","2017-10-30"]
[null,"Business",null,null,"ISM INDEX Exports","BUS027",null,"BUS027M","BUS027A",null,"BUS027M","BUS027A",null,null,1988,null,"Institute for Supply Management","2017-10-30"]
[null,"Business",null,null,"ISM INDEX Imports","BUS028",null,"BUS028M","BUS028A",null,"BUS028M","BUS028A",null,null,1990,null,"Institute for Supply Management","2017-10-30"]
[null,"Business",null,null,"ISM INDEX Inventories","BUS029",null,"BUS029M","BUS029A",null,"BUS029M","BUS029A",null,null,1959,null,"Institute for Supply Management","2017-10-30"]
[null,"Business",null,null,"ISM INDEX New Orders","BUS030",null,"BUS030M","BUS030A",null,"BUS030M","BUS030A",null,null,1959,null,"Institute for Supply Management","2017-10-30"]
[null,"Business",null,null,"ISM INDEX Prices","BUS031",null,"BUS031M","BUS031A",null,"BUS031M","BUS031A",null,null,1959,null,"Institute for Supply Management","2017-10-30"]
[null,"Business",null,null,"ISM INDEX Production","BUS032",null,"BUS032M","BUS032A",null,"BUS032M","BUS032A",null,null,1959,null,"Institute for Supply Management","2017-10-30"]
[null,"Business",null,null,"ISM INDEX Supplier deliveries","BUS033",null,"BUS033M","BUS033A",null,"BUS033M","BUS033A",null,null,1959,null,"Institute for Supply Management","2017-10-30"]
[null,"Business",null,null,"ISM Nonmanufacturing: Business Activity Index","BUS034",null,"BUS034M","BUS034A",null,"BUS034M","BUS034A",null,"Monthly",1997,null,"Institute for Supply Management",{"$f":"+$D$6","v":"2017-10-30"}]
[null,"Business",null,null,"Mfgs' New Orders: Nondefense Excluding Aircraft - Millions of Dollars, SA","BUS035",null,"BUS035M","BUS035A",null,"BUS035M","BUS035A",null,"Monthly",1992,null,"U.S. Census Bureau","2017-09-01"]
[null,"Business",null,null,"Manufacturing: Output Per Hour of All Persons - Index, 2009=100","BUS036","","BUS036Q","BUS036A",null,"BUS036Q","BUS036A",null,"Quarterly",1987,null,"Federal Reserve Bank","2017-04-01"]
[null,"Business",null,null,"Manufacturing: Unit Labor Cost - Index, 2009=100","BUS037","","BUS037Q","BUS037A",null,"BUS037Q","BUS037A",null,"Quarterly",1987,null,"Federal Reserve Bank","2017-04-01"]
[null,"Business",null,null,"Nonfarm: Compensation Per Hour - Index, 2009=100","BUS038","","BUS038Q","BUS038A",null,"BUS038Q","BUS038A",null,"Quarterly",1959,null,"Bureau of Labor Statistics","2017-04-01"]
[null,"Business",null,null,"Nonfarm: Output Per Hour of All Persons - Index, 2009=100","BUS039","","BUS039Q","BUS039A",null,"BUS039Q","BUS039A",null,"Quarterly",1959,null,"Bureau of Labor Statistics","2017-04-01"]
[null,"Business",null,null,"Nonfarm: Real Compensation Per Hour - Index, 2009=100","BUS040","","BUS040Q","BUS040A",null,"BUS040Q","BUS040A",null,"Quarterly",1959,null,"Bureau of Labor Statistics","2017-04-01"]
[null,"Business",null,null,"Nonfarm: Unit Labor Cost - Index, 2009=100","BUS041","","BUS041Q","BUS041A",null,"BUS041Q","BUS041A",null,"Quarterly",1959,null,"Bureau of Labor Statistics","2017-04-01"]
[null,"Business",null,null,"Nonfinancial Corporate Business: Profits After Tax - Billions of Dollars","BUS042","","BUS042Q","BUS042A",null,"BUS042Q","BUS042A",null,"Quarterly",1972,null,"Federal Reserve Bank","2017-04-01"]
[null,"Business",null,null,"Nonperforming Total Loans - Ratio","BUS043","","BUS043Q","BUS043A",null,"BUS043Q","BUS043A",null,"Quarterly",1988,null,"Federal Reserve Bank","2014-12-04"]
[null,"Business",null,null,"Retail and Food Services Sales - Millions of Dollars","BUS045",null,"BUS045M","BUS045A",null,"BUS045M","BUS045A",null,"Monthly",1992,null,"U.S. Census Bureau","2017-09-01"]
[null,"Business",null,null,"Retail Sales: Total (Excluding Food Services) - Millions of Dollars","BUS046",null,"BUS046M","BUS046A",null,"BUS046M","BUS046A",null,"Monthly",1992,null,"Bureau of Economic Analysis","2017-09-01"]
[]
[]
[]
[]
[]
[null,"Consumer",null,null,"Consumer Loans at All Commercial Banks - Billions of Dollars","CON001",null,"CON001M","CON001A",null,"CON001M","CON001A",null,"Monthly",1959,null,"Federal Reserve Bank","2017-09-01"]
[null,"Consumer",null,null,"Debt Service Payments as a % DPI","CON002","","CON002Q","CON002A",null,"CON002Q","CON002A",null,"Quarterly",1980,null,"Federal Reserve Bank","2017-04-01"]
[null,"Consumer",null,null,"Household Financial Obligations as a percent of DPI","CON003","","CON003Q","CON003A",null,"CON003Q","CON003A",null,"Quarterly",1980,null,"Federal Reserve Bank","2017-04-01"]
[null,"Consumer",null,null,"Household Credit Market Debt Outstanding - Billions of Dollars, SA","CON004","","CON004Q","CON004A",null,"CON004Q","CON004A",null,"Quarterly",1959,null,"Federal Reserve Bank","2017-04-01"]
[null,"Consumer",null,null,"Housing Starts Total: New Privately Owned - Thousands","CON005",null,"CON005M","CON005A",null,"CON005M","CON005A",null,"Monthly",1959,null,"U.S. Census Bureau","2017-09-01"]
[null,"Consumer",null,null,"New Private Housing Units Authorized by Building Permits - Thousands","CON006",null,"CON006M","CON006A",null,"CON006M","CON006A",null,"Monthly",1960,null,"U.S. Census Bureau","2017-04-01"]
[null,"Consumer",null,null,"S&P Case-Shiller 20-City Home Price Index","CON007",null,"CON007M","CON007A",null,"CON007M","CON007A",null,"Monthly",2000,null,"Standard & Poor's","2017-07-01"]
[null,"Consumer",null,null,"Autos & Light Trucks - Millions, SAAR","CON008",null,"CON008M","CON008A",null,"CON008M","CON008A",null,"Monthly",1976,null,"Bureau of Economic Analysis","2017-08-01"]
[null,"Consumer",null,null,"Misery Index","CON009",null,"CON009M","CON009A",null,"CON009M","CON009A",null,"Monthly",1960,null,"Calculated","2017-09-01"]
[null,"Consumer",null,null,"Misery Index - Adjusted ","CON010",null,"CON010M","CON010A",null,"CON010M","CON010A",null,"Monthly",1960,null,"Calculated","2017-09-01"]
[null,"Consumer",null,null,"New Home Inventories - Thousands","CON011",null,"CON011M","CON011A",null,"CON011M","CON011A",null,"Monthly",2005,null,"U.S. Census Bureau",{"$f":"+$D$6","v":"2017-10-30"}]
[null,"Consumer",null,null,"New Homes Sold - Thousands","CON012",null,"CON012M","CON012A",null,"CON012M","CON012A",null,"Monthly",2005,null,"U.S. Census Bureau",{"$f":"+$D$6","v":"2017-10-30"}]
[null,null,null,null,"New Homes Inventory/Retail Sales",null,null,"CON035M","CON035A",null,null,null,null,"Monthly",2005,null,"U.S. Census Bureau","2017-10-30"]
[null,"Consumer",null,null,"Used Home Inventories - Thousands ","CON033",null,"CON033M","CON033A",null,"CON033M","CON033A",null,"Monthly",2006,null,"U.S. Census Bureau","2017-10-30"]
[null,"Consumer",null,null,"Used Homes Sold - Thousands ","CON034",null,"CON034M","CON034A",null,"CON034M","CON034A",null,"Monthly",2006,null,"U.S. Census Bureau","2017-10-30"]
[null,null,null,null,"Used Homes Inventory/Retail Sales",null,null,"CON036M","CON036A",null,null,null,null,"Monthly",2006,null,"U.S. Census Bureau","2017-10-30"]
[null,"Consumer",null,null,"New Homes Sales - Single Family - Thousands","CON013",null,"CON013M","CON013A",null,"CON013M","CON013A",null,"Monthly",1963,null,"Bureau of Economic Analysis","2017-10-30"]
[null,"Consumer",null,null,"Personal Income - Billions of Dollars, SA","CON014",null,"CON014M","CON014A",null,"CON014M","CON014A",null,"Monthly",1959,null,"Bureau of Economic Analysis","2017-09-01"]
[null,"Consumer",null,null,"Personal Saving - Billions of Dollars, SA","CON018",null,"CON018M","CON018A",null,"CON018M","CON018A",null,"Monthly",1959,null,"Bureau of Economic Analysis","2017-09-01"]
[null,"Consumer",null,null,"Privately Owned Housing Starts: 1-Unit Structures - Thousands","CON022",null,"CON022M","CON022A",null,"CON022M","CON022A",null,"Monthly",1959,null,"U.S. Census Bureau","2017-09-01"]
[null,"Consumer",null,null,"Real Disposable Personal Income - Billions of Dollars, SA","CON023",null,"CON023M","CON023A",null,"CON023M","CON023A",null,"Monthly",1959,null,"Bureau of Economic Analysis","2017-09-01"]
[null,"Consumer",null,null,"Total Savings Deposits - Billions of Dollars, SA","CON027",null,"CON027M","CON027A",null,"CON027M","CON027A",null,"Monthly",1959,null,"Federal Reserve Bank","2017-09-01"]
[null,"Consumer",null,null,"Total Consumer Credit Outstanding - Billions of Dollars, SA","CON028",null,"CON028M","CON028A",null,"CON028M","CON028A",null,"Monthly",1959,null,"Federal Reserve Bank","2017-08-01"]
[null,"Consumer",null,null,"Total Population: Incl'd Armed Forces Overseas - Thousands","CON029",null,"CON029M","CON029A",null,"CON029M","CON029A",null,"",1959,null,"U.S. Census Bureau","2017-12-01"]
[null,"Consumer",null,null,"Total Revolving Credit Outstanding - Billions of Dollars, SA","CON030",null,"CON030M","CON030A",null,"CON030M","CON030A",null,"Monthly",1978,null,"Federal Reserve Bank","2017-08-01"]
[null,"Consumer",null,null,"University of Michigan: Consumer Sentiment","CON031",null,"CON031M","CON031A",null,"CON031M","CON031A",null,"Monthly",1978,null,"Reuters / University of Michigan","2017-09-01"]
[null,"Consumer",null,null,"Conference Board Consumer Confidence","CON032",null,"CON032M","CON032A",null,"CON032M","CON032A",null,"Monthly",1997,null,"Conference Board",{"$f":"+$D$6","v":"2017-10-30"}]
[]
[]
[]
[]
[]
[null,"Inflation",null,null,"CPI Index - All Urban: All Items","CPI001",null,"CPI001M","CPI001A",null,"CPI001M","CPI001A",null,"Monthly",1959,null,"Bureau of Labor Statistics","2017-09-01"]
[null,"Inflation",null,null,"CPI Index All Urban: Less Food & Energy","CPI005",null,"CPI005M","CPI005A",null,"CPI005M","CPI005A",null,"Monthly",1959,null,"Bureau of Labor Statistics","2017-09-01"]
[]
[]
[]
[]
[]
[null,"Employment",null,null,"Aggregate Weekly Hours Index: Total Private Industries","EMP001",null,"EMP001M","EMP001A",null,"EMP001M","EMP001A",null,"Monthly",1967,null,"Bureau of Labor Statistics","2017-09-01"]
[null,"Employment",null,null,"Average Weekly Hours: Production & Nonsuper.","EMP002",null,"EMP002M","EMP002A",null,"EMP002M","EMP002A",null,"Monthly",1967,null,"Bureau of Labor Statistics","2017-09-01"]
[null,"Employment",null,null,"Civilian Participation Rate","EMP003",null,"EMP003M","EMP003A",null,"EMP003M","EMP003A",null,"Monthly",1959,null,"Bureau of Labor Statistics","2017-09-01"]
[null,"Employment",null,null,"Total Unemployment Rate Plus (U6 Rate)","EMP004",null,"EMP004M","EMP004A",null,"EMP004M","EMP004A",null,"Monthly",1994,null,"Bureau of Labor Statistics","2017-09-01"]
[null,"Employment",null,null,"Civilian Unemployment Rate","EMP005",null,"EMP005M","EMP005A",null,"EMP005M","EMP005A",null,"Monthly",1959,null,"Bureau of Labor Statistics","2017-09-01"]
[null,"Employment",null,null,"Nonfarm Payrolls: Manufacturing - Thousands","EMP006",null,"EMP006M","EMP006A",null,"EMP006M","EMP006A",null,"Monthly",1959,null,"Bureau of Labor Statistics","2017-09-01"]
[null,"Employment",null,null,"Nonfarm Payrolls: Manufacturing - Monthly Change","EMP007",null,"EMP007M","EMP007A",null,"EMP007M","EMP007A",null,"Monthly",1959,null,"Bureau of Labor Statistics","2017-09-01"]
[null,"Employment",null,null,"Nonfarm Payrolls: Manufacturing - Quarterly Change","EMP009","","EMP009Q","EMP009A",null,"EMP009Q","EMP009A",null,"Quarterly",1959,null,"Bureau of Labor Statistics","2017-09-01"]
[null,"Employment",null,null,"Nonfarm Payrolls: Manufacturing - Annual Change","EMP011","","","",null,"","",null,"",1960,null,"Bureau of Labor Statistics","2017-09-01"]
[null,"Employment",null,null,"Total Nonfarm Payrolls: All Employees - Thousands","EMP013",null,"EMP013M","EMP013A",null,"EMP013M","EMP013A",null,"Monthly",1959,null,"Bureau of Labor Statistics","2017-09-01"]
[null,"Employment",null,null,"Total Nonfarm Payrolls: All Employees - Monthly Change","EMP014",null,"EMP014M","EMP014A",null,"EMP014M","EMP014A",null,"Monthly",1959,null,"Bureau of Labor Statistics","2017-09-01"]
[null,"Employment",null,null,"Total Nonfarm Payrolls: All Employees - Quarterly Change","EMP016","","EMP016Q","EMP016A",null,"EMP016Q","EMP016A",null,"Quarterly",1959,null,"Bureau of Labor Statistics","2017-09-01"]
[null,"Employment",null,null,"Total Nonfarm Payrolls: All Employees - Annual Change","EMP018","","","",null,"","",null,"",1960,null,"Bureau of Labor Statistics","2017-09-01"]
[null,"Employment",null,null,"Initial Unemployment Claims (Monthly Average)","EMP020",null,"EMP020M","EMP020A",null,"EMP020M","EMP020A",null,"Monthly",1967,null,"Bureau of Labor Statistics","2017-10-21"]
[null,"Employment",null,null,"Median Duration of Unemployment - Weeks, Monthly Average SA","EMP021",null,"EMP021M","EMP021A",null,"EMP021M","EMP021A",null,"Monthly",1967,null,"Bureau of Labor Statistics","2017-09-01"]
[null,"Employment",null,null,"Trucking Employment - Truck Transportation - SA in Thousands","EMP022",null,"EMP022M","EMP022A",null,"EMP022M","EMP022A",null,"Monthly",1990,null,"Bureau of Labor Statistics",{"$f":"+$D$6","v":"2017-10-30"}]
[null,"Employment",null,null,"Trucking Employment - Truck Transportation - NSA in Thousands","EMP023",null,"EMP023M","EMP023A",null,"EMP023M","EMP023A",null,null,1990,null,"Bureau of Labor Statistics","2017-10-30"]
[null,"Employment",null,null,"Trucking Employment - General Freight  - NSA in Thousands","EMP024",null,"EMP024M","EMP024A",null,"EMP024M","EMP024A",null,null,1990,null,"Bureau of Labor Statistics","2017-10-30"]
[null,"Employment",null,null,"Trucking Employment - General Freight, local - NSA in Thousands","EMP025",null,"EMP025M","EMP025A",null,"EMP025M","EMP025A",null,null,1990,null,"Bureau of Labor Statistics","2017-10-30"]
[null,"Employment",null,null,"Trucking Employment - General Freight, long - NSA in Thousands","EMP026",null,"EMP026M","EMP026A",null,"EMP026M","EMP026A",null,null,1990,null,"Bureau of Labor Statistics","2017-10-30"]
[null,"Employment",null,null,"Trucking Employment - General Freight, long TL - NSA in Thousands","EMP027",null,"EMP027M","EMP027A",null,"EMP027M","EMP027A",null,null,1990,null,"Bureau of Labor Statistics","2017-10-30"]
[null,"Employment",null,null,"Trucking Employment - General Freight, long LTL - NSA in Thousands","EMP028",null,"EMP028M","EMP028A",null,"EMP028M","EMP028A",null,null,1990,null,"Bureau of Labor Statistics","2017-10-30"]
[null,"Employment",null,null,"Trucking Employment - Specialized Freight - NSA in Thousands","EMP029",null,"EMP029M","EMP029A",null,"EMP029M","EMP029A",null,null,1990,null,"Bureau of Labor Statistics","2017-10-30"]
[]
[]
[]
[]
[]
[null,"Freight",null,null,"Freight Composite Index Class 8","FRE001","","FRE001Q","FRE001A",null,"FRE001Q","FRE001A",null,"Quarterly",1960,null,"ACT Research, LLC","2017-10-30"]
[null,"Freight",null,null,"Freight Composite Index Dry Van","FRE004","","FRE004Q","FRE004A",null,"FRE004Q","FRE004A",null,"Quarterly",1960,null,"ACT Research, LLC","2017-10-30"]
[null,"Freight",null,null,"Freight Composite Index Reefer Van","FRE007","","FRE007Q","FRE007A",null,"FRE007Q","FRE007A",null,"Quarterly",1960,null,"ACT Research, LLC","2017-10-30"]
[]
[]
[]
[]
[]
[null,"Inflation",null,null,"Producer Price Index: All Commodities","PPI001",null,"PPI001M","PPI001A",null,"PPI001M","PPI001A",null,"Monthly",1959,null,"Bureau of Labor Statistics","2017-09-01"]
[null,"Inflation",null,null,"Producer Price Index: Finished Goods Less Food & Energy","PPI004",null,"PPI004M","PPI004A",null,"PPI004M","PPI004A",null,"Monthly",1974,null,"Bureau of Labor Statistics","2015-12-01"]
[null,"Inflation",null,null,"Producer Price Index Finished Goods: Capital Equipment","PPI007",null,"PPI007M","PPI007A",null,"PPI007M","PPI007A",null,"Monthly",1959,null,"Bureau of Labor Statistics","2015-12-01"]
[]
[]
[]
[]
[]
[null,"Rates",null,null,"Bank Prime Loan Rate","RAT001",null,"RAT001M","RAT001A",null,"RAT001M","RAT001A",null,"Monthly",1959,null,"Federal Reserve Bank","2017-09-01"]
[null,"Rates",null,null,"Effective Federal Funds Rate","RAT002",null,"RAT002M","RAT002A",null,"RAT002M","RAT002A",null,"Monthly",1959,null,"Federal Reserve Bank","2017-09-01"]
[null,"Rates",null,null,"Moody's Seasoned Aaa Corporate Bond Yield","RAT003",null,"RAT003M","RAT003A",null,"RAT003M","RAT003A",null,"Monthly",1959,null,"Federal Reserve Bank","2017-09-01"]
[null,"Rates",null,null,"Moody's Seasoned Baa Corporate Bond Yield","RAT004",null,"RAT004M","RAT004A",null,"RAT004M","RAT004A",null,"Monthly",1959,null,"Federal Reserve Bank","2017-09-01"]
[null,"Rates",null,null,"Mortgage Rate, 30-Year Conventional ","RAT005",null,"RAT005M","RAT005A",null,"RAT005M","RAT005A",null,"Monthly",1971,null,"Federal Reserve Bank","2016-09-01"]
[null,"Rates",null,null,"Treasury Bill: Secondary Market Rate, 3-Month ","RAT006",null,"RAT006M","RAT006A",null,"RAT006M","RAT006A",null,"Monthly",1959,null,"Federal Reserve Bank","2017-09-01"]
[null,"Rates",null,null,"Treasury Constant Maturity Rate, 1-Year ","RAT007",null,"RAT007M","RAT007A",null,"RAT007M","RAT007A",null,"Monthly",1959,null,"Federal Reserve Bank","2017-09-01"]
[null,"Rates",null,null,"Treasury Constant Maturity Rate, 3-Year ","RAT008",null,"RAT008M","RAT008A",null,"RAT008M","RAT008A",null,"Monthly",1959,null,"Federal Reserve Bank","2017-09-01"]
[null,"Rates",null,null,"Treasury Constant Maturity Rate, 5-Year ","RAT009",null,"RAT009M","RAT009A",null,"RAT009M","RAT009A",null,"Monthly",1959,null,"Federal Reserve Bank","2017-09-01"]
[null,"Rates",null,null,"Treasury Constant Maturity Rate, 10-Year ","RAT010",null,"RAT010M","RAT010A",null,"RAT010M","RAT010A",null,"Monthly",1959,null,"Federal Reserve Bank","2017-09-01"]
[null,"Rates",null,null,"Treasury Yield, 10-Year Minus 1-Year","RAT011",null,"RAT011M","RAT011A",null,"RAT011M","RAT011A",null,"Monthly",1959,null,"Federal Reserve Bank","2017-09-01"]
[]
[]
[]
[]
[]
[null,"Trade",null,null,"Canada / U.S. Foreign Exchange Rate","TRA001",null,"TRA001M","TRA001A",null,"TRA001M","TRA001A",null,"Monthly",1971,null,"Federal Reserve Bank","2017-10-01"]
[null,"Trade",null,null,"China/U.S. Foreign Exchange Rate","TRA002",null,"TRA002M","TRA002A",null,"TRA002M","TRA002A",null,"Monthly",1981,null,"Federal Reserve Bank","2017-10-01"]
[null,"Trade",null,null,"Mexico/U.S. Foreign Exchange Rate","TRA003",null,"TRA003M","TRA003A",null,"TRA003M","TRA003A",null,"Monthly",1993,null,"Federal Reserve Bank","2017-10-01"]
[null,"Trade",null,null,"U.S. / Euro Foreign Exchange Rate","TRA004",null,"TRA004M","TRA004A",null,"TRA004M","TRA004A",null,"Monthly",1999,null,"Federal Reserve Bank","2017-10-01"]
[null,"Trade",null,null,"Trade Weighted Exchange Index: Broad","TRA005",null,"TRA005M","TRA005A",null,"TRA005M","TRA005A",null,"Monthly",1973,null,"Federal Reserve Bank","2017-10-01"]
[null,"Trade",null,null,"Trade Weighted Exchange Index: Major Currencies","TRA006",null,"TRA006M","TRA006A",null,"TRA006M","TRA006A",null,"Monthly",1973,null,"Federal Reserve Bank","2017-10-01"]
[null,"Trade",null,null,"U.S. Imports from Canada, Customs Basis","TRA007",null,"TRA007M","TRA007A",null,"TRA007M","TRA007A",null,"Monthly",1974,null,"Bureau of Economic Analysis","2017-08-01"]
[null,"Trade",null,null,"U.S. Imports from China, Mainland, Customs Basis","TRA008",null,"TRA008M","TRA008A",null,"TRA008M","TRA008A",null,"Monthly",1974,null,"Bureau of Economic Analysis","2017-08-01"]
[null,"Trade",null,null,"U.S. Imports from Mexico, Customs Basis","TRA009",null,"TRA009M","TRA009A",null,"TRA009M","TRA009A",null,"Monthly",1974,null,"Bureau of Economic Analysis","2017-08-01"]
[]
[]
[]
[]
[]
[null,"Energy",null,null,"Spot Oil Price: West Texas Intermediate - $/bbl","ENE001",null,"ENE001M","ENE001A",null,"ENE001M","ENE001A",null,"Monthly",1959,null,"Energy Information Administration",{"$f":"+$D$6","v":"2017-10-30"}]
[null,"Energy",null,null,"Europe Brent Spot Price FOB - $/bbl","ENE002",null,"ENE002M","ENE002A",null,"ENE002M","ENE002A",null,"Monthly",1988,null,"Energy Information Administration","2017-10-30"]
[null,"Energy",null,null,"EIA Retail Gasoline Prices - $ per Gallon","ENE003",null,"ENE003M","ENE003A",null,"ENE003M","ENE003A",null,"Monthly",1990,null,"Energy Information Administration","2017-10-30"]
[null,"Energy",null,null,"EIA Retail On-Highway Diesel Fuel Prices - $ per Gallon","ENE004",null,"ENE004M","ENE004A",null,"ENE004M","ENE004A",null,"Monthly",1990,null,"Energy Information Administration","2017-10-30"]
[null,"Energy",null,null,"U.S. Exports of Distillate Fuel Oil - 000s Bbls/Day","ENE005",null,"ENE005M","ENE005A",null,"ENE005M","ENE005A",null,"Monthly",1973,null,"Energy Information Administration","2017-10-30"]
[null,"Energy",null,null,"U.S. Exports of Distillate Fuel Oil, 0-15 ppm Sulfur - 000s Bbls/Day","ENE006",null,"ENE006M","ENE006A",null,"ENE006M","ENE006A",null,"Monthly",2009,null,"Energy Information Administration","2017-10-30"]
[null,"Energy",null,null,"Natural Gas Futures Contract 1 - $ per MmBTU","ENE007",null,"ENE007M","ENE007A",null,"ENE007M","ENE007A",null,"Monthly",1994,null,"Energy Information Administration","2017-10-30"]
[null,"Energy",null,null,"U.S. Product Supplied of Distillate Fuel Oil, Weekly - 000s Bbls/Day","ENE008",null,"ENE008W","ENE008A",null,"ENE008W","ENE008A",null,"Monthly",1991,null,"Energy Information Administration","2017-10-30"]
[null,"Energy",null,null,"U.S. Refiner Net Production of Distillate Fuel Oil, 0-15 ppm Sulfur, Weekly - 000s Bbls/Day","ENE009",null,"ENE009W","ENE009A",null,"ENE009W","ENE009A",null,"Monthly",2010,null,"Energy Information Administration","2017-10-30"]

{"sheet":"Monthly","index":1,"n_rows":718,"n_cols":194,"rows_kept":281,"cut":true,"hidden":false,"merged":[],"bounds":{"rows_first":125,"rows_last":31,"rows_between":125,"halvings":4}}
[]
[]
[]
[]
[]
[]
["Title:","Nominal Gross Domestic Product","Real Gross Domestic Product","Real Final Sales of Domestic Product","Real Personal Consumption Expenditures","Real PCE: Durable Goods","Real PCE: Nondurable Goods","Real PCE: Services","Real Private Nonres. Fixed Investment","Real Nonres. Invest.: Equip. & Software","Real Private Residential Fixed Investment","Real Change in Private Inventories","Real Imports of Goods & Services","Real Exports of Goods & Services","Net Exports of Goods & Services","Real Gov't Cons. & Invest.","Federal Government Surplus or Deficit [-], NIPA",null,null,null,null,null,"Capacity Utilization: Mfg (NAICS) - Percent of Capacity, SA","Capacity Utilization: Total Industry","Commercial and Industrial Loans, Commercial Banks, SA","Commercial Net Loan Charge-offs - Ratio","Corporate Profits After Tax , SAAR","Corporate Profits Less Financial After Tax - Billions of Dollars, SAAR","Bank Willingness to Make Consumer Loans","Demand for Commercial & Industrial Loans by Small Firms ","Nonperforming Loans - Total","Commercial Net Loan Charge-offs","Total Loan Charge-offs ","E-Commerce Sales ","E-Commerce Sales as % of Total Retail Sales","ECI: \nBenefits: Private Industry Workers  2005=100","ECI: Compensation: Private Industry Workers 2005=100","ECI: Wages & Salaries: Private Industry Workers - Index 2005=100","Industrial Production Index","Industrial Production Index - Mfg.","Inventories: Total Business","Inventory to Sales Ratio: Total Business","ISM INDEX: PMI Manufacturing Composite Index","ISM INDEX Backlogs","ISM INDEX Customer Inventories","ISM INDEX Employment ","ISM INDEX Exports","ISM INDEX Imports","ISM INDEX Inventories","ISM INDEX New Orders","ISM INDEX Prices","ISM INDEX Production","ISM INDEX Supplier deliveries","ISM NonMfg.: Business Activity Index","Mfgs' New Orders: Nondefense Excluding Aircraft","Manufacturing: Output Per Hour of All Persons ","Manufacturing: Unit Labor Cost","Nonfarm: Compensation Per Hour ","Nonfarm: Output Per Hour of All Persons ","Nonfarm: Real Compensation Per Hour ","Nonfarm: Unit Labor Cost","Nonfinancial Corporate Business: Profits After Tax","Nonperforming Total Loans ","PMI Manufacturing Composit Index","Retail and Food Services Sales","Retail Sales: Total (Excluding Food Services)",null,null,null,null,null,"Consumer Loans at All Commercial Banks","Debt Service Payments as a % DPI","Household Financial Obligations as a percent of DPI","Household Credit Market Debt Outstanding - SA","Housing Starts Total: New Privately Owned ","New Private Housing Units Authorized by Building Permits","S&P Case-Shiller 20-City Home Price Index","Autos & Light Trucks","Misery Index","Misery Index - Adjusted ","New Home Inventories","New Homes Sold","New Home IN/RS","Used Home Inventories","Used Homes Sold","Used Home IN/RS","New Homes Sales - Single Family","Personal Income","Personal Saving","Privately Owned Housing Starts: 1-Unit Structures","Real Disposable Personal Income","Savings Deposits - Total","Total Consumer Credit Outstanding","Total Population: Incl'd Armed Forces Overseas - Thousands","Total Revolving Credit Outstanding","University of Michigan: Consumer Sentiment","Conference Board Consumer Confidence",null,null,null,null,null,"CPI Index - All Urban: All Items","CPI Index All Urban: Less Food & Energy",null,null,null,null,null,"Aggregate Weekly Hours Index: Total Private Industries","Average Weekly Hours: Production & Nonsuper.","Civilian Participation Rate","Total Unemployment Rate Plus (U6 Rate)","Civilian Unemployment Rate","Nonfarm Payrolls: Mfg.","Nonfarm Payrolls: Mfg. - Monthly Change","Nonfarm Payrolls: Mfg - Quarterly Change","Nonfarm Payrolls: Mfg - Annual Change","Nonfarm Payrolls: All Employees","Nonfarm Payrolls: All Employees - Monthly Change","Nonfarm Payrolls: All Employees - Quarterly Change","Nonfarm Payrolls: All Employees - Annual Change","Initial Unemployment Claims (Monthly Average)","Median Duration of Unemployment","Trucking Employment - Truck Transportation - SA","Trucking Employment - Truck Transportation - NSA","Trucking Employment - General Freight  - NSA","Trucking Employment - General Freight, local - NSA","Trucking Employment - General Freight, long - NSA","Trucking Employment - General Freight, long TL - NSA","Trucking Employment - General Freight, long LTL - NSA","Trucking Employment - Specialized Freight - NSA",null,null,null,null,null,"Freight Composite Index Class 8","Freight Composite Index Dry Van","Freight Composite Index Reefer Van",null,null,null,null,null,"Producer Price Index: All Commodities","PPI: Finished Goods Less Food & Energy","PPI Finished Goods: Capital Equipment",null,null,null,null,null,"Bank Prime Loan Rate","Effective Federal Funds Rate","Moody's Seasoned Aaa Corporate Bond Yield","Moody's Seasoned Baa Corporate Bond Yield","Yield Spread: Moody's Seasoned Corporate Bond Yield","Mortgage Rate, 30-Year Conventional ","Treasury Bill: Secondary Market Rate, 3-Month ","Treasury Constant Maturity Rate, 1-Year ","Treasury Constant Maturity Rate, 2-Year ","Treasury Constant Maturity Rate, 5-Year ","Treasury Constant Maturity Rate, 10-Year ","Yield Spread: Treasury Yield, 10-Year Minus 2-Year",null,null,null,null,null,"Canada / U.S. Foreign Exchange Rate","China/U.S. Foreign Exchange Rate","Mexico/U.S. Foreign Exchange Rate","U.S. / Euro Foreign Exchange Rate","Trade Weighted Exchange Index: Broad","Trade Weighted Exchange Index: Major Currencies","U.S. Imports from Canada, Customs Basis","U.S. Imports from China, Mainland, Customs Basis","U.S. Imports from Mexico, Customs Basis",null,null,null,null,null,"Spot Oil Price: West Texas Intermediate","Europe Brent Spot Price FOB ","EIA  Retail Gasoline Prices : All Grades","EIA Retail On-Highway Diesel Fuel Prices","U.S. Exports of Distillate Fuel Oil ","U.S. Exports of Distillate Fuel Oil, 0 to 15 ppm Sulfur ","Natural Gas Futures Contract 1 ","U.S. Product Supplied of Distillate Fuel Oil","U.S. Refiner Net Production of Distillate Fuel Oil, 0 to 15 ppm Sulfur"]
["ID","GDP001Q","GDP004Q","GDP007Q","GDP010Q","GDP014Q","GDP018Q","GDP022Q","GDP026Q","GDP029Q","GDP032Q","GDP035Q","GDP036Q","GDP039Q","GDP042Q","GDP043Q","GDP046Q",null,null,null,null,null,"BUS001M","BUS002M","BUS003M","BUS004M","BUS005M","BUS006M","BUS007M","BUS008M","BUS009M","BUS010M","BUS011M","BUS012M","BUS013Q","BUS014M","BUS015M","BUS016M","BUS019M","BUS020M","BUS021M","BUS022M","BUS023M","BUS024M","BUS025M","BUS026M","BUS027M","BUS028M","BUS029M","BUS030M","BUS031M","BUS032M","BUS033M","BUS034M","BUS035M","BUS036M","BUS037M","BUS038M","BUS039M","BUS040M","BUS041M","BUS042M","BUS043M","BUS044M","BUS045M","BUS046M",null,null,null,null,null,"CON001M","CON002M","CON003M","CON004M","CON005M","CON006M","CON007M","CON008M","CON009M","CON010M","CON011M","CON012M","CON035M","CON033M","CON034M","COM036M","CON013M","CON014M","CON018M","CON022M","CON023M","CON027M","CON028M","CON029M","CON030M","CON031M","CON032M",null,null,null,null,null,"CPI001M","CPI005M",null,null,null,null,null,"EMP001M","EMP002M","EMP003M","EMP004M","EMP005M","EMP006M","EMP007M","EMP009M","EMP011M","EMP013M","EMP014M","EMP016M","EMP018M","EMP020M","EMP021M","EMP022M","EMP023M","EMP024M","EMP025M","EMP026M","EMP027M","EMP028M","EMP029M",null,null,null,null,null,"FRE001M","FRE004M","FRE007M",null,null,null,null,null,"PPI001M","PPI004M","PPI007M",null,null,null,null,null,"RAT001M","RAT002M","RAT003M","RAT004M",null,"RAT005M","RAT006M","RAT007M","RAT008M","RAT009M","RAT010M","RAT011M",null,null,null,null,null,"TRA001M","TRA002M","TRA003M","TRA004M","TRA005M","TRA006M","TRA007M","TRA008M","TRA009M",null,null,null,null,null,"ENE001M","ENE002M","ENE003M","ENE004M","ENE005M","ENE006M","ENE007M","ENE008M","ENE009M"]
["Frequency:","Quarterly","Quarterly","Quarterly","Monthly","Monthly","Monthly","Monthly","Quarterly","Quarterly","Quarterly","Quarterly","Quarterly","Quarterly","Quarterly","Quarterly","Quarterly",null,null,null,null,null,"Quarterly","Monthly","Monthly","Quarterly, End of Period","Quarterly","Quarterly","Quarterly, End of Period","Quarterly, End of Period","Quarterly, End of Period","Quarterly, End of Period","Quarterly, End of Period","Quarterly","Quarterly","Quarterly","Quarterly","Quarterly","Monthly","Monthly","Monthly, End of Period","Monthly","Monthly","Monthly","Monthly","Monthly","Monthly","Monthly","Monthly","Monthly","Monthly","Monthly","Monthly","Monthly","Monthly","Quarterly","Quarterly","Quarterly","Quarterly","Quarterly","Quarterly","Quarterly","Quarterly","Monthly","Monthly","Monthly",null,null,null,null,null,"Monthly","Quarterly","Quarterly","Quarterly, End of Period","Monthly","Monthly","Monthly","Monthly","Monthly ","Monthly ","Monthly","Monthly","Monthly","Monthly","Monthly ","Monthly","Monthly","Monthly","Monthly","Monthly","Monthly","Monthly","Monthly, End of Period","Monthly","Monthly, End of Period","Monthly","Monthly",null,null,null,null,null,"Monthly","Monthly",null,null,null,null,null,"Monthly","Monthly","Monthly","Monthly","Monthly","Monthly",null,null,null,"Monthly",null,null,null,"Weekly, End of Period","Monthly","Monthly","Monthly","Monthly","Monthly","Monthly","Monthly","Monthly","Monthly",null,null,null,null,null,"Quarterly","Quarterly","Quarterly",null,null,null,null,null,"Monthly","Monthly","Monthly",null,null,null,null,null,"Monthly","Monthly","Monthly","Monthly",null,"Monthly","Monthly","Monthly","Monthly","Monthly","Monthly",null,null,null,null,null,null,"Monthly","Monthly","Monthly","Monthly","Monthly","Monthly","Monthly","Monthly","Monthly",null,null,null,null,null,"Monthly","Monthly","Monthly","Monthly","Monthly","Monthly","Monthly","Monthly","Monthly"]
["Units:","Billions of Dollars","Billions of Chained 2009 Dollars","Billions of Chained 2009 Dollars","Billions of Chained 2009 Dollars","Billions of Chained 2009 Dollars","Billions of Chained 2009 Dollars","Billions of Chained 2009 Dollars","Billions of Chained 2009 Dollars","Billions of Chained 2009 Dollars","Billions of Chained 2009 Dollars","Billions of Chained 2009 Dollars","Billions of Chained 2009 Dollars","Billions of Chained 2009 Dollars","Billions of Chained 2009 Dollars","Billions of Chained 2009 Dollars","Billions of Dollars",null,null,null,null,null,"Percent of Capacity","Percent of Capacity","Billions of Dollars","Ratio","Billions of Dollars","Billions of Dollars","Percent","Percent","Ratio","Ratio","Ratio","Millions of Dollars","XXXXXXXX","Index: December 2005=100","Index: December 2005=100","Index: December 2005=100","Index 2012=100","Index 2012=100","Millions of Dollars","Ratio","Index","Index","Index","Index","Index","Index","Index","Index","Index","Index","Index","Index","Millions of Dollars","Index, 2009=100","Index, 2009=100","Index, 2009=100","Index, 2009=100","Index, 2009=100","Index, 2009=100","Billions of Dollars","Ratio","XXXXXXXX","Millions of Dollars","Millions of Dollars",null,null,null,null,null,"Billions of Dollars","Percent","Percent","Billions of Dollars","Thousands of Units","Thousands of Units","Billions of Dollars","Millions of Units","Percent","Percent","Thousands, SAAR","Thousands, SAAR",null,"Thousands","Thousands",null,"Thousands","Billions of Dollars","Billions of Dollars","Thousands of Units","Billions of Chained 2009 Dollars","Billions of Dollars","Billions of Dollars","Thousands","Billions of Dollars","Index 1st Quarter 1966=100","Index",null,null,null,null,null,"Index 1982-84=100","Index 1982-84=100",null,null,null,null,null,"Index 2002=100","Hours","Percent","Percent","Percent","Thousands","Thousands","XXXXXXXX","XXXXXXXX","Thousands","Thousands","XXXXXXXX","XXXXXXXX","Number","Weeks","Thousands","Thousands","Thousands","Thousands","Thousands","Thousands","Thousands","Thousands",null,null,null,null,null,"Index","Index","Index",null,null,null,null,null,"Index 1982=100","Index 1982=100","Index 1982=100",null,null,null,null,null,"Percent","Percent","Percent","Percent","Yield Spread (in BPS)","Percent","Percent","Percent","Percent","Percent","Percent","Yield Spread (in BPS)",null,null,null,null,null,"Canadian Dollars to One U.S. Dollar","Chinese Yuan to One U.S. Dollar","Mexican New Pesos to One U.S. Dollar","U.S. Dollars to One Euro","Index January 1997=100","Index March 1973=100","Millions of Dollars","Millions of Dollars","Millions of Dollars",null,null,null,null,null,"$ per Bbl.","$ per Bbl.","$ per Gallon","$ per Gallon","000s Bbls/Day","000s Bbls/Day","$ per MmBTU","000s Bbls/Day","000s Bbls/Day"]
["1959-01-01",null,null,null,0,0,0,0,null,null,null,null,null,null,null,null,null,null,null,null,null,null,null,"--",35.213000000000001,null,null,null,null,null,null,null,null,null,null,null,null,null,22.725300000000001,"--","--","--",64.400000000000006,"--","--",60.8,"--","--",45.5,69,59.1,70.7,61.8,"--","--",null,null,null,null,null,null,null,null,null,"--","--",null,null,null,null,null,20.728200000000001,null,null,null,1657,"--","--","--","--","--","--","--","--","--","--","--","--",392.1,39.5,1336,2056.5,136,48.961199999999998,176447,"--","--","--",null,null,null,null,null,29.01,29.9,null,null,null,null,null,"--","--",59.3,"--",6,14998,"--",null,null,52480,"--",null,null,0,"--","--","--","--","--","--","--","--","--",null,null,null,null,null,null,null,null,null,null,null,null,null,31.7,"--",32.4,null,null,null,null,null,4,2.48,4.12,4.87,{"$f":"+(FB11-FA11)*100","v":75},"--",2.82,3.36,"--",4.01,4.0199999999999996,"--",null,null,null,null,null,"--","--","--","--","--","--","--","--","--",null,null,null,null,null,3,"--","--","--","--","--","--","--","--"]
["1959-02-01",null,null,null,0,0,0,0,null,null,null,null,null,null,null,null,null,null,null,null,null,null,null,"--",35.220100000000002,null,null,null,null,null,null,null,null,null,null,null,null,null,23.170300000000001,"--","--","--",66.900000000000006,"--","--",62.5,"--","--",55.5,70.5,66.599999999999994,70.3,67.3,"--","--",null,null,null,null,null,null,null,null,null,"--","--",null,null,null,null,null,20.9603,null,null,null,1667,"--","--","--","--","--","--","--","--","--","--","--","--",394.1,37.5,1317,2063.5,136.6,49.5137,176685,"--","--","--",null,null,null,null,null,29,29.9,null,null,null,null,null,"--","--",59,"--",5.9,15115,{"$f":"+DL12-DL11","v":117},null,null,52687,{"$f":"+DP12-DP11","v":207},null,null,0,"--","--","--","--","--","--","--","--","--",null,null,null,null,null,null,null,null,null,null,null,null,null,31.7,"--",32.5,null,null,null,null,null,4,2.4300000000000002,4.1399999999999997,4.8899999999999997,{"$f":"+(FB12-FA12)*100","v":75},"--",2.7,3.54,"--",3.96,3.96,"--",null,null,null,null,null,"--","--","--","--","--","--","--","--","--",null,null,null,null,null,3,"--","--","--","--","--","--","--","--"]
["1959-03-01",null,null,null,0,0,0,0,null,null,null,null,null,null,null,null,null,null,null,null,null,null,null,"--",35.130400000000002,null,null,null,null,null,null,null,null,null,null,null,null,null,23.504100000000001,"--","--","--",67.099999999999994,"--","--",62.3,"--","--",58.4,70.2,68.900000000000006,71.2,66.3,"--","--",null,null,null,null,null,null,null,null,null,"--","--",null,null,null,null,null,21.209,null,null,null,1620,"--","--","--","--","--","--","--","--","--","--","--","--",396.9,36.5,1254,2075.1,137.6,50.0077,176905,"--","--","--",null,null,null,null,null,28.97,30,null,null,null,null,null,"--","--",59.3,"--",5.6,15259,144,null,null,53016,{"$f":"+DP13-DP12","v":329},null,null,0,"--","--","--","--","--","--","--","--","--",null,null,null,null,null,null,null,null,null,null,null,null,null,31.7,"--",32.6,null,null,null,null,null,4,2.8,4.13,4.8499999999999996,{"$f":"+(FB13-FA13)*100","v":71.999999999999972},"--",2.8,3.61,"--",3.99,3.99,"--",null,null,null,null,null,"--","--","--","--","--","--","--","--","--",null,null,null,null,null,2.97,"--","--","--","--","--","--","--","--"]
["1959-04-01",null,null,null,0,0,0,0,null,null,null,null,null,null,null,null,null,null,null,null,null,null,null,"--",35.558100000000003,null,null,null,null,null,null,null,null,null,null,null,null,null,24.004799999999999,"--","--","--",66.900000000000006,"--","--",63.6,"--","--",63.4,66.900000000000006,63.6,72.099999999999994,64.8,"--","--",null,null,null,null,null,null,null,null,null,"--","--",null,null,null,null,null,21.4893,null,null,null,1590,"--","--","--","--","--","--","--","--","--","--","--","--",400.1,39.799999999999997,1282,2087.6999999999998,138.4,50.4634,177146,"--","--","--",null,null,null,null,null,28.98,30,null,null,null,null,null,"--","--",59.4,"--",5.2,15385,126,null,null,53320,304,null,null,0,"--","--","--","--","--","--","--","--","--",null,null,null,null,null,null,null,null,null,null,null,null,null,31.8,"--",32.700000000000003,null,null,null,null,null,4,2.96,4.2300000000000004,4.8600000000000003,62.999999999999986,"--",2.95,3.72,"--",4.12,4.12,"--",null,null,null,null,null,"--","--","--","--","--","--","--","--","--",null,null,null,null,null,2.97,"--","--","--","--","--","--","--","--"]
["1959-05-01",null,null,null,0,0,0,0,null,null,null,null,null,null,null,null,null,null,null,null,null,null,null,"--",36.306399999999996,null,null,null,null,null,null,null,null,null,null,null,null,null,24.366399999999999,"--","--","--",68.2,"--","--",64.8,"--","--",63.8,69.900000000000006,65.099999999999994,73.900000000000006,63,"--","--",null,null,null,null,null,null,null,null,null,"--","--",null,null,null,null,null,21.718800000000002,null,null,null,1498,"--","--","--","--","--","--","--","--","--","--","--","--",402.7,38.1,1213,2099.6,139.5,51.007199999999997,177365,"--","--","--",null,null,null,null,null,29.04,30.1,null,null,null,null,null,"--","--",59.2,"--",5.0999999999999996,15487,102,null,null,53549,229,null,null,0,"--","--","--","--","--","--","--","--","--",null,null,null,null,null,null,null,null,null,null,null,null,null,31.8,"--",32.700000000000003,null,null,null,null,null,4.2300000000000004,2.9,4.37,4.96,58.999999999999986,"--",2.84,3.96,"--",4.3499999999999996,4.3099999999999996,"--",null,null,null,null,null,"--","--","--","--","--","--","--","--","--",null,null,null,null,null,2.97,"--","--","--","--","--","--","--","--"]
["1959-06-01",null,null,null,0,0,0,0,null,null,null,null,null,null,null,null,null,null,null,null,null,null,null,"--",37.1404,null,null,null,null,null,null,null,null,null,null,null,null,null,24.394200000000001,"--","--","--",64.400000000000006,"--","--",62.2,"--","--",65.599999999999994,64.2,69.5,66.3,63.7,"--","--",null,null,null,null,null,null,null,null,null,"--","--",null,null,null,null,null,21.985900000000001,null,null,null,1503,"--","--","--","--","--","--","--","--","--","--","--","--",405.2,38.200000000000003,1203,2106.9,140.69999999999999,51.675400000000003,177591,"--","--","--",null,null,null,null,null,29.11,30.2,null,null,null,null,null,"--","--",59.2,"--",5,15554,67,null,null,53679,130,null,null,0,"--","--","--","--","--","--","--","--","--",null,null,null,null,null,null,null,null,null,null,null,null,null,31.7,"--",32.9,null,null,null,null,null,4.5,3.39,4.46,5.04,58.000000000000007,"--",3.21,4.07,"--",4.5,4.34,"--",null,null,null,null,null,"--","--","--","--","--","--","--","--","--",null,null,null,null,null,2.97,"--","--","--","--","--","--","--","--"]
["1959-07-01",null,null,null,0,0,0,0,null,null,null,null,null,null,null,null,null,null,null,null,null,null,null,"--",37.664499999999997,null,null,null,null,null,null,null,null,null,null,null,null,null,23.810099999999998,"--","--","--",61.5,"--","--",59,"--","--",62,61.3,63.9,64.8,59.1,"--","--",null,null,null,null,null,null,null,null,null,"--","--",null,null,null,null,null,22.425599999999999,null,null,null,1547,"--","--","--","--","--","--","--","--","--","--","--","--",405.7,38.700000000000003,1256,2103.3000000000002,141.4,52.356900000000003,177830,"--","--","--",null,null,null,null,null,29.15,30.2,null,null,null,null,null,"--","--",59.4,"--",5.0999999999999996,15623,69,null,null,53803,124,null,null,0,"--","--","--","--","--","--","--","--","--",null,null,null,null,null,null,null,null,null,null,null,null,null,31.7,"--",32.799999999999997,null,null,null,null,null,4.5,3.47,4.47,5.08,61.000000000000028,"--",3.2,4.3899999999999997,"--",4.58,4.4000000000000004,"--",null,null,null,null,null,"--","--","--","--","--","--","--","--","--",null,null,null,null,null,2.97,"--","--","--","--","--","--","--","--"]
["1959-08-01",null,null,null,0,0,0,0,null,null,null,null,null,null,null,null,null,null,null,null,null,null,null,"--",38.088999999999999,null,null,null,null,null,null,null,null,null,null,null,null,null,23.003399999999999,"--","--","--",55.1,"--","--",53.6,"--","--",50.9,54.4,57.6,57.4,57.4,"--","--",null,null,null,null,null,null,null,null,null,"--","--",null,null,null,null,null,22.8187,null,null,null,1430,"--","--","--","--","--","--","--","--","--","--","--","--",404.1,34.6,1193,2091.1,142.30000000000001,53.038499999999999,178101,"--","--","--",null,null,null,null,null,29.18,30.2,null,null,null,null,null,"--","--",59.2,"--",5.2,15202,-421,null,null,53334,-469,null,null,0,"--","--","--","--","--","--","--","--","--",null,null,null,null,null,null,null,null,null,null,null,null,null,31.6,"--",32.799999999999997,null,null,null,null,null,4.5,3.5,4.43,5.09,66.000000000000014,"--",3.38,4.42,"--",4.57,4.43,"--",null,null,null,null,null,"--","--","--","--","--","--","--","--","--",null,null,null,null,null,2.97,"--","--","--","--","--","--","--","--"]
["1959-09-01",null,null,null,0,0,0,0,null,null,null,null,null,null,null,null,null,null,null,null,null,null,null,"--",38.2605,null,null,null,null,null,null,null,null,null,null,null,null,null,22.9756,"--","--","--",48.3,"--","--",48,"--","--",42.3,43.7,61.6,50.9,57.5,"--","--",null,null,null,null,null,null,null,null,null,"--","--",null,null,null,null,null,23.203499999999998,null,null,null,1540,"--","--","--","--","--","--","--","--","--","--","--","--",405.3,31.4,1275,2091.1999999999998,143.30000000000001,53.683799999999998,178376,"--","--","--",null,null,null,null,null,29.25,30.3,null,null,null,null,null,"--","--",59.3,"--",5.5,15254,52,null,null,53429,95,null,null,0,"--","--","--","--","--","--","--","--","--",null,null,null,null,null,null,null,null,null,null,null,null,null,31.7,"--",32.9,null,null,null,null,null,5,3.76,4.5199999999999996,5.18,66.000000000000014,"--",4.04,5,"--",4.9000000000000004,4.68,"--",null,null,null,null,null,"--","--","--","--","--","--","--","--","--",null,null,null,null,null,2.97,"--","--","--","--","--","--","--","--"]
["1959-10-01",null,null,null,0,0,0,0,null,null,null,null,null,null,null,null,null,null,null,null,null,null,null,"--",38.411299999999997,null,null,null,null,null,null,null,null,null,null,null,null,null,22.808700000000002,"--","--","--",49.7,"--","--",47.3,"--","--",39.1,50,63.1,50.4,58.5,"--","--",null,null,null,null,null,null,null,null,null,"--","--",null,null,null,null,null,23.584700000000002,null,null,null,1355,"--","--","--","--","--","--","--","--","--","--","--","--",407,34.1,1043,2093.9,143.80000000000001,54.366,178657,"--","--","--",null,null,null,null,null,29.35,30.4,null,null,null,null,null,"--","--",59.4,"--",5.7,15158,-96,null,null,53359,-70,null,null,0,"--","--","--","--","--","--","--","--","--",null,null,null,null,null,null,null,null,null,null,null,null,null,31.6,"--",32.799999999999997,null,null,null,null,null,5,3.98,4.57,5.28,71,"--",4.05,4.8,"--",4.72,4.53,"--",null,null,null,null,null,"--","--","--","--","--","--","--","--","--",null,null,null,null,null,2.97,"--","--","--","--","--","--","--","--"]
["1959-11-01",null,null,null,0,0,0,0,null,null,null,null,null,null,null,null,null,null,null,null,null,null,null,"--",38.697800000000001,null,null,null,null,null,null,null,null,null,null,null,null,null,22.947800000000001,"--","--","--",50.6,"--","--",48.8,"--","--",43.4,51.1,65.099999999999994,51.9,54.6,"--","--",null,null,null,null,null,null,null,null,null,"--","--",null,null,null,null,null,23.725200000000001,null,null,null,1416,"--","--","--","--","--","--","--","--","--","--","--","--",410.3,36.799999999999997,1163,2108.6999999999998,145,54.794800000000002,178921,"--","--","--",null,null,null,null,null,29.35,30.4,null,null,null,null,null,"--","--",59.1,"--",5.8,15300,142,null,null,53635,276,null,null,0,"--","--","--","--","--","--","--","--","--",null,null,null,null,null,null,null,null,null,null,null,null,null,31.5,"--",32.700000000000003,null,null,null,null,null,5,4,4.5599999999999996,5.26,70.000000000000014,"--",4.1500000000000004,4.8099999999999996,"--",4.75,4.53,"--",null,null,null,null,null,"--","--","--","--","--","--","--","--","--",null,null,null,null,null,2.97,"--","--","--","--","--","--","--","--"]
["1959-12-01",null,null,null,0,0,0,0,null,null,null,null,null,null,null,null,null,null,null,null,null,null,null,"--",39.293199999999999,null,null,null,null,null,null,null,null,null,null,null,null,null,24.366399999999999,"--","--","--",58.2,"--","--",54.8,"--","--",49.1,62.8,63.6,61.7,53.7,"--","--",null,null,null,null,null,null,null,null,null,"--","--",null,null,null,null,null,24.066600000000001,null,null,null,1601,"--","--","--","--","--","--","--","--","--","--","--","--",414.7,40.5,1410,2127.6999999999998,146.5,56.0107,179153,"--","--","--",null,null,null,null,null,29.41,30.5,null,null,null,null,null,"--","--",59.5,"--",5.3,15573,273,null,null,54175,540,null,null,0,"--","--","--","--","--","--","--","--","--",null,null,null,null,null,null,null,null,null,null,null,null,null,31.5,"--",32.700000000000003,null,null,null,null,null,5,3.99,4.58,5.28,70.000000000000014,"--",4.49,5.14,"--",5.01,4.6900000000000004,"--",null,null,null,null,null,"--","--","--","--","--","--","--","--","--",null,null,null,null,null,2.97,"--","--","--","--","--","--","--","--"]
["1960-01-01",null,null,null,0,0,0,0,null,null,null,null,null,null,null,null,null,null,null,null,null,null,null,"--",39.629100000000001,null,null,null,null,null,null,null,null,null,null,null,null,null,25.0061,"--","--","--",61.5,"--","--",60.8,"--","--",48.3,65.400000000000006,63.8,71.900000000000006,46.2,"--","--",null,null,null,null,null,null,null,null,null,"--","--",null,null,null,null,null,24.274799999999999,null,null,null,1460,1092,"--","--","--","--","--","--","--","--","--","--","--",416.3,40.799999999999997,1211,2134.9,146.69999999999999,56.015599999999999,179386,"--","--","--",null,null,null,null,null,29.37,30.5,null,null,null,null,null,"--","--",59.1,"--",5.2,15687,114,null,null,54274,99,null,null,0,"--","--","--","--","--","--","--","--","--",null,null,null,null,null,null,null,null,null,null,null,null,null,31.6,"--",32.799999999999997,null,null,null,null,null,5,3.99,4.6100000000000003,5.34,72.999999999999957,"--",4.3499999999999996,5.03,"--",4.92,4.72,"--",null,null,null,null,null,"--","--","--","--","--","--","--","--","--",null,null,null,null,null,2.97,"--","--","--","--","--","--","--","--"]
["1960-02-01",null,null,null,0,0,0,0,null,null,null,null,null,null,null,null,null,null,null,null,null,null,null,"--",39.787199999999999,null,null,null,null,null,null,null,null,null,null,null,null,null,24.7836,"--","--","--",52.3,"--","--",57.2,"--","--",56.6,52.5,60.9,58.6,31.7,"--","--",null,null,null,null,null,null,null,null,null,"--","--",null,null,null,null,null,24.4392,null,null,null,1503,1088,"--","--",6.2137931034482685,9.5737931034482688,"--","--","--","--","--","--","--",417,39.200000000000003,1208,2134.3000000000002,147.1,56.364600000000003,179597,"--","--","--",null,null,null,null,null,29.41,30.6,null,null,null,null,null,"--","--",59.1,"--",4.8,15765,78,null,null,54513,239,null,null,0,"--","--","--","--","--","--","--","--","--",null,null,null,null,null,null,null,null,null,null,null,null,null,31.6,"--",32.9,null,null,null,null,null,5,3.97,4.5599999999999996,5.34,78.000000000000028,"--",3.96,4.66,"--",4.6900000000000004,4.49,"--",null,null,null,null,null,"--","--","--","--","--","--","--","--","--",null,null,null,null,null,2.97,"--","--","--","--","--","--","--","--"]
["1960-03-01",null,null,null,0,0,0,0,null,null,null,null,null,null,null,null,null,null,null,null,null,null,null,"--",40.018000000000001,null,null,null,null,null,null,null,null,null,null,null,null,null,24.5611,"--","--","--",47.8,"--","--",48,"--","--",50.7,52.2,57.3,52.4,28.8,"--","--",null,null,null,null,null,null,null,null,null,"--","--",null,null,null,null,null,24.6403,null,null,null,1109,955,"--","--",6.9188125647221277,10.698812564722127,"--","--","--","--","--","--","--",418,35,904,2136.6999999999998,148,56.862900000000003,179788,"--","--","--",null,null,null,null,null,29.41,30.6,null,null,null,null,null,"--","--",58.5,"--",5.4,15707,-58,null,null,54458,-55,null,null,0,"--","--","--","--","--","--","--","--","--",null,null,null,null,null,null,null,null,null,null,null,null,null,31.8,"--",32.9,null,null,null,null,null,5,3.84,4.49,5.25,75.999999999999972,"--",3.31,4.0199999999999996,"--",4.3099999999999996,4.25,"--",null,null,null,null,null,"--","--","--","--","--","--","--","--","--",null,null,null,null,null,2.97,"--","--","--","--","--","--","--","--"]
["1960-04-01",null,null,null,0,0,0,0,null,null,null,null,null,null,null,null,null,null,null,null,null,null,null,"--",40.5152,null,null,null,null,null,null,null,null,null,null,null,null,null,24.366399999999999,"--","--","--",45.3,"--","--",42,"--","--",45.5,52,60.4,49.8,28.9,"--","--",null,null,null,null,null,null,null,null,null,"--","--",null,null,null,null,null,24.824100000000001,null,null,null,1289,1016,"--","--",7.1323671497584407,10.772367149758441,"--","--","--","--","--","--","--",421,31.3,1049,2144.8000000000002,148.69999999999999,57.711399999999998,180007,"--","--","--",null,null,null,null,null,29.54,30.6,null,null,null,null,null,"--","--",59.5,"--",5.2,15654,-53,null,null,54812,354,null,null,0,"--","--","--","--","--","--","--","--","--",null,null,null,null,null,null,null,null,null,null,null,null,null,31.8,"--",32.799999999999997,null,null,null,null,null,5,3.92,4.45,5.2,75,"--",3.23,4.04,"--",4.29,4.28,"--",null,null,null,null,null,"--","--","--","--","--","--","--","--","--",null,null,null,null,null,2.97,"--","--","--","--","--","--","--","--"]
["1960-05-01",null,null,null,0,0,0,0,null,null,null,null,null,null,null,null,null,null,null,null,null,null,null,"--",40.892600000000002,null,null,null,null,null,null,null,null,null,null,null,null,null,24.3386,"--","--","--",42.6,"--","--",42.5,"--","--",42.5,45.8,57,45,32.299999999999997,"--","--",null,null,null,null,null,null,null,null,null,"--","--",null,null,null,null,null,24.9725,null,null,null,1271,1052,"--","--",6.9250688705234271,10.495068870523427,"--","--","--","--","--","--","--",422.5,39,1009,2149.8000000000002,149.5,57.951000000000001,180222,"--","--","--",null,null,null,null,null,29.57,30.6,null,null,null,null,null,"--","--",59.5,"--",5.0999999999999996,15575,-79,null,null,54473,-339,null,null,0,"--","--","--","--","--","--","--","--","--",null,null,null,null,null,null,null,null,null,null,null,null,null,31.7,"--",32.700000000000003,null,null,null,null,null,5,3.85,4.46,5.28,82.000000000000028,"--",3.29,4.21,"--",4.49,4.3499999999999996,"--",null,null,null,null,null,"--","--","--","--","--","--","--","--","--",null,null,null,null,null,2.97,"--","--","--","--","--","--","--","--"]
["1960-06-01",null,null,null,0,0,0,0,null,null,null,null,null,null,null,null,null,null,null,null,null,null,null,"--",41.356400000000001,null,null,null,null,null,null,null,null,null,null,null,null,null,24.032599999999999,"--","--","--",44.4,"--","--",39.700000000000003,"--","--",43.9,49.2,52.6,48.5,34.799999999999997,"--","--",null,null,null,null,null,null,null,null,null,"--","--",null,null,null,null,null,25.1264,null,null,null,1247,958,"--","--",7.1176228100309169,10.897622810030917,"--","--","--","--","--","--","--",422.9,39.299999999999997,1003,2151.3000000000002,150.69999999999999,58.387099999999997,180444,"--","--","--",null,null,null,null,null,29.61,30.7,null,null,null,null,null,"--","--",59.7,"--",5.4,15466,-109,null,null,54347,-126,null,null,0,"--","--","--","--","--","--","--","--","--",null,null,null,null,null,null,null,null,null,null,null,null,null,31.7,"--",32.799999999999997,null,null,null,null,null,5,3.32,4.45,5.26,80.999999999999957,"--",2.46,3.36,"--",4.12,4.1500000000000004,"--",null,null,null,null,null,"--","--","--","--","--","--","--","--","--",null,null,null,null,null,2.97,"--","--","--","--","--","--","--","--"]
["1960-07-01",null,null,null,0,0,0,0,null,null,null,null,null,null,null,null,null,null,null,null,null,null,null,"--",41.395800000000001,null,null,null,null,null,null,null,null,null,null,null,null,null,23.949200000000001,"--","--","--",43.7,"--","--",42.1,"--","--",41.9,45.7,49.9,48.2,35.799999999999997,"--","--",null,null,null,null,null,null,null,null,null,"--","--",null,null,null,null,null,25.3797,null,null,null,1197,999,"--","--",6.8722126929674117,10.72221269296741,"--","--","--","--","--","--","--",424.1,38.9,947,2153,151.5,58.746699999999997,180671,"--","--","--",null,null,null,null,null,29.55,30.6,null,null,null,null,null,"--","--",59.5,"--",5.5,15413,-53,null,null,54304,-43,null,null,0,"--","--","--","--","--","--","--","--","--",null,null,null,null,null,null,null,null,null,null,null,null,null,31.7,"--",32.799999999999997,null,null,null,null,null,5,3.23,4.41,5.22,80.999999999999957,"--",2.2999999999999998,3.2,"--",3.79,3.9,"--",null,null,null,null,null,"--","--","--","--","--","--","--","--","--",null,null,null,null,null,2.97,"--","--","--","--","--","--","--","--"]
["1960-08-01",null,null,null,0,0,0,0,null,null,null,null,null,null,null,null,null,null,null,null,null,null,null,"--",41.3249,null,null,null,null,null,null,null,null,null,null,null,null,null,23.921299999999999,"--","--","--",47.6,"--","--",43.6,"--","--",39.1,55.6,50.6,50.3,38,"--","--",null,null,null,null,null,null,null,null,null,"--","--",null,null,null,null,null,25.617100000000001,null,null,null,1344,994,"--","--",7.0736120630568946,10.993612063056894,"--","--","--","--","--","--","--",424.6,38.799999999999997,1091,2150.4,152.80000000000001,58.947200000000002,180945,"--","--","--",null,null,null,null,null,29.61,30.6,null,null,null,null,null,"--","--",59.5,"--",5.6,15360,-53,null,null,54271,-33,null,null,0,"--","--","--","--","--","--","--","--","--",null,null,null,null,null,null,null,null,null,null,null,null,null,31.6,"--",32.9,null,null,null,null,null,4.8499999999999996,2.98,4.28,5.08,79.999999999999986,"--",2.2999999999999998,2.95,"--",3.62,3.8,"--",null,null,null,null,null,"--","--","--","--","--","--","--","--","--",null,null,null,null,null,2.97,"--","--","--","--","--","--","--","--"]
["1960-09-01",null,null,null,0,0,0,0,null,null,null,null,null,null,null,null,null,null,null,null,null,null,null,"--",41.400599999999997,null,null,null,null,null,null,null,null,null,null,null,null,null,23.670999999999999,"--","--","--",45.4,"--","--",40.200000000000003,"--","--",40.799999999999997,50.5,48.4,50,37.299999999999997,"--","--",null,null,null,null,null,null,null,null,null,"--","--",null,null,null,null,null,25.8141,null,null,null,1097,984,"--","--",6.7307692307692353,10.580769230769235,"--","--","--","--","--","--","--",425.5,37.799999999999997,865,2154,154.30000000000001,59.364699999999999,181238,"--","--","--",null,null,null,null,null,29.61,30.6,null,null,null,null,null,"--","--",59.7,"--",5.5,15330,-30,null,null,54228,-43,null,null,0,"--","--","--","--","--","--","--","--","--",null,null,null,null,null,null,null,null,null,null,null,null,null,31.6,"--",32.6,null,null,null,null,null,4.5,2.6,4.25,5.01,75.999999999999972,"--",2.48,3.07,"--",3.61,3.8,"--",null,null,null,null,null,"--","--","--","--","--","--","--","--","--",null,null,null,null,null,2.97,"--","--","--","--","--","--","--","--"]
["1960-10-01",null,null,null,0,0,0,0,null,null,null,null,null,null,null,null,null,null,null,null,null,null,null,"--",41.524700000000003,null,null,null,null,null,null,null,null,null,null,null,null,null,23.6432,"--","--","--",46,"--","--",43.7,"--","--",39.700000000000003,50.1,45,51.2,36.200000000000003,"--","--",null,null,null,null,null,null,null,null,null,"--","--",null,null,null,null,null,25.965399999999999,null,null,null,1246,972,"--","--",7.4628620102214658,11.732862010221465,"--","--","--","--","--","--","--",427.2,37.5,922,2161.8000000000002,155.5,59.628999999999998,181528,"--","--","--",null,null,null,null,null,29.75,30.8,null,null,null,null,null,"--","--",59.4,"--",6.1,15231,-99,null,null,54144,-84,null,null,0,"--","--","--","--","--","--","--","--","--",null,null,null,null,null,null,null,null,null,null,null,null,null,31.7,"--",32.799999999999997,null,null,null,null,null,4.5,2.4700000000000002,4.3,5.1100000000000003,81.000000000000057,"--",2.2999999999999998,3.04,"--",3.76,3.89,"--",null,null,null,null,null,"--","--","--","--","--","--","--","--","--",null,null,null,null,null,2.97,"--","--","--","--","--","--","--","--"]
["1960-11-01",null,null,null,0,0,0,0,null,null,null,null,null,null,null,null,null,null,null,null,null,null,null,"--",41.682699999999997,null,null,null,null,null,null,null,null,null,null,null,null,null,23.3094,"--","--","--",44.3,"--","--",43,"--","--",41.7,48.2,46.9,45.6,37.6,"--","--",null,null,null,null,null,null,null,null,null,"--","--",null,null,null,null,null,26.082799999999999,null,null,null,1246,979,"--","--",7.5650766609880735,11.835076660988072,"--","--","--","--","--","--","--",426.7,37.1,949,2151.9,157.4,59.874000000000002,181796,"--","--","--",null,null,null,null,null,29.78,30.8,null,null,null,null,null,"--","--",59.8,"--",6.1,15112,-119,null,null,53962,-182,null,null,0,"--","--","--","--","--","--","--","--","--",null,null,null,null,null,null,null,null,null,null,null,null,null,31.7,"--",32.799999999999997,null,null,null,null,null,4.5,2.44,4.3099999999999996,5.08,77.000000000000043,"--",2.37,3.08,"--",3.81,3.93,"--",null,null,null,null,null,"--","--","--","--","--","--","--","--","--",null,null,null,null,null,2.97,"--","--","--","--","--","--","--","--"]
["1960-12-01",null,null,null,0,0,0,0,null,null,null,null,null,null,null,null,null,null,null,null,null,null,null,"--",42.1051,null,null,null,null,null,null,null,null,null,null,null,null,null,22.8643,"--","--","--",44.3,"--","--",40.700000000000003,"--","--",39.299999999999997,47.5,46.6,47.5,40.4,"--","--",null,null,null,null,null,null,null,null,null,"--","--",null,null,null,null,null,26.276199999999999,null,null,null,1063,951,"--","--",7.9600816048962901,12.580081604896289,"--","--","--","--","--","--","--",424.6,39.200000000000003,841,2141,159.1,60.025300000000001,182042,"--","--","--",null,null,null,null,null,29.81,30.7,null,null,null,null,null,"--","--",59.7,"--",6.6,14947,-165,null,null,53744,-218,null,null,0,"--","--","--","--","--","--","--","--","--",null,null,null,null,null,null,null,null,null,null,null,null,null,31.7,"--",32.799999999999997,null,null,null,null,null,4.5,1.98,4.3499999999999996,5.0999999999999996,75,"--",2.25,2.86,"--",3.67,3.84,"--",null,null,null,null,null,"--","--","--","--","--","--","--","--","--",null,null,null,null,null,2.97,"--","--","--","--","--","--","--","--"]
["1961-01-01",null,null,null,0,0,0,0,null,null,null,null,null,null,null,null,null,null,null,null,null,null,null,"--",42.035800000000002,null,null,null,null,null,null,null,null,null,null,null,null,null,22.892199999999999,"--","--","--",43.9,"--","--",39.700000000000003,"--","--",40.5,47.2,49.1,47.3,39.200000000000003,"--","--",null,null,null,null,null,null,null,null,null,"--","--",null,null,null,null,null,26.2898,null,null,null,1183,969,"--","--",8.2002723867892371,12.820272386789235,"--","--","--","--","--","--","--",428.8,42.3,898,2163.4,160.30000000000001,60.671900000000001,182287,"--","--","--",null,null,null,null,null,29.84,30.8,null,null,null,null,null,"--","--",59.6,"--",6.6,14863,-84,null,null,53683,-61,null,null,0,"--","--","--","--","--","--","--","--","--",null,null,null,null,null,null,null,null,null,null,null,null,null,31.8,"--",32.9,null,null,null,null,null,4.5,1.45,4.32,5.0999999999999996,77.999999999999943,"--",2.2400000000000002,2.81,"--",3.67,3.84,"--",null,null,null,null,null,"--","--","--","--","--","--","--","--","--",null,null,null,null,null,2.97,"--","--","--","--","--","--","--","--"]
["1961-02-01",null,null,null,0,0,0,0,null,null,null,null,null,null,null,null,null,null,null,null,null,null,null,"--",41.950299999999999,null,null,null,null,null,null,null,null,null,null,null,null,null,22.8643,"--","--","--",43.6,"--","--",34.200000000000003,"--","--",36.6,48.7,50.3,49.2,41.1,"--","--",null,null,null,null,null,null,null,null,null,"--","--",null,null,null,null,null,26.911999999999999,null,null,null,1226,961,"--","--",8.3620877252635069,13.192087725263505,"--","--","--","--","--","--","--",430.9,42.8,948,2172.6,161.9,60.310099999999998,182520,"--","--","--",null,null,null,null,null,29.84,30.8,null,null,null,null,null,"--","--",59.6,"--",6.9,14801,-62,null,null,53556,-127,null,null,0,"--","--","--","--","--","--","--","--","--",null,null,null,null,null,null,null,null,null,null,null,null,null,31.8,"--",32.9,null,null,null,null,null,4.5,2.54,4.2699999999999996,5.07,80.000000000000071,"--",2.42,2.93,"--",3.66,3.78,"--",null,null,null,null,null,"--","--","--","--","--","--","--","--","--",null,null,null,null,null,2.97,"--","--","--","--","--","--","--","--"]
["1961-03-01",null,null,null,0,0,0,0,null,null,null,null,null,null,null,null,null,null,null,null,null,null,null,"--",42.0518,null,null,null,null,null,null,null,null,null,null,null,null,null,23.003399999999999,"--","--","--",49.1,"--","--",42.2,"--","--",38.9,55.2,50.2,55.4,42.1,"--","--",null,null,null,null,null,null,null,null,null,"--","--",null,null,null,null,null,27.373200000000001,null,null,null,1312,1000,"--","--",8.3620877252635069,13.192087725263505,"--","--","--","--","--","--","--",432.3,40.1,957,2181.4,163.30000000000001,60.455500000000001,182742,"--","--","--",null,null,null,null,null,29.84,30.9,null,null,null,null,null,"--","--",59.7,"--",6.9,14802,1,null,null,53662,106,null,null,0,"--","--","--","--","--","--","--","--","--",null,null,null,null,null,null,null,null,null,null,null,null,null,31.8,"--",32.9,null,null,null,null,null,4.5,2.02,4.22,5.0199999999999996,79.999999999999986,"--",2.39,2.88,"--",3.6,3.74,"--",null,null,null,null,null,"--","--","--","--","--","--","--","--","--",null,null,null,null,null,2.97,"--","--","--","--","--","--","--","--"]
["1961-04-01",null,null,null,0,0,0,0,null,null,null,null,null,null,null,null,null,null,null,null,null,null,null,"--",42.212699999999998,null,null,null,null,null,null,null,null,null,null,null,null,null,23.476299999999998,"--","--","--",57.6,"--","--",53.2,"--","--",41.3,67.7,51.8,61.7,47.5,"--","--",null,null,null,null,null,null,null,null,null,"--","--",null,null,null,null,null,27.132100000000001,null,null,null,1166,1002,"--","--",7.9140148950575577,12.814014895057557,"--","--","--","--","--","--","--",433.1,40.9,879,2186.6,164.3,60.075899999999997,182992,"--","--","--",null,null,null,null,null,29.81,30.9,null,null,null,null,null,"--","--",59.3,"--",7,14825,23,null,null,53626,-36,null,null,0,"--","--","--","--","--","--","--","--","--",null,null,null,null,null,null,null,null,null,null,null,null,null,31.6,"--",32.9,null,null,null,null,null,4.5,1.49,4.25,5.01,75.999999999999972,"--",2.29,2.88,"--",3.57,3.78,"--",null,null,null,null,null,"--","--","--","--","--","--","--","--","--",null,null,null,null,null,2.97,"--","--","--","--","--","--","--","--"]
["1961-05-01",null,null,null,0,0,0,0,null,null,null,null,null,null,null,null,null,null,null,null,null,null,null,"--",42.1342,null,null,null,null,null,null,null,null,null,null,null,null,null,23.837900000000001,"--","--","--",58.9,"--","--",56.3,"--","--",44,64.8,55,66.599999999999994,47.9,"--","--",null,null,null,null,null,null,null,null,null,"--","--",null,null,null,null,null,26.957599999999999,null,null,null,1228,1027,"--","--",8.0130875887723985,12.983087588772397,"--","--","--","--","--","--","--",436.6,41.8,938,2203.3000000000002,165.5,60.179699999999997,183217,"--","--","--",null,null,null,null,null,29.84,30.9,null,null,null,null,null,"--","--",59.4,"--",7.1,14932,107,null,null,53785,159,null,null,0,"--","--","--","--","--","--","--","--","--",null,null,null,null,null,null,null,null,null,null,null,null,null,31.5,"--",32.9,null,null,null,null,null,4.5,1.98,4.2699999999999996,5.01,74.000000000000028,"--",2.29,2.87,"--",3.47,3.71,"--",null,null,null,null,null,"--","--","--","--","--","--","--","--","--",null,null,null,null,null,2.97,"--","--","--","--","--","--","--","--"]
["1961-06-01",null,null,null,0,0,0,0,null,null,null,null,null,null,null,null,null,null,null,null,null,null,null,"--",42.451900000000002,null,null,null,null,null,null,null,null,null,null,null,null,null,24.171700000000001,"--","--","--",58.1,"--","--",55.1,"--","--",42,64,50,65.3,49.3,"--","--",null,null,null,null,null,null,null,null,null,"--","--",null,null,null,null,null,27.050899999999999,null,null,null,1382,1070,"--","--",7.67676460655185,12.506764606551851,"--","--","--","--","--","--","--",441,45.1,1011,2226.6999999999998,167,60.334800000000001,183452,"--","--","--",null,null,null,null,null,29.84,31,null,null,null,null,null,"--","--",59.7,"--",6.9,14981,49,null,null,53977,192,null,null,0,"--","--","--","--","--","--","--","--","--",null,null,null,null,null,null,null,null,null,null,null,null,null,31.3,"--",32.9,null,null,null,null,null,4.5,1.73,4.33,5.03,70.000000000000014,"--",2.33,3.06,"--",3.81,3.88,"--",null,null,null,null,null,"--","--","--","--","--","--","--","--","--",null,null,null,null,null,2.97,"--","--","--","--","--","--","--","--"]
["1961-07-01",null,null,null,0,0,0,0,null,null,null,null,null,null,null,null,null,null,null,null,null,null,null,"--",42.581299999999999,null,null,null,null,null,null,null,null,null,null,null,null,null,24.4498,"--","--","--",58.2,"--","--",54.1,"--","--",45.3,64.5,50.9,64.3,49.4,"--","--",null,null,null,null,null,null,null,null,null,"--","--",null,null,null,null,null,27.150500000000001,null,null,null,1335,1083,"--","--",8.2521150592216692,13.152115059221671,"--","--","--","--","--","--","--",443.3,47.6,1004,2234.4,167.9,60.396000000000001,183691,"--","--","--",null,null,null,null,null,29.92,31,null,null,null,null,null,"--","--",59.3,"--",7,15029,48,null,null,54123,146,null,null,0,"--","--","--","--","--","--","--","--","--",null,null,null,null,null,null,null,null,null,null,null,null,null,31.5,"--",32.9,null,null,null,null,null,4.5,1.17,4.41,5.09,67.999999999999972,"--",2.2400000000000002,2.92,"--",3.84,3.92,"--",null,null,null,null,null,"--","--","--","--","--","--","--","--","--",null,null,null,null,null,2.97,"--","--","--","--","--","--","--","--"]
["1961-08-01",null,null,null,0,0,0,0,null,null,null,null,null,null,null,null,null,null,null,null,null,null,null,"--",42.656700000000001,null,null,null,null,null,null,null,null,null,null,null,null,null,24.6723,"--","--","--",60.7,"--","--",58.3,"--","--",54.5,62.9,52.2,68.400000000000006,50.6,"--","--",null,null,null,null,null,null,null,null,null,"--","--",null,null,null,null,null,27.236799999999999,null,null,null,1312,1159,"--","--",7.7144883485309172,12.334488348530916,"--","--","--","--","--","--","--",443.8,46.3,973,2233.9,169.1,60.619500000000002,183958,"--","--","--",null,null,null,null,null,29.94,31.1,null,null,null,null,null,"--","--",59.3,"--",6.6,15093,64,null,null,54298,175,null,null,0,"--","--","--","--","--","--","--","--","--",null,null,null,null,null,null,null,null,null,null,null,null,null,31.5,"--",32.9,null,null,null,null,null,4.5,2,4.45,5.1100000000000003,66.000000000000014,"--",2.39,3.06,"--",3.96,4.04,"--",null,null,null,null,null,"--","--","--","--","--","--","--","--","--",null,null,null,null,null,2.97,"--","--","--","--","--","--","--","--"]
["1961-09-01",null,null,null,0,0,0,0,null,null,null,null,null,null,null,null,null,null,null,null,null,null,null,"--",42.770699999999998,null,null,null,null,null,null,null,null,null,null,null,null,null,24.644600000000001,"--","--","--",63,"--","--",61.1,"--","--",56.3,69.5,53.9,66.8,50.7,"--","--",null,null,null,null,null,null,null,null,null,"--","--",null,null,null,null,null,27.202400000000001,null,null,null,1429,1098,"--","--",7.9495778453225361,12.639577845322536,"--","--","--","--","--","--","--",444.9,44.8,1052,2236.1999999999998,170.4,60.883099999999999,184243,"--","--","--",null,null,null,null,null,29.98,31.1,null,null,null,null,null,"--","--",59,"--",6.7,15080,-13,null,null,54388,90,null,null,0,"--","--","--","--","--","--","--","--","--",null,null,null,null,null,null,null,null,null,null,null,null,null,31.5,"--",32.9,null,null,null,null,null,4.5,1.88,4.45,5.12,67,"--",2.2799999999999998,3.06,"--",3.9,3.98,"--",null,null,null,null,null,"--","--","--","--","--","--","--","--","--",null,null,null,null,null,2.97,"--","--","--","--","--","--","--","--"]
["1961-10-01",null,null,null,0,0,0,0,null,null,null,null,null,null,null,null,null,null,null,null,null,null,null,"--",42.977800000000002,null,null,null,null,null,null,null,null,null,null,null,null,null,25.1174,"--","--","--",62.2,"--","--",58.2,"--","--",56.7,68.3,55.5,66.3,52.4,"--","--",null,null,null,null,null,null,null,null,null,"--","--",null,null,null,null,null,27.309899999999999,null,null,null,1415,1123,"--","--",7.2731092436974896,11.823109243697488,"--","--","--","--","--","--","--",449.1,46.7,993,2259.1999999999998,171.5,61.158200000000001,184524,"--","--","--",null,null,null,null,null,29.98,31.1,null,null,null,null,null,"--","--",59.1,"--",6.5,15143,63,null,null,54522,134,null,null,0,"--","--","--","--","--","--","--","--","--",null,null,null,null,null,null,null,null,null,null,null,null,null,31.5,"--",32.9,null,null,null,null,null,4.5,2.2599999999999998,4.42,5.13,71,"--",2.2999999999999998,3.05,"--",3.8,3.92,"--",null,null,null,null,null,"--","--","--","--","--","--","--","--","--",null,null,null,null,null,2.97,"--","--","--","--","--","--","--","--"]
["1961-11-01",null,null,null,0,0,0,0,null,null,null,null,null,null,null,null,null,null,null,null,null,null,null,"--",43.133699999999997,null,null,null,null,null,null,null,null,null,null,null,null,null,25.506799999999998,"--","--","--",59,"--","--",59,"--","--",54.6,65.099999999999994,51.9,58.3,51.1,"--","--",null,null,null,null,null,null,null,null,null,"--","--",null,null,null,null,null,27.449400000000001,null,null,null,1385,1152,"--","--",6.7715916722632716,11.041591672263271,"--","--","--","--","--","--","--",453.3,47.1,1018,2280.6999999999998,173.7,61.7483,184783,"--","--","--",null,null,null,null,null,29.98,31.2,null,null,null,null,null,"--","--",59.1,"--",6.1,15259,116,null,null,54743,221,null,null,0,"--","--","--","--","--","--","--","--","--",null,null,null,null,null,null,null,null,null,null,null,null,null,31.5,"--",32.9,null,null,null,null,null,4.5,2.61,4.3899999999999997,5.1100000000000003,72.000000000000057,"--",2.48,3.07,"--",3.82,3.94,"--",null,null,null,null,null,"--","--","--","--","--","--","--","--","--",null,null,null,null,null,2.97,"--","--","--","--","--","--","--","--"]
["1961-12-01",null,null,null,0,0,0,0,null,null,null,null,null,null,null,null,null,null,null,null,null,null,null,"--",43.799700000000001,null,null,null,null,null,null,null,null,null,null,null,null,null,25.729299999999999,"--","--","--",64.2,"--","--",58.6,"--","--",56.1,73.400000000000006,56.3,66.099999999999994,55.8,"--","--",null,null,null,null,null,null,null,null,null,"--","--",null,null,null,null,null,27.611899999999999,null,null,null,1365,1161,"--","--",6.6709158000671067,10.870915800067106,"--","--","--","--","--","--","--",456,47,1005,2293.8000000000002,175.5,62.2485,185016,"--","--","--",null,null,null,null,null,30.01,31.2,null,null,null,null,null,"--","--",58.8,"--",6,15309,50,null,null,54871,128,null,null,0,"--","--","--","--","--","--","--","--","--",null,null,null,null,null,null,null,null,null,null,null,null,null,31.6,"--",32.9,null,null,null,null,null,4.5,2.33,4.42,5.0999999999999996,67.999999999999972,"--",2.6,3.18,"--",3.91,4.0599999999999996,"--",null,null,null,null,null,"--","--","--","--","--","--","--","--","--",null,null,null,null,null,2.97,"--","--","--","--","--","--","--","--"]
["1962-01-01",null,null,null,0,0,0,0,null,null,null,null,null,null,null,null,null,null,null,null,null,null,null,"--",43.985300000000002,null,null,null,null,null,null,null,null,null,null,null,null,null,25.506799999999998,"--","--","--",60.9,"--","--",60.3,"--","--",59,59.4,57.1,66.400000000000006,57.1,"--","--",null,null,null,null,null,null,null,null,null,"--","--",null,null,null,null,null,27.861699999999999,null,null,null,1361,1122,"--","--",6.4702412868632599,10.530241286863259,"--","--","--","--","--","--","--",456.3,45.8,974,2287.1999999999998,176.6,62.282800000000002,185242,"--","--","--",null,null,null,null,null,30.04,31.2,null,null,null,null,null,"--","--",58.8,"--",5.8,15322,13,null,null,54891,20,null,null,0,"--","--","--","--","--","--","--","--","--",null,null,null,null,null,null,null,null,null,null,null,null,null,31.7,"--",33,null,null,null,null,null,4.5,2.15,4.42,5.08,66.000000000000014,"--",2.72,3.28,"--",3.94,4.08,"--",null,null,null,null,null,"--","--","--","--","--","--","--","--","--",null,null,null,null,null,2.97,"--","--","--","--","--","--","--","--"]
["1962-02-01",null,null,null,0,0,0,0,null,null,null,null,null,null,null,null,null,null,null,null,null,null,null,"--",43.8688,null,null,null,null,null,null,null,null,null,null,null,null,null,25.923999999999999,"--","--","--",61.1,"--","--",60.5,"--","--",58.6,61.8,54.7,64.7,56.2,"--","--",null,null,null,null,null,null,null,null,null,"--","--",null,null,null,null,null,28.046099999999999,null,null,null,1278,1194,"--","--",6.4048257372654245,10.254825737265424,"--","--","--","--","--","--","--",459.6,48.1,946,2298.4,178,62.6404,185452,"--","--","--",null,null,null,null,null,30.11,31.2,null,null,null,null,null,"--","--",59,"--",5.5,15411,89,null,null,55187,296,null,null,0,"--","--","--","--","--","--","--","--","--",null,null,null,null,null,null,null,null,null,null,null,null,null,31.7,"--",33,null,null,null,null,null,4.5,2.37,4.42,5.07,65.000000000000028,"--",2.73,3.28,"--",3.89,4.04,"--",null,null,null,null,null,"--","--","--","--","--","--","--","--","--",null,null,null,null,null,2.97,"--","--","--","--","--","--","--","--"]
["1962-03-01",null,null,null,0,0,0,0,null,null,null,null,null,null,null,null,null,null,null,null,null,null,null,"--",44.101199999999999,null,null,null,null,null,null,null,null,null,null,null,null,null,26.063099999999999,"--","--","--",60.6,"--","--",57.6,"--","--",57.5,60.1,56.8,66.900000000000006,57,"--","--",null,null,null,null,null,null,null,null,null,"--","--",null,null,null,null,null,28.308499999999999,null,null,null,1443,1134,"--","--",6.7058981233243999,10.625898123324401,"--","--","--","--","--","--","--",463.3,47.8,979,2313.1999999999998,179.7,63.128599999999999,185650,"--","--","--",null,null,null,null,null,30.17,31.3,null,null,null,null,null,"--","--",58.9,"--",5.6,15451,40,null,null,55276,89,null,null,0,"--","--","--","--","--","--","--","--","--",null,null,null,null,null,null,null,null,null,null,null,null,null,31.7,"--",33,null,null,null,null,null,4.5,2.85,4.3899999999999997,5.04,65.000000000000028,"--",2.72,3.06,"--",3.68,3.93,"--",null,null,null,null,null,"--","--","--","--","--","--","--","--","--",null,null,null,null,null,2.97,"--","--","--","--","--","--","--","--"]
["1962-04-01",null,null,null,0,0,0,0,null,null,null,null,null,null,null,null,null,null,null,null,null,null,null,"--",44.5398,null,null,null,null,null,null,null,null,null,null,null,null,null,26.1188,"--","--","--",55.1,"--","--",55.6,"--","--",53.5,57.3,53.6,57.4,47.4,"--","--",null,null,null,null,null,null,null,null,null,"--","--",null,null,null,null,null,28.496200000000002,null,null,null,1524,1235,"--","--",6.9418316001341909,10.861831600134192,"--","--","--","--","--","--","--",466.1,48.2,1027,2322.6999999999998,181,63.866900000000001,185874,"--","--","--",null,null,null,null,null,30.21,31.3,null,null,null,null,null,"--","--",58.7,"--",5.6,15524,73,null,null,55602,326,null,null,0,"--","--","--","--","--","--","--","--","--",null,null,null,null,null,null,null,null,null,null,null,null,null,31.6,"--",33,null,null,null,null,null,4.5,2.78,4.33,5.0199999999999996,68.999999999999943,"--",2.73,2.99,"--",3.6,3.84,"--",null,null,null,null,null,"--","--","--","--","--","--","--","--","--",null,null,null,null,null,2.97,"--","--","--","--","--","--","--","--"]
["1962-05-01",null,null,null,0,0,0,0,null,null,null,null,null,null,null,null,null,null,null,null,null,null,null,"--",44.841299999999997,null,null,null,null,null,null,null,null,null,null,null,null,null,26.090900000000001,"--","--","--",52.2,"--","--",52.3,"--","--",50.3,53.6,52,55.3,45.2,"--","--",null,null,null,null,null,null,null,null,null,"--","--",null,null,null,null,null,28.6966,null,null,null,1483,1142,"--","--",6.8404825737265424,10.690482573726541,"--","--","--","--","--","--","--",466.9,45.5,1032,2323.1999999999998,182.4,64.600999999999999,186087,"--","--","--",null,null,null,null,null,30.24,31.4,null,null,null,null,null,"--","--",58.9,"--",5.5,15513,-11,null,null,55627,25,null,null,0,"--","--","--","--","--","--","--","--","--",null,null,null,null,null,null,null,null,null,null,null,null,null,31.5,"--",33,null,null,null,null,null,4.5,2.36,4.28,5,71.999999999999972,"--",2.69,3.03,"--",3.66,3.87,"--",null,null,null,null,null,"--","--","--","--","--","--","--","--","--",null,null,null,null,null,2.97,"--","--","--","--","--","--","--","--"]
["1962-06-01",null,null,null,0,0,0,0,null,null,null,null,null,null,null,null,null,null,null,null,null,null,null,"--",45.541899999999998,null,null,null,null,null,null,null,null,null,null,null,null,null,26.035299999999999,"--","--","--",50.8,"--","--",51.6,"--","--",46.4,52.5,51.7,54.8,43.3,"--","--",null,null,null,null,null,null,null,null,null,"--","--",null,null,null,null,null,29.026399999999999,null,null,null,1404,1154,"--","--",6.7399463806970434,10.589946380697043,"--","--","--","--","--","--","--",468.2,47.7,951,2325.6999999999998,184.1,65.1374,186314,"--","--","--",null,null,null,null,null,30.21,31.4,null,null,null,null,null,"--","--",58.8,"--",5.5,15518,5,null,null,55644,17,null,null,0,"--","--","--","--","--","--","--","--","--",null,null,null,null,null,null,null,null,null,null,null,null,null,31.5,"--",33,null,null,null,null,null,4.5,2.68,4.28,5.0199999999999996,73.999999999999929,"--",2.73,3.03,"--",3.64,3.91,"--",null,null,null,null,null,"--","--","--","--","--","--","--","--","--",null,null,null,null,null,2.97,"--","--","--","--","--","--","--","--"]
["1962-07-01",null,null,null,0,0,0,0,null,null,null,null,null,null,null,null,null,null,null,null,null,null,null,"--",45.726799999999997,null,null,null,null,null,null,null,null,null,null,null,null,null,26.285599999999999,"--","--","--",51,"--","--",51.2,"--","--",43.8,53.2,51.6,54.7,45.1,"--","--",null,null,null,null,null,null,null,null,null,"--","--",null,null,null,null,null,29.297899999999998,null,null,null,1450,1189,"--","--",6.4026737967914427,10.182673796791441,"--","--","--","--","--","--","--",470,48,983,2334.6999999999998,185.5,65.512200000000007,186538,"--","--","--",null,null,null,null,null,30.22,31.4,null,null,null,null,null,"--","--",58.5,"--",5.4,15522,4,null,null,55746,102,null,null,0,"--","--","--","--","--","--","--","--","--",null,null,null,null,null,null,null,null,null,null,null,null,null,31.6,"--",33,null,null,null,null,null,4.5,2.71,4.34,5.05,71,"--",2.92,3.29,"--",3.8,4.01,"--",null,null,null,null,null,"--","--","--","--","--","--","--","--","--",null,null,null,null,null,2.97,"--","--","--","--","--","--","--","--"]
["1962-08-01",null,null,null,0,0,0,0,null,null,null,null,null,null,null,null,null,null,null,null,null,null,null,"--",45.923400000000001,null,null,null,null,null,null,null,null,null,null,null,null,null,26.313500000000001,"--","--","--",49.5,"--","--",47,"--","--",45.2,52.9,47.7,52.5,43.7,"--","--",null,null,null,null,null,null,null,null,null,"--","--",null,null,null,null,null,29.533999999999999,null,null,null,1517,1200,"--","--",6.8356045424181673,10.825604542418166,"--","--","--","--","--","--","--",471.3,47.3,1053,2336.4,187,66.055099999999996,186790,"--","--","--",null,null,null,null,null,30.28,31.5,null,null,null,null,null,"--","--",59,"--",5.7,15517,-5,null,null,55838,92,null,null,0,"--","--","--","--","--","--","--","--","--",null,null,null,null,null,null,null,null,null,null,null,null,null,31.6,"--",33,null,null,null,null,null,4.5,2.93,4.3499999999999996,5.0599999999999996,71,"--",2.82,3.2,"--",3.71,3.98,"--",null,null,null,null,null,"--","--","--","--","--","--","--","--","--",null,null,null,null,null,2.97,"--","--","--","--","--","--","--","--"]
["1962-09-01",null,null,null,0,0,0,0,null,null,null,null,null,null,null,null,null,null,null,null,null,null,null,"--",46.373600000000003,null,null,null,null,null,null,null,null,null,null,null,null,null,26.480399999999999,"--","--","--",50,"--","--",49.7,"--","--",42.5,53,45.4,52.4,45.1,"--","--",null,null,null,null,null,null,null,null,null,"--","--",null,null,null,null,null,29.696999999999999,null,null,null,1324,1223,"--","--",7.0676450967311624,10.987645096731162,"--","--","--","--","--","--","--",473.8,43.5,866,2337,188.8,66.438299999999998,187058,"--","--","--",null,null,null,null,null,30.42,31.5,null,null,null,null,null,"--","--",59,"--",5.6,15568,51,null,null,55977,139,null,null,0,"--","--","--","--","--","--","--","--","--",null,null,null,null,null,null,null,null,null,null,null,null,null,31.9,"--",33,null,null,null,null,null,4.5,2.9,4.32,5.03,71,"--",2.78,3.06,"--",3.7,3.98,"--",null,null,null,null,null,"--","--","--","--","--","--","--","--","--",null,null,null,null,null,2.97,"--","--","--","--","--","--","--","--"]
["1962-10-01",null,null,null,0,0,0,0,null,null,null,null,null,null,null,null,null,null,null,null,null,null,null,"--",46.848700000000001,null,null,null,null,null,null,null,null,null,null,null,null,null,26.508199999999999,"--","--","--",51.2,"--","--",49.9,"--","--",46.2,53.6,43.9,54,46.7,"--","--",null,null,null,null,null,null,null,null,null,"--","--",null,null,null,null,null,29.906700000000001,null,null,null,1533,1181,"--","--",6.7342228152101402,10.51422281521014,"--","--","--","--","--","--","--",475.6,47.1,990,2347.3000000000002,190.3,67.028899999999993,187323,"--","--","--",null,null,null,null,null,30.38,31.5,null,null,null,null,null,"--","--",58.7,"--",5.4,15569,1,null,null,56041,64,null,null,0,"--","--","--","--","--","--","--","--","--",null,null,null,null,null,null,null,null,null,null,null,null,null,31.7,"--",33,null,null,null,null,null,4.5,2.9,4.28,4.99,71,"--",2.74,2.98,"--",3.64,3.93,"--",null,null,null,null,null,"--","--","--","--","--","--","--","--","--",null,null,null,null,null,2.97,"--","--","--","--","--","--","--","--"]
["1962-11-01",null,null,null,0,0,0,0,null,null,null,null,null,null,null,null,null,null,null,null,null,null,null,"--",47.199800000000003,null,null,null,null,null,null,null,null,null,null,null,null,null,26.619399999999999,"--","--","--",53.8,"--","--",48.7,"--","--",51.5,57.8,47.1,56.9,48.7,"--","--",null,null,null,null,null,null,null,null,null,"--","--",null,null,null,null,null,30.111599999999999,null,null,null,1622,1236,"--","--",7.03422281521014,11.024222815210139,"--","--","--","--","--","--","--",478.1,43.8,1080,2356.1,192.7,67.642099999999999,187574,"--","--","--",null,null,null,null,null,30.38,31.5,null,null,null,null,null,"--","--",58.5,"--",5.7,15530,-39,null,null,56056,15,null,null,0,"--","--","--","--","--","--","--","--","--",null,null,null,null,null,null,null,null,null,null,null,null,null,31.7,"--",33,null,null,null,null,null,4.5,2.94,4.25,4.96,71,"--",2.83,3,"--",3.6,3.92,"--",null,null,null,null,null,"--","--","--","--","--","--","--","--","--",null,null,null,null,null,2.97,"--","--","--","--","--","--","--","--"]
["1962-12-01",null,null,null,0,0,0,0,null,null,null,null,null,null,null,null,null,null,null,null,null,null,null,"--",47.437600000000003,null,null,null,null,null,null,null,null,null,null,null,null,null,26.619399999999999,"--","--","--",57.2,"--","--",54.6,"--","--",50.1,59.7,47.3,63.3,50.1,"--","--",null,null,null,null,null,null,null,null,null,"--","--",null,null,null,null,null,30.2333,null,null,null,1564,1236,"--","--",6.7329223592135952,10.582922359213594,"--","--","--","--","--","--","--",480.1,43.5,998,2366.6,194.8,68.1267,187796,"--","--","--",null,null,null,null,null,30.38,31.6,null,null,null,null,null,"--","--",58.4,"--",5.5,15520,-10,null,null,56028,-28,null,null,0,"--","--","--","--","--","--","--","--","--",null,null,null,null,null,null,null,null,null,null,null,null,null,31.6,"--",33,null,null,null,null,null,4.5,2.93,4.24,4.92,67.999999999999972,"--",2.87,3.01,"--",3.56,3.86,"--",null,null,null,null,null,"--","--","--","--","--","--","--","--","--",null,null,null,null,null,2.97,"--","--","--","--","--","--","--","--"]
["1963-01-01",null,null,null,0,0,0,0,null,null,null,null,null,null,null,null,null,null,null,null,null,null,null,"--",47.662300000000002,null,null,null,null,null,null,null,null,null,null,null,null,null,26.8141,"--","--","--",55.2,"--","--",52.5,"--","--",47.4,60.9,48.5,56.5,50.4,"--","--",null,null,null,null,null,null,null,null,null,"--","--",null,null,null,null,null,30.5456,null,null,null,1244,1248,"--","--",7.0315579227696441,11.021557922769643,"--","--","--","--","--","--",591,484.2,46.7,810,2383.3000000000002,196.3,68.656499999999994,188013,"--","--","--",null,null,null,null,null,30.44,31.5,null,null,null,null,null,"--","--",58.6,"--",5.7,15545,25,null,null,56116,88,null,null,0,"--","--","--","--","--","--","--","--","--",null,null,null,null,null,null,null,null,null,null,null,null,null,31.6,"--",33,null,null,null,null,null,4.5,2.92,4.21,4.91,70.000000000000014,"--",2.91,3.04,"--",3.58,3.83,"--",null,null,null,null,null,"--","--","--","--","--","--","--","--","--",null,null,null,null,null,2.97,"--","--","--","--","--","--","--","--"]
["1963-02-01",null,null,null,0,0,0,0,null,null,null,null,null,null,null,null,null,null,null,null,null,null,null,"--",47.8294,null,null,null,null,null,null,null,null,null,null,null,null,null,27.120100000000001,"--","--","--",55.1,"--","--",50.2,"--","--",48.3,60.4,51.7,57.7,51,"--","--",null,null,null,null,null,null,null,null,null,"--","--",null,null,null,null,null,30.9054,null,null,null,1456,1212,"--","--",7.12882763201595,11.258827632015951,"--","--","--","--","--","--",464,482,45.5,977,2368.9,198.1,69.376800000000003,188213,"--","--","--",null,null,null,null,null,30.48,31.6,null,null,null,null,null,"--","--",58.6,"--",5.9,15542,-3,null,null,56230,114,null,null,0,"--","--","--","--","--","--","--","--","--",null,null,null,null,null,null,null,null,null,null,null,null,null,31.5,"--",33,null,null,null,null,null,4.5,3,4.1900000000000004,4.8899999999999997,69.999999999999929,"--",2.92,3.01,"--",3.66,3.92,"--",null,null,null,null,null,"--","--","--","--","--","--","--","--","--",null,null,null,null,null,2.97,"--","--","--","--","--","--","--","--"]
["1963-03-01",null,null,null,0,0,0,0,null,null,null,null,null,null,null,null,null,null,null,null,null,null,null,"--",47.9739,null,null,null,null,null,null,null,null,null,null,null,null,null,27.286999999999999,"--","--","--",54.7,"--","--",52.4,"--","--",46.8,57.5,47.5,56.3,54.9,"--","--",null,null,null,null,null,null,null,null,null,"--","--",null,null,null,null,null,31.241399999999999,null,null,null,1534,1258,"--","--",6.8269472986410236,10.816947298641022,"--","--","--","--","--","--",461,483.7,45.1,962,2378.3000000000002,200.1,70.073400000000007,188387,"--","--","--",null,null,null,null,null,30.51,31.7,null,null,null,null,null,"--","--",58.6,"--",5.7,15564,22,null,null,56322,92,null,null,0,"--","--","--","--","--","--","--","--","--",null,null,null,null,null,null,null,null,null,null,null,null,null,31.5,"--",33,null,null,null,null,null,4.5,2.98,4.1900000000000004,4.88,68.999999999999943,"--",2.89,3.03,"--",3.68,3.93,"--",null,null,null,null,null,"--","--","--","--","--","--","--","--","--",null,null,null,null,null,2.97,"--","--","--","--","--","--","--","--"]
["1963-04-01",null,null,null,0,0,0,0,null,null,null,null,null,null,null,null,null,null,null,null,null,null,null,"--",48.3917,null,null,null,null,null,null,null,null,null,null,null,null,null,27.537400000000002,"--","--","--",57.6,"--","--",52.7,"--","--",48.6,60.6,55,61,58.2,"--","--",null,null,null,null,null,null,null,null,null,"--","--",null,null,null,null,null,31.537099999999999,null,null,null,1689,1288,"--","--",6.5937437934458671,10.583743793445866,"--","--","--","--","--","--",605,485.1,45.6,1096,2389.1,201.6,70.801599999999993,188580,"--","--","--",null,null,null,null,null,30.48,31.7,null,null,null,null,null,"--","--",58.8,"--",5.7,15602,38,null,null,56580,258,null,null,0,"--","--","--","--","--","--","--","--","--",null,null,null,null,null,null,null,null,null,null,null,null,null,31.4,"--",33,null,null,null,null,null,4.5,2.9,4.21,4.87,66.000000000000014,"--",2.9,3.11,"--",3.74,3.97,"--",null,null,null,null,null,"--","--","--","--","--","--","--","--","--",null,null,null,null,null,2.97,"--","--","--","--","--","--","--","--"]
["1963-05-01",null,null,null,0,0,0,0,null,null,null,null,null,null,null,null,null,null,null,null,null,null,null,"--",48.649000000000001,null,null,null,null,null,null,null,null,null,null,null,null,null,27.871099999999998,"--","--","--",59.8,"--","--",53.5,"--","--",54.2,66.900000000000006,67.099999999999994,60.4,56.4,"--","--",null,null,null,null,null,null,null,null,null,"--","--",null,null,null,null,null,31.834900000000001,null,null,null,1641,1350,"--","--",6.7928571428571622,10.922857142857163,"--","--","--","--","--","--",586,487.8,46.8,1071,2397.1,203.3,71.335099999999997,188790,"--","--","--",null,null,null,null,null,30.51,31.7,null,null,null,null,null,"--","--",58.8,"--",5.9,15641,39,null,null,56616,36,null,null,0,"--","--","--","--","--","--","--","--","--",null,null,null,null,null,null,null,null,null,null,null,null,null,31.5,"--",33,null,null,null,null,null,4.5,3,4.22,4.8499999999999996,62.999999999999986,"--",2.93,3.12,"--",3.72,3.93,"--",null,null,null,null,null,"--","--","--","--","--","--","--","--","--",null,null,null,null,null,2.97,"--","--","--","--","--","--","--","--"]
["1963-06-01",null,null,null,0,0,0,0,null,null,null,null,null,null,null,null,null,null,null,null,null,null,null,"--",49.246899999999997,null,null,null,null,null,null,null,null,null,null,null,null,null,27.954599999999999,"--","--","--",58.2,"--","--",52.6,"--","--",55,61.9,58.7,60.6,56.3,"--","--",null,null,null,null,null,null,null,null,null,"--","--",null,null,null,null,null,32.115699999999997,null,null,null,1588,1345,"--","--",6.9240648791790651,10.844064879179065,"--","--","--","--","--","--",526,491.4,45.6,1007,2410.8000000000002,205.2,71.875600000000006,189018,"--","--","--",null,null,null,null,null,30.61,31.8,null,null,null,null,null,"--","--",58.5,"--",5.6,15624,-17,null,null,56658,42,null,null,0,"--","--","--","--","--","--","--","--","--",null,null,null,null,null,null,null,null,null,null,null,null,null,31.6,"--",33,null,null,null,null,null,4.5,2.99,4.2300000000000004,4.84,60.999999999999943,"--",2.99,3.2,"--",3.81,3.99,"--",null,null,null,null,null,"--","--","--","--","--","--","--","--","--",null,null,null,null,null,2.97,"--","--","--","--","--","--","--","--"]
["1963-07-01",null,null,null,0,0,0,0,null,null,null,null,null,null,null,null,null,null,null,null,null,null,null,"--",49.4664,null,null,null,null,null,null,null,null,null,null,null,null,null,27.843299999999999,"--","--","--",55.5,"--","--",52,"--","--",54,60.1,61,60.4,43.6,"--","--",null,null,null,null,null,null,null,null,null,"--","--",null,null,null,null,null,32.469900000000003,null,null,null,1614,1321,"--","--",7.1552614162806174,11.075261416280618,"--","--","--","--","--","--",665,492.5,43.9,1031,2412.8000000000002,206.5,72.716499999999996,189242,"--","--","--",null,null,null,null,null,30.69,31.8,null,null,null,null,null,"--","--",58.7,"--",5.6,15646,22,null,null,56794,136,null,null,0,"--","--","--","--","--","--","--","--","--",null,null,null,null,null,null,null,null,null,null,null,null,null,31.7,"--",33,null,null,null,null,null,4.5,3.02,4.26,4.84,58.000000000000007,"--",3.18,3.48,"--",3.89,4.0199999999999996,"--",null,null,null,null,null,"--","--","--","--","--","--","--","--","--",null,null,null,null,null,2.97,"--","--","--","--","--","--","--","--"]
["1963-08-01",null,null,null,0,0,0,0,null,null,null,null,null,null,null,null,null,null,null,null,null,null,null,"--",49.476799999999997,null,null,null,null,null,null,null,null,null,null,null,null,null,27.899000000000001,"--","--","--",55.1,"--","--",51.1,"--","--",48.1,62,59.8,56.8,48.5,"--","--",null,null,null,null,null,null,null,null,null,"--","--",null,null,null,null,null,32.199100000000001,null,null,null,1639,1310,"--","--",6.9521796565389771,10.732179656538976,"--","--","--","--","--","--",570,495,44.4,1056,2423.1,207.9,73.5762,189496,"--","--","--",null,null,null,null,null,30.75,31.9,null,null,null,null,null,"--","--",58.5,"--",5.4,15644,-2,null,null,56910,116,null,null,0,"--","--","--","--","--","--","--","--","--",null,null,null,null,null,null,null,null,null,null,null,null,null,31.6,"--",33,null,null,null,null,null,4.5,3.49,4.29,4.83,54,"--",3.32,3.53,"--",3.89,4,"--",null,null,null,null,null,"--","--","--","--","--","--","--","--","--",null,null,null,null,null,2.97,"--","--","--","--","--","--","--","--"]
["1963-09-01",null,null,null,0,0,0,0,null,null,null,null,null,null,null,null,null,null,null,null,null,null,null,"--",49.822499999999998,null,null,null,null,null,null,null,null,null,null,null,null,null,28.177099999999999,"--","--","--",56.9,"--","--",54.8,"--","--",47.9,59.8,57.8,63.2,49.7,"--","--",null,null,null,null,null,null,null,null,null,"--","--",null,null,null,null,null,32.788400000000003,null,null,null,1763,1413,"--","--",6.4861932938855844,10.336193293885584,"--","--","--","--","--","--",590,498.2,48.2,1106,2440.5,209.5,74.169799999999995,189761,"--","--","--",null,null,null,null,null,30.72,31.9,null,null,null,null,null,"--","--",58.7,"--",5.5,15674,30,null,null,57077,167,null,null,0,"--","--","--","--","--","--","--","--","--",null,null,null,null,null,null,null,null,null,null,null,null,null,31.6,"--",33.1,null,null,null,null,null,4.5,3.48,4.3099999999999996,4.84,53.000000000000028,"--",3.38,3.57,"--",3.96,4.08,"--",null,null,null,null,null,"--","--","--","--","--","--","--","--","--",null,null,null,null,null,2.97,"--","--","--","--","--","--","--","--"]
["1963-10-01",null,null,null,0,0,0,0,null,null,null,null,null,null,null,null,null,null,null,null,null,null,null,"--",50.411099999999998,null,null,null,null,null,null,null,null,null,null,null,null,null,28.3718,"--","--","--",57.7,"--","--",54.5,"--","--",46.4,64,76.900000000000006,63.3,47.4,"--","--",null,null,null,null,null,null,null,null,null,"--","--",null,null,null,null,null,33.714700000000001,null,null,null,1779,1414,"--","--",6.7179065174456882,10.567906517445689,"--","--","--","--","--","--",567,502.1,51.2,1088,2455.6,210.3,75.113,190028,"--","--","--",null,null,null,null,null,30.75,32,null,null,null,null,null,"--","--",58.8,"--",5.5,15714,40,null,null,57284,207,null,null,0,"--","--","--","--","--","--","--","--","--",null,null,null,null,null,null,null,null,null,null,null,null,null,31.6,"--",33.1,null,null,null,null,null,4.5,3.5,4.32,4.83,50.999999999999979,"--",3.45,3.64,"--",3.97,4.1100000000000003,"--",null,null,null,null,null,"--","--","--","--","--","--","--","--","--",null,null,null,null,null,2.97,"--","--","--","--","--","--","--","--"]
["1963-11-01",null,null,null,0,0,0,0,null,null,null,null,null,null,null,null,null,null,null,null,null,null,null,"--",51.238199999999999,null,null,null,null,null,null,null,null,null,null,null,null,null,28.510899999999999,"--","--","--",57.5,"--","--",53.5,"--","--",43.7,63.7,66.2,64.099999999999994,48.7,"--","--",null,null,null,null,null,null,null,null,null,"--","--",null,null,null,null,null,34.032800000000002,null,null,null,1622,1357,"--","--",7.0166556945358955,11.006655694535894,"--","--","--","--","--","--",579,503.7,49.1,1032,2460.1,212.6,75.606899999999996,190265,"--","--","--",null,null,null,null,null,30.78,32,null,null,null,null,null,"--","--",58.8,"--",5.7,15675,-39,null,null,57255,-29,null,null,0,"--","--","--","--","--","--","--","--","--",null,null,null,null,null,null,null,null,null,null,null,null,null,31.7,"--",33.200000000000003,null,null,null,null,null,4.5,3.48,4.33,4.84,50.999999999999979,"--",3.52,3.74,"--",4.01,4.12,"--",null,null,null,null,null,"--","--","--","--","--","--","--","--","--",null,null,null,null,null,2.97,"--","--","--","--","--","--","--","--"]
["1963-12-01",null,null,null,0,0,0,0,null,null,null,null,null,null,null,null,null,null,null,null,null,null,null,"--",52.174100000000003,null,null,null,null,null,null,null,null,null,null,null,null,null,28.455300000000001,"--","--","--",54,"--","--",48.4,"--","--",44.2,58.6,64.400000000000006,60.7,47.6,"--","--",null,null,null,null,null,null,null,null,null,"--","--",null,null,null,null,null,34.185200000000002,null,null,null,1491,1423,"--","--",7.1458196181698526,10.995819618169852,"--","--","--","--","--","--",514,508.4,48,852,2479.4,214.4,76.581500000000005,190472,"--","--","--",null,null,null,null,null,30.88,32.1,null,null,null,null,null,"--","--",58.5,"--",5.5,15712,37,null,null,57360,105,null,null,0,"--","--","--","--","--","--","--","--","--",null,null,null,null,null,null,null,null,null,null,null,null,null,31.6,"--",33.200000000000003,null,null,null,null,null,4.5,3.38,4.3499999999999996,4.8499999999999996,50,"--",3.52,3.81,"--",4.04,4.13,"--",null,null,null,null,null,"--","--","--","--","--","--","--","--","--",null,null,null,null,null,2.97,"--","--","--","--","--","--","--","--"]
["1964-01-01",null,null,null,0,0,0,0,null,null,null,null,null,null,null,null,null,null,null,null,null,null,null,"--",52.418599999999998,null,null,null,null,null,null,null,null,null,null,null,null,null,28.7056,"--","--","--",57.1,"--","--",51.4,"--","--",42.9,61.3,60,63.3,55.3,"--","--",null,null,null,null,null,null,null,null,null,"--","--",null,null,null,null,null,34.629199999999997,null,null,null,1603,1296,"--","--",7.2425755584756892,11.162575558475689,"--","--","--","--","--","--",549,511.6,48.6,1023,2489.1999999999998,215.6,77.461399999999998,190668,"--","--","--",null,null,null,null,null,30.94,32.200000000000003,null,null,null,null,null,50.8,38.200000000000003,58.6,"--",5.6,15715,3,null,null,57487,127,null,null,0,"--","--","--","--","--","--","--","--","--",null,null,null,null,null,null,null,null,null,null,null,null,null,31.8,"--",33.200000000000003,null,null,null,null,null,4.5,3.48,4.3899999999999997,4.83,44.000000000000043,"--",3.52,3.79,"--",4.07,4.17,"--",null,null,null,null,null,"--","--","--","--","--","--","--","--","--",null,null,null,null,null,2.97,"--","--","--","--","--","--","--","--"]
["1964-02-01",null,null,null,0,0,0,0,null,null,null,null,null,null,null,null,null,null,null,null,null,null,null,"--",52.548200000000001,null,null,null,null,null,null,null,null,null,null,null,null,null,28.900300000000001,"--","--","--",57.9,"--","--",52.7,"--","--",50.4,61.8,60.1,64,51.9,"--","--",null,null,null,null,null,null,null,null,null,"--","--",null,null,null,null,null,35.0578,null,null,null,1820,1442,"--","--",6.8107611548556335,10.590761154855633,"--","--","--","--","--","--",609,514.29999999999995,47.1,1162,2496.5,217.2,78.336200000000005,190858,"--","--","--",null,null,null,null,null,30.91,32.200000000000003,null,null,null,null,null,51.5,38.5,58.8,"--",5.4,15742,27,null,null,57751,264,null,null,0,"--","--","--","--","--","--","--","--","--",null,null,null,null,null,null,null,null,null,null,null,null,null,31.6,"--",33.200000000000003,null,null,null,null,null,4.5,3.48,4.3600000000000003,4.83,46.999999999999972,"--",3.53,3.78,"--",4.03,4.1500000000000004,"--",null,null,null,null,null,"--","--","--","--","--","--","--","--","--",null,null,null,null,null,2.97,"--","--","--","--","--","--","--","--"]
["1964-03-01",null,null,null,0,0,0,0,null,null,null,null,null,null,null,null,null,null,null,null,null,null,null,"--",52.713900000000002,null,null,null,null,null,null,null,null,null,null,null,null,null,28.900300000000001,"--","--","--",60.2,"--","--",55.2,"--","--",54.6,61.7,60.6,64.400000000000006,60.3,"--","--",null,null,null,null,null,null,null,null,null,"--","--",null,null,null,null,null,35.511600000000001,null,null,null,1517,1313,"--","--",6.809373975745654,10.589373975745653,"--","--","--","--","--","--",562,517,56.3,931,2554.6,218.9,79.240399999999994,191047,"--","--","--",null,null,null,null,null,30.94,32.200000000000003,null,null,null,null,null,51.5,38.5,58.7,"--",5.4,15770,28,null,null,57898,147,null,null,0,"--","--","--","--","--","--","--","--","--",null,null,null,null,null,null,null,null,null,null,null,null,null,31.6,"--",33.299999999999997,null,null,null,null,null,4.5,3.43,4.38,4.83,45.000000000000014,"--",3.54,3.91,"--",4.1399999999999997,4.22,"--",null,null,null,null,null,"--","--","--","--","--","--","--","--","--",null,null,null,null,null,2.97,"--","--","--","--","--","--","--","--"]
["1964-04-01",null,null,null,0,0,0,0,null,null,null,null,null,null,null,null,null,null,null,null,null,null,null,"--",53.228999999999999,null,null,null,null,null,null,null,null,null,null,null,null,null,29.373200000000001,"--","--","--",59.2,"--","--",55.2,"--","--",53.1,63.6,65.400000000000006,60.6,57.7,"--","--",null,null,null,null,null,null,null,null,null,"--","--",null,null,null,null,null,35.924100000000003,null,null,null,1448,1264,"--","--",6.8419947506561725,10.551994750656172,"--","--","--","--","--","--",559,520.6,58.1,901,2568.6999999999998,220.3,79.908199999999994,191245,"--","--","--",null,null,null,null,null,30.95,32.200000000000003,null,null,null,null,null,51.7,38.6,59.1,"--",5.3,15785,15,null,null,57922,24,null,null,0,"--","--","--","--","--","--","--","--","--",null,null,null,null,null,null,null,null,null,null,null,null,null,31.6,"--",33.299999999999997,null,null,null,null,null,4.5,3.47,4.4000000000000004,4.8499999999999996,44.999999999999929,"--",3.47,3.91,"--",4.1500000000000004,4.2300000000000004,"--",null,null,null,null,null,"--","--","--","--","--","--","--","--","--",null,null,null,null,null,2.97,"--","--","--","--","--","--","--","--"]
["1964-05-01",null,null,null,0,0,0,0,null,null,null,null,null,null,null,null,null,null,null,null,null,null,null,"--",53.744500000000002,null,null,null,null,null,null,null,null,null,null,null,null,null,29.540099999999999,"--","--","--",58.7,"--","--",56,"--","--",50.3,59.9,60.3,61,61.4,"--","--",null,null,null,null,null,null,null,null,null,"--","--",null,null,null,null,null,36.361899999999999,null,null,null,1467,1299,"--","--",6.6404785316289745,10.210478531628976,"--","--","--","--","--","--",523,523.9,55,947,2582.5,222.1,80.834500000000006,191447,"--","--","--",null,null,null,null,null,30.98,32.200000000000003,null,null,null,null,null,51.9,38.6,59.1,"--",5.0999999999999996,15812,27,null,null,58089,167,null,null,0,"--","--","--","--","--","--","--","--","--",null,null,null,null,null,null,null,null,null,null,null,null,null,31.5,"--",33.5,null,null,null,null,null,4.5,3.5,4.41,4.8499999999999996,43.99999999999995,"--",3.48,3.84,"--",4.05,4.2,"--",null,null,null,null,null,"--","--","--","--","--","--","--","--","--",null,null,null,null,null,2.97,"--","--","--","--","--","--","--","--"]
["1964-06-01",null,null,null,0,0,0,0,null,null,null,null,null,null,null,null,null,null,null,null,null,null,null,"--",54.293700000000001,null,null,null,null,null,null,null,null,null,null,null,null,null,29.6235,"--","--","--",60.1,"--","--",55.7,"--","--",53.5,64.7,58.9,62.1,57.6,"--","--",null,null,null,null,null,null,null,null,null,"--","--",null,null,null,null,null,36.749499999999998,null,null,null,1550,1280,"--","--",6.5067624959163695,10.14676249591637,"--","--","--","--","--","--",580,526.6,54.3,981,2591.6999999999998,224.1,81.428200000000004,191666,"--","--","--",null,null,null,null,null,31.01,32.299999999999997,null,null,null,null,null,52,38.6,58.7,"--",5.2,15839,{"$f":"+DL76-DL75","v":27},null,null,58221,132,null,null,0,"--","--","--","--","--","--","--","--","--",null,null,null,null,null,null,null,null,null,null,null,null,null,31.5,"--",33.4,null,null,null,null,null,4.5,3.5,4.41,4.8499999999999996,43.99999999999995,"--",3.48,3.83,"--",4.0199999999999996,4.17,"--",null,null,null,null,null,"--","--","--","--","--","--","--","--","--",null,null,null,null,null,2.97,"--","--","--","--","--","--","--","--"]
["1964-07-01",null,null,null,0,0,0,0,null,null,null,null,null,null,null,null,null,null,null,null,null,null,null,"--",54.715899999999998,null,null,null,null,null,null,null,null,null,null,null,null,null,29.818200000000001,"--","--","--",62.9,"--","--",56.3,"--","--",55.5,69.900000000000006,60.9,63.7,61.8,"--","--",null,null,null,null,null,null,null,null,null,"--","--",null,null,null,null,null,37.374899999999997,null,null,null,1562,1304,"--","--",5.9752688172043005,9.4052688172043002,"--","--","--","--","--","--",575,529.6,52.9,969,2600.6,225.5,82.294499999999999,191889,"--","--","--",null,null,null,null,null,31.02,32.299999999999997,null,null,null,null,null,52.1,38.5,58.6,"--",4.9000000000000004,15887,48,null,null,58413,{"$f":"+DP77-DP76","v":192},null,null,0,"--","--","--","--","--","--","--","--","--",null,null,null,null,null,null,null,null,null,null,null,null,null,31.6,"--",33.5,null,null,null,null,null,4.5,3.42,4.4000000000000004,4.83,{"$f":"+(FB77-FA77)*100","v":42.999999999999972},"--",3.46,3.72,"--",4.03,4.1900000000000004,"--",null,null,null,null,null,"--","--","--","--","--","--","--","--","--",null,null,null,null,null,2.92,"--","--","--","--","--","--","--","--"]
["1964-08-01",null,null,null,0,0,0,0,null,null,null,null,null,null,null,null,null,null,null,null,null,null,null,"--",55.104599999999998,null,null,null,null,null,null,null,null,null,null,null,null,null,30.012899999999998,"--","--","--",63.3,"--","--",58,"--","--",53.5,68,61.7,63.9,66.2,"--","--",null,null,null,null,null,null,null,null,null,"--","--",null,null,null,null,null,37.972499999999997,null,null,null,1569,1306,"--","--",5.9756097560975618,9.4756097560975618,"--","--","--","--","--","--",582,533.70000000000005,53.2,990,2616.1,227.4,82.973100000000002,192131,"--","--","--",null,null,null,null,null,31.05,32.299999999999997,null,null,null,null,null,52.3,38.5,58.6,"--",5,15948,61,null,null,58619,206,null,null,0,"--","--","--","--","--","--","--","--","--",null,null,null,null,null,null,null,null,null,null,null,null,null,31.6,"--",33.5,null,null,null,null,null,4.5,3.5,4.41,4.82,41.000000000000014,"--",3.5,3.74,"--",4.05,4.1900000000000004,"--",null,null,null,null,null,"--","--","--","--","--","--","--","--","--",null,null,null,null,null,2.92,"--","--","--","--","--","--","--","--"]
["1964-09-01",null,null,null,0,0,0,0,null,null,null,null,null,null,null,null,null,null,null,null,null,null,null,"--",55.774900000000002,null,null,null,null,null,null,null,null,null,null,null,null,null,30.124199999999998,"--","--","--",63.3,"--","--",56.8,"--","--",59,63.3,64.8,64.900000000000006,71.900000000000006,"--","--",null,null,null,null,null,null,null,null,null,"--","--",null,null,null,null,null,38.361899999999999,null,null,null,1455,1265,"--","--",6.2718749999999996,9.8418749999999999,"--","--","--","--","--","--",590,536.70000000000005,56.8,957,2626.2,229.4,83.921999999999997,192376,"--","--","--",null,null,null,null,null,31.08,32.299999999999997,null,null,null,null,null,52.6,38.5,58.7,"--",5.0999999999999996,16073,125,null,null,58903,284,null,null,0,"--","--","--","--","--","--","--","--","--",null,null,null,null,null,null,null,null,null,null,null,null,null,31.7,"--",33.5,null,null,null,null,null,4.5,3.45,4.42,4.82,40.000000000000036,"--",3.53,3.84,"--",4.08,4.2,"--",null,null,null,null,null,"--","--","--","--","--","--","--","--","--",null,null,null,null,null,2.92,"--","--","--","--","--","--","--","--"]
["1964-10-01",null,null,null,0,0,0,0,null,null,null,null,null,null,null,null,null,null,null,null,null,null,null,"--",56.290799999999997,null,null,null,null,null,null,null,null,null,null,null,null,null,29.707000000000001,"--","--","--",60.7,"--","--",55,"--","--",59.1,58.9,68.8,61.8,71.2,"--","--",null,null,null,null,null,null,null,null,null,"--","--",null,null,null,null,null,38.816000000000003,null,null,null,1524,1230,"--","--",6.3032520325203185,9.8732520325203197,"--","--","--","--","--","--",583,537.4,54,996,2625.6,230.8,84.530199999999994,192631,"--","--","--",null,null,null,null,null,31.12,32.4,null,null,null,null,null,52.4,38.5,58.6,"--",5.0999999999999996,15821,-252,null,null,58794,-109,null,null,0,"--","--","--","--","--","--","--","--","--",null,null,null,null,null,null,null,null,null,null,null,null,null,31.7,"--",33.5,null,null,null,null,null,4.5,3.36,4.42,4.8099999999999996,38.999999999999972,"--",3.57,3.86,"--",4.07,4.1900000000000004,"--",null,null,null,null,null,"--","--","--","--","--","--","--","--","--",null,null,null,null,null,2.92,"--","--","--","--","--","--","--","--"]
["1964-11-01",null,null,null,0,0,0,0,null,null,null,null,null,null,null,null,null,null,null,null,null,null,null,"--",56.8628,null,null,null,null,null,null,null,null,null,null,null,null,null,30.6249,"--","--","--",61.8,"--","--",57.3,"--","--",61,60.7,68.5,62.1,70.3,"--","--",null,null,null,null,null,null,null,null,null,"--","--",null,null,null,null,null,39.114400000000003,null,null,null,1486,1254,"--","--",6.1970110461338557,9.5570110461338551,"--","--","--","--","--","--",548,541.29999999999995,60.5,930,2640.4,233.2,84.944000000000003,192847,"--","--","--",null,null,null,null,null,31.21,32.5,null,null,null,null,null,52.9,38.6,58.5,"--",4.8,16096,275,null,null,59217,423,null,null,0,"--","--","--","--","--","--","--","--","--",null,null,null,null,null,null,null,null,null,null,null,null,null,31.7,"--",33.5,null,null,null,null,null,4.5,3.52,4.43,4.8099999999999996,37.999999999999986,"--",3.64,3.91,"--",4.04,4.1500000000000004,"--",null,null,null,null,null,"--","--","--","--","--","--","--","--","--",null,null,null,null,null,2.92,"--","--","--","--","--","--","--","--"]
["1964-12-01",null,null,null,0,0,0,0,null,null,null,null,null,null,null,null,null,null,null,null,null,null,null,"--",58.348100000000002,null,null,null,null,null,null,null,null,null,null,null,null,null,30.986499999999999,"--","--","--",62.4,"--","--",55.2,"--","--",59.5,64.400000000000006,69.599999999999994,63.5,67.8,"--","--",null,null,null,null,null,null,null,null,null,"--","--",null,null,null,null,null,39.506700000000002,null,null,null,1484,1164,"--","--",6.1981865284974136,9.6981865284974127,"--","--","--","--","--","--",540,547.5,61.2,963,2665.8,235.2,85.959599999999995,193039,"--","--","--",null,null,null,null,null,31.25,32.5,null,null,null,null,null,53.3,38.700000000000003,58.6,"--",5,16176,80,null,null,59421,204,null,null,0,"--","--","--","--","--","--","--","--","--",null,null,null,null,null,null,null,null,null,null,null,null,null,31.7,"--",33.5,null,null,null,null,null,4.5,3.85,4.4400000000000004,4.8099999999999996,36.999999999999922,"--",3.84,4.0199999999999996,"--",4.09,4.18,"--",null,null,null,null,null,"--","--","--","--","--","--","--","--","--",null,null,null,null,null,2.92,"--","--","--","--","--","--","--","--"]
["1965-01-01",null,null,null,0,0,0,0,null,null,null,null,null,null,null,null,null,null,null,null,null,null,null,"--",59.241,null,null,null,null,null,null,null,null,null,null,null,null,null,31.3203,"--","--","--",61,"--","--",56.7,"--","--",61.4,62.3,70.7,58.2,68.5,"--","--",null,null,null,null,null,null,null,null,null,"--","--",null,null,null,null,null,39.991900000000001,null,null,null,1361,1264,"--","--",5.9989010989010954,9.4289010989010951,"--","--","--","--","--","--",533,551.79999999999995,59.6,902,2672.3,236.9,87.182599999999994,193223,"--","--","--",null,null,null,null,null,31.28,32.6,null,null,null,null,null,53.4,38.700000000000003,58.6,"--",4.9000000000000004,16245,69,null,null,59583,162,null,null,0,"--","--","--","--","--","--","--","--","--",null,null,null,null,null,null,null,null,null,null,null,null,null,31.8,"--",33.6,null,null,null,null,null,4.5,3.9,4.43,4.8,37.000000000000014,"--",3.81,3.94,"--",4.0999999999999996,4.1900000000000004,"--",null,null,null,null,null,"--","--","--","--","--","--","--","--","--",null,null,null,null,null,2.92,"--","--","--","--","--","--","--","--"]
["1965-02-01",null,null,null,0,0,0,0,null,null,null,null,null,null,null,null,null,null,null,null,null,null,null,"--",60.069299999999998,null,null,null,null,null,null,null,null,null,null,null,null,null,31.515000000000001,"--","--","--",62.1,"--","--",58.3,"--","--",63.2,63.2,64.8,59.8,68.099999999999994,"--","--",null,null,null,null,null,null,null,null,null,"--","--",null,null,null,null,null,40.265599999999999,null,null,null,1433,1185,"--","--",6.2970236169524414,9.8670236169524408,"--","--","--","--","--","--",559,552.20000000000005,52.8,853,2672.4,238.8,88.152000000000001,193393,"--","--","--",null,null,null,null,null,31.28,32.6,null,null,null,null,null,53.6,38.700000000000003,58.7,"--",5.0999999999999996,16291,46,null,null,59800,217,null,null,0,"--","--","--","--","--","--","--","--","--",null,null,null,null,null,null,null,null,null,null,null,null,null,31.9,"--",33.700000000000003,null,null,null,null,null,4.5,3.98,4.41,4.78,37.000000000000014,"--",3.93,4.03,"--",4.1500000000000004,4.21,"--",null,null,null,null,null,"--","--","--","--","--","--","--","--","--",null,null,null,null,null,2.92,"--","--","--","--","--","--","--","--"]
["1965-03-01",null,null,null,0,0,0,0,null,null,null,null,null,null,null,null,null,null,null,null,null,null,null,"--",61.148899999999998,null,null,null,null,null,null,null,null,null,null,null,null,null,31.932200000000002,"--","--","--",64.900000000000006,"--","--",61.2,"--","--",57.8,68.7,64.5,65.7,65.900000000000006,"--","--",null,null,null,null,null,null,null,null,null,"--","--",null,null,null,null,null,40.684100000000001,null,null,null,1423,1211,"--","--",5.8958629605688389,9.1858629605688389,"--","--","--","--","--","--",556,555.4,52.9,929,2680.6,240.7,88.9161,193540,"--","--","--",null,null,null,null,null,31.31,32.6,null,null,null,null,null,53.7,38.700000000000003,58.7,"--",4.7,16353,62,null,null,60003,203,null,null,0,"--","--","--","--","--","--","--","--","--",null,null,null,null,null,null,null,null,null,null,null,null,null,31.9,"--",33.700000000000003,null,null,null,null,null,4.5,4.04,4.42,4.78,36.000000000000028,"--",3.93,4.0599999999999996,"--",4.1500000000000004,4.21,"--",null,null,null,null,null,"--","--","--","--","--","--","--","--","--",null,null,null,null,null,2.92,"--","--","--","--","--","--","--","--"]
["1965-04-01",null,null,null,0,0,0,0,null,null,null,null,null,null,null,null,null,null,null,null,null,null,null,"--",62.133099999999999,null,null,null,null,null,null,null,null,null,null,null,null,null,32.071300000000001,"--","--","--",62,"--","--",59.2,"--","--",61.9,59.8,68.7,62.6,69.400000000000006,"--","--",null,null,null,null,null,null,null,null,null,"--","--",null,null,null,null,null,41.232799999999997,null,null,null,1438,1162,"--","--",6.1893376413570245,9.5493376413570239,"--","--","--","--","--","--",555,558.9,50.5,950,2685,242.1,90.047399999999996,193709,"--","--","--",null,null,null,null,null,31.38,32.700000000000003,null,null,null,null,null,54,38.700000000000003,58.8,"--",4.8,16418,65,null,null,60259,256,null,null,0,"--","--","--","--","--","--","--","--","--",null,null,null,null,null,null,null,null,null,null,null,null,null,32,"--",33.799999999999997,null,null,null,null,null,4.5,4.09,4.43,4.8,37.000000000000014,"--",3.93,4.04,"--",4.1500000000000004,4.2,"--",null,null,null,null,null,"--","--","--","--","--","--","--","--","--",null,null,null,null,null,2.92,"--","--","--","--","--","--","--","--"]
["1965-05-01",null,null,null,0,0,0,0,null,null,null,null,null,null,null,null,null,null,null,null,null,null,null,"--",62.924999999999997,null,null,null,null,null,null,null,null,null,null,null,null,null,32.321599999999997,"--","--","--",61.3,"--","--",56.4,"--","--",60.6,60.2,70,62.4,68.900000000000006,"--","--",null,null,null,null,null,null,null,null,null,"--","--",null,null,null,null,null,41.765300000000003,null,null,null,1478,1207,"--","--",6.2139444803098698,9.4339444803098687,"--","--","--","--","--","--",544,563.1,56.3,949,2713.8,243.7,90.885900000000007,193888,"--","--","--",null,null,null,null,null,31.48,32.700000000000003,null,null,null,null,null,54.4,38.799999999999997,59,"--",4.5999999999999996,16477,59,null,null,60492,233,null,null,0,"--","--","--","--","--","--","--","--","--",null,null,null,null,null,null,null,null,null,null,null,null,null,32.1,"--",33.799999999999997,null,null,null,null,null,4.5,4.0999999999999996,4.4400000000000004,4.8099999999999996,36.999999999999922,"--",3.89,4.03,"--",4.1500000000000004,4.21,"--",null,null,null,null,null,"--","--","--","--","--","--","--","--","--",null,null,null,null,null,2.92,"--","--","--","--","--","--","--","--"]
["1965-06-01",null,null,null,0,0,0,0,null,null,null,null,null,null,null,null,null,null,null,null,null,null,null,"--",64.1511,null,null,null,null,null,null,null,null,null,null,null,null,null,32.572000000000003,"--","--","--",58.7,"--","--",55.4,"--","--",55.8,57.4,73.2,57.5,69.3,"--","--",null,null,null,null,null,null,null,null,null,"--","--",null,null,null,null,null,42.232500000000002,null,null,null,1488,1241,"--","--",6.53485972267009,9.7548597226700906,"--","--","--","--","--","--",614,566.20000000000005,60.7,947,2717.2,245.7,91.830100000000002,194087,"--","--","--",null,null,null,null,null,31.61,32.700000000000003,null,null,null,null,null,54.2,38.6,58.8,"--",4.5999999999999996,16554,77,null,null,60690,198,null,null,0,"--","--","--","--","--","--","--","--","--",null,null,null,null,null,null,null,null,null,null,null,null,null,32.4,"--",33.799999999999997,null,null,null,null,null,4.5,4.04,4.46,4.8499999999999996,38.999999999999972,"--",3.8,3.99,"--",4.1500000000000004,4.21,"--",null,null,null,null,null,"--","--","--","--","--","--","--","--","--",null,null,null,null,null,2.92,"--","--","--","--","--","--","--","--"]
["1965-07-01",null,null,null,0,0,0,0,null,null,null,null,null,null,null,null,null,null,null,null,null,null,null,"--",64.8904,null,null,null,null,null,null,null,null,null,null,null,null,null,32.877899999999997,"--","--","--",58.1,"--","--",56.2,"--","--",53.8,56.6,71.8,59,65.099999999999994,"--","--",null,null,null,null,null,null,null,null,null,"--","--",null,null,null,null,null,42.865499999999997,null,null,null,1529,1237,"--","--",6.2052869116698792,9.2852869116698784,"--","--","--","--","--","--",554,570.4,60.4,1033,2745.2,247.1,92.694599999999994,194303,"--","--","--",null,null,null,null,null,31.58,32.700000000000003,null,null,null,null,null,54.5,38.6,59.1,"--",4.4000000000000004,16669,115,null,null,60963,273,null,null,0,"--","--","--","--","--","--","--","--","--",null,null,null,null,null,null,null,null,null,null,null,null,null,32.4,"--",33.799999999999997,null,null,null,null,null,4.5,4.09,4.4800000000000004,4.88,39.999999999999943,"--",3.84,3.98,"--",4.1500000000000004,4.2,"--",null,null,null,null,null,"--","--","--","--","--","--","--","--","--",null,null,null,null,null,2.92,"--","--","--","--","--","--","--","--"]
["1965-08-01",null,null,null,0,0,0,0,null,null,null,null,null,null,null,null,null,null,null,null,null,null,null,"--",65.479200000000006,null,null,null,null,null,null,null,null,null,null,null,null,null,33.017000000000003,"--","--","--",58.1,"--","--",58,"--","--",57.2,56,70.5,56.6,65.400000000000006,"--","--",null,null,null,null,null,null,null,null,null,"--","--",null,null,null,null,null,43.474499999999999,null,null,null,1432,1249,"--","--",6.0103059581320526,9.0903059581320527,"--","--","--","--","--","--",615,572.9,59.6,958,2758.8,248.8,93.287099999999995,194528,"--","--","--",null,null,null,null,null,31.55,32.700000000000003,null,null,null,null,null,54.6,38.5,58.9,"--",4.4000000000000004,16732,63,null,null,61228,265,null,null,0,"--","--","--","--","--","--","--","--","--",null,null,null,null,null,null,null,null,null,null,null,null,null,32.4,"--",33.799999999999997,null,null,null,null,null,4.5,4.12,4.49,4.88,38.999999999999972,"--",3.84,4.07,"--",4.2,4.25,"--",null,null,null,null,null,"--","--","--","--","--","--","--","--","--",null,null,null,null,null,2.92,"--","--","--","--","--","--","--","--"]
["1965-09-01",null,null,null,0,0,0,0,null,null,null,null,null,null,null,null,null,null,null,null,null,null,null,"--",66.388300000000001,null,null,null,null,null,null,null,null,null,null,null,null,null,33.100499999999997,"--","--","--",61,"--","--",56.2,"--","--",55.7,63.6,66.3,63.8,61.2,"--","--",null,null,null,null,null,null,null,null,null,"--","--",null,null,null,null,null,43.885199999999998,null,null,null,1482,1227,"--","--",6.0374517374517449,9.0474517374517447,"--","--","--","--","--","--",587,587.9,66.3,962,2834.5,250.8,94.126499999999993,194761,"--","--","--",null,null,null,null,null,31.62,32.799999999999997,null,null,null,null,null,54.9,38.6,58.7,"--",4.3,16802,70,null,null,61490,262,null,null,0,"--","--","--","--","--","--","--","--","--",null,null,null,null,null,null,null,null,null,null,null,null,null,32.4,"--",33.9,null,null,null,null,null,4.5,4.01,4.5199999999999996,4.91,39.000000000000057,"--",3.92,4.2,"--",4.25,4.29,"--",null,null,null,null,null,"--","--","--","--","--","--","--","--","--",null,null,null,null,null,2.92,"--","--","--","--","--","--","--","--"]
["1965-10-01",null,null,null,0,0,0,0,null,null,null,null,null,null,null,null,null,null,null,null,null,null,null,"--",67.05,null,null,null,null,null,null,null,null,null,null,null,null,null,33.4343,"--","--","--",58.6,"--","--",56.9,"--","--",46.5,62,68.599999999999994,60.5,59.1,"--","--",null,null,null,null,null,null,null,null,null,"--","--",null,null,null,null,null,44.381700000000002,null,null,null,1452,1279,"--","--",5.9030848329048666,8.8430848329048661,"--","--","--","--","--","--",555,585,56.9,954,2817.8,252.3,94.804500000000004,194997,"--","--","--",null,null,null,null,null,31.65,32.799999999999997,null,null,null,null,null,55,38.5,58.9,"--",4.2,16864,62,null,null,61718,228,null,null,0,"--","--","--","--","--","--","--","--","--",null,null,null,null,null,null,null,null,null,null,null,null,null,32.5,"--",33.9,null,null,null,null,null,4.5,4.08,4.5599999999999996,4.93,37.000000000000014,"--",4.03,4.3,"--",4.34,4.3499999999999996,"--",null,null,null,null,null,"--","--","--","--","--","--","--","--","--",null,null,null,null,null,2.92,"--","--","--","--","--","--","--","--"]
["1965-11-01",null,null,null,0,0,0,0,null,null,null,null,null,null,null,null,null,null,null,null,null,null,null,"--",67.754000000000005,null,null,null,null,null,null,null,null,null,null,null,null,null,33.573300000000003,"--","--","--",59.4,"--","--",54.7,"--","--",48.7,61.9,70.599999999999994,60.9,65.099999999999994,"--","--",null,null,null,null,null,null,null,null,null,"--","--",null,null,null,null,null,44.796500000000002,null,null,null,1460,1306,"--","--",5.830214674783714,8.7002146747837124,"--","--","--","--","--","--",616,590.5,61,992,2838.6,254.8,95.405299999999997,195195,"--","--","--",null,null,null,null,null,31.75,32.9,null,null,null,null,null,55.4,38.6,58.8,"--",4.0999999999999996,16962,98,null,null,61997,279,null,null,0,"--","--","--","--","--","--","--","--","--",null,null,null,null,null,null,null,null,null,null,null,null,null,32.6,"--",34,null,null,null,null,null,4.5,4.0999999999999996,4.5999999999999996,4.95,35.000000000000057,"--",4.09,4.37,"--",4.46,4.45,"--",null,null,null,null,null,"--","--","--","--","--","--","--","--","--",null,null,null,null,null,2.92,"--","--","--","--","--","--","--","--"]
["1965-12-01",null,null,null,0,0,0,0,null,null,null,null,null,null,null,null,null,null,null,null,null,null,null,"--",69.157700000000006,null,null,null,null,null,null,null,null,null,null,null,null,null,33.990499999999997,"--","--","--",62.8,"--","--",60.2,"--","--",47.4,62.9,67,64.400000000000006,73.5,"--","--",null,null,null,null,null,null,null,null,null,"--","--",null,null,null,null,null,45.022300000000001,null,null,null,1656,1315,"--","--",5.9200000000000106,8.7200000000000095,"--","--","--","--","--","--",609,595.79999999999995,62.4,1093,2850,256.89999999999998,95.954700000000003,195372,"--","--","--",null,null,null,null,null,31.85,33,null,null,null,null,null,55.6,38.6,59,"--",4,17051,89,null,null,62321,324,null,null,0,"--","--","--","--","--","--","--","--","--",null,null,null,null,null,null,null,null,null,null,null,null,null,32.799999999999997,"--",34,null,null,null,null,null,4.92,4.32,4.68,5.0199999999999996,33.999999999999986,"--",4.38,4.72,"--",4.72,4.62,"--",null,null,null,null,null,"--","--","--","--","--","--","--","--","--",null,null,null,null,null,2.92,"--","--","--","--","--","--","--","--"]
["1966-01-01",null,null,null,0,0,0,0,null,null,null,null,null,null,null,null,null,null,null,null,null,null,null,"--",69.983099999999993,null,null,null,null,null,null,null,null,null,null,null,null,null,34.324300000000001,"--","--","--",65.8,"--","--",62.6,"--","--",49.7,66.5,75.900000000000006,68.400000000000006,74.900000000000006,"--","--",null,null,null,null,null,null,null,null,null,"--","--",null,null,null,null,null,45.436199999999999,null,null,null,1370,1325,"--","--",5.9181585677749302,8.71815856777493,"--","--","--","--","--","--",599,598.29999999999995,60.3,848,2854.1,257.60000000000002,97.030699999999996,195539,"--","--","--",null,null,null,null,null,31.88,33,null,null,null,null,null,55.8,38.6,59,"--",4,17143,92,null,null,62528,207,null,null,0,"--","--","--","--","--","--","--","--","--",null,null,null,null,null,null,null,null,null,null,null,null,null,32.9,"--",34,null,null,null,null,null,5,4.42,4.74,5.0599999999999996,31.99999999999994,"--",4.59,4.88,"--",4.8600000000000003,4.6100000000000003,"--",null,null,null,null,null,"--","--","--","--","--","--","--","--","--",null,null,null,null,null,2.92,"--","--","--","--","--","--","--","--"]
["1966-02-01",null,null,null,0,0,0,0,null,null,null,null,null,null,null,null,null,null,null,null,null,null,null,"--",70.683000000000007,null,null,null,null,null,null,null,null,null,null,null,null,null,34.546900000000001,"--","--","--",65.5,"--","--",61.2,"--","--",48.7,66.099999999999994,80.900000000000006,66.099999999999994,80.099999999999994,"--","--",null,null,null,null,null,null,null,null,null,"--","--",null,null,null,null,null,45.765999999999998,null,null,null,1378,1159,"--","--",6.3575447570332475,9.0175447570332476,"--","--","--","--","--","--",541,603.4,59.3,910,2863.9,258.3,97.758399999999995,195688,"--","--","--",null,null,null,null,null,32.08,33.1,null,null,null,null,null,56.2,38.700000000000003,58.8,"--",3.8,17288,145,null,null,62796,268,null,null,0,"--","--","--","--","--","--","--","--","--",null,null,null,null,null,null,null,null,null,null,null,null,null,33.200000000000003,"--",34.200000000000003,null,null,null,null,null,5,4.5999999999999996,4.78,5.12,33.999999999999986,"--",4.6500000000000004,4.9400000000000004,"--",4.9800000000000004,4.83,"--",null,null,null,null,null,"--","--","--","--","--","--","--","--","--",null,null,null,null,null,2.92,"--","--","--","--","--","--","--","--"]
["1966-03-01",null,null,null,0,0,0,0,null,null,null,null,null,null,null,null,null,null,null,null,null,null,null,"--",71.521000000000001,null,null,null,null,null,null,null,null,null,null,null,null,null,35.0197,"--","--","--",65.7,"--","--",61.5,"--","--",52.3,64.3,85.7,63.8,86.4,"--","--",null,null,null,null,null,null,null,null,null,"--","--",null,null,null,null,null,46.203800000000001,null,null,null,1394,1234,"--","--",6.5786649632705272,9.2386649632705264,"--","--","--","--","--","--",557,607.70000000000005,57.4,950,2872.7,258.10000000000002,98.446399999999997,195831,"--","--","--",null,null,null,null,null,32.18,33.1,null,null,null,null,null,56.5,38.700000000000003,58.8,"--",3.8,17400,112,null,null,63192,396,null,null,0,"--","--","--","--","--","--","--","--","--",null,null,null,null,null,null,null,null,null,null,null,null,null,33.200000000000003,"--",34.200000000000003,null,null,null,null,null,5.35,4.6500000000000004,4.92,5.32,40.000000000000036,"--",4.59,4.97,"--",4.92,4.87,"--",null,null,null,null,null,"--","--","--","--","--","--","--","--","--",null,null,null,null,null,2.92,"--","--","--","--","--","--","--","--"]
["1966-04-01",null,null,null,0,0,0,0,null,null,null,null,null,null,null,null,null,null,null,null,null,null,null,"--",72.372799999999998,null,null,null,null,null,null,null,null,null,null,null,null,null,35.075400000000002,"--","--","--",64.2,"--","--",59.9,"--","--",53,64.3,83.9,63.1,79.3,"--","--",null,null,null,null,null,null,null,null,null,"--","--",null,null,null,null,null,46.521900000000002,null,null,null,1352,1145,"--","--",6.6680688336520042,9.3280688336520043,"--","--","--","--","--","--",545,609.70000000000005,55.5,879,2864,256,98.805099999999996,195999,"--","--","--",null,null,null,null,null,32.28,33.299999999999997,null,null,null,null,null,56.7,38.700000000000003,59,"--",3.8,17517,117,null,null,63436,244,null,null,0,"--","--","--","--","--","--","--","--","--",null,null,null,null,null,null,null,null,null,null,null,null,null,33.200000000000003,"--",34.299999999999997,null,null,null,null,null,5.5,4.67,4.96,5.41,45.000000000000014,"--",4.62,4.9000000000000004,"--",4.83,4.75,"--",null,null,null,null,null,"--","--","--","--","--","--","--","--","--",null,null,null,null,null,2.92,"--","--","--","--","--","--","--","--"]
["1966-05-01",null,null,null,0,0,0,0,null,null,null,null,null,null,null,null,null,null,null,null,null,null,null,"--",73.327299999999994,null,null,null,null,null,null,null,null,null,null,null,null,null,35.409199999999998,"--","--","--",57.7,"--","--",57,"--","--",53.8,52.7,83.3,55.5,74.599999999999994,"--","--",null,null,null,null,null,null,null,null,null,"--","--",null,null,null,null,null,46.755499999999998,null,null,null,1265,1078,"--","--",6.6636594663278395,9.3936594663278399,"--","--","--","--","--","--",499,612.4,60.8,822,2868.4,255.1,99.305400000000006,196178,"--","--","--",null,null,null,null,null,32.35,33.4,null,null,null,null,null,56.6,38.5,59,"--",3.9,17625,108,null,null,63711,275,null,null,0,"--","--","--","--","--","--","--","--","--",null,null,null,null,null,null,null,null,null,null,null,null,null,33.200000000000003,"--",34.5,null,null,null,null,null,5.5,4.9000000000000004,4.9800000000000004,5.48,50,"--",4.6399999999999997,4.93,"--",4.8899999999999997,4.78,"--",null,null,null,null,null,"--","--","--","--","--","--","--","--","--",null,null,null,null,null,2.92,"--","--","--","--","--","--","--","--"]
["1966-06-01",null,null,null,0,0,0,0,null,null,null,null,null,null,null,null,null,null,null,null,null,null,null,"--",75.391900000000007,null,null,null,null,null,null,null,null,null,null,null,null,null,35.576000000000001,"--","--","--",59,"--","--",58.8,"--","--",53.3,55.9,81.5,57.6,71.599999999999994,"--","--",null,null,null,null,null,null,null,null,null,"--","--",null,null,null,null,null,47.1738,null,null,null,1194,956,"--","--",6.2359379943056146,8.8959379943056156,"--","--","--","--","--","--",434,617,62,783,2880.6,254.7,99.788700000000006,196372,"--","--","--",null,null,null,null,null,32.380000000000003,33.5,null,null,null,null,null,56.9,38.5,59.1,"--",3.8,17733,108,null,null,64110,399,null,null,0,"--","--","--","--","--","--","--","--","--",null,null,null,null,null,null,null,null,null,null,null,null,null,33.299999999999997,"--",34.6,null,null,null,null,null,5.52,5.17,5.07,5.58,50.999999999999979,"--",4.5,4.97,"--",4.97,4.8099999999999996,"--",null,null,null,null,null,"--","--","--","--","--","--","--","--","--",null,null,null,null,null,2.92,"--","--","--","--","--","--","--","--"]
["1966-07-01",null,null,null,0,0,0,0,null,null,null,null,null,null,null,null,null,null,null,null,null,null,null,"--",76.782600000000002,null,null,null,null,null,null,null,null,null,null,null,null,null,35.770699999999998,"--","--","--",60.3,"--","--",58.9,"--","--",57.9,56.3,79.7,59.3,73.099999999999994,"--","--",null,null,null,null,null,null,null,null,null,"--","--",null,null,null,null,null,47.398499999999999,null,null,null,1086,932,"--","--",6.5549081697276987,9.2149081697276998,"--","--","--","--","--","--",435,620.79999999999995,60,739,2891,254.3,100.06140000000001,196560,"--","--","--",null,null,null,null,null,32.450000000000003,33.6,null,null,null,null,null,56.9,38.4,59.1,"--",3.8,17760,27,null,null,64301,191,null,null,0,"--","--","--","--","--","--","--","--","--",null,null,null,null,null,null,null,null,null,null,null,null,null,33.5,"--",34.700000000000003,null,null,null,null,null,5.75,5.3,5.16,5.68,51.999999999999957,"--",4.8,5.17,"--",5.17,5.0199999999999996,"--",null,null,null,null,null,"--","--","--","--","--","--","--","--","--",null,null,null,null,null,2.92,"--","--","--","--","--","--","--","--"]
["1966-08-01",null,null,null,0,0,0,0,null,null,null,null,null,null,null,null,null,null,null,null,null,null,null,"--",76.993899999999996,null,null,null,null,null,null,null,null,null,null,null,null,null,35.7986,"--","--","--",58.5,"--","--",56.4,"--","--",57,53.3,79.5,57.7,74.3,"--","--",null,null,null,null,null,null,null,null,null,"--","--",null,null,null,null,null,47.560899999999997,null,null,null,1119,877,"--","--",7.2865293185419864,9.9465293185419874,"--","--","--","--","--","--",377,626.20000000000005,62.2,746,2905.4,253.2,100.58669999999999,196762,"--","--","--",null,null,null,null,null,32.65,33.700000000000003,null,null,null,null,null,57.1,38.4,59.3,"--",3.8,17882,122,null,null,64507,206,null,null,0,"--","--","--","--","--","--","--","--","--",null,null,null,null,null,null,null,null,null,null,null,null,null,33.6,"--",34.799999999999997,null,null,null,null,null,5.88,5.53,5.31,5.83,52.000000000000043,"--",4.96,5.54,"--",5.5,5.22,"--",null,null,null,null,null,"--","--","--","--","--","--","--","--","--",null,null,null,null,null,2.92,"--","--","--","--","--","--","--","--"]
["1966-09-01",null,null,null,0,0,0,0,null,null,null,null,null,null,null,null,null,null,null,null,null,null,null,"--",77.488299999999995,null,null,null,null,null,null,null,null,null,null,null,null,null,36.132300000000001,"--","--","--",58.7,"--","--",56.5,"--","--",54.8,55.2,73.7,57.9,72.400000000000006,"--","--",null,null,null,null,null,null,null,null,null,"--","--",null,null,null,null,null,47.598799999999997,null,null,null,1046,774,"--","--",7.2736875395319336,9.8636875395319343,"--","--","--","--","--","--",358,631.70000000000005,61,699,2921.2,253.1,100.6725,196984,"--","--","--",null,null,null,null,null,32.75,33.799999999999997,null,null,null,null,null,57,38.299999999999997,59.3,"--",3.7,17886,4,null,null,64644,137,null,null,0,"--","--","--","--","--","--","--","--","--",null,null,null,null,null,null,null,null,null,null,null,null,null,33.6,"--",34.9,null,null,null,null,null,6,5.4,5.49,6.09,59.999999999999964,"--",5.37,5.82,"--",5.5,5.18,"--",null,null,null,null,null,"--","--","--","--","--","--","--","--","--",null,null,null,null,null,2.97,"--","--","--","--","--","--","--","--"]
["1966-10-01",null,null,null,0,0,0,0,null,null,null,null,null,null,null,null,null,null,null,null,null,null,null,"--",78.010400000000004,null,null,null,null,null,null,null,null,null,null,null,null,null,36.3827,"--","--","--",57.2,"--","--",56.9,"--","--",58.2,51.6,70.3,57,68.7,"--","--",null,null,null,null,null,null,null,null,null,"--","--",null,null,null,null,null,47.589799999999997,null,null,null,843,739,"--","--",7.4914691943128133,10.081469194312813,"--","--","--","--","--","--",387,636.29999999999995,65.400000000000006,597,2932.3,252.2,100.95310000000001,197207,"--","--","--",null,null,null,null,null,32.85,34,null,null,null,null,null,57.3,38.4,59.3,"--",3.7,17956,70,null,null,64854,210,null,null,0,"--","--","--","--","--","--","--","--","--",null,null,null,null,null,null,null,null,null,null,null,null,null,33.4,"--",35,null,null,null,null,null,6,5.53,5.41,6.1,68.999999999999943,"--",5.35,5.58,"--",5.27,5.01,"--",null,null,null,null,null,"--","--","--","--","--","--","--","--","--",null,null,null,null,null,2.97,"--","--","--","--","--","--","--","--"]
["1966-11-01",null,null,null,0,0,0,0,null,null,null,null,null,null,null,null,null,null,null,null,null,null,null,"--",78.372600000000006,null,null,null,null,null,null,null,null,null,null,null,null,null,36.132300000000001,"--","--","--",53.7,"--","--",55.6,"--","--",55.6,46.8,71.900000000000006,54.2,62.6,"--","--",null,null,null,null,null,null,null,null,null,"--","--",null,null,null,null,null,47.685299999999998,null,null,null,961,736,"--","--",7.1590551181102544,9.6790551181102558,"--","--","--","--","--","--",382,641.1,66.900000000000006,679,2945,252.6,101.4374,197398,"--","--","--",null,null,null,null,null,32.880000000000003,34,null,null,null,null,null,57.2,38.299999999999997,59.6,"--",3.6,17981,25,null,null,65019,165,null,null,0,"--","--","--","--","--","--","--","--","--",null,null,null,null,null,null,null,null,null,null,null,null,null,33.299999999999997,"--",35.200000000000003,null,null,null,null,null,6,5.76,5.35,6.13,78.000000000000028,"--",5.32,5.54,"--",5.36,5.16,"--",null,null,null,null,null,"--","--","--","--","--","--","--","--","--",null,null,null,null,null,2.97,"--","--","--","--","--","--","--","--"]
["1966-12-01",null,null,null,0,0,0,0,null,null,null,null,null,null,null,null,null,null,null,null,null,null,null,"--",78.975999999999999,null,null,null,null,null,null,null,null,null,null,null,null,null,36.215800000000002,"--","--","--",52.4,"--","--",50.7,"--","--",53.7,48.8,67.599999999999994,54.1,57.9,"--","--",null,null,null,null,null,null,null,null,null,"--","--",null,null,null,null,null,47.762099999999997,null,null,null,990,743,"--","--",7.1594976452119283,9.8194976452119285,"--","--","--","--","--","--",369,642.1,65.5,666,2941.7,253.1,101.7882,197572,"--","--","--",null,null,null,null,null,32.92,34.1,null,null,null,null,null,57.2,38.200000000000003,59.5,"--",3.8,17998,17,null,null,65200,181,null,null,0,"--","--","--","--","--","--","--","--","--",null,null,null,null,null,null,null,null,null,null,null,null,null,33.299999999999997,"--",35.299999999999997,null,null,null,null,null,6,5.4,5.39,6.18,79,"--",4.96,5.2,"--",5,4.84,"--",null,null,null,null,null,"--","--","--","--","--","--","--","--","--",null,null,null,null,null,2.97,"--","--","--","--","--","--","--","--"]
["1967-01-01",null,null,null,0,0,0,0,null,null,null,null,null,null,null,null,null,null,null,null,null,null,null,89.4,79.274000000000001,null,null,null,null,null,null,null,null,null,null,null,null,null,36.386600000000001,"--","--","--",49.1,"--","--",48.3,"--","--",48.2,46.2,72.900000000000006,54.1,48.2,"--","--",null,null,null,null,null,null,null,null,null,"--","--",null,null,null,null,null,47.923000000000002,null,null,null,1067,995,"--","--",7.0994981179422894,9.8294981179422898,"--","--","--","--","--","--",416,648.29999999999995,69.099999999999994,768,2972.8,252.7,102.1986,197736,"--","--","--",null,null,null,null,null,32.9,34.200000000000003,null,null,null,null,null,57.5,38.299999999999997,59.5,"--",3.9,18033,35,null,null,65407,207,null,null,209000,"--","--","--","--","--","--","--","--","--",null,null,null,null,null,null,null,null,null,null,null,null,null,33.4,"--",35.4,null,null,null,null,null,5.96,4.9400000000000004,5.2,5.97,76.999999999999957,"--",4.72,4.75,"--",4.7,4.58,"--",null,null,null,null,null,"--","--","--","--","--","--","--","--","--",null,null,null,null,null,2.97,"--","--","--","--","--","--","--","--"]
["1967-02-01",null,null,null,0,0,0,0,null,null,null,null,null,null,null,null,null,null,null,null,null,null,null,88,79.558000000000007,null,null,null,null,null,null,null,null,null,null,null,null,null,35.9739,"--","--","--",47.6,"--","--",47.6,"--","--",45.3,45.1,61.8,50.4,49.9,"--","--",null,null,null,null,null,null,null,null,null,"--","--",null,null,null,null,null,47.9998,null,null,null,1123,907,"--","--",6.6678304239401651,9.3278304239401653,"--","--","--","--","--","--",408,649.70000000000005,71.900000000000006,724,2977.7,252.9,102.3626,197892,"--","--","--",null,null,null,null,null,33,34.200000000000003,null,null,null,null,null,56.8,37.9,59.3,"--",3.8,17978,-55,null,null,65428,21,null,null,229000,"--","--","--","--","--","--","--","--","--",null,null,null,null,null,null,null,null,null,null,null,null,null,33.4,"--",35.5,null,null,null,null,null,5.75,5,5.03,5.82,79,"--",4.5599999999999996,4.71,"--",4.74,4.63,"--",null,null,null,null,null,"--","--","--","--","--","--","--","--","--",null,null,null,null,null,3,"--","--","--","--","--","--","--","--"]
["1967-03-01",null,null,null,0,0,0,0,null,null,null,null,null,null,null,null,null,null,null,null,null,null,null,87.1,80.123099999999994,null,null,null,null,null,null,null,null,null,null,null,null,null,35.7712,"--","--","--",45.3,"--","--",46.3,"--","--",45.6,45.3,54,48.7,38,"--","--",null,null,null,null,null,null,null,null,null,"--","--",null,null,null,null,null,48.173400000000001,null,null,null,1056,955,"--","--",6.3481665630826543,9.0081665630826535,"--","--","--","--","--","--",439,654,73.7,757,3000.1,253.9,102.73220000000001,198037,"--","--","--",null,null,null,null,null,33,34.299999999999997,null,null,null,null,null,56.8,37.9,59.1,"--",3.8,17940,-38,null,null,65530,102,null,null,260400,"--","--","--","--","--","--","--","--","--",null,null,null,null,null,null,null,null,null,null,null,null,null,33.299999999999997,"--",35.5,null,null,null,null,null,5.71,4.53,5.13,5.85,71.999999999999972,"--",4.26,4.3499999999999996,"--",4.54,4.54,"--",null,null,null,null,null,"--","--","--","--","--","--","--","--","--",null,null,null,null,null,3,"--","--","--","--","--","--","--","--"]
["1967-04-01",null,null,null,0,0,0,0,null,null,null,null,null,null,null,null,null,null,null,null,null,null,null,87.5,81.185000000000002,null,null,null,null,null,null,null,null,null,null,null,null,null,36.108499999999999,"--","--","--",42.8,"--","--",41.8,"--","--",39.4,46.4,56.3,44.3,36.9,"--","--",null,null,null,null,null,null,null,null,null,"--","--",null,null,null,null,null,48.375399999999999,null,null,null,1091,1035,"--","--",6.3402726146220632,9.0002726146220624,"--","--","--","--","--","--",479,654.5,68.5,755,2999.1,255.1,102.88590000000001,198206,"--","--","--",null,null,null,null,null,33.1,34.4,null,null,null,null,null,56.5,37.799999999999997,59.4,"--",3.8,17878,-62,null,null,65467,-63,null,null,264000,"--","--","--","--","--","--","--","--","--",null,null,null,null,null,null,null,null,null,null,null,null,null,33.1,"--",35.6,null,null,null,null,null,5.5,4.05,5.1100000000000003,5.83,71.999999999999972,"--",3.84,4.1100000000000003,"--",4.51,4.59,"--",null,null,null,null,null,"--","--","--","--","--","--","--","--","--",null,null,null,null,null,3,"--","--","--","--","--","--","--","--"]
["1967-05-01",null,null,null,0,0,0,0,null,null,null,null,null,null,null,null,null,null,null,null,null,null,null,86.4,81.602199999999996,null,null,null,null,null,null,null,null,null,null,null,null,null,35.793500000000002,"--","--","--",44.5,"--","--",45.5,"--","--",39.700000000000003,47.6,56.1,48,34.4,"--","--",null,null,null,null,null,null,null,null,null,"--","--",null,null,null,null,null,48.646599999999999,null,null,null,1304,1076,"--","--",6.1183925811437465,8.7783925811437467,"--","--","--","--","--","--",503,656.9,69.8,852,3005.1,256.7,103.1514,198363,"--","--","--",null,null,null,null,null,33.1,34.5,null,null,null,null,null,56.6,37.799999999999997,59.3,"--",3.8,17832,-46,null,null,65619,152,null,null,238200,"--","--","--","--","--","--","--","--","--",null,null,null,null,null,null,null,null,null,null,null,null,null,33.299999999999997,"--",35.700000000000003,null,null,null,null,null,5.5,3.94,5.24,5.96,71.999999999999972,"--",3.6,4.1500000000000004,"--",4.75,4.8499999999999996,"--",null,null,null,null,null,"--","--","--","--","--","--","--","--","--",null,null,null,null,null,3,"--","--","--","--","--","--","--","--"]
["1967-06-01",null,null,null,0,0,0,0,null,null,null,null,null,null,null,null,null,null,null,null,null,null,null,86,82.692899999999995,null,null,null,null,null,null,null,null,null,null,null,null,null,35.789000000000001,"--","--","--",46.8,"--","--",45.8,"--","--",39.6,51.8,58.4,50.7,36.5,"--","--",null,null,null,null,null,null,null,null,null,"--","--",null,null,null,null,null,48.9846,null,null,null,1248,1169,"--","--",6.7412600370598899,9.4712600370598885,"--","--","--","--","--","--",499,661.6,69.2,859,3016.1,258.3,103.741,198537,"--","--","--",null,null,null,null,null,33.299999999999997,34.6,null,null,null,null,null,56.7,37.799999999999997,59.6,"--",3.9,17812,-20,null,null,65750,131,null,null,222250,"--","--","--","--","--","--","--","--","--",null,null,null,null,null,null,null,null,null,null,null,null,null,33.5,"--",35.700000000000003,null,null,null,null,null,5.5,3.98,5.44,6.15,71,"--",3.54,4.4800000000000004,"--",5.01,5.0199999999999996,"--",null,null,null,null,null,"--","--","--","--","--","--","--","--","--",null,null,null,null,null,3,"--","--","--","--","--","--","--","--"]
["1967-07-01",null,null,null,0,0,0,0,null,null,null,null,null,null,null,null,null,null,null,null,null,null,null,85.4,83.735100000000003,null,null,null,null,null,null,null,null,null,null,null,null,null,35.707500000000003,"--","--","--",49.5,"--","--",50.2,"--","--",38.1,53.7,63.9,53.4,40.9,"--","--",null,null,null,null,null,null,null,null,null,"--","--",null,null,null,null,null,49.368699999999997,null,null,null,1364,1177,"--","--",6.7275808936825685,9.3875808936825678,"--","--","--","--","--","--",515,667.5,74.2,875,3029.2,259.5,104.0943,198712,"--","--","--",null,null,null,null,null,33.4,34.700000000000003,null,null,null,null,null,56.8,37.799999999999997,59.6,"--",3.8,17784,-28,null,null,65887,137,null,null,230200,"--","--","--","--","--","--","--","--","--",null,null,null,null,null,null,null,null,null,null,null,null,null,33.5,"--",35.799999999999997,null,null,null,null,null,5.5,3.79,5.58,6.26,67.999999999999972,"--",4.21,5.01,"--",5.23,5.16,"--",null,null,null,null,null,"--","--","--","--","--","--","--","--","--",null,null,null,null,null,3,"--","--","--","--","--","--","--","--"]
["1967-08-01",null,null,null,0,0,0,0,null,null,null,null,null,null,null,null,null,null,null,null,null,null,null,86.6,83.512299999999996,null,null,null,null,null,null,null,null,null,null,null,null,null,36.391599999999997,"--","--","--",52.2,"--","--",52.9,"--","--",41.7,55.4,67.5,56.4,44.8,"--","--",null,null,null,null,null,null,null,null,null,"--","--",null,null,null,null,null,49.773299999999999,null,null,null,1407,1229,"--","--",6.4033690658499252,9.0633690658499262,"--","--","--","--","--","--",504,672.4,74.8,903,3038.8,260.8,104.67749999999999,198911,"--","--","--",null,null,null,null,null,33.5,34.9,null,null,null,null,null,57,37.799999999999997,59.7,"--",3.8,17905,121,null,null,66142,255,null,null,212000,"--","--","--","--","--","--","--","--","--",null,null,null,null,null,null,null,null,null,null,null,null,null,33.4,"--",35.9,null,null,null,null,null,5.5,3.9,5.62,6.33,71,"--",4.2699999999999996,5.13,"--",5.31,5.28,"--",null,null,null,null,null,"--","--","--","--","--","--","--","--","--",null,null,null,null,null,3.07,"--","--","--","--","--","--","--","--"]
["1967-09-01",null,null,null,0,0,0,0,null,null,null,null,null,null,null,null,null,null,null,null,null,null,null,86.1,83.736500000000007,null,null,null,null,null,null,null,null,null,null,null,null,null,36.332599999999999,"--","--","--",54.9,"--","--",51.6,"--","--",46.8,62,75.2,57.4,46.5,"--","--",null,null,null,null,null,null,null,null,null,"--","--",null,null,null,null,null,50.181100000000001,null,null,null,1421,1279,"--","--",6.3954198473282506,9.0554198473282508,"--","--","--","--","--","--",531,674.8,70.5,912,3037.4,262,105.17230000000001,199113,"--","--","--",null,null,null,null,null,33.6,35,null,null,null,null,null,57,37.799999999999997,59.7,"--",3.8,17794,-111,null,null,66164,22,null,null,216000,"--","--","--","--","--","--","--","--","--",null,null,null,null,null,null,null,null,null,null,null,null,null,33.4,"--",35.9,null,null,null,null,null,5.5,3.99,5.65,6.4,75,"--",4.42,5.24,"--",5.4,5.3,"--",null,null,null,null,null,"--","--","--","--","--","--","--","--","--",null,null,null,null,null,3.07,"--","--","--","--","--","--","--","--"]
["1967-10-01",null,null,null,0,0,0,0,null,null,null,null,null,null,null,null,null,null,null,null,null,null,null,86.4,84.104299999999995,null,null,null,null,null,null,null,null,null,null,null,null,null,36.628500000000003,"--","--","--",54.1,"--","--",52.4,"--","--",48,55.8,78.7,57.7,51.1,"--","--",null,null,null,null,null,null,null,null,null,"--","--",null,null,null,null,null,50.531300000000002,null,null,null,1491,1280,"--","--",6.5875190258751957,9.3875190258751964,"--","--","--","--","--","--",566,676.5,75.5,910,3036.8,262.60000000000002,105.44070000000001,199311,"--","--","--",null,null,null,null,null,33.700000000000003,35.1,null,null,null,null,null,57,37.799999999999997,59.9,"--",4,17800,6,null,null,66225,61,null,null,217800,"--","--","--","--","--","--","--","--","--",null,null,null,null,null,null,null,null,null,null,null,null,null,33.4,"--",36.1,null,null,null,null,null,5.5,3.88,5.82,6.52,69.999999999999929,"--",4.5599999999999996,5.37,"--",5.57,5.48,"--",null,null,null,null,null,"--","--","--","--","--","--","--","--","--",null,null,null,null,null,3.07,"--","--","--","--","--","--","--","--"]
["1967-11-01",null,null,null,0,0,0,0,null,null,null,null,null,null,null,null,null,null,null,null,null,null,null,87.3,84.5959,null,null,null,null,null,null,null,null,null,null,null,null,null,37.152299999999997,"--","--","--",54.2,"--","--",51.5,"--","--",44.4,57,83.8,58.6,51.4,"--","--",null,null,null,null,null,null,null,null,null,"--","--",null,null,null,null,null,50.918900000000001,null,null,null,1538,1297,"--","--",7.0021897810218796,9.73218978102188,"--","--","--","--","--","--",500,682.8,75.599999999999994,942,3054.2,263.39999999999998,106.2966,199498,"--","--","--",null,null,null,null,null,33.9,35.200000000000003,null,null,null,null,null,57.7,37.9,59.8,"--",3.9,17985,185,null,null,66703,478,null,null,199750,4.7,"--","--","--","--","--","--","--","--",null,null,null,null,null,null,null,null,null,null,null,null,null,33.4,"--",36.200000000000003,null,null,null,null,null,5.68,4.13,6.07,6.72,64.999999999999943,"--",4.7300000000000004,5.61,"--",5.78,5.75,"--",null,null,null,null,null,"--","--","--","--","--","--","--","--","--",null,null,null,null,null,3.07,"--","--","--","--","--","--","--","--"]
["1967-12-01",null,null,null,0,0,0,0,null,null,null,null,null,null,null,null,null,null,null,null,null,null,null,87.8,86.139700000000005,null,null,null,null,null,null,null,null,null,null,null,null,null,37.552500000000002,"--","--","--",55.6,"--","--",51.5,"--","--",53.8,59.4,79.599999999999994,58.7,49.9,"--","--",null,null,null,null,null,null,null,null,null,"--","--",null,null,null,null,null,51.191400000000002,null,null,null,1308,1315,"--","--",7.0806804374240437,9.740680437424043,"--","--","--","--","--","--",502,689.9,74,819,3080.3,263.7,106.8426,199657,"--","--","--",null,null,null,null,null,34,35.4,null,null,null,null,null,57.5,37.700000000000003,59.9,"--",3.8,18025,40,null,null,66900,197,null,null,215000,4.8,"--","--","--","--","--","--","--","--",null,null,null,null,null,null,null,null,null,null,null,null,null,33.700000000000003,"--",36.4,null,null,null,null,null,6,4.51,6.19,6.93,73.999999999999929,"--",4.97,5.71,"--",5.75,5.7,"--",null,null,null,null,null,"--","--","--","--","--","--","--","--","--",null,null,null,null,null,3.07,"--","--","--","--","--","--","--","--"]
["1968-01-01",null,null,null,0,0,0,0,null,null,null,null,null,null,null,null,null,null,null,null,null,null,null,87.4,86.550899999999999,null,null,null,null,null,null,null,null,null,null,null,null,null,37.512,"--","--","--",56.6,"--","--",53.2,"--","--",54.8,60.1,78,59.3,50.6,"--","--",null,null,null,null,null,null,null,null,null,"--","--",null,null,null,null,null,51.615000000000002,null,null,null,1380,1179,"--","--",7.347416413373872,9.9374164133738709,"--","--","--","--","--","--",494,694.5,71.900000000000006,839,3085.1,263.2,106.7724,199808,1.3168,"--","--",null,null,null,null,null,34.1,35.5,null,null,null,null,null,57.2,37.6,59.2,"--",3.7,18040,15,null,null,66805,-95,null,null,215750,5.0999999999999996,"--","--","--","--","--","--","--","--",null,null,null,null,null,null,null,null,null,null,null,null,null,33.799999999999997,"--",36.5,null,null,null,null,null,6,4.5999999999999996,6.17,6.84,67,"--",5,5.43,"--",5.54,5.53,"--",null,null,null,null,null,"--","--","--","--","--","--","--","--","--",null,null,null,null,null,3.07,"--","--","--","--","--","--","--","--"]
["1968-02-01",null,null,null,0,0,0,0,null,null,null,null,null,null,null,null,null,null,null,null,null,null,null,87.3,86.598100000000002,null,null,null,null,null,null,null,null,null,null,null,null,null,37.646500000000003,"--","--","--",55,"--","--",50.3,"--","--",53.7,56.6,76.3,58.1,53.9,"--","--",null,null,null,null,null,null,null,null,null,"--","--",null,null,null,null,null,52.025500000000001,null,null,null,1520,1342,"--","--",7.4363636363636374,10.096363636363638,"--","--","--","--","--","--",543,702.6,76,993,3107,263.5,107.9284,199920,1.3588,"--","--",null,null,null,null,null,34.200000000000003,35.700000000000003,null,null,null,null,null,57.9,37.799999999999997,59.6,"--",3.8,18054,14,null,null,67215,410,null,null,210750,4.5,"--","--","--","--","--","--","--","--",null,null,null,null,null,null,null,null,null,null,null,null,null,34,"--",36.6,null,null,null,null,null,6,4.71,6.1,6.8,70.000000000000014,"--",4.9800000000000004,5.41,"--",5.59,5.56,"--",null,null,null,null,null,"--","--","--","--","--","--","--","--","--",null,null,null,null,null,3.07,"--","--","--","--","--","--","--","--"]
["1968-03-01",null,null,null,0,0,0,0,null,null,null,null,null,null,null,null,null,null,null,null,null,null,null,87.3,87.114000000000004,null,null,null,null,null,null,null,null,null,null,null,null,null,37.764000000000003,"--","--","--",53.8,"--","--",50.1,"--","--",50.7,55.7,76.099999999999994,55.8,54,"--","--",null,null,null,null,null,null,null,null,null,"--","--",null,null,null,null,null,52.465000000000003,null,null,null,1466,1370,"--","--",7.6393939393939316,10.229393939393931,"--","--","--","--","--","--",490,710.8,73.099999999999994,912,3136.1,264.3,108.6891,200056,1.4128000000000001,"--","--",null,null,null,null,null,34.299999999999997,35.799999999999997,null,null,null,null,null,57.8,37.700000000000003,59.6,"--",3.7,18067,13,null,null,67295,80,null,null,195200,4.0999999999999996,"--","--","--","--","--","--","--","--",null,null,null,null,null,null,null,null,null,null,null,null,null,34.1,"--",36.6,null,null,null,null,null,6,5.05,6.11,6.85,73.999999999999929,"--",5.17,5.58,"--",5.76,5.74,"--",null,null,null,null,null,"--","--","--","--","--","--","--","--","--",null,null,null,null,null,3.07,"--","--","--","--","--","--","--","--"]
["1968-04-01",null,null,null,0,0,0,0,null,null,null,null,null,null,null,null,null,null,null,null,null,null,null,87.1,88.421000000000006,null,null,null,null,null,null,null,null,null,null,null,null,null,37.818600000000004,"--","--","--",58,"--","--",53.5,"--","--",54.9,64.5,71.5,60.1,49,"--","--",null,null,null,null,null,null,null,null,null,"--","--",null,null,null,null,null,52.854900000000001,null,null,null,1554,1286,"--","--",7.42749244712991,9.8774924471299101,"--","--","--","--","--","--",501,716.7,77.8,925,3149,264.3,109.5976,200208,1.4777,"--","--",null,null,null,null,null,34.4,35.9,null,null,null,null,null,57.9,37.6,59.5,"--",3.5,18131,64,null,null,67555,260,null,null,199000,4.5999999999999996,"--","--","--","--","--","--","--","--",null,null,null,null,null,null,null,null,null,null,null,null,null,34.1,"--",36.799999999999997,null,null,null,null,null,6.2,5.76,6.21,6.97,75.999999999999972,"--",5.38,5.71,"--",5.69,5.64,"--",null,null,null,null,null,"--","--","--","--","--","--","--","--","--",null,null,null,null,null,3.07,"--","--","--","--","--","--","--","--"]
["1968-05-01",null,null,null,0,0,0,0,null,null,null,null,null,null,null,null,null,null,null,null,null,null,null,87.7,88.9726,null,null,null,null,null,null,null,null,null,null,null,null,null,38.242899999999999,"--","--","--",55.3,"--","--",53.1,"--","--",54,56.2,69.2,60,49.4,"--","--",null,null,null,null,null,null,null,null,null,"--","--",null,null,null,null,null,53.292299999999997,null,null,null,1408,1297,"--","--",7.729607250755274,10.179607250755275,"--","--","--","--","--","--",441,722.9,76.599999999999994,850,3160.9,264.5,110.377,200361,1.5384,"--","--",null,null,null,null,null,34.5,36,null,null,null,null,null,58.1,37.700000000000003,59.9,"--",3.5,18190,59,null,null,67653,98,null,null,199000,4.4000000000000004,"--","--","--","--","--","--","--","--",null,null,null,null,null,null,null,null,null,null,null,null,null,34.200000000000003,"--",37,null,null,null,null,null,6.5,6.11,6.27,7.03,76.000000000000071,"--",5.66,6.14,"--",6.04,5.87,"--",null,null,null,null,null,"--","--","--","--","--","--","--","--","--",null,null,null,null,null,3.07,"--","--","--","--","--","--","--","--"]
["1968-06-01",null,null,null,0,0,0,0,null,null,null,null,null,null,null,null,null,null,null,null,null,null,null,87.7,89.929500000000004,null,null,null,null,null,null,null,null,null,null,null,null,null,38.383299999999998,"--","--","--",53.5,"--","--",52.6,"--","--",55,54.3,70.400000000000006,54.9,49.9,"--","--",null,null,null,null,null,null,null,null,null,"--","--",null,null,null,null,null,53.870699999999999,null,null,null,1405,1300,"--","--",7.9042042042042207,10.49420420420422,"--","--","--","--","--","--",441,728.3,74.7,799,3174,264.89999999999998,111.06789999999999,200536,1.6145,"--","--",null,null,null,null,null,34.700000000000003,36.200000000000003,null,null,null,null,null,58.4,37.799999999999997,60,"--",3.7,18228,38,null,null,67904,251,null,null,192250,4.4000000000000004,"--","--","--","--","--","--","--","--",null,null,null,null,null,null,null,null,null,null,null,null,null,34.200000000000003,"--",37,null,null,null,null,null,6.5,6.07,6.28,7.07,79,"--",5.52,5.98,"--",5.85,5.72,"--",null,null,null,null,null,"--","--","--","--","--","--","--","--","--",null,null,null,null,null,3.07,"--","--","--","--","--","--","--","--"]
["1968-07-01",null,null,null,0,0,0,0,null,null,null,null,null,null,null,null,null,null,null,null,null,null,null,87.2,91.035799999999995,null,null,null,null,null,null,null,null,null,null,null,null,null,38.3245,"--","--","--",54.1,"--","--",48.2,"--","--",55.8,54.5,67.099999999999994,56.5,55.9,"--","--",null,null,null,null,null,null,null,null,null,"--","--",null,null,null,null,null,54.354900000000001,null,null,null,1512,1344,"--","--",8.1910179640718539,10.781017964071854,"--","--","--","--","--","--",493,735,68.2,923,3167.7,264.60000000000002,112.1237,200706,1.6857,"--","--",null,null,null,null,null,34.9,36.4,null,null,null,null,null,58.5,37.700000000000003,59.8,"--",3.7,18265,37,null,null,68125,221,null,null,198200,4.5,"--","--","--","--","--","--","--","--",null,null,null,null,null,null,null,null,null,null,null,null,null,34.299999999999997,"--",37.1,null,null,null,null,null,6.5,6.02,6.24,6.98,74.000000000000028,"--",5.31,5.65,"--",5.6,5.5,"--",null,null,null,null,null,"--","--","--","--","--","--","--","--","--",null,null,null,null,null,3.07,"--","--","--","--","--","--","--","--"]
["1968-09-01",null,null,null,0,0,0,0,null,null,null,null,null,null,null,null,null,null,null,null,null,null,null,87.1,91.845200000000006,null,null,null,null,null,null,null,null,null,null,null,null,null,38.576999999999998,"--","--","--",51.8,"--","--",47.1,"--","--",42.4,55.4,72.400000000000006,57,48.4,"--","--",null,null,null,null,null,null,null,null,null,"--","--",null,null,null,null,null,55.681399999999996,null,null,null,1556,1464,"--","--",7.864285714285721,10.24428571428572,"--","--","--","--","--","--",501,746.8,68,924,3168.8,266.5,113.7542,201095,1.8396999999999999,"--","--",null,null,null,null,null,35.1,36.700000000000003,null,null,null,null,null,58.8,37.700000000000003,59.5,"--",3.4,18252,-2,null,null,68487,159,null,null,191000,4.5999999999999996,"--","--","--","--","--","--","--","--",null,null,null,null,null,null,null,null,null,null,null,null,null,34.4,"--",37.299999999999997,null,null,null,null,null,6.45,5.78,5.97,6.79,82.000000000000028,"--",5.19,5.45,"--",5.48,5.46,"--",null,null,null,null,null,"--","--","--","--","--","--","--","--","--",null,null,null,null,null,3.07,"--","--","--","--","--","--","--","--"]
["1969-02-01",null,null,null,0,0,0,0,null,null,null,null,null,null,null,null,null,null,null,null,null,null,null,88.1,98.296300000000002,null,null,null,null,null,null,null,null,null,null,null,null,null,39.767699999999998,"--","--","--",57,"--","--",56.1,"--","--",46.3,57.9,79.599999999999994,59.1,60.1,"--","--",null,null,null,null,null,null,null,null,null,"--","--",null,null,null,null,null,58.7712,null,null,null,1705,1495,"--","--",8.0783625730993922,10.458362573099393,"--","--","--","--","--","--",524,770.8,63,876,3195.2,268.2,119.449,201881,2.2162999999999999,"--","--",null,null,null,null,null,35.799999999999997,37.6,null,null,null,null,null,59.6,37.5,60,"--",3.4,18502,70,null,null,69700,262,null,null,196000,4.9000000000000004,"--","--","--","--","--","--","--","--",null,null,null,null,null,null,null,null,null,null,null,null,null,35,"--",37.700000000000003,null,null,null,null,null,7,6.61,6.66,7.3,63.999999999999972,"--",6.12,6.41,"--",6.34,6.19,"--",null,null,null,null,null,"--","--","--","--","--","--","--","--","--",null,null,null,null,null,3.07,"--","--","--","--","--","--","--","--"]
["1969-05-01",null,null,null,0,0,0,0,null,null,null,null,null,null,null,null,null,null,null,null,null,null,null,87.2,101.94540000000001,null,null,null,null,null,null,null,null,null,null,null,null,null,39.781100000000002,"--","--","--",56.7,"--","--",52.8,"--","--",50.7,57.6,79.3,56.3,64.900000000000006,"--","--",null,null,null,null,null,null,null,null,null,"--","--",null,null,null,null,null,60.552599999999998,null,null,null,1583,1328,"--","--",8.9072463768115924,11.287246376811591,"--","--","--","--","--","--",447,790.4,68.400000000000006,897,3237,267.3,122.56480000000001,202331,2.5937000000000001,"--","--",null,null,null,null,null,36.4,38.1,null,null,null,null,null,60.3,37.6,59.8,"--",3.4,18588,34,null,null,70328,256,null,null,181200,4.2,"--","--","--","--","--","--","--","--",null,null,null,null,null,null,null,null,null,null,null,null,null,35.5,"--",38,null,null,null,null,null,7.5,8.67,6.79,7.52,72.999999999999957,"--",6.04,6.42,"--",6.54,6.32,"--",null,null,null,null,null,"--","--","--","--","--","--","--","--","--",null,null,null,null,null,3.35,"--","--","--","--","--","--","--","--"]
["1969-09-01",null,null,null,0,0,0,0,null,null,null,null,null,null,null,null,null,null,null,null,null,null,null,87.4,103.8176,null,null,null,null,null,null,null,null,null,null,null,null,null,40.465499999999999,"--","--","--",54.1,"--","--",50.3,"--","--",49.4,50.4,83.2,54.8,68.900000000000006,"--","--",null,null,null,null,null,null,null,null,null,"--","--",null,null,null,null,null,61.671599999999998,null,null,null,1507,1263,"--","--",9.3980056980056936,11.988005698005693,"--","--","--","--","--","--",396,818,82.2,824,3312,264.60000000000002,125.31910000000001,203090,3.1589999999999998,"--","--",null,null,null,null,null,37.1,38.9,null,null,null,null,null,60.6,37.5,60.3,"--",3.7,18620,-147,null,null,70917,-89,null,null,194750,4.7,"--","--","--","--","--","--","--","--",null,null,null,null,null,null,null,null,null,null,null,null,null,35.799999999999997,"--",38.5,null,null,null,null,null,8.5,9.15,7.14,8.0500000000000007,91.000000000000099,"--",7.09,7.82,"--",7.57,7.16,"--",null,null,null,null,null,"--","--","--","--","--","--","--","--","--",null,null,null,null,null,3.35,"--","--","--","--","--","--","--","--"]
["1970-03-01",null,null,null,0,0,0,0,null,null,null,null,null,null,null,null,null,null,null,null,null,null,null,82.9,105.4128,null,null,null,null,null,null,null,null,null,null,null,null,null,39.170999999999999,"--","--","--",46.9,"--","--",44.8,"--","--",51.4,45.2,67.8,47.3,49.3,"--","--",null,null,null,null,null,null,null,null,null,"--","--",null,null,null,null,null,63.204000000000001,null,null,null,1319,1132,"--","--",10.494182825484751,13.574182825484751,"--","--","--","--","--","--",389,846.7,90.9,726,3369.1,254.5,128.28,204156,3.9081000000000001,"--","--",null,null,null,null,null,38.299999999999997,40.1,null,null,null,null,null,60.3,37.200000000000003,60.6,"--",4.4000000000000004,18360,-1,null,null,71452,148,null,null,263000,4.5999999999999996,"--","--","--","--","--","--","--","--",null,null,null,null,null,null,null,null,null,null,null,null,null,36.700000000000003,"--",39.6,null,null,null,null,null,8.39,7.76,7.84,8.6300000000000008,79.000000000000085,"--",6.63,6.97,"--",7.21,7.07,"--",null,null,null,null,null,"--","--","--","--","--","--","--","--","--",null,null,null,null,null,3.35,"--","--","--","--","--","--","--","--"]
["1970-08-01",null,null,null,0,0,0,0,null,null,null,null,null,null,null,null,null,null,null,null,null,null,null,81.099999999999994,108.5407,null,null,null,null,null,null,null,null,null,null,null,null,null,38.924500000000002,"--","--","--",47.3,"--","--",40.1,"--","--",43.8,51.8,68.599999999999994,49.7,46.1,"--","--",null,null,null,null,null,null,null,null,null,"--","--",null,null,null,null,null,64.311400000000006,null,null,null,1399,1394,"--","--",10.791056910569104,14.361056910569104,"--","--","--","--","--","--",515,873.8,101.6,834,3454,252.9,130.18459999999999,205295,4.5423999999999998,"--","--",null,null,null,null,null,39,41.1,null,null,null,null,null,59.3,37,60.3,"--",5.0999999999999996,17779,-98,null,null,70933,-120,null,null,291500,5.4,"--","--","--","--","--","--","--","--",null,null,null,null,null,null,null,null,null,null,null,null,null,36.9,"--",40.200000000000003,null,null,null,null,null,8,6.61,8.1300000000000008,9.44,130.99999999999989,"--",6.41,6.98,"--",7.57,7.53,"--",null,null,null,null,null,"--","--","--","--","--","--","--","--","--",null,null,null,null,null,3.31,"--","--","--","--","--","--","--","--"]
["1971-01-01",null,null,null,0,0,0,0,null,null,null,null,null,null,null,null,null,null,null,null,null,null,null,79.7,111.5479,null,null,null,null,null,null,null,null,null,null,null,null,null,38.814399999999999,"--","--","--",47.9,"--","--",40,"--","--",47.4,55.4,65.099999999999994,50.5,39.799999999999997,"--","--",null,null,null,null,null,null,null,null,null,"--","--",null,null,null,null,null,65.526499999999999,null,null,null,1828,1643,"--","--",11.177044854881274,15.307044854881276,"--","--","--","--","--","--",618,898.2,105.1,1004,3505.4,263.60000000000002,134.16409999999999,206466,7.1689999999999996,"--","--",null,null,null,null,null,39.9,42.1,null,null,null,null,null,58.7,36.799999999999997,60.4,"--",5.9,17280,-29,null,null,70866,76,null,null,300500,6.2,"--","--","--","--","--","--","--","--",null,null,null,null,null,null,null,null,null,null,null,null,null,37.299999999999997,"--",41.3,null,null,null,null,null,6.29,4.1399999999999997,7.36,8.74,138,"--",4.4400000000000004,4.57,"--",5.89,6.24,"--",null,null,null,null,null,1.0118,"--","--","--","--","--","--","--","--",null,null,null,null,null,3.56,"--","--","--","--","--","--","--","--"]
["1971-03-01",null,null,null,0,0,0,0,null,null,null,null,null,null,null,null,null,null,null,null,null,null,null,79.099999999999994,111.9877,null,null,null,null,null,null,null,null,null,null,null,null,null,38.698500000000003,"--","--","--",51.2,"--","--",44.3,"--","--",51.2,56.2,67,54.4,45,"--","--",null,null,null,null,null,null,null,null,null,"--","--",null,null,null,null,null,66.540300000000002,null,null,null,1910,1759,"--","--",10.438642297650141,14.63864229765014,"--","--","--","--","--","--",681,908.2,107.4,1078,3520.7,269.5,135.7363,206855,7.2976000000000001,"--","--",null,null,null,null,null,40,42.2,null,null,null,null,null,58.5,36.700000000000003,60,"--",6,17154,-62,null,null,70859,53,null,null,293000,6.4,"--","--","--","--","--","--","--","--",null,null,null,null,null,null,null,null,null,null,null,null,null,37.799999999999997,"--",41.5,null,null,null,null,null,5.44,3.71,7.21,8.4600000000000009,125.00000000000009,"--",3.38,3.69,"--",5,5.7,"--",null,null,null,null,null,1.0064,"--","--","--","--","--","--","--","--",null,null,null,null,null,3.56,"--","--","--","--","--","--","--","--"]
["1971-11-01",null,null,null,0,0,0,0,null,null,null,null,null,null,null,null,null,null,null,null,null,null,null,80.2,117.8104,null,null,null,null,null,null,null,null,null,null,null,null,null,40.034199999999998,"--","--","--",52.3,"--","--",49.3,"--","--",41.6,55.4,53.9,56.1,50.9,"--","--",null,null,null,null,null,null,null,null,null,"--","--",null,null,null,null,null,72.494200000000006,null,null,null,2182,2079,"--","--",9.5353535353535257,13.735353535353525,"--","--","--","--","--","--",710,957.8,109.4,1225,3619.7,290.2,145.63480000000001,208555,8.3058999999999994,"--","--",null,null,null,null,null,41,43.2,null,null,null,null,null,59.6,36.9,60.4,"--",6,17166,40,null,null,71846,204,null,null,287000,6.4,"--","--","--","--","--","--","--","--",null,null,null,null,null,null,null,null,null,null,null,null,null,38.299999999999997,"--",41.8,null,null,null,null,null,5.53,4.91,7.26,8.3800000000000008,112.0000000000001,7.55,4.22,4.67,"--",5.78,5.81,"--",null,null,null,null,null,1.0039,"--","--","--","--","--","--","--","--",null,null,null,null,null,3.56,"--","--","--","--","--","--","--","--"]
["1972-02-01",null,null,null,0,0,0,0,null,null,null,null,null,null,null,null,null,null,null,null,null,null,null,83.2,118.8982,null,null,null,null,null,null,null,null,null,null,null,null,null,41.861600000000003,37.148099999999999,"--","--",60.6,"--","--",54.4,"--","--",51.7,66,74.099999999999994,67.7,52.6,"--","--",null,null,null,null,null,null,null,null,null,"--","--",null,null,null,null,null,74.970200000000006,null,null,null,2390,2169,"--","--",9.4593984962406061,13.449398496240606,"--","--","--","--","--","--",711,987.6,109.8,1249,3644,297.10000000000002,148.92449999999999,209061,8.0937999999999999,"--","--",null,null,null,null,null,41.4,43.6,null,null,null,null,null,60.4,36.9,60.2,"--",5.7,17361,78,null,null,72652,207,null,null,267250,6.6,"--","--","--","--","--","--","--","--",null,null,null,null,null,null,null,null,null,null,null,null,null,39.200000000000003,"--",42.5,null,null,null,null,null,4.75,3.29,7.27,8.23,96.000000000000085,7.33,3.2,4.2699999999999996,"--",5.69,6.08,"--",null,null,null,null,null,1.0046999999999999,"--","--","--","--","--","--","--","--",null,null,null,null,null,3.56,"--","--","--","--","--","--","--","--"]
["1972-08-01",null,null,null,0,0,0,0,null,null,null,null,null,null,null,null,null,null,null,null,null,null,null,84.7,126.00830000000001,null,null,null,null,null,null,null,null,null,null,null,null,null,43.256799999999998,38.516800000000003,"--","--",61.7,"--","--",57.1,"--","--",55.5,65.099999999999994,70.099999999999994,63.2,62.9,"--","--",null,null,null,null,null,null,null,null,null,"--","--",null,null,null,null,null,81.402199999999993,null,null,null,2382,2263,"--","--",8.5484029484029271,12.468402948402929,"--","--","--","--","--","--",773,1030.5999999999999,106.9,1345,3755.5,311.2,158.93940000000001,210075,9.1332000000000004,"--","--",null,null,null,null,null,41.9,44.3,null,null,null,null,null,61.5,36.799999999999997,60.6,"--",5.6,17741,185,null,null,74138,430,null,null,253500,6,"--","--","--","--","--","--","--","--",null,null,null,null,null,null,null,null,null,null,null,null,null,40.1,"--",42.9,null,null,null,null,null,5.27,4.8,7.19,8.19,99.999999999999915,7.4,4.0199999999999996,4.9800000000000004,"--",6.02,6.21,"--",null,null,null,null,null,0.98240000000000005,"--","--","--","--","--","--","--","--",null,null,null,null,null,3.56,"--","--","--","--","--","--","--","--"]
["1972-09-01",null,null,null,0,0,0,0,null,null,null,null,null,null,null,null,null,null,null,null,null,null,null,85.1,126.95740000000001,null,null,null,null,null,null,null,null,null,null,null,null,null,43.583799999999997,38.787399999999998,"--","--",65.099999999999994,"--","--",58.6,"--","--",56.8,69.3,67.8,68.3,65.5,"--","--",null,null,null,null,null,null,null,null,null,"--","--",null,null,null,null,null,82.446899999999999,null,null,null,2481,2393,"--","--",8.6862745098039333,12.536274509803931,"--","--","--","--","--","--",767,1038.9000000000001,109.4,1399,3769.3,314.3,160.55330000000001,210278,9.3077000000000005,"--","--",null,null,null,null,null,42.1,44.3,null,null,null,null,null,61.7,36.9,60.4,"--",5.5,17774,33,null,null,74263,125,null,null,257500,5.6,"--","--","--","--","--","--","--","--",null,null,null,null,null,null,null,null,null,null,null,null,null,40.200000000000003,"--",43,null,null,null,null,null,5.5,4.87,7.22,8.09,87.000000000000014,7.42,4.66,5.52,"--",6.25,6.55,"--",null,null,null,null,null,0.98299999999999998,"--","--","--","--","--","--","--","--",null,null,null,null,null,3.56,"--","--","--","--","--","--","--","--"]
["1973-01-01",null,null,null,0,0,0,0,null,null,null,null,null,null,null,null,null,null,null,null,null,null,null,87.8,135.4135,null,null,null,null,null,null,null,null,null,null,null,null,null,45.497999999999998,40.758499999999998,"--","--",72.099999999999994,"--","--",67.8,"--","--",61,73.8,82.9,71.099999999999994,83.7,"--","--",null,null,null,null,null,null,null,null,null,"--","--",null,null,null,null,null,86.477400000000003,null,null,null,2481,2271,"--","--",8.5407766990291361,11.970776699029136,"--","--","--","--","--","--",781,1084.0999999999999,115.7,1431,3902,322.7,169.29470000000001,210985,9.3809000000000005,"--","--",null,null,null,null,null,42.7,44.6,null,null,null,null,null,63,36.799999999999997,60,"--",4.9000000000000004,18276,118,null,null,75621,351,null,null,228500,5.7,"--","--","--","--","--","--","--","--",null,null,null,null,null,null,null,null,null,null,null,null,null,41.6,"--",43,null,null,null,null,null,6,5.94,7.15,7.9,75,7.44,5.41,5.89,"--",6.34,6.46,"--",null,null,null,null,null,0.99929999999999997,"--","--","--",33.968899999999998,108.1883,"--","--","--",null,null,null,null,null,3.56,"--","--","--",0,"--","--","--","--"]
["1973-08-01",null,null,null,0,0,0,0,null,null,null,null,null,null,null,null,null,null,null,null,null,null,null,87.7,158.06809999999999,null,null,null,null,null,null,null,null,null,null,null,null,null,46.566899999999997,41.777200000000001,"--","--",62.7,"--","--",54.9,"--","--",62.1,59.1,86.1,59,86.7,"--","--",null,null,null,null,null,null,null,null,null,"--","--",null,null,null,null,null,95.283299999999997,null,null,null,2051,1809,"--","--",12.198568019093088,15.558568019093087,"--","--","--","--","--","--",566,1149.5999999999999,137.80000000000001,1106,3963,325.89999999999998,184.32650000000001,212092,10.800800000000001,"--","--",null,null,null,null,null,45,45.7,null,null,null,null,null,64.400000000000006,36.9,60.7,"--",4.8,18629,31,null,null,77166,255,null,null,254750,4.9000000000000004,"--","--","--","--","--","--","--","--",null,null,null,null,null,null,null,null,null,null,null,null,null,47.5,"--",44.4,null,null,null,null,null,9.23,10.5,7.68,8.5299999999999994,84.999999999999972,8.5,8.67,8.82,"--",7.63,7.4,"--",null,null,null,null,null,1.0039,"--","--","--",30.9817,97.696899999999999,"--","--","--",null,null,null,null,null,4.3099999999999996,"--","--","--",0,"--","--","--","--"]
["1973-11-01",null,null,null,0,0,0,0,null,null,null,null,null,null,null,null,null,null,null,null,null,null,null,88.7,159.93530000000001,null,null,null,null,null,null,null,null,null,null,null,null,null,47.548000000000002,42.851300000000002,"--","--",68.099999999999994,"--","--",60.8,"--","--",63.8,65.2,97.6,62,96.8,"--","--",null,null,null,null,null,null,null,null,null,"--","--",null,null,null,null,null,97.775800000000004,null,null,null,1724,1402,"--","--",13.054716981132071,16.41471698113207,"--","--","--","--","--","--",547,1190.2,146.80000000000001,960,4024.7,325.8,189.30879999999999,212634,11.362299999999999,"--","--",null,null,null,null,null,45.9,46.5,null,null,null,null,null,65,36.9,61.2,"--",4.8,18773,71,null,null,77912,306,null,null,256250,5.0999999999999996,"--","--","--","--","--","--","--","--",null,null,null,null,null,null,null,null,null,null,null,null,null,46.5,"--",44.9,null,null,null,null,null,9.75,10.029999999999999,7.67,8.42,75,8.58,7.83,7.57,"--",6.92,6.73,"--",null,null,null,null,null,0.99909999999999999,"--","--","--",31.932200000000002,100.3968,"--","--","--",null,null,null,null,null,4.3099999999999996,"--","--","--",0,"--","--","--","--"]
["1974-03-01",null,null,null,0,0,0,0,null,null,null,null,null,null,null,null,null,null,null,null,null,null,null,86.7,168.8168,null,null,null,null,null,null,null,null,null,null,null,null,null,46.973300000000002,42.313200000000002,"--","--",61.8,"--","--",56.3,"--","--",59.1,58,94,55.8,88.9,"--","--",null,null,null,null,null,null,null,null,null,"--","--",null,null,null,null,null,100.3,null,null,null,1555,1440,"--","--",15.238248847926267,18.808248847926265,"--","--","--","--","--","--",572,1210.3,138.69999999999999,970,3921,328.8,193.358,213211,11.377000000000001,"--","--",null,null,null,null,null,47.8,47.6,null,null,null,null,null,64.599999999999994,36.6,61.3,"--",5.0999999999999996,18700,-27,null,null,78296,42,null,null,311600,4.8,"--","--","--","--","--","--","--","--",null,null,null,null,null,null,null,null,null,null,null,null,null,50.6,50.5,46.8,null,null,null,null,null,8.85,9.35,8.01,8.6199999999999992,60.999999999999943,8.41,7.96,7.76,"--",7.31,7.21,"--",null,null,null,null,null,0.97199999999999998,"--","--","--",32.285899999999998,101.36499999999999,1782.8,7.1,341.7,null,null,null,null,null,10.11,"--","--","--",0,"--","--","--","--"]
["1974-09-01",null,null,null,0,0,0,0,null,null,null,null,null,null,null,null,null,null,null,null,null,null,null,85.1,187.9941,null,null,null,null,null,null,null,null,null,null,null,null,null,46.716099999999997,42.095999999999997,"--","--",46.2,"--","--",44.9,"--","--",54.8,41.2,81,46.3,51.8,"--","--",null,null,null,null,null,null,null,null,null,"--","--",null,null,null,null,null,102.4773,null,null,null,1150,840,"--","--",17.846902654867243,21.976902654867242,"--","--","--","--","--","--",511,1276.5,138.30000000000001,860,3907.5,332.7,199.61709999999999,214246,13.2509,"--","--",null,null,null,null,null,50.6,50.7,null,null,null,null,null,64.2,36.4,61.4,"--",5.9,18492,-78,null,null,78611,-8,null,null,360750,5.3,"--","--","--","--","--","--","--","--",null,null,null,null,null,null,null,null,null,null,null,null,null,55.9,55.7,53.1,null,null,null,null,null,12,11.34,9.24,10.18,93.999999999999943,9.9600000000000009,8.06,8.8699999999999992,"--",8.3699999999999992,8.0399999999999991,"--",null,null,null,null,null,0.98640000000000005,"--","--","--",32.979999999999997,103.4849,1845.7,12.4,265.2,null,null,null,null,null,10.11,"--","--","--",0,"--","--","--","--"]
["1975-02-01",null,null,null,0,0,0,0,null,null,null,null,null,null,null,null,null,null,null,null,null,null,null,75.5,190.38050000000001,null,null,null,null,null,null,null,null,null,null,null,null,null,41.830100000000002,36.742199999999997,"--","--",34.4,"--","--",33.1,"--","--",30.6,40,48.8,41.5,15.9,"--","--",null,null,null,null,null,null,null,null,null,"--","--",null,null,null,null,null,102.0968,null,null,null,904,729,"--","--",19.305073995771686,24.975073995771687,"--","--","--","--","--","--",422,1316.2,140.30000000000001,667,3906.1,343.9,199.5078,215065,13.2216,"--","--",null,null,null,null,null,52.6,52.8,null,null,null,null,null,60.9,35.9,61,"--",8.1,17004,{"$f":"+DL204-DL203","v":-340},null,null,76919,-378,null,null,544500,7.1,"--","--","--","--","--","--","--","--",null,null,null,null,null,null,null,null,null,null,null,null,null,57.2,58.7,56.7,null,null,null,null,null,8.9600000000000009,6.24,8.6199999999999992,10.65,203.00000000000011,9.11,5.5,5.98,"--",7.11,7.39,"--",null,null,null,null,null,1.0004,"--","--","--",32.387500000000003,99.206299999999999,1624.9,10.5,220.7,null,null,null,null,null,11.16,"--","--","--",0,"--","--","--","--"]
["1975-06-01",null,null,null,0,0,0,0,null,null,null,null,null,null,null,null,null,null,null,null,null,null,null,74.599999999999994,184.63800000000001,null,null,null,null,null,null,null,null,null,null,null,null,null,41.604199999999999,36.489199999999997,"--","--",45.1,"--","--",43.9,"--","--",28.7,54.9,44,53.1,24.9,"--","--",null,null,null,null,null,null,null,null,null,"--","--",null,null,null,null,null,101.102,null,null,null,1087,946,"--","--",17.983673469387753,24.143673469387757,"--","--","--","--","--","--",557,1372.9,170.9,872,4068.6,365.6,196.04339999999999,215768,13.590999999999999,"--","--",null,null,null,null,null,53.5,53.8,null,null,null,null,null,60.4,35.9,61.2,"--",8.8000000000000007,16690,-56,null,null,76520,-103,null,null,495500,8.8000000000000007,"--","--","--","--","--","--","--","--",null,null,null,null,null,null,null,null,null,null,null,null,null,58,59.5,58,null,null,null,null,null,7.07,5.55,8.77,10.62,184.99999999999997,8.89,5.34,6.29,"--",7.51,7.86,"--",null,null,null,null,null,1.0264,"--","--","--",33.044199999999996,100.28619999999999,1856.5,7.9,269.89999999999998,null,null,null,null,null,11.16,"--","--","--",0,"--","--","--","--"]
["1975-09-01",null,null,null,0,0,0,0,null,null,null,null,null,null,null,null,null,null,null,null,null,null,null,76.599999999999994,182.822,null,null,null,null,null,null,null,null,null,null,null,null,null,42.970799999999997,38.0456,"--","--",54.4,"--","--",53.5,"--","--",34.200000000000003,60.4,73.599999999999994,62.3,43.8,"--","--",null,null,null,null,null,null,null,null,null,"--","--",null,null,null,null,null,102.182,null,null,null,1264,1064,"--","--",16.305138339920948,22.185138339920947,"--","--","--","--","--","--",556,1396.4,156.80000000000001,957,4044.6,377.7,199.429,216393,14.490600000000001,"--","--",null,null,null,null,null,54.6,54.5,null,null,null,null,null,61.6,36.1,61.2,"--",8.4,16904,80,null,null,77230,75,null,null,445250,9.1999999999999993,"--","--","--","--","--","--","--","--",null,null,null,null,null,null,null,null,null,null,null,null,null,59.4,60.2,58.9,null,null,null,null,null,7.88,6.24,8.9499999999999993,10.61,166,9.1300000000000008,6.42,7.75,"--",8.3699999999999992,8.43,"--",null,null,null,null,null,1.0263,"--","--","--",34.802,105.587,1855,14.1,272,null,null,null,null,null,11.16,"--","--","--",0,"--","--","--","--"]
["1976-04-01",null,null,null,0,0,0,0,null,null,null,null,null,null,null,null,null,null,null,null,null,null,null,79.400000000000006,177.47550000000001,null,null,null,null,null,null,null,null,null,null,null,null,null,45.173299999999998,40.335799999999999,"--","--",60.6,"--","--",56.4,"--","--",51.4,65.2,75.900000000000006,64.099999999999994,57.3,"--","--",null,null,null,null,null,null,null,null,null,"--","--",null,null,null,null,null,107.5967,null,null,null,1395,1132,"--",12.914999999999999,13.549056603773595,18.939056603773594,"--","--","--","--","--","--",611,1468.9,146.1,1076,4127.3,413.8,210.5001,217528,14.596,"--","--",null,null,null,null,null,56.1,56.7,null,null,null,null,null,63.3,36,61.6,"--",7.7,17541,71,null,null,79292,243,null,null,370250,8.1999999999999993,"--","--","--","--","--","--","--","--",null,null,null,null,null,null,null,null,null,null,null,null,null,60.6,62.3,61.3,null,null,null,null,null,6.75,4.82,8.4,9.94,153.99999999999991,8.73,4.8600000000000003,5.92,"--",7.25,7.56,"--",null,null,null,null,null,0.98360000000000003,"--","--","--",35.579000000000001,106.6371,2360.6999999999998,14,309.39999999999998,null,null,null,null,null,12.17,"--","--","--",0,"--","--","--","--"]
["1976-08-01",null,null,null,0,0,0,0,null,null,null,null,null,null,null,null,null,null,null,null,null,null,null,80.099999999999994,179.79490000000001,null,null,null,null,null,null,null,null,null,null,null,null,null,45.969799999999999,41.113900000000001,"--","--",54.5,"--","--",52.1,"--","--",52.4,57.7,73.3,52.9,55.2,"--","--",null,null,null,null,null,null,null,null,null,"--","--",null,null,null,null,null,111.5089,null,null,null,1550,1309,"--",12.593999999999999,13.519557195571956,18.979557195571957,"--","--","--","--","--","--",648,1514.6,149.4,1177,4160.8,428.5,216.50989999999999,218233,15.900499999999999,"--","--",null,null,null,null,null,57.3,57.9,null,null,null,null,null,63.7,36,61.8,"--",7.8,17596,72,null,null,79704,157,null,null,388500,7.9,"--","--","--","--","--","--","--","--",null,null,null,null,null,null,null,null,null,null,null,null,null,61.4,63.5,62.5,null,null,null,null,null,7.01,5.29,8.4499999999999993,9.64,119.00000000000013,9,5.14,6,6.63,7.31,7.77,113.99999999999997,null,null,null,null,null,0.98540000000000005,"--","--","--",35.6569,106.3905,2095.8000000000002,18.899999999999999,277,null,null,null,null,null,12.17,"--","--","--",0,"--","--","--","--"]
["1977-02-01",null,null,null,0,0,0,0,null,null,null,null,null,null,null,null,null,null,null,null,null,null,null,82,187.41130000000001,null,null,null,null,null,null,null,null,null,null,null,null,null,47.733499999999999,42.790799999999997,"--","--",55,"--","--",51.5,"--","--",51.9,56.8,76.8,50.8,65.099999999999994,"--","--",null,null,null,null,null,null,null,null,null,"--","--",null,null,null,null,null,119.0561,null,null,null,1943,1560,"--",14.335000000000001,13.68228980322003,19.00228980322003,"--","--","--","--","--","--",839,1580.6,117.6,1503,4149.6000000000004,463.3,228.5282,219344,30.533899999999999,"--","--",null,null,null,null,null,59.3,59.7,null,null,null,null,null,64.8,36,61.9,"--",7.6,17843,40,null,null,80988,296,null,null,450750,7.2,"--","--","--","--","--","--","--","--",null,null,null,null,null,null,null,null,null,null,null,null,null,63.5,65.400000000000006,64.3,null,null,null,null,null,6.25,4.68,8.0399999999999991,9.1199999999999992,108,8.67,4.67,5.47,6.09,6.83,7.39,129.99999999999997,null,null,null,null,null,1.0279,"--","--","--",36.976500000000001,107.2946,2229.8000000000002,17.100000000000001,369,null,null,null,null,null,13.9,"--","--","--",0,"--","--","--","--"]
["1977-03-01",null,null,null,0,0,0,0,null,null,null,null,null,null,null,null,null,null,null,null,null,null,null,82.8,189.15469999999999,null,null,null,null,null,null,null,null,null,null,null,null,null,48.341500000000003,43.4178,"--","--",58.4,"--","--",54.3,"--","--",54.7,63.5,80.900000000000006,62.5,49.6,"--","--",null,null,null,null,null,null,null,null,null,"--","--",null,null,null,null,null,120.785,null,null,null,2063,1660,"--",14.782,13.828571428571429,19.008571428571429,"--","--","--","--","--","--",872,1596.6,137.80000000000001,1486,4211.2,466.3,232.34829999999999,219504,30.997900000000001,"--","--",null,null,null,null,null,59.6,60,null,null,null,null,null,65.099999999999994,35.9,62,"--",7.4,17941,98,null,null,81391,403,null,null,358200,7.2,"--","--","--","--","--","--","--","--",null,null,null,null,null,null,null,null,null,null,null,null,null,64.099999999999994,65.7,64.7,null,null,null,null,null,6.25,4.6900000000000004,8.1,9.1199999999999992,101.99999999999996,8.69,4.5999999999999996,5.5,6.09,6.93,7.46,137,null,null,null,null,null,1.0512999999999999,"--","--","--",37.069400000000002,107.5026,2780.8,19.8,430.8,null,null,null,null,null,13.9,"--","--","--",0,"--","--","--","--"]
["1977-07-01",null,null,null,0,0,0,0,null,null,null,null,null,null,null,null,null,null,null,null,null,null,null,84.2,195.18350000000001,null,null,null,null,null,null,null,null,null,null,null,null,null,49.6389,44.633800000000001,"--","--",57.7,"--","--",54.5,"--","--",52,58.9,69,60.6,58.3,"--","--",null,null,null,null,null,null,null,null,null,"--","--",null,null,null,null,null,128.44820000000001,null,null,null,2058,1687,"--",14.305999999999999,13.566666666666666,18.396666666666665,"--","--","--","--","--","--",755,1659.7,148,1450,4279,477.6,245.4811,220239,33.966900000000003,"--","--",null,null,null,null,null,60.8,61.2,null,null,null,null,null,66.3,35.9,62.1,"--",6.9,18259,67,null,null,82836,348,null,null,367000,7.1,"--","--","--","--","--","--","--","--",null,null,null,null,null,null,null,null,null,null,null,null,null,65.099999999999994,66.8,66,null,null,null,null,null,6.75,5.42,7.94,8.8699999999999992,92.999999999999886,8.94,5.19,5.94,6.27,6.84,7.33,106.00000000000006,null,null,null,null,null,1.0611999999999999,"--","--","--",36.771000000000001,105.5779,2255.3000000000002,15.1,345.5,null,null,null,null,null,13.9,"--","--","--",0,"--","--","--","--"]
["1978-02-01",null,null,null,0,0,0,0,null,null,null,null,null,null,null,null,null,null,null,null,null,null,null,82.6,210.25899999999999,null,null,null,null,null,null,null,null,null,null,null,null,null,49.661799999999999,45.0488,"--","--",55.9,"--","--",52.8,"--","--",54,56.2,74.400000000000006,54.6,63.4,"--","--",null,null,null,null,null,null,null,null,null,"--","--",null,null,null,null,null,141.91380000000001,null,null,null,1738,1736,"--",13.968999999999999,12.539460370994941,16.949460370994942,"--","--","--","--","--","--",791,1773,166.7,1235,4409.6000000000004,496.4,265.738,221629,36.894199999999998,84.3,"--",null,null,null,null,null,63,63.4,null,null,null,null,null,67.3,35.6,62.7,"--",6.3,18639,46,null,null,84948,353,null,null,383250,6.7,"--","--","--","--","--","--","--","--",null,null,null,null,null,null,null,null,null,null,null,null,null,67.5,69.5,69.099999999999994,null,null,null,null,null,8,6.78,8.4700000000000006,9.1999999999999993,72.999999999999858,9.16,6.45,7.34,7.57,7.83,8.0299999999999994,45.999999999999908,null,null,null,null,null,1.113,"--","--","--",35.935699999999997,100.96850000000001,2591.8000000000002,24.5,446.7,null,null,null,null,null,14.85,"--","--","--",0,"--","--","--","--"]
["1978-04-01",null,null,null,0,0,0,0,null,null,null,null,null,null,null,null,null,null,null,null,null,null,null,85.4,216.99789999999999,null,null,null,null,null,null,null,null,null,null,null,null,null,51.663899999999998,46.597299999999997,"--","--",57.7,"--","--",53.8,"--","--",52.4,60.2,78.7,60.3,57.1,"--","--",null,null,null,null,null,null,null,null,null,"--","--",null,null,null,null,null,146.41460000000001,null,null,null,2197,1948,"--",15.757,12.599999999999994,16.869999999999994,"--","--","--","--","--","--",864,1817.9,164.2,1517,4459.5,498.6,274.137,221991,38.343000000000004,81.599999999999994,"--",null,null,null,null,null,63.9,64.3,null,null,null,null,null,68.8,35.799999999999997,63,"--",6.1,18772,73,null,null,86163,702,null,null,324250,6.1,"--","--","--","--","--","--","--","--",null,null,null,null,null,null,null,null,null,null,null,null,null,69,70.599999999999994,69.900000000000006,null,null,null,null,null,8,6.89,8.56,9.32,75.999999999999972,9.36,6.29,7.45,7.74,7.98,8.15,41.000000000000014,null,null,null,null,null,1.1416999999999999,"--","--","--",35.6907,99.650999999999996,2804.7,35.1,459.8,null,null,null,null,null,14.85,"--","--","--",0,"--","--","--","--"]
["1978-09-01",null,null,null,0,0,0,0,null,null,null,null,null,null,null,null,null,null,null,null,null,null,null,85.6,230.50110000000001,null,null,null,null,null,null,null,null,null,null,null,null,null,52.5124,47.630499999999998,"--","--",60.5,"--","--",57.2,"--","--",54.5,61.3,86.8,65,60,"--","--",null,null,null,null,null,null,null,null,null,"--","--",null,null,null,null,null,159.5009,null,null,null,1970,1751,"--",14.195,14.482871125611746,18.682871125611747,"--","--","--","--","--","--",812,1901.9,166.9,1389,4495.2,495.1,296.17939999999999,223053,43.510399999999997,80.400000000000006,"--",null,null,null,null,null,66.5,66.7,null,null,null,null,null,70.2,35.799999999999997,63.3,"--",6,19068,62,null,null,87618,137,null,null,325000,5.6,"--","--","--","--","--","--","--","--",null,null,null,null,null,null,null,null,null,null,null,null,null,71,73.5,72.599999999999994,null,null,null,null,null,9.41,8.4499999999999993,8.69,9.42,73.000000000000043,9.76,7.85,8.64,8.57,8.43,8.42,-15.000000000000036,null,null,null,null,null,1.1664000000000001,"--","--","--",34.330599999999997,94.244600000000005,2789.9,27.4,523,null,null,null,null,null,14.85,"--","--","--",0,"--","--","--","--"]
["1979-02-01",null,null,null,0,0,0,0,null,null,null,null,null,null,null,null,null,null,null,null,null,null,null,86.2,243.8766,null,null,null,null,null,null,null,null,null,null,null,null,null,53.567500000000003,48.569000000000003,"--","--",58.2,"--","--",55.6,"--","--",51.4,58.6,86.5,59,64,"--","--",null,null,null,null,null,null,null,null,null,"--","--",null,null,null,null,null,166.5728,null,null,null,1520,1492,"--",14.856,15.741269841269851,19.87126984126985,"--","--","--","--","--","--",723,1998.1,183,1052,4573.8999999999996,466.7,313.52379999999999,224053,45.807099999999998,73.900000000000006,"--",null,null,null,null,null,69.2,69.2,null,null,null,null,null,71.2,35.700000000000003,63.8,"--",5.9,19409,21,null,null,89054,244,null,null,358500,5.9,"--","--","--","--","--","--","--","--",null,null,null,null,null,null,null,null,null,null,null,null,null,74.900000000000006,75.900000000000006,75.2,null,null,null,null,null,11.75,10.06,9.26,10.08,82.000000000000028,10.41,9.32,10.24,9.7200000000000006,9.1300000000000008,9.1,-62.000000000000099,null,null,null,null,null,1.1956,"--","--","--",34.8596,95.045900000000003,2893.1,25.7,657.2,null,null,null,null,null,15.85,"--","--","--",0,"--","--","--","--"]
["1979-08-01",null,null,null,0,0,0,0,null,null,null,null,null,null,null,null,null,null,null,null,null,null,null,84.3,270.64519999999999,null,null,null,null,null,null,null,null,null,null,null,null,null,53.119500000000002,48.071599999999997,"--","--",49.5,"--","--",50.5,"--","--",51.6,46.9,85.6,49,52.9,"--","--",null,null,null,null,null,null,null,null,null,"--","--",null,null,null,null,null,180.67840000000001,null,null,null,1778,1591,"--",13.999000000000001,17.836115326251885,22.036115326251881,"--","--","--","--","--","--",729,2105.3000000000002,168.4,1223,4557,457.1,335.78550000000001,225295,51.271500000000003,64.5,"--",null,null,null,null,null,73.7,72.7,null,null,null,null,null,71.8,35.6,63.6,"--",6,19406,-125,null,null,90297,82,null,null,388000,4.8,"--","--","--","--","--","--","--","--",null,null,null,null,null,null,null,null,null,null,null,null,null,79.599999999999994,78.8,77.8,null,null,null,null,null,11.91,10.94,9.23,10.35,111.99999999999991,11.09,9.52,9.98,9.4600000000000009,9.06,9.0299999999999994,-43.000000000000149,null,null,null,null,null,1.1706000000000001,"--","--","--",35.218400000000003,94.793400000000005,2850.2,54.6,759.4,null,null,null,null,null,26.5,"--","--","--",0,"--","--","--","--"]
["1979-12-01",null,null,null,0,0,0,0,null,null,null,null,null,null,null,null,null,null,null,null,null,null,null,84.1,279.72570000000002,null,null,null,null,null,null,null,null,null,null,null,null,null,53.453600000000002,48.371899999999997,"--","--",44.8,"--","--",44.1,"--","--",43.5,44.3,84.4,48.2,42.2,"--","--",null,null,null,null,null,null,null,null,null,"--","--",null,null,null,null,null,183.78110000000001,null,null,null,1498,1254,"--",13.198,19.254786450662735,23.454786450662738,"--","--","--","--","--","--",559,2192.4,187,1016,4587.6000000000004,423.8,348.58909999999997,226243,53.596400000000003,61,"--",null,null,null,null,null,76.900000000000006,75.7,null,null,null,null,null,72,35.5,63.9,"--",6,19301,2,null,null,90673,97,null,null,431250,5.7,"--","--","--","--","--","--","--","--",null,null,null,null,null,null,null,null,null,null,null,null,null,83.4,81.7,80.599999999999994,null,null,null,null,null,15.3,13.78,10.74,12.06,132.00000000000003,12.9,12.04,11.98,11.39,10.42,10.39,-100,null,null,null,null,null,1.17,"--","--","--",35.884999999999998,95.948300000000003,3410.7,69.900000000000006,936.7,null,null,null,null,null,32.5,"--","--","--",0,"--","--","--","--"]
["1980-03-01",null,null,null,0,0,0,0,null,null,null,null,null,null,null,null,null,null,null,null,null,null,null,83.8,289.38440000000003,null,null,null,null,null,null,null,null,null,null,null,null,null,53.548099999999998,48.162399999999998,"--","--",43.6,"--","--",43.2,"--","--",43,43.8,84,46.7,39.1,"--","--",null,null,null,null,null,null,null,null,null,"--","--",null,null,null,null,null,186.4768,null,null,null,1047,988,"--",11.797000000000001,20.892274678111573,25.302274678111573,"--","--","--","--","--","--",474,2243.3000000000002,191.9,633,4557.1000000000004,400.1,353.0421,226849,54.139099999999999,56.5,"--",null,null,null,null,null,80.099999999999994,78.599999999999994,null,null,null,null,null,71.7,35.299999999999997,63.7,"--",6.3,19217,-2,null,null,90994,112,null,null,433800,6,"--","--","--","--","--","--","--","--",null,null,null,null,null,null,null,null,null,null,null,null,null,87.5,84.7,83.1,null,null,null,null,null,18.309999999999999,17.190000000000001,12.96,14.45,148.99999999999983,15.28,15.2,15.82,14.88,13.47,12.75,-213.00000000000009,null,null,null,null,null,1.1731,"--","--","--",37.146500000000003,98.941000000000003,3724.8,58.4,1095.8,null,null,null,null,null,38,"--","--","--",0,"--","--","--","--"]
["1980-10-01",null,null,null,0,0,0,0,null,null,null,null,null,null,null,null,null,null,null,null,null,null,null,79.900000000000006,299.95729999999998,null,null,null,null,null,null,null,null,null,null,null,null,null,51.812899999999999,46.402900000000002,"--","--",55.5,"--","--",49.4,"--","--",43.9,63.7,75.2,60.7,46.5,"--","--",null,null,null,null,null,null,null,null,null,"--","--",null,null,null,null,null,178.5137,null,null,null,1523,1366,"--",11.146000000000001,20.132978723404253,25.382978723404253,"--","--","--","--","--","--",561,2417.1999999999998,231.8,1009,4653.2,419.7,349.59769999999997,228417,54.357300000000002,75,"--",null,null,null,null,null,84.7,83,null,null,null,null,null,70.7,35.200000000000003,63.7,"--",7.5,18506,61,null,null,90491,281,null,null,434200,7.5,"--","--","--","--","--","--","--","--",null,null,null,null,null,null,null,null,null,null,null,null,null,92.8,89.6,88.8,null,null,null,null,null,13.79,12.81,12.31,14.23,192,13.79,11.62,12.49,12.09,11.86,11.75,-33.999999999999986,null,null,null,null,null,1.1691,"--","--","--",36.053600000000003,93.4495,3880.1,103.8,1112.7,null,null,null,null,null,36,"--","--","--",0,"--","--","--","--"]
["1981-02-01",null,null,null,0,0,0,0,null,null,null,null,null,null,null,null,null,null,null,null,null,null,null,80.099999999999994,313.11700000000002,null,null,null,null,null,null,null,null,null,null,null,null,null,52.463299999999997,46.9908,"--","--",48.8,"--","--",46.3,"--","--",42.1,51.1,70.900000000000006,50.9,48.5,"--","--",null,null,null,null,null,null,null,null,null,"--","--",null,null,null,null,null,179.13550000000001,null,null,null,1246,1199,"--",12.116,18.792405063291135,23.972405063291134,"--","--","--","--","--","--",510,2501.4,225,806,4646.2,375,354.745,229071,55.811399999999999,66.900000000000006,"--",null,null,null,null,null,88,85.9,null,null,null,null,null,71.2,35.200000000000003,63.9,"--",7.4,18613,-26,null,null,91105,68,null,null,425000,7.1,"--","--","--","--","--","--","--","--",null,null,null,null,null,null,null,null,null,null,null,null,null,96.1,92,91.7,null,null,null,null,null,19.43,15.93,13.35,15.37,201.99999999999994,15.13,14.79,14.57,13.92,13.41,13.19,-73.000000000000043,null,null,null,null,null,1.1983999999999999,1.6131,"--","--",38.049999999999997,99.119,3633.9,116.1,1172.8,null,null,null,null,null,38,"--","--","--",0,"--","--","--","--"]
["1981-07-01",null,null,null,0,0,0,0,null,null,null,null,null,null,null,null,null,null,null,null,null,null,null,80.5,331.8571,null,null,null,null,null,null,null,null,null,null,null,null,null,53.404400000000003,47.457900000000002,"--","--",46.7,"--","--",46.6,"--","--",44.4,47.6,66.900000000000006,47.6,44.9,"--","--",null,null,null,null,null,null,null,null,null,"--","--",null,null,null,null,null,181.03890000000001,null,null,null,1041,935,"--",10.206,17.974818401937057,23.014818401937056,"--","--","--","--","--","--",431,2626.3,266.89999999999998,698,4743.7,360,364.67770000000002,229966,59.044699999999999,74.099999999999994,"--",null,null,null,null,null,91.5,89.8,null,null,null,null,null,71.8,35.200000000000003,63.8,"--",7.2,18785,-4,null,null,91602,112,null,null,439800,7.1,"--","--","--","--","--","--","--","--",null,null,null,null,null,null,null,null,null,null,null,null,null,99,94.8,95,null,null,null,null,null,20.39,19.04,14.38,16.170000000000002,179.00000000000009,16.829999999999998,14.95,15.72,15.35,14.79,14.28,-107.00000000000003,null,null,null,null,null,1.2107000000000001,1.7646999999999999,"--","--",41.834200000000003,109.6456,3637.5,170,990,null,null,null,null,null,36,"--","--","--",0,"--","--","--","--"]
["1981-09-01",null,null,null,0,0,0,0,null,null,null,null,null,null,null,null,null,null,null,null,null,null,null,79.599999999999994,338.1155,null,null,null,null,null,null,null,null,null,null,null,null,null,53.076099999999997,47.246000000000002,"--","--",42.5,"--","--",39.200000000000003,"--","--",41.9,42.2,65.8,43.8,45.9,"--","--",null,null,null,null,null,null,null,null,null,"--","--",null,null,null,null,null,182.1541,null,null,null,911,847,"--",10.863,18.56543504171632,23.88543504171632,"--","--","--","--","--","--",338,2665.4,273.5,635,4750.2,348.1,369.59570000000002,230412,60.194800000000001,73.099999999999994,"--",null,null,null,null,null,93.1,91.8,null,null,null,null,null,71.400000000000006,35,63.5,"--",7.6,18712,-36,null,null,91479,-87,null,null,473250,6.8,"--","--","--","--","--","--","--","--",null,null,null,null,null,null,null,null,null,null,null,null,null,98.8,95.9,96.1,null,null,null,null,null,20.079999999999998,15.87,15.49,16.920000000000002,143.00000000000014,18.16,14.7,16.52,16.46,15.93,15.32,-114.00000000000006,null,null,null,null,null,1.2008000000000001,1.7542,"--","--",41.837800000000001,108.376,3667.8,182.3,1122.9000000000001,null,null,null,null,null,36,"--","--","--",0,"--","--","--","--"]
["1982-05-01",null,null,null,0,0,0,0,null,null,null,null,null,null,null,null,null,null,null,null,null,null,null,74.2,375.98230000000001,null,null,null,null,null,null,null,null,null,null,null,null,null,50.350499999999997,44.741799999999998,"--","--",35.5,"--","--",27.8,"--","--",28.8,38.1,41.4,37.200000000000003,42.1,"--","--",null,null,null,null,null,null,null,null,null,"--","--",null,null,null,null,null,184.57,null,null,null,1025,953,"--",10.9,16.311928651059098,22.891928651059096,"--","--","--","--","--","--",384,2760.5,281,604,4794.6000000000004,344,380.43880000000001,231809,62.849200000000003,67.5,"--",null,null,null,null,null,95.9,95.4,null,null,null,null,null,69.400000000000006,34.799999999999997,64.2,"--",9.4,17588,-95,null,null,90107,-45,null,null,583800,8.5,"--","--","--","--","--","--","--","--",null,null,null,null,null,null,null,null,null,null,null,null,null,99.8,99.4,99.5,null,null,null,null,null,16.5,14.45,14.26,16.64,238.00000000000009,16.68,12.09,13.34,13.78,13.75,13.62,-16.000000000000014,null,null,null,null,null,1.2336,1.8123,"--","--",44.865299999999998,111.52979999999999,4068.6,163.5,1238.3,null,null,null,null,null,35.93,"--","--","--",0,"--","--","--","--"]
["1982-08-01",null,null,null,0,0,0,0,null,null,null,null,null,null,null,null,null,null,null,null,null,null,null,72.8,385.85930000000002,null,null,null,null,null,null,null,null,null,null,null,null,null,49.607500000000002,44.232300000000002,"--","--",38.299999999999997,"--","--",31.8,"--","--",31.6,40.1,39.200000000000003,39.9,45.3,"--","--",null,null,null,null,null,null,null,null,null,"--","--",null,null,null,null,null,185.89019999999999,null,null,null,1046,926,"--",9.7789999999999999,15.765292841648595,22.625292841648594,"--","--","--","--","--","--",407,2801.3,292.2,654,4819.3,344.2,382.86259999999999,232392,64.804400000000001,65.400000000000006,"--",null,null,null,null,null,97.7,97.1,null,null,null,null,null,68.5,34.700000000000003,64.099999999999994,"--",9.8000000000000007,17160,-118,null,null,89364,-158,null,null,629500,8.6999999999999993,"--","--","--","--","--","--","--","--",null,null,null,null,null,null,null,null,null,null,null,null,null,100.3,100.6,100.7,null,null,null,null,null,14.39,10.119999999999999,13.71,16.32,260.99999999999994,16.27,8.68,11.43,12.32,13,13.06,74.000000000000028,null,null,null,null,null,1.2452000000000001,1.9432,"--","--",48.665100000000002,118.6365,3828.4,303.89999999999998,1435.3,null,null,null,null,null,33.950000000000003,"--","--","--",0,"--","--","--","--"]
["1982-10-01",null,null,null,0,0,0,0,null,null,null,null,null,null,null,null,null,null,null,null,null,null,null,71.8,392.39170000000001,null,null,null,null,null,null,null,null,null,null,null,null,null,49.011000000000003,43.5899,"--","--",39.4,"--","--",30.6,"--","--",32.5,41.9,41,42,46.5,"--","--",null,null,null,null,null,null,null,null,null,"--","--",null,null,null,null,null,186.44309999999999,null,null,null,1173,1149,"--",9.9809999999999999,15.432119914346888,22.712119914346889,"--","--","--","--","--","--",480,2824.9,263.7,737,4818.6000000000004,355.3,384.96719999999999,232816,65.446100000000001,73.400000000000006,"--",null,null,null,null,null,98.1,97.5,null,null,null,null,null,67.7,34.6,64.099999999999994,"--",10.4,16853,-221,null,null,88906,-277,null,null,652400,9.6999999999999993,"--","--","--","--","--","--","--","--",null,null,null,null,null,null,null,null,null,null,null,null,null,100.2,101.3,101.1,null,null,null,null,null,12.52,9.7100000000000009,12.12,14.73,261.00000000000011,14.61,7.71,9.32,10.19,10.8,10.91,72.000000000000057,null,null,null,null,null,1.2301,1.9886999999999999,"--","--",49.882100000000001,121.5483,3907.2,176.7,1299.9000000000001,null,null,null,null,null,35.68,"--","--","--",0,"--","--","--","--"]
["1983-03-01",null,null,null,0,0,0,0,null,null,null,null,null,null,null,null,null,null,null,null,null,null,null,72.3,393.8048,null,null,null,null,null,null,null,null,null,null,null,null,null,49.490600000000001,44.578099999999999,"--","--",53.9,"--","--",45.1,"--","--",44.2,60.8,47.9,58.4,50.8,"--","--",null,null,null,null,null,null,null,null,null,"--","--",null,null,null,null,null,189.25550000000001,null,null,null,1606,1475,"--",10.832000000000001,13.890285110876446,21.100285110876449,"--","--","--","--","--","--",596,2895.8,253.8,998,4897.2,639.20000000000005,395.5831,233613,67.541499999999999,80.8,"--",null,null,null,null,null,98.1,98.2,null,null,null,null,null,68.2,34.700000000000003,63.7,"--",10.3,16711,5,null,null,89090,172,null,null,480400,10.4,"--","--","--","--","--","--","--","--",null,null,null,null,null,null,null,null,null,null,null,null,null,100.4,102.5,102.2,null,null,null,null,null,10.5,8.77,11.73,13.61,187.99999999999989,12.8,8.35,9.0399999999999991,9.66,10.08,10.51,84.999999999999972,null,null,null,null,null,1.2262999999999999,1.9834000000000001,"--","--",50.794699999999999,118.3134,4531.7,154.5,1328.8,null,null,null,null,null,28.82,"--","--","--",0,"--","--","--","--"]
["1983-08-01",null,null,null,0,0,0,0,null,null,null,null,null,null,null,null,null,null,null,null,null,null,null,75.900000000000006,401.58659999999998,null,null,null,null,null,null,null,null,null,null,null,null,null,52.067900000000002,47.119700000000002,"--","--",63.1,"--","--",56,"--","--",49.3,68.099999999999994,69.400000000000006,69.900000000000006,60.2,"--","--",null,null,null,null,null,null,null,null,null,"--","--",null,null,null,null,null,199.82749999999999,null,null,null,1910,1713,"--",12.048,11.956499488229259,18.606499488229257,"--","--","--","--","--","--",572,2986.1,230.5,1155,4979.6000000000004,687.6,413.99360000000001,234501,72.565899999999999,90.9,"--",null,null,null,null,null,100.1,100.1,null,null,null,null,null,69.599999999999994,34.9,64.3,"--",9.5,17118,59,null,null,90132,-308,null,null,435750,9.3000000000000007,"--","--","--","--","--","--","--","--",null,null,null,null,null,null,null,null,null,null,null,null,null,101.8,103.5,103.1,null,null,null,null,null,10.89,9.56,12.51,13.64,113.00000000000009,13.81,9.34,10.53,11.07,11.63,11.85,77.999999999999943,null,null,null,null,null,1.2338,1.9843,"--","--",54.25,123.4772,4055.4,226.9,1491.4,null,null,null,null,null,31.91,"--","--","--",0,"--","--","--","--"]
["1984-02-01",null,null,null,0,0,0,0,null,null,null,null,null,null,null,null,null,null,null,null,null,null,null,79.8,423.58080000000001,null,null,null,null,null,null,null,null,null,null,null,null,null,55.069800000000001,50.381999999999998,"--","--",61.3,"--","--",56.4,"--","--",52.7,64.900000000000006,71.099999999999994,64,61.5,"--","--",null,null,null,null,null,null,null,null,null,"--","--",null,null,null,null,null,218.32929999999999,null,null,null,2260,1987,"--",14.13,12.493877551020397,17.953877551020398,"--","--","--","--","--","--",696,3170.7,311.5,1400,5200.6000000000004,690.8,451.90699999999998,235527,80.704499999999996,97.4,"--",null,null,null,null,null,102.6,102.8,null,null,null,null,null,73.3,35.299999999999997,64.099999999999994,"--",7.8,17728,98,null,null,93154,481,null,null,339250,8.3000000000000007,"--","--","--","--","--","--","--","--",null,null,null,null,null,null,null,null,null,null,null,null,null,103.2,104.7,104.5,null,null,null,null,null,11,9.59,12.08,13.59,150.99999999999997,13.23,9.09,10.039999999999999,10.79,11.54,11.84,105.00000000000007,null,null,null,null,null,1.248,2.0628000000000002,"--","--",56.4816,123.61750000000001,5385.6,235.9,1570.1,null,null,null,null,null,30.145,"--","--","--",0,"--","--","--","--"]
["1984-06-01",null,null,null,0,0,0,0,null,null,null,null,null,null,null,null,null,null,null,null,null,null,null,80.900000000000006,450.97230000000002,null,null,null,null,null,null,null,null,null,null,null,null,null,56.154899999999998,51.246699999999997,"--","--",58.1,"--","--",51.7,"--","--",56.3,60.5,64,62.3,56.2,"--","--",null,null,null,null,null,null,null,null,null,"--","--",null,null,null,null,null,233.41390000000001,null,null,null,1843,1814,"--",14.394,11.525955734406439,16.56595573440644,"--","--","--","--","--","--",630,3275.3,305.5,1086,5314.8,698.1,480.99450000000002,236160,89.418999999999997,95.5,"--",null,null,null,null,null,103.7,104.5,null,null,null,null,null,74,35.1,64.599999999999994,"--",7.2,17967,51,null,null,94479,379,null,null,363000,7.5,"--","--","--","--","--","--","--","--",null,null,null,null,null,null,null,null,null,null,null,null,null,104,105.5,105.2,null,null,null,null,null,12.6,11.06,13.55,15.05,150,14.42,9.8699999999999992,12.08,12.91,13.48,13.56,65.000000000000028,null,null,null,null,null,1.304,2.2178,"--","--",59.0032,126.4933,5744.4,276.60000000000002,1444.7,null,null,null,null,null,29.966999999999999,"--","--","--",0,"--","--","--","--"]
["1984-09-01",null,null,null,0,0,0,0,null,null,null,null,null,null,null,null,null,null,null,null,null,null,null,80.5,461.91480000000001,null,null,null,null,null,null,null,null,null,null,null,null,null,56.283200000000001,51.434600000000003,"--","--",50,"--","--",51.1,"--","--",46.8,47.2,53.4,52.2,52.8,"--","--",null,null,null,null,null,null,null,null,null,"--","--",null,null,null,null,null,242.62020000000001,null,null,null,1698,1523,"--",13.662000000000001,11.58286852589641,16.692868525896412,"--","--","--","--","--","--",662,3358.1,333.6,1038,5399.2,685.5,498.49639999999999,236760,94.471900000000005,100.9,"--",null,null,null,null,null,104.7,105.8,null,null,null,null,null,74.7,35.1,64.400000000000006,"--",7.3,18019,-15,null,null,95344,310,null,null,398000,7.6,"--","--","--","--","--","--","--","--",null,null,null,null,null,null,null,null,null,null,null,null,null,103.4,106.2,105.9,null,null,null,null,null,12.97,11.3,12.66,14.35,168.99999999999994,14.35,10.37,11.58,12.2,12.53,12.52,32.000000000000028,null,null,null,null,null,1.3145,2.5468999999999999,"--","--",62.8506,133.92080000000001,5585.8,292.39999999999998,1465.3,null,null,null,null,null,29.311,"--","--","--",0,"--","--","--","--"]
["1985-03-01",null,null,null,0,0,0,0,null,null,null,null,null,null,null,null,null,null,null,null,null,null,null,79.900000000000006,480.27870000000001,null,null,null,null,null,null,null,null,null,null,null,null,null,56.664499999999997,51.975999999999999,"--","--",47.8,"--","--",44.2,"--","--",44,49.1,46.2,51.2,46.7,"--","--",null,null,null,null,null,null,null,null,null,"--","--",null,null,null,null,null,265.6662,null,null,null,1800,1727,"--",15.048999999999999,10.990087463556847,16.030087463556846,"--","--","--","--","--","--",671,3471.4,244,1127,5358.6,744.4,541.75720000000001,237732,107.9504,93.7,"--",null,null,null,null,null,106.8,108.1,null,null,null,null,null,75.599999999999994,34.9,64.900000000000006,"--",7.2,17939,-27,null,null,96843,346,null,null,380800,7.1,"--","--","--","--","--","--","--","--",null,null,null,null,null,null,null,null,null,null,null,null,null,103.1,107.6,107.1,null,null,null,null,null,10.5,8.58,12.56,13.69,112.9999999999999,13.17,8.52,9.86,10.71,11.52,11.86,114.99999999999986,null,null,null,null,null,1.3839999999999999,2.8532999999999999,"--","--",69.236699999999999,143.9059,6075.3,293,1698.2,null,null,null,null,null,28.238,"--","--","--",0,"--","--","--","--"]
["1985-08-01",null,null,null,0,0,0,0,null,null,null,null,null,null,null,null,null,null,null,null,null,null,null,78.7,489.9708,null,null,null,null,null,null,null,null,null,null,null,null,null,56.496000000000002,51.95,"--","--",47.7,"--","--",41.1,"--","--",43,51.8,44,50.6,46.6,"--","--",null,null,null,null,null,null,null,null,null,"--","--",null,null,null,null,null,281.47329999999999,null,null,null,1743,1808,"--",16.632999999999999,10.452490421455934,15.422490421455933,"--","--","--","--","--","--",726,3530.1,233.4,1078,5468,791.6,573.29930000000002,238679,115.9937,92.4,"--",null,null,null,null,null,107.9,109.8,null,null,null,null,null,76.099999999999994,34.799999999999997,64.599999999999994,"--",7.1,17756,-20,null,null,97842,193,null,null,403750,7.1,"--","--","--","--","--","--","--","--",null,null,null,null,null,null,null,null,null,null,null,null,null,102.7,108.5,107.9,null,null,null,null,null,9.5,7.9,11.05,12.5,144.99999999999994,12.19,7.14,8.0500000000000007,8.94,9.81,10.33,139.00000000000006,null,null,null,null,null,1.3574999999999999,2.9093,"--","--",67.026300000000006,130.3278,4813.7,311.8,1461,null,null,null,null,null,27.754999999999999,"--","--","--",0,"--","--","--","--"]
["1986-01-01",null,null,null,0,0,0,0,null,null,null,null,null,null,null,null,null,null,null,null,null,null,null,79.599999999999994,500.36739999999998,null,null,null,null,null,null,null,null,null,null,null,null,null,57.555500000000002,53.065800000000003,"--","--",51.2,"--","--",45.1,"--","--",44.9,56.7,48.4,52.9,50.1,"--","--",null,null,null,null,null,null,null,null,null,"--","--",null,null,null,null,null,293.23689999999999,null,null,null,1972,1847,"--",15.781000000000001,10.673509933774833,15.363509933774832,"--","--","--","--","--","--",733,3637.7,256.60000000000002,1270,5571,817.2,605.70299999999997,239638,127.0883,95.6,"--",null,null,null,null,null,109.9,111.9,null,null,null,null,null,77.3,35,64.900000000000006,"--",6.7,17686,-7,null,null,98734,125,null,null,366750,6.7,"--","--","--","--","--","--","--","--",null,null,null,null,null,null,null,null,null,null,null,null,null,103.2,109.3,108.6,null,null,null,null,null,9.5,8.14,10.050000000000001,11.44,138.99999999999989,10.88,7.07,7.73,8.14,8.68,9.19,104.99999999999989,null,null,null,null,null,1.407,3.2094999999999998,"--","--",64.978300000000004,120.1897,5680.7,459.5,1501.1,null,null,null,null,null,22.945,"--","--","--",0,"--","--","--","--"]
["1986-03-01",null,null,null,0,0,0,0,null,null,null,null,null,null,null,null,null,null,null,null,null,null,null,78.3,505.27879999999999,null,null,null,null,null,null,null,null,null,null,null,null,null,56.778399999999998,52.631599999999999,"--","--",51,"--","--",43.4,"--","--",43.7,54.5,49,56,50.5,"--","--",null,null,null,null,null,null,null,null,null,"--","--",null,null,null,null,null,296.55,null,null,null,1876,1780,"--",13.9,9.3535580524344457,14.393558052434447,"--","--","--","--","--","--",880,3682.1,301.7,1180,5657.3,824.1,613.37660000000005,239928,130.178,95.1,"--",null,null,null,null,null,109.1,112.5,null,null,null,null,null,77,34.799999999999997,65.099999999999994,"--",7.2,17624,-39,null,null,98935,94,null,null,381200,6.8,"--","--","--","--","--","--","--","--",null,null,null,null,null,null,null,null,null,null,null,null,null,100.3,109.6,108.9,null,null,null,null,null,9.1,7.48,9,10.5,150,10.08,6.56,7.03,7.21,7.46,7.78,57.000000000000028,null,null,null,null,null,1.4009,3.2202000000000002,"--","--",62.933100000000003,113.2825,5922.9,401.8,1487.7,null,null,null,null,null,12.618,"--","--","--",0,"--","--","--","--"]
["1986-11-01",null,null,null,0,0,0,0,null,null,null,null,null,null,null,null,null,null,null,null,null,null,null,78.8,523.79809999999998,null,null,null,null,null,null,null,null,null,null,null,null,null,57.622999999999998,53.631999999999998,"--","--",51.2,"--","--",42.2,"--","--",42.2,57,57.1,54.7,52,"--","--",null,null,null,null,null,null,null,null,null,"--","--",null,null,null,null,null,313.0498,null,null,null,1623,1644,"--",14.545,8.1844036697247766,13.014403669724777,"--","--","--","--","--","--",707,3791,272.3,1113,5732.3,931.2,653.76729999999998,241467,139.9631,91.4,"--",null,null,null,null,null,110.4,115.3,null,null,null,null,null,77.900000000000006,34.700000000000003,65.400000000000006,"--",6.9,17472,-5,null,null,100306,186,null,null,363000,7.1,"--","--","--","--","--","--","--","--",null,null,null,null,null,null,null,null,null,null,null,null,null,99.8,112,110.8,null,null,null,null,null,7.5,6.04,8.68,10.07,139.00000000000006,9.6999999999999993,5.35,5.8,6.28,6.76,7.25,96.999999999999972,null,null,null,null,null,1.3863000000000001,3.7313999999999998,"--","--",62.370199999999997,107.09869999999999,6681.4,486,1525.1,null,null,null,null,null,15.207000000000001,"--","--","--",0,"--","--","--","--"]
["1987-02-01",null,null,null,0,0,0,0,null,null,null,null,null,null,null,null,null,null,null,null,null,null,null,79.8,546.81240000000003,null,null,null,null,null,null,null,null,null,null,null,null,null,58.662999999999997,54.7196,"--","--",52.6,"--","--",46.6,"--","--",46.7,55.4,62.5,57.3,51.2,"--","--",null,null,null,null,null,null,null,null,null,"--","--",null,null,null,null,null,315.41500000000002,null,null,null,1784,1689,"--",14.83,8.5143117593436664,13.134311759343667,"--","--","--","--","--","--",732,3853.4,269.10000000000002,1282,5789.9,959.2,652.53229999999996,241930,142.42400000000001,90.2,"--",null,null,null,null,null,111.8,116.2,null,null,null,null,null,78.900000000000006,34.9,65.5,"--",6.6,17499,34,null,null,100915,232,null,null,354250,6.6,"--","--","--","--","--","--","--","--",null,null,null,null,null,null,null,null,null,null,null,null,null,101,112.3,111.1,null,null,null,null,null,7.5,6.1,8.3800000000000008,9.65,126.99999999999996,9.08,5.59,5.96,6.4,6.79,7.25,{"$f":"+(FI348-FG348)*100","v":84.999999999999972},null,null,null,null,null,1.3340000000000001,3.7313999999999998,"--","--",60.5291,100.297,5929.3,565.29999999999995,1827.3,null,null,null,null,null,17.725999999999999,"--","--","--",0,"--","--","--","--"]
["1987-04-01",null,null,null,0,0,0,0,null,null,null,null,null,null,null,null,null,null,null,null,null,null,null,80.2,549.7183,null,null,null,null,null,null,null,null,null,null,null,null,null,59.141599999999997,55.0792,"--","--",55.5,"--","--",51.3,"--","--",45.9,59.8,65.599999999999994,59.3,52.8,"--","--",null,null,null,null,null,null,null,null,null,"--","--",null,null,null,null,null,317.28379999999999,null,null,null,1614,1601,"--",15.167,9.9798528058877629,14.389852805887761,"--","--","--","--","--","--",735,3885.2,126.8,1181,5577.4,970.2,656.40139999999997,242252,145.49189999999999,92.8,"--",null,null,null,null,null,112.7,117.3,null,null,null,null,null,78.900000000000006,34.700000000000003,65.400000000000006,"--",6.3,17525,18,null,null,101502,338,null,null,336250,7.1,"--","--","--","--","--","--","--","--",null,null,null,null,null,null,null,null,null,null,null,null,null,101.9,112.9,111.6,null,null,null,null,null,7.75,6.37,8.85,10.039999999999999,118.99999999999994,9.83,5.64,6.5,7.02,7.57,8.02,100,null,null,null,null,null,1.3191999999999999,3.7313999999999998,"--","--",59.704300000000003,96.872699999999995,5814.4,468.3,1601.6,null,null,null,null,null,18.643000000000001,"--","--","--",0,"--","--","--","--"]
["1987-09-01",null,null,null,0,0,0,0,null,null,null,null,null,null,null,null,null,null,null,null,null,null,null,81.7,561.34879999999998,null,null,null,null,null,null,null,null,null,null,null,null,null,60.878100000000003,56.7804,"--","--",60,"--","--",54.5,"--","--",49.2,62.1,77.3,65.5,61.5,"--","--",null,null,null,null,null,null,null,null,null,"--","--",null,null,null,null,null,321.89010000000002,null,null,null,1695,1514,"--",15.82,10.172727272727272,14.302727272727275,"--","--","--","--","--","--",666,4005.9,245,1232,5838.2,960.4,676.21119999999996,243223,156.46090000000001,93.6,"--",null,null,null,null,null,114.7,119.2,null,null,null,null,null,80,34.700000000000003,65.5,"--",5.9,17691,61,null,null,102646,228,null,null,309750,6,"--","--","--","--","--","--","--","--",null,null,null,null,null,null,null,null,null,null,null,null,null,103.7,113.9,112,null,null,null,null,null,8.6999999999999993,7.22,10.18,11.31,113.00000000000009,10.89,6.4,7.67,8.34,8.94,9.42,108,null,null,null,null,null,1.3153999999999999,3.7313999999999998,"--","--",60.938699999999997,96.828500000000005,6094.7,549.6,1724.4,null,null,null,null,null,19.526,"--","--","--",0,"--","--","--","--"]
["1988-01-01",null,null,null,0,0,0,0,null,null,null,null,null,null,null,null,null,null,null,null,null,null,null,83.4,567.03610000000003,null,null,null,null,null,null,null,null,null,null,null,null,null,62.420699999999997,58.317999999999998,"--","--",57.5,"--","--",51.2,66,"--",50.7,60.3,78.7,59.3,62,"--","--",null,null,null,null,null,null,null,null,null,"--","--",null,null,null,null,null,330.26580000000001,null,null,null,1271,1244,"--",15.77,9.8292639138240432,13.819263913824043,"--","--","--","--","--","--",585,4131.1000000000004,270.2,924,5963.8,936.5,692.27099999999996,243981,164.68190000000001,90.8,"--",null,null,null,null,null,116,120.9,null,null,null,null,null,80.5,34.6,65.8,"--",5.7,17790,-19,null,null,103758,94,null,null,334000,6.2,"--","--","--","--","--","--","--","--",null,null,null,null,null,null,null,null,null,null,null,null,null,104.6,115,112.8,null,null,null,null,null,8.75,6.83,9.8800000000000008,11.07,118.99999999999994,10.43,5.81,6.99,7.63,8.18,8.67,104,null,null,null,null,null,1.2855000000000001,3.7313999999999998,"--","--",59.103999999999999,89.617900000000006,5973.5,652.79999999999995,1742.3,null,null,null,null,null,17.16,16.75,"--","--",0,"--","--","--","--"]
["1988-08-01",null,null,null,0,0,0,0,null,null,null,null,null,null,null,null,null,null,null,null,null,null,null,84.7,594.59079999999994,null,null,null,null,null,null,null,null,null,null,null,null,null,63.585900000000002,59.305199999999999,"--","--",56,"--","--",51.2,59.9,"--",49.4,59.2,78.2,57.8,57.4,"--","--",null,null,null,null,null,null,null,null,null,"--","--",null,null,null,null,null,347.31490000000002,null,null,null,1493,1460,"--",15.077999999999999,9.7119860017497786,13.631986001749778,"--","--","--","--","--","--",688,4317.7,297.89999999999998,1109,6116.7,946.3,721.53560000000004,245240,175.8689,97.4,"--",null,null,null,null,null,119,124,null,null,null,null,null,81.900000000000006,34.5,66.099999999999994,"--",5.6,17891,-35,null,null,105670,124,null,null,314750,5.9,"--","--","--","--","--","--","--","--",null,null,null,null,null,null,null,null,null,null,null,null,null,108,117.7,114.9,null,null,null,null,null,9.84,8.01,10.11,11.21,110.00000000000014,10.6,7.06,8.17,8.6300000000000008,8.94,9.26,62.999999999999901,null,null,null,null,null,1.2237,3.7313999999999998,"--","--",63.076799999999999,94.01,6308.5,803.9,2013.8,null,null,null,null,null,15.523999999999999,14.89,"--","--",0,"--","--","--","--"]
["1988-11-01",null,null,null,0,0,0,0,null,null,null,null,null,null,null,null,null,null,null,null,null,null,null,84.8,601.01559999999995,null,null,null,null,null,null,null,null,null,null,null,null,null,63.817500000000003,59.980600000000003,"--","--",55.6,"--","--",53.8,58.1,"--",51.6,58.4,70.900000000000006,57.5,52.1,"--","--",null,null,null,null,null,null,null,null,null,"--","--",null,null,null,null,null,352.79939999999999,null,null,null,1569,1508,"--",15.038,9.5461005199306612,13.256100519930662,"--","--","--","--","--","--",628,4396,300.60000000000002,1141,6162,931.9,729.66010000000006,245884,183.0111,93,"--",null,null,null,null,null,120.3,125.6,null,null,null,null,null,82.6,34.5,66.2,"--",5.3,18003,37,null,null,106616,339,null,null,290500,5.7,"--","--","--","--","--","--","--","--",null,null,null,null,null,null,null,null,null,null,null,null,null,108.3,118.7,115.7,null,null,null,null,null,10.050000000000001,8.35,9.4499999999999993,10.48,103.00000000000011,10.27,7.76,8.48,8.67,8.7899999999999991,8.9600000000000009,29.000000000000092,null,null,null,null,null,1.2185999999999999,3.7313999999999998,"--","--",61.360199999999999,88.801199999999994,7122,798.8,2056.6999999999998,null,null,null,null,null,13.977,13.02,"--","--",0,"--","--","--","--"]
["1989-03-01",null,null,null,0,0,0,0,null,null,null,null,null,null,null,null,null,null,null,null,null,null,null,84.8,616.48429999999996,null,null,null,null,null,null,null,null,null,null,null,null,null,64.165999999999997,60.070500000000003,"--","--",51.5,"--","--",50.2,52.8,"--",48.3,52,67.900000000000006,52.7,52.5,"--","--",null,null,null,null,null,null,null,null,null,"--","--",null,null,null,null,null,359.1454,null,null,null,1422,1214,"--",14.362,9.8927038626609409,13.392703862660941,"--","--","--","--","--","--",567,4569.5,357.7,982,6276.6,894.1,760.01829999999995,246530,190.92410000000001,94.3,"--",null,null,null,null,null,122.2,127.4,null,null,null,null,null,83.6,34.5,66.3,"--",5,18060,5,null,null,107619,193,null,null,322200,5.4,"--","--","--","--","--","--","--","--",null,null,null,null,null,null,null,null,null,null,null,null,null,111.5,120.7,117.5,null,null,null,null,null,11.5,9.85,9.8000000000000007,10.67,86.999999999999915,11.03,8.82,9.57,9.68,9.51,9.36,-32.000000000000028,null,null,null,null,null,1.1954,3.7313999999999998,"--","--",64.309600000000003,92.2971,7697,667.3,2289.6,null,null,null,null,null,19.445,18.7,"--","--",0,"--","--","--","--"]
["1989-09-01",null,null,null,0,0,0,0,null,null,null,null,null,null,null,null,null,null,null,null,null,null,null,83,637.21050000000002,null,null,null,null,null,null,null,null,null,null,null,null,null,63.576000000000001,59.534999999999997,"--","--",46,"--","--",45.4,61.7,"--",44.8,46,42.4,48,43.9,"--","--",null,null,null,null,null,null,null,null,null,"--","--",null,null,null,null,null,368.61329999999998,null,null,null,1279,1314,"--",15.361000000000001,9.7351464435146369,13.445146443514638,"--","--","--","--","--","--",639,4661.2,305.10000000000002,966,6289,872.9,781.82209999999998,247816,203.17699999999999,95.8,"--",null,null,null,null,null,124.8,129.9,null,null,null,null,null,83.8,34.4,66.400000000000006,"--",5.3,17922,-42,null,null,108365,250,null,null,337750,4.9000000000000004,"--","--","--","--","--","--","--","--",null,null,null,null,null,null,null,null,null,null,null,null,null,112.4,123.1,119.7,null,null,null,null,null,10.5,9.02,9.01,9.91,90.000000000000028,10.130000000000001,7.75,8.2200000000000006,8.2799999999999994,8.17,8.19,-8.9999999999999858,null,null,null,null,null,1.1828000000000001,3.7313999999999998,"--","--",69.432599999999994,97.108999999999995,7133.9,1179.3,2210.8000000000002,null,null,null,null,null,19.594000000000001,17.77,"--","--",0,"--","--","--","--"]
["1990-02-01",null,null,null,0,0,0,0,null,null,null,null,null,null,null,null,null,null,null,null,null,null,null,83,636.51369999999997,null,null,null,null,null,null,null,null,null,null,null,null,null,64.350399999999993,60.353499999999997,"--","--",49.1,"--","--",46.5,54.7,50.3,41.4,52.5,44.6,52.8,44.4,"--","--",null,null,null,null,null,null,null,null,null,"--","--",null,null,null,null,null,376.14170000000001,null,null,null,1437,1329,"--",14.066000000000001,10.563157894736836,14.273157894736837,"--","--","--","--","--","--",591,4818.7,342.4,1102,6382,904.7,798.77319999999997,248827,216.50460000000001,89.5,"--",null,null,null,null,null,128,132.69999999999999,null,null,null,null,null,84.7,34.4,66.7,"--",5.3,17893,96,null,null,109433,248,null,null,358250,5.3,1127.4000000000001,1107.9000000000001,799.4,192.8,606.6,431.6,175,308.5,null,null,null,null,null,null,null,null,null,null,null,null,null,114.4,124.9,121.4,null,null,null,null,null,10,8.24,9.2200000000000006,10.14,92,10.199999999999999,7.74,8.11,8.3699999999999992,8.42,8.4700000000000006,10.000000000000142,null,null,null,null,null,1.1964999999999999,4.7339000000000002,"--","--",71.123199999999997,92.448999999999998,6877.7,993.8,2373.1999999999998,null,null,null,null,null,22.108000000000001,19.809999999999999,1.0649999999999999,1.0649999999999999,0,"--","--","--","--"]
["1990-07-01",null,null,null,0,0,0,0,null,null,null,null,null,null,null,null,null,null,null,null,null,null,null,82.8,639.95060000000001,null,null,null,null,null,null,null,null,null,null,null,null,null,64.843599999999995,60.718299999999999,"--","--",46.6,"--","--",46.3,57.2,47.5,39.6,46.7,51.4,49.8,46.4,"--","--",null,null,null,null,null,null,null,null,null,"--","--",null,null,null,null,null,372.03300000000002,null,null,null,1171,1078,"--",13.789,10.319277108433727,14.169277108433729,"--","--","--","--","--","--",542,4938.8999999999996,349.2,883,6442.5,917.8,806.88750000000005,250132,229.58629999999999,88.2,"--",null,null,null,null,null,130.5,135.80000000000001,null,null,null,null,null,84.1,34.200000000000003,66.5,"--",5.5,17704,-72,null,null,109830,-31,null,null,367400,5.4,1119.9000000000001,1126.4000000000001,808.1,201.8,606.29999999999995,431.4,174.9,318.3,null,null,null,null,null,null,null,null,null,null,null,null,null,114.5,126.6,122.9,null,null,null,null,null,10,8.15,9.24,10.199999999999999,95.999999999999915,10.039999999999999,7.62,7.94,8.16,8.33,8.4700000000000006,31.00000000000005,null,null,null,null,null,1.157,4.7339000000000002,"--","--",72.090599999999995,90.468000000000004,7046.3,1492.5,2309.9,null,null,null,null,null,18.638000000000002,17.170000000000002,0.98506000000000005,0.98506000000000005,0,"--","--","--","--"]
["1990-09-01",null,null,null,0,0,0,0,null,null,null,null,null,null,null,null,null,null,null,null,null,null,null,82.9,639.495,null,null,null,null,null,null,null,null,null,null,null,null,null,65.137200000000007,60.915199999999999,"--","--",44.5,"--","--",41.3,54.7,46,40.799999999999997,44.9,70.2,45.5,48.9,"--","--",null,null,null,null,null,null,null,null,null,"--","--",null,null,null,null,null,373.77190000000002,null,null,null,1110,976,"--",14.025,12.069871794871807,16.199871794871807,"--","--","--","--","--","--",496,4971.2,329,858,6404,922.5,810.43619999999999,250751,234.72499999999999,72.8,"--",null,null,null,null,null,132.5,137.1,null,null,null,null,null,83.9,34.200000000000003,66.400000000000006,"--",5.9,17609,-40,null,null,109524,-90,null,null,394500,5.6,1113.5,1124.3,806.7,202.1,604.6,430.1,174.5,317.60000000000002,null,null,null,null,null,null,null,null,null,null,null,null,null,118.4,127.7,123.8,null,null,null,null,null,10,8.1999999999999993,9.56,10.64,108,10.18,7.36,7.76,8.08,8.51,8.89,81.000000000000057,null,null,null,null,null,1.1583000000000001,4.7342000000000004,"--","--",70.5077,87.021100000000004,7722.5,1432.1,2625.3,null,null,null,null,null,33.686999999999998,34.9,1.3223,1.3223,0,"--","--","--","--"]
["1991-04-01",null,null,null,0,0,0,0,null,null,null,null,null,null,null,null,null,null,null,null,null,null,null,78.900000000000006,631.30359999999996,null,null,null,null,null,null,null,null,null,null,null,null,null,62.5503,58.253700000000002,"--","--",42.8,"--","--",35.799999999999997,53.9,45.2,39.6,46.1,38.799999999999997,44.5,45,"--","--",null,null,null,null,null,null,null,null,null,"--","--",null,null,null,null,null,371.19189999999998,null,null,null,1001,916,"--",11.824999999999999,11.509930178432874,16.199930178432876,"--","--","--","--","--","--",508,5017.8,353,819,6412.7,957.4,807.81899999999996,252643,248.7439,81.8,"--",null,null,null,null,null,135.1,140.9,null,null,null,null,null,82.2,34,66.400000000000006,"--",6.7,17093,-47,null,null,108366,-212,null,null,467250,6.6,1104.7,1089.7,785.7,190.4,595.29999999999995,423.7,171.6,304,null,null,null,null,null,null,null,null,null,null,null,null,null,116,130.4,126.1,null,null,null,null,null,9,5.91,8.86,9.94,108,9.49,5.65,6.24,6.95,7.7,8.0399999999999991,108.9999999999999,null,null,null,null,null,1.1535,5.2766999999999999,"--","--",74.554400000000001,89.869900000000001,7844.5,1104.2,2678.9,null,null,null,null,null,20.823,19.18,1.0747899999999999,1.0747899999999999,0,"--","--",2824,"--"]
["1991-08-01",null,null,null,0,0,0,0,null,null,null,null,null,null,null,null,null,null,null,null,null,null,null,80.2,618.37329999999997,null,null,null,null,null,null,null,null,null,null,null,null,null,63.850299999999997,59.633400000000002,"--","--",52.9,"--","--",44,56.5,49.5,39,60.1,41.8,59.8,48.3,"--","--",null,null,null,null,null,null,null,null,null,"--","--",null,null,null,null,null,365.4169,null,null,null,1049,944,"--",12.352,10.699392097264433,15.529392097264431,"--","--","--","--","--","--",526,5089.1000000000004,355.6,882,6445,1000.1,802.02189999999996,253807,255.89269999999999,82,"--",null,null,null,null,null,136.6,142.9,null,null,null,null,null,82.3,34.1,66,"--",6.9,17025,10,null,null,108308,10,null,null,430000,7.3,1103.5999999999999,1113.7,799.3,199.3,600,427,173,314.39999999999998,null,null,null,null,null,null,null,null,null,null,null,null,null,116.2,131.30000000000001,126.8,null,null,null,null,null,8.5,5.66,8.75,9.65,90.000000000000028,9.24,5.33,5.78,6.43,7.43,7.9,147.00000000000006,null,null,null,null,null,1.1452,5.3724999999999996,"--","--",75.892799999999994,90.905699999999996,7426,1872.4,2642.5,null,null,null,null,null,21.687999999999999,19.77,1.0942700000000001,1.0942700000000001,0,"--","--",2858,"--"]
["1992-02-01",null,null,null,0,0,0,0,null,null,null,null,null,null,null,null,null,null,null,null,null,null,null,79.599999999999994,609.70860000000005,null,null,null,null,null,null,null,null,null,null,null,null,null,64.040899999999993,60.205800000000004,809588,1.56,52.7,"--","--",43.9,54.7,47.2,44,58.3,45.9,58.7,49.3,"--",33857,null,null,null,null,null,null,null,null,null,164260,147270,null,null,null,null,null,361.55930000000001,null,null,null,1250,1146,"--",12.698,10.21899109792283,15.398991097922829,"--","--","--","--","--","--",639,5296.7,433.6,1102,6649.9,1087.2,799.6404,255448,266.4821,68.8,"--",null,null,null,null,null,138.6,145.4,null,null,null,null,null,82.3,34.1,66.2,"--",7.4,16829,-10,null,null,108314,-61,null,null,441750,8.1999999999999993,1098.0999999999999,1079.3,778.7,187.8,590.9,420.6,170.3,300.60000000000002,null,null,null,null,null,null,null,null,null,null,null,null,null,116,133.1,128.30000000000001,null,null,null,null,null,6.5,4.0599999999999996,8.2899999999999991,9.23,94.000000000000128,8.76,3.84,4.29,5.21,6.58,7.34,213,null,null,null,null,null,1.1825000000000001,5.4775999999999998,"--","--",75.643500000000003,87.372100000000003,7653.2,1693.7,2612.4,null,null,null,null,null,18.995000000000001,18.05,1.05609,1.05609,0,"--","--",3488,"--"]
["1992-03-01",null,null,null,0,0,0,0,null,null,null,null,null,null,null,null,null,null,null,null,null,null,null,80.2,607.37670000000003,null,null,null,null,null,null,null,null,null,null,null,null,null,64.597300000000004,60.846899999999998,812709,1.53,54.6,"--","--",43.7,54.7,49.8,44.3,63.3,48.1,59.7,50.3,"--",35258,null,null,null,null,null,null,null,null,null,163747,146831,null,null,null,null,null,359.88619999999997,null,null,null,1297,1082,"--",12.592000000000001,10.589910979228472,15.769910979228472,"--","--","--","--","--","--",553,5319.2,434.4,1037,6659.6,1103.4000000000001,799.44209999999998,255703,266.75569999999999,76,"--",null,null,null,null,null,139.1,145.9,null,null,null,null,null,82.4,34.1,66.400000000000006,"--",7.4,16805,-24,null,null,108369,55,null,null,432400,8.3000000000000007,1099.7,1081.5,780.1,188.5,591.6,421.1,170.5,301.39999999999998,null,null,null,null,null,null,null,null,null,null,null,null,null,116.1,133.4,128.6,null,null,null,null,null,6.5,3.98,8.35,9.25,90.000000000000028,8.94,4.04,4.63,5.69,6.95,7.54,184.99999999999997,null,null,null,null,null,1.1928000000000001,5.4870999999999999,"--","--",77.336799999999997,89.610100000000003,8576.9,1441.8,2944.4,null,null,null,null,null,18.916,17.63,1.0569500000000001,1.0569500000000001,0,"--","--",3145,"--"]
["1992-07-01",null,null,null,0,0,0,0,null,null,null,null,null,null,null,null,null,null,null,null,null,null,null,81,599.26559999999995,null,null,null,null,null,null,null,null,null,null,null,null,null,65.880099999999999,62.305900000000001,825008,1.51,53.9,"--","--",45.5,55.2,49.7,46.9,59.5,56.2,57.4,52.5,"--",36629,null,null,null,null,null,null,null,null,null,167305,150809,null,null,null,null,null,356.09010000000001,null,null,null,1139,1089,"--",12.6,10.857121879588853,16.247121879588853,"--","--","--","--","--","--",627,5435.6,437.4,984,6736.8,1141.4000000000001,798.06820000000005,256894,270.81760000000003,76.599999999999994,"--",null,null,null,null,null,140.5,147.6,null,null,null,null,null,83,34.200000000000003,66.7,"--",7.7,16819,-7,null,null,108792,73,null,null,438800,8.6,1105,1117.2,801.4,200.2,601.20000000000005,427.9,173.3,315.8,null,null,null,null,null,null,null,null,null,null,null,null,null,117.9,134.30000000000001,129.1,null,null,null,null,null,6.02,3.25,8.07,8.84,76.999999999999957,8.1300000000000008,3.21,3.6,4.3600000000000003,5.84,6.84,247.99999999999994,null,null,null,null,null,1.1923999999999999,5.4564000000000004,"--","--",75.302499999999995,84.202500000000001,7240.8,2503.8000000000002,2860.8,null,null,null,null,null,21.759,20.239999999999998,1.1289,1.1289,0,"--","--",2786,"--"]
["1993-02-01",null,null,null,0,0,0,0,null,null,null,null,null,null,null,null,null,null,null,null,null,null,null,81.5,593.47709999999995,null,null,null,null,null,null,null,null,null,null,null,null,null,67.117199999999997,63.460700000000003,838105,1.5,55.2,56,"--",47,53.2,49.5,42.6,59.7,53.9,63.5,51.7,"--",36962,null,null,null,null,null,null,null,null,null,173770,156292,null,null,null,null,null,358.82080000000002,null,null,null,1210,1148,"--",12.698,10.346753246753252,15.316753246753251,"--","--","--","--","--","--",604,5568.3,415.6,1063,6817.1,1189.3,814.05889999999999,258919,283.53129999999999,86.6,"--",null,null,null,null,null,143.1,150.6,null,null,null,null,null,84.6,34.299999999999997,66.2,"--",7.1,16805,14,null,null,110047,243,null,null,332750,8.5,1136.5999999999999,1117.0999999999999,805.9,194.4,611.5,435.3,176.2,311.2,null,null,null,null,null,null,null,null,null,null,null,null,null,118.4,135.9,130.69999999999999,null,null,null,null,null,6,3.03,7.71,8.39,68.000000000000057,7.68,2.93,3.39,4.0999999999999996,5.43,6.26,216,null,null,null,null,null,1.2602,5.7873999999999999,"--","--",82.544300000000007,91.485399999999998,8520.2999999999993,1862.4,2991.5,null,null,null,null,null,20.053000000000001,18.47,1.0846199999999999,1.0846199999999999,0,"--","--",3640,"--"]
["1993-05-01",null,null,null,0,0,0,0,null,null,null,null,null,null,null,null,null,null,null,null,null,null,null,81.099999999999994,588.04259999999999,null,null,null,null,null,null,null,null,null,null,null,null,null,67.032499999999999,63.631799999999998,847301,1.49,51.2,51.5,"--",43.6,54.2,47.4,44.8,55.2,50.4,55,51.5,"--",37869,null,null,null,null,null,null,null,null,null,178445,160624,null,null,null,null,null,363.29669999999999,null,null,null,1260,1112,"--",14.212,10.321188260558349,15.291188260558348,"--","--","--","--","--","--",626,5633.4,385.3,1128,6814.5,1200.2,819.75909999999999,259680,288.47059999999999,80.3,"--",null,null,null,null,null,144.19999999999999,151.80000000000001,null,null,null,null,null,85,34.299999999999997,66.400000000000006,"--",7.1,16766,-6,null,null,110573,267,null,null,343600,8.1,1145.3,1140.4000000000001,821,200.9,620.1,441.5,178.6,319.39999999999998,null,null,null,null,null,null,null,null,null,null,null,null,null,119.7,136.6,131.19999999999999,null,null,null,null,null,6,3,7.43,8.2100000000000009,78.000000000000114,7.47,2.96,3.36,3.98,5.2,6.04,206,null,null,null,null,null,1.2698,5.7392000000000003,"--","--",81.869399999999999,87.930400000000006,9616.2999999999993,2376.3000000000002,3263.6,null,null,null,null,null,19.940000000000001,18.510000000000002,1.09965,1.09965,0,"--","--",3091,"--"]
["1993-09-01",null,null,null,0,0,0,0,null,null,null,null,null,null,null,null,null,null,null,null,null,null,null,81.3,585.4117,null,null,null,null,null,null,null,null,null,null,null,null,null,67.609200000000001,64.022199999999998,855006,1.5,50.8,49,"--",44.5,51.7,49.9,46.2,52.6,49,55.2,51.3,"--",39307,null,null,null,null,null,null,null,null,null,181800,163285,null,null,null,null,null,373.05669999999998,null,null,null,1343,1251,"--",13.676,9.463997165131115,14.153997165131116,"--","--","--","--","--","--",726,5670.3,316.3,1143,6809.3,1211.5,840.60299999999995,260867,299.44799999999998,77.900000000000006,"--",null,null,null,null,null,145,152.9,null,null,null,null,null,86,34.4,66.2,"--",6.7,16769,28,null,null,111453,241,null,null,339000,8.3000000000000007,1166.7,1178.8,845.7,212,633.70000000000005,451.2,182.5,333.1,null,null,null,null,null,null,null,null,null,null,null,null,null,118.7,134.9,131.69999999999999,null,null,null,null,null,6,3.09,6.66,7.34,67.999999999999972,6.92,2.95,3.36,3.85,4.7300000000000004,5.36,151.00000000000003,null,null,null,null,null,1.3214999999999999,5.8014999999999999,"--","--",84.400499999999994,88.973799999999997,9717.5,3338.7,3472.7,null,null,null,null,null,17.513999999999999,16.010000000000002,1.0494999999999999,1.09528,0,"--","--",3070,"--"]
["1994-02-01",null,null,null,0,0,0,0,null,null,null,null,null,null,null,null,null,null,null,null,null,null,null,82.2,588.005,null,null,null,null,null,null,null,null,null,null,null,null,null,69.041799999999995,65.446600000000004,867675,1.47,56.5,56.5,"--",48.7,58.3,51.9,44.6,62.2,63,60.2,57,"--",41736,null,null,null,null,null,null,null,null,null,188077,169652,null,null,null,null,null,390.94459999999998,null,null,null,1337,1269,"--",15.194000000000001,9.1157232704402507,13.73572327044025,"--","--","--","--","--","--",686,5793,303.7,1133,6908.4,1226.8,880.35289999999998,262123,315.41370000000001,93.2,"--",null,null,null,null,null,146.69999999999999,154.80000000000001,null,null,null,null,null,86.8,34.200000000000003,66.599999999999994,11.4,6.6,16862,7,null,null,112783,196,null,null,368250,9.1999999999999993,1188.2,1166.9000000000001,840.9,204.6,636.29999999999995,453.2,183.1,326,null,null,null,null,null,null,null,null,null,null,null,null,null,119.3,136.30000000000001,133.1,null,null,null,null,null,6,3.25,7.08,7.76,67.999999999999972,7.15,3.25,3.87,4.47,5.4,5.97,150,null,null,null,null,null,1.3424,8.7248999999999999,3.1217999999999999,"--",90.470500000000001,91.088800000000006,9074.6,2499.1999999999998,3613.5,null,null,null,null,null,14.78,13.8,1.00925,1.1100000000000001,0,"--",2.355,4124,"--"]
["1994-08-01",null,null,null,0,0,0,0,null,null,null,null,null,null,null,null,null,null,null,null,null,null,null,83.7,622.05769999999995,null,null,null,null,null,null,null,null,null,null,null,null,null,71.474900000000005,68.4268,902171,1.46,58,60.5,"--",51.4,57.7,51.3,44.9,63,75.2,60.2,61.6,"--",44406,null,null,null,null,null,null,null,null,null,196157,177289,null,null,null,null,null,420.51710000000003,null,null,null,1450,1377,"--",14.989000000000001,8.9005524861878342,13.100552486187834,"--","--","--","--","--","--",656,5966.7,313.5,1149,7019.1,1199.7,944.80319999999995,263724,347.67070000000001,91.7,"--",null,null,null,null,null,149,157.1,null,null,null,null,null,89.5,34.5,66.599999999999994,10.5,6,17081,55,null,null,114902,283,null,null,336250,8.9,1214.5999999999999,1231.8,885.1,218.5,666.6,474.8,191.8,346.7,null,null,null,null,null,null,null,null,null,null,null,null,null,121.2,137.6,134.6,null,null,null,null,null,7.51,4.47,8.07,8.74,67,8.51,4.4800000000000004,5.56,6.18,6.88,7.24,106.00000000000006,null,null,null,null,null,1.3783000000000001,8.6072000000000006,3.3814000000000002,"--",90.84,87.175399999999996,10954.7,4165.8,4355.3999999999996,null,null,null,null,null,18.38,16.89,1.161,1.123,0,"--",1.6930000000000001,3213,"--"]
["1994-12-01",null,null,null,0,0,0,0,null,null,null,null,null,null,null,null,null,null,null,null,null,null,null,85,643.75490000000002,null,null,null,null,null,null,null,null,null,null,null,null,null,73.556299999999993,70.819599999999994,926431,1.44,56.1,53.5,"--",46.7,58.4,52.6,45,58.9,87.1,59.5,64.8,"--",46186,null,null,null,null,null,null,null,null,null,200670,181492,null,null,null,null,null,443.20280000000002,null,null,null,1455,1396,"--",15.196,8.0974025974025761,11.947402597402576,"--","--","--","--","--","--",629,6103.4,353.2,1151,7144.2,1151.3,997.30169999999998,264804,365.56959999999998,95.1,"--",null,null,null,null,null,150.1,158.30000000000001,null,null,null,null,null,90.7,34.5,66.7,10,5.5,17217,31,null,null,116166,280,null,null,323200,8.6999999999999993,1238.5,1246.3,898.3,218.1,680.2,484.2,196,348,null,null,null,null,null,null,null,null,null,null,null,null,null,121.9,137.9,134.9,null,null,null,null,null,8.5,5.45,8.4600000000000009,9.1,63.999999999999879,9.1999999999999993,5.6,7.14,7.59,7.78,7.81,21.999999999999975,null,null,null,null,null,1.3893,8.5032999999999994,3.9748000000000001,"--",92.041799999999995,87.428799999999995,11438.3,2826.5,4265.3,null,null,null,null,null,17.16,15.93,0.90340000000000009,1.113,0,"--",1.7,3448,"--"]
["1995-03-01",null,null,null,0,0,0,0,null,null,null,null,null,null,null,null,null,null,null,null,null,null,null,84.3,673.58489999999995,null,null,null,null,null,null,null,null,null,null,null,null,null,73.689499999999995,70.926400000000001,951531,1.48,52.1,51,"--",48.1,56.9,52,47,51.9,78.900000000000006,54.8,56.9,"--",46095,null,null,null,null,null,null,null,null,null,200230,180996,null,null,null,null,null,451.39640000000003,null,null,null,1249,1226,"--",14.865,8.1872195785180182,11.967219578518019,"--","--","--","--","--","--",616,6200.8,381.5,996,7208.3,1100.2,1033.6321,265495,385.55990000000003,90.3,"--",null,null,null,null,null,151.19999999999999,159.9,null,null,null,null,null,90.9,34.299999999999997,66.7,9.9,5.4,17263,-2,null,null,116912,219,null,null,339200,8.3000000000000007,1247.4000000000001,1227.8,886.6,212.2,674.4,480.5,193.9,341.2,null,null,null,null,null,null,null,null,null,null,null,null,null,123.9,139,135.9,null,null,null,null,null,9,5.98,8.1199999999999992,8.6999999999999993,58.000000000000007,8.4600000000000009,5.73,6.43,6.78,7.05,7.2,41.999999999999993,null,null,null,null,null,1.4077,8.4482999999999997,6.7770000000000001,"--",92.738,83.0625,12610.4,2910.4,5480.8,null,null,null,null,null,18.55,17.010000000000002,1.1189999999999998,1.0880000000000001,0,"--",1.534,3359,"--"]
["1995-10-01",null,null,null,0,0,0,0,null,null,null,null,null,null,null,null,null,null,null,null,null,null,null,83.6,706.25810000000001,null,null,null,null,null,null,null,null,null,null,null,null,null,74.992500000000007,72.324600000000004,984279,1.49,46.7,40.5,"--",45.9,52.2,49.5,42.2,47.5,46.5,47,48.4,"--",50283,null,null,null,null,null,null,null,null,null,206157,186546,null,null,null,null,null,475.12569999999999,null,null,null,1369,1400,"--",14.47,8.2443105756358666,12.094310575635866,"--","--","--","--","--","--",696,6369.9,363.5,1128,7297.7,1122.5,1113.5284999999999,267456,433.4504,90.2,"--",null,null,null,null,null,153.5,162.69999999999999,null,null,null,null,null,92,34.299999999999997,66.599999999999994,9.9,5.5,17216,-31,null,null,118039,151,null,null,373200,8.1999999999999993,1270,1283.0999999999999,925.5,223.2,702.3,500.5,201.8,357.6,null,null,null,null,null,null,null,null,null,null,null,null,null,125.3,141,137.6,null,null,null,null,null,8.75,5.76,7.12,7.75,62.999999999999986,7.48,5.28,5.59,5.7,5.86,6.04,33.999999999999986,null,null,null,null,null,1.3458000000000001,8.3353000000000002,6.7451999999999996,"--",93.661699999999996,84.140600000000006,13167.9,4714.3,5717.1,null,null,null,null,null,17.440000000000001,16.11,1.1335999999999999,1.115,0,"--",1.79,3306,"--"]
["1996-02-01",null,null,null,0,0,0,0,null,null,null,null,null,null,null,null,null,null,null,null,null,null,null,83.4,724.14760000000001,null,null,null,null,null,null,null,null,null,null,null,null,null,76.153000000000006,73.349500000000006,991286,1.5,45.9,43.5,"--",44.6,51.3,48.1,43.3,46.1,38.799999999999997,45.7,49.5,"--",49183,null,null,null,null,null,null,null,null,null,212011,192269,null,null,null,null,null,484.63200000000001,null,null,null,1491,1420,"--",15.215,8.2170311464546071,12.067031146454607,"--","--","--","--","--","--",769,6515.9,347.6,1158,7394.6,1163.7,1163.0938000000001,268364,455.59739999999999,88.5,"--",null,null,null,null,null,155,164,null,null,null,null,null,92.6,34.299999999999997,66.599999999999994,10,5.5,17229,21,null,null,118736,429,null,null,377250,7.8,1270.2,1244,898.4,214.9,683.5,487.1,196.4,345.6,null,null,null,null,null,null,null,null,null,null,null,null,null,126.2,141.6,138.1,null,null,null,null,null,8.25,5.22,6.99,7.63,63.999999999999972,7.08,4.83,4.9400000000000004,5.03,5.38,5.81,77.999999999999943,null,null,null,null,null,1.3752,8.3338000000000001,7.5183,"--",96.609300000000005,86.641999999999996,12395.8,3539.6,5582.3,null,null,null,null,null,19.07,18,1.1305000000000001,1.145,0,"--",2.4580000000000002,3893,"--"]
["1996-08-01",null,null,null,0,0,0,0,null,null,null,null,null,null,null,null,null,null,null,null,null,null,null,83.4,747.69299999999998,null,null,null,null,null,null,null,null,null,null,null,null,null,78.3005,76.040800000000004,999982,1.45,51.6,47,"--",47.4,55.3,50,42.2,54.6,46.6,55.1,51.9,"--",50780,null,null,null,null,null,null,null,null,null,216355,196215,null,null,null,null,null,495.73750000000001,null,null,null,1557,1413,"--",15.128,7.912295618051008,11.482295618051008,"--","--","--","--","--","--",826,6711.2,349.1,1252,7513.8,1227.2,1220.5029999999999,269976,483.29309999999998,95.3,"--",null,null,null,null,null,157.19999999999999,166,null,null,null,null,null,94.2,34.4,66.7,9.3000000000000007,5.0999999999999996,17255,32,null,null,120203,180,null,null,333250,8.4,1292.0999999999999,1314.5,944.3,234.1,710.2,506.3,203.9,370.2,null,null,null,null,null,null,null,null,null,null,null,null,null,128.30000000000001,142.30000000000001,138.6,null,null,null,null,null,8.25,5.22,7.46,8.18,71.999999999999972,8,5.05,5.67,6.03,6.39,6.64,60.999999999999943,null,null,null,null,null,1.3722000000000001,8.3378999999999994,7.5143000000000004,"--",97.26,86.836200000000005,13163,5495.7,6471.8,null,null,null,null,null,21.96,20.51,1.25075,1.2010000000000001,0,"--",2.0489999999999999,3144,"--"]
["1996-09-01",null,null,null,0,0,0,0,null,null,null,null,null,null,null,null,null,null,null,null,null,null,null,83.6,758.39580000000001,null,null,null,null,null,null,null,null,null,null,null,null,null,78.837800000000001,76.708600000000004,1000707,1.44,51.1,49.5,"--",47.2,55.1,50.7,43.7,54.6,50.1,53.5,50,"--",49824,null,null,null,null,null,null,null,null,null,219240,198843,null,null,null,null,null,499.7715,null,null,null,1475,1392,"--",15.183999999999999,8.2045721750489911,11.844572175048992,"--","--","--","--","--","--",770,6749.3,356.7,1148,7531.8,1235.8,1225.2718,270284,486.28480000000002,94.7,"--",null,null,null,null,null,157.69999999999999,166.5,null,null,null,null,null,94.4,34.4,66.900000000000006,9.4,5.2,17252,-3,null,null,120427,224,null,null,342750,8.5,1288.8,1304.7,937.6,232.4,705.2,502.7,202.5,367.1,null,null,null,null,null,null,null,null,null,null,null,null,null,128.19999999999999,142.19999999999999,138.4,null,null,null,null,null,8.25,5.3,7.66,8.35,68.999999999999943,8.23,5.09,5.83,6.23,6.6,6.83,59.999999999999964,null,null,null,null,null,1.3694,8.3340999999999994,7.5441000000000003,"--",97.792699999999996,87.522099999999995,13488.1,5480.7,6497.2,null,null,null,null,null,23.99,22.63,1.2475000000000001,1.2649999999999999,0,"--",1.9330000000000001,3179,"--"]
["1997-01-01",null,null,null,0,0,0,0,null,null,null,null,null,null,null,null,null,null,null,null,null,null,null,83.3,782.33920000000001,null,null,null,null,null,null,null,null,null,null,null,null,null,80.083699999999993,77.920500000000004,1007758,1.43,53.8,45.5,46.5,49.8,56.2,53.5,43.2,57,53.3,59.8,49.7,"--",51958,null,null,null,null,null,null,null,null,null,223524,202414,null,null,null,null,null,511.95620000000002,null,null,null,1355,1382,"--",15.332000000000001,8.3381383322559905,12.048138332255991,"--","--","--","--","--","--",830,6891.3,335.3,1108,7602.1,1283.2,1258.3652999999999,271360,510.47030000000001,97.4,"--",null,null,null,null,null,159.4,167.8,null,null,null,null,null,95,34.299999999999997,67,9.4,5.3,17297,13,null,null,121379,233,null,null,339000,7.8,1284.4000000000001,1256.9000000000001,906.3,219.1,687.2,489.7,197.5,350.6,null,null,null,null,null,null,null,null,null,null,null,null,null,129.69999999999999,142.5,138.69999999999999,null,null,null,null,null,8.25,5.25,7.42,8.09,67,7.82,5.03,5.61,6.01,6.33,6.58,57.000000000000028,null,null,null,null,null,1.3493999999999999,8.3260000000000005,7.8289,"--",100,90.037000000000006,13686.1,4667.6000000000004,6187.2,null,null,null,null,null,25.17,23.54,1.2825,1.2909999999999999,0,"--",3.0670000000000002,3275,"--"]
["1997-08-01",null,null,null,0,0,0,0,null,null,null,null,null,null,null,null,null,null,null,null,null,null,null,84.2,822.33690000000001,null,null,null,null,null,null,null,null,null,null,null,null,null,84.029300000000006,82.448499999999996,1028029,1.41,56.3,60,47,51.3,54.9,53.7,43,60.3,52.1,61.5,55.2,62.6,58232,null,null,null,null,null,null,null,null,null,229317,207643,null,null,null,null,null,512.73910000000001,null,null,null,1390,1449,"--",15.765000000000001,7.0900763358778773,10.450076335877878,"--","--","--","--","--","--",815,7126.4,333.7,1100,7791.7,1346.2,1294.2192,273237,524.44479999999999,104.4,127.6,null,null,null,null,null,160.80000000000001,169.8,null,null,null,null,null,97.3,34.6,67.2,8.6,4.8,17452,63,null,null,123093,-31,null,null,332750,7.8,1317,1341.7,962.2,242,720.2,513.5,206.7,379.5,null,null,null,null,null,null,null,null,null,null,null,null,null,127.2,142.30000000000001,138.19999999999999,null,null,null,null,null,8.5,5.54,7.22,7.82,60.000000000000057,7.48,5.14,5.56,5.94,6.16,6.3,35.999999999999943,null,null,null,null,null,1.3905000000000001,8.3186999999999998,7.7817999999999996,"--",105.1786,95.474800000000002,13556.4,6073.6,7279.3,null,null,null,null,null,19.93,18.600000000000001,1.2802500000000001,1.165,0,"--",2.4620000000000002,3223,"--"]
["1997-10-01",null,null,null,0,0,0,0,null,null,null,null,null,null,null,null,null,null,null,null,null,null,null,84.6,833.84900000000005,null,null,null,null,null,null,null,null,null,null,null,null,null,85.512500000000003,83.874700000000004,1038300,1.42,56.4,56.5,47,52.8,54.9,51.8,45,60.9,53.6,59.4,54.9,62.6,57582,null,null,null,null,null,null,null,null,null,229822,208064,null,null,null,null,null,501.25279999999998,null,null,null,1520,1499,"--",15.036,6.7859671302149165,10.075967130214917,"--","--","--","--","--","--",800,7210.7,348.1,1127,7849.7,1377.1,1309.3894,273852,532.04430000000002,105.6,123.4,null,null,null,null,null,161.5,170.6,null,null,null,null,null,97.7,34.5,67.099999999999994,8.4,4.7,17513,48,null,null,123946,342,null,null,310600,7.7,1323.9,1340.1,963.6,238.6,725,516.9,208.1,376.5,null,null,null,null,null,null,null,null,null,null,null,null,null,127.8,142.6,138,null,null,null,null,null,8.5,5.5,7,7.57,57.000000000000028,7.29,4.97,5.46,5.77,5.93,6.03,{"$f":"+(FI476-FG476)*100","v":26.000000000000068},null,null,null,null,null,1.3869,8.3134999999999994,7.8708,"--",106.2741,94.430099999999996,14964,6606.5,8458.4,null,null,null,null,null,21.26,19.87,1.2378,1.1830000000000001,0,"--",3.2429999999999999,3522,"--"]
["1998-03-01",null,null,null,0,0,0,0,null,null,null,null,null,null,null,null,null,null,null,null,null,null,null,83.5,866.22929999999997,null,null,null,null,null,null,null,null,null,null,null,null,null,87.141400000000004,85.856700000000004,1060195,1.43,52.9,51.5,47,51.4,46.7,52.1,46,54.9,44.2,54.5,53,57,57672,null,null,null,null,null,null,null,null,null,233043,210792,null,null,null,null,null,491.63810000000001,null,null,null,1567,1605,"--",15.000999999999999,6.0767209011263938,9.3667209011263939,"--","--","--","--","--","--",836,7467.5,443.5,1221,8114,1447.3,1332.9033999999999,275047,541.44749999999999,106.5,133.80000000000001,null,null,null,null,null,162,172.2,null,null,null,null,null,98.6,34.5,67.099999999999994,8.4,4.7,17637,10,null,null,125176,149,null,null,315400,6.8,1337.5,1312.1,948.5,225.5,723,515.6,207.4,363.6,null,null,null,null,null,null,null,null,null,null,null,null,null,124.7,143.30000000000001,137.80000000000001,null,null,null,null,null,8.5,5.49,6.72,7.32,60.000000000000057,7.13,5.03,5.39,5.56,5.61,5.65,9.0000000000000746,null,null,null,null,null,1.4166000000000001,8.3076000000000008,8.5680999999999994,"--",114.1786,97.932400000000001,15392.1,4798.1000000000004,8325.6,null,null,null,null,null,15.02,13.1,1.0637999999999999,1.0629999999999999,0,"--",2.2530000000000001,3577,"--"]
["1998-08-01",null,null,null,0,0,0,0,null,null,null,null,null,null,null,null,null,null,null,null,null,null,null,82.7,903.76880000000006,null,null,null,null,null,null,null,null,null,null,null,null,null,88.936000000000007,87.775499999999994,1066374,1.44,49.3,48.5,50.5,46.7,44,51.2,44.8,50.9,37.799999999999997,50.7,50.3,52.2,57658,null,null,null,null,null,null,null,null,null,236412,213669,null,null,null,null,null,490.4821,null,null,null,1614,1654,"--",14.358000000000001,6.1169154228855787,9.2669154228855781,"--","--","--","--","--","--",846,7661,409.2,1274,8261.7999999999993,1523.1,1386.6665,276418,564.42039999999997,104.4,133.1,null,null,null,null,null,163.4,174,null,null,null,null,null,99.7,34.5,67,7.9,4.5,17563,141,null,null,126551,342,null,null,309000,6.8,1361.5,1389.2,997.6,248,749.6,534.70000000000005,214.9,391.6,null,null,null,null,null,null,null,null,null,null,null,null,null,124.2,143.80000000000001,137.30000000000001,null,null,null,null,null,8.5,5.55,6.52,7.14,62.000000000000014,6.92,4.9000000000000004,5.21,5.27,5.27,5.34,7.0000000000000284,null,null,null,null,null,1.5346,8.31,9.3712,"--",119.6039,102.6502,13753,6779.9,7960.9,null,null,null,null,null,13.36,11.91,1.0620000000000001,1.0069999999999999,0,"--",1.855,3528,"--"]
["1999-02-01",null,null,null,7620,667.4,1781.9,5239.5,null,null,null,null,null,null,null,null,null,null,null,null,null,null,null,81.900000000000006,936.06290000000001,null,null,null,null,null,null,null,null,null,null,null,null,null,90.668300000000002,90.234999999999999,1082750,1.41,51.7,48.5,43,45.8,53.3,54.6,43.5,55,35.200000000000003,56,50.8,57.3,58576,null,null,null,null,null,null,null,null,null,249510,226240,null,null,null,null,null,494.86700000000002,null,null,null,1670,1720,"--",16.565999999999999,6.0666666666666611,9.1466666666666612,"--","--","--","--","--","--",848,7842.3,378.1,1317,8409,1639.3,1441.3145999999999,277992,585.45399999999995,108.1,133.1,null,null,null,null,null,164.7,175.6,null,null,null,null,null,100.7,34.4,67.2,7.7,4.4000000000000004,17395,-32,null,null,128136,409,null,null,302500,6.8,1374.7,1343.9,970.3,232,738.3,526.6,211.7,373.6,null,null,null,null,null,null,null,null,null,null,null,null,null,122.3,145.69999999999999,137.69999999999999,null,null,null,null,null,7.75,4.76,6.4,7.39,98.999999999999929,6.81,4.4400000000000004,4.7,4.88,4.91,5,12.000000000000011,null,null,null,null,null,1.4977,8.2781000000000002,10.005699999999999,1.1203000000000001,116.02290000000001,96.037000000000006,15294.6,5563.1,7930.2,null,null,null,null,null,12.01,10.27,0.96199999999999997,0.95899999999999996,0,"--",1.7609999999999999,3590,"--"]
["1999-06-01",null,null,null,7765.2,708.1,1798.7,5311.6,null,null,null,null,null,null,null,null,null,null,null,null,null,null,null,81.400000000000006,949.92380000000003,null,null,null,null,null,null,null,null,null,null,null,null,null,91.581800000000001,91.119399999999999,1098785,1.4,55.8,54.5,43.5,51.3,52.4,52.2,44.7,59.4,54.2,61.6,52.6,57.9,59045,null,null,null,null,null,null,null,null,null,255472,231926,null,null,null,null,null,495.2491,null,null,null,1559,1702,"--",16.838999999999999,6.2656019656019595,9.2756019656019593,"--","--","--","--","--","--",923,7936.6,287.2,1266,8448.9,1702,1479.3153,279001,594.61069999999995,107.3,139,null,null,null,null,null,166,176.6,null,null,null,null,null,101.5,34.4,67.099999999999994,7.5,4.3,17295,-38,null,null,129093,263,null,null,294000,6.3,1389.9,1406,1010.5,248.8,761.7,543.4,218.3,395.5,null,null,null,null,null,null,null,null,null,null,null,null,null,125.2,145.80000000000001,137.5,null,null,null,null,null,7.75,4.76,7.23,8.02,78.999999999999915,7.55,4.57,5.0999999999999996,5.62,5.81,5.9,28.000000000000025,null,null,null,null,null,1.4695,8.2780000000000005,9.5145999999999997,1.0377000000000001,117.2629,99.066999999999993,17132,7117.4,9550,null,null,null,null,null,17.89,15.86,1.1534,1.0740000000000001,0,"--",2.3460000000000001,3418,"--"]
["1999-09-01",null,null,null,7858.2,717.8,1816.8,5377.1,null,null,null,null,null,null,null,null,null,null,null,null,null,null,null,81,974.92639999999994,null,null,null,null,null,null,null,null,null,null,null,null,null,92.169899999999998,91.627200000000002,1112276,1.4,57,54.5,43.5,51.3,55.8,54.2,43.8,63.5,65.8,59.9,55.8,59.1,63231,null,null,null,null,null,null,null,null,null,261352,237516,null,null,null,null,null,493.73739999999998,null,null,null,1635,1551,"--",17.116,6.8299694189602542,9.7699694189602546,"--","--","--","--","--","--",826,8051,242.8,1286,8488.2999999999993,1737.5,1511.0592999999999,279903,606.88660000000004,107.2,134.19999999999999,null,null,null,null,null,167.8,177.8,null,null,null,null,null,101.7,34.299999999999997,67,7.4,4.2,17281,-6,null,null,129792,216,null,null,289500,6,1401.9,1423.1,1023.1,251.6,771.5,550.5,221,400,null,null,null,null,null,null,null,null,null,null,null,null,null,128,146.5,137.4,null,null,null,null,null,8.25,5.22,7.39,8.1999999999999993,80.999999999999957,7.82,4.68,5.25,5.66,5.8,5.92,25.999999999999979,null,null,null,null,null,1.4771000000000001,8.2774000000000001,9.3413000000000004,1.0497000000000001,115.6249,95.9983,17324.8,8198.2000000000007,9843.5,null,null,null,null,null,23.88,22.54,1.29525,1.2150000000000001,0,"--",2.6360000000000001,3398,"--"]
["2000-04-01",null,null,null,8101.6,745.3,1857.2,5552.5,null,null,null,null,null,null,null,null,null,null,null,null,null,null,null,82.3,1035.0980999999999,null,null,null,null,null,null,null,null,null,null,null,null,null,95.892099999999999,95.994600000000005,1157508,1.39,54.7,51,47,53.2,51.5,53.8,46.1,55.4,71.2,58.1,55.4,61.1,64414,null,null,null,null,null,null,null,null,null,271004,245789,null,null,null,null,null,520.30640000000005,null,null,null,1626,1597,104,17.442,6.813863773357439,9.47386377335744,"--","--","--","--","--","--",841,8535.9,318.8,1275,8836.9,1779.5,1570.5277000000001,281653,625.73590000000002,109.2,137.69999999999999,null,null,null,null,null,170.9,180.3,null,null,null,null,null,103.7,34.4,67.3,6.9,3.8,17298,-4,null,null,131895,287,null,null,266750,6.1,1409.3,1391,1004.9,238.8,766.1,546.5,219.6,386.1,null,null,null,null,null,null,null,null,null,null,null,null,null,130.69999999999999,147.4,138.5,null,null,null,null,null,9,6.02,7.64,8.4,76.000000000000071,8.15,5.66,6.15,6.4,6.26,5.99,-41.000000000000014,null,null,null,null,null,1.4689000000000001,8.2792999999999992,9.3937000000000008,0.94489999999999996,117.3304,99.522499999999994,18637.900000000001,7070.5,10554.9,null,null,null,null,null,25.74,22.76,1.5057499999999999,1.4219999999999999,0,"--",3.028,3755,"--"]
["2000-08-01",null,null,null,8203.7999999999993,756.9,1873.1,5627,null,null,null,null,null,null,null,null,null,null,null,null,null,null,null,81.099999999999994,1071.5501999999999,null,null,null,null,null,null,null,null,null,null,null,null,null,95.718199999999996,95.608400000000003,1183272,1.43,49.9,49,50.5,48.8,50.8,52.2,47.1,50,58.1,49.7,53.5,61.3,64759,null,null,null,null,null,null,null,null,null,272943,247601,null,null,null,null,null,538.6,null,null,null,1541,1552,107.86,17.09,7.4512866546977712,10.32128665469777,"--","--","--","--","--","--",848,8725.9,340.9,1231,8985.2000000000007,1813.4,1651.6153999999999,282653,656.02189999999996,107.3,140.80000000000001,null,null,null,null,null,172.7,181.9,null,null,null,null,null,103.4,34.200000000000003,66.900000000000006,7.1,4.0999999999999996,17287,-35,null,null,132240,-13,null,null,312750,6.3,1404.9,1432.4,1028.8,253.6,775.2,553.1,222.1,403.6,null,null,null,null,null,null,null,null,null,null,null,null,null,132.9,148.19999999999999,139,null,null,null,null,null,9.5,6.5,7.55,8.26,71,8.0299999999999994,6.09,6.18,6.23,6.06,5.83,-40.000000000000036,null,null,null,null,null,1.4827999999999999,8.2796000000000003,9.2723999999999993,0.90449999999999997,119.8186,102.5475,19814.8,10054,12305.9,null,null,null,null,null,31.22,30.2,1.5055000000000001,1.466,0,"--",4.46,3600,"--"]
["2001-01-01",null,null,null,8314.4,766.5,1892.7,5709.1,null,null,null,null,null,null,null,null,null,null,null,null,null,null,null,79.099999999999994,1094.2837999999999,null,null,null,null,null,null,null,null,null,null,null,null,null,94.9499,94.5274,1197916,1.44,42.3,32.5,56,42.3,46.7,49.1,41.8,38.4,64.599999999999994,39.200000000000003,49.8,52.5,60808,null,null,null,null,null,null,null,null,null,278916,252736,null,null,null,null,null,557.70630000000006,null,null,null,1600,1699,113.05,17.251000000000001,7.9212049616065947,10.861204961606594,"--","--","--","--","--","--",936,8923.2000000000007,307.60000000000002,1275,9054.5,1899.4,1729.8516999999999,283920,686.76149999999996,94.7,115.7,null,null,null,null,null,175.6,183.9,null,null,null,null,null,103.7,34.200000000000003,67.2,7.3,4.2,17104,-77,null,null,132706,-25,null,null,340000,5.8,1407,1378.1,995.4,236.8,758.6,541.1,217.5,382.7,null,null,null,null,null,null,null,null,null,null,null,null,null,140,149.5,139.80000000000001,null,null,null,null,null,9.0500000000000007,5.98,7.15,7.93,77.999999999999943,7.03,5.15,4.8099999999999996,4.76,4.8600000000000003,5.16,40.000000000000036,null,null,null,null,null,1.5032000000000001,8.2775999999999996,9.7688000000000006,0.93759999999999999,122.82170000000001,103.6434,20441.900000000001,8427.5,10706,null,null,null,null,null,29.58,25.62,1.4837499999999999,1.524,0,"--",7.8250000000000002,4268,"--"]
["2001-03-01",null,null,null,8317.4,778.7,1869.5,5717.8,null,null,null,null,null,null,null,null,null,null,null,null,null,null,null,78,1091.9914000000001,null,null,null,null,null,null,null,null,null,null,null,null,null,94.125900000000001,93.832599999999999,1186070,1.44,43.1,43.5,52,39.9,50.3,48.8,43.7,41.5,49.9,42.6,47.7,50,58146,null,null,null,null,null,null,null,null,null,276468,250346,null,null,null,null,null,556.47019999999998,null,null,null,1590,1659,115.09,16.867999999999999,7.2824561403508641,10.292456140350865,"--","--","--","--","--","--",939,8997.1,346.5,1218,9101.2999999999993,1968.6,1760.5418,284350,702.56079999999997,91.5,116.9,null,null,null,null,null,176.1,184.7,null,null,null,null,null,103.3,34.1,67.2,7.3,4.3,16938,-90,null,null,132751,-27,null,null,387200,6.6,1408.2,1382.4,997.2,239.4,757.8,540.6,217.2,385.2,null,null,null,null,null,null,null,null,null,null,null,null,null,135.9,149.5,139.6,null,null,null,null,null,8.32,5.31,6.98,7.84,85.999999999999943,6.95,4.42,4.3,4.34,4.6399999999999997,4.8899999999999997,54.999999999999986,null,null,null,null,null,1.5587,8.2774999999999999,9.5990000000000002,0.9083,125.5642,107.5091,19975.8,7590.2,12045.2,null,null,null,null,null,27.24,24.5,1.4540000000000002,1.399,0,"--",5.1890000000000001,4067,"--"]
["2001-11-01",null,null,null,8489.9,852.5,1914.2,5746,null,null,null,null,null,null,null,null,null,null,null,null,null,null,null,73.8,1033.9291000000001,null,null,null,null,null,null,null,null,null,null,null,null,null,90.789400000000001,90.257900000000006,1126307,1.39,44.1,38.5,44.5,36.4,50,49.5,38.9,49.1,32,46.9,49.1,49.4,51335,null,null,null,null,null,null,null,null,null,286960,260363,null,null,null,null,null,572.67049999999995,null,null,null,1602,1651,120.27,17.725000000000001,7.3943742824339971,11.244374282433997,"--","--","--","--","--","--",924,9015.7999999999993,266.89999999999998,1244,9167.5,2257.9,1857.8427999999999,286341,712.65869999999995,83.9,84.9,null,null,null,null,null,177.5,188.1,null,null,null,null,null,100.5,33.799999999999997,66.7,9.4,5.5,15825,-147,null,null,131176,{"$f":"+DP525-DP524","v":-291},null,null,453750,7.7,1362.8,1374.9,981.7,234.8,746.9,534,212.9,393.2,null,null,null,null,null,null,null,null,null,null,null,null,null,129.80000000000001,150.19999999999999,139.4,null,null,null,null,null,5.0999999999999996,2.09,6.97,7.81,{"$f":"+(FB525-FA525)*100","v":83.999999999999986},6.66,1.87,2.1800000000000002,2.78,3.97,4.6500000000000004,187.00000000000006,null,null,null,null,null,1.5922000000000001,8.2768999999999995,9.2249999999999996,0.88829999999999998,127.2894,109.2191,17170.2,8878.7999999999993,10873.1,null,null,null,null,null,19.670000000000002,18.8,1.21225,1.2589999999999999,0,"--",2.786,3910,"--"]
["2002-02-01",null,null,null,8537.6,847.4,1922.3,5795.8,null,null,null,null,null,null,null,null,null,null,null,null,null,null,null,73.900000000000006,1016.8406,null,null,null,null,null,null,null,null,null,null,null,null,null,91.367199999999997,91.077399999999997,1112461,1.38,50.7,53,41.5,43.8,50.7,52.4,39.700000000000003,60.7,41.5,58.1,51.4,57.5,50450,null,null,null,null,null,null,null,null,null,285061,257677,null,null,null,null,null,574.93150000000003,null,null,null,1829,1787,122.19,17.006,6.8363636363636466,10.826363636363645,"--","--","--","--","--","--",948,9057.7000000000007,423.6,1501,9395.5,2397.1999999999998,1881.9054000000001,286994,714.82209999999998,90.7,95,null,null,null,null,null,178,189.1,null,null,null,null,null,100.3,33.799999999999997,66.8,9.5,5.7,15515,-72,null,null,130733,-136,null,null,399000,8.3000000000000007,1347.8,1315.4,946.1,225.1,721,515.1,205.9,369.3,null,null,null,null,null,null,null,null,null,null,null,null,null,128.4,150.1,139.5,null,null,null,null,null,4.75,1.74,6.51,7.89,138,6.89,1.73,2.23,3.02,4.3,4.91,189,null,null,null,null,null,1.5964,8.2766999999999999,9.1050000000000004,0.87070000000000003,129.6669,112.1728,16179.5,8020.8,10022.5,null,null,null,null,null,20.74,20.28,1.1547499999999999,1.1519999999999999,0,"--",2.2629999999999999,3759,"--"]
["2002-04-01",null,null,null,8577.6,866.5,1915.3,5818.3,null,null,null,null,null,null,null,null,null,null,null,null,null,null,null,74.599999999999994,1000.08,null,null,null,null,null,null,null,null,null,null,null,null,null,92.478999999999999,92.095500000000001,1106874,1.35,52.4,56,40.5,46.6,51.9,55.5,43,59.9,60.3,59.1,53.5,56.3,49577,null,null,null,null,null,null,null,null,null,288820,261320,null,null,null,null,null,581.36609999999996,null,null,null,1592,1669,124.51,17.343,7.5439909297052195,11.673990929705219,"--","--","--","--","--","--",936,9115.7999999999993,408.9,1277,9417.9,2453.8000000000002,1903.9580000000001,287397,725.22770000000003,93,108.5,null,null,null,null,null,179.3,189.7,null,null,null,null,null,100.4,33.9,66.7,9.6999999999999993,5.9,15392,-51,null,null,130634,-78,null,null,429250,8.9,1345.5,1329.3,947.4,229.2,718.2,511.2,207,381.9,null,null,null,null,null,null,null,null,null,null,null,null,null,130.80000000000001,150.30000000000001,139.30000000000001,null,null,null,null,null,4.75,1.75,6.76,8.0299999999999994,126.99999999999996,6.99,1.72,2.48,3.42,4.6500000000000004,5.21,179,null,null,null,null,null,1.5814999999999999,8.2772000000000006,9.1648999999999994,0.88600000000000001,128.56620000000001,110.36150000000001,18185.8,9097.6,11471.3,null,null,null,null,null,26.27,25.73,1.4452500000000001,1.3089999999999999,0,"--",3.41,3749,"--"]
["2002-09-01",null,null,null,8604.7000000000007,854,1925.7,5853.3,null,null,null,null,null,null,null,null,null,null,null,null,null,null,null,75.5,966.20230000000004,null,null,null,null,null,null,null,null,null,null,null,null,null,93.711600000000004,93.75,1128560,1.36,50.5,44.5,40.5,45.8,53.8,54.7,43.8,52.9,62.5,53.5,56.7,54.9,48220,null,null,null,null,null,null,null,null,null,288434,260650,null,null,null,null,null,596.99149999999997,null,null,null,1804,1803,131.53,16.326000000000001,7.2160022459292712,11.20600224592927,"--","--","--","--","--","--",1044,9190.2999999999993,397.9,1446,9427.1,2650.2,1950.6514,288618,743.32640000000004,86.1,93.7,null,null,null,null,null,180.8,191.3,null,null,null,null,null,99.9,33.9,66.7,9.6,5.7,15119,-52,null,null,130527,-60,null,null,409500,9.5,1332,1350,956.3,237.1,719.2,509.8,209.4,393.7,null,null,null,null,null,null,null,null,null,null,null,null,null,132.30000000000001,150.30000000000001,139,null,null,null,null,null,4.75,1.75,6.15,7.4,125,6.09,1.63,1.72,2,2.94,3.87,187,null,null,null,null,null,1.5761000000000001,8.2769999999999992,10.0708,0.98060000000000003,126.1056,103.58880000000001,17861.5,12291.5,11409.2,null,null,null,null,null,29.67,28.4,1.4424999999999999,1.411,0,"--",3.569,3699,"--"]
["2003-02-01",null,null,null,8684.9,850.2,1961.2,5904.9,null,null,null,null,null,null,null,null,null,null,null,null,null,null,null,76,941.6069,null,null,null,null,null,null,null,null,null,null,null,null,null,94.255799999999994,93.8934,1148793,1.37,48.8,49,46,42.6,55.2,54.6,43,51.9,65.5,53.6,52.8,55.6,49025,null,null,null,null,null,null,null,null,null,291178,263199,null,null,null,null,null,608.11189999999999,null,null,null,1629,1854,137.44999999999999,15.814,9.0460674157303362,13.176067415730337,"--","--","--","--","--","--",936,9290.4,393.5,1301,9481.2999999999993,2846.5,1993.4057,289714,758.60130000000004,79.900000000000006,64.8,null,null,null,null,null,183.6,192.5,null,null,null,null,null,99,33.700000000000003,66.400000000000006,10.199999999999999,5.9,14781,-85,null,null,130447,-149,null,null,411000,9.5,1325.2,1293.5,922.9,224.2,698.7,495.3,203.4,370.6,null,null,null,null,null,null,null,null,null,null,null,null,null,137.6,149.9,139,null,null,null,null,null,4.25,1.26,5.95,7.06,110.99999999999994,5.84,1.17,1.3,1.63,2.9,3.9,{"$f":"+(FI540-FG540)*100","v":227},null,null,null,null,null,1.5121,8.2780000000000005,10.944699999999999,1.0785,123.4448,97.884799999999998,17183.5,9629.6,10957.7,null,null,null,null,null,35.869999999999997,32.770000000000003,1.6544999999999999,1.6539999999999999,0,"--",6.657,4400,"--"]
["2003-08-01",null,null,null,8976.4,962.7,2025.9,5992.7,null,null,null,null,null,null,null,null,null,null,null,null,null,null,null,75.7,909.64239999999995,null,null,null,null,null,null,null,null,null,null,null,null,null,93.737099999999998,93.779600000000002,1132757,1.32,53.2,51.5,43,47.1,56.4,55.2,43.1,61.1,53,61.8,53,65.099999999999994,50558,null,null,null,null,null,null,null,null,null,307745,277901,null,null,null,null,null,618.40279999999996,null,null,null,1833,1966,143.55000000000001,17.931999999999999,8.3160664819944614,12.586066481994461,"--","--","--","--","--","--",1206,9551.5,456.4,1484,9852.7999999999993,3126.2,2049.1242999999999,291072,766.32439999999997,89.3,81.7,null,null,null,null,null,184.5,193.6,null,null,null,null,null,98.6,33.700000000000003,66.099999999999994,10.1,6.1,14376,-26,null,null,130178,-41,null,null,400000,10.1,1329.4,1349.6,940.9,233.6,707.3,495.9,211.4,408.7,null,null,null,null,null,null,null,null,null,null,null,null,null,138,150.5,139.69999999999999,null,null,null,null,null,4,1.03,5.88,7.01,112.99999999999999,6.26,0.95,1.31,1.86,3.37,4.45,259,null,null,null,null,null,1.3963000000000001,8.2769999999999992,10.782999999999999,1.1154999999999999,119.8917,94.231899999999996,17584.3,13764.9,11403,null,null,null,null,null,31.59,29.89,1.7130000000000001,1.4870000000000001,0,"--",4.9779999999999998,3651,"--"]
["2003-11-01",null,null,null,9026,965.5,2039.6,6026.9,null,null,null,null,null,null,null,null,null,null,null,null,null,null,null,76.900000000000006,881.68039999999996,null,null,null,null,null,null,null,null,null,null,null,null,null,95.222399999999993,95.727000000000004,1144906,1.31,58.4,59,39.5,50.4,57.1,61.4,49.7,69.099999999999994,64,66.599999999999994,56.4,61.1,51909,null,null,null,null,null,null,null,null,null,308551,278322,null,null,null,null,null,647.22649999999999,null,null,null,2083,1918,148.82,17.196999999999999,7.7283746556473911,11.788374655647392,"--","--","--","--","--","--",1093,9704.9,409.8,1694,9852.4,3153.1,2066.4000999999998,291807,765.00789999999995,93.7,92.5,null,null,null,null,null,185,194,null,null,null,null,null,99.2,33.799999999999997,66.099999999999994,10,5.8,14316,-18,null,null,130496,11,null,null,363000,10.3,1332.2,1341.9,946.4,233.2,713.2,499.1,214.1,395.5,null,null,null,null,null,null,null,null,null,null,null,null,null,138.9,151,140,null,null,null,null,null,4,1,5.65,6.66,100.99999999999997,5.93,0.93,1.34,1.93,3.29,4.3,237,null,null,null,null,null,1.3129999999999999,8.2768999999999995,11.1494,1.171,116.065,88.603999999999999,18640.5,14156.9,11692.5,null,null,null,null,null,31.09,28.75,1.5435000000000001,1.482,0,"--",4.8339999999999996,4001,"--"]
["2004-03-01",null,null,null,9128.5,986,2060.6999999999998,6085.8,null,null,null,null,null,null,null,null,null,null,null,null,null,null,null,77.2,869.38210000000004,null,null,null,null,null,null,null,null,null,null,null,null,null,95.453800000000001,96.000200000000007,1168363,1.28,60.6,63.5,39.5,57,60.2,57.1,48,64.599999999999994,86,66.8,66.7,62.3,55161,null,null,null,null,null,null,null,null,null,316935,286232,null,null,null,null,null,670,null,null,null,1998,2066,156.94,16.837,7.540076128330603,11.600076128330603,"--","--","--","--","--","--",1276,9853.4,398.3,1632,9936.6,3262.1,2109.7203,292561,778.09249999999997,95.8,88.5,null,null,null,null,null,187.1,195.5,null,null,null,null,null,99.4,33.700000000000003,66,10,5.8,14287,8,null,null,131157,331,null,null,343200,10.199999999999999,1338.8,1312.7,931,225.5,705.5,487.3,218.2,381.7,null,null,null,null,null,null,null,null,null,null,null,null,null,143.1,151.80000000000001,140.4,null,null,null,null,null,4,1,5.33,6.11,78.000000000000028,5.45,0.94,1.19,1.58,2.79,3.83,225,null,null,null,null,null,1.3286,8.2771000000000008,11.019,1.2261,114.2573,86.605800000000002,22483.200000000001,13800.1,13593.8,null,null,null,null,null,36.76,33.630000000000003,1.778,1.629,0,"--",5.5419999999999998,4098,"--"]
["2004-09-01",null,null,null,9295.6,1017.3,2080.1,6199.7,null,null,null,null,null,null,null,null,null,null,null,null,null,null,null,78.2,886.78470000000004,null,null,null,null,null,null,null,null,null,null,null,null,null,96.745000000000005,97.724999999999994,1217400,1.3,57.4,55,41.5,58,53.5,58.2,51.6,57.7,76,59.8,59.8,60,56176,null,null,null,null,null,null,null,null,null,324607,293177,null,null,null,null,null,685.05370000000005,null,null,null,1905,2041,169.65,17.431999999999999,7.939168017287952,11.719168017287952,"--","--","--","--","--","--",1214,10146.1,353.7,1555,10066,3453.7,2160.1482999999998,293971,793.63580000000002,94.2,96.7,null,null,null,null,null,189.8,197.5,null,null,null,null,null,101,33.799999999999997,65.8,9.4,5.4,14331,-14,null,null,132118,162,null,null,337250,9.6,1362.8,1382.6,964.4,233,731.4,506.4,225,418.2,null,null,null,null,null,null,null,null,null,null,null,null,null,147.69999999999999,153.19999999999999,142.1,null,null,null,null,null,4.58,1.61,5.46,6.27,80.999999999999957,5.75,1.65,2.12,2.5299999999999998,3.36,4.13,160,null,null,null,null,null,1.2881,8.2766999999999999,11.487,1.2223999999999999,114.74550000000001,86.364500000000007,21688.1,18386.900000000001,13520.9,null,null,null,null,null,45.95,43.2,1.9122500000000002,1.917,0,"--",5.2190000000000003,3960,"--"]
["2005-02-01",null,null,null,9412.2999999999993,1024.8,2122.9,6267.5,null,null,null,null,null,null,null,null,null,null,null,null,null,null,null,80.400000000000006,931.90459999999996,null,null,null,null,null,null,null,null,null,null,null,null,null,99.674099999999996,101.1187,1261540,1.29,55.5,50.5,42.5,56,56.5,60.7,51,55.9,65.5,58.2,56.5,61.9,57799,null,null,null,null,null,null,null,null,null,332980,300511,null,null,null,null,null,691.12109999999996,null,null,null,2207,2114,180.25,16.402000000000001,8.4530262453133389,12.23302624531334,446,1319,4.3,"--","--","--",1319,10352.4,264.10000000000002,1792,10074.5,3507.2,2211.5587,295105,804.10730000000001,94.1,104.4,null,null,null,null,null,192.4,199.4,null,null,null,null,null,101.9,33.799999999999997,65.900000000000006,9.3000000000000007,5.4,14273,16,null,null,133034,239,null,null,316000,9.1999999999999993,1380.7,1348.8,958.5,224.2,734.3,512.20000000000005,222.1,390.3,null,null,null,null,null,null,null,null,null,null,null,null,null,151.6,155.30000000000001,143.69999999999999,null,null,null,null,null,5.49,2.5,5.2,5.82,62.000000000000014,5.63,2.54,3.03,3.38,3.77,4.17,79,null,null,null,null,null,1.2401,8.2765000000000004,11.1373,1.3012999999999999,109.7718,81.9358,21502.5,16937.599999999999,12607.1,null,null,null,null,null,47.97,45.48,1.9524999999999999,2.0270000000000001,0,"--",6.2030000000000003,4355,"--"]
["2005-07-01",null,null,null,9620.7999999999993,1114,2122.6999999999998,6374.3,null,null,null,null,null,null,null,null,null,null,null,null,null,null,null,80.099999999999994,989.46190000000001,null,null,null,null,null,null,null,null,null,null,null,null,null,99.899699999999996,101.1469,1270605,1.26,52.8,49,44.5,53.2,55.8,54.7,45.5,57.2,48.5,57.4,50.8,61.3,57853,null,null,null,null,null,null,null,null,null,346690,313634,null,null,null,null,null,696.73440000000005,null,null,null,2054,2203,191.37,20.606999999999999,8.0671602326811218,11.567160232681122,464,1389,4.2,"--","--","--",1389,10640.3,182.3,1724,10222.5,3539.6,2257.2309,296186,814.9085,96.5,103.6,null,null,null,null,null,194.9,200.9,null,null,null,null,null,102.9,33.700000000000003,66.099999999999994,8.8000000000000007,5,14226,-1,null,null,134329,374,null,null,324400,8.8000000000000007,1403,1418.3,983.3,234.3,749,522.4,226.6,435,null,null,null,null,null,null,null,null,null,null,null,null,null,156.30000000000001,156.80000000000001,145.1,null,null,null,null,null,6.25,3.26,5.0599999999999996,5.95,89.000000000000057,5.7,3.22,3.64,3.87,3.98,4.18,30.999999999999961,null,null,null,null,null,1.2229000000000001,8.2263999999999999,10.6724,1.2040999999999999,112.1413,85.820400000000006,21087.3,21272.7,12710.2,null,null,null,null,null,58.7,57.52,2.3329999999999997,2.3730000000000002,0,"--",7.5789999999999997,3996,"--"]
["2005-09-01",null,null,null,9548.7999999999993,1030.3,2123.1,6400.3,null,null,null,null,null,null,null,null,null,null,null,null,null,null,null,78.5,1000.93,null,null,null,null,null,null,null,null,null,null,null,null,null,98.264399999999995,100.5078,1282940,1.25,56.8,55,44.5,53.4,57.3,53.4,49.5,60.9,78,62.4,57.7,55.2,58816,null,null,null,null,null,null,null,null,null,343633,310350,null,null,null,null,null,710.17830000000004,null,null,null,2151,2263,195.61,16.427,9.7418335089568053,13.241833508956805,487,1244,4.7,"--","--","--",1244,10754.9,222.8,1789,10185.6,3565.4,2271.6333,296707,819.65179999999998,76.900000000000006,87.5,null,null,null,null,null,198.8,201.3,null,null,null,null,null,103.5,33.799999999999997,66.099999999999994,9,5,14175,-28,null,null,134592,67,null,null,382750,8.4,1403.5,1423.7,991.9,233,758.9,529.9,229,431.8,null,null,null,null,null,null,null,null,null,null,null,null,null,162.19999999999999,157.1,145.30000000000001,null,null,null,null,null,6.59,3.62,5.13,6.03,90.000000000000028,5.77,3.42,3.85,3.95,4.01,4.2,25,null,null,null,null,null,1.1777,8.0919000000000008,10.7858,1.2234,110.5527,83.822999999999993,25949.9,23294.5,14517.6,null,null,null,null,null,65.569999999999993,62.91,2.9512499999999999,2.819,0,"--",12.111000000000001,3995,"--"]
["2006-05-01",null,null,null,9781.9,1071.4000000000001,2190.3000000000002,6521.1,null,null,null,null,null,null,null,null,null,null,null,null,null,null,null,80.400000000000006,1103.3231000000001,null,null,null,null,null,null,null,null,null,null,null,null,null,101.7589,103.6039,1363254,1.27,53.7,53,44,53.2,55.7,56.5,48.5,54.9,77,56,56.1,58.1,64030,null,null,null,null,null,null,null,null,null,356524,321647,null,null,null,null,null,722.03250000000003,null,null,null,1942,1905,206.5,16.170000000000002,8.577272727272728,11.797272727272729,565,1086,6.2,3550,6600,6.1,1086,11319,321.89999999999998,1570,10539.8,3602.7,2407.1615000000002,298496,899.47130000000004,79.099999999999994,104.7,null,null,null,null,null,201.3,205.4,null,null,null,null,null,105.5,33.799999999999997,66.099999999999994,8.1999999999999993,4.5999999999999996,14203,-23,null,null,136257,25,null,null,327600,8.5,1431.2,1426.7,995.9,233.5,762.4,533.6,228.8,430.8,null,null,null,null,null,null,null,null,null,null,null,null,null,165.8,158.9,146.9,null,null,null,null,null,7.93,4.9400000000000004,5.95,6.75,79.999999999999986,6.6,4.72,5,4.97,5,5.1100000000000003,14.000000000000057,null,null,null,null,null,1.1100000000000001,8.0130999999999997,11.0908,1.2766999999999999,107.5793,80.777100000000004,26459,22317.599999999999,17154.599999999999,null,null,null,null,null,70.94,69.78,2.9710000000000001,2.8969999999999998,0,"--",6.3719999999999999,4078,"--"]
["2006-08-01",null,null,null,9813.7000000000007,1082.3,2195,6536.2,null,null,null,null,null,null,null,null,null,null,null,null,null,null,null,80.599999999999994,1152.2358999999999,null,null,null,null,null,null,null,null,null,null,null,null,null,102.4526,104.4939,1391926,1.28,53.7,51.5,46,52.6,55.7,54,51,55.3,73,55.2,54.2,56.7,64311,null,null,null,null,null,null,null,null,null,360514,325147,null,null,null,null,null,717.21789999999999,null,null,null,1650,1722,204.11,15.901999999999999,8.6265680775114824,11.916568077511483,566,1035,6.7,3830,6300,6.8,1035,11435.8,304,1364,10558.6,3624.6,2415.732,299263,903.92430000000002,82,100.2,null,null,null,null,null,203.8,206.8,null,null,null,null,null,105.9,33.799999999999997,66.2,8.4,4.7,14159,-29,null,null,136725,183,null,null,313500,8.4,1442.2,1464,1015.3,241.3,774,541.20000000000005,232.8,448.7,null,null,null,null,null,null,null,null,null,null,null,null,null,167.9,158.69999999999999,147.1,null,null,null,null,null,8.25,5.25,5.68,6.59,91.000000000000014,6.52,4.96,5.08,4.9000000000000004,4.82,4.88,-2.0000000000000462,null,null,null,null,null,1.1182000000000001,7.9722,10.8735,1.2809999999999999,107.84480000000001,81.313599999999994,26299.200000000001,26713.3,18038.7,null,null,null,null,null,73.05,73.23,2.9984999999999999,3.0449999999999999,0,"--",6.9889999999999999,4039,"--"]
["2007-02-01",null,null,null,9990.2999999999993,1120.4000000000001,2236.8000000000002,6630,null,null,null,null,null,null,null,null,null,null,null,null,null,null,null,80.599999999999994,1205.2328,null,null,null,null,null,null,null,null,null,null,null,null,null,103.7659,105.88290000000001,1418855,1.3,51.9,51.5,53,50.9,54,61.5,47,55.1,59,53.8,52.8,56,64297,null,null,null,null,null,null,null,null,null,364090,328076,null,null,null,null,null,737.72230000000002,null,null,null,1480,1598,204.07,16.704000000000001,6.9202607823470279,10.070260782347027,544,828,7.9,3380,5790,7.8,828,11821,338.7,1189,10788,3715.7,2470.0499,300802,933.35580000000004,91.3,111.2,null,null,null,null,null,204.226,209.13499999999999,null,null,null,null,null,106.4,33.700000000000003,66.3,8.1999999999999993,4.5,13997,{"$f":"+DL588-DL587","v":-11},null,null,137595,89,null,null,322750,8.5,1452.6,1417.2,1001,231.5,769.5,541,228.5,416.2,null,null,null,null,null,null,null,null,null,null,null,null,null,166.8,160.9,149,null,null,null,null,null,8.25,5.26,5.39,6.28,89.000000000000057,6.29,5.03,5.05,4.8499999999999996,4.71,4.72,-12.999999999999989,null,null,null,null,null,1.171,7.7502000000000004,10.995100000000001,1.3080000000000001,107.3122,82.141599999999997,23678.799999999999,23038.9,15142.8,null,null,null,null,null,59.26,57.56,2.2232499999999997,2.488,0,"--",7.5460000000000003,4319,"--"]
["2007-03-01",null,null,null,9997.9,1122.8,2244.1,6627.8,null,null,null,null,null,null,null,null,null,null,null,null,null,null,null,80.5,1215.9412,null,null,null,null,null,null,null,null,null,null,null,null,null,103.9538,106.8334,1421289,1.28,50.7,47,48,49.9,55.5,57.5,49,50.2,65.5,53.1,51.2,52.8,66879,null,null,null,null,null,null,null,null,null,367414,330800,null,null,null,null,null,731.52959999999996,null,null,null,1495,1596,204.14,16.015000000000001,7.1981972959439275,10.278197295943928,545,833,7.9,3380,5460,7.9,833,11902.1,371.3,1202,10820.6,3729.7,2484.4331999999999,301021,938.46360000000004,88.4,108.2,null,null,null,null,null,205.28800000000001,209.41800000000001,null,null,null,null,null,107.3,33.9,66.2,8,4.4000000000000004,13970,-27,null,null,137785,{"$f":"+DP589-DP588","v":190},null,null,309400,9.1,1451.7,1425.8,1005.8,232,773.8,545.20000000000005,228.6,420,null,null,null,null,null,null,null,null,null,null,null,null,null,169.3,160.9,149.1,null,null,null,null,null,8.25,5.26,5.3,6.27,{"$f":"+(FB589-FA589)*100","v":96.999999999999972},6.16,4.9400000000000004,4.92,4.57,4.4800000000000004,4.5599999999999996,-1.0000000000000675,null,null,null,null,null,1.1681999999999999,7.7369000000000003,11.1144,1.3246,106.786,81.3142,27237.599999999999,22723,18190.599999999999,null,null,null,null,null,60.56,62.05,2.5268000000000002,2.6669999999999998,0,"--",7.2210000000000001,4625,"--"]
["2007-07-01",null,null,null,10047.1,1136.5999999999999,2248.5,6658,null,null,null,null,null,null,null,null,null,null,null,null,null,null,null,80.599999999999994,1281.5435,null,null,null,null,null,null,null,null,null,null,null,null,null,104.7111,108.0232,1447307,1.29,52.4,52,51,49.8,56.5,54.5,46.5,58.6,65,57,50,57.1,65121,null,null,null,null,null,null,null,null,null,369500,332228,null,null,null,null,null,760.55920000000003,null,null,null,1354,1361,196.83,15.497999999999999,7.0178905864958079,10.307890586495809,537,778,8.3000000000000007,4040,5070,9.5621301775147938,778,12011.5,298,1042,10825.1,3812.2,2533.6677,302004,958.32230000000004,90.4,111.9,null,null,null,null,null,207.60300000000001,210.773,null,null,null,null,null,107.4,33.799999999999997,66,8.4,4.7,13889,-22,null,null,138049,-34,null,null,313400,8.6999999999999993,1436.6,1451.8,1005.7,238.6,767.1,539.1,228,446.1,null,null,null,null,null,null,null,null,null,null,null,null,null,175.1,162.1,149.80000000000001,null,null,null,null,null,8.25,5.26,5.73,6.65,92,6.7,4.82,4.96,4.82,4.88,5,17.999999999999972,null,null,null,null,null,1.0502,7.5757000000000003,10.8146,1.3726,102.97190000000001,77.6524,24609.599999999999,28601.200000000001,16896.900000000001,null,null,null,null,null,74.180000000000007,76.930000000000007,2.9645999999999999,2.8679999999999999,0,"--",6.399,4126,"--"]
["2008-02-01",null,null,null,10045.299999999999,1117.2,2207.4,6719.6,null,null,null,null,null,null,null,null,null,null,null,null,null,null,null,80.599999999999994,1449.3615,null,null,null,null,null,null,null,null,null,null,null,null,null,104.6741,107.3557,1507326,1.29,47.6,45,49,45.8,56,47.5,47,46.4,75.5,47.4,51.6,52.2,66927,null,null,null,null,null,null,null,null,null,371734,334524,null,null,null,null,null,797.03449999999998,null,null,null,1103,1014,178.54,15.166,9.0429592706119681,12.472959270611968,477,593,9.6999999999999993,3380,4120,9.8446601941747574,593,12362.4,413.1,724,10925.4,3908.8,2635.4845,303711,1015.0915,70.8,76.400000000000006,null,null,null,null,null,212.68700000000001,213.93899999999999,null,null,null,null,null,107.4,33.700000000000003,66,9,4.9000000000000004,13696,-29,null,null,138346,-84,null,null,346750,8.6999999999999993,1412.7,1376.8,978.7,226.9,751.8,530.20000000000005,221.6,398.1,null,null,null,null,null,null,null,null,null,null,null,null,null,182.7,164.8,151.69999999999999,null,null,null,null,null,6,2.98,5.53,6.82,129,5.92,2.12,2.0499999999999998,1.97,2.78,3.74,177.00000000000003,null,null,null,null,null,0.99860000000000004,7.1643999999999997,10.767899999999999,1.4759,97.8429,72.681399999999996,27499,24095.9,17674.5,null,null,null,null,null,95.35,94.99,3.0782500000000002,3.3769999999999998,0,"--",8.6419999999999995,4235,"--"]
["2008-05-01",null,null,null,10084.1,1124.5999999999999,2243,6714.6,null,null,null,null,null,null,null,null,null,null,null,null,null,null,null,79.5,1491.2029,null,null,null,null,null,null,null,null,null,null,null,null,null,103.1178,105.4516,1516624,1.26,48.8,46,47,46.1,59.5,49.5,48,48.5,87,49.4,52.2,53.3,68248,null,null,null,null,null,null,null,null,null,375851,337762,null,null,null,null,null,807.98760000000004,null,null,null,973,995,169.52,14.364000000000001,9.4884138231239934,13.268413823123993,451,504,10.7,3730,4140,10.811594202898551,504,12989.8,902.9,679,11431.6,4006.1,2658.7543000000001,304323,1020.0273999999999,59.8,58.1,null,null,null,null,null,215.208,214.93600000000001,null,null,null,null,null,107,33.700000000000003,66.099999999999994,9.6999999999999993,5.4,13564,-35,null,null,137872,-186,null,null,366800,7.9,1405.7,1404.7,981.7,229.4,752.3,532.6,219.7,423,null,null,null,null,null,null,null,null,null,null,null,null,null,196.6,166.3,153,null,null,null,null,null,5,1.98,5.57,6.93,135.99999999999994,6.04,1.73,2.06,2.4500000000000002,3.15,3.88,142.99999999999997,null,null,null,null,null,0.99929999999999997,6.9725000000000001,10.4381,1.5553999999999999,95.869,70.701499999999996,30270.799999999999,27634.5,18837.2,null,null,null,null,null,125.39,122.8,3.7580000000000005,4.4249999999999998,0,"--",11.381,4175,"--"]
["2008-09-01",null,null,null,9960,1061.7,2186.9,6712.5,null,null,null,null,null,null,null,null,null,null,null,null,null,null,null,74.400000000000006,1531.0719999999999,null,null,null,null,null,null,null,null,null,null,null,null,null,96.543899999999994,98.7834,1529194,1.31,44.8,35,53.5,42.1,52,44,43,41.8,53.5,45.4,51.6,50.4,63752,null,null,null,null,null,null,null,null,null,366377,328031,null,null,null,null,null,837.10709999999995,null,null,null,820,797,159.09,12.688000000000001,11.053319875136076,15.323319875136075,395,433,10.9,3610,4270,10.14519906323185,433,12504,483.1,537,10878.9,4041,2655.6277,305309,1012.6079,70.3,61.4,null,null,null,null,null,218.87700000000001,216.71299999999999,null,null,null,null,null,105.6,33.6,66,11,6.1,13275,-83,null,null,136780,-450,null,null,464000,10.199999999999999,1371.5,1394.8,977.5,231.2,746.3,531.4,214.9,417.3,null,null,null,null,null,null,null,null,null,null,null,null,null,196.9,168.9,155.1,null,null,null,null,null,5,1.81,5.65,7.31,165.99999999999991,6.04,1.1299999999999999,1.91,2.08,2.88,3.69,161,null,null,null,null,null,1.0582,6.8307000000000002,10.6633,1.4341999999999999,100.246,75.561199999999999,29653.599999999999,33078.699999999997,17926.2,null,null,null,null,null,103.9,97.23,3.7617499999999997,4.024,0,"--",7.4850000000000003,4130,"--"]
["2009-03-01",null,null,null,9822.1,994.3,2173.4,6654.8,null,null,null,null,null,null,null,null,null,null,null,null,null,null,null,68.400000000000006,1511.5141000000001,null,null,null,null,null,null,null,null,null,null,null,null,null,89.191299999999998,88.096699999999998,1404817,1.47,36,35.5,54,28.4,39,33,33,40,31,36.1,42.4,42.8,49044,null,null,null,null,null,null,null,null,null,329947,292427,null,null,null,null,null,877.41759999999999,null,null,null,505,513,143.02000000000001,9.5519999999999996,8.253521232337615,14.343521232337615,311,339,10.7,3090,3940,9.4111675126903567,339,12000.5,657.5,353,10916.6,4349.2,2621.8877000000002,306588,939.6,57.3,26.9,null,null,null,null,null,212.495,218.25299999999999,null,null,null,null,null,99.9,33.1,65.599999999999994,15.8,8.6999999999999993,12208,-172,null,null,132528,-823,null,null,657800,12.3,1294.3,1268.4000000000001,895,203.8,691.2,490.5,200.7,373.4,null,null,null,null,null,null,null,null,null,null,null,null,null,168.1,171.2,156.80000000000001,null,null,null,null,null,3.25,0.18,5.5,8.42,292,5,0.21,0.64,0.93,1.82,2.82,188.99999999999997,null,null,null,null,null,1.2645,6.8360000000000003,14.646599999999999,1.3049999999999999,112.3416,84.011600000000001,17894.900000000001,21224.7,13929.6,null,null,null,null,null,47.98,46.54,2.0111999999999997,2.0920000000000001,201,201,4.0019999999999998,4002,"--"]
["2009-08-01",null,null,null,9933.4,1110.5,2176.1,6647.2,null,null,null,null,null,null,null,null,null,null,null,null,null,null,null,68.2,1363.6224999999999,null,null,null,null,null,null,null,null,null,null,null,null,null,88.953400000000002,88.426199999999994,1320048,1.32,53.5,52.5,39,47.2,55.5,49.5,36,65.3,65,63.2,55.7,52.1,50096,null,null,null,null,null,null,null,null,null,346657,309012,null,null,null,null,null,849.64269999999999,null,null,null,586,616,143.44999999999999,14.567,8.1161644336732373,14.836164433673236,261,418,7.8,3300,4400,9,418,12057.9,530.20000000000005,487,10892.4,4571.6000000000004,2577.6806000000001,307685,950.94910000000004,65.7,54.5,null,null,null,null,null,215.44499999999999,219.49600000000001,null,null,null,null,null,98.1,33.1,65.400000000000006,16.7,9.6,11626,-42,null,null,130479,-213,null,null,560250,16.3,1252.4000000000001,1275.7,877,206.9,670.1,473,197.1,398.7,null,null,null,null,null,null,null,null,null,null,null,null,null,175,171.8,156.9,null,null,null,null,null,3.25,0.16,5.26,6.58,132.00000000000003,5.19,0.17,0.46,1.1200000000000001,2.57,3.59,246.99999999999997,null,null,null,null,null,1.0871999999999999,6.8323,13.0063,1.4266000000000001,103.39400000000001,75.356800000000007,19230.3,25798.1,15060.5,null,null,null,null,null,71.06,72.510000000000005,2.6850000000000001,2.6339999999999999,211.75,175,3.3050000000000002,3336,"--"]
["2010-01-01",null,null,null,9881.7000000000007,1028.3,2193.1999999999998,6659.6,null,null,null,null,null,null,null,null,null,null,null,null,null,null,null,70.8,1238.7822000000001,null,null,null,null,null,null,null,null,null,null,null,null,null,91.563599999999994,91.119299999999996,1331183,1.27,57.2,56,32,53.6,58.5,56.5,46,60.6,70,63,60.3,51.5,52412,null,null,null,null,null,null,null,null,null,346252,308751,null,null,null,null,null,819.95090000000005,null,null,null,614,636,146.88999999999999,10.667999999999999,12.421111388976716,19.281111388976715,233,345,8.1043478260869559,2750,4310,7.6566125290023201,345,12235.9,622.20000000000005,510,10906.7,4838.6000000000004,2540.9906000000001,308833,909.41459999999995,74.400000000000006,56.5,null,null,null,null,null,217.488,220.63300000000001,null,null,null,null,null,98.2,33.299999999999997,64.8,16.7,9.8000000000000007,11460,-15,null,null,129801,23,null,null,475750,20,1239,1207.8,849.2,195.7,653.5,458.4,195.1,358.6,null,null,null,null,null,null,null,null,null,null,null,null,null,181.9,172.5,157.1,null,null,null,null,null,3.25,0.11,5.26,6.25,99.000000000000028,5.03,0.06,0.35,0.93,2.48,3.73,280,null,null,null,null,null,1.0438000000000001,6.8269000000000002,12.8096,1.4266000000000001,101.40600000000001,73.847700000000003,21653.8,25215.9,16089.4,null,null,null,null,null,78.22,76.17,2.7687500000000003,2.8450000000000002,204,151,5.5990000000000002,3746,"--"]
["2010-03-01",null,null,null,9960.1,1076.3,2208.3000000000002,6675.6,null,null,null,null,null,null,null,null,null,null,null,null,null,null,null,71.8,1210.2535,null,null,null,null,null,null,null,null,null,null,null,null,null,92.539400000000001,92.325800000000001,1346718,1.26,58.8,58,39,55.3,61.5,57,56.5,61.4,75,62.1,61.2,57.7,55947,null,null,null,null,null,null,null,null,null,354564,316150,null,null,null,null,null,886.12109999999996,null,null,null,636,687,146.63,11.553000000000001,12.186171439327989,19.116171439327992,227,381,7.1496062992125982,3090,4620,8.0259740259740262,381,12255.3,551.70000000000005,542,10912,4923.8999999999996,2536.7993999999999,309212,899.08659999999998,73.599999999999994,52.3,null,null,null,null,null,217.35300000000001,220.78299999999999,null,null,null,null,null,98.3,33.299999999999997,64.900000000000006,17.100000000000001,9.9,11453,0,null,null,129897,164,null,null,473800,20.399999999999999,1233.2,1207.9000000000001,845.8,194.5,651.29999999999995,454.2,197.1,362.1,null,null,null,null,null,null,null,null,null,null,null,null,null,183.3,172.9,157.1,null,null,null,null,null,3.25,0.16,5.27,6.27,100,4.97,0.15,0.4,0.96,2.4300000000000002,3.73,277,null,null,null,null,null,1.0228999999999999,6.8262,12.567299999999999,1.357,102.04689999999999,75.227400000000003,24316.3,24292.2,20089.5,null,null,null,null,null,81.239999999999995,78.83,2.8243999999999998,2.915,178,174,4.3010000000000002,3724,"--"]
["2010-10-01",null,null,null,10136.799999999999,1127.2,2245.6,6765.6,null,null,null,null,null,null,null,null,null,null,null,null,null,null,null,74.900000000000006,1184.8067000000001,null,null,null,null,null,null,null,null,null,null,null,null,null,95.378500000000003,95.619299999999996,1420780,1.27,57.7,46,44,58.4,60.5,51.5,53,58.7,71,62,53.1,59.7,58074,null,null,null,null,null,null,null,null,null,363736,324218,null,null,null,null,null,1114.1748,null,null,null,543,558,143.58000000000001,12.199,10.566695148931462,17.146695148931464,199,291,8.2061855670103085,3290,3740,10.55614973262032,291,12636.5,611.20000000000005,438,11128.3,5269.7,2527.8598999999999,310437,853.77049999999997,67.7,49.9,null,null,null,null,null,219.035,221.83,null,null,null,null,null,100,33.6,64.400000000000006,16.600000000000001,9.4,11562,-1,null,null,130633,262,null,null,446800,21.2,1266.0999999999999,1283.4000000000001,888.9,210,678.9,473.1,205.8,394.5,null,null,null,null,null,null,null,null,null,null,null,null,null,186.6,174.3,157.5,null,null,null,null,null,3.25,0.19,4.68,5.72,104,4.2300000000000004,0.13,0.23,0.38,1.18,2.54,216,null,null,null,null,null,1.0179,6.6677999999999997,12.439299999999999,1.3900999999999999,98.846900000000005,72.307699999999997,23444.5,35083.300000000003,21024,null,null,null,null,null,81.900000000000006,82.67,2.8546,3.052,377,503,3.6,3772,3654]
["2011-02-01",null,null,null,10210,1136.2,2267.8000000000002,6807.3,null,null,null,null,null,null,null,null,null,null,null,null,null,null,null,75.400000000000006,1199.6529,null,null,null,null,null,null,null,null,null,null,null,null,null,95.723500000000001,96.394800000000004,1466725,1.26,59.9,59,40,61.1,62.5,55,50.5,62.7,82,64.400000000000006,60.1,63.9,59015,null,null,null,null,null,null,null,null,null,374970,334544,null,null,null,null,null,1072.5709999999999,null,null,null,517,542,142.04,12.815,11.124898173333145,17.424898173333144,183,270,8.1333333333333329,3010,4220,8.5592417061611368,270,13090.6,752.3,391,11329,5419.8,2664.4701,null,833.98839999999996,77.5,72,null,null,null,null,null,221.898,223.21299999999999,null,null,null,null,null,100.2,33.5,64.099999999999994,16,9,11654,{"$f":"+DL636-DL635","v":33},null,null,131071,{"$f":"+DP636-DP635","v":189},null,null,401500,21.1,1284,1248.3,876.2,205,671.2,467.6,203.6,372.1,null,null,null,null,null,null,null,null,null,null,null,null,null,195.8,175.7,158.30000000000001,null,null,null,null,null,3.25,0.16,5.22,6.15,93.000000000000057,4.95,0.13,0.28999999999999998,0.77,2.2599999999999998,3.58,{"$f":"+(FI636-FG636)*100","v":281},null,null,null,null,null,0.98760000000000003,6.5761000000000003,12.0649,1.3655999999999999,97.882999999999996,71.982799999999997,23221.4,27244.7,19053.599999999999,null,null,null,null,null,89.58,103.72,3.2640000000000002,3.5840000000000001,466,423,4.0359999999999996,3695,3751]
["2011-08-01",null,null,null,10271.6,1139.9000000000001,2257.3000000000002,6876.7,null,null,null,null,null,null,null,null,null,null,null,null,null,null,null,76.7,1263.4594999999999,null,null,null,null,null,null,null,null,null,null,null,null,null,97.702699999999993,97.474900000000005,1538887,1.26,52.8,46,46.5,53.6,50.5,55.5,54.5,51.8,55.5,51.5,51.2,55.7,64803,null,null,null,null,null,null,null,null,null,383822,342104,null,null,null,null,null,1079.9590000000001,null,null,null,585,647,139.97999999999999,12.276999999999999,12.75499603070808,19.054996030708079,162,299,6.5016722408026757,3020,4410,8.2176870748299322,299,13358.9,738.9,422,11363.5,5885,2708.7049999999999,null,836.01440000000002,55.8,45.2,null,null,null,null,null,226.10599999999999,225.86199999999999,null,null,null,null,null,101.7,33.6,64.099999999999994,16.100000000000001,9,11764,18,null,null,132123,110,null,null,409500,22.4,1304.5999999999999,1328,908.9,218,690.9,480.9,210,419.1,null,null,null,null,null,null,null,null,null,null,null,null,null,203.2,178.5,160.1,null,null,null,null,null,3.25,0.1,4.37,5.36,99.000000000000028,4.2699999999999996,0.02,0.11,0.23,1.02,2.2999999999999998,206.99999999999997,null,null,null,null,null,0.98170000000000002,6.4036,12.236599999999999,1.4333,95.164199999999994,69.063900000000004,27147.9,37374.1,23152.5,null,null,null,null,null,86.33,110.22,3.6779999999999999,3.86,534.75,602,3.984,3701,3964]
["2011-09-01",null,null,null,10297.9,1161.7,2257.6,6882.4,null,null,null,null,null,null,null,null,null,null,null,null,null,null,null,76.5,1269.8831,null,null,null,null,null,null,null,null,null,null,null,null,null,97.628799999999998,97.768199999999993,1534542,1.26,52.7,41.5,49,55.2,53.5,54.5,52,51.1,56,52.5,51.6,56.1,66174,null,null,null,null,null,null,null,null,null,387402,345346,null,null,null,null,null,1078.6201000000001,null,null,null,650,610,139.36000000000001,13.026,12.812621692818684,19.112621692818685,160,304,6.3157894736842106,2900,4280,8.130841121495326,304,13345.9,675.4,418,11330.8,5910.6,2719.4234999999999,null,837.54679999999996,59.5,46.4,null,null,null,null,null,226.59700000000001,226.11799999999999,null,null,null,null,null,102,33.6,64.2,16.399999999999999,9,11769,{"$f":"+DL643-DL642","v":5},null,null,132371,{"$f":"+DP643-DP642","v":248},null,null,417750,22,1308.5999999999999,1329.3,914.7,220.2,694.5,483.3,211.2,414.6,null,null,null,null,null,null,null,null,null,null,null,null,null,203.7,179,160.4,null,null,null,null,null,3.25,0.08,4.09,5.27,117.99999999999997,4.1100000000000003,0.01,0.1,0.21,0.9,1.98,{"$f":"+(FI643-FG643)*100","v":177},null,null,null,null,null,1.0024999999999999,6.3884999999999996,13.063700000000001,1.3747,98.011799999999994,71.201300000000003,27234.7,36418.6,22303.5,null,null,null,null,null,85.61,112.83,3.66675,3.8370000000000002,568.25,576,3.8490000000000002,3836,4020]
["2012-01-01",null,null,null,10354.4,1203.5999999999999,2269,6887.9,null,null,null,null,null,null,null,null,null,null,null,null,null,null,null,77.400000000000006,1321.1511,null,null,null,null,null,null,null,null,null,null,null,null,null,99.326400000000007,99.598600000000005,1568409,1.25,53.1,52.5,47.5,54.3,55,52.5,49.5,57.6,55.5,55.7,53.6,58.7,67608,null,null,null,null,null,null,null,null,null,395317,352643,null,null,null,null,null,1086.1791000000001,null,null,null,723,715,137.11000000000001,14.058,11.308766337985503,17.118766337985505,149,335,5.3373134328358205,2330,4510,6.1995565410199562,335,13567.1,802.1,518,11495.2,6090.9,2768.6959000000002,null,841.1798,75,61.5,null,null,null,null,null,227.84200000000001,227.87700000000001,null,null,null,null,null,103.6,33.799999999999997,63.7,15.2,8.3000000000000007,11838,{"$f":"+DL647-DL646","v":36},null,null,133288,{"$f":"+DP647-DP646","v":358},null,null,377750,20.8,1327.8,1299.5,905.5,215.4,690.1,479.2,210.9,394,null,null,null,null,null,null,null,null,null,null,null,null,null,200.7,180.7,161.6,null,null,null,null,null,3.25,0.08,3.85,5.23,138.00000000000003,3.92,0.03,0.12,0.24,0.84,1.97,{"$f":"+(FI647-FG647)*100","v":173},null,null,null,null,null,1.0129999999999999,6.3171999999999997,13.382899999999999,1.2909999999999999,99.869900000000001,73.429299999999998,26787,34417.5,21503.9,null,null,null,null,null,100.24,110.69,3.4249999999999998,3.8330000000000002,678.75,621,2.7080000000000002,3921,4218]
["2012-08-01",null,null,null,10405.9,1236.5999999999999,2281.3000000000002,6896.3,null,null,null,null,null,null,null,null,null,null,null,null,null,null,null,76.900000000000006,1426.0500999999999,null,null,null,null,null,null,null,null,null,null,null,null,null,99.913200000000003,99.849699999999999,1628202,1.29,50.7,42.5,49,51.6,47,49,53,47.1,54,47.2,49.3,53.8,63875,null,null,null,null,null,null,null,null,null,401904,358149,null,null,null,null,null,1100.5189,null,null,null,754,832,142.82,14.092000000000001,9.7859349154821231,15.455934915482123,143,375,4.5759999999999996,2400,4840,5.9504132231404965,375,13837.4,871.3,536,11605.6,6429.6,2862.6543000000001,null,845.65980000000002,74.3,64.400000000000006,null,null,null,null,null,229.91800000000001,230.233,null,null,null,null,null,104,33.6,63.5,14.6,8.1,11960,{"$f":"+DL654-DL653","v":-4},null,null,134347,{"$f":"+DP654-DP653","v":177},null,null,373250,18.399999999999999,1356.6,1381.8,936.4,224.8,711.6,493.7,217.9,445.4,null,null,null,null,null,null,null,null,null,null,null,null,null,202.7,183.2,163.30000000000001,null,null,null,null,null,3.25,0.13,3.48,4.91,143.00000000000003,3.6,0.1,0.18,0.27,0.71,1.68,{"$f":"+(FI654-FG654)*100","v":141},null,null,null,null,null,0.99239999999999995,6.3593000000000002,13.1793,1.2405999999999999,100.85639999999999,74.352500000000006,27027.599999999999,37280.6,23763.8,null,null,null,null,null,94.16,113.36,3.7802499999999997,3.9830000000000001,767.25,715,2.81,3596,4202]
["2012-11-01",null,null,null,10454.299999999999,1268.3,2275.4,6922.4,null,null,null,null,null,null,null,null,null,null,null,null,null,null,null,77.099999999999994,1457.2098000000001,null,null,null,null,null,null,null,null,null,null,null,null,null,100.7003,100.4067,1646409,1.28,48.8,41,42.5,48.4,47,48,45,50.3,52.5,53.7,50.3,60.7,67052,null,null,null,null,null,null,null,null,null,407386,362959,null,null,null,null,null,1104.0634,null,null,null,833,930,145.76,15.13,9.4960197033926264,14.886019703392627,150,392,4.591836734693878,1990,4960,4.814516129032258,392,14251.7,1117.7,569,11884.7,6592.1,2907.8822,null,849.72919999999999,82.7,71.5,null,null,null,null,null,231.249,231.33,null,null,null,null,null,104.8,33.700000000000003,63.6,14.4,7.7,11950,{"$f":"+DL657-DL656","v":-11},null,null,134828,{"$f":"+DP657-DP656","v":132},null,null,401250,18.600000000000001,1363.2,1373.1,941.1,222.5,718.6,500.4,218.2,432,null,null,null,null,null,null,null,null,null,null,null,null,null,201.8,183.5,163.30000000000001,null,null,null,null,null,3.25,0.16,3.5,4.51,{"$f":"+(FB657-FA657)*100","v":100.99999999999997},3.35,0.09,0.18,0.27,0.67,1.65,{"$f":"+(FI657-FG657)*100","v":138},null,null,null,null,null,0.997,6.2337999999999996,13.0639,1.2837000000000001,99.631100000000004,73.707999999999998,27751.8,39543.699999999997,23731.3,null,null,null,null,null,86.66,109.06,3.5207499999999996,4,732.5,796,3.69,3634,4027]
["2013-03-01",null,null,null,10502.3,1289.8,2296.1999999999998,6929.5,null,null,null,null,null,null,null,null,null,null,null,null,null,null,null,77.5,1499.9733000000001,null,null,null,null,null,null,null,null,null,null,null,null,null,101.77200000000001,101.24420000000001,1663598,1.29,52.5,51,47.5,54.2,56,54,49.5,51.4,54.5,52.2,49.4,57.9,66516,null,null,null,null,null,null,null,null,null,413848,368806,null,null,null,null,null,1112.6041,null,null,null,999,932,151.43,15.541,9.0261770837430753,14.276177083743075,154,449,4.1158129175946554,1930,4960,4.6693548387096779,449,13925.7,594.6,621,11445.1,6786.5,2967.4114,null,850.58100000000002,78.599999999999994,61.9,null,null,null,null,null,232.29900000000001,232.8,null,null,null,null,null,105.8,33.799999999999997,63.3,13.8,7.5,12002,{"$f":"+DL661-DL660","v":2},null,null,135699,{"$f":"+DP661-DP660","v":130},null,null,351800,17.600000000000001,1370.1,1342.9,931.4,220.6,710.8,493.8,217,411.5,null,null,null,null,null,null,null,null,null,null,null,null,null,204,184.5,163.69999999999999,null,null,null,null,null,3.25,0.14000000000000001,3.93,4.8499999999999996,{"$f":"+(FB661-FA661)*100","v":91.999999999999943},3.57,0.09,0.15,0.26,0.82,1.96,{"$f":"+(FI661-FG661)*100","v":170},null,null,null,null,null,1.0244,6.2153999999999998,12.5,1.2952999999999999,100.65600000000001,76.313100000000006,28342.400000000001,27294.1,23152.3,null,null,null,null,null,93.05,108.47,3.7658,4.0679999999999996,619.75,582,3.77,3777.6,3846.8]
["2013-08-01",null,null,null,10564.1,1318.2,2305.6,6956.2,null,null,null,null,null,null,null,null,null,null,null,null,null,null,null,77.3,1533.6704,null,null,null,null,null,null,null,null,null,null,null,null,null,102.0772,101.1264,1677646,1.29,55.6,46.5,42.5,53.3,55.5,58,47.5,63.2,54,62.4,52.3,58.6,66120,null,null,null,null,null,null,null,null,null,417503,372370,null,null,null,null,null,1127.4432999999999,null,null,null,898,947,161.28,15.661,8.7809627780339117,13.890962778033913,174,380,5.4947368421052634,2210,5330,4.975609756097561,380,14137.4,673.2,624,11573.5,6978.8,3033.5654,null,852.62530000000004,82.1,81.8,null,null,null,null,null,233.32300000000001,234.31200000000001,null,null,null,null,null,106.5,33.700000000000003,63.3,13.6,7.3,12016,36,null,null,136667,261,null,null,331250,16.600000000000001,1384.5,1409,949.2,228.3,720.9,499.1,221.8,459.8,null,null,null,null,null,null,null,null,null,null,null,null,null,204.2,185.4,164.2,null,null,null,null,null,3.25,0.08,4.54,5.42,87.999999999999986,4.46,0.04,0.13,0.36,1.52,2.74,238.00000000000003,null,null,null,null,null,1.0407,6.1212999999999997,12.912000000000001,1.3313999999999999,101.98050000000001,76.312100000000001,27775.1,39161.300000000003,23988.3,null,null,null,null,null,106.57,111.4325,3.6390000000000002,3.9224999999999999,926,953,3.41,3748.6,4540]
["2014-02-01",null,null,null,10706.4,1347.2,2346.8000000000002,7029.6,null,null,null,null,null,null,null,null,null,null,null,null,null,null,null,78,1618.6974,null,null,null,null,null,null,null,null,null,null,null,null,null,103.6292,101.3342,1728532,1.3,54.8,52,46.5,52.3,53.5,53.5,52.5,54.5,60,48.2,58.5,56.1,66722,null,null,null,null,null,null,null,null,null,424117,377749,null,null,null,null,null,1136.2203,null,null,null,948,1032,168.71,15.596,7.8532931304590434,12.543293130459045,188,423,5.333333333333333,1900,4660,4.8927038626609445,423,14484.8,681.4,596,11721.3,7221.8,3132.4868000000001,null,863.32560000000001,81.599999999999994,78.3,null,null,null,null,null,235.672,236.23,null,null,null,null,null,106.6,33.4,62.9,12.6,6.7,12110,{"$f":"+DL672-DL671","v":22},null,null,137715,{"$f":"+DP672-DP671","v":151},null,null,328500,15.8,1393.9,1361.2,939.8,223.5,716.3,491.3,225,421.4,null,null,null,null,null,null,null,null,null,null,null,null,null,205.7,187.7,165.9,null,null,null,null,null,3.25,7.0000000000000007E-2,4.45,5.0999999999999996,{"$f":"+(FB672-FA672)*100","v":64.999999999999943},4.3,0.05,0.12,0.33,1.52,2.71,{"$f":"+(FI672-FG672)*100","v":238},null,null,null,null,null,1.1053999999999999,6.0815999999999999,13.2928,1.3665,103.02079999999999,76.936999999999998,26082.9,30700.400000000001,22445.200000000001,null,null,null,null,null,100.82,108.9,3.4342499999999996,3.9835000000000003,905,686,5.16,3615.25,4130.25]
["2014-06-01",null,null,null,10837.4,1405.7,2363.6999999999998,7092.1,null,null,null,null,null,null,null,null,null,null,null,null,null,null,null,79,1677.6731,null,null,null,null,null,null,null,null,null,null,null,null,null,105.46980000000001,102.67700000000001,1749414,1.3,55.3,48,46.5,52.8,54.5,57,53,58.9,58,60,51.9,59.9,69685,null,null,null,null,null,null,null,null,null,435094,387342,null,null,null,null,null,1160.5806,null,null,null,928,1015,170.49,16.969000000000001,8.1032361623933724,12.373236162393372,198,416,5.7115384615384617,2290,5010,5.4850299401197606,416,14789.4,762.5,600,11922.6,7351.6,3209.2575999999999,null,876.47180000000003,82.5,86.4,null,null,null,null,null,237.029,237.83799999999999,null,null,null,null,null,108.5,33.700000000000003,62.8,12,6.1,12171,{"$f":"+DL676-DL675","v":21},null,null,138866,{"$f":"+DP676-DP675","v":304},null,null,332500,13.6,1415.3,1431.9,969.3,234.2,735.1,500.7,234.4,462.6,null,null,null,null,null,null,null,null,null,null,null,null,null,208.3,188.6,166.4,null,null,null,null,null,3.25,0.1,4.25,4.8,{"$f":"+(FB676-FA676)*100","v":54.999999999999986},4.16,0.04,0.1,0.45,1.68,2.6,{"$f":"+(FI676-FG676)*100","v":215},null,null,null,null,null,1.083,6.2305999999999999,12.9932,1.3594999999999999,102.3699,76.447900000000004,30160.799999999999,39607.1,25134.5,null,null,null,null,null,105.79,111.8,3.7660000000000005,3.9061999999999997,905.75,964,4.59,3779.5,4489.75]
["2014-09-01",null,null,null,10935.5,1419.5,2377.8000000000002,7162.8,null,null,null,null,null,null,null,null,null,null,null,null,null,null,null,78.8,1725.8643,null,null,null,null,null,null,null,null,null,null,null,null,null,105.7329,102.6253,1762965,1.31,55.8,47,44.5,54.6,53.5,53,51.5,60,59.5,64.599999999999994,52.2,61.9,70343,null,null,null,null,null,null,null,null,null,438687,389808,null,null,null,null,null,1175.171,null,null,null,999,1062,170.98,16.236999999999998,7.5496027941377726,11.679602794137773,207,466,5.3304721030042916,2280,5100,5.3647058823529408,466,14992.4,770.5,659,12036.7,7453.3,3263.9283,null,883.88699999999994,84.6,89,null,null,null,null,null,237.48599999999999,238.72900000000001,null,null,null,null,null,109.1,33.700000000000003,62.8,11.8,5.9,12225,{"$f":"+DL679-DL678","v":17},null,null,139578,{"$f":"+DP679-DP678","v":280},null,null,321250,13.4,1429,1447.9,982.1,236.2,745.9,504.4,241.5,465.8,null,null,null,null,null,null,null,null,null,null,null,null,null,206.4,189.3,166.8,null,null,null,null,null,3.25,0.09,4.1100000000000003,4.8,{"$f":"+(FB679-FA679)*100","v":68.999999999999943},4.16,0.02,0.11,0.56999999999999995,1.77,2.5299999999999998,{"$f":"+(FI679-FG679)*100","v":196},null,null,null,null,null,1.1011,6.1382000000000003,13.237,1.2888999999999999,104.6018,79.588800000000006,30813.1,45102.8,25033.4,null,null,null,null,null,93.21,97.09,3.484,3.7919999999999998,972.5,873,3.92,3775,4560.75]
["2015-04-01",null,null,null,11200.7,1498,2425.8000000000002,7309.9,null,null,null,null,null,null,null,null,null,null,null,null,null,null,null,77.099999999999994,1847.0808999999999,null,null,null,null,null,null,null,null,null,null,null,null,null,104.66240000000001,102.63039999999999,1785293,1.37,51.6,49.5,44,48.3,51.5,54,49.5,53.5,40.5,56,50.1,61.3,64385,null,null,null,null,null,null,null,null,null,442183,390624,null,null,null,null,null,1201.2447999999999,null,null,null,1200,1178,178.12,16.928000000000001,5.2858210943413759,9.0658210943413753,206,500,4.944,2220,5140,5.1828793774319069,500,15441.6,837.3,745,12378.7,7800.9,3394.4567999999999,null,904.57169999999996,95.9,94.3,null,null,null,null,null,236.20099999999999,241.36600000000001,null,null,null,null,null,110,33.6,62.8,10.8,5.4,12321,{"$f":"+DL686-DL685","v":2},null,null,141192,{"$f":"+DP686-DP685","v":262},null,null,324750,11.5,1445.4,1428.2,983,237.9,745.1,497.7,247.4,445.4,null,null,null,null,null,null,null,null,null,null,null,null,null,190.9,191.6,168.4,null,null,null,null,null,3.25,0.12,3.52,4.4800000000000004,{"$f":"+(FB686-FA686)*100","v":96.000000000000043},3.67,0.02,0.23,0.54,1.35,1.94,{"$f":"+(FI686-FG686)*100","v":140},null,null,null,null,null,1.2337,6.2009999999999996,15.1943,1.0822000000000001,115.1095,90.895300000000006,24752.1,36120.5,24702.1,null,null,null,null,null,54.45,59.52,2.5550000000000002,2.782,863.25,1036,2.59,3967.5,4578.75]
["2015-06-01",null,null,null,11240.2,1503.9,2439.8000000000002,7329.8,null,null,null,null,null,null,null,null,null,null,null,null,null,null,null,76.5,1880.9253000000001,null,null,null,null,null,null,null,null,null,null,null,null,null,103.9927,102.2469,1799880,1.38,53.1,47,48.5,55.5,49.5,53.5,53,56,49.5,54,48.8,61.5,64038,null,null,null,null,null,null,null,null,null,446238,394465,null,null,null,null,null,1213.3399999999999,null,null,null,1201,1363,178.78,17.286999999999999,5.4645368288268665,9.1745368288268665,216,476,5.4453781512605044,2250,5410,4.9907578558225509,476,15574.9,857.4,694,12440.8,7881.7,3436.8112000000001,null,912.80769999999995,96.1,99.8,null,null,null,null,null,237.41900000000001,242.02099999999999,null,null,null,null,null,110.8,33.700000000000003,62.6,10.5,5.3,12338,{"$f":"+DL688-DL687","v":1},null,null,141742,{"$f":"+DP688-DP687","v":206},null,null,313750,11.5,1458.1,1474.2,998.4,241.9,756.5,504.8,251.7,475.8,null,null,null,null,null,null,null,null,null,null,null,null,null,194.8,192.9,168.6,null,null,null,null,null,3.25,0.13,4.1900000000000004,5.13,{"$f":"+(FB688-FA688)*100","v":93.999999999999943},3.98,0.02,0.28000000000000003,0.69,1.68,2.36,{"$f":"+(FI688-FG688)*100","v":167},null,null,null,null,null,1.2364999999999999,6.2051999999999996,15.479200000000001,1.1226,115.1056,89.606999999999999,27342.2,41451.9,26918,null,null,null,null,null,59.82,61.48,2.8849999999999998,2.8730000000000002,985.25,991,2.77,3936,4630]
["2015-07-01",null,null,null,11272.9,1516.7,2453.3000000000002,7338.2,null,null,null,null,null,null,null,null,null,null,null,null,null,null,null,76.8,1891.8318999999999,null,null,null,null,null,null,null,null,null,null,null,null,null,104.515,102.8702,1802010,1.38,51.9,42.5,44,52.7,48,52,49.5,56.5,44,56,48.9,63.4,65233,null,null,null,null,null,null,null,null,null,449403,397256,null,null,null,null,null,1220.5918999999999,null,null,null,1140,1134,179.13,17.495000000000001,5.3903767100208899,9.0303767100208887,216,498,5.2048192771084336,2260,5480,4.9489051094890506,498,15586.6,820.4,763,12439,7931.3,3455.029,null,916.31380000000001,93.1,91,null,null,null,null,null,237.876,242.48,null,null,null,null,null,111,33.700000000000003,62.6,10.3,5.2,12352,{"$f":"+DL689-DL688","v":14},null,null,141996,{"$f":"+DP689-DP688","v":254},null,null,311250,11.3,1459.5,1480.6,1003.5,245.9,757.6,506.2,251.4,477.1,null,null,null,null,null,null,null,null,null,null,null,null,null,193.9,193.1,168.9,null,null,null,null,null,3.25,0.13,4.1500000000000004,5.2,{"$f":"+(FB689-FA689)*100","v":104.99999999999999},4.05,0.03,0.3,0.67,1.63,2.3199999999999998,{"$f":"+(FI689-FG689)*100","v":165},null,null,null,null,null,1.2863,6.2084999999999999,15.951499999999999,1.0996999999999999,117.09829999999999,91.5565,24705.9,41211.599999999999,24784.2,null,null,null,null,null,50.901000000000003,56.56,2.88,2.7879999999999998,1058.25,1112,2.81,3734.2,4672.2]
["2015-08-01",null,null,null,11303.2,1526.5,2458,7355.3,null,null,null,null,null,null,null,null,null,null,null,null,null,null,null,76.8,1904.4465,null,null,null,null,null,null,null,null,null,null,null,null,null,104.5091,102.8301,1802527,1.39,51,46.5,53,51.2,46.5,51.5,48.5,51.7,39,53.6,50.7,62.3,64456,null,null,null,null,null,null,null,null,null,449592,397197,null,null,null,null,null,1227.3420000000001,null,null,null,1134,1159,179.18,17.757999999999999,5.3339245372087625,8.9039245372087628,217,513,5.0760233918128659,2270,5290,5.1493383742911156,513,15626.1,822.5,737,12470.2,7993.3,3468.3006,null,919.33900000000006,91.9,101.3,null,null,null,null,null,237.81100000000001,242.75399999999999,null,null,null,null,null,111.1,33.700000000000003,62.6,10.199999999999999,5.0999999999999996,12347,{"$f":"+DL690-DL689","v":-5},null,null,142153,{"$f":"+DP690-DP689","v":157},null,null,315250,11.9,1458.8,1479.4,1007,246.1,760.9,509.1,251.38,472.4,null,null,null,null,null,null,null,null,null,null,null,null,null,191.9,193,168.8,null,null,null,null,null,3.25,0.14000000000000001,4.04,5.19,{"$f":"+(FB690-FA690)*100","v":115.00000000000003},3.91,7.0000000000000007E-2,0.38,0.7,1.54,2.17,{"$f":"+(FI690-FG690)*100","v":147},null,null,null,null,null,1.3147,6.3383000000000003,16.533999999999999,1.1135999999999999,119.2833,91.722899999999996,24814.5,44137.5,24693.9,null,null,null,null,null,42.87,46.52,2.726,2.5950000000000002,1023.25,896,2.75,3700.5,4643.25]
["2015-09-01",null,null,null,11337.6,1531.4,2466.5,7376.5,null,null,null,null,null,null,null,null,null,null,null,null,null,null,null,76.5,1913.4758999999999,null,null,null,null,null,null,null,null,null,null,null,null,null,104.2038,102.56950000000001,1807750,1.39,50,41.5,54.5,50.5,46.5,50.5,48.5,50.1,38,51.8,50.2,60.1,64756,null,null,null,null,null,null,null,null,null,449496,397083,null,null,null,null,null,1235.7325000000001,null,null,null,1209,1125,180.12,17.972000000000001,4.9919995283932606,8.4919995283932614,223,461,5.8047722342733188,2190,5440,4.8308823529411766,461,15663.9,823.1,744,12503.2,8045.6,3495.8141999999998,null,925.54380000000003,87.2,102.6,null,null,null,null,null,237.46700000000001,243.249,null,null,null,null,null,111.2,33.700000000000003,62.4,10,5,12346,-1,null,null,142253,100,null,null,312750,11.4,1456.8,1474.8,1008.1,247.4,760.7,508.2,252.5,466.7,null,null,null,null,null,null,null,null,null,null,null,null,null,189.1,193.2,168.9,null,null,null,null,null,3.25,0.14000000000000001,4.07,5.34,126.99999999999996,3.89,0.02,0.37,0.71,1.49,2.17,146,null,null,null,null,null,1.3266,6.3676000000000004,16.838699999999999,1.1229,120.1913,91.520899999999997,25286.7,45711.4,25331.8,null,null,null,null,null,45.48,47.62,2.4620000000000002,2.5049999999999999,1018.75,1076,2.64,3782.75,4562.75]
["2015-10-01",null,null,null,11347.3,1524.3,2461,7396.6,null,null,null,null,null,null,null,null,null,null,null,null,null,null,null,76.400000000000006,1927.8669,null,null,null,null,null,null,null,null,null,null,null,null,null,104.00449999999999,102.7317,1806772,1.4,49.4,42.5,51,47.6,47.5,47,46.5,52.9,39,52.9,50.4,61.8,64640,null,null,null,null,null,null,null,null,null,448616,395853,null,null,null,null,null,1244.6247000000001,null,null,null,1059,1166,181.7,17.911000000000001,5.1204180104923624,8.6204180104923616,225,482,5.6016597510373449,2110,5290,4.7863894139886582,482,15751.7,869.5,704,12556,8095.3,3511.9663999999998,null,928.08460000000002,90,99.1,null,null,null,null,null,237.792,243.71899999999999,null,null,null,null,null,111.5,33.700000000000003,62.5,9.8000000000000007,5,12353,{"$f":"+DL692-DL691","v":7},null,null,142574,{"$f":"+DP692-DP691","v":321},null,null,315250,11.4,1451.5,1468,1006.1,244.9,761.2,509.2,252,461.9,null,null,null,null,null,null,null,null,null,null,null,null,null,187.5,192.7,168.5,null,null,null,null,null,3.25,0.12,3.95,5.34,{"$f":"+(FB692-FA692)*100","v":138.99999999999997},3.8,0.02,0.26,0.64,1.39,2.0699999999999998,{"$f":"+(FI692-FG692)*100","v":142.99999999999997},null,null,null,null,null,1.3071999999999999,6.3505000000000003,16.569700000000001,1.1228,119.1427,91.066500000000005,23652.2,44311.4,27671.200000000001,null,null,null,null,null,46.22,48.43,2.387,2.5190000000000001,1030.25,1037,2.38,3979,4453.3999999999996]
["2015-11-01",null,null,null,11376.6,1545.7,2471.3000000000002,7398.2,null,null,null,null,null,null,null,null,null,null,null,null,null,null,null,76,1946.2325000000001,null,null,null,null,null,null,null,null,null,null,null,null,null,103.3965,102.64400000000001,1802523,1.4,48.4,43,50.5,51.3,47.5,49,43,48.9,35.5,49.2,50.6,59.4,63843,null,null,null,null,null,null,null,null,null,450509,397463,null,null,null,null,null,1251.0368000000001,null,null,null,1176,1267,182.92,17.966000000000001,5.4364915358597843,8.9364915358597834,229,508,5.4094488188976371,2040,4860,5.0370370370370372,508,15776.4,836.7,781,12556.8,8138.3,3531.4537,null,934.65150000000006,91.3,92.6,null,null,null,null,null,238.15299999999999,244.221,null,null,null,null,null,111.7,33.700000000000003,62.5,9.9,5,12346,{"$f":"+DL693-DL692","v":-7},null,null,142846,{"$f":"+DP693-DP692","v":272},null,null,314250,11,1454.1,1462.8,1006.9,245.8,761.1,510.2,250.9,455.9,null,null,null,null,null,null,null,null,null,null,null,null,null,185.7,192.9,168.6,null,null,null,null,null,3.25,0.12,4.0599999999999996,5.46,{"$f":"+(FB693-FA693)*100","v":140.00000000000003},3.94,0.12,0.48,0.88,1.67,2.2599999999999998,{"$f":"+(FI693-FG693)*100","v":138},null,null,null,null,null,1.3279000000000001,6.3639999999999999,16.630600000000001,1.0727,120.95569999999999,93.776300000000006,22911.1,41886.9,24050.400000000001,null,null,null,null,null,42.44,44.27,2.2599999999999998,2.4670000000000001,1013.75,1046,2.2799999999999998,3829,4740.25]
["2015-12-01",null,null,null,11413.9,1551.7,2485.1999999999998,7416.2,null,null,null,null,null,null,null,null,null,null,null,null,null,null,null,75.599999999999994,1955.1094000000001,null,null,null,null,null,null,null,null,null,null,null,null,null,102.9179,102.40479999999999,1803103,1.41,48,41,51.5,48,51,45.5,43.5,48.8,33.5,49.9,49.8,59.5,60997,null,null,null,null,null,null,null,null,null,452756,398762,null,null,null,null,null,1258.7267999999999,null,null,null,1138,1218,183.9,17.195,5.6585128443861388,9.1585128443861379,234,536,5.2388059701492544,1760,5450,3.8752293577981649,536,15779.5,806.3,764,12570.8,8180.2,3417.1565999999998,null,909.58240000000001,92.6,96.3,null,null,null,null,null,237.846,244.58099999999999,null,null,null,null,null,112.3,33.799999999999997,62.7,9.9,5,12359,{"$f":"+DL694-DL693","v":13},null,null,143085,{"$f":"+DP694-DP693","v":239},null,null,311250,10.7,1454.8,1454.9,1006.7,244.2,762.5,510.6,251.9,448.2,null,null,null,null,null,null,null,null,null,null,null,null,null,183.5,193.4,168.7,null,null,null,null,null,3.37,0.24,3.97,5.46,{"$f":"+(FB694-FA694)*100","v":148.99999999999997},3.96,0.23,0.65,0.98,1.7,2.2400000000000002,{"$f":"+(FI694-FG694)*100","v":126.00000000000003},null,null,null,null,null,1.3713,6.4490999999999996,17.069600000000001,1.0889,122.1835,93.924099999999996,23611.5,37999.4,23151.599999999999,null,null,null,null,null,37.19,38.01,2.1440000000000001,2.31,1073.5,1135,2.044,3604.25,4714.75]
["2016-01-01",null,null,null,11399.8,1532.9,2482,7420.4,null,null,null,null,null,null,null,null,null,null,null,null,null,null,null,76.099999999999994,1965.759,null,null,null,null,null,null,null,null,null,null,null,null,null,103.48220000000001,103.0236,1802429,1.42,48.2,43,51.5,45.9,47,51,43.5,51.5,33.5,50.2,50,53.9,62895,null,null,null,null,null,null,null,null,null,448171,395246,null,null,null,null,null,1268.4393,null,null,null,1123,1193,185.01,17.64,6.2592266072971707,9.6892266072971704,237,520,5.4692307692307693,1820,5480,3.9854014598540144,520,15752.9,814.6,771,12563.9,8218.7000000000007,3434.6810999999998,null,911.73069999999996,92,97.8,null,null,null,null,null,238.10599999999999,245.232,null,null,null,null,null,112.1,33.700000000000003,62.7,9.9,4.9000000000000004,12387,{"$f":"+DL695-DL694","v":28},null,null,143211,{"$f":"+DP695-DP694","v":126},null,null,308750,11.2,1455.4,1428.3,995.8,241.6,754.2,506.6,247.6,432.5,null,null,null,null,null,null,null,null,null,null,null,null,null,182.6,null,null,null,null,null,null,null,3.5,0.34,4,5.45,{"$f":"+(FB695-FA695)*100","v":145.00000000000003},3.87,0.26,0.54,0.9,1.52,2.09,{"$f":"+(FI695-FG695)*100","v":119},null,null,null,null,null,1.4208000000000001,6.5726000000000004,18.064800000000002,1.0854999999999999,124.86790000000001,95.0505,22272.2,37159.300000000003,22386.799999999999,null,null,null,null,null,31.68,30.7,2.0569999999999999,2.1429999999999998,993,754,2.23,3414.6,4305.3999999999996]
["2016-02-01",null,null,null,11447.5,1546.5,2493.4,7444.9,null,null,null,null,null,null,null,null,null,null,null,null,null,null,null,75.900000000000006,1989.0299,null,null,null,null,null,null,null,null,null,null,null,null,null,103.2685,102.8557,1799496,1.42,49.5,48.5,47,48.5,46.5,49,45,51.5,38.5,52.8,49.7,57.8,61187,null,null,null,null,null,null,null,null,null,451209,396930,null,null,null,null,null,1273.4623999999999,null,null,null,1209,1195,186.04,17.512,5.8847593730492713,9.3147593730492702,240,525,5.4857142857142858,1870,5200,4.3153846153846152,525,15727.5,755.1,841,12555.7,8263.4,3450.232,null,913.6404,91.7,94,null,null,null,null,null,237.80799999999999,245.845,null,null,null,null,null,111.9,33.6,62.9,9.8000000000000007,4.9000000000000004,12375,{"$f":"+DL696-DL695","v":-12},null,null,143448,{"$f":"+DP696-DP695","v":237},null,null,303500,11.3,1454.3,1423.4,992.3,240.5,751.8,505.6,246.2,431.1,null,null,null,null,null,null,null,null,null,null,null,null,null,181.3,null,null,null,null,null,null,null,3.5,0.38,3.96,5.34,{"$f":"+(FB696-FA696)*100","v":138},3.66,0.31,0.53,0.73,1.22,1.78,{"$f":"+(FI696-FG696)*100","v":105},null,null,null,null,null,1.3796999999999999,6.5500999999999996,18.433199999999999,1.1092,123.8473,92.984099999999998,21812.7,36088.6,23177.7,null,null,null,null,null,30.32,32.18,1.8720000000000001,1.998,908.5,699,1.93,3428,4191]
["2016-03-01",null,null,null,11444.3,1553.8,2490.5,7438.8,null,null,null,null,null,null,null,null,null,null,null,null,null,null,null,75.400000000000006,2022.6626000000001,null,null,null,null,null,null,null,null,null,null,null,null,null,102.52630000000001,102.6789,1807382,1.42,51.8,51,49,48.1,52,49.5,47,58.3,51.5,55.3,50.2,59.8,61262,null,null,null,null,null,null,null,null,null,451274,397086,null,null,null,null,null,1283.5696,null,null,null,1128,1115,187.03,16.77,5.8852107513485752,9.3852107513485752,243,533,5.4709193245778618,1960,5390,4.3636363636363633,533,15772.8,793.9,748,12583.5,8316.2000000000007,3474.8072999999999,null,924.8057,91,96.1,null,null,null,null,null,238.078,246.06200000000001,null,null,null,null,null,112.1,33.6,63,9.8000000000000007,5,12355,{"$f":"+DL697-DL696","v":-20},null,null,143673,{"$f":"+DP697-DP696","v":225},null,null,301500,11.4,1452.1,1424,989.6,241.5,748.1,502.7,245.4,434.4,null,null,null,null,null,null,null,null,null,null,null,null,null,182.1,null,null,null,null,null,null,null,3.5,0.36,3.82,5.13,{"$f":"+(FB697-FA697)*100","v":131},3.69,0.28999999999999998,0.66,0.88,1.38,1.89,{"$f":"+(FI697-FG697)*100","v":100.99999999999997},null,null,null,null,null,1.3226,6.5026999999999999,17.630299999999998,1.1133999999999999,121.35850000000001,91.388900000000007,23183.7,29838.3,24757.5,null,null,null,null,null,37.549999999999997,38.21,2.0710000000000002,2.09,891.75,979,1.81,3699.25,4490.25]
["2016-04-01",null,null,null,11505.1,1567,2509,7469.5,null,null,null,null,null,null,null,null,null,null,null,null,null,null,null,75.599999999999994,2040.3815999999999,null,null,null,null,null,null,null,null,null,null,null,null,null,102.86969999999999,102.65389999999999,1811886,1.42,50.8,50.5,46,49.2,52.5,50,45.5,55.8,59,54.2,49.1,58.8,61086,null,null,null,null,null,null,null,null,null,454231,399739,null,null,null,null,null,1291.4004,null,null,null,1164,1163,187.59,17.494,6.1460578066985194,9.6460578066985185,241,566,5.1095406360424027,2120,5480,4.6423357664233578,566,15861.6,766.2,767,12611.9,8372.5,3494.0603999999998,null,927.39580000000001,89,94.7,null,null,null,null,null,238.90799999999999,246.517,null,null,null,null,null,112.1,33.6,62.8,9.6999999999999993,5,12356,{"$f":"+DL698-DL697","v":1},null,null,143826,{"$f":"+DP698-DP697","v":153},null,null,299500,11.2,1451.5,1434,994.8,244.5,750.3,503.9,246.4,439.2,null,null,null,null,null,null,null,null,null,null,null,null,null,183.2,null,null,null,null,null,null,null,3.5,0.37,3.62,4.79,{"$f":"+(FB698-FA698)*100","v":117},3.61,0.23,0.56000000000000005,0.77,1.26,1.81,{"$f":"+(FI698-FG698)*100","v":104},null,null,null,null,null,1.2818000000000001,6.4753999999999996,17.479500000000002,1.1346000000000001,119.4248,89.301400000000001,22229,32945.800000000003,25080,null,null,null,null,null,40.75,41.58,2.2160000000000002,2.1520000000000001,876.5,1074,2.0099999999999998,3961.2,4401.2]
["2016-05-01",null,null,null,11532.9,1573.2,2518,7482.9,null,null,null,null,null,null,null,null,null,null,null,null,null,null,null,75.599999999999994,2055.1444000000001,null,null,null,null,null,null,null,null,null,null,null,null,null,102.7552,102.46769999999999,1816291,1.41,51.3,47,50,49.2,52.5,50,45,55.7,63.5,52.6,54.1,55.1,59866,null,null,null,null,null,null,null,null,null,455753,401076,null,null,null,null,null,1298.7642000000001,null,null,null,1119,1178,187.71,17.221,5.7430957697844081,9.0330957697844081,241,560,5.1642857142857146,2140,5470,4.6946983546617922,560,15908.5,750.4,732,12626.8,8406.7000000000007,3514.2094000000002,null,931.63130000000001,94.7,92.4,null,null,null,null,null,239.36199999999999,247.02600000000001,null,null,null,null,null,112.1,33.6,62.6,9.6999999999999993,4.7,12335,{"$f":"+DL699-DL698","v":-21},null,null,143869,{"$f":"+DP699-DP698","v":43},null,null,300250,10.6,1450.4,1448.5,998.4,245.3,753.1,506.1,247,450.1,null,null,null,null,null,null,null,null,null,null,null,null,null,185.3,null,null,null,null,null,null,null,3.5,0.37,3.65,4.68,{"$f":"+(FB699-FA699)*100","v":102.99999999999999},3.6,0.27,0.59,0.82,1.3,1.81,{"$f":"+(FI699-FG699)*100","v":99.000000000000014},null,null,null,null,null,1.2945,6.5259,18.135999999999999,1.1312,120.68380000000001,89.656300000000002,23033.200000000001,37530.5,24835.3,null,null,null,null,null,46.71,46.74,2.371,2.3149999999999999,953.75,1063,2.08,4063.75,4329.5]
["2016-06-01",null,null,null,11575.3,1588.3,2525.6,7504.9,null,null,null,null,null,null,null,null,null,null,null,null,null,null,null,75.8,2060.0826000000002,null,null,null,null,null,null,null,null,null,null,null,null,null,103.1249,102.73260000000001,1818995,1.4,53.2,52.5,51,50.4,53.5,52,48.5,57,60.5,54.7,55.4,59.5,60054,null,null,null,null,null,null,null,null,null,460563,405580,null,null,null,null,null,1311.789,null,null,null,1190,1193,187.99,16.992000000000001,5.9205585905087581,9.3505585905087578,243,559,5.2164579606440071,2110,5480,4.6204379562043796,559,15960.3,718.9,770,12643,8489.2999999999993,3528.9721,null,939.53009999999995,93.5,97.4,null,null,null,null,null,239.84200000000001,247.38900000000001,null,null,null,null,null,112.4,33.6,62.7,9.6,4.9000000000000004,12347,{"$f":"+DL700-DL699","v":12},null,null,144166,{"$f":"+DP700-DP699","v":297},null,null,302000,10.199999999999999,1445.3,1462.8,999.9,246.6,753.3,506,247.3,462.9,null,null,null,null,null,null,null,null,null,null,null,null,null,187.6,null,null,null,null,null,null,null,3.5,0.38,3.5,4.53,{"$f":"+(FB700-FA700)*100","v":103.00000000000003},3.57,0.27,0.55000000000000004,0.73,1.17,1.64,{"$f":"+(FI700-FG700)*100","v":90.999999999999986},null,null,null,null,null,1.2894000000000001,6.5891999999999999,18.6538,1.1232,121.12820000000001,89.511399999999995,24233.1,38556.199999999997,24891.9,null,null,null,null,null,48.76,48.25,2.4670000000000001,2.423,1112,1332,2.63,3823.25,4632.5]
["2016-07-01",null,null,null,11594.1,1613.7,2514.1,7514.1,null,null,null,null,null,null,null,null,null,null,null,null,null,null,null,75.900000000000006,2068.4922000000001,null,null,null,null,null,null,null,null,null,null,null,null,null,103.21729999999999,102.82,1819176,1.4,52.6,48,51,49.4,52.5,52,49.5,56.9,55,55.4,51.8,59.3,61655,null,null,null,null,null,null,null,null,null,459744,404835,null,null,null,null,null,1324.8552999999999,null,null,null,1223,1175,188.3,17.751000000000001,5.7500227009029974,9.1800227009029971,237,627,4.535885167464115,2110,5330,4.7504690431519698,627,16016,717.7,772,12663.5,8567.7000000000007,3545.8119999999999,null,942.69650000000001,90,96.7,null,null,null,null,null,239.898,247.70500000000001,null,null,null,null,null,113,33.700000000000003,62.8,9.6999999999999993,4.9000000000000004,12359,{"$f":"+DL701-DL700","v":12},null,null,144457,{"$f":"+DP701-DP700","v":291},null,null,301000,11.5,1448.5,1466.6,1000.7,246.5,754.2,505.5,248.7,465.9,null,null,null,null,null,null,null,null,null,null,null,null,null,187.7,null,null,null,null,null,null,null,3.5,0.39,3.28,4.22,{"$f":"+(FB701-FA701)*100","v":94},3.44,0.3,0.51,0.67,1.07,1.5,{"$f":"+(FI701-FG701)*100","v":83},null,null,null,null,null,1.3051999999999999,6.6771000000000003,18.615500000000001,1.1054999999999999,121.9665,90.900999999999996,21641.599999999999,39461.800000000003,23021.599999999999,null,null,null,null,null,44.65,44.95,2.3450000000000002,2.4049999999999998,1192.5,1301,2.76,3704,4648.8]
["2016-08-01",null,null,null,11604,1597.1,2518.1999999999998,7532.4,null,null,null,null,null,null,null,null,null,null,null,null,null,null,null,75.8,2064.8141999999998,null,null,null,null,null,null,null,null,null,null,null,null,null,103.1459,102.4555,1822844,1.4,49.4,45.5,49.5,48.3,52.5,47,49,49.1,53,49.6,50.9,51.8,62503,null,null,null,null,null,null,null,null,null,460198,404897,null,null,null,null,null,1331.8208,null,null,null,1164,1200,188.35,17.13,5.9840541438369215,9.4140541438369212,241,567,5.1005291005291005,2010,5340,4.5168539325842696,567,16024.7,689.6,727,12646,8597.7000000000007,3570.1262000000002,null,948.30629999999996,89.8,101.8,null,null,null,null,null,240.38900000000001,248.351,null,null,null,null,null,112.7,33.6,62.8,9.6999999999999993,4.9000000000000004,12342,{"$f":"+DL702-DL701","v":-17},null,null,144633,{"$f":"+DP702-DP701","v":176},null,null,302250,10.9,1451,1471.5,1004.5,247.1,757.4,507.4,250,467,null,null,null,null,null,null,null,null,null,null,null,null,null,186.6,null,null,null,null,null,null,null,3.5,0.4,3.32,4.24,{"$f":"+(FB702-FA702)*100","v":92.000000000000043},3.44,0.3,0.56999999999999995,0.74,1.1299999999999999,1.56,{"$f":"+(FI702-FG702)*100","v":82},null,null,null,null,null,1.2998000000000001,6.6466000000000003,18.4742,1.1207,120.8471,89.844899999999996,24193.5,43230.2,25561.5,null,null,null,null,null,44.72,45.84,2.2839999999999998,2.351,1182.25,1033,2.72,3763.25,4602.25]
["2016-09-01",null,null,null,11656.3,1624.9,2521.4,7558.3,null,null,null,null,null,null,null,null,null,null,null,null,null,null,null,75.599999999999994,2083.3930999999998,null,null,null,null,null,null,null,null,null,null,null,null,null,102.9898,102.6961,1825922,1.4,51.5,49.5,53,49.7,52,49,49.5,55.1,53,52.8,50.3,60.3,61186,null,null,null,null,null,null,null,null,null,463305,407742,null,null,null,null,null,1336.4115999999999,null,null,null,1062,1270,189.23,17.649999999999999,6.3903123381353915,9.8203123381353912,242,570,5.094736842105263,2030,5470,4.4533820840950638,570,16043.4,625.6,783,12638.3,8675.4,3587.9917,null,952.25080000000003,91.2,103.5,null,null,null,null,null,241.006,248.64599999999999,null,null,null,null,null,112.9,33.6,62.9,9.6999999999999993,4.9000000000000004,12330,{"$f":"+DL703-DL702","v":-12},null,null,144882,{"$f":"+DP703-DP702","v":249},null,null,303000,10.3,1454.4,1469.3,1009,246.5,762.5,512.1,250.4,460.3,null,null,null,null,null,null,null,null,null,null,null,null,null,186.9,null,null,null,null,null,null,null,3.5,0.4,3.41,4.3099999999999996,{"$f":"+(FB703-FA703)*100","v":89.999999999999943},3.46,0.28999999999999998,0.59,0.77,1.18,1.63,{"$f":"+(FI703-FG703)*100","v":85.999999999999986},null,null,null,null,null,1.3108,6.6702000000000004,19.243600000000001,1.1217999999999999,121.7756,90.098799999999997,23750.400000000001,42026.9,25135.9,null,null,null,null,null,45.18,46.57,2.327,2.3940000000000001,1175,1034,2.9,3608.4,4581]
["2016-10-01",null,null,null,11668.3,1641.3,2524.4,7554.6,null,null,null,null,null,null,null,null,null,null,null,null,null,null,null,75.7,2098.3978999999999,null,null,null,null,null,null,null,null,null,null,null,null,null,103.1742,102.9071,1821040,1.38,51.9,45.5,49.5,52.9,52.5,52,47.5,52.1,54.5,54.6,52.2,57.7,61186,null,null,null,null,null,null,null,null,null,466393,411043,null,null,null,null,null,1343.0535,null,null,null,1328,1285,190.89,17.803999999999998,6.4409298883057309,9.8009298883057312,248,577,5.1577123050259965,2010,5530,4.3616636528028936,577,16035.4,577.20000000000005,871,12613.4,8715.4,3608.9396000000002,null,955.30780000000004,87.2,100.8,null,null,null,null,null,241.69399999999999,249.011,null,null,null,null,null,113.1,33.6,62.8,9.5,4.8,12325,{"$f":"+DL704-DL703","v":-5},null,null,145006,{"$f":"+DP704-DP703","v":124},null,null,300250,10.199999999999999,1460.4,1477.2,1016.1,247.3,768.8,517.9,250.9,461.1,null,null,null,null,null,null,null,null,null,null,null,null,null,186.7,null,null,null,null,null,null,null,3.5,0.4,3.51,4.38,{"$f":"+(FB704-FA704)*100","v":87.000000000000014},3.47,0.33,0.66,0.84,1.27,1.76,{"$f":"+(FI704-FG704)*100","v":92},null,null,null,null,null,1.3250999999999999,6.7302999999999997,18.891200000000001,1.1013999999999999,122.9085,91.919200000000004,23844.799999999999,43793.5,26358.3,null,null,null,null,null,49.78,49.52,2.359,2.4540000000000002,1040.75,795,3.06,4070.5,4184]
["2016-11-01",null,null,null,11698,1637.7,2535.4,7575.4,null,null,null,null,null,null,null,null,null,null,null,null,null,null,null,75.5,2102.5149000000001,null,null,null,null,null,null,null,null,null,null,null,null,null,102.9478,103.10809999999999,1836476,1.39,53.2,49,49,52.3,52,50.5,49,53,54.5,56,55.7,61.7,62128,null,null,null,null,null,null,null,null,null,466974,410981,null,null,null,null,null,1348.9522999999999,null,null,null,1149,1255,192.37,17.564,6.2989078449568314,9.5189078449568321,248,579,5.1398963730569944,1850,5600,3.964285714285714,579,16014.4,514.29999999999995,823,12589.4,8768.6,3633.4591,null,967.63369999999998,93.8,109.4,null,null,null,null,null,242.19900000000001,249.464,null,null,null,null,null,113.2,33.6,62.6,9.3000000000000007,4.5999999999999996,12325,{"$f":"+DL705-DL704","v":0},null,null,145170,{"$f":"+DP705-DP704","v":164},null,null,300000,10.199999999999999,1462.2,1472.7,1017.2,247.8,769.4,519.5,249.9,455.5,null,null,null,null,null,null,null,null,null,null,null,null,null,186.3,null,null,null,null,null,null,null,3.5,0.41,3.86,4.71,{"$f":"+(FB705-FA705)*100","v":85.000000000000014},3.77,0.45,0.74,0.98,1.6,2.14,{"$f":"+(FI705-FG705)*100","v":116.00000000000001},null,null,null,null,null,1.3433999999999999,6.8402000000000003,20.008600000000001,1.0791999999999999,125.8048,93.664599999999993,24401.200000000001,42608.9,25372,null,null,null,null,null,45.66,44.73,2.2949999999999999,2.4390000000000001,966,1002,2.88,3987.25,4636]
["2016-12-01",null,null,null,11740.1,1664.6,2539.8000000000002,7591.4,null,null,null,null,null,null,null,null,null,null,null,null,null,null,null,76,2098.1010000000001,null,null,null,null,null,null,null,null,null,null,null,null,null,103.7675,103.32250000000001,1844183,1.37,54.5,49,49,52.8,56,50.5,47,60.3,65.5,59.4,53,60.9,61918,null,null,null,null,null,null,null,null,null,470996,415639,null,null,null,null,null,1354.5873999999999,null,null,null,1268,1266,193.9,18.050999999999998,6.7916895806530224,10.081689580653023,256,548,5.6058394160583944,1650,5510,3.5934664246823953,548,16027.3,443.1,808,12569.9,8827.7999999999993,3645.2354999999998,null,969.63229999999999,98.2,113.3,null,null,null,null,null,242.821,250.01300000000001,null,null,null,null,null,113.5,33.6,62.7,9.1999999999999993,4.7,12343,{"$f":"+DL706-DL705","v":18},null,null,145325,{"$f":"+DP706-DP705","v":155},null,null,297500,10.3,1464.9,1465,1013.8,245.5,768.3,517.29999999999995,251,451.2,null,null,null,null,null,null,null,null,null,null,null,null,null,188.2,null,null,null,null,null,null,null,3.64,0.54,4.0599999999999996,4.83,77.000000000000043,4.2,0.51,0.87,1.2,1.96,2.4900000000000002,{"$f":"+(FI706-FG706)*100","v":129.00000000000003},null,null,null,null,null,1.3339000000000001,6.9198000000000004,20.499199999999998,1.0545,127.74039999999999,95.425899999999999,23160.3,39378.199999999997,23477.5,null,null,null,null,null,51.97,53.29,2.3660000000000001,2.5099999999999998,962,1017,3.59,3808.4,4719.3999999999996]
["2017-01-01",null,null,null,11728.4,1638.2,2537.8000000000002,7601.8,null,null,null,null,null,null,null,null,null,null,null,null,null,null,null,75.7,2099.6529,null,null,null,null,null,null,null,null,null,null,null,null,null,103.4572,103.75579999999999,1850185,1.37,56,49.5,48.5,56.1,54.5,50,48.5,60.4,69,61.4,53.6,60.3,62741,null,null,null,null,null,null,null,null,null,473464,417141,null,null,null,null,null,1358.3969,null,null,null,1236,1300,195.55,17.334,7.3417251140248396,10.701725114024839,261,599,5.2287145242070121,1680,5690,3.5430579964850613,599,16173.5,528.9,815,12627.4,8853.6,3660.3746999999998,null,970.51869999999997,98.5,111.6,null,null,null,null,null,244.15799999999999,250.78299999999999,null,null,null,null,null,113.7,33.6,62.9,9.4,4.8,12355,{"$f":"+DL707-DL706","v":12},null,null,145541,{"$f":"+DP707-DP706","v":216},null,null,293500,10.199999999999999,1462.7,1435,995.6,241.5,754.1,506.6,247.5,439.4,null,null,null,null,null,null,null,null,null,null,null,null,null,190.7,null,null,null,null,null,null,null,3.75,0.65,3.92,4.66,{"$f":"+(FB707-FA707)*100","v":74.000000000000028},4.1500000000000004,0.51,0.83,1.21,1.92,2.4300000000000002,{"$f":"+(FI707-FG707)*100","v":122.00000000000001},null,null,null,null,null,1.3183,6.8906999999999998,21.391100000000002,1.0634999999999999,127.55670000000001,94.592600000000004,24282.3,41376.300000000003,23481.599999999999,null,null,null,null,null,52.5,54.58,2.4580000000000002,2.58,940.25,947,3.29,3686.75,4463]
["2017-02-01",null,null,null,11729.6,1643.4,2530,7606.3,null,null,null,null,null,null,null,null,null,null,null,null,null,null,null,75.8,2098.2802000000001,null,null,null,null,null,null,null,null,null,null,null,null,null,103.7038,104.0198,1855129,1.37,57.7,57,47.5,54.2,55,54,51.5,65.099999999999994,68,62.9,54.8,63.6,62826,null,null,null,null,null,null,null,null,null,472513,416196,null,null,null,null,null,1362.4296999999999,null,null,null,1288,1219,196.91,17.324999999999999,7.4955325304447333,10.785532530444733,263,615,5.1317073170731708,1730,5470,3.7952468007312614,615,16257.3,578.6,877,12672.3,8916,3678.8886000000002,null,975.48030000000006,96.3,116.1,null,null,null,null,null,244.45599999999999,251.29900000000001,null,null,null,null,null,113.9,33.6,63,9.1999999999999993,4.7,12377,22,null,null,145773,232,null,null,290250,10,1471.3,1442.4,1000.2,241.4,758.8,510.2,248.6,442.2,null,null,null,null,null,null,null,null,null,null,null,null,null,191.6,null,null,null,null,null,null,null,3.75,0.66,3.95,4.6399999999999997,68.999999999999943,4.17,0.52,0.82,1.2,1.9,2.42,122,null,null,null,null,null,1.3109,6.8693999999999997,20.300799999999999,1.0649999999999999,125.76690000000001,93.963499999999996,23265.3,32763.4,23909.7,null,null,null,null,null,53.47,54.87,2.4159999999999999,2.5680000000000001,999.75,1033,2.91,3967,4254.75]
["2017-03-01",null,null,null,11816.1,1660.4,2552.6999999999998,7655,null,null,null,null,null,null,null,null,null,null,null,null,null,null,null,75.900000000000006,2085.3688999999999,null,null,null,null,null,null,null,null,null,null,null,null,null,103.9162,103.34050000000001,1858322,1.37,57.2,57.5,47,58.9,59,53.5,49,64.5,70.5,57.6,55.9,58.9,62850,null,null,null,null,null,null,null,null,null,472991,416718,null,null,null,null,null,1365.2547,null,null,null,1189,1260,198.01,16.719000000000001,6.8832525474844379,10.033252547484437,266,638,5.0031347962382444,1800,5700,3.7894736842105261,638,16304.9,556.20000000000005,824,12741.5,8921.2000000000007,3692.9014000000002,null,979.86720000000003,97.6,124.9,null,null,null,null,null,243.75200000000001,250.99299999999999,null,null,null,null,null,114,33.6,63,8.9,4.5,12388,{"$f":"+DL709-DL708","v":11},null,null,145823,{"$f":"+DP709-DP708","v":50},null,null,288250,10.3,1475.6,1448.8,1003.9,242,761.9,512.4,249.5,444.9,null,null,null,null,null,null,null,null,null,null,null,null,null,191.5,null,null,null,null,null,null,null,3.88,0.79,4.01,4.68,{"$f":"+(FB709-FA709)*100","v":67},4.2,0.74,1.01,1.31,2.0099999999999998,2.48,{"$f":"+(FI709-FG709)*100","v":117},null,null,null,null,null,1.3387,6.8940000000000001,19.28,1.0690999999999999,125.2587,94.490200000000002,26292.5,34204.699999999997,28054.3,null,null,null,null,null,49.33,51.59,2.4369999999999998,2.5539999999999998,982.75,934,2.99,4166.3999999999996,4469.8]
["2017-04-01",null,null,null,11827.4,1671.4,2560.1,7650.8,null,null,null,null,null,null,null,null,null,null,null,null,null,null,null,76.599999999999994,2095.4005000000002,null,null,null,null,null,null,null,null,null,null,null,null,null,105.0468,104.76049999999999,1854646,1.37,54.8,57,45.5,52,59.5,55.5,51,57.5,68.5,58.6,55.1,62.4,63019,null,null,null,null,null,null,null,null,null,474547,418413,null,null,null,null,null,1368.5148999999999,null,null,null,1154,1228,198.35,16.968,6.5974986187151439,9.6774986187151448,266,590,5.4101694915254237,1920,5560,4.1438848920863309,590,16328.1,535.9,823,12742.4,8971.4,3705.7264,null,980.65779999999995,97,119.4,null,null,null,null,null,244.15799999999999,251.172,null,null,null,null,null,114.5,33.700000000000003,62.9,8.6,4.4000000000000004,12397,{"$f":"+DL710-DL709","v":9},null,null,146030,{"$f":"+DP710-DP709","v":207},null,null,287250,10.199999999999999,1473.7,1461.4,1007.8,244.5,763.3,516.1,247.2,453.6,null,null,null,null,null,null,null,null,null,null,null,null,null,193,null,null,null,null,null,null,null,4,0.9,3.87,4.57,{"$f":"+(FB710-FA710)*100","v":70.000000000000014},4.05,0.8,1.04,1.24,1.82,2.2999999999999998,{"$f":"+(FI710-FG710)*100","v":105.99999999999999},null,null,null,null,null,1.3436999999999999,6.8875999999999999,18.767199999999999,1.0713999999999999,124.3486,94.001499999999993,24333.5,37471.9,25157.7,null,null,null,null,null,51.06,52.31,2.528,2.5830000000000002,1009.75,1125,3.19,4183.75,4708]
["2017-05-01",null,null,null,11859.8,1677.5,2572,7666.2,null,null,null,null,null,null,null,null,null,null,null,null,null,null,null,76.5,2098.6078000000002,null,null,null,null,null,null,null,null,null,null,null,null,null,105.0136,104.1699,1860380,1.37,54.9,55,49.5,53.5,57.5,53.5,51.5,59.5,60.5,57.1,53.1,60.7,63523,null,null,null,null,null,null,null,null,null,474760,418381,null,null,null,null,null,1371.6677999999999,null,null,null,1129,1168,198.51,16.7,6.1733132243213156,9.1833132243213154,271,606,5.3663366336633667,1970,5620,4.2064056939501784,606,16380.8,562.4,795,12805.5,8956.6,3723.8416000000002,null,987.44100000000003,97.1,117.6,null,null,null,null,null,243.846,251.32900000000001,null,null,null,null,null,114.6,33.700000000000003,62.7,8.4,4.3,12397,{"$f":"+DL711-DL710","v":0},null,null,146175,{"$f":"+DP711-DP710","v":145},null,null,283750,10.4,1472.2,1470.7,1008.8,245.3,763.5,515,248.5,461.9,null,null,null,null,null,null,null,null,null,null,null,null,null,192.8,null,null,null,null,null,null,null,4,0.91,3.85,4.55,{"$f":"+(FB711-FA711)*100","v":69.999999999999972},4.01,0.89,1.1200000000000001,1.3,1.84,2.2999999999999998,{"$f":"+(FI711-FG711)*100","v":99.999999999999972},null,null,null,null,null,1.3606,6.8842999999999996,18.7666,1.105,123.86709999999999,93.204499999999996,26331.3,41801.599999999999,27167.8,null,null,null,null,null,48.48,50.33,2.5030000000000001,2.56,1090,1268,3.24,4184.5,4779]
["2017-06-01",null,null,null,11871.6,1684.5,2567.6,7676.3,null,null,null,null,null,null,null,null,null,null,null,null,null,null,null,76.599999999999994,2102.7507999999998,null,null,null,null,null,null,null,null,null,null,null,null,null,105.2469,104.3417,1869426,1.38,57.8,57,50.5,57.2,59.5,54,49,63.5,55,62.4,57,60.8,63464,null,null,null,null,null,null,null,null,null,474488,418025,null,null,null,null,null,1373.6875,null,null,null,1217,1275,198.68,16.608000000000001,6.0460836717505648,9.126083671750564,272,619,5.2730210016155086,1940,5510,4.2250453720508165,619,16384.2,538.5,857,12802,8987.1,3735.3724000000002,null,991.91039999999998,95.1,117.3,null,null,null,null,null,243.79,251.62700000000001,null,null,null,null,null,114.8,33.700000000000003,62.8,8.6,4.4000000000000004,12418,{"$f":"+DL712-DL711","v":21},null,null,146385,{"$f":"+DP712-DP711","v":210},null,null,286750,9.6,1471.3,1486.3,1010.9,246,764.9,515.70000000000005,249.2,475.4,null,null,null,null,null,null,null,null,null,null,null,null,null,193.7,null,null,null,null,null,null,null,4.13,1.04,3.68,4.37,{"$f":"+(FB712-FA712)*100","v":69},3.9,0.98,1.2,1.34,1.77,2.19,{"$f":"+(FI712-FG712)*100","v":84.999999999999986},null,null,null,null,null,1.3294999999999999,6.8066000000000004,18.129300000000001,1.1233,122.2662,91.767099999999999,25864.1,42291.9,27309,null,null,null,null,null,45.18,46.37,2.46,2.5110000000000001,1171.75,1360,2.99,4011.8,4845.2]
["2017-07-01",null,null,null,11902.6,1707.5,2572.5,7684.3,null,null,null,null,null,null,null,null,null,null,null,null,null,null,null,76.5,2107.2555000000002,null,null,null,null,null,null,null,null,null,null,null,null,null,105.10380000000001,103.9753,1875856,1.38,56.3,55,49,55.2,57.5,56,50,60.4,62,60.6,55.4,55.9,64258,null,null,null,null,null,null,null,null,null,476752,420258,null,null,null,null,null,1378.1512,null,null,null,1185,1230,199.37,16.690000000000001,6.0299018749635351,9.0399018749635349,274,582,5.6494845360824746,1920,5440,4.2352941176470589,582,16436.3,520.9,841,12810.2,9025.5,3753.0898999999999,null,993.97360000000003,93.4,120,null,null,null,null,null,244.048,251.91399999999999,null,null,null,null,null,114.9,33.700000000000003,62.9,8.6,4.3,12407,{"$f":"+DL713-DL712","v":-11},null,null,146523,{"$f":"+DP713-DP712","v":138},null,null,288500,10.6,1473,1491,1012.5,245.3,767.2,517.79999999999995,249.4,478.5,null,null,null,null,null,null,null,null,null,null,null,null,null,193.4,null,null,null,null,null,null,null,4.25,1.1499999999999999,3.7,4.3899999999999997,{"$f":"+(FB713-FA713)*100","v":68.999999999999943},3.97,1.07,1.22,1.37,1.87,2.3199999999999998,{"$f":"+(FI713-FG713)*100","v":94.999999999999972},null,null,null,null,null,1.2689999999999999,6.7694000000000001,17.8081,1.153,120.5996,89.543400000000005,22891.7,43601.7,24661.200000000001,null,null,null,null,null,46.934000000000005,48.48,2.4140000000000001,2.496,1308.25,1480,2.96,4177,4767]
["2017-08-01",null,null,null,11893.9,1684,2579.8000000000002,7686.5,null,null,null,null,null,null,null,null,null,null,null,null,null,null,null,75.8,2113.3663999999999,null,null,null,null,null,null,null,null,null,null,null,null,null,104.3403,103.7688,1888998,1.38,58.8,57.5,41,59.9,55.5,54.5,55.5,60.3,62,61,57.1,57.5,65083,null,null,null,null,null,null,null,null,null,476479,419884,null,null,null,null,null,1382.0712000000001,null,null,null,1183,1272,null,16.024000000000001,6.3306207854768779,9.410620785476878,279,561,5.9679144385026737,1870,5350,4.1943925233644865,561,16465.5,521.4,869,12797,9018.1,3766.1547999999998,null,999.73289999999997,96.8,120.4,null,null,null,null,null,245.03,252.54,null,null,null,null,null,114.7,33.6,62.9,8.6,4.4000000000000004,12448,41,null,null,146692,169,null,null,292500,10.5,1471.3,1490.7,1015.4,247.3,768.1,518.20000000000005,249.9,475.3,null,null,null,null,null,null,null,null,null,null,null,null,null,193.7,null,null,null,null,null,null,null,4.25,1.1599999999999999,null,null,null,3.88,1.01,1.23,1.34,1.78,2.21,86.999999999999986,null,null,null,null,null,1.2607999999999999,6.6669999999999998,17.796900000000001,1.1813,119.2846,88.1905,24966.6,45819.5,27047,null,null,null,null,null,48.093333333333334,51.7,2.4940000000000002,2.5950000000000002,1369.3333333333333,null,2.91,4179.75,4812.25]
["2017-09-01",null,null,null,11969.8,1743,2588.1999999999998,7708,null,null,null,null,null,null,null,null,null,null,null,null,null,null,null,76,2124.9286999999999,null,null,null,null,null,null,null,null,null,null,null,null,null,104.6367,103.8755,null,null,60.8,58,42,60.3,57,54,52.5,64.599999999999994,71.5,62.2,64.400000000000006,61.3,65935,null,null,null,null,null,null,null,null,null,483895,426849,null,null,null,null,null,1391.6511,null,null,null,1127,1225,null,18.469000000000001,6.4269155124768682,9.3669155124768686,279,667,5.0194902548725633,1900,5390,4.2300556586270872,667,16532.5,441.9,829,12796.1,9055.7999999999993,null,null,null,95.1,119.8,null,null,null,null,null,246.37299999999999,252.86,null,null,null,null,null,114.6,33.6,63.1,8.3000000000000007,4.2,12447,-1,null,null,146659,-33,null,null,295750,10.3,1471.2,1485.8,null,null,null,null,null,null,null,null,null,null,null,null,null,null,null,null,null,null,null,194.5,null,null,null,null,null,null,null,4.25,1.1499999999999999,null,null,null,3.81,1.03,1.28,1.38,1.8,2.2000000000000002,82.000000000000028,null,null,null,null,null,1.2279,6.569,17.830500000000001,1.1913,118.13200000000001,87.092699999999994,null,null,null,null,null,null,null,null,48.612499999999997,56.15,2.7610000000000001,2.7850000000000001,1420,null,3.01,4027.4,4194.8]
["2017-10-01",null,null,null,null,null,null,null,null,null,null,null,null,null,null,null,null,null,null,null,null,null,null,null,null,null,null,null,null,null,null,null,null,null,null,null,null,null,null,null,null,null,null,null,null,null,null,null,null,null,null,null,null,null,null,null,null,null,null,null,null,null,null,null,null,null,null,null,null,null,null,null,null,null,null,null,null,null,null,null,null,null,null,null,null,null,null,null,null,null,null,null,null,null,null,null,100.7,null,null,null,null,null,null,null,null,null,null,null,null,null,null,null,null,null,null,null,null,null,null,null,null,null,null,null,null,null,null,null,null,null,null,null,null,null,null,null,null,null,null,null,null,null,null,null,null,null,null,null,null,null,null,null,null,null,null,null,null,null,null,3.9,null,null,null,null,null,null,null,null,null,null,null,1.2516,6.6181999999999999,18.669899999999998,1.1783999999999999,119.8544,88.342100000000002]
["2017-11-01"]
["2017-12-01"]

{"sheet":"Quarterly","index":2,"n_rows":246,"n_cols":194,"rows_kept":246,"cut":false,"hidden":false,"merged":[]}
[]
[]
[]
[]
[]
[]
["Title:","Nominal Gross Domestic Product","Real Gross Domestic Product","Real Final Sales of Domestic Product","Real Personal Consumption Expenditures","Real PCE: Durable Goods","Real PCE: Nondurable Goods","Real PCE: Services","Real Private Nonres. Fixed Investment","Real Nonres. Invest.: Equip. & Software","Real Private Residential Fixed Investment","Real Change in Private Inventories","Real Imports of Goods & Services","Real Exports of Goods & Services","Net Exports of Goods & Services","Real Gov't Cons. & Invest.","Federal Government Surplus or Deficit [-], NIPA",null,null,null,null,null,"Capacity Utilization: Mfg (NAICS)","Capacity Utilization: Total Industry","Com'l & Industrial Loans, Commercial Banks","Commercial Net Loan Charge-offs","Corporate Profits After Tax","Corporate Profits Less Financial After Tax","Bank Willingness to Make Consumer Loans","Demand for Com'l & Ind'l Loans by Small Firms - Net","Nonperf'g Loans - Total","Commercial Net Loan Charge-offs","Total Loan Charge-offs","E-Commerce Sales","E-Commerce Sales as % of Total Retail Sales","ECI: Benefits: Private Industry Workers ","ECI: Compensation: Private Industry Workers","ECI: Wages & Salaries: Private Industry Workers ","Industrial Production Index","Industrial Production Index - Mfg.","Inventories: Total Business","Inventory to Sales Ratio: Total Business","ISM INDEX: PMI Manufacturing Composite Index","ISM INDEX Backlogs","ISM INDEX Customer Inventories","ISM INDEX Employment ","ISM INDEX Exports","ISM INDEX Imports","ISM INDEX Inventories","ISM INDEX New Orders","ISM INDEX Prices","ISM INDEX Production","ISM INDEX Supplier deliveries","ISM Non Mfg: Business Activity Index","Mfgs' New Orders: Nondefense Excluding Aircraft","Mfg.: Output Per Hour of All Persons","Mfg.: Unit Labor Cost","Nonfarm: Comp. Per Hour","Nonfarm: Output Per Hour of All Persons","Nonfarm: Real Comp. Per Hour","Nonfarm: Unit Labor Cost","Nonfinancial Corporate Business: Profits After Tax","Nonperf'g Total Loans","PMI Manufacturing Composit Index","Retail and Food Services Sales","Retail Sales: Total (Excl'g Food Svcs.)",null,null,null,null,null,"Consumer Loans at All Commercial Banks","Debt Service Payments as a % DPI","Household Financial Obligations as a percent of DPI","Household Credit Market Debt Outstanding","Housing Starts: Total: New Privately Owned ","New Private Housing Units Authorized by Building Permits - Thousands","S&P Case-Shiller 20-City Home Price Index","Autos & Light Trucks","Misery Index","Misery Index - Adjusted ","New Home Inventories - Thousands","New Homes Sold - Thousands","New Home IN/RS","Used Home Inventories - Thousands","Used Homes Sold - Thousands","Used Home IN/RS","New Homes Sales - Single Family - Thousands","Personal Income","Personal Saving","Privately Owned Housing Starts: 1-Unit Structures","Real Disposable Personal Income","Savings Deposits - Total","Total Consumer Credit Outstanding","Total Population: Incl'd Armed Forces Overseas - Thousands","Total Revolving Credit Outstanding","University of Michigan: Consumer Sentiment","Conference Board Consumer Confidence",null,null,null,null,null,"CPI Index - All Urban: All Items","CPI Index All Urban: Less Food & Energy",null,null,null,null,null,"Aggregate Weekly Hours Index: Total Private Industries","Average Weekly Hours: Production & Nonsuper.","Civilian Participation Rate","Total Unemployment Rate Plus (U6 Rate)","Civilian Unemployment Rate","Nonfarm Payrolls: Mfg.","Nonfarm Payrolls: Mfg. - Monthly Change","Nonfarm Payrolls: Mfg - Quarterly Change","Nonfarm Payrolls: Mfg - Annual Change","Total Nonfarm Payrolls: All Employees","Nonfarm Payrolls: All Employees - Monthly Change","Nonfarm Payrolls: All Employees - Quarterly Change","Nonfarm Payrolls: All Employees - Annual Change","Initial Unemployment Claims (Monthly Average)","Median Duration of Unemployment","Trucking Employment - Truck Transportation - SA","Trucking Employment - Truck Transportation - NSA","Trucking Employment - General Freight  - NSA","Trucking Employment - General Freight, local - NSA","Trucking Employment - General Freight, long - NSA","Trucking Employment - General Freight, long TL - NSA","Trucking Employment - General Freight, long LTL - NSA","Trucking Employment - Specialized Freight - NSA",null,null,null,null,null,"Freight Composite Index Class 8","Freight Composite Index Dry Van","Freight Composite Index Reefer Van",null,null,null,null,null,"Producer Price Index: All Commodities","PPI: Finished Goods Less Food & Energy","PPI Finished Goods: Capital Equipment",null,null,null,null,null,"Bank Prime Loan Rate","Effective Federal Funds Rate","Moody's Seasoned Aaa Corporate Bond Yield","Moody's Seasoned Baa Corporate Bond Yield","Yield Spread: Moody's Seasoned Corporate Bond Yield","Mortgage Rate, 30-Year Conventional ","Treasury Bill: Secondary Market Rate, 3-Month ","Treasury Constant Maturity Rate, 1-Year ","Treasury Constant Maturity Rate, 2-Year ","Treasury Constant Maturity Rate, 5-Year ","Treasury Constant Maturity Rate, 10-Year ","Treasury Yield, 10-Year Minus 1-Year",null,null,null,null,null,"Canada/U.S. Foreign Exchange Rate","China/U.S. Foreign Exchange Rate","Mexico/U.S. Foreign Exchange Rate","U.S./Euro Foreign Exchange Rate","Trade Weighted Exchange Index: Broad","Trade Weighted Exchange Index: Major Currencies","U.S. Imports from Canada, Customs Basis","U.S. Imports from China, Mainland, Customs Basis","U.S. Imports from Mexico, Customs Basis",null,null,null,null,null,"Spot Oil Price: West Texas Intermediate","Europe Brent Spot Price FOB ","EIA  Retail Gasoline Prices : All Grades","EIA Retail On-Highway Diesel Fuel Prices","U.S. Exports of Distillate Fuel Oil ","U.S. Exports of Distillate Fuel Oil, 0 to 15 ppm Sulfur ","Natural Gas Futures Contract 1 ","U.S. Product Supplied of Distillate Fuel Oil","U.S. Refiner Net Production of Distillate Fuel Oil, 0 to 15 ppm Sulfur"]
["ID","GDP001Q","GDP004Q","GDP007Q","GDP010Q","GDP014Q","GDP018Q","GDP022Q","GDP026Q","GDP029Q","GDP032Q","GDP035Q","GDP036Q","GDP039Q","GDP042Q","GDP043Q","GDP046Q",null,null,null,null,null,"BUS001Q","BUS002Q","BUS003Q","BUS004Q","BUS005Q","BUS006Q","BUS007Q","BUS008Q","BUS009Q","BUS010Q","BUS011Q","BUS012Q","BUS013Q","BUS014Q","BUS015Q","BUS016Q","BUS019Q","BUS020M","BUS021Q","BUS022Q","BUS023Q","BUS024Q","BUS025Q","BUS026Q","BUS027Q","BUS028Q","BUS029Q","BUS030Q","BUS031Q","BUS032Q","BUS033Q","BUS034Q","BUS035Q","BUS036Q","BUS037Q","BUS038Q","BUS039Q","BUS040Q","BUS041Q","BUS042Q","BUS043Q","BUS044Q","BUS045Q","BUS046Q",null,null,null,null,null,"CON001Q","CON002Q","CON003Q","CON004Q","CON005Q","CON006Q","CON007Q","CON008Q","CON009Q","CON010Q","CON011Q","CON012Q","CON035M","CON033Q","CON034Q","COM036M","CON013Q","CON014Q","CON018Q","CON022Q","CON023Q","CON027Q","CON028Q","CON029Q","CON030Q","CON031Q","CON032Q",null,null,null,null,null,"CPI001Q","CPI005Q",null,null,null,null,null,"EMP001Q","EMP002Q","EMP003Q","EMP004Q","EMP005Q","EMP006Q","EMP007Q","EMP009Q","EMP011Q","EMP013Q","EMP014Q","EMP016Q","EMP018Q","EMP020Q","EMP021Q","EMP022Q","EMP023Q","EMP024Q","EMP025Q","EMP026Q","EMP027Q","EMP028Q","EMP029Q",null,null,null,null,null,"FRE001Q","FRE004Q","FRE007Q",null,null,null,null,null,"PPI001Q","PPI004Q","PPI007Q",null,null,null,null,null,"RAT001Q","RAT002Q","RAT003Q","RAT004Q",null,"RAT005Q","RAT006Q","RAT007Q","RAT008Q","RAT009Q","RAT010Q","RAT011Q",null,null,null,null,null,"TRA001Q","TRA002Q","TRA003Q","TRA004Q","TRA005Q","TRA006Q","TRA007Q","TRA008Q","TRA009Q",null,null,null,null,null,"ENE001Q","ENE002Q","ENE003Q","ENE004Q","ENE005Q","ENE006Q","ENE007Q","ENE008Q","ENE009Q"]
["Frequency:","Quarterly","Quarterly","Quarterly","Monthly","Monthly","Monthly","Monthly","Quarterly","Quarterly","Quarterly","Quarterly","Quarterly","Quarterly","Quarterly","Quarterly","Quarterly",null,null,null,null,null,"Quarterly","Monthly","Monthly","Quarterly, End of Period","Quarterly","Quarterly","Quarterly, End of Period","Quarterly, End of Period","Quarterly, End of Period","Quarterly, End of Period","Quarterly, End of Period","Quarterly","Quarterly","Quarterly","Quarterly","Quarterly","Monthly","Monthly","Monthly, End of Period","Monthly","Monthly","Monthly","Monthly","Monthly","Monthly","Monthly","Monthly","Monthly","Monthly","Monthly","Monthly","Monthly","Monthly","Quarterly","Quarterly","Quarterly","Quarterly","Quarterly","Quarterly","Quarterly","Quarterly","Monthly","Monthly","Monthly",null,null,null,null,null,"Monthly","Quarterly","Quarterly","Quarterly, End of Period","Monthly","Monthly","Monthly","Monthly","Monthly ","Monthly ","Monthly","Monthly","Monthly","Monthly","Monthly ","Monthly","Monthly","Monthly","Monthly","Monthly","Monthly","Monthly","Monthly, End of Period","Monthly","Monthly, End of Period","Monthly","Monthly",null,null,null,null,null,"Monthly","Monthly",null,null,null,null,null,"Monthly","Monthly","Monthly","Monthly","Monthly","Monthly",null,null,null,"Monthly",null,null,null,"Weekly, End of Period","Monthly","Monthly","Monthly","Monthly","Monthly","Monthly","Monthly","Monthly","Monthly",null,null,null,null,null,"Quarterly","Quarterly","Quarterly",null,null,null,null,null,"Monthly","Monthly","Monthly",null,null,null,null,null,"Monthly","Monthly","Monthly","Monthly",null,"Monthly","Monthly","Monthly","Monthly","Monthly","Monthly",null,null,null,null,null,null,"Monthly","Monthly","Monthly","Monthly","Monthly","Monthly","Monthly","Monthly","Monthly",null,null,null,null,null,"Monthly","Monthly","Monthly","Monthly","Monthly","Monthly","Monthly","Monthly","Monthly"]
["Units:","Billions of Dollars","Billions of Chained 2009 Dollars","Billions of Chained 2009 Dollars","Billions of Chained 2009 Dollars","Billions of Chained 2009 Dollars","Billions of Chained 2009 Dollars","Billions of Chained 2009 Dollars","Billions of Chained 2009 Dollars","Billions of Chained 2009 Dollars","Billions of Chained 2009 Dollars","Billions of Chained 2009 Dollars","Billions of Chained 2009 Dollars","Billions of Chained 2009 Dollars","Billions of Chained 2009 Dollars","Billions of Chained 2009 Dollars","Billions of Dollars",null,null,null,null,null,"Percent of Capacity","Percent of Capacity","Billions of Dollars","Ratio","Billions of Dollars","Billions of Dollars","Percent","Percent","Ratio","Ratio","Ratio","Millions of Dollars","XXXXXXXX","Index: December 2005=100","Index: December 2005=100","Index: December 2005=100","Index 2012=100","Index 2012=100","Millions of Dollars","Ratio","Index","Index","Index","Index","Index","Index","Index","Index","Index","Index","Index","Index","Millions of Dollars","Index, 2009=100","Index, 2009=100","Index, 2009=100","Index, 2009=100","Index, 2009=100","Index, 2009=100","Billions of Dollars","Ratio","XXXXXXXX","Millions of Dollars","Millions of Dollars",null,null,null,null,null,"Billions of Dollars","Percent","Percent","Billions of Dollars","Thousands of Units","Thousands of Units","Billions of Dollars","Millions of Units","Percent","Percent","Thousands, SAAR","Thousands, SAAR",null,"Thousands","Thousands",null,"Thousands","Billions of Dollars","Billions of Dollars","Thousands of Units","Billions of Chained 2009 Dollars","Billions of Dollars","Billions of Dollars","Thousands","Billions of Dollars","Index 1st Quarter 1966=100","Index",null,null,null,null,null,"Index 1982-84=100","Index 1982-84=100",null,null,null,null,null,"Index 2002=100","Hours","Percent","Percent","Percent","Thousands","Thousands","XXXXXXXX","XXXXXXXX","Thousands","Thousands","XXXXXXXX","XXXXXXXX","Number","Weeks","Thousands","Thousands","Thousands","Thousands","Thousands","Thousands","Thousands","Thousands",null,null,null,null,null,"Index","Index","Index",null,null,null,null,null,"Index 1982=100","Index 1982=100","Index 1982=100",null,null,null,null,null,"Percent","Percent","Percent","Percent","Yield Spread (in BPS)","Percent","Percent","Percent","Percent","Percent","Percent","Yield Spread (in BPS)",null,null,null,null,null,"Canadian Dollars to One U.S. Dollar","Chinese Yuan to One U.S. Dollar","Mexican New Pesos to One U.S. Dollar","U.S. Dollars to One Euro","Index January 1997=100","Index March 1973=100","Millions of Dollars","Millions of Dollars","Millions of Dollars",null,null,null,null,null,"$ per Bbl.","$ per Bbl.","$ per Gallon","$ per Gallon","000s Bbls/Day","000s Bbls/Day","$ per MmBTU","000s Bbls/Day","000s Bbls/Day"]
["59'Q1",511.06299999999999,2976.6289999999999,2980.6469999999999,1809.5,80.143753178504724,634.36201717087806,1094.9942296506172,174.95728601177819,92.080921414684482,216.3,11.544,117.133,86.576999999999998,-30.555999999999997,989.44899999999996,-4.5439999999999996,null,null,null,null,null,"--","--",35.187833333333337,"--",32.002000000000002,30.765000000000001,"--","--","--","--","--","--","--","--","--","--",23.133233333333333,"--","--","--",66.13333333333334,"--","--",61.866666666666667,"--","--",53.133333333333333,69.899999999999991,64.86666666666666,70.733333333333334,65.133333333333326,"--","--","--","--",7.5819999999999999,34.4,51.2,22.041,25.209,"--",null,"--","--",null,null,null,null,null,20.965833333333336,"--","--",126.07,1648,"--","--","--",0,0,"--","--","--","--","--","--","--",394.36666666666662,37.833333333333336,1302.3333333333333,2065.0333333333333,136.73333333333335,49.494199999999999,176679,"--","--","--",null,null,null,null,null,28.993333333333336,29.933333333333334,null,null,null,null,null,"--","--",59.199999999999996,"--",5.833333333333333,15124,null,"--",null,52727.666666666664,null,null,null,"--","--","--","--","--","--","--","--","--","--",null,null,null,null,null,0,0,0,null,null,null,null,null,31.7,"--",32.5,null,null,null,null,null,4,2.57,4.13,4.87,{"$f":"+(FB11-FA11)*100","v":74.000000000000028},"--",2.7733333333333334,3.5033333333333334,"--",3.9866666666666668,3.9899999999999998,{"$f":"+FI11-FF11","v":0.48666666666666636},null,null,null,null,null,"--","--","--","--","--","--","--","--","--",null,null,null,null,null,2.99,"--","--","--","--","--","--","--","--"]
["59'Q2",524.24099999999999,3049.011,3029.9389999999999,1837.4,83.162446639646063,639.60413917534186,1114.633414185012,180.00460198392264,96.65495865499274,223.9,29.23,122.797,89.453999999999994,-33.343000000000004,1001.749,-1.8360000000000001,null,null,null,null,null,"--","--",36.334966666666666,"--",34.673999999999999,33.343000000000004,"--","--","--","--","--","--","--","--","--","--",24.255133333333333,"--","--","--",66.500000000000014,"--","--",63.533333333333339,"--","--",64.266666666666666,67,66.066666666666663,70.766666666666666,63.833333333333336,"--","--","--","--",7.6440000000000001,34.808,51.531999999999996,21.962,27.681999999999999,"--",null,"--","--",null,null,null,null,null,21.731333333333335,"--","--",131.87,1530.3333333333333,"--","--","--",0,0,"--","--","--","--","--","--","--",402.66666666666669,38.700000000000003,1232.6666666666667,2098.0666666666662,139.53333333333333,51.048666666666662,177367.33333333334,"--",95.3,"--",null,null,null,null,null,29.043333333333333,30.099999999999998,null,null,null,null,null,"--","--",59.266666666666673,"--",5.1000000000000005,15475.333333333334,null,{"$f":"+DL12-DL11","v":351.33333333333394},null,53516,null,{"$f":"+DP12-DP11","v":788.33333333333576},null,"--","--","--","--","--","--","--","--","--","--",null,null,null,null,null,0,0,0,null,null,null,null,null,31.766666666666666,"--",32.766666666666673,null,null,null,null,null,4.2433333333333332,3.0833333333333335,4.3533333333333344,4.9533333333333331,{"$f":"+(FB12-FA12)*100","v":59.999999999999872},"--",3,3.9166666666666665,"--",4.3233333333333333,4.2566666666666668,0.3400000000000003,null,null,null,null,null,"--","--","--","--","--","--","--","--","--",null,null,null,null,null,2.97,"--","--","--","--","--","--","--","--"]
["59'Q3",525.19600000000003,3043.1390000000001,3063.2730000000001,1856.5,84.769005532524673,642.06206360067131,1129.668930866804,184.83957132940731,101.17440884591994,219.7,3.46,123.95,92.289000000000001,-31.661000000000001,1010.329,-4.2320000000000002,null,null,null,null,null,"--","--",38.004666666666672,"--",31.433,31.074000000000002,"--","--","--","--","--","--","--","--","--","--",23.263033333333329,"--","--","--",54.966666666666661,"--","--",53.533333333333331,"--","--",51.733333333333327,53.133333333333326,61.033333333333331,57.699999999999996,58,"--","--","--","--",7.69,34.738,51.57,22.135999999999999,23.928000000000001,"--",null,"--","--",null,null,null,null,null,22.815933333333334,"--","--",137.18,1505.6666666666667,"--","--","--",0,0,"--","--","--","--","--","--","--",405.0333333333333,34.900000000000006,1241.3333333333333,2095.1999999999998,142.33333333333334,53.026399999999995,178102.33333333334,"--",94.5,"--",null,null,null,null,null,29.193333333333332,30.233333333333334,null,null,null,null,null,"--","--",59.29999999999999,"--",5.2666666666666666,15359.666666666666,null,{"$f":"+DL13-DL12","v":-115.66666666666788},null,53522,null,{"$f":"+DP13-DP12","v":6},null,"--","--","--","--","--","--","--","--","--","--",null,null,null,null,null,0,0,0,null,null,null,null,null,31.666666666666668,"--",32.833333333333336,null,null,null,null,null,4.666666666666667,3.5766666666666667,4.4733333333333327,5.1166666666666663,{"$f":"+(FB13-FA13)*100","v":64.333333333333357},"--",3.5400000000000005,4.6033333333333326,"--",4.6833333333333336,4.503333333333333,-9.9999999999999645E-2,null,null,null,null,null,"--","--","--","--","--","--","--","--","--",null,null,null,null,null,2.97,"--","--","--","--","--","--","--","--"]
["59'Q4",529.322,3055.1039999999998,3053.76,1858.6,80.72702615235238,646.0425960770898,1131.8303777705578,184.33320629660318,100.59792844543637,213.3,17.126999999999999,120.801,89.817999999999998,-30.983000000000004,1002.144,-4.9210000000000003,null,null,null,null,null,"--","--",38.800766666666668,"--",30.8,31.966999999999999,"--","--","--","--","--","--","--","--","--","--",23.374300000000002,"--","--","--",52.833333333333336,"--","--",50.29999999999999,"--","--",43.866666666666667,54.633333333333326,63.93333333333333,54.666666666666664,55.6,"--","--","--","--",7.7640000000000002,34.677999999999997,51.753999999999998,22.388000000000002,22.968,"--",null,"--","--",null,null,null,null,null,23.792166666666663,"--","--",141.56,1457.3333333333333,"--","--","--",0,0,"--","--","--","--","--","--","--",410.66666666666669,37.133333333333333,1205.3333333333333,2110.1,145.1,55.05716666666666,178910.33333333334,"--",93.8,"--",null,null,null,null,null,29.37,30.433333333333334,null,null,null,null,null,"--","--",59.333333333333336,"--",5.6000000000000005,15343.666666666666,null,-16,null,53723,null,201,null,"--","--","--","--","--","--","--","--","--","--",null,null,null,null,null,0,0,0,null,null,null,null,null,31.533333333333331,"--",32.733333333333334,null,null,null,null,null,5,3.99,4.5699999999999994,5.2733333333333334,70.3333333333334,"--",4.2299999999999995,4.916666666666667,"--",4.8266666666666662,4.583333333333333,-0.33333333333333393,null,null,null,null,null,"--","--","--","--","--","--","--","--","--",null,null,null,null,null,2.97,"--","--","--","--","--","--","--","--"]
["60'Q1",543.34699999999998,3123.1619999999998,3087.7440000000001,1876.4,83.315939527500703,647.65221030252678,1145.4318501699727,190.73627380819102,106.71177006534653,219.4,42.750999999999998,125.38,101.06399999999999,-24.316000000000003,985.20699999999999,4.7249999999999996,null,null,null,null,null,"--","--",39.811433333333333,"--",33.673999999999999,33.506,"--","--","--","--","--","--","--","--","--","--",24.783599999999996,"--","--","--",53.866666666666667,"--","--",55.333333333333336,"--","--",51.866666666666674,56.70000000000001,60.666666666666664,60.966666666666669,35.56666666666667,"--","--","--","--",7.93,35.482999999999997,52.817,22.35,25.832999999999998,"--",null,"--","--",null,null,null,null,null,24.45143333333333,"--","--",146.01,1357.3333333333333,1045,"--","--",6.524519021413572,10.117852354746907,"--","--","--","--","--","--","--",417.09999999999997,38.333333333333336,1107.6666666666667,2135.3000000000002,147.26666666666665,56.414366666666666,179590.33333333334,"--",100,"--",null,null,null,null,null,29.396666666666665,30.566666666666666,null,null,null,null,null,"--","--",58.9,"--",5.1333333333333337,15719.666666666666,null,376,null,54415,null,692,null,"--","--","--","--","--","--","--","--","--","--",null,null,null,null,null,21.340442695270497,22.435154455666506,22.030303061797667,null,null,null,null,null,31.666666666666668,"--",32.866666666666667,null,null,null,null,null,5,3.9333333333333336,4.5533333333333337,5.31,75.6666666666666,"--",3.8733333333333331,4.57,"--",4.6399999999999997,4.4866666666666672,-8.3333333333333037E-2,null,null,null,null,null,"--","--","--","--","--","--","--","--","--",null,null,null,null,null,2.97,"--","--","--","--","--","--","--","--"]
["60'Q2",542.697,3111.31,3118.5770000000002,1900.1,85.209018477707986,654.72146196829749,1160.1695195539944,193.52944866656225,110.01328133939367,201.4,12.215,126.322,107.48399999999999,-18.838000000000008,995.83299999999997,1.306,null,null,null,null,null,"--","--",40.921400000000006,"--",31.364000000000001,31.731999999999999,"--","--","--","--","--","--","--","--","--","--",24.245866666666668,"--","--","--",44.1,"--","--",41.4,"--","--",43.966666666666669,49,56.666666666666664,47.766666666666673,32,"--","--","--","--",7.9809999999999999,35.003,52.838999999999999,22.802,23.395,"--",null,"--","--",null,null,null,null,null,24.974333333333334,"--","--",149.75,1269,1008.6666666666666,"--","--",7.0583529434375949,10.72168627677093,"--","--","--","--","--","--","--",422.13333333333338,36.533333333333331,1020.3333333333334,2148.6333333333337,149.63333333333333,58.016500000000001,180224.33333333334,"--",93.3,"--",null,null,null,null,null,29.573333333333334,30.633333333333336,null,null,null,null,null,"--","--",59.566666666666663,"--",5.2333333333333334,15565,null,-154.66666666666606,null,54544,null,129,null,"--","--","--","--","--","--","--","--","--","--",null,null,null,null,null,20.904753119803587,22.357427443621475,22.100341418585515,null,null,null,null,null,31.733333333333334,"--",32.766666666666666,null,null,null,null,null,5,3.6966666666666668,4.4533333333333331,5.246666666666667,79.333333333333385,"--",2.9933333333333336,3.8699999999999997,"--",4.3000000000000007,4.26,0.39000000000000012,null,null,null,null,null,"--","--","--","--","--","--","--","--","--",null,null,null,null,null,2.97,"--","--","--","--","--","--","--","--"]
["60'Q3",546.01199999999994,3119.0569999999998,3117.1779999999999,1892.5,84.533649771147552,650.89319029698777,1157.0731599318647,190.13190264000545,107.01013425603369,195.3,17.274999999999999,122.605,104.76900000000001,-17.835999999999999,1020.016,-0.378,null,null,null,null,null,"--","--",41.373766666666661,"--",30.131,31.783000000000001,"--","--","--","--","--","--","--","--","--","--",23.847166666666666,"--","--","--",45.56666666666667,"--","--",41.966666666666669,"--","--",40.6,50.6,49.633333333333333,49.5,37.033333333333331,"--","--","--","--",8.0299999999999994,35.103999999999999,53.128,22.873999999999999,22.300999999999998,"--",null,"--","--",null,null,null,null,null,25.603633333333335,"--","--",152.97,1212.6666666666667,992.33333333333337,"--","--",6.8921979955978472,10.76553132893118,"--","--","--","--","--","--","--",424.73333333333335,38.499999999999993,967.66666666666663,2152.4666666666667,152.86666666666667,59.019533333333335,180951.33333333334,"--",97.2,"--",null,null,null,null,null,29.59,30.600000000000005,null,null,null,null,null,"--","--",59.566666666666663,"--",5.5333333333333341,15367.666666666666,null,-197.33333333333394,null,54267.666666666664,null,-276.33333333333576,null,"--","--","--","--","--","--","--","--","--","--",null,null,null,null,null,20.844965337704906,22.316964469704203,22.081390783809923,null,null,null,null,null,31.633333333333336,"--",32.766666666666659,null,null,null,null,null,4.7833333333333332,2.936666666666667,4.3133333333333335,5.1033333333333335,79,"--",2.36,3.0733333333333337,"--",3.6733333333333333,3.8333333333333335,0.75999999999999979,null,null,null,null,null,"--","--","--","--","--","--","--","--","--",null,null,null,null,null,2.97,"--","--","--","--","--","--","--","--"]
["60'Q4",541.06299999999999,3081.3,3132.9160000000002,1895,82.415447918753472,651.34997271231452,1161.2345793689319,189.69087503078893,107.13002958825267,195,-20.108000000000001,116.822,106.94,-9.882000000000005,1026.8240000000001,-4.91,null,null,null,null,null,"--","--",41.770833333333336,"--",29.114000000000001,30.57,"--","--","--","--","--","--","--","--","--","--",23.272300000000001,"--","--","--",44.866666666666667,"--","--",42.466666666666669,"--","--",40.233333333333334,48.6,46.166666666666664,48.1,38.06666666666667,"--","--","--","--",8.0649999999999995,34.676000000000002,53.021000000000001,23.257999999999999,21.036999999999999,"--",null,"--","--",null,null,null,null,null,26.108133333333331,"--","--",156.4,1185,967.33333333333337,"--","--",7.6626734253686095,12.049340092035274,"--","--","--","--","--","--","--",426.16666666666669,37.93333333333333,904,2151.5666666666671,157.33333333333334,59.84276666666667,181788.66666666666,"--",90.1,"--",null,null,null,null,null,29.78,30.766666666666666,null,null,null,null,null,"--","--",59.633333333333326,"--",6.2666666666666657,15096.666666666666,null,-271,null,53950,null,-317.66666666666424,null,"--","--","--","--","--","--","--","--","--","--",null,null,null,null,null,20.474268883597929,22.115754109571142,21.938199849322899,null,null,null,null,null,31.7,"--",32.799999999999997,null,null,null,null,null,4.5,2.2966666666666669,4.3199999999999994,5.0966666666666667,77.666666666666728,"--",2.3066666666666666,2.9933333333333336,"--",3.7466666666666666,3.8866666666666667,0.89333333333333309,null,null,null,null,null,"--","--","--","--","--","--","--","--","--",null,null,null,null,null,2.97,"--","--","--","--","--","--","--","--"]
["61'Q1",545.94899999999996,3102.2510000000002,3138.5709999999999,1894.4,77.882291297446315,655.19999592721126,1161.3177127753424,186.97937195190224,104.41852650936598,195.8,-9.1669999999999998,116.254,106.20699999999999,-10.047000000000011,1041.989,-4.6749999999999998,null,null,null,null,null,"--","--",42.012633333333333,"--",28.523,29.585999999999999,"--","--","--","--","--","--","--","--","--","--",22.919966666666667,"--","--","--",45.533333333333331,"--","--",38.700000000000003,"--","--",38.666666666666664,50.366666666666674,49.866666666666674,50.633333333333333,40.800000000000004,"--","--","--","--",8.1359999999999992,35.119999999999997,53.378,23.164999999999999,20.145,"--",null,"--","--",null,null,null,null,null,26.858333333333334,"--","--",160.46,1240.3333333333333,976.66666666666663,"--","--",8.3081492791054163,13.068149279105414,"--","--","--","--","--","--","--",430.66666666666669,41.733333333333327,934.33333333333337,2172.4666666666667,161.83333333333334,60.479166666666664,182516.33333333334,"--",91.6,"--",null,null,null,null,null,29.84,30.833333333333332,null,null,null,null,null,"--","--",59.633333333333333,"--",6.8,14822,null,-274.66666666666606,null,53633.666666666664,null,-316.33333333333576,null,"--","--","--","--","--","--","--","--","--","--",null,null,null,null,null,20.580669374150759,22.212900243921254,22.044765239484121,null,null,null,null,null,31.8,"--",32.9,null,null,null,null,null,4.5,2.0033333333333334,4.2699999999999996,5.0633333333333335,79.333333333333385,"--",2.35,2.8733333333333335,"--",3.6433333333333331,3.7866666666666666,0.91333333333333311,null,null,null,null,null,"--","--","--","--","--","--","--","--","--",null,null,null,null,null,2.97,"--","--","--","--","--","--","--","--"]
["61'Q2",557.42999999999995,3159.9180000000001,3172.703,1922.7,79.499083049515235,663.9876195363538,1179.2132974141309,191.1446327056137,108.4260276857987,196.5,7.91,117.67100000000001,104.732,-12.939000000000007,1044.3879999999999,-6.383,null,null,null,null,null,"--","--",42.266266666666667,"--",30.003,32.389000000000003,"--","--","--","--","--","--","--","--","--","--",23.828633333333332,"--","--","--",58.199999999999996,"--","--",54.866666666666667,"--","--",42.43333333333333,65.5,52.266666666666673,64.533333333333346,48.233333333333327,"--","--","--","--",8.2490000000000006,36.124000000000002,54.142000000000003,22.835999999999999,22.001000000000001,"--",null,"--","--",null,null,null,null,null,27.04686666666667,"--","--",163.91,1258.6666666666667,1033,"--","--",7.8679556967939348,12.767955696793933,"--","--","--","--","--","--","--",436.90000000000003,42.599999999999994,942.66666666666663,2205.5333333333333,165.6,60.196799999999996,183220.33333333334,"--",92.5,"--",null,null,null,null,null,29.83,30.933333333333334,null,null,null,null,null,"--","--",59.466666666666661,"--",7,14912.666666666666,null,90.66666666666606,null,53796,null,162.33333333333576,null,"--","--","--","--","--","--","--","--","--","--",null,null,null,null,null,20.946541979191053,22.576241536589365,22.405017537954137,null,null,null,null,null,31.466666666666669,"--",32.9,null,null,null,null,null,4.5,1.7333333333333332,4.2833333333333332,5.0166666666666666,73.333333333333343,"--",2.3033333333333332,2.936666666666667,"--",3.6166666666666667,3.7900000000000005,0.8533333333333335,null,null,null,null,null,"--","--","--","--","--","--","--","--","--",null,null,null,null,null,2.97,"--","--","--","--","--","--","--","--"]
["61'Q3",568.22799999999995,3212.6060000000002,3199.68,1932,81.443326295674055,664.48790503885448,1186.0687686654715,193.02308363375809,110.2168344043438,207.1,26.248999999999999,125.46299999999999,104.163,-21.299999999999997,1066.3889999999999,-4.8710000000000004,null,null,null,null,null,"--","--",42.669566666666668,"--",31.640999999999998,33.850999999999999,"--","--","--","--","--","--","--","--","--","--",24.588899999999999,"--","--","--",60.633333333333333,"--","--",57.833333333333336,"--","--",52.033333333333331,65.63333333333334,52.333333333333336,66.5,50.233333333333327,"--","--","--","--",8.3109999999999999,36.622,54.334000000000003,22.693999999999999,23.498999999999999,"--",null,"--","--",null,null,null,null,null,27.196566666666666,"--","--",166.85,1358.6666666666667,1113.3333333333333,"--","--",7.9720604176917078,12.708727084358374,"--","--","--","--","--","--","--",444,46.233333333333327,1009.6666666666666,2234.8333333333335,169.13333333333333,60.632866666666665,183964,"--",99.2,"--",null,null,null,null,null,29.946666666666669,31.066666666666666,null,null,null,null,null,"--","--",59.199999999999996,"--",6.7666666666666666,15067.333333333334,null,154.66666666666788,null,54269.666666666664,null,473.66666666666424,null,"--","--","--","--","--","--","--","--","--","--",null,null,null,null,null,21.515367977149438,22.907520542167688,22.654941006611736,null,null,null,null,null,31.5,"--",32.9,null,null,null,null,null,4.5,1.6833333333333333,4.4366666666666665,5.1066666666666665,67,"--",2.3033333333333332,3.0133333333333336,"--",3.9,3.98,0.96666666666666634,null,null,null,null,null,"--","--","--","--","--","--","--","--","--",null,null,null,null,null,2.97,"--","--","--","--","--","--","--","--"]
["61'Q4",581.62400000000002,3277.7170000000001,3271.9169999999999,1970.8,85.39320994313357,673.51479562745385,1211.8919944294125,198.88711740074797,115.78287785869607,214,21.779,128.446,107.384,-21.061999999999998,1089.6959999999999,-2.891,null,null,null,null,null,"--","--",43.303733333333334,"--",33.890999999999998,36.396000000000001,"--","--","--","--","--","--","--","--","--","--",25.451166666666666,"--","--","--",61.800000000000004,"--","--",58.6,"--","--",55.800000000000004,68.933333333333323,54.566666666666663,63.566666666666663,53.1,"--","--","--","--",8.3719999999999999,36.965000000000003,54.652000000000001,22.646999999999998,25.721,"--",null,"--","--",null,null,null,null,null,27.457066666666663,"--","--",168.58,1388.3333333333333,1145.3333333333333,"--","--",6.9052055720092893,11.245205572009288,"--","--","--","--","--","--","--",452.8,46.933333333333337,1005.3333333333334,2277.9,173.56666666666669,61.718333333333334,184774.33333333334,"--",93,"--",null,null,null,null,null,29.99,31.166666666666668,null,null,null,null,null,"--","--",59,"--",6.2,15237,null,169.66666666666606,null,54712,null,442.33333333333576,null,"--","--","--","--","--","--","--","--","--","--",null,null,null,null,null,22.01576884386219,23.373807110554395,23.091465955089745,null,null,null,null,null,31.533333333333331,"--",32.9,null,null,null,null,null,4.5,2.4,4.4099999999999993,5.1133333333333333,70.3333333333334,"--",2.4599999999999995,3.0999999999999996,"--",3.8433333333333333,3.9733333333333327,0.87333333333333307,null,null,null,null,null,"--","--","--","--","--","--","--","--","--",null,null,null,null,null,2.97,"--","--","--","--","--","--","--","--"]
["62'Q1",595.17600000000004,3336.7530000000002,3312.6680000000001,1991.7,87.235124597389301,679.10494232930944,1225.3599330733014,202.87270023959346,119.64575880410253,217.9,34.415999999999997,132.357,107.121,-25.236000000000004,1110.693,-5.3710000000000004,null,null,null,null,null,"--","--",43.985099999999996,"--",34.436,38.648000000000003,"--","--","--","--","--","--","--","--","--","--",25.831299999999999,"--","--","--",60.866666666666667,"--","--",59.466666666666669,"--","--",58.366666666666667,60.43333333333333,56.20000000000001,66.000000000000014,56.766666666666673,"--","--","--","--",8.5050000000000008,37.58,55.308,22.632000000000001,26.074000000000002,"--",null,"--","--",null,null,null,null,null,28.072099999999995,"--","--",170.79,1360.6666666666667,1150,"--","--",6.5269883824843618,10.470321715817695,"--","--","--","--","--","--","--",459.73333333333335,47.233333333333327,966.33333333333337,2299.6,178.1,62.683933333333336,185448,"--",99.9,"--",null,null,null,null,null,30.106666666666666,31.233333333333334,null,null,null,null,null,"--","--",58.9,"--",5.6333333333333329,15394.666666666666,null,157.66666666666606,null,55118,null,406,null,"--","--","--","--","--","--","--","--","--","--",null,null,null,null,null,22.490816796573625,23.757277204100831,23.435781336851633,null,null,null,null,null,31.7,"--",33,null,null,null,null,null,4.5,2.4566666666666666,4.41,5.0633333333333335,65.333333333333329,"--",2.7233333333333332,3.2066666666666666,"--",3.8366666666666664,4.0166666666666666,0.81,null,null,null,null,null,"--","--","--","--","--","--","--","--","--",null,null,null,null,null,2.97,"--","--","--","--","--","--","--","--"]
["62'Q2",602.58000000000004,3372.7060000000001,3367.5169999999998,2016.2,89.578449351970193,681.82388527768285,1244.797665370347,208.36104382095442,124.86240533570569,224.7,21.617999999999999,135.245,117.4,-17.844999999999999,1116,-5.6440000000000001,null,null,null,null,null,"--","--",44.974333333333334,"--",34.366,38.86,"--","--","--","--","--","--","--","--","--","--",26.081666666666667,"--","--","--",52.70000000000001,"--","--",53.166666666666664,"--","--",50.066666666666663,54.466666666666669,52.433333333333337,55.833333333333336,45.29999999999999,"--","--","--","--",8.5619999999999994,37.517000000000003,55.469000000000001,22.821000000000002,25.6,"--",null,"--","--",null,null,null,null,null,28.739733333333334,"--","--",172.68,1470.3333333333333,1177,"--","--",6.8407535181859247,10.71408685151926,"--","--","--","--","--","--","--",467.06666666666666,47.133333333333333,1003.3333333333334,2323.8666666666663,182.5,64.5351,186091.66666666666,"--",95.4,"--",null,null,null,null,null,30.22,31.366666666666664,null,null,null,null,null,"--","--",58.79999999999999,"--",5.5333333333333341,15518.333333333334,null,123.66666666666788,null,55624.333333333336,null,506.33333333333576,null,"--","--","--","--","--","--","--","--","--","--",null,null,null,null,null,22.803471957542314,24.044079562670333,23.702189780017051,null,null,null,null,null,31.533333333333331,"--",33,null,null,null,null,null,4.5,2.6066666666666669,4.2966666666666669,5.0133333333333328,71.666666666666586,"--",2.7166666666666668,3.0166666666666662,"--",3.6333333333333333,3.8733333333333335,0.85666666666666735,null,null,null,null,null,"--","--","--","--","--","--","--","--","--",null,null,null,null,null,2.97,"--","--","--","--","--","--","--","--"]
["62'Q3",609.57500000000005,3404.8330000000001,3394.7919999999999,2032.5,90.22311948095971,687.13126191290758,1255.1456186061328,210.94187205266581,127.53087777701637,224.5,25.353999999999999,136.96100000000001,110.834,-26.12700000000001,1141.704,-4.8639999999999999,null,null,null,null,null,"--","--",46.007933333333334,"--",35.393000000000001,39.878999999999998,"--","--","--","--","--","--","--","--","--","--",26.359833333333331,"--","--","--",50.166666666666664,"--","--",49.300000000000004,"--","--",43.833333333333336,53.033333333333331,48.233333333333341,53.199999999999996,44.633333333333333,"--","--","--","--",8.6219999999999999,38.006999999999998,55.698,22.684999999999999,26.495999999999999,"--",null,"--","--",null,null,null,null,null,29.50963333333333,"--","--",176,1430.3333333333333,1204,"--","--",6.7686411453135911,10.665307811980256,"--","--","--","--","--","--","--",471.7,46.266666666666673,967.33333333333337,2336.0333333333333,187.1,66.001866666666658,186795.33333333334,"--",91.6,"--",null,null,null,null,null,30.306666666666668,31.466666666666669,null,null,null,null,null,"--","--",58.833333333333336,"--",5.5666666666666673,15535.666666666666,null,17.333333333332121,null,55853.666666666664,null,229.33333333332848,null,"--","--","--","--","--","--","--","--","--","--",null,null,null,null,null,23.006087655789173,24.265879200169152,23.925411486186704,null,null,null,null,null,31.7,"--",33,null,null,null,null,null,4.5,2.8466666666666671,4.3366666666666669,5.0466666666666669,71,"--",2.84,3.1833333333333336,"--",3.7366666666666668,3.99,0.80666666666666664,null,null,null,null,null,"--","--","--","--","--","--","--","--","--",null,null,null,null,null,2.97,"--","--","--","--","--","--","--","--"]
["62'Q4",613.13199999999995,3418.0459999999998,3422.7370000000001,2061.3000000000002,94.203701705990127,690.98128512780409,1276.1150131662059,210.15782296961424,126.49266048612685,224.2,15.053000000000001,138.63499999999999,108.444,-30.190999999999988,1149.646,-5.49,null,null,null,null,null,"--","--",47.162033333333341,"--",36.241999999999997,42.405999999999999,"--","--","--","--","--","--","--","--","--","--",26.582333333333334,"--","--","--",54.066666666666663,"--","--",51.066666666666663,"--","--",49.266666666666673,57.033333333333339,46.1,58.066666666666663,48.5,"--","--","--","--",8.7010000000000005,38.329000000000001,56.075000000000003,22.702000000000002,26.812999999999999,"--",null,"--","--",null,null,null,null,null,30.083866666666665,"--","--",180.37,1573,1217.6666666666667,"--","--",6.8337893298779591,10.707122663211289,"--","--","--","--","--","--","--",477.93333333333339,44.800000000000004,1022.6666666666666,2356.6666666666665,192.6,67.599233333333331,187564.33333333334,"--",95,"--",null,null,null,null,null,30.38,31.533333333333331,null,null,null,null,null,"--","--",58.533333333333331,"--",5.5333333333333341,15539.666666666666,null,4,null,56041.666666666664,null,188,null,"--","--","--","--","--","--","--","--","--","--",null,null,null,null,null,22.983496527157456,24.410403202888503,24.117615441648454,null,null,null,null,null,31.666666666666668,"--",33,null,null,null,null,null,4.5,2.9233333333333333,4.2566666666666668,4.9566666666666661,69.999999999999929,"--",2.8133333333333339,2.9966666666666666,"--",3.6,3.9033333333333329,0.90666666666666629,null,null,null,null,null,"--","--","--","--","--","--","--","--","--",null,null,null,null,null,2.97,"--","--","--","--","--","--","--","--"]
["63'Q1",622.67899999999997,3456.08,3439.6060000000002,2075.3000000000002,96.0865477970071,694.76605371193978,1284.4473984910533,210.6641880024184,126.74485731109304,232.3,29.606000000000002,135.42599999999999,110.98099999999999,-24.444999999999993,1134.115,-3.4260000000000002,null,null,null,null,null,"--","--",47.821866666666665,"--",35.872,42.64,"--","--","--","--","--","--","--","--","--","--",27.073733333333337,"--","--","--",55,"--","--",51.699999999999996,"--","--",47.5,59.6,49.233333333333327,56.833333333333336,52.1,"--","--","--","--",8.7870000000000008,38.456000000000003,56.451000000000001,22.850999999999999,26.951000000000001,"--",null,"--","--",null,null,null,null,null,30.897466666666663,"--","--",185.94,1411.3333333333333,1239.3333333333333,"--","--",6.9957776178088729,11.03244428447554,"--","--","--","--","--","--",462.5,483.3,45.766666666666673,916.33333333333337,2376.8333333333335,198.16666666666666,69.368899999999996,188204.33333333334,"--",98.4,"--",null,null,null,null,null,30.47666666666667,31.599999999999998,null,null,null,null,null,"--","--",58.6,"--",5.7666666666666666,15550.333333333334,null,10.666666666667879,null,56222.666666666664,null,181,null,"--","--","--","--","--","--","--","--","--","--",null,null,null,null,null,23.349523719464642,24.687585459429926,24.329865017301884,null,null,null,null,null,31.533333333333331,"--",33,null,null,null,null,null,4.5,2.9666666666666668,4.1966666666666663,4.8933333333333335,69.666666666666714,"--",2.9066666666666667,3.0266666666666668,"--",3.64,3.8933333333333331,0.86666666666666625,null,null,null,null,null,"--","--","--","--","--","--","--","--","--",null,null,null,null,null,2.97,"--","--","--","--","--","--","--","--"]
["63'Q2",631.83500000000004,3501.134,3499.14,2095.1,98.143352494259318,697.13697196292128,1299.8196755428194,217.21426471707838,133.1371744484743,249.1,19.524000000000001,138.614,123.968,-14.646000000000001,1135.077,-1.071,null,null,null,null,null,"--","--",48.76253333333333,"--",37.799999999999997,43.965000000000003,"--","--","--","--","--","--","--","--","--","--",27.787700000000001,"--","--","--",58.533333333333339,"--","--",52.933333333333337,"--","--",52.6,63.133333333333333,60.266666666666673,60.666666666666664,56.966666666666661,"--","--","--","--",8.8320000000000007,38.844999999999999,56.631,22.736000000000001,29.170999999999999,"--",null,"--","--",null,null,null,null,null,31.829233333333331,"--","--",191.13,1639.3333333333333,1327.6666666666667,"--","--",6.7702219384940321,10.783555271827366,"--","--","--","--","--","--",572.33333333333337,488.10000000000008,46,1058,2399,203.36666666666665,71.337433333333323,188796,"--",91.7,"--",null,null,null,null,null,30.533333333333331,31.733333333333334,null,null,null,null,null,"--","--",58.699999999999996,"--",5.7333333333333343,15622.333333333334,null,72,null,56618,null,395.33333333333576,null,"--","--","--","--","--","--","--","--","--","--",null,null,null,null,null,23.919103900948528,25.054592306670898,24.600612470036509,null,null,null,null,null,31.5,"--",33,null,null,null,null,null,4.5,2.9633333333333334,4.22,4.8533333333333326,63.333333333333286,"--",2.94,3.1433333333333331,"--",3.7566666666666673,3.9633333333333334,0.82000000000000028,null,null,null,null,null,"--","--","--","--","--","--","--","--","--",null,null,null,null,null,2.97,"--","--","--","--","--","--","--","--"]
["63'Q3",644.96,3569.4789999999998,3563.7959999999998,2123.6999999999998,99.361062737906167,703.51017423390851,1320.8287630281852,223.1763046194497,138.88010382684737,253.7,23.172999999999998,142.13300000000001,117.348,-24.785000000000011,1185.424,-1.637,null,null,null,null,null,"--","--",49.588566666666658,"--",38.765000000000001,44.652999999999999,"--","--","--","--","--","--","--","--","--","--",27.973133333333333,"--","--","--",55.833333333333336,"--","--",52.633333333333326,"--","--",50,60.633333333333326,59.533333333333331,60.133333333333326,47.266666666666673,"--","--","--","--",8.9220000000000006,39.671999999999997,56.863,22.49,30.108000000000001,"--",null,"--","--",null,null,null,null,null,32.485800000000005,"--","--",197.12,1672,1348,"--","--",6.8645447889017257,10.714544788901726,"--","--","--","--","--","--",608.33333333333337,495.23333333333335,45.5,1064.3333333333333,2425.4666666666667,207.96666666666667,73.487499999999997,189499.66666666666,"--",96.4,"--",null,null,null,null,null,30.72,31.866666666666664,null,null,null,null,null,"--","--",58.633333333333333,"--",5.5,15654.666666666666,null,32.333333333332121,null,56927,null,309,null,"--","--","--","--","--","--","--","--","--","--",null,null,null,null,null,24.425430014175816,25.493579692761088,25.016412226175589,null,null,null,null,null,31.633333333333336,"--",33.033333333333331,null,null,null,null,null,4.5,3.33,4.2866666666666662,4.8366666666666669,55.000000000000071,"--",3.293333333333333,3.5266666666666668,"--",3.9133333333333336,4.0333333333333332,0.50666666666666638,null,null,null,null,null,"--","--","--","--","--","--","--","--","--",null,null,null,null,null,2.97,"--","--","--","--","--","--","--","--"]
["63'Q4",654.84,3594.9540000000002,3598.8429999999998,2141.4,100.92669019402352,702.6183609468419,1337.8549488591348,229.67737826641891,145.31106210613717,261.5,16.928000000000001,141.667,123.23699999999999,-18.430000000000007,1173.662,-2.3410000000000002,null,null,null,null,null,"--","--",51.274466666666662,"--",39.744,45.29,"--","--","--","--","--","--","--","--","--","--",28.445999999999998,"--","--","--",56.4,"--","--",52.133333333333333,"--","--",44.766666666666673,62.1,69.166666666666671,62.699999999999996,47.9,"--","--","--","--",9.0250000000000004,39.671999999999997,57.363,22.75,30.911000000000001,"--",null,"--","--",null,null,null,null,null,33.977566666666668,"--","--",202.32,1630.6666666666667,1398,"--","--",6.9601272767171452,10.856793943383812,"--","--","--","--","--","--",553.33333333333337,504.73333333333329,49.433333333333337,990.66666666666663,2465.0333333333333,212.43333333333331,75.767133333333334,190255,"--",94.4,"--",null,null,null,null,null,30.803333333333331,32.033333333333331,null,null,null,null,null,"--","--",58.699999999999996,"--",5.5666666666666664,15700.333333333334,null,45.666666666667879,null,57299.666666666664,null,372.66666666666424,null,"--","--","--","--","--","--","--","--","--","--",null,null,null,null,null,24.672703672690147,25.683409650355173,25.182052175236919,null,null,null,null,null,31.633333333333336,"--",33.166666666666671,null,null,null,null,null,4.5,3.4533333333333331,4.333333333333333,4.84,50.666666666666686,"--",3.4966666666666666,3.7300000000000004,"--",4.0066666666666668,4.12,0.38999999999999968,null,null,null,null,null,"--","--","--","--","--","--","--","--","--",null,null,null,null,null,2.97,"--","--","--","--","--","--","--","--"]
["64'Q1",671.149,3672.7080000000001,3674.6950000000002,2183.6,104.85610812310242,714.64696455044532,1364.0969273264523,234.49601325600668,150.25239898916396,277.5,18.068000000000001,141.53399999999999,130.79,-10.744,1177.319,-5.5179999999999998,null,null,null,null,null,"--","--",52.560233333333336,"--",42.901000000000003,49.149000000000001,"--","--","--","--","--","--","--","--","--","--",28.835400000000003,"--","--","--",58.4,"--","--",53.1,"--","--",49.300000000000004,61.6,60.233333333333327,63.9,55.833333333333336,"--","--","--","--",9.0180000000000007,40.027000000000001,57.084000000000003,22.530999999999999,33.866999999999997,"--",null,"--","--",null,null,null,null,null,35.066200000000002,"--","--",206.93,1646.6666666666667,1350.3333333333333,"--","--",6.9542368963589922,10.780903563025658,"--","--","--","--","--","--",573.33333333333337,514.30000000000007,50.666666666666664,1038.6666666666667,2513.4333333333329,217.23333333333332,78.345999999999989,190857.66666666666,"--",99.5,"--",null,null,null,null,null,30.930000000000003,32.200000000000003,null,null,null,null,null,51.266666666666673,38.4,58.70000000000001,"--",5.4666666666666659,15742.333333333334,null,42,null,57712,null,412.33333333333576,null,"--","--","--","--","--","--","--","--","--","--",null,null,null,null,null,25.385715155583057,26.269702742477477,25.678588195327862,null,null,null,null,null,31.666666666666668,"--",33.233333333333334,null,null,null,null,null,4.5,3.4633333333333334,4.376666666666666,4.83,45.3333333333334,"--",3.53,3.8266666666666667,"--",4.080000000000001,4.18,0.35333333333333306,null,null,null,null,null,"--","--","--","--","--","--","--","--","--",null,null,null,null,null,2.97,"--","--","--","--","--","--","--","--"]
["64'Q2",680.75699999999995,3716.3820000000001,3719.8249999999998,2222,107.59851438610539,728.28518237948595,1386.1163032344089,239.98435683736767,154.76789184397276,263.60000000000002,17.335999999999999,144.72,132.953,-11.766999999999996,1187.944,-10.154999999999999,null,null,null,null,null,"--","--",53.755733333333332,"--",42.832999999999998,49.356000000000002,"--","--","--","--","--","--","--","--","--","--",29.512266666666665,"--","--","--",59.333333333333336,"--","--",55.633333333333333,"--","--",52.300000000000004,62.733333333333327,61.533333333333331,61.233333333333327,58.9,"--","--","--","--",9.1180000000000003,40.298999999999999,57.622999999999998,22.626000000000001,33.942999999999998,"--",null,"--","--",null,null,null,null,null,36.345166666666664,"--","--",211.63,1488.3333333333333,1281,"--","--",6.6630785927338394,10.30307859273384,"--","--","--","--","--","--",554,523.69999999999993,55.79999999999999,943,2580.9666666666667,222.16666666666666,80.723633333333339,191452.66666666666,"--",98.5,"--",null,null,null,null,null,30.98,32.233333333333334,null,null,null,null,null,51.866666666666667,38.6,58.966666666666669,"--",5.1999999999999993,15812,null,69.66666666666606,null,58077.333333333336,null,365.33333333333576,null,"--","--","--","--","--","--","--","--","--","--",null,null,null,null,null,25.415008873132194,26.528168633373696,26.034805328040434,null,null,null,null,null,31.533333333333331,"--",33.4,null,null,null,null,null,4.5,3.49,4.4066666666666672,4.8499999999999996,44.333333333333243,"--",3.4766666666666666,3.86,"--",4.0733333333333333,4.2,0.3400000000000003,null,null,null,null,null,"--","--","--","--","--","--","--","--","--",null,null,null,null,null,2.97,"--","--","--","--","--","--","--","--"]
["64'Q3",692.80700000000002,3766.8620000000001,3765.998,2262.9,111.14931652514282,742.51069188537531,1409.2399915894821,247.72684153250194,162.39643906662795,259.2,20.773,148.60400000000001,131.93600000000001,-16.668000000000006,1189.3810000000001,-6.7130000000000001,null,null,null,null,null,"--","--",55.198466666666661,"--",43.908000000000001,49.856000000000002,"--","--","--","--","--","--","--","--","--","--",29.985099999999999,"--","--","--",63.166666666666664,"--","--",57.033333333333331,"--","--",56,67.066666666666663,62.466666666666661,64.166666666666671,66.63333333333334,"--","--","--","--",9.2379999999999995,40.601999999999997,58.250999999999998,22.753,34.933999999999997,"--",null,"--","--",null,null,null,null,null,37.903099999999995,"--","--",216.12,1528.6666666666667,1291.6666666666667,"--","--",6.074251191100621,9.5742511911006218,"--","--","--","--","--","--",582.33333333333337,533.33333333333337,54.29999999999999,972,2614.2999999999997,227.43333333333331,83.063200000000009,192132,"--",100.6,"--",null,null,null,null,null,31.05,32.299999999999997,null,null,null,null,null,52.333333333333336,38.5,58.633333333333333,"--",5,15969.333333333334,null,157.33333333333394,null,58645,null,567.66666666666424,null,"--","--","--","--","--","--","--","--","--","--",null,null,null,null,null,25.664039518358067,26.889381693164594,26.430635921830998,null,null,null,null,null,31.633333333333336,"--",33.5,null,null,null,null,null,4.5,3.456666666666667,4.41,4.8233333333333333,41.333333333333314,"--",3.4966666666666666,3.7666666666666671,"--",4.0533333333333337,4.1933333333333342,0.42666666666666719,null,null,null,null,null,"--","--","--","--","--","--","--","--","--",null,null,null,null,null,2.92,"--","--","--","--","--","--","--","--"]
["64'Q4",698.42399999999998,3780.2190000000001,3778.7330000000002,2269.1999999999998,107.73154155557943,743.92454221852938,1417.5439162258908,253.00283848720315,166.33147961445997,254.5,19.867000000000001,152.62299999999999,135.86600000000001,-16.756999999999977,1188.954,-5.0609999999999999,null,null,null,null,null,"--","--",57.167233333333336,"--",43.521999999999998,49.850999999999999,"--","--","--","--","--","--","--","--","--","--",30.439466666666664,"--","--","--",61.633333333333333,"--","--",55.833333333333336,"--","--",59.866666666666667,61.333333333333336,68.966666666666669,62.466666666666669,69.766666666666666,"--","--","--","--",9.3059999999999992,40.238999999999997,58.411000000000001,23.128,34.593000000000004,"--",null,"--","--",null,null,null,null,null,39.145700000000005,"--","--",219.86,1498,1216,"--","--",6.2328165357171956,9.7094832023838631,"--","--","--","--","--","--",557,542.06666666666661,58.566666666666663,963,2643.9333333333334,233.06666666666669,85.144599999999997,192839,"--",99.9,"--",null,null,null,null,null,31.193333333333332,32.466666666666669,null,null,null,null,null,52.866666666666667,38.6,58.566666666666663,"--",4.9666666666666659,16031,null,61.66666666666606,null,59144,null,499,null,"--","--","--","--","--","--","--","--","--","--",null,null,null,null,null,25.656709090288004,26.940550695355725,26.539934732320106,null,null,null,null,null,31.7,"--",33.5,null,null,null,null,null,4.5,3.5766666666666667,4.43,4.8099999999999996,37.999999999999986,"--",3.6833333333333336,3.9299999999999997,"--",4.0666666666666664,4.1733333333333329,0.24333333333333318,null,null,null,null,null,"--","--","--","--","--","--","--","--","--",null,null,null,null,null,2.92,"--","--","--","--","--","--","--","--"]
["65'Q1",719.24800000000005,3873.4520000000002,3839.9279999999999,2319.8000000000002,117.7597435620828,751.03729697147401,1451.0029594664434,269.10851340155415,182.2793949515322,255.3,45.521000000000001,147.12899999999999,121.20099999999999,-25.927999999999997,1187.655,-0.90700000000000003,null,null,null,null,null,"--","--",60.153066666666668,"--",49.487000000000002,56.286999999999999,"--","--","--","--","--","--","--","--","--","--",31.589166666666671,"--","--","--",62.666666666666664,"--","--",58.733333333333327,"--","--",60.79999999999999,64.733333333333334,66.666666666666671,61.233333333333327,67.5,"--","--","--","--",9.343,40.837000000000003,58.463000000000001,22.88,39.703000000000003,"--",null,"--","--",null,null,null,null,null,40.313866666666662,"--","--",224.64,1405.6666666666667,1220,"--","--",6.0639292254741255,9.4939292254741261,"--","--","--","--","--","--",549.33333333333337,553.13333333333333,55.1,894.66666666666663,2675.1000000000004,238.80000000000004,88.08356666666667,193385.33333333334,"--",102,"--",null,null,null,null,null,31.290000000000003,32.6,null,null,null,null,null,53.566666666666663,38.700000000000003,58.666666666666664,"--",4.8999999999999995,16296.333333333334,null,265.33333333333394,null,59795.333333333336,null,651.33333333333576,null,"--","--","--","--","--","--","--","--","--","--",null,null,null,null,null,26.344402439291443,27.587189413458944,27.11485420522105,null,null,null,null,null,31.866666666666664,"--",33.666666666666671,null,null,null,null,null,4.5,3.9733333333333332,4.42,4.7866666666666662,36.666666666666629,"--",3.89,4.0100000000000007,"--",4.1333333333333337,4.2033333333333331,0.19333333333333247,null,null,null,null,null,"--","--","--","--","--","--","--","--","--",null,null,null,null,null,2.92,"--","--","--","--","--","--","--","--"]
["65'Q2",732.36900000000003,3926.4059999999999,3909.1680000000001,2345.5,117.9439350275084,758.21530635517956,1469.3407586173121,278.99079871918326,191.53064196004641,257.2,32.795999999999999,164.49199999999999,143.95400000000001,-20.537999999999982,1202.0219999999999,-1.996,null,null,null,null,null,"--","--",63.069733333333339,"--",51.302,57.540999999999997,"--","--","--","--","--","--","--","--","--","--",32.321633333333331,"--","--","--",60.666666666666664,"--","--",57,"--","--",59.433333333333337,59.133333333333333,70.633333333333326,60.833333333333336,69.2,"--","--","--","--",9.4060000000000006,41.08,58.481999999999999,22.898,41.253,"--",null,"--","--",null,null,null,null,null,41.743533333333332,"--","--",228.35,1468,1203.3333333333333,"--","--",6.3127139481123278,9.5793806147789944,"--","--","--","--","--","--",571,562.73333333333335,55.833333333333336,948.66666666666663,2705.3333333333335,243.83333333333334,90.92113333333333,193894.66666666666,"--",105.4,"--",null,null,null,null,null,31.49,32.700000000000003,null,null,null,null,null,54.20000000000001,38.699999999999996,58.866666666666667,"--",4.6666666666666661,16483,null,186.66666666666606,null,60480.333333333336,null,685,null,"--","--","--","--","--","--","--","--","--","--",null,null,null,null,null,26.78704867423626,27.965696219731484,27.502906643927048,null,null,null,null,null,32.166666666666664,"--",33.799999999999997,null,null,null,null,null,4.5,4.0766666666666671,4.4433333333333342,4.8199999999999994,37.666666666666515,"--",3.8733333333333335,4.0200000000000005,"--",4.1500000000000004,4.206666666666667,0.18666666666666654,null,null,null,null,null,"--","--","--","--","--","--","--","--","--",null,null,null,null,null,2.92,"--","--","--","--","--","--","--","--"]
["65'Q3",750.18399999999997,4006.152,3982.98,2385.9,121.9756815484904,769.56961210758675,1494.3547063439232,289.13443373116291,201.45516644802782,258.3,36.933999999999997,165.167,135.71,-29.456999999999994,1241.732,-9.3800000000000008,null,null,null,null,null,"--","--",65.585966666666664,"--",52.192999999999998,58.177,"--","--","--","--","--","--","--","--","--","--",32.998466666666666,"--","--","--",59.066666666666663,"--","--",56.800000000000004,"--","--",55.566666666666663,58.733333333333327,69.533333333333346,59.79999999999999,63.9,"--","--","--","--",9.5060000000000002,41.817,58.923999999999999,22.731999999999999,42.210999999999999,"--",null,"--","--",null,null,null,null,null,43.4084,"--","--",232.68,1481,1237.6666666666667,"--","--",6.0843482024178925,9.1410148690845592,"--","--","--","--","--","--",585.33333333333337,577.06666666666661,62.1,984.33333333333337,2779.5,248.9,93.369399999999999,194530.66666666666,"--",103.4,"--",null,null,null,null,null,31.583333333333332,32.733333333333334,null,null,null,null,null,54.666666666666664,38.566666666666663,58.9,"--",4.3666666666666671,16734.333333333332,null,251.33333333333212,null,61227,null,746.66666666666424,null,"--","--","--","--","--","--","--","--","--","--",null,null,null,null,null,27.346422785962773,28.495400645851959,28.003354723058038,null,null,null,null,null,32.4,"--",33.833333333333336,null,null,null,null,null,4.5,4.0733333333333333,4.496666666666667,4.8899999999999997,39.333333333333265,"--",3.8666666666666667,4.083333333333333,"--",4.2,4.2466666666666661,0.16333333333333311,null,null,null,null,null,"--","--","--","--","--","--","--","--","--",null,null,null,null,null,2.92,"--","--","--","--","--","--","--","--"]
["65'Q4",773.10400000000004,4100.6310000000003,4088.6190000000001,2453,127.12280972121614,798.12938883730021,1527.7478014414837,300.89516997693647,211.48931176469523,252.8,29.702999999999999,173.226,145.548,-27.677999999999997,1265.3679999999999,-9.593,null,null,null,null,null,"--","--",67.987233333333336,"--",55.197000000000003,60.89,"--","--","--","--","--","--","--","--","--","--",33.666033333333331,"--","--","--",60.266666666666673,"--","--",57.266666666666673,"--","--",47.533333333333331,62.266666666666673,68.733333333333334,61.933333333333337,65.899999999999991,"--","--","--","--",9.6470000000000002,42.578000000000003,59.484000000000002,22.655999999999999,44.685000000000002,"--",null,"--","--",null,null,null,null,null,44.733499999999999,"--","--",237.9,1522.6666666666667,1300,"--","--",5.8844331692295313,8.7544331692295305,"--","--","--","--","--","--",593.33333333333337,590.43333333333328,60.1,1013,2835.4666666666667,254.66666666666666,95.388166666666663,195188,"--",102.9,"--",null,null,null,null,null,31.75,32.9,null,null,null,null,null,55.333333333333336,38.566666666666663,58.9,"--",4.1000000000000005,16959,null,224.66666666666788,null,62012,null,785,null,"--","--","--","--","--","--","--","--","--","--",null,null,null,null,null,27.901631453533867,29.186633098379474,28.721267975992234,null,null,null,null,null,32.633333333333333,"--",33.966666666666669,null,null,null,null,null,4.6399999999999997,4.166666666666667,4.6133333333333333,4.9666666666666659,35.333333333333258,"--",4.166666666666667,4.4633333333333338,"--",4.5066666666666668,4.4733333333333336,9.9999999999997868E-3,null,null,null,null,null,"--","--","--","--","--","--","--","--","--",null,null,null,null,null,2.92,"--","--","--","--","--","--","--","--"]
["66'Q1",797.32799999999997,4201.8909999999996,4158.6880000000001,2489.1,133.16019664349881,803.93705097502573,1552.0027523814756,313.50529272934921,224.30978062014628,258.8,52.040999999999997,177.69,142.97900000000001,-34.710999999999984,1289.0170000000001,-4.0659999999999998,null,null,null,null,null,"--","--",70.729033333333334,"--",56.652999999999999,63.203000000000003,"--","--","--","--","--","--","--","--","--","--",34.630299999999998,"--","--","--",65.666666666666671,"--","--",61.766666666666673,"--","--",50.233333333333327,65.633333333333326,80.833333333333329,66.100000000000009,80.466666666666669,"--","--","--","--",9.8130000000000006,43.173000000000002,59.95,22.73,45.802999999999997,"--",null,"--","--",null,null,null,null,null,45.802,"--","--",243.42,1380.6666666666667,1239.3333333333333,"--","--",6.2847894293595674,8.9914560960262353,"--","--","--","--","--","--",565.66666666666663,603.13333333333333,59,902.66666666666663,2863.5666666666671,258.00000000000006,97.745166666666663,195686,"--",100,"--",null,null,null,null,null,32.04666666666666,33.066666666666663,null,null,null,null,null,56.166666666666664,38.666666666666671,58.866666666666667,"--",3.8666666666666667,17277,null,318,null,62838.666666666664,null,826.66666666666424,null,"--","--","--","--","--","--","--","--","--","--",null,null,null,null,null,28.765504741640342,29.850812177549102,29.291295229308474,null,null,null,null,null,33.1,"--",34.133333333333333,null,null,null,null,null,5.1166666666666663,4.5566666666666666,4.8133333333333335,5.166666666666667,35.33333333333335,"--",4.6100000000000003,4.93,"--",4.92,4.7700000000000005,-0.15999999999999925,null,null,null,null,null,"--","--","--","--","--","--","--","--","--",null,null,null,null,null,2.92,"--","--","--","--","--","--","--","--"]
["66'Q2",807.15300000000002,4219.0969999999998,4180.5479999999998,2495.4,127.84934272372811,811.55009123047114,1556.000566045801,318.66694919277205,227.51697120950485,238.1,50.014000000000003,182.10900000000001,149.24199999999999,-32.867000000000019,1313.365,-5.6230000000000002,null,null,null,null,null,"--","--",73.697333333333333,"--",56.991999999999997,62.158999999999999,"--","--","--","--","--","--","--","--","--","--",35.353533333333331,"--","--","--",60.300000000000004,"--","--",58.566666666666663,"--","--",53.366666666666667,57.633333333333333,82.899999999999991,58.733333333333327,75.166666666666657,"--","--","--","--",9.9689999999999994,42.911000000000001,60.357999999999997,23.231999999999999,46.203000000000003,"--",null,"--","--",null,null,null,null,null,46.817066666666669,"--","--",247.81,1270.3333333333333,1059.6666666666667,"--","--",6.5225554314284864,9.2058887647618199,"--","--","--","--","--","--",492.66666666666669,613.0333333333333,59.433333333333337,828,2871,255.26666666666665,99.299733333333336,196183,"--",95.7,"--",null,null,null,null,null,32.336666666666666,33.4,null,null,null,null,null,56.733333333333341,38.56666666666667,59.033333333333331,"--",3.8333333333333335,17625,null,348,null,63752.333333333336,null,913.66666666667152,null,"--","--","--","--","--","--","--","--","--","--",null,null,null,null,null,28.555076468473715,29.848579977718487,29.427631082352931,null,null,null,null,null,33.233333333333334,"--",34.466666666666669,null,null,null,null,null,5.5066666666666668,4.9133333333333331,5.0033333333333339,5.4899999999999993,48.666666666666544,"--",4.5866666666666669,4.9333333333333336,"--",4.8966666666666656,4.78,-0.15333333333333332,null,null,null,null,null,"--","--","--","--","--","--","--","--","--",null,null,null,null,null,2.92,"--","--","--","--","--","--","--","--"]
["66'Q3",820.798,4249.152,4217.1350000000002,2523.8000000000002,132.04481499175506,817.37950491178356,1574.3756800964616,322.86487865827729,231.60096320253103,230.3,44.456000000000003,192.32300000000001,143.61600000000001,-48.706999999999994,1349.1010000000001,-7.82,null,null,null,null,null,"--","--",77.088266666666655,"--",56.680999999999997,60.956000000000003,"--","--","--","--","--","--","--","--","--","--",35.900533333333335,"--","--","--",59.166666666666664,"--","--",57.266666666666673,"--","--",56.566666666666663,54.933333333333337,77.633333333333326,58.300000000000004,73.266666666666666,"--","--","--","--",10.112,42.975999999999999,60.697000000000003,23.529,45.750999999999998,"--",null,"--","--",null,null,null,null,null,47.519399999999997,"--","--",254.28,1083.6666666666667,861,"--","--",7.0383750092672059,9.6750416759338744,"--","--","--","--","--","--",390,626.23333333333335,61.066666666666663,728,2905.8666666666663,253.53333333333333,100.4402,196768.66666666666,"--",91.2,"--",null,null,null,null,null,32.616666666666667,33.700000000000003,null,null,null,null,null,57,38.366666666666667,59.233333333333327,"--",3.7666666666666671,17842.666666666668,null,217.66666666666788,null,64484,null,731.66666666666424,null,"--","--","--","--","--","--","--","--","--","--",null,null,null,null,null,28.635276689149194,30.053687808912642,29.696659086710113,null,null,null,null,null,33.566666666666663,"--",34.800000000000004,null,null,null,null,null,5.876666666666666,5.41,5.3199999999999994,5.8666666666666671,54.666666666666771,"--",5.043333333333333,5.5100000000000007,"--",5.3900000000000006,5.14,-0.37000000000000099,null,null,null,null,null,"--","--","--","--","--","--","--","--","--",null,null,null,null,null,2.936666666666667,"--","--","--","--","--","--","--","--"]
["66'Q4",834.86400000000003,4285.5820000000003,4231.2520000000004,2534.1999999999998,131.9936506958035,815.11734437873679,1587.0890049254597,322.86487865827729,230.43529521486039,206.1,61.182000000000002,194.489,148.34899999999999,-46.140000000000015,1372.3820000000001,-10.313000000000001,null,null,null,null,null,"--","--",78.453000000000003,"--",55.685000000000002,62.645000000000003,"--","--","--","--","--","--","--","--","--","--",36.243600000000001,"--","--","--",54.433333333333337,"--","--",54.4,"--","--",55.833333333333336,49.066666666666663,69.933333333333323,55.1,63.06666666666667,"--","--","--","--",10.249000000000001,43.27,61.02,23.686,44.741999999999997,"--",null,"--","--",null,null,null,null,null,47.679066666666664,"--","--",259.75,931.33333333333337,739.33333333333337,"--","--",7.2700073192116648,9.8600073192116664,"--","--","--","--","--","--",379.33333333333331,639.83333333333337,65.933333333333337,647.33333333333337,2939.6666666666665,252.63333333333333,101.3929,197392.33333333334,"--",88.3,"--",null,null,null,null,null,32.883333333333333,34.033333333333331,null,null,null,null,null,57.233333333333327,38.299999999999997,59.466666666666669,"--",3.7000000000000006,17978.333333333332,null,135.66666666666424,null,65024.333333333336,null,540.33333333333576,null,"--","--","--","--","--","--","--","--","--","--",null,null,null,null,null,28.44959968148207,30.095254283744225,29.888416963516249,null,null,null,null,null,33.333333333333329,"--",35.166666666666664,null,null,null,null,null,6,5.5633333333333326,5.3833333333333329,6.1366666666666667,75.333333333333385,"--",5.21,5.44,"--",5.21,5.003333333333333,-0.43666666666666742,null,null,null,null,null,"--","--","--","--","--","--","--","--","--",null,null,null,null,null,2.97,"--","--","--","--","--","--","--","--"]
["67'Q1",846.04600000000005,4324.9260000000004,4276.6660000000002,2549,129.49683305336796,824.27474422885837,1595.2284227177738,317.62155041537,224.81509687067611,199.7,57.259,197.52500000000001,151.16200000000001,-46.363,1429.8489999999999,-19.263000000000002,null,null,null,null,null,"--","--",79.651699999999991,"--",53.302999999999997,60.844999999999999,"--","--","--","--","--","--","--","--","--","--",36.043900000000001,"--","--","--",47.333333333333336,"--","--",47.4,"--","--",46.366666666666667,45.533333333333339,62.9,51.066666666666663,45.366666666666667,"--","--","--","--",10.387,43.634999999999998,61.688000000000002,23.805,42.680999999999997,"--",null,"--","--",null,null,null,null,null,48.032066666666672,"--","--",267.19,1082,952.33333333333337,"--","--",6.7051650349883696,9.388498368321704,"--","--","--","--","--","--",421,650.66666666666663,71.566666666666663,749.66666666666663,2983.5333333333333,253.16666666666666,102.43113333333334,197888.33333333334,"--",94.1,"--",null,null,null,null,null,32.966666666666669,34.233333333333334,null,null,null,null,null,57.033333333333331,38.033333333333331,59.300000000000004,"--",3.8333333333333335,17983.666666666668,null,5.3333333333357587,null,65455,null,430.66666666666424,null,"--","--","--","--","--","--","--","--","--","--",null,null,null,null,null,28.519967053641267,30.254950544793118,30.116973042923561,null,null,null,null,null,33.366666666666667,"--",35.466666666666669,null,null,null,null,null,5.8066666666666675,4.8233333333333341,5.12,5.88,75.999999999999972,"--",4.5133333333333328,4.6033333333333335,"--",4.66,4.583333333333333,-2.0000000000000462E-2,null,null,null,null,null,"--","--","--","--","--","--","--","--","--",null,null,null,null,null,2.99,"--","--","--","--","--","--","--","--"]
["67'Q2",851.05799999999999,4328.72,4323.1409999999996,2583.8000000000002,135.0635084528964,830.40867952038866,1618.3278120267153,316.87017004411229,223.55538008374248,222.2,25.154,195.95599999999999,149.82,-46.135999999999996,1424.221,-20.471,null,null,null,null,null,"--","--",81.826700000000002,"--",53.414000000000001,59.965000000000003,"--","--","--","--","--","--","--","--","--","--",35.896999999999998,"--","--","--",44.699999999999996,"--","--",44.366666666666667,"--","--",39.566666666666663,48.6,56.933333333333337,47.666666666666664,35.93333333333333,"--","--","--","--",10.555999999999999,43.814,62.311999999999998,24.093,42.884999999999998,"--",null,"--","--",null,null,null,null,null,48.668866666666666,"--","--",273.47000000000003,1214.3333333333333,1093.3333333333333,"--","--",6.3999750776085662,9.0833084109418998,"--","--","--","--","--","--",493.66666666666669,657.66666666666663,69.166666666666671,822,3006.7666666666664,256.7,103.25943333333333,198368.66666666666,"--",95.9,"--",null,null,null,null,null,33.166666666666664,34.5,null,null,null,null,null,56.6,37.799999999999997,59.43333333333333,"--",3.8333333333333335,17840.666666666668,null,-143,null,65612,null,157,null,"--","--","--","--","--","--","--","--","--","--",null,null,null,null,null,28.753878325167619,30.47545369425228,30.269192232235426,null,null,null,null,null,33.300000000000004,"--",35.666666666666671,null,null,null,null,null,5.5,3.99,5.2633333333333345,5.9799999999999995,71.666666666666501,"--",3.66,4.246666666666667,"--",4.7566666666666668,4.8199999999999994,0.57333333333333236,null,null,null,null,null,"--","--","--","--","--","--","--","--","--",null,null,null,null,null,3,"--","--","--","--","--","--","--","--"]
["67'Q3",866.61400000000003,4366.0879999999997,4348.1660000000002,2596.9,133.97882537872357,829.62562395125713,1633.2955506700191,316.3148019436174,222.35144483221279,233.3,33.895000000000003,198.529,146.197,-52.331999999999994,1440.1590000000001,-18.805,null,null,null,null,null,"--","--",83.661299999999997,"--",54.661999999999999,60.73,"--","--","--","--","--","--","--","--","--","--",36.143899999999995,"--","--","--",52.199999999999996,"--","--",51.566666666666663,"--","--",42.2,57.033333333333331,68.866666666666674,55.733333333333327,44.066666666666663,"--","--","--","--",10.699,43.993000000000002,62.529000000000003,24.32,43.497,"--",null,"--","--",null,null,null,null,null,49.774366666666673,"--","--",281.47000000000003,1397.3333333333333,1228.3333333333333,"--","--",6.5087899356202472,9.1687899356202482,"--","--","--","--","--","--",516.66666666666663,671.56666666666672,73.166666666666671,896.66666666666663,3035.1333333333332,260.76666666666665,104.64803333333333,198912,"--",97,"--",null,null,null,null,null,33.5,34.866666666666667,null,null,null,null,null,56.933333333333337,37.799999999999997,59.666666666666664,"--",3.7999999999999994,17827.666666666668,null,-13,null,66064.333333333328,null,452.33333333332848,null,"--",{"$error":"#DIV/0!"},"--","--","--","--","--","--","--","--",null,null,null,null,null,29.090339671697052,30.722522954043228,30.490385873075482,null,null,null,null,null,33.433333333333337,"--",35.866666666666667,null,null,null,null,null,5.5,3.8933333333333331,5.6166666666666671,6.330000000000001,71.333333333333385,"--",4.3,5.1266666666666669,"--",5.3133333333333335,5.246666666666667,0.12000000000000011,null,null,null,null,null,"--","--","--","--","--","--","--","--","--",null,null,null,null,null,3.0466666666666669,"--","--","--","--","--","--","--","--"]
["67'Q4",883.20100000000002,4401.2330000000002,4388.277,2612.6999999999998,134.31650973200377,833.38864099180591,1644.9948492761901,322.68520074341143,227.41594490897734,246.8,32.975000000000001,208.999,150.36500000000001,-58.633999999999986,1451.4349999999999,-19.425999999999998,null,null,null,null,null,"--","--",84.946633333333338,"--",57.439,62.326000000000001,"--","--","--","--","--","--","--","--","--","--",37.1111,"--","--","--",54.633333333333333,"--","--",51.800000000000004,"--","--",48.733333333333327,57.4,80.7,58.333333333333336,50.800000000000004,"--","--","--","--",10.843999999999999,44.151000000000003,62.691000000000003,24.562000000000001,46.158000000000001,"--",null,"--","--",null,null,null,null,null,50.880533333333325,"--","--",288.20999999999998,1445.6666666666667,1297.3333333333333,"--","--",6.8901297481070394,9.6201297481070398,"--","--","--","--","--","--",522.66666666666663,683.06666666666661,75.033333333333331,890.33333333333337,3057.1,263.23333333333335,106.19330000000001,199488.66666666666,"--",92.9,"--",null,null,null,null,null,33.866666666666667,35.233333333333341,null,null,null,null,null,57.4,37.799999999999997,59.866666666666667,"--",3.9,17936.666666666668,null,109,null,66609.333333333328,null,545,null,"--",4.75,"--","--","--","--","--","--","--","--",null,null,null,null,null,29.567843037169979,31.021042500137781,30.727210382858104,null,null,null,null,null,33.5,"--",36.233333333333341,null,null,null,null,null,5.7266666666666666,4.1733333333333329,6.0266666666666673,6.7233333333333327,69.666666666666544,"--",4.753333333333333,5.5633333333333335,"--",5.7,5.6433333333333335,8.0000000000000071E-2,null,null,null,null,null,"--","--","--","--","--","--","--","--","--",null,null,null,null,null,3.07,"--","--","--","--","--","--","--","--"]
["68'Q1",911.13499999999999,4490.6090000000004,4478.9970000000003,2674.8,142.66652283129642,849.78930485639376,1682.3441723123101,332.19179587541169,235.57281921314848,248.4,30.126000000000001,221.31299999999999,154.745,-66.567999999999984,1477.2360000000001,-16.945,null,null,null,null,null,"--","--",86.754333333333349,"--",56.548000000000002,59.395000000000003,"--","--","--","--","--","--","--","--","--","--",37.64083333333334,"--","--","--",55.133333333333326,"--","--",51.199999999999996,"--","--",53.066666666666663,57.466666666666669,76.8,57.733333333333327,52.833333333333336,"--","--","--","--",11.135999999999999,45.136000000000003,63.749000000000002,24.672000000000001,44.642000000000003,"--",null,"--","--",null,null,null,null,null,52.035166666666669,"--","--",296.93,1455.3333333333333,1297,"--","--",7.4743913297104809,10.087724663043813,"--","--","--","--","--","--",509,702.63333333333321,73.666666666666671,914.66666666666663,3109.4,263.66666666666669,107.79663333333333,199928,1.3628,97.2,"--",null,null,null,null,null,34.200000000000003,35.666666666666664,null,null,null,null,null,57.633333333333326,37.700000000000003,59.466666666666669,"--",3.7333333333333329,18053.666666666668,null,117,null,67105,null,495.66666666667152,null,"--",4.5666666666666664,"--","--","--","--","--","--","--","--",null,null,null,null,null,30.197177880572141,31.699371186640107,31.400650417496195,null,null,null,null,null,33.966666666666669,"--",36.566666666666663,null,null,null,null,null,6,4.7866666666666662,6.126666666666666,6.830000000000001,70.333333333333485,"--",5.05,5.4733333333333336,"--",5.63,5.6099999999999994,0.13666666666666583,null,null,null,null,null,"--","--","--","--","--","--","--","--","--",null,null,null,null,null,3.07,"--","--","--","--","--","--","--","--"]
["68'Q2",936.29700000000003,4566.442,4524.7730000000001,2715.7,145.70568201081838,860.23004577814743,1709.764272211034,328.10820690118476,230.27097572549133,254.8,52.768000000000001,224.68799999999999,157.81399999999999,-66.873999999999995,1485.0119999999999,-18.619,null,null,null,null,null,"--","--",89.107700000000008,"--",58.094000000000001,62.616999999999997,"--","--","--","--","--","--","--","--","--","--",38.148266666666665,"--","--","--",55.6,"--","--",53.066666666666663,"--","--",54.633333333333333,58.333333333333336,70.36666666666666,58.333333333333336,49.433333333333337,"--","--","--","--",11.317,45.567999999999998,64.16,24.835000000000001,45.713000000000001,"--",null,"--","--",null,null,null,null,null,53.339300000000001,"--","--",302.54000000000002,1455.6666666666667,1294.3333333333333,"--","--",7.6871013006964679,10.183767967363135,"--","--","--","--","--","--",461,722.63333333333321,76.36666666666666,858,3161.2999999999997,264.56666666666666,110.34750000000001,200368.33333333334,1.5435333333333332,92.4,"--",null,null,null,null,null,34.533333333333339,36.033333333333339,null,null,null,null,null,58.133333333333333,37.700000000000003,59.800000000000004,"--",3.5666666666666664,18183,null,129.33333333333212,null,67704,null,599,null,"--",4.4666666666666668,"--","--","--","--","--","--","--","--",null,null,null,null,null,30.673373956940694,32.207607332130749,31.906356672547048,null,null,null,null,null,34.166666666666671,"--",36.93333333333333,null,null,null,null,null,6.3999999999999995,5.98,6.2533333333333339,7.0233333333333334,76.999999999999957,"--",5.52,5.9433333333333325,"--",5.8599999999999994,5.7433333333333332,-0.19999999999999929,null,null,null,null,null,"--","--","--","--","--","--","--","--","--",null,null,null,null,null,3.07,"--","--","--","--","--","--","--","--"]
["68'Q3",952.34699999999998,4599.3320000000003,4590.1509999999998,2766.6,152.26494475180684,873.93351823794887,1740.4015370102441,332.6164891287313,233.9904600666442,259.39999999999998,28.805,238.19200000000001,167.125,-71.067000000000007,1489.654,-10.089,null,null,null,null,null,"--","--",91.373033333333339,"--",58.475999999999999,62.978000000000002,"--","--","--","--","--","--","--","--","--","--",38.444299999999998,"--","--","--",52.866666666666674,"--","--",48.266666666666673,"--","--",50.800000000000004,54.566666666666663,71.266666666666666,56.533333333333331,50.699999999999996,"--","--","--","--",11.502000000000001,45.552999999999997,64.34,25.25,45.845999999999997,"--",null,"--","--",null,null,null,null,null,54.985700000000001,"--","--",309.55,1521,1388.3333333333333,"--","--",8.0109718728853583,10.484305206218691,"--","--","--","--","--","--",500.33333333333331,740.96666666666658,67.866666666666674,911.66666666666663,3168.9333333333329,265.4666666666667,112.90763333333332,200899.66666666666,1.764833333333333,92.4,"--",null,null,null,null,null,35,36.533333333333339,null,null,null,null,null,58.633333333333326,37.700000000000003,59.633333333333333,"--",3.5333333333333332,18257,null,74,null,68313.333333333328,null,609.33333333332848,null,"--",4.4333333333333327,"--","--","--","--","--","--","--","--",null,null,null,null,null,30.90864227326071,32.572895092958888,32.302750999633474,null,null,null,null,null,34.300000000000004,"--",37.200000000000003,null,null,null,null,null,6.4833333333333334,5.9433333333333342,6.0766666666666671,6.8633333333333333,78.666666666666615,"--",5.1966666666666663,5.5100000000000007,"--",5.5266666666666664,5.46,-5.0000000000000711E-2,null,null,null,null,null,"--","--","--","--","--","--","--","--","--",null,null,null,null,null,3.07,"--","--","--","--","--","--","--","--"]
["68'Q4",970.12900000000002,4619.8029999999999,4619.5640000000003,2779.2,151.36445314305959,874.12928213023179,1753.7062647267085,341.68205665151504,240.56693203680794,262.7,23.933,236.185,165.017,-71.168000000000006,1490.99,-9.2959999999999994,null,null,null,null,null,"--","--",94.49633333333334,"--",59.994999999999997,63.485999999999997,"--","--","--","--","--","--","--","--","--","--",39.028099999999995,"--","--","--",56.666666666666664,"--","--",53.933333333333337,"--","--",44.699999999999996,58.833333333333336,72.366666666666674,60.5,57.533333333333331,"--","--","--","--",11.731,45.473999999999997,64.817999999999998,25.797000000000001,47.192999999999998,"--",null,"--","--",null,null,null,null,null,57.094066666666663,"--","--",317.13,1582.3333333333333,1415.3333333333333,"--","--",8.0261451982384298,10.406145198238429,"--","--","--","--","--","--",494,756.69999999999993,70.36666666666666,917,3190.6,267.66666666666663,116.27449999999999,201459,1.9979333333333333,91.7,"--",null,null,null,null,null,35.43333333333333,37.06666666666667,null,null,null,null,null,59.066666666666663,37.56666666666667,59.6,"--",3.4,18349.666666666668,null,92.666666666667879,null,68983.666666666672,null,670.33333333334303,null,"--",4.5333333333333332,"--","--","--","--","--","--","--","--",null,null,null,null,null,31.088023217637655,32.751652321350448,32.469835375679352,null,null,null,null,null,34.5,"--",37.466666666666669,null,null,null,null,null,6.3666666666666671,5.916666666666667,6.2433333333333332,7.0266666666666664,78.333333333333314,"--",5.5866666666666669,5.8366666666666669,"--",5.7766666666666673,5.7700000000000005,-6.666666666666643E-2,null,null,null,null,null,"--","--","--","--","--","--","--","--","--",null,null,null,null,null,3.07,"--","--","--","--","--","--","--","--"]
["69'Q1",995.41899999999998,4691.6369999999997,4667.1779999999999,2810.3,154.21942085715597,883.83047057002784,1772.2501085728163,350.42093705636069,247.86844740422515,272.2,40.124000000000002,213.90700000000001,145.249,-68.658000000000015,1494.713,2.2389999999999999,null,null,null,null,null,"--","--",98.227566666666675,"--",59.234000000000002,62.015999999999998,"--","--","--","--","--","--","--","--","--","--",39.787333333333329,"--","--","--",56.333333333333336,"--","--",53.933333333333337,"--","--",46.033333333333331,57.199999999999996,78.7,58.333333333333336,61.4,"--","--","--","--",11.891,45.823,64.906999999999996,25.95,45.749000000000002,"--",null,"--","--",null,null,null,null,null,58.803733333333334,"--","--",324.89,1678.3333333333333,1464,"--","--",8.2727526985383601,10.652752698538359,"--","--","--","--","--","--",492.66666666666669,771.33333333333337,65.533333333333346,893,3197.0666666666671,268.59999999999997,119.36883333333333,201888,2.2204999999999999,98.2,"--",null,null,null,null,null,35.866666666666667,37.56666666666667,null,null,null,null,null,59.733333333333341,37.6,59.833333333333336,"--",3.4,18497.333333333332,null,147.66666666666424,null,69681,null,697.33333333332848,null,"--",4.4333333333333336,"--","--","--","--","--","--","--","--",null,null,null,null,null,31.678099779632447,33.2766189925443,32.873543329095895,null,null,null,null,null,35,"--",37.700000000000003,null,null,null,null,null,7.0633333333333326,6.5666666666666664,6.7,7.3766666666666678,67.666666666666771,"--",6.0933333333333337,6.3633333333333333,"--",6.333333333333333,6.1766666666666667,-0.18666666666666654,null,null,null,null,null,"--","--","--","--","--","--","--","--","--",null,null,null,null,null,3.1300000000000003,"--","--","--","--","--","--","--","--"]
["69'Q2",1011.361,4706.6840000000002,4691.1580000000004,2828.2,153.79987363035326,885.78810949285662,1788.6120168767898,354.24317633623707,249.99915343883515,269.3,33.53,256.10899999999998,177.816,-78.292999999999978,1490.0219999999999,-1.4930000000000001,null,null,null,null,null,"--","--",101.75243333333333,"--",57.375,59.904000000000003,"--","--","--","--","--","--","--","--","--","--",39.960966666666671,"--","--","--",55.800000000000004,"--","--",52.866666666666667,"--","--",49.233333333333327,54.9,79.666666666666671,56.1,65.266666666666666,"--","--","--","--",12.083,45.454999999999998,64.932000000000002,26.582999999999998,44.048000000000002,"--",null,"--","--",null,null,null,null,null,60.430833333333332,"--","--",330.04,1545,1372.6666666666667,"--","--",8.9353355045105403,11.338668837843874,"--","--","--","--","--","--",452.66666666666669,790.43333333333339,69.5,842,3232.2333333333336,267.7,122.48973333333333,202333,2.5867666666666671,91.5,"--",null,null,null,null,null,36.43333333333333,38.166666666666664,null,null,null,null,null,60.300000000000004,37.6,59.966666666666669,"--",3.4333333333333336,18594,null,96.666666666667879,null,70345.333333333328,null,664.33333333332848,null,"--",4.2,"--","--","--","--","--","--","--","--",null,null,null,null,null,31.78372145994102,33.374817044005979,33.095460662842257,null,null,null,null,null,35.5,"--",38,null,null,null,null,null,7.7433333333333332,8.3266666666666662,6.8866666666666667,7.586666666666666,69.999999999999929,"--",6.1966666666666663,6.5733333333333333,"--",6.53,6.3533333333333344,-0.21999999999999886,null,null,null,null,null,"--","--","--","--","--","--","--","--","--",null,null,null,null,null,3.35,"--","--","--","--","--","--","--","--"]
["69'Q3",1032.0160000000001,4736.143,4715.3530000000001,2842,153.35986068516996,889.09434411807854,1799.5457951967514,362.29601379341256,256.61462585858214,267.2,38.746000000000002,252.791,173.55199999999999,-79.239000000000004,1493.4659999999999,-8.6300000000000008,null,null,null,null,null,"--","--",103.39333333333333,"--",55.561999999999998,58.277999999999999,"--","--","--","--","--","--","--","--","--","--",40.440633333333331,"--","--","--",54,"--","--",51.5,"--","--",49.866666666666667,50.566666666666663,82.833333333333329,53.366666666666674,68.3,"--","--","--","--",12.3,45.481999999999999,65.198999999999998,27.042999999999999,42.000999999999998,"--",null,"--","--",null,null,null,null,null,61.368599999999994,"--","--",337.15,1411,1286,"--","--",9.0902344003585593,11.586901067025225,"--","--","--","--","--","--",418,812,81.86666666666666,787,3300.6333333333332,265,124.64393333333334,202881.33333333334,3.0066333333333333,86.4,"--",null,null,null,null,null,36.93333333333333,38.699999999999996,null,null,null,null,null,60.6,37.5,60.233333333333327,"--",3.5666666666666664,18676.333333333332,null,82.333333333332121,null,70884,null,538.66666666667152,null,"--",4.5,"--","--","--","--","--","--","--","--",null,null,null,null,null,31.926386805962338,33.501260432069756,33.235739306784581,null,null,null,null,null,35.766666666666666,"--",38.4,null,null,null,null,null,8.5,8.9833333333333325,7.0633333333333335,7.916666666666667,85.333333333333343,"--",7.0233333333333334,7.6533333333333333,"--",7.2033333333333331,6.8566666666666665,-0.79666666666666686,null,null,null,null,null,"--","--","--","--","--","--","--","--","--",null,null,null,null,null,3.35,"--","--","--","--","--","--","--","--"]
["69'Q4",1040.741,4715.4690000000001,4717.0410000000002,2864.7,152.77658771132232,895.05426706091293,1816.8691452277644,360.40122850937126,252.7040237537571,247.7,20.984999999999999,250.01400000000001,179.52699999999999,-70.487000000000023,1473.931,-12.548,null,null,null,null,null,"--","--",105.37349999999999,"--",54.530999999999999,53.56,"--","--","--","--","--","--","--","--","--","--",40.187133333333328,"--","--","--",53.266666666666673,"--","--",50.43333333333333,"--","--",53.766666666666673,50.166666666666664,83.100000000000009,51.566666666666663,65.899999999999991,"--","--","--","--",12.538,45.290999999999997,65.457999999999998,27.681999999999999,40.511000000000003,"--",null,"--","--",null,null,null,null,null,62.247599999999998,"--","--",345.86,1312.3333333333333,1187.3333333333333,"--","--",9.3989340579761027,11.895600724642769,"--","--","--","--","--","--",431.33333333333331,827.26666666666654,83.233333333333334,739.66666666666663,3326.4333333333329,263.5,126.5817,203492.33333333334,3.4652333333333338,79.7,"--",null,null,null,null,null,37.5,39.233333333333341,null,null,null,null,null,60.70000000000001,37.466666666666669,60.266666666666673,"--",3.5666666666666664,18521.666666666668,null,-154.66666666666424,null,71149,null,265,null,"--",4.6333333333333337,"--","--","--","--","--","--","--","--",null,null,null,null,null,31.285680671070125,33.289883773568619,33.228061556002075,null,null,null,null,null,36.1,"--",38.966666666666669,null,null,null,null,null,8.5,8.94,7.4666666666666659,8.3733333333333331,90.666666666666714,"--",7.3533333333333344,7.8999999999999995,"--",7.666666666666667,7.2966666666666669,-0.60333333333333261,null,null,null,null,null,"--","--","--","--","--","--","--","--","--",null,null,null,null,null,3.35,"--","--","--","--","--","--","--","--"]
["70'Q1",1053.528,4707.1120000000001,4728.1319999999996,2882.4,150.43326295674143,902.73256194711928,1829.2341750961391,357.86940334535058,249.09417481166508,248.2,3.82,249.19499999999999,180.929,-68.265999999999991,1466.9459999999999,-22.248999999999999,null,null,null,null,null,"--","--",105.80200000000001,"--",51.930999999999997,50.195,"--","--","--","--","--","--","--","--","--","--",39.213533333333338,"--","--","--",47.666666666666664,"--","--",44.79999999999999,"--","--",50.06666666666667,45.6,74.3,47.1,54.966666666666661,"--","--","--","--",12.763999999999999,45.411000000000001,65.59,28.108000000000001,37.491,"--",null,"--","--",null,null,null,null,null,63.018933333333337,"--","--",352.72,1236.3333333333333,1104,"--","--",10.39374293902191,13.310409605688577,"--","--","--","--","--","--",407.66666666666669,841.76666666666677,87.266666666666666,687.33333333333337,3359.0333333333333,258.36666666666662,128.09139999999999,204004.33333333334,3.8012999999999999,78.099999999999994,"--",null,null,null,null,null,38.1,39.833333333333336,null,null,null,null,null,60.366666666666667,37.266666666666666,60.466666666666669,"--",4.166666666666667,18381.666666666668,null,-140,null,71310.666666666672,null,161.66666666667152,null,"--",4.5666666666666664,"--","--","--","--","--","--","--","--",null,null,null,null,null,31.081128084878813,33.269913170409353,33.283160005558031,null,null,null,null,null,36.633333333333333,"--",39.43333333333333,null,null,null,null,null,8.4633333333333329,8.5733333333333324,7.8933333333333335,8.7566666666666677,86.333333333333414,"--",7.21,7.5533333333333337,"--",7.7333333333333334,7.3666666666666671,-0.18666666666666654,null,null,null,null,null,"--","--","--","--","--","--","--","--","--",null,null,null,null,null,3.35,"--","--","--","--","--","--","--","--"]
["70'Q2",1070.1099999999999,4715.4409999999998,4719.4560000000001,2895.7,152.17284901909406,902.16702181385756,1841.3601291670484,355.53359045209277,243.35776658595461,231.6,17.783000000000001,254.12,188.88200000000001,-65.238,1450.1510000000001,-32.607999999999997,null,null,null,null,null,"--","--",106.17473333333334,"--",51.698,53.817999999999998,"--","--","--","--","--","--","--","--","--","--",38.997799999999998,"--","--","--",47.766666666666673,"--","--",40.966666666666669,"--","--",43.333333333333336,48.066666666666663,75.733333333333334,46.800000000000004,60.666666666666664,"--","--","--","--",12.967000000000001,46.103000000000002,65.715000000000003,28.126999999999999,36.966000000000001,"--",null,"--","--",null,null,null,null,null,63.383033333333337,"--","--",357.37,1313,1291.3333333333333,"--","--",10.805163688770248,14.141830355436914,"--","--","--","--","--","--",465.33333333333331,859.63333333333321,93.966666666666654,758.33333333333337,3398.6666666666665,250.63333333333333,128.69803333333331,204612.66666666666,4.1505000000000001,75.400000000000006,"--",null,null,null,null,null,38.633333333333333,40.56666666666667,null,null,null,null,null,59.533333333333331,36.966666666666669,60.366666666666674,"--",4.7666666666666666,18055.333333333332,null,-326.33333333333576,null,71166.666666666672,null,-144,null,"--",4.5666666666666673,"--","--","--","--","--","--","--","--",null,null,null,null,null,30.797058501253289,33.205721722421785,33.355811230141725,null,null,null,null,null,36.833333333333336,"--",39.800000000000004,null,null,null,null,null,8,7.88,8.14,8.9766666666666666,83.6666666666666,"--",6.6766666666666667,7.4533333333333331,"--",7.7733333333333334,7.7133333333333338,0.26000000000000068,null,null,null,null,null,"--","--","--","--","--","--","--","--","--",null,null,null,null,null,3.35,"--","--","--","--","--","--","--","--"]
["70'Q3",1088.461,4757.2129999999997,4761.5450000000001,2921.1,152.72542341537078,908.64898180277964,1859.7255947818496,356.77500150025782,244.28365847956218,243.9,17.873000000000001,253.53700000000001,188.31700000000001,-65.22,1456.479,-39.509,null,null,null,null,null,"--","--",108.5822,"--",52.552,52.658999999999999,"--","--","--","--","--","--","--","--","--","--",38.858200000000004,"--","--","--",46.966666666666669,"--","--",40.06666666666667,"--","--",45.466666666666661,49.5,70.533333333333331,49.766666666666673,47.466666666666669,"--","--","--","--",13.18,46.811,66.108999999999995,28.155999999999999,36.953000000000003,"--",null,"--","--",null,null,null,null,null,64.283299999999997,"--","--",361.5,1483.3333333333333,1381.3333333333333,"--","--",10.852652002730039,14.469318669396705,"--","--","--","--","--","--",520,874,100.96666666666665,839,3451.7666666666664,253.16666666666666,130.29743333333332,205295.66666666666,4.5506666666666664,77.599999999999994,"--",null,null,null,null,null,39.033333333333339,41.1,null,null,null,null,null,59.266666666666673,36.93333333333333,60.29999999999999,"--",5.166666666666667,17782.666666666668,null,-272.66666666666424,null,70978,null,-188.66666666667152,null,"--",5.2333333333333334,"--","--","--","--","--","--","--","--",null,null,null,null,null,31.18237175385336,33.546477575171025,33.65363911419297,null,null,null,null,null,37.033333333333331,"--",40.166666666666664,null,null,null,null,null,7.9433333333333325,6.7033333333333331,8.2200000000000006,9.41,118.99999999999994,"--",6.3266666666666671,6.9366666666666674,"--",7.4833333333333334,7.46,0.52333333333333254,null,null,null,null,null,"--","--","--","--","--","--","--","--","--",null,null,null,null,null,3.31,"--","--","--","--","--","--","--","--"]
["70'Q4",1091.462,4708.2809999999999,4752.8090000000002,2913.2,142.58465995777394,919.2419835296422,1851.3733565125835,344.54056893347399,230.18240424831336,269.5,-14.853,257.46899999999999,190.05500000000001,-67.413999999999987,1457.2429999999999,-44.68,null,null,null,null,null,"--","--",110.4354,"--",49.841999999999999,49.274000000000001,"--","--","--","--","--","--","--","--","--","--",38.018166666666666,"--","--","--",42.5,"--","--",37.6,"--","--",45.466666666666669,46.4,66.8,43.133333333333326,38.1,"--","--","--","--",13.311,46.41,65.81,28.681000000000001,34.134999999999998,"--",null,"--","--",null,null,null,null,null,64.960366666666673,"--","--",368.39,1706.6666666666667,1611,"--","--",11.433439528946598,15.516772862279931,"--","--","--","--","--","--",565.66666666666663,882.93333333333339,102.03333333333335,972.33333333333337,3442.9666666666667,258.93333333333334,131.15736666666666,206016.66666666666,4.9041333333333332,72.400000000000006,"--",null,null,null,null,null,39.6,41.766666666666666,null,null,null,null,null,58.333333333333336,36.766666666666666,60.4,"--",5.833333333333333,17168.666666666668,null,-614,null,70572.666666666672,null,-405.33333333332848,null,"--",5.5666666666666673,"--","--","--","--","--","--","--","--",null,null,null,null,null,31.08456282968254,33.422743026647225,33.499334486539738,null,null,null,null,null,37.1,"--",40.966666666666669,null,null,null,null,null,7.2333333333333343,5.5666666666666673,7.9066666666666663,9.2766666666666655,136.99999999999991,"--",5.3533333333333344,5.6466666666666656,"--",6.5133333333333328,6.8533333333333326,1.206666666666667,null,null,null,null,null,"--","--","--","--","--","--","--","--","--",null,null,null,null,null,3.3933333333333331,"--","--","--","--","--","--","--","--"]
["71'Q1",1137.8119999999999,4834.3490000000002,4810.3469999999998,2968.9,157.87255158809648,923.00500057019087,1888.0224478417126,347.38274685953587,230.66695293615419,283.60000000000002,42.097000000000001,254.434,190.76900000000001,-63.664999999999992,1436.079,-45.502000000000002,null,null,null,null,null,"--","--",111.81023333333333,"--",56.712000000000003,58.798000000000002,"--","--","--","--","--","--","--","--","--","--",38.751133333333335,"--","--","--",51.29999999999999,"--","--",44,"--","--",48.866666666666674,58.133333333333326,65.566666666666663,54.966666666666669,43,"--","--","--","--",13.585000000000001,47.759,66.605000000000004,28.446000000000002,40.368000000000002,"--",null,"--","--",null,null,null,null,null,65.991200000000006,"--","--",371.07,1826.3333333333333,1663.3333333333333,"--","--",10.746698867116768,14.900032200450104,"--","--","--","--","--","--",639,903,105.86666666666667,1030.3333333333333,3512.0333333333328,266.40000000000003,134.94443333333334,206663,7.2331666666666665,78.099999999999994,"--",null,null,null,null,null,39.93333333333333,42.166666666666671,null,null,null,null,null,58.533333333333331,36.733333333333334,60.166666666666664,"--",5.9333333333333336,17216.666666666668,null,48,null,70843.666666666672,null,271,null,"--",6.3,"--","--","--","--","--","--","--","--",null,null,null,null,null,32.144778652218847,34.274904025391351,34.196745618548192,null,null,null,null,null,37.6,"--",41.4,null,null,null,null,null,5.87,3.8566666666666669,7.2166666666666677,8.5300000000000011,131.33333333333334,"--",3.84,4.05,"--",5.4833333333333334,6.0166666666666666,1.9666666666666668,null,null,null,null,null,1.0085666666666668,"--","--","--","--","--","--","--","--",null,null,null,null,null,3.56,"--","--","--","--","--","--","--","--"]
["71'Q2",1159.355,4861.9380000000001,4843.5680000000002,2996.2,161.46428516389514,925.11490029812853,1909.6208145379762,352.1033757137422,232.73196223950188,312.10000000000002,35.825000000000003,273.62700000000001,190.434,-83.193000000000012,1432.809,-52.406999999999996,null,null,null,null,null,"--","--",113.11253333333332,"--",59.167999999999999,60.17,"--","--","--","--","--","--","--","--","--","--",39.102133333333335,"--","--","--",54.166666666666664,"--","--",46.866666666666667,"--","--",56.533333333333331,58.166666666666664,73.499999999999986,57.466666666666669,48.733333333333327,"--","--","--","--",13.785,47.92,66.97,28.766999999999999,41.856000000000002,"--",null,"--","--",null,null,null,null,null,67.921733333333336,"--","--",373.11,2020.3333333333333,1873.3333333333333,"--","--",10.213810844177813,14.343810844177815,"--","--","--","--","--","--",642,926.36666666666679,112.36666666666667,1148,3563.2666666666664,275.5,137.86743333333334,207262.33333333334,7.6139333333333328,80.2,"--",null,null,null,null,null,40.300000000000004,42.6,null,null,null,null,null,58.9,36.766666666666666,60.033333333333339,"--",5.9000000000000012,17171,null,-45.666666666667879,null,71179,null,335.33333333332848,null,"--",6.3,"--","--","--","--","--","--","--","--",null,null,null,null,null,32.761362692349394,34.63190833023863,34.454388350080521,null,null,null,null,null,38.06666666666667,"--",41.666666666666671,null,null,null,null,null,5.413333333333334,4.5633333333333335,7.4733333333333336,8.6066666666666674,113.33333333333337,7.4233333333333329,4.25,4.9933333333333332,"--",6.1533333333333333,6.2466666666666661,1.253333333333333,null,null,null,null,null,1.0125666666666666,"--","--","--","--","--","--","--","--",null,null,null,null,null,3.56,"--","--","--","--","--","--","--","--"]
["71'Q3",1180.3130000000001,4899.95,4885.2349999999997,3020.1,165.77231888301549,923.2225160060608,1931.1051651109237,353.65513952394838,231.63687091980933,327.39999999999998,34.049999999999997,279.67599999999999,198.32300000000001,-81.35299999999998,1432.3879999999999,-51.707999999999998,null,null,null,null,null,"--","--",115.57729999999999,"--",63.18,63.52,"--","--","--","--","--","--","--","--","--","--",39.222700000000003,"--","--","--",54.366666666666667,"--","--",50.300000000000004,"--","--",50,59.066666666666663,65.766666666666666,57.233333333333327,48.666666666666664,"--","--","--","--",13.975,48.347000000000001,67.224000000000004,28.905000000000001,45.115000000000002,"--",null,"--","--",null,null,null,null,null,69.982299999999995,"--","--",379.86,2094,2023,"--","--",10.303595653540567,14.526928986873898,"--","--","--","--","--","--",663.33333333333337,940.5,111.93333333333334,1159,3582.2666666666664,283.40000000000003,141.30889999999999,207885.33333333334,8.0588333333333342,82.1,"--",null,null,null,null,null,40.700000000000003,42.966666666666669,null,null,null,null,null,58.966666666666669,36.700000000000003,60.133333333333333,"--",6.0333333333333341,17131.666666666668,null,-39.333333333332121,null,71434,null,255,null,"--",6.1333333333333337,"--","--","--","--","--","--","--","--",null,null,null,null,null,33.202376031777234,34.959281812986504,34.722575708298777,null,null,null,null,null,38.366666666666667,"--",41.933333333333337,null,null,null,null,null,5.97,5.4733333333333327,7.5566666666666675,8.7033333333333331,114.66666666666656,7.663333333333334,5.0100000000000007,5.75,"--",6.5133333333333328,6.4833333333333334,0.73333333333333339,null,null,null,null,null,1.0157666666666667,"--","--","--","--","--","--","--","--",null,null,null,null,null,3.56,"--","--","--","--","--","--","--","--"]
["71'Q4",1193.585,4914.2610000000004,4943.2700000000004,3070.3,172.8432245835194,929.50871210269986,1967.9480633137809,360.89125918627855,236.73447186791668,340.2,-1.9670000000000001,260.71899999999999,181.71100000000001,-79.007999999999981,1422.625,-53.677,null,null,null,null,null,"--","--",117.62483333333334,"--",65.363,67.438000000000002,"--","--","--","--","--","--","--","--","--","--",40.131866666666667,"--","--","--",54.966666666666669,"--","--",49.366666666666667,"--","--",42.466666666666669,60.1,56.9,60.266666666666673,51.699999999999996,"--","--","--","--",14.071,47.963000000000001,67.19,29.335999999999999,46.813000000000002,"--",null,"--","--",null,null,null,null,null,72.410633333333337,"--","--",402.32,2201.6666666666665,2079.3333333333335,"--","--",9.4695972642099235,13.622930597543254,"--","--","--","--","--","--",682,958.69999999999993,110.16666666666667,1246.3333333333333,3624.0333333333333,290.2,145.49726666666666,208546.66666666666,8.2882666666666669,82,"--",null,null,null,null,null,41,43.20000000000001,null,null,null,null,null,59.533333333333339,36.866666666666667,60.300000000000004,"--",5.9333333333333336,17164.666666666668,null,33,null,71865.333333333328,null,431.33333333332848,null,"--",6.3666666666666671,"--","--","--","--","--","--","--","--",null,null,null,null,null,33.303936030864662,35.25672990566278,34.984023127033311,null,null,null,null,null,38.4,"--",41.9,null,null,null,null,null,5.6400000000000006,4.75,7.3,8.413333333333334,111.33333333333341,7.5533333333333337,4.2299999999999995,4.7266666666666666,"--",5.8000000000000007,5.89,1.1633333333333331,null,null,null,null,null,1.0026333333333333,"--","--","--","--","--","--","--","--",null,null,null,null,null,3.56,"--","--","--","--","--","--","--","--"]
["72'Q1",1233.807,5002.4359999999997,5012.915,3110.8,176.80334109016923,932.57567974846506,2001.4209791613657,372.3906457377015,245.79734939247925,363,12.298999999999999,298.82299999999998,201.40799999999999,-97.414999999999992,1429.346,-45.670999999999999,null,null,null,null,null,81.599999999999994,"--",118.91789999999999,"--",69.557000000000002,71.150000000000006,"--","--","--","--","--","--","--","--","--","--",41.832333333333338,37.148166666666668,"--","--",60,"--","--",53.866666666666667,"--","--",50.533333333333331,65.13333333333334,75.766666666666666,65.600000000000009,54.966666666666669,"--","--","--","--",14.446999999999999,48.637,68.432000000000002,29.704000000000001,49.853000000000002,"--",null,"--","--",null,null,null,null,null,75.011266666666685,"--","--",396.57,2406,2170.6666666666665,"--","--",9.2725146198830455,13.309181286549711,"--","--","--","--","--","--",683,985.9666666666667,105.5,1326,3640.7000000000003,297.09999999999997,149.11870000000002,209063.33333333334,8.140366666666667,92.8,"--",null,null,null,null,null,41.333333333333336,43.566666666666663,null,null,null,null,null,60.5,36.9,60.300000000000004,"--",5.7666666666666666,17363.666666666668,null,199,null,72680.666666666672,null,815.33333333334303,null,"--",6.4666666666666659,"--","--","--","--","--","--","--","--",null,null,null,null,null,34.336655129663711,35.943600197221201,35.598108438933409,null,null,null,null,null,39.06666666666667,"--",42.466666666666669,null,null,null,null,null,4.8933333333333335,3.5400000000000005,7.2333333333333343,8.2333333333333343,100,7.3566666666666665,3.436666666666667,4.4066666666666672,"--",5.7166666666666677,6.0333333333333341,1.6266666666666669,null,null,null,null,null,1.0030333333333334,"--","--","--","--","--","--","--","--",null,null,null,null,null,3.56,"--","--","--","--","--","--","--","--"]
["72'Q2",1270.1220000000001,5118.2780000000002,5094.5429999999997,3170.2,181.24440197876362,957.78571876578246,2031.1698792554539,378.46702613135125,250.29613401334169,370.3,40.280999999999999,288.20600000000002,195.548,-92.658000000000015,1437.9549999999999,-51.389000000000003,null,null,null,null,null,82.7,"--",122.5637,"--",70.625,72.75,"--","--","--","--","--","--","--","--","--","--",42.631166666666665,37.917200000000001,"--","--",59.766666666666659,"--","--",55.266666666666673,"--","--",51.666666666666664,64,71.666666666666671,63.5,56.266666666666673,"--","--","--","--",14.618,49.63,68.795000000000002,29.452999999999999,50.478000000000002,"--",null,"--","--",null,null,null,null,null,78.040499999999994,"--","--",403.69,2241.3333333333335,2129.6666666666665,"--","--",8.9266804116749245,12.916680411674923,"--","--","--","--","--","--",682.66666666666663,1003.4666666666666,100.26666666666667,1262.3333333333333,3677.8666666666668,302.89999999999998,154.22483333333332,209552,8.5973333333333333,88.6,"--",null,null,null,null,null,41.6,43.9,null,null,null,null,null,61.133333333333333,36.866666666666667,60.4,"--",5.7,17583.666666666668,null,220,null,73463.333333333328,null,782.66666666665697,null,"--",6.2333333333333343,"--","--","--","--","--","--","--","--",null,null,null,null,null,35.189726439408247,36.820907213192832,36.377336442090389,null,null,null,null,null,39.5,"--",42.766666666666673,null,null,null,null,null,5.003333333333333,4.3,7.2766666666666664,8.2233333333333327,94.666666666666629,7.3433333333333337,3.77,4.8433333333333328,"--",5.9766666666666666,6.1433333333333335,1.3000000000000007,null,null,null,null,null,0.98803333333333343,"--","--","--","--","--","--","--","--",null,null,null,null,null,3.56,"--","--","--","--","--","--","--","--"]
["72'Q3",1293.837,5165.4480000000003,5138.7110000000002,3219.1,185.91058576954478,970.98890572308335,2062.2005085073715,384.00437278040295,254.15947625904684,371.3,43.104999999999997,294.20499999999998,207.357,-86.847999999999985,1409.2950000000001,-40.655999999999999,null,null,null,null,null,83.2,"--",125.88246666666667,"--",73.819999999999993,76.218999999999994,"--","--","--","--","--","--","--","--","--","--",43.17766666666666,38.442766666666664,"--","--",62.300000000000004,"--","--",55.933333333333337,"--","--",53,66.366666666666674,69.5,65.600000000000009,63.366666666666667,"--","--","--","--",14.813000000000001,49.899000000000001,69.159000000000006,29.686,53.247999999999998,"--",null,"--","--",null,null,null,null,null,81.322766666666666,"--","--",412,2371.6666666666665,2283.6666666666665,"--","--",8.5967808276124664,12.493447494279133,"--","--","--","--","--","--",740.33333333333337,1029.2,106.26666666666667,1344.6666666666667,3748.5333333333333,311.06666666666666,158.92420000000001,210083,9.1329666666666665,95.2,"--",null,null,null,null,null,41.93333333333333,44.233333333333327,null,null,null,null,null,61.433333333333337,36.833333333333336,60.466666666666669,"--",5.5666666666666664,17690.333333333332,null,106.66666666666424,null,74036.333333333328,null,573,null,"--",5.8999999999999995,"--","--","--","--","--","--","--","--",null,null,null,null,null,35.442537612744815,37.22054460836344,36.813443869366047,null,null,null,null,null,40.1,"--",42.933333333333337,null,null,null,null,null,5.34,4.7399999999999993,7.206666666666667,8.17,96.333333333333286,7.4066666666666663,4.22,5.1533333333333333,"--",6.0799999999999992,6.29,1.1366666666666667,null,null,null,null,null,0.98313333333333341,"--","--","--","--","--","--","--","--",null,null,null,null,null,3.56,"--","--","--","--","--","--","--","--"]
["72'Q4",1332.0229999999999,5251.2259999999997,5257.768,3294.7,195.75459631062265,989.32545696691295,2109.6199467224642,402.39685752032102,270.02780776250518,384.7,17.312999999999999,307.45699999999999,216.149,-91.307999999999993,1420.0909999999999,-57.828000000000003,null,null,null,null,null,85.6,"--",131.26340000000002,"--",80.171999999999997,79.364999999999995,"--","--","--","--","--","--","--","--","--","--",44.685033333333337,39.918733333333336,"--","--",69.13333333333334,"--","--",61.300000000000004,"--","--",62.966666666666669,71.900000000000006,74.833333333333329,70.466666666666683,76.066666666666663,"--","--","--","--",15.090999999999999,50.31,69.739999999999995,29.997,58.837000000000003,"--",null,"--","--",null,null,null,null,null,84.473966666666669,"--","--",426.69,2424,2335.6666666666665,"--","--",8.6998147626614024,12.45648142932807,"--","--","--","--","--","--",783.33333333333337,1075.6666666666667,124.76666666666667,1310.6666666666667,3897.2666666666664,319.06666666666666,164.17189999999999,210652,9.390366666666667,90.7,"--",null,null,null,null,null,42.366666666666667,44.466666666666669,null,null,null,null,null,62.43333333333333,36.9,60.366666666666667,"--",5.3666666666666663,18018.666666666668,null,328.33333333333576,null,74970,null,933.66666666667152,null,"--",5.833333333333333,"--","--","--","--","--","--","--","--",null,null,null,null,null,36.204741089246696,37.906758288146989,37.460601058153998,null,null,null,null,null,40.5,"--",42.9,null,null,null,null,null,5.7566666666666668,5.1433333333333335,7.1366666666666667,7.9933333333333332,85.666666666666643,7.43,4.8633333333333333,5.4366666666666665,"--",6.1533333333333333,6.373333333333334,0.93666666666666742,null,null,null,null,null,0.98896666666666666,"--","--","--","--","--","--","--","--",null,null,null,null,null,3.56,"--","--","--","--","--","--","--","--"]
["73'Q1",1380.68,5380.5020000000004,5368.6729999999998,3354.8,208.21821880441973,995.28537990974735,2151.2964012858329,419.27024716182666,284.93796710898664,397.9,28.391999999999999,321.66399999999999,231.989,-89.674999999999983,1431.595,-40.045999999999999,null,null,null,null,null,87.7,"--",140.38980000000001,"--",91.826999999999998,83.76,"--","--","--","--","--","--","--","--","--","--",45.956333333333333,41.230600000000003,"--","--",70.433333333333323,"--","--",64.86666666666666,"--","--",62.166666666666664,70.533333333333346,86.899999999999991,69.100000000000009,85.466666666666654,"--","--","--","--",15.487,51.435000000000002,70.459999999999994,30.111000000000001,67.766999999999996,"--",null,"--","--",null,null,null,null,null,88.197200000000009,"--","--",427.99,2378.3333333333335,2186.3333333333335,"--","--",9.0454762909807247,12.498809624314058,"--","--","--","--","--","--",747.66666666666663,1093.3,118.3,1336.3333333333333,3924.9,323.09999999999997,171.6018,211119.66666666666,9.5141000000000009,81.900000000000006,"--",null,null,null,null,null,43.033333333333331,44.800000000000004,null,null,null,null,null,63.5,36.9,60.433333333333337,"--",4.9333333333333336,18393,null,374.33333333333212,null,75974.333333333328,null,1004.3333333333285,null,"--",5.4666666666666659,"--","--","--","--","--","--","--","--",null,null,null,null,null,37.34909971419831,38.749085272627056,38.18972500115261,null,null,null,null,null,42.466666666666669,"--",43.300000000000004,null,null,null,null,null,6.1066666666666665,6.5366666666666662,7.22,7.9666666666666659,74.666666666666615,7.4466666666666663,5.7,6.31,"--",6.5799999999999992,6.6033333333333326,0.293333333333333,null,null,null,null,null,0.99719999999999998,"--","--","--",32.711233333333332,103.97813333333333,"--","--","--",null,null,null,null,null,3.56,"--","--","--",{"$f":"AVERAGE(Monthly!GH179:GH181)","v":0},"--","--","--","--"]
["73'Q2",1417.595,5441.5039999999999,5394.7950000000001,3353.4,205.76233259874545,986.8675325415835,2160.7701348596711,434.8695570433735,297.66254691567656,377.9,55.488999999999997,312.39299999999997,243.17699999999999,-69.21599999999998,1424.5260000000001,-40.750999999999998,null,null,null,null,null,87.6,"--",150.10979999999998,"--",94.861000000000004,81.042000000000002,"--","--","--","--","--","--","--","--","--","--",46.333533333333328,41.618533333333339,"--","--",65.833333333333329,"--","--",60.833333333333336,"--","--",60.300000000000004,63.466666666666669,88.399999999999991,62.5,86.3,"--","--","--","--",15.704000000000001,51.482999999999997,69.98,30.501999999999999,69.155000000000001,"--",null,"--","--",null,null,null,null,null,92.178399999999996,"--","--",433.5,2139,1963.3333333333333,"--","--",10.541751603351242,13.995084936684576,"--","--","--","--","--","--",657,1122.6000000000001,128.66666666666666,1180.6666666666667,3956.1666666666665,325.16666666666669,178.10666666666665,211581,10.071899999999999,77,"--",null,null,null,null,null,43.933333333333337,45.266666666666673,null,null,null,null,null,64.033333333333346,36.9,60.766666666666673,"--",4.9333333333333336,18566.666666666668,null,173.66666666666788,null,76662.666666666672,null,688.33333333334303,null,"--",4.9666666666666668,"--","--","--","--","--","--","--","--",null,null,null,null,null,37.505181796692909,38.890332146001526,38.385844812592431,null,null,null,null,null,44.533333333333331,"--",44.033333333333339,null,null,null,null,null,7.0366666666666662,7.8166666666666673,7.3066666666666675,8.0933333333333337,78.666666666666615,7.6400000000000006,6.6033333333333344,7.0166666666666657,"--",6.72,6.8066666666666675,-0.20999999999999819,null,null,null,null,null,0.99996666666666678,"--","--","--",31.475733333333334,99.699666666666658,"--","--","--",null,null,null,null,null,3.56,"--","--","--",{"$f":"AVERAGE(Monthly!GH182:GH184)","v":0},"--","--","--","--"]
["73'Q3",1436.8130000000001,5411.9350000000004,5399.8810000000003,3365.4,203.93065080368001,991.50061132561166,2169.9687378707081,441.56664296110569,300.55587413679928,362,26.456,303.76299999999998,243.989,-59.773999999999972,1406.4059999999999,-36.590000000000003,null,null,null,null,null,87.5,"--",157.30126666666666,"--",96.552999999999997,84.436000000000007,"--","--","--","--","--","--","--","--","--","--",46.733833333333337,41.953000000000003,"--","--",61.333333333333336,"--","--",55.800000000000004,"--","--",62.79999999999999,56.1,82.6,55.866666666666674,87.333333333333329,"--","--","--","--",15.976000000000001,50.984000000000002,69.814999999999998,31.334,68.786000000000001,"--",null,"--","--",null,null,null,null,null,95.205233333333339,"--","--",439.97,2016,1777.3333333333333,"--","--",11.634538413634971,14.99453841363497,"--","--","--","--","--","--",576,1150.0333333333333,132.36666666666667,1101,3973.4333333333329,326.09999999999997,183.99673333333331,212096.66666666666,10.755033333333332,72,"--",null,null,null,null,null,44.800000000000004,45.733333333333327,null,null,null,null,null,64.300000000000011,36.866666666666667,60.79999999999999,"--",4.8,18612,null,45.333333333332121,null,77117.666666666672,null,455,null,"--",5.166666666666667,"--","--","--","--","--","--","--","--",null,null,null,null,null,36.961045132684674,38.667069400331386,38.298174886342061,null,null,null,null,null,46.366666666666674,"--",44.43333333333333,null,null,null,null,null,9.1300000000000008,10.56,7.586666666666666,8.4666666666666668,88.000000000000085,8.456666666666667,8.3233333333333324,8.5066666666666677,"--",7.3366666666666669,7.206666666666667,-1.3000000000000007,null,null,null,null,null,1.0039,"--","--","--",30.896133333333335,97.291266666666658,"--","--","--",null,null,null,null,null,4.0599999999999996,"--","--","--",{"$f":"AVERAGE(Monthly!GH185:GH187)","v":0},"--","--","--","--"]
["73'Q4",1479.069,5462.3969999999999,5406.3850000000002,3355.5,199.16213842099575,987.5853334799541,2168.7525280990503,444.88251720817789,300.42733094661924,344.8,61.393000000000001,306.03100000000001,255.965,-50.066000000000003,1415.7660000000001,-33.369,null,null,null,null,null,88.3,"--",160.10533333333333,"--",101.389,84.427999999999997,"--","--","--","--","--","--","--","--","--","--",47.428400000000003,42.751633333333331,"--","--",65.966666666666669,"--","--",59.733333333333327,"--","--",64.7,63.20000000000001,94.899999999999991,58.800000000000004,92.766666666666666,"--","--","--","--",16.298999999999999,50.654000000000003,69.47,32.176000000000002,73.2,"--",null,"--","--",null,null,null,null,null,97.638466666666673,"--","--",453.27,1642.3333333333333,1367,"--","--",13.184255163211667,16.520921829878333,"--","--","--","--","--","--",543.66666666666663,1188.1666666666667,147.86666666666667,918,4017.1,326.0333333333333,188.95706666666669,212631.33333333334,11.297399999999998,76.5,"--",null,null,null,null,null,45.933333333333337,46.5,null,null,null,null,null,64.7,36.766666666666666,61.1,"--",4.7666666666666666,18765,null,153,null,77851,null,733.33333333332848,null,"--",5.1000000000000005,"--","--","--","--","--","--","--","--",null,null,null,null,null,37.088883488431449,38.790124648265547,38.483959954326806,null,null,null,null,null,46.733333333333327,"--",44.966666666666661,null,null,null,null,null,9.8133333333333326,9.9966666666666661,7.6499999999999995,8.4366666666666656,78.666666666666615,8.6300000000000008,7.5,7.413333333333334,"--",6.8299999999999992,6.753333333333333,-0.66000000000000103,null,null,null,null,null,0.99986666666666668,"--","--","--",31.735266666666664,99.941933333333338,"--","--","--",null,null,null,null,null,4.3099999999999996,"--","--","--",{"$f":"AVERAGE(Monthly!GH188:GH190)","v":0},"--","--","--","--"]
["74'Q1",1494.654,5417.0240000000003,5400.9889999999996,3326.3,194.49595463021456,974.33864343547918,2157.4654019343066,444.42515524306441,296.07856607529698,319.7,29.94,295.65199999999999,259.23700000000002,-36.414999999999964,1442.35,-35.302,null,null,null,null,null,86.7,"--",165.53713333333334,"--",107.51600000000001,80.552000000000007,"--","--","--","--","--","--","--","--","--","--",47.014999999999993,42.382933333333334,"--","--",60.833333333333336,"--","--",54.866666666666667,"--","--",59.966666666666669,56.566666666666663,94.3,53.79999999999999,89.833333333333329,"--","--","--","--",16.670000000000002,50.551000000000002,69,32.976999999999997,77.116,"--",null,"--","--",null,null,null,null,null,99.680533333333344,"--","--",454.74,1586,1377,"--","--",15.046707461408667,18.640040794742003,"--","--","--","--","--","--",544.66666666666663,1204.3999999999999,144.16666666666666,924.66666666666663,3951.0333333333333,328.06666666666666,192.39529999999999,213072.33333333334,11.343400000000001,61.8,"--",null,null,null,null,null,47.29999999999999,47.233333333333327,null,null,null,null,null,64.566666666666663,36.6,61.333333333333336,"--",5.1333333333333337,18738.333333333332,null,-26.666666666667879,null,78218,null,367,null,"--",4.9666666666666659,"--","--","--","--","--","--","--","--",null,null,null,null,null,36.353776591298328,38.308729970230658,38.148869187736253,null,null,null,null,null,49.866666666666667,50.066666666666663,46.266666666666673,null,null,null,null,null,9.2633333333333336,9.3233333333333324,7.8966666666666656,8.5433333333333312,64.666666666666558,8.4700000000000006,7.6166666666666671,7.3533333333333344,"--",7.0266666666666664,7.0533333333333337,-0.30000000000000071,null,null,null,null,null,0.98003333333333342,"--","--","--",32.788566666666668,103.59859999999999,0,0,0,null,null,null,null,null,10.11,"--","--","--",{"$f":"AVERAGE(Monthly!GH191:GH193)","v":0},"--","--","--","--"]
["74'Q2",1534.22,5431.2650000000003,5407.5320000000002,3337.9,195.53970626762612,967.87843499014423,2174.4818587422296,443.6574405159098,288.8514731006743,305.8,39.262,311.31599999999997,271.846,-39.46999999999997,1451.635,-37.86,null,null,null,null,null,85.9,"--",177.57666666666668,"--",110.051,76.769000000000005,"--","--","--","--","--","--","--","--","--","--",47.048000000000002,42.333666666666666,"--","--",56.766666666666673,"--","--",51.633333333333333,"--","--",59.233333333333327,53.300000000000004,91.466666666666654,52.166666666666664,76.566666666666663,"--","--","--","--",17.106999999999999,50.417999999999999,68.960999999999999,33.93,81.105000000000004,"--",null,"--","--",null,null,null,null,null,101.355,"--","--",454.82,1515.3333333333333,1159.3333333333333,"--","--",15.744842911352158,19.384842911352159,"--","--","--","--","--","--",556,1230.3666666666668,135.03333333333333,964,3914,329.86666666666667,195.78710000000001,213520,11.9415,72.099999999999994,"--",null,null,null,null,null,48.566666666666663,48.466666666666669,null,null,null,null,null,64.499999999999986,36.466666666666669,61.166666666666664,"--",5.2,18693.333333333332,null,-45,null,78510.333333333328,null,292.33333333332848,null,"--",4.9666666666666659,"--","--","--","--","--","--","--","--",null,null,null,null,null,36.186141288911799,38.327583995711656,38.306940330513996,null,null,null,null,null,51.6,52.133333333333333,48.6,null,null,null,null,null,10.936666666666667,11.25,8.3633333333333315,9.0633333333333344,70.000000000000284,8.8800000000000008,8.1533333333333342,8.69,"--",8.0666666666666682,7.543333333333333,-1.1466666666666665,null,null,null,null,null,0.96543333333333337,"--","--","--",31.95143333333333,99.755366666666689,0,0,0,null,null,null,null,null,10.11,"--","--","--",{"$f":"AVERAGE(Monthly!GH194:GH196)","v":0},"--","--","--","--"]
["74'Q3",1563.396,5378.6790000000001,5390.8209999999999,3351.7,196.67555363775043,969.96658317449499,2185.0578631877543,439.13282393246635,277.11373806720883,295.60000000000002,12.561999999999999,305.87400000000002,257.18700000000001,-48.687000000000012,1453.4960000000001,-36.164000000000001,null,null,null,null,null,84.9,"--",186.12109999999998,"--",115.248,66.959999999999994,"--","--","--","--","--","--","--","--","--","--",46.851599999999998,42.164333333333332,"--","--",51.29999999999999,"--","--",48.133333333333333,"--","--",55.533333333333331,48,85.833333333333329,49.29999999999999,62.433333333333337,"--","--","--","--",17.614000000000001,49.883000000000003,69.063999999999993,35.311,87.165999999999997,"--",null,"--","--",null,null,null,null,null,102.26646666666666,"--","--",462.11,1202.6666666666667,919.66666666666663,"--","--",17.09141769407255,21.034751027405878,"--","--","--","--","--","--",512.33333333333337,1266.6000000000001,135.70000000000002,861,3917.8333333333335,332.13333333333338,199.07579999999999,214047.33333333334,12.976433333333333,64.400000000000006,"--",null,null,null,null,null,49.93333333333333,50.133333333333333,null,null,null,null,null,64.399999999999991,36.466666666666669,61.333333333333336,"--",5.6333333333333329,18572.666666666668,null,-120.66666666666424,null,78621.666666666672,null,111.33333333334303,null,"--",5.333333333333333,"--","--","--","--","--","--","--","--",null,null,null,null,null,35.5231787203153,38.089111934873763,38.197610517342262,null,null,null,null,null,55.266666666666673,54.9,51.966666666666669,null,null,null,null,null,11.99,12.089999999999998,8.9866666666666664,9.81,82.333333333333414,9.61,8.19,9.01,"--",8.4600000000000009,7.963333333333332,-1.0466666666666677,null,null,null,null,null,0.98086666666666666,"--","--","--",32.72143333333333,102.52243333333332,0,0,0,null,null,null,null,null,10.11,"--","--","--",{"$f":"AVERAGE(Monthly!GH197:GH199)","v":0},"--","--","--","--"]
["74'Q4",1603.0039999999999,5357.1660000000002,5314.0720000000001,3302.5,177.95965417867416,952.65235447925352,2171.8879913420724,427.60076866924953,258.77172771812673,256.5,46.331000000000003,302.83800000000002,263.90800000000002,-38.930000000000007,1459.885,-53.258000000000003,null,null,null,null,null,80.599999999999994,"--",190.30366666666669,"--",102.152,67.397999999999996,"--","--","--","--","--","--","--","--","--","--",44.987533333333339,40.292400000000001,"--","--",37.166666666666664,"--","--",39.43333333333333,"--","--",45.233333333333327,32.5,70.466666666666654,139.73333333333332,34.166666666666664,"--","--","--","--",18.100999999999999,50.325000000000003,68.856999999999999,35.968000000000004,76.316999999999993,"--",null,"--","--",null,null,null,null,null,102.31176666666666,"--","--",467.16,1023.6666666666666,825.33333333333337,"--","--",18.645857796804535,23.265857796804539,"--","--","--","--","--","--",438.33333333333331,1296.0333333333333,151.96666666666667,779.33333333333337,3912.7999999999997,336.33333333333331,199.23576666666668,214619.33333333334,13.449199999999999,59.5,"--",null,null,null,null,null,51.466666666666669,51.6,null,null,null,null,null,63.1,36.166666666666664,61.266666666666673,"--",6.6000000000000005,18044.666666666668,null,-528,null,78182.333333333328,null,-439.33333333334303,null,"--",5.4666666666666659,"--","--","--","--","--","--","--","--",null,null,null,null,null,34.57736224246726,37.521810473498242,37.9429334519496,null,null,null,null,null,57.199999999999996,57.333333333333336,54.9,null,null,null,null,null,11.003333333333332,9.3466666666666658,9.0166666666666675,10.57,155.33333333333329,9.7966666666666669,7.3599999999999994,7.6733333333333329,"--",7.6533333333333324,7.669999999999999,-3.3333333333338544E-3,null,null,null,null,null,0.98620000000000008,"--","--","--",32.865233333333329,102.31599999999999,0,0,0,null,null,null,null,null,11.160000000000002,"--","--","--",{"$f":"AVERAGE(Monthly!GH200:GH202)","v":0},"--","--","--","--"]
["75'Q1",1619.5530000000001,5292.4440000000004,5352.5889999999999,3330.2,181.75604493827905,954.47948414056043,2193.9644709211602,403.19724095926944,229.43383100770632,240.3,-18.667999999999999,272.44900000000001,265.76900000000001,-6.6800000000000068,1476.106,-75.137,null,null,null,null,null,73.5,"--",190.02883333333332,"--",89.227000000000004,73.957999999999998,"--","--","--","--","--","--","--","--","--","--",42.013633333333331,36.939266666666668,"--","--",32.233333333333327,"--","--",31.866666666666664,"--","--",32.699999999999996,36.6,48.533333333333339,36,17.566666666666666,"--","--","--","--",18.649000000000001,50.723999999999997,69.457999999999998,36.765999999999998,64.715000000000003,"--",null,"--","--",null,null,null,null,null,101.96373333333334,"--","--",479.21,976.33333333333337,721.33333333333337,"--","--",19.405820597977847,25.192487264644512,"--","--","--","--","--","--",438.33333333333331,1315.9333333333332,143.9,733.66666666666663,3906.6333333333337,344.43333333333334,199.22710000000004,215064.66666666666,13.2248,57.6,"--",null,null,null,null,null,52.566666666666663,52.699999999999996,null,null,null,null,null,61.033333333333331,35.9,61.20000000000001,"--",8.2666666666666657,17067,null,-977.66666666666788,null,76955,null,-1227.3333333333285,null,"--",6.8666666666666663,"--","--","--","--","--","--","--","--",null,null,null,null,null,33.424435354208441,37.135678009666037,37.772682181851735,null,null,null,null,null,57.166666666666664,58.666666666666664,56.70000000000001,null,null,null,null,null,8.98,6.3033333333333337,8.7066666666666652,10.646666666666667,194.00000000000011,9.1466666666666665,5.75,6.3066666666666675,"--",7.2733333333333334,7.54,{"$f":"+FI75-FF75","v":1.2333333333333325},null,null,null,null,null,0.99856666666666671,"--","--","--",32.447866666666663,99.382799999999989,0,0,0,null,null,null,null,null,11.160000000000002,"--","--","--",{"$f":"AVERAGE(Monthly!GH203:GH205)","v":0},"--","--","--","--"]
["75'Q2",1656.4480000000001,5333.22,5407.4089999999997,3385.8,185.28638135893587,975.62198450711151,2224.8916341339527,393.51096791240315,216.60989525718523,245.3,-32.74,250.64699999999999,258.03399999999999,7.3870000000000005,1466.2339999999999,-132.41800000000001,null,null,null,null,null,71.8,"--",186.04096666666669,"--",94.037999999999997,82.152000000000001,"--","--","--","--","--","--","--","--","--","--",41.454199999999993,36.292366666666666,"--","--",41.266666666666673,"--","--",40.133333333333333,"--","--",28.866666666666664,48.233333333333341,44,49.699999999999996,23.099999999999998,"--","--","--","--",19.047999999999998,51.57,70.099000000000004,36.936,70.25,"--",null,"--","--",null,null,null,null,null,101.22969999999999,"--","--",486.22,1071,908.66666666666663,"--","--",18.4100143052524,24.616680971919067,"--","--","--","--","--","--",559.66666666666663,1347.5333333333333,183.5,848,4087.9666666666667,359.3,197.84116666666668,215548,13.4625,72.8,"--",null,null,null,null,null,53.199999999999996,53.533333333333331,null,null,null,null,null,60.366666666666667,35.866666666666667,61.333333333333336,"--",8.8666666666666671,16731.666666666668,null,-335.33333333333212,null,76534.666666666672,null,-420.33333333332848,null,"--",8.9666666666666668,"--","--","--","--","--","--","--","--",null,null,null,null,null,33.41800751645458,37.406117118387037,38.086800052445689,null,null,null,null,null,57.800000000000004,59.333333333333336,57.766666666666673,null,null,null,null,null,7.3233333333333333,5.4200000000000008,8.8733333333333331,10.63,175.66666666666677,8.8733333333333331,5.3933333333333335,6.5266666666666664,"--",7.7399999999999993,8.0499999999999989,1.5233333333333325,null,null,null,null,null,1.022,"--","--","--",32.897133333333329,100.12656666666668,0,0,0,null,null,null,null,null,11.160000000000002,"--","--","--",{"$f":"AVERAGE(Monthly!GH206:GH208)","v":0},"--","--","--","--"]
["75'Q3",1713.8119999999999,5421.357,5455.6639999999998,3434.1,196.85974510317604,985.17091214179868,2252.069342755025,397.70889737790844,219.23899337086317,262.2,-5.234,271.48399999999998,253.68700000000001,-17.796999999999969,1489.5360000000001,-89.701999999999998,null,null,null,null,null,73.7,"--",183.13373333333334,"--",110.64700000000001,92.554000000000002,"--","--","--","--","--","--","--","--","--","--",42.471966666666667,37.48343333333333,"--","--",51,"--","--",49.166666666666664,"--","--",28.966666666666669,59.699999999999996,65.133333333333326,59.733333333333327,35.866666666666667,"--","--","--","--",19.382999999999999,52.155000000000001,69.930000000000007,37.164999999999999,86.069000000000003,"--",null,"--","--",null,null,null,null,null,101.6759,"--","--",498.74,1250,1026,"--","--",17.151947122898861,23.078613789565527,"--","--","--","--","--","--",563.66666666666663,1384.0666666666668,153.80000000000001,949.66666666666663,4028.5,374.2,198.40666666666667,216187,14.1813,75.7,"--",null,null,null,null,null,54.266666666666673,54.233333333333327,null,null,null,null,null,61.233333333333327,36.033333333333331,61.266666666666673,"--",8.4666666666666668,16802,null,{"$f":"+DL77-DL76","v":70.333333333332121},null,77051.333333333328,null,{"$f":"+DP77-DP76","v":516.66666666665697},null,"--",8.9999999999999982,"--","--","--","--","--","--","--","--",null,null,null,null,null,34.334990783642894,38.046932581787374,38.622549259514201,null,null,null,null,null,59.033333333333331,59.966666666666661,58.6,null,null,null,null,null,7.5633333333333335,6.1599999999999993,8.9133333333333322,10.583333333333334,{"$f":"+(FB77-FA77)*100","v":167.00000000000017},8.9866666666666664,6.330000000000001,7.5200000000000005,"--",8.2066666666666652,8.2966666666666669,0.77666666666666639,null,null,null,null,null,1.0308666666666666,"--","--","--",34.386166666666668,104.44493333333334,0,0,0,null,null,null,null,null,11.160000000000002,"--","--","--",{"$f":"AVERAGE(Monthly!GH209:GH211)","v":0},"--","--","--","--"]
["75'Q4",1765.867,5494.4459999999999,5522.58,3470.5,202.59014624974941,982.75649080364303,2285.1533629466076,402.44586058801173,221.87249555058335,273.60000000000002,0.34200000000000003,285.97500000000002,268.03100000000001,-17.944000000000017,1503.365,-90.650999999999996,null,null,null,null,null,75.3,"--",182.89723333333333,"--",118.595,100.18600000000001,"--","--","--","--","--","--","--","--","--","--",43.403866666666666,38.495133333333335,"--","--",54.966666666666669,"--","--",49.833333333333336,"--","--",40.299999999999997,63.166666666666664,70.166666666666671,61.566666666666663,44.266666666666673,"--","--","--","--",19.7,52.204999999999998,69.787000000000006,37.735999999999997,90.195999999999998,"--",null,"--","--",null,null,null,null,null,103.5973,"--","--",511.31,1341.6666666666667,1099,"--","--",15.684931337519947,21.494931337519944,"--","--","--","--","--","--",652.66666666666663,1420.0333333333335,154.83333333333334,1033,4059.4333333333329,384.73333333333329,201.97640000000001,216763,14.669833333333335,75.599999999999994,"--",null,null,null,null,null,55.266666666666659,55.166666666666664,null,null,null,null,null,62.033333333333331,36.133333333333333,61.133333333333333,"--",8.3000000000000007,17049.666666666668,null,247.66666666666788,null,77744.333333333328,null,693,null,"--",9.0333333333333332,"--","--","--","--","--","--","--","--",null,null,null,null,null,35.00342144402471,38.646211694422064,39.174731426201092,null,null,null,null,null,59.666666666666664,61,59.666666666666664,null,null,null,null,null,7.583333333333333,5.4133333333333331,8.81,10.58,176.99999999999994,9.1566666666666663,5.6266666666666678,6.68,"--",7.8433333333333337,8.0633333333333344,1.3833333333333346,null,null,null,null,null,1.0176333333333332,"--","--","--",34.974566666666668,105.59783333333333,0,0,0,null,null,null,null,null,11.160000000000002,"--","--","--",{"$f":"AVERAGE(Monthly!GH212:GH214)","v":0},"--","--","--","--"]
["76'Q1",1824.509,5618.52,5599.4880000000003,3539.9,212.72067684815593,1002.6809047293228,2324.4984184225214,411.07040050157894,229.40148284415937,301.7,34.594000000000001,303.89299999999997,266.17500000000001,-37.717999999999961,1506.5219999999999,-80.756,null,null,null,null,null,77.400000000000006,78.966666666666669,181.39340000000001,"--",126.926,108.491,"--","--","--","--","--","--","--","--","--","--",44.737099999999998,39.82886666666667,"--","--",59.566666666666663,"--","--",55.1,"--","--",46.733333333333327,64.7,72.566666666666663,64.566666666666663,55.6,"--","--","--","--",20.076000000000001,52.973999999999997,70.313000000000002,37.896999999999998,98.427000000000007,"--",null,"--","--",null,null,null,null,null,105.90230000000001,"--","--",527.75,1442,1183,"--",12.880333333333335,14.075510310338624,19.488843643671959,"--","--","--","--","--","--",612.66666666666663,1452.9333333333332,150.33333333333334,1141.3333333333333,4106.833333333333,401.89999999999992,206.85623333333334,217241.66666666666,14.365699999999999,84.6,"--",null,null,null,null,null,55.9,56.199999999999996,null,null,null,null,null,63.199999999999996,36.199999999999996,61.29999999999999,"--",7.7333333333333343,17380.333333333332,null,330.66666666666424,null,78790.666666666672,null,1046.333333333343,null,"--",8.6333333333333329,"--","--","--","--","--","--","--","--",null,null,null,null,null,36.306079794528515,39.664975855764453,40.022746587919755,null,null,null,null,null,59.933333333333337,61.933333333333337,60.733333333333327,null,null,null,null,null,6.833333333333333,4.8266666666666671,8.5566666666666666,10.256666666666666,169.99999999999994,8.8633333333333315,4.916666666666667,5.9766666666666666,"--",7.4666666666666659,7.7533333333333339,1.7766666666666673,null,null,null,null,null,0.99529999999999996,"--","--","--",35.177233333333334,105.6472,0,0,0,null,null,null,null,null,11.763333333333334,"--","--","--",{"$f":"AVERAGE(Monthly!GH215:GH217)","v":0},"--","--","--","--"]
["76'Q2",1856.944,5660.9719999999998,5619.2160000000003,3572.5,213.68256561204507,1018.0809975889093,2340.7364367990458,416.52607537114608,231.59679311663271,310.39999999999998,52.04,317.05500000000001,268.85599999999999,-48.199000000000012,1491.3579999999999,-76.173000000000002,null,null,null,null,null,78.099999999999994,79.466666666666669,178.33669999999998,"--",130.751,107.971,"--","--","--","--","--","--","--","--","--","--",45.310099999999998,40.476900000000001,"--","--",59.20000000000001,"--","--",55.366666666666667,"--","--",51.866666666666667,62.699999999999996,78,61.699999999999996,58.066666666666663,"--","--","--","--",20.454000000000001,53.482999999999997,71.004000000000005,38.244999999999997,100.789,"--",null,"--","--",null,null,null,null,null,108.54093333333333,"--","--",540.9,1449.6666666666667,1171.3333333333333,"--",12.762333333333332,13.581684760175094,18.878351426841757,"--","--","--","--","--","--",590.66666666666663,1477.3999999999999,148.16666666666666,1098.6666666666667,4128.166666666667,417.36666666666662,211.71586666666667,217691.33333333334,14.827766666666667,83.3,"--",null,null,null,null,null,56.4,56.966666666666669,null,null,null,null,null,63.433333333333337,36.066666666666663,61.533333333333331,"--",7.5666666666666673,17525,null,144.66666666666788,null,79326.333333333328,null,535.66666666665697,null,"--",8.1,"--","--","--","--","--","--","--","--",null,null,null,null,null,36.771409189162341,40.138932260438096,40.45835017786127,null,null,null,null,null,60.866666666666674,62.5,61.533333333333331,null,null,null,null,null,6.8999999999999995,5.1966666666666663,8.5333333333333332,9.8966666666666665,136.33333333333331,8.7833333333333332,5.1566666666666672,6.28,7.06,7.4833333333333334,7.7733333333333334,1.4933333333333332,null,null,null,null,null,0.97913333333333341,"--","--","--",35.695133333333331,106.83946666666667,0,0,0,null,null,null,null,null,12.17,"--","--","--",{"$f":"AVERAGE(Monthly!GH218:GH220)","v":0},"--","--","--","--"]
["76'Q3",1890.5,5689.7560000000003,5654.7809999999999,3610.4,216.10775324014841,1025.8898017366375,2368.4024450232146,425.64064596162058,238.00315763048903,305.39999999999998,47.017000000000003,329.99099999999999,276.66800000000001,-53.322999999999979,1483.9259999999999,-79.489999999999995,null,null,null,null,null,78.7,79.966666666666669,180.0368,"--",132.928,109.855,"--","--","--","--","--","--","--","--","--","--",45.906799999999997,41.054066666666664,"--","--",54.666666666666664,"--","--",53.800000000000004,"--","--",50.800000000000004,57,76.033333333333331,54.266666666666673,53.933333333333337,"--","--","--","--",20.884,53.58,71.358000000000004,38.978000000000002,102.301,"--",null,"--","--",null,null,null,null,null,111.49893333333334,"--","--",555.45000000000005,1557,1345,"--",12.975,13.323206081877672,18.736539415211006,"--","--","--","--","--","--",669.33333333333337,1513.8,147.93333333333334,1176.3333333333333,4158.5666666666666,428.5333333333333,216.83046666666667,218236,15.946266666666668,89.7,"--",null,null,null,null,null,57.300000000000004,57.9,null,null,null,null,null,63.766666666666673,36.033333333333331,61.733333333333327,"--",7.7333333333333334,17595,null,70,null,79714.333333333328,null,388,null,"--",7.8000000000000007,"--","--","--","--","--","--","--","--",null,null,null,null,null,36.851241692170397,40.391601794895656,40.796189309091702,null,null,null,null,null,61.6,63.5,62.5,null,null,null,null,null,7.086666666666666,5.2833333333333332,8.4633333333333329,9.6199999999999992,115.66666666666663,8.9700000000000006,5.15,6.0133333333333328,6.6333333333333329,7.31,7.7299999999999995,1.7166666666666668,null,null,null,null,null,0.97756666666666669,"--","--","--",35.802033333333334,106.22596666666668,0,0,0,null,null,null,null,null,12.746666666666668,"--","--","--",{"$f":"AVERAGE(Monthly!GH221:GH223)","v":0},"--","--","--","--"]
["76'Q4",1938.413,5732.4620000000004,5734.201,3657.5,219.51529535052154,1036.6785673557829,2401.3061372936954,433.85682697776519,243.60754120057462,344.3,17.177,340.91300000000001,279.47899999999998,-61.434000000000026,1484.4380000000001,-82.997,null,null,null,null,null,79.3,80.833333333333329,183.8622,"--",133.09899999999999,109.883,"--","--","--","--","--","--","--","--","--","--",46.7303,41.661066666666663,"--","--",53.933333333333337,"--","--",51.5,"--","--",48.4,57.199999999999996,70.866666666666674,56.699999999999996,49.833333333333336,"--","--","--","--",21.33,53.753,71.834999999999994,39.680999999999997,100.768,"--",null,"--","--",null,null,null,null,null,114.76143333333334,"--","--",571.27,1691.3333333333333,1489,"--",13.246666666666664,12.954581078859677,18.391247745526343,"--","--","--","--","--","--",736.66666666666663,1549.6333333333332,142.76666666666668,1249.6666666666667,4183.3666666666668,446.70000000000005,223.13120000000001,218828,16.647299999999998,87,"--",null,null,null,null,null,58.133333333333333,58.699999999999996,null,null,null,null,null,63.800000000000004,35.9,61.766666666666673,"--",7.7666666666666666,17649.666666666668,null,54.666666666667879,null,80196.666666666672,null,482.33333333334303,null,"--",8.0333333333333332,"--","--","--","--","--","--","--","--",null,null,null,null,null,37.630847487766637,40.886998874457547,41.156814217982394,null,null,null,null,null,62.133333333333333,64.533333333333331,63.5,null,null,null,null,null,6.5399999999999991,4.8733333333333331,8.1833333333333336,9.2133333333333329,102.99999999999994,8.8433333333333337,4.6733333333333329,5.2266666666666666,5.7233333333333327,6.4566666666666661,7.19,1.9633333333333338,null,null,null,null,null,0.99230000000000007,"--","--","--",36.628800000000005,106.96196666666667,0,0,0,null,null,null,null,null,13.9,"--","--","--",{"$f":"AVERAGE(Monthly!GH224:GH226)","v":0},"--","--","--","--"]
["77'Q1",1992.5340000000001,5799.16,5788.5169999999998,3699.4,227.55832267410489,1036.0042695045863,2435.8374078213087,449.66848348597182,253.38927608834973,354.7,29.257000000000001,357.05200000000002,274.98899999999998,-82.063000000000045,1497.3019999999999,-72.186999999999998,null,null,null,null,null,80.7,81.933333333333337,187.45113333333333,"--",143.947,115.318,"--","--","--","--","--","--","--","--","--","--",47.699333333333335,42.750833333333333,"--","--",56.066666666666663,"--","--",51.9,"--","--",52.666666666666664,59.166666666666664,78.7,56.733333333333327,56.666666666666664,"--","--","--","--",21.731999999999999,54.079000000000001,71.87,40.186,108.21299999999999,"--",null,"--","--",null,null,null,null,null,119.09570000000001,"--","--",593.83000000000004,1844.3333333333333,1562,"--",14.378666666666666,13.402664616092975,18.652664616092974,"--","--","--","--","--","--",845.33333333333337,1579.9666666666665,130.26666666666668,1363,4182.0666666666666,462.90000000000003,228.8699,219342.33333333334,30.738466666666667,87.1,"--",null,null,null,null,null,59.199999999999996,59.666666666666664,null,null,null,null,null,64.566666666666663,35.833333333333336,61.833333333333336,"--",7.5,17862.333333333332,null,212.66666666666424,null,81023.666666666672,null,827,null,"--",7.3,"--","--","--","--","--","--","--","--",null,null,null,null,null,38.307473937840399,41.42099090261722,41.637662206070814,null,null,null,null,null,63.466666666666661,65.399999999999991,64.333333333333329,null,null,null,null,null,6.25,4.66,8.0333333333333332,9.1066666666666674,107.33333333333341,8.6933333333333334,4.63,5.419999999999999,6.0266666666666664,6.78,7.3533333333333326,1.9333333333333336,null,null,null,null,null,1.0298333333333332,"--","--","--",36.940733333333334,107.30619999999999,0,0,0,null,null,null,null,null,13.9,"--","--","--",{"$f":"AVERAGE(Monthly!GH227:GH229)","v":0},"--","--","--","--"]
["77'Q2",2060.165,5912.9769999999999,5880.6949999999997,3719.8,232.93057374901741,1035.9172633302385,2450.9521629207438,462.09892832351858,262.27889485808498,395.2,43.655000000000001,360.34399999999999,282.40199999999999,-77.942000000000007,1512.0229999999999,-66.334999999999994,null,null,null,null,null,82.8,83.866666666666674,191.87643333333335,"--",152.78700000000001,130.52600000000001,"--","--","--","--","--","--","--","--","--","--",49.182066666666664,44.232933333333335,"--","--",57.79999999999999,"--","--",53.066666666666663,"--","--",53.4,60.966666666666669,75.466666666666669,61.566666666666663,54.433333333333337,"--","--","--","--",22.173999999999999,54.311,72.075000000000003,40.828000000000003,115.514,"--",null,"--","--",null,null,null,null,null,124.6545,"--","--",605.47,1918.6666666666667,1693.3333333333333,"--",14.643000000000001,13.930466781836552,18.923800115169886,"--","--","--","--","--","--",803.66666666666663,1628.3,142.66666666666666,1425.3333333333333,4234.1333333333332,472.36666666666662,239.00693333333334,219863,32.644333333333329,90.2,"--",null,null,null,null,null,60.233333333333327,60.633333333333333,null,null,null,null,null,65.899999999999991,36,62.233333333333341,"--",7.1333333333333329,18107.666666666668,null,245.33333333333576,null,82102,null,1078.3333333333285,null,"--",7.1333333333333329,"--","--","--","--","--","--","--","--",null,null,null,null,null,39.849199551936287,42.260828348928911,42.157047419801721,null,null,null,null,null,65.033333333333346,66.166666666666671,65.333333333333329,null,null,null,null,null,6.47,5.1566666666666663,8.0133333333333336,8.9966666666666661,98.333333333333258,8.81,4.84,5.6933333333333342,6.1133333333333333,6.830000000000001,7.37,1.6766666666666659,null,null,null,null,null,1.0526000000000002,"--","--","--",37.007200000000005,106.88106666666665,0,0,0,null,null,null,null,null,13.9,"--","--","--",{"$f":"AVERAGE(Monthly!GH230:GH232)","v":0},"--","--","--","--"]
["77'Q3",2122.3870000000002,6017.5860000000002,5942.585,3755.2,236.35858157777108,1041.0506276167673,2477.7907908054613,471.31150504937455,266.97779478957722,394,76.626000000000005,355.32100000000003,284.589,-70.732000000000028,1515.394,-73.122,null,null,null,null,null,83.1,84.1,197.22356666666667,"--",159.23500000000001,142.89400000000001,"--","--","--","--","--","--","--","--","--","--",49.72593333333333,44.782133333333327,"--","--",55.5,"--","--",52.833333333333336,"--","--",48.933333333333337,58.233333333333327,68.266666666666666,56.466666666666669,56.166666666666664,"--","--","--","--",22.606000000000002,54.850999999999999,72.477000000000004,41.213999999999999,120.039,"--",null,"--","--",null,null,null,null,null,130.29260000000002,"--","--",623.27,2009,1713.6666666666667,"--",14.356,13.474013476827608,18.304013476827606,"--","--","--","--","--","--",801.66666666666663,1675.0333333333335,154.43333333333334,1455.6666666666667,4298.9666666666662,481.43333333333334,248.4058,220461.66666666666,34.648833333333336,89,"--",null,null,null,null,null,61.066666666666663,61.5,null,null,null,null,null,66.5,35.9,62.233333333333327,"--",6.8999999999999995,18289.666666666668,null,182,null,83147.333333333328,null,1045.3333333333285,null,"--",6.9333333333333336,"--","--","--","--","--","--","--","--",null,null,null,null,null,40.496103148965702,42.801933260577677,42.672341795727405,null,null,null,null,null,65.133333333333326,67.3,66.533333333333331,null,null,null,null,null,6.9033333333333333,5.82,7.9466666666666681,8.83,88.333333333333201,8.9266666666666676,5.4966666666666661,6.28,6.53,6.97,7.3566666666666665,1.0766666666666662,null,null,null,null,null,1.0698333333333332,"--","--","--",36.989899999999999,106.2341,0,0,0,null,null,null,null,null,14.533333333333333,"--","--","--",{"$f":"AVERAGE(Monthly!GH233:GH235)","v":0},"--","--","--","--"]
["77'Q4",2168.7159999999999,6018.2179999999998,5991.7110000000002,3811.8,241.32151828507119,1063.4112144241897,2507.0672672907394,485.6694038827564,277.03236293163366,388.8,40.304000000000002,360.36200000000002,275.45600000000002,-84.906000000000006,1512.1179999999999,-75.983999999999995,null,null,null,null,null,83.2,83.933333333333337,202.95720000000003,"--",160.239,136.63,"--","--","--","--","--","--","--","--","--","--",50.045033333333343,45.212700000000005,"--","--",57.1,"--","--",55.866666666666667,"--","--",48.266666666666673,59,64.566666666666663,60.133333333333333,55.666666666666664,"--","--","--","--",22.998000000000001,54.146999999999998,72.662999999999997,42.473999999999997,121.04300000000001,"--",null,"--","--",null,null,null,null,null,136.00053333333335,"--","--",636.67999999999995,2075.3333333333335,1761,"--",14.565333333333333,13.26032496255228,17.92699162921895,"--","--","--","--","--","--",827.66666666666663,1735,165.23333333333332,1505.3333333333333,4382,490,258.25039999999996,221105.33333333334,36.9559,84.4,"--",null,null,null,null,null,61.966666666666661,62.333333333333336,null,null,null,null,null,67.266666666666666,35.9,62.633333333333326,"--",6.666666666666667,18435.333333333332,null,145.66666666666424,null,84125,null,977.66666666667152,null,"--",6.8999999999999995,"--","--","--","--","--","--","--","--",null,null,null,null,null,40.355704078290323,42.935865759141869,42.903228895935207,null,null,null,null,null,65.86666666666666,68.666666666666671,68.099999999999994,null,null,null,null,null,7.6733333333333329,6.5133333333333328,8.1033333333333317,8.9433333333333334,84.000000000000171,8.9333333333333336,6.1099999999999994,6.96,7.1433333333333335,7.38,7.5966666666666667,0.63666666666666671,null,null,null,null,null,1.1018333333333332,"--","--","--",36.566300000000005,103.89996666666667,0,0,0,null,null,null,null,null,14.85,"--","--","--",{"$f":"AVERAGE(Monthly!GH236:GH238)","v":0},"--","--","--","--"]
["78'Q1",2208.6880000000001,6039.1580000000004,5999.9470000000001,3833.9,234.9259812911277,1067.9572870338698,2531.0167316750026,489.91633641595234,276.80067635430566,390.7,48.17,384.53899999999999,281.94499999999999,-102.59399999999999,1513.8630000000001,-78.156999999999996,null,null,null,null,null,82.5,82.966666666666669,210.38596666666663,"--",165.63499999999999,137.44200000000001,"--","--","--","--","--","--","--","--","--","--",49.895733333333332,45.26253333333333,"--","--",56.1,"--","--",53.6,"--","--",50.666666666666664,57.800000000000004,72.600000000000009,56.433333333333337,59.300000000000004,"--","--","--","--",23.771000000000001,54.182000000000002,73.965999999999994,43.872999999999998,121.744,"--",null,"--","--",null,null,null,null,null,141.98806666666667,"--","--",652.42999999999995,1829.3333333333333,1758.3333333333333,"--",14.005666666666665,12.809869782758918,17.24320311609225,"--","--","--","--","--","--",800,1774.8666666666668,170.06666666666666,1307,4413.1000000000004,496.16666666666669,266.2553666666667,221632.66666666666,37.099333333333334,82.266666666666666,"--",null,null,null,null,null,63.033333333333331,63.433333333333337,null,null,null,null,null,67.333333333333329,35.56666666666667,62.766666666666673,"--",6.333333333333333,18643.666666666668,null,208.33333333333576,null,85001.333333333328,null,876.33333333332848,null,"--",6.4666666666666659,"--","--","--","--","--","--","--","--",null,null,null,null,null,40.399962342022945,43.002374026582011,43.110709722394525,null,null,null,null,null,67.466666666666669,69.533333333333331,69.166666666666657,null,null,null,null,null,7.9766666666666666,6.7566666666666668,8.4500000000000011,9.1966666666666654,74.66666666666643,9.1266666666666669,6.3933333333333335,7.31,7.5466666666666669,7.82,8.01,0.70000000000000018,null,null,null,null,null,1.1133333333333333,"--","--","--",35.870433333333331,100.7213,0,0,0,null,null,null,null,null,14.85,"--","--","--",{"$f":"AVERAGE(Monthly!GH239:GH241)","v":0},"--","--","--","--"]
["78'Q2",2336.5630000000001,6273.9629999999997,6235.2460000000001,3915.7,252.4446362249378,1076.1793705097509,2587.0759932653109,527.86104516446903,308.79434327103013,409.5,47.177,385.75599999999997,311.32799999999997,-74.427999999999997,1554.0530000000001,-58.895000000000003,null,null,null,null,null,84.6,85.533333333333346,220.29143333333332,"--",184.13399999999999,153.108,"--","--","--","--","--","--","--","--","--","--",51.905566666666665,46.839566666666663,"--","--",59.466666666666669,"--","--",56,"--","--",53.70000000000001,62.566666666666663,80.933333333333337,61.433333333333337,58.533333333333331,"--","--","--","--",24.033000000000001,55.244,73.19,43.503,141.06700000000001,"--",null,"--","--",null,null,null,null,null,149.08529999999999,"--","--",664.99,2114,1899,"--",15.818333333333333,13.026957890594252,17.22695789059425,"--","--","--","--","--","--",851.66666666666663,1833.9333333333334,158.86666666666665,1485,4456.7333333333336,498.93333333333334,279.49813333333333,222182,39.413733333333333,81.5,"--",null,null,null,null,null,64.466666666666669,64.733333333333334,null,null,null,null,null,69.199999999999989,35.833333333333336,63.133333333333326,"--",6,18846.333333333332,null,202.66666666666424,null,86541,null,1539.6666666666715,null,"--",5.9333333333333336,"--","--","--","--","--","--","--","--",null,null,null,null,null,42.554972919709101,44.573110700282157,44.380099526339158,null,null,null,null,null,69.5,71.133333333333326,70.466666666666669,null,null,null,null,null,8.2999999999999989,7.2833333333333341,8.67,9.4700000000000006,80.000000000000071,9.5499999999999989,6.4766666666666666,7.7866666666666662,7.996666666666667,8.1733333333333338,8.32,0.5333333333333341,null,null,null,null,null,1.1273666666666666,"--","--","--",35.740866666666669,99.656000000000006,0,0,0,null,null,null,null,null,14.85,"--","--","--",{"$f":"AVERAGE(Monthly!GH242:GH244)","v":0},"--","--","--","--"]
["78'Q3",2398.866,6335.317,6292.36,3932.1,249.0370941145647,1084.5319632471537,2598.5309426382814,545.77983358337679,321.3317772205412,415.3,48.08,390.79399999999998,314.74200000000002,-76.051999999999964,1566.415,-53.082000000000001,null,null,null,null,null,84.7,85.566666666666663,228.36306666666667,"--",190.459,158.79599999999999,"--","--","--","--","--","--","--","--","--","--",52.358833333333337,47.377599999999994,"--","--",61,"--","--",57.1,"--","--",55.866666666666667,62.433333333333337,85.066666666666663,65,60,"--","--","--","--",24.398,55.246000000000002,72.986999999999995,44.162999999999997,143.56100000000001,"--",null,"--","--",null,null,null,null,null,157.45140000000001,"--","--",680.99,2019.3333333333333,1742.6666666666667,"--",14.985666666666667,14.056369365642368,18.279702698975701,"--","--","--","--","--","--",785.66666666666663,1887.3666666666668,166.63333333333333,1424.3333333333333,4488.8,494.56666666666661,292.59933333333333,222814.33333333334,42.509133333333331,80.400000000000006,"--",null,null,null,null,null,65.966666666666669,66.133333333333326,null,null,null,null,null,70,35.833333333333329,63.233333333333327,"--",6.0333333333333341,19008.333333333332,null,162,null,87434.666666666672,null,893.66666666667152,null,"--",5.7333333333333334,"--","--","--","--","--","--","--","--",null,null,null,null,null,43.193595030695697,45.060609510643104,44.794992107689481,null,null,null,null,null,70.600000000000009,72.86666666666666,72.033333333333331,null,null,null,null,null,9.1399999999999988,8.1,8.7533333333333321,9.5,74.666666666666799,9.7633333333333336,7.3133333333333326,8.4466666666666672,8.4766666666666666,8.4333333333333318,8.49,4.3333333333333002E-2,null,null,null,null,null,1.1437999999999999,"--","--","--",34.473266666666667,94.821433333333331,0,0,0,null,null,null,null,null,14.85,"--","--","--",{"$f":"AVERAGE(Monthly!GH245:GH247)","v":0},"--","--","--","--"]
["78'Q4",2482.1590000000001,6420.2879999999996,6374.473,3963.6,251.01203593829447,1098.518205773586,2614.0697582881194,563.42093795203721,332.85531575917082,414.1,57.173000000000002,396.154,327.238,-68.915999999999997,1580.5820000000001,-49.164999999999999,null,null,null,null,null,85.8,86.433333333333337,235.32349999999997,"--",201.97900000000001,165.49700000000001,"--","--","--","--","--","--","--","--","--","--",53.301433333333335,48.406033333333333,"--","--",60.266666666666673,"--","--",58.4,"--","--",55.56666666666667,60.199999999999996,85.133333333333326,61.233333333333327,64.233333333333334,"--","--","--","--",24.971,55.594999999999999,73.263999999999996,44.917000000000002,150.52500000000001,"--",null,"--","--",null,null,null,null,null,163.51143333333334,"--","--",690.67,2039.6666666666667,1798,"--",15.081666666666665,14.829434405150247,18.959434405150247,"--","--","--","--","--","--",825,1942.7333333333333,170.63333333333333,1456.3333333333333,4524.2000000000007,488.0333333333333,302.54770000000002,223472.66666666666,45.058933333333336,73.466666666666669,"--",null,null,null,null,null,67.5,67.600000000000009,null,null,null,null,null,70.63333333333334,35.733333333333334,63.466666666666669,"--",5.8999999999999995,19244.333333333332,null,236,null,88339.333333333328,null,904.66666666665697,null,"--",5.666666666666667,"--","--","--","--","--","--","--","--",null,null,null,null,null,43.904961999374152,45.652089712045338,45.323424371948015,null,null,null,null,null,72.199999999999989,74.066666666666663,73.433333333333337,null,null,null,null,null,10.81,9.5833333333333339,9.0266666666666673,9.7866666666666671,75.999999999999972,10.106666666666667,8.57,9.8166666666666664,9.33,8.8433333333333337,8.82,-0.99666666666666615,null,null,null,null,null,1.1785666666666668,"--","--","--",34.289366666666666,93.632133333333329,0,0,0,null,null,null,null,null,14.85,"--","--","--",{"$f":"AVERAGE(Monthly!GH248:GH250)","v":0},"--","--","--","--"]
["79'Q1",2531.5549999999998,6433.0439999999999,6396.357,3983.7,248.03427391391438,1103.3687999934841,2632.2969260926016,576.3904165341819,339.39170935672723,404.6,43.289000000000001,395.06900000000002,327.50700000000001,-67.562000000000012,1566.9010000000001,-39.613,null,null,null,null,null,85.3,86.100000000000009,243.84230000000002,"--",204.31399999999999,159.584,"--","--","--","--","--","--","--","--","--","--",53.529200000000003,48.588000000000001,"--","--",58.133333333333333,"--","--",55.9,"--","--",52.599999999999994,57.533333333333339,86.666666666666671,58.4,65.7,"--","--","--","--",25.72,55.098999999999997,73.766999999999996,46.68,153.22800000000001,"--",null,"--","--",null,null,null,null,null,166.67006666666666,"--","--",703.09,1665.6666666666667,1557.6666666666667,"--",14.773666666666665,15.648011498650717,19.754678165317383,"--","--","--","--","--","--",756.66666666666663,1999.3333333333333,184.53333333333333,1161.3333333333333,4572.2333333333336,467.5,313.54253333333332,224051,45.921600000000005,71.466666666666669,"--",null,null,null,null,null,69.2,69.166666666666671,null,null,null,null,null,71.266666666666666,35.700000000000003,63.733333333333327,"--",5.8666666666666671,19416.666666666668,null,172.33333333333576,null,89114.666666666672,null,775.33333333334303,null,"--",5.9000000000000012,"--","--","--","--","--","--","--","--",null,null,null,null,null,43.784132964201547,45.712646883643473,45.479537309324904,null,null,null,null,null,74.833333333333329,75.86666666666666,75.133333333333326,null,null,null,null,null,11.75,10.073333333333334,9.2933333333333312,10.156666666666666,86.333333333333513,10.41,9.3833333333333346,10.299999999999999,9.7899999999999991,9.1766666666666659,9.1066666666666674,-1.1933333333333316,null,null,null,null,null,1.1864666666666668,"--","--","--",34.829033333333335,94.87403333333333,0,0,0,null,null,null,null,null,15.516666666666666,"--","--","--",{"$f":"AVERAGE(Monthly!GH251:GH253)","v":0},"--","--","--","--"]
["79'Q2",2595.9090000000001,6440.8320000000003,6397.9650000000001,3981.3,242.4266670776247,1101.2371487219596,2637.6361842004162,575.83504843368712,331.5706362804508,397.2,48.975999999999999,397.20299999999997,328.37,-68.83299999999997,1582.9780000000001,-39.238,null,null,null,null,null,84.4,85.3,258.65909999999997,"--",212.08099999999999,161.21,"--","--","--","--","--","--","--","--","--","--",53.422366666666669,48.454966666666671,"--","--",54.433333333333337,"--","--",51.733333333333327,"--","--",52.666666666666664,52.199999999999996,87.3,52.6,66.900000000000006,"--","--","--","--",26.286999999999999,54.947000000000003,73.41,47.84,155.75800000000001,"--",null,"--","--",null,null,null,null,null,174.46016666666665,"--","--",708.69,1845.6666666666667,1640.3333333333333,"--",13.544333333333332,16.453243505290668,20.44324350529067,"--","--","--","--","--","--",725,2039.8666666666668,175,1293.3333333333333,4532.9333333333334,457.09999999999997,324.76500000000004,224637.66666666666,48.438566666666667,66.633333333333326,"--",null,null,null,null,null,71.399999999999991,70.8,null,null,null,null,null,71.36666666666666,35.5,63.433333333333337,"--",5.6999999999999993,19504,null,87.333333333332121,null,89772.666666666672,null,658,null,"--",5.5333333333333341,"--","--","--","--","--","--","--","--",null,null,null,null,null,43.616358516308296,45.63469985347561,45.498838419400947,null,null,null,null,null,77.466666666666669,77.466666666666669,76.833333333333329,null,null,null,null,null,11.716666666666667,10.18,9.39,10.393333333333333,100.3333333333332,10.743333333333332,9.3766666666666669,9.9366666666666656,9.5933333333333337,9.1133333333333351,9.1133333333333333,-0.82333333333333236,null,null,null,null,null,1.1581333333333335,"--","--","--",35.484266666666663,96.322766666666666,0,0,0,null,null,null,null,null,17.683333333333334,"--","--","--",{"$f":"AVERAGE(Monthly!GH254:GH256)","v":0},"--","--","--","--"]
["79'Q3",2670.3879999999999,6487.08,6489.4009999999998,4020.5,249.19058700241936,1114.1358140690425,2657.173598928538,592.83911292236803,341.01100548071253,392.6,18.045000000000002,391.14499999999998,340.19299999999998,-50.951999999999998,1585.117,-44.845999999999997,null,null,null,null,null,83.5,84.5,270.96146666666664,"--",216.244,159.488,"--","--","--","--","--","--","--","--","--","--",53.25963333333334,48.333533333333328,"--","--",50.133333333333333,"--","--",50.333333333333336,"--","--",52.5,48.466666666666661,87.899999999999991,48.9,53.666666666666664,"--","--","--","--",26.896000000000001,54.887999999999998,73.165999999999997,49.000999999999998,155.27000000000001,"--",null,"--","--",null,null,null,null,null,180.57773333333333,"--","--",725.59,1790,1587.6666666666667,"--",13.888,17.588732084587175,21.695398751253837,"--","--","--","--","--","--",723.66666666666663,2105.3666666666668,171.76666666666668,1201,4554.4000000000005,455.3,335.74176666666665,225299,51.159433333333332,63.866666666666674,"--",null,null,null,null,null,73.7,72.63333333333334,null,null,null,null,null,71.833333333333329,35.6,63.666666666666664,"--",5.8666666666666671,19459.666666666668,null,-44.333333333332121,null,90279,null,506.33333333332848,null,"--",5.3999999999999995,"--","--","--","--","--","--","--","--",null,null,null,null,null,43.901228729322781,46.007358491945908,45.839195639601769,null,null,null,null,null,79.900000000000006,79,78.100000000000009,null,null,null,null,null,12.116666666666667,10.946666666666667,9.2899999999999991,10.393333333333333,110.33333333333334,11.160000000000002,9.673333333333332,10.153333333333334,9.5533333333333346,9.1233333333333331,9.1033333333333317,-1.0500000000000025,null,null,null,null,null,1.1666000000000001,"--","--","--",35.179600000000001,94.639799999999994,0,0,0,null,null,null,null,null,25.583333333333332,"--","--","--",{"$f":"AVERAGE(Monthly!GH257:GH259)","v":0},"--","--","--","--"]
["79'Q4",2730.7049999999999,6503.8739999999998,6517.6679999999997,4031.3,242.77458429009528,1120.0087308375289,2668.5166848723757,594.43987980026509,337.25671115209263,377.7,12.975,399.69099999999997,361.59899999999999,-38.091999999999985,1595.44,-54.378,null,null,null,null,null,82.9,84.266666666666666,277.70483333333328,"--",211.864,155.57300000000001,"--","--","--","--","--","--","--","--","--","--",53.441433333333329,48.317466666666668,"--","--",47.266666666666673,"--","--",48.666666666666664,"--","--",44.6,46.033333333333331,86.40000000000002,49.933333333333337,45.29999999999999,"--","--","--","--",27.588000000000001,54.838999999999999,73.215999999999994,50.307000000000002,152.33699999999999,"--",null,"--","--",null,null,null,null,null,183.52046666666669,"--","--",745.48,1567.6666666666667,1337,"--",12.866,18.606304688536685,22.782971355203355,"--","--","--","--","--","--",608.66666666666663,2168.2000000000003,178.93333333333331,1030.6666666666667,4574.1333333333332,431.5333333333333,346.07660000000004,226023.66666666666,53.564033333333327,62.133333333333333,"--",null,null,null,null,null,76.033333333333331,74.833333333333329,null,null,null,null,null,72.066666666666663,35.56666666666667,63.766666666666673,"--",5.9666666666666659,19330,null,-129.66666666666788,null,90577,null,298,null,"--",5.5,"--","--","--","--","--","--","--","--",null,null,null,null,null,43.671526859538815,46.020833210104598,46.009049394841625,null,null,null,null,null,82.7,81.033333333333346,79.86666666666666,null,null,null,null,null,15.08,13.576666666666666,10.543333333333335,11.816666666666668,127.33333333333334,12.456666666666665,11.843333333333334,12.270000000000001,11.563333333333333,10.660000000000002,10.446666666666667,-1.8233333333333341,null,null,null,null,null,1.1750333333333334,"--","--","--",35.940633333333331,96.58186666666667,0,0,0,null,null,null,null,null,30.833333333333332,"--","--","--",{"$f":"AVERAGE(Monthly!GH260:GH262)","v":0},"--","--","--","--"]
["80'Q1",2796.5230000000001,6524.9120000000003,6530.6030000000001,4025.1,238.94749495291947,1119.4649422478542,2666.6875627992263,600.87561602364678,339.25765036975002,348.7,14.343,399.98700000000002,371.68700000000001,-28.300000000000011,1620.201,-63.515999999999998,null,null,null,null,null,82.5,84.100000000000009,285.63586666666669,"--",211.61600000000001,140.44999999999999,"--","--","--","--","--","--","--","--","--","--",53.660466666666672,48.42596666666666,"--","--",46.666666666666664,"--","--",46.366666666666674,"--","--",44.666666666666664,47.5,83.833333333333329,49.4,42.4,"--","--","--","--",28.373999999999999,55.1,72.989000000000004,51.496000000000002,153.858,"--",null,"--","--",null,null,null,null,null,185.73069999999998,10.621969999999999,15.428610000000001,769.7,1246,1155.6666666666667,"--",12.959666666666669,20.507579175926782,24.917579175926779,"--","--","--","--","--","--",535.66666666666663,2230.8000000000002,189.66666666666666,794,4589.7666666666673,409.3,352.19133333333338,226652,54.006,63.466666666666669,"--",null,null,null,null,null,79.033333333333331,77.599999999999994,null,null,null,null,null,71.8,35.366666666666667,63.9,"--",6.3,19239.333333333332,null,-90.666666666667879,null,90892.666666666672,null,315.66666666667152,null,"--",5.7,"--","--","--","--","--","--","--","--",null,null,null,null,null,43.435470065268412,45.964627726343807,46.088723390548225,null,null,null,null,null,86.533333333333346,84.066666666666663,82.36666666666666,null,null,null,null,null,16.396666666666665,15.046666666666667,12.143333333333333,13.479999999999999,133.6666666666666,13.733333333333334,13.353333333333333,13.933333333333332,13.266666666666667,12.270000000000001,11.986666666666666,-1.9466666666666654,null,null,null,null,null,1.1641999999999999,"--","--","--",36.405133333333332,96.613566666666657,0,0,0,null,null,null,null,null,35.833333333333336,"--","--","--",{"$f":"AVERAGE(Monthly!GH263:GH265)","v":0},"--","--","--","--"]
["80'Q2",2799.9380000000001,6392.5780000000004,6403.857,3934.5,213.18115551171988,1104.3041163677244,2617.0147281205559,573.10721099890361,306.17800624328953,284.2,12.244,370.96,378.697,7.7370000000000232,1625.9069999999999,-87.403999999999996,null,null,null,null,null,77.7,80.099999999999994,288.50600000000003,"--",182.422,129.822,"--","--","--","--","--","--","--","--","--","--",51.401666666666664,45.921133333333337,"--","--",32.366666666666667,"--","--",36.1,"--","--",38.633333333333333,27.266666666666666,70.566666666666677,32.5,33.033333333333331,"--","--","--","--",29.105,54.502000000000002,73.081000000000003,53.402000000000001,129.99799999999999,"--",null,"--","--",null,null,null,null,null,181.94226666666668,10.705450000000001,15.606059999999999,788.18,1058,929,"--",9.8963333333333328,21.760311137813773,26.893644471147109,"--","--","--","--","--","--",463.66666666666669,2256.7666666666664,206.0333333333333,691,4523.1333333333332,386.46666666666664,348.87623333333335,227278,53.908966666666664,54.366666666666674,"--",null,null,null,null,null,81.7,80.2,null,null,null,null,null,70.399999999999991,35.1,63.79999999999999,"--",7.333333333333333,18729.666666666668,null,-509.66666666666424,null,90456,null,-436.66666666667152,null,"--",5.9666666666666659,"--","--","--","--","--","--","--","--",null,null,null,null,null,41.220261159051972,44.548553272414338,45.137602546397851,null,null,null,null,null,88.266666666666666,85.933333333333323,84.7,null,null,null,null,null,16.323333333333334,12.686666666666667,11.203333333333333,13.356666666666667,215.33333333333343,14.433333333333332,9.6166666666666671,10.283333333333333,10.226666666666667,10.333333333333334,10.476666666666667,0.19333333333333336,null,null,null,null,null,1.1706000000000001,"--","--","--",36.461266666666667,96.128033333333335,0,0,0,null,null,null,null,null,39.5,"--","--","--",{"$f":"AVERAGE(Monthly!GH266:GH268)","v":0},"--","--","--","--"]
["80'Q3",2860.0439999999999,6382.8919999999998,6487.1080000000002,3976.9,222.63631740356598,1101.6069249629381,2652.656757633496,576.91311592288309,304.2870375433148,289.10000000000002,-52.881999999999998,344.28,377.89600000000002,33.616000000000042,1601.896,-100.346,null,null,null,null,null,75.400000000000006,78.3,291.43329999999997,"--",191.24600000000001,131.45400000000001,"--","--","--","--","--","--","--","--","--","--",50.563899999999997,44.913733333333333,"--","--",43.533333333333331,"--","--",40.233333333333334,"--","--",37.466666666666661,48.033333333333331,64.766666666666666,45.699999999999996,39.200000000000003,"--","--","--","--",29.824999999999999,54.685000000000002,73.119,54.539000000000001,141.08799999999999,"--",null,"--","--",null,null,null,null,null,178.8287,10.464090000000001,15.34695,809.24,1392,1370,"--",10.954333333333333,20.603199038485045,25.969865705151708,"--","--","--","--","--","--",630.33333333333337,2337.2333333333331,218.1,956,4578.2666666666664,412.13333333333338,347.59349999999995,227955,54.285666666666664,67.766666666666666,"--",null,null,null,null,null,83.233333333333334,81.399999999999991,null,null,null,null,null,69.933333333333337,35.033333333333331,63.699999999999996,"--",7.666666666666667,18378.333333333332,null,-351.33333333333576,null,90048,null,-408,null,"--",7.3999999999999995,"--","--","--","--","--","--","--","--",null,null,null,null,null,40.999141326790344,44.545081978762255,45.156822104326189,null,null,null,null,null,91.166666666666671,88.300000000000011,86.899999999999991,null,null,null,null,null,11.61,9.836666666666666,11.576666666666668,13.166666666666666,158.9999999999998,12.65,9.1533333333333342,10.136666666666667,10.376666666666667,10.663333333333332,10.953333333333333,0.81666666666666643,null,null,null,null,null,1.1587333333333334,"--","--","--",35.895266666666664,93.436266666666668,0,0,0,null,null,null,null,null,37.833333333333336,"--","--","--",{"$f":"AVERAGE(Monthly!GH269:GH271)","v":0},"--","--","--","--"]
["80'Q4",2993.5250000000001,6501.1840000000002,6546.8609999999999,4029.7,229.42070304674124,1105.9137305931615,2694.3655663600966,589.06587671018235,307.9120167366026,317.39999999999998,-15.002000000000001,362.75400000000002,375.62,12.865999999999985,1601.8440000000001,-93.74,null,null,null,null,null,78.3,80.766666666666666,306.45663333333329,"--",196.98699999999999,143.75299999999999,"--","--","--","--","--","--","--","--","--","--",52.51486666666667,47.030333333333338,"--","--",55.566666666666663,"--","--",51.966666666666661,"--","--",45.833333333333336,60.066666666666663,75.5,61.566666666666663,47.800000000000004,"--","--","--","--",30.655999999999999,55.295000000000002,73.424999999999997,55.44,150.393,"--",null,"--","--",null,null,null,null,null,178.64186666666669,10.25113,15.08563,833.93,1505,1332.6666666666667,"--",10.959333333333333,19.939421260868741,25.119421260868744,"--","--","--","--","--","--",551.66666666666663,2445.0666666666666,238.96666666666667,979,4668.1666666666661,411.5333333333333,350.50743333333338,228602.66666666666,54.591100000000004,72.066666666666663,"--",null,null,null,null,null,85.566666666666677,83.933333333333337,null,null,null,null,null,71.033333333333346,35.266666666666666,63.699999999999996,"--",7.3999999999999995,18582.333333333332,null,204,null,90727.333333333328,null,679.33333333332848,null,"--",7.5666666666666664,"--","--","--","--","--","--","--","--",null,null,null,null,null,42.254937726400101,45.368440038697855,45.845823781756103,null,null,null,null,null,93.266666666666666,90.033333333333346,89.266666666666666,null,null,null,null,null,16.733333333333334,15.853333333333333,12.83,14.670000000000002,184.00000000000017,14.263333333333334,13.613333333333335,13.840000000000002,13.226666666666667,12.646666666666667,12.423333333333332,-1.4166666666666696,null,null,null,null,null,1.1841000000000002,"--","--","--",36.651566666666675,95.237366666666674,0,0,0,null,null,null,null,null,36.333333333333336,"--","--","--",{"$f":"AVERAGE(Monthly!GH272:GH274)","v":0},"--","--","--","--"]
["81'Q1",3131.799,6635.7259999999997,6581.143,4050.9,235.92880149177813,1115.6801736637185,2699.2910248445037,601.1696344297909,307.95593121534807,311.8,61.110999999999997,378.30500000000001,382.70800000000003,4.40300000000002,1622.7670000000001,-71.823999999999998,null,null,null,null,null,77.7,80.366666666666674,313.32083333333338,"--",200.19399999999999,153.23599999999999,"--","--","--","--","--","--","--","--","--","--",52.641766666666662,47.133066666666672,"--","--",49.199999999999996,"--","--",47.699999999999996,"--","--",43.800000000000004,50,73.266666666666666,51.833333333333336,48.966666666666669,"--","--","--","--",31.459,56.23,73.305999999999997,55.947000000000003,155.62,"--",null,"--","--",null,null,null,null,null,179.24350000000001,10.31109,15.173069999999999,866.85,1366.3333333333333,1201,"--",11.779000000000002,18.699670729666462,23.903004062999798,"--","--","--","--","--","--",511.66666666666669,2503.9333333333334,225.76666666666665,867.66666666666663,4655.6333333333341,376.43333333333334,354.96713333333332,229077.33333333334,55.861600000000003,68.266666666666666,"--",null,null,null,null,null,87.933333333333323,85.90000000000002,null,null,null,null,null,71.466666666666669,35.299999999999997,63.966666666666661,"--",7.4333333333333336,18633,null,50.666666666667879,null,91117.333333333328,null,390,null,"--",7.2,"--","--","--","--","--","--","--","--",null,null,null,null,null,43.377869222335477,46.150262478670015,46.506397180489209,null,null,null,null,null,96.100000000000009,92,91.633333333333326,null,null,null,null,null,19.213333333333335,16.569999999999997,13.163333333333334,15.246666666666664,208.33333333333303,15.143333333333333,14.39,14.12,13.583333333333334,13.196666666666667,12.959999999999999,-1.1600000000000001,null,null,null,null,null,1.1935666666666667,1.5987666666666669,"--","--",37.803199999999997,98.203433333333351,0,0,0,null,null,null,null,null,38,"--","--","--",{"$f":"AVERAGE(Monthly!GH275:GH277)","v":0},"--","--","--","--"]
["81'Q2",3167.2510000000002,6587.2690000000002,6597.098,4050.1,226.74992679807042,1120.6395256015514,2702.710547600378,613.37139828478087,309.96467349393998,301.3,15.315,378.87599999999998,384.79500000000002,5.9190000000000396,1627.876,-75.567999999999998,null,null,null,null,null,77.599999999999994,80,323.58499999999998,"--",188.042,158.19499999999999,"--","--","--","--","--","--","--","--","--","--",52.804766666666666,47.459266666666657,"--","--",51.933333333333337,"--","--",48.766666666666673,"--","--",47.5,53.266666666666673,69.066666666666663,55.966666666666669,49.766666666666673,"--","--","--","--",32.006,55.527000000000001,73.209000000000003,57.64,147.732,"--",null,"--","--",null,null,null,null,null,180.46900000000002,10.456379999999999,15.38298,898.18,1181.6666666666667,1113,"--",10.184333333333333,17.27495389844724,22.454953898447243,"--","--","--","--","--","--",450.66666666666669,2551.4333333333334,227.79999999999998,786.33333333333337,4654.5333333333328,366.8,361.03640000000001,229579.66666666666,57.878166666666665,73.933333333333323,"--",null,null,null,null,null,89.766666666666666,87.8,null,null,null,null,null,71.7,35.266666666666666,64.066666666666663,"--",7.3999999999999995,18755.333333333332,null,122.33333333333212,null,91355.333333333328,null,238,null,"--",6.9666666666666659,"--","--","--","--","--","--","--","--",null,null,null,null,null,42.916988821389879,45.984892893743833,46.458268155126191,null,null,null,null,null,98.266666666666666,94.033333333333346,93.766666666666652,null,null,null,null,null,18.93,17.78,13.983333333333334,15.770000000000001,178.66666666666671,16.226666666666663,14.906666666666666,15.126666666666665,14.706666666666665,14.19,13.75,-1.3766666666666652,null,null,null,null,null,1.1987000000000001,1.7178333333333331,"--","--",40.043700000000001,104.45359999999999,0,0,0,null,null,null,null,null,37.333333333333336,"--","--","--",{"$f":"AVERAGE(Monthly!GH278:GH280)","v":0},"--","--","--","--"]
["81'Q3",3261.203,6662.8580000000002,6602.1980000000003,4066.4,233.64687389233907,1123.1192015704678,2709.6339245371933,627.38627564432761,315.3904183127558,278,63.057000000000002,374.553,376.61399999999998,2.0609999999999786,1621.636,-82.584999999999994,null,null,null,null,null,76.8,80.13333333333334,335.49853333333334,"--",192.364,171.69,"--","--","--","--","--","--","--","--","--","--",53.292133333333332,47.395466666666671,"--","--",45.833333333333336,"--","--",44.533333333333339,"--","--",44.533333333333331,45.666666666666664,66.100000000000009,46.966666666666661,46.800000000000004,"--","--","--","--",32.700000000000003,55.996000000000002,73.307000000000002,58.396000000000001,153.94999999999999,"--",null,"--","--",null,null,null,null,null,181.63643333333334,10.357839999999999,15.25592,932.03,964,890.33333333333337,"--",11.175333333333333,18.252520378653688,23.432520378653688,"--","--","--","--","--","--",382.33333333333331,2647.7666666666664,267.3,648,4749.7333333333336,354.0333333333333,366.47596666666669,230188.33333333334,59.512900000000002,74.8,"--",null,null,null,null,null,92.266666666666652,90.766666666666666,null,null,null,null,null,71.666666666666671,35.133333333333333,63.699999999999996,"--",7.4000000000000012,18748.333333333332,null,-7,null,91549,null,193.66666666667152,null,"--",7.0333333333333341,"--","--","--","--","--","--","--","--",null,null,null,null,null,43.229730005179114,46.286326169570678,46.768141902385629,null,null,null,null,null,98.933333333333337,95.333333333333329,95.5,null,null,null,null,null,20.323333333333334,17.576666666666664,14.920000000000002,16.47666666666667,155.66666666666686,17.426666666666666,15.053333333333333,16.319999999999997,16.03,15.426666666666668,14.846666666666666,-1.4733333333333309,null,null,null,null,null,1.2115666666666669,1.7730666666666668,"--","--",42.061300000000003,109.79243333333334,0,0,0,null,null,null,null,null,36,"--","--","--",{"$f":"AVERAGE(Monthly!GH281:GH283)","v":0},"--","--","--","--"]
["81'Q4",3283.5360000000001,6585.1270000000004,6567.4679999999998,4035.9,216.86498482023137,1127.4260072006912,2691.6090079790774,641.58083091874039,319.03261075141342,249.5,32.057000000000002,385.29399999999998,378.35899999999998,-6.9350000000000023,1639.902,-113.286,null,null,null,null,null,74.2,77.8,345.67180000000002,"--",188.54300000000001,169.49799999999999,"--","--","--","--","--","--","--","--","--","--",52.106233333333336,46.114066666666666,"--","--",37.966666666666661,"--","--",35.566666666666663,"--","--",42.79999999999999,37.366666666666667,56.866666666666674,37.6,39.800000000000004,"--","--","--","--",33.209000000000003,55.332999999999998,73.182000000000002,60.015999999999998,145.30199999999999,"--",null,"--","--",null,null,null,null,null,182.06966666666665,10.422700000000001,15.38618,963.92,873.33333333333337,758.33333333333337,"--",9.1173333333333328,17.821007641518829,23.584340974852157,"--","--","--","--","--","--",398.33333333333331,2682.9333333333329,289,541.33333333333337,4759.0999999999995,343.5333333333333,371.17266666666666,230817.33333333334,60.770933333333325,65.7,"--",null,null,null,null,null,93.766666666666652,92.533333333333346,null,null,null,null,null,70.966666666666669,35.033333333333331,63.766666666666659,"--",8.2333333333333343,18399.333333333332,null,-349,null,91148,null,-401,null,"--",6.8666666666666671,"--","--","--","--","--","--","--","--",null,null,null,null,null,42.302746446673332,45.623867431212226,46.357522425301681,null,null,null,null,null,98.833333333333329,97.033333333333346,97.5,null,null,null,null,null,17.013333333333332,13.586666666666666,14.616666666666667,16.683333333333334,206.66666666666663,17.733333333333334,11.75,13.546666666666667,13.903333333333334,14.13,14.086666666666666,0.53999999999999915,null,null,null,null,null,1.1917333333333335,1.7463333333333333,"--","--",41.466900000000003,106.23200000000001,0,0,0,null,null,null,null,null,35.333333333333336,"--","--","--",{"$f":"AVERAGE(Monthly!GH284:GH286)","v":0},"--","--","--","--"]
["82'Q1",3273.8090000000002,6474.973,6544.48,4062.7,223.81309621045156,1129.5141553850417,2709.3727484045066,624.87078483620382,295.32855674285304,235,-30.123999999999999,374.31,361.95299999999997,-12.357000000000028,1638.1969999999999,-133.184,null,null,null,null,null,71.900000000000006,75.7,359.84460000000007,"--",168.34399999999999,156.11099999999999,"--","--","--","--","--","--","--","--","--","--",51.035699999999999,44.959833333333336,"--","--",37.766666666666666,"--","--",34.366666666666667,"--","--",33.9,39.633333333333333,43.166666666666664,39.033333333333331,39.1,"--","--","--","--",34.064999999999998,54.936,74.168999999999997,62.008000000000003,130.011,"--",null,"--","--",null,null,null,null,null,182.86206666666669,10.503550000000001,15.509040000000001,1004.57,880,831,"--",10.418999999999999,16.418464314694152,22.601797648027489,"--","--","--","--","--","--",369,2715.0666666666671,279.53333333333336,569,4764.9000000000005,345.33333333333331,376.14330000000001,231313.33333333334,61.430066666666669,66.5,"--",null,null,null,null,null,94.600000000000009,93.666666666666671,null,null,null,null,null,69.600000000000009,34.699999999999996,63.766666666666673,"--",8.8333333333333339,17961.666666666668,null,-437.66666666666424,null,90520.333333333328,null,-627.66666666667152,null,"--",7.4333333333333336,"--","--","--","--","--","--","--","--",null,null,null,null,null,41.019442355578427,45.0471220814199,46.008588687323559,null,null,null,null,null,99.7,98.3,98.5,null,null,null,null,null,16.27,14.226666666666667,15.01,17.033333333333335,202.33333333333351,17.386666666666667,12.813333333333333,14.333333333333334,14.526666666666666,14.39,14.293333333333331,-4.00000000000027E-2,null,null,null,null,null,1.2090333333333334,1.8114000000000001,"--","--",43.498366666666662,109.96380000000001,0,0,0,null,null,null,null,null,31.296666666666667,"--","--","--",{"$f":"AVERAGE(Monthly!GH287:GH289)","v":0},"--","--","--","--"]
["82'Q2",3331.2809999999999,6510.2470000000003,6542.875,4077.7,224.63172494567635,1127.556516462213,2725.5117585921103,604.99187370966706,272.18051659826256,227.5,-5.9180000000000001,368.19299999999998,364.12700000000001,-4.0659999999999741,1648.894,-139.32499999999999,null,null,null,null,null,71.099999999999994,74.3,375.86766666666671,"--",169.65600000000001,167.76900000000001,"--","--","--","--","--","--","--","--","--","--",50.402366666666666,44.742799999999995,"--","--",37.199999999999996,"--","--",30.099999999999998,"--","--",29.899999999999995,40.333333333333336,38.9,39.300000000000004,41.833333333333336,"--","--","--","--",34.362000000000002,55.05,74.033000000000001,62.420999999999999,127.629,"--",null,"--","--",null,null,null,null,null,184.68190000000001,10.564080000000001,15.584160000000001,1047.32,948,918,"--",9.9536666666666687,16.338674127162665,22.942007460496001,"--","--","--","--","--","--",364.33333333333331,2758.5666666666671,285.73333333333335,601,4792.3666666666668,343.93333333333334,380.35290000000003,231815.33333333334,62.863133333333337,66.233333333333334,"--",null,null,null,null,null,95.966666666666654,95.40000000000002,null,null,null,null,null,69.3,34.799999999999997,64,"--",9.4333333333333353,17567,null,-394.66666666666788,null,90041,null,-479.33333333332848,null,"--",8.7000000000000011,"--","--","--","--","--","--","--","--",null,null,null,null,null,40.827645991920605,45.097363641981893,46.17039166212956,null,null,null,null,null,99.8,99.433333333333337,99.5,null,null,null,null,null,16.5,14.513333333333334,14.51,16.78,227.00000000000014,16.756666666666664,12.42,13.796666666666667,14.149999999999999,14.06,13.93,0.13333333333333286,null,null,null,null,null,1.2447999999999999,1.8567333333333333,"--","--",45.654299999999999,114.05396666666667,0,0,0,null,null,null,null,null,34.816666666666663,"--","--","--",{"$f":"AVERAGE(Monthly!GH290:GH292)","v":0},"--","--","--","--"]
["82'Q3",3367.0720000000001,6486.8,6502.1180000000004,4109.2,226.45317388155141,1132.3636075949369,2750.3832185235115,587.38343805280067,253.66058116156353,226.7,6.5780000000000003,385.27699999999999,347.99099999999999,-37.286000000000001,1659.271,-175.82400000000001,null,null,null,null,null,70.099999999999994,72.966666666666654,386.98049999999995,"--",165.33600000000001,165.071,"--","--","--","--","--","--","--","--","--","--",49.701799999999992,44.33206666666667,"--","--",38.499999999999993,"--","--",30.966666666666669,"--","--",31.566666666666666,40.400000000000006,40.4,40.766666666666666,45.666666666666664,"--","--","--","--",34.895000000000003,55.154000000000003,73.902000000000001,63.268999999999998,124.658,"--",null,"--","--",null,null,null,null,null,185.86553333333333,10.463939999999999,15.4986,1089.17,1118.6666666666667,1004,"--",10.107333333333335,15.721197876248389,22.651197876248389,"--","--","--","--","--","--",421,2799.7333333333336,285.79999999999995,660.66666666666663,4818,344.26666666666671,383.22166666666664,232393,64.762100000000004,66.7,"--",null,null,null,null,null,97.633333333333326,97,null,null,null,null,null,68.63333333333334,34.766666666666666,64.066666666666663,"--",9.9,17170.666666666668,null,-396.33333333333212,null,89356.333333333328,null,-684.66666666667152,null,"--",8.9,"--","--","--","--","--","--","--","--",null,null,null,null,null,40.386617732073383,45.077272141528212,46.316303927752031,null,null,null,null,null,100.23333333333333,100.5,100.66666666666667,null,null,null,null,null,14.716666666666669,11.006666666666668,13.753333333333332,16.250000000000004,249.66666666666714,16.173333333333336,9.3166666666666682,11.840000000000002,12.633333333333333,13.106666666666667,13.116666666666665,1.2766666666666637,null,null,null,null,null,1.25,1.9433,"--","--",48.429566666666666,118.83453333333334,0,0,0,null,null,null,null,null,34.580000000000005,"--","--","--",{"$f":"AVERAGE(Monthly!GH293:GH295)","v":0},"--","--","--","--"]
["82'Q4",3407.81,6493.1279999999997,6597.1729999999998,4184.2,236.78836166376411,1144.0006834139747,2803.4109549222612,577.22346868492411,244.98179893591504,243.2,-57.453000000000003,370.154,332.05599999999998,-38.098000000000013,1685.777,-210.17500000000001,null,null,null,null,null,68.3,71.400000000000006,392.13623333333334,"--",159.97800000000001,164.483,"--","--","--","--","--","--","--","--","--","--",48.767466666666671,43.337266666666665,"--","--",40.466666666666661,"--","--",31.7,"--","--",33.6,43.133333333333333,39.133333333333333,42.866666666666667,47.333333333333336,"--","--","--","--",35.390999999999998,55.655999999999999,74.137,63.588000000000001,112.81,"--",null,"--","--",null,null,null,null,null,187.03893333333335,10.419180000000001,15.48386,1124.74,1282.6666666666667,1243,"--",10.973333333333334,15.111816392214429,22.578483058881094,"--","--","--","--","--","--",518.33333333333337,2844.5,259.73333333333329,821.33333333333337,4839.7,372.7,387.19419999999997,232989.66666666666,65.811566666666664,72.466666666666669,"--",null,null,null,null,null,97.933333333333337,97.333333333333329,null,null,null,null,null,67.666666666666671,34.633333333333333,64.13333333333334,"--",10.666666666666666,16755,null,-415.66666666666788,null,88819.333333333328,null,-537,null,"--",9.9666666666666668,"--","--","--","--","--","--","--","--",null,null,null,null,null,40.331608353299217,45.570743167270969,46.816961646166021,null,null,null,null,null,100.33333333333333,101.69999999999999,101.43333333333332,null,null,null,null,null,11.956666666666665,9.2866666666666671,11.876666666666665,14.39,251.33333333333354,14.019999999999998,7.9066666666666672,9.1300000000000008,9.8833333333333346,10.466666666666667,10.666666666666666,1.5366666666666653,null,null,null,null,null,1.2316,1.9778,"--","--",49.751333333333342,120.18163333333332,0,0,0,null,null,null,null,null,33.85,"--","--","--",{"$f":"AVERAGE(Monthly!GH296:GH298)","v":0},"--","--","--","--"]
["83'Q1",3480.3209999999999,6578.1750000000002,6671.5360000000001,4224.8,239.16238499591594,1147.6984458237623,2837.9391691803221,568.71326926263521,242.16847313758035,284.60000000000002,-53.533999999999999,378.63,337.42200000000003,-41.20799999999997,1701.92,-206.95400000000001,null,null,null,null,null,69.7,72.066666666666663,393.44893333333329,"--",162.24199999999999,180.41300000000001,"--","--","--","--","--","--","--","--","--","--",49.326266666666669,44.310233333333336,"--","--",51.433333333333337,"--","--",43.4,"--","--",40.200000000000003,57.233333333333327,46.766666666666673,56.766666666666673,49.133333333333326,"--","--","--","--",35.783000000000001,56.398000000000003,74.531000000000006,63.448,112.017,"--",null,"--","--",null,null,null,null,null,188.41866666666667,10.392250000000001,15.4581,1170.3599999999999,1630.3333333333333,1457.3333333333333,"--",10.653666666666668,13.960866906496284,21.21753357316295,"--","--","--","--","--","--",580,2881.8000000000006,260.56666666666666,1028.6666666666667,4881.2333333333336,587.53333333333342,393.25726666666668,233469.33333333334,67.007966666666675,75.266666666666666,"--",null,null,null,null,null,98,97.933333333333337,null,null,null,null,null,68,34.666666666666664,63.79999999999999,"--",10.366666666666667,16707.333333333332,null,-47.666666666667879,null,89000.333333333328,null,181,null,"--",10.433333333333332,"--","--","--","--","--","--","--","--",null,null,null,null,null,41.371931515051642,46.355533309561437,47.43412446860151,null,null,null,null,null,100.36666666666667,102.16666666666667,102.03333333333332,null,null,null,null,null,10.88,8.6533333333333324,11.843333333333334,13.833333333333334,199.00000000000003,13.030000000000001,8.1066666666666674,8.86,9.543333333333333,10.123333333333333,10.563333333333333,1.7033333333333331,null,null,null,null,null,1.2275666666666665,1.9575000000000002,"--","--",50.069833333333328,117.05043333333333,0,0,0,null,null,null,null,null,29.653333333333336,"--","--","--",{"$f":"AVERAGE(Monthly!GH299:GH301)","v":0},"--","--","--","--"]
["83'Q2",3583.8440000000001,6728.2870000000003,6769.7709999999997,4308.5,256.59917705620353,1161.2061543912807,2890.6946685525154,576.71710365211993,253.45020096607874,318.3,-8.42,407.73899999999998,338.44099999999997,-69.298000000000002,1719.0889999999999,-200.83600000000001,null,null,null,null,null,71.599999999999994,73.566666666666663,392.58533333333338,"--",181.458,195.453,"--","--","--","--","--","--","--","--","--","--",50.414433333333328,45.615700000000004,"--","--",55.933333333333337,"--","--",48.433333333333337,"--","--",45.800000000000004,61.166666666666664,59.133333333333333,60.966666666666669,53.79999999999999,"--","--","--","--",36.140999999999998,57.695999999999998,74.373999999999995,62.64,127.864,"--",null,"--","--",null,null,null,null,null,192.26643333333334,10.417199999999999,15.47753,1209.48,1660.3333333333333,1668,"--",12.052333333333332,13.438437089035338,20.531770422368666,"--","--","--","--","--","--",651,2931.9333333333329,235.39999999999998,1085.3333333333333,4915.9333333333334,675.33333333333337,401.07099999999997,233940.33333333334,69.18986666666666,91.533333333333317,"--",null,null,null,null,null,99.133333333333326,98.899999999999991,null,null,null,null,null,69.13333333333334,34.866666666666667,63.933333333333337,"--",10.133333333333333,16879.666666666668,null,172.33333333333576,null,89677,null,676.66666666667152,null,"--",11.5,"--","--","--","--","--","--","--","--",null,null,null,null,null,42.962165934257612,47.571755545878204,48.447916353459441,null,null,null,null,null,100.73333333333333,102.60000000000001,102.46666666666665,null,null,null,null,null,10.5,8.8033333333333328,11.57,13.25,167.99999999999997,12.76,8.3966666666666665,9.1800000000000015,9.7466666666666679,10.226666666666667,10.543333333333335,1.3633333333333333,null,null,null,null,null,1.2313333333333334,1.992733333333333,"--","--",51.970300000000002,119.27456666666667,0,0,0,null,null,null,null,null,30.536666666666665,"--","--","--",{"$f":"AVERAGE(Monthly!GH302:GH304)","v":0},"--","--","--","--"]
["83'Q3",3692.2570000000001,6860.0219999999999,6894.7269999999999,4384.1000000000004,266.46365331566199,1178.8684077839139,2938.7679389004247,601.05529393851236,278.47201608734571,349.9,-2.911,439.49900000000002,343.53800000000001,-95.961000000000013,1747.296,-217.34100000000001,null,null,null,null,null,74.2,76,400.63670000000002,"--",192.23500000000001,202.976,"--","--","--","--","--","--","--","--","--","--",52.1389,47.312199999999997,"--","--",63.066666666666663,"--","--",55.833333333333336,"--","--",49.566666666666663,68.433333333333323,66.866666666666674,69.733333333333334,59.933333333333337,"--","--","--","--",36.341000000000001,58.110999999999997,74.075999999999993,62.536000000000001,140.63,"--",null,"--","--",null,null,null,null,null,199.75609999999998,10.42104,15.45391,1252.8,1801.6666666666667,1697.6666666666667,"--",12.346333333333334,11.893011923820517,18.449678590487185,"--","--","--","--","--","--",595.33333333333337,2991.0666666666671,235.9,1093,4990.0666666666666,687.9,413.76323333333335,234503,72.556699999999992,91.2,"--",null,null,null,null,null,100.09999999999998,100.13333333333333,null,null,null,null,null,70.2,34.93333333333333,64.233333333333334,"--",9.3666666666666654,17144,null,264.33333333333212,null,90606.333333333328,null,929.33333333332848,null,"--",9.5666666666666664,"--","--","--","--","--","--","--","--",null,null,null,null,null,44.505589149792549,48.729044826678702,49.417241923679697,null,null,null,null,null,101.7,103.36666666666667,103.06666666666666,null,null,null,null,null,10.796666666666667,9.4599999999999991,12.343333333333334,13.526666666666666,118.33333333333317,13.653333333333334,9.14,10.296666666666665,10.85,11.423333333333334,11.626666666666667,1.3300000000000018,null,null,null,null,null,1.2328999999999999,1.9892000000000001,"--","--",54.031166666666671,122.72783333333332,0,0,0,null,null,null,null,null,31.560000000000002,"--","--","--",{"$f":"AVERAGE(Monthly!GH305:GH307)","v":0},"--","--","--","--"]
["83'Q4",3796.1210000000001,7001.4889999999996,6986.3029999999999,4453.2,279.60264451601955,1193.246178094912,2980.3511773890682,637.39923580913194,315.30676553172134,364.7,30.417000000000002,461.05799999999999,350.46,-110.59800000000001,1718.037,-194.904,null,null,null,null,null,76.3,77.833333333333329,409.7688,"--",197.02199999999999,217.63499999999999,"--","--","--","--","--","--","--","--","--","--",53.507533333333335,48.768233333333335,"--","--",66.766666666666666,"--","--",59.233333333333341,"--","--",55.566666666666663,71.166666666666671,69.599999999999994,73.63333333333334,64.13333333333334,"--","--","--","--",36.734000000000002,58.393000000000001,74.19,62.908000000000001,143.131,"--",null,"--","--",null,null,null,null,null,209.77699999999996,10.472530000000001,15.4899,1290.26,1729.3333333333333,1670.3333333333333,"--",13.426666666666668,11.767554087263635,17.74088742059697,"--","--","--","--","--","--",683,3076.2999999999997,256.10000000000002,1052.6666666666667,5097.5999999999995,685.4,430.27310000000006,235073.33333333334,76.978800000000007,91.533333333333317,"--",null,null,null,null,null,101.09999999999998,101.43333333333334,null,null,null,null,null,71.86666666666666,35.133333333333333,64.066666666666663,"--",8.5333333333333332,17465.666666666668,null,321.66666666666788,null,91872,null,1265.6666666666715,null,"--",9.1333333333333346,"--","--","--","--","--","--","--","--",null,null,null,null,null,45.966098337070662,49.691608190888516,50.216370971810242,null,null,null,null,null,102.2,103.83333333333333,103.56666666666666,null,null,null,null,null,11,9.43,12.410000000000002,13.606666666666667,119.66666666666654,13.466666666666667,8.7999999999999989,9.9533333333333331,10.69,11.409999999999998,11.686666666666666,1.7333333333333325,null,null,null,null,null,1.2385333333333335,1.9841333333333333,"--","--",55.155066666666663,122.73303333333332,0,0,0,null,null,null,null,null,29.83,"--","--","--",{"$f":"AVERAGE(Monthly!GH308:GH310)","v":0},"--","--","--","--"]
["84'Q1",3912.7739999999999,7140.5969999999998,7038.7669999999998,4490.8999999999996,290.1527223412287,1196.2696426535033,3004.477635005268,657.63750276540065,335.15939796575316,374.9,96.864000000000004,498.12599999999998,357.78399999999999,-140.34199999999998,1738.143,-179.75700000000001,null,null,null,null,null,78.3,79.833333333333329,423.3775,"--",204.66,232.72399999999999,"--","--","--","--","--","--","--","--","--","--",55.076600000000006,50.281733333333335,"--","--",60.233333333333327,"--","--",55.033333333333331,"--","--",52.70000000000001,63.166666666666679,69.7,61.800000000000004,63.800000000000004,"--","--","--","--",37.195,58.488,74.108000000000004,63.594000000000001,156.488,"--",null,"--","--",null,null,null,null,null,218.36779999999999,10.521990000000001,15.48861,1333.73,1940,1842.6666666666667,"--",14.031666666666666,12.492311947472674,17.998978614139343,"--","--","--","--","--","--",676,3167.4333333333329,294.2,1221,5201.5666666666666,691,450.14943333333332,235529,80.958500000000001,99.5,"--",null,null,null,null,null,102.53333333333335,102.83333333333333,null,null,null,null,null,72.933333333333323,35.166666666666664,64.033333333333331,"--",7.8666666666666671,17721.333333333332,null,255.66666666666424,null,93085.333333333328,null,1213.3333333333285,null,"--",8.5666666666666664,"--","--","--","--","--","--","--","--",null,null,null,null,null,47.258650950505739,50.346413034451722,50.771712229354229,null,null,null,null,null,103.33333333333333,104.8,104.39999999999999,null,null,null,null,null,11.07,9.6866666666666656,12.283333333333333,13.743333333333334,146.00000000000009,13.33,9.17,10.176666666666666,10.913333333333334,11.643333333333331,11.943333333333333,1.7666666666666675,null,null,null,null,null,1.2553666666666665,2.0588000000000002,"--","--",56.473100000000009,123.45723333333335,0,0,0,null,null,null,null,null,30.198666666666668,"--","--","--",{"$f":"AVERAGE(Monthly!GH311:GH313)","v":0},"--","--","--","--"]
["84'Q2",4015,7266.01,7169.7479999999996,4555,296.88594368845247,1222.4149980450611,3035.6990582664866,688.24808571620554,362.52714516138411,381.9,91.063999999999993,518.99400000000003,366.678,-152.31600000000003,1777.0820000000001,-189.01400000000001,null,null,null,null,null,79.099999999999994,80.7,445.04266666666672,"--",205.21299999999999,235.339,"--","--","--","--","--","--","--","--","--","--",55.932200000000002,51.050099999999993,"--","--",59.233333333333327,"--","--",54.9,"--","--",54.79999999999999,60.966666666666669,66.13333333333334,61.29999999999999,61.1,"--","--","--","--",37.558,58.850999999999999,74.129000000000005,63.819000000000003,155.988,"--",null,"--","--",null,null,null,null,null,229.35606666666664,10.65104,15.604010000000001,1348.83,1822.6666666666667,1777,"--",14.352333333333334,11.838429674735536,17.04176300806887,"--","--","--","--","--","--",628,3251.1666666666665,307.36666666666667,1103.3333333333333,5288.333333333333,700.69999999999993,471.85999999999996,235997.33333333334,86.945400000000006,96.566666666666663,"--",null,null,null,null,null,103.5,104.10000000000001,null,null,null,null,null,73.8,35.133333333333333,64.466666666666669,"--",7.4333333333333336,17918.333333333332,null,197,null,94123.666666666672,null,1038.333333333343,null,"--",8.2666666666666657,"--","--","--","--","--","--","--","--",null,null,null,null,null,48.425169874466832,51.128836838391415,51.472500309113386,null,null,null,null,null,104.03333333333335,105.36666666666667,105.19999999999999,null,null,null,null,null,12.306666666666667,10.556666666666667,13.213333333333333,14.700000000000001,148.6666666666668,14.003333333333332,9.7966666666666669,11.546666666666667,12.356666666666667,13.006666666666666,13.200000000000001,1.6533333333333342,null,null,null,null,null,1.2926666666666666,2.1657666666666668,"--","--",58.110599999999998,124.9268,0,0,0,null,null,null,null,null,30.368333333333329,"--","--","--",{"$f":"AVERAGE(Monthly!GH314:GH316)","v":0},"--","--","--","--"]
["84'Q3",4087.3780000000002,7337.4930000000004,7236.8360000000002,4590,296.97803942116525,1223.3503144193014,3069.6716461595338,709.36840789090718,381.54400630570262,378.3,95.072000000000003,532.42700000000002,374.77199999999999,-157.65500000000003,1791.778,-195.35499999999999,null,null,null,null,null,79.2,80.8,458.83606666666668,"--",195.965,242.512,"--","--","--","--","--","--","--","--","--","--",56.333499999999994,51.492266666666673,"--","--",53.033333333333331,"--","--",51.666666666666664,"--","--",51.233333333333327,51.766666666666673,57.800000000000004,54.9,55.70000000000001,"--","--","--","--",38.090000000000003,59.101999999999997,74.602999999999994,64.448999999999998,145.851,"--",null,"--","--",null,null,null,null,null,239.52779999999998,10.75671,15.746919999999999,1378.36,1672,1552.6666666666667,"--",14.040999999999999,11.729063352023219,16.932396685356554,"--","--","--","--","--","--",616,3327.0333333333333,328.06666666666666,1003.6666666666666,5360.8666666666659,688.30000000000007,493.25426666666664,236552.33333333334,92.42976666666668,98.866666666666674,"--",null,null,null,null,null,104.39999999999999,105.39999999999999,null,null,null,null,null,74.399999999999991,35.066666666666663,64.466666666666669,"--",7.4333333333333336,18022,null,103.66666666666788,null,95056.666666666672,null,933,null,"--",7.4666666666666659,"--","--","--","--","--","--","--","--",null,null,null,null,null,48.860503723168215,51.432346280133586,51.850443641509806,null,null,null,null,null,103.8,105.93333333333334,105.66666666666667,null,null,null,null,null,12.99,11.39,12.99,14.71,172.00000000000006,14.496666666666668,10.32,11.81,12.503333333333336,12.826666666666666,12.866666666666665,1.0566666666666649,null,null,null,null,null,1.3139333333333332,2.4060999999999999,"--","--",61.600866666666661,131.74346666666668,0,0,0,null,null,null,null,null,29.104333333333329,"--","--","--",{"$f":"AVERAGE(Monthly!GH317:GH319)","v":0},"--","--","--","--"]
["84'Q4",4147.6059999999998,7396.0190000000002,7339.8289999999997,4650.7,306.61739277843691,1232.7687327924666,3111.3138744290964,726.04578526164994,396.27568222334105,378.7,59.866,548.02700000000004,382.38099999999997,-165.64600000000007,1825.9929999999999,-205.22499999999999,null,null,null,null,null,79,80.233333333333334,470.22289999999998,"--",196.999,250.827,"--","--","--","--","--","--","--","--","--","--",56.36033333333333,51.799433333333333,"--","--",50.566666666666663,"--","--",46.9,"--","--",46.20000000000001,52.566666666666663,52.466666666666669,54.033333333333331,48.733333333333327,"--","--","--","--",38.387999999999998,59.139000000000003,74.567999999999998,64.912000000000006,145.80099999999999,"--",null,"--","--",null,null,null,null,null,249.66650000000001,10.9153,15.983169999999999,1413.83,1630.3333333333333,1586.3333333333333,"--",14.363999999999999,11.454522730475711,16.564522730475712,"--","--","--","--","--","--",627,3381.5666666666671,318.8,1065.6666666666667,5404.9666666666662,695.36666666666679,510.69726666666674,237150.33333333334,98.251533333333327,94.966666666666654,"--",null,null,null,null,null,105.3,106.46666666666668,null,null,null,null,null,74.966666666666669,35,64.5,"--",7.3000000000000007,18021,null,-1,null,95905.333333333328,null,848.66666666665697,null,"--",7.2333333333333334,"--","--","--","--","--","--","--","--",null,null,null,null,null,49.260103839418065,51.924320307440475,52.371296919635924,null,null,null,null,null,103.53333333333335,106.13333333333334,105.66666666666667,null,null,null,null,null,11.803333333333335,9.2666666666666675,12.350000000000001,13.606666666666667,125.6666666666666,13.65,8.8033333333333346,10.016666666666666,10.81,11.486666666666666,11.743333333333334,1.7266666666666683,null,null,null,null,null,1.3186333333333333,2.7075333333333336,"--","--",64.256666666666661,134.88840000000002,0,0,0,null,null,null,null,null,27.430666666666667,"--","--","--",{"$f":"AVERAGE(Monthly!GH320:GH322)","v":0},"--","--","--","--"]
["85'Q1",4237.01,7469.5450000000001,7466.4080000000004,4729.7,317.26979919554924,1240.2947668735642,3172.1354339308864,734.19662885420689,401.91113700039824,377.5,18.503,535.93100000000004,383.37,-152.56100000000004,1847.95,-167.8,null,null,null,null,null,78.3,79.933333333333337,476.24813333333333,"--",186.59200000000001,249.19399999999999,"--","--","--","--","--","--","--","--","--","--",56.541400000000003,51.776166666666676,"--","--",49.333333333333336,"--","--",44.6,"--","--",44.9,50.9,46.20000000000001,53.433333333333337,48.566666666666663,"--","--","--","--",38.887999999999998,59.237000000000002,74.863,65.647999999999996,135.32300000000001,"--",null,"--","--",null,null,null,null,null,261.83783333333332,11.25398,16.417860000000001,1441.42,1714.3333333333333,1683,"--",15.248666666666667,10.874093408817417,15.93742674215075,"--","--","--","--","--","--",666,3446.4,264.46666666666664,1064,5392.1,733.56666666666672,532.72833333333335,237600.66666666666,105.37756666666667,94.466666666666654,"--",null,null,null,null,null,106.26666666666667,107.63333333333333,null,null,null,null,null,75.3,34.866666666666667,64.766666666666666,"--",7.2333333333333334,17971.333333333332,null,-49.666666666667879,null,96571,null,665.66666666667152,null,"--",7,"--","--","--","--","--","--","--","--",null,null,null,null,null,49.617214553864919,52.78522383040044,53.241115919839977,null,null,null,null,null,103.26666666666665,107.26666666666665,106.76666666666665,null,null,null,null,null,10.536666666666667,8.4766666666666666,12.256666666666668,13.393333333333333,113.66666666666649,13.056666666666667,8.1833333333333336,9.3899999999999988,10.270000000000001,11.193333333333333,11.583333333333334,2.1933333333333351,null,null,null,null,null,1.3542333333333332,2.8346666666666671,"--","--",68.096366666666654,142.13406666666666,5647.6333333333341,289.03333333333336,1501.0333333333331,null,null,null,null,null,27.05,"--","--","--",{"$f":"AVERAGE(Monthly!GH323:GH325)","v":0},"--","--","--","--"]
["85'Q2",4302.2969999999996,7537.9279999999999,7528.6049999999996,4774.1000000000004,321.04572423677342,1249.9742037697731,3203.0800719934532,744.7159540518154,411.66795757449285,380.5,27.120999999999999,562.26700000000005,382.54199999999997,-179.72500000000008,1890.96,-217.125,null,null,null,null,null,77.7,79.399999999999991,480.81220000000002,"--",187.68899999999999,254.559,"--","--","--","--","--","--","--","--","--","--",56.5807,51.860600000000005,"--","--",47.70000000000001,"--","--",42.699999999999996,"--","--",41.466666666666661,50.5,45.06666666666667,51.333333333333336,47.066666666666663,"--","--","--","--",39.255000000000003,59.436999999999998,74.912999999999997,66.045000000000002,131.40799999999999,"--",null,"--","--",null,null,null,null,null,270.65679999999998,11.343349999999999,16.522020000000001,1473.3,1725.6666666666667,1696.3333333333333,"--",15.097999999999999,10.907032131397443,16.017032131397443,"--","--","--","--","--","--",673.33333333333337,3486.5666666666671,297.59999999999997,1053,5495.833333333333,757.36666666666667,555.46579999999994,238081.33333333334,111.20673333333332,94.3,"--",null,null,null,null,null,107.23333333333333,108.76666666666665,null,null,null,null,null,75.899999999999991,34.9,64.766666666666666,"--",7.3,17853.333333333332,null,-118,null,97270.333333333328,null,699.33333333332848,null,"--",6.8,"--","--","--","--","--","--","--","--",null,null,null,null,null,50.206412265950476,53.438865348287848,53.897016514388007,null,null,null,null,null,103.36666666666667,107.86666666666666,107.36666666666667,null,null,null,null,null,10.196666666666667,7.9233333333333329,11.63,13.020000000000001,139.00000000000006,12.776666666666666,7.46,8.4666666666666668,9.39,10.316666666666668,10.813333333333333,2.3466666666666658,null,null,null,null,null,1.3696666666666666,2.8576333333333337,"--","--",68.1203,138.13523333333333,6103.2333333333336,309.03333333333336,1661.3666666666668,null,null,null,null,null,27.856999999999999,"--","--","--",{"$f":"AVERAGE(Monthly!GH326:GH328)","v":0},"--","--","--","--"]
["85'Q3",4394.5630000000001,7655.1959999999999,7650.2169999999996,4865.8,341.59330549091504,1260.240932342831,3263.9657621662545,736.2547576972172,401.47140586982857,385.3,22.800999999999998,556.84400000000005,376.97699999999998,-179.86700000000008,1935.41,-196.065,null,null,null,null,null,77.2,78.733333333333334,490.51263333333333,"--",192.36600000000001,266.58999999999997,"--","--","--","--","--","--","--","--","--","--",56.500300000000003,51.875766666666664,"--","--",48.5,"--","--",42.70000000000001,"--","--",43.433333333333337,52.966666666666669,44.633333333333326,50.533333333333339,47.266666666666673,"--","--","--","--",39.841999999999999,60.197000000000003,75.546000000000006,66.186000000000007,137.13399999999999,"--",null,"--","--",null,null,null,null,null,281.14789999999999,11.63049,16.936,1497.33,1701,1807,"--",16.888000000000002,10.552692375295534,15.592692375295533,"--","--","--","--","--","--",723.33333333333337,3533.7666666666664,235.06666666666663,1059,5477.4333333333334,790.13333333333333,574.36689999999999,238681,116.15469999999999,92.833333333333329,"--",null,null,null,null,null,107.90000000000002,109.73333333333333,null,null,null,null,null,76.100000000000009,34.799999999999997,64.733333333333334,"--",7.2,17750,null,-103.33333333333212,null,97845.333333333328,null,575,null,"--",6.9666666666666659,"--","--","--","--","--","--","--","--",null,null,null,null,null,50.872384352264952,54.415038055094968,54.834083177611681,null,null,null,null,null,102.66666666666667,108.26666666666667,107.60000000000001,null,null,null,null,null,9.5,7.9000000000000012,11.030000000000001,12.469999999999999,143.99999999999977,12.136666666666665,7.1066666666666665,7.9933333333333332,8.8966666666666665,9.7733333333333334,10.336666666666666,2.3433333333333328,null,null,null,null,null,1.3601333333333334,2.9207999999999998,"--","--",67.274633333333327,131.36836666666667,5346.8666666666659,349.33333333333331,1549.4666666666665,null,null,null,null,null,27.791,"--","--","--",{"$f":"AVERAGE(Monthly!GH329:GH331)","v":0},"--","--","--","--"]
["85'Q4",4453.1049999999996,7712.6239999999998,7681.6319999999996,4878.3,329.83575028124932,1271.486480377303,3276.9777693414476,749.56725775319705,412.84696889366404,394.4,41.94,578.66600000000005,388.25900000000001,-190.40700000000004,1941.759,-201.46899999999999,null,null,null,null,null,77.3,78.8,496.34266666666667,"--",194.32499999999999,249.98500000000001,"--","--","--","--","--","--","--","--","--","--",56.833933333333334,52.212433333333337,"--","--",51.20000000000001,"--","--",44.1,"--","--",45.433333333333337,55.133333333333326,46.933333333333337,55.566666666666663,49.266666666666673,"--","--","--","--",40.601999999999997,60.459000000000003,76.266999999999996,67.156000000000006,131.98599999999999,"--",null,"--","--",null,null,null,null,null,289.29993333333329,11.751300000000001,17.1035,1521.19,1824.6666666666667,1743,"--",14.535666666666666,10.546751215623809,15.470084548957145,"--","--","--","--","--","--",703,3598.5666666666671,263.39999999999998,1107.6666666666667,5540.4000000000005,811.46666666666658,594.16549999999995,239299,122.41609999999999,91.066666666666677,"--",null,null,null,null,null,109,111,null,null,null,null,null,76.7,34.833333333333336,64.966666666666669,"--",7.0333333333333341,17699.333333333332,null,-50.666666666667879,null,98428,null,582.66666666667152,null,"--",6.9666666666666659,"--","--","--","--","--","--","--","--",null,null,null,null,null,51.445225333226844,54.885950784354534,55.306675555229944,null,null,null,null,null,103.3,109.03333333333335,108.46666666666665,null,null,null,null,null,9.5,8.1033333333333335,10.576666666666666,11.976666666666667,140.00000000000003,11.726666666666667,7.166666666666667,7.8533333333333344,8.5299999999999994,9.2333333333333325,9.76,1.9066666666666654,null,null,null,null,null,1.3795666666666666,3.1654333333333331,"--","--",65.131233333333327,122.75286666666666,5904.4000000000005,339.83333333333331,1665.3666666666668,null,null,null,null,null,29.193000000000001,"--","--","--",{"$f":"AVERAGE(Monthly!GH332:GH334)","v":0},"--","--","--","--"]
["86'Q1",4516.3440000000001,7784.1090000000004,7757.848,4919.7,336.56897162847309,1287.6043741752601,3295.5266541962665,742.15146017600091,404.03762838383903,411.2,37.203000000000003,578.13199999999995,400.476,-177.65599999999995,1957.9590000000001,-201.45500000000001,null,null,null,null,null,77.900000000000006,78.933333333333337,502.08076666666665,"--",158.1,234.11600000000001,"--","--","--","--","--","--","--","--","--","--",57.168200000000006,52.832366666666665,"--","--",51.066666666666663,"--","--",43.833333333333336,"--","--",44.433333333333337,56.1,49.033333333333331,54.166666666666664,50.133333333333333,"--","--","--","--",41.201000000000001,61.170999999999999,76.995000000000005,67.352999999999994,93.206999999999994,"--",null,"--","--",null,null,null,null,null,294.97086666666661,11.772869999999999,17.112780000000001,1543.32,1898.6666666666667,1798,"--",14.935666666666668,10.141854270724513,15.065187604057845,"--","--","--","--","--","--",780.33333333333337,3658.4666666666667,279.33333333333331,1197.6666666666667,5609.4000000000005,820.33333333333337,609.91930000000002,239784.66666666666,128.68796666666665,95.533333333333346,"--",null,null,null,null,null,109.56666666666668,112.2,null,null,null,null,null,77.100000000000009,34.866666666666667,65,"--",7.0333333333333341,17657.666666666668,null,-41.666666666664241,null,98836.666666666672,null,408.66666666667152,null,"--",6.8000000000000007,"--","--","--","--","--","--","--","--",null,null,null,null,null,52.037318719571203,55.218715454032861,55.578276535936681,null,null,null,null,null,101.73333333333333,109.46666666666665,108.73333333333335,null,null,null,null,null,9.3666666666666671,7.8266666666666671,9.5733333333333324,11.016666666666666,144.33333333333334,10.556666666666667,6.8966666666666656,7.456666666666667,7.7733333333333334,8.16,8.5566666666666666,1.0999999999999996,null,null,null,null,null,1.4040666666666668,3.2149666666666668,"--","--",63.828699999999998,116.39613333333334,5754.3666666666659,412.63333333333338,1487.7333333333333,null,null,null,null,null,17.001666666666669,"--","--","--",{"$f":"AVERAGE(Monthly!GH335:GH337)","v":0},"--","--","--","--"]
["86'Q2",4555.2449999999999,7819.8429999999998,7820.1379999999999,4974.7,348.45955400761284,1299.067437645602,3327.1730083467855,727.091184039052,387.24199689682405,434.1,18.100999999999999,602.74900000000002,404.815,-197.93400000000003,1997.828,-224.16200000000001,null,null,null,null,null,77.599999999999994,78.266666666666666,509.03530000000001,"--",155.03700000000001,220.233,"--","--","--","--","--","--","--","--","--","--",56.834499999999998,52.723666666666666,"--","--",51.199999999999996,"--","--",43.633333333333326,"--","--",44.6,56.933333333333337,47.866666666666667,53.699999999999996,50.266666666666673,"--","--","--","--",41.648000000000003,61.642000000000003,78.233000000000004,67.563999999999993,92.054000000000002,"--",null,"--","--",null,null,null,null,null,300.13636666666667,11.84141,17.226009999999999,1563.19,1878,1815,"--",15.751333333333335,8.84511046160201,13.861777128268677,"--","--","--","--","--","--",791.33333333333337,3700.6666666666665,288.63333333333333,1215.3333333333333,5683.9333333333334,849.6,625.1778333333333,240274.66666666666,133.34966666666665,96.766666666666666,"--",null,null,null,null,null,109.03333333333335,113.13333333333333,null,null,null,null,null,77.033333333333331,34.733333333333334,65.233333333333334,"--",7.166666666666667,17579.666666666668,null,-78,null,99175.333333333328,null,338.66666666665697,null,"--",6.833333333333333,"--","--","--","--","--","--","--","--",null,null,null,null,null,52.456213567677388,55.549863529824442,55.899194749004351,null,null,null,null,null,99.833333333333329,110.26666666666667,109.36666666666667,null,null,null,null,null,8.61,6.919999999999999,9.0033333333333321,10.273333333333332,126.99999999999996,10.253333333333332,6.1400000000000006,6.6066666666666665,6.9833333333333334,7.4033333333333333,7.6033333333333326,0.99666666666666615,null,null,null,null,null,1.3844999999999998,3.2090666666666667,"--","--",62.283033333333329,110.70066666666668,5818.4333333333334,319.86666666666662,1440.6666666666667,null,null,null,null,null,13.92,"--","--","--",{"$f":"AVERAGE(Monthly!GH338:GH340)","v":0},"--","--","--","--"]
["86'Q3",4619.6270000000004,7898.5550000000003,7932.2849999999999,5064.8,378.17577709627193,1301.7646290503885,3384.8595938533394,718.74432817573222,377.37889620743653,440.8,-10.395,619.447,414.077,-205.37,2043.3969999999999,-229.92699999999999,null,null,null,null,null,77.8,78.300000000000011,515.32499999999993,"--",154.19900000000001,208.249,"--","--","--","--","--","--","--","--","--","--",57.044333333333327,53.042033333333336,"--","--",51,"--","--",43.433333333333337,"--","--",46,55.633333333333326,52.633333333333333,53.933333333333337,50.099999999999994,"--","--","--","--",42.162999999999997,61.94,78.745999999999995,68.070999999999998,92.004999999999995,"--",null,"--","--",null,null,null,null,null,307.16676666666666,11.940530000000001,17.364660000000001,1565.83,1758.6666666666667,1730.6666666666667,"--",17.900666666666666,8.6348246384737788,13.511491305140446,"--","--","--","--","--","--",694,3750.6,260.89999999999998,1161.3333333333333,5724.166666666667,889.5,640.0261999999999,240857.66666666666,136.58903333333333,94.833333333333329,"--",null,null,null,null,null,109.7,114.2,null,null,null,null,null,77.266666666666666,34.633333333333333,65.36666666666666,"--",6.9666666666666659,17494.666666666668,null,-85,null,99664.666666666672,null,489.33333333334303,null,"--",7.1333333333333329,"--","--","--","--","--","--","--","--",null,null,null,null,null,52.948427792509747,56.162484107758459,56.501920928290325,null,null,null,null,null,99.366666666666674,110.73333333333333,109.73333333333333,null,null,null,null,null,7.8533333333333344,6.206666666666667,8.83,10.18,134.99999999999997,10.24,5.5233333333333334,5.9899999999999993,6.45,6.9266666666666667,7.3066666666666658,1.3166666666666664,null,null,null,null,null,1.3855333333333333,3.690466666666667,"--","--",61.186399999999999,106.10893333333333,5424.0000000000009,432.76666666666665,1432.6666666666667,null,null,null,null,null,13.86,"--","--","--",{"$f":"AVERAGE(Monthly!GH341:GH343)","v":0},"--","--","--","--"]
["86'Q4",4669.3959999999997,7939.45,7980.2460000000001,5097.2,372.17932161075049,1312.3576307772512,3412.6630476119981,725.68642943191787,382.55058442971637,440,-8.8059999999999992,624.21699999999998,429.51100000000002,-194.70599999999996,2031.4829999999999,-195.09899999999999,null,null,null,null,null,78.5,78.866666666666674,526.81703333333326,"--",158.74,196.197,"--","--","--","--","--","--","--","--","--","--",57.692599999999999,53.703399999999995,"--","--",50.966666666666669,"--","--",43.466666666666669,"--","--",42.933333333333337,55.633333333333333,57,53.966666666666669,52.033333333333331,"--","--","--","--",42.720999999999997,61.789000000000001,79.287999999999997,69.141000000000005,99.241,"--",null,"--","--",null,null,null,null,null,313.1069,12.08309,17.569700000000001,1593.25,1712.3333333333333,1740.6666666666667,"--",15.614333333333335,8.1794795193648753,12.962812852698208,"--","--","--","--","--","--",720,3793,248.6,1155.3333333333333,5734.3666666666659,930.56666666666672,654.10159999999996,241453.66666666666,139.97926666666666,92.033333333333346,"--",null,null,null,null,null,110.46666666666668,115.3,null,null,null,null,null,77.733333333333334,34.633333333333333,65.366666666666674,"--",6.833333333333333,17475.666666666668,null,-19,null,100312.33333333333,null,647.66666666665697,null,"--",7.0666666666666664,"--","--","--","--","--","--","--","--",null,null,null,null,null,53.079658553780718,56.457201669194333,56.890996082056247,null,null,null,null,null,99.733333333333334,111.96666666666665,110.76666666666665,null,null,null,null,null,7.5,6.2666666666666666,8.6766666666666676,10.093333333333334,141.6666666666666,9.6600000000000019,5.3533333333333326,5.7966666666666669,6.2766666666666664,6.753333333333333,7.2633333333333328,1.4666666666666659,null,null,null,null,null,1.3849666666666665,3.7294999999999998,"--","--",62.096766666666667,106.23486666666666,5754.0999999999995,425.06666666666666,1406.1666666666667,null,null,null,null,null,15.378333333333336,"--","--","--",{"$f":"AVERAGE(Monthly!GH344:GH346)","v":0},"--","--","--","--"]
["87'Q1",4736.2309999999998,7994.9650000000001,7972.0029999999997,5098,350.10704433725266,1314.0760027206231,3433.8169529421239,708.53535574016485,365.30310210740413,438.9,40.107999999999997,620.49,429.82400000000001,-190.666,2044.3320000000001,-194.72499999999999,null,null,null,null,null,79.099999999999994,79.533333333333346,547.94103333333339,"--",170.66800000000001,207.14599999999999,"--","--","--","--","--","--","--","--","--","--",58.446833333333331,54.466699999999996,"--","--",54.166666666666664,"--","--",47.4,"--","--",46.5,58.93333333333333,62.1,58.533333333333331,51.533333333333331,"--","--",47.295999999999999,93.355000000000004,42.936999999999998,61.487000000000002,78.775000000000006,69.831000000000003,110.42,"--",null,"--","--",null,null,null,null,null,315.56510000000003,11.9483,17.419070000000001,1605.04,1761.3333333333333,1694.3333333333333,"--",14.000666666666666,8.6402062670808117,13.260206267080813,"--","--","--","--","--","--",718,3851.1333333333337,281.63333333333338,1237,5781.7333333333327,958.6,652.33249999999998,241931,142.21119999999999,90.466666666666683,"--",null,null,null,null,null,111.8,116.23333333333335,null,null,null,null,null,78.566666666666677,34.766666666666666,65.466666666666669,"--",6.5999999999999988,17490.333333333332,null,14.666666666664241,null,100920.66666666667,null,608.33333333334303,null,"--",6.7,"--","--","--","--","--","--","--","--",null,null,null,null,null,52.927449536971061,56.600866453890561,57.233024822653654,null,null,null,null,null,100.89999999999999,112.40000000000002,111.16666666666667,null,null,null,null,null,7.5,6.22,8.3666666666666671,9.66,129.33333333333331,9.1066666666666674,5.5366666666666662,5.9233333333333329,6.3500000000000005,6.7399999999999993,7.1933333333333325,1.2699999999999996,null,null,null,null,null,1.3380000000000001,3.7313999999999994,"--","--",60.617533333333334,100.48356666666666,5781.7333333333336,522.80000000000007,1565.3666666666668,null,null,null,null,null,18.228999999999999,"--","--","--",{"$f":"AVERAGE(Monthly!GH347:GH349)","v":0},"--","--","--","--"]
["87'Q2",4821.4589999999998,8084.71,8083.0940000000001,5168.7,364.46374578125699,1324.1034643142243,3480.1327899045186,722.81158279406202,378.12443528195297,440.9,22.49,635.96500000000003,447.48,-188.48500000000001,2062.9079999999999,-141.553,null,null,null,null,null,79.8,80.466666666666654,551.93740000000003,"--",197.66300000000001,230.09399999999999,"--","--","--","--","--","--","--","--","--","--",59.486066666666666,55.400766666666669,"--","--",56.699999999999996,"--","--",51.199999999999996,"--","--",48.6,61.466666666666661,68.599999999999994,60,54.533333333333331,"--","--",48.116999999999997,92.266999999999996,43.246000000000002,61.929000000000002,78.504999999999995,69.831999999999994,125.31699999999999,"--",null,"--","--",null,null,null,null,null,316.69453333333331,12.08986,17.633430000000001,1646.84,1612,1541,"--",14.930333333333332,9.9657641281912817,14.352430794857947,"--","--","--","--","--","--",674.33333333333337,3911.1666666666665,209.56666666666669,1138,5725.3666666666659,970.86666666666679,659.25630000000001,242427.66666666666,147.54406666666668,91.8,"--",null,null,null,null,null,113.06666666666666,117.63333333333333,null,null,null,null,null,79.2,34.733333333333334,65.533333333333346,"--",6.2666666666666666,17534.666666666668,null,44.333333333335759,null,101710,null,789.33333333332848,null,"--",6.7333333333333334,"--","--","--","--","--","--","--","--",null,null,null,null,null,53.646762260775162,57.429946462003947,58.022090276677176,null,null,null,null,null,102.5,113,111.56666666666666,null,null,null,null,null,8.0466666666666669,6.6499999999999995,9.1666666666666661,10.356666666666666,118.99999999999994,10.323333333333332,5.6566666666666663,6.7666666666666666,7.45,7.95,8.3433333333333337,1.5766666666666671,null,null,null,null,null,1.333,3.7313999999999994,"--","--",59.971666666666671,96.944366666666667,5943.7333333333336,506.43333333333334,1734.6666666666667,null,null,null,null,null,19.364000000000001,"--","--","--",{"$f":"AVERAGE(Monthly!GH350:GH352)","v":0},"--","--","--","--"]
["87'Q3",4900.509,8158.0349999999999,8181.3389999999999,5228.6000000000004,379.52651450939277,1325.1910414935735,3523.882443997034,742.90284054725851,396.35763579164444,439.5,-1.9379999999999999,648.33399999999995,466.87200000000001,-181.46199999999993,2067.6860000000001,-153.33500000000001,null,null,null,null,null,80.7,81.5,556.34800000000007,"--",212.14599999999999,248.477,"--","--","--","--","--","--","--","--","--","--",60.602633333333337,56.440200000000004,"--","--",58.933333333333337,"--","--",51.166666666666664,"--","--",47.733333333333327,62.933333333333337,76.333333333333329,64.066666666666663,60.233333333333327,"--","--",48.526000000000003,92.188000000000002,43.698,61.942999999999998,78.540999999999997,70.545000000000002,138.04300000000001,"--",null,"--","--",null,null,null,null,null,319.39856666666668,11.95965,17.4483,1696.41,1625,1513.6666666666667,"--",15.992666666666667,10.16266302662663,14.362663026626629,"--","--","--","--","--","--",660.33333333333337,3982.7000000000003,237.1,1163,5829.5666666666666,963.1,672.03203333333329,243013,154.24316666666667,93.90000000000002,"--",null,null,null,null,null,114.26666666666667,118.73333333333333,null,null,null,null,null,79.933333333333337,34.766666666666666,65.600000000000009,"--",6,17638,null,103.33333333333212,null,102437,null,727,null,"--",6.3,"--","--","--","--","--","--","--","--",null,null,null,null,null,54.210665575406679,58.025517820478875,58.59549407125936,null,null,null,null,null,103.66666666666667,113.59999999999998,111.89999999999999,null,null,null,null,null,8.4,6.8433333333333337,9.7566666666666659,10.906666666666666,115.00000000000003,10.5,6.0433333333333339,7.1266666666666678,7.8433333333333337,8.423333333333332,8.8766666666666669,1.7499999999999991,null,null,null,null,null,1.3223999999999998,3.7313999999999994,"--","--",61.393166666666673,98.341099999999997,5495.2,569.23333333333323,1669.5333333333335,null,null,null,null,null,20.385000000000002,"--","--","--",{"$f":"AVERAGE(Monthly!GH353:GH355)","v":0},"--","--","--","--"]
["87'Q4",5022.67,8292.6869999999999,8215.9680000000008,5239.6000000000004,369.27318960070261,1326.8006557190104,3543.5261546802876,741.97178226113465,392.0610398569076,441.7,84.489000000000004,663.23800000000006,484.28100000000001,-178.95700000000005,2092.7860000000001,-163.05500000000001,null,null,null,null,null,82.6,83.1,563.51220000000001,"--",220.92099999999999,256.44799999999998,"--","--","--","--","--","--","--","--","--","--",62.080633333333338,58.065500000000007,"--","--",60.166666666666664,"--","--",55.800000000000004,"--","--",50.9,62.033333333333331,79.166666666666671,63.4,63.266666666666673,"--","--",48.826999999999998,91.662999999999997,44.225999999999999,62.476999999999997,78.876000000000005,70.787000000000006,139.21299999999999,"--",null,"--","--",null,null,null,null,null,325.40313333333336,11.825850000000001,17.270589999999999,1754.01,1523.6666666666667,1416.3333333333333,"--",14.518666666666666,10.238944116516068,14.3222774498494,"--","--","--","--","--","--",623.33333333333337,4078.4666666666667,280.03333333333336,1078.6666666666667,5907.5333333333328,943.93333333333339,684.0711,243631.33333333334,158.98240000000001,86.399999999999991,"--",null,null,null,null,null,115.33333333333333,120.09999999999998,null,null,null,null,null,80.566666666666663,34.733333333333327,65.7,"--",5.833333333333333,17771,null,133,null,103390.66666666667,null,953.66666666667152,null,"--",6.166666666666667,"--","--","--","--","--","--","--","--",null,null,null,null,null,54.982492422415163,58.404342205437047,59.0486790365212,null,null,null,null,null,104.16666666666667,114.16666666666667,112.10000000000001,null,null,null,null,null,8.8666666666666671,6.916666666666667,10.213333333333333,11.38,116.66666666666679,10.853333333333333,5.8633333333333333,7.2399999999999993,7.9833333333333334,8.6266666666666669,9.1233333333333331,1.8833333333333337,null,null,null,null,null,1.3113000000000001,3.7313999999999994,"--","--",59.717099999999995,92.877600000000015,6474.3,499.40000000000003,1787.3666666666668,null,null,null,null,null,18.669666666666668,null,"--","--",{"$f":"AVERAGE(Monthly!GH356:GH358)","v":0},"--","--","--","--"]
["88'Q1",5090.6149999999998,8339.3240000000005,8338.6290000000008,5332.7,386.75091309775144,1341.1131713992477,3604.8359155030007,747.91748780760895,392.52898230342595,432.1,18.574000000000002,660.13199999999995,511.19099999999997,-148.94099999999997,2078.645,-163.81800000000001,null,null,null,null,null,82.9,83.63333333333334,568.85593333333338,0.87,232.899,265.16399999999999,"--","--",3.45,0.87,0.88,"--","--","--","--","--",62.651199999999996,58.494266666666668,"--","--",56.1,"--","--",51.300000000000004,65.399999999999991,"--",46.900000000000006,58.4,78.13333333333334,58.533333333333339,60.166666666666664,"--","--",48.622,93.679000000000002,45.000999999999998,62.692,79.733000000000004,71.781000000000006,152.68899999999999,0.87,null,"--","--",null,null,null,null,null,332.99746666666664,11.77474,17.177820000000001,1811.95,1425.3333333333333,1402.3333333333333,"--",15.93,9.6657684219989104,13.655768421998909,"--","--","--","--","--","--",639,4153.7666666666664,277.26666666666665,1057,5993.666666666667,938.56666666666661,696.45316666666668,244130.33333333334,166.05503333333334,92.333333333333329,"--",null,null,null,null,null,116.23333333333333,121.26666666666667,null,null,null,null,null,80.86666666666666,34.6,65.8,"--",5.7,17819,null,48,null,104152,null,761.33333333332848,null,"--",6.3,"--","--","--","--","--","--","--","--",null,null,null,null,null,54.919233497244221,58.804991090881664,59.577618070957527,null,null,null,null,null,104.76666666666665,115.3,113,null,null,null,null,null,8.586666666666666,6.663333333333334,9.5566666666666666,10.753333333333332,119.66666666666654,10.083333333333334,5.7233333333333327,6.78,7.3599999999999994,7.9066666666666663,8.4166666666666661,1.6366666666666658,null,null,null,null,null,1.2676333333333334,3.7313999999999994,"--","--",59.391433333333332,89.754800000000003,6624.4666666666672,604.43333333333339,1908.3,null,null,null,null,null,16.713999999999999,{"$f":"AVERAGE(Monthly!GE359:GE361)","v":15.73666666666667},"--","--",{"$f":"AVERAGE(Monthly!GH359:GH361)","v":0},"--","--","--","--"]
["88'Q2",5207.7070000000003,8449.51,8442.2639999999992,5371.9,386.88394026722546,1351.7714277568712,3633.2446319759028,764.64386824604242,405.7233010950078,435.5,25.77,652.54100000000005,525.52700000000004,-127.01400000000001,2086.0709999999999,-155.75,null,null,null,null,null,83.8,84.233333333333334,583.4453666666667,1.1100000000000001,248.55099999999999,272.435,"--","--",3.26,1.1100000000000001,1.01,"--","--","--","--","--",63.197699999999998,59.19616666666667,"--","--",56.866666666666667,"--","--",50.033333333333331,65.166666666666671,"--",50.133333333333333,59.633333333333333,81.066666666666663,59.6,60.366666666666667,"--","--",48.673999999999999,94.322000000000003,45.530999999999999,62.863,79.832999999999998,72.427999999999997,158.148,1.1100000000000001,null,"--","--",null,null,null,null,null,341.35599999999999,11.75859,17.114360000000001,1867.37,1490.6666666666667,1452.6666666666667,"--",15.444000000000001,9.4466533675454372,13.273320034212105,"--","--","--","--","--","--",700,4227.8,293.43333333333334,1066,6055.2333333333336,949.1,709.70106666666663,244620.33333333334,170.93449999999999,93.566666666666663,"--",null,null,null,null,null,117.56666666666666,122.73333333333333,null,null,null,null,null,81.63333333333334,34.6,65.766666666666666,"--",5.4666666666666659,17894,null,75,null,105005.66666666667,null,853.66666666667152,null,"--",5.8666666666666671,"--","--","--","--","--","--","--","--",null,null,null,null,null,55.67212539420364,59.370576429482156,60.102172241080289,null,null,null,null,null,106.5,116.23333333333335,113.76666666666667,null,null,null,null,null,8.7799999999999994,7.1566666666666663,9.81,10.979999999999999,116.99999999999982,10.373333333333333,6.21,7.3,7.8733333333333322,8.42,8.9100000000000019,1.6100000000000021,null,null,null,null,null,1.2300666666666666,3.7313999999999994,"--","--",59.662333333333329,88.769566666666663,7188.666666666667,629.26666666666665,1955.5666666666666,null,null,null,null,null,17.281000000000002,{"$f":"AVERAGE(Monthly!GE362:GE364)","v":16.149999999999999},"--","--",{"$f":"AVERAGE(Monthly!GH362:GH364)","v":0},"--","--","--","--"]
["88'Q3",5299.4859999999999,8498.2819999999992,8489.6810000000005,5417.7,381.8391406864028,1361.1028399556885,3674.7580193579083,769.44616887973325,407.00230450280691,435.8,21.440999999999999,667.94399999999996,535.88699999999994,-132.05700000000002,2087.549,-151.197,null,null,null,null,null,83.9,84.466666666666669,594.70146666666653,1.03,247.13,269.077,"--","--",3.34,1.03,0.95,"--","--","--","--","--",63.435466666666663,59.361266666666666,"--","--",56.233333333333327,"--","--",51.300000000000004,63.033333333333339,"--",51.133333333333333,59.466666666666669,77.333333333333329,57.933333333333337,57,"--","--",48.545999999999999,95.597999999999999,46.076999999999998,63.048000000000002,79.887,73.081999999999994,160.62799999999999,1.03,null,"--","--",null,null,null,null,null,347.20286666666669,11.71373,17.03012,1910.9,1484,1445,"--",15.054333333333332,9.6089562390362389,13.435622905702907,"--","--","--","--","--","--",690,4318.9333333333334,304.40000000000003,1071.3333333333333,6113.5666666666657,945.56666666666661,720.19876666666676,245241.66666666666,175.78943333333333,96.033333333333346,"--",null,null,null,null,null,119,124.10000000000001,null,null,null,null,null,82.166666666666671,34.56666666666667,65.966666666666669,"--",5.4666666666666659,17910.333333333332,null,16.333333333332121,null,105741.66666666667,null,736,null,"--",5.8999999999999995,"--","--","--","--","--","--","--","--",null,null,null,null,null,55.73655063139725,59.533738034529584,60.44944536853388,null,null,null,null,null,108,117.66666666666667,114.83333333333333,null,null,null,null,null,9.7099999999999991,7.9833333333333334,9.9633333333333329,11.073333333333332,110.99999999999994,10.503333333333334,7.0100000000000007,8.0033333333333321,8.456666666666667,8.7633333333333336,9.1,1.0966666666666676,null,null,null,null,null,1.2192999999999998,3.7313999999999994,"--","--",62.87936666666667,93.611033333333339,6340.4333333333343,786.26666666666677,1882.0333333333335,null,null,null,null,null,15.162999999999998,{"$f":"AVERAGE(Monthly!GE365:GE367)","v":14.326666666666668},"--","--",{"$f":"AVERAGE(Monthly!GH365:GH367)","v":0},"--","--","--","--"]
["88'Q4",5412.7129999999997,8610.85,8597.0490000000009,5479.8,391.73431552343214,1375.2848463744035,3712.7808381021646,780.16150634810458,413.84376790688935,439.7,29.454000000000001,688.29200000000003,552.24,-136.05200000000002,2126.7860000000001,-158.607,null,null,null,null,null,84.7,84.86666666666666,601.52083333333337,1.1000000000000001,258.32499999999999,286.32100000000003,"--","--",2.97,1.1000000000000001,1.01,"--","--","--","--","--",63.887733333333337,60.016300000000001,"--","--",55.666666666666664,"--","--",53.666666666666664,61.066666666666663,"--",50.233333333333341,58.199999999999996,70.733333333333334,57.933333333333337,53.300000000000004,"--","--",48.802999999999997,96.468000000000004,46.412999999999997,63.293999999999997,79.724000000000004,73.328999999999994,170.60300000000001,1.1000000000000001,null,"--","--",null,null,null,null,null,353.19229999999999,11.590059999999999,16.879799999999999,1971.63,1551.3333333333333,1508.3333333333333,"--",15.317,9.6395782636768086,13.372911597010143,"--","--","--","--","--","--",668,4404.9000000000005,303.83333333333337,1137,6172.6333333333341,930.56666666666661,729.2277333333335,245877.66666666666,182.4787666666667,93,"--",null,null,null,null,null,120.3,125.60000000000001,null,null,null,null,null,82.899999999999991,34.6,66.099999999999994,"--",5.333333333333333,17998,null,87.666666666667879,null,106599.66666666667,null,858,null,"--",5.7333333333333343,"--","--","--","--","--","--","--","--",null,null,null,null,null,56.655741461585642,60.450968787257445,61.309909834455325,null,null,null,null,null,108.5,118.76666666666667,115.76666666666665,null,null,null,null,null,10.183333333333334,8.4699999999999989,9.51,10.513333333333334,100.33333333333339,10.393333333333333,7.7266666666666666,8.5266666666666655,8.7033333333333331,8.7966666666666651,8.956666666666667,0.43000000000000149,null,null,null,null,null,1.2067666666666668,3.7313999999999994,"--","--",61.754433333333338,89.511166666666668,6979.0999999999995,817,2007.3666666666668,null,null,null,null,null,14.680333333333332,{"$f":"AVERAGE(Monthly!GE368:GE370)","v":13.58},"--","--",{"$f":"AVERAGE(Monthly!GH368:GH370)","v":0},"--","--","--","--"]
["89'Q1",5527.3519999999999,8697.7109999999993,8645.4390000000003,5505.1,389.99472946107954,1381.5057878402815,3733.5994826986398,792.54294811796069,423.09631139405059,436.8,58.216999999999999,691.48800000000006,568.72199999999998,-122.76600000000008,2117.1509999999998,-136.31700000000001,null,null,null,null,null,84.8,84.899999999999991,613.26813333333337,0.65,253.91499999999999,265.53800000000001,"--","--",3.05,0.65,0.73,"--","--","--","--","--",64.169399999999996,60.343333333333334,"--","--",53.433333333333337,"--","--",50.533333333333339,57.633333333333326,"--",48,55.533333333333331,68.766666666666666,55.4,53.466666666666669,"--","--",49.003,96.561999999999998,46.593000000000004,63.207999999999998,79.227000000000004,73.712999999999994,158.22499999999999,0.65,null,"--","--",null,null,null,null,null,357.66343333333333,11.57907,16.811630000000001,2075.86,1489.3333333333333,1354.3333333333333,"--",14.682333333333332,9.8742075173991317,13.514207517399134,"--","--","--","--","--","--",636,4532.666666666667,335.83333333333331,1044.3333333333333,6248.7,904.86666666666667,753.9781333333334,246377.33333333334,188.08733333333331,95.866666666666674,"--",null,null,null,null,null,121.66666666666667,126.93333333333334,null,null,null,null,null,83.566666666666677,34.56666666666667,66.366666666666674,"--",5.2,18057.333333333332,null,59.333333333332121,null,107404.33333333333,null,804.66666666665697,null,"--",5.4666666666666659,"--","--","--","--","--","--","--","--",null,null,null,null,null,57.196426519321754,60.942155366353376,61.80093919602708,null,null,null,null,null,110.93333333333334,120.36666666666667,117.23333333333333,null,null,null,null,null,10.976666666666667,9.4433333333333334,9.6866666666666656,10.643333333333333,95.6666666666667,10.803333333333335,8.5399999999999991,9.2900000000000009,9.4099999999999984,9.31,9.2066666666666652,-8.3333333333335702E-2,null,null,null,null,null,1.1919333333333333,3.7313999999999994,"--","--",63.499233333333336,91.272800000000004,7432.9000000000005,751.43333333333339,2133.6666666666665,null,null,null,null,null,18.417999999999999,{"$f":"AVERAGE(Monthly!GE371:GE373)","v":17.58666666666667},"--","--",{"$f":"AVERAGE(Monthly!GH371:GH373)","v":0},"--","--","--","--"]
["89'Q2",5628.4290000000001,8766.1049999999996,8731.3169999999991,5531,395.19302192975681,1383.6156875682193,3752.1912905020245,803.33995736581653,429.53740342482143,423.9,44.585999999999999,694.76199999999994,593.61400000000003,-101.14799999999991,2151.79,-158.21700000000001,null,null,null,null,null,83.7,84.166666666666671,622.55786666666665,0.77,246.58199999999999,270.82299999999998,"--","--",3.08,0.77,0.89,"--","--","--","--","--",63.93163333333333,59.903600000000004,"--","--",49.6,"--","--",48.333333333333336,57.533333333333331,"--",46.6,49.800000000000004,58.233333333333327,51.699999999999996,49.266666666666673,"--","--",48.722000000000001,96.980999999999995,46.764000000000003,63.445,78.334999999999994,73.707999999999998,147.61000000000001,0.77,null,"--","--",null,null,null,null,null,362.26606666666675,11.7468,16.999030000000001,2138.13,1355.6666666666667,1359.6666666666667,"--",14.901666666666666,10.393405654312444,14.056738987645778,"--","--","--","--","--","--",635.33333333333337,4587.5999999999995,309.53333333333336,997.33333333333337,6230.4333333333334,869.73333333333346,769.07176666666658,246913.66666666666,195.32719999999998,90.933333333333323,"--",null,null,null,null,null,123.63333333333333,128.30000000000001,null,null,null,null,null,83.666666666666671,34.466666666666669,66.399999999999991,"--",5.2333333333333334,18036,null,-21.333333333332121,null,107909.33333333333,null,505,null,"--",5.3666666666666671,"--","--","--","--","--","--","--","--",null,null,null,null,null,57.530503539088251,61.310734661325526,62.192516660345035,null,null,null,null,null,112.8,121.53333333333332,118.26666666666665,null,null,null,null,null,11.356666666666667,9.7266666666666666,9.4866666666666664,10.366666666666667,88.000000000000085,10.673333333333332,8.4099999999999984,8.9266666666666676,8.9599999999999991,8.8333333333333339,8.7733333333333334,-0.15333333333333421,null,null,null,null,null,1.1933,3.7313999999999994,"--","--",66.434133333333349,95.364199999999997,7734.8666666666659,896.03333333333342,2378.4666666666667,null,null,null,null,null,20.358999999999998,{"$f":"AVERAGE(Monthly!GE374:GE376)","v":18.873333333333335},"--","--",{"$f":"AVERAGE(Monthly!GH374:GH376)","v":0},"--","--","--","--"]
["89'Q3",5711.5559999999996,8831.5439999999999,8837.32,5585.9,404.13654086208743,1397.4931723767168,3784.2702867611952,823.88857708412638,447.16747096347478,419.3,12.321,693.81600000000003,599.67200000000003,-94.144000000000005,2169.8150000000001,-163.54,null,null,null,null,null,82.4,83.13333333333334,634.5258,0.79,236.422,276.06,"--","--",3.16,0.79,0.9,"--","--","--","--","--",63.539299999999997,59.451366666666672,"--","--",45.666666666666664,"--","--",44.833333333333336,58.533333333333339,"--",44.833333333333336,45.666666666666664,44.6,47.199999999999996,44.666666666666664,"--","--",48.558999999999997,98.543999999999997,47.171999999999997,63.768999999999998,78.448999999999998,73.974000000000004,135.20500000000001,0.79,null,"--","--",null,null,null,null,null,366.89786666666669,11.80972,17.076080000000001,2217.15,1346,1310.3333333333333,"--",15.328000000000001,9.9400954407503175,13.603428774083651,"--","--","--","--","--","--",689,4643,301.89999999999998,997.66666666666663,6272.833333333333,868.1,778.98623333333319,247577,201.52279999999999,92.466666666666654,"--",null,null,null,null,null,124.60000000000001,129.53333333333333,null,null,null,null,null,83.833333333333329,34.466666666666669,66.466666666666669,"--",5.2333333333333334,17955.333333333332,null,-80.666666666667879,null,108182,null,272.66666666667152,null,"--",5.166666666666667,"--","--","--","--","--","--","--","--",null,null,null,null,null,58.018902926362912,61.968035374386432,62.805988295805925,null,null,null,null,null,112.40000000000002,122.63333333333333,119.3,null,null,null,null,null,10.66,9.0833333333333339,8.9666666666666668,9.8866666666666667,92,10,7.8433333333333337,8.0966666666666658,8.08,8.0299999999999994,8.1066666666666674,1.0000000000001563E-2,null,null,null,null,null,1.1825666666666665,3.7313999999999994,"--","--",68.365466666666649,95.991133333333323,6691.2333333333327,1207.2,2248.1666666666665,null,null,null,null,null,19.253333333333334,{"$f":"AVERAGE(Monthly!GE377:GE379)","v":17.386666666666667},"--","--",{"$f":"AVERAGE(Monthly!GH377:GH379)","v":0},"--","--","--","--"]
["89'Q4",5763.4440000000004,8850.23,8847.741,5610.6,391.85710983371587,1413.3282961080429,3805.4145940582412,815.70506477977574,436.07417090042753,410.5,17.88,706.36900000000003,608.74800000000005,-97.620999999999981,2181.4949999999999,-168.49700000000001,null,null,null,null,null,81.900000000000006,82.86666666666666,638.83173333333332,1.1000000000000001,236.42500000000001,260.27199999999999,"--","--",3.04,1.1000000000000001,1.17,"--","--","--","--","--",63.80766666666667,59.524466666666662,"--","--",47,"--","--",45.166666666666664,56.233333333333341,"--",43.033333333333331,49.666666666666664,40.966666666666669,49.133333333333333,43.1,"--","--",49.106000000000002,99.424000000000007,47.820999999999998,63.790999999999997,78.834000000000003,74.963999999999999,130.05600000000001,1.1000000000000001,null,"--","--",null,null,null,null,null,372.18183333333337,11.767049999999999,17.038530000000002,2322.66,1337.3333333333333,1377,"--",13.203666666666669,9.9939291256785854,13.750595792345253,"--","--","--","--","--","--",653,4716.166666666667,318.76666666666665,985.66666666666663,6323.3,886.63333333333333,790.15173333333325,248275.66666666666,207.92699999999999,91.766666666666666,"--",null,null,null,null,null,125.86666666666667,131.1,null,null,null,null,null,84.2,34.43333333333333,66.533333333333331,"--",5.3666666666666671,17887.333333333332,null,-68,null,108692.66666666667,null,510.66666666667152,null,"--",4.8666666666666663,"--","--","--","--","--","--","--","--",null,null,null,null,null,57.720411043382725,62.035772288248246,63.09819873163103,null,null,null,null,null,112.83333333333333,123.86666666666667,120.33333333333333,null,null,null,null,null,10.5,8.6133333333333333,8.89,9.8133333333333344,92.333333333333371,9.82,7.6533333333333333,7.8266666666666671,7.8533333333333344,7.8433333333333337,7.9066666666666663,7.9999999999999183E-2,null,null,null,null,null,1.1686333333333332,3.8817666666666661,"--","--",69.31913333333334,94.332933333333344,7458.666666666667,1141.8999999999999,2293.7333333333331,null,null,null,null,null,20.333000000000002,{"$f":"AVERAGE(Monthly!GE380:GE382)","v":19.16},"--","--",{"$f":"AVERAGE(Monthly!GH380:GH382)","v":0},"--","--","--","--"]
["90'Q1",5890.835,8947.1290000000008,8947.5400000000009,5658.8,408.40364314444656,1411.4794149031491,3838.9169419524046,826.02837770662131,443.21599901881865,414.7,16.402999999999999,728.77099999999996,635.18600000000004,-93.584999999999923,2215.7919999999999,-195.28299999999999,null,null,null,null,null,82.1,82.866666666666674,636.86183333333338,1.06,246.297,274.173,"--","--",3.15,1.06,1.31,"--","--","--","--","--",64.244733333333329,60.162433333333333,"--","--",48.733333333333341,"--","--",46.133333333333333,55.1,50.266666666666673,41.766666666666666,51.29999999999999,48.5,51.633333333333326,46.6,"--","--",50.104999999999997,98.537000000000006,48.793999999999997,64.325999999999993,79.183000000000007,75.853999999999999,133.572,1.06,null,"--","--",null,null,null,null,null,375.98313333333334,11.66461,16.923349999999999,2379.14,1425.6666666666667,1441,"--",14.759666666666666,10.532831190776925,14.242831190776926,"--","--","--","--","--","--",595,4813.2333333333327,328.06666666666666,1057.6666666666667,6376.4000000000005,904.6,798.41206666666676,248832.66666666666,215.91380000000004,91.266666666666666,"--",null,null,null,null,null,128.03333333333333,132.76666666666665,null,null,null,null,null,84.766666666666666,34.433333333333337,66.733333333333334,"--",5.3,17852.666666666668,null,-34.666666666664241,null,109422,null,729.33333333332848,null,"--",5.1666666666666661,{"$f":"AVERAGE(Monthly!DV383:DV385)","v":1127.7},{"$f":"AVERAGE(Monthly!DW383:DW385)","v":1109.1000000000001},{"$f":"AVERAGE(Monthly!DX383:DX385)","v":800.1},{"$f":"AVERAGE(Monthly!DY383:DY385)","v":193.16666666666666},{"$f":"AVERAGE(Monthly!DZ383:DZ385)","v":606.93333333333339},{"$f":"AVERAGE(Monthly!EA383:EA385)","v":431.76666666666665},{"$f":"AVERAGE(Monthly!EB383:EB385)","v":175.16666666666666},{"$f":"AVERAGE(Monthly!EC383:EC385)","v":309},null,null,null,null,null,58.593868792367743,62.697422966592185,63.684684453749995,null,null,null,null,null,114.5,124.89999999999999,121.39999999999999,null,null,null,null,null,10.036666666666667,8.25,9.1933333333333334,10.096666666666666,90.333333333333243,10.123333333333333,7.7600000000000007,8.1266666666666669,8.3633333333333351,8.3800000000000008,8.4233333333333338,0.29666666666666686,null,null,null,null,null,1.1828333333333332,4.7339000000000002,"--","--",71.4041,93.05619999999999,7317.3,1036.9666666666665,2463.2999999999997,null,null,null,null,null,21.722333333333335,{"$f":"AVERAGE(Monthly!GE383:GE385)","v":19.816666666666666},{"$f":"AVERAGE(Monthly!GF383:GF385)","v":1.0988083333333332},{"$f":"AVERAGE(Monthly!GG383:GG385)","v":1.0988083333333332},{"$f":"AVERAGE(Monthly!GH383:GH385)","v":0},"--","--","--","--"]
["90'Q2",5974.665,8981.7270000000008,8951.7219999999998,5676.5,394.89626901323788,1413.0455260414117,3868.5582049453506,815.31304023824987,429.81874873670876,398.8,41.085999999999999,727.55,643.08699999999999,-84.462999999999965,2221.1680000000001,-201.70099999999999,null,null,null,null,null,82.2,82.966666666666669,640.73523333333333,1.22,259.13400000000001,288.529,5.0999999999999996,"--",3.2,1.22,1.47,"--","--","--","--","--",64.739233333333331,60.661200000000001,"--","--",49.566666666666663,"--","--",46.06666666666667,55.933333333333337,47.366666666666667,41.300000000000004,52.466666666666669,51.4,52.9,48.4,"--","--",50.411000000000001,99.692999999999998,49.73,64.816999999999993,79.974000000000004,76.722999999999999,139.363,1.22,null,"--","--",null,null,null,null,null,375.20953333333335,11.62837,16.916060000000002,2430.6999999999998,1212.3333333333333,1103.6666666666667,"--",13.872999999999999,9.9168890052016341,13.650222338534967,"--","--","--","--","--","--",540.33333333333337,4888.9000000000005,345.36666666666662,900,6414.5999999999995,912.86666666666679,800.46356666666668,249573.33333333334,222.90353333333334,90.933333333333337,"--",null,null,null,null,null,129.29999999999998,134.5,null,null,null,null,null,84.533333333333346,34.333333333333336,66.533333333333331,"--",5.333333333333333,17806,null,-46.666666666667879,null,109795.66666666667,null,373.66666666667152,null,"--",5.0666666666666664,{"$f":"AVERAGE(Monthly!DV386:DV388)","v":1128.8},{"$f":"AVERAGE(Monthly!DW386:DW388)","v":1123.6333333333332},{"$f":"AVERAGE(Monthly!DX386:DX388)","v":809.06666666666661},{"$f":"AVERAGE(Monthly!DY386:DY388)","v":197.66666666666666},{"$f":"AVERAGE(Monthly!DZ386:DZ388)","v":611.4},{"$f":"AVERAGE(Monthly!EA386:EA388)","v":435},{"$f":"AVERAGE(Monthly!EB386:EB388)","v":176.4},{"$f":"AVERAGE(Monthly!EC386:EC388)","v":314.56666666666666},null,null,null,null,null,58.183165454808318,62.684670200561413,63.94845225911606,null,null,null,null,null,114.33333333333333,125.96666666666665,122.23333333333333,null,null,null,null,null,10,8.2433333333333323,9.3966666666666665,10.31,91.3333333333334,10.336666666666668,7.746666666666667,8.2733333333333334,8.57,8.6466666666666665,8.6766666666666659,0.40333333333333243,null,null,null,null,null,1.1706000000000001,4.7339000000000002,"--","--",73.193666666666672,93.443666666666672,7992.3666666666659,1162.3666666666668,2388.7666666666669,null,null,null,null,null,17.896666666666665,{"$f":"AVERAGE(Monthly!GE386:GE388)","v":16.02},{"$f":"AVERAGE(Monthly!GF386:GF388)","v":0.99719333333333326},{"$f":"AVERAGE(Monthly!GG386:GG388)","v":0.99719333333333326},{"$f":"AVERAGE(Monthly!GH386:GH388)","v":0},"--","--","--","--"]
["90'Q3",6029.5039999999999,8983.9449999999997,8971.2270000000008,5699.4,390.89522106982685,1415.3294381180453,3893.1753408121272,820.91572431088923,432.23994800089366,376.1,26.899000000000001,724.61300000000006,647.95500000000004,-76.658000000000015,2219.8739999999998,-196.74700000000001,null,null,null,null,null,81.900000000000006,82.86666666666666,639.94173333333322,1.22,263.512,257.27300000000002,12.1,"--",3.42,1.22,1.36,"--","--","--","--","--",65.007933333333327,60.846066666666665,"--","--",45.733333333333327,"--","--",43.566666666666663,55.5,46.800000000000004,41.133333333333333,45.699999999999996,58.233333333333327,47.733333333333327,48.466666666666669,"--","--",50.999000000000002,99.611999999999995,50.366,65.010999999999996,79.694999999999993,77.472999999999999,147.761,1.22,null,"--","--",null,null,null,null,null,373.11096666666668,11.604089999999999,16.918800000000001,2506.27,1132,1041,"--",13.798666666666668,11.263986716095149,15.253986716095149,"--","--","--","--","--","--",522,4950.6333333333341,334.43333333333334,856,6417.0666666666666,920.36666666666667,808.69410000000005,250440.66666666666,232.24206666666666,79.13333333333334,"--",null,null,null,null,null,131.53333333333333,136.5,null,null,null,null,null,84,34.200000000000003,66.466666666666669,"--",5.7,17654,null,-152,null,109656,null,-139.66666666667152,null,"--",5.4666666666666659,{"$f":"AVERAGE(Monthly!DV389:DV391)","v":1115.9333333333334},{"$f":"AVERAGE(Monthly!DW389:DW391)","v":1124.9333333333334},{"$f":"AVERAGE(Monthly!DX389:DX391)","v":807.23333333333323},{"$f":"AVERAGE(Monthly!DY389:DY391)","v":201.66666666666666},{"$f":"AVERAGE(Monthly!DZ389:DZ391)","v":605.56666666666661},{"$f":"AVERAGE(Monthly!EA389:EA391)","v":430.83333333333331},{"$f":"AVERAGE(Monthly!EB389:EB391)","v":174.73333333333335},{"$f":"AVERAGE(Monthly!EC389:EC391)","v":317.7},null,null,null,null,null,57.577516723327513,62.471502590582709,63.979232134752792,null,null,null,null,null,116.46666666666665,127.13333333333333,123.33333333333333,null,null,null,null,null,10,8.16,9.4033333333333342,10.416666666666666,101.33333333333319,10.106666666666667,7.4766666666666666,7.8266666666666671,8.1,8.4266666666666676,8.7033333333333331,0.87666666666666604,null,null,null,null,null,1.1533666666666667,4.7340000000000009,"--","--",71.204333333333338,88.555533333333344,7310.333333333333,1497.7333333333333,2501.9666666666667,null,null,null,null,null,26.499666666666666,{"$f":"AVERAGE(Monthly!GE389:GE391)","v":26.413333333333338},{"$f":"AVERAGE(Monthly!GF389:GF391)","v":1.1702200000000003},{"$f":"AVERAGE(Monthly!GG389:GG391)","v":1.1702200000000003},{"$f":"AVERAGE(Monthly!GH389:GH391)","v":0},"--","--","--","--"]
["90'Q4",6023.3320000000003,8907.3629999999994,8940.1239999999998,5656.3,380.13025320162114,1401.1256801557433,3875.0440666426362,808.22392977899199,417.18175980981545,355.2,-12.641,705.18,653.66,-51.519999999999982,2240.2489999999998,-209.94300000000001,null,null,null,null,null,80,81.2,639.3981,1.37,265.565,266.93799999999999,48.3,"--",3.71,1.37,1.45,"--","--","--","--","--",63.998433333333331,59.80663333333333,"--","--",41.766666666666666,"--","--",38.4,54.5,45.666666666666664,40.566666666666663,40.666666666666664,65.500000000000014,42.5,47.966666666666669,"--","--",50.853999999999999,101.083,50.744999999999997,64.444000000000003,79.064999999999998,78.742999999999995,138.88,1.37,null,"--","--",null,null,null,null,null,375.21583333333336,11.619630000000001,16.98246,2586.89,1042.6666666666667,909,"--",13.020666666666665,12.409975677123063,16.703309010456394,"--","--","--","--","--","--",474,4972.8666666666668,333.93333333333334,788.66666666666663,6366.1333333333323,923,811.51613333333319,251343,238.03576666666666,65.13333333333334,"--",null,null,null,null,null,133.76666666666668,138.06666666666669,null,null,null,null,null,83.533333333333331,34.166666666666671,66.400000000000006,"--",6.1333333333333337,17466.666666666668,null,-187.33333333333212,null,109246,null,-410,null,"--",5.8,{"$f":"AVERAGE(Monthly!DV392:DV394)","v":1118.0666666666666},{"$f":"AVERAGE(Monthly!DW392:DW394)","v":1131.9000000000001},{"$f":"AVERAGE(Monthly!DX392:DX394)","v":813.06666666666661},{"$f":"AVERAGE(Monthly!DY392:DY394)","v":202.63333333333333},{"$f":"AVERAGE(Monthly!DZ392:DZ394)","v":610.43333333333328},{"$f":"AVERAGE(Monthly!EA392:EA394)","v":434.16666666666669},{"$f":"AVERAGE(Monthly!EB392:EB394)","v":176.26666666666665},{"$f":"AVERAGE(Monthly!EC392:EC394)","v":318.83333333333331},null,null,null,null,null,56.565076981629282,61.839765849575421,63.514275733661819,null,null,null,null,null,119.86666666666666,128.33333333333334,124.46666666666665,null,null,null,null,null,10,7.7433333333333323,9.293333333333333,10.596666666666666,130.33333333333329,9.9533333333333331,6.9899999999999993,7.3033333333333337,7.5966666666666667,8.0266666666666673,8.3966666666666665,1.0933333333333328,null,null,null,null,null,1.1612666666666669,4.9801666666666664,"--","--",69.83659999999999,84.429933333333338,7840.0333333333328,1382.0666666666666,2698.2333333333331,null,null,null,null,null,31.852999999999998,{"$f":"AVERAGE(Monthly!GE392:GE394)","v":32.453333333333333},{"$f":"AVERAGE(Monthly!GF392:GF394)","v":1.39401},{"$f":"AVERAGE(Monthly!GG392:GG394)","v":1.39401},{"$f":"AVERAGE(Monthly!GH392:GH394)","v":0},"--","--","--","--"]
["91'Q1",6054.8670000000002,8865.5640000000003,8905.7579999999998,5636.8,369.66203824993443,1401.7782264633527,3865.3597352867137,791.9712456615689,397.44960057130027,334,-19.972999999999999,697.14300000000003,657.65300000000002,-39.490000000000009,2251.2080000000001,-184.11799999999999,null,null,null,null,null,77.8,79.366666666666674,635.77856666666662,1.1200000000000001,281.81299999999999,312.33199999999999,43.9,"--",3.99,1.1200000000000001,1.2,"--","--","--","--","--",62.792166666666667,58.439933333333329,"--","--",39.766666666666666,"--","--",35.5,55.033333333333331,45.4,41.033333333333331,39.900000000000006,45.766666666666673,39.733333333333334,44.333333333333336,"--","--",50.725000000000001,102.55800000000001,51.107999999999997,64.611999999999995,79.212999999999994,79.100999999999999,130.12299999999999,1.1200000000000001,null,"--","--",null,null,null,null,null,371.6386333333333,11.6008,16.993490000000001,2627.67,894.66666666666663,850,"--",12.129,11.860236559631636,16.480236559631638,"--","--","--","--","--","--",463.33333333333331,4983.8,356.33333333333331,703,6379.7666666666673,935.83333333333337,807.32756666666671,252132,242.61456666666663,74.966666666666654,"--",null,null,null,null,null,134.76666666666668,140.06666666666666,null,null,null,null,null,82.833333333333329,34.1,66.233333333333334,"--",6.6000000000000005,17227,null,-239.66666666666788,null,108785.33333333333,null,-460.66666666667152,null,"--",6.3,{"$f":"AVERAGE(Monthly!DV395:DV397)","v":1111.7333333333333},{"$f":"AVERAGE(Monthly!DW395:DW397)","v":1093},{"$f":"AVERAGE(Monthly!DX395:DX397)","v":788.43333333333339},{"$f":"AVERAGE(Monthly!DY395:DY397)","v":190.39999999999998},{"$f":"AVERAGE(Monthly!DZ395:DZ397)","v":598.0333333333333},{"$f":"AVERAGE(Monthly!EA395:EA397)","v":425.56666666666666},{"$f":"AVERAGE(Monthly!EB395:EB397)","v":172.46666666666667},{"$f":"AVERAGE(Monthly!EC395:EC397)","v":304.56666666666666},null,null,null,null,null,55.797729212675286,61.461307717367475,63.331777471526806,null,null,null,null,null,117.46666666666665,129.79999999999998,125.8,null,null,null,null,null,9.19,6.4266666666666667,8.9333333333333318,10.203333333333333,127.00000000000014,9.5033333333333321,6.0233333333333334,6.4366666666666674,7.0333333333333341,7.6466666666666656,8.0166666666666657,{"$f":"+FI139-FF139","v":1.5799999999999983},null,null,null,null,null,1.1560333333333335,5.2351999999999999,"--","--",71.718900000000005,85.653966666666676,7203.8,1183.2,2359.8666666666663,null,null,null,null,null,21.780666666666665,{"$f":"AVERAGE(Monthly!GE395:GE397)","v":20.73},{"$f":"AVERAGE(Monthly!GF395:GF397)","v":1.1842466666666667},{"$f":"AVERAGE(Monthly!GG395:GG397)","v":1.1842466666666667},{"$f":"AVERAGE(Monthly!GH395:GH397)","v":0},"--","--","--","--"]
["91'Q2",6143.6120000000001,8934.366,8978.741,5684.1,371.52441862257081,1410.0220614828206,3902.5535198946091,788.00199717862029,392.80549167443706,341.9,-23.695,709.53399999999999,681.63099999999997,-27.90300000000002,2259.165,-244.05699999999999,null,null,null,null,null,77.900000000000006,79.566666666666663,628.48656666666659,1.46,288.67,314.709,38.6,"--",4.01,1.46,1.46,"--","--","--","--","--",63.155966666666664,58.752633333333335,"--","--",45.866666666666667,"--","--",38.733333333333327,53.966666666666661,46.4,38,51.133333333333333,38.866666666666667,48.366666666666674,46.033333333333331,"--","--",51.283999999999999,102.923,52.051000000000002,65.656999999999996,80.305999999999997,79.277000000000001,143.75,1.46,null,"--","--",null,null,null,null,null,370.26593333333335,11.46288,16.861080000000001,2703.28,1011,957,"--",12.200000000000001,11.68023560569314,16.463568939026473,"--","--","--","--","--","--",513.66666666666663,5042.9666666666672,355.2,844,6423.833333333333,970.43333333333339,807.21529999999984,252921,250.64043333333333,80.733333333333334,"--",null,null,null,null,null,135.56666666666666,141.33333333333334,null,null,null,null,null,82.2,34.033333333333331,66.266666666666666,"--",6.833333333333333,17069,null,-158,null,108315.33333333333,null,-470,null,"--",6.6333333333333329,{"$f":"AVERAGE(Monthly!DV398:DV400)","v":1101.5666666666668},{"$f":"AVERAGE(Monthly!DW398:DW400)","v":1097.0000000000002},{"$f":"AVERAGE(Monthly!DX398:DX400)","v":789.86666666666667},{"$f":"AVERAGE(Monthly!DY398:DY400)","v":193.03333333333333},{"$f":"AVERAGE(Monthly!DZ398:DZ400)","v":596.83333333333337},{"$f":"AVERAGE(Monthly!EA398:EA400)","v":424.76666666666665},{"$f":"AVERAGE(Monthly!EB398:EB400)","v":172.06666666666669},{"$f":"AVERAGE(Monthly!EC398:EC400)","v":307.13333333333333},null,null,null,null,null,56.153605507611694,61.918939123661211,63.845971145931067,null,null,null,null,null,116.3,130.56666666666666,126.39999999999999,null,null,null,null,null,8.6666666666666661,5.8633333333333342,8.9099999999999984,9.92,101.00000000000016,9.5266666666666655,5.56,6.2433333333333332,6.8966666666666674,7.78,8.1300000000000008,1.8866666666666676,null,null,null,null,null,1.1491,5.3230333333333331,"--","--",75.298533333333339,90.879466666666659,7918.333333333333,1336.8333333333333,2631.3666666666663,null,null,null,null,null,20.752666666666666,{"$f":"AVERAGE(Monthly!GE398:GE400)","v":18.846666666666668},{"$f":"AVERAGE(Monthly!GF398:GF400)","v":1.0867899999999999},{"$f":"AVERAGE(Monthly!GG398:GG400)","v":1.0867899999999999},{"$f":"AVERAGE(Monthly!GH398:GH400)","v":0},"--","--","--","--"]
["91'Q3",6218.4250000000002,8977.2520000000004,8996.6290000000008,5711.7,377.23435405076361,1412.3929797338023,3922.0726662154339,781.27224254909436,386.1809100964303,356,1,729.50099999999998,697.76700000000005,-31.733999999999924,2250.8470000000002,-269.28399999999999,null,null,null,null,null,79,80.399999999999991,620.72799999999995,1.58,294.29599999999999,311.93599999999998,28.1,"--",3.92,1.58,1.53,"--","--","--","--","--",64.022766666666669,59.82906666666667,"--","--",52.800000000000004,"--","--",44.199999999999996,54.366666666666667,48.866666666666667,41.333333333333336,58.800000000000004,41.9,59.4,48.9,"--","--",52.21,102.197,52.662999999999997,66.129000000000005,80.762,79.635999999999996,152.20099999999999,1.58,null,"--","--",null,null,null,null,null,365.37673333333333,11.35233,16.752739999999999,2767.71,1042.3333333333333,963.66666666666663,"--",12.661333333333333,10.721144868104266,15.527811534770933,"--","--","--","--","--","--",508,5093.7000000000007,354.66666666666669,879,6447.166666666667,1000.4666666666667,802.31293333333326,253808.66666666666,256.14173333333332,82.63333333333334,"--",null,null,null,null,null,136.6,142.86666666666667,null,null,null,null,null,82.333333333333329,34.1,66.100000000000009,"--",6.8666666666666671,17016.666666666668,null,{"$f":"+DL141-DL140","v":-52.333333333332121},null,108315.33333333333,null,{"$f":"+DP141-DP140","v":0},null,"--",7.0333333333333341,{"$f":"AVERAGE(Monthly!DV401:DV403)","v":1102.5333333333333},{"$f":"AVERAGE(Monthly!DW401:DW403)","v":1111.9666666666669},{"$f":"AVERAGE(Monthly!DX401:DX403)","v":797.83333333333337},{"$f":"AVERAGE(Monthly!DY401:DY403)","v":199.4},{"$f":"AVERAGE(Monthly!DZ401:DZ403)","v":598.43333333333328},{"$f":"AVERAGE(Monthly!EA401:EA403)","v":425.90000000000003},{"$f":"AVERAGE(Monthly!EB401:EB403)","v":172.53333333333333},{"$f":"AVERAGE(Monthly!EC401:EC403)","v":314.13333333333333},null,null,null,null,null,56.655363638625566,62.30179654296456,64.193795729446038,null,null,null,null,null,116.13333333333333,131.36666666666667,126.89999999999999,null,null,null,null,null,8.4,5.6433333333333335,8.7866666666666671,9.6833333333333318,{"$f":"+(FB141-FA141)*100","v":89.666666666666472},9.2766666666666655,5.376666666666666,5.8866666666666667,6.5100000000000007,7.4933333333333332,7.94,2.0533333333333337,null,null,null,null,null,1.1438333333333335,5.3762333333333325,"--","--",75.806799999999996,90.713333333333324,7344.9333333333334,1873.9666666666669,2605.9333333333334,null,null,null,null,null,21.655000000000001,{"$f":"AVERAGE(Monthly!GE401:GE403)","v":19.89},{"$f":"AVERAGE(Monthly!GF401:GF403)","v":1.0889800000000001},{"$f":"AVERAGE(Monthly!GG401:GG403)","v":1.0889800000000001},{"$f":"AVERAGE(Monthly!GH401:GH403)","v":0},"--","--","--","--"]
["91'Q4",6279.2960000000003,9016.4439999999995,8993.41,5710.1,371.07417281819721,1400.2556184122636,3938.7702087695393,780.83121493987778,389.56993444670292,363.8,34.814999999999998,745.61599999999999,713.47900000000004,-32.136999999999944,2242.2869999999998,-287.37299999999999,null,null,null,null,null,79,80.2,619.23400000000004,1.81,298.12700000000001,311.97699999999998,29.3,-25.4,3.71,1.81,1.62,"--","--","--","--","--",64.1601,60.090233333333337,"--","--",49.79999999999999,"--","--",42.5,54.833333333333336,47.366666666666667,40.699999999999996,53.666666666666664,48.833333333333336,54.466666666666669,49.900000000000006,"--","--",52.561999999999998,102.304,53.34,66.516000000000005,81.207999999999998,80.191000000000003,149.18700000000001,1.81,null,"--","--",null,null,null,null,null,362.42959999999999,11.148669999999999,16.526199999999999,2793.06,1087,1012,"--",12.266333333333334,10.065256194834017,15.035256194834018,"--","--","--","--","--","--",552.33333333333337,5173.0666666666666,397.3,913.66666666666663,6502.3,1031.7,798.3069999999999,254705.66666666666,262.63136666666668,71.86666666666666,"--",null,null,null,null,null,137.73333333333332,144.19999999999999,null,null,null,null,null,82.399999999999991,34.133333333333333,66.066666666666663,"--",7.1000000000000005,16958.666666666668,null,-58,null,108325.66666666667,null,10.333333333343035,null,"--",7.5,{"$f":"AVERAGE(Monthly!DV404:DV406)","v":1103.2333333333333},{"$f":"AVERAGE(Monthly!DW404:DW406)","v":1116.6000000000001},{"$f":"AVERAGE(Monthly!DX404:DX406)","v":802.0333333333333},{"$f":"AVERAGE(Monthly!DY404:DY406)","v":199.89999999999998},{"$f":"AVERAGE(Monthly!DZ404:DZ406)","v":602.13333333333333},{"$f":"AVERAGE(Monthly!EA404:EA406)","v":428.36666666666662},{"$f":"AVERAGE(Monthly!EB404:EB406)","v":173.76666666666665},{"$f":"AVERAGE(Monthly!EC404:EC406)","v":314.56666666666666},null,null,null,null,null,56.892916019297168,62.317040334354843,64.280160660616446,null,null,null,null,null,116.23333333333335,132.46666666666667,127.8,null,null,null,null,null,7.5966666666666667,4.8166666666666664,8.4466666666666672,9.3999999999999986,95.333333333333144,8.69,4.54,4.8666666666666663,5.5,6.56,7.3466666666666667,2.4800000000000004,null,null,null,null,null,1.1349333333333333,5.4047666666666672,"--","--",74.566699999999997,86.825133333333326,7887.5666666666657,1929.0666666666666,2779.3666666666663,null,null,null,null,null,21.736666666666665,{"$f":"AVERAGE(Monthly!GE404:GE406)","v":20.576666666666668},{"$f":"AVERAGE(Monthly!GF404:GF406)","v":1.1392999999999998},{"$f":"AVERAGE(Monthly!GG404:GG406)","v":1.1392999999999998},{"$f":"AVERAGE(Monthly!GH404:GH406)","v":0},"--","--","--","--"]
["92'Q1",6380.7979999999998,9122.9500000000007,9141.1260000000002,5817.4,385.63553144600786,1421.0935971685967,4010.670871385395,777.87469652253753,386.61341602936267,382.4,2.6349999999999998,751.03300000000002,726.37699999999995,-24.656000000000063,2259.6759999999999,-324.70999999999998,null,null,null,null,null,78.599999999999994,79.666666666666671,610.22220000000004,1.45,310.81400000000002,328.34300000000002,25.9,-11.6,3.7,1.45,1.25,"--","--","--","--","--",64.078066666666658,60.227800000000002,810192.66666666663,1.55,51.533333333333331,"--","--",42.733333333333327,53.766666666666673,48,44.133333333333326,57.066666666666663,46.466666666666669,56.266666666666673,49.433333333333337,"--",33857,53.302999999999997,102.52200000000001,54.716999999999999,67.811999999999998,82.864000000000004,80.688000000000002,151.98500000000001,1.45,null,492090,441014,null,null,null,null,null,361.49946666666665,10.87307,16.186779999999999,2870.9,1241,1101.6666666666667,"--",12.552333333333335,10.260502622599068,15.417169289265734,"--","--","--","--","--","--",622.66666666666663,5290.166666666667,427.06666666666661,1036,6641.9333333333343,1085.0666666666668,799.35506666666663,255455,266.2081,70.766666666666666,"--",null,null,null,null,null,138.66666666666666,145.46666666666667,null,null,null,null,null,82.36666666666666,34.1,66.3,"--",7.3666666666666671,16824.333333333332,null,-134.33333333333576,null,108352.66666666667,null,27,null,"--",8.1999999999999993,{"$f":"AVERAGE(Monthly!DV407:DV409)","v":1099.1999999999998},{"$f":"AVERAGE(Monthly!DW407:DW409)","v":1080.4666666666665},{"$f":"AVERAGE(Monthly!DX407:DX409)","v":779.4},{"$f":"AVERAGE(Monthly!DY407:DY409)","v":188.20000000000002},{"$f":"AVERAGE(Monthly!DZ407:DZ409)","v":591.19999999999993},{"$f":"AVERAGE(Monthly!EA407:EA409)","v":420.76666666666671},{"$f":"AVERAGE(Monthly!EB407:EB409)","v":170.43333333333334},{"$f":"AVERAGE(Monthly!EC407:EC409)","v":301.06666666666666},null,null,null,null,null,57.494244347031774,63.070993242737103,65.067729232927917,null,null,null,null,null,115.89999999999999,133.16666666666666,128.36666666666667,null,null,null,null,null,6.5,4.0233333333333334,8.2799999999999994,9.2033333333333331,92.333333333333371,8.7099999999999991,3.8933333333333331,4.3566666666666665,5.2866666666666662,6.59,7.3033333333333337,2.9466666666666672,null,null,null,null,null,1.1774666666666667,5.4754999999999994,"--","--",75.79616666666665,87.529499999999999,7799.8999999999987,1682.7,2683.4666666666667,null,null,null,null,null,18.91033333333333,{"$f":"AVERAGE(Monthly!GE407:GE409)","v":17.946666666666669},{"$f":"AVERAGE(Monthly!GF407:GF409)","v":1.0585799999999999},{"$f":"AVERAGE(Monthly!GG407:GG409)","v":1.0585799999999999},{"$f":"AVERAGE(Monthly!GH407:GH409)","v":0},"--","--","--","--"]
["92'Q2",6492.299,9223.5450000000001,9209.5419999999995,5857.3,388.32677341305924,1427.075271655018,4041.8979549319229,803.20928251864143,410.39669951555902,397,25.315999999999999,763.38,726.72900000000004,-36.650999999999954,2256.7640000000001,-331.40600000000001,null,null,null,null,null,79.599999999999994,80.600000000000009,602.58770000000004,1.32,323.36900000000003,328.07600000000002,15.5,25,3.54,1.32,1.23,"--","--","--","--","--",65.218133333333341,61.49496666666667,816985.66666666663,1.5233333333333334,53.966666666666669,"--","--",47.033333333333331,54.233333333333327,51.699999999999996,44.433333333333337,59.933333333333337,53.333333333333336,58.866666666666667,49.4,"--",36489.666666666664,54.411999999999999,101.682,55.225000000000001,68.382999999999996,83.073999999999998,80.757999999999996,167.43199999999999,1.32,null,496474,446918,null,null,null,null,null,357.83696666666668,10.692589999999999,15.988630000000001,2941.75,1152.6666666666667,1055.6666666666667,"--",12.829000000000001,10.673710745857029,15.99371074585703,"--","--","--","--","--","--",565.33333333333337,5389.1333333333341,451.13333333333338,994,6711.333333333333,1124.6666666666667,797.53409999999997,256288.66666666666,269.09620000000001,78.933333333333337,"--",null,null,null,null,null,139.73333333333335,146.73333333333335,null,null,null,null,null,83,34.266666666666666,66.600000000000009,"--",7.6000000000000005,16830.666666666668,null,6.3333333333357587,null,108633.33333333333,null,280.66666666665697,null,"--",8.6666666666666661,{"$f":"AVERAGE(Monthly!DV410:DV412)","v":1104.5333333333333},{"$f":"AVERAGE(Monthly!DW410:DW412)","v":1100.0666666666668},{"$f":"AVERAGE(Monthly!DX410:DX412)","v":792.06666666666661},{"$f":"AVERAGE(Monthly!DY410:DY412)","v":193.56666666666669},{"$f":"AVERAGE(Monthly!DZ410:DZ412)","v":598.5},{"$f":"AVERAGE(Monthly!EA410:EA412)","v":426},{"$f":"AVERAGE(Monthly!EB410:EB412)","v":172.5},{"$f":"AVERAGE(Monthly!EC410:EC412)","v":308},null,null,null,null,null,58.488179830948454,63.702224905304917,65.60448758984306,null,null,null,null,null,117.16666666666667,134.06666666666669,129,null,null,null,null,null,6.5,3.7699999999999996,8.2766666666666655,9.1300000000000008,85.333333333333528,8.6766666666666676,3.6799999999999997,4.22,5.206666666666667,6.6500000000000012,7.3766666666666678,3.1566666666666681,null,null,null,null,null,1.1941666666666666,5.5057666666666663,"--","--",76.918366666666671,87.874700000000004,8558.7333333333354,1903.5666666666666,3016.9333333333329,null,null,null,null,null,21.186,{"$f":"AVERAGE(Monthly!GE410:GE412)","v":19.989999999999998},{"$f":"AVERAGE(Monthly!GF410:GF412)","v":1.102678},{"$f":"AVERAGE(Monthly!GG410:GG412)","v":1.102678},{"$f":"AVERAGE(Monthly!GH410:GH412)","v":0},"--","--","--","--"]
["92'Q3",6586.5479999999998,9313.2080000000005,9304.1949999999997,5920.7,396.60515649801977,1435.5801251975297,4088.5147183044501,815.62339300029134,420.91769506986424,397.9,23.219000000000001,775.41399999999999,742.14400000000001,-33.269999999999982,2268.3969999999999,-343.93400000000003,null,null,null,null,null,79.8,80.666666666666671,598.30363333333332,1.35,307.005,319.17899999999997,19,6.9,3.41,1.35,1.27,"--","--","--","--","--",65.717733333333328,62.162866666666666,826215,1.5166666666666666,52.333333333333336,"--","--",45.966666666666669,54.766666666666673,48.333333333333336,45,56.466666666666669,53.833333333333336,56.033333333333331,51.333333333333336,"--",36796.333333333336,55.655999999999999,101.21,55.872999999999998,69.003,83.516999999999996,80.971999999999994,156.44200000000001,1.35,null,504509,454468,null,null,null,null,null,354.95566666666667,10.554449999999999,15.848409999999999,3007.81,1183.6666666666667,1092.6666666666667,"--",12.778,10.708164393508705,16.05149772684204,"--","--","--","--","--","--",637.66666666666663,5449.6,425.13333333333338,1015,6740.7333333333336,1152.2333333333333,799.36363333333338,257224.66666666666,272.02503333333334,76.099999999999994,"--",null,null,null,null,null,140.79999999999998,147.86666666666667,null,null,null,null,null,83.166666666666671,34.233333333333334,66.600000000000009,"--",7.6333333333333329,16787.666666666668,null,-43,null,108896,null,262.66666666667152,null,"--",8.6666666666666661,{"$f":"AVERAGE(Monthly!DV413:DV415)","v":1106.3999999999999},{"$f":"AVERAGE(Monthly!DW413:DW415)","v":1118.8666666666668},{"$f":"AVERAGE(Monthly!DX413:DX415)","v":802.79999999999984},{"$f":"AVERAGE(Monthly!DY413:DY415)","v":200.63333333333333},{"$f":"AVERAGE(Monthly!DZ413:DZ415)","v":602.16666666666674},{"$f":"AVERAGE(Monthly!EA413:EA415)","v":428.56666666666666},{"$f":"AVERAGE(Monthly!EB413:EB415)","v":173.6},{"$f":"AVERAGE(Monthly!EC413:EC415)","v":316.06666666666666},null,null,null,null,null,59.04867492601489,64.321776189909599,66.254880962594314,null,null,null,null,null,117.86666666666667,134.4,129.29999999999998,null,null,null,null,null,6.0066666666666668,3.2566666666666664,7.9799999999999995,8.7033333333333331,72.333333333333357,8.01,3.0833333333333335,3.4166666666666665,4.1466666666666674,5.6066666666666665,6.6166666666666671,3.2000000000000006,null,null,null,null,null,1.2018666666666666,5.4676333333333327,"--","--",75.431299999999993,83.906900000000007,7917.7000000000007,2625.7666666666669,2954.8333333333335,null,null,null,null,null,21.670333333333332,{"$f":"AVERAGE(Monthly!GE413:GE415)","v":20.083333333333332},{"$f":"AVERAGE(Monthly!GF413:GF415)","v":1.12503},{"$f":"AVERAGE(Monthly!GG413:GG415)","v":1.12503},{"$f":"AVERAGE(Monthly!GH413:GH415)","v":0},"--","--","--","--"]
["92'Q4",6697.5529999999999,9406.5280000000002,9395.0879999999997,5991.1,404.48445807455812,1449.9578955085278,4136.6576464169138,837.10307100472494,439.43499878984164,411.4,26.635999999999999,793.976,745.88599999999997,-48.090000000000032,2263.5100000000002,-330.57400000000001,null,null,null,null,null,79.900000000000006,81.033333333333331,596.7299999999999,1.37,314.30399999999997,330.73399999999998,15.5,-1.8,3.06,1.37,1.31,"--","--","--","--","--",66.410766666666674,62.698733333333337,831183,1.5133333333333334,52.70000000000001,"--","--",45.900000000000006,53.266666666666659,49.033333333333331,43.166666666666664,57.866666666666667,45.5,57.06666666666667,50.466666666666669,"--",37538.333333333336,55.646999999999998,103.012,56.283999999999999,69.436999999999998,83.498000000000005,81.058000000000007,174.65299999999999,1.37,null,514701,462686,null,null,null,null,null,353.04633333333339,10.480549999999999,15.790749999999999,3075.38,1228.3333333333333,1142,"--",13.280000000000001,10.489020909692265,15.645687576358931,"--","--","--","--","--","--",628.33333333333337,5523.333333333333,400.76666666666665,1082,6763.7333333333336,1181.5333333333335,802.79089999999997,258140.33333333334,276.37236666666666,83.2,"--",null,null,null,null,null,142.03333333333333,149.20000000000002,null,null,null,null,null,83.5,34.200000000000003,66.266666666666666,"--",7.3666666666666671,16759.333333333332,null,-28.333333333335759,null,109308,null,412,null,"--",9.1,{"$f":"AVERAGE(Monthly!DV416:DV418)","v":1118.5666666666668},{"$f":"AVERAGE(Monthly!DW416:DW418)","v":1130.3333333333333},{"$f":"AVERAGE(Monthly!DX416:DX418)","v":811.9},{"$f":"AVERAGE(Monthly!DY416:DY418)","v":202.4},{"$f":"AVERAGE(Monthly!DZ416:DZ418)","v":609.5},{"$f":"AVERAGE(Monthly!EA416:EA418)","v":433.63333333333338},{"$f":"AVERAGE(Monthly!EB416:EB418)","v":175.86666666666667},{"$f":"AVERAGE(Monthly!EC416:EC418)","v":318.43333333333334},null,null,null,null,null,60.004842247394521,65.312488467722631,67.158839896829505,null,null,null,null,null,117.83333333333333,135.06666666666666,129.9,null,null,null,null,null,6,3.0366666666666666,8.0233333333333334,8.8699999999999992,84.666666666666572,8.2066666666666652,3.0700000000000003,3.5633333333333339,4.4433333333333334,5.9066666666666663,6.7433333333333332,3.1799999999999993,null,null,null,null,null,1.2617333333333334,5.6575333333333333,"--","--",79.511766666666674,88.779499999999999,8600.2666666666682,2363.7999999999997,3081.7999999999997,null,null,null,null,null,20.478999999999999,{"$f":"AVERAGE(Monthly!GE416:GE418)","v":19.203333333333333},{"$f":"AVERAGE(Monthly!GF416:GF418)","v":1.1267566666666669},{"$f":"AVERAGE(Monthly!GG416:GG418)","v":1.1267566666666669},{"$f":"AVERAGE(Monthly!GH416:GH418)","v":0},"--","--","--","--"]
["93'Q1",6748.1819999999998,9424.0650000000005,9388.5110000000004,6013.9,408.41387600363697,1451.415248928856,4154.0708750675067,845.3029176649726,444.75135095427248,413.3,45.978999999999999,811.16600000000005,747.58100000000002,-63.585000000000036,2237.8449999999998,-340.61200000000002,null,null,null,null,null,80.3,81.366666666666674,593.41193333333331,0.71,312.54399999999998,323.12599999999998,25.9,32.200000000000003,2.91,0.71,0.86,"--","--","--","--","--",66.997166666666672,63.365333333333332,839638.66666666663,1.5066666666666666,54.833333333333336,55.666666666666664,"--",47,52.966666666666661,49.433333333333337,43.833333333333336,60.266666666666673,52.43333333333333,60.566666666666663,52.233333333333327,"--",36966,56.030999999999999,97.656000000000006,55.76,68.894000000000005,82.296000000000006,80.936000000000007,177.41200000000001,0.71,null,521176,468591,null,null,null,null,null,358.40649999999999,10.425090000000001,15.68214,3138.37,1167.6666666666667,1127,"--",12.977333333333334,10.306653279414654,15.299986612747986,"--","--","--","--","--","--",600.66666666666663,5557.6333333333341,411.5,1034.6666666666667,6801.7666666666673,1188.2666666666667,812.34686666666664,258916.66666666666,283.13883333333337,87.266666666666652,"--",null,null,null,null,null,143.06666666666666,150.5,null,null,null,null,null,84.3,34.233333333333327,66.2,"--",7.1333333333333329,16797,null,37.666666666667879,null,109949.66666666667,null,641.66666666667152,null,"--",8.5333333333333332,{"$f":"AVERAGE(Monthly!DV419:DV421)","v":1138.5999999999999},{"$f":"AVERAGE(Monthly!DW419:DW421)","v":1119.4333333333334},{"$f":"AVERAGE(Monthly!DX419:DX421)","v":807.46666666666658},{"$f":"AVERAGE(Monthly!DY419:DY421)","v":195.03333333333333},{"$f":"AVERAGE(Monthly!DZ419:DZ421)","v":612.43333333333328},{"$f":"AVERAGE(Monthly!EA419:EA421)","v":435.93333333333339},{"$f":"AVERAGE(Monthly!EB419:EB421)","v":176.5},{"$f":"AVERAGE(Monthly!EC419:EC421)","v":311.96666666666664},null,null,null,null,null,60.262803997538683,65.680805281978749,67.513216758810742,null,null,null,null,null,118.36666666666667,135.86666666666667,130.66666666666666,null,null,null,null,null,6,3.0399999999999996,7.7333333333333343,8.4033333333333342,67,7.7333333333333334,2.9599999999999995,3.4066666666666667,4.1466666666666656,5.4833333333333334,6.28,2.8733333333333335,null,null,null,null,null,1.2617333333333334,5.770833333333333,"--","--",82.317933333333329,91.141866666666672,8867.8666666666668,2044.3999999999999,3080.8666666666668,null,null,null,null,null,19.824999999999999,{"$f":"AVERAGE(Monthly!GE419:GE421)","v":18.216666666666665},{"$f":"AVERAGE(Monthly!GF419:GF421)","v":1.09148},{"$f":"AVERAGE(Monthly!GG419:GG421)","v":1.09148},{"$f":"AVERAGE(Monthly!GH419:GH421)","v":0},"--","--","--","--"]
["93'Q2",6829.5940000000001,9480.1059999999998,9462.27,6067.9,421.6756615142782,1462.9653185735458,4183.2590199121751,861.81695147674623,457.82096732879376,418.1,31.024000000000001,827.92499999999995,756.54100000000005,-71.383999999999901,2240.3440000000001,-305.99799999999999,null,null,null,null,null,80.2,81.2,588.00373333333334,0.77,327.31099999999998,339.29500000000002,29.3,12.3,2.62,0.77,0.88,"--","--","--","--","--",67.145166666666668,63.598700000000001,847745,1.5,50.333333333333336,51.5,"--",43.866666666666674,53.366666666666667,49.1,45.333333333333336,53.266666666666673,51.866666666666667,53.233333333333327,51.566666666666663,"--",37993,55.936999999999998,101.396,56.183,68.495999999999995,82.328999999999994,82.024000000000001,196.59800000000001,0.77,null,533412,479791,null,null,null,null,null,362.83863333333329,10.37388,15.62288,3207.53,1266,1115.3333333333333,"--",14.211666666666666,10.191810479318921,15.138477145985588,"--","--","--","--","--","--",660,5626.4666666666662,384,1106.3333333333333,6813.7333333333336,1198.2666666666667,821.10926666666671,259685.66666666666,288.46933333333328,82.466666666666654,"--",null,null,null,null,null,144.1,151.76666666666668,null,null,null,null,null,85.066666666666663,34.333333333333329,66.333333333333329,"--",7.0666666666666664,16760,null,-37,null,110543.66666666667,null,594,null,"--",8.2666666666666675,{"$f":"AVERAGE(Monthly!DV422:DV424)","v":1144.6666666666667},{"$f":"AVERAGE(Monthly!DW422:DW424)","v":1140.9333333333334},{"$f":"AVERAGE(Monthly!DX422:DX424)","v":821.43333333333339},{"$f":"AVERAGE(Monthly!DY422:DY424)","v":200.76666666666668},{"$f":"AVERAGE(Monthly!DZ422:DZ424)","v":620.66666666666663},{"$f":"AVERAGE(Monthly!EA422:EA424)","v":441.90000000000003},{"$f":"AVERAGE(Monthly!EB422:EB424)","v":178.76666666666665},{"$f":"AVERAGE(Monthly!EC422:EC424)","v":319.5},null,null,null,null,null,60.936724555192697,66.379029008720806,68.119972194958407,null,null,null,null,null,119.5,136.5,131.13333333333333,null,null,null,null,null,6,3,7.4066666666666663,8.14,73.333333333333428,7.4533333333333331,2.9666666666666668,3.3800000000000003,3.9933333333333336,5.1833333333333336,5.9899999999999993,2.609999999999999,null,null,null,null,null,1.2702666666666669,5.7366000000000001,"--","--",82.03179999999999,88.216966666666664,9756.9666666666672,2452.2666666666669,3381.9,null,null,null,null,null,19.760000000000002,{"$f":"AVERAGE(Monthly!GE422:GE424)","v":18.276666666666667},{"$f":"AVERAGE(Monthly!GF422:GF424)","v":1.0982133333333335},{"$f":"AVERAGE(Monthly!GG422:GG424)","v":1.0982133333333335},{"$f":"AVERAGE(Monthly!GH422:GH424)","v":0},"--","--","--","--"]
["93'Q3",6904.2219999999998,9526.3369999999995,9542.3050000000003,6134.8,426.37254388263034,1477.430095058892,4230.9973610584775,868.82439015651948,461.55051256955329,432.6,2.0550000000000002,838.82799999999997,754.52599999999995,-84.302000000000021,2245.0970000000002,-317.18299999999999,null,null,null,null,null,80,81.166666666666671,586.99400000000003,0.73,340.19299999999998,361.49,21.1,13.8,2.39,0.73,0.84,"--","--","--","--","--",67.418866666666659,63.770633333333336,851750.33333333337,1.5,50.566666666666663,48.333333333333336,"--",43.333333333333336,51.466666666666669,49.333333333333336,45.366666666666674,53.9,50.9,53.933333333333337,51.366666666666667,"--",39177,55.9,102.221,56.220999999999997,68.634,82.078999999999994,81.914000000000001,203.786,0.73,null,543251,488608,null,null,null,null,null,371.56539999999995,10.42759,15.70318,3271.93,1299,1218.3333333333333,"--",13.698333333333332,9.6172937816693871,14.377293781669387,"--","--","--","--","--","--",675.33333333333337,5666.9000000000005,340.63333333333338,1130.3333333333333,6817.7666666666664,1209.2,834.78573333333327,260562.66666666666,296.64806666666669,77.400000000000006,"--",null,null,null,null,null,144.76666666666668,152.66666666666666,null,null,null,null,null,85.733333333333334,34.366666666666667,66.333333333333329,"--",6.8,16749.666666666668,null,-10.333333333332121,null,111239.66666666667,null,696,null,"--",8.2333333333333325,{"$f":"AVERAGE(Monthly!DV425:DV427)","v":1160.3333333333333},{"$f":"AVERAGE(Monthly!DW425:DW427)","v":1173.6333333333334},{"$f":"AVERAGE(Monthly!DX425:DX427)","v":842.03333333333342},{"$f":"AVERAGE(Monthly!DY425:DY427)","v":210.46666666666667},{"$f":"AVERAGE(Monthly!DZ425:DZ427)","v":631.56666666666672},{"$f":"AVERAGE(Monthly!EA425:EA427)","v":449.7},{"$f":"AVERAGE(Monthly!EB425:EB427)","v":181.86666666666667},{"$f":"AVERAGE(Monthly!EC425:EC427)","v":331.6},null,null,null,null,null,61.370815848266538,67.044069741907819,68.785360311747297,null,null,null,null,null,118.86666666666667,135.46666666666667,131.6,null,null,null,null,null,6,3.06,6.8933333333333335,7.6233333333333322,72.999999999999858,7.080000000000001,3.0033333333333339,3.4233333333333333,3.9733333333333332,4.95,5.6166666666666663,2.1933333333333329,null,null,null,null,null,1.3038333333333332,5.7892333333333328,"--","--",84.235300000000009,89.46493333333332,8781.1666666666661,3181.0333333333328,3238.0333333333328,null,null,null,null,null,17.796333333333333,{"$f":"AVERAGE(Monthly!GE425:GE427)","v":16.49666666666667},{"$f":"AVERAGE(Monthly!GF425:GF427)","v":1.0618666666666667},{"$f":"AVERAGE(Monthly!GG425:GG427)","v":1.0775666666666668},{"$f":"AVERAGE(Monthly!GH425:GH427)","v":0},"--","--","--","--"]
["93'Q4",7032.8440000000001,9653.509,9651.0030000000006,6189.2,436.63610165051085,1487.7185751755367,4264.8453231739522,900.05567863140686,489.19715287182953,454.4,17.251000000000001,872.52700000000004,778.85900000000004,-93.668000000000006,2249.9499999999998,-283.44600000000003,null,null,null,null,null,81,82.033333333333346,583.85306666666668,0.75,359.59300000000002,379.94600000000003,20.7,17.2,1.98,0.75,0.86,"--","--","--","--","--",68.434666666666672,64.900866666666673,859169.66666666663,1.49,54.266666666666659,55.5,"--",46.199999999999996,54.29999999999999,50.4,45.766666666666673,60.566666666666663,52.233333333333327,58.433333333333337,51.033333333333331,"--",41382.333333333336,56.597000000000001,103.142,56.671999999999997,68.986000000000004,82.177999999999997,82.15,226.43299999999999,0.75,null,553995,499405,null,null,null,null,null,380.93706666666668,10.39472,15.681380000000001,3343.23,1433.6666666666667,1368.3333333333333,"--",14.606999999999999,9.4026008090083195,14.04593414234165,"--","--","--","--","--","--",761.66666666666663,5744.9666666666672,334.36666666666667,1251,6862.4666666666672,1216.4333333333334,856.59686666666664,261420.66666666666,306.04203333333334,84.033333333333346,"--",null,null,null,null,null,145.96666666666667,153.86666666666667,null,null,null,null,null,86.566666666666663,34.4,66.333333333333329,"--",6.6333333333333329,16797.666666666668,null,48,null,112016.66666666667,null,777,null,"--",8.2000000000000011,{"$f":"AVERAGE(Monthly!DV428:DV430)","v":1174.9666666666667},{"$f":"AVERAGE(Monthly!DW428:DW430)","v":1185.1000000000001},{"$f":"AVERAGE(Monthly!DX428:DX430)","v":851.20000000000016},{"$f":"AVERAGE(Monthly!DY428:DY430)","v":212.23333333333335},{"$f":"AVERAGE(Monthly!DZ428:DZ430)","v":638.96666666666658},{"$f":"AVERAGE(Monthly!EA428:EA430)","v":454.8},{"$f":"AVERAGE(Monthly!EB428:EB430)","v":184.16666666666666},{"$f":"AVERAGE(Monthly!EC428:EC430)","v":333.90000000000003},null,null,null,null,null,62.880628763206857,68.013385286965246,69.566827520471449,null,null,null,null,null,118.89999999999999,135.33333333333334,132.13333333333333,null,null,null,null,null,6,2.9899999999999998,6.8433333333333337,7.5533333333333337,71,7.0533333333333337,3.06,3.5266666666666668,4.080000000000001,4.9733333333333336,5.6066666666666665,2.0799999999999996,null,null,null,null,null,1.3248333333333333,5.8103000000000007,3.1290499999999999,"--",86.549333333333337,90.84653333333334,9666.1333333333332,2835.6,3605.0333333333333,null,null,null,null,null,16.451333333333334,{"$f":"AVERAGE(Monthly!GE428:GE430)","v":15.18},{"$f":"AVERAGE(Monthly!GF428:GF430)","v":0.98780000000000001},{"$f":"AVERAGE(Monthly!GG428:GG430)","v":1.1607866666666666},{"$f":"AVERAGE(Monthly!GH428:GH430)","v":0},"--","--","--","--"]
["94'Q1",7136.259,9748.1560000000009,9703.9060000000009,6260.1,447.03268658786538,1507.6212375576297,4305.4460758545056,910.21564799928342,496.17563743125163,464.1,54.664000000000001,892.85500000000002,786.51099999999997,-106.34400000000005,2222.134,-266.48200000000003,null,null,null,null,null,81.400000000000006,82.500000000000014,590.08090000000004,0.24,386.37799999999999,407.036,32.799999999999997,26.3,1.86,0.24,0.48,"--","--","--","--","--",69.276633333333336,65.714066666666668,866497.66666666663,1.47,56.466666666666669,57,"--",48.133333333333333,56.266666666666673,52.033333333333331,43.833333333333336,62.833333333333336,61.6,61.1,55.6,"--",40927.333333333336,56.948,99.7,56.314999999999998,69.239000000000004,81.424999999999997,81.334000000000003,243.95699999999999,0.24,null,564793,509931,null,null,null,null,null,390.91696666666667,10.410830000000001,15.72404,3432.9,1391,1333.6666666666667,"--",15.067666666666668,9.106161048732643,13.702827715399309,"--","--","--","--","--","--",684,5796.7333333333336,317.53333333333336,1193,6910.5666666666657,1225.8666666666666,881.23596666666663,262131.33333333334,315.90426666666667,93,"--",null,null,null,null,null,146.70000000000002,154.86666666666667,null,null,null,null,null,87.3,34.366666666666667,66.566666666666663,"--",6.5666666666666664,16871.333333333332,null,73.666666666664241,null,112872.33333333333,null,855.66666666665697,null,"--",9.0333333333333332,{"$f":"AVERAGE(Monthly!DV431:DV433)","v":1189.0666666666668},{"$f":"AVERAGE(Monthly!DW431:DW433)","v":1168.8},{"$f":"AVERAGE(Monthly!DX431:DX433)","v":841.63333333333321},{"$f":"AVERAGE(Monthly!DY431:DY433)","v":205.86666666666667},{"$f":"AVERAGE(Monthly!DZ431:DZ433)","v":635.76666666666654},{"$f":"AVERAGE(Monthly!EA431:EA433)","v":452.73333333333329},{"$f":"AVERAGE(Monthly!EB431:EB433)","v":183.03333333333333},{"$f":"AVERAGE(Monthly!EC431:EC433)","v":327.16666666666669},null,null,null,null,null,63.710501710102264,68.805247719478245,70.315795400329932,null,null,null,null,null,119.36666666666666,136.33333333333334,133.1,null,null,null,null,null,6.02,3.2133333333333334,7.16,7.8466666666666667,68.666666666666657,7.2966666666666669,3.2433333333333336,3.91,4.5366666666666662,5.4766666666666666,6.0666666666666664,2.1566666666666663,null,null,null,null,null,1.3413666666666666,8.7236333333333338,3.1774,"--",90.616533333333336,91.217066666666668,9538.9666666666672,2481.7666666666664,3772.2333333333336,null,null,null,null,null,14.813333333333333,{"$f":"AVERAGE(Monthly!GE431:GE433)","v":13.969999999999999},{"$f":"AVERAGE(Monthly!GF431:GF433)","v":1.0043333333333335},{"$f":"AVERAGE(Monthly!GG431:GG433)","v":1.109},{"$f":"AVERAGE(Monthly!GH431:GH433)","v":0},"--",{"$f":"AVERAGE(Monthly!GJ431:GJ433)","v":2.2703333333333333},{"$f":"AVERAGE(Monthly!GK431:GK433)","v":3806.6666666666665},"--"]
["94'Q2",7269.8469999999998,9881.384,9788.2999999999993,6308.7,451.84213040731089,1519.5628349868853,4337.2950346058042,924.18152229113957,507.59106522376834,479.5,98.683999999999997,926.12300000000005,813.06899999999996,-113.05400000000009,2235.145,-236.80099999999999,null,null,null,null,null,82.6,83.333333333333329,604.84569999999997,0.28000000000000003,398.84,420.86399999999998,35.200000000000003,38.1,1.61,0.28000000000000003,0.53,"--","--","--","--","--",70.523599999999988,67.29206666666667,881211,1.4666666666666666,58.133333333333326,61,"--",50.333333333333336,56.533333333333331,53.466666666666661,47.266666666666673,63.1,67,62.033333333333331,59.233333333333327,"--",43465.333333333336,57.558,99.852000000000004,56.765000000000001,69.234999999999999,81.614000000000004,81.989000000000004,260.21100000000001,0.28000000000000003,null,575768,519746,null,null,null,null,null,403.30326666666662,10.4696,15.78698,3491.89,1466.6666666666667,1381.6666666666667,"--",14.897333333333334,8.5825618995555608,12.922561899555561,"--","--","--","--","--","--",668,5904.0666666666657,334.26666666666665,1214.3333333333333,6983.833333333333,1219,912.68973333333327,262886.66666666669,329.65536666666668,92.199999999999989,"--",null,null,null,null,null,147.53333333333333,155.93333333333331,null,null,null,null,null,88.59999999999998,34.5,66.5,"--",6.2,16968.333333333332,null,97,null,113924.33333333333,null,1052,null,"--",9.1999999999999993,{"$f":"AVERAGE(Monthly!DV434:DV436)","v":1188.6666666666667},{"$f":"AVERAGE(Monthly!DW434:DW436)","v":1185.8},{"$f":"AVERAGE(Monthly!DX434:DX436)","v":848.73333333333323},{"$f":"AVERAGE(Monthly!DY434:DY436)","v":210.6},{"$f":"AVERAGE(Monthly!DZ434:DZ436)","v":638.13333333333333},{"$f":"AVERAGE(Monthly!EA434:EA436)","v":471.26666666666665},{"$f":"AVERAGE(Monthly!EB434:EB436)","v":166.86666666666667},{"$f":"AVERAGE(Monthly!EC434:EC436)","v":337.06666666666666},null,null,null,null,null,64.956798199865915,69.654761566770077,71.081931483104924,null,null,null,null,null,120.03333333333335,136.93333333333334,134.03333333333333,null,null,null,null,null,6.8966666666666674,3.94,7.9466666666666663,8.5966666666666658,64.999999999999943,8.44,3.9866666666666668,5.1333333333333329,5.8166666666666664,6.666666666666667,7.083333333333333,1.9500000000000002,null,null,null,null,null,1.3824666666666665,8.6981999999999999,3.3444333333333334,"--",91.797533333333334,89.736800000000002,10788.266666666666,2977.9666666666672,4018.1,null,null,null,null,null,17.776666666666667,{"$f":"AVERAGE(Monthly!GE434:GE436)","v":16.060000000000002},{"$f":"AVERAGE(Monthly!GF434:GF436)","v":1.0487},{"$f":"AVERAGE(Monthly!GG434:GG436)","v":1.1033333333333333},{"$f":"AVERAGE(Monthly!GH434:GH436)","v":0},"--",{"$f":"AVERAGE(Monthly!GJ434:GJ436)","v":2.044},{"$f":"AVERAGE(Monthly!GK434:GK436)","v":3132},"--"]
["94'Q3",7352.2550000000001,9939.6550000000007,9888.1149999999998,6357.6,456.60040993080491,1532.6572642262513,4368.3423258429448,939.74816346089256,518.04804897388226,474.3,61.616999999999997,952.16600000000005,843.50099999999998,-108.66500000000008,2272.694,-254.59299999999999,null,null,null,null,null,83,83.600000000000009,621.14253333333329,0.25,418.79599999999999,437.41,30.4,19.3,1.46,0.25,0.5,"--","--","--","--","--",71.422566666666668,68.360766666666677,901505,1.4633333333333332,58.5,60.166666666666664,"--",52.066666666666663,58.133333333333333,51.800000000000004,45.366666666666667,63.300000000000004,75.7,61.766666666666673,60.733333333333327,"--",44309.666666666664,57.716000000000001,100.01,56.762999999999998,68.867999999999995,80.995000000000005,82.423000000000002,270.19400000000002,0.25,null,587674,530866,null,null,null,null,null,420.27583333333337,10.60345,15.939859999999999,3551.53,1454.3333333333333,1374.6666666666667,"--",14.807333333333334,8.8550105550944718,13.055010555094475,"--","--","--","--","--","--",653.66666666666663,5969.9000000000005,326.33333333333331,1193.6666666666667,7025.3666666666677,1199.6333333333334,944.43783333333329,263725.66666666669,345.90003333333334,90.733333333333334,"--",null,null,null,null,null,148.9,157.1,null,null,null,null,null,89.633333333333326,34.533333333333331,66.533333333333331,10.533333333333333,6,17074,null,105.66666666666788,null,114925.66666666667,null,1001.333333333343,null,"--",9.0333333333333332,{"$f":"AVERAGE(Monthly!DV437:DV439)","v":1216.8999999999999},{"$f":"AVERAGE(Monthly!DW437:DW439)","v":1230.0666666666668},{"$f":"AVERAGE(Monthly!DX437:DX439)","v":883.86666666666667},{"$f":"AVERAGE(Monthly!DY437:DY439)","v":218.6},{"$f":"AVERAGE(Monthly!DZ437:DZ439)","v":665.26666666666677},{"$f":"AVERAGE(Monthly!EA437:EA439)","v":473.86666666666662},{"$f":"AVERAGE(Monthly!EB437:EB439)","v":191.4},{"$f":"AVERAGE(Monthly!EC437:EC439)","v":346.2},null,null,null,null,null,65.241726286562042,69.876294049492699,71.412054047465062,null,null,null,null,null,120.96666666666665,137.53333333333333,134.63333333333333,null,null,null,null,null,7.503333333333333,4.4866666666666672,8.1733333333333338,8.84,66.6666666666666,8.586666666666666,4.4766666666666666,5.5999999999999988,6.2333333333333334,6.9566666666666661,7.333333333333333,1.7333333333333343,null,null,null,null,null,1.3716333333333335,8.6086000000000009,3.3955666666666668,"--",90.563900000000004,86.668066666666661,10508.1,3981.8666666666668,4115.4000000000005,null,null,null,null,null,18.496666666666666,{"$f":"AVERAGE(Monthly!GE437:GE439)","v":16.796666666666667},{"$f":"AVERAGE(Monthly!GF437:GF439)","v":1.13845},{"$f":"AVERAGE(Monthly!GG437:GG439)","v":1.1193333333333333},{"$f":"AVERAGE(Monthly!GH437:GH439)","v":0},"--",{"$f":"AVERAGE(Monthly!GJ437:GJ439)","v":1.7583333333333335},{"$f":"AVERAGE(Monthly!GK437:GK439)","v":2945.3333333333335},"--"]
["94'Q4",7476.6610000000001,10052.518,9970.6090000000004,6426,472.64553314121036,1548.927418829317,4404.4270480294726,976.28811760227507,548.64572570443261,468.1,86.587999999999994,978.95600000000002,862.96900000000005,-115.98699999999997,2252.1990000000001,-256.85500000000002,null,null,null,null,null,84.2,84.533333333333346,637.89313333333337,0.27,430.238,449.78199999999998,16.100000000000001,31.6,1.29,0.27,0.51,"--","--","--","--","--",72.902000000000001,70.105866666666657,919797.33333333337,1.45,58.233333333333327,57.333333333333336,"--",49.800000000000004,57.666666666666664,53.166666666666664,46.633333333333333,61.133333333333333,85.233333333333334,62.233333333333327,64.800000000000011,"--",46029,58.293999999999997,99.69,57.201999999999998,69.677000000000007,81.266000000000005,82.096999999999994,287.67500000000001,0.27,null,599972,542756,null,null,null,null,null,437.43973333333332,10.72087,16.02768,3602.26,1472,1377.6666666666667,"--",15.404333333333334,8.2366774777733678,12.180010811106703,"--","--","--","--","--","--",663.33333333333337,6078.4333333333334,347.5333333333333,1163.3333333333333,7122.9000000000005,1166.0333333333335,982.3988333333333,264554.66666666669,360.31376666666665,93.133333333333326,"--",null,null,null,null,null,149.76666666666668,158.1,null,null,null,null,null,90.433333333333337,34.5,66.7,10.133333333333333,5.6333333333333329,17182.333333333332,null,108.33333333333212,null,115839,null,913.33333333332848,null,"--",9.2333333333333325,{"$f":"AVERAGE(Monthly!DV440:DV442)","v":1230.8333333333333},{"$f":"AVERAGE(Monthly!DW440:DW442)","v":1239.9666666666669},{"$f":"AVERAGE(Monthly!DX440:DX442)","v":893.06666666666661},{"$f":"AVERAGE(Monthly!DY440:DY442)","v":217.96666666666667},{"$f":"AVERAGE(Monthly!DZ440:DZ442)","v":675.1},{"$f":"AVERAGE(Monthly!EA440:EA442)","v":480.66666666666669},{"$f":"AVERAGE(Monthly!EB440:EB442)","v":194.43333333333331},{"$f":"AVERAGE(Monthly!EC440:EC442)","v":346.90000000000003},null,null,null,null,null,66.226260973883399,70.56548696783841,72.055666287076932,null,null,null,null,null,121.43333333333334,137.63333333333333,134.6,null,null,null,null,null,8.1333333333333329,5.166666666666667,8.57,9.2066666666666652,63.666666666666494,9.1,5.28,6.5966666666666667,7.1566666666666663,7.6333333333333337,7.836666666666666,1.2399999999999993,null,null,null,null,null,1.3681000000000001,8.5298333333333343,3.6128333333333331,"--",90.517399999999995,86.06583333333333,11966.633333333331,3487.3333333333335,4592.166666666667,null,null,null,null,null,17.656666666666666,{"$f":"AVERAGE(Monthly!GE440:GE442)","v":16.536666666666665},{"$f":"AVERAGE(Monthly!GF440:GF442)","v":1.04525},{"$f":"AVERAGE(Monthly!GG440:GG442)","v":1.1220000000000001},{"$f":"AVERAGE(Monthly!GH440:GH442)","v":0},"--",{"$f":"AVERAGE(Monthly!GJ440:GJ442)","v":1.7306666666666668},{"$f":"AVERAGE(Monthly!GK440:GK442)","v":3328},"--"]
["95'Q1",7545.2960000000003,10086.878000000001,10021.616,6443,462.85268689608404,1554.4740624439989,4425.6732506599164,1012.6320594728946,579.86248131349339,457.7,72.412000000000006,1000.4349999999999,879.58399999999995,-120.851,2256.8150000000001,-254.09100000000001,null,null,null,null,null,84.1,84.566666666666663,664.81290000000001,0.14000000000000001,444.779,447.11599999999999,15.8,18.2,1.33,0.14000000000000001,0.38,"--","--","--","--","--",73.65583333333332,70.878866666666667,943319.66666666663,1.4633333333333336,54.866666666666667,53.333333333333336,"--",50,58.233333333333341,52.4,46.4,56.06666666666667,82.2,57.699999999999996,60.1,"--",46537.333333333336,58.774999999999999,97.962000000000003,57.557000000000002,69.683000000000007,81.281999999999996,82.599000000000004,300.274,0.14000000000000001,null,600196,542891,null,null,null,null,null,449.26686666666666,10.90042,16.216709999999999,3649.33,1324,1254,"--",14.561666666666667,8.3070062202395984,12.133672886906263,"--","--","--","--","--","--",600.33333333333337,6174.7999999999993,384.63333333333338,1044,7190.9333333333334,1118.8333333333333,1020.8620666666666,265269.66666666669,378.55549999999999,94.333333333333329,"--",null,null,null,null,null,150.86666666666665,159.43333333333331,null,null,null,null,null,90.933333333333337,34.4,66.766666666666666,10,5.4666666666666659,17263.333333333332,null,81,null,116699,null,860,null,"--",8.1333333333333346,{"$f":"AVERAGE(Monthly!DV443:DV445)","v":1243.5999999999999},{"$f":"AVERAGE(Monthly!DW443:DW445)","v":1221.3333333333333},{"$f":"AVERAGE(Monthly!DX443:DX445)","v":881.30000000000007},{"$f":"AVERAGE(Monthly!DY443:DY445)","v":212.19999999999996},{"$f":"AVERAGE(Monthly!DZ443:DZ445)","v":669.1},{"$f":"AVERAGE(Monthly!EA443:EA445)","v":476.59999999999997},{"$f":"AVERAGE(Monthly!EB443:EB445)","v":192.5},{"$f":"AVERAGE(Monthly!EC443:EC445)","v":340.0333333333333},null,null,null,null,null,66.355938458414101,70.553007833484045,72.191300302044837,null,null,null,null,null,123.43333333333334,138.70000000000002,135.76666666666665,null,null,null,null,null,8.8333333333333339,5.81,8.2799999999999994,8.8766666666666669,59.666666666666757,8.8133333333333344,5.7366666666666672,6.7266666666666666,7.1333333333333337,7.3933333333333335,7.4833333333333334,0.75666666666666682,null,null,null,null,null,1.4071333333333333,8.4548000000000005,6.0318000000000005,"--",93.484200000000001,85.433533333333344,11843.199999999999,3120.8333333333335,4996.666666666667,null,null,null,null,null,18.356666666666666,{"$f":"AVERAGE(Monthly!GE443:GE445)","v":16.89},{"$f":"AVERAGE(Monthly!GF443:GF445)","v":1.1238333333333332},{"$f":"AVERAGE(Monthly!GG443:GG445)","v":1.0913333333333333},{"$f":"AVERAGE(Monthly!GH443:GH445)","v":0},"--",{"$f":"AVERAGE(Monthly!GJ443:GJ445)","v":1.4663333333333333},{"$f":"AVERAGE(Monthly!GK443:GK445)","v":3399.3333333333335},"--"]
["95'Q2",7604.9229999999998,10122.121999999999,10092.757,6500.8,467.55980212362647,1562.1306057866182,4471.1095920897551,1022.4490073669361,586.84852123747771,443,41.319000000000003,1009.936,891.91499999999996,-118.02100000000007,2268.6439999999998,-241.75899999999999,null,null,null,null,null,83.3,83.933333333333337,684.92596666666668,0.14000000000000001,467.43799999999999,474.452,24.5,17.2,1.26,0.14000000000000001,0.42,"--","--","--","--","--",73.900300000000001,71.046499999999995,964807,1.4833333333333332,48.033333333333331,41.833333333333336,"--",45.866666666666667,56,49,43.5,46.566666666666663,69.899999999999991,50.033333333333331,53.79999999999999,"--",47715.666666666664,59.323999999999998,98.554000000000002,58.012999999999998,70.02,81.305000000000007,82.850999999999999,308.02199999999999,0.14000000000000001,null,609548,551333,null,null,null,null,null,460.47329999999994,11.10078,16.442119999999999,3706.5,1287.3333333333333,1278.3333333333333,"--",14.472333333333333,8.7620801388936673,12.728746805560334,"--","--","--","--","--","--",673.33333333333337,6240.2333333333336,345.9666666666667,1019.6666666666666,7207.2666666666673,1092.0666666666668,1056.8479666666667,266007.66666666669,397.99833333333328,91.666666666666671,"--",null,null,null,null,null,152.1,160.73333333333335,null,null,null,null,null,91,34.266666666666666,66.63333333333334,10.033333333333333,5.666666666666667,17261.333333333332,null,-2,null,117142.33333333333,null,443.33333333332848,null,"--",8.4333333333333318,{"$f":"AVERAGE(Monthly!DV446:DV448)","v":1247.0333333333331},{"$f":"AVERAGE(Monthly!DW446:DW448)","v":1244.6333333333334},{"$f":"AVERAGE(Monthly!DX446:DX448)","v":898.26666666666677},{"$f":"AVERAGE(Monthly!DY446:DY448)","v":215.56666666666669},{"$f":"AVERAGE(Monthly!DZ446:DZ448)","v":682.69999999999993},{"$f":"AVERAGE(Monthly!EA446:EA448)","v":486.39999999999992},{"$f":"AVERAGE(Monthly!EB446:EB448)","v":196.30000000000004},{"$f":"AVERAGE(Monthly!EC446:EC448)","v":346.36666666666662},null,null,null,null,null,66.224121219989769,70.801870019752542,72.621565806320845,null,null,null,null,null,124.93333333333334,139.6,136.43333333333331,null,null,null,null,null,9,6.02,7.66,8.2333333333333325,57.333333333333236,7.95,5.5966666666666667,5.97,6.1533333333333333,6.3999999999999995,6.62,0.65000000000000036,null,null,null,null,null,1.371533333333333,8.3665666666666656,6.1452,"--",90.198466666666661,80.661566666666673,12302.066666666666,3587.9666666666672,5098.5666666666666,null,null,null,null,null,19.343333333333334,{"$f":"AVERAGE(Monthly!GE446:GE448)","v":18.103333333333335},{"$f":"AVERAGE(Monthly!GF446:GF448)","v":1.2057500000000001},{"$f":"AVERAGE(Monthly!GG446:GG448)","v":1.1166666666666667},{"$f":"AVERAGE(Monthly!GH446:GH448)","v":0},"--",{"$f":"AVERAGE(Monthly!GJ446:GJ448)","v":1.6669999999999998},{"$f":"AVERAGE(Monthly!GK446:GK448)","v":3124.3333333333335},"--"]
["95'Q3",7706.5309999999999,10208.772000000001,10213.754000000001,6560.4,480.74995761993557,1567.6772494013001,4511.9727929787641,1029.2277650641529,588.88572719537262,456.7,9.3979999999999997,1013.407,930.51700000000005,-82.889999999999986,2262.4349999999999,-245.21700000000001,null,null,null,null,null,82.8,83.766666666666666,702.38336666666657,0.2,475.09899999999999,501.49,26.3,25,1.23,0.2,0.45,"--","--","--","--","--",74.566833333333335,71.620066666666673,976297.66666666663,1.4799999999999998,48.633333333333333,41.833333333333336,"--",46.199999999999996,54.233333333333327,51.5,44.1,49.533333333333331,51.966666666666661,50.4,50.133333333333333,"--",47631.666666666664,59.604999999999997,98.968000000000004,58.326000000000001,70.007999999999996,81.358999999999995,83.313000000000002,319.36,0.2,null,618466,559622,null,null,null,null,null,472.44496666666669,11.209160000000001,16.56437,3745.63,1415.3333333333333,1387,"--",14.763666666666666,8.3309497760898594,12.297616442756526,"--","--","--","--","--","--",714.66666666666663,6317.0333333333328,345.43333333333339,1122,7271.7,1105.7,1091.3172666666667,266850.66666666669,418.57973333333331,93.166666666666671,"--",null,null,null,null,null,152.86666666666667,161.80000000000001,null,null,null,null,null,91.566666666666663,34.299999999999997,66.599999999999994,10.066666666666668,5.666666666666667,17235,null,-26.333333333332121,null,117640.33333333333,null,498,null,"--",8.2333333333333343,{"$f":"AVERAGE(Monthly!DV449:DV451)","v":1239.0333333333333},{"$f":"AVERAGE(Monthly!DW449:DW451)","v":1254.6666666666665},{"$f":"AVERAGE(Monthly!DX449:DX451)","v":903.23333333333323},{"$f":"AVERAGE(Monthly!DY449:DY451)","v":221.9666666666667},{"$f":"AVERAGE(Monthly!DZ449:DZ451)","v":681.26666666666677},{"$f":"AVERAGE(Monthly!EA449:EA451)","v":485.36666666666662},{"$f":"AVERAGE(Monthly!EB449:EB451)","v":195.9},{"$f":"AVERAGE(Monthly!EC449:EC451)","v":351.43333333333334},null,null,null,null,null,67.038773295329833,71.597313908255614,73.306192328323647,null,null,null,null,null,125.19999999999999,140.19999999999999,136.9,null,null,null,null,null,8.7666666666666675,5.7966666666666669,7.4333333333333336,8.0533333333333328,61.999999999999922,7.7033333333333331,5.3666666666666671,5.6533333333333333,5.8566666666666665,6.083333333333333,6.3233333333333333,0.66999999999999993,null,null,null,null,null,1.3557666666666668,8.3278000000000016,6.2144666666666666,"--",92.224466666666672,83.129900000000006,11457.6,4566.8666666666668,5171.7333333333327,null,null,null,null,null,17.853333333333335,{"$f":"AVERAGE(Monthly!GE449:GE451)","v":16.216666666666669},{"$f":"AVERAGE(Monthly!GF449:GF451)","v":1.1761833333333334},{"$f":"AVERAGE(Monthly!GG449:GG451)","v":1.1079999999999999},{"$f":"AVERAGE(Monthly!GH449:GH451)","v":0},"--",{"$f":"AVERAGE(Monthly!GJ449:GJ451)","v":1.575},{"$f":"AVERAGE(Monthly!GK449:GK451)","v":2939},"--"]
["95'Q4",7799.4930000000004,10281.245999999999,10277.245999999999,6606.5,489.08973786003787,1575.7470720720721,4541.6631900678904,1049.6457099352876,605.63137968429692,467,15.113,1026.3610000000001,943.81299999999999,-82.548000000000116,2242.0970000000002,-222.29400000000001,null,null,null,null,null,82.6,83.466666666666669,711.27893333333338,0.25,482.33699999999999,517.65499999999997,10.3,7.2,1.1599999999999999,0.25,0.5,"--","--","--","--","--",75.215733333333333,72.487099999999998,985496.33333333337,1.4733333333333334,46.266666666666673,41.333333333333336,"--",45.533333333333339,54.466666666666669,47.733333333333327,42.866666666666667,47.333333333333336,43.766666666666673,46.300000000000004,47.066666666666663,"--",50434,60.226999999999997,98.626000000000005,58.805999999999997,70.456000000000003,81.619,83.465000000000003,319.13299999999998,0.25,null,625252,566407,null,null,null,null,null,478.69956666666667,11.2476,16.608640000000001,3805.94,1417.3333333333333,1424,"--",15.114666666666666,8.1931424801054007,12.089809146772067,"--","--","--","--","--","--",689.66666666666663,6391.833333333333,335.66666666666669,1142.3333333333333,7313.7666666666673,1127.8,1128.8110333333332,267704.66666666669,438.0369,89.8,"--",null,null,null,null,null,153.70000000000002,162.93333333333331,null,null,null,null,null,92.033333333333346,34.266666666666666,66.5,9.9666666666666668,5.5666666666666664,17218.666666666668,null,-16.333333333332121,null,118183,null,542.66666666667152,null,"--",8.1666666666666661,{"$f":"AVERAGE(Monthly!DV452:DV454)","v":1265.8333333333333},{"$f":"AVERAGE(Monthly!DW452:DW454)","v":1275.6333333333332},{"$f":"AVERAGE(Monthly!DX452:DX454)","v":920.5},{"$f":"AVERAGE(Monthly!DY452:DY454)","v":221.46666666666667},{"$f":"AVERAGE(Monthly!DZ452:DZ454)","v":699.0333333333333},{"$f":"AVERAGE(Monthly!EA452:EA454)","v":498},{"$f":"AVERAGE(Monthly!EB452:EB454)","v":201.03333333333333},{"$f":"AVERAGE(Monthly!EC452:EC454)","v":355.13333333333338},null,null,null,null,null,67.825199951240975,72.234888742534011,73.84707644338647,null,null,null,null,null,125.46666666666665,141.26666666666668,137.86666666666667,null,null,null,null,null,8.7166666666666668,5.7199999999999989,6.9866666666666672,7.6400000000000006,65.333333333333329,7.3533333333333326,5.2600000000000007,5.4433333333333325,5.5,5.6866666666666674,5.8933333333333335,0.45000000000000107,null,null,null,null,null,1.3561666666666667,8.3345666666666673,7.3752666666666675,"--",94.704066666666662,84.633733333333339,12520.433333333334,3905.3999999999996,5433.166666666667,null,null,null,null,null,18.156666666666666,{"$f":"AVERAGE(Monthly!GE452:GE454)","v":16.966666666666665},{"$f":"AVERAGE(Monthly!GF452:GF454)","v":1.0453666666666666},{"$f":"AVERAGE(Monthly!GG452:GG454)","v":1.1216666666666668},{"$f":"AVERAGE(Monthly!GH452:GH454)","v":0},"--",{"$f":"AVERAGE(Monthly!GJ452:GJ454)","v":2.0700000000000003},{"$f":"AVERAGE(Monthly!GK452:GK454)","v":3458},"--"]
["96'Q1",7893.1459999999997,10348.691000000001,10361.544,6667.8,494.40059177980856,1585.948546014369,4587.4508622058229,1075.7480106585463,631.3129882014789,479.3,2.036,1059.7270000000001,955.19299999999998,-104.53400000000011,2246.7759999999998,-223.10900000000001,null,null,null,null,null,81.7,82.933333333333337,724.44476666666685,0.25,505.03100000000001,547.35500000000002,14,14,1.17,0.25,0.55000000000000004,"--","--","--","--","--",75.735900000000001,72.909333333333336,990406.33333333337,1.4866666666666666,46.1,41.666666666666664,"--",44.766666666666673,50.699999999999996,47.966666666666669,43.300000000000004,46.433333333333337,39.666666666666664,46.20000000000001,48.966666666666669,"--",48964.666666666664,61.140999999999998,97.887,59.476999999999997,70.831999999999994,81.924999999999997,83.968999999999994,329.67899999999997,0.25,null,634597,575429,null,null,null,null,null,485.6268,11.26469,16.59188,3856.13,1460.6666666666667,1414.6666666666667,"--",15.114333333333335,8.3172147215961854,12.190548054929517,"--","--","--","--","--","--",734.66666666666663,6508.8999999999987,344.26666666666665,1149.3333333333333,7383.7333333333336,1164.0333333333333,1162.6827999999998,268370,455.72803333333331,90.5,"--",null,null,null,null,null,155.06666666666666,164.03333333333333,null,null,null,null,null,92.066666666666663,34.133333333333333,66.533333333333331,9.8666666666666671,5.5333333333333341,17210,null,-8.6666666666678793,null,118681.33333333333,null,498.33333333332848,null,"--",8.1333333333333346,{"$f":"AVERAGE(Monthly!DV455:DV457)","v":1269.8999999999999},{"$f":"AVERAGE(Monthly!DW455:DW457)","v":1245.5333333333335},{"$f":"AVERAGE(Monthly!DX455:DX457)","v":899.43333333333328},{"$f":"AVERAGE(Monthly!DY455:DY457)","v":215.26666666666665},{"$f":"AVERAGE(Monthly!DZ455:DZ457)","v":684.16666666666663},{"$f":"AVERAGE(Monthly!EA455:EA457)","v":487.56666666666661},{"$f":"AVERAGE(Monthly!EB455:EB457)","v":196.6},{"$f":"AVERAGE(Monthly!EC455:EC457)","v":346.09999999999997},null,null,null,null,null,68.596191890054186,72.970501722310772,74.561378993341805,null,null,null,null,null,126.3,141.56666666666669,138.06666666666669,null,null,null,null,null,8.3333333333333339,5.3633333333333333,7.05,7.71,66.000000000000014,7.2433333333333332,4.93,5.123333333333334,5.2666666666666666,5.57,5.91,0.78666666666666618,null,null,null,null,null,1.3692333333333331,8.3405666666666676,7.5223666666666666,"--",96.553366666666662,86.555166666666665,12456.099999999999,3353.6666666666665,5630.1000000000013,null,null,null,null,null,19.77,{"$f":"AVERAGE(Monthly!GE455:GE457)","v":18.566666666666666},{"$f":"AVERAGE(Monthly!GF455:GF457)","v":1.1484166666666666},{"$f":"AVERAGE(Monthly!GG455:GG457)","v":1.1576666666666666},{"$f":"AVERAGE(Monthly!GH455:GH457)","v":0},"--",{"$f":"AVERAGE(Monthly!GJ455:GJ457)","v":2.4313333333333333},{"$f":"AVERAGE(Monthly!GK455:GK457)","v":3645},"--"]
["96'Q2",8061.5349999999999,10529.379000000001,10511.895,6740.2,510.13872921450479,1606.3297423553756,4623.7315284301194,1104.8231641550419,658.72290171558802,499.5,29.649000000000001,1083.443,970.73500000000001,-112.70799999999997,2282.77,-179.857,null,null,null,null,null,82.3,83.533333333333346,736.83823333333328,0.28000000000000003,506.93299999999999,548.01499999999999,14.8,24,1.1200000000000001,0.28000000000000003,0.56999999999999995,"--","--","--","--","--",77.352366666666668,74.709199999999996,992995.33333333337,1.45,50.666666666666664,47.833333333333336,"--",45.866666666666674,53.9,48.233333333333327,42.066666666666663,54.466666666666669,46.533333333333331,53.366666666666667,50.699999999999996,"--",50054.333333333336,61.621000000000002,97.509,60.003,71.555000000000007,81.956999999999994,83.855999999999995,334.90199999999999,0.28000000000000003,null,647007,587049,null,null,null,null,null,490.72800000000001,11.28903,16.58643,3894.53,1495.6666666666667,1449.6666666666667,"--",15.200000000000001,8.327094774662779,12.177094774662779,"--","--","--","--","--","--",734.33333333333337,6639.333333333333,341.66666666666669,1186.3333333333333,7454.2333333333336,1195.2333333333333,1190.9889333333333,269115.66666666669,470.2346,91.5,"--",null,null,null,null,null,156.4,165,null,null,null,null,null,93.266666666666666,34.300000000000004,66.7,9.7333333333333343,5.5,17217.333333333332,null,7.3333333333321207,null,119475.33333333333,null,794,null,"--",8.5,{"$f":"AVERAGE(Monthly!DV458:DV460)","v":1282.7666666666667},{"$f":"AVERAGE(Monthly!DW458:DW460)","v":1281.2666666666667},{"$f":"AVERAGE(Monthly!DX458:DX460)","v":923.16666666666663},{"$f":"AVERAGE(Monthly!DY458:DY460)","v":224.43333333333337},{"$f":"AVERAGE(Monthly!DZ458:DZ460)","v":698.73333333333323},{"$f":"AVERAGE(Monthly!EA458:EA460)","v":498.06666666666666},{"$f":"AVERAGE(Monthly!EB458:EB460)","v":200.66666666666666},{"$f":"AVERAGE(Monthly!EC458:EC460)","v":358.10000000000008},null,null,null,null,null,70.461457936791618,74.261348267680916,75.595012226246112,null,null,null,null,null,127.83333333333333,141.93333333333334,138.29999999999998,null,null,null,null,null,8.25,5.2433333333333332,7.61,8.2966666666666669,68.666666666666657,8.1066666666666674,5.0199999999999996,5.6633333333333331,6.12,6.4900000000000011,6.72,1.0566666666666666,null,null,null,null,null,1.3647666666666665,8.3472666666666644,7.4903333333333331,"--",97.352266666666665,87.452166666666656,13425.333333333334,3771.1333333333337,6193.0666666666666,null,null,null,null,null,21.756666666666664,{"$f":"AVERAGE(Monthly!GE458:GE460)","v":19.503333333333334},{"$f":"AVERAGE(Monthly!GF458:GF460)","v":1.2981833333333335},{"$f":"AVERAGE(Monthly!GG458:GG460)","v":1.2496666666666667},{"$f":"AVERAGE(Monthly!GH458:GH460)","v":0},"--",{"$f":"AVERAGE(Monthly!GJ458:GJ460)","v":2.3786666666666672},{"$f":"AVERAGE(Monthly!GK458:GK460)","v":3152.3333333333335},"--"]
["96'Q3",8159.0429999999997,10626.778,10565.324000000001,6780.8,513.77139422706466,1617.7710542821305,4649.2575514908049,1139.5663391477644,687.76043866339637,498.2,65.483000000000004,1118.57,978.59400000000005,-139.97599999999989,2285.1770000000001,-169.63300000000001,null,null,null,null,null,82.5,83.433333333333323,750.33753333333334,0.27,502.58,552.78700000000003,7.8,17.7,1.1000000000000001,0.27,0.56999999999999995,"--","--","--","--","--",78.32446666666668,76.129900000000006,999422.66666666663,1.4466666666666665,50.800000000000004,48,"--",47.1,54.533333333333331,51.266666666666673,42.093333333333341,53.699999999999996,46.933333333333337,53.666666666666664,50.9,"--",50550.333333333336,62.44,96.876999999999995,60.46,71.832999999999998,82.165999999999997,84.167000000000002,334.20400000000001,0.27,null,651969,591287,null,null,null,null,null,495.98503333333338,11.335760000000001,16.637260000000001,3942.97,1501.3333333333333,1418.3333333333333,"--",15.004,8.1667409900110552,11.853407656677723,"--","--","--","--","--","--",788.66666666666663,6714.6333333333323,353.3,1183.6666666666667,7513.7333333333336,1226.0333333333335,1219.2240666666667,269975.66666666669,482.94830000000002,94.899999999999991,"--",null,null,null,null,null,157.29999999999998,166.06666666666666,null,null,null,null,null,94.100000000000009,34.366666666666667,66.833333333333343,9.4666666666666668,5.2666666666666666,17243.333333333332,null,26,null,120217.66666666667,null,742.33333333334303,null,"--",8.4,{"$f":"AVERAGE(Monthly!DV461:DV463)","v":1292.5333333333335},{"$f":"AVERAGE(Monthly!DW461:DW463)","v":1310.0666666666666},{"$f":"AVERAGE(Monthly!DX461:DX463)","v":941.4666666666667},{"$f":"AVERAGE(Monthly!DY461:DY463)","v":232.89999999999998},{"$f":"AVERAGE(Monthly!DZ461:DZ463)","v":708.56666666666661},{"$f":"AVERAGE(Monthly!EA461:EA463)","v":505.13333333333338},{"$f":"AVERAGE(Monthly!EB461:EB463)","v":203.43333333333331},{"$f":"AVERAGE(Monthly!EC461:EC463)","v":368.60000000000008},null,null,null,null,null,71.374909803329842,74.808645342476396,76.13026044613342,null,null,null,null,null,128.16666666666666,142.23333333333332,138.46666666666667,null,null,null,null,null,8.25,5.3066666666666675,7.59,8.2933333333333348,70.333333333333485,8.16,5.0966666666666667,5.7833333333333341,6.1766666666666667,6.543333333333333,6.78,0.99666666666666615,null,null,null,null,null,1.3704333333333334,8.3376333333333328,7.5587666666666671,"--",97.578333333333333,87.236966666666675,12748.833333333334,5264.3666666666659,6336.5,null,null,null,null,null,22.423333333333332,{"$f":"AVERAGE(Monthly!GE461:GE463)","v":20.903333333333332},{"$f":"AVERAGE(Monthly!GF461:GF463)","v":1.25695},{"$f":"AVERAGE(Monthly!GG461:GG463)","v":1.2139999999999997},{"$f":"AVERAGE(Monthly!GH461:GH463)","v":0},"--",{"$f":"AVERAGE(Monthly!GJ461:GJ463)","v":2.1676666666666669},{"$f":"AVERAGE(Monthly!GK461:GK463)","v":3130},"--"]
["96'Q4",8287.0779999999995,10739.057000000001,10707.486999999999,6834.1,523.78936337437779,1630.8654835214966,4679.4451531041259,1168.2331337468372,713.31586382169417,493,38.167999999999999,1140.6279999999999,1039.6089999999999,-101.01900000000001,2301.9079999999999,-141.42099999999999,null,null,null,null,null,82.3,83.399999999999991,772.14936666666665,0.28000000000000003,514.54200000000003,570.18200000000002,21.1,3.6,1.03,0.28000000000000003,0.59,"--","--","--","--","--",79.411833333333334,77.228733333333338,1004532,1.4333333333333333,52.9,48.166666666666664,"--",47.4,56.333333333333336,52.533333333333331,42.1,57.166666666666664,48,57.466666666666669,51.366666666666667,"--",51995,62.923999999999999,96.647000000000006,60.805999999999997,71.924000000000007,81.965000000000003,84.542000000000002,345.17899999999997,0.28000000000000003,null,663926,601879,null,null,null,null,null,506.79079999999999,11.393509999999999,16.6981,4008.77,1417,1393.6666666666667,"--",15.070999999999998,8.5645990335445212,12.297932366877854,"--","--","--","--","--","--",765.33333333333337,6805.166666666667,341.63333333333338,1098,7552.8666666666677,1262.8333333333333,1242.3983666666666,270861.33333333331,498.48989999999998,97.533333333333346,"--",null,null,null,null,null,158.66666666666666,167.13333333333333,null,null,null,null,null,94.90000000000002,34.4,67,9.4,5.333333333333333,17276.333333333332,null,33,null,120932.33333333333,null,714.66666666665697,null,"--",7.9333333333333336,{"$f":"AVERAGE(Monthly!DV464:DV466)","v":1283.5999999999999},{"$f":"AVERAGE(Monthly!DW464:DW466)","v":1292.5666666666668},{"$f":"AVERAGE(Monthly!DX464:DX466)","v":930.63333333333333},{"$f":"AVERAGE(Monthly!DY464:DY466)","v":227.9},{"$f":"AVERAGE(Monthly!DZ464:DZ466)","v":702.73333333333323},{"$f":"AVERAGE(Monthly!EA464:EA466)","v":500.66666666666669},{"$f":"AVERAGE(Monthly!EB464:EB466)","v":202.06666666666669},{"$f":"AVERAGE(Monthly!EC464:EC466)","v":361.93333333333334},null,null,null,null,null,72.301459592773341,75.532342631668641,76.807197826862065,null,null,null,null,null,128.43333333333331,142.23333333333332,138.4,null,null,null,null,null,8.25,5.28,7.2299999999999995,7.916666666666667,68.666666666666742,7.7133333333333338,4.9766666666666666,5.4799999999999995,5.7966666666666669,6.1033333333333326,6.3433333333333337,0.86333333333333417,null,null,null,null,null,1.3503666666666667,8.3294333333333341,7.8411,"--",98.34426666666667,87.727699999999984,13333.933333333334,4781.7666666666664,6606.0666666666666,null,null,null,null,null,24.666666666666668,{"$f":"AVERAGE(Monthly!GE464:GE466)","v":23.566666666666666},{"$f":"AVERAGE(Monthly!GF464:GF466)","v":1.26925},{"$f":"AVERAGE(Monthly!GG464:GG466)","v":1.3183333333333334},{"$f":"AVERAGE(Monthly!GH464:GH466)","v":0},"--",{"$f":"AVERAGE(Monthly!GJ464:GJ466)","v":3.0496666666666665},{"$f":"AVERAGE(Monthly!GK464:GK466)","v":3482},"--"]
["97'Q1",8402.06,10820.907999999999,10782.377,6906.2,537.96187335295667,1640.7841873971624,4727.4539392498809,1194.7927964352093,735.46702276722169,494.7,51.405999999999999,1189.3430000000001,1059.367,-129.97600000000011,2301.335,-120.691,null,null,null,null,null,82.6,83.733333333333334,789.10246666666671,0.18,526.74900000000002,597.04399999999998,15.8,14.7,1.04,0.18,0.56999999999999995,"--","--","--","--","--",80.917166666666674,78.944599999999994,1009615,1.4166666666666667,53.566666666666663,48.5,45.833333333333336,48.833333333333336,55.5,51.833333333333336,42.666666666666664,57.733333333333327,53.599999999999994,57.9,51.633333333333333,"--",53479.333333333336,63.768000000000001,95.923000000000002,61.512,71.876999999999995,82.480999999999995,85.578999999999994,350.52300000000002,0.18,null,675069,611652,null,null,null,null,null,508.64063333333337,11.34535,16.656870000000001,4054.36,1432.6666666666667,1421,"--",15.230666666666666,8.1785565695564078,11.841889902889742,"--","--","--","--","--","--",820.66666666666663,6929.833333333333,343.76666666666665,1139.6666666666667,7628.7333333333336,1292.8333333333333,1261.4541333333334,271588.66666666669,511.37999999999994,99.033333333333346,"--",null,null,null,null,null,159.63333333333335,168.1,null,null,null,null,null,95.566666666666663,34.4,67,9.2999999999999989,5.2333333333333334,17317.666666666668,null,41.333333333335759,null,121687.33333333333,null,755,null,"--",7.9333333333333327,{"$f":"AVERAGE(Monthly!DV467:DV469)","v":1288.6000000000001},{"$f":"AVERAGE(Monthly!DW467:DW469)","v":1262.4666666666667},{"$f":"AVERAGE(Monthly!DX467:DX469)","v":910.66666666666663},{"$f":"AVERAGE(Monthly!DY467:DY469)","v":219.66666666666666},{"$f":"AVERAGE(Monthly!DZ467:DZ469)","v":691},{"$f":"AVERAGE(Monthly!EA467:EA469)","v":492.5333333333333},{"$f":"AVERAGE(Monthly!EB467:EB469)","v":198.46666666666667},{"$f":"AVERAGE(Monthly!EC467:EC469)","v":351.8},null,null,null,null,null,73.124942806595612,76.234146613089862,77.530249905323075,null,null,null,null,null,128.5,142.5,138.63333333333333,null,null,null,null,null,8.2666666666666675,5.2766666666666673,7.4266666666666667,8.07,64.333333333333357,7.79,5.0599999999999996,5.6466666666666674,6.043333333333333,6.3566666666666665,6.5633333333333335,0.91666666666666607,null,null,null,null,null,1.3591666666666669,8.3248333333333324,7.8624666666666663,"--",101.50206666666668,92.077999999999989,13743.699999999999,4186.2,6559.4333333333334,null,null,null,null,null,22.790000000000003,{"$f":"AVERAGE(Monthly!GE467:GE469)","v":21.173333333333332},{"$f":"AVERAGE(Monthly!GF467:GF469)","v":1.2699833333333332},{"$f":"AVERAGE(Monthly!GG467:GG469)","v":1.2666666666666666},{"$f":"AVERAGE(Monthly!GH467:GH469)","v":0},"--",{"$f":"AVERAGE(Monthly!GJ467:GJ469)","v":2.3436666666666666},{"$f":"AVERAGE(Monthly!GK467:GK469)","v":3453.6666666666665},"--"]
["97'Q2",8551.94,10984.15,10874.758,6937.5,536.25298586817496,1641.6977522278157,4759.5492619040097,1219.8823670928596,756.3672002060257,500.9,112.88500000000001,1229.2670000000001,1101.722,-127.54500000000007,2325.2539999999999,-102.494,null,null,null,null,null,82.5,83.63333333333334,809.06836666666675,0.21,544.80100000000004,614.78800000000001,16.7,10.7,0.99,0.21,0.62,"--","--","--","--","--",82.101700000000008,80.306033333333332,1019275.6666666666,1.42,54.900000000000006,55.166666666666664,47.333333333333336,51.266666666666673,53.933333333333337,52.533333333333331,44.9,59.433333333333337,49.233333333333327,56.666666666666664,54.333333333333336,"--",54980,64.52,95.935000000000002,62.073999999999998,72.817999999999998,83.022999999999996,85.247,356.47800000000001,0.21,null,673542,609714,null,null,null,null,null,508.71966666666663,11.34937,16.684000000000001,4114.95,1476,1412.3333333333333,"--",14.530333333333333,7.3019186506632927,10.801918650663291,"--","--","--","--","--","--",765.66666666666663,7010.4666666666672,365.66666666666669,1116.3333333333333,7693.8666666666659,1323.8333333333333,1278.5414333333335,272349,513.97063333333324,103.03333333333335,"--",null,null,null,null,null,160,169.16666666666666,null,null,null,null,null,96.533333333333346,34.466666666666661,67.099999999999994,8.9333333333333336,5,17366,null,48.333333333332121,null,122553.66666666667,null,866.33333333334303,null,"--",8.1,{"$f":"AVERAGE(Monthly!DV470:DV472)","v":1300.3666666666668},{"$f":"AVERAGE(Monthly!DW470:DW472)","v":1298.9333333333334},{"$f":"AVERAGE(Monthly!DX470:DX472)","v":934.66666666666663},{"$f":"AVERAGE(Monthly!DY470:DY472)","v":229.66666666666666},{"$f":"AVERAGE(Monthly!DZ470:DZ472)","v":705},{"$f":"AVERAGE(Monthly!EA470:EA472)","v":502.59999999999997},{"$f":"AVERAGE(Monthly!EB470:EB472)","v":202.4},{"$f":"AVERAGE(Monthly!EC470:EC472)","v":364.26666666666671},null,null,null,null,null,74.561040955698303,77.133712173648391,78.384865898191492,null,null,null,null,null,127.2,142.46666666666667,138.33333333333334,null,null,null,null,null,8.5,5.5233333333333334,7.5733333333333333,8.1866666666666656,61.333333333333243,7.9233333333333347,5.0466666666666669,5.8500000000000005,6.2733333333333334,6.57,6.6966666666666663,0.84666666666666579,null,null,null,null,null,1.3863000000000003,8.3236666666666679,7.9197999999999995,"--",102.66296666666666,93.359666666666669,14098.266666666668,4817.8666666666668,7105.7,null,null,null,null,null,19.906666666666666,{"$f":"AVERAGE(Monthly!GE470:GE472)","v":18.053333333333331},{"$f":"AVERAGE(Monthly!GF470:GF472)","v":1.2435166666666666},{"$f":"AVERAGE(Monthly!GG470:GG472)","v":1.1936666666666667},{"$f":"AVERAGE(Monthly!GH470:GH472)","v":0},"--",{"$f":"AVERAGE(Monthly!GJ470:GJ472)","v":2.1396666666666668},{"$f":"AVERAGE(Monthly!GK470:GK472)","v":3363},"--"]
["97'Q3",8691.7559999999994,11124.013000000001,11047.241,7056.2,560.13647921835752,1668.1041261424173,4827.9593946392251,1274.0960943146963,805.38362579862417,503.2,80.89,1274.579,1127.242,-147.33699999999999,2329.0340000000001,-68.700999999999993,null,null,null,null,null,82.9,84.13333333333334,822.82433333333336,0.26,566.39400000000001,637.54600000000005,7.4,19.600000000000001,0.98,0.26,0.64,"--","--","--","--","--",83.990133333333347,82.329033333333328,1029700.3333333334,1.41,55.966666666666669,55.5,48,51.4,53.5,53.5,45.366666666666674,59,52.366666666666667,60.866666666666667,54.9,60.1,59114.666666666664,65.403999999999996,95.512,62.706000000000003,73.438000000000002,83.501999999999995,85.385999999999996,378.4,0.26,null,688339,622990,null,null,null,null,null,510.76796666666672,11.35772,16.678850000000001,4194.22,1457.6666666666667,1461,"--",15.223333333333334,7.0916951209782724,10.498361787644939,"--","--","--","--","--","--",820,7123.7666666666664,340.16666666666669,1146,7785.5,1348.4666666666667,1294.8787333333332,273234,524.68786666666665,105.83333333333333,"--",null,null,null,null,null,160.80000000000001,169.9,null,null,null,null,null,97.399999999999991,34.566666666666663,67.166666666666671,8.6333333333333329,4.8666666666666663,17435.333333333332,null,69.333333333332121,null,123273.66666666667,null,720,null,"--",8.1,{"$f":"AVERAGE(Monthly!DV473:DV475)","v":1317.7666666666667},{"$f":"AVERAGE(Monthly!DW473:DW475)","v":1337.3999999999999},{"$f":"AVERAGE(Monthly!DX473:DX475)","v":959.5},{"$f":"AVERAGE(Monthly!DY473:DY475)","v":240.6},{"$f":"AVERAGE(Monthly!DZ473:DZ475)","v":718.9},{"$f":"AVERAGE(Monthly!EA473:EA475)","v":512.6},{"$f":"AVERAGE(Monthly!EB473:EB475)","v":206.29999999999998},{"$f":"AVERAGE(Monthly!EC473:EC475)","v":377.90000000000003},null,null,null,null,null,75.982172774983809,78.365427220774862,79.529806731131572,null,null,null,null,null,127.2,142.36666666666667,138.19999999999999,null,null,null,null,null,8.5,5.5333333333333323,7.169999999999999,7.7566666666666668,58.666666666666778,7.47,5.0466666666666669,5.5399999999999991,5.9033333333333333,6.13,6.2433333333333332,0.70333333333333403,null,null,null,null,null,1.3850666666666667,8.3173333333333339,7.8101999999999991,"--",104.71316666666667,94.678666666666672,13468.266666666665,6137.3999999999987,7336.3,null,null,null,null,null,19.783333333333335,{"$f":"AVERAGE(Monthly!GE473:GE475)","v":18.506666666666668},{"$f":"AVERAGE(Monthly!GF473:GF475)","v":1.2588999999999999},{"$f":"AVERAGE(Monthly!GG473:GG475)","v":1.1586666666666667},{"$f":"AVERAGE(Monthly!GH473:GH475)","v":0},"--",{"$f":"AVERAGE(Monthly!GJ473:GJ475)","v":2.4896666666666669},{"$f":"AVERAGE(Monthly!GK473:GK475)","v":3240},"--"]
["97'Q4",8788.32,11210.329,11119.664000000001,7140,574.44201636641037,1679.8282081358032,4885.7297754977862,1282.7533029400572,808.43160500963018,508.4,94.042000000000002,1302.1089999999999,1125.67,-176.43899999999985,2332.473,-72.771000000000001,null,null,null,null,null,83.4,84.633333333333326,839.57569999999998,0.28999999999999998,567.91999999999996,632.01300000000003,6.9,19.3,0.96,0.28999999999999998,0.66,"--","--","--","--","--",86.099600000000009,84.626066666666659,1041308.6666666666,1.4166666666666667,55.533333333333331,52.833333333333336,47.166666666666664,52.866666666666667,53.300000000000004,54.166666666666664,45,58.5,52.633333333333333,58.733333333333327,54.666666666666664,60.333333333333336,57983.333333333336,65.995999999999995,96.075000000000003,63.823,73.730999999999995,84.549000000000007,86.561999999999998,377.58,0.28999999999999998,null,691505,626425,null,null,null,null,null,501.31343333333331,11.312709999999999,16.584910000000001,4273.53,1532,1474.6666666666667,"--",15.505333333333335,6.5577907271830957,9.8244573938497624,"--","--","--","--","--","--",819,7258.5999999999995,359.13333333333338,1143.3333333333333,7897,1388.4666666666665,1315.5346333333334,274116.66666666669,535.61923333333334,104.96666666666665,"--",null,null,null,null,null,161.66666666666666,170.86666666666665,null,null,null,null,null,98.066666666666663,34.533333333333331,67.166666666666671,8.3666666666666671,4.666666666666667,17552.333333333332,null,117,null,124250,null,976.33333333332848,null,"--",7.6000000000000005,{"$f":"AVERAGE(Monthly!DV476:DV478)","v":1325.9333333333334},{"$f":"AVERAGE(Monthly!DW476:DW478)","v":1333.9333333333332},{"$f":"AVERAGE(Monthly!DX476:DX478)","v":961.5},{"$f":"AVERAGE(Monthly!DY476:DY478)","v":234.16666666666666},{"$f":"AVERAGE(Monthly!DZ476:DZ478)","v":727.33333333333337},{"$f":"AVERAGE(Monthly!EA476:EA478)","v":518.4},{"$f":"AVERAGE(Monthly!EB476:EB478)","v":208.93333333333331},{"$f":"AVERAGE(Monthly!EC476:EC478)","v":372.43333333333334},null,null,null,null,null,76.593633291145863,79.075390446367678,80.286512295937072,null,null,null,null,null,127.5,142.43333333333334,137.83333333333334,null,null,null,null,null,8.5,5.5066666666666668,6.8766666666666678,7.4366666666666674,55.999999999999957,7.2,5.09,5.4833333333333334,5.7333333333333334,5.833333333333333,5.9066666666666663,0.4233333333333329,null,null,null,null,null,1.4089333333333334,8.3114333333333335,8.089833333333333,"--",108.83910000000002,95.567466666666675,14434.466666666667,5711.1000000000013,7644.4333333333334,null,null,null,null,null,19.916666666666668,{"$f":"AVERAGE(Monthly!GE476:GE478)","v":18.740000000000002},{"$f":"AVERAGE(Monthly!GF476:GF478)","v":1.1283833333333335},{"$f":"AVERAGE(Monthly!GG476:GG478)","v":1.1803333333333332},{"$f":"AVERAGE(Monthly!GH476:GH478)","v":0},"--",{"$f":"AVERAGE(Monthly!GJ476:GJ478)","v":2.9136666666666664},{"$f":"AVERAGE(Monthly!GK476:GK478)","v":3576.6666666666665},"--"]
["98'Q1",8889.732,11321.245999999999,11195.349,7213.7,579.07750157962073,1691.9003148265811,4942.722183593798,1323.4748521910478,842.4921943310743,517.5,127.889,1350.982,1130.9359999999999,-220.04600000000005,2318.9549999999999,-22.619,null,null,null,null,null,82.8,83.933333333333337,861.42593333333332,0.28000000000000003,488.24099999999999,559.97,1.9,15.4,0.97,0.28000000000000003,0.61,"--","--","--","--","--",87.058766666666656,85.932266666666678,1054500.6666666667,1.43,53.199999999999996,48.833333333333336,47,51.400000000000006,47.066666666666663,53.533333333333331,46.133333333333333,55.533333333333331,45.566666666666663,54.9,52.933333333333337,59.1,57948.333333333336,66.015000000000001,96.331999999999994,64.906999999999996,74.147000000000006,85.852000000000004,87.537999999999997,321.66199999999998,0.28000000000000003,null,696312,630008,null,null,null,null,null,494.29059999999998,11.166880000000001,16.359290000000001,4345.42,1558.6666666666667,1602.3333333333333,"--",14.746666666666668,6.1160126548030815,9.3593459881364129,"--","--","--","--","--","--",858,7420.5333333333328,435.93333333333334,1228.3333333333333,8065.333333333333,1431.1000000000001,1325.7633666666668,274837,539.42809999999997,107.83333333333333,"--",null,null,null,null,null,162,171.9,null,null,null,null,null,98.633333333333326,34.533333333333331,67.099999999999994,8.4,4.6333333333333329,17627.666666666668,null,75.333333333335759,null,125010.33333333333,null,760.33333333332848,null,"--",7.0666666666666664,{"$f":"AVERAGE(Monthly!DV479:DV481)","v":1334.7333333333333},{"$f":"AVERAGE(Monthly!DW479:DW481)","v":1306.7666666666667},{"$f":"AVERAGE(Monthly!DX479:DX481)","v":944.56666666666661},{"$f":"AVERAGE(Monthly!DY479:DY481)","v":224.9},{"$f":"AVERAGE(Monthly!DZ479:DZ481)","v":719.66666666666663},{"$f":"AVERAGE(Monthly!EA479:EA481)","v":513.16666666666663},{"$f":"AVERAGE(Monthly!EB479:EB481)","v":206.5},{"$f":"AVERAGE(Monthly!EC479:EC481)","v":362.2},null,null,null,null,null,77.602573798436964,79.677199153199325,80.951945505857623,null,null,null,null,null,125.03333333333335,142.76666666666668,137.73333333333332,null,null,null,null,null,8.5,5.5200000000000005,6.666666666666667,7.2533333333333339,58.666666666666686,7.0533333333333337,5.0533333333333337,5.3133333333333335,5.4466666666666663,5.5066666666666668,5.586666666666666,0.27333333333333254,null,null,null,null,null,1.4302999999999999,8.3080666666666669,8.4324666666666683,"--",114.87223333333334,97.991633333333354,14195.800000000001,4936.9666666666662,7430.3,null,null,null,null,null,15.929999999999998,{"$f":"AVERAGE(Monthly!GE479:GE481)","v":14.12},{"$f":"AVERAGE(Monthly!GF479:GF481)","v":1.0973499999999998},{"$f":"AVERAGE(Monthly!GG479:GG481)","v":1.0890000000000002},{"$f":"AVERAGE(Monthly!GH479:GH481)","v":0},"--",{"$f":"AVERAGE(Monthly!GJ479:GJ481)","v":2.2056666666666667},{"$f":"AVERAGE(Monthly!GK479:GK481)","v":3588.3333333333335},"--"]
["98'Q2",8994.7379999999994,11431.046,11388.324000000001,7341.1,608.33324600471587,1712.3902688855223,5020.3764851097621,1367.2019229270695,881.08331438457719,533,49.642000000000003,1381.933,1118.454,-263.47900000000004,2366.049,-8.7539999999999996,null,null,null,null,null,81.3,82.866666666666674,877.33803333333344,0.32,485.68099999999998,559.66099999999994,7.1,21.8,0.94,0.32,0.62,"--","--","--","--","--",87.639733333333353,86.32,1061953.3333333333,1.4366666666666668,50.666666666666664,49.833333333333336,47,48.433333333333337,46.966666666666661,52.566666666666663,44.699999999999996,52.333333333333336,40.299999999999997,52.366666666666667,51.6,59.5,57834.666666666664,65.932000000000002,97.88,65.730999999999995,74.611000000000004,86.7,88.099000000000004,328.54700000000003,0.32,null,711989,644566,null,null,null,null,null,496.26403333333337,11.18712,16.336259999999999,4419.0600000000004,1572.3333333333333,1550.6666666666667,"--",16.182666666666666,5.9833085441197218,9.063308544119721,"--","--","--","--","--","--",892,7548.0666666666666,415.43333333333339,1239,8178,1477.3333333333333,1365.8264999999999,275568,560.76380000000006,106.93333333333332,"--",null,null,null,null,null,162.53333333333333,172.86666666666665,null,null,null,null,null,98.966666666666654,34.433333333333337,67,7.9333333333333336,4.3999999999999995,17623,null,-4.6666666666678793,null,125798.66666666667,null,788.33333333334303,null,"--",6.5333333333333341,{"$f":"AVERAGE(Monthly!DV482:DV484)","v":1352.2333333333333},{"$f":"AVERAGE(Monthly!DW482:DW484)","v":1350.5666666666666},{"$f":"AVERAGE(Monthly!DX482:DX484)","v":972.56666666666661},{"$f":"AVERAGE(Monthly!DY482:DY484)","v":237.6},{"$f":"AVERAGE(Monthly!DZ482:DZ484)","v":734.9666666666667},{"$f":"AVERAGE(Monthly!EA482:EA484)","v":524.19999999999993},{"$f":"AVERAGE(Monthly!EB482:EB484)","v":210.76666666666665},{"$f":"AVERAGE(Monthly!EC482:EC484)","v":378},null,null,null,null,null,78.782812295189387,80.692585928823974,81.865273075475415,null,null,null,null,null,124.93333333333334,143.46666666666667,137.46666666666667,null,null,null,null,null,8.5,5.5,6.6366666666666667,7.253333333333333,61.666666666666629,7.0933333333333337,4.9766666666666666,5.41,5.5566666666666658,5.586666666666666,5.5966666666666667,0.18666666666666654,null,null,null,null,null,1.4468333333333334,8.3080666666666669,8.6688333333333336,"--",115.37466666666667,99.212733333333333,14706.9,5607.5,7912.7,null,null,null,null,null,14.653333333333331,{"$f":"AVERAGE(Monthly!GE482:GE484)","v":13.366666666666667},{"$f":"AVERAGE(Monthly!GF482:GF484)","v":1.0948666666666667},{"$f":"AVERAGE(Monthly!GG482:GG484)","v":1.0589999999999999},{"$f":"AVERAGE(Monthly!GH482:GH484)","v":0},"--",{"$f":"AVERAGE(Monthly!GJ482:GJ484)","v":2.2643333333333335},{"$f":"AVERAGE(Monthly!GK482:GK484)","v":3451.6666666666665},"--"]
["98'Q3",9146.5210000000006,11580.587,11519.564,7437.7,625.61654517714874,1724.7016425557567,5087.3818122670946,1387.7995457130703,897.71065447572994,549,67.367000000000004,1400.5250000000001,1113.2619999999999,-287.26300000000015,2387.567,21.693999999999999,null,null,null,null,null,80.3,82.066666666666677,904.48866666666675,0.34,481.00099999999998,561.03099999999995,10.199999999999999,0,0.94,0.34,0.65,"--","--","--","--","--",88.287466666666674,87.001966666666661,1067046,1.4433333333333334,49.066666666666663,46.333333333333336,48.833333333333336,45.833333333333336,44.6,51.366666666666667,44.033333333333339,50.699999999999996,36.733333333333327,50.9,50.433333333333337,56.06666666666667,58195,66.754999999999995,98.254999999999995,66.793000000000006,75.664000000000001,87.721000000000004,88.275000000000006,339.11,0.34,null,712377,644234,null,null,null,null,null,490.29463333333325,11.17252,16.30508,4493.9799999999996,1631.3333333333333,1613.6666666666667,"--",14.825000000000001,6.1297834468513956,9.3031167801847285,"--","--","--","--","--","--",862,7655.3666666666659,402.56666666666666,1278.6666666666667,8261.2999999999993,1523.7666666666667,1388.2257,276415.66666666669,564.52999999999986,103.5,"--",null,null,null,null,null,163.36666666666667,173.9,null,null,null,null,null,99.566666666666677,34.466666666666669,67.066666666666663,7.9666666666666659,4.5333333333333332,17514,null,-109,null,126511,null,712.33333333332848,null,"--",6.7333333333333334,{"$f":"AVERAGE(Monthly!DV485:DV487)","v":1361.1000000000001},{"$f":"AVERAGE(Monthly!DW485:DW487)","v":1384.3},{"$f":"AVERAGE(Monthly!DX485:DX487)","v":994.26666666666677},{"$f":"AVERAGE(Monthly!DY485:DY487)","v":246.9},{"$f":"AVERAGE(Monthly!DZ485:DZ487)","v":747.36666666666679},{"$f":"AVERAGE(Monthly!EA485:EA487)","v":533.1},{"$f":"AVERAGE(Monthly!EB485:EB487)","v":214.26666666666665},{"$f":"AVERAGE(Monthly!EC485:EC487)","v":390.0333333333333},null,null,null,null,null,80.082783817211364,81.878063710177869,82.946057076906413,null,null,null,null,null,124.30000000000001,143.86666666666667,137.43333333333334,null,null,null,null,null,8.4966666666666679,5.5333333333333341,6.4899999999999993,7.126666666666666,63.666666666666671,6.8633333333333333,4.8233333333333333,5.0933333333333337,5.1333333333333337,5.1166666666666671,5.2033333333333331,0.10999999999999943,null,null,null,null,null,1.5144333333333335,8.3085000000000004,9.4964666666666666,"--",118.49683333333333,100.79610000000001,13725.666666666666,6820.4333333333334,7880.6000000000013,null,null,null,null,null,14.13,{"$f":"AVERAGE(Monthly!GE485:GE487)","v":12.443333333333333},{"$f":"AVERAGE(Monthly!GF485:GF487)","v":1.0669000000000002},{"$f":"AVERAGE(Monthly!GG485:GG487)","v":1.0199999999999998},{"$f":"AVERAGE(Monthly!GH485:GH487)","v":0},"--",{"$f":"AVERAGE(Monthly!GJ485:GJ487)","v":2.0139999999999998},{"$f":"AVERAGE(Monthly!GK485:GK487)","v":3423},"--"]
["98'Q4",9325.65,11770.686,11706.118,7546.9,662.56739971335674,1748.0628003681802,5136.2697999184629,1427.6880428133186,933.60257561825028,562.20000000000005,71.055999999999997,1445.749,1154.471,-291.27800000000002,2409.4050000000002,20.550999999999998,null,null,null,null,null,80.5,82,937.54930000000002,0.42,463.92200000000003,542.31600000000003,-1.7,7.7,0.96,0.42,0.68,"--","--","--","--","--",89.565866666666651,88.756833333333319,1076002.3333333333,1.43,47.9,41,48.333333333333336,44.133333333333333,44.766666666666673,50.966666666666669,44.766666666666673,48.666666666666664,33.699999999999996,50.166666666666664,49.566666666666663,54.366666666666674,58433,67.37,97.828000000000003,67.156999999999996,76.278000000000006,87.834000000000003,88.043000000000006,321.62599999999998,0.42,null,733415,663841,null,null,null,null,null,495.50556666666665,11.23396,16.3764,4596.18,1722.3333333333333,1711,"--",16.417666666666666,5.9590734310651046,9.062406764398439,"--","--","--","--","--","--",945.66666666666663,7750.7666666666664,367.36666666666662,1364.3333333333333,8328.5333333333328,1581.2333333333336,1411.6119333333334,277268.66666666669,574.97063333333335,100.2,"--",null,null,null,null,null,164.13333333333333,174.86666666666667,null,null,null,null,null,100.23333333333333,34.466666666666669,67.166666666666671,7.666666666666667,4.4333333333333336,17475.333333333332,null,-38.666666666667879,null,127276.33333333333,null,765.33333333332848,null,"--",6.3999999999999995,{"$f":"AVERAGE(Monthly!DV488:DV490)","v":1367.6000000000001},{"$f":"AVERAGE(Monthly!DW488:DW490)","v":1375.8666666666668},{"$f":"AVERAGE(Monthly!DX488:DX490)","v":990.5},{"$f":"AVERAGE(Monthly!DY488:DY490)","v":242.5},{"$f":"AVERAGE(Monthly!DZ488:DZ490)","v":748},{"$f":"AVERAGE(Monthly!EA488:EA490)","v":533.29999999999995},{"$f":"AVERAGE(Monthly!EB488:EB490)","v":214.70000000000002},{"$f":"AVERAGE(Monthly!EC488:EC490)","v":385.36666666666662},null,null,null,null,null,82.238527300895043,83.49376996853826,84.239376886822754,null,null,null,null,null,123.46666666666665,144.76666666666668,137.6,null,null,null,null,null,7.919999999999999,4.8600000000000003,6.333333333333333,7.25,91.6666666666667,6.7666666666666666,4.2533333333333339,4.3899999999999997,4.38,4.3899999999999997,4.67,0.28000000000000025,null,null,null,null,null,1.5429666666666666,8.2778666666666663,10.011533333333334,"--",114.80863333333332,95.647300000000016,15123.633333333333,6357.9666666666672,8319.4,null,null,null,null,null,12.840000000000002,{"$f":"AVERAGE(Monthly!GE488:GE490)","v":11.186666666666667},{"$f":"AVERAGE(Monthly!GF488:GF490)","v":0.95970000000000011},{"$f":"AVERAGE(Monthly!GG488:GG490)","v":1.0113333333333332},{"$f":"AVERAGE(Monthly!GH488:GH490)","v":0},"--",{"$f":"AVERAGE(Monthly!GJ488:GJ490)","v":2.1496666666666666},{"$f":"AVERAGE(Monthly!GK488:GK490)","v":3401.6666666666665},"--"]
["99'Q1",9447.1029999999992,11864.674999999999,11773.626,7618.7,664,1780.2333333333336,5245.4000000000005,1458.952,961.37300000000005,622.95799999999997,97.513999999999996,1466.883,1126.4369999999999,-340.44600000000014,2418.145,47.466000000000001,null,null,null,null,null,80.3,81.8,939.48359999999991,0.43,493.06599999999997,585.95899999999995,-14.8,11.4,0.99,0.43,0.6,"--","--","--","--","--",90.562866666666665,89.950399999999988,1083310.3333333333,1.4166666666666667,51.56666666666667,46.166666666666664,43.5,46.300000000000004,51.133333333333333,52.633333333333326,43.300000000000004,54.433333333333337,37.133333333333333,55.766666666666673,51.366666666666667,58.533333333333331,58464.333333333336,68.744,97.856999999999999,68.382999999999996,77.126000000000005,89.129000000000005,88.664000000000001,312.64699999999999,0.43,null,747058,677667,null,null,null,null,null,495.74456666666669,11.29949,16.449649999999998,4669.09,1709.3333333333333,1705.6666666666667,"--",16.330666666666666,5.9872427983539049,8.9972427983539038,"--","--","--","--","--","--",862,7838.1333333333341,374.36666666666662,1337,8403.1,1636.8333333333333,1441.1434333333334,277993.33333333331,585.26273333333336,105.89999999999999,"--",null,null,null,null,null,164.73333333333332,175.63333333333333,null,null,null,null,null,100.53333333333335,34.366666666666667,67.13333333333334,7.666666666666667,4.3,17396.666666666668,null,-78.666666666664241,null,128035.66666666667,null,759.33333333334303,null,"--",6.833333333333333,{"$f":"AVERAGE(Monthly!DV491:DV493)","v":1374.4333333333334},{"$f":"AVERAGE(Monthly!DW491:DW493)","v":1345.4333333333332},{"$f":"AVERAGE(Monthly!DX491:DX493)","v":970.9666666666667},{"$f":"AVERAGE(Monthly!DY491:DY493)","v":232.83333333333334},{"$f":"AVERAGE(Monthly!DZ491:DZ493)","v":738.13333333333321},{"$f":"AVERAGE(Monthly!EA491:EA493)","v":526.4666666666667},{"$f":"AVERAGE(Monthly!EB491:EB493)","v":211.66666666666666},{"$f":"AVERAGE(Monthly!EC491:EC493)","v":374.4666666666667},null,null,null,null,null,83.488121002946286,84.533483391976517,85.595592751420824,null,null,null,null,null,122.59999999999998,145.66666666666666,137.63333333333333,null,null,null,null,null,7.75,4.7333333333333334,6.4200000000000008,7.4033333333333333,98.333333333333258,6.88,4.4066666666666672,4.663333333333334,4.8500000000000005,4.8833333333333329,4.9833333333333334,0.3199999999999994,null,null,null,null,null,1.5115666666666667,8.2787333333333333,9.9553333333333338,1.1226666666666667,115.9901,96.244966666666656,15648.266666666668,5473.7,8225.7333333333336,null,null,null,null,null,13.046666666666667,{"$f":"AVERAGE(Monthly!GE491:GE493)","v":11.296666666666667},{"$f":"AVERAGE(Monthly!GF491:GF493)","v":0.98821666666666663},{"$f":"AVERAGE(Monthly!GG491:GG493)","v":0.97433333333333338},{"$f":"AVERAGE(Monthly!GH491:GH493)","v":0},"--",{"$f":"AVERAGE(Monthly!GJ491:GJ493)","v":1.7976666666666665},{"$f":"AVERAGE(Monthly!GK491:GK493)","v":3658.6666666666665},"--"]
["99'Q2",9557.0049999999992,11962.523999999999,11921.752,7731.5333333333338,695.76666666666677,1796.7333333333333,5297.4333333333334,1497.288,1004.8679999999999,632.66,45.271999999999998,1509.0239999999999,1137.9110000000001,-371.11299999999983,2431.652,62.759,null,null,null,null,null,80.099999999999994,81.599999999999994,946.58146666666664,0.48,507.56900000000002,581.54,1.8,10.1,0.94,0.48,0.56999999999999995,"--","--","--","--","--",91.458700000000007,91.023933333333332,1095881.6666666667,1.4066666666666665,54.133333333333326,54.333333333333336,44.666666666666664,50.4,51.466666666666669,52.300000000000004,45.033333333333339,57.066666666666663,50.933333333333337,59.1,51.4,58.466666666666669,59262.666666666664,69.802000000000007,97.293999999999997,68.634,77.353999999999999,88.783000000000001,88.727000000000004,329.20699999999999,0.48,null,762628,692142,null,null,null,null,null,495.67283333333336,11.450979999999999,16.628730000000001,4750.34,1574.3333333333333,1647.3333333333333,"--",16.773333333333333,6.3792524259279801,9.3659190925946465,"--","--","--","--","--","--",909.66666666666663,7908.2333333333336,295.9666666666667,1266,8423.8666666666668,1684.0666666666666,1468.3774999999998,278723,589.57426666666663,106.23333333333333,"--",null,null,null,null,null,165.96666666666667,176.46666666666667,null,null,null,null,null,101.2,34.366666666666667,67.099999999999994,7.5,4.2666666666666666,17324,null,-72.666666666667879,null,128847,null,811.33333333332848,null,"--",6.333333333333333,{"$f":"AVERAGE(Monthly!DV494:DV496)","v":1385},{"$f":"AVERAGE(Monthly!DW494:DW496)","v":1383.6666666666667},{"$f":"AVERAGE(Monthly!DX494:DX496)","v":996.06666666666661},{"$f":"AVERAGE(Monthly!DY494:DY496)","v":242.9666666666667},{"$f":"AVERAGE(Monthly!DZ494:DZ496)","v":753.1},{"$f":"AVERAGE(Monthly!EA494:EA496)","v":537.19999999999993},{"$f":"AVERAGE(Monthly!EB494:EB496)","v":215.9},{"$f":"AVERAGE(Monthly!EC494:EC496)","v":387.59999999999997},null,null,null,null,null,84.815835244411062,85.856729806258713,86.633998858823887,null,null,null,null,null,124.5,145.73333333333332,137.63333333333333,null,null,null,null,null,7.75,4.746666666666667,6.9333333333333336,7.7399999999999993,80.666666666666572,7.206666666666667,4.4533333333333331,4.88,5.2833333333333341,5.4433333333333325,5.5399999999999991,0.65999999999999925,null,null,null,null,null,1.4729000000000001,8.2785666666666646,9.4468333333333323,1.0569333333333333,116.93206666666667,98.485299999999995,16532.266666666666,6433.1333333333341,8973.6333333333332,null,null,null,null,null,17.66,{"$f":"AVERAGE(Monthly!GE494:GE496)","v":15.459999999999999},{"$f":"AVERAGE(Monthly!GF494:GF496)","v":1.16655},{"$f":"AVERAGE(Monthly!GG494:GG496)","v":1.0753333333333333},{"$f":"AVERAGE(Monthly!GH494:GH496)","v":0},"--",{"$f":"AVERAGE(Monthly!GJ494:GJ496)","v":2.2570000000000001},{"$f":"AVERAGE(Monthly!GK494:GK496)","v":3391.3333333333335},"--"]
["99'Q3",9712.2800000000007,12113.075000000001,12066.254000000001,7819.3,712.46666666666658,1805.0666666666666,5356.166666666667,1539.287,1047.1179999999999,637.41499999999996,51.503,1565.2429999999999,1171.3420000000001,-393.90099999999984,2460.252,71.536000000000001,null,null,null,null,null,79.7,81.433333333333337,967.44200000000001,0.52,505.72899999999998,560.00400000000002,0,0.1,0.98,0.52,0.6,"--","--","--","--","--",92.288299999999992,91.752900000000011,1107403.3333333333,1.3966666666666665,55.133333333333333,52.5,44.666666666666664,51.6,53.766666666666673,54,44.966666666666661,58.533333333333331,60.633333333333326,58.766666666666673,53.733333333333327,60.033333333333331,62345.666666666664,70.23,97.802000000000007,69.238,78.037999999999997,88.894999999999996,88.722999999999999,316.17899999999997,0.52,null,779046,708038,null,null,null,null,null,493.69763333333339,11.57728,16.756399999999999,4846.99,1650.6666666666667,1634.6666666666667,"--",17.135999999999999,6.5796530490141407,9.5429863823474737,"--","--","--","--","--","--",873,8015.5,268.2,1286.3333333333333,8480.3666666666668,1729.6666666666667,1502.2211666666665,279600,603.80363333333332,105.89999999999999,"--",null,null,null,null,null,167.2,177.4,null,null,null,null,null,101.73333333333333,34.366666666666667,67.033333333333331,7.4000000000000012,4.2333333333333334,17292,null,-32,null,129594,null,747,null,"--",6.1000000000000005,{"$f":"AVERAGE(Monthly!DV497:DV499)","v":1397.8666666666668},{"$f":"AVERAGE(Monthly!DW497:DW499)","v":1421.1666666666667},{"$f":"AVERAGE(Monthly!DX497:DX499)","v":1020.7333333333332},{"$f":"AVERAGE(Monthly!DY497:DY499)","v":252.36666666666667},{"$f":"AVERAGE(Monthly!DZ497:DZ499)","v":768.36666666666667},{"$f":"AVERAGE(Monthly!EA497:EA499)","v":548.23333333333335},{"$f":"AVERAGE(Monthly!EB497:EB499)","v":220.13333333333333},{"$f":"AVERAGE(Monthly!EC497:EC499)","v":400.43333333333334},null,null,null,null,null,86.31379469190054,87.112101751472323,87.784152583612155,null,null,null,null,null,126.86666666666667,146,137.4,null,null,null,null,null,8.1033333333333335,5.0933333333333337,7.3266666666666671,8.1,77.333333333333258,7.7966666666666669,4.6499999999999995,5.16,5.63,5.7733333333333334,5.8833333333333329,0.72333333333333272,null,null,null,null,null,1.4864333333333335,8.2774000000000001,9.3696999999999999,1.0490666666666668,116.41713333333333,97.56110000000001,16397.933333333334,7875.333333333333,9558.8333333333339,null,null,null,null,null,21.736666666666665,{"$f":"AVERAGE(Monthly!GE497:GE499)","v":20.613333333333333},{"$f":"AVERAGE(Monthly!GF497:GF499)","v":1.2553999999999998},{"$f":"AVERAGE(Monthly!GG497:GG499)","v":1.1696666666666669},{"$f":"AVERAGE(Monthly!GH497:GH499)","v":0},"--",{"$f":"AVERAGE(Monthly!GJ497:GJ499)","v":2.5816666666666666},{"$f":"AVERAGE(Monthly!GK497:GK499)","v":3339.6666666666665},"--"]
["99'Q4",9926.1010000000006,12323.335999999999,12217.956,7934.1333333333341,721,1841.8333333333333,5427.4666666666672,1544.8710000000001,1047.569,642.06700000000001,107.51,1603.779,1200.895,-402.88400000000001,2496.7339999999999,84.790999999999997,null,null,null,null,null,80.2,81.966666666666654,993.17653333333328,0.59,523.08699999999999,558.27700000000004,10.5,-3.8,0.94,0.59,0.62,4448,"--","--","--","--",93.915566666666678,93.641900000000007,1127125,1.39,57.70000000000001,54.166666666666664,47.166666666666664,53.933333333333337,55.233333333333327,53,48.9,61.566666666666663,68.099999999999994,60.166666666666664,56.566666666666663,59.366666666666667,62917,72.572999999999993,96.733000000000004,70.641000000000005,79.295000000000002,90,89.085999999999999,314.69600000000003,0.59,null,796584,723520,null,null,null,null,null,497.81666666666666,11.567629999999999,16.69275,4919.6400000000003,1654.6666666666667,1668,"--",17.334666666666667,6.686430200931496,9.5330968675981627,"--","--","--","--","--","--",869.33333333333337,8191.7666666666673,274.63333333333333,1335.3333333333333,8605.0666666666675,1741.9666666666665,1524.5740666666668,280463.33333333331,609.64660000000003,105.26666666666667,"--",null,null,null,null,null,168.43333333333334,178.4,null,null,null,null,null,102.63333333333333,34.4,67.066666666666663,7.1333333333333329,4.0666666666666664,17278,null,-14,null,130484,null,890,null,0,6.0333333333333341,{"$f":"AVERAGE(Monthly!DV500:DV502)","v":1406.5666666666668},{"$f":"AVERAGE(Monthly!DW500:DW502)","v":1415.6000000000001},{"$f":"AVERAGE(Monthly!DX500:DX502)","v":1019.9666666666666},{"$f":"AVERAGE(Monthly!DY500:DY502)","v":247.16666666666666},{"$f":"AVERAGE(Monthly!DZ500:DZ502)","v":772.80000000000007},{"$f":"AVERAGE(Monthly!EA500:EA502)","v":551.13333333333333},{"$f":"AVERAGE(Monthly!EB500:EB502)","v":221.66666666666666},{"$f":"AVERAGE(Monthly!EC500:EC502)","v":395.63333333333338},null,null,null,null,null,87.652270536569972,88.432428872208902,89.182910377264733,null,null,null,null,null,127.93333333333334,146.93333333333334,137.9,null,null,null,null,null,8.3733333333333331,5.3066666666666675,7.4866666666666672,8.24,75.3333333333333,7.833333333333333,5.043333333333333,5.6066666666666665,5.94,6.0633333333333335,6.1400000000000006,0.5333333333333341,null,null,null,null,null,1.4724000000000002,8.2783666666666686,9.4728000000000012,1.0381333333333334,115.30433333333333,95.767566666666667,17658.566666666666,7480.5666666666666,9815.2999999999993,null,null,null,null,null,24.563333333333333,{"$f":"AVERAGE(Monthly!GE500:GE502)","v":24.016666666666666},{"$f":"AVERAGE(Monthly!GF500:GF502)","v":1.2100333333333333},{"$f":"AVERAGE(Monthly!GG500:GG502)","v":1.2609999999999999},{"$f":"AVERAGE(Monthly!GH500:GH502)","v":0},"--",{"$f":"AVERAGE(Monthly!GJ500:GJ502)","v":2.6183333333333336},{"$f":"AVERAGE(Monthly!GK500:GK502)","v":3796.3333333333335},"--"]
["00'Q1",10031.031000000001,12359.094999999999,12339.985000000001,8054.8666666666659,761.23333333333323,1825.7,5510.8,1599.914,1092.1220000000001,645.25699999999995,23.616,1668.146,1219.1579999999999,-448.98800000000006,2476.2220000000002,176.16300000000001,null,null,null,null,null,80.099999999999994,81.966666666666669,1015.5873,0.51,496.983,528.98699999999997,9.3000000000000007,-1.9,0.96,0.51,0.56000000000000005,5816,{"$f":"AH175/BN175","v":7.8545450616708742E-3},"--","--","--",94.854200000000006,94.759333333333316,1145719,1.39,55.800000000000004,52.333333333333336,47.5,52.533333333333339,54.133333333333326,53.133333333333333,48.4,58.433333333333337,74.233333333333334,58.800000000000004,54.566666666666663,58.800000000000004,62038,74.004000000000005,98.718000000000004,73.167000000000002,78.909000000000006,92.299000000000007,92.722999999999999,301.80799999999999,0.51,null,815325,740463,null,null,null,null,null,511.89353333333332,11.51895,16.557130000000001,5036.66,1659,1690,101.68666666666667,18.271666666666665,7.2910216280262476,10.114354961359579,"--","--","--","--","--","--",876.33333333333337,8445.2666666666682,310.46666666666664,1278.6666666666667,8774.6999999999989,1751.5,1549.7187333333334,281191.66666666669,618.23006666666663,110.13333333333333,"--",null,null,null,null,null,170.1,179.56666666666669,null,null,null,null,null,103.16666666666667,34.4,67.3,7.1333333333333329,4.0333333333333332,17290.333333333332,null,12.333333333332121,null,131252.33333333334,null,768.33333333334303,null,0,5.9666666666666659,{"$f":"AVERAGE(Monthly!DV503:DV505)","v":1408.0333333333335},{"$f":"AVERAGE(Monthly!DW503:DW505)","v":1378.7666666666667},{"$f":"AVERAGE(Monthly!DX503:DX505)","v":996.76666666666677},{"$f":"AVERAGE(Monthly!DY503:DY505)","v":235.36666666666665},{"$f":"AVERAGE(Monthly!DZ503:DZ505)","v":761.4},{"$f":"AVERAGE(Monthly!EA503:EA505)","v":543.16666666666674},{"$f":"AVERAGE(Monthly!EB503:EB505)","v":218.23333333333335},{"$f":"AVERAGE(Monthly!EC503:EC505)","v":382},null,null,null,null,null,88.262148016255253,88.864206086293166,89.569476047683381,null,null,null,null,null,129.63333333333335,147.16666666666666,138.29999999999998,null,null,null,null,null,8.6866666666666674,5.6766666666666667,7.7133333333333338,8.3299999999999983,61.666666666666444,8.26,5.5200000000000005,6.1866666666666665,6.5266666666666673,6.586666666666666,6.4799999999999995,0.293333333333333,null,null,null,null,null,1.4535333333333333,8.2786333333333335,9.402866666666668,0.98693333333333333,116.19726666666668,97.842533333333336,18810.666666666668,6636.8666666666659,10533.666666666666,null,null,null,null,null,28.806666666666668,{"$f":"AVERAGE(Monthly!GE503:GE505)","v":26.926666666666666},{"$f":"AVERAGE(Monthly!GF503:GF505)","v":1.4157333333333335},{"$f":"AVERAGE(Monthly!GG503:GG505)","v":1.4320000000000002},{"$f":"AVERAGE(Monthly!GH503:GH505)","v":0},"--",{"$f":"AVERAGE(Monthly!GJ503:GJ505)","v":2.609},{"$f":"AVERAGE(Monthly!GK503:GK505)","v":3819.6666666666665},"--"]
["00'Q2",10278.34,12592.53,12483.424000000001,8132.2,747.13333333333333,1862.0666666666668,5577.3,1650.511,1121.4760000000001,641.947,108.714,1719.607,1254.7449999999999,-464.86200000000008,2506.3919999999998,146.36500000000001,null,null,null,null,null,80.099999999999994,82.166666666666671,1050.0793000000001,0.59,488.86099999999999,519.64099999999996,18.2,5.3,0.98,0.59,0.56000000000000005,6501,{"$f":"AH176/BN176","v":8.7828563399766548E-3},"--","--","--",96.039333333333346,96.009400000000014,1165239.6666666667,1.3966666666666665,53.1,49.5,48.166666666666664,52.300000000000004,53.566666666666663,54.566666666666663,46.666666666666664,52.300000000000004,66.600000000000009,55.966666666666669,55.1,60.4,65486.333333333336,75.004999999999995,96.403000000000006,73.323999999999998,80.480999999999995,91.786000000000001,91.105999999999995,297.91199999999998,0.59,null,815862,740192,null,null,null,null,null,524.60800000000006,11.68289,16.69351,5121.8599999999997,1586.6666666666667,1570.6666666666667,105.21666666666665,17.328999999999997,7.227111217625164,9.9804445509584969,"--","--","--","--","--","--",830.33333333333337,8575.2666666666664,314.53333333333336,1235.6666666666667,8865.6333333333332,1780.9333333333334,1587.8612000000001,281885.33333333331,632.25056666666671,108.76666666666667,"--",null,null,null,null,null,171.43333333333331,180.70000000000002,null,null,null,null,null,103.5,34.333333333333329,67.166666666666657,7,3.9333333333333336,17291,null,0.66666666666787933,null,132031,null,778.66666666665697,null,0,5.8666666666666663,{"$f":"AVERAGE(Monthly!DV506:DV508)","v":1406.8},{"$f":"AVERAGE(Monthly!DW506:DW508)","v":1403.9666666666665},{"$f":"AVERAGE(Monthly!DX506:DX508)","v":1012},{"$f":"AVERAGE(Monthly!DY506:DY508)","v":243.86666666666667},{"$f":"AVERAGE(Monthly!DZ506:DZ508)","v":768.13333333333333},{"$f":"AVERAGE(Monthly!EA506:EA508)","v":548},{"$f":"AVERAGE(Monthly!EB506:EB508)","v":220.13333333333333},{"$f":"AVERAGE(Monthly!EC506:EC508)","v":391.9666666666667},null,null,null,null,null,89.869968747238886,89.990353058648097,90.911317303324111,null,null,null,null,null,132.03333333333333,147.66666666666669,138.70000000000002,null,null,null,null,null,9.2466666666666679,6.2733333333333334,7.7666666666666657,8.5933333333333337,82.666666666666799,8.32,5.7133333333333338,6.2166666666666659,6.5633333333333335,6.416666666666667,6.1766666666666667,-3.9999999999999147E-2,null,null,null,null,null,1.4805333333333335,8.2782,9.5779666666666667,0.93376666666666663,118.6497,100.72743333333334,19621.733333333334,7820.8,11288.6,null,null,null,null,null,28.783333333333331,{"$f":"AVERAGE(Monthly!GE506:GE508)","v":26.766666666666666},{"$f":"AVERAGE(Monthly!GF506:GF508)","v":1.5559333333333332},{"$f":"AVERAGE(Monthly!GG506:GG508)","v":1.421},{"$f":"AVERAGE(Monthly!GH506:GH508)","v":0},"--",{"$f":"AVERAGE(Monthly!GJ506:GJ508)","v":3.6423333333333332},{"$f":"AVERAGE(Monthly!GK506:GK508)","v":3631.6666666666665},"--"]
["00'Q3",10357.445,12607.675999999999,12540.311,8211.2666666666664,759.86666666666667,1874.3,5629.2,1667.915,1120.337,631.96400000000006,68.703999999999994,1779.038,1285.5160000000001,-493.52199999999993,2501.2179999999998,153.69800000000001,null,null,null,null,null,79.099999999999994,81.266666666666666,1070.9552666666666,0.63,481.94099999999997,521.07399999999996,21.1,-3.6,1.03,0.63,0.56999999999999995,7333,{"$f":"AH177/BN177","v":9.8218985610711001E-3},"--","--","--",95.95086666666667,95.959766666666667,1180685.6666666667,1.4133333333333333,50.70000000000001,47,49.5,50.633333333333333,51.066666666666663,50.633333333333333,47.166666666666664,50.300000000000004,59.966666666666669,51.633333333333333,52.333333333333336,59.199999999999996,65024.333333333336,75.191000000000003,98.209000000000003,74.754999999999995,80.45,92.718999999999994,92.921999999999997,283.827,0.63,null,823104,746597,null,null,null,null,null,537.30873333333329,11.85891,16.839880000000001,5195.8599999999997,1503.6666666666667,1554.6666666666667,107.86666666666667,17.395333333333337,7.4690208756786847,10.269020875678684,"--","--","--","--","--","--",882.33333333333337,8724.9333333333325,322.73333333333335,1189.3333333333333,8969.2666666666682,1815.8666666666668,1650.1225333333332,282656.66666666669,654.98189999999988,107.46666666666665,"--",null,null,null,null,null,173,181.9,null,null,null,null,null,103.60000000000001,34.266666666666666,66.900000000000006,7.0333333333333341,4,17279.666666666668,null,-11.333333333332121,null,132289.33333333334,null,258.33333333334303,null,0,5.833333333333333,{"$f":"AVERAGE(Monthly!DV509:DV511)","v":1403.8},{"$f":"AVERAGE(Monthly!DW509:DW511)","v":1425.7666666666667},{"$f":"AVERAGE(Monthly!DX509:DX511)","v":1024.2},{"$f":"AVERAGE(Monthly!DY509:DY511)","v":252.33333333333334},{"$f":"AVERAGE(Monthly!DZ509:DZ511)","v":771.86666666666667},{"$f":"AVERAGE(Monthly!EA509:EA511)","v":550.69999999999993},{"$f":"AVERAGE(Monthly!EB509:EB511)","v":221.16666666666666},{"$f":"AVERAGE(Monthly!EC509:EC511)","v":401.56666666666666},null,null,null,null,null,89.766895727458831,89.97338793515182,91.151795739243369,null,null,null,null,null,133.76666666666668,148.29999999999998,139.1,null,null,null,null,null,9.5,6.52,7.6066666666666665,8.32,71.333333333333385,8.0299999999999994,6.0166666666666666,6.13,6.2166666666666659,6.0566666666666658,5.8933333333333335,-0.23666666666666636,null,null,null,null,null,1.4823333333333333,8.2791666666666668,9.3510333333333335,0.9042,120.00876666666666,102.5551,18693.933333333334,9787.3666666666668,11865.466666666667,null,null,null,null,null,31.623333333333335,{"$f":"AVERAGE(Monthly!GE509:GE511)","v":30.673333333333332},{"$f":"AVERAGE(Monthly!GF509:GF511)","v":1.5612833333333331},{"$f":"AVERAGE(Monthly!GG509:GG511)","v":1.5123333333333333},{"$f":"AVERAGE(Monthly!GH509:GH511)","v":0},"--",{"$f":"AVERAGE(Monthly!GJ509:GJ511)","v":4.5206666666666671},{"$f":"AVERAGE(Monthly!GK509:GK511)","v":3578.3333333333335},"--"]
["00'Q4",10472.285,12679.338,12615.816999999999,8284.4,765.1,1892.3333333333333,5679.8666666666659,1672.3209999999999,1122.806,632.61500000000001,63.866999999999997,1778.0709999999999,1274.3119999999999,-503.75900000000001,2508.9650000000001,149.81899999999999,null,null,null,null,null,77.7,80.3,1081.2190000000001,0.79,460.19299999999998,494.74,16.399999999999999,-12.8,1.1200000000000001,0.79,0.66,7766,1.0325823200526529E-2,"--","--","--",95.746899999999997,95.491366666666678,1194276.3333333333,1.4233333333333331,47.033333333333331,39.666666666666664,51,46,48.933333333333337,52.266666666666673,43.033333333333331,46.533333333333331,58.533333333333339,47.433333333333337,51.4,58.6,62901,75.647999999999996,97.995999999999995,75.17,81.253,92.600999999999999,92.513000000000005,240.47900000000001,0.79,null,828632,752095,null,null,null,null,null,549.7799,12.08849,17.093869999999999,5272.22,1544,1578,110.62,16.402333333333335,7.3435088887033215,10.073508888703321,"--","--","--","--","--","--",932,8802.7333333333336,282.93333333333334,1224.3333333333333,8999.5333333333328,1857.2666666666664,1700.8378333333337,283450,674.86310000000003,103.93333333333332,"--",null,null,null,null,null,174.23333333333335,183,null,null,null,null,null,103.53333333333335,34.166666666666664,66.899999999999991,6.9333333333333327,3.9,17200,null,-79.666666666667879,null,132560.33333333334,null,271,null,0,6.0666666666666664,{"$f":"AVERAGE(Monthly!DV512:DV514)","v":1403.8},{"$f":"AVERAGE(Monthly!DW512:DW514)","v":1414.8333333333333},{"$f":"AVERAGE(Monthly!DX512:DX514)","v":1018.8000000000001},{"$f":"AVERAGE(Monthly!DY512:DY514)","v":248.1},{"$f":"AVERAGE(Monthly!DZ512:DZ514)","v":770.70000000000016},{"$f":"AVERAGE(Monthly!EA512:EA514)","v":549.5333333333333},{"$f":"AVERAGE(Monthly!EB512:EB514)","v":221.16666666666666},{"$f":"AVERAGE(Monthly!EC512:EC514)","v":396.0333333333333},null,null,null,null,null,90.042378730289045,90.554772567288765,91.813492895026855,null,null,null,null,null,135.53333333333333,148.70000000000002,139.33333333333334,null,null,null,null,null,9.5,6.4733333333333336,7.4033333333333333,8.2133333333333329,80.999999999999957,7.6433333333333335,6.0166666666666666,5.8999999999999995,5.7133333333333338,5.55,5.5666666666666673,-0.33333333333333215,null,null,null,null,null,1.5256666666666667,8.2776666666666667,9.5041333333333338,0.86866666666666659,123.30720000000001,105.81113333333333,19819.766666666666,9094.3666666666668,11621.033333333333,null,null,null,null,null,31.98,{"$f":"AVERAGE(Monthly!GE512:GE514)","v":29.723333333333333},{"$f":"AVERAGE(Monthly!GF512:GF514)","v":1.4378333333333331},{"$f":"AVERAGE(Monthly!GG512:GG514)","v":1.6076666666666668},{"$f":"AVERAGE(Monthly!GH512:GH514)","v":0},"--",{"$f":"AVERAGE(Monthly!GJ512:GJ514)","v":6.4789999999999992},{"$f":"AVERAGE(Monthly!GK512:GK514)","v":3930.3333333333335},"--"]
["01'Q1",10508.120999999999,12643.282999999999,12681.906999999999,8319.3666666666668,777.70000000000016,1881.0333333333335,5709.5666666666666,1658.83,1124.7869999999998,635.33299999999997,-37.892000000000003,1748.4670000000001,1254.4960000000001,-493.971,2546.27,129.97,null,null,null,null,null,75.8,78.5,1093.5505666666668,0.88,494.89299999999997,519.13499999999999,14.8,-29.7,1.2,0.88,0.71,8220,1.0875720417246618E-2,78.8,85,87.6,94.4816,94.137366666666665,1191871.3333333333,1.4333333333333333,42.5,37.666666666666664,53.5,40,47.933333333333337,48.466666666666661,43.233333333333327,39.93333333333333,56.699999999999996,40.133333333333333,49.233333333333327,51.333333333333336,59883.666666666664,74.966999999999999,99.606999999999999,76.903999999999996,80.921000000000006,93.831999999999994,95.034999999999997,258.44299999999998,0.88,null,834183,755812,null,null,null,null,null,556.96186666666665,12.19412,17.193960000000001,5363.41,1605,1671.3333333333333,114.08999999999999,17.183999999999997,7.6443576222211176,10.607690955554451,"--","--","--","--","--","--",946,8961.1666666666661,322.93333333333334,1257.6666666666667,9076.2666666666664,1932.6666666666667,1746.3651666666665,284135.66666666669,695.76826666666659,92.266666666666666,"--",null,null,null,null,null,175.9,184.33333333333334,null,null,null,null,null,103.33333333333333,34.1,67.166666666666671,7.333333333333333,4.2333333333333334,17023.333333333332,null,-176.66666666666788,null,132745,null,184.66666666665697,null,0,6.166666666666667,{"$f":"AVERAGE(Monthly!DV515:DV517)","v":1407.3333333333333},{"$f":"AVERAGE(Monthly!DW515:DW517)","v":1378.5333333333335},{"$f":"AVERAGE(Monthly!DX515:DX517)","v":995.16666666666663},{"$f":"AVERAGE(Monthly!DY515:DY517)","v":237.66666666666666},{"$f":"AVERAGE(Monthly!DZ515:DZ517)","v":757.5},{"$f":"AVERAGE(Monthly!EA515:EA517)","v":540.36666666666667},{"$f":"AVERAGE(Monthly!EB515:EB517)","v":217.13333333333333},{"$f":"AVERAGE(Monthly!EC515:EC517)","v":383.36666666666662},null,null,null,null,null,89.588200343279325,90.559755459125583,91.810931463247286,null,null,null,null,null,137.76666666666665,149.4,139.56666666666669,null,null,null,null,null,8.6233333333333331,5.5933333333333337,7.0766666666666671,7.88,80.333333333333286,7.0100000000000007,4.8166666666666673,4.5966666666666667,4.5866666666666669,4.7966666666666669,5.05,0.45333333333333314,null,null,null,null,null,1.5278333333333334,8.2774000000000001,9.6928666666666672,0.92213333333333336,123.97783333333332,105.39153333333333,19560.366666666669,7464.4333333333334,11016.066666666666,null,null,null,null,null,28.81,{"$f":"AVERAGE(Monthly!GE515:GE517)","v":25.873333333333335},{"$f":"AVERAGE(Monthly!GF515:GF517)","v":1.4781666666666666},{"$f":"AVERAGE(Monthly!GG515:GG517)","v":1.4716666666666667},{"$f":"AVERAGE(Monthly!GH515:GH517)","v":0},"--",{"$f":"AVERAGE(Monthly!GJ515:GJ517)","v":6.2296666666666667},{"$f":"AVERAGE(Monthly!GK515:GK517)","v":4100.333333333333},"--"]
["01'Q2",10638.384,12710.303,12725.717000000001,8340.7333333333318,777.03333333333342,1889.8333333333333,5723.7333333333327,1621.165,1084.2649999999999,645.17499999999995,-12.804,1696.8119999999999,1213.0440000000001,-483.7679999999998,2596.404,92.781000000000006,null,null,null,null,null,74,76.86666666666666,1081.8217,1.01,520.23299999999995,557.40599999999995,26.3,-34.5,1.26,1.01,0.75,8357,1.0937894694132906E-2,79.5,85.8,88.4,93.297366666666662,92.841999999999985,1179896,1.4400000000000002,42.4,41.833333333333336,49.666666666666664,36.333333333333336,46,47.033333333333331,39.266666666666673,46.066666666666663,45.29999999999999,43.833333333333336,46.566666666666663,49.266666666666659,55622.666666666664,75.094999999999999,100.16800000000001,77.138000000000005,82.296000000000006,93.432000000000002,93.731999999999999,256.38400000000001,1.01,null,842743,764041,null,null,null,null,null,564.72983333333332,12.405900000000001,17.4514,5448.61,1630,1652.3333333333333,116.34666666666665,16.712666666666667,7.7251003044704776,10.805100304470477,"--","--","--","--","--","--",892,8997.9,301.40000000000003,1297,9068.3000000000011,2034.4000000000003,1782.2146333333333,284817.66666666669,709.68003333333343,91,"--",null,null,null,null,null,177.13333333333335,185.46666666666667,null,null,null,null,null,102.56666666666668,34,66.766666666666666,7.6000000000000005,4.3999999999999995,16659.333333333332,null,-364,null,132401.66666666666,null,-343.33333333334303,null,0,6.0666666666666664,{"$f":"AVERAGE(Monthly!DV518:DV520)","v":1396.1333333333332},{"$f":"AVERAGE(Monthly!DW518:DW520)","v":1394.1000000000001},{"$f":"AVERAGE(Monthly!DX518:DX520)","v":997.30000000000007},{"$f":"AVERAGE(Monthly!DY518:DY520)","v":239.63333333333335},{"$f":"AVERAGE(Monthly!DZ518:DZ520)","v":757.66666666666663},{"$f":"AVERAGE(Monthly!EA518:EA520)","v":540.19999999999993},{"$f":"AVERAGE(Monthly!EB518:EB520)","v":217.4666666666667},{"$f":"AVERAGE(Monthly!EC518:EC520)","v":396.8},null,null,null,null,null,89.703044864476439,90.971599878768615,92.16973446818227,null,null,null,null,null,136.23333333333335,150.03333333333333,139.76666666666668,null,null,null,null,null,7.34,4.3266666666666671,7.2233333333333336,8.0366666666666671,81.333333333333343,7.13,3.66,3.78,4.1900000000000004,4.833333333333333,5.27,1.4899999999999998,null,null,null,null,null,1.5411333333333335,8.2770333333333337,9.187733333333334,0.87360000000000004,126.73020000000001,109.0551,19083.533333333336,7947.6333333333341,11116.366666666667,null,null,null,null,null,27.883333333333336,{"$f":"AVERAGE(Monthly!GE518:GE520)","v":27.27333333333333},{"$f":"AVERAGE(Monthly!GF518:GF520)","v":1.6551},{"$f":"AVERAGE(Monthly!GG518:GG520)","v":1.4666666666666668},{"$f":"AVERAGE(Monthly!GH518:GH520)","v":0},"--",{"$f":"AVERAGE(Monthly!GJ518:GJ520)","v":4.4050000000000002},{"$f":"AVERAGE(Monthly!GK518:GK520)","v":3699.6666666666665},"--"]
["01'Q3",10639.486000000001,12670.106,12708.153,8371.2333333333336,785.93333333333339,1898.6000000000001,5733.7,1599.9670000000001,1058.7920000000001,649.19299999999998,-36.893999999999998,1662.797,1154.0730000000001,-508.72399999999993,2594.5839999999998,-130.19300000000001,null,null,null,null,null,72.2,75.166666666666671,1059.6290666666666,1.1100000000000001,475.29599999999999,547.25900000000001,25.9,-42.1,1.33,1.1100000000000001,0.82,8276,1.0926263563762723E-2,80.599999999999994,86.7,89.2,91.951300000000003,91.31846666666668,1161942.6666666667,1.4299999999999997,45.333333333333336,43.333333333333336,47.333333333333336,40,49.1,48.966666666666669,37.866666666666667,51.6,37.166666666666664,50.199999999999996,47,48.4,52780,74.664000000000001,100.863,77.215000000000003,82.73,93.272999999999996,93.334000000000003,213.15199999999999,1.1100000000000001,null,837040,757441,null,null,null,null,null,565.80006666666668,12.33667,17.318200000000001,5539.05,1599.6666666666667,1592.6666666666667,118.25999999999999,16.064999999999998,7.5117101924170013,10.895043525750333,"--","--","--","--","--","--",866.33333333333337,8990.6999999999989,457.2,1275.6666666666667,9282.6666666666661,2131.1,1805.9873333333335,285574,707.28129999999999,88.566666666666663,"--",null,null,null,null,null,177.63333333333333,186.73333333333335,null,null,null,null,null,101.73333333333333,33.9,66.7,8.1999999999999993,4.833333333333333,16243.666666666666,null,-415.66666666666606,null,132006.66666666666,null,-395,null,0,6.9666666666666659,{"$f":"AVERAGE(Monthly!DV521:DV523)","v":1381.4666666666665},{"$f":"AVERAGE(Monthly!DW521:DW523)","v":1400.3},{"$f":"AVERAGE(Monthly!DX521:DX523)","v":993.96666666666658},{"$f":"AVERAGE(Monthly!DY521:DY523)","v":240.29999999999998},{"$f":"AVERAGE(Monthly!DZ521:DZ523)","v":753.66666666666663},{"$f":"AVERAGE(Monthly!EA521:EA523)","v":537.66666666666663},{"$f":"AVERAGE(Monthly!EB521:EB523)","v":216},{"$f":"AVERAGE(Monthly!EC521:EC523)","v":406.33333333333331},null,null,null,null,null,89.110274379332765,90.606818831370362,91.837672494621955,null,null,null,null,null,133.36666666666667,150.56666666666666,140.16666666666666,null,null,null,null,null,6.5666666666666664,3.4966666666666666,7.1066666666666665,7.95,84.333333333333371,6.9666666666666659,3.17,3.3033333333333332,3.64,4.4833333333333334,4.9800000000000004,1.6766666666666672,null,null,null,null,null,1.5462,8.2768999999999995,9.2422333333333331,0.89143333333333341,126.3809,108.045,16830.533333333333,9648.6666666666661,10943.433333333334,null,null,null,null,null,26.599999999999998,{"$f":"AVERAGE(Monthly!GE521:GE523)","v":25.303333333333331},{"$f":"AVERAGE(Monthly!GF521:GF523)","v":1.4945666666666668},{"$f":"AVERAGE(Monthly!GG521:GG523)","v":1.42},{"$f":"AVERAGE(Monthly!GH521:GH523)","v":0},"--",{"$f":"AVERAGE(Monthly!GJ521:GJ523)","v":2.7716666666666669},{"$f":"AVERAGE(Monthly!GK521:GK523)","v":3655.3333333333335},"--"]
["01'Q4",10701.316999999999,12705.269,12802.57,8499.1333333333332,851.43333333333339,1914.6666666666667,5756.833333333333,1553.614,1064.165,645.02800000000002,-97.393000000000001,1639.787,1117.9929999999999,-521.7940000000001,2632.3670000000002,-34.747999999999998,null,null,null,null,null,71.099999999999994,73.933333333333337,1033.4529,1.44,458.93799999999999,579.173,17.2,-50,1.4,1.44,0.95,9307,1.1856247300910715E-2,81.5,87.5,90,90.962899999999991,90.419399999999996,1127967.6666666667,1.3933333333333333,43.4,38,44.333333333333336,37.033333333333331,47.300000000000004,49.1,38.266666666666659,46.466666666666669,32.833333333333336,45.966666666666661,49.29999999999999,46.866666666666674,50787,75.852999999999994,101.268,77.914000000000001,83.78,94.213999999999999,92.998000000000005,128.04,1.44,null,865281,784987,null,null,null,null,null,571.33856666666668,12.63241,17.71726,5616.31,1570,1632.3333333333333,120.21,18.526999999999997,7.3752331260311292,11.225233126031128,"--","--","--","--","--","--",924.66666666666663,9016.5333333333328,259.13333333333333,1256.3333333333333,9167.8666666666668,2258.8666666666668,1851.8453333333334,286336.33333333331,710.96930000000009,85.13333333333334,"--",null,null,null,null,null,177.5,187.96666666666667,null,null,null,null,null,100.60000000000001,33.800000000000004,66.7,9.4333333333333353,5.5,15836,null,-407.66666666666606,null,131215.66666666666,null,-791,null,0,7.7333333333333334,{"$f":"AVERAGE(Monthly!DV524:DV526)","v":1362.8},{"$f":"AVERAGE(Monthly!DW524:DW526)","v":1374.1000000000001},{"$f":"AVERAGE(Monthly!DX524:DX526)","v":981.6},{"$f":"AVERAGE(Monthly!DY524:DY526)","v":235.36666666666667},{"$f":"AVERAGE(Monthly!DZ524:DZ526)","v":746.23333333333323},{"$f":"AVERAGE(Monthly!EA524:EA526)","v":533.06666666666672},{"$f":"AVERAGE(Monthly!EB524:EB526)","v":213.16666666666666},{"$f":"AVERAGE(Monthly!EC524:EC526)","v":392.5},null,null,null,null,null,89.342274329758141,91.342970337171778,92.196485327066085,null,null,null,null,null,129.4,150.13333333333333,139.43333333333337,null,null,null,null,null,5.1566666666666663,2.1333333333333333,6.9233333333333329,7.9233333333333329,100,6.7833333333333341,1.906666666666667,2.2433333333333336,2.8733333333333331,4.09,4.7700000000000005,2.5266666666666668,null,null,null,null,null,1.5809,8.2766999999999999,9.240499999999999,0.89483333333333326,127.14963333333333,108.93566666666668,16614.866666666669,9032.0666666666657,10703.433333333332,null,null,null,null,null,20.403333333333332,{"$f":"AVERAGE(Monthly!GE524:GE526)","v":19.350000000000001},{"$f":"AVERAGE(Monthly!GF524:GF526)","v":1.2320166666666668},{"$f":"AVERAGE(Monthly!GG524:GG526)","v":1.258},{"$f":"AVERAGE(Monthly!GH524:GH526)","v":0},"--",{"$f":"AVERAGE(Monthly!GJ524:GJ526)","v":2.6966666666666668},{"$f":"AVERAGE(Monthly!GK524:GK526)","v":3806.3333333333335},"--"]
["02'Q1",10834.445,12822.258,12828.094999999999,8524.6,840.9666666666667,1921.7333333333333,5791.9666666666672,1522.057,1058.6089999999999,666.173,-3.8460000000000001,1686.9010000000001,1140.855,-546.04600000000005,2671.2719999999999,-228.00700000000001,null,null,null,null,null,71.599999999999994,74.100000000000009,1013.649,1.41,506.78699999999998,671.45500000000004,29.3,-45.4,1.46,1.41,1.1100000000000001,10000,1.2968267945164976E-2,82.3,88.2,90.7,91.606566666666666,91.328299999999999,1112811,1.38,50.199999999999996,53.333333333333336,41.666666666666664,43.800000000000004,50.466666666666669,52.533333333333331,40.1,59.9,45.766666666666673,55.833333333333336,51.5,54.800000000000004,48539.333333333336,77.349999999999994,99.253,78.313999999999993,85.664000000000001,94.385000000000005,91.421000000000006,185.643,1.41,null,852901,771113,null,null,null,null,null,574.36736666666673,12.404999999999999,17.394549999999999,5727.45,1723,1714.3333333333333,122.29,16.671333333333333,6.9317084729315619,10.921708472931561,"--","--","--","--","--","--",917,9057.7333333333336,430.59999999999997,1370.3333333333333,9390.8333333333339,2392.2666666666664,1881.3381333333334,286990.66666666669,716.51986666666664,93.133333333333326,"--",null,null,null,null,null,178.06666666666669,189,null,null,null,null,null,100.36666666666667,33.833333333333336,66.63333333333334,9.4666666666666668,5.7,15515,null,-321,null,130771.33333333333,null,-444.33333333332848,null,0,8.3666666666666671,{"$f":"AVERAGE(Monthly!DV527:DV529)","v":1347.3999999999999},{"$f":"AVERAGE(Monthly!DW527:DW529)","v":1318.3},{"$f":"AVERAGE(Monthly!DX527:DX529)","v":945.73333333333323},{"$f":"AVERAGE(Monthly!DY527:DY529)","v":225.4},{"$f":"AVERAGE(Monthly!DZ527:DZ529)","v":720.33333333333337},{"$f":"AVERAGE(Monthly!EA527:EA529)","v":513.66666666666663},{"$f":"AVERAGE(Monthly!EB527:EB529)","v":206.66666666666666},{"$f":"AVERAGE(Monthly!EC527:EC529)","v":372.56666666666666},null,null,null,null,null,90.08252163400698,91.984340900427483,92.991719855393924,null,null,null,null,null,128.9,150.03333333333333,139.43333333333331,null,null,null,null,null,4.75,1.7333333333333332,6.6233333333333322,7.9566666666666661,133.3333333333334,6.9666666666666659,1.7233333333333334,2.3200000000000003,3.2033333333333331,4.46,5.0766666666666671,2.7566666666666668,null,null,null,null,null,1.5945999999999998,8.2770333333333337,9.1108666666666664,0.87683333333333335,129.17553333333333,111.57470000000001,16665.233333333334,7898.4000000000005,10353.066666666668,null,null,null,null,null,21.61,{"$f":"AVERAGE(Monthly!GE527:GE529)","v":21.133333333333336},{"$f":"AVERAGE(Monthly!GF527:GF529)","v":1.2055166666666668},{"$f":"AVERAGE(Monthly!GG527:GG529)","v":1.1783333333333332},{"$f":"AVERAGE(Monthly!GH527:GH529)","v":0},"--",{"$f":"AVERAGE(Monthly!GJ527:GJ529)","v":2.4893333333333332},{"$f":"AVERAGE(Monthly!GK527:GK529)","v":3769.3333333333335},"--"]
["02'Q2",10934.752,12893.002,12870.412,8568.1333333333332,849.20000000000016,1922.7,5825.2,1501.855,1063.828,682.71199999999999,26.477,1739.799,1172.095,-567.70399999999995,2696.875,-266.47699999999998,null,null,null,null,null,72.599999999999994,75.033333333333331,991.81076666666661,1.6,564.12800000000004,695.06799999999998,29.1,-29,1.47,1.6,1.1100000000000001,10756,1.3811860273694673E-2,83.3,89.1,91.6,93.041699999999992,92.820333333333338,1110017.3333333333,1.3500000000000003,53.033333333333331,55.333333333333336,41.333333333333336,47.4,53.099999999999994,54.4,43.333333333333336,60.966666666666661,62.933333333333337,59.866666666666667,53.766666666666673,57.633333333333333,49890.333333333336,78.462999999999994,99.114000000000004,79.001999999999995,85.724999999999994,94.466999999999999,92.156999999999996,238.71199999999999,1.6,null,861215,778751,null,null,null,null,null,580.6971666666667,12.344569999999999,17.290590000000002,5852.52,1691,1714.3333333333333,125.94,16.604333333333333,7.1513478186193309,11.234681151952664,"--","--","--","--","--","--",957,9139.9,434.39999999999992,1349,9438.4666666666672,2488.2666666666664,1915.2510000000002,287628,728.80173333333335,94.100000000000009,"--",null,null,null,null,null,179.46666666666667,189.96666666666667,null,null,null,null,null,100.23333333333335,33.9,66.666666666666671,9.5666666666666664,5.833333333333333,15342.333333333334,null,-172.66666666666606,null,130649.33333333333,null,-122,null,0,9.7999999999999989,{"$f":"AVERAGE(Monthly!DV530:DV532)","v":1341.6},{"$f":"AVERAGE(Monthly!DW530:DW532)","v":1341.8},{"$f":"AVERAGE(Monthly!DX530:DX532)","v":951.9666666666667},{"$f":"AVERAGE(Monthly!DY530:DY532)","v":232.16666666666666},{"$f":"AVERAGE(Monthly!DZ530:DZ532)","v":719.80000000000007},{"$f":"AVERAGE(Monthly!EA530:EA532)","v":511.56666666666666},{"$f":"AVERAGE(Monthly!EB530:EB532)","v":208.23333333333335},{"$f":"AVERAGE(Monthly!EC530:EC532)","v":389.83333333333331},null,null,null,null,null,90.490496458613123,92.046820379050757,93.183735478596105,null,null,null,null,null,130.83333333333334,150.33333333333334,139.26666666666668,null,null,null,null,null,4.75,1.75,6.7133333333333338,8.0233333333333317,130.99999999999977,6.8166666666666673,1.7166666666666668,2.3433333333333333,3.2233333333333332,4.4433333333333342,5.1000000000000005,2.7566666666666673,null,null,null,null,null,1.5545,8.2769666666666666,9.4806333333333317,0.91970000000000007,127.04023333333333,107.3986,18138.5,9890.5666666666675,11570.366666666667,null,null,null,null,null,26.27,{"$f":"AVERAGE(Monthly!GE530:GE532)","v":25.053333333333331},{"$f":"AVERAGE(Monthly!GF530:GF532)","v":1.4348833333333335},{"$f":"AVERAGE(Monthly!GG530:GG532)","v":1.3},{"$f":"AVERAGE(Monthly!GH530:GH532)","v":0},"--",{"$f":"AVERAGE(Monthly!GJ530:GJ532)","v":3.4106666666666672},{"$f":"AVERAGE(Monthly!GK530:GK532)","v":3646.3333333333335},"--"]
["02'Q3",11037.057000000001,12955.769,12925.95,8628.0333333333347,874.1,1927.3999999999999,5848.166666666667,1492.99,1075.7080000000001,684.73099999999999,32.421999999999997,1765.579,1180.452,-585.12699999999995,2717.759,-276.86,null,null,null,null,null,73.2,75.433333333333337,971.76393333333328,1.74,620.40899999999999,716.35900000000004,21.4,-36.4,1.5,1.74,1.1200000000000001,11478,1.4557934949697883E-2,84.1,89.6,92,93.611400000000003,93.576466666666661,1122748,1.3533333333333335,50.333333333333336,45,41.833333333333336,45.866666666666667,53.133333333333326,53.5,43.966666666666661,51.800000000000004,64.100000000000009,55,55.033333333333339,52.966666666666669,49549.666666666664,79.59,98.44,79.39,86.39,94.417000000000002,91.897000000000006,283.63299999999998,1.74,null,871443,788436,null,null,null,null,null,588.84460000000001,12.38888,17.323090000000001,5931.77,1697.3333333333333,1745.3333333333333,130.24,17.419999999999998,7.3096933454112154,11.323026678744547,"--","--","--","--","--","--",1004.6666666666666,9173.9666666666653,375.0333333333333,1338.6666666666667,9426.2666666666682,2605.4,1945.7876333333334,288361,740.02679999999998,87.266666666666652,"--",null,null,null,null,null,180.43333333333331,190.9666666666667,null,null,null,null,null,99.833333333333329,33.866666666666667,66.600000000000009,9.6,5.7333333333333334,15182,null,-160.33333333333394,null,130571.66666666667,null,-77.666666666656965,null,0,9.1333333333333329,{"$f":"AVERAGE(Monthly!DV533:DV535)","v":1332.3333333333333},{"$f":"AVERAGE(Monthly!DW533:DW535)","v":1351.1666666666667},{"$f":"AVERAGE(Monthly!DX533:DX535)","v":952.83333333333337},{"$f":"AVERAGE(Monthly!DY533:DY535)","v":236},{"$f":"AVERAGE(Monthly!DZ533:DZ535)","v":716.83333333333337},{"$f":"AVERAGE(Monthly!EA533:EA535)","v":507.5},{"$f":"AVERAGE(Monthly!EB533:EB535)","v":209.33333333333334},{"$f":"AVERAGE(Monthly!EC533:EC535)","v":398.33333333333331},null,null,null,null,null,91.20978265162546,93.029282127721217,93.974757020006834,null,null,null,null,null,131.66666666666666,150.06666666666666,138.83333333333334,null,null,null,null,null,4.75,1.74,6.3500000000000005,7.6266666666666678,127.66666666666673,6.29,1.6433333333333333,1.8133333333333332,2.23,3.3466666666666662,4.2600000000000007,2.4466666666666672,null,null,null,null,null,1.5637000000000001,8.2768333333333342,9.8962999999999983,0.98406666666666665,125.05996666666665,102.9884,17238.533333333333,12058.699999999999,11518.633333333333,null,null,null,null,null,28.330000000000002,{"$f":"AVERAGE(Monthly!GE533:GE535)","v":26.929999999999996},{"$f":"AVERAGE(Monthly!GF533:GF535)","v":1.4394499999999999},{"$f":"AVERAGE(Monthly!GG533:GG535)","v":1.3460000000000001},{"$f":"AVERAGE(Monthly!GH533:GH535)","v":0},"--",{"$f":"AVERAGE(Monthly!GJ533:GJ535)","v":3.2010000000000005},{"$f":"AVERAGE(Monthly!GK533:GK535)","v":3617.6666666666665},"--"]
["02'Q4",11103.834000000001,12964.016,12931.2,8674.3666666666668,862.03333333333342,1952.5666666666668,5887.4333333333334,1475.0820000000001,1063.6480000000001,697.06,35.1,1802.902,1164.472,-638.43000000000006,2737.143,-310.58999999999997,null,null,null,null,null,73.099999999999994,75.399999999999991,960.37076666666678,1.75,695.08699999999999,776.44,25,-48.2,1.46,1.75,1.1100000000000001,12227,1.5450382373902539E-2,85,90.2,92.3,93.565166666666656,93.500333333333344,1134084.3333333333,1.36,49.699999999999996,44.166666666666664,44,46.233333333333327,51.666666666666664,52.9,43.433333333333337,53.566666666666663,56.966666666666669,52.633333333333333,52.800000000000004,55.133333333333333,49051.333333333336,80.344999999999999,98.472999999999999,79.581000000000003,86.238,94.1,92.281000000000006,341.54,1.75,null,874928,791372,null,null,null,null,null,608.1574333333333,12.37303,17.25779,6050.29,1729.6666666666667,1822,134.11666666666667,16.570333333333334,8.1202729095864665,12.226939576253132,"--","--","--","--","--","--",1026,9243.9,381.06666666666666,1395,9471.6,2737.0333333333333,1964.8142,289096.33333333331,749.59776666666676,83.833333333333329,"--",null,null,null,null,null,181.5,191.83333333333334,null,null,null,null,null,99.566666666666677,33.799999999999997,66.433333333333337,9.6999999999999993,5.8666666666666671,14988,null,-194,null,130605,null,33.333333333328483,null,0,9.5,{"$f":"AVERAGE(Monthly!DV536:DV538)","v":1334.5666666666666},{"$f":"AVERAGE(Monthly!DW536:DW538)","v":1345.8},{"$f":"AVERAGE(Monthly!DX536:DX538)","v":956.06666666666661},{"$f":"AVERAGE(Monthly!DY536:DY538)","v":234.20000000000002},{"$f":"AVERAGE(Monthly!DZ536:DZ538)","v":721.86666666666667},{"$f":"AVERAGE(Monthly!EA536:EA538)","v":512.13333333333333},{"$f":"AVERAGE(Monthly!EB536:EB538)","v":209.73333333333335},{"$f":"AVERAGE(Monthly!EC536:EC538)","v":389.73333333333335},null,null,null,null,null,90.963363005610006,93.161396055133309,94.396838297087115,null,null,null,null,null,133.06666666666663,150.1,139,null,null,null,null,null,4.45,1.4433333333333334,6.28,7.6000000000000005,132.00000000000003,6.0766666666666671,1.3333333333333333,1.53,1.89,3.01,4.0066666666666668,2.4766666666666666,null,null,null,null,null,1.5695666666666666,8.2773666666666674,10.171466666666666,1.0006333333333333,125.98373333333332,102.77073333333334,17653.633333333335,11883.199999999999,11429.933333333332,null,null,null,null,null,28.180000000000003,{"$f":"AVERAGE(Monthly!GE536:GE538)","v":26.736666666666665},{"$f":"AVERAGE(Monthly!GF536:GF538)","v":1.3583000000000001},{"$f":"AVERAGE(Monthly!GG536:GG538)","v":1.4370000000000001},{"$f":"AVERAGE(Monthly!GH536:GH538)","v":0},"--",{"$f":"AVERAGE(Monthly!GJ536:GJ538)","v":4.3220000000000001},{"$f":"AVERAGE(Monthly!GK536:GK538)","v":3895},"--"]
["03'Q1",11230.078,13031.169,12995.405000000001,8712.5666666666657,864.66666666666663,1965.9666666666665,5909.3999999999987,1478.588,1070.0889999999999,709.79700000000003,36.334000000000003,1777.883,1157.558,-620.32500000000005,2728.2910000000002,-333.39800000000002,null,null,null,null,null,73.3,75.900000000000006,943.21690000000001,1.35,689.94899999999996,756.63400000000001,16.100000000000001,-20.6,1.41,1.35,0.9,12796,1.6028720420584806E-2,87,91.4,93.3,94.084833333333336,93.907966666666667,1146064,1.36,48.79999999999999,45.166666666666664,43.5,44.066666666666663,53.633333333333326,55.5,43.166666666666664,52.433333333333337,64.333333333333329,51.566666666666663,52.733333333333327,52.70000000000001,49959.666666666664,81.93,97.495000000000005,80.102000000000004,87.122,93.754999999999995,91.942999999999998,344.31799999999998,1.35,null,882819,798317,null,null,null,null,null,607.00826666666671,12.366580000000001,17.205690000000001,6188.63,1736,1806.3333333333333,137.43333333333331,16.137333333333334,8.8429112956444538,12.949577962311119,"--","--","--","--","--","--",978,9301.3666666666668,383.8,1412.3333333333333,9499,2844.9,1992.3917333333331,289714.33333333331,757.68196666666665,79.966666666666669,68.333333333333329,null,null,null,null,null,183.36666666666667,192.46666666666667,null,null,null,null,null,99.133333333333326,33.766666666666666,66.366666666666674,10.066666666666666,5.8666666666666671,14789.333333333334,null,-198.66666666666606,null,130427,null,-178,null,0,9.6,{"$f":"AVERAGE(Monthly!DV539:DV541)","v":1327.7333333333333},{"$f":"AVERAGE(Monthly!DW539:DW541)","v":1298.3333333333333},{"$f":"AVERAGE(Monthly!DX539:DX541)","v":925.73333333333323},{"$f":"AVERAGE(Monthly!DY539:DY541)","v":225.03333333333333},{"$f":"AVERAGE(Monthly!DZ539:DZ541)","v":700.70000000000016},{"$f":"AVERAGE(Monthly!EA539:EA541)","v":497.63333333333338},{"$f":"AVERAGE(Monthly!EB539:EB541)","v":203.06666666666669},{"$f":"AVERAGE(Monthly!EC539:EC541)","v":372.59999999999997},null,null,null,null,null,91.417831372267841,93.578960658130683,94.723345207206606,null,null,null,null,null,138.03333333333333,150.13333333333335,139.26666666666668,null,null,null,null,null,4.25,1.25,6.0033333333333339,7.12,111.66666666666663,5.836666666666666,1.1566666666666665,1.3,1.6466666666666667,2.9099999999999997,3.92,2.62,null,null,null,null,null,1.5098666666666667,8.2776000000000014,10.824100000000001,1.0734666666666666,123.33663333333334,98.010999999999981,18247.066666666666,10381.033333333333,11190.366666666667,null,null,null,null,null,34.119999999999997,{"$f":"AVERAGE(Monthly!GE539:GE541)","v":31.52},{"$f":"AVERAGE(Monthly!GF539:GF541)","v":1.6294999999999999},{"$f":"AVERAGE(Monthly!GG539:GG541)","v":1.6166666666666665},{"$f":"AVERAGE(Monthly!GH539:GH541)","v":0},"--",{"$f":"AVERAGE(Monthly!GJ539:GJ541)","v":5.9413333333333327},{"$f":"AVERAGE(Monthly!GK539:GK541)","v":4224.666666666667},"--"]
["03'Q2",11370.653,13152.089,13152.635,8809.5,904.36666666666679,1980.3,5942.333333333333,1514.3209999999999,1095.0169999999998,720.99599999999998,-0.19800000000000001,1805.9290000000001,1156.2249999999999,-649.70400000000018,2771.221,-401.81,null,null,null,null,null,73,75.399999999999991,925.57076666666671,1.33,692.00400000000002,801.88499999999999,18.5,-21.8,1.33,1.33,0.88,13779,1.7116366197568008E-2,88.1,92.2,93.8,93.424566666666678,93.532533333333333,1145762.6666666667,1.3666666666666665,48.033333333333331,49.5,45,43.266666666666659,52.366666666666667,54.300000000000004,43.6,51.4,57.166666666666664,51.833333333333336,50.1,54.833333333333336,50059.333333333336,83.102999999999994,97.971999999999994,81.498000000000005,88.293000000000006,95.531000000000006,92.304000000000002,341.30099999999999,1.33,null,891700,805019,null,null,null,null,null,609.81579999999997,12.27191,17.03735,6321.99,1753.6666666666667,1837.6666666666667,140.10666666666665,16.423666666666666,8.1393503205051694,12.432683653838501,"--","--","--","--","--","--",1094.3333333333333,9425.3000000000011,411.66666666666669,1426,9636.6666666666679,2960.7666666666664,2024.9568999999999,290351.66666666669,762.75733333333335,89.266666666666666,82.7,null,null,null,null,null,183.06666666666669,192.79999999999998,null,null,null,null,null,98.5,33.666666666666671,66.433333333333337,10.199999999999999,6.1333333333333329,14553,null,-236.33333333333394,null,130192.66666666667,null,-234.33333333332848,null,0,10.533333333333333,{"$f":"AVERAGE(Monthly!DV542:DV544)","v":1319.1},{"$f":"AVERAGE(Monthly!DW542:DW544)","v":1319.4333333333334},{"$f":"AVERAGE(Monthly!DX542:DX544)","v":930.86666666666667},{"$f":"AVERAGE(Monthly!DY542:DY544)","v":228.33333333333334},{"$f":"AVERAGE(Monthly!DZ542:DZ544)","v":702.5333333333333},{"$f":"AVERAGE(Monthly!EA542:EA544)","v":496.13333333333338},{"$f":"AVERAGE(Monthly!EB542:EB544)","v":206.4},{"$f":"AVERAGE(Monthly!EC542:EC544)","v":388.56666666666661},null,null,null,null,null,93.217116690440633,95.123151374473466,95.812823602124013,null,null,null,null,null,137.16666666666666,150.03333333333333,139.19999999999999,null,null,null,null,null,4.2399999999999993,1.2466666666666668,5.31,6.4733333333333336,116.3333333333334,5.5066666666666668,1.04,1.1533333333333333,1.4233333333333331,2.5733333333333337,3.6199999999999997,2.4666666666666663,null,null,null,null,null,1.3982333333333334,8.2770666666666664,10.4481,1.1364000000000001,119.113,93.432066666666671,18565.533333333336,11844.633333333331,11356.433333333334,null,null,null,null,null,29.036666666666665,{"$f":"AVERAGE(Monthly!GE542:GE544)","v":26.169999999999998},{"$f":"AVERAGE(Monthly!GF542:GF544)","v":1.5683833333333332},{"$f":"AVERAGE(Monthly!GG542:GG544)","v":1.4693333333333332},{"$f":"AVERAGE(Monthly!GH542:GH544)","v":0},"--",{"$f":"AVERAGE(Monthly!GJ542:GJ544)","v":5.7363333333333335},{"$f":"AVERAGE(Monthly!GK542:GK544)","v":3810},"--"]
["03'Q3",11625.137000000001,13372.357,13364.627,8939.4,944.70000000000016,2016.9666666666665,5986.8666666666659,1544.672,1127.153,762.34799999999996,7.5759999999999996,1829.1110000000001,1187.0329999999999,-642.0780000000002,2771.2379999999998,-472.46300000000002,null,null,null,null,null,73.5,75.899999999999991,910.31063333333339,1.27,733.41800000000001,829.13900000000001,7,-12.3,1.25,1.27,0.86,14787,1.786501745182776E-2,89.4,93.2,94.7,93.992566666666676,94.170666666666662,1136378.6666666667,1.32,52.199999999999996,51.666666666666664,43.333333333333336,46.633333333333333,55.1,57.166666666666664,44.266666666666673,59.566666666666663,54,57.833333333333336,52.633333333333333,63.866666666666667,50566.666666666664,85.388999999999996,97.179000000000002,82.716999999999999,90.215000000000003,96.244,91.688999999999993,373.27300000000002,1.27,null,916449,827707,null,null,null,null,null,617.74543333333338,12.13095,16.812999999999999,6460.53,1889.6666666666667,1937.3333333333333,143.64333333333335,17.217666666666666,8.3499802072069294,12.643313540540262,"--","--","--","--","--","--",1168.3333333333333,9551.1999999999989,437.86666666666662,1524.6666666666667,9794.6333333333332,3101,2048.7598333333331,291071,765.58500000000004,89.3,78.566666666666663,null,null,null,null,null,184.43333333333331,193.56666666666669,null,null,null,null,null,98.466666666666654,33.633333333333333,66.13333333333334,10.266666666666666,6.1333333333333329,14375,null,-178,null,130226.33333333333,null,33.666666666656965,null,0,10.199999999999999,{"$f":"AVERAGE(Monthly!DV545:DV547)","v":1325.0333333333335},{"$f":"AVERAGE(Monthly!DW545:DW547)","v":1342.9333333333334},{"$f":"AVERAGE(Monthly!DX545:DX547)","v":938.03333333333342},{"$f":"AVERAGE(Monthly!DY545:DY547)","v":232.89999999999998},{"$f":"AVERAGE(Monthly!DZ545:DZ547)","v":705.13333333333321},{"$f":"AVERAGE(Monthly!EA545:EA547)","v":494.39999999999992},{"$f":"AVERAGE(Monthly!EB545:EB547)","v":210.73333333333335},{"$f":"AVERAGE(Monthly!EC545:EC547)","v":404.90000000000003},null,null,null,null,null,95.800026651006831,96.782450678962391,96.944072664777352,null,null,null,null,null,138.06666666666666,150.4,139.56666666666669,null,null,null,null,null,4,1.0166666666666666,5.6966666666666663,6.8066666666666658,110.99999999999994,6.0133333333333328,0.93,1.2233333333333334,1.68,3.14,4.2333333333333334,3.01,null,null,null,null,null,1.3806,8.2771666666666661,10.721333333333334,1.1262333333333332,119.01436666666666,93.251866666666672,18008.166666666668,13983.666666666666,11448.199999999999,null,null,null,null,null,30.213333333333335,{"$f":"AVERAGE(Monthly!GE545:GE547)","v":28.45},{"$f":"AVERAGE(Monthly!GF545:GF547)","v":1.6586999999999998},{"$f":"AVERAGE(Monthly!GG545:GG547)","v":1.4630000000000001},{"$f":"AVERAGE(Monthly!GH545:GH547)","v":0},"--",{"$f":"AVERAGE(Monthly!GJ545:GJ547)","v":4.8929999999999998},{"$f":"AVERAGE(Monthly!GK545:GK547)","v":3613.6666666666665},"--"]
["03'Q4",11816.826999999999,13528.71,13483.228999999999,9008.8000000000011,956.80000000000007,2030.9666666666665,6028.9666666666672,1566.7760000000001,1148.7360000000001,785.00099999999998,46.557000000000002,1894.6,1239.2360000000001,-655.36399999999981,2786.3229999999999,-403.84199999999998,null,null,null,null,null,74.5,76.7,884.07566666666662,1.23,787.36699999999996,862.774,5.5,-3.9,1.2,1.23,0.88,15585,1.8762008407691159E-2,90.5,93.8,95.2,94.940366666666662,95.306533333333334,1145281.3333333333,1.3133333333333332,57.9,57.833333333333336,39.166666666666664,51.033333333333331,58.633333333333326,59.466666666666661,47.06666666666667,68.266666666666666,62.833333333333336,66.466666666666654,56.766666666666673,61.833333333333336,52096.666666666664,85.965000000000003,98.305999999999997,83.837999999999994,91.090999999999994,97.165999999999997,92.037999999999997,394.70600000000002,1.23,null,920737,830668,null,null,null,null,null,643.61436666666668,12.19655,16.87763,6600,2035.6666666666667,1972.3333333333333,148.85666666666665,16.777333333333335,7.8351735936186486,11.918506926951983,"--","--","--","--","--","--",1122,9690.2666666666664,408.7,1657.3333333333333,9834.0333333333328,3148.1,2069.7519666666667,291796.33333333331,766.26713333333328,91.966666666666654,89.666666666666671,null,null,null,null,null,185.13333333333333,194.06666666666669,null,null,null,null,null,98.933333333333337,33.699999999999996,66.033333333333331,10,5.833333333333333,14316.666666666666,null,-58.33333333333394,null,130533.33333333333,null,307,null,0,10.366666666666667,{"$f":"AVERAGE(Monthly!DV548:DV550)","v":1331.6666666666667},{"$f":"AVERAGE(Monthly!DW548:DW550)","v":1341.6666666666667},{"$f":"AVERAGE(Monthly!DX548:DX550)","v":946.13333333333333},{"$f":"AVERAGE(Monthly!DY548:DY550)","v":232.93333333333331},{"$f":"AVERAGE(Monthly!DZ548:DZ550)","v":713.19999999999993},{"$f":"AVERAGE(Monthly!EA548:EA550)","v":499.16666666666669},{"$f":"AVERAGE(Monthly!EB548:EB550)","v":214.0333333333333},{"$f":"AVERAGE(Monthly!EC548:EC550)","v":395.5333333333333},null,null,null,null,null,97.488779588059558,97.812973122041825,97.863325891135318,null,null,null,null,null,139.23333333333335,151.03333333333333,139.96666666666667,null,null,null,null,null,4,0.99666666666666659,5.6566666666666672,6.663333333333334,100.66666666666669,5.919999999999999,0.91666666666666663,1.3,1.8633333333333333,3.25,4.2866666666666662,2.9866666666666664,null,null,null,null,null,1.3159666666666665,8.2768999999999995,11.1935,1.1907333333333334,115.57946666666665,87.954266666666669,19044.133333333331,14602.666666666666,12025.033333333333,null,null,null,null,null,31.189999999999998,{"$f":"AVERAGE(Monthly!GE548:GE550)","v":29.39},{"$f":"AVERAGE(Monthly!GF548:GF550)","v":1.4530333333333332},{"$f":"AVERAGE(Monthly!GG548:GG550)","v":1.4843333333333335},{"$f":"AVERAGE(Monthly!GH548:GH550)","v":0},"--",{"$f":"AVERAGE(Monthly!GJ548:GJ550)","v":5.4296666666666669},{"$f":"AVERAGE(Monthly!GK548:GK550)","v":3897.3333333333335},"--"]
["04'Q1",11988.403,13606.509,13551.101000000001,9096.4333333333325,972.69999999999993,2046.2666666666664,6084,1549.373,1140.1100000000001,794.18299999999999,56.399000000000001,1952.748,1276.616,-676.13200000000006,2793.9349999999999,-441.04,null,null,null,null,null,75,77.266666666666666,873.50596666666661,0.64,901.86699999999996,961.08199999999999,5.4,21.8,1.0900000000000001,0.64,0.71,16719,1.9760496027571794E-2,92.9,94.9,95.7,95.573333333333338,95.873033333333339,1158729.3333333333,1.3,60.43333333333333,62,39.333333333333336,55.800000000000004,57.5,58.733333333333327,48.300000000000004,67.233333333333334,81,67.233333333333334,63.70000000000001,64.166666666666671,52264,86.593000000000004,95.444999999999993,83.728999999999999,91.075999999999993,96.224999999999994,91.933000000000007,463.71300000000002,0.64,null,937587,846082,null,null,null,null,null,671.10283333333336,12.167450000000001,16.82544,6785.77,1918.3333333333333,1994.6666666666667,154.69999999999999,16.591999999999999,7.518272084472664,11.508272084472665,"--","--","--","--","--","--",1200,9808.3666666666668,396.83333333333331,1557.6666666666667,9905.7333333333318,3222.9,2097.7678999999998,292373.66666666669,773.70910000000003,98,91.566666666666663,null,null,null,null,null,186.70000000000002,195,null,null,null,null,null,99.3,33.733333333333334,66.033333333333331,9.8666666666666671,5.7,14285.333333333334,null,-31.333333333332121,null,130920.33333333333,null,387,null,0,10.333333333333332,{"$f":"AVERAGE(Monthly!DV551:DV553)","v":1338.2666666666667},{"$f":"AVERAGE(Monthly!DW551:DW553)","v":1309.1666666666667},{"$f":"AVERAGE(Monthly!DX551:DX553)","v":929.9666666666667},{"$f":"AVERAGE(Monthly!DY551:DY553)","v":225.43333333333331},{"$f":"AVERAGE(Monthly!DZ551:DZ553)","v":704.5333333333333},{"$f":"AVERAGE(Monthly!EA551:EA553)","v":487.0333333333333},{"$f":"AVERAGE(Monthly!EB551:EB553)","v":217.5},{"$f":"AVERAGE(Monthly!EC551:EC553)","v":379.20000000000005},null,null,null,null,null,98.017429283878258,98.562022434938086,98.714207700302566,null,null,null,null,null,142.20000000000002,151.50000000000003,140.16666666666666,null,null,null,null,null,4,1.0033333333333332,5.4566666666666661,6.2733333333333334,81.666666666666728,5.6099999999999994,0.91666666666666663,1.2233333333333334,1.6933333333333334,2.9933333333333336,4.0200000000000005,2.7966666666666669,null,null,null,null,null,1.3181,8.2770666666666664,10.990399999999999,1.2512999999999999,113.3415,85.414466666666669,20255.199999999997,13052.066666666666,12167.9,null,null,null,null,null,35.256666666666668,{"$f":"AVERAGE(Monthly!GE551:GE553)","v":31.923333333333336},{"$f":"AVERAGE(Monthly!GF551:GF553)","v":1.6940833333333334},{"$f":"AVERAGE(Monthly!GG551:GG553)","v":1.5873333333333335},{"$f":"AVERAGE(Monthly!GH551:GH553)","v":0},"--",{"$f":"AVERAGE(Monthly!GJ551:GJ553)","v":5.7256666666666662},{"$f":"AVERAGE(Monthly!GK551:GK553)","v":4127.666666666667},"--"]
["04'Q2",12181.397999999999,13706.246999999999,13624.289000000001,9155.4666666666672,982.16666666666663,2052.6333333333332,6126.7666666666664,1583.8219999999999,1172.242,819.48199999999997,81.882000000000005,2033.04,1293.076,-739.96399999999994,2809.9229999999998,-402.18200000000002,null,null,null,null,null,75.599999999999994,77.733333333333334,865.57439999999997,0.55000000000000004,939.71,968.59500000000003,-4,37.5,0.96,0.55000000000000004,0.66,17510,2.04707453058161E-2,94.4,95.8,96.4,96.123766666666668,96.63266666666668,1184751,1.3,60.833333333333336,62.666666666666664,38.833333333333336,58.900000000000006,59.066666666666663,58.333333333333336,48.433333333333337,64.166666666666671,85,65.199999999999989,67.36666666666666,61.933333333333337,52494.666666666664,88.072000000000003,95.981999999999999,85.32,91.926000000000002,97.296999999999997,92.813999999999993,513.27200000000005,0.55000000000000004,null,947464,855367,null,null,null,null,null,676.15773333333334,12.10657,16.744039999999998,6916.89,1937.3333333333333,2080,161.80333333333334,16.670999999999996,8.3860008993731228,12.306000899373123,"--","--","--","--","--","--",1202.3333333333333,9972.4,431.13333333333338,1608,10003.300000000001,3358.9666666666667,2120.5149333333334,292999.66666666669,777.79156666666677,93.333333333333329,96.3,null,null,null,null,null,188.16666666666666,196.23333333333335,null,null,null,null,null,99.966666666666654,33.699999999999996,66,9.5666666666666664,5.5999999999999988,14329.666666666666,null,44.333333333332121,null,131638.33333333334,null,718.00000000001455,null,0,10.133333333333333,{"$f":"AVERAGE(Monthly!DV554:DV556)","v":1346.6666666666667},{"$f":"AVERAGE(Monthly!DW554:DW556)","v":1346.6333333333334},{"$f":"AVERAGE(Monthly!DX554:DX556)","v":942.33333333333337},{"$f":"AVERAGE(Monthly!DY554:DY556)","v":229.1},{"$f":"AVERAGE(Monthly!DZ554:DZ556)","v":713.23333333333323},{"$f":"AVERAGE(Monthly!EA554:EA556)","v":491.4666666666667},{"$f":"AVERAGE(Monthly!EB554:EB556)","v":221.76666666666668},{"$f":"AVERAGE(Monthly!EC554:EC556)","v":404.3},null,null,null,null,null,99.427323456766175,99.399351900353352,99.473701320101142,null,null,null,null,null,146.26666666666668,152.33333333333334,141.06666666666669,null,null,null,null,null,4.003333333333333,1.01,5.9266666666666667,6.663333333333334,73.666666666666728,6.13,1.0766666666666667,1.7766666666666666,2.4533333333333331,3.7233333333333332,4.6000000000000005,2.8233333333333341,null,null,null,null,null,1.3595666666666668,8.2768999999999995,11.3942,1.2045000000000001,115.92649999999999,88.126333333333335,21999.833333333332,15566.566666666666,13158.533333333333,null,null,null,null,null,38.330000000000005,{"$f":"AVERAGE(Monthly!GE554:GE556)","v":35.446666666666665},{"$f":"AVERAGE(Monthly!GF554:GF556)","v":1.9575500000000001},{"$f":"AVERAGE(Monthly!GG554:GG556)","v":1.7163333333333333},{"$f":"AVERAGE(Monthly!GH554:GH556)","v":0},"--",{"$f":"AVERAGE(Monthly!GJ554:GJ556)","v":6.1656666666666666},{"$f":"AVERAGE(Monthly!GK554:GK556)","v":4002},"--"]
["04'Q3",12367.744000000001,13830.828,13759.628000000001,9243.0333333333328,1001.3333333333334,2068.5,6177.0666666666666,1626.857,1208.96,825.26099999999997,71.081000000000003,2053.5749999999998,1300.5530000000001,-753.02199999999971,2820.6640000000002,-373.11700000000002,null,null,null,null,null,76.3,78.166666666666671,882.58750000000009,0.47,978.78800000000001,1005.251,-6.1,38.9,0.91,0.47,0.6,18494,2.1295975366956578E-2,95.4,96.7,97.2,96.667933333333337,97.546866666666645,1213778,1.3066666666666666,58.6,56,41.5,57.266666666666673,55.333333333333336,58.433333333333337,51.5,60.866666666666674,78.166666666666671,60.966666666666661,62.366666666666667,60.966666666666669,53988.666666666664,89.201999999999998,97.150999999999996,86.805000000000007,92.25,98.373999999999995,94.097999999999999,534.61900000000003,0.47,null,962084,868427,null,null,null,null,null,682.47550000000001,12.22499,16.870519999999999,7088.03,1977,2069.6666666666665,168.03666666666666,17.006333333333334,8.1087229620693027,11.912056295402635,"--","--","--","--","--","--",1159,10111.433333333332,394.20000000000005,1640.3333333333333,10056.066666666666,3429.0666666666671,2146.8921333333333,293717.66666666669,788.9115333333333,95.600000000000009,100.36666666666667,null,null,null,null,null,189.36666666666665,197.06666666666669,null,null,null,null,null,100.7,33.766666666666666,65.966666666666654,9.4333333333333318,5.4333333333333336,14335.333333333334,null,5.6666666666678793,null,131970.33333333334,null,332,null,0,9.2333333333333343,{"$f":"AVERAGE(Monthly!DV557:DV559)","v":1358.2666666666667},{"$f":"AVERAGE(Monthly!DW557:DW559)","v":1378.9666666666665},{"$f":"AVERAGE(Monthly!DX557:DX559)","v":960.26666666666677},{"$f":"AVERAGE(Monthly!DY557:DY559)","v":232.33333333333334},{"$f":"AVERAGE(Monthly!DZ557:DZ559)","v":727.93333333333339},{"$f":"AVERAGE(Monthly!EA557:EA559)","v":504.06666666666661},{"$f":"AVERAGE(Monthly!EB557:EB559)","v":223.86666666666667},{"$f":"AVERAGE(Monthly!EC557:EC559)","v":418.7},null,null,null,null,null,100.70174203544164,100.52898851759193,100.43018242830213,null,null,null,null,null,147.69999999999999,152.86666666666665,141.79999999999998,null,null,null,null,null,4.42,1.4333333333333333,5.6433333333333335,6.45,80.666666666666657,5.8933333333333335,1.4866666666666666,2.08,2.56,3.5066666666666664,4.3033333333333337,2.2233333333333336,null,null,null,null,null,1.3077666666666667,8.2767333333333326,11.450033333333336,1.2226999999999999,114.97996666666666,86.58120000000001,21160.966666666667,18005.633333333335,13004.233333333335,null,null,null,null,null,43.859999999999992,{"$f":"AVERAGE(Monthly!GE557:GE559)","v":41.38666666666667},{"$f":"AVERAGE(Monthly!GF557:GF559)","v":1.92655},{"$f":"AVERAGE(Monthly!GG557:GG559)","v":1.8296666666666666},{"$f":"AVERAGE(Monthly!GH557:GH559)","v":0},"--",{"$f":"AVERAGE(Monthly!GJ557:GJ559)","v":5.5846666666666671},{"$f":"AVERAGE(Monthly!GK557:GK559)","v":3946.3333333333335},"--"]
["04'Q4",12562.163,13950.376,13873.947,9337.8333333333339,1015.4666666666666,2087.2000000000003,6238.4333333333334,1661.4059999999999,1243.664,836.66099999999994,76.227999999999994,2101.9989999999998,1332.0740000000001,-769.92499999999973,2808.2289999999998,-380.53800000000001,null,null,null,null,null,77.3,79.233333333333334,897.7266666666668,0.49,973.69899999999996,974.07600000000002,-3.8,25.5,0.86,0.49,0.64,19644,2.2047162791428498E-2,96.5,97.3,97.7,98.017533333333333,99.025866666666673,1235038.6666666667,1.29,56.566666666666663,50.166666666666664,43.666666666666664,55.4,56.766666666666673,59.6,50.6,61.6,74.833333333333329,58.166666666666664,57.1,62.933333333333337,55170,91.052000000000007,95.718999999999994,87.191999999999993,92.554000000000002,97.745999999999995,94.206999999999994,541.10699999999997,0.49,null,986394,890999,null,null,null,null,null,686.41853333333336,12.22678,16.832820000000002,7191.12,1965.3333333333333,2086,173.15,17.198333333333334,8.8182845628308169,12.621617896164148,"--","--","--","--","--","--",1242,10323.200000000001,419.36666666666673,1610.6666666666667,10181.566666666668,3495.8333333333335,2184.2373000000002,294463.33333333331,797.81123333333335,93.866666666666674,96.066666666666663,null,null,null,null,null,191.4,198.26666666666668,null,null,null,null,null,101.10000000000001,33.700000000000003,65.933333333333337,9.4333333333333336,5.4333333333333336,14308.666666666666,null,-26.666666666667879,null,132551,null,580.66666666665697,null,0,9.5666666666666664,{"$f":"AVERAGE(Monthly!DV560:DV562)","v":1362.9333333333332},{"$f":"AVERAGE(Monthly!DW560:DW562)","v":1372.1333333333332},{"$f":"AVERAGE(Monthly!DX560:DX562)","v":966.30000000000007},{"$f":"AVERAGE(Monthly!DY560:DY562)","v":231.20000000000002},{"$f":"AVERAGE(Monthly!DZ560:DZ562)","v":735.1},{"$f":"AVERAGE(Monthly!EA560:EA562)","v":510.20000000000005},{"$f":"AVERAGE(Monthly!EB560:EB562)","v":224.9},{"$f":"AVERAGE(Monthly!EC560:EC562)","v":405.83333333333331},null,null,null,null,null,101.85350522391391,101.50963714711665,101.3819085512942,null,null,null,null,null,150.53333333333333,154.1,142.9,null,null,null,null,null,4.9433333333333334,1.95,5.4866666666666655,6.1866666666666674,70.000000000000199,5.7333333333333334,2.0066666666666664,2.4666666666666668,2.813333333333333,3.4933333333333336,4.1733333333333329,1.7066666666666661,null,null,null,null,null,1.2208666666666665,8.2765000000000004,11.3253,1.2969999999999999,110.77353333333333,81.913533333333334,22037.3,18936.399999999998,13636.533333333333,null,null,null,null,null,48.306666666666672,{"$f":"AVERAGE(Monthly!GE560:GE562)","v":44.163333333333334},{"$f":"AVERAGE(Monthly!GF560:GF562)","v":1.8559999999999999},{"$f":"AVERAGE(Monthly!GG560:GG562)","v":2.0966666666666662},{"$f":"AVERAGE(Monthly!GH560:GH562)","v":0},"--",{"$f":"AVERAGE(Monthly!GJ560:GJ562)","v":7.2689999999999992},{"$f":"AVERAGE(Monthly!GK560:GK562)","v":4140},"--"]
["05'Q1",12813.728999999999,14099.081,13988.771000000001,9409.1999999999989,1026.2666666666667,2114.0333333333333,6271.4666666666672,1681.9390000000001,1258.8820000000001,856.40700000000004,111.3,2126.7950000000001,1352.6479999999999,-774.14700000000016,2814.0909999999999,-312.92099999999999,null,null,null,null,null,78.3,80.166666666666671,933.13383333333331,0.22,1185.827,1022.671,-2,29.6,0.8,0.22,0.52,20816,2.3167810811051456E-2,98,98.2,98.3,99.398066666666679,100.661,1261129.6666666667,1.2933333333333332,55.833333333333336,52.333333333333336,44.333333333333336,55.699999999999996,56.033333333333331,60.233333333333341,53.166666666666664,57.166666666666664,69.166666666666671,58.333333333333336,54.9,61.9,57548.666666666664,92.896000000000001,94.126999999999995,87.858000000000004,93.572000000000003,98.004999999999995,93.894000000000005,673.327,0.22,null,995230,898488,null,null,null,null,null,693.05663333333325,12.528130000000001,17.21762,7300.77,2071.6666666666665,2105,180.34333333333333,16.567000000000004,8.334913788679172,12.044913788679173,{"$f":"AVERAGE(Monthly!CD563:CD565)","v":444},{"$f":"AVERAGE(Monthly!CE563:CE565)","v":1283.3333333333333},{"$f":"AVERAGE(Monthly!CF563:CF565)","v":4.2666666666666666},"--","--","--",1283.3333333333333,10360.033333333335,275.2,1704.6666666666667,10083.6,3509.7000000000003,2209.5118333333335,295102,804.46103333333338,94.066666666666663,104.16666666666667,null,null,null,null,null,192.36666666666667,199.5,null,null,null,null,null,101.7,33.733333333333334,65.86666666666666,9.2333333333333343,5.3,14266.333333333334,null,-42.333333333332121,null,132999.33333333334,null,448.33333333334303,null,0,9.3000000000000007,{"$f":"AVERAGE(Monthly!DV563:DV565)","v":1379.9333333333332},{"$f":"AVERAGE(Monthly!DW563:DW565)","v":1352.1666666666665},{"$f":"AVERAGE(Monthly!DX563:DX565)","v":960.23333333333323},{"$f":"AVERAGE(Monthly!DY563:DY565)","v":224.5},{"$f":"AVERAGE(Monthly!DZ563:DZ565)","v":735.73333333333323},{"$f":"AVERAGE(Monthly!EA563:EA565)","v":513.23333333333335},{"$f":"AVERAGE(Monthly!EB563:EB565)","v":222.5},{"$f":"AVERAGE(Monthly!EC563:EC565)","v":391.93333333333339},null,null,null,null,null,103.51487999837157,102.87583097542601,102.51258107717933,null,null,null,null,null,152.06666666666666,155.43333333333337,143.83333333333334,null,null,null,null,null,5.44,2.4699999999999998,5.32,5.9666666666666659,64.666666666666558,5.7566666666666668,2.5366666666666666,3.063333333333333,3.4433333333333334,3.8833333333333333,4.2966666666666669,1.2333333333333338,null,null,null,null,null,1.2269666666666668,8.2765000000000004,11.185066666666666,1.3107,109.51106666666665,81.372166666666672,22450.5,17002.766666666666,12931.800000000001,null,null,null,null,null,49.706666666666671,{"$f":"AVERAGE(Monthly!GE563:GE565)","v":47.696666666666665},{"$f":"AVERAGE(Monthly!GF563:GF565)","v":1.98245},{"$f":"AVERAGE(Monthly!GG563:GG565)","v":2.0666666666666669},{"$f":"AVERAGE(Monthly!GH563:GH565)","v":0},"--",{"$f":"AVERAGE(Monthly!GJ563:GJ565)","v":6.4779999999999989},{"$f":"AVERAGE(Monthly!GK563:GK565)","v":4303.666666666667},"--"]
["05'Q2",12974.083000000001,14172.695,14138.457,9511.4333333333325,1055.3666666666666,2123.1999999999998,6331.8,1706.1089999999999,1285.2109999999998,872.29399999999998,33.027999999999999,2151.1770000000001,1377.6369999999999,-773.54000000000019,2818.942,-310.02,null,null,null,null,null,78.3,80.266666666666666,967.50969999999995,0.21,1206.249,1050.3520000000001,0,37,0.78,0.21,0.51,22231,2.4247573715634456E-2,98.8,98.8,98.8,99.896933333333337,101.2557,1275600.6666666667,1.2833333333333334,51.800000000000004,51.666666666666664,44.333333333333336,51.133333333333333,54.5,54.933333333333337,48.333333333333336,53.633333333333326,59.833333333333336,54.666666666666664,51.199999999999996,58.933333333333337,57909.666666666664,94.183999999999997,93.866,88.343999999999994,93.480999999999995,97.866,94.504999999999995,723.375,0.21,null,1015412,916834,null,null,null,null,null,692.11446666666677,12.54092,17.22832,7482.21,2051.3333333333335,2137.6666666666665,187.53,17.39,8.0240359820511991,11.594035982051201,{"$f":"AVERAGE(Monthly!CD566:CD568)","v":450},{"$f":"AVERAGE(Monthly!CE566:CE568)","v":1273.3333333333333},{"$f":"AVERAGE(Monthly!CF566:CF568)","v":4.2666666666666666},"--","--","--",1273.3333333333333,10519.566666666668,229.36666666666667,1697,10163.299999999999,3509.8666666666668,2237.6801,295710,811.31723333333332,90.2,102.26666666666667,null,null,null,null,null,193.66666666666666,200.43333333333331,null,null,null,null,null,102.46666666666665,33.733333333333334,66.099999999999994,8.9333333333333336,5.1000000000000005,14244.333333333334,null,-22,null,133732.66666666666,null,733.33333333331393,null,0,9.0333333333333332,{"$f":"AVERAGE(Monthly!DV566:DV568)","v":1396.3},{"$f":"AVERAGE(Monthly!DW566:DW568)","v":1395.6333333333332},{"$f":"AVERAGE(Monthly!DX566:DX568)","v":978.76666666666677},{"$f":"AVERAGE(Monthly!DY566:DY568)","v":232.5},{"$f":"AVERAGE(Monthly!DZ566:DZ568)","v":746.26666666666677},{"$f":"AVERAGE(Monthly!EA566:EA568)","v":521.73333333333335},{"$f":"AVERAGE(Monthly!EB566:EB568)","v":224.5333333333333},{"$f":"AVERAGE(Monthly!EC566:EC568)","v":416.86666666666662},null,null,null,null,null,104.5980890632113,104.20143762742202,103.60541534152212,null,null,null,null,null,154.53333333333333,156.19999999999999,144.66666666666666,null,null,null,null,null,5.913333333333334,2.9433333333333334,5.1466666666666674,5.9733333333333327,82.666666666666529,5.72,2.8633333333333333,3.3366666666666664,3.6433333333333331,3.8733333333333331,4.16,0.82333333333333369,null,null,null,null,null,1.2438666666666667,8.2765000000000004,10.9694,1.2598333333333334,110.7998,83.629566666666662,23552.633333333331,19392.8,14514.6,null,null,null,null,null,53.043333333333329,{"$f":"AVERAGE(Monthly!GE566:GE568)","v":51.626666666666665},{"$f":"AVERAGE(Monthly!GF566:GF568)","v":2.2306833333333334},{"$f":"AVERAGE(Monthly!GG566:GG568)","v":2.2603333333333331},{"$f":"AVERAGE(Monthly!GH566:GH568)","v":0},"--",{"$f":"AVERAGE(Monthly!GJ566:GJ568)","v":6.9473333333333329},{"$f":"AVERAGE(Monthly!GK566:GK568)","v":4178.333333333333},"--"]
["05'Q3",13205.445,14291.757,14271.716,9585.2333333333336,1067.3,2127.9,6388.4333333333334,1737.3820000000001,1318.7530000000002,881.88099999999997,18.198,2156.8870000000002,1379.2080000000001,-777.67900000000009,2840.97,-307.87400000000002,null,null,null,null,null,77.599999999999994,79.566666666666663,995.39919999999995,0.2,1251.723,1071.1990000000001,8.3000000000000007,35.200000000000003,0.76,0.2,0.54,23642,2.5316293040214592E-2,99.7,99.5,99.4,99.422200000000018,101.06493333333333,1276285.3333333333,1.2566666666666666,54,51.5,45.166666666666664,52.800000000000004,55.866666666666667,53.833333333333336,47.333333333333336,58.633333333333333,63,58.466666666666669,52.79999999999999,60.433333333333337,58890.333333333336,94.503,94.388999999999996,89.433999999999997,94.177999999999997,97.61,94.962999999999994,715.21699999999998,0.2,null,1033433,933865,null,null,null,null,null,703.97956666666676,12.5708,17.24916,7722.76,2100,2228.3333333333335,193.45000000000002,17.983666666666668,8.7853094008419585,12.261976067508627,{"$f":"AVERAGE(Monthly!CD569:CD571)","v":475.66666666666669},{"$f":"AVERAGE(Monthly!CE569:CE571)","v":1296},{"$f":"AVERAGE(Monthly!CF569:CF571)","v":4.4666666666666659},"--","--","--",1296,10699.033333333333,212.1,1747,10215.366666666667,3551.4666666666667,2265.3030333333331,296444.33333333331,817.4675666666667,87.5,98.866666666666674,null,null,null,null,null,196.6,201.1,null,null,null,null,null,103.16666666666667,33.733333333333334,66.13333333333334,8.9,4.9666666666666668,14201.333333333334,null,-43,null,134482,null,749.33333333334303,null,0,8.7999999999999989,{"$f":"AVERAGE(Monthly!DV569:DV571)","v":1402.8},{"$f":"AVERAGE(Monthly!DW569:DW571)","v":1421.6666666666667},{"$f":"AVERAGE(Monthly!DX569:DX571)","v":988.66666666666663},{"$f":"AVERAGE(Monthly!DY569:DY571)","v":234.36666666666667},{"$f":"AVERAGE(Monthly!DZ569:DZ571)","v":754.30000000000007},{"$f":"AVERAGE(Monthly!EA569:EA571)","v":527},{"$f":"AVERAGE(Monthly!EB569:EB571)","v":227.29999999999998},{"$f":"AVERAGE(Monthly!EC569:EC571)","v":433},null,null,null,null,null,105.638700904256,105.19700578115436,104.49076382446212,null,null,null,null,null,158.69999999999999,156.93333333333337,145.16666666666666,null,null,null,null,null,6.4266666666666667,3.4599999999999995,5.0933333333333328,5.98,88.666666666666757,5.7633333333333328,3.36,3.7866666666666666,3.9533333333333331,4.0366666666666662,4.2133333333333338,0.42666666666666719,null,null,null,null,null,1.2016333333333333,8.14,10.714799999999999,1.2190000000000001,111.12513333333334,84.63836666666667,24026.166666666668,22329.5,14041.133333333333,null,null,null,null,null,63.080000000000005,{"$f":"AVERAGE(Monthly!GE569:GE571)","v":61.47},{"$f":"AVERAGE(Monthly!GF569:GF571)","v":2.6204999999999998},{"$f":"AVERAGE(Monthly!GG569:GG571)","v":2.5640000000000001},{"$f":"AVERAGE(Monthly!GH569:GH571)","v":0},"--",{"$f":"AVERAGE(Monthly!GJ569:GJ571)","v":9.7056666666666676},{"$f":"AVERAGE(Monthly!GK569:GK571)","v":4005},"--"]
["05'Q4",13381.629000000001,14373.438,14276.42,9621.3666666666668,1038.8333333333333,2164.1999999999998,6421.9000000000005,1744.3489999999999,1322.0119999999999,879.86099999999999,94.778999999999996,2222.0030000000002,1418.1279999999999,-803.87500000000023,2830.703,-288.12400000000002,null,null,null,null,null,78.400000000000006,80,1024.3394333333333,0.26,1319.9570000000001,1117.155,10,8.9,0.75,0.26,0.56000000000000005,24360,2.5984498902378927E-2,100.3,100.2,100.1,100.3732,102.70493333333333,1301635.3333333333,1.2566666666666666,56.333333333333336,52.666666666666664,44.166666666666664,54.666666666666664,55.79999999999999,55.033333333333339,46.666666666666664,60.9,73.666666666666671,61.6,57.9,59.5,60283.666666666664,95.272000000000006,93.123999999999995,89.98,94.209000000000003,97.284000000000006,95.510999999999996,818.89700000000005,0.26,null,1039084,937482,null,null,null,null,null,704.35039999999992,12.597659999999999,17.273350000000001,7819.85,2068.6666666666665,2169.3333333333335,200.05666666666664,15.852333333333334,8.6424014855496818,12.119068152216348,{"$f":"AVERAGE(Monthly!CD572:CD574)","v":501},{"$f":"AVERAGE(Monthly!CE572:CE574)","v":1263},{"$f":"AVERAGE(Monthly!CF572:CF574)","v":4.8},"--","--","--",1263,10881.333333333334,259.66666666666669,1725.3333333333333,10299.699999999999,3591.6333333333332,2283.8108333333334,297203.33333333331,825.49306666666678,82.433333333333337,95.766666666666666,null,null,null,null,null,198.43333333333331,202.43333333333331,null,null,null,null,null,103.83333333333333,33.766666666666666,66.033333333333331,8.6666666666666661,4.9666666666666668,14190.666666666666,null,-10.666666666667879,null,134955.66666666666,null,473.66666666665697,null,0,8.6,{"$f":"AVERAGE(Monthly!DV572:DV574)","v":1412.1333333333332},{"$f":"AVERAGE(Monthly!DW572:DW574)","v":1421.0333333333335},{"$f":"AVERAGE(Monthly!DX572:DX574)","v":994.26666666666677},{"$f":"AVERAGE(Monthly!DY572:DY574)","v":232.60000000000002},{"$f":"AVERAGE(Monthly!DZ572:DZ574)","v":761.66666666666663},{"$f":"AVERAGE(Monthly!EA572:EA574)","v":531.43333333333339},{"$f":"AVERAGE(Monthly!EB572:EB574)","v":230.23333333333335},{"$f":"AVERAGE(Monthly!EC572:EC574)","v":426.76666666666665},null,null,null,null,null,105.99362424119474,105.5876794755023,105.2452036004974,null,null,null,null,null,164.29999999999998,156.80000000000001,145.06666666666666,null,null,null,null,null,6.9666666666666659,3.98,5.38,6.336666666666666,95.666666666666615,6.2233333333333336,3.8266666666666667,4.2866666666666662,4.3633333333333333,4.3900000000000006,4.4899999999999993,0.20333333333333314,null,null,null,null,null,1.1734666666666669,8.0829999999999984,10.711166666666665,1.1890666666666665,111.9029,85.838300000000004,26765.433333333331,22431.666666666668,15215.366666666669,null,null,null,null,null,60.033333333333331,{"$f":"AVERAGE(Monthly!GE572:GE574)","v":56.879999999999995},{"$f":"AVERAGE(Monthly!GF572:GF574)","v":2.2838166666666671},{"$f":"AVERAGE(Monthly!GG572:GG574)","v":2.7036666666666669},{"$f":"AVERAGE(Monthly!GH572:GH574)","v":0},"--",{"$f":"AVERAGE(Monthly!GJ572:GJ574)","v":12.857999999999999},{"$f":"AVERAGE(Monthly!GK572:GK574)","v":4052},"--"]
["06'Q1",13648.904,14546.119000000001,14468.78,9729.2333333333336,1081.3666666666666,2182.1,6464.4333333333343,1808.675,1370.8789999999999,871.65700000000004,78.616,2269.94,1470.9590000000001,-798.98099999999999,2853.4960000000001,-242.53100000000001,null,null,null,null,null,78.7,80.433333333333337,1058.7895666666666,0.17,1352.85,1166.7090000000001,0,5.3,0.71,0.17,0.35,26420,2.7417702786705425E-2,100.8,100.8,100.8,101.32396666666666,103.67123333333332,1330186.6666666667,1.2566666666666666,55.033333333333331,55.833333333333336,47.5,53.466666666666661,57.6,57.166666666666664,49.833333333333336,58.966666666666669,64.666666666666671,58.199999999999996,54.666666666666664,60.133333333333333,63732.333333333336,96.058999999999997,94.132000000000005,91.864000000000004,94.772999999999996,98.813000000000002,96.93,844.71299999999997,0.17,null,1067921,963611,null,null,null,null,null,703.59749999999997,12.58056,17.212309999999999,8006.76,2120.3333333333335,2157,205.12666666666667,16.832000000000001,8.4249869864713496,11.738320319804684,{"$f":"AVERAGE(Monthly!CD575:CD577)","v":538},{"$f":"AVERAGE(Monthly!CE575:CE577)","v":1117},{"$f":"AVERAGE(Monthly!CF575:CF577)","v":5.7666666666666657},{"$f":"AVERAGE(Monthly!CG575:CG577)","v":3016.6666666666665},{"$f":"AVERAGE(Monthly!CH575:CH577)","v":6866.666666666667},{"$f":"AVERAGE(Monthly!CI575:CI577)","v":5.8},1117,11211.366666666667,377.06666666666666,1742.6666666666667,10534.9,3620.7999999999997,2376.0854333333332,297853.66666666669,884.37013333333334,88.933333333333337,105.66666666666667,null,null,null,null,null,199.4666666666667,203.69999999999996,null,null,null,null,null,105,33.833333333333329,66.100000000000009,8.3333333333333339,4.7333333333333334,14211,null,20.33333333333394,null,135756,null,800.33333333334303,null,0,8.7999999999999989,{"$f":"AVERAGE(Monthly!DV575:DV577)","v":1420.5333333333335},{"$f":"AVERAGE(Monthly!DW575:DW577)","v":1392.2666666666667},{"$f":"AVERAGE(Monthly!DX575:DX577)","v":984.4},{"$f":"AVERAGE(Monthly!DY575:DY577)","v":228.93333333333331},{"$f":"AVERAGE(Monthly!DZ575:DZ577)","v":755.4666666666667},{"$f":"AVERAGE(Monthly!EA575:EA577)","v":529.29999999999995},{"$f":"AVERAGE(Monthly!EB575:EB577)","v":226.16666666666666},{"$f":"AVERAGE(Monthly!EC575:EC577)","v":407.86666666666673},null,null,null,null,null,107.68545719740439,106.28360503281951,105.75874406485156,null,null,null,null,null,162.76666666666668,157.96666666666667,145.93333333333334,null,null,null,null,null,7.43,4.456666666666667,5.3900000000000006,6.3066666666666675,91.6666666666667,6.2399999999999993,4.3933333333333335,4.6333333333333329,4.6000000000000005,4.5466666666666669,4.57,-6.3333333333332575E-2,null,null,null,null,null,1.1544666666666668,8.0505333333333322,10.591900000000001,1.2031333333333334,110.41013333333332,84.966533333333331,25397.866666666669,19939.733333333334,15803.800000000001,null,null,null,null,null,63.346666666666671,{"$f":"AVERAGE(Monthly!GE575:GE577)","v":61.75333333333333},{"$f":"AVERAGE(Monthly!GF575:GF577)","v":2.3785166666666666},{"$f":"AVERAGE(Monthly!GG575:GG577)","v":2.5003333333333333},{"$f":"AVERAGE(Monthly!GH575:GH577)","v":0},"--",{"$f":"AVERAGE(Monthly!GJ575:GJ577)","v":7.878333333333333},{"$f":"AVERAGE(Monthly!GK575:GK577)","v":4270.666666666667},"--"]
["06'Q2",13799.794,14589.584999999999,14506.32,9781.0666666666675,1080.1333333333334,2189.3000000000002,6511.2666666666673,1831.2629999999999,1380.3539999999998,827.827,84.438999999999993,2297.607,1498.5039999999999,-799.10300000000007,2864.1219999999998,-244.27799999999999,null,null,null,null,null,78.5,80.566666666666677,1102.3956333333333,0.21,1391.7049999999999,1174.0229999999999,4,3.5,0.7,0.21,0.37,27378,2.8300277751648471E-2,101.6,101.6,101.6,101.93016666666666,103.89209999999999,1362470.3333333333,1.2733333333333334,53.633333333333333,54.666666666666664,45.333333333333336,52.433333333333337,54.833333333333336,57.333333333333336,49.166666666666664,55.199999999999996,75,55.5,55.833333333333336,58.6,63487.333333333336,96.245999999999995,93.159000000000006,91.894000000000005,94.695999999999998,97.942999999999998,97.042000000000002,862.36400000000003,0.21,null,1071879,967411,null,null,null,null,null,716.10476666666671,12.671950000000001,17.35012,8154.9,1855,1923.3333333333333,206.31666666666669,16.363333333333333,8.5576109572753918,11.800944290608726,{"$f":"AVERAGE(Monthly!CD578:CD580)","v":565.33333333333337},{"$f":"AVERAGE(Monthly!CE578:CE580)","v":1094.3333333333333},{"$f":"AVERAGE(Monthly!CF578:CF580)","v":6.2666666666666666},{"$f":"AVERAGE(Monthly!CG578:CG580)","v":3583.3333333333335},{"$f":"AVERAGE(Monthly!CH578:CH580)","v":6580},{"$f":"AVERAGE(Monthly!CI578:CI580)","v":6.1333333333333329},1094.3333333333333,11331.1,333.33333333333331,1510.6666666666667,10550.733333333334,3616.4333333333329,2400.2184333333335,298505.33333333331,896.82716666666659,83.8,106.63333333333333,null,null,null,null,null,201.26666666666665,205.36666666666667,null,null,null,null,null,105.7,33.866666666666667,66.133333333333326,8.2333333333333325,4.6333333333333337,14214,null,3,null,136275,null,519,null,0,8.0666666666666664,{"$f":"AVERAGE(Monthly!DV578:DV580)","v":1432.3333333333333},{"$f":"AVERAGE(Monthly!DW578:DW580)","v":1431.4666666666665},{"$f":"AVERAGE(Monthly!DX578:DX580)","v":998.93333333333339},{"$f":"AVERAGE(Monthly!DY578:DY580)","v":234.53333333333333},{"$f":"AVERAGE(Monthly!DZ578:DZ580)","v":764.4},{"$f":"AVERAGE(Monthly!EA578:EA580)","v":534.9666666666667},{"$f":"AVERAGE(Monthly!EB578:EB580)","v":229.43333333333331},{"$f":"AVERAGE(Monthly!EC578:EC580)","v":432.5333333333333},null,null,null,null,null,106.95279534608197,105.7151840734919,105.69459644989783,null,null,null,null,null,165.4,158.79999999999998,146.86666666666667,null,null,null,null,null,7.8999999999999995,4.9066666666666672,5.8933333333333335,6.7366666666666672,84.333333333333371,6.5966666666666667,4.7033333333333331,5.0200000000000005,4.9933333333333332,4.99,5.07,4.9999999999999822E-2,null,null,null,null,null,1.1226,8.0105333333333331,11.1777,1.2567000000000002,108.7389,82.15743333333333,25946.666666666668,22588.799999999999,16869.066666666666,null,null,null,null,null,70.529999999999987,{"$f":"AVERAGE(Monthly!GE578:GE580)","v":69.533333333333346},{"$f":"AVERAGE(Monthly!GF578:GF580)","v":2.8946333333333336},{"$f":"AVERAGE(Monthly!GG578:GG580)","v":2.8409999999999997},{"$f":"AVERAGE(Monthly!GH578:GH580)","v":0},"--",{"$f":"AVERAGE(Monthly!GJ578:GJ580)","v":6.6736666666666666},{"$f":"AVERAGE(Monthly!GK578:GK580)","v":4079.6666666666665},"--"]
["06'Q3",13908.498,14602.633,14520.284,9838.0666666666675,1095.0666666666668,2200.2666666666664,6541.2,1853.116,1394.229,781.64599999999996,81.948999999999998,2315.2260000000001,1495.5170000000001,-819.70900000000006,2870.4259999999999,-234.01400000000001,null,null,null,null,null,78.5,80.433333333333337,1144.6237666666666,0.24,1409.0440000000001,1196.837,9.8000000000000007,0,0.74,0.24,0.39,28850,2.9666450380933677E-2,102.5,102.5,102.5,102.2756,104.29043333333334,1390123.3333333333,1.2933333333333334,52.966666666666669,49.5,46.5,51.06666666666667,54.29999999999999,55.833333333333336,48.666666666666664,55.29999999999999,70.833333333333329,56.1,53.533333333333331,55.800000000000004,65124,97.566000000000003,92.3,92.009,94.277000000000001,97.167000000000002,97.593999999999994,921.41600000000005,0.24,null,1078303,972479,null,null,null,null,null,715.14980000000003,12.772919999999999,17.505009999999999,8337.98,1702.3333333333333,1713.3333333333333,204.20333333333335,16.482333333333333,7.9811031910586907,11.224436524392026,{"$f":"AVERAGE(Monthly!CD581:CD583)","v":565.66666666666663},{"$f":"AVERAGE(Monthly!CE581:CE583)","v":1005.3333333333334},{"$f":"AVERAGE(Monthly!CF581:CF583)","v":6.8999999999999995},{"$f":"AVERAGE(Monthly!CG581:CG583)","v":3833.3333333333335},{"$f":"AVERAGE(Monthly!CH581:CH583)","v":6286.666666666667},{"$f":"AVERAGE(Monthly!CI581:CI583)","v":6.8666666666666663},1005.3333333333334,11440.933333333334,300.03333333333336,1390.6666666666667,10580.833333333334,3628.9,2415.2148333333334,299271,903.47176666666655,84.033333333333331,104.36666666666667,null,null,null,null,null,203.16666666666666,206.76666666666665,null,null,null,null,null,105.96666666666665,33.833333333333329,66.13333333333334,8.2999999999999989,4.6333333333333337,14157.333333333334,null,-56.66666666666606,null,136715,null,440,null,0,8.1333333333333329,{"$f":"AVERAGE(Monthly!DV581:DV583)","v":1443},{"$f":"AVERAGE(Monthly!DW581:DW583)","v":1462.3666666666668},{"$f":"AVERAGE(Monthly!DX581:DX583)","v":1015},{"$f":"AVERAGE(Monthly!DY581:DY583)","v":240.46666666666667},{"$f":"AVERAGE(Monthly!DZ581:DZ583)","v":774.5333333333333},{"$f":"AVERAGE(Monthly!EA581:EA583)","v":541.43333333333339},{"$f":"AVERAGE(Monthly!EB581:EB583)","v":233.1},{"$f":"AVERAGE(Monthly!EC581:EC583)","v":447.36666666666662},null,null,null,null,null,106.57004307006189,105.84936873990871,106.04637688408933,null,null,null,null,null,166.70000000000002,158.66666666666666,147,null,null,null,null,null,8.25,5.246666666666667,5.68,6.5933333333333337,91.3333333333334,6.56,4.9066666666666663,5.09,4.93,4.8433333333333328,4.8966666666666656,-0.19333333333333425,null,null,null,null,null,1.1212333333333335,7.9650999999999996,10.948433333333334,1.2737666666666667,108.1596,81.688233333333343,24730.7,26305.3,16800.233333333334,null,null,null,null,null,70.443333333333328,{"$f":"AVERAGE(Monthly!GE581:GE583)","v":69.62},{"$f":"AVERAGE(Monthly!GF581:GF583)","v":2.8767166666666668},{"$f":"AVERAGE(Monthly!GG581:GG583)","v":2.920666666666667},{"$f":"AVERAGE(Monthly!GH581:GH583)","v":0},"--",{"$f":"AVERAGE(Monthly!GJ581:GJ583)","v":6.1430000000000007},{"$f":"AVERAGE(Monthly!GK581:GK583)","v":4102},"--"]
["06'Q4",14066.37,14716.93,14673.683000000001,9938.4333333333325,1109.6000000000001,2237,6589.5,1865.16,1406.799,745.15200000000004,41.423000000000002,2321.39,1562.0989999999999,-759.29099999999994,2889.085,-187.29900000000001,null,null,null,null,null,78.400000000000006,80.133333333333326,1171.1864,0.3,1358.655,1155.0170000000001,5.8,-13,0.78,0.3,0.42,30137,3.0967422399053004E-2,103.4,103.3,103.3,102.53030000000001,104.84196666666666,1405383.6666666667,1.3033333333333335,51.033333333333331,45.333333333333336,51,49.533333333333339,56.333333333333336,56.333333333333336,47.5,52.1,49.333333333333336,52.566666666666663,53.366666666666674,57.4,66272.333333333328,99.108999999999995,92.906000000000006,93.597999999999999,94.974999999999994,99.245000000000005,98.551000000000002,861.15700000000004,0.3,null,1081876,973184,null,null,null,null,null,730.82180000000005,12.85535,17.646059999999999,8581.58,1570,1581,203.54,16.33966666666667,6.399669647521204,9.5030029808545358,{"$f":"AVERAGE(Monthly!CD584:CD586)","v":544.33333333333337},{"$f":"AVERAGE(Monthly!CE584:CE586)","v":980.66666666666663},{"$f":"AVERAGE(Monthly!CF584:CF586)","v":6.8},{"$f":"AVERAGE(Monthly!CG584:CG586)","v":3720},{"$f":"AVERAGE(Monthly!CH584:CH586)","v":6240},{"$f":"AVERAGE(Monthly!CI584:CI586)","v":6.6333333333333329},980.66666666666663,11595.700000000003,318.5,1250.3333333333333,10719.133333333333,3667.2666666666664,2442.2882333333332,300089.66666666669,917.61250000000007,92.466666666666654,106.8,null,null,null,null,null,202.33333333333334,207.83333333333334,null,null,null,null,null,106.39999999999999,33.866666666666667,66.3,8.0666666666666647,4.4333333333333336,14043.666666666666,null,-113.66666666666788,null,137082.33333333334,null,367.33333333334303,null,0,7.9000000000000012,{"$f":"AVERAGE(Monthly!DV584:DV586)","v":1447},{"$f":"AVERAGE(Monthly!DW584:DW586)","v":1457.1000000000001},{"$f":"AVERAGE(Monthly!DX584:DX586)","v":1020.1},{"$f":"AVERAGE(Monthly!DY584:DY586)","v":237.86666666666667},{"$f":"AVERAGE(Monthly!DZ584:DZ586)","v":782.23333333333323},{"$f":"AVERAGE(Monthly!EA584:EA586)","v":546.56666666666672},{"$f":"AVERAGE(Monthly!EB584:EB586)","v":235.66666666666666},{"$f":"AVERAGE(Monthly!EC584:EC586)","v":437},null,null,null,null,null,106.96211873162068,106.80298213747722,107.13042971348531,null,null,null,null,null,164.13333333333333,159.46666666666667,147.83333333333334,null,null,null,null,null,8.25,5.246666666666667,5.3866666666666667,6.28,89.333333333333357,6.246666666666667,4.9033333333333333,4.9866666666666672,4.7366666666666664,4.6000000000000005,4.63,-0.35666666666666735,null,null,null,null,null,1.1392,7.8619666666666665,10.884433333333334,1.2903333333333333,107.52903333333335,81.70516666666667,24737.400000000005,27090.966666666664,16611.3,null,null,null,null,null,60.093333333333334,{"$f":"AVERAGE(Monthly!GE584:GE586)","v":59.68},{"$f":"AVERAGE(Monthly!GF584:GF586)","v":2.151616666666667},{"$f":"AVERAGE(Monthly!GG584:GG586)","v":2.5579999999999998},{"$f":"AVERAGE(Monthly!GH584:GH586)","v":0},"--",{"$f":"AVERAGE(Monthly!GJ584:GJ586)","v":7.2630000000000008},{"$f":"AVERAGE(Monthly!GK584:GK586)","v":4327.666666666667},"--"]
["07'Q1",14233.226000000001,14726.022000000001,14703.271000000001,9990.6666666666661,1122.0333333333335,2241.5666666666671,6623.833333333333,1897.1669999999999,1422.33,711.154,19.613,2358.6840000000002,1587.671,-771.01300000000015,2882.7440000000001,-213.83600000000001,null,null,null,null,null,78.8,80.333333333333329,1204.5939333333333,0.31,1270.8119999999999,1056.758,13.5,-5.3,0.82,0.31,0.47,31731,3.2181508943702898E-2,103.1,103.9,104.3,103.47753333333333,106.04633333333334,1417637,1.2966666666666669,50.70000000000001,47.333333333333336,51,50.366666666666667,54,57.833333333333336,45.5,52.5,59.166666666666664,52.699999999999996,52.366666666666674,55.699999999999996,65093,100.23699999999999,93.665000000000006,95.903000000000006,95.07,100.706,100.876,825.74800000000005,0.31,null,1095024,986001,null,null,null,null,null,736.5648666666666,12.89663,17.722149999999999,8815.44,1461.3333333333333,1606.6666666666667,203.98,16.373333333333335,6.9314077521381252,10.081407752138126,{"$f":"AVERAGE(Monthly!CD587:CD589)","v":542.33333333333337},{"$f":"AVERAGE(Monthly!CE587:CE589)","v":850.66666666666663},{"$f":"AVERAGE(Monthly!CF587:CF589)","v":7.666666666666667},{"$f":"AVERAGE(Monthly!CG587:CG589)","v":3303.3333333333335},{"$f":"AVERAGE(Monthly!CH587:CH589)","v":5663.333333333333},{"$f":"AVERAGE(Monthly!CI587:CI589)","v":7.6333333333333329},850.66666666666663,11821.5,340.40000000000003,1223,10789.5,3717.1999999999994,2470.8095666666668,300799,933.14963333333344,92.2,109.86666666666667,null,null,null,null,null,204.31700000000001,209.05100000000002,null,null,null,null,null,106.80000000000001,33.800000000000004,66.3,8.2000000000000011,4.5,13991.666666666666,null,-52,null,137628.66666666666,null,546.33333333331393,null,0,8.6333333333333329,{"$f":"AVERAGE(Monthly!DV587:DV589)","v":1452.5666666666666},{"$f":"AVERAGE(Monthly!DW587:DW589)","v":1423.7333333333333},{"$f":"AVERAGE(Monthly!DX587:DX589)","v":1004.7999999999998},{"$f":"AVERAGE(Monthly!DY587:DY589)","v":231.70000000000002},{"$f":"AVERAGE(Monthly!DZ587:DZ589)","v":773.1},{"$f":"AVERAGE(Monthly!EA587:EA589)","v":543.4666666666667},{"$f":"AVERAGE(Monthly!EB587:EB589)","v":229.63333333333333},{"$f":"AVERAGE(Monthly!EC587:EC589)","v":418.93333333333334},null,null,null,null,null,106.88136371774959,107.19827978509831,107.67513927362251,null,null,null,null,null,166.70000000000002,160.66666666666666,148.9,null,null,null,null,null,8.25,5.2566666666666668,5.3633333333333333,6.2966666666666669,93.333333333333357,6.2233333333333336,4.9833333333333343,5.01,4.7666666666666666,4.6466666666666674,4.68,{"$f":"+FI203-FF203","v":-0.33000000000000007},null,null,null,null,null,1.1718333333333331,7.758233333333334,11.021799999999999,1.3106333333333333,107.25603333333333,81.961166666666671,25343.733333333334,23800.833333333332,16235.599999999999,null,null,null,null,null,58.129999999999995,{"$f":"AVERAGE(Monthly!GE587:GE589)","v":57.763333333333343},{"$f":"AVERAGE(Monthly!GF587:GF589)","v":2.3361833333333331},{"$f":"AVERAGE(Monthly!GG587:GG589)","v":2.5466666666666664},{"$f":"AVERAGE(Monthly!GH587:GH589)","v":0},"--",{"$f":"AVERAGE(Monthly!GJ587:GJ589)","v":7.1806666666666672},{"$f":"AVERAGE(Monthly!GK587:GK589)","v":4381.666666666667},"--"]
["07'Q2",14422.313,14838.664000000001,14785.495999999999,10024.6,1138.2666666666667,2237.1333333333332,6644.8999999999987,1934.4280000000001,1433.864,682.69100000000003,49.430999999999997,2369.3760000000002,1615.6510000000001,-753.72500000000014,2907.0340000000001,-251.922,null,null,null,null,null,79.3,80.833333333333329,1244.9831999999999,0.36,1341.6980000000001,1128.79,14.5,-19.2,0.86,0.36,0.48,33493,3.3668412428753805E-2,104.2,104.8,105.1,104.73883333333333,107.69009999999999,1437367.6666666667,1.28,52.566666666666663,53.5,47.333333333333336,52,57.333333333333336,56.666666666666664,46,57.9,70.666666666666671,57.300000000000004,49.5,58.1,65043.333333333336,101.798,92.1,95.831000000000003,95.647999999999996,99.513999999999996,100.191,850.37199999999996,0.36,null,1105227,994790,null,null,null,null,null,742.44706666666673,12.985939999999999,17.86317,9159.3700000000008,1451,1456.6666666666667,200.90333333333334,16.111333333333331,7.1651918733250639,10.315191873325064,{"$f":"AVERAGE(Monthly!CD590:CD592)","v":545},{"$f":"AVERAGE(Monthly!CE590:CE592)","v":840.66666666666663},{"$f":"AVERAGE(Monthly!CF590:CF592)","v":7.8},{"$f":"AVERAGE(Monthly!CG590:CG592)","v":3843.3333333333335},{"$f":"AVERAGE(Monthly!CH590:CH592)","v":5226.666666666667},{"$f":"AVERAGE(Monthly!CI590:CI592)","v":7.6333333333333329},840.66666666666663,11949.566666666666,316.86666666666667,1152.6666666666667,10810.666666666666,3778.7666666666664,2507.6223,301492,948.64586666666662,86.899999999999991,106.7,null,null,null,null,null,206.631,210.06566666666666,null,null,null,null,null,107.43333333333334,33.866666666666667,65.966666666666669,8.2333333333333325,4.5,13928.333333333334,null,-63.333333333332121,null,137985.33333333334,null,356.66666666668607,null,0,8.1666666666666661,{"$f":"AVERAGE(Monthly!DV590:DV592)","v":1447.2666666666667},{"$f":"AVERAGE(Monthly!DW590:DW592)","v":1446},{"$f":"AVERAGE(Monthly!DX590:DX592)","v":1010.0333333333333},{"$f":"AVERAGE(Monthly!DY590:DY592)","v":236.53333333333333},{"$f":"AVERAGE(Monthly!DZ590:DZ592)","v":773.5},{"$f":"AVERAGE(Monthly!EA590:EA592)","v":545.69999999999993},{"$f":"AVERAGE(Monthly!EB590:EB592)","v":227.80000000000004},{"$f":"AVERAGE(Monthly!EC590:EC592)","v":435.9666666666667},null,null,null,null,null,107.72370178039341,107.97484054345574,108.36958853628184,null,null,null,null,null,172.83333333333334,161.36666666666665,149.36666666666667,null,null,null,null,null,8.25,5.25,5.5766666666666671,6.4933333333333332,91.6666666666666,6.3666666666666671,4.7366666666666672,4.9333333333333336,4.8066666666666666,4.7633333333333328,4.8466666666666667,-8.6666666666666892E-2,null,null,null,null,null,1.0984,7.6784333333333334,10.878433333333334,1.3484,104.7522,79.438499999999991,26947.133333333331,25534.366666666669,17417.066666666669,null,null,null,null,null,64.970000000000013,{"$f":"AVERAGE(Monthly!GE590:GE592)","v":68.583333333333329},{"$f":"AVERAGE(Monthly!GF590:GF592)","v":2.9809222222222225},{"$f":"AVERAGE(Monthly!GG590:GG592)","v":2.8126666666666664},{"$f":"AVERAGE(Monthly!GH590:GH592)","v":0},"--",{"$f":"AVERAGE(Monthly!GJ590:GJ592)","v":7.6509999999999998},{"$f":"AVERAGE(Monthly!GK590:GK592)","v":4252.666666666667},"--"]
["07'Q3",14569.674999999999,14938.467000000001,14885.864,10069.166666666668,1150.9333333333334,2240.1666666666665,6673.4333333333334,1964.431,1440.4349999999999,639.18600000000004,50.180999999999997,2368.712,1665.56,-703.15200000000004,2928.0479999999998,-286.904,null,null,null,null,null,79,80.733333333333334,1313.1007333333334,0.41,1285.345,1087.0530000000001,7.5,-11.8,1.02,0.41,0.53,34823,3.4768517732712841E-2,105,105.6,105.9,104.96656666666667,107.98206666666668,1454140.6666666667,1.2833333333333334,51.433333333333337,51.166666666666664,50,50.6,56,53.333333333333336,44.833333333333336,55.800000000000004,62.333333333333336,55.866666666666667,49.966666666666669,55.666666666666664,65569,103.91500000000001,90.414000000000001,96.198999999999998,96.792000000000002,99.253,99.387,740.64599999999996,0.41,null,1113455,1001567,null,null,null,null,null,766.2476999999999,13.08586,17.999549999999999,9405.5499999999993,1289,1314.3333333333333,194.9366666666667,15.910333333333332,7.0163884984589844,10.283055165125651,{"$f":"AVERAGE(Monthly!CD593:CD595)","v":532.33333333333337},{"$f":"AVERAGE(Monthly!CE593:CE595)","v":721},{"$f":"AVERAGE(Monthly!CF593:CF595)","v":8.9},{"$f":"AVERAGE(Monthly!CG593:CG595)","v":3940},{"$f":"AVERAGE(Monthly!CH593:CH595)","v":4840},{"$f":"AVERAGE(Monthly!CI593:CI595)","v":9.7798285070851829},721,12048.166666666666,289.3,978,10838.633333333333,3838.9666666666667,2551.1433999999999,302272.33333333331,967.34923333333336,85.733333333333348,105.66666666666667,null,null,null,null,null,207.93899999999999,211.14866666666668,null,null,null,null,null,107.43333333333334,33.799999999999997,65.933333333333337,8.4,4.666666666666667,13835.666666666666,null,{"$f":"+DL205-DL204","v":-92.666666666667879},null,138065,null,{"$f":"+DP205-DP204","v":79.666666666656965},null,0,8.7333333333333325,{"$f":"AVERAGE(Monthly!DV593:DV595)","v":1432.8333333333333},{"$f":"AVERAGE(Monthly!DW593:DW595)","v":1453.8666666666668},{"$f":"AVERAGE(Monthly!DX593:DX595)","v":1007.7666666666668},{"$f":"AVERAGE(Monthly!DY593:DY595)","v":239.06666666666669},{"$f":"AVERAGE(Monthly!DZ593:DZ595)","v":768.69999999999993},{"$f":"AVERAGE(Monthly!EA593:EA595)","v":540.13333333333333},{"$f":"AVERAGE(Monthly!EB593:EB595)","v":228.56666666666669},{"$f":"AVERAGE(Monthly!EC593:EC595)","v":446.09999999999997},null,null,null,null,null,107.87383410838459,108.31634491162923,108.83234609501307,null,null,null,null,null,173.66666666666666,162.23333333333332,149.80000000000001,null,null,null,null,null,8.1766666666666676,5.0733333333333333,5.753333333333333,6.63,{"$f":"+(FB205-FA205)*100","v":87.666666666666686},6.55,4.3033333333333337,4.5233333333333334,4.38,4.503333333333333,4.7299999999999995,0.20666666666666611,null,null,null,null,null,1.0449333333333335,7.5567000000000002,10.963433333333333,1.3754,102.88176666666668,77.119900000000015,25967.699999999997,28814.899999999998,17940.766666666666,null,null,null,null,null,75.5,{"$f":"AVERAGE(Monthly!GE593:GE595)","v":74.953333333333333},{"$f":"AVERAGE(Monthly!GF593:GF595)","v":2.8512},{"$f":"AVERAGE(Monthly!GG593:GG595)","v":2.8966666666666665},{"$f":"AVERAGE(Monthly!GH593:GH595)","v":0},"--",{"$f":"AVERAGE(Monthly!GJ593:GJ595)","v":6.2413333333333334},{"$f":"AVERAGE(Monthly!GK593:GK595)","v":4141},"--"]
["07'Q4",14685.33,14991.784,14970.13,10081.800000000001,1155.4333333333334,2238.4,6683.5666666666666,1997.566,1460.7809999999999,586.10599999999999,22.956,2339.2739999999999,1716.692,-622.58199999999988,2939.81,-309.93099999999998,null,null,null,null,null,78.7,80.8,1395.2371333333333,0.52,1313.691,1061.2449999999999,7.8,-7.7,1.34,0.52,0.61,35792,3.5257010128312977E-2,105.9,106.5,106.7,105.14093333333334,108.21409999999999,1475900.6666666667,1.2700000000000002,50.199999999999996,43.5,51.5,49.233333333333327,56,47.666666666666664,45.166666666666664,51.766666666666673,66.166666666666671,51.4,53.333333333333336,54.666666666666664,66260.333333333328,107.119,88.668000000000006,97.239000000000004,97.207999999999998,99.126000000000005,100.032,782.024,0.52,null,1128954,1015174,null,null,null,null,null,785.94726666666668,13.22221,18.138660000000002,9653.0300000000007,1166,1188.3333333333333,187.96333333333334,15.960999999999999,8.8309263615592233,12.190926361559226,{"$f":"AVERAGE(Monthly!CD596:CD658)","v":258.09523809523807},{"$f":"AVERAGE(Monthly!CE596:CE658)","v":384.33333333333331},{"$f":"AVERAGE(Monthly!CF596:CF658)","v":7.8713009697899707},{"$f":"AVERAGE(Monthly!CG596:CG658)","v":3057.6190476190477},{"$f":"AVERAGE(Monthly!CH596:CH658)","v":4319.8412698412694},{"$f":"AVERAGE(Monthly!CI596:CI658)","v":8.6133786589089372},662.33333333333337,12185,296.16666666666669,838.66666666666663,10847.733333333332,3857.8666666666668,2596.4839333333334,303049.33333333331,993.01450000000011,77.5,91.2,null,null,null,null,null,210.48966666666669,212.63499999999999,null,null,null,null,null,107.7,33.799999999999997,65.933333333333337,8.5333333333333332,4.8,13755.666666666666,null,-80,null,138309.66666666666,null,244.66666666665697,null,0,8.4666666666666668,{"$f":"AVERAGE(Monthly!DV596:DV658)","v":1316.938095238095},{"$f":"AVERAGE(Monthly!DW596:DW658)","v":1317.2857142857151},{"$f":"AVERAGE(Monthly!DX596:DX658)","v":915.62539682539648},{"$f":"AVERAGE(Monthly!DY596:DY658)","v":215.4126984126984},{"$f":"AVERAGE(Monthly!DZ596:DZ658)","v":700.21269841269827},{"$f":"AVERAGE(Monthly!EA596:EA658)","v":491.06349206349211},{"$f":"AVERAGE(Monthly!EB596:EB658)","v":209.14920634920637},{"$f":"AVERAGE(Monthly!EC596:EC658)","v":401.6603174603174},null,null,null,null,null,107.35514675056672,108.23843208594226,108.90687022086796,null,null,null,null,null,177.43333333333331,163.23333333333335,150.5,null,null,null,null,null,7.5233333333333334,4.496666666666667,5.5300000000000011,6.5100000000000007,97.999999999999957,6.2299999999999995,3.39,3.6199999999999997,3.4766666666666666,3.7866666666666666,4.26,0.64000000000000012,null,null,null,null,null,0.9815666666666667,7.430366666666667,10.849600000000001,1.4491666666666667,99.403066666666675,73.395700000000005,27427.033333333336,28997.566666666669,18644.566666666666,null,null,null,null,null,90.850000000000009,{"$f":"AVERAGE(Monthly!GE596:GE598)","v":88.56},{"$f":"AVERAGE(Monthly!GF596:GF598)","v":2.9671333333333334},{"$f":"AVERAGE(Monthly!GG596:GG598)","v":3.2706666666666671},{"$f":"AVERAGE(Monthly!GH596:GH598)","v":0},"--",{"$f":"AVERAGE(Monthly!GJ596:GJ598)","v":7.3929999999999998},{"$f":"AVERAGE(Monthly!GK596:GK598)","v":4293},"--"]
["08'Q1",14668.445,14889.45,14909.362999999999,10061,1122.5000000000002,2226.166666666667,6710.5,1998.1010000000001,1459.0950000000003,540.01199999999994,-20.213999999999999,2361.6329999999998,1737.9369999999999,-623.69599999999991,2951.9879999999998,-409.04,null,null,null,null,null,78,80.599999999999994,1453.83,0.64,1203.491,1028.1300000000001,3.8,-23.6,1.64,0.64,0.95,36025,3.5768717141679861E-2,106.4,107.2,107.6,104.70383333333332,107.48583333333333,1504913.3333333333,1.28,48.733333333333327,45.5,49.833333333333336,47.033333333333339,57,48.333333333333336,47.5,46.666666666666664,78.333333333333329,49.79999999999999,52.70000000000001,48.6,67108,109.82299999999999,86.819000000000003,98.228999999999999,96.269000000000005,99.046000000000006,102.036,687.21400000000006,0.64,null,1119670,1007165,null,null,null,null,null,798.5299,13.08328,17.96801,9900.66,1064,1025,178.67999999999998,15.114666666666666,9.137519491970794,12.637519491970792,{"$f":"AVERAGE(Monthly!CD599:CD601)","v":478},{"$f":"AVERAGE(Monthly!CE599:CE601)","v":585},{"$f":"AVERAGE(Monthly!CF599:CF601)","v":9.8333333333333339},{"$f":"AVERAGE(Monthly!CG599:CG601)","v":3426.6666666666665},{"$f":"AVERAGE(Monthly!CH599:CH601)","v":4150},{"$f":"AVERAGE(Monthly!CI599:CI601)","v":9.9081213744463721},585,12368.433333333334,399.63333333333338,741.66666666666663,10926.666666666666,3913.7000000000003,2634.1644333333334,303708,1013.8362999999999,72.899999999999991,76.533333333333331,null,null,null,null,null,212.76966666666667,214.04333333333332,null,null,null,null,null,107.53333333333335,33.733333333333334,66.099999999999994,9.1,5,13693.333333333334,null,-62.333333333332121,null,138348,null,38.333333333343035,null,0,8.7999999999999989,{"$f":"AVERAGE(Monthly!DV599:DV601)","v":1415.0333333333335},{"$f":"AVERAGE(Monthly!DW599:DW601)","v":1385.9000000000003},{"$f":"AVERAGE(Monthly!DX599:DX601)","v":982.4666666666667},{"$f":"AVERAGE(Monthly!DY599:DY601)","v":227.1},{"$f":"AVERAGE(Monthly!DZ599:DZ601)","v":755.36666666666667},{"$f":"AVERAGE(Monthly!EA599:EA601)","v":533.03333333333342},{"$f":"AVERAGE(Monthly!EB599:EB601)","v":222.33333333333334},{"$f":"AVERAGE(Monthly!EC599:EC601)","v":403.43333333333334},null,null,null,null,null,105.28770258057291,107.01776391986195,108.41512974028022,null,null,null,null,null,183.86666666666667,164.66666666666666,151.6,null,null,null,null,null,6.2133333333333338,3.1766666666666663,5.4566666666666661,6.75,129.3333333333334,5.8833333333333329,2.0433333333333334,2.1,2.0233333333333334,2.7466666666666666,3.6633333333333336,1.5633333333333335,null,null,null,null,null,1.0038,7.1590333333333334,10.802133333333332,1.5002333333333333,97.479866666666666,72.067133333333331,28275.366666666669,24243.033333333336,17478.7,null,null,null,null,null,97.953333333333333,{"$f":"AVERAGE(Monthly!GE599:GE601)","v":96.936666666666667},{"$f":"AVERAGE(Monthly!GF599:GF601)","v":3.1553166666666663},{"$f":"AVERAGE(Monthly!GG599:GG601)","v":3.5219999999999998},{"$f":"AVERAGE(Monthly!GH599:GH601)","v":0},"--",{"$f":"AVERAGE(Monthly!GJ599:GJ601)","v":8.7523333333333326},{"$f":"AVERAGE(Monthly!GK599:GK601)","v":4344.666666666667},"--"]
["08'Q2",14812.974,14963.357,14992.852000000001,10077.933333333332,1118.9666666666665,2241.7666666666669,6715.4666666666672,1986.585,1438.8530000000001,516.33600000000001,-26.402999999999999,2340.3969999999999,1790.0150000000001,-550.38199999999983,2974.9810000000002,-780.49900000000002,null,null,null,null,null,76.5,79.600000000000009,1493.1811,0.73,1229.6189999999999,1023.501,-3.7,-16.100000000000001,1.94,0.73,1.0900000000000001,36513,3.6103121264286553E-2,106.9,108,108.4,103.2355,105.40926666666667,1519247.6666666667,1.26,49.133333333333326,48.333333333333336,49,45.833333333333336,58.5,47.833333333333336,49,48.233333333333327,87.666666666666671,49.466666666666661,53.300000000000004,51.533333333333339,68398.666666666672,109.258,87.668999999999997,98.31,97.222999999999999,97.853999999999999,101.11799999999999,714.12199999999996,0.73,null,1125315,1011353,null,null,null,null,null,807.72989999999993,12.70444,17.485340000000001,10193.11,1010.6666666666666,1061,169.69666666666669,14.232333333333335,9.6427136350202236,13.376046968353556,{"$f":"AVERAGE(Monthly!CD602:CD604)","v":448},{"$f":"AVERAGE(Monthly!CE602:CE604)","v":509},{"$f":"AVERAGE(Monthly!CF602:CF604)","v":10.566666666666666},{"$f":"AVERAGE(Monthly!CG602:CG604)","v":3770},{"$f":"AVERAGE(Monthly!CH602:CH604)","v":4113.333333333333},{"$f":"AVERAGE(Monthly!CI602:CI604)","v":10.998935496171987},509,12721.200000000003,634.13333333333333,669.33333333333337,11156.1,4004.3666666666668,2658.8033,304332,1020.4025333333333,59.6,57.300000000000004,null,null,null,null,null,215.53766666666664,214.97333333333333,null,null,null,null,null,107.10000000000001,33.733333333333334,66.033333333333331,9.6666666666666661,5.333333333333333,13555.666666666666,null,-137.66666666666788,null,137880,null,-468,null,0,8.7666666666666675,{"$f":"AVERAGE(Monthly!DV602:DV604)","v":1404.3333333333333},{"$f":"AVERAGE(Monthly!DW602:DW604)","v":1402.8999999999999},{"$f":"AVERAGE(Monthly!DX602:DX604)","v":983.30000000000007},{"$f":"AVERAGE(Monthly!DY602:DY604)","v":230.20000000000002},{"$f":"AVERAGE(Monthly!DZ602:DZ604)","v":753.09999999999991},{"$f":"AVERAGE(Monthly!EA602:EA604)","v":533.03333333333342},{"$f":"AVERAGE(Monthly!EB602:EB604)","v":220.06666666666663},{"$f":"AVERAGE(Monthly!EC602:EC604)","v":419.59999999999997},null,null,null,null,null,104.76984839101182,106.36207079264106,108.0313979045772,null,null,null,null,null,196,166.23333333333335,152.93333333333334,null,null,null,null,null,5.08,2.0866666666666664,5.6000000000000005,6.9899999999999993,138.99999999999989,6.0933333333333337,1.6266666666666667,2.0733333333333333,2.4233333333333333,3.16,3.8866666666666667,1.8133333333333335,null,null,null,null,null,1.0098666666666667,6.9571666666666667,10.426533333333333,1.5623333333333331,95.827866666666679,70.834366666666654,30929.566666666666,27172.266666666663,19127.333333333336,null,null,null,null,null,123.96333333333332,{"$f":"AVERAGE(Monthly!GE602:GE604)","v":121.39666666666666},{"$f":"AVERAGE(Monthly!GF602:GF604)","v":3.7902166666666672},{"$f":"AVERAGE(Monthly!GG602:GG604)","v":4.3953333333333333},{"$f":"AVERAGE(Monthly!GH602:GH604)","v":0},"--",{"$f":"AVERAGE(Monthly!GJ602:GJ604)","v":11.484333333333334},{"$f":"AVERAGE(Monthly!GK602:GK604)","v":4197.666666666667},"--"]
["08'Q3",14842.983,14891.643,14910.653,10005.066666666666,1084.6999999999998,2212.1666666666665,6708.0666666666666,1932.9670000000001,1389.2800000000002,490.89499999999998,-20.713999999999999,2293.0360000000001,1766.117,-526.9190000000001,3016.1610000000001,-663.63400000000001,null,null,null,null,null,73.900000000000006,77.066666666666677,1518.9251333333334,0.8,1188.8230000000001,1058.7159999999999,1.9,-15.4,2.29,0.8,1.21,36282,3.6338797540555891E-2,107.5,108.6,109,99.94616666666667,101.59019999999998,1535147.6666666667,1.2866666666666666,48,40.5,51.666666666666664,47.4,54.333333333333336,46.333333333333336,45.833333333333336,45.166666666666664,73,50.133333333333333,51.4,50.833333333333336,65882.333333333328,107.184,90.512,99.153000000000006,97.468999999999994,97.2,101.72799999999999,750.79100000000005,0.8,null,1113326,998437,null,null,null,null,null,829.3959666666666,12.813599999999999,17.721530000000001,10444.299999999999,862.33333333333337,858.66666666666663,161.85333333333335,13.079000000000001,11.252949705189716,15.452949705189717,{"$f":"AVERAGE(Monthly!CD605:CD607)","v":407.66666666666669},{"$f":"AVERAGE(Monthly!CE605:CE607)","v":448.33333333333331},{"$f":"AVERAGE(Monthly!CF605:CF607)","v":10.9},{"$f":"AVERAGE(Monthly!CG605:CG607)","v":3680},{"$f":"AVERAGE(Monthly!CH605:CH607)","v":4203.333333333333},{"$f":"AVERAGE(Monthly!CI605:CI607)","v":10.50996144791111},448.33333333333331,12536.266666666668,458.26666666666671,586.33333333333337,10899.966666666667,4040.4666666666667,2660.2343000000001,305050.66666666669,1016.6680333333334,64.833333333333329,57.266666666666673,null,null,null,null,null,218.86100000000002,216.357,null,null,null,null,null,106.03333333333335,33.633333333333333,66.066666666666663,10.766666666666666,6,13354.333333333334,null,-201.33333333333212,null,137169,null,-711,null,0,9.8666666666666654,{"$f":"AVERAGE(Monthly!DV605:DV607)","v":1380.3666666666668},{"$f":"AVERAGE(Monthly!DW605:DW607)","v":1402.7},{"$f":"AVERAGE(Monthly!DX605:DX607)","v":979.5},{"$f":"AVERAGE(Monthly!DY605:DY607)","v":231.76666666666665},{"$f":"AVERAGE(Monthly!DZ605:DZ607)","v":747.73333333333323},{"$f":"AVERAGE(Monthly!EA605:EA607)","v":532},{"$f":"AVERAGE(Monthly!EB605:EB607)","v":215.73333333333332},{"$f":"AVERAGE(Monthly!EC605:EC607)","v":423.2},null,null,null,null,null,103.04949576965161,105.19622468099116,107.33419803112929,null,null,null,null,null,200.46666666666667,168.13333333333333,154.56666666666669,null,null,null,null,null,5,1.9400000000000002,5.6533333333333333,7.206666666666667,155.33333333333337,6.3166666666666664,1.4933333333333332,2.1233333333333335,2.3566666666666669,3.1066666666666669,3.8633333333333333,1.7399999999999998,null,null,null,null,null,1.0415666666666665,6.8374666666666668,10.329366666666667,1.5018666666666667,97.841866666666661,73.495133333333328,30618.799999999999,32049.899999999998,18895.666666666668,null,null,null,null,null,117.98333333333335,{"$f":"AVERAGE(Monthly!GE605:GE607)","v":114.39666666666666},{"$f":"AVERAGE(Monthly!GF605:GF607)","v":3.874133333333333},{"$f":"AVERAGE(Monthly!GG605:GG607)","v":4.343},{"$f":"AVERAGE(Monthly!GH605:GH607)","v":0},"--",{"$f":"AVERAGE(Monthly!GJ605:GJ607)","v":8.9510000000000005},{"$f":"AVERAGE(Monthly!GK605:GK607)","v":4166},"--"]
["08'Q4",14549.949000000001,14576.985000000001,14649.978999999999,9884.7333333333318,1006.7666666666668,2178.5666666666671,6700.3,1820.1279999999999,1289.809,443.56799999999998,-67.353999999999999,2199.5140000000001,1669.231,-530.28300000000013,3035.8820000000001,-682.78599999999994,null,null,null,null,null,69.8,73.633333333333326,1573.4174666666665,0.95,671.44399999999996,793.50099999999998,1.8,-7.4,2.97,0.95,1.32,33045,3.629216926021963E-2,107.9,109.1,109.5,95.719633333333334,95.614633333333344,1491309.6666666667,1.4233333333333331,36.166666666666664,26.5,55.666666666666664,32.666666666666664,39.166666666666664,39.166666666666664,40,28,26.833333333333332,30.766666666666666,49.366666666666667,38.766666666666666,58773.333333333336,103.206,96.228999999999999,100.23,96.856999999999999,100.559,103.482,459.375,0.95,null,1024851,910527,null,null,null,null,null,869.08910000000003,12.789709999999999,17.808700000000002,10804.39,663,638.66666666666663,153.53,10.353999999999999,8.469582452673114,13.276249119339779,{"$f":"AVERAGE(Monthly!CD608:CD610)","v":368.33333333333331},{"$f":"AVERAGE(Monthly!CE608:CE610)","v":386.33333333333331},{"$f":"AVERAGE(Monthly!CF608:CF610)","v":11.4},{"$f":"AVERAGE(Monthly!CG608:CG610)","v":3386.6666666666665},{"$f":"AVERAGE(Monthly!CH608:CH610)","v":3956.6666666666665},{"$f":"AVERAGE(Monthly!CI608:CI610)","v":10.285554718134847},386.33333333333331,12386.766666666665,658.56666666666672,468,10970.366666666669,4051.6666666666665,2650.8734666666664,305781.33333333331,1010.4588333333332,57.666666666666664,40.699999999999996,null,null,null,null,null,213.84866666666667,216.88666666666668,null,null,null,null,null,103.73333333333333,33.4,65.899999999999991,12.666666666666666,6.8666666666666671,13010.333333333334,null,-344,null,135564,null,-1605,null,0,10.233333333333334,{"$f":"AVERAGE(Monthly!DV608:DV610)","v":1353.5},{"$f":"AVERAGE(Monthly!DW608:DW610)","v":1364.5000000000002},{"$f":"AVERAGE(Monthly!DX608:DX610)","v":957.1},{"$f":"AVERAGE(Monthly!DY608:DY610)","v":224.6},{"$f":"AVERAGE(Monthly!DZ608:DZ610)","v":732.5},{"$f":"AVERAGE(Monthly!EA608:EA610)","v":524.26666666666677},{"$f":"AVERAGE(Monthly!EB608:EB610)","v":208.23333333333335},{"$f":"AVERAGE(Monthly!EC608:EC610)","v":407.39999999999992},null,null,null,null,null,98.585871132599678,102.7354626581249,105.92580757600621,null,null,null,null,null,178.03333333333333,170.56666666666666,156.76666666666665,null,null,null,null,null,4.0566666666666658,0.5066666666666666,5.8166666666666664,8.8400000000000016,302.33333333333354,5.8733333333333322,0.29666666666666669,0.99333333333333351,1.2133333333333334,2.1799999999999997,3.2533333333333334,2.2599999999999998,null,null,null,null,null,1.2118333333333335,6.839266666666667,13.064866666666667,1.3173666666666666,108.32793333333332,81.474733333333333,23340.066666666666,29125.633333333331,16478.8,null,null,null,null,null,58.370000000000005,{"$f":"AVERAGE(Monthly!GE608:GE610)","v":54.660000000000004},{"$f":"AVERAGE(Monthly!GF608:GF610)","v":2.2516666666666665},{"$f":"AVERAGE(Monthly!GG608:GG610)","v":2.9670000000000001},{"$f":"AVERAGE(Monthly!GH608:GH610)","v":0},"--",{"$f":"AVERAGE(Monthly!GJ608:GJ610)","v":6.407},{"$f":"AVERAGE(Monthly!GK608:GK610)","v":3925},"--"]
["09'Q1",14383.885,14375.018,14527.355,9850.8333333333339,1008.6,2180.1666666666665,6662.5333333333328,1688.277,1197.81,400.96699999999998,-144.47499999999999,1986.6679999999999,1535.3440000000001,-451.32399999999984,3040.5419999999999,-1040.1210000000001,null,null,null,null,null,65.400000000000006,69.3,1529.8073999999999,1.75,1044.2560000000001,1043.9570000000001,-5.6,-57.7,3.74,1.75,2.0099999999999998,34145,3.8406379879533659E-2,108.1,109.3,109.8,90.353966666666679,89.184366666666662,1425442,1.4666666666666666,35.466666666666669,32,53.5,27.633333333333336,38,33.833333333333336,36.333333333333336,34.766666666666666,29.666666666666668,33.733333333333327,45.033333333333331,42.5,49750,98.722999999999999,98.966999999999999,97.741,97.603999999999999,98.733000000000004,100.14,487.173,1.75,null,1002563,889045,null,null,null,null,null,885.83759999999995,12.689909999999999,17.815650000000002,11049.88,525.66666666666663,538.66666666666663,145.43333333333331,9.3830000000000009,8.0827994513290005,13.869466117995666,{"$f":"AVERAGE(Monthly!CD611:CD613)","v":326},{"$f":"AVERAGE(Monthly!CE611:CE613)","v":349},{"$f":"AVERAGE(Monthly!CF611:CF613)","v":11.133333333333333},{"$f":"AVERAGE(Monthly!CG611:CG613)","v":3106.6666666666665},{"$f":"AVERAGE(Monthly!CH611:CH613)","v":3910},{"$f":"AVERAGE(Monthly!CI611:CI613)","v":9.533812166677377},349,12062.466666666667,664.5333333333333,356.33333333333331,10949.233333333332,4274.7666666666664,2636.3038666666666,306399.33333333331,948.83333333333337,58.266666666666673,29.866666666666664,null,null,null,null,null,212.37766666666667,217.79700000000003,null,null,null,null,null,100.93333333333334,33.199999999999996,65.7,15.066666666666668,8.2666666666666675,12383,null,-627.33333333333394,null,133310.66666666666,null,-2253.333333333343,null,0,11.566666666666668,{"$f":"AVERAGE(Monthly!DV611:DV613)","v":1307.7666666666667},{"$f":"AVERAGE(Monthly!DW611:DW613)","v":1276.6666666666667},{"$f":"AVERAGE(Monthly!DX611:DX613)","v":905.0333333333333},{"$f":"AVERAGE(Monthly!DY611:DY613)","v":206.86666666666667},{"$f":"AVERAGE(Monthly!DZ611:DZ613)","v":698.16666666666663},{"$f":"AVERAGE(Monthly!EA611:EA613)","v":496.8},{"$f":"AVERAGE(Monthly!EB611:EB613)","v":201.36666666666665},{"$f":"AVERAGE(Monthly!EC611:EC613)","v":371.63333333333338},null,null,null,null,null,95.030492131990869,101.07065659760323,104.52403653046591,null,null,null,null,null,169.53333333333333,170.9666666666667,156.83333333333334,null,null,null,null,null,3.25,0.18333333333333335,5.2733333333333334,8.2133333333333329,293.99999999999994,5.0633333333333335,0.21333333333333335,0.56666666666666676,0.90666666666666673,1.7633333333333334,2.7366666666666668,2.17,null,null,null,null,null,1.2448333333333335,6.8360999999999992,14.379033333333334,1.3030333333333333,111.0992,82.915166666666664,17570,21604.566666666666,12924.766666666665,null,null,null,null,null,42.96,{"$f":"AVERAGE(Monthly!GE611:GE613)","v":44.43333333333333},{"$f":"AVERAGE(Monthly!GF611:GF613)","v":1.9421499999999998},{"$f":"AVERAGE(Monthly!GG611:GG613)","v":2.1930000000000001},{"$f":"AVERAGE(Monthly!GH611:GH613)","v":257},{"$f":"AVERAGE(Monthly!GI611:GI613)","v":257},{"$f":"AVERAGE(Monthly!GJ611:GJ613)","v":4.4846666666666666},{"$f":"AVERAGE(Monthly!GK611:GK613)","v":4087},"--"]
["09'Q2",14340.416999999999,14355.558000000001,14545.833000000001,9806.3666666666668,1002.5666666666666,2164.3666666666668,6639.5,1633.9870000000001,1180.729,376.95100000000002,-190.11600000000001,1905.7070000000001,1539.374,-366.33300000000008,3096.0010000000002,-1334.711,null,null,null,null,null,63.8,67.133333333333326,1465.7576333333334,2.0499999999999998,1120.6179999999999,1060.58,0,-63.5,4.38,2.0499999999999998,2.34,35279,3.9550758806403193E-2,108.2,109.5,110.1,87.631666666666661,86.605066666666673,1370414.6666666667,1.4266666666666665,42.333333333333336,45.333333333333336,46.333333333333336,36.5,47.166666666666664,43.5,32.833333333333336,49.4,41.833333333333336,46.133333333333333,47.866666666666667,46.066666666666663,48378.666666666664,98.040999999999997,102.09399999999999,100.125,99.468999999999994,100.604,100.66,512.56600000000003,2.0499999999999998,null,1005163,891993,null,null,null,null,null,860.71356666666668,12.343450000000001,17.468730000000001,11378.02,534.33333333333337,559.33333333333337,141.19666666666669,9.716333333333333,8.3595798205190697,14.869579820519069,{"$f":"AVERAGE(Monthly!CD614:CD616)","v":290.33333333333331},{"$f":"AVERAGE(Monthly!CE614:CE616)","v":368.66666666666669},{"$f":"AVERAGE(Monthly!CF614:CF616)","v":9.5333333333333332},{"$f":"AVERAGE(Monthly!CG614:CG616)","v":3256.6666666666665},{"$f":"AVERAGE(Monthly!CH614:CH616)","v":4033.3333333333335},{"$f":"AVERAGE(Monthly!CI614:CI616)","v":9.6933473950056754},368.66666666666669,12118.433333333332,780.5333333333333,425.66666666666669,11027.199999999999,4424.8,2604.0378333333333,306992.33333333331,941.05346666666674,68.2,48.29999999999999,null,null,null,null,null,212.37766666666667,218.90733333333333,null,null,null,null,null,98.766666666666666,33.06666666666667,65.7,16.3,9.2999999999999989,11872.666666666666,null,-510.33333333333394,null,131451.33333333334,null,-1859.3333333333139,null,0,14.833333333333334,{"$f":"AVERAGE(Monthly!DV614:DV616)","v":1268.7333333333333},{"$f":"AVERAGE(Monthly!DW614:DW616)","v":1265.4333333333334},{"$f":"AVERAGE(Monthly!DX614:DX616)","v":883.80000000000007},{"$f":"AVERAGE(Monthly!DY614:DY616)","v":206.70000000000002},{"$f":"AVERAGE(Monthly!DZ614:DZ616)","v":677.09999999999991},{"$f":"AVERAGE(Monthly!EA614:EA616)","v":480.5},{"$f":"AVERAGE(Monthly!EB614:EB616)","v":196.6},{"$f":"AVERAGE(Monthly!EC614:EC616)","v":381.63333333333338},null,null,null,null,null,94.275619295580768,101.18484216646684,104.61745583439527,null,null,null,null,null,171.33333333333334,171.43333333333331,156.73333333333332,null,null,null,null,null,3.25,0.17999999999999997,5.5133333333333328,7.9833333333333343,247.00000000000014,5.03,0.17333333333333334,0.52,1.0133333333333334,2.2333333333333334,3.3133333333333339,2.7933333333333339,null,null,null,null,null,1.1677999999999999,6.8291666666666666,13.311466666666666,1.3619666666666665,106.99873333333333,79.573133333333331,17386.5,22875.833333333332,13681.566666666666,null,null,null,null,null,59.543333333333329,{"$f":"AVERAGE(Monthly!GE614:GE616)","v":58.696666666666658},{"$f":"AVERAGE(Monthly!GF614:GF616)","v":2.3475555555555556},{"$f":"AVERAGE(Monthly!GG614:GG616)","v":2.3253333333333335},{"$f":"AVERAGE(Monthly!GH614:GH616)","v":254.41666666666666},{"$f":"AVERAGE(Monthly!GI614:GI616)","v":254.66666666666666},{"$f":"AVERAGE(Monthly!GJ614:GJ616)","v":3.81},{"$f":"AVERAGE(Monthly!GK614:GK616)","v":3655},"--"]
["09'Q3",14384.145,14402.477000000001,14605.147000000001,9865.8666666666668,1050.5666666666666,2172.5,6642.666666666667,1613.076,1190.4860000000001,395.38499999999999,-206.11,1976.9839999999999,1593.3409999999999,-383.64300000000003,3112.9989999999998,-1340.933,null,null,null,null,null,65.400000000000006,68.13333333333334,1365.5814666666665,2.23,1273.1890000000001,1178.2539999999999,0,-54.7,5.04,2.23,2.4900000000000002,37391,4.0977381397270515E-2,108.6,109.9,110.5,88.852433333333337,88.318899999999999,1324737,1.33,52.6,52,40.166666666666664,46.933333333333337,53.666666666666664,50.5,36.666666666666664,62.066666666666663,61.166666666666664,60.833333333333336,55,50.966666666666661,51431.666666666664,100.38200000000001,100.06100000000001,100.794,100.898,100.422,99.897000000000006,581.50900000000001,2.23,null,1025313,912479,null,null,null,null,null,849.01233333333346,12.20354,17.386620000000001,11690.08,588.33333333333337,606.66666666666663,143.23999999999998,11.761000000000001,8.0264868556748308,14.769820189008163,{"$f":"AVERAGE(Monthly!CD617:CD619)","v":261},{"$f":"AVERAGE(Monthly!CE617:CE619)","v":405},{"$f":"AVERAGE(Monthly!CF617:CF619)","v":7.8},{"$f":"AVERAGE(Monthly!CG617:CG619)","v":3266.6666666666665},{"$f":"AVERAGE(Monthly!CH617:CH619)","v":4433.333333333333},{"$f":"AVERAGE(Monthly!CI617:CI619)","v":8.8545204593239522},405,12067.699999999999,611.33333333333337,502,10906.333333333334,4571.9333333333334,2578.9267666666665,307690,952.71843333333334,68.399999999999991,51.766666666666673,null,null,null,null,null,215.34399999999997,219.55966666666666,null,null,null,null,null,98.133333333333326,33.1,65.333333333333329,16.599999999999998,9.6333333333333346,11628.333333333334,null,-244.33333333333212,null,130476.66666666667,null,-974.66666666667152,null,0,16.7,{"$f":"AVERAGE(Monthly!DV617:DV619)","v":1253.8000000000002},{"$f":"AVERAGE(Monthly!DW617:DW619)","v":1275.0666666666668},{"$f":"AVERAGE(Monthly!DX617:DX619)","v":878.9666666666667},{"$f":"AVERAGE(Monthly!DY617:DY619)","v":206.5},{"$f":"AVERAGE(Monthly!DZ617:DZ619)","v":672.4666666666667},{"$f":"AVERAGE(Monthly!EA617:EA619)","v":473.8},{"$f":"AVERAGE(Monthly!EB617:EB619)","v":198.66666666666666},{"$f":"AVERAGE(Monthly!EC617:EC619)","v":396.09999999999997},null,null,null,null,null,95.33077484611951,101.9732464011137,105.1240439687116,null,null,null,null,null,173.86666666666667,171.60000000000002,156.69999999999999,null,null,null,null,null,3.25,0.15666666666666665,5.2666666666666666,6.66,139.33333333333334,5.1566666666666663,0.15666666666666665,0.4466666666666666,1.0333333333333334,2.4666666666666663,3.5166666666666671,3.0700000000000003,null,null,null,null,null,1.0972333333333333,6.8305666666666669,13.2582,1.4311,103.55143333333335,75.329900000000009,19302.133333333331,26454.366666666669,15090.733333333332,null,null,null,null,null,68.203333333333333,{"$f":"AVERAGE(Monthly!GE617:GE619)","v":68.2},{"$f":"AVERAGE(Monthly!GF617:GF619)","v":2.6269833333333334},{"$f":"AVERAGE(Monthly!GG617:GG619)","v":2.5999999999999996},{"$f":"AVERAGE(Monthly!GH617:GH619)","v":215},{"$f":"AVERAGE(Monthly!GI617:GI619)","v":207.33333333333334},{"$f":"AVERAGE(Monthly!GJ617:GJ619)","v":3.4393333333333334},{"$f":"AVERAGE(Monthly!GK617:GK619)","v":3366.6666666666665},"--"]
["09'Q4",14566.511,14541.901,14586.897999999999,9864.7999999999993,1031.5666666666666,2183.4666666666667,6649.3666666666659,1598.4280000000001,1211.8990000000001,395.66699999999997,-49.573999999999998,2063.35,1682.902,-380.44799999999987,3106.8220000000001,-1279.615,null,null,null,null,null,66.900000000000006,69.466666666666654,1287.5696666666665,2.36,1374.367,1227.319,-7.1,-35.700000000000003,5.63,2.36,2.69,38106,4.1446821007292842E-2,109.1,110.4,111,90.240400000000008,89.857033333333334,1327401,1.2933333333333332,55.233333333333327,51.833333333333336,36.833333333333336,51.766666666666673,55.333333333333336,52.5,42.5,61.6,60.5,62.366666666666674,58.4,52.966666666666669,53299,102.94,98.971999999999994,101.417,102.11199999999999,100.262,99.32,717.36800000000005,2.36,null,1032372,919395,null,null,null,null,null,840.10846666666657,11.963620000000001,17.128579999999999,11975.99,567.66666666666663,623.33333333333337,145.47,10.749000000000001,11.434914001159653,18.388247334492988,{"$f":"AVERAGE(Monthly!CD620:CD622)","v":238},{"$f":"AVERAGE(Monthly!CE620:CE622)","v":374.33333333333331},{"$f":"AVERAGE(Monthly!CF620:CF622)","v":7.6000000000000005},{"$f":"AVERAGE(Monthly!CG620:CG622)","v":2886.6666666666665},{"$f":"AVERAGE(Monthly!CH620:CH622)","v":4963.333333333333},{"$f":"AVERAGE(Monthly!CI620:CI622)","v":6.9982767674256934},374.33333333333331,12133.933333333334,616.66666666666663,485.66666666666669,10892.1,4761.9333333333334,2554.0676666666668,308413.33333333331,926.6805333333333,70.166666666666671,50.966666666666669,null,null,null,null,null,217.03,220.68266666666668,null,null,null,null,null,97.766666666666666,33.133333333333333,64.86666666666666,17.100000000000001,9.9333333333333318,11507.333333333334,null,-121,null,129962,null,-514.66666666667152,null,0,19.600000000000001,{"$f":"AVERAGE(Monthly!DV620:DV622)","v":1244.6666666666667},{"$f":"AVERAGE(Monthly!DW620:DW622)","v":1255.5333333333333},{"$f":"AVERAGE(Monthly!DX620:DX622)","v":871.76666666666677},{"$f":"AVERAGE(Monthly!DY620:DY622)","v":204.86666666666667},{"$f":"AVERAGE(Monthly!DZ620:DZ622)","v":666.9},{"$f":"AVERAGE(Monthly!EA620:EA622)","v":468.73333333333335},{"$f":"AVERAGE(Monthly!EB620:EB622)","v":198.16666666666666},{"$f":"AVERAGE(Monthly!EC620:EC622)","v":383.76666666666665},null,null,null,null,null,95.964228364058528,102.70304932974332,106.01240187877127,null,null,null,null,null,176.9,171.9,156.73333333333332,null,null,null,null,null,3.25,0.12,5.2,6.3266666666666671,112.66666666666669,4.92,5.6666666666666671E-2,0.34999999999999992,0.87333333333333341,2.3000000000000003,3.4599999999999995,3.1099999999999994,null,null,null,null,null,1.0559000000000001,6.8271000000000006,13.067066666666667,1.4769333333333332,100.97986666666667,72.858733333333333,21157.599999999999,27856.533333333336,17187.733333333334,null,null,null,null,null,76.066666666666663,{"$f":"AVERAGE(Monthly!GE620:GE622)","v":74.63},{"$f":"AVERAGE(Monthly!GF620:GF622)","v":2.6637499999999998},{"$f":"AVERAGE(Monthly!GG620:GG622)","v":2.7363333333333331},{"$f":"AVERAGE(Monthly!GH620:GH622)","v":222.16666666666666},{"$f":"AVERAGE(Monthly!GI620:GI622)","v":221.66666666666666},{"$f":"AVERAGE(Monthly!GJ620:GJ622)","v":4.9173333333333344},{"$f":"AVERAGE(Monthly!GK620:GK622)","v":3510},"--"]
["10'Q1",14681.063,14604.844999999999,14591.53,9917.6999999999989,1045.1333333333332,2201.6333333333337,6670.6000000000013,1615.049,1255.3620000000001,382.964,9.843,2116.9380000000001,1708.162,-408.77600000000007,3084.28,-1351.914,null,null,null,null,null,68.400000000000006,71.266666666666666,1224.2448999999999,0.26,1450.1869999999999,1313.6610000000001,-5.7,-29.6,1.34,0.26,0.53,39291,4.2091381717014709E-2,110.3,111.1,111.4,92.000600000000006,91.529133333333334,1338760.6666666667,1.2699999999999998,57.266666666666673,58.333333333333336,36,54.433333333333337,58.833333333333336,56.5,50.5,59.833333333333336,70.666666666666671,60.766666666666673,60.766666666666673,54.066666666666663,53838.333333333336,106.292,93.677999999999997,100.69799999999999,102.634,99.394999999999996,98.114000000000004,800.87,0.26,null,1047651,933469,null,null,null,null,null,839.54363333333333,11.73892,16.890609999999999,12369.32,618,657.66666666666663,146.80333333333331,10.776333333333334,12.186206395390412,19.069539728723747,{"$f":"AVERAGE(Monthly!CD623:CD625)","v":230.33333333333334},{"$f":"AVERAGE(Monthly!CE623:CE625)","v":354},{"$f":"AVERAGE(Monthly!CF623:CF625)","v":7.8346513750998525},{"$f":"AVERAGE(Monthly!CG623:CG625)","v":2946.6666666666665},{"$f":"AVERAGE(Monthly!CH623:CH625)","v":4406.666666666667},{"$f":"AVERAGE(Monthly!CI623:CI625)","v":8.0247316488615787},354,12234.833333333334,582.4,526,10902.066666666668,4885.5666666666666,2536.0056333333337,309024,903.63310000000001,73.86666666666666,51.733333333333327,null,null,null,null,null,217.37400000000002,220.71566666666669,null,null,null,null,null,98.033333333333346,33.233333333333334,64.86666666666666,16.933333333333334,9.8333333333333339,11455.333333333334,null,-52,null,129810.33333333333,null,-151.66666666667152,null,0,20.099999999999998,{"$f":"AVERAGE(Monthly!DV623:DV625)","v":1235.3666666666668},{"$f":"AVERAGE(Monthly!DW623:DW625)","v":1205.2},{"$f":"AVERAGE(Monthly!DX623:DX625)","v":846.76666666666677},{"$f":"AVERAGE(Monthly!DY623:DY625)","v":194.83333333333334},{"$f":"AVERAGE(Monthly!DZ623:DZ625)","v":651.93333333333328},{"$f":"AVERAGE(Monthly!EA623:EA625)","v":456.26666666666665},{"$f":"AVERAGE(Monthly!EB623:EB625)","v":195.66666666666666},{"$f":"AVERAGE(Monthly!EC623:EC625)","v":358.43333333333339},null,null,null,null,null,96.551704262171825,103.64570524748594,106.92819291874616,null,null,null,null,null,182.06666666666669,172.66666666666666,157.06666666666669,null,null,null,null,null,3.25,0.13333333333333333,5.293333333333333,6.2866666666666662,99.333333333333314,4.9966666666666661,0.10666666666666665,0.3666666666666667,0.91666666666666663,2.4233333333333333,3.7166666666666668,3.35,null,null,null,null,null,1.0412999999999999,6.8272000000000004,12.772166666666669,1.3838666666666668,102.1271,74.869133333333323,22401.100000000002,24283.633333333331,17546.066666666666,null,null,null,null,null,78.626666666666665,{"$f":"AVERAGE(Monthly!GE623:GE625)","v":76.25},{"$f":"AVERAGE(Monthly!GF623:GF625)","v":2.7641333333333336},{"$f":"AVERAGE(Monthly!GG623:GG625)","v":2.848333333333334},{"$f":"AVERAGE(Monthly!GH623:GH625)","v":191.16666666666666},{"$f":"AVERAGE(Monthly!GI623:GI625)","v":164.66666666666666},{"$f":"AVERAGE(Monthly!GJ623:GJ625)","v":5.0383333333333331},{"$f":"AVERAGE(Monthly!GK623:GK625)","v":3725},"--"]
["10'Q2",14888.6,14745.933000000001,14694.31,9998.4,1076.3,2212.0666666666666,6710.333333333333,1659.2719999999999,1289.4279999999999,403.50400000000002,48.758000000000003,2217.7739999999999,1748.067,-469.70699999999988,3106.2089999999998,-1338.377,null,null,null,null,null,70.7,73.2,1198.0820000000001,0.17,1436.7550000000001,1314.75,0,-9.3000000000000007,1.64,0.17,0.61,41308,4.3527098537646282E-2,110.9,111.6,111.9,93.919333333333327,94.096033333333324,1357477,1.26,57.6,58,34.333333333333336,57.066666666666663,59.666666666666664,57,47.5,63.29999999999999,70.833333333333329,63.199999999999989,58.466666666666661,60.166666666666664,56789.333333333336,110.223,91.882000000000005,101.86199999999999,103.003,100.57599999999999,98.893000000000001,810.09500000000003,0.17,null,1065173,949018,null,null,null,null,null,1149.2071333333333,11.438639999999999,16.547000000000001,12723.89,602,599.66666666666663,147.07666666666668,11.485333333333331,11.410626758605879,18.153960091939211,{"$f":"AVERAGE(Monthly!CD626:CD628)","v":215},{"$f":"AVERAGE(Monthly!CE626:CE628)","v":335.66666666666669},{"$f":"AVERAGE(Monthly!CF626:CF628)","v":7.9229141924814366},{"$f":"AVERAGE(Monthly!CG626:CG628)","v":3346.6666666666665},{"$f":"AVERAGE(Monthly!CH626:CH628)","v":4733.333333333333},{"$f":"AVERAGE(Monthly!CI626:CI628)","v":8.4980296020294332},335.66666666666669,12413.333333333334,654.36666666666667,489.33333333333331,11043.833333333334,5048.833333333333,2524.5774000000001,309376.66666666669,885.74633333333338,73.933333333333337,58.233333333333327,null,null,null,null,null,217.29733333333334,220.99266666666665,null,null,null,null,null,98.7,33.366666666666667,64.900000000000006,16.7,9.6333333333333329,11519.666666666666,null,{"$f":"+DL216-DL215","v":64.333333333332121},null,130443.66666666667,null,633.33333333334303,null,0,23.200000000000003,{"$f":"AVERAGE(Monthly!DV626:DV628)","v":1242.2666666666667},{"$f":"AVERAGE(Monthly!DW626:DW628)","v":1239.7},{"$f":"AVERAGE(Monthly!DX626:DX628)","v":857.63333333333321},{"$f":"AVERAGE(Monthly!DY626:DY628)","v":201.03333333333333},{"$f":"AVERAGE(Monthly!DZ626:DZ628)","v":656.6},{"$f":"AVERAGE(Monthly!EA626:EA628)","v":456.90000000000003},{"$f":"AVERAGE(Monthly!EB626:EB628)","v":199.70000000000002},{"$f":"AVERAGE(Monthly!EC626:EC628)","v":382.06666666666666},null,null,null,null,null,98.760729759845447,105.08574554371293,108.10543554594467,null,null,null,null,null,184.23333333333335,173.29999999999998,157.26666666666668,null,null,null,null,null,3.25,0.19333333333333336,5.043333333333333,6.1766666666666667,113.33333333333337,4.9099999999999993,0.14666666666666667,0.38000000000000006,0.87000000000000011,2.2533333333333334,3.4899999999999998,{"$f":"+FI216-FF216","v":3.11},null,null,null,null,null,1.0277000000000001,6.823833333333333,12.558666666666667,1.2734333333333332,103.60616666666665,77.664766666666665,24002.899999999998,29271.900000000005,19354.166666666668,null,null,null,null,null,77.89,{"$f":"AVERAGE(Monthly!GE626:GE628)","v":78.509999999999991},{"$f":"AVERAGE(Monthly!GF626:GF628)","v":2.8754333333333335},{"$f":"AVERAGE(Monthly!GG626:GG628)","v":3.0253333333333337},{"$f":"AVERAGE(Monthly!GH626:GH628)","v":232.91666666666666},{"$f":"AVERAGE(Monthly!GI626:GI628)","v":276},{"$f":"AVERAGE(Monthly!GJ626:GJ628)","v":4.3426666666666671},{"$f":"AVERAGE(Monthly!GK626:GK628)","v":3803.3333333333335},{"$f":"AVERAGE(Monthly!GL626:GL628)","v":3675}]
["10'Q3",15057.66,14845.458000000001,14724.465,10063.099999999999,1093.7666666666667,2226,6744,1692.7760000000001,1328.42,368.10199999999998,116.226,2295.953,1797.508,-498.44499999999994,3103.5329999999999,-1319.222,null,null,null,null,null,72,74.666666666666671,1187.6530999999998,0.21,1499.0709999999999,1426.566,5.6,-3.6,1.94,0.21,0.95,43507,4.5680093403385871E-2,111.6,112.1,112.3,95.29549999999999,95.336700000000008,1391283.6666666667,1.2733333333333334,56.9,50.833333333333336,41.666666666666664,59.233333333333327,55.5,55.166666666666664,52.666666666666664,55,63.166666666666664,59.466666666666661,56.1,55.5,58297,111.999,90.534000000000006,102.31699999999999,103.52,100.729,98.837999999999994,855.70600000000002,0.21,null,1070288,952428,null,null,null,null,null,1129.8694333333333,11.238099999999999,16.35295,13003.21,579.66666666666663,574,145.46333333333334,11.74,10.669756089075513,17.296422755742178,{"$f":"AVERAGE(Monthly!CD629:CD631)","v":205.33333333333334},{"$f":"AVERAGE(Monthly!CE629:CE631)","v":294},{"$f":"AVERAGE(Monthly!CF629:CF631)","v":8.4123270223667799},{"$f":"AVERAGE(Monthly!CG629:CG631)","v":3446.6666666666665},{"$f":"AVERAGE(Monthly!CH629:CH631)","v":3563.3333333333335},{"$f":"AVERAGE(Monthly!CI629:CI631)","v":11.640873231042784},294,12543.866666666667,652.13333333333333,430.66666666666669,11098.800000000001,5159.9000000000005,2518.0920666666666,309987.33333333331,865.79350000000011,68.3,50.933333333333337,null,null,null,null,null,217.93433333333334,221.52766666666665,null,null,null,null,null,99.3,33.466666666666669,64.63333333333334,16.566666666666666,9.4666666666666668,11559,null,{"$f":"+DL217-DL216","v":39.33333333333394},null,130417.66666666667,null,{"$f":"+DP217-DP216","v":-26},null,0,21.2,{"$f":"AVERAGE(Monthly!DV629:DV631)","v":1257.4666666666667},{"$f":"AVERAGE(Monthly!DW629:DW631)","v":1277.5666666666666},{"$f":"AVERAGE(Monthly!DX629:DX631)","v":877.16666666666663},{"$f":"AVERAGE(Monthly!DY629:DY631)","v":206.23333333333332},{"$f":"AVERAGE(Monthly!DZ629:DZ631)","v":670.93333333333339},{"$f":"AVERAGE(Monthly!EA629:EA631)","v":466.0333333333333},{"$f":"AVERAGE(Monthly!EB629:EB631)","v":204.89999999999998},{"$f":"AVERAGE(Monthly!EC629:EC631)","v":400.40000000000003},null,null,null,null,null,99.369865711685705,105.43124501072121,108.66865664395542,null,null,null,null,null,184.63333333333333,173.9666666666667,157.53333333333333,null,null,null,null,null,3.25,0.18666666666666668,4.580000000000001,5.7766666666666664,119.66666666666654,4.4466666666666663,0.15666666666666665,0.27,0.54,1.5466666666666666,2.7866666666666666,{"$f":"+FI217-FF217","v":2.5166666666666666},null,null,null,null,null,1.0385333333333333,6.7677000000000005,12.789166666666667,1.2938999999999998,102.41983333333333,75.909633333333332,22599.333333333332,34612.933333333334,19458,null,null,null,null,null,76.166666666666671,{"$f":"AVERAGE(Monthly!GE629:GE631)","v":76.820000000000007},{"$f":"AVERAGE(Monthly!GF629:GF631)","v":2.7740166666666668},{"$f":"AVERAGE(Monthly!GG629:GG631)","v":2.9386666666666668},{"$f":"AVERAGE(Monthly!GH629:GH631)","v":285.08333333333331},{"$f":"AVERAGE(Monthly!GI629:GI631)","v":335},{"$f":"AVERAGE(Monthly!GJ629:GJ631)","v":4.2359999999999998},{"$f":"AVERAGE(Monthly!GK629:GK631)","v":3658.6666666666665},{"$f":"AVERAGE(Monthly!GL629:GL631)","v":3584.6666666666665}]
["10'Q4",15230.208000000001,14939.001,14878.339,10166.133333333333,1127.4333333333334,2254.4333333333329,6785.6333333333341,1728.0889999999999,1356.87,375.12099999999998,58.073999999999998,2310.7350000000001,1852.6410000000001,-458.09400000000005,3071.5239999999999,-1305.336,null,null,null,null,null,72.599999999999994,75.2,1188.0280333333333,0.24,1494.46,1448.42,5.6,-21.4,2.29,0.24,1.0900000000000001,45064,4.5911292910666347E-2,112.1,112.6,112.9,95.679733333333331,95.756500000000003,1432931,1.27,57.6,46.333333333333336,43.166666666666664,58.633333333333333,57.333333333333336,51.666666666666664,52.333333333333336,58.5,71,60.666666666666664,57.066666666666663,56.266666666666673,59904.333333333336,114.16200000000001,90.007000000000005,102.777,103.943,100.36799999999999,98.879000000000005,807.69399999999996,0.24,null,1100360,981545,null,null,null,null,null,1110.5792333333331,11.065099999999999,16.18149,13256.92,542.33333333333337,583.33333333333337,143.25000000000003,12.217333333333334,10.729677649249913,17.379677649249913,{"$f":"AVERAGE(Monthly!CD632:CD634)","v":194.66666666666666},{"$f":"AVERAGE(Monthly!CE632:CE634)","v":301.33333333333331},{"$f":"AVERAGE(Monthly!CF632:CF634)","v":7.784453567404924},{"$f":"AVERAGE(Monthly!CG632:CG634)","v":3153.3333333333335},{"$f":"AVERAGE(Monthly!CH632:CH634)","v":4043.3333333333335},{"$f":"AVERAGE(Monthly!CI632:CI634)","v":9.4312928622603494},301.33333333333331,12716.4,631.13333333333333,439.66666666666669,11176.033333333333,5292.4000000000005,2567.6200333333331,310634.66666666669,847.71390000000008,71.266666666666666,52.5,null,null,null,null,null,219.69899999999998,222.10733333333334,null,null,null,null,null,99.933333333333337,33.533333333333331,64.433333333333337,16.7,9.5000000000000018,11580.666666666666,null,{"$f":"+DL218-DL217","v":21.66666666666606},null,130741.33333333333,null,{"$f":"+DP218-DP217","v":323.66666666665697},null,0,21.366666666666664,{"$f":"AVERAGE(Monthly!DV632:DV634)","v":1268.0333333333335},{"$f":"AVERAGE(Monthly!DW632:DW634)","v":1279},{"$f":"AVERAGE(Monthly!DX632:DX634)","v":888.86666666666667},{"$f":"AVERAGE(Monthly!DY632:DY634)","v":210.36666666666667},{"$f":"AVERAGE(Monthly!DZ632:DZ634)","v":678.5},{"$f":"AVERAGE(Monthly!EA632:EA634)","v":472.56666666666666},{"$f":"AVERAGE(Monthly!EB632:EB634)","v":205.93333333333331},{"$f":"AVERAGE(Monthly!EC632:EC634)","v":390.13333333333338},null,null,null,null,null,100.40772883697882,106.08036863180482,109.1606179582121,null,null,null,null,null,188,174.4,157.46666666666667,null,null,null,null,null,3.25,0.18666666666666668,4.8566666666666665,5.913333333333334,105.66666666666676,4.413333333333334,0.13666666666666669,0.25666666666666665,0.48333333333333339,1.4866666666666666,2.8633333333333333,{"$f":"+FI218-FF218","v":2.6066666666666665},null,null,null,null,null,1.0129666666666666,6.6570999999999998,12.389033333333332,1.3591999999999997,99.255066666666679,72.980800000000002,23542.233333333334,33482.400000000001,20303.666666666668,null,null,null,null,null,85.026666666666685,{"$f":"AVERAGE(Monthly!GE632:GE634)","v":86.466666666666654},{"$f":"AVERAGE(Monthly!GF632:GF634)","v":2.9427833333333333},{"$f":"AVERAGE(Monthly!GG632:GG634)","v":3.145},{"$f":"AVERAGE(Monthly!GH632:GH634)","v":423.75},{"$f":"AVERAGE(Monthly!GI632:GI634)","v":479.66666666666669},{"$f":"AVERAGE(Monthly!GJ632:GJ634)","v":3.9750000000000001},{"$f":"AVERAGE(Monthly!GK632:GK634)","v":3877},{"$f":"AVERAGE(Monthly!GL632:GL634)","v":3686}]
["11'Q1",15238.370999999999,14881.300999999999,14855.331,10217.133333333333,1141.7666666666667,2265.0666666666671,6812,1724.133,1381.125,374.392,25.065999999999999,2328.482,1862.3009999999999,-466.18100000000004,3012.2159999999999,-1236.404,null,null,null,null,null,73.5,75.733333333333334,1200.9031333333332,0.3,1350.2449999999999,1279.886,5.3,5.6,2.97,0.3,1.21,46908,4.6676438190138725E-2,113.6,113.3,113.2,96.17113333333333,96.553233333333324,1470407.3333333333,1.25,59.466666666666661,56.5,41.666666666666664,61.300000000000004,60.166666666666664,55.5,50.5,62.800000000000004,82.833333333333329,64.600000000000009,59.733333333333327,61.366666666666667,60565.666666666664,115.81,89.498999999999995,104.621,103.078,101.083,101.497,747.84299999999996,0.3,null,1125489,1004961,null,null,null,null,null,1073.1234000000002,10.840769999999999,15.943,13461.94,582.33333333333337,567,141.81666666666669,12.782000000000002,11.181641058396742,17.504974391730077,{"$f":"AVERAGE(Monthly!CD635:CD637)","v":183},{"$f":"AVERAGE(Monthly!CE635:CE637)","v":292.33333333333331},{"$f":"AVERAGE(Monthly!CF635:CF637)","v":7.5342598624683319},{"$f":"AVERAGE(Monthly!CG635:CG637)","v":2983.3333333333335},{"$f":"AVERAGE(Monthly!CH635:CH637)","v":4340},{"$f":"AVERAGE(Monthly!CI635:CI637)","v":8.2620276432379693},292.33333333333331,13077.633333333333,728.43333333333339,416.66666666666669,11312.933333333334,5418.8,2664.1486666666665,311170.66666666669,835.31170000000009,73.066666666666663,65.466666666666654,null,null,null,null,null,222.0436666666667,223.15666666666667,null,null,null,null,null,100.10000000000001,33.466666666666669,64.166666666666671,16.033333333333335,9.0333333333333332,11650,null,{"$f":"+DL219-DL218","v":69.33333333333394},null,131083,null,{"$f":"+DP219-DP218","v":341.66666666667152},null,0,21.366666666666664,{"$f":"AVERAGE(Monthly!DV635:DV637)","v":1282.4333333333334},{"$f":"AVERAGE(Monthly!DW635:DW637)","v":1252.5333333333333},{"$f":"AVERAGE(Monthly!DX635:DX637)","v":879},{"$f":"AVERAGE(Monthly!DY635:DY637)","v":205.33333333333334},{"$f":"AVERAGE(Monthly!DZ635:DZ637)","v":673.66666666666663},{"$f":"AVERAGE(Monthly!EA635:EA637)","v":469.5},{"$f":"AVERAGE(Monthly!EB635:EB637)","v":204.16666666666666},{"$f":"AVERAGE(Monthly!EC635:EC637)","v":373.5333333333333},null,null,null,null,null,99.764777143979643,105.67166758196262,108.91894766524173,null,null,null,null,null,195.9,175.76666666666665,158.33333333333334,null,null,null,null,null,3.25,0.15666666666666668,5.13,6.09,96,4.8500000000000005,0.12666666666666668,0.27333333333333337,0.69333333333333336,2.1199999999999997,3.4600000000000004,{"$f":"+FI219-FF219","v":3.186666666666667},null,null,null,null,null,0.98603333333333332,6.5789999999999997,12.063066666666666,1.3682333333333334,97.821266666666659,71.901200000000003,25440.066666666669,28740.600000000002,20643.166666666668,null,null,null,null,null,93.98,{"$f":"AVERAGE(Monthly!GE635:GE637)","v":104.96},{"$f":"AVERAGE(Monthly!GF635:GF637)","v":3.3424666666666667},{"$f":"AVERAGE(Monthly!GG635:GG637)","v":3.6256666666666661},{"$f":"AVERAGE(Monthly!GH635:GH637)","v":463.66666666666669},{"$f":"AVERAGE(Monthly!GI635:GI637)","v":444.33333333333331},{"$f":"AVERAGE(Monthly!GJ635:GJ637)","v":4.2013333333333334},{"$f":"AVERAGE(Monthly!GK635:GK637)","v":3808.6666666666665},{"$f":"AVERAGE(Monthly!GL635:GL637)","v":3728.3333333333335}]
["11'Q2",15460.925999999999,14989.555,14924.472,10247.549999999999,1136.7249999999999,2265.2750000000001,6847.15,1760.9690000000001,1394.2710000000002,379.32900000000001,57.518999999999998,2345.931,1890.682,-455.24900000000002,3008.9949999999999,-1313.1690000000001,null,null,null,null,null,73.599999999999994,76.024999999999991,1230.4327250000001,0.31,1423.145,1406.6220000000001,3.7,9.6,3.74,0.31,1.32,48696,4.7689933169848868E-2,115.2,114.2,113.7,96.651624999999996,96.645349999999993,1517647.25,1.2625,56.5,53.5,42.333333333333336,59.966666666666669,56.833333333333336,53.666666666666664,52.166666666666664,57.1,76.666666666666671,57.1,56.433333333333337,56,63355.5,116.029,88.853999999999999,104.038,103.42,99.391999999999996,100.598,814.28800000000001,0.31,null,1144270,1021096,null,null,null,null,null,1078.84295,10.74057,15.87848,13777.31,586.5,614,140.41249999999999,12.254249999999999,12.454601363329758,18.789601363329755,{"$f":"AVERAGE(Monthly!CD638:CD640)","v":169},{"$f":"AVERAGE(Monthly!CE638:CE640)","v":305.33333333333331},{"$f":"AVERAGE(Monthly!CF638:CF640)","v":6.6415168194859016},{"$f":"AVERAGE(Monthly!CG638:CG640)","v":3163.3333333333335},{"$f":"AVERAGE(Monthly!CH638:CH640)","v":4176.666666666667},{"$f":"AVERAGE(Monthly!CI638:CI640)","v":9.0884099624746426},307.25,13230.35,709.875,424,11314.224999999999,5632.2249999999995,2694.0839500000002,311783.25,834.96482500000002,69.825000000000003,60.975000000000001,null,null,null,null,null,224.77500000000001,224.45425,null,null,null,null,null,101.37500000000001,33.625,64.075000000000003,15.975,9.0500000000000007,11722.5,null,{"$f":"+DL220-DL219","v":72.5},null,131829.5,null,746.5,null,0,21.725000000000001,{"$f":"AVERAGE(Monthly!DV638:DV640)","v":1299.5666666666666},{"$f":"AVERAGE(Monthly!DW638:DW640)","v":1297.4666666666669},{"$f":"AVERAGE(Monthly!DX638:DX640)","v":898.93333333333339},{"$f":"AVERAGE(Monthly!DY638:DY640)","v":214.79999999999998},{"$f":"AVERAGE(Monthly!DZ638:DZ640)","v":684.13333333333333},{"$f":"AVERAGE(Monthly!EA638:EA640)","v":476.3},{"$f":"AVERAGE(Monthly!EB638:EB640)","v":207.83333333333334},{"$f":"AVERAGE(Monthly!EC638:EC640)","v":398.53333333333336},null,null,null,null,null,100.6393872424169,106.19948234984042,109.44461544174628,null,null,null,null,null,203.92500000000001,177.42500000000001,159.625,null,null,null,null,null,3.25,8.7500000000000008E-2,5.01,5.8275000000000006,81.750000000000085,4.6349999999999998,4.5000000000000005E-2,0.20250000000000001,0.52749999999999997,1.7825,3.1574999999999998,{"$f":"+FI220-FF220","v":2.9549999999999996},null,null,null,null,null,0.96447499999999997,6.4886249999999999,11.709924999999998,1.436825,95.134924999999996,69.442174999999992,26301.4,32973.85,22034,null,null,null,null,null,101.21250000000001,{"$f":"AVERAGE(Monthly!GE638:GE640)","v":117.36},{"$f":"AVERAGE(Monthly!GF638:GF640)","v":3.8490333333333333},{"$f":"AVERAGE(Monthly!GG638:GG640)","v":4.0146666666666668},{"$f":"AVERAGE(Monthly!GH638:GH640)","v":480.16666666666669},{"$f":"AVERAGE(Monthly!GI638:GI640)","v":504},{"$f":"AVERAGE(Monthly!GJ638:GJ640)","v":4.3746666666666671},{"$f":"AVERAGE(Monthly!GK638:GK640)","v":3807.6666666666665},{"$f":"AVERAGE(Monthly!GL638:GL640)","v":3652.6666666666665}]
["11'Q3",15587.125,15021.148999999999,15035.147000000001,10282.233333333335,1148.6333333333332,2259.7333333333336,6876.666666666667,1840.809,1452.6279999999999,386.77100000000002,-13.026999999999999,2364.9180000000001,1910.595,-454.32300000000009,2990.0059999999999,-1231.2260000000001,null,null,null,null,null,74.3,76.5,1259.2404333333334,0.36,1430.386,1475.6420000000001,14.5,5.8,4.38,0.36,2.0099999999999998,49985,4.8582708696193085E-2,115.4,114.6,114.2,97.487733333333324,97.446899999999985,1534432.3333333333,1.26,52.79999999999999,44.166666666666664,46.5,54.633333333333333,52.25,54.5,51.5,51.233333333333327,56.833333333333336,52.166666666666664,51.133333333333333,56.033333333333331,65336.333333333336,117.953,87.804000000000002,104.69199999999999,103.233,99.375,101.413,775.38,0.36,null,1154154,1028864,null,null,null,null,null,1080.0838666666666,10.61647,15.77862,13980.8,619.33333333333337,626,139.87666666666667,12.573999999999998,12.715832900175462,19.015832900175461,{"$f":"AVERAGE(Monthly!CD641:CD643)","v":162.66666666666666},{"$f":"AVERAGE(Monthly!CE641:CE643)","v":299.66666666666669},{"$f":"AVERAGE(Monthly!CF641:CF643)","v":6.5157304814055381},{"$f":"AVERAGE(Monthly!CG641:CG643)","v":3023.3333333333335},{"$f":"AVERAGE(Monthly!CH641:CH643)","v":4246.666666666667},{"$f":"AVERAGE(Monthly!CI641:CI643)","v":8.5606205098861974},299.66666666666669,13347.266666666668,718.6,424,11355.166666666666,5862.4666666666672,2714.9249666666665,312297,836.55153333333328,59.666666666666664,50.366666666666667,null,null,null,null,null,226.03266666666664,225.73266666666666,null,null,null,null,null,101.83333333333333,33.633333333333333,64.100000000000009,16.133333333333333,9,11759.666666666666,null,37.16666666666606,null,132169,null,{"$f":"+DP221-DP220","v":339.5},null,0,22.133333333333336,{"$f":"AVERAGE(Monthly!DV641:DV643)","v":1305.7},{"$f":"AVERAGE(Monthly!DW641:DW643)","v":1326.6000000000001},{"$f":"AVERAGE(Monthly!DX641:DX643)","v":909.9},{"$f":"AVERAGE(Monthly!DY641:DY643)","v":219.4},{"$f":"AVERAGE(Monthly!DZ641:DZ643)","v":690.5},{"$f":"AVERAGE(Monthly!EA641:EA643)","v":480.36666666666662},{"$f":"AVERAGE(Monthly!EB641:EB643)","v":210.13333333333333},{"$f":"AVERAGE(Monthly!EC641:EC643)","v":416.7},null,null,null,null,null,101.79590656728257,106.91406992440258,109.92331679482761,null,null,null,null,null,203.83333333333334,178.6,160.23333333333332,null,null,null,null,null,3.25,8.3333333333333329E-2,4.4633333333333338,5.4633333333333338,100,4.3099999999999996,2.3333333333333331E-2,0.13333333333333333,0.28333333333333333,1.1533333333333333,2.4266666666666663,2.293333333333333,null,null,null,null,null,0.97983333333333322,6.4165333333333336,12.324800000000002,1.4118333333333333,95.93313333333333,69.787366666666671,26609.666666666668,36314.966666666667,22182.433333333334,null,null,null,null,null,89.71,{"$f":"AVERAGE(Monthly!GE641:GE643)","v":113.33999999999999},{"$f":"AVERAGE(Monthly!GF641:GF643)","v":3.6872500000000001},{"$f":"AVERAGE(Monthly!GG641:GG643)","v":3.8673333333333333},{"$f":"AVERAGE(Monthly!GH641:GH643)","v":547.5},{"$f":"AVERAGE(Monthly!GI641:GI643)","v":608},{"$f":"AVERAGE(Monthly!GJ641:GJ643)","v":4.0620000000000003},{"$f":"AVERAGE(Monthly!GK641:GK643)","v":3688.3333333333335},{"$f":"AVERAGE(Monthly!GL641:GL643)","v":3943.6666666666665}]
["11'Q4",15785.312,15190.254999999999,15100.985000000001,10316.766666666666,1181.5333333333333,2262.3333333333335,6877.7333333333336,1883.125,1482.1779999999999,397.59399999999999,80.816000000000003,2391.348,1929.6690000000001,-461.67899999999986,2978.279,-1195.7719999999999,null,null,null,null,null,74.8,76.933333333333337,1292.2021000000002,0.41,1507.0730000000001,1587.9860000000001,14.3,-18.8,5.04,0.41,2.34,52984,5.0592396244719617E-2,116.1,115.1,114.7,98.404200000000003,98.319533333333354,1553415,1.26,51.833333333333336,46.833333333333336,45.333333333333336,53.733333333333327,51.833333333333336,50.833333333333336,46.166666666666664,54.4,44.5,55.766666666666673,51.666666666666664,55.366666666666667,67127,118.068,86.626999999999995,103.32,103.94799999999999,97.641000000000005,99.396000000000001,783.09500000000003,0.41,null,1173614,1047272,null,null,null,null,null,1084.3383999999999,10.52125,15.73832,14175.54,671.66666666666663,691.33333333333337,137.95000000000002,13.417333333333334,11.978589061221721,18.021922394555055,{"$f":"AVERAGE(Monthly!CD644:CD646)","v":154.66666666666666},{"$f":"AVERAGE(Monthly!CE644:CE646)","v":328.33333333333331},{"$f":"AVERAGE(Monthly!CF644:CF646)","v":5.6615048995064727},{"$f":"AVERAGE(Monthly!CG644:CG646)","v":2560},{"$f":"AVERAGE(Monthly!CH644:CH646)","v":4366.666666666667},{"$f":"AVERAGE(Monthly!CI644:CI646)","v":7.0375766800424335},328.33333333333331,13398.400000000001,694.19999999999993,475.33333333333331,11362.033333333333,5984.2999999999993,2743.9811333333332,312924.66666666669,840.41693333333342,64.8,53.633333333333326,null,null,null,null,null,227.04733333333334,226.93666666666664,null,null,null,null,null,102.53333333333335,33.666666666666671,64.066666666666663,15.5,8.6333333333333329,11784,null,24.33333333333394,null,132743.66666666666,null,{"$f":"+DP222-DP221","v":574.66666666665697},null,0,20.633333333333336,{"$f":"AVERAGE(Monthly!DV644:DV646)","v":1316.8666666666668},{"$f":"AVERAGE(Monthly!DW644:DW646)","v":1325.5666666666666},{"$f":"AVERAGE(Monthly!DX644:DX646)","v":917.29999999999984},{"$f":"AVERAGE(Monthly!DY644:DY646)","v":218.4},{"$f":"AVERAGE(Monthly!DZ644:DZ646)","v":698.9},{"$f":"AVERAGE(Monthly!EA644:EA646)","v":487.63333333333338},{"$f":"AVERAGE(Monthly!EB644:EB646)","v":211.26666666666665},{"$f":"AVERAGE(Monthly!EC644:EC646)","v":408.26666666666665},null,null,null,null,null,103.98331414420529,108.08351042028961,110.64309467346986,null,null,null,null,null,200.76666666666665,179.66666666666666,160.93333333333334,null,null,null,null,null,3.25,7.3333333333333348E-2,3.9266666666666663,5.253333333333333,132.66666666666666,4.0066666666666668,1.3333333333333334E-2,0.11333333333333333,0.26333333333333336,0.95333333333333348,2.0466666666666669,1.9333333333333336,null,null,null,null,null,1.0227000000000002,6.3585333333333338,13.636000000000001,1.3481666666666667,99.654166666666654,72.39903333333335,26472.133333333331,35820.433333333334,22450.733333333334,null,null,null,null,null,94.063333333333333,{"$f":"AVERAGE(Monthly!GE644:GE646)","v":109.39666666666666},{"$f":"AVERAGE(Monthly!GF644:GF646)","v":3.4250500000000001},{"$f":"AVERAGE(Monthly!GG644:GG646)","v":3.8736666666666668},{"$f":"AVERAGE(Monthly!GH644:GH646)","v":645.83333333333337},{"$f":"AVERAGE(Monthly!GI644:GI646)","v":698},{"$f":"AVERAGE(Monthly!GJ644:GJ646)","v":3.4760000000000004},{"$f":"AVERAGE(Monthly!GK644:GK646)","v":4017},{"$f":"AVERAGE(Monthly!GL644:GL646)","v":4022}]
["12'Q1",15973.880999999999,15291.035,15225.031999999999,10379.033333333335,1213.8,2273.8666666666663,6898.0333333333328,1938.1420000000001,1518.627,422.46699999999998,56.015000000000001,2405.2919999999999,1942.596,-462.69599999999991,2963.7139999999999,-1107.068,null,null,null,null,null,75.5,77.266666666666666,1338.8125333333335,0.52,1727.3869999999999,1573.3219999999999,11.3,15.1,5.63,0.52,2.4900000000000002,54896,5.1371551936305861E-2,116.8,115.7,115.3,99.33850000000001,99.67946666666667,1579744.6666666667,1.25,53.4,52.333333333333336,46,54.533333333333331,56.166666666666664,53.333333333333336,49.666666666666664,55.666666666666664,59.333333333333336,56.433333333333337,50.199999999999996,59.533333333333339,68875,119.012,87.897000000000006,105.696,104.093,99.320999999999998,101.54,983.68299999999999,0.52,null,1197218,1068607,null,null,null,null,null,1088.3879666666669,10.3058,15.493320000000001,14329.65,707.33333333333337,748.33333333333337,137.07,14.304,11.09660668722166,16.883273353888328,{"$f":"AVERAGE(Monthly!CD647:CD649)","v":147},{"$f":"AVERAGE(Monthly!CE647:CE649)","v":351.66666666666669},{"$f":"AVERAGE(Monthly!CF647:CF649)","v":5.0240799337571653},{"$f":"AVERAGE(Monthly!CG647:CG649)","v":2350},{"$f":"AVERAGE(Monthly!CH647:CH649)","v":4496.666666666667},{"$f":"AVERAGE(Monthly!CI647:CI649)","v":6.2711301411056235},351.66666666666669,13662.366666666669,827.9666666666667,485.33333333333331,11547.733333333332,6145.5333333333328,2779.5385666666666,313447.66666666669,842.02109999999993,75.5,67.533333333333331,null,null,null,null,null,228.32600000000002,228.12966666666668,null,null,null,null,null,103.63333333333333,33.733333333333334,63.766666666666673,14.9,8.2666666666666675,11865.333333333334,null,81.33333333333394,null,133523.66666666666,null,{"$f":"+DP223-DP222","v":780},null,0,19.900000000000002,{"$f":"AVERAGE(Monthly!DV647:DV649)","v":1335.3666666666666},{"$f":"AVERAGE(Monthly!DW647:DW649)","v":1305.6333333333334},{"$f":"AVERAGE(Monthly!DX647:DX649)","v":908.5333333333333},{"$f":"AVERAGE(Monthly!DY647:DY649)","v":214.16666666666666},{"$f":"AVERAGE(Monthly!DZ647:DZ649)","v":694.36666666666679},{"$f":"AVERAGE(Monthly!EA647:EA649)","v":482.33333333333331},{"$f":"AVERAGE(Monthly!EB647:EB649)","v":212.0333333333333},{"$f":"AVERAGE(Monthly!EC647:EC649)","v":397.09999999999997},null,null,null,null,null,105.47265918844258,109.05950741138059,111.18829549344645,null,null,null,null,null,202.16666666666666,181.03333333333333,161.93333333333334,null,null,null,null,null,3.25,0.10333333333333333,3.8966666666666669,5.2,130.33333333333331,3.9200000000000004,6.6666666666666666E-2,0.15666666666666668,0.28666666666666668,0.89666666666666661,2.0366666666666666,1.88,null,null,null,null,null,1.0011666666666665,6.3098000000000001,12.972833333333334,1.3118666666666667,98.912833333333325,72.93546666666667,27400.866666666669,31318,23078.7,null,null,null,null,null,102.89333333333333,{"$f":"AVERAGE(Monthly!GE647:GE649)","v":118.49},{"$f":"AVERAGE(Monthly!GF647:GF649)","v":3.6254333333333331},{"$f":"AVERAGE(Monthly!GG647:GG649)","v":3.9710000000000001},{"$f":"AVERAGE(Monthly!GH647:GH649)","v":667.83333333333337},{"$f":"AVERAGE(Monthly!GI647:GI649)","v":628.33333333333337},{"$f":"AVERAGE(Monthly!GJ647:GJ649)","v":2.5099999999999998},{"$f":"AVERAGE(Monthly!GK647:GK649)","v":3704.3333333333335},{"$f":"AVERAGE(Monthly!GL647:GL649)","v":3982}]
["12'Q2",16121.851000000001,15362.415000000001,15276.858,10396.666666666666,1222.0999999999999,2275.8666666666668,6905.9666666666672,1973.665,1543.778,426.327,76.649000000000001,2417.038,1964.35,-452.6880000000001,2949.3780000000002,-1101.991,null,null,null,null,null,75.5,77.366666666666674,1381.8333333333333,0.64,1654.7919999999999,1543.662,17,21.8,5.64,0.64,2.69,56067,5.2646751163886923E-2,117.5,116.3,115.8,99.989566666666676,100.01833333333333,1601458,1.2733333333333334,52.79999999999999,47,45.833333333333336,56.93333333333333,53.333333333333336,53.5,46.166666666666664,55.366666666666674,48.5,55.866666666666667,48.933333333333337,55.699999999999996,67673.666666666672,118.971,88.087999999999994,106.28400000000001,104.699,99.665000000000006,101.514,970.38,0.64,null,1195229,1064966,null,null,null,null,null,1098.4892666666667,10.1968,15.35252,14270.02,739.33333333333337,781.33333333333337,139.42666666666665,14.220333333333334,10.088325586632855,15.828325586632852,{"$f":"AVERAGE(Monthly!CD650:CD652)","v":144.33333333333334},{"$f":"AVERAGE(Monthly!CE650:CE652)","v":361.33333333333331},{"$f":"AVERAGE(Monthly!CF650:CF652)","v":4.7949865119356643},{"$f":"AVERAGE(Monthly!CG650:CG652)","v":2446.6666666666665},{"$f":"AVERAGE(Monthly!CH650:CH652)","v":4510},{"$f":"AVERAGE(Monthly!CI650:CI652)","v":6.5096708293324683},361.33333333333331,13814.1,905.73333333333323,515.33333333333337,11636.633333333331,6290.8666666666659,2822.2124333333336,313955.66666666669,842.65693333333331,76.3,65.833333333333343,null,null,null,null,null,228.80799999999999,229.25066666666666,null,null,null,null,null,103.86666666666667,33.666666666666671,63.733333333333327,14.699999999999998,8.1999999999999993,11926.333333333334,null,61,null,133938,null,414.33333333334303,null,0,19.8,{"$f":"AVERAGE(Monthly!DV650:DV652)","v":1342.5},{"$f":"AVERAGE(Monthly!DW650:DW652)","v":1342.9333333333334},{"$f":"AVERAGE(Monthly!DX650:DX652)","v":919.76666666666677},{"$f":"AVERAGE(Monthly!DY650:DY652)","v":218.56666666666663},{"$f":"AVERAGE(Monthly!DZ650:DZ652)","v":701.19999999999993},{"$f":"AVERAGE(Monthly!EA650:EA652)","v":486.60000000000008},{"$f":"AVERAGE(Monthly!EB650:EB652)","v":214.6},{"$f":"AVERAGE(Monthly!EC650:EC652)","v":423.16666666666669},null,null,null,null,null,106.44603739633871,109.34911735789812,111.35165819075799,null,null,null,null,null,201.80000000000004,181.93333333333331,162.63333333333335,null,null,null,null,null,3.25,0.15333333333333335,3.8000000000000003,5.0933333333333337,129.33333333333334,3.7966666666666669,8.666666666666667E-2,0.18666666666666668,0.28999999999999998,0.78666666666666663,1.8233333333333333,1.6366666666666665,null,null,null,null,null,1.0101666666666667,6.3305999999999996,13.531700000000001,1.2835666666666665,100.68306666666666,74.009366666666665,27582.166666666668,34634.5,23695.433333333334,null,null,null,null,null,93.48,{"$f":"AVERAGE(Monthly!GE650:GE652)","v":108.41666666666667},{"$f":"AVERAGE(Monthly!GF650:GF652)","v":3.8159888888888891},{"$f":"AVERAGE(Monthly!GG650:GG652)","v":3.9510000000000005},{"$f":"AVERAGE(Monthly!GH650:GH652)","v":684.41666666666663},{"$f":"AVERAGE(Monthly!GI650:GI652)","v":757.66666666666663},{"$f":"AVERAGE(Monthly!GJ650:GJ652)","v":2.3463333333333334},{"$f":"AVERAGE(Monthly!GK650:GK652)","v":3678.3333333333335},{"$f":"AVERAGE(Monthly!GL650:GL652)","v":3815.3333333333335}]
["12'Q3",16227.939,15380.802,15302.695,10424.133333333333,1242.2333333333333,2281.0666666666671,6909.7333333333327,1963.385,1537.884,437.26900000000001,70.56,2420.8519999999999,1974.05,-446.80199999999991,2940.8560000000002,-1079.547,null,null,null,null,null,75.099999999999994,77,1424.8545666666669,0.73,1686.634,1548.096,9.1,0,5.35,0.73,3.12,58157,5.4178257151321269E-2,117.9,116.8,116.3,100.04366666666665,99.900833333333324,1628365.6666666667,1.29,50.833333333333336,43.166666666666664,49.333333333333336,52.766666666666673,47.333333333333336,49.666666666666664,50.833333333333336,49.133333333333326,50.5,49.333333333333336,49.433333333333337,56.033333333333331,64394.666666666664,118.694,88.087999999999994,106.387,104.52200000000001,99.308999999999997,101.785,970.67200000000003,0.73,null,1204909,1073438,null,null,null,null,null,1100.8036,10.189819999999999,15.355309999999999,14364.43,780.33333333333337,864.33333333333337,142.81333333333333,14.292666666666667,9.7177210978701876,15.341054431203519,{"$f":"AVERAGE(Monthly!CD653:CD655)","v":143},{"$f":"AVERAGE(Monthly!CE653:CE655)","v":376.33333333333331},{"$f":"AVERAGE(Monthly!CF653:CF655)","v":4.5607326223911588},{"$f":"AVERAGE(Monthly!CG653:CG655)","v":2323.3333333333335},{"$f":"AVERAGE(Monthly!CH653:CH655)","v":4740},{"$f":"AVERAGE(Monthly!CI653:CI655)","v":5.886327177709255},376.33333333333331,13867.133333333331,878.5333333333333,549,11630.733333333332,6430.3,2860.1369333333332,314552.66666666669,843.94669999999996,74.966666666666654,65.733333333333334,null,null,null,null,null,229.84100000000001,230.28733333333332,null,null,null,null,null,104.13333333333333,33.633333333333333,63.6,14.733333333333334,8.0333333333333332,11959.333333333334,null,33,null,134355.66666666666,null,{"$f":"+DP225-DP224","v":417.66666666665697},null,0,18.233333333333334,{"$f":"AVERAGE(Monthly!DV653:DV655)","v":1355.0666666666666},{"$f":"AVERAGE(Monthly!DW653:DW655)","v":1377.0666666666666},{"$f":"AVERAGE(Monthly!DX653:DX655)","v":935.66666666666663},{"$f":"AVERAGE(Monthly!DY653:DY655)","v":223.79999999999998},{"$f":"AVERAGE(Monthly!DZ653:DZ655)","v":711.86666666666679},{"$f":"AVERAGE(Monthly!EA653:EA655)","v":494.09999999999997},{"$f":"AVERAGE(Monthly!EB653:EB655)","v":217.76666666666665},{"$f":"AVERAGE(Monthly!EC653:EC655)","v":441.39999999999992},null,null,null,null,null,106.67519448039559,109.40735585962437,111.3101846152254,null,null,null,null,null,202.39999999999998,183.13333333333333,163.26666666666668,null,null,null,null,null,3.25,0.14333333333333334,3.456666666666667,4.873333333333334,141.66666666666669,3.5500000000000003,0.10333333333333333,0.18333333333333335,0.26,0.66666666666666663,1.6433333333333333,1.46,null,null,null,null,null,0.99496666666666655,6.3503333333333343,13.155533333333333,1.2523,100.62426666666666,74.119100000000003,26017.766666666666,37701.066666666666,22813.733333333334,null,null,null,null,null,92.27,{"$f":"AVERAGE(Monthly!GE653:GE655)","v":109.61333333333334},{"$f":"AVERAGE(Monthly!GF653:GF655)","v":3.7293166666666662},{"$f":"AVERAGE(Monthly!GG653:GG655)","v":3.941333333333334},{"$f":"AVERAGE(Monthly!GH653:GH655)","v":751.5},{"$f":"AVERAGE(Monthly!GI653:GI655)","v":718.66666666666663},{"$f":"AVERAGE(Monthly!GJ653:GJ655)","v":2.8976666666666664},{"$f":"AVERAGE(Monthly!GK653:GK655)","v":3565.6666666666665},{"$f":"AVERAGE(Monthly!GL653:GL655)","v":4131.666666666667}]
["12'Q4",16297.349,15384.254000000001,15364.632,10453.233333333332,1266.6666666666667,2279.3333333333335,6918.7333333333327,1981.394,1563.924,459.81799999999998,15.465999999999999,2397.7809999999999,1971.7370000000001,-426.04399999999987,2912.2689999999998,-1071.623,null,null,null,null,null,75.2,77.066666666666663,1460.3358333333333,0.8,1663.9490000000001,1537.086,13,4.5,5.23,0.8,2.96,60439,5.5467706779855457E-2,118.5,117.2,116.7,100.62826666666666,100.40129999999999,1645498.3333333333,1.2833333333333334,49.699999999999996,43.666666666666664,46.166666666666664,50.800000000000004,48.833333333333336,49,46,51.4,54.333333333333336,52.9,51.20000000000001,59.20000000000001,66447,119.21599999999999,88.635000000000005,109.245,104.057,101.306,104.985,974.22299999999996,0.8,null,1222606,1089625,null,null,null,null,null,1103.7074666666665,9.8940300000000008,14.95702,14050.03,908,921,145.86000000000001,14.921666666666667,9.703734247539705,15.163734247539706,{"$f":"AVERAGE(Monthly!CD656:CD658)","v":149},{"$f":"AVERAGE(Monthly!CE656:CE658)","v":383},{"$f":"AVERAGE(Monthly!CF656:CF658)","v":4.676829743952859},{"$f":"AVERAGE(Monthly!CG656:CG658)","v":1976.6666666666667},{"$f":"AVERAGE(Monthly!CH656:CH658)","v":4896.666666666667},{"$f":"AVERAGE(Monthly!CI656:CI658)","v":4.8461282689794016},383,14316.866666666667,1174.5666666666666,598.33333333333337,11936.200000000003,6597.7333333333336,2905.9196999999999,315179,847.53110000000004,79.400000000000006,70.433333333333337,null,null,null,null,null,231.36933333333332,231.3596666666667,null,null,null,null,null,104.76666666666665,33.666666666666671,63.70000000000001,14.4,7.8,11957,null,{"$f":"+DL226-DL225","v":-2.3333333333339397},null,134865.33333333334,null,{"$f":"+DP226-DP225","v":509.66666666668607},null,0,18.733333333333334,{"$f":"AVERAGE(Monthly!DV656:DV658)","v":1363.6333333333332},{"$f":"AVERAGE(Monthly!DW656:DW658)","v":1371.8},{"$f":"AVERAGE(Monthly!DX656:DX658)","v":941.9666666666667},{"$f":"AVERAGE(Monthly!DY656:DY658)","v":223.16666666666666},{"$f":"AVERAGE(Monthly!DZ656:DZ658)","v":718.79999999999984},{"$f":"AVERAGE(Monthly!EA656:EA658)","v":500.73333333333335},{"$f":"AVERAGE(Monthly!EB656:EB658)","v":218.06666666666669},{"$f":"AVERAGE(Monthly!EC656:EC658)","v":429.83333333333331},null,null,null,null,null,107.08936563713165,109.07904428356537,110.80096711916521,null,null,null,null,null,202.26666666666665,183.43333333333331,163.26666666666668,null,null,null,null,null,3.25,0.16,3.5400000000000005,4.5733333333333333,{"$f":"+(FB226-FA226)*100","v":103.33333333333327},3.36,8.666666666666667E-2,0.17333333333333334,0.27,0.69333333333333336,1.7066666666666668,{"$f":"+FI226-FF226","v":1.5333333333333334},null,null,null,null,null,0.9913333333333334,6.2430999999999992,12.9422,1.2976666666666667,99.227999999999994,73.258766666666659,27086.933333333334,38219.466666666667,22943.333333333332,null,null,null,null,null,88.160000000000011,{"$f":"AVERAGE(Monthly!GE656:GE658)","v":110.08666666666666},{"$f":"AVERAGE(Monthly!GF656:GF658)","v":3.5711166666666667},{"$f":"AVERAGE(Monthly!GG656:GG658)","v":4.0183333333333335},{"$f":"AVERAGE(Monthly!GH656:GH658)","v":732.16666666666663},{"$f":"AVERAGE(Monthly!GI656:GI658)","v":760.33333333333337},{"$f":"AVERAGE(Monthly!GJ656:GJ658)","v":3.543333333333333},{"$f":"AVERAGE(Monthly!GK656:GK658)","v":3756.6666666666665},{"$f":"AVERAGE(Monthly!GL656:GL658)","v":4109}]
["13'Q1",16475.439999999999,15491.878000000001,15434.333000000001,10502.3,1297.1333333333332,2300.3666666666663,6918.5999999999995,2006.7380000000001,1594.7090000000001,475.90800000000002,49.628,2405.489,1991.13,-414.35899999999992,2880.5740000000001,-791.83600000000001,null,null,null,null,null,75.5,77.266666666666666,1491.7178666666666,0.95,1679.4860000000001,1547.1320000000001,11.5,15.4,4.9800000000000004,0.95,2.79,62025,5.5990510725534112E-2,119.1,117.9,117.4,101.37819999999999,101.17926666666666,1664310.3333333333,1.2833333333333334,53.333333333333336,51.166666666666664,47.5,53.6,53.333333333333336,52.666666666666664,50.666666666666664,54.166666666666664,57.5,54.466666666666669,51.466666666666669,57.233333333333327,67305.666666666672,119.349,87.495000000000005,106.714,104.286,98.552999999999997,102.328,1039.143,0.95,null,1242576,1107777,null,null,null,null,null,1108.5872666666667,10.275370000000001,15.559060000000001,13898.13,952.33333333333337,943.66666666666663,149.81,15.523333333333333,9.4733317632934284,14.886665096626762,{"$f":"AVERAGE(Monthly!CD659:CD661)","v":152},{"$f":"AVERAGE(Monthly!CE659:CE661)","v":443.33333333333331},{"$f":"AVERAGE(Monthly!CF659:CF661)","v":4.1144313775381312},{"$f":"AVERAGE(Monthly!CG659:CG661)","v":1866.6666666666667},{"$f":"AVERAGE(Monthly!CH659:CH661)","v":4926.666666666667},{"$f":"AVERAGE(Monthly!CI659:CI661)","v":4.5456039162239072},443.33333333333331,13904.200000000003,590.4,632,11437.800000000001,6734.7333333333336,2953.4241666666662,315661.66666666669,850.43456666666668,76.666666666666657,62.766666666666673,null,null,null,null,null,232.29866666666666,232.54899999999998,null,null,null,null,null,105.5,33.733333333333334,63.433333333333337,14.233333333333334,7.7333333333333334,11993.666666666666,null,{"$f":"+DL227-DL226","v":36.66666666666606},null,135517,null,{"$f":"+DP227-DP226","v":651.66666666665697},null,0,16.900000000000002,{"$f":"AVERAGE(Monthly!DV659:DV661)","v":1372.1666666666667},{"$f":"AVERAGE(Monthly!DW659:DW661)","v":1342.8666666666666},{"$f":"AVERAGE(Monthly!DX659:DX661)","v":930.30000000000007},{"$f":"AVERAGE(Monthly!DY659:DY661)","v":220.4},{"$f":"AVERAGE(Monthly!DZ659:DZ661)","v":709.9},{"$f":"AVERAGE(Monthly!EA659:EA661)","v":493.40000000000003},{"$f":"AVERAGE(Monthly!EB659:EB661)","v":216.5},{"$f":"AVERAGE(Monthly!EC659:EC661)","v":412.56666666666666},null,null,null,null,null,109.08047868133823,111.04079550287969,112.17546689774983,null,null,null,null,null,203.6,184.20000000000002,163.5,null,null,null,null,null,3.25,0.14333333333333334,3.8766666666666665,4.8099999999999996,{"$f":"+(FB227-FA227)*100","v":93.333333333333314},3.5033333333333334,8.666666666666667E-2,0.15333333333333332,0.26666666666666666,0.82666666666666666,1.95,{"$f":"+FI227-FF227","v":1.7966666666666666},null,null,null,null,null,1.0087666666666666,6.223066666666667,12.640433333333334,1.3201333333333334,99.80243333333334,74.87926666666668,27415.266666666666,32410.166666666668,22259.399999999998,null,null,null,null,null,94.353333333333339,{"$f":"AVERAGE(Monthly!GE659:GE661)","v":112.49333333333334},{"$f":"AVERAGE(Monthly!GF659:GF661)","v":3.6308500000000001},{"$f":"AVERAGE(Monthly!GG659:GG661)","v":4.0293333333333328},{"$f":"AVERAGE(Monthly!GH659:GH661)","v":667.33333333333337},{"$f":"AVERAGE(Monthly!GI659:GI661)","v":580.33333333333337},{"$f":"AVERAGE(Monthly!GJ659:GJ661)","v":3.4766666666666666},{"$f":"AVERAGE(Monthly!GK659:GK661)","v":3634.2833333333333},{"$f":"AVERAGE(Monthly!GL659:GL661)","v":3965.1}]
["13'Q2",16541.39,15521.558999999999,15459.141,10523.933333333332,1303.9333333333332,2305.4,6928.9666666666672,2018.9829999999999,1596.6469999999999,489.54,52.587000000000003,2436.5650000000001,2015.4680000000001,-421.09699999999998,2866.2310000000002,-530.93100000000004,null,null,null,null,null,75.2,77.233333333333334,1513.3041000000001,1.75,1658.1479999999999,1557.819,15.7,7.7,4.82,1.75,2.7,63949,{"$f":"AH228/BN228","v":5.7698102925280915E-2},119.7,118.5,118,101.74826666666667,101.05739999999999,1665116.6666666667,1.2866666666666668,50.966666666666661,49.166666666666664,45.166666666666664,49.666666666666664,53.166666666666664,55.166666666666664,48.666666666666664,51,50.666666666666664,51.833333333333336,49.866666666666667,55.833333333333336,68072.666666666672,119.726,87.882999999999996,108.22199999999999,104.116,100.07299999999999,103.944,1012.76,1.75,null,1242614,1108338,null,null,null,null,null,1120.9867000000002,10.209519999999999,15.49366,13888.72,866,994,155.91666666666666,15.493666666666668,8.9410350257996676,14.214368359132999,{"$f":"AVERAGE(Monthly!CD662:CD664)","v":161},{"$f":"AVERAGE(Monthly!CE662:CE664)","v":448},{"$f":"AVERAGE(Monthly!CF662:CF664)","v":4.317204076775492},{"$f":"AVERAGE(Monthly!CG662:CG664)","v":2153.3333333333335},{"$f":"AVERAGE(Monthly!CH662:CH664)","v":5100},{"$f":"AVERAGE(Monthly!CI662:CI664)","v":5.0677684110600971},448,14017.166666666666,638.36666666666667,595,11504.4,6837.9666666666672,2991.3301666666666,316134,851.38136666666662,81.666666666666671,75.13333333333334,null,null,null,null,null,232.02833333333334,233.08866666666665,null,null,null,null,null,105.93333333333332,33.700000000000003,63.4,14,7.5333333333333341,12003.666666666666,null,{"$f":"+DL228-DL227","v":10},null,136100.66666666666,null,{"$f":"+DP228-DP227","v":583.66666666665697},null,0,17.066666666666666,{"$f":"AVERAGE(Monthly!DV662:DV664)","v":1379.5333333333335},{"$f":"AVERAGE(Monthly!DW662:DW664)","v":1381.4333333333334},{"$f":"AVERAGE(Monthly!DX662:DX664)","v":942.13333333333333},{"$f":"AVERAGE(Monthly!DY662:DY664)","v":225},{"$f":"AVERAGE(Monthly!DZ662:DZ664)","v":717.13333333333333},{"$f":"AVERAGE(Monthly!EA662:EA664)","v":499.09999999999997},{"$f":"AVERAGE(Monthly!EB662:EB664)","v":218.03333333333333},{"$f":"AVERAGE(Monthly!EC662:EC664)","v":439.3},null,null,null,null,null,110.32870537661172,113.15310439771145,113.87432347433057,null,null,null,null,null,203.9666666666667,184.9,164,null,null,null,null,null,3.25,0.11666666666666665,3.9633333333333334,4.8366666666666669,{"$f":"+(FB228-FA228)*100","v":87.333333333333357},3.686666666666667,5.000000000000001E-2,0.12666666666666668,0.27,0.91666666666666663,1.9966666666666668,{"$f":"+FI228-FF228","v":1.87},null,null,null,null,null,1.0232333333333334,6.1539666666666664,12.489666666666666,1.3068333333333333,100.85613333333333,76.494233333333341,28044,35211.833333333336,23925.333333333332,null,null,null,null,null,94.223333333333343,{"$f":"AVERAGE(Monthly!GE662:GE664)","v":102.57666666666667},{"$f":"AVERAGE(Monthly!GF662:GF664)","v":3.6495944444444444},{"$f":"AVERAGE(Monthly!GG662:GG664)","v":3.8756000000000004},{"$f":"AVERAGE(Monthly!GH662:GH664)","v":644.58333333333337},{"$f":"AVERAGE(Monthly!GI662:GI664)","v":754.33333333333337},{"$f":"AVERAGE(Monthly!GJ662:GJ664)","v":4.0133333333333336},{"$f":"AVERAGE(Monthly!GK662:GK664)","v":3865.8666666666668},{"$f":"AVERAGE(Monthly!GL662:GL664)","v":4216.5166666666664}]
["13'Q3",16749.348999999998,15641.335999999999,15516.561,10573.133333333333,1316.9333333333334,2319.2000000000003,6952.166666666667,2029.566,1590.2760000000001,496.75299999999999,109.018,2447.0619999999999,2030.9639999999999,-416.09799999999996,2851.9549999999999,-709.67100000000005,null,null,null,null,null,74.900000000000006,77.2,1535.3848,2.0499999999999998,1685.6010000000001,1561.479,21.2,24.3,4.49,2.0499999999999998,1.92,65804,{"$f":"AH229/BN229","v":5.8869576030624635E-2},120.3,119,118.4,101.98156666666667,100.82143333333333,1677542.6666666667,1.29,54.933333333333337,47,44.333333333333336,54.366666666666667,53.666666666666664,56.833333333333336,48.166666666666664,60.666666666666664,53.166666666666664,63.333333333333336,52.333333333333336,57.033333333333331,66295,118.89700000000001,88.673000000000002,108.51600000000001,104.541,99.808000000000007,103.803,1027.58,2.0499999999999998,null,1253290,1117793,null,null,null,null,null,1127.4423666666667,10.15897,15.43737,13844.6,883,982.66666666666663,161.27666666666667,15.486666666666666,8.764816449049162,13.85148311571583,{"$f":"AVERAGE(Monthly!CD665:CD667)","v":175.66666666666666},{"$f":"AVERAGE(Monthly!CE665:CE667)","v":385},{"$f":"AVERAGE(Monthly!CF665:CF667)","v":5.4746760518317075},{"$f":"AVERAGE(Monthly!CG665:CG667)","v":2206.6666666666665},{"$f":"AVERAGE(Monthly!CH665:CH667)","v":5323.333333333333},{"$f":"AVERAGE(Monthly!CI665:CI667)","v":4.9741542087279749},385,14135.333333333334,661.1,601.33333333333337,11571.733333333332,6967.8666666666659,3034.2710666666667,316731.33333333331,852.66783333333331,81.566666666666663,81,null,null,null,null,null,233.28133333333335,234.27833333333334,null,null,null,null,null,106.23333333333333,33.633333333333333,63.29999999999999,13.699999999999998,7.2666666666666666,12009.666666666666,null,6,null,136643.33333333334,null,542.66666666668607,null,0,16.500000000000004,{"$f":"AVERAGE(Monthly!DV665:DV667)","v":1384},{"$f":"AVERAGE(Monthly!DW665:DW667)","v":1405.3999999999999},{"$f":"AVERAGE(Monthly!DX665:DX667)","v":948.36666666666679},{"$f":"AVERAGE(Monthly!DY665:DY667)","v":228.13333333333335},{"$f":"AVERAGE(Monthly!DZ665:DZ667)","v":720.23333333333323},{"$f":"AVERAGE(Monthly!EA665:EA667)","v":498.13333333333338},{"$f":"AVERAGE(Monthly!EB665:EB667)","v":222.1},{"$f":"AVERAGE(Monthly!EC665:EC667)","v":457.03333333333336},null,null,null,null,null,111.27537606534106,113.8544151034008,114.45870971940202,null,null,null,null,null,204.16666666666666,185.36666666666667,164.33333333333334,null,null,null,null,null,3.25,8.3333333333333329E-2,4.5066666666666668,5.4033333333333333,89.666666666666657,4.4400000000000004,3.3333333333333333E-2,0.12333333333333334,0.3666666666666667,1.5066666666666666,2.7100000000000004,2.5866666666666669,null,null,null,null,null,1.0383666666666667,6.1251333333333333,12.909599999999999,1.3255333333333335,101.94923333333334,76.513466666666673,27378.733333333334,39368.700000000004,23612.5,null,null,null,null,null,105.84333333333335,{"$f":"AVERAGE(Monthly!GE665:GE667)","v":110.33483333333334},{"$f":"AVERAGE(Monthly!GF665:GF667)","v":3.6373833333333336},{"$f":"AVERAGE(Monthly!GG665:GG667)","v":3.9208833333333337},{"$f":"AVERAGE(Monthly!GH665:GH667)","v":926.16666666666663},{"$f":"AVERAGE(Monthly!GI665:GI667)","v":1059.6666666666667},{"$f":"AVERAGE(Monthly!GJ665:GJ667)","v":3.5566666666666671},{"$f":"AVERAGE(Monthly!GK665:GK667)","v":3827.2000000000003},{"$f":"AVERAGE(Monthly!GL665:GL667)","v":4540.5}]
["13'Q4",16999.887999999999,15793.928,15674.255999999999,10662.2,1332.8999999999999,2339.6,7005.6333333333341,2076.2919999999999,1634.694,491.08600000000001,103.59399999999999,2456.623,2088.5509999999999,-368.07200000000012,2831.451,-542.91,null,null,null,null,null,75.2,77.600000000000009,1560.6996333333334,2.23,1730.336,1594.232,3.8,0,4.3899999999999997,2.23,1.78,68179,{"$f":"AH230/BN230","v":6.0626997994780205E-2},120.8,119.6,119.1,102.7931,101.3657,1704868.6666666667,1.29,55.766666666666673,52.333333333333336,46.5,55.166666666666664,57.166666666666664,55.166666666666664,50,62.866666666666674,53.833333333333336,61.766666666666673,53.866666666666674,56.466666666666669,66571.666666666672,118.623,88.683000000000007,109.172,105.676,100.032,103.309,1045.4780000000001,2.23,null,1263731,1124565,null,null,null,null,null,1131.0203333333332,10.170120000000001,15.47105,13812.83,1011.6666666666666,1028.6666666666667,165.86333333333334,15.614666666666665,8.1514908233951768,13.004824156728512,{"$f":"AVERAGE(Monthly!CD668:CD670)","v":184.66666666666666},{"$f":"AVERAGE(Monthly!CE668:CE670)","v":443.66666666666669},{"$f":"AVERAGE(Monthly!CF668:CF670)","v":4.9950179886118384},{"$f":"AVERAGE(Monthly!CG668:CG670)","v":2006.6666666666667},{"$f":"AVERAGE(Monthly!CH668:CH670)","v":4943.333333333333},{"$f":"AVERAGE(Monthly!CI668:CI670)","v":4.8706674780474586},443.66666666666669,14238,590.56666666666661,652.66666666666663,11596.633333333333,7102.0666666666666,3081.7836666666662,317377.66666666669,856.54169999999988,76.933333333333337,73.966666666666669,null,null,null,null,null,234.18733333333333,235.31833333333336,null,null,null,null,null,106.76666666666665,33.6,62.9,13.266666666666666,6.9333333333333336,12071,null,{"$f":"+DL230-DL229","v":61.33333333333394},null,137256.66666666666,null,{"$f":"+DP230-DP229","v":613.33333333331393},null,0,16.866666666666667,{"$f":"AVERAGE(Monthly!DV668:DV706)","v":1437.4000000000005},{"$f":"AVERAGE(Monthly!DW668:DW706)","v":1437.7512820512825},{"$f":"AVERAGE(Monthly!DX668:DX706)","v":985.85384615384601},{"$f":"AVERAGE(Monthly!DY668:DY706)","v":238.55384615384611},{"$f":"AVERAGE(Monthly!DZ668:DZ706)","v":747.29230769230765},{"$f":"AVERAGE(Monthly!EA668:EA706)","v":504.55384615384628},{"$f":"AVERAGE(Monthly!EB668:EB706)","v":242.72769230769225},{"$f":"AVERAGE(Monthly!EC668:EC706)","v":451.91025641025641},null,null,null,null,null,112.85626201992292,115.74510858023379,116.1065842466964,null,null,null,null,null,201.9,185.93333333333337,165,null,null,null,null,null,3.25,8.666666666666667E-2,4.5933333333333337,5.3566666666666665,{"$f":"+(FB230-FA230)*100","v":76.333333333333272},4.3033333333333337,6.3333333333333339E-2,0.12333333333333334,0.32666666666666666,1.4400000000000002,2.7466666666666666,{"$f":"+FI230-FF230","v":2.6233333333333331},null,null,null,null,null,1.0496000000000001,6.0899666666666663,13.0204,1.3615000000000002,101.40333333333335,75.761600000000001,27996.5,39819.333333333336,23721.433333333331,null,null,null,null,null,97.34333333333332,{"$f":"AVERAGE(Monthly!GE668:GE670)","v":109.21},{"$f":"AVERAGE(Monthly!GF668:GF670)","v":3.3620666666666672},{"$f":"AVERAGE(Monthly!GG668:GG670)","v":3.8686500000000001},{"$f":"AVERAGE(Monthly!GH668:GH670)","v":1025.25},{"$f":"AVERAGE(Monthly!GI668:GI670)","v":992.33333333333337},{"$f":"AVERAGE(Monthly!GJ668:GJ670)","v":3.8566666666666669},{"$f":"AVERAGE(Monthly!GK668:GK670)","v":3870.3666666666668},{"$f":"AVERAGE(Monthly!GL668:GL670)","v":4512.2333333333336}]
["14'Q1",17031.324000000001,15757.57,15707.413,10713.366666666667,1350.9333333333332,2344.8666666666668,7035.3,2112.5520000000001,1649.0200000000002,487.60199999999998,38.72,2486.7570000000001,2075.7620000000002,-410.99499999999989,2827.201,-589.84199999999998,null,null,null,null,null,75,77.966666666666669,1612.8009333333332,2.36,1650.4590000000001,1479.492,11.5,14.1,4.29,2.36,1.71,70492,6.2190171779043679E-2,121.3,119.9,119.4,103.5967,101.2343,1727801,1.3,54,52.5,44.166666666666664,51.9,54.5,53.833333333333336,49.666666666666664,53.6,59.833333333333336,52.966666666666669,55.6,55.866666666666667,67633.666666666672,119.133,90.683999999999997,110.986,104.774,101.038,105.929,997.90099999999995,2.36,null,1272637,1133491,null,null,null,null,null,1135.5614333333333,10.079409999999999,15.3651,13727.17,941,1037,168.78,15.909666666666666,8.122015126957665,12.788681793624333,{"$f":"AVERAGE(Monthly!CD671:CD673)","v":190},{"$f":"AVERAGE(Monthly!CE671:CE673)","v":426.66666666666669},{"$f":"AVERAGE(Monthly!CF671:CF673)","v":5.351172223131627},{"$f":"AVERAGE(Monthly!CG671:CG673)","v":1913.3333333333333},{"$f":"AVERAGE(Monthly!CH671:CH673)","v":4676.666666666667},{"$f":"AVERAGE(Monthly!CI671:CI673)","v":4.9092647665276337},426.66666666666669,14485.866666666669,673.63333333333333,609.33333333333337,11720.433333333334,7208.2,3132.639266666667,317919.33333333331,863.04766666666671,80.933333333333337,80.533333333333331,null,null,null,null,null,235.67833333333337,236.29533333333333,null,null,null,null,null,107.03333333333335,33.533333333333339,62.966666666666669,12.633333333333333,6.666666666666667,12107.666666666666,null,{"$f":"+DL231-DL230","v":36.66666666666606},null,137755.33333333334,null,{"$f":"+DP231-DP230","v":498.66666666668607},null,0,15.666666666666666,{"$f":"AVERAGE(Monthly!DV671:DV706)","v":1441.291666666667},{"$f":"AVERAGE(Monthly!DW671:DW706)","v":1440.9972222222225},{"$f":"AVERAGE(Monthly!DX671:DX706)","v":988.33888888888896},{"$f":"AVERAGE(Monthly!DY671:DY706)","v":239.20277777777781},{"$f":"AVERAGE(Monthly!DZ671:DZ706)","v":749.12777777777774},{"$f":"AVERAGE(Monthly!EA671:EA706)","v":505.01666666666671},{"$f":"AVERAGE(Monthly!EB671:EB706)","v":244.0994444444444},{"$f":"AVERAGE(Monthly!EC671:EC706)","v":452.67222222222222},null,null,null,null,null,112.23003770814526,115.07332892900581,115.59885771687655,null,null,null,null,null,205.5,187.63333333333333,165.86666666666667,null,null,null,null,null,3.25,7.3333333333333348E-2,4.4400000000000004,5.1166666666666663,{"$f":"+(FB231-FA231)*100","v":67.666666666666586},4.3566666666666665,4.6666666666666669E-2,0.12333333333333334,0.37333333333333335,1.6033333333333333,2.7633333333333336,{"$f":"+FI231-FF231","v":2.64},null,null,null,null,null,1.1033666666666666,6.1017999999999999,13.235900000000001,1.3703666666666667,102.90853333333332,76.870999999999995,27948.366666666669,33499.5,23136.766666666666,null,null,null,null,null,98.74666666666667,{"$f":"AVERAGE(Monthly!GE671:GE673)","v":108.16666666666667},{"$f":"AVERAGE(Monthly!GF671:GF673)","v":3.4773499999999999},{"$f":"AVERAGE(Monthly!GG671:GG673)","v":3.9591166666666666},{"$f":"AVERAGE(Monthly!GH671:GH673)","v":909.83333333333337},{"$f":"AVERAGE(Monthly!GI671:GI673)","v":788.33333333333337},{"$f":"AVERAGE(Monthly!GJ671:GJ673)","v":4.7299999999999995},{"$f":"AVERAGE(Monthly!GK671:GK673)","v":3731.6},{"$f":"AVERAGE(Monthly!GL671:GL673)","v":4240.3833333333332}]
["14'Q2",17320.920999999998,15935.825000000001,15852.34,10805.1,1393.5333333333335,2361.9666666666667,7072.3,2160.6309999999999,1683.5839999999998,502.95600000000002,69.897000000000006,2547.962,2121.8020000000001,-426.15999999999985,2834.6680000000001,-607.04,null,null,null,null,null,75.8,78.833333333333329,1664.2370000000001,2.02,1736.5170000000001,1622.08,14.5,8.5,4.2,2.02,1.64,73480,{"$f":"AH232/BN232","v":6.3308097974192554E-2},122.6,120.9,120.2,105.11013333333334,102.37376666666667,1746303.3333333333,1.3,55.5,52,45,53.433333333333337,56,56.5,53,56.966666666666669,58.166666666666664,58.9,53.666666666666664,60.5,67161.333333333328,119.47799999999999,89.658000000000001,110.297,105.386,99.948999999999998,104.66,1059.53,2.02,null,1303103,1160673,null,null,null,null,null,1154.2192000000002,10.00568,15.28243,13696.23,984.33333333333337,1034,170.32000000000002,16.650333333333332,8.246756312788099,12.586756312788099,{"$f":"AVERAGE(Monthly!CD674:CD676)","v":194},{"$f":"AVERAGE(Monthly!CE674:CE676)","v":423},{"$f":"AVERAGE(Monthly!CF674:CF676)","v":5.51704766334674},{"$f":"AVERAGE(Monthly!CG674:CG676)","v":2256.6666666666665},{"$f":"AVERAGE(Monthly!CH674:CH676)","v":4886.666666666667},{"$f":"AVERAGE(Monthly!CI674:CI676)","v":5.5429727440929097},423,14713.533333333333,739.4666666666667,628,11871.5,7319.3666666666659,3192.5251666666663,318446.66666666669,874.90869999999995,82.833333333333329,83.433333333333337,null,null,null,null,null,236.77733333333333,237.50099999999998,null,null,null,null,null,108.3,33.700000000000003,62.79999999999999,12.133333333333333,6.2,12154.333333333334,null,{"$f":"+DL232-DL231","v":46.666666666667879},null,138581.33333333334,null,{"$f":"+DP232-DP231","v":826},null,0,14.633333333333333,{"$f":"AVERAGE(Monthly!DV674:DV706)","v":1445.3909090909094},{"$f":"AVERAGE(Monthly!DW674:DW706)","v":1447.7848484848485},{"$f":"AVERAGE(Monthly!DX674:DX706)","v":992.55151515151522},{"$f":"AVERAGE(Monthly!DY674:DY706)","v":240.65454545454548},{"$f":"AVERAGE(Monthly!DZ674:DZ706)","v":751.88787878787878},{"$f":"AVERAGE(Monthly!EA674:EA706)","v":506.06363636363642},{"$f":"AVERAGE(Monthly!EB674:EB706)","v":245.81151515151507},{"$f":"AVERAGE(Monthly!EC674:EC706)","v":455.24848484848485},null,null,null,null,null,113.84962244887326,114.82120940930942,115.3163021247023,null,null,null,null,null,208.20000000000002,188.26666666666668,166.26666666666665,null,null,null,null,null,3.25,9.3333333333333338E-2,4.2166666666666668,4.82,{"$f":"+(FB232-FA232)*100","v":60.33333333333335},4.2300000000000004,3.3333333333333333E-2,0.10333333333333335,0.42,1.6566666666666665,2.6233333333333331,{"$f":"+FI232-FF232","v":2.5199999999999996},null,null,null,null,null,1.0905333333333334,6.231066666666667,12.9977,1.3714666666666666,102.37736666666667,76.339366666666663,29885.633333333331,38081.799999999996,25052.266666666666,null,null,null,null,null,103.34666666666668,{"$f":"AVERAGE(Monthly!GE674:GE676)","v":109.7},{"$f":"AVERAGE(Monthly!GF674:GF676)","v":3.7504166666666667},{"$f":"AVERAGE(Monthly!GG674:GG676)","v":3.9377333333333335},{"$f":"AVERAGE(Monthly!GH674:GH676)","v":861.25},{"$f":"AVERAGE(Monthly!GI674:GI676)","v":953.66666666666663},{"$f":"AVERAGE(Monthly!GJ674:GJ676)","v":4.58},{"$f":"AVERAGE(Monthly!GK674:GK676)","v":3962.4166666666665},{"$f":"AVERAGE(Monthly!GL674:GL676)","v":4556.6833333333334}]
["14'Q3",17622.257000000001,16139.513000000001,16040.282999999999,10909.866666666667,1419.6666666666667,2379.3666666666668,7135.9333333333334,2215.096,1740.1559999999999,508.48500000000001,85.584000000000003,2541.77,2125.11,-416.65999999999985,2849.5070000000001,-626.66899999999998,null,null,null,null,null,76.099999999999994,78.800000000000011,1711.4656333333332,1.92,1786.2149999999999,1698.077,7.7,25,3.98,1.92,1.1599999999999999,75883,{"$f":"AH233/BN233","v":6.4935353882831753E-2},123.2,121.7,121.1,105.54993333333334,102.72649999999999,1760307.6666666667,1.3033333333333335,56.5,49.666666666666664,45.666666666666664,56.966666666666669,53.833333333333336,53.666666666666664,50.666666666666664,63.366666666666667,59,63.433333333333337,53.4,61.266666666666673,69101.333333333328,119.565,90.138000000000005,111.166,106.53,100.467,104.352,1125.335,1.92,null,1313929,1168593,null,null,null,null,null,1170.7192000000002,9.9494199999999999,15.237270000000001,13632.77,1022.6666666666666,1053.3333333333333,170.65333333333334,16.661333333333332,7.860842826018458,12.130842826018457,{"$f":"AVERAGE(Monthly!CD677:CD679)","v":205.33333333333334},{"$f":"AVERAGE(Monthly!CE677:CE679)","v":439},{"$f":"AVERAGE(Monthly!CF677:CF679)","v":5.6319138414240397},{"$f":"AVERAGE(Monthly!CG677:CG679)","v":2320},{"$f":"AVERAGE(Monthly!CH677:CH679)","v":5056.666666666667},{"$f":"AVERAGE(Monthly!CI677:CI679)","v":5.5062786866225784},439,14924.833333333334,757.4,649.66666666666663,11995.300000000001,7443.833333333333,3247.4992333333334,319068.66666666669,882.82193333333328,82.966666666666669,90.899999999999991,null,null,null,null,null,237.38866666666664,238.43533333333335,null,null,null,null,null,109,33.733333333333334,62.866666666666667,12,6.1000000000000005,12205.666666666666,null,{"$f":"+DL233-DL232","v":51.333333333332121},null,139314.66666666666,null,{"$f":"+DP233-DP232","v":733.33333333331393},null,0,13.299999999999999,{"$f":"AVERAGE(Monthly!DV677:DV706)","v":1448.85},{"$f":"AVERAGE(Monthly!DW677:DW706)","v":1451.2866666666666},{"$f":"AVERAGE(Monthly!DX677:DX706)","v":995.35},{"$f":"AVERAGE(Monthly!DY677:DY706)","v":241.56333333333342},{"$f":"AVERAGE(Monthly!DZ677:DZ706)","v":753.78666666666675},{"$f":"AVERAGE(Monthly!EA677:EA706)","v":506.56333333333339},{"$f":"AVERAGE(Monthly!EB677:EB706)","v":247.20933333333326},{"$f":"AVERAGE(Monthly!EC677:EC706)","v":455.94333333333333},null,null,null,null,null,115.79863595425255,116.33923769646924,116.56779626123861,null,null,null,null,null,207.13333333333333,189.03333333333333,166.7,null,null,null,null,null,3.25,9.0000000000000011E-2,4.1166666666666671,4.7400000000000011,{"$f":"+(FB233-FA233)*100","v":62.3333333333334},4.1366666666666667,2.6666666666666668E-2,0.11,0.51666666666666661,1.7,2.4966666666666666,{"$f":"+FI233-FF233","v":2.3866666666666667},null,null,null,null,null,1.0891999999999999,6.1635666666666671,13.124000000000001,1.3245666666666667,103.25876666666666,77.822866666666656,29727.133333333331,41838.73333333333,25063.8,null,null,null,null,null,97.779999999999987,{"$f":"AVERAGE(Monthly!GE677:GE679)","v":101.82333333333334},{"$f":"AVERAGE(Monthly!GF677:GF679)","v":3.5790000000000002},{"$f":"AVERAGE(Monthly!GG677:GG679)","v":3.8379999999999996},{"$f":"AVERAGE(Monthly!GH677:GH679)","v":968.75},{"$f":"AVERAGE(Monthly!GI677:GI679)","v":975.33333333333337},{"$f":"AVERAGE(Monthly!GJ677:GJ679)","v":3.9466666666666668},{"$f":"AVERAGE(Monthly!GK677:GK679)","v":3856.2833333333333},{"$f":"AVERAGE(Monthly!GL677:GL679)","v":4584.0999999999995}]
["14'Q4",17735.933000000001,16220.222,16131.584999999999,11045.199999999999,1448.2333333333336,2405.6666666666665,7218.666666666667,2202.4369999999999,1721.9589999999998,521.80499999999995,76.905000000000001,2607.7249999999999,2150.7959999999998,-456.92900000000009,2845.038,-617.09900000000005,null,null,null,null,null,76.400000000000006,78.899999999999991,1751.4307666666666,1.85,1801.848,1741.367,1.9,5.5,3.96,1.85,1.1399999999999999,77755,{"$f":"AH234/BN234","v":6.6343460405953208E-2},123.8,122.3,121.7,106.26096666666666,103.14640000000001,1769766,1.3266666666666669,56.566666666666663,53.5,47.5,55.466666666666669,52.833333333333336,55.166666666666664,49.833333333333336,63.20000000000001,45.5,62.29999999999999,57.199999999999996,61,65202,118.926,91.766999999999996,112.563,106.03700000000001,101.904,106.154,1120.723,1.85,null,1321825,1172007,null,null,null,null,null,1181.9673333333333,9.8893400000000007,15.187110000000001,13576.88,1056.3333333333333,1088.6666666666667,173.20000000000002,16.587666666666667,6.8894864514244256,10.879486451424427,{"$f":"AVERAGE(Monthly!CD680:CD682)","v":210.33333333333334},{"$f":"AVERAGE(Monthly!CE680:CE682)","v":470.66666666666669},{"$f":"AVERAGE(Monthly!CF680:CF682)","v":5.371536916254672},{"$f":"AVERAGE(Monthly!CG680:CG682)","v":2060},{"$f":"AVERAGE(Monthly!CH680:CH682)","v":5060},{"$f":"AVERAGE(Monthly!CI680:CI682)","v":4.8846978106369869},470.66666666666669,15148.766666666668,784.73333333333346,699.33333333333337,12169.6,7538.0666666666657,3294.7665666666667,319722.66666666669,888.39269999999999,89.766666666666652,92.733333333333334,null,null,null,null,null,236.97133333333332,239.35766666666666,null,null,null,null,null,109.7,33.766666666666666,62.833333333333336,11.366666666666665,5.7,12272.666666666666,null,67,null,140098,null,783.33333333334303,null,0,13.1,{"$f":"AVERAGE(Monthly!DV680:DV682)","v":1436.8999999999999},{"$f":"AVERAGE(Monthly!DW680:DW682)","v":1444.9666666666665},{"$f":"AVERAGE(Monthly!DX680:DX682)","v":987.16666666666663},{"$f":"AVERAGE(Monthly!DY680:DY682)","v":236.46666666666667},{"$f":"AVERAGE(Monthly!DZ680:DZ682)","v":750.69999999999993},{"$f":"AVERAGE(Monthly!EA680:EA682)","v":508.0333333333333},{"$f":"AVERAGE(Monthly!EB680:EB682)","v":242.66666666666666},{"$f":"AVERAGE(Monthly!EC680:EC682)","v":457.8},null,null,null,null,null,116.30665518920293,116.98388684945618,117.39932156772674,null,null,null,null,null,200.43333333333331,189.63333333333335,166.93333333333334,null,null,null,null,null,3.25,9.9999999999999992E-2,3.8766666666666665,4.74,{"$f":"+(FB234-FA234)*100","v":86.333333333333371},3.9666666666666663,2.3333333333333334E-2,0.14666666666666667,0.54,1.6033333333333333,2.2799999999999998,{"$f":"+FI234-FF234","v":2.1333333333333333},null,null,null,null,null,1.1356333333333335,6.1462000000000003,13.871600000000001,1.2493000000000001,108.01673333333333,82.547066666666666,28867.566666666666,42738.266666666663,25323.8,null,null,null,null,null,73.16,{"$f":"AVERAGE(Monthly!GE680:GE682)","v":76.403333333333336},{"$f":"AVERAGE(Monthly!GF680:GF682)","v":2.9613333333333336},{"$f":"AVERAGE(Monthly!GG680:GG682)","v":3.5796666666666663},{"$f":"AVERAGE(Monthly!GH680:GH682)","v":876.41666666666663},{"$f":"AVERAGE(Monthly!GI680:GI682)","v":828},{"$f":"AVERAGE(Monthly!GJ680:GJ682)","v":3.8466666666666671},{"$f":"AVERAGE(Monthly!GK680:GK682)","v":3836.5333333333333},{"$f":"AVERAGE(Monthly!GL680:GL682)","v":4517.916666666667}]
["15'Q1",17874.715,16349.97,16202.290999999999,11145.300000000001,1475.5333333333335,2420.2000000000003,7279.6333333333341,2214.6959999999999,1736.7629999999999,536.077,132.21600000000001,2650.5210000000002,2126.3780000000002,-524.14300000000003,2855.7260000000001,-554.04200000000003,null,null,null,null,null,76,77.833333333333329,1809.0035,1.76,1679.364,1653.663,1.8,5.7,3.66,1.76,1.1599999999999999,80344,{"$f":"AH235/BN235","v":6.9220715555276036E-2},124.5,123.2,122.6,105.3738,102.5595,1775069.6666666667,1.3733333333333333,53.166666666666664,49,44.833333333333336,51.833333333333336,48.5,54,51.666666666666664,52.4,36.333333333333336,54.666666666666664,52.566666666666663,60.133333333333333,65376,118.371,92.194000000000003,113.49,106.748,103.407,106.315,998.49400000000003,1.76,null,1312307,1160693,null,null,null,null,null,1189.2808666666667,9.93248,15.28557,13574.48,987.33333333333337,1091.6666666666667,176.52333333333334,16.852333333333334,5.4421628698990139,9.3154962032323461,{"$f":"AVERAGE(Monthly!CD683:CD685)","v":205.33333333333334},{"$f":"AVERAGE(Monthly!CE683:CE685)","v":517.66666666666663},{"$f":"AVERAGE(Monthly!CF683:CF685)","v":4.7742944987718197},{"$f":"AVERAGE(Monthly!CG683:CG685)","v":1923.3333333333333},{"$f":"AVERAGE(Monthly!CH683:CH685)","v":5050},{"$f":"AVERAGE(Monthly!CI683:CI685)","v":4.5697314107770355},517.66666666666663,15301.033333333333,809.66666666666663,639.66666666666663,12297.666666666666,7699.5999999999995,3351.7396666666668,320247.66666666669,894.08626666666669,95.5,101.33333333333333,null,null,null,null,null,235.46366666666668,240.30966666666666,null,null,null,null,null,110.06666666666666,33.700000000000003,62.766666666666673,11.066666666666668,5.5333333333333341,12308,null,{"$f":"+DL235-DL234","v":35.33333333333394},null,140793.33333333334,null,{"$f":"+DP235-DP234","v":695.33333333334303},null,0,12.633333333333333,{"$f":"AVERAGE(Monthly!DV683:DV685)","v":1446.7333333333333},{"$f":"AVERAGE(Monthly!DW683:DW685)","v":1417.3333333333333},{"$f":"AVERAGE(Monthly!DX683:DX685)","v":977.6},{"$f":"AVERAGE(Monthly!DY683:DY685)","v":233.33333333333334},{"$f":"AVERAGE(Monthly!DZ683:DZ685)","v":744.26666666666677},{"$f":"AVERAGE(Monthly!EA683:EA685)","v":499.83333333333331},{"$f":"AVERAGE(Monthly!EB683:EB685)","v":244.43333333333331},{"$f":"AVERAGE(Monthly!EC683:EC685)","v":439.73333333333335},null,null,null,null,null,117.61198375723333,118.00499351539648,118.35295961619497,null,null,null,null,null,191.53333333333333,191.20000000000002,168.03333333333333,null,null,null,null,null,3.25,0.11,3.5700000000000003,4.5,{"$f":"+(FB235-FA235)*100","v":92.999999999999972},3.73,2.6666666666666668E-2,0.22333333333333336,0.60333333333333339,1.4533333333333331,1.9666666666666668,{"$f":"+FI235-FF235","v":1.7433333333333334},null,null,null,null,null,1.2413000000000001,6.2361666666666666,14.950566666666667,1.1261333333333334,114.4055,89.423799999999986,24957.7,37095.299999999996,23538.866666666669,null,null,null,null,null,48.54,{"$f":"AVERAGE(Monthly!GE683:GE685)","v":53.916666666666664},{"$f":"AVERAGE(Monthly!GF683:GF685)","v":2.3516666666666666},{"$f":"AVERAGE(Monthly!GG683:GG685)","v":2.9173333333333336},{"$f":"AVERAGE(Monthly!GH683:GH685)","v":838},{"$f":"AVERAGE(Monthly!GI683:GI685)","v":805.66666666666663},{"$f":"AVERAGE(Monthly!GJ683:GJ685)","v":2.81},{"$f":"AVERAGE(Monthly!GK683:GK685)","v":3989.1166666666668},{"$f":"AVERAGE(Monthly!GL683:GL685)","v":4436.833333333333}]
["15'Q2",18093.223999999998,16460.888999999999,16338.632,11227.966666666667,1506.3333333333333,2435.166666666667,7320.5333333333328,2230.6970000000001,1747.3670000000002,551.12199999999996,105.559,2671.9949999999999,2145.7809999999999,-526.21399999999994,2879.8850000000002,-590.95100000000002,null,null,null,null,null,75.900000000000006,76.8,1863.6895000000002,1.08,1744.1569999999999,1658.4860000000001,7.8,4.0999999999999996,3.47,1.08,1.1100000000000001,83370,{"$f":"AH236/BN236","v":7.0673325121879058E-2},124.2,123.2,122.8,104.31313333333334,102.47303333333332,1790586,1.3733333333333333,52.6,50,46,51.833333333333336,50.333333333333336,54.166666666666664,51.333333333333336,55.1,46.5,54.833333333333336,49.866666666666674,60.9,64071.333333333336,118.262,93.069000000000003,114.485,107.081,103.715,106.91500000000001,1036.972,1.08,null,1334659,1179653,null,null,null,null,null,1207.5871666666665,9.8857599999999994,15.252129999999999,13498.6,1155.6666666666667,1265.3333333333333,178.45333333333335,17.300333333333334,5.4250900323995914,9.2050900323995908,{"$f":"AVERAGE(Monthly!CD686:CD688)","v":210.66666666666666},{"$f":"AVERAGE(Monthly!CE686:CE688)","v":493.33333333333331},{"$f":"AVERAGE(Monthly!CF686:CF688)","v":5.1297927170868345},{"$f":"AVERAGE(Monthly!CG686:CG688)","v":2250},{"$f":"AVERAGE(Monthly!CH686:CH688)","v":5280},{"$f":"AVERAGE(Monthly!CI686:CI688)","v":5.1152199725214924},493.33333333333331,15516.133333333333,844.36666666666667,711.66666666666663,12414.200000000003,7847.833333333333,3414.5396333333333,320752.66666666669,908.09960000000001,94.233333333333348,96.233333333333334,null,null,null,null,null,236.83699999999999,241.68299999999999,null,null,null,null,null,110.36666666666667,33.633333333333333,62.766666666666659,10.666666666666666,5.3999999999999995,12332,null,{"$f":"+DL236-DL235","v":24},null,141490,null,696.66666666665697,null,0,11.533333333333333,{"$f":"AVERAGE(Monthly!DV686:DV688)","v":1452.1333333333332},{"$f":"AVERAGE(Monthly!DW686:DW688)","v":1451.1333333333332},{"$f":"AVERAGE(Monthly!DX686:DX688)","v":990.33333333333337},{"$f":"AVERAGE(Monthly!DY686:DY688)","v":239.70000000000002},{"$f":"AVERAGE(Monthly!DZ686:DZ688)","v":750.63333333333333},{"$f":"AVERAGE(Monthly!EA686:EA688)","v":501.09999999999997},{"$f":"AVERAGE(Monthly!EB686:EB688)","v":249.5333333333333},{"$f":"AVERAGE(Monthly!EC686:EC688)","v":460.86666666666662},null,null,null,null,null,118.90187387827194,119.15870438615319,119.27930477495757,null,null,null,null,null,193.03333333333333,192.13333333333333,168.53333333333333,null,null,null,null,null,3.25,0.12333333333333334,3.8966666666666669,4.833333333333333,{"$f":"+(FB236-FA236)*100","v":93.666666666666615},3.83,0.02,0.25,0.61333333333333329,1.5233333333333334,2.1666666666666665,{"$f":"+FI236-FF236","v":1.9166666666666665},null,null,null,null,null,1.2292666666666665,6.2032333333333325,15.3177,1.1071666666666669,114.81299999999999,89.872100000000003,25458.466666666664,38881.5,25367.166666666668,null,null,null,null,null,57.846666666666664,{"$f":"AVERAGE(Monthly!GE686:GE688)","v":61.693333333333328},{"$f":"AVERAGE(Monthly!GF686:GF688)","v":2.7473333333333336},{"$f":"AVERAGE(Monthly!GG686:GG688)","v":2.8476666666666666},{"$f":"AVERAGE(Monthly!GH686:GH688)","v":923.41666666666663},{"$f":"AVERAGE(Monthly!GI686:GI688)","v":1040.3333333333333},{"$f":"AVERAGE(Monthly!GJ686:GJ688)","v":2.7399999999999998},{"$f":"AVERAGE(Monthly!GK686:GK688)","v":3970.6333333333332},{"$f":"AVERAGE(Monthly!GL686:GL688)","v":4590.1166666666668}]
["15'Q3",18227.688999999998,16527.587,16414.142,11304.566666666666,1524.8666666666668,2459.2666666666669,7356.666666666667,2238.7979999999998,1775.0039999999999,565.21,96.212000000000003,2683.4349999999999,2124.1260000000002,-559.30899999999974,2888.2510000000002,-633.524,null,null,null,null,null,76,76.7,1903.2514333333336,0.96,1686.1020000000001,1650.296,0,7.2,3.15,0.96,0.84,86569,{"$f":"AH237/BN237","v":7.2653281142995255E-2},124.8,124,123.6,104.40929999999999,102.75660000000001,1804095.6666666667,1.3866666666666665,50.966666666666669,43.5,50.5,51.466666666666669,47,51.333333333333336,48.833333333333336,52.766666666666673,40.333333333333336,53.79999999999999,49.933333333333337,61.93333333333333,64815,118.947,92.945999999999998,114.80500000000001,107.426,103.607,106.869,1037.317,0.96,null,1348491,1191536,null,null,null,null,null,1227.8887999999999,9.9204500000000007,15.32793,13391.74,1161,1139.3333333333333,179.47666666666669,17.741666666666667,5.2387669252076376,8.808766925207637,{"$f":"AVERAGE(Monthly!CD689:CD691)","v":218.66666666666666},{"$f":"AVERAGE(Monthly!CE689:CE691)","v":490.66666666666669},{"$f":"AVERAGE(Monthly!CF689:CF691)","v":5.3618716343982058},{"$f":"AVERAGE(Monthly!CG689:CG691)","v":2240},{"$f":"AVERAGE(Monthly!CH689:CH691)","v":5403.333333333333},{"$f":"AVERAGE(Monthly!CI689:CI691)","v":4.9763752789071143},490.66666666666669,15625.533333333333,822,748,12470.800000000001,7990.0666666666666,3473.0479333333333,321350,920.39886666666678,90.733333333333334,98.3,null,null,null,null,null,237.71799999999999,242.82766666666666,null,null,null,null,null,111.10000000000001,33.700000000000003,62.533333333333331,10.166666666666666,5.1000000000000005,12348.333333333334,null,16.33333333333394,null,142134,null,{"$f":"+DP237-DP236","v":644},null,0,11.533333333333333,{"$f":"AVERAGE(Monthly!DV689:DV691)","v":1458.3666666666668},{"$f":"AVERAGE(Monthly!DW689:DW691)","v":1478.2666666666667},{"$f":"AVERAGE(Monthly!DX689:DX691)","v":1006.1999999999999},{"$f":"AVERAGE(Monthly!DY689:DY691)","v":246.46666666666667},{"$f":"AVERAGE(Monthly!DZ689:DZ691)","v":759.73333333333323},{"$f":"AVERAGE(Monthly!EA689:EA691)","v":507.83333333333331},{"$f":"AVERAGE(Monthly!EB689:EB691)","v":251.76},{"$f":"AVERAGE(Monthly!EC689:EC691)","v":472.06666666666666},null,null,null,null,null,119.71989402464058,120.0607732690377,120.04705407561345,null,null,null,null,null,191.63333333333333,193.1,168.86666666666667,null,null,null,null,null,3.25,0.13666666666666669,4.0866666666666669,5.2433333333333332,{"$f":"+(FB237-FA237)*100","v":115.66666666666663},3.9499999999999997,0.04,0.34999999999999992,0.69333333333333336,1.5533333333333335,2.2200000000000002,{"$f":"+FI237-FF237","v":1.8700000000000003},null,null,null,null,null,1.3091999999999999,6.3048000000000002,16.441400000000002,1.1120666666666665,118.85763333333334,91.600099999999998,24935.7,43686.833333333336,24936.633333333335,null,null,null,null,null,46.417000000000002,{"$f":"AVERAGE(Monthly!GE689:GE691)","v":50.233333333333341},{"$f":"AVERAGE(Monthly!GF689:GF691)","v":2.6893333333333334},{"$f":"AVERAGE(Monthly!GG689:GG691)","v":2.6293333333333333},{"$f":"AVERAGE(Monthly!GH689:GH691)","v":1033.4166666666667},{"$f":"AVERAGE(Monthly!GI689:GI691)","v":1028},{"$f":"AVERAGE(Monthly!GJ689:GJ691)","v":2.7333333333333338},{"$f":"AVERAGE(Monthly!GK689:GK691)","v":3739.15},{"$f":"AVERAGE(Monthly!GL689:GL691)","v":4626.0666666666666}]
["15'Q4",18287.225999999999,16547.618999999999,16462.137999999999,11379.266666666668,1540.5666666666666,2472.5,7403.666666666667,2209.9409999999998,1773.2659999999998,575.31899999999996,68.207999999999998,2683.45,2111.9250000000002,-571.52499999999964,2890.2379999999998,-568.09,null,null,null,null,null,75.8,76,1943.0696,0.9,1494.904,1477.742,-6,3,2.88,0.9,0.79,88968,{"$f":"AH238/BN238","v":7.4632700209214503E-2},125.3,124.6,124.3,103.43963333333333,102.59349999999999,1804132.6666666667,1.4033333333333333,48.6,42.166666666666664,51,48.966666666666669,48.666666666666664,47.166666666666664,44.333333333333336,50.199999999999996,36,50.666666666666664,50.266666666666673,60.233333333333327,63160,118.476,95.378,116.062,106.732,104.642,108.742,905.74099999999999,0.9,null,1351881,1192078,null,null,null,null,null,1251.4627666666668,9.82104,15.25478,13383.66,1124.3333333333333,1217,182.84,17.690666666666669,5.4051407969127618,8.9051407969127609,{"$f":"AVERAGE(Monthly!CD692:CD694)","v":229.33333333333334},{"$f":"AVERAGE(Monthly!CE692:CE694)","v":508.66666666666669},{"$f":"AVERAGE(Monthly!CF692:CF694)","v":5.4166381800280794},{"$f":"AVERAGE(Monthly!CG692:CG694)","v":1970},{"$f":"AVERAGE(Monthly!CH692:CH694)","v":5200},{"$f":"AVERAGE(Monthly!CI692:CI694)","v":4.5662186029412872},508.66666666666669,15769.199999999999,837.5,749.66666666666663,12561.199999999999,8137.9333333333334,3486.8588999999997,321969.66666666669,924.10616666666681,91.3,96,null,null,null,null,null,237.93033333333332,244.17366666666666,null,null,null,null,null,111.83333333333333,33.733333333333334,62.566666666666663,9.8666666666666671,5,12352.666666666666,null,{"$f":"+DL238-DL237","v":4.3333333333321207},null,142835,null,{"$f":"+DP238-DP237","v":701},null,0,11.033333333333331,{"$f":"AVERAGE(Monthly!DV692:DV694)","v":1453.4666666666665},{"$f":"AVERAGE(Monthly!DW692:DW694)","v":1461.9000000000003},{"$f":"AVERAGE(Monthly!DX692:DX694)","v":1006.5666666666666},{"$f":"AVERAGE(Monthly!DY692:DY694)","v":244.9666666666667},{"$f":"AVERAGE(Monthly!DZ692:DZ694)","v":761.6},{"$f":"AVERAGE(Monthly!EA692:EA694)","v":510},{"$f":"AVERAGE(Monthly!EB692:EB694)","v":251.6},{"$f":"AVERAGE(Monthly!EC692:EC694)","v":455.33333333333331},null,null,null,null,null,119.46784329230266,120.39383961622011,120.46500982332503,null,null,null,null,null,185.56666666666669,193,168.6,null,null,null,null,null,3.2900000000000005,0.16,3.9933333333333336,5.4200000000000008,{"$f":"+(FB238-FA238)*100","v":142.66666666666671},3.9,0.12333333333333334,0.46333333333333337,0.83333333333333337,1.5866666666666667,2.19,{"$f":"+FI238-FF238","v":1.7266666666666666},null,null,null,null,null,1.3354666666666668,6.3878666666666675,16.756633333333333,1.0948,120.76063333333333,92.922300000000007,23391.600000000002,41399.233333333337,24957.733333333337,null,null,null,null,null,41.949999999999996,{"$f":"AVERAGE(Monthly!GE692:GE694)","v":43.57},{"$f":"AVERAGE(Monthly!GF692:GF694)","v":2.2636666666666669},{"$f":"AVERAGE(Monthly!GG692:GG694)","v":2.4320000000000004},{"$f":"AVERAGE(Monthly!GH692:GH694)","v":1039.1666666666667},{"$f":"AVERAGE(Monthly!GI692:GI694)","v":1072.6666666666667},{"$f":"AVERAGE(Monthly!GJ692:GJ694)","v":2.234666666666667},{"$f":"AVERAGE(Monthly!GK692:GK694)","v":3804.0833333333335},{"$f":"AVERAGE(Monthly!GL692:GL694)","v":4636.1333333333332}]
["16'Q1",18325.187000000002,16571.573,16512.673999999999,11430.533333333333,1544.3999999999999,2488.6333333333332,7434.7,2187.4989999999998,1748.3789999999999,593.71799999999996,40.600999999999999,2682.2979999999998,2098.08,-584.21799999999985,2903.1869999999999,-707.53800000000001,null,null,null,null,null,75.8,75.8,1992.4838333333335,0.86,1619.64,1584.8420000000001,-15.1,-12.7,2.67,0.86,0.72,92182,{"$f":"AH239/BN239","v":7.751193597373833E-2},125.9,125.4,125.1,103.09233333333333,102.85273333333333,1803102.3333333333,1.42,49.833333333333336,47.5,49.166666666666664,47.5,48.5,49.833333333333336,45.166666666666664,53.766666666666673,41.166666666666664,52.766666666666673,49.966666666666669,57.166666666666664,61781.333333333336,118.855,92.572999999999993,114.94499999999999,106.417,103.61499999999999,108.014,1014.414,0.86,null,1350654,1189262,null,null,null,null,null,1275.1571000000001,9.8169500000000003,15.29795,13420.65,1153.3333333333333,1167.6666666666667,186.02666666666664,17.307333333333332,6.0097322438983385,9.4630655772316725,{"$f":"AVERAGE(Monthly!CD695:CD697)","v":240},{"$f":"AVERAGE(Monthly!CE695:CE697)","v":526},{"$f":"AVERAGE(Monthly!CF695:CF697)","v":5.475288126507639},{"$f":"AVERAGE(Monthly!CG695:CG697)","v":1883.3333333333333},{"$f":"AVERAGE(Monthly!CH695:CH697)","v":5356.666666666667},{"$f":"AVERAGE(Monthly!CI695:CI697)","v":4.2214741462916647},526,15751.066666666666,787.86666666666667,786.66666666666663,12567.699999999999,8266.1,3453.2401333333332,322469.33333333331,916.72559999999987,91.566666666666663,95.966666666666654,null,null,null,null,null,237.99733333333333,245.71299999999999,null,null,null,null,null,112.03333333333335,33.633333333333333,62.866666666666667,9.8333333333333339,4.9333333333333336,12372.333333333334,null,{"$f":"+DL239-DL238","v":19.666666666667879},null,143444,null,{"$f":"+DP239-DP238","v":609},null,0,11.299999999999999,{"$f":"AVERAGE(Monthly!DV695:DV697)","v":1453.9333333333332},{"$f":"AVERAGE(Monthly!DW695:DW697)","v":1425.2333333333333},{"$f":"AVERAGE(Monthly!DX695:DX697)","v":992.56666666666661},{"$f":"AVERAGE(Monthly!DY695:DY697)","v":241.20000000000002},{"$f":"AVERAGE(Monthly!DZ695:DZ697)","v":751.36666666666667},{"$f":"AVERAGE(Monthly!EA695:EA697)","v":504.9666666666667},{"$f":"AVERAGE(Monthly!EB695:EB697)","v":246.39999999999998},{"$f":"AVERAGE(Monthly!EC695:EC697)","v":432.66666666666669},null,null,null,null,null,119.48150386393883,120.84656984208759,120.91850989743951,null,null,null,null,null,182,null,null,null,null,null,null,null,3.5,0.36000000000000004,3.9266666666666663,5.3066666666666658,{"$f":"+(FB239-FA239)*100","v":137.99999999999994},3.74,0.28666666666666668,0.57666666666666666,0.83666666666666656,1.3733333333333333,1.92,{"$f":"+FI239-FF239","v":1.3433333333333333},null,null,null,null,null,1.3743666666666667,6.5417999999999994,18.042766666666669,1.1027,123.35790000000001,93.141166666666663,22422.866666666669,34362.066666666666,23440.666666666668,null,null,null,null,null,33.18333333333333,{"$f":"AVERAGE(Monthly!GE695:GE697)","v":33.696666666666665},{"$f":"AVERAGE(Monthly!GF695:GF697)","v":2},{"$f":"AVERAGE(Monthly!GG695:GG697)","v":2.077},{"$f":"AVERAGE(Monthly!GH695:GH697)","v":931.08333333333337},{"$f":"AVERAGE(Monthly!GI695:GI697)","v":810.66666666666663},{"$f":"AVERAGE(Monthly!GJ695:GJ697)","v":1.9900000000000002},{"$f":"AVERAGE(Monthly!GK695:GK697)","v":3513.9500000000003},{"$f":"AVERAGE(Monthly!GL695:GL697)","v":4328.8833333333332}]
["16'Q2",18538.039000000001,16663.516,16632.599999999999,11537.766666666668,1576.1666666666667,2517.5333333333333,7485.7666666666664,2205.3209999999999,1765.645,586.54,12.202,2684.9050000000002,2112.4969999999998,-572.40800000000036,2896.3319999999999,-688.53499999999997,null,null,null,null,null,75.5,75.666666666666671,2051.869533333333,0.52,1652.1320000000001,1525.1310000000001,-22.6,-2.9,2.5,0.52,0.69,96014,{"$f":"AH240/BN240","v":7.958753144699704E-2},126.4,126.1,126,102.9166,102.61806666666666,1815724,1.4100000000000001,51.766666666666673,50,49,49.6,52.833333333333336,50.666666666666664,46.333333333333336,56.166666666666664,61,53.833333333333336,52.866666666666667,57.800000000000004,60335.333333333336,118.617,94.37,116.294,106.63800000000001,104.22499999999999,109.05500000000001,988.60699999999997,0.52,null,1370547,1206395,null,null,null,null,null,1300.6512,9.8295200000000005,15.314640000000001,13441.28,1157.6666666666667,1178,187.76333333333332,17.23566666666667,5.9365707223305622,9.3432373889972276,{"$f":"AVERAGE(Monthly!CD698:CD700)","v":241.66666666666666},{"$f":"AVERAGE(Monthly!CE698:CE700)","v":561.66666666666663},{"$f":"AVERAGE(Monthly!CF698:CF700)","v":5.1634281036573748},{"$f":"AVERAGE(Monthly!CG698:CG700)","v":2123.3333333333335},{"$f":"AVERAGE(Monthly!CH698:CH700)","v":5476.666666666667},{"$f":"AVERAGE(Monthly!CI698:CI700)","v":4.6524906924298435},561.66666666666663,15910.133333333331,745.16666666666663,756.33333333333337,12627.233333333332,8422.8333333333339,3512.413966666667,322971.33333333331,932.8524000000001,92.399999999999991,94.833333333333329,null,null,null,null,null,239.37066666666666,246.97733333333335,null,null,null,null,null,112.2,33.6,62.70000000000001,9.6666666666666661,4.8666666666666663,12346,null,{"$f":"+DL240-DL239","v":-26.33333333333394},null,143953.66666666666,null,509.66666666665697,null,0,10.666666666666666,{"$f":"AVERAGE(Monthly!DV698:DV700)","v":1449.0666666666666},{"$f":"AVERAGE(Monthly!DW698:DW700)","v":1448.4333333333334},{"$f":"AVERAGE(Monthly!DX698:DX700)","v":997.69999999999993},{"$f":"AVERAGE(Monthly!DY698:DY700)","v":245.46666666666667},{"$f":"AVERAGE(Monthly!DZ698:DZ700)","v":752.23333333333323},{"$f":"AVERAGE(Monthly!EA698:EA700)","v":505.33333333333331},{"$f":"AVERAGE(Monthly!EB698:EB700)","v":246.9},{"$f":"AVERAGE(Monthly!EC698:EC700)","v":450.73333333333329},null,null,null,null,null,120.27300098716046,122.04449751449116,121.99961887777384,null,null,null,null,null,185.36666666666667,null,null,null,null,null,null,null,3.5,0.37333333333333335,3.59,4.666666666666667,{"$f":"+(FB240-FA240)*100","v":107.66666666666671},3.5933333333333333,0.25666666666666665,0.56666666666666665,0.77333333333333332,1.2433333333333334,1.7533333333333332,{"$f":"+FI240-FF240","v":1.1866666666666665},null,null,null,null,null,1.2885666666666666,6.5301666666666662,18.089766666666666,1.1296666666666668,120.41226666666667,89.489699999999985,23165.099999999995,36344.166666666664,24935.733333333337,null,null,null,null,null,45.406666666666666,{"$f":"AVERAGE(Monthly!GE698:GE700)","v":45.523333333333333},{"$f":"AVERAGE(Monthly!GF698:GF700)","v":2.3513333333333333},{"$f":"AVERAGE(Monthly!GG698:GG700)","v":2.2966666666666669},{"$f":"AVERAGE(Monthly!GH698:GH700)","v":980.75},{"$f":"AVERAGE(Monthly!GI698:GI700)","v":1156.3333333333333},{"$f":"AVERAGE(Monthly!GJ698:GJ700)","v":2.2399999999999998},{"$f":"AVERAGE(Monthly!GK698:GK700)","v":3949.4},{"$f":"AVERAGE(Monthly!GL698:GL700)","v":4454.4000000000005}]
["16'Q3",18729.13,16778.148000000001,16741.079000000002,11618.133333333331,1611.9000000000003,2517.8999999999996,7534.9333333333334,2223.9929999999999,1769.396,579.75400000000002,17.597000000000001,2702.569,2145.2750000000001,-557.29399999999987,2899.9360000000001,-679.05100000000004,null,null,null,null,null,75.3,75.766666666666666,2072.2331666666664,0.53,1692.443,1614.0519999999999,-34,2.9,2.2599999999999998,0.53,0.51,99870,{"$f":"AH241/BN241","v":8.2030499213946256E-2},127,126.7,126.6,103.11766666666666,102.65719999999999,1822647.3333333333,1.3999999999999997,51.166666666666664,47.666666666666664,51.166666666666664,49.133333333333326,52.333333333333336,49.333333333333336,49.333333333333336,53.699999999999996,53.666666666666664,52.6,51,57.133333333333326,61781.333333333336,118.456,95.097999999999999,117.026,107.295,104.41500000000001,109.069,976.91600000000005,0.53,null,1383247,1217474,null,null,null,null,null,1331.0292333333332,9.8792200000000001,15.382949999999999,13382.21,1149.6666666666667,1215,188.62666666666667,17.510333333333332,6.0414630609584377,9.4714630609584365,{"$f":"AVERAGE(Monthly!CD701:CD703)","v":240},{"$f":"AVERAGE(Monthly!CE701:CE703)","v":588},{"$f":"AVERAGE(Monthly!CF701:CF703)","v":4.9103837033661595},{"$f":"AVERAGE(Monthly!CG701:CG703)","v":2050},{"$f":"AVERAGE(Monthly!CH701:CH703)","v":5380},{"$f":"AVERAGE(Monthly!CI701:CI703)","v":4.5735683532771008},588,16028.033333333333,677.63333333333333,760.66666666666663,12649.266666666668,8613.6,3567.9766333333337,323566.66666666669,947.75120000000004,90.333333333333329,100.66666666666667,null,null,null,null,null,240.43100000000001,248.23400000000001,null,null,null,null,null,112.86666666666667,33.633333333333333,62.833333333333336,9.6999999999999993,4.9000000000000004,12343.666666666666,null,{"$f":"+DL241-DL240","v":-2.3333333333339397},null,144657.33333333334,null,{"$f":"+DP241-DP240","v":703.66666666668607},null,0,10.9,{"$f":"AVERAGE(Monthly!DV701:DV703)","v":1451.3},{"$f":"AVERAGE(Monthly!DW701:DW703)","v":1469.1333333333332},{"$f":"AVERAGE(Monthly!DX701:DX703)","v":1004.7333333333332},{"$f":"AVERAGE(Monthly!DY701:DY703)","v":246.70000000000002},{"$f":"AVERAGE(Monthly!DZ701:DZ703)","v":758.0333333333333},{"$f":"AVERAGE(Monthly!EA701:EA703)","v":508.33333333333331},{"$f":"AVERAGE(Monthly!EB701:EB703)","v":249.70000000000002},{"$f":"AVERAGE(Monthly!EC701:EC703)","v":464.40000000000003},null,null,null,null,null,121.26360819952689,123.10029844032582,122.92705646328371,null,null,null,null,null,187.06666666666663,null,null,null,null,null,null,null,3.5,0.39666666666666667,3.3366666666666664,4.2566666666666668,{"$f":"+(FB241-FA241)*100","v":92.000000000000043},3.4466666666666668,0.29666666666666663,0.55666666666666664,0.72666666666666668,1.1266666666666667,1.5633333333333332,{"$f":"+FI241-FF241","v":1.0066666666666666},null,null,null,null,null,1.3052666666666666,6.6646333333333336,18.777766666666668,1.1159999999999999,121.52973333333334,90.281566666666663,23195.166666666668,41572.966666666667,24573,null,null,null,null,null,44.85,{"$f":"AVERAGE(Monthly!GE701:GE703)","v":45.786666666666669},{"$f":"AVERAGE(Monthly!GF701:GF703)","v":2.3186666666666667},{"$f":"AVERAGE(Monthly!GG701:GG703)","v":2.3833333333333333},{"$f":"AVERAGE(Monthly!GH701:GH703)","v":1183.25},{"$f":"AVERAGE(Monthly!GI701:GI703)","v":1122.6666666666667},{"$f":"AVERAGE(Monthly!GJ701:GJ703)","v":2.7933333333333334},{"$f":"AVERAGE(Monthly!GK701:GK703)","v":3691.8833333333332},{"$f":"AVERAGE(Monthly!GL701:GL703)","v":4610.6833333333334}]
["16'Q4",18905.544999999998,16851.419999999998,16769.987000000001,11702.133333333333,1647.8666666666668,2533.2000000000003,7573.8,2224.864,1772.7470000000001,589.76700000000005,63.058999999999997,2755.4639999999999,2124.384,-631.07999999999993,2901.1840000000002,-713.98699999999997,null,null,null,null,null,75.5,75.733333333333334,2099.6712666666667,0.52,1787.386,1685.732,-47.2,-1.5,2.12,0.52,0.5,101606,{"$f":"AH242/BN242","v":8.209504525868512E-2},127.5,127.3,127.2,103.29649999999999,103.11256666666667,1833899.6666666667,1.38,53.199999999999996,47.833333333333336,49.166666666666664,52.666666666666664,53.5,51,47.833333333333336,55.133333333333326,58.166666666666664,56.666666666666664,53.633333333333333,60.1,61744,119.038,93.611000000000004,115.685,107.63,102.446,107.48399999999999,972.96500000000003,0.52,null,1404363,1237663,null,null,null,null,null,1348.8643999999999,9.9504199999999994,15.50508,13445.4,1248.3333333333333,1268.6666666666667,192.38666666666666,17.806333333333331,6.5105091046385271,9.8005091046385289,{"$f":"AVERAGE(Monthly!CD704:CD706)","v":250.66666666666666},{"$f":"AVERAGE(Monthly!CE704:CE706)","v":568},{"$f":"AVERAGE(Monthly!CF704:CF706)","v":5.3011493647137948},{"$f":"AVERAGE(Monthly!CG704:CG706)","v":1836.6666666666667},{"$f":"AVERAGE(Monthly!CH704:CH706)","v":5546.666666666667},{"$f":"AVERAGE(Monthly!CI704:CI706)","v":3.9731385972570012},568,16025.699999999999,511.5333333333333,834,12590.9,8770.6,3629.2114000000001,324186.33333333331,964.19126666666671,93.066666666666663,107.83333333333333,null,null,null,null,null,242.23800000000003,249.49600000000001,null,null,null,null,null,113.26666666666667,33.6,62.70000000000001,9.3333333333333339,4.6999999999999993,12331,null,{"$f":"+DL242-DL241","v":-12.66666666666606},null,145167,null,{"$f":"+DP242-DP241","v":509.66666666665697},null,0,10.233333333333333,{"$f":"AVERAGE(Monthly!DV704:DV706)","v":1462.5},{"$f":"AVERAGE(Monthly!DW704:DW706)","v":1471.6333333333332},{"$f":"AVERAGE(Monthly!DX704:DX706)","v":1015.7000000000002},{"$f":"AVERAGE(Monthly!DY704:DY706)","v":246.86666666666667},{"$f":"AVERAGE(Monthly!DZ704:DZ706)","v":768.83333333333337},{"$f":"AVERAGE(Monthly!EA704:EA706)","v":518.23333333333335},{"$f":"AVERAGE(Monthly!EB704:EB706)","v":250.6},{"$f":"AVERAGE(Monthly!EC704:EC706)","v":455.93333333333334},null,null,null,null,null,122.36594560731398,124.35936735854278,124.01920034783991,null,null,null,null,null,187.06666666666669,null,null,null,null,null,null,null,3.5466666666666669,0.45,3.81,4.6399999999999997,{"$f":"+(FB242-FA242)*100","v":82.999999999999957},3.8133333333333339,0.43,0.75666666666666671,1.0066666666666666,1.61,2.1300000000000003,{"$f":"+FI242-FF242","v":1.3733333333333335},null,null,null,null,null,1.3341333333333332,6.8300999999999989,19.799666666666667,1.0783666666666667,125.48456666666668,93.669899999999998,23802.100000000002,41926.866666666661,25069.266666666666,null,null,null,null,null,49.136666666666663,{"$f":"AVERAGE(Monthly!GE704:GE706)","v":49.18},{"$f":"AVERAGE(Monthly!GF704:GF706)","v":2.34},{"$f":"AVERAGE(Monthly!GG704:GG706)","v":2.4676666666666667},{"$f":"AVERAGE(Monthly!GH704:GH706)","v":989.58333333333337},{"$f":"AVERAGE(Monthly!GI704:GI706)","v":938},{"$f":"AVERAGE(Monthly!GJ704:GJ706)","v":3.1766666666666663},{"$f":"AVERAGE(Monthly!GK704:GK706)","v":3955.3833333333332},{"$f":"AVERAGE(Monthly!GL704:GL706)","v":4513.1333333333332}]
["17'Q1",19057.705000000002,16903.240000000002,16883.467000000001,11758.033333333333,1647.3333333333333,2540.1666666666665,7621.0333333333328,2263.6370000000002,1795.6000000000001,605.50800000000004,1.1719999999999999,2784.5149999999999,2162.2959999999998,-622.21900000000005,2896.627,-652.80200000000002,null,null,null,null,null,75.8,75.8,2094.4339999999997,0.48,1810.509,1642.702,-16,1.5,1.96,0.48,0.48,106383,8.5102655483158735E-2,128.30000000000001,128.30000000000001,128.30000000000001,103.69240000000001,103.70536666666668,1854545.3333333333,1.37,56.966666666666669,54.666666666666664,47.666666666666664,56.400000000000006,56.166666666666664,52.5,49.666666666666664,63.333333333333336,69.166666666666671,60.633333333333333,54.766666666666673,60.933333333333337,62805.666666666664,119.09399999999999,94.590999999999994,117.08,107.664,102.878,108.745,1049.3109999999999,0.48,null,1418968,1250055,null,null,null,null,null,1362.0271,9.9221900000000005,15.457420000000001,13464.69,1237.6666666666667,1259.6666666666667,196.82333333333335,17.126000000000001,7.2401700639846709,10.506836730651337,{"$f":"AVERAGE(Monthly!CD707:CD709)","v":263.33333333333331},{"$f":"AVERAGE(Monthly!CE707:CE709)","v":617.33333333333337},{"$f":"AVERAGE(Monthly!CF707:CF709)","v":5.1211855458394755},{"$f":"AVERAGE(Monthly!CG707:CG709)","v":1736.6666666666667},{"$f":"AVERAGE(Monthly!CH707:CH709)","v":5620},{"$f":"AVERAGE(Monthly!CI707:CI709)","v":3.7092594938089491},617.33333333333337,16245.233333333332,554.56666666666672,838.66666666666663,12680.4,8896.9333333333325,3677.3882333333336,324685.66666666669,975.28873333333331,97.466666666666654,117.53333333333335,null,null,null,null,null,244.12199999999999,251.02500000000001,null,null,null,null,null,113.86666666666667,33.6,62.966666666666669,9.1666666666666661,4.666666666666667,12373.333333333334,null,{"$f":"+DL243-DL242","v":42.33333333333394},null,145712.33333333334,null,{"$f":"+DP243-DP242","v":545.33333333334303},null,0,10.166666666666666,{"$f":"AVERAGE(Monthly!DV707:DV709)","v":1469.8666666666668},{"$f":"AVERAGE(Monthly!DW707:DW709)","v":1442.0666666666666},{"$f":"AVERAGE(Monthly!DX707:DX709)","v":999.90000000000009},{"$f":"AVERAGE(Monthly!DY707:DY709)","v":241.63333333333333},{"$f":"AVERAGE(Monthly!DZ707:DZ709)","v":758.26666666666677},{"$f":"AVERAGE(Monthly!EA707:EA709)","v":509.73333333333329},{"$f":"AVERAGE(Monthly!EB707:EB709)","v":248.53333333333333},{"$f":"AVERAGE(Monthly!EC707:EC709)","v":442.16666666666669},null,null,null,null,null,123.03648108393543,125.0101068943863,124.63646156161097,null,null,null,null,null,191.26666666666665,null,null,null,null,null,null,null,3.793333333333333,0.70000000000000007,3.9599999999999995,4.66,{"$f":"+(FB243-FA243)*100","v":70.000000000000057},4.1733333333333329,0.59,0.88666666666666671,1.24,1.9433333333333334,2.4433333333333334,{"$f":"+FI243-FF243","v":1.5566666666666666},null,null,null,null,null,1.3226333333333333,6.8846999999999996,20.323966666666667,1.0658666666666665,126.19410000000001,94.348766666666677,24613.366666666669,36114.800000000003,25148.533333333336,null,null,null,null,null,51.766666666666673,{"$f":"AVERAGE(Monthly!GE707:GE709)","v":53.68},{"$f":"AVERAGE(Monthly!GF707:GF709)","v":2.4369999999999998},{"$f":"AVERAGE(Monthly!GG707:GG709)","v":2.5673333333333335},{"$f":"AVERAGE(Monthly!GH707:GH709)","v":974.25},{"$f":"AVERAGE(Monthly!GI707:GI709)","v":971.33333333333337},{"$f":"AVERAGE(Monthly!GJ707:GJ709)","v":3.0633333333333339},{"$f":"AVERAGE(Monthly!GK707:GK709)","v":3940.0499999999997},{"$f":"AVERAGE(Monthly!GL707:GL709)","v":4395.8499999999995}]
["17'Q2",19250.008999999998,17031.084999999999,17006.646000000001,11852.933333333332,1677.8,2566.5666666666671,7664.4333333333334,2300.598,1824.6279999999999,594.101,5.4980000000000002,2794.7809999999999,2181.1480000000001,-613.63299999999981,2895.23,-633.36699999999996,null,null,null,null,null,76.099999999999994,76.566666666666663,2098.9196999999999,0.34,1774.729,1643.8019999999999,-5.9,-8.6999999999999993,1.83,0.34,0.49,111542,{"$f":"AH244/BN244","v":8.8890907772356018E-2},129.1,129,129,105.10243333333334,104.42403333333334,1861484,1.3733333333333333,55.833333333333336,56.333333333333336,48.5,54.233333333333327,58.833333333333336,54.333333333333336,50.5,60.166666666666664,61.333333333333336,59.366666666666667,55.066666666666663,61.29999999999999,63335.333333333336,119.934,94.504999999999995,117.595,108.07599999999999,103.41200000000001,108.80800000000001,1054.807,0.34,null,1423795,1254819,null,null,null,null,null,1371.2900666666665,9.9127700000000001,15.45595,13468.95,1166.6666666666667,1223.6666666666667,198.51333333333332,16.758666666666667,6.2722985049290081,9.3289651715956747,{"$f":"AVERAGE(Monthly!CD710:CD712)","v":269.66666666666669},{"$f":"AVERAGE(Monthly!CE710:CE712)","v":605},{"$f":"AVERAGE(Monthly!CF710:CF712)","v":5.3498423756014333},{"$f":"AVERAGE(Monthly!CG710:CG712)","v":1943.3333333333333},{"$f":"AVERAGE(Monthly!CH710:CH712)","v":5563.333333333333},{"$f":"AVERAGE(Monthly!CI710:CI712)","v":4.191778652695775},605,16364.366666666669,545.6,825,12783.300000000001,8971.6999999999989,3721.6468,325187.66666666669,986.66973333333328,96.399999999999991,118.10000000000001,null,null,null,null,null,243.93133333333333,251.37599999999998,null,null,null,null,null,114.63333333333333,33.700000000000003,62.79999999999999,8.5333333333333332,4.3666666666666663,12404,null,{"$f":"+DL244-DL243","v":30.66666666666606},null,146196.66666666666,null,{"$f":"+DP244-DP243","v":484.33333333331393},null,0,10.066666666666668,{"$f":"AVERAGE(Monthly!DV710:DV712)","v":1472.3999999999999},{"$f":"AVERAGE(Monthly!DW710:DW712)","v":1472.8000000000002},{"$f":"AVERAGE(Monthly!DX710:DX712)","v":1009.1666666666666},{"$f":"AVERAGE(Monthly!DY710:DY712)","v":245.26666666666665},{"$f":"AVERAGE(Monthly!DZ710:DZ712)","v":763.9},{"$f":"AVERAGE(Monthly!EA710:EA712)","v":515.6},{"$f":"AVERAGE(Monthly!EB710:EB712)","v":248.29999999999998},{"$f":"AVERAGE(Monthly!EC710:EC712)","v":463.63333333333338},null,null,null,null,null,124.11962436898298,125.78218201609775,125.3410026326097,null,null,null,null,null,193.16666666666666,null,null,null,null,null,null,null,4.043333333333333,0.95000000000000007,3.8000000000000003,4.496666666666667,{"$f":"+(FB244-FA244)*100","v":69.666666666666671},3.9866666666666664,0.89,1.1200000000000001,1.2933333333333332,1.8099999999999998,2.2633333333333332,{"$f":"+FI244-FF244","v":1.1433333333333331},null,null,null,null,null,1.3445999999999998,6.8594999999999997,18.554366666666667,1.0999000000000001,123.49396666666667,92.991033333333334,25509.633333333331,40521.799999999996,26544.833333333332,null,null,null,null,null,48.24,{"$f":"AVERAGE(Monthly!GE710:GE712)","v":49.669999999999995},{"$f":"AVERAGE(Monthly!GF710:GF712)","v":2.4970000000000003},{"$f":"AVERAGE(Monthly!GG710:GG712)","v":2.5513333333333335},{"$f":"AVERAGE(Monthly!GH710:GH712)","v":1090.5},{"$f":"AVERAGE(Monthly!GI710:GI712)","v":1251},{"$f":"AVERAGE(Monthly!GJ710:GJ712)","v":3.14},{"$f":"AVERAGE(Monthly!GK710:GK712)","v":4126.6833333333334},{"$f":"AVERAGE(Monthly!GL710:GL712)","v":4777.4000000000005}]
["17'Q3",19495.475999999999,17156.946,17101.739000000001,11922.1,1711.5,2580.1666666666665,7692.9333333333334,2322.71,1852.9960000000001,584.95399999999995,35.82,2789.1529999999998,2193.672,-595.48099999999977,2894.3510000000001,null,null,null,null,null,null,75.599999999999994,76.100000000000009,2115.1835333333333,0.32,null,null,-6,-5.5,1.69,0.32,0.41,null,null,null,null,null,104.6936,103.8732,1882427,1.38,null,null,null,null,null,null,null,null,null,null,null,null,65092,null,null,null,null,null,null,null,0.32,null,1437126,1266991,null,null,null,null,null,1383.9578333333332,null,null,13550.22,1165,1242.3333333333333,199.37,17.061,6.2624793909724268,9.2724793909724266,{"$f":"AVERAGE(Monthly!CD713:CD715)","v":277.33333333333331},{"$f":"AVERAGE(Monthly!CE713:CE715)","v":603.33333333333337},{"$f":"AVERAGE(Monthly!CF713:CF715)","v":5.5456297431525705},{"$f":"AVERAGE(Monthly!CG713:CG715)","v":1896.6666666666667},{"$f":"AVERAGE(Monthly!CH713:CH715)","v":5393.333333333333},{"$f":"AVERAGE(Monthly!CI713:CI715)","v":4.2199140998795448},603.33333333333337,16478.100000000002,494.73333333333329,846.33333333333337,12801.1,9033.1333333333332,3759.6223499999996,325783,996.85325,95.09999999999998,120.06666666666666,null,null,null,null,null,245.15033333333335,252.43799999999999,null,null,null,null,null,114.73333333333335,33.633333333333333,62.966666666666669,8.5,4.3,12434,null,{"$f":"+DL245-DL244","v":30},null,146624.66666666666,null,{"$f":"+DP245-DP244","v":428},null,0,10.466666666666667,{"$f":"AVERAGE(Monthly!DV713:DV715)","v":1471.8333333333333},{"$f":"AVERAGE(Monthly!DW713:DW715)","v":1489.1666666666667},{"$f":"AVERAGE(Monthly!DX713:DX715)","v":1013.95},{"$f":"AVERAGE(Monthly!DY713:DY715)","v":246.3},{"$f":"AVERAGE(Monthly!DZ713:DZ715)","v":767.65000000000009},{"$f":"AVERAGE(Monthly!EA713:EA715)","v":518},{"$f":"AVERAGE(Monthly!EB713:EB715)","v":249.65},{"$f":"AVERAGE(Monthly!EC713:EC715)","v":476.9},null,null,null,null,null,125.16885675220881,125.88819497268477,124.90642266767367,null,null,null,null,null,193.86666666666667,null,null,null,null,null,null,null,4.25,1.1533333333333331,3.7,4.3899999999999997,{"$f":"+(FB245-FA245)*100","v":68.999999999999943},3.8866666666666667,1.0366666666666668,1.2433333333333334,1.3633333333333333,1.8166666666666667,2.2433333333333332,{"$f":"+FI245-FF245","v":0.99999999999999978},null,null,null,null,null,1.2525666666666666,6.6684666666666663,17.811833333333336,1.1752,119.33873333333334,88.275533333333328,23929.15,44710.6,25854.1,null,null,null,null,null,48.163333333333334,{"$f":"AVERAGE(Monthly!GE713:GE715)","v":52.110000000000007},{"$f":"AVERAGE(Monthly!GF713:GF715)","v":2.5563333333333333},{"$f":"AVERAGE(Monthly!GG713:GG715)","v":2.6253333333333333},{"$f":"AVERAGE(Monthly!GH713:GH715)","v":1365.8611111111111},null,{"$f":"AVERAGE(Monthly!GJ713:GJ715)","v":2.9599999999999995},{"$f":"AVERAGE(Monthly!GK713:GK715)","v":4128.05},{"$f":"AVERAGE(Monthly!GL713:GL715)","v":4591.3499999999995}]
["17'Q4"]

{"sheet":"Annual","index":3,"n_rows":69,"n_cols":194,"rows_kept":69,"cut":false,"hidden":false,"merged":[]}
[]
[]
[]
[]
[]
[]
["Title:","Nominal Gross Domestic Product","Real Gross Domestic Product","Real Final Sales of Domestic Product","Real Personal Consumption Expenditures","Real PCE: Durable Goods","Real PCE: Nondurable Goods","Real PCE: Services","Real Private Nonres. Fixed Investment","Real Nonres. Invest.: Equip. & Software","Real Private Residential Fixed Investment","Real Change in Private Inventories","Real Imports of Goods & Services","Real Exports of Goods & Services","Net Exports of Goods & Services","Real Gov't Cons. & Invest.","Federal Government Surplus or Deficit [-], NIPA",null,null,null,null,null,"Capacity Utilization: Mfg. (NAICS)","Capacity Utilization: Total Industry","Commercial and Industrial Loans, Commercial Banks","Commercial Net Loan Charge-offs","Corporate Profits After Tax","Corporate Profits Less Financial After Tax","Bank Willingness to Make Consumer Loans","Demand for Com'l & Ind'l Loans by Small Firms - Net","Nonperf'g Loans - Total","Commercial Net Loan Charge-offs","Total Loan Charge-offs","E-Commerce Sales","E-Commerce Sales as % of Total Retail Sales","ECI: Benefits: Private Industry Workers","ECI: Compensation: Private Industry Workers","ECI: Wages & Salaries: Private Industry Workers","Industrial Production Index","Industrial Production Index - Mfg.","Inventories: Total Business","Inventory to Sales Ratio: Total Business","ISM INDEX: PMI Manufacturing Composite Index","ISM INDEX Backlogs","ISM INDEX Customer Inventories","ISM INDEX Employment ","ISM INDEX Exports","ISM INDEX Imports","ISM INDEX Inventories","ISM INDEX New Orders","ISM INDEX Prices","ISM INDEX Production","ISM INDEX Supplier deliveries","ISM NonMfg.: Business Activity Index","Mfgs' New Orders: Nondefense Excluding Aircraft","Mfg.: Output Per Hour of All Persons","Mfg.: Unit Labor Cost","Nonfarm Business Sector: Compensation Per Hour","Nonfarm Business: Output Per Hour of All Persons","Nonfarm Business: Real Compensation Per Hour","Nonfarm Business: Unit Labor Cost","Nonfinancial Corporate Business: Profits After Tax","Nonperforming Total Loans","PMI Manufacturing Composit Index","Retail and Food Services Sales","Retail Sales: Total (Excluding Food Services)",null,null,null,null,null,"Consumer Loans at All Commercial Banks","Debt Service Payments as a % DPI","Household Financial Obligations as a percent of DPI","Household Credit Market Debt Outstanding","Housing Starts: Total: New Privately Owned ","New Private Housing Units Authorized by Building Permits - Thousands","S&P Case-Shiller 20-City Home Price Index","Autos & Light Trucks","Misery Index","Misery Index - Adjusted ","New Home Inventories - Thousands","New Homes Sold - Thousands","New Home IN/RS","Used Home Inventories - Thousands","Used Homes Sold - Thousands","Used Home IN/RS","New Homes Sales - Single Family - Thousands","Personal Income","Personal Saving","Privately Owned Housing Starts: 1-Unit Structures","Real Disposable Personal Income","Savings Deposits - Total","Total Consumer Credit Outstanding","Total Population: Incl'd Armed Forces Overseas","Total Revolving Credit Outstanding","University of Michigan: Consumer Sentiment","Conference Board Consumer Confidence",null,null,null,null,null,"CPI Index - All Urban: All Items","CPI Index All Urban: Less Food & Energy",null,null,null,null,null,"Aggergate Weekly Hours Index: Total Private Industries","Average Weekly Hours: Production & Nonsuper.","Civilian Participation Rate","Total Unemployment Rate Plus (U6 Rate)","Civilian Unemployment Rate","Nonfarm Payrolls: Mfg.","Nonfarm Payrolls: Mfg. - Monthly Change","Nonfarm Payrolls: Mfg - Quarterly Change","Nonfarm Payrolls: Mfg - Annual Change","Total Nonfarm Payrolls: All Employees","Nonfarm Payrolls: All Employees - Monthly Change","Nonfarm Payrolls: All Employees - Quarterly Change","Nonfarm Payrolls: All Employees - Annual Change","Initial Unemployment Claims (Monthly Average)","Median Duration of Unemployment","Trucking Employment - Truck Transportation - SA","Trucking Employment - Truck Transportation - NSA","Trucking Employment - General Freight  - NSA","Trucking Employment - General Freight, local - NSA","Trucking Employment - General Freight, long - NSA","Trucking Employment - General Freight, long TL - NSA","Trucking Employment - General Freight, long LTL - NSA","Trucking Employment - Specialized Freight - NSA",null,null,null,null,null,"Freight Composite Index: Class 8","Freight Composite Index: Dry Van","Freight Composite Index: Reefer Van",null,null,null,null,null,"Producer Price Index: All Commodities","PPI: Finished Goods Less Food & Energy","PPI Finished Goods: Capital Equipment",null,null,null,null,null,"Bank Prime Loan Rate","Effective Federal Funds Rate","Moody's Seasoned Aaa Corporate Bond Yield","Moody's Seasoned Baa Corporate Bond Yield","Yield Spread: Moody's Seasoned Corporate Bond Yield","Mortgage Rate, 30-Year Conventional ","Treasury Bill: Secondary Market Rate, 3-Month ","Treasury Constant Maturity Rate, 1-Year ","Treasury Constant Maturity Rate, 2-Year ","Treasury Constant Maturity Rate, 5-Year ","Treasury Constant Maturity Rate, 10-Year ","Treasury Yield, 10-Year Minus 1-Year",null,null,null,null,null,"Canada/U.S. Foreign Exchange Rate","China/U.S. Foreign Exchange Rate","Mexico/U.S. Foreign Exchange Rate","U.S./Euro Foreign Exchange Rate","Trade Weighted Exchange Index: Broad","Trade Weighted Exchange Index: Major Currencies","U.S. Imports from Canada, Customs Basis","U.S. Imports from China, Mainland, Customs Basis","U.S. Imports from Mexico, Customs Basis",null,null,null,null,null,"Spot Oil Price: West Texas Intermediate","Europe Brent Spot Price FOB ","EIA  Retail Gasoline Prices : All Grades","EIA Retail On-Highway Diesel Fuel Prices","U.S. Exports of Distillate Fuel Oil ","U.S. Exports of Distillate Fuel Oil, 0 to 15 ppm Sulfur ","Natural Gas Futures Contract 1 ","U.S. Product Supplied of Distillate Fuel Oil","U.S. Refiner Net Production of Distillate Fuel Oil, 0 to 15 ppm Sulfur"]
["ID","GDP001A","GDP004A","GDP007A","GDP010A","GDP014A","GDP018A","GDP022A","GDP026A","GDP029A","GDP032A","GDP035A","GDP036A","GDP039A","GDP042A","GDP043A","GDP046A",null,null,null,null,null,"BUS001A","BUS002A","BUS003A","BUS004A","BUS005A","BUS006A","BUS007A","BUS008A","BUS009A","BUS010A","BUS011A","BUS012A","BUS013A","BUS014A","BUS015A","BUS016A","BUS019A","BUS020A","BUS021A","BUS022A","BUS023A","BUS024A","BUS025A","BUS026A","BUS027A","BUS028A","BUS029A","BUS030A","BUS031A","BUS032A","BUS033A","BUS034A","BUS035A","BUS036A","BUS037A","BUS038A","BUS039A","BUS040A","BUS041A","BUS042A","BUS043A","BUS044A","BUS045A","BUS046A",null,null,null,null,null,"CON001A","CON002A","CON003A","CON004A","CON005A","CON006A","CON007A","CON008A","CON009A","CON010A","CON011A","CON012A","CON035M","CON033A","CON034A","COM036M","CON013A","CON014A","CON018A","CON022A","CON023A","CON027A","CON028A","CON029A","CON030A","CON031A","CON032A",null,null,null,null,null,"CPI001A","CPI005A",null,null,null,null,null,"EMP001A","EMP002A","EMP003A","EMP004A","EMP005A","EMP006A","EMP007A","EMP009A","EMP011A","EMP013A","EMP014A","EMP016A","EMP018A","EMP020A","EMP021A","EMP022A","EMP023A","EMP024A","EMP025A","EMP026A","EMP027A","EMP028A","EMP029A",null,null,null,null,null,"FRE001A","FRE004A","FRE007A",null,null,null,null,null,"PPI001A","PPI004A","PPI007A",null,null,null,null,null,"RAT001A","RAT002A","RAT003A","RAT004A",null,"RAT005A","RAT006A","RAT007A","RAT008A","RAT009A","RAT010A","RAT011A",null,null,null,null,null,"TRA001A","TRA002A","TRA003A","TRA004A","TRA005A","TRA006A","TRA007A","TRA008A","TRA009A",null,null,null,null,null,"ENE001A","ENE002A","ENE003A","ENE004A","ENE005A","ENE006A","ENE007A","ENE008A","ENE009A"]
["Frequency:","Quarterly","Quarterly","Quarterly","Monthly","Monthly","Monthly","Monthly","Quarterly","Quarterly","Quarterly","Quarterly","Quarterly","Quarterly","Quarterly","Quarterly","Quarterly",null,null,null,null,null,"Quarterly","Monthly","Monthly","Quarterly, End of Period","Quarterly","Quarterly","Quarterly, End of Period","Quarterly, End of Period","Quarterly, End of Period","Quarterly, End of Period","Quarterly, End of Period","Quarterly","Quarterly","Quarterly","Quarterly","Quarterly","Monthly","Monthly","Monthly, End of Period","Monthly","Monthly","Monthly","Monthly","Monthly","Monthly","Monthly","Monthly","Monthly","Monthly","Monthly","Monthly","Monthly","Monthly","Quarterly","Quarterly","Quarterly","Quarterly","Quarterly","Quarterly","Quarterly","Quarterly","Monthly","Monthly","Monthly",null,null,null,null,null,"Monthly","Quarterly","Quarterly","Quarterly, End of Period","Monthly","Monthly","Monthly","Monthly","Monthly ","Monthly ","Monthly","Monthly","Monthly","Monthly","Monthly ","Monthly","Monthly","Monthly","Monthly","Monthly","Monthly","Monthly","Monthly, End of Period","Monthly","Monthly, End of Period","Monthly","Monthly",null,null,null,null,null,"Monthly","Monthly",null,null,null,null,null,"Monthly","Monthly","Monthly","Monthly","Monthly","Monthly",null,null,null,"Monthly",null,null,null,"Weekly, End of Period","Monthly","Monthly","Monthly","Monthly","Monthly","Monthly","Monthly","Monthly","Monthly",null,null,null,null,null,"Quarterly","Quarterly","Quarterly",null,null,null,null,null,"Monthly","Monthly","Monthly",null,null,null,null,null,"Monthly","Monthly","Monthly","Monthly",null,"Monthly","Monthly","Monthly","Monthly","Monthly","Monthly",null,null,null,null,null,null,"Monthly","Monthly","Monthly","Monthly","Monthly","Monthly","Monthly","Monthly","Monthly",null,null,null,null,null,"Monthly","Monthly","Monthly","Monthly","Monthly","Monthly","Monthly","Monthly","Monthly"]
["Units:","Billions of Dollars","Billions of Chained 2009 Dollars","Billions of Chained 2009 Dollars","Billions of Chained 2009 Dollars","Billions of Chained 2009 Dollars","Billions of Chained 2009 Dollars","Billions of Chained 2009 Dollars","Billions of Chained 2009 Dollars","Billions of Chained 2009 Dollars","Billions of Chained 2009 Dollars","Billions of Chained 2009 Dollars","Billions of Chained 2009 Dollars","Billions of Chained 2009 Dollars","Billions of Chained 2009 Dollars","Billions of Chained 2009 Dollars","Billions of Dollars",null,null,null,null,null,"Percent of Capacity","Percent of Capacity","Billions of Dollars","Ratio","Billions of Dollars","Billions of Dollars","Percent","Percent","Ratio","Ratio","Ratio","Millions of Dollars","XXXXXXXX","Index: December 2005=100","Index: December 2005=100","Index: December 2005=100","Index 2012=100","Index 2012=100","Millions of Dollars","Ratio","Index","Index","Index","Index","Index","Index","Index","Index","Index","Index","Index","Index","Millions of Dollars","Index, 2009=100","Index, 2009=100","Index, 2009=100","Index, 2009=100","Index, 2009=100","Index, 2009=100","Billions of Dollars","Ratio","XXXXXXXX","Millions of Dollars","Millions of Dollars",null,null,null,null,null,"Billions of Dollars","Percent","Percent","Billions of Dollars","Thousands of Units","Thousands of Units","Billions of Dollars","Millions of Units","Percent","Percent","Thousands, SAAR","Thousands, SAAR",null,"Thousands","Thousands",null,"Thousands","Billions of Dollars","Billions of Dollars","Thousands of Units","Billions of Chained 2009 Dollars","Billions of Dollars","Billions of Dollars","Thousands","Billions of Dollars","Index 1st Quarter 1966=100","Index",null,null,null,null,null,"Index 1982-84=100","Index 1982-84=100",null,null,null,null,null,"Index 2002=100","Hours","Percent","Percent","Percent","Thousands","Thousands","XXXXXXXX","XXXXXXXX","Thousands","Thousands","XXXXXXXX","XXXXXXXX","Number","Weeks","Thousands","Thousands","Thousands","Thousands","Thousands","Thousands","Thousands","Thousands",null,null,null,null,null,"Index","Index","Index",null,null,null,null,null,"Index 1982=100","Index 1982=100","Index 1982=100",null,null,null,null,null,"Percent","Percent","Percent","Percent","Yield Spread (in BPS)","Percent","Percent","Percent","Percent","Percent","Percent","Yield Spread (in BPS)",null,null,null,null,null,"Canadian Dollars to One U.S. Dollar","Chinese Yuan to One U.S. Dollar","Mexican New Pesos to One U.S. Dollar","U.S. Dollars to One Euro","Index January 1997=100","Index March 1973=100","Millions of Dollars","Millions of Dollars","Millions of Dollars",null,null,null,null,null,"$ per Bbl.","$ per Bbl.","$ per Gallon","$ per Gallon","000s Bbls/Day","000s Bbls/Day","$ per MmBTU","000s Bbls/Day","000s Bbls/Day"]
[1959,522.45550000000003,3030.9707499999995,3031.9047500000001,1840.5,82.200557875756957,640.51770400599526,1117.7817381182476,181.03366640542785,97.627054340258383,218.3,15.340250000000001,121.17025,89.534499999999994,-31.635750000000002,1000.9177500000001,-3.8832500000000003,null,null,null,null,null,"--","--",37.082058333333336,"--",32.227250000000005,24.946750000000002,"--","--","--","--","--","--","--","--","--","--",23.506425,"--","--","--",60.108333333333341,"--","--",57.30833333333333,"--","--",53.25,61.166666666666657,63.975000000000001,63.466666666666661,60.641666666666666,"--","--","--","--",7.67,34.655999999999999,51.513999999999996,22.13175,24.946750000000002,"--",null,"--","--",null,null,null,null,null,22.326316666666667,"--","--",134.17000000000002,1535.3333333333333,"--","--","--",0,0,"--","--","--","--","--","--","--",403.18333333333334,37.141666666666666,1245.4166666666665,2092.1,140.92500000000001,52.156608333333331,177764.75000000003,"--","--","--",null,null,null,null,null,29.150000000000002,30.175000000000001,null,null,null,null,null,"--","--",59.274999999999999,"--",5.45,15325.666666666666,null,null,"--",53372.166666666664,null,null,"--",0,"--","--","--","--","--","--","--","--","--",null,null,null,null,null,0,0,0,null,null,null,null,null,31.666666666666668,"--",32.708333333333343,null,null,null,null,null,4.4775,3.3050000000000002,4.3816666666666668,5.0533333333333337,{"$f":"+(FB11-FA11)*100","v":67.166666666666686},"--",3.3858333333333333,4.2350000000000003,"--",4.4550000000000001,4.333333333333333,{"$f":"+FI11-FF11","v":9.8333333333332718E-2},null,null,null,null,null,"--","--","--","--","--","--","--","--","--",null,null,null,null,null,2.9750000000000005,"--","--","--","--","--","--","--","--"]
[1960,543.27974999999992,3108.7072499999995,3114.1037500000002,1891,83.868513923777442,651.15420882003161,1155.977277256191,191.02212503638691,107.71630381225665,202.77500000000001,13.033249999999995,122.78225,105.06425,-17.718000000000004,1006.97,0.18574999999999986,null,null,null,null,null,"--","--",40.969358333333332,"--",31.07075,23.141500000000001,"--","--","--","--","--","--","--","--","--","--",24.037233333333333,"--","--","--",47.1,"--","--",45.291666666666664,"--","--",44.166666666666671,51.225000000000001,53.283333333333331,51.583333333333336,35.666666666666664,"--","--","--","--",8.0015000000000001,35.066499999999998,52.951250000000002,22.820999999999998,23.141500000000001,"--",null,"--","--",null,null,null,null,null,25.284383333333331,"--","--",151.2825,1256,1003.3333333333334,"--","--",0,0,"--","--","--","--","--","--","--",422.53333333333336,37.825000000000003,999.91666666666663,2146.9916666666672,151.77500000000001,58.32329166666667,180638.66666666666,"--","--","--",null,null,null,null,null,29.585000000000001,30.641666666666669,null,null,null,null,null,"--","--",59.416666666666664,"--",5.541666666666667,15437.249999999998,null,null,{"$f":"+DL12-DL11","v":111.58333333333212},54294.166666666664,null,null,{"$f":"+DP12-DP11","v":922},0,"--","--","--","--","--","--","--","--","--",null,null,null,null,null,2718.035468659034,4539.9977019286698,5521.2283626041435,null,null,null,null,null,31.683333333333337,"--",32.799999999999997,null,null,null,null,null,4.8208333333333329,3.2158333333333338,4.41,5.1891666666666669,{"$f":"+(FB12-FA12)*100","v":77.916666666666686},"--",2.8833333333333333,3.6266666666666669,"--",4.0900000000000007,4.1166666666666671,{"$f":"+FI12-FF12","v":0.49000000000000021},null,null,null,null,null,"--","--","--","--","--","--","--","--","--",null,null,null,null,null,2.97,"--","--","--","--","--","--","--","--"]
[1961,563.30774999999994,3188.123,3195.7177499999998,1929.9750000000001,81.054477646442294,664.29757903246832,1184.6229433210892,192.50855142300549,109.71106661455113,203.35,11.69275,121.95850000000002,105.6215,-16.337000000000003,1060.6154999999999,-4.7050000000000001,null,null,null,null,null,"--","--",42.563049999999997,"--",31.014499999999998,22.8415,"--","--","--","--","--","--","--","--","--","--",24.197166666666664,"--","--","--",56.541666666666664,"--","--",52.5,"--","--",47.233333333333334,62.608333333333334,52.25833333333334,61.308333333333337,48.091666666666661,"--","--","--","--",8.2669999999999995,36.207750000000004,54.126500000000007,22.835499999999996,22.8415,"--",null,"--","--",null,null,null,null,null,27.139708333333335,"--","--",164.95000000000002,1311.5,1067.0833333333333,"--","--",0,0,"--","--","--","--","--","--","--",441.09166666666664,44.374999999999993,973,2222.6833333333334,167.53333333333333,60.756791666666665,183618.75000000003,"--","--","--",null,null,null,null,null,29.901666666666667,31,null,null,null,null,null,"--","--",59.324999999999996,"--",6.6916666666666664,15009.75,null,null,{"$f":"+DL13-DL12","v":-427.49999999999818},54102.833333333328,null,null,{"$f":"+DP13-DP12","v":-191.33333333333576},0,"--","--","--","--","--","--","--","--","--",null,null,null,null,null,2766.6269864199476,4633.884332390413,5649.3753005340104,null,null,null,null,null,31.574999999999999,"--",32.9,null,null,null,null,null,4.5,1.9550000000000001,4.3499999999999996,5.0750000000000002,{"$f":"+(FB13-FA13)*100","v":72.500000000000057},"--",2.3541666666666665,2.9808333333333334,"--",3.7508333333333335,3.8824999999999998,0.90166666666666639,null,null,null,null,null,"--","--","--","--","--","--","--","--","--",null,null,null,null,null,2.97,"--","--","--","--","--","--","--","--"]
[1962,605.11575000000005,3383.0845000000004,3374.4285,2025.425,90.310098784077326,684.76034366192607,1250.3545575539968,208.08335977070698,124.63292560073786,222.82499999999999,24.110249999999997,135.79949999999999,110.94975000000001,-24.84975,1129.5107499999999,-5.3422499999999999,null,null,null,null,null,"--","--",45.532350000000001,"--",35.109249999999996,26.245750000000001,"--","--","--","--","--","--","--","--","--","--",26.213783333333332,"--","--","--",54.45,"--","--",53.25,"--","--",50.38333333333334,56.241666666666667,50.741666666666674,58.274999999999999,48.8,"--","--","--","--",8.5975000000000001,37.858250000000005,55.637500000000003,22.71,26.245750000000001,"--",null,"--","--",null,null,null,null,null,29.101333333333329,"--","--",174.96,1458.5833333333333,1187.1666666666667,"--","--",0,0,"--","--","--","--","--","--","--",469.10833333333335,46.358333333333334,989.91666666666663,2329.0416666666665,185.07500000000002,65.205033333333319,186474.83333333334,"--","--","--",null,null,null,null,null,30.253333333333334,31.4,null,null,null,null,null,"--","--",58.766666666666666,"--",5.5666666666666673,15497.083333333332,null,null,487.33333333333212,55659.416666666664,null,null,1556.5833333333358,0,"--","--","--","--","--","--","--","--","--",null,null,null,null,null,2969.1198067346741,4909.0141223313567,5961.5952845576849,null,null,null,null,null,31.650000000000002,"--",33,null,null,null,null,null,4.5,2.7083333333333335,4.3250000000000002,5.0199999999999996,69.499999999999943,"--",2.7733333333333334,3.1008333333333331,"--",3.7016666666666667,3.9458333333333333,0.8450000000000002,null,null,null,null,null,"--","--","--","--","--","--","--","--","--",null,null,null,null,null,2.97,"--","--","--","--","--","--","--","--"]
[1963,638.57850000000008,3530.4117499999998,3525.3462499999996,2108.875,98.629413305799034,699.50789021390278,1310.7376964802982,220.18303390134136,136.01829942313799,249.14999999999998,22.307749999999999,139.46,118.8835,-20.576500000000003,1157.0695000000001,-2.1187500000000004,null,null,null,null,null,"--","--",49.361858333333323,"--",38.045249999999996,29.285250000000001,"--","--","--","--","--","--","--","--","--","--",27.820141666666668,"--","--","--",56.44166666666667,"--","--",52.349999999999994,"--","--",48.716666666666669,61.366666666666667,59.55,60.083333333333329,51.058333333333337,"--","--","--","--",8.8915000000000006,39.161249999999995,56.826999999999998,22.70675,29.285250000000001,"--",null,"--","--",null,null,null,null,null,32.297516666666667,"--","--",194.1275,1588.3333333333333,1328.25,"--","--",0,0,"--","--","--","--","--","--",549.12500000000011,492.8416666666667,46.675000000000004,1007.3333333333334,2416.5833333333335,205.48333333333332,72.490241666666662,189188.75,"--","--","--",null,null,null,null,null,30.633333333333333,31.80833333333333,null,null,null,null,null,"--","--",58.658333333333331,"--",5.6416666666666666,15631.916666666668,null,null,134.83333333333576,56766.833333333328,null,null,1107.4166666666642,0,"--","--","--","--","--","--","--","--","--",null,null,null,null,null,3134.4469784448029,5135.0097371370393,6208.8719877638787,null,null,null,null,null,31.575000000000003,"--",33.049999999999997,null,null,null,null,null,4.5,3.1783333333333332,4.2591666666666663,4.855833333333333,59.666666666666671,"--",3.1591666666666667,3.3566666666666669,"--",3.8291666666666666,4.0025000000000004,0.64583333333333348,null,null,null,null,null,"--","--","--","--","--","--","--","--","--",null,null,null,null,null,2.97,"--","--","--","--","--","--","--","--"]
[1964,685.78424999999993,3734.0427500000005,3734.8127500000001,2234.4250000000002,107.83387014748251,732.34184525845899,1394.2492845940585,243.80251252826986,158.43705237855619,263.7,19.010999999999999,146.87025,132.88624999999999,-13.983999999999995,1185.8995,-6.8617499999999998,null,null,null,null,null,"--","--",54.670416666666668,"--",43.290999999999997,34.334249999999997,"--","--","--","--","--","--","--","--","--","--",29.693058333333333,"--","--","--",60.633333333333333,"--","--",55.4,"--","--",54.366666666666674,63.18333333333333,63.3,62.94166666666667,62.783333333333331,"--","--","--","--",9.17,40.29175,57.84225,22.759499999999999,34.334249999999997,"--",null,"--","--",null,null,null,null,null,37.11504166666667,"--","--",213.63500000000002,1540.4166666666667,1284.75,"--","--",0,0,"--","--","--","--","--","--",566.66666666666674,528.35,54.833333333333329,979.16666666666674,2588.1583333333328,224.97499999999999,81.819358333333327,191820.33333333331,"--","--","--",null,null,null,null,null,31.038333333333334,32.299999999999997,null,null,null,null,null,52.083333333333336,38.524999999999999,58.716666666666669,"--",5.1583333333333323,15888.666666666668,null,null,256.75,58394.583333333336,null,null,1627.7500000000073,0,"--","--","--","--","--","--","--","--","--",null,null,null,null,null,3321.6260150306839,5425.4788883367437,6556.8069260672255,null,null,null,null,null,31.633333333333336,"--",33.408333333333331,null,null,null,null,null,4.5,3.4966666666666666,4.4058333333333337,4.8283333333333331,42.249999999999943,"--",3.5466666666666664,3.8458333333333332,"--",4.0683333333333334,4.1866666666666665,0.34083333333333332,null,null,null,null,null,"--","--","--","--","--","--","--","--","--",null,null,null,null,null,2.9449999999999998,"--","--","--","--","--","--","--","--"]
[1965,743.72625000000016,3976.6602499999999,3955.1737499999999,2376.0500000000002,121.20054246482444,769.2379010678851,1485.6115564672907,284.53222895720921,196.68862878107541,255.89999999999998,36.238500000000002,162.5035,136.60325,-25.900249999999993,1224.19425,-5.4690000000000003,null,null,null,null,null,"--","--",64.198999999999998,"--",52.044750000000001,41.963000000000001,"--","--","--","--","--","--","--","--","--","--",32.643825,"--","--","--",60.666666666666664,"--","--",57.45,"--","--",55.833333333333329,61.216666666666669,68.89166666666668,60.949999999999996,66.625,"--","--","--","--",9.4755000000000003,41.578000000000003,58.838250000000002,22.791499999999999,41.963000000000001,"--",null,"--","--",null,null,null,null,null,42.549824999999998,"--","--",230.89250000000001,1469.3333333333335,1240.25,"--","--",0,0,"--","--","--","--","--","--",574.75000000000011,570.8416666666667,58.283333333333331,960.16666666666663,2748.8500000000004,246.55,91.940566666666669,194249.66666666666,"--","--","--",null,null,null,null,null,31.528333333333332,32.733333333333334,null,null,null,null,null,54.44166666666667,38.633333333333333,58.833333333333336,"--",4.5083333333333337,16618.166666666668,null,null,729.5,60878.666666666672,null,null,2484.0833333333358,0,"--","--","--","--","--","--","--","--","--",null,null,null,null,null,3525.1761963434287,5761.6648080113137,6973.8523693625766,null,null,null,null,null,32.266666666666666,"--",33.81666666666667,null,null,null,null,null,4.5350000000000001,4.0725000000000007,4.4933333333333332,4.8658333333333328,37.249999999999957,"--",3.9491666666666667,4.144166666666667,"--",4.2475000000000005,4.2824999999999998,0.13833333333333275,null,null,null,null,null,"--","--","--","--","--","--","--","--","--",null,null,null,null,null,2.92,"--","--","--","--","--","--","--","--"]
[1966,815.03575000000001,4238.9305000000004,4196.9057499999999,2510.625,131.26200126369636,811.99599787400439,1567.3670008622994,319.47549980966897,228.46575256176064,233.32500000000002,51.92325000000001,186.65275,146.04649999999998,-40.606250000000003,1330.9662499999999,-6.9555000000000007,null,null,null,null,null,"--","--",74.991908333333328,"--",56.502749999999999,45.624749999999999,"--","--","--","--","--","--","--","--","--","--",35.53199166666667,"--","--","--",59.891666666666666,"--","--",58.000000000000007,"--","--",54,56.816666666666663,77.824999999999989,59.558333333333337,72.99166666666666,"--","--","--","--",10.03575,43.082500000000003,60.506250000000001,23.294249999999998,45.624749999999999,"--",null,"--","--",null,null,null,null,null,46.954383333333332,"--","--",251.315,1166.5,974.83333333333337,"--","--",0,0,"--","--","--","--","--","--",456.91666666666663,620.55833333333328,61.358333333333334,776.5,2895.0250000000001,254.85833333333332,99.719499999999996,196507.5,"--","--","--",null,null,null,null,null,32.470833333333331,33.549999999999997,null,null,null,null,null,56.783333333333331,38.475000000000009,59.15,"--",3.791666666666667,17680.75,null,null,1062.5833333333321,64024.833333333336,null,null,3146.1666666666642,0,"--","--","--","--","--","--","--","--","--",null,null,null,null,null,3721.1776754447719,6098.1712490425352,7409.8884978457663,null,null,null,null,null,33.308333333333337,"--",34.641666666666666,null,null,null,null,null,5.625,5.1108333333333329,5.13,5.665,53.500000000000014,"--",4.8624999999999998,5.203333333333334,"--",5.104166666666667,4.9233333333333338,-0.28000000000000025,null,null,null,null,null,"--","--","--","--","--","--","--","--","--",null,null,null,null,null,2.936666666666667,"--","--","--","--","--","--","--","--"]
[1967,861.72974999999997,4355.2417500000001,4334.0625,2585.6000000000004,133.21391915424792,829.42442217307757,1622.9616586726747,318.37293078662776,224.53446667390216,225.5,37.320749999999997,200.25225,149.386,-50.866249999999994,1436.4159999999997,-19.491250000000001,null,null,null,null,null,"--","--",82.521583333333339,"--",54.704499999999996,43.805250000000001,"--","--","--","--","--","--","--","--","--","--",36.298974999999999,"--","--","--",49.716666666666661,"--","--",48.783333333333331,"--","--",44.216666666666661,52.141666666666673,67.350000000000009,53.199999999999996,44.041666666666664,"--","--","--","--",10.621499999999999,43.898250000000004,62.305,24.194999999999997,43.805250000000001,"--",null,"--","--",null,null,null,null,null,49.338958333333331,"--","--",277.58500000000004,1284.8333333333333,1142.8333333333333,"--","--",0,0,"--","--","--","--","--","--",488.5,665.74166666666667,72.233333333333348,839.66666666666663,3020.6333333333332,258.4666666666667,104.132975,198664.41666666666,"--","--","--",null,null,null,null,null,33.375,34.708333333333336,null,null,null,null,null,56.991666666666667,37.858333333333334,59.56666666666667,"--",3.8416666666666668,17897.166666666668,null,null,216.41666666666788,65935.166666666657,null,null,1910.3333333333212,0,{"$error":"#DIV/0!"},"--","--","--","--","--","--","--","--",null,null,null,null,null,3770.8312515110474,6231.7698900539726,7616.5666070001589,null,null,null,null,null,33.400000000000006,"--",35.808333333333337,null,null,null,null,null,5.6333333333333337,4.22,5.5066666666666668,6.2283333333333335,72.166666666666671,"--",4.3066666666666666,4.8850000000000007,"--",5.1074999999999999,5.0733333333333333,0.18833333333333258,null,null,null,null,null,"--","--","--","--","--","--","--","--","--",null,null,null,null,null,3.0266666666666668,"--","--","--","--","--","--","--","--"]
[1968,942.47699999999998,4569.0465000000004,4553.3712500000001,2734.0749999999998,148.00040068424531,864.52053775068055,1721.5540615650741,333.64963713921071,235.10029676052301,256.32499999999999,33.908000000000001,230.09449999999998,161.17525000000001,-68.919250000000005,1485.723,-13.73725,null,null,null,null,null,"--","--",90.432850000000002,"--",58.27825,45.848500000000001,"--","--","--","--","--","--","--","--","--","--",38.315375000000003,"--","--","--",55.066666666666663,"--","--",51.616666666666667,"--","--",50.8,57.300000000000004,72.7,58.274999999999999,52.625,"--","--","--","--",11.4215,45.432749999999999,64.266750000000002,25.138500000000001,45.848500000000001,"--",null,"--","--",null,null,null,null,null,54.363558333333337,"--","--",306.53750000000002,1503.5833333333333,1348.7499999999998,"--","--",0,0,"--","--","--","--","--","--",491.08333333333331,730.73333333333323,72.066666666666663,900.33333333333326,3157.5583333333334,265.3416666666667,111.83156666666666,200663.75,"--","--","--",null,null,null,null,null,34.791666666666671,36.325000000000003,null,null,null,null,null,58.36666666666666,37.666666666666671,59.625,"--",3.5583333333333331,18210.833333333336,null,null,313.66666666666788,68026.5,null,null,2091.333333333343,0,4.5,"--","--","--","--","--","--","--","--",null,null,null,null,null,3996.4067784424851,6575.6105903378639,8022.1758138374435,null,null,null,null,null,34.233333333333334,"--",37.041666666666671,null,null,null,null,null,6.3125,5.6566666666666672,6.1749999999999998,6.935833333333334,76.083333333333414,"--",5.3383333333333329,5.690833333333333,"--",5.6983333333333333,5.645833333333333,-4.4999999999999929E-2,null,null,null,null,null,"--","--","--","--","--","--","--","--","--",null,null,null,null,null,3.07,"--","--","--","--","--","--","--","--"]
[1969,1019.8842500000001,4712.4832500000002,4697.6824999999999,2836.3,153.53893572100037,888.44179781046898,1794.3192664685305,356.84033892384542,251.79656261384991,264.10000000000002,33.346249999999998,243.20525000000001,169.036,-74.169250000000005,1488.0329999999999,-5.1080000000000005,null,null,null,null,null,"--","--",102.18670833333333,"--",56.6755,43.077249999999999,"--","--","--","--","--","--","--","--","--","--",40.094016666666661,"--","--","--",54.85,"--","--",52.183333333333337,"--","--",49.725000000000001,53.208333333333329,81.075000000000003,54.841666666666669,65.216666666666654,"--","--","--","--",12.202999999999999,45.512749999999997,65.123999999999995,26.814499999999999,43.077249999999999,"--",null,"--","--",null,null,null,null,null,60.712691666666665,"--","--",334.48500000000001,1486.6666666666665,1327.5,"--","--",0,0,"--","--","--","--","--","--",448.66666666666669,800.25833333333333,75.033333333333346,815.41666666666663,3264.0916666666667,266.2,123.27105,202648.66666666669,"--","--","--",null,null,null,null,null,36.68333333333333,38.416666666666671,null,null,null,null,null,60.333333333333343,37.541666666666671,60.075000000000003,"--",3.4916666666666667,18572.333333333332,null,null,361.49999999999636,70514.833333333328,null,null,2488.3333333333285,0,4.4416666666666664,"--","--","--","--","--","--","--","--",null,null,null,null,null,4120.2234292128996,6789.8791529933924,8294.8361664779404,null,null,null,null,null,35.591666666666669,"--",38.266666666666666,null,null,null,null,null,7.9516666666666662,8.2041666666666657,7.0291666666666659,7.8133333333333344,78.416666666666842,"--",6.666666666666667,7.1224999999999996,"--",6.9333333333333336,6.6708333333333334,-0.45166666666666622,null,null,null,null,null,"--","--","--","--","--","--","--","--","--",null,null,null,null,null,3.2949999999999999,"--","--","--","--","--","--","--","--"]
[1970,1075.8902499999999,4722.0117499999997,4740.4854999999998,2903.1000000000004,149.47904883724505,908.19763727334976,1845.4233138894051,353.67964105779379,241.72950103137379,248.29999999999998,6.1557499999999994,253.58024999999998,187.04575,-66.534499999999994,1457.7047499999999,-34.761499999999998,null,null,null,null,null,"--","--",107.74858333333334,"--",51.505749999999992,36.386249999999997,"--","--","--","--","--","--","--","--","--","--",38.771925000000003,"--","--","--",46.225000000000001,"--","--",40.858333333333327,"--","--",46.083333333333336,47.391666666666666,71.841666666666669,46.7,50.3,"--","--","--","--",13.0555,46.183750000000003,65.805999999999997,28.267999999999997,36.386249999999997,"--",null,"--","--",null,null,null,null,null,63.911408333333341,"--","--",359.995,1434.8333333333333,1346.9166666666665,"--","--",0,0,"--","--","--","--","--","--",489.66666666666663,864.58333333333337,96.058333333333337,814.25000000000011,3413.1083333333336,255.27499999999998,129.56105833333334,204982.33333333331,"--","--","--",null,null,null,null,null,38.841666666666669,40.816666666666663,null,null,null,null,null,59.375000000000007,36.983333333333334,60.383333333333333,"--",4.9833333333333334,17847.083333333336,null,null,-725.24999999999636,71007,null,null,492.16666666667152,0,4.9833333333333334,"--","--","--","--","--","--","--","--",null,null,null,null,null,4037.972166545529,6789.9949233061579,8379.9649492439785,null,null,null,null,null,36.9,"--",40.091666666666669,null,null,null,null,null,7.9099999999999993,7.1808333333333332,8.0400000000000009,9.1050000000000004,106.49999999999994,"--",6.3916666666666675,6.8975,"--",7.3758333333333335,7.3483333333333336,0.45083333333333364,null,null,null,null,null,"--","--","--","--","--","--","--","--","--",null,null,null,null,null,3.3508333333333331,"--","--","--","--","--","--","--","--"]
[1971,1167.7662500000001,4877.6244999999999,4870.6050000000005,3013.875,164.48809505463163,925.21278224426999,1924.1741227010984,353.50813032087626,232.94256449084551,315.82499999999999,27.501249999999999,267.11400000000003,190.30924999999999,-76.804749999999984,1430.97525,-50.823499999999996,null,null,null,null,null,"--","--",114.53122499999999,"--",61.10575,43.537999999999997,"--","--","--","--","--","--","--","--","--","--",39.301958333333332,"--","--","--",53.699999999999996,"--","--",47.63333333333334,"--","--",49.466666666666669,58.86666666666666,65.433333333333323,57.483333333333334,48.024999999999991,"--","--","--","--",13.853999999999999,47.997250000000001,66.997249999999994,28.863499999999998,43.537999999999997,"--",null,"--","--",null,null,null,null,null,69.076466666666676,"--","--",381.59,2035.583333333333,1909.75,"--","--",0,0,"--","--","--","--","--","--",656.58333333333337,932.14166666666665,110.08333333333334,1145.9166666666665,3570.3999999999996,278.87500000000006,139.90450833333333,207589.33333333334,"--","--","--",null,null,null,null,null,40.483333333333334,42.733333333333341,null,null,null,null,null,58.983333333333334,36.766666666666666,60.158333333333339,"--",5.9500000000000011,17171.000000000004,null,null,-676.08333333333212,71330.5,null,null,323.5,0,6.2750000000000004,"--","--","--","--","--","--","--","--",null,null,null,null,null,4274.3510513840902,7078.9036091260068,8665.9398872743895,null,null,null,null,null,38.108333333333334,"--",41.725000000000001,null,null,null,null,null,5.7233333333333336,4.6608333333333327,7.3866666666666676,8.5633333333333344,117.66666666666667,7.5466666666666669,4.3325000000000005,4.88,"--",5.9874999999999998,6.1591666666666667,1.2791666666666668,null,null,null,null,null,"--","--","--","--","--","--","--","--","--",null,null,null,null,null,3.56,"--","--","--","--","--","--","--","--"]
[1972,1282.4472499999999,5134.3469999999998,5125.9842499999995,3198.7,184.92823128727508,962.66894030106096,2051.1028284116637,384.31472554244414,255.07019185684325,372.32499999999999,28.249500000000001,297.17274999999995,205.1155,-92.057249999999996,1424.17175,-48.886000000000003,null,null,null,null,null,83.275000000000006,"--",124.65686666666667,"--",73.543499999999995,53.103999999999999,"--","--","--","--","--","--","--","--","--","--",43.08155,38.356716666666671,"--","--",62.8,"--","--",56.591666666666669,"--","--",54.541666666666664,66.849999999999994,72.941666666666663,66.291666666666686,62.666666666666671,"--","--","--","--",14.74225,49.619,69.031500000000008,29.709999999999997,53.103999999999999,"--",null,"--","--",null,null,null,null,null,79.712125,"--","--",409.73750000000001,2360.75,2229.9166666666665,"--","--",0,0,"--","--","--","--","--","--",722.33333333333337,1023.575,109.19999999999999,1310.9166666666667,3741.0916666666667,307.5333333333333,156.60990833333335,209837.58333333334,"--","--","--",null,null,null,null,null,41.808333333333337,44.041666666666664,null,null,null,null,null,61.375,36.875,60.38333333333334,"--",5.6,17664.083333333336,null,null,493.08333333333212,73787.583333333328,null,null,2457.0833333333285,0,6.1083333333333325,"--","--","--","--","--","--","--","--",null,null,null,null,null,4591.846263896422,7525.0907010262254,9160.2345712122551,null,null,null,null,null,39.791666666666664,"--",42.766666666666673,null,null,null,null,null,5.2483333333333331,4.4308333333333332,7.2133333333333338,8.1549999999999994,94.166666666666558,7.3841666666666663,4.0724999999999998,4.96,"--",5.9816666666666665,6.2100000000000009,1.2500000000000009,null,null,null,null,null,0.99079166666666674,"--","--","--","--","--","--","--","--",null,null,null,null,null,3.56,"--","--","--","--","--","--","--","--"]
[1973,1428.5392499999998,5424.0845000000008,5392.433500000001,3357.2750000000001,204.26833515696023,990.30971431422415,2162.6969505288157,435.14724109362089,295.89592977702046,370.65,42.932500000000005,310.96274999999997,243.78,-67.182749999999984,1419.5732499999999,-37.689,null,null,null,null,null,87.775000000000006,"--",151.97655,"--",96.157499999999999,69.727000000000004,"--","--","--","--","--","--","--","--","--","--",46.613025,41.888441666666665,"--","--",65.891666666666666,"--","--",60.30833333333333,"--","--",62.49166666666666,63.325000000000003,88.199999999999989,61.566666666666677,87.966666666666654,"--","--","--","--",15.8665,51.139000000000003,69.931250000000006,31.030750000000001,69.727000000000004,"--",null,"--","--",null,null,null,null,null,93.304825000000008,"--","--",438.6825,2043.9166666666667,1823.5,"--","--",0,0,"--","--","--","--","--","--",631.08333333333326,1138.5250000000001,131.80000000000001,1134,3967.9,325.09999999999997,180.66556666666668,211857.16666666666,"--","--","--",null,null,null,null,null,44.425000000000004,45.575000000000003,null,null,null,null,null,64.13333333333334,36.858333333333334,60.774999999999999,"--",4.8583333333333334,18584.166666666668,null,null,920.08333333333212,76901.416666666672,null,null,3113.833333333343,0,5.1750000000000007,"--","--","--","--","--","--","--","--",null,null,null,null,null,4843.2918694625196,7891.688297617995,9605.4526397059162,null,null,null,null,null,45.024999999999999,"--",44.183333333333337,null,null,null,null,null,8.0216666666666665,8.7274999999999991,7.440833333333333,8.2408333333333328,79.999999999999986,8.043333333333333,7.0316666666666663,7.3116666666666665,"--",6.8666666666666663,6.8425000000000002,-0.46916666666666629,null,null,null,null,null,1.0002333333333333,"--","--","--","--","--","--","--","--",null,null,null,null,null,3.8724999999999996,"--","--","--","--","--","--","--","--"]
[1974,1548.8184999999999,5396.0335000000005,5378.3535000000002,3329.6000000000004,191.16771717856631,966.20900401984295,2172.2232788015908,438.70404709017248,280.20387624032674,294.39999999999998,32.02375,303.92,263.04450000000003,-40.875499999999988,1451.8415,-40.646000000000001,null,null,null,null,null,84.525000000000006,"--",179.88464166666668,"--",108.74175,80.426000000000002,"--","--","--","--","--","--","--","--","--","--",46.475533333333331,41.793333333333337,"--","--",51.516666666666666,"--","--",48.516666666666666,"--","--",54.99166666666666,47.591666666666669,85.516666666666652,73.75,65.75,"--","--","--","--",17.373000000000001,50.294250000000005,68.970500000000001,34.546499999999995,80.426000000000002,"--",null,"--","--",null,null,null,null,null,101.40344166666667,"--","--",459.70750000000004,1331.9166666666667,1070.3333333333333,"--","--",0,0,"--","--","--","--","--","--",512.83333333333337,1249.3499999999999,141.71666666666667,882.25,3923.9166666666665,331.6,196.62349166666667,213814.75000000003,"--","--","--",null,null,null,null,null,49.316666666666663,49.358333333333327,null,null,null,null,null,64.141666666666666,36.424999999999997,61.275000000000006,"--",5.6416666666666666,18512.25,null,null,-71.916666666667879,78383.083333333328,null,null,1481.666666666657,0,5.1833333333333327,"--","--","--","--","--","--","--","--",null,null,null,null,null,4415.5910610216797,7746.7052456768288,9557.7659415250073,null,null,null,null,null,53.483333333333334,53.608333333333334,50.433333333333337,null,null,null,null,null,10.798333333333334,10.502499999999998,8.5658333333333321,9.4966666666666661,93.0833333333334,9.1891666666666669,7.83,8.1816666666666666,"--",7.8016666666666667,7.5574999999999992,-0.62416666666666742,null,null,null,null,null,0.97813333333333341,"--","--","--",32.581666666666663,102.04809999999999,"--","--","--",null,null,null,null,null,10.3725,"--","--","--",{"$f":"AVERAGE(Quarterly!GH71:GH74)","v":0},"--","--","--","--"]
[1975,1688.92,5385.3667500000001,5434.5604999999996,3405.15,191.62307941253508,974.50721789827844,2239.0197026891865,399.21574170939823,221.78880379658455,255.35,-14.075000000000001,270.13874999999996,261.38024999999999,-8.758499999999998,1483.81025,-96.977000000000004,null,null,null,null,null,73.575000000000003,"--",185.52519166666667,"--",103.12674999999999,77.807500000000005,"--","--","--","--","--","--","--","--","--","--",42.335916666666662,37.302550000000004,"--","--",44.866666666666667,"--","--",42.75,"--","--",32.708333333333329,51.924999999999997,56.958333333333329,51.749999999999993,30.200000000000003,"--","--","--","--",19.195,51.663499999999999,69.8185,37.150749999999995,77.807500000000005,"--",null,"--","--",null,null,null,null,null,102.11665833333333,"--","--",493.87,1159.75,938.75,"--","--",0,0,"--","--","--","--","--","--",553.58333333333326,1366.8916666666667,159.00833333333333,891.08333333333326,4020.6333333333332,365.66666666666669,199.36283333333336,215890.66666666666,"--","--","--",null,null,null,null,null,53.824999999999996,53.908333333333324,null,null,null,null,null,61.166666666666664,35.983333333333334,61.233333333333334,"--",8.4750000000000014,16912.583333333336,null,null,-1599.6666666666642,77071.333333333328,null,null,-1311.75,0,8.466666666666665,"--","--","--","--","--","--","--","--",null,null,null,null,null,4429.4491585528613,7695.1971432321789,9624.183945141107,null,null,null,null,null,58.416666666666664,59.741666666666667,58.183333333333337,null,null,null,null,null,7.8624999999999998,5.8241666666666667,8.8258333333333336,10.61,178.41666666666657,9.0408333333333335,5.7750000000000012,6.7583333333333337,"--",7.7658333333333331,7.9875000000000007,1.229166666666667,null,null,null,null,null,1.0172666666666668,"--","--","--",33.676433333333335,102.38803333333333,"--","--","--",null,null,null,null,null,11.160000000000002,"--","--","--",{"$f":"AVERAGE(Quarterly!GH75:GH78)","v":0},"--","--","--","--"]
[1976,1877.5915,5675.4274999999998,5651.9215000000004,3595.0749999999998,215.50657276271775,1020.8325678526631,2358.7358593846193,421.77348720302768,235.65224369796391,315.45,37.707000000000001,322.96299999999997,272.79449999999997,-50.168499999999995,1491.5610000000001,-79.853999999999999,null,null,null,null,null,78.375,79.808333333333337,180.907275,"--",130.92599999999999,100.57124999999999,"--","--","--","--","--","--","--","--","--","--",45.671075000000002,40.755225000000003,"--","--",56.841666666666669,"--","--",53.94166666666667,"--","--",49.45,60.4,74.366666666666674,59.30833333333333,54.358333333333334,"--","--","--","--",20.686,53.447499999999991,71.127499999999998,38.700249999999997,100.57124999999999,"--",null,"--","--",null,null,null,null,null,110.17590000000001,"--","--",548.84249999999997,1535,1297.0833333333333,"--",12.966083333333332,0,0,"--","--","--","--","--","--",652.33333333333326,1498.4416666666666,147.30000000000001,1166.5,4144.2333333333336,423.62499999999994,214.63344166666667,217999.25,"--","--","--",null,null,null,null,null,56.93333333333333,57.441666666666663,null,null,null,null,null,63.550000000000004,36.049999999999997,61.583333333333329,"--",7.7,17537.5,null,null,624.91666666666424,79507,null,null,2435.6666666666715,0,8.1416666666666675,"--","--","--","--","--","--","--","--",null,null,null,null,null,4799.5560672706397,8196.2651376335616,10173.946336457206,null,null,null,null,null,61.133333333333333,63.116666666666667,62.066666666666663,null,null,null,null,null,6.84,5.0449999999999999,8.4341666666666661,9.7466666666666661,131.25,8.8650000000000002,4.9741666666666671,5.8741666666666665,"--",7.1791666666666663,7.6116666666666672,1.7375000000000007,null,null,null,null,null,0.98607500000000003,"--","--","--",35.825800000000001,106.41865000000001,"--","--","--",null,null,null,null,null,12.645,"--","--","--",{"$f":"AVERAGE(Quarterly!GH79:GH82)","v":0},"--","--","--","--"]
[1977,2085.9504999999999,5936.9852499999997,5900.8769999999995,3746.55,234.54224907149114,1044.0958437189454,2467.9119072095632,467.18708018540531,264.91958216691137,383.17500000000001,47.460500000000003,358.26975000000004,279.35900000000004,-78.910750000000021,1509.2092499999999,-71.906999999999996,null,null,null,null,null,82.45,83.458333333333343,194.87708333333336,"--",154.05200000000002,116.20224999999999,"--","--","--","--","--","--","--","--","--","--",49.163091666666666,44.24465,"--","--",56.61666666666666,"--","--",53.416666666666671,"--","--",50.81666666666667,59.341666666666661,71.75,58.724999999999994,55.733333333333327,"--","--","--","--",22.377500000000001,54.346999999999994,72.271249999999995,41.1755,116.20224999999999,"--",null,"--","--",null,null,null,null,null,127.51083333333335,"--","--",614.8125,1961.8333333333335,1682.5,"--",14.485750000000001,0,0,"--","--","--","--","--","--",819.58333333333326,1654.575,148.15,1437.3333333333333,4274.291666666667,476.67500000000001,243.63325833333334,220193.08333333334,"--","--","--",null,null,null,null,null,60.616666666666667,61.033333333333339,null,null,null,null,null,66.058333333333323,35.908333333333339,62.233333333333334,"--",7.05,18173.75,null,null,636.25,82599.5,null,null,3092.5,0,7.0666666666666664,"--","--","--","--","--","--","--","--",null,null,null,null,null,5171.9456498218387,8620.4773028248055,10608.389124171561,null,null,null,null,null,64.875,66.88333333333334,66.074999999999989,null,null,null,null,null,6.8241666666666658,5.5374999999999996,8.024166666666666,8.9691666666666663,94.500000000000028,8.8408333333333324,5.2691666666666661,6.0883333333333338,6.453333333333334,6.99,7.4191666666666665,1.3308333333333326,null,null,null,null,null,1.0635250000000001,"--","--","--",36.876033333333339,106.08033333333333,"--","--","--",null,null,null,null,null,14.295833333333334,"--","--","--",{"$f":"AVERAGE(Quarterly!GH83:GH86)","v":0},"--","--","--","--"]
[1978,2356.569,6267.1814999999997,6225.5064999999995,3911.3250000000003,246.85493689223119,1081.7967066410902,2582.6733564666783,531.74453827895888,309.94552815126195,407.4,50.150000000000006,389.31074999999998,308.81324999999998,-80.497499999999988,1553.7282500000001,-59.824749999999995,null,null,null,null,null,84.4,85.125,223.59099166666664,"--",185.55175000000003,139.22425000000001,"--","--","--","--","--","--","--","--","--","--",51.865391666666667,46.97143333333333,"--","--",59.208333333333336,"--","--",56.274999999999999,"--","--",53.95,60.75,80.933333333333337,61.024999999999999,60.516666666666666,"--","--","--","--",24.29325,55.066749999999999,73.351749999999996,44.113999999999997,139.22425000000001,"--",null,"--","--",null,null,null,null,null,153.00905,"--","--",672.27,2000.5833333333333,1799.5,"--",14.972833333333332,0,0,"--","--","--","--","--","--",815.58333333333326,1859.7250000000001,166.54999999999998,1418.1666666666665,4470.7083333333339,494.42499999999995,285.22513333333336,222525.41666666666,41.020283333333332,79.408333333333331,"--",null,null,null,null,null,65.241666666666674,65.475000000000009,null,null,null,null,null,69.291666666666657,35.741666666666667,63.15,"--",6.0666666666666664,18935.666666666664,null,null,761.91666666666424,86829.083333333328,null,null,4229.5833333333285,0,5.95,"--","--","--","--","--","--","--","--",null,null,null,null,null,5531.1981834525204,9071.7312362144676,11124.429711263318,null,null,null,null,null,69.941666666666663,71.899999999999991,71.275000000000006,null,null,null,null,null,9.0566666666666666,7.9308333333333341,8.7250000000000014,9.4883333333333333,76.333333333333186,9.6366666666666667,7.1883333333333335,8.34,8.3375000000000004,8.317499999999999,8.41,7.0000000000000284E-2,null,null,null,null,null,1.1407666666666667,"--","--","--",35.093483333333332,97.20771666666667,"--","--","--",null,null,null,null,null,14.85,"--","--","--",{"$f":"AVERAGE(Quarterly!GH87:GH90)","v":0},"--","--","--","--"]
[1979,2632.1392500000002,6466.2074999999995,6450.347749999999,4004.2,245.60652807101343,1109.6876234055037,2648.9058485234827,584.87611442262551,337.30751556749578,393.02500000000003,30.821249999999999,395.77699999999999,339.41724999999997,-56.359749999999991,1582.6089999999999,-44.518749999999997,null,null,null,null,null,84.025000000000006,85.041666666666671,262.79192499999999,"--",211.12575000000001,154.14824999999999,"--","--","--","--","--","--","--","--","--","--",53.413158333333335,48.423491666666663,"--","--",52.491666666666667,"--","--",51.658333333333331,"--","--",50.591666666666661,51.05833333333333,87.066666666666677,52.458333333333336,57.891666666666666,"--","--","--","--",26.622749999999996,54.943249999999999,73.389749999999992,48.457000000000008,154.14824999999999,"--",null,"--","--",null,null,null,null,null,176.30710833333333,"--","--",720.71250000000009,1717.2500000000002,1530.6666666666667,"--",13.767999999999999,0,0,"--","--","--","--","--","--",703.49999999999989,2078.1916666666666,177.55833333333331,1171.5833333333333,4558.4250000000011,452.85833333333329,330.031475,225002.83333333331,49.770908333333331,66.025000000000006,"--",null,null,null,null,null,72.583333333333343,71.858333333333334,null,null,null,null,null,71.633333333333326,35.591666666666669,63.65,"--",5.85,19427.583333333336,null,null,491.91666666667152,89935.833333333343,null,null,3106.7500000000146,0,5.5833333333333339,"--","--","--","--","--","--","--","--",null,null,null,null,null,5691.2192351932872,9330.5880578544984,11451.2176025031,null,null,null,null,null,78.725000000000009,78.341666666666669,77.483333333333334,null,null,null,null,null,12.665833333333333,11.194166666666668,9.6291666666666664,10.69,106.08333333333331,11.192499999999999,10.069166666666668,10.665000000000001,10.125,9.5183333333333344,9.442499999999999,-1.2225000000000019,null,null,null,null,null,1.1715583333333335,"--","--","--",35.358383333333329,95.604616666666658,"--","--","--",null,null,null,null,null,22.404166666666665,"--","--","--",{"$f":"AVERAGE(Quarterly!GH91:GH94)","v":0},"--","--","--","--"]
[1980,2862.5075000000002,6450.3915000000006,6492.10725,3991.55,226.04641772873663,1107.8224285429196,2657.6811537283438,584.99045491390393,314.40867772323924,309.85000000000002,-10.324249999999999,369.49524999999994,375.97500000000002,6.4797500000000099,1612.462,-86.251499999999993,null,null,null,null,null,78.474999999999994,80.816666666666663,293.00794999999999,"--",195.56774999999999,143.83425,"--","--","--","--","--","--","--","--","--","--",52.035225000000004,46.572791666666667,"--","--",44.533333333333331,"--","--",43.666666666666664,"--","--",41.65,45.716666666666669,73.666666666666671,47.291666666666664,40.608333333333334,"--","--","--","--",29.490000000000002,54.895499999999998,73.153499999999994,53.719250000000002,143.83425,"--",null,"--","--",null,null,null,null,null,181.28588333333335,10.510660000000001,15.3668125,800.26249999999993,1300.25,1196.8333333333335,"--",11.192416666666666,0,0,"--","--","--","--","--","--",545.33333333333326,2317.4666666666662,213.19166666666666,855,4589.8333333333339,404.85833333333335,349.792125,227621.91666666666,54.197933333333332,64.416666666666671,"--",null,null,null,null,null,82.38333333333334,80.783333333333331,null,null,null,null,null,70.791666666666671,35.191666666666663,63.774999999999991,"--",7.1749999999999998,18732.416666666664,null,null,-695.16666666667152,90531,null,null,595.16666666665697,0,6.6583333333333332,"--","--","--","--","--","--","--","--",null,null,null,null,null,5461.4722995347684,9180.54422531194,11413.784278871724,null,null,null,null,null,89.808333333333337,87.083333333333343,85.808333333333323,null,null,null,null,null,15.265833333333333,13.355833333333333,11.938333333333333,13.668333333333333,173.00000000000006,13.77,11.434166666666668,12.048333333333334,11.774166666666666,11.478333333333333,11.459999999999999,-0.58833333333333471,null,null,null,null,null,1.1694083333333334,"--","--","--",36.353308333333331,95.353808333333333,"--","--","--",null,null,null,null,null,37.375000000000007,"--","--","--",{"$f":"AVERAGE(Quarterly!GH95:GH98)","v":0},"--","--","--","--"]
[1981,3210.9472500000002,6617.7449999999999,6586.9767499999998,4050.8249999999998,228.29764675060474,1121.7162270091073,2700.8111262402881,620.87703481941003,313.0859084433643,285.14999999999998,42.885000000000005,379.25699999999995,380.61899999999997,1.362000000000009,1628.0452500000001,-85.815749999999994,null,null,null,null,null,76.575000000000003,79.575000000000003,329.51904166666668,"--",192.28575000000001,150.65099999999998,"--","--","--","--","--","--","--","--","--","--",52.711224999999999,47.025466666666667,"--","--",46.233333333333334,"--","--",44.141666666666666,"--","--",44.658333333333331,46.575000000000003,66.325000000000003,48.091666666666669,46.333333333333343,"--","--","--","--",32.343500000000006,55.771500000000003,73.251000000000005,57.999749999999999,150.65099999999998,"--",null,"--","--",null,null,null,null,null,180.85465000000002,10.387002499999999,15.2995375,915.245,1096.3333333333333,990.66666666666674,"--",10.564,0,0,"--","--","--","--","--","--",435.75,2596.5166666666664,252.46666666666664,710.83333333333337,4704.75,360.2,363.41304166666663,229915.66666666669,58.505899999999997,70.674999999999997,"--",null,null,null,null,null,90.933333333333323,89.250000000000014,null,null,null,null,null,71.450000000000017,35.18333333333333,63.874999999999993,"--",7.6166666666666671,18633.999999999996,null,null,-98.416666666667879,91292.416666666657,null,null,761.41666666665697,0,7.0166666666666666,"--","--","--","--","--","--","--","--",null,null,null,null,null,5588.8945744117891,9364.6696274194164,11655.637728252006,null,null,null,null,null,98.033333333333331,94.600000000000009,94.6,null,null,null,null,null,18.87,16.37833333333333,14.170833333333334,16.044166666666669,187.33333333333348,16.6325,14.025,14.778333333333332,14.555833333333334,14.235833333333334,13.910833333333333,-0.86749999999999972,null,null,null,null,null,1.1988916666666669,"--","--","--",40.343775000000001,104.67036666666668,"--","--","--",null,null,null,null,null,36.666666666666671,"--","--","--",{"$f":"AVERAGE(Quarterly!GH99:GH102)","v":0},"--","--","--","--"]
[1982,3344.9929999999999,6491.2870000000003,6546.6614999999993,4108.45,227.92158917536085,1133.3587407140417,2747.1696701105975,598.61739132089895,266.53786335964855,233.10000000000002,-21.72925,374.48349999999999,351.53174999999999,-22.951750000000004,1658.03475,-164.62700000000001,null,null,null,null,null,70.349999999999994,73.591666666666669,378.70725000000004,"--",165.82850000000002,123.777,"--","--","--","--","--","--","--","--","--","--",49.976833333333332,44.342991666666663,"--","--",38.483333333333334,"--","--",31.783333333333335,"--","--",32.241666666666667,40.875,40.4,40.491666666666667,43.483333333333334,"--","--","--","--",34.678249999999998,55.198999999999998,74.060249999999996,62.8215,123.777,"--",null,"--","--",null,null,null,null,null,185.11210833333337,10.4876875,15.518915000000002,1066.45,1057.3333333333335,999,"--",10.363333333333335,0,0,"--","--","--","--","--","--",418.16666666666663,2779.4666666666672,277.7,663,4803.7416666666668,351.55833333333334,381.72801666666663,232127.83333333334,63.71671666666667,67.974999999999994,"--",null,null,null,null,null,96.533333333333331,95.850000000000009,null,null,null,null,null,68.800000000000011,34.725000000000001,63.991666666666674,"--",9.7083333333333339,17363.583333333336,null,null,-1270.4166666666606,89684.249999999985,null,null,-1608.1666666666715,0,8.75,"--","--","--","--","--","--","--","--",null,null,null,null,null,5287.6360242019909,9199.1569073990177,11606.902997052946,null,null,null,null,null,100.01666666666667,99.983333333333334,100.02500000000001,null,null,null,null,null,14.860833333333332,12.258333333333335,13.7875,16.113333333333333,232.58333333333337,16.084166666666665,10.614166666666668,12.275000000000002,12.798333333333332,13.005833333333335,13.001666666666665,0.72666666666666302,null,null,null,null,null,1.2338583333333333,1.8973083333333334,"--","--",46.833391666666671,115.75848333333333,"--","--","--",null,null,null,null,null,33.635833333333331,"--","--","--",{"$f":"AVERAGE(Quarterly!GH103:GH106)","v":0},"--","--","--","--"]
[1983,3638.1357500000004,6791.9932499999995,6830.5842499999999,4342.6499999999996,260.45696497095025,1170.2547965234671,2911.9382385055824,595.97122566559983,272.34936393068153,329.375,-8.6119999999999983,421.73149999999998,342.46525000000003,-79.266249999999999,1721.5855000000001,-205.00875000000002,null,null,null,null,null,72.95,74.86666666666666,399.10994166666666,"--",183.23924999999997,130.91049999999998,"--","--","--","--","--","--","--","--","--","--",51.346783333333335,46.50159166666667,"--","--",59.3,"--","--",51.725000000000009,"--","--",47.783333333333331,64.5,60.591666666666669,65.275000000000006,56.75,"--","--","--","--",36.249750000000006,57.649499999999996,74.292749999999998,62.882999999999996,130.91049999999998,"--",null,"--","--",null,null,null,null,null,197.55454999999998,10.425754999999999,15.469859999999999,1230.7250000000001,1705.4166666666665,1623.3333333333333,"--",12.119750000000002,0,0,"--","--","--","--","--","--",627.33333333333337,2970.2750000000001,246.99166666666667,1064.9166666666667,4971.208333333333,659.04166666666674,409.59115000000003,234246.50000000003,71.433333333333337,87.383333333333326,"--",null,null,null,null,null,99.583333333333314,99.6,null,null,null,null,null,69.8,34.9,64.008333333333326,"--",9.6,17049.166666666668,null,null,-314.41666666666788,90288.916666666657,null,null,604.66666666667152,0,10.158333333333333,"--","--","--","--","--","--","--","--",null,null,null,null,null,5685.7723241392177,9787.1255057747185,12245.9863124394,null,null,null,null,null,101.25,102.99166666666666,102.78333333333332,null,null,null,null,null,10.794166666666667,9.086666666666666,12.041666666666668,13.554166666666667,151.24999999999994,13.227500000000001,8.6108333333333338,9.5724999999999998,10.2075,10.795833333333333,11.105,1.5325000000000006,null,null,null,null,null,1.2325833333333334,1.9808916666666667,"--","--",52.806591666666669,120.44646666666665,"--","--","--",null,null,null,null,null,30.395,"--","--","--",{"$f":"AVERAGE(Quarterly!GH10:GH107)","v":0},"--","--","--","--"]
[1984,4040.6895,7285.0297499999997,7196.2950000000001,4571.6499999999996,297.65852455732085,1218.700921977583,3055.2905534650963,695.32494540854088,368.87655791404518,378.45,85.716499999999996,524.39350000000002,370.40374999999995,-153.98975000000002,1783.2490000000003,-192.33775,null,null,null,null,null,78.899999999999991,80.391666666666666,449.36978333333337,"--",200.70925,151.03199999999998,"--","--","--","--","--","--","--","--","--","--",55.925658333333331,51.155883333333328,"--","--",55.766666666666666,"--","--",52.125,"--","--",51.233333333333334,57.116666666666674,61.525000000000006,58.008333333333333,57.333333333333336,"--","--","--","--",37.807749999999999,58.895000000000003,74.352000000000004,64.1935,151.03199999999998,"--",null,"--","--",null,null,null,null,null,234.22954166666665,10.711260000000001,15.7056775,1368.6875,1766.25,1689.6666666666667,"--",14.197249999999999,0,0,"--","--","--","--","--","--",636.75,3281.8,312.10833333333329,1098.4166666666665,5313.9333333333334,693.8416666666667,481.49024166666669,236307.25000000003,89.646300000000011,97.474999999999994,"--",null,null,null,null,null,103.93333333333334,104.7,null,null,null,null,null,74.025000000000006,35.091666666666669,64.366666666666674,"--",7.5083333333333337,17920.666666666664,null,null,871.49999999999636,94542.75,null,null,4253.833333333343,0,7.8833333333333329,"--","--","--","--","--","--","--","--",null,null,null,null,null,6303.7264792120841,10422.340132498175,12931.85066038349,null,null,null,null,null,103.67500000000001,105.55833333333334,105.23333333333333,null,null,null,null,null,12.0425,10.225,12.709166666666667,14.190000000000001,148.08333333333348,13.87,9.5225000000000009,10.887499999999999,11.645833333333336,12.240833333333333,12.438333333333333,1.5508333333333333,null,null,null,null,null,1.29515,2.3345500000000001,"--","--",60.110308333333336,128.75397500000003,"--","--","--",null,null,null,null,null,29.275499999999997,"--","--","--",{"$f":"AVERAGE(Quarterly!GH111:GH114)","v":0},"--","--","--","--"]
[1985,4346.7437499999996,7593.8232500000004,7581.7155000000002,4811.9749999999995,327.43614480112177,1255.499095840868,3229.0397593580101,741.18364958910911,406.97436733459591,384.42499999999995,27.591249999999999,558.42700000000002,382.78700000000003,-175.64000000000007,1904.0197499999999,-195.61475000000002,null,null,null,null,null,77.625,79.216666666666669,485.97890833333332,"--",190.24299999999999,133.96275,"--","--","--","--","--","--","--","--","--","--",56.614083333333333,51.931241666666672,"--","--",49.183333333333344,"--","--",43.524999999999999,"--","--",43.808333333333337,52.375,45.708333333333336,52.716666666666669,48.041666666666671,"--","--","--","--",39.646749999999997,59.832500000000003,75.39725,66.258749999999992,133.96275,"--",null,"--","--",null,null,null,null,null,275.7356166666666,11.49478,16.744845000000002,1483.31,1741.4166666666667,1732.3333333333333,"--",15.442583333333333,0,0,"--","--","--","--","--","--",691.41666666666674,3516.3250000000003,265.13333333333333,1070.9166666666667,5476.4416666666675,773.13333333333333,564.18163333333337,238415.5,113.78877499999999,93.166666666666657,"--",null,null,null,null,null,107.60000000000001,109.28333333333333,null,null,null,null,null,76,34.85,64.808333333333337,"--",7.1916666666666673,17818.5,null,null,-102.16666666666424,97528.666666666657,null,null,2985.916666666657,0,6.9333333333333327,"--","--","--","--","--","--","--","--",null,null,null,null,null,6574.8913773581062,10966.433888843294,13609.111478397663,null,null,null,null,null,103.15,108.10833333333333,107.55,null,null,null,null,null,9.9333333333333336,8.100833333333334,11.373333333333335,12.715,134.16666666666652,12.424166666666666,7.479166666666667,8.4258333333333333,9.2716666666666683,10.129166666666666,10.623333333333333,2.1974999999999998,null,null,null,null,null,1.3658999999999999,2.9446333333333334,"--","--",67.155633333333327,133.59763333333333,5750.5333333333338,321.80833333333334,1594.3083333333332,null,null,null,null,null,27.972749999999998,"--","--","--",{"$f":"AVERAGE(Quarterly!GH115:GH118)","v":0},"--","--","--","--"]
[1986,4590.1530000000002,7860.4892500000005,7872.62925,5014.1000000000004,358.84590608577713,1300.1985179121255,3355.055576002097,728.41835045567575,387.80227647945401,431.52499999999998,9.0257500000000022,606.13625000000002,412.21974999999998,-193.91649999999998,2007.6667500000001,-212.66075000000001,null,null,null,null,null,77.95,78.591666666666669,513.314525,"--",156.51900000000001,94.126749999999987,"--","--","--","--","--","--","--","--","--","--",57.184908333333333,53.075366666666667,"--","--",51.05833333333333,"--","--",43.591666666666669,"--","--",44.491666666666667,56.074999999999996,51.633333333333333,53.94166666666667,50.633333333333333,"--","--","--","--",41.933250000000001,61.635499999999993,78.3155,68.032249999999991,94.126749999999987,"--",null,"--","--",null,null,null,null,null,303.84522499999997,11.909475,17.3182875,1566.3975,1811.9166666666667,1771.0833333333335,"--",16.0505,0,0,"--","--","--","--","--","--",746.41666666666674,3725.6833333333334,269.36666666666667,1182.4166666666665,5687.9666666666662,872.5,632.30623333333324,240592.66666666666,134.65148333333332,94.791666666666671,"--",null,null,null,null,null,109.69166666666668,113.70833333333333,null,null,null,null,null,77.283333333333331,34.716666666666661,65.241666666666674,"--",7,17551.916666666668,null,null,-266.58333333333212,99497.25,null,null,1968.583333333343,0,6.958333333333333,"--","--","--","--","--","--","--","--",null,null,null,null,null,6847.4735735812446,11366.531726004905,14084.599594849871,null,null,null,null,null,100.16666666666667,110.60833333333332,109.65,null,null,null,null,null,8.3324999999999996,6.8049999999999997,9.0208333333333339,10.390833333333333,136.99999999999991,10.1775,5.9783333333333326,6.4624999999999995,6.8708333333333336,7.3108333333333331,7.6824999999999992,1.2199999999999998,null,null,null,null,null,1.3897666666666666,3.4610000000000003,"--","--",62.348724999999995,109.86015,5687.7249999999995,397.58333333333331,1441.8083333333334,null,null,null,null,null,15.040000000000001,"--","--","--",{"$f":"AVERAGE(Quarterly!GH119:GH122)","v":0},"--","--","--","--"]
[1987,4870.2172499999997,8132.5992499999993,8113.1010000000006,5183.7250000000004,365.84262355715123,1322.5427910618578,3495.3395853809907,729.05539033565503,382.96155325947728,440.25,36.28725,642.00675000000001,457.11425000000003,-184.89249999999998,2066.9279999999999,-163.16700000000003,null,null,null,null,null,80.549999999999983,81.150000000000006,554.93465833333335,"--",200.34949999999998,128.24824999999998,"--","--","--","--","--","--","--","--","--","--",60.154041666666664,56.093291666666673,"--","--",57.491666666666667,"--","--",51.391666666666666,"--","--",48.43333333333333,61.341666666666661,71.55,61.5,57.391666666666666,"--","--",48.191499999999998,92.368250000000003,43.52675,61.958999999999996,78.674250000000001,70.248750000000001,128.24824999999998,"--",null,"--","--",null,null,null,null,null,319.26533333333339,11.955915000000001,17.442847499999999,1675.575,1630.5,1541.3333333333333,"--",14.860583333333333,0,0,"--","--","--","--","--","--",669.00000000000011,3955.8666666666668,252.08333333333337,1154.1666666666667,5811.0499999999993,959.125,666.92298333333338,242750.75,150.74520833333332,90.641666666666666,"--",null,null,null,null,null,113.61666666666666,118.175,null,null,null,null,null,79.566666666666663,34.75,65.575000000000003,"--",6.1749999999999998,17608.5,null,null,56.583333333332121,102114.58333333334,null,null,2617.333333333343,0,6.4750000000000005,"--","--","--","--","--","--","--","--",null,null,null,null,null,7018.0980571318114,11726.392849661835,14587.484128924974,null,null,null,null,null,102.80833333333334,113.29166666666667,111.68333333333334,null,null,null,null,null,8.2033333333333331,6.6574999999999998,9.3758333333333326,10.575833333333334,120.00000000000011,10.195833333333333,5.7749999999999995,6.7641666666666662,7.4066666666666672,7.9349999999999987,8.3841666666666672,1.620000000000001,null,null,null,null,null,1.3261750000000001,3.7313999999999994,"--","--",60.424866666666667,97.161658333333335,5923.7416666666668,524.4666666666667,1689.2333333333336,null,null,null,null,null,19.16191666666667,"--","--","--",{"$f":"AVERAGE(Quarterly!GH123:GH126)","v":0},"--","--","--","--"]
[1988,5252.6302500000002,8474.4915000000001,8466.9057499999999,5400.5249999999996,386.80207739370292,1357.3180713715528,3656.404851234744,765.54225782037224,404.7745889520325,435.77500000000003,23.809750000000001,667.22725000000003,531.21125000000006,-136.01600000000002,2094.7627499999999,-157.34299999999999,null,null,null,null,null,83.825000000000003,84.3,587.1309,1.0274999999999999,246.72624999999999,160.517,"--","--",3.2550000000000003,1.0274999999999999,0.96249999999999991,"--","--","--","--","--",63.293024999999993,59.267000000000003,"--","--",56.216666666666661,"--","--",51.575000000000003,63.666666666666664,"--",49.6,58.924999999999997,76.816666666666663,58.5,57.708333333333336,"--","--",48.661249999999995,95.016750000000002,45.755499999999998,62.974249999999998,79.794250000000005,72.655000000000001,160.517,{"$error":"#DIV/0!"},null,"--","--",null,null,null,null,null,343.68715833333334,11.70928,17.050525,1890.4624999999999,1487.8333333333333,1452.0833333333333,"--",15.436333333333334,0,0,"--","--","--","--","--","--",674.25,4276.3500000000004,294.73333333333335,1082.8333333333333,6083.7750000000005,940.94999999999993,713.89518333333342,244967.5,173.81443333333334,93.733333333333334,"--",null,null,null,null,null,118.27500000000001,123.42500000000001,null,null,null,null,null,81.891666666666666,34.591666666666669,65.908333333333331,"--",5.4916666666666663,17905.333333333332,null,null,296.83333333333212,105374.75000000001,null,null,3260.1666666666715,0,5.95,"--","--","--","--","--","--","--","--",null,null,null,null,null,7252.8164440651926,12118.167071500526,15122.372122364104,null,null,null,null,null,106.94166666666666,116.99166666666667,114.34166666666665,null,null,null,null,null,9.3150000000000013,7.5683333333333334,9.7099999999999991,10.83,112.0000000000001,10.338333333333333,6.6675000000000004,7.6524999999999999,8.0983333333333327,8.4716666666666676,8.845833333333335,1.1933333333333351,null,null,null,null,null,1.2309416666666666,3.7313999999999994,"--","--",60.921891666666667,90.411641666666668,6783.166666666667,709.24166666666667,1938.3166666666668,null,null,null,null,null,15.959583333333333,{"$f":"AVERAGE(Quarterly!GE127:GE130)","v":14.948333333333334},"--","--",{"$f":"AVERAGE(Quarterly!GH127:GH130)","v":0},"--","--","--","--"]
[1989,5657.6952499999998,8786.3974999999991,8765.4542500000007,5558.15,395.29535052165994,1393.9857359733153,3768.8689135050254,808.86913683691978,433.96883917069357,422.625,33.250999999999998,696.60874999999999,592.68900000000008,-103.91974999999999,2155.0627500000001,-156.64274999999998,null,null,null,null,null,83.2,83.766666666666666,627.29588333333334,0.82750000000000001,243.33600000000001,142.77400000000003,"--","--",3.0824999999999996,0.82750000000000001,0.92249999999999999,"--","--","--","--","--",63.862000000000002,59.805691666666668,"--","--",48.924999999999997,"--","--",47.216666666666669,57.483333333333334,"--",45.616666666666667,50.166666666666664,53.141666666666666,50.858333333333327,47.625,"--","--",48.847499999999997,97.877749999999992,47.087499999999999,63.553249999999998,78.711250000000007,74.089749999999995,142.77400000000003,{"$error":"#DIV/0!"},null,"--","--",null,null,null,null,null,364.75230000000005,11.72566,16.981317500000003,2188.4499999999998,1382.0833333333333,1350.3333333333333,"--",14.528916666666667,0,0,"--","--","--","--","--","--",653.33333333333337,4619.8583333333336,316.50833333333333,1006.2499999999999,6268.8166666666666,882.33333333333337,773.04696666666655,247285.91666666666,198.21608333333333,92.758333333333326,"--",null,null,null,null,null,123.94166666666668,128.96666666666667,null,null,null,null,null,83.816666666666663,34.483333333333334,66.441666666666663,"--",5.2583333333333337,17983.999999999996,null,null,78.666666666664241,108047.08333333333,null,null,2672.3333333333139,0,5.2166666666666668,"--","--","--","--","--","--","--","--",null,null,null,null,null,7496.1969503587452,12530.132547630601,15652.16419288317,null,null,null,null,null,112.24166666666667,122.1,118.78333333333333,null,null,null,null,null,10.873333333333335,9.2166666666666686,9.2575000000000003,10.1775,92,10.324166666666667,8.1116666666666664,8.5350000000000001,8.5758333333333319,8.5041666666666664,8.4983333333333331,-3.6666666666667069E-2,null,null,null,null,null,1.1841083333333333,3.7689916666666661,"--","--",66.904491666666672,94.24026666666667,7329.416666666667,999.14166666666665,2263.5083333333332,null,null,null,null,null,19.590833333333332,{"$f":"AVERAGE(Quarterly!GE131:GE134)","v":18.251666666666669},"--","--",{"$f":"AVERAGE(Quarterly!GH131:GH134)","v":0},"--","--","--","--"]
[1990,5979.5840000000007,8955.0409999999993,8952.6532499999994,5672.7499999999991,393.58134660728314,1410.2450148045873,3868.92363858813,817.62026800868807,430.61411389155916,386.2,17.93675,721.52850000000001,644.97199999999998,-76.556499999999971,2224.2707499999997,-200.91849999999999,null,null,null,null,null,81.550000000000011,82.474999999999994,639.23422499999992,1.2175,258.62700000000001,139.89400000000001,21.833333333333332,"--",3.37,1.2175,1.3975000000000002,"--","--","--","--","--",64.497583333333324,60.369083333333336,"--","--",46.45,"--","--",43.541666666666664,55.258333333333333,47.524999999999999,41.191666666666663,47.533333333333324,55.908333333333331,48.691666666666663,47.858333333333334,"--","--",50.592249999999993,99.731249999999989,49.908749999999998,64.649499999999989,79.479250000000008,77.198250000000002,139.89400000000001,3.375,null,"--","--",null,null,null,null,null,374.87986666666671,11.629175,16.935167500000002,2475.75,1203.1666666666667,1123.6666666666667,"--",13.863,0,0,"--","--","--","--","--","--",532.83333333333337,4906.4083333333328,335.45,900.58333333333337,6393.5499999999993,915.20833333333337,804.7714666666667,250047.41666666666,227.27379166666668,81.61666666666666,"--",null,null,null,null,null,130.65833333333333,135.45833333333334,null,null,null,null,null,84.208333333333343,34.283333333333339,66.533333333333331,"--",5.6166666666666663,17694.833333333336,null,null,-289.1666666666606,109529.91666666667,null,null,1482.833333333343,0,5.375,{"$f":"AVERAGE(Quarterly!DV135:DV138)","v":1122.625},{"$f":"AVERAGE(Quarterly!DW135:DW138)","v":1122.3916666666669},{"$f":"AVERAGE(Quarterly!DX135:DX138)","v":807.36666666666656},{"$f":"AVERAGE(Quarterly!DY135:DY138)","v":198.78333333333333},{"$f":"AVERAGE(Quarterly!DZ135:DZ138)","v":608.58333333333337},{"$f":"AVERAGE(Quarterly!EA135:EA138)","v":432.94166666666666},{"$f":"AVERAGE(Quarterly!EB135:EB138)","v":175.64166666666665},{"$f":"AVERAGE(Quarterly!EC135:EC138)","v":315.02499999999998},null,null,null,null,null,7510.9438179644176,12704.998266230465,15979.679059326887,null,null,null,null,null,116.29166666666666,126.58333333333334,122.85833333333332,null,null,null,null,null,10.009166666666667,8.0991666666666653,9.3216666666666654,10.354999999999999,103.33333333333331,10.130000000000001,7.4933333333333332,7.8825000000000003,8.1575000000000006,8.370000000000001,8.5500000000000007,0.66750000000000043,null,null,null,null,null,1.1670166666666668,4.7954916666666669,"--","--",71.409674999999993,89.87133333333334,7615.0083333333332,1269.7833333333333,2513.0666666666666,null,null,null,null,null,24.492916666666666,{"$f":"AVERAGE(Quarterly!GE135:GE138)","v":23.675833333333333},{"$f":"AVERAGE(Quarterly!GF135:GF138)","v":1.1650579166666666},{"$f":"AVERAGE(Quarterly!GG135:GG138)","v":1.1650579166666666},{"$f":"AVERAGE(Quarterly!GH135:GH138)","v":0},"--","--","--","--"]
[1991,6174.0499999999993,8948.406500000001,8968.6345000000001,5685.6750000000011,372.37374593536651,1406.1122215230598,3907.1890325415743,785.5191750822903,391.50148419721768,348.92500000000001,-1.9632500000000004,720.44849999999997,687.63250000000005,-32.815999999999974,2250.8767499999999,-246.20799999999997,null,null,null,null,null,78.424999999999997,79.883333333333326,626.05678333333333,1.4925000000000002,290.72649999999999,143.81524999999999,34.975000000000001,-25.4,3.9074999999999998,1.4925000000000002,1.4525000000000001,"--","--","--","--","--",63.53275,59.277966666666671,"--","--",47.05833333333333,"--","--",40.233333333333327,54.550000000000004,47.008333333333333,40.266666666666666,50.875,43.841666666666669,50.491666666666667,47.291666666666671,"--","--",51.695250000000001,102.49549999999999,52.290500000000002,65.728500000000011,80.372250000000008,79.551249999999996,143.81524999999999,3.9000000000000004,null,"--","--",null,null,null,null,null,367.42772499999995,11.391169999999999,16.7833775,2722.9300000000003,1008.75,945.66666666666663,"--",12.314166666666667,0,0,"--","--","--","--","--","--",509.33333333333337,5073.3833333333332,365.875,834.91666666666663,6438.2666666666664,984.60833333333335,803.7906999999999,253391.83333333331,253.007025,77.55,"--",null,null,null,null,null,136.16666666666669,142.11666666666667,null,null,null,null,null,82.441666666666663,34.091666666666661,66.166666666666671,"--",6.8500000000000005,17067.833333333336,null,null,-627,108435.41666666667,null,null,-1094.5,0,6.8666666666666671,{"$f":"AVERAGE(Quarterly!DV139:DV142)","v":1104.7666666666667},{"$f":"AVERAGE(Quarterly!DW139:DW142)","v":1104.6416666666669},{"$f":"AVERAGE(Quarterly!DX139:DX142)","v":794.54166666666674},{"$f":"AVERAGE(Quarterly!DY139:DY142)","v":195.68333333333331},{"$f":"AVERAGE(Quarterly!DZ139:DZ142)","v":598.85833333333335},{"$f":"AVERAGE(Quarterly!EA139:EA142)","v":426.15},{"$f":"AVERAGE(Quarterly!EB139:EB142)","v":172.70833333333334},{"$f":"AVERAGE(Quarterly!EC139:EC142)","v":310.10000000000002},null,null,null,null,null,7334.6512359636354,12618.789335791822,16012.565852126729,null,null,null,null,null,116.53333333333333,131.05000000000001,126.72499999999999,null,null,null,null,null,8.4633333333333329,5.6875,8.7691666666666652,9.8016666666666659,103.25000000000006,9.2491666666666656,5.3749999999999991,5.8583333333333334,6.4850000000000003,7.3699999999999992,7.8583333333333343,2.0000000000000009,null,null,null,null,null,1.1459750000000002,5.3348083333333332,"--","--",74.347733333333338,88.517974999999993,7588.6583333333328,1580.7666666666667,2594.1333333333332,null,null,null,null,null,21.481249999999999,{"$f":"AVERAGE(Quarterly!GE139:GE142)","v":20.010833333333334},{"$f":"AVERAGE(Quarterly!GF139:GF142)","v":1.1248291666666665},{"$f":"AVERAGE(Quarterly!GG139:GG142)","v":1.1248291666666665},{"$f":"AVERAGE(Quarterly!GH139:GH142)","v":0},"--","--",2965,"--"]
[1992,6539.2995000000001,9266.5577499999999,9262.4877500000002,5896.625,393.7629798579112,1433.4267223824181,4069.4352977596704,808.45261076154873,414.34070235115689,397.17499999999995,19.451499999999999,770.95075000000008,735.28399999999999,-35.666750000000008,2262.0867500000004,-332.65600000000001,null,null,null,null,null,79.474999999999994,80.491666666666674,601.96088333333341,1.3725000000000001,313.87299999999999,162.62800000000001,18.975000000000001,4.625,3.4275000000000002,1.3725000000000001,1.2650000000000001,"--","--","--","--","--",65.356175000000007,61.646091666666671,821144.08333333326,1.5258333333333334,52.63333333333334,"--","--",45.408333333333331,54.008333333333333,49.266666666666666,44.18333333333333,57.833333333333336,49.783333333333339,57.058333333333337,50.158333333333339,"--",36170.333333333336,54.7545,102.1065,55.524749999999997,68.658749999999998,83.238249999999994,80.869,162.62800000000001,3.4249999999999998,null,501943.5,451271.5,null,null,null,null,null,356.83460833333339,10.650164999999999,15.953642500000001,2973.96,1201.4166666666667,1098,"--",12.859833333333334,0,0,"--","--","--","--","--","--",613.5,5413.0583333333334,426.02500000000003,1031.75,6714.4333333333334,1135.8750000000002,799.76092500000004,256777.16666666666,270.92542500000002,77.25,"--",null,null,null,null,null,140.30833333333331,147.31666666666669,null,null,null,null,null,83.00833333333334,34.200000000000003,66.441666666666663,"--",7.4916666666666671,16800.5,null,null,-267.33333333333576,108797.5,null,null,362.08333333332848,0,8.6583333333333332,{"$f":"AVERAGE(Quarterly!DV143:DV146)","v":1107.175},{"$f":"AVERAGE(Quarterly!DW143:DW146)","v":1107.4333333333334},{"$f":"AVERAGE(Quarterly!DX143:DX146)","v":796.54166666666663},{"$f":"AVERAGE(Quarterly!DY143:DY146)","v":196.20000000000002},{"$f":"AVERAGE(Quarterly!DZ143:DZ146)","v":600.3416666666667},{"$f":"AVERAGE(Quarterly!EA143:EA146)","v":427.24166666666667},{"$f":"AVERAGE(Quarterly!EB143:EB146)","v":173.1},{"$f":"AVERAGE(Quarterly!EC143:EC146)","v":310.89166666666665},null,null,null,null,null,7644.8319545127779,13046.628887226354,16540.83812049048,null,null,null,null,null,117.19166666666666,134.17500000000001,129.14166666666665,null,null,null,null,null,6.2516666666666669,3.5216666666666665,8.14,8.9766666666666666,83.6666666666666,8.4008333333333329,3.4316666666666666,3.8891666666666667,4.7708333333333339,6.1883333333333335,7.01,3.1208333333333331,null,null,null,null,null,1.2088083333333333,5.5266083333333329,"--","--",76.914400000000001,87.022649999999999,8219.1500000000015,2143.958333333333,2934.2583333333332,null,null,null,null,null,20.561416666666666,{"$f":"AVERAGE(Quarterly!GE143:GE146)","v":19.305833333333332},{"$f":"AVERAGE(Quarterly!GF143:GF146)","v":1.1032611666666667},{"$f":"AVERAGE(Quarterly!GG143:GG146)","v":1.1032611666666667},{"$f":"AVERAGE(Quarterly!GH143:GH146)","v":0},"--","--",3063,"--"]
[1993,6878.7105000000001,9521.00425,9511.0222500000018,6101.45,423.27454576276415,1469.8823094342076,4208.2931448030276,868.99998448241138,463.32999593111225,429.6,24.077250000000003,837.61149999999998,759.37675000000002,-78.234749999999991,2243.3090000000002,-311.80975000000001,null,null,null,null,null,80.375,81.441666666666677,588.06568333333337,0.74,334.91025000000002,201.05725000000001,24.250000000000004,18.875,2.4750000000000001,0.74,0.86,"--","--","--","--","--",67.498966666666661,63.908883333333335,849575.91666666663,1.4991666666666668,52.5,52.75,"--",45.1,53.024999999999999,49.56666666666667,45.07500000000001,57,51.858333333333327,56.541666666666664,51.55,"--",38879.583333333336,56.116250000000001,101.10375000000001,56.208999999999996,68.752499999999998,82.220500000000001,81.756,201.05725000000001,2.4750000000000001,null,537958.5,484098.75,null,null,null,null,null,368.43689999999998,10.40532,15.672395000000002,3240.2649999999999,1291.5833333333335,1207.2499999999998,"--",13.873583333333332,0,0,"--","--","--","--","--","--",674.41666666666663,5648.9916666666668,367.625,1130.5833333333333,6823.9333333333334,1203.0416666666667,831.20968333333337,260146.41666666666,293.57456666666667,82.791666666666657,"--",null,null,null,null,null,144.47499999999999,152.19999999999999,null,null,null,null,null,85.416666666666671,34.333333333333336,66.3,"--",6.9083333333333332,16776.083333333336,null,null,-24.416666666664241,110937.41666666667,null,null,2139.9166666666715,0,8.3083333333333336,{"$f":"AVERAGE(Quarterly!DV147:DV150)","v":1154.6416666666664},{"$f":"AVERAGE(Quarterly!DW147:DW150)","v":1154.7750000000001},{"$f":"AVERAGE(Quarterly!DX147:DX150)","v":830.53333333333342},{"$f":"AVERAGE(Quarterly!DY147:DY150)","v":204.625},{"$f":"AVERAGE(Quarterly!DZ147:DZ150)","v":625.9083333333333},{"$f":"AVERAGE(Quarterly!EA147:EA150)","v":445.58333333333337},{"$f":"AVERAGE(Quarterly!EB147:EB150)","v":180.32499999999999},{"$f":"AVERAGE(Quarterly!EC147:EC150)","v":324.24166666666667},null,null,null,null,null,7983.5936245453577,13591.569578940595,17160.882569417361,null,null,null,null,null,118.90833333333333,135.79166666666669,131.38333333333333,null,null,null,null,null,6,3.0225,7.2191666666666672,7.9300000000000006,71.083333333333343,7.330000000000001,2.9975000000000001,3.434166666666667,4.0483333333333329,5.1475,5.8733333333333331,2.439166666666666,null,null,null,null,null,1.2901666666666667,5.7767416666666671,3.1290499999999999,"--",83.783591666666666,89.917574999999999,9268.0333333333328,2628.3249999999998,3326.458333333333,null,null,null,null,null,18.458166666666667,{"$f":"AVERAGE(Quarterly!GE147:GE150)","v":17.0425},{"$f":"AVERAGE(Quarterly!GF147:GF150)","v":1.0598400000000001},{"$f":"AVERAGE(Quarterly!GG147:GG150)","v":1.1070116666666667},{"$f":"AVERAGE(Quarterly!GH147:GH150)","v":0},"--","--",3212,"--"]
[1994,7308.7555000000002,9905.4282500000008,9837.7324999999983,6338.1,457.03019001679786,1527.1921889000209,4353.877621083182,937.60836283839774,517.61511933333372,471.5,75.388249999999999,937.52500000000009,826.51250000000005,-111.01250000000005,2245.5430000000001,-253.68275,null,null,null,null,null,82.8,83.491666666666674,613.49056666666672,0.26,408.56299999999999,265.50925000000001,28.625,28.825000000000003,1.5549999999999999,0.26,0.505,"--","--","--","--","--",71.031199999999998,67.868191666666661,892252.75,1.4624999999999999,57.833333333333329,58.875,"--",50.083333333333336,57.15,52.616666666666667,45.774999999999999,62.591666666666669,72.38333333333334,61.783333333333331,60.091666666666669,"--",43682.833333333336,57.629000000000005,99.813000000000002,56.761249999999997,69.254750000000001,81.325000000000003,81.960750000000004,265.50925000000001,1.575,null,582051.75,525824.75,null,null,null,null,null,412.98394999999999,10.551187499999999,15.86964,3519.645,1446,1366.9166666666667,"--",15.044166666666667,0,0,"--","--","--","--","--","--",667.25,5937.2833333333338,331.41666666666663,1191.0833333333333,7010.666666666667,1202.6333333333334,930.19059166666659,263324.58333333337,337.94335833333332,92.266666666666666,"--",null,null,null,null,null,148.22499999999999,156.5,null,null,null,null,null,88.99166666666666,34.475000000000001,66.575000000000003,"--",6.1,17024,null,null,247.91666666666424,114390.33333333333,null,null,3452.916666666657,0,9.125,{"$f":"AVERAGE(Quarterly!DV151:DV154)","v":1206.3666666666666},{"$f":"AVERAGE(Quarterly!DW151:DW154)","v":1206.1583333333335},{"$f":"AVERAGE(Quarterly!DX151:DX154)","v":866.82499999999993},{"$f":"AVERAGE(Quarterly!DY151:DY154)","v":213.25833333333335},{"$f":"AVERAGE(Quarterly!DZ151:DZ154)","v":653.56666666666661},{"$f":"AVERAGE(Quarterly!EA151:EA154)","v":469.63333333333333},{"$f":"AVERAGE(Quarterly!EB151:EB154)","v":183.93333333333331},{"$f":"AVERAGE(Quarterly!EC151:EC154)","v":339.33333333333337},null,null,null,null,null,8461.2189285703807,14191.193307847185,17842.348176161016,null,null,null,null,null,120.45,137.10833333333332,134.09166666666667,null,null,null,null,null,7.1383333333333336,4.2016666666666671,7.9625000000000004,8.6224999999999987,65.999999999999829,8.355833333333333,4.246666666666667,5.31,5.9358333333333331,6.6833333333333336,7.0799999999999992,1.7699999999999996,null,null,null,null,null,1.3658916666666667,8.6400666666666677,3.3825583333333333,"--",90.873841666666664,88.421941666666669,10700.491666666667,3232.2333333333336,4124.4750000000004,null,null,null,null,null,17.185833333333335,{"$f":"AVERAGE(Quarterly!GE151:GE154)","v":15.840833333333332},{"$f":"AVERAGE(Quarterly!GF151:GF154)","v":1.0591833333333334},{"$f":"AVERAGE(Quarterly!GG151:GG154)","v":1.1134166666666667},{"$f":"AVERAGE(Quarterly!GH151:GH154)","v":0},"--",{"$f":"AVERAGE(Quarterly!GJ151:GJ154)","v":1.9508333333333336},3288,"--"]
[1995,7664.0607500000006,10174.754499999999,10151.34325,6527.6749999999993,475.06304612492102,1565.0072474259973,4487.6047064490813,1028.4886354598177,590.3070273576601,456.1,34.560500000000005,1012.53475,911.45724999999993,-101.07750000000004,2257.49775,-240.84025,null,null,null,null,null,83.199999999999989,83.933333333333337,690.85029166666664,0.1825,467.41325000000001,311.69725,19.224999999999998,16.899999999999999,1.2449999999999999,0.1825,0.4375,"--","--","--","--","--",74.334675000000004,71.508133333333333,967480.16666666663,1.4750000000000001,49.45,44.583333333333336,"--",46.9,55.733333333333334,50.158333333333331,44.216666666666669,49.875,61.958333333333336,51.108333333333334,52.774999999999999,"--",48079.666666666664,59.482749999999996,98.527500000000003,58.1755,70.041750000000008,81.391249999999985,83.056999999999988,311.69725,1.25,null,613365.5,555063.25,null,null,null,null,null,465.22117500000002,11.11449,16.45796,3726.85,1360.9999999999998,1335.8333333333333,"--",14.728083333333332,0,0,"--","--","--","--","--","--",669.5,6280.9749999999995,352.92500000000007,1082,7245.916666666667,1111.1000000000001,1074.4595833333333,266458.16666666669,408.29261666666667,92.241666666666674,"--",null,null,null,null,null,152.38333333333333,161.22499999999999,null,null,null,null,null,91.38333333333334,34.30833333333333,66.625,10.016666666666667,5.5916666666666668,17244.583333333332,null,null,220.58333333333212,117416.16666666666,null,null,3025.8333333333285,0,8.2416666666666671,{"$f":"AVERAGE(Quarterly!DV155:DV158)","v":1248.875},{"$f":"AVERAGE(Quarterly!DW155:DW158)","v":1249.0666666666666},{"$f":"AVERAGE(Quarterly!DX155:DX158)","v":900.82500000000005},{"$f":"AVERAGE(Quarterly!DY155:DY158)","v":217.8},{"$f":"AVERAGE(Quarterly!DZ155:DZ158)","v":683.02499999999998},{"$f":"AVERAGE(Quarterly!EA155:EA158)","v":486.59166666666664},{"$f":"AVERAGE(Quarterly!EB155:EB158)","v":196.43333333333334},{"$f":"AVERAGE(Quarterly!EC155:EC158)","v":348.24166666666667},null,null,null,null,null,8698.9448387891225,14511.003977163326,18287.094784760397,null,null,null,null,null,124.75833333333333,139.94166666666666,136.74166666666665,null,null,null,null,null,8.8291666666666675,5.836666666666666,7.5900000000000007,8.2008333333333336,61.083333333333286,7.9550000000000001,5.4900000000000011,5.9483333333333324,6.1608333333333336,6.3908333333333331,6.58,0.63166666666666771,null,null,null,null,null,1.3726499999999999,8.3709333333333333,6.4416833333333336,"--",92.652799999999999,83.46468333333334,12030.824999999999,3795.2666666666669,5175.0333333333338,null,null,null,null,null,18.427500000000002,{"$f":"AVERAGE(Quarterly!GE155:GE158)","v":17.044166666666669},{"$f":"AVERAGE(Quarterly!GF155:GF158)","v":1.1377833333333334},{"$f":"AVERAGE(Quarterly!GG155:GG158)","v":1.1094166666666667},{"$f":"AVERAGE(Quarterly!GH155:GH158)","v":0},"--",{"$f":"AVERAGE(Quarterly!GJ155:GJ158)","v":1.6945833333333333},3224,"--"]
[1996,8100.2005000000008,10560.97625,10536.5625,6755.7250000000004,510.52501964893895,1610.2287065433429,4634.9712738077187,1122.0926619270476,672.77804810053931,492.5,33.834000000000003,1100.5919999999999,986.03274999999996,-114.55924999999999,2279.1577499999999,-178.505,null,null,null,null,null,82.2,83.325000000000003,745.94247500000006,0.27,507.27149999999995,335.99099999999999,14.425000000000001,14.825000000000001,1.105,0.27,0.56999999999999995,"--","--","--","--","--",77.706141666666667,75.244291666666669,996839.08333333337,1.4541666666666666,50.116666666666667,46.416666666666664,"--",46.283333333333339,53.866666666666667,50,42.39,52.941666666666663,45.283333333333331,52.675000000000004,50.483333333333334,"--",50391.083333333336,62.031500000000001,97.23,60.186499999999995,71.536000000000001,82.003250000000008,84.133499999999998,335.99099999999999,1.1000000000000001,null,649374.75,588911,null,null,null,null,null,494.78265833333336,11.3207475,16.628417499999998,3925.6,1468.6666666666667,1419.0833333333335,"--",15.097333333333333,0,0,"--","--","--","--","--","--",755.75,6667.0083333333332,345.2166666666667,1154.3333333333333,7476.1416666666673,1212.0333333333333,1203.8235416666666,269580.66666666669,476.85020833333334,93.608333333333334,"--",null,null,null,null,null,156.85833333333332,165.55833333333334,null,null,null,null,null,93.583333333333343,34.300000000000004,66.76666666666668,9.6166666666666671,5.4083333333333332,17236.749999999996,null,null,-7.8333333333357587,119826.66666666666,null,null,2410.5,0,8.2416666666666671,{"$f":"AVERAGE(Quarterly!DV159:DV162)","v":1282.1999999999998},{"$f":"AVERAGE(Quarterly!DW159:DW162)","v":1282.3583333333333},{"$f":"AVERAGE(Quarterly!DX159:DX162)","v":923.67499999999995},{"$f":"AVERAGE(Quarterly!DY159:DY162)","v":225.125},{"$f":"AVERAGE(Quarterly!DZ159:DZ162)","v":698.54999999999984},{"$f":"AVERAGE(Quarterly!EA159:EA162)","v":497.85833333333335},{"$f":"AVERAGE(Quarterly!EB159:EB162)","v":200.69166666666666},{"$f":"AVERAGE(Quarterly!EC159:EC162)","v":358.68333333333339},null,null,null,null,null,9196.270376163262,15141.221080428306,18984.071411656776,null,null,null,null,null,127.68333333333331,141.99166666666667,138.30833333333334,null,null,null,null,null,8.2708333333333339,5.2983333333333338,7.37,8.0541666666666671,68.4166666666667,7.8058333333333341,5.0058333333333334,5.5125000000000002,5.84,6.1766666666666667,6.4383333333333335,0.92583333333333329,null,null,null,null,null,1.3636999999999999,8.3387250000000002,7.6031416666666667,"--",97.457058333333336,87.242999999999995,12991.050000000001,4292.7333333333336,6191.4333333333334,null,null,null,null,null,22.154166666666665,{"$f":"AVERAGE(Quarterly!GE159:GE162)","v":20.634999999999998},{"$f":"AVERAGE(Quarterly!GF159:GF162)","v":1.2431999999999999},{"$f":"AVERAGE(Quarterly!GG159:GG162)","v":1.2349166666666667},{"$f":"AVERAGE(Quarterly!GH159:GH162)","v":0},"--",{"$f":"AVERAGE(Quarterly!GJ159:GJ162)","v":2.5068333333333337},3349,"--"]
[1997,8608.5190000000002,11034.849999999999,10956.010000000002,7009.9750000000004,552.19833870147488,1657.6035684757996,4800.1730928227253,1242.8811401957057,776.41236344537538,501.79999999999995,84.805749999999989,1248.8245000000002,1103.5002500000001,-145.32425000000001,2322.0239999999999,-91.164249999999996,null,null,null,null,null,82.85,84.033333333333331,815.14271666666673,0.23499999999999999,551.46600000000001,365.74524999999994,11.7,16.074999999999999,0.99250000000000005,0.23499999999999999,0.62250000000000005,"--","--","--","--","--",83.277150000000006,81.551433333333321,1024974.9166666666,1.4158333333333335,54.991666666666667,53,47.083333333333336,51.091666666666669,54.058333333333337,53.008333333333333,44.483333333333334,58.666666666666664,51.958333333333329,58.541666666666664,53.883333333333333,60.216666666666669,56389.333333333336,64.921999999999997,95.861249999999998,62.528750000000002,72.965999999999994,83.388749999999987,85.6935,365.74524999999994,1,null,682113.75,617695.25,null,null,null,null,null,507.36042500000002,11.3412875,16.651157500000004,4159.2649999999994,1474.5833333333335,1442.25,"--",15.122416666666666,7.2824902670952678,0,"--","--","--","--","--","--",806.33333333333326,7080.6666666666661,352.18333333333339,1136.3333333333333,7751.2749999999996,1338.3999999999999,1287.6022333333335,272822.08333333337,521.41443333333336,103.21666666666667,"--",null,null,null,null,null,160.52500000000001,169.50833333333333,null,null,null,null,null,96.891666666666666,34.49166666666666,67.108333333333334,8.8083333333333336,4.9416666666666673,17417.833333333332,null,null,181.08333333333576,122941.16666666667,null,null,3114.5000000000146,0,7.9333333333333336,{"$f":"AVERAGE(Quarterly!DV163:DV166)","v":1308.1666666666667},{"$f":"AVERAGE(Quarterly!DW163:DW166)","v":1308.1833333333334},{"$f":"AVERAGE(Quarterly!DX163:DX166)","v":941.58333333333326},{"$f":"AVERAGE(Quarterly!DY163:DY166)","v":231.02499999999998},{"$f":"AVERAGE(Quarterly!DZ163:DZ166)","v":710.55833333333339},{"$f":"AVERAGE(Quarterly!EA163:EA166)","v":506.5333333333333},{"$f":"AVERAGE(Quarterly!EB163:EB166)","v":204.02499999999998},{"$f":"AVERAGE(Quarterly!EC163:EC166)","v":366.6},null,null,null,null,null,9766.3825898343202,15814.692349275128,19775.617736100969,null,null,null,null,null,127.6,142.44166666666666,138.25,null,null,null,null,null,8.4416666666666664,5.46,7.2616666666666667,7.8625000000000007,60.0833333333334,7.5958333333333332,5.0608333333333331,5.6300000000000008,5.9883333333333333,6.2224999999999993,6.3525,0.72249999999999925,null,null,null,null,null,1.3848666666666669,8.3193166666666656,7.9205749999999995,"--",104.42932500000001,93.920950000000005,13936.174999999999,5213.1416666666664,7161.4666666666672,null,null,null,null,null,20.599166666666669,{"$f":"AVERAGE(Quarterly!GE163:GE166)","v":19.118333333333332},{"$f":"AVERAGE(Quarterly!GF163:GF166)","v":1.2251958333333333},{"$f":"AVERAGE(Quarterly!GG163:GG166)","v":1.1998333333333333},{"$f":"AVERAGE(Quarterly!GH163:GH166)","v":0},"--",{"$f":"AVERAGE(Quarterly!GJ163:GJ166)","v":2.4716666666666667},3409,"--"]
[1998,9089.1602500000008,11525.891250000001,11452.338750000001,7384.85,618.89867311871058,1719.2637566590101,5046.6875702222796,1376.5410909111265,888.72218470240796,540.42499999999995,78.988500000000002,1394.7972500000001,1129.2807499999999,-265.51650000000006,2370.4940000000001,2.718,null,null,null,null,null,81.224999999999994,82.716666666666669,895.20048333333341,0.34,479.71125000000001,327.73625000000004,4.375,11.225000000000001,0.9524999999999999,0.34,0.64,"--","--","--","--","--",88.13795833333333,87.002766666666659,1064875.5833333333,1.4350000000000001,50.208333333333336,46.5,47.791666666666671,47.45,45.85,52.108333333333334,44.908333333333339,51.80833333333333,39.074999999999996,52.083333333333329,51.133333333333333,57.258333333333333,58102.75,66.518000000000001,97.57374999999999,66.146999999999991,75.175000000000011,87.026750000000007,87.98875000000001,327.73625000000004,0.95,null,713523.25,645662.25,null,null,null,null,null,494.08870833333333,11.19012,16.344257500000001,4463.66,1621.1666666666665,1619.4166666666667,"--",15.542999999999999,6.0470445192098259,0,"--","--","--","--","--","--",889.41666666666663,7593.6833333333325,405.32499999999999,1277.5833333333333,8208.2916666666661,1503.3583333333333,1372.8568749999999,276022.33333333337,559.92313333333334,104.61666666666666,"--",null,null,null,null,null,163.00833333333333,173.38333333333333,null,null,null,null,null,99.35,34.475000000000001,67.083333333333329,7.9916666666666671,4.5,17560,null,null,142.16666666666788,126149.08333333333,null,null,3207.916666666657,0,6.6833333333333336,{"$f":"AVERAGE(Quarterly!DV167:DV170)","v":1353.9166666666667},{"$f":"AVERAGE(Quarterly!DW167:DW170)","v":1354.375},{"$f":"AVERAGE(Quarterly!DX167:DX170)","v":975.47500000000002},{"$f":"AVERAGE(Quarterly!DY167:DY170)","v":237.97499999999999},{"$f":"AVERAGE(Quarterly!DZ167:DZ170)","v":737.5},{"$f":"AVERAGE(Quarterly!EA167:EA170)","v":525.94166666666661},{"$f":"AVERAGE(Quarterly!EB167:EB170)","v":211.55833333333334},{"$f":"AVERAGE(Quarterly!EC167:EC170)","v":378.9},null,null,null,null,null,10366.325800864914,16574.516338575784,20669.485482597749,null,null,null,null,null,124.43333333333334,143.71666666666667,137.55833333333334,null,null,null,null,null,8.3541666666666679,5.3533333333333335,6.5316666666666663,7.2208333333333332,68.916666666666686,6.9441666666666668,4.7766666666666673,5.0516666666666667,5.1291666666666664,5.15,5.2641666666666662,0.21249999999999947,null,null,null,null,null,1.4836333333333334,8.3006250000000001,9.1523250000000012,"--",115.88809166666667,98.411941666666678,14438,5930.7166666666672,7885.75,null,null,null,null,null,14.388333333333334,{"$f":"AVERAGE(Quarterly!GE167:GE170)","v":12.779166666666667},{"$f":"AVERAGE(Quarterly!GF167:GF170)","v":1.0547041666666666},{"$f":"AVERAGE(Quarterly!GG167:GG170)","v":1.0448333333333333},{"$f":"AVERAGE(Quarterly!GH167:GH170)","v":0},"--",{"$f":"AVERAGE(Quarterly!GJ167:GJ170)","v":2.1584166666666667},3463,"--"]
[1999,9660.6222500000003,12065.9025,11994.896999999999,7775.916666666667,698.30833333333339,1805.9666666666667,5331.6166666666668,1510.0995,1015.232,633.77499999999998,75.449749999999995,1536.23225,1159.14625,-377.08599999999996,2451.6957500000003,66.638000000000005,null,null,null,null,null,80.074999999999989,81.699999999999989,961.67089999999996,0.505,507.36275000000001,318.18225000000001,-0.625,4.45,0.96250000000000002,0.505,0.59750000000000003,4448,"--","--","--","--",92.056358333333336,91.592283333333341,1103430.0833333333,1.4024999999999999,54.633333333333333,51.791666666666664,44.999999999999993,50.558333333333337,52.9,52.983333333333334,45.550000000000004,57.9,54.199999999999996,58.45,53.266666666666666,59.1,60747.416666666664,70.337249999999997,97.421500000000009,69.224000000000004,77.953250000000011,89.201750000000004,88.800000000000011,318.18225000000001,0.95,null,771329,700341.75,null,null,null,null,null,495.73292500000002,11.473845000000001,16.6318825,4796.5150000000003,1647.25,1663.9166666666667,"--",16.893666666666665,6.4081446185568804,0,"--","--","--","--","--","--",878.5,7988.4083333333338,303.29166666666663,1306.1666666666665,8478.1,1698.1333333333332,1484.0790416666666,279194.91666666663,597.07180833333337,105.82499999999999,"--",null,null,null,null,null,166.58333333333331,176.97499999999999,null,null,null,null,null,101.52500000000001,34.375,67.083333333333343,7.4250000000000007,4.2166666666666668,17322.666666666668,null,null,-237.33333333333212,129240.16666666667,null,null,3091.083333333343,0,6.3250000000000002,{"$f":"AVERAGE(Quarterly!DV171:DV174)","v":1390.9666666666667},{"$f":"AVERAGE(Quarterly!DW171:DW174)","v":1391.4666666666667},{"$f":"AVERAGE(Quarterly!DX171:DX174)","v":1001.9333333333333},{"$f":"AVERAGE(Quarterly!DY171:DY174)","v":243.83333333333334},{"$f":"AVERAGE(Quarterly!DZ171:DZ174)","v":758.1},{"$f":"AVERAGE(Quarterly!EA171:EA174)","v":540.75833333333333},{"$f":"AVERAGE(Quarterly!EB171:EB174)","v":217.34166666666667},{"$f":"AVERAGE(Quarterly!EC171:EC174)","v":389.53333333333336},null,null,null,null,null,11132.751791940833,17601.991066940835,21871.688383607499,null,null,null,null,null,125.47499999999999,146.08333333333331,137.64166666666665,null,null,null,null,null,7.9941666666666666,4.9700000000000006,7.0416666666666679,7.8708333333333336,82.916666666666572,7.4291666666666663,4.6383333333333328,5.0774999999999997,5.4258333333333342,5.5408333333333326,5.6366666666666667,0.55916666666666703,null,null,null,null,null,1.4858250000000002,8.2782666666666671,9.5611666666666668,1.0667,116.16090833333332,97.014733333333325,16559.258333333331,6815.6833333333334,9143.375,null,null,null,null,null,19.251666666666665,{"$f":"AVERAGE(Quarterly!GE171:GE174)","v":17.846666666666668},{"$f":"AVERAGE(Quarterly!GF171:GF174)","v":1.1550499999999999},{"$f":"AVERAGE(Quarterly!GG171:GG174)","v":1.1200833333333333},{"$f":"AVERAGE(Quarterly!GH171:GH174)","v":0},"--",{"$f":"AVERAGE(Quarterly!GJ171:GJ174)","v":2.3136666666666668},3545,"--"]
[2000,10284.775249999999,12559.659749999999,12494.884249999999,8170.6833333333325,758.33333333333326,1863.6,5599.2916666666661,1647.66525,1114.18525,637.94575000000009,66.225250000000003,1736.2154999999998,1258.4327499999999,-477.78275000000002,2498.1992499999997,156.51124999999999,null,null,null,null,null,79.25,81.424999999999997,1054.4602166666666,0.63,481.99450000000002,281.00650000000002,16.25,-3.25,1.0225,0.63,0.58750000000000002,6854,{"$f":"AH52/BN52","v":9.2020164150063751E-3},"--","--","--",95.647824999999997,95.554966666666672,1171480.1666666667,1.405833333333333,51.658333333333339,47.125,49.041666666666664,50.366666666666667,51.924999999999997,52.65,46.316666666666663,51.891666666666673,64.833333333333343,53.458333333333336,53.35,59.25,63862.416666666672,74.962000000000003,97.831500000000005,74.103999999999999,80.27324999999999,92.351249999999993,92.316000000000003,281.00650000000002,1.0249999999999999,null,820730.75,744836.75,null,null,null,null,null,530.89754166666671,11.78731,16.796097500000002,5156.6500000000005,1573.3333333333335,1598.3333333333335,106.3475,17.349583333333332,7.3326656525083544,0,"--","--","--","--","--","--",880.25,8637.0499999999993,307.66666666666669,1232,8902.2833333333328,1801.3916666666667,1622.1350750000001,282295.91666666669,645.08140833333334,107.57499999999999,"--",null,null,null,null,null,172.19166666666666,181.29166666666669,null,null,null,null,null,103.45000000000002,34.291666666666664,67.066666666666663,7.0250000000000004,3.9666666666666668,17265.25,null,null,-57.416666666667879,132033.25000000003,null,null,2793.0833333333576,0,5.9333333333333327,{"$f":"AVERAGE(Quarterly!DV175:DV178)","v":1405.6083333333333},{"$f":"AVERAGE(Quarterly!DW175:DW178)","v":1405.8333333333333},{"$f":"AVERAGE(Quarterly!DX175:DX178)","v":1012.9416666666668},{"$f":"AVERAGE(Quarterly!DY175:DY178)","v":244.91666666666669},{"$f":"AVERAGE(Quarterly!DZ175:DZ178)","v":768.02500000000009},{"$f":"AVERAGE(Quarterly!EA175:EA178)","v":547.85},{"$f":"AVERAGE(Quarterly!EB175:EB178)","v":220.17499999999998},{"$f":"AVERAGE(Quarterly!EC175:EC178)","v":392.89166666666665},null,null,null,null,null,11642.4822932075,18286.256393207495,22764.191309874172,null,null,null,null,null,132.74166666666667,147.95833333333334,138.85833333333335,null,null,null,null,null,9.2333333333333343,6.2358333333333329,7.6224999999999996,8.3641666666666659,74.166666666666629,8.0633333333333326,5.8166666666666664,6.1083333333333325,6.2549999999999999,6.1524999999999999,6.0291666666666668,-7.9166666666665719E-2,null,null,null,null,null,1.4855166666666668,8.2784166666666668,9.4590000000000014,0.92339166666666661,119.54073333333334,101.73405,19236.525000000001,8334.85,11327.191666666668,null,null,null,null,null,30.298333333333336,{"$f":"AVERAGE(Quarterly!GE175:GE178)","v":28.522499999999997},{"$f":"AVERAGE(Quarterly!GF175:GF178)","v":1.4926958333333331},{"$f":"AVERAGE(Quarterly!GG175:GG178)","v":1.4932500000000002},{"$f":"AVERAGE(Quarterly!GH175:GH178)","v":0},"--",{"$f":"AVERAGE(Quarterly!GJ175:GJ178)","v":4.3127499999999994},3735,"--"]
[2001,10621.826999999999,12682.240249999999,12729.58675,8382.6166666666668,798.02500000000009,1896.0333333333335,5730.958333333333,1608.3939999999998,1083.00225,643.68224999999995,-46.245750000000001,1686.9657500000001,1184.9014999999999,-502.06424999999996,2592.40625,14.452499999999999,null,null,null,null,null,73.275000000000006,76.116666666666674,1067.1135583333335,1.1099999999999999,487.34000000000003,214.00475,21.05,-39.075000000000003,1.2974999999999999,1.1099999999999999,0.80749999999999988,8540,{"$f":"AH53/BN53","v":1.1155083416577382E-2},80.099999999999994,86.25,88.8,92.673291666666671,92.179308333333324,1165419.4166666667,1.4241666666666666,43.408333333333339,40.208333333333336,48.708333333333336,38.341666666666669,47.583333333333336,48.391666666666666,39.658333333333331,46.016666666666666,43,45.033333333333331,48.024999999999991,48.966666666666669,54768.333333333328,75.144750000000002,100.47650000000002,77.292749999999998,82.431749999999994,93.687750000000008,93.774749999999997,214.00475,1.2999999999999998,null,844811.75,765570.25,null,null,null,null,null,564.70758333333333,12.392275,17.420204999999999,5491.8450000000003,1601.1666666666667,1637.1666666666665,117.22666666666665,17.122166666666665,7.5641003112849319,0,"--","--","--","--","--","--",907.25,8991.5749999999989,335.16666666666663,1271.6666666666667,9148.7749999999996,2089.2583333333332,1796.6031166666667,285215.91666666669,705.92472500000008,89.24166666666666,"--",null,null,null,null,null,177.04166666666669,186.125,null,null,null,null,null,102.05833333333334,33.950000000000003,66.833333333333329,8.1416666666666675,4.7416666666666663,16440.583333333332,null,null,-824.66666666666788,132092.24999999997,null,null,58.999999999941792,0,6.7333333333333334,{"$f":"AVERAGE(Quarterly!DV179:DV182)","v":1386.9333333333332},{"$f":"AVERAGE(Quarterly!DW179:DW182)","v":1386.7583333333334},{"$f":"AVERAGE(Quarterly!DX179:DX182)","v":992.00833333333333},{"$f":"AVERAGE(Quarterly!DY179:DY182)","v":238.24166666666667},{"$f":"AVERAGE(Quarterly!DZ179:DZ182)","v":753.76666666666654},{"$f":"AVERAGE(Quarterly!EA179:EA182)","v":537.82499999999993},{"$f":"AVERAGE(Quarterly!EB179:EB182)","v":215.94166666666666},{"$f":"AVERAGE(Quarterly!EC179:EC182)","v":394.75},null,null,null,null,null,11636.055198789167,18494.794098789167,23050.3512571225,null,null,null,null,null,134.19166666666666,150.03333333333333,139.73333333333335,null,null,null,null,null,6.9216666666666669,3.8875000000000002,7.0824999999999996,7.9474999999999998,86.500000000000028,6.9725000000000001,3.3883333333333332,3.4808333333333334,3.8225000000000002,4.5508333333333333,5.0175000000000001,1.5366666666666666,null,null,null,null,null,1.5490166666666667,8.2770083333333329,9.3408333333333324,0.89549999999999996,126.05964166666666,107.856825,18022.325000000004,8523.2000000000007,10944.825000000001,null,null,null,null,null,25.924166666666668,{"$f":"AVERAGE(Quarterly!GE179:GE182)","v":24.449999999999996},{"$f":"AVERAGE(Quarterly!GF179:GF182)","v":1.4649624999999999},{"$f":"AVERAGE(Quarterly!GG179:GG182)","v":1.4040833333333333},{"$f":"AVERAGE(Quarterly!GH179:GH182)","v":0},"--",{"$f":"AVERAGE(Quarterly!GJ179:GJ182)","v":4.0257500000000004},3812,"--"]
[2002,10977.522000000001,12908.76125,12888.914249999998,8598.7833333333347,856.57500000000005,1931.1,5838.1916666666675,1497.9960000000001,1065.4482499999999,682.66899999999998,22.538249999999998,1748.7952499999999,1164.4684999999999,-584.32674999999995,2705.7622499999998,-270.48349999999999,null,null,null,null,null,72.625,74.99166666666666,984.39861666666673,1.625,596.60275000000001,262.38200000000001,26.200000000000003,-39.75,1.4724999999999999,1.625,1.1125,11115.25,{"$f":"AH54/BN54","v":1.4206281041591579E-2},83.674999999999997,89.274999999999991,91.65,92.956208333333322,92.806358333333336,1119915.1666666665,1.3608333333333336,50.816666666666663,49.458333333333336,42.208333333333336,45.824999999999996,52.091666666666661,53.333333333333336,42.708333333333336,56.55833333333333,57.44166666666667,55.833333333333329,53.275000000000006,55.133333333333333,49257.666666666672,78.936999999999998,98.820000000000007,79.071749999999994,86.004249999999999,94.342250000000007,91.939000000000007,262.38200000000001,1.5,null,865121.75,782418,null,null,null,null,null,588.01664166666671,12.37787,17.316504999999999,5890.5075000000006,1710.25,1749,128.14666666666668,16.816500000000001,7.3782556366371441,0,"--","--","--","--","--","--",976.16666666666663,9153.875,405.27499999999998,1363.25,9431.7916666666679,2555.7416666666663,1926.7977416666668,288019,733.73654166666665,89.583333333333329,"--",null,null,null,null,null,179.86666666666667,190.44166666666669,null,null,null,null,null,100,33.849999999999994,66.583333333333343,9.5833333333333321,5.7833333333333332,15256.833333333334,null,null,-1183.7499999999982,130649.33333333333,null,null,-1442.9166666666424,0,9.1999999999999993,{"$f":"AVERAGE(Quarterly!DV183:DV186)","v":1338.9749999999999},{"$f":"AVERAGE(Quarterly!DW183:DW186)","v":1339.2666666666667},{"$f":"AVERAGE(Quarterly!DX183:DX186)","v":951.65},{"$f":"AVERAGE(Quarterly!DY183:DY186)","v":231.94166666666666},{"$f":"AVERAGE(Quarterly!DZ183:DZ186)","v":719.70833333333337},{"$f":"AVERAGE(Quarterly!EA183:EA186)","v":511.2166666666667},{"$f":"AVERAGE(Quarterly!EB183:EB186)","v":208.49166666666667},{"$f":"AVERAGE(Quarterly!EC183:EC186)","v":387.61666666666667},null,null,null,null,null,11798.763406426666,18837.776856426666,23459.492723093335,null,null,null,null,null,131.11666666666665,150.13333333333333,139.13333333333333,null,null,null,null,null,4.6749999999999998,1.6666666666666667,6.4916666666666671,7.8016666666666667,130.99999999999997,6.5375000000000005,1.6041666666666667,2.0016666666666669,2.6366666666666667,3.8149999999999999,4.6108333333333338,2.6091666666666669,null,null,null,null,null,1.5705916666666666,8.2770500000000009,9.6648166666666651,0.94530833333333342,126.81486666666666,106.18310833333334,17423.975000000002,10432.716666666665,11218,null,null,null,null,null,26.0975,{"$f":"AVERAGE(Quarterly!GE183:GE186)","v":24.963333333333331},{"$f":"AVERAGE(Quarterly!GF183:GF186)","v":1.3595375000000001},{"$f":"AVERAGE(Quarterly!GG183:GG186)","v":1.3153333333333335},{"$f":"AVERAGE(Quarterly!GH183:GH186)","v":0},"--",{"$f":"AVERAGE(Quarterly!GJ183:GJ186)","v":3.3557500000000005},3730,"--"]
[2003,11510.67375,13271.081250000001,13248.974,8867.5666666666675,917.63333333333344,1998.5499999999997,5966.8916666666664,1526.08925,1110.24875,744.53549999999996,22.567250000000001,1826.8807499999998,1185.0129999999999,-641.86775000000011,2764.2682500000001,-402.87824999999998,null,null,null,null,null,73.575000000000003,75.974999999999994,915.79349166666668,1.2949999999999999,725.68450000000007,363.39949999999999,11.775,-14.65,1.2975000000000001,1.2949999999999999,0.88,14236.75,{"$f":"AH55/BN55","v":1.7459241483994137E-2},88.75,92.65,94.25,94.110583333333338,94.229424999999992,1143371.6666666667,1.34,51.733333333333327,51.041666666666664,42.75,46.249999999999993,54.93333333333333,56.608333333333334,44.524999999999999,57.916666666666671,59.583333333333336,56.924999999999997,53.058333333333337,58.308333333333337,50670.583333333328,84.096750000000014,97.737999999999985,82.038749999999993,89.180250000000001,95.673999999999992,91.993500000000012,363.39949999999999,1.3,null,902926.25,815427.75,null,null,null,null,null,619.54596666666669,12.241497500000001,16.983417499999998,6392.7874999999995,1853.7500000000002,1888.4166666666665,142.51,16.638999999999999,8.2918538542438007,0,"--","--","--","--","--","--",1090.6666666666665,9492.0333333333328,410.50833333333333,1505.0833333333333,9691.0833333333339,3013.6916666666666,2033.9651083333333,290733.33333333331,763.07285833333333,87.625,79.816666666666663,null,null,null,null,null,184,193.22500000000002,null,null,null,null,null,98.758333333333326,33.691666666666663,66.241666666666674,10.133333333333333,5.9916666666666663,14508.5,null,null,-748.33333333333394,130344.83333333333,null,null,-304.5,0,10.175000000000001,{"$f":"AVERAGE(Quarterly!DV187:DV190)","v":1325.8833333333334},{"$f":"AVERAGE(Quarterly!DW187:DW190)","v":1325.5916666666667},{"$f":"AVERAGE(Quarterly!DX187:DX190)","v":935.19166666666661},{"$f":"AVERAGE(Quarterly!DY187:DY190)","v":229.79999999999998},{"$f":"AVERAGE(Quarterly!DZ187:DZ190)","v":705.39166666666665},{"$f":"AVERAGE(Quarterly!EA187:EA190)","v":496.83333333333337},{"$f":"AVERAGE(Quarterly!EB187:EB190)","v":208.55833333333334},{"$f":"AVERAGE(Quarterly!EC187:EC190)","v":390.4},null,null,null,null,null,12292.433134455001,19503.099709455,24135.725001121664,null,null,null,null,null,138.125,150.4,139.50000000000003,null,null,null,null,null,4.1224999999999996,1.1274999999999999,5.6666666666666661,6.7658333333333331,109.91666666666671,5.8191666666666659,1.0108333333333333,1.2441666666666666,1.6533333333333333,2.9683333333333333,4.0149999999999997,2.770833333333333,null,null,null,null,null,1.4011666666666667,8.2771833333333333,10.796758333333333,1.1317083333333333,119.26086666666666,93.162300000000002,18466.225000000002,12702.999999999998,11505.008333333333,null,null,null,null,null,31.14,{"$f":"AVERAGE(Quarterly!GE187:GE190)","v":28.8825},{"$f":"AVERAGE(Quarterly!GF187:GF190)","v":1.5774041666666665},{"$f":"AVERAGE(Quarterly!GG187:GG190)","v":1.5083333333333333},{"$f":"AVERAGE(Quarterly!GH187:GH190)","v":0},"--",{"$f":"AVERAGE(Quarterly!GJ187:GJ190)","v":5.5000833333333334},3887,"--"]
[2004,12274.927,13773.490000000002,13702.241249999999,9208.1916666666675,992.91666666666663,2063.65,6156.5666666666666,1605.3644999999999,1191.2439999999999,818.89675,71.397500000000008,2035.3404999999998,1300.5797499999999,-734.7607499999998,2808.1877500000001,-399.21924999999999,null,null,null,null,null,76.05,78.100000000000009,879.8486333333334,0.53749999999999998,948.51599999999996,513.17775000000006,-2.125,30.924999999999997,0.95499999999999996,0.53749999999999998,0.65250000000000008,18091.75,{"$f":"AH56/BN56","v":2.0910029977967998E-2},94.800000000000011,96.174999999999997,96.75,96.59564166666668,97.269608333333338,1198074.25,1.2991666666666668,59.108333333333334,57.708333333333329,40.833333333333336,56.841666666666676,57.166666666666671,58.774999999999999,49.708333333333336,63.466666666666669,79.75,62.891666666666666,62.633333333333333,62.5,53479.333333333328,88.72975000000001,96.074249999999992,85.761499999999998,91.95150000000001,97.410499999999985,93.263000000000005,513.17775000000006,0.97499999999999998,null,958382.25,865218.75,null,null,null,null,null,679.03865000000008,12.181447499999999,16.818204999999999,6995.4524999999994,1949.4999999999998,2057.5833333333335,164.42249999999999,16.866916666666665,8.2078201271864764,0,"--","--","--","--","--","--",1200.8333333333333,10053.849999999999,410.38333333333338,1604.1666666666667,10036.666666666666,3376.6916666666671,2137.3530666666666,293388.58333333331,784.55585833333339,95.2,96.075000000000003,null,null,null,null,null,188.90833333333333,196.64166666666668,null,null,null,null,null,100.26666666666667,33.725000000000001,65.983333333333334,9.5749999999999993,5.541666666666667,14314.75,null,null,-193.75,131770,null,null,1425.1666666666715,0,9.8166666666666664,{"$f":"AVERAGE(Quarterly!DV191:DV194)","v":1351.5333333333333},{"$f":"AVERAGE(Quarterly!DW191:DW194)","v":1351.7249999999999},{"$f":"AVERAGE(Quarterly!DX191:DX194)","v":949.71666666666681},{"$f":"AVERAGE(Quarterly!DY191:DY194)","v":229.51666666666668},{"$f":"AVERAGE(Quarterly!DZ191:DZ194)","v":720.19999999999993},{"$f":"AVERAGE(Quarterly!EA191:EA194)","v":498.19166666666666},{"$f":"AVERAGE(Quarterly!EB191:EB194)","v":222.00833333333333},{"$f":"AVERAGE(Quarterly!EC191:EC194)","v":402.00833333333333},null,null,null,null,null,13010.4900732325,20352.961223232498,25053.720414899162,null,null,null,null,null,146.67500000000001,152.70000000000002,141.48333333333332,null,null,null,null,null,4.3416666666666668,1.3491666666666666,5.628333333333333,6.3933333333333335,76.500000000000057,5.8416666666666668,1.3716666666666666,1.8866666666666667,2.38,3.4291666666666667,4.2741666666666669,2.3875000000000002,null,null,null,null,null,1.3015750000000001,8.2767999999999997,11.289983333333334,1.2438749999999998,113.75537499999999,85.50888333333333,21363.324999999997,16390.166666666664,12991.800000000001,null,null,null,null,null,41.438333333333333,{"$f":"AVERAGE(Quarterly!GE191:GE194)","v":38.230000000000004},{"$f":"AVERAGE(Quarterly!GF191:GF194)","v":1.8585458333333333},{"$f":"AVERAGE(Quarterly!GG191:GG194)","v":1.8074999999999997},{"$f":"AVERAGE(Quarterly!GH191:GH194)","v":0},"--",{"$f":"AVERAGE(Quarterly!GJ191:GJ194)","v":6.1862499999999994},4050,"--"]
[2005,13093.7215,14234.242749999999,14168.841,9531.8083333333325,1046.9416666666666,2132.333333333333,6353.4000000000005,1717.4447500000001,1296.2145,872.61074999999994,64.326250000000002,2164.2155000000002,1381.90525,-782.31025000000022,2826.1764999999996,-304.73475000000002,null,null,null,null,null,78.150000000000006,80,980.09554166666658,0.2225,1240.9390000000001,732.70399999999995,4.0750000000000002,27.675000000000001,0.77249999999999996,0.2225,0.53249999999999997,22762.25,{"$f":"AH57/BN57","v":2.4696819812139361E-2},99.2,99.174999999999997,99.15,99.772600000000011,101.42164166666666,1278662.75,1.2725,54.491666666666667,52.041666666666664,44.5,53.574999999999996,55.55,56.00833333333334,48.875,57.583333333333329,66.416666666666671,58.266666666666666,54.199999999999996,60.19166666666667,58658.083333333328,94.21374999999999,93.876499999999993,88.903999999999996,93.86,97.691249999999997,94.718249999999983,732.70399999999995,0.8,null,1020789.75,921667.25,null,null,null,null,null,698.37526666666668,12.5593775,17.242112499999998,7581.3974999999991,2072.9166666666665,2160.0833333333335,190.345,16.948250000000002,8.4466651642805033,0,{"$f":"AVERAGE(Quarterly!CD195:CD198)","v":467.66666666666669},{"$f":"AVERAGE(Quarterly!CE195:CE198)","v":1278.9166666666665},{"$f":"AVERAGE(Quarterly!CF195:CF198)","v":4.45},"--","--","--",1278.9166666666665,10614.991666666667,244.08333333333331,1718.5,10190.491666666667,3540.666666666667,2249.07645,296114.91666666663,814.68472500000007,88.55,100.26666666666667,null,null,null,null,null,195.26666666666665,200.86666666666665,null,null,null,null,null,102.79166666666666,33.741666666666667,66.033333333333331,8.9333333333333336,5.0833333333333339,14225.666666666666,null,null,-89.08333333333394,134042.41666666666,null,null,2272.416666666657,0,8.9333333333333336,{"$f":"AVERAGE(Quarterly!DV195:DV198)","v":1397.7916666666665},{"$f":"AVERAGE(Quarterly!DW195:DW198)","v":1397.625},{"$f":"AVERAGE(Quarterly!DX195:DX198)","v":980.48333333333335},{"$f":"AVERAGE(Quarterly!DY195:DY198)","v":230.99166666666667},{"$f":"AVERAGE(Quarterly!DZ195:DZ198)","v":749.49166666666667},{"$f":"AVERAGE(Quarterly!EA195:EA198)","v":523.35},{"$f":"AVERAGE(Quarterly!EB195:EB198)","v":226.14166666666665},{"$f":"AVERAGE(Quarterly!EC195:EC198)","v":417.14166666666665},null,null,null,null,null,13652.729958916667,21261.820358916666,26046.722358916668,null,null,null,null,null,157.4,156.3416666666667,144.68333333333334,null,null,null,null,null,6.1866666666666665,3.2133333333333334,5.2350000000000003,6.064166666666666,82.916666666666572,5.8658333333333328,3.1466666666666665,3.6183333333333332,3.8508333333333331,4.0458333333333334,4.29,0.67166666666666686,null,null,null,null,null,1.2114833333333335,8.1939999999999991,10.895108333333331,1.24465,110.83472499999999,83.869600000000005,24198.683333333334,20289.183333333334,14175.725,null,null,null,null,null,56.465833333333336,{"$f":"AVERAGE(Quarterly!GE195:GE198)","v":54.418333333333329},{"$f":"AVERAGE(Quarterly!GF195:GF198)","v":2.2793625},{"$f":"AVERAGE(Quarterly!GG195:GG198)","v":2.3986666666666667},{"$f":"AVERAGE(Quarterly!GH195:GH198)","v":0},"--",{"$f":"AVERAGE(Quarterly!GJ195:GJ198)","v":8.9972499999999993},4131,"--"]
[2006,13855.8915,14613.81675,14542.266749999999,9821.7000000000007,1091.5416666666667,2202.1666666666665,6526.6,1839.5535,1388.0652499999999,806.57050000000004,71.606750000000005,2301.0407500000001,1506.7697499999999,-794.27099999999996,2869.2822500000002,-227.03049999999999,null,null,null,null,null,78.525000000000006,80.391666666666666,1119.2488416666665,0.22999999999999998,1378.0635,872.41250000000002,4.9000000000000004,-1.0499999999999998,0.73249999999999993,0.22999999999999998,0.38249999999999995,28196.25,2.9093155621362065E-2,102.07499999999999,102.05,102.05,102.01500833333333,104.17393333333332,1372041,1.2816666666666667,53.166666666666664,51.333333333333336,47.583333333333336,51.625,55.766666666666666,56.666666666666671,48.791666666666664,55.391666666666659,64.958333333333329,55.591666666666661,54.35,57.983333333333334,64654,97.24499999999999,93.124250000000004,92.341250000000002,94.680250000000001,98.292000000000002,97.529250000000005,872.41250000000002,0.72499999999999987,null,1074994.75,969171.25,null,null,null,null,null,716.41846666666675,12.720195,17.428374999999999,8270.3050000000003,1811.9166666666667,1843.6666666666665,204.79666666666668,16.504333333333335,7.8408426955816584,0,{"$f":"AVERAGE(Quarterly!CD199:CD202)","v":553.33333333333337},{"$f":"AVERAGE(Quarterly!CE199:CE202)","v":1049.3333333333333},{"$f":"AVERAGE(Quarterly!CF199:CF202)","v":6.4333333333333327},{"$f":"AVERAGE(Quarterly!CG199:CG202)","v":3538.3333333333335},{"$f":"AVERAGE(Quarterly!CH199:CH202)","v":6493.3333333333339},{"$f":"AVERAGE(Quarterly!CI199:CI202)","v":6.3583333333333334},1049.3333333333333,11394.775000000001,332.23333333333335,1473.5833333333333,10596.4,3633.35,2408.4517333333333,298929.91666666669,900.57039166666664,87.308333333333323,105.86666666666667,null,null,null,null,null,201.55833333333334,205.91666666666666,null,null,null,null,null,105.76666666666665,33.849999999999994,66.166666666666671,8.2333333333333325,4.6083333333333334,14156.5,null,null,-69.16666666666606,136457.08333333334,null,null,2414.6666666666861,0,8.2249999999999996,{"$f":"AVERAGE(Quarterly!DV199:DV202)","v":1435.7166666666667},{"$f":"AVERAGE(Quarterly!DW199:DW202)","v":1435.8000000000002},{"$f":"AVERAGE(Quarterly!DX199:DX202)","v":1004.6083333333333},{"$f":"AVERAGE(Quarterly!DY199:DY202)","v":235.45},{"$f":"AVERAGE(Quarterly!DZ199:DZ202)","v":769.1583333333333},{"$f":"AVERAGE(Quarterly!EA199:EA202)","v":538.06666666666672},{"$f":"AVERAGE(Quarterly!EB199:EB202)","v":231.09166666666664},{"$f":"AVERAGE(Quarterly!EC199:EC202)","v":431.19166666666666},null,null,null,null,null,13926.767313724169,21607.270463724166,26596.412463724169,null,null,null,null,null,164.75,158.72499999999999,146.90833333333333,null,null,null,null,null,7.9574999999999996,4.9641666666666664,5.5875000000000004,6.4791666666666679,89.166666666666742,6.4108333333333327,4.7266666666666666,4.9325000000000001,4.8149999999999995,4.7450000000000001,4.7916666666666661,-0.14083333333333403,null,null,null,null,null,1.1343750000000001,7.9720333333333331,10.900616666666668,1.2559833333333335,108.70941666666667,82.629341666666676,25203.158333333336,23981.199999999997,16521.100000000002,null,null,null,null,null,66.103333333333325,{"$f":"AVERAGE(Quarterly!GE199:GE202)","v":65.146666666666675},{"$f":"AVERAGE(Quarterly!GF199:GF202)","v":2.5753708333333338},{"$f":"AVERAGE(Quarterly!GG199:GG202)","v":2.7050000000000001},{"$f":"AVERAGE(Quarterly!GH199:GH202)","v":0},"--",{"$f":"AVERAGE(Quarterly!GJ199:GJ202)","v":6.9895000000000005},4195,"--"]
[2007,14477.636,14873.734250000001,14836.19025,10041.558333333334,1141.6666666666667,2239.3166666666666,6656.4333333333325,1948.3979999999999,1439.3525,654.78424999999993,35.545249999999996,2359.0115000000001,1646.3934999999999,-712.61800000000005,2914.4090000000001,-265.64825000000002,null,null,null,null,null,78.95,80.674999999999997,1289.47875,0.39999999999999997,1302.8865000000001,799.69749999999988,10.824999999999999,-11,1.01,0.39999999999999997,0.52249999999999996,33959.75,3.3980716101834833E-2,104.55000000000001,105.19999999999999,105.49999999999999,104.58096666666667,107.48314999999999,1446261.5000000002,1.2825000000000002,51.225000000000001,48.875,49.958333333333336,50.55,55.833333333333336,53.875,45.375,54.491666666666674,64.583333333333343,54.31666666666667,51.291666666666671,56.033333333333331,65491.416666666672,103.26724999999999,91.211749999999995,96.293000000000006,96.17949999999999,99.649750000000012,100.1215,799.69749999999988,1,null,1110665,999383,null,null,null,null,null,757.80172499999992,13.04766,17.930882499999999,9258.3474999999999,1341.8333333333333,1391.5,196.94583333333335,16.088999999999999,7.4859786213703483,0,{"$f":"AVERAGE(Quarterly!CD203:CD206)","v":469.44047619047626},{"$f":"AVERAGE(Quarterly!CE203:CE206)","v":699.16666666666663},{"$f":"AVERAGE(Quarterly!CF203:CF206)","v":8.0594919091141595},{"$f":"AVERAGE(Quarterly!CG203:CG206)","v":3536.0714285714289},{"$f":"AVERAGE(Quarterly!CH203:CH206)","v":5012.4603174603171},{"$f":"AVERAGE(Quarterly!CI203:CI206)","v":8.4149684581651965},768.66666666666663,12001.058333333332,310.68333333333334,1048.0833333333335,10821.633333333331,3798.2,2531.5147999999999,301903.16666666663,960.53980833333344,85.583333333333343,103.35833333333333,null,null,null,null,null,207.34416666666667,210.72508333333334,null,null,null,null,null,107.34166666666667,33.816666666666663,66.033333333333331,8.3416666666666668,4.6166666666666671,13877.833333333332,null,null,-278.66666666666788,137997.16666666666,null,null,1540.0833333333139,0,8.5,{"$f":"AVERAGE(Quarterly!DV203:DV206)","v":1412.4011904761903},{"$f":"AVERAGE(Quarterly!DW203:DW206)","v":1410.221428571429},{"$f":"AVERAGE(Quarterly!DX203:DX206)","v":984.55634920634907},{"$f":"AVERAGE(Quarterly!DY203:DY206)","v":230.67817460317463},{"$f":"AVERAGE(Quarterly!DZ203:DZ206)","v":753.87817460317456},{"$f":"AVERAGE(Quarterly!EA203:EA206)","v":530.09087301587294},{"$f":"AVERAGE(Quarterly!EB203:EB206)","v":223.78730158730161},{"$f":"AVERAGE(Quarterly!EC203:EC206)","v":425.66507936507935},null,null,null,null,null,13980.878983165834,21967.352883165837,27169.754141499165,null,null,null,null,null,172.65833333333333,161.875,149.64166666666665,null,null,null,null,null,8.0500000000000007,5.019166666666667,5.5558333333333341,6.4824999999999999,92.666666666666586,6.3425000000000002,4.3533333333333344,4.5216666666666665,4.3574999999999999,4.4249999999999998,4.6291666666666664,0.10749999999999993,null,null,null,null,null,1.0741833333333333,7.6059333333333337,10.928316666666667,1.3709,103.57326666666668,77.97881666666666,26421.4,26786.916666666664,17559.5,null,null,null,null,null,72.362500000000011,{"$f":"AVERAGE(Quarterly!GE203:GE206)","v":72.465000000000003},{"$f":"AVERAGE(Quarterly!GF203:GF206)","v":2.7838597222222221},{"$f":"AVERAGE(Quarterly!GG203:GG206)","v":2.8816666666666668},{"$f":"AVERAGE(Quarterly!GH203:GH206)","v":0},"--",{"$f":"AVERAGE(Quarterly!GJ203:GJ206)","v":7.1165000000000003},4269,"--"]
[2008,14718.587750000001,14830.358749999999,14865.71175,10007.183333333332,1083.2333333333333,2214.666666666667,6708.583333333333,1934.44525,1394.2592500000003,497.70274999999998,-33.671250000000001,2298.645,1740.825,-557.81999999999994,2994.7530000000002,-633.98974999999996,null,null,null,null,null,74.55,77.724999999999994,1509.8384249999999,0.78,1073.3442500000001,652.87549999999999,0.95,-15.625,2.21,0.78,1.1425000000000001,35466.25,3.6121107620607808E-2,107.17500000000001,108.22499999999999,108.625,100.90128333333332,102.52498333333334,1512654.5833333335,1.3125,45.508333333333326,40.208333333333336,51.541666666666664,43.233333333333334,52.25,45.416666666666664,45.583333333333336,42.016666666666666,66.458333333333329,45.041666666666657,51.69166666666667,47.433333333333337,65040.583333333336,107.36775,90.307249999999996,98.980500000000006,96.954499999999996,98.664749999999998,102.09100000000001,652.87549999999999,2.2000000000000002,null,1095790.5,981870.5,null,null,null,null,null,826.18621666666661,12.8477575,17.745895000000001,10335.615,900,895.83333333333326,165.94,13.195,9.6256913212134627,0,{"$f":"AVERAGE(Quarterly!CD207:CD210)","v":425.5},{"$f":"AVERAGE(Quarterly!CE207:CE210)","v":482.16666666666663},{"$f":"AVERAGE(Quarterly!CF207:CF210)","v":10.674999999999999},{"$f":"AVERAGE(Quarterly!CG207:CG210)","v":3565.833333333333},{"$f":"AVERAGE(Quarterly!CH207:CH210)","v":4105.833333333333},{"$f":"AVERAGE(Quarterly!CI207:CI210)","v":10.42564325916608},482.16666666666663,12503.166666666668,537.65,616.33333333333337,10988.275000000001,4002.55,2651.0188749999998,304718,1015.341425,63.749999999999993,57.95,null,null,null,null,null,215.25424999999998,215.56508333333332,null,null,null,null,null,106.10000000000001,33.625,66.024999999999991,10.549999999999999,5.8,13403.416666666668,null,null,-474.41666666666424,137240.25,null,null,-756.91666666665697,0,9.4166666666666661,{"$f":"AVERAGE(Quarterly!DV207:DV210)","v":1388.3083333333334},{"$f":"AVERAGE(Quarterly!DW207:DW210)","v":1389},{"$f":"AVERAGE(Quarterly!DX207:DX210)","v":975.5916666666667},{"$f":"AVERAGE(Quarterly!DY207:DY210)","v":228.41666666666666},{"$f":"AVERAGE(Quarterly!DZ207:DZ210)","v":747.17499999999995},{"$f":"AVERAGE(Quarterly!EA207:EA210)","v":530.58333333333337},{"$f":"AVERAGE(Quarterly!EB207:EB210)","v":216.59166666666667},{"$f":"AVERAGE(Quarterly!EC207:EC210)","v":413.4083333333333},null,null,null,null,null,13390.816553044167,21437.342678044166,26914.368361377499,null,null,null,null,null,189.59166666666667,167.39999999999998,153.96666666666667,null,null,null,null,null,5.0874999999999995,1.9275,5.6316666666666668,7.4466666666666672,181.50000000000003,6.0416666666666661,1.365,1.8225,2.0041666666666669,2.7983333333333333,3.666666666666667,1.844166666666667,null,null,null,null,null,1.0667666666666666,6.9482333333333335,11.155725,1.4704499999999998,99.869383333333332,74.467841666666672,28290.95,28147.708333333332,17995.125000000004,null,null,null,null,null,99.567499999999995,{"$f":"AVERAGE(Quarterly!GE207:GE210)","v":96.847499999999997},{"$f":"AVERAGE(Quarterly!GF207:GF210)","v":3.2678333333333334},{"$f":"AVERAGE(Quarterly!GG207:GG210)","v":3.8068333333333335},{"$f":"AVERAGE(Quarterly!GH207:GH210)","v":0},"--",{"$f":"AVERAGE(Quarterly!GJ207:GJ210)","v":8.8986666666666672},4156,"--"]
[2009,14418.7395,14418.738499999999,14566.308250000002,9846.9666666666672,1023.3249999999999,2175.125,6648.5166666666664,1633.442,1195.231,392.24249999999995,-147.56874999999999,1983.1772500000002,1587.7402499999998,-395.43699999999995,3089.0909999999999,-1248.845,null,null,null,null,null,65.375,68.508333333333326,1412.1790416666665,2.0974999999999997,1203.1075000000001,574.654,-3.1749999999999998,-52.900000000000006,4.6974999999999998,2.0974999999999997,2.3824999999999998,36230.25,4.0111965085227651E-2,108.5,109.77500000000001,110.35,89.269616666666678,88.491341666666671,1361998.6666666667,1.3791666666666664,46.408333333333331,45.291666666666671,44.208333333333336,40.708333333333336,48.541666666666664,45.083333333333336,37.083333333333336,51.958333333333329,48.291666666666664,50.766666666666666,51.575000000000003,48.125,50714.833333333328,100.0215,100.02349999999998,100.01925,100.02074999999999,100.00525,100.00425,574.654,4.6750000000000007,null,1016352.75,903228,null,null,null,null,null,858.91799166666669,12.300130000000001,17.449894999999998,11523.4925,554,582,143.83500000000001,10.402333333333335,8.9759450321706389,0,{"$f":"AVERAGE(Quarterly!CD211:CD214)","v":278.83333333333331},{"$f":"AVERAGE(Quarterly!CE211:CE214)","v":374.25},{"$f":"AVERAGE(Quarterly!CF211:CF214)","v":9.0166666666666657},{"$f":"AVERAGE(Quarterly!CG211:CG214)","v":3129.1666666666665},{"$f":"AVERAGE(Quarterly!CH211:CH214)","v":4335},{"$f":"AVERAGE(Quarterly!CI211:CI214)","v":8.769989197108174},374.25,12095.633333333333,668.26666666666665,442.41666666666669,10943.716666666665,4508.3583333333336,2593.3340333333335,307373.75,942.32144166666671,66.25833333333334,45.225000000000001,null,null,null,null,null,214.28233333333333,219.23666666666668,null,null,null,null,null,98.899999999999991,33.125,65.400000000000006,16.266666666666666,9.2833333333333332,11847.833333333334,null,null,-1555.5833333333339,131300.16666666669,null,null,-5940.0833333333139,0,15.675000000000001,{"$f":"AVERAGE(Quarterly!DV211:DV214)","v":1268.7416666666668},{"$f":"AVERAGE(Quarterly!DW211:DW214)","v":1268.1750000000002},{"$f":"AVERAGE(Quarterly!DX211:DX214)","v":884.89166666666677},{"$f":"AVERAGE(Quarterly!DY211:DY214)","v":206.23333333333335},{"$f":"AVERAGE(Quarterly!DZ211:DZ214)","v":678.6583333333333},{"$f":"AVERAGE(Quarterly!EA211:EA214)","v":479.95833333333331},{"$f":"AVERAGE(Quarterly!EB211:EB214)","v":198.7},{"$f":"AVERAGE(Quarterly!EC211:EC214)","v":383.28333333333336},null,null,null,null,null,12379.517559639169,20705.667584639166,26323.814901305832,null,null,null,null,null,172.90833333333333,171.47499999999999,156.75,null,null,null,null,null,3.25,0.15999999999999998,5.3133333333333326,7.2958333333333334,198.25000000000009,5.0425000000000004,0.15,0.47083333333333333,0.95666666666666678,2.1908333333333334,3.2566666666666668,2.7858333333333336,null,null,null,null,null,1.1414416666666667,6.8307333333333338,13.503941666666668,1.3932583333333333,105.65730833333335,77.669233333333324,18854.058333333334,24697.825000000001,14721.199999999997,null,null,null,null,null,61.693333333333328,{"$f":"AVERAGE(Quarterly!GE211:GE214)","v":61.489999999999995},{"$f":"AVERAGE(Quarterly!GF211:GF214)","v":2.3951097222222222},{"$f":"AVERAGE(Quarterly!GG211:GG214)","v":2.4636666666666667},{"$f":"AVERAGE(Quarterly!GH211:GH214)","v":237.14583333333331},{"$f":"AVERAGE(Quarterly!GI211:GI214)","v":235.16666666666666},{"$f":"AVERAGE(Quarterly!GJ211:GJ214)","v":4.1628333333333334},3648,"--"]
[2010,14964.382750000001,14783.809249999998,14722.161,10036.333333333332,1085.6583333333333,2223.5333333333333,6727.6416666666673,1673.7964999999999,1307.52,382.42275000000006,58.225250000000003,2235.35,1776.5945000000002,-458.75549999999998,3091.3864999999996,-1328.71225,null,null,null,null,null,70.925000000000011,73.583333333333329,1199.5020083333332,0.22,1470.11825,818.59125000000006,1.3749999999999998,-15.975000000000001,1.8025,0.22,0.79499999999999993,42292.5,4.4326417675018208E-2,111.22499999999999,111.85,112.125,94.223791666666671,94.179591666666667,1380113.0833333335,1.2683333333333333,57.341666666666669,53.375000000000007,38.791666666666664,57.341666666666661,57.833333333333336,55.083333333333329,50.75,59.158333333333331,68.916666666666657,61.024999999999999,58.1,56.5,57207.250000000007,110.66900000000001,91.52525,101.9135,103.27499999999999,100.267,98.681000000000012,818.59125000000006,5.3,null,1070868,954115,null,null,null,null,null,1057.2998583333333,11.370190000000001,16.493012499999999,12838.334999999999,585.5,603.66666666666663,145.64833333333334,11.55475,11.24906672308043,0,{"$f":"AVERAGE(Quarterly!CD215:CD218)","v":211.33333333333334},{"$f":"AVERAGE(Quarterly!CE215:CE218)","v":321.25},{"$f":"AVERAGE(Quarterly!CF215:CF218)","v":7.9885865393382485},{"$f":"AVERAGE(Quarterly!CG215:CG218)","v":3223.3333333333335},{"$f":"AVERAGE(Quarterly!CH215:CH218)","v":4186.666666666667},{"$f":"AVERAGE(Quarterly!CI215:CI218)","v":9.3987318360485368},321.25,12477.108333333334,630.00833333333333,471.41666666666669,11055.183333333334,5096.6750000000002,2536.5737833333333,309755.66666666669,875.72170833333348,71.841666666666669,53.349999999999994,null,null,null,null,null,218.07616666666667,221.33583333333334,null,null,null,null,null,98.991666666666674,33.4,64.708333333333329,16.725000000000001,9.6083333333333343,11528.666666666666,null,null,{"$f":"+DL62-DL61","v":-319.16666666666788},130353.25,null,null,{"$f":"+DP62-DP61","v":-946.91666666668607},0,21.466666666666665,{"$f":"AVERAGE(Quarterly!DV215:DV218)","v":1250.7833333333333},{"$f":"AVERAGE(Quarterly!DW215:DW218)","v":1250.3666666666668},{"$f":"AVERAGE(Quarterly!DX215:DX218)","v":867.60833333333335},{"$f":"AVERAGE(Quarterly!DY215:DY218)","v":203.11666666666667},{"$f":"AVERAGE(Quarterly!DZ215:DZ218)","v":664.49166666666667},{"$f":"AVERAGE(Quarterly!EA215:EA218)","v":462.94166666666666},{"$f":"AVERAGE(Quarterly!EB215:EB218)","v":201.54999999999998},{"$f":"AVERAGE(Quarterly!EC215:EC218)","v":382.75833333333338},null,null,null,null,null,12850.787236880002,21382.976986879996,27112.065378546664,null,null,null,null,null,184.73333333333335,173.58333333333334,157.33333333333334,null,null,null,null,null,3.25,0.17499999999999999,4.9433333333333334,6.0383333333333331,109.49999999999997,4.6916666666666664,0.13666666666666666,0.31833333333333336,0.70250000000000001,1.9275,3.2141666666666668,{"$f":"+FI62-FF62","v":2.8958333333333335},null,null,null,null,null,1.030125,6.7689583333333339,12.627258333333334,1.3275999999999999,101.85204166666666,75.356083333333331,23136.391666666666,30412.716666666667,19165.475000000002,null,null,null,null,null,79.427500000000009,{"$f":"AVERAGE(Quarterly!GE215:GE218)","v":79.511666666666656},{"$f":"AVERAGE(Quarterly!GF215:GF218)","v":2.8390916666666666},{"$f":"AVERAGE(Quarterly!GG215:GG218)","v":2.9893333333333336},{"$f":"AVERAGE(Quarterly!GH215:GH218)","v":283.22916666666663},{"$f":"AVERAGE(Quarterly!GI215:GI218)","v":313.83333333333331},{"$f":"AVERAGE(Quarterly!GJ215:GJ218)","v":4.3980000000000006},3763,3637]
[2011,15517.933499999999,15020.564999999999,14978.983749999999,10265.920833333334,1152.1645833333332,2263.1020833333337,6853.3874999999998,1802.259,1427.5505000000001,384.5215,37.593499999999999,2357.66975,1898.3117500000001,-459.358,2997.3739999999998,-1244.14275,null,null,null,null,null,74.05,76.297916666666666,1245.6945979166667,0.34499999999999997,1427.71225,780.15149999999994,9.4499999999999993,0.54999999999999982,4.0324999999999998,0.34499999999999997,1.72,49643.25,{"$f":"AH63/BN63","v":4.8406547424755489E-2},115.07500000000002,114.30000000000001,113.95,97.178672916666656,97.241254166666664,1518975.4791666665,1.2581249999999999,55.15,50.25,43.958333333333336,57.408333333333331,55.270833333333336,53.625,50.083333333333329,56.383333333333333,65.208333333333343,57.408333333333339,54.74166666666666,57.19166666666667,64096.125,116.965,88.196000000000012,104.16775,103.41974999999999,99.372750000000011,100.726,780.15149999999994,4.4974999999999996,null,1149381.75,1025548.25,null,null,null,null,null,1079.0971541666665,10.679765,15.834605,13848.897500000001,614.95833333333337,624.58333333333337,140.01395833333333,12.756895833333333,12.082666095780921,0,{"$f":"AVERAGE(Quarterly!CD219:CD222)","v":167.33333333333331},{"$f":"AVERAGE(Quarterly!CE219:CE222)","v":306.41666666666663},{"$f":"AVERAGE(Quarterly!CF219:CF222)","v":6.5882530157165604},{"$f":"AVERAGE(Quarterly!CG219:CG222)","v":2932.5},{"$f":"AVERAGE(Quarterly!CH219:CH222)","v":4282.5000000000009},{"$f":"AVERAGE(Quarterly!CI219:CI222)","v":8.2371586989103118},306.89583333333331,13263.4125,712.77708333333328,435,11336.089583333332,5724.447916666667,2704.2846791666666,312043.89583333337,836.81124791666673,66.839583333333323,57.610416666666666,null,null,null,null,null,224.97466666666665,225.07006249999998,null,null,null,null,null,101.46041666666667,33.597916666666663,64.10208333333334,15.910416666666666,8.9291666666666671,11729.041666666666,null,null,200.375,131956.29166666666,null,null,1603.041666666657,null,21.464583333333337,{"$f":"AVERAGE(Quarterly!DV219:DV222)","v":1301.1416666666667},{"$f":"AVERAGE(Quarterly!DW219:DW222)","v":1300.5416666666667},{"$f":"AVERAGE(Quarterly!DX219:DX222)","v":901.2833333333333},{"$f":"AVERAGE(Quarterly!DY219:DY222)","v":214.48333333333332},{"$f":"AVERAGE(Quarterly!DZ219:DZ222)","v":686.80000000000007},{"$f":"AVERAGE(Quarterly!EA219:EA222)","v":478.45},{"$f":"AVERAGE(Quarterly!EB219:EB222)","v":208.35},{"$f":"AVERAGE(Quarterly!EC219:EC222)","v":399.25833333333333},null,null,null,null,null,13211.612249319998,21720.106786819997,27492.07216182,null,null,null,null,null,201.10625000000002,177.86458333333331,159.78125,null,null,null,null,null,3.25,0.10020833333333334,4.6325000000000003,5.6585416666666672,102.6041666666667,4.4504166666666665,5.2083333333333336E-2,0.18062500000000001,0.44187499999999996,1.5022916666666666,2.7727083333333331,2.5920833333333331,null,null,null,null,null,0.98826041666666664,6.4606729166666668,12.433447916666667,1.3912645833333332,97.135872916666656,70.882443750000007,26205.816666666669,33462.462499999994,21827.583333333336,null,null,null,null,null,94.741458333333327,{"$f":"AVERAGE(Quarterly!GE219:GE222)","v":111.26416666666665},{"$f":"AVERAGE(Quarterly!GF219:GF222)","v":3.5759500000000002},{"$f":"AVERAGE(Quarterly!GG219:GG222)","v":3.845333333333333},{"$f":"AVERAGE(Quarterly!GH219:GH222)","v":534.29166666666674},{"$f":"AVERAGE(Quarterly!GI219:GI222)","v":563.58333333333326},{"$f":"AVERAGE(Quarterly!GJ219:GJ222)","v":4.0285000000000002},3827,3828]
[2012,16155.255000000001,15354.6265,15292.304249999999,10413.266666666666,1236.2,2277.5333333333338,6908.1166666666668,1964.1465000000001,1541.0532499999999,436.47025000000002,54.672499999999999,2410.2407499999999,1963.18325,-447.05749999999995,2941.5542500000001,-1090.0572500000001,null,null,null,null,null,75.325000000000003,77.174999999999997,1401.4590666666668,0.6725000000000001,1683.1905000000002,974.73950000000002,12.6,10.35,5.4624999999999995,0.6725000000000001,2.8150000000000004,57389.75,5.3427611740906142E-2,117.67500000000001,116.5,116.02499999999999,100,99.999983333333333,1613766.6666666667,1.2741666666666667,51.68333333333333,46.541666666666664,46.833333333333336,53.75833333333334,51.416666666666671,51.375,48.166666666666664,52.891666666666666,53.166666666666671,53.63333333333334,49.94166666666667,57.616666666666667,66847.583333333343,118.97325000000001,88.176999999999992,106.90300000000001,104.34275000000001,99.900249999999986,102.456,974.73950000000002,4.3424999999999994,null,1204990.5,1074159,null,null,null,null,null,1097.8470750000001,10.1466125,15.2895425,14253.532499999999,783.75,828.75,141.29250000000002,14.434666666666667,10.151596904816103,0,{"$f":"AVERAGE(Quarterly!CD223:CD226)","v":145.83333333333334},{"$f":"AVERAGE(Quarterly!CE223:CE226)","v":368.08333333333331},{"$f":"AVERAGE(Quarterly!CF223:CF226)","v":4.7641572030092121},{"$f":"AVERAGE(Quarterly!CG223:CG226)","v":2274.1666666666665},{"$f":"AVERAGE(Quarterly!CH223:CH226)","v":4660.8333333333339},{"$f":"AVERAGE(Quarterly!CI223:CI226)","v":5.8783141042816878},368.08333333333331,13915.116666666667,946.69999999999993,537,11687.824999999999,6366.1083333333327,2841.9519083333334,314283.75,844.03895833333331,76.541666666666657,67.38333333333334,null,null,null,null,null,229.58608333333333,229.75683333333336,null,null,null,null,null,104.1,33.674999999999997,63.7,14.683333333333332,8.0749999999999993,11927,null,null,197.95833333333394,134170.66666666666,null,null,2214.375,null,19.166666666666668,{"$f":"AVERAGE(Quarterly!DV223:DV226)","v":1349.1416666666667},{"$f":"AVERAGE(Quarterly!DW223:DW226)","v":1349.3583333333333},{"$f":"AVERAGE(Quarterly!DX223:DX226)","v":926.48333333333335},{"$f":"AVERAGE(Quarterly!DY223:DY226)","v":219.92499999999998},{"$f":"AVERAGE(Quarterly!DZ223:DZ226)","v":706.55833333333328},{"$f":"AVERAGE(Quarterly!EA223:EA226)","v":490.94166666666666},{"$f":"AVERAGE(Quarterly!EB223:EB226)","v":215.61666666666667},{"$f":"AVERAGE(Quarterly!EC223:EC226)","v":422.87499999999994},null,null,null,null,null,13845.869464166666,22230.268751666667,27850.411193333333,null,null,null,null,null,202.15833333333333,182.3833333333333,162.77500000000001,null,null,null,null,null,3.25,0.14000000000000001,3.6733333333333338,4.9350000000000005,126.16666666666667,3.6566666666666667,8.5833333333333331E-2,0.17500000000000002,0.27666666666666667,0.76083333333333325,1.8025,1.6274999999999999,null,null,null,null,null,0.99940833333333323,6.3084583333333333,13.150566666666666,1.2863500000000001,99.862041666666656,73.580674999999999,27021.933333333334,35468.258333333331,23132.799999999999,null,null,null,null,null,94.200833333333335,{"$f":"AVERAGE(Quarterly!GE223:GE226)","v":111.65166666666666},{"$f":"AVERAGE(Quarterly!GF223:GF226)","v":3.6854638888888887},{"$f":"AVERAGE(Quarterly!GG223:GG226)","v":3.9704166666666669},{"$f":"AVERAGE(Quarterly!GH223:GH226)","v":708.97916666666663},{"$f":"AVERAGE(Quarterly!GI223:GI226)","v":716.25},{"$f":"AVERAGE(Quarterly!GJ223:GJ226)","v":2.8243333333333331},3677,4003]
[2013,16691.516750000003,15612.17525,15521.072750000001,10565.391666666666,1312.7249999999999,2316.1416666666669,6951.3416666666672,2032.8947499999999,1604.0814999999998,488.32175000000001,78.70675,2436.4347499999999,2031.5282499999998,-404.90649999999999,2857.5527499999998,-643.83699999999999,null,null,null,null,null,75.2,77.325000000000003,1525.2766000000001,1.7450000000000001,1688.3927500000002,1031.2402500000001,13.049999999999999,11.850000000000001,4.67,1.7450000000000001,2.2974999999999999,64989.25,{"$f":"AH65/BN65","v":5.8306285582530162E-2},119.97500000000001,118.75,118.22499999999999,101.97528333333332,101.10594999999999,1677959.5833333335,1.2875000000000001,53.750000000000007,49.916666666666664,45.875,53.199999999999996,54.333333333333329,54.958333333333329,49.375,57.174999999999997,53.791666666666664,57.850000000000009,51.88333333333334,56.641666666666666,67061.25,119.14874999999999,88.183499999999995,108.15600000000001,104.65474999999999,99.616499999999988,103.346,1031.2402500000001,null,null,1250552.75,1114618.25,null,null,null,null,null,1122.0091666666667,10.203495,15.490285,13861.07,928.25,987.25,158.21666666666667,15.529583333333333,8.8326685153843592,0,{"$f":"AVERAGE(Quarterly!CD227:CD230)","v":168.33333333333331},{"$f":"AVERAGE(Quarterly!CE227:CE230)","v":430},{"$f":"AVERAGE(Quarterly!CF227:CF230)","v":4.7253323736892927},{"$f":"AVERAGE(Quarterly!CG227:CG230)","v":2058.333333333333},{"$f":"AVERAGE(Quarterly!CH227:CH230)","v":5073.333333333333},{"$f":"AVERAGE(Quarterly!CI227:CI230)","v":4.8645485035148592},430,14073.675000000001,620.10833333333335,620.25,11527.641666666666,6910.6583333333328,3015.2022666666662,316476.16666666669,852.75636666666662,79.208333333333329,73.216666666666669,null,null,null,null,null,232.94891666666666,233.80858333333333,null,null,null,null,null,106.10833333333333,33.666666666666664,63.258333333333333,13.799999999999999,7.3666666666666671,12019.5,null,null,92.5,136379.41666666666,null,null,2208.75,null,16.833333333333336,{"$f":"AVERAGE(Quarterly!DV227:DV230)","v":1393.2750000000003},{"$f":"AVERAGE(Quarterly!DW227:DW230)","v":1391.8628205128207},{"$f":"AVERAGE(Quarterly!DX227:DX230)","v":951.66346153846155},{"$f":"AVERAGE(Quarterly!DY227:DY230)","v":228.02179487179484},{"$f":"AVERAGE(Quarterly!DZ227:DZ230)","v":723.63974358974349},{"$f":"AVERAGE(Quarterly!EA227:EA230)","v":498.79679487179493},{"$f":"AVERAGE(Quarterly!EB227:EB230)","v":224.84025641025639},{"$f":"AVERAGE(Quarterly!EC227:EC230)","v":440.20256410256411},null,null,null,null,null,14426.708658919168,23090.099883919163,28599.766650585836,null,null,null,null,null,203.40833333333333,185.10000000000002,164.20833333333334,null,null,null,null,null,3.25,0.1075,4.2350000000000003,5.1016666666666666,{"$f":"+(FB65-FA65)*100","v":86.666666666666629},3.9833333333333334,5.8333333333333334E-2,0.13166666666666668,0.3075,1.1725000000000001,2.3508333333333336,2.2191666666666667,null,null,null,null,null,1.0299916666666666,6.1480333333333332,12.765025,1.3285,101.00278333333334,75.91214166666667,27708.625,36702.508333333339,23379.666666666668,null,null,null,null,null,97.94083333333333,{"$f":"AVERAGE(Quarterly!GE227:GE230)","v":108.65370833333333},{"$f":"AVERAGE(Quarterly!GF227:GF230)","v":3.5699736111111116},{"$f":"AVERAGE(Quarterly!GG227:GG230)","v":3.9236166666666668},{"$f":"AVERAGE(Quarterly!GH227:GH230)","v":815.83333333333337},{"$f":"AVERAGE(Quarterly!GI227:GI230)","v":846.66666666666674},{"$f":"AVERAGE(Quarterly!GJ227:GJ230)","v":3.7258333333333336},{"$f":"AVERAGE(Quarterly!GK227:GK230)","v":3799.4291666666668},{"$f":"AVERAGE(Quarterly!GL227:GL230)","v":4308.5874999999996}]
[2014,17427.608749999999,16013.282500000001,15932.90525,10868.383333333333,1403.0916666666667,2372.9666666666667,7115.55,2172.6790000000001,1698.67975,505.21199999999999,67.776499999999999,2546.0535,2118.3675000000003,-427.68599999999992,2839.1035000000002,-610.16250000000002,null,null,null,null,null,75.825000000000003,78.625,1684.9835833333332,2.0375000000000001,1743.7597499999999,1075.8722499999999,8.9,13.275,4.1074999999999999,2.0375000000000001,1.4124999999999999,74402.5,{"$f":"AH66/BN66","v":6.421254674455916E-2},122.72499999999999,121.2,120.60000000000001,105.12943333333334,102.37024166666667,1751044.5,1.3075000000000001,55.641666666666666,51.916666666666664,45.583333333333329,54.44166666666667,54.291666666666671,54.791666666666664,50.791666666666664,59.283333333333339,55.625,59.4,54.966666666666661,59.658333333333339,67274.583333333328,119.27549999999999,90.561750000000004,111.253,105.68174999999999,100.8395,105.27375000000001,1075.8722499999999,null,null,1302873.5,1158691,null,null,null,null,null,1160.6167916666668,9.9809625000000004,15.267977500000001,13658.262499999999,1001.0833333333333,1053.25,170.73833333333334,16.452249999999999,7.7797751792971619,0,{"$f":"AVERAGE(Quarterly!CD231:CD234)","v":199.91666666666669},{"$f":"AVERAGE(Quarterly!CE231:CE234)","v":439.83333333333337},{"$f":"AVERAGE(Quarterly!CF231:CF234)","v":5.4679176610392703},{"$f":"AVERAGE(Quarterly!CG231:CG234)","v":2137.5},{"$f":"AVERAGE(Quarterly!CH231:CH234)","v":4920},{"$f":"AVERAGE(Quarterly!CI231:CI234)","v":5.2108035019700267},439.83333333333337,14818.250000000002,738.80833333333339,646.58333333333337,11939.208333333334,7377.3666666666659,3216.8575583333336,318789.33333333337,877.29274999999996,84.125,86.9,null,null,null,null,null,236.70391666666666,237.89733333333334,null,null,null,null,null,108.50833333333334,33.683333333333337,62.866666666666667,12.033333333333333,6.166666666666667,12185.083333333332,null,null,165.58333333333212,138937.33333333334,null,null,2557.9166666666861,null,14.174999999999999,{"$f":"AVERAGE(Quarterly!DV231:DV234)","v":1443.1081439393938},{"$f":"AVERAGE(Quarterly!DW231:DW234)","v":1446.2588510101009},{"$f":"AVERAGE(Quarterly!DX231:DX234)","v":990.85176767676762},{"$f":"AVERAGE(Quarterly!DY231:DY234)","v":239.47183080808085},{"$f":"AVERAGE(Quarterly!DZ231:DZ234)","v":751.37558080808083},{"$f":"AVERAGE(Quarterly!EA231:EA234)","v":506.4192424242425},{"$f":"AVERAGE(Quarterly!EB231:EB234)","v":244.94673989898985},{"$f":"AVERAGE(Quarterly!EC231:EC234)","v":455.4160101010101},null,null,null,null,null,14903.026901498333,23569.627826498334,29117.576526498335,null,null,null,null,null,205.31666666666666,188.64166666666665,166.44166666666666,null,null,null,null,null,3.25,8.9166666666666672E-2,4.1624999999999996,4.8541666666666679,{"$f":"+(FB66-FA66)*100","v":69.166666666666828},4.1724999999999994,3.2500000000000001E-2,0.12083333333333333,0.46250000000000002,1.6408333333333334,2.5408333333333331,2.42,null,null,null,null,null,1.1046833333333335,6.160658333333334,13.307300000000001,1.3289249999999999,104.14035,78.395074999999991,29107.174999999999,39039.574999999997,24644.158333333333,null,null,null,null,null,93.258333333333326,{"$f":"AVERAGE(Quarterly!GE231:GE234)","v":99.023333333333341},{"$f":"AVERAGE(Quarterly!GF231:GF234)","v":3.4420250000000001},{"$f":"AVERAGE(Quarterly!GG231:GG234)","v":3.8286291666666665},{"$f":"AVERAGE(Quarterly!GH231:GH234)","v":904.0625},{"$f":"AVERAGE(Quarterly!GI231:GI234)","v":886.33333333333337},{"$f":"AVERAGE(Quarterly!GJ231:GJ234)","v":4.2758333333333329},{"$f":"AVERAGE(Quarterly!GK231:GK234)","v":3846.708333333333},{"$f":"AVERAGE(Quarterly!GL231:GL234)","v":4474.770833333333}]
[2015,18120.713499999998,16471.516250000001,16354.30075,11264.275000000001,1511.825,2446.7833333333333,7340.1250000000009,2223.5329999999999,1758.1,556.93200000000002,100.54875000000001,2672.3502499999995,2127.0524999999998,-545.29774999999984,2878.5250000000001,-586.65174999999999,null,null,null,null,null,75.924999999999997,76.833333333333329,1879.7535083333335,1.175,1651.13175,994.63099999999997,0.89999999999999991,5,3.29,1.175,0.97499999999999998,84812.75,7.1814960329892721E-2,124.7,123.75,123.325,104.38396666666667,102.59565833333333,1793471.0000000002,1.3841666666666665,51.333333333333336,46.166666666666664,48.083333333333336,51.024999999999999,48.625,51.666666666666664,49.041666666666671,52.616666666666667,39.791666666666671,53.49166666666666,50.658333333333339,60.8,64355.583333333336,118.514,93.396749999999997,114.7105,106.99674999999999,103.84275000000001,107.21025000000002,994.63099999999997,null,null,1336834.5,1180990,null,null,null,null,null,1219.0548999999999,9.8899325000000005,15.280102500000002,13462.119999999999,1107.0833333333333,1178.3333333333333,179.32333333333335,17.396250000000002,5.3777901561047514,0,{"$f":"AVERAGE(Quarterly!CD235:CD238)","v":216},{"$f":"AVERAGE(Quarterly!CE235:CE238)","v":502.58333333333337},{"$f":"AVERAGE(Quarterly!CF235:CF238)","v":5.1706492575712346},{"$f":"AVERAGE(Quarterly!CG235:CG238)","v":2095.833333333333},{"$f":"AVERAGE(Quarterly!CH235:CH238)","v":5233.333333333333},{"$f":"AVERAGE(Quarterly!CI235:CI238)","v":4.8068863162867324},502.58333333333337,15552.974999999999,828.38333333333333,712.24999999999989,12435.966666666667,7918.8583333333336,3431.5465333333332,321080,911.67272500000013,92.941666666666677,97.966666666666669,null,null,null,null,null,236.98724999999999,242.24850000000001,null,null,null,null,null,110.84166666666667,33.69166666666667,62.658333333333331,10.441666666666666,5.2583333333333337,12335.25,null,null,150.16666666666788,141813.08333333334,null,null,2875.75,null,11.683333333333332,{"$f":"AVERAGE(Quarterly!DV235:DV238)","v":1452.675},{"$f":"AVERAGE(Quarterly!DW235:DW238)","v":1452.1583333333333},{"$f":"AVERAGE(Quarterly!DX235:DX238)","v":995.17499999999995},{"$f":"AVERAGE(Quarterly!DY235:DY238)","v":241.11666666666667},{"$f":"AVERAGE(Quarterly!DZ235:DZ238)","v":754.05833333333328},{"$f":"AVERAGE(Quarterly!EA235:EA238)","v":504.69166666666666},{"$f":"AVERAGE(Quarterly!EB235:EB238)","v":249.33166666666665},{"$f":"AVERAGE(Quarterly!EC235:EC238)","v":456.99999999999994},null,null,null,null,null,15472.777197374249,24302.367397374252,29948.235797374251,null,null,null,null,null,190.44166666666669,192.35833333333335,168.50833333333333,null,null,null,null,null,3.2600000000000002,0.13250000000000001,3.8866666666666672,4.9991666666666665,{"$f":"+(FB67-FA67)*100","v":111.24999999999994},3.8525,5.2500000000000005E-2,0.32166666666666666,0.68583333333333341,1.5291666666666668,2.1358333333333333,1.8141666666666665,null,null,null,null,null,1.2788083333333333,6.2830166666666667,15.866575000000001,1.1100416666666668,117.20919166666667,90.954574999999991,24685.866666666669,40265.716666666667,24700.100000000002,null,null,null,null,null,48.688416666666662,{"$f":"AVERAGE(Quarterly!GE235:GE238)","v":52.353333333333332},{"$f":"AVERAGE(Quarterly!GF235:GF238)","v":2.5130000000000003},{"$f":"AVERAGE(Quarterly!GG235:GG238)","v":2.7065833333333336},{"$f":"AVERAGE(Quarterly!GH235:GH238)","v":958.5},{"$f":"AVERAGE(Quarterly!GI235:GI238)","v":986.66666666666674},{"$f":"AVERAGE(Quarterly!GJ235:GJ238)","v":2.6295000000000002},{"$f":"AVERAGE(Quarterly!GK235:GK238)","v":3875.7458333333334},{"$f":"AVERAGE(Quarterly!GL235:GL238)","v":4572.2875000000004}]
[2016,18624.47525,16716.164250000002,16664.084999999999,11572.141666666666,1595.0833333333335,2514.3166666666666,7507.3,2210.4192499999999,1764.0417500000001,587.44474999999989,33.364750000000001,2706.3089999999997,2120.0589999999997,-586.25,2900.1597499999998,-697.27774999999997,null,null,null,null,null,75.525000000000006,75.741666666666674,2054.0644499999999,0.60749999999999993,1687.9002500000001,988.22550000000001,-29.725000000000001,-3.55,2.3875000000000002,0.60749999999999993,0.60499999999999998,97418,{"$f":"AH68/BN68","v":8.0331591075605349E-2},126.7,126.375,126.22499999999999,103.10577499999999,102.81014166666667,1818843.3333333333,1.4024999999999999,51.491666666666667,48.25,49.624999999999993,49.724999999999994,51.791666666666671,50.208333333333336,47.166666666666671,54.691666666666663,53.499999999999993,53.966666666666669,51.866666666666667,58.05,61410.5,118.7415,93.912999999999997,115.9875,106.995,103.67525000000001,108.4055,988.22550000000001,null,null,1377202.75,1212698.5,null,null,null,null,null,1313.9254833333334,9.8690274999999996,15.375154999999999,13422.385,1177.25,1207.3333333333335,188.70083333333332,17.464916666666667,6.1245687829564659,0,{"$f":"AVERAGE(Quarterly!CD239:CD242)","v":243.08333333333331},{"$f":"AVERAGE(Quarterly!CE239:CE242)","v":560.91666666666663},{"$f":"AVERAGE(Quarterly!CF239:CF242)","v":5.212562324561242},{"$f":"AVERAGE(Quarterly!CG239:CG242)","v":1973.3333333333335},{"$f":"AVERAGE(Quarterly!CH239:CH242)","v":5440},{"$f":"AVERAGE(Quarterly!CI239:CI242)","v":4.3551679473139027},560.91666666666663,15928.733333333332,680.55,784.41666666666663,12608.775,8518.2833333333328,3540.7105333333334,323298.41666666663,940.38011666666671,91.841666666666654,99.824999999999989,null,null,null,null,null,240.00925000000001,247.60508333333334,null,null,null,null,null,112.59166666666667,33.616666666666667,62.775000000000006,9.6333333333333329,4.8499999999999996,12348.25,null,null,{"$f":"+DL68-DL67","v":13},144305.5,null,null,2492.416666666657,null,10.775,{"$f":"AVERAGE(Quarterly!DV236:DV239)","v":1454.4749999999999},{"$f":"AVERAGE(Quarterly!DW236:DW239)","v":1454.1333333333334},{"$f":"AVERAGE(Quarterly!DX236:DX239)","v":998.91666666666663},{"$f":"AVERAGE(Quarterly!DY236:DY239)","v":243.08333333333337},{"$f":"AVERAGE(Quarterly!DZ236:DZ239)","v":755.83333333333337},{"$f":"AVERAGE(Quarterly!EA236:EA239)","v":505.97500000000002},{"$f":"AVERAGE(Quarterly!EB236:EB239)","v":249.82333333333332},{"$f":"AVERAGE(Quarterly!EC236:EC239)","v":455.23333333333335},null,null,null,null,null,15722.658741819916,24950.223644241116,30682.313394241115,null,null,null,null,null,185.375,{"$error":"#DIV/0!"},{"$error":"#DIV/0!"},null,null,null,null,null,3.5116666666666667,0.39500000000000002,3.6658333333333331,4.7175000000000002,{"$f":"+(FB68-FA68)*100","v":105.16666666666671},3.6483333333333339,0.3175,0.61416666666666664,0.83583333333333321,1.3383333333333334,1.8416666666666668,{"$f":"+FI68-FF68","v":1.2275},null,null,null,null,null,1.3255833333333331,6.6416749999999993,18.677491666666668,1.1066833333333332,122.69611666666668,91.64558333333332,23146.308333333334,38551.51666666667,24504.666666666668,null,null,null,null,null,43.144166666666663,{"$f":"AVERAGE(Quarterly!GE239:GE242)","v":43.546666666666667},{"$f":"AVERAGE(Quarterly!GF239:GF242)","v":2.2524999999999999},{"$f":"AVERAGE(Quarterly!GG239:GG242)","v":2.3061666666666665},{"$f":"AVERAGE(Quarterly!GH239:GH242)","v":1021.1666666666667},{"$f":"AVERAGE(Quarterly!GI239:GI242)","v":1006.9166666666667},{"$f":"AVERAGE(Quarterly!GJ239:GJ242)","v":2.5499999999999998},{"$f":"AVERAGE(Quarterly!GK239:GK242)","v":3777.6541666666667},{"$f":"AVERAGE(Quarterly!GL239:GL242)","v":4476.7749999999996}]
[2017]

{"sheet":"Mo. MM","index":4,"n_rows":718,"n_cols":194,"rows_kept":281,"cut":true,"hidden":false,"merged":[],"bounds":{"rows_first":125,"rows_last":31,"rows_between":125,"halvings":4}}
[]
[]
[]
[]
[]
[]
["Title:","Nominal Gross Domestic Product","Real Gross Domestic Product","Real Final Sales of Domestic Product","Real Personal Consumption Expenditures","Real PCE: Durable Goods","Real PCE: Nondurable Goods","Real PCE: Services","Real Private Nonres. Fixed Investment","Real Nonres. Invest.: Equip. & Software","Real Private Residential Fixed Investment","Real Change in Private Inventories","Real Imports of Goods & Services","Real Exports of Goods & Services","Net Exports of Goods & Services","Real Gov't Cons. & Invest.","Federal Government Surplus or Deficit [-], NIPA",null,null,null,null,null,"Capacity Utilization: Mfg (NAICS) - Percent of Capacity, SA","Capacity Utilization: Total Industry","Commercial and Industrial Loans, Commercial Banks, SA","Commercial Net Loan Charge-offs - Ratio","Corporate Profits After Tax , SAAR","Corporate Profits Less Financial After Tax - Billions of Dollars, SAAR","Bank Willingness to Make Consumer Loans","Demand for Commercial & Industrial Loans by Small Firms ","Nonperforming Loans - Total","Commercial Net Loan Charge-offs","Total Loan Charge-offs ","E-Commerce Sales ","E-Commerce Sales as % of Total Retail Sales","ECI: \nBenefits: Private Industry Workers  2005=100","ECI: Compensation: Private Industry Workers 2005=100","ECI: Wages & Salaries: Private Industry Workers - Index 2005=100","Industrial Production Index","Industrial Production Index - Mfg.","Inventories: Total Business","Inventory to Sales Ratio: Total Business","ISM INDEX: PMI Manufacturing Composite Index","ISM INDEX Backlogs","ISM INDEX Customer Inventories","ISM INDEX Employment ","ISM INDEX Exports","ISM INDEX Imports","ISM INDEX Inventories","ISM INDEX New Orders","ISM INDEX Prices","ISM INDEX Production","ISM INDEX Supplier deliveries","ISM NonMfg.: Business Activity Index","Mfgs' New Orders: Nondefense Excluding Aircraft","Manufacturing: Output Per Hour of All Persons ","Manufacturing: Unit Labor Cost","Nonfarm: Compensation Per Hour ","Nonfarm: Output Per Hour of All Persons ","Nonfarm: Real Compensation Per Hour ","Nonfarm: Unit Labor Cost","Nonfinancial Corporate Business: Profits After Tax","Nonperforming Total Loans ","PMI Manufacturing Composit Index","Retail and Food Services Sales","Retail Sales: Total (Excluding Food Services)",null,null,null,null,null,"Consumer Loans at All Commercial Banks","Debt Service Payments as a % DPI","Household Financial Obligations as a percent of DPI","Household Credit Market Debt Outstanding - SA","Housing Starts Total: New Privately Owned ","New Private Housing Units Authorized by Building Permits","S&P Case-Shiller 20-City Home Price Index","Autos & Light Trucks","Misery Index","Misery Index - Adjusted ","New Home Inventories","New Homes Sold","New Home IN/RS","Used Home Inventories","Used Homes Sold","Used Home IN/RS","New Homes Sales - Single Family","Personal Income","Personal Saving","Privately Owned Housing Starts: 1-Unit Structures","Real Disposable Personal Income","Savings Deposits - Total","Total Consumer Credit Outstanding","Total Population: Incl'd Armed Forces Overseas - Thousands","Total Revolving Credit Outstanding","University of Michigan: Consumer Sentiment","Conference Board Consumer Confidence",null,null,null,null,null,"CPI Index - All Urban: All Items","CPI Index All Urban: Less Food & Energy",null,null,null,null,null,"Aggregate Weekly Hours Index: Total Private Industries","Average Weekly Hours: Production & Nonsuper.","Civilian Participation Rate","Total Unemployment Rate Plus (U6 Rate)","Civilian Unemployment Rate","Nonfarm Payrolls: Mfg.","Nonfarm Payrolls: Mfg. - Monthly Change","Nonfarm Payrolls: Mfg - Quarterly Change","Nonfarm Payrolls: Mfg - Annual Change","Nonfarm Payrolls: All Employees","Nonfarm Payrolls: All Employees - Monthly Change","Nonfarm Payrolls: All Employees - Quarterly Change","Nonfarm Payrolls: All Employees - Annual Change","Initial Unemployment Claims (Monthly Average)","Median Duration of Unemployment","Trucking Employment - Truck Transportation - SA","Trucking Employment - Truck Transportation - NSA","Trucking Employment - General Freight  - NSA","Trucking Employment - General Freight, local - NSA","Trucking Employment - General Freight, long - NSA","Trucking Employment - General Freight, long TL - NSA","Trucking Employment - General Freight, long LTL - NSA","Trucking Employment - Specialized Freight - NSA",null,null,null,null,null,"Freight Composite Index Class 8","Freight Composite Index Dry Van","Freight Composite Index Reefer Van",null,null,null,null,null,"Producer Price Index: All Commodities","PPI: Finished Goods Less Food & Energy","PPI Finished Goods: Capital Equipment",null,null,null,null,null,"Bank Prime Loan Rate","Effective Federal Funds Rate","Moody's Seasoned Aaa Corporate Bond Yield","Moody's Seasoned Baa Corporate Bond Yield","Yield Spread: Moody's Seasoned Corporate Bond Yield","Mortgage Rate, 30-Year Conventional ","Treasury Bill: Secondary Market Rate, 3-Month ","Treasury Constant Maturity Rate, 1-Year ","Treasury Constant Maturity Rate, 2-Year ","Treasury Constant Maturity Rate, 5-Year ","Treasury Constant Maturity Rate, 10-Year ","Treasury Yield, 10-Year Minus 1-Year",null,null,null,null,null,"Canada / U.S. Foreign Exchange Rate","China/U.S. Foreign Exchange Rate","Mexico/U.S. Foreign Exchange Rate","U.S. / Euro Foreign Exchange Rate","Trade Weighted Exchange Index: Broad","Trade Weighted Exchange Index: Major Currencies","U.S. Imports from Canada, Customs Basis","U.S. Imports from China, Mainland, Customs Basis","U.S. Imports from Mexico, Customs Basis",null,null,null,null,null,"Spot Oil Price: West Texas Intermediate","Europe Brent Spot Price FOB ","EIA  Retail Gasoline Prices : All Grades","EIA Retail On-Highway Diesel Fuel Prices","U.S. Exports of Distillate Fuel Oil ","U.S. Exports of Distillate Fuel Oil, 0 to 15 ppm Sulfur ","Natural Gas Futures Contract 1 ","U.S. Product Supplied of Distillate Fuel Oil","U.S. Refiner Net Production of Distillate Fuel Oil, 0 to 15 ppm Sulfur"]
["ID","GDP001Q","GDP004Q","GDP007Q","GDP010Q","GDP014Q","GDP018Q","GDP022Q","GDP026Q","GDP029Q","GDP032Q","GDP035Q","GDP036Q","GDP039Q","GDP042Q","GDP043Q","GDP046Q",null,null,null,null,null,"BUS001M","BUS002M","BUS003M","BUS004M","BUS005M","BUS006M","BUS007M","BUS008M","BUS009M","BUS010M","BUS011M","BUS012M","BUS013Q","BUS014M","BUS015M","BUS016M","BUS019M","BUS020M","BUS021M","BUS022M","BUS023M","BUS024M","BUS025M","BUS026M","BUS027M","BUS028M","BUS029M","BUS030M","BUS031M","BUS032M","BUS033M","BUS034M","BUS035M","BUS036M","BUS037M","BUS038M","BUS039M","BUS040M","BUS041M","BUS042M","BUS043M","BUS044M","BUS045M","BUS046M",null,null,null,null,null,"CON001M","CON002M","CON003M","CON004M","CON005M","CON006M","CON007M","CON008M","CON009M","CON010M","CON011M","CON012M","CON035M","CON033M","CON034M","COM036M","CON013M","CON014M","CON018M","CON022M","CON023M","CON027M","CON028M","CON029M","CON030M","CON031M","CON032M",null,null,null,null,null,"CPI001M","CPI005M",null,null,null,null,null,"EMP001M","EMP002M","EMP003M","EMP004M","EMP005M","EMP006M","EMP007M","EMP009M","EMP011M","EMP013M","EMP014M","EMP016M","EMP018M","EMP020M","EMP021M","EMP022M","EMP023M","EMP024M","EMP025M","EMP026M","EMP027M","EMP028M","EMP029M",null,null,null,null,null,"FRE001M","FRE004M","FRE007M",null,null,null,null,null,"PPI001M","PPI004M","PPI007M",null,null,null,null,null,"RAT001M","RAT002M","RAT003M","RAT004M",null,"RAT005M","RAT006M","RAT007M","RAT008M","RAT009M","RAT010M","RAT011M",null,null,null,null,null,"TRA001M","TRA002M","TRA003M","TRA004M","TRA005M","TRA006M","TRA007M","TRA008M","TRA009M",null,null,null,null,null,"ENE001M","ENE002M","ENE003M","ENE004M","ENE005M","ENE006M","ENE007M","ENE008M","ENE009M"]
["Frequency:","Quarterly","Quarterly","Quarterly","Monthly","Monthly","Monthly","Monthly","Quarterly","Quarterly","Quarterly","Quarterly","Quarterly","Quarterly","Quarterly","Quarterly","Quarterly",null,null,null,null,null,"Quarterly","Monthly","Monthly","Quarterly, End of Period","Quarterly","Quarterly","Quarterly, End of Period","Quarterly, End of Period","Quarterly, End of Period","Quarterly, End of Period","Quarterly, End of Period","Quarterly","Quarterly","Quarterly","Quarterly","Quarterly","Monthly","Monthly","Monthly, End of Period","Monthly","Monthly","Monthly","Monthly","Monthly","Monthly","Monthly","Monthly","Monthly","Monthly","Monthly","Monthly","Monthly","Monthly","Quarterly","Quarterly","Quarterly","Quarterly","Quarterly","Quarterly","Quarterly","Quarterly","Monthly","Monthly","Monthly",null,null,null,null,null,"Monthly","Quarterly","Quarterly","Quarterly, End of Period","Monthly","Monthly","Monthly","Monthly","Monthly ","Monthly ","Monthly","Monthly","Monthly","Monthly","Monthly ","Monthly","Monthly","Monthly","Monthly","Monthly","Monthly","Monthly","Monthly, End of Period","Monthly","Monthly, End of Period","Monthly","Monthly",null,null,null,null,null,"Monthly","Monthly",null,null,null,null,null,"Monthly","Monthly","Monthly","Monthly","Monthly","Monthly",null,null,null,"Monthly",null,null,null,"Weekly, End of Period","Monthly","Monthly","Monthly","Monthly","Monthly","Monthly","Monthly","Monthly","Monthly",null,null,null,null,null,"Quarterly","Quarterly","Quarterly",null,null,null,null,null,"Monthly","Monthly","Monthly",null,null,null,null,null,"Monthly","Monthly","Monthly","Monthly",null,"Monthly","Monthly","Monthly","Monthly","Monthly","Monthly",null,null,null,null,null,null,"Monthly","Monthly","Monthly","Monthly","Monthly","Monthly","Monthly","Monthly","Monthly",null,null,null,null,null,"Monthly","Monthly","Monthly","Monthly","Monthly","Monthly","Monthly","Monthly","Monthly"]
["Units:","XXXXXXXX","XXXXXXXX","XXXXXXXX","M/M % Chg.","M/M % Chg.","M/M % Chg.","M/M % Chg.","XXXXXXXX","XXXXXXXX","XXXXXXXX","XXXXXXXX","XXXXXXXX","XXXXXXXX","XXXXXXXX","XXXXXXXX","XXXXXXXX",null,null,null,null,null,"XXXXXXXX","M/M Chg. PP","M/M % Chg.","XXXXXXXX","XXXXXXXX","XXXXXXXX","XXXXXXXX","XXXXXXXX","XXXXXXXX","XXXXXXXX","XXXXXXXX","XXXXXXXX","XXXXXXXX","XXXXXXXX","XXXXXXXX","XXXXXXXX","M/M % Chg.","M/M % Chg.","M/M % Chg.","M/M Chg. BP","M/M Chg. In PP","M/M Chg. In PP","M/M Chg. In PP","M/M Chg. In PP","M/M Chg. In PP","M/M Chg. In PP","M/M Chg. In PP","M/M Chg. In PP","M/M Chg. In PP","M/M Chg. In PP","M/M Chg. In PP","M/M Chg. In PP","M/M % Chg.","XXXXXXXX","XXXXXXXX","XXXXXXXX","XXXXXXXX","XXXXXXXX","XXXXXXXX","XXXXXXXX","XXXXXXXX","XXXXXXXX","M/M % Chg.","M/M % Chg.",null,null,null,null,null,"M/M % Chg","XXXXXXXX","XXXXXXXX","XXXXXXXX","M/M % Chg.","M/M % Chg","M/M % Chg","M/M % Chg.","M/M % Chg.","M/M % Chg.","M/M % Chg","M/M % Chg","XXXXXXXX","M/M % Chg","M/M % Chg","XXXXXXXX","M/M % Chg","M/M % Chg","M/M % Chg","M/M % Chg","M/M % Chg","M/M % Chg","M/M % Chg","M/M % Chg","M/M % Chg","XXXXXXXX","XXXXXXXX",null,null,null,null,null,"M/M % Chg","M/M % Chg",null,null,null,null,null,"XXXXXXXX","Chg. Minutes","Chg. BP","Chg. BP","Chg. BP","Chg. Jobs (000s)","XXXXXXXX","XXXXXXXX","XXXXXXXX","Chg. Jobs (000s)","XXXXXXXX","XXXXXXXX","XXXXXXXX","M/M % Chg","Chg. In % of Wk.","Chg. Jobs","Chg. Jobs","Chg. Jobs","Chg. Jobs","Chg. Jobs","Chg. Jobs","Chg. Jobs","Chg. Jobs",null,null,null,null,null,"XXXXXXXX","XXXXXXXX","XXXXXXXX",null,null,null,null,null,"M/M % Chg","M/M % Chg","M/M % Chg",null,null,null,null,null,"Chg BP m/m","Chg BP m/m","Chg BP m/m","Chg BP m/m","XXXXXXXX","Chg BP m/m","Chg BP m/m","Chg BP m/m","Chg BP m/m","Chg BP m/m","Chg BP m/m","XXXXXXXX",null,null,null,null,null,"M/M % Chg.","M/M % Chg.","M/M % Chg.","M/M % Chg.","M/M % Chg.","M/M % Chg.","M/M % Chg.","M/M % Chg.","M/M % Chg.",null,null,null,null,null,"M/M % Chg.","M/M % Chg.","M/M % Chg.","M/M % Chg.","M/M % Chg.","M/M % Chg.","M/M % Chg.","M/M % Chg.","M/M % Chg."]
["1959-01-01",null,null,null,"--","--","--","--",null,null,null,null,null,null,null,null,null,null,null,null,null,null,null,"--","--",null,null,null,null,null,null,null,null,null,null,null,null,null,"--","--","--","--","--","--","--","--","--","--","--","--","--","--","--","--","--",null,null,null,null,null,null,null,null,null,"--","--",null,null,null,null,null,"--",null,null,null,"--","--","--","--","--","--","--","--",null,"--","--",null,"--","--","--","--","--","--","--","--","--","--","--",null,null,null,null,null,"--","--",null,null,null,null,null,"--","--","--","--","--","--",null,null,null,"--",null,null,null,"--","--","--","--","--","--","--","--","--","--",null,null,null,null,null,null,null,null,null,null,null,null,null,"--","--","--",null,null,null,null,null,"--","--","--","--","--","--","--","--","--","--","--",null,null,null,null,null,null,"--","--","--","--","--","--","--","--","--",null,null,null,null,null,"--","--","--","--","--","--","--","--","--"]
["1959-02-01",null,null,null,{"$f":"(Monthly!E12/Monthly!E11)-1","v":{"$error":"#DIV/0!"}},{"$f":"(Monthly!F12/Monthly!F11)-1","v":{"$error":"#DIV/0!"}},{"$f":"(Monthly!G12/Monthly!G11)-1","v":{"$error":"#DIV/0!"}},{"$f":"(Monthly!H12/Monthly!H11)-1","v":{"$error":"#DIV/0!"}},null,null,null,null,null,null,null,null,null,null,null,null,null,null,null,"--",{"$f":"(Monthly!Y12/Monthly!Y11)-1","v":2.0163007980000813E-4},null,null,null,null,null,null,null,null,null,null,null,null,null,{"$f":"(Monthly!AM12/Monthly!AM11)-1","v":1.9581699691533228E-2},"--","--","--",{"$f":"Monthly!AQ12-Monthly!AQ11","v":2.5},"--","--",{"$f":"Monthly!AT12-Monthly!AT11","v":1.7000000000000028},"--","--",{"$f":"Monthly!AW12-Monthly!AW11","v":10},{"$f":"Monthly!AX12-Monthly!AX11","v":1.5},{"$f":"Monthly!AY12-Monthly!AY11","v":7.4999999999999929},{"$f":"Monthly!AZ12-Monthly!AZ11","v":-0.40000000000000568},{"$f":"Monthly!BA12-Monthly!BA11","v":5.5},"--","--",null,null,null,null,null,null,null,null,null,"--","--",null,null,null,null,null,{"$f":"(Monthly!BT12/Monthly!BT11)-1","v":1.119730608542957E-2},null,null,null,{"$f":"(Monthly!BX12/Monthly!BX11)-1","v":6.0350030175015945E-3},"--","--","--","--","--","--","--",null,"--","--",null,"--",{"$f":"(Monthly!CK12/Monthly!CK11)-1","v":5.1007396072431099E-3},{"$f":"(Monthly!CL12/Monthly!CL11)-1","v":-5.0632911392405111E-2},{"$f":"(Monthly!CM12/Monthly!CM11)-1","v":-1.4221556886227504E-2},{"$f":"(Monthly!CN12/Monthly!CN11)-1","v":3.4038414782397997E-3},{"$f":"(Monthly!CO12/Monthly!CO11)-1","v":4.4117647058823373E-3},{"$f":"(Monthly!CP12/Monthly!CP11)-1","v":1.128444564267217E-2},{"$f":"(Monthly!CQ12/Monthly!CQ11)-1","v":1.3488469625440036E-3},"--","--","--",null,null,null,null,null,{"$f":"(Monthly!CZ12/Monthly!CZ11)-1","v":-3.4470872113068207E-4},{"$f":"(Monthly!DA12/Monthly!DA11)-1","v":0},null,null,null,null,null,"--","--",{"$f":"((Monthly!DI12-Monthly!DI11)*100)","v":-29.999999999999716},"--",{"$f":"((Monthly!DK12-Monthly!DK11)*100)","v":-9.9999999999999645},{"$f":"Monthly!DL12-Monthly!DL11","v":117},null,null,null,{"$f":"Monthly!DP12-Monthly!DP11","v":207},null,null,null,"--","--","--","--","--","--","--","--","--","--",null,null,null,null,null,null,null,null,null,null,null,null,null,{"$f":"(Monthly!EQ12/Monthly!EQ11)-1","v":0},"--",{"$f":"(Monthly!ES12/Monthly!ES11)-1","v":3.0864197530864335E-3},null,null,null,null,null,{"$f":"((Monthly!EY12-Monthly!EY11)*100)","v":0},{"$f":"((Monthly!EZ12-Monthly!EZ11)*100)","v":-4.9999999999999822},{"$f":"((Monthly!FA12-Monthly!FA11)*100)","v":1.9999999999999574},{"$f":"((Monthly!FB12-Monthly!FB11)*100)","v":1.9999999999999574},"--","--",{"$f":"((Monthly!FE12-Monthly!FE11)*100)","v":-11.999999999999966},{"$f":"((Monthly!FF12-Monthly!FF11)*100)","v":18.000000000000014},"--",{"$f":"((Monthly!FH12-Monthly!FH11)*100)","v":-4.9999999999999822},{"$f":"((Monthly!FI12-Monthly!FI11)*100)","v":-5.9999999999999609},null,null,null,null,null,null,"--","--","--","--","--","--","--","--","--",null,null,null,null,null,{"$f":"(Monthly!GD12/Monthly!GD11)-1","v":0},"--","--","--","--","--","--","--","--"]
["1959-03-01",null,null,null,{"$f":"(Monthly!E13/Monthly!E12)-1","v":{"$error":"#DIV/0!"}},{"$f":"(Monthly!F13/Monthly!F12)-1","v":{"$error":"#DIV/0!"}},{"$f":"(Monthly!G13/Monthly!G12)-1","v":{"$error":"#DIV/0!"}},{"$f":"(Monthly!H13/Monthly!H12)-1","v":{"$error":"#DIV/0!"}},null,null,null,null,null,null,null,null,null,null,null,null,null,null,null,"--",{"$f":"(Monthly!Y13/Monthly!Y12)-1","v":-2.5468411503658528E-3},null,null,null,null,null,null,null,null,null,null,null,null,null,{"$f":"(Monthly!AM13/Monthly!AM12)-1","v":1.4406373676646433E-2},"--","--","--",{"$f":"Monthly!AQ13-Monthly!AQ12","v":0.19999999999998863},"--","--",{"$f":"Monthly!AT13-Monthly!AT12","v":-0.20000000000000284},"--","--",{"$f":"Monthly!AW13-Monthly!AW12","v":2.8999999999999986},{"$f":"Monthly!AX13-Monthly!AX12","v":-0.29999999999999716},{"$f":"Monthly!AY13-Monthly!AY12","v":2.3000000000000114},{"$f":"Monthly!AZ13-Monthly!AZ12","v":0.90000000000000568},{"$f":"Monthly!BA13-Monthly!BA12","v":-1},"--","--",null,null,null,null,null,null,null,null,null,"--","--",null,null,null,null,null,{"$f":"(Monthly!BT13/Monthly!BT12)-1","v":1.1865288187669076E-2},null,null,null,{"$f":"(Monthly!BX13/Monthly!BX12)-1","v":-2.8194361127774403E-2},"--","--","--","--","--","--","--",null,"--","--",null,"--",{"$f":"(Monthly!CK13/Monthly!CK12)-1","v":7.1047957371224157E-3},{"$f":"(Monthly!CL13/Monthly!CL12)-1","v":-2.6666666666666616E-2},{"$f":"(Monthly!CM13/Monthly!CM12)-1","v":-4.783599088838264E-2},{"$f":"(Monthly!CN13/Monthly!CN12)-1","v":5.6215168403197513E-3},{"$f":"(Monthly!CO13/Monthly!CO12)-1","v":7.3206442166910968E-3},{"$f":"(Monthly!CP13/Monthly!CP12)-1","v":9.9770366585409942E-3},{"$f":"(Monthly!CQ13/Monthly!CQ12)-1","v":1.2451538047939525E-3},"--","--","--",null,null,null,null,null,{"$f":"(Monthly!CZ13/Monthly!CZ12)-1","v":-1.034482758620725E-3},{"$f":"(Monthly!DA13/Monthly!DA12)-1","v":3.3444816053511683E-3},null,null,null,null,null,"--","--",{"$f":"((Monthly!DI13-Monthly!DI12)*100)","v":29.999999999999716},"--",{"$f":"((Monthly!DK13-Monthly!DK12)*100)","v":-30.000000000000071},{"$f":"Monthly!DL13-Monthly!DL12","v":144},null,null,null,{"$f":"Monthly!DP13-Monthly!DP12","v":329},null,null,null,"--","--","--","--","--","--","--","--","--","--",null,null,null,null,null,null,null,null,null,null,null,null,null,{"$f":"(Monthly!EQ13/Monthly!EQ12)-1","v":0},"--",{"$f":"(Monthly!ES13/Monthly!ES12)-1","v":3.0769230769231992E-3},null,null,null,null,null,{"$f":"((Monthly!EY13-Monthly!EY12)*100)","v":0},{"$f":"((Monthly!EZ13-Monthly!EZ12)*100)","v":36.999999999999964},{"$f":"((Monthly!FA13-Monthly!FA12)*100)","v":-0.99999999999997868},{"$f":"((Monthly!FB13-Monthly!FB12)*100)","v":-4.0000000000000036},"--","--",{"$f":"((Monthly!FE13-Monthly!FE12)*100)","v":9.9999999999999645},{"$f":"((Monthly!FF13-Monthly!FF12)*100)","v":6.999999999999984},"--",{"$f":"((Monthly!FH13-Monthly!FH12)*100)","v":3.0000000000000249},{"$f":"((Monthly!FI13-Monthly!FI12)*100)","v":3.0000000000000249},null,null,null,null,null,null,"--","--","--","--","--","--","--","--","--",null,null,null,null,null,{"$f":"(Monthly!GD13/Monthly!GD12)-1","v":-9.9999999999998979E-3},"--","--","--","--","--","--","--","--"]
["1959-04-01",null,null,null,{"$f":"(Monthly!E14/Monthly!E13)-1","v":{"$error":"#DIV/0!"}},{"$f":"(Monthly!F14/Monthly!F13)-1","v":{"$error":"#DIV/0!"}},{"$f":"(Monthly!G14/Monthly!G13)-1","v":{"$error":"#DIV/0!"}},{"$f":"(Monthly!H14/Monthly!H13)-1","v":{"$error":"#DIV/0!"}},null,null,null,null,null,null,null,null,null,null,null,null,null,null,null,"--",{"$f":"(Monthly!Y14/Monthly!Y13)-1","v":1.2174640766971168E-2},null,null,null,null,null,null,null,null,null,null,null,null,null,{"$f":"(Monthly!AM14/Monthly!AM13)-1","v":2.1302666343318677E-2},"--","--","--",{"$f":"Monthly!AQ14-Monthly!AQ13","v":-0.19999999999998863},"--","--",{"$f":"Monthly!AT14-Monthly!AT13","v":1.3000000000000043},"--","--",{"$f":"Monthly!AW14-Monthly!AW13","v":5},{"$f":"Monthly!AX14-Monthly!AX13","v":-3.2999999999999972},{"$f":"Monthly!AY14-Monthly!AY13","v":-5.3000000000000043},{"$f":"Monthly!AZ14-Monthly!AZ13","v":0.89999999999999147},{"$f":"Monthly!BA14-Monthly!BA13","v":-1.5},"--","--",null,null,null,null,null,null,null,null,null,"--","--",null,null,null,null,null,{"$f":"(Monthly!BT14/Monthly!BT13)-1","v":1.3216087510019348E-2},null,null,null,{"$f":"(Monthly!BX14/Monthly!BX13)-1","v":-1.851851851851849E-2},"--","--","--","--","--","--","--",null,"--","--",null,"--",{"$f":"(Monthly!CK14/Monthly!CK13)-1","v":8.0624842529606333E-3},{"$f":"(Monthly!CL14/Monthly!CL13)-1","v":9.0410958904109551E-2},{"$f":"(Monthly!CM14/Monthly!CM13)-1","v":2.2328548644338087E-2},{"$f":"(Monthly!CN14/Monthly!CN13)-1","v":6.07199653028756E-3},{"$f":"(Monthly!CO14/Monthly!CO13)-1","v":5.8139534883721034E-3},{"$f":"(Monthly!CP14/Monthly!CP13)-1","v":9.1125966601144359E-3},{"$f":"(Monthly!CQ14/Monthly!CQ13)-1","v":1.3623131059044002E-3},"--","--","--",null,null,null,null,null,{"$f":"(Monthly!CZ14/Monthly!CZ13)-1","v":3.4518467380051376E-4},{"$f":"(Monthly!DA14/Monthly!DA13)-1","v":0},null,null,null,null,null,"--","--",{"$f":"((Monthly!DI14-Monthly!DI13)*100)","v":10.000000000000142},"--",{"$f":"((Monthly!DK14-Monthly!DK13)*100)","v":-39.999999999999943},{"$f":"Monthly!DL14-Monthly!DL13","v":126},null,null,null,{"$f":"Monthly!DP14-Monthly!DP13","v":304},null,null,null,"--","--","--","--","--","--","--","--","--","--",null,null,null,null,null,null,null,null,null,null,null,null,null,{"$f":"(Monthly!EQ14/Monthly!EQ13)-1","v":3.154574132492094E-3},"--",{"$f":"(Monthly!ES14/Monthly!ES13)-1","v":3.0674846625766694E-3},null,null,null,null,null,{"$f":"((Monthly!EY14-Monthly!EY13)*100)","v":0},{"$f":"((Monthly!EZ14-Monthly!EZ13)*100)","v":16.000000000000014},{"$f":"((Monthly!FA14-Monthly!FA13)*100)","v":10.000000000000053},{"$f":"((Monthly!FB14-Monthly!FB13)*100)","v":1.0000000000000675},"--","--",{"$f":"((Monthly!FE14-Monthly!FE13)*100)","v":15.000000000000036},{"$f":"((Monthly!FF14-Monthly!FF13)*100)","v":11.000000000000032},"--",{"$f":"((Monthly!FH14-Monthly!FH13)*100)","v":12.999999999999989},{"$f":"((Monthly!FI14-Monthly!FI13)*100)","v":12.999999999999989},null,null,null,null,null,null,"--","--","--","--","--","--","--","--","--",null,null,null,null,null,{"$f":"(Monthly!GD14/Monthly!GD13)-1","v":0},"--","--","--","--","--","--","--","--"]
["1959-05-01",null,null,null,{"$f":"(Monthly!E15/Monthly!E14)-1","v":{"$error":"#DIV/0!"}},{"$f":"(Monthly!F15/Monthly!F14)-1","v":{"$error":"#DIV/0!"}},{"$f":"(Monthly!G15/Monthly!G14)-1","v":{"$error":"#DIV/0!"}},{"$f":"(Monthly!H15/Monthly!H14)-1","v":{"$error":"#DIV/0!"}},null,null,null,null,null,null,null,null,null,null,null,null,null,null,null,"--",{"$f":"(Monthly!Y15/Monthly!Y14)-1","v":2.1044431507869943E-2},null,null,null,null,null,null,null,null,null,null,null,null,null,{"$f":"(Monthly!AM15/Monthly!AM14)-1","v":1.5063653935879495E-2},"--","--","--",{"$f":"Monthly!AQ15-Monthly!AQ14","v":1.2999999999999972},"--","--",{"$f":"Monthly!AT15-Monthly!AT14","v":1.1999999999999957},"--","--",{"$f":"Monthly!AW15-Monthly!AW14","v":0.39999999999999858},{"$f":"Monthly!AX15-Monthly!AX14","v":3},{"$f":"Monthly!AY15-Monthly!AY14","v":1.4999999999999929},{"$f":"Monthly!AZ15-Monthly!AZ14","v":1.8000000000000114},{"$f":"Monthly!BA15-Monthly!BA14","v":-1.7999999999999972},"--","--",null,null,null,null,null,null,null,null,null,"--","--",null,null,null,null,null,{"$f":"(Monthly!BT15/Monthly!BT14)-1","v":1.067973363487873E-2},null,null,null,{"$f":"(Monthly!BX15/Monthly!BX14)-1","v":-5.7861635220125773E-2},"--","--","--","--","--","--","--",null,"--","--",null,"--",{"$f":"(Monthly!CK15/Monthly!CK14)-1","v":6.4983754061482824E-3},{"$f":"(Monthly!CL15/Monthly!CL14)-1","v":-4.2713567839195887E-2},{"$f":"(Monthly!CM15/Monthly!CM14)-1","v":-5.3822152886115471E-2},{"$f":"(Monthly!CN15/Monthly!CN14)-1","v":5.7000526895627512E-3},{"$f":"(Monthly!CO15/Monthly!CO14)-1","v":7.9479768786125948E-3},{"$f":"(Monthly!CP15/Monthly!CP14)-1","v":1.0776126856295809E-2},{"$f":"(Monthly!CQ15/Monthly!CQ14)-1","v":1.2362683887865433E-3},"--","--","--",null,null,null,null,null,{"$f":"(Monthly!CZ15/Monthly!CZ14)-1","v":2.0703933747412417E-3},{"$f":"(Monthly!DA15/Monthly!DA14)-1","v":3.3333333333334103E-3},null,null,null,null,null,"--","--",{"$f":"((Monthly!DI15-Monthly!DI14)*100)","v":-19.999999999999574},"--",{"$f":"((Monthly!DK15-Monthly!DK14)*100)","v":-10.000000000000053},{"$f":"Monthly!DL15-Monthly!DL14","v":102},null,null,null,{"$f":"Monthly!DP15-Monthly!DP14","v":229},null,null,null,"--","--","--","--","--","--","--","--","--","--",null,null,null,null,null,null,null,null,null,null,null,null,null,{"$f":"(Monthly!EQ15/Monthly!EQ14)-1","v":0},"--",{"$f":"(Monthly!ES15/Monthly!ES14)-1","v":0},null,null,null,null,null,{"$f":"((Monthly!EY15-Monthly!EY14)*100)","v":23.000000000000043},{"$f":"((Monthly!EZ15-Monthly!EZ14)*100)","v":-6.0000000000000053},{"$f":"((Monthly!FA15-Monthly!FA14)*100)","v":13.999999999999968},{"$f":"((Monthly!FB15-Monthly!FB14)*100)","v":9.9999999999999645},"--","--",{"$f":"((Monthly!FE15-Monthly!FE14)*100)","v":-11.000000000000032},{"$f":"((Monthly!FF15-Monthly!FF14)*100)","v":23.999999999999979},"--",{"$f":"((Monthly!FH15-Monthly!FH14)*100)","v":22.999999999999954},{"$f":"((Monthly!FI15-Monthly!FI14)*100)","v":18.99999999999995},null,null,null,null,null,null,"--","--","--","--","--","--","--","--","--",null,null,null,null,null,{"$f":"(Monthly!GD15/Monthly!GD14)-1","v":0},"--","--","--","--","--","--","--","--"]
["1959-06-01",null,null,null,{"$f":"(Monthly!E16/Monthly!E15)-1","v":{"$error":"#DIV/0!"}},{"$f":"(Monthly!F16/Monthly!F15)-1","v":{"$error":"#DIV/0!"}},{"$f":"(Monthly!G16/Monthly!G15)-1","v":{"$error":"#DIV/0!"}},{"$f":"(Monthly!H16/Monthly!H15)-1","v":{"$error":"#DIV/0!"}},null,null,null,null,null,null,null,null,null,null,null,null,null,null,null,"--",{"$f":"(Monthly!Y16/Monthly!Y15)-1","v":2.2971156600489318E-2},null,null,null,null,null,null,null,null,null,null,null,null,null,{"$f":"(Monthly!AM16/Monthly!AM15)-1","v":1.1409153588548548E-3},"--","--","--",{"$f":"Monthly!AQ16-Monthly!AQ15","v":-3.7999999999999972},"--","--",{"$f":"Monthly!AT16-Monthly!AT15","v":-2.5999999999999943},"--","--",{"$f":"Monthly!AW16-Monthly!AW15","v":1.7999999999999972},{"$f":"Monthly!AX16-Monthly!AX15","v":-5.7000000000000028},{"$f":"Monthly!AY16-Monthly!AY15","v":4.4000000000000057},{"$f":"Monthly!AZ16-Monthly!AZ15","v":-7.6000000000000085},{"$f":"Monthly!BA16-Monthly!BA15","v":0.70000000000000284},"--","--",null,null,null,null,null,null,null,null,null,"--","--",null,null,null,null,null,{"$f":"(Monthly!BT16/Monthly!BT15)-1","v":1.2298101184227361E-2},null,null,null,{"$f":"(Monthly!BX16/Monthly!BX15)-1","v":3.3377837116155273E-3},"--","--","--","--","--","--","--",null,"--","--",null,"--",{"$f":"(Monthly!CK16/Monthly!CK15)-1","v":6.2080953563445895E-3},{"$f":"(Monthly!CL16/Monthly!CL15)-1","v":2.624671916010568E-3},{"$f":"(Monthly!CM16/Monthly!CM15)-1","v":-8.2440230832646622E-3},{"$f":"(Monthly!CN16/Monthly!CN15)-1","v":3.4768527338542299E-3},{"$f":"(Monthly!CO16/Monthly!CO15)-1","v":8.6021505376343566E-3},{"$f":"(Monthly!CP16/Monthly!CP15)-1","v":1.3100111356828092E-2},{"$f":"(Monthly!CQ16/Monthly!CQ15)-1","v":1.2742085529839908E-3},"--","--","--",null,null,null,null,null,{"$f":"(Monthly!CZ16/Monthly!CZ15)-1","v":2.4104683195591559E-3},{"$f":"(Monthly!DA16/Monthly!DA15)-1","v":3.3222591362125353E-3},null,null,null,null,null,"--","--",{"$f":"((Monthly!DI16-Monthly!DI15)*100)","v":0},"--",{"$f":"((Monthly!DK16-Monthly!DK15)*100)","v":-9.9999999999999645},{"$f":"Monthly!DL16-Monthly!DL15","v":67},null,null,null,{"$f":"Monthly!DP16-Monthly!DP15","v":130},null,null,null,"--","--","--","--","--","--","--","--","--","--",null,null,null,null,null,null,null,null,null,null,null,null,null,{"$f":"(Monthly!EQ16/Monthly!EQ15)-1","v":-3.1446540880503138E-3},"--",{"$f":"(Monthly!ES16/Monthly!ES15)-1","v":6.1162079510701517E-3},null,null,null,null,null,{"$f":"((Monthly!EY16-Monthly!EY15)*100)","v":26.999999999999957},{"$f":"((Monthly!EZ16-Monthly!EZ15)*100)","v":49.000000000000021},{"$f":"((Monthly!FA16-Monthly!FA15)*100)","v":8.9999999999999858},{"$f":"((Monthly!FB16-Monthly!FB15)*100)","v":8.0000000000000071},"--","--",{"$f":"((Monthly!FE16-Monthly!FE15)*100)","v":37.000000000000014},{"$f":"((Monthly!FF16-Monthly!FF15)*100)","v":11.000000000000032},"--",{"$f":"((Monthly!FH16-Monthly!FH15)*100)","v":15.000000000000036},{"$f":"((Monthly!FI16-Monthly!FI15)*100)","v":3.0000000000000249},null,null,null,null,null,null,"--","--","--","--","--","--","--","--","--",null,null,null,null,null,{"$f":"(Monthly!GD16/Monthly!GD15)-1","v":0},"--","--","--","--","--","--","--","--"]
["1959-07-01",null,null,null,{"$f":"(Monthly!E17/Monthly!E16)-1","v":{"$error":"#DIV/0!"}},{"$f":"(Monthly!F17/Monthly!F16)-1","v":{"$error":"#DIV/0!"}},{"$f":"(Monthly!G17/Monthly!G16)-1","v":{"$error":"#DIV/0!"}},{"$f":"(Monthly!H17/Monthly!H16)-1","v":{"$error":"#DIV/0!"}},null,null,null,null,null,null,null,null,null,null,null,null,null,null,null,"--",{"$f":"(Monthly!Y17/Monthly!Y16)-1","v":1.4111318133353423E-2},null,null,null,null,null,null,null,null,null,null,null,null,null,{"$f":"(Monthly!AM17/Monthly!AM16)-1","v":-2.3944216248124706E-2},"--","--","--",{"$f":"Monthly!AQ17-Monthly!AQ16","v":-2.9000000000000057},"--","--",{"$f":"Monthly!AT17-Monthly!AT16","v":-3.2000000000000028},"--","--",{"$f":"Monthly!AW17-Monthly!AW16","v":-3.5999999999999943},{"$f":"Monthly!AX17-Monthly!AX16","v":-2.9000000000000057},{"$f":"Monthly!AY17-Monthly!AY16","v":-5.6000000000000014},{"$f":"Monthly!AZ17-Monthly!AZ16","v":-1.5},{"$f":"Monthly!BA17-Monthly!BA16","v":-4.6000000000000014},"--","--",null,null,null,null,null,null,null,null,null,"--","--",null,null,null,null,null,{"$f":"(Monthly!BT17/Monthly!BT16)-1","v":1.9999181293465229E-2},null,null,null,{"$f":"(Monthly!BX17/Monthly!BX16)-1","v":2.9274783765801837E-2},"--","--","--","--","--","--","--",null,"--","--",null,"--",{"$f":"(Monthly!CK17/Monthly!CK16)-1","v":1.2339585389931074E-3},{"$f":"(Monthly!CL17/Monthly!CL16)-1","v":1.308900523560208E-2},{"$f":"(Monthly!CM17/Monthly!CM16)-1","v":4.4056525353283416E-2},{"$f":"(Monthly!CN17/Monthly!CN16)-1","v":-1.7086715079025483E-3},{"$f":"(Monthly!CO17/Monthly!CO16)-1","v":4.9751243781095411E-3},{"$f":"(Monthly!CP17/Monthly!CP16)-1","v":1.3188093367443754E-2},{"$f":"(Monthly!CQ17/Monthly!CQ16)-1","v":1.3457889194834483E-3},"--","--","--",null,null,null,null,null,{"$f":"(Monthly!CZ17/Monthly!CZ16)-1","v":1.3740982480248132E-3},{"$f":"(Monthly!DA17/Monthly!DA16)-1","v":0},null,null,null,null,null,"--","--",{"$f":"((Monthly!DI17-Monthly!DI16)*100)","v":19.999999999999574},"--",{"$f":"((Monthly!DK17-Monthly!DK16)*100)","v":9.9999999999999645},{"$f":"Monthly!DL17-Monthly!DL16","v":69},null,null,null,{"$f":"Monthly!DP17-Monthly!DP16","v":124},null,null,null,"--","--","--","--","--","--","--","--","--","--",null,null,null,null,null,null,null,null,null,null,null,null,null,{"$f":"(Monthly!EQ17/Monthly!EQ16)-1","v":0},"--",{"$f":"(Monthly!ES17/Monthly!ES16)-1","v":-3.0395136778116338E-3},null,null,null,null,null,{"$f":"((Monthly!EY17-Monthly!EY16)*100)","v":0},{"$f":"((Monthly!EZ17-Monthly!EZ16)*100)","v":8.0000000000000071},{"$f":"((Monthly!FA17-Monthly!FA16)*100)","v":0.99999999999997868},{"$f":"((Monthly!FB17-Monthly!FB16)*100)","v":4.0000000000000036},"--","--",{"$f":"((Monthly!FE17-Monthly!FE16)*100)","v":-0.99999999999997868},{"$f":"((Monthly!FF17-Monthly!FF16)*100)","v":31.99999999999994},"--",{"$f":"((Monthly!FH17-Monthly!FH16)*100)","v":8.0000000000000071},{"$f":"((Monthly!FI17-Monthly!FI16)*100)","v":6.0000000000000497},null,null,null,null,null,null,"--","--","--","--","--","--","--","--","--",null,null,null,null,null,{"$f":"(Monthly!GD17/Monthly!GD16)-1","v":0},"--","--","--","--","--","--","--","--"]
["1959-08-01",null,null,null,{"$f":"(Monthly!E18/Monthly!E17)-1","v":{"$error":"#DIV/0!"}},{"$f":"(Monthly!F18/Monthly!F17)-1","v":{"$error":"#DIV/0!"}},{"$f":"(Monthly!G18/Monthly!G17)-1","v":{"$error":"#DIV/0!"}},{"$f":"(Monthly!H18/Monthly!H17)-1","v":{"$error":"#DIV/0!"}},null,null,null,null,null,null,null,null,null,null,null,null,null,null,null,"--",{"$f":"(Monthly!Y18/Monthly!Y17)-1","v":1.1270559810962588E-2},null,null,null,null,null,null,null,null,null,null,null,null,null,{"$f":"(Monthly!AM18/Monthly!AM17)-1","v":-3.3880580089961754E-2},"--","--","--",{"$f":"Monthly!AQ18-Monthly!AQ17","v":-6.3999999999999986},"--","--",{"$f":"Monthly!AT18-Monthly!AT17","v":-5.3999999999999986},"--","--",{"$f":"Monthly!AW18-Monthly!AW17","v":-11.100000000000001},{"$f":"Monthly!AX18-Monthly!AX17","v":-6.8999999999999986},{"$f":"Monthly!AY18-Monthly!AY17","v":-6.2999999999999972},{"$f":"Monthly!AZ18-Monthly!AZ17","v":-7.3999999999999986},{"$f":"Monthly!BA18-Monthly!BA17","v":-1.7000000000000028},"--","--",null,null,null,null,null,null,null,null,null,"--","--",null,null,null,null,null,{"$f":"(Monthly!BT18/Monthly!BT17)-1","v":1.7529073915525162E-2},null,null,null,{"$f":"(Monthly!BX18/Monthly!BX17)-1","v":-7.5630252100840289E-2},"--","--","--","--","--","--","--",null,"--","--",null,"--",{"$f":"(Monthly!CK18/Monthly!CK17)-1","v":-3.9438008380575651E-3},{"$f":"(Monthly!CL18/Monthly!CL17)-1","v":-0.10594315245478036},{"$f":"(Monthly!CM18/Monthly!CM17)-1","v":-5.015923566878977E-2},{"$f":"(Monthly!CN18/Monthly!CN17)-1","v":-5.800408881281971E-3},{"$f":"(Monthly!CO18/Monthly!CO17)-1","v":6.3649222065063071E-3},{"$f":"(Monthly!CP18/Monthly!CP17)-1","v":1.3018341422047497E-2},{"$f":"(Monthly!CQ18/Monthly!CQ17)-1","v":1.5239273463421021E-3},"--","--","--",null,null,null,null,null,{"$f":"(Monthly!CZ18/Monthly!CZ17)-1","v":1.0291595197255976E-3},{"$f":"(Monthly!DA18/Monthly!DA17)-1","v":0},null,null,null,null,null,"--","--",{"$f":"((Monthly!DI18-Monthly!DI17)*100)","v":-19.999999999999574},"--",{"$f":"((Monthly!DK18-Monthly!DK17)*100)","v":10.000000000000053},{"$f":"Monthly!DL18-Monthly!DL17","v":-421},null,null,null,{"$f":"Monthly!DP18-Monthly!DP17","v":-469},null,null,null,"--","--","--","--","--","--","--","--","--","--",null,null,null,null,null,null,null,null,null,null,null,null,null,{"$f":"(Monthly!EQ18/Monthly!EQ17)-1","v":-3.154574132492094E-3},"--",{"$f":"(Monthly!ES18/Monthly!ES17)-1","v":0},null,null,null,null,null,{"$f":"((Monthly!EY18-Monthly!EY17)*100)","v":0},{"$f":"((Monthly!EZ18-Monthly!EZ17)*100)","v":2.9999999999999805},{"$f":"((Monthly!FA18-Monthly!FA17)*100)","v":-4.0000000000000036},{"$f":"((Monthly!FB18-Monthly!FB17)*100)","v":0.99999999999997868},"--","--",{"$f":"((Monthly!FE18-Monthly!FE17)*100)","v":17.999999999999972},{"$f":"((Monthly!FF18-Monthly!FF17)*100)","v":3.0000000000000249},"--",{"$f":"((Monthly!FH18-Monthly!FH17)*100)","v":-0.99999999999997868},{"$f":"((Monthly!FI18-Monthly!FI17)*100)","v":2.9999999999999361},null,null,null,null,null,null,"--","--","--","--","--","--","--","--","--",null,null,null,null,null,{"$f":"(Monthly!GD18/Monthly!GD17)-1","v":0},"--","--","--","--","--","--","--","--"]
["1959-09-01",null,null,null,{"$f":"(Monthly!E19/Monthly!E18)-1","v":{"$error":"#DIV/0!"}},{"$f":"(Monthly!F19/Monthly!F18)-1","v":{"$error":"#DIV/0!"}},{"$f":"(Monthly!G19/Monthly!G18)-1","v":{"$error":"#DIV/0!"}},{"$f":"(Monthly!H19/Monthly!H18)-1","v":{"$error":"#DIV/0!"}},null,null,null,null,null,null,null,null,null,null,null,null,null,null,null,"--",{"$f":"(Monthly!Y19/Monthly!Y18)-1","v":4.5026123027647191E-3},null,null,null,null,null,null,null,null,null,null,null,null,null,{"$f":"(Monthly!AM19/Monthly!AM18)-1","v":-1.2085170018344416E-3},"--","--","--",{"$f":"Monthly!AQ19-Monthly!AQ18","v":-6.8000000000000043},"--","--",{"$f":"Monthly!AT19-Monthly!AT18","v":-5.6000000000000014},"--","--",{"$f":"Monthly!AW19-Monthly!AW18","v":-8.6000000000000014},{"$f":"Monthly!AX19-Monthly!AX18","v":-10.699999999999996},{"$f":"Monthly!AY19-Monthly!AY18","v":4},{"$f":"Monthly!AZ19-Monthly!AZ18","v":-6.5},{"$f":"Monthly!BA19-Monthly!BA18","v":0.10000000000000142},"--","--",null,null,null,null,null,null,null,null,null,"--","--",null,null,null,null,null,{"$f":"(Monthly!BT19/Monthly!BT18)-1","v":1.6863362067076393E-2},null,null,null,{"$f":"(Monthly!BX19/Monthly!BX18)-1","v":7.6923076923076872E-2},"--","--","--","--","--","--","--",null,"--","--",null,"--",{"$f":"(Monthly!CK19/Monthly!CK18)-1","v":2.9695619896064063E-3},{"$f":"(Monthly!CL19/Monthly!CL18)-1","v":-9.2485549132948042E-2},{"$f":"(Monthly!CM19/Monthly!CM18)-1","v":6.8734283319362932E-2},{"$f":"(Monthly!CN19/Monthly!CN18)-1","v":4.7821720625451647E-5},{"$f":"(Monthly!CO19/Monthly!CO18)-1","v":7.0274068868587669E-3},{"$f":"(Monthly!CP19/Monthly!CP18)-1","v":1.2166633671766736E-2},{"$f":"(Monthly!CQ19/Monthly!CQ18)-1","v":1.5440676919276086E-3},"--","--","--",null,null,null,null,null,{"$f":"(Monthly!CZ19/Monthly!CZ18)-1","v":2.3989033584648212E-3},{"$f":"(Monthly!DA19/Monthly!DA18)-1","v":3.3112582781458233E-3},null,null,null,null,null,"--","--",{"$f":"((Monthly!DI19-Monthly!DI18)*100)","v":9.9999999999994316},"--",{"$f":"((Monthly!DK19-Monthly!DK18)*100)","v":29.999999999999982},{"$f":"Monthly!DL19-Monthly!DL18","v":52},null,null,null,{"$f":"Monthly!DP19-Monthly!DP18","v":95},null,null,null,"--","--","--","--","--","--","--","--","--","--",null,null,null,null,null,null,null,null,null,null,null,null,null,{"$f":"(Monthly!EQ19/Monthly!EQ18)-1","v":3.1645569620253333E-3},"--",{"$f":"(Monthly!ES19/Monthly!ES18)-1","v":3.0487804878049918E-3},null,null,null,null,null,{"$f":"((Monthly!EY19-Monthly!EY18)*100)","v":50},{"$f":"((Monthly!EZ19-Monthly!EZ18)*100)","v":25.999999999999979},{"$f":"((Monthly!FA19-Monthly!FA18)*100)","v":8.9999999999999858},{"$f":"((Monthly!FB19-Monthly!FB18)*100)","v":8.9999999999999858},"--","--",{"$f":"((Monthly!FE19-Monthly!FE18)*100)","v":66.000000000000014},{"$f":"((Monthly!FF19-Monthly!FF18)*100)","v":58.000000000000007},"--",{"$f":"((Monthly!FH19-Monthly!FH18)*100)","v":33.000000000000007},{"$f":"((Monthly!FI19-Monthly!FI18)*100)","v":25},null,null,null,null,null,null,"--","--","--","--","--","--","--","--","--",null,null,null,null,null,{"$f":"(Monthly!GD19/Monthly!GD18)-1","v":0},"--","--","--","--","--","--","--","--"]
["1959-10-01",null,null,null,{"$f":"(Monthly!E20/Monthly!E19)-1","v":{"$error":"#DIV/0!"}},{"$f":"(Monthly!F20/Monthly!F19)-1","v":{"$error":"#DIV/0!"}},{"$f":"(Monthly!G20/Monthly!G19)-1","v":{"$error":"#DIV/0!"}},{"$f":"(Monthly!H20/Monthly!H19)-1","v":{"$error":"#DIV/0!"}},null,null,null,null,null,null,null,null,null,null,null,null,null,null,null,"--",{"$f":"(Monthly!Y20/Monthly!Y19)-1","v":3.9414017067209706E-3},null,null,null,null,null,null,null,null,null,null,null,null,null,{"$f":"(Monthly!AM20/Monthly!AM19)-1","v":-7.264228137676465E-3},"--","--","--",{"$f":"Monthly!AQ20-Monthly!AQ19","v":1.4000000000000057},"--","--",{"$f":"Monthly!AT20-Monthly!AT19","v":-0.70000000000000284},"--","--",{"$f":"Monthly!AW20-Monthly!AW19","v":-3.1999999999999957},{"$f":"Monthly!AX20-Monthly!AX19","v":6.2999999999999972},{"$f":"Monthly!AY20-Monthly!AY19","v":1.5},{"$f":"Monthly!AZ20-Monthly!AZ19","v":-0.5},{"$f":"Monthly!BA20-Monthly!BA19","v":1},"--","--",null,null,null,null,null,null,null,null,null,"--","--",null,null,null,null,null,{"$f":"(Monthly!BT20/Monthly!BT19)-1","v":1.6428556036804931E-2},null,null,null,{"$f":"(Monthly!BX20/Monthly!BX19)-1","v":-0.12012987012987009},"--","--","--","--","--","--","--",null,"--","--",null,"--",{"$f":"(Monthly!CK20/Monthly!CK19)-1","v":4.1944238835429637E-3},{"$f":"(Monthly!CL20/Monthly!CL19)-1","v":8.5987261146496907E-2},{"$f":"(Monthly!CM20/Monthly!CM19)-1","v":-0.18196078431372553},{"$f":"(Monthly!CN20/Monthly!CN19)-1","v":1.291124713083569E-3},{"$f":"(Monthly!CO20/Monthly!CO19)-1","v":3.4891835310537633E-3},{"$f":"(Monthly!CP20/Monthly!CP19)-1","v":1.2707744235691321E-2},{"$f":"(Monthly!CQ20/Monthly!CQ19)-1","v":1.5753240346234598E-3},"--","--","--",null,null,null,null,null,{"$f":"(Monthly!CZ20/Monthly!CZ19)-1","v":3.4188034188034067E-3},{"$f":"(Monthly!DA20/Monthly!DA19)-1","v":3.3003300330032292E-3},null,null,null,null,null,"--","--",{"$f":"((Monthly!DI20-Monthly!DI19)*100)","v":10.000000000000142},"--",{"$f":"((Monthly!DK20-Monthly!DK19)*100)","v":20.000000000000018},{"$f":"Monthly!DL20-Monthly!DL19","v":-96},null,null,null,{"$f":"Monthly!DP20-Monthly!DP19","v":-70},null,null,null,"--","--","--","--","--","--","--","--","--","--",null,null,null,null,null,null,null,null,null,null,null,null,null,{"$f":"(Monthly!EQ20/Monthly!EQ19)-1","v":-3.154574132492094E-3},"--",{"$f":"(Monthly!ES20/Monthly!ES19)-1","v":-3.0395136778116338E-3},null,null,null,null,null,{"$f":"((Monthly!EY20-Monthly!EY19)*100)","v":0},{"$f":"((Monthly!EZ20-Monthly!EZ19)*100)","v":22.000000000000021},{"$f":"((Monthly!FA20-Monthly!FA19)*100)","v":5.0000000000000711},{"$f":"((Monthly!FB20-Monthly!FB19)*100)","v":10.000000000000053},"--","--",{"$f":"((Monthly!FE20-Monthly!FE19)*100)","v":0.99999999999997868},{"$f":"((Monthly!FF20-Monthly!FF19)*100)","v":-20.000000000000018},"--",{"$f":"((Monthly!FH20-Monthly!FH19)*100)","v":-18.00000000000006},{"$f":"((Monthly!FI20-Monthly!FI19)*100)","v":-14.999999999999947},null,null,null,null,null,null,"--","--","--","--","--","--","--","--","--",null,null,null,null,null,{"$f":"(Monthly!GD20/Monthly!GD19)-1","v":0},"--","--","--","--","--","--","--","--"]
["1959-11-01",null,null,null,{"$f":"(Monthly!E21/Monthly!E20)-1","v":{"$error":"#DIV/0!"}},{"$f":"(Monthly!F21/Monthly!F20)-1","v":{"$error":"#DIV/0!"}},{"$f":"(Monthly!G21/Monthly!G20)-1","v":{"$error":"#DIV/0!"}},{"$f":"(Monthly!H21/Monthly!H20)-1","v":{"$error":"#DIV/0!"}},null,null,null,null,null,null,null,null,null,null,null,null,null,null,null,"--",{"$f":"(Monthly!Y21/Monthly!Y20)-1","v":7.4587426095966691E-3},null,null,null,null,null,null,null,null,null,null,null,null,null,{"$f":"(Monthly!AM21/Monthly!AM20)-1","v":6.0985501146491039E-3},"--","--","--",{"$f":"Monthly!AQ21-Monthly!AQ20","v":0.89999999999999858},"--","--",{"$f":"Monthly!AT21-Monthly!AT20","v":1.5},"--","--",{"$f":"Monthly!AW21-Monthly!AW20","v":4.2999999999999972},{"$f":"Monthly!AX21-Monthly!AX20","v":1.1000000000000014},{"$f":"Monthly!AY21-Monthly!AY20","v":1.9999999999999929},{"$f":"Monthly!AZ21-Monthly!AZ20","v":1.5},{"$f":"Monthly!BA21-Monthly!BA20","v":-3.8999999999999986},"--","--",null,null,null,null,null,null,null,null,null,"--","--",null,null,null,null,null,{"$f":"(Monthly!BT21/Monthly!BT20)-1","v":5.9572519472370633E-3},null,null,null,{"$f":"(Monthly!BX21/Monthly!BX20)-1","v":4.5018450184501901E-2},"--","--","--","--","--","--","--",null,"--","--",null,"--",{"$f":"(Monthly!CK21/Monthly!CK20)-1","v":8.1081081081080253E-3},{"$f":"(Monthly!CL21/Monthly!CL20)-1","v":7.9178885630498463E-2},{"$f":"(Monthly!CM21/Monthly!CM20)-1","v":0.11505273250239689},{"$f":"(Monthly!CN21/Monthly!CN20)-1","v":7.0681503414680158E-3},{"$f":"(Monthly!CO21/Monthly!CO20)-1","v":8.3449235048678183E-3},{"$f":"(Monthly!CP21/Monthly!CP20)-1","v":7.8872824927345153E-3},{"$f":"(Monthly!CQ21/Monthly!CQ20)-1","v":1.4776918900463176E-3},"--","--","--",null,null,null,null,null,{"$f":"(Monthly!CZ21/Monthly!CZ20)-1","v":0},{"$f":"(Monthly!DA21/Monthly!DA20)-1","v":0},null,null,null,null,null,"--","--",{"$f":"((Monthly!DI21-Monthly!DI20)*100)","v":-29.999999999999716},"--",{"$f":"((Monthly!DK21-Monthly!DK20)*100)","v":9.9999999999999645},{"$f":"Monthly!DL21-Monthly!DL20","v":142},null,null,null,{"$f":"Monthly!DP21-Monthly!DP20","v":276},null,null,null,"--","--","--","--","--","--","--","--","--","--",null,null,null,null,null,null,null,null,null,null,null,null,null,{"$f":"(Monthly!EQ21/Monthly!EQ20)-1","v":-3.1645569620253333E-3},"--",{"$f":"(Monthly!ES21/Monthly!ES20)-1","v":-3.0487804878046587E-3},null,null,null,null,null,{"$f":"((Monthly!EY21-Monthly!EY20)*100)","v":0},{"$f":"((Monthly!EZ21-Monthly!EZ20)*100)","v":2.0000000000000018},{"$f":"((Monthly!FA21-Monthly!FA20)*100)","v":-1.0000000000000675},{"$f":"((Monthly!FB21-Monthly!FB20)*100)","v":-2.0000000000000462},"--","--",{"$f":"((Monthly!FE21-Monthly!FE20)*100)","v":10.000000000000053},{"$f":"((Monthly!FF21-Monthly!FF20)*100)","v":0.99999999999997868},"--",{"$f":"((Monthly!FH21-Monthly!FH20)*100)","v":3.0000000000000249},{"$f":"((Monthly!FI21-Monthly!FI20)*100)","v":0},null,null,null,null,null,null,"--","--","--","--","--","--","--","--","--",null,null,null,null,null,{"$f":"(Monthly!GD21/Monthly!GD20)-1","v":0},"--","--","--","--","--","--","--","--"]
["1959-12-01",null,null,null,{"$f":"(Monthly!E22/Monthly!E21)-1","v":{"$error":"#DIV/0!"}},{"$f":"(Monthly!F22/Monthly!F21)-1","v":{"$error":"#DIV/0!"}},{"$f":"(Monthly!G22/Monthly!G21)-1","v":{"$error":"#DIV/0!"}},{"$f":"(Monthly!H22/Monthly!H21)-1","v":{"$error":"#DIV/0!"}},null,null,null,null,null,null,null,null,null,null,null,null,null,null,null,"--",{"$f":"(Monthly!Y22/Monthly!Y21)-1","v":1.5385887569836054E-2},null,null,null,null,null,null,null,null,null,null,null,null,null,{"$f":"(Monthly!AM22/Monthly!AM21)-1","v":6.1818562127959886E-2},"--","--","--",{"$f":"Monthly!AQ22-Monthly!AQ21","v":7.6000000000000014},"--","--",{"$f":"Monthly!AT22-Monthly!AT21","v":6},"--","--",{"$f":"Monthly!AW22-Monthly!AW21","v":5.7000000000000028},{"$f":"Monthly!AX22-Monthly!AX21","v":11.699999999999996},{"$f":"Monthly!AY22-Monthly!AY21","v":-1.4999999999999929},{"$f":"Monthly!AZ22-Monthly!AZ21","v":9.8000000000000043},{"$f":"Monthly!BA22-Monthly!BA21","v":-0.89999999999999858},"--","--",null,null,null,null,null,null,null,null,null,"--","--",null,null,null,null,null,{"$f":"(Monthly!BT22/Monthly!BT21)-1","v":1.4389762783875382E-2},null,null,null,{"$f":"(Monthly!BX22/Monthly!BX21)-1","v":0.13064971751412435},"--","--","--","--","--","--","--",null,"--","--",null,"--",{"$f":"(Monthly!CK22/Monthly!CK21)-1","v":1.072386058981234E-2},{"$f":"(Monthly!CL22/Monthly!CL21)-1","v":0.10054347826086962},{"$f":"(Monthly!CM22/Monthly!CM21)-1","v":0.21238177128116931},{"$f":"(Monthly!CN22/Monthly!CN21)-1","v":9.010290700431467E-3},{"$f":"(Monthly!CO22/Monthly!CO21)-1","v":1.0344827586206806E-2},{"$f":"(Monthly!CP22/Monthly!CP21)-1","v":2.2190061830684726E-2},{"$f":"(Monthly!CQ22/Monthly!CQ21)-1","v":1.2966616551439714E-3},"--","--","--",null,null,null,null,null,{"$f":"(Monthly!CZ22/Monthly!CZ21)-1","v":2.0442930153321548E-3},{"$f":"(Monthly!DA22/Monthly!DA21)-1","v":3.2894736842106198E-3},null,null,null,null,null,"--","--",{"$f":"((Monthly!DI22-Monthly!DI21)*100)","v":39.999999999999858},"--",{"$f":"((Monthly!DK22-Monthly!DK21)*100)","v":-50},{"$f":"Monthly!DL22-Monthly!DL21","v":273},null,null,null,{"$f":"Monthly!DP22-Monthly!DP21","v":540},null,null,null,"--","--","--","--","--","--","--","--","--","--",null,null,null,null,null,null,null,null,null,null,null,null,null,{"$f":"(Monthly!EQ22/Monthly!EQ21)-1","v":0},"--",{"$f":"(Monthly!ES22/Monthly!ES21)-1","v":0},null,null,null,null,null,{"$f":"((Monthly!EY22-Monthly!EY21)*100)","v":0},{"$f":"((Monthly!EZ22-Monthly!EZ21)*100)","v":-0.99999999999997868},{"$f":"((Monthly!FA22-Monthly!FA21)*100)","v":2.0000000000000462},{"$f":"((Monthly!FB22-Monthly!FB21)*100)","v":2.0000000000000462},"--","--",{"$f":"((Monthly!FE22-Monthly!FE21)*100)","v":33.999999999999986},{"$f":"((Monthly!FF22-Monthly!FF21)*100)","v":33.000000000000007},"--",{"$f":"((Monthly!FH22-Monthly!FH21)*100)","v":25.999999999999979},{"$f":"((Monthly!FI22-Monthly!FI21)*100)","v":16.000000000000014},null,null,null,null,null,null,"--","--","--","--","--","--","--","--","--",null,null,null,null,null,{"$f":"(Monthly!GD22/Monthly!GD21)-1","v":0},"--","--","--","--","--","--","--","--"]
["1960-01-01",null,null,null,{"$f":"(Monthly!E23/Monthly!E22)-1","v":{"$error":"#DIV/0!"}},{"$f":"(Monthly!F23/Monthly!F22)-1","v":{"$error":"#DIV/0!"}},{"$f":"(Monthly!G23/Monthly!G22)-1","v":{"$error":"#DIV/0!"}},{"$f":"(Monthly!H23/Monthly!H22)-1","v":{"$error":"#DIV/0!"}},null,null,null,null,null,null,null,null,null,null,null,null,null,null,null,"--",{"$f":"(Monthly!Y23/Monthly!Y22)-1","v":8.5485529302780083E-3},null,null,null,null,null,null,null,null,null,null,null,null,null,{"$f":"(Monthly!AM23/Monthly!AM22)-1","v":2.6253365289907515E-2},"--","--","--",{"$f":"Monthly!AQ23-Monthly!AQ22","v":3.2999999999999972},"--","--",{"$f":"Monthly!AT23-Monthly!AT22","v":6},"--","--",{"$f":"Monthly!AW23-Monthly!AW22","v":-0.80000000000000426},{"$f":"Monthly!AX23-Monthly!AX22","v":2.6000000000000085},{"$f":"Monthly!AY23-Monthly!AY22","v":0.19999999999999574},{"$f":"Monthly!AZ23-Monthly!AZ22","v":10.200000000000003},{"$f":"Monthly!BA23-Monthly!BA22","v":-7.5},"--","--",null,null,null,null,null,null,null,null,null,"--","--",null,null,null,null,null,{"$f":"(Monthly!BT23/Monthly!BT22)-1","v":8.6509934930567578E-3},null,null,null,{"$f":"(Monthly!BX23/Monthly!BX22)-1","v":-8.8069956277326722E-2},"--","--","--","--","--","--","--",null,"--","--",null,"--",{"$f":"(Monthly!CK23/Monthly!CK22)-1","v":3.8582107547624478E-3},{"$f":"(Monthly!CL23/Monthly!CL22)-1","v":7.4074074074073071E-3},{"$f":"(Monthly!CM23/Monthly!CM22)-1","v":-0.14113475177304968},{"$f":"(Monthly!CN23/Monthly!CN22)-1","v":3.3839357052216634E-3},{"$f":"(Monthly!CO23/Monthly!CO22)-1","v":1.3651877133105117E-3},{"$f":"(Monthly!CP23/Monthly!CP22)-1","v":8.7483284443745646E-5},{"$f":"(Monthly!CQ23/Monthly!CQ22)-1","v":1.3005643221157825E-3},"--","--","--",null,null,null,null,null,{"$f":"(Monthly!CZ23/Monthly!CZ22)-1","v":-1.3600816048963127E-3},{"$f":"(Monthly!DA23/Monthly!DA22)-1","v":0},null,null,null,null,null,"--","--",{"$f":"((Monthly!DI23-Monthly!DI22)*100)","v":-39.999999999999858},"--",{"$f":"((Monthly!DK23-Monthly!DK22)*100)","v":-9.9999999999999645},{"$f":"Monthly!DL23-Monthly!DL22","v":114},null,null,null,{"$f":"Monthly!DP23-Monthly!DP22","v":99},null,null,null,"--","--","--","--","--","--","--","--","--","--",null,null,null,null,null,null,null,null,null,null,null,null,null,{"$f":"(Monthly!EQ23/Monthly!EQ22)-1","v":3.1746031746031633E-3},"--",{"$f":"(Monthly!ES23/Monthly!ES22)-1","v":3.0581039755350758E-3},null,null,null,null,null,{"$f":"((Monthly!EY23-Monthly!EY22)*100)","v":0},{"$f":"((Monthly!EZ23-Monthly!EZ22)*100)","v":0},{"$f":"((Monthly!FA23-Monthly!FA22)*100)","v":3.0000000000000249},{"$f":"((Monthly!FB23-Monthly!FB22)*100)","v":5.9999999999999609},"--","--",{"$f":"((Monthly!FE23-Monthly!FE22)*100)","v":-14.000000000000057},{"$f":"((Monthly!FF23-Monthly!FF22)*100)","v":-10.999999999999943},"--",{"$f":"((Monthly!FH23-Monthly!FH22)*100)","v":-8.9999999999999858},{"$f":"((Monthly!FI23-Monthly!FI22)*100)","v":2.9999999999999361},null,null,null,null,null,null,"--","--","--","--","--","--","--","--","--",null,null,null,null,null,{"$f":"(Monthly!GD23/Monthly!GD22)-1","v":0},"--","--","--","--","--","--","--","--"]
["1960-02-01",null,null,null,{"$f":"(Monthly!E24/Monthly!E23)-1","v":{"$error":"#DIV/0!"}},{"$f":"(Monthly!F24/Monthly!F23)-1","v":{"$error":"#DIV/0!"}},{"$f":"(Monthly!G24/Monthly!G23)-1","v":{"$error":"#DIV/0!"}},{"$f":"(Monthly!H24/Monthly!H23)-1","v":{"$error":"#DIV/0!"}},null,null,null,null,null,null,null,null,null,null,null,null,null,null,null,"--",{"$f":"(Monthly!Y24/Monthly!Y23)-1","v":3.9894925698538142E-3},null,null,null,null,null,null,null,null,null,null,null,null,null,{"$f":"(Monthly!AM24/Monthly!AM23)-1","v":-8.8978289297411139E-3},"--","--","--",{"$f":"Monthly!AQ24-Monthly!AQ23","v":-9.2000000000000028},"--","--",{"$f":"Monthly!AT24-Monthly!AT23","v":-3.5999999999999943},"--","--",{"$f":"Monthly!AW24-Monthly!AW23","v":8.3000000000000043},{"$f":"Monthly!AX24-Monthly!AX23","v":-12.900000000000006},{"$f":"Monthly!AY24-Monthly!AY23","v":-2.8999999999999986},{"$f":"Monthly!AZ24-Monthly!AZ23","v":-13.300000000000004},{"$f":"Monthly!BA24-Monthly!BA23","v":-14.500000000000004},"--","--",null,null,null,null,null,null,null,null,null,"--","--",null,null,null,null,null,{"$f":"(Monthly!BT24/Monthly!BT23)-1","v":6.7724553858321546E-3},null,null,null,{"$f":"(Monthly!BX24/Monthly!BX23)-1","v":2.945205479452051E-2},{"$f":"(Monthly!BY24/Monthly!BY23)-1","v":-3.66300366300365E-3},"--","--","--","--","--","--",null,"--","--",null,"--",{"$f":"(Monthly!CK24/Monthly!CK23)-1","v":1.6814797021378336E-3},{"$f":"(Monthly!CL24/Monthly!CL23)-1","v":-3.9215686274509665E-2},{"$f":"(Monthly!CM24/Monthly!CM23)-1","v":-2.4772914946324942E-3},{"$f":"(Monthly!CN24/Monthly!CN23)-1","v":-2.8104360859992905E-4},{"$f":"(Monthly!CO24/Monthly!CO23)-1","v":2.7266530334015826E-3},{"$f":"(Monthly!CP24/Monthly!CP23)-1","v":6.2304072436965008E-3},{"$f":"(Monthly!CQ24/Monthly!CQ23)-1","v":1.1762344887560339E-3},"--","--","--",null,null,null,null,null,{"$f":"(Monthly!CZ24/Monthly!CZ23)-1","v":1.3619339462036528E-3},{"$f":"(Monthly!DA24/Monthly!DA23)-1","v":3.2786885245901232E-3},null,null,null,null,null,"--","--",{"$f":"((Monthly!DI24-Monthly!DI23)*100)","v":0},"--",{"$f":"((Monthly!DK24-Monthly!DK23)*100)","v":-40.000000000000036},{"$f":"Monthly!DL24-Monthly!DL23","v":78},null,null,null,{"$f":"Monthly!DP24-Monthly!DP23","v":239},null,null,null,"--","--","--","--","--","--","--","--","--","--",null,null,null,null,null,null,null,null,null,null,null,null,null,{"$f":"(Monthly!EQ24/Monthly!EQ23)-1","v":0},"--",{"$f":"(Monthly!ES24/Monthly!ES23)-1","v":3.0487804878049918E-3},null,null,null,null,null,{"$f":"((Monthly!EY24-Monthly!EY23)*100)","v":0},{"$f":"((Monthly!EZ24-Monthly!EZ23)*100)","v":-2.0000000000000018},{"$f":"((Monthly!FA24-Monthly!FA23)*100)","v":-5.0000000000000711},{"$f":"((Monthly!FB24-Monthly!FB23)*100)","v":0},"--","--",{"$f":"((Monthly!FE24-Monthly!FE23)*100)","v":-38.999999999999972},{"$f":"((Monthly!FF24-Monthly!FF23)*100)","v":-37.000000000000014},"--",{"$f":"((Monthly!FH24-Monthly!FH23)*100)","v":-22.999999999999954},{"$f":"((Monthly!FI24-Monthly!FI23)*100)","v":-22.999999999999954},null,null,null,null,null,null,"--","--","--","--","--","--","--","--","--",null,null,null,null,null,{"$f":"(Monthly!GD24/Monthly!GD23)-1","v":0},"--","--","--","--","--","--","--","--"]
["1960-03-01",null,null,null,{"$f":"(Monthly!E25/Monthly!E24)-1","v":{"$error":"#DIV/0!"}},{"$f":"(Monthly!F25/Monthly!F24)-1","v":{"$error":"#DIV/0!"}},{"$f":"(Monthly!G25/Monthly!G24)-1","v":{"$error":"#DIV/0!"}},{"$f":"(Monthly!H25/Monthly!H24)-1","v":{"$error":"#DIV/0!"}},null,null,null,null,null,null,null,null,null,null,null,null,null,null,null,"--",{"$f":"(Monthly!Y25/Monthly!Y24)-1","v":5.8008605782764455E-3},null,null,null,null,null,null,null,null,null,null,null,null,null,{"$f":"(Monthly!AM25/Monthly!AM24)-1","v":-8.9777110669959637E-3},"--","--","--",{"$f":"Monthly!AQ25-Monthly!AQ24","v":-4.5},"--","--",{"$f":"Monthly!AT25-Monthly!AT24","v":-9.2000000000000028},"--","--",{"$f":"Monthly!AW25-Monthly!AW24","v":-5.8999999999999986},{"$f":"Monthly!AX25-Monthly!AX24","v":-0.29999999999999716},{"$f":"Monthly!AY25-Monthly!AY24","v":-3.6000000000000014},{"$f":"Monthly!AZ25-Monthly!AZ24","v":-6.2000000000000028},{"$f":"Monthly!BA25-Monthly!BA24","v":-2.8999999999999986},"--","--",null,null,null,null,null,null,null,null,null,"--","--",null,null,null,null,null,{"$f":"(Monthly!BT25/Monthly!BT24)-1","v":8.228583587024163E-3},null,null,null,{"$f":"(Monthly!BX25/Monthly!BX24)-1","v":-0.26214238190286099},{"$f":"(Monthly!BY25/Monthly!BY24)-1","v":-0.12224264705882348},"--","--",{"$f":"Monthly!CB25-Monthly!CB24","v":0.70501946127385917},{"$f":"Monthly!CC25-Monthly!CC24","v":1.1250194612738582},"--","--",null,"--","--",null,"--",{"$f":"(Monthly!CK25/Monthly!CK24)-1","v":2.3980815347721673E-3},{"$f":"(Monthly!CL25/Monthly!CL24)-1","v":-0.10714285714285721},{"$f":"(Monthly!CM25/Monthly!CM24)-1","v":-0.2516556291390728},{"$f":"(Monthly!CN25/Monthly!CN24)-1","v":1.1244904652578658E-3},{"$f":"(Monthly!CO25/Monthly!CO24)-1","v":6.11828687967364E-3},{"$f":"(Monthly!CP25/Monthly!CP24)-1","v":8.8406553049253933E-3},{"$f":"(Monthly!CQ25/Monthly!CQ24)-1","v":1.0634921518732909E-3},"--","--","--",null,null,null,null,null,{"$f":"(Monthly!CZ25/Monthly!CZ24)-1","v":0},{"$f":"(Monthly!DA25/Monthly!DA24)-1","v":0},null,null,null,null,null,"--","--",{"$f":"((Monthly!DI25-Monthly!DI24)*100)","v":-60.000000000000142},"--",{"$f":"((Monthly!DK25-Monthly!DK24)*100)","v":60.000000000000057},{"$f":"Monthly!DL25-Monthly!DL24","v":-58},null,null,null,{"$f":"Monthly!DP25-Monthly!DP24","v":-55},null,null,null,"--","--","--","--","--","--","--","--","--","--",null,null,null,null,null,null,null,null,null,null,null,null,null,{"$f":"(Monthly!EQ25/Monthly!EQ24)-1","v":6.3291139240506666E-3},"--",{"$f":"(Monthly!ES25/Monthly!ES24)-1","v":0},null,null,null,null,null,{"$f":"((Monthly!EY25-Monthly!EY24)*100)","v":0},{"$f":"((Monthly!EZ25-Monthly!EZ24)*100)","v":-13.000000000000034},{"$f":"((Monthly!FA25-Monthly!FA24)*100)","v":-6.9999999999999396},{"$f":"((Monthly!FB25-Monthly!FB24)*100)","v":-8.9999999999999858},"--","--",{"$f":"((Monthly!FE25-Monthly!FE24)*100)","v":-64.999999999999986},{"$f":"((Monthly!FF25-Monthly!FF24)*100)","v":-64.000000000000057},"--",{"$f":"((Monthly!FH25-Monthly!FH24)*100)","v":-38.000000000000078},{"$f":"((Monthly!FI25-Monthly!FI24)*100)","v":-24.000000000000021},null,null,null,null,null,null,"--","--","--","--","--","--","--","--","--",null,null,null,null,null,{"$f":"(Monthly!GD25/Monthly!GD24)-1","v":0},"--","--","--","--","--","--","--","--"]
["1960-04-01",null,null,null,{"$f":"(Monthly!E26/Monthly!E25)-1","v":{"$error":"#DIV/0!"}},{"$f":"(Monthly!F26/Monthly!F25)-1","v":{"$error":"#DIV/0!"}},{"$f":"(Monthly!G26/Monthly!G25)-1","v":{"$error":"#DIV/0!"}},{"$f":"(Monthly!H26/Monthly!H25)-1","v":{"$error":"#DIV/0!"}},null,null,null,null,null,null,null,null,null,null,null,null,null,null,null,"--",{"$f":"(Monthly!Y26/Monthly!Y25)-1","v":1.2424409015942883E-2},null,null,null,null,null,null,null,null,null,null,null,null,null,{"$f":"(Monthly!AM26/Monthly!AM25)-1","v":-7.9271693857360104E-3},"--","--","--",{"$f":"Monthly!AQ26-Monthly!AQ25","v":-2.5},"--","--",{"$f":"Monthly!AT26-Monthly!AT25","v":-6},"--","--",{"$f":"Monthly!AW26-Monthly!AW25","v":-5.2000000000000028},{"$f":"Monthly!AX26-Monthly!AX25","v":-0.20000000000000284},{"$f":"Monthly!AY26-Monthly!AY25","v":3.1000000000000014},{"$f":"Monthly!AZ26-Monthly!AZ25","v":-2.6000000000000014},{"$f":"Monthly!BA26-Monthly!BA25","v":9.9999999999997868E-2},"--","--",null,null,null,null,null,null,null,null,null,"--","--",null,null,null,null,null,{"$f":"(Monthly!BT26/Monthly!BT25)-1","v":7.4593247647147809E-3},null,null,null,{"$f":"(Monthly!BX26/Monthly!BX25)-1","v":0.16230838593327324},{"$f":"(Monthly!BY26/Monthly!BY25)-1","v":6.3874345549738143E-2},"--","--",{"$f":"Monthly!CB26-Monthly!CB25","v":0.21355458503631297},{"$f":"Monthly!CC26-Monthly!CC25","v":7.355458503631418E-2},"--","--",null,"--","--",null,"--",{"$f":"(Monthly!CK26/Monthly!CK25)-1","v":7.1770334928229484E-3},{"$f":"(Monthly!CL26/Monthly!CL25)-1","v":-0.10571428571428565},{"$f":"(Monthly!CM26/Monthly!CM25)-1","v":0.16039823008849563},{"$f":"(Monthly!CN26/Monthly!CN25)-1","v":3.7908924977771985E-3},{"$f":"(Monthly!CO26/Monthly!CO25)-1","v":4.7297297297297369E-3},{"$f":"(Monthly!CP26/Monthly!CP25)-1","v":1.4921855902530368E-2},{"$f":"(Monthly!CQ26/Monthly!CQ25)-1","v":1.2181013193317547E-3},"--","--","--",null,null,null,null,null,{"$f":"(Monthly!CZ26/Monthly!CZ25)-1","v":4.4202652159128775E-3},{"$f":"(Monthly!DA26/Monthly!DA25)-1","v":0},null,null,null,null,null,"--","--",{"$f":"((Monthly!DI26-Monthly!DI25)*100)","v":100},"--",{"$f":"((Monthly!DK26-Monthly!DK25)*100)","v":-20.000000000000018},{"$f":"Monthly!DL26-Monthly!DL25","v":-53},null,null,null,{"$f":"Monthly!DP26-Monthly!DP25","v":354},null,null,null,"--","--","--","--","--","--","--","--","--","--",null,null,null,null,null,null,null,null,null,null,null,null,null,{"$f":"(Monthly!EQ26/Monthly!EQ25)-1","v":0},"--",{"$f":"(Monthly!ES26/Monthly!ES25)-1","v":-3.0395136778116338E-3},null,null,null,null,null,{"$f":"((Monthly!EY26-Monthly!EY25)*100)","v":0},{"$f":"((Monthly!EZ26-Monthly!EZ25)*100)","v":8.0000000000000071},{"$f":"((Monthly!FA26-Monthly!FA25)*100)","v":-4.0000000000000036},{"$f":"((Monthly!FB26-Monthly!FB25)*100)","v":-4.9999999999999822},"--","--",{"$f":"((Monthly!FE26-Monthly!FE25)*100)","v":-8.0000000000000071},{"$f":"((Monthly!FF26-Monthly!FF25)*100)","v":2.0000000000000462},"--",{"$f":"((Monthly!FH26-Monthly!FH25)*100)","v":-1.9999999999999574},{"$f":"((Monthly!FI26-Monthly!FI25)*100)","v":3.0000000000000249},null,null,null,null,null,null,"--","--","--","--","--","--","--","--","--",null,null,null,null,null,{"$f":"(Monthly!GD26/Monthly!GD25)-1","v":0},"--","--","--","--","--","--","--","--"]
["1960-05-01",null,null,null,{"$f":"(Monthly!E27/Monthly!E26)-1","v":{"$error":"#DIV/0!"}},{"$f":"(Monthly!F27/Monthly!F26)-1","v":{"$error":"#DIV/0!"}},{"$f":"(Monthly!G27/Monthly!G26)-1","v":{"$error":"#DIV/0!"}},{"$f":"(Monthly!H27/Monthly!H26)-1","v":{"$error":"#DIV/0!"}},null,null,null,null,null,null,null,null,null,null,null,null,null,null,null,"--",{"$f":"(Monthly!Y27/Monthly!Y26)-1","v":9.3150225100704365E-3},null,null,null,null,null,null,null,null,null,null,null,null,null,{"$f":"(Monthly!AM27/Monthly!AM26)-1","v":-1.1409153588547438E-3},"--","--","--",{"$f":"Monthly!AQ27-Monthly!AQ26","v":-2.6999999999999957},"--","--",{"$f":"Monthly!AT27-Monthly!AT26","v":0.5},"--","--",{"$f":"Monthly!AW27-Monthly!AW26","v":-3},{"$f":"Monthly!AX27-Monthly!AX26","v":-6.2000000000000028},{"$f":"Monthly!AY27-Monthly!AY26","v":-3.3999999999999986},{"$f":"Monthly!AZ27-Monthly!AZ26","v":-4.7999999999999972},{"$f":"Monthly!BA27-Monthly!BA26","v":3.3999999999999986},"--","--",null,null,null,null,null,null,null,null,null,"--","--",null,null,null,null,null,{"$f":"(Monthly!BT27/Monthly!BT26)-1","v":5.9780616417111077E-3},null,null,null,{"$f":"(Monthly!BX27/Monthly!BX26)-1","v":-1.3964313421256813E-2},{"$f":"(Monthly!BY27/Monthly!BY26)-1","v":3.5433070866141669E-2},"--","--",{"$f":"Monthly!CB27-Monthly!CB26","v":-0.20729827923501354},{"$f":"Monthly!CC27-Monthly!CC26","v":-0.27729827923501382},"--","--",null,"--","--",null,"--",{"$f":"(Monthly!CK27/Monthly!CK26)-1","v":3.5629453681709222E-3},{"$f":"(Monthly!CL27/Monthly!CL26)-1","v":0.2460063897763578},{"$f":"(Monthly!CM27/Monthly!CM26)-1","v":-3.8131553860819789E-2},{"$f":"(Monthly!CN27/Monthly!CN26)-1","v":2.331219694144071E-3},{"$f":"(Monthly!CO27/Monthly!CO26)-1","v":5.3799596503028013E-3},{"$f":"(Monthly!CP27/Monthly!CP26)-1","v":4.1516927331515241E-3},{"$f":"(Monthly!CQ27/Monthly!CQ26)-1","v":1.1943979956334783E-3},"--","--","--",null,null,null,null,null,{"$f":"(Monthly!CZ27/Monthly!CZ26)-1","v":1.0155721056195333E-3},{"$f":"(Monthly!DA27/Monthly!DA26)-1","v":0},null,null,null,null,null,"--","--",{"$f":"((Monthly!DI27-Monthly!DI26)*100)","v":0},"--",{"$f":"((Monthly!DK27-Monthly!DK26)*100)","v":-10.000000000000053},{"$f":"Monthly!DL27-Monthly!DL26","v":-79},null,null,null,{"$f":"Monthly!DP27-Monthly!DP26","v":-339},null,null,null,"--","--","--","--","--","--","--","--","--","--",null,null,null,null,null,null,null,null,null,null,null,null,null,{"$f":"(Monthly!EQ27/Monthly!EQ26)-1","v":-3.1446540880503138E-3},"--",{"$f":"(Monthly!ES27/Monthly!ES26)-1","v":-3.0487804878046587E-3},null,null,null,null,null,{"$f":"((Monthly!EY27-Monthly!EY26)*100)","v":0},{"$f":"((Monthly!EZ27-Monthly!EZ26)*100)","v":-6.999999999999984},{"$f":"((Monthly!FA27-Monthly!FA26)*100)","v":0.99999999999997868},{"$f":"((Monthly!FB27-Monthly!FB26)*100)","v":8.0000000000000071},"--","--",{"$f":"((Monthly!FE27-Monthly!FE26)*100)","v":6.0000000000000053},{"$f":"((Monthly!FF27-Monthly!FF26)*100)","v":16.999999999999993},"--",{"$f":"((Monthly!FH27-Monthly!FH26)*100)","v":20.000000000000018},{"$f":"((Monthly!FI27-Monthly!FI26)*100)","v":6.9999999999999396},null,null,null,null,null,null,"--","--","--","--","--","--","--","--","--",null,null,null,null,null,{"$f":"(Monthly!GD27/Monthly!GD26)-1","v":0},"--","--","--","--","--","--","--","--"]
["1960-06-01",null,null,null,{"$f":"(Monthly!E28/Monthly!E27)-1","v":{"$error":"#DIV/0!"}},{"$f":"(Monthly!F28/Monthly!F27)-1","v":{"$error":"#DIV/0!"}},{"$f":"(Monthly!G28/Monthly!G27)-1","v":{"$error":"#DIV/0!"}},{"$f":"(Monthly!H28/Monthly!H27)-1","v":{"$error":"#DIV/0!"}},null,null,null,null,null,null,null,null,null,null,null,null,null,null,null,"--",{"$f":"(Monthly!Y28/Monthly!Y27)-1","v":1.1341905381413664E-2},null,null,null,null,null,null,null,null,null,null,null,null,null,{"$f":"(Monthly!AM28/Monthly!AM27)-1","v":-1.2572621268273521E-2},"--","--","--",{"$f":"Monthly!AQ28-Monthly!AQ27","v":1.7999999999999972},"--","--",{"$f":"Monthly!AT28-Monthly!AT27","v":-2.7999999999999972},"--","--",{"$f":"Monthly!AW28-Monthly!AW27","v":1.3999999999999986},{"$f":"Monthly!AX28-Monthly!AX27","v":3.4000000000000057},{"$f":"Monthly!AY28-Monthly!AY27","v":-4.3999999999999986},{"$f":"Monthly!AZ28-Monthly!AZ27","v":3.5},{"$f":"Monthly!BA28-Monthly!BA27","v":2.5},"--","--",null,null,null,null,null,null,null,null,null,"--","--",null,null,null,null,null,{"$f":"(Monthly!BT28/Monthly!BT27)-1","v":6.1627790569627194E-3},null,null,null,{"$f":"(Monthly!BX28/Monthly!BX27)-1","v":-1.8882769472856054E-2},{"$f":"(Monthly!BY28/Monthly!BY27)-1","v":-8.9353612167300422E-2},"--","--",{"$f":"Monthly!CB28-Monthly!CB27","v":0.19255393950748978},{"$f":"Monthly!CC28-Monthly!CC27","v":0.40255393950748974},"--","--",null,"--","--",null,"--",{"$f":"(Monthly!CK28/Monthly!CK27)-1","v":9.4674556213014682E-4},{"$f":"(Monthly!CL28/Monthly!CL27)-1","v":7.692307692307665E-3},{"$f":"(Monthly!CM28/Monthly!CM27)-1","v":-5.94648166501488E-3},{"$f":"(Monthly!CN28/Monthly!CN27)-1","v":6.9773932458838672E-4},{"$f":"(Monthly!CO28/Monthly!CO27)-1","v":8.0267558528426264E-3},{"$f":"(Monthly!CP28/Monthly!CP27)-1","v":7.5253231178062929E-3},{"$f":"(Monthly!CQ28/Monthly!CQ27)-1","v":1.2318140959484136E-3},"--","--","--",null,null,null,null,null,{"$f":"(Monthly!CZ28/Monthly!CZ27)-1","v":1.352722353736846E-3},{"$f":"(Monthly!DA28/Monthly!DA27)-1","v":3.2679738562091387E-3},null,null,null,null,null,"--","--",{"$f":"((Monthly!DI28-Monthly!DI27)*100)","v":20.000000000000284},"--",{"$f":"((Monthly!DK28-Monthly!DK27)*100)","v":30.000000000000071},{"$f":"Monthly!DL28-Monthly!DL27","v":-109},null,null,null,{"$f":"Monthly!DP28-Monthly!DP27","v":-126},null,null,null,"--","--","--","--","--","--","--","--","--","--",null,null,null,null,null,null,null,null,null,null,null,null,null,{"$f":"(Monthly!EQ28/Monthly!EQ27)-1","v":0},"--",{"$f":"(Monthly!ES28/Monthly!ES27)-1","v":3.0581039755350758E-3},null,null,null,null,null,{"$f":"((Monthly!EY28-Monthly!EY27)*100)","v":0},{"$f":"((Monthly!EZ28-Monthly!EZ27)*100)","v":-53.000000000000028},{"$f":"((Monthly!FA28-Monthly!FA27)*100)","v":-0.99999999999997868},{"$f":"((Monthly!FB28-Monthly!FB27)*100)","v":-2.0000000000000462},"--","--",{"$f":"((Monthly!FE28-Monthly!FE27)*100)","v":-83},{"$f":"((Monthly!FF28-Monthly!FF27)*100)","v":-85.000000000000014},"--",{"$f":"((Monthly!FH28-Monthly!FH27)*100)","v":-37.000000000000014},{"$f":"((Monthly!FI28-Monthly!FI27)*100)","v":-19.999999999999929},null,null,null,null,null,null,"--","--","--","--","--","--","--","--","--",null,null,null,null,null,{"$f":"(Monthly!GD28/Monthly!GD27)-1","v":0},"--","--","--","--","--","--","--","--"]
["1960-07-01",null,null,null,{"$f":"(Monthly!E29/Monthly!E28)-1","v":{"$error":"#DIV/0!"}},{"$f":"(Monthly!F29/Monthly!F28)-1","v":{"$error":"#DIV/0!"}},{"$f":"(Monthly!G29/Monthly!G28)-1","v":{"$error":"#DIV/0!"}},{"$f":"(Monthly!H29/Monthly!H28)-1","v":{"$error":"#DIV/0!"}},null,null,null,null,null,null,null,null,null,null,null,null,null,null,null,"--",{"$f":"(Monthly!Y29/Monthly!Y28)-1","v":9.5269414165644051E-4},null,null,null,null,null,null,null,null,null,null,null,null,null,{"$f":"(Monthly!AM29/Monthly!AM28)-1","v":-3.470286194585559E-3},"--","--","--",{"$f":"Monthly!AQ29-Monthly!AQ28","v":-0.69999999999999574},"--","--",{"$f":"Monthly!AT29-Monthly!AT28","v":2.3999999999999986},"--","--",{"$f":"Monthly!AW29-Monthly!AW28","v":-2},{"$f":"Monthly!AX29-Monthly!AX28","v":-3.5},{"$f":"Monthly!AY29-Monthly!AY28","v":-2.7000000000000028},{"$f":"Monthly!AZ29-Monthly!AZ28","v":-0.29999999999999716},{"$f":"Monthly!BA29-Monthly!BA28","v":1},"--","--",null,null,null,null,null,null,null,null,null,"--","--",null,null,null,null,null,{"$f":"(Monthly!BT29/Monthly!BT28)-1","v":1.0081030310748806E-2},null,null,null,{"$f":"(Monthly!BX29/Monthly!BX28)-1","v":-4.0096230954290268E-2},{"$f":"(Monthly!BY29/Monthly!BY28)-1","v":4.2797494780793421E-2},"--","--",{"$f":"Monthly!CB29-Monthly!CB28","v":-0.24541011706350524},{"$f":"Monthly!CC29-Monthly!CC28","v":-0.17541011706350673},"--","--",null,"--","--",null,"--",{"$f":"(Monthly!CK29/Monthly!CK28)-1","v":2.8375502482858028E-3},{"$f":"(Monthly!CL29/Monthly!CL28)-1","v":-1.0178117048346036E-2},{"$f":"(Monthly!CM29/Monthly!CM28)-1","v":-5.5832502492522473E-2},{"$f":"(Monthly!CN29/Monthly!CN28)-1","v":7.902198670570737E-4},{"$f":"(Monthly!CO29/Monthly!CO28)-1","v":5.3085600530857757E-3},{"$f":"(Monthly!CP29/Monthly!CP28)-1","v":6.1588946873538664E-3},{"$f":"(Monthly!CQ29/Monthly!CQ28)-1","v":1.258008024650259E-3},"--","--","--",null,null,null,null,null,{"$f":"(Monthly!CZ29/Monthly!CZ28)-1","v":-2.0263424518742745E-3},{"$f":"(Monthly!DA29/Monthly!DA28)-1","v":-3.2573289902279035E-3},null,null,null,null,null,"--","--",{"$f":"((Monthly!DI29-Monthly!DI28)*100)","v":-20.000000000000284},"--",{"$f":"((Monthly!DK29-Monthly!DK28)*100)","v":9.9999999999999645},{"$f":"Monthly!DL29-Monthly!DL28","v":-53},null,null,null,{"$f":"Monthly!DP29-Monthly!DP28","v":-43},null,null,null,"--","--","--","--","--","--","--","--","--","--",null,null,null,null,null,null,null,null,null,null,null,null,null,{"$f":"(Monthly!EQ29/Monthly!EQ28)-1","v":0},"--",{"$f":"(Monthly!ES29/Monthly!ES28)-1","v":0},null,null,null,null,null,{"$f":"((Monthly!EY29-Monthly!EY28)*100)","v":0},{"$f":"((Monthly!EZ29-Monthly!EZ28)*100)","v":-8.9999999999999858},{"$f":"((Monthly!FA29-Monthly!FA28)*100)","v":-4.0000000000000036},{"$f":"((Monthly!FB29-Monthly!FB28)*100)","v":-4.0000000000000036},"--","--",{"$f":"((Monthly!FE29-Monthly!FE28)*100)","v":-16.000000000000014},{"$f":"((Monthly!FF29-Monthly!FF28)*100)","v":-15.99999999999997},"--",{"$f":"((Monthly!FH29-Monthly!FH28)*100)","v":-33.000000000000007},{"$f":"((Monthly!FI29-Monthly!FI28)*100)","v":-25.000000000000043},null,null,null,null,null,null,"--","--","--","--","--","--","--","--","--",null,null,null,null,null,{"$f":"(Monthly!GD29/Monthly!GD28)-1","v":0},"--","--","--","--","--","--","--","--"]
["1960-08-01",null,null,null,{"$f":"(Monthly!E30/Monthly!E29)-1","v":{"$error":"#DIV/0!"}},{"$f":"(Monthly!F30/Monthly!F29)-1","v":{"$error":"#DIV/0!"}},{"$f":"(Monthly!G30/Monthly!G29)-1","v":{"$error":"#DIV/0!"}},{"$f":"(Monthly!H30/Monthly!H29)-1","v":{"$error":"#DIV/0!"}},null,null,null,null,null,null,null,null,null,null,null,null,null,null,null,"--",{"$f":"(Monthly!Y30/Monthly!Y29)-1","v":-1.7127341421110387E-3},null,null,null,null,null,null,null,null,null,null,null,null,null,{"$f":"(Monthly!AM30/Monthly!AM29)-1","v":-1.1649658443706468E-3},"--","--","--",{"$f":"Monthly!AQ30-Monthly!AQ29","v":3.8999999999999986},"--","--",{"$f":"Monthly!AT30-Monthly!AT29","v":1.5},"--","--",{"$f":"Monthly!AW30-Monthly!AW29","v":-2.7999999999999972},{"$f":"Monthly!AX30-Monthly!AX29","v":9.8999999999999986},{"$f":"Monthly!AY30-Monthly!AY29","v":0.70000000000000284},{"$f":"Monthly!AZ30-Monthly!AZ29","v":2.0999999999999943},{"$f":"Monthly!BA30-Monthly!BA29","v":2.2000000000000028},"--","--",null,null,null,null,null,null,null,null,null,"--","--",null,null,null,null,null,{"$f":"(Monthly!BT30/Monthly!BT29)-1","v":9.3539324735911755E-3},null,null,null,{"$f":"(Monthly!BX30/Monthly!BX29)-1","v":0.12280701754385959},{"$f":"(Monthly!BY30/Monthly!BY29)-1","v":-5.0050050050050032E-3},"--","--",{"$f":"Monthly!CB30-Monthly!CB29","v":0.20139937008948294},{"$f":"Monthly!CC30-Monthly!CC29","v":0.27139937008948323},"--","--",null,"--","--",null,"--",{"$f":"(Monthly!CK30/Monthly!CK29)-1","v":1.1789672247111138E-3},{"$f":"(Monthly!CL30/Monthly!CL29)-1","v":-2.5706940874036244E-3},{"$f":"(Monthly!CM30/Monthly!CM29)-1","v":0.15205913410770866},{"$f":"(Monthly!CN30/Monthly!CN29)-1","v":-1.2076172782163885E-3},{"$f":"(Monthly!CO30/Monthly!CO29)-1","v":8.5808580858086625E-3},{"$f":"(Monthly!CP30/Monthly!CP29)-1","v":3.4129576640049564E-3},{"$f":"(Monthly!CQ30/Monthly!CQ29)-1","v":1.5165687907854331E-3},"--","--","--",null,null,null,null,null,{"$f":"(Monthly!CZ30/Monthly!CZ29)-1","v":2.0304568527917954E-3},{"$f":"(Monthly!DA30/Monthly!DA29)-1","v":0},null,null,null,null,null,"--","--",{"$f":"((Monthly!DI30-Monthly!DI29)*100)","v":0},"--",{"$f":"((Monthly!DK30-Monthly!DK29)*100)","v":9.9999999999999645},{"$f":"Monthly!DL30-Monthly!DL29","v":-53},null,null,null,{"$f":"Monthly!DP30-Monthly!DP29","v":-33},null,null,null,"--","--","--","--","--","--","--","--","--","--",null,null,null,null,null,null,null,null,null,null,null,null,null,{"$f":"(Monthly!EQ30/Monthly!EQ29)-1","v":-3.154574132492094E-3},"--",{"$f":"(Monthly!ES30/Monthly!ES29)-1","v":3.0487804878049918E-3},null,null,null,null,null,{"$f":"((Monthly!EY30-Monthly!EY29)*100)","v":-15.000000000000036},{"$f":"((Monthly!EZ30-Monthly!EZ29)*100)","v":-25},{"$f":"((Monthly!FA30-Monthly!FA29)*100)","v":-12.999999999999989},{"$f":"((Monthly!FB30-Monthly!FB29)*100)","v":-13.999999999999968},"--","--",{"$f":"((Monthly!FE30-Monthly!FE29)*100)","v":0},{"$f":"((Monthly!FF30-Monthly!FF29)*100)","v":-25},"--",{"$f":"((Monthly!FH30-Monthly!FH29)*100)","v":-16.999999999999993},{"$f":"((Monthly!FI30-Monthly!FI29)*100)","v":-10.000000000000009},null,null,null,null,null,null,"--","--","--","--","--","--","--","--","--",null,null,null,null,null,{"$f":"(Monthly!GD30/Monthly!GD29)-1","v":0},"--","--","--","--","--","--","--","--"]
["1960-09-01",null,null,null,{"$f":"(Monthly!E31/Monthly!E30)-1","v":{"$error":"#DIV/0!"}},{"$f":"(Monthly!F31/Monthly!F30)-1","v":{"$error":"#DIV/0!"}},{"$f":"(Monthly!G31/Monthly!G30)-1","v":{"$error":"#DIV/0!"}},{"$f":"(Monthly!H31/Monthly!H30)-1","v":{"$error":"#DIV/0!"}},null,null,null,null,null,null,null,null,null,null,null,null,null,null,null,"--",{"$f":"(Monthly!Y31/Monthly!Y30)-1","v":1.8318253643685445E-3},null,null,null,null,null,null,null,null,null,null,null,null,null,{"$f":"(Monthly!AM31/Monthly!AM30)-1","v":-1.0463478155451345E-2},"--","--","--",{"$f":"Monthly!AQ31-Monthly!AQ30","v":-2.2000000000000028},"--","--",{"$f":"Monthly!AT31-Monthly!AT30","v":-3.3999999999999986},"--","--",{"$f":"Monthly!AW31-Monthly!AW30","v":1.6999999999999957},{"$f":"Monthly!AX31-Monthly!AX30","v":-5.1000000000000014},{"$f":"Monthly!AY31-Monthly!AY30","v":-2.2000000000000028},{"$f":"Monthly!AZ31-Monthly!AZ30","v":-0.29999999999999716},{"$f":"Monthly!BA31-Monthly!BA30","v":-0.70000000000000284},"--","--",null,null,null,null,null,null,null,null,null,"--","--",null,null,null,null,null,{"$f":"(Monthly!BT31/Monthly!BT30)-1","v":7.6901757029483875E-3},null,null,null,{"$f":"(Monthly!BX31/Monthly!BX30)-1","v":-0.18377976190476186},{"$f":"(Monthly!BY31/Monthly!BY30)-1","v":-1.0060362173038184E-2},"--","--",{"$f":"Monthly!CB31-Monthly!CB30","v":-0.34284283228765933},{"$f":"Monthly!CC31-Monthly!CC30","v":-0.41284283228765872},"--","--",null,"--","--",null,"--",{"$f":"(Monthly!CK31/Monthly!CK30)-1","v":2.1196420160149998E-3},{"$f":"(Monthly!CL31/Monthly!CL30)-1","v":-2.5773195876288679E-2},{"$f":"(Monthly!CM31/Monthly!CM30)-1","v":-0.20714940421631534},{"$f":"(Monthly!CN31/Monthly!CN30)-1","v":1.6741071428572063E-3},{"$f":"(Monthly!CO31/Monthly!CO30)-1","v":9.8167539267015602E-3},{"$f":"(Monthly!CP31/Monthly!CP30)-1","v":7.0826095217413343E-3},{"$f":"(Monthly!CQ31/Monthly!CQ30)-1","v":1.6192765757550021E-3},"--","--","--",null,null,null,null,null,{"$f":"(Monthly!CZ31/Monthly!CZ30)-1","v":0},{"$f":"(Monthly!DA31/Monthly!DA30)-1","v":0},null,null,null,null,null,"--","--",{"$f":"((Monthly!DI31-Monthly!DI30)*100)","v":20.000000000000284},"--",{"$f":"((Monthly!DK31-Monthly!DK30)*100)","v":-9.9999999999999645},{"$f":"Monthly!DL31-Monthly!DL30","v":-30},null,null,null,{"$f":"Monthly!DP31-Monthly!DP30","v":-43},null,null,null,"--","--","--","--","--","--","--","--","--","--",null,null,null,null,null,null,null,null,null,null,null,null,null,{"$f":"(Monthly!EQ31/Monthly!EQ30)-1","v":0},"--",{"$f":"(Monthly!ES31/Monthly!ES30)-1","v":-9.1185410334345685E-3},null,null,null,null,null,{"$f":"((Monthly!EY31-Monthly!EY30)*100)","v":-34.999999999999964},{"$f":"((Monthly!EZ31-Monthly!EZ30)*100)","v":-37.999999999999986},{"$f":"((Monthly!FA31-Monthly!FA30)*100)","v":-3.0000000000000249},{"$f":"((Monthly!FB31-Monthly!FB30)*100)","v":-7.0000000000000284},"--","--",{"$f":"((Monthly!FE31-Monthly!FE30)*100)","v":18.000000000000014},{"$f":"((Monthly!FF31-Monthly!FF30)*100)","v":11.999999999999966},"--",{"$f":"((Monthly!FH31-Monthly!FH30)*100)","v":-1.0000000000000231},{"$f":"((Monthly!FI31-Monthly!FI30)*100)","v":0},null,null,null,null,null,null,"--","--","--","--","--","--","--","--","--",null,null,null,null,null,{"$f":"(Monthly!GD31/Monthly!GD30)-1","v":0},"--","--","--","--","--","--","--","--"]
["1960-10-01",null,null,null,{"$f":"(Monthly!E32/Monthly!E31)-1","v":{"$error":"#DIV/0!"}},{"$f":"(Monthly!F32/Monthly!F31)-1","v":{"$error":"#DIV/0!"}},{"$f":"(Monthly!G32/Monthly!G31)-1","v":{"$error":"#DIV/0!"}},{"$f":"(Monthly!H32/Monthly!H31)-1","v":{"$error":"#DIV/0!"}},null,null,null,null,null,null,null,null,null,null,null,null,null,null,null,"--",{"$f":"(Monthly!Y32/Monthly!Y31)-1","v":2.9975410984384165E-3},null,null,null,null,null,null,null,null,null,null,null,null,null,{"$f":"(Monthly!AM32/Monthly!AM31)-1","v":-1.1744328503231483E-3},"--","--","--",{"$f":"Monthly!AQ32-Monthly!AQ31","v":0.60000000000000142},"--","--",{"$f":"Monthly!AT32-Monthly!AT31","v":3.5},"--","--",{"$f":"Monthly!AW32-Monthly!AW31","v":-1.0999999999999943},{"$f":"Monthly!AX32-Monthly!AX31","v":-0.39999999999999858},{"$f":"Monthly!AY32-Monthly!AY31","v":-3.3999999999999986},{"$f":"Monthly!AZ32-Monthly!AZ31","v":1.2000000000000028},{"$f":"Monthly!BA32-Monthly!BA31","v":-1.0999999999999943},"--","--",null,null,null,null,null,null,null,null,null,"--","--",null,null,null,null,null,{"$f":"(Monthly!BT32/Monthly!BT31)-1","v":5.861137905253333E-3},null,null,null,{"$f":"(Monthly!BX32/Monthly!BX31)-1","v":0.13582497721057418},{"$f":"(Monthly!BY32/Monthly!BY31)-1","v":-1.2195121951219523E-2},"--","--",{"$f":"Monthly!CB32-Monthly!CB31","v":0.7320927794522305},{"$f":"Monthly!CC32-Monthly!CC31","v":1.1520927794522304},"--","--",null,"--","--",null,"--",{"$f":"(Monthly!CK32/Monthly!CK31)-1","v":3.9952996474734714E-3},{"$f":"(Monthly!CL32/Monthly!CL31)-1","v":-7.9365079365079083E-3},{"$f":"(Monthly!CM32/Monthly!CM31)-1","v":6.5895953757225456E-2},{"$f":"(Monthly!CN32/Monthly!CN31)-1","v":3.6211699164345745E-3},{"$f":"(Monthly!CO32/Monthly!CO31)-1","v":7.7770576798443791E-3},{"$f":"(Monthly!CP32/Monthly!CP31)-1","v":4.4521407503110844E-3},{"$f":"(Monthly!CQ32/Monthly!CQ31)-1","v":1.6001059380483795E-3},"--","--","--",null,null,null,null,null,{"$f":"(Monthly!CZ32/Monthly!CZ31)-1","v":4.7281323877068626E-3},{"$f":"(Monthly!DA32/Monthly!DA31)-1","v":6.5359477124182774E-3},null,null,null,null,null,"--","--",{"$f":"((Monthly!DI32-Monthly!DI31)*100)","v":-30.000000000000426},"--",{"$f":"((Monthly!DK32-Monthly!DK31)*100)","v":59.999999999999964},{"$f":"Monthly!DL32-Monthly!DL31","v":-99},null,null,null,{"$f":"Monthly!DP32-Monthly!DP31","v":-84},null,null,null,"--","--","--","--","--","--","--","--","--","--",null,null,null,null,null,null,null,null,null,null,null,null,null,{"$f":"(Monthly!EQ32/Monthly!EQ31)-1","v":3.1645569620253333E-3},"--",{"$f":"(Monthly!ES32/Monthly!ES31)-1","v":6.1349693251533388E-3},null,null,null,null,null,{"$f":"((Monthly!EY32-Monthly!EY31)*100)","v":0},{"$f":"((Monthly!EZ32-Monthly!EZ31)*100)","v":-12.999999999999989},{"$f":"((Monthly!FA32-Monthly!FA31)*100)","v":4.9999999999999822},{"$f":"((Monthly!FB32-Monthly!FB31)*100)","v":10.000000000000053},"--","--",{"$f":"((Monthly!FE32-Monthly!FE31)*100)","v":-18.000000000000014},{"$f":"((Monthly!FF32-Monthly!FF31)*100)","v":-2.9999999999999805},"--",{"$f":"((Monthly!FH32-Monthly!FH31)*100)","v":14.999999999999991},{"$f":"((Monthly!FI32-Monthly!FI31)*100)","v":9.0000000000000302},null,null,null,null,null,null,"--","--","--","--","--","--","--","--","--",null,null,null,null,null,{"$f":"(Monthly!GD32/Monthly!GD31)-1","v":0},"--","--","--","--","--","--","--","--"]
["1960-11-01",null,null,null,{"$f":"(Monthly!E33/Monthly!E32)-1","v":{"$error":"#DIV/0!"}},{"$f":"(Monthly!F33/Monthly!F32)-1","v":{"$error":"#DIV/0!"}},{"$f":"(Monthly!G33/Monthly!G32)-1","v":{"$error":"#DIV/0!"}},{"$f":"(Monthly!H33/Monthly!H32)-1","v":{"$error":"#DIV/0!"}},null,null,null,null,null,null,null,null,null,null,null,null,null,null,null,"--",{"$f":"(Monthly!Y33/Monthly!Y32)-1","v":3.8049642742752354E-3},null,null,null,null,null,null,null,null,null,null,null,null,null,{"$f":"(Monthly!AM33/Monthly!AM32)-1","v":-1.4118224267442692E-2},"--","--","--",{"$f":"Monthly!AQ33-Monthly!AQ32","v":-1.7000000000000028},"--","--",{"$f":"Monthly!AT33-Monthly!AT32","v":-0.70000000000000284},"--","--",{"$f":"Monthly!AW33-Monthly!AW32","v":2},{"$f":"Monthly!AX33-Monthly!AX32","v":-1.8999999999999986},{"$f":"Monthly!AY33-Monthly!AY32","v":1.8999999999999986},{"$f":"Monthly!AZ33-Monthly!AZ32","v":-5.6000000000000014},{"$f":"Monthly!BA33-Monthly!BA32","v":1.3999999999999986},"--","--",null,null,null,null,null,null,null,null,null,"--","--",null,null,null,null,null,{"$f":"(Monthly!BT33/Monthly!BT32)-1","v":4.521401557457283E-3},null,null,null,{"$f":"(Monthly!BX33/Monthly!BX32)-1","v":0},{"$f":"(Monthly!BY33/Monthly!BY32)-1","v":7.2016460905350854E-3},"--","--",{"$f":"Monthly!CB33-Monthly!CB32","v":0.10221465076660774},{"$f":"Monthly!CC33-Monthly!CC32","v":0.10221465076660685},"--","--",null,"--","--",null,"--",{"$f":"(Monthly!CK33/Monthly!CK32)-1","v":-1.1704119850187711E-3},{"$f":"(Monthly!CL33/Monthly!CL32)-1","v":-1.0666666666666602E-2},{"$f":"(Monthly!CM33/Monthly!CM32)-1","v":2.9284164859002093E-2},{"$f":"(Monthly!CN33/Monthly!CN32)-1","v":-4.5795170691090847E-3},{"$f":"(Monthly!CO33/Monthly!CO32)-1","v":1.2218649517685032E-2},{"$f":"(Monthly!CP33/Monthly!CP32)-1","v":4.1087390363749865E-3},{"$f":"(Monthly!CQ33/Monthly!CQ32)-1","v":1.4763562645982997E-3},"--","--","--",null,null,null,null,null,{"$f":"(Monthly!CZ33/Monthly!CZ32)-1","v":1.0084033613446675E-3},{"$f":"(Monthly!DA33/Monthly!DA32)-1","v":0},null,null,null,null,null,"--","--",{"$f":"((Monthly!DI33-Monthly!DI32)*100)","v":39.999999999999858},"--",{"$f":"((Monthly!DK33-Monthly!DK32)*100)","v":0},{"$f":"Monthly!DL33-Monthly!DL32","v":-119},null,null,null,{"$f":"Monthly!DP33-Monthly!DP32","v":-182},null,null,null,"--","--","--","--","--","--","--","--","--","--",null,null,null,null,null,null,null,null,null,null,null,null,null,{"$f":"(Monthly!EQ33/Monthly!EQ32)-1","v":0},"--",{"$f":"(Monthly!ES33/Monthly!ES32)-1","v":0},null,null,null,null,null,{"$f":"((Monthly!EY33-Monthly!EY32)*100)","v":0},{"$f":"((Monthly!EZ33-Monthly!EZ32)*100)","v":-3.0000000000000249},{"$f":"((Monthly!FA33-Monthly!FA32)*100)","v":0.99999999999997868},{"$f":"((Monthly!FB33-Monthly!FB32)*100)","v":-3.0000000000000249},"--","--",{"$f":"((Monthly!FE33-Monthly!FE32)*100)","v":7.0000000000000284},{"$f":"((Monthly!FF33-Monthly!FF32)*100)","v":4.0000000000000036},"--",{"$f":"((Monthly!FH33-Monthly!FH32)*100)","v":5.0000000000000266},{"$f":"((Monthly!FI33-Monthly!FI32)*100)","v":4.0000000000000036},null,null,null,null,null,null,"--","--","--","--","--","--","--","--","--",null,null,null,null,null,{"$f":"(Monthly!GD33/Monthly!GD32)-1","v":0},"--","--","--","--","--","--","--","--"]
["1960-12-01",null,null,null,{"$f":"(Monthly!E34/Monthly!E33)-1","v":{"$error":"#DIV/0!"}},{"$f":"(Monthly!F34/Monthly!F33)-1","v":{"$error":"#DIV/0!"}},{"$f":"(Monthly!G34/Monthly!G33)-1","v":{"$error":"#DIV/0!"}},{"$f":"(Monthly!H34/Monthly!H33)-1","v":{"$error":"#DIV/0!"}},null,null,null,null,null,null,null,null,null,null,null,null,null,null,null,"--",{"$f":"(Monthly!Y34/Monthly!Y33)-1","v":1.0133700552027669E-2},null,null,null,null,null,null,null,null,null,null,null,null,null,{"$f":"(Monthly!AM34/Monthly!AM33)-1","v":-1.9095300608338306E-2},"--","--","--",{"$f":"Monthly!AQ34-Monthly!AQ33","v":0},"--","--",{"$f":"Monthly!AT34-Monthly!AT33","v":-2.2999999999999972},"--","--",{"$f":"Monthly!AW34-Monthly!AW33","v":-2.4000000000000057},{"$f":"Monthly!AX34-Monthly!AX33","v":-0.70000000000000284},{"$f":"Monthly!AY34-Monthly!AY33","v":-0.29999999999999716},{"$f":"Monthly!AZ34-Monthly!AZ33","v":1.8999999999999986},{"$f":"Monthly!BA34-Monthly!BA33","v":2.7999999999999972},"--","--",null,null,null,null,null,null,null,null,null,"--","--",null,null,null,null,null,{"$f":"(Monthly!BT34/Monthly!BT33)-1","v":7.414848099130511E-3},null,null,null,{"$f":"(Monthly!BX34/Monthly!BX33)-1","v":-0.1468699839486356},{"$f":"(Monthly!BY34/Monthly!BY33)-1","v":-2.8600612870275821E-2},"--","--",{"$f":"Monthly!CB34-Monthly!CB33","v":0.39500494390821661},{"$f":"Monthly!CC34-Monthly!CC33","v":0.74500494390821714},"--","--",null,"--","--",null,"--",{"$f":"(Monthly!CK34/Monthly!CK33)-1","v":-4.9214905085539495E-3},{"$f":"(Monthly!CL34/Monthly!CL33)-1","v":5.6603773584905648E-2},{"$f":"(Monthly!CM34/Monthly!CM33)-1","v":-0.11380400421496317},{"$f":"(Monthly!CN34/Monthly!CN33)-1","v":-5.0652911380640875E-3},{"$f":"(Monthly!CO34/Monthly!CO33)-1","v":1.0800508259212194E-2},{"$f":"(Monthly!CP34/Monthly!CP33)-1","v":2.5269733106190184E-3},{"$f":"(Monthly!CQ34/Monthly!CQ33)-1","v":1.3531650861404732E-3},"--","--","--",null,null,null,null,null,{"$f":"(Monthly!CZ34/Monthly!CZ33)-1","v":1.007387508394908E-3},{"$f":"(Monthly!DA34/Monthly!DA33)-1","v":-3.2467532467532756E-3},null,null,null,null,null,"--","--",{"$f":"((Monthly!DI34-Monthly!DI33)*100)","v":-9.9999999999994316},"--",{"$f":"((Monthly!DK34-Monthly!DK33)*100)","v":50},{"$f":"Monthly!DL34-Monthly!DL33","v":-165},null,null,null,{"$f":"Monthly!DP34-Monthly!DP33","v":-218},null,null,null,"--","--","--","--","--","--","--","--","--","--",null,null,null,null,null,null,null,null,null,null,null,null,null,{"$f":"(Monthly!EQ34/Monthly!EQ33)-1","v":0},"--",{"$f":"(Monthly!ES34/Monthly!ES33)-1","v":0},null,null,null,null,null,{"$f":"((Monthly!EY34-Monthly!EY33)*100)","v":0},{"$f":"((Monthly!EZ34-Monthly!EZ33)*100)","v":-46},{"$f":"((Monthly!FA34-Monthly!FA33)*100)","v":4.0000000000000036},{"$f":"((Monthly!FB34-Monthly!FB33)*100)","v":1.9999999999999574},"--","--",{"$f":"((Monthly!FE34-Monthly!FE33)*100)","v":-12.000000000000011},{"$f":"((Monthly!FF34-Monthly!FF33)*100)","v":-22.000000000000021},"--",{"$f":"((Monthly!FH34-Monthly!FH33)*100)","v":-14.000000000000012},{"$f":"((Monthly!FI34-Monthly!FI33)*100)","v":-9.0000000000000302},null,null,null,null,null,null,"--","--","--","--","--","--","--","--","--",null,null,null,null,null,{"$f":"(Monthly!GD34/Monthly!GD33)-1","v":0},"--","--","--","--","--","--","--","--"]
["1961-01-01",null,null,null,{"$f":"(Monthly!E35/Monthly!E34)-1","v":{"$error":"#DIV/0!"}},{"$f":"(Monthly!F35/Monthly!F34)-1","v":{"$error":"#DIV/0!"}},{"$f":"(Monthly!G35/Monthly!G34)-1","v":{"$error":"#DIV/0!"}},{"$f":"(Monthly!H35/Monthly!H34)-1","v":{"$error":"#DIV/0!"}},null,null,null,null,null,null,null,null,null,null,null,null,null,null,null,"--",{"$f":"(Monthly!Y35/Monthly!Y34)-1","v":-1.6458813777903147E-3},null,null,null,null,null,null,null,null,null,null,null,null,null,{"$f":"(Monthly!AM35/Monthly!AM34)-1","v":1.2202429114382962E-3},"--","--","--",{"$f":"Monthly!AQ35-Monthly!AQ34","v":-0.39999999999999858},"--","--",{"$f":"Monthly!AT35-Monthly!AT34","v":-1},"--","--",{"$f":"Monthly!AW35-Monthly!AW34","v":1.2000000000000028},{"$f":"Monthly!AX35-Monthly!AX34","v":-0.29999999999999716},{"$f":"Monthly!AY35-Monthly!AY34","v":2.5},{"$f":"Monthly!AZ35-Monthly!AZ34","v":-0.20000000000000284},{"$f":"Monthly!BA35-Monthly!BA34","v":-1.1999999999999957},"--","--",null,null,null,null,null,null,null,null,null,"--","--",null,null,null,null,null,{"$f":"(Monthly!BT35/Monthly!BT34)-1","v":5.1757864531398745E-4},null,null,null,{"$f":"(Monthly!BX35/Monthly!BX34)-1","v":0.11288805268109114},{"$f":"(Monthly!BY35/Monthly!BY34)-1","v":1.8927444794952786E-2},"--","--",{"$f":"Monthly!CB35-Monthly!CB34","v":0.24019078189294696},{"$f":"Monthly!CC35-Monthly!CC34","v":0.24019078189294518},"--","--",null,"--","--",null,"--",{"$f":"(Monthly!CK35/Monthly!CK34)-1","v":9.8916627414036284E-3},{"$f":"(Monthly!CL35/Monthly!CL34)-1","v":7.9081632653061007E-2},{"$f":"(Monthly!CM35/Monthly!CM34)-1","v":6.7776456599286661E-2},{"$f":"(Monthly!CN35/Monthly!CN34)-1","v":1.0462400747314415E-2},{"$f":"(Monthly!CO35/Monthly!CO34)-1","v":7.5424261470773413E-3},{"$f":"(Monthly!CP35/Monthly!CP34)-1","v":1.0772124420869167E-2},{"$f":"(Monthly!CQ35/Monthly!CQ34)-1","v":1.345843266938429E-3},"--","--","--",null,null,null,null,null,{"$f":"(Monthly!CZ35/Monthly!CZ34)-1","v":1.0063737001007045E-3},{"$f":"(Monthly!DA35/Monthly!DA34)-1","v":3.2573289902280145E-3},null,null,null,null,null,"--","--",{"$f":"((Monthly!DI35-Monthly!DI34)*100)","v":-10.000000000000142},"--",{"$f":"((Monthly!DK35-Monthly!DK34)*100)","v":0},{"$f":"Monthly!DL35-Monthly!DL34","v":-84},null,null,null,{"$f":"Monthly!DP35-Monthly!DP34","v":-61},null,null,null,"--","--","--","--","--","--","--","--","--","--",null,null,null,null,null,null,null,null,null,null,null,null,null,{"$f":"(Monthly!EQ35/Monthly!EQ34)-1","v":3.154574132492094E-3},"--",{"$f":"(Monthly!ES35/Monthly!ES34)-1","v":3.0487804878049918E-3},null,null,null,null,null,{"$f":"((Monthly!EY35-Monthly!EY34)*100)","v":0},{"$f":"((Monthly!EZ35-Monthly!EZ34)*100)","v":-53},{"$f":"((Monthly!FA35-Monthly!FA34)*100)","v":-2.9999999999999361},{"$f":"((Monthly!FB35-Monthly!FB34)*100)","v":0},"--","--",{"$f":"((Monthly!FE35-Monthly!FE34)*100)","v":-0.99999999999997868},{"$f":"((Monthly!FF35-Monthly!FF34)*100)","v":-4.9999999999999822},"--",{"$f":"((Monthly!FH35-Monthly!FH34)*100)","v":0},{"$f":"((Monthly!FI35-Monthly!FI34)*100)","v":0},null,null,null,null,null,null,"--","--","--","--","--","--","--","--","--",null,null,null,null,null,{"$f":"(Monthly!GD35/Monthly!GD34)-1","v":0},"--","--","--","--","--","--","--","--"]
["1961-02-01",null,null,null,{"$f":"(Monthly!E36/Monthly!E35)-1","v":{"$error":"#DIV/0!"}},{"$f":"(Monthly!F36/Monthly!F35)-1","v":{"$error":"#DIV/0!"}},{"$f":"(Monthly!G36/Monthly!G35)-1","v":{"$error":"#DIV/0!"}},{"$f":"(Monthly!H36/Monthly!H35)-1","v":{"$error":"#DIV/0!"}},null,null,null,null,null,null,null,null,null,null,null,null,null,null,null,"--",{"$f":"(Monthly!Y36/Monthly!Y35)-1","v":-2.0339805594279392E-3},null,null,null,null,null,null,null,null,null,null,null,null,null,{"$f":"(Monthly!AM36/Monthly!AM35)-1","v":-1.2187557333938059E-3},"--","--","--",{"$f":"Monthly!AQ36-Monthly!AQ35","v":-0.29999999999999716},"--","--",{"$f":"Monthly!AT36-Monthly!AT35","v":-5.5},"--","--",{"$f":"Monthly!AW36-Monthly!AW35","v":-3.8999999999999986},{"$f":"Monthly!AX36-Monthly!AX35","v":1.5},{"$f":"Monthly!AY36-Monthly!AY35","v":1.1999999999999957},{"$f":"Monthly!AZ36-Monthly!AZ35","v":1.9000000000000057},{"$f":"Monthly!BA36-Monthly!BA35","v":1.8999999999999986},"--","--",null,null,null,null,null,null,null,null,null,"--","--",null,null,null,null,null,{"$f":"(Monthly!BT36/Monthly!BT35)-1","v":2.3666973503031485E-2},null,null,null,{"$f":"(Monthly!BX36/Monthly!BX35)-1","v":3.6348267117497945E-2},{"$f":"(Monthly!BY36/Monthly!BY35)-1","v":-8.2559339525283271E-3},"--","--",{"$f":"Monthly!CB36-Monthly!CB35","v":0.16181533847426977},{"$f":"Monthly!CC36-Monthly!CC35","v":0.37181533847427062},"--","--",null,"--","--",null,"--",{"$f":"(Monthly!CK36/Monthly!CK35)-1","v":4.897388059701413E-3},{"$f":"(Monthly!CL36/Monthly!CL35)-1","v":1.1820330969267046E-2},{"$f":"(Monthly!CM36/Monthly!CM35)-1","v":5.5679287305122394E-2},{"$f":"(Monthly!CN36/Monthly!CN35)-1","v":4.2525654063048091E-3},{"$f":"(Monthly!CO36/Monthly!CO35)-1","v":9.9812850904552608E-3},{"$f":"(Monthly!CP36/Monthly!CP35)-1","v":-5.9632218539390491E-3},{"$f":"(Monthly!CQ36/Monthly!CQ35)-1","v":1.2782041505976505E-3},"--","--","--",null,null,null,null,null,{"$f":"(Monthly!CZ36/Monthly!CZ35)-1","v":0},{"$f":"(Monthly!DA36/Monthly!DA35)-1","v":0},null,null,null,null,null,"--","--",{"$f":"((Monthly!DI36-Monthly!DI35)*100)","v":0},"--",{"$f":"((Monthly!DK36-Monthly!DK35)*100)","v":30.000000000000071},{"$f":"Monthly!DL36-Monthly!DL35","v":-62},null,null,null,{"$f":"Monthly!DP36-Monthly!DP35","v":-127},null,null,null,"--","--","--","--","--","--","--","--","--","--",null,null,null,null,null,null,null,null,null,null,null,null,null,{"$f":"(Monthly!EQ36/Monthly!EQ35)-1","v":0},"--",{"$f":"(Monthly!ES36/Monthly!ES35)-1","v":0},null,null,null,null,null,{"$f":"((Monthly!EY36-Monthly!EY35)*100)","v":0},{"$f":"((Monthly!EZ36-Monthly!EZ35)*100)","v":109.00000000000001},{"$f":"((Monthly!FA36-Monthly!FA35)*100)","v":-5.0000000000000711},{"$f":"((Monthly!FB36-Monthly!FB35)*100)","v":-2.9999999999999361},"--","--",{"$f":"((Monthly!FE36-Monthly!FE35)*100)","v":17.999999999999972},{"$f":"((Monthly!FF36-Monthly!FF35)*100)","v":12.000000000000011},"--",{"$f":"((Monthly!FH36-Monthly!FH35)*100)","v":-0.99999999999997868},{"$f":"((Monthly!FI36-Monthly!FI35)*100)","v":-6.0000000000000053},null,null,null,null,null,null,"--","--","--","--","--","--","--","--","--",null,null,null,null,null,{"$f":"(Monthly!GD36/Monthly!GD35)-1","v":0},"--","--","--","--","--","--","--","--"]
["1961-03-01",null,null,null,{"$f":"(Monthly!E37/Monthly!E36)-1","v":{"$error":"#DIV/0!"}},{"$f":"(Monthly!F37/Monthly!F36)-1","v":{"$error":"#DIV/0!"}},{"$f":"(Monthly!G37/Monthly!G36)-1","v":{"$error":"#DIV/0!"}},{"$f":"(Monthly!H37/Monthly!H36)-1","v":{"$error":"#DIV/0!"}},null,null,null,null,null,null,null,null,null,null,null,null,null,null,null,"--",{"$f":"(Monthly!Y37/Monthly!Y36)-1","v":2.4195297769027402E-3},null,null,null,null,null,null,null,null,null,null,null,null,null,{"$f":"(Monthly!AM37/Monthly!AM36)-1","v":6.0837200351639975E-3},"--","--","--",{"$f":"Monthly!AQ37-Monthly!AQ36","v":5.5},"--","--",{"$f":"Monthly!AT37-Monthly!AT36","v":8},"--","--",{"$f":"Monthly!AW37-Monthly!AW36","v":2.2999999999999972},{"$f":"Monthly!AX37-Monthly!AX36","v":6.5},{"$f":"Monthly!AY37-Monthly!AY36","v":-9.9999999999994316E-2},{"$f":"Monthly!AZ37-Monthly!AZ36","v":6.1999999999999957},{"$f":"Monthly!BA37-Monthly!BA36","v":1},"--","--",null,null,null,null,null,null,null,null,null,"--","--",null,null,null,null,null,{"$f":"(Monthly!BT37/Monthly!BT36)-1","v":1.7137336504161826E-2},null,null,null,{"$f":"(Monthly!BX37/Monthly!BX36)-1","v":7.0146818923327858E-2},{"$f":"(Monthly!BY37/Monthly!BY36)-1","v":4.0582726326742868E-2},"--","--",{"$f":"Monthly!CB37-Monthly!CB36","v":0},{"$f":"Monthly!CC37-Monthly!CC36","v":0},"--","--",null,"--","--",null,"--",{"$f":"(Monthly!CK37/Monthly!CK36)-1","v":3.2490136922720403E-3},{"$f":"(Monthly!CL37/Monthly!CL36)-1","v":-6.3084112149532579E-2},{"$f":"(Monthly!CM37/Monthly!CM36)-1","v":9.493670886076E-3},{"$f":"(Monthly!CN37/Monthly!CN36)-1","v":4.05044646966779E-3},{"$f":"(Monthly!CO37/Monthly!CO36)-1","v":8.6473131562694316E-3},{"$f":"(Monthly!CP37/Monthly!CP36)-1","v":2.4108731373353454E-3},{"$f":"(Monthly!CQ37/Monthly!CQ36)-1","v":1.2163050624589555E-3},"--","--","--",null,null,null,null,null,{"$f":"(Monthly!CZ37/Monthly!CZ36)-1","v":0},{"$f":"(Monthly!DA37/Monthly!DA36)-1","v":3.2467532467532756E-3},null,null,null,null,null,"--","--",{"$f":"((Monthly!DI37-Monthly!DI36)*100)","v":10.000000000000142},"--",{"$f":"((Monthly!DK37-Monthly!DK36)*100)","v":0},{"$f":"Monthly!DL37-Monthly!DL36","v":1},null,null,null,{"$f":"Monthly!DP37-Monthly!DP36","v":106},null,null,null,"--","--","--","--","--","--","--","--","--","--",null,null,null,null,null,null,null,null,null,null,null,null,null,{"$f":"(Monthly!EQ37/Monthly!EQ36)-1","v":0},"--",{"$f":"(Monthly!ES37/Monthly!ES36)-1","v":0},null,null,null,null,null,{"$f":"((Monthly!EY37-Monthly!EY36)*100)","v":0},{"$f":"((Monthly!EZ37-Monthly!EZ36)*100)","v":-52},{"$f":"((Monthly!FA37-Monthly!FA36)*100)","v":-4.9999999999999822},{"$f":"((Monthly!FB37-Monthly!FB36)*100)","v":-5.0000000000000711},"--","--",{"$f":"((Monthly!FE37-Monthly!FE36)*100)","v":-2.9999999999999805},{"$f":"((Monthly!FF37-Monthly!FF36)*100)","v":-5.0000000000000266},"--",{"$f":"((Monthly!FH37-Monthly!FH36)*100)","v":-6.0000000000000053},{"$f":"((Monthly!FI37-Monthly!FI36)*100)","v":-3.9999999999999591},null,null,null,null,null,null,"--","--","--","--","--","--","--","--","--",null,null,null,null,null,{"$f":"(Monthly!GD37/Monthly!GD36)-1","v":0},"--","--","--","--","--","--","--","--"]
["1961-04-01",null,null,null,{"$f":"(Monthly!E38/Monthly!E37)-1","v":{"$error":"#DIV/0!"}},{"$f":"(Monthly!F38/Monthly!F37)-1","v":{"$error":"#DIV/0!"}},{"$f":"(Monthly!G38/Monthly!G37)-1","v":{"$error":"#DIV/0!"}},{"$f":"(Monthly!H38/Monthly!H37)-1","v":{"$error":"#DIV/0!"}},null,null,null,null,null,null,null,null,null,null,null,null,null,null,null,"--",{"$f":"(Monthly!Y38/Monthly!Y37)-1","v":3.826233359808473E-3},null,null,null,null,null,null,null,null,null,null,null,null,null,{"$f":"(Monthly!AM38/Monthly!AM37)-1","v":2.0557830581566128E-2},"--","--","--",{"$f":"Monthly!AQ38-Monthly!AQ37","v":8.5},"--","--",{"$f":"Monthly!AT38-Monthly!AT37","v":11},"--","--",{"$f":"Monthly!AW38-Monthly!AW37","v":2.3999999999999986},{"$f":"Monthly!AX38-Monthly!AX37","v":12.5},{"$f":"Monthly!AY38-Monthly!AY37","v":1.5999999999999943},{"$f":"Monthly!AZ38-Monthly!AZ37","v":6.3000000000000043},{"$f":"Monthly!BA38-Monthly!BA37","v":5.3999999999999986},"--","--",null,null,null,null,null,null,null,null,null,"--","--",null,null,null,null,null,{"$f":"(Monthly!BT38/Monthly!BT37)-1","v":-8.8078850846813328E-3},null,null,null,{"$f":"(Monthly!BX38/Monthly!BX37)-1","v":-0.11128048780487809},{"$f":"(Monthly!BY38/Monthly!BY37)-1","v":2.0000000000000018E-3},"--","--",{"$f":"Monthly!CB38-Monthly!CB37","v":-0.44807283020594912},{"$f":"Monthly!CC38-Monthly!CC37","v":-0.37807283020594795},"--","--",null,"--","--",null,"--",{"$f":"(Monthly!CK38/Monthly!CK37)-1","v":1.8505667360628753E-3},{"$f":"(Monthly!CL38/Monthly!CL37)-1","v":1.9950124688279169E-2},{"$f":"(Monthly!CM38/Monthly!CM37)-1","v":-8.1504702194357348E-2},{"$f":"(Monthly!CN38/Monthly!CN37)-1","v":2.3837902264600697E-3},{"$f":"(Monthly!CO38/Monthly!CO37)-1","v":6.1236987140231847E-3},{"$f":"(Monthly!CP38/Monthly!CP37)-1","v":-6.2789986022777633E-3},{"$f":"(Monthly!CQ38/Monthly!CQ37)-1","v":1.3680489433189891E-3},"--","--","--",null,null,null,null,null,{"$f":"(Monthly!CZ38/Monthly!CZ37)-1","v":-1.0053619302949901E-3},{"$f":"(Monthly!DA38/Monthly!DA37)-1","v":0},null,null,null,null,null,"--","--",{"$f":"((Monthly!DI38-Monthly!DI37)*100)","v":-40.000000000000568},"--",{"$f":"((Monthly!DK38-Monthly!DK37)*100)","v":9.9999999999999645},{"$f":"Monthly!DL38-Monthly!DL37","v":23},null,null,null,{"$f":"Monthly!DP38-Monthly!DP37","v":-36},null,null,null,"--","--","--","--","--","--","--","--","--","--",null,null,null,null,null,null,null,null,null,null,null,null,null,{"$f":"(Monthly!EQ38/Monthly!EQ37)-1","v":-6.2893081761006275E-3},"--",{"$f":"(Monthly!ES38/Monthly!ES37)-1","v":0},null,null,null,null,null,{"$f":"((Monthly!EY38-Monthly!EY37)*100)","v":0},{"$f":"((Monthly!EZ38-Monthly!EZ37)*100)","v":-53},{"$f":"((Monthly!FA38-Monthly!FA37)*100)","v":3.0000000000000249},{"$f":"((Monthly!FB38-Monthly!FB37)*100)","v":-0.99999999999997868},"--","--",{"$f":"((Monthly!FE38-Monthly!FE37)*100)","v":-10.000000000000009},{"$f":"((Monthly!FF38-Monthly!FF37)*100)","v":0},"--",{"$f":"((Monthly!FH38-Monthly!FH37)*100)","v":-3.0000000000000249},{"$f":"((Monthly!FI38-Monthly!FI37)*100)","v":3.9999999999999591},null,null,null,null,null,null,"--","--","--","--","--","--","--","--","--",null,null,null,null,null,{"$f":"(Monthly!GD38/Monthly!GD37)-1","v":0},"--","--","--","--","--","--","--","--"]
["1961-05-01",null,null,null,{"$f":"(Monthly!E39/Monthly!E38)-1","v":{"$error":"#DIV/0!"}},{"$f":"(Monthly!F39/Monthly!F38)-1","v":{"$error":"#DIV/0!"}},{"$f":"(Monthly!G39/Monthly!G38)-1","v":{"$error":"#DIV/0!"}},{"$f":"(Monthly!H39/Monthly!H38)-1","v":{"$error":"#DIV/0!"}},null,null,null,null,null,null,null,null,null,null,null,null,null,null,null,"--",{"$f":"(Monthly!Y39/Monthly!Y38)-1","v":-1.8596299218007761E-3},null,null,null,null,null,null,null,null,null,null,null,null,null,{"$f":"(Monthly!AM39/Monthly!AM38)-1","v":1.5402767897837455E-2},"--","--","--",{"$f":"Monthly!AQ39-Monthly!AQ38","v":1.2999999999999972},"--","--",{"$f":"Monthly!AT39-Monthly!AT38","v":3.0999999999999943},"--","--",{"$f":"Monthly!AW39-Monthly!AW38","v":2.7000000000000028},{"$f":"Monthly!AX39-Monthly!AX38","v":-2.9000000000000057},{"$f":"Monthly!AY39-Monthly!AY38","v":3.2000000000000028},{"$f":"Monthly!AZ39-Monthly!AZ38","v":4.8999999999999915},{"$f":"Monthly!BA39-Monthly!BA38","v":0.39999999999999858},"--","--",null,null,null,null,null,null,null,null,null,"--","--",null,null,null,null,null,{"$f":"(Monthly!BT39/Monthly!BT38)-1","v":-6.4314962719436153E-3},null,null,null,{"$f":"(Monthly!BX39/Monthly!BX38)-1","v":5.3173241852487063E-2},{"$f":"(Monthly!BY39/Monthly!BY38)-1","v":2.4950099800399306E-2},"--","--",{"$f":"Monthly!CB39-Monthly!CB38","v":9.9072693714840732E-2},{"$f":"Monthly!CC39-Monthly!CC38","v":0.16907269371484013},"--","--",null,"--","--",null,"--",{"$f":"(Monthly!CK39/Monthly!CK38)-1","v":8.0812745324405633E-3},{"$f":"(Monthly!CL39/Monthly!CL38)-1","v":2.2004889975550057E-2},{"$f":"(Monthly!CM39/Monthly!CM38)-1","v":6.7121729237770156E-2},{"$f":"(Monthly!CN39/Monthly!CN38)-1","v":7.6374279703650405E-3},{"$f":"(Monthly!CO39/Monthly!CO38)-1","v":7.3037127206330155E-3},{"$f":"(Monthly!CP39/Monthly!CP38)-1","v":1.7278143148915515E-3},{"$f":"(Monthly!CQ39/Monthly!CQ38)-1","v":1.2295619480633402E-3},"--","--","--",null,null,null,null,null,{"$f":"(Monthly!CZ39/Monthly!CZ38)-1","v":1.0063737001007045E-3},{"$f":"(Monthly!DA39/Monthly!DA38)-1","v":0},null,null,null,null,null,"--","--",{"$f":"((Monthly!DI39-Monthly!DI38)*100)","v":10.000000000000142},"--",{"$f":"((Monthly!DK39-Monthly!DK38)*100)","v":9.9999999999999645},{"$f":"Monthly!DL39-Monthly!DL38","v":107},null,null,null,{"$f":"Monthly!DP39-Monthly!DP38","v":159},null,null,null,"--","--","--","--","--","--","--","--","--","--",null,null,null,null,null,null,null,null,null,null,null,null,null,{"$f":"(Monthly!EQ39/Monthly!EQ38)-1","v":-3.1645569620253333E-3},"--",{"$f":"(Monthly!ES39/Monthly!ES38)-1","v":0},null,null,null,null,null,{"$f":"((Monthly!EY39-Monthly!EY38)*100)","v":0},{"$f":"((Monthly!EZ39-Monthly!EZ38)*100)","v":49},{"$f":"((Monthly!FA39-Monthly!FA38)*100)","v":1.9999999999999574},{"$f":"((Monthly!FB39-Monthly!FB38)*100)","v":0},"--","--",{"$f":"((Monthly!FE39-Monthly!FE38)*100)","v":0},{"$f":"((Monthly!FF39-Monthly!FF38)*100)","v":-0.99999999999997868},"--",{"$f":"((Monthly!FH39-Monthly!FH38)*100)","v":-9.9999999999999645},{"$f":"((Monthly!FI39-Monthly!FI38)*100)","v":-6.999999999999984},null,null,null,null,null,null,"--","--","--","--","--","--","--","--","--",null,null,null,null,null,{"$f":"(Monthly!GD39/Monthly!GD38)-1","v":0},"--","--","--","--","--","--","--","--"]
["1961-06-01",null,null,null,{"$f":"(Monthly!E40/Monthly!E39)-1","v":{"$error":"#DIV/0!"}},{"$f":"(Monthly!F40/Monthly!F39)-1","v":{"$error":"#DIV/0!"}},{"$f":"(Monthly!G40/Monthly!G39)-1","v":{"$error":"#DIV/0!"}},{"$f":"(Monthly!H40/Monthly!H39)-1","v":{"$error":"#DIV/0!"}},null,null,null,null,null,null,null,null,null,null,null,null,null,null,null,"--",{"$f":"(Monthly!Y40/Monthly!Y39)-1","v":7.5401930023590857E-3},null,null,null,null,null,null,null,null,null,null,null,null,null,{"$f":"(Monthly!AM40/Monthly!AM39)-1","v":1.4002911330276646E-2},"--","--","--",{"$f":"Monthly!AQ40-Monthly!AQ39","v":-0.79999999999999716},"--","--",{"$f":"Monthly!AT40-Monthly!AT39","v":-1.1999999999999957},"--","--",{"$f":"Monthly!AW40-Monthly!AW39","v":-2},{"$f":"Monthly!AX40-Monthly!AX39","v":-0.79999999999999716},{"$f":"Monthly!AY40-Monthly!AY39","v":-5},{"$f":"Monthly!AZ40-Monthly!AZ39","v":-1.2999999999999972},{"$f":"Monthly!BA40-Monthly!BA39","v":1.3999999999999986},"--","--",null,null,null,null,null,null,null,null,null,"--","--",null,null,null,null,null,{"$f":"(Monthly!BT40/Monthly!BT39)-1","v":3.4609905926343831E-3},null,null,null,{"$f":"(Monthly!BX40/Monthly!BX39)-1","v":0.12540716612377856},{"$f":"(Monthly!BY40/Monthly!BY39)-1","v":4.1869522882181043E-2},"--","--",{"$f":"Monthly!CB40-Monthly!CB39","v":-0.33632298222054846},{"$f":"Monthly!CC40-Monthly!CC39","v":-0.47632298222054636},"--","--",null,"--","--",null,"--",{"$f":"(Monthly!CK40/Monthly!CK39)-1","v":1.0077874484654137E-2},{"$f":"(Monthly!CL40/Monthly!CL39)-1","v":7.8947368421052655E-2},{"$f":"(Monthly!CM40/Monthly!CM39)-1","v":7.7825159914712172E-2},{"$f":"(Monthly!CN40/Monthly!CN39)-1","v":1.0620432986883088E-2},{"$f":"(Monthly!CO40/Monthly!CO39)-1","v":9.0634441087613649E-3},{"$f":"(Monthly!CP40/Monthly!CP39)-1","v":2.5772810432753701E-3},{"$f":"(Monthly!CQ40/Monthly!CQ39)-1","v":1.2826320701682103E-3},"--","--","--",null,null,null,null,null,{"$f":"(Monthly!CZ40/Monthly!CZ39)-1","v":0},{"$f":"(Monthly!DA40/Monthly!DA39)-1","v":3.2362459546926292E-3},null,null,null,null,null,"--","--",{"$f":"((Monthly!DI40-Monthly!DI39)*100)","v":30.000000000000426},"--",{"$f":"((Monthly!DK40-Monthly!DK39)*100)","v":-19.999999999999929},{"$f":"Monthly!DL40-Monthly!DL39","v":49},null,null,null,{"$f":"Monthly!DP40-Monthly!DP39","v":192},null,null,null,"--","--","--","--","--","--","--","--","--","--",null,null,null,null,null,null,null,null,null,null,null,null,null,{"$f":"(Monthly!EQ40/Monthly!EQ39)-1","v":-6.3492063492063266E-3},"--",{"$f":"(Monthly!ES40/Monthly!ES39)-1","v":0},null,null,null,null,null,{"$f":"((Monthly!EY40-Monthly!EY39)*100)","v":0},{"$f":"((Monthly!EZ40-Monthly!EZ39)*100)","v":-25},{"$f":"((Monthly!FA40-Monthly!FA39)*100)","v":6.0000000000000497},{"$f":"((Monthly!FB40-Monthly!FB39)*100)","v":2.0000000000000462},"--","--",{"$f":"((Monthly!FE40-Monthly!FE39)*100)","v":4.0000000000000036},{"$f":"((Monthly!FF40-Monthly!FF39)*100)","v":18.999999999999993},"--",{"$f":"((Monthly!FH40-Monthly!FH39)*100)","v":33.999999999999986},{"$f":"((Monthly!FI40-Monthly!FI39)*100)","v":16.999999999999993},null,null,null,null,null,null,"--","--","--","--","--","--","--","--","--",null,null,null,null,null,{"$f":"(Monthly!GD40/Monthly!GD39)-1","v":0},"--","--","--","--","--","--","--","--"]
["1961-07-01",null,null,null,{"$f":"(Monthly!E41/Monthly!E40)-1","v":{"$error":"#DIV/0!"}},{"$f":"(Monthly!F41/Monthly!F40)-1","v":{"$error":"#DIV/0!"}},{"$f":"(Monthly!G41/Monthly!G40)-1","v":{"$error":"#DIV/0!"}},{"$f":"(Monthly!H41/Monthly!H40)-1","v":{"$error":"#DIV/0!"}},null,null,null,null,null,null,null,null,null,null,null,null,null,null,null,"--",{"$f":"(Monthly!Y41/Monthly!Y40)-1","v":3.0481556773664931E-3},null,null,null,null,null,null,null,null,null,null,null,null,null,{"$f":"(Monthly!AM41/Monthly!AM40)-1","v":1.1505189953540551E-2},"--","--","--",{"$f":"Monthly!AQ41-Monthly!AQ40","v":0.10000000000000142},"--","--",{"$f":"Monthly!AT41-Monthly!AT40","v":-1},"--","--",{"$f":"Monthly!AW41-Monthly!AW40","v":3.2999999999999972},{"$f":"Monthly!AX41-Monthly!AX40","v":0.5},{"$f":"Monthly!AY41-Monthly!AY40","v":0.89999999999999858},{"$f":"Monthly!AZ41-Monthly!AZ40","v":-1},{"$f":"Monthly!BA41-Monthly!BA40","v":0.10000000000000142},"--","--",null,null,null,null,null,null,null,null,null,"--","--",null,null,null,null,null,{"$f":"(Monthly!BT41/Monthly!BT40)-1","v":3.6819477355651831E-3},null,null,null,{"$f":"(Monthly!BX41/Monthly!BX40)-1","v":-3.4008683068017409E-2},{"$f":"(Monthly!BY41/Monthly!BY40)-1","v":1.2149532710280297E-2},"--","--",{"$f":"Monthly!CB41-Monthly!CB40","v":0.57535045266981921},{"$f":"Monthly!CC41-Monthly!CC40","v":0.64535045266982038},"--","--",null,"--","--",null,"--",{"$f":"(Monthly!CK41/Monthly!CK40)-1","v":5.2154195011338E-3},{"$f":"(Monthly!CL41/Monthly!CL40)-1","v":5.5432372505543226E-2},{"$f":"(Monthly!CM41/Monthly!CM40)-1","v":-6.923837784371889E-3},{"$f":"(Monthly!CN41/Monthly!CN40)-1","v":3.4580320653883057E-3},{"$f":"(Monthly!CO41/Monthly!CO40)-1","v":5.3892215568862589E-3},{"$f":"(Monthly!CP41/Monthly!CP40)-1","v":1.0143399828954625E-3},{"$f":"(Monthly!CQ41/Monthly!CQ40)-1","v":1.3027931011926341E-3},"--","--","--",null,null,null,null,null,{"$f":"(Monthly!CZ41/Monthly!CZ40)-1","v":2.6809651474530849E-3},{"$f":"(Monthly!DA41/Monthly!DA40)-1","v":0},null,null,null,null,null,"--","--",{"$f":"((Monthly!DI41-Monthly!DI40)*100)","v":-40.000000000000568},"--",{"$f":"((Monthly!DK41-Monthly!DK40)*100)","v":9.9999999999999645},{"$f":"Monthly!DL41-Monthly!DL40","v":48},null,null,null,{"$f":"Monthly!DP41-Monthly!DP40","v":146},null,null,null,"--","--","--","--","--","--","--","--","--","--",null,null,null,null,null,null,null,null,null,null,null,null,null,{"$f":"(Monthly!EQ41/Monthly!EQ40)-1","v":6.389776357827559E-3},"--",{"$f":"(Monthly!ES41/Monthly!ES40)-1","v":0},null,null,null,null,null,{"$f":"((Monthly!EY41-Monthly!EY40)*100)","v":0},{"$f":"((Monthly!EZ41-Monthly!EZ40)*100)","v":-56.000000000000007},{"$f":"((Monthly!FA41-Monthly!FA40)*100)","v":8.0000000000000071},{"$f":"((Monthly!FB41-Monthly!FB40)*100)","v":5.9999999999999609},"--","--",{"$f":"((Monthly!FE41-Monthly!FE40)*100)","v":-8.9999999999999858},{"$f":"((Monthly!FF41-Monthly!FF40)*100)","v":-14.000000000000012},"--",{"$f":"((Monthly!FH41-Monthly!FH40)*100)","v":2.9999999999999805},{"$f":"((Monthly!FI41-Monthly!FI40)*100)","v":4.0000000000000036},null,null,null,null,null,null,"--","--","--","--","--","--","--","--","--",null,null,null,null,null,{"$f":"(Monthly!GD41/Monthly!GD40)-1","v":0},"--","--","--","--","--","--","--","--"]
["1961-08-01",null,null,null,{"$f":"(Monthly!E42/Monthly!E41)-1","v":{"$error":"#DIV/0!"}},{"$f":"(Monthly!F42/Monthly!F41)-1","v":{"$error":"#DIV/0!"}},{"$f":"(Monthly!G42/Monthly!G41)-1","v":{"$error":"#DIV/0!"}},{"$f":"(Monthly!H42/Monthly!H41)-1","v":{"$error":"#DIV/0!"}},null,null,null,null,null,null,null,null,null,null,null,null,null,null,null,"--",{"$f":"(Monthly!Y42/Monthly!Y41)-1","v":1.7707303440712696E-3},null,null,null,null,null,null,null,null,null,null,null,null,null,{"$f":"(Monthly!AM42/Monthly!AM41)-1","v":9.1002789388869854E-3},"--","--","--",{"$f":"Monthly!AQ42-Monthly!AQ41","v":2.5},"--","--",{"$f":"Monthly!AT42-Monthly!AT41","v":4.1999999999999957},"--","--",{"$f":"Monthly!AW42-Monthly!AW41","v":9.2000000000000028},{"$f":"Monthly!AX42-Monthly!AX41","v":-1.6000000000000014},{"$f":"Monthly!AY42-Monthly!AY41","v":1.3000000000000043},{"$f":"Monthly!AZ42-Monthly!AZ41","v":4.1000000000000085},{"$f":"Monthly!BA42-Monthly!BA41","v":1.2000000000000028},"--","--",null,null,null,null,null,null,null,null,null,"--","--",null,null,null,null,null,{"$f":"(Monthly!BT42/Monthly!BT41)-1","v":3.1785786633762303E-3},null,null,null,{"$f":"(Monthly!BX42/Monthly!BX41)-1","v":-1.7228464419475675E-2},{"$f":"(Monthly!BY42/Monthly!BY41)-1","v":7.0175438596491224E-2},"--","--",{"$f":"Monthly!CB42-Monthly!CB41","v":-0.53762671069075196},{"$f":"Monthly!CC42-Monthly!CC41","v":-0.81762671069075488},"--","--",null,"--","--",null,"--",{"$f":"(Monthly!CK42/Monthly!CK41)-1","v":1.1279043537109068E-3},{"$f":"(Monthly!CL42/Monthly!CL41)-1","v":-2.7310924369748024E-2},{"$f":"(Monthly!CM42/Monthly!CM41)-1","v":-3.0876494023904355E-2},{"$f":"(Monthly!CN42/Monthly!CN41)-1","v":-2.2377372001436413E-4},{"$f":"(Monthly!CO42/Monthly!CO41)-1","v":7.1471113758188043E-3},{"$f":"(Monthly!CP42/Monthly!CP41)-1","v":3.7005761970991813E-3},{"$f":"(Monthly!CQ42/Monthly!CQ41)-1","v":1.4535279355003539E-3},"--","--","--",null,null,null,null,null,{"$f":"(Monthly!CZ42/Monthly!CZ41)-1","v":6.6844919786102075E-4},{"$f":"(Monthly!DA42/Monthly!DA41)-1","v":3.225806451612856E-3},null,null,null,null,null,"--","--",{"$f":"((Monthly!DI42-Monthly!DI41)*100)","v":0},"--",{"$f":"((Monthly!DK42-Monthly!DK41)*100)","v":-40.000000000000036},{"$f":"Monthly!DL42-Monthly!DL41","v":64},null,null,null,{"$f":"Monthly!DP42-Monthly!DP41","v":175},null,null,null,"--","--","--","--","--","--","--","--","--","--",null,null,null,null,null,null,null,null,null,null,null,null,null,{"$f":"(Monthly!EQ42/Monthly!EQ41)-1","v":0},"--",{"$f":"(Monthly!ES42/Monthly!ES41)-1","v":0},null,null,null,null,null,{"$f":"((Monthly!EY42-Monthly!EY41)*100)","v":0},{"$f":"((Monthly!EZ42-Monthly!EZ41)*100)","v":83},{"$f":"((Monthly!FA42-Monthly!FA41)*100)","v":4.0000000000000036},{"$f":"((Monthly!FB42-Monthly!FB41)*100)","v":2.0000000000000462},"--","--",{"$f":"((Monthly!FE42-Monthly!FE41)*100)","v":14.999999999999991},{"$f":"((Monthly!FF42-Monthly!FF41)*100)","v":14.000000000000012},"--",{"$f":"((Monthly!FH42-Monthly!FH41)*100)","v":12.000000000000011},{"$f":"((Monthly!FI42-Monthly!FI41)*100)","v":12.000000000000011},null,null,null,null,null,null,"--","--","--","--","--","--","--","--","--",null,null,null,null,null,{"$f":"(Monthly!GD42/Monthly!GD41)-1","v":0},"--","--","--","--","--","--","--","--"]
["1961-09-01",null,null,null,{"$f":"(Monthly!E43/Monthly!E42)-1","v":{"$error":"#DIV/0!"}},{"$f":"(Monthly!F43/Monthly!F42)-1","v":{"$error":"#DIV/0!"}},{"$f":"(Monthly!G43/Monthly!G42)-1","v":{"$error":"#DIV/0!"}},{"$f":"(Monthly!H43/Monthly!H42)-1","v":{"$error":"#DIV/0!"}},null,null,null,null,null,null,null,null,null,null,null,null,null,null,null,"--",{"$f":"(Monthly!Y43/Monthly!Y42)-1","v":2.6724992791284929E-3},null,null,null,null,null,null,null,null,null,null,null,null,null,{"$f":"(Monthly!AM43/Monthly!AM42)-1","v":-1.1227165687835994E-3},"--","--","--",{"$f":"Monthly!AQ43-Monthly!AQ42","v":2.2999999999999972},"--","--",{"$f":"Monthly!AT43-Monthly!AT42","v":2.8000000000000043},"--","--",{"$f":"Monthly!AW43-Monthly!AW42","v":1.7999999999999972},{"$f":"Monthly!AX43-Monthly!AX42","v":6.6000000000000014},{"$f":"Monthly!AY43-Monthly!AY42","v":1.6999999999999957},{"$f":"Monthly!AZ43-Monthly!AZ42","v":-1.6000000000000085},{"$f":"Monthly!BA43-Monthly!BA42","v":0.10000000000000142},"--","--",null,null,null,null,null,null,null,null,null,"--","--",null,null,null,null,null,{"$f":"(Monthly!BT43/Monthly!BT42)-1","v":-1.2629971215413205E-3},null,null,null,{"$f":"(Monthly!BX43/Monthly!BX42)-1","v":8.9176829268292623E-2},{"$f":"(Monthly!BY43/Monthly!BY42)-1","v":-5.2631578947368474E-2},"--","--",{"$f":"Monthly!CB43-Monthly!CB42","v":0.23508949679161883},{"$f":"Monthly!CC43-Monthly!CC42","v":0.30508949679162001},"--","--",null,"--","--",null,"--",{"$f":"(Monthly!CK43/Monthly!CK42)-1","v":2.4785939612437247E-3},{"$f":"(Monthly!CL43/Monthly!CL42)-1","v":-3.2397408207343381E-2},{"$f":"(Monthly!CM43/Monthly!CM42)-1","v":8.1192189105858237E-2},{"$f":"(Monthly!CN43/Monthly!CN42)-1","v":1.0295895071399386E-3},{"$f":"(Monthly!CO43/Monthly!CO42)-1","v":7.6877587226493738E-3},{"$f":"(Monthly!CP43/Monthly!CP42)-1","v":4.3484357343759328E-3},{"$f":"(Monthly!CQ43/Monthly!CQ42)-1","v":1.5492666804379773E-3},"--","--","--",null,null,null,null,null,{"$f":"(Monthly!CZ43/Monthly!CZ42)-1","v":1.3360053440214514E-3},{"$f":"(Monthly!DA43/Monthly!DA42)-1","v":0},null,null,null,null,null,"--","--",{"$f":"((Monthly!DI43-Monthly!DI42)*100)","v":-29.999999999999716},"--",{"$f":"((Monthly!DK43-Monthly!DK42)*100)","v":10.000000000000053},{"$f":"Monthly!DL43-Monthly!DL42","v":-13},null,null,null,{"$f":"Monthly!DP43-Monthly!DP42","v":90},null,null,null,"--","--","--","--","--","--","--","--","--","--",null,null,null,null,null,null,null,null,null,null,null,null,null,{"$f":"(Monthly!EQ43/Monthly!EQ42)-1","v":0},"--",{"$f":"(Monthly!ES43/Monthly!ES42)-1","v":0},null,null,null,null,null,{"$f":"((Monthly!EY43-Monthly!EY42)*100)","v":0},{"$f":"((Monthly!EZ43-Monthly!EZ42)*100)","v":-12.000000000000011},{"$f":"((Monthly!FA43-Monthly!FA42)*100)","v":0},{"$f":"((Monthly!FB43-Monthly!FB42)*100)","v":0.99999999999997868},"--","--",{"$f":"((Monthly!FE43-Monthly!FE42)*100)","v":-11.000000000000032},{"$f":"((Monthly!FF43-Monthly!FF42)*100)","v":0},"--",{"$f":"((Monthly!FH43-Monthly!FH42)*100)","v":-6.0000000000000053},{"$f":"((Monthly!FI43-Monthly!FI42)*100)","v":-6.0000000000000053},null,null,null,null,null,null,"--","--","--","--","--","--","--","--","--",null,null,null,null,null,{"$f":"(Monthly!GD43/Monthly!GD42)-1","v":0},"--","--","--","--","--","--","--","--"]
["1961-10-01",null,null,null,{"$f":"(Monthly!E44/Monthly!E43)-1","v":{"$error":"#DIV/0!"}},{"$f":"(Monthly!F44/Monthly!F43)-1","v":{"$error":"#DIV/0!"}},{"$f":"(Monthly!G44/Monthly!G43)-1","v":{"$error":"#DIV/0!"}},{"$f":"(Monthly!H44/Monthly!H43)-1","v":{"$error":"#DIV/0!"}},null,null,null,null,null,null,null,null,null,null,null,null,null,null,null,"--",{"$f":"(Monthly!Y44/Monthly!Y43)-1","v":4.8420998487284095E-3},null,null,null,null,null,null,null,null,null,null,null,null,null,{"$f":"(Monthly!AM44/Monthly!AM43)-1","v":1.918473012343469E-2},"--","--","--",{"$f":"Monthly!AQ44-Monthly!AQ43","v":-0.79999999999999716},"--","--",{"$f":"Monthly!AT44-Monthly!AT43","v":-2.8999999999999986},"--","--",{"$f":"Monthly!AW44-Monthly!AW43","v":0.40000000000000568},{"$f":"Monthly!AX44-Monthly!AX43","v":-1.2000000000000028},{"$f":"Monthly!AY44-Monthly!AY43","v":1.6000000000000014},{"$f":"Monthly!AZ44-Monthly!AZ43","v":-0.5},{"$f":"Monthly!BA44-Monthly!BA43","v":1.6999999999999957},"--","--",null,null,null,null,null,null,null,null,null,"--","--",null,null,null,null,null,{"$f":"(Monthly!BT44/Monthly!BT43)-1","v":3.9518571890715393E-3},null,null,null,{"$f":"(Monthly!BX44/Monthly!BX43)-1","v":-9.7970608817354865E-3},{"$f":"(Monthly!BY44/Monthly!BY43)-1","v":2.2768670309653904E-2},"--","--",{"$f":"Monthly!CB44-Monthly!CB43","v":-0.67646860162504652},{"$f":"Monthly!CC44-Monthly!CC43","v":-0.81646860162504886},"--","--",null,"--","--",null,"--",{"$f":"(Monthly!CK44/Monthly!CK43)-1","v":9.4403236682401026E-3},{"$f":"(Monthly!CL44/Monthly!CL43)-1","v":4.2410714285714413E-2},{"$f":"(Monthly!CM44/Monthly!CM43)-1","v":-5.6083650190114076E-2},{"$f":"(Monthly!CN44/Monthly!CN43)-1","v":1.0285305428852531E-2},{"$f":"(Monthly!CO44/Monthly!CO43)-1","v":6.4553990610327627E-3},{"$f":"(Monthly!CP44/Monthly!CP43)-1","v":4.5184952802994616E-3},{"$f":"(Monthly!CQ44/Monthly!CQ43)-1","v":1.5251597075600642E-3},"--","--","--",null,null,null,null,null,{"$f":"(Monthly!CZ44/Monthly!CZ43)-1","v":0},{"$f":"(Monthly!DA44/Monthly!DA43)-1","v":0},null,null,null,null,null,"--","--",{"$f":"((Monthly!DI44-Monthly!DI43)*100)","v":10.000000000000142},"--",{"$f":"((Monthly!DK44-Monthly!DK43)*100)","v":-20.000000000000018},{"$f":"Monthly!DL44-Monthly!DL43","v":63},null,null,null,{"$f":"Monthly!DP44-Monthly!DP43","v":134},null,null,null,"--","--","--","--","--","--","--","--","--","--",null,null,null,null,null,null,null,null,null,null,null,null,null,{"$f":"(Monthly!EQ44/Monthly!EQ43)-1","v":0},"--",{"$f":"(Monthly!ES44/Monthly!ES43)-1","v":0},null,null,null,null,null,{"$f":"((Monthly!EY44-Monthly!EY43)*100)","v":0},{"$f":"((Monthly!EZ44-Monthly!EZ43)*100)","v":37.999999999999986},{"$f":"((Monthly!FA44-Monthly!FA43)*100)","v":-3.0000000000000249},{"$f":"((Monthly!FB44-Monthly!FB43)*100)","v":0.99999999999997868},"--","--",{"$f":"((Monthly!FE44-Monthly!FE43)*100)","v":2.0000000000000018},{"$f":"((Monthly!FF44-Monthly!FF43)*100)","v":-1.0000000000000231},"--",{"$f":"((Monthly!FH44-Monthly!FH43)*100)","v":-10.000000000000009},{"$f":"((Monthly!FI44-Monthly!FI43)*100)","v":-6.0000000000000053},null,null,null,null,null,null,"--","--","--","--","--","--","--","--","--",null,null,null,null,null,{"$f":"(Monthly!GD44/Monthly!GD43)-1","v":0},"--","--","--","--","--","--","--","--"]
["1961-11-01",null,null,null,{"$f":"(Monthly!E45/Monthly!E44)-1","v":{"$error":"#DIV/0!"}},{"$f":"(Monthly!F45/Monthly!F44)-1","v":{"$error":"#DIV/0!"}},{"$f":"(Monthly!G45/Monthly!G44)-1","v":{"$error":"#DIV/0!"}},{"$f":"(Monthly!H45/Monthly!H44)-1","v":{"$error":"#DIV/0!"}},null,null,null,null,null,null,null,null,null,null,null,null,null,null,null,"--",{"$f":"(Monthly!Y45/Monthly!Y44)-1","v":3.6274541740153321E-3},null,null,null,null,null,null,null,null,null,null,null,null,null,{"$f":"(Monthly!AM45/Monthly!AM44)-1","v":1.5503196986949241E-2},"--","--","--",{"$f":"Monthly!AQ45-Monthly!AQ44","v":-3.2000000000000028},"--","--",{"$f":"Monthly!AT45-Monthly!AT44","v":0.79999999999999716},"--","--",{"$f":"Monthly!AW45-Monthly!AW44","v":-2.1000000000000014},{"$f":"Monthly!AX45-Monthly!AX44","v":-3.2000000000000028},{"$f":"Monthly!AY45-Monthly!AY44","v":-3.6000000000000014},{"$f":"Monthly!AZ45-Monthly!AZ44","v":-8},{"$f":"Monthly!BA45-Monthly!BA44","v":-1.2999999999999972},"--","--",null,null,null,null,null,null,null,null,null,"--","--",null,null,null,null,null,{"$f":"(Monthly!BT45/Monthly!BT44)-1","v":5.1080377445542613E-3},null,null,null,{"$f":"(Monthly!BX45/Monthly!BX44)-1","v":-2.1201413427561877E-2},{"$f":"(Monthly!BY45/Monthly!BY44)-1","v":2.5823686553873459E-2},"--","--",{"$f":"Monthly!CB45-Monthly!CB44","v":-0.50151757143421793},{"$f":"Monthly!CC45-Monthly!CC44","v":-0.78151757143421641},"--","--",null,"--","--",null,"--",{"$f":"(Monthly!CK45/Monthly!CK44)-1","v":9.352037408149716E-3},{"$f":"(Monthly!CL45/Monthly!CL44)-1","v":8.565310492505418E-3},{"$f":"(Monthly!CM45/Monthly!CM44)-1","v":2.5176233635448186E-2},{"$f":"(Monthly!CN45/Monthly!CN44)-1","v":9.5166430594901819E-3},{"$f":"(Monthly!CO45/Monthly!CO44)-1","v":1.282798833819232E-2},{"$f":"(Monthly!CP45/Monthly!CP44)-1","v":9.6487470200234959E-3},{"$f":"(Monthly!CQ45/Monthly!CQ44)-1","v":1.4036114543365397E-3},"--","--","--",null,null,null,null,null,{"$f":"(Monthly!CZ45/Monthly!CZ44)-1","v":0},{"$f":"(Monthly!DA45/Monthly!DA44)-1","v":3.215434083601254E-3},null,null,null,null,null,"--","--",{"$f":"((Monthly!DI45-Monthly!DI44)*100)","v":0},"--",{"$f":"((Monthly!DK45-Monthly!DK44)*100)","v":-40.000000000000036},{"$f":"Monthly!DL45-Monthly!DL44","v":116},null,null,null,{"$f":"Monthly!DP45-Monthly!DP44","v":221},null,null,null,"--","--","--","--","--","--","--","--","--","--",null,null,null,null,null,null,null,null,null,null,null,null,null,{"$f":"(Monthly!EQ45/Monthly!EQ44)-1","v":0},"--",{"$f":"(Monthly!ES45/Monthly!ES44)-1","v":0},null,null,null,null,null,{"$f":"((Monthly!EY45-Monthly!EY44)*100)","v":0},{"$f":"((Monthly!EZ45-Monthly!EZ44)*100)","v":35.000000000000007},{"$f":"((Monthly!FA45-Monthly!FA44)*100)","v":-3.0000000000000249},{"$f":"((Monthly!FB45-Monthly!FB44)*100)","v":-1.9999999999999574},"--","--",{"$f":"((Monthly!FE45-Monthly!FE44)*100)","v":18.000000000000014},{"$f":"((Monthly!FF45-Monthly!FF44)*100)","v":2.0000000000000018},"--",{"$f":"((Monthly!FH45-Monthly!FH44)*100)","v":2.0000000000000018},{"$f":"((Monthly!FI45-Monthly!FI44)*100)","v":2.0000000000000018},null,null,null,null,null,null,"--","--","--","--","--","--","--","--","--",null,null,null,null,null,{"$f":"(Monthly!GD45/Monthly!GD44)-1","v":0},"--","--","--","--","--","--","--","--"]
["1961-12-01",null,null,null,{"$f":"(Monthly!E46/Monthly!E45)-1","v":{"$error":"#DIV/0!"}},{"$f":"(Monthly!F46/Monthly!F45)-1","v":{"$error":"#DIV/0!"}},{"$f":"(Monthly!G46/Monthly!G45)-1","v":{"$error":"#DIV/0!"}},{"$f":"(Monthly!H46/Monthly!H45)-1","v":{"$error":"#DIV/0!"}},null,null,null,null,null,null,null,null,null,null,null,null,null,null,null,"--",{"$f":"(Monthly!Y46/Monthly!Y45)-1","v":1.5440363335396778E-2},null,null,null,null,null,null,null,null,null,null,null,null,null,{"$f":"(Monthly!AM46/Monthly!AM45)-1","v":8.7231640190066351E-3},"--","--","--",{"$f":"Monthly!AQ46-Monthly!AQ45","v":5.2000000000000028},"--","--",{"$f":"Monthly!AT46-Monthly!AT45","v":-0.39999999999999858},"--","--",{"$f":"Monthly!AW46-Monthly!AW45","v":1.5},{"$f":"Monthly!AX46-Monthly!AX45","v":8.3000000000000114},{"$f":"Monthly!AY46-Monthly!AY45","v":4.3999999999999986},{"$f":"Monthly!AZ46-Monthly!AZ45","v":7.7999999999999972},{"$f":"Monthly!BA46-Monthly!BA45","v":4.6999999999999957},"--","--",null,null,null,null,null,null,null,null,null,"--","--",null,null,null,null,null,{"$f":"(Monthly!BT46/Monthly!BT45)-1","v":5.9199836790602145E-3},null,null,null,{"$f":"(Monthly!BX46/Monthly!BX45)-1","v":-1.4440433212996373E-2},{"$f":"(Monthly!BY46/Monthly!BY45)-1","v":7.8125E-3},"--","--",{"$f":"Monthly!CB46-Monthly!CB45","v":-0.10067587219616492},{"$f":"Monthly!CC46-Monthly!CC45","v":-0.1706758721961652},"--","--",null,"--","--",null,"--",{"$f":"(Monthly!CK46/Monthly!CK45)-1","v":5.9563203176704604E-3},{"$f":"(Monthly!CL46/Monthly!CL45)-1","v":-2.1231422505307851E-3},{"$f":"(Monthly!CM46/Monthly!CM45)-1","v":-1.2770137524557912E-2},{"$f":"(Monthly!CN46/Monthly!CN45)-1","v":5.7438505721929545E-3},{"$f":"(Monthly!CO46/Monthly!CO45)-1","v":1.0362694300518172E-2},{"$f":"(Monthly!CP46/Monthly!CP45)-1","v":8.1006278715365365E-3},{"$f":"(Monthly!CQ46/Monthly!CQ45)-1","v":1.2609385062478662E-3},"--","--","--",null,null,null,null,null,{"$f":"(Monthly!CZ46/Monthly!CZ45)-1","v":1.0006671114075605E-3},{"$f":"(Monthly!DA46/Monthly!DA45)-1","v":0},null,null,null,null,null,"--","--",{"$f":"((Monthly!DI46-Monthly!DI45)*100)","v":-30.000000000000426},"--",{"$f":"((Monthly!DK46-Monthly!DK45)*100)","v":-9.9999999999999645},{"$f":"Monthly!DL46-Monthly!DL45","v":50},null,null,null,{"$f":"Monthly!DP46-Monthly!DP45","v":128},null,null,null,"--","--","--","--","--","--","--","--","--","--",null,null,null,null,null,null,null,null,null,null,null,null,null,{"$f":"(Monthly!EQ46/Monthly!EQ45)-1","v":3.1746031746031633E-3},"--",{"$f":"(Monthly!ES46/Monthly!ES45)-1","v":0},null,null,null,null,null,{"$f":"((Monthly!EY46-Monthly!EY45)*100)","v":0},{"$f":"((Monthly!EZ46-Monthly!EZ45)*100)","v":-27.999999999999979},{"$f":"((Monthly!FA46-Monthly!FA45)*100)","v":3.0000000000000249},{"$f":"((Monthly!FB46-Monthly!FB45)*100)","v":-1.0000000000000675},"--","--",{"$f":"((Monthly!FE46-Monthly!FE45)*100)","v":12.000000000000011},{"$f":"((Monthly!FF46-Monthly!FF45)*100)","v":11.000000000000032},"--",{"$f":"((Monthly!FH46-Monthly!FH45)*100)","v":9.0000000000000302},{"$f":"((Monthly!FI46-Monthly!FI45)*100)","v":11.999999999999966},null,null,null,null,null,null,"--","--","--","--","--","--","--","--","--",null,null,null,null,null,{"$f":"(Monthly!GD46/Monthly!GD45)-1","v":0},"--","--","--","--","--","--","--","--"]
["1962-01-01",null,null,null,{"$f":"(Monthly!E47/Monthly!E46)-1","v":{"$error":"#DIV/0!"}},{"$f":"(Monthly!F47/Monthly!F46)-1","v":{"$error":"#DIV/0!"}},{"$f":"(Monthly!G47/Monthly!G46)-1","v":{"$error":"#DIV/0!"}},{"$f":"(Monthly!H47/Monthly!H46)-1","v":{"$error":"#DIV/0!"}},null,null,null,null,null,null,null,null,null,null,null,null,null,null,null,"--",{"$f":"(Monthly!Y47/Monthly!Y46)-1","v":4.2374719461548693E-3},null,null,null,null,null,null,null,null,null,null,null,null,null,{"$f":"(Monthly!AM47/Monthly!AM46)-1","v":-8.6477284652127784E-3},"--","--","--",{"$f":"Monthly!AQ47-Monthly!AQ46","v":-3.3000000000000043},"--","--",{"$f":"Monthly!AT47-Monthly!AT46","v":1.6999999999999957},"--","--",{"$f":"Monthly!AW47-Monthly!AW46","v":2.8999999999999986},{"$f":"Monthly!AX47-Monthly!AX46","v":-14.000000000000007},{"$f":"Monthly!AY47-Monthly!AY46","v":0.80000000000000426},{"$f":"Monthly!AZ47-Monthly!AZ46","v":0.30000000000001137},{"$f":"Monthly!BA47-Monthly!BA46","v":1.3000000000000043},"--","--",null,null,null,null,null,null,null,null,null,"--","--",null,null,null,null,null,{"$f":"(Monthly!BT47/Monthly!BT46)-1","v":9.0468240142838052E-3},null,null,null,{"$f":"(Monthly!BX47/Monthly!BX46)-1","v":-2.93040293040292E-3},{"$f":"(Monthly!BY47/Monthly!BY46)-1","v":-3.3591731266149893E-2},"--","--",{"$f":"Monthly!CB47-Monthly!CB46","v":-0.20067451320384677},{"$f":"Monthly!CC47-Monthly!CC46","v":-0.34067451320384734},"--","--",null,"--","--",null,"--",{"$f":"(Monthly!CK47/Monthly!CK46)-1","v":6.5789473684207955E-4},{"$f":"(Monthly!CL47/Monthly!CL46)-1","v":-2.5531914893617058E-2},{"$f":"(Monthly!CM47/Monthly!CM46)-1","v":-3.0845771144278555E-2},{"$f":"(Monthly!CN47/Monthly!CN46)-1","v":-2.8773214752813026E-3},{"$f":"(Monthly!CO47/Monthly!CO46)-1","v":6.2678062678063196E-3},{"$f":"(Monthly!CP47/Monthly!CP46)-1","v":5.5101729358941753E-4},{"$f":"(Monthly!CQ47/Monthly!CQ46)-1","v":1.2215159769966011E-3},"--","--","--",null,null,null,null,null,{"$f":"(Monthly!CZ47/Monthly!CZ46)-1","v":9.9966677774077084E-4},{"$f":"(Monthly!DA47/Monthly!DA46)-1","v":0},null,null,null,null,null,"--","--",{"$f":"((Monthly!DI47-Monthly!DI46)*100)","v":0},"--",{"$f":"((Monthly!DK47-Monthly!DK46)*100)","v":-20.000000000000018},{"$f":"Monthly!DL47-Monthly!DL46","v":13},null,null,null,{"$f":"Monthly!DP47-Monthly!DP46","v":20},null,null,null,"--","--","--","--","--","--","--","--","--","--",null,null,null,null,null,null,null,null,null,null,null,null,null,{"$f":"(Monthly!EQ47/Monthly!EQ46)-1","v":3.1645569620253333E-3},"--",{"$f":"(Monthly!ES47/Monthly!ES46)-1","v":3.0395136778116338E-3},null,null,null,null,null,{"$f":"((Monthly!EY47-Monthly!EY46)*100)","v":0},{"$f":"((Monthly!EZ47-Monthly!EZ46)*100)","v":-18.000000000000014},{"$f":"((Monthly!FA47-Monthly!FA46)*100)","v":0},{"$f":"((Monthly!FB47-Monthly!FB46)*100)","v":-1.9999999999999574},"--","--",{"$f":"((Monthly!FE47-Monthly!FE46)*100)","v":12.000000000000011},{"$f":"((Monthly!FF47-Monthly!FF46)*100)","v":9.9999999999999645},"--",{"$f":"((Monthly!FH47-Monthly!FH46)*100)","v":2.9999999999999805},{"$f":"((Monthly!FI47-Monthly!FI46)*100)","v":2.0000000000000462},null,null,null,null,null,null,"--","--","--","--","--","--","--","--","--",null,null,null,null,null,{"$f":"(Monthly!GD47/Monthly!GD46)-1","v":0},"--","--","--","--","--","--","--","--"]
["1962-02-01",null,null,null,{"$f":"(Monthly!E48/Monthly!E47)-1","v":{"$error":"#DIV/0!"}},{"$f":"(Monthly!F48/Monthly!F47)-1","v":{"$error":"#DIV/0!"}},{"$f":"(Monthly!G48/Monthly!G47)-1","v":{"$error":"#DIV/0!"}},{"$f":"(Monthly!H48/Monthly!H47)-1","v":{"$error":"#DIV/0!"}},null,null,null,null,null,null,null,null,null,null,null,null,null,null,null,"--",{"$f":"(Monthly!Y48/Monthly!Y47)-1","v":-2.6486121499683657E-3},null,null,null,null,null,null,null,null,null,null,null,null,null,{"$f":"(Monthly!AM48/Monthly!AM47)-1","v":1.6356422601031984E-2},"--","--","--",{"$f":"Monthly!AQ48-Monthly!AQ47","v":0.20000000000000284},"--","--",{"$f":"Monthly!AT48-Monthly!AT47","v":0.20000000000000284},"--","--",{"$f":"Monthly!AW48-Monthly!AW47","v":-0.39999999999999858},{"$f":"Monthly!AX48-Monthly!AX47","v":2.3999999999999986},{"$f":"Monthly!AY48-Monthly!AY47","v":-2.3999999999999986},{"$f":"Monthly!AZ48-Monthly!AZ47","v":-1.7000000000000028},{"$f":"Monthly!BA48-Monthly!BA47","v":-0.89999999999999858},"--","--",null,null,null,null,null,null,null,null,null,"--","--",null,null,null,null,null,{"$f":"(Monthly!BT48/Monthly!BT47)-1","v":6.6184044763959449E-3},null,null,null,{"$f":"(Monthly!BX48/Monthly!BX47)-1","v":-6.0984570168993391E-2},{"$f":"(Monthly!BY48/Monthly!BY47)-1","v":6.4171122994652441E-2},"--","--",{"$f":"Monthly!CB48-Monthly!CB47","v":-6.5415549597835465E-2},{"$f":"Monthly!CC48-Monthly!CC47","v":-0.27541554959783454},"--","--",null,"--","--",null,"--",{"$f":"(Monthly!CK48/Monthly!CK47)-1","v":7.2320841551611892E-3},{"$f":"(Monthly!CL48/Monthly!CL47)-1","v":5.0218340611353884E-2},{"$f":"(Monthly!CM48/Monthly!CM47)-1","v":-2.8747433264887046E-2},{"$f":"(Monthly!CN48/Monthly!CN47)-1","v":4.8968170689054347E-3},{"$f":"(Monthly!CO48/Monthly!CO47)-1","v":7.9275198187995777E-3},{"$f":"(Monthly!CP48/Monthly!CP47)-1","v":5.7415530451423447E-3},{"$f":"(Monthly!CQ48/Monthly!CQ47)-1","v":1.1336521955063183E-3},"--","--","--",null,null,null,null,null,{"$f":"(Monthly!CZ48/Monthly!CZ47)-1","v":2.3302263648468102E-3},{"$f":"(Monthly!DA48/Monthly!DA47)-1","v":0},null,null,null,null,null,"--","--",{"$f":"((Monthly!DI48-Monthly!DI47)*100)","v":20.000000000000284},"--",{"$f":"((Monthly!DK48-Monthly!DK47)*100)","v":-29.999999999999982},{"$f":"Monthly!DL48-Monthly!DL47","v":89},null,null,null,{"$f":"Monthly!DP48-Monthly!DP47","v":296},null,null,null,"--","--","--","--","--","--","--","--","--","--",null,null,null,null,null,null,null,null,null,null,null,null,null,{"$f":"(Monthly!EQ48/Monthly!EQ47)-1","v":0},"--",{"$f":"(Monthly!ES48/Monthly!ES47)-1","v":0},null,null,null,null,null,{"$f":"((Monthly!EY48-Monthly!EY47)*100)","v":0},{"$f":"((Monthly!EZ48-Monthly!EZ47)*100)","v":22.000000000000021},{"$f":"((Monthly!FA48-Monthly!FA47)*100)","v":0},{"$f":"((Monthly!FB48-Monthly!FB47)*100)","v":-0.99999999999997868},"--","--",{"$f":"((Monthly!FE48-Monthly!FE47)*100)","v":0.99999999999997868},{"$f":"((Monthly!FF48-Monthly!FF47)*100)","v":0},"--",{"$f":"((Monthly!FH48-Monthly!FH47)*100)","v":-4.9999999999999822},{"$f":"((Monthly!FI48-Monthly!FI47)*100)","v":-4.0000000000000036},null,null,null,null,null,null,"--","--","--","--","--","--","--","--","--",null,null,null,null,null,{"$f":"(Monthly!GD48/Monthly!GD47)-1","v":0},"--","--","--","--","--","--","--","--"]
["1962-03-01",null,null,null,{"$f":"(Monthly!E49/Monthly!E48)-1","v":{"$error":"#DIV/0!"}},{"$f":"(Monthly!F49/Monthly!F48)-1","v":{"$error":"#DIV/0!"}},{"$f":"(Monthly!G49/Monthly!G48)-1","v":{"$error":"#DIV/0!"}},{"$f":"(Monthly!H49/Monthly!H48)-1","v":{"$error":"#DIV/0!"}},null,null,null,null,null,null,null,null,null,null,null,null,null,null,null,"--",{"$f":"(Monthly!Y49/Monthly!Y48)-1","v":5.297614705667808E-3},null,null,null,null,null,null,null,null,null,null,null,null,null,{"$f":"(Monthly!AM49/Monthly!AM48)-1","v":5.3656843079772365E-3},"--","--","--",{"$f":"Monthly!AQ49-Monthly!AQ48","v":-0.5},"--","--",{"$f":"Monthly!AT49-Monthly!AT48","v":-2.8999999999999986},"--","--",{"$f":"Monthly!AW49-Monthly!AW48","v":-1.1000000000000014},{"$f":"Monthly!AX49-Monthly!AX48","v":-1.6999999999999957},{"$f":"Monthly!AY49-Monthly!AY48","v":2.0999999999999943},{"$f":"Monthly!AZ49-Monthly!AZ48","v":2.2000000000000028},{"$f":"Monthly!BA49-Monthly!BA48","v":0.79999999999999716},"--","--",null,null,null,null,null,null,null,null,null,"--","--",null,null,null,null,null,{"$f":"(Monthly!BT49/Monthly!BT48)-1","v":9.3560245453021551E-3},null,null,null,{"$f":"(Monthly!BX49/Monthly!BX48)-1","v":0.12910798122065725},{"$f":"(Monthly!BY49/Monthly!BY48)-1","v":-5.0251256281407031E-2},"--","--",{"$f":"Monthly!CB49-Monthly!CB48","v":0.30107238605897546},{"$f":"Monthly!CC49-Monthly!CC48","v":0.37107238605897663},"--","--",null,"--","--",null,"--",{"$f":"(Monthly!CK49/Monthly!CK48)-1","v":8.0504786771105064E-3},{"$f":"(Monthly!CL49/Monthly!CL48)-1","v":-6.2370062370062929E-3},{"$f":"(Monthly!CM49/Monthly!CM48)-1","v":3.488372093023262E-2},{"$f":"(Monthly!CN49/Monthly!CN48)-1","v":6.4392620953706015E-3},{"$f":"(Monthly!CO49/Monthly!CO48)-1","v":9.5505617977527102E-3},{"$f":"(Monthly!CP49/Monthly!CP48)-1","v":7.7936922497301442E-3},{"$f":"(Monthly!CQ49/Monthly!CQ48)-1","v":1.0676617130038757E-3},"--","--","--",null,null,null,null,null,{"$f":"(Monthly!CZ49/Monthly!CZ48)-1","v":1.9926934573231136E-3},{"$f":"(Monthly!DA49/Monthly!DA48)-1","v":3.2051282051281937E-3},null,null,null,null,null,"--","--",{"$f":"((Monthly!DI49-Monthly!DI48)*100)","v":-10.000000000000142},"--",{"$f":"((Monthly!DK49-Monthly!DK48)*100)","v":9.9999999999999645},{"$f":"Monthly!DL49-Monthly!DL48","v":40},null,null,null,{"$f":"Monthly!DP49-Monthly!DP48","v":89},null,null,null,"--","--","--","--","--","--","--","--","--","--",null,null,null,null,null,null,null,null,null,null,null,null,null,{"$f":"(Monthly!EQ49/Monthly!EQ48)-1","v":0},"--",{"$f":"(Monthly!ES49/Monthly!ES48)-1","v":0},null,null,null,null,null,{"$f":"((Monthly!EY49-Monthly!EY48)*100)","v":0},{"$f":"((Monthly!EZ49-Monthly!EZ48)*100)","v":48},{"$f":"((Monthly!FA49-Monthly!FA48)*100)","v":-3.0000000000000249},{"$f":"((Monthly!FB49-Monthly!FB48)*100)","v":-3.0000000000000249},"--","--",{"$f":"((Monthly!FE49-Monthly!FE48)*100)","v":-0.99999999999997868},{"$f":"((Monthly!FF49-Monthly!FF48)*100)","v":-21.999999999999975},"--",{"$f":"((Monthly!FH49-Monthly!FH48)*100)","v":-20.999999999999996},{"$f":"((Monthly!FI49-Monthly!FI48)*100)","v":-10.999999999999988},null,null,null,null,null,null,"--","--","--","--","--","--","--","--","--",null,null,null,null,null,{"$f":"(Monthly!GD49/Monthly!GD48)-1","v":0},"--","--","--","--","--","--","--","--"]
["1962-04-01",null,null,null,{"$f":"(Monthly!E50/Monthly!E49)-1","v":{"$error":"#DIV/0!"}},{"$f":"(Monthly!F50/Monthly!F49)-1","v":{"$error":"#DIV/0!"}},{"$f":"(Monthly!G50/Monthly!G49)-1","v":{"$error":"#DIV/0!"}},{"$f":"(Monthly!H50/Monthly!H49)-1","v":{"$error":"#DIV/0!"}},null,null,null,null,null,null,null,null,null,null,null,null,null,null,null,"--",{"$f":"(Monthly!Y50/Monthly!Y49)-1","v":9.9453076106772453E-3},null,null,null,null,null,null,null,null,null,null,null,null,null,{"$f":"(Monthly!AM50/Monthly!AM49)-1","v":2.1371210638796434E-3},"--","--","--",{"$f":"Monthly!AQ50-Monthly!AQ49","v":-5.5},"--","--",{"$f":"Monthly!AT50-Monthly!AT49","v":-2},"--","--",{"$f":"Monthly!AW50-Monthly!AW49","v":-4},{"$f":"Monthly!AX50-Monthly!AX49","v":-2.8000000000000043},{"$f":"Monthly!AY50-Monthly!AY49","v":-3.1999999999999957},{"$f":"Monthly!AZ50-Monthly!AZ49","v":-9.5000000000000071},{"$f":"Monthly!BA50-Monthly!BA49","v":-9.6000000000000014},"--","--",null,null,null,null,null,null,null,null,null,"--","--",null,null,null,null,null,{"$f":"(Monthly!BT50/Monthly!BT49)-1","v":6.6305173357825709E-3},null,null,null,{"$f":"(Monthly!BX50/Monthly!BX49)-1","v":5.6133056133056192E-2},{"$f":"(Monthly!BY50/Monthly!BY49)-1","v":8.9065255731922477E-2},"--","--",{"$f":"Monthly!CB50-Monthly!CB49","v":0.23593347680979093},{"$f":"Monthly!CC50-Monthly!CC49","v":0.23593347680979093},"--","--",null,"--","--",null,"--",{"$f":"(Monthly!CK50/Monthly!CK49)-1","v":6.0436002590114057E-3},{"$f":"(Monthly!CL50/Monthly!CL49)-1","v":8.3682008368202165E-3},{"$f":"(Monthly!CM50/Monthly!CM49)-1","v":4.9029622063329947E-2},{"$f":"(Monthly!CN50/Monthly!CN49)-1","v":4.1068649489883757E-3},{"$f":"(Monthly!CO50/Monthly!CO49)-1","v":7.2342793544797335E-3},{"$f":"(Monthly!CP50/Monthly!CP49)-1","v":1.1695174611824122E-2},{"$f":"(Monthly!CQ50/Monthly!CQ49)-1","v":1.2065715055211701E-3},"--","--","--",null,null,null,null,null,{"$f":"(Monthly!CZ50/Monthly!CZ49)-1","v":1.3258203513424327E-3},{"$f":"(Monthly!DA50/Monthly!DA49)-1","v":0},null,null,null,null,null,"--","--",{"$f":"((Monthly!DI50-Monthly!DI49)*100)","v":-19.999999999999574},"--",{"$f":"((Monthly!DK50-Monthly!DK49)*100)","v":0},{"$f":"Monthly!DL50-Monthly!DL49","v":73},null,null,null,{"$f":"Monthly!DP50-Monthly!DP49","v":326},null,null,null,"--","--","--","--","--","--","--","--","--","--",null,null,null,null,null,null,null,null,null,null,null,null,null,{"$f":"(Monthly!EQ50/Monthly!EQ49)-1","v":-3.154574132492094E-3},"--",{"$f":"(Monthly!ES50/Monthly!ES49)-1","v":0},null,null,null,null,null,{"$f":"((Monthly!EY50-Monthly!EY49)*100)","v":0},{"$f":"((Monthly!EZ50-Monthly!EZ49)*100)","v":-7.0000000000000284},{"$f":"((Monthly!FA50-Monthly!FA49)*100)","v":-5.9999999999999609},{"$f":"((Monthly!FB50-Monthly!FB49)*100)","v":-2.0000000000000462},"--","--",{"$f":"((Monthly!FE50-Monthly!FE49)*100)","v":0.99999999999997868},{"$f":"((Monthly!FF50-Monthly!FF49)*100)","v":-6.999999999999984},"--",{"$f":"((Monthly!FH50-Monthly!FH49)*100)","v":-8.0000000000000071},{"$f":"((Monthly!FI50-Monthly!FI49)*100)","v":-9.0000000000000302},null,null,null,null,null,null,"--","--","--","--","--","--","--","--","--",null,null,null,null,null,{"$f":"(Monthly!GD50/Monthly!GD49)-1","v":0},"--","--","--","--","--","--","--","--"]
["1962-05-01",null,null,null,{"$f":"(Monthly!E51/Monthly!E50)-1","v":{"$error":"#DIV/0!"}},{"$f":"(Monthly!F51/Monthly!F50)-1","v":{"$error":"#DIV/0!"}},{"$f":"(Monthly!G51/Monthly!G50)-1","v":{"$error":"#DIV/0!"}},{"$f":"(Monthly!H51/Monthly!H50)-1","v":{"$error":"#DIV/0!"}},null,null,null,null,null,null,null,null,null,null,null,null,null,null,null,"--",{"$f":"(Monthly!Y51/Monthly!Y50)-1","v":6.7692266242775911E-3},null,null,null,null,null,null,null,null,null,null,null,null,null,{"$f":"(Monthly!AM51/Monthly!AM50)-1","v":-1.0681960886410602E-3},"--","--","--",{"$f":"Monthly!AQ51-Monthly!AQ50","v":-2.8999999999999986},"--","--",{"$f":"Monthly!AT51-Monthly!AT50","v":-3.3000000000000043},"--","--",{"$f":"Monthly!AW51-Monthly!AW50","v":-3.2000000000000028},{"$f":"Monthly!AX51-Monthly!AX50","v":-3.6999999999999957},{"$f":"Monthly!AY51-Monthly!AY50","v":-1.6000000000000014},{"$f":"Monthly!AZ51-Monthly!AZ50","v":-2.1000000000000014},{"$f":"Monthly!BA51-Monthly!BA50","v":-2.1999999999999957},"--","--",null,null,null,null,null,null,null,null,null,"--","--",null,null,null,null,null,{"$f":"(Monthly!BT51/Monthly!BT50)-1","v":7.0325166162505948E-3},null,null,null,{"$f":"(Monthly!BX51/Monthly!BX50)-1","v":-2.6902887139107601E-2},{"$f":"(Monthly!BY51/Monthly!BY50)-1","v":-7.5303643724696334E-2},"--","--",{"$f":"Monthly!CB51-Monthly!CB50","v":-0.10134902640764842},{"$f":"Monthly!CC51-Monthly!CC50","v":-0.17134902640765048},"--","--",null,"--","--",null,"--",{"$f":"(Monthly!CK51/Monthly!CK50)-1","v":1.7163698777085123E-3},{"$f":"(Monthly!CL51/Monthly!CL50)-1","v":-5.6016597510373467E-2},{"$f":"(Monthly!CM51/Monthly!CM50)-1","v":4.8685491723465812E-3},{"$f":"(Monthly!CN51/Monthly!CN50)-1","v":2.1526671546046039E-4},{"$f":"(Monthly!CO51/Monthly!CO50)-1","v":7.7348066298343898E-3},{"$f":"(Monthly!CP51/Monthly!CP50)-1","v":1.1494216879165853E-2},{"$f":"(Monthly!CQ51/Monthly!CQ50)-1","v":1.145937570612432E-3},"--","--","--",null,null,null,null,null,{"$f":"(Monthly!CZ51/Monthly!CZ50)-1","v":9.930486593843213E-4},{"$f":"(Monthly!DA51/Monthly!DA50)-1","v":3.1948881789136685E-3},null,null,null,null,null,"--","--",{"$f":"((Monthly!DI51-Monthly!DI50)*100)","v":19.999999999999574},"--",{"$f":"((Monthly!DK51-Monthly!DK50)*100)","v":-9.9999999999999645},{"$f":"Monthly!DL51-Monthly!DL50","v":-11},null,null,null,{"$f":"Monthly!DP51-Monthly!DP50","v":25},null,null,null,"--","--","--","--","--","--","--","--","--","--",null,null,null,null,null,null,null,null,null,null,null,null,null,{"$f":"(Monthly!EQ51/Monthly!EQ50)-1","v":-3.1645569620253333E-3},"--",{"$f":"(Monthly!ES51/Monthly!ES50)-1","v":0},null,null,null,null,null,{"$f":"((Monthly!EY51-Monthly!EY50)*100)","v":0},{"$f":"((Monthly!EZ51-Monthly!EZ50)*100)","v":-41.999999999999993},{"$f":"((Monthly!FA51-Monthly!FA50)*100)","v":-4.9999999999999822},{"$f":"((Monthly!FB51-Monthly!FB50)*100)","v":-1.9999999999999574},"--","--",{"$f":"((Monthly!FE51-Monthly!FE50)*100)","v":-4.0000000000000036},{"$f":"((Monthly!FF51-Monthly!FF50)*100)","v":3.9999999999999591},"--",{"$f":"((Monthly!FH51-Monthly!FH50)*100)","v":6.0000000000000053},{"$f":"((Monthly!FI51-Monthly!FI50)*100)","v":3.0000000000000249},null,null,null,null,null,null,"--","--","--","--","--","--","--","--","--",null,null,null,null,null,{"$f":"(Monthly!GD51/Monthly!GD50)-1","v":0},"--","--","--","--","--","--","--","--"]
["1962-06-01",null,null,null,{"$f":"(Monthly!E52/Monthly!E51)-1","v":{"$error":"#DIV/0!"}},{"$f":"(Monthly!F52/Monthly!F51)-1","v":{"$error":"#DIV/0!"}},{"$f":"(Monthly!G52/Monthly!G51)-1","v":{"$error":"#DIV/0!"}},{"$f":"(Monthly!H52/Monthly!H51)-1","v":{"$error":"#DIV/0!"}},null,null,null,null,null,null,null,null,null,null,null,null,null,null,null,"--",{"$f":"(Monthly!Y52/Monthly!Y51)-1","v":1.5623989491830192E-2},null,null,null,null,null,null,null,null,null,null,null,null,null,{"$f":"(Monthly!AM52/Monthly!AM51)-1","v":-2.1310111954743194E-3},"--","--","--",{"$f":"Monthly!AQ52-Monthly!AQ51","v":-1.4000000000000057},"--","--",{"$f":"Monthly!AT52-Monthly!AT51","v":-0.69999999999999574},"--","--",{"$f":"Monthly!AW52-Monthly!AW51","v":-3.8999999999999986},{"$f":"Monthly!AX52-Monthly!AX51","v":-1.1000000000000014},{"$f":"Monthly!AY52-Monthly!AY51","v":-0.29999999999999716},{"$f":"Monthly!AZ52-Monthly!AZ51","v":-0.5},{"$f":"Monthly!BA52-Monthly!BA51","v":-1.9000000000000057},"--","--",null,null,null,null,null,null,null,null,null,"--","--",null,null,null,null,null,{"$f":"(Monthly!BT52/Monthly!BT51)-1","v":1.1492650697295215E-2},null,null,null,{"$f":"(Monthly!BX52/Monthly!BX51)-1","v":-5.327039784221177E-2},{"$f":"(Monthly!BY52/Monthly!BY51)-1","v":1.0507880910683109E-2},"--","--",{"$f":"Monthly!CB52-Monthly!CB51","v":-0.10053619302949901},{"$f":"Monthly!CC52-Monthly!CC51","v":-0.10053619302949812},"--","--",null,"--","--",null,"--",{"$f":"(Monthly!CK52/Monthly!CK51)-1","v":2.7843221246519612E-3},{"$f":"(Monthly!CL52/Monthly!CL51)-1","v":4.8351648351648402E-2},{"$f":"(Monthly!CM52/Monthly!CM51)-1","v":-7.8488372093023284E-2},{"$f":"(Monthly!CN52/Monthly!CN51)-1","v":1.0761019283747064E-3},{"$f":"(Monthly!CO52/Monthly!CO51)-1","v":9.3201754385965341E-3},{"$f":"(Monthly!CP52/Monthly!CP51)-1","v":8.3032770390552013E-3},{"$f":"(Monthly!CQ52/Monthly!CQ51)-1","v":1.219859528070133E-3},"--","--","--",null,null,null,null,null,{"$f":"(Monthly!CZ52/Monthly!CZ51)-1","v":-9.9206349206337752E-4},{"$f":"(Monthly!DA52/Monthly!DA51)-1","v":0},null,null,null,null,null,"--","--",{"$f":"((Monthly!DI52-Monthly!DI51)*100)","v":-10.000000000000142},"--",{"$f":"((Monthly!DK52-Monthly!DK51)*100)","v":0},{"$f":"Monthly!DL52-Monthly!DL51","v":5},null,null,null,{"$f":"Monthly!DP52-Monthly!DP51","v":17},null,null,null,"--","--","--","--","--","--","--","--","--","--",null,null,null,null,null,null,null,null,null,null,null,null,null,{"$f":"(Monthly!EQ52/Monthly!EQ51)-1","v":0},"--",{"$f":"(Monthly!ES52/Monthly!ES51)-1","v":0},null,null,null,null,null,{"$f":"((Monthly!EY52-Monthly!EY51)*100)","v":0},{"$f":"((Monthly!EZ52-Monthly!EZ51)*100)","v":32.000000000000028},{"$f":"((Monthly!FA52-Monthly!FA51)*100)","v":0},{"$f":"((Monthly!FB52-Monthly!FB51)*100)","v":1.9999999999999574},"--","--",{"$f":"((Monthly!FE52-Monthly!FE51)*100)","v":4.0000000000000036},{"$f":"((Monthly!FF52-Monthly!FF51)*100)","v":0},"--",{"$f":"((Monthly!FH52-Monthly!FH51)*100)","v":-2.0000000000000018},{"$f":"((Monthly!FI52-Monthly!FI51)*100)","v":4.0000000000000036},null,null,null,null,null,null,"--","--","--","--","--","--","--","--","--",null,null,null,null,null,{"$f":"(Monthly!GD52/Monthly!GD51)-1","v":0},"--","--","--","--","--","--","--","--"]
["1962-07-01",null,null,null,{"$f":"(Monthly!E53/Monthly!E52)-1","v":{"$error":"#DIV/0!"}},{"$f":"(Monthly!F53/Monthly!F52)-1","v":{"$error":"#DIV/0!"}},{"$f":"(Monthly!G53/Monthly!G52)-1","v":{"$error":"#DIV/0!"}},{"$f":"(Monthly!H53/Monthly!H52)-1","v":{"$error":"#DIV/0!"}},null,null,null,null,null,null,null,null,null,null,null,null,null,null,null,"--",{"$f":"(Monthly!Y53/Monthly!Y52)-1","v":4.059997496810519E-3},null,null,null,null,null,null,null,null,null,null,null,null,null,{"$f":"(Monthly!AM53/Monthly!AM52)-1","v":9.6138703990351626E-3},"--","--","--",{"$f":"Monthly!AQ53-Monthly!AQ52","v":0.20000000000000284},"--","--",{"$f":"Monthly!AT53-Monthly!AT52","v":-0.39999999999999858},"--","--",{"$f":"Monthly!AW53-Monthly!AW52","v":-2.6000000000000014},{"$f":"Monthly!AX53-Monthly!AX52","v":0.70000000000000284},{"$f":"Monthly!AY53-Monthly!AY52","v":-0.10000000000000142},{"$f":"Monthly!AZ53-Monthly!AZ52","v":-9.9999999999994316E-2},{"$f":"Monthly!BA53-Monthly!BA52","v":1.8000000000000043},"--","--",null,null,null,null,null,null,null,null,null,"--","--",null,null,null,null,null,{"$f":"(Monthly!BT53/Monthly!BT52)-1","v":9.3535540060083466E-3},null,null,null,{"$f":"(Monthly!BX53/Monthly!BX52)-1","v":3.2763532763532721E-2},{"$f":"(Monthly!BY53/Monthly!BY52)-1","v":3.0329289428076223E-2},"--","--",{"$f":"Monthly!CB53-Monthly!CB52","v":-0.33727258390560078},{"$f":"Monthly!CC53-Monthly!CC52","v":-0.40727258390560195},"--","--",null,"--","--",null,"--",{"$f":"(Monthly!CK53/Monthly!CK52)-1","v":3.8445108927809279E-3},{"$f":"(Monthly!CL53/Monthly!CL52)-1","v":6.2893081761006275E-3},{"$f":"(Monthly!CM53/Monthly!CM52)-1","v":3.3648790746582558E-2},{"$f":"(Monthly!CN53/Monthly!CN52)-1","v":3.8698026400654228E-3},{"$f":"(Monthly!CO53/Monthly!CO52)-1","v":7.6045627376426506E-3},{"$f":"(Monthly!CP53/Monthly!CP52)-1","v":5.7539907948429558E-3},{"$f":"(Monthly!CQ53/Monthly!CQ52)-1","v":1.2022714342454499E-3},"--","--","--",null,null,null,null,null,{"$f":"(Monthly!CZ53/Monthly!CZ52)-1","v":3.3101621979469975E-4},{"$f":"(Monthly!DA53/Monthly!DA52)-1","v":0},null,null,null,null,null,"--","--",{"$f":"((Monthly!DI53-Monthly!DI52)*100)","v":-29.999999999999716},"--",{"$f":"((Monthly!DK53-Monthly!DK52)*100)","v":-9.9999999999999645},{"$f":"Monthly!DL53-Monthly!DL52","v":4},null,null,null,{"$f":"Monthly!DP53-Monthly!DP52","v":102},null,null,null,"--","--","--","--","--","--","--","--","--","--",null,null,null,null,null,null,null,null,null,null,null,null,null,{"$f":"(Monthly!EQ53/Monthly!EQ52)-1","v":3.1746031746031633E-3},"--",{"$f":"(Monthly!ES53/Monthly!ES52)-1","v":0},null,null,null,null,null,{"$f":"((Monthly!EY53-Monthly!EY52)*100)","v":0},{"$f":"((Monthly!EZ53-Monthly!EZ52)*100)","v":2.9999999999999805},{"$f":"((Monthly!FA53-Monthly!FA52)*100)","v":5.9999999999999609},{"$f":"((Monthly!FB53-Monthly!FB52)*100)","v":3.0000000000000249},"--","--",{"$f":"((Monthly!FE53-Monthly!FE52)*100)","v":18.999999999999993},{"$f":"((Monthly!FF53-Monthly!FF52)*100)","v":26.000000000000021},"--",{"$f":"((Monthly!FH53-Monthly!FH52)*100)","v":15.99999999999997},{"$f":"((Monthly!FI53-Monthly!FI52)*100)","v":9.9999999999999645},null,null,null,null,null,null,"--","--","--","--","--","--","--","--","--",null,null,null,null,null,{"$f":"(Monthly!GD53/Monthly!GD52)-1","v":0},"--","--","--","--","--","--","--","--"]
["1962-08-01",null,null,null,{"$f":"(Monthly!E54/Monthly!E53)-1","v":{"$error":"#DIV/0!"}},{"$f":"(Monthly!F54/Monthly!F53)-1","v":{"$error":"#DIV/0!"}},{"$f":"(Monthly!G54/Monthly!G53)-1","v":{"$error":"#DIV/0!"}},{"$f":"(Monthly!H54/Monthly!H53)-1","v":{"$error":"#DIV/0!"}},null,null,null,null,null,null,null,null,null,null,null,null,null,null,null,"--",{"$f":"(Monthly!Y54/Monthly!Y53)-1","v":4.2994480261029366E-3},null,null,null,null,null,null,null,null,null,null,null,null,null,{"$f":"(Monthly!AM54/Monthly!AM53)-1","v":1.0614176583376711E-3},"--","--","--",{"$f":"Monthly!AQ54-Monthly!AQ53","v":-1.5},"--","--",{"$f":"Monthly!AT54-Monthly!AT53","v":-4.2000000000000028},"--","--",{"$f":"Monthly!AW54-Monthly!AW53","v":1.4000000000000057},{"$f":"Monthly!AX54-Monthly!AX53","v":-0.30000000000000426},{"$f":"Monthly!AY54-Monthly!AY53","v":-3.8999999999999986},{"$f":"Monthly!AZ54-Monthly!AZ53","v":-2.2000000000000028},{"$f":"Monthly!BA54-Monthly!BA53","v":-1.3999999999999986},"--","--",null,null,null,null,null,null,null,null,null,"--","--",null,null,null,null,null,{"$f":"(Monthly!BT54/Monthly!BT53)-1","v":8.0585980565159865E-3},null,null,null,{"$f":"(Monthly!BX54/Monthly!BX53)-1","v":4.6206896551724164E-2},{"$f":"(Monthly!BY54/Monthly!BY53)-1","v":9.25147182506314E-3},"--","--",{"$f":"Monthly!CB54-Monthly!CB53","v":0.43293074562672462},{"$f":"Monthly!CC54-Monthly!CC53","v":0.64293074562672459},"--","--",null,"--","--",null,"--",{"$f":"(Monthly!CK54/Monthly!CK53)-1","v":2.7659574468086312E-3},{"$f":"(Monthly!CL54/Monthly!CL53)-1","v":-1.4583333333333393E-2},{"$f":"(Monthly!CM54/Monthly!CM53)-1","v":7.1210579857578837E-2},{"$f":"(Monthly!CN54/Monthly!CN53)-1","v":7.2814494367601235E-4},{"$f":"(Monthly!CO54/Monthly!CO53)-1","v":8.0862533692722671E-3},{"$f":"(Monthly!CP54/Monthly!CP53)-1","v":8.2870060843627247E-3},{"$f":"(Monthly!CQ54/Monthly!CQ53)-1","v":1.3509311775616872E-3},"--","--","--",null,null,null,null,null,{"$f":"(Monthly!CZ54/Monthly!CZ53)-1","v":1.9854401058903015E-3},{"$f":"(Monthly!DA54/Monthly!DA53)-1","v":3.1847133757962887E-3},null,null,null,null,null,"--","--",{"$f":"((Monthly!DI54-Monthly!DI53)*100)","v":50},"--",{"$f":"((Monthly!DK54-Monthly!DK53)*100)","v":29.999999999999982},{"$f":"Monthly!DL54-Monthly!DL53","v":-5},null,null,null,{"$f":"Monthly!DP54-Monthly!DP53","v":92},null,null,null,"--","--","--","--","--","--","--","--","--","--",null,null,null,null,null,null,null,null,null,null,null,null,null,{"$f":"(Monthly!EQ54/Monthly!EQ53)-1","v":0},"--",{"$f":"(Monthly!ES54/Monthly!ES53)-1","v":0},null,null,null,null,null,{"$f":"((Monthly!EY54-Monthly!EY53)*100)","v":0},{"$f":"((Monthly!EZ54-Monthly!EZ53)*100)","v":22.000000000000021},{"$f":"((Monthly!FA54-Monthly!FA53)*100)","v":0.99999999999997868},{"$f":"((Monthly!FB54-Monthly!FB53)*100)","v":0.99999999999997868},"--","--",{"$f":"((Monthly!FE54-Monthly!FE53)*100)","v":-10.000000000000009},{"$f":"((Monthly!FF54-Monthly!FF53)*100)","v":-8.9999999999999858},"--",{"$f":"((Monthly!FH54-Monthly!FH53)*100)","v":-8.9999999999999858},{"$f":"((Monthly!FI54-Monthly!FI53)*100)","v":-2.9999999999999805},null,null,null,null,null,null,"--","--","--","--","--","--","--","--","--",null,null,null,null,null,{"$f":"(Monthly!GD54/Monthly!GD53)-1","v":0},"--","--","--","--","--","--","--","--"]
["1962-09-01",null,null,null,{"$f":"(Monthly!E55/Monthly!E54)-1","v":{"$error":"#DIV/0!"}},{"$f":"(Monthly!F55/Monthly!F54)-1","v":{"$error":"#DIV/0!"}},{"$f":"(Monthly!G55/Monthly!G54)-1","v":{"$error":"#DIV/0!"}},{"$f":"(Monthly!H55/Monthly!H54)-1","v":{"$error":"#DIV/0!"}},null,null,null,null,null,null,null,null,null,null,null,null,null,null,null,"--",{"$f":"(Monthly!Y55/Monthly!Y54)-1","v":9.8032811159451949E-3},null,null,null,null,null,null,null,null,null,null,null,null,null,{"$f":"(Monthly!AM55/Monthly!AM54)-1","v":6.3427518194081323E-3},"--","--","--",{"$f":"Monthly!AQ55-Monthly!AQ54","v":0.5},"--","--",{"$f":"Monthly!AT55-Monthly!AT54","v":2.7000000000000028},"--","--",{"$f":"Monthly!AW55-Monthly!AW54","v":-2.7000000000000028},{"$f":"Monthly!AX55-Monthly!AX54","v":0.10000000000000142},{"$f":"Monthly!AY55-Monthly!AY54","v":-2.3000000000000043},{"$f":"Monthly!AZ55-Monthly!AZ54","v":-0.10000000000000142},{"$f":"Monthly!BA55-Monthly!BA54","v":1.3999999999999986},"--","--",null,null,null,null,null,null,null,null,null,"--","--",null,null,null,null,null,{"$f":"(Monthly!BT55/Monthly!BT54)-1","v":5.5190627751067201E-3},null,null,null,{"$f":"(Monthly!BX55/Monthly!BX54)-1","v":-0.12722478576137108},{"$f":"(Monthly!BY55/Monthly!BY54)-1","v":1.9166666666666776E-2},"--","--",{"$f":"Monthly!CB55-Monthly!CB54","v":0.23204055431299508},{"$f":"Monthly!CC55-Monthly!CC54","v":0.16204055431299658},"--","--",null,"--","--",null,"--",{"$f":"(Monthly!CK55/Monthly!CK54)-1","v":5.3044769785699497E-3},{"$f":"(Monthly!CL55/Monthly!CL54)-1","v":-8.0338266384777923E-2},{"$f":"(Monthly!CM55/Monthly!CM54)-1","v":-0.17758784425451091},{"$f":"(Monthly!CN55/Monthly!CN54)-1","v":2.5680534155103629E-4},{"$f":"(Monthly!CO55/Monthly!CO54)-1","v":9.6256684491979883E-3},{"$f":"(Monthly!CP55/Monthly!CP54)-1","v":5.801217468446751E-3},{"$f":"(Monthly!CQ55/Monthly!CQ54)-1","v":1.4347663151133005E-3},"--","--","--",null,null,null,null,null,{"$f":"(Monthly!CZ55/Monthly!CZ54)-1","v":4.6235138705417178E-3},{"$f":"(Monthly!DA55/Monthly!DA54)-1","v":0},null,null,null,null,null,"--","--",{"$f":"((Monthly!DI55-Monthly!DI54)*100)","v":0},"--",{"$f":"((Monthly!DK55-Monthly!DK54)*100)","v":-10.000000000000053},{"$f":"Monthly!DL55-Monthly!DL54","v":51},null,null,null,{"$f":"Monthly!DP55-Monthly!DP54","v":139},null,null,null,"--","--","--","--","--","--","--","--","--","--",null,null,null,null,null,null,null,null,null,null,null,null,null,{"$f":"(Monthly!EQ55/Monthly!EQ54)-1","v":9.4936708860757779E-3},"--",{"$f":"(Monthly!ES55/Monthly!ES54)-1","v":0},null,null,null,null,null,{"$f":"((Monthly!EY55-Monthly!EY54)*100)","v":0},{"$f":"((Monthly!EZ55-Monthly!EZ54)*100)","v":-3.0000000000000249},{"$f":"((Monthly!FA55-Monthly!FA54)*100)","v":-2.9999999999999361},{"$f":"((Monthly!FB55-Monthly!FB54)*100)","v":-2.9999999999999361},"--","--",{"$f":"((Monthly!FE55-Monthly!FE54)*100)","v":-4.0000000000000036},{"$f":"((Monthly!FF55-Monthly!FF54)*100)","v":-14.000000000000012},"--",{"$f":"((Monthly!FH55-Monthly!FH54)*100)","v":-0.99999999999997868},{"$f":"((Monthly!FI55-Monthly!FI54)*100)","v":0},null,null,null,null,null,null,"--","--","--","--","--","--","--","--","--",null,null,null,null,null,{"$f":"(Monthly!GD55/Monthly!GD54)-1","v":0},"--","--","--","--","--","--","--","--"]
["1962-10-01",null,null,null,{"$f":"(Monthly!E56/Monthly!E55)-1","v":{"$error":"#DIV/0!"}},{"$f":"(Monthly!F56/Monthly!F55)-1","v":{"$error":"#DIV/0!"}},{"$f":"(Monthly!G56/Monthly!G55)-1","v":{"$error":"#DIV/0!"}},{"$f":"(Monthly!H56/Monthly!H55)-1","v":{"$error":"#DIV/0!"}},null,null,null,null,null,null,null,null,null,null,null,null,null,null,null,"--",{"$f":"(Monthly!Y56/Monthly!Y55)-1","v":1.0245053219935407E-2},null,null,null,null,null,null,null,null,null,null,null,null,null,{"$f":"(Monthly!AM56/Monthly!AM55)-1","v":1.0498330840924552E-3},"--","--","--",{"$f":"Monthly!AQ56-Monthly!AQ55","v":1.2000000000000028},"--","--",{"$f":"Monthly!AT56-Monthly!AT55","v":0.19999999999999574},"--","--",{"$f":"Monthly!AW56-Monthly!AW55","v":3.7000000000000028},{"$f":"Monthly!AX56-Monthly!AX55","v":0.60000000000000142},{"$f":"Monthly!AY56-Monthly!AY55","v":-1.5},{"$f":"Monthly!AZ56-Monthly!AZ55","v":1.6000000000000014},{"$f":"Monthly!BA56-Monthly!BA55","v":1.6000000000000014},"--","--",null,null,null,null,null,null,null,null,null,"--","--",null,null,null,null,null,{"$f":"(Monthly!BT56/Monthly!BT55)-1","v":7.0613193251845008E-3},null,null,null,{"$f":"(Monthly!BX56/Monthly!BX55)-1","v":0.15785498489425986},{"$f":"(Monthly!BY56/Monthly!BY55)-1","v":-3.4341782502044116E-2},"--","--",{"$f":"Monthly!CB56-Monthly!CB55","v":-0.33342228152102216},{"$f":"Monthly!CC56-Monthly!CC55","v":-0.47342228152102273},"--","--",null,"--","--",null,"--",{"$f":"(Monthly!CK56/Monthly!CK55)-1","v":3.7990713381172991E-3},{"$f":"(Monthly!CL56/Monthly!CL55)-1","v":8.2758620689655116E-2},{"$f":"(Monthly!CM56/Monthly!CM55)-1","v":0.14318706697459582},{"$f":"(Monthly!CN56/Monthly!CN55)-1","v":4.4073598630725019E-3},{"$f":"(Monthly!CO56/Monthly!CO55)-1","v":7.9449152542372392E-3},{"$f":"(Monthly!CP56/Monthly!CP55)-1","v":8.8894508137624673E-3},{"$f":"(Monthly!CQ56/Monthly!CQ55)-1","v":1.4166729035913761E-3},"--","--","--",null,null,null,null,null,{"$f":"(Monthly!CZ56/Monthly!CZ55)-1","v":-1.3149243918475495E-3},{"$f":"(Monthly!DA56/Monthly!DA55)-1","v":0},null,null,null,null,null,"--","--",{"$f":"((Monthly!DI56-Monthly!DI55)*100)","v":-29.999999999999716},"--",{"$f":"((Monthly!DK56-Monthly!DK55)*100)","v":-19.999999999999929},{"$f":"Monthly!DL56-Monthly!DL55","v":1},null,null,null,{"$f":"Monthly!DP56-Monthly!DP55","v":64},null,null,null,"--","--","--","--","--","--","--","--","--","--",null,null,null,null,null,null,null,null,null,null,null,null,null,{"$f":"(Monthly!EQ56/Monthly!EQ55)-1","v":-6.2695924764890609E-3},"--",{"$f":"(Monthly!ES56/Monthly!ES55)-1","v":0},null,null,null,null,null,{"$f":"((Monthly!EY56-Monthly!EY55)*100)","v":0},{"$f":"((Monthly!EZ56-Monthly!EZ55)*100)","v":0},{"$f":"((Monthly!FA56-Monthly!FA55)*100)","v":-4.0000000000000036},{"$f":"((Monthly!FB56-Monthly!FB55)*100)","v":-4.0000000000000036},"--","--",{"$f":"((Monthly!FE56-Monthly!FE55)*100)","v":-3.9999999999999591},{"$f":"((Monthly!FF56-Monthly!FF55)*100)","v":-8.0000000000000071},"--",{"$f":"((Monthly!FH56-Monthly!FH55)*100)","v":-6.0000000000000053},{"$f":"((Monthly!FI56-Monthly!FI55)*100)","v":-4.9999999999999822},null,null,null,null,null,null,"--","--","--","--","--","--","--","--","--",null,null,null,null,null,{"$f":"(Monthly!GD56/Monthly!GD55)-1","v":0},"--","--","--","--","--","--","--","--"]
["1962-11-01",null,null,null,{"$f":"(Monthly!E57/Monthly!E56)-1","v":{"$error":"#DIV/0!"}},{"$f":"(Monthly!F57/Monthly!F56)-1","v":{"$error":"#DIV/0!"}},{"$f":"(Monthly!G57/Monthly!G56)-1","v":{"$error":"#DIV/0!"}},{"$f":"(Monthly!H57/Monthly!H56)-1","v":{"$error":"#DIV/0!"}},null,null,null,null,null,null,null,null,null,null,null,null,null,null,null,"--",{"$f":"(Monthly!Y57/Monthly!Y56)-1","v":7.494338156661895E-3},null,null,null,null,null,null,null,null,null,null,null,null,null,{"$f":"(Monthly!AM57/Monthly!AM56)-1","v":4.194928361789918E-3},"--","--","--",{"$f":"Monthly!AQ57-Monthly!AQ56","v":2.5999999999999943},"--","--",{"$f":"Monthly!AT57-Monthly!AT56","v":-1.1999999999999957},"--","--",{"$f":"Monthly!AW57-Monthly!AW56","v":5.2999999999999972},{"$f":"Monthly!AX57-Monthly!AX56","v":4.1999999999999957},{"$f":"Monthly!AY57-Monthly!AY56","v":3.2000000000000028},{"$f":"Monthly!AZ57-Monthly!AZ56","v":2.8999999999999986},{"$f":"Monthly!BA57-Monthly!BA56","v":2},"--","--",null,null,null,null,null,null,null,null,null,"--","--",null,null,null,null,null,{"$f":"(Monthly!BT57/Monthly!BT56)-1","v":6.8513075665319612E-3},null,null,null,{"$f":"(Monthly!BX57/Monthly!BX56)-1","v":5.8056099151989615E-2},{"$f":"(Monthly!BY57/Monthly!BY56)-1","v":4.6570702794242136E-2},"--","--",{"$f":"Monthly!CB57-Monthly!CB56","v":0.29999999999999982},{"$f":"Monthly!CC57-Monthly!CC56","v":0.50999999999999979},"--","--",null,"--","--",null,"--",{"$f":"(Monthly!CK57/Monthly!CK56)-1","v":5.2565180824222235E-3},{"$f":"(Monthly!CL57/Monthly!CL56)-1","v":-7.0063694267516019E-2},{"$f":"(Monthly!CM57/Monthly!CM56)-1","v":9.0909090909090828E-2},{"$f":"(Monthly!CN57/Monthly!CN56)-1","v":3.748988199207437E-3},{"$f":"(Monthly!CO57/Monthly!CO56)-1","v":1.2611665790856375E-2},{"$f":"(Monthly!CP57/Monthly!CP56)-1","v":9.1482927513357737E-3},{"$f":"(Monthly!CQ57/Monthly!CQ56)-1","v":1.3399315620612473E-3},"--","--","--",null,null,null,null,null,{"$f":"(Monthly!CZ57/Monthly!CZ56)-1","v":0},{"$f":"(Monthly!DA57/Monthly!DA56)-1","v":0},null,null,null,null,null,"--","--",{"$f":"((Monthly!DI57-Monthly!DI56)*100)","v":-20.000000000000284},"--",{"$f":"((Monthly!DK57-Monthly!DK56)*100)","v":29.999999999999982},{"$f":"Monthly!DL57-Monthly!DL56","v":-39},null,null,null,{"$f":"Monthly!DP57-Monthly!DP56","v":15},null,null,null,"--","--","--","--","--","--","--","--","--","--",null,null,null,null,null,null,null,null,null,null,null,null,null,{"$f":"(Monthly!EQ57/Monthly!EQ56)-1","v":0},"--",{"$f":"(Monthly!ES57/Monthly!ES56)-1","v":0},null,null,null,null,null,{"$f":"((Monthly!EY57-Monthly!EY56)*100)","v":0},{"$f":"((Monthly!EZ57-Monthly!EZ56)*100)","v":4.0000000000000036},{"$f":"((Monthly!FA57-Monthly!FA56)*100)","v":-3.0000000000000249},{"$f":"((Monthly!FB57-Monthly!FB56)*100)","v":-3.0000000000000249},"--","--",{"$f":"((Monthly!FE57-Monthly!FE56)*100)","v":8.9999999999999858},{"$f":"((Monthly!FF57-Monthly!FF56)*100)","v":2.0000000000000018},"--",{"$f":"((Monthly!FH57-Monthly!FH56)*100)","v":-4.0000000000000036},{"$f":"((Monthly!FI57-Monthly!FI56)*100)","v":-1.0000000000000231},null,null,null,null,null,null,"--","--","--","--","--","--","--","--","--",null,null,null,null,null,{"$f":"(Monthly!GD57/Monthly!GD56)-1","v":0},"--","--","--","--","--","--","--","--"]
["1962-12-01",null,null,null,{"$f":"(Monthly!E58/Monthly!E57)-1","v":{"$error":"#DIV/0!"}},{"$f":"(Monthly!F58/Monthly!F57)-1","v":{"$error":"#DIV/0!"}},{"$f":"(Monthly!G58/Monthly!G57)-1","v":{"$error":"#DIV/0!"}},{"$f":"(Monthly!H58/Monthly!H57)-1","v":{"$error":"#DIV/0!"}},null,null,null,null,null,null,null,null,null,null,null,null,null,null,null,"--",{"$f":"(Monthly!Y58/Monthly!Y57)-1","v":5.0381569413429084E-3},null,null,null,null,null,null,null,null,null,null,null,null,null,{"$f":"(Monthly!AM58/Monthly!AM57)-1","v":0},"--","--","--",{"$f":"Monthly!AQ58-Monthly!AQ57","v":3.4000000000000057},"--","--",{"$f":"Monthly!AT58-Monthly!AT57","v":5.8999999999999986},"--","--",{"$f":"Monthly!AW58-Monthly!AW57","v":-1.3999999999999986},{"$f":"Monthly!AX58-Monthly!AX57","v":1.9000000000000057},{"$f":"Monthly!AY58-Monthly!AY57","v":0.19999999999999574},{"$f":"Monthly!AZ58-Monthly!AZ57","v":6.3999999999999986},{"$f":"Monthly!BA58-Monthly!BA57","v":1.3999999999999986},"--","--",null,null,null,null,null,null,null,null,null,"--","--",null,null,null,null,null,{"$f":"(Monthly!BT58/Monthly!BT57)-1","v":4.0416317963840598E-3},null,null,null,{"$f":"(Monthly!BX58/Monthly!BX57)-1","v":-3.5758323057953123E-2},{"$f":"(Monthly!BY58/Monthly!BY57)-1","v":0},"--","--",{"$f":"Monthly!CB58-Monthly!CB57","v":-0.30130045599654487},{"$f":"Monthly!CC58-Monthly!CC57","v":-0.44130045599654544},"--","--",null,"--","--",null,"--",{"$f":"(Monthly!CK58/Monthly!CK57)-1","v":4.1832252666806902E-3},{"$f":"(Monthly!CL58/Monthly!CL57)-1","v":-6.849315068493067E-3},{"$f":"(Monthly!CM58/Monthly!CM57)-1","v":-7.5925925925925952E-2},{"$f":"(Monthly!CN58/Monthly!CN57)-1","v":4.4565171257586744E-3},{"$f":"(Monthly!CO58/Monthly!CO57)-1","v":1.089776855215363E-2},{"$f":"(Monthly!CP58/Monthly!CP57)-1","v":7.1641773392605579E-3},{"$f":"(Monthly!CQ58/Monthly!CQ57)-1","v":1.1835328990159599E-3},"--","--","--",null,null,null,null,null,{"$f":"(Monthly!CZ58/Monthly!CZ57)-1","v":0},{"$f":"(Monthly!DA58/Monthly!DA57)-1","v":3.1746031746031633E-3},null,null,null,null,null,"--","--",{"$f":"((Monthly!DI58-Monthly!DI57)*100)","v":-10.000000000000142},"--",{"$f":"((Monthly!DK58-Monthly!DK57)*100)","v":-20.000000000000018},{"$f":"Monthly!DL58-Monthly!DL57","v":-10},null,null,null,{"$f":"Monthly!DP58-Monthly!DP57","v":-28},null,null,null,"--","--","--","--","--","--","--","--","--","--",null,null,null,null,null,null,null,null,null,null,null,null,null,{"$f":"(Monthly!EQ58/Monthly!EQ57)-1","v":-3.154574132492094E-3},"--",{"$f":"(Monthly!ES58/Monthly!ES57)-1","v":0},null,null,null,null,null,{"$f":"((Monthly!EY58-Monthly!EY57)*100)","v":0},{"$f":"((Monthly!EZ58-Monthly!EZ57)*100)","v":-0.99999999999997868},{"$f":"((Monthly!FA58-Monthly!FA57)*100)","v":-0.99999999999997868},{"$f":"((Monthly!FB58-Monthly!FB57)*100)","v":-4.0000000000000036},"--","--",{"$f":"((Monthly!FE58-Monthly!FE57)*100)","v":4.0000000000000036},{"$f":"((Monthly!FF58-Monthly!FF57)*100)","v":0.99999999999997868},"--",{"$f":"((Monthly!FH58-Monthly!FH57)*100)","v":-4.0000000000000036},{"$f":"((Monthly!FI58-Monthly!FI57)*100)","v":-6.0000000000000053},null,null,null,null,null,null,"--","--","--","--","--","--","--","--","--",null,null,null,null,null,{"$f":"(Monthly!GD58/Monthly!GD57)-1","v":0},"--","--","--","--","--","--","--","--"]
["1963-01-01",null,null,null,{"$f":"(Monthly!E59/Monthly!E58)-1","v":{"$error":"#DIV/0!"}},{"$f":"(Monthly!F59/Monthly!F58)-1","v":{"$error":"#DIV/0!"}},{"$f":"(Monthly!G59/Monthly!G58)-1","v":{"$error":"#DIV/0!"}},{"$f":"(Monthly!H59/Monthly!H58)-1","v":{"$error":"#DIV/0!"}},null,null,null,null,null,null,null,null,null,null,null,null,null,null,null,"--",{"$f":"(Monthly!Y59/Monthly!Y58)-1","v":4.7367489080392122E-3},null,null,null,null,null,null,null,null,null,null,null,null,null,{"$f":"(Monthly!AM59/Monthly!AM58)-1","v":7.3142144451039393E-3},"--","--","--",{"$f":"Monthly!AQ59-Monthly!AQ58","v":-2},"--","--",{"$f":"Monthly!AT59-Monthly!AT58","v":-2.1000000000000014},"--","--",{"$f":"Monthly!AW59-Monthly!AW58","v":-2.7000000000000028},{"$f":"Monthly!AX59-Monthly!AX58","v":1.1999999999999957},{"$f":"Monthly!AY59-Monthly!AY58","v":1.2000000000000028},{"$f":"Monthly!AZ59-Monthly!AZ58","v":-6.7999999999999972},{"$f":"Monthly!BA59-Monthly!BA58","v":0.29999999999999716},"--","--",null,null,null,null,null,null,null,null,null,"--","--",null,null,null,null,null,{"$f":"(Monthly!BT59/Monthly!BT58)-1","v":1.0329669602722857E-2},null,null,null,{"$f":"(Monthly!BX59/Monthly!BX58)-1","v":-0.20460358056265981},{"$f":"(Monthly!BY59/Monthly!BY58)-1","v":9.7087378640776656E-3},"--","--",{"$f":"Monthly!CB59-Monthly!CB58","v":0.29863556355604892},{"$f":"Monthly!CC59-Monthly!CC58","v":0.43863556355604949},"--","--",null,"--","--",null,"--",{"$f":"(Monthly!CK59/Monthly!CK58)-1","v":8.5398875234325988E-3},{"$f":"(Monthly!CL59/Monthly!CL58)-1","v":7.3563218390804597E-2},{"$f":"(Monthly!CM59/Monthly!CM58)-1","v":-0.18837675350701399},{"$f":"(Monthly!CN59/Monthly!CN58)-1","v":7.0565368038537635E-3},{"$f":"(Monthly!CO59/Monthly!CO58)-1","v":7.7002053388091074E-3},{"$f":"(Monthly!CP59/Monthly!CP58)-1","v":7.7766866735067275E-3},{"$f":"(Monthly!CQ59/Monthly!CQ58)-1","v":1.155509169524338E-3},"--","--","--",null,null,null,null,null,{"$f":"(Monthly!CZ59/Monthly!CZ58)-1","v":1.9749835418039208E-3},{"$f":"(Monthly!DA59/Monthly!DA58)-1","v":-3.1645569620253333E-3},null,null,null,null,null,"--","--",{"$f":"((Monthly!DI59-Monthly!DI58)*100)","v":20.000000000000284},"--",{"$f":"((Monthly!DK59-Monthly!DK58)*100)","v":20.000000000000018},{"$f":"Monthly!DL59-Monthly!DL58","v":25},null,null,null,{"$f":"Monthly!DP59-Monthly!DP58","v":88},null,null,null,"--","--","--","--","--","--","--","--","--","--",null,null,null,null,null,null,null,null,null,null,null,null,null,{"$f":"(Monthly!EQ59/Monthly!EQ58)-1","v":0},"--",{"$f":"(Monthly!ES59/Monthly!ES58)-1","v":0},null,null,null,null,null,{"$f":"((Monthly!EY59-Monthly!EY58)*100)","v":0},{"$f":"((Monthly!EZ59-Monthly!EZ58)*100)","v":-1.0000000000000231},{"$f":"((Monthly!FA59-Monthly!FA58)*100)","v":-3.0000000000000249},{"$f":"((Monthly!FB59-Monthly!FB58)*100)","v":-0.99999999999997868},"--","--",{"$f":"((Monthly!FE59-Monthly!FE58)*100)","v":4.0000000000000036},{"$f":"((Monthly!FF59-Monthly!FF58)*100)","v":3.0000000000000249},"--",{"$f":"((Monthly!FH59-Monthly!FH58)*100)","v":2.0000000000000018},{"$f":"((Monthly!FI59-Monthly!FI58)*100)","v":-2.9999999999999805},null,null,null,null,null,null,"--","--","--","--","--","--","--","--","--",null,null,null,null,null,{"$f":"(Monthly!GD59/Monthly!GD58)-1","v":0},"--","--","--","--","--","--","--","--"]
["1963-02-01",null,null,null,{"$f":"(Monthly!E60/Monthly!E59)-1","v":{"$error":"#DIV/0!"}},{"$f":"(Monthly!F60/Monthly!F59)-1","v":{"$error":"#DIV/0!"}},{"$f":"(Monthly!G60/Monthly!G59)-1","v":{"$error":"#DIV/0!"}},{"$f":"(Monthly!H60/Monthly!H59)-1","v":{"$error":"#DIV/0!"}},null,null,null,null,null,null,null,null,null,null,null,null,null,null,null,"--",{"$f":"(Monthly!Y60/Monthly!Y59)-1","v":3.5059155768815131E-3},null,null,null,null,null,null,null,null,null,null,null,null,null,{"$f":"(Monthly!AM60/Monthly!AM59)-1","v":1.1411906422367446E-2},"--","--","--",{"$f":"Monthly!AQ60-Monthly!AQ59","v":-0.10000000000000142},"--","--",{"$f":"Monthly!AT60-Monthly!AT59","v":-2.2999999999999972},"--","--",{"$f":"Monthly!AW60-Monthly!AW59","v":0.89999999999999858},{"$f":"Monthly!AX60-Monthly!AX59","v":-0.5},{"$f":"Monthly!AY60-Monthly!AY59","v":3.2000000000000028},{"$f":"Monthly!AZ60-Monthly!AZ59","v":1.2000000000000028},{"$f":"Monthly!BA60-Monthly!BA59","v":0.60000000000000142},"--","--",null,null,null,null,null,null,null,null,null,"--","--",null,null,null,null,null,{"$f":"(Monthly!BT60/Monthly!BT59)-1","v":1.1779110575663942E-2},null,null,null,{"$f":"(Monthly!BX60/Monthly!BX59)-1","v":0.17041800643086824},{"$f":"(Monthly!BY60/Monthly!BY59)-1","v":-2.8846153846153855E-2},"--","--",{"$f":"Monthly!CB60-Monthly!CB59","v":9.7269709246305958E-2},{"$f":"Monthly!CC60-Monthly!CC59","v":0.23726970924630741},"--","--",null,"--","--",null,{"$f":"(Monthly!CJ60/Monthly!CJ59)-1","v":-0.21489001692047383},{"$f":"(Monthly!CK60/Monthly!CK59)-1","v":-4.5435770342833193E-3},{"$f":"(Monthly!CL60/Monthly!CL59)-1","v":-2.5695931477516143E-2},{"$f":"(Monthly!CM60/Monthly!CM59)-1","v":0.20617283950617282},{"$f":"(Monthly!CN60/Monthly!CN59)-1","v":-6.0420425460496752E-3},{"$f":"(Monthly!CO60/Monthly!CO59)-1","v":9.1696383087109812E-3},{"$f":"(Monthly!CP60/Monthly!CP59)-1","v":1.0491359157545288E-2},{"$f":"(Monthly!CQ60/Monthly!CQ59)-1","v":1.0637562296225145E-3},"--","--","--",null,null,null,null,null,{"$f":"(Monthly!CZ60/Monthly!CZ59)-1","v":1.3140604467805073E-3},{"$f":"(Monthly!DA60/Monthly!DA59)-1","v":3.1746031746031633E-3},null,null,null,null,null,"--","--",{"$f":"((Monthly!DI60-Monthly!DI59)*100)","v":0},"--",{"$f":"((Monthly!DK60-Monthly!DK59)*100)","v":20.000000000000018},{"$f":"Monthly!DL60-Monthly!DL59","v":-3},null,null,null,{"$f":"Monthly!DP60-Monthly!DP59","v":114},null,null,null,"--","--","--","--","--","--","--","--","--","--",null,null,null,null,null,null,null,null,null,null,null,null,null,{"$f":"(Monthly!EQ60/Monthly!EQ59)-1","v":-3.1645569620253333E-3},"--",{"$f":"(Monthly!ES60/Monthly!ES59)-1","v":0},null,null,null,null,null,{"$f":"((Monthly!EY60-Monthly!EY59)*100)","v":0},{"$f":"((Monthly!EZ60-Monthly!EZ59)*100)","v":8.0000000000000071},{"$f":"((Monthly!FA60-Monthly!FA59)*100)","v":-1.9999999999999574},{"$f":"((Monthly!FB60-Monthly!FB59)*100)","v":-2.0000000000000462},"--","--",{"$f":"((Monthly!FE60-Monthly!FE59)*100)","v":0.99999999999997868},{"$f":"((Monthly!FF60-Monthly!FF59)*100)","v":-3.0000000000000249},"--",{"$f":"((Monthly!FH60-Monthly!FH59)*100)","v":8.0000000000000071},{"$f":"((Monthly!FI60-Monthly!FI59)*100)","v":8.9999999999999858},null,null,null,null,null,null,"--","--","--","--","--","--","--","--","--",null,null,null,null,null,{"$f":"(Monthly!GD60/Monthly!GD59)-1","v":0},"--","--","--","--","--","--","--","--"]
["1963-03-01",null,null,null,{"$f":"(Monthly!E61/Monthly!E60)-1","v":{"$error":"#DIV/0!"}},{"$f":"(Monthly!F61/Monthly!F60)-1","v":{"$error":"#DIV/0!"}},{"$f":"(Monthly!G61/Monthly!G60)-1","v":{"$error":"#DIV/0!"}},{"$f":"(Monthly!H61/Monthly!H60)-1","v":{"$error":"#DIV/0!"}},null,null,null,null,null,null,null,null,null,null,null,null,null,null,null,"--",{"$f":"(Monthly!Y61/Monthly!Y60)-1","v":3.0211543527620677E-3},null,null,null,null,null,null,null,null,null,null,null,null,null,{"$f":"(Monthly!AM61/Monthly!AM60)-1","v":6.1541071013748727E-3},"--","--","--",{"$f":"Monthly!AQ61-Monthly!AQ60","v":-0.39999999999999858},"--","--",{"$f":"Monthly!AT61-Monthly!AT60","v":2.1999999999999957},"--","--",{"$f":"Monthly!AW61-Monthly!AW60","v":-1.5},{"$f":"Monthly!AX61-Monthly!AX60","v":-2.8999999999999986},{"$f":"Monthly!AY61-Monthly!AY60","v":-4.2000000000000028},{"$f":"Monthly!AZ61-Monthly!AZ60","v":-1.4000000000000057},{"$f":"Monthly!BA61-Monthly!BA60","v":3.8999999999999986},"--","--",null,null,null,null,null,null,null,null,null,"--","--",null,null,null,null,null,{"$f":"(Monthly!BT61/Monthly!BT60)-1","v":1.0871886466442771E-2},null,null,null,{"$f":"(Monthly!BX61/Monthly!BX60)-1","v":5.3571428571428603E-2},{"$f":"(Monthly!BY61/Monthly!BY60)-1","v":3.7953795379537913E-2},"--","--",{"$f":"Monthly!CB61-Monthly!CB60","v":-0.30188033337492648},{"$f":"Monthly!CC61-Monthly!CC60","v":-0.44188033337492882},"--","--",null,"--","--",null,{"$f":"(Monthly!CJ61/Monthly!CJ60)-1","v":-6.4655172413793371E-3},{"$f":"(Monthly!CK61/Monthly!CK60)-1","v":3.5269709543568339E-3},{"$f":"(Monthly!CL61/Monthly!CL60)-1","v":-8.79120879120876E-3},{"$f":"(Monthly!CM61/Monthly!CM60)-1","v":-1.5353121801433001E-2},{"$f":"(Monthly!CN61/Monthly!CN60)-1","v":3.9680864536282279E-3},{"$f":"(Monthly!CO61/Monthly!CO60)-1","v":1.009591115598174E-2},{"$f":"(Monthly!CP61/Monthly!CP60)-1","v":1.0040820562493558E-2},{"$f":"(Monthly!CQ61/Monthly!CQ60)-1","v":9.2448449363224938E-4},"--","--","--",null,null,null,null,null,{"$f":"(Monthly!CZ61/Monthly!CZ60)-1","v":9.8425196850393526E-4},{"$f":"(Monthly!DA61/Monthly!DA60)-1","v":3.1645569620253333E-3},null,null,null,null,null,"--","--",{"$f":"((Monthly!DI61-Monthly!DI60)*100)","v":0},"--",{"$f":"((Monthly!DK61-Monthly!DK60)*100)","v":-20.000000000000018},{"$f":"Monthly!DL61-Monthly!DL60","v":22},null,null,null,{"$f":"Monthly!DP61-Monthly!DP60","v":92},null,null,null,"--","--","--","--","--","--","--","--","--","--",null,null,null,null,null,null,null,null,null,null,null,null,null,{"$f":"(Monthly!EQ61/Monthly!EQ60)-1","v":0},"--",{"$f":"(Monthly!ES61/Monthly!ES60)-1","v":0},null,null,null,null,null,{"$f":"((Monthly!EY61-Monthly!EY60)*100)","v":0},{"$f":"((Monthly!EZ61-Monthly!EZ60)*100)","v":-2.0000000000000018},{"$f":"((Monthly!FA61-Monthly!FA60)*100)","v":0},{"$f":"((Monthly!FB61-Monthly!FB60)*100)","v":-0.99999999999997868},"--","--",{"$f":"((Monthly!FE61-Monthly!FE60)*100)","v":-2.9999999999999805},{"$f":"((Monthly!FF61-Monthly!FF60)*100)","v":2.0000000000000018},"--",{"$f":"((Monthly!FH61-Monthly!FH60)*100)","v":2.0000000000000018},{"$f":"((Monthly!FI61-Monthly!FI60)*100)","v":1.0000000000000231},null,null,null,null,null,null,"--","--","--","--","--","--","--","--","--",null,null,null,null,null,{"$f":"(Monthly!GD61/Monthly!GD60)-1","v":0},"--","--","--","--","--","--","--","--"]
["1963-04-01",null,null,null,{"$f":"(Monthly!E62/Monthly!E61)-1","v":{"$error":"#DIV/0!"}},{"$f":"(Monthly!F62/Monthly!F61)-1","v":{"$error":"#DIV/0!"}},{"$f":"(Monthly!G62/Monthly!G61)-1","v":{"$error":"#DIV/0!"}},{"$f":"(Monthly!H62/Monthly!H61)-1","v":{"$error":"#DIV/0!"}},null,null,null,null,null,null,null,null,null,null,null,null,null,null,null,"--",{"$f":"(Monthly!Y62/Monthly!Y61)-1","v":8.7089021322011018E-3},null,null,null,null,null,null,null,null,null,null,null,null,null,{"$f":"(Monthly!AM62/Monthly!AM61)-1","v":9.1765309488036628E-3},"--","--","--",{"$f":"Monthly!AQ62-Monthly!AQ61","v":2.8999999999999986},"--","--",{"$f":"Monthly!AT62-Monthly!AT61","v":0.30000000000000426},"--","--",{"$f":"Monthly!AW62-Monthly!AW61","v":1.8000000000000043},{"$f":"Monthly!AX62-Monthly!AX61","v":3.1000000000000014},{"$f":"Monthly!AY62-Monthly!AY61","v":7.5},{"$f":"Monthly!AZ62-Monthly!AZ61","v":4.7000000000000028},{"$f":"Monthly!BA62-Monthly!BA61","v":3.3000000000000043},"--","--",null,null,null,null,null,null,null,null,null,"--","--",null,null,null,null,null,{"$f":"(Monthly!BT62/Monthly!BT61)-1","v":9.4650047693125572E-3},null,null,null,{"$f":"(Monthly!BX62/Monthly!BX61)-1","v":0.10104302477183835},{"$f":"(Monthly!BY62/Monthly!BY61)-1","v":2.3847376788553198E-2},"--","--",{"$f":"Monthly!CB62-Monthly!CB61","v":-0.23320350519515642},{"$f":"Monthly!CC62-Monthly!CC61","v":-0.23320350519515642},"--","--",null,"--","--",null,{"$f":"(Monthly!CJ62/Monthly!CJ61)-1","v":0.31236442516268981},{"$f":"(Monthly!CK62/Monthly!CK61)-1","v":2.8943560057888007E-3},{"$f":"(Monthly!CL62/Monthly!CL61)-1","v":1.1086474501108556E-2},{"$f":"(Monthly!CM62/Monthly!CM61)-1","v":0.13929313929313936},{"$f":"(Monthly!CN62/Monthly!CN61)-1","v":4.5410587394356661E-3},{"$f":"(Monthly!CO62/Monthly!CO61)-1","v":7.496251874062887E-3},{"$f":"(Monthly!CP62/Monthly!CP61)-1","v":1.0391960430063074E-2},{"$f":"(Monthly!CQ62/Monthly!CQ61)-1","v":1.0244868276474417E-3},"--","--","--",null,null,null,null,null,{"$f":"(Monthly!CZ62/Monthly!CZ61)-1","v":-9.8328416912496497E-4},{"$f":"(Monthly!DA62/Monthly!DA61)-1","v":0},null,null,null,null,null,"--","--",{"$f":"((Monthly!DI62-Monthly!DI61)*100)","v":19.999999999999574},"--",{"$f":"((Monthly!DK62-Monthly!DK61)*100)","v":0},{"$f":"Monthly!DL62-Monthly!DL61","v":38},null,null,null,{"$f":"Monthly!DP62-Monthly!DP61","v":258},null,null,null,"--","--","--","--","--","--","--","--","--","--",null,null,null,null,null,null,null,null,null,null,null,null,null,{"$f":"(Monthly!EQ62/Monthly!EQ61)-1","v":-3.1746031746032743E-3},"--",{"$f":"(Monthly!ES62/Monthly!ES61)-1","v":0},null,null,null,null,null,{"$f":"((Monthly!EY62-Monthly!EY61)*100)","v":0},{"$f":"((Monthly!EZ62-Monthly!EZ61)*100)","v":-8.0000000000000071},{"$f":"((Monthly!FA62-Monthly!FA61)*100)","v":1.9999999999999574},{"$f":"((Monthly!FB62-Monthly!FB61)*100)","v":-0.99999999999997868},"--","--",{"$f":"((Monthly!FE62-Monthly!FE61)*100)","v":0.99999999999997868},{"$f":"((Monthly!FF62-Monthly!FF61)*100)","v":8.0000000000000071},"--",{"$f":"((Monthly!FH62-Monthly!FH61)*100)","v":6.0000000000000053},{"$f":"((Monthly!FI62-Monthly!FI61)*100)","v":4.0000000000000036},null,null,null,null,null,null,"--","--","--","--","--","--","--","--","--",null,null,null,null,null,{"$f":"(Monthly!GD62/Monthly!GD61)-1","v":0},"--","--","--","--","--","--","--","--"]
["1963-05-01",null,null,null,{"$f":"(Monthly!E63/Monthly!E62)-1","v":{"$error":"#DIV/0!"}},{"$f":"(Monthly!F63/Monthly!F62)-1","v":{"$error":"#DIV/0!"}},{"$f":"(Monthly!G63/Monthly!G62)-1","v":{"$error":"#DIV/0!"}},{"$f":"(Monthly!H63/Monthly!H62)-1","v":{"$error":"#DIV/0!"}},null,null,null,null,null,null,null,null,null,null,null,null,null,null,null,"--",{"$f":"(Monthly!Y63/Monthly!Y62)-1","v":5.3170275067833117E-3},null,null,null,null,null,null,null,null,null,null,null,null,null,{"$f":"(Monthly!AM63/Monthly!AM62)-1","v":1.2118064886299962E-2},"--","--","--",{"$f":"Monthly!AQ63-Monthly!AQ62","v":2.1999999999999957},"--","--",{"$f":"Monthly!AT63-Monthly!AT62","v":0.79999999999999716},"--","--",{"$f":"Monthly!AW63-Monthly!AW62","v":5.6000000000000014},{"$f":"Monthly!AX63-Monthly!AX62","v":6.3000000000000043},{"$f":"Monthly!AY63-Monthly!AY62","v":12.099999999999994},{"$f":"Monthly!AZ63-Monthly!AZ62","v":-0.60000000000000142},{"$f":"Monthly!BA63-Monthly!BA62","v":-1.8000000000000043},"--","--",null,null,null,null,null,null,null,null,null,"--","--",null,null,null,null,null,{"$f":"(Monthly!BT63/Monthly!BT62)-1","v":9.4428466789908683E-3},null,null,null,{"$f":"(Monthly!BX63/Monthly!BX62)-1","v":-2.8419182948490218E-2},{"$f":"(Monthly!BY63/Monthly!BY62)-1","v":4.8136645962732816E-2},"--","--",{"$f":"Monthly!CB63-Monthly!CB62","v":0.1991133494112951},{"$f":"Monthly!CC63-Monthly!CC62","v":0.33911334941129745},"--","--",null,"--","--",null,{"$f":"(Monthly!CJ63/Monthly!CJ62)-1","v":-3.1404958677686001E-2},{"$f":"(Monthly!CK63/Monthly!CK62)-1","v":5.5658627087198376E-3},{"$f":"(Monthly!CL63/Monthly!CL62)-1","v":2.631578947368407E-2},{"$f":"(Monthly!CM63/Monthly!CM62)-1","v":-2.2810218978102204E-2},{"$f":"(Monthly!CN63/Monthly!CN62)-1","v":3.3485412916998136E-3},{"$f":"(Monthly!CO63/Monthly!CO62)-1","v":8.4325396825397636E-3},{"$f":"(Monthly!CP63/Monthly!CP62)-1","v":7.5351404488035456E-3},{"$f":"(Monthly!CQ63/Monthly!CQ62)-1","v":1.1135857461024301E-3},"--","--","--",null,null,null,null,null,{"$f":"(Monthly!CZ63/Monthly!CZ62)-1","v":9.8425196850393526E-4},{"$f":"(Monthly!DA63/Monthly!DA62)-1","v":0},null,null,null,null,null,"--","--",{"$f":"((Monthly!DI63-Monthly!DI62)*100)","v":0},"--",{"$f":"((Monthly!DK63-Monthly!DK62)*100)","v":20.000000000000018},{"$f":"Monthly!DL63-Monthly!DL62","v":39},null,null,null,{"$f":"Monthly!DP63-Monthly!DP62","v":36},null,null,null,"--","--","--","--","--","--","--","--","--","--",null,null,null,null,null,null,null,null,null,null,null,null,null,{"$f":"(Monthly!EQ63/Monthly!EQ62)-1","v":3.1847133757962887E-3},"--",{"$f":"(Monthly!ES63/Monthly!ES62)-1","v":0},null,null,null,null,null,{"$f":"((Monthly!EY63-Monthly!EY62)*100)","v":0},{"$f":"((Monthly!EZ63-Monthly!EZ62)*100)","v":10.000000000000009},{"$f":"((Monthly!FA63-Monthly!FA62)*100)","v":0.99999999999997868},{"$f":"((Monthly!FB63-Monthly!FB62)*100)","v":-2.0000000000000462},"--","--",{"$f":"((Monthly!FE63-Monthly!FE62)*100)","v":3.0000000000000249},{"$f":"((Monthly!FF63-Monthly!FF62)*100)","v":1.0000000000000231},"--",{"$f":"((Monthly!FH63-Monthly!FH62)*100)","v":-2.0000000000000018},{"$f":"((Monthly!FI63-Monthly!FI62)*100)","v":-4.0000000000000036},null,null,null,null,null,null,"--","--","--","--","--","--","--","--","--",null,null,null,null,null,{"$f":"(Monthly!GD63/Monthly!GD62)-1","v":0},"--","--","--","--","--","--","--","--"]
["1963-06-01",null,null,null,{"$f":"(Monthly!E64/Monthly!E63)-1","v":{"$error":"#DIV/0!"}},{"$f":"(Monthly!F64/Monthly!F63)-1","v":{"$error":"#DIV/0!"}},{"$f":"(Monthly!G64/Monthly!G63)-1","v":{"$error":"#DIV/0!"}},{"$f":"(Monthly!H64/Monthly!H63)-1","v":{"$error":"#DIV/0!"}},null,null,null,null,null,null,null,null,null,null,null,null,null,null,null,"--",{"$f":"(Monthly!Y64/Monthly!Y63)-1","v":1.2290077904992813E-2},null,null,null,null,null,null,null,null,null,null,null,null,null,{"$f":"(Monthly!AM64/Monthly!AM63)-1","v":2.9959348572536904E-3},"--","--","--",{"$f":"Monthly!AQ64-Monthly!AQ63","v":-1.5999999999999943},"--","--",{"$f":"Monthly!AT64-Monthly!AT63","v":-0.89999999999999858},"--","--",{"$f":"Monthly!AW64-Monthly!AW63","v":0.79999999999999716},{"$f":"Monthly!AX64-Monthly!AX63","v":-5.0000000000000071},{"$f":"Monthly!AY64-Monthly!AY63","v":-8.3999999999999915},{"$f":"Monthly!AZ64-Monthly!AZ63","v":0.20000000000000284},{"$f":"Monthly!BA64-Monthly!BA63","v":-0.10000000000000142},"--","--",null,null,null,null,null,null,null,null,null,"--","--",null,null,null,null,null,{"$f":"(Monthly!BT64/Monthly!BT63)-1","v":8.8205083100620918E-3},null,null,null,{"$f":"(Monthly!BX64/Monthly!BX63)-1","v":-3.229737964655699E-2},{"$f":"(Monthly!BY64/Monthly!BY63)-1","v":-3.7037037037036535E-3},"--","--",{"$f":"Monthly!CB64-Monthly!CB63","v":0.13120773632190286},{"$f":"Monthly!CC64-Monthly!CC63","v":-7.8792263678097996E-2},"--","--",null,"--","--",null,{"$f":"(Monthly!CJ64/Monthly!CJ63)-1","v":-0.10238907849829348},{"$f":"(Monthly!CK64/Monthly!CK63)-1","v":7.3800738007379074E-3},{"$f":"(Monthly!CL64/Monthly!CL63)-1","v":-2.564102564102555E-2},{"$f":"(Monthly!CM64/Monthly!CM63)-1","v":-5.9757236227824473E-2},{"$f":"(Monthly!CN64/Monthly!CN63)-1","v":5.7152392474240088E-3},{"$f":"(Monthly!CO64/Monthly!CO63)-1","v":9.3457943925232545E-3},{"$f":"(Monthly!CP64/Monthly!CP63)-1","v":7.5769151511668742E-3},{"$f":"(Monthly!CQ64/Monthly!CQ63)-1","v":1.2076910853329181E-3},"--","--","--",null,null,null,null,null,{"$f":"(Monthly!CZ64/Monthly!CZ63)-1","v":3.2776138970829205E-3},{"$f":"(Monthly!DA64/Monthly!DA63)-1","v":3.154574132492094E-3},null,null,null,null,null,"--","--",{"$f":"((Monthly!DI64-Monthly!DI63)*100)","v":-29.999999999999716},"--",{"$f":"((Monthly!DK64-Monthly!DK63)*100)","v":-30.000000000000071},{"$f":"Monthly!DL64-Monthly!DL63","v":-17},null,null,null,{"$f":"Monthly!DP64-Monthly!DP63","v":42},null,null,null,"--","--","--","--","--","--","--","--","--","--",null,null,null,null,null,null,null,null,null,null,null,null,null,{"$f":"(Monthly!EQ64/Monthly!EQ63)-1","v":3.1746031746031633E-3},"--",{"$f":"(Monthly!ES64/Monthly!ES63)-1","v":0},null,null,null,null,null,{"$f":"((Monthly!EY64-Monthly!EY63)*100)","v":0},{"$f":"((Monthly!EZ64-Monthly!EZ63)*100)","v":-0.99999999999997868},{"$f":"((Monthly!FA64-Monthly!FA63)*100)","v":1.0000000000000675},{"$f":"((Monthly!FB64-Monthly!FB63)*100)","v":-0.99999999999997868},"--","--",{"$f":"((Monthly!FE64-Monthly!FE63)*100)","v":6.0000000000000053},{"$f":"((Monthly!FF64-Monthly!FF63)*100)","v":8.0000000000000071},"--",{"$f":"((Monthly!FH64-Monthly!FH63)*100)","v":8.9999999999999858},{"$f":"((Monthly!FI64-Monthly!FI63)*100)","v":6.0000000000000053},null,null,null,null,null,null,"--","--","--","--","--","--","--","--","--",null,null,null,null,null,{"$f":"(Monthly!GD64/Monthly!GD63)-1","v":0},"--","--","--","--","--","--","--","--"]
["1963-07-01",null,null,null,{"$f":"(Monthly!E65/Monthly!E64)-1","v":{"$error":"#DIV/0!"}},{"$f":"(Monthly!F65/Monthly!F64)-1","v":{"$error":"#DIV/0!"}},{"$f":"(Monthly!G65/Monthly!G64)-1","v":{"$error":"#DIV/0!"}},{"$f":"(Monthly!H65/Monthly!H64)-1","v":{"$error":"#DIV/0!"}},null,null,null,null,null,null,null,null,null,null,null,null,null,null,null,"--",{"$f":"(Monthly!Y65/Monthly!Y64)-1","v":4.4571333424032744E-3},null,null,null,null,null,null,null,null,null,null,null,null,null,{"$f":"(Monthly!AM65/Monthly!AM64)-1","v":-3.9814556459402128E-3},"--","--","--",{"$f":"Monthly!AQ65-Monthly!AQ64","v":-2.7000000000000028},"--","--",{"$f":"Monthly!AT65-Monthly!AT64","v":-0.60000000000000142},"--","--",{"$f":"Monthly!AW65-Monthly!AW64","v":-1},{"$f":"Monthly!AX65-Monthly!AX64","v":-1.7999999999999972},{"$f":"Monthly!AY65-Monthly!AY64","v":2.2999999999999972},{"$f":"Monthly!AZ65-Monthly!AZ64","v":-0.20000000000000284},{"$f":"Monthly!BA65-Monthly!BA64","v":-12.699999999999996},"--","--",null,null,null,null,null,null,null,null,null,"--","--",null,null,null,null,null,{"$f":"(Monthly!BT65/Monthly!BT64)-1","v":1.102887372842587E-2},null,null,null,{"$f":"(Monthly!BX65/Monthly!BX64)-1","v":1.6372795969773257E-2},{"$f":"(Monthly!BY65/Monthly!BY64)-1","v":-1.7843866171003753E-2},"--","--",{"$f":"Monthly!CB65-Monthly!CB64","v":0.2311965371015523},{"$f":"Monthly!CC65-Monthly!CC64","v":0.23119653710155319},"--","--",null,"--","--",null,{"$f":"(Monthly!CJ65/Monthly!CJ64)-1","v":0.26425855513307983},{"$f":"(Monthly!CK65/Monthly!CK64)-1","v":2.2385022385023046E-3},{"$f":"(Monthly!CL65/Monthly!CL64)-1","v":-3.7280701754386025E-2},{"$f":"(Monthly!CM65/Monthly!CM64)-1","v":2.3833167825223489E-2},{"$f":"(Monthly!CN65/Monthly!CN64)-1","v":8.2960013273591926E-4},{"$f":"(Monthly!CO65/Monthly!CO64)-1","v":6.3352826510720828E-3},{"$f":"(Monthly!CP65/Monthly!CP64)-1","v":1.1699380596474906E-2},{"$f":"(Monthly!CQ65/Monthly!CQ64)-1","v":1.1850723211546121E-3},"--","--","--",null,null,null,null,null,{"$f":"(Monthly!CZ65/Monthly!CZ64)-1","v":2.6135249918328718E-3},{"$f":"(Monthly!DA65/Monthly!DA64)-1","v":0},null,null,null,null,null,"--","--",{"$f":"((Monthly!DI65-Monthly!DI64)*100)","v":20.000000000000284},"--",{"$f":"((Monthly!DK65-Monthly!DK64)*100)","v":0},{"$f":"Monthly!DL65-Monthly!DL64","v":22},null,null,null,{"$f":"Monthly!DP65-Monthly!DP64","v":136},null,null,null,"--","--","--","--","--","--","--","--","--","--",null,null,null,null,null,null,null,null,null,null,null,null,null,{"$f":"(Monthly!EQ65/Monthly!EQ64)-1","v":3.1645569620253333E-3},"--",{"$f":"(Monthly!ES65/Monthly!ES64)-1","v":0},null,null,null,null,null,{"$f":"((Monthly!EY65-Monthly!EY64)*100)","v":0},{"$f":"((Monthly!EZ65-Monthly!EZ64)*100)","v":2.9999999999999805},{"$f":"((Monthly!FA65-Monthly!FA64)*100)","v":2.9999999999999361},{"$f":"((Monthly!FB65-Monthly!FB64)*100)","v":0},"--","--",{"$f":"((Monthly!FE65-Monthly!FE64)*100)","v":18.999999999999993},{"$f":"((Monthly!FF65-Monthly!FF64)*100)","v":27.999999999999979},"--",{"$f":"((Monthly!FH65-Monthly!FH64)*100)","v":8.0000000000000071},{"$f":"((Monthly!FI65-Monthly!FI64)*100)","v":2.9999999999999361},null,null,null,null,null,null,"--","--","--","--","--","--","--","--","--",null,null,null,null,null,{"$f":"(Monthly!GD65/Monthly!GD64)-1","v":0},"--","--","--","--","--","--","--","--"]
["1963-08-01",null,null,null,{"$f":"(Monthly!E66/Monthly!E65)-1","v":{"$error":"#DIV/0!"}},{"$f":"(Monthly!F66/Monthly!F65)-1","v":{"$error":"#DIV/0!"}},{"$f":"(Monthly!G66/Monthly!G65)-1","v":{"$error":"#DIV/0!"}},{"$f":"(Monthly!H66/Monthly!H65)-1","v":{"$error":"#DIV/0!"}},null,null,null,null,null,null,null,null,null,null,null,null,null,null,null,"--",{"$f":"(Monthly!Y66/Monthly!Y65)-1","v":2.1024372099032185E-4},null,null,null,null,null,null,null,null,null,null,null,null,null,{"$f":"(Monthly!AM66/Monthly!AM65)-1","v":2.0004812647926862E-3},"--","--","--",{"$f":"Monthly!AQ66-Monthly!AQ65","v":-0.39999999999999858},"--","--",{"$f":"Monthly!AT66-Monthly!AT65","v":-0.89999999999999858},"--","--",{"$f":"Monthly!AW66-Monthly!AW65","v":-5.8999999999999986},{"$f":"Monthly!AX66-Monthly!AX65","v":1.8999999999999986},{"$f":"Monthly!AY66-Monthly!AY65","v":-1.2000000000000028},{"$f":"Monthly!AZ66-Monthly!AZ65","v":-3.6000000000000014},{"$f":"Monthly!BA66-Monthly!BA65","v":4.8999999999999986},"--","--",null,null,null,null,null,null,null,null,null,"--","--",null,null,null,null,null,{"$f":"(Monthly!BT66/Monthly!BT65)-1","v":-8.3400318448778599E-3},null,null,null,{"$f":"(Monthly!BX66/Monthly!BX65)-1","v":1.5489467162329573E-2},{"$f":"(Monthly!BY66/Monthly!BY65)-1","v":-8.3270249810749597E-3},"--","--",{"$f":"Monthly!CB66-Monthly!CB65","v":-0.20308175974164033},{"$f":"Monthly!CC66-Monthly!CC65","v":-0.34308175974164179},"--","--",null,"--","--",null,{"$f":"(Monthly!CJ66/Monthly!CJ65)-1","v":-0.1428571428571429},{"$f":"(Monthly!CK66/Monthly!CK65)-1","v":5.0761421319795996E-3},{"$f":"(Monthly!CL66/Monthly!CL65)-1","v":1.1389521640091216E-2},{"$f":"(Monthly!CM66/Monthly!CM65)-1","v":2.4248302618816719E-2},{"$f":"(Monthly!CN66/Monthly!CN65)-1","v":4.2688992042438922E-3},{"$f":"(Monthly!CO66/Monthly!CO65)-1","v":6.7796610169492677E-3},{"$f":"(Monthly!CP66/Monthly!CP65)-1","v":1.1822626226509758E-2},{"$f":"(Monthly!CQ66/Monthly!CQ65)-1","v":1.3421967639319909E-3},"--","--","--",null,null,null,null,null,{"$f":"(Monthly!CZ66/Monthly!CZ65)-1","v":1.9550342130987275E-3},{"$f":"(Monthly!DA66/Monthly!DA65)-1","v":3.1446540880502027E-3},null,null,null,null,null,"--","--",{"$f":"((Monthly!DI66-Monthly!DI65)*100)","v":-20.000000000000284},"--",{"$f":"((Monthly!DK66-Monthly!DK65)*100)","v":-19.999999999999929},{"$f":"Monthly!DL66-Monthly!DL65","v":-2},null,null,null,{"$f":"Monthly!DP66-Monthly!DP65","v":116},null,null,null,"--","--","--","--","--","--","--","--","--","--",null,null,null,null,null,null,null,null,null,null,null,null,null,{"$f":"(Monthly!EQ66/Monthly!EQ65)-1","v":-3.154574132492094E-3},"--",{"$f":"(Monthly!ES66/Monthly!ES65)-1","v":0},null,null,null,null,null,{"$f":"((Monthly!EY66-Monthly!EY65)*100)","v":0},{"$f":"((Monthly!EZ66-Monthly!EZ65)*100)","v":47.000000000000021},{"$f":"((Monthly!FA66-Monthly!FA65)*100)","v":3.0000000000000249},{"$f":"((Monthly!FB66-Monthly!FB65)*100)","v":-0.99999999999997868},"--","--",{"$f":"((Monthly!FE66-Monthly!FE65)*100)","v":13.999999999999968},{"$f":"((Monthly!FF66-Monthly!FF65)*100)","v":4.9999999999999822},"--",{"$f":"((Monthly!FH66-Monthly!FH65)*100)","v":0},{"$f":"((Monthly!FI66-Monthly!FI65)*100)","v":-1.9999999999999574},null,null,null,null,null,null,"--","--","--","--","--","--","--","--","--",null,null,null,null,null,{"$f":"(Monthly!GD66/Monthly!GD65)-1","v":0},"--","--","--","--","--","--","--","--"]
["1963-09-01",null,null,null,{"$f":"(Monthly!E67/Monthly!E66)-1","v":{"$error":"#DIV/0!"}},{"$f":"(Monthly!F67/Monthly!F66)-1","v":{"$error":"#DIV/0!"}},{"$f":"(Monthly!G67/Monthly!G66)-1","v":{"$error":"#DIV/0!"}},{"$f":"(Monthly!H67/Monthly!H66)-1","v":{"$error":"#DIV/0!"}},null,null,null,null,null,null,null,null,null,null,null,null,null,null,null,"--",{"$f":"(Monthly!Y67/Monthly!Y66)-1","v":6.987113152022717E-3},null,null,null,null,null,null,null,null,null,null,null,null,null,{"$f":"(Monthly!AM67/Monthly!AM66)-1","v":9.9680992150255054E-3},"--","--","--",{"$f":"Monthly!AQ67-Monthly!AQ66","v":1.7999999999999972},"--","--",{"$f":"Monthly!AT67-Monthly!AT66","v":3.6999999999999957},"--","--",{"$f":"Monthly!AW67-Monthly!AW66","v":-0.20000000000000284},{"$f":"Monthly!AX67-Monthly!AX66","v":-2.2000000000000028},{"$f":"Monthly!AY67-Monthly!AY66","v":-2},{"$f":"Monthly!AZ67-Monthly!AZ66","v":6.4000000000000057},{"$f":"Monthly!BA67-Monthly!BA66","v":1.2000000000000028},"--","--",null,null,null,null,null,null,null,null,null,"--","--",null,null,null,null,null,{"$f":"(Monthly!BT67/Monthly!BT66)-1","v":1.8301753775726626E-2},null,null,null,{"$f":"(Monthly!BX67/Monthly!BX66)-1","v":7.5655887736424621E-2},{"$f":"(Monthly!BY67/Monthly!BY66)-1","v":7.8625954198473291E-2},"--","--",{"$f":"Monthly!CB67-Monthly!CB66","v":-0.46598636265339266},{"$f":"Monthly!CC67-Monthly!CC66","v":-0.39598636265339238},"--","--",null,"--","--",null,{"$f":"(Monthly!CJ67/Monthly!CJ66)-1","v":3.5087719298245723E-2},{"$f":"(Monthly!CK67/Monthly!CK66)-1","v":6.4646464646465063E-3},{"$f":"(Monthly!CL67/Monthly!CL66)-1","v":8.55855855855856E-2},{"$f":"(Monthly!CM67/Monthly!CM66)-1","v":4.7348484848484862E-2},{"$f":"(Monthly!CN67/Monthly!CN66)-1","v":7.1808839915810108E-3},{"$f":"(Monthly!CO67/Monthly!CO66)-1","v":7.6960076960077561E-3},{"$f":"(Monthly!CP67/Monthly!CP66)-1","v":8.0678262807809542E-3},{"$f":"(Monthly!CQ67/Monthly!CQ66)-1","v":1.3984464052012591E-3},"--","--","--",null,null,null,null,null,{"$f":"(Monthly!CZ67/Monthly!CZ66)-1","v":-9.7560975609756184E-4},{"$f":"(Monthly!DA67/Monthly!DA66)-1","v":0},null,null,null,null,null,"--","--",{"$f":"((Monthly!DI67-Monthly!DI66)*100)","v":20.000000000000284},"--",{"$f":"((Monthly!DK67-Monthly!DK66)*100)","v":9.9999999999999645},{"$f":"Monthly!DL67-Monthly!DL66","v":30},null,null,null,{"$f":"Monthly!DP67-Monthly!DP66","v":167},null,null,null,"--","--","--","--","--","--","--","--","--","--",null,null,null,null,null,null,null,null,null,null,null,null,null,{"$f":"(Monthly!EQ67/Monthly!EQ66)-1","v":0},"--",{"$f":"(Monthly!ES67/Monthly!ES66)-1","v":3.0303030303031608E-3},null,null,null,null,null,{"$f":"((Monthly!EY67-Monthly!EY66)*100)","v":0},{"$f":"((Monthly!EZ67-Monthly!EZ66)*100)","v":-1.0000000000000231},{"$f":"((Monthly!FA67-Monthly!FA66)*100)","v":1.9999999999999574},{"$f":"((Monthly!FB67-Monthly!FB66)*100)","v":0.99999999999997868},"--","--",{"$f":"((Monthly!FE67-Monthly!FE66)*100)","v":6.0000000000000053},{"$f":"((Monthly!FF67-Monthly!FF66)*100)","v":4.0000000000000036},"--",{"$f":"((Monthly!FH67-Monthly!FH66)*100)","v":6.999999999999984},{"$f":"((Monthly!FI67-Monthly!FI66)*100)","v":8.0000000000000071},null,null,null,null,null,null,"--","--","--","--","--","--","--","--","--",null,null,null,null,null,{"$f":"(Monthly!GD67/Monthly!GD66)-1","v":0},"--","--","--","--","--","--","--","--"]
["1963-10-01",null,null,null,{"$f":"(Monthly!E68/Monthly!E67)-1","v":{"$error":"#DIV/0!"}},{"$f":"(Monthly!F68/Monthly!F67)-1","v":{"$error":"#DIV/0!"}},{"$f":"(Monthly!G68/Monthly!G67)-1","v":{"$error":"#DIV/0!"}},{"$f":"(Monthly!H68/Monthly!H67)-1","v":{"$error":"#DIV/0!"}},null,null,null,null,null,null,null,null,null,null,null,null,null,null,null,"--",{"$f":"(Monthly!Y68/Monthly!Y67)-1","v":1.1813939485172398E-2},null,null,null,null,null,null,null,null,null,null,null,null,null,{"$f":"(Monthly!AM68/Monthly!AM67)-1","v":6.9098665228146672E-3},"--","--","--",{"$f":"Monthly!AQ68-Monthly!AQ67","v":0.80000000000000426},"--","--",{"$f":"Monthly!AT68-Monthly!AT67","v":-0.29999999999999716},"--","--",{"$f":"Monthly!AW68-Monthly!AW67","v":-1.5},{"$f":"Monthly!AX68-Monthly!AX67","v":4.2000000000000028},{"$f":"Monthly!AY68-Monthly!AY67","v":19.100000000000009},{"$f":"Monthly!AZ68-Monthly!AZ67","v":9.9999999999994316E-2},{"$f":"Monthly!BA68-Monthly!BA67","v":-2.3000000000000043},"--","--",null,null,null,null,null,null,null,null,null,"--","--",null,null,null,null,null,{"$f":"(Monthly!BT68/Monthly!BT67)-1","v":2.8250844810969733E-2},null,null,null,{"$f":"(Monthly!BX68/Monthly!BX67)-1","v":9.0754395916052832E-3},{"$f":"(Monthly!BY68/Monthly!BY67)-1","v":7.0771408351033571E-4},"--","--",{"$f":"Monthly!CB68-Monthly!CB67","v":0.23171322356010382},{"$f":"Monthly!CC68-Monthly!CC67","v":0.23171322356010471},"--","--",null,"--","--",null,{"$f":"(Monthly!CJ68/Monthly!CJ67)-1","v":-3.8983050847457679E-2},{"$f":"(Monthly!CK68/Monthly!CK67)-1","v":7.8281814532317195E-3},{"$f":"(Monthly!CL68/Monthly!CL67)-1","v":6.2240663900414939E-2},{"$f":"(Monthly!CM68/Monthly!CM67)-1","v":-1.6274864376130238E-2},{"$f":"(Monthly!CN68/Monthly!CN67)-1","v":6.1872567096905584E-3},{"$f":"(Monthly!CO68/Monthly!CO67)-1","v":3.8186157517900998E-3},{"$f":"(Monthly!CP68/Monthly!CP67)-1","v":1.27167661231391E-2},{"$f":"(Monthly!CQ68/Monthly!CQ67)-1","v":1.407033057372109E-3},"--","--","--",null,null,null,null,null,{"$f":"(Monthly!CZ68/Monthly!CZ67)-1","v":9.765625E-4},{"$f":"(Monthly!DA68/Monthly!DA67)-1","v":3.1347962382446415E-3},null,null,null,null,null,"--","--",{"$f":"((Monthly!DI68-Monthly!DI67)*100)","v":9.9999999999994316},"--",{"$f":"((Monthly!DK68-Monthly!DK67)*100)","v":0},{"$f":"Monthly!DL68-Monthly!DL67","v":40},null,null,null,{"$f":"Monthly!DP68-Monthly!DP67","v":207},null,null,null,"--","--","--","--","--","--","--","--","--","--",null,null,null,null,null,null,null,null,null,null,null,null,null,{"$f":"(Monthly!EQ68/Monthly!EQ67)-1","v":0},"--",{"$f":"(Monthly!ES68/Monthly!ES67)-1","v":0},null,null,null,null,null,{"$f":"((Monthly!EY68-Monthly!EY67)*100)","v":0},{"$f":"((Monthly!EZ68-Monthly!EZ67)*100)","v":2.0000000000000018},{"$f":"((Monthly!FA68-Monthly!FA67)*100)","v":1.0000000000000675},{"$f":"((Monthly!FB68-Monthly!FB67)*100)","v":-0.99999999999997868},"--","--",{"$f":"((Monthly!FE68-Monthly!FE67)*100)","v":7.0000000000000284},{"$f":"((Monthly!FF68-Monthly!FF67)*100)","v":7.0000000000000284},"--",{"$f":"((Monthly!FH68-Monthly!FH67)*100)","v":1.0000000000000231},{"$f":"((Monthly!FI68-Monthly!FI67)*100)","v":3.0000000000000249},null,null,null,null,null,null,"--","--","--","--","--","--","--","--","--",null,null,null,null,null,{"$f":"(Monthly!GD68/Monthly!GD67)-1","v":0},"--","--","--","--","--","--","--","--"]
["1963-11-01",null,null,null,{"$f":"(Monthly!E69/Monthly!E68)-1","v":{"$error":"#DIV/0!"}},{"$f":"(Monthly!F69/Monthly!F68)-1","v":{"$error":"#DIV/0!"}},{"$f":"(Monthly!G69/Monthly!G68)-1","v":{"$error":"#DIV/0!"}},{"$f":"(Monthly!H69/Monthly!H68)-1","v":{"$error":"#DIV/0!"}},null,null,null,null,null,null,null,null,null,null,null,null,null,null,null,"--",{"$f":"(Monthly!Y69/Monthly!Y68)-1","v":1.6407100817082076E-2},null,null,null,null,null,null,null,null,null,null,null,null,null,{"$f":"(Monthly!AM69/Monthly!AM68)-1","v":4.9027555530491984E-3},"--","--","--",{"$f":"Monthly!AQ69-Monthly!AQ68","v":-0.20000000000000284},"--","--",{"$f":"Monthly!AT69-Monthly!AT68","v":-1},"--","--",{"$f":"Monthly!AW69-Monthly!AW68","v":-2.6999999999999957},{"$f":"Monthly!AX69-Monthly!AX68","v":-0.29999999999999716},{"$f":"Monthly!AY69-Monthly!AY68","v":-10.700000000000003},{"$f":"Monthly!AZ69-Monthly!AZ68","v":0.79999999999999716},{"$f":"Monthly!BA69-Monthly!BA68","v":1.3000000000000043},"--","--",null,null,null,null,null,null,null,null,null,"--","--",null,null,null,null,null,{"$f":"(Monthly!BT69/Monthly!BT68)-1","v":9.4350535523080037E-3},null,null,null,{"$f":"(Monthly!BX69/Monthly!BX68)-1","v":-8.825182686902755E-2},{"$f":"(Monthly!BY69/Monthly!BY68)-1","v":-4.0311173974540315E-2},"--","--",{"$f":"Monthly!CB69-Monthly!CB68","v":0.29874917709020732},{"$f":"Monthly!CC69-Monthly!CC68","v":0.43874917709020522},"--","--",null,"--","--",null,{"$f":"(Monthly!CJ69/Monthly!CJ68)-1","v":2.1164021164021163E-2},{"$f":"(Monthly!CK69/Monthly!CK68)-1","v":3.186616211909854E-3},{"$f":"(Monthly!CL69/Monthly!CL68)-1","v":-4.1015625E-2},{"$f":"(Monthly!CM69/Monthly!CM68)-1","v":-5.1470588235294157E-2},{"$f":"(Monthly!CN69/Monthly!CN68)-1","v":1.8325460172665675E-3},{"$f":"(Monthly!CO69/Monthly!CO68)-1","v":1.0936757013789711E-2},{"$f":"(Monthly!CP69/Monthly!CP68)-1","v":6.5754263576212058E-3},{"$f":"(Monthly!CQ69/Monthly!CQ68)-1","v":1.2471846254236141E-3},"--","--","--",null,null,null,null,null,{"$f":"(Monthly!CZ69/Monthly!CZ68)-1","v":9.7560975609756184E-4},{"$f":"(Monthly!DA69/Monthly!DA68)-1","v":0},null,null,null,null,null,"--","--",{"$f":"((Monthly!DI69-Monthly!DI68)*100)","v":0},"--",{"$f":"((Monthly!DK69-Monthly!DK68)*100)","v":20.000000000000018},{"$f":"Monthly!DL69-Monthly!DL68","v":-39},null,null,null,{"$f":"Monthly!DP69-Monthly!DP68","v":-29},null,null,null,"--","--","--","--","--","--","--","--","--","--",null,null,null,null,null,null,null,null,null,null,null,null,null,{"$f":"(Monthly!EQ69/Monthly!EQ68)-1","v":3.1645569620253333E-3},"--",{"$f":"(Monthly!ES69/Monthly!ES68)-1","v":3.0211480362538623E-3},null,null,null,null,null,{"$f":"((Monthly!EY69-Monthly!EY68)*100)","v":0},{"$f":"((Monthly!EZ69-Monthly!EZ68)*100)","v":-2.0000000000000018},{"$f":"((Monthly!FA69-Monthly!FA68)*100)","v":0.99999999999997868},{"$f":"((Monthly!FB69-Monthly!FB68)*100)","v":0.99999999999997868},"--","--",{"$f":"((Monthly!FE69-Monthly!FE68)*100)","v":6.999999999999984},{"$f":"((Monthly!FF69-Monthly!FF68)*100)","v":10.000000000000009},"--",{"$f":"((Monthly!FH69-Monthly!FH68)*100)","v":3.9999999999999591},{"$f":"((Monthly!FI69-Monthly!FI68)*100)","v":0.99999999999997868},null,null,null,null,null,null,"--","--","--","--","--","--","--","--","--",null,null,null,null,null,{"$f":"(Monthly!GD69/Monthly!GD68)-1","v":0},"--","--","--","--","--","--","--","--"]
["1963-12-01",null,null,null,{"$f":"(Monthly!E70/Monthly!E69)-1","v":{"$error":"#DIV/0!"}},{"$f":"(Monthly!F70/Monthly!F69)-1","v":{"$error":"#DIV/0!"}},{"$f":"(Monthly!G70/Monthly!G69)-1","v":{"$error":"#DIV/0!"}},{"$f":"(Monthly!H70/Monthly!H69)-1","v":{"$error":"#DIV/0!"}},null,null,null,null,null,null,null,null,null,null,null,null,null,null,null,"--",{"$f":"(Monthly!Y70/Monthly!Y69)-1","v":1.8265668973539428E-2},null,null,null,null,null,null,null,null,null,null,null,null,null,{"$f":"(Monthly!AM70/Monthly!AM69)-1","v":-1.9501313532718223E-3},"--","--","--",{"$f":"Monthly!AQ70-Monthly!AQ69","v":-3.5},"--","--",{"$f":"Monthly!AT70-Monthly!AT69","v":-5.1000000000000014},"--","--",{"$f":"Monthly!AW70-Monthly!AW69","v":0.5},{"$f":"Monthly!AX70-Monthly!AX69","v":-5.1000000000000014},{"$f":"Monthly!AY70-Monthly!AY69","v":-1.7999999999999972},{"$f":"Monthly!AZ70-Monthly!AZ69","v":-3.3999999999999915},{"$f":"Monthly!BA70-Monthly!BA69","v":-1.1000000000000014},"--","--",null,null,null,null,null,null,null,null,null,"--","--",null,null,null,null,null,{"$f":"(Monthly!BT70/Monthly!BT69)-1","v":4.4780329564420018E-3},null,null,null,{"$f":"(Monthly!BX70/Monthly!BX69)-1","v":-8.0764488286066638E-2},{"$f":"(Monthly!BY70/Monthly!BY69)-1","v":4.8636698599852535E-2},"--","--",{"$f":"Monthly!CB70-Monthly!CB69","v":0.12916392363395701},{"$f":"Monthly!CC70-Monthly!CC69","v":-1.083607636604178E-2},"--","--",null,"--","--",null,{"$f":"(Monthly!CJ70/Monthly!CJ69)-1","v":-0.11226252158894645},{"$f":"(Monthly!CK70/Monthly!CK69)-1","v":9.3309509628747289E-3},{"$f":"(Monthly!CL70/Monthly!CL69)-1","v":-2.2403258655804503E-2},{"$f":"(Monthly!CM70/Monthly!CM69)-1","v":-0.17441860465116277},{"$f":"(Monthly!CN70/Monthly!CN69)-1","v":7.8452095443275471E-3},{"$f":"(Monthly!CO70/Monthly!CO69)-1","v":8.4666039510818969E-3},{"$f":"(Monthly!CP70/Monthly!CP69)-1","v":1.2890357890615878E-2},{"$f":"(Monthly!CQ70/Monthly!CQ69)-1","v":1.0879562715160329E-3},"--","--","--",null,null,null,null,null,{"$f":"(Monthly!CZ70/Monthly!CZ69)-1","v":3.2488628979856493E-3},{"$f":"(Monthly!DA70/Monthly!DA69)-1","v":3.1250000000000444E-3},null,null,null,null,null,"--","--",{"$f":"((Monthly!DI70-Monthly!DI69)*100)","v":-29.999999999999716},"--",{"$f":"((Monthly!DK70-Monthly!DK69)*100)","v":-20.000000000000018},{"$f":"Monthly!DL70-Monthly!DL69","v":37},null,null,null,{"$f":"Monthly!DP70-Monthly!DP69","v":105},null,null,null,"--","--","--","--","--","--","--","--","--","--",null,null,null,null,null,null,null,null,null,null,null,null,null,{"$f":"(Monthly!EQ70/Monthly!EQ69)-1","v":-3.154574132492094E-3},"--",{"$f":"(Monthly!ES70/Monthly!ES69)-1","v":0},null,null,null,null,null,{"$f":"((Monthly!EY70-Monthly!EY69)*100)","v":0},{"$f":"((Monthly!EZ70-Monthly!EZ69)*100)","v":-10.000000000000009},{"$f":"((Monthly!FA70-Monthly!FA69)*100)","v":1.9999999999999574},{"$f":"((Monthly!FB70-Monthly!FB69)*100)","v":0.99999999999997868},"--","--",{"$f":"((Monthly!FE70-Monthly!FE69)*100)","v":0},{"$f":"((Monthly!FF70-Monthly!FF69)*100)","v":6.999999999999984},"--",{"$f":"((Monthly!FH70-Monthly!FH69)*100)","v":3.0000000000000249},{"$f":"((Monthly!FI70-Monthly!FI69)*100)","v":0.99999999999997868},null,null,null,null,null,null,"--","--","--","--","--","--","--","--","--",null,null,null,null,null,{"$f":"(Monthly!GD70/Monthly!GD69)-1","v":0},"--","--","--","--","--","--","--","--"]
["1964-01-01",null,null,null,{"$f":"(Monthly!E71/Monthly!E70)-1","v":{"$error":"#DIV/0!"}},{"$f":"(Monthly!F71/Monthly!F70)-1","v":{"$error":"#DIV/0!"}},{"$f":"(Monthly!G71/Monthly!G70)-1","v":{"$error":"#DIV/0!"}},{"$f":"(Monthly!H71/Monthly!H70)-1","v":{"$error":"#DIV/0!"}},null,null,null,null,null,null,null,null,null,null,null,null,null,null,null,"--",{"$f":"(Monthly!Y71/Monthly!Y70)-1","v":4.6862332076642588E-3},null,null,null,null,null,null,null,null,null,null,null,null,null,{"$f":"(Monthly!AM71/Monthly!AM70)-1","v":8.7962523677487248E-3},"--","--","--",{"$f":"Monthly!AQ71-Monthly!AQ70","v":3.1000000000000014},"--","--",{"$f":"Monthly!AT71-Monthly!AT70","v":3},"--","--",{"$f":"Monthly!AW71-Monthly!AW70","v":-1.3000000000000043},{"$f":"Monthly!AX71-Monthly!AX70","v":2.6999999999999957},{"$f":"Monthly!AY71-Monthly!AY70","v":-4.4000000000000057},{"$f":"Monthly!AZ71-Monthly!AZ70","v":2.5999999999999943},{"$f":"Monthly!BA71-Monthly!BA70","v":7.6999999999999957},"--","--",null,null,null,null,null,null,null,null,null,"--","--",null,null,null,null,null,{"$f":"(Monthly!BT71/Monthly!BT70)-1","v":1.2988076711559327E-2},null,null,null,{"$f":"(Monthly!BX71/Monthly!BX70)-1","v":7.5117370892018753E-2},{"$f":"(Monthly!BY71/Monthly!BY70)-1","v":-8.9248067463106096E-2},"--","--",{"$f":"Monthly!CB71-Monthly!CB70","v":9.6755940305836674E-2},{"$f":"Monthly!CC71-Monthly!CC70","v":0.16675594030583696},"--","--",null,"--","--",null,{"$f":"(Monthly!CJ71/Monthly!CJ70)-1","v":6.8093385214007762E-2},{"$f":"(Monthly!CK71/Monthly!CK70)-1","v":6.2942564909520549E-3},{"$f":"(Monthly!CL71/Monthly!CL70)-1","v":1.2499999999999956E-2},{"$f":"(Monthly!CM71/Monthly!CM70)-1","v":0.20070422535211274},{"$f":"(Monthly!CN71/Monthly!CN70)-1","v":3.9525691699604515E-3},{"$f":"(Monthly!CO71/Monthly!CO70)-1","v":5.5970149253730117E-3},{"$f":"(Monthly!CP71/Monthly!CP70)-1","v":1.1489720102113354E-2},{"$f":"(Monthly!CQ71/Monthly!CQ70)-1","v":1.0290226384981338E-3},"--","--","--",null,null,null,null,null,{"$f":"(Monthly!CZ71/Monthly!CZ70)-1","v":1.9430051813471572E-3},{"$f":"(Monthly!DA71/Monthly!DA70)-1","v":3.1152647975078995E-3},null,null,null,null,null,"--","--",{"$f":"((Monthly!DI71-Monthly!DI70)*100)","v":10.000000000000142},"--",{"$f":"((Monthly!DK71-Monthly!DK70)*100)","v":9.9999999999999645},{"$f":"Monthly!DL71-Monthly!DL70","v":3},null,null,null,{"$f":"Monthly!DP71-Monthly!DP70","v":127},null,null,null,"--","--","--","--","--","--","--","--","--","--",null,null,null,null,null,null,null,null,null,null,null,null,null,{"$f":"(Monthly!EQ71/Monthly!EQ70)-1","v":6.3291139240506666E-3},"--",{"$f":"(Monthly!ES71/Monthly!ES70)-1","v":0},null,null,null,null,null,{"$f":"((Monthly!EY71-Monthly!EY70)*100)","v":0},{"$f":"((Monthly!EZ71-Monthly!EZ70)*100)","v":10.000000000000009},{"$f":"((Monthly!FA71-Monthly!FA70)*100)","v":4.0000000000000036},{"$f":"((Monthly!FB71-Monthly!FB70)*100)","v":-1.9999999999999574},"--","--",{"$f":"((Monthly!FE71-Monthly!FE70)*100)","v":0},{"$f":"((Monthly!FF71-Monthly!FF70)*100)","v":-2.0000000000000018},"--",{"$f":"((Monthly!FH71-Monthly!FH70)*100)","v":3.0000000000000249},{"$f":"((Monthly!FI71-Monthly!FI70)*100)","v":4.0000000000000036},null,null,null,null,null,null,"--","--","--","--","--","--","--","--","--",null,null,null,null,null,{"$f":"(Monthly!GD71/Monthly!GD70)-1","v":0},"--","--","--","--","--","--","--","--"]
["1964-02-01",null,null,null,{"$f":"(Monthly!E72/Monthly!E71)-1","v":{"$error":"#DIV/0!"}},{"$f":"(Monthly!F72/Monthly!F71)-1","v":{"$error":"#DIV/0!"}},{"$f":"(Monthly!G72/Monthly!G71)-1","v":{"$error":"#DIV/0!"}},{"$f":"(Monthly!H72/Monthly!H71)-1","v":{"$error":"#DIV/0!"}},null,null,null,null,null,null,null,null,null,null,null,null,null,null,null,"--",{"$f":"(Monthly!Y72/Monthly!Y71)-1","v":2.4724048333988335E-3},null,null,null,null,null,null,null,null,null,null,null,null,null,{"$f":"(Monthly!AM72/Monthly!AM71)-1","v":6.7826486817903486E-3},"--","--","--",{"$f":"Monthly!AQ72-Monthly!AQ71","v":0.79999999999999716},"--","--",{"$f":"Monthly!AT72-Monthly!AT71","v":1.3000000000000043},"--","--",{"$f":"Monthly!AW72-Monthly!AW71","v":7.5},{"$f":"Monthly!AX72-Monthly!AX71","v":0.5},{"$f":"Monthly!AY72-Monthly!AY71","v":0.10000000000000142},{"$f":"Monthly!AZ72-Monthly!AZ71","v":0.70000000000000284},{"$f":"Monthly!BA72-Monthly!BA71","v":-3.3999999999999986},"--","--",null,null,null,null,null,null,null,null,null,"--","--",null,null,null,null,null,{"$f":"(Monthly!BT72/Monthly!BT71)-1","v":1.2376838044193983E-2},null,null,null,{"$f":"(Monthly!BX72/Monthly!BX71)-1","v":0.13537117903930129},{"$f":"(Monthly!BY72/Monthly!BY71)-1","v":0.11265432098765427},"--","--",{"$f":"Monthly!CB72-Monthly!CB71","v":-0.43181440362005574},{"$f":"Monthly!CC72-Monthly!CC71","v":-0.57181440362005631},"--","--",null,"--","--",null,{"$f":"(Monthly!CJ72/Monthly!CJ71)-1","v":0.1092896174863387},{"$f":"(Monthly!CK72/Monthly!CK71)-1","v":5.2775605942141368E-3},{"$f":"(Monthly!CL72/Monthly!CL71)-1","v":-3.0864197530864224E-2},{"$f":"(Monthly!CM72/Monthly!CM71)-1","v":0.13587487781036178},{"$f":"(Monthly!CN72/Monthly!CN71)-1","v":2.9326691306443831E-3},{"$f":"(Monthly!CO72/Monthly!CO71)-1","v":7.4211502782930427E-3},{"$f":"(Monthly!CP72/Monthly!CP71)-1","v":1.1293366760735113E-2},{"$f":"(Monthly!CQ72/Monthly!CQ71)-1","v":9.964965279962712E-4},"--","--","--",null,null,null,null,null,{"$f":"(Monthly!CZ72/Monthly!CZ71)-1","v":-9.6961861667743676E-4},{"$f":"(Monthly!DA72/Monthly!DA71)-1","v":0},null,null,null,null,null,"--","--",{"$f":"((Monthly!DI72-Monthly!DI71)*100)","v":19.999999999999574},"--",{"$f":"((Monthly!DK72-Monthly!DK71)*100)","v":-19.999999999999929},{"$f":"Monthly!DL72-Monthly!DL71","v":27},null,null,null,{"$f":"Monthly!DP72-Monthly!DP71","v":264},null,null,null,"--","--","--","--","--","--","--","--","--","--",null,null,null,null,null,null,null,null,null,null,null,null,null,{"$f":"(Monthly!EQ72/Monthly!EQ71)-1","v":-6.2893081761006275E-3},"--",{"$f":"(Monthly!ES72/Monthly!ES71)-1","v":0},null,null,null,null,null,{"$f":"((Monthly!EY72-Monthly!EY71)*100)","v":0},{"$f":"((Monthly!EZ72-Monthly!EZ71)*100)","v":0},{"$f":"((Monthly!FA72-Monthly!FA71)*100)","v":-2.9999999999999361},{"$f":"((Monthly!FB72-Monthly!FB71)*100)","v":0},"--","--",{"$f":"((Monthly!FE72-Monthly!FE71)*100)","v":0.99999999999997868},{"$f":"((Monthly!FF72-Monthly!FF71)*100)","v":-1.0000000000000231},"--",{"$f":"((Monthly!FH72-Monthly!FH71)*100)","v":-4.0000000000000036},{"$f":"((Monthly!FI72-Monthly!FI71)*100)","v":-1.9999999999999574},null,null,null,null,null,null,"--","--","--","--","--","--","--","--","--",null,null,null,null,null,{"$f":"(Monthly!GD72/Monthly!GD71)-1","v":0},"--","--","--","--","--","--","--","--"]
["1964-03-01",null,null,null,{"$f":"(Monthly!E73/Monthly!E72)-1","v":{"$error":"#DIV/0!"}},{"$f":"(Monthly!F73/Monthly!F72)-1","v":{"$error":"#DIV/0!"}},{"$f":"(Monthly!G73/Monthly!G72)-1","v":{"$error":"#DIV/0!"}},{"$f":"(Monthly!H73/Monthly!H72)-1","v":{"$error":"#DIV/0!"}},null,null,null,null,null,null,null,null,null,null,null,null,null,null,null,"--",{"$f":"(Monthly!Y73/Monthly!Y72)-1","v":3.1532954506530153E-3},null,null,null,null,null,null,null,null,null,null,null,null,null,{"$f":"(Monthly!AM73/Monthly!AM72)-1","v":0},"--","--","--",{"$f":"Monthly!AQ73-Monthly!AQ72","v":2.3000000000000043},"--","--",{"$f":"Monthly!AT73-Monthly!AT72","v":2.5},"--","--",{"$f":"Monthly!AW73-Monthly!AW72","v":4.2000000000000028},{"$f":"Monthly!AX73-Monthly!AX72","v":-9.9999999999994316E-2},{"$f":"Monthly!AY73-Monthly!AY72","v":0.5},{"$f":"Monthly!AZ73-Monthly!AZ72","v":0.40000000000000568},{"$f":"Monthly!BA73-Monthly!BA72","v":8.3999999999999986},"--","--",null,null,null,null,null,null,null,null,null,"--","--",null,null,null,null,null,{"$f":"(Monthly!BT73/Monthly!BT72)-1","v":1.2944337636702885E-2},null,null,null,{"$f":"(Monthly!BX73/Monthly!BX72)-1","v":-0.16648351648351645},{"$f":"(Monthly!BY73/Monthly!BY72)-1","v":-8.9459084604715633E-2},"--","--",{"$f":"Monthly!CB73-Monthly!CB72","v":-1.3871791099795416E-3},{"$f":"Monthly!CC73-Monthly!CC72","v":-1.3871791099795416E-3},"--","--",null,"--","--",null,{"$f":"(Monthly!CJ73/Monthly!CJ72)-1","v":-7.7175697865353055E-2},{"$f":"(Monthly!CK73/Monthly!CK72)-1","v":5.2498541707175495E-3},{"$f":"(Monthly!CL73/Monthly!CL72)-1","v":0.19532908704883223},{"$f":"(Monthly!CM73/Monthly!CM72)-1","v":-0.1987951807228916},{"$f":"(Monthly!CN73/Monthly!CN72)-1","v":2.3272581614259824E-2},{"$f":"(Monthly!CO73/Monthly!CO72)-1","v":7.8268876611418126E-3},{"$f":"(Monthly!CP73/Monthly!CP72)-1","v":1.1542556314960262E-2},{"$f":"(Monthly!CQ73/Monthly!CQ72)-1","v":9.9026501377985632E-4},"--","--","--",null,null,null,null,null,{"$f":"(Monthly!CZ73/Monthly!CZ72)-1","v":9.7055968942094673E-4},{"$f":"(Monthly!DA73/Monthly!DA72)-1","v":0},null,null,null,null,null,"--","--",{"$f":"((Monthly!DI73-Monthly!DI72)*100)","v":-9.9999999999994316},"--",{"$f":"((Monthly!DK73-Monthly!DK72)*100)","v":0},{"$f":"Monthly!DL73-Monthly!DL72","v":28},null,null,null,{"$f":"Monthly!DP73-Monthly!DP72","v":147},null,null,null,"--","--","--","--","--","--","--","--","--","--",null,null,null,null,null,null,null,null,null,null,null,null,null,{"$f":"(Monthly!EQ73/Monthly!EQ72)-1","v":0},"--",{"$f":"(Monthly!ES73/Monthly!ES72)-1","v":3.0120481927708997E-3},null,null,null,null,null,{"$f":"((Monthly!EY73-Monthly!EY72)*100)","v":0},{"$f":"((Monthly!EZ73-Monthly!EZ72)*100)","v":-4.9999999999999822},{"$f":"((Monthly!FA73-Monthly!FA72)*100)","v":1.9999999999999574},{"$f":"((Monthly!FB73-Monthly!FB72)*100)","v":0},"--","--",{"$f":"((Monthly!FE73-Monthly!FE72)*100)","v":1.0000000000000231},{"$f":"((Monthly!FF73-Monthly!FF72)*100)","v":13.000000000000034},"--",{"$f":"((Monthly!FH73-Monthly!FH72)*100)","v":10.999999999999943},{"$f":"((Monthly!FI73-Monthly!FI72)*100)","v":6.9999999999999396},null,null,null,null,null,null,"--","--","--","--","--","--","--","--","--",null,null,null,null,null,{"$f":"(Monthly!GD73/Monthly!GD72)-1","v":0},"--","--","--","--","--","--","--","--"]
["1964-04-01",null,null,null,{"$f":"(Monthly!E74/Monthly!E73)-1","v":{"$error":"#DIV/0!"}},{"$f":"(Monthly!F74/Monthly!F73)-1","v":{"$error":"#DIV/0!"}},{"$f":"(Monthly!G74/Monthly!G73)-1","v":{"$error":"#DIV/0!"}},{"$f":"(Monthly!H74/Monthly!H73)-1","v":{"$error":"#DIV/0!"}},null,null,null,null,null,null,null,null,null,null,null,null,null,null,null,"--",{"$f":"(Monthly!Y74/Monthly!Y73)-1","v":9.7716162150778274E-3},null,null,null,null,null,null,null,null,null,null,null,null,null,{"$f":"(Monthly!AM74/Monthly!AM73)-1","v":1.6363151939599252E-2},"--","--","--",{"$f":"Monthly!AQ74-Monthly!AQ73","v":-1},"--","--",{"$f":"Monthly!AT74-Monthly!AT73","v":0},"--","--",{"$f":"Monthly!AW74-Monthly!AW73","v":-1.5},{"$f":"Monthly!AX74-Monthly!AX73","v":1.8999999999999986},{"$f":"Monthly!AY74-Monthly!AY73","v":4.8000000000000043},{"$f":"Monthly!AZ74-Monthly!AZ73","v":-3.8000000000000043},{"$f":"Monthly!BA74-Monthly!BA73","v":-2.5999999999999943},"--","--",null,null,null,null,null,null,null,null,null,"--","--",null,null,null,null,null,{"$f":"(Monthly!BT74/Monthly!BT73)-1","v":1.1615922684418578E-2},null,null,null,{"$f":"(Monthly!BX74/Monthly!BX73)-1","v":-4.5484508899143017E-2},{"$f":"(Monthly!BY74/Monthly!BY73)-1","v":-3.7319116527037344E-2},"--","--",{"$f":"Monthly!CB74-Monthly!CB73","v":3.2620774910518513E-2},{"$f":"Monthly!CC74-Monthly!CC73","v":-3.7379225089480883E-2},"--","--",null,"--","--",null,{"$f":"(Monthly!CJ74/Monthly!CJ73)-1","v":-5.3380782918149849E-3},{"$f":"(Monthly!CK74/Monthly!CK73)-1","v":6.9632495164411168E-3},{"$f":"(Monthly!CL74/Monthly!CL73)-1","v":3.1971580817051537E-2},{"$f":"(Monthly!CM74/Monthly!CM73)-1","v":-3.2223415682062329E-2},{"$f":"(Monthly!CN74/Monthly!CN73)-1","v":5.5194551006028103E-3},{"$f":"(Monthly!CO74/Monthly!CO73)-1","v":6.3956144358154887E-3},{"$f":"(Monthly!CP74/Monthly!CP73)-1","v":8.4275192957128375E-3},{"$f":"(Monthly!CQ74/Monthly!CQ73)-1","v":1.0363941857238768E-3},"--","--","--",null,null,null,null,null,{"$f":"(Monthly!CZ74/Monthly!CZ73)-1","v":3.2320620555914559E-4},{"$f":"(Monthly!DA74/Monthly!DA73)-1","v":0},null,null,null,null,null,"--","--",{"$f":"((Monthly!DI74-Monthly!DI73)*100)","v":39.999999999999858},"--",{"$f":"((Monthly!DK74-Monthly!DK73)*100)","v":-10.000000000000053},{"$f":"Monthly!DL74-Monthly!DL73","v":15},null,null,null,{"$f":"Monthly!DP74-Monthly!DP73","v":24},null,null,null,"--","--","--","--","--","--","--","--","--","--",null,null,null,null,null,null,null,null,null,null,null,null,null,{"$f":"(Monthly!EQ74/Monthly!EQ73)-1","v":0},"--",{"$f":"(Monthly!ES74/Monthly!ES73)-1","v":0},null,null,null,null,null,{"$f":"((Monthly!EY74-Monthly!EY73)*100)","v":0},{"$f":"((Monthly!EZ74-Monthly!EZ73)*100)","v":4.0000000000000036},{"$f":"((Monthly!FA74-Monthly!FA73)*100)","v":2.0000000000000462},{"$f":"((Monthly!FB74-Monthly!FB73)*100)","v":1.9999999999999574},"--","--",{"$f":"((Monthly!FE74-Monthly!FE73)*100)","v":-6.999999999999984},{"$f":"((Monthly!FF74-Monthly!FF73)*100)","v":0},"--",{"$f":"((Monthly!FH74-Monthly!FH73)*100)","v":1.0000000000000675},{"$f":"((Monthly!FI74-Monthly!FI73)*100)","v":1.0000000000000675},null,null,null,null,null,null,"--","--","--","--","--","--","--","--","--",null,null,null,null,null,{"$f":"(Monthly!GD74/Monthly!GD73)-1","v":0},"--","--","--","--","--","--","--","--"]
["1964-05-01",null,null,null,{"$f":"(Monthly!E75/Monthly!E74)-1","v":{"$error":"#DIV/0!"}},{"$f":"(Monthly!F75/Monthly!F74)-1","v":{"$error":"#DIV/0!"}},{"$f":"(Monthly!G75/Monthly!G74)-1","v":{"$error":"#DIV/0!"}},{"$f":"(Monthly!H75/Monthly!H74)-1","v":{"$error":"#DIV/0!"}},null,null,null,null,null,null,null,null,null,null,null,null,null,null,null,"--",{"$f":"(Monthly!Y75/Monthly!Y74)-1","v":9.6845704409251887E-3},null,null,null,null,null,null,null,null,null,null,null,null,null,{"$f":"(Monthly!AM75/Monthly!AM74)-1","v":5.6820503043590875E-3},"--","--","--",{"$f":"Monthly!AQ75-Monthly!AQ74","v":-0.5},"--","--",{"$f":"Monthly!AT75-Monthly!AT74","v":0.79999999999999716},"--","--",{"$f":"Monthly!AW75-Monthly!AW74","v":-2.8000000000000043},{"$f":"Monthly!AX75-Monthly!AX74","v":-3.7000000000000028},{"$f":"Monthly!AY75-Monthly!AY74","v":-5.1000000000000085},{"$f":"Monthly!AZ75-Monthly!AZ74","v":0.39999999999999858},{"$f":"Monthly!BA75-Monthly!BA74","v":3.6999999999999957},"--","--",null,null,null,null,null,null,null,null,null,"--","--",null,null,null,null,null,{"$f":"(Monthly!BT75/Monthly!BT74)-1","v":1.2186804958231212E-2},null,null,null,{"$f":"(Monthly!BX75/Monthly!BX74)-1","v":1.3121546961325947E-2},{"$f":"(Monthly!BY75/Monthly!BY74)-1","v":2.7689873417721556E-2},"--","--",{"$f":"Monthly!CB75-Monthly!CB74","v":-0.20151621902719796},{"$f":"Monthly!CC75-Monthly!CC74","v":-0.34151621902719675},"--","--",null,"--","--",null,{"$f":"(Monthly!CJ75/Monthly!CJ74)-1","v":-6.4400715563506239E-2},{"$f":"(Monthly!CK75/Monthly!CK74)-1","v":6.3388398002304225E-3},{"$f":"(Monthly!CL75/Monthly!CL74)-1","v":-5.3356282271944999E-2},{"$f":"(Monthly!CM75/Monthly!CM74)-1","v":5.105438401775797E-2},{"$f":"(Monthly!CN75/Monthly!CN74)-1","v":5.3723673453498488E-3},{"$f":"(Monthly!CO75/Monthly!CO74)-1","v":8.1706763504312274E-3},{"$f":"(Monthly!CP75/Monthly!CP74)-1","v":1.1592051879531828E-2},{"$f":"(Monthly!CQ75/Monthly!CQ74)-1","v":1.0562367643598414E-3},"--","--","--",null,null,null,null,null,{"$f":"(Monthly!CZ75/Monthly!CZ74)-1","v":9.6930533117944861E-4},{"$f":"(Monthly!DA75/Monthly!DA74)-1","v":0},null,null,null,null,null,"--","--",{"$f":"((Monthly!DI75-Monthly!DI74)*100)","v":0},"--",{"$f":"((Monthly!DK75-Monthly!DK74)*100)","v":-20.000000000000018},{"$f":"Monthly!DL75-Monthly!DL74","v":27},null,null,null,{"$f":"Monthly!DP75-Monthly!DP74","v":167},null,null,null,"--","--","--","--","--","--","--","--","--","--",null,null,null,null,null,null,null,null,null,null,null,null,null,{"$f":"(Monthly!EQ75/Monthly!EQ74)-1","v":-3.1645569620253333E-3},"--",{"$f":"(Monthly!ES75/Monthly!ES74)-1","v":6.0060060060060927E-3},null,null,null,null,null,{"$f":"((Monthly!EY75-Monthly!EY74)*100)","v":0},{"$f":"((Monthly!EZ75-Monthly!EZ74)*100)","v":2.9999999999999805},{"$f":"((Monthly!FA75-Monthly!FA74)*100)","v":0.99999999999997868},{"$f":"((Monthly!FB75-Monthly!FB74)*100)","v":0},"--","--",{"$f":"((Monthly!FE75-Monthly!FE74)*100)","v":0.99999999999997868},{"$f":"((Monthly!FF75-Monthly!FF74)*100)","v":-7.0000000000000284},"--",{"$f":"((Monthly!FH75-Monthly!FH74)*100)","v":-10.000000000000053},{"$f":"((Monthly!FI75-Monthly!FI74)*100)","v":-3.0000000000000249},null,null,null,null,null,null,"--","--","--","--","--","--","--","--","--",null,null,null,null,null,{"$f":"(Monthly!GD75/Monthly!GD74)-1","v":0},"--","--","--","--","--","--","--","--"]
["1964-06-01",null,null,null,{"$f":"(Monthly!E76/Monthly!E75)-1","v":{"$error":"#DIV/0!"}},{"$f":"(Monthly!F76/Monthly!F75)-1","v":{"$error":"#DIV/0!"}},{"$f":"(Monthly!G76/Monthly!G75)-1","v":{"$error":"#DIV/0!"}},{"$f":"(Monthly!H76/Monthly!H75)-1","v":{"$error":"#DIV/0!"}},null,null,null,null,null,null,null,null,null,null,null,null,null,null,null,"--",{"$f":"(Monthly!Y76/Monthly!Y75)-1","v":1.0218720055075403E-2},null,null,null,null,null,null,null,null,null,null,null,null,null,{"$f":"(Monthly!AM76/Monthly!AM75)-1","v":2.8232808961379252E-3},"--","--","--",{"$f":"Monthly!AQ76-Monthly!AQ75","v":1.3999999999999986},"--","--",{"$f":"Monthly!AT76-Monthly!AT75","v":-0.29999999999999716},"--","--",{"$f":"Monthly!AW76-Monthly!AW75","v":3.2000000000000028},{"$f":"Monthly!AX76-Monthly!AX75","v":4.8000000000000043},{"$f":"Monthly!AY76-Monthly!AY75","v":-1.3999999999999986},{"$f":"Monthly!AZ76-Monthly!AZ75","v":1.1000000000000014},{"$f":"Monthly!BA76-Monthly!BA75","v":-3.7999999999999972},"--","--",null,null,null,null,null,null,null,null,null,"--","--",null,null,null,null,null,{"$f":"(Monthly!BT76/Monthly!BT75)-1","v":1.0659508991554212E-2},null,null,null,{"$f":"(Monthly!BX76/Monthly!BX75)-1","v":5.6578050443081063E-2},{"$f":"(Monthly!BY76/Monthly!BY75)-1","v":-1.4626635873749017E-2},"--","--",{"$f":"Monthly!CB76-Monthly!CB75","v":-0.13371603571260504},{"$f":"Monthly!CC76-Monthly!CC75","v":-6.3716035712605645E-2},"--","--",null,"--","--",null,{"$f":"(Monthly!CJ76/Monthly!CJ75)-1","v":0.10898661567877621},{"$f":"(Monthly!CK76/Monthly!CK75)-1","v":5.1536552777249334E-3},{"$f":"(Monthly!CL76/Monthly!CL75)-1","v":-1.2727272727272809E-2},{"$f":"(Monthly!CM76/Monthly!CM75)-1","v":3.5902851108764455E-2},{"$f":"(Monthly!CN76/Monthly!CN75)-1","v":3.5624394966118356E-3},{"$f":"(Monthly!CO76/Monthly!CO75)-1","v":9.0049527239981497E-3},{"$f":"(Monthly!CP76/Monthly!CP75)-1","v":7.344636262981652E-3},{"$f":"(Monthly!CQ76/Monthly!CQ75)-1","v":1.1439197271307933E-3},"--","--","--",null,null,null,null,null,{"$f":"(Monthly!CZ76/Monthly!CZ75)-1","v":9.6836668818589544E-4},{"$f":"(Monthly!DA76/Monthly!DA75)-1","v":3.1055900621115295E-3},null,null,null,null,null,"--","--",{"$f":"((Monthly!DI76-Monthly!DI75)*100)","v":-39.999999999999858},"--",{"$f":"((Monthly!DK76-Monthly!DK75)*100)","v":10.000000000000053},{"$f":"Monthly!DL76-Monthly!DL75","v":27},null,null,null,{"$f":"Monthly!DP76-Monthly!DP75","v":132},null,null,null,"--","--","--","--","--","--","--","--","--","--",null,null,null,null,null,null,null,null,null,null,null,null,null,{"$f":"(Monthly!EQ76/Monthly!EQ75)-1","v":0},"--",{"$f":"(Monthly!ES76/Monthly!ES75)-1","v":-2.9850746268657025E-3},null,null,null,null,null,{"$f":"((Monthly!EY76-Monthly!EY75)*100)","v":0},{"$f":"((Monthly!EZ76-Monthly!EZ75)*100)","v":0},{"$f":"((Monthly!FA76-Monthly!FA75)*100)","v":0},{"$f":"((Monthly!FB76-Monthly!FB75)*100)","v":0},"--","--",{"$f":"((Monthly!FE76-Monthly!FE75)*100)","v":0},{"$f":"((Monthly!FF76-Monthly!FF75)*100)","v":-0.99999999999997868},"--",{"$f":"((Monthly!FH76-Monthly!FH75)*100)","v":-3.0000000000000249},{"$f":"((Monthly!FI76-Monthly!FI75)*100)","v":-3.0000000000000249},null,null,null,null,null,null,"--","--","--","--","--","--","--","--","--",null,null,null,null,null,{"$f":"(Monthly!GD76/Monthly!GD75)-1","v":0},"--","--","--","--","--","--","--","--"]
["1964-07-01",null,null,null,{"$f":"(Monthly!E77/Monthly!E76)-1","v":{"$error":"#DIV/0!"}},{"$f":"(Monthly!F77/Monthly!F76)-1","v":{"$error":"#DIV/0!"}},{"$f":"(Monthly!G77/Monthly!G76)-1","v":{"$error":"#DIV/0!"}},{"$f":"(Monthly!H77/Monthly!H76)-1","v":{"$error":"#DIV/0!"}},null,null,null,null,null,null,null,null,null,null,null,null,null,null,null,"--",{"$f":"(Monthly!Y77/Monthly!Y76)-1","v":7.7762244975014827E-3},null,null,null,null,null,null,null,null,null,null,null,null,null,{"$f":"(Monthly!AM77/Monthly!AM76)-1","v":6.572484682768831E-3},"--","--","--",{"$f":"Monthly!AQ77-Monthly!AQ76","v":2.7999999999999972},"--","--",{"$f":"Monthly!AT77-Monthly!AT76","v":0.59999999999999432},"--","--",{"$f":"Monthly!AW77-Monthly!AW76","v":2},{"$f":"Monthly!AX77-Monthly!AX76","v":5.2000000000000028},{"$f":"Monthly!AY77-Monthly!AY76","v":2},{"$f":"Monthly!AZ77-Monthly!AZ76","v":1.6000000000000014},{"$f":"Monthly!BA77-Monthly!BA76","v":4.1999999999999957},"--","--",null,null,null,null,null,null,null,null,null,"--","--",null,null,null,null,null,{"$f":"(Monthly!BT77/Monthly!BT76)-1","v":1.7017918611137439E-2},null,null,null,{"$f":"(Monthly!BX77/Monthly!BX76)-1","v":7.7419354838710319E-3},{"$f":"(Monthly!BY77/Monthly!BY76)-1","v":1.8750000000000044E-2},"--","--",{"$f":"Monthly!CB77-Monthly!CB76","v":-0.53149367871206898},{"$f":"Monthly!CC77-Monthly!CC76","v":-0.74149367871206984},"--","--",null,"--","--",null,{"$f":"(Monthly!CJ77/Monthly!CJ76)-1","v":-8.6206896551723755E-3},{"$f":"(Monthly!CK77/Monthly!CK76)-1","v":5.6969236612229857E-3},{"$f":"(Monthly!CL77/Monthly!CL76)-1","v":-2.5782688766114115E-2},{"$f":"(Monthly!CM77/Monthly!CM76)-1","v":-1.2232415902140636E-2},{"$f":"(Monthly!CN77/Monthly!CN76)-1","v":3.4340394335763413E-3},{"$f":"(Monthly!CO77/Monthly!CO76)-1","v":6.2472110664881786E-3},{"$f":"(Monthly!CP77/Monthly!CP76)-1","v":1.063882045777742E-2},{"$f":"(Monthly!CQ77/Monthly!CQ76)-1","v":1.1634823077646406E-3},"--","--","--",null,null,null,null,null,{"$f":"(Monthly!CZ77/Monthly!CZ76)-1","v":3.2247662044504466E-4},{"$f":"(Monthly!DA77/Monthly!DA76)-1","v":0},null,null,null,null,null,"--","--",{"$f":"((Monthly!DI77-Monthly!DI76)*100)","v":-10.000000000000142},"--",{"$f":"((Monthly!DK77-Monthly!DK76)*100)","v":-29.999999999999982},{"$f":"Monthly!DL77-Monthly!DL76","v":48},null,null,null,{"$f":"Monthly!DP77-Monthly!DP76","v":192},null,null,null,"--","--","--","--","--","--","--","--","--","--",null,null,null,null,null,null,null,null,null,null,null,null,null,{"$f":"(Monthly!EQ77/Monthly!EQ76)-1","v":3.1746031746031633E-3},"--",{"$f":"(Monthly!ES77/Monthly!ES76)-1","v":2.9940119760478723E-3},null,null,null,null,null,{"$f":"((Monthly!EY77-Monthly!EY76)*100)","v":0},{"$f":"((Monthly!EZ77-Monthly!EZ76)*100)","v":-8.0000000000000071},{"$f":"((Monthly!FA77-Monthly!FA76)*100)","v":-0.99999999999997868},{"$f":"((Monthly!FB77-Monthly!FB76)*100)","v":-1.9999999999999574},"--","--",{"$f":"((Monthly!FE77-Monthly!FE76)*100)","v":-2.0000000000000018},{"$f":"((Monthly!FF77-Monthly!FF76)*100)","v":-10.999999999999988},"--",{"$f":"((Monthly!FH77-Monthly!FH76)*100)","v":1.0000000000000675},{"$f":"((Monthly!FI77-Monthly!FI76)*100)","v":2.0000000000000462},null,null,null,null,null,null,"--","--","--","--","--","--","--","--","--",null,null,null,null,null,{"$f":"(Monthly!GD77/Monthly!GD76)-1","v":-1.6835016835016869E-2},"--","--","--","--","--","--","--","--"]
["1964-08-01",null,null,null,{"$f":"(Monthly!E78/Monthly!E77)-1","v":{"$error":"#DIV/0!"}},{"$f":"(Monthly!F78/Monthly!F77)-1","v":{"$error":"#DIV/0!"}},{"$f":"(Monthly!G78/Monthly!G77)-1","v":{"$error":"#DIV/0!"}},{"$f":"(Monthly!H78/Monthly!H77)-1","v":{"$error":"#DIV/0!"}},null,null,null,null,null,null,null,null,null,null,null,null,null,null,null,"--",{"$f":"(Monthly!Y78/Monthly!Y77)-1","v":7.1039679508151377E-3},null,null,null,null,null,null,null,null,null,null,null,null,null,{"$f":"(Monthly!AM78/Monthly!AM77)-1","v":6.5295691892870433E-3},"--","--","--",{"$f":"Monthly!AQ78-Monthly!AQ77","v":0.39999999999999858},"--","--",{"$f":"Monthly!AT78-Monthly!AT77","v":1.7000000000000028},"--","--",{"$f":"Monthly!AW78-Monthly!AW77","v":-2},{"$f":"Monthly!AX78-Monthly!AX77","v":-1.9000000000000057},{"$f":"Monthly!AY78-Monthly!AY77","v":0.80000000000000426},{"$f":"Monthly!AZ78-Monthly!AZ77","v":0.19999999999999574},{"$f":"Monthly!BA78-Monthly!BA77","v":4.4000000000000057},"--","--",null,null,null,null,null,null,null,null,null,"--","--",null,null,null,null,null,{"$f":"(Monthly!BT78/Monthly!BT77)-1","v":1.5989340439706901E-2},null,null,null,{"$f":"(Monthly!BX78/Monthly!BX77)-1","v":4.4814340588987811E-3},{"$f":"(Monthly!BY78/Monthly!BY77)-1","v":1.5337423312884457E-3},"--","--",{"$f":"Monthly!CB78-Monthly!CB77","v":3.4093889326136662E-4},{"$f":"Monthly!CC78-Monthly!CC77","v":7.0340938893261651E-2},"--","--",null,"--","--",null,{"$f":"(Monthly!CJ78/Monthly!CJ77)-1","v":1.2173913043478368E-2},{"$f":"(Monthly!CK78/Monthly!CK77)-1","v":7.7416918429003001E-3},{"$f":"(Monthly!CL78/Monthly!CL77)-1","v":5.6710775047259521E-3},{"$f":"(Monthly!CM78/Monthly!CM77)-1","v":2.1671826625387025E-2},{"$f":"(Monthly!CN78/Monthly!CN77)-1","v":5.9601630392986937E-3},{"$f":"(Monthly!CO78/Monthly!CO77)-1","v":8.4257206208426805E-3},{"$f":"(Monthly!CP78/Monthly!CP77)-1","v":8.2459945682882285E-3},{"$f":"(Monthly!CQ78/Monthly!CQ77)-1","v":1.2611457665629988E-3},"--","--","--",null,null,null,null,null,{"$f":"(Monthly!CZ78/Monthly!CZ77)-1","v":9.6711798839455021E-4},{"$f":"(Monthly!DA78/Monthly!DA77)-1","v":0},null,null,null,null,null,"--","--",{"$f":"((Monthly!DI78-Monthly!DI77)*100)","v":0},"--",{"$f":"((Monthly!DK78-Monthly!DK77)*100)","v":9.9999999999999645},{"$f":"Monthly!DL78-Monthly!DL77","v":61},null,null,null,{"$f":"Monthly!DP78-Monthly!DP77","v":206},null,null,null,"--","--","--","--","--","--","--","--","--","--",null,null,null,null,null,null,null,null,null,null,null,null,null,{"$f":"(Monthly!EQ78/Monthly!EQ77)-1","v":0},"--",{"$f":"(Monthly!ES78/Monthly!ES77)-1","v":0},null,null,null,null,null,{"$f":"((Monthly!EY78-Monthly!EY77)*100)","v":0},{"$f":"((Monthly!EZ78-Monthly!EZ77)*100)","v":8.0000000000000071},{"$f":"((Monthly!FA78-Monthly!FA77)*100)","v":0.99999999999997868},{"$f":"((Monthly!FB78-Monthly!FB77)*100)","v":-0.99999999999997868},"--","--",{"$f":"((Monthly!FE78-Monthly!FE77)*100)","v":4.0000000000000036},{"$f":"((Monthly!FF78-Monthly!FF77)*100)","v":2.0000000000000018},"--",{"$f":"((Monthly!FH78-Monthly!FH77)*100)","v":1.9999999999999574},{"$f":"((Monthly!FI78-Monthly!FI77)*100)","v":0},null,null,null,null,null,null,"--","--","--","--","--","--","--","--","--",null,null,null,null,null,{"$f":"(Monthly!GD78/Monthly!GD77)-1","v":0},"--","--","--","--","--","--","--","--"]
["1964-09-01",null,null,null,{"$f":"(Monthly!E79/Monthly!E78)-1","v":{"$error":"#DIV/0!"}},{"$f":"(Monthly!F79/Monthly!F78)-1","v":{"$error":"#DIV/0!"}},{"$f":"(Monthly!G79/Monthly!G78)-1","v":{"$error":"#DIV/0!"}},{"$f":"(Monthly!H79/Monthly!H78)-1","v":{"$error":"#DIV/0!"}},null,null,null,null,null,null,null,null,null,null,null,null,null,null,null,"--",{"$f":"(Monthly!Y79/Monthly!Y78)-1","v":1.2164138747037478E-2},null,null,null,null,null,null,null,null,null,null,null,null,null,{"$f":"(Monthly!AM79/Monthly!AM78)-1","v":3.708405385684177E-3},"--","--","--",{"$f":"Monthly!AQ79-Monthly!AQ78","v":0},"--","--",{"$f":"Monthly!AT79-Monthly!AT78","v":-1.2000000000000028},"--","--",{"$f":"Monthly!AW79-Monthly!AW78","v":5.5},{"$f":"Monthly!AX79-Monthly!AX78","v":-4.7000000000000028},{"$f":"Monthly!AY79-Monthly!AY78","v":3.0999999999999943},{"$f":"Monthly!AZ79-Monthly!AZ78","v":1.0000000000000071},{"$f":"Monthly!BA79-Monthly!BA78","v":5.7000000000000028},"--","--",null,null,null,null,null,null,null,null,null,"--","--",null,null,null,null,null,{"$f":"(Monthly!BT79/Monthly!BT78)-1","v":1.025478965040505E-2},null,null,null,{"$f":"(Monthly!BX79/Monthly!BX78)-1","v":-7.2657743785850881E-2},{"$f":"(Monthly!BY79/Monthly!BY78)-1","v":-3.1393568147013773E-2},"--","--",{"$f":"Monthly!CB79-Monthly!CB78","v":0.2962652439024378},{"$f":"Monthly!CC79-Monthly!CC78","v":0.36626524390243809},"--","--",null,"--","--",null,{"$f":"(Monthly!CJ79/Monthly!CJ78)-1","v":1.3745704467353903E-2},{"$f":"(Monthly!CK79/Monthly!CK78)-1","v":5.6211354693647131E-3},{"$f":"(Monthly!CL79/Monthly!CL78)-1","v":6.7669172932330657E-2},{"$f":"(Monthly!CM79/Monthly!CM78)-1","v":-3.3333333333333326E-2},{"$f":"(Monthly!CN79/Monthly!CN78)-1","v":3.8607086885058539E-3},{"$f":"(Monthly!CO79/Monthly!CO78)-1","v":8.7950747581353461E-3},{"$f":"(Monthly!CP79/Monthly!CP78)-1","v":1.1436236563416191E-2},{"$f":"(Monthly!CQ79/Monthly!CQ78)-1","v":1.2751716276915293E-3},"--","--","--",null,null,null,null,null,{"$f":"(Monthly!CZ79/Monthly!CZ78)-1","v":9.6618357487909812E-4},{"$f":"(Monthly!DA79/Monthly!DA78)-1","v":0},null,null,null,null,null,"--","--",{"$f":"((Monthly!DI79-Monthly!DI78)*100)","v":10.000000000000142},"--",{"$f":"((Monthly!DK79-Monthly!DK78)*100)","v":9.9999999999999645},{"$f":"Monthly!DL79-Monthly!DL78","v":125},null,null,null,{"$f":"Monthly!DP79-Monthly!DP78","v":284},null,null,null,"--","--","--","--","--","--","--","--","--","--",null,null,null,null,null,null,null,null,null,null,null,null,null,{"$f":"(Monthly!EQ79/Monthly!EQ78)-1","v":3.1645569620253333E-3},"--",{"$f":"(Monthly!ES79/Monthly!ES78)-1","v":0},null,null,null,null,null,{"$f":"((Monthly!EY79-Monthly!EY78)*100)","v":0},{"$f":"((Monthly!EZ79-Monthly!EZ78)*100)","v":-4.9999999999999822},{"$f":"((Monthly!FA79-Monthly!FA78)*100)","v":0.99999999999997868},{"$f":"((Monthly!FB79-Monthly!FB78)*100)","v":0},"--","--",{"$f":"((Monthly!FE79-Monthly!FE78)*100)","v":2.9999999999999805},{"$f":"((Monthly!FF79-Monthly!FF78)*100)","v":9.9999999999999645},"--",{"$f":"((Monthly!FH79-Monthly!FH78)*100)","v":3.0000000000000249},{"$f":"((Monthly!FI79-Monthly!FI78)*100)","v":0.99999999999997868},null,null,null,null,null,null,"--","--","--","--","--","--","--","--","--",null,null,null,null,null,{"$f":"(Monthly!GD79/Monthly!GD78)-1","v":0},"--","--","--","--","--","--","--","--"]
["1964-10-01",null,null,null,{"$f":"(Monthly!E80/Monthly!E79)-1","v":{"$error":"#DIV/0!"}},{"$f":"(Monthly!F80/Monthly!F79)-1","v":{"$error":"#DIV/0!"}},{"$f":"(Monthly!G80/Monthly!G79)-1","v":{"$error":"#DIV/0!"}},{"$f":"(Monthly!H80/Monthly!H79)-1","v":{"$error":"#DIV/0!"}},null,null,null,null,null,null,null,null,null,null,null,null,null,null,null,"--",{"$f":"(Monthly!Y80/Monthly!Y79)-1","v":9.249680411798078E-3},null,null,null,null,null,null,null,null,null,null,null,null,null,{"$f":"(Monthly!AM80/Monthly!AM79)-1","v":-1.3849330438650553E-2},"--","--","--",{"$f":"Monthly!AQ80-Monthly!AQ79","v":-2.5999999999999943},"--","--",{"$f":"Monthly!AT80-Monthly!AT79","v":-1.7999999999999972},"--","--",{"$f":"Monthly!AW80-Monthly!AW79","v":0.10000000000000142},{"$f":"Monthly!AX80-Monthly!AX79","v":-4.3999999999999986},{"$f":"Monthly!AY80-Monthly!AY79","v":4},{"$f":"Monthly!AZ80-Monthly!AZ79","v":-3.1000000000000085},{"$f":"Monthly!BA80-Monthly!BA79","v":-0.70000000000000284},"--","--",null,null,null,null,null,null,null,null,null,"--","--",null,null,null,null,null,{"$f":"(Monthly!BT80/Monthly!BT79)-1","v":1.1837265620316062E-2},null,null,null,{"$f":"(Monthly!BX80/Monthly!BX79)-1","v":4.7422680412371188E-2},{"$f":"(Monthly!BY80/Monthly!BY79)-1","v":-2.7667984189723271E-2},"--","--",{"$f":"Monthly!CB80-Monthly!CB79","v":3.137703252031887E-2},{"$f":"Monthly!CC80-Monthly!CC79","v":3.1377032520319759E-2},"--","--",null,"--","--",null,{"$f":"(Monthly!CJ80/Monthly!CJ79)-1","v":-1.1864406779661052E-2},{"$f":"(Monthly!CK80/Monthly!CK79)-1","v":1.3042668157257076E-3},{"$f":"(Monthly!CL80/Monthly!CL79)-1","v":-4.9295774647887258E-2},{"$f":"(Monthly!CM80/Monthly!CM79)-1","v":4.0752351097178785E-2},{"$f":"(Monthly!CN80/Monthly!CN79)-1","v":-2.2846698652045916E-4},{"$f":"(Monthly!CO80/Monthly!CO79)-1","v":6.1028770706190727E-3},{"$f":"(Monthly!CP80/Monthly!CP79)-1","v":7.2472057386621103E-3},{"$f":"(Monthly!CQ80/Monthly!CQ79)-1","v":1.3255291720379869E-3},"--","--","--",null,null,null,null,null,{"$f":"(Monthly!CZ80/Monthly!CZ79)-1","v":1.2870012870014325E-3},{"$f":"(Monthly!DA80/Monthly!DA79)-1","v":3.0959752321981782E-3},null,null,null,null,null,"--","--",{"$f":"((Monthly!DI80-Monthly!DI79)*100)","v":-10.000000000000142},"--",{"$f":"((Monthly!DK80-Monthly!DK79)*100)","v":0},{"$f":"Monthly!DL80-Monthly!DL79","v":-252},null,null,null,{"$f":"Monthly!DP80-Monthly!DP79","v":-109},null,null,null,"--","--","--","--","--","--","--","--","--","--",null,null,null,null,null,null,null,null,null,null,null,null,null,{"$f":"(Monthly!EQ80/Monthly!EQ79)-1","v":0},"--",{"$f":"(Monthly!ES80/Monthly!ES79)-1","v":0},null,null,null,null,null,{"$f":"((Monthly!EY80-Monthly!EY79)*100)","v":0},{"$f":"((Monthly!EZ80-Monthly!EZ79)*100)","v":-9.0000000000000302},{"$f":"((Monthly!FA80-Monthly!FA79)*100)","v":0},{"$f":"((Monthly!FB80-Monthly!FB79)*100)","v":-1.0000000000000675},"--","--",{"$f":"((Monthly!FE80-Monthly!FE79)*100)","v":4.0000000000000036},{"$f":"((Monthly!FF80-Monthly!FF79)*100)","v":2.0000000000000018},"--",{"$f":"((Monthly!FH80-Monthly!FH79)*100)","v":-0.99999999999997868},{"$f":"((Monthly!FI80-Monthly!FI79)*100)","v":-0.99999999999997868},null,null,null,null,null,null,"--","--","--","--","--","--","--","--","--",null,null,null,null,null,{"$f":"(Monthly!GD80/Monthly!GD79)-1","v":0},"--","--","--","--","--","--","--","--"]
["1964-11-01",null,null,null,{"$f":"(Monthly!E81/Monthly!E80)-1","v":{"$error":"#DIV/0!"}},{"$f":"(Monthly!F81/Monthly!F80)-1","v":{"$error":"#DIV/0!"}},{"$f":"(Monthly!G81/Monthly!G80)-1","v":{"$error":"#DIV/0!"}},{"$f":"(Monthly!H81/Monthly!H80)-1","v":{"$error":"#DIV/0!"}},null,null,null,null,null,null,null,null,null,null,null,null,null,null,null,"--",{"$f":"(Monthly!Y81/Monthly!Y80)-1","v":1.0161518400875424E-2},null,null,null,null,null,null,null,null,null,null,null,null,null,{"$f":"(Monthly!AM81/Monthly!AM80)-1","v":3.0898441444777269E-2},"--","--","--",{"$f":"Monthly!AQ81-Monthly!AQ80","v":1.0999999999999943},"--","--",{"$f":"Monthly!AT81-Monthly!AT80","v":2.2999999999999972},"--","--",{"$f":"Monthly!AW81-Monthly!AW80","v":1.8999999999999986},{"$f":"Monthly!AX81-Monthly!AX80","v":1.8000000000000043},{"$f":"Monthly!AY81-Monthly!AY80","v":-0.29999999999999716},{"$f":"Monthly!AZ81-Monthly!AZ80","v":0.30000000000000426},{"$f":"Monthly!BA81-Monthly!BA80","v":-0.90000000000000568},"--","--",null,null,null,null,null,null,null,null,null,"--","--",null,null,null,null,null,{"$f":"(Monthly!BT81/Monthly!BT80)-1","v":7.6875515251442206E-3},null,null,null,{"$f":"(Monthly!BX81/Monthly!BX80)-1","v":-2.493438320209973E-2},{"$f":"(Monthly!BY81/Monthly!BY80)-1","v":1.9512195121951237E-2},"--","--",{"$f":"Monthly!CB81-Monthly!CB80","v":-0.10624098638646284},{"$f":"Monthly!CC81-Monthly!CC80","v":-0.31624098638646458},"--","--",null,"--","--",null,{"$f":"(Monthly!CJ81/Monthly!CJ80)-1","v":-6.0034305317324232E-2},{"$f":"(Monthly!CK81/Monthly!CK80)-1","v":7.2571641235579243E-3},{"$f":"(Monthly!CL81/Monthly!CL80)-1","v":0.12037037037037046},{"$f":"(Monthly!CM81/Monthly!CM80)-1","v":-6.6265060240963902E-2},{"$f":"(Monthly!CN81/Monthly!CN80)-1","v":5.6368068251066994E-3},{"$f":"(Monthly!CO81/Monthly!CO80)-1","v":1.0398613518197486E-2},{"$f":"(Monthly!CP81/Monthly!CP80)-1","v":4.8952918601874451E-3},{"$f":"(Monthly!CQ81/Monthly!CQ80)-1","v":1.1213148454818356E-3},"--","--","--",null,null,null,null,null,{"$f":"(Monthly!CZ81/Monthly!CZ80)-1","v":2.8920308483291191E-3},{"$f":"(Monthly!DA81/Monthly!DA80)-1","v":3.0864197530864335E-3},null,null,null,null,null,"--","--",{"$f":"((Monthly!DI81-Monthly!DI80)*100)","v":-10.000000000000142},"--",{"$f":"((Monthly!DK81-Monthly!DK80)*100)","v":-29.999999999999982},{"$f":"Monthly!DL81-Monthly!DL80","v":275},null,null,null,{"$f":"Monthly!DP81-Monthly!DP80","v":423},null,null,null,"--","--","--","--","--","--","--","--","--","--",null,null,null,null,null,null,null,null,null,null,null,null,null,{"$f":"(Monthly!EQ81/Monthly!EQ80)-1","v":0},"--",{"$f":"(Monthly!ES81/Monthly!ES80)-1","v":0},null,null,null,null,null,{"$f":"((Monthly!EY81-Monthly!EY80)*100)","v":0},{"$f":"((Monthly!EZ81-Monthly!EZ80)*100)","v":16.000000000000014},{"$f":"((Monthly!FA81-Monthly!FA80)*100)","v":0.99999999999997868},{"$f":"((Monthly!FB81-Monthly!FB80)*100)","v":0},"--","--",{"$f":"((Monthly!FE81-Monthly!FE80)*100)","v":7.0000000000000284},{"$f":"((Monthly!FF81-Monthly!FF80)*100)","v":5.0000000000000266},"--",{"$f":"((Monthly!FH81-Monthly!FH80)*100)","v":-3.0000000000000249},{"$f":"((Monthly!FI81-Monthly!FI80)*100)","v":-4.0000000000000036},null,null,null,null,null,null,"--","--","--","--","--","--","--","--","--",null,null,null,null,null,{"$f":"(Monthly!GD81/Monthly!GD80)-1","v":0},"--","--","--","--","--","--","--","--"]
["1964-12-01",null,null,null,{"$f":"(Monthly!E82/Monthly!E81)-1","v":{"$error":"#DIV/0!"}},{"$f":"(Monthly!F82/Monthly!F81)-1","v":{"$error":"#DIV/0!"}},{"$f":"(Monthly!G82/Monthly!G81)-1","v":{"$error":"#DIV/0!"}},{"$f":"(Monthly!H82/Monthly!H81)-1","v":{"$error":"#DIV/0!"}},null,null,null,null,null,null,null,null,null,null,null,null,null,null,null,"--",{"$f":"(Monthly!Y82/Monthly!Y81)-1","v":2.6120767883396567E-2},null,null,null,null,null,null,null,null,null,null,null,null,null,{"$f":"(Monthly!AM82/Monthly!AM81)-1","v":1.1807385493503686E-2},"--","--","--",{"$f":"Monthly!AQ82-Monthly!AQ81","v":0.60000000000000142},"--","--",{"$f":"Monthly!AT82-Monthly!AT81","v":-2.0999999999999943},"--","--",{"$f":"Monthly!AW82-Monthly!AW81","v":-1.5},{"$f":"Monthly!AX82-Monthly!AX81","v":3.7000000000000028},{"$f":"Monthly!AY82-Monthly!AY81","v":1.0999999999999943},{"$f":"Monthly!AZ82-Monthly!AZ81","v":1.3999999999999986},{"$f":"Monthly!BA82-Monthly!BA81","v":-2.5},"--","--",null,null,null,null,null,null,null,null,null,"--","--",null,null,null,null,null,{"$f":"(Monthly!BT82/Monthly!BT81)-1","v":1.0029554332930957E-2},null,null,null,{"$f":"(Monthly!BX82/Monthly!BX81)-1","v":-1.3458950201884479E-3},{"$f":"(Monthly!BY82/Monthly!BY81)-1","v":-7.1770334928229707E-2},"--","--",{"$f":"Monthly!CB82-Monthly!CB81","v":1.1754823635579115E-3},{"$f":"Monthly!CC82-Monthly!CC81","v":0.14117548236355759},"--","--",null,"--","--",null,{"$f":"(Monthly!CJ82/Monthly!CJ81)-1","v":-1.4598540145985384E-2},{"$f":"(Monthly!CK82/Monthly!CK81)-1","v":1.1453907260299268E-2},{"$f":"(Monthly!CL82/Monthly!CL81)-1","v":1.1570247933884392E-2},{"$f":"(Monthly!CM82/Monthly!CM81)-1","v":3.548387096774186E-2},{"$f":"(Monthly!CN82/Monthly!CN81)-1","v":9.619754582639084E-3},{"$f":"(Monthly!CO82/Monthly!CO81)-1","v":8.5763293310463506E-3},{"$f":"(Monthly!CP82/Monthly!CP81)-1","v":1.1956112262196283E-2},{"$f":"(Monthly!CQ82/Monthly!CQ81)-1","v":9.9560791715713748E-4},"--","--","--",null,null,null,null,null,{"$f":"(Monthly!CZ82/Monthly!CZ81)-1","v":1.281640499839698E-3},{"$f":"(Monthly!DA82/Monthly!DA81)-1","v":0},null,null,null,null,null,"--","--",{"$f":"((Monthly!DI82-Monthly!DI81)*100)","v":10.000000000000142},"--",{"$f":"((Monthly!DK82-Monthly!DK81)*100)","v":20.000000000000018},{"$f":"Monthly!DL82-Monthly!DL81","v":80},null,null,null,{"$f":"Monthly!DP82-Monthly!DP81","v":204},null,null,null,"--","--","--","--","--","--","--","--","--","--",null,null,null,null,null,null,null,null,null,null,null,null,null,{"$f":"(Monthly!EQ82/Monthly!EQ81)-1","v":0},"--",{"$f":"(Monthly!ES82/Monthly!ES81)-1","v":0},null,null,null,null,null,{"$f":"((Monthly!EY82-Monthly!EY81)*100)","v":0},{"$f":"((Monthly!EZ82-Monthly!EZ81)*100)","v":33.000000000000007},{"$f":"((Monthly!FA82-Monthly!FA81)*100)","v":1.0000000000000675},{"$f":"((Monthly!FB82-Monthly!FB81)*100)","v":0},"--","--",{"$f":"((Monthly!FE82-Monthly!FE81)*100)","v":19.999999999999972},{"$f":"((Monthly!FF82-Monthly!FF81)*100)","v":10.999999999999943},"--",{"$f":"((Monthly!FH82-Monthly!FH81)*100)","v":4.9999999999999822},{"$f":"((Monthly!FI82-Monthly!FI81)*100)","v":2.9999999999999361},null,null,null,null,null,null,"--","--","--","--","--","--","--","--","--",null,null,null,null,null,{"$f":"(Monthly!GD82/Monthly!GD81)-1","v":0},"--","--","--","--","--","--","--","--"]
["1965-01-01",null,null,null,{"$f":"(Monthly!E83/Monthly!E82)-1","v":{"$error":"#DIV/0!"}},{"$f":"(Monthly!F83/Monthly!F82)-1","v":{"$error":"#DIV/0!"}},{"$f":"(Monthly!G83/Monthly!G82)-1","v":{"$error":"#DIV/0!"}},{"$f":"(Monthly!H83/Monthly!H82)-1","v":{"$error":"#DIV/0!"}},null,null,null,null,null,null,null,null,null,null,null,null,null,null,null,"--",{"$f":"(Monthly!Y83/Monthly!Y82)-1","v":1.5302983301941131E-2},null,null,null,null,null,null,null,null,null,null,null,null,null,{"$f":"(Monthly!AM83/Monthly!AM82)-1","v":1.077243315637455E-2},"--","--","--",{"$f":"Monthly!AQ83-Monthly!AQ82","v":-1.3999999999999986},"--","--",{"$f":"Monthly!AT83-Monthly!AT82","v":1.5},"--","--",{"$f":"Monthly!AW83-Monthly!AW82","v":1.8999999999999986},{"$f":"Monthly!AX83-Monthly!AX82","v":-2.1000000000000085},{"$f":"Monthly!AY83-Monthly!AY82","v":1.1000000000000085},{"$f":"Monthly!AZ83-Monthly!AZ82","v":-5.2999999999999972},{"$f":"Monthly!BA83-Monthly!BA82","v":0.70000000000000284},"--","--",null,null,null,null,null,null,null,null,null,"--","--",null,null,null,null,null,{"$f":"(Monthly!BT83/Monthly!BT82)-1","v":1.2281461119253212E-2},null,null,null,{"$f":"(Monthly!BX83/Monthly!BX82)-1","v":-8.2884097035040405E-2},{"$f":"(Monthly!BY83/Monthly!BY82)-1","v":8.5910652920962116E-2},"--","--",{"$f":"Monthly!CB83-Monthly!CB82","v":-0.19928542959631823},{"$f":"Monthly!CC83-Monthly!CC82","v":-0.26928542959631763},"--","--",null,"--","--",null,{"$f":"(Monthly!CJ83/Monthly!CJ82)-1","v":-1.2962962962962954E-2},{"$f":"(Monthly!CK83/Monthly!CK82)-1","v":7.8538812785386991E-3},{"$f":"(Monthly!CL83/Monthly!CL82)-1","v":-2.6143790849673221E-2},{"$f":"(Monthly!CM83/Monthly!CM82)-1","v":-6.3343717549324996E-2},{"$f":"(Monthly!CN83/Monthly!CN82)-1","v":2.4382924450445653E-3},{"$f":"(Monthly!CO83/Monthly!CO82)-1","v":7.227891156462718E-3},{"$f":"(Monthly!CP83/Monthly!CP82)-1","v":1.4227613902344727E-2},{"$f":"(Monthly!CQ83/Monthly!CQ82)-1","v":9.5317526510196871E-4},"--","--","--",null,null,null,null,null,{"$f":"(Monthly!CZ83/Monthly!CZ82)-1","v":9.6000000000007191E-4},{"$f":"(Monthly!DA83/Monthly!DA82)-1","v":3.0769230769231992E-3},null,null,null,null,null,"--","--",{"$f":"((Monthly!DI83-Monthly!DI82)*100)","v":0},"--",{"$f":"((Monthly!DK83-Monthly!DK82)*100)","v":-9.9999999999999645},{"$f":"Monthly!DL83-Monthly!DL82","v":69},null,null,null,{"$f":"Monthly!DP83-Monthly!DP82","v":162},null,null,null,"--","--","--","--","--","--","--","--","--","--",null,null,null,null,null,null,null,null,null,null,null,null,null,{"$f":"(Monthly!EQ83/Monthly!EQ82)-1","v":3.154574132492094E-3},"--",{"$f":"(Monthly!ES83/Monthly!ES82)-1","v":2.9850746268658135E-3},null,null,null,null,null,{"$f":"((Monthly!EY83-Monthly!EY82)*100)","v":0},{"$f":"((Monthly!EZ83-Monthly!EZ82)*100)","v":4.9999999999999822},{"$f":"((Monthly!FA83-Monthly!FA82)*100)","v":-1.0000000000000675},{"$f":"((Monthly!FB83-Monthly!FB82)*100)","v":-0.99999999999997868},"--","--",{"$f":"((Monthly!FE83-Monthly!FE82)*100)","v":-2.9999999999999805},{"$f":"((Monthly!FF83-Monthly!FF82)*100)","v":-7.9999999999999627},"--",{"$f":"((Monthly!FH83-Monthly!FH82)*100)","v":0.99999999999997868},{"$f":"((Monthly!FI83-Monthly!FI82)*100)","v":1.0000000000000675},null,null,null,null,null,null,"--","--","--","--","--","--","--","--","--",null,null,null,null,null,{"$f":"(Monthly!GD83/Monthly!GD82)-1","v":0},"--","--","--","--","--","--","--","--"]
["1965-02-01",null,null,null,{"$f":"(Monthly!E84/Monthly!E83)-1","v":{"$error":"#DIV/0!"}},{"$f":"(Monthly!F84/Monthly!F83)-1","v":{"$error":"#DIV/0!"}},{"$f":"(Monthly!G84/Monthly!G83)-1","v":{"$error":"#DIV/0!"}},{"$f":"(Monthly!H84/Monthly!H83)-1","v":{"$error":"#DIV/0!"}},null,null,null,null,null,null,null,null,null,null,null,null,null,null,null,"--",{"$f":"(Monthly!Y84/Monthly!Y83)-1","v":1.3981870663898333E-2},null,null,null,null,null,null,null,null,null,null,null,null,null,{"$f":"(Monthly!AM84/Monthly!AM83)-1","v":6.2164155515751496E-3},"--","--","--",{"$f":"Monthly!AQ84-Monthly!AQ83","v":1.1000000000000014},"--","--",{"$f":"Monthly!AT84-Monthly!AT83","v":1.5999999999999943},"--","--",{"$f":"Monthly!AW84-Monthly!AW83","v":1.8000000000000043},{"$f":"Monthly!AX84-Monthly!AX83","v":0.90000000000000568},{"$f":"Monthly!AY84-Monthly!AY83","v":-5.9000000000000057},{"$f":"Monthly!AZ84-Monthly!AZ83","v":1.5999999999999943},{"$f":"Monthly!BA84-Monthly!BA83","v":-0.40000000000000568},"--","--",null,null,null,null,null,null,null,null,null,"--","--",null,null,null,null,null,{"$f":"(Monthly!BT84/Monthly!BT83)-1","v":6.8438858868919983E-3},null,null,null,{"$f":"(Monthly!BX84/Monthly!BX83)-1","v":5.2902277736958103E-2},{"$f":"(Monthly!BY84/Monthly!BY83)-1","v":-6.25E-2},"--","--",{"$f":"Monthly!CB84-Monthly!CB83","v":0.29812251805134604},{"$f":"Monthly!CC84-Monthly!CC83","v":0.43812251805134572},"--","--",null,"--","--",null,{"$f":"(Monthly!CJ84/Monthly!CJ83)-1","v":4.8780487804878092E-2},{"$f":"(Monthly!CK84/Monthly!CK83)-1","v":7.2490032620531331E-4},{"$f":"(Monthly!CL84/Monthly!CL83)-1","v":-0.11409395973154368},{"$f":"(Monthly!CM84/Monthly!CM83)-1","v":-5.432372505543237E-2},{"$f":"(Monthly!CN84/Monthly!CN83)-1","v":3.7420948246769115E-5},{"$f":"(Monthly!CO84/Monthly!CO83)-1","v":8.0202617138032117E-3},{"$f":"(Monthly!CP84/Monthly!CP83)-1","v":1.1119191214760793E-2},{"$f":"(Monthly!CQ84/Monthly!CQ83)-1","v":8.7981244468826603E-4},"--","--","--",null,null,null,null,null,{"$f":"(Monthly!CZ84/Monthly!CZ83)-1","v":0},{"$f":"(Monthly!DA84/Monthly!DA83)-1","v":0},null,null,null,null,null,"--","--",{"$f":"((Monthly!DI84-Monthly!DI83)*100)","v":10.000000000000142},"--",{"$f":"((Monthly!DK84-Monthly!DK83)*100)","v":19.999999999999929},{"$f":"Monthly!DL84-Monthly!DL83","v":46},null,null,null,{"$f":"Monthly!DP84-Monthly!DP83","v":217},null,null,null,"--","--","--","--","--","--","--","--","--","--",null,null,null,null,null,null,null,null,null,null,null,null,null,{"$f":"(Monthly!EQ84/Monthly!EQ83)-1","v":3.1446540880502027E-3},"--",{"$f":"(Monthly!ES84/Monthly!ES83)-1","v":2.9761904761904656E-3},null,null,null,null,null,{"$f":"((Monthly!EY84-Monthly!EY83)*100)","v":0},{"$f":"((Monthly!EZ84-Monthly!EZ83)*100)","v":8.0000000000000071},{"$f":"((Monthly!FA84-Monthly!FA83)*100)","v":-1.9999999999999574},{"$f":"((Monthly!FB84-Monthly!FB83)*100)","v":-1.9999999999999574},"--","--",{"$f":"((Monthly!FE84-Monthly!FE83)*100)","v":12.000000000000011},{"$f":"((Monthly!FF84-Monthly!FF83)*100)","v":9.0000000000000302},"--",{"$f":"((Monthly!FH84-Monthly!FH83)*100)","v":5.0000000000000711},{"$f":"((Monthly!FI84-Monthly!FI83)*100)","v":1.9999999999999574},null,null,null,null,null,null,"--","--","--","--","--","--","--","--","--",null,null,null,null,null,{"$f":"(Monthly!GD84/Monthly!GD83)-1","v":0},"--","--","--","--","--","--","--","--"]
["1965-03-01",null,null,null,{"$f":"(Monthly!E85/Monthly!E84)-1","v":{"$error":"#DIV/0!"}},{"$f":"(Monthly!F85/Monthly!F84)-1","v":{"$error":"#DIV/0!"}},{"$f":"(Monthly!G85/Monthly!G84)-1","v":{"$error":"#DIV/0!"}},{"$f":"(Monthly!H85/Monthly!H84)-1","v":{"$error":"#DIV/0!"}},null,null,null,null,null,null,null,null,null,null,null,null,null,null,null,"--",{"$f":"(Monthly!Y85/Monthly!Y84)-1","v":1.7972575009197689E-2},null,null,null,null,null,null,null,null,null,null,null,null,null,{"$f":"(Monthly!AM85/Monthly!AM84)-1","v":1.3238140567983558E-2},"--","--","--",{"$f":"Monthly!AQ85-Monthly!AQ84","v":2.8000000000000043},"--","--",{"$f":"Monthly!AT85-Monthly!AT84","v":2.9000000000000057},"--","--",{"$f":"Monthly!AW85-Monthly!AW84","v":-5.4000000000000057},{"$f":"Monthly!AX85-Monthly!AX84","v":5.5},{"$f":"Monthly!AY85-Monthly!AY84","v":-0.29999999999999716},{"$f":"Monthly!AZ85-Monthly!AZ84","v":5.9000000000000057},{"$f":"Monthly!BA85-Monthly!BA84","v":-2.1999999999999886},"--","--",null,null,null,null,null,null,null,null,null,"--","--",null,null,null,null,null,{"$f":"(Monthly!BT85/Monthly!BT84)-1","v":1.0393487244695354E-2},null,null,null,{"$f":"(Monthly!BX85/Monthly!BX84)-1","v":-6.9783670621074156E-3},{"$f":"(Monthly!BY85/Monthly!BY84)-1","v":2.1940928270042237E-2},"--","--",{"$f":"Monthly!CB85-Monthly!CB84","v":-0.40116065638360254},{"$f":"Monthly!CC85-Monthly!CC84","v":-0.6811606563836019},"--","--",null,"--","--",null,{"$f":"(Monthly!CJ85/Monthly!CJ84)-1","v":-5.3667262969588903E-3},{"$f":"(Monthly!CK85/Monthly!CK84)-1","v":5.7950018109378387E-3},{"$f":"(Monthly!CL85/Monthly!CL84)-1","v":1.8939393939394478E-3},{"$f":"(Monthly!CM85/Monthly!CM84)-1","v":8.9097303634232183E-2},{"$f":"(Monthly!CN85/Monthly!CN84)-1","v":3.0684029336924823E-3},{"$f":"(Monthly!CO85/Monthly!CO84)-1","v":7.9564489112227132E-3},{"$f":"(Monthly!CP85/Monthly!CP84)-1","v":8.6679825755513473E-3},{"$f":"(Monthly!CQ85/Monthly!CQ84)-1","v":7.6011024183908482E-4},"--","--","--",null,null,null,null,null,{"$f":"(Monthly!CZ85/Monthly!CZ84)-1","v":9.5907928388738739E-4},{"$f":"(Monthly!DA85/Monthly!DA84)-1","v":0},null,null,null,null,null,"--","--",{"$f":"((Monthly!DI85-Monthly!DI84)*100)","v":0},"--",{"$f":"((Monthly!DK85-Monthly!DK84)*100)","v":-39.999999999999943},{"$f":"Monthly!DL85-Monthly!DL84","v":62},null,null,null,{"$f":"Monthly!DP85-Monthly!DP84","v":203},null,null,null,"--","--","--","--","--","--","--","--","--","--",null,null,null,null,null,null,null,null,null,null,null,null,null,{"$f":"(Monthly!EQ85/Monthly!EQ84)-1","v":0},"--",{"$f":"(Monthly!ES85/Monthly!ES84)-1","v":0},null,null,null,null,null,{"$f":"((Monthly!EY85-Monthly!EY84)*100)","v":0},{"$f":"((Monthly!EZ85-Monthly!EZ84)*100)","v":6.0000000000000053},{"$f":"((Monthly!FA85-Monthly!FA84)*100)","v":0.99999999999997868},{"$f":"((Monthly!FB85-Monthly!FB84)*100)","v":0},"--","--",{"$f":"((Monthly!FE85-Monthly!FE84)*100)","v":0},{"$f":"((Monthly!FF85-Monthly!FF84)*100)","v":2.9999999999999361},"--",{"$f":"((Monthly!FH85-Monthly!FH84)*100)","v":0},{"$f":"((Monthly!FI85-Monthly!FI84)*100)","v":0},null,null,null,null,null,null,"--","--","--","--","--","--","--","--","--",null,null,null,null,null,{"$f":"(Monthly!GD85/Monthly!GD84)-1","v":0},"--","--","--","--","--","--","--","--"]
["1965-04-01",null,null,null,{"$f":"(Monthly!E86/Monthly!E85)-1","v":{"$error":"#DIV/0!"}},{"$f":"(Monthly!F86/Monthly!F85)-1","v":{"$error":"#DIV/0!"}},{"$f":"(Monthly!G86/Monthly!G85)-1","v":{"$error":"#DIV/0!"}},{"$f":"(Monthly!H86/Monthly!H85)-1","v":{"$error":"#DIV/0!"}},null,null,null,null,null,null,null,null,null,null,null,null,null,null,null,"--",{"$f":"(Monthly!Y86/Monthly!Y85)-1","v":1.6095138260868058E-2},null,null,null,null,null,null,null,null,null,null,null,null,null,{"$f":"(Monthly!AM86/Monthly!AM85)-1","v":4.3561044964017803E-3},"--","--","--",{"$f":"Monthly!AQ86-Monthly!AQ85","v":-2.9000000000000057},"--","--",{"$f":"Monthly!AT86-Monthly!AT85","v":-2},"--","--",{"$f":"Monthly!AW86-Monthly!AW85","v":4.1000000000000014},{"$f":"Monthly!AX86-Monthly!AX85","v":-8.9000000000000057},{"$f":"Monthly!AY86-Monthly!AY85","v":4.2000000000000028},{"$f":"Monthly!AZ86-Monthly!AZ85","v":-3.1000000000000014},{"$f":"Monthly!BA86-Monthly!BA85","v":3.5},"--","--",null,null,null,null,null,null,null,null,null,"--","--",null,null,null,null,null,{"$f":"(Monthly!BT86/Monthly!BT85)-1","v":1.3486841296722618E-2},null,null,null,{"$f":"(Monthly!BX86/Monthly!BX85)-1","v":1.054111033028815E-2},{"$f":"(Monthly!BY86/Monthly!BY85)-1","v":-4.0462427745664775E-2},"--","--",{"$f":"Monthly!CB86-Monthly!CB85","v":0.29347468078818562},{"$f":"Monthly!CC86-Monthly!CC85","v":0.36347468078818501},"--","--",null,"--","--",null,{"$f":"(Monthly!CJ86/Monthly!CJ85)-1","v":-1.7985611510791255E-3},{"$f":"(Monthly!CK86/Monthly!CK85)-1","v":6.3017644940583928E-3},{"$f":"(Monthly!CL86/Monthly!CL85)-1","v":-4.5368620037807172E-2},{"$f":"(Monthly!CM86/Monthly!CM85)-1","v":2.2604951560817987E-2},{"$f":"(Monthly!CN86/Monthly!CN85)-1","v":1.6414235618891215E-3},{"$f":"(Monthly!CO86/Monthly!CO85)-1","v":5.8163689239718597E-3},{"$f":"(Monthly!CP86/Monthly!CP85)-1","v":1.2723230101185257E-2},{"$f":"(Monthly!CQ86/Monthly!CQ85)-1","v":8.7320450552863527E-4},"--","--","--",null,null,null,null,null,{"$f":"(Monthly!CZ86/Monthly!CZ85)-1","v":2.235707441711865E-3},{"$f":"(Monthly!DA86/Monthly!DA85)-1","v":3.0674846625766694E-3},null,null,null,null,null,"--","--",{"$f":"((Monthly!DI86-Monthly!DI85)*100)","v":9.9999999999994316},"--",{"$f":"((Monthly!DK86-Monthly!DK85)*100)","v":9.9999999999999645},{"$f":"Monthly!DL86-Monthly!DL85","v":65},null,null,null,{"$f":"Monthly!DP86-Monthly!DP85","v":256},null,null,null,"--","--","--","--","--","--","--","--","--","--",null,null,null,null,null,null,null,null,null,null,null,null,null,{"$f":"(Monthly!EQ86/Monthly!EQ85)-1","v":3.1347962382446415E-3},"--",{"$f":"(Monthly!ES86/Monthly!ES85)-1","v":2.9673590504448732E-3},null,null,null,null,null,{"$f":"((Monthly!EY86-Monthly!EY85)*100)","v":0},{"$f":"((Monthly!EZ86-Monthly!EZ85)*100)","v":4.9999999999999822},{"$f":"((Monthly!FA86-Monthly!FA85)*100)","v":0.99999999999997868},{"$f":"((Monthly!FB86-Monthly!FB85)*100)","v":1.9999999999999574},"--","--",{"$f":"((Monthly!FE86-Monthly!FE85)*100)","v":0},{"$f":"((Monthly!FF86-Monthly!FF85)*100)","v":-1.9999999999999574},"--",{"$f":"((Monthly!FH86-Monthly!FH85)*100)","v":0},{"$f":"((Monthly!FI86-Monthly!FI85)*100)","v":-0.99999999999997868},null,null,null,null,null,null,"--","--","--","--","--","--","--","--","--",null,null,null,null,null,{"$f":"(Monthly!GD86/Monthly!GD85)-1","v":0},"--","--","--","--","--","--","--","--"]
["1965-05-01",null,null,null,{"$f":"(Monthly!E87/Monthly!E86)-1","v":{"$error":"#DIV/0!"}},{"$f":"(Monthly!F87/Monthly!F86)-1","v":{"$error":"#DIV/0!"}},{"$f":"(Monthly!G87/Monthly!G86)-1","v":{"$error":"#DIV/0!"}},{"$f":"(Monthly!H87/Monthly!H86)-1","v":{"$error":"#DIV/0!"}},null,null,null,null,null,null,null,null,null,null,null,null,null,null,null,"--",{"$f":"(Monthly!Y87/Monthly!Y86)-1","v":1.2745219536768548E-2},null,null,null,null,null,null,null,null,null,null,null,null,null,{"$f":"(Monthly!AM87/Monthly!AM86)-1","v":7.8044856304544385E-3},"--","--","--",{"$f":"Monthly!AQ87-Monthly!AQ86","v":-0.70000000000000284},"--","--",{"$f":"Monthly!AT87-Monthly!AT86","v":-2.8000000000000043},"--","--",{"$f":"Monthly!AW87-Monthly!AW86","v":-1.2999999999999972},{"$f":"Monthly!AX87-Monthly!AX86","v":0.40000000000000568},{"$f":"Monthly!AY87-Monthly!AY86","v":1.2999999999999972},{"$f":"Monthly!AZ87-Monthly!AZ86","v":-0.20000000000000284},{"$f":"Monthly!BA87-Monthly!BA86","v":-0.5},"--","--",null,null,null,null,null,null,null,null,null,"--","--",null,null,null,null,null,{"$f":"(Monthly!BT87/Monthly!BT86)-1","v":1.2914475854174601E-2},null,null,null,{"$f":"(Monthly!BX87/Monthly!BX86)-1","v":2.781641168289295E-2},{"$f":"(Monthly!BY87/Monthly!BY86)-1","v":3.8726333907056709E-2},"--","--",{"$f":"Monthly!CB87-Monthly!CB86","v":2.4606838952845322E-2},{"$f":"Monthly!CC87-Monthly!CC86","v":-0.11539316104715525},"--","--",null,"--","--",null,{"$f":"(Monthly!CJ87/Monthly!CJ86)-1","v":-1.9819819819819839E-2},{"$f":"(Monthly!CK87/Monthly!CK86)-1","v":7.5147611379495771E-3},{"$f":"(Monthly!CL87/Monthly!CL86)-1","v":0.11485148514851473},{"$f":"(Monthly!CM87/Monthly!CM86)-1","v":-1.0526315789474161E-3},{"$f":"(Monthly!CN87/Monthly!CN86)-1","v":1.0726256983240257E-2},{"$f":"(Monthly!CO87/Monthly!CO86)-1","v":6.6088393225940401E-3},{"$f":"(Monthly!CP87/Monthly!CP86)-1","v":9.3117624717649061E-3},{"$f":"(Monthly!CQ87/Monthly!CQ86)-1","v":9.240665121392766E-4},"--","--","--",null,null,null,null,null,{"$f":"(Monthly!CZ87/Monthly!CZ86)-1","v":3.1867431485022024E-3},{"$f":"(Monthly!DA87/Monthly!DA86)-1","v":0},null,null,null,null,null,"--","--",{"$f":"((Monthly!DI87-Monthly!DI86)*100)","v":20.000000000000284},"--",{"$f":"((Monthly!DK87-Monthly!DK86)*100)","v":-20.000000000000018},{"$f":"Monthly!DL87-Monthly!DL86","v":59},null,null,null,{"$f":"Monthly!DP87-Monthly!DP86","v":233},null,null,null,"--","--","--","--","--","--","--","--","--","--",null,null,null,null,null,null,null,null,null,null,null,null,null,{"$f":"(Monthly!EQ87/Monthly!EQ86)-1","v":3.1250000000000444E-3},"--",{"$f":"(Monthly!ES87/Monthly!ES86)-1","v":0},null,null,null,null,null,{"$f":"((Monthly!EY87-Monthly!EY86)*100)","v":0},{"$f":"((Monthly!EZ87-Monthly!EZ86)*100)","v":0.99999999999997868},{"$f":"((Monthly!FA87-Monthly!FA86)*100)","v":1.0000000000000675},{"$f":"((Monthly!FB87-Monthly!FB86)*100)","v":0.99999999999997868},"--","--",{"$f":"((Monthly!FE87-Monthly!FE86)*100)","v":-4.0000000000000036},{"$f":"((Monthly!FF87-Monthly!FF86)*100)","v":-0.99999999999997868},"--",{"$f":"((Monthly!FH87-Monthly!FH86)*100)","v":0},{"$f":"((Monthly!FI87-Monthly!FI86)*100)","v":0.99999999999997868},null,null,null,null,null,null,"--","--","--","--","--","--","--","--","--",null,null,null,null,null,{"$f":"(Monthly!GD87/Monthly!GD86)-1","v":0},"--","--","--","--","--","--","--","--"]
["1965-06-01",null,null,null,{"$f":"(Monthly!E88/Monthly!E87)-1","v":{"$error":"#DIV/0!"}},{"$f":"(Monthly!F88/Monthly!F87)-1","v":{"$error":"#DIV/0!"}},{"$f":"(Monthly!G88/Monthly!G87)-1","v":{"$error":"#DIV/0!"}},{"$f":"(Monthly!H88/Monthly!H87)-1","v":{"$error":"#DIV/0!"}},null,null,null,null,null,null,null,null,null,null,null,null,null,null,null,"--",{"$f":"(Monthly!Y88/Monthly!Y87)-1","v":1.9485101311084607E-2},null,null,null,null,null,null,null,null,null,null,null,null,null,{"$f":"(Monthly!AM88/Monthly!AM87)-1","v":7.7471412306322485E-3},"--","--","--",{"$f":"Monthly!AQ88-Monthly!AQ87","v":-2.5999999999999943},"--","--",{"$f":"Monthly!AT88-Monthly!AT87","v":-1},"--","--",{"$f":"Monthly!AW88-Monthly!AW87","v":-4.8000000000000043},{"$f":"Monthly!AX88-Monthly!AX87","v":-2.8000000000000043},{"$f":"Monthly!AY88-Monthly!AY87","v":3.2000000000000028},{"$f":"Monthly!AZ88-Monthly!AZ87","v":-4.8999999999999986},{"$f":"Monthly!BA88-Monthly!BA87","v":0.39999999999999147},"--","--",null,null,null,null,null,null,null,null,null,"--","--",null,null,null,null,null,{"$f":"(Monthly!BT88/Monthly!BT87)-1","v":1.1186319743902162E-2},null,null,null,{"$f":"(Monthly!BX88/Monthly!BX87)-1","v":6.7658998646820123E-3},{"$f":"(Monthly!BY88/Monthly!BY87)-1","v":2.8169014084507005E-2},"--","--",{"$f":"Monthly!CB88-Monthly!CB87","v":0.32091524236022018},{"$f":"Monthly!CC88-Monthly!CC87","v":0.32091524236022195},"--","--",null,"--","--",null,{"$f":"(Monthly!CJ88/Monthly!CJ87)-1","v":0.12867647058823528},{"$f":"(Monthly!CK88/Monthly!CK87)-1","v":5.5052388563310295E-3},{"$f":"(Monthly!CL88/Monthly!CL87)-1","v":7.815275310834835E-2},{"$f":"(Monthly!CM88/Monthly!CM87)-1","v":-2.1074815595363283E-3},{"$f":"(Monthly!CN88/Monthly!CN87)-1","v":1.2528557741910973E-3},{"$f":"(Monthly!CO88/Monthly!CO87)-1","v":8.2068116536726521E-3},{"$f":"(Monthly!CP88/Monthly!CP87)-1","v":1.0388850195684807E-2},{"$f":"(Monthly!CQ88/Monthly!CQ87)-1","v":1.0263657369202761E-3},"--","--","--",null,null,null,null,null,{"$f":"(Monthly!CZ88/Monthly!CZ87)-1","v":4.1296060991105055E-3},{"$f":"(Monthly!DA88/Monthly!DA87)-1","v":0},null,null,null,null,null,"--","--",{"$f":"((Monthly!DI88-Monthly!DI87)*100)","v":-20.000000000000284},"--",{"$f":"((Monthly!DK88-Monthly!DK87)*100)","v":0},{"$f":"Monthly!DL88-Monthly!DL87","v":77},null,null,null,{"$f":"Monthly!DP88-Monthly!DP87","v":198},null,null,null,"--","--","--","--","--","--","--","--","--","--",null,null,null,null,null,null,null,null,null,null,null,null,null,{"$f":"(Monthly!EQ88/Monthly!EQ87)-1","v":9.3457943925232545E-3},"--",{"$f":"(Monthly!ES88/Monthly!ES87)-1","v":0},null,null,null,null,null,{"$f":"((Monthly!EY88-Monthly!EY87)*100)","v":0},{"$f":"((Monthly!EZ88-Monthly!EZ87)*100)","v":-5.9999999999999609},{"$f":"((Monthly!FA88-Monthly!FA87)*100)","v":1.9999999999999574},{"$f":"((Monthly!FB88-Monthly!FB87)*100)","v":4.0000000000000036},"--","--",{"$f":"((Monthly!FE88-Monthly!FE87)*100)","v":-9.0000000000000302},{"$f":"((Monthly!FF88-Monthly!FF87)*100)","v":-4.0000000000000036},"--",{"$f":"((Monthly!FH88-Monthly!FH87)*100)","v":0},{"$f":"((Monthly!FI88-Monthly!FI87)*100)","v":0},null,null,null,null,null,null,"--","--","--","--","--","--","--","--","--",null,null,null,null,null,{"$f":"(Monthly!GD88/Monthly!GD87)-1","v":0},"--","--","--","--","--","--","--","--"]
["1965-07-01",null,null,null,{"$f":"(Monthly!E89/Monthly!E88)-1","v":{"$error":"#DIV/0!"}},{"$f":"(Monthly!F89/Monthly!F88)-1","v":{"$error":"#DIV/0!"}},{"$f":"(Monthly!G89/Monthly!G88)-1","v":{"$error":"#DIV/0!"}},{"$f":"(Monthly!H89/Monthly!H88)-1","v":{"$error":"#DIV/0!"}},null,null,null,null,null,null,null,null,null,null,null,null,null,null,null,"--",{"$f":"(Monthly!Y89/Monthly!Y88)-1","v":1.1524354219958788E-2},null,null,null,null,null,null,null,null,null,null,null,null,null,{"$f":"(Monthly!AM89/Monthly!AM88)-1","v":9.3915019034751523E-3},"--","--","--",{"$f":"Monthly!AQ89-Monthly!AQ88","v":-0.60000000000000142},"--","--",{"$f":"Monthly!AT89-Monthly!AT88","v":0.80000000000000426},"--","--",{"$f":"Monthly!AW89-Monthly!AW88","v":-2},{"$f":"Monthly!AX89-Monthly!AX88","v":-0.79999999999999716},{"$f":"Monthly!AY89-Monthly!AY88","v":-1.4000000000000057},{"$f":"Monthly!AZ89-Monthly!AZ88","v":1.5},{"$f":"Monthly!BA89-Monthly!BA88","v":-4.2000000000000028},"--","--",null,null,null,null,null,null,null,null,null,"--","--",null,null,null,null,null,{"$f":"(Monthly!BT89/Monthly!BT88)-1","v":1.4988456757236701E-2},null,null,null,{"$f":"(Monthly!BX89/Monthly!BX88)-1","v":2.7553763440860246E-2},{"$f":"(Monthly!BY89/Monthly!BY88)-1","v":-3.2232070910556132E-3},"--","--",{"$f":"Monthly!CB89-Monthly!CB88","v":-0.32957281100021074},{"$f":"Monthly!CC89-Monthly!CC88","v":-0.4695728110002122},"--","--",null,"--","--",null,{"$f":"(Monthly!CJ89/Monthly!CJ88)-1","v":-9.7719869706840434E-2},{"$f":"(Monthly!CK89/Monthly!CK88)-1","v":7.4178735429175635E-3},{"$f":"(Monthly!CL89/Monthly!CL88)-1","v":-4.9423393739703725E-3},{"$f":"(Monthly!CM89/Monthly!CM88)-1","v":9.0813093980992576E-2},{"$f":"(Monthly!CN89/Monthly!CN88)-1","v":1.0304725452671804E-2},{"$f":"(Monthly!CO89/Monthly!CO88)-1","v":5.6980056980058258E-3},{"$f":"(Monthly!CP89/Monthly!CP88)-1","v":9.4141245626433445E-3},{"$f":"(Monthly!CQ89/Monthly!CQ88)-1","v":1.1129029765002407E-3},"--","--","--",null,null,null,null,null,{"$f":"(Monthly!CZ89/Monthly!CZ88)-1","v":-9.4906675102823801E-4},{"$f":"(Monthly!DA89/Monthly!DA88)-1","v":0},null,null,null,null,null,"--","--",{"$f":"((Monthly!DI89-Monthly!DI88)*100)","v":30.000000000000426},"--",{"$f":"((Monthly!DK89-Monthly!DK88)*100)","v":-19.999999999999929},{"$f":"Monthly!DL89-Monthly!DL88","v":115},null,null,null,{"$f":"Monthly!DP89-Monthly!DP88","v":273},null,null,null,"--","--","--","--","--","--","--","--","--","--",null,null,null,null,null,null,null,null,null,null,null,null,null,{"$f":"(Monthly!EQ89/Monthly!EQ88)-1","v":0},"--",{"$f":"(Monthly!ES89/Monthly!ES88)-1","v":0},null,null,null,null,null,{"$f":"((Monthly!EY89-Monthly!EY88)*100)","v":0},{"$f":"((Monthly!EZ89-Monthly!EZ88)*100)","v":4.9999999999999822},{"$f":"((Monthly!FA89-Monthly!FA88)*100)","v":2.0000000000000462},{"$f":"((Monthly!FB89-Monthly!FB88)*100)","v":3.0000000000000249},"--","--",{"$f":"((Monthly!FE89-Monthly!FE88)*100)","v":4.0000000000000036},{"$f":"((Monthly!FF89-Monthly!FF88)*100)","v":-1.0000000000000231},"--",{"$f":"((Monthly!FH89-Monthly!FH88)*100)","v":0},{"$f":"((Monthly!FI89-Monthly!FI88)*100)","v":-0.99999999999997868},null,null,null,null,null,null,"--","--","--","--","--","--","--","--","--",null,null,null,null,null,{"$f":"(Monthly!GD89/Monthly!GD88)-1","v":0},"--","--","--","--","--","--","--","--"]
["1965-08-01",null,null,null,{"$f":"(Monthly!E90/Monthly!E89)-1","v":{"$error":"#DIV/0!"}},{"$f":"(Monthly!F90/Monthly!F89)-1","v":{"$error":"#DIV/0!"}},{"$f":"(Monthly!G90/Monthly!G89)-1","v":{"$error":"#DIV/0!"}},{"$f":"(Monthly!H90/Monthly!H89)-1","v":{"$error":"#DIV/0!"}},null,null,null,null,null,null,null,null,null,null,null,null,null,null,null,"--",{"$f":"(Monthly!Y90/Monthly!Y89)-1","v":9.0737612959699288E-3},null,null,null,null,null,null,null,null,null,null,null,null,null,{"$f":"(Monthly!AM90/Monthly!AM89)-1","v":4.230805495484935E-3},"--","--","--",{"$f":"Monthly!AQ90-Monthly!AQ89","v":0},"--","--",{"$f":"Monthly!AT90-Monthly!AT89","v":1.7999999999999972},"--","--",{"$f":"Monthly!AW90-Monthly!AW89","v":3.4000000000000057},{"$f":"Monthly!AX90-Monthly!AX89","v":-0.60000000000000142},{"$f":"Monthly!AY90-Monthly!AY89","v":-1.2999999999999972},{"$f":"Monthly!AZ90-Monthly!AZ89","v":-2.3999999999999986},{"$f":"Monthly!BA90-Monthly!BA89","v":0.30000000000001137},"--","--",null,null,null,null,null,null,null,null,null,"--","--",null,null,null,null,null,{"$f":"(Monthly!BT90/Monthly!BT89)-1","v":1.4207229590230019E-2},null,null,null,{"$f":"(Monthly!BX90/Monthly!BX89)-1","v":-6.344015696533678E-2},{"$f":"(Monthly!BY90/Monthly!BY89)-1","v":9.7008892481811326E-3},"--","--",{"$f":"Monthly!CB90-Monthly!CB89","v":-0.19498095353782663},{"$f":"Monthly!CC90-Monthly!CC89","v":-0.19498095353782574},"--","--",null,"--","--",null,{"$f":"(Monthly!CJ90/Monthly!CJ89)-1","v":0.11010830324909748},{"$f":"(Monthly!CK90/Monthly!CK89)-1","v":4.3828892005610687E-3},{"$f":"(Monthly!CL90/Monthly!CL89)-1","v":-1.3245033112582738E-2},{"$f":"(Monthly!CM90/Monthly!CM89)-1","v":-7.2604065827686304E-2},{"$f":"(Monthly!CN90/Monthly!CN89)-1","v":4.954101704794045E-3},{"$f":"(Monthly!CO90/Monthly!CO89)-1","v":6.8798057466612494E-3},{"$f":"(Monthly!CP90/Monthly!CP89)-1","v":6.3919581075919663E-3},{"$f":"(Monthly!CQ90/Monthly!CQ89)-1","v":1.1579852086689435E-3},"--","--","--",null,null,null,null,null,{"$f":"(Monthly!CZ90/Monthly!CZ89)-1","v":-9.4996833438876216E-4},{"$f":"(Monthly!DA90/Monthly!DA89)-1","v":0},null,null,null,null,null,"--","--",{"$f":"((Monthly!DI90-Monthly!DI89)*100)","v":-20.000000000000284},"--",{"$f":"((Monthly!DK90-Monthly!DK89)*100)","v":0},{"$f":"Monthly!DL90-Monthly!DL89","v":63},null,null,null,{"$f":"Monthly!DP90-Monthly!DP89","v":265},null,null,null,"--","--","--","--","--","--","--","--","--","--",null,null,null,null,null,null,null,null,null,null,null,null,null,{"$f":"(Monthly!EQ90/Monthly!EQ89)-1","v":0},"--",{"$f":"(Monthly!ES90/Monthly!ES89)-1","v":0},null,null,null,null,null,{"$f":"((Monthly!EY90-Monthly!EY89)*100)","v":0},{"$f":"((Monthly!EZ90-Monthly!EZ89)*100)","v":3.0000000000000249},{"$f":"((Monthly!FA90-Monthly!FA89)*100)","v":0.99999999999997868},{"$f":"((Monthly!FB90-Monthly!FB89)*100)","v":0},"--","--",{"$f":"((Monthly!FE90-Monthly!FE89)*100)","v":0},{"$f":"((Monthly!FF90-Monthly!FF89)*100)","v":9.0000000000000302},"--",{"$f":"((Monthly!FH90-Monthly!FH89)*100)","v":4.9999999999999822},{"$f":"((Monthly!FI90-Monthly!FI89)*100)","v":4.9999999999999822},null,null,null,null,null,null,"--","--","--","--","--","--","--","--","--",null,null,null,null,null,{"$f":"(Monthly!GD90/Monthly!GD89)-1","v":0},"--","--","--","--","--","--","--","--"]
["1965-09-01",null,null,null,{"$f":"(Monthly!E91/Monthly!E90)-1","v":{"$error":"#DIV/0!"}},{"$f":"(Monthly!F91/Monthly!F90)-1","v":{"$error":"#DIV/0!"}},{"$f":"(Monthly!G91/Monthly!G90)-1","v":{"$error":"#DIV/0!"}},{"$f":"(Monthly!H91/Monthly!H90)-1","v":{"$error":"#DIV/0!"}},null,null,null,null,null,null,null,null,null,null,null,null,null,null,null,"--",{"$f":"(Monthly!Y91/Monthly!Y90)-1","v":1.3883798213783827E-2},null,null,null,null,null,null,null,null,null,null,null,null,null,{"$f":"(Monthly!AM91/Monthly!AM90)-1","v":2.529000212011745E-3},"--","--","--",{"$f":"Monthly!AQ91-Monthly!AQ90","v":2.8999999999999986},"--","--",{"$f":"Monthly!AT91-Monthly!AT90","v":-1.7999999999999972},"--","--",{"$f":"Monthly!AW91-Monthly!AW90","v":-1.5},{"$f":"Monthly!AX91-Monthly!AX90","v":7.6000000000000014},{"$f":"Monthly!AY91-Monthly!AY90","v":-4.2000000000000028},{"$f":"Monthly!AZ91-Monthly!AZ90","v":7.1999999999999957},{"$f":"Monthly!BA91-Monthly!BA90","v":-4.2000000000000028},"--","--",null,null,null,null,null,null,null,null,null,"--","--",null,null,null,null,null,{"$f":"(Monthly!BT91/Monthly!BT90)-1","v":9.4469171583342337E-3},null,null,null,{"$f":"(Monthly!BX91/Monthly!BX90)-1","v":3.4916201117318524E-2},{"$f":"(Monthly!BY91/Monthly!BY90)-1","v":-1.7614091273018384E-2},"--","--",{"$f":"Monthly!CB91-Monthly!CB90","v":2.7145779319692309E-2},{"$f":"Monthly!CC91-Monthly!CC90","v":-4.2854220680307975E-2},"--","--",null,"--","--",null,{"$f":"(Monthly!CJ91/Monthly!CJ90)-1","v":-4.5528455284552849E-2},{"$f":"(Monthly!CK91/Monthly!CK90)-1","v":2.6182579856868671E-2},{"$f":"(Monthly!CL91/Monthly!CL90)-1","v":0.11241610738255026},{"$f":"(Monthly!CM91/Monthly!CM90)-1","v":4.1753653444676075E-3},{"$f":"(Monthly!CN91/Monthly!CN90)-1","v":2.7439466434681758E-2},{"$f":"(Monthly!CO91/Monthly!CO90)-1","v":8.0385852090032461E-3},{"$f":"(Monthly!CP91/Monthly!CP90)-1","v":8.9980286663429165E-3},{"$f":"(Monthly!CQ91/Monthly!CQ90)-1","v":1.1977710149695397E-3},"--","--","--",null,null,null,null,null,{"$f":"(Monthly!CZ91/Monthly!CZ90)-1","v":2.2187004754359307E-3},{"$f":"(Monthly!DA91/Monthly!DA90)-1","v":3.0581039755350758E-3},null,null,null,null,null,"--","--",{"$f":"((Monthly!DI91-Monthly!DI90)*100)","v":-19.999999999999574},"--",{"$f":"((Monthly!DK91-Monthly!DK90)*100)","v":-10.000000000000053},{"$f":"Monthly!DL91-Monthly!DL90","v":70},null,null,null,{"$f":"Monthly!DP91-Monthly!DP90","v":262},null,null,null,"--","--","--","--","--","--","--","--","--","--",null,null,null,null,null,null,null,null,null,null,null,null,null,{"$f":"(Monthly!EQ91/Monthly!EQ90)-1","v":0},"--",{"$f":"(Monthly!ES91/Monthly!ES90)-1","v":2.9585798816569309E-3},null,null,null,null,null,{"$f":"((Monthly!EY91-Monthly!EY90)*100)","v":0},{"$f":"((Monthly!EZ91-Monthly!EZ90)*100)","v":-11.000000000000032},{"$f":"((Monthly!FA91-Monthly!FA90)*100)","v":2.9999999999999361},{"$f":"((Monthly!FB91-Monthly!FB90)*100)","v":3.0000000000000249},"--","--",{"$f":"((Monthly!FE91-Monthly!FE90)*100)","v":8.0000000000000071},{"$f":"((Monthly!FF91-Monthly!FF90)*100)","v":12.999999999999989},"--",{"$f":"((Monthly!FH91-Monthly!FH90)*100)","v":4.9999999999999822},{"$f":"((Monthly!FI91-Monthly!FI90)*100)","v":4.0000000000000036},null,null,null,null,null,null,"--","--","--","--","--","--","--","--","--",null,null,null,null,null,{"$f":"(Monthly!GD91/Monthly!GD90)-1","v":0},"--","--","--","--","--","--","--","--"]
["1965-10-01",null,null,null,{"$f":"(Monthly!E92/Monthly!E91)-1","v":{"$error":"#DIV/0!"}},{"$f":"(Monthly!F92/Monthly!F91)-1","v":{"$error":"#DIV/0!"}},{"$f":"(Monthly!G92/Monthly!G91)-1","v":{"$error":"#DIV/0!"}},{"$f":"(Monthly!H92/Monthly!H91)-1","v":{"$error":"#DIV/0!"}},null,null,null,null,null,null,null,null,null,null,null,null,null,null,null,"--",{"$f":"(Monthly!Y92/Monthly!Y91)-1","v":9.9671176999560629E-3},null,null,null,null,null,null,null,null,null,null,null,null,null,{"$f":"(Monthly!AM92/Monthly!AM91)-1","v":1.008443981208762E-2},"--","--","--",{"$f":"Monthly!AQ92-Monthly!AQ91","v":-2.3999999999999986},"--","--",{"$f":"Monthly!AT92-Monthly!AT91","v":0.69999999999999574},"--","--",{"$f":"Monthly!AW92-Monthly!AW91","v":-9.2000000000000028},{"$f":"Monthly!AX92-Monthly!AX91","v":-1.6000000000000014},{"$f":"Monthly!AY92-Monthly!AY91","v":2.2999999999999972},{"$f":"Monthly!AZ92-Monthly!AZ91","v":-3.2999999999999972},{"$f":"Monthly!BA92-Monthly!BA91","v":-2.1000000000000014},"--","--",null,null,null,null,null,null,null,null,null,"--","--",null,null,null,null,null,{"$f":"(Monthly!BT92/Monthly!BT91)-1","v":1.1313609143857262E-2},null,null,null,{"$f":"(Monthly!BX92/Monthly!BX91)-1","v":-2.0242914979757054E-2},{"$f":"(Monthly!BY92/Monthly!BY91)-1","v":4.2379788101059468E-2},"--","--",{"$f":"Monthly!CB92-Monthly!CB91","v":-0.13436690454687827},{"$f":"Monthly!CC92-Monthly!CC91","v":-0.20436690454687856},"--","--",null,"--","--",null,{"$f":"(Monthly!CJ92/Monthly!CJ91)-1","v":-5.4514480408858645E-2},{"$f":"(Monthly!CK92/Monthly!CK91)-1","v":-4.9328117026704588E-3},{"$f":"(Monthly!CL92/Monthly!CL91)-1","v":-0.14177978883861231},{"$f":"(Monthly!CM92/Monthly!CM91)-1","v":-8.3160083160083165E-3},{"$f":"(Monthly!CN92/Monthly!CN91)-1","v":-5.8916916563767074E-3},{"$f":"(Monthly!CO92/Monthly!CO91)-1","v":5.9808612440190867E-3},{"$f":"(Monthly!CP92/Monthly!CP91)-1","v":7.2030724609968289E-3},{"$f":"(Monthly!CQ92/Monthly!CQ91)-1","v":1.2117415704375745E-3},"--","--","--",null,null,null,null,null,{"$f":"(Monthly!CZ92/Monthly!CZ91)-1","v":9.4876660341558505E-4},{"$f":"(Monthly!DA92/Monthly!DA91)-1","v":0},null,null,null,null,null,"--","--",{"$f":"((Monthly!DI92-Monthly!DI91)*100)","v":19.999999999999574},"--",{"$f":"((Monthly!DK92-Monthly!DK91)*100)","v":-9.9999999999999645},{"$f":"Monthly!DL92-Monthly!DL91","v":62},null,null,null,{"$f":"Monthly!DP92-Monthly!DP91","v":228},null,null,null,"--","--","--","--","--","--","--","--","--","--",null,null,null,null,null,null,null,null,null,null,null,null,null,{"$f":"(Monthly!EQ92/Monthly!EQ91)-1","v":3.0864197530864335E-3},"--",{"$f":"(Monthly!ES92/Monthly!ES91)-1","v":0},null,null,null,null,null,{"$f":"((Monthly!EY92-Monthly!EY91)*100)","v":0},{"$f":"((Monthly!EZ92-Monthly!EZ91)*100)","v":7.0000000000000284},{"$f":"((Monthly!FA92-Monthly!FA91)*100)","v":4.0000000000000036},{"$f":"((Monthly!FB92-Monthly!FB91)*100)","v":1.9999999999999574},"--","--",{"$f":"((Monthly!FE92-Monthly!FE91)*100)","v":11.000000000000032},{"$f":"((Monthly!FF92-Monthly!FF91)*100)","v":9.9999999999999645},"--",{"$f":"((Monthly!FH92-Monthly!FH91)*100)","v":8.9999999999999858},{"$f":"((Monthly!FI92-Monthly!FI91)*100)","v":5.9999999999999609},null,null,null,null,null,null,"--","--","--","--","--","--","--","--","--",null,null,null,null,null,{"$f":"(Monthly!GD92/Monthly!GD91)-1","v":0},"--","--","--","--","--","--","--","--"]
["1965-11-01",null,null,null,{"$f":"(Monthly!E93/Monthly!E92)-1","v":{"$error":"#DIV/0!"}},{"$f":"(Monthly!F93/Monthly!F92)-1","v":{"$error":"#DIV/0!"}},{"$f":"(Monthly!G93/Monthly!G92)-1","v":{"$error":"#DIV/0!"}},{"$f":"(Monthly!H93/Monthly!H92)-1","v":{"$error":"#DIV/0!"}},null,null,null,null,null,null,null,null,null,null,null,null,null,null,null,"--",{"$f":"(Monthly!Y93/Monthly!Y92)-1","v":1.0499627143922607E-2},null,null,null,null,null,null,null,null,null,null,null,null,null,{"$f":"(Monthly!AM93/Monthly!AM92)-1","v":4.1574072135501794E-3},"--","--","--",{"$f":"Monthly!AQ93-Monthly!AQ92","v":0.79999999999999716},"--","--",{"$f":"Monthly!AT93-Monthly!AT92","v":-2.1999999999999957},"--","--",{"$f":"Monthly!AW93-Monthly!AW92","v":2.2000000000000028},{"$f":"Monthly!AX93-Monthly!AX92","v":-0.10000000000000142},{"$f":"Monthly!AY93-Monthly!AY92","v":2},{"$f":"Monthly!AZ93-Monthly!AZ92","v":0.39999999999999858},{"$f":"Monthly!BA93-Monthly!BA92","v":5.9999999999999929},"--","--",null,null,null,null,null,null,null,null,null,"--","--",null,null,null,null,null,{"$f":"(Monthly!BT93/Monthly!BT92)-1","v":9.3461944900714577E-3},null,null,null,{"$f":"(Monthly!BX93/Monthly!BX92)-1","v":5.5096418732782926E-3},{"$f":"(Monthly!BY93/Monthly!BY92)-1","v":2.1110242376856991E-2},"--","--",{"$f":"Monthly!CB93-Monthly!CB92","v":-7.2870158121152606E-2},{"$f":"Monthly!CC93-Monthly!CC92","v":-0.14287015812115378},"--","--",null,"--","--",null,{"$f":"(Monthly!CJ93/Monthly!CJ92)-1","v":0.1099099099099099},{"$f":"(Monthly!CK93/Monthly!CK92)-1","v":9.4017094017093683E-3},{"$f":"(Monthly!CL93/Monthly!CL92)-1","v":7.2056239015817258E-2},{"$f":"(Monthly!CM93/Monthly!CM92)-1","v":3.98322851153039E-2},{"$f":"(Monthly!CN93/Monthly!CN92)-1","v":7.3816452551636047E-3},{"$f":"(Monthly!CO93/Monthly!CO92)-1","v":9.9088386841061915E-3},{"$f":"(Monthly!CP93/Monthly!CP92)-1","v":6.3372519236954972E-3},{"$f":"(Monthly!CQ93/Monthly!CQ92)-1","v":1.0154002369267001E-3},"--","--","--",null,null,null,null,null,{"$f":"(Monthly!CZ93/Monthly!CZ92)-1","v":3.1595576619274368E-3},{"$f":"(Monthly!DA93/Monthly!DA92)-1","v":3.0487804878049918E-3},null,null,null,null,null,"--","--",{"$f":"((Monthly!DI93-Monthly!DI92)*100)","v":-10.000000000000142},"--",{"$f":"((Monthly!DK93-Monthly!DK92)*100)","v":-10.000000000000053},{"$f":"Monthly!DL93-Monthly!DL92","v":98},null,null,null,{"$f":"Monthly!DP93-Monthly!DP92","v":279},null,null,null,"--","--","--","--","--","--","--","--","--","--",null,null,null,null,null,null,null,null,null,null,null,null,null,{"$f":"(Monthly!EQ93/Monthly!EQ92)-1","v":3.0769230769231992E-3},"--",{"$f":"(Monthly!ES93/Monthly!ES92)-1","v":2.9498525073747839E-3},null,null,null,null,null,{"$f":"((Monthly!EY93-Monthly!EY92)*100)","v":0},{"$f":"((Monthly!EZ93-Monthly!EZ92)*100)","v":1.9999999999999574},{"$f":"((Monthly!FA93-Monthly!FA92)*100)","v":4.0000000000000036},{"$f":"((Monthly!FB93-Monthly!FB92)*100)","v":2.0000000000000462},"--","--",{"$f":"((Monthly!FE93-Monthly!FE92)*100)","v":5.9999999999999609},{"$f":"((Monthly!FF93-Monthly!FF92)*100)","v":7.0000000000000284},"--",{"$f":"((Monthly!FH93-Monthly!FH92)*100)","v":12.000000000000011},{"$f":"((Monthly!FI93-Monthly!FI92)*100)","v":10.000000000000053},null,null,null,null,null,null,"--","--","--","--","--","--","--","--","--",null,null,null,null,null,{"$f":"(Monthly!GD93/Monthly!GD92)-1","v":0},"--","--","--","--","--","--","--","--"]
["1965-12-01",null,null,null,{"$f":"(Monthly!E94/Monthly!E93)-1","v":{"$error":"#DIV/0!"}},{"$f":"(Monthly!F94/Monthly!F93)-1","v":{"$error":"#DIV/0!"}},{"$f":"(Monthly!G94/Monthly!G93)-1","v":{"$error":"#DIV/0!"}},{"$f":"(Monthly!H94/Monthly!H93)-1","v":{"$error":"#DIV/0!"}},null,null,null,null,null,null,null,null,null,null,null,null,null,null,null,"--",{"$f":"(Monthly!Y94/Monthly!Y93)-1","v":2.0717596009091732E-2},null,null,null,null,null,null,null,null,null,null,null,null,null,{"$f":"(Monthly!AM94/Monthly!AM93)-1","v":1.2426541328972585E-2},"--","--","--",{"$f":"Monthly!AQ94-Monthly!AQ93","v":3.3999999999999986},"--","--",{"$f":"Monthly!AT94-Monthly!AT93","v":5.5},"--","--",{"$f":"Monthly!AW94-Monthly!AW93","v":-1.3000000000000043},{"$f":"Monthly!AX94-Monthly!AX93","v":1},{"$f":"Monthly!AY94-Monthly!AY93","v":-3.5999999999999943},{"$f":"Monthly!AZ94-Monthly!AZ93","v":3.5000000000000071},{"$f":"Monthly!BA94-Monthly!BA93","v":8.4000000000000057},"--","--",null,null,null,null,null,null,null,null,null,"--","--",null,null,null,null,null,{"$f":"(Monthly!BT94/Monthly!BT93)-1","v":5.0405723661446356E-3},null,null,null,{"$f":"(Monthly!BX94/Monthly!BX93)-1","v":0.13424657534246576},{"$f":"(Monthly!BY94/Monthly!BY93)-1","v":6.8912710566615409E-3},"--","--",{"$f":"Monthly!CB94-Monthly!CB93","v":8.9785325216296563E-2},{"$f":"Monthly!CC94-Monthly!CC93","v":1.9785325216297167E-2},"--","--",null,"--","--",null,{"$f":"(Monthly!CJ94/Monthly!CJ93)-1","v":-1.1363636363636354E-2},{"$f":"(Monthly!CK94/Monthly!CK93)-1","v":8.9754445385266113E-3},{"$f":"(Monthly!CL94/Monthly!CL93)-1","v":2.2950819672131084E-2},{"$f":"(Monthly!CM94/Monthly!CM93)-1","v":0.10181451612903225},{"$f":"(Monthly!CN94/Monthly!CN93)-1","v":4.0160642570281624E-3},{"$f":"(Monthly!CO94/Monthly!CO93)-1","v":8.2417582417582125E-3},{"$f":"(Monthly!CP94/Monthly!CP93)-1","v":5.7585899315866218E-3},{"$f":"(Monthly!CQ94/Monthly!CQ93)-1","v":9.0678552217005048E-4},"--","--","--",null,null,null,null,null,{"$f":"(Monthly!CZ94/Monthly!CZ93)-1","v":3.1496062992126816E-3},{"$f":"(Monthly!DA94/Monthly!DA93)-1","v":3.0395136778116338E-3},null,null,null,null,null,"--","--",{"$f":"((Monthly!DI94-Monthly!DI93)*100)","v":20.000000000000284},"--",{"$f":"((Monthly!DK94-Monthly!DK93)*100)","v":-9.9999999999999645},{"$f":"Monthly!DL94-Monthly!DL93","v":89},null,null,null,{"$f":"Monthly!DP94-Monthly!DP93","v":324},null,null,null,"--","--","--","--","--","--","--","--","--","--",null,null,null,null,null,null,null,null,null,null,null,null,null,{"$f":"(Monthly!EQ94/Monthly!EQ93)-1","v":6.1349693251533388E-3},"--",{"$f":"(Monthly!ES94/Monthly!ES93)-1","v":0},null,null,null,null,null,{"$f":"((Monthly!EY94-Monthly!EY93)*100)","v":41.999999999999993},{"$f":"((Monthly!EZ94-Monthly!EZ93)*100)","v":22.000000000000064},{"$f":"((Monthly!FA94-Monthly!FA93)*100)","v":8.0000000000000071},{"$f":"((Monthly!FB94-Monthly!FB93)*100)","v":6.9999999999999396},"--","--",{"$f":"((Monthly!FE94-Monthly!FE93)*100)","v":29.000000000000004},{"$f":"((Monthly!FF94-Monthly!FF93)*100)","v":34.999999999999964},"--",{"$f":"((Monthly!FH94-Monthly!FH93)*100)","v":25.999999999999979},{"$f":"((Monthly!FI94-Monthly!FI93)*100)","v":16.999999999999993},null,null,null,null,null,null,"--","--","--","--","--","--","--","--","--",null,null,null,null,null,{"$f":"(Monthly!GD94/Monthly!GD93)-1","v":0},"--","--","--","--","--","--","--","--"]
["1966-01-01",null,null,null,{"$f":"(Monthly!E95/Monthly!E94)-1","v":{"$error":"#DIV/0!"}},{"$f":"(Monthly!F95/Monthly!F94)-1","v":{"$error":"#DIV/0!"}},{"$f":"(Monthly!G95/Monthly!G94)-1","v":{"$error":"#DIV/0!"}},{"$f":"(Monthly!H95/Monthly!H94)-1","v":{"$error":"#DIV/0!"}},null,null,null,null,null,null,null,null,null,null,null,null,null,null,null,"--",{"$f":"(Monthly!Y95/Monthly!Y94)-1","v":1.1935041217391307E-2},null,null,null,null,null,null,null,null,null,null,null,null,null,{"$f":"(Monthly!AM95/Monthly!AM94)-1","v":9.8203909916005916E-3},"--","--","--",{"$f":"Monthly!AQ95-Monthly!AQ94","v":3},"--","--",{"$f":"Monthly!AT95-Monthly!AT94","v":2.3999999999999986},"--","--",{"$f":"Monthly!AW95-Monthly!AW94","v":2.3000000000000043},{"$f":"Monthly!AX95-Monthly!AX94","v":3.6000000000000014},{"$f":"Monthly!AY95-Monthly!AY94","v":8.9000000000000057},{"$f":"Monthly!AZ95-Monthly!AZ94","v":4},{"$f":"Monthly!BA95-Monthly!BA94","v":1.4000000000000057},"--","--",null,null,null,null,null,null,null,null,null,"--","--",null,null,null,null,null,{"$f":"(Monthly!BT95/Monthly!BT94)-1","v":9.1932220255295238E-3},null,null,null,{"$f":"(Monthly!BX95/Monthly!BX94)-1","v":-0.17270531400966183},{"$f":"(Monthly!BY95/Monthly!BY94)-1","v":7.6045627376426506E-3},"--","--",{"$f":"Monthly!CB95-Monthly!CB94","v":-1.841432225080375E-3},{"$f":"Monthly!CC95-Monthly!CC94","v":-1.8414322250794868E-3},"--","--",null,"--","--",null,{"$f":"(Monthly!CJ95/Monthly!CJ94)-1","v":-1.6420361247947435E-2},{"$f":"(Monthly!CK95/Monthly!CK94)-1","v":4.1960389392412534E-3},{"$f":"(Monthly!CL95/Monthly!CL94)-1","v":-3.3653846153846145E-2},{"$f":"(Monthly!CM95/Monthly!CM94)-1","v":-0.22415370539798718},{"$f":"(Monthly!CN95/Monthly!CN94)-1","v":1.4385964912280169E-3},{"$f":"(Monthly!CO95/Monthly!CO94)-1","v":2.7247956403271267E-3},{"$f":"(Monthly!CP95/Monthly!CP94)-1","v":1.1213624762518082E-2},{"$f":"(Monthly!CQ95/Monthly!CQ94)-1","v":8.5477959994273434E-4},"--","--","--",null,null,null,null,null,{"$f":"(Monthly!CZ95/Monthly!CZ94)-1","v":9.4191522762954172E-4},{"$f":"(Monthly!DA95/Monthly!DA94)-1","v":0},null,null,null,null,null,"--","--",{"$f":"((Monthly!DI95-Monthly!DI94)*100)","v":0},"--",{"$f":"((Monthly!DK95-Monthly!DK94)*100)","v":0},{"$f":"Monthly!DL95-Monthly!DL94","v":92},null,null,null,{"$f":"Monthly!DP95-Monthly!DP94","v":207},null,null,null,"--","--","--","--","--","--","--","--","--","--",null,null,null,null,null,null,null,null,null,null,null,null,null,{"$f":"(Monthly!EQ95/Monthly!EQ94)-1","v":3.0487804878049918E-3},"--",{"$f":"(Monthly!ES95/Monthly!ES94)-1","v":0},null,null,null,null,null,{"$f":"((Monthly!EY95-Monthly!EY94)*100)","v":8.0000000000000071},{"$f":"((Monthly!EZ95-Monthly!EZ94)*100)","v":9.9999999999999645},{"$f":"((Monthly!FA95-Monthly!FA94)*100)","v":6.0000000000000497},{"$f":"((Monthly!FB95-Monthly!FB94)*100)","v":4.0000000000000036},"--","--",{"$f":"((Monthly!FE95-Monthly!FE94)*100)","v":20.999999999999996},{"$f":"((Monthly!FF95-Monthly!FF94)*100)","v":16.000000000000014},"--",{"$f":"((Monthly!FH95-Monthly!FH94)*100)","v":14.000000000000057},{"$f":"((Monthly!FI95-Monthly!FI94)*100)","v":-0.99999999999997868},null,null,null,null,null,null,"--","--","--","--","--","--","--","--","--",null,null,null,null,null,{"$f":"(Monthly!GD95/Monthly!GD94)-1","v":0},"--","--","--","--","--","--","--","--"]
["1966-02-01",null,null,null,{"$f":"(Monthly!E96/Monthly!E95)-1","v":{"$error":"#DIV/0!"}},{"$f":"(Monthly!F96/Monthly!F95)-1","v":{"$error":"#DIV/0!"}},{"$f":"(Monthly!G96/Monthly!G95)-1","v":{"$error":"#DIV/0!"}},{"$f":"(Monthly!H96/Monthly!H95)-1","v":{"$error":"#DIV/0!"}},null,null,null,null,null,null,null,null,null,null,null,null,null,null,null,"--",{"$f":"(Monthly!Y96/Monthly!Y95)-1","v":1.0000985952322905E-2},null,null,null,null,null,null,null,null,null,null,null,null,null,{"$f":"(Monthly!AM96/Monthly!AM95)-1","v":6.4852014462057905E-3},"--","--","--",{"$f":"Monthly!AQ96-Monthly!AQ95","v":-0.29999999999999716},"--","--",{"$f":"Monthly!AT96-Monthly!AT95","v":-1.3999999999999986},"--","--",{"$f":"Monthly!AW96-Monthly!AW95","v":-1},{"$f":"Monthly!AX96-Monthly!AX95","v":-0.40000000000000568},{"$f":"Monthly!AY96-Monthly!AY95","v":5},{"$f":"Monthly!AZ96-Monthly!AZ95","v":-2.3000000000000114},{"$f":"Monthly!BA96-Monthly!BA95","v":5.1999999999999886},"--","--",null,null,null,null,null,null,null,null,null,"--","--",null,null,null,null,null,{"$f":"(Monthly!BT96/Monthly!BT95)-1","v":7.2585295425233731E-3},null,null,null,{"$f":"(Monthly!BX96/Monthly!BX95)-1","v":5.839416058394109E-3},{"$f":"(Monthly!BY96/Monthly!BY95)-1","v":-0.12528301886792448},"--","--",{"$f":"Monthly!CB96-Monthly!CB95","v":0.43938618925831729},{"$f":"Monthly!CC96-Monthly!CC95","v":0.29938618925831761},"--","--",null,"--","--",null,{"$f":"(Monthly!CJ96/Monthly!CJ95)-1","v":-9.6828046744574237E-2},{"$f":"(Monthly!CK96/Monthly!CK95)-1","v":8.524151763329435E-3},{"$f":"(Monthly!CL96/Monthly!CL95)-1","v":-1.6583747927031545E-2},{"$f":"(Monthly!CM96/Monthly!CM95)-1","v":7.3113207547169878E-2},{"$f":"(Monthly!CN96/Monthly!CN95)-1","v":3.4336568445394455E-3},{"$f":"(Monthly!CO96/Monthly!CO95)-1","v":2.7173913043476716E-3},{"$f":"(Monthly!CP96/Monthly!CP95)-1","v":7.4996882429994027E-3},{"$f":"(Monthly!CQ96/Monthly!CQ95)-1","v":7.6199632809825779E-4},"--","--","--",null,null,null,null,null,{"$f":"(Monthly!CZ96/Monthly!CZ95)-1","v":6.273525721455453E-3},{"$f":"(Monthly!DA96/Monthly!DA95)-1","v":3.0303030303031608E-3},null,null,null,null,null,"--","--",{"$f":"((Monthly!DI96-Monthly!DI95)*100)","v":-20.000000000000284},"--",{"$f":"((Monthly!DK96-Monthly!DK95)*100)","v":-20.000000000000018},{"$f":"Monthly!DL96-Monthly!DL95","v":145},null,null,null,{"$f":"Monthly!DP96-Monthly!DP95","v":268},null,null,null,"--","--","--","--","--","--","--","--","--","--",null,null,null,null,null,null,null,null,null,null,null,null,null,{"$f":"(Monthly!EQ96/Monthly!EQ95)-1","v":9.1185410334346795E-3},"--",{"$f":"(Monthly!ES96/Monthly!ES95)-1","v":5.8823529411764497E-3},null,null,null,null,null,{"$f":"((Monthly!EY96-Monthly!EY95)*100)","v":0},{"$f":"((Monthly!EZ96-Monthly!EZ95)*100)","v":17.999999999999972},{"$f":"((Monthly!FA96-Monthly!FA95)*100)","v":4.0000000000000036},{"$f":"((Monthly!FB96-Monthly!FB95)*100)","v":6.0000000000000497},"--","--",{"$f":"((Monthly!FE96-Monthly!FE95)*100)","v":6.0000000000000497},{"$f":"((Monthly!FF96-Monthly!FF95)*100)","v":6.0000000000000497},"--",{"$f":"((Monthly!FH96-Monthly!FH95)*100)","v":12.000000000000011},{"$f":"((Monthly!FI96-Monthly!FI95)*100)","v":21.999999999999975},null,null,null,null,null,null,"--","--","--","--","--","--","--","--","--",null,null,null,null,null,{"$f":"(Monthly!GD96/Monthly!GD95)-1","v":0},"--","--","--","--","--","--","--","--"]
["1966-03-01",null,null,null,{"$f":"(Monthly!E97/Monthly!E96)-1","v":{"$error":"#DIV/0!"}},{"$f":"(Monthly!F97/Monthly!F96)-1","v":{"$error":"#DIV/0!"}},{"$f":"(Monthly!G97/Monthly!G96)-1","v":{"$error":"#DIV/0!"}},{"$f":"(Monthly!H97/Monthly!H96)-1","v":{"$error":"#DIV/0!"}},null,null,null,null,null,null,null,null,null,null,null,null,null,null,null,"--",{"$f":"(Monthly!Y97/Monthly!Y96)-1","v":1.1855750321859482E-2},null,null,null,null,null,null,null,null,null,null,null,null,null,{"$f":"(Monthly!AM97/Monthly!AM96)-1","v":1.368574314916815E-2},"--","--","--",{"$f":"Monthly!AQ97-Monthly!AQ96","v":0.20000000000000284},"--","--",{"$f":"Monthly!AT97-Monthly!AT96","v":0.29999999999999716},"--","--",{"$f":"Monthly!AW97-Monthly!AW96","v":3.5999999999999943},{"$f":"Monthly!AX97-Monthly!AX96","v":-1.7999999999999972},{"$f":"Monthly!AY97-Monthly!AY96","v":4.7999999999999972},{"$f":"Monthly!AZ97-Monthly!AZ96","v":-2.2999999999999972},{"$f":"Monthly!BA97-Monthly!BA96","v":6.3000000000000114},"--","--",null,null,null,null,null,null,null,null,null,"--","--",null,null,null,null,null,{"$f":"(Monthly!BT97/Monthly!BT96)-1","v":9.5660534020889365E-3},null,null,null,{"$f":"(Monthly!BX97/Monthly!BX96)-1","v":1.1611030478954953E-2},{"$f":"(Monthly!BY97/Monthly!BY96)-1","v":6.4710957722174278E-2},"--","--",{"$f":"Monthly!CB97-Monthly!CB96","v":0.22112020623727968},{"$f":"Monthly!CC97-Monthly!CC96","v":0.22112020623727879},"--","--",null,"--","--",null,{"$f":"(Monthly!CJ97/Monthly!CJ96)-1","v":2.9574861367837268E-2},{"$f":"(Monthly!CK97/Monthly!CK96)-1","v":7.1262843884654092E-3},{"$f":"(Monthly!CL97/Monthly!CL96)-1","v":-3.204047217537942E-2},{"$f":"(Monthly!CM97/Monthly!CM96)-1","v":4.3956043956044022E-2},{"$f":"(Monthly!CN97/Monthly!CN96)-1","v":3.0727329864868036E-3},{"$f":"(Monthly!CO97/Monthly!CO96)-1","v":-7.7429345722024312E-4},{"$f":"(Monthly!CP97/Monthly!CP96)-1","v":7.0377583921177322E-3},{"$f":"(Monthly!CQ97/Monthly!CQ96)-1","v":7.3075507951436691E-4},"--","--","--",null,null,null,null,null,{"$f":"(Monthly!CZ97/Monthly!CZ96)-1","v":3.1172069825435855E-3},{"$f":"(Monthly!DA97/Monthly!DA96)-1","v":0},null,null,null,null,null,"--","--",{"$f":"((Monthly!DI97-Monthly!DI96)*100)","v":0},"--",{"$f":"((Monthly!DK97-Monthly!DK96)*100)","v":0},{"$f":"Monthly!DL97-Monthly!DL96","v":112},null,null,null,{"$f":"Monthly!DP97-Monthly!DP96","v":396},null,null,null,"--","--","--","--","--","--","--","--","--","--",null,null,null,null,null,null,null,null,null,null,null,null,null,{"$f":"(Monthly!EQ97/Monthly!EQ96)-1","v":0},"--",{"$f":"(Monthly!ES97/Monthly!ES96)-1","v":0},null,null,null,null,null,{"$f":"((Monthly!EY97-Monthly!EY96)*100)","v":34.999999999999964},{"$f":"((Monthly!EZ97-Monthly!EZ96)*100)","v":5.0000000000000711},{"$f":"((Monthly!FA97-Monthly!FA96)*100)","v":13.999999999999968},{"$f":"((Monthly!FB97-Monthly!FB96)*100)","v":20.000000000000018},"--","--",{"$f":"((Monthly!FE97-Monthly!FE96)*100)","v":-6.0000000000000497},{"$f":"((Monthly!FF97-Monthly!FF96)*100)","v":2.9999999999999361},"--",{"$f":"((Monthly!FH97-Monthly!FH96)*100)","v":-6.0000000000000497},{"$f":"((Monthly!FI97-Monthly!FI96)*100)","v":4.0000000000000036},null,null,null,null,null,null,"--","--","--","--","--","--","--","--","--",null,null,null,null,null,{"$f":"(Monthly!GD97/Monthly!GD96)-1","v":0},"--","--","--","--","--","--","--","--"]
["1966-04-01",null,null,null,{"$f":"(Monthly!E98/Monthly!E97)-1","v":{"$error":"#DIV/0!"}},{"$f":"(Monthly!F98/Monthly!F97)-1","v":{"$error":"#DIV/0!"}},{"$f":"(Monthly!G98/Monthly!G97)-1","v":{"$error":"#DIV/0!"}},{"$f":"(Monthly!H98/Monthly!H97)-1","v":{"$error":"#DIV/0!"}},null,null,null,null,null,null,null,null,null,null,null,null,null,null,null,"--",{"$f":"(Monthly!Y98/Monthly!Y97)-1","v":1.1909788733379001E-2},null,null,null,null,null,null,null,null,null,null,null,null,null,{"$f":"(Monthly!AM98/Monthly!AM97)-1","v":1.5905333283838807E-3},"--","--","--",{"$f":"Monthly!AQ98-Monthly!AQ97","v":-1.5},"--","--",{"$f":"Monthly!AT98-Monthly!AT97","v":-1.6000000000000014},"--","--",{"$f":"Monthly!AW98-Monthly!AW97","v":0.70000000000000284},{"$f":"Monthly!AX98-Monthly!AX97","v":0},{"$f":"Monthly!AY98-Monthly!AY97","v":-1.7999999999999972},{"$f":"Monthly!AZ98-Monthly!AZ97","v":-0.69999999999999574},{"$f":"Monthly!BA98-Monthly!BA97","v":-7.1000000000000085},"--","--",null,null,null,null,null,null,null,null,null,"--","--",null,null,null,null,null,{"$f":"(Monthly!BT98/Monthly!BT97)-1","v":6.8847151100126514E-3},null,null,null,{"$f":"(Monthly!BX98/Monthly!BX97)-1","v":-3.0129124820659992E-2},{"$f":"(Monthly!BY98/Monthly!BY97)-1","v":-7.2123176661264221E-2},"--","--",{"$f":"Monthly!CB98-Monthly!CB97","v":8.9403870381477013E-2},{"$f":"Monthly!CC98-Monthly!CC97","v":8.9403870381477901E-2},"--","--",null,"--","--",null,{"$f":"(Monthly!CJ98/Monthly!CJ97)-1","v":-2.1543985637342944E-2},{"$f":"(Monthly!CK98/Monthly!CK97)-1","v":3.2910975810431786E-3},{"$f":"(Monthly!CL98/Monthly!CL97)-1","v":-3.3101045296167197E-2},{"$f":"(Monthly!CM98/Monthly!CM97)-1","v":-7.4736842105263213E-2},{"$f":"(Monthly!CN98/Monthly!CN97)-1","v":-3.0285097643331094E-3},{"$f":"(Monthly!CO98/Monthly!CO97)-1","v":-8.1363812475785391E-3},{"$f":"(Monthly!CP98/Monthly!CP97)-1","v":3.6436070795884401E-3},{"$f":"(Monthly!CQ98/Monthly!CQ97)-1","v":8.5788256200491908E-4},"--","--","--",null,null,null,null,null,{"$f":"(Monthly!CZ98/Monthly!CZ97)-1","v":3.1075201988812751E-3},{"$f":"(Monthly!DA98/Monthly!DA97)-1","v":6.0422960725075026E-3},null,null,null,null,null,"--","--",{"$f":"((Monthly!DI98-Monthly!DI97)*100)","v":20.000000000000284},"--",{"$f":"((Monthly!DK98-Monthly!DK97)*100)","v":0},{"$f":"Monthly!DL98-Monthly!DL97","v":117},null,null,null,{"$f":"Monthly!DP98-Monthly!DP97","v":244},null,null,null,"--","--","--","--","--","--","--","--","--","--",null,null,null,null,null,null,null,null,null,null,null,null,null,{"$f":"(Monthly!EQ98/Monthly!EQ97)-1","v":0},"--",{"$f":"(Monthly!ES98/Monthly!ES97)-1","v":2.9239766081869956E-3},null,null,null,null,null,{"$f":"((Monthly!EY98-Monthly!EY97)*100)","v":15.000000000000036},{"$f":"((Monthly!EZ98-Monthly!EZ97)*100)","v":1.9999999999999574},{"$f":"((Monthly!FA98-Monthly!FA97)*100)","v":4.0000000000000036},{"$f":"((Monthly!FB98-Monthly!FB97)*100)","v":8.9999999999999858},"--","--",{"$f":"((Monthly!FE98-Monthly!FE97)*100)","v":3.0000000000000249},{"$f":"((Monthly!FF98-Monthly!FF97)*100)","v":-6.9999999999999396},"--",{"$f":"((Monthly!FH98-Monthly!FH97)*100)","v":-8.9999999999999858},{"$f":"((Monthly!FI98-Monthly!FI97)*100)","v":-12.000000000000011},null,null,null,null,null,null,"--","--","--","--","--","--","--","--","--",null,null,null,null,null,{"$f":"(Monthly!GD98/Monthly!GD97)-1","v":0},"--","--","--","--","--","--","--","--"]
["1966-05-01",null,null,null,{"$f":"(Monthly!E99/Monthly!E98)-1","v":{"$error":"#DIV/0!"}},{"$f":"(Monthly!F99/Monthly!F98)-1","v":{"$error":"#DIV/0!"}},{"$f":"(Monthly!G99/Monthly!G98)-1","v":{"$error":"#DIV/0!"}},{"$f":"(Monthly!H99/Monthly!H98)-1","v":{"$error":"#DIV/0!"}},null,null,null,null,null,null,null,null,null,null,null,null,null,null,null,"--",{"$f":"(Monthly!Y99/Monthly!Y98)-1","v":1.3188656511838648E-2},null,null,null,null,null,null,null,null,null,null,null,null,null,{"$f":"(Monthly!AM99/Monthly!AM98)-1","v":9.5166412927578659E-3},"--","--","--",{"$f":"Monthly!AQ99-Monthly!AQ98","v":-6.5},"--","--",{"$f":"Monthly!AT99-Monthly!AT98","v":-2.8999999999999986},"--","--",{"$f":"Monthly!AW99-Monthly!AW98","v":0.79999999999999716},{"$f":"Monthly!AX99-Monthly!AX98","v":-11.599999999999994},{"$f":"Monthly!AY99-Monthly!AY98","v":-0.60000000000000853},{"$f":"Monthly!AZ99-Monthly!AZ98","v":-7.6000000000000014},{"$f":"Monthly!BA99-Monthly!BA98","v":-4.7000000000000028},"--","--",null,null,null,null,null,null,null,null,null,"--","--",null,null,null,null,null,{"$f":"(Monthly!BT99/Monthly!BT98)-1","v":5.0212910478719675E-3},null,null,null,{"$f":"(Monthly!BX99/Monthly!BX98)-1","v":-6.4349112426035471E-2},{"$f":"(Monthly!BY99/Monthly!BY98)-1","v":-5.8515283842794807E-2},"--","--",{"$f":"Monthly!CB99-Monthly!CB98","v":-4.409367324164748E-3},{"$f":"Monthly!CC99-Monthly!CC98","v":6.5590632675835536E-2},"--","--",null,"--","--",null,{"$f":"(Monthly!CJ99/Monthly!CJ98)-1","v":-8.4403669724770647E-2},{"$f":"(Monthly!CK99/Monthly!CK98)-1","v":4.4284074134819384E-3},{"$f":"(Monthly!CL99/Monthly!CL98)-1","v":9.5495495495495408E-2},{"$f":"(Monthly!CM99/Monthly!CM98)-1","v":-6.4846416382252525E-2},{"$f":"(Monthly!CN99/Monthly!CN98)-1","v":1.5363128491621136E-3},{"$f":"(Monthly!CO99/Monthly!CO98)-1","v":-3.5156250000000222E-3},{"$f":"(Monthly!CP99/Monthly!CP98)-1","v":5.063503806989722E-3},{"$f":"(Monthly!CQ99/Monthly!CQ98)-1","v":9.1326996566309937E-4},"--","--","--",null,null,null,null,null,{"$f":"(Monthly!CZ99/Monthly!CZ98)-1","v":2.1685254027261625E-3},{"$f":"(Monthly!DA99/Monthly!DA98)-1","v":3.0030030030030463E-3},null,null,null,null,null,"--","--",{"$f":"((Monthly!DI99-Monthly!DI98)*100)","v":0},"--",{"$f":"((Monthly!DK99-Monthly!DK98)*100)","v":10.000000000000009},{"$f":"Monthly!DL99-Monthly!DL98","v":108},null,null,null,{"$f":"Monthly!DP99-Monthly!DP98","v":275},null,null,null,"--","--","--","--","--","--","--","--","--","--",null,null,null,null,null,null,null,null,null,null,null,null,null,{"$f":"(Monthly!EQ99/Monthly!EQ98)-1","v":0},"--",{"$f":"(Monthly!ES99/Monthly!ES98)-1","v":5.8309037900874383E-3},null,null,null,null,null,{"$f":"((Monthly!EY99-Monthly!EY98)*100)","v":0},{"$f":"((Monthly!EZ99-Monthly!EZ98)*100)","v":23.000000000000043},{"$f":"((Monthly!FA99-Monthly!FA98)*100)","v":2.0000000000000462},{"$f":"((Monthly!FB99-Monthly!FB98)*100)","v":7.0000000000000284},"--","--",{"$f":"((Monthly!FE99-Monthly!FE98)*100)","v":1.9999999999999574},{"$f":"((Monthly!FF99-Monthly!FF98)*100)","v":2.9999999999999361},"--",{"$f":"((Monthly!FH99-Monthly!FH98)*100)","v":5.9999999999999609},{"$f":"((Monthly!FI99-Monthly!FI98)*100)","v":3.0000000000000249},null,null,null,null,null,null,"--","--","--","--","--","--","--","--","--",null,null,null,null,null,{"$f":"(Monthly!GD99/Monthly!GD98)-1","v":0},"--","--","--","--","--","--","--","--"]
["1966-06-01",null,null,null,{"$f":"(Monthly!E100/Monthly!E99)-1","v":{"$error":"#DIV/0!"}},{"$f":"(Monthly!F100/Monthly!F99)-1","v":{"$error":"#DIV/0!"}},{"$f":"(Monthly!G100/Monthly!G99)-1","v":{"$error":"#DIV/0!"}},{"$f":"(Monthly!H100/Monthly!H99)-1","v":{"$error":"#DIV/0!"}},null,null,null,null,null,null,null,null,null,null,null,null,null,null,null,"--",{"$f":"(Monthly!Y100/Monthly!Y99)-1","v":2.8155952830664965E-2},null,null,null,null,null,null,null,null,null,null,null,null,null,{"$f":"(Monthly!AM100/Monthly!AM99)-1","v":4.7106401726104696E-3},"--","--","--",{"$f":"Monthly!AQ100-Monthly!AQ99","v":1.2999999999999972},"--","--",{"$f":"Monthly!AT100-Monthly!AT99","v":1.7999999999999972},"--","--",{"$f":"Monthly!AW100-Monthly!AW99","v":-0.5},{"$f":"Monthly!AX100-Monthly!AX99","v":3.1999999999999957},{"$f":"Monthly!AY100-Monthly!AY99","v":-1.7999999999999972},{"$f":"Monthly!AZ100-Monthly!AZ99","v":2.1000000000000014},{"$f":"Monthly!BA100-Monthly!BA99","v":-3},"--","--",null,null,null,null,null,null,null,null,null,"--","--",null,null,null,null,null,{"$f":"(Monthly!BT100/Monthly!BT99)-1","v":8.9465410486466723E-3},null,null,null,{"$f":"(Monthly!BX100/Monthly!BX99)-1","v":-5.6126482213438744E-2},{"$f":"(Monthly!BY100/Monthly!BY99)-1","v":-0.11317254174397029},"--","--",{"$f":"Monthly!CB100-Monthly!CB99","v":-0.42772147202222488},{"$f":"Monthly!CC100-Monthly!CC99","v":-0.49772147202222428},"--","--",null,"--","--",null,{"$f":"(Monthly!CJ100/Monthly!CJ99)-1","v":-0.13026052104208419},{"$f":"(Monthly!CK100/Monthly!CK99)-1","v":7.5114304376224794E-3},{"$f":"(Monthly!CL100/Monthly!CL99)-1","v":1.9736842105263275E-2},{"$f":"(Monthly!CM100/Monthly!CM99)-1","v":-4.7445255474452552E-2},{"$f":"(Monthly!CN100/Monthly!CN99)-1","v":4.2532422256309488E-3},{"$f":"(Monthly!CO100/Monthly!CO99)-1","v":-1.5680125441003279E-3},{"$f":"(Monthly!CP100/Monthly!CP99)-1","v":4.866804826323623E-3},{"$f":"(Monthly!CQ100/Monthly!CQ99)-1","v":9.8889783767797113E-4},"--","--","--",null,null,null,null,null,{"$f":"(Monthly!CZ100/Monthly!CZ99)-1","v":9.2735703245749868E-4},{"$f":"(Monthly!DA100/Monthly!DA99)-1","v":2.9940119760478723E-3},null,null,null,null,null,"--","--",{"$f":"((Monthly!DI100-Monthly!DI99)*100)","v":10.000000000000142},"--",{"$f":"((Monthly!DK100-Monthly!DK99)*100)","v":-10.000000000000009},{"$f":"Monthly!DL100-Monthly!DL99","v":108},null,null,null,{"$f":"Monthly!DP100-Monthly!DP99","v":399},null,null,null,"--","--","--","--","--","--","--","--","--","--",null,null,null,null,null,null,null,null,null,null,null,null,null,{"$f":"(Monthly!EQ100/Monthly!EQ99)-1","v":3.0120481927708997E-3},"--",{"$f":"(Monthly!ES100/Monthly!ES99)-1","v":2.8985507246377384E-3},null,null,null,null,null,{"$f":"((Monthly!EY100-Monthly!EY99)*100)","v":1.9999999999999574},{"$f":"((Monthly!EZ100-Monthly!EZ99)*100)","v":26.999999999999957},{"$f":"((Monthly!FA100-Monthly!FA99)*100)","v":8.9999999999999858},{"$f":"((Monthly!FB100-Monthly!FB99)*100)","v":9.9999999999999645},"--","--",{"$f":"((Monthly!FE100-Monthly!FE99)*100)","v":-13.999999999999968},{"$f":"((Monthly!FF100-Monthly!FF99)*100)","v":4.0000000000000036},"--",{"$f":"((Monthly!FH100-Monthly!FH99)*100)","v":8.0000000000000071},{"$f":"((Monthly!FI100-Monthly!FI99)*100)","v":2.9999999999999361},null,null,null,null,null,null,"--","--","--","--","--","--","--","--","--",null,null,null,null,null,{"$f":"(Monthly!GD100/Monthly!GD99)-1","v":0},"--","--","--","--","--","--","--","--"]
["1966-07-01",null,null,null,{"$f":"(Monthly!E101/Monthly!E100)-1","v":{"$error":"#DIV/0!"}},{"$f":"(Monthly!F101/Monthly!F100)-1","v":{"$error":"#DIV/0!"}},{"$f":"(Monthly!G101/Monthly!G100)-1","v":{"$error":"#DIV/0!"}},{"$f":"(Monthly!H101/Monthly!H100)-1","v":{"$error":"#DIV/0!"}},null,null,null,null,null,null,null,null,null,null,null,null,null,null,null,"--",{"$f":"(Monthly!Y101/Monthly!Y100)-1","v":1.844627871163862E-2},null,null,null,null,null,null,null,null,null,null,null,null,null,{"$f":"(Monthly!AM101/Monthly!AM100)-1","v":5.4727906453788666E-3},"--","--","--",{"$f":"Monthly!AQ101-Monthly!AQ100","v":1.2999999999999972},"--","--",{"$f":"Monthly!AT101-Monthly!AT100","v":0.10000000000000142},"--","--",{"$f":"Monthly!AW101-Monthly!AW100","v":4.6000000000000014},{"$f":"Monthly!AX101-Monthly!AX100","v":0.39999999999999858},{"$f":"Monthly!AY101-Monthly!AY100","v":-1.7999999999999972},{"$f":"Monthly!AZ101-Monthly!AZ100","v":1.6999999999999957},{"$f":"Monthly!BA101-Monthly!BA100","v":1.5},"--","--",null,null,null,null,null,null,null,null,null,"--","--",null,null,null,null,null,{"$f":"(Monthly!BT101/Monthly!BT100)-1","v":4.7632372206605211E-3},null,null,null,{"$f":"(Monthly!BX101/Monthly!BX100)-1","v":-9.0452261306532611E-2},{"$f":"(Monthly!BY101/Monthly!BY100)-1","v":-2.5104602510460206E-2},"--","--",{"$f":"Monthly!CB101-Monthly!CB100","v":0.31897017542208417},{"$f":"Monthly!CC101-Monthly!CC100","v":0.31897017542208417},"--","--",null,"--","--",null,{"$f":"(Monthly!CJ101/Monthly!CJ100)-1","v":2.3041474654377225E-3},{"$f":"(Monthly!CK101/Monthly!CK100)-1","v":6.1588330632089683E-3},{"$f":"(Monthly!CL101/Monthly!CL100)-1","v":-3.2258064516129004E-2},{"$f":"(Monthly!CM101/Monthly!CM100)-1","v":-5.6194125159642394E-2},{"$f":"(Monthly!CN101/Monthly!CN100)-1","v":3.6103589529958846E-3},{"$f":"(Monthly!CO101/Monthly!CO100)-1","v":-1.5704750687082214E-3},{"$f":"(Monthly!CP101/Monthly!CP100)-1","v":2.732774352206313E-3},{"$f":"(Monthly!CQ101/Monthly!CQ100)-1","v":9.5736663068057837E-4},"--","--","--",null,null,null,null,null,{"$f":"(Monthly!CZ101/Monthly!CZ100)-1","v":2.1618282890674134E-3},{"$f":"(Monthly!DA101/Monthly!DA100)-1","v":2.9850746268658135E-3},null,null,null,null,null,"--","--",{"$f":"((Monthly!DI101-Monthly!DI100)*100)","v":0},"--",{"$f":"((Monthly!DK101-Monthly!DK100)*100)","v":0},{"$f":"Monthly!DL101-Monthly!DL100","v":27},null,null,null,{"$f":"Monthly!DP101-Monthly!DP100","v":191},null,null,null,"--","--","--","--","--","--","--","--","--","--",null,null,null,null,null,null,null,null,null,null,null,null,null,{"$f":"(Monthly!EQ101/Monthly!EQ100)-1","v":6.0060060060060927E-3},"--",{"$f":"(Monthly!ES101/Monthly!ES100)-1","v":2.8901734104047616E-3},null,null,null,null,null,{"$f":"((Monthly!EY101-Monthly!EY100)*100)","v":23.000000000000043},{"$f":"((Monthly!EZ101-Monthly!EZ100)*100)","v":12.999999999999989},{"$f":"((Monthly!FA101-Monthly!FA100)*100)","v":8.9999999999999858},{"$f":"((Monthly!FB101-Monthly!FB100)*100)","v":9.9999999999999645},"--","--",{"$f":"((Monthly!FE101-Monthly!FE100)*100)","v":29.999999999999982},{"$f":"((Monthly!FF101-Monthly!FF100)*100)","v":20.000000000000018},"--",{"$f":"((Monthly!FH101-Monthly!FH100)*100)","v":20.000000000000018},{"$f":"((Monthly!FI101-Monthly!FI100)*100)","v":20.999999999999996},null,null,null,null,null,null,"--","--","--","--","--","--","--","--","--",null,null,null,null,null,{"$f":"(Monthly!GD101/Monthly!GD100)-1","v":0},"--","--","--","--","--","--","--","--"]
["1966-08-01",null,null,null,{"$f":"(Monthly!E102/Monthly!E101)-1","v":{"$error":"#DIV/0!"}},{"$f":"(Monthly!F102/Monthly!F101)-1","v":{"$error":"#DIV/0!"}},{"$f":"(Monthly!G102/Monthly!G101)-1","v":{"$error":"#DIV/0!"}},{"$f":"(Monthly!H102/Monthly!H101)-1","v":{"$error":"#DIV/0!"}},null,null,null,null,null,null,null,null,null,null,null,null,null,null,null,"--",{"$f":"(Monthly!Y102/Monthly!Y101)-1","v":2.7519255664694153E-3},null,null,null,null,null,null,null,null,null,null,null,null,null,{"$f":"(Monthly!AM102/Monthly!AM101)-1","v":7.7996796260637602E-4},"--","--","--",{"$f":"Monthly!AQ102-Monthly!AQ101","v":-1.7999999999999972},"--","--",{"$f":"Monthly!AT102-Monthly!AT101","v":-2.5},"--","--",{"$f":"Monthly!AW102-Monthly!AW101","v":-0.89999999999999858},{"$f":"Monthly!AX102-Monthly!AX101","v":-3},{"$f":"Monthly!AY102-Monthly!AY101","v":-0.20000000000000284},{"$f":"Monthly!AZ102-Monthly!AZ101","v":-1.5999999999999943},{"$f":"Monthly!BA102-Monthly!BA101","v":1.2000000000000028},"--","--",null,null,null,null,null,null,null,null,null,"--","--",null,null,null,null,null,{"$f":"(Monthly!BT102/Monthly!BT101)-1","v":3.4262687637793832E-3},null,null,null,{"$f":"(Monthly!BX102/Monthly!BX101)-1","v":3.0386740331491691E-2},{"$f":"(Monthly!BY102/Monthly!BY101)-1","v":-5.9012875536480713E-2},"--","--",{"$f":"Monthly!CB102-Monthly!CB101","v":0.73162114881428764},{"$f":"Monthly!CC102-Monthly!CC101","v":0.73162114881428764},"--","--",null,"--","--",null,{"$f":"(Monthly!CJ102/Monthly!CJ101)-1","v":-0.1333333333333333},{"$f":"(Monthly!CK102/Monthly!CK101)-1","v":8.6984536082475028E-3},{"$f":"(Monthly!CL102/Monthly!CL101)-1","v":3.6666666666666625E-2},{"$f":"(Monthly!CM102/Monthly!CM101)-1","v":9.4722598105547728E-3},{"$f":"(Monthly!CN102/Monthly!CN101)-1","v":4.9809754410239382E-3},{"$f":"(Monthly!CO102/Monthly!CO101)-1","v":-4.325599685411019E-3},{"$f":"(Monthly!CP102/Monthly!CP101)-1","v":5.2497766371446541E-3},{"$f":"(Monthly!CQ102/Monthly!CQ101)-1","v":1.02767602767595E-3},"--","--","--",null,null,null,null,null,{"$f":"(Monthly!CZ102/Monthly!CZ101)-1","v":6.1633281972264253E-3},{"$f":"(Monthly!DA102/Monthly!DA101)-1","v":2.9761904761904656E-3},null,null,null,null,null,"--","--",{"$f":"((Monthly!DI102-Monthly!DI101)*100)","v":19.999999999999574},"--",{"$f":"((Monthly!DK102-Monthly!DK101)*100)","v":0},{"$f":"Monthly!DL102-Monthly!DL101","v":122},null,null,null,{"$f":"Monthly!DP102-Monthly!DP101","v":206},null,null,null,"--","--","--","--","--","--","--","--","--","--",null,null,null,null,null,null,null,null,null,null,null,null,null,{"$f":"(Monthly!EQ102/Monthly!EQ101)-1","v":2.9850746268658135E-3},"--",{"$f":"(Monthly!ES102/Monthly!ES101)-1","v":2.8818443804032867E-3},null,null,null,null,null,{"$f":"((Monthly!EY102-Monthly!EY101)*100)","v":12.999999999999989},{"$f":"((Monthly!EZ102-Monthly!EZ101)*100)","v":23.000000000000043},{"$f":"((Monthly!FA102-Monthly!FA101)*100)","v":14.999999999999947},{"$f":"((Monthly!FB102-Monthly!FB101)*100)","v":15.000000000000036},"--","--",{"$f":"((Monthly!FE102-Monthly!FE101)*100)","v":16.000000000000014},{"$f":"((Monthly!FF102-Monthly!FF101)*100)","v":37.000000000000014},"--",{"$f":"((Monthly!FH102-Monthly!FH101)*100)","v":33.000000000000007},{"$f":"((Monthly!FI102-Monthly!FI101)*100)","v":20.000000000000018},null,null,null,null,null,null,"--","--","--","--","--","--","--","--","--",null,null,null,null,null,{"$f":"(Monthly!GD102/Monthly!GD101)-1","v":0},"--","--","--","--","--","--","--","--"]
["1966-09-01",null,null,null,{"$f":"(Monthly!E103/Monthly!E102)-1","v":{"$error":"#DIV/0!"}},{"$f":"(Monthly!F103/Monthly!F102)-1","v":{"$error":"#DIV/0!"}},{"$f":"(Monthly!G103/Monthly!G102)-1","v":{"$error":"#DIV/0!"}},{"$f":"(Monthly!H103/Monthly!H102)-1","v":{"$error":"#DIV/0!"}},null,null,null,null,null,null,null,null,null,null,null,null,null,null,null,"--",{"$f":"(Monthly!Y103/Monthly!Y102)-1","v":6.4212879202119044E-3},null,null,null,null,null,null,null,null,null,null,null,null,null,{"$f":"(Monthly!AM103/Monthly!AM102)-1","v":9.3215935818720119E-3},"--","--","--",{"$f":"Monthly!AQ103-Monthly!AQ102","v":0.20000000000000284},"--","--",{"$f":"Monthly!AT103-Monthly!AT102","v":0.10000000000000142},"--","--",{"$f":"Monthly!AW103-Monthly!AW102","v":-2.2000000000000028},{"$f":"Monthly!AX103-Monthly!AX102","v":1.9000000000000057},{"$f":"Monthly!AY103-Monthly!AY102","v":-5.7999999999999972},{"$f":"Monthly!AZ103-Monthly!AZ102","v":0.19999999999999574},{"$f":"Monthly!BA103-Monthly!BA102","v":-1.8999999999999915},"--","--",null,null,null,null,null,null,null,null,null,"--","--",null,null,null,null,null,{"$f":"(Monthly!BT103/Monthly!BT102)-1","v":7.9687306169562433E-4},null,null,null,{"$f":"(Monthly!BX103/Monthly!BX102)-1","v":-6.5236818588024992E-2},{"$f":"(Monthly!BY103/Monthly!BY102)-1","v":-0.11744583808437858},"--","--",{"$f":"Monthly!CB103-Monthly!CB102","v":-1.284177901005279E-2},{"$f":"Monthly!CC103-Monthly!CC102","v":-8.2841779010053074E-2},"--","--",null,"--","--",null,{"$f":"(Monthly!CJ103/Monthly!CJ102)-1","v":-5.0397877984084904E-2},{"$f":"(Monthly!CK103/Monthly!CK102)-1","v":8.7831363781538663E-3},{"$f":"(Monthly!CL103/Monthly!CL102)-1","v":-1.9292604501607746E-2},{"$f":"(Monthly!CM103/Monthly!CM102)-1","v":-6.3002680965147495E-2},{"$f":"(Monthly!CN103/Monthly!CN102)-1","v":5.4381496523714379E-3},{"$f":"(Monthly!CO103/Monthly!CO102)-1","v":-3.949447077409296E-4},{"$f":"(Monthly!CP103/Monthly!CP102)-1","v":8.529954755449598E-4},{"$f":"(Monthly!CQ103/Monthly!CQ102)-1","v":1.1282666368506167E-3},"--","--","--",null,null,null,null,null,{"$f":"(Monthly!CZ103/Monthly!CZ102)-1","v":3.0627871362940429E-3},{"$f":"(Monthly!DA103/Monthly!DA102)-1","v":2.9673590504448732E-3},null,null,null,null,null,"--","--",{"$f":"((Monthly!DI103-Monthly!DI102)*100)","v":0},"--",{"$f":"((Monthly!DK103-Monthly!DK102)*100)","v":-9.9999999999999645},{"$f":"Monthly!DL103-Monthly!DL102","v":4},null,null,null,{"$f":"Monthly!DP103-Monthly!DP102","v":137},null,null,null,"--","--","--","--","--","--","--","--","--","--",null,null,null,null,null,null,null,null,null,null,null,null,null,{"$f":"(Monthly!EQ103/Monthly!EQ102)-1","v":0},"--",{"$f":"(Monthly!ES103/Monthly!ES102)-1","v":2.8735632183909399E-3},null,null,null,null,null,{"$f":"((Monthly!EY103-Monthly!EY102)*100)","v":12.000000000000011},{"$f":"((Monthly!EZ103-Monthly!EZ102)*100)","v":-12.999999999999989},{"$f":"((Monthly!FA103-Monthly!FA102)*100)","v":18.00000000000006},{"$f":"((Monthly!FB103-Monthly!FB102)*100)","v":25.999999999999979},"--","--",{"$f":"((Monthly!FE103-Monthly!FE102)*100)","v":41.000000000000014},{"$f":"((Monthly!FF103-Monthly!FF102)*100)","v":28.000000000000025},"--",{"$f":"((Monthly!FH103-Monthly!FH102)*100)","v":0},{"$f":"((Monthly!FI103-Monthly!FI102)*100)","v":-4.0000000000000036},null,null,null,null,null,null,"--","--","--","--","--","--","--","--","--",null,null,null,null,null,{"$f":"(Monthly!GD103/Monthly!GD102)-1","v":1.7123287671233056E-2},"--","--","--","--","--","--","--","--"]
["1966-10-01",null,null,null,{"$f":"(Monthly!E104/Monthly!E103)-1","v":{"$error":"#DIV/0!"}},{"$f":"(Monthly!F104/Monthly!F103)-1","v":{"$error":"#DIV/0!"}},{"$f":"(Monthly!G104/Monthly!G103)-1","v":{"$error":"#DIV/0!"}},{"$f":"(Monthly!H104/Monthly!H103)-1","v":{"$error":"#DIV/0!"}},null,null,null,null,null,null,null,null,null,null,null,null,null,null,null,"--",{"$f":"(Monthly!Y104/Monthly!Y103)-1","v":6.7377913826991431E-3},null,null,null,null,null,null,null,null,null,null,null,null,null,{"$f":"(Monthly!AM104/Monthly!AM103)-1","v":6.9300874840516613E-3},"--","--","--",{"$f":"Monthly!AQ104-Monthly!AQ103","v":-1.5},"--","--",{"$f":"Monthly!AT104-Monthly!AT103","v":0.39999999999999858},"--","--",{"$f":"Monthly!AW104-Monthly!AW103","v":3.4000000000000057},{"$f":"Monthly!AX104-Monthly!AX103","v":-3.6000000000000014},{"$f":"Monthly!AY104-Monthly!AY103","v":-3.4000000000000057},{"$f":"Monthly!AZ104-Monthly!AZ103","v":-0.89999999999999858},{"$f":"Monthly!BA104-Monthly!BA103","v":-3.7000000000000028},"--","--",null,null,null,null,null,null,null,null,null,"--","--",null,null,null,null,null,{"$f":"(Monthly!BT104/Monthly!BT103)-1","v":-1.8908039698484203E-4},null,null,null,{"$f":"(Monthly!BX104/Monthly!BX103)-1","v":-0.1940726577437859},{"$f":"(Monthly!BY104/Monthly!BY103)-1","v":-4.52196382428941E-2},"--","--",{"$f":"Monthly!CB104-Monthly!CB103","v":0.21778165478087974},{"$f":"Monthly!CC104-Monthly!CC103","v":0.21778165478087885},"--","--",null,"--","--",null,{"$f":"(Monthly!CJ104/Monthly!CJ103)-1","v":8.1005586592178824E-2},{"$f":"(Monthly!CK104/Monthly!CK103)-1","v":7.2819376286210602E-3},{"$f":"(Monthly!CL104/Monthly!CL103)-1","v":7.2131147540983598E-2},{"$f":"(Monthly!CM104/Monthly!CM103)-1","v":-0.14592274678111583},{"$f":"(Monthly!CN104/Monthly!CN103)-1","v":3.7998082979597836E-3},{"$f":"(Monthly!CO104/Monthly!CO103)-1","v":-3.5559067562228597E-3},{"$f":"(Monthly!CP104/Monthly!CP103)-1","v":2.7872557053814084E-3},{"$f":"(Monthly!CQ104/Monthly!CQ103)-1","v":1.1320716403362407E-3},"--","--","--",null,null,null,null,null,{"$f":"(Monthly!CZ104/Monthly!CZ103)-1","v":3.0534351145039551E-3},{"$f":"(Monthly!DA104/Monthly!DA103)-1","v":5.9171597633136397E-3},null,null,null,null,null,"--","--",{"$f":"((Monthly!DI104-Monthly!DI103)*100)","v":0},"--",{"$f":"((Monthly!DK104-Monthly!DK103)*100)","v":0},{"$f":"Monthly!DL104-Monthly!DL103","v":70},null,null,null,{"$f":"Monthly!DP104-Monthly!DP103","v":210},null,null,null,"--","--","--","--","--","--","--","--","--","--",null,null,null,null,null,null,null,null,null,null,null,null,null,{"$f":"(Monthly!EQ104/Monthly!EQ103)-1","v":-5.9523809523810423E-3},"--",{"$f":"(Monthly!ES104/Monthly!ES103)-1","v":2.8653295128939771E-3},null,null,null,null,null,{"$f":"((Monthly!EY104-Monthly!EY103)*100)","v":0},{"$f":"((Monthly!EZ104-Monthly!EZ103)*100)","v":12.999999999999989},{"$f":"((Monthly!FA104-Monthly!FA103)*100)","v":-8.0000000000000071},{"$f":"((Monthly!FB104-Monthly!FB103)*100)","v":0.99999999999997868},"--","--",{"$f":"((Monthly!FE104-Monthly!FE103)*100)","v":-2.0000000000000462},{"$f":"((Monthly!FF104-Monthly!FF103)*100)","v":-24.000000000000021},"--",{"$f":"((Monthly!FH104-Monthly!FH103)*100)","v":-23.000000000000043},{"$f":"((Monthly!FI104-Monthly!FI103)*100)","v":-16.999999999999993},null,null,null,null,null,null,"--","--","--","--","--","--","--","--","--",null,null,null,null,null,{"$f":"(Monthly!GD104/Monthly!GD103)-1","v":0},"--","--","--","--","--","--","--","--"]
["1966-11-01",null,null,null,{"$f":"(Monthly!E105/Monthly!E104)-1","v":{"$error":"#DIV/0!"}},{"$f":"(Monthly!F105/Monthly!F104)-1","v":{"$error":"#DIV/0!"}},{"$f":"(Monthly!G105/Monthly!G104)-1","v":{"$error":"#DIV/0!"}},{"$f":"(Monthly!H105/Monthly!H104)-1","v":{"$error":"#DIV/0!"}},null,null,null,null,null,null,null,null,null,null,null,null,null,null,null,"--",{"$f":"(Monthly!Y105/Monthly!Y104)-1","v":4.6429706808324145E-3},null,null,null,null,null,null,null,null,null,null,null,null,null,{"$f":"(Monthly!AM105/Monthly!AM104)-1","v":-6.8823919060432281E-3},"--","--","--",{"$f":"Monthly!AQ105-Monthly!AQ104","v":-3.5},"--","--",{"$f":"Monthly!AT105-Monthly!AT104","v":-1.2999999999999972},"--","--",{"$f":"Monthly!AW105-Monthly!AW104","v":-2.6000000000000014},{"$f":"Monthly!AX105-Monthly!AX104","v":-4.8000000000000043},{"$f":"Monthly!AY105-Monthly!AY104","v":1.6000000000000085},{"$f":"Monthly!AZ105-Monthly!AZ104","v":-2.7999999999999972},{"$f":"Monthly!BA105-Monthly!BA104","v":-6.1000000000000014},"--","--",null,null,null,null,null,null,null,null,null,"--","--",null,null,null,null,null,{"$f":"(Monthly!BT105/Monthly!BT104)-1","v":2.0067325351231791E-3},null,null,null,{"$f":"(Monthly!BX105/Monthly!BX104)-1","v":0.13997627520759193},{"$f":"(Monthly!BY105/Monthly!BY104)-1","v":-4.0595399188092518E-3},"--","--",{"$f":"Monthly!CB105-Monthly!CB104","v":-0.33241407620255892},{"$f":"Monthly!CC105-Monthly!CC104","v":-0.40241407620255742},"--","--",null,"--","--",null,{"$f":"(Monthly!CJ105/Monthly!CJ104)-1","v":-1.2919896640826822E-2},{"$f":"(Monthly!CK105/Monthly!CK104)-1","v":7.5436115040077301E-3},{"$f":"(Monthly!CL105/Monthly!CL104)-1","v":2.2935779816513735E-2},{"$f":"(Monthly!CM105/Monthly!CM104)-1","v":0.13735343383584597},{"$f":"(Monthly!CN105/Monthly!CN104)-1","v":4.3310711727995166E-3},{"$f":"(Monthly!CO105/Monthly!CO104)-1","v":1.5860428231562196E-3},{"$f":"(Monthly!CP105/Monthly!CP104)-1","v":4.7972771514692703E-3},{"$f":"(Monthly!CQ105/Monthly!CQ104)-1","v":9.685254580211744E-4},"--","--","--",null,null,null,null,null,{"$f":"(Monthly!CZ105/Monthly!CZ104)-1","v":9.1324200913245335E-4},{"$f":"(Monthly!DA105/Monthly!DA104)-1","v":0},null,null,null,null,null,"--","--",{"$f":"((Monthly!DI105-Monthly!DI104)*100)","v":30.000000000000426},"--",{"$f":"((Monthly!DK105-Monthly!DK104)*100)","v":-10.000000000000009},{"$f":"Monthly!DL105-Monthly!DL104","v":25},null,null,null,{"$f":"Monthly!DP105-Monthly!DP104","v":165},null,null,null,"--","--","--","--","--","--","--","--","--","--",null,null,null,null,null,null,null,null,null,null,null,null,null,{"$f":"(Monthly!EQ105/Monthly!EQ104)-1","v":-2.9940119760479833E-3},"--",{"$f":"(Monthly!ES105/Monthly!ES104)-1","v":5.7142857142857828E-3},null,null,null,null,null,{"$f":"((Monthly!EY105-Monthly!EY104)*100)","v":0},{"$f":"((Monthly!EZ105-Monthly!EZ104)*100)","v":22.999999999999954},{"$f":"((Monthly!FA105-Monthly!FA104)*100)","v":-6.0000000000000497},{"$f":"((Monthly!FB105-Monthly!FB104)*100)","v":3.0000000000000249},"--","--",{"$f":"((Monthly!FE105-Monthly!FE104)*100)","v":-2.9999999999999361},{"$f":"((Monthly!FF105-Monthly!FF104)*100)","v":-4.0000000000000036},"--",{"$f":"((Monthly!FH105-Monthly!FH104)*100)","v":9.0000000000000746},{"$f":"((Monthly!FI105-Monthly!FI104)*100)","v":15.000000000000036},null,null,null,null,null,null,"--","--","--","--","--","--","--","--","--",null,null,null,null,null,{"$f":"(Monthly!GD105/Monthly!GD104)-1","v":0},"--","--","--","--","--","--","--","--"]
["1966-12-01",null,null,null,{"$f":"(Monthly!E106/Monthly!E105)-1","v":{"$error":"#DIV/0!"}},{"$f":"(Monthly!F106/Monthly!F105)-1","v":{"$error":"#DIV/0!"}},{"$f":"(Monthly!G106/Monthly!G105)-1","v":{"$error":"#DIV/0!"}},{"$f":"(Monthly!H106/Monthly!H105)-1","v":{"$error":"#DIV/0!"}},null,null,null,null,null,null,null,null,null,null,null,null,null,null,null,"--",{"$f":"(Monthly!Y106/Monthly!Y105)-1","v":7.699119335073723E-3},null,null,null,null,null,null,null,null,null,null,null,null,null,{"$f":"(Monthly!AM106/Monthly!AM105)-1","v":2.3109516969581634E-3},"--","--","--",{"$f":"Monthly!AQ106-Monthly!AQ105","v":-1.3000000000000043},"--","--",{"$f":"Monthly!AT106-Monthly!AT105","v":-4.8999999999999986},"--","--",{"$f":"Monthly!AW106-Monthly!AW105","v":-1.8999999999999986},{"$f":"Monthly!AX106-Monthly!AX105","v":2},{"$f":"Monthly!AY106-Monthly!AY105","v":-4.3000000000000114},{"$f":"Monthly!AZ106-Monthly!AZ105","v":-0.10000000000000142},{"$f":"Monthly!BA106-Monthly!BA105","v":-4.7000000000000028},"--","--",null,null,null,null,null,null,null,null,null,"--","--",null,null,null,null,null,{"$f":"(Monthly!BT106/Monthly!BT105)-1","v":1.610559228944819E-3},null,null,null,{"$f":"(Monthly!BX106/Monthly!BX105)-1","v":3.0176899063475648E-2},{"$f":"(Monthly!BY106/Monthly!BY105)-1","v":9.5108695652172948E-3},"--","--",{"$f":"Monthly!CB106-Monthly!CB105","v":4.425271016739174E-4},{"$f":"Monthly!CC106-Monthly!CC105","v":0.14044252710167271},"--","--",null,"--","--",null,{"$f":"(Monthly!CJ106/Monthly!CJ105)-1","v":-3.4031413612565453E-2},{"$f":"(Monthly!CK106/Monthly!CK105)-1","v":1.5598190609888984E-3},{"$f":"(Monthly!CL106/Monthly!CL105)-1","v":-2.0926756352765419E-2},{"$f":"(Monthly!CM106/Monthly!CM105)-1","v":-1.9145802650957333E-2},{"$f":"(Monthly!CN106/Monthly!CN105)-1","v":-1.1205432937182458E-3},{"$f":"(Monthly!CO106/Monthly!CO105)-1","v":1.9794140934283888E-3},{"$f":"(Monthly!CP106/Monthly!CP105)-1","v":3.4582905318945034E-3},{"$f":"(Monthly!CQ106/Monthly!CQ105)-1","v":8.8146789734455666E-4},"--","--","--",null,null,null,null,null,{"$f":"(Monthly!CZ106/Monthly!CZ105)-1","v":1.2165450121655041E-3},{"$f":"(Monthly!DA106/Monthly!DA105)-1","v":2.9411764705882248E-3},null,null,null,null,null,"--","--",{"$f":"((Monthly!DI106-Monthly!DI105)*100)","v":-10.000000000000142},"--",{"$f":"((Monthly!DK106-Monthly!DK105)*100)","v":19.999999999999972},{"$f":"Monthly!DL106-Monthly!DL105","v":17},null,null,null,{"$f":"Monthly!DP106-Monthly!DP105","v":181},null,null,null,"--","--","--","--","--","--","--","--","--","--",null,null,null,null,null,null,null,null,null,null,null,null,null,{"$f":"(Monthly!EQ106/Monthly!EQ105)-1","v":0},"--",{"$f":"(Monthly!ES106/Monthly!ES105)-1","v":2.8409090909089496E-3},null,null,null,null,null,{"$f":"((Monthly!EY106-Monthly!EY105)*100)","v":0},{"$f":"((Monthly!EZ106-Monthly!EZ105)*100)","v":-35.999999999999943},{"$f":"((Monthly!FA106-Monthly!FA105)*100)","v":4.0000000000000036},{"$f":"((Monthly!FB106-Monthly!FB105)*100)","v":4.9999999999999822},"--","--",{"$f":"((Monthly!FE106-Monthly!FE105)*100)","v":-36.000000000000028},{"$f":"((Monthly!FF106-Monthly!FF105)*100)","v":-33.999999999999986},"--",{"$f":"((Monthly!FH106-Monthly!FH105)*100)","v":-36.000000000000028},{"$f":"((Monthly!FI106-Monthly!FI105)*100)","v":-32.000000000000028},null,null,null,null,null,null,"--","--","--","--","--","--","--","--","--",null,null,null,null,null,{"$f":"(Monthly!GD106/Monthly!GD105)-1","v":0},"--","--","--","--","--","--","--","--"]
["1967-01-01",null,null,null,{"$f":"(Monthly!E107/Monthly!E106)-1","v":{"$error":"#DIV/0!"}},{"$f":"(Monthly!F107/Monthly!F106)-1","v":{"$error":"#DIV/0!"}},{"$f":"(Monthly!G107/Monthly!G106)-1","v":{"$error":"#DIV/0!"}},{"$f":"(Monthly!H107/Monthly!H106)-1","v":{"$error":"#DIV/0!"}},null,null,null,null,null,null,null,null,null,null,null,null,null,null,null,"--",{"$f":"(Monthly!Y107/Monthly!Y106)-1","v":3.7732982171798657E-3},null,null,null,null,null,null,null,null,null,null,null,null,null,{"$f":"(Monthly!AM107/Monthly!AM106)-1","v":4.7161736037861779E-3},"--","--","--",{"$f":"Monthly!AQ107-Monthly!AQ106","v":-3.2999999999999972},"--","--",{"$f":"Monthly!AT107-Monthly!AT106","v":-2.4000000000000057},"--","--",{"$f":"Monthly!AW107-Monthly!AW106","v":-5.5},{"$f":"Monthly!AX107-Monthly!AX106","v":-2.5999999999999943},{"$f":"Monthly!AY107-Monthly!AY106","v":5.3000000000000114},{"$f":"Monthly!AZ107-Monthly!AZ106","v":0},{"$f":"Monthly!BA107-Monthly!BA106","v":-9.6999999999999957},"--","--",null,null,null,null,null,null,null,null,null,"--","--",null,null,null,null,null,{"$f":"(Monthly!BT107/Monthly!BT106)-1","v":3.3687798484574039E-3},null,null,null,{"$f":"(Monthly!BX107/Monthly!BX106)-1","v":7.7777777777777724E-2},{"$f":"(Monthly!BY107/Monthly!BY106)-1","v":0.33916554508748309},"--","--",{"$f":"Monthly!CB107-Monthly!CB106","v":-5.9999527269638975E-2},{"$f":"Monthly!CC107-Monthly!CC106","v":1.0000472730361309E-2},"--","--",null,"--","--",null,{"$f":"(Monthly!CJ107/Monthly!CJ106)-1","v":0.12737127371273704},{"$f":"(Monthly!CK107/Monthly!CK106)-1","v":9.6558168509577325E-3},{"$f":"(Monthly!CL107/Monthly!CL106)-1","v":5.4961832061068527E-2},{"$f":"(Monthly!CM107/Monthly!CM106)-1","v":0.15315315315315314},{"$f":"(Monthly!CN107/Monthly!CN106)-1","v":1.0572118162967215E-2},{"$f":"(Monthly!CO107/Monthly!CO106)-1","v":-1.5804030027657401E-3},{"$f":"(Monthly!CP107/Monthly!CP106)-1","v":4.0319015367202837E-3},{"$f":"(Monthly!CQ107/Monthly!CQ106)-1","v":8.3007713643623582E-4},"--","--","--",null,null,null,null,null,{"$f":"(Monthly!CZ107/Monthly!CZ106)-1","v":-6.0753341433783525E-4},{"$f":"(Monthly!DA107/Monthly!DA106)-1","v":2.9325513196480912E-3},null,null,null,null,null,"--","--",{"$f":"((Monthly!DI107-Monthly!DI106)*100)","v":0},"--",{"$f":"((Monthly!DK107-Monthly!DK106)*100)","v":10.000000000000009},{"$f":"Monthly!DL107-Monthly!DL106","v":35},null,null,null,{"$f":"Monthly!DP107-Monthly!DP106","v":207},null,null,null,"--","--","--","--","--","--","--","--","--","--",null,null,null,null,null,null,null,null,null,null,null,null,null,{"$f":"(Monthly!EQ107/Monthly!EQ106)-1","v":3.0030030030030463E-3},"--",{"$f":"(Monthly!ES107/Monthly!ES106)-1","v":2.8328611898016387E-3},null,null,null,null,null,{"$f":"((Monthly!EY107-Monthly!EY106)*100)","v":-4.0000000000000036},{"$f":"((Monthly!EZ107-Monthly!EZ106)*100)","v":-46},{"$f":"((Monthly!FA107-Monthly!FA106)*100)","v":-18.99999999999995},{"$f":"((Monthly!FB107-Monthly!FB106)*100)","v":-20.999999999999996},"--","--",{"$f":"((Monthly!FE107-Monthly!FE106)*100)","v":-24.000000000000021},{"$f":"((Monthly!FF107-Monthly!FF106)*100)","v":-45.000000000000014},"--",{"$f":"((Monthly!FH107-Monthly!FH106)*100)","v":-29.999999999999982},{"$f":"((Monthly!FI107-Monthly!FI106)*100)","v":-25.999999999999979},null,null,null,null,null,null,"--","--","--","--","--","--","--","--","--",null,null,null,null,null,{"$f":"(Monthly!GD107/Monthly!GD106)-1","v":0},"--","--","--","--","--","--","--","--"]
["1967-02-01",null,null,null,{"$f":"(Monthly!E108/Monthly!E107)-1","v":{"$error":"#DIV/0!"}},{"$f":"(Monthly!F108/Monthly!F107)-1","v":{"$error":"#DIV/0!"}},{"$f":"(Monthly!G108/Monthly!G107)-1","v":{"$error":"#DIV/0!"}},{"$f":"(Monthly!H108/Monthly!H107)-1","v":{"$error":"#DIV/0!"}},null,null,null,null,null,null,null,null,null,null,null,null,null,null,null,"--",{"$f":"(Monthly!Y108/Monthly!Y107)-1","v":3.5825112899563472E-3},null,null,null,null,null,null,null,null,null,null,null,null,null,{"$f":"(Monthly!AM108/Monthly!AM107)-1","v":-1.1342087471761575E-2},"--","--","--",{"$f":"Monthly!AQ108-Monthly!AQ107","v":-1.5},"--","--",{"$f":"Monthly!AT108-Monthly!AT107","v":-0.69999999999999574},"--","--",{"$f":"Monthly!AW108-Monthly!AW107","v":-2.9000000000000057},{"$f":"Monthly!AX108-Monthly!AX107","v":-1.1000000000000014},{"$f":"Monthly!AY108-Monthly!AY107","v":-11.100000000000009},{"$f":"Monthly!AZ108-Monthly!AZ107","v":-3.7000000000000028},{"$f":"Monthly!BA108-Monthly!BA107","v":1.6999999999999957},"--","--",null,null,null,null,null,null,null,null,null,"--","--",null,null,null,null,null,{"$f":"(Monthly!BT108/Monthly!BT107)-1","v":1.6025707906432984E-3},null,null,null,{"$f":"(Monthly!BX108/Monthly!BX107)-1","v":5.2483598875351367E-2},{"$f":"(Monthly!BY108/Monthly!BY107)-1","v":-8.8442211055276387E-2},"--","--",{"$f":"Monthly!CB108-Monthly!CB107","v":-0.43166769400212424},{"$f":"Monthly!CC108-Monthly!CC107","v":-0.50166769400212452},"--","--",null,"--","--",null,{"$f":"(Monthly!CJ108/Monthly!CJ107)-1","v":-1.9230769230769273E-2},{"$f":"(Monthly!CK108/Monthly!CK107)-1","v":2.159494061391376E-3},{"$f":"(Monthly!CL108/Monthly!CL107)-1","v":4.05209840810421E-2},{"$f":"(Monthly!CM108/Monthly!CM107)-1","v":-5.729166666666663E-2},{"$f":"(Monthly!CN108/Monthly!CN107)-1","v":1.6482777179762653E-3},{"$f":"(Monthly!CO108/Monthly!CO107)-1","v":7.9145231499810897E-4},{"$f":"(Monthly!CP108/Monthly!CP107)-1","v":1.6047186556371607E-3},{"$f":"(Monthly!CQ108/Monthly!CQ107)-1","v":7.8893069547270045E-4},"--","--","--",null,null,null,null,null,{"$f":"(Monthly!CZ108/Monthly!CZ107)-1","v":3.0395136778116338E-3},{"$f":"(Monthly!DA108/Monthly!DA107)-1","v":0},null,null,null,null,null,"--","--",{"$f":"((Monthly!DI108-Monthly!DI107)*100)","v":-20.000000000000284},"--",{"$f":"((Monthly!DK108-Monthly!DK107)*100)","v":-10.000000000000009},{"$f":"Monthly!DL108-Monthly!DL107","v":-55},null,null,null,{"$f":"Monthly!DP108-Monthly!DP107","v":21},null,null,null,{"$f":"(Monthly!DT108/Monthly!DT107)-1","v":9.5693779904306275E-2},"--","--","--","--","--","--","--","--","--",null,null,null,null,null,null,null,null,null,null,null,null,null,{"$f":"(Monthly!EQ108/Monthly!EQ107)-1","v":0},"--",{"$f":"(Monthly!ES108/Monthly!ES107)-1","v":2.8248587570622874E-3},null,null,null,null,null,{"$f":"((Monthly!EY108-Monthly!EY107)*100)","v":-20.999999999999996},{"$f":"((Monthly!EZ108-Monthly!EZ107)*100)","v":5.9999999999999609},{"$f":"((Monthly!FA108-Monthly!FA107)*100)","v":-16.999999999999993},{"$f":"((Monthly!FB108-Monthly!FB107)*100)","v":-14.999999999999947},"--","--",{"$f":"((Monthly!FE108-Monthly!FE107)*100)","v":-16.000000000000014},{"$f":"((Monthly!FF108-Monthly!FF107)*100)","v":-4.0000000000000036},"--",{"$f":"((Monthly!FH108-Monthly!FH107)*100)","v":4.0000000000000036},{"$f":"((Monthly!FI108-Monthly!FI107)*100)","v":4.9999999999999822},null,null,null,null,null,null,"--","--","--","--","--","--","--","--","--",null,null,null,null,null,{"$f":"(Monthly!GD108/Monthly!GD107)-1","v":1.0101010101009944E-2},"--","--","--","--","--","--","--","--"]
["1967-03-01",null,null,null,{"$f":"(Monthly!E109/Monthly!E108)-1","v":{"$error":"#DIV/0!"}},{"$f":"(Monthly!F109/Monthly!F108)-1","v":{"$error":"#DIV/0!"}},{"$f":"(Monthly!G109/Monthly!G108)-1","v":{"$error":"#DIV/0!"}},{"$f":"(Monthly!H109/Monthly!H108)-1","v":{"$error":"#DIV/0!"}},null,null,null,null,null,null,null,null,null,null,null,null,null,null,null,"--",{"$f":"(Monthly!Y109/Monthly!Y108)-1","v":7.1029940420823667E-3},null,null,null,null,null,null,null,null,null,null,null,null,null,{"$f":"(Monthly!AM109/Monthly!AM108)-1","v":-5.6346406700413798E-3},"--","--","--",{"$f":"Monthly!AQ109-Monthly!AQ108","v":-2.3000000000000043},"--","--",{"$f":"Monthly!AT109-Monthly!AT108","v":-1.3000000000000043},"--","--",{"$f":"Monthly!AW109-Monthly!AW108","v":0.30000000000000426},{"$f":"Monthly!AX109-Monthly!AX108","v":0.19999999999999574},{"$f":"Monthly!AY109-Monthly!AY108","v":-7.7999999999999972},{"$f":"Monthly!AZ109-Monthly!AZ108","v":-1.6999999999999957},{"$f":"Monthly!BA109-Monthly!BA108","v":-11.899999999999999},"--","--",null,null,null,null,null,null,null,null,null,"--","--",null,null,null,null,null,{"$f":"(Monthly!BT109/Monthly!BT108)-1","v":3.6166817361737991E-3},null,null,null,{"$f":"(Monthly!BX109/Monthly!BX108)-1","v":-5.9661620658949199E-2},{"$f":"(Monthly!BY109/Monthly!BY108)-1","v":5.2921719955898672E-2},"--","--",{"$f":"Monthly!CB109-Monthly!CB108","v":-0.31966386085751086},{"$f":"Monthly!CC109-Monthly!CC108","v":-0.31966386085751175},"--","--",null,"--","--",null,{"$f":"(Monthly!CJ109/Monthly!CJ108)-1","v":7.5980392156862697E-2},{"$f":"(Monthly!CK109/Monthly!CK108)-1","v":6.6184392796675429E-3},{"$f":"(Monthly!CL109/Monthly!CL108)-1","v":2.5034770514603677E-2},{"$f":"(Monthly!CM109/Monthly!CM108)-1","v":4.5580110497237536E-2},{"$f":"(Monthly!CN109/Monthly!CN108)-1","v":7.5225845451187823E-3},{"$f":"(Monthly!CO109/Monthly!CO108)-1","v":3.9541320680109848E-3},{"$f":"(Monthly!CP109/Monthly!CP108)-1","v":3.6106937494748692E-3},{"$f":"(Monthly!CQ109/Monthly!CQ108)-1","v":7.3272289935921719E-4},"--","--","--",null,null,null,null,null,{"$f":"(Monthly!CZ109/Monthly!CZ108)-1","v":0},{"$f":"(Monthly!DA109/Monthly!DA108)-1","v":2.9239766081869956E-3},null,null,null,null,null,"--",{"$f":"((Monthly!DH109-Monthly!DH108)*60)","v":0},{"$f":"((Monthly!DI109-Monthly!DI108)*100)","v":-19.999999999999574},"--",{"$f":"((Monthly!DK109-Monthly!DK108)*100)","v":0},{"$f":"Monthly!DL109-Monthly!DL108","v":-38},null,null,null,{"$f":"Monthly!DP109-Monthly!DP108","v":102},null,null,null,{"$f":"(Monthly!DT109/Monthly!DT108)-1","v":0.1371179039301309},"--","--","--","--","--","--","--","--","--",null,null,null,null,null,null,null,null,null,null,null,null,null,{"$f":"(Monthly!EQ109/Monthly!EQ108)-1","v":-2.9940119760479833E-3},"--",{"$f":"(Monthly!ES109/Monthly!ES108)-1","v":0},null,null,null,null,null,{"$f":"((Monthly!EY109-Monthly!EY108)*100)","v":-4.0000000000000036},{"$f":"((Monthly!EZ109-Monthly!EZ108)*100)","v":-46.999999999999972},{"$f":"((Monthly!FA109-Monthly!FA108)*100)","v":9.9999999999999645},{"$f":"((Monthly!FB109-Monthly!FB108)*100)","v":2.9999999999999361},"--","--",{"$f":"((Monthly!FE109-Monthly!FE108)*100)","v":-29.999999999999982},{"$f":"((Monthly!FF109-Monthly!FF108)*100)","v":-36.000000000000028},"--",{"$f":"((Monthly!FH109-Monthly!FH108)*100)","v":-20.000000000000018},{"$f":"((Monthly!FI109-Monthly!FI108)*100)","v":-8.9999999999999858},null,null,null,null,null,null,"--","--","--","--","--","--","--","--","--",null,null,null,null,null,{"$f":"(Monthly!GD109/Monthly!GD108)-1","v":0},"--","--","--","--","--","--","--","--"]
["1967-04-01",null,null,null,{"$f":"(Monthly!E110/Monthly!E109)-1","v":{"$error":"#DIV/0!"}},{"$f":"(Monthly!F110/Monthly!F109)-1","v":{"$error":"#DIV/0!"}},{"$f":"(Monthly!G110/Monthly!G109)-1","v":{"$error":"#DIV/0!"}},{"$f":"(Monthly!H110/Monthly!H109)-1","v":{"$error":"#DIV/0!"}},null,null,null,null,null,null,null,null,null,null,null,null,null,null,null,"--",{"$f":"(Monthly!Y110/Monthly!Y109)-1","v":1.3253356397842975E-2},null,null,null,null,null,null,null,null,null,null,null,null,null,{"$f":"(Monthly!AM110/Monthly!AM109)-1","v":9.4293733506283228E-3},"--","--","--",{"$f":"Monthly!AQ110-Monthly!AQ109","v":-2.5},"--","--",{"$f":"Monthly!AT110-Monthly!AT109","v":-4.5},"--","--",{"$f":"Monthly!AW110-Monthly!AW109","v":-6.2000000000000028},{"$f":"Monthly!AX110-Monthly!AX109","v":1.1000000000000014},{"$f":"Monthly!AY110-Monthly!AY109","v":2.2999999999999972},{"$f":"Monthly!AZ110-Monthly!AZ109","v":-4.4000000000000057},{"$f":"Monthly!BA110-Monthly!BA109","v":-1.1000000000000014},"--","--",null,null,null,null,null,null,null,null,null,"--","--",null,null,null,null,null,{"$f":"(Monthly!BT110/Monthly!BT109)-1","v":4.1931854508918676E-3},null,null,null,{"$f":"(Monthly!BX110/Monthly!BX109)-1","v":3.3143939393939448E-2},{"$f":"(Monthly!BY110/Monthly!BY109)-1","v":8.3769633507853491E-2},"--","--",{"$f":"Monthly!CB110-Monthly!CB109","v":-7.8939484605911048E-3},{"$f":"Monthly!CC110-Monthly!CC109","v":-7.8939484605911048E-3},"--","--",null,"--","--",null,{"$f":"(Monthly!CJ110/Monthly!CJ109)-1","v":9.1116173120728838E-2},{"$f":"(Monthly!CK110/Monthly!CK109)-1","v":7.6452599388376896E-4},{"$f":"(Monthly!CL110/Monthly!CL109)-1","v":-7.0556309362279523E-2},{"$f":"(Monthly!CM110/Monthly!CM109)-1","v":-2.6420079260237594E-3},{"$f":"(Monthly!CN110/Monthly!CN109)-1","v":-3.3332222259252475E-4},{"$f":"(Monthly!CO110/Monthly!CO109)-1","v":4.7262701851122912E-3},{"$f":"(Monthly!CP110/Monthly!CP109)-1","v":1.4961229293248834E-3},{"$f":"(Monthly!CQ110/Monthly!CQ109)-1","v":8.5337588430434153E-4},"--","--","--",null,null,null,null,null,{"$f":"(Monthly!CZ110/Monthly!CZ109)-1","v":3.0303030303031608E-3},{"$f":"(Monthly!DA110/Monthly!DA109)-1","v":2.9154518950438302E-3},null,null,null,null,null,"--",{"$f":"((Monthly!DH110-Monthly!DH109)*60)","v":-6.0000000000000853},{"$f":"((Monthly!DI110-Monthly!DI109)*100)","v":29.999999999999716},"--",{"$f":"((Monthly!DK110-Monthly!DK109)*100)","v":0},{"$f":"Monthly!DL110-Monthly!DL109","v":-62},null,null,null,{"$f":"Monthly!DP110-Monthly!DP109","v":-63},null,null,null,{"$f":"(Monthly!DT110/Monthly!DT109)-1","v":1.3824884792626779E-2},"--","--","--","--","--","--","--","--","--",null,null,null,null,null,null,null,null,null,null,null,null,null,{"$f":"(Monthly!EQ110/Monthly!EQ109)-1","v":-6.0060060060058706E-3},"--",{"$f":"(Monthly!ES110/Monthly!ES109)-1","v":2.8169014084507005E-3},null,null,null,null,null,{"$f":"((Monthly!EY110-Monthly!EY109)*100)","v":-20.999999999999996},{"$f":"((Monthly!EZ110-Monthly!EZ109)*100)","v":-48.000000000000043},{"$f":"((Monthly!FA110-Monthly!FA109)*100)","v":-1.9999999999999574},{"$f":"((Monthly!FB110-Monthly!FB109)*100)","v":-1.9999999999999574},"--","--",{"$f":"((Monthly!FE110-Monthly!FE109)*100)","v":-41.999999999999993},{"$f":"((Monthly!FF110-Monthly!FF109)*100)","v":-23.999999999999932},"--",{"$f":"((Monthly!FH110-Monthly!FH109)*100)","v":-3.0000000000000249},{"$f":"((Monthly!FI110-Monthly!FI109)*100)","v":4.9999999999999822},null,null,null,null,null,null,"--","--","--","--","--","--","--","--","--",null,null,null,null,null,{"$f":"(Monthly!GD110/Monthly!GD109)-1","v":0},"--","--","--","--","--","--","--","--"]
["1967-05-01",null,null,null,{"$f":"(Monthly!E111/Monthly!E110)-1","v":{"$error":"#DIV/0!"}},{"$f":"(Monthly!F111/Monthly!F110)-1","v":{"$error":"#DIV/0!"}},{"$f":"(Monthly!G111/Monthly!G110)-1","v":{"$error":"#DIV/0!"}},{"$f":"(Monthly!H111/Monthly!H110)-1","v":{"$error":"#DIV/0!"}},null,null,null,null,null,null,null,null,null,null,null,null,null,null,null,"--",{"$f":"(Monthly!Y111/Monthly!Y110)-1","v":5.138880335037177E-3},null,null,null,null,null,null,null,null,null,null,null,null,null,{"$f":"(Monthly!AM111/Monthly!AM110)-1","v":-8.7237077142500175E-3},"--","--","--",{"$f":"Monthly!AQ111-Monthly!AQ110","v":1.7000000000000028},"--","--",{"$f":"Monthly!AT111-Monthly!AT110","v":3.7000000000000028},"--","--",{"$f":"Monthly!AW111-Monthly!AW110","v":0.30000000000000426},{"$f":"Monthly!AX111-Monthly!AX110","v":1.2000000000000028},{"$f":"Monthly!AY111-Monthly!AY110","v":-0.19999999999999574},{"$f":"Monthly!AZ111-Monthly!AZ110","v":3.7000000000000028},{"$f":"Monthly!BA111-Monthly!BA110","v":-2.5},"--","--",null,null,null,null,null,null,null,null,null,"--","--",null,null,null,null,null,{"$f":"(Monthly!BT111/Monthly!BT110)-1","v":5.6061551945822963E-3},null,null,null,{"$f":"(Monthly!BX111/Monthly!BX110)-1","v":0.19523373052245652},{"$f":"(Monthly!BY111/Monthly!BY110)-1","v":3.9613526570048352E-2},"--","--",{"$f":"Monthly!CB111-Monthly!CB110","v":-0.22188003347831664},{"$f":"Monthly!CC111-Monthly!CC110","v":-0.22188003347831575},"--","--",null,"--","--",null,{"$f":"(Monthly!CJ111/Monthly!CJ110)-1","v":5.0104384133611735E-2},{"$f":"(Monthly!CK111/Monthly!CK110)-1","v":3.6669213139801649E-3},{"$f":"(Monthly!CL111/Monthly!CL110)-1","v":1.8978102189781021E-2},{"$f":"(Monthly!CM111/Monthly!CM110)-1","v":0.12847682119205306},{"$f":"(Monthly!CN111/Monthly!CN110)-1","v":2.0006001800541018E-3},{"$f":"(Monthly!CO111/Monthly!CO110)-1","v":6.2720501764013115E-3},{"$f":"(Monthly!CP111/Monthly!CP110)-1","v":2.5805285272324507E-3},{"$f":"(Monthly!CQ111/Monthly!CQ110)-1","v":7.9210518349603909E-4},"--","--","--",null,null,null,null,null,{"$f":"(Monthly!CZ111/Monthly!CZ110)-1","v":0},{"$f":"(Monthly!DA111/Monthly!DA110)-1","v":2.9069767441860517E-3},null,null,null,null,null,"--",{"$f":"((Monthly!DH111-Monthly!DH110)*60)","v":0},{"$f":"((Monthly!DI111-Monthly!DI110)*100)","v":-10.000000000000142},"--",{"$f":"((Monthly!DK111-Monthly!DK110)*100)","v":0},{"$f":"Monthly!DL111-Monthly!DL110","v":-46},null,null,null,{"$f":"Monthly!DP111-Monthly!DP110","v":152},null,null,null,{"$f":"(Monthly!DT111/Monthly!DT110)-1","v":-9.7727272727272774E-2},"--","--","--","--","--","--","--","--","--",null,null,null,null,null,null,null,null,null,null,null,null,null,{"$f":"(Monthly!EQ111/Monthly!EQ110)-1","v":6.0422960725075026E-3},"--",{"$f":"(Monthly!ES111/Monthly!ES110)-1","v":2.8089887640450062E-3},null,null,null,null,null,{"$f":"((Monthly!EY111-Monthly!EY110)*100)","v":0},{"$f":"((Monthly!EZ111-Monthly!EZ110)*100)","v":-10.999999999999988},{"$f":"((Monthly!FA111-Monthly!FA110)*100)","v":12.999999999999989},{"$f":"((Monthly!FB111-Monthly!FB110)*100)","v":12.999999999999989},"--","--",{"$f":"((Monthly!FE111-Monthly!FE110)*100)","v":-23.999999999999979},{"$f":"((Monthly!FF111-Monthly!FF110)*100)","v":4.0000000000000036},"--",{"$f":"((Monthly!FH111-Monthly!FH110)*100)","v":24.000000000000021},{"$f":"((Monthly!FI111-Monthly!FI110)*100)","v":25.999999999999979},null,null,null,null,null,null,"--","--","--","--","--","--","--","--","--",null,null,null,null,null,{"$f":"(Monthly!GD111/Monthly!GD110)-1","v":0},"--","--","--","--","--","--","--","--"]
["1967-06-01",null,null,null,{"$f":"(Monthly!E112/Monthly!E111)-1","v":{"$error":"#DIV/0!"}},{"$f":"(Monthly!F112/Monthly!F111)-1","v":{"$error":"#DIV/0!"}},{"$f":"(Monthly!G112/Monthly!G111)-1","v":{"$error":"#DIV/0!"}},{"$f":"(Monthly!H112/Monthly!H111)-1","v":{"$error":"#DIV/0!"}},null,null,null,null,null,null,null,null,null,null,null,null,null,null,null,"--",{"$f":"(Monthly!Y112/Monthly!Y111)-1","v":1.3366061209133973E-2},null,null,null,null,null,null,null,null,null,null,null,null,null,{"$f":"(Monthly!AM112/Monthly!AM111)-1","v":-1.2572115048825605E-4},"--","--","--",{"$f":"Monthly!AQ112-Monthly!AQ111","v":2.2999999999999972},"--","--",{"$f":"Monthly!AT112-Monthly!AT111","v":0.29999999999999716},"--","--",{"$f":"Monthly!AW112-Monthly!AW111","v":-0.10000000000000142},{"$f":"Monthly!AX112-Monthly!AX111","v":4.1999999999999957},{"$f":"Monthly!AY112-Monthly!AY111","v":2.2999999999999972},{"$f":"Monthly!AZ112-Monthly!AZ111","v":2.7000000000000028},{"$f":"Monthly!BA112-Monthly!BA111","v":2.1000000000000014},"--","--",null,null,null,null,null,null,null,null,null,"--","--",null,null,null,null,null,{"$f":"(Monthly!BT112/Monthly!BT111)-1","v":6.9480703687410106E-3},null,null,null,{"$f":"(Monthly!BX112/Monthly!BX111)-1","v":-4.2944785276073594E-2},{"$f":"(Monthly!BY112/Monthly!BY111)-1","v":8.6431226765799174E-2},"--","--",{"$f":"Monthly!CB112-Monthly!CB111","v":0.62286745591614334},{"$f":"Monthly!CC112-Monthly!CC111","v":0.69286745591614185},"--","--",null,"--","--",null,{"$f":"(Monthly!CJ112/Monthly!CJ111)-1","v":-7.9522862823061535E-3},{"$f":"(Monthly!CK112/Monthly!CK111)-1","v":7.1548180849445586E-3},{"$f":"(Monthly!CL112/Monthly!CL111)-1","v":-8.5959885386818202E-3},{"$f":"(Monthly!CM112/Monthly!CM111)-1","v":8.215962441314506E-3},{"$f":"(Monthly!CN112/Monthly!CN111)-1","v":3.6604439120162535E-3},{"$f":"(Monthly!CO112/Monthly!CO111)-1","v":6.2329567588625956E-3},{"$f":"(Monthly!CP112/Monthly!CP111)-1","v":5.7158700705952636E-3},{"$f":"(Monthly!CQ112/Monthly!CQ111)-1","v":8.7717971597522926E-4},"--","--","--",null,null,null,null,null,{"$f":"(Monthly!CZ112/Monthly!CZ111)-1","v":6.0422960725075026E-3},{"$f":"(Monthly!DA112/Monthly!DA111)-1","v":2.8985507246377384E-3},null,null,null,null,null,"--",{"$f":"((Monthly!DH112-Monthly!DH111)*60)","v":0},{"$f":"((Monthly!DI112-Monthly!DI111)*100)","v":30.000000000000426},"--",{"$f":"((Monthly!DK112-Monthly!DK111)*100)","v":10.000000000000009},{"$f":"Monthly!DL112-Monthly!DL111","v":-20},null,null,null,{"$f":"Monthly!DP112-Monthly!DP111","v":131},null,null,null,{"$f":"(Monthly!DT112/Monthly!DT111)-1","v":-6.6960537363560002E-2},"--","--","--","--","--","--","--","--","--",null,null,null,null,null,null,null,null,null,null,null,null,null,{"$f":"(Monthly!EQ112/Monthly!EQ111)-1","v":6.0060060060060927E-3},"--",{"$f":"(Monthly!ES112/Monthly!ES111)-1","v":0},null,null,null,null,null,{"$f":"((Monthly!EY112-Monthly!EY111)*100)","v":0},{"$f":"((Monthly!EZ112-Monthly!EZ111)*100)","v":4.0000000000000036},{"$f":"((Monthly!FA112-Monthly!FA111)*100)","v":20.000000000000018},{"$f":"((Monthly!FB112-Monthly!FB111)*100)","v":19.000000000000039},"--","--",{"$f":"((Monthly!FE112-Monthly!FE111)*100)","v":-6.0000000000000053},{"$f":"((Monthly!FF112-Monthly!FF111)*100)","v":33.000000000000007},"--",{"$f":"((Monthly!FH112-Monthly!FH111)*100)","v":25.999999999999979},{"$f":"((Monthly!FI112-Monthly!FI111)*100)","v":16.999999999999993},null,null,null,null,null,null,"--","--","--","--","--","--","--","--","--",null,null,null,null,null,{"$f":"(Monthly!GD112/Monthly!GD111)-1","v":0},"--","--","--","--","--","--","--","--"]
["1967-07-01",null,null,null,{"$f":"(Monthly!E113/Monthly!E112)-1","v":{"$error":"#DIV/0!"}},{"$f":"(Monthly!F113/Monthly!F112)-1","v":{"$error":"#DIV/0!"}},{"$f":"(Monthly!G113/Monthly!G112)-1","v":{"$error":"#DIV/0!"}},{"$f":"(Monthly!H113/Monthly!H112)-1","v":{"$error":"#DIV/0!"}},null,null,null,null,null,null,null,null,null,null,null,null,null,null,null,"--",{"$f":"(Monthly!Y113/Monthly!Y112)-1","v":1.2603258562706277E-2},null,null,null,null,null,null,null,null,null,null,null,null,null,{"$f":"(Monthly!AM113/Monthly!AM112)-1","v":-2.2772360222413912E-3},"--","--","--",{"$f":"Monthly!AQ113-Monthly!AQ112","v":2.7000000000000028},"--","--",{"$f":"Monthly!AT113-Monthly!AT112","v":4.4000000000000057},"--","--",{"$f":"Monthly!AW113-Monthly!AW112","v":-1.5},{"$f":"Monthly!AX113-Monthly!AX112","v":1.9000000000000057},{"$f":"Monthly!AY113-Monthly!AY112","v":5.5},{"$f":"Monthly!AZ113-Monthly!AZ112","v":2.6999999999999957},{"$f":"Monthly!BA113-Monthly!BA112","v":4.3999999999999986},"--","--",null,null,null,null,null,null,null,null,null,"--","--",null,null,null,null,null,{"$f":"(Monthly!BT113/Monthly!BT112)-1","v":7.8412398998868316E-3},null,null,null,{"$f":"(Monthly!BX113/Monthly!BX112)-1","v":9.2948717948717841E-2},{"$f":"(Monthly!BY113/Monthly!BY112)-1","v":6.8434559452523747E-3},"--","--",{"$f":"Monthly!CB113-Monthly!CB112","v":-1.3679143377321346E-2},{"$f":"Monthly!CC113-Monthly!CC112","v":-8.3679143377320742E-2},"--","--",null,"--","--",null,{"$f":"(Monthly!CJ113/Monthly!CJ112)-1","v":3.2064128256513058E-2},{"$f":"(Monthly!CK113/Monthly!CK112)-1","v":8.9177750906892506E-3},{"$f":"(Monthly!CL113/Monthly!CL112)-1","v":7.225433526011571E-2},{"$f":"(Monthly!CM113/Monthly!CM112)-1","v":1.8626309662398199E-2},{"$f":"(Monthly!CN113/Monthly!CN112)-1","v":4.3433573157387606E-3},{"$f":"(Monthly!CO113/Monthly!CO112)-1","v":4.6457607433216808E-3},{"$f":"(Monthly!CP113/Monthly!CP112)-1","v":3.4055966300692297E-3},{"$f":"(Monthly!CQ113/Monthly!CQ112)-1","v":8.8144779058807465E-4},"--","--","--",null,null,null,null,null,{"$f":"(Monthly!CZ113/Monthly!CZ112)-1","v":3.0030030030030463E-3},{"$f":"(Monthly!DA113/Monthly!DA112)-1","v":2.8901734104047616E-3},null,null,null,null,null,"--",{"$f":"((Monthly!DH113-Monthly!DH112)*60)","v":0},{"$f":"((Monthly!DI113-Monthly!DI112)*100)","v":0},"--",{"$f":"((Monthly!DK113-Monthly!DK112)*100)","v":-10.000000000000009},{"$f":"Monthly!DL113-Monthly!DL112","v":-28},null,null,null,{"$f":"Monthly!DP113-Monthly!DP112","v":137},null,null,null,{"$f":"(Monthly!DT113/Monthly!DT112)-1","v":3.5770528683914504E-2},"--","--","--","--","--","--","--","--","--",null,null,null,null,null,null,null,null,null,null,null,null,null,{"$f":"(Monthly!EQ113/Monthly!EQ112)-1","v":0},"--",{"$f":"(Monthly!ES113/Monthly!ES112)-1","v":2.8011204481790397E-3},null,null,null,null,null,{"$f":"((Monthly!EY113-Monthly!EY112)*100)","v":0},{"$f":"((Monthly!EZ113-Monthly!EZ112)*100)","v":-18.999999999999993},{"$f":"((Monthly!FA113-Monthly!FA112)*100)","v":13.999999999999968},{"$f":"((Monthly!FB113-Monthly!FB112)*100)","v":10.999999999999943},"--","--",{"$f":"((Monthly!FE113-Monthly!FE112)*100)","v":67},{"$f":"((Monthly!FF113-Monthly!FF112)*100)","v":52.999999999999936},"--",{"$f":"((Monthly!FH113-Monthly!FH112)*100)","v":22.000000000000064},{"$f":"((Monthly!FI113-Monthly!FI112)*100)","v":14.000000000000057},null,null,null,null,null,null,"--","--","--","--","--","--","--","--","--",null,null,null,null,null,{"$f":"(Monthly!GD113/Monthly!GD112)-1","v":0},"--","--","--","--","--","--","--","--"]
["1967-08-01",null,null,null,{"$f":"(Monthly!E114/Monthly!E113)-1","v":{"$error":"#DIV/0!"}},{"$f":"(Monthly!F114/Monthly!F113)-1","v":{"$error":"#DIV/0!"}},{"$f":"(Monthly!G114/Monthly!G113)-1","v":{"$error":"#DIV/0!"}},{"$f":"(Monthly!H114/Monthly!H113)-1","v":{"$error":"#DIV/0!"}},null,null,null,null,null,null,null,null,null,null,null,null,null,null,null,"--",{"$f":"(Monthly!Y114/Monthly!Y113)-1","v":-2.6607718865805374E-3},null,null,null,null,null,null,null,null,null,null,null,null,null,{"$f":"(Monthly!AM114/Monthly!AM113)-1","v":1.9158440103619556E-2},"--","--","--",{"$f":"Monthly!AQ114-Monthly!AQ113","v":2.7000000000000028},"--","--",{"$f":"Monthly!AT114-Monthly!AT113","v":2.6999999999999957},"--","--",{"$f":"Monthly!AW114-Monthly!AW113","v":3.6000000000000014},{"$f":"Monthly!AX114-Monthly!AX113","v":1.6999999999999957},{"$f":"Monthly!AY114-Monthly!AY113","v":3.6000000000000014},{"$f":"Monthly!AZ114-Monthly!AZ113","v":3},{"$f":"Monthly!BA114-Monthly!BA113","v":3.8999999999999986},"--","--",null,null,null,null,null,null,null,null,null,"--","--",null,null,null,null,null,{"$f":"(Monthly!BT114/Monthly!BT113)-1","v":8.1954760809987981E-3},null,null,null,{"$f":"(Monthly!BX114/Monthly!BX113)-1","v":3.1524926686216981E-2},{"$f":"(Monthly!BY114/Monthly!BY113)-1","v":4.4180118946474112E-2},"--","--",{"$f":"Monthly!CB114-Monthly!CB113","v":-0.32421182783264335},{"$f":"Monthly!CC114-Monthly!CC113","v":-0.32421182783264157},"--","--",null,"--","--",null,{"$f":"(Monthly!CJ114/Monthly!CJ113)-1","v":-2.1359223300970842E-2},{"$f":"(Monthly!CK114/Monthly!CK113)-1","v":7.3408239700374356E-3},{"$f":"(Monthly!CL114/Monthly!CL113)-1","v":8.0862533692722671E-3},{"$f":"(Monthly!CM114/Monthly!CM113)-1","v":3.2000000000000028E-2},{"$f":"(Monthly!CN114/Monthly!CN113)-1","v":3.169153571900285E-3},{"$f":"(Monthly!CO114/Monthly!CO113)-1","v":5.0096339113681054E-3},{"$f":"(Monthly!CP114/Monthly!CP113)-1","v":5.6026122467800477E-3},{"$f":"(Monthly!CQ114/Monthly!CQ113)-1","v":1.001449333709159E-3},"--","--","--",null,null,null,null,null,{"$f":"(Monthly!CZ114/Monthly!CZ113)-1","v":2.9940119760478723E-3},{"$f":"(Monthly!DA114/Monthly!DA113)-1","v":5.7636887608067955E-3},null,null,null,null,null,"--",{"$f":"((Monthly!DH114-Monthly!DH113)*60)","v":0},{"$f":"((Monthly!DI114-Monthly!DI113)*100)","v":10.000000000000142},"--",{"$f":"((Monthly!DK114-Monthly!DK113)*100)","v":0},{"$f":"Monthly!DL114-Monthly!DL113","v":121},null,null,null,{"$f":"Monthly!DP114-Monthly!DP113","v":255},null,null,null,{"$f":"(Monthly!DT114/Monthly!DT113)-1","v":-7.9061685490877442E-2},{"$f":"Monthly!DU114-Monthly!DU113","v":{"$error":"#VALUE!"}},"--","--","--","--","--","--","--","--",null,null,null,null,null,null,null,null,null,null,null,null,null,{"$f":"(Monthly!EQ114/Monthly!EQ113)-1","v":-2.9850746268657025E-3},"--",{"$f":"(Monthly!ES114/Monthly!ES113)-1","v":2.7932960893854997E-3},null,null,null,null,null,{"$f":"((Monthly!EY114-Monthly!EY113)*100)","v":0},{"$f":"((Monthly!EZ114-Monthly!EZ113)*100)","v":10.999999999999988},{"$f":"((Monthly!FA114-Monthly!FA113)*100)","v":4.0000000000000036},{"$f":"((Monthly!FB114-Monthly!FB113)*100)","v":7.0000000000000284},"--","--",{"$f":"((Monthly!FE114-Monthly!FE113)*100)","v":5.9999999999999609},{"$f":"((Monthly!FF114-Monthly!FF113)*100)","v":12.000000000000011},"--",{"$f":"((Monthly!FH114-Monthly!FH113)*100)","v":7.9999999999999183},{"$f":"((Monthly!FI114-Monthly!FI113)*100)","v":12.000000000000011},null,null,null,null,null,null,"--","--","--","--","--","--","--","--","--",null,null,null,null,null,{"$f":"(Monthly!GD114/Monthly!GD113)-1","v":2.3333333333333206E-2},"--","--","--","--","--","--","--","--"]
["1967-09-01",null,null,null,{"$f":"(Monthly!E115/Monthly!E114)-1","v":{"$error":"#DIV/0!"}},{"$f":"(Monthly!F115/Monthly!F114)-1","v":{"$error":"#DIV/0!"}},{"$f":"(Monthly!G115/Monthly!G114)-1","v":{"$error":"#DIV/0!"}},{"$f":"(Monthly!H115/Monthly!H114)-1","v":{"$error":"#DIV/0!"}},null,null,null,null,null,null,null,null,null,null,null,null,null,null,null,"--",{"$f":"(Monthly!Y115/Monthly!Y114)-1","v":2.684634478993031E-3},null,null,null,null,null,null,null,null,null,null,null,null,null,{"$f":"(Monthly!AM115/Monthly!AM114)-1","v":-1.621253256245847E-3},"--","--","--",{"$f":"Monthly!AQ115-Monthly!AQ114","v":2.6999999999999957},"--","--",{"$f":"Monthly!AT115-Monthly!AT114","v":-1.2999999999999972},"--","--",{"$f":"Monthly!AW115-Monthly!AW114","v":5.0999999999999943},{"$f":"Monthly!AX115-Monthly!AX114","v":6.6000000000000014},{"$f":"Monthly!AY115-Monthly!AY114","v":7.7000000000000028},{"$f":"Monthly!AZ115-Monthly!AZ114","v":1},{"$f":"Monthly!BA115-Monthly!BA114","v":1.7000000000000028},"--","--",null,null,null,null,null,null,null,null,null,"--","--",null,null,null,null,null,{"$f":"(Monthly!BT115/Monthly!BT114)-1","v":8.1931477318160084E-3},null,null,null,{"$f":"(Monthly!BX115/Monthly!BX114)-1","v":9.9502487562188602E-3},{"$f":"(Monthly!BY115/Monthly!BY114)-1","v":4.0683482506102431E-2},"--","--",{"$f":"Monthly!CB115-Monthly!CB114","v":-7.949218521674517E-3},{"$f":"Monthly!CC115-Monthly!CC114","v":-7.9492185216754052E-3},"--","--",null,"--","--",null,{"$f":"(Monthly!CJ115/Monthly!CJ114)-1","v":5.3571428571428603E-2},{"$f":"(Monthly!CK115/Monthly!CK114)-1","v":3.5693039857227493E-3},{"$f":"(Monthly!CL115/Monthly!CL114)-1","v":-5.7486631016042788E-2},{"$f":"(Monthly!CM115/Monthly!CM114)-1","v":9.966777408637828E-3},{"$f":"(Monthly!CN115/Monthly!CN114)-1","v":-4.6070817427934507E-4},{"$f":"(Monthly!CO115/Monthly!CO114)-1","v":4.6012269938648931E-3},{"$f":"(Monthly!CP115/Monthly!CP114)-1","v":4.7268992859019754E-3},{"$f":"(Monthly!CQ115/Monthly!CQ114)-1","v":1.0155295584457491E-3},"--","--","--",null,null,null,null,null,{"$f":"(Monthly!CZ115/Monthly!CZ114)-1","v":2.9850746268658135E-3},{"$f":"(Monthly!DA115/Monthly!DA114)-1","v":2.8653295128939771E-3},null,null,null,null,null,"--",{"$f":"((Monthly!DH115-Monthly!DH114)*60)","v":0},{"$f":"((Monthly!DI115-Monthly!DI114)*100)","v":0},"--",{"$f":"((Monthly!DK115-Monthly!DK114)*100)","v":0},{"$f":"Monthly!DL115-Monthly!DL114","v":-111},null,null,null,{"$f":"Monthly!DP115-Monthly!DP114","v":22},null,null,null,{"$f":"(Monthly!DT115/Monthly!DT114)-1","v":1.8867924528301883E-2},{"$f":"Monthly!DU115-Monthly!DU114","v":{"$error":"#VALUE!"}},"--","--","--","--","--","--","--","--",null,null,null,null,null,null,null,null,null,null,null,null,null,{"$f":"(Monthly!EQ115/Monthly!EQ114)-1","v":0},"--",{"$f":"(Monthly!ES115/Monthly!ES114)-1","v":0},null,null,null,null,null,{"$f":"((Monthly!EY115-Monthly!EY114)*100)","v":0},{"$f":"((Monthly!EZ115-Monthly!EZ114)*100)","v":9.0000000000000302},{"$f":"((Monthly!FA115-Monthly!FA114)*100)","v":3.0000000000000249},{"$f":"((Monthly!FB115-Monthly!FB114)*100)","v":7.0000000000000284},"--","--",{"$f":"((Monthly!FE115-Monthly!FE114)*100)","v":15.000000000000036},{"$f":"((Monthly!FF115-Monthly!FF114)*100)","v":11.000000000000032},"--",{"$f":"((Monthly!FH115-Monthly!FH114)*100)","v":9.0000000000000746},{"$f":"((Monthly!FI115-Monthly!FI114)*100)","v":1.9999999999999574},null,null,null,null,null,null,"--","--","--","--","--","--","--","--","--",null,null,null,null,null,{"$f":"(Monthly!GD115/Monthly!GD114)-1","v":0},"--","--","--","--","--","--","--","--"]
["1967-10-01",null,null,null,{"$f":"(Monthly!E116/Monthly!E115)-1","v":{"$error":"#DIV/0!"}},{"$f":"(Monthly!F116/Monthly!F115)-1","v":{"$error":"#DIV/0!"}},{"$f":"(Monthly!G116/Monthly!G115)-1","v":{"$error":"#DIV/0!"}},{"$f":"(Monthly!H116/Monthly!H115)-1","v":{"$error":"#DIV/0!"}},null,null,null,null,null,null,null,null,null,null,null,null,null,null,null,"--",{"$f":"(Monthly!Y116/Monthly!Y115)-1","v":4.3923498116111848E-3},null,null,null,null,null,null,null,null,null,null,null,null,null,{"$f":"(Monthly!AM116/Monthly!AM115)-1","v":8.1442010756180849E-3},"--","--","--",{"$f":"Monthly!AQ116-Monthly!AQ115","v":-0.79999999999999716},"--","--",{"$f":"Monthly!AT116-Monthly!AT115","v":0.79999999999999716},"--","--",{"$f":"Monthly!AW116-Monthly!AW115","v":1.2000000000000028},{"$f":"Monthly!AX116-Monthly!AX115","v":-6.2000000000000028},{"$f":"Monthly!AY116-Monthly!AY115","v":3.5},{"$f":"Monthly!AZ116-Monthly!AZ115","v":0.30000000000000426},{"$f":"Monthly!BA116-Monthly!BA115","v":4.6000000000000014},"--","--",null,null,null,null,null,null,null,null,null,"--","--",null,null,null,null,null,{"$f":"(Monthly!BT116/Monthly!BT115)-1","v":6.9787230650584231E-3},null,null,null,{"$f":"(Monthly!BX116/Monthly!BX115)-1","v":4.9261083743842304E-2},{"$f":"(Monthly!BY116/Monthly!BY115)-1","v":7.8186082877240715E-4},"--","--",{"$f":"Monthly!CB116-Monthly!CB115","v":0.19209917854694503},{"$f":"Monthly!CC116-Monthly!CC115","v":0.33209917854694559},"--","--",null,"--","--",null,{"$f":"(Monthly!CJ116/Monthly!CJ115)-1","v":6.5913370998116783E-2},{"$f":"(Monthly!CK116/Monthly!CK115)-1","v":2.5192649673977385E-3},{"$f":"(Monthly!CL116/Monthly!CL115)-1","v":7.0921985815602939E-2},{"$f":"(Monthly!CM116/Monthly!CM115)-1","v":-2.1929824561403022E-3},{"$f":"(Monthly!CN116/Monthly!CN115)-1","v":-1.9753736748528983E-4},{"$f":"(Monthly!CO116/Monthly!CO115)-1","v":2.2900763358779663E-3},{"$f":"(Monthly!CP116/Monthly!CP115)-1","v":2.5520027611833918E-3},{"$f":"(Monthly!CQ116/Monthly!CQ115)-1","v":9.9441020927804047E-4},"--","--","--",null,null,null,null,null,{"$f":"(Monthly!CZ116/Monthly!CZ115)-1","v":2.9761904761904656E-3},{"$f":"(Monthly!DA116/Monthly!DA115)-1","v":2.8571428571428914E-3},null,null,null,null,null,"--",{"$f":"((Monthly!DH116-Monthly!DH115)*60)","v":0},{"$f":"((Monthly!DI116-Monthly!DI115)*100)","v":19.999999999999574},"--",{"$f":"((Monthly!DK116-Monthly!DK115)*100)","v":20.000000000000018},{"$f":"Monthly!DL116-Monthly!DL115","v":6},null,null,null,{"$f":"Monthly!DP116-Monthly!DP115","v":61},null,null,null,{"$f":"(Monthly!DT116/Monthly!DT115)-1","v":8.3333333333333037E-3},{"$f":"Monthly!DU116-Monthly!DU115","v":{"$error":"#VALUE!"}},"--","--","--","--","--","--","--","--",null,null,null,null,null,null,null,null,null,null,null,null,null,{"$f":"(Monthly!EQ116/Monthly!EQ115)-1","v":0},"--",{"$f":"(Monthly!ES116/Monthly!ES115)-1","v":5.5710306406686616E-3},null,null,null,null,null,{"$f":"((Monthly!EY116-Monthly!EY115)*100)","v":0},{"$f":"((Monthly!EZ116-Monthly!EZ115)*100)","v":-11.000000000000032},{"$f":"((Monthly!FA116-Monthly!FA115)*100)","v":16.999999999999993},{"$f":"((Monthly!FB116-Monthly!FB115)*100)","v":11.999999999999922},"--","--",{"$f":"((Monthly!FE116-Monthly!FE115)*100)","v":13.999999999999968},{"$f":"((Monthly!FF116-Monthly!FF115)*100)","v":12.999999999999989},"--",{"$f":"((Monthly!FH116-Monthly!FH115)*100)","v":16.999999999999993},{"$f":"((Monthly!FI116-Monthly!FI115)*100)","v":18.00000000000006},null,null,null,null,null,null,"--","--","--","--","--","--","--","--","--",null,null,null,null,null,{"$f":"(Monthly!GD116/Monthly!GD115)-1","v":0},"--","--","--","--","--","--","--","--"]
["1967-11-01",null,null,null,{"$f":"(Monthly!E117/Monthly!E116)-1","v":{"$error":"#DIV/0!"}},{"$f":"(Monthly!F117/Monthly!F116)-1","v":{"$error":"#DIV/0!"}},{"$f":"(Monthly!G117/Monthly!G116)-1","v":{"$error":"#DIV/0!"}},{"$f":"(Monthly!H117/Monthly!H116)-1","v":{"$error":"#DIV/0!"}},null,null,null,null,null,null,null,null,null,null,null,null,null,null,null,"--",{"$f":"(Monthly!Y117/Monthly!Y116)-1","v":5.8451232576695045E-3},null,null,null,null,null,null,null,null,null,null,null,null,null,{"$f":"(Monthly!AM117/Monthly!AM116)-1","v":1.4300339899258718E-2},"--","--","--",{"$f":"Monthly!AQ117-Monthly!AQ116","v":0.10000000000000142},"--","--",{"$f":"Monthly!AT117-Monthly!AT116","v":-0.89999999999999858},"--","--",{"$f":"Monthly!AW117-Monthly!AW116","v":-3.6000000000000014},{"$f":"Monthly!AX117-Monthly!AX116","v":1.2000000000000028},{"$f":"Monthly!AY117-Monthly!AY116","v":5.0999999999999943},{"$f":"Monthly!AZ117-Monthly!AZ116","v":0.89999999999999858},{"$f":"Monthly!BA117-Monthly!BA116","v":0.29999999999999716},"--","--",null,null,null,null,null,null,null,null,null,"--","--",null,null,null,null,null,{"$f":"(Monthly!BT117/Monthly!BT116)-1","v":7.6704933377926832E-3},null,null,null,{"$f":"(Monthly!BX117/Monthly!BX116)-1","v":3.1522468142186399E-2},{"$f":"(Monthly!BY117/Monthly!BY116)-1","v":1.3281249999999911E-2},"--","--",{"$f":"Monthly!CB117-Monthly!CB116","v":0.41467075514668394},{"$f":"Monthly!CC117-Monthly!CC116","v":0.34467075514668366},"--","--",null,"--","--",null,{"$f":"(Monthly!CJ117/Monthly!CJ116)-1","v":-0.11660777385159016},{"$f":"(Monthly!CK117/Monthly!CK116)-1","v":9.3126385809312318E-3},{"$f":"(Monthly!CL117/Monthly!CL116)-1","v":1.3245033112581073E-3},{"$f":"(Monthly!CM117/Monthly!CM116)-1","v":3.5164835164835262E-2},{"$f":"(Monthly!CN117/Monthly!CN116)-1","v":5.729715489989351E-3},{"$f":"(Monthly!CO117/Monthly!CO116)-1","v":3.0464584920029125E-3},{"$f":"(Monthly!CP117/Monthly!CP116)-1","v":8.117358856684298E-3},{"$f":"(Monthly!CQ117/Monthly!CQ116)-1","v":9.3823220996336332E-4},"--","--","--",null,null,null,null,null,{"$f":"(Monthly!CZ117/Monthly!CZ116)-1","v":5.9347181008901906E-3},{"$f":"(Monthly!DA117/Monthly!DA116)-1","v":2.8490028490029129E-3},null,null,null,null,null,"--",{"$f":"((Monthly!DH117-Monthly!DH116)*60)","v":6.0000000000000853},{"$f":"((Monthly!DI117-Monthly!DI116)*100)","v":-10.000000000000142},"--",{"$f":"((Monthly!DK117-Monthly!DK116)*100)","v":-10.000000000000009},{"$f":"Monthly!DL117-Monthly!DL116","v":185},null,null,null,{"$f":"Monthly!DP117-Monthly!DP116","v":478},null,null,null,{"$f":"(Monthly!DT117/Monthly!DT116)-1","v":-8.2874196510560161E-2},{"$f":"Monthly!DU117-Monthly!DU116","v":{"$error":"#VALUE!"}},"--","--","--","--","--","--","--","--",null,null,null,null,null,null,null,null,null,null,null,null,null,{"$f":"(Monthly!EQ117/Monthly!EQ116)-1","v":0},"--",{"$f":"(Monthly!ES117/Monthly!ES116)-1","v":2.7700831024930483E-3},null,null,null,null,null,{"$f":"((Monthly!EY117-Monthly!EY116)*100)","v":17.999999999999972},{"$f":"((Monthly!EZ117-Monthly!EZ116)*100)","v":25},{"$f":"((Monthly!FA117-Monthly!FA116)*100)","v":25},{"$f":"((Monthly!FB117-Monthly!FB116)*100)","v":20.000000000000018},"--","--",{"$f":"((Monthly!FE117-Monthly!FE116)*100)","v":17.000000000000082},{"$f":"((Monthly!FF117-Monthly!FF116)*100)","v":24.000000000000021},"--",{"$f":"((Monthly!FH117-Monthly!FH116)*100)","v":20.999999999999996},{"$f":"((Monthly!FI117-Monthly!FI116)*100)","v":26.999999999999957},null,null,null,null,null,null,"--","--","--","--","--","--","--","--","--",null,null,null,null,null,{"$f":"(Monthly!GD117/Monthly!GD116)-1","v":0},"--","--","--","--","--","--","--","--"]
["1967-12-01",null,null,null,{"$f":"(Monthly!E118/Monthly!E117)-1","v":{"$error":"#DIV/0!"}},{"$f":"(Monthly!F118/Monthly!F117)-1","v":{"$error":"#DIV/0!"}},{"$f":"(Monthly!G118/Monthly!G117)-1","v":{"$error":"#DIV/0!"}},{"$f":"(Monthly!H118/Monthly!H117)-1","v":{"$error":"#DIV/0!"}},null,null,null,null,null,null,null,null,null,null,null,null,null,null,null,"--",{"$f":"(Monthly!Y118/Monthly!Y117)-1","v":1.8249111363553228E-2},null,null,null,null,null,null,null,null,null,null,null,null,null,{"$f":"(Monthly!AM118/Monthly!AM117)-1","v":1.0771876842079919E-2},"--","--","--",{"$f":"Monthly!AQ118-Monthly!AQ117","v":1.3999999999999986},"--","--",{"$f":"Monthly!AT118-Monthly!AT117","v":0},"--","--",{"$f":"Monthly!AW118-Monthly!AW117","v":9.3999999999999986},{"$f":"Monthly!AX118-Monthly!AX117","v":2.3999999999999986},{"$f":"Monthly!AY118-Monthly!AY117","v":-4.2000000000000028},{"$f":"Monthly!AZ118-Monthly!AZ117","v":0.10000000000000142},{"$f":"Monthly!BA118-Monthly!BA117","v":-1.5},"--","--",null,null,null,null,null,null,null,null,null,"--","--",null,null,null,null,null,{"$f":"(Monthly!BT118/Monthly!BT117)-1","v":5.3516474236481315E-3},null,null,null,{"$f":"(Monthly!BX118/Monthly!BX117)-1","v":-0.14954486345903772},{"$f":"(Monthly!BY118/Monthly!BY117)-1","v":1.3878180416345476E-2},"--","--",{"$f":"Monthly!CB118-Monthly!CB117","v":7.8490656402164127E-2},{"$f":"Monthly!CC118-Monthly!CC117","v":8.4906564021629549E-3},"--","--",null,"--","--",null,{"$f":"(Monthly!CJ118/Monthly!CJ117)-1","v":4.0000000000000036E-3},{"$f":"(Monthly!CK118/Monthly!CK117)-1","v":1.0398359695372061E-2},{"$f":"(Monthly!CL118/Monthly!CL117)-1","v":-2.1164021164021052E-2},{"$f":"(Monthly!CM118/Monthly!CM117)-1","v":-0.13057324840764328},{"$f":"(Monthly!CN118/Monthly!CN117)-1","v":8.5456093248641452E-3},{"$f":"(Monthly!CO118/Monthly!CO117)-1","v":1.138952164009055E-3},{"$f":"(Monthly!CP118/Monthly!CP117)-1","v":5.1365706899375585E-3},{"$f":"(Monthly!CQ118/Monthly!CQ117)-1","v":7.970004711825851E-4},"--","--","--",null,null,null,null,null,{"$f":"(Monthly!CZ118/Monthly!CZ117)-1","v":2.9498525073747839E-3},{"$f":"(Monthly!DA118/Monthly!DA117)-1","v":5.6818181818181213E-3},null,null,null,null,null,"--",{"$f":"((Monthly!DH118-Monthly!DH117)*60)","v":-11.999999999999744},{"$f":"((Monthly!DI118-Monthly!DI117)*100)","v":10.000000000000142},"--",{"$f":"((Monthly!DK118-Monthly!DK117)*100)","v":-10.000000000000009},{"$f":"Monthly!DL118-Monthly!DL117","v":40},null,null,null,{"$f":"Monthly!DP118-Monthly!DP117","v":197},null,null,null,{"$f":"(Monthly!DT118/Monthly!DT117)-1","v":7.6345431789737184E-2},{"$f":"Monthly!DU118-Monthly!DU117","v":9.9999999999999645E-2},"--","--","--","--","--","--","--","--",null,null,null,null,null,null,null,null,null,null,null,null,null,{"$f":"(Monthly!EQ118/Monthly!EQ117)-1","v":8.9820359281438389E-3},"--",{"$f":"(Monthly!ES118/Monthly!ES117)-1","v":5.5248618784529135E-3},null,null,null,null,null,{"$f":"((Monthly!EY118-Monthly!EY117)*100)","v":32.000000000000028},{"$f":"((Monthly!EZ118-Monthly!EZ117)*100)","v":37.999999999999986},{"$f":"((Monthly!FA118-Monthly!FA117)*100)","v":12.000000000000011},{"$f":"((Monthly!FB118-Monthly!FB117)*100)","v":20.999999999999996},"--","--",{"$f":"((Monthly!FE118-Monthly!FE117)*100)","v":23.999999999999932},{"$f":"((Monthly!FF118-Monthly!FF117)*100)","v":9.9999999999999645},"--",{"$f":"((Monthly!FH118-Monthly!FH117)*100)","v":-3.0000000000000249},{"$f":"((Monthly!FI118-Monthly!FI117)*100)","v":-4.9999999999999822},null,null,null,null,null,null,"--","--","--","--","--","--","--","--","--",null,null,null,null,null,{"$f":"(Monthly!GD118/Monthly!GD117)-1","v":0},"--","--","--","--","--","--","--","--"]
["1968-01-01",null,null,null,{"$f":"(Monthly!E119/Monthly!E118)-1","v":{"$error":"#DIV/0!"}},{"$f":"(Monthly!F119/Monthly!F118)-1","v":{"$error":"#DIV/0!"}},{"$f":"(Monthly!G119/Monthly!G118)-1","v":{"$error":"#DIV/0!"}},{"$f":"(Monthly!H119/Monthly!H118)-1","v":{"$error":"#DIV/0!"}},null,null,null,null,null,null,null,null,null,null,null,null,null,null,null,"--",{"$f":"(Monthly!Y119/Monthly!Y118)-1","v":4.7736409576535355E-3},null,null,null,null,null,null,null,null,null,null,null,null,null,{"$f":"(Monthly!AM119/Monthly!AM118)-1","v":-1.0784901138406466E-3},"--","--","--",{"$f":"Monthly!AQ119-Monthly!AQ118","v":1},"--","--",{"$f":"Monthly!AT119-Monthly!AT118","v":1.7000000000000028},"--","--",{"$f":"Monthly!AW119-Monthly!AW118","v":1},{"$f":"Monthly!AX119-Monthly!AX118","v":0.70000000000000284},{"$f":"Monthly!AY119-Monthly!AY118","v":-1.5999999999999943},{"$f":"Monthly!AZ119-Monthly!AZ118","v":0.59999999999999432},{"$f":"Monthly!BA119-Monthly!BA118","v":0.70000000000000284},"--","--",null,null,null,null,null,null,null,null,null,"--","--",null,null,null,null,null,{"$f":"(Monthly!BT119/Monthly!BT118)-1","v":8.2748274124169185E-3},null,null,null,{"$f":"(Monthly!BX119/Monthly!BX118)-1","v":5.504587155963292E-2},{"$f":"(Monthly!BY119/Monthly!BY118)-1","v":-0.1034220532319392},"--","--",{"$f":"Monthly!CB119-Monthly!CB118","v":0.26673597594982823},{"$f":"Monthly!CC119-Monthly!CC118","v":0.19673597594982795},"--","--",null,"--","--",null,{"$f":"(Monthly!CJ119/Monthly!CJ118)-1","v":-1.5936254980079667E-2},{"$f":"(Monthly!CK119/Monthly!CK118)-1","v":6.6676329902883857E-3},{"$f":"(Monthly!CL119/Monthly!CL118)-1","v":-2.8378378378378311E-2},{"$f":"(Monthly!CM119/Monthly!CM118)-1","v":2.4420024420024333E-2},{"$f":"(Monthly!CN119/Monthly!CN118)-1","v":1.5582897769697013E-3},{"$f":"(Monthly!CO119/Monthly!CO118)-1","v":-1.8960940462646736E-3},{"$f":"(Monthly!CP119/Monthly!CP118)-1","v":-6.570412925182012E-4},{"$f":"(Monthly!CQ119/Monthly!CQ118)-1","v":7.5629704943969145E-4},"--","--","--",null,null,null,null,null,{"$f":"(Monthly!CZ119/Monthly!CZ118)-1","v":2.9411764705882248E-3},{"$f":"(Monthly!DA119/Monthly!DA118)-1","v":2.8248587570622874E-3},null,null,null,null,null,"--",{"$f":"((Monthly!DH119-Monthly!DH118)*60)","v":-6.0000000000000853},{"$f":"((Monthly!DI119-Monthly!DI118)*100)","v":-69.999999999999574},"--",{"$f":"((Monthly!DK119-Monthly!DK118)*100)","v":-9.9999999999999645},{"$f":"Monthly!DL119-Monthly!DL118","v":15},null,null,null,{"$f":"Monthly!DP119-Monthly!DP118","v":-95},null,null,null,{"$f":"(Monthly!DT119/Monthly!DT118)-1","v":3.4883720930232176E-3},{"$f":"Monthly!DU119-Monthly!DU118","v":0.29999999999999982},"--","--","--","--","--","--","--","--",null,null,null,null,null,null,null,null,null,null,null,null,null,{"$f":"(Monthly!EQ119/Monthly!EQ118)-1","v":2.9673590504448732E-3},"--",{"$f":"(Monthly!ES119/Monthly!ES118)-1","v":2.7472527472527375E-3},null,null,null,null,null,{"$f":"((Monthly!EY119-Monthly!EY118)*100)","v":0},{"$f":"((Monthly!EZ119-Monthly!EZ118)*100)","v":8.9999999999999858},{"$f":"((Monthly!FA119-Monthly!FA118)*100)","v":-2.0000000000000462},{"$f":"((Monthly!FB119-Monthly!FB118)*100)","v":-8.9999999999999858},"--","--",{"$f":"((Monthly!FE119-Monthly!FE118)*100)","v":3.0000000000000249},{"$f":"((Monthly!FF119-Monthly!FF118)*100)","v":-28.000000000000025},"--",{"$f":"((Monthly!FH119-Monthly!FH118)*100)","v":-20.999999999999996},{"$f":"((Monthly!FI119-Monthly!FI118)*100)","v":-16.999999999999993},null,null,null,null,null,null,"--","--","--","--","--","--","--","--","--",null,null,null,null,null,{"$f":"(Monthly!GD119/Monthly!GD118)-1","v":0},"--","--","--","--","--","--","--","--"]
["1968-02-01",null,null,null,{"$f":"(Monthly!E120/Monthly!E119)-1","v":{"$error":"#DIV/0!"}},{"$f":"(Monthly!F120/Monthly!F119)-1","v":{"$error":"#DIV/0!"}},{"$f":"(Monthly!G120/Monthly!G119)-1","v":{"$error":"#DIV/0!"}},{"$f":"(Monthly!H120/Monthly!H119)-1","v":{"$error":"#DIV/0!"}},null,null,null,null,null,null,null,null,null,null,null,null,null,null,null,"--",{"$f":"(Monthly!Y120/Monthly!Y119)-1","v":5.4534383813464871E-4},null,null,null,null,null,null,null,null,null,null,null,null,null,{"$f":"(Monthly!AM120/Monthly!AM119)-1","v":3.5855193004905583E-3},"--","--","--",{"$f":"Monthly!AQ120-Monthly!AQ119","v":-1.6000000000000014},"--","--",{"$f":"Monthly!AT120-Monthly!AT119","v":-2.9000000000000057},"--","--",{"$f":"Monthly!AW120-Monthly!AW119","v":-1.0999999999999943},{"$f":"Monthly!AX120-Monthly!AX119","v":-3.5},{"$f":"Monthly!AY120-Monthly!AY119","v":-1.7000000000000028},{"$f":"Monthly!AZ120-Monthly!AZ119","v":-1.1999999999999957},{"$f":"Monthly!BA120-Monthly!BA119","v":3.2999999999999972},"--","--",null,null,null,null,null,null,null,null,null,"--","--",null,null,null,null,null,{"$f":"(Monthly!BT120/Monthly!BT119)-1","v":7.9531144047273461E-3},null,null,null,{"$f":"(Monthly!BX120/Monthly!BX119)-1","v":0.10144927536231885},{"$f":"(Monthly!BY120/Monthly!BY119)-1","v":0.13825275657336733},"--","--",{"$f":"Monthly!CB120-Monthly!CB119","v":8.8947222989765429E-2},{"$f":"Monthly!CC120-Monthly!CC119","v":0.1589472229897666},"--","--",null,"--","--",null,{"$f":"(Monthly!CJ120/Monthly!CJ119)-1","v":9.919028340080982E-2},{"$f":"(Monthly!CK120/Monthly!CK119)-1","v":1.1663066954643586E-2},{"$f":"(Monthly!CL120/Monthly!CL119)-1","v":5.7023643949930314E-2},{"$f":"(Monthly!CM120/Monthly!CM119)-1","v":0.18355184743742559},{"$f":"(Monthly!CN120/Monthly!CN119)-1","v":7.098635376487028E-3},{"$f":"(Monthly!CO120/Monthly!CO119)-1","v":1.1398176291794737E-3},{"$f":"(Monthly!CP120/Monthly!CP119)-1","v":1.0826767966253481E-2},{"$f":"(Monthly!CQ120/Monthly!CQ119)-1","v":5.605381165918466E-4},{"$f":"(Monthly!CR120/Monthly!CR119)-1","v":3.1895504252734019E-2},"--","--",null,null,null,null,null,{"$f":"(Monthly!CZ120/Monthly!CZ119)-1","v":2.9325513196480912E-3},{"$f":"(Monthly!DA120/Monthly!DA119)-1","v":5.6338028169014009E-3},null,null,null,null,null,"--",{"$f":"((Monthly!DH120-Monthly!DH119)*60)","v":11.999999999999744},{"$f":"((Monthly!DI120-Monthly!DI119)*100)","v":39.999999999999858},"--",{"$f":"((Monthly!DK120-Monthly!DK119)*100)","v":9.9999999999999645},{"$f":"Monthly!DL120-Monthly!DL119","v":14},null,null,null,{"$f":"Monthly!DP120-Monthly!DP119","v":410},null,null,null,{"$f":"(Monthly!DT120/Monthly!DT119)-1","v":-2.3174971031286185E-2},{"$f":"Monthly!DU120-Monthly!DU119","v":-0.59999999999999964},"--","--","--","--","--","--","--","--",null,null,null,null,null,null,null,null,null,null,null,null,null,{"$f":"(Monthly!EQ120/Monthly!EQ119)-1","v":5.9171597633136397E-3},"--",{"$f":"(Monthly!ES120/Monthly!ES119)-1","v":2.73972602739736E-3},null,null,null,null,null,{"$f":"((Monthly!EY120-Monthly!EY119)*100)","v":0},{"$f":"((Monthly!EZ120-Monthly!EZ119)*100)","v":11.000000000000032},{"$f":"((Monthly!FA120-Monthly!FA119)*100)","v":-7.0000000000000284},{"$f":"((Monthly!FB120-Monthly!FB119)*100)","v":-4.0000000000000036},"--","--",{"$f":"((Monthly!FE120-Monthly!FE119)*100)","v":-1.9999999999999574},{"$f":"((Monthly!FF120-Monthly!FF119)*100)","v":-1.9999999999999574},"--",{"$f":"((Monthly!FH120-Monthly!FH119)*100)","v":4.9999999999999822},{"$f":"((Monthly!FI120-Monthly!FI119)*100)","v":2.9999999999999361},null,null,null,null,null,null,"--","--","--","--","--","--","--","--","--",null,null,null,null,null,{"$f":"(Monthly!GD120/Monthly!GD119)-1","v":0},"--","--","--","--","--","--","--","--"]
["1968-03-01",null,null,null,{"$f":"(Monthly!E121/Monthly!E120)-1","v":{"$error":"#DIV/0!"}},{"$f":"(Monthly!F121/Monthly!F120)-1","v":{"$error":"#DIV/0!"}},{"$f":"(Monthly!G121/Monthly!G120)-1","v":{"$error":"#DIV/0!"}},{"$f":"(Monthly!H121/Monthly!H120)-1","v":{"$error":"#DIV/0!"}},null,null,null,null,null,null,null,null,null,null,null,null,null,null,null,"--",{"$f":"(Monthly!Y121/Monthly!Y120)-1","v":5.9574055319919772E-3},null,null,null,null,null,null,null,null,null,null,null,null,null,{"$f":"(Monthly!AM121/Monthly!AM120)-1","v":3.1211400794231015E-3},"--","--","--",{"$f":"Monthly!AQ121-Monthly!AQ120","v":-1.2000000000000028},"--","--",{"$f":"Monthly!AT121-Monthly!AT120","v":-0.19999999999999574},"--","--",{"$f":"Monthly!AW121-Monthly!AW120","v":-3},{"$f":"Monthly!AX121-Monthly!AX120","v":-0.89999999999999858},{"$f":"Monthly!AY121-Monthly!AY120","v":-0.20000000000000284},{"$f":"Monthly!AZ121-Monthly!AZ120","v":-2.3000000000000043},{"$f":"Monthly!BA121-Monthly!BA120","v":0.10000000000000142},"--","--",null,null,null,null,null,null,null,null,null,"--","--",null,null,null,null,null,{"$f":"(Monthly!BT121/Monthly!BT120)-1","v":8.4477804153733072E-3},null,null,null,{"$f":"(Monthly!BX121/Monthly!BX120)-1","v":-3.5526315789473739E-2},{"$f":"(Monthly!BY121/Monthly!BY120)-1","v":2.0864381520119268E-2},"--","--",{"$f":"Monthly!CB121-Monthly!CB120","v":0.20303030303029423},{"$f":"Monthly!CC121-Monthly!CC120","v":0.13303030303029395},"--","--",null,"--","--",null,{"$f":"(Monthly!CJ121/Monthly!CJ120)-1","v":-9.7605893186003656E-2},{"$f":"(Monthly!CK121/Monthly!CK120)-1","v":1.1670936521491537E-2},{"$f":"(Monthly!CL121/Monthly!CL120)-1","v":-3.8157894736842168E-2},{"$f":"(Monthly!CM121/Monthly!CM120)-1","v":-8.1570996978851951E-2},{"$f":"(Monthly!CN121/Monthly!CN120)-1","v":9.3659478596717083E-3},{"$f":"(Monthly!CO121/Monthly!CO120)-1","v":3.0360531309299166E-3},{"$f":"(Monthly!CP121/Monthly!CP120)-1","v":7.0481912082454024E-3},{"$f":"(Monthly!CQ121/Monthly!CQ120)-1","v":6.8027210884347156E-4},{"$f":"(Monthly!CR121/Monthly!CR120)-1","v":3.9740947895201773E-2},"--","--",null,null,null,null,null,{"$f":"(Monthly!CZ121/Monthly!CZ120)-1","v":2.9239766081869956E-3},{"$f":"(Monthly!DA121/Monthly!DA120)-1","v":2.8011204481790397E-3},null,null,null,null,null,"--",{"$f":"((Monthly!DH121-Monthly!DH120)*60)","v":-5.9999999999996589},{"$f":"((Monthly!DI121-Monthly!DI120)*100)","v":0},"--",{"$f":"((Monthly!DK121-Monthly!DK120)*100)","v":-9.9999999999999645},{"$f":"Monthly!DL121-Monthly!DL120","v":13},null,null,null,{"$f":"Monthly!DP121-Monthly!DP120","v":80},null,null,null,{"$f":"(Monthly!DT121/Monthly!DT120)-1","v":-7.3784104389086558E-2},{"$f":"Monthly!DU121-Monthly!DU120","v":-0.40000000000000036},"--","--","--","--","--","--","--","--",null,null,null,null,null,null,null,null,null,null,null,null,null,{"$f":"(Monthly!EQ121/Monthly!EQ120)-1","v":2.9411764705882248E-3},"--",{"$f":"(Monthly!ES121/Monthly!ES120)-1","v":0},null,null,null,null,null,{"$f":"((Monthly!EY121-Monthly!EY120)*100)","v":0},{"$f":"((Monthly!EZ121-Monthly!EZ120)*100)","v":33.999999999999986},{"$f":"((Monthly!FA121-Monthly!FA120)*100)","v":1.0000000000000675},{"$f":"((Monthly!FB121-Monthly!FB120)*100)","v":4.9999999999999822},"--","--",{"$f":"((Monthly!FE121-Monthly!FE120)*100)","v":18.99999999999995},{"$f":"((Monthly!FF121-Monthly!FF120)*100)","v":16.999999999999993},"--",{"$f":"((Monthly!FH121-Monthly!FH120)*100)","v":16.999999999999993},{"$f":"((Monthly!FI121-Monthly!FI120)*100)","v":18.00000000000006},null,null,null,null,null,null,"--","--","--","--","--","--","--","--","--",null,null,null,null,null,{"$f":"(Monthly!GD121/Monthly!GD120)-1","v":0},"--","--","--","--","--","--","--","--"]
["1968-04-01",null,null,null,{"$f":"(Monthly!E122/Monthly!E121)-1","v":{"$error":"#DIV/0!"}},{"$f":"(Monthly!F122/Monthly!F121)-1","v":{"$error":"#DIV/0!"}},{"$f":"(Monthly!G122/Monthly!G121)-1","v":{"$error":"#DIV/0!"}},{"$f":"(Monthly!H122/Monthly!H121)-1","v":{"$error":"#DIV/0!"}},null,null,null,null,null,null,null,null,null,null,null,null,null,null,null,"--",{"$f":"(Monthly!Y122/Monthly!Y121)-1","v":1.5003328971233021E-2},null,null,null,null,null,null,null,null,null,null,null,null,null,{"$f":"(Monthly!AM122/Monthly!AM121)-1","v":1.4458214172228256E-3},"--","--","--",{"$f":"Monthly!AQ122-Monthly!AQ121","v":4.2000000000000028},"--","--",{"$f":"Monthly!AT122-Monthly!AT121","v":3.3999999999999986},"--","--",{"$f":"Monthly!AW122-Monthly!AW121","v":4.1999999999999957},{"$f":"Monthly!AX122-Monthly!AX121","v":8.7999999999999972},{"$f":"Monthly!AY122-Monthly!AY121","v":-4.5999999999999943},{"$f":"Monthly!AZ122-Monthly!AZ121","v":4.3000000000000043},{"$f":"Monthly!BA122-Monthly!BA121","v":-5},"--","--",null,null,null,null,null,null,null,null,null,"--","--",null,null,null,null,null,{"$f":"(Monthly!BT122/Monthly!BT121)-1","v":7.4316210807203742E-3},null,null,null,{"$f":"(Monthly!BX122/Monthly!BX121)-1","v":6.0027285129604424E-2},{"$f":"(Monthly!BY122/Monthly!BY121)-1","v":-6.13138686131387E-2},"--","--",{"$f":"Monthly!CB122-Monthly!CB121","v":-0.21190149226402166},{"$f":"Monthly!CC122-Monthly!CC121","v":-0.35190149226402134},"--","--",null,"--","--",null,{"$f":"(Monthly!CJ122/Monthly!CJ121)-1","v":2.2448979591836782E-2},{"$f":"(Monthly!CK122/Monthly!CK121)-1","v":8.3005064715815369E-3},{"$f":"(Monthly!CL122/Monthly!CL121)-1","v":6.4295485636114869E-2},{"$f":"(Monthly!CM122/Monthly!CM121)-1","v":1.4254385964912242E-2},{"$f":"(Monthly!CN122/Monthly!CN121)-1","v":4.1133892414144668E-3},{"$f":"(Monthly!CO122/Monthly!CO121)-1","v":0},{"$f":"(Monthly!CP122/Monthly!CP121)-1","v":8.3587038626689036E-3},{"$f":"(Monthly!CQ122/Monthly!CQ121)-1","v":7.5978725956726834E-4},{"$f":"(Monthly!CR122/Monthly!CR121)-1","v":4.5937146092865255E-2},"--","--",null,null,null,null,null,{"$f":"(Monthly!CZ122/Monthly!CZ121)-1","v":2.9154518950438302E-3},{"$f":"(Monthly!DA122/Monthly!DA121)-1","v":2.7932960893854997E-3},null,null,null,null,null,"--",{"$f":"((Monthly!DH122-Monthly!DH121)*60)","v":-6.0000000000000853},{"$f":"((Monthly!DI122-Monthly!DI121)*100)","v":-10.000000000000142},"--",{"$f":"((Monthly!DK122-Monthly!DK121)*100)","v":-20.000000000000018},{"$f":"Monthly!DL122-Monthly!DL121","v":64},null,null,null,{"$f":"Monthly!DP122-Monthly!DP121","v":260},null,null,null,{"$f":"(Monthly!DT122/Monthly!DT121)-1","v":1.9467213114754189E-2},{"$f":"Monthly!DU122-Monthly!DU121","v":0.5},"--","--","--","--","--","--","--","--",null,null,null,null,null,null,null,null,null,null,null,null,null,{"$f":"(Monthly!EQ122/Monthly!EQ121)-1","v":0},"--",{"$f":"(Monthly!ES122/Monthly!ES121)-1","v":5.4644808743167239E-3},null,null,null,null,null,{"$f":"((Monthly!EY122-Monthly!EY121)*100)","v":20.000000000000018},{"$f":"((Monthly!EZ122-Monthly!EZ121)*100)","v":71},{"$f":"((Monthly!FA122-Monthly!FA121)*100)","v":9.9999999999999645},{"$f":"((Monthly!FB122-Monthly!FB121)*100)","v":12.000000000000011},"--","--",{"$f":"((Monthly!FE122-Monthly!FE121)*100)","v":20.999999999999996},{"$f":"((Monthly!FF122-Monthly!FF121)*100)","v":12.999999999999989},"--",{"$f":"((Monthly!FH122-Monthly!FH121)*100)","v":-6.9999999999999396},{"$f":"((Monthly!FI122-Monthly!FI121)*100)","v":-10.000000000000053},null,null,null,null,null,null,"--","--","--","--","--","--","--","--","--",null,null,null,null,null,{"$f":"(Monthly!GD122/Monthly!GD121)-1","v":0},"--","--","--","--","--","--","--","--"]
["1968-05-01",null,null,null,{"$f":"(Monthly!E123/Monthly!E122)-1","v":{"$error":"#DIV/0!"}},{"$f":"(Monthly!F123/Monthly!F122)-1","v":{"$error":"#DIV/0!"}},{"$f":"(Monthly!G123/Monthly!G122)-1","v":{"$error":"#DIV/0!"}},{"$f":"(Monthly!H123/Monthly!H122)-1","v":{"$error":"#DIV/0!"}},null,null,null,null,null,null,null,null,null,null,null,null,null,null,null,"--",{"$f":"(Monthly!Y123/Monthly!Y122)-1","v":6.2383370466290167E-3},null,null,null,null,null,null,null,null,null,null,null,null,null,{"$f":"(Monthly!AM123/Monthly!AM122)-1","v":1.1219347093758048E-2},"--","--","--",{"$f":"Monthly!AQ123-Monthly!AQ122","v":-2.7000000000000028},"--","--",{"$f":"Monthly!AT123-Monthly!AT122","v":-0.39999999999999858},"--","--",{"$f":"Monthly!AW123-Monthly!AW122","v":-0.89999999999999858},{"$f":"Monthly!AX123-Monthly!AX122","v":-8.2999999999999972},{"$f":"Monthly!AY123-Monthly!AY122","v":-2.2999999999999972},{"$f":"Monthly!AZ123-Monthly!AZ122","v":-0.10000000000000142},{"$f":"Monthly!BA123-Monthly!BA122","v":0.39999999999999858},"--","--",null,null,null,null,null,null,null,null,null,"--","--",null,null,null,null,null,{"$f":"(Monthly!BT123/Monthly!BT122)-1","v":8.2754862841476484E-3},null,null,null,{"$f":"(Monthly!BX123/Monthly!BX122)-1","v":-9.3951093951093911E-2},{"$f":"(Monthly!BY123/Monthly!BY122)-1","v":8.5536547433904264E-3},"--","--",{"$f":"Monthly!CB123-Monthly!CB122","v":0.30211480362536403},{"$f":"Monthly!CC123-Monthly!CC122","v":0.30211480362536491},"--","--",null,"--","--",null,{"$f":"(Monthly!CJ123/Monthly!CJ122)-1","v":-0.11976047904191611},{"$f":"(Monthly!CK123/Monthly!CK122)-1","v":8.6507604297474394E-3},{"$f":"(Monthly!CL123/Monthly!CL122)-1","v":-1.5424164524421635E-2},{"$f":"(Monthly!CM123/Monthly!CM122)-1","v":-8.108108108108103E-2},{"$f":"(Monthly!CN123/Monthly!CN122)-1","v":3.7789774531598042E-3},{"$f":"(Monthly!CO123/Monthly!CO122)-1","v":7.5671585319714296E-4},{"$f":"(Monthly!CP123/Monthly!CP122)-1","v":7.1114695942247064E-3},{"$f":"(Monthly!CQ123/Monthly!CQ122)-1","v":7.6420522656439616E-4},{"$f":"(Monthly!CR123/Monthly!CR122)-1","v":4.1077349935710883E-2},"--","--",null,null,null,null,null,{"$f":"(Monthly!CZ123/Monthly!CZ122)-1","v":2.9069767441860517E-3},{"$f":"(Monthly!DA123/Monthly!DA122)-1","v":2.7855153203342198E-3},null,null,null,null,null,"--",{"$f":"((Monthly!DH123-Monthly!DH122)*60)","v":6.0000000000000853},{"$f":"((Monthly!DI123-Monthly!DI122)*100)","v":39.999999999999858},"--",{"$f":"((Monthly!DK123-Monthly!DK122)*100)","v":0},{"$f":"Monthly!DL123-Monthly!DL122","v":59},null,null,null,{"$f":"Monthly!DP123-Monthly!DP122","v":98},null,null,null,{"$f":"(Monthly!DT123/Monthly!DT122)-1","v":0},{"$f":"Monthly!DU123-Monthly!DU122","v":-0.19999999999999929},"--","--","--","--","--","--","--","--",null,null,null,null,null,null,null,null,null,null,null,null,null,{"$f":"(Monthly!EQ123/Monthly!EQ122)-1","v":2.9325513196480912E-3},"--",{"$f":"(Monthly!ES123/Monthly!ES122)-1","v":5.4347826086957873E-3},null,null,null,null,null,{"$f":"((Monthly!EY123-Monthly!EY122)*100)","v":29.999999999999982},{"$f":"((Monthly!EZ123-Monthly!EZ122)*100)","v":35.000000000000057},{"$f":"((Monthly!FA123-Monthly!FA122)*100)","v":5.9999999999999609},{"$f":"((Monthly!FB123-Monthly!FB122)*100)","v":6.0000000000000497},"--","--",{"$f":"((Monthly!FE123-Monthly!FE122)*100)","v":28.000000000000025},{"$f":"((Monthly!FF123-Monthly!FF122)*100)","v":42.999999999999972},"--",{"$f":"((Monthly!FH123-Monthly!FH122)*100)","v":34.999999999999964},{"$f":"((Monthly!FI123-Monthly!FI122)*100)","v":23.000000000000043},null,null,null,null,null,null,"--","--","--","--","--","--","--","--","--",null,null,null,null,null,{"$f":"(Monthly!GD123/Monthly!GD122)-1","v":0},"--","--","--","--","--","--","--","--"]
["1968-06-01",null,null,null,{"$f":"(Monthly!E124/Monthly!E123)-1","v":{"$error":"#DIV/0!"}},{"$f":"(Monthly!F124/Monthly!F123)-1","v":{"$error":"#DIV/0!"}},{"$f":"(Monthly!G124/Monthly!G123)-1","v":{"$error":"#DIV/0!"}},{"$f":"(Monthly!H124/Monthly!H123)-1","v":{"$error":"#DIV/0!"}},null,null,null,null,null,null,null,null,null,null,null,null,null,null,null,{"$f":"(Monthly!X124-Monthly!X123)","v":0},{"$f":"(Monthly!Y124/Monthly!Y123)-1","v":1.0754996482063017E-2},null,null,null,null,null,null,null,null,null,null,null,null,null,{"$f":"(Monthly!AM124/Monthly!AM123)-1","v":3.6712696997351912E-3},"--","--","--",{"$f":"Monthly!AQ124-Monthly!AQ123","v":-1.7999999999999972},"--","--",{"$f":"Monthly!AT124-Monthly!AT123","v":-0.5},"--","--",{"$f":"Monthly!AW124-Monthly!AW123","v":1},{"$f":"Monthly!AX124-Monthly!AX123","v":-1.9000000000000057},{"$f":"Monthly!AY124-Monthly!AY123","v":1.2000000000000028},{"$f":"Monthly!AZ124-Monthly!AZ123","v":-5.1000000000000014},{"$f":"Monthly!BA124-Monthly!BA123","v":0.5},"--","--",null,null,null,null,null,null,null,null,null,"--","--",null,null,null,null,null,{"$f":"(Monthly!BT124/Monthly!BT123)-1","v":1.0853350296384345E-2},null,null,null,{"$f":"(Monthly!BX124/Monthly!BX123)-1","v":-2.1306818181817677E-3},{"$f":"(Monthly!BY124/Monthly!BY123)-1","v":2.3130300693909867E-3},"--","--",{"$f":"Monthly!CB124-Monthly!CB123","v":0.17459695344894666},{"$f":"Monthly!CC124-Monthly!CC123","v":0.31459695344894456},"--","--",null,"--","--",null,{"$f":"(Monthly!CJ124/Monthly!CJ123)-1","v":0},{"$f":"(Monthly!CK124/Monthly!CK123)-1","v":7.4699128510167245E-3},{"$f":"(Monthly!CL124/Monthly!CL123)-1","v":-2.4804177545691752E-2},{"$f":"(Monthly!CM124/Monthly!CM123)-1","v":-6.0000000000000053E-2},{"$f":"(Monthly!CN124/Monthly!CN123)-1","v":4.1443892562245122E-3},{"$f":"(Monthly!CO124/Monthly!CO123)-1","v":1.5122873345934096E-3},{"$f":"(Monthly!CP124/Monthly!CP123)-1","v":6.259456227293736E-3},{"$f":"(Monthly!CQ124/Monthly!CQ123)-1","v":8.7342347063557035E-4},{"$f":"(Monthly!CR124/Monthly!CR123)-1","v":4.9466978679147289E-2},"--","--",null,null,null,null,null,{"$f":"(Monthly!CZ124/Monthly!CZ123)-1","v":5.7971014492754769E-3},{"$f":"(Monthly!DA124/Monthly!DA123)-1","v":5.5555555555555358E-3},null,null,null,null,null,"--",{"$f":"((Monthly!DH124-Monthly!DH123)*60)","v":5.9999999999996589},{"$f":"((Monthly!DI124-Monthly!DI123)*100)","v":10.000000000000142},"--",{"$f":"((Monthly!DK124-Monthly!DK123)*100)","v":20.000000000000018},{"$f":"Monthly!DL124-Monthly!DL123","v":38},null,null,null,{"$f":"Monthly!DP124-Monthly!DP123","v":251},null,null,null,{"$f":"(Monthly!DT124/Monthly!DT123)-1","v":-3.3919597989949701E-2},{"$f":"Monthly!DU124-Monthly!DU123","v":0},"--","--","--","--","--","--","--","--",null,null,null,null,null,null,null,null,null,null,null,null,null,{"$f":"(Monthly!EQ124/Monthly!EQ123)-1","v":0},"--",{"$f":"(Monthly!ES124/Monthly!ES123)-1","v":0},null,null,null,null,null,{"$f":"((Monthly!EY124-Monthly!EY123)*100)","v":0},{"$f":"((Monthly!EZ124-Monthly!EZ123)*100)","v":-4.0000000000000036},{"$f":"((Monthly!FA124-Monthly!FA123)*100)","v":1.0000000000000675},{"$f":"((Monthly!FB124-Monthly!FB123)*100)","v":4.0000000000000036},"--","--",{"$f":"((Monthly!FE124-Monthly!FE123)*100)","v":-14.000000000000057},{"$f":"((Monthly!FF124-Monthly!FF123)*100)","v":-15.999999999999925},"--",{"$f":"((Monthly!FH124-Monthly!FH123)*100)","v":-19.000000000000039},{"$f":"((Monthly!FI124-Monthly!FI123)*100)","v":-15.000000000000036},null,null,null,null,null,null,"--","--","--","--","--","--","--","--","--",null,null,null,null,null,{"$f":"(Monthly!GD124/Monthly!GD123)-1","v":0},"--","--","--","--","--","--","--","--"]
["1968-07-01",null,null,null,{"$f":"(Monthly!E125/Monthly!E124)-1","v":{"$error":"#DIV/0!"}},{"$f":"(Monthly!F125/Monthly!F124)-1","v":{"$error":"#DIV/0!"}},{"$f":"(Monthly!G125/Monthly!G124)-1","v":{"$error":"#DIV/0!"}},{"$f":"(Monthly!H125/Monthly!H124)-1","v":{"$error":"#DIV/0!"}},null,null,null,null,null,null,null,null,null,null,null,null,null,null,null,{"$f":"(Monthly!X125-Monthly!X124)","v":-0.5},{"$f":"(Monthly!Y125/Monthly!Y124)-1","v":1.2301858678186672E-2},null,null,null,null,null,null,null,null,null,null,null,null,null,{"$f":"(Monthly!AM125/Monthly!AM124)-1","v":-1.5319162239827433E-3},"--","--","--",{"$f":"Monthly!AQ125-Monthly!AQ124","v":0.60000000000000142},"--","--",{"$f":"Monthly!AT125-Monthly!AT124","v":-4.3999999999999986},"--","--",{"$f":"Monthly!AW125-Monthly!AW124","v":0.79999999999999716},{"$f":"Monthly!AX125-Monthly!AX124","v":0.20000000000000284},{"$f":"Monthly!AY125-Monthly!AY124","v":-3.3000000000000114},{"$f":"Monthly!AZ125-Monthly!AZ124","v":1.6000000000000014},{"$f":"Monthly!BA125-Monthly!BA124","v":6},"--","--",null,null,null,null,null,null,null,null,null,"--","--",null,null,null,null,null,{"$f":"(Monthly!BT125/Monthly!BT124)-1","v":8.9881883844094013E-3},null,null,null,{"$f":"(Monthly!BX125/Monthly!BX124)-1","v":7.6156583629893193E-2},{"$f":"(Monthly!BY125/Monthly!BY124)-1","v":3.3846153846153859E-2},"--","--",{"$f":"Monthly!CB125-Monthly!CB124","v":0.28681375986763324},{"$f":"Monthly!CC125-Monthly!CC124","v":0.28681375986763413},"--","--",null,"--","--",null,{"$f":"(Monthly!CJ125/Monthly!CJ124)-1","v":0.11791383219954654},{"$f":"(Monthly!CK125/Monthly!CK124)-1","v":9.1995056982012713E-3},{"$f":"(Monthly!CL125/Monthly!CL124)-1","v":-8.7014725568942408E-2},{"$f":"(Monthly!CM125/Monthly!CM124)-1","v":0.15519399249061316},{"$f":"(Monthly!CN125/Monthly!CN124)-1","v":-1.9848771266540721E-3},{"$f":"(Monthly!CO125/Monthly!CO124)-1","v":-1.1325028312568763E-3},{"$f":"(Monthly!CP125/Monthly!CP124)-1","v":9.505896843282402E-3},{"$f":"(Monthly!CQ125/Monthly!CQ124)-1","v":8.4772808872224381E-4},{"$f":"(Monthly!CR125/Monthly!CR124)-1","v":4.410034066274382E-2},"--","--",null,null,null,null,null,{"$f":"(Monthly!CZ125/Monthly!CZ124)-1","v":5.7636887608067955E-3},{"$f":"(Monthly!DA125/Monthly!DA124)-1","v":5.5248618784529135E-3},null,null,null,null,null,"--",{"$f":"((Monthly!DH125-Monthly!DH124)*60)","v":-5.9999999999996589},{"$f":"((Monthly!DI125-Monthly!DI124)*100)","v":-20.000000000000284},"--",{"$f":"((Monthly!DK125-Monthly!DK124)*100)","v":0},{"$f":"Monthly!DL125-Monthly!DL124","v":37},null,null,null,{"$f":"Monthly!DP125-Monthly!DP124","v":221},null,null,null,{"$f":"(Monthly!DT125/Monthly!DT124)-1","v":3.0949284785435571E-2},{"$f":"Monthly!DU125-Monthly!DU124","v":9.9999999999999645E-2},"--","--","--","--","--","--","--","--",null,null,null,null,null,null,null,null,null,null,null,null,null,{"$f":"(Monthly!EQ125/Monthly!EQ124)-1","v":2.9239766081869956E-3},"--",{"$f":"(Monthly!ES125/Monthly!ES124)-1","v":2.7027027027026751E-3},null,null,null,null,null,{"$f":"((Monthly!EY125-Monthly!EY124)*100)","v":0},{"$f":"((Monthly!EZ125-Monthly!EZ124)*100)","v":-5.0000000000000711},{"$f":"((Monthly!FA125-Monthly!FA124)*100)","v":-4.0000000000000036},{"$f":"((Monthly!FB125-Monthly!FB124)*100)","v":-8.9999999999999858},"--","--",{"$f":"((Monthly!FE125-Monthly!FE124)*100)","v":-20.999999999999996},{"$f":"((Monthly!FF125-Monthly!FF124)*100)","v":-33.000000000000007},"--",{"$f":"((Monthly!FH125-Monthly!FH124)*100)","v":-25},{"$f":"((Monthly!FI125-Monthly!FI124)*100)","v":-21.999999999999975},null,null,null,null,null,null,"--","--","--","--","--","--","--","--","--",null,null,null,null,null,{"$f":"(Monthly!GD125/Monthly!GD124)-1","v":0},"--","--","--","--","--","--","--","--"]
["1968-09-01",null,null,null,{"$f":"(Monthly!E127/Monthly!E126)-1","v":{"$error":"#DIV/0!"}},{"$f":"(Monthly!F127/Monthly!F126)-1","v":{"$error":"#DIV/0!"}},{"$f":"(Monthly!G127/Monthly!G126)-1","v":{"$error":"#DIV/0!"}},{"$f":"(Monthly!H127/Monthly!H126)-1","v":{"$error":"#DIV/0!"}},null,null,null,null,null,null,null,null,null,null,null,null,null,null,null,{"$f":"(Monthly!X127-Monthly!X126)","v":0},{"$f":"(Monthly!Y127/Monthly!Y126)-1","v":6.6540184418570902E-3},null,null,null,null,null,null,null,null,null,null,null,null,null,{"$f":"(Monthly!AM127/Monthly!AM126)-1","v":3.7885687224510356E-3},"--","--","--",{"$f":"Monthly!AQ127-Monthly!AQ126","v":-0.90000000000000568},"--","--",{"$f":"Monthly!AT127-Monthly!AT126","v":-2.3999999999999986},"--","--",{"$f":"Monthly!AW127-Monthly!AW126","v":-11.800000000000004},{"$f":"Monthly!AX127-Monthly!AX126","v":1.6000000000000014},{"$f":"Monthly!AY127-Monthly!AY126","v":-1.8999999999999915},{"$f":"Monthly!AZ127-Monthly!AZ126","v":0.89999999999999858},{"$f":"Monthly!BA127-Monthly!BA126","v":0.60000000000000142},"--","--",null,null,null,null,null,null,null,null,null,"--","--",null,null,null,null,null,{"$f":"(Monthly!BT127/Monthly!BT126)-1","v":1.384903351735578E-2},null,null,null,{"$f":"(Monthly!BX127/Monthly!BX126)-1","v":4.0802675585284387E-2},{"$f":"(Monthly!BY127/Monthly!BY126)-1","v":7.8850405305821658E-2},"--","--",{"$f":"Monthly!CB127-Monthly!CB126","v":-0.1133262260127772},{"$f":"Monthly!CC127-Monthly!CC126","v":-0.18332622601277748},"--","--",null,"--","--",null,{"$f":"(Monthly!CJ127/Monthly!CJ126)-1","v":-1.1834319526627168E-2},{"$f":"(Monthly!CK127/Monthly!CK126)-1","v":7.6912697341788849E-3},{"$f":"(Monthly!CL127/Monthly!CL126)-1","v":8.9020771513352859E-3},{"$f":"(Monthly!CM127/Monthly!CM126)-1","v":4.0540540540540571E-2},{"$f":"(Monthly!CN127/Monthly!CN126)-1","v":-4.731413430905107E-4},{"$f":"(Monthly!CO127/Monthly!CO126)-1","v":4.523181304183943E-3},{"$f":"(Monthly!CP127/Monthly!CP126)-1","v":8.0570694315211799E-3},{"$f":"(Monthly!CQ127/Monthly!CQ126)-1","v":9.8059711893605517E-4},{"$f":"(Monthly!CR127/Monthly!CR126)-1","v":3.9907297495901828E-2},"--","--",null,null,null,null,null,{"$f":"(Monthly!CZ127/Monthly!CZ126)-1","v":2.8571428571428914E-3},{"$f":"(Monthly!DA127/Monthly!DA126)-1","v":5.479452054794498E-3},null,null,null,null,null,"--",{"$f":"((Monthly!DH127-Monthly!DH126)*60)","v":0},{"$f":"((Monthly!DI127-Monthly!DI126)*100)","v":-10.000000000000142},"--",{"$f":"((Monthly!DK127-Monthly!DK126)*100)","v":-10.000000000000009},{"$f":"Monthly!DL127-Monthly!DL126","v":-2},null,null,null,{"$f":"Monthly!DP127-Monthly!DP126","v":159},null,null,null,{"$f":"(Monthly!DT127/Monthly!DT126)-1","v":-3.4134007585335024E-2},{"$f":"Monthly!DU127-Monthly!DU126","v":0.39999999999999947},"--","--","--","--","--","--","--","--",null,null,null,null,null,null,null,null,null,null,null,null,null,{"$f":"(Monthly!EQ127/Monthly!EQ126)-1","v":5.8479532163742132E-3},"--",{"$f":"(Monthly!ES127/Monthly!ES126)-1","v":2.6881720430105283E-3},null,null,null,null,null,{"$f":"((Monthly!EY127-Monthly!EY126)*100)","v":-4.9999999999999822},{"$f":"((Monthly!EZ127-Monthly!EZ126)*100)","v":-25},{"$f":"((Monthly!FA127-Monthly!FA126)*100)","v":-4.9999999999999822},{"$f":"((Monthly!FB127-Monthly!FB126)*100)","v":-3.0000000000000249},"--","--",{"$f":"((Monthly!FE127-Monthly!FE126)*100)","v":10.000000000000053},{"$f":"((Monthly!FF127-Monthly!FF126)*100)","v":2.0000000000000462},"--",{"$f":"((Monthly!FH127-Monthly!FH126)*100)","v":-1.9999999999999574},{"$f":"((Monthly!FI127-Monthly!FI126)*100)","v":4.0000000000000036},null,null,null,null,null,null,"--","--","--","--","--","--","--","--","--",null,null,null,null,null,{"$f":"(Monthly!GD127/Monthly!GD126)-1","v":0},"--","--","--","--","--","--","--","--"]
["1969-02-01",null,null,null,{"$f":"(Monthly!E132/Monthly!E131)-1","v":{"$error":"#DIV/0!"}},{"$f":"(Monthly!F132/Monthly!F131)-1","v":{"$error":"#DIV/0!"}},{"$f":"(Monthly!G132/Monthly!G131)-1","v":{"$error":"#DIV/0!"}},{"$f":"(Monthly!H132/Monthly!H131)-1","v":{"$error":"#DIV/0!"}},null,null,null,null,null,null,null,null,null,null,null,null,null,null,null,{"$f":"(Monthly!X132-Monthly!X131)","v":0.29999999999999716},{"$f":"(Monthly!Y132/Monthly!Y131)-1","v":1.1819068000300526E-2},null,null,null,null,null,null,null,null,null,null,null,null,null,{"$f":"(Monthly!AM132/Monthly!AM131)-1","v":6.4001336208203696E-3},"--","--","--",{"$f":"Monthly!AQ132-Monthly!AQ131","v":2.1000000000000014},"--","--",{"$f":"Monthly!AT132-Monthly!AT131","v":4.2000000000000028},"--","--",{"$f":"Monthly!AW132-Monthly!AW131","v":2.0999999999999943},{"$f":"Monthly!AX132-Monthly!AX131","v":3.5},{"$f":"Monthly!AY132-Monthly!AY131","v":2.5},{"$f":"Monthly!AZ132-Monthly!AZ131","v":2},{"$f":"Monthly!BA132-Monthly!BA131","v":-3.5},"--","--",null,null,null,null,null,null,null,null,null,"--","--",null,null,null,null,null,{"$f":"(Monthly!BT132/Monthly!BT131)-1","v":8.7779223409623075E-3},null,null,null,{"$f":"(Monthly!BX132/Monthly!BX131)-1","v":-3.6178631995477661E-2},{"$f":"(Monthly!BY132/Monthly!BY131)-1","v":2.4674434544208257E-2},"--","--",{"$f":"Monthly!CB132-Monthly!CB131","v":-1.3719538337554127E-2},{"$f":"Monthly!CC132-Monthly!CC131","v":-1.3719538337552351E-2},"--","--",null,"--","--",null,{"$f":"(Monthly!CJ132/Monthly!CJ131)-1","v":9.1666666666666563E-2},{"$f":"(Monthly!CK132/Monthly!CK131)-1","v":7.0551345701592716E-3},{"$f":"(Monthly!CL132/Monthly!CL131)-1","v":-5.6886227544910128E-2},{"$f":"(Monthly!CM132/Monthly!CM131)-1","v":-9.4105480868665992E-2},{"$f":"(Monthly!CN132/Monthly!CN131)-1","v":-1.5646024345217224E-4},{"$f":"(Monthly!CO132/Monthly!CO131)-1","v":-1.8608113137328353E-3},{"$f":"(Monthly!CP132/Monthly!CP131)-1","v":1.0344594251687544E-2},{"$f":"(Monthly!CQ132/Monthly!CQ131)-1","v":5.9972244250605655E-4},{"$f":"(Monthly!CR132/Monthly!CR131)-1","v":3.6865497076023379E-2},"--","--",null,null,null,null,null,{"$f":"(Monthly!CZ132/Monthly!CZ131)-1","v":2.8011204481790397E-3},{"$f":"(Monthly!DA132/Monthly!DA131)-1","v":8.0428954423592547E-3},null,null,null,null,null,"--",{"$f":"((Monthly!DH132-Monthly!DH131)*60)","v":-12.000000000000171},{"$f":"((Monthly!DI132-Monthly!DI131)*100)","v":39.999999999999858},"--",{"$f":"((Monthly!DK132-Monthly!DK131)*100)","v":0},{"$f":"Monthly!DL132-Monthly!DL131","v":70},null,null,null,{"$f":"Monthly!DP132-Monthly!DP131","v":262},null,null,null,{"$f":"(Monthly!DT132/Monthly!DT131)-1","v":2.3498694516971286E-2},{"$f":"Monthly!DU132-Monthly!DU131","v":0.5},"--","--","--","--","--","--","--","--",null,null,null,null,null,null,null,null,null,null,null,null,null,{"$f":"(Monthly!EQ132/Monthly!EQ131)-1","v":5.7471264367816577E-3},"--",{"$f":"(Monthly!ES132/Monthly!ES131)-1","v":2.6595744680850686E-3},null,null,null,null,null,{"$f":"((Monthly!EY132-Monthly!EY131)*100)","v":4.9999999999999822},{"$f":"((Monthly!EZ132-Monthly!EZ131)*100)","v":31.00000000000005},{"$f":"((Monthly!FA132-Monthly!FA131)*100)","v":7.0000000000000284},{"$f":"((Monthly!FB132-Monthly!FB131)*100)","v":-2.0000000000000462},"--","--",{"$f":"((Monthly!FE132-Monthly!FE131)*100)","v":-1.9999999999999574},{"$f":"((Monthly!FF132-Monthly!FF131)*100)","v":7.0000000000000284},"--",{"$f":"((Monthly!FH132-Monthly!FH131)*100)","v":8.9999999999999858},{"$f":"((Monthly!FI132-Monthly!FI131)*100)","v":15.000000000000036},null,null,null,null,null,null,"--","--","--","--","--","--","--","--","--",null,null,null,null,null,{"$f":"(Monthly!GD132/Monthly!GD131)-1","v":0},"--","--","--","--","--","--","--","--"]
["1969-05-01",null,null,null,{"$f":"(Monthly!E135/Monthly!E134)-1","v":{"$error":"#DIV/0!"}},{"$f":"(Monthly!F135/Monthly!F134)-1","v":{"$error":"#DIV/0!"}},{"$f":"(Monthly!G135/Monthly!G134)-1","v":{"$error":"#DIV/0!"}},{"$f":"(Monthly!H135/Monthly!H134)-1","v":{"$error":"#DIV/0!"}},null,null,null,null,null,null,null,null,null,null,null,null,null,null,null,{"$f":"(Monthly!X135-Monthly!X134)","v":-0.59999999999999432},{"$f":"(Monthly!Y135/Monthly!Y134)-1","v":1.1649126985308289E-2},null,null,null,null,null,null,null,null,null,null,null,null,null,{"$f":"(Monthly!AM135/Monthly!AM134)-1","v":-3.778924171090825E-3},"--","--","--",{"$f":"Monthly!AQ135-Monthly!AQ134","v":1.5},"--","--",{"$f":"Monthly!AT135-Monthly!AT134","v":9.9999999999994316E-2},"--","--",{"$f":"Monthly!AW135-Monthly!AW134","v":1.5},{"$f":"Monthly!AX135-Monthly!AX134","v":3.2000000000000028},{"$f":"Monthly!AY135-Monthly!AY134","v":0.5},{"$f":"Monthly!AZ135-Monthly!AZ134","v":1.1999999999999957},{"$f":"Monthly!BA135-Monthly!BA134","v":1.0000000000000071},"--","--",null,null,null,null,null,null,null,null,null,"--","--",null,null,null,null,null,{"$f":"(Monthly!BT135/Monthly!BT134)-1","v":9.5532481043554274E-3},null,null,null,{"$f":"(Monthly!BX135/Monthly!BX134)-1","v":3.8713910761154935E-2},{"$f":"(Monthly!BY135/Monthly!BY134)-1","v":-7.8417765440666254E-2},"--","--",{"$f":"Monthly!CB135-Monthly!CB134","v":-1.6009437141883964E-2},{"$f":"Monthly!CC135-Monthly!CC134","v":-1.6009437141883964E-2},"--","--",null,"--","--",null,{"$f":"(Monthly!CJ135/Monthly!CJ134)-1","v":-6.6666666666667096E-3},{"$f":"(Monthly!CK135/Monthly!CK134)-1","v":8.0346894528757762E-3},{"$f":"(Monthly!CL135/Monthly!CL134)-1","v":6.211180124223592E-2},{"$f":"(Monthly!CM135/Monthly!CM134)-1","v":0.10061349693251542},{"$f":"(Monthly!CN135/Monthly!CN134)-1","v":1.1467674905477621E-2},{"$f":"(Monthly!CO135/Monthly!CO134)-1","v":-2.2396416573347011E-3},{"$f":"(Monthly!CP135/Monthly!CP134)-1","v":8.5670531756356638E-3},{"$f":"(Monthly!CQ135/Monthly!CQ134)-1","v":8.4091392504004325E-4},{"$f":"(Monthly!CR135/Monthly!CR134)-1","v":6.3602066759616216E-2},"--","--",null,null,null,null,null,{"$f":"(Monthly!CZ135/Monthly!CZ134)-1","v":2.7548209366392573E-3},{"$f":"(Monthly!DA135/Monthly!DA134)-1","v":0},null,null,null,null,null,"--",{"$f":"((Monthly!DH135-Monthly!DH134)*60)","v":-6.0000000000000853},{"$f":"((Monthly!DI135-Monthly!DI134)*100)","v":-20.000000000000284},"--",{"$f":"((Monthly!DK135-Monthly!DK134)*100)","v":0},{"$f":"Monthly!DL135-Monthly!DL134","v":34},null,null,null,{"$f":"Monthly!DP135-Monthly!DP134","v":256},null,null,null,{"$f":"(Monthly!DT135/Monthly!DT134)-1","v":-1.5217391304347849E-2},{"$f":"Monthly!DU135-Monthly!DU134","v":0.20000000000000018},"--","--","--","--","--","--","--","--",null,null,null,null,null,null,null,null,null,null,null,null,null,{"$f":"(Monthly!EQ135/Monthly!EQ134)-1","v":5.6657223796034994E-3},"--",{"$f":"(Monthly!ES135/Monthly!ES134)-1","v":2.6385224274407815E-3},null,null,null,null,null,{"$f":"((Monthly!EY135-Monthly!EY134)*100)","v":0},{"$f":"((Monthly!EZ135-Monthly!EZ134)*100)","v":125.99999999999997},{"$f":"((Monthly!FA135-Monthly!FA134)*100)","v":-9.9999999999999645},{"$f":"((Monthly!FB135-Monthly!FB134)*100)","v":-2.0000000000000462},"--","--",{"$f":"((Monthly!FE135-Monthly!FE134)*100)","v":-7.0000000000000284},{"$f":"((Monthly!FF135-Monthly!FF134)*100)","v":16.000000000000014},"--",{"$f":"((Monthly!FH135-Monthly!FH134)*100)","v":24.000000000000021},{"$f":"((Monthly!FI135-Monthly!FI134)*100)","v":15.000000000000036},null,null,null,null,null,null,"--","--","--","--","--","--","--","--","--",null,null,null,null,null,{"$f":"(Monthly!GD135/Monthly!GD134)-1","v":0},"--","--","--","--","--","--","--","--"]
["1969-09-01",null,null,null,{"$f":"(Monthly!E139/Monthly!E138)-1","v":{"$error":"#DIV/0!"}},{"$f":"(Monthly!F139/Monthly!F138)-1","v":{"$error":"#DIV/0!"}},{"$f":"(Monthly!G139/Monthly!G138)-1","v":{"$error":"#DIV/0!"}},{"$f":"(Monthly!H139/Monthly!H138)-1","v":{"$error":"#DIV/0!"}},null,null,null,null,null,null,null,null,null,null,null,null,null,null,null,{"$f":"(Monthly!X139-Monthly!X138)","v":-0.39999999999999147},{"$f":"(Monthly!Y139/Monthly!Y138)-1","v":4.9454682029335117E-3},null,null,null,null,null,null,null,null,null,null,null,null,null,{"$f":"(Monthly!AM139/Monthly!AM138)-1","v":-2.2483236400117068E-4},"--","--","--",{"$f":"Monthly!AQ139-Monthly!AQ138","v":-0.69999999999999574},"--","--",{"$f":"Monthly!AT139-Monthly!AT138","v":-0.90000000000000568},"--","--",{"$f":"Monthly!AW139-Monthly!AW138","v":-1.5},{"$f":"Monthly!AX139-Monthly!AX138","v":-1.1000000000000014},{"$f":"Monthly!AY139-Monthly!AY138","v":-1.2000000000000028},{"$f":"Monthly!AZ139-Monthly!AZ138","v":0.69999999999999574},{"$f":"Monthly!BA139-Monthly!BA138","v":-1.3999999999999915},"--","--",null,null,null,null,null,null,null,null,null,"--","--",null,null,null,null,null,{"$f":"(Monthly!BT139/Monthly!BT138)-1","v":5.6141392169555271E-3},null,null,null,{"$f":"(Monthly!BX139/Monthly!BX138)-1","v":0.10972017673048606},{"$f":"(Monthly!BY139/Monthly!BY138)-1","v":-4.1002277904327977E-2},"--","--",{"$f":"Monthly!CB139-Monthly!CB138","v":0.46943426943426658},{"$f":"Monthly!CC139-Monthly!CC138","v":0.60943426943426715},"--","--",null,"--","--",null,{"$f":"(Monthly!CJ139/Monthly!CJ138)-1","v":-6.1611374407582908E-2},{"$f":"(Monthly!CK139/Monthly!CK138)-1","v":6.3976377952756902E-3},{"$f":"(Monthly!CL139/Monthly!CL138)-1","v":1.1070110701107083E-2},{"$f":"(Monthly!CM139/Monthly!CM138)-1","v":0.10604026845637593},{"$f":"(Monthly!CN139/Monthly!CN138)-1","v":1.9057990743263087E-3},{"$f":"(Monthly!CO139/Monthly!CO138)-1","v":7.564296520425895E-4},{"$f":"(Monthly!CP139/Monthly!CP138)-1","v":5.7010465561393442E-3},{"$f":"(Monthly!CQ139/Monthly!CQ138)-1","v":1.0498972283699004E-3},{"$f":"(Monthly!CR139/Monthly!CR138)-1","v":5.3983718136927816E-2},"--","--",null,null,null,null,null,{"$f":"(Monthly!CZ139/Monthly!CZ138)-1","v":5.4200542005420349E-3},{"$f":"(Monthly!DA139/Monthly!DA138)-1","v":5.1679586563306845E-3},null,null,null,null,null,"--",{"$f":"((Monthly!DH139-Monthly!DH138)*60)","v":0},{"$f":"((Monthly!DI139-Monthly!DI138)*100)","v":0},"--",{"$f":"((Monthly!DK139-Monthly!DK138)*100)","v":20.000000000000018},{"$f":"Monthly!DL139-Monthly!DL138","v":-147},null,null,null,{"$f":"Monthly!DP139-Monthly!DP138","v":-89},null,null,null,{"$f":"(Monthly!DT139/Monthly!DT138)-1","v":-2.1356783919597944E-2},{"$f":"Monthly!DU139-Monthly!DU138","v":0.29999999999999982},"--","--","--","--","--","--","--","--",null,null,null,null,null,null,null,null,null,null,null,null,null,{"$f":"(Monthly!EQ139/Monthly!EQ138)-1","v":2.8011204481790397E-3},"--",{"$f":"(Monthly!ES139/Monthly!ES138)-1","v":2.6041666666667407E-3},null,null,null,null,null,{"$f":"((Monthly!EY139-Monthly!EY138)*100)","v":0},{"$f":"((Monthly!EZ139-Monthly!EZ138)*100)","v":-3.9999999999999147},{"$f":"((Monthly!FA139-Monthly!FA138)*100)","v":16.999999999999993},{"$f":"((Monthly!FB139-Monthly!FB138)*100)","v":19.000000000000039},"--","--",{"$f":"((Monthly!FE139-Monthly!FE138)*100)","v":10.999999999999943},{"$f":"((Monthly!FF139-Monthly!FF138)*100)","v":28.000000000000025},"--",{"$f":"((Monthly!FH139-Monthly!FH138)*100)","v":54},{"$f":"((Monthly!FI139-Monthly!FI138)*100)","v":46.999999999999972},null,null,null,null,null,null,"--","--","--","--","--","--","--","--","--",null,null,null,null,null,{"$f":"(Monthly!GD139/Monthly!GD138)-1","v":0},"--","--","--","--","--","--","--","--"]
["1970-03-01",null,null,null,{"$f":"(Monthly!E145/Monthly!E144)-1","v":{"$error":"#DIV/0!"}},{"$f":"(Monthly!F145/Monthly!F144)-1","v":{"$error":"#DIV/0!"}},{"$f":"(Monthly!G145/Monthly!G144)-1","v":{"$error":"#DIV/0!"}},{"$f":"(Monthly!H145/Monthly!H144)-1","v":{"$error":"#DIV/0!"}},null,null,null,null,null,null,null,null,null,null,null,null,null,null,null,{"$f":"(Monthly!X145-Monthly!X144)","v":-0.39999999999999147},{"$f":"(Monthly!Y145/Monthly!Y144)-1","v":-2.672777313655339E-3},null,null,null,null,null,null,null,null,null,null,null,null,null,{"$f":"(Monthly!AM145/Monthly!AM144)-1","v":-1.2977443724041526E-3},"--","--","--",{"$f":"Monthly!AQ145-Monthly!AQ144","v":-0.5},"--","--",{"$f":"Monthly!AT145-Monthly!AT144","v":1.5},"--","--",{"$f":"Monthly!AW145-Monthly!AW144","v":2.7999999999999972},{"$f":"Monthly!AX145-Monthly!AX144","v":-0.59999999999999432},{"$f":"Monthly!AY145-Monthly!AY144","v":-6.7000000000000028},{"$f":"Monthly!AZ145-Monthly!AZ144","v":1.3999999999999986},{"$f":"Monthly!BA145-Monthly!BA144","v":-8.4000000000000057},"--","--",null,null,null,null,null,null,null,null,null,"--","--",null,null,null,null,null,{"$f":"(Monthly!BT145/Monthly!BT144)-1","v":2.7478629495421014E-3},null,null,null,{"$f":"(Monthly!BX145/Monthly!BX144)-1","v":1.072796934865905E-2},{"$f":"(Monthly!BY145/Monthly!BY144)-1","v":1.2522361359570633E-2},"--","--",{"$f":"Monthly!CB145-Monthly!CB144","v":-0.13039818010185478},{"$f":"Monthly!CC145-Monthly!CC144","v":9.6018198981475678E-3},"--","--",null,"--","--",null,{"$f":"(Monthly!CJ145/Monthly!CJ144)-1","v":4.2895442359249358E-2},{"$f":"(Monthly!CK145/Monthly!CK144)-1","v":5.8208600617724038E-3},{"$f":"(Monthly!CL145/Monthly!CL144)-1","v":6.6901408450704247E-2},{"$f":"(Monthly!CM145/Monthly!CM144)-1","v":-1.8918918918918948E-2},{"$f":"(Monthly!CN145/Monthly!CN144)-1","v":3.1561709096321611E-3},{"$f":"(Monthly!CO145/Monthly!CO144)-1","v":-1.3183404420317846E-2},{"$f":"(Monthly!CP145/Monthly!CP144)-1","v":6.9271525658542998E-4},{"$f":"(Monthly!CQ145/Monthly!CQ144)-1","v":7.2546174659815499E-4},{"$f":"(Monthly!CR145/Monthly!CR144)-1","v":2.7744175038131758E-2},"--","--",null,null,null,null,null,{"$f":"(Monthly!CZ145/Monthly!CZ144)-1","v":5.249343832020914E-3},{"$f":"(Monthly!DA145/Monthly!DA144)-1","v":7.5376884422111434E-3},null,null,null,null,null,"--",{"$f":"((Monthly!DH145-Monthly!DH144)*60)","v":-5.9999999999996589},{"$f":"((Monthly!DI145-Monthly!DI144)*100)","v":20.000000000000284},"--",{"$f":"((Monthly!DK145-Monthly!DK144)*100)","v":20.000000000000018},{"$f":"Monthly!DL145-Monthly!DL144","v":-1},null,null,null,{"$f":"Monthly!DP145-Monthly!DP144","v":148},null,null,null,{"$f":"(Monthly!DT145/Monthly!DT144)-1","v":2.0368574199806089E-2},{"$f":"Monthly!DU145-Monthly!DU144","v":9.9999999999999645E-2},"--","--","--","--","--","--","--","--",null,null,null,null,null,null,null,null,null,null,null,null,null,{"$f":"(Monthly!EQ145/Monthly!EQ144)-1","v":0},"--",{"$f":"(Monthly!ES145/Monthly!ES144)-1","v":5.0761421319798217E-3},null,null,null,null,null,{"$f":"((Monthly!EY145-Monthly!EY144)*100)","v":-10.999999999999943},{"$f":"((Monthly!EZ145-Monthly!EZ144)*100)","v":-122.00000000000006},{"$f":"((Monthly!FA145-Monthly!FA144)*100)","v":-8.9999999999999858},{"$f":"((Monthly!FB145-Monthly!FB144)*100)","v":-14.999999999999858},"--","--",{"$f":"((Monthly!FE145-Monthly!FE144)*100)","v":-50},{"$f":"((Monthly!FF145-Monthly!FF144)*100)","v":-62.000000000000014},"--",{"$f":"((Monthly!FH145-Monthly!FH144)*100)","v":-61.000000000000028},{"$f":"((Monthly!FI145-Monthly!FI144)*100)","v":-16.999999999999993},null,null,null,null,null,null,"--","--","--","--","--","--","--","--","--",null,null,null,null,null,{"$f":"(Monthly!GD145/Monthly!GD144)-1","v":0},"--","--","--","--","--","--","--","--"]
["1970-08-01",null,null,null,{"$f":"(Monthly!E150/Monthly!E149)-1","v":{"$error":"#DIV/0!"}},{"$f":"(Monthly!F150/Monthly!F149)-1","v":{"$error":"#DIV/0!"}},{"$f":"(Monthly!G150/Monthly!G149)-1","v":{"$error":"#DIV/0!"}},{"$f":"(Monthly!H150/Monthly!H149)-1","v":{"$error":"#DIV/0!"}},null,null,null,null,null,null,null,null,null,null,null,null,null,null,null,{"$f":"(Monthly!X150-Monthly!X149)","v":-0.40000000000000568},{"$f":"(Monthly!Y150/Monthly!Y149)-1","v":8.0212115865039291E-3},null,null,null,null,null,null,null,null,null,null,null,null,null,{"$f":"(Monthly!AM150/Monthly!AM149)-1","v":-1.7823254859721249E-3},"--","--","--",{"$f":"Monthly!AQ150-Monthly!AQ149","v":-2.2000000000000028},"--","--",{"$f":"Monthly!AT150-Monthly!AT149","v":-0.5},"--","--",{"$f":"Monthly!AW150-Monthly!AW149","v":-1.6000000000000014},{"$f":"Monthly!AX150-Monthly!AX149","v":-0.70000000000000284},{"$f":"Monthly!AY150-Monthly!AY149","v":-3.8000000000000114},{"$f":"Monthly!AZ150-Monthly!AZ149","v":-4.7999999999999972},{"$f":"Monthly!BA150-Monthly!BA149","v":-3.6999999999999957},"--","--",null,null,null,null,null,null,null,null,null,"--","--",null,null,null,null,null,{"$f":"(Monthly!BT150/Monthly!BT149)-1","v":6.435034632129577E-3},null,null,null,{"$f":"(Monthly!BX150/Monthly!BX149)-1","v":-7.7785102175346066E-2},{"$f":"(Monthly!BY150/Monthly!BY149)-1","v":5.2870090634441036E-2},"--","--",{"$f":"Monthly!CB150-Monthly!CB149","v":8.4535171438659518E-2},{"$f":"Monthly!CC150-Monthly!CC149","v":0.1545351714386598},"--","--",null,"--","--",null,{"$f":"(Monthly!CJ150/Monthly!CJ149)-1","v":7.0686070686070579E-2},{"$f":"(Monthly!CK150/Monthly!CK149)-1","v":5.5235903337169656E-3},{"$f":"(Monthly!CL150/Monthly!CL149)-1","v":2.9615004935834577E-3},{"$f":"(Monthly!CM150/Monthly!CM149)-1","v":1.9559902200489088E-2},{"$f":"(Monthly!CN150/Monthly!CN149)-1","v":3.5738152657116551E-3},{"$f":"(Monthly!CO150/Monthly!CO149)-1","v":5.566600397614252E-3},{"$f":"(Monthly!CP150/Monthly!CP149)-1","v":2.523547073740362E-3},{"$f":"(Monthly!CQ150/Monthly!CQ149)-1","v":1.1850652517411131E-3},{"$f":"(Monthly!CR150/Monthly!CR149)-1","v":2.701847204322938E-2},"--","--",null,null,null,null,null,{"$f":"(Monthly!CZ150/Monthly!CZ149)-1","v":2.5706940874037354E-3},{"$f":"(Monthly!DA150/Monthly!DA149)-1","v":4.8899755501223829E-3},null,null,null,null,null,"--",{"$f":"((Monthly!DH150-Monthly!DH149)*60)","v":0},{"$f":"((Monthly!DI150-Monthly!DI149)*100)","v":-10.000000000000142},"--",{"$f":"((Monthly!DK150-Monthly!DK149)*100)","v":9.9999999999999645},{"$f":"Monthly!DL150-Monthly!DL149","v":-98},null,null,null,{"$f":"Monthly!DP150-Monthly!DP149","v":-120},null,null,null,{"$f":"(Monthly!DT150/Monthly!DT149)-1","v":3.5891968727789658E-2},{"$f":"Monthly!DU150-Monthly!DU149","v":0.30000000000000071},"--","--","--","--","--","--","--","--",null,null,null,null,null,null,null,null,null,null,null,null,null,{"$f":"(Monthly!EQ150/Monthly!EQ149)-1","v":-5.3908355795149188E-3},"--",{"$f":"(Monthly!ES150/Monthly!ES149)-1","v":5.0000000000001155E-3},null,null,null,null,null,{"$f":"((Monthly!EY150-Monthly!EY149)*100)","v":0},{"$f":"((Monthly!EZ150-Monthly!EZ149)*100)","v":-59.999999999999964},{"$f":"((Monthly!FA150-Monthly!FA149)*100)","v":-30.999999999999872},{"$f":"((Monthly!FB150-Monthly!FB149)*100)","v":3.9999999999999147},"--","--",{"$f":"((Monthly!FE150-Monthly!FE149)*100)","v":-4.0000000000000036},{"$f":"((Monthly!FF150-Monthly!FF149)*100)","v":-11.999999999999922},"--",{"$f":"((Monthly!FH150-Monthly!FH149)*100)","v":-1.9999999999999574},{"$f":"((Monthly!FI150-Monthly!FI149)*100)","v":7.0000000000000284},null,null,null,null,null,null,"--","--","--","--","--","--","--","--","--",null,null,null,null,null,{"$f":"(Monthly!GD150/Monthly!GD149)-1","v":0},"--","--","--","--","--","--","--","--"]
["1971-01-01",null,null,null,{"$f":"(Monthly!E155/Monthly!E154)-1","v":{"$error":"#DIV/0!"}},{"$f":"(Monthly!F155/Monthly!F154)-1","v":{"$error":"#DIV/0!"}},{"$f":"(Monthly!G155/Monthly!G154)-1","v":{"$error":"#DIV/0!"}},{"$f":"(Monthly!H155/Monthly!H154)-1","v":{"$error":"#DIV/0!"}},null,null,null,null,null,null,null,null,null,null,null,null,null,null,null,{"$f":"(Monthly!X155-Monthly!X154)","v":0.40000000000000568},{"$f":"(Monthly!Y155/Monthly!Y154)-1","v":1.7071098746563873E-3},null,null,null,null,null,null,null,null,null,null,null,null,null,{"$f":"(Monthly!AM155/Monthly!AM154)-1","v":7.6898712816277914E-3},"--","--","--",{"$f":"Monthly!AQ155-Monthly!AQ154","v":2.5},"--","--",{"$f":"Monthly!AT155-Monthly!AT154","v":-1.3999999999999986},"--","--",{"$f":"Monthly!AW155-Monthly!AW154","v":3},{"$f":"Monthly!AX155-Monthly!AX154","v":4.1999999999999957},{"$f":"Monthly!AY155-Monthly!AY154","v":0.59999999999999432},{"$f":"Monthly!AZ155-Monthly!AZ154","v":3.7000000000000028},{"$f":"Monthly!BA155-Monthly!BA154","v":2.2999999999999972},"--","--",null,null,null,null,null,null,null,null,null,"--","--",null,null,null,null,null,{"$f":"(Monthly!BT155/Monthly!BT154)-1","v":4.8889931710518475E-3},null,null,null,{"$f":"(Monthly!BX155/Monthly!BX154)-1","v":-3.4337031167459009E-2},{"$f":"(Monthly!BY155/Monthly!BY154)-1","v":-7.0175438596491224E-2},"--","--",{"$f":"Monthly!CB155-Monthly!CB154","v":-0.49324692230703349},{"$f":"Monthly!CC155-Monthly!CC154","v":-0.6332469223070305},"--","--",null,"--","--",null,{"$f":"(Monthly!CJ155/Monthly!CJ154)-1","v":6.1855670103092786E-2},{"$f":"(Monthly!CK155/Monthly!CK154)-1","v":1.1486486486486536E-2},{"$f":"(Monthly!CL155/Monthly!CL154)-1","v":3.7512339585389798E-2},{"$f":"(Monthly!CM155/Monthly!CM154)-1","v":-9.3862815884476536E-2},{"$f":"(Monthly!CN155/Monthly!CN154)-1","v":1.6146331565063621E-2},{"$f":"(Monthly!CO155/Monthly!CO154)-1","v":9.9616858237547845E-3},{"$f":"(Monthly!CP155/Monthly!CP154)-1","v":1.985912752106378E-2},{"$f":"(Monthly!CQ155/Monthly!CQ154)-1","v":1.1055188665523019E-3},{"$f":"(Monthly!CR155/Monthly!CR154)-1","v":0.44492592965836941},"--","--",null,null,null,null,null,{"$f":"(Monthly!CZ155/Monthly!CZ154)-1","v":2.5125628140703071E-3},{"$f":"(Monthly!DA155/Monthly!DA154)-1","v":2.3809523809523725E-3},null,null,null,null,null,"--",{"$f":"((Monthly!DH155-Monthly!DH154)*60)","v":0},{"$f":"((Monthly!DI155-Monthly!DI154)*100)","v":0},"--",{"$f":"((Monthly!DK155-Monthly!DK154)*100)","v":-19.999999999999929},{"$f":"Monthly!DL155-Monthly!DL154","v":-29},null,null,null,{"$f":"Monthly!DP155-Monthly!DP154","v":76},null,null,null,{"$f":"(Monthly!DT155/Monthly!DT154)-1","v":-1.7973856209150374E-2},{"$f":"Monthly!DU155-Monthly!DU154","v":0.29999999999999982},"--","--","--","--","--","--","--","--",null,null,null,null,null,null,null,null,null,null,null,null,null,{"$f":"(Monthly!EQ155/Monthly!EQ154)-1","v":5.3908355795146967E-3},"--",{"$f":"(Monthly!ES155/Monthly!ES154)-1","v":4.8661800486617945E-3},null,null,null,null,null,{"$f":"((Monthly!EY155-Monthly!EY154)*100)","v":-62.999999999999986},{"$f":"((Monthly!EZ155-Monthly!EZ154)*100)","v":-76.000000000000071},{"$f":"((Monthly!FA155-Monthly!FA154)*100)","v":-27.999999999999936},{"$f":"((Monthly!FB155-Monthly!FB154)*100)","v":-37.999999999999901},"--","--",{"$f":"((Monthly!FE155-Monthly!FE154)*100)","v":-42.999999999999972},{"$f":"((Monthly!FF155-Monthly!FF154)*100)","v":-42.999999999999972},"--",{"$f":"((Monthly!FH155-Monthly!FH154)*100)","v":-6.0000000000000497},{"$f":"((Monthly!FI155-Monthly!FI154)*100)","v":-14.999999999999947},null,null,null,null,null,null,"--","--","--","--","--","--","--","--","--",null,null,null,null,null,{"$f":"(Monthly!GD155/Monthly!GD154)-1","v":0},"--","--","--","--","--","--","--","--"]
["1971-03-01",null,null,null,{"$f":"(Monthly!E157/Monthly!E156)-1","v":{"$error":"#DIV/0!"}},{"$f":"(Monthly!F157/Monthly!F156)-1","v":{"$error":"#DIV/0!"}},{"$f":"(Monthly!G157/Monthly!G156)-1","v":{"$error":"#DIV/0!"}},{"$f":"(Monthly!H157/Monthly!H156)-1","v":{"$error":"#DIV/0!"}},null,null,null,null,null,null,null,null,null,null,null,null,null,null,null,{"$f":"(Monthly!X157-Monthly!X156)","v":-0.30000000000001137},{"$f":"(Monthly!Y157/Monthly!Y156)-1","v":8.2756081365498169E-4},null,null,null,null,null,null,null,null,null,null,null,null,null,{"$f":"(Monthly!AM157/Monthly!AM156)-1","v":-1.0841367561078563E-3},"--","--","--",{"$f":"Monthly!AQ157-Monthly!AQ156","v":-3.5999999999999943},"--","--",{"$f":"Monthly!AT157-Monthly!AT156","v":-3.4000000000000057},"--","--",{"$f":"Monthly!AW157-Monthly!AW156","v":3.2000000000000028},{"$f":"Monthly!AX157-Monthly!AX156","v":-6.5999999999999943},{"$f":"Monthly!AY157-Monthly!AY156","v":2.4000000000000057},{"$f":"Monthly!AZ157-Monthly!AZ156","v":-5.6000000000000014},{"$f":"Monthly!BA157-Monthly!BA156","v":0.79999999999999716},"--","--",null,null,null,null,null,null,null,null,null,"--","--",null,null,null,null,null,{"$f":"(Monthly!BT157/Monthly!BT156)-1","v":9.6120582398173671E-3},null,null,null,{"$f":"(Monthly!BX157/Monthly!BX156)-1","v":9.7070649052268809E-2},{"$f":"(Monthly!BY157/Monthly!BY156)-1","v":0.10768261964735526},"--","--",{"$f":"Monthly!CB157-Monthly!CB156","v":-0.18576715116874887},{"$f":"Monthly!CC157-Monthly!CC156","v":-0.11576715116875036},"--","--",null,"--","--",null,{"$f":"(Monthly!CJ157/Monthly!CJ156)-1","v":0.10194174757281549},{"$f":"(Monthly!CK157/Monthly!CK156)-1","v":6.2042986926655885E-3},{"$f":"(Monthly!CL157/Monthly!CL156)-1","v":2.1883920076118057E-2},{"$f":"(Monthly!CM157/Monthly!CM156)-1","v":6.8384539147670953E-2},{"$f":"(Monthly!CN157/Monthly!CN156)-1","v":3.0484330484330524E-3},{"$f":"(Monthly!CO157/Monthly!CO156)-1","v":1.2777151446824453E-2},{"$f":"(Monthly!CP157/Monthly!CP156)-1","v":5.9540705046732256E-3},{"$f":"(Monthly!CQ157/Monthly!CQ156)-1","v":9.0483287204601304E-4},{"$f":"(Monthly!CR157/Monthly!CR156)-1","v":8.945236350564878E-3},"--","--",null,null,null,null,null,{"$f":"(Monthly!CZ157/Monthly!CZ156)-1","v":2.5062656641603454E-3},{"$f":"(Monthly!DA157/Monthly!DA156)-1","v":0},null,null,null,null,null,"--",{"$f":"((Monthly!DH157-Monthly!DH156)*60)","v":0},{"$f":"((Monthly!DI157-Monthly!DI156)*100)","v":-10.000000000000142},"--",{"$f":"((Monthly!DK157-Monthly!DK156)*100)","v":9.9999999999999645},{"$f":"Monthly!DL157-Monthly!DL156","v":-62},null,null,null,{"$f":"Monthly!DP157-Monthly!DP156","v":53},null,null,null,{"$f":"(Monthly!DT157/Monthly!DT156)-1","v":2.987697715289972E-2},{"$f":"Monthly!DU157-Monthly!DU156","v":0.10000000000000053},"--","--","--","--","--","--","--","--",null,null,null,null,null,null,null,null,null,null,null,null,null,{"$f":"(Monthly!EQ157/Monthly!EQ156)-1","v":2.6525198938991412E-3},"--",{"$f":"(Monthly!ES157/Monthly!ES156)-1","v":2.4154589371980784E-3},null,null,null,null,null,{"$f":"((Monthly!EY157-Monthly!EY156)*100)","v":-43.99999999999995},{"$f":"((Monthly!EZ157-Monthly!EZ156)*100)","v":-1.0000000000000231},{"$f":"((Monthly!FA157-Monthly!FA156)*100)","v":12.999999999999989},{"$f":"((Monthly!FB157-Monthly!FB156)*100)","v":7.0000000000000284},"--","--",{"$f":"((Monthly!FE157-Monthly!FE156)*100)","v":-32.000000000000028},{"$f":"((Monthly!FF157-Monthly!FF156)*100)","v":-20.000000000000018},"--",{"$f":"((Monthly!FH157-Monthly!FH156)*100)","v":-55.999999999999957},{"$f":"((Monthly!FI157-Monthly!FI156)*100)","v":-41.000000000000014},null,null,null,null,null,null,{"$f":"(Monthly!FP157/Monthly!FP156)-1","v":-1.0918114143921853E-3},"--","--","--","--","--","--","--","--",null,null,null,null,null,{"$f":"(Monthly!GD157/Monthly!GD156)-1","v":0},"--","--","--","--","--","--","--","--"]
["1971-11-01",null,null,null,{"$f":"(Monthly!E165/Monthly!E164)-1","v":{"$error":"#DIV/0!"}},{"$f":"(Monthly!F165/Monthly!F164)-1","v":{"$error":"#DIV/0!"}},{"$f":"(Monthly!G165/Monthly!G164)-1","v":{"$error":"#DIV/0!"}},{"$f":"(Monthly!H165/Monthly!H164)-1","v":{"$error":"#DIV/0!"}},null,null,null,null,null,null,null,null,null,null,null,null,null,null,null,{"$f":"(Monthly!X165-Monthly!X164)","v":0.20000000000000284},{"$f":"(Monthly!Y165/Monthly!Y164)-1","v":4.6253027253810863E-3},null,null,null,null,null,null,null,null,null,null,null,null,null,{"$f":"(Monthly!AM165/Monthly!AM164)-1","v":4.2443245955097186E-3},"--","--","--",{"$f":"Monthly!AQ165-Monthly!AQ164","v":-2.7000000000000028},"--","--",{"$f":"Monthly!AT165-Monthly!AT164","v":-0.5},"--","--",{"$f":"Monthly!AW165-Monthly!AW164","v":3.5},{"$f":"Monthly!AX165-Monthly!AX164","v":-6},{"$f":"Monthly!AY165-Monthly!AY164","v":2.1999999999999957},{"$f":"Monthly!AZ165-Monthly!AZ164","v":-4.6999999999999957},{"$f":"Monthly!BA165-Monthly!BA164","v":0},"--","--",null,null,null,null,null,null,null,null,null,"--","--",null,null,null,null,null,{"$f":"(Monthly!BT165/Monthly!BT164)-1","v":1.2901909717370819E-2},null,null,null,{"$f":"(Monthly!BX165/Monthly!BX164)-1","v":2.5375939849624052E-2},{"$f":"(Monthly!BY165/Monthly!BY164)-1","v":2.6159921026653432E-2},"--","--",{"$f":"Monthly!CB165-Monthly!CB164","v":-7.1753063631252445E-2},{"$f":"Monthly!CC165-Monthly!CC164","v":6.8246936368748123E-2},"--","--",null,"--","--",null,{"$f":"(Monthly!CJ165/Monthly!CJ164)-1","v":9.7372488408037139E-2},{"$f":"(Monthly!CK165/Monthly!CK164)-1","v":7.9983161439696193E-3},{"$f":"(Monthly!CL165/Monthly!CL164)-1","v":-7.2595281306714332E-3},{"$f":"(Monthly!CM165/Monthly!CM164)-1","v":1.0726072607260662E-2},{"$f":"(Monthly!CN165/Monthly!CN164)-1","v":3.270600626403164E-3},{"$f":"(Monthly!CO165/Monthly!CO164)-1","v":6.9396252602358377E-3},{"$f":"(Monthly!CP165/Monthly!CP164)-1","v":1.186714357576224E-2},{"$f":"(Monthly!CQ165/Monthly!CQ164)-1","v":1.0079435551608729E-3},{"$f":"(Monthly!CR165/Monthly!CR164)-1","v":-9.261932255580918E-4},"--","--",null,null,null,null,null,{"$f":"(Monthly!CZ165/Monthly!CZ164)-1","v":2.4449877750611915E-3},{"$f":"(Monthly!DA165/Monthly!DA164)-1","v":2.3201856148491462E-3},null,null,null,null,null,"--",{"$f":"((Monthly!DH165-Monthly!DH164)*60)","v":6.0000000000000853},{"$f":"((Monthly!DI165-Monthly!DI164)*100)","v":29.999999999999716},"--",{"$f":"((Monthly!DK165-Monthly!DK164)*100)","v":20.000000000000018},{"$f":"Monthly!DL165-Monthly!DL164","v":40},null,null,null,{"$f":"Monthly!DP165-Monthly!DP164","v":204},null,null,null,{"$f":"(Monthly!DT165/Monthly!DT164)-1","v":-3.5618279569892497E-2},{"$f":"Monthly!DU165-Monthly!DU164","v":-9.9999999999999645E-2},"--","--","--","--","--","--","--","--",null,null,null,null,null,null,null,null,null,null,null,null,null,{"$f":"(Monthly!EQ165/Monthly!EQ164)-1","v":0},"--",{"$f":"(Monthly!ES165/Monthly!ES164)-1","v":0},null,null,null,null,null,{"$f":"((Monthly!EY165-Monthly!EY164)*100)","v":-37.000000000000014},{"$f":"((Monthly!EZ165-Monthly!EZ164)*100)","v":-29.000000000000004},{"$f":"((Monthly!FA165-Monthly!FA164)*100)","v":-12.999999999999989},{"$f":"((Monthly!FB165-Monthly!FB164)*100)","v":-9.9999999999999645},"--",{"$f":"((Monthly!FD165-Monthly!FD164)*100)","v":-8.0000000000000071},{"$f":"((Monthly!FE165-Monthly!FE164)*100)","v":-24.000000000000021},{"$f":"((Monthly!FF165-Monthly!FF164)*100)","v":-24.000000000000021},"--",{"$f":"((Monthly!FH165-Monthly!FH164)*100)","v":-14.999999999999947},{"$f":"((Monthly!FI165-Monthly!FI164)*100)","v":-12.000000000000011},null,null,null,null,null,null,{"$f":"(Monthly!FP165/Monthly!FP164)-1","v":-7.9625758933010715E-4},"--","--","--","--","--","--","--","--",null,null,null,null,null,{"$f":"(Monthly!GD165/Monthly!GD164)-1","v":0},"--","--","--","--","--","--","--","--"]
["1972-02-01",null,null,null,{"$f":"(Monthly!E168/Monthly!E167)-1","v":{"$error":"#DIV/0!"}},{"$f":"(Monthly!F168/Monthly!F167)-1","v":{"$error":"#DIV/0!"}},{"$f":"(Monthly!G168/Monthly!G167)-1","v":{"$error":"#DIV/0!"}},{"$f":"(Monthly!H168/Monthly!H167)-1","v":{"$error":"#DIV/0!"}},null,null,null,null,null,null,null,null,null,null,null,null,null,null,null,{"$f":"(Monthly!X168-Monthly!X167)","v":0.60000000000000853},{"$f":"(Monthly!Y168/Monthly!Y167)-1","v":6.2091406471487254E-3},null,null,null,null,null,null,null,null,null,null,null,null,null,{"$f":"(Monthly!AM168/Monthly!AM167)-1","v":9.4210639267535701E-3},{"$f":"(Monthly!AN168/Monthly!AN167)-1","v":6.8572791508898501E-3},"--","--",{"$f":"Monthly!AQ168-Monthly!AQ167","v":1},"--","--",{"$f":"Monthly!AT168-Monthly!AT167","v":1.1000000000000014},"--","--",{"$f":"Monthly!AW168-Monthly!AW167","v":3.3000000000000043},{"$f":"Monthly!AX168-Monthly!AX167","v":1.2000000000000028},{"$f":"Monthly!AY168-Monthly!AY167","v":-5.2000000000000028},{"$f":"Monthly!AZ168-Monthly!AZ167","v":2.1000000000000085},{"$f":"Monthly!BA168-Monthly!BA167","v":-2.6000000000000014},"--","--",null,null,null,null,null,null,null,null,null,"--","--",null,null,null,null,null,{"$f":"(Monthly!BT168/Monthly!BT167)-1","v":1.3808146414222788E-2},null,null,null,{"$f":"(Monthly!BX168/Monthly!BX167)-1","v":-4.1700080192461964E-2},{"$f":"(Monthly!BY168/Monthly!BY167)-1","v":-3.0831099195710476E-2},"--","--",{"$f":"Monthly!CB168-Monthly!CB167","v":0.40125313283206765},{"$f":"Monthly!CC168-Monthly!CC167","v":0.33125313283206914},"--","--",null,"--","--",null,{"$f":"(Monthly!CJ168/Monthly!CJ167)-1","v":1.8624641833810962E-2},{"$f":"(Monthly!CK168/Monthly!CK167)-1","v":1.1574311174843865E-2},{"$f":"(Monthly!CL168/Monthly!CL167)-1","v":3.0985915492957705E-2},{"$f":"(Monthly!CM168/Monthly!CM167)-1","v":-0.11355571327182401},{"$f":"(Monthly!CN168/Monthly!CN167)-1","v":5.4910184597556366E-3},{"$f":"(Monthly!CO168/Monthly!CO167)-1","v":8.1438751272482346E-3},{"$f":"(Monthly!CP168/Monthly!CP167)-1","v":8.5601768922629606E-3},{"$f":"(Monthly!CQ168/Monthly!CQ167)-1","v":6.8926894412624229E-4},{"$f":"(Monthly!CR168/Monthly!CR167)-1","v":2.2244191794351664E-4},"--","--",null,null,null,null,null,{"$f":"(Monthly!CZ168/Monthly!CZ167)-1","v":4.8543689320388328E-3},{"$f":"(Monthly!DA168/Monthly!DA167)-1","v":2.2988505747125743E-3},null,null,null,null,null,"--",{"$f":"((Monthly!DH168-Monthly!DH167)*60)","v":0},{"$f":"((Monthly!DI168-Monthly!DI167)*100)","v":0},"--",{"$f":"((Monthly!DK168-Monthly!DK167)*100)","v":-9.9999999999999645},{"$f":"Monthly!DL168-Monthly!DL167","v":78},null,null,null,{"$f":"Monthly!DP168-Monthly!DP167","v":207},null,null,null,{"$f":"(Monthly!DT168/Monthly!DT167)-1","v":-1.6559337626494974E-2},{"$f":"Monthly!DU168-Monthly!DU167","v":0.39999999999999947},"--","--","--","--","--","--","--","--",null,null,null,null,null,null,null,null,null,null,null,null,null,{"$f":"(Monthly!EQ168/Monthly!EQ167)-1","v":1.0309278350515649E-2},"--",{"$f":"(Monthly!ES168/Monthly!ES167)-1","v":4.7281323877068626E-3},null,null,null,null,null,{"$f":"((Monthly!EY168-Monthly!EY167)*100)","v":-42.999999999999972},{"$f":"((Monthly!EZ168-Monthly!EZ167)*100)","v":-20.999999999999996},{"$f":"((Monthly!FA168-Monthly!FA167)*100)","v":7.9999999999999183},{"$f":"((Monthly!FB168-Monthly!FB167)*100)","v":0},"--",{"$f":"((Monthly!FD168-Monthly!FD167)*100)","v":-11.000000000000032},{"$f":"((Monthly!FE168-Monthly!FE167)*100)","v":-17.999999999999972},{"$f":"((Monthly!FF168-Monthly!FF167)*100)","v":-1.0000000000000675},"--",{"$f":"((Monthly!FH168-Monthly!FH167)*100)","v":10.000000000000053},{"$f":"((Monthly!FI168-Monthly!FI167)*100)","v":12.999999999999989},null,null,null,null,null,null,{"$f":"(Monthly!FP168/Monthly!FP167)-1","v":-1.1929615269908878E-3},"--","--","--","--","--","--","--","--",null,null,null,null,null,{"$f":"(Monthly!GD168/Monthly!GD167)-1","v":0},"--","--","--","--","--","--","--","--"]
["1972-08-01",null,null,null,{"$f":"(Monthly!E174/Monthly!E173)-1","v":{"$error":"#DIV/0!"}},{"$f":"(Monthly!F174/Monthly!F173)-1","v":{"$error":"#DIV/0!"}},{"$f":"(Monthly!G174/Monthly!G173)-1","v":{"$error":"#DIV/0!"}},{"$f":"(Monthly!H174/Monthly!H173)-1","v":{"$error":"#DIV/0!"}},null,null,null,null,null,null,null,null,null,null,null,null,null,null,null,{"$f":"(Monthly!X174-Monthly!X173)","v":0.90000000000000568},{"$f":"(Monthly!Y174/Monthly!Y173)-1","v":1.0639893424616353E-2},null,null,null,null,null,null,null,null,null,null,null,null,null,{"$f":"(Monthly!AM174/Monthly!AM173)-1","v":1.3220151596068597E-2},{"$f":"(Monthly!AN174/Monthly!AN173)-1","v":1.2957571645351385E-2},"--","--",{"$f":"Monthly!AQ174-Monthly!AQ173","v":1.6000000000000014},"--","--",{"$f":"Monthly!AT174-Monthly!AT173","v":5},"--","--",{"$f":"Monthly!AW174-Monthly!AW173","v":8.7999999999999972},{"$f":"Monthly!AX174-Monthly!AX173","v":0.39999999999999147},{"$f":"Monthly!AY174-Monthly!AY173","v":-0.5},{"$f":"Monthly!AZ174-Monthly!AZ173","v":-2.0999999999999943},{"$f":"Monthly!BA174-Monthly!BA173","v":1.1999999999999957},"--","--",null,null,null,null,null,null,null,null,null,"--","--",null,null,null,null,null,{"$f":"(Monthly!BT174/Monthly!BT173)-1","v":1.6013639676881297E-2},null,null,null,{"$f":"(Monthly!BX174/Monthly!BX173)-1","v":5.7726465364120738E-2},{"$f":"(Monthly!BY174/Monthly!BY173)-1","v":3.0979498861047894E-2},"--","--",{"$f":"Monthly!CB174-Monthly!CB173","v":-7.2620762276116579E-3},{"$f":"Monthly!CC174-Monthly!CC173","v":-7.2620762276081052E-3},"--","--",null,"--","--",null,{"$f":"(Monthly!CJ174/Monthly!CJ173)-1","v":0.13509544787077821},{"$f":"(Monthly!CK174/Monthly!CK173)-1","v":1.2277772320989921E-2},{"$f":"(Monthly!CL174/Monthly!CL173)-1","v":4.2926829268292721E-2},{"$f":"(Monthly!CM174/Monthly!CM173)-1","v":4.2635658914728758E-2},{"$f":"(Monthly!CN174/Monthly!CN173)-1","v":9.3259514082992823E-3},{"$f":"(Monthly!CO174/Monthly!CO173)-1","v":1.1374715632109123E-2},{"$f":"(Monthly!CP174/Monthly!CP173)-1","v":1.0551252893726382E-2},{"$f":"(Monthly!CQ174/Monthly!CQ173)-1","v":8.5280329305947866E-4},{"$f":"(Monthly!CR174/Monthly!CR173)-1","v":1.9557937039517803E-2},"--","--",null,null,null,null,null,{"$f":"(Monthly!CZ174/Monthly!CZ173)-1","v":2.3923444976077235E-3},{"$f":"(Monthly!DA174/Monthly!DA173)-1","v":4.5351473922901064E-3},null,null,null,null,null,"--",{"$f":"((Monthly!DH174-Monthly!DH173)*60)","v":0},{"$f":"((Monthly!DI174-Monthly!DI173)*100)","v":20.000000000000284},"--",{"$f":"((Monthly!DK174-Monthly!DK173)*100)","v":0},{"$f":"Monthly!DL174-Monthly!DL173","v":185},null,null,null,{"$f":"Monthly!DP174-Monthly!DP173","v":430},null,null,null,{"$f":"(Monthly!DT174/Monthly!DT173)-1","v":-0.14818548387096775},{"$f":"Monthly!DU174-Monthly!DU173","v":-9.9999999999999645E-2},"--","--","--","--","--","--","--","--",null,null,null,null,null,null,null,null,null,null,null,null,null,{"$f":"(Monthly!EQ174/Monthly!EQ173)-1","v":2.4999999999999467E-3},"--",{"$f":"(Monthly!ES174/Monthly!ES173)-1","v":0},null,null,null,null,null,{"$f":"((Monthly!EY174-Monthly!EY173)*100)","v":1.9999999999999574},{"$f":"((Monthly!EZ174-Monthly!EZ173)*100)","v":25},{"$f":"((Monthly!FA174-Monthly!FA173)*100)","v":-1.9999999999999574},{"$f":"((Monthly!FB174-Monthly!FB173)*100)","v":-4.0000000000000924},"--",{"$f":"((Monthly!FD174-Monthly!FD173)*100)","v":0},{"$f":"((Monthly!FE174-Monthly!FE173)*100)","v":3.9999999999999591},{"$f":"((Monthly!FF174-Monthly!FF173)*100)","v":2.0000000000000462},"--",{"$f":"((Monthly!FH174-Monthly!FH173)*100)","v":4.9999999999999822},{"$f":"((Monthly!FI174-Monthly!FI173)*100)","v":9.9999999999999645},null,null,null,null,null,null,{"$f":"(Monthly!FP174/Monthly!FP173)-1","v":-1.6260162601625661E-3},"--","--","--","--","--","--","--","--",null,null,null,null,null,{"$f":"(Monthly!GD174/Monthly!GD173)-1","v":0},"--","--","--","--","--","--","--","--"]
["1972-09-01",null,null,null,{"$f":"(Monthly!E175/Monthly!E174)-1","v":{"$error":"#DIV/0!"}},{"$f":"(Monthly!F175/Monthly!F174)-1","v":{"$error":"#DIV/0!"}},{"$f":"(Monthly!G175/Monthly!G174)-1","v":{"$error":"#DIV/0!"}},{"$f":"(Monthly!H175/Monthly!H174)-1","v":{"$error":"#DIV/0!"}},null,null,null,null,null,null,null,null,null,null,null,null,null,null,null,{"$f":"(Monthly!X175-Monthly!X174)","v":0.39999999999999147},{"$f":"(Monthly!Y175/Monthly!Y174)-1","v":7.5320435241170713E-3},null,null,null,null,null,null,null,null,null,null,null,null,null,{"$f":"(Monthly!AM175/Monthly!AM174)-1","v":7.5595050951526854E-3},{"$f":"(Monthly!AN175/Monthly!AN174)-1","v":7.0255057533334941E-3},"--","--",{"$f":"Monthly!AQ175-Monthly!AQ174","v":3.3999999999999915},"--","--",{"$f":"Monthly!AT175-Monthly!AT174","v":1.5},"--","--",{"$f":"Monthly!AW175-Monthly!AW174","v":1.2999999999999972},{"$f":"Monthly!AX175-Monthly!AX174","v":4.2000000000000028},{"$f":"Monthly!AY175-Monthly!AY174","v":-2.2999999999999972},{"$f":"Monthly!AZ175-Monthly!AZ174","v":5.0999999999999943},{"$f":"Monthly!BA175-Monthly!BA174","v":2.6000000000000014},"--","--",null,null,null,null,null,null,null,null,null,"--","--",null,null,null,null,null,{"$f":"(Monthly!BT175/Monthly!BT174)-1","v":1.2833805474544935E-2},null,null,null,{"$f":"(Monthly!BX175/Monthly!BX174)-1","v":4.1561712846347687E-2},{"$f":"(Monthly!BY175/Monthly!BY174)-1","v":5.7445868316394089E-2},"--","--",{"$f":"Monthly!CB175-Monthly!CB174","v":0.1378715614010062},{"$f":"Monthly!CC175-Monthly!CC174","v":6.7871561401002367E-2},"--","--",null,"--","--",null,{"$f":"(Monthly!CJ175/Monthly!CJ174)-1","v":-7.7619663648124115E-3},{"$f":"(Monthly!CK175/Monthly!CK174)-1","v":8.0535610324083962E-3},{"$f":"(Monthly!CL175/Monthly!CL174)-1","v":2.3386342376052305E-2},{"$f":"(Monthly!CM175/Monthly!CM174)-1","v":4.014869888475836E-2},{"$f":"(Monthly!CN175/Monthly!CN174)-1","v":3.6746105711622512E-3},{"$f":"(Monthly!CO175/Monthly!CO174)-1","v":9.9614395886891138E-3},{"$f":"(Monthly!CP175/Monthly!CP174)-1","v":1.0154184550841494E-2},{"$f":"(Monthly!CQ175/Monthly!CQ174)-1","v":9.6632155182674317E-4},{"$f":"(Monthly!CR175/Monthly!CR174)-1","v":1.9106118337494093E-2},"--","--",null,null,null,null,null,{"$f":"(Monthly!CZ175/Monthly!CZ174)-1","v":4.7732696897375693E-3},{"$f":"(Monthly!DA175/Monthly!DA174)-1","v":0},null,null,null,null,null,"--",{"$f":"((Monthly!DH175-Monthly!DH174)*60)","v":6.0000000000000853},{"$f":"((Monthly!DI175-Monthly!DI174)*100)","v":-20.000000000000284},"--",{"$f":"((Monthly!DK175-Monthly!DK174)*100)","v":-9.9999999999999645},{"$f":"Monthly!DL175-Monthly!DL174","v":33},null,null,null,{"$f":"Monthly!DP175-Monthly!DP174","v":125},null,null,null,{"$f":"(Monthly!DT175/Monthly!DT174)-1","v":1.5779092702169706E-2},{"$f":"Monthly!DU175-Monthly!DU174","v":-0.40000000000000036},"--","--","--","--","--","--","--","--",null,null,null,null,null,null,null,null,null,null,null,null,null,{"$f":"(Monthly!EQ175/Monthly!EQ174)-1","v":2.4937655860348684E-3},"--",{"$f":"(Monthly!ES175/Monthly!ES174)-1","v":2.3310023310023631E-3},null,null,null,null,null,{"$f":"((Monthly!EY175-Monthly!EY174)*100)","v":23.000000000000043},{"$f":"((Monthly!EZ175-Monthly!EZ174)*100)","v":7.0000000000000284},{"$f":"((Monthly!FA175-Monthly!FA174)*100)","v":2.9999999999999361},{"$f":"((Monthly!FB175-Monthly!FB174)*100)","v":-9.9999999999999645},"--",{"$f":"((Monthly!FD175-Monthly!FD174)*100)","v":1.9999999999999574},{"$f":"((Monthly!FE175-Monthly!FE174)*100)","v":64.000000000000057},{"$f":"((Monthly!FF175-Monthly!FF174)*100)","v":53.999999999999915},"--",{"$f":"((Monthly!FH175-Monthly!FH174)*100)","v":23.000000000000043},{"$f":"((Monthly!FI175-Monthly!FI174)*100)","v":33.999999999999986},null,null,null,null,null,null,{"$f":"(Monthly!FP175/Monthly!FP174)-1","v":6.1074918566772496E-4},"--","--","--","--","--","--","--","--",null,null,null,null,null,{"$f":"(Monthly!GD175/Monthly!GD174)-1","v":0},"--","--","--","--","--","--","--","--"]
["1973-01-01",null,null,null,{"$f":"(Monthly!E179/Monthly!E178)-1","v":{"$error":"#DIV/0!"}},{"$f":"(Monthly!F179/Monthly!F178)-1","v":{"$error":"#DIV/0!"}},{"$f":"(Monthly!G179/Monthly!G178)-1","v":{"$error":"#DIV/0!"}},{"$f":"(Monthly!H179/Monthly!H178)-1","v":{"$error":"#DIV/0!"}},null,null,null,null,null,null,null,null,null,null,null,null,null,null,null,{"$f":"(Monthly!X179-Monthly!X178)","v":0.29999999999999716},{"$f":"(Monthly!Y179/Monthly!Y178)-1","v":1.7310586112315285E-2},null,null,null,null,null,null,null,null,null,null,null,null,null,{"$f":"(Monthly!AM179/Monthly!AM178)-1","v":6.5795586784245241E-3},{"$f":"(Monthly!AN179/Monthly!AN178)-1","v":6.8774533659747838E-3},"--","--",{"$f":"Monthly!AQ179-Monthly!AQ178","v":1.5999999999999943},"--","--",{"$f":"Monthly!AT179-Monthly!AT178","v":4.5999999999999943},"--","--",{"$f":"Monthly!AW179-Monthly!AW178","v":-1.5},{"$f":"Monthly!AX179-Monthly!AX178","v":1.8999999999999915},{"$f":"Monthly!AY179-Monthly!AY178","v":4.9000000000000057},{"$f":"Monthly!AZ179-Monthly!AZ178","v":-0.70000000000000284},{"$f":"Monthly!BA179-Monthly!BA178","v":3},"--","--",null,null,null,null,null,null,null,null,null,"--","--",null,null,null,null,null,{"$f":"(Monthly!BT179/Monthly!BT178)-1","v":1.4277487359269037E-2},null,null,null,{"$f":"(Monthly!BX179/Monthly!BX178)-1","v":4.8605240912933168E-2},{"$f":"(Monthly!BY179/Monthly!BY178)-1","v":-6.118230673832159E-2},"--","--",{"$f":"Monthly!CB179-Monthly!CB178","v":-6.5549335034120304E-2},{"$f":"Monthly!CC179-Monthly!CC178","v":-0.27554933503411938},"--","--",null,"--","--",null,{"$f":"(Monthly!CJ179/Monthly!CJ178)-1","v":1.1658031088082943E-2},{"$f":"(Monthly!CK179/Monthly!CK178)-1","v":-8.2949308755764228E-4},{"$f":"(Monthly!CL179/Monthly!CL178)-1","v":-9.6093749999999978E-2},{"$f":"(Monthly!CM179/Monthly!CM178)-1","v":0.13661636219221607},{"$f":"(Monthly!CN179/Monthly!CN178)-1","v":-5.0994390617031815E-3},{"$f":"(Monthly!CO179/Monthly!CO178)-1","v":4.0448039825762283E-3},{"$f":"(Monthly!CP179/Monthly!CP178)-1","v":1.8687146148574252E-2},{"$f":"(Monthly!CQ179/Monthly!CQ178)-1","v":7.7791111891123421E-4},{"$f":"(Monthly!CR179/Monthly!CR178)-1","v":1.8125213237807358E-4},"--","--",null,null,null,null,null,{"$f":"(Monthly!CZ179/Monthly!CZ178)-1","v":4.7058823529413374E-3},{"$f":"(Monthly!DA179/Monthly!DA178)-1","v":0},null,null,null,null,null,"--",{"$f":"((Monthly!DH179-Monthly!DH178)*60)","v":0},{"$f":"((Monthly!DI179-Monthly!DI178)*100)","v":-50},"--",{"$f":"((Monthly!DK179-Monthly!DK178)*100)","v":-29.999999999999982},{"$f":"Monthly!DL179-Monthly!DL178","v":118},null,null,null,{"$f":"Monthly!DP179-Monthly!DP178","v":351},null,null,null,{"$f":"(Monthly!DT179/Monthly!DT178)-1","v":-5.7343234323432357E-2},{"$f":"Monthly!DU179-Monthly!DU178","v":-0.39999999999999947},"--","--","--","--","--","--","--","--",null,null,null,null,null,null,null,null,null,null,null,null,null,{"$f":"(Monthly!EQ179/Monthly!EQ178)-1","v":1.2165450121654597E-2},"--",{"$f":"(Monthly!ES179/Monthly!ES178)-1","v":0},null,null,null,null,null,{"$f":"((Monthly!EY179-Monthly!EY178)*100)","v":20.999999999999996},{"$f":"((Monthly!EZ179-Monthly!EZ178)*100)","v":61.000000000000028},{"$f":"((Monthly!FA179-Monthly!FA178)*100)","v":7.0000000000000284},{"$f":"((Monthly!FB179-Monthly!FB178)*100)","v":-2.9999999999999361},"--",{"$f":"((Monthly!FD179-Monthly!FD178)*100)","v":0},{"$f":"((Monthly!FE179-Monthly!FE178)*100)","v":33.999999999999986},{"$f":"((Monthly!FF179-Monthly!FF178)*100)","v":37.000000000000014},"--",{"$f":"((Monthly!FH179-Monthly!FH178)*100)","v":17.999999999999972},{"$f":"((Monthly!FI179-Monthly!FI178)*100)","v":9.9999999999999645},null,null,null,null,null,null,{"$f":"(Monthly!FP179/Monthly!FP178)-1","v":2.5080256821830016E-3},"--","--","--","--","--","--","--","--",null,null,null,null,null,{"$f":"(Monthly!GD179/Monthly!GD178)-1","v":0},"--","--","--",{"$f":"(Monthly!GH179/Monthly!GH178)-1","v":{"$error":"#VALUE!"}},"--","--","--","--"]
["1973-08-01",null,null,null,{"$f":"(Monthly!E186/Monthly!E185)-1","v":{"$error":"#DIV/0!"}},{"$f":"(Monthly!F186/Monthly!F185)-1","v":{"$error":"#DIV/0!"}},{"$f":"(Monthly!G186/Monthly!G185)-1","v":{"$error":"#DIV/0!"}},{"$f":"(Monthly!H186/Monthly!H185)-1","v":{"$error":"#DIV/0!"}},null,null,null,null,null,null,null,null,null,null,null,null,null,null,null,{"$f":"(Monthly!X186-Monthly!X185)","v":-0.5},{"$f":"(Monthly!Y186/Monthly!Y185)-1","v":1.7633527780692493E-2},null,null,null,null,null,null,null,null,null,null,null,null,null,{"$f":"(Monthly!AM186/Monthly!AM185)-1","v":-1.7385525638827781E-3},{"$f":"(Monthly!AN186/Monthly!AN185)-1","v":-3.0759245074106767E-3},"--","--",{"$f":"Monthly!AQ186-Monthly!AQ185","v":4.9000000000000057},"--","--",{"$f":"Monthly!AT186-Monthly!AT185","v":-1.5},"--","--",{"$f":"Monthly!AW186-Monthly!AW185","v":-1.8999999999999986},{"$f":"Monthly!AX186-Monthly!AX185","v":9.8999999999999986},{"$f":"Monthly!AY186-Monthly!AY185","v":16.5},{"$f":"Monthly!AZ186-Monthly!AZ185","v":8.6000000000000014},{"$f":"Monthly!BA186-Monthly!BA185","v":1.5},"--","--",null,null,null,null,null,null,null,null,null,"--","--",null,null,null,null,null,{"$f":"(Monthly!BT186/Monthly!BT185)-1","v":1.0157412865278825E-2},null,null,null,{"$f":"(Monthly!BX186/Monthly!BX185)-1","v":-3.3914272256241218E-2},{"$f":"(Monthly!BY186/Monthly!BY185)-1","v":-5.4975261132490516E-3},"--","--",{"$f":"Monthly!CB186-Monthly!CB185","v":1.6569412248347071},{"$f":"Monthly!CC186-Monthly!CC185","v":1.6569412248347071},"--","--",null,"--","--",null,{"$f":"(Monthly!CJ186/Monthly!CJ185)-1","v":-5.8236272878535722E-2},{"$f":"(Monthly!CK186/Monthly!CK185)-1","v":8.7750087750086969E-3},{"$f":"(Monthly!CL186/Monthly!CL185)-1","v":7.2373540856031315E-2},{"$f":"(Monthly!CM186/Monthly!CM185)-1","v":-6.1120543293718188E-2},{"$f":"(Monthly!CN186/Monthly!CN185)-1","v":-2.9436183862933119E-3},{"$f":"(Monthly!CO186/Monthly!CO185)-1","v":-4.5815516188149052E-3},{"$f":"(Monthly!CP186/Monthly!CP185)-1","v":1.101535666762854E-2},{"$f":"(Monthly!CQ186/Monthly!CQ185)-1","v":8.6357823405336376E-4},{"$f":"(Monthly!CR186/Monthly!CR185)-1","v":2.5648817267608148E-2},"--","--",null,null,null,null,null,{"$f":"(Monthly!CZ186/Monthly!CZ185)-1","v":1.8099547511312153E-2},{"$f":"(Monthly!DA186/Monthly!DA185)-1","v":4.39560439560438E-3},null,null,null,null,null,"--",{"$f":"((Monthly!DH186-Monthly!DH185)*60)","v":0},{"$f":"((Monthly!DI186-Monthly!DI185)*100)","v":-19.999999999999574},"--",{"$f":"((Monthly!DK186-Monthly!DK185)*100)","v":0},{"$f":"Monthly!DL186-Monthly!DL185","v":31},null,null,null,{"$f":"Monthly!DP186-Monthly!DP185","v":255},null,null,null,{"$f":"(Monthly!DT186/Monthly!DT185)-1","v":3.8101059494702438E-2},{"$f":"Monthly!DU186-Monthly!DU185","v":-0.29999999999999982},"--","--","--","--","--","--","--","--",null,null,null,null,null,null,null,null,null,null,null,null,null,{"$f":"(Monthly!EQ186/Monthly!EQ185)-1","v":5.7906458797327476E-2},"--",{"$f":"(Monthly!ES186/Monthly!ES185)-1","v":2.2573363431150906E-3},null,null,null,null,null,{"$f":"((Monthly!EY186-Monthly!EY185)*100)","v":92.999999999999972},{"$f":"((Monthly!EZ186-Monthly!EZ185)*100)","v":9.9999999999999645},{"$f":"((Monthly!FA186-Monthly!FA185)*100)","v":22.999999999999954},{"$f":"((Monthly!FB186-Monthly!FB185)*100)","v":28.999999999999915},"--",{"$f":"((Monthly!FD186-Monthly!FD185)*100)","v":44.999999999999929},{"$f":"((Monthly!FE186-Monthly!FE185)*100)","v":66.000000000000014},{"$f":"((Monthly!FF186-Monthly!FF185)*100)","v":42.999999999999972},"--",{"$f":"((Monthly!FH186-Monthly!FH185)*100)","v":29.999999999999982},{"$f":"((Monthly!FI186-Monthly!FI185)*100)","v":27.000000000000046},null,null,null,null,null,null,{"$f":"(Monthly!FP186/Monthly!FP185)-1","v":4.4022011005502293E-3},"--","--","--",{"$f":"(Monthly!FT186/Monthly!FT185)-1","v":1.1218095175925313E-2},{"$f":"(Monthly!FU186/Monthly!FU185)-1","v":1.4934660858743065E-2},"--","--","--",null,null,null,null,null,{"$f":"(Monthly!GD186/Monthly!GD185)-1","v":0.21067415730337058},"--","--","--",{"$f":"(Monthly!GH186/Monthly!GH185)-1","v":{"$error":"#DIV/0!"}},"--","--","--","--"]
["1973-11-01",null,null,null,{"$f":"(Monthly!E189/Monthly!E188)-1","v":{"$error":"#DIV/0!"}},{"$f":"(Monthly!F189/Monthly!F188)-1","v":{"$error":"#DIV/0!"}},{"$f":"(Monthly!G189/Monthly!G188)-1","v":{"$error":"#DIV/0!"}},{"$f":"(Monthly!H189/Monthly!H188)-1","v":{"$error":"#DIV/0!"}},null,null,null,null,null,null,null,null,null,null,null,null,null,null,null,{"$f":"(Monthly!X189-Monthly!X188)","v":0.20000000000000284},{"$f":"(Monthly!Y189/Monthly!Y188)-1","v":4.8118545398803114E-3},null,null,null,null,null,null,null,null,null,null,null,null,null,{"$f":"(Monthly!AM189/Monthly!AM188)-1","v":5.2495047537299833E-3},{"$f":"(Monthly!AN189/Monthly!AN188)-1","v":7.6731334509112514E-3},"--","--",{"$f":"Monthly!AQ189-Monthly!AQ188","v":1.8999999999999915},"--","--",{"$f":"Monthly!AT189-Monthly!AT188","v":0.39999999999999858},"--","--",{"$f":"Monthly!AW189-Monthly!AW188","v":-2.7000000000000028},{"$f":"Monthly!AX189-Monthly!AX188","v":-0.20000000000000284},{"$f":"Monthly!AY189-Monthly!AY188","v":4.6999999999999886},{"$f":"Monthly!AZ189-Monthly!AZ188","v":3.6000000000000014},{"$f":"Monthly!BA189-Monthly!BA188","v":8.0999999999999943},"--","--",null,null,null,null,null,null,null,null,null,"--","--",null,null,null,null,null,{"$f":"(Monthly!BT189/Monthly!BT188)-1","v":1.0196417151140391E-2},null,null,null,{"$f":"(Monthly!BX189/Monthly!BX188)-1","v":2.8026237328562909E-2},{"$f":"(Monthly!BY189/Monthly!BY188)-1","v":-6.3784549964563952E-3},"--","--",{"$f":"Monthly!CB189-Monthly!CB188","v":0.39784494321737363},{"$f":"Monthly!CC189-Monthly!CC188","v":0.53784494321737242},"--","--",null,"--","--",null,{"$f":"(Monthly!CJ189/Monthly!CJ188)-1","v":-3.1858407079646045E-2},{"$f":"(Monthly!CK189/Monthly!CK188)-1","v":1.0528103243335085E-2},{"$f":"(Monthly!CL189/Monthly!CL188)-1","v":9.6286107290233236E-3},{"$f":"(Monthly!CM189/Monthly!CM188)-1","v":-1.0309278350515427E-2},{"$f":"(Monthly!CN189/Monthly!CN188)-1","v":1.6425673825937182E-3},{"$f":"(Monthly!CO189/Monthly!CO188)-1","v":9.2165898617513342E-4},{"$f":"(Monthly!CP189/Monthly!CP188)-1","v":9.7756460690188174E-3},{"$f":"(Monthly!CQ189/Monthly!CQ188)-1","v":7.4832333215679725E-4},{"$f":"(Monthly!CR189/Monthly!CR188)-1","v":1.5606424913074068E-2},"--","--",null,null,null,null,null,{"$f":"(Monthly!CZ189/Monthly!CZ188)-1","v":6.5789473684210176E-3},{"$f":"(Monthly!DA189/Monthly!DA188)-1","v":4.3196544276458138E-3},null,null,null,null,null,"--",{"$f":"((Monthly!DH189-Monthly!DH188)*60)","v":11.999999999999744},{"$f":"((Monthly!DI189-Monthly!DI188)*100)","v":30.000000000000426},"--",{"$f":"((Monthly!DK189-Monthly!DK188)*100)","v":20.000000000000018},{"$f":"Monthly!DL189-Monthly!DL188","v":71},null,null,null,{"$f":"Monthly!DP189-Monthly!DP188","v":306},null,null,null,{"$f":"(Monthly!DT189/Monthly!DT188)-1","v":5.7136963696369669E-2},{"$f":"Monthly!DU189-Monthly!DU188","v":-0.40000000000000036},"--","--","--","--","--","--","--","--",null,null,null,null,null,null,null,null,null,null,null,null,null,{"$f":"(Monthly!EQ189/Monthly!EQ188)-1","v":4.3196544276458138E-3},"--",{"$f":"(Monthly!ES189/Monthly!ES188)-1","v":4.4742729306486151E-3},null,null,null,null,null,{"$f":"((Monthly!EY189-Monthly!EY188)*100)","v":-18.99999999999995},{"$f":"((Monthly!EZ189-Monthly!EZ188)*100)","v":1.9999999999999574},{"$f":"((Monthly!FA189-Monthly!FA188)*100)","v":7.0000000000000284},{"$f":"((Monthly!FB189-Monthly!FB188)*100)","v":0.99999999999997868},"--",{"$f":"((Monthly!FD189-Monthly!FD188)*100)","v":-18.99999999999995},{"$f":"((Monthly!FE189-Monthly!FE188)*100)","v":61.000000000000028},{"$f":"((Monthly!FF189-Monthly!FF188)*100)","v":16.999999999999993},"--",{"$f":"((Monthly!FH189-Monthly!FH188)*100)","v":15.000000000000036},{"$f":"((Monthly!FI189-Monthly!FI188)*100)","v":-5.9999999999999609},null,null,null,null,null,null,{"$f":"(Monthly!FP189/Monthly!FP188)-1","v":-1.9978024173410436E-3},"--","--","--",{"$f":"(Monthly!FT189/Monthly!FT188)-1","v":3.1278561670601501E-2},{"$f":"(Monthly!FU189/Monthly!FU188)-1","v":2.9867097774841644E-2},"--","--","--",null,null,null,null,null,{"$f":"(Monthly!GD189/Monthly!GD188)-1","v":0},"--","--","--",{"$f":"(Monthly!GH189/Monthly!GH188)-1","v":{"$error":"#DIV/0!"}},"--","--","--","--"]
["1974-03-01",null,null,null,{"$f":"(Monthly!E193/Monthly!E192)-1","v":{"$error":"#DIV/0!"}},{"$f":"(Monthly!F193/Monthly!F192)-1","v":{"$error":"#DIV/0!"}},{"$f":"(Monthly!G193/Monthly!G192)-1","v":{"$error":"#DIV/0!"}},{"$f":"(Monthly!H193/Monthly!H192)-1","v":{"$error":"#DIV/0!"}},null,null,null,null,null,null,null,null,null,null,null,null,null,null,null,{"$f":"(Monthly!X193-Monthly!X192)","v":-0.20000000000000284},{"$f":"(Monthly!Y193/Monthly!Y192)-1","v":2.4547860073313554E-2},null,null,null,null,null,null,null,null,null,null,null,null,null,{"$f":"(Monthly!AM193/Monthly!AM192)-1","v":2.1080245467741676E-4},{"$f":"(Monthly!AN193/Monthly!AN192)-1","v":-2.8588102151660966E-4},"--","--",{"$f":"Monthly!AQ193-Monthly!AQ192","v":3.1999999999999957},"--","--",{"$f":"Monthly!AT193-Monthly!AT192","v":5.2999999999999972},"--","--",{"$f":"Monthly!AW193-Monthly!AW192","v":0.30000000000000426},{"$f":"Monthly!AX193-Monthly!AX192","v":2},{"$f":"Monthly!AY193-Monthly!AY192","v":0.40000000000000568},{"$f":"Monthly!AZ193-Monthly!AZ192","v":6.0999999999999943},{"$f":"Monthly!BA193-Monthly!BA192","v":0.10000000000000853},"--","--",null,null,null,null,null,null,null,null,null,"--","--",null,null,null,null,null,{"$f":"(Monthly!BT193/Monthly!BT192)-1","v":6.2653309990921002E-3},null,null,null,{"$f":"(Monthly!BX193/Monthly!BX192)-1","v":-0.11244292237442921},{"$f":"(Monthly!BY193/Monthly!BY192)-1","v":5.8823529411764719E-2},"--","--",{"$f":"Monthly!CB193-Monthly!CB192","v":3.8248847926281471E-2},{"$f":"Monthly!CC193-Monthly!CC192","v":-3.175115207372059E-2},"--","--",null,"--","--",null,{"$f":"(Monthly!CJ193/Monthly!CJ192)-1","v":6.1224489795918435E-2},{"$f":"(Monthly!CK193/Monthly!CK192)-1","v":4.7318611987381409E-3},{"$f":"(Monthly!CL193/Monthly!CL192)-1","v":-5.129958960328318E-2},{"$f":"(Monthly!CM193/Monthly!CM192)-1","v":-2.1190716448032276E-2},{"$f":"(Monthly!CN193/Monthly!CN192)-1","v":-7.4422843256379823E-3},{"$f":"(Monthly!CO193/Monthly!CO192)-1","v":3.0506406345331971E-3},{"$f":"(Monthly!CP193/Monthly!CP192)-1","v":4.3767927137257079E-3},{"$f":"(Monthly!CQ193/Monthly!CQ192)-1","v":6.4296910932348794E-4},{"$f":"(Monthly!CR193/Monthly!CR192)-1","v":4.4674389037999696E-3},"--","--",null,null,null,null,null,{"$f":"(Monthly!CZ193/Monthly!CZ192)-1","v":1.0570824524312794E-2},{"$f":"(Monthly!DA193/Monthly!DA192)-1","v":8.4745762711864181E-3},null,null,null,null,null,"--",{"$f":"((Monthly!DH193-Monthly!DH192)*60)","v":0},{"$f":"((Monthly!DI193-Monthly!DI192)*100)","v":-10.000000000000142},"--",{"$f":"((Monthly!DK193-Monthly!DK192)*100)","v":-10.000000000000053},{"$f":"Monthly!DL193-Monthly!DL192","v":-27},null,null,null,{"$f":"Monthly!DP193-Monthly!DP192","v":42},null,null,null,{"$f":"(Monthly!DT193/Monthly!DT192)-1","v":-2.1664050235478793E-2},{"$f":"Monthly!DU193-Monthly!DU192","v":-0.29999999999999982},"--","--","--","--","--","--","--","--",null,null,null,null,null,null,null,null,null,null,null,null,null,{"$f":"(Monthly!EQ193/Monthly!EQ192)-1","v":1.2000000000000011E-2},{"$f":"(Monthly!ER193/Monthly!ER192)-1","v":1.0000000000000009E-2},{"$f":"(Monthly!ES193/Monthly!ES192)-1","v":1.298701298701288E-2},null,null,null,null,null,{"$f":"((Monthly!EY193-Monthly!EY192)*100)","v":-36.000000000000121},{"$f":"((Monthly!EZ193-Monthly!EZ192)*100)","v":37.999999999999901},{"$f":"((Monthly!FA193-Monthly!FA192)*100)","v":16.000000000000014},{"$f":"((Monthly!FB193-Monthly!FB192)*100)","v":8.9999999999999858},"--",{"$f":"((Monthly!FD193-Monthly!FD192)*100)","v":-5.0000000000000711},{"$f":"((Monthly!FE193-Monthly!FE192)*100)","v":83.999999999999986},{"$f":"((Monthly!FF193-Monthly!FF192)*100)","v":87.999999999999986},"--",{"$f":"((Monthly!FH193-Monthly!FH192)*100)","v":48.999999999999929},{"$f":"((Monthly!FI193-Monthly!FI192)*100)","v":25},null,null,null,null,null,null,{"$f":"(Monthly!FP193/Monthly!FP192)-1","v":-4.7102191275855132E-3},"--","--","--",{"$f":"(Monthly!FT193/Monthly!FT192)-1","v":-1.5169355035506094E-2},{"$f":"(Monthly!FU193/Monthly!FU192)-1","v":-2.1447734120306983E-2},{"$f":"(Monthly!FV193/Monthly!FV192)-1","v":0.27652871258771317},{"$f":"(Monthly!FW193/Monthly!FW192)-1","v":-6.5789473684210509E-2},{"$f":"(Monthly!FX193/Monthly!FX192)-1","v":0.35918854415274448},null,null,null,null,null,{"$f":"(Monthly!GD193/Monthly!GD192)-1","v":0},"--","--","--",{"$f":"(Monthly!GH193/Monthly!GH192)-1","v":{"$error":"#DIV/0!"}},"--","--","--","--"]
["1974-09-01",null,null,null,{"$f":"(Monthly!E199/Monthly!E198)-1","v":{"$error":"#DIV/0!"}},{"$f":"(Monthly!F199/Monthly!F198)-1","v":{"$error":"#DIV/0!"}},{"$f":"(Monthly!G199/Monthly!G198)-1","v":{"$error":"#DIV/0!"}},{"$f":"(Monthly!H199/Monthly!H198)-1","v":{"$error":"#DIV/0!"}},null,null,null,null,null,null,null,null,null,null,null,null,null,null,null,{"$f":"(Monthly!X199-Monthly!X198)","v":-0.10000000000000853},{"$f":"(Monthly!Y199/Monthly!Y198)-1","v":8.6499815700988858E-3},null,null,null,null,null,null,null,null,null,null,null,null,null,{"$f":"(Monthly!AM199/Monthly!AM198)-1","v":5.9758140172450069E-4},{"$f":"(Monthly!AN199/Monthly!AN198)-1","v":1.8468099689659123E-3},"--","--",{"$f":"Monthly!AQ199-Monthly!AQ198","v":-6.6999999999999957},"--","--",{"$f":"Monthly!AT199-Monthly!AT198","v":-4.3000000000000043},"--","--",{"$f":"Monthly!AW199-Monthly!AW198","v":-2.2000000000000028},{"$f":"Monthly!AX199-Monthly!AX198","v":-9},{"$f":"Monthly!AY199-Monthly!AY198","v":-5.0999999999999943},{"$f":"Monthly!AZ199-Monthly!AZ198","v":-3.3000000000000043},{"$f":"Monthly!BA199-Monthly!BA198","v":-14.5},"--","--",null,null,null,null,null,null,null,null,null,"--","--",null,null,null,null,null,{"$f":"(Monthly!BT199/Monthly!BT198)-1","v":2.2484679317029688E-3},null,null,null,{"$f":"(Monthly!BX199/Monthly!BX198)-1","v":7.0052539404552583E-3},{"$f":"(Monthly!BY199/Monthly!BY198)-1","v":-8.3969465648854991E-2},"--","--",{"$f":"Monthly!CB199-Monthly!CB198","v":1.458013765978361},{"$f":"Monthly!CC199-Monthly!CC198","v":1.7380137659783621},"--","--",null,"--","--",null,{"$f":"(Monthly!CJ199/Monthly!CJ198)-1","v":3.8617886178861749E-2},{"$f":"(Monthly!CK199/Monthly!CK198)-1","v":8.8516557338180757E-3},{"$f":"(Monthly!CL199/Monthly!CL198)-1","v":7.2093023255814126E-2},{"$f":"(Monthly!CM199/Monthly!CM198)-1","v":5.2631578947368363E-2},{"$f":"(Monthly!CN199/Monthly!CN198)-1","v":-1.6096887934999859E-3},{"$f":"(Monthly!CO199/Monthly!CO198)-1","v":2.1084337349397408E-3},{"$f":"(Monthly!CP199/Monthly!CP198)-1","v":1.5066467051447763E-3},{"$f":"(Monthly!CQ199/Monthly!CQ198)-1","v":9.5308397417337432E-4},{"$f":"(Monthly!CR199/Monthly!CR198)-1","v":1.721080549947418E-2},"--","--",null,null,null,null,null,{"$f":"(Monthly!CZ199/Monthly!CZ198)-1","v":1.4028056112224574E-2},{"$f":"(Monthly!DA199/Monthly!DA198)-1","v":9.960159362549792E-3},null,null,null,null,null,"--",{"$f":"((Monthly!DH199-Monthly!DH198)*60)","v":-6.0000000000000853},{"$f":"((Monthly!DI199-Monthly!DI198)*100)","v":19.999999999999574},"--",{"$f":"((Monthly!DK199-Monthly!DK198)*100)","v":40.000000000000036},{"$f":"Monthly!DL199-Monthly!DL198","v":-78},null,null,null,{"$f":"Monthly!DP199-Monthly!DP198","v":-8},null,null,null,{"$f":"(Monthly!DT199/Monthly!DT198)-1","v":5.1749271137026209E-2},{"$f":"Monthly!DU199-Monthly!DU198","v":0.29999999999999982},"--","--","--","--","--","--","--","--",null,null,null,null,null,null,null,null,null,null,null,null,null,{"$f":"(Monthly!EQ199/Monthly!EQ198)-1","v":0},{"$f":"(Monthly!ER199/Monthly!ER198)-1","v":1.2727272727272698E-2},{"$f":"(Monthly!ES199/Monthly!ES198)-1","v":1.9193857965451144E-2},null,null,null,null,null,{"$f":"((Monthly!EY199-Monthly!EY198)*100)","v":0},{"$f":"((Monthly!EZ199-Monthly!EZ198)*100)","v":-67},{"$f":"((Monthly!FA199-Monthly!FA198)*100)","v":24.000000000000021},{"$f":"((Monthly!FB199-Monthly!FB198)*100)","v":41.000000000000014},"--",{"$f":"((Monthly!FD199-Monthly!FD198)*100)","v":37.000000000000099},{"$f":"((Monthly!FE199-Monthly!FE198)*100)","v":-90.000000000000028},{"$f":"((Monthly!FF199-Monthly!FF198)*100)","v":-49.000000000000021},"--",{"$f":"((Monthly!FH199-Monthly!FH198)*100)","v":-26.000000000000156},{"$f":"((Monthly!FI199-Monthly!FI198)*100)","v":0},null,null,null,null,null,null,{"$f":"(Monthly!FP199/Monthly!FP198)-1","v":6.6333299316256866E-3},"--","--","--",{"$f":"(Monthly!FT199/Monthly!FT198)-1","v":4.9669378675685216E-3},{"$f":"(Monthly!FU199/Monthly!FU198)-1","v":5.3080237229023997E-3},{"$f":"(Monthly!FV199/Monthly!FV198)-1","v":6.0137851809304976E-2},{"$f":"(Monthly!FW199/Monthly!FW198)-1","v":-3.125E-2},{"$f":"(Monthly!FX199/Monthly!FX198)-1","v":-0.12705727452271243},null,null,null,null,null,{"$f":"(Monthly!GD199/Monthly!GD198)-1","v":0},"--","--","--",{"$f":"(Monthly!GH199/Monthly!GH198)-1","v":{"$error":"#DIV/0!"}},"--","--","--","--"]
["1975-02-01",null,null,null,{"$f":"(Monthly!E204/Monthly!E203)-1","v":{"$error":"#DIV/0!"}},{"$f":"(Monthly!F204/Monthly!F203)-1","v":{"$error":"#DIV/0!"}},{"$f":"(Monthly!G204/Monthly!G203)-1","v":{"$error":"#DIV/0!"}},{"$f":"(Monthly!H204/Monthly!H203)-1","v":{"$error":"#DIV/0!"}},null,null,null,null,null,null,null,null,null,null,null,null,null,null,null,{"$f":"(Monthly!X204-Monthly!X203)","v":-1.9000000000000057},{"$f":"(Monthly!Y204/Monthly!Y203)-1","v":-6.2968814673655116E-3},null,null,null,null,null,null,null,null,null,null,null,null,null,{"$f":"(Monthly!AM204/Monthly!AM203)-1","v":-2.3222633719871211E-2},{"$f":"(Monthly!AN204/Monthly!AN203)-1","v":-2.8516130055763256E-2},"--","--",{"$f":"Monthly!AQ204-Monthly!AQ203","v":3.6999999999999993},"--","--",{"$f":"Monthly!AT204-Monthly!AT203","v":3.4000000000000021},"--","--",{"$f":"Monthly!AW204-Monthly!AW203","v":-6},{"$f":"Monthly!AX204-Monthly!AX203","v":7.2000000000000028},{"$f":"Monthly!AY204-Monthly!AY203","v":-5.3000000000000043},{"$f":"Monthly!AZ204-Monthly!AZ203","v":8.1000000000000014},{"$f":"Monthly!BA204-Monthly!BA203","v":-3.5999999999999996},"--","--",null,null,null,null,null,null,null,null,null,"--","--",null,null,null,null,null,{"$f":"(Monthly!BT204/Monthly!BT203)-1","v":1.9696534018476264E-3},null,null,null,{"$f":"(Monthly!BX204/Monthly!BX203)-1","v":-0.12403100775193798},{"$f":"(Monthly!BY204/Monthly!BY203)-1","v":4.1322314049587749E-3},"--","--",{"$f":"Monthly!CB204-Monthly!CB203","v":-0.54706275636506874},{"$f":"Monthly!CC204-Monthly!CC203","v":-0.54706275636506518},"--","--",null,"--","--",null,{"$f":"(Monthly!CJ204/Monthly!CJ203)-1","v":1.4423076923076872E-2},{"$f":"(Monthly!CK204/Monthly!CK203)-1","v":4.7328244274809084E-3},{"$f":"(Monthly!CL204/Monthly!CL203)-1","v":-5.0744248985114981E-2},{"$f":"(Monthly!CM204/Monthly!CM203)-1","v":-0.12810457516339868},{"$f":"(Monthly!CN204/Monthly!CN203)-1","v":4.0978358304522011E-4},{"$f":"(Monthly!CO204/Monthly!CO203)-1","v":8.504398826979509E-3},{"$f":"(Monthly!CP204/Monthly!CP203)-1","v":2.2314476378404446E-3},{"$f":"(Monthly!CQ204/Monthly!CQ203)-1","v":6.2345589980039584E-4},{"$f":"(Monthly!CR204/Monthly!CR203)-1","v":-4.0150961589164869E-3},"--","--",null,null,null,null,null,{"$f":"(Monthly!CZ204/Monthly!CZ203)-1","v":5.7361376673041864E-3},{"$f":"(Monthly!DA204/Monthly!DA203)-1","v":9.5602294455066072E-3},null,null,null,null,null,"--",{"$f":"((Monthly!DH204-Monthly!DH203)*60)","v":-12.000000000000171},{"$f":"((Monthly!DI204-Monthly!DI203)*100)","v":-39.999999999999858},"--",{"$f":"((Monthly!DK204-Monthly!DK203)*100)","v":0},{"$f":"Monthly!DL204-Monthly!DL203","v":-340},null,null,null,{"$f":"Monthly!DP204-Monthly!DP203","v":-378},null,null,null,{"$f":"(Monthly!DT204/Monthly!DT203)-1","v":1.7757009345794383E-2},{"$f":"Monthly!DU204-Monthly!DU203","v":0.79999999999999982},"--","--","--","--","--","--","--","--",null,null,null,null,null,null,null,null,null,null,null,null,null,{"$f":"(Monthly!EQ204/Monthly!EQ203)-1","v":-3.4843205574912606E-3},{"$f":"(Monthly!ER204/Monthly!ER203)-1","v":6.8610634648371693E-3},{"$f":"(Monthly!ES204/Monthly!ES203)-1","v":8.8967971530249379E-3},null,null,null,null,null,{"$f":"((Monthly!EY204-Monthly!EY203)*100)","v":-108.99999999999999},{"$f":"((Monthly!EZ204-Monthly!EZ203)*100)","v":-88.999999999999972},{"$f":"((Monthly!FA204-Monthly!FA203)*100)","v":-21.000000000000085},{"$f":"((Monthly!FB204-Monthly!FB203)*100)","v":-16.000000000000014},"--",{"$f":"((Monthly!FD204-Monthly!FD203)*100)","v":-32.000000000000028},{"$f":"((Monthly!FE204-Monthly!FE203)*100)","v":-75.999999999999972},{"$f":"((Monthly!FF204-Monthly!FF203)*100)","v":-84.999999999999972},"--",{"$f":"((Monthly!FH204-Monthly!FH203)*100)","v":-29.999999999999982},{"$f":"((Monthly!FI204-Monthly!FI203)*100)","v":-11.000000000000032},null,null,null,null,null,null,{"$f":"(Monthly!FP204/Monthly!FP203)-1","v":5.6292722155206754E-3},"--","--","--",{"$f":"(Monthly!FT204/Monthly!FT203)-1","v":-8.6379734126728058E-3},{"$f":"(Monthly!FU204/Monthly!FU203)-1","v":-1.211181546783302E-2},{"$f":"(Monthly!FV204/Monthly!FV203)-1","v":-0.10394838425057906},{"$f":"(Monthly!FW204/Monthly!FW203)-1","v":-0.24460431654676262},{"$f":"(Monthly!FX204/Monthly!FX203)-1","v":8.9338598223099641E-2},null,null,null,null,null,{"$f":"(Monthly!GD204/Monthly!GD203)-1","v":0},"--","--","--",{"$f":"(Monthly!GH204/Monthly!GH203)-1","v":{"$error":"#DIV/0!"}},"--","--","--","--"]
["1975-06-01",null,null,null,{"$f":"(Monthly!E208/Monthly!E207)-1","v":{"$error":"#DIV/0!"}},{"$f":"(Monthly!F208/Monthly!F207)-1","v":{"$error":"#DIV/0!"}},{"$f":"(Monthly!G208/Monthly!G207)-1","v":{"$error":"#DIV/0!"}},{"$f":"(Monthly!H208/Monthly!H207)-1","v":{"$error":"#DIV/0!"}},null,null,null,null,null,null,null,null,null,null,null,null,null,null,null,{"$f":"(Monthly!X208-Monthly!X207)","v":0.39999999999999147},{"$f":"(Monthly!Y208/Monthly!Y207)-1","v":-7.7173597600954658E-3},null,null,null,null,null,null,null,null,null,null,null,null,null,{"$f":"(Monthly!AM208/Monthly!AM207)-1","v":6.5710843256896467E-3},{"$f":"(Monthly!AN208/Monthly!AN207)-1","v":8.668826501840865E-3},"--","--",{"$f":"Monthly!AQ208-Monthly!AQ207","v":3.8999999999999986},"--","--",{"$f":"Monthly!AT208-Monthly!AT207","v":4.2999999999999972},"--","--",{"$f":"Monthly!AW208-Monthly!AW207","v":-2.3000000000000007},{"$f":"Monthly!AX208-Monthly!AX207","v":7.6999999999999957},{"$f":"Monthly!AY208-Monthly!AY207","v":-1.3999999999999986},{"$f":"Monthly!AZ208-Monthly!AZ207","v":2.6000000000000014},{"$f":"Monthly!BA208-Monthly!BA207","v":2.1999999999999993},"--","--",null,null,null,null,null,null,null,null,null,"--","--",null,null,null,null,null,{"$f":"(Monthly!BT208/Monthly!BT207)-1","v":-5.7828895665790192E-4},null,null,null,{"$f":"(Monthly!BX208/Monthly!BX207)-1","v":-3.0330062444246186E-2},{"$f":"(Monthly!BY208/Monthly!BY207)-1","v":3.5010940919037115E-2},"--","--",{"$f":"Monthly!CB208-Monthly!CB207","v":-0.27558578987150284},{"$f":"Monthly!CC208-Monthly!CC207","v":-0.41558578987149986},"--","--",null,"--","--",null,{"$f":"(Monthly!CJ208/Monthly!CJ207)-1","v":-3.7996545768566481E-2},{"$f":"(Monthly!CK208/Monthly!CK207)-1","v":2.3482928283882432E-2},{"$f":"(Monthly!CL208/Monthly!CL207)-1","v":-0.20289179104477606},{"$f":"(Monthly!CM208/Monthly!CM207)-1","v":-1.4689265536723117E-2},{"$f":"(Monthly!CN208/Monthly!CN207)-1","v":-3.4091448649161915E-2},{"$f":"(Monthly!CO208/Monthly!CO207)-1","v":1.8952062430323435E-2},{"$f":"(Monthly!CP208/Monthly!CP207)-1","v":-1.3554583641110063E-2},{"$f":"(Monthly!CQ208/Monthly!CQ207)-1","v":1.1367696255155657E-3},{"$f":"(Monthly!CR208/Monthly!CR207)-1","v":1.0190353726428736E-2},"--","--",null,null,null,null,null,{"$f":"(Monthly!CZ208/Monthly!CZ207)-1","v":7.532956685499137E-3},{"$f":"(Monthly!DA208/Monthly!DA207)-1","v":5.6074766355138639E-3},null,null,null,null,null,"--",{"$f":"((Monthly!DH208-Monthly!DH207)*60)","v":0},{"$f":"((Monthly!DI208-Monthly!DI207)*100)","v":-29.999999999999716},"--",{"$f":"((Monthly!DK208-Monthly!DK207)*100)","v":-19.999999999999929},{"$f":"Monthly!DL208-Monthly!DL207","v":-56},null,null,null,{"$f":"Monthly!DP208-Monthly!DP207","v":-103},null,null,null,{"$f":"(Monthly!DT208/Monthly!DT207)-1","v":-6.6158781074578954E-3},{"$f":"Monthly!DU208-Monthly!DU207","v":-0.59999999999999964},"--","--","--","--","--","--","--","--",null,null,null,null,null,null,null,null,null,null,null,null,null,{"$f":"(Monthly!EQ208/Monthly!EQ207)-1","v":1.7271157167531026E-3},{"$f":"(Monthly!ER208/Monthly!ER207)-1","v":3.3726812816188279E-3},{"$f":"(Monthly!ES208/Monthly!ES207)-1","v":3.4602076124568004E-3},null,null,null,null,null,{"$f":"((Monthly!EY208-Monthly!EY207)*100)","v":-33.000000000000007},{"$f":"((Monthly!EZ208-Monthly!EZ207)*100)","v":33.000000000000007},{"$f":"((Monthly!FA208-Monthly!FA207)*100)","v":-13.000000000000078},{"$f":"((Monthly!FB208-Monthly!FB207)*100)","v":-7.0000000000000284},"--",{"$f":"((Monthly!FD208-Monthly!FD207)*100)","v":-1.9999999999999574},{"$f":"((Monthly!FE208-Monthly!FE207)*100)","v":10.999999999999943},{"$f":"((Monthly!FF208-Monthly!FF207)*100)","v":-9.9999999999999645},"--",{"$f":"((Monthly!FH208-Monthly!FH207)*100)","v":-20.999999999999996},{"$f":"((Monthly!FI208-Monthly!FI207)*100)","v":-20.000000000000018},null,null,null,null,null,null,{"$f":"(Monthly!FP208/Monthly!FP207)-1","v":-2.1388294769589811E-3},"--","--","--",{"$f":"(Monthly!FT208/Monthly!FT207)-1","v":4.5783982294427261E-3},{"$f":"(Monthly!FU208/Monthly!FU207)-1","v":1.4459554190373591E-3},{"$f":"(Monthly!FV208/Monthly!FV207)-1","v":-8.4917752616963105E-3},{"$f":"(Monthly!FW208/Monthly!FW207)-1","v":5.3333333333333455E-2},{"$f":"(Monthly!FX208/Monthly!FX207)-1","v":-1.5681983953318768E-2},null,null,null,null,null,{"$f":"(Monthly!GD208/Monthly!GD207)-1","v":0},"--","--","--",{"$f":"(Monthly!GH208/Monthly!GH207)-1","v":{"$error":"#DIV/0!"}},"--","--","--","--"]
["1975-09-01",null,null,null,{"$f":"(Monthly!E211/Monthly!E210)-1","v":{"$error":"#DIV/0!"}},{"$f":"(Monthly!F211/Monthly!F210)-1","v":{"$error":"#DIV/0!"}},{"$f":"(Monthly!G211/Monthly!G210)-1","v":{"$error":"#DIV/0!"}},{"$f":"(Monthly!H211/Monthly!H210)-1","v":{"$error":"#DIV/0!"}},null,null,null,null,null,null,null,null,null,null,null,null,null,null,null,{"$f":"(Monthly!X211-Monthly!X210)","v":0.79999999999999716},{"$f":"(Monthly!Y211/Monthly!Y210)-1","v":-5.8055564970305173E-4},null,null,null,null,null,null,null,null,null,null,null,null,null,{"$f":"(Monthly!AM211/Monthly!AM210)-1","v":1.2445043423352953E-2},{"$f":"(Monthly!AN211/Monthly!AN210)-1","v":1.7028169992996167E-2},"--","--",{"$f":"Monthly!AQ211-Monthly!AQ210","v":3},"--","--",{"$f":"Monthly!AT211-Monthly!AT210","v":3.7999999999999972},"--","--",{"$f":"Monthly!AW211-Monthly!AW210","v":6.1000000000000014},{"$f":"Monthly!AX211-Monthly!AX210","v":0.10000000000000142},{"$f":"Monthly!AY211-Monthly!AY210","v":4.7999999999999972},{"$f":"Monthly!AZ211-Monthly!AZ210","v":1.1999999999999957},{"$f":"Monthly!BA211-Monthly!BA210","v":8.6999999999999957},"--","--",null,null,null,null,null,null,null,null,null,"--","--",null,null,null,null,null,{"$f":"(Monthly!BT211/Monthly!BT210)-1","v":5.5759264835841815E-3},null,null,null,{"$f":"(Monthly!BX211/Monthly!BX210)-1","v":3.1746031746031633E-3},{"$f":"(Monthly!BY211/Monthly!BY210)-1","v":7.0422535211267512E-2},"--","--",{"$f":"Monthly!CB211-Monthly!CB210","v":-0.71209612901694541},{"$f":"Monthly!CC211-Monthly!CC210","v":-0.71209612901694896},"--","--",null,"--","--",null,{"$f":"(Monthly!CJ211/Monthly!CJ210)-1","v":-1.7667844522968212E-2},{"$f":"(Monthly!CK211/Monthly!CK210)-1","v":7.5763042066527841E-3},{"$f":"(Monthly!CL211/Monthly!CL210)-1","v":1.0309278350515649E-2},{"$f":"(Monthly!CM211/Monthly!CM210)-1","v":-1.6443987667009274E-2},{"$f":"(Monthly!CN211/Monthly!CN210)-1","v":2.7768136063865967E-3},{"$f":"(Monthly!CO211/Monthly!CO210)-1","v":9.3532870122929879E-3},{"$f":"(Monthly!CP211/Monthly!CP210)-1","v":6.1419210581015182E-3},{"$f":"(Monthly!CQ211/Monthly!CQ210)-1","v":9.1583986678700491E-4},{"$f":"(Monthly!CR211/Monthly!CR210)-1","v":2.2798497981309396E-2},"--","--",null,null,null,null,null,{"$f":"(Monthly!CZ211/Monthly!CZ210)-1","v":7.3800738007379074E-3},{"$f":"(Monthly!DA211/Monthly!DA210)-1","v":5.5350553505535416E-3},null,null,null,null,null,"--",{"$f":"((Monthly!DH211-Monthly!DH210)*60)","v":0},{"$f":"((Monthly!DI211-Monthly!DI210)*100)","v":-9.9999999999994316},"--",{"$f":"((Monthly!DK211-Monthly!DK210)*100)","v":0},{"$f":"Monthly!DL211-Monthly!DL210","v":80},null,null,null,{"$f":"Monthly!DP211-Monthly!DP210","v":75},null,null,null,{"$f":"(Monthly!DT211/Monthly!DT210)-1","v":-1.3842746400885897E-2},{"$f":"Monthly!DU211-Monthly!DU210","v":0},"--","--","--","--","--","--","--","--",null,null,null,null,null,null,null,null,null,null,null,null,null,{"$f":"(Monthly!EQ211/Monthly!EQ210)-1","v":6.7796610169490457E-3},{"$f":"(Monthly!ER211/Monthly!ER210)-1","v":5.008347245408995E-3},{"$f":"(Monthly!ES211/Monthly!ES210)-1","v":6.8376068376068133E-3},null,null,null,null,null,{"$f":"((Monthly!EY211-Monthly!EY210)*100)","v":21.999999999999975},{"$f":"((Monthly!EZ211-Monthly!EZ210)*100)","v":10.000000000000053},{"$f":"((Monthly!FA211-Monthly!FA210)*100)","v":0},{"$f":"((Monthly!FB211-Monthly!FB210)*100)","v":1.9999999999999574},"--",{"$f":"((Monthly!FD211-Monthly!FD210)*100)","v":19.000000000000128},{"$f":"((Monthly!FE211-Monthly!FE210)*100)","v":-2.0000000000000462},{"$f":"((Monthly!FF211-Monthly!FF210)*100)","v":4.9999999999999822},"--",{"$f":"((Monthly!FH211-Monthly!FH210)*100)","v":3.9999999999999147},{"$f":"((Monthly!FI211-Monthly!FI210)*100)","v":2.9999999999999361},null,null,null,null,null,null,{"$f":"(Monthly!FP211/Monthly!FP210)-1","v":-8.7888738651730192E-3},"--","--","--",{"$f":"(Monthly!FT211/Monthly!FT210)-1","v":8.9495641182490981E-3},{"$f":"(Monthly!FU211/Monthly!FU210)-1","v":7.2231369324371464E-3},{"$f":"(Monthly!FV211/Monthly!FV210)-1","v":0.14463778847340492},{"$f":"(Monthly!FW211/Monthly!FW210)-1","v":0.20512820512820507},{"$f":"(Monthly!FX211/Monthly!FX210)-1","v":0.11111111111111116},null,null,null,null,null,{"$f":"(Monthly!GD211/Monthly!GD210)-1","v":0},"--","--","--",{"$f":"(Monthly!GH211/Monthly!GH210)-1","v":{"$error":"#DIV/0!"}},"--","--","--","--"]
["1976-04-01",null,null,null,{"$f":"(Monthly!E218/Monthly!E217)-1","v":{"$error":"#DIV/0!"}},{"$f":"(Monthly!F218/Monthly!F217)-1","v":{"$error":"#DIV/0!"}},{"$f":"(Monthly!G218/Monthly!G217)-1","v":{"$error":"#DIV/0!"}},{"$f":"(Monthly!H218/Monthly!H217)-1","v":{"$error":"#DIV/0!"}},null,null,null,null,null,null,null,null,null,null,null,null,null,null,null,{"$f":"(Monthly!X218-Monthly!X217)","v":0.30000000000001137},{"$f":"(Monthly!Y218/Monthly!Y217)-1","v":-1.1210796060119876E-2},null,null,null,null,null,null,null,null,null,null,null,null,null,{"$f":"(Monthly!AM218/Monthly!AM217)-1","v":5.7284709235017051E-3},{"$f":"(Monthly!AN218/Monthly!AN217)-1","v":6.3194661011662934E-3},"--","--",{"$f":"Monthly!AQ218-Monthly!AQ217","v":2.2000000000000028},"--","--",{"$f":"Monthly!AT218-Monthly!AT217","v":1.5},"--","--",{"$f":"Monthly!AW218-Monthly!AW217","v":4.6999999999999957},{"$f":"Monthly!AX218-Monthly!AX217","v":3.6000000000000014},{"$f":"Monthly!AY218-Monthly!AY217","v":1.6000000000000085},{"$f":"Monthly!AZ218-Monthly!AZ217","v":0.79999999999999716},{"$f":"Monthly!BA218-Monthly!BA217","v":0.59999999999999432},"--","--",null,null,null,null,null,null,null,null,null,"--","--",null,null,null,null,null,{"$f":"(Monthly!BT218/Monthly!BT217)-1","v":9.3413845474099588E-3},null,null,null,{"$f":"(Monthly!BX218/Monthly!BX217)-1","v":-1.8296973961998586E-2},{"$f":"(Monthly!BY218/Monthly!BY217)-1","v":-2.7491408934707917E-2},"--",{"$f":"(Monthly!CA218/Monthly!CA217)-1","v":-1.2991975544516698E-2},{"$f":"Monthly!CB218-Monthly!CB217","v":-0.11154945683245998},{"$f":"Monthly!CC218-Monthly!CC217","v":-4.154945683246325E-2},"--","--",null,"--","--",null,{"$f":"(Monthly!CJ218/Monthly!CJ217)-1","v":3.384094754653133E-2},{"$f":"(Monthly!CK218/Monthly!CK217)-1","v":5.8203231991236226E-3},{"$f":"(Monthly!CL218/Monthly!CL217)-1","v":-4.1967213114754154E-2},{"$f":"(Monthly!CM218/Monthly!CM217)-1","v":-3.0630630630630651E-2},{"$f":"(Monthly!CN218/Monthly!CN217)-1","v":9.2154722929560506E-4},{"$f":"(Monthly!CO218/Monthly!CO217)-1","v":1.2726382770435585E-2},{"$f":"(Monthly!CP218/Monthly!CP217)-1","v":1.0374937721574273E-2},{"$f":"(Monthly!CQ218/Monthly!CQ217)-1","v":6.7623205339928383E-4},{"$f":"(Monthly!CR218/Monthly!CR217)-1","v":1.9693868283720217E-2},"--","--",null,null,null,null,null,{"$f":"(Monthly!CZ218/Monthly!CZ217)-1","v":1.7857142857142794E-3},{"$f":"(Monthly!DA218/Monthly!DA217)-1","v":3.5398230088496963E-3},null,null,null,null,null,"--",{"$f":"((Monthly!DH218-Monthly!DH217)*60)","v":0},{"$f":"((Monthly!DI218-Monthly!DI217)*100)","v":30.000000000000426},"--",{"$f":"((Monthly!DK218-Monthly!DK217)*100)","v":10.000000000000053},{"$f":"Monthly!DL218-Monthly!DL217","v":71},null,null,null,{"$f":"Monthly!DP218-Monthly!DP217","v":243},null,null,null,{"$f":"(Monthly!DT218/Monthly!DT217)-1","v":3.3640424343941877E-2},{"$f":"Monthly!DU218-Monthly!DU217","v":-0.5},"--","--","--","--","--","--","--","--",null,null,null,null,null,null,null,null,null,null,null,null,null,{"$f":"(Monthly!EQ218/Monthly!EQ217)-1","v":1.0000000000000009E-2},{"$f":"(Monthly!ER218/Monthly!ER217)-1","v":1.607717041800516E-3},{"$f":"(Monthly!ES218/Monthly!ES217)-1","v":3.2733224222585289E-3},null,null,null,null,null,{"$f":"((Monthly!EY218-Monthly!EY217)*100)","v":0},{"$f":"((Monthly!EZ218-Monthly!EZ217)*100)","v":-1.9999999999999574},{"$f":"((Monthly!FA218-Monthly!FA217)*100)","v":-11.999999999999922},{"$f":"((Monthly!FB218-Monthly!FB217)*100)","v":-17.999999999999972},"--",{"$f":"((Monthly!FD218-Monthly!FD217)*100)","v":-2.9999999999999361},{"$f":"((Monthly!FE218-Monthly!FE217)*100)","v":-13.999999999999968},{"$f":"((Monthly!FF218-Monthly!FF217)*100)","v":-29.000000000000004},"--",{"$f":"((Monthly!FH218-Monthly!FH217)*100)","v":-24.000000000000021},{"$f":"((Monthly!FI218-Monthly!FI217)*100)","v":-17.000000000000082},null,null,null,null,null,null,{"$f":"(Monthly!FP218/Monthly!FP217)-1","v":-2.3328938026169199E-3},"--","--","--",{"$f":"(Monthly!FT218/Monthly!FT217)-1","v":6.3556625360987606E-3},{"$f":"(Monthly!FU218/Monthly!FU217)-1","v":5.5246899610754685E-3},{"$f":"(Monthly!FV218/Monthly!FV217)-1","v":2.6302060690374773E-2},{"$f":"(Monthly!FW218/Monthly!FW217)-1","v":-0.15662650602409645},{"$f":"(Monthly!FX218/Monthly!FX217)-1","v":-7.8892527537957724E-2},null,null,null,null,null,{"$f":"(Monthly!GD218/Monthly!GD217)-1","v":5.7851239669421961E-3},"--","--","--",{"$f":"(Monthly!GH218/Monthly!GH217)-1","v":{"$error":"#DIV/0!"}},"--","--","--","--"]
["1976-08-01",null,null,null,{"$f":"(Monthly!E222/Monthly!E221)-1","v":{"$error":"#DIV/0!"}},{"$f":"(Monthly!F222/Monthly!F221)-1","v":{"$error":"#DIV/0!"}},{"$f":"(Monthly!G222/Monthly!G221)-1","v":{"$error":"#DIV/0!"}},{"$f":"(Monthly!H222/Monthly!H221)-1","v":{"$error":"#DIV/0!"}},null,null,null,null,null,null,null,null,null,null,null,null,null,null,null,{"$f":"(Monthly!X222-Monthly!X221)","v":0.39999999999999147},{"$f":"(Monthly!Y222/Monthly!Y221)-1","v":3.6429140409608429E-3},null,null,null,null,null,null,null,null,null,null,null,null,null,{"$f":"(Monthly!AM222/Monthly!AM221)-1","v":7.0253301817559954E-3},{"$f":"(Monthly!AN222/Monthly!AN221)-1","v":6.435582972265097E-3},"--","--",{"$f":"Monthly!AQ222-Monthly!AQ221","v":-1.3999999999999986},"--","--",{"$f":"Monthly!AT222-Monthly!AT221","v":-3},"--","--",{"$f":"Monthly!AW222-Monthly!AW221","v":1.8999999999999986},{"$f":"Monthly!AX222-Monthly!AX221","v":-0.29999999999999716},{"$f":"Monthly!AY222-Monthly!AY221","v":-10.900000000000006},{"$f":"Monthly!AZ222-Monthly!AZ221","v":-3.8000000000000043},{"$f":"Monthly!BA222-Monthly!BA221","v":1.2000000000000028},"--","--",null,null,null,null,null,null,null,null,null,"--","--",null,null,null,null,null,{"$f":"(Monthly!BT222/Monthly!BT221)-1","v":9.249051924660856E-3},null,null,null,{"$f":"(Monthly!BX222/Monthly!BX221)-1","v":0.10635260528194146},{"$f":"(Monthly!BY222/Monthly!BY221)-1","v":5.1405622489959946E-2},"--",{"$f":"(Monthly!CA222/Monthly!CA221)-1","v":-4.0237768632830351E-2},{"$f":"Monthly!CB222-Monthly!CB221","v":0.16400164001639794},{"$f":"Monthly!CC222-Monthly!CC221","v":0.16400164001639794},"--","--",null,"--","--",null,{"$f":"(Monthly!CJ222/Monthly!CJ221)-1","v":-2.4096385542168641E-2},{"$f":"(Monthly!CK222/Monthly!CK221)-1","v":8.0532445923460205E-3},{"$f":"(Monthly!CL222/Monthly!CL221)-1","v":6.7385444743934819E-3},{"$f":"(Monthly!CM222/Monthly!CM221)-1","v":4.5293072824156289E-2},{"$f":"(Monthly!CN222/Monthly!CN221)-1","v":1.7093194019790481E-3},{"$f":"(Monthly!CO222/Monthly!CO221)-1","v":1.1806375442739103E-2},{"$f":"(Monthly!CP222/Monthly!CP221)-1","v":5.7471291064774555E-3},{"$f":"(Monthly!CQ222/Monthly!CQ221)-1","v":9.0811108308308519E-4},{"$f":"(Monthly!CR222/Monthly!CR221)-1","v":2.0217639585766056E-2},"--","--",null,null,null,null,null,{"$f":"(Monthly!CZ222/Monthly!CZ221)-1","v":5.2631578947368585E-3},{"$f":"(Monthly!DA222/Monthly!DA221)-1","v":5.2083333333332593E-3},null,null,null,null,null,"--",{"$f":"((Monthly!DH222-Monthly!DH221)*60)","v":-6.0000000000000853},{"$f":"((Monthly!DI222-Monthly!DI221)*100)","v":0},"--",{"$f":"((Monthly!DK222-Monthly!DK221)*100)","v":0},{"$f":"Monthly!DL222-Monthly!DL221","v":72},null,null,null,{"$f":"Monthly!DP222-Monthly!DP221","v":157},null,null,null,{"$f":"(Monthly!DT222/Monthly!DT221)-1","v":-5.8853633572160113E-3},{"$f":"Monthly!DU222-Monthly!DU221","v":0.20000000000000018},"--","--","--","--","--","--","--","--",null,null,null,null,null,null,null,null,null,null,null,null,null,{"$f":"(Monthly!EQ222/Monthly!EQ221)-1","v":-3.2467532467532756E-3},{"$f":"(Monthly!ER222/Monthly!ER221)-1","v":6.3391442155309452E-3},{"$f":"(Monthly!ES222/Monthly!ES221)-1","v":6.441223832528209E-3},null,null,null,null,null,{"$f":"((Monthly!EY222-Monthly!EY221)*100)","v":-24.000000000000021},{"$f":"((Monthly!EZ222-Monthly!EZ221)*100)","v":-1.9999999999999574},{"$f":"((Monthly!FA222-Monthly!FA221)*100)","v":-11.000000000000121},{"$f":"((Monthly!FB222-Monthly!FB221)*100)","v":-17.999999999999972},"--",{"$f":"((Monthly!FD222-Monthly!FD221)*100)","v":7.0000000000000284},{"$f":"((Monthly!FE222-Monthly!FE221)*100)","v":-9.0000000000000746},{"$f":"((Monthly!FF222-Monthly!FF221)*100)","v":-20.000000000000018},{"$f":"((Monthly!FG222-Monthly!FG221)*100)","v":-21.999999999999975},{"$f":"((Monthly!FH222-Monthly!FH221)*100)","v":-18.00000000000006},{"$f":"((Monthly!FI222-Monthly!FI221)*100)","v":-6.0000000000000497},null,null,null,null,null,null,{"$f":"(Monthly!FP222/Monthly!FP221)-1","v":1.3577453198930334E-2},"--","--","--",{"$f":"(Monthly!FT222/Monthly!FT221)-1","v":-6.9783475048912358E-4},{"$f":"(Monthly!FU222/Monthly!FU221)-1","v":-1.4866413449599047E-3},{"$f":"(Monthly!FV222/Monthly!FV221)-1","v":-5.1502534395365562E-2},{"$f":"(Monthly!FW222/Monthly!FW221)-1","v":0.15243902439024382},{"$f":"(Monthly!FX222/Monthly!FX221)-1","v":3.2596885186526592E-3},null,null,null,null,null,{"$f":"(Monthly!GD222/Monthly!GD221)-1","v":0},"--","--","--",{"$f":"(Monthly!GH222/Monthly!GH221)-1","v":{"$error":"#DIV/0!"}},"--","--","--","--"]
["1977-02-01",null,null,null,{"$f":"(Monthly!E228/Monthly!E227)-1","v":{"$error":"#DIV/0!"}},{"$f":"(Monthly!F228/Monthly!F227)-1","v":{"$error":"#DIV/0!"}},{"$f":"(Monthly!G228/Monthly!G227)-1","v":{"$error":"#DIV/0!"}},{"$f":"(Monthly!H228/Monthly!H227)-1","v":{"$error":"#DIV/0!"}},null,null,null,null,null,null,null,null,null,null,null,null,null,null,null,{"$f":"(Monthly!X228-Monthly!X227)","v":1},{"$f":"(Monthly!Y228/Monthly!Y227)-1","v":8.740635801997465E-3},null,null,null,null,null,null,null,null,null,null,null,null,null,{"$f":"(Monthly!AM228/Monthly!AM227)-1","v":1.5109627203708786E-2},{"$f":"(Monthly!AN228/Monthly!AN227)-1","v":1.7764764924281362E-2},"--","--",{"$f":"Monthly!AQ228-Monthly!AQ227","v":0.20000000000000284},"--","--",{"$f":"Monthly!AT228-Monthly!AT227","v":1.6000000000000014},"--","--",{"$f":"Monthly!AW228-Monthly!AW227","v":0.5},{"$f":"Monthly!AX228-Monthly!AX227","v":-0.40000000000000568},{"$f":"Monthly!AY228-Monthly!AY227","v":-1.6000000000000085},{"$f":"Monthly!AZ228-Monthly!AZ227","v":-6.1000000000000014},{"$f":"Monthly!BA228-Monthly!BA227","v":9.7999999999999972},"--","--",null,null,null,null,null,null,null,null,null,"--","--",null,null,null,null,null,{"$f":"(Monthly!BT228/Monthly!BT227)-1","v":1.3709279158081289E-2},null,null,null,{"$f":"(Monthly!BX228/Monthly!BX227)-1","v":0.27242960052390308},{"$f":"(Monthly!BY228/Monthly!BY227)-1","v":6.4120054570259155E-2},"--",{"$f":"(Monthly!CA228/Monthly!CA227)-1","v":2.2540837434909866E-2},{"$f":"Monthly!CB228-Monthly!CB227","v":0.98515718673256458},{"$f":"Monthly!CC228-Monthly!CC227","v":1.0551571867325649},"--","--",null,"--","--",null,{"$f":"(Monthly!CJ228/Monthly!CJ227)-1","v":1.6969696969697079E-2},{"$f":"(Monthly!CK228/Monthly!CK227)-1","v":1.1454533819670987E-2},{"$f":"(Monthly!CL228/Monthly!CL227)-1","v":-0.13146233382570172},{"$f":"(Monthly!CM228/Monthly!CM227)-1","v":0.36636363636363645},{"$f":"(Monthly!CN228/Monthly!CN227)-1","v":-8.5535432694603397E-3},{"$f":"(Monthly!CO228/Monthly!CO227)-1","v":9.1483336963624762E-3},{"$f":"(Monthly!CP228/Monthly!CP227)-1","v":1.2381873822725264E-2},{"$f":"(Monthly!CQ228/Monthly!CQ227)-1","v":7.5280934761079443E-4},{"$f":"(Monthly!CR228/Monthly!CR227)-1","v":-4.8788277777053191E-3},"--","--",null,null,null,null,null,{"$f":"(Monthly!CZ228/Monthly!CZ227)-1","v":1.0221465076660996E-2},{"$f":"(Monthly!DA228/Monthly!DA227)-1","v":6.7453625632378778E-3},null,null,null,null,null,"--",{"$f":"((Monthly!DH228-Monthly!DH227)*60)","v":23.999999999999915},{"$f":"((Monthly!DI228-Monthly!DI227)*100)","v":29.999999999999716},"--",{"$f":"((Monthly!DK228-Monthly!DK227)*100)","v":9.9999999999999645},{"$f":"Monthly!DL228-Monthly!DL227","v":40},null,null,null,{"$f":"Monthly!DP228-Monthly!DP227","v":296},null,null,null,{"$f":"(Monthly!DT228/Monthly!DT227)-1","v":0.1068139963167587},{"$f":"Monthly!DU228-Monthly!DU227","v":-0.29999999999999982},"--","--","--","--","--","--","--","--",null,null,null,null,null,null,null,null,null,null,null,null,null,{"$f":"(Monthly!EQ228/Monthly!EQ227)-1","v":1.1146496815286566E-2},{"$f":"(Monthly!ER228/Monthly!ER227)-1","v":4.6082949308756671E-3},{"$f":"(Monthly!ES228/Monthly!ES227)-1","v":4.6874999999999556E-3},null,null,null,null,null,{"$f":"((Monthly!EY228-Monthly!EY227)*100)","v":0},{"$f":"((Monthly!EZ228-Monthly!EZ227)*100)","v":6.9999999999999396},{"$f":"((Monthly!FA228-Monthly!FA227)*100)","v":7.9999999999999183},{"$f":"((Monthly!FB228-Monthly!FB227)*100)","v":3.9999999999999147},"--",{"$f":"((Monthly!FD228-Monthly!FD227)*100)","v":-5.0000000000000711},{"$f":"((Monthly!FE228-Monthly!FE227)*100)","v":4.9999999999999822},{"$f":"((Monthly!FF228-Monthly!FF227)*100)","v":17.999999999999972},{"$f":"((Monthly!FG228-Monthly!FG227)*100)","v":18.99999999999995},{"$f":"((Monthly!FH228-Monthly!FH227)*100)","v":25},{"$f":"((Monthly!FI228-Monthly!FI227)*100)","v":17.999999999999972},null,null,null,null,null,null,{"$f":"(Monthly!FP228/Monthly!FP227)-1","v":1.74205681480748E-2},"--","--","--",{"$f":"(Monthly!FT228/Monthly!FT227)-1","v":5.4437232674304781E-3},{"$f":"(Monthly!FU228/Monthly!FU227)-1","v":1.6168571359225226E-3},{"$f":"(Monthly!FV228/Monthly!FV227)-1","v":0.10468169432747088},{"$f":"(Monthly!FW228/Monthly!FW227)-1","v":7.547169811320753E-2},{"$f":"(Monthly!FX228/Monthly!FX227)-1","v":0.1364336310440406},null,null,null,null,null,{"$f":"(Monthly!GD228/Monthly!GD227)-1","v":0},"--","--","--",{"$f":"(Monthly!GH228/Monthly!GH227)-1","v":{"$error":"#DIV/0!"}},"--","--","--","--"]
["1977-03-01",null,null,null,{"$f":"(Monthly!E229/Monthly!E228)-1","v":{"$error":"#DIV/0!"}},{"$f":"(Monthly!F229/Monthly!F228)-1","v":{"$error":"#DIV/0!"}},{"$f":"(Monthly!G229/Monthly!G228)-1","v":{"$error":"#DIV/0!"}},{"$f":"(Monthly!H229/Monthly!H228)-1","v":{"$error":"#DIV/0!"}},null,null,null,null,null,null,null,null,null,null,null,null,null,null,null,{"$f":"(Monthly!X229-Monthly!X228)","v":0.79999999999999716},{"$f":"(Monthly!Y229/Monthly!Y228)-1","v":9.3025340521089017E-3},null,null,null,null,null,null,null,null,null,null,null,null,null,{"$f":"(Monthly!AM229/Monthly!AM228)-1","v":1.2737385693485814E-2},{"$f":"(Monthly!AN229/Monthly!AN228)-1","v":1.4652682352281454E-2},"--","--",{"$f":"Monthly!AQ229-Monthly!AQ228","v":3.3999999999999986},"--","--",{"$f":"Monthly!AT229-Monthly!AT228","v":2.7999999999999972},"--","--",{"$f":"Monthly!AW229-Monthly!AW228","v":2.8000000000000043},{"$f":"Monthly!AX229-Monthly!AX228","v":6.7000000000000028},{"$f":"Monthly!AY229-Monthly!AY228","v":4.1000000000000085},{"$f":"Monthly!AZ229-Monthly!AZ228","v":11.700000000000003},{"$f":"Monthly!BA229-Monthly!BA228","v":-15.499999999999993},"--","--",null,null,null,null,null,null,null,null,null,"--","--",null,null,null,null,null,{"$f":"(Monthly!BT229/Monthly!BT228)-1","v":1.4521725472277369E-2},null,null,null,{"$f":"(Monthly!BX229/Monthly!BX228)-1","v":6.1760164693772435E-2},{"$f":"(Monthly!BY229/Monthly!BY228)-1","v":6.4102564102564097E-2},"--",{"$f":"(Monthly!CA229/Monthly!CA228)-1","v":3.1182420648761644E-2},{"$f":"Monthly!CB229-Monthly!CB228","v":0.14628162535139921},{"$f":"Monthly!CC229-Monthly!CC228","v":6.2816253513986453E-3},"--","--",null,"--","--",null,{"$f":"(Monthly!CJ229/Monthly!CJ228)-1","v":3.933253873659126E-2},{"$f":"(Monthly!CK229/Monthly!CK228)-1","v":1.0122738200683212E-2},{"$f":"(Monthly!CL229/Monthly!CL228)-1","v":0.17176870748299344},{"$f":"(Monthly!CM229/Monthly!CM228)-1","v":-1.1310711909514271E-2},{"$f":"(Monthly!CN229/Monthly!CN228)-1","v":1.4844804318488336E-2},{"$f":"(Monthly!CO229/Monthly!CO228)-1","v":6.4752859917980299E-3},{"$f":"(Monthly!CP229/Monthly!CP228)-1","v":1.6716098932210599E-2},{"$f":"(Monthly!CQ229/Monthly!CQ228)-1","v":7.294478080093203E-4},{"$f":"(Monthly!CR229/Monthly!CR228)-1","v":1.5196224524217428E-2},"--","--",null,null,null,null,null,{"$f":"(Monthly!CZ229/Monthly!CZ228)-1","v":5.0590219224284638E-3},{"$f":"(Monthly!DA229/Monthly!DA228)-1","v":5.0251256281406143E-3},null,null,null,null,null,"--",{"$f":"((Monthly!DH229-Monthly!DH228)*60)","v":-6.0000000000000853},{"$f":"((Monthly!DI229-Monthly!DI228)*100)","v":10.000000000000142},"--",{"$f":"((Monthly!DK229-Monthly!DK228)*100)","v":-19.999999999999929},{"$f":"Monthly!DL229-Monthly!DL228","v":98},null,null,null,{"$f":"Monthly!DP229-Monthly!DP228","v":403},null,null,null,{"$f":"(Monthly!DT229/Monthly!DT228)-1","v":-0.20532445923460896},{"$f":"Monthly!DU229-Monthly!DU228","v":0},"--","--","--","--","--","--","--","--",null,null,null,null,null,null,null,null,null,null,null,null,null,{"$f":"(Monthly!EQ229/Monthly!EQ228)-1","v":9.4488188976376009E-3},{"$f":"(Monthly!ER229/Monthly!ER228)-1","v":4.5871559633026138E-3},{"$f":"(Monthly!ES229/Monthly!ES228)-1","v":6.2208398133749565E-3},null,null,null,null,null,{"$f":"((Monthly!EY229-Monthly!EY228)*100)","v":0},{"$f":"((Monthly!EZ229-Monthly!EZ228)*100)","v":1.0000000000000675},{"$f":"((Monthly!FA229-Monthly!FA228)*100)","v":6.0000000000000497},{"$f":"((Monthly!FB229-Monthly!FB228)*100)","v":0},"--",{"$f":"((Monthly!FD229-Monthly!FD228)*100)","v":1.9999999999999574},{"$f":"((Monthly!FE229-Monthly!FE228)*100)","v":-7.0000000000000284},{"$f":"((Monthly!FF229-Monthly!FF228)*100)","v":3.0000000000000249},{"$f":"((Monthly!FG229-Monthly!FG228)*100)","v":0},{"$f":"((Monthly!FH229-Monthly!FH228)*100)","v":9.9999999999999645},{"$f":"((Monthly!FI229-Monthly!FI228)*100)","v":7.0000000000000284},null,null,null,null,null,null,{"$f":"(Monthly!FP229/Monthly!FP228)-1","v":2.2764860394979936E-2},"--","--","--",{"$f":"(Monthly!FT229/Monthly!FT228)-1","v":2.5124065284707342E-3},{"$f":"(Monthly!FU229/Monthly!FU228)-1","v":1.9385877760855763E-3},{"$f":"(Monthly!FV229/Monthly!FV228)-1","v":0.24710736388913812},{"$f":"(Monthly!FW229/Monthly!FW228)-1","v":0.15789473684210531},{"$f":"(Monthly!FX229/Monthly!FX228)-1","v":0.16747967479674797},null,null,null,null,null,{"$f":"(Monthly!GD229/Monthly!GD228)-1","v":0},"--","--","--",{"$f":"(Monthly!GH229/Monthly!GH228)-1","v":{"$error":"#DIV/0!"}},"--","--","--","--"]
["1977-07-01",null,null,null,{"$f":"(Monthly!E233/Monthly!E232)-1","v":{"$error":"#DIV/0!"}},{"$f":"(Monthly!F233/Monthly!F232)-1","v":{"$error":"#DIV/0!"}},{"$f":"(Monthly!G233/Monthly!G232)-1","v":{"$error":"#DIV/0!"}},{"$f":"(Monthly!H233/Monthly!H232)-1","v":{"$error":"#DIV/0!"}},null,null,null,null,null,null,null,null,null,null,null,null,null,null,null,{"$f":"(Monthly!X233-Monthly!X232)","v":-9.9999999999994316E-2},{"$f":"(Monthly!Y233/Monthly!Y232)-1","v":8.4146711938943852E-3},null,null,null,null,null,null,null,null,null,null,null,null,null,{"$f":"(Monthly!AM233/Monthly!AM232)-1","v":1.5374465071515964E-3},{"$f":"(Monthly!AN233/Monthly!AN232)-1","v":3.3842312752274673E-4},"--","--",{"$f":"Monthly!AQ233-Monthly!AQ232","v":0.90000000000000568},"--","--",{"$f":"Monthly!AT233-Monthly!AT232","v":2},"--","--",{"$f":"Monthly!AW233-Monthly!AW232","v":-0.60000000000000142},{"$f":"Monthly!AX233-Monthly!AX232","v":0.79999999999999716},{"$f":"Monthly!AY233-Monthly!AY232","v":-2.9000000000000057},{"$f":"Monthly!AZ233-Monthly!AZ232","v":-1.8999999999999986},{"$f":"Monthly!BA233-Monthly!BA232","v":5},"--","--",null,null,null,null,null,null,null,null,null,"--","--",null,null,null,null,null,{"$f":"(Monthly!BT233/Monthly!BT232)-1","v":1.4581906619242746E-2},null,null,null,{"$f":"(Monthly!BX233/Monthly!BX232)-1","v":8.7163232963549886E-2},{"$f":"(Monthly!BY233/Monthly!BY232)-1","v":-3.7100456621004585E-2},"--",{"$f":"(Monthly!CA233/Monthly!CA232)-1","v":-1.818680941596329E-2},{"$f":"Monthly!CB233-Monthly!CB232","v":-0.33527336860669088},{"$f":"Monthly!CC233-Monthly!CC232","v":-0.54527336860669351},"--","--",null,"--","--",null,{"$f":"(Monthly!CJ233/Monthly!CJ232)-1","v":-6.2111801242236031E-2},{"$f":"(Monthly!CK233/Monthly!CK232)-1","v":1.1395490554539922E-2},{"$f":"(Monthly!CL233/Monthly!CL232)-1","v":4.7522063815341742E-3},{"$f":"(Monthly!CM233/Monthly!CM232)-1","v":4.3916486681065514E-2},{"$f":"(Monthly!CN233/Monthly!CN232)-1","v":7.1552982158828993E-3},{"$f":"(Monthly!CO233/Monthly!CO232)-1","v":6.5331928345626622E-3},{"$f":"(Monthly!CP233/Monthly!CP232)-1","v":1.2674880346654316E-2},{"$f":"(Monthly!CQ233/Monthly!CQ232)-1","v":8.7708933586605475E-4},{"$f":"(Monthly!CR233/Monthly!CR232)-1","v":1.6060424768172377E-2},"--","--",null,null,null,null,null,{"$f":"(Monthly!CZ233/Monthly!CZ232)-1","v":4.9586776859502635E-3},{"$f":"(Monthly!DA233/Monthly!DA232)-1","v":3.2786885245901232E-3},null,null,null,null,null,"--",{"$f":"((Monthly!DH233-Monthly!DH232)*60)","v":-6.0000000000000853},{"$f":"((Monthly!DI233-Monthly!DI232)*100)","v":-29.999999999999716},"--",{"$f":"((Monthly!DK233-Monthly!DK232)*100)","v":-29.999999999999982},{"$f":"Monthly!DL233-Monthly!DL232","v":67},null,null,null,{"$f":"Monthly!DP233-Monthly!DP232","v":348},null,null,null,{"$f":"(Monthly!DT233/Monthly!DT232)-1","v":2.5139664804469275E-2},{"$f":"Monthly!DU233-Monthly!DU232","v":0.89999999999999947},"--","--","--","--","--","--","--","--",null,null,null,null,null,null,null,null,null,null,null,null,null,{"$f":"(Monthly!EQ233/Monthly!EQ232)-1","v":1.5384615384614886E-3},{"$f":"(Monthly!ER233/Monthly!ER232)-1","v":4.5112781954885772E-3},{"$f":"(Monthly!ES233/Monthly!ES232)-1","v":4.5662100456620447E-3},null,null,null,null,null,{"$f":"((Monthly!EY233-Monthly!EY232)*100)","v":0},{"$f":"((Monthly!EZ233-Monthly!EZ232)*100)","v":3.0000000000000249},{"$f":"((Monthly!FA233-Monthly!FA232)*100)","v":-0.99999999999997868},{"$f":"((Monthly!FB233-Monthly!FB232)*100)","v":-4.0000000000000924},"--",{"$f":"((Monthly!FD233-Monthly!FD232)*100)","v":8.0000000000000071},{"$f":"((Monthly!FE233-Monthly!FE232)*100)","v":17.000000000000082},{"$f":"((Monthly!FF233-Monthly!FF232)*100)","v":14.000000000000057},{"$f":"((Monthly!FG233-Monthly!FG232)*100)","v":13.999999999999968},{"$f":"((Monthly!FH233-Monthly!FH232)*100)","v":8.0000000000000071},{"$f":"((Monthly!FI233-Monthly!FI232)*100)","v":4.9999999999999822},null,null,null,null,null,null,{"$f":"(Monthly!FP233/Monthly!FP232)-1","v":3.3090668431501324E-3},"--","--","--",{"$f":"(Monthly!FT233/Monthly!FT232)-1","v":-7.023825919294846E-3},{"$f":"(Monthly!FU233/Monthly!FU232)-1","v":-1.1124369647152355E-2},{"$f":"(Monthly!FV233/Monthly!FV232)-1","v":-0.2070529498628787},{"$f":"(Monthly!FW233/Monthly!FW232)-1","v":-0.20105820105820105},{"$f":"(Monthly!FX233/Monthly!FX232)-1","v":-0.17324718832256514},null,null,null,null,null,{"$f":"(Monthly!GD233/Monthly!GD232)-1","v":0},"--","--","--",{"$f":"(Monthly!GH233/Monthly!GH232)-1","v":{"$error":"#DIV/0!"}},"--","--","--","--"]
["1978-02-01",null,null,null,{"$f":"(Monthly!E240/Monthly!E239)-1","v":{"$error":"#DIV/0!"}},{"$f":"(Monthly!F240/Monthly!F239)-1","v":{"$error":"#DIV/0!"}},{"$f":"(Monthly!G240/Monthly!G239)-1","v":{"$error":"#DIV/0!"}},{"$f":"(Monthly!H240/Monthly!H239)-1","v":{"$error":"#DIV/0!"}},null,null,null,null,null,null,null,null,null,null,null,null,null,null,null,{"$f":"(Monthly!X240-Monthly!X239)","v":0.19999999999998863},{"$f":"(Monthly!Y240/Monthly!Y239)-1","v":1.4307760364430822E-2},null,null,null,null,null,null,null,null,null,null,null,null,null,{"$f":"(Monthly!AM240/Monthly!AM239)-1","v":4.8907226007233184E-3},{"$f":"(Monthly!AN240/Monthly!AN239)-1","v":3.1755080590207818E-3},"--","--",{"$f":"Monthly!AQ240-Monthly!AQ239","v":-1.5},"--","--",{"$f":"Monthly!AT240-Monthly!AT239","v":-2.3000000000000043},"--","--",{"$f":"Monthly!AW240-Monthly!AW239","v":0},{"$f":"Monthly!AX240-Monthly!AX239","v":-4.3999999999999986},{"$f":"Monthly!AY240-Monthly!AY239","v":3.3000000000000114},{"$f":"Monthly!AZ240-Monthly!AZ239","v":-3.1000000000000014},{"$f":"Monthly!BA240-Monthly!BA239","v":7.7999999999999972},"--","--",null,null,null,null,null,null,null,null,null,"--","--",null,null,null,null,null,{"$f":"(Monthly!BT240/Monthly!BT239)-1","v":1.2830074488228149E-2},null,null,null,{"$f":"(Monthly!BX240/Monthly!BX239)-1","v":1.1641443538998875E-2},{"$f":"(Monthly!BY240/Monthly!BY239)-1","v":-2.2988505747126853E-3},"--",{"$f":"(Monthly!CA240/Monthly!CA239)-1","v":4.7622618869056499E-2},{"$f":"Monthly!CB240-Monthly!CB239","v":-0.67484968011238955},{"$f":"Monthly!CC240-Monthly!CC239","v":-0.74484968011238806},"--","--",null,"--","--",null,{"$f":"(Monthly!CJ240/Monthly!CJ239)-1","v":-5.031446540880502E-3},{"$f":"(Monthly!CK240/Monthly!CK239)-1","v":9.049001195151174E-3},{"$f":"(Monthly!CL240/Monthly!CL239)-1","v":-5.7126696832579316E-2},{"$f":"(Monthly!CM240/Monthly!CM239)-1","v":-1.7501988862370754E-2},{"$f":"(Monthly!CN240/Monthly!CN239)-1","v":5.8164731643894907E-3},{"$f":"(Monthly!CO240/Monthly!CO239)-1","v":3.6393044884754921E-3},{"$f":"(Monthly!CP240/Monthly!CP239)-1","v":1.131313761748598E-2},{"$f":"(Monthly!CQ240/Monthly!CQ239)-1","v":6.8630151212079049E-4},{"$f":"(Monthly!CR240/Monthly!CR239)-1","v":-8.2329937223424299E-4},"--","--",null,null,null,null,null,{"$f":"(Monthly!CZ240/Monthly!CZ239)-1","v":4.7846889952152249E-3},{"$f":"(Monthly!DA240/Monthly!DA239)-1","v":4.7543581616480424E-3},null,null,null,null,null,"--",{"$f":"((Monthly!DH240-Monthly!DH239)*60)","v":18.000000000000256},{"$f":"((Monthly!DI240-Monthly!DI239)*100)","v":-9.9999999999994316},"--",{"$f":"((Monthly!DK240-Monthly!DK239)*100)","v":-10.000000000000053},{"$f":"Monthly!DL240-Monthly!DL239","v":46},null,null,null,{"$f":"Monthly!DP240-Monthly!DP239","v":353},null,null,null,{"$f":"(Monthly!DT240/Monthly!DT239)-1","v":9.1880341880341776E-2},{"$f":"Monthly!DU240-Monthly!DU239","v":0.20000000000000018},"--","--","--","--","--","--","--","--",null,null,null,null,null,null,null,null,null,null,null,null,null,{"$f":"(Monthly!EQ240/Monthly!EQ239)-1","v":1.0479041916167775E-2},{"$f":"(Monthly!ER240/Monthly!ER239)-1","v":4.3352601156068094E-3},{"$f":"(Monthly!ES240/Monthly!ES239)-1","v":4.3604651162789665E-3},null,null,null,null,null,{"$f":"((Monthly!EY240-Monthly!EY239)*100)","v":7.0000000000000284},{"$f":"((Monthly!EZ240-Monthly!EZ239)*100)","v":8.0000000000000071},{"$f":"((Monthly!FA240-Monthly!FA239)*100)","v":6.0000000000000497},{"$f":"((Monthly!FB240-Monthly!FB239)*100)","v":2.9999999999999361},"--",{"$f":"((Monthly!FD240-Monthly!FD239)*100)","v":14.000000000000057},{"$f":"((Monthly!FE240-Monthly!FE239)*100)","v":0.99999999999997868},{"$f":"((Monthly!FF240-Monthly!FF239)*100)","v":5.9999999999999609},{"$f":"((Monthly!FG240-Monthly!FG239)*100)","v":8.0000000000000071},{"$f":"((Monthly!FH240-Monthly!FH239)*100)","v":6.0000000000000497},{"$f":"((Monthly!FI240-Monthly!FI239)*100)","v":6.9999999999999396},null,null,null,null,null,null,{"$f":"(Monthly!FP240/Monthly!FP239)-1","v":1.0715583000363349E-2},"--","--","--",{"$f":"(Monthly!FT240/Monthly!FT239)-1","v":-2.0866255647800092E-4},{"$f":"(Monthly!FU240/Monthly!FU239)-1","v":-1.6591471113734935E-3},{"$f":"(Monthly!FV240/Monthly!FV239)-1","v":9.0274272253070942E-2},{"$f":"(Monthly!FW240/Monthly!FW239)-1","v":-0.20967741935483875},{"$f":"(Monthly!FX240/Monthly!FX239)-1","v":-0.10463018641010224},null,null,null,null,null,{"$f":"(Monthly!GD240/Monthly!GD239)-1","v":0},"--","--","--",{"$f":"(Monthly!GH240/Monthly!GH239)-1","v":{"$error":"#DIV/0!"}},"--","--","--","--"]
["1978-04-01",null,null,null,{"$f":"(Monthly!E242/Monthly!E241)-1","v":{"$error":"#DIV/0!"}},{"$f":"(Monthly!F242/Monthly!F241)-1","v":{"$error":"#DIV/0!"}},{"$f":"(Monthly!G242/Monthly!G241)-1","v":{"$error":"#DIV/0!"}},{"$f":"(Monthly!H242/Monthly!H241)-1","v":{"$error":"#DIV/0!"}},null,null,null,null,null,null,null,null,null,null,null,null,null,null,null,{"$f":"(Monthly!X242-Monthly!X241)","v":1.5},{"$f":"(Monthly!Y242/Monthly!Y241)-1","v":1.5880186773954641E-2},null,null,null,null,null,null,null,null,null,null,null,null,null,{"$f":"(Monthly!AM242/Monthly!AM241)-1","v":2.0918757521445341E-2},{"$f":"(Monthly!AN242/Monthly!AN241)-1","v":1.6684630590453109E-2},"--","--",{"$f":"Monthly!AQ242-Monthly!AQ241","v":2.7000000000000028},"--","--",{"$f":"Monthly!AT242-Monthly!AT241","v":0.89999999999999858},"--","--",{"$f":"Monthly!AW242-Monthly!AW241","v":8.3999999999999986},{"$f":"Monthly!AX242-Monthly!AX241","v":3.6000000000000014},{"$f":"Monthly!AY242-Monthly!AY241","v":6.4000000000000057},{"$f":"Monthly!AZ242-Monthly!AZ241","v":3.2999999999999972},{"$f":"Monthly!BA242-Monthly!BA241","v":-1.7999999999999972},"--","--",null,null,null,null,null,null,null,null,null,"--","--",null,null,null,null,null,{"$f":"(Monthly!BT242/Monthly!BT241)-1","v":1.7232167732083248E-2},null,null,null,{"$f":"(Monthly!BX242/Monthly!BX241)-1","v":8.120078740157477E-2},{"$f":"(Monthly!BY242/Monthly!BY241)-1","v":8.2823790994997148E-2},"--",{"$f":"(Monthly!CA242/Monthly!CA241)-1","v":7.0884871550903839E-2},{"$f":"Monthly!CB242-Monthly!CB241","v":-7.5838926174487398E-2},{"$f":"Monthly!CC242-Monthly!CC241","v":-0.21583892617448797},"--","--",null,"--","--",null,{"$f":"(Monthly!CJ242/Monthly!CJ241)-1","v":6.1425061425061322E-2},{"$f":"(Monthly!CK242/Monthly!CK241)-1","v":1.3039843967679099E-2},{"$f":"(Monthly!CL242/Monthly!CL241)-1","v":-1.4997000599880073E-2},{"$f":"(Monthly!CM242/Monthly!CM241)-1","v":6.1581525542337312E-2},{"$f":"(Monthly!CN242/Monthly!CN241)-1","v":3.1266870613639863E-3},{"$f":"(Monthly!CO242/Monthly!CO241)-1","v":2.2110552763818792E-3},{"$f":"(Monthly!CP242/Monthly!CP241)-1","v":1.433493621763704E-2},{"$f":"(Monthly!CQ242/Monthly!CQ241)-1","v":8.9723705093058825E-4},{"$f":"(Monthly!CR242/Monthly!CR241)-1","v":2.3047450319110485E-2},"--","--",null,null,null,null,null,{"$f":"(Monthly!CZ242/Monthly!CZ241)-1","v":7.8864353312302349E-3},{"$f":"(Monthly!DA242/Monthly!DA241)-1","v":7.8369905956112706E-3},null,null,null,null,null,"--",{"$f":"((Monthly!DH242-Monthly!DH241)*60)","v":0},{"$f":"((Monthly!DI242-Monthly!DI241)*100)","v":20.000000000000284},"--",{"$f":"((Monthly!DK242-Monthly!DK241)*100)","v":-20.000000000000018},{"$f":"Monthly!DL242-Monthly!DL241","v":73},null,null,null,{"$f":"Monthly!DP242-Monthly!DP241","v":702},null,null,null,{"$f":"(Monthly!DT242/Monthly!DT241)-1","v":-6.2319259687680706E-2},{"$f":"Monthly!DU242-Monthly!DU241","v":-0.10000000000000053},"--","--","--","--","--","--","--","--",null,null,null,null,null,null,null,null,null,null,null,null,null,{"$f":"(Monthly!EQ242/Monthly!EQ241)-1","v":1.3215859030837107E-2},{"$f":"(Monthly!ER242/Monthly!ER241)-1","v":1.0014306151645114E-2},{"$f":"(Monthly!ES242/Monthly!ES241)-1","v":4.3103448275862988E-3},null,null,null,null,null,{"$f":"((Monthly!EY242-Monthly!EY241)*100)","v":0},{"$f":"((Monthly!EZ242-Monthly!EZ241)*100)","v":9.9999999999999645},{"$f":"((Monthly!FA242-Monthly!FA241)*100)","v":8.9999999999999858},{"$f":"((Monthly!FB242-Monthly!FB241)*100)","v":9.9999999999999645},"--",{"$f":"((Monthly!FD242-Monthly!FD241)*100)","v":16.000000000000014},{"$f":"((Monthly!FE242-Monthly!FE241)*100)","v":0},{"$f":"((Monthly!FF242-Monthly!FF241)*100)","v":14.000000000000057},{"$f":"((Monthly!FG242-Monthly!FG241)*100)","v":16.000000000000014},{"$f":"((Monthly!FH242-Monthly!FH241)*100)","v":12.000000000000011},{"$f":"((Monthly!FI242-Monthly!FI241)*100)","v":11.000000000000121},null,null,null,null,null,null,{"$f":"(Monthly!FP242/Monthly!FP241)-1","v":1.4123290104814279E-2},"--","--","--",{"$f":"(Monthly!FT242/Monthly!FT241)-1","v":-1.1670080934949034E-3},{"$f":"(Monthly!FU242/Monthly!FU241)-1","v":-4.0785895535738748E-3},{"$f":"(Monthly!FV242/Monthly!FV241)-1","v":-1.1210999471179317E-2},{"$f":"(Monthly!FW242/Monthly!FW241)-1","v":0.48101265822784822},{"$f":"(Monthly!FX242/Monthly!FX241)-1","v":2.2686832740213436E-2},null,null,null,null,null,{"$f":"(Monthly!GD242/Monthly!GD241)-1","v":0},"--","--","--",{"$f":"(Monthly!GH242/Monthly!GH241)-1","v":{"$error":"#DIV/0!"}},"--","--","--","--"]
["1978-09-01",null,null,null,{"$f":"(Monthly!E247/Monthly!E246)-1","v":{"$error":"#DIV/0!"}},{"$f":"(Monthly!F247/Monthly!F246)-1","v":{"$error":"#DIV/0!"}},{"$f":"(Monthly!G247/Monthly!G246)-1","v":{"$error":"#DIV/0!"}},{"$f":"(Monthly!H247/Monthly!H246)-1","v":{"$error":"#DIV/0!"}},null,null,null,null,null,null,null,null,null,null,null,null,null,null,null,{"$f":"(Monthly!X247-Monthly!X246)","v":0},{"$f":"(Monthly!Y247/Monthly!Y246)-1","v":9.365819139148579E-3},null,null,null,null,null,null,null,null,null,null,null,null,null,{"$f":"(Monthly!AM247/Monthly!AM246)-1","v":2.5142848415542485E-3},{"$f":"(Monthly!AN247/Monthly!AN246)-1","v":5.289162704015915E-3},"--","--",{"$f":"Monthly!AQ247-Monthly!AQ246","v":0.20000000000000284},"--","--",{"$f":"Monthly!AT247-Monthly!AT246","v":1.9000000000000057},"--","--",{"$f":"Monthly!AW247-Monthly!AW246","v":-0.89999999999999858},{"$f":"Monthly!AX247-Monthly!AX246","v":0},{"$f":"Monthly!AY247-Monthly!AY246","v":1.3999999999999915},{"$f":"Monthly!AZ247-Monthly!AZ246","v":9.9999999999994316E-2},{"$f":"Monthly!BA247-Monthly!BA246","v":-0.60000000000000142},"--","--",null,null,null,null,null,null,null,null,null,"--","--",null,null,null,null,null,{"$f":"(Monthly!BT247/Monthly!BT246)-1","v":9.1199890674011908E-3},null,null,null,{"$f":"(Monthly!BX247/Monthly!BX246)-1","v":-1.3026052104208374E-2},{"$f":"(Monthly!BY247/Monthly!BY246)-1","v":3.5481963335304512E-2},"--",{"$f":"(Monthly!CA247/Monthly!CA246)-1","v":-9.4475631538657789E-2},{"$f":"Monthly!CB247-Monthly!CB246","v":0.72689731219112197},{"$f":"Monthly!CC247-Monthly!CC246","v":0.79689731219112048},"--","--",null,"--","--",null,{"$f":"(Monthly!CJ247/Monthly!CJ246)-1","v":7.4074074074074181E-2},{"$f":"(Monthly!CK247/Monthly!CK246)-1","v":6.882312456985451E-3},{"$f":"(Monthly!CL247/Monthly!CL246)-1","v":2.0171149144254441E-2},{"$f":"(Monthly!CM247/Monthly!CM246)-1","v":-2.5263157894736876E-2},{"$f":"(Monthly!CN247/Monthly!CN246)-1","v":1.5574591166966911E-4},{"$f":"(Monthly!CO247/Monthly!CO246)-1","v":1.4158576051781502E-3},{"$f":"(Monthly!CP247/Monthly!CP246)-1","v":1.1496411875014934E-2},{"$f":"(Monthly!CQ247/Monthly!CQ246)-1","v":1.1130809452211121E-3},{"$f":"(Monthly!CR247/Monthly!CR246)-1","v":2.4210310744104957E-2},"--","--",null,null,null,null,null,{"$f":"(Monthly!CZ247/Monthly!CZ246)-1","v":9.1047040971168336E-3},{"$f":"(Monthly!DA247/Monthly!DA246)-1","v":9.0771558245084094E-3},null,null,null,null,null,"--",{"$f":"((Monthly!DH247-Monthly!DH246)*60)","v":0},{"$f":"((Monthly!DI247-Monthly!DI246)*100)","v":9.9999999999994316},"--",{"$f":"((Monthly!DK247-Monthly!DK246)*100)","v":9.9999999999999645},{"$f":"Monthly!DL247-Monthly!DL246","v":62},null,null,null,{"$f":"Monthly!DP247-Monthly!DP246","v":137},null,null,null,{"$f":"(Monthly!DT247/Monthly!DT246)-1","v":-3.2017870439314922E-2},{"$f":"Monthly!DU247-Monthly!DU246","v":-0.20000000000000018},"--","--","--","--","--","--","--","--",null,null,null,null,null,null,null,null,null,null,null,null,null,{"$f":"(Monthly!EQ247/Monthly!EQ246)-1","v":8.5227272727272929E-3},{"$f":"(Monthly!ER247/Monthly!ER246)-1","v":9.6153846153845812E-3},{"$f":"(Monthly!ES247/Monthly!ES246)-1","v":8.3333333333333037E-3},null,null,null,null,null,{"$f":"((Monthly!EY247-Monthly!EY246)*100)","v":40.000000000000036},{"$f":"((Monthly!EZ247-Monthly!EZ246)*100)","v":41.000000000000014},{"$f":"((Monthly!FA247-Monthly!FA246)*100)","v":0},{"$f":"((Monthly!FB247-Monthly!FB246)*100)","v":-6.0000000000000497},"--",{"$f":"((Monthly!FD247-Monthly!FD246)*100)","v":-2.9999999999999361},{"$f":"((Monthly!FE247-Monthly!FE246)*100)","v":76.999999999999957},{"$f":"((Monthly!FF247-Monthly!FF246)*100)","v":33.000000000000007},{"$f":"((Monthly!FG247-Monthly!FG246)*100)","v":20.000000000000107},{"$f":"((Monthly!FH247-Monthly!FH246)*100)","v":9.9999999999999645},{"$f":"((Monthly!FI247-Monthly!FI246)*100)","v":0.99999999999997868},null,null,null,null,null,null,{"$f":"(Monthly!FP247/Monthly!FP246)-1","v":2.2799017888460282E-2},"--","--","--",{"$f":"(Monthly!FT247/Monthly!FT246)-1","v":2.3942584514402565E-3},{"$f":"(Monthly!FU247/Monthly!FU246)-1","v":2.2044444066344759E-3},{"$f":"(Monthly!FV247/Monthly!FV246)-1","v":0.17479366683510178},{"$f":"(Monthly!FW247/Monthly!FW246)-1","v":8.7301587301587213E-2},{"$f":"(Monthly!FX247/Monthly!FX246)-1","v":5.2949466478759755E-2},null,null,null,null,null,{"$f":"(Monthly!GD247/Monthly!GD246)-1","v":0},"--","--","--",{"$f":"(Monthly!GH247/Monthly!GH246)-1","v":{"$error":"#DIV/0!"}},"--","--","--","--"]
["1979-02-01",null,null,null,{"$f":"(Monthly!E252/Monthly!E251)-1","v":{"$error":"#DIV/0!"}},{"$f":"(Monthly!F252/Monthly!F251)-1","v":{"$error":"#DIV/0!"}},{"$f":"(Monthly!G252/Monthly!G251)-1","v":{"$error":"#DIV/0!"}},{"$f":"(Monthly!H252/Monthly!H251)-1","v":{"$error":"#DIV/0!"}},null,null,null,null,null,null,null,null,null,null,null,null,null,null,null,{"$f":"(Monthly!X252-Monthly!X251)","v":0.29999999999999716},{"$f":"(Monthly!Y252/Monthly!Y251)-1","v":1.7182397177141873E-2},null,null,null,null,null,null,null,null,null,null,null,null,null,{"$f":"(Monthly!AM252/Monthly!AM251)-1","v":5.3262067011112801E-3},{"$f":"(Monthly!AN252/Monthly!AN251)-1","v":3.6037078517026089E-3},"--","--",{"$f":"Monthly!AQ252-Monthly!AQ251","v":-0.29999999999999716},"--","--",{"$f":"Monthly!AT252-Monthly!AT251","v":-1.6999999999999957},"--","--",{"$f":"Monthly!AW252-Monthly!AW251","v":-0.89999999999999858},{"$f":"Monthly!AX252-Monthly!AX251","v":1.3000000000000043},{"$f":"Monthly!AY252-Monthly!AY251","v":0.70000000000000284},{"$f":"Monthly!AZ252-Monthly!AZ251","v":0.20000000000000284},{"$f":"Monthly!BA252-Monthly!BA251","v":-2.4000000000000057},"--","--",null,null,null,null,null,null,null,null,null,"--","--",null,null,null,null,null,{"$f":"(Monthly!BT252/Monthly!BT251)-1","v":1.2244937645010001E-2},null,null,null,{"$f":"(Monthly!BX252/Monthly!BX251)-1","v":-6.7484662576687171E-2},{"$f":"(Monthly!BY252/Monthly!BY251)-1","v":2.1218343600273748E-2},"--",{"$f":"(Monthly!CA252/Monthly!CA251)-1","v":1.5725420484069552E-2},{"$f":"Monthly!CB252-Monthly!CB251","v":0.59087111718691965},{"$f":"Monthly!CC252-Monthly!CC251","v":0.59087111718691787},"--","--",null,"--","--",null,{"$f":"(Monthly!CJ252/Monthly!CJ251)-1","v":-4.1114058355437688E-2},{"$f":"(Monthly!CK252/Monthly!CK251)-1","v":9.2943375258875971E-3},{"$f":"(Monthly!CL252/Monthly!CL251)-1","v":2.73972602739736E-3},{"$f":"(Monthly!CM252/Monthly!CM251)-1","v":-5.2252252252252274E-2},{"$f":"(Monthly!CN252/Monthly!CN251)-1","v":4.0390736472395439E-3},{"$f":"(Monthly!CO252/Monthly!CO251)-1","v":-1.2484130342784616E-2},{"$f":"(Monthly!CP252/Monthly!CP251)-1","v":1.16833294019969E-2},{"$f":"(Monthly!CQ252/Monthly!CQ251)-1","v":8.3979183883142738E-4},{"$f":"(Monthly!CR252/Monthly!CR251)-1","v":4.8060893217511946E-3},"--","--",null,null,null,null,null,{"$f":"(Monthly!CZ252/Monthly!CZ251)-1","v":1.0218978102189746E-2},{"$f":"(Monthly!DA252/Monthly!DA251)-1","v":1.0218978102189746E-2},null,null,null,null,null,"--",{"$f":"((Monthly!DH252-Monthly!DH251)*60)","v":6.0000000000000853},{"$f":"((Monthly!DI252-Monthly!DI251)*100)","v":19.999999999999574},"--",{"$f":"((Monthly!DK252-Monthly!DK251)*100)","v":0},{"$f":"Monthly!DL252-Monthly!DL251","v":21},null,null,null,{"$f":"Monthly!DP252-Monthly!DP251","v":244},null,null,null,{"$f":"(Monthly!DT252/Monthly!DT251)-1","v":2.7972027972027469E-3},{"$f":"Monthly!DU252-Monthly!DU251","v":0},"--","--","--","--","--","--","--","--",null,null,null,null,null,null,null,null,null,null,null,null,null,{"$f":"(Monthly!EQ252/Monthly!EQ251)-1","v":1.4905149051490652E-2},{"$f":"(Monthly!ER252/Monthly!ER251)-1","v":7.9681274900400556E-3},{"$f":"(Monthly!ES252/Monthly!ES251)-1","v":9.3959731543624692E-3},null,null,null,null,null,{"$f":"((Monthly!EY252-Monthly!EY251)*100)","v":0},{"$f":"((Monthly!EZ252-Monthly!EZ251)*100)","v":-0.99999999999997868},{"$f":"((Monthly!FA252-Monthly!FA251)*100)","v":0.99999999999997868},{"$f":"((Monthly!FB252-Monthly!FB251)*100)","v":-5.0000000000000711},"--",{"$f":"((Monthly!FD252-Monthly!FD251)*100)","v":1.9999999999999574},{"$f":"((Monthly!FE252-Monthly!FE251)*100)","v":-2.9999999999999361},{"$f":"((Monthly!FF252-Monthly!FF251)*100)","v":-16.999999999999993},{"$f":"((Monthly!FG252-Monthly!FG251)*100)","v":-13.999999999999879},{"$f":"((Monthly!FH252-Monthly!FH251)*100)","v":-6.9999999999998508},{"$f":"((Monthly!FI252-Monthly!FI251)*100)","v":0},null,null,null,null,null,null,{"$f":"(Monthly!FP252/Monthly!FP251)-1","v":4.7903185141608962E-3},"--","--","--",{"$f":"(Monthly!FT252/Monthly!FT251)-1","v":5.8748845798708427E-3},{"$f":"(Monthly!FU252/Monthly!FU251)-1","v":6.2122124813808188E-3},{"$f":"(Monthly!FV252/Monthly!FV251)-1","v":-7.3085369201207895E-3},{"$f":"(Monthly!FW252/Monthly!FW251)-1","v":-0.18412698412698414},{"$f":"(Monthly!FX252/Monthly!FX251)-1","v":0.11314363143631456},null,null,null,null,null,{"$f":"(Monthly!GD252/Monthly!GD251)-1","v":6.7340067340067256E-2},"--","--","--",{"$f":"(Monthly!GH252/Monthly!GH251)-1","v":{"$error":"#DIV/0!"}},"--","--","--","--"]
["1979-08-01",null,null,null,{"$f":"(Monthly!E258/Monthly!E257)-1","v":{"$error":"#DIV/0!"}},{"$f":"(Monthly!F258/Monthly!F257)-1","v":{"$error":"#DIV/0!"}},{"$f":"(Monthly!G258/Monthly!G257)-1","v":{"$error":"#DIV/0!"}},{"$f":"(Monthly!H258/Monthly!H257)-1","v":{"$error":"#DIV/0!"}},null,null,null,null,null,null,null,null,null,null,null,null,null,null,null,{"$f":"(Monthly!X258-Monthly!X257)","v":-0.70000000000000284},{"$f":"(Monthly!Y258/Monthly!Y257)-1","v":1.0386275675895673E-2},null,null,null,null,null,null,null,null,null,null,null,null,null,{"$f":"(Monthly!AM258/Monthly!AM257)-1","v":-6.755695501937109E-3},{"$f":"(Monthly!AN258/Monthly!AN257)-1","v":-1.3505110846157575E-2},"--","--",{"$f":"Monthly!AQ258-Monthly!AQ257","v":-1.7999999999999972},"--","--",{"$f":"Monthly!AT258-Monthly!AT257","v":0.29999999999999716},"--","--",{"$f":"Monthly!AW258-Monthly!AW257","v":-2},{"$f":"Monthly!AX258-Monthly!AX257","v":-2.8999999999999986},{"$f":"Monthly!AY258-Monthly!AY257","v":-7.5},{"$f":"Monthly!AZ258-Monthly!AZ257","v":-0.39999999999999858},{"$f":"Monthly!BA258-Monthly!BA257","v":-4.5},"--","--",null,null,null,null,null,null,null,null,null,"--","--",null,null,null,null,null,{"$f":"(Monthly!BT258/Monthly!BT257)-1","v":9.682825572226772E-3},null,null,null,{"$f":"(Monthly!BX258/Monthly!BX257)-1","v":1.0227272727272751E-2},{"$f":"(Monthly!BY258/Monthly!BY257)-1","v":3.7157757496740551E-2},"--",{"$f":"(Monthly!CA258/Monthly!CA257)-1","v":2.0930571761960337E-2},{"$f":"Monthly!CB258-Monthly!CB257","v":0.6857336468625661},{"$f":"Monthly!CC258-Monthly!CC257","v":0.89573364686255985},"--","--",null,"--","--",null,{"$f":"(Monthly!CJ258/Monthly!CJ257)-1","v":1.9580419580419672E-2},{"$f":"(Monthly!CK258/Monthly!CK257)-1","v":9.0103043374072378E-3},{"$f":"(Monthly!CL258/Monthly!CL257)-1","v":-7.6247942951179426E-2},{"$f":"(Monthly!CM258/Monthly!CM257)-1","v":2.6006711409396033E-2},{"$f":"(Monthly!CN258/Monthly!CN257)-1","v":1.186395992617939E-3},{"$f":"(Monthly!CO258/Monthly!CO257)-1","v":1.7532325224633993E-3},{"$f":"(Monthly!CP258/Monthly!CP257)-1","v":1.1432573270279134E-2},{"$f":"(Monthly!CQ258/Monthly!CQ257)-1","v":1.0664059896470235E-3},{"$f":"(Monthly!CR258/Monthly!CR257)-1","v":2.2758554655240459E-2},"--","--",null,null,null,null,null,{"$f":"(Monthly!CZ258/Monthly!CZ257)-1","v":9.5890410958905381E-3},{"$f":"(Monthly!DA258/Monthly!DA257)-1","v":1.1126564673157091E-2},null,null,null,null,null,"--",{"$f":"((Monthly!DH258-Monthly!DH257)*60)","v":0},{"$f":"((Monthly!DI258-Monthly!DI257)*100)","v":0},"--",{"$f":"((Monthly!DK258-Monthly!DK257)*100)","v":29.999999999999982},{"$f":"Monthly!DL258-Monthly!DL257","v":-125},null,null,null,{"$f":"Monthly!DP258-Monthly!DP257","v":82},null,null,null,{"$f":"(Monthly!DT258/Monthly!DT257)-1","v":5.7024364955935436E-3},{"$f":"Monthly!DU258-Monthly!DU257","v":-1.1000000000000005},"--","--","--","--","--","--","--","--",null,null,null,null,null,null,null,null,null,null,null,null,null,{"$f":"(Monthly!EQ258/Monthly!EQ257)-1","v":5.050505050504972E-3},{"$f":"(Monthly!ER258/Monthly!ER257)-1","v":3.8216560509554132E-3},{"$f":"(Monthly!ES258/Monthly!ES257)-1","v":0},null,null,null,null,null,{"$f":"((Monthly!EY258-Monthly!EY257)*100)","v":37.000000000000099},{"$f":"((Monthly!EZ258-Monthly!EZ257)*100)","v":46.999999999999886},{"$f":"((Monthly!FA258-Monthly!FA257)*100)","v":3.0000000000001137},{"$f":"((Monthly!FB258-Monthly!FB257)*100)","v":6.0000000000000497},"--",{"$f":"((Monthly!FD258-Monthly!FD257)*100)","v":0},{"$f":"((Monthly!FE258-Monthly!FE257)*100)","v":27.999999999999936},{"$f":"((Monthly!FF258-Monthly!FF257)*100)","v":33.999999999999986},{"$f":"((Monthly!FG258-Monthly!FG257)*100)","v":32.000000000000028},{"$f":"((Monthly!FH258-Monthly!FH257)*100)","v":16.000000000000014},{"$f":"((Monthly!FI258-Monthly!FI257)*100)","v":8.0000000000000071},null,null,null,null,null,null,{"$f":"(Monthly!FP258/Monthly!FP257)-1","v":5.7565082910904231E-3},"--","--","--",{"$f":"(Monthly!FT258/Monthly!FT257)-1","v":4.8590365811558289E-3},{"$f":"(Monthly!FU258/Monthly!FU257)-1","v":4.7346648054462648E-3},{"$f":"(Monthly!FV258/Monthly!FV257)-1","v":-1.195964918362391E-2},{"$f":"(Monthly!FW258/Monthly!FW257)-1","v":-2.3255813953488302E-2},{"$f":"(Monthly!FX258/Monthly!FX257)-1","v":0.21659724447292517},null,null,null,null,null,{"$f":"(Monthly!GD258/Monthly!GD257)-1","v":0.21839080459770122},"--","--","--",{"$f":"(Monthly!GH258/Monthly!GH257)-1","v":{"$error":"#DIV/0!"}},"--","--","--","--"]
["1979-12-01",null,null,null,{"$f":"(Monthly!E262/Monthly!E261)-1","v":{"$error":"#DIV/0!"}},{"$f":"(Monthly!F262/Monthly!F261)-1","v":{"$error":"#DIV/0!"}},{"$f":"(Monthly!G262/Monthly!G261)-1","v":{"$error":"#DIV/0!"}},{"$f":"(Monthly!H262/Monthly!H261)-1","v":{"$error":"#DIV/0!"}},null,null,null,null,null,null,null,null,null,null,null,null,null,null,null,{"$f":"(Monthly!X262-Monthly!X261)","v":-0.10000000000000853},{"$f":"(Monthly!Y262/Monthly!Y261)-1","v":8.9724287634245226E-3},null,null,null,null,null,null,null,null,null,null,null,null,null,{"$f":"(Monthly!AM262/Monthly!AM261)-1","v":8.3506525117504893E-4},{"$f":"(Monthly!AN262/Monthly!AN261)-1","v":3.2666589234751076E-3},"--","--",{"$f":"Monthly!AQ262-Monthly!AQ261","v":-3.2000000000000028},"--","--",{"$f":"Monthly!AT262-Monthly!AT261","v":-3.1999999999999957},"--","--",{"$f":"Monthly!AW262-Monthly!AW261","v":-0.79999999999999716},{"$f":"Monthly!AX262-Monthly!AX261","v":-2.2000000000000028},{"$f":"Monthly!AY262-Monthly!AY261","v":-4.7999999999999972},{"$f":"Monthly!AZ262-Monthly!AZ261","v":-4.3999999999999986},{"$f":"Monthly!BA262-Monthly!BA261","v":-4.5999999999999943},"--","--",null,null,null,null,null,null,null,null,null,"--","--",null,null,null,null,null,{"$f":"(Monthly!BT262/Monthly!BT261)-1","v":2.3402876159051011E-4},null,null,null,{"$f":"(Monthly!BX262/Monthly!BX261)-1","v":-1.7060367454068248E-2},{"$f":"(Monthly!BY262/Monthly!BY261)-1","v":-1.7241379310344862E-2},"--",{"$f":"(Monthly!CA262/Monthly!CA261)-1","v":4.1919949475013762E-2},{"$f":"Monthly!CB262-Monthly!CB261","v":0.76219385807013396},{"$f":"Monthly!CC262-Monthly!CC261","v":0.83219385807013779},"--","--",null,"--","--",null,{"$f":"(Monthly!CJ262/Monthly!CJ261)-1","v":-6.3651591289782261E-2},{"$f":"(Monthly!CK262/Monthly!CK261)-1","v":1.1487889273356533E-2},{"$f":"(Monthly!CL262/Monthly!CL261)-1","v":6.1293984108967248E-2},{"$f":"(Monthly!CM262/Monthly!CM261)-1","v":6.1650992685475359E-2},{"$f":"(Monthly!CN262/Monthly!CN261)-1","v":2.7540983606557656E-3},{"$f":"(Monthly!CO262/Monthly!CO261)-1","v":-1.2351433232346776E-2},{"$f":"(Monthly!CP262/Monthly!CP261)-1","v":6.3503675343412613E-3},{"$f":"(Monthly!CQ262/Monthly!CQ261)-1","v":9.5563804324272361E-4},{"$f":"(Monthly!CR262/Monthly!CR261)-1","v":-5.9093016785680685E-3},"--","--",null,null,null,null,null,{"$f":"(Monthly!CZ262/Monthly!CZ261)-1","v":1.1842105263157876E-2},{"$f":"(Monthly!DA262/Monthly!DA261)-1","v":1.2032085561497485E-2},null,null,null,null,null,"--",{"$f":"((Monthly!DH262-Monthly!DH261)*60)","v":-6.0000000000000853},{"$f":"((Monthly!DI262-Monthly!DI261)*100)","v":19.999999999999574},"--",{"$f":"((Monthly!DK262-Monthly!DK261)*100)","v":9.9999999999999645},{"$f":"Monthly!DL262-Monthly!DL261","v":2},null,null,null,{"$f":"Monthly!DP262-Monthly!DP261","v":97},null,null,null,{"$f":"(Monthly!DT262/Monthly!DT261)-1","v":3.0465949820788429E-2},{"$f":"Monthly!DU262-Monthly!DU261","v":0.40000000000000036},"--","--","--","--","--","--","--","--",null,null,null,null,null,null,null,null,null,null,null,null,null,{"$f":"(Monthly!EQ262/Monthly!EQ261)-1","v":9.6852300242131761E-3},{"$f":"(Monthly!ER262/Monthly!ER261)-1","v":8.6419753086419693E-3},{"$f":"(Monthly!ES262/Monthly!ES261)-1","v":1.0025062656641603E-2},null,null,null,null,null,{"$f":"((Monthly!EY262-Monthly!EY261)*100)","v":-25},{"$f":"((Monthly!EZ262-Monthly!EZ261)*100)","v":59.999999999999964},{"$f":"((Monthly!FA262-Monthly!FA261)*100)","v":-1.9999999999999574},{"$f":"((Monthly!FB262-Monthly!FB261)*100)","v":7.0000000000000284},"--",{"$f":"((Monthly!FD262-Monthly!FD261)*100)","v":7.0000000000000284},{"$f":"((Monthly!FE262-Monthly!FE261)*100)","v":25},{"$f":"((Monthly!FF262-Monthly!FF261)*100)","v":-41.000000000000014},{"$f":"((Monthly!FG262-Monthly!FG261)*100)","v":-41.999999999999993},{"$f":"((Monthly!FH262-Monthly!FH261)*100)","v":-50.999999999999979},{"$f":"((Monthly!FI262-Monthly!FI261)*100)","v":-25.999999999999979},null,null,null,null,null,null,{"$f":"(Monthly!FP262/Monthly!FP261)-1","v":-8.22242943121132E-3},"--","--","--",{"$f":"(Monthly!FT262/Monthly!FT261)-1","v":-9.0547843448053333E-3},{"$f":"(Monthly!FU262/Monthly!FU261)-1","v":-1.6946321961675004E-2},{"$f":"(Monthly!FV262/Monthly!FV261)-1","v":-3.2891938639521334E-2},{"$f":"(Monthly!FW262/Monthly!FW261)-1","v":0.11128775834658189},{"$f":"(Monthly!FX262/Monthly!FX261)-1","v":0.19294447274579718},null,null,null,null,null,{"$f":"(Monthly!GD262/Monthly!GD261)-1","v":4.8387096774193505E-2},"--","--","--",{"$f":"(Monthly!GH262/Monthly!GH261)-1","v":{"$error":"#DIV/0!"}},"--","--","--","--"]
["1980-03-01",null,null,null,{"$f":"(Monthly!E265/Monthly!E264)-1","v":{"$error":"#DIV/0!"}},{"$f":"(Monthly!F265/Monthly!F264)-1","v":{"$error":"#DIV/0!"}},{"$f":"(Monthly!G265/Monthly!G264)-1","v":{"$error":"#DIV/0!"}},{"$f":"(Monthly!H265/Monthly!H264)-1","v":{"$error":"#DIV/0!"}},null,null,null,null,null,null,null,null,null,null,null,null,null,null,null,{"$f":"(Monthly!X265-Monthly!X264)","v":-0.40000000000000568},{"$f":"(Monthly!Y265/Monthly!Y264)-1","v":1.2991422713584333E-2},null,null,null,null,null,null,null,null,null,null,null,null,null,{"$f":"(Monthly!AM265/Monthly!AM264)-1","v":-3.3149562038633507E-3},{"$f":"(Monthly!AN265/Monthly!AN264)-1","v":-7.462209811538556E-3},"--","--",{"$f":"Monthly!AQ265-Monthly!AQ264","v":-6.6000000000000014},"--","--",{"$f":"Monthly!AT265-Monthly!AT264","v":-6.5},"--","--",{"$f":"Monthly!AW265-Monthly!AW264","v":-3.5},{"$f":"Monthly!AX265-Monthly!AX264","v":-7.8000000000000043},{"$f":"Monthly!AY265-Monthly!AY264","v":-0.5},{"$f":"Monthly!AZ265-Monthly!AZ264","v":-6.3999999999999986},{"$f":"Monthly!BA265-Monthly!BA264","v":-6.8999999999999986},"--","--",null,null,null,null,null,null,null,null,null,"--","--",null,null,null,null,null,{"$f":"(Monthly!BT265/Monthly!BT264)-1","v":1.580707101902723E-3},null,null,null,{"$f":"(Monthly!BX265/Monthly!BX264)-1","v":-0.22444444444444445},{"$f":"(Monthly!BY265/Monthly!BY264)-1","v":-0.17597998331943288},"--",{"$f":"(Monthly!CA265/Monthly!CA264)-1","v":-9.0229042955193961E-2},{"$f":"Monthly!CB265-Monthly!CB264","v":0.43042496712892842},{"$f":"Monthly!CC265-Monthly!CC264","v":0.43042496712892842},"--","--",null,"--","--",null,{"$f":"(Monthly!CJ265/Monthly!CJ264)-1","v":-0.12384473197781887},{"$f":"(Monthly!CK265/Monthly!CK264)-1","v":5.4230907135175421E-3},{"$f":"(Monthly!CL265/Monthly!CL264)-1","v":4.1862899005755683E-3},{"$f":"(Monthly!CM265/Monthly!CM264)-1","v":-0.21755253399258345},{"$f":"(Monthly!CN265/Monthly!CN264)-1","v":-7.9026429224537953E-3},{"$f":"(Monthly!CO265/Monthly!CO264)-1","v":-2.5572333170969297E-2},{"$f":"(Monthly!CP265/Monthly!CP264)-1","v":-3.9936984536748099E-5},{"$f":"(Monthly!CQ265/Monthly!CQ264)-1","v":8.5151065932520531E-4},{"$f":"(Monthly!CR265/Monthly!CR264)-1","v":1.847435113460083E-4},"--","--",null,null,null,null,null,{"$f":"(Monthly!CZ265/Monthly!CZ264)-1","v":1.3924050632911245E-2},{"$f":"(Monthly!DA265/Monthly!DA264)-1","v":1.4193548387096744E-2},null,null,null,null,null,"--",{"$f":"((Monthly!DH265-Monthly!DH264)*60)","v":-6.0000000000000853},{"$f":"((Monthly!DI265-Monthly!DI264)*100)","v":-29.999999999999716},"--",{"$f":"((Monthly!DK265-Monthly!DK264)*100)","v":0},{"$f":"Monthly!DL265-Monthly!DL264","v":-2},null,null,null,{"$f":"Monthly!DP265-Monthly!DP264","v":112},null,null,null,{"$f":"(Monthly!DT265/Monthly!DT264)-1","v":3.7799043062201054E-2},{"$f":"Monthly!DU265-Monthly!DU264","v":0.20000000000000018},"--","--","--","--","--","--","--","--",null,null,null,null,null,null,null,null,null,null,null,null,null,{"$f":"(Monthly!EQ265/Monthly!EQ264)-1","v":6.9044879171460405E-3},{"$f":"(Monthly!ER265/Monthly!ER264)-1","v":5.9382422802849444E-3},{"$f":"(Monthly!ES265/Monthly!ES264)-1","v":9.7205346294044759E-3},null,null,null,null,null,{"$f":"((Monthly!EY265-Monthly!EY264)*100)","v":267.99999999999977},{"$f":"((Monthly!EZ265-Monthly!EZ264)*100)","v":306.00000000000006},{"$f":"((Monthly!FA265-Monthly!FA264)*100)","v":58.000000000000007},{"$f":"((Monthly!FB265-Monthly!FB264)*100)","v":87.999999999999901},"--",{"$f":"((Monthly!FD265-Monthly!FD264)*100)","v":224.00000000000003},{"$f":"((Monthly!FE265-Monthly!FE264)*100)","v":234},{"$f":"((Monthly!FF265-Monthly!FF264)*100)","v":190.00000000000003},{"$f":"((Monthly!FG265-Monthly!FG264)*100)","v":146.00000000000009},{"$f":"((Monthly!FH265-Monthly!FH264)*100)","v":87.000000000000099},{"$f":"((Monthly!FI265-Monthly!FI264)*100)","v":33.999999999999986},null,null,null,null,null,null,{"$f":"(Monthly!FP265/Monthly!FP264)-1","v":1.5231501514495926E-2},"--","--","--",{"$f":"(Monthly!FT265/Monthly!FT264)-1","v":2.5894186235980721E-2},{"$f":"(Monthly!FU265/Monthly!FU264)-1","v":3.2485286137663216E-2},{"$f":"(Monthly!FV265/Monthly!FV264)-1","v":3.7577648402462582E-2},{"$f":"(Monthly!FW265/Monthly!FW264)-1","v":-6.1093247588424493E-2},{"$f":"(Monthly!FX265/Monthly!FX264)-1","v":4.4917040975340772E-3},null,null,null,null,null,{"$f":"(Monthly!GD265/Monthly!GD264)-1","v":2.7027027027026973E-2},"--","--","--",{"$f":"(Monthly!GH265/Monthly!GH264)-1","v":{"$error":"#DIV/0!"}},"--","--","--","--"]
["1980-10-01",null,null,null,{"$f":"(Monthly!E272/Monthly!E271)-1","v":{"$error":"#DIV/0!"}},{"$f":"(Monthly!F272/Monthly!F271)-1","v":{"$error":"#DIV/0!"}},{"$f":"(Monthly!G272/Monthly!G271)-1","v":{"$error":"#DIV/0!"}},{"$f":"(Monthly!H272/Monthly!H271)-1","v":{"$error":"#DIV/0!"}},null,null,null,null,null,null,null,null,null,null,null,null,null,null,null,{"$f":"(Monthly!X272-Monthly!X271)","v":0.80000000000001137},{"$f":"(Monthly!Y272/Monthly!Y271)-1","v":1.7520120084466129E-2},null,null,null,null,null,null,null,null,null,null,null,null,null,{"$f":"(Monthly!AM272/Monthly!AM271)-1","v":1.2510576928713935E-2},{"$f":"(Monthly!AN272/Monthly!AN271)-1","v":1.8936990151623201E-2},"--","--",{"$f":"Monthly!AQ272-Monthly!AQ271","v":5.3999999999999986},"--","--",{"$f":"Monthly!AT272-Monthly!AT271","v":2.3999999999999986},"--","--",{"$f":"Monthly!AW272-Monthly!AW271","v":-1.3999999999999986},{"$f":"Monthly!AX272-Monthly!AX271","v":9.8000000000000043},{"$f":"Monthly!AY272-Monthly!AY271","v":7.2000000000000028},{"$f":"Monthly!AZ272-Monthly!AZ271","v":5.6000000000000014},{"$f":"Monthly!BA272-Monthly!BA271","v":5.2999999999999972},"--","--",null,null,null,null,null,null,null,null,null,"--","--",null,null,null,null,null,{"$f":"(Monthly!BT272/Monthly!BT271)-1","v":4.3657158485022052E-4},null,null,null,{"$f":"(Monthly!BX272/Monthly!BX271)-1","v":3.5350101971447945E-2},{"$f":"(Monthly!BY272/Monthly!BY271)-1","v":-7.9514824797843664E-2},"--",{"$f":"(Monthly!CA272/Monthly!CA271)-1","v":4.9331575974392861E-2},{"$f":"Monthly!CB272-Monthly!CB271","v":-0.13583848089682249},{"$f":"Monthly!CC272-Monthly!CC271","v":-0.13583848089682249},"--","--",null,"--","--",null,{"$f":"(Monthly!CJ272/Monthly!CJ271)-1","v":-5.8724832214765099E-2},{"$f":"(Monthly!CK272/Monthly!CK271)-1","v":2.0475366234643522E-2},{"$f":"(Monthly!CL272/Monthly!CL271)-1","v":1.622095572117499E-2},{"$f":"(Monthly!CM272/Monthly!CM271)-1","v":-9.8135426889106592E-3},{"$f":"(Monthly!CN272/Monthly!CN271)-1","v":1.207125301781331E-2},{"$f":"(Monthly!CO272/Monthly!CO271)-1","v":1.6706443914080715E-3},{"$f":"(Monthly!CP272/Monthly!CP271)-1","v":4.1204826128902194E-3},{"$f":"(Monthly!CQ272/Monthly!CQ271)-1","v":1.012332044910691E-3},{"$f":"(Monthly!CR272/Monthly!CR271)-1","v":-6.2509997003190598E-4},"--","--",null,null,null,null,null,{"$f":"(Monthly!CZ272/Monthly!CZ271)-1","v":9.5351609058402786E-3},{"$f":"(Monthly!DA272/Monthly!DA271)-1","v":1.0962241169305775E-2},null,null,null,null,null,"--",{"$f":"((Monthly!DH272-Monthly!DH271)*60)","v":6.0000000000000853},{"$f":"((Monthly!DI272-Monthly!DI271)*100)","v":10.000000000000142},"--",{"$f":"((Monthly!DK272-Monthly!DK271)*100)","v":0},{"$f":"Monthly!DL272-Monthly!DL271","v":61},null,null,null,{"$f":"Monthly!DP272-Monthly!DP271","v":281},null,null,null,{"$f":"(Monthly!DT272/Monthly!DT271)-1","v":-0.10056965302951837},{"$f":"Monthly!DU272-Monthly!DU271","v":-0.20000000000000018},"--","--","--","--","--","--","--","--",null,null,null,null,null,null,null,null,null,null,null,null,null,{"$f":"(Monthly!EQ272/Monthly!EQ271)-1","v":1.1995637949836269E-2},{"$f":"(Monthly!ER272/Monthly!ER271)-1","v":9.009009009008917E-3},{"$f":"(Monthly!ES272/Monthly!ES271)-1","v":1.4857142857142902E-2},null,null,null,null,null,{"$f":"((Monthly!EY272-Monthly!EY271)*100)","v":155.99999999999989},{"$f":"((Monthly!EZ272-Monthly!EZ271)*100)","v":194.00000000000011},{"$f":"((Monthly!FA272-Monthly!FA271)*100)","v":29.000000000000092},{"$f":"((Monthly!FB272-Monthly!FB271)*100)","v":53.000000000000114},"--",{"$f":"((Monthly!FD272-Monthly!FD271)*100)","v":58.999999999999986},{"$f":"((Monthly!FE272-Monthly!FE271)*100)","v":134.99999999999997},{"$f":"((Monthly!FF272-Monthly!FF271)*100)","v":97.000000000000057},{"$f":"((Monthly!FG272-Monthly!FG271)*100)","v":51.999999999999957},{"$f":"((Monthly!FH272-Monthly!FH271)*100)","v":24.000000000000021},{"$f":"((Monthly!FI272-Monthly!FI271)*100)","v":24.000000000000021},null,null,null,null,null,null,{"$f":"(Monthly!FP272/Monthly!FP271)-1","v":3.7777968575598564E-3},"--","--","--",{"$f":"(Monthly!FT272/Monthly!FT271)-1","v":4.8075449191913311E-3},{"$f":"(Monthly!FU272/Monthly!FU271)-1","v":3.0827920736178349E-3},{"$f":"(Monthly!FV272/Monthly!FV271)-1","v":0.17760781814319104},{"$f":"(Monthly!FW272/Monthly!FW271)-1","v":-3.5315985130111471E-2},{"$f":"(Monthly!FX272/Monthly!FX271)-1","v":0.20761884089429139},null,null,null,null,null,{"$f":"(Monthly!GD272/Monthly!GD271)-1","v":0},"--","--","--",{"$f":"(Monthly!GH272/Monthly!GH271)-1","v":{"$error":"#DIV/0!"}},"--","--","--","--"]
["1981-02-01",null,null,null,{"$f":"(Monthly!E276/Monthly!E275)-1","v":{"$error":"#DIV/0!"}},{"$f":"(Monthly!F276/Monthly!F275)-1","v":{"$error":"#DIV/0!"}},{"$f":"(Monthly!G276/Monthly!G275)-1","v":{"$error":"#DIV/0!"}},{"$f":"(Monthly!H276/Monthly!H275)-1","v":{"$error":"#DIV/0!"}},null,null,null,null,null,null,null,null,null,null,null,null,null,null,null,{"$f":"(Monthly!X276-Monthly!X275)","v":-0.60000000000000853},{"$f":"(Monthly!Y276/Monthly!Y275)-1","v":2.127685450766581E-3},null,null,null,null,null,null,null,null,null,null,null,null,null,{"$f":"(Monthly!AM276/Monthly!AM275)-1","v":-4.7162026032072646E-3},{"$f":"(Monthly!AN276/Monthly!AN275)-1","v":-5.5804209122940485E-3},"--","--",{"$f":"Monthly!AQ276-Monthly!AQ275","v":-0.40000000000000568},"--","--",{"$f":"Monthly!AT276-Monthly!AT275","v":-2.4000000000000057},"--","--",{"$f":"Monthly!AW276-Monthly!AW275","v":-2.5},{"$f":"Monthly!AX276-Monthly!AX275","v":2.3999999999999986},{"$f":"Monthly!AY276-Monthly!AY275","v":-5.3999999999999915},{"$f":"Monthly!AZ276-Monthly!AZ275","v":-0.89999999999999858},{"$f":"Monthly!BA276-Monthly!BA275","v":-1.2000000000000028},"--","--",null,null,null,null,null,null,null,null,null,"--","--",null,null,null,null,null,{"$f":"(Monthly!BT276/Monthly!BT275)-1","v":1.7206496976420738E-3},null,null,null,{"$f":"(Monthly!BX276/Monthly!BX275)-1","v":-0.19457013574660631},{"$f":"(Monthly!BY276/Monthly!BY275)-1","v":-1.8018018018018056E-2},"--",{"$f":"(Monthly!CA276/Monthly!CA275)-1","v":9.786154403769487E-2},{"$f":"Monthly!CB276-Monthly!CB275","v":-0.50246673158066102},{"$f":"Monthly!CC276-Monthly!CC275","v":-0.5724667315806613},"--","--",null,"--","--",null,{"$f":"(Monthly!CJ276/Monthly!CJ275)-1","v":-1.9569471624266699E-3},{"$f":"(Monthly!CK276/Monthly!CK275)-1","v":6.7616517749335969E-3},{"$f":"(Monthly!CL276/Monthly!CL275)-1","v":-7.4988972209968363E-3},{"$f":"(Monthly!CM276/Monthly!CM275)-1","v":-0.14708994708994705},{"$f":"(Monthly!CN276/Monthly!CN275)-1","v":-3.8164665523156005E-3},{"$f":"(Monthly!CO276/Monthly!CO275)-1","v":-1.9094951608684352E-2},{"$f":"(Monthly!CP276/Monthly!CP275)-1","v":4.8599365548411821E-3},{"$f":"(Monthly!CQ276/Monthly!CQ275)-1","v":5.8531386363935844E-4},{"$f":"(Monthly!CR276/Monthly!CR275)-1","v":5.7702842973299528E-3},"--","--",null,null,null,null,null,{"$f":"(Monthly!CZ276/Monthly!CZ275)-1","v":9.1743119266054496E-3},{"$f":"(Monthly!DA276/Monthly!DA275)-1","v":5.8548009367680454E-3},null,null,null,null,null,"--",{"$f":"((Monthly!DH276-Monthly!DH275)*60)","v":-11.999999999999744},{"$f":"((Monthly!DI276-Monthly!DI275)*100)","v":0},"--",{"$f":"((Monthly!DK276-Monthly!DK275)*100)","v":-9.9999999999999645},{"$f":"Monthly!DL276-Monthly!DL275","v":-26},null,null,null,{"$f":"Monthly!DP276-Monthly!DP275","v":68},null,null,null,{"$f":"(Monthly!DT276/Monthly!DT275)-1","v":3.2806804374240661E-2},{"$f":"Monthly!DU276-Monthly!DU275","v":-0.30000000000000071},"--","--","--","--","--","--","--","--",null,null,null,null,null,null,null,null,null,null,null,null,null,{"$f":"(Monthly!EQ276/Monthly!EQ275)-1","v":9.4537815126050084E-3},{"$f":"(Monthly!ER276/Monthly!ER275)-1","v":6.5645514223193757E-3},{"$f":"(Monthly!ES276/Monthly!ES275)-1","v":9.9118942731277748E-3},null,null,null,null,null,{"$f":"((Monthly!EY276-Monthly!EY275)*100)","v":-73.000000000000043},{"$f":"((Monthly!EZ276-Monthly!EZ275)*100)","v":-314.99999999999989},{"$f":"((Monthly!FA276-Monthly!FA275)*100)","v":53.999999999999915},{"$f":"((Monthly!FB276-Monthly!FB275)*100)","v":33.999999999999986},"--",{"$f":"((Monthly!FD276-Monthly!FD275)*100)","v":23.000000000000043},{"$f":"((Monthly!FE276-Monthly!FE275)*100)","v":-23.000000000000043},{"$f":"((Monthly!FF276-Monthly!FF275)*100)","v":49.000000000000021},{"$f":"((Monthly!FG276-Monthly!FG275)*100)","v":66.000000000000014},{"$f":"((Monthly!FH276-Monthly!FH275)*100)","v":64.000000000000057},{"$f":"((Monthly!FI276-Monthly!FI275)*100)","v":61.999999999999922},null,null,null,null,null,null,{"$f":"(Monthly!FP276/Monthly!FP275)-1","v":6.2977579981524645E-3},{"$f":"(Monthly!FQ276/Monthly!FQ275)-1","v":3.9502513210465162E-2},"--","--",{"$f":"(Monthly!FT276/Monthly!FT275)-1","v":2.6610942782290925E-2},{"$f":"(Monthly!FU276/Monthly!FU275)-1","v":3.2206801678290153E-2},{"$f":"(Monthly!FV276/Monthly!FV275)-1","v":1.650395815267558E-2},{"$f":"(Monthly!FW276/Monthly!FW275)-1","v":-2.6823134953897765E-2},{"$f":"(Monthly!FX276/Monthly!FX275)-1","v":0.27050157079406345},null,null,null,null,null,{"$f":"(Monthly!GD276/Monthly!GD275)-1","v":0},"--","--","--",{"$f":"(Monthly!GH276/Monthly!GH275)-1","v":{"$error":"#DIV/0!"}},"--","--","--","--"]
["1981-07-01",null,null,null,{"$f":"(Monthly!E281/Monthly!E280)-1","v":{"$error":"#DIV/0!"}},{"$f":"(Monthly!F281/Monthly!F280)-1","v":{"$error":"#DIV/0!"}},{"$f":"(Monthly!G281/Monthly!G280)-1","v":{"$error":"#DIV/0!"}},{"$f":"(Monthly!H281/Monthly!H280)-1","v":{"$error":"#DIV/0!"}},null,null,null,null,null,null,null,null,null,null,null,null,null,null,null,{"$f":"(Monthly!X281-Monthly!X280)","v":0.29999999999999716},{"$f":"(Monthly!Y281/Monthly!Y280)-1","v":1.122732367053203E-2},null,null,null,null,null,null,null,null,null,null,null,null,null,{"$f":"(Monthly!AM281/Monthly!AM280)-1","v":6.3030079197436972E-3},{"$f":"(Monthly!AN281/Monthly!AN280)-1","v":2.0819564478360419E-3},"--","--",{"$f":"Monthly!AQ281-Monthly!AQ280","v":-4},"--","--",{"$f":"Monthly!AT281-Monthly!AT280","v":-2.1999999999999957},"--","--",{"$f":"Monthly!AW281-Monthly!AW280","v":-5},{"$f":"Monthly!AX281-Monthly!AX280","v":-3.3999999999999986},{"$f":"Monthly!AY281-Monthly!AY280","v":-3.8999999999999915},{"$f":"Monthly!AZ281-Monthly!AZ280","v":-6.2999999999999972},{"$f":"Monthly!BA281-Monthly!BA280","v":-3},"--","--",null,null,null,null,null,null,null,null,null,"--","--",null,null,null,null,null,{"$f":"(Monthly!BT281/Monthly!BT280)-1","v":3.3263582952036685E-4},null,null,null,{"$f":"(Monthly!BX281/Monthly!BX280)-1","v":-3.827751196172291E-3},{"$f":"(Monthly!BY281/Monthly!BY280)-1","v":-4.2008196721311508E-2},"--",{"$f":"(Monthly!CA281/Monthly!CA280)-1","v":9.7991180793677302E-5},{"$f":"Monthly!CB281-Monthly!CB280","v":0.77784870496736502},{"$f":"Monthly!CC281-Monthly!CC280","v":0.56784870496736417},"--","--",null,"--","--",null,{"$f":"(Monthly!CJ281/Monthly!CJ280)-1","v":3.8554216867469959E-2},{"$f":"(Monthly!CK281/Monthly!CK280)-1","v":2.0715118538670918E-2},{"$f":"(Monthly!CL281/Monthly!CL280)-1","v":0.1711276875822727},{"$f":"(Monthly!CM281/Monthly!CM280)-1","v":2.8735632183907178E-3},{"$f":"(Monthly!CN281/Monthly!CN280)-1","v":1.5281552982471025E-2},{"$f":"(Monthly!CO281/Monthly!CO280)-1","v":-2.4937655860348684E-3},{"$f":"(Monthly!CP281/Monthly!CP280)-1","v":5.3321424091679059E-3},{"$f":"(Monthly!CQ281/Monthly!CQ280)-1","v":8.9223149272510405E-4},{"$f":"(Monthly!CR281/Monthly!CR280)-1","v":5.1530421163732409E-3},"--","--",null,null,null,null,null,{"$f":"(Monthly!CZ281/Monthly!CZ280)-1","v":1.1049723756906049E-2},{"$f":"(Monthly!DA281/Monthly!DA280)-1","v":1.3544018058690765E-2},null,null,null,null,null,"--",{"$f":"((Monthly!DH281-Monthly!DH280)*60)","v":0},{"$f":"((Monthly!DI281-Monthly!DI280)*100)","v":9.9999999999994316},"--",{"$f":"((Monthly!DK281-Monthly!DK280)*100)","v":-29.999999999999982},{"$f":"Monthly!DL281-Monthly!DL280","v":-4},null,null,null,{"$f":"Monthly!DP281-Monthly!DP280","v":112},null,null,null,{"$f":"(Monthly!DT281/Monthly!DT280)-1","v":1.5704387990762125E-2},{"$f":"Monthly!DU281-Monthly!DU280","v":0.5},"--","--","--","--","--","--","--","--",null,null,null,null,null,null,null,null,null,null,null,null,null,{"$f":"(Monthly!EQ281/Monthly!EQ280)-1","v":5.0761421319795996E-3},{"$f":"(Monthly!ER281/Monthly!ER280)-1","v":2.1141649048626032E-3},{"$f":"(Monthly!ES281/Monthly!ES280)-1","v":6.3559322033897026E-3},null,null,null,null,null,{"$f":"((Monthly!EY281-Monthly!EY280)*100)","v":35.999999999999943},{"$f":"((Monthly!EZ281-Monthly!EZ280)*100)","v":-6.0000000000002274},{"$f":"((Monthly!FA281-Monthly!FA280)*100)","v":63.000000000000078},{"$f":"((Monthly!FB281-Monthly!FB280)*100)","v":37.000000000000099},"--",{"$f":"((Monthly!FD281-Monthly!FD280)*100)","v":12.999999999999901},{"$f":"((Monthly!FE281-Monthly!FE280)*100)","v":21.999999999999886},{"$f":"((Monthly!FF281-Monthly!FF280)*100)","v":86.000000000000114},{"$f":"((Monthly!FG281-Monthly!FG280)*100)","v":83.999999999999986},{"$f":"((Monthly!FH281-Monthly!FH280)*100)","v":83.999999999999986},{"$f":"((Monthly!FI281-Monthly!FI280)*100)","v":80.999999999999872},null,null,null,null,null,null,{"$f":"(Monthly!FP281/Monthly!FP280)-1","v":5.4812723195749591E-3},{"$f":"(Monthly!FQ281/Monthly!FQ280)-1","v":2.3856858846917905E-3},"--","--",{"$f":"(Monthly!FT281/Monthly!FT280)-1","v":2.1684498965718557E-2},{"$f":"(Monthly!FU281/Monthly!FU280)-1","v":2.435187174768072E-2},{"$f":"(Monthly!FV281/Monthly!FV280)-1","v":-9.3593481348583363E-2},{"$f":"(Monthly!FW281/Monthly!FW280)-1","v":5.9850374064837952E-2},{"$f":"(Monthly!FX281/Monthly!FX280)-1","v":-0.18256130790190728},null,null,null,null,null,{"$f":"(Monthly!GD281/Monthly!GD280)-1","v":0},"--","--","--",{"$f":"(Monthly!GH281/Monthly!GH280)-1","v":{"$error":"#DIV/0!"}},"--","--","--","--"]
["1981-09-01",null,null,null,{"$f":"(Monthly!E283/Monthly!E282)-1","v":{"$error":"#DIV/0!"}},{"$f":"(Monthly!F283/Monthly!F282)-1","v":{"$error":"#DIV/0!"}},{"$f":"(Monthly!G283/Monthly!G282)-1","v":{"$error":"#DIV/0!"}},{"$f":"(Monthly!H283/Monthly!H282)-1","v":{"$error":"#DIV/0!"}},null,null,null,null,null,null,null,null,null,null,null,null,null,null,null,{"$f":"(Monthly!X283-Monthly!X282)","v":-0.70000000000000284},{"$f":"(Monthly!Y283/Monthly!Y282)-1","v":4.7322174115884685E-3},null,null,null,null,null,null,null,null,null,null,null,null,null,{"$f":"(Monthly!AM283/Monthly!AM282)-1","v":-5.989223891722073E-3},{"$f":"(Monthly!AN283/Monthly!AN282)-1","v":-4.9807823935134055E-3},"--","--",{"$f":"Monthly!AQ283-Monthly!AQ282","v":-5.7999999999999972},"--","--",{"$f":"Monthly!AT283-Monthly!AT282","v":-8.5999999999999943},"--","--",{"$f":"Monthly!AW283-Monthly!AW282","v":-5.3999999999999986},{"$f":"Monthly!AX283-Monthly!AX282","v":-5},{"$f":"Monthly!AY283-Monthly!AY282","v":0.20000000000000284},{"$f":"Monthly!AZ283-Monthly!AZ282","v":-5.7000000000000028},{"$f":"Monthly!BA283-Monthly!BA282","v":-3.7000000000000028},"--","--",null,null,null,null,null,null,null,null,null,"--","--",null,null,null,null,null,{"$f":"(Monthly!BT283/Monthly!BT282)-1","v":2.4092500232506531E-3},null,null,null,{"$f":"(Monthly!BX283/Monthly!BX282)-1","v":-3.0851063829787195E-2},{"$f":"(Monthly!BY283/Monthly!BY282)-1","v":-4.7244094488189003E-2},"--",{"$f":"(Monthly!CA283/Monthly!CA282)-1","v":-0.12796018302962198},{"$f":"Monthly!CB283-Monthly!CB282","v":0.34812734940863521},{"$f":"Monthly!CC283-Monthly!CC282","v":0.48812734940863578},"--","--",null,"--","--",null,{"$f":"(Monthly!CJ283/Monthly!CJ282)-1","v":-0.10582010582010581},{"$f":"(Monthly!CK283/Monthly!CK282)-1","v":5.2044048876151994E-3},{"$f":"(Monthly!CL283/Monthly!CL282)-1","v":4.5889101338432159E-2},{"$f":"(Monthly!CM283/Monthly!CM282)-1","v":3.9279869067103013E-2},{"$f":"(Monthly!CN283/Monthly!CN282)-1","v":-1.0724875402183809E-3},{"$f":"(Monthly!CO283/Monthly!CO282)-1","v":-1.6666666666666607E-2},{"$f":"(Monthly!CP283/Monthly!CP282)-1","v":1.2162522986845392E-2},{"$f":"(Monthly!CQ283/Monthly!CQ282)-1","v":9.7746614708915658E-4},{"$f":"(Monthly!CR283/Monthly!CR282)-1","v":1.5103070530462448E-2},"--","--",null,null,null,null,null,{"$f":"(Monthly!CZ283/Monthly!CZ282)-1","v":9.761388286333883E-3},{"$f":"(Monthly!DA283/Monthly!DA282)-1","v":1.2127894156560126E-2},null,null,null,null,null,"--",{"$f":"((Monthly!DH283-Monthly!DH282)*60)","v":-12.000000000000171},{"$f":"((Monthly!DI283-Monthly!DI282)*100)","v":-29.999999999999716},"--",{"$f":"((Monthly!DK283-Monthly!DK282)*100)","v":19.999999999999929},{"$f":"Monthly!DL283-Monthly!DL282","v":-36},null,null,null,{"$f":"Monthly!DP283-Monthly!DP282","v":-87},null,null,null,{"$f":"(Monthly!DT283/Monthly!DT282)-1","v":6.6478873239436576E-2},{"$f":"Monthly!DU283-Monthly!DU282","v":-0.40000000000000036},"--","--","--","--","--","--","--","--",null,null,null,null,null,null,null,null,null,null,null,null,null,{"$f":"(Monthly!EQ283/Monthly!EQ282)-1","v":-2.0202020202020332E-3},{"$f":"(Monthly!ER283/Monthly!ER282)-1","v":6.2959076600210828E-3},{"$f":"(Monthly!ES283/Monthly!ES282)-1","v":7.3375262054506951E-3},null,null,null,null,null,{"$f":"((Monthly!EY283-Monthly!EY282)*100)","v":-42.000000000000171},{"$f":"((Monthly!EZ283-Monthly!EZ282)*100)","v":-195.00000000000011},{"$f":"((Monthly!FA283-Monthly!FA282)*100)","v":59.999999999999964},{"$f":"((Monthly!FB283-Monthly!FB282)*100)","v":58.000000000000185},"--",{"$f":"((Monthly!FD283-Monthly!FD282)*100)","v":87.000000000000099},{"$f":"((Monthly!FE283-Monthly!FE282)*100)","v":-81.000000000000057},{"$f":"((Monthly!FF283-Monthly!FF282)*100)","v":-19.999999999999929},{"$f":"((Monthly!FG283-Monthly!FG282)*100)","v":17.999999999999972},{"$f":"((Monthly!FH283-Monthly!FH282)*100)","v":36.999999999999922},{"$f":"((Monthly!FI283-Monthly!FI282)*100)","v":38.000000000000078},null,null,null,null,null,null,{"$f":"(Monthly!FP283/Monthly!FP282)-1","v":-1.8312622629169328E-2},{"$f":"(Monthly!FQ283/Monthly!FQ282)-1","v":-2.5606843303893845E-2},"--","--",{"$f":"(Monthly!FT283/Monthly!FT282)-1","v":-1.58567365843445E-2},{"$f":"(Monthly!FU283/Monthly!FU282)-1","v":-2.6758396741253465E-2},{"$f":"(Monthly!FV283/Monthly!FV282)-1","v":1.7815517815517934E-2},{"$f":"(Monthly!FW283/Monthly!FW282)-1","v":-1.7780172413793038E-2},{"$f":"(Monthly!FX283/Monthly!FX282)-1","v":-2.3987206823026241E-3},null,null,null,null,null,{"$f":"(Monthly!GD283/Monthly!GD282)-1","v":0},"--","--","--",{"$f":"(Monthly!GH283/Monthly!GH282)-1","v":{"$error":"#DIV/0!"}},"--","--","--","--"]
["1982-05-01",null,null,null,{"$f":"(Monthly!E291/Monthly!E290)-1","v":{"$error":"#DIV/0!"}},{"$f":"(Monthly!F291/Monthly!F290)-1","v":{"$error":"#DIV/0!"}},{"$f":"(Monthly!G291/Monthly!G290)-1","v":{"$error":"#DIV/0!"}},{"$f":"(Monthly!H291/Monthly!H290)-1","v":{"$error":"#DIV/0!"}},null,null,null,null,null,null,null,null,null,null,null,null,null,null,null,{"$f":"(Monthly!X291-Monthly!X290)","v":-0.59999999999999432},{"$f":"(Monthly!Y291/Monthly!Y290)-1","v":1.327506727412131E-2},null,null,null,null,null,null,null,null,null,null,null,null,null,{"$f":"(Monthly!AM291/Monthly!AM290)-1","v":-6.154477787230439E-3},{"$f":"(Monthly!AN291/Monthly!AN290)-1","v":-1.5308946137504442E-3},"--","--",{"$f":"Monthly!AQ291-Monthly!AQ290","v":-2.2999999999999972},"--","--",{"$f":"Monthly!AT291-Monthly!AT290","v":-3.8999999999999986},"--","--",{"$f":"Monthly!AW291-Monthly!AW290","v":-2.6999999999999993},{"$f":"Monthly!AX291-Monthly!AX290","v":-2.7999999999999972},{"$f":"Monthly!AY291-Monthly!AY290","v":5.6999999999999957},{"$f":"Monthly!AZ291-Monthly!AZ290","v":-4.0999999999999943},{"$f":"Monthly!BA291-Monthly!BA290","v":3.8999999999999986},"--","--",null,null,null,null,null,null,null,null,null,"--","--",null,null,null,null,null,{"$f":"(Monthly!BT291/Monthly!BT290)-1","v":3.2030533637494862E-3},null,null,null,{"$f":"(Monthly!BX291/Monthly!BX290)-1","v":0.11777535441657583},{"$f":"(Monthly!BY291/Monthly!BY290)-1","v":7.3198198198198172E-2},"--",{"$f":"(Monthly!CA291/Monthly!CA290)-1","v":0.14243789959123787},{"$f":"Monthly!CB291-Monthly!CB290","v":0.39015536261914008},{"$f":"Monthly!CC291-Monthly!CC290","v":0.46015536261913681},"--","--",null,"--","--",null,{"$f":"(Monthly!CJ291/Monthly!CJ290)-1","v":0.13274336283185839},{"$f":"(Monthly!CK291/Monthly!CK290)-1","v":5.7931939080375638E-3},{"$f":"(Monthly!CL291/Monthly!CL290)-1","v":-5.2915402763734409E-2},{"$f":"(Monthly!CM291/Monthly!CM290)-1","v":3.0716723549488067E-2},{"$f":"(Monthly!CN291/Monthly!CN290)-1","v":-4.2160792539822634E-3},{"$f":"(Monthly!CO291/Monthly!CO290)-1","v":-8.7133313970377824E-4},{"$f":"(Monthly!CP291/Monthly!CP290)-1","v":4.7658122890610333E-3},{"$f":"(Monthly!CQ291/Monthly!CQ290)-1","v":7.0797988301074533E-4},{"$f":"(Monthly!CR291/Monthly!CR290)-1","v":9.5478581571220023E-3},"--","--",null,null,null,null,null,{"$f":"(Monthly!CZ291/Monthly!CZ290)-1","v":9.4736842105263008E-3},{"$f":"(Monthly!DA291/Monthly!DA290)-1","v":7.3917634635691787E-3},null,null,null,null,null,"--",{"$f":"((Monthly!DH291-Monthly!DH290)*60)","v":0},{"$f":"((Monthly!DI291-Monthly!DI290)*100)","v":30.000000000000426},"--",{"$f":"((Monthly!DK291-Monthly!DK290)*100)","v":9.9999999999999645},{"$f":"Monthly!DL291-Monthly!DL290","v":-95},null,null,null,{"$f":"Monthly!DP291-Monthly!DP290","v":-45},null,null,null,{"$f":"(Monthly!DT291/Monthly!DT290)-1","v":-5.4514480408858201E-3},{"$f":"Monthly!DU291-Monthly!DU290","v":0.40000000000000036},"--","--","--","--","--","--","--","--",null,null,null,null,null,null,null,null,null,null,null,null,null,{"$f":"(Monthly!EQ291/Monthly!EQ290)-1","v":2.0080321285140812E-3},{"$f":"(Monthly!ER291/Monthly!ER290)-1","v":4.0404040404040664E-3},{"$f":"(Monthly!ES291/Monthly!ES290)-1","v":5.050505050504972E-3},null,null,null,null,null,{"$f":"((Monthly!EY291-Monthly!EY290)*100)","v":0},{"$f":"((Monthly!EZ291-Monthly!EZ290)*100)","v":-49.000000000000021},{"$f":"((Monthly!FA291-Monthly!FA290)*100)","v":-20.000000000000107},{"$f":"((Monthly!FB291-Monthly!FB290)*100)","v":-14.000000000000057},"--",{"$f":"((Monthly!FD291-Monthly!FD290)*100)","v":-21.000000000000085},{"$f":"((Monthly!FE291-Monthly!FE290)*100)","v":-60.999999999999943},{"$f":"((Monthly!FF291-Monthly!FF290)*100)","v":-64.000000000000057},{"$f":"((Monthly!FG291-Monthly!FG290)*100)","v":-41.999999999999993},{"$f":"((Monthly!FH291-Monthly!FH290)*100)","v":-25},{"$f":"((Monthly!FI291-Monthly!FI290)*100)","v":-25},null,null,null,null,null,null,{"$f":"(Monthly!FP291/Monthly!FP290)-1","v":6.8560235063663821E-3},{"$f":"(Monthly!FQ291/Monthly!FQ290)-1","v":-2.3808241314301148E-2},"--","--",{"$f":"(Monthly!FT291/Monthly!FT290)-1","v":-9.3226607783605253E-3},{"$f":"(Monthly!FU291/Monthly!FU290)-1","v":-1.8601982686253016E-2},{"$f":"(Monthly!FV291/Monthly!FV290)-1","v":8.9113151484326858E-2},{"$f":"(Monthly!FW291/Monthly!FW290)-1","v":0.2201492537313432},{"$f":"(Monthly!FX291/Monthly!FX290)-1","v":0.22096233484519812},null,null,null,null,null,{"$f":"(Monthly!GD291/Monthly!GD290)-1","v":7.4140508221225643E-2},"--","--","--",{"$f":"(Monthly!GH291/Monthly!GH290)-1","v":{"$error":"#DIV/0!"}},"--","--","--","--"]
["1982-08-01",null,null,null,{"$f":"(Monthly!E294/Monthly!E293)-1","v":{"$error":"#DIV/0!"}},{"$f":"(Monthly!F294/Monthly!F293)-1","v":{"$error":"#DIV/0!"}},{"$f":"(Monthly!G294/Monthly!G293)-1","v":{"$error":"#DIV/0!"}},{"$f":"(Monthly!H294/Monthly!H293)-1","v":{"$error":"#DIV/0!"}},null,null,null,null,null,null,null,null,null,null,null,null,null,null,null,{"$f":"(Monthly!X294-Monthly!X293)","v":-0.79999999999999716},{"$f":"(Monthly!Y294/Monthly!Y293)-1","v":4.7275869907512647E-3},null,null,null,null,null,null,null,null,null,null,null,null,null,{"$f":"(Monthly!AM294/Monthly!AM293)-1","v":-8.6331797879674044E-3},{"$f":"(Monthly!AN294/Monthly!AN293)-1","v":-9.1219659718410062E-3},"--","--",{"$f":"Monthly!AQ294-Monthly!AQ293","v":-0.10000000000000142},"--","--",{"$f":"Monthly!AT294-Monthly!AT293","v":1.3000000000000007},"--","--",{"$f":"Monthly!AW294-Monthly!AW293","v":2.1000000000000014},{"$f":"Monthly!AX294-Monthly!AX293","v":-0.60000000000000142},{"$f":"Monthly!AY294-Monthly!AY293","v":-1.5999999999999943},{"$f":"Monthly!AZ294-Monthly!AZ293","v":-1.2000000000000028},{"$f":"Monthly!BA294-Monthly!BA293","v":-0.5},"--","--",null,null,null,null,null,null,null,null,null,"--","--",null,null,null,null,null,{"$f":"(Monthly!BT294/Monthly!BT293)-1","v":1.3947001394698511E-3},null,null,null,{"$f":"(Monthly!BX294/Monthly!BX293)-1","v":-0.10291595197255576},{"$f":"(Monthly!BY294/Monthly!BY293)-1","v":-0.1130268199233716},"--",{"$f":"(Monthly!CA294/Monthly!CA293)-1","v":2.0239958268127189E-2},{"$f":"Monthly!CB294-Monthly!CB293","v":-0.59208420753174096},{"$f":"Monthly!CC294-Monthly!CC293","v":-0.59208420753174096},"--","--",null,"--","--",null,{"$f":"(Monthly!CJ294/Monthly!CJ293)-1","v":8.5333333333333261E-2},{"$f":"(Monthly!CK294/Monthly!CK293)-1","v":4.2661504266150452E-3},{"$f":"(Monthly!CL294/Monthly!CL293)-1","v":-6.8399452804368543E-4},{"$f":"(Monthly!CM294/Monthly!CM293)-1","v":2.3474178403755763E-2},{"$f":"(Monthly!CN294/Monthly!CN293)-1","v":7.2677436770640647E-4},{"$f":"(Monthly!CO294/Monthly!CO293)-1","v":6.4327485380115679E-3},{"$f":"(Monthly!CP294/Monthly!CP293)-1","v":1.0864247630586465E-3},{"$f":"(Monthly!CQ294/Monthly!CQ293)-1","v":8.7859837717707556E-4},{"$f":"(Monthly!CR294/Monthly!CR293)-1","v":7.206946769307887E-3},"--","--",null,null,null,null,null,{"$f":"(Monthly!CZ294/Monthly!CZ293)-1","v":2.0512820512821328E-3},{"$f":"(Monthly!DA294/Monthly!DA293)-1","v":4.1365046535677408E-3},null,null,null,null,null,"--",{"$f":"((Monthly!DH294-Monthly!DH293)*60)","v":-5.9999999999996589},{"$f":"((Monthly!DI294-Monthly!DI293)*100)","v":9.9999999999994316},"--",{"$f":"((Monthly!DK294-Monthly!DK293)*100)","v":0},{"$f":"Monthly!DL294-Monthly!DL293","v":-118},null,null,null,{"$f":"Monthly!DP294-Monthly!DP293","v":-158},null,null,null,{"$f":"(Monthly!DT294/Monthly!DT293)-1","v":9.288194444444442E-2},{"$f":"Monthly!DU294-Monthly!DU293","v":0.19999999999999929},"--","--","--","--","--","--","--","--",null,null,null,null,null,null,null,null,null,null,null,null,null,{"$f":"(Monthly!EQ294/Monthly!EQ293)-1","v":-9.9601593625509022E-4},{"$f":"(Monthly!ER294/Monthly!ER293)-1","v":4.9950049950049369E-3},{"$f":"(Monthly!ES294/Monthly!ES293)-1","v":3.9880358923229942E-3},null,null,null,null,null,{"$f":"((Monthly!EY294-Monthly!EY293)*100)","v":-187.00000000000011},{"$f":"((Monthly!EZ294-Monthly!EZ293)*100)","v":-247.00000000000006},{"$f":"((Monthly!FA294-Monthly!FA293)*100)","v":-89.999999999999858},{"$f":"((Monthly!FB294-Monthly!FB293)*100)","v":-48.000000000000043},"--",{"$f":"((Monthly!FD294-Monthly!FD293)*100)","v":-55.000000000000071},{"$f":"((Monthly!FE294-Monthly!FE293)*100)","v":-267},{"$f":"((Monthly!FF294-Monthly!FF293)*100)","v":-181.00000000000006},{"$f":"((Monthly!FG294-Monthly!FG293)*100)","v":-148.00000000000006},{"$f":"((Monthly!FH294-Monthly!FH293)*100)","v":-107.00000000000003},{"$f":"((Monthly!FI294-Monthly!FI293)*100)","v":-88.999999999999886},null,null,null,null,null,null,{"$f":"(Monthly!FP294/Monthly!FP293)-1","v":-1.9527559055118049E-2},{"$f":"(Monthly!FQ294/Monthly!FQ293)-1","v":6.8393782383420199E-3},"--","--",{"$f":"(Monthly!FT294/Monthly!FT293)-1","v":2.4056277211138344E-2},{"$f":"(Monthly!FU294/Monthly!FU293)-1","v":2.6402060104406821E-3},{"$f":"(Monthly!FV294/Monthly!FV293)-1","v":0.10672987974098058},{"$f":"(Monthly!FW294/Monthly!FW293)-1","v":0.60031595576619257},{"$f":"(Monthly!FX294/Monthly!FX293)-1","v":0.16615209619759508},null,null,null,null,null,{"$f":"(Monthly!GD294/Monthly!GD293)-1","v":-6.1475409836063699E-3},"--","--","--",{"$f":"(Monthly!GH294/Monthly!GH293)-1","v":{"$error":"#DIV/0!"}},"--","--","--","--"]
["1982-10-01",null,null,null,{"$f":"(Monthly!E296/Monthly!E295)-1","v":{"$error":"#DIV/0!"}},{"$f":"(Monthly!F296/Monthly!F295)-1","v":{"$error":"#DIV/0!"}},{"$f":"(Monthly!G296/Monthly!G295)-1","v":{"$error":"#DIV/0!"}},{"$f":"(Monthly!H296/Monthly!H295)-1","v":{"$error":"#DIV/0!"}},null,null,null,null,null,null,null,null,null,null,null,null,null,null,null,{"$f":"(Monthly!X296-Monthly!X295)","v":-0.70000000000000284},{"$f":"(Monthly!Y296/Monthly!Y295)-1","v":3.4605288226094988E-3},null,null,null,null,null,null,null,null,null,null,null,null,null,{"$f":"(Monthly!AM296/Monthly!AM295)-1","v":-9.0459861216698467E-3},{"$f":"(Monthly!AN296/Monthly!AN295)-1","v":-1.2113479163456065E-2},"--","--",{"$f":"Monthly!AQ296-Monthly!AQ295","v":0.60000000000000142},"--","--",{"$f":"Monthly!AT296-Monthly!AT295","v":0},"--","--",{"$f":"Monthly!AW296-Monthly!AW295","v":-1.1000000000000014},{"$f":"Monthly!AX296-Monthly!AX295","v":1.5},{"$f":"Monthly!AY296-Monthly!AY295","v":-0.20000000000000284},{"$f":"Monthly!AZ296-Monthly!AZ295","v":0.70000000000000284},{"$f":"Monthly!BA296-Monthly!BA295","v":0.60000000000000142},"--","--",null,null,null,null,null,null,null,null,null,"--","--",null,null,null,null,null,{"$f":"(Monthly!BT296/Monthly!BT295)-1","v":1.9776961022726081E-3},null,null,null,{"$f":"(Monthly!BX296/Monthly!BX295)-1","v":2.5349650349650421E-2},{"$f":"(Monthly!BY296/Monthly!BY295)-1","v":0.10268714011516322},"--",{"$f":"(Monthly!CA296/Monthly!CA295)-1","v":-8.9158605584960804E-2},{"$f":"Monthly!CB296-Monthly!CB295","v":0.39119617643065219},{"$f":"Monthly!CC296-Monthly!CC295","v":0.60119617643065482},"--","--",null,"--","--",null,{"$f":"(Monthly!CJ296/Monthly!CJ295)-1","v":-2.0790020790020236E-3},{"$f":"(Monthly!CK296/Monthly!CK295)-1","v":5.839416058394109E-3},{"$f":"(Monthly!CL296/Monthly!CL295)-1","v":-3.3357771260997149E-2},{"$f":"(Monthly!CM296/Monthly!CM295)-1","v":6.9666182873729943E-2},{"$f":"(Monthly!CN296/Monthly!CN295)-1","v":-6.2254871443512272E-5},{"$f":"(Monthly!CO296/Monthly!CO295)-1","v":2.5100980957876384E-2},{"$f":"(Monthly!CP296/Monthly!CP295)-1","v":1.5920165534337727E-3},{"$f":"(Monthly!CQ296/Monthly!CQ295)-1","v":9.3293608313027576E-4},{"$f":"(Monthly!CR296/Monthly!CR295)-1","v":4.6806015240739018E-3},"--","--",null,null,null,null,null,{"$f":"(Monthly!CZ296/Monthly!CZ295)-1","v":4.0941658137154668E-3},{"$f":"(Monthly!DA296/Monthly!DA295)-1","v":3.0864197530864335E-3},null,null,null,null,null,"--",{"$f":"((Monthly!DH296-Monthly!DH295)*60)","v":-11.999999999999744},{"$f":"((Monthly!DI296-Monthly!DI295)*100)","v":0},"--",{"$f":"((Monthly!DK296-Monthly!DK295)*100)","v":30.000000000000071},{"$f":"Monthly!DL296-Monthly!DL295","v":-221},null,null,null,{"$f":"Monthly!DP296-Monthly!DP295","v":-277},null,null,null,{"$f":"(Monthly!DT296/Monthly!DT295)-1","v":-1.2637154748391999E-2},{"$f":"Monthly!DU296-Monthly!DU295","v":0.19999999999999929},"--","--","--","--","--","--","--","--",null,null,null,null,null,null,null,null,null,null,null,null,null,{"$f":"(Monthly!EQ296/Monthly!EQ295)-1","v":2.0000000000000018E-3},{"$f":"(Monthly!ER296/Monthly!ER295)-1","v":4.9603174603174427E-3},{"$f":"(Monthly!ES296/Monthly!ES295)-1","v":9.9009900990099098E-4},null,null,null,null,null,{"$f":"((Monthly!EY296-Monthly!EY295)*100)","v":-98.000000000000043},{"$f":"((Monthly!EZ296-Monthly!EZ295)*100)","v":-59.999999999999964},{"$f":"((Monthly!FA296-Monthly!FA295)*100)","v":-82.000000000000028},{"$f":"((Monthly!FB296-Monthly!FB295)*100)","v":-90.000000000000028},"--",{"$f":"((Monthly!FD296-Monthly!FD295)*100)","v":-82.000000000000028},{"$f":"((Monthly!FE296-Monthly!FE295)*100)","v":-20.999999999999996},{"$f":"((Monthly!FF296-Monthly!FF295)*100)","v":-152.99999999999994},{"$f":"((Monthly!FG296-Monthly!FG295)*100)","v":-159},{"$f":"((Monthly!FH296-Monthly!FH295)*100)","v":-144.99999999999994},{"$f":"((Monthly!FI296-Monthly!FI295)*100)","v":-142.99999999999997},null,null,null,null,null,null,{"$f":"(Monthly!FP296/Monthly!FP295)-1","v":-3.8062844185292599E-3},{"$f":"(Monthly!FQ296/Monthly!FQ295)-1","v":1.6354065518474847E-2},"--","--",{"$f":"(Monthly!FT296/Monthly!FT295)-1","v":1.5893543400737675E-2},{"$f":"(Monthly!FU296/Monthly!FU295)-1","v":1.6774717047422172E-2},{"$f":"(Monthly!FV296/Monthly!FV295)-1","v":-7.7685716309043307E-2},{"$f":"(Monthly!FW296/Monthly!FW295)-1","v":-0.13084112149532723},{"$f":"(Monthly!FX296/Monthly!FX295)-1","v":-0.10283663468838433},null,null,null,null,null,{"$f":"(Monthly!GD296/Monthly!GD295)-1","v":1.4033118158853775E-3},"--","--","--",{"$f":"(Monthly!GH296/Monthly!GH295)-1","v":{"$error":"#DIV/0!"}},"--","--","--","--"]
["1983-03-01",null,null,null,{"$f":"(Monthly!E301/Monthly!E300)-1","v":{"$error":"#DIV/0!"}},{"$f":"(Monthly!F301/Monthly!F300)-1","v":{"$error":"#DIV/0!"}},{"$f":"(Monthly!G301/Monthly!G300)-1","v":{"$error":"#DIV/0!"}},{"$f":"(Monthly!H301/Monthly!H300)-1","v":{"$error":"#DIV/0!"}},null,null,null,null,null,null,null,null,null,null,null,null,null,null,null,{"$f":"(Monthly!X301-Monthly!X300)","v":0.59999999999999432},{"$f":"(Monthly!Y301/Monthly!Y300)-1","v":1.1419692512322221E-3},null,null,null,null,null,null,null,null,null,null,null,null,null,{"$f":"(Monthly!AM301/Monthly!AM300)-1","v":8.1810588930311123E-3},{"$f":"(Monthly!AN301/Monthly!AN300)-1","v":9.5089926672735636E-3},"--","--",{"$f":"Monthly!AQ301-Monthly!AQ300","v":-0.5},"--","--",{"$f":"Monthly!AT301-Monthly!AT300","v":-2.2999999999999972},"--","--",{"$f":"Monthly!AW301-Monthly!AW300","v":4.1000000000000014},{"$f":"Monthly!AX301-Monthly!AX300","v":0.19999999999999574},{"$f":"Monthly!AY301-Monthly!AY300","v":-0.80000000000000426},{"$f":"Monthly!AZ301-Monthly!AZ300","v":-2.7000000000000028},{"$f":"Monthly!BA301-Monthly!BA300","v":0.89999999999999858},"--","--",null,null,null,null,null,null,null,null,null,"--","--",null,null,null,null,null,{"$f":"(Monthly!BT301/Monthly!BT300)-1","v":6.5952009275831447E-3},null,null,null,{"$f":"(Monthly!BX301/Monthly!BX300)-1","v":-5.4738081224249613E-2},{"$f":"(Monthly!BY301/Monthly!BY300)-1","v":2.7192386131882351E-3},"--",{"$f":"(Monthly!CA301/Monthly!CA300)-1","v":3.7448520256680329E-2},{"$f":"Monthly!CB301-Monthly!CB300","v":5.5966209081219631E-3},{"$f":"Monthly!CC301-Monthly!CC300","v":-6.4403379091874768E-2},"--","--",null,"--","--",null,{"$f":"(Monthly!CJ301/Monthly!CJ300)-1","v":6.0498220640569311E-2},{"$f":"(Monthly!CK301/Monthly!CK300)-1","v":6.0799777646527442E-3},{"$f":"(Monthly!CL301/Monthly!CL300)-1","v":-4.1178692859841215E-2},{"$f":"(Monthly!CM301/Monthly!CM300)-1","v":-4.2226487523992273E-2},{"$f":"(Monthly!CN301/Monthly!CN300)-1","v":4.7187230725043161E-3},{"$f":"(Monthly!CO301/Monthly!CO300)-1","v":6.1970426981226234E-2},{"$f":"(Monthly!CP301/Monthly!CP300)-1","v":8.2120802016509842E-3},{"$f":"(Monthly!CQ301/Monthly!CQ300)-1","v":5.9964107198684502E-4},{"$f":"(Monthly!CR301/Monthly!CR300)-1","v":1.1763701349088107E-2},"--","--",null,null,null,null,null,{"$f":"(Monthly!CZ301/Monthly!CZ300)-1","v":1.0204081632652073E-3},{"$f":"(Monthly!DA301/Monthly!DA300)-1","v":2.0408163265306367E-3},null,null,null,null,null,"--",{"$f":"((Monthly!DH301-Monthly!DH300)*60)","v":12.000000000000171},{"$f":"((Monthly!DI301-Monthly!DI300)*100)","v":-9.9999999999994316},"--",{"$f":"((Monthly!DK301-Monthly!DK300)*100)","v":-9.9999999999999645},{"$f":"Monthly!DL301-Monthly!DL300","v":5},null,null,null,{"$f":"Monthly!DP301-Monthly!DP300","v":172},null,null,null,{"$f":"(Monthly!DT301/Monthly!DT300)-1","v":-2.8022255943348506E-2},{"$f":"Monthly!DU301-Monthly!DU300","v":0.59999999999999964},"--","--","--","--","--","--","--","--",null,null,null,null,null,null,null,null,null,null,null,null,null,{"$f":"(Monthly!EQ301/Monthly!EQ300)-1","v":-9.9502487562186381E-4},{"$f":"(Monthly!ER301/Monthly!ER300)-1","v":2.9354207436398383E-3},{"$f":"(Monthly!ES301/Monthly!ES300)-1","v":9.7943192948091173E-4},null,null,null,null,null,{"$f":"((Monthly!EY301-Monthly!EY300)*100)","v":-48.000000000000043},{"$f":"((Monthly!EZ301-Monthly!EZ300)*100)","v":25.999999999999979},{"$f":"((Monthly!FA301-Monthly!FA300)*100)","v":-27.999999999999936},{"$f":"((Monthly!FB301-Monthly!FB300)*100)","v":-33.999999999999986},"--",{"$f":"((Monthly!FD301-Monthly!FD300)*100)","v":-23.999999999999844},{"$f":"((Monthly!FE301-Monthly!FE300)*100)","v":24.000000000000021},{"$f":"((Monthly!FF301-Monthly!FF300)*100)","v":11.999999999999922},{"$f":"((Monthly!FG301-Monthly!FG300)*100)","v":1.9999999999999574},{"$f":"((Monthly!FH301-Monthly!FH300)*100)","v":-17.999999999999972},{"$f":"((Monthly!FI301-Monthly!FI300)*100)","v":-21.000000000000085},null,null,null,null,null,null,{"$f":"(Monthly!FP301/Monthly!FP300)-1","v":-1.1403437321821919E-3},{"$f":"(Monthly!FQ301/Monthly!FQ300)-1","v":9.2097898539662548E-3},"--","--",{"$f":"(Monthly!FT301/Monthly!FT300)-1","v":1.3538536441310312E-2},{"$f":"(Monthly!FU301/Monthly!FU300)-1","v":9.9179267871090104E-3},{"$f":"(Monthly!FV301/Monthly!FV300)-1","v":0.20758387294481317},{"$f":"(Monthly!FW301/Monthly!FW300)-1","v":-0.22244589833920481},{"$f":"(Monthly!FX301/Monthly!FX300)-1","v":0.11215266153331105},null,null,null,null,null,{"$f":"(Monthly!GD301/Monthly!GD300)-1","v":-4.4905008635578447E-3},"--","--","--",{"$f":"(Monthly!GH301/Monthly!GH300)-1","v":{"$error":"#DIV/0!"}},"--","--","--","--"]
["1983-08-01",null,null,null,{"$f":"(Monthly!E306/Monthly!E305)-1","v":{"$error":"#DIV/0!"}},{"$f":"(Monthly!F306/Monthly!F305)-1","v":{"$error":"#DIV/0!"}},{"$f":"(Monthly!G306/Monthly!G305)-1","v":{"$error":"#DIV/0!"}},{"$f":"(Monthly!H306/Monthly!H305)-1","v":{"$error":"#DIV/0!"}},null,null,null,null,null,null,null,null,null,null,null,null,null,null,null,{"$f":"(Monthly!X306-Monthly!X305)","v":0.80000000000001137},{"$f":"(Monthly!Y306/Monthly!Y305)-1","v":9.5328115396264845E-3},null,null,null,null,null,null,null,null,null,null,null,null,null,{"$f":"(Monthly!AM306/Monthly!AM305)-1","v":1.0995774888547194E-2},{"$f":"(Monthly!AN306/Monthly!AN305)-1","v":7.5157906440701527E-3},"--","--",{"$f":"Monthly!AQ306-Monthly!AQ305","v":-0.5},"--","--",{"$f":"Monthly!AT306-Monthly!AT305","v":2.2999999999999972},"--","--",{"$f":"Monthly!AW306-Monthly!AW305","v":-1.5},{"$f":"Monthly!AX306-Monthly!AX305","v":-2.2000000000000028},{"$f":"Monthly!AY306-Monthly!AY305","v":6.2000000000000028},{"$f":"Monthly!AZ306-Monthly!AZ305","v":-1.5999999999999943},{"$f":"Monthly!BA306-Monthly!BA305","v":1.3000000000000043},"--","--",null,null,null,null,null,null,null,null,null,"--","--",null,null,null,null,null,{"$f":"(Monthly!BT306/Monthly!BT305)-1","v":1.5546187524934085E-2},null,null,null,{"$f":"(Monthly!BX306/Monthly!BX305)-1","v":7.0028011204481766E-2},{"$f":"(Monthly!BY306/Monthly!BY305)-1","v":-4.5682451253481915E-2},"--",{"$f":"(Monthly!CA306/Monthly!CA305)-1","v":-5.3797219822508513E-2},{"$f":"Monthly!CB306-Monthly!CB305","v":0.1975251292548954},{"$f":"Monthly!CC306-Monthly!CC305","v":0.26752512925489214},"--","--",null,"--","--",null,{"$f":"(Monthly!CJ306/Monthly!CJ305)-1","v":-5.6105610561056118E-2},{"$f":"(Monthly!CK306/Monthly!CK305)-1","v":4.0685944855414213E-3},{"$f":"(Monthly!CL306/Monthly!CL305)-1","v":-2.8655710071639362E-2},{"$f":"(Monthly!CM306/Monthly!CM305)-1","v":8.5526315789473673E-2},{"$f":"(Monthly!CN306/Monthly!CN305)-1","v":-5.6197816313408033E-4},{"$f":"(Monthly!CO306/Monthly!CO305)-1","v":-1.7421602787455193E-3},{"$f":"(Monthly!CP306/Monthly!CP305)-1","v":1.1034612108376862E-2},{"$f":"(Monthly!CQ306/Monthly!CQ305)-1","v":8.2797355606101242E-4},{"$f":"(Monthly!CR306/Monthly!CR305)-1","v":1.4335975666861955E-2},"--","--",null,null,null,null,null,{"$f":"(Monthly!CZ306/Monthly!CZ305)-1","v":3.0060120240480437E-3},{"$f":"(Monthly!DA306/Monthly!DA305)-1","v":3.0060120240480437E-3},null,null,null,null,null,"--",{"$f":"((Monthly!DH306-Monthly!DH305)*60)","v":0},{"$f":"((Monthly!DI306-Monthly!DI305)*100)","v":20.000000000000284},"--",{"$f":"((Monthly!DK306-Monthly!DK305)*100)","v":9.9999999999999645},{"$f":"Monthly!DL306-Monthly!DL305","v":59},null,null,null,{"$f":"Monthly!DP306-Monthly!DP305","v":-308},null,null,null,{"$f":"(Monthly!DT306/Monthly!DT305)-1","v":6.8014705882353033E-2},{"$f":"Monthly!DU306-Monthly!DU305","v":-0.79999999999999893},"--","--","--","--","--","--","--","--",null,null,null,null,null,null,null,null,null,null,null,null,null,{"$f":"(Monthly!EQ306/Monthly!EQ305)-1","v":4.9358341559724295E-3},{"$f":"(Monthly!ER306/Monthly!ER305)-1","v":3.8797284190106307E-3},{"$f":"(Monthly!ES306/Monthly!ES305)-1","v":2.9182879377431803E-3},null,null,null,null,null,{"$f":"((Monthly!EY306-Monthly!EY305)*100)","v":39.000000000000057},{"$f":"((Monthly!EZ306-Monthly!EZ305)*100)","v":19.000000000000128},{"$f":"((Monthly!FA306-Monthly!FA305)*100)","v":35.999999999999943},{"$f":"((Monthly!FB306-Monthly!FB305)*100)","v":25},"--",{"$f":"((Monthly!FD306-Monthly!FD305)*100)","v":39.000000000000057},{"$f":"((Monthly!FE306-Monthly!FE305)*100)","v":25.999999999999979},{"$f":"((Monthly!FF306-Monthly!FF305)*100)","v":33.000000000000007},{"$f":"((Monthly!FG306-Monthly!FG305)*100)","v":38.000000000000078},{"$f":"((Monthly!FH306-Monthly!FH305)*100)","v":41.999999999999993},{"$f":"((Monthly!FI306-Monthly!FI305)*100)","v":46.999999999999886},null,null,null,null,null,null,{"$f":"(Monthly!FP306/Monthly!FP305)-1","v":1.2172360626472312E-3},{"$f":"(Monthly!FQ306/Monthly!FQ305)-1","v":-6.1604728037664147E-3},"--","--",{"$f":"(Monthly!FT306/Monthly!FT305)-1","v":1.8674127554900499E-2},{"$f":"(Monthly!FU306/Monthly!FU305)-1","v":1.6309219174011957E-2},{"$f":"(Monthly!FV306/Monthly!FV305)-1","v":3.007366014732038E-2},{"$f":"(Monthly!FW306/Monthly!FW305)-1","v":0.10628961482203803},{"$f":"(Monthly!FX306/Monthly!FX305)-1","v":0.15166023166023179},null,null,null,null,null,{"$f":"(Monthly!GD306/Monthly!GD305)-1","v":7.8963992419456286E-3},"--","--","--",{"$f":"(Monthly!GH306/Monthly!GH305)-1","v":{"$error":"#DIV/0!"}},"--","--","--","--"]
["1984-02-01",null,null,null,{"$f":"(Monthly!E312/Monthly!E311)-1","v":{"$error":"#DIV/0!"}},{"$f":"(Monthly!F312/Monthly!F311)-1","v":{"$error":"#DIV/0!"}},{"$f":"(Monthly!G312/Monthly!G311)-1","v":{"$error":"#DIV/0!"}},{"$f":"(Monthly!H312/Monthly!H311)-1","v":{"$error":"#DIV/0!"}},null,null,null,null,null,null,null,null,null,null,null,null,null,null,null,{"$f":"(Monthly!X312-Monthly!X311)","v":0.20000000000000284},{"$f":"(Monthly!Y312/Monthly!Y311)-1","v":1.9189837283153821E-2},null,null,null,null,null,null,null,null,null,null,null,null,null,{"$f":"(Monthly!AM312/Monthly!AM311)-1","v":4.5274125527166031E-3},{"$f":"(Monthly!AN312/Monthly!AN311)-1","v":1.0627414637668808E-2},"--","--",{"$f":"Monthly!AQ312-Monthly!AQ311","v":0.79999999999999716},"--","--",{"$f":"Monthly!AT312-Monthly!AT311","v":-1.2000000000000028},"--","--",{"$f":"Monthly!AW312-Monthly!AW311","v":0},{"$f":"Monthly!AX312-Monthly!AX311","v":1.2000000000000028},{"$f":"Monthly!AY312-Monthly!AY311","v":6.6999999999999886},{"$f":"Monthly!AZ312-Monthly!AZ311","v":4.1000000000000014},{"$f":"Monthly!BA312-Monthly!BA311","v":-2.9000000000000057},"--","--",null,null,null,null,null,null,null,null,null,"--","--",null,null,null,null,null,{"$f":"(Monthly!BT312/Monthly!BT311)-1","v":1.3931678628185562E-2},null,null,null,{"$f":"(Monthly!BX312/Monthly!BX311)-1","v":0.19135477069056406},{"$f":"(Monthly!BY312/Monthly!BY311)-1","v":9.4162995594713639E-2},"--",{"$f":"(Monthly!CA312/Monthly!CA311)-1","v":9.4299185597943591E-3},{"$f":"Monthly!CB312-Monthly!CB311","v":0.2037856204790458},{"$f":"Monthly!CC312-Monthly!CC311","v":6.3785620479045235E-2},"--","--",null,"--","--",null,{"$f":"(Monthly!CJ312/Monthly!CJ311)-1","v":7.2358900144717797E-3},{"$f":"(Monthly!CK312/Monthly!CK311)-1","v":1.2647312446105063E-2},{"$f":"(Monthly!CL312/Monthly!CL311)-1","v":0.19485999232834672},{"$f":"(Monthly!CM312/Monthly!CM311)-1","v":0.15036976170912086},{"$f":"(Monthly!CN312/Monthly!CN311)-1","v":6.0939041612659839E-3},{"$f":"(Monthly!CO312/Monthly!CO311)-1","v":7.7315827862873832E-3},{"$f":"(Monthly!CP312/Monthly!CP311)-1","v":2.2434614633642935E-2},{"$f":"(Monthly!CQ312/Monthly!CQ311)-1","v":6.0326698812573909E-4},{"$f":"(Monthly!CR312/Monthly!CR311)-1","v":2.0105190111977755E-2},"--","--",null,null,null,null,null,{"$f":"(Monthly!CZ312/Monthly!CZ311)-1","v":4.8971596474045587E-3},{"$f":"(Monthly!DA312/Monthly!DA311)-1","v":2.9268292682926855E-3},null,null,null,null,null,"--",{"$f":"((Monthly!DH312-Monthly!DH311)*60)","v":11.999999999999744},{"$f":"((Monthly!DI312-Monthly!DI311)*100)","v":19.999999999999574},"--",{"$f":"((Monthly!DK312-Monthly!DK311)*100)","v":-20.000000000000018},{"$f":"Monthly!DL312-Monthly!DL311","v":98},null,null,null,{"$f":"Monthly!DP312-Monthly!DP311","v":481},null,null,null,{"$f":"(Monthly!DT312/Monthly!DT311)-1","v":-3.3475783475783505E-2},{"$f":"Monthly!DU312-Monthly!DU311","v":-0.79999999999999893},"--","--","--","--","--","--","--","--",null,null,null,null,null,null,null,null,null,null,null,null,null,{"$f":"(Monthly!EQ312/Monthly!EQ311)-1","v":2.9154518950436081E-3},{"$f":"(Monthly!ER312/Monthly!ER311)-1","v":1.91387559808609E-3},{"$f":"(Monthly!ES312/Monthly!ES311)-1","v":3.842459173871271E-3},null,null,null,null,null,{"$f":"((Monthly!EY312-Monthly!EY311)*100)","v":0},{"$f":"((Monthly!EZ312-Monthly!EZ311)*100)","v":2.9999999999999361},{"$f":"((Monthly!FA312-Monthly!FA311)*100)","v":-11.999999999999922},{"$f":"((Monthly!FB312-Monthly!FB311)*100)","v":-6.0000000000000497},"--",{"$f":"((Monthly!FD312-Monthly!FD311)*100)","v":-13.999999999999879},{"$f":"((Monthly!FE312-Monthly!FE311)*100)","v":18.99999999999995},{"$f":"((Monthly!FF312-Monthly!FF311)*100)","v":13.999999999999879},{"$f":"((Monthly!FG312-Monthly!FG311)*100)","v":14.999999999999858},{"$f":"((Monthly!FH312-Monthly!FH311)*100)","v":16.999999999999993},{"$f":"((Monthly!FI312-Monthly!FI311)*100)","v":16.999999999999993},null,null,null,null,null,null,{"$f":"(Monthly!FP312/Monthly!FP311)-1","v":-3.2041012495986898E-4},{"$f":"(Monthly!FQ312/Monthly!FQ311)-1","v":6.7349926793558446E-3},"--","--",{"$f":"(Monthly!FT312/Monthly!FT311)-1","v":-3.145086992894397E-3},{"$f":"(Monthly!FU312/Monthly!FU311)-1","v":-1.3860635794344045E-2},{"$f":"(Monthly!FV312/Monthly!FV311)-1","v":3.1902052077944498E-2},{"$f":"(Monthly!FW312/Monthly!FW311)-1","v":-0.11846038863976094},{"$f":"(Monthly!FX312/Monthly!FX311)-1","v":0.14765002558292517},null,null,null,null,null,{"$f":"(Monthly!GD312/Monthly!GD311)-1","v":1.5325025261030634E-2},"--","--","--",{"$f":"(Monthly!GH312/Monthly!GH311)-1","v":{"$error":"#DIV/0!"}},"--","--","--","--"]
["1984-06-01",null,null,null,{"$f":"(Monthly!E316/Monthly!E315)-1","v":{"$error":"#DIV/0!"}},{"$f":"(Monthly!F316/Monthly!F315)-1","v":{"$error":"#DIV/0!"}},{"$f":"(Monthly!G316/Monthly!G315)-1","v":{"$error":"#DIV/0!"}},{"$f":"(Monthly!H316/Monthly!H315)-1","v":{"$error":"#DIV/0!"}},null,null,null,null,null,null,null,null,null,null,null,null,null,null,null,{"$f":"(Monthly!X316-Monthly!X315)","v":0.20000000000000284},{"$f":"(Monthly!Y316/Monthly!Y315)-1","v":1.0427535684734313E-2},null,null,null,null,null,null,null,null,null,null,null,null,null,{"$f":"(Monthly!AM316/Monthly!AM315)-1","v":3.6514353733472227E-3},{"$f":"(Monthly!AN316/Monthly!AN315)-1","v":4.6619315452793852E-3},"--","--",{"$f":"Monthly!AQ316-Monthly!AQ315","v":-0.5},"--","--",{"$f":"Monthly!AT316-Monthly!AT315","v":-4.5},"--","--",{"$f":"Monthly!AW316-Monthly!AW315","v":2.1999999999999957},{"$f":"Monthly!AX316-Monthly!AX315","v":1.2999999999999972},{"$f":"Monthly!AY316-Monthly!AY315","v":1.5},{"$f":"Monthly!AZ316-Monthly!AZ315","v":3},{"$f":"Monthly!BA316-Monthly!BA315","v":-6.2999999999999972},"--","--",null,null,null,null,null,null,null,null,null,"--","--",null,null,null,null,null,{"$f":"(Monthly!BT316/Monthly!BT315)-1","v":1.7146659543287424E-2},null,null,null,{"$f":"(Monthly!BX316/Monthly!BX315)-1","v":3.8895152198421545E-2},{"$f":"(Monthly!BY316/Monthly!BY315)-1","v":4.1929925330270068E-2},"--",{"$f":"(Monthly!CA316/Monthly!CA315)-1","v":-1.2011805889216909E-2},{"$f":"Monthly!CB316-Monthly!CB315","v":-0.20872168494838839},{"$f":"Monthly!CC316-Monthly!CC315","v":-0.34872168494838718},"--","--",null,"--","--",null,{"$f":"(Monthly!CJ316/Monthly!CJ315)-1","v":2.4390243902439046E-2},{"$f":"(Monthly!CK316/Monthly!CK315)-1","v":9.3996548323471707E-3},{"$f":"(Monthly!CL316/Monthly!CL315)-1","v":7.2535443455323811E-3},{"$f":"(Monthly!CM316/Monthly!CM315)-1","v":-1.2727272727272698E-2},{"$f":"(Monthly!CN316/Monthly!CN315)-1","v":6.7434459766630983E-3},{"$f":"(Monthly!CO316/Monthly!CO315)-1","v":-5.4138766206011102E-3},{"$f":"(Monthly!CP316/Monthly!CP315)-1","v":1.8097794808827228E-2},{"$f":"(Monthly!CQ316/Monthly!CQ315)-1","v":7.0764810820667101E-4},{"$f":"(Monthly!CR316/Monthly!CR315)-1","v":2.6741271395944954E-2},"--","--",null,null,null,null,null,{"$f":"(Monthly!CZ316/Monthly!CZ315)-1","v":1.9323671497584183E-3},{"$f":"(Monthly!DA316/Monthly!DA315)-1","v":3.842459173871271E-3},null,null,null,null,null,"--",{"$f":"((Monthly!DH316-Monthly!DH315)*60)","v":0},{"$f":"((Monthly!DI316-Monthly!DI315)*100)","v":9.9999999999994316},"--",{"$f":"((Monthly!DK316-Monthly!DK315)*100)","v":-20.000000000000018},{"$f":"Monthly!DL316-Monthly!DL315","v":51},null,null,null,{"$f":"Monthly!DP316-Monthly!DP315","v":379},null,null,null,{"$f":"(Monthly!DT316/Monthly!DT315)-1","v":1.0579064587973308E-2},{"$f":"Monthly!DU316-Monthly!DU315","v":-1.5999999999999996},"--","--","--","--","--","--","--","--",null,null,null,null,null,null,null,null,null,null,null,null,null,{"$f":"(Monthly!EQ316/Monthly!EQ315)-1","v":-9.6061479346776224E-4},{"$f":"(Monthly!ER316/Monthly!ER315)-1","v":1.8993352326686086E-3},{"$f":"(Monthly!ES316/Monthly!ES315)-1","v":9.5147478591828261E-4},null,null,null,null,null,{"$f":"((Monthly!EY316-Monthly!EY315)*100)","v":20.999999999999908},{"$f":"((Monthly!EZ316-Monthly!EZ315)*100)","v":74.000000000000028},{"$f":"((Monthly!FA316-Monthly!FA315)*100)","v":27.000000000000135},{"$f":"((Monthly!FB316-Monthly!FB315)*100)","v":31.00000000000005},"--",{"$f":"((Monthly!FD316-Monthly!FD315)*100)","v":48.000000000000043},{"$f":"((Monthly!FE316-Monthly!FE315)*100)","v":3.9999999999999147},{"$f":"((Monthly!FF316-Monthly!FF315)*100)","v":41.999999999999993},{"$f":"((Monthly!FG316-Monthly!FG315)*100)","v":43.99999999999995},{"$f":"((Monthly!FH316-Monthly!FH315)*100)","v":31.00000000000005},{"$f":"((Monthly!FI316-Monthly!FI315)*100)","v":15.000000000000036},null,null,null,null,null,null,{"$f":"(Monthly!FP316/Monthly!FP315)-1","v":7.4165636588381378E-3},{"$f":"(Monthly!FQ316/Monthly!FQ315)-1","v":1.4268727705113005E-2},"--","--",{"$f":"(Monthly!FT316/Monthly!FT315)-1","v":1.1791013039392562E-2},{"$f":"(Monthly!FU316/Monthly!FU315)-1","v":7.1010354980121093E-3},{"$f":"(Monthly!FV316/Monthly!FV315)-1","v":5.6546629085623135E-3},{"$f":"(Monthly!FW316/Monthly!FW315)-1","v":0.10728582866293035},{"$f":"(Monthly!FX316/Monthly!FX315)-1","v":4.589879099399119E-2},null,null,null,null,null,{"$f":"(Monthly!GD316/Monthly!GD315)-1","v":-1.811926605504588E-2},"--","--","--",{"$f":"(Monthly!GH316/Monthly!GH315)-1","v":{"$error":"#DIV/0!"}},"--","--","--","--"]
["1984-09-01",null,null,null,{"$f":"(Monthly!E319/Monthly!E318)-1","v":{"$error":"#DIV/0!"}},{"$f":"(Monthly!F319/Monthly!F318)-1","v":{"$error":"#DIV/0!"}},{"$f":"(Monthly!G319/Monthly!G318)-1","v":{"$error":"#DIV/0!"}},{"$f":"(Monthly!H319/Monthly!H318)-1","v":{"$error":"#DIV/0!"}},null,null,null,null,null,null,null,null,null,null,null,null,null,null,null,{"$f":"(Monthly!X319-Monthly!X318)","v":-0.40000000000000568},{"$f":"(Monthly!Y319/Monthly!Y318)-1","v":6.8054730624411697E-3},null,null,null,null,null,null,null,null,null,null,null,null,null,{"$f":"(Monthly!AM319/Monthly!AM318)-1","v":-1.8001337242194992E-3},{"$f":"(Monthly!AN319/Monthly!AN318)-1","v":-2.3411753980676631E-3},"--","--",{"$f":"Monthly!AQ319-Monthly!AQ318","v":-3},"--","--",{"$f":"Monthly!AT319-Monthly!AT318","v":0.70000000000000284},"--","--",{"$f":"Monthly!AW319-Monthly!AW318","v":-2.3000000000000043},{"$f":"Monthly!AX319-Monthly!AX318","v":-6.7999999999999972},{"$f":"Monthly!AY319-Monthly!AY318","v":-5.3000000000000043},{"$f":"Monthly!AZ319-Monthly!AZ318","v":-2.0999999999999943},{"$f":"Monthly!BA319-Monthly!BA318","v":-2.4000000000000057},"--","--",null,null,null,null,null,null,null,null,null,"--","--",null,null,null,null,null,{"$f":"(Monthly!BT319/Monthly!BT318)-1","v":1.3675965721720251E-2},null,null,null,{"$f":"(Monthly!BX319/Monthly!BX318)-1","v":7.0617906683480447E-2},{"$f":"(Monthly!BY319/Monthly!BY318)-1","v":-4.5751633986927942E-3},"--",{"$f":"(Monthly!CA319/Monthly!CA318)-1","v":-2.4560902470369794E-2},{"$f":"Monthly!CB319-Monthly!CB318","v":-0.21283576980790642},{"$f":"Monthly!CC319-Monthly!CC318","v":-0.35283576980790698},"--","--",null,"--","--",null,{"$f":"(Monthly!CJ319/Monthly!CJ318)-1","v":0.16754850088183426},{"$f":"(Monthly!CK319/Monthly!CK318)-1","v":9.0747919108145059E-3},{"$f":"(Monthly!CL319/Monthly!CL318)-1","v":8.1595648232095641E-3},{"$f":"(Monthly!CM319/Monthly!CM318)-1","v":7.3422957600827399E-2},{"$f":"(Monthly!CN319/Monthly!CN318)-1","v":7.1818978864699456E-3},{"$f":"(Monthly!CO319/Monthly!CO318)-1","v":-1.1656709893631545E-3},{"$f":"(Monthly!CP319/Monthly!CP318)-1","v":8.8618579868435798E-3},{"$f":"(Monthly!CQ319/Monthly!CQ318)-1","v":8.9199277950857692E-4},{"$f":"(Monthly!CR319/Monthly!CR318)-1","v":2.2072514083371741E-2},"--","--",null,null,null,null,null,{"$f":"(Monthly!CZ319/Monthly!CZ318)-1","v":2.8735632183907178E-3},{"$f":"(Monthly!DA319/Monthly!DA318)-1","v":3.7950664136621182E-3},null,null,null,null,null,"--",{"$f":"((Monthly!DH319-Monthly!DH318)*60)","v":6.0000000000000853},{"$f":"((Monthly!DI319-Monthly!DI318)*100)","v":0},"--",{"$f":"((Monthly!DK319-Monthly!DK318)*100)","v":-20.000000000000018},{"$f":"Monthly!DL319-Monthly!DL318","v":-15},null,null,null,{"$f":"Monthly!DP319-Monthly!DP318","v":310},null,null,null,{"$f":"(Monthly!DT319/Monthly!DT318)-1","v":1.985906470211396E-2},{"$f":"Monthly!DU319-Monthly!DU318","v":0.29999999999999982},"--","--","--","--","--","--","--","--",null,null,null,null,null,null,null,null,null,null,null,null,null,{"$f":"(Monthly!EQ319/Monthly!EQ318)-1","v":-3.8535645472060898E-3},{"$f":"(Monthly!ER319/Monthly!ER318)-1","v":2.8328611898016387E-3},{"$f":"(Monthly!ES319/Monthly!ES318)-1","v":2.8409090909091717E-3},null,null,null,null,null,{"$f":"((Monthly!EY319-Monthly!EY318)*100)","v":-2.9999999999999361},{"$f":"((Monthly!EZ319-Monthly!EZ318)*100)","v":-33.999999999999986},{"$f":"((Monthly!FA319-Monthly!FA318)*100)","v":-20.999999999999908},{"$f":"((Monthly!FB319-Monthly!FB318)*100)","v":-28.000000000000114},"--",{"$f":"((Monthly!FD319-Monthly!FD318)*100)","v":-12.000000000000099},{"$f":"((Monthly!FE319-Monthly!FE318)*100)","v":-10.000000000000142},{"$f":"((Monthly!FF319-Monthly!FF318)*100)","v":-24.000000000000021},{"$f":"((Monthly!FG319-Monthly!FG318)*100)","v":-23.000000000000043},{"$f":"((Monthly!FH319-Monthly!FH318)*100)","v":-15.000000000000036},{"$f":"((Monthly!FI319-Monthly!FI318)*100)","v":-20.000000000000107},null,null,null,null,null,null,{"$f":"(Monthly!FP319/Monthly!FP318)-1","v":8.4388185654007408E-3},{"$f":"(Monthly!FQ319/Monthly!FQ318)-1","v":7.3825786322624154E-2},"--","--",{"$f":"(Monthly!FT319/Monthly!FT318)-1","v":2.7753158450715798E-2},{"$f":"(Monthly!FU319/Monthly!FU318)-1","v":2.5735136426860317E-2},{"$f":"(Monthly!FV319/Monthly!FV318)-1","v":0.13675770279620658},{"$f":"(Monthly!FW319/Monthly!FW318)-1","v":0.1333333333333333},{"$f":"(Monthly!FX319/Monthly!FX318)-1","v":3.8925127623369082E-2},null,null,null,null,null,{"$f":"(Monthly!GD319/Monthly!GD318)-1","v":2.0854700854699981E-3},"--","--","--",{"$f":"(Monthly!GH319/Monthly!GH318)-1","v":{"$error":"#DIV/0!"}},"--","--","--","--"]
["1985-03-01",null,null,null,{"$f":"(Monthly!E325/Monthly!E324)-1","v":{"$error":"#DIV/0!"}},{"$f":"(Monthly!F325/Monthly!F324)-1","v":{"$error":"#DIV/0!"}},{"$f":"(Monthly!G325/Monthly!G324)-1","v":{"$error":"#DIV/0!"}},{"$f":"(Monthly!H325/Monthly!H324)-1","v":{"$error":"#DIV/0!"}},null,null,null,null,null,null,null,null,null,null,null,null,null,null,null,{"$f":"(Monthly!X325-Monthly!X324)","v":-9.9999999999994316E-2},{"$f":"(Monthly!Y325/Monthly!Y324)-1","v":1.0027963642428084E-2},null,null,null,null,null,null,null,null,null,null,null,null,null,{"$f":"(Monthly!AM325/Monthly!AM324)-1","v":1.5005408309707313E-3},{"$f":"(Monthly!AN325/Monthly!AN324)-1","v":7.8083039091931816E-3},"--","--",{"$f":"Monthly!AQ325-Monthly!AQ324","v":-2.1000000000000014},"--","--",{"$f":"Monthly!AT325-Monthly!AT324","v":-1},"--","--",{"$f":"Monthly!AW325-Monthly!AW324","v":-0.79999999999999716},{"$f":"Monthly!AX325-Monthly!AX324","v":-2.6999999999999957},{"$f":"Monthly!AY325-Monthly!AY324","v":1.4000000000000057},{"$f":"Monthly!AZ325-Monthly!AZ324","v":-3},{"$f":"Monthly!BA325-Monthly!BA324","v":-1.8999999999999986},"--","--",null,null,null,null,null,null,null,null,null,"--","--",null,null,null,null,null,{"$f":"(Monthly!BT325/Monthly!BT324)-1","v":1.4664667379097551E-2},null,null,null,{"$f":"(Monthly!BX325/Monthly!BX324)-1","v":0.10294117647058831},{"$f":"(Monthly!BY325/Monthly!BY324)-1","v":3.9109506618531853E-2},"--",{"$f":"(Monthly!CA325/Monthly!CA324)-1","v":-2.4818558838776594E-2},{"$f":"Monthly!CB325-Monthly!CB324","v":0.18384964679270155},{"$f":"Monthly!CC325-Monthly!CC324","v":0.18384964679269977},"--","--",null,"--","--",null,{"$f":"(Monthly!CJ325/Monthly!CJ324)-1","v":-1.6129032258064502E-2},{"$f":"(Monthly!CK325/Monthly!CK324)-1","v":8.1022215768840056E-3},{"$f":"(Monthly!CL325/Monthly!CL324)-1","v":-4.5756746186937813E-2},{"$f":"(Monthly!CM325/Monthly!CM324)-1","v":4.6425255338904403E-2},{"$f":"(Monthly!CN325/Monthly!CN324)-1","v":-4.7361676046135948E-3},{"$f":"(Monthly!CO325/Monthly!CO324)-1","v":1.1275641896481448E-2},{"$f":"(Monthly!CP325/Monthly!CP324)-1","v":1.7483008682155798E-2},{"$f":"(Monthly!CQ325/Monthly!CQ324)-1","v":5.4713344163759281E-4},{"$f":"(Monthly!CR325/Monthly!CR324)-1","v":2.4775845947190289E-2},"--","--",null,null,null,null,null,{"$f":"(Monthly!CZ325/Monthly!CZ324)-1","v":4.7036688617121403E-3},{"$f":"(Monthly!DA325/Monthly!DA324)-1","v":3.714020427112219E-3},null,null,null,null,null,"--",{"$f":"((Monthly!DH325-Monthly!DH324)*60)","v":6.0000000000000853},{"$f":"((Monthly!DI325-Monthly!DI324)*100)","v":20.000000000000284},"--",{"$f":"((Monthly!DK325-Monthly!DK324)*100)","v":0},{"$f":"Monthly!DL325-Monthly!DL324","v":-27},null,null,null,{"$f":"Monthly!DP325-Monthly!DP324","v":346},null,null,null,{"$f":"(Monthly!DT325/Monthly!DT324)-1","v":-2.7951499680918923E-2},{"$f":"Monthly!DU325-Monthly!DU324","v":0},"--","--","--","--","--","--","--","--",null,null,null,null,null,null,null,null,null,null,null,null,null,{"$f":"(Monthly!EQ325/Monthly!EQ324)-1","v":-1.9361084220717029E-3},{"$f":"(Monthly!ER325/Monthly!ER324)-1","v":2.7958993476233651E-3},{"$f":"(Monthly!ES325/Monthly!ES324)-1","v":1.8709073900839979E-3},null,null,null,null,null,{"$f":"((Monthly!EY325-Monthly!EY324)*100)","v":0},{"$f":"((Monthly!EZ325-Monthly!EZ324)*100)","v":8.0000000000000071},{"$f":"((Monthly!FA325-Monthly!FA324)*100)","v":42.999999999999972},{"$f":"((Monthly!FB325-Monthly!FB324)*100)","v":45.999999999999908},"--",{"$f":"((Monthly!FD325-Monthly!FD324)*100)","v":25},{"$f":"((Monthly!FE325-Monthly!FE324)*100)","v":25},{"$f":"((Monthly!FF325-Monthly!FF324)*100)","v":57.000000000000028},{"$f":"((Monthly!FG325-Monthly!FG324)*100)","v":54.000000000000092},{"$f":"((Monthly!FH325-Monthly!FH324)*100)","v":38.999999999999879},{"$f":"((Monthly!FI325-Monthly!FI324)*100)","v":34.999999999999964},null,null,null,null,null,null,{"$f":"(Monthly!FP325/Monthly!FP324)-1","v":2.1628404812873647E-2},{"$f":"(Monthly!FQ325/Monthly!FQ324)-1","v":6.5615409037993455E-3},"--","--",{"$f":"(Monthly!FT325/Monthly!FT324)-1","v":1.0257727220331025E-2},{"$f":"(Monthly!FU325/Monthly!FU324)-1","v":2.6224574042268411E-3},{"$f":"(Monthly!FV325/Monthly!FV324)-1","v":9.4944579616112579E-2},{"$f":"(Monthly!FW325/Monthly!FW324)-1","v":4.2704626334519658E-2},{"$f":"(Monthly!FX325/Monthly!FX324)-1","v":0.13092701118806627},null,null,null,null,null,{"$f":"(Monthly!GD325/Monthly!GD324)-1","v":3.5458912397785092E-2},"--","--","--",{"$f":"(Monthly!GH325/Monthly!GH324)-1","v":{"$error":"#DIV/0!"}},"--","--","--","--"]
["1985-08-01",null,null,null,{"$f":"(Monthly!E330/Monthly!E329)-1","v":{"$error":"#DIV/0!"}},{"$f":"(Monthly!F330/Monthly!F329)-1","v":{"$error":"#DIV/0!"}},{"$f":"(Monthly!G330/Monthly!G329)-1","v":{"$error":"#DIV/0!"}},{"$f":"(Monthly!H330/Monthly!H329)-1","v":{"$error":"#DIV/0!"}},null,null,null,null,null,null,null,null,null,null,null,null,null,null,null,{"$f":"(Monthly!X330-Monthly!X329)","v":0.10000000000000853},{"$f":"(Monthly!Y330/Monthly!Y329)-1","v":5.8048663328837957E-3},null,null,null,null,null,null,null,null,null,null,null,null,null,{"$f":"(Monthly!AM330/Monthly!AM329)-1","v":4.1287721923728427E-3},{"$f":"(Monthly!AN330/Monthly!AN329)-1","v":5.9427106428546761E-3},"--","--",{"$f":"Monthly!AQ330-Monthly!AQ329","v":-0.19999999999999574},"--","--",{"$f":"Monthly!AT330-Monthly!AT329","v":-4.1000000000000014},"--","--",{"$f":"Monthly!AW330-Monthly!AW329","v":1.2000000000000028},{"$f":"Monthly!AX330-Monthly!AX329","v":-0.70000000000000284},{"$f":"Monthly!AY330-Monthly!AY329","v":-1.6000000000000014},{"$f":"Monthly!AZ330-Monthly!AZ329","v":2.3999999999999986},{"$f":"Monthly!BA330-Monthly!BA329","v":0.89999999999999858},"--","--",null,null,null,null,null,null,null,null,null,"--","--",null,null,null,null,null,{"$f":"(Monthly!BT330/Monthly!BT329)-1","v":1.2414129966020537E-2},null,null,null,{"$f":"(Monthly!BX330/Monthly!BX329)-1","v":3.5035629453681771E-2},{"$f":"(Monthly!BY330/Monthly!BY329)-1","v":6.540954625810258E-2},"--",{"$f":"(Monthly!CA330/Monthly!CA329)-1","v":9.269478386545793E-2},{"$f":"Monthly!CB330-Monthly!CB329","v":-0.40572283502823225},{"$f":"Monthly!CC330-Monthly!CC329","v":-0.61572283502823311},"--","--",null,"--","--",null,{"$f":"(Monthly!CJ330/Monthly!CJ329)-1","v":-5.2219321148825104E-2},{"$f":"(Monthly!CK330/Monthly!CK329)-1","v":3.1828128108215559E-3},{"$f":"(Monthly!CL330/Monthly!CL329)-1","v":-0.11389521640091105},{"$f":"(Monthly!CM330/Monthly!CM329)-1","v":-9.2678405931423402E-4},{"$f":"(Monthly!CN330/Monthly!CN329)-1","v":-7.309941520468044E-4},{"$f":"(Monthly!CO330/Monthly!CO329)-1","v":1.4741699782079287E-2},{"$f":"(Monthly!CP330/Monthly!CP329)-1","v":9.9467456350974537E-3},{"$f":"(Monthly!CQ330/Monthly!CQ329)-1","v":8.932090947975091E-4},{"$f":"(Monthly!CR330/Monthly!CR329)-1","v":1.629133398110838E-2},"--","--",null,null,null,null,null,{"$f":"(Monthly!CZ330/Monthly!CZ329)-1","v":1.8570102135562205E-3},{"$f":"(Monthly!DA330/Monthly!DA329)-1","v":3.6563071297988081E-3},null,null,null,null,null,"--",{"$f":"((Monthly!DH330-Monthly!DH329)*60)","v":0},{"$f":"((Monthly!DI330-Monthly!DI329)*100)","v":-10.000000000000853},"--",{"$f":"((Monthly!DK330-Monthly!DK329)*100)","v":-30.000000000000071},{"$f":"Monthly!DL330-Monthly!DL329","v":-20},null,null,null,{"$f":"Monthly!DP330-Monthly!DP329","v":193},null,null,null,{"$f":"(Monthly!DT330/Monthly!DT329)-1","v":5.1432291666666741E-2},{"$f":"Monthly!DU330-Monthly!DU329","v":0.19999999999999929},"--","--","--","--","--","--","--","--",null,null,null,null,null,null,null,null,null,null,null,null,null,{"$f":"(Monthly!EQ330/Monthly!EQ329)-1","v":-4.8449612403100861E-3},{"$f":"(Monthly!ER330/Monthly!ER329)-1","v":9.2250922509218292E-4},{"$f":"(Monthly!ES330/Monthly!ES329)-1","v":1.8570102135562205E-3},null,null,null,null,null,{"$f":"((Monthly!EY330-Monthly!EY329)*100)","v":0},{"$f":"((Monthly!EZ330-Monthly!EZ329)*100)","v":2.0000000000000462},{"$f":"((Monthly!FA330-Monthly!FA329)*100)","v":8.0000000000000071},{"$f":"((Monthly!FB330-Monthly!FB329)*100)","v":7.0000000000000284},"--",{"$f":"((Monthly!FD330-Monthly!FD329)*100)","v":16.000000000000014},{"$f":"((Monthly!FE330-Monthly!FE329)*100)","v":5.9999999999999609},{"$f":"((Monthly!FF330-Monthly!FF329)*100)","v":19.000000000000039},{"$f":"((Monthly!FG330-Monthly!FG329)*100)","v":16.999999999999993},{"$f":"((Monthly!FH330-Monthly!FH329)*100)","v":11.000000000000121},{"$f":"((Monthly!FI330-Monthly!FI329)*100)","v":1.9999999999999574},null,null,null,null,null,null,{"$f":"(Monthly!FP330/Monthly!FP329)-1","v":3.6226526689338012E-3},{"$f":"(Monthly!FQ330/Monthly!FQ329)-1","v":9.8580304765871762E-3},"--","--",{"$f":"(Monthly!FT330/Monthly!FT329)-1","v":7.45981398209139E-6},{"$f":"(Monthly!FU330/Monthly!FU329)-1","v":-1.4976271509259065E-2},{"$f":"(Monthly!FV330/Monthly!FV329)-1","v":-5.1132443673493677E-2},{"$f":"(Monthly!FW330/Monthly!FW329)-1","v":-9.4657375145179912E-2},{"$f":"(Monthly!FX330/Monthly!FX329)-1","v":-0.1446135831381733},null,null,null,null,null,{"$f":"(Monthly!GD330/Monthly!GD329)-1","v":1.5587837096124879E-2},"--","--","--",{"$f":"(Monthly!GH330/Monthly!GH329)-1","v":{"$error":"#DIV/0!"}},"--","--","--","--"]
["1986-01-01",null,null,null,{"$f":"(Monthly!E335/Monthly!E334)-1","v":{"$error":"#DIV/0!"}},{"$f":"(Monthly!F335/Monthly!F334)-1","v":{"$error":"#DIV/0!"}},{"$f":"(Monthly!G335/Monthly!G334)-1","v":{"$error":"#DIV/0!"}},{"$f":"(Monthly!H335/Monthly!H334)-1","v":{"$error":"#DIV/0!"}},null,null,null,null,null,null,null,null,null,null,null,null,null,null,null,{"$f":"(Monthly!X335-Monthly!X334)","v":0.29999999999999716},{"$f":"(Monthly!Y335/Monthly!Y334)-1","v":3.2308383257544371E-3},null,null,null,null,null,null,null,null,null,null,null,null,null,{"$f":"(Monthly!AM335/Monthly!AM334)-1","v":4.5396314538339588E-3},{"$f":"(Monthly!AN335/Monthly!AN334)-1","v":1.1220153591097182E-2},"--","--",{"$f":"Monthly!AQ335-Monthly!AQ334","v":0.5},"--","--",{"$f":"Monthly!AT335-Monthly!AT334","v":2.5},"--","--",{"$f":"Monthly!AW335-Monthly!AW334","v":-0.30000000000000426},{"$f":"Monthly!AX335-Monthly!AX334","v":1.9000000000000057},{"$f":"Monthly!AY335-Monthly!AY334","v":-0.30000000000000426},{"$f":"Monthly!AZ335-Monthly!AZ334","v":-2.3999999999999986},{"$f":"Monthly!BA335-Monthly!BA334","v":0.80000000000000426},"--","--",null,null,null,null,null,null,null,null,null,"--","--",null,null,null,null,null,{"$f":"(Monthly!BT335/Monthly!BT334)-1","v":7.4356019769636905E-3},null,null,null,{"$f":"(Monthly!BX335/Monthly!BX334)-1","v":1.5447991761071034E-2},{"$f":"(Monthly!BY335/Monthly!BY334)-1","v":2.9542920847268617E-2},"--",{"$f":"(Monthly!CA335/Monthly!CA334)-1","v":2.5606031065184887E-2},{"$f":"Monthly!CB335-Monthly!CB334","v":-0.11795926053795824},{"$f":"Monthly!CC335-Monthly!CC334","v":-0.3279592605379591},"--","--",null,"--","--",null,{"$f":"(Monthly!CJ335/Monthly!CJ334)-1","v":1.6643550624133141E-2},{"$f":"(Monthly!CK335/Monthly!CK334)-1","v":2.8947948831055115E-3},{"$f":"(Monthly!CL335/Monthly!CL334)-1","v":1.9523623584536409E-3},{"$f":"(Monthly!CM335/Monthly!CM334)-1","v":0.13089937666963491},{"$f":"(Monthly!CN335/Monthly!CN334)-1","v":6.8256933467458758E-4},{"$f":"(Monthly!CO335/Monthly!CO334)-1","v":2.3304305163744932E-3},{"$f":"(Monthly!CP335/Monthly!CP334)-1","v":9.9911424032101959E-3},{"$f":"(Monthly!CQ335/Monthly!CQ334)-1","v":6.7229838356075433E-4},{"$f":"(Monthly!CR335/Monthly!CR334)-1","v":2.1070044944073052E-2},"--","--",null,null,null,null,null,{"$f":"(Monthly!CZ335/Monthly!CZ334)-1","v":3.6529680365298134E-3},{"$f":"(Monthly!DA335/Monthly!DA334)-1","v":4.4883303411131781E-3},null,null,null,null,null,"--",{"$f":"((Monthly!DH335-Monthly!DH334)*60)","v":6.0000000000000853},{"$f":"((Monthly!DI335-Monthly!DI334)*100)","v":-9.9999999999994316},"--",{"$f":"((Monthly!DK335-Monthly!DK334)*100)","v":-29.999999999999982},{"$f":"Monthly!DL335-Monthly!DL334","v":-7},null,null,null,{"$f":"Monthly!DP335-Monthly!DP334","v":125},null,null,null,{"$f":"(Monthly!DT335/Monthly!DT334)-1","v":-4.8020765736534687E-2},{"$f":"Monthly!DU335-Monthly!DU334","v":-9.9999999999999645E-2},"--","--","--","--","--","--","--","--",null,null,null,null,null,null,null,null,null,null,null,null,null,{"$f":"(Monthly!EQ335/Monthly!EQ334)-1","v":-3.8610038610037423E-3},{"$f":"(Monthly!ER335/Monthly!ER334)-1","v":1.8331805682860747E-3},{"$f":"(Monthly!ES335/Monthly!ES334)-1","v":0},null,null,null,null,null,{"$f":"((Monthly!EY335-Monthly!EY334)*100)","v":0},{"$f":"((Monthly!EZ335-Monthly!EZ334)*100)","v":-12.999999999999901},{"$f":"((Monthly!FA335-Monthly!FA334)*100)","v":-10.999999999999943},{"$f":"((Monthly!FB335-Monthly!FB334)*100)","v":-14.000000000000057},"--",{"$f":"((Monthly!FD335-Monthly!FD334)*100)","v":-37.999999999999901},{"$f":"((Monthly!FE335-Monthly!FE334)*100)","v":-2.9999999999999361},{"$f":"((Monthly!FF335-Monthly!FF334)*100)","v":6.0000000000000497},{"$f":"((Monthly!FG335-Monthly!FG334)*100)","v":-0.99999999999997868},{"$f":"((Monthly!FH335-Monthly!FH334)*100)","v":-5.0000000000000711},{"$f":"((Monthly!FI335-Monthly!FI334)*100)","v":-7.0000000000000284},null,null,null,null,null,null,{"$f":"(Monthly!FP335/Monthly!FP334)-1","v":8.2407739161591831E-3},{"$f":"(Monthly!FQ335/Monthly!FQ334)-1","v":0},"--","--",{"$f":"(Monthly!FT335/Monthly!FT334)-1","v":-9.194610543665771E-4},{"$f":"(Monthly!FU335/Monthly!FU334)-1","v":-1.0007034329835962E-2},{"$f":"(Monthly!FV335/Monthly!FV334)-1","v":-4.3604895870161808E-2},{"$f":"(Monthly!FW335/Monthly!FW334)-1","v":0.49918433931484496},{"$f":"(Monthly!FX335/Monthly!FX334)-1","v":-0.15965963164082186},null,null,null,null,null,{"$f":"(Monthly!GD335/Monthly!GD334)-1","v":-0.15730130747759663},"--","--","--",{"$f":"(Monthly!GH335/Monthly!GH334)-1","v":{"$error":"#DIV/0!"}},"--","--","--","--"]
["1986-03-01",null,null,null,{"$f":"(Monthly!E337/Monthly!E336)-1","v":{"$error":"#DIV/0!"}},{"$f":"(Monthly!F337/Monthly!F336)-1","v":{"$error":"#DIV/0!"}},{"$f":"(Monthly!G337/Monthly!G336)-1","v":{"$error":"#DIV/0!"}},{"$f":"(Monthly!H337/Monthly!H336)-1","v":{"$error":"#DIV/0!"}},null,null,null,null,null,null,null,null,null,null,null,null,null,null,null,{"$f":"(Monthly!X337-Monthly!X336)","v":-0.60000000000000853},{"$f":"(Monthly!Y337/Monthly!Y336)-1","v":9.3542478656944983E-3},null,null,null,null,null,null,null,null,null,null,null,null,null,{"$f":"(Monthly!AM337/Monthly!AM336)-1","v":-6.8619065360402409E-3},{"$f":"(Monthly!AN337/Monthly!AN336)-1","v":-3.1837302105883758E-3},"--","--",{"$f":"Monthly!AQ337-Monthly!AQ336","v":0},"--","--",{"$f":"Monthly!AT337-Monthly!AT336","v":0.39999999999999858},"--","--",{"$f":"Monthly!AW337-Monthly!AW336","v":-1},{"$f":"Monthly!AX337-Monthly!AX336","v":-2.6000000000000014},{"$f":"Monthly!AY337-Monthly!AY336","v":-0.70000000000000284},{"$f":"Monthly!AZ337-Monthly!AZ336","v":2.3999999999999986},{"$f":"Monthly!BA337-Monthly!BA336","v":0.70000000000000284},"--","--",null,null,null,null,null,null,null,null,null,"--","--",null,null,null,null,null,{"$f":"(Monthly!BT337/Monthly!BT336)-1","v":4.8260791926966196E-3},null,null,null,{"$f":"(Monthly!BX337/Monthly!BX336)-1","v":1.5151515151515138E-2},{"$f":"(Monthly!BY337/Monthly!BY336)-1","v":7.357102433503071E-3},"--",{"$f":"(Monthly!CA337/Monthly!CA336)-1","v":-8.1052492397196807E-2},{"$f":"Monthly!CB337-Monthly!CB336","v":-1.0449367735298143},{"$f":"Monthly!CC337-Monthly!CC336","v":-1.0449367735298125},"--","--",null,"--","--",null,{"$f":"(Monthly!CJ337/Monthly!CJ336)-1","v":0.20879120879120872},{"$f":"(Monthly!CK337/Monthly!CK336)-1","v":7.2491519859940734E-3},{"$f":"(Monthly!CL337/Monthly!CL336)-1","v":7.8655702538434014E-2},{"$f":"(Monthly!CM337/Monthly!CM336)-1","v":3.2370953630796118E-2},{"$f":"(Monthly!CN337/Monthly!CN336)-1","v":1.0250183038982952E-2},{"$f":"(Monthly!CO337/Monthly!CO336)-1","v":5.3678174942051182E-3},{"$f":"(Monthly!CP337/Monthly!CP336)-1","v":4.4185293631688882E-3},{"$f":"(Monthly!CQ337/Monthly!CQ336)-1","v":5.8384906667563463E-4},{"$f":"(Monthly!CR337/Monthly!CR336)-1","v":1.0717591011012662E-2},"--","--",null,null,null,null,null,{"$f":"(Monthly!CZ337/Monthly!CZ336)-1","v":-5.4694621695533518E-3},{"$f":"(Monthly!DA337/Monthly!DA336)-1","v":2.673796791443861E-3},null,null,null,null,null,"--",{"$f":"((Monthly!DH337-Monthly!DH336)*60)","v":0},{"$f":"((Monthly!DI337-Monthly!DI336)*100)","v":9.9999999999994316},"--",{"$f":"((Monthly!DK337-Monthly!DK336)*100)","v":0},{"$f":"Monthly!DL337-Monthly!DL336","v":-39},null,null,null,{"$f":"Monthly!DP337-Monthly!DP336","v":94},null,null,null,{"$f":"(Monthly!DT337/Monthly!DT336)-1","v":3.166441136671172E-2},{"$f":"Monthly!DU337-Monthly!DU336","v":-0.10000000000000053},"--","--","--","--","--","--","--","--",null,null,null,null,null,null,null,null,null,null,null,null,null,{"$f":"(Monthly!EQ337/Monthly!EQ336)-1","v":-1.3765978367748288E-2},{"$f":"(Monthly!ER337/Monthly!ER336)-1","v":9.1324200913245335E-4},{"$f":"(Monthly!ES337/Monthly!ES336)-1","v":1.8399264029438367E-3},null,null,null,null,null,{"$f":"((Monthly!EY337-Monthly!EY336)*100)","v":-40.000000000000036},{"$f":"((Monthly!EZ337-Monthly!EZ336)*100)","v":-37.999999999999986},{"$f":"((Monthly!FA337-Monthly!FA336)*100)","v":-67},{"$f":"((Monthly!FB337-Monthly!FB336)*100)","v":-60.999999999999943},"--",{"$f":"((Monthly!FD337-Monthly!FD336)*100)","v":-63.000000000000078},{"$f":"((Monthly!FE337-Monthly!FE336)*100)","v":-50},{"$f":"((Monthly!FF337-Monthly!FF336)*100)","v":-58.000000000000007},{"$f":"((Monthly!FG337-Monthly!FG336)*100)","v":-75.999999999999972},{"$f":"((Monthly!FH337-Monthly!FH336)*100)","v":-87.999999999999986},{"$f":"((Monthly!FI337-Monthly!FI336)*100)","v":-91.999999999999901},null,null,null,null,null,null,{"$f":"(Monthly!FP337/Monthly!FP336)-1","v":-2.4211350850957825E-3},{"$f":"(Monthly!FQ337/Monthly!FQ336)-1","v":1.5551132122419986E-3},"--","--",{"$f":"(Monthly!FT337/Monthly!FT336)-1","v":-1.0092064925198208E-2},{"$f":"(Monthly!FU337/Monthly!FU336)-1","v":-2.1031627378016227E-2},{"$f":"(Monthly!FV337/Monthly!FV336)-1","v":4.6541213888152688E-2},{"$f":"(Monthly!FW337/Monthly!FW336)-1","v":6.6914498141263934E-2},{"$f":"(Monthly!FX337/Monthly!FX336)-1","v":9.0206185567009989E-3},null,null,null,null,null,{"$f":"(Monthly!GD337/Monthly!GD336)-1","v":-0.1828778655614558},"--","--","--",{"$f":"(Monthly!GH337/Monthly!GH336)-1","v":{"$error":"#DIV/0!"}},"--","--","--","--"]
["1986-11-01",null,null,null,{"$f":"(Monthly!E345/Monthly!E344)-1","v":{"$error":"#DIV/0!"}},{"$f":"(Monthly!F345/Monthly!F344)-1","v":{"$error":"#DIV/0!"}},{"$f":"(Monthly!G345/Monthly!G344)-1","v":{"$error":"#DIV/0!"}},{"$f":"(Monthly!H345/Monthly!H344)-1","v":{"$error":"#DIV/0!"}},null,null,null,null,null,null,null,null,null,null,null,null,null,null,null,{"$f":"(Monthly!X345-Monthly!X344)","v":0.29999999999999716},{"$f":"(Monthly!Y345/Monthly!Y344)-1","v":1.2041951783503313E-2},null,null,null,null,null,null,null,null,null,null,null,null,null,{"$f":"(Monthly!AM345/Monthly!AM344)-1","v":4.6866663644511419E-3},{"$f":"(Monthly!AN345/Monthly!AN344)-1","v":4.639940956423505E-3},"--","--",{"$f":"Monthly!AQ345-Monthly!AQ344","v":0},"--","--",{"$f":"Monthly!AT345-Monthly!AT344","v":-1.5},"--","--",{"$f":"Monthly!AW345-Monthly!AW344","v":-6},{"$f":"Monthly!AX345-Monthly!AX344","v":2.5},{"$f":"Monthly!AY345-Monthly!AY344","v":0.20000000000000284},{"$f":"Monthly!AZ345-Monthly!AZ344","v":0.5},{"$f":"Monthly!BA345-Monthly!BA344","v":0.70000000000000284},"--","--",null,null,null,null,null,null,null,null,null,"--","--",null,null,null,null,null,{"$f":"(Monthly!BT345/Monthly!BT344)-1","v":4.8891475433727738E-3},null,null,null,{"$f":"(Monthly!BX345/Monthly!BX344)-1","v":-3.4503271861986873E-2},{"$f":"(Monthly!BY345/Monthly!BY344)-1","v":-1.8507462686567111E-2},"--",{"$f":"(Monthly!CA345/Monthly!CA344)-1","v":1.9977955359602451E-3},{"$f":"Monthly!CB345-Monthly!CB344","v":-0.38241660677292799},{"$f":"Monthly!CC345-Monthly!CC344","v":-0.45241660677292828},"--","--",null,"--","--",null,{"$f":"(Monthly!CJ345/Monthly!CJ344)-1","v":5.6801195814648819E-2},{"$f":"(Monthly!CK345/Monthly!CK344)-1","v":3.9192839362323095E-3},{"$f":"(Monthly!CL345/Monthly!CL344)-1","v":4.8517520215633603E-2},{"$f":"(Monthly!CM345/Monthly!CM344)-1","v":-1.1545293072824148E-2},{"$f":"(Monthly!CN345/Monthly!CN344)-1","v":7.6816983536742711E-4},{"$f":"(Monthly!CO345/Monthly!CO344)-1","v":1.2614180078294845E-2},{"$f":"(Monthly!CP345/Monthly!CP344)-1","v":-3.0590988842948974E-5},{"$f":"(Monthly!CQ345/Monthly!CQ344)-1","v":7.9992042242427175E-4},{"$f":"(Monthly!CR345/Monthly!CR344)-1","v":7.6065554887640996E-3},"--","--",null,null,null,null,null,{"$f":"(Monthly!CZ345/Monthly!CZ344)-1","v":1.8148820326679971E-3},{"$f":"(Monthly!DA345/Monthly!DA344)-1","v":2.6086956521738092E-3},null,null,null,null,null,"--",{"$f":"((Monthly!DH345-Monthly!DH344)*60)","v":6.0000000000000853},{"$f":"((Monthly!DI345-Monthly!DI344)*100)","v":0},"--",{"$f":"((Monthly!DK345-Monthly!DK344)*100)","v":-9.9999999999999645},{"$f":"Monthly!DL345-Monthly!DL344","v":-5},null,null,null,{"$f":"Monthly!DP345-Monthly!DP344","v":186},null,null,null,{"$f":"(Monthly!DT345/Monthly!DT344)-1","v":-4.3226146547179711E-2},{"$f":"Monthly!DU345-Monthly!DU344","v":9.9999999999999645E-2},"--","--","--","--","--","--","--","--",null,null,null,null,null,null,null,null,null,null,null,null,null,{"$f":"(Monthly!EQ345/Monthly!EQ344)-1","v":1.0030090270811698E-3},{"$f":"(Monthly!ER345/Monthly!ER344)-1","v":1.7889087656530744E-3},{"$f":"(Monthly!ES345/Monthly!ES344)-1","v":1.8083182640145079E-3},null,null,null,null,null,{"$f":"((Monthly!EY345-Monthly!EY344)*100)","v":0},{"$f":"((Monthly!EZ345-Monthly!EZ344)*100)","v":19.000000000000039},{"$f":"((Monthly!FA345-Monthly!FA344)*100)","v":-17.999999999999972},{"$f":"((Monthly!FB345-Monthly!FB344)*100)","v":-16.999999999999993},"--",{"$f":"((Monthly!FD345-Monthly!FD344)*100)","v":-27.000000000000135},{"$f":"((Monthly!FE345-Monthly!FE344)*100)","v":16.999999999999993},{"$f":"((Monthly!FF345-Monthly!FF344)*100)","v":8.0000000000000071},{"$f":"((Monthly!FG345-Monthly!FG344)*100)","v":0},{"$f":"((Monthly!FH345-Monthly!FH344)*100)","v":-7.0000000000000284},{"$f":"((Monthly!FI345-Monthly!FI344)*100)","v":-17.999999999999972},null,null,null,null,null,null,{"$f":"(Monthly!FP345/Monthly!FP344)-1","v":-1.5844436442203902E-3},{"$f":"(Monthly!FQ345/Monthly!FQ344)-1","v":1.5299138416942082E-3},"--","--",{"$f":"(Monthly!FT345/Monthly!FT344)-1","v":1.4258440743234235E-2},{"$f":"(Monthly!FU345/Monthly!FU344)-1","v":1.5111218110334557E-2},{"$f":"(Monthly!FV345/Monthly!FV344)-1","v":0.16828116803636983},{"$f":"(Monthly!FW345/Monthly!FW344)-1","v":0.21957340025094108},{"$f":"(Monthly!FX345/Monthly!FX344)-1","v":0.16304430717608476},null,null,null,null,null,{"$f":"(Monthly!GD345/Monthly!GD344)-1","v":2.3902504713170014E-2},"--","--","--",{"$f":"(Monthly!GH345/Monthly!GH344)-1","v":{"$error":"#DIV/0!"}},"--","--","--","--"]
["1987-02-01",null,null,null,{"$f":"(Monthly!E348/Monthly!E347)-1","v":{"$error":"#DIV/0!"}},{"$f":"(Monthly!F348/Monthly!F347)-1","v":{"$error":"#DIV/0!"}},{"$f":"(Monthly!G348/Monthly!G347)-1","v":{"$error":"#DIV/0!"}},{"$f":"(Monthly!H348/Monthly!H347)-1","v":{"$error":"#DIV/0!"}},null,null,null,null,null,null,null,null,null,null,null,null,null,null,null,{"$f":"(Monthly!X348-Monthly!X347)","v":0.79999999999999716},{"$f":"(Monthly!Y348/Monthly!Y347)-1","v":-3.524759880061068E-3},null,null,null,null,null,null,null,null,null,null,null,null,null,{"$f":"(Monthly!AM348/Monthly!AM347)-1","v":1.287525488929897E-2},{"$f":"(Monthly!AN348/Monthly!AN347)-1","v":1.4594168636721916E-2},"--","--",{"$f":"Monthly!AQ348-Monthly!AQ347","v":-2.2999999999999972},"--","--",{"$f":"Monthly!AT348-Monthly!AT347","v":-0.69999999999999574},"--","--",{"$f":"Monthly!AW348-Monthly!AW347","v":0.40000000000000568},{"$f":"Monthly!AX348-Monthly!AX347","v":-4.3999999999999986},{"$f":"Monthly!AY348-Monthly!AY347","v":1.3999999999999986},{"$f":"Monthly!AZ348-Monthly!AZ347","v":-3.4000000000000057},{"$f":"Monthly!BA348-Monthly!BA347","v":-0.29999999999999716},"--","--",null,null,null,null,null,null,null,null,null,"--","--",null,null,null,null,null,{"$f":"(Monthly!BT348/Monthly!BT347)-1","v":1.4369969240772829E-3},null,null,null,{"$f":"(Monthly!BX348/Monthly!BX347)-1","v":5.636978579481422E-3},{"$f":"(Monthly!BY348/Monthly!BY347)-1","v":-5.9171597633134176E-4},"--",{"$f":"(Monthly!CA348/Monthly!CA347)-1","v":0.22007404360345539},{"$f":"Monthly!CB348-Monthly!CB347","v":0.54943459828815566},{"$f":"Monthly!CC348-Monthly!CC347","v":0.54943459828815833},"--","--",null,"--","--",null,{"$f":"(Monthly!CJ348/Monthly!CJ347)-1","v":3.2440056417489371E-2},{"$f":"(Monthly!CK348/Monthly!CK347)-1","v":6.9509773178635381E-3},{"$f":"(Monthly!CL348/Monthly!CL347)-1","v":-0.11943717277486909},{"$f":"(Monthly!CM348/Monthly!CM347)-1","v":4.7385620915032733E-2},{"$f":"(Monthly!CN348/Monthly!CN347)-1","v":5.3306014724265882E-3},{"$f":"(Monthly!CO348/Monthly!CO347)-1","v":7.457199873962761E-3},{"$f":"(Monthly!CP348/Monthly!CP347)-1","v":-1.1254195256921173E-3},{"$f":"(Monthly!CQ348/Monthly!CQ347)-1","v":6.0384475399533066E-4},{"$f":"(Monthly!CR348/Monthly!CR347)-1","v":9.3269051555582294E-3},"--","--",null,null,null,null,null,{"$f":"(Monthly!CZ348/Monthly!CZ347)-1","v":3.5906642728904536E-3},{"$f":"(Monthly!DA348/Monthly!DA347)-1","v":2.5884383088869978E-3},null,null,null,null,null,"--",{"$f":"((Monthly!DH348-Monthly!DH347)*60)","v":11.999999999999744},{"$f":"((Monthly!DI348-Monthly!DI347)*100)","v":9.9999999999994316},"--",{"$f":"((Monthly!DK348-Monthly!DK347)*100)","v":0},{"$f":"Monthly!DL348-Monthly!DL347","v":34},null,null,null,{"$f":"Monthly!DP348-Monthly!DP347","v":232},null,null,null,{"$f":"(Monthly!DT348/Monthly!DT347)-1","v":4.344624447717238E-2},{"$f":"Monthly!DU348-Monthly!DU347","v":-0.30000000000000071},"--","--","--","--","--","--","--","--",null,null,null,null,null,null,null,null,null,null,null,null,null,{"$f":"(Monthly!EQ348/Monthly!EQ347)-1","v":4.9751243781095411E-3},{"$f":"(Monthly!ER348/Monthly!ER347)-1","v":-1.777777777777767E-3},{"$f":"(Monthly!ES348/Monthly!ES347)-1","v":-1.7969451931716396E-3},null,null,null,null,null,{"$f":"((Monthly!EY348-Monthly!EY347)*100)","v":0},{"$f":"((Monthly!EZ348-Monthly!EZ347)*100)","v":-33.000000000000007},{"$f":"((Monthly!FA348-Monthly!FA347)*100)","v":2.000000000000135},{"$f":"((Monthly!FB348-Monthly!FB347)*100)","v":-7.0000000000000284},"--",{"$f":"((Monthly!FD348-Monthly!FD347)*100)","v":-11.999999999999922},{"$f":"((Monthly!FE348-Monthly!FE347)*100)","v":16.000000000000014},{"$f":"((Monthly!FF348-Monthly!FF347)*100)","v":17.999999999999972},{"$f":"((Monthly!FG348-Monthly!FG347)*100)","v":16.999999999999993},{"$f":"((Monthly!FH348-Monthly!FH347)*100)","v":15.000000000000036},{"$f":"((Monthly!FI348-Monthly!FI347)*100)","v":16.999999999999993},null,null,null,null,null,null,{"$f":"(Monthly!FP348/Monthly!FP347)-1","v":-1.9550198441863897E-2},{"$f":"(Monthly!FQ348/Monthly!FQ347)-1","v":0},"--","--",{"$f":"(Monthly!FT348/Monthly!FT347)-1","v":-5.2115004716810631E-3},{"$f":"(Monthly!FU348/Monthly!FU347)-1","v":-1.5202468842450245E-2},{"$f":"(Monthly!FV348/Monthly!FV347)-1","v":9.1972227849500099E-2},{"$f":"(Monthly!FW348/Monthly!FW347)-1","v":8.5862466384940328E-2},{"$f":"(Monthly!FX348/Monthly!FX347)-1","v":0.58084609395276399},null,null,null,null,null,{"$f":"(Monthly!GD348/Monthly!GD347)-1","v":-4.9849914236706705E-2},"--","--","--",{"$f":"(Monthly!GH348/Monthly!GH347)-1","v":{"$error":"#DIV/0!"}},"--","--","--","--"]
["1987-04-01",null,null,null,{"$f":"(Monthly!E350/Monthly!E349)-1","v":{"$error":"#DIV/0!"}},{"$f":"(Monthly!F350/Monthly!F349)-1","v":{"$error":"#DIV/0!"}},{"$f":"(Monthly!G350/Monthly!G349)-1","v":{"$error":"#DIV/0!"}},{"$f":"(Monthly!H350/Monthly!H349)-1","v":{"$error":"#DIV/0!"}},null,null,null,null,null,null,null,null,null,null,null,null,null,null,null,{"$f":"(Monthly!X350-Monthly!X349)","v":0.40000000000000568},{"$f":"(Monthly!Y350/Monthly!Y349)-1","v":2.6523713662813808E-3},null,null,null,null,null,null,null,null,null,null,null,null,null,{"$f":"(Monthly!AM350/Monthly!AM349)-1","v":6.4907879823417058E-3},{"$f":"(Monthly!AN350/Monthly!AN349)-1","v":6.0495360561116929E-3},"--","--",{"$f":"Monthly!AQ350-Monthly!AQ349","v":0.5},"--","--",{"$f":"Monthly!AT350-Monthly!AT349","v":3},"--","--",{"$f":"Monthly!AW350-Monthly!AW349","v":-0.60000000000000142},{"$f":"Monthly!AX350-Monthly!AX349","v":-1.8000000000000043},{"$f":"Monthly!AY350-Monthly!AY349","v":2.8999999999999915},{"$f":"Monthly!AZ350-Monthly!AZ349","v":1.6999999999999957},{"$f":"Monthly!BA350-Monthly!BA349","v":0.89999999999999858},"--","--",null,null,null,null,null,null,null,null,null,"--","--",null,null,null,null,null,{"$f":"(Monthly!BT350/Monthly!BT349)-1","v":3.0535736358896504E-3},null,null,null,{"$f":"(Monthly!BX350/Monthly!BX349)-1","v":-6.4889918887601428E-2},{"$f":"(Monthly!BY350/Monthly!BY349)-1","v":-6.0446009389671373E-2},"--",{"$f":"(Monthly!CA350/Monthly!CA349)-1","v":9.9886794965706738E-3},{"$f":"Monthly!CB350-Monthly!CB349","v":0.53842292504450384},{"$f":"Monthly!CC350-Monthly!CC349","v":0.32842292504450121},"--","--",null,"--","--",null,{"$f":"(Monthly!CJ350/Monthly!CJ349)-1","v":3.0855539971949453E-2},{"$f":"(Monthly!CK350/Monthly!CK349)-1","v":3.0982133636270337E-3},{"$f":"(Monthly!CL350/Monthly!CL349)-1","v":-0.53071798667653591},{"$f":"(Monthly!CM350/Monthly!CM349)-1","v":-1.991701244813282E-2},{"$f":"(Monthly!CN350/Monthly!CN349)-1","v":-3.7732268249340173E-2},{"$f":"(Monthly!CO350/Monthly!CO349)-1","v":5.9097978227060644E-3},{"$f":"(Monthly!CP350/Monthly!CP349)-1","v":7.9909680270675576E-3},{"$f":"(Monthly!CQ350/Monthly!CQ349)-1","v":7.1464274059285238E-4},{"$f":"(Monthly!CR350/Monthly!CR349)-1","v":1.6702806465611397E-2},"--","--",null,null,null,null,null,{"$f":"(Monthly!CZ350/Monthly!CZ349)-1","v":4.4563279857396942E-3},{"$f":"(Monthly!DA350/Monthly!DA349)-1","v":6.0034305317324677E-3},null,null,null,null,null,"--",{"$f":"((Monthly!DH350-Monthly!DH349)*60)","v":0},{"$f":"((Monthly!DI350-Monthly!DI349)*100)","v":-9.9999999999994316},"--",{"$f":"((Monthly!DK350-Monthly!DK349)*100)","v":-29.999999999999982},{"$f":"Monthly!DL350-Monthly!DL349","v":18},null,null,null,{"$f":"Monthly!DP350-Monthly!DP349","v":338},null,null,null,{"$f":"(Monthly!DT350/Monthly!DT349)-1","v":1.487209994051053E-4},{"$f":"Monthly!DU350-Monthly!DU349","v":0.5},"--","--","--","--","--","--","--","--",null,null,null,null,null,null,null,null,null,null,null,null,null,{"$f":"(Monthly!EQ350/Monthly!EQ349)-1","v":6.9169960474309011E-3},{"$f":"(Monthly!ER350/Monthly!ER349)-1","v":4.4483985765124689E-3},{"$f":"(Monthly!ES350/Monthly!ES349)-1","v":4.5004500450045448E-3},null,null,null,null,null,{"$f":"((Monthly!EY350-Monthly!EY349)*100)","v":25},{"$f":"((Monthly!EZ350-Monthly!EZ349)*100)","v":24.000000000000021},{"$f":"((Monthly!FA350-Monthly!FA349)*100)","v":49.000000000000021},{"$f":"((Monthly!FB350-Monthly!FB349)*100)","v":42.999999999999972},"--",{"$f":"((Monthly!FD350-Monthly!FD349)*100)","v":79.000000000000085},{"$f":"((Monthly!FE350-Monthly!FE349)*100)","v":4.9999999999999822},{"$f":"((Monthly!FF350-Monthly!FF349)*100)","v":46.999999999999972},{"$f":"((Monthly!FG350-Monthly!FG349)*100)","v":59.999999999999964},{"$f":"((Monthly!FH350-Monthly!FH349)*100)","v":78.000000000000028},{"$f":"((Monthly!FI350-Monthly!FI349)*100)","v":76.999999999999957},null,null,null,null,null,null,{"$f":"(Monthly!FP350/Monthly!FP349)-1","v":-1.5158405335757852E-4},{"$f":"(Monthly!FQ350/Monthly!FQ349)-1","v":0},"--","--",{"$f":"(Monthly!FT350/Monthly!FT349)-1","v":-1.2781655265694636E-2},{"$f":"(Monthly!FU350/Monthly!FU349)-1","v":-2.4526626146428865E-2},{"$f":"(Monthly!FV350/Monthly!FV349)-1","v":-2.8666889408620166E-2},{"$f":"(Monthly!FW350/Monthly!FW349)-1","v":-2.9430051813471469E-2},{"$f":"(Monthly!FX350/Monthly!FX349)-1","v":-6.4977523498161105E-2},null,null,null,null,null,{"$f":"(Monthly!GD350/Monthly!GD349)-1","v":1.8464900300464437E-2},"--","--","--",{"$f":"(Monthly!GH350/Monthly!GH349)-1","v":{"$error":"#DIV/0!"}},"--","--","--","--"]
["1987-09-01",null,null,null,{"$f":"(Monthly!E355/Monthly!E354)-1","v":{"$error":"#DIV/0!"}},{"$f":"(Monthly!F355/Monthly!F354)-1","v":{"$error":"#DIV/0!"}},{"$f":"(Monthly!G355/Monthly!G354)-1","v":{"$error":"#DIV/0!"}},{"$f":"(Monthly!H355/Monthly!H354)-1","v":{"$error":"#DIV/0!"}},null,null,null,null,null,null,null,null,null,null,null,null,null,null,null,{"$f":"(Monthly!X355-Monthly!X354)","v":0},{"$f":"(Monthly!Y355/Monthly!Y354)-1","v":1.2928009689195497E-2},null,null,null,null,null,null,null,null,null,null,null,null,null,{"$f":"(Monthly!AM355/Monthly!AM354)-1","v":2.6929272366120749E-3},{"$f":"(Monthly!AN355/Monthly!AN354)-1","v":5.8850415070808015E-3},"--","--",{"$f":"Monthly!AQ355-Monthly!AQ354","v":0.70000000000000284},"--","--",{"$f":"Monthly!AT355-Monthly!AT354","v":2.1000000000000014},"--","--",{"$f":"Monthly!AW355-Monthly!AW354","v":-9.9999999999994316E-2},{"$f":"Monthly!AX355-Monthly!AX354","v":-0.60000000000000142},{"$f":"Monthly!AY355-Monthly!AY354","v":-0.10000000000000853},{"$f":"Monthly!AZ355-Monthly!AZ354","v":1.2999999999999972},{"$f":"Monthly!BA355-Monthly!BA354","v":1.2000000000000028},"--","--",null,null,null,null,null,null,null,null,null,"--","--",null,null,null,null,null,{"$f":"(Monthly!BT355/Monthly!BT354)-1","v":7.9719600443786121E-3},null,null,null,{"$f":"(Monthly!BX355/Monthly!BX354)-1","v":5.6074766355140193E-2},{"$f":"(Monthly!BY355/Monthly!BY354)-1","v":1.9854401058900795E-3},"--",{"$f":"(Monthly!CA355/Monthly!CA354)-1","v":-5.7547956630525476E-2},{"$f":"Monthly!CB355-Monthly!CB354","v":-0.11559389515595342},{"$f":"Monthly!CC355-Monthly!CC354","v":-0.18559389515595015},"--","--",null,"--","--",null,{"$f":"(Monthly!CJ355/Monthly!CJ354)-1","v":1.3698630136986356E-2},{"$f":"(Monthly!CK355/Monthly!CK354)-1","v":4.1611310254932032E-3},{"$f":"(Monthly!CL355/Monthly!CL354)-1","v":6.8935427574171149E-2},{"$f":"(Monthly!CM355/Monthly!CM354)-1","v":0.10000000000000009},{"$f":"(Monthly!CN355/Monthly!CN354)-1","v":6.8518962622832191E-5},{"$f":"(Monthly!CO355/Monthly!CO354)-1","v":-2.5963236057742201E-3},{"$f":"(Monthly!CP355/Monthly!CP354)-1","v":5.9297101521498252E-3},{"$f":"(Monthly!CQ355/Monthly!CQ354)-1","v":8.6826987967669744E-4},{"$f":"(Monthly!CR355/Monthly!CR354)-1","v":1.6830310025528039E-2},"--","--",null,null,null,null,null,{"$f":"(Monthly!CZ355/Monthly!CZ354)-1","v":3.4995625546807574E-3},{"$f":"(Monthly!DA355/Monthly!DA354)-1","v":4.2122999157538921E-3},null,null,null,null,null,"--",{"$f":"((Monthly!DH355-Monthly!DH354)*60)","v":-11.999999999999744},{"$f":"((Monthly!DI355-Monthly!DI354)*100)","v":-20.000000000000284},"--",{"$f":"((Monthly!DK355-Monthly!DK354)*100)","v":-9.9999999999999645},{"$f":"Monthly!DL355-Monthly!DL354","v":61},null,null,null,{"$f":"Monthly!DP355-Monthly!DP354","v":228},null,null,null,{"$f":"(Monthly!DT355/Monthly!DT354)-1","v":-3.2031249999999956E-2},{"$f":"Monthly!DU355-Monthly!DU354","v":-0.40000000000000036},"--","--","--","--","--","--","--","--",null,null,null,null,null,null,null,null,null,null,null,null,null,{"$f":"(Monthly!EQ355/Monthly!EQ354)-1","v":-9.6339113680143917E-4},{"$f":"(Monthly!ER355/Monthly!ER354)-1","v":2.640845070422726E-3},{"$f":"(Monthly!ES355/Monthly!ES354)-1","v":0},null,null,null,null,null,{"$f":"((Monthly!EY355-Monthly!EY354)*100)","v":44.999999999999929},{"$f":"((Monthly!EZ355-Monthly!EZ354)*100)","v":48.999999999999929},{"$f":"((Monthly!FA355-Monthly!FA354)*100)","v":50.999999999999979},{"$f":"((Monthly!FB355-Monthly!FB354)*100)","v":50.999999999999979},"--",{"$f":"((Monthly!FD355-Monthly!FD354)*100)","v":56.00000000000005},{"$f":"((Monthly!FE355-Monthly!FE354)*100)","v":36.000000000000028},{"$f":"((Monthly!FF355-Monthly!FF354)*100)","v":63.999999999999972},{"$f":"((Monthly!FG355-Monthly!FG354)*100)","v":58.999999999999986},{"$f":"((Monthly!FH355-Monthly!FH354)*100)","v":61.999999999999922},{"$f":"((Monthly!FI355-Monthly!FI354)*100)","v":66.000000000000014},null,null,null,null,null,null,{"$f":"(Monthly!FP355/Monthly!FP354)-1","v":-7.694628847314422E-3},{"$f":"(Monthly!FQ355/Monthly!FQ354)-1","v":0},"--","--",{"$f":"(Monthly!FT355/Monthly!FT354)-1","v":-1.1345274019273877E-2},{"$f":"(Monthly!FU355/Monthly!FU354)-1","v":-2.0985985414153641E-2},{"$f":"(Monthly!FV355/Monthly!FV354)-1","v":0.20234760307752997},{"$f":"(Monthly!FW355/Monthly!FW354)-1","v":-8.1090118709245984E-2},{"$f":"(Monthly!FX355/Monthly!FX354)-1","v":5.7330308418664488E-2},null,null,null,null,null,{"$f":"(Monthly!GD355/Monthly!GD354)-1","v":-3.6894544737101742E-2},"--","--","--",{"$f":"(Monthly!GH355/Monthly!GH354)-1","v":{"$error":"#DIV/0!"}},"--","--","--","--"]
["1988-01-01",null,null,null,{"$f":"(Monthly!E359/Monthly!E358)-1","v":{"$error":"#DIV/0!"}},{"$f":"(Monthly!F359/Monthly!F358)-1","v":{"$error":"#DIV/0!"}},{"$f":"(Monthly!G359/Monthly!G358)-1","v":{"$error":"#DIV/0!"}},{"$f":"(Monthly!H359/Monthly!H358)-1","v":{"$error":"#DIV/0!"}},null,null,null,null,null,null,null,null,null,null,null,null,null,null,null,{"$f":"(Monthly!X359-Monthly!X358)","v":0},{"$f":"(Monthly!Y359/Monthly!Y358)-1","v":3.5815136833254879E-3},null,null,null,null,null,null,null,null,null,null,null,null,null,{"$f":"(Monthly!AM359/Monthly!AM358)-1","v":4.2792576209249589E-4},{"$f":"(Monthly!AN359/Monthly!AN358)-1","v":-1.8980333362428325E-3},"--","--",{"$f":"Monthly!AQ359-Monthly!AQ358","v":-3.5},"--","--",{"$f":"Monthly!AT359-Monthly!AT358","v":-7.8999999999999986},{"$f":"Monthly!AU359-Monthly!AU358","v":{"$error":"#VALUE!"}},"--",{"$f":"Monthly!AW359-Monthly!AW358","v":-9.9999999999994316E-2},{"$f":"Monthly!AX359-Monthly!AX358","v":-1.2000000000000028},{"$f":"Monthly!AY359-Monthly!AY358","v":-1.5},{"$f":"Monthly!AZ359-Monthly!AZ358","v":-5.7999999999999972},{"$f":"Monthly!BA359-Monthly!BA358","v":-0.70000000000000284},"--","--",null,null,null,null,null,null,null,null,null,"--","--",null,null,null,null,null,{"$f":"(Monthly!BT359/Monthly!BT358)-1","v":1.0403058873774906E-2},null,null,null,{"$f":"(Monthly!BX359/Monthly!BX358)-1","v":-9.2142857142857193E-2},{"$f":"(Monthly!BY359/Monthly!BY358)-1","v":-7.509293680297402E-2},"--",{"$f":"(Monthly!CA359/Monthly!CA358)-1","v":2.7093916894620262E-2},{"$f":"Monthly!CB359-Monthly!CB358","v":-0.20286605007486891},{"$f":"Monthly!CC359-Monthly!CC358","v":-0.20286605007486891},"--","--",null,"--","--",null,{"$f":"(Monthly!CJ359/Monthly!CJ358)-1","v":-1.6806722689075682E-2},{"$f":"(Monthly!CK359/Monthly!CK358)-1","v":2.2806123686829327E-3},{"$f":"(Monthly!CL359/Monthly!CL358)-1","v":-6.569847856154909E-2},{"$f":"(Monthly!CM359/Monthly!CM358)-1","v":-0.1063829787234043},{"$f":"(Monthly!CN359/Monthly!CN358)-1","v":2.2182637045002895E-3},{"$f":"(Monthly!CO359/Monthly!CO358)-1","v":-9.6010241092381321E-4},{"$f":"(Monthly!CP359/Monthly!CP358)-1","v":8.6726460064914246E-3},{"$f":"(Monthly!CQ359/Monthly!CQ358)-1","v":7.054702656588141E-4},{"$f":"(Monthly!CR359/Monthly!CR358)-1","v":2.3797993085651115E-2},"--","--",null,null,null,null,null,{"$f":"(Monthly!CZ359/Monthly!CZ358)-1","v":3.4602076124568004E-3},{"$f":"(Monthly!DA359/Monthly!DA358)-1","v":4.1528239202657247E-3},null,null,null,null,null,"--",{"$f":"((Monthly!DH359-Monthly!DH358)*60)","v":0},{"$f":"((Monthly!DI359-Monthly!DI358)*100)","v":9.9999999999994316},"--",{"$f":"((Monthly!DK359-Monthly!DK358)*100)","v":0},{"$f":"Monthly!DL359-Monthly!DL358","v":-19},null,null,null,{"$f":"Monthly!DP359-Monthly!DP358","v":94},null,null,null,{"$f":"(Monthly!DT359/Monthly!DT358)-1","v":4.7843137254901968E-2},{"$f":"Monthly!DU359-Monthly!DU358","v":0.20000000000000018},"--","--","--","--","--","--","--","--",null,null,null,null,null,null,null,null,null,null,null,null,null,{"$f":"(Monthly!EQ359/Monthly!EQ358)-1","v":3.8387715930900956E-3},{"$f":"(Monthly!ER359/Monthly!ER358)-1","v":6.1242344706911034E-3},{"$f":"(Monthly!ES359/Monthly!ES358)-1","v":5.3475935828877219E-3},null,null,null,null,null,{"$f":"((Monthly!EY359-Monthly!EY358)*100)","v":0},{"$f":"((Monthly!EZ359-Monthly!EZ358)*100)","v":6.0000000000000497},{"$f":"((Monthly!FA359-Monthly!FA358)*100)","v":-22.999999999999865},{"$f":"((Monthly!FB359-Monthly!FB358)*100)","v":-21.999999999999886},"--",{"$f":"((Monthly!FD359-Monthly!FD358)*100)","v":-22.000000000000064},{"$f":"((Monthly!FE359-Monthly!FE358)*100)","v":4.0000000000000036},{"$f":"((Monthly!FF359-Monthly!FF358)*100)","v":-17.999999999999972},{"$f":"((Monthly!FG359-Monthly!FG358)*100)","v":-23.000000000000043},{"$f":"((Monthly!FH359-Monthly!FH358)*100)","v":-26.999999999999957},{"$f":"((Monthly!FI359-Monthly!FI358)*100)","v":-32.000000000000028},null,null,null,null,null,null,{"$f":"(Monthly!FP359/Monthly!FP358)-1","v":-1.6826003824091829E-2},{"$f":"(Monthly!FQ359/Monthly!FQ358)-1","v":0},"--","--",{"$f":"(Monthly!FT359/Monthly!FT358)-1","v":7.8594071595805559E-3},{"$f":"(Monthly!FU359/Monthly!FU358)-1","v":-6.7463291048897034E-4},{"$f":"(Monthly!FV359/Monthly!FV358)-1","v":-2.5021218254227318E-2},{"$f":"(Monthly!FW359/Monthly!FW358)-1","v":0.48195232690124845},{"$f":"(Monthly!FX359/Monthly!FX358)-1","v":2.0440435750263442E-2},null,null,null,null,null,{"$f":"(Monthly!GD359/Monthly!GD358)-1","v":-4.6981033582738085E-3},"--","--","--",{"$f":"(Monthly!GH359/Monthly!GH358)-1","v":{"$error":"#DIV/0!"}},"--","--","--","--"]
["1988-08-01",null,null,null,{"$f":"(Monthly!E366/Monthly!E365)-1","v":{"$error":"#DIV/0!"}},{"$f":"(Monthly!F366/Monthly!F365)-1","v":{"$error":"#DIV/0!"}},{"$f":"(Monthly!G366/Monthly!G365)-1","v":{"$error":"#DIV/0!"}},{"$f":"(Monthly!H366/Monthly!H365)-1","v":{"$error":"#DIV/0!"}},null,null,null,null,null,null,null,null,null,null,null,null,null,null,null,{"$f":"(Monthly!X366-Monthly!X365)","v":0.40000000000000568},{"$f":"(Monthly!Y366/Monthly!Y365)-1","v":9.6478606613903395E-4},null,null,null,null,null,null,null,null,null,null,null,null,null,{"$f":"(Monthly!AM366/Monthly!AM365)-1","v":4.2706762167241674E-3},{"$f":"(Monthly!AN366/Monthly!AN365)-1","v":8.2860667509332409E-4},"--","--",{"$f":"Monthly!AQ366-Monthly!AQ365","v":-2.2000000000000028},"--","--",{"$f":"Monthly!AT366-Monthly!AT365","v":-1.2999999999999972},{"$f":"Monthly!AU366-Monthly!AU365","v":-7.6000000000000014},"--",{"$f":"Monthly!AW366-Monthly!AW365","v":-5.1000000000000014},{"$f":"Monthly!AX366-Monthly!AX365","v":-1.3999999999999986},{"$f":"Monthly!AY366-Monthly!AY365","v":-2.7999999999999972},{"$f":"Monthly!AZ366-Monthly!AZ365","v":-3.4000000000000057},{"$f":"Monthly!BA366-Monthly!BA365","v":-1},"--","--",null,null,null,null,null,null,null,null,null,"--","--",null,null,null,null,null,{"$f":"(Monthly!BT366/Monthly!BT365)-1","v":5.5306154000265284E-3},null,null,null,{"$f":"(Monthly!BX366/Monthly!BX365)-1","v":1.7723244717109843E-2},{"$f":"(Monthly!BY366/Monthly!BY365)-1","v":1.459346768589298E-2},"--",{"$f":"(Monthly!CA366/Monthly!CA365)-1","v":-1.9317073170731724E-2},{"$f":"Monthly!CB366-Monthly!CB365","v":0.1819332776724405},{"$f":"Monthly!CC366-Monthly!CC365","v":0.32193327767244106},"--","--",null,"--","--",null,{"$f":"(Monthly!CJ366/Monthly!CJ365)-1","v":1.3254786450662692E-2},{"$f":"(Monthly!CK366/Monthly!CK365)-1","v":5.5427466871609266E-3},{"$f":"(Monthly!CL366/Monthly!CL365)-1","v":-1.0299003322259193E-2},{"$f":"(Monthly!CM366/Monthly!CM365)-1","v":4.5240339302544674E-2},{"$f":"(Monthly!CN366/Monthly!CN365)-1","v":3.0007870916961554E-3},{"$f":"(Monthly!CO366/Monthly!CO365)-1","v":-5.987394957983283E-3},{"$f":"(Monthly!CP366/Monthly!CP365)-1","v":7.5722686224102276E-3},{"$f":"(Monthly!CQ366/Monthly!CQ365)-1","v":8.9380093951141326E-4},{"$f":"(Monthly!CR366/Monthly!CR365)-1","v":1.0628706126274645E-2},"--","--",null,null,null,null,null,{"$f":"(Monthly!CZ366/Monthly!CZ365)-1","v":4.2194092827003704E-3},{"$f":"(Monthly!DA366/Monthly!DA365)-1","v":3.2362459546926292E-3},null,null,null,null,null,"--",{"$f":"((Monthly!DH366-Monthly!DH365)*60)","v":-12.000000000000171},{"$f":"((Monthly!DI366-Monthly!DI365)*100)","v":19.999999999998863},"--",{"$f":"((Monthly!DK366-Monthly!DK365)*100)","v":19.999999999999929},{"$f":"Monthly!DL366-Monthly!DL365","v":-35},null,null,null,{"$f":"Monthly!DP366-Monthly!DP365","v":124},null,null,null,{"$f":"(Monthly!DT366/Monthly!DT365)-1","v":-2.129975124378114E-2},{"$f":"Monthly!DU366-Monthly!DU365","v":-0.19999999999999929},"--","--","--","--","--","--","--","--",null,null,null,null,null,null,null,null,null,null,null,null,null,{"$f":"(Monthly!EQ366/Monthly!EQ365)-1","v":9.26784059314123E-4},{"$f":"(Monthly!ER366/Monthly!ER365)-1","v":4.2662116040954601E-3},{"$f":"(Monthly!ES366/Monthly!ES365)-1","v":4.3706293706293753E-3},null,null,null,null,null,{"$f":"((Monthly!EY366-Monthly!EY365)*100)","v":55.000000000000071},{"$f":"((Monthly!EZ366-Monthly!EZ365)*100)","v":25.999999999999979},{"$f":"((Monthly!FA366-Monthly!FA365)*100)","v":14.999999999999858},{"$f":"((Monthly!FB366-Monthly!FB365)*100)","v":10.000000000000142},"--",{"$f":"((Monthly!FD366-Monthly!FD365)*100)","v":16.999999999999993},{"$f":"((Monthly!FE366-Monthly!FE365)*100)","v":32.999999999999915},{"$f":"((Monthly!FF366-Monthly!FF365)*100)","v":41.999999999999993},{"$f":"((Monthly!FG366-Monthly!FG365)*100)","v":35.000000000000142},{"$f":"((Monthly!FH366-Monthly!FH365)*100)","v":27.999999999999936},{"$f":"((Monthly!FI366-Monthly!FI365)*100)","v":19.999999999999929},null,null,null,null,null,null,{"$f":"(Monthly!FP366/Monthly!FP365)-1","v":1.3416149068322891E-2},{"$f":"(Monthly!FQ366/Monthly!FQ365)-1","v":0},"--","--",{"$f":"(Monthly!FT366/Monthly!FT365)-1","v":1.4282360432619434E-2},{"$f":"(Monthly!FU366/Monthly!FU365)-1","v":1.3226589410968437E-2},{"$f":"(Monthly!FV366/Monthly!FV365)-1","v":9.9769882500610141E-2},{"$f":"(Monthly!FW366/Monthly!FW365)-1","v":5.554096638655448E-2},{"$f":"(Monthly!FX366/Monthly!FX365)-1","v":0.19265620373112236},null,null,null,null,null,{"$f":"(Monthly!GD366/Monthly!GD365)-1","v":1.6776358239771749E-3},{"$f":"(Monthly!GE366/Monthly!GE365)-1","v":-1.3413816230717357E-3},"--","--",{"$f":"(Monthly!GH366/Monthly!GH365)-1","v":{"$error":"#DIV/0!"}},"--","--","--","--"]
["1988-11-01",null,null,null,{"$f":"(Monthly!E369/Monthly!E368)-1","v":{"$error":"#DIV/0!"}},{"$f":"(Monthly!F369/Monthly!F368)-1","v":{"$error":"#DIV/0!"}},{"$f":"(Monthly!G369/Monthly!G368)-1","v":{"$error":"#DIV/0!"}},{"$f":"(Monthly!H369/Monthly!H368)-1","v":{"$error":"#DIV/0!"}},null,null,null,null,null,null,null,null,null,null,null,null,null,null,null,{"$f":"(Monthly!X369-Monthly!X368)","v":9.9999999999994316E-2},{"$f":"(Monthly!Y369/Monthly!Y368)-1","v":3.3406536903530792E-3},null,null,null,null,null,null,null,null,null,null,null,null,null,{"$f":"(Monthly!AM369/Monthly!AM368)-1","v":1.5552807352350317E-3},{"$f":"(Monthly!AN369/Monthly!AN368)-1","v":2.9378863604820893E-3},"--","--",{"$f":"Monthly!AQ369-Monthly!AQ368","v":0.20000000000000284},"--","--",{"$f":"Monthly!AT369-Monthly!AT368","v":1.3999999999999986},{"$f":"Monthly!AU369-Monthly!AU368","v":-2.6999999999999957},"--",{"$f":"Monthly!AW369-Monthly!AW368","v":2.3999999999999986},{"$f":"Monthly!AX369-Monthly!AX368","v":1.1999999999999957},{"$f":"Monthly!AY369-Monthly!AY368","v":-0.59999999999999432},{"$f":"Monthly!AZ369-Monthly!AZ368","v":-1.2000000000000028},{"$f":"Monthly!BA369-Monthly!BA368","v":-2.6999999999999957},"--","--",null,null,null,null,null,null,null,null,null,"--","--",null,null,null,null,null,{"$f":"(Monthly!BT369/Monthly!BT368)-1","v":3.7218570479147228E-3},null,null,null,{"$f":"(Monthly!BX369/Monthly!BX368)-1","v":3.088042049934292E-2},{"$f":"(Monthly!BY369/Monthly!BY368)-1","v":-5.2770448548812299E-3},"--",{"$f":"(Monthly!CA369/Monthly!CA368)-1","v":1.5052311846101896E-2},{"$f":"Monthly!CB369-Monthly!CB368","v":-0.11476904528674581},{"$f":"Monthly!CC369-Monthly!CC368","v":-0.18476904528674432},"--","--",null,"--","--",null,{"$f":"(Monthly!CJ369/Monthly!CJ368)-1","v":-0.12534818941504178},{"$f":"(Monthly!CK369/Monthly!CK368)-1","v":2.7600994548233615E-3},{"$f":"(Monthly!CL369/Monthly!CL368)-1","v":-2.3391812865497075E-2},{"$f":"(Monthly!CM369/Monthly!CM368)-1","v":1.7559262510975504E-3},{"$f":"(Monthly!CN369/Monthly!CN368)-1","v":4.0587710041406488E-4},{"$f":"(Monthly!CO369/Monthly!CO368)-1","v":-1.6070280694235883E-3},{"$f":"(Monthly!CP369/Monthly!CP368)-1","v":4.8957086527257054E-3},{"$f":"(Monthly!CQ369/Monthly!CQ368)-1","v":7.7739292531742166E-4},{"$f":"(Monthly!CR369/Monthly!CR368)-1","v":1.7677600383913639E-2},"--","--",null,null,null,null,null,{"$f":"(Monthly!CZ369/Monthly!CZ368)-1","v":3.3361134278564464E-3},{"$f":"(Monthly!DA369/Monthly!DA368)-1","v":3.1948881789136685E-3},null,null,null,null,null,"--",{"$f":"((Monthly!DH369-Monthly!DH368)*60)","v":-12.000000000000171},{"$f":"((Monthly!DI369-Monthly!DI368)*100)","v":20.000000000000284},"--",{"$f":"((Monthly!DK369-Monthly!DK368)*100)","v":-10.000000000000053},{"$f":"Monthly!DL369-Monthly!DL368","v":37},null,null,null,{"$f":"Monthly!DP369-Monthly!DP368","v":339},null,null,null,{"$f":"(Monthly!DT369/Monthly!DT368)-1","v":-3.0885380919698502E-3},{"$f":"Monthly!DU369-Monthly!DU368","v":0.10000000000000053},"--","--","--","--","--","--","--","--",null,null,null,null,null,null,null,null,null,null,null,null,null,{"$f":"(Monthly!EQ369/Monthly!EQ368)-1","v":9.242144177448175E-4},{"$f":"(Monthly!ER369/Monthly!ER368)-1","v":2.5337837837837718E-3},{"$f":"(Monthly!ES369/Monthly!ES368)-1","v":1.7316017316018062E-3},null,null,null,null,null,{"$f":"((Monthly!EY369-Monthly!EY368)*100)","v":5.0000000000000711},{"$f":"((Monthly!EZ369-Monthly!EZ368)*100)","v":4.9999999999998934},{"$f":"((Monthly!FA369-Monthly!FA368)*100)","v":-6.0000000000000497},{"$f":"((Monthly!FB369-Monthly!FB368)*100)","v":7.0000000000000284},"--",{"$f":"((Monthly!FD369-Monthly!FD368)*100)","v":-3.0000000000001137},{"$f":"((Monthly!FE369-Monthly!FE368)*100)","v":41.000000000000014},{"$f":"((Monthly!FF369-Monthly!FF368)*100)","v":37.000000000000099},{"$f":"((Monthly!FG369-Monthly!FG368)*100)","v":32.000000000000028},{"$f":"((Monthly!FH369-Monthly!FH368)*100)","v":27.999999999999936},{"$f":"((Monthly!FI369-Monthly!FI368)*100)","v":16.000000000000014},null,null,null,null,null,null,{"$f":"(Monthly!FP369/Monthly!FP368)-1","v":1.0866860223973429E-2},{"$f":"(Monthly!FQ369/Monthly!FQ368)-1","v":0},"--","--",{"$f":"(Monthly!FT369/Monthly!FT368)-1","v":-1.5780187347619656E-2},{"$f":"(Monthly!FU369/Monthly!FU368)-1","v":-2.7297731596951924E-2},{"$f":"(Monthly!FV369/Monthly!FV368)-1","v":-2.9501941813722121E-2},{"$f":"(Monthly!FW369/Monthly!FW368)-1","v":-4.2206235011990501E-2},{"$f":"(Monthly!FX369/Monthly!FX368)-1","v":2.9224841114947608E-2},null,null,null,null,null,{"$f":"(Monthly!GD369/Monthly!GD368)-1","v":1.2972894622409026E-2},{"$f":"(Monthly!GE369/Monthly!GE368)-1","v":4.9153908138597879E-2},"--","--",{"$f":"(Monthly!GH369/Monthly!GH368)-1","v":{"$error":"#DIV/0!"}},"--","--","--","--"]
["1989-03-01",null,null,null,{"$f":"(Monthly!E373/Monthly!E372)-1","v":{"$error":"#DIV/0!"}},{"$f":"(Monthly!F373/Monthly!F372)-1","v":{"$error":"#DIV/0!"}},{"$f":"(Monthly!G373/Monthly!G372)-1","v":{"$error":"#DIV/0!"}},{"$f":"(Monthly!H373/Monthly!H372)-1","v":{"$error":"#DIV/0!"}},null,null,null,null,null,null,null,null,null,null,null,null,null,null,null,{"$f":"(Monthly!X373-Monthly!X372)","v":9.9999999999994316E-2},{"$f":"(Monthly!Y373/Monthly!Y372)-1","v":-9.7182879478319162E-4},null,null,null,null,null,null,null,null,null,null,null,null,null,{"$f":"(Monthly!AM373/Monthly!AM372)-1","v":2.1866116890012499E-3},{"$f":"(Monthly!AN373/Monthly!AN372)-1","v":-1.5358302209500518E-3},"--","--",{"$f":"Monthly!AQ373-Monthly!AQ372","v":-2.6000000000000014},"--","--",{"$f":"Monthly!AT373-Monthly!AT372","v":0.20000000000000284},{"$f":"Monthly!AU373-Monthly!AU372","v":-7.2000000000000028},"--",{"$f":"Monthly!AW373-Monthly!AW372","v":-0.70000000000000284},{"$f":"Monthly!AX373-Monthly!AX372","v":-5.2999999999999972},{"$f":"Monthly!AY373-Monthly!AY372","v":0},{"$f":"Monthly!AZ373-Monthly!AZ372","v":-2.8999999999999986},{"$f":"Monthly!BA373-Monthly!BA372","v":-1.5},"--","--",null,null,null,null,null,null,null,null,null,"--","--",null,null,null,null,null,{"$f":"(Monthly!BT373/Monthly!BT372)-1","v":5.3423932410117114E-3},null,null,null,{"$f":"(Monthly!BX373/Monthly!BX372)-1","v":-2.1052631578947212E-3},{"$f":"(Monthly!BY373/Monthly!BY372)-1","v":-0.12219812002892261},"--",{"$f":"(Monthly!CA373/Monthly!CA372)-1","v":-2.0861739841832483E-2},{"$f":"Monthly!CB373-Monthly!CB372","v":4.5543793814140088E-2},{"$f":"Monthly!CC373-Monthly!CC372","v":-9.4456206185860481E-2},"--","--",null,"--","--",null,{"$f":"(Monthly!CJ373/Monthly!CJ372)-1","v":-8.8424437299035374E-2},{"$f":"(Monthly!CK373/Monthly!CK372)-1","v":8.9869281045751315E-3},{"$f":"(Monthly!CL373/Monthly!CL372)-1","v":6.8399044205495807E-2},{"$f":"(Monthly!CM373/Monthly!CM372)-1","v":-1.9960079840319334E-2},{"$f":"(Monthly!CN373/Monthly!CN372)-1","v":5.1083318654219223E-3},{"$f":"(Monthly!CO373/Monthly!CO372)-1","v":-1.1279442662833095E-2},{"$f":"(Monthly!CP373/Monthly!CP372)-1","v":9.4638946038811955E-3},{"$f":"(Monthly!CQ373/Monthly!CQ372)-1","v":6.1693820065111815E-4},{"$f":"(Monthly!CR373/Monthly!CR372)-1","v":1.7638800350505468E-2},"--","--",null,null,null,null,null,{"$f":"(Monthly!CZ373/Monthly!CZ372)-1","v":4.9342105263159297E-3},{"$f":"(Monthly!DA373/Monthly!DA372)-1","v":3.9401103230889412E-3},null,null,null,null,null,"--",{"$f":"((Monthly!DH373-Monthly!DH372)*60)","v":0},{"$f":"((Monthly!DI373-Monthly!DI372)*100)","v":0},"--",{"$f":"((Monthly!DK373-Monthly!DK372)*100)","v":-20.000000000000018},{"$f":"Monthly!DL373-Monthly!DL372","v":5},null,null,null,{"$f":"Monthly!DP373-Monthly!DP372","v":193},null,null,null,{"$f":"(Monthly!DT373/Monthly!DT372)-1","v":6.0740740740740762E-2},{"$f":"Monthly!DU373-Monthly!DU372","v":0},"--","--","--","--","--","--","--","--",null,null,null,null,null,null,null,null,null,null,null,null,null,{"$f":"(Monthly!EQ373/Monthly!EQ372)-1","v":6.3176895306860104E-3},{"$f":"(Monthly!ER373/Monthly!ER372)-1","v":1.6597510373443924E-3},{"$f":"(Monthly!ES373/Monthly!ES372)-1","v":1.7050298380221207E-3},null,null,null,null,null,{"$f":"((Monthly!EY373-Monthly!EY372)*100)","v":57.000000000000028},{"$f":"((Monthly!EZ373-Monthly!EZ372)*100)","v":49.000000000000021},{"$f":"((Monthly!FA373-Monthly!FA372)*100)","v":16.000000000000014},{"$f":"((Monthly!FB373-Monthly!FB372)*100)","v":6.0000000000000497},"--",{"$f":"((Monthly!FD373-Monthly!FD372)*100)","v":37.999999999999901},{"$f":"((Monthly!FE373-Monthly!FE372)*100)","v":29.000000000000092},{"$f":"((Monthly!FF373-Monthly!FF372)*100)","v":32.000000000000028},{"$f":"((Monthly!FG373-Monthly!FG372)*100)","v":31.00000000000005},{"$f":"((Monthly!FH373-Monthly!FH372)*100)","v":24.000000000000021},{"$f":"((Monthly!FI373-Monthly!FI372)*100)","v":18.99999999999995},null,null,null,null,null,null,{"$f":"(Monthly!FP373/Monthly!FP372)-1","v":5.2981246320746855E-3},{"$f":"(Monthly!FQ373/Monthly!FQ372)-1","v":0},"--","--",{"$f":"(Monthly!FT373/Monthly!FT372)-1","v":1.6180616127523528E-2},{"$f":"(Monthly!FU373/Monthly!FU372)-1","v":1.457271186328879E-2},{"$f":"(Monthly!FV373/Monthly!FV372)-1","v":7.0440164105416869E-2},{"$f":"(Monthly!FW373/Monthly!FW372)-1","v":-0.16388923693772717},{"$f":"(Monthly!FX373/Monthly!FX372)-1","v":9.3253115599484238E-2},null,null,null,null,null,{"$f":"(Monthly!GD373/Monthly!GD372)-1","v":9.0822394255581695E-2},{"$f":"(Monthly!GE373/Monthly!GE372)-1","v":0.10716400236826518},"--","--",{"$f":"(Monthly!GH373/Monthly!GH372)-1","v":{"$error":"#DIV/0!"}},"--","--","--","--"]
["1989-09-01",null,null,null,{"$f":"(Monthly!E379/Monthly!E378)-1","v":{"$error":"#DIV/0!"}},{"$f":"(Monthly!F379/Monthly!F378)-1","v":{"$error":"#DIV/0!"}},{"$f":"(Monthly!G379/Monthly!G378)-1","v":{"$error":"#DIV/0!"}},{"$f":"(Monthly!H379/Monthly!H378)-1","v":{"$error":"#DIV/0!"}},null,null,null,null,null,null,null,null,null,null,null,null,null,null,null,{"$f":"(Monthly!X379-Monthly!X378)","v":-0.5},{"$f":"(Monthly!Y379/Monthly!Y378)-1","v":3.0274496322293398E-3},null,null,null,null,null,null,null,null,null,null,null,null,null,{"$f":"(Monthly!AM379/Monthly!AM378)-1","v":-3.6031150724306071E-3},{"$f":"(Monthly!AN379/Monthly!AN378)-1","v":-2.5065092167829706E-3},"--","--",{"$f":"Monthly!AQ379-Monthly!AQ378","v":0.89999999999999858},"--","--",{"$f":"Monthly!AT379-Monthly!AT378","v":0.79999999999999716},{"$f":"Monthly!AU379-Monthly!AU378","v":3.9000000000000057},"--",{"$f":"Monthly!AW379-Monthly!AW378","v":1.2999999999999972},{"$f":"Monthly!AX379-Monthly!AX378","v":0.79999999999999716},{"$f":"Monthly!AY379-Monthly!AY378","v":-0.89999999999999858},{"$f":"Monthly!AZ379-Monthly!AZ378","v":1.2999999999999972},{"$f":"Monthly!BA379-Monthly!BA378","v":-0.10000000000000142},"--","--",null,null,null,null,null,null,null,null,null,"--","--",null,null,null,null,null,{"$f":"(Monthly!BT379/Monthly!BT378)-1","v":4.8545317004355937E-3},null,null,null,{"$f":"(Monthly!BX379/Monthly!BX378)-1","v":-3.9789789789789753E-2},{"$f":"(Monthly!BY379/Monthly!BY378)-1","v":-1.4992503748125885E-2},"--",{"$f":"(Monthly!CA379/Monthly!CA378)-1","v":-5.3776025625231094E-2},{"$f":"Monthly!CB379-Monthly!CB378","v":-8.670229598116741E-2},{"$f":"Monthly!CC379-Monthly!CC378","v":-1.6702295981165349E-2},"--","--",null,"--","--",null,{"$f":"(Monthly!CJ379/Monthly!CJ378)-1","v":-8.3213773314203765E-2},{"$f":"(Monthly!CK379/Monthly!CK378)-1","v":4.7421969305052603E-3},{"$f":"(Monthly!CL379/Monthly!CL378)-1","v":6.0479666319082526E-2},{"$f":"(Monthly!CM379/Monthly!CM378)-1","v":-3.400000000000003E-2},{"$f":"(Monthly!CN379/Monthly!CN378)-1","v":2.6145458023785206E-3},{"$f":"(Monthly!CO379/Monthly!CO378)-1","v":5.8769301682415342E-3},{"$f":"(Monthly!CP379/Monthly!CP378)-1","v":3.7818575858945547E-3},{"$f":"(Monthly!CQ379/Monthly!CQ378)-1","v":9.8152868042955532E-4},{"$f":"(Monthly!CR379/Monthly!CR378)-1","v":6.5113597070483031E-3},"--","--",null,null,null,null,null,{"$f":"(Monthly!CZ379/Monthly!CZ378)-1","v":2.4096385542169418E-3},{"$f":"(Monthly!DA379/Monthly!DA378)-1","v":3.0888030888032159E-3},null,null,null,null,null,"--",{"$f":"((Monthly!DH379-Monthly!DH378)*60)","v":-6.0000000000000853},{"$f":"((Monthly!DI379-Monthly!DI378)*100)","v":-9.9999999999994316},"--",{"$f":"((Monthly!DK379-Monthly!DK378)*100)","v":9.9999999999999645},{"$f":"Monthly!DL379-Monthly!DL378","v":-42},null,null,null,{"$f":"Monthly!DP379-Monthly!DP378","v":250},null,null,null,{"$f":"(Monthly!DT379/Monthly!DT378)-1","v":1.6553799849510886E-2},{"$f":"Monthly!DU379-Monthly!DU378","v":-9.9999999999999645E-2},"--","--","--","--","--","--","--","--",null,null,null,null,null,null,null,null,null,null,null,null,null,{"$f":"(Monthly!EQ379/Monthly!EQ378)-1","v":3.5714285714285587E-3},{"$f":"(Monthly!ER379/Monthly!ER378)-1","v":3.2599837000815146E-3},{"$f":"(Monthly!ES379/Monthly!ES378)-1","v":3.3528918692373733E-3},null,null,null,null,null,{"$f":"((Monthly!EY379-Monthly!EY378)*100)","v":0},{"$f":"((Monthly!EZ379-Monthly!EZ378)*100)","v":2.9999999999999361},{"$f":"((Monthly!FA379-Monthly!FA378)*100)","v":4.9999999999998934},{"$f":"((Monthly!FB379-Monthly!FB378)*100)","v":2.9999999999999361},"--",{"$f":"((Monthly!FD379-Monthly!FD378)*100)","v":14.000000000000057},{"$f":"((Monthly!FE379-Monthly!FE378)*100)","v":-15.000000000000036},{"$f":"((Monthly!FF379-Monthly!FF378)*100)","v":4.0000000000000924},{"$f":"((Monthly!FG379-Monthly!FG378)*100)","v":13.999999999999879},{"$f":"((Monthly!FH379-Monthly!FH378)*100)","v":8.0000000000000071},{"$f":"((Monthly!FI379-Monthly!FI378)*100)","v":8.0000000000000071},null,null,null,null,null,null,{"$f":"(Monthly!FP379/Monthly!FP378)-1","v":5.9533934342577144E-3},{"$f":"(Monthly!FQ379/Monthly!FQ378)-1","v":0},"--","--",{"$f":"(Monthly!FT379/Monthly!FT378)-1","v":1.6852196555749099E-2},{"$f":"(Monthly!FU379/Monthly!FU378)-1","v":1.4166731939113886E-2},{"$f":"(Monthly!FV379/Monthly!FV378)-1","v":4.5198816186597046E-2},{"$f":"(Monthly!FW379/Monthly!FW378)-1","v":-7.8383869959362307E-2},{"$f":"(Monthly!FX379/Monthly!FX378)-1","v":-6.3458442768787537E-2},null,null,null,null,null,{"$f":"(Monthly!GD379/Monthly!GD378)-1","v":5.7877119101608976E-2},{"$f":"(Monthly!GE379/Monthly!GE378)-1","v":5.9630292188431744E-2},"--","--",{"$f":"(Monthly!GH379/Monthly!GH378)-1","v":{"$error":"#DIV/0!"}},"--","--","--","--"]
["1990-02-01",null,null,null,{"$f":"(Monthly!E384/Monthly!E383)-1","v":{"$error":"#DIV/0!"}},{"$f":"(Monthly!F384/Monthly!F383)-1","v":{"$error":"#DIV/0!"}},{"$f":"(Monthly!G384/Monthly!G383)-1","v":{"$error":"#DIV/0!"}},{"$f":"(Monthly!H384/Monthly!H383)-1","v":{"$error":"#DIV/0!"}},null,null,null,null,null,null,null,null,null,null,null,null,null,null,null,{"$f":"(Monthly!X384-Monthly!X383)","v":0.59999999999999432},{"$f":"(Monthly!Y384/Monthly!Y383)-1","v":1.2626806835180915E-3},null,null,null,null,null,null,null,null,null,null,null,null,null,{"$f":"(Monthly!AM384/Monthly!AM383)-1","v":1.0024846299816037E-2},{"$f":"(Monthly!AN384/Monthly!AN383)-1","v":1.5057637129950008E-2},"--","--",{"$f":"Monthly!AQ384-Monthly!AQ383","v":1.8999999999999986},"--","--",{"$f":"Monthly!AT384-Monthly!AT383","v":1.1000000000000014},{"$f":"Monthly!AU384-Monthly!AU383","v":0.40000000000000568},{"$f":"Monthly!AV384-Monthly!AV383","v":-1.5},{"$f":"Monthly!AW384-Monthly!AW383","v":-1.3000000000000043},{"$f":"Monthly!AX384-Monthly!AX383","v":3.3999999999999986},{"$f":"Monthly!AY384-Monthly!AY383","v":-6.1999999999999957},{"$f":"Monthly!AZ384-Monthly!AZ383","v":5.3999999999999986},{"$f":"Monthly!BA384-Monthly!BA383","v":-3.8000000000000043},"--","--",null,null,null,null,null,null,null,null,null,"--","--",null,null,null,null,null,{"$f":"(Monthly!BT384/Monthly!BT383)-1","v":2.5236220598068293E-4},null,null,null,{"$f":"(Monthly!BX384/Monthly!BX383)-1","v":-7.3500967117988369E-2},{"$f":"(Monthly!BY384/Monthly!BY383)-1","v":-0.23970251716247137},"--",{"$f":"(Monthly!CA384/Monthly!CA383)-1","v":-0.12142410993129293},{"$f":"Monthly!CB384-Monthly!CB383","v":-3.4861907243367796E-2},{"$f":"Monthly!CC384-Monthly!CC383","v":-0.10486190724336453},"--","--",null,"--","--",null,{"$f":"(Monthly!CJ384/Monthly!CJ383)-1","v":-4.6774193548387077E-2},{"$f":"(Monthly!CK384/Monthly!CK383)-1","v":7.5903312144529611E-3},{"$f":"(Monthly!CL384/Monthly!CL383)-1","v":9.9197431781701262E-2},{"$f":"(Monthly!CM384/Monthly!CM383)-1","v":1.8181818181817189E-3},{"$f":"(Monthly!CN384/Monthly!CN383)-1","v":2.481857308912705E-3},{"$f":"(Monthly!CO384/Monthly!CO383)-1","v":4.4409903408459961E-3},{"$f":"(Monthly!CP384/Monthly!CP383)-1","v":1.3266644511717995E-3},{"$f":"(Monthly!CQ384/Monthly!CQ383)-1","v":6.7562404739018866E-4},{"$f":"(Monthly!CR384/Monthly!CR383)-1","v":1.3373436793520543E-2},"--","--",null,null,null,null,null,{"$f":"(Monthly!CZ384/Monthly!CZ383)-1","v":3.9215686274509665E-3},{"$f":"(Monthly!DA384/Monthly!DA383)-1","v":4.5420136260407862E-3},null,null,null,null,null,"--",{"$f":"((Monthly!DH384-Monthly!DH383)*60)","v":-6.0000000000000853},{"$f":"((Monthly!DI384-Monthly!DI383)*100)","v":-9.9999999999994316},"--",{"$f":"((Monthly!DK384-Monthly!DK383)*100)","v":-10.000000000000053},{"$f":"Monthly!DL384-Monthly!DL383","v":96},null,null,null,{"$f":"Monthly!DP384-Monthly!DP383","v":248},null,null,null,{"$f":"(Monthly!DT384/Monthly!DT383)-1","v":-7.6177285318559385E-3},{"$f":"Monthly!DU384-Monthly!DU383","v":0.20000000000000018},{"$f":"(Monthly!DV384-Monthly!DV383)","v":4.2000000000000455},{"$f":"(Monthly!DW384-Monthly!DW383)","v":3.4000000000000909},{"$f":"(Monthly!DX384-Monthly!DX383)","v":2.6999999999999318},{"$f":"(Monthly!DY384-Monthly!DY383)","v":0.40000000000000568},{"$f":"(Monthly!DZ384-Monthly!DZ383)","v":2.3000000000000682},{"$f":"(Monthly!EA384-Monthly!EA383)","v":1.9000000000000341},{"$f":"(Monthly!EB384-Monthly!EB383)","v":0.40000000000000568},{"$f":"(Monthly!EC384-Monthly!EC383)","v":0.69999999999998863},null,null,null,null,null,null,null,null,null,null,null,null,null,{"$f":"(Monthly!EQ384/Monthly!EQ383)-1","v":-4.3516100957353698E-3},{"$f":"(Monthly!ER384/Monthly!ER383)-1","v":3.2128514056224411E-3},{"$f":"(Monthly!ES384/Monthly!ES383)-1","v":3.3057851239670644E-3},null,null,null,null,null,{"$f":"((Monthly!EY384-Monthly!EY383)*100)","v":-10.999999999999943},{"$f":"((Monthly!EZ384-Monthly!EZ383)*100)","v":0.99999999999997868},{"$f":"((Monthly!FA384-Monthly!FA383)*100)","v":23.000000000000043},{"$f":"((Monthly!FB384-Monthly!FB383)*100)","v":20.000000000000107},"--",{"$f":"((Monthly!FD384-Monthly!FD383)*100)","v":29.999999999999893},{"$f":"((Monthly!FE384-Monthly!FE383)*100)","v":10.000000000000053},{"$f":"((Monthly!FF384-Monthly!FF383)*100)","v":18.99999999999995},{"$f":"((Monthly!FG384-Monthly!FG383)*100)","v":27.999999999999936},{"$f":"((Monthly!FH384-Monthly!FH383)*100)","v":30.000000000000071},{"$f":"((Monthly!FI384-Monthly!FI383)*100)","v":25.999999999999979},null,null,null,null,null,null,{"$f":"(Monthly!FP384/Monthly!FP383)-1","v":2.0904436860068154E-2},{"$f":"(Monthly!FQ384/Monthly!FQ383)-1","v":0},"--","--",{"$f":"(Monthly!FT384/Monthly!FT383)-1","v":1.4097198953439305E-2},{"$f":"(Monthly!FU384/Monthly!FU383)-1","v":4.555936840215935E-4},{"$f":"(Monthly!FV384/Monthly!FV383)-1","v":1.157523165171348E-2},{"$f":"(Monthly!FW384/Monthly!FW383)-1","v":-0.16212798246353588},{"$f":"(Monthly!FX384/Monthly!FX383)-1","v":-2.9828172919381668E-3},null,null,null,null,null,{"$f":"(Monthly!GD384/Monthly!GD383)-1","v":-2.3541363014001004E-2},{"$f":"(Monthly!GE384/Monthly!GE383)-1","v":-6.7764705882352949E-2},{"$f":"(Monthly!GF384/Monthly!GF383)-1","v":-0.11722651636032089},{"$f":"(Monthly!GG384/Monthly!GG383)-1","v":-0.11722651636032089},{"$f":"(Monthly!GH384/Monthly!GH383)-1","v":{"$error":"#DIV/0!"}},"--","--","--","--"]
["1990-07-01",null,null,null,{"$f":"(Monthly!E389/Monthly!E388)-1","v":{"$error":"#DIV/0!"}},{"$f":"(Monthly!F389/Monthly!F388)-1","v":{"$error":"#DIV/0!"}},{"$f":"(Monthly!G389/Monthly!G388)-1","v":{"$error":"#DIV/0!"}},{"$f":"(Monthly!H389/Monthly!H388)-1","v":{"$error":"#DIV/0!"}},null,null,null,null,null,null,null,null,null,null,null,null,null,null,null,{"$f":"(Monthly!X389-Monthly!X388)","v":-0.20000000000000284},{"$f":"(Monthly!Y389/Monthly!Y388)-1","v":-2.4698570662775587E-3},null,null,null,null,null,null,null,null,null,null,null,null,null,{"$f":"(Monthly!AM389/Monthly!AM388)-1","v":-1.1368292630328236E-3},{"$f":"(Monthly!AN389/Monthly!AN388)-1","v":-1.7706244040377461E-3},"--","--",{"$f":"Monthly!AQ389-Monthly!AQ388","v":-2.6000000000000014},"--","--",{"$f":"Monthly!AT389-Monthly!AT388","v":0.89999999999999858},{"$f":"Monthly!AU389-Monthly!AU388","v":1.2000000000000028},{"$f":"Monthly!AV389-Monthly!AV388","v":-0.10000000000000142},{"$f":"Monthly!AW389-Monthly!AW388","v":-3},{"$f":"Monthly!AX389-Monthly!AX388","v":-5.2999999999999972},{"$f":"Monthly!AY389-Monthly!AY388","v":-1.8000000000000043},{"$f":"Monthly!AZ389-Monthly!AZ388","v":-1.5},{"$f":"Monthly!BA389-Monthly!BA388","v":-3.3999999999999986},"--","--",null,null,null,null,null,null,null,null,null,"--","--",null,null,null,null,null,{"$f":"(Monthly!BT389/Monthly!BT388)-1","v":-8.5729513657560874E-3},null,null,null,{"$f":"(Monthly!BX389/Monthly!BX388)-1","v":-5.0977060322854317E-3},{"$f":"(Monthly!BY389/Monthly!BY388)-1","v":-2.7075812274368283E-2},"--",{"$f":"(Monthly!CA389/Monthly!CA388)-1","v":-5.6248647869042712E-3},{"$f":"Monthly!CB389-Monthly!CB388","v":0.44562682640308893},{"$f":"Monthly!CC389-Monthly!CC388","v":0.65562682640308978},"--","--",null,"--","--",null,{"$f":"(Monthly!CJ389/Monthly!CJ388)-1","v":-5.5045871559632475E-3},{"$f":"(Monthly!CK389/Monthly!CK388)-1","v":5.7220819418424274E-3},{"$f":"(Monthly!CL389/Monthly!CL388)-1","v":1.9264448336252071E-2},{"$f":"(Monthly!CM389/Monthly!CM388)-1","v":-2.2598870056497189E-3},{"$f":"(Monthly!CN389/Monthly!CN388)-1","v":3.5984671464623919E-3},{"$f":"(Monthly!CO389/Monthly!CO388)-1","v":3.3890893189023608E-3},{"$f":"(Monthly!CP389/Monthly!CP388)-1","v":4.9755091807410778E-3},{"$f":"(Monthly!CQ389/Monthly!CQ388)-1","v":1.1326841412213629E-3},{"$f":"(Monthly!CR389/Monthly!CR388)-1","v":1.73775440387689E-2},"--","--",null,null,null,null,null,{"$f":"(Monthly!CZ389/Monthly!CZ388)-1","v":4.6189376443417363E-3},{"$f":"(Monthly!DA389/Monthly!DA388)-1","v":5.1813471502590858E-3},null,null,null,null,null,"--",{"$f":"((Monthly!DH389-Monthly!DH388)*60)","v":-11.999999999999744},{"$f":"((Monthly!DI389-Monthly!DI388)*100)","v":9.9999999999994316},"--",{"$f":"((Monthly!DK389-Monthly!DK388)*100)","v":29.999999999999982},{"$f":"Monthly!DL389-Monthly!DL388","v":-72},null,null,null,{"$f":"Monthly!DP389-Monthly!DP388","v":-31},null,null,null,{"$f":"(Monthly!DT389/Monthly!DT388)-1","v":1.7728531855955687E-2},{"$f":"Monthly!DU389-Monthly!DU388","v":0.20000000000000018},{"$f":"(Monthly!DV389-Monthly!DV388)","v":-5.5999999999999091},{"$f":"(Monthly!DW389-Monthly!DW388)","v":-5.7999999999999545},{"$f":"(Monthly!DX389-Monthly!DX388)","v":-6.1000000000000227},{"$f":"(Monthly!DY389-Monthly!DY388)","v":1.4000000000000057},{"$f":"(Monthly!DZ389-Monthly!DZ388)","v":-7.5},{"$f":"(Monthly!EA389-Monthly!EA388)","v":-5.3000000000000114},{"$f":"(Monthly!EB389-Monthly!EB388)","v":-2.1999999999999886},{"$f":"(Monthly!EC389-Monthly!EC388)","v":0.30000000000001137},null,null,null,null,null,null,null,null,null,null,null,null,null,{"$f":"(Monthly!EQ389/Monthly!EQ388)-1","v":1.7497812773403787E-3},{"$f":"(Monthly!ER389/Monthly!ER388)-1","v":1.5822784810126667E-3},{"$f":"(Monthly!ES389/Monthly!ES388)-1","v":3.2653061224490187E-3},null,null,null,null,null,{"$f":"((Monthly!EY389-Monthly!EY388)*100)","v":0},{"$f":"((Monthly!EZ389-Monthly!EZ388)*100)","v":-13.999999999999879},{"$f":"((Monthly!FA389-Monthly!FA388)*100)","v":-1.9999999999999574},{"$f":"((Monthly!FB389-Monthly!FB388)*100)","v":-2.000000000000135},"--",{"$f":"((Monthly!FD389-Monthly!FD388)*100)","v":-12.000000000000099},{"$f":"((Monthly!FE389-Monthly!FE388)*100)","v":-11.000000000000032},{"$f":"((Monthly!FF389-Monthly!FF388)*100)","v":-15.999999999999925},{"$f":"((Monthly!FG389-Monthly!FG388)*100)","v":-18.99999999999995},{"$f":"((Monthly!FH389-Monthly!FH388)*100)","v":-9.9999999999999645},{"$f":"((Monthly!FI389-Monthly!FI388)*100)","v":-0.99999999999997868},null,null,null,null,null,null,{"$f":"(Monthly!FP389/Monthly!FP388)-1","v":-1.3640238704177299E-2},{"$f":"(Monthly!FQ389/Monthly!FQ388)-1","v":0},"--","--",{"$f":"(Monthly!FT389/Monthly!FT388)-1","v":-1.5490632284919648E-2},{"$f":"(Monthly!FU389/Monthly!FU388)-1","v":-2.7282286834957925E-2},{"$f":"(Monthly!FV389/Monthly!FV388)-1","v":-0.15095612777289102},{"$f":"(Monthly!FW389/Monthly!FW388)-1","v":0.13308533252353483},{"$f":"(Monthly!FX389/Monthly!FX388)-1","v":-7.1807441935224592E-2},null,null,null,null,null,{"$f":"(Monthly!GD389/Monthly!GD388)-1","v":0.10473593740738574},{"$f":"(Monthly!GE389/Monthly!GE388)-1","v":0.13708609271523198},{"$f":"(Monthly!GF389/Monthly!GF388)-1","v":1.1687618108618958E-2},{"$f":"(Monthly!GG389/Monthly!GG388)-1","v":1.1687618108618958E-2},{"$f":"(Monthly!GH389/Monthly!GH388)-1","v":{"$error":"#DIV/0!"}},"--","--","--","--"]
["1990-09-01",null,null,null,{"$f":"(Monthly!E391/Monthly!E390)-1","v":{"$error":"#DIV/0!"}},{"$f":"(Monthly!F391/Monthly!F390)-1","v":{"$error":"#DIV/0!"}},{"$f":"(Monthly!G391/Monthly!G390)-1","v":{"$error":"#DIV/0!"}},{"$f":"(Monthly!H391/Monthly!H390)-1","v":{"$error":"#DIV/0!"}},null,null,null,null,null,null,null,null,null,null,null,null,null,null,null,{"$f":"(Monthly!X391-Monthly!X390)","v":0},{"$f":"(Monthly!Y391/Monthly!Y390)-1","v":-1.3813681760005414E-3},null,null,null,null,null,null,null,null,null,null,null,null,null,{"$f":"(Monthly!AM391/Monthly!AM390)-1","v":1.4482726811493318E-3},{"$f":"(Monthly!AN391/Monthly!AN390)-1","v":1.7240048797551033E-4},"--","--",{"$f":"Monthly!AQ391-Monthly!AQ390","v":-1.6000000000000014},"--","--",{"$f":"Monthly!AT391-Monthly!AT390","v":-1.8000000000000043},{"$f":"Monthly!AU391-Monthly!AU390","v":0.10000000000000142},{"$f":"Monthly!AV391-Monthly!AV390","v":-0.89999999999999858},{"$f":"Monthly!AW391-Monthly!AW390","v":-2.2000000000000028},{"$f":"Monthly!AX391-Monthly!AX390","v":-0.60000000000000142},{"$f":"Monthly!AY391-Monthly!AY390","v":17.100000000000001},{"$f":"Monthly!AZ391-Monthly!AZ390","v":-2.3999999999999986},{"$f":"Monthly!BA391-Monthly!BA390","v":-1.2000000000000028},"--","--",null,null,null,null,null,null,null,null,null,"--","--",null,null,null,null,null,{"$f":"(Monthly!BT391/Monthly!BT390)-1","v":6.5296309781337492E-4},null,null,null,{"$f":"(Monthly!BX391/Monthly!BX390)-1","v":-4.484304932735439E-3},{"$f":"(Monthly!BY391/Monthly!BY390)-1","v":-8.6997193638914894E-2},"--",{"$f":"(Monthly!CA391/Monthly!CA390)-1","v":3.2616698571638958E-2},{"$f":"Monthly!CB391-Monthly!CB390","v":0.66706054989189489},{"$f":"Monthly!CC391-Monthly!CC390","v":0.80706054989189724},"--","--",null,"--","--",null,{"$f":"(Monthly!CJ391/Monthly!CJ390)-1","v":-6.0606060606060552E-2},{"$f":"(Monthly!CK391/Monthly!CK390)-1","v":5.9492492614026116E-3},{"$f":"(Monthly!CL391/Monthly!CL390)-1","v":1.1996308828052804E-2},{"$f":"(Monthly!CM391/Monthly!CM390)-1","v":3.7484885126964906E-2},{"$f":"(Monthly!CN391/Monthly!CN390)-1","v":-1.0929473667775635E-4},{"$f":"(Monthly!CO391/Monthly!CO390)-1","v":1.8462206776717061E-3},{"$f":"(Monthly!CP391/Monthly!CP390)-1","v":2.0742901528341129E-3},{"$f":"(Monthly!CQ391/Monthly!CQ390)-1","v":1.2458123535072918E-3},{"$f":"(Monthly!CR391/Monthly!CR390)-1","v":9.939552068305435E-3},"--","--",null,null,null,null,null,{"$f":"(Monthly!CZ391/Monthly!CZ390)-1","v":6.8389057750759541E-3},{"$f":"(Monthly!DA391/Monthly!DA390)-1","v":3.6603221083455484E-3},null,null,null,null,null,"--",{"$f":"((Monthly!DH391-Monthly!DH390)*60)","v":0},{"$f":"((Monthly!DI391-Monthly!DI390)*100)","v":-9.9999999999994316},"--",{"$f":"((Monthly!DK391-Monthly!DK390)*100)","v":20.000000000000018},{"$f":"Monthly!DL391-Monthly!DL390","v":-40},null,null,null,{"$f":"Monthly!DP391-Monthly!DP390","v":-90},null,null,null,{"$f":"(Monthly!DT391/Monthly!DT390)-1","v":1.1538461538461497E-2},{"$f":"Monthly!DU391-Monthly!DU390","v":0.19999999999999929},{"$f":"(Monthly!DV391-Monthly!DV390)","v":-0.90000000000009095},{"$f":"(Monthly!DW391-Monthly!DW390)","v":0.20000000000004547},{"$f":"(Monthly!DX391-Monthly!DX390)","v":-0.19999999999993179},{"$f":"(Monthly!DY391-Monthly!DY390)","v":1},{"$f":"(Monthly!DZ391-Monthly!DZ390)","v":-1.1999999999999318},{"$f":"(Monthly!EA391-Monthly!EA390)","v":-0.89999999999997726},{"$f":"(Monthly!EB391-Monthly!EB390)","v":-0.30000000000001137},{"$f":"(Monthly!EC391-Monthly!EC390)","v":0.40000000000003411},null,null,null,null,null,null,null,null,null,null,null,null,null,{"$f":"(Monthly!EQ391/Monthly!EQ390)-1","v":1.6309012875536544E-2},{"$f":"(Monthly!ER391/Monthly!ER390)-1","v":4.7206923682141522E-3},{"$f":"(Monthly!ES391/Monthly!ES390)-1","v":4.0551500405514584E-3},null,null,null,null,null,{"$f":"((Monthly!EY391-Monthly!EY390)*100)","v":0},{"$f":"((Monthly!EZ391-Monthly!EZ390)*100)","v":6.9999999999998508},{"$f":"((Monthly!FA391-Monthly!FA390)*100)","v":15.000000000000036},{"$f":"((Monthly!FB391-Monthly!FB390)*100)","v":23.000000000000043},"--",{"$f":"((Monthly!FD391-Monthly!FD390)*100)","v":8.0000000000000071},{"$f":"((Monthly!FE391-Monthly!FE390)*100)","v":-8.9999999999999858},{"$f":"((Monthly!FF391-Monthly!FF390)*100)","v":-2.0000000000000462},{"$f":"((Monthly!FG391-Monthly!FG390)*100)","v":1.9999999999999574},{"$f":"((Monthly!FH391-Monthly!FH390)*100)","v":7.0000000000000284},{"$f":"((Monthly!FI391-Monthly!FI390)*100)","v":14.000000000000057},null,null,null,null,null,null,{"$f":"(Monthly!FP391/Monthly!FP390)-1","v":1.1792452830188704E-2},{"$f":"(Monthly!FQ391/Monthly!FQ390)-1","v":6.3372694818264463E-5},"--","--",{"$f":"(Monthly!FT391/Monthly!FT390)-1","v":-7.1393669198067666E-3},{"$f":"(Monthly!FU391/Monthly!FU390)-1","v":-1.3114456635762939E-2},{"$f":"(Monthly!FV391/Monthly!FV390)-1","v":7.8230152746362913E-2},{"$f":"(Monthly!FW391/Monthly!FW390)-1","v":-8.7020272854774983E-2},{"$f":"(Monthly!FX391/Monthly!FX390)-1","v":2.1239351149492602E-2},null,null,null,null,null,{"$f":"(Monthly!GD391/Monthly!GD390)-1","v":0.23967763303157419},{"$f":"(Monthly!GE391/Monthly!GE390)-1","v":0.2845049687154948},{"$f":"(Monthly!GF391/Monthly!GF390)-1","v":9.88947062245491E-2},{"$f":"(Monthly!GG391/Monthly!GG390)-1","v":9.88947062245491E-2},{"$f":"(Monthly!GH391/Monthly!GH390)-1","v":{"$error":"#DIV/0!"}},"--","--","--","--"]
["1991-04-01",null,null,null,{"$f":"(Monthly!E398/Monthly!E397)-1","v":{"$error":"#DIV/0!"}},{"$f":"(Monthly!F398/Monthly!F397)-1","v":{"$error":"#DIV/0!"}},{"$f":"(Monthly!G398/Monthly!G397)-1","v":{"$error":"#DIV/0!"}},{"$f":"(Monthly!H398/Monthly!H397)-1","v":{"$error":"#DIV/0!"}},null,null,null,null,null,null,null,null,null,null,null,null,null,null,null,{"$f":"(Monthly!X398-Monthly!X397)","v":0.10000000000000853},{"$f":"(Monthly!Y398/Monthly!Y397)-1","v":-6.2758680830474756E-3},null,null,null,null,null,null,null,null,null,null,null,null,null,{"$f":"(Monthly!AM398/Monthly!AM397)-1","v":1.9831321634242727E-3},{"$f":"(Monthly!AN398/Monthly!AN397)-1","v":3.5297887294827301E-3},"--","--",{"$f":"Monthly!AQ398-Monthly!AQ397","v":2.0999999999999943},"--","--",{"$f":"Monthly!AT398-Monthly!AT397","v":2.1999999999999957},{"$f":"Monthly!AU398-Monthly!AU397","v":-2},{"$f":"Monthly!AV398-Monthly!AV397","v":-0.59999999999999432},{"$f":"Monthly!AW398-Monthly!AW397","v":-4},{"$f":"Monthly!AX398-Monthly!AX397","v":3.7000000000000028},{"$f":"Monthly!AY398-Monthly!AY397","v":-2.4000000000000057},{"$f":"Monthly!AZ398-Monthly!AZ397","v":3.2999999999999972},{"$f":"Monthly!BA398-Monthly!BA397","v":1.1000000000000014},"--","--",null,null,null,null,null,null,null,null,null,"--","--",null,null,null,null,null,{"$f":"(Monthly!BT398/Monthly!BT397)-1","v":-1.2559910477005776E-3},null,null,null,{"$f":"(Monthly!BX398/Monthly!BX397)-1","v":8.6862106406080386E-2},{"$f":"(Monthly!BY398/Monthly!BY397)-1","v":5.4884742041712009E-3},"--",{"$f":"(Monthly!CA398/Monthly!CA397)-1","v":-6.2698161065313895E-2},{"$f":"Monthly!CB398-Monthly!CB397","v":-0.11122067693262139},{"$f":"Monthly!CC398-Monthly!CC397","v":-0.18122067693262167},"--","--",null,"--","--",null,{"$f":"(Monthly!CJ398/Monthly!CJ397)-1","v":1.9723865877712132E-3},{"$f":"(Monthly!CK398/Monthly!CK397)-1","v":5.2488180142640228E-3},{"$f":"(Monthly!CL398/Monthly!CL397)-1","v":8.682266009852202E-2},{"$f":"(Monthly!CM398/Monthly!CM397)-1","v":9.2000000000000082E-2},{"$f":"(Monthly!CN398/Monthly!CN397)-1","v":3.4582042374737831E-3},{"$f":"(Monthly!CO398/Monthly!CO397)-1","v":1.2693039983076027E-2},{"$f":"(Monthly!CP398/Monthly!CP397)-1","v":-6.591189628081251E-4},{"$f":"(Monthly!CQ398/Monthly!CQ397)-1","v":1.0738116748292281E-3},{"$f":"(Monthly!CR398/Monthly!CR397)-1","v":7.7098275487681445E-3},"--","--",null,null,null,null,null,{"$f":"(Monthly!CZ398/Monthly!CZ397)-1","v":2.225519287833766E-3},{"$f":"(Monthly!DA398/Monthly!DA397)-1","v":2.846975088967918E-3},null,null,null,null,null,"--",{"$f":"((Monthly!DH398-Monthly!DH397)*60)","v":-6.0000000000000853},{"$f":"((Monthly!DI398-Monthly!DI397)*100)","v":10.000000000000853},"--",{"$f":"((Monthly!DK398-Monthly!DK397)*100)","v":-9.9999999999999645},{"$f":"Monthly!DL398-Monthly!DL397","v":-47},null,null,null,{"$f":"Monthly!DP398-Monthly!DP397","v":-212},null,null,null,{"$f":"(Monthly!DT398/Monthly!DT397)-1","v":-6.2876052948255157E-2},{"$f":"Monthly!DU398-Monthly!DU397","v":-0.10000000000000053},{"$f":"(Monthly!DV398-Monthly!DV397)","v":0.20000000000004547},{"$f":"(Monthly!DW398-Monthly!DW397)","v":3},{"$f":"(Monthly!DX398-Monthly!DX397)","v":1.9000000000000909},{"$f":"(Monthly!DY398-Monthly!DY397)","v":1},{"$f":"(Monthly!DZ398-Monthly!DZ397)","v":0.89999999999997726},{"$f":"(Monthly!EA398-Monthly!EA397)","v":0.69999999999998863},{"$f":"(Monthly!EB398-Monthly!EB397)","v":0.19999999999998863},{"$f":"(Monthly!EC398-Monthly!EC397)","v":1.1000000000000227},null,null,null,null,null,null,null,null,null,null,null,null,null,{"$f":"(Monthly!EQ398/Monthly!EQ397)-1","v":-1.7211703958691649E-3},{"$f":"(Monthly!ER398/Monthly!ER397)-1","v":2.3059185242122471E-3},{"$f":"(Monthly!ES398/Monthly!ES397)-1","v":7.9365079365079083E-4},null,null,null,null,null,{"$f":"((Monthly!EY398-Monthly!EY397)*100)","v":0},{"$f":"((Monthly!EZ398-Monthly!EZ397)*100)","v":-20.999999999999996},{"$f":"((Monthly!FA398-Monthly!FA397)*100)","v":-7.0000000000000284},{"$f":"((Monthly!FB398-Monthly!FB397)*100)","v":-15.000000000000036},"--",{"$f":"((Monthly!FD398-Monthly!FD397)*100)","v":-0.99999999999997868},{"$f":"((Monthly!FE398-Monthly!FE397)*100)","v":-25.999999999999979},{"$f":"((Monthly!FF398-Monthly!FF397)*100)","v":-16.000000000000014},{"$f":"((Monthly!FG398-Monthly!FG397)*100)","v":-14.999999999999947},{"$f":"((Monthly!FH398-Monthly!FH397)*100)","v":-6.9999999999999396},{"$f":"((Monthly!FI398-Monthly!FI397)*100)","v":-7.0000000000000284},null,null,null,null,null,null,{"$f":"(Monthly!FP398/Monthly!FP397)-1","v":-3.1973729692361674E-3},{"$f":"(Monthly!FQ398/Monthly!FQ397)-1","v":7.9271088019559066E-3},"--","--",{"$f":"(Monthly!FT398/Monthly!FT397)-1","v":1.5971132042560621E-2},{"$f":"(Monthly!FU398/Monthly!FU397)-1","v":1.9210442750861922E-2},{"$f":"(Monthly!FV398/Monthly!FV397)-1","v":4.2735610793566359E-2},{"$f":"(Monthly!FW398/Monthly!FW397)-1","v":0.13332649081391779},{"$f":"(Monthly!FX398/Monthly!FX397)-1","v":0.11194587414909529},null,null,null,null,null,{"$f":"(Monthly!GD398/Monthly!GD397)-1","v":4.8489425981873113E-2},{"$f":"(Monthly!GE398/Monthly!GE397)-1","v":5.24109014675056E-3},{"$f":"(Monthly!GF398/Monthly!GF397)-1","v":-1.4315847395451331E-2},{"$f":"(Monthly!GG398/Monthly!GG397)-1","v":-1.4315847395451331E-2},{"$f":"(Monthly!GH398/Monthly!GH397)-1","v":{"$error":"#DIV/0!"}},"--","--",{"$f":"(Monthly!GK398/Monthly!GK397)-1","v":-0.11611893583724575},"--"]
["1991-08-01",null,null,null,{"$f":"(Monthly!E402/Monthly!E401)-1","v":{"$error":"#DIV/0!"}},{"$f":"(Monthly!F402/Monthly!F401)-1","v":{"$error":"#DIV/0!"}},{"$f":"(Monthly!G402/Monthly!G401)-1","v":{"$error":"#DIV/0!"}},{"$f":"(Monthly!H402/Monthly!H401)-1","v":{"$error":"#DIV/0!"}},null,null,null,null,null,null,null,null,null,null,null,null,null,null,null,{"$f":"(Monthly!X402-Monthly!X401)","v":0},{"$f":"(Monthly!Y402/Monthly!Y401)-1","v":-7.8031373322968722E-3},null,null,null,null,null,null,null,null,null,null,null,null,null,{"$f":"(Monthly!AM402/Monthly!AM401)-1","v":7.4291293969386274E-4},{"$f":"(Monthly!AN402/Monthly!AN401)-1","v":1.56532897101469E-3},"--","--",{"$f":"Monthly!AQ402-Monthly!AQ401","v":2.2999999999999972},"--","--",{"$f":"Monthly!AT402-Monthly!AT401","v":2.7000000000000028},{"$f":"Monthly!AU402-Monthly!AU401","v":3.7000000000000028},{"$f":"Monthly!AV402-Monthly!AV401","v":1.8999999999999986},{"$f":"Monthly!AW402-Monthly!AW401","v":-0.10000000000000142},{"$f":"Monthly!AX402-Monthly!AX401","v":4.5},{"$f":"Monthly!AY402-Monthly!AY401","v":3.3999999999999986},{"$f":"Monthly!AZ402-Monthly!AZ401","v":2.5999999999999943},{"$f":"Monthly!BA402-Monthly!BA401","v":-1.3000000000000043},"--","--",null,null,null,null,null,null,null,null,null,"--","--",null,null,null,null,null,{"$f":"(Monthly!BT402/Monthly!BT401)-1","v":-2.3757320418873462E-3},null,null,null,{"$f":"(Monthly!BX402/Monthly!BX401)-1","v":-1.3170272812793926E-2},{"$f":"(Monthly!BY402/Monthly!BY401)-1","v":-2.9804727646454254E-2},"--",{"$f":"(Monthly!CA402/Monthly!CA401)-1","v":-3.0607439962329397E-2},{"$f":"Monthly!CB402-Monthly!CB401","v":-0.46842399468959073},{"$f":"Monthly!CC402-Monthly!CC401","v":-0.39842399468959222},"--","--",null,"--","--",null,{"$f":"(Monthly!CJ402/Monthly!CJ401)-1","v":2.9354207436399271E-2},{"$f":"(Monthly!CK402/Monthly!CK401)-1","v":3.9058647150493897E-3},{"$f":"(Monthly!CL402/Monthly!CL401)-1","v":4.5882352941176485E-2},{"$f":"(Monthly!CM402/Monthly!CM401)-1","v":-5.636978579481422E-3},{"$f":"(Monthly!CN402/Monthly!CN401)-1","v":1.8965302823030772E-3},{"$f":"(Monthly!CO402/Monthly!CO401)-1","v":6.4405756264465097E-3},{"$f":"(Monthly!CP402/Monthly!CP401)-1","v":-2.4945661069346592E-3},{"$f":"(Monthly!CQ402/Monthly!CQ401)-1","v":1.2386929816603498E-3},{"$f":"(Monthly!CR402/Monthly!CR401)-1","v":8.5621844211913878E-3},"--","--",null,null,null,null,null,{"$f":"(Monthly!CZ402/Monthly!CZ401)-1","v":2.936857562408246E-3},{"$f":"(Monthly!DA402/Monthly!DA401)-1","v":4.2164441321153046E-3},null,null,null,null,null,"--",{"$f":"((Monthly!DH402-Monthly!DH401)*60)","v":0},{"$f":"((Monthly!DI402-Monthly!DI401)*100)","v":-9.9999999999994316},"--",{"$f":"((Monthly!DK402-Monthly!DK401)*100)","v":10.000000000000053},{"$f":"Monthly!DL402-Monthly!DL401","v":10},null,null,null,{"$f":"Monthly!DP402-Monthly!DP401","v":10},null,null,null,{"$f":"(Monthly!DT402/Monthly!DT401)-1","v":1.847465656087155E-2},{"$f":"Monthly!DU402-Monthly!DU401","v":0.29999999999999982},{"$f":"(Monthly!DV402-Monthly!DV401)","v":1},{"$f":"(Monthly!DW402-Monthly!DW401)","v":4.2999999999999545},{"$f":"(Monthly!DX402-Monthly!DX401)","v":3.5},{"$f":"(Monthly!DY402-Monthly!DY401)","v":0.5},{"$f":"(Monthly!DZ402-Monthly!DZ401)","v":3},{"$f":"(Monthly!EA402-Monthly!EA401)","v":2.1000000000000227},{"$f":"(Monthly!EB402-Monthly!EB401)","v":0.90000000000000568},{"$f":"(Monthly!EC402-Monthly!EC401)","v":0.79999999999995453},null,null,null,null,null,null,null,null,null,null,null,null,null,{"$f":"(Monthly!EQ402/Monthly!EQ401)-1","v":8.6132644272196579E-4},{"$f":"(Monthly!ER402/Monthly!ER401)-1","v":2.2900763358779663E-3},{"$f":"(Monthly!ES402/Monthly!ES401)-1","v":7.8926598263606706E-4},null,null,null,null,null,{"$f":"((Monthly!EY402-Monthly!EY401)*100)","v":0},{"$f":"((Monthly!EZ402-Monthly!EZ401)*100)","v":-16.000000000000014},{"$f":"((Monthly!FA402-Monthly!FA401)*100)","v":-25},{"$f":"((Monthly!FB402-Monthly!FB401)*100)","v":-24.000000000000021},"--",{"$f":"((Monthly!FD402-Monthly!FD401)*100)","v":-33.999999999999986},{"$f":"((Monthly!FE402-Monthly!FE401)*100)","v":-25},{"$f":"((Monthly!FF402-Monthly!FF401)*100)","v":-52.999999999999936},{"$f":"((Monthly!FG402-Monthly!FG401)*100)","v":-49.000000000000021},{"$f":"((Monthly!FH402-Monthly!FH401)*100)","v":-48.000000000000043},{"$f":"((Monthly!FI402-Monthly!FI401)*100)","v":-36.999999999999922},null,null,null,null,null,null,{"$f":"(Monthly!FP402/Monthly!FP401)-1","v":-3.5673888453841007E-3},{"$f":"(Monthly!FQ402/Monthly!FQ401)-1","v":5.9598085411494139E-4},"--","--",{"$f":"(Monthly!FT402/Monthly!FT401)-1","v":-6.7427494503193852E-3},{"$f":"(Monthly!FU402/Monthly!FU401)-1","v":-1.2836662402620158E-2},{"$f":"(Monthly!FV402/Monthly!FV401)-1","v":7.5250133935681918E-2},{"$f":"(Monthly!FW402/Monthly!FW401)-1","v":3.2649459519082269E-2},{"$f":"(Monthly!FX402/Monthly!FX401)-1","v":6.5610129849181353E-2},null,null,null,null,null,{"$f":"(Monthly!GD402/Monthly!GD401)-1","v":1.2511671335200703E-2},{"$f":"(Monthly!GE402/Monthly!GE401)-1","v":1.9072164948453763E-2},{"$f":"(Monthly!GF402/Monthly!GF401)-1","v":3.3402587590896315E-2},{"$f":"(Monthly!GG402/Monthly!GG401)-1","v":3.3402587590896315E-2},{"$f":"(Monthly!GH402/Monthly!GH401)-1","v":{"$error":"#DIV/0!"}},"--","--",{"$f":"(Monthly!GK402/Monthly!GK401)-1","v":5.3834808259586975E-2},"--"]
["1992-02-01",null,null,null,{"$f":"(Monthly!E408/Monthly!E407)-1","v":{"$error":"#DIV/0!"}},{"$f":"(Monthly!F408/Monthly!F407)-1","v":{"$error":"#DIV/0!"}},{"$f":"(Monthly!G408/Monthly!G407)-1","v":{"$error":"#DIV/0!"}},{"$f":"(Monthly!H408/Monthly!H407)-1","v":{"$error":"#DIV/0!"}},null,null,null,null,null,null,null,null,null,null,null,null,null,null,null,{"$f":"(Monthly!X408-Monthly!X407)","v":0.39999999999999147},{"$f":"(Monthly!Y408/Monthly!Y407)-1","v":-6.3116330305372781E-3},null,null,null,null,null,null,null,null,null,null,null,null,null,{"$f":"(Monthly!AM408/Monthly!AM407)-1","v":6.9957230014465743E-3},{"$f":"(Monthly!AN408/Monthly!AN407)-1","v":9.6443610422149995E-3},{"$f":"(Monthly!AO408/Monthly!AO407)-1","v":1.6170119055129994E-3},{"$f":"((Monthly!AP408-Monthly!AP407)*100)","v":0},{"$f":"Monthly!AQ408-Monthly!AQ407","v":5.4000000000000057},"--","--",{"$f":"Monthly!AT408-Monthly!AT407","v":3.2999999999999972},{"$f":"Monthly!AU408-Monthly!AU407","v":2.8000000000000043},{"$f":"Monthly!AV408-Monthly!AV407","v":0.20000000000000284},{"$f":"Monthly!AW408-Monthly!AW407","v":-0.10000000000000142},{"$f":"Monthly!AX408-Monthly!AX407","v":8.6999999999999957},{"$f":"Monthly!AY408-Monthly!AY407","v":0.5},{"$f":"Monthly!AZ408-Monthly!AZ407","v":8.3000000000000043},{"$f":"Monthly!BA408-Monthly!BA407","v":0.59999999999999432},"--","--",null,null,null,null,null,null,null,null,null,{"$f":"(Monthly!BM408/Monthly!BM407)-1","v":1.0787223539305835E-3},{"$f":"(Monthly!BN408/Monthly!BN407)-1","v":2.4300095975169356E-3},null,null,null,null,null,{"$f":"(Monthly!BT408/Monthly!BT407)-1","v":-4.1140010174826047E-3},null,null,null,{"$f":"(Monthly!BX408/Monthly!BX407)-1","v":6.2925170068027114E-2},{"$f":"(Monthly!BY408/Monthly!BY407)-1","v":6.4066852367687943E-2},"--",{"$f":"(Monthly!CA408/Monthly!CA407)-1","v":2.6764777229724146E-2},{"$f":"Monthly!CB408-Monthly!CB407","v":0.24638530727693109},{"$f":"Monthly!CC408-Monthly!CC407","v":0.31638530727692959},"--","--",null,"--","--",null,{"$f":"(Monthly!CJ408/Monthly!CJ407)-1","v":-5.473372781065089E-2},{"$f":"(Monthly!CK408/Monthly!CK407)-1","v":8.0120275568071886E-3},{"$f":"(Monthly!CL408/Monthly!CL407)-1","v":4.9370764762826758E-2},{"$f":"(Monthly!CM408/Monthly!CM407)-1","v":0.13725490196078427},{"$f":"(Monthly!CN408/Monthly!CN407)-1","v":5.0783670631620037E-3},{"$f":"(Monthly!CO408/Monthly!CO407)-1","v":2.1228630471538779E-2},{"$f":"(Monthly!CP408/Monthly!CP407)-1","v":8.2317176579671525E-4},{"$f":"(Monthly!CQ408/Monthly!CQ407)-1","v":9.1687760075864766E-4},{"$f":"(Monthly!CR408/Monthly!CR407)-1","v":4.1283185090423835E-3},"--","--",null,null,null,null,null,{"$f":"(Monthly!CZ408/Monthly!CZ407)-1","v":2.1691973969630851E-3},{"$f":"(Monthly!DA408/Monthly!DA407)-1","v":2.0675396278428959E-3},null,null,null,null,null,"--",{"$f":"((Monthly!DH408-Monthly!DH407)*60)","v":0},{"$f":"((Monthly!DI408-Monthly!DI407)*100)","v":-9.9999999999994316},"--",{"$f":"((Monthly!DK408-Monthly!DK407)*100)","v":10.000000000000053},{"$f":"Monthly!DL408-Monthly!DL407","v":-10},null,null,null,{"$f":"Monthly!DP408-Monthly!DP407","v":-61},null,null,null,{"$f":"(Monthly!DT408/Monthly!DT407)-1","v":6.2642369020500244E-3},{"$f":"Monthly!DU408-Monthly!DU407","v":9.9999999999999645E-2},{"$f":"(Monthly!DV408-Monthly!DV407)","v":-1.7000000000000455},{"$f":"(Monthly!DW408-Monthly!DW407)","v":-1.2999999999999545},{"$f":"(Monthly!DX408-Monthly!DX407)","v":-0.69999999999993179},{"$f":"(Monthly!DY408-Monthly!DY407)","v":-0.5},{"$f":"(Monthly!DZ408-Monthly!DZ407)","v":-0.20000000000004547},{"$f":"(Monthly!EA408-Monthly!EA407)","v":0},{"$f":"(Monthly!EB408-Monthly!EB407)","v":-0.19999999999998863},{"$f":"(Monthly!EC408-Monthly!EC407)","v":-0.59999999999996589},null,null,null,null,null,null,null,null,null,null,null,null,null,{"$f":"(Monthly!EQ408/Monthly!EQ407)-1","v":3.4602076124568004E-3},{"$f":"(Monthly!ER408/Monthly!ER407)-1","v":7.518796992480592E-4},{"$f":"(Monthly!ES408/Monthly!ES407)-1","v":7.8003120124825465E-4},null,null,null,null,null,{"$f":"((Monthly!EY408-Monthly!EY407)*100)","v":0},{"$f":"((Monthly!EZ408-Monthly!EZ407)*100)","v":2.9999999999999361},{"$f":"((Monthly!FA408-Monthly!FA407)*100)","v":8.9999999999999858},{"$f":"((Monthly!FB408-Monthly!FB407)*100)","v":9.9999999999999645},"--",{"$f":"((Monthly!FD408-Monthly!FD407)*100)","v":33.000000000000007},{"$f":"((Monthly!FE408-Monthly!FE407)*100)","v":4.0000000000000036},{"$f":"((Monthly!FF408-Monthly!FF407)*100)","v":13.999999999999968},{"$f":"((Monthly!FG408-Monthly!FG407)*100)","v":25},{"$f":"((Monthly!FH408-Monthly!FH407)*100)","v":33.999999999999986},{"$f":"((Monthly!FI408-Monthly!FI407)*100)","v":30.999999999999961},null,null,null,null,null,null,{"$f":"(Monthly!FP408/Monthly!FP407)-1","v":2.1951430299887775E-2},{"$f":"(Monthly!FQ408/Monthly!FQ407)-1","v":2.8928192171078226E-3},"--","--",{"$f":"(Monthly!FT408/Monthly!FT407)-1","v":1.6601664870269817E-2},{"$f":"(Monthly!FU408/Monthly!FU407)-1","v":2.062698656524109E-2},{"$f":"(Monthly!FV408/Monthly!FV407)-1","v":6.7451461727292994E-2},{"$f":"(Monthly!FW408/Monthly!FW407)-1","v":-0.11445153194604196},{"$f":"(Monthly!FX408/Monthly!FX407)-1","v":4.7641963426371614E-2},null,null,null,null,null,{"$f":"(Monthly!GD408/Monthly!GD407)-1","v":9.2986184909671366E-3},{"$f":"(Monthly!GE408/Monthly!GE407)-1","v":-6.0572687224669242E-3},{"$f":"(Monthly!GF408/Monthly!GF407)-1","v":-6.2200056459960074E-3},{"$f":"(Monthly!GG408/Monthly!GG407)-1","v":-6.2200056459960074E-3},{"$f":"(Monthly!GH408/Monthly!GH407)-1","v":{"$error":"#DIV/0!"}},"--","--",{"$f":"(Monthly!GK408/Monthly!GK407)-1","v":1.6909620991253593E-2},"--"]
["1992-03-01",null,null,null,{"$f":"(Monthly!E409/Monthly!E408)-1","v":{"$error":"#DIV/0!"}},{"$f":"(Monthly!F409/Monthly!F408)-1","v":{"$error":"#DIV/0!"}},{"$f":"(Monthly!G409/Monthly!G408)-1","v":{"$error":"#DIV/0!"}},{"$f":"(Monthly!H409/Monthly!H408)-1","v":{"$error":"#DIV/0!"}},null,null,null,null,null,null,null,null,null,null,null,null,null,null,null,{"$f":"(Monthly!X409-Monthly!X408)","v":0.60000000000000853},{"$f":"(Monthly!Y409/Monthly!Y408)-1","v":-3.8246139221260744E-3},null,null,null,null,null,null,null,null,null,null,null,null,null,{"$f":"(Monthly!AM409/Monthly!AM408)-1","v":8.688197698658362E-3},{"$f":"(Monthly!AN409/Monthly!AN408)-1","v":1.0648475728251894E-2},{"$f":"(Monthly!AO409/Monthly!AO408)-1","v":3.8550472586056372E-3},{"$f":"((Monthly!AP409-Monthly!AP408)*100)","v":-3.0000000000000027},{"$f":"Monthly!AQ409-Monthly!AQ408","v":1.8999999999999986},"--","--",{"$f":"Monthly!AT409-Monthly!AT408","v":-0.19999999999999574},{"$f":"Monthly!AU409-Monthly!AU408","v":0},{"$f":"Monthly!AV409-Monthly!AV408","v":2.5999999999999943},{"$f":"Monthly!AW409-Monthly!AW408","v":0.29999999999999716},{"$f":"Monthly!AX409-Monthly!AX408","v":5},{"$f":"Monthly!AY409-Monthly!AY408","v":2.2000000000000028},{"$f":"Monthly!AZ409-Monthly!AZ408","v":1},{"$f":"Monthly!BA409-Monthly!BA408","v":1},"--",{"$f":"(Monthly!BC409/Monthly!BC408)-1","v":4.1379921434267608E-2},null,null,null,null,null,null,null,null,null,{"$f":"(Monthly!BM409/Monthly!BM408)-1","v":-3.1230975283087492E-3},{"$f":"(Monthly!BN409/Monthly!BN408)-1","v":-2.9809193997419881E-3},null,null,null,null,null,{"$f":"(Monthly!BT409/Monthly!BT408)-1","v":-4.6274566855285526E-3},null,null,null,{"$f":"(Monthly!BX409/Monthly!BX408)-1","v":3.7600000000000078E-2},{"$f":"(Monthly!BY409/Monthly!BY408)-1","v":-5.5846422338568957E-2},"--",{"$f":"(Monthly!CA409/Monthly!CA408)-1","v":-8.3477713025673639E-3},{"$f":"Monthly!CB409-Monthly!CB408","v":0.37091988130564246},{"$f":"Monthly!CC409-Monthly!CC408","v":0.37091988130564246},"--","--",null,"--","--",null,{"$f":"(Monthly!CJ409/Monthly!CJ408)-1","v":-0.13458528951486703},{"$f":"(Monthly!CK409/Monthly!CK408)-1","v":4.2479279551419502E-3},{"$f":"(Monthly!CL409/Monthly!CL408)-1","v":1.8450184501843658E-3},{"$f":"(Monthly!CM409/Monthly!CM408)-1","v":-5.8983666061706019E-2},{"$f":"(Monthly!CN409/Monthly!CN408)-1","v":1.4586685514068609E-3},{"$f":"(Monthly!CO409/Monthly!CO408)-1","v":1.490066225165565E-2},{"$f":"(Monthly!CP409/Monthly!CP408)-1","v":-2.4798646991830431E-4},{"$f":"(Monthly!CQ409/Monthly!CQ408)-1","v":9.982462184083829E-4},{"$f":"(Monthly!CR409/Monthly!CR408)-1","v":1.02671061208226E-3},"--","--",null,null,null,null,null,{"$f":"(Monthly!CZ409/Monthly!CZ408)-1","v":3.6075036075036149E-3},{"$f":"(Monthly!DA409/Monthly!DA408)-1","v":3.4387895460796791E-3},null,null,null,null,null,"--",{"$f":"((Monthly!DH409-Monthly!DH408)*60)","v":0},{"$f":"((Monthly!DI409-Monthly!DI408)*100)","v":20.000000000000284},"--",{"$f":"((Monthly!DK409-Monthly!DK408)*100)","v":0},{"$f":"Monthly!DL409-Monthly!DL408","v":-24},null,null,null,{"$f":"Monthly!DP409-Monthly!DP408","v":55},null,null,null,{"$f":"(Monthly!DT409/Monthly!DT408)-1","v":-2.1165817770232076E-2},{"$f":"Monthly!DU409-Monthly!DU408","v":0.10000000000000142},{"$f":"(Monthly!DV409-Monthly!DV408)","v":1.6000000000001364},{"$f":"(Monthly!DW409-Monthly!DW408)","v":2.2000000000000455},{"$f":"(Monthly!DX409-Monthly!DX408)","v":1.3999999999999773},{"$f":"(Monthly!DY409-Monthly!DY408)","v":0.69999999999998863},{"$f":"(Monthly!DZ409-Monthly!DZ408)","v":0.70000000000004547},{"$f":"(Monthly!EA409-Monthly!EA408)","v":0.5},{"$f":"(Monthly!EB409-Monthly!EB408)","v":0.19999999999998863},{"$f":"(Monthly!EC409-Monthly!EC408)","v":0.79999999999995453},null,null,null,null,null,null,null,null,null,null,null,null,null,{"$f":"(Monthly!EQ409/Monthly!EQ408)-1","v":8.6206896551721535E-4},{"$f":"(Monthly!ER409/Monthly!ER408)-1","v":2.2539444027047661E-3},{"$f":"(Monthly!ES409/Monthly!ES408)-1","v":2.3382696804363778E-3},null,null,null,null,null,{"$f":"((Monthly!EY409-Monthly!EY408)*100)","v":0},{"$f":"((Monthly!EZ409-Monthly!EZ408)*100)","v":-7.9999999999999627},{"$f":"((Monthly!FA409-Monthly!FA408)*100)","v":6.0000000000000497},{"$f":"((Monthly!FB409-Monthly!FB408)*100)","v":1.9999999999999574},"--",{"$f":"((Monthly!FD409-Monthly!FD408)*100)","v":17.999999999999972},{"$f":"((Monthly!FE409-Monthly!FE408)*100)","v":20.000000000000018},{"$f":"((Monthly!FF409-Monthly!FF408)*100)","v":33.999999999999986},{"$f":"((Monthly!FG409-Monthly!FG408)*100)","v":48.000000000000043},{"$f":"((Monthly!FH409-Monthly!FH408)*100)","v":37.000000000000014},{"$f":"((Monthly!FI409-Monthly!FI408)*100)","v":20.000000000000018},null,null,null,null,null,null,{"$f":"(Monthly!FP409/Monthly!FP408)-1","v":8.7103594080337743E-3},{"$f":"(Monthly!FQ409/Monthly!FQ408)-1","v":1.7343362056374545E-3},"--","--",{"$f":"(Monthly!FT409/Monthly!FT408)-1","v":2.2385267736157122E-2},{"$f":"(Monthly!FU409/Monthly!FU408)-1","v":2.5614584060586809E-2},{"$f":"(Monthly!FV409/Monthly!FV408)-1","v":0.12069461140437987},{"$f":"(Monthly!FW409/Monthly!FW408)-1","v":-0.14872763771624264},{"$f":"(Monthly!FX409/Monthly!FX408)-1","v":0.12708620425662231},null,null,null,null,null,{"$f":"(Monthly!GD409/Monthly!GD408)-1","v":-4.1589892076863144E-3},{"$f":"(Monthly!GE409/Monthly!GE408)-1","v":-2.3268698060941895E-2},{"$f":"(Monthly!GF409/Monthly!GF408)-1","v":8.1432453673468963E-4},{"$f":"(Monthly!GG409/Monthly!GG408)-1","v":8.1432453673468963E-4},{"$f":"(Monthly!GH409/Monthly!GH408)-1","v":{"$error":"#DIV/0!"}},"--","--",{"$f":"(Monthly!GK409/Monthly!GK408)-1","v":-9.8337155963302725E-2},"--"]
["1992-07-01",null,null,null,{"$f":"(Monthly!E413/Monthly!E412)-1","v":{"$error":"#DIV/0!"}},{"$f":"(Monthly!F413/Monthly!F412)-1","v":{"$error":"#DIV/0!"}},{"$f":"(Monthly!G413/Monthly!G412)-1","v":{"$error":"#DIV/0!"}},{"$f":"(Monthly!H413/Monthly!H412)-1","v":{"$error":"#DIV/0!"}},null,null,null,null,null,null,null,null,null,null,null,null,null,null,null,{"$f":"(Monthly!X413-Monthly!X412)","v":0.5},{"$f":"(Monthly!Y413/Monthly!Y412)-1","v":-3.0003210945831471E-3},null,null,null,null,null,null,null,null,null,null,null,null,null,{"$f":"(Monthly!AM413/Monthly!AM412)-1","v":8.9500533725803688E-3},{"$f":"(Monthly!AN413/Monthly!AN412)-1","v":9.2083566849268106E-3},{"$f":"(Monthly!AO413/Monthly!AO412)-1","v":5.5309761478177233E-3},{"$f":"((Monthly!AP413-Monthly!AP412)*100)","v":-1.0000000000000009},{"$f":"Monthly!AQ413-Monthly!AQ412","v":0.29999999999999716},"--","--",{"$f":"Monthly!AT413-Monthly!AT412","v":-1.1000000000000014},{"$f":"Monthly!AU413-Monthly!AU412","v":2.1000000000000014},{"$f":"Monthly!AV413-Monthly!AV412","v":0.60000000000000142},{"$f":"Monthly!AW413-Monthly!AW412","v":3.7999999999999972},{"$f":"Monthly!AX413-Monthly!AX412","v":-0.29999999999999716},{"$f":"Monthly!AY413-Monthly!AY412","v":2.3000000000000043},{"$f":"Monthly!AZ413-Monthly!AZ412","v":-0.20000000000000284},{"$f":"Monthly!BA413-Monthly!BA412","v":1.7000000000000028},"--",{"$f":"(Monthly!BC413/Monthly!BC412)-1","v":-1.0091092565319704E-3},null,null,null,null,null,null,null,null,null,{"$f":"(Monthly!BM413/Monthly!BM412)-1","v":7.2667943021589299E-3},{"$f":"(Monthly!BN413/Monthly!BN412)-1","v":6.5945361464680996E-3},null,null,null,null,null,{"$f":"(Monthly!BT413/Monthly!BT412)-1","v":-2.8498397402688669E-3},null,null,null,{"$f":"(Monthly!BX413/Monthly!BX412)-1","v":-5.2401746724890508E-3},{"$f":"(Monthly!BY413/Monthly!BY412)-1","v":3.0274361400189242E-2},"--",{"$f":"(Monthly!CA413/Monthly!CA412)-1","v":-5.384095517008336E-2},{"$f":"Monthly!CB413-Monthly!CB412","v":4.2415997235922376E-2},{"$f":"Monthly!CC413-Monthly!CC412","v":-2.7584002764076132E-2},"--","--",null,"--","--",null,{"$f":"(Monthly!CJ413/Monthly!CJ412)-1","v":5.2013422818791843E-2},{"$f":"(Monthly!CK413/Monthly!CK412)-1","v":2.3788887454589958E-3},{"$f":"(Monthly!CL413/Monthly!CL412)-1","v":-4.7681254082299174E-2},{"$f":"(Monthly!CM413/Monthly!CM412)-1","v":-1.501501501501501E-2},{"$f":"(Monthly!CN413/Monthly!CN412)-1","v":-7.2681964489662576E-4},{"$f":"(Monthly!CO413/Monthly!CO412)-1","v":6.9695632995148138E-3},{"$f":"(Monthly!CP413/Monthly!CP412)-1","v":9.9325666647809285E-4},{"$f":"(Monthly!CQ413/Monthly!CQ412)-1","v":1.188671377182926E-3},{"$f":"(Monthly!CR413/Monthly!CR412)-1","v":4.0634248909166004E-4},"--","--",null,null,null,null,null,{"$f":"(Monthly!CZ413/Monthly!CZ412)-1","v":2.855103497501732E-3},{"$f":"(Monthly!DA413/Monthly!DA412)-1","v":3.3990482664854049E-3},null,null,null,null,null,"--",{"$f":"((Monthly!DH413-Monthly!DH412)*60)","v":0},{"$f":"((Monthly!DI413-Monthly!DI412)*100)","v":0},"--",{"$f":"((Monthly!DK413-Monthly!DK412)*100)","v":-9.9999999999999645},{"$f":"Monthly!DL413-Monthly!DL412","v":-7},null,null,null,{"$f":"Monthly!DP413-Monthly!DP412","v":73},null,null,null,{"$f":"(Monthly!DT413/Monthly!DT412)-1","v":4.7880597014925419E-2},{"$f":"Monthly!DU413-Monthly!DU412","v":-9.9999999999999645E-2},{"$f":"(Monthly!DV413-Monthly!DV412)","v":-2.4000000000000909},{"$f":"(Monthly!DW413-Monthly!DW412)","v":2.2999999999999545},{"$f":"(Monthly!DX413-Monthly!DX412)","v":-0.30000000000006821},{"$f":"(Monthly!DY413-Monthly!DY412)","v":2.8999999999999773},{"$f":"(Monthly!DZ413-Monthly!DZ412)","v":-3.1999999999999318},{"$f":"(Monthly!EA413-Monthly!EA412)","v":-2.3000000000000114},{"$f":"(Monthly!EB413-Monthly!EB412)","v":-0.89999999999997726},{"$f":"(Monthly!EC413-Monthly!EC412)","v":2.6000000000000227},null,null,null,null,null,null,null,null,null,null,null,null,null,{"$f":"(Monthly!EQ413/Monthly!EQ412)-1","v":-8.474576271185752E-4},{"$f":"(Monthly!ER413/Monthly!ER412)-1","v":1.4914243102164271E-3},{"$f":"(Monthly!ES413/Monthly!ES412)-1","v":7.7519379844948055E-4},null,null,null,null,null,{"$f":"((Monthly!EY413-Monthly!EY412)*100)","v":-48.000000000000043},{"$f":"((Monthly!EZ413-Monthly!EZ412)*100)","v":-50.999999999999979},{"$f":"((Monthly!FA413-Monthly!FA412)*100)","v":-15.000000000000036},{"$f":"((Monthly!FB413-Monthly!FB412)*100)","v":-21.000000000000085},"--",{"$f":"((Monthly!FD413-Monthly!FD412)*100)","v":-37.999999999999901},{"$f":"((Monthly!FE413-Monthly!FE412)*100)","v":-45.000000000000014},{"$f":"((Monthly!FF413-Monthly!FF412)*100)","v":-56.999999999999986},{"$f":"((Monthly!FG413-Monthly!FG412)*100)","v":-68.999999999999943},{"$f":"((Monthly!FH413-Monthly!FH412)*100)","v":-64.000000000000057},{"$f":"((Monthly!FI413-Monthly!FI412)*100)","v":-41.999999999999993},null,null,null,null,null,null,{"$f":"(Monthly!FP413/Monthly!FP412)-1","v":-3.0100334448160959E-3},{"$f":"(Monthly!FQ413/Monthly!FQ412)-1","v":-5.9934782212667237E-3},"--","--",{"$f":"(Monthly!FT413/Monthly!FT412)-1","v":-1.2352398802271125E-2},{"$f":"(Monthly!FU413/Monthly!FU412)-1","v":-2.3353001012574315E-2},{"$f":"(Monthly!FV413/Monthly!FV412)-1","v":-0.17604888539924213},{"$f":"(Monthly!FW413/Monthly!FW412)-1","v":0.14895374449339216},{"$f":"(Monthly!FX413/Monthly!FX412)-1","v":-9.1059287030564873E-2},null,null,null,null,null,{"$f":"(Monthly!GD413/Monthly!GD412)-1","v":-2.7530726256983273E-2},{"$f":"(Monthly!GE413/Monthly!GE412)-1","v":-4.3478260869565299E-2},{"$f":"(Monthly!GF413/Monthly!GF412)-1","v":2.6965956811835223E-3},{"$f":"(Monthly!GG413/Monthly!GG412)-1","v":2.6965956811835223E-3},{"$f":"(Monthly!GH413/Monthly!GH412)-1","v":{"$error":"#DIV/0!"}},"--","--",{"$f":"(Monthly!GK413/Monthly!GK412)-1","v":1.4566642388929463E-2},"--"]
["1993-02-01",null,null,null,{"$f":"(Monthly!E420/Monthly!E419)-1","v":{"$error":"#DIV/0!"}},{"$f":"(Monthly!F420/Monthly!F419)-1","v":{"$error":"#DIV/0!"}},{"$f":"(Monthly!G420/Monthly!G419)-1","v":{"$error":"#DIV/0!"}},{"$f":"(Monthly!H420/Monthly!H419)-1","v":{"$error":"#DIV/0!"}},null,null,null,null,null,null,null,null,null,null,null,null,null,null,null,{"$f":"(Monthly!X420-Monthly!X419)","v":0.20000000000000284},{"$f":"(Monthly!Y420/Monthly!Y419)-1","v":-3.3641745387422706E-3},null,null,null,null,null,null,null,null,null,null,null,null,null,{"$f":"(Monthly!AM420/Monthly!AM419)-1","v":4.3515736295833829E-3},{"$f":"(Monthly!AN420/Monthly!AN419)-1","v":2.1365834246604987E-3},{"$f":"(Monthly!AO420/Monthly!AO419)-1","v":2.5239385403021952E-3},{"$f":"((Monthly!AP420-Monthly!AP419)*100)","v":0},{"$f":"Monthly!AQ420-Monthly!AQ419","v":-0.59999999999999432},{"$f":"Monthly!AR420-Monthly!AR419","v":-0.5},"--",{"$f":"Monthly!AT420-Monthly!AT419","v":0.10000000000000142},{"$f":"Monthly!AU420-Monthly!AU419","v":-0.19999999999999574},{"$f":"Monthly!AV420-Monthly!AV419","v":0.10000000000000142},{"$f":"Monthly!AW420-Monthly!AW419","v":-0.69999999999999574},{"$f":"Monthly!AX420-Monthly!AX419","v":-3.2999999999999972},{"$f":"Monthly!AY420-Monthly!AY419","v":4.1000000000000014},{"$f":"Monthly!AZ420-Monthly!AZ419","v":2},{"$f":"Monthly!BA420-Monthly!BA419","v":-0.59999999999999432},"--",{"$f":"(Monthly!BC420/Monthly!BC419)-1","v":-2.1327717934180868E-3},null,null,null,null,null,null,null,null,null,{"$f":"(Monthly!BM420/Monthly!BM419)-1","v":-7.4709558025565226E-3},{"$f":"(Monthly!BN420/Monthly!BN419)-1","v":-7.8273289953975089E-3},null,null,null,null,null,{"$f":"(Monthly!BT420/Monthly!BT419)-1","v":3.8551622805105268E-3},null,null,null,{"$f":"(Monthly!BX420/Monthly!BX419)-1","v":0},{"$f":"(Monthly!BY420/Monthly!BY419)-1","v":-2.4638912489379772E-2},"--",{"$f":"(Monthly!CA420/Monthly!CA419)-1","v":-3.7519896915030659E-2},{"$f":"Monthly!CB420-Monthly!CB419","v":-0.20704284869144196},{"$f":"Monthly!CC420-Monthly!CC419","v":-0.34704284869144431},"--","--",null,"--","--",null,{"$f":"(Monthly!CJ420/Monthly!CJ419)-1","v":1.3422818791946289E-2},{"$f":"(Monthly!CK420/Monthly!CK419)-1","v":5.0901608274218635E-3},{"$f":"(Monthly!CL420/Monthly!CL419)-1","v":2.0879390813067999E-2},{"$f":"(Monthly!CM420/Monthly!CM419)-1","v":-2.5664527956003713E-2},{"$f":"(Monthly!CN420/Monthly!CN419)-1","v":3.4591380122468429E-3},{"$f":"(Monthly!CO420/Monthly!CO419)-1","v":1.6001347481890971E-3},{"$f":"(Monthly!CP420/Monthly!CP419)-1","v":5.8486981874039667E-3},{"$f":"(Monthly!CQ420/Monthly!CQ419)-1","v":9.2779081409788411E-4},{"$f":"(Monthly!CR420/Monthly!CR419)-1","v":9.0268574365077736E-3},"--","--",null,null,null,null,null,{"$f":"(Monthly!CZ420/Monthly!CZ419)-1","v":2.1008403361342243E-3},{"$f":"(Monthly!DA420/Monthly!DA419)-1","v":3.3311125916055673E-3},null,null,null,null,null,"--",{"$f":"((Monthly!DH420-Monthly!DH419)*60)","v":0},{"$f":"((Monthly!DI420-Monthly!DI419)*100)","v":0},"--",{"$f":"((Monthly!DK420-Monthly!DK419)*100)","v":-20.000000000000018},{"$f":"Monthly!DL420-Monthly!DL419","v":14},null,null,null,{"$f":"Monthly!DP420-Monthly!DP419","v":243},null,null,null,{"$f":"(Monthly!DT420/Monthly!DT419)-1","v":-4.1066282420749278E-2},{"$f":"Monthly!DU420-Monthly!DU419","v":-9.9999999999999645E-2},{"$f":"(Monthly!DV420-Monthly!DV419)","v":-3.2000000000000455},{"$f":"(Monthly!DW420-Monthly!DW419)","v":-2.8000000000001819},{"$f":"(Monthly!DX420-Monthly!DX419)","v":-1.8000000000000682},{"$f":"(Monthly!DY420-Monthly!DY419)","v":-0.79999999999998295},{"$f":"(Monthly!DZ420-Monthly!DZ419)","v":-1},{"$f":"(Monthly!EA420-Monthly!EA419)","v":-0.59999999999996589},{"$f":"(Monthly!EB420-Monthly!EB419)","v":-0.40000000000000568},{"$f":"(Monthly!EC420-Monthly!EC419)","v":-1},null,null,null,null,null,null,null,null,null,null,null,null,null,{"$f":"(Monthly!EQ420/Monthly!EQ419)-1","v":3.3898305084745228E-3},{"$f":"(Monthly!ER420/Monthly!ER419)-1","v":2.2123893805310324E-3},{"$f":"(Monthly!ES420/Monthly!ES419)-1","v":2.3006134969323355E-3},null,null,null,null,null,{"$f":"((Monthly!EY420-Monthly!EY419)*100)","v":0},{"$f":"((Monthly!EZ420-Monthly!EZ419)*100)","v":0.99999999999997868},{"$f":"((Monthly!FA420-Monthly!FA419)*100)","v":-20.000000000000018},{"$f":"((Monthly!FB420-Monthly!FB419)*100)","v":-27.999999999999936},"--",{"$f":"((Monthly!FD420-Monthly!FD419)*100)","v":-33.999999999999986},{"$f":"((Monthly!FE420-Monthly!FE419)*100)","v":-6.999999999999984},{"$f":"((Monthly!FF420-Monthly!FF419)*100)","v":-10.999999999999988},{"$f":"((Monthly!FG420-Monthly!FG419)*100)","v":-29.000000000000004},{"$f":"((Monthly!FH420-Monthly!FH419)*100)","v":-40.000000000000036},{"$f":"((Monthly!FI420-Monthly!FI419)*100)","v":-33.999999999999986},null,null,null,null,null,null,{"$f":"(Monthly!FP420/Monthly!FP419)-1","v":-1.3850849049221403E-2},{"$f":"(Monthly!FQ420/Monthly!FQ419)-1","v":1.3495743650078218E-3},"--","--",{"$f":"(Monthly!FT420/Monthly!FT419)-1","v":6.6095707071631704E-3},{"$f":"(Monthly!FU420/Monthly!FU419)-1","v":-1.8032412441715273E-4},{"$f":"(Monthly!FV420/Monthly!FV419)-1","v":7.7182735340969311E-2},{"$f":"(Monthly!FW420/Monthly!FW419)-1","v":-0.14865606143719134},{"$f":"(Monthly!FX420/Monthly!FX419)-1","v":6.9883051393011764E-2},null,null,null,null,null,{"$f":"(Monthly!GD420/Monthly!GD419)-1","v":5.1271297509829727E-2},{"$f":"(Monthly!GE420/Monthly!GE419)-1","v":6.2104657849338496E-2},{"$f":"(Monthly!GF420/Monthly!GF419)-1","v":1.2909412806116904E-4},{"$f":"(Monthly!GG420/Monthly!GG419)-1","v":1.2909412806116904E-4},{"$f":"(Monthly!GH420/Monthly!GH419)-1","v":{"$error":"#DIV/0!"}},"--","--",{"$f":"(Monthly!GK420/Monthly!GK419)-1","v":0.16405500479693003},"--"]
["1993-05-01",null,null,null,{"$f":"(Monthly!E423/Monthly!E422)-1","v":{"$error":"#DIV/0!"}},{"$f":"(Monthly!F423/Monthly!F422)-1","v":{"$error":"#DIV/0!"}},{"$f":"(Monthly!G423/Monthly!G422)-1","v":{"$error":"#DIV/0!"}},{"$f":"(Monthly!H423/Monthly!H422)-1","v":{"$error":"#DIV/0!"}},null,null,null,null,null,null,null,null,null,null,null,null,null,null,null,{"$f":"(Monthly!X423-Monthly!X422)","v":-0.30000000000001137},{"$f":"(Monthly!Y423/Monthly!Y422)-1","v":3.9818312941002354E-3},null,null,null,null,null,null,null,null,null,null,null,null,null,{"$f":"(Monthly!AM423/Monthly!AM422)-1","v":-3.2312363754241069E-3},{"$f":"(Monthly!AN423/Monthly!AN422)-1","v":-5.3874825063893184E-4},{"$f":"(Monthly!AO423/Monthly!AO422)-1","v":6.0345540216588667E-4},{"$f":"((Monthly!AP423-Monthly!AP422)*100)","v":-2.0000000000000018},{"$f":"Monthly!AQ423-Monthly!AQ422","v":1},{"$f":"Monthly!AR423-Monthly!AR422","v":0.5},"--",{"$f":"Monthly!AT423-Monthly!AT422","v":-1.1999999999999957},{"$f":"Monthly!AU423-Monthly!AU422","v":0.70000000000000284},{"$f":"Monthly!AV423-Monthly!AV422","v":-2.7000000000000028},{"$f":"Monthly!AW423-Monthly!AW422","v":9.9999999999994316E-2},{"$f":"Monthly!AX423-Monthly!AX422","v":2.2000000000000028},{"$f":"Monthly!AY423-Monthly!AY422","v":-4.2000000000000028},{"$f":"Monthly!AZ423-Monthly!AZ422","v":3.3999999999999986},{"$f":"Monthly!BA423-Monthly!BA422","v":-1.2999999999999972},"--",{"$f":"(Monthly!BC423/Monthly!BC422)-1","v":3.7106734872378588E-3},null,null,null,null,null,null,null,null,null,{"$f":"(Monthly!BM423/Monthly!BM422)-1","v":9.4984329565639403E-3},{"$f":"(Monthly!BN423/Monthly!BN422)-1","v":1.0239251301919605E-2},null,null,null,null,null,{"$f":"(Monthly!BT423/Monthly!BT422)-1","v":9.0818188635852781E-3},null,null,null,{"$f":"(Monthly!BX423/Monthly!BX422)-1","v":1.5898251192367763E-3},{"$f":"(Monthly!BY423/Monthly!BY422)-1","v":7.2463768115942351E-3},"--",{"$f":"(Monthly!CA423/Monthly!CA422)-1","v":-1.6157358623112295E-3},{"$f":"Monthly!CB423-Monthly!CB422","v":6.4803755536834373E-2},{"$f":"Monthly!CC423-Monthly!CC422","v":6.4803755536834373E-2},"--","--",null,"--","--",null,{"$f":"(Monthly!CJ423/Monthly!CJ422)-1","v":-0.10699001426533528},{"$f":"(Monthly!CK423/Monthly!CK422)-1","v":2.6162635485076358E-3},{"$f":"(Monthly!CL423/Monthly!CL422)-1","v":-5.308429589579744E-2},{"$f":"(Monthly!CM423/Monthly!CM422)-1","v":1.6216216216216273E-2},{"$f":"(Monthly!CN423/Monthly!CN422)-1","v":-1.6701094361182278E-3},{"$f":"(Monthly!CO423/Monthly!CO422)-1","v":9.5895020188425661E-3},{"$f":"(Monthly!CP423/Monthly!CP422)-1","v":2.683722454710491E-6},{"$f":"(Monthly!CQ423/Monthly!CQ422)-1","v":1.0253879898540763E-3},{"$f":"(Monthly!CR423/Monthly!CR422)-1","v":5.2077507499754816E-3},"--","--",null,null,null,null,null,{"$f":"(Monthly!CZ423/Monthly!CZ422)-1","v":2.7816411682890507E-3},{"$f":"(Monthly!DA423/Monthly!DA422)-1","v":2.6420079260238705E-3},null,null,null,null,null,"--",{"$f":"((Monthly!DH423-Monthly!DH422)*60)","v":-6.0000000000000853},{"$f":"((Monthly!DI423-Monthly!DI422)*100)","v":30.000000000001137},"--",{"$f":"((Monthly!DK423-Monthly!DK422)*100)","v":0},{"$f":"Monthly!DL423-Monthly!DL422","v":-6},null,null,null,{"$f":"Monthly!DP423-Monthly!DP422","v":267},null,null,null,{"$f":"(Monthly!DT423/Monthly!DT422)-1","v":-3.1430584918957005E-2},{"$f":"Monthly!DU423-Monthly!DU422","v":-0.30000000000000071},{"$f":"(Monthly!DV423-Monthly!DV422)","v":4},{"$f":"(Monthly!DW423-Monthly!DW422)","v":13.900000000000091},{"$f":"(Monthly!DX423-Monthly!DX422)","v":8.7999999999999545},{"$f":"(Monthly!DY423-Monthly!DY422)","v":4.0999999999999943},{"$f":"(Monthly!DZ423-Monthly!DZ422)","v":4.7000000000000455},{"$f":"(Monthly!EA423-Monthly!EA422)","v":3.3999999999999773},{"$f":"(Monthly!EB423-Monthly!EB422)","v":1.2999999999999829},{"$f":"(Monthly!EC423-Monthly!EC422)","v":5.0999999999999659},null,null,null,null,null,null,null,null,null,null,null,null,null,{"$f":"(Monthly!EQ423/Monthly!EQ422)-1","v":3.3528918692373733E-3},{"$f":"(Monthly!ER423/Monthly!ER422)-1","v":7.3260073260073E-4},{"$f":"(Monthly!ES423/Monthly!ES422)-1","v":7.6277650648348683E-4},null,null,null,null,null,{"$f":"((Monthly!EY423-Monthly!EY422)*100)","v":0},{"$f":"((Monthly!EZ423-Monthly!EZ422)*100)","v":4.0000000000000036},{"$f":"((Monthly!FA423-Monthly!FA422)*100)","v":-3.0000000000000249},{"$f":"((Monthly!FB423-Monthly!FB422)*100)","v":7.0000000000000284},"--",{"$f":"((Monthly!FD423-Monthly!FD422)*100)","v":0},{"$f":"((Monthly!FE423-Monthly!FE422)*100)","v":8.9999999999999858},{"$f":"((Monthly!FF423-Monthly!FF422)*100)","v":11.999999999999966},{"$f":"((Monthly!FG423-Monthly!FG422)*100)","v":14.000000000000012},{"$f":"((Monthly!FH423-Monthly!FH422)*100)","v":7.0000000000000284},{"$f":"((Monthly!FI423-Monthly!FI422)*100)","v":7.0000000000000284},null,null,null,null,null,null,{"$f":"(Monthly!FP423/Monthly!FP422)-1","v":6.1009428729894566E-3},{"$f":"(Monthly!FQ423/Monthly!FQ422)-1","v":3.3215621831403919E-3},"--","--",{"$f":"(Monthly!FT423/Monthly!FT422)-1","v":4.4548703597144801E-3},{"$f":"(Monthly!FU423/Monthly!FU422)-1","v":-3.7242618608166467E-3},{"$f":"(Monthly!FV423/Monthly!FV422)-1","v":5.8891213389120622E-3},{"$f":"(Monthly!FW423/Monthly!FW422)-1","v":6.7376364371378505E-2},{"$f":"(Monthly!FX423/Monthly!FX422)-1","v":-2.7213925899430724E-2},null,null,null,null,null,{"$f":"(Monthly!GD423/Monthly!GD422)-1","v":-1.6280217069560843E-2},{"$f":"(Monthly!GE423/Monthly!GE422)-1","v":-8.5698982324584616E-3},{"$f":"(Monthly!GF423/Monthly!GF422)-1","v":-2.521702058180586E-3},{"$f":"(Monthly!GG423/Monthly!GG422)-1","v":-2.521702058180586E-3},{"$f":"(Monthly!GH423/Monthly!GH422)-1","v":{"$error":"#DIV/0!"}},"--","--",{"$f":"(Monthly!GK423/Monthly!GK422)-1","v":3.2743067156699057E-2},"--"]
["1993-09-01",null,null,null,{"$f":"(Monthly!E427/Monthly!E426)-1","v":{"$error":"#DIV/0!"}},{"$f":"(Monthly!F427/Monthly!F426)-1","v":{"$error":"#DIV/0!"}},{"$f":"(Monthly!G427/Monthly!G426)-1","v":{"$error":"#DIV/0!"}},{"$f":"(Monthly!H427/Monthly!H426)-1","v":{"$error":"#DIV/0!"}},null,null,null,null,null,null,null,null,null,null,null,null,null,null,null,{"$f":"(Monthly!X427-Monthly!X426)","v":0.29999999999999716},{"$f":"(Monthly!Y427/Monthly!Y426)-1","v":-3.8641606880992496E-3},null,null,null,null,null,null,null,null,null,null,null,null,null,{"$f":"(Monthly!AM427/Monthly!AM426)-1","v":4.7615650747228067E-3},{"$f":"(Monthly!AN427/Monthly!AN426)-1","v":6.6747696850670835E-3},{"$f":"(Monthly!AO427/Monthly!AO426)-1","v":4.8313834256870081E-3},{"$f":"((Monthly!AP427-Monthly!AP426)*100)","v":0},{"$f":"Monthly!AQ427-Monthly!AQ426","v":9.9999999999994316E-2},{"$f":"Monthly!AR427-Monthly!AR426","v":-2},"--",{"$f":"Monthly!AT427-Monthly!AT426","v":2.6000000000000014},{"$f":"Monthly!AU427-Monthly!AU426","v":-0.89999999999999858},{"$f":"Monthly!AV427-Monthly!AV426","v":0.5},{"$f":"Monthly!AW427-Monthly!AW426","v":1.8000000000000043},{"$f":"Monthly!AX427-Monthly!AX426","v":-2.6999999999999957},{"$f":"Monthly!AY427-Monthly!AY426","v":-3.2999999999999972},{"$f":"Monthly!AZ427-Monthly!AZ426","v":1.3000000000000043},{"$f":"Monthly!BA427-Monthly!BA426","v":-0.5},"--",{"$f":"(Monthly!BC427/Monthly!BC426)-1","v":-5.0878933577580554E-5},null,null,null,null,null,null,null,null,null,{"$f":"(Monthly!BM427/Monthly!BM426)-1","v":6.1319814933700201E-3},{"$f":"(Monthly!BN427/Monthly!BN426)-1","v":4.8864244788942024E-3},null,null,null,null,null,{"$f":"(Monthly!BT427/Monthly!BT426)-1","v":3.04200870443605E-3},null,null,null,{"$f":"(Monthly!BX427/Monthly!BX426)-1","v":3.3076923076923004E-2},{"$f":"(Monthly!BY427/Monthly!BY426)-1","v":1.7073170731707332E-2},"--",{"$f":"(Monthly!CA427/Monthly!CA426)-1","v":3.0129557095510684E-2},{"$f":"Monthly!CB427-Monthly!CB426","v":-0.17691192577796855},{"$f":"Monthly!CC427-Monthly!CC426","v":-0.24691192577796528},"--","--",null,"--","--",null,{"$f":"(Monthly!CJ427/Monthly!CJ426)-1","v":0.12558139534883717},{"$f":"(Monthly!CK427/Monthly!CK426)-1","v":-1.0218283680696327E-3},{"$f":"(Monthly!CL427/Monthly!CL426)-1","v":-0.10800902425267911},{"$f":"(Monthly!CM427/Monthly!CM426)-1","v":-1.6351118760757344E-2},{"$f":"(Monthly!CN427/Monthly!CN426)-1","v":-2.5780368835048861E-3},{"$f":"(Monthly!CO427/Monthly!CO426)-1","v":1.4879722245184634E-3},{"$f":"(Monthly!CP427/Monthly!CP426)-1","v":7.6327367991411155E-3},{"$f":"(Monthly!CQ427/Monthly!CQ426)-1","v":1.155177574971411E-3},{"$f":"(Monthly!CR427/Monthly!CR426)-1","v":1.0746489113433011E-2},"--","--",null,null,null,null,null,{"$f":"(Monthly!CZ427/Monthly!CZ426)-1","v":1.3812154696131174E-3},{"$f":"(Monthly!DA427/Monthly!DA426)-1","v":6.544502617800152E-4},null,null,null,null,null,"--",{"$f":"((Monthly!DH427-Monthly!DH426)*60)","v":6.0000000000000853},{"$f":"((Monthly!DI427-Monthly!DI426)*100)","v":-20.000000000000284},"--",{"$f":"((Monthly!DK427-Monthly!DK426)*100)","v":-9.9999999999999645},{"$f":"Monthly!DL427-Monthly!DL426","v":28},null,null,null,{"$f":"Monthly!DP427-Monthly!DP426","v":241},null,null,null,{"$f":"(Monthly!DT427/Monthly!DT426)-1","v":-5.8651026392961825E-3},{"$f":"Monthly!DU427-Monthly!DU426","v":0.10000000000000142},{"$f":"(Monthly!DV427-Monthly!DV426)","v":7.5},{"$f":"(Monthly!DW427-Monthly!DW426)","v":5.0999999999999091},{"$f":"(Monthly!DX427-Monthly!DX426)","v":3.4000000000000909},{"$f":"(Monthly!DY427-Monthly!DY426)","v":2},{"$f":"(Monthly!DZ427-Monthly!DZ426)","v":1.4000000000000909},{"$f":"(Monthly!EA427-Monthly!EA426)","v":1},{"$f":"(Monthly!EB427-Monthly!EB426)","v":0.40000000000000568},{"$f":"(Monthly!EC427-Monthly!EC426)","v":1.7000000000000455},null,null,null,null,null,null,null,null,null,null,null,null,null,{"$f":"(Monthly!EQ427/Monthly!EQ426)-1","v":0},{"$f":"(Monthly!ER427/Monthly!ER426)-1","v":0},{"$f":"(Monthly!ES427/Monthly!ES426)-1","v":7.5987841945290846E-4},null,null,null,null,null,{"$f":"((Monthly!EY427-Monthly!EY426)*100)","v":0},{"$f":"((Monthly!EZ427-Monthly!EZ426)*100)","v":6.0000000000000053},{"$f":"((Monthly!FA427-Monthly!FA426)*100)","v":-18.99999999999995},{"$f":"((Monthly!FB427-Monthly!FB426)*100)","v":-25.999999999999979},"--",{"$f":"((Monthly!FD427-Monthly!FD426)*100)","v":-19.000000000000039},{"$f":"((Monthly!FE427-Monthly!FE426)*100)","v":-6.999999999999984},{"$f":"((Monthly!FF427-Monthly!FF426)*100)","v":-8.0000000000000071},{"$f":"((Monthly!FG427-Monthly!FG426)*100)","v":-14.999999999999991},{"$f":"((Monthly!FH427-Monthly!FH426)*100)","v":-29.999999999999982},{"$f":"((Monthly!FI427-Monthly!FI426)*100)","v":-31.99999999999994},null,null,null,null,null,null,{"$f":"(Monthly!FP427/Monthly!FP426)-1","v":1.0321100917431103E-2},{"$f":"(Monthly!FQ427/Monthly!FQ426)-1","v":1.8823610679377101E-3},"--","--",{"$f":"(Monthly!FT427/Monthly!FT426)-1","v":1.8814842952445954E-3},{"$f":"(Monthly!FU427/Monthly!FU426)-1","v":-5.9159829861021862E-3},{"$f":"(Monthly!FV427/Monthly!FV426)-1","v":0.10666332608274787},{"$f":"(Monthly!FW427/Monthly!FW426)-1","v":3.5801818012595632E-2},{"$f":"(Monthly!FX427/Monthly!FX426)-1","v":9.9790980491512471E-2},null,null,null,null,null,{"$f":"(Monthly!GD427/Monthly!GD426)-1","v":-2.7486256871564252E-2},{"$f":"(Monthly!GE427/Monthly!GE426)-1","v":-4.1317365269460948E-2},{"$f":"(Monthly!GF427/Monthly!GF426)-1","v":-1.1304757418747258E-2},{"$f":"(Monthly!GG427/Monthly!GG426)-1","v":3.1113788915771545E-2},{"$f":"(Monthly!GH427/Monthly!GH426)-1","v":{"$error":"#DIV/0!"}},"--","--",{"$f":"(Monthly!GK427/Monthly!GK426)-1","v":-7.7569489334194941E-3},"--"]
["1994-02-01",null,null,null,{"$f":"(Monthly!E432/Monthly!E431)-1","v":{"$error":"#DIV/0!"}},{"$f":"(Monthly!F432/Monthly!F431)-1","v":{"$error":"#DIV/0!"}},{"$f":"(Monthly!G432/Monthly!G431)-1","v":{"$error":"#DIV/0!"}},{"$f":"(Monthly!H432/Monthly!H431)-1","v":{"$error":"#DIV/0!"}},null,null,null,null,null,null,null,null,null,null,null,null,null,null,null,{"$f":"(Monthly!X432-Monthly!X431)","v":-0.20000000000000284},{"$f":"(Monthly!Y432/Monthly!Y431)-1","v":9.8514485987433176E-4},null,null,null,null,null,null,null,null,null,null,null,null,null,{"$f":"(Monthly!AM432/Monthly!AM431)-1","v":1.7238906618732841E-4},{"$f":"(Monthly!AN432/Monthly!AN431)-1","v":1.3188413779599006E-3},{"$f":"(Monthly!AO432/Monthly!AO431)-1","v":5.3752103040893839E-3},{"$f":"((Monthly!AP432-Monthly!AP431)*100)","v":-1.0000000000000009},{"$f":"Monthly!AQ432-Monthly!AQ431","v":0.5},{"$f":"Monthly!AR432-Monthly!AR431","v":-1.5},"--",{"$f":"Monthly!AT432-Monthly!AT431","v":1.2000000000000028},{"$f":"Monthly!AU432-Monthly!AU431","v":3},{"$f":"Monthly!AV432-Monthly!AV431","v":-0.5},{"$f":"Monthly!AW432-Monthly!AW431","v":0.70000000000000284},{"$f":"Monthly!AX432-Monthly!AX431","v":-1.2999999999999972},{"$f":"Monthly!AY432-Monthly!AY431","v":4.1000000000000014},{"$f":"Monthly!AZ432-Monthly!AZ431","v":0.5},{"$f":"Monthly!BA432-Monthly!BA431","v":2.6000000000000014},"--",{"$f":"(Monthly!BC432/Monthly!BC431)-1","v":4.861686892289141E-2},null,null,null,null,null,null,null,null,null,{"$f":"(Monthly!BM432/Monthly!BM431)-1","v":1.5929519035478235E-2},{"$f":"(Monthly!BN432/Monthly!BN431)-1","v":1.2823574362403223E-2},null,null,null,null,null,{"$f":"(Monthly!BT432/Monthly!BT431)-1","v":6.9992501815301367E-3},null,null,null,{"$f":"(Monthly!BX432/Monthly!BX431)-1","v":5.1100628930817571E-2},{"$f":"(Monthly!BY432/Monthly!BY431)-1","v":-8.7050359712230185E-2},"--",{"$f":"(Monthly!CA432/Monthly!CA431)-1","v":1.0575324243432105E-2},{"$f":"Monthly!CB432-Monthly!CB431","v":6.4742878283396976E-2},{"$f":"Monthly!CC432-Monthly!CC431","v":6.4742878283396976E-2},"--","--",null,"--","--",null,{"$f":"(Monthly!CJ432/Monthly!CJ431)-1","v":0.10823909531502429},{"$f":"(Monthly!CK432/Monthly!CK431)-1","v":3.6208658893643886E-3},{"$f":"(Monthly!CL432/Monthly!CL431)-1","v":-7.6338199513382055E-2},{"$f":"(Monthly!CM432/Monthly!CM431)-1","v":-6.1403508771930015E-3},{"$f":"(Monthly!CN432/Monthly!CN431)-1","v":2.2486906817160701E-3},{"$f":"(Monthly!CO432/Monthly!CO431)-1","v":2.4513809445987356E-3},{"$f":"(Monthly!CP432/Monthly!CP431)-1","v":9.5537749170948594E-3},{"$f":"(Monthly!CQ432/Monthly!CQ431)-1","v":7.7886674888039131E-4},{"$f":"(Monthly!CR432/Monthly!CR431)-1","v":9.2537574190847405E-3},"--","--",null,null,null,null,null,{"$f":"(Monthly!CZ432/Monthly!CZ431)-1","v":2.7341079972658111E-3},{"$f":"(Monthly!DA432/Monthly!DA431)-1","v":1.9417475728156219E-3},null,null,null,null,null,"--",{"$f":"((Monthly!DH432-Monthly!DH431)*60)","v":-11.999999999999744},{"$f":"((Monthly!DI432-Monthly!DI431)*100)","v":0},"--",{"$f":"((Monthly!DK432-Monthly!DK431)*100)","v":0},{"$f":"Monthly!DL432-Monthly!DL431","v":7},null,null,null,{"$f":"Monthly!DP432-Monthly!DP431","v":196},null,null,null,{"$f":"(Monthly!DT432/Monthly!DT431)-1","v":5.9712230215827278E-2},{"$f":"Monthly!DU432-Monthly!DU431","v":0.59999999999999964},{"$f":"(Monthly!DV432-Monthly!DV431)","v":5.2999999999999545},{"$f":"(Monthly!DW432-Monthly!DW431)","v":5},{"$f":"(Monthly!DX432-Monthly!DX431)","v":5.1000000000000227},{"$f":"(Monthly!DY432-Monthly!DY431)","v":-1.3000000000000114},{"$f":"(Monthly!DZ432-Monthly!DZ431)","v":6.3999999999999773},{"$f":"(Monthly!EA432-Monthly!EA431)","v":4.8000000000000114},{"$f":"(Monthly!EB432-Monthly!EB431)","v":1.5999999999999943},{"$f":"(Monthly!EC432-Monthly!EC431)","v":-0.10000000000002274},null,null,null,null,null,null,null,null,null,null,null,null,null,{"$f":"(Monthly!EQ432/Monthly!EQ431)-1","v":1.6792611251050804E-3},{"$f":"(Monthly!ER432/Monthly!ER431)-1","v":0},{"$f":"(Monthly!ES432/Monthly!ES431)-1","v":1.5048908954100604E-3},null,null,null,null,null,{"$f":"((Monthly!EY432-Monthly!EY431)*100)","v":0},{"$f":"((Monthly!EZ432-Monthly!EZ431)*100)","v":20.000000000000018},{"$f":"((Monthly!FA432-Monthly!FA431)*100)","v":16.000000000000014},{"$f":"((Monthly!FB432-Monthly!FB431)*100)","v":10.999999999999943},"--",{"$f":"((Monthly!FD432-Monthly!FD431)*100)","v":9.0000000000000746},{"$f":"((Monthly!FE432-Monthly!FE431)*100)","v":27},{"$f":"((Monthly!FF432-Monthly!FF431)*100)","v":33.000000000000007},{"$f":"((Monthly!FG432-Monthly!FG431)*100)","v":33.000000000000007},{"$f":"((Monthly!FH432-Monthly!FH431)*100)","v":31.00000000000005},{"$f":"((Monthly!FI432-Monthly!FI431)*100)","v":21.999999999999975},null,null,null,null,null,null,{"$f":"(Monthly!FP432/Monthly!FP431)-1","v":1.9054125863508853E-2},{"$f":"(Monthly!FQ432/Monthly!FQ431)-1","v":3.4396175145334773E-4},{"$f":"(Monthly!FR432/Monthly!FR431)-1","v":4.5047943883131936E-3},"--",{"$f":"(Monthly!FT432/Monthly!FT431)-1","v":9.1273177855466514E-4},{"$f":"(Monthly!FU432/Monthly!FU431)-1","v":-1.0038853416655336E-2},{"$f":"(Monthly!FV432/Monthly!FV431)-1","v":5.3642337969951104E-2},{"$f":"(Monthly!FW432/Monthly!FW431)-1","v":-9.5508667800658698E-2},{"$f":"(Monthly!FX432/Monthly!FX431)-1","v":3.3550712201819266E-2},null,null,null,null,null,{"$f":"(Monthly!GD432/Monthly!GD431)-1","v":-1.4666666666666717E-2},{"$f":"(Monthly!GE432/Monthly!GE431)-1","v":-3.4289713086074092E-2},{"$f":"(Monthly!GF432/Monthly!GF431)-1","v":1.2540757461750651E-2},{"$f":"(Monthly!GG432/Monthly!GG431)-1","v":0},{"$f":"(Monthly!GH432/Monthly!GH431)-1","v":{"$error":"#DIV/0!"}},"--",{"$f":"(Monthly!GJ432/Monthly!GJ431)-1","v":3.408606731998276E-3},{"$f":"(Monthly!GK432/Monthly!GK431)-1","v":5.7707104385740005E-2},"--"]
["1994-08-01",null,null,null,{"$f":"(Monthly!E438/Monthly!E437)-1","v":{"$error":"#DIV/0!"}},{"$f":"(Monthly!F438/Monthly!F437)-1","v":{"$error":"#DIV/0!"}},{"$f":"(Monthly!G438/Monthly!G437)-1","v":{"$error":"#DIV/0!"}},{"$f":"(Monthly!H438/Monthly!H437)-1","v":{"$error":"#DIV/0!"}},null,null,null,null,null,null,null,null,null,null,null,null,null,null,null,{"$f":"(Monthly!X438-Monthly!X437)","v":0.29999999999999716},{"$f":"(Monthly!Y438/Monthly!Y437)-1","v":9.0841593835229162E-3},null,null,null,null,null,null,null,null,null,null,null,null,null,{"$f":"(Monthly!AM438/Monthly!AM437)-1","v":5.8458052758605383E-3},{"$f":"(Monthly!AN438/Monthly!AN437)-1","v":7.4943534684575042E-3},{"$f":"(Monthly!AO438/Monthly!AO437)-1","v":8.7945289419952832E-3},{"$f":"((Monthly!AP438-Monthly!AP437)*100)","v":-1.0000000000000009},{"$f":"Monthly!AQ438-Monthly!AQ437","v":-0.5},{"$f":"Monthly!AR438-Monthly!AR437","v":1},"--",{"$f":"Monthly!AT438-Monthly!AT437","v":-0.89999999999999858},{"$f":"Monthly!AU438-Monthly!AU437","v":1},{"$f":"Monthly!AV438-Monthly!AV437","v":0.19999999999999574},{"$f":"Monthly!AW438-Monthly!AW437","v":-0.20000000000000284},{"$f":"Monthly!AX438-Monthly!AX437","v":-1.2000000000000028},{"$f":"Monthly!AY438-Monthly!AY437","v":3.6000000000000085},{"$f":"Monthly!AZ438-Monthly!AZ437","v":-2.0999999999999943},{"$f":"Monthly!BA438-Monthly!BA437","v":3.5},"--",{"$f":"(Monthly!BC438/Monthly!BC437)-1","v":8.8604143947654812E-3},null,null,null,null,null,null,null,null,null,{"$f":"(Monthly!BM438/Monthly!BM437)-1","v":1.2355300031481775E-2},{"$f":"(Monthly!BN438/Monthly!BN437)-1","v":1.4233328184621419E-2},null,null,null,null,null,{"$f":"(Monthly!BT438/Monthly!BT437)-1","v":1.4184255194558792E-2},null,null,null,{"$f":"(Monthly!BX438/Monthly!BX437)-1","v":7.6441973592773493E-3},{"$f":"(Monthly!BY438/Monthly!BY437)-1","v":3.1460674157303359E-2},"--",{"$f":"(Monthly!CA438/Monthly!CA437)-1","v":3.2158104944222554E-2},{"$f":"Monthly!CB438-Monthly!CB437","v":0.10159054847157378},{"$f":"Monthly!CC438-Monthly!CC437","v":3.1590548471573499E-2},"--","--",null,"--","--",null,{"$f":"(Monthly!CJ438/Monthly!CJ437)-1","v":4.4585987261146487E-2},{"$f":"(Monthly!CK438/Monthly!CK437)-1","v":3.7683158656192095E-3},{"$f":"(Monthly!CL438/Monthly!CL437)-1","v":-7.2210713228765822E-2},{"$f":"(Monthly!CM438/Monthly!CM437)-1","v":-6.6612510154346105E-2},{"$f":"(Monthly!CN438/Monthly!CN437)-1","v":1.4695810980482893E-3},{"$f":"(Monthly!CO438/Monthly!CO437)-1","v":-6.5419012918184194E-3},{"$f":"(Monthly!CP438/Monthly!CP437)-1","v":1.4679401379843249E-2},{"$f":"(Monthly!CQ438/Monthly!CQ437)-1","v":1.0932446590443679E-3},{"$f":"(Monthly!CR438/Monthly!CR437)-1","v":2.2724819125418794E-2},"--","--",null,null,null,null,null,{"$f":"(Monthly!CZ438/Monthly!CZ437)-1","v":4.0431266846361336E-3},{"$f":"(Monthly!DA438/Monthly!DA437)-1","v":2.552648372686761E-3},null,null,null,null,null,"--",{"$f":"((Monthly!DH438-Monthly!DH437)*60)","v":-6.0000000000000853},{"$f":"((Monthly!DI438-Monthly!DI437)*100)","v":19.999999999998863},"--",{"$f":"((Monthly!DK438-Monthly!DK437)*100)","v":-9.9999999999999645},{"$f":"Monthly!DL438-Monthly!DL437","v":55},null,null,null,{"$f":"Monthly!DP438-Monthly!DP437","v":283},null,null,null,{"$f":"(Monthly!DT438/Monthly!DT437)-1","v":-1.7387492694330819E-2},{"$f":"Monthly!DU438-Monthly!DU437","v":-9.9999999999999645E-2},{"$f":"(Monthly!DV438-Monthly!DV437)","v":0},{"$f":"(Monthly!DW438-Monthly!DW437)","v":7.2999999999999545},{"$f":"(Monthly!DX438-Monthly!DX437)","v":5.7000000000000455},{"$f":"(Monthly!DY438-Monthly!DY437)","v":0.30000000000001137},{"$f":"(Monthly!DZ438-Monthly!DZ437)","v":5.3999999999999773},{"$f":"(Monthly!EA438-Monthly!EA437)","v":3.8000000000000114},{"$f":"(Monthly!EB438-Monthly!EB437)","v":1.6000000000000227},{"$f":"(Monthly!EC438-Monthly!EC437)","v":1.5999999999999659},null,null,null,null,null,null,null,null,null,null,null,null,null,{"$f":"(Monthly!EQ438/Monthly!EQ437)-1","v":4.1425020712511085E-3},{"$f":"(Monthly!ER438/Monthly!ER437)-1","v":2.1849963583393528E-3},{"$f":"(Monthly!ES438/Monthly!ES437)-1","v":1.4880952380951218E-3},null,null,null,null,null,{"$f":"((Monthly!EY438-Monthly!EY437)*100)","v":25.999999999999979},{"$f":"((Monthly!EZ438-Monthly!EZ437)*100)","v":20.999999999999996},{"$f":"((Monthly!FA438-Monthly!FA437)*100)","v":-3.9999999999999147},{"$f":"((Monthly!FB438-Monthly!FB437)*100)","v":-6.0000000000000497},"--",{"$f":"((Monthly!FD438-Monthly!FD437)*100)","v":-9.9999999999999645},{"$f":"((Monthly!FE438-Monthly!FE437)*100)","v":15.000000000000036},{"$f":"((Monthly!FF438-Monthly!FF437)*100)","v":7.9999999999999183},{"$f":"((Monthly!FG438-Monthly!FG437)*100)","v":4.9999999999999822},{"$f":"((Monthly!FH438-Monthly!FH437)*100)","v":-3.0000000000000249},{"$f":"((Monthly!FI438-Monthly!FI437)*100)","v":-5.9999999999999609},null,null,null,null,null,null,{"$f":"(Monthly!FP438/Monthly!FP437)-1","v":-3.1100824533487614E-3},{"$f":"(Monthly!FQ438/Monthly!FQ437)-1","v":-6.1543790774204465E-3},{"$f":"(Monthly!FR438/Monthly!FR437)-1","v":-6.3765390379358911E-3},"--",{"$f":"(Monthly!FT438/Monthly!FT437)-1","v":-7.1549261666636887E-5},{"$f":"(Monthly!FU438/Monthly!FU437)-1","v":3.5641184447734453E-3},{"$f":"(Monthly!FV438/Monthly!FV437)-1","v":0.20927485677068969},{"$f":"(Monthly!FW438/Monthly!FW437)-1","v":0.14275525319580851},{"$f":"(Monthly!FX438/Monthly!FX437)-1","v":0.20504662036908927},null,null,null,null,null,{"$f":"(Monthly!GD438/Monthly!GD437)-1","v":-6.4631043256997422E-2},{"$f":"(Monthly!GE438/Monthly!GE437)-1","v":-4.0340909090909149E-2},{"$f":"(Monthly!GF438/Monthly!GF437)-1","v":4.5380875202593263E-2},{"$f":"(Monthly!GG438/Monthly!GG437)-1","v":1.1711711711711592E-2},{"$f":"(Monthly!GH438/Monthly!GH437)-1","v":{"$error":"#DIV/0!"}},"--",{"$f":"(Monthly!GJ438/Monthly!GJ437)-1","v":-0.13754457463066738},{"$f":"(Monthly!GK438/Monthly!GK437)-1","v":0.17606149341142019},"--"]
["1994-12-01",null,null,null,{"$f":"(Monthly!E442/Monthly!E441)-1","v":{"$error":"#DIV/0!"}},{"$f":"(Monthly!F442/Monthly!F441)-1","v":{"$error":"#DIV/0!"}},{"$f":"(Monthly!G442/Monthly!G441)-1","v":{"$error":"#DIV/0!"}},{"$f":"(Monthly!H442/Monthly!H441)-1","v":{"$error":"#DIV/0!"}},null,null,null,null,null,null,null,null,null,null,null,null,null,null,null,{"$f":"(Monthly!X442-Monthly!X441)","v":0.59999999999999432},{"$f":"(Monthly!Y442/Monthly!Y441)-1","v":8.4666692357895368E-3},null,null,null,null,null,null,null,null,null,null,null,null,null,{"$f":"(Monthly!AM442/Monthly!AM441)-1","v":1.0363754742327647E-2},{"$f":"(Monthly!AN442/Monthly!AN441)-1","v":1.1374817738717624E-2},{"$f":"(Monthly!AO442/Monthly!AO441)-1","v":7.5268349446988569E-3},{"$f":"((Monthly!AP442-Monthly!AP441)*100)","v":-2.0000000000000018},{"$f":"Monthly!AQ442-Monthly!AQ441","v":-3.1000000000000014},{"$f":"Monthly!AR442-Monthly!AR441","v":-4.5},"--",{"$f":"Monthly!AT442-Monthly!AT441","v":-4.8999999999999986},{"$f":"Monthly!AU442-Monthly!AU441","v":2.2999999999999972},{"$f":"Monthly!AV442-Monthly!AV441","v":-0.60000000000000142},{"$f":"Monthly!AW442-Monthly!AW441","v":-2.2999999999999972},{"$f":"Monthly!AX442-Monthly!AX441","v":-2.6000000000000014},{"$f":"Monthly!AY442-Monthly!AY441","v":2.5999999999999943},{"$f":"Monthly!AZ442-Monthly!AZ441","v":-4.3999999999999986},{"$f":"Monthly!BA442-Monthly!BA441","v":9.9999999999994316E-2},"--",{"$f":"(Monthly!BC442/Monthly!BC441)-1","v":5.3110443602804036E-3},null,null,null,null,null,null,null,null,null,{"$f":"(Monthly!BM442/Monthly!BM441)-1","v":4.7415670703925272E-3},{"$f":"(Monthly!BN442/Monthly!BN441)-1","v":4.4107473920140805E-3},null,null,null,null,null,{"$f":"(Monthly!BT442/Monthly!BT441)-1","v":1.6344887303841205E-2},null,null,null,{"$f":"(Monthly!BX442/Monthly!BX441)-1","v":-3.7061548643282594E-2},{"$f":"(Monthly!BY442/Monthly!BY441)-1","v":4.179104477611939E-2},"--",{"$f":"(Monthly!CA442/Monthly!CA441)-1","v":-1.9612903225806444E-2},{"$f":"Monthly!CB442-Monthly!CB441","v":-0.1053371286248268},{"$f":"Monthly!CC442-Monthly!CC441","v":-0.17533712862482709},"--","--",null,"--","--",null,{"$f":"(Monthly!CJ442/Monthly!CJ441)-1","v":-2.6315789473684181E-2},{"$f":"(Monthly!CK442/Monthly!CK441)-1","v":5.386528736389451E-3},{"$f":"(Monthly!CL442/Monthly!CL441)-1","v":3.2144944476914183E-2},{"$f":"(Monthly!CM442/Monthly!CM441)-1","v":-3.0328559393428822E-2},{"$f":"(Monthly!CN442/Monthly!CN441)-1","v":4.6546947729604327E-3},{"$f":"(Monthly!CO442/Monthly!CO441)-1","v":-1.3622344071281822E-2},{"$f":"(Monthly!CP442/Monthly!CP441)-1","v":1.6176052379287542E-2},{"$f":"(Monthly!CQ442/Monthly!CQ441)-1","v":9.2606942118766966E-4},{"$f":"(Monthly!CR442/Monthly!CR441)-1","v":8.2100384260355153E-3},"--","--",null,null,null,null,null,{"$f":"(Monthly!CZ442/Monthly!CZ441)-1","v":2.0026702269690944E-3},{"$f":"(Monthly!DA442/Monthly!DA441)-1","v":6.3211125158035841E-4},null,null,null,null,null,"--",{"$f":"((Monthly!DH442-Monthly!DH441)*60)","v":0},{"$f":"((Monthly!DI442-Monthly!DI441)*100)","v":0},{"$f":"((Monthly!DJ442-Monthly!DJ441)*100)","v":-9.9999999999999645},{"$f":"((Monthly!DK442-Monthly!DK441)*100)","v":-9.9999999999999645},{"$f":"Monthly!DL442-Monthly!DL441","v":31},null,null,null,{"$f":"Monthly!DP442-Monthly!DP441","v":280},null,null,null,{"$f":"(Monthly!DT442/Monthly!DT441)-1","v":-1.4634146341463428E-2},{"$f":"Monthly!DU442-Monthly!DU441","v":-0.30000000000000071},{"$f":"(Monthly!DV442-Monthly!DV441)","v":7.5},{"$f":"(Monthly!DW442-Monthly!DW441)","v":7.0999999999999091},{"$f":"(Monthly!DX442-Monthly!DX441)","v":5.2999999999999545},{"$f":"(Monthly!DY442-Monthly!DY441)","v":1},{"$f":"(Monthly!DZ442-Monthly!DZ441)","v":4.3000000000000682},{"$f":"(Monthly!EA442-Monthly!EA441)","v":3},{"$f":"(Monthly!EB442-Monthly!EB441)","v":1.3000000000000114},{"$f":"(Monthly!EC442-Monthly!EC441)","v":1.8000000000000114},null,null,null,null,null,null,null,null,null,null,null,null,null,{"$f":"(Monthly!EQ442/Monthly!EQ441)-1","v":3.2921810699588772E-3},{"$f":"(Monthly!ER442/Monthly!ER441)-1","v":2.1802325581397053E-3},{"$f":"(Monthly!ES442/Monthly!ES441)-1","v":2.9739776951673846E-3},null,null,null,null,null,{"$f":"((Monthly!EY442-Monthly!EY441)*100)","v":34.999999999999964},{"$f":"((Monthly!EZ442-Monthly!EZ441)*100)","v":16.000000000000014},{"$f":"((Monthly!FA442-Monthly!FA441)*100)","v":-21.999999999999886},{"$f":"((Monthly!FB442-Monthly!FB441)*100)","v":-22.000000000000064},"--",{"$f":"((Monthly!FD442-Monthly!FD441)*100)","v":2.9999999999999361},{"$f":"((Monthly!FE442-Monthly!FE441)*100)","v":30.999999999999961},{"$f":"((Monthly!FF442-Monthly!FF441)*100)","v":59.999999999999964},{"$f":"((Monthly!FG442-Monthly!FG441)*100)","v":43.99999999999995},{"$f":"((Monthly!FH442-Monthly!FH441)*100)","v":6.0000000000000497},{"$f":"((Monthly!FI442-Monthly!FI441)*100)","v":-15.000000000000036},null,null,null,null,null,null,{"$f":"(Monthly!FP442/Monthly!FP441)-1","v":1.8025939766981747E-2},{"$f":"(Monthly!FQ442/Monthly!FQ441)-1","v":-3.9475225489049581E-3},{"$f":"(Monthly!FR442/Monthly!FR441)-1","v":0.15462599854756731},"--",{"$f":"(Monthly!FT442/Monthly!FT441)-1","v":2.3052692185426382E-2},{"$f":"(Monthly!FU442/Monthly!FU441)-1","v":2.0001306664924501E-2},{"$f":"(Monthly!FV442/Monthly!FV441)-1","v":-7.8440851118684485E-2},{"$f":"(Monthly!FW442/Monthly!FW441)-1","v":-0.20026596497184734},{"$f":"(Monthly!FX442/Monthly!FX441)-1","v":-0.13481003671474057},null,null,null,null,null,{"$f":"(Monthly!GD442/Monthly!GD441)-1","v":-5.1933701657458586E-2},{"$f":"(Monthly!GE442/Monthly!GE441)-1","v":-7.3298429319371805E-2},{"$f":"(Monthly!GF442/Monthly!GF441)-1","v":-0.19249162011173171},{"$f":"(Monthly!GG442/Monthly!GG441)-1","v":-1.5915119363395291E-2},{"$f":"(Monthly!GH442/Monthly!GH441)-1","v":{"$error":"#DIV/0!"}},"--",{"$f":"(Monthly!GJ442/Monthly!GJ441)-1","v":-4.00903444381705E-2},{"$f":"(Monthly!GK442/Monthly!GK441)-1","v":6.0923076923076858E-2},"--"]
["1995-03-01",null,null,null,{"$f":"(Monthly!E445/Monthly!E444)-1","v":{"$error":"#DIV/0!"}},{"$f":"(Monthly!F445/Monthly!F444)-1","v":{"$error":"#DIV/0!"}},{"$f":"(Monthly!G445/Monthly!G444)-1","v":{"$error":"#DIV/0!"}},{"$f":"(Monthly!H445/Monthly!H444)-1","v":{"$error":"#DIV/0!"}},null,null,null,null,null,null,null,null,null,null,null,null,null,null,null,{"$f":"(Monthly!X445-Monthly!X444)","v":-0.20000000000000284},{"$f":"(Monthly!Y445/Monthly!Y444)-1","v":1.0578758346538431E-2},null,null,null,null,null,null,null,null,null,null,null,null,null,{"$f":"(Monthly!AM445/Monthly!AM444)-1","v":1.3670539986330166E-3},{"$f":"(Monthly!AN445/Monthly!AN444)-1","v":2.4252771543413765E-3},{"$f":"(Monthly!AO445/Monthly!AO444)-1","v":9.3067460649987055E-3},{"$f":"((Monthly!AP445-Monthly!AP444)*100)","v":2.0000000000000018},{"$f":"Monthly!AQ445-Monthly!AQ444","v":-3},{"$f":"Monthly!AR445-Monthly!AR444","v":-4},"--",{"$f":"Monthly!AT445-Monthly!AT444","v":-1.8999999999999986},{"$f":"Monthly!AU445-Monthly!AU444","v":-1.8000000000000043},{"$f":"Monthly!AV445-Monthly!AV444","v":-1},{"$f":"Monthly!AW445-Monthly!AW444","v":0},{"$f":"Monthly!AX445-Monthly!AX444","v":-4.7000000000000028},{"$f":"Monthly!AY445-Monthly!AY444","v":-2.7999999999999972},{"$f":"Monthly!AZ445-Monthly!AZ444","v":-2.6000000000000014},{"$f":"Monthly!BA445-Monthly!BA444","v":-3.8000000000000043},"--",{"$f":"(Monthly!BC445/Monthly!BC444)-1","v":-2.2727272727273151E-3},null,null,null,null,null,null,null,null,null,{"$f":"(Monthly!BM445/Monthly!BM444)-1","v":9.3102735617467403E-3},{"$f":"(Monthly!BN445/Monthly!BN444)-1","v":8.4915752875101003E-3},null,null,null,null,null,{"$f":"(Monthly!BT445/Monthly!BT444)-1","v":6.4166821249698192E-3},null,null,null,{"$f":"(Monthly!BX445/Monthly!BX444)-1","v":-5.0911854103343424E-2},{"$f":"(Monthly!BY445/Monthly!BY444)-1","v":-2.2328548644338087E-2},"--",{"$f":"(Monthly!CA445/Monthly!CA444)-1","v":2.8221622743307639E-2},{"$f":"Monthly!CB445-Monthly!CB444","v":-7.5766106553576407E-2},{"$f":"Monthly!CC445-Monthly!CC444","v":-7.5766106553576407E-2},"--","--",null,"--","--",null,{"$f":"(Monthly!CJ445/Monthly!CJ444)-1","v":0.10196779964221814},{"$f":"(Monthly!CK445/Monthly!CK444)-1","v":4.2757190982121163E-3},{"$f":"(Monthly!CL445/Monthly!CL444)-1","v":-3.6372821419550339E-2},{"$f":"(Monthly!CM445/Monthly!CM444)-1","v":-5.4131054131054124E-2},{"$f":"(Monthly!CN445/Monthly!CN444)-1","v":2.5033725991960853E-3},{"$f":"(Monthly!CO445/Monthly!CO444)-1","v":-1.7152045738788702E-2},{"$f":"(Monthly!CP445/Monthly!CP444)-1","v":1.4798355834236832E-2},{"$f":"(Monthly!CQ445/Monthly!CQ444)-1","v":8.4819240773548188E-4},{"$f":"(Monthly!CR445/Monthly!CR444)-1","v":1.9720795951583714E-2},"--","--",null,null,null,null,null,{"$f":"(Monthly!CZ445/Monthly!CZ444)-1","v":1.9880715705764551E-3},{"$f":"(Monthly!DA445/Monthly!DA444)-1","v":3.1367628607277265E-3},null,null,null,null,null,"--",{"$f":"((Monthly!DH445-Monthly!DH444)*60)","v":-6.0000000000000853},{"$f":"((Monthly!DI445-Monthly!DI444)*100)","v":-9.9999999999994316},{"$f":"((Monthly!DJ445-Monthly!DJ444)*100)","v":0},{"$f":"((Monthly!DK445-Monthly!DK444)*100)","v":0},{"$f":"Monthly!DL445-Monthly!DL444","v":-2},null,null,null,{"$f":"Monthly!DP445-Monthly!DP444","v":219},null,null,null,{"$f":"(Monthly!DT445/Monthly!DT444)-1","v":4.2931162102146647E-3},{"$f":"Monthly!DU445-Monthly!DU444","v":0.20000000000000107},{"$f":"(Monthly!DV445-Monthly!DV444)","v":3.6000000000001364},{"$f":"(Monthly!DW445-Monthly!DW444)","v":8.2000000000000455},{"$f":"(Monthly!DX445-Monthly!DX444)","v":6.3999999999999773},{"$f":"(Monthly!DY445-Monthly!DY444)","v":0.39999999999997726},{"$f":"(Monthly!DZ445-Monthly!DZ444)","v":6},{"$f":"(Monthly!EA445-Monthly!EA444)","v":4.3999999999999773},{"$f":"(Monthly!EB445-Monthly!EB444)","v":1.5999999999999943},{"$f":"(Monthly!EC445-Monthly!EC444)","v":1.8000000000000114},null,null,null,null,null,null,null,null,null,null,null,null,null,{"$f":"(Monthly!EQ445/Monthly!EQ444)-1","v":3.2388663967610754E-3},{"$f":"(Monthly!ER445/Monthly!ER444)-1","v":2.1629416005768398E-3},{"$f":"(Monthly!ES445/Monthly!ES444)-1","v":7.3637702503681624E-4},null,null,null,null,null,{"$f":"((Monthly!EY445-Monthly!EY444)*100)","v":0},{"$f":"((Monthly!EZ445-Monthly!EZ444)*100)","v":6.0000000000000497},{"$f":"((Monthly!FA445-Monthly!FA444)*100)","v":-14.000000000000057},{"$f":"((Monthly!FB445-Monthly!FB444)*100)","v":-15.000000000000036},"--",{"$f":"((Monthly!FD445-Monthly!FD444)*100)","v":-36.999999999999922},{"$f":"((Monthly!FE445-Monthly!FE444)*100)","v":-3.9999999999999147},{"$f":"((Monthly!FF445-Monthly!FF444)*100)","v":-27.000000000000046},{"$f":"((Monthly!FG445-Monthly!FG444)*100)","v":-33.000000000000007},{"$f":"((Monthly!FH445-Monthly!FH444)*100)","v":-32.000000000000028},{"$f":"((Monthly!FI445-Monthly!FI444)*100)","v":-26.999999999999957},null,null,null,null,null,null,{"$f":"(Monthly!FP445/Monthly!FP444)-1","v":5.1410210639055709E-3},{"$f":"(Monthly!FQ445/Monthly!FQ444)-1","v":-8.2788310290582423E-4},{"$f":"(Monthly!FR445/Monthly!FR444)-1","v":0.19357508938163748},"--",{"$f":"(Monthly!FT445/Monthly!FT444)-1","v":-9.5004138741288102E-3},{"$f":"(Monthly!FU445/Monthly!FU444)-1","v":-3.6049010778843482E-2},{"$f":"(Monthly!FV445/Monthly!FV444)-1","v":0.10490576618096736},{"$f":"(Monthly!FW445/Monthly!FW444)-1","v":-3.0351490921206037E-2},{"$f":"(Monthly!FX445/Monthly!FX444)-1","v":0.1449102797100541},null,null,null,null,null,{"$f":"(Monthly!GD445/Monthly!GD444)-1","v":1.0793308148946412E-3},{"$f":"(Monthly!GE445/Monthly!GE444)-1","v":-5.8445353594388516E-3},{"$f":"(Monthly!GF445/Monthly!GF444)-1","v":-3.3400133600535176E-3},{"$f":"(Monthly!GG445/Monthly!GG444)-1","v":0},{"$f":"(Monthly!GH445/Monthly!GH444)-1","v":{"$error":"#DIV/0!"}},"--",{"$f":"(Monthly!GJ445/Monthly!GJ444)-1","v":6.601806810284927E-2},{"$f":"(Monthly!GK445/Monthly!GK444)-1","v":-7.7197802197802146E-2},"--"]
["1995-10-01",null,null,null,{"$f":"(Monthly!E452/Monthly!E451)-1","v":{"$error":"#DIV/0!"}},{"$f":"(Monthly!F452/Monthly!F451)-1","v":{"$error":"#DIV/0!"}},{"$f":"(Monthly!G452/Monthly!G451)-1","v":{"$error":"#DIV/0!"}},{"$f":"(Monthly!H452/Monthly!H451)-1","v":{"$error":"#DIV/0!"}},null,null,null,null,null,null,null,null,null,null,null,null,null,null,null,{"$f":"(Monthly!X452-Monthly!X451)","v":-0.40000000000000568},{"$f":"(Monthly!Y452/Monthly!Y451)-1","v":4.4025949245773965E-4},null,null,null,null,null,null,null,null,null,null,null,null,null,{"$f":"(Monthly!AM452/Monthly!AM451)-1","v":-1.1055537425658235E-3},{"$f":"(Monthly!AN452/Monthly!AN451)-1","v":-1.2165887404702591E-4},{"$f":"(Monthly!AO452/Monthly!AO451)-1","v":4.3284080090852939E-3},{"$f":"((Monthly!AP452-Monthly!AP451)*100)","v":2.0000000000000018},{"$f":"Monthly!AQ452-Monthly!AQ451","v":-1.3999999999999986},{"$f":"Monthly!AR452-Monthly!AR451","v":-3},"--",{"$f":"Monthly!AT452-Monthly!AT451","v":0.39999999999999858},{"$f":"Monthly!AU452-Monthly!AU451","v":-0.39999999999999858},{"$f":"Monthly!AV452-Monthly!AV451","v":0.10000000000000142},{"$f":"Monthly!AW452-Monthly!AW451","v":1.9000000000000057},{"$f":"Monthly!AX452-Monthly!AX451","v":-1.8999999999999986},{"$f":"Monthly!AY452-Monthly!AY451","v":-2.2999999999999972},{"$f":"Monthly!AZ452-Monthly!AZ451","v":-3.5},{"$f":"Monthly!BA452-Monthly!BA451","v":-1.6000000000000014},"--",{"$f":"(Monthly!BC452/Monthly!BC451)-1","v":1.7236147356921805E-2},null,null,null,null,null,null,null,null,null,{"$f":"(Monthly!BM452/Monthly!BM451)-1","v":-3.9666051464406493E-3},{"$f":"(Monthly!BN452/Monthly!BN451)-1","v":-4.2276526919258206E-3},null,null,null,null,null,{"$f":"(Monthly!BT452/Monthly!BT451)-1","v":-5.7047069511817483E-4},null,null,null,{"$f":"(Monthly!BX452/Monthly!BX451)-1","v":0},{"$f":"(Monthly!BY452/Monthly!BY451)-1","v":-1.4778325123152691E-2},"--",{"$f":"(Monthly!CA452/Monthly!CA451)-1","v":-3.2689350892439295E-2},{"$f":"Monthly!CB452-Monthly!CB451","v":9.9099591041097668E-2},{"$f":"Monthly!CC452-Monthly!CC451","v":2.9099591041095607E-2},"--","--",null,"--","--",null,{"$f":"(Monthly!CJ452/Monthly!CJ451)-1","v":2.6548672566371723E-2},{"$f":"(Monthly!CK452/Monthly!CK451)-1","v":4.0984252589102432E-3},{"$f":"(Monthly!CL452/Monthly!CL451)-1","v":6.3176367358876995E-2},{"$f":"(Monthly!CM452/Monthly!CM451)-1","v":3.013698630136985E-2},{"$f":"(Monthly!CN452/Monthly!CN451)-1","v":1.13863966855976E-3},{"$f":"(Monthly!CO452/Monthly!CO451)-1","v":8.5354896675651215E-3},{"$f":"(Monthly!CP452/Monthly!CP451)-1","v":6.2495216257685282E-3},{"$f":"(Monthly!CQ452/Monthly!CQ451)-1","v":1.137928969275892E-3},{"$f":"(Monthly!CR452/Monthly!CR451)-1","v":1.0298061544098625E-2},"--","--",null,null,null,null,null,{"$f":"(Monthly!CZ452/Monthly!CZ451)-1","v":2.6126714565644082E-3},{"$f":"(Monthly!DA452/Monthly!DA451)-1","v":3.0826140567201676E-3},null,null,null,null,null,"--",{"$f":"((Monthly!DH452-Monthly!DH451)*60)","v":0},{"$f":"((Monthly!DI452-Monthly!DI451)*100)","v":0},{"$f":"((Monthly!DJ452-Monthly!DJ451)*100)","v":-19.999999999999929},{"$f":"((Monthly!DK452-Monthly!DK451)*100)","v":-9.9999999999999645},{"$f":"Monthly!DL452-Monthly!DL451","v":-31},null,null,null,{"$f":"Monthly!DP452-Monthly!DP451","v":151},null,null,null,{"$f":"(Monthly!DT452/Monthly!DT451)-1","v":2.5979381443298921E-2},{"$f":"Monthly!DU452-Monthly!DU451","v":0.29999999999999893},{"$f":"(Monthly!DV452-Monthly!DV451)","v":31.900000000000091},{"$f":"(Monthly!DW452-Monthly!DW451)","v":31.5},{"$f":"(Monthly!DX452-Monthly!DX451)","v":22.299999999999955},{"$f":"(Monthly!DY452-Monthly!DY451)","v":0.89999999999997726},{"$f":"(Monthly!DZ452-Monthly!DZ451)","v":21.399999999999977},{"$f":"(Monthly!EA452-Monthly!EA451)","v":15.399999999999977},{"$f":"(Monthly!EB452-Monthly!EB451)","v":6},{"$f":"(Monthly!EC452-Monthly!EC451)","v":9.2000000000000455},null,null,null,null,null,null,null,null,null,null,null,null,null,{"$f":"(Monthly!EQ452/Monthly!EQ451)-1","v":7.987220447283061E-4},{"$f":"(Monthly!ER452/Monthly!ER451)-1","v":5.7061340941513272E-3},{"$f":"(Monthly!ES452/Monthly!ES451)-1","v":5.8479532163742132E-3},null,null,null,null,null,{"$f":"((Monthly!EY452-Monthly!EY451)*100)","v":0},{"$f":"((Monthly!EZ452-Monthly!EZ451)*100)","v":-4.0000000000000036},{"$f":"((Monthly!FA452-Monthly!FA451)*100)","v":-20.000000000000018},{"$f":"((Monthly!FB452-Monthly!FB451)*100)","v":-17.999999999999972},"--",{"$f":"((Monthly!FD452-Monthly!FD451)*100)","v":-15.999999999999925},{"$f":"((Monthly!FE452-Monthly!FE451)*100)","v":0},{"$f":"((Monthly!FF452-Monthly!FF451)*100)","v":-3.0000000000000249},{"$f":"((Monthly!FG452-Monthly!FG451)*100)","v":-10.999999999999943},{"$f":"((Monthly!FH452-Monthly!FH451)*100)","v":-13.999999999999968},{"$f":"((Monthly!FI452-Monthly!FI451)*100)","v":-16.000000000000014},null,null,null,null,null,null,{"$f":"(Monthly!FP452/Monthly!FP451)-1","v":-3.7752609371529688E-3},{"$f":"(Monthly!FQ452/Monthly!FQ451)-1","v":-2.5187708398310971E-4},{"$f":"(Monthly!FR452/Monthly!FR451)-1","v":6.7836053635600857E-2},"--",{"$f":"(Monthly!FT452/Monthly!FT451)-1","v":-1.9510937206964618E-3},{"$f":"(Monthly!FU452/Monthly!FU451)-1","v":-1.0086131539720378E-2},{"$f":"(Monthly!FV452/Monthly!FV451)-1","v":5.7102259043398718E-2},{"$f":"(Monthly!FW452/Monthly!FW451)-1","v":2.8402521759996358E-2},{"$f":"(Monthly!FX452/Monthly!FX451)-1","v":6.096203095423669E-2},null,null,null,null,null,{"$f":"(Monthly!GD452/Monthly!GD451)-1","v":-4.3335161821173807E-2},{"$f":"(Monthly!GE452/Monthly!GE451)-1","v":-3.5329341317365315E-2},{"$f":"(Monthly!GF452/Monthly!GF451)-1","v":-2.08594256100193E-2},{"$f":"(Monthly!GG452/Monthly!GG451)-1","v":-3.5746201966041502E-3},{"$f":"(Monthly!GH452/Monthly!GH451)-1","v":{"$error":"#DIV/0!"}},"--",{"$f":"(Monthly!GJ452/Monthly!GJ451)-1","v":6.9295101553166205E-2},{"$f":"(Monthly!GK452/Monthly!GK451)-1","v":0.12717354244800538},"--"]
["1996-02-01",null,null,null,{"$f":"(Monthly!E456/Monthly!E455)-1","v":{"$error":"#DIV/0!"}},{"$f":"(Monthly!F456/Monthly!F455)-1","v":{"$error":"#DIV/0!"}},{"$f":"(Monthly!G456/Monthly!G455)-1","v":{"$error":"#DIV/0!"}},{"$f":"(Monthly!H456/Monthly!H455)-1","v":{"$error":"#DIV/0!"}},null,null,null,null,null,null,null,null,null,null,null,null,null,null,null,{"$f":"(Monthly!X456-Monthly!X455)","v":0.90000000000000568},{"$f":"(Monthly!Y456/Monthly!Y455)-1","v":3.2963482468890692E-3},null,null,null,null,null,null,null,null,null,null,null,null,null,{"$f":"(Monthly!AM456/Monthly!AM455)-1","v":1.5613018005582902E-2},{"$f":"(Monthly!AN456/Monthly!AN455)-1","v":1.6165945809655025E-2},{"$f":"(Monthly!AO456/Monthly!AO455)-1","v":5.3595490307900562E-4},{"$f":"((Monthly!AP456-Monthly!AP455)*100)","v":0},{"$f":"Monthly!AQ456-Monthly!AQ455","v":0.39999999999999858},{"$f":"Monthly!AR456-Monthly!AR455","v":2},"--",{"$f":"Monthly!AT456-Monthly!AT455","v":-0.69999999999999574},{"$f":"Monthly!AU456-Monthly!AU455","v":1.2999999999999972},{"$f":"Monthly!AV456-Monthly!AV455","v":-0.19999999999999574},{"$f":"Monthly!AW456-Monthly!AW455","v":-3.3000000000000043},{"$f":"Monthly!AX456-Monthly!AX455","v":2},{"$f":"Monthly!AY456-Monthly!AY455","v":-1.5},{"$f":"Monthly!AZ456-Monthly!AZ455","v":0.10000000000000142},{"$f":"Monthly!BA456-Monthly!BA455","v":1.7000000000000028},"--",{"$f":"(Monthly!BC456/Monthly!BC455)-1","v":2.6120882101354104E-2},null,null,null,null,null,null,null,null,null,{"$f":"(Monthly!BM456/Monthly!BM455)-1","v":1.5714005107051676E-2},{"$f":"(Monthly!BN456/Monthly!BN455)-1","v":1.6398208989940155E-2},null,null,null,null,null,{"$f":"(Monthly!BT456/Monthly!BT455)-1","v":-1.7872307645092622E-3},null,null,null,{"$f":"(Monthly!BX456/Monthly!BX455)-1","v":1.6359918200409052E-2},{"$f":"(Monthly!BY456/Monthly!BY455)-1","v":2.3792357606344572E-2},"--",{"$f":"(Monthly!CA456/Monthly!CA455)-1","v":5.3014049415184505E-2},{"$f":"Monthly!CB456-Monthly!CB455","v":-0.17366652796398974},{"$f":"Monthly!CC456-Monthly!CC455","v":-0.24366652796398824},"--","--",null,"--","--",null,{"$f":"(Monthly!CJ456/Monthly!CJ455)-1","v":7.703081232492992E-2},{"$f":"(Monthly!CK456/Monthly!CK455)-1","v":9.9195585796432173E-3},{"$f":"(Monthly!CL456/Monthly!CL455)-1","v":1.370662000583267E-2},{"$f":"(Monthly!CM456/Monthly!CM455)-1","v":1.3123359580052396E-2},{"$f":"(Monthly!CN456/Monthly!CN455)-1","v":7.7819420783646898E-3},{"$f":"(Monthly!CO456/Monthly!CO455)-1","v":1.0156250000000089E-2},{"$f":"(Monthly!CP456/Monthly!CP455)-1","v":8.5179510822399607E-3},{"$f":"(Monthly!CQ456/Monthly!CQ455)-1","v":7.9432856860495171E-4},{"$f":"(Monthly!CR456/Monthly!CR455)-1","v":1.2450591084739449E-2},"--","--",null,null,null,null,null,{"$f":"(Monthly!CZ456/Monthly!CZ455)-1","v":1.9392372333548735E-3},{"$f":"(Monthly!DA456/Monthly!DA455)-1","v":1.8326206475260953E-3},null,null,null,null,null,"--",{"$f":"((Monthly!DH456-Monthly!DH455)*60)","v":30},{"$f":"((Monthly!DI456-Monthly!DI455)*100)","v":19.999999999998863},{"$f":"((Monthly!DJ456-Monthly!DJ455)*100)","v":19.999999999999929},{"$f":"((Monthly!DK456-Monthly!DK455)*100)","v":-9.9999999999999645},{"$f":"Monthly!DL456-Monthly!DL455","v":21},null,null,null,{"$f":"Monthly!DP456-Monthly!DP455","v":429},null,null,null,{"$f":"(Monthly!DT456/Monthly!DT455)-1","v":8.6898395721926036E-3},{"$f":"Monthly!DU456-Monthly!DU455","v":-0.50000000000000089},{"$f":"(Monthly!DV456-Monthly!DV455)","v":2.5},{"$f":"(Monthly!DW456-Monthly!DW455)","v":1.2000000000000455},{"$f":"(Monthly!DX456-Monthly!DX455)","v":1.1000000000000227},{"$f":"(Monthly!DY456-Monthly!DY455)","v":0},{"$f":"(Monthly!DZ456-Monthly!DZ455)","v":1.1000000000000227},{"$f":"(Monthly!EA456-Monthly!EA455)","v":0.90000000000003411},{"$f":"(Monthly!EB456-Monthly!EB455)","v":0.20000000000001705},{"$f":"(Monthly!EC456-Monthly!EC455)","v":0.10000000000002274},null,null,null,null,null,null,null,null,null,null,null,null,null,{"$f":"(Monthly!EQ456/Monthly!EQ455)-1","v":-7.9176563737126671E-4},{"$f":"(Monthly!ER456/Monthly!ER455)-1","v":7.0671378091868853E-4},{"$f":"(Monthly!ES456/Monthly!ES455)-1","v":7.246376811593791E-4},null,null,null,null,null,{"$f":"((Monthly!EY456-Monthly!EY455)*100)","v":-25},{"$f":"((Monthly!EZ456-Monthly!EZ455)*100)","v":-33.999999999999986},{"$f":"((Monthly!FA456-Monthly!FA455)*100)","v":18.00000000000006},{"$f":"((Monthly!FB456-Monthly!FB455)*100)","v":16.000000000000014},"--",{"$f":"((Monthly!FD456-Monthly!FD455)*100)","v":4.9999999999999822},{"$f":"((Monthly!FE456-Monthly!FE455)*100)","v":-16.999999999999993},{"$f":"((Monthly!FF456-Monthly!FF455)*100)","v":-14.999999999999947},{"$f":"((Monthly!FG456-Monthly!FG455)*100)","v":-8.0000000000000071},{"$f":"((Monthly!FH456-Monthly!FH455)*100)","v":1.9999999999999574},{"$f":"((Monthly!FI456-Monthly!FI455)*100)","v":15.999999999999925},null,null,null,null,null,null,{"$f":"(Monthly!FP456/Monthly!FP455)-1","v":6.0721340258980128E-3},{"$f":"(Monthly!FQ456/Monthly!FQ455)-1","v":-5.5166458793054485E-4},{"$f":"(Monthly!FR456/Monthly!FR455)-1","v":5.0397026976445325E-3},"--",{"$f":"(Monthly!FT456/Monthly!FT455)-1","v":1.6505944524680682E-3},{"$f":"(Monthly!FU456/Monthly!FU455)-1","v":2.2035476538868615E-3},{"$f":"(Monthly!FV456/Monthly!FV455)-1","v":1.5100643660841406E-2},{"$f":"(Monthly!FW456/Monthly!FW455)-1","v":-3.2288049867402968E-2},{"$f":"(Monthly!FX456/Monthly!FX455)-1","v":-4.4229637423980339E-3},null,null,null,null,null,{"$f":"(Monthly!GD456/Monthly!GD455)-1","v":1.0063559322033955E-2},{"$f":"(Monthly!GE456/Monthly!GE455)-1","v":8.4033613445377853E-3},{"$f":"(Monthly!GF456/Monthly!GF455)-1","v":-6.37222588442099E-3},{"$f":"(Monthly!GG456/Monthly!GG455)-1","v":0},{"$f":"(Monthly!GH456/Monthly!GH455)-1","v":{"$error":"#DIV/0!"}},"--",{"$f":"(Monthly!GJ456/Monthly!GJ455)-1","v":-1.0068465565847728E-2},{"$f":"(Monthly!GK456/Monthly!GK455)-1","v":0.1177146138386449},"--"]
["1996-08-01",null,null,null,{"$f":"(Monthly!E462/Monthly!E461)-1","v":{"$error":"#DIV/0!"}},{"$f":"(Monthly!F462/Monthly!F461)-1","v":{"$error":"#DIV/0!"}},{"$f":"(Monthly!G462/Monthly!G461)-1","v":{"$error":"#DIV/0!"}},{"$f":"(Monthly!H462/Monthly!H461)-1","v":{"$error":"#DIV/0!"}},null,null,null,null,null,null,null,null,null,null,null,null,null,null,null,{"$f":"(Monthly!X462-Monthly!X461)","v":0.10000000000000853},{"$f":"(Monthly!Y462/Monthly!Y461)-1","v":3.7174272053059898E-3},null,null,null,null,null,null,null,null,null,null,null,null,null,{"$f":"(Monthly!AM462/Monthly!AM461)-1","v":5.979307536060352E-3},{"$f":"(Monthly!AN462/Monthly!AN461)-1","v":5.294796556861936E-3},{"$f":"(Monthly!AO462/Monthly!AO461)-1","v":2.40883178174367E-3},{"$f":"((Monthly!AP462-Monthly!AP461)*100)","v":0},{"$f":"Monthly!AQ462-Monthly!AQ461","v":1.8999999999999986},{"$f":"Monthly!AR462-Monthly!AR461","v":-0.5},"--",{"$f":"Monthly!AT462-Monthly!AT461","v":0.69999999999999574},{"$f":"Monthly!AU462-Monthly!AU461","v":2.0999999999999943},{"$f":"Monthly!AV462-Monthly!AV461","v":-3.1000000000000014},{"$f":"Monthly!AW462-Monthly!AW461","v":1.9000000000000057},{"$f":"Monthly!AX462-Monthly!AX461","v":2.7000000000000028},{"$f":"Monthly!AY462-Monthly!AY461","v":2.5},{"$f":"Monthly!AZ462-Monthly!AZ461","v":2.7000000000000028},{"$f":"Monthly!BA462-Monthly!BA461","v":1.1000000000000014},"--",{"$f":"(Monthly!BC462/Monthly!BC461)-1","v":-5.2304738770152515E-3},null,null,null,null,null,null,null,null,null,{"$f":"(Monthly!BM462/Monthly!BM461)-1","v":-8.7810919981112789E-5},{"$f":"(Monthly!BN462/Monthly!BN461)-1","v":-7.1345214010198887E-5},null,null,null,null,null,{"$f":"(Monthly!BT462/Monthly!BT461)-1","v":6.6837771687093817E-3},null,null,null,{"$f":"(Monthly!BX462/Monthly!BX461)-1","v":5.7744565217391353E-2},{"$f":"(Monthly!BY462/Monthly!BY461)-1","v":-2.5517241379310329E-2},"--",{"$f":"(Monthly!CA462/Monthly!CA461)-1","v":2.911564625850338E-2},{"$f":"Monthly!CB462-Monthly!CB461","v":-0.47105955888215867},{"$f":"Monthly!CC462-Monthly!CC461","v":-0.75105955888215803},"--","--",null,"--","--",null,{"$f":"(Monthly!CJ462/Monthly!CJ461)-1","v":7.2727272727272751E-2},{"$f":"(Monthly!CK462/Monthly!CK461)-1","v":4.1595595056409529E-3},{"$f":"(Monthly!CL462/Monthly!CL461)-1","v":-1.4120304998587963E-2},{"$f":"(Monthly!CM462/Monthly!CM461)-1","v":8.7749782797567288E-2},{"$f":"(Monthly!CN462/Monthly!CN461)-1","v":2.4280911468061994E-3},{"$f":"(Monthly!CO462/Monthly!CO461)-1","v":9.9580281458317987E-3},{"$f":"(Monthly!CP462/Monthly!CP461)-1","v":7.1009311514322881E-3},{"$f":"(Monthly!CQ462/Monthly!CQ461)-1","v":1.1458576689027389E-3},{"$f":"(Monthly!CR462/Monthly!CR461)-1","v":8.4005366528470127E-3},"--","--",null,null,null,null,null,{"$f":"(Monthly!CZ462/Monthly!CZ461)-1","v":1.2738853503184711E-3},{"$f":"(Monthly!DA462/Monthly!DA461)-1","v":1.8105009052504784E-3},null,null,null,null,null,"--",{"$f":"((Monthly!DH462-Monthly!DH461)*60)","v":6.0000000000000853},{"$f":"((Monthly!DI462-Monthly!DI461)*100)","v":-20.000000000000284},{"$f":"((Monthly!DJ462-Monthly!DJ461)*100)","v":-39.999999999999858},{"$f":"((Monthly!DK462-Monthly!DK461)*100)","v":-40.000000000000036},{"$f":"Monthly!DL462-Monthly!DL461","v":32},null,null,null,{"$f":"Monthly!DP462-Monthly!DP461","v":180},null,null,null,{"$f":"(Monthly!DT462/Monthly!DT461)-1","v":-4.6296296296296502E-3},{"$f":"Monthly!DU462-Monthly!DU461","v":9.9999999999999645E-2},{"$f":"(Monthly!DV462-Monthly!DV461)","v":-4.6000000000001364},{"$f":"(Monthly!DW462-Monthly!DW461)","v":3.5},{"$f":"(Monthly!DX462-Monthly!DX461)","v":1.7999999999999545},{"$f":"(Monthly!DY462-Monthly!DY461)","v":1.9000000000000057},{"$f":"(Monthly!DZ462-Monthly!DZ461)","v":-9.9999999999909051E-2},{"$f":"(Monthly!EA462-Monthly!EA461)","v":-9.9999999999965894E-2},{"$f":"(Monthly!EB462-Monthly!EB461)","v":0},{"$f":"(Monthly!EC462-Monthly!EC461)","v":1.6999999999999886},null,null,null,null,null,null,null,null,null,null,null,null,null,{"$f":"(Monthly!EQ462/Monthly!EQ461)-1","v":2.3437500000000888E-3},{"$f":"(Monthly!ER462/Monthly!ER461)-1","v":7.0323488045032079E-4},{"$f":"(Monthly!ES462/Monthly!ES461)-1","v":1.4450867052022698E-3},null,null,null,null,null,{"$f":"((Monthly!EY462-Monthly!EY461)*100)","v":0},{"$f":"((Monthly!EZ462-Monthly!EZ461)*100)","v":-18.00000000000006},{"$f":"((Monthly!FA462-Monthly!FA461)*100)","v":-19.000000000000039},{"$f":"((Monthly!FB462-Monthly!FB461)*100)","v":-16.999999999999993},"--",{"$f":"((Monthly!FD462-Monthly!FD461)*100)","v":-25},{"$f":"((Monthly!FE462-Monthly!FE461)*100)","v":-10.000000000000053},{"$f":"((Monthly!FF462-Monthly!FF461)*100)","v":-17.999999999999972},{"$f":"((Monthly!FG462-Monthly!FG461)*100)","v":-23.999999999999932},{"$f":"((Monthly!FH462-Monthly!FH461)*100)","v":-25},{"$f":"((Monthly!FI462-Monthly!FI461)*100)","v":-23.000000000000043},null,null,null,null,null,null,{"$f":"(Monthly!FP462/Monthly!FP461)-1","v":1.8252172008470513E-3},{"$f":"(Monthly!FQ462/Monthly!FQ461)-1","v":-3.5967341653775353E-4},{"$f":"(Monthly!FR462/Monthly!FR461)-1","v":-1.3599548431982522E-2},"--",{"$f":"(Monthly!FT462/Monthly!FT461)-1","v":-4.3231987780795178E-3},{"$f":"(Monthly!FU462/Monthly!FU461)-1","v":-5.9116729210120234E-3},{"$f":"(Monthly!FV462/Monthly!FV461)-1","v":0.13519154147334289},{"$f":"(Monthly!FW462/Monthly!FW461)-1","v":0.1409678825752072},{"$f":"(Monthly!FX462/Monthly!FX461)-1","v":7.1401374058438938E-2},null,null,null,null,null,{"$f":"(Monthly!GD462/Monthly!GD461)-1","v":3.0018761726078758E-2},{"$f":"(Monthly!GE462/Monthly!GE461)-1","v":4.8032703117015796E-2},{"$f":"(Monthly!GF462/Monthly!GF461)-1","v":-1.7169574100267315E-2},{"$f":"(Monthly!GG462/Monthly!GG461)-1","v":2.1258503401360596E-2},{"$f":"(Monthly!GH462/Monthly!GH461)-1","v":{"$error":"#DIV/0!"}},"--",{"$f":"(Monthly!GJ462/Monthly!GJ461)-1","v":-0.18722729075763589},{"$f":"(Monthly!GK462/Monthly!GK461)-1","v":2.5105966742745345E-2},"--"]
["1996-09-01",null,null,null,{"$f":"(Monthly!E463/Monthly!E462)-1","v":{"$error":"#DIV/0!"}},{"$f":"(Monthly!F463/Monthly!F462)-1","v":{"$error":"#DIV/0!"}},{"$f":"(Monthly!G463/Monthly!G462)-1","v":{"$error":"#DIV/0!"}},{"$f":"(Monthly!H463/Monthly!H462)-1","v":{"$error":"#DIV/0!"}},null,null,null,null,null,null,null,null,null,null,null,null,null,null,null,{"$f":"(Monthly!X463-Monthly!X462)","v":0.19999999999998863},{"$f":"(Monthly!Y463/Monthly!Y462)-1","v":1.4314431190341592E-2},null,null,null,null,null,null,null,null,null,null,null,null,null,{"$f":"(Monthly!AM463/Monthly!AM462)-1","v":6.8620251467104154E-3},{"$f":"(Monthly!AN463/Monthly!AN462)-1","v":8.7821274894530621E-3},{"$f":"(Monthly!AO463/Monthly!AO462)-1","v":7.2501305023497942E-4},{"$f":"((Monthly!AP463-Monthly!AP462)*100)","v":-1.0000000000000009},{"$f":"Monthly!AQ463-Monthly!AQ462","v":-0.5},{"$f":"Monthly!AR463-Monthly!AR462","v":2.5},"--",{"$f":"Monthly!AT463-Monthly!AT462","v":-0.19999999999999574},{"$f":"Monthly!AU463-Monthly!AU462","v":-0.19999999999999574},{"$f":"Monthly!AV463-Monthly!AV462","v":0.70000000000000284},{"$f":"Monthly!AW463-Monthly!AW462","v":1.5},{"$f":"Monthly!AX463-Monthly!AX462","v":0},{"$f":"Monthly!AY463-Monthly!AY462","v":3.5},{"$f":"Monthly!AZ463-Monthly!AZ462","v":-1.6000000000000014},{"$f":"Monthly!BA463-Monthly!BA462","v":-1.8999999999999986},"--",{"$f":"(Monthly!BC463/Monthly!BC462)-1","v":-1.8826309570697086E-2},null,null,null,null,null,null,null,null,null,{"$f":"(Monthly!BM463/Monthly!BM462)-1","v":1.3334565875528614E-2},{"$f":"(Monthly!BN463/Monthly!BN462)-1","v":1.3393471447137095E-2},null,null,null,null,null,{"$f":"(Monthly!BT463/Monthly!BT462)-1","v":8.1373710885297434E-3},null,null,null,{"$f":"(Monthly!BX463/Monthly!BX462)-1","v":-5.266538214515093E-2},{"$f":"(Monthly!BY463/Monthly!BY462)-1","v":-1.4861995753715496E-2},"--",{"$f":"(Monthly!CA463/Monthly!CA462)-1","v":3.7017451084082609E-3},{"$f":"Monthly!CB463-Monthly!CB462","v":0.29227655699798305},{"$f":"Monthly!CC463-Monthly!CC462","v":0.36227655699798333},"--","--",null,"--","--",null,{"$f":"(Monthly!CJ463/Monthly!CJ462)-1","v":-6.7796610169491567E-2},{"$f":"(Monthly!CK463/Monthly!CK462)-1","v":5.6770771248062513E-3},{"$f":"(Monthly!CL463/Monthly!CL462)-1","v":2.1770266399312455E-2},{"$f":"(Monthly!CM463/Monthly!CM462)-1","v":-8.3067092651757157E-2},{"$f":"(Monthly!CN463/Monthly!CN462)-1","v":2.3955921105165423E-3},{"$f":"(Monthly!CO463/Monthly!CO462)-1","v":7.0078226857888115E-3},{"$f":"(Monthly!CP463/Monthly!CP462)-1","v":3.9072415225527291E-3},{"$f":"(Monthly!CQ463/Monthly!CQ462)-1","v":1.1408421489318421E-3},{"$f":"(Monthly!CR463/Monthly!CR462)-1","v":6.1902394219988111E-3},"--","--",null,null,null,null,null,{"$f":"(Monthly!CZ463/Monthly!CZ462)-1","v":3.1806615776082126E-3},{"$f":"(Monthly!DA463/Monthly!DA462)-1","v":3.0120481927711218E-3},null,null,null,null,null,"--",{"$f":"((Monthly!DH463-Monthly!DH462)*60)","v":0},{"$f":"((Monthly!DI463-Monthly!DI462)*100)","v":20.000000000000284},{"$f":"((Monthly!DJ463-Monthly!DJ462)*100)","v":9.9999999999999645},{"$f":"((Monthly!DK463-Monthly!DK462)*100)","v":10.000000000000053},{"$f":"Monthly!DL463-Monthly!DL462","v":-3},null,null,null,{"$f":"Monthly!DP463-Monthly!DP462","v":224},null,null,null,{"$f":"(Monthly!DT463/Monthly!DT462)-1","v":2.8507126781695424E-2},{"$f":"Monthly!DU463-Monthly!DU462","v":9.9999999999999645E-2},{"$f":"(Monthly!DV463-Monthly!DV462)","v":-3.2999999999999545},{"$f":"(Monthly!DW463-Monthly!DW462)","v":-9.7999999999999545},{"$f":"(Monthly!DX463-Monthly!DX462)","v":-6.6999999999999318},{"$f":"(Monthly!DY463-Monthly!DY462)","v":-1.6999999999999886},{"$f":"(Monthly!DZ463-Monthly!DZ462)","v":-5},{"$f":"(Monthly!EA463-Monthly!EA462)","v":-3.6000000000000227},{"$f":"(Monthly!EB463-Monthly!EB462)","v":-1.4000000000000057},{"$f":"(Monthly!EC463-Monthly!EC462)","v":-3.0999999999999659},null,null,null,null,null,null,null,null,null,null,null,null,null,{"$f":"(Monthly!EQ463/Monthly!EQ462)-1","v":-7.7942322681234799E-4},{"$f":"(Monthly!ER463/Monthly!ER462)-1","v":-7.0274068868603212E-4},{"$f":"(Monthly!ES463/Monthly!ES462)-1","v":-1.4430014430013571E-3},null,null,null,null,null,{"$f":"((Monthly!EY463-Monthly!EY462)*100)","v":0},{"$f":"((Monthly!EZ463-Monthly!EZ462)*100)","v":8.0000000000000071},{"$f":"((Monthly!FA463-Monthly!FA462)*100)","v":20.000000000000018},{"$f":"((Monthly!FB463-Monthly!FB462)*100)","v":16.999999999999993},"--",{"$f":"((Monthly!FD463-Monthly!FD462)*100)","v":23.000000000000043},{"$f":"((Monthly!FE463-Monthly!FE462)*100)","v":4.0000000000000036},{"$f":"((Monthly!FF463-Monthly!FF462)*100)","v":16.000000000000014},{"$f":"((Monthly!FG463-Monthly!FG462)*100)","v":20.000000000000018},{"$f":"((Monthly!FH463-Monthly!FH462)*100)","v":20.999999999999996},{"$f":"((Monthly!FI463-Monthly!FI462)*100)","v":19.000000000000039},null,null,null,null,null,null,{"$f":"(Monthly!FP463/Monthly!FP462)-1","v":-2.0405188747997238E-3},{"$f":"(Monthly!FQ463/Monthly!FQ462)-1","v":-4.557502488635734E-4},{"$f":"(Monthly!FR463/Monthly!FR462)-1","v":3.9657719281902537E-3},"--",{"$f":"(Monthly!FT463/Monthly!FT462)-1","v":5.4770717663992219E-3},{"$f":"(Monthly!FU463/Monthly!FU462)-1","v":7.8987795412510664E-3},{"$f":"(Monthly!FV463/Monthly!FV462)-1","v":2.4698017169338282E-2},{"$f":"(Monthly!FW463/Monthly!FW462)-1","v":-2.7294066269992756E-3},{"$f":"(Monthly!FX463/Monthly!FX462)-1","v":3.9247195525200507E-3},null,null,null,null,null,{"$f":"(Monthly!GD463/Monthly!GD462)-1","v":9.2440801457194688E-2},{"$f":"(Monthly!GE463/Monthly!GE462)-1","v":0.10336421257922956},{"$f":"(Monthly!GF463/Monthly!GF462)-1","v":-2.5984409354387061E-3},{"$f":"(Monthly!GG463/Monthly!GG462)-1","v":5.3288925895087269E-2},{"$f":"(Monthly!GH463/Monthly!GH462)-1","v":{"$error":"#DIV/0!"}},"--",{"$f":"(Monthly!GJ463/Monthly!GJ462)-1","v":-5.6612981942410823E-2},{"$f":"(Monthly!GK463/Monthly!GK462)-1","v":1.1132315521628522E-2},"--"]
["1997-01-01",null,null,null,{"$f":"(Monthly!E467/Monthly!E466)-1","v":{"$error":"#DIV/0!"}},{"$f":"(Monthly!F467/Monthly!F466)-1","v":{"$error":"#DIV/0!"}},{"$f":"(Monthly!G467/Monthly!G466)-1","v":{"$error":"#DIV/0!"}},{"$f":"(Monthly!H467/Monthly!H466)-1","v":{"$error":"#DIV/0!"}},null,null,null,null,null,null,null,null,null,null,null,null,null,null,null,{"$f":"(Monthly!X467-Monthly!X466)","v":-0.29999999999999716},{"$f":"(Monthly!Y467/Monthly!Y466)-1","v":4.8481526131549657E-3},null,null,null,null,null,null,null,null,null,null,null,null,null,{"$f":"(Monthly!AM467/Monthly!AM466)-1","v":1.2602693825805034E-3},{"$f":"(Monthly!AN467/Monthly!AN466)-1","v":3.967153509583099E-4},{"$f":"(Monthly!AO467/Monthly!AO466)-1","v":3.0646604537369893E-3},{"$f":"((Monthly!AP467-Monthly!AP466)*100)","v":0},{"$f":"Monthly!AQ467-Monthly!AQ466","v":-1.4000000000000057},{"$f":"Monthly!AR467-Monthly!AR466","v":-5.5},{"$f":"Monthly!AS467-Monthly!AS466","v":{"$error":"#VALUE!"}},{"$f":"Monthly!AT467-Monthly!AT466","v":1.1999999999999957},{"$f":"Monthly!AU467-Monthly!AU466","v":-0.29999999999999716},{"$f":"Monthly!AV467-Monthly!AV466","v":1.8999999999999986},{"$f":"Monthly!AW467-Monthly!AW466","v":-1.1999999999999957},{"$f":"Monthly!AX467-Monthly!AX466","v":-4.7000000000000028},{"$f":"Monthly!AY467-Monthly!AY466","v":1.2999999999999972},{"$f":"Monthly!AZ467-Monthly!AZ466","v":0.89999999999999858},{"$f":"Monthly!BA467-Monthly!BA466","v":-2.2999999999999972},"--",{"$f":"(Monthly!BC467/Monthly!BC466)-1","v":2.3500443218753109E-2},null,null,null,null,null,null,null,null,null,{"$f":"(Monthly!BM467/Monthly!BM466)-1","v":7.3276911013169244E-3},{"$f":"(Monthly!BN467/Monthly!BN466)-1","v":6.0788007415839562E-3},null,null,null,null,null,{"$f":"(Monthly!BT467/Monthly!BT466)-1","v":5.8762344159348778E-3},null,null,null,{"$f":"(Monthly!BX467/Monthly!BX466)-1","v":-1.0948905109489093E-2},{"$f":"(Monthly!BY467/Monthly!BY466)-1","v":-2.0552799433026236E-2},"--",{"$f":"(Monthly!CA467/Monthly!CA466)-1","v":3.2527442925449623E-2},{"$f":"Monthly!CB467-Monthly!CB466","v":-0.44067908164914371},{"$f":"Monthly!CC467-Monthly!CC466","v":-0.51067908164914044},"--","--",null,"--","--",null,{"$f":"(Monthly!CJ467/Monthly!CJ466)-1","v":3.105590062111796E-2},{"$f":"(Monthly!CK467/Monthly!CK466)-1","v":7.5147297475111063E-3},{"$f":"(Monthly!CL467/Monthly!CL466)-1","v":-2.1593230230522287E-2},{"$f":"(Monthly!CM467/Monthly!CM466)-1","v":4.5283018867924518E-2},{"$f":"(Monthly!CN467/Monthly!CN466)-1","v":3.2861743124110721E-3},{"$f":"(Monthly!CO467/Monthly!CO466)-1","v":6.589268904926282E-3},{"$f":"(Monthly!CP467/Monthly!CP466)-1","v":3.9317489485510837E-3},{"$f":"(Monthly!CQ467/Monthly!CQ466)-1","v":8.6675887505771598E-4},{"$f":"(Monthly!CR467/Monthly!CR466)-1","v":5.8199081566987498E-3},"--","--",null,null,null,null,null,{"$f":"(Monthly!CZ467/Monthly!CZ466)-1","v":1.8856065367693908E-3},{"$f":"(Monthly!DA467/Monthly!DA466)-1","v":2.389486260454099E-3},null,null,null,null,null,"--",{"$f":"((Monthly!DH467-Monthly!DH466)*60)","v":-6.0000000000000853},{"$f":"((Monthly!DI467-Monthly!DI466)*100)","v":0},{"$f":"((Monthly!DJ467-Monthly!DJ466)*100)","v":-9.9999999999999645},{"$f":"((Monthly!DK467-Monthly!DK466)*100)","v":-10.000000000000053},{"$f":"Monthly!DL467-Monthly!DL466","v":13},null,null,null,{"$f":"Monthly!DP467-Monthly!DP466","v":233},null,null,null,{"$f":"(Monthly!DT467/Monthly!DT466)-1","v":-4.1018387553040991E-2},{"$f":"Monthly!DU467-Monthly!DU466","v":0},{"$f":"(Monthly!DV467-Monthly!DV466)","v":3.5},{"$f":"(Monthly!DW467-Monthly!DW466)","v":-27.699999999999818},{"$f":"(Monthly!DX467-Monthly!DX466)","v":-19.900000000000091},{"$f":"(Monthly!DY467-Monthly!DY466)","v":-5.4000000000000057},{"$f":"(Monthly!DZ467-Monthly!DZ466)","v":-14.5},{"$f":"(Monthly!EA467-Monthly!EA466)","v":-10.100000000000023},{"$f":"(Monthly!EB467-Monthly!EB466)","v":-4.4000000000000057},{"$f":"(Monthly!EC467-Monthly!EC466)","v":-7.7999999999999545},null,null,null,null,null,null,null,null,null,null,null,null,null,{"$f":"(Monthly!EQ467/Monthly!EQ466)-1","v":4.6475600309836551E-3},{"$f":"(Monthly!ER467/Monthly!ER466)-1","v":1.4054813773716202E-3},{"$f":"(Monthly!ES467/Monthly!ES466)-1","v":2.1676300578032937E-3},null,null,null,null,null,{"$f":"((Monthly!EY467-Monthly!EY466)*100)","v":0},{"$f":"((Monthly!EZ467-Monthly!EZ466)*100)","v":-4.0000000000000036},{"$f":"((Monthly!FA467-Monthly!FA466)*100)","v":21.999999999999975},{"$f":"((Monthly!FB467-Monthly!FB466)*100)","v":20.000000000000018},"--",{"$f":"((Monthly!FD467-Monthly!FD466)*100)","v":22.000000000000064},{"$f":"((Monthly!FE467-Monthly!FE466)*100)","v":12.000000000000011},{"$f":"((Monthly!FF467-Monthly!FF466)*100)","v":14.000000000000057},{"$f":"((Monthly!FG467-Monthly!FG466)*100)","v":22.999999999999954},{"$f":"((Monthly!FH467-Monthly!FH466)*100)","v":25.999999999999979},{"$f":"((Monthly!FI467-Monthly!FI466)*100)","v":28.000000000000025},null,null,null,null,null,null,{"$f":"(Monthly!FP467/Monthly!FP466)-1","v":-9.3965643811482202E-3},{"$f":"(Monthly!FQ467/Monthly!FQ466)-1","v":-3.6018729739462074E-4},{"$f":"(Monthly!FR467/Monthly!FR466)-1","v":-6.0937678528355521E-3},"--",{"$f":"(Monthly!FT467/Monthly!FT466)-1","v":1.0819815303003466E-2},{"$f":"(Monthly!FU467/Monthly!FU466)-1","v":1.8097731140422901E-2},{"$f":"(Monthly!FV467/Monthly!FV466)-1","v":7.5232745413835067E-2},{"$f":"(Monthly!FW467/Monthly!FW466)-1","v":0.18256903977704586},{"$f":"(Monthly!FX467/Monthly!FX466)-1","v":1.4461387112641333E-2},null,null,null,null,null,{"$f":"(Monthly!GD467/Monthly!GD466)-1","v":-8.6648286727057933E-3},{"$f":"(Monthly!GE467/Monthly!GE466)-1","v":-1.0092514718250678E-2},{"$f":"(Monthly!GF467/Monthly!GF466)-1","v":5.4610703697921537E-4},{"$f":"(Monthly!GG467/Monthly!GG466)-1","v":-1.3750954927425507E-2},{"$f":"(Monthly!GH467/Monthly!GH466)-1","v":{"$error":"#DIV/0!"}},"--",{"$f":"(Monthly!GJ467/Monthly!GJ466)-1","v":-0.15857338820301781},{"$f":"(Monthly!GK467/Monthly!GK466)-1","v":-2.9054254372961719E-2},"--"]
["1997-08-01",null,null,null,{"$f":"(Monthly!E474/Monthly!E473)-1","v":{"$error":"#DIV/0!"}},{"$f":"(Monthly!F474/Monthly!F473)-1","v":{"$error":"#DIV/0!"}},{"$f":"(Monthly!G474/Monthly!G473)-1","v":{"$error":"#DIV/0!"}},{"$f":"(Monthly!H474/Monthly!H473)-1","v":{"$error":"#DIV/0!"}},null,null,null,null,null,null,null,null,null,null,null,null,null,null,null,{"$f":"(Monthly!X474-Monthly!X473)","v":0.40000000000000568},{"$f":"(Monthly!Y474/Monthly!Y473)-1","v":7.2689635320812851E-3},null,null,null,null,null,null,null,null,null,null,null,null,null,{"$f":"(Monthly!AM474/Monthly!AM473)-1","v":1.0528682994643601E-2},{"$f":"(Monthly!AN474/Monthly!AN473)-1","v":1.3192012288786525E-2},{"$f":"(Monthly!AO474/Monthly!AO473)-1","v":1.3227216898110683E-3},{"$f":"((Monthly!AP474-Monthly!AP473)*100)","v":0},{"$f":"Monthly!AQ474-Monthly!AQ473","v":-1.4000000000000057},{"$f":"Monthly!AR474-Monthly!AR473","v":3.5},{"$f":"Monthly!AS474-Monthly!AS473","v":-0.5},{"$f":"Monthly!AT474-Monthly!AT473","v":-0.40000000000000568},{"$f":"Monthly!AU474-Monthly!AU473","v":-1.3000000000000043},{"$f":"Monthly!AV474-Monthly!AV473","v":-1.5},{"$f":"Monthly!AW474-Monthly!AW473","v":-2.8999999999999986},{"$f":"Monthly!AX474-Monthly!AX473","v":-1},{"$f":"Monthly!AY474-Monthly!AY473","v":0.10000000000000142},{"$f":"Monthly!AZ474-Monthly!AZ473","v":-3},{"$f":"Monthly!BA474-Monthly!BA473","v":0.5},{"$f":"Monthly!BB474-Monthly!BB473","v":4},{"$f":"(Monthly!BC474/Monthly!BC473)-1","v":-1.2498092217945067E-2},null,null,null,null,null,null,null,null,null,{"$f":"(Monthly!BM474/Monthly!BM473)-1","v":2.5312803294599284E-3},{"$f":"(Monthly!BN474/Monthly!BN473)-1","v":2.8688861090853113E-3},null,null,null,null,null,{"$f":"(Monthly!BT474/Monthly!BT473)-1","v":4.2281078836770014E-4},null,null,null,{"$f":"(Monthly!BX474/Monthly!BX473)-1","v":-3.2707028531663185E-2},{"$f":"(Monthly!BY474/Monthly!BY473)-1","v":6.2500000000000888E-3},"--",{"$f":"(Monthly!CA474/Monthly!CA473)-1","v":3.7580623930498769E-2},{"$f":"Monthly!CB474-Monthly!CB473","v":2.4471240336476185E-2},{"$f":"Monthly!CC474-Monthly!CC473","v":-4.5528759663522322E-2},"--","--",null,"--","--",null,{"$f":"(Monthly!CJ474/Monthly!CJ473)-1","v":1.2422360248447228E-2},{"$f":"(Monthly!CK474/Monthly!CK473)-1","v":6.5963247030240701E-3},{"$f":"(Monthly!CL474/Monthly!CL473)-1","v":-1.1259259259259302E-2},{"$f":"(Monthly!CM474/Monthly!CM473)-1","v":-2.9126213592232997E-2},{"$f":"(Monthly!CN474/Monthly!CN473)-1","v":5.1471916200107604E-3},{"$f":"(Monthly!CO474/Monthly!CO473)-1","v":6.7304816033502135E-3},{"$f":"(Monthly!CP474/Monthly!CP473)-1","v":4.218867116393632E-3},{"$f":"(Monthly!CQ474/Monthly!CQ473)-1","v":1.1908600574543904E-3},{"$f":"(Monthly!CR474/Monthly!CR473)-1","v":6.812103136055514E-3},"--","--",null,null,null,null,null,{"$f":"(Monthly!CZ474/Monthly!CZ473)-1","v":2.4937655860348684E-3},{"$f":"(Monthly!DA474/Monthly!DA473)-1","v":5.892751915146377E-4},null,null,null,null,null,"--",{"$f":"((Monthly!DH474-Monthly!DH473)*60)","v":6.0000000000000853},{"$f":"((Monthly!DI474-Monthly!DI473)*100)","v":0},{"$f":"((Monthly!DJ474-Monthly!DJ473)*100)","v":0},{"$f":"((Monthly!DK474-Monthly!DK473)*100)","v":-10.000000000000053},{"$f":"Monthly!DL474-Monthly!DL473","v":63},null,null,null,{"$f":"Monthly!DP474-Monthly!DP473","v":-31},null,null,null,{"$f":"(Monthly!DT474/Monthly!DT473)-1","v":3.9194253591505301E-2},{"$f":"Monthly!DU474-Monthly!DU473","v":-0.50000000000000089},{"$f":"(Monthly!DV474-Monthly!DV473)","v":5.5999999999999091},{"$f":"(Monthly!DW474-Monthly!DW473)","v":14.400000000000091},{"$f":"(Monthly!DX474-Monthly!DX473)","v":10.900000000000091},{"$f":"(Monthly!DY474-Monthly!DY473)","v":2.1999999999999886},{"$f":"(Monthly!DZ474-Monthly!DZ473)","v":8.7000000000000455},{"$f":"(Monthly!EA474-Monthly!EA473)","v":6.1999999999999886},{"$f":"(Monthly!EB474-Monthly!EB473)","v":2.5},{"$f":"(Monthly!EC474-Monthly!EC473)","v":3.5},null,null,null,null,null,null,null,null,null,null,null,null,null,{"$f":"(Monthly!EQ474/Monthly!EQ473)-1","v":2.3640661938533203E-3},{"$f":"(Monthly!ER474/Monthly!ER473)-1","v":7.0323488045032079E-4},{"$f":"(Monthly!ES474/Monthly!ES473)-1","v":0},null,null,null,null,null,{"$f":"((Monthly!EY474-Monthly!EY473)*100)","v":0},{"$f":"((Monthly!EZ474-Monthly!EZ473)*100)","v":2.0000000000000462},{"$f":"((Monthly!FA474-Monthly!FA473)*100)","v":8.0000000000000071},{"$f":"((Monthly!FB474-Monthly!FB473)*100)","v":7.0000000000000284},"--",{"$f":"((Monthly!FD474-Monthly!FD473)*100)","v":-1.9999999999999574},{"$f":"((Monthly!FE474-Monthly!FE473)*100)","v":8.9999999999999858},{"$f":"((Monthly!FF474-Monthly!FF473)*100)","v":1.9999999999999574},{"$f":"((Monthly!FG474-Monthly!FG473)*100)","v":5.0000000000000711},{"$f":"((Monthly!FH474-Monthly!FH473)*100)","v":4.0000000000000036},{"$f":"((Monthly!FI474-Monthly!FI473)*100)","v":8.0000000000000071},null,null,null,null,null,null,{"$f":"(Monthly!FP474/Monthly!FP473)-1","v":9.4373865698731407E-3},{"$f":"(Monthly!FQ474/Monthly!FQ473)-1","v":3.0061807075343339E-4},{"$f":"(Monthly!FR474/Monthly!FR473)-1","v":-1.0943199583116181E-2},"--",{"$f":"(Monthly!FT474/Monthly!FT473)-1","v":1.8217408477319674E-2},{"$f":"(Monthly!FU474/Monthly!FU473)-1","v":2.1070621124522182E-2},{"$f":"(Monthly!FV474/Monthly!FV473)-1","v":9.5484371464589435E-2},{"$f":"(Monthly!FW474/Monthly!FW473)-1","v":5.1305130513051411E-2},{"$f":"(Monthly!FX474/Monthly!FX473)-1","v":3.6509134403166943E-2},null,null,null,null,null,{"$f":"(Monthly!GD474/Monthly!GD473)-1","v":1.5282730514518672E-2},{"$f":"(Monthly!GE474/Monthly!GE473)-1","v":7.5839653304441423E-3},{"$f":"(Monthly!GF474/Monthly!GF473)-1","v":4.6639960758666055E-2},{"$f":"(Monthly!GG474/Monthly!GG473)-1","v":1.2163336229365829E-2},{"$f":"(Monthly!GH474/Monthly!GH473)-1","v":{"$error":"#DIV/0!"}},"--",{"$f":"(Monthly!GJ474/Monthly!GJ473)-1","v":0.15370196813495807},{"$f":"(Monthly!GK474/Monthly!GK473)-1","v":-4.0202501488981524E-2},"--"]
["1997-10-01",null,null,null,{"$f":"(Monthly!E476/Monthly!E475)-1","v":{"$error":"#DIV/0!"}},{"$f":"(Monthly!F476/Monthly!F475)-1","v":{"$error":"#DIV/0!"}},{"$f":"(Monthly!G476/Monthly!G475)-1","v":{"$error":"#DIV/0!"}},{"$f":"(Monthly!H476/Monthly!H475)-1","v":{"$error":"#DIV/0!"}},null,null,null,null,null,null,null,null,null,null,null,null,null,null,null,{"$f":"(Monthly!X476-Monthly!X475)","v":0.19999999999998863},{"$f":"(Monthly!Y476/Monthly!Y475)-1","v":4.9599052033086899E-3},null,null,null,null,null,null,null,null,null,null,null,null,null,{"$f":"(Monthly!AM476/Monthly!AM475)-1","v":8.5531677503587478E-3},{"$f":"(Monthly!AN476/Monthly!AN475)-1","v":8.550615894453939E-3},{"$f":"(Monthly!AO476/Monthly!AO475)-1","v":3.7693312361453124E-3},{"$f":"((Monthly!AP476-Monthly!AP475)*100)","v":1.0000000000000009},{"$f":"Monthly!AQ476-Monthly!AQ475","v":2.5},{"$f":"Monthly!AR476-Monthly!AR475","v":6.5},{"$f":"Monthly!AS476-Monthly!AS475","v":-2.5},{"$f":"Monthly!AT476-Monthly!AT475","v":1.5999999999999943},{"$f":"Monthly!AU476-Monthly!AU475","v":5.5},{"$f":"Monthly!AV476-Monthly!AV475","v":0.19999999999999574},{"$f":"Monthly!AW476-Monthly!AW475","v":-2.2000000000000028},{"$f":"Monthly!AX476-Monthly!AX475","v":5.5},{"$f":"Monthly!AY476-Monthly!AY475","v":0.60000000000000142},{"$f":"Monthly!AZ476-Monthly!AZ475","v":2.7999999999999972},{"$f":"Monthly!BA476-Monthly!BA475","v":0.10000000000000142},{"$f":"Monthly!BB476-Monthly!BB475","v":3.5},{"$f":"(Monthly!BC476/Monthly!BC475)-1","v":-4.2581846598939155E-2},null,null,null,null,null,null,null,null,null,{"$f":"(Monthly!BM476/Monthly!BM475)-1","v":-2.0062184085737345E-3},{"$f":"(Monthly!BN476/Monthly!BN475)-1","v":-1.1233905270333633E-3},null,null,null,null,null,{"$f":"(Monthly!BT476/Monthly!BT475)-1","v":-1.1418374479136295E-2},null,null,null,{"$f":"(Monthly!BX476/Monthly!BX475)-1","v":-1.681759379042691E-2},{"$f":"(Monthly!BY476/Monthly!BY475)-1","v":3.3467202141901353E-3},"--",{"$f":"(Monthly!CA476/Monthly!CA475)-1","v":2.209231187546723E-2},{"$f":"Monthly!CB476-Monthly!CB475","v":-0.33343680130062392},{"$f":"Monthly!CC476-Monthly!CC475","v":-0.4734368013006236},"--","--",null,"--","--",null,{"$f":"(Monthly!CJ476/Monthly!CJ475)-1","v":-4.7619047619047672E-2},{"$f":"(Monthly!CK476/Monthly!CK475)-1","v":6.3501367721765511E-3},{"$f":"(Monthly!CL476/Monthly!CL475)-1","v":-3.4354423131978118E-3},{"$f":"(Monthly!CM476/Monthly!CM475)-1","v":-6.4730290456431527E-2},{"$f":"(Monthly!CN476/Monthly!CN475)-1","v":4.6972993728400247E-3},{"$f":"(Monthly!CO476/Monthly!CO475)-1","v":1.1086637298090896E-2},{"$f":"(Monthly!CP476/Monthly!CP475)-1","v":5.9574304624567809E-3},{"$f":"(Monthly!CQ476/Monthly!CQ475)-1","v":1.0930240209392483E-3},{"$f":"(Monthly!CR476/Monthly!CR475)-1","v":6.2828811489734626E-3},"--","--",null,null,null,null,null,{"$f":"(Monthly!CZ476/Monthly!CZ475)-1","v":1.8610421836229296E-3},{"$f":"(Monthly!DA476/Monthly!DA475)-1","v":2.3501762632198719E-3},null,null,null,null,null,"--",{"$f":"((Monthly!DH476-Monthly!DH475)*60)","v":-6.0000000000000853},{"$f":"((Monthly!DI476-Monthly!DI475)*100)","v":0},{"$f":"((Monthly!DJ476-Monthly!DJ475)*100)","v":-29.999999999999893},{"$f":"((Monthly!DK476-Monthly!DK475)*100)","v":-20.000000000000018},{"$f":"Monthly!DL476-Monthly!DL475","v":48},null,null,null,{"$f":"Monthly!DP476-Monthly!DP475","v":342},null,null,null,{"$f":"(Monthly!DT476/Monthly!DT475)-1","v":-1.4750198255352842E-2},{"$f":"Monthly!DU476-Monthly!DU475","v":-0.49999999999999911},{"$f":"(Monthly!DV476-Monthly!DV475)","v":-1},{"$f":"(Monthly!DW476-Monthly!DW475)","v":-3.1000000000001364},{"$f":"(Monthly!DX476-Monthly!DX475)","v":-1.3999999999999773},{"$f":"(Monthly!DY476-Monthly!DY475)","v":-1.4000000000000057},{"$f":"(Monthly!DZ476-Monthly!DZ475)","v":0},{"$f":"(Monthly!EA476-Monthly!EA475)","v":-0.10000000000002274},{"$f":"(Monthly!EB476-Monthly!EB475)","v":9.9999999999994316E-2},{"$f":"(Monthly!EC476-Monthly!EC475)","v":-1.6999999999999886},null,null,null,null,null,null,null,null,null,null,null,null,null,{"$f":"(Monthly!EQ476/Monthly!EQ475)-1","v":2.3529411764706687E-3},{"$f":"(Monthly!ER476/Monthly!ER475)-1","v":0},{"$f":"(Monthly!ES476/Monthly!ES475)-1","v":-1.4471780028942893E-3},null,null,null,null,null,{"$f":"((Monthly!EY476-Monthly!EY475)*100)","v":0},{"$f":"((Monthly!EZ476-Monthly!EZ475)*100)","v":-4.0000000000000036},{"$f":"((Monthly!FA476-Monthly!FA475)*100)","v":-15.000000000000036},{"$f":"((Monthly!FB476-Monthly!FB475)*100)","v":-12.999999999999989},"--",{"$f":"((Monthly!FD476-Monthly!FD475)*100)","v":-13.999999999999968},{"$f":"((Monthly!FE476-Monthly!FE475)*100)","v":1.9999999999999574},{"$f":"((Monthly!FF476-Monthly!FF475)*100)","v":-5.9999999999999609},{"$f":"((Monthly!FG476-Monthly!FG475)*100)","v":-11.000000000000032},{"$f":"((Monthly!FH476-Monthly!FH475)*100)","v":-18.00000000000006},{"$f":"((Monthly!FI476-Monthly!FI475)*100)","v":-17.999999999999972},null,null,null,null,null,null,{"$f":"(Monthly!FP476/Monthly!FP475)-1","v":-2.1626297577848064E-4},{"$f":"(Monthly!FQ476/Monthly!FQ475)-1","v":-4.32843178511777E-4},{"$f":"(Monthly!FR476/Monthly!FR475)-1","v":1.1553933349612633E-2},"--",{"$f":"(Monthly!FT476/Monthly!FT475)-1","v":5.7730108901699051E-3},{"$f":"(Monthly!FU476/Monthly!FU475)-1","v":-6.5908101068206104E-3},{"$f":"(Monthly!FV476/Monthly!FV475)-1","v":3.3882378952023062E-2},{"$f":"(Monthly!FW476/Monthly!FW475)-1","v":6.8735330874509781E-3},{"$f":"(Monthly!FX476/Monthly!FX475)-1","v":9.7538505456291169E-2},null,null,null,null,null,{"$f":"(Monthly!GD476/Monthly!GD475)-1","v":7.4279939363314895E-2},{"$f":"(Monthly!GE476/Monthly!GE475)-1","v":7.6381365113759481E-2},{"$f":"(Monthly!GF476/Monthly!GF475)-1","v":-2.7842136265462392E-2},{"$f":"(Monthly!GG476/Monthly!GG475)-1","v":1.9827586206896619E-2},{"$f":"(Monthly!GH476/Monthly!GH475)-1","v":{"$error":"#DIV/0!"}},"--",{"$f":"(Monthly!GJ476/Monthly!GJ475)-1","v":0.12878524190741381},{"$f":"(Monthly!GK476/Monthly!GK475)-1","v":0.12201338005734308},"--"]
["1998-03-01",null,null,null,{"$f":"(Monthly!E481/Monthly!E480)-1","v":{"$error":"#DIV/0!"}},{"$f":"(Monthly!F481/Monthly!F480)-1","v":{"$error":"#DIV/0!"}},{"$f":"(Monthly!G481/Monthly!G480)-1","v":{"$error":"#DIV/0!"}},{"$f":"(Monthly!H481/Monthly!H480)-1","v":{"$error":"#DIV/0!"}},null,null,null,null,null,null,null,null,null,null,null,null,null,null,null,{"$f":"(Monthly!X481-Monthly!X480)","v":-0.40000000000000568},{"$f":"(Monthly!Y481/Monthly!Y480)-1","v":4.3804207402293738E-3},null,null,null,null,null,null,null,null,null,null,null,null,null,{"$f":"(Monthly!AM481/Monthly!AM480)-1","v":8.3497284328348798E-4},{"$f":"(Monthly!AN481/Monthly!AN480)-1","v":-1.6674399215814706E-3},{"$f":"(Monthly!AO481/Monthly!AO480)-1","v":4.9051202820800111E-3},{"$f":"((Monthly!AP481-Monthly!AP480)*100)","v":0},{"$f":"Monthly!AQ481-Monthly!AQ480","v":0},{"$f":"Monthly!AR481-Monthly!AR480","v":3.5},{"$f":"Monthly!AS481-Monthly!AS480","v":0.5},{"$f":"Monthly!AT481-Monthly!AT480","v":-0.30000000000000426},{"$f":"Monthly!AU481-Monthly!AU480","v":-1.5999999999999943},{"$f":"Monthly!AV481-Monthly!AV480","v":-1.2999999999999972},{"$f":"Monthly!AW481-Monthly!AW480","v":-0.20000000000000284},{"$f":"Monthly!AX481-Monthly!AX480","v":0.29999999999999716},{"$f":"Monthly!AY481-Monthly!AY480","v":-1.2999999999999972},{"$f":"Monthly!AZ481-Monthly!AZ480","v":-0.10000000000000142},{"$f":"Monthly!BA481-Monthly!BA480","v":0.20000000000000284},{"$f":"Monthly!BB481-Monthly!BB480","v":-1.8999999999999986},{"$f":"(Monthly!BC481/Monthly!BC480)-1","v":-2.8469391193019056E-2},null,null,null,null,null,null,null,null,null,{"$f":"(Monthly!BM481/Monthly!BM480)-1","v":5.9525865045928494E-3},{"$f":"(Monthly!BN481/Monthly!BN480)-1","v":6.0134012943129367E-3},null,null,null,null,null,{"$f":"(Monthly!BT481/Monthly!BT480)-1","v":-3.3093404126134374E-3},null,null,null,{"$f":"(Monthly!BX481/Monthly!BX480)-1","v":-1.0732323232323204E-2},{"$f":"(Monthly!BY481/Monthly!BY480)-1","v":-2.5500910746812377E-2},"--",{"$f":"(Monthly!CA481/Monthly!CA480)-1","v":1.0917177707392645E-2},{"$f":"Monthly!CB481-Monthly!CB480","v":3.6520525421946282E-2},{"$f":"Monthly!CC481-Monthly!CC480","v":0.10652052542194745},"--","--",null,"--","--",null,{"$f":"(Monthly!CJ481/Monthly!CJ480)-1","v":-3.4642032332563466E-2},{"$f":"(Monthly!CK481/Monthly!CK480)-1","v":6.3202436460663147E-3},{"$f":"(Monthly!CL481/Monthly!CL480)-1","v":2.188940092165903E-2},{"$f":"(Monthly!CM481/Monthly!CM480)-1","v":-1.2934518997574806E-2},{"$f":"(Monthly!CN481/Monthly!CN480)-1","v":5.8262055286970593E-3},{"$f":"(Monthly!CO481/Monthly!CO480)-1","v":1.0896137458964894E-2},{"$f":"(Monthly!CP481/Monthly!CP480)-1","v":6.4641123479594054E-3},{"$f":"(Monthly!CQ481/Monthly!CQ480)-1","v":7.6044797298768785E-4},{"$f":"(Monthly!CR481/Monthly!CR480)-1","v":4.7378493333478655E-3},"--","--",null,null,null,null,null,{"$f":"(Monthly!CZ481/Monthly!CZ480)-1","v":0},{"$f":"(Monthly!DA481/Monthly!DA480)-1","v":1.7452006980802626E-3},null,null,null,null,null,"--",{"$f":"((Monthly!DH481-Monthly!DH480)*60)","v":0},{"$f":"((Monthly!DI481-Monthly!DI480)*100)","v":0},{"$f":"((Monthly!DJ481-Monthly!DJ480)*100)","v":0},{"$f":"((Monthly!DK481-Monthly!DK480)*100)","v":10.000000000000053},{"$f":"Monthly!DL481-Monthly!DL480","v":10},null,null,null,{"$f":"Monthly!DP481-Monthly!DP480","v":149},null,null,null,{"$f":"(Monthly!DT481/Monthly!DT480)-1","v":-9.7331240188383017E-3},{"$f":"Monthly!DU481-Monthly!DU480","v":-0.20000000000000018},{"$f":"(Monthly!DV481-Monthly!DV480)","v":0.79999999999995453},{"$f":"(Monthly!DW481-Monthly!DW480)","v":4.6999999999998181},{"$f":"(Monthly!DX481-Monthly!DX480)","v":3.5},{"$f":"(Monthly!DY481-Monthly!DY480)","v":0.40000000000000568},{"$f":"(Monthly!DZ481-Monthly!DZ480)","v":3.1000000000000227},{"$f":"(Monthly!EA481-Monthly!EA480)","v":2.2000000000000455},{"$f":"(Monthly!EB481-Monthly!EB480)","v":0.90000000000000568},{"$f":"(Monthly!EC481-Monthly!EC480)","v":1.2000000000000455},null,null,null,null,null,null,null,null,null,null,null,null,null,{"$f":"(Monthly!EQ481/Monthly!EQ480)-1","v":-2.3999999999999577E-3},{"$f":"(Monthly!ER481/Monthly!ER480)-1","v":4.908835904628539E-3},{"$f":"(Monthly!ES481/Monthly!ES480)-1","v":7.2621641249104307E-4},null,null,null,null,null,{"$f":"((Monthly!EY481-Monthly!EY480)*100)","v":0},{"$f":"((Monthly!EZ481-Monthly!EZ480)*100)","v":-1.9999999999999574},{"$f":"((Monthly!FA481-Monthly!FA480)*100)","v":4.9999999999999822},{"$f":"((Monthly!FB481-Monthly!FB480)*100)","v":7.0000000000000284},"--",{"$f":"((Monthly!FD481-Monthly!FD480)*100)","v":8.9999999999999858},{"$f":"((Monthly!FE481-Monthly!FE480)*100)","v":-5.9999999999999609},{"$f":"((Monthly!FF481-Monthly!FF480)*100)","v":8.0000000000000071},{"$f":"((Monthly!FG481-Monthly!FG480)*100)","v":13.999999999999968},{"$f":"((Monthly!FH481-Monthly!FH480)*100)","v":12.000000000000011},{"$f":"((Monthly!FI481-Monthly!FI480)*100)","v":8.0000000000000071},null,null,null,null,null,null,{"$f":"(Monthly!FP481/Monthly!FP480)-1","v":-1.1720385098367481E-2},{"$f":"(Monthly!FQ481/Monthly!FQ480)-1","v":4.8151001540874816E-5},{"$f":"(Monthly!FR481/Monthly!FR480)-1","v":7.7627880170780816E-3},"--",{"$f":"(Monthly!FT481/Monthly!FT480)-1","v":-2.3495489198104291E-3},{"$f":"(Monthly!FU481/Monthly!FU480)-1","v":3.8706450118293212E-3},{"$f":"(Monthly!FV481/Monthly!FV480)-1","v":0.10204914511555985},{"$f":"(Monthly!FW481/Monthly!FW480)-1","v":5.2307219931572835E-2},{"$f":"(Monthly!FX481/Monthly!FX480)-1","v":0.19625845941635434},null,null,null,null,null,{"$f":"(Monthly!GD481/Monthly!GD480)-1","v":-6.4757160647571532E-2},{"$f":"(Monthly!GE481/Monthly!GE480)-1","v":-6.8941009239516737E-2},{"$f":"(Monthly!GF481/Monthly!GF480)-1","v":-2.9379562043795659E-2},{"$f":"(Monthly!GG481/Monthly!GG480)-1","v":-1.9372693726937396E-2},{"$f":"(Monthly!GH481/Monthly!GH480)-1","v":{"$error":"#DIV/0!"}},"--",{"$f":"(Monthly!GJ481/Monthly!GJ480)-1","v":-4.4189129474148103E-3},{"$f":"(Monthly!GK481/Monthly!GK480)-1","v":-4.2558886509636018E-2},"--"]
["1998-08-01",null,null,null,{"$f":"(Monthly!E486/Monthly!E485)-1","v":{"$error":"#DIV/0!"}},{"$f":"(Monthly!F486/Monthly!F485)-1","v":{"$error":"#DIV/0!"}},{"$f":"(Monthly!G486/Monthly!G485)-1","v":{"$error":"#DIV/0!"}},{"$f":"(Monthly!H486/Monthly!H485)-1","v":{"$error":"#DIV/0!"}},null,null,null,null,null,null,null,null,null,null,null,null,null,null,null,{"$f":"(Monthly!X486-Monthly!X485)","v":1.2999999999999972},{"$f":"(Monthly!Y486/Monthly!Y485)-1","v":6.9128210453157646E-3},null,null,null,null,null,null,null,null,null,null,null,null,null,{"$f":"(Monthly!AM486/Monthly!AM485)-1","v":2.0512137916473661E-2},{"$f":"(Monthly!AN486/Monthly!AN485)-1","v":2.5511759874474071E-2},{"$f":"(Monthly!AO486/Monthly!AO485)-1","v":2.2717083491157197E-3},{"$f":"((Monthly!AP486-Monthly!AP485)*100)","v":-1.0000000000000009},{"$f":"Monthly!AQ486-Monthly!AQ485","v":9.9999999999994316E-2},{"$f":"Monthly!AR486-Monthly!AR485","v":4},{"$f":"Monthly!AS486-Monthly!AS485","v":3.5},{"$f":"Monthly!AT486-Monthly!AT485","v":1.6000000000000014},{"$f":"Monthly!AU486-Monthly!AU485","v":-1.6000000000000014},{"$f":"Monthly!AV486-Monthly!AV485","v":-0.19999999999999574},{"$f":"Monthly!AW486-Monthly!AW485","v":0.69999999999999574},{"$f":"Monthly!AX486-Monthly!AX485","v":-0.89999999999999858},{"$f":"Monthly!AY486-Monthly!AY485","v":-0.60000000000000142},{"$f":"Monthly!AZ486-Monthly!AZ485","v":-9.9999999999994316E-2},{"$f":"Monthly!BA486-Monthly!BA485","v":9.9999999999994316E-2},{"$f":"Monthly!BB486-Monthly!BB485","v":-6.3999999999999986},{"$f":"(Monthly!BC486/Monthly!BC485)-1","v":1.7434268572436906E-2},null,null,null,null,null,null,null,null,null,{"$f":"(Monthly!BM486/Monthly!BM485)-1","v":-4.2582226658748334E-3},{"$f":"(Monthly!BN486/Monthly!BN485)-1","v":-5.5107445555798718E-3},null,null,null,null,null,{"$f":"(Monthly!BT486/Monthly!BT485)-1","v":3.1607363488976858E-3},null,null,null,{"$f":"(Monthly!BX486/Monthly!BX485)-1","v":-4.9469964664310973E-2},{"$f":"(Monthly!BY486/Monthly!BY485)-1","v":2.7329192546583947E-2},"--",{"$f":"(Monthly!CA486/Monthly!CA485)-1","v":7.2255349000349689E-3},{"$f":"Monthly!CB486-Monthly!CB485","v":-0.12872048733885144},{"$f":"Monthly!CC486-Monthly!CC485","v":-0.12872048733885144},"--","--",null,"--","--",null,{"$f":"(Monthly!CJ486/Monthly!CJ485)-1","v":-3.4246575342465779E-2},{"$f":"(Monthly!CK486/Monthly!CK485)-1","v":5.261845713760982E-3},{"$f":"(Monthly!CL486/Monthly!CL485)-1","v":-1.2309920347574277E-2},{"$f":"(Monthly!CM486/Monthly!CM485)-1","v":-2.0000000000000018E-2},{"$f":"(Monthly!CN486/Monthly!CN485)-1","v":3.2787681546606606E-3},{"$f":"(Monthly!CO486/Monthly!CO485)-1","v":9.3439363817096055E-3},{"$f":"(Monthly!CP486/Monthly!CP485)-1","v":4.3061562984960666E-3},{"$f":"(Monthly!CQ486/Monthly!CQ485)-1","v":1.0973688499356093E-3},{"$f":"(Monthly!CR486/Monthly!CR485)-1","v":6.8976417789619049E-3},"--","--",null,null,null,null,null,{"$f":"(Monthly!CZ486/Monthly!CZ485)-1","v":1.225490196078427E-3},{"$f":"(Monthly!DA486/Monthly!DA485)-1","v":2.8818443804035088E-3},null,null,null,null,null,"--",{"$f":"((Monthly!DH486-Monthly!DH485)*60)","v":0},{"$f":"((Monthly!DI486-Monthly!DI485)*100)","v":0},{"$f":"((Monthly!DJ486-Monthly!DJ485)*100)","v":-19.999999999999929},{"$f":"((Monthly!DK486-Monthly!DK485)*100)","v":0},{"$f":"Monthly!DL486-Monthly!DL485","v":141},null,null,null,{"$f":"Monthly!DP486-Monthly!DP485","v":342},null,null,null,{"$f":"(Monthly!DT486/Monthly!DT485)-1","v":-6.8716094032549746E-2},{"$f":"Monthly!DU486-Monthly!DU485","v":9.9999999999999645E-2},{"$f":"(Monthly!DV486-Monthly!DV485)","v":4.4000000000000909},{"$f":"(Monthly!DW486-Monthly!DW485)","v":10.5},{"$f":"(Monthly!DX486-Monthly!DX485)","v":7.5},{"$f":"(Monthly!DY486-Monthly!DY485)","v":2.1999999999999886},{"$f":"(Monthly!DZ486-Monthly!DZ485)","v":5.3000000000000682},{"$f":"(Monthly!EA486-Monthly!EA485)","v":3.8000000000000682},{"$f":"(Monthly!EB486-Monthly!EB485)","v":1.5},{"$f":"(Monthly!EC486-Monthly!EC485)","v":3},null,null,null,null,null,null,null,null,null,null,null,null,null,{"$f":"(Monthly!EQ486/Monthly!EQ485)-1","v":-5.6044835868694909E-3},{"$f":"(Monthly!ER486/Monthly!ER485)-1","v":0},{"$f":"(Monthly!ES486/Monthly!ES485)-1","v":-1.4545454545453751E-3},null,null,null,null,null,{"$f":"((Monthly!EY486-Monthly!EY485)*100)","v":0},{"$f":"((Monthly!EZ486-Monthly!EZ485)*100)","v":0.99999999999997868},{"$f":"((Monthly!FA486-Monthly!FA485)*100)","v":-3.0000000000000249},{"$f":"((Monthly!FB486-Monthly!FB485)*100)","v":-1.0000000000000675},"--",{"$f":"((Monthly!FD486-Monthly!FD485)*100)","v":-3.0000000000000249},{"$f":"((Monthly!FE486-Monthly!FE485)*100)","v":-5.9999999999999609},{"$f":"((Monthly!FF486-Monthly!FF485)*100)","v":-15.000000000000036},{"$f":"((Monthly!FG486-Monthly!FG485)*100)","v":-19.000000000000039},{"$f":"((Monthly!FH486-Monthly!FH485)*100)","v":-19.000000000000039},{"$f":"((Monthly!FI486-Monthly!FI485)*100)","v":-12.000000000000011},null,null,null,null,null,null,{"$f":"(Monthly!FP486/Monthly!FP485)-1","v":3.2080166789965503E-2},{"$f":"(Monthly!FQ486/Monthly!FQ485)-1","v":0},{"$f":"(Monthly!FR486/Monthly!FR485)-1","v":5.3062141813686958E-2},"--",{"$f":"(Monthly!FT486/Monthly!FT485)-1","v":1.6297619340974512E-2},{"$f":"(Monthly!FU486/Monthly!FU485)-1","v":1.5299188751318082E-2},{"$f":"(Monthly!FV486/Monthly!FV485)-1","v":0.12122941464210002},{"$f":"(Monthly!FW486/Monthly!FW485)-1","v":3.4120374607242043E-2},{"$f":"(Monthly!FX486/Monthly!FX485)-1","v":8.3734923357564828E-2},null,null,null,null,null,{"$f":"(Monthly!GD486/Monthly!GD485)-1","v":-5.1136363636363646E-2},{"$f":"(Monthly!GE486/Monthly!GE485)-1","v":-1.4072847682119249E-2},{"$f":"(Monthly!GF486/Monthly!GF485)-1","v":-2.5866813428728652E-2},{"$f":"(Monthly!GG486/Monthly!GG485)-1","v":-2.1379980563654088E-2},{"$f":"(Monthly!GH486/Monthly!GH485)-1","v":{"$error":"#DIV/0!"}},"--",{"$f":"(Monthly!GJ486/Monthly!GJ485)-1","v":-0.13600372612948297},{"$f":"(Monthly!GK486/Monthly!GK485)-1","v":5.439330543933063E-2},"--"]
["1999-02-01",null,null,null,{"$f":"(Monthly!E492/Monthly!E491)-1","v":5.0118702189396735E-3},{"$f":"(Monthly!F492/Monthly!F491)-1","v":2.3462659101364691E-2},{"$f":"(Monthly!G492/Monthly!G491)-1","v":6.6094226641058018E-3},{"$f":"(Monthly!H492/Monthly!H491)-1","v":6.6844919786102075E-4},null,null,null,null,null,null,null,null,null,null,null,null,null,null,null,{"$f":"(Monthly!X492-Monthly!X491)","v":0.10000000000000853},{"$f":"(Monthly!Y492/Monthly!Y491)-1","v":-1.9333044098255314E-3},null,null,null,null,null,null,null,null,null,null,null,null,null,{"$f":"(Monthly!AM492/Monthly!AM491)-1","v":5.311051310964876E-3},{"$f":"(Monthly!AN492/Monthly!AN491)-1","v":8.8311153992783886E-3},{"$f":"(Monthly!AO492/Monthly!AO491)-1","v":5.2147692067738838E-3},{"$f":"((Monthly!AP492-Monthly!AP491)*100)","v":-1.0000000000000009},{"$f":"Monthly!AQ492-Monthly!AQ491","v":1.1000000000000014},{"$f":"Monthly!AR492-Monthly!AR491","v":10.5},{"$f":"Monthly!AS492-Monthly!AS491","v":-1},{"$f":"Monthly!AT492-Monthly!AT491","v":0.29999999999999716},{"$f":"Monthly!AU492-Monthly!AU491","v":3.2999999999999972},{"$f":"Monthly!AV492-Monthly!AV491","v":4.1000000000000014},{"$f":"Monthly!AW492-Monthly!AW491","v":0.79999999999999716},{"$f":"Monthly!AX492-Monthly!AX491","v":2.6000000000000014},{"$f":"Monthly!AY492-Monthly!AY491","v":1.5},{"$f":"Monthly!AZ492-Monthly!AZ491","v":0.39999999999999858},{"$f":"Monthly!BA492-Monthly!BA491","v":-0.20000000000000284},{"$f":"Monthly!BB492-Monthly!BB491","v":-1.5},{"$f":"(Monthly!BC492/Monthly!BC491)-1","v":2.4772568229531222E-2},null,null,null,null,null,null,null,null,null,{"$f":"(Monthly!BM492/Monthly!BM491)-1","v":1.0607920094292567E-2},{"$f":"(Monthly!BN492/Monthly!BN491)-1","v":9.9098294795108011E-3},null,null,null,null,null,{"$f":"(Monthly!BT492/Monthly!BT491)-1","v":-7.029113504200879E-3},null,null,null,{"$f":"(Monthly!BX492/Monthly!BX491)-1","v":-4.4622425629290641E-2},{"$f":"(Monthly!BY492/Monthly!BY491)-1","v":-6.9284064665127154E-3},"--",{"$f":"(Monthly!CA492/Monthly!CA491)-1","v":2.9327699763886939E-2},{"$f":"Monthly!CB492-Monthly!CB491","v":0.10000000000000053},{"$f":"Monthly!CC492-Monthly!CC491","v":0.17000000000000171},"--","--",null,"--","--",null,{"$f":"(Monthly!CJ492/Monthly!CJ491)-1","v":-3.0857142857142805E-2},{"$f":"(Monthly!CK492/Monthly!CK491)-1","v":3.7116199301192587E-3},{"$f":"(Monthly!CL492/Monthly!CL491)-1","v":-2.350206611570238E-2},{"$f":"(Monthly!CM492/Monthly!CM491)-1","v":-2.3721275018532273E-2},{"$f":"(Monthly!CN492/Monthly!CN491)-1","v":3.2570958158846253E-3},{"$f":"(Monthly!CO492/Monthly!CO491)-1","v":1.0229863807234896E-2},{"$f":"(Monthly!CP492/Monthly!CP491)-1","v":7.0412522203695538E-3},{"$f":"(Monthly!CQ492/Monthly!CQ491)-1","v":7.2716800460770337E-4},{"$f":"(Monthly!CR492/Monthly!CR491)-1","v":4.7336105144246687E-4},"--","--",null,null,null,null,null,{"$f":"(Monthly!CZ492/Monthly!CZ491)-1","v":0},{"$f":"(Monthly!DA492/Monthly!DA491)-1","v":0},null,null,null,null,null,"--",{"$f":"((Monthly!DH492-Monthly!DH491)*60)","v":0},{"$f":"((Monthly!DI492-Monthly!DI491)*100)","v":0},{"$f":"((Monthly!DJ492-Monthly!DJ491)*100)","v":0},{"$f":"((Monthly!DK492-Monthly!DK491)*100)","v":10.000000000000053},{"$f":"Monthly!DL492-Monthly!DL491","v":-32},null,null,null,{"$f":"Monthly!DP492-Monthly!DP491","v":409},null,null,null,{"$f":"(Monthly!DT492/Monthly!DT491)-1","v":-8.7481146304675739E-2},{"$f":"Monthly!DU492-Monthly!DU491","v":-0.10000000000000053},{"$f":"(Monthly!DV492-Monthly!DV491)","v":1.6000000000001364},{"$f":"(Monthly!DW492-Monthly!DW491)","v":1.1000000000001364},{"$f":"(Monthly!DX492-Monthly!DX491)","v":1.5999999999999091},{"$f":"(Monthly!DY492-Monthly!DY491)","v":-0.80000000000001137},{"$f":"(Monthly!DZ492-Monthly!DZ491)","v":2.3999999999999773},{"$f":"(Monthly!EA492-Monthly!EA491)","v":1.8000000000000682},{"$f":"(Monthly!EB492-Monthly!EB491)","v":0.59999999999999432},{"$f":"(Monthly!EC492-Monthly!EC491)","v":-0.5},null,null,null,null,null,null,null,null,null,null,null,null,null,{"$f":"(Monthly!EQ492/Monthly!EQ491)-1","v":-4.8820179007323938E-3},{"$f":"(Monthly!ER492/Monthly!ER491)-1","v":6.8681318681318437E-4},{"$f":"(Monthly!ES492/Monthly!ES491)-1","v":7.2674418604656843E-4},null,null,null,null,null,{"$f":"((Monthly!EY492-Monthly!EY491)*100)","v":0},{"$f":"((Monthly!EZ492-Monthly!EZ491)*100)","v":12.999999999999989},{"$f":"((Monthly!FA492-Monthly!FA491)*100)","v":16.000000000000014},{"$f":"((Monthly!FB492-Monthly!FB491)*100)","v":9.9999999999999645},"--",{"$f":"((Monthly!FD492-Monthly!FD491)*100)","v":1.9999999999999574},{"$f":"((Monthly!FE492-Monthly!FE491)*100)","v":10.000000000000053},{"$f":"((Monthly!FF492-Monthly!FF491)*100)","v":19.000000000000039},{"$f":"((Monthly!FG492-Monthly!FG491)*100)","v":25.999999999999979},{"$f":"((Monthly!FH492-Monthly!FH491)*100)","v":31.00000000000005},{"$f":"((Monthly!FI492-Monthly!FI491)*100)","v":28.000000000000025},null,null,null,null,null,null,{"$f":"(Monthly!FP492/Monthly!FP491)-1","v":-1.4281953402659031E-2},{"$f":"(Monthly!FQ492/Monthly!FQ491)-1","v":-9.6631194965501876E-5},{"$f":"(Monthly!FR492/Monthly!FR491)-1","v":-1.2065679953396136E-2},{"$f":"(Monthly!FS492/Monthly!FS491)-1","v":-3.3474247260805723E-2},{"$f":"(Monthly!FT492/Monthly!FT491)-1","v":1.3372125014957437E-2},{"$f":"(Monthly!FU492/Monthly!FU491)-1","v":1.4574666111682788E-2},{"$f":"(Monthly!FV492/Monthly!FV491)-1","v":5.1168033209393782E-2},{"$f":"(Monthly!FW492/Monthly!FW491)-1","v":-1.6077113547930622E-2},{"$f":"(Monthly!FX492/Monthly!FX491)-1","v":6.5486107378943448E-2},null,null,null,null,null,{"$f":"(Monthly!GD492/Monthly!GD491)-1","v":-3.68885324779471E-2},{"$f":"(Monthly!GE492/Monthly!GE491)-1","v":-7.5607560756075554E-2},{"$f":"(Monthly!GF492/Monthly!GF491)-1","v":-1.8617699566437107E-2},{"$f":"(Monthly!GG492/Monthly!GG491)-1","v":-8.2730093071354815E-3},{"$f":"(Monthly!GH492/Monthly!GH491)-1","v":{"$error":"#DIV/0!"}},"--",{"$f":"(Monthly!GJ492/Monthly!GJ491)-1","v":-3.8230475150191179E-2},{"$f":"(Monthly!GK492/Monthly!GK491)-1","v":-1.5629284343295913E-2},"--"]
["1999-06-01",null,null,null,{"$f":"(Monthly!E496/Monthly!E495)-1","v":4.3458016451962678E-3},{"$f":"(Monthly!F496/Monthly!F495)-1","v":1.7092789428325261E-2},{"$f":"(Monthly!G496/Monthly!G495)-1","v":-1.2216114165140013E-3},{"$f":"(Monthly!H496/Monthly!H495)-1","v":3.6468076261739757E-3},null,null,null,null,null,null,null,null,null,null,null,null,null,null,null,{"$f":"(Monthly!X496-Monthly!X495)","v":-0.39999999999999147},{"$f":"(Monthly!Y496/Monthly!Y495)-1","v":7.815119203325116E-3},null,null,null,null,null,null,null,null,null,null,null,null,null,{"$f":"(Monthly!AM496/Monthly!AM495)-1","v":-1.6275832296789305E-3},{"$f":"(Monthly!AN496/Monthly!AN495)-1","v":-3.0405712203752655E-3},{"$f":"(Monthly!AO496/Monthly!AO495)-1","v":2.5977746916339139E-3},{"$f":"((Monthly!AP496-Monthly!AP495)*100)","v":0},{"$f":"Monthly!AQ496-Monthly!AQ495","v":1.5},{"$f":"Monthly!AR496-Monthly!AR495","v":-1},{"$f":"Monthly!AS496-Monthly!AS495","v":-2},{"$f":"Monthly!AT496-Monthly!AT495","v":0.19999999999999574},{"$f":"Monthly!AU496-Monthly!AU495","v":1.5},{"$f":"Monthly!AV496-Monthly!AV495","v":-0.89999999999999858},{"$f":"Monthly!AW496-Monthly!AW495","v":1.1000000000000014},{"$f":"Monthly!AX496-Monthly!AX495","v":1.6000000000000014},{"$f":"Monthly!AY496-Monthly!AY495","v":3},{"$f":"Monthly!AZ496-Monthly!AZ495","v":3.1000000000000014},{"$f":"Monthly!BA496-Monthly!BA495","v":0.5},{"$f":"Monthly!BB496-Monthly!BB495","v":0.19999999999999574},{"$f":"(Monthly!BC496/Monthly!BC495)-1","v":-1.2856521884508698E-2},null,null,null,null,null,null,null,null,null,{"$f":"(Monthly!BM496/Monthly!BM495)-1","v":2.8813918614418732E-3},{"$f":"(Monthly!BN496/Monthly!BN495)-1","v":2.9752895285377612E-3},null,null,null,null,null,{"$f":"(Monthly!BT496/Monthly!BT495)-1","v":1.363595832944986E-3},null,null,null,{"$f":"(Monthly!BX496/Monthly!BX495)-1","v":-3.2278088144009898E-2},{"$f":"(Monthly!BY496/Monthly!BY495)-1","v":3.7804878048780521E-2},"--",{"$f":"(Monthly!CA496/Monthly!CA495)-1","v":-1.2896418312914104E-2},{"$f":"Monthly!CB496-Monthly!CB495","v":-2.5418944607136673E-2},{"$f":"Monthly!CC496-Monthly!CC495","v":4.4581055392862723E-2},"--","--",null,"--","--",null,{"$f":"(Monthly!CJ496/Monthly!CJ495)-1","v":3.94144144144144E-2},{"$f":"(Monthly!CK496/Monthly!CK495)-1","v":3.8704781178851011E-3},{"$f":"(Monthly!CL496/Monthly!CL495)-1","v":-1.9460566746329788E-2},{"$f":"(Monthly!CM496/Monthly!CM495)-1","v":-3.5060975609756073E-2},{"$f":"(Monthly!CN496/Monthly!CN495)-1","v":3.4203869312714463E-3},{"$f":"(Monthly!CO496/Monthly!CO495)-1","v":1.0448824507242938E-2},{"$f":"(Monthly!CP496/Monthly!CP495)-1","v":7.6073465687962472E-3},{"$f":"(Monthly!CQ496/Monthly!CQ495)-1","v":1.0189547103334196E-3},{"$f":"(Monthly!CR496/Monthly!CR495)-1","v":1.0593535411012267E-2},"--","--",null,null,null,null,null,{"$f":"(Monthly!CZ496/Monthly!CZ495)-1","v":0},{"$f":"(Monthly!DA496/Monthly!DA495)-1","v":5.6657223796041656E-4},null,null,null,null,null,"--",{"$f":"((Monthly!DH496-Monthly!DH495)*60)","v":6.0000000000000853},{"$f":"((Monthly!DI496-Monthly!DI495)*100)","v":0},{"$f":"((Monthly!DJ496-Monthly!DJ495)*100)","v":9.9999999999999645},{"$f":"((Monthly!DK496-Monthly!DK495)*100)","v":9.9999999999999645},{"$f":"Monthly!DL496-Monthly!DL495","v":-38},null,null,null,{"$f":"Monthly!DP496-Monthly!DP495","v":263},null,null,null,{"$f":"(Monthly!DT496/Monthly!DT495)-1","v":-2.5198938992042397E-2},{"$f":"Monthly!DU496-Monthly!DU495","v":-0.20000000000000018},{"$f":"(Monthly!DV496-Monthly!DV495)","v":5.4000000000000909},{"$f":"(Monthly!DW496-Monthly!DW495)","v":25.099999999999909},{"$f":"(Monthly!DX496-Monthly!DX495)","v":16.600000000000023},{"$f":"(Monthly!DY496-Monthly!DY495)","v":5.8000000000000114},{"$f":"(Monthly!DZ496-Monthly!DZ495)","v":10.800000000000068},{"$f":"(Monthly!EA496-Monthly!EA495)","v":7.7999999999999545},{"$f":"(Monthly!EB496-Monthly!EB495)","v":3},{"$f":"(Monthly!EC496-Monthly!EC495)","v":8.5},null,null,null,null,null,null,null,null,null,null,null,null,null,{"$f":"(Monthly!EQ496/Monthly!EQ495)-1","v":4.0096230954289602E-3},{"$f":"(Monthly!ER496/Monthly!ER495)-1","v":6.8634179821569496E-4},{"$f":"(Monthly!ES496/Monthly!ES495)-1","v":-1.4524328249817531E-3},null,null,null,null,null,{"$f":"((Monthly!EY496-Monthly!EY495)*100)","v":0},{"$f":"((Monthly!EZ496-Monthly!EZ495)*100)","v":1.9999999999999574},{"$f":"((Monthly!FA496-Monthly!FA495)*100)","v":30.000000000000071},{"$f":"((Monthly!FB496-Monthly!FB495)*100)","v":29.999999999999982},"--",{"$f":"((Monthly!FD496-Monthly!FD495)*100)","v":39.999999999999943},{"$f":"((Monthly!FE496-Monthly!FE495)*100)","v":7.0000000000000284},{"$f":"((Monthly!FF496-Monthly!FF495)*100)","v":25},{"$f":"((Monthly!FG496-Monthly!FG495)*100)","v":37.000000000000014},{"$f":"((Monthly!FH496-Monthly!FH495)*100)","v":36.999999999999922},{"$f":"((Monthly!FI496-Monthly!FI495)*100)","v":36.000000000000028},null,null,null,null,null,null,{"$f":"(Monthly!FP496/Monthly!FP495)-1","v":5.7490931489974084E-3},{"$f":"(Monthly!FQ496/Monthly!FQ495)-1","v":-6.039741499053175E-5},{"$f":"(Monthly!FR496/Monthly!FR495)-1","v":1.2676281198445993E-2},{"$f":"(Monthly!FS496/Monthly!FS495)-1","v":-2.3800564440263239E-2},{"$f":"(Monthly!FT496/Monthly!FT495)-1","v":4.990546843262722E-3},{"$f":"(Monthly!FU496/Monthly!FU495)-1","v":8.6173368926680816E-3},{"$f":"(Monthly!FV496/Monthly!FV495)-1","v":4.8194171668410446E-2},{"$f":"(Monthly!FW496/Monthly!FW495)-1","v":0.11854284861152564},{"$f":"(Monthly!FX496/Monthly!FX495)-1","v":6.8220713414838707E-2},null,null,null,null,null,{"$f":"(Monthly!GD496/Monthly!GD495)-1","v":7.8873239436620945E-3},{"$f":"(Monthly!GE496/Monthly!GE495)-1","v":4.1365725541693932E-2},{"$f":"(Monthly!GF496/Monthly!GF495)-1","v":-1.8800510421097427E-2},{"$f":"(Monthly!GG496/Monthly!GG495)-1","v":9.3196644920801042E-4},{"$f":"(Monthly!GH496/Monthly!GH495)-1","v":{"$error":"#DIV/0!"}},"--",{"$f":"(Monthly!GJ496/Monthly!GJ495)-1","v":3.2570422535211474E-2},{"$f":"(Monthly!GK496/Monthly!GK495)-1","v":7.0713022981732099E-3},"--"]
["1999-09-01",null,null,null,{"$f":"(Monthly!E499/Monthly!E498)-1","v":4.7692720786609577E-3},{"$f":"(Monthly!F499/Monthly!F498)-1","v":6.5909409619968606E-3},{"$f":"(Monthly!G499/Monthly!G498)-1","v":5.8129878757682274E-3},{"$f":"(Monthly!H499/Monthly!H498)-1","v":4.0144895063112251E-3},null,null,null,null,null,null,null,null,null,null,null,null,null,null,null,{"$f":"(Monthly!X499-Monthly!X498)","v":-0.70000000000000284},{"$f":"(Monthly!Y499/Monthly!Y498)-1","v":6.1876439085961632E-3},null,null,null,null,null,null,null,null,null,null,null,null,null,{"$f":"(Monthly!AM499/Monthly!AM498)-1","v":-3.9595272341772514E-3},{"$f":"(Monthly!AN499/Monthly!AN498)-1","v":-4.574772157660667E-3},{"$f":"(Monthly!AO499/Monthly!AO498)-1","v":5.7854483044241789E-3},{"$f":"((Monthly!AP499-Monthly!AP498)*100)","v":1.0000000000000009},{"$f":"Monthly!AQ499-Monthly!AQ498","v":2.2000000000000028},{"$f":"Monthly!AR499-Monthly!AR498","v":2},{"$f":"Monthly!AS499-Monthly!AS498","v":-2},{"$f":"Monthly!AT499-Monthly!AT498","v":-1.8000000000000043},{"$f":"Monthly!AU499-Monthly!AU498","v":1.3999999999999986},{"$f":"Monthly!AV499-Monthly!AV498","v":0.5},{"$f":"Monthly!AW499-Monthly!AW498","v":-2.4000000000000057},{"$f":"Monthly!AX499-Monthly!AX498","v":6},{"$f":"Monthly!AY499-Monthly!AY498","v":5.1999999999999957},{"$f":"Monthly!AZ499-Monthly!AZ498","v":1.6000000000000014},{"$f":"Monthly!BA499-Monthly!BA498","v":4.3999999999999986},{"$f":"Monthly!BB499-Monthly!BB498","v":-1.1999999999999957},{"$f":"(Monthly!BC499/Monthly!BC498)-1","v":2.4282381908896422E-2},null,null,null,null,null,null,null,null,null,{"$f":"(Monthly!BM499/Monthly!BM498)-1","v":4.2228139541138354E-3},{"$f":"(Monthly!BN499/Monthly!BN498)-1","v":3.9181872360929404E-3},null,null,null,null,null,{"$f":"(Monthly!BT499/Monthly!BT498)-1","v":3.0098172535497625E-3},null,null,null,{"$f":"(Monthly!BX499/Monthly!BX498)-1","v":-7.8883495145630755E-3},{"$f":"(Monthly!BY499/Monthly!BY498)-1","v":-7.1813285457809739E-2},"--",{"$f":"(Monthly!CA499/Monthly!CA498)-1","v":-2.9203901641250418E-4},{"$f":"Monthly!CB499-Monthly!CB498","v":0.36558753401534361},{"$f":"Monthly!CC499-Monthly!CC498","v":0.36558753401534361},"--","--",null,"--","--",null,{"$f":"(Monthly!CJ499/Monthly!CJ498)-1","v":-7.5027995520716706E-2},{"$f":"(Monthly!CK499/Monthly!CK498)-1","v":3.4524447546520065E-3},{"$f":"(Monthly!CL499/Monthly!CL498)-1","v":-0.12661870503597117},{"$f":"(Monthly!CM499/Monthly!CM498)-1","v":1.6600790513833896E-2},{"$f":"(Monthly!CN499/Monthly!CN498)-1","v":-7.1812017329064837E-4},{"$f":"(Monthly!CO499/Monthly!CO498)-1","v":4.3933175328052521E-3},{"$f":"(Monthly!CP499/Monthly!CP498)-1","v":5.2105916699451971E-3},{"$f":"(Monthly!CQ499/Monthly!CQ498)-1","v":1.0765302107995645E-3},{"$f":"(Monthly!CR499/Monthly!CR498)-1","v":5.5634452633503972E-3},"--","--",null,null,null,null,null,{"$f":"(Monthly!CZ499/Monthly!CZ498)-1","v":4.1891083183722699E-3},{"$f":"(Monthly!DA499/Monthly!DA498)-1","v":2.8200789622110367E-3},null,null,null,null,null,"--",{"$f":"((Monthly!DH499-Monthly!DH498)*60)","v":-6.0000000000000853},{"$f":"((Monthly!DI499-Monthly!DI498)*100)","v":0},{"$f":"((Monthly!DJ499-Monthly!DJ498)*100)","v":10.000000000000053},{"$f":"((Monthly!DK499-Monthly!DK498)*100)","v":0},{"$f":"Monthly!DL499-Monthly!DL498","v":-6},null,null,null,{"$f":"Monthly!DP499-Monthly!DP498","v":216},null,null,null,{"$f":"(Monthly!DT499/Monthly!DT498)-1","v":-4.2992261392948983E-3},{"$f":"Monthly!DU499-Monthly!DU498","v":-0.5},{"$f":"(Monthly!DV499-Monthly!DV498)","v":6.1000000000001364},{"$f":"(Monthly!DW499-Monthly!DW498)","v":-0.10000000000013642},{"$f":"(Monthly!DX499-Monthly!DX498)","v":1.2000000000000455},{"$f":"(Monthly!DY499-Monthly!DY498)","v":-1.3000000000000114},{"$f":"(Monthly!DZ499-Monthly!DZ498)","v":2.5},{"$f":"(Monthly!EA499-Monthly!EA498)","v":1.7999999999999545},{"$f":"(Monthly!EB499-Monthly!EB498)","v":0.69999999999998863},{"$f":"(Monthly!EC499-Monthly!EC498)","v":-1.3000000000000114},null,null,null,null,null,null,null,null,null,null,null,null,null,{"$f":"(Monthly!EQ499/Monthly!EQ498)-1","v":8.6682427107958038E-3},{"$f":"(Monthly!ER499/Monthly!ER498)-1","v":5.4907343857242275E-3},{"$f":"(Monthly!ES499/Monthly!ES498)-1","v":0},null,null,null,null,null,{"$f":"((Monthly!EY499-Monthly!EY498)*100)","v":18.99999999999995},{"$f":"((Monthly!EZ499-Monthly!EZ498)*100)","v":14.999999999999947},{"$f":"((Monthly!FA499-Monthly!FA498)*100)","v":-1.0000000000000675},{"$f":"((Monthly!FB499-Monthly!FB498)*100)","v":4.9999999999998934},"--",{"$f":"((Monthly!FD499-Monthly!FD498)*100)","v":-12.000000000000011},{"$f":"((Monthly!FE499-Monthly!FE498)*100)","v":-4.0000000000000036},{"$f":"((Monthly!FF499-Monthly!FF498)*100)","v":4.9999999999999822},{"$f":"((Monthly!FG499-Monthly!FG498)*100)","v":-1.9999999999999574},{"$f":"((Monthly!FH499-Monthly!FH498)*100)","v":-4.0000000000000036},{"$f":"((Monthly!FI499-Monthly!FI498)*100)","v":-2.0000000000000462},null,null,null,null,null,null,{"$f":"(Monthly!FP499/Monthly!FP498)-1","v":-1.0782212697562299E-2},{"$f":"(Monthly!FQ499/Monthly!FQ498)-1","v":2.416276035366316E-5},{"$f":"(Monthly!FR499/Monthly!FR498)-1","v":-6.0226220751443682E-3},{"$f":"(Monthly!FS499/Monthly!FS498)-1","v":-1.0183875530410114E-2},{"$f":"(Monthly!FT499/Monthly!FT498)-1","v":-5.6902514993130149E-3},{"$f":"(Monthly!FU499/Monthly!FU498)-1","v":-1.3654956009259367E-2},{"$f":"(Monthly!FV499/Monthly!FV498)-1","v":5.0995248565575135E-3},{"$f":"(Monthly!FW499/Monthly!FW498)-1","v":2.1951857992296375E-2},{"$f":"(Monthly!FX499/Monthly!FX498)-1","v":1.7742118921825201E-2},null,null,null,null,null,{"$f":"(Monthly!GD499/Monthly!GD498)-1","v":0.12323612417685781},{"$f":"(Monthly!GE499/Monthly!GE498)-1","v":0.11473788328387746},{"$f":"(Monthly!GF499/Monthly!GF498)-1","v":2.2498519834221575E-2},{"$f":"(Monthly!GG499/Monthly!GG498)-1","v":3.6689419795221889E-2},{"$f":"(Monthly!GH499/Monthly!GH498)-1","v":{"$error":"#DIV/0!"}},"--",{"$f":"(Monthly!GJ499/Monthly!GJ498)-1","v":-5.9243397573161993E-2},{"$f":"(Monthly!GK499/Monthly!GK498)-1","v":1.1911852293031489E-2},"--"]
["2000-04-01",null,null,null,{"$f":"(Monthly!E506/Monthly!E505)-1","v":-1.1342900823593238E-3},{"$f":"(Monthly!F506/Monthly!F505)-1","v":-2.3197903014416821E-2},{"$f":"(Monthly!G506/Monthly!G505)-1","v":4.4891557142083816E-3},{"$f":"(Monthly!H506/Monthly!H505)-1","v":1.6235230450076799E-3},null,null,null,null,null,null,null,null,null,null,null,null,null,null,null,{"$f":"(Monthly!X506-Monthly!X505)","v":0.29999999999999716},{"$f":"(Monthly!Y506/Monthly!Y505)-1","v":8.5868893207592389E-3},null,null,null,null,null,null,null,null,null,null,null,null,null,{"$f":"(Monthly!AM506/Monthly!AM505)-1","v":7.2879452679301959E-3},{"$f":"(Monthly!AN506/Monthly!AN505)-1","v":7.7326838690714439E-3},{"$f":"(Monthly!AO506/Monthly!AO505)-1","v":5.9181470724725127E-3},{"$f":"((Monthly!AP506-Monthly!AP505)*100)","v":1.0000000000000009},{"$f":"Monthly!AQ506-Monthly!AQ505","v":-0.19999999999999574},{"$f":"Monthly!AR506-Monthly!AR505","v":0},{"$f":"Monthly!AS506-Monthly!AS505","v":-1},{"$f":"Monthly!AT506-Monthly!AT505","v":2},{"$f":"Monthly!AU506-Monthly!AU505","v":-3.2999999999999972},{"$f":"Monthly!AV506-Monthly!AV505","v":0.29999999999999716},{"$f":"Monthly!AW506-Monthly!AW505","v":-1.3999999999999986},{"$f":"Monthly!AX506-Monthly!AX505","v":-0.80000000000000426},{"$f":"Monthly!AY506-Monthly!AY505","v":-7.5},{"$f":"Monthly!AZ506-Monthly!AZ505","v":-1.3999999999999986},{"$f":"Monthly!BA506-Monthly!BA505","v":1.1000000000000014},{"$f":"Monthly!BB506-Monthly!BB505","v":0.60000000000000142},{"$f":"(Monthly!BC506/Monthly!BC505)-1","v":1.2130354168630841E-2},null,null,null,null,null,null,null,null,null,{"$f":"(Monthly!BM506/Monthly!BM505)-1","v":-1.5297186916363281E-2},{"$f":"(Monthly!BN506/Monthly!BN505)-1","v":-1.6241940067321159E-2},null,null,null,null,null,{"$f":"(Monthly!BT506/Monthly!BT505)-1","v":1.0932823242425727E-2},null,null,null,{"$f":"(Monthly!BX506/Monthly!BX505)-1","v":1.3715710723191998E-2},{"$f":"(Monthly!BY506/Monthly!BY505)-1","v":-3.2707450030284635E-2},{"$f":"(Monthly!BZ506/Monthly!BZ505)-1","v":1.1870013621327002E-2},{"$f":"(Monthly!CA506/Monthly!CA505)-1","v":-2.1321961620469065E-2},{"$f":"Monthly!CB506-Monthly!CB505","v":-0.94827214897266199},{"$f":"Monthly!CC506-Monthly!CC505","v":-1.0882721489726599},"--","--",null,"--","--",null,{"$f":"(Monthly!CJ506/Monthly!CJ505)-1","v":-6.5555555555555589E-2},{"$f":"(Monthly!CK506/Monthly!CK505)-1","v":3.6803612162827903E-3},{"$f":"(Monthly!CL506/Monthly!CL505)-1","v":0.11663747810858149},{"$f":"(Monthly!CM506/Monthly!CM505)-1","v":-2.894135567402889E-2},{"$f":"(Monthly!CN506/Monthly!CN505)-1","v":4.1247187691746401E-3},{"$f":"(Monthly!CO506/Monthly!CO505)-1","v":1.0218563724098795E-2},{"$f":"(Monthly!CP506/Monthly!CP505)-1","v":5.8131838552444304E-3},{"$f":"(Monthly!CQ506/Monthly!CQ505)-1","v":8.6706537459702027E-4},{"$f":"(Monthly!CR506/Monthly!CR505)-1","v":5.1804707065417066E-3},"--","--",null,null,null,null,null,{"$f":"(Monthly!CZ506/Monthly!CZ505)-1","v":-5.847953216373547E-4},{"$f":"(Monthly!DA506/Monthly!DA505)-1","v":1.6666666666667052E-3},null,null,null,null,null,"--",{"$f":"((Monthly!DH506-Monthly!DH505)*60)","v":0},{"$f":"((Monthly!DI506-Monthly!DI505)*100)","v":0},{"$f":"((Monthly!DJ506-Monthly!DJ505)*100)","v":-19.999999999999929},{"$f":"((Monthly!DK506-Monthly!DK505)*100)","v":-20.000000000000018},{"$f":"Monthly!DL506-Monthly!DL505","v":-4},null,null,null,{"$f":"Monthly!DP506-Monthly!DP505","v":287},null,null,null,{"$f":"(Monthly!DT506/Monthly!DT505)-1","v":-3.2813633067440229E-2},{"$f":"Monthly!DU506-Monthly!DU505","v":9.9999999999999645E-2},{"$f":"(Monthly!DV506-Monthly!DV505)","v":0.20000000000004547},{"$f":"(Monthly!DW506-Monthly!DW505)","v":8.2999999999999545},{"$f":"(Monthly!DX506-Monthly!DX505)","v":5},{"$f":"(Monthly!DY506-Monthly!DY505)","v":3.1000000000000227},{"$f":"(Monthly!DZ506-Monthly!DZ505)","v":1.8999999999999773},{"$f":"(Monthly!EA506-Monthly!EA505)","v":1.2999999999999545},{"$f":"(Monthly!EB506-Monthly!EB505)","v":0.59999999999999432},{"$f":"(Monthly!EC506-Monthly!EC505)","v":3.3000000000000114},null,null,null,null,null,null,null,null,null,null,null,null,null,{"$f":"(Monthly!EQ506/Monthly!EQ505)-1","v":-7.6452599388399101E-4},{"$f":"(Monthly!ER506/Monthly!ER505)-1","v":0},{"$f":"(Monthly!ES506/Monthly!ES505)-1","v":7.2254335260102387E-4},null,null,null,null,null,{"$f":"((Monthly!EY506-Monthly!EY505)*100)","v":16.999999999999993},{"$f":"((Monthly!EZ506-Monthly!EZ505)*100)","v":16.999999999999993},{"$f":"((Monthly!FA506-Monthly!FA505)*100)","v":-4.0000000000000036},{"$f":"((Monthly!FB506-Monthly!FB505)*100)","v":3.0000000000001137},"--",{"$f":"((Monthly!FD506-Monthly!FD505)*100)","v":-8.9999999999999858},{"$f":"((Monthly!FE506-Monthly!FE505)*100)","v":-3.0000000000000249},{"$f":"((Monthly!FF506-Monthly!FF505)*100)","v":-6.9999999999999396},{"$f":"((Monthly!FG506-Monthly!FG505)*100)","v":-12.999999999999989},{"$f":"((Monthly!FH506-Monthly!FH505)*100)","v":-24.000000000000021},{"$f":"((Monthly!FI506-Monthly!FI505)*100)","v":-26.999999999999957},null,null,null,null,null,null,{"$f":"(Monthly!FP506/Monthly!FP505)-1","v":5.5449069003286056E-3},{"$f":"(Monthly!FQ506/Monthly!FQ505)-1","v":8.4555359601612423E-5},{"$f":"(Monthly!FR506/Monthly!FR505)-1","v":1.1314945201644999E-2},{"$f":"(Monthly!FS506/Monthly!FS505)-1","v":-2.0118220470807913E-2},{"$f":"(Monthly!FT506/Monthly!FT505)-1","v":5.6423086581967041E-3},{"$f":"(Monthly!FU506/Monthly!FU505)-1","v":7.0253227317709221E-3},{"$f":"(Monthly!FV506/Monthly!FV505)-1","v":-0.10228548033619911},{"$f":"(Monthly!FW506/Monthly!FW505)-1","v":0.10062109867530067},{"$f":"(Monthly!FX506/Monthly!FX505)-1","v":-9.4194378888650565E-2},null,null,null,null,null,{"$f":"(Monthly!GD506/Monthly!GD505)-1","v":-0.1388424222147876},{"$f":"(Monthly!GE506/Monthly!GE505)-1","v":-0.17206256820662047},{"$f":"(Monthly!GF506/Monthly!GF505)-1","v":-1.9821637807577286E-2},{"$f":"(Monthly!GG506/Monthly!GG505)-1","v":-3.8539553752535594E-2},{"$f":"(Monthly!GH506/Monthly!GH505)-1","v":{"$error":"#DIV/0!"}},"--",{"$f":"(Monthly!GJ506/Monthly!GJ505)-1","v":7.0721357850070721E-2},{"$f":"(Monthly!GK506/Monthly!GK505)-1","v":2.3718647764449319E-2},"--"]
["2000-08-01",null,null,null,{"$f":"(Monthly!E510/Monthly!E509)-1","v":5.2937284023231168E-3},{"$f":"(Monthly!F510/Monthly!F509)-1","v":1.4339319217367974E-2},{"$f":"(Monthly!G510/Monthly!G509)-1","v":5.7452749140891601E-3},{"$f":"(Monthly!H510/Monthly!H509)-1","v":3.2449008700612403E-3},null,null,null,null,null,null,null,null,null,null,null,null,null,null,null,{"$f":"(Monthly!X510-Monthly!X509)","v":-0.5},{"$f":"(Monthly!Y510/Monthly!Y509)-1","v":2.7777936347228582E-3},null,null,null,null,null,null,null,null,null,null,null,null,null,{"$f":"(Monthly!AM510/Monthly!AM509)-1","v":-3.1835824206265517E-3},{"$f":"(Monthly!AN510/Monthly!AN509)-1","v":-6.5183710411000906E-3},{"$f":"(Monthly!AO510/Monthly!AO509)-1","v":6.7435461557703302E-3},{"$f":"((Monthly!AP510-Monthly!AP509)*100)","v":2.0000000000000018},{"$f":"Monthly!AQ510-Monthly!AQ509","v":-2.6000000000000014},{"$f":"Monthly!AR510-Monthly!AR509","v":4},{"$f":"Monthly!AS510-Monthly!AS509","v":1},{"$f":"Monthly!AT510-Monthly!AT509","v":-3.7000000000000028},{"$f":"Monthly!AU510-Monthly!AU509","v":-0.90000000000000568},{"$f":"Monthly!AV510-Monthly!AV509","v":1.4000000000000057},{"$f":"Monthly!AW510-Monthly!AW509","v":-1.3999999999999986},{"$f":"Monthly!AX510-Monthly!AX509","v":-2},{"$f":"Monthly!AY510-Monthly!AY509","v":-5.2999999999999972},{"$f":"Monthly!AZ510-Monthly!AZ509","v":-4},{"$f":"Monthly!BA510-Monthly!BA509","v":-0.39999999999999858},{"$f":"Monthly!BB510-Monthly!BB509","v":4.7999999999999972},{"$f":"(Monthly!BC510/Monthly!BC509)-1","v":1.8527547537786404E-2},null,null,null,null,null,null,null,null,null,{"$f":"(Monthly!BM510/Monthly!BM509)-1","v":1.1186995209764294E-3},{"$f":"(Monthly!BN510/Monthly!BN509)-1","v":1.6870023949770996E-3},null,null,null,null,null,{"$f":"(Monthly!BT510/Monthly!BT509)-1","v":1.424786628499608E-2},null,null,null,{"$f":"(Monthly!BX510/Monthly!BX509)-1","v":5.3315105946684982E-2},{"$f":"(Monthly!BY510/Monthly!BY509)-1","v":6.4850843060959562E-3},{"$f":"(Monthly!BZ510/Monthly!BZ509)-1","v":6.8141510314572162E-3},{"$f":"(Monthly!CA510/Monthly!CA509)-1","v":1.4183134532075314E-2},{"$f":"Monthly!CB510-Monthly!CB509","v":-0.14799348927342404},{"$f":"Monthly!CC510-Monthly!CC509","v":-7.7993489273424643E-2},"--","--",null,"--","--",null,{"$f":"(Monthly!CJ510/Monthly!CJ509)-1","v":-4.3968432919954892E-2},{"$f":"(Monthly!CK510/Monthly!CK509)-1","v":4.6167307559465964E-3},{"$f":"(Monthly!CL510/Monthly!CL509)-1","v":-1.7569546120058677E-3},{"$f":"(Monthly!CM510/Monthly!CM509)-1","v":7.7933450087565692E-2},{"$f":"(Monthly!CN510/Monthly!CN509)-1","v":5.3820590571886928E-3},{"$f":"(Monthly!CO510/Monthly!CO509)-1","v":7.3884784178657181E-3},{"$f":"(Monthly!CP510/Monthly!CP509)-1","v":1.341554300858383E-2},{"$f":"(Monthly!CQ510/Monthly!CQ509)-1","v":9.4905890893648426E-4},{"$f":"(Monthly!CR510/Monthly!CR509)-1","v":1.4058618669494205E-2},"--","--",null,null,null,null,null,{"$f":"(Monthly!CZ510/Monthly!CZ509)-1","v":0},{"$f":"(Monthly!DA510/Monthly!DA509)-1","v":2.2038567493112282E-3},null,null,null,null,null,"--",{"$f":"((Monthly!DH510-Monthly!DH509)*60)","v":-5.9999999999996589},{"$f":"((Monthly!DI510-Monthly!DI509)*100)","v":0},{"$f":"((Monthly!DJ510-Monthly!DJ509)*100)","v":9.9999999999999645},{"$f":"((Monthly!DK510-Monthly!DK509)*100)","v":9.9999999999999645},{"$f":"Monthly!DL510-Monthly!DL509","v":-35},null,null,null,{"$f":"Monthly!DP510-Monthly!DP509","v":-13},null,null,null,{"$f":"(Monthly!DT510/Monthly!DT509)-1","v":6.0169491525423835E-2},{"$f":"Monthly!DU510-Monthly!DU509","v":0.29999999999999982},{"$f":"(Monthly!DV510-Monthly!DV509)","v":0.60000000000013642},{"$f":"(Monthly!DW510-Monthly!DW509)","v":12},{"$f":"(Monthly!DX510-Monthly!DX509)","v":8.6999999999999318},{"$f":"(Monthly!DY510-Monthly!DY509)","v":2.4000000000000057},{"$f":"(Monthly!DZ510-Monthly!DZ509)","v":6.3000000000000682},{"$f":"(Monthly!EA510-Monthly!EA509)","v":4.5},{"$f":"(Monthly!EB510-Monthly!EB509)","v":1.7999999999999829},{"$f":"(Monthly!EC510-Monthly!EC509)","v":3.3000000000000114},null,null,null,null,null,null,null,null,null,null,null,null,null,{"$f":"(Monthly!EQ510/Monthly!EQ509)-1","v":-5.9835452505608844E-3},{"$f":"(Monthly!ER510/Monthly!ER509)-1","v":6.7521944631998565E-4},{"$f":"(Monthly!ES510/Monthly!ES509)-1","v":0},null,null,null,null,null,{"$f":"((Monthly!EY510-Monthly!EY509)*100)","v":0},{"$f":"((Monthly!EZ510-Monthly!EZ509)*100)","v":-4.0000000000000036},{"$f":"((Monthly!FA510-Monthly!FA509)*100)","v":-10.000000000000053},{"$f":"((Monthly!FB510-Monthly!FB509)*100)","v":-8.9999999999999858},"--",{"$f":"((Monthly!FD510-Monthly!FD509)*100)","v":-12.000000000000099},{"$f":"((Monthly!FE510-Monthly!FE509)*100)","v":12.999999999999989},{"$f":"((Monthly!FF510-Monthly!FF509)*100)","v":9.9999999999999645},{"$f":"((Monthly!FG510-Monthly!FG509)*100)","v":-10.999999999999943},{"$f":"((Monthly!FH510-Monthly!FH509)*100)","v":-12.000000000000011},{"$f":"((Monthly!FI510-Monthly!FI509)*100)","v":-21.999999999999975},null,null,null,null,null,null,{"$f":"(Monthly!FP510/Monthly!FP509)-1","v":3.3834077683041475E-3},{"$f":"(Monthly!FQ510/Monthly!FQ509)-1","v":2.4156339831327145E-5},{"$f":"(Monthly!FR510/Monthly!FR509)-1","v":-1.5585187701715686E-2},{"$f":"(Monthly!FS510/Monthly!FS509)-1","v":-3.6330705305774535E-2},{"$f":"(Monthly!FT510/Monthly!FT509)-1","v":6.8925296474573461E-3},{"$f":"(Monthly!FU510/Monthly!FU509)-1","v":1.5878000529002456E-2},{"$f":"(Monthly!FV510/Monthly!FV509)-1","v":0.17327175296799591},{"$f":"(Monthly!FW510/Monthly!FW509)-1","v":8.7342100709465242E-2},{"$f":"(Monthly!FX510/Monthly!FX509)-1","v":0.12418581281688201},null,null,null,null,null,{"$f":"(Monthly!GD510/Monthly!GD509)-1","v":4.870675176352024E-2},{"$f":"(Monthly!GE510/Monthly!GE509)-1","v":5.2998605299860557E-2},{"$f":"(Monthly!GF510/Monthly!GF509)-1","v":-5.3501823211366761E-2},{"$f":"(Monthly!GG510/Monthly!GG509)-1","v":2.2315202231520281E-2},{"$f":"(Monthly!GH510/Monthly!GH509)-1","v":{"$error":"#DIV/0!"}},"--",{"$f":"(Monthly!GJ510/Monthly!GJ509)-1","v":0.12286002014098685},{"$f":"(Monthly!GK510/Monthly!GK509)-1","v":4.9562682215743337E-2},"--"]
["2001-01-01",null,null,null,{"$f":"(Monthly!E515/Monthly!E514)-1","v":-6.0133014227470305E-5},{"$f":"(Monthly!F515/Monthly!F514)-1","v":3.9292730844793233E-3},{"$f":"(Monthly!G515/Monthly!G514)-1","v":-5.7259928556419037E-3},{"$f":"(Monthly!H515/Monthly!H514)-1","v":1.1222754134008195E-3},null,null,null,null,null,null,null,null,null,null,null,null,null,null,null,{"$f":"(Monthly!X515-Monthly!X514)","v":-0.80000000000001137},{"$f":"(Monthly!Y515/Monthly!Y514)-1","v":8.2466825401299459E-3},null,null,null,null,null,null,null,null,null,null,null,null,null,{"$f":"(Monthly!AM515/Monthly!AM514)-1","v":-6.5830291350305048E-3},{"$f":"(Monthly!AN515/Monthly!AN514)-1","v":-5.624744246129687E-3},{"$f":"(Monthly!AO515/Monthly!AO514)-1","v":1.7108883072574077E-3},{"$f":"((Monthly!AP515-Monthly!AP514)*100)","v":2.0000000000000018},{"$f":"Monthly!AQ515-Monthly!AQ514","v":-1.6000000000000014},{"$f":"Monthly!AR515-Monthly!AR514","v":-3.5},{"$f":"Monthly!AS515-Monthly!AS514","v":5},{"$f":"Monthly!AT515-Monthly!AT514","v":-0.40000000000000568},{"$f":"Monthly!AU515-Monthly!AU514","v":-2.7999999999999972},{"$f":"Monthly!AV515-Monthly!AV514","v":-2.1000000000000014},{"$f":"Monthly!AW515-Monthly!AW514","v":1.3999999999999986},{"$f":"Monthly!AX515-Monthly!AX514","v":-3.7000000000000028},{"$f":"Monthly!AY515-Monthly!AY514","v":4.7999999999999972},{"$f":"Monthly!AZ515-Monthly!AZ514","v":-3.6999999999999957},{"$f":"Monthly!BA515-Monthly!BA514","v":-3},{"$f":"Monthly!BB515-Monthly!BB514","v":-5},{"$f":"(Monthly!BC515/Monthly!BC514)-1","v":-2.7911884132109877E-2},null,null,null,null,null,null,null,null,null,{"$f":"(Monthly!BM515/Monthly!BM514)-1","v":1.1532770476107679E-2},{"$f":"(Monthly!BN515/Monthly!BN514)-1","v":8.511470333555371E-3},null,null,null,null,null,{"$f":"(Monthly!BT515/Monthly!BT514)-1","v":3.555862179165592E-3},null,null,null,{"$f":"(Monthly!BX515/Monthly!BX514)-1","v":4.4386422976501416E-2},{"$f":"(Monthly!BY515/Monthly!BY514)-1","v":0.10110174983797804},{"$f":"(Monthly!BZ515/Monthly!BZ514)-1","v":1.1180679785330883E-2},{"$f":"(Monthly!CA515/Monthly!CA514)-1","v":8.9697429094814041E-2},{"$f":"Monthly!CB515-Monthly!CB514","v":0.58518600426064005},{"$f":"Monthly!CC515-Monthly!CC514","v":0.7951860042606409},"--","--",null,"--","--",null,{"$f":"(Monthly!CJ515/Monthly!CJ514)-1","v":-4.7812817904374416E-2},{"$f":"(Monthly!CK515/Monthly!CK514)-1","v":1.1379607380876955E-2},{"$f":"(Monthly!CL515/Monthly!CL514)-1","v":0.17180952380952386},{"$f":"(Monthly!CM515/Monthly!CM514)-1","v":3.9967373572593834E-2},{"$f":"(Monthly!CN515/Monthly!CN514)-1","v":5.5416120649445233E-3},{"$f":"(Monthly!CO515/Monthly!CO514)-1","v":1.0534156203447553E-2},{"$f":"(Monthly!CP515/Monthly!CP514)-1","v":7.5027532518481266E-3},{"$f":"(Monthly!CQ515/Monthly!CQ514)-1","v":7.8957757599673606E-4},{"$f":"(Monthly!CR515/Monthly!CR514)-1","v":6.0281574765501666E-3},"--","--",null,null,null,null,null,{"$f":"(Monthly!CZ515/Monthly!CZ514)-1","v":5.7273768613974596E-3},{"$f":"(Monthly!DA515/Monthly!DA514)-1","v":3.2733224222585289E-3},null,null,null,null,null,"--",{"$f":"((Monthly!DH515-Monthly!DH514)*60)","v":12.000000000000171},{"$f":"((Monthly!DI515-Monthly!DI514)*100)","v":20.000000000000284},{"$f":"((Monthly!DJ515-Monthly!DJ514)*100)","v":39.999999999999943},{"$f":"((Monthly!DK515-Monthly!DK514)*100)","v":30.000000000000028},{"$f":"Monthly!DL515-Monthly!DL514","v":-77},null,null,null,{"$f":"Monthly!DP515-Monthly!DP514","v":-25},null,null,null,{"$f":"(Monthly!DT515/Monthly!DT514)-1","v":-1.7341040462427793E-2},{"$f":"Monthly!DU515-Monthly!DU514","v":-0.20000000000000018},{"$f":"(Monthly!DV515-Monthly!DV514)","v":1.4000000000000909},{"$f":"(Monthly!DW515-Monthly!DW514)","v":-30.5},{"$f":"(Monthly!DX515-Monthly!DX514)","v":-20.200000000000045},{"$f":"(Monthly!DY515-Monthly!DY514)","v":-8.0999999999999943},{"$f":"(Monthly!DZ515-Monthly!DZ514)","v":-12.100000000000023},{"$f":"(Monthly!EA515-Monthly!EA514)","v":-8.2999999999999545},{"$f":"(Monthly!EB515-Monthly!EB514)","v":-3.8000000000000114},{"$f":"(Monthly!EC515-Monthly!EC514)","v":-10.300000000000011},null,null,null,null,null,null,null,null,null,null,null,null,null,{"$f":"(Monthly!EQ515/Monthly!EQ514)-1","v":2.7900146842878115E-2},{"$f":"(Monthly!ER515/Monthly!ER514)-1","v":4.0295500335796319E-3},{"$f":"(Monthly!ES515/Monthly!ES514)-1","v":2.1505376344086446E-3},null,null,null,null,null,{"$f":"((Monthly!EY515-Monthly!EY514)*100)","v":-44.999999999999929},{"$f":"((Monthly!EZ515-Monthly!EZ514)*100)","v":-41.999999999999993},{"$f":"((Monthly!FA515-Monthly!FA514)*100)","v":-5.9999999999999609},{"$f":"((Monthly!FB515-Monthly!FB514)*100)","v":-8.9999999999999858},"--",{"$f":"((Monthly!FD515-Monthly!FD514)*100)","v":-34.999999999999964},{"$f":"((Monthly!FE515-Monthly!FE514)*100)","v":-61.999999999999922},{"$f":"((Monthly!FF515-Monthly!FF514)*100)","v":-79},{"$f":"((Monthly!FG515-Monthly!FG514)*100)","v":-58.999999999999986},{"$f":"((Monthly!FH515-Monthly!FH514)*100)","v":-30.999999999999961},{"$f":"((Monthly!FI515-Monthly!FI514)*100)","v":-8.0000000000000071},null,null,null,null,null,null,{"$f":"(Monthly!FP515/Monthly!FP514)-1","v":-1.2287272488336942E-2},{"$f":"(Monthly!FQ515/Monthly!FQ514)-1","v":6.0407630691816649E-5},{"$f":"(Monthly!FR515/Monthly!FR514)-1","v":3.1846460976202362E-2},{"$f":"(Monthly!FS515/Monthly!FS514)-1","v":4.3749304241344822E-2},{"$f":"(Monthly!FT515/Monthly!FT514)-1","v":-1.154000045541892E-3},{"$f":"(Monthly!FU515/Monthly!FU514)-1","v":-1.0822000566916623E-2},{"$f":"(Monthly!FV515/Monthly!FV514)-1","v":7.647303538233885E-2},{"$f":"(Monthly!FW515/Monthly!FW514)-1","v":0.10819624705774067},{"$f":"(Monthly!FX515/Monthly!FX514)-1","v":5.9014382653767905E-2},null,null,null,null,null,{"$f":"(Monthly!GD515/Monthly!GD514)-1","v":3.9353478566408917E-2},{"$f":"(Monthly!GE515/Monthly!GE514)-1","v":-1.5588464536242519E-3},{"$f":"(Monthly!GF515/Monthly!GF514)-1","v":0.25084302815714055},{"$f":"(Monthly!GG515/Monthly!GG514)-1","v":-2.6198083067092592E-2},{"$f":"(Monthly!GH515/Monthly!GH514)-1","v":{"$error":"#DIV/0!"}},"--",{"$f":"(Monthly!GJ515/Monthly!GJ514)-1","v":-9.2016709213274539E-2},{"$f":"(Monthly!GK515/Monthly!GK514)-1","v":8.905332993110493E-2},"--"]
["2001-03-01",null,null,null,{"$f":"(Monthly!E517/Monthly!E516)-1","v":-1.0689021534174836E-3},{"$f":"(Monthly!F517/Monthly!F516)-1","v":-1.1676608706688629E-2},{"$f":"(Monthly!G517/Monthly!G516)-1","v":-6.0609282790153873E-3},{"$f":"(Monthly!H517/Monthly!H516)-1","v":2.8061313971026181E-3},null,null,null,null,null,null,null,null,null,null,null,null,null,null,null,{"$f":"(Monthly!X517-Monthly!X516)","v":-0.40000000000000568},{"$f":"(Monthly!Y517/Monthly!Y516)-1","v":-2.1794144885237676E-3},null,null,null,null,null,null,null,null,null,null,null,null,null,{"$f":"(Monthly!AM517/Monthly!AM516)-1","v":-2.5760578155962222E-3},{"$f":"(Monthly!AN517/Monthly!AN516)-1","v":-2.3338128547900627E-3},{"$f":"(Monthly!AO517/Monthly!AO516)-1","v":-4.6642072861664552E-3},{"$f":"((Monthly!AP517-Monthly!AP516)*100)","v":2.0000000000000018},{"$f":"Monthly!AQ517-Monthly!AQ516","v":1},{"$f":"Monthly!AR517-Monthly!AR516","v":6.5},{"$f":"Monthly!AS517-Monthly!AS516","v":-0.5},{"$f":"Monthly!AT517-Monthly!AT516","v":2.1000000000000014},{"$f":"Monthly!AU517-Monthly!AU516","v":3.5},{"$f":"Monthly!AV517-Monthly!AV516","v":1.2999999999999972},{"$f":"Monthly!AW517-Monthly!AW516","v":-0.5},{"$f":"Monthly!AX517-Monthly!AX516","v":1.6000000000000014},{"$f":"Monthly!AY517-Monthly!AY516","v":-5.7000000000000028},{"$f":"Monthly!AZ517-Monthly!AZ516","v":4},{"$f":"Monthly!BA517-Monthly!BA516","v":-2.5},{"$f":"Monthly!BB517-Monthly!BB516","v":-1.5},{"$f":"(Monthly!BC517/Monthly!BC516)-1","v":-4.2028436331284946E-2},null,null,null,null,null,null,null,null,null,{"$f":"(Monthly!BM517/Monthly!BM516)-1","v":-8.3608621264782412E-3},{"$f":"(Monthly!BN517/Monthly!BN516)-1","v":-9.4329917303050959E-3},null,null,null,null,null,{"$f":"(Monthly!BT517/Monthly!BT516)-1","v":-4.2912896519931021E-4},null,null,null,{"$f":"(Monthly!BX517/Monthly!BX516)-1","v":-2.1538461538461506E-2},{"$f":"(Monthly!BY517/Monthly!BY516)-1","v":1.8115942028984477E-3},{"$f":"(Monthly!BZ517/Monthly!BZ516)-1","v":8.4114606150880178E-3},{"$f":"(Monthly!CA517/Monthly!CA516)-1","v":-3.2409797510468685E-2},{"$f":"Monthly!CB517-Monthly!CB516","v":-0.44695562435502811},{"$f":"Monthly!CC517-Monthly!CC516","v":-0.37695562435502694},"--","--",null,"--","--",null,{"$f":"(Monthly!CJ517/Monthly!CJ516)-1","v":-2.4922118380062308E-2},{"$f":"(Monthly!CK517/Monthly!CK516)-1","v":3.7821313816492896E-3},{"$f":"(Monthly!CL517/Monthly!CL516)-1","v":0.10104861773117269},{"$f":"(Monthly!CM517/Monthly!CM516)-1","v":-4.8437500000000022E-2},{"$f":"(Monthly!CN517/Monthly!CN516)-1","v":3.1191447150886731E-3},{"$f":"(Monthly!CO517/Monthly!CO516)-1","v":2.0000000000000018E-2},{"$f":"(Monthly!CP517/Monthly!CP516)-1","v":6.7706218669618679E-3},{"$f":"(Monthly!CQ517/Monthly!CQ516)-1","v":7.4963837866937055E-4},{"$f":"(Monthly!CR517/Monthly!CR516)-1","v":6.5593335076452597E-3},"--","--",null,null,null,null,null,{"$f":"(Monthly!CZ517/Monthly!CZ516)-1","v":5.6818181818174551E-4},{"$f":"(Monthly!DA517/Monthly!DA516)-1","v":1.6268980477223138E-3},null,null,null,null,null,"--",{"$f":"((Monthly!DH517-Monthly!DH516)*60)","v":6.0000000000000853},{"$f":"((Monthly!DI517-Monthly!DI516)*100)","v":10.000000000000853},{"$f":"((Monthly!DJ517-Monthly!DJ516)*100)","v":-10.000000000000053},{"$f":"((Monthly!DK517-Monthly!DK516)*100)","v":9.9999999999999645},{"$f":"Monthly!DL517-Monthly!DL516","v":-90},null,null,null,{"$f":"Monthly!DP517-Monthly!DP516","v":-27},null,null,null,{"$f":"(Monthly!DT517/Monthly!DT516)-1","v":4.296296296296287E-2},{"$f":"Monthly!DU517-Monthly!DU516","v":0.5},{"$f":"(Monthly!DV517-Monthly!DV516)","v":1.4000000000000909},{"$f":"(Monthly!DW517-Monthly!DW516)","v":7.3000000000001819},{"$f":"(Monthly!DX517-Monthly!DX516)","v":4.3000000000000682},{"$f":"(Monthly!DY517-Monthly!DY516)","v":2.5999999999999943},{"$f":"(Monthly!DZ517-Monthly!DZ516)","v":1.6999999999999318},{"$f":"(Monthly!EA517-Monthly!EA516)","v":1.2000000000000455},{"$f":"(Monthly!EB517-Monthly!EB516)","v":0.5},{"$f":"(Monthly!EC517-Monthly!EC516)","v":3},null,null,null,null,null,null,null,null,null,null,null,null,null,{"$f":"(Monthly!EQ517/Monthly!EQ516)-1","v":-1.0917030567685559E-2},{"$f":"(Monthly!ER517/Monthly!ER516)-1","v":2.0107238605899802E-3},{"$f":"(Monthly!ES517/Monthly!ES516)-1","v":2.1536252692029301E-3},null,null,null,null,null,{"$f":"((Monthly!EY517-Monthly!EY516)*100)","v":-17.999999999999972},{"$f":"((Monthly!EZ517-Monthly!EZ516)*100)","v":-18.00000000000006},{"$f":"((Monthly!FA517-Monthly!FA516)*100)","v":-11.999999999999922},{"$f":"((Monthly!FB517-Monthly!FB516)*100)","v":-3.0000000000000249},"--",{"$f":"((Monthly!FD517-Monthly!FD516)*100)","v":-9.9999999999999645},{"$f":"((Monthly!FE517-Monthly!FE516)*100)","v":-46},{"$f":"((Monthly!FF517-Monthly!FF516)*100)","v":-37.999999999999986},{"$f":"((Monthly!FG517-Monthly!FG516)*100)","v":-32.000000000000028},{"$f":"((Monthly!FH517-Monthly!FH516)*100)","v":-25},{"$f":"((Monthly!FI517-Monthly!FI516)*100)","v":-20.999999999999996},null,null,null,null,null,null,{"$f":"(Monthly!FP517/Monthly!FP516)-1","v":2.4382229232386976E-2},{"$f":"(Monthly!FQ517/Monthly!FQ516)-1","v":4.8326104553408911E-5},{"$f":"(Monthly!FR517/Monthly!FR516)-1","v":-1.1512954648432716E-2},{"$f":"(Monthly!FS517/Monthly!FS516)-1","v":-1.3253666485605664E-2},{"$f":"(Monthly!FT517/Monthly!FT516)-1","v":1.6322453855841745E-2},{"$f":"(Monthly!FU517/Monthly!FU516)-1","v":2.3680730055864574E-2},{"$f":"(Monthly!FV517/Monthly!FV516)-1","v":9.3761293077958996E-2},{"$f":"(Monthly!FW517/Monthly!FW516)-1","v":0.19050756007277747},{"$f":"(Monthly!FX517/Monthly!FX516)-1","v":0.16977760512770712},null,null,null,null,null,{"$f":"(Monthly!GD517/Monthly!GD516)-1","v":-8.0040526849037508E-2},{"$f":"(Monthly!GE517/Monthly!GE516)-1","v":-0.10909090909090913},{"$f":"(Monthly!GF517/Monthly!GF516)-1","v":-2.8561884082177968E-2},{"$f":"(Monthly!GG517/Monthly!GG516)-1","v":-6.2332439678284168E-2},{"$f":"(Monthly!GH517/Monthly!GH516)-1","v":{"$error":"#DIV/0!"}},"--",{"$f":"(Monthly!GJ517/Monthly!GJ516)-1","v":-8.5638766519823717E-2},{"$f":"(Monthly!GK517/Monthly!GK516)-1","v":2.5466464952092815E-2},"--"]
["2001-11-01",null,null,null,{"$f":"(Monthly!E525/Monthly!E524)-1","v":-4.9227018600780381E-3},{"$f":"(Monthly!F525/Monthly!F524)-1","v":-3.5087719298245612E-2},{"$f":"(Monthly!G525/Monthly!G524)-1","v":2.1989528795811619E-3},{"$f":"(Monthly!H525/Monthly!H524)-1","v":-6.2613051342708115E-4},null,null,null,null,null,null,null,null,null,null,null,null,null,null,null,{"$f":"(Monthly!X525-Monthly!X524)","v":-0.5},{"$f":"(Monthly!Y525/Monthly!Y524)-1","v":-1.0220130075949241E-2},null,null,null,null,null,null,null,null,null,null,null,null,null,{"$f":"(Monthly!AM525/Monthly!AM524)-1","v":-5.2460769468445356E-3},{"$f":"(Monthly!AN525/Monthly!AN524)-1","v":-2.63546395215708E-3},{"$f":"(Monthly!AO525/Monthly!AO524)-1","v":-1.1203886682896291E-2},{"$f":"((Monthly!AP525-Monthly!AP524)*100)","v":-1.0000000000000009},{"$f":"Monthly!AQ525-Monthly!AQ524","v":3.3000000000000043},{"$f":"Monthly!AR525-Monthly!AR524","v":2.5},{"$f":"Monthly!AS525-Monthly!AS524","v":0},{"$f":"Monthly!AT525-Monthly!AT524","v":0.79999999999999716},{"$f":"Monthly!AU525-Monthly!AU524","v":5.7000000000000028},{"$f":"Monthly!AV525-Monthly!AV524","v":1.8999999999999986},{"$f":"Monthly!AW525-Monthly!AW524","v":0.60000000000000142},{"$f":"Monthly!AX525-Monthly!AX524","v":10.200000000000003},{"$f":"Monthly!AY525-Monthly!AY524","v":-1.2999999999999972},{"$f":"Monthly!AZ525-Monthly!AZ524","v":5.1000000000000014},{"$f":"Monthly!BA525-Monthly!BA524","v":-0.39999999999999858},{"$f":"Monthly!BB525-Monthly!BB524","v":8.8999999999999986},{"$f":"(Monthly!BC525/Monthly!BC524)-1","v":3.2149750683609479E-2},null,null,null,null,null,null,null,null,null,{"$f":"(Monthly!BM525/Monthly!BM524)-1","v":-2.5976450462131706E-2},{"$f":"(Monthly!BN525/Monthly!BN524)-1","v":-2.8757199558327562E-2},null,null,null,null,null,{"$f":"(Monthly!BT525/Monthly!BT524)-1","v":1.0822375574364385E-2},null,null,null,{"$f":"(Monthly!BX525/Monthly!BX524)-1","v":4.0259740259740218E-2},{"$f":"(Monthly!BY525/Monthly!BY524)-1","v":5.4278416347381953E-2},{"$f":"(Monthly!BZ525/Monthly!BZ524)-1","v":4.8458517837748349E-3},{"$f":"(Monthly!CA525/Monthly!CA524)-1","v":-0.18351835644202852},{"$f":"Monthly!CB525-Monthly!CB524","v":-3.3285292034079816E-2},{"$f":"Monthly!CC525-Monthly!CC524","v":0.10671470796591898},"--","--",null,"--","--",null,{"$f":"(Monthly!CJ525/Monthly!CJ524)-1","v":6.0849598163031038E-2},{"$f":"(Monthly!CK525/Monthly!CK524)-1","v":7.5480075480061082E-4},{"$f":"(Monthly!CL525/Monthly!CL524)-1","v":0.2643297015632402},{"$f":"(Monthly!CM525/Monthly!CM524)-1","v":3.225806451612856E-3},{"$f":"(Monthly!CN525/Monthly!CN524)-1","v":2.3836338388532052E-3},{"$f":"(Monthly!CO525/Monthly!CO524)-1","v":2.3016628154592045E-2},{"$f":"(Monthly!CP525/Monthly!CP524)-1","v":1.5303248048477158E-2},{"$f":"(Monthly!CQ525/Monthly!CQ524)-1","v":8.4935931044616275E-4},{"$f":"(Monthly!CR525/Monthly!CR524)-1","v":1.0278016213300489E-2},"--","--",null,null,null,null,null,{"$f":"(Monthly!CZ525/Monthly!CZ524)-1","v":-5.6306306306308507E-4},{"$f":"(Monthly!DA525/Monthly!DA524)-1","v":3.7353255069370039E-3},null,null,null,null,null,"--",{"$f":"((Monthly!DH525-Monthly!DH524)*60)","v":5.9999999999996589},{"$f":"((Monthly!DI525-Monthly!DI524)*100)","v":0},{"$f":"((Monthly!DJ525-Monthly!DJ524)*100)","v":9.9999999999999645},{"$f":"((Monthly!DK525-Monthly!DK524)*100)","v":20.000000000000018},{"$f":"Monthly!DL525-Monthly!DL524","v":-147},null,null,null,{"$f":"Monthly!DP525-Monthly!DP524","v":-291},null,null,null,{"$f":"(Monthly!DT525/Monthly!DT524)-1","v":-3.9885738468049103E-2},{"$f":"Monthly!DU525-Monthly!DU524","v":0.40000000000000036},{"$f":"(Monthly!DV525-Monthly!DV524)","v":-6.5},{"$f":"(Monthly!DW525-Monthly!DW524)","v":-12},{"$f":"(Monthly!DX525-Monthly!DX524)","v":-7.5999999999999091},{"$f":"(Monthly!DY525-Monthly!DY524)","v":-4.1999999999999886},{"$f":"(Monthly!DZ525-Monthly!DZ524)","v":-3.3999999999999773},{"$f":"(Monthly!EA525-Monthly!EA524)","v":-1.2000000000000455},{"$f":"(Monthly!EB525-Monthly!EB524)","v":-2.1999999999999886},{"$f":"(Monthly!EC525-Monthly!EC524)","v":-4.4000000000000341},null,null,null,null,null,null,null,null,null,null,null,null,null,{"$f":"(Monthly!EQ525/Monthly!EQ524)-1","v":-3.8372985418265726E-3},{"$f":"(Monthly!ER525/Monthly!ER524)-1","v":2.6702269692921998E-3},{"$f":"(Monthly!ES525/Monthly!ES524)-1","v":7.1787508973431002E-4},null,null,null,null,null,{"$f":"((Monthly!EY525-Monthly!EY524)*100)","v":-43.000000000000057},{"$f":"((Monthly!EZ525-Monthly!EZ524)*100)","v":-40.000000000000036},{"$f":"((Monthly!FA525-Monthly!FA524)*100)","v":-6.0000000000000497},{"$f":"((Monthly!FB525-Monthly!FB524)*100)","v":-10.000000000000053},"--",{"$f":"((Monthly!FD525-Monthly!FD524)*100)","v":4.0000000000000036},{"$f":"((Monthly!FE525-Monthly!FE524)*100)","v":-29.000000000000004},{"$f":"((Monthly!FF525-Monthly!FF524)*100)","v":-14.999999999999991},{"$f":"((Monthly!FG525-Monthly!FG524)*100)","v":4.9999999999999822},{"$f":"((Monthly!FH525-Monthly!FH524)*100)","v":6.0000000000000053},{"$f":"((Monthly!FI525-Monthly!FI524)*100)","v":8.0000000000000071},null,null,null,null,null,null,{"$f":"(Monthly!FP525/Monthly!FP524)-1","v":1.3043201628809564E-2},{"$f":"(Monthly!FQ525/Monthly!FQ524)-1","v":1.2081964044119431E-5},{"$f":"(Monthly!FR525/Monthly!FR524)-1","v":-1.2217451360409526E-2},{"$f":"(Monthly!FS525/Monthly!FS524)-1","v":-1.8453038674033251E-2},{"$f":"(Monthly!FT525/Monthly!FT524)-1","v":4.2421521762627812E-3},{"$f":"(Monthly!FU525/Monthly!FU524)-1","v":1.3112503536461428E-2},{"$f":"(Monthly!FV525/Monthly!FV524)-1","v":-2.1217165268150318E-2},{"$f":"(Monthly!FW525/Monthly!FW524)-1","v":-0.17852021131907891},{"$f":"(Monthly!FX525/Monthly!FX524)-1","v":-8.6946298862157212E-2},null,null,null,null,null,{"$f":"(Monthly!GD525/Monthly!GD524)-1","v":-0.11436289959477708},{"$f":"(Monthly!GE525/Monthly!GE524)-1","v":-8.4712755598831513E-2},{"$f":"(Monthly!GF525/Monthly!GF524)-1","v":-0.10640572018280992},{"$f":"(Monthly!GG525/Monthly!GG524)-1","v":-6.6023738872403648E-2},{"$f":"(Monthly!GH525/Monthly!GH524)-1","v":{"$error":"#DIV/0!"}},"--",{"$f":"(Monthly!GJ525/Monthly!GJ524)-1","v":6.4171122994652441E-2},{"$f":"(Monthly!GK525/Monthly!GK524)-1","v":4.3780032034169691E-2},"--"]
["2002-02-01",null,null,null,{"$f":"(Monthly!E528/Monthly!E527)-1","v":4.1400075272866044E-3},{"$f":"(Monthly!F528/Monthly!F527)-1","v":1.7897897897897863E-2},{"$f":"(Monthly!G528/Monthly!G527)-1","v":5.2048092437417814E-4},{"$f":"(Monthly!H528/Monthly!H527)-1","v":2.5254272469383832E-3},null,null,null,null,null,null,null,null,null,null,null,null,null,null,null,{"$f":"(Monthly!X528-Monthly!X527)","v":-9.9999999999994316E-2},{"$f":"(Monthly!Y528/Monthly!Y527)-1","v":4.4737204485811866E-3},null,null,null,null,null,null,null,null,null,null,null,null,null,{"$f":"(Monthly!AM528/Monthly!AM527)-1","v":2.200398261138492E-4},{"$f":"(Monthly!AN528/Monthly!AN527)-1","v":4.6905191097446064E-4},{"$f":"(Monthly!AO528/Monthly!AO527)-1","v":-4.6463395648385086E-3},{"$f":"((Monthly!AP528-Monthly!AP527)*100)","v":-1.0000000000000009},{"$f":"Monthly!AQ528-Monthly!AQ527","v":3.2000000000000028},{"$f":"Monthly!AR528-Monthly!AR527","v":8.5},{"$f":"Monthly!AS528-Monthly!AS527","v":-2},{"$f":"Monthly!AT528-Monthly!AT527","v":2.7999999999999972},{"$f":"Monthly!AU528-Monthly!AU527","v":0.60000000000000142},{"$f":"Monthly!AV528-Monthly!AV527","v":1.1000000000000014},{"$f":"Monthly!AW528-Monthly!AW527","v":0.5},{"$f":"Monthly!AX528-Monthly!AX527","v":5.5},{"$f":"Monthly!AY528-Monthly!AY527","v":-2.3999999999999986},{"$f":"Monthly!AZ528-Monthly!AZ527","v":7},{"$f":"Monthly!BA528-Monthly!BA527","v":0.19999999999999574},{"$f":"Monthly!BB528-Monthly!BB527","v":7.7000000000000028},{"$f":"(Monthly!BC528/Monthly!BC527)-1","v":6.8584258239430707E-2},null,null,null,null,null,null,null,null,null,{"$f":"(Monthly!BM528/Monthly!BM527)-1","v":5.2331465527881704E-3},{"$f":"(Monthly!BN528/Monthly!BN527)-1","v":5.0745779636158783E-3},null,null,null,null,null,{"$f":"(Monthly!BT528/Monthly!BT527)-1","v":2.5841852535950505E-3},null,null,null,{"$f":"(Monthly!BX528/Monthly!BX527)-1","v":7.7149587750294568E-2},{"$f":"(Monthly!BY528/Monthly!BY527)-1","v":7.3273273273273265E-2},{"$f":"(Monthly!BZ528/Monthly!BZ527)-1","v":6.8391562294001229E-3},{"$f":"(Monthly!CA528/Monthly!CA527)-1","v":4.8458692971639961E-2},{"$f":"Monthly!CB528-Monthly!CB527","v":-5.9536135845927873E-2},{"$f":"Monthly!CC528-Monthly!CC527","v":-5.9536135845927873E-2},"--","--",null,"--","--",null,{"$f":"(Monthly!CJ528/Monthly!CJ527)-1","v":7.7272727272727382E-2},{"$f":"(Monthly!CK528/Monthly!CK527)-1","v":1.0941886425430702E-3},{"$f":"(Monthly!CL528/Monthly!CL527)-1","v":-4.5300878972278524E-2},{"$f":"(Monthly!CM528/Monthly!CM527)-1","v":0.13884673748103182},{"$f":"(Monthly!CN528/Monthly!CN527)-1","v":1.0441416196980136E-3},{"$f":"(Monthly!CO528/Monthly!CO527)-1","v":2.0215346639996579E-2},{"$f":"(Monthly!CP528/Monthly!CP527)-1","v":7.7576067970188678E-3},{"$f":"(Monthly!CQ528/Monthly!CQ527)-1","v":7.1830062624655966E-4},{"$f":"(Monthly!CR528/Monthly!CR527)-1","v":5.6800574721016517E-5},"--","--",null,null,null,null,null,{"$f":"(Monthly!CZ528/Monthly!CZ527)-1","v":1.6882386043894915E-3},{"$f":"(Monthly!DA528/Monthly!DA527)-1","v":2.1197668256491831E-3},null,null,null,null,null,"--",{"$f":"((Monthly!DH528-Monthly!DH527)*60)","v":0},{"$f":"((Monthly!DI528-Monthly!DI527)*100)","v":29.999999999999716},{"$f":"((Monthly!DJ528-Monthly!DJ527)*100)","v":0},{"$f":"((Monthly!DK528-Monthly!DK527)*100)","v":0},{"$f":"Monthly!DL528-Monthly!DL527","v":-72},null,null,null,{"$f":"Monthly!DP528-Monthly!DP527","v":-136},null,null,null,{"$f":"(Monthly!DT528/Monthly!DT527)-1","v":-2.3255813953488413E-2},{"$f":"Monthly!DU528-Monthly!DU527","v":-9.9999999999999645E-2},{"$f":"(Monthly!DV528-Monthly!DV527)","v":-1.7999999999999545},{"$f":"(Monthly!DW528-Monthly!DW527)","v":-5.5999999999999091},{"$f":"(Monthly!DX528-Monthly!DX527)","v":-0.79999999999995453},{"$f":"(Monthly!DY528-Monthly!DY527)","v":-0.70000000000001705},{"$f":"(Monthly!DZ528-Monthly!DZ527)","v":-0.10000000000002274},{"$f":"(Monthly!EA528-Monthly!EA527)","v":0.80000000000006821},{"$f":"(Monthly!EB528-Monthly!EB527)","v":-0.90000000000000568},{"$f":"(Monthly!EC528-Monthly!EC527)","v":-4.8000000000000114},null,null,null,null,null,null,null,null,null,null,null,null,null,{"$f":"(Monthly!EQ528/Monthly!EQ527)-1","v":-7.7821011673151474E-4},{"$f":"(Monthly!ER528/Monthly!ER527)-1","v":6.6666666666659324E-4},{"$f":"(Monthly!ES528/Monthly!ES527)-1","v":7.1736011477763206E-4},null,null,null,null,null,{"$f":"((Monthly!EY528-Monthly!EY527)*100)","v":0},{"$f":"((Monthly!EZ528-Monthly!EZ527)*100)","v":1.0000000000000009},{"$f":"((Monthly!FA528-Monthly!FA527)*100)","v":-4.0000000000000036},{"$f":"((Monthly!FB528-Monthly!FB527)*100)","v":1.9999999999999574},"--",{"$f":"((Monthly!FD528-Monthly!FD527)*100)","v":-11.000000000000032},{"$f":"((Monthly!FE528-Monthly!FE527)*100)","v":8.0000000000000071},{"$f":"((Monthly!FF528-Monthly!FF527)*100)","v":6.999999999999984},{"$f":"((Monthly!FG528-Monthly!FG527)*100)","v":-0.99999999999997868},{"$f":"((Monthly!FH528-Monthly!FH527)*100)","v":-4.0000000000000036},{"$f":"((Monthly!FI528-Monthly!FI527)*100)","v":-12.999999999999989},null,null,null,null,null,null,{"$f":"(Monthly!FP528/Monthly!FP527)-1","v":-2.0628867912733106E-3},{"$f":"(Monthly!FQ528/Monthly!FQ527)-1","v":-4.8326104553630955E-5},{"$f":"(Monthly!FR528/Monthly!FR527)-1","v":-6.3948666462961823E-3},{"$f":"(Monthly!FS528/Monthly!FS527)-1","v":-1.41530797101449E-2},{"$f":"(Monthly!FT528/Monthly!FT527)-1","v":5.813019954622245E-3},{"$f":"(Monthly!FU528/Monthly!FU527)-1","v":7.0736697703188689E-3},{"$f":"(Monthly!FV528/Monthly!FV527)-1","v":-9.5255003030284557E-3},{"$f":"(Monthly!FW528/Monthly!FW527)-1","v":-4.6890225063573876E-2},{"$f":"(Monthly!FX528/Monthly!FX527)-1","v":4.0673619250843895E-3},null,null,null,null,null,{"$f":"(Monthly!GD528/Monthly!GD527)-1","v":5.4397559735637868E-2},{"$f":"(Monthly!GE528/Monthly!GE527)-1","v":4.4284243048403615E-2},{"$f":"(Monthly!GF528/Monthly!GF527)-1","v":5.8797909407664051E-3},{"$f":"(Monthly!GG528/Monthly!GG527)-1","v":-8.6730268863843829E-4},{"$f":"(Monthly!GH528/Monthly!GH527)-1","v":{"$error":"#DIV/0!"}},"--",{"$f":"(Monthly!GJ528/Monthly!GJ527)-1","v":3.3333333333333215E-2},{"$f":"(Monthly!GK528/Monthly!GK527)-1","v":1.4027515511195077E-2},"--"]
["2002-04-01",null,null,null,{"$f":"(Monthly!E530/Monthly!E529)-1","v":5.1325318146664412E-3},{"$f":"(Monthly!F530/Monthly!F529)-1","v":2.787663107947802E-2},{"$f":"(Monthly!G530/Monthly!G529)-1","v":-3.27851790174849E-3},{"$f":"(Monthly!H530/Monthly!H529)-1","v":3.3454620703927684E-3},null,null,null,null,null,null,null,null,null,null,null,null,null,null,null,{"$f":"(Monthly!X530-Monthly!X529)","v":0.19999999999998863},{"$f":"(Monthly!Y530/Monthly!Y529)-1","v":-1.1578041630188496E-2},null,null,null,null,null,null,null,null,null,null,null,null,null,{"$f":"(Monthly!AM530/Monthly!AM529)-1","v":4.0562225450406775E-3},{"$f":"(Monthly!AN530/Monthly!AN529)-1","v":2.4240036223996952E-3},{"$f":"(Monthly!AO530/Monthly!AO529)-1","v":-1.3028751675963068E-3},{"$f":"((Monthly!AP530-Monthly!AP529)*100)","v":-2.0000000000000018},{"$f":"Monthly!AQ530-Monthly!AQ529","v":0},{"$f":"Monthly!AR530-Monthly!AR529","v":-6.5},{"$f":"Monthly!AS530-Monthly!AS529","v":0.5},{"$f":"Monthly!AT530-Monthly!AT529","v":0},{"$f":"Monthly!AU530-Monthly!AU529","v":1.2999999999999972},{"$f":"Monthly!AV530-Monthly!AV529","v":1.6000000000000014},{"$f":"Monthly!AW530-Monthly!AW529","v":1.6000000000000014},{"$f":"Monthly!AX530-Monthly!AX529","v":-3.8999999999999986},{"$f":"Monthly!AY530-Monthly!AY529","v":8.3999999999999986},{"$f":"Monthly!AZ530-Monthly!AZ529","v":0.80000000000000426},{"$f":"Monthly!BA530-Monthly!BA529","v":1.6000000000000014},{"$f":"Monthly!BB530-Monthly!BB529","v":-0.80000000000000426},{"$f":"(Monthly!BC530/Monthly!BC529)-1","v":3.3801818333472289E-2},null,null,null,null,null,null,null,null,null,{"$f":"(Monthly!BM530/Monthly!BM529)-1","v":1.6030929104385638E-2},{"$f":"(Monthly!BN530/Monthly!BN529)-1","v":1.657200653543911E-2},null,null,null,null,null,{"$f":"(Monthly!BT530/Monthly!BT529)-1","v":1.1562305884072366E-2},null,null,null,{"$f":"(Monthly!BX530/Monthly!BX529)-1","v":-3.0450669914738104E-2},{"$f":"(Monthly!BY530/Monthly!BY529)-1","v":-1.3010053222945017E-2},{"$f":"(Monthly!BZ530/Monthly!BZ529)-1","v":9.6496918585793345E-3},{"$f":"(Monthly!CA530/Monthly!CA529)-1","v":3.3059328091493922E-2},{"$f":"Monthly!CB530-Monthly!CB529","v":0.48112891948375314},{"$f":"Monthly!CC530-Monthly!CC529","v":0.62112891948375371},"--","--",null,"--","--",null,{"$f":"(Monthly!CJ530/Monthly!CJ529)-1","v":1.4084507042253502E-2},{"$f":"(Monthly!CK530/Monthly!CK529)-1","v":5.3045424969946353E-3},{"$f":"(Monthly!CL530/Monthly!CL529)-1","v":-3.6749116607773913E-2},{"$f":"(Monthly!CM530/Monthly!CM529)-1","v":-1.1609907120743057E-2},{"$f":"(Monthly!CN530/Monthly!CN529)-1","v":2.8324087187077129E-3},{"$f":"(Monthly!CO530/Monthly!CO529)-1","v":9.8357957117576333E-3},{"$f":"(Monthly!CP530/Monthly!CP529)-1","v":4.891406263071163E-3},{"$f":"(Monthly!CQ530/Monthly!CQ529)-1","v":7.2077718583507533E-4},{"$f":"(Monthly!CR530/Monthly!CR529)-1","v":7.322253026573966E-3},"--","--",null,null,null,null,null,{"$f":"(Monthly!CZ530/Monthly!CZ529)-1","v":4.4817927170868188E-3},{"$f":"(Monthly!DA530/Monthly!DA529)-1","v":2.6427061310783095E-3},null,null,null,null,null,"--",{"$f":"((Monthly!DH530-Monthly!DH529)*60)","v":0},{"$f":"((Monthly!DI530-Monthly!DI529)*100)","v":10.000000000000853},{"$f":"((Monthly!DJ530-Monthly!DJ529)*100)","v":29.999999999999893},{"$f":"((Monthly!DK530-Monthly!DK529)*100)","v":20.000000000000018},{"$f":"Monthly!DL530-Monthly!DL529","v":-51},null,null,null,{"$f":"Monthly!DP530-Monthly!DP529","v":-78},null,null,null,{"$f":"(Monthly!DT530/Monthly!DT529)-1","v":3.3341357727491472E-2},{"$f":"Monthly!DU530-Monthly!DU529","v":0.5},{"$f":"(Monthly!DV530-Monthly!DV529)","v":0.70000000000004547},{"$f":"(Monthly!DW530-Monthly!DW529)","v":10.799999999999955},{"$f":"(Monthly!DX530-Monthly!DX529)","v":3.1999999999999318},{"$f":"(Monthly!DY530-Monthly!DY529)","v":3.8999999999999773},{"$f":"(Monthly!DZ530-Monthly!DZ529)","v":-0.69999999999993179},{"$f":"(Monthly!EA530-Monthly!EA529)","v":-0.40000000000003411},{"$f":"(Monthly!EB530-Monthly!EB529)","v":-0.30000000000001137},{"$f":"(Monthly!EC530-Monthly!EC529)","v":7.5999999999999659},null,null,null,null,null,null,null,null,null,null,null,null,null,{"$f":"(Monthly!EQ530/Monthly!EQ529)-1","v":7.7041602465330872E-3},{"$f":"(Monthly!ER530/Monthly!ER529)-1","v":2.0000000000000018E-3},{"$f":"(Monthly!ES530/Monthly!ES529)-1","v":-7.1736011477763206E-4},null,null,null,null,null,{"$f":"((Monthly!EY530-Monthly!EY529)*100)","v":0},{"$f":"((Monthly!EZ530-Monthly!EZ529)*100)","v":2.0000000000000018},{"$f":"((Monthly!FA530-Monthly!FA529)*100)","v":-4.9999999999999822},{"$f":"((Monthly!FB530-Monthly!FB529)*100)","v":-8.0000000000000071},"--",{"$f":"((Monthly!FD530-Monthly!FD529)*100)","v":-1.9999999999999574},{"$f":"((Monthly!FE530-Monthly!FE529)*100)","v":-7.0000000000000062},{"$f":"((Monthly!FF530-Monthly!FF529)*100)","v":-8.9999999999999858},{"$f":"((Monthly!FG530-Monthly!FG529)*100)","v":-14.000000000000012},{"$f":"((Monthly!FH530-Monthly!FH529)*100)","v":-8.9999999999999858},{"$f":"((Monthly!FI530-Monthly!FI529)*100)","v":-7.0000000000000284},null,null,null,null,null,null,{"$f":"(Monthly!FP530/Monthly!FP529)-1","v":-3.9050198400201186E-3},{"$f":"(Monthly!FQ530/Monthly!FQ529)-1","v":-1.2081234218808135E-5},{"$f":"(Monthly!FR530/Monthly!FR529)-1","v":1.113195057369798E-2},{"$f":"(Monthly!FS530/Monthly!FS529)-1","v":1.0723248916267414E-2},{"$f":"(Monthly!FT530/Monthly!FT529)-1","v":-2.916035246800508E-3},{"$f":"(Monthly!FU530/Monthly!FU529)-1","v":-7.2404971286287312E-3},{"$f":"(Monthly!FV530/Monthly!FV529)-1","v":4.0312108505757616E-2},{"$f":"(Monthly!FW530/Monthly!FW529)-1","v":0.25328557652569228},{"$f":"(Monthly!FX530/Monthly!FX529)-1","v":3.7675941672395741E-2},null,null,null,null,null,{"$f":"(Monthly!GD530/Monthly!GD529)-1","v":7.575757575757569E-2},{"$f":"(Monthly!GE530/Monthly!GE529)-1","v":8.5654008438818652E-2},{"$f":"(Monthly!GF530/Monthly!GF529)-1","v":0.10005328056020701},{"$f":"(Monthly!GG530/Monthly!GG529)-1","v":6.4227642276422747E-2},{"$f":"(Monthly!GH530/Monthly!GH529)-1","v":{"$error":"#DIV/0!"}},"--",{"$f":"(Monthly!GJ530/Monthly!GJ529)-1","v":0.13101160862354888},{"$f":"(Monthly!GK530/Monthly!GK529)-1","v":-2.4206142634044747E-2},"--"]
["2002-09-01",null,null,null,{"$f":"(Monthly!E535/Monthly!E534)-1","v":-4.7537532674822858E-3},{"$f":"(Monthly!F535/Monthly!F534)-1","v":-4.3673012318029114E-2},{"$f":"(Monthly!G535/Monthly!G534)-1","v":2.5971327654272791E-4},{"$f":"(Monthly!H535/Monthly!H534)-1","v":1.8142297225598458E-3},null,null,null,null,null,null,null,null,null,null,null,null,null,null,null,{"$f":"(Monthly!X535-Monthly!X534)","v":9.9999999999994316E-2},{"$f":"(Monthly!Y535/Monthly!Y534)-1","v":-6.3927195147521765E-3},null,null,null,null,null,null,null,null,null,null,null,null,null,{"$f":"(Monthly!AM535/Monthly!AM534)-1","v":1.4437385454681984E-3},{"$f":"(Monthly!AN535/Monthly!AN534)-1","v":1.618615682943636E-3},{"$f":"(Monthly!AO535/Monthly!AO534)-1","v":7.2255779748389148E-3},{"$f":"((Monthly!AP535-Monthly!AP534)*100)","v":2.0000000000000018},{"$f":"Monthly!AQ535-Monthly!AQ534","v":0.20000000000000284},{"$f":"Monthly!AR535-Monthly!AR534","v":-0.5},{"$f":"Monthly!AS535-Monthly!AS534","v":-2},{"$f":"Monthly!AT535-Monthly!AT534","v":-1},{"$f":"Monthly!AU535-Monthly!AU534","v":0.39999999999999858},{"$f":"Monthly!AV535-Monthly!AV534","v":2.1000000000000014},{"$f":"Monthly!AW535-Monthly!AW534","v":-1.6000000000000014},{"$f":"Monthly!AX535-Monthly!AX534","v":2.2999999999999972},{"$f":"Monthly!AY535-Monthly!AY534","v":1},{"$f":"Monthly!AZ535-Monthly!AZ534","v":-1.3999999999999986},{"$f":"Monthly!BA535-Monthly!BA534","v":3.1000000000000014},{"$f":"Monthly!BB535-Monthly!BB534","v":3},{"$f":"(Monthly!BC535/Monthly!BC534)-1","v":-5.4268735167787852E-2},null,null,null,null,null,null,null,null,null,{"$f":"(Monthly!BM535/Monthly!BM534)-1","v":-1.4177222112091603E-2},{"$f":"(Monthly!BN535/Monthly!BN534)-1","v":-1.6322294556090244E-2},null,null,null,null,null,{"$f":"(Monthly!BT535/Monthly!BT534)-1","v":1.1076269600466704E-2},null,null,null,{"$f":"(Monthly!BX535/Monthly!BX534)-1","v":0.10471524800979792},{"$f":"(Monthly!BY535/Monthly!BY534)-1","v":6.371681415929209E-2},{"$f":"(Monthly!BZ535/Monthly!BZ534)-1","v":9.3622899240273227E-3},{"$f":"(Monthly!CA535/Monthly!CA534)-1","v":-9.8260149130074526E-2},{"$f":"Monthly!CB535-Monthly!CB534","v":-0.23146111370995204},{"$f":"Monthly!CC535-Monthly!CC534","v":-0.23146111370995293},"--","--",null,"--","--",null,{"$f":"(Monthly!CJ535/Monthly!CJ534)-1","v":2.9585798816567976E-2},{"$f":"(Monthly!CK535/Monthly!CK534)-1","v":2.0061274108962301E-3},{"$f":"(Monthly!CL535/Monthly!CL534)-1","v":0.1180106771565046},{"$f":"(Monthly!CM535/Monthly!CM534)-1","v":0.15958299919807528},{"$f":"(Monthly!CN535/Monthly!CN534)-1","v":5.4128635109318424E-4},{"$f":"(Monthly!CO535/Monthly!CO534)-1","v":1.3538320330426679E-2},{"$f":"(Monthly!CP535/Monthly!CP534)-1","v":1.6181257192233733E-3},{"$f":"(Monthly!CQ535/Monthly!CQ534)-1","v":8.9471493965875837E-4},{"$f":"(Monthly!CR535/Monthly!CR534)-1","v":3.8311144182328061E-3},"--","--",null,null,null,null,null,{"$f":"(Monthly!CZ535/Monthly!CZ534)-1","v":1.6620498614958734E-3},{"$f":"(Monthly!DA535/Monthly!DA534)-1","v":1.0465724751440586E-3},null,null,null,null,null,"--",{"$f":"((Monthly!DH535-Monthly!DH534)*60)","v":0},{"$f":"((Monthly!DI535-Monthly!DI534)*100)","v":10.000000000000853},{"$f":"((Monthly!DJ535-Monthly!DJ534)*100)","v":0},{"$f":"((Monthly!DK535-Monthly!DK534)*100)","v":0},{"$f":"Monthly!DL535-Monthly!DL534","v":-52},null,null,null,{"$f":"Monthly!DP535-Monthly!DP534","v":-60},null,null,null,{"$f":"(Monthly!DT535/Monthly!DT534)-1","v":3.6708860759493644E-2},{"$f":"Monthly!DU535-Monthly!DU534","v":0.5},{"$f":"(Monthly!DV535-Monthly!DV534)","v":1.0999999999999091},{"$f":"(Monthly!DW535-Monthly!DW534)","v":-3.5},{"$f":"(Monthly!DX535-Monthly!DX534)","v":2.2999999999999545},{"$f":"(Monthly!DY535-Monthly!DY534)","v":1.0999999999999943},{"$f":"(Monthly!DZ535-Monthly!DZ534)","v":1.2000000000000455},{"$f":"(Monthly!EA535-Monthly!EA534)","v":1.6999999999999886},{"$f":"(Monthly!EB535-Monthly!EB534)","v":-0.5},{"$f":"(Monthly!EC535-Monthly!EC534)","v":-5.8000000000000114},null,null,null,null,null,null,null,null,null,null,null,null,null,{"$f":"(Monthly!EQ535/Monthly!EQ534)-1","v":6.0836501901142537E-3},{"$f":"(Monthly!ER535/Monthly!ER534)-1","v":2.6684456304202353E-3},{"$f":"(Monthly!ES535/Monthly!ES534)-1","v":2.1629416005768398E-3},null,null,null,null,null,{"$f":"((Monthly!EY535-Monthly!EY534)*100)","v":0},{"$f":"((Monthly!EZ535-Monthly!EZ534)*100)","v":1.0000000000000009},{"$f":"((Monthly!FA535-Monthly!FA534)*100)","v":-21.999999999999975},{"$f":"((Monthly!FB535-Monthly!FB534)*100)","v":-17.999999999999972},"--",{"$f":"((Monthly!FD535-Monthly!FD534)*100)","v":-20.000000000000018},{"$f":"((Monthly!FE535-Monthly!FE534)*100)","v":0.99999999999997868},{"$f":"((Monthly!FF535-Monthly!FF534)*100)","v":-4.0000000000000036},{"$f":"((Monthly!FG535-Monthly!FG534)*100)","v":-12.999999999999989},{"$f":"((Monthly!FH535-Monthly!FH534)*100)","v":-35.000000000000007},{"$f":"((Monthly!FI535-Monthly!FI534)*100)","v":-38.999999999999972},null,null,null,null,null,null,{"$f":"(Monthly!FP535/Monthly!FP534)-1","v":4.2691474448834921E-3},{"$f":"(Monthly!FQ535/Monthly!FQ534)-1","v":3.6246330058942178E-5},{"$f":"(Monthly!FR535/Monthly!FR534)-1","v":2.3569707995812594E-2},{"$f":"(Monthly!FS535/Monthly!FS534)-1","v":2.5559758715878456E-3},{"$f":"(Monthly!FT535/Monthly!FT534)-1","v":6.9549469555538757E-3},{"$f":"(Monthly!FU535/Monthly!FU534)-1","v":1.8220432416122812E-3},{"$f":"(Monthly!FV535/Monthly!FV534)-1","v":-4.5588046791837922E-3},{"$f":"(Monthly!FW535/Monthly!FW534)-1","v":-2.9980901873510435E-2},{"$f":"(Monthly!FX535/Monthly!FX534)-1","v":-3.7523198920195622E-2},null,null,null,null,null,{"$f":"(Monthly!GD535/Monthly!GD534)-1","v":4.5454545454545636E-2},{"$f":"(Monthly!GE535/Monthly!GE534)-1","v":6.5666041275797449E-2},{"$f":"(Monthly!GF535/Monthly!GF534)-1","v":3.6528091842058519E-3},{"$f":"(Monthly!GG535/Monthly!GG534)-1","v":6.25E-2},{"$f":"(Monthly!GH535/Monthly!GH534)-1","v":{"$error":"#DIV/0!"}},"--",{"$f":"(Monthly!GJ535/Monthly!GJ534)-1","v":0.15426908150064689},{"$f":"(Monthly!GK535/Monthly!GK534)-1","v":5.2047781569965812E-2},"--"]
["2003-02-01",null,null,null,{"$f":"(Monthly!E540/Monthly!E539)-1","v":-4.8583181510890583E-3},{"$f":"(Monthly!F540/Monthly!F539)-1","v":-2.5558739255014284E-2},{"$f":"(Monthly!G540/Monthly!G539)-1","v":-1.9846318253523565E-3},{"$f":"(Monthly!H540/Monthly!H539)-1","v":-1.7412767108466731E-3},null,null,null,null,null,null,null,null,null,null,null,null,null,null,null,{"$f":"(Monthly!X540-Monthly!X539)","v":0.20000000000000284},{"$f":"(Monthly!Y540/Monthly!Y539)-1","v":-9.4253288802684798E-3},null,null,null,null,null,null,null,null,null,null,null,null,null,{"$f":"(Monthly!AM540/Monthly!AM539)-1","v":3.1791104663723146E-3},{"$f":"(Monthly!AN540/Monthly!AN539)-1","v":1.3255965984531048E-3},{"$f":"(Monthly!AO540/Monthly!AO539)-1","v":7.5708606065283401E-3},{"$f":"((Monthly!AP540-Monthly!AP539)*100)","v":1.0000000000000009},{"$f":"Monthly!AQ540-Monthly!AQ539","v":-2.5},{"$f":"Monthly!AR540-Monthly!AR539","v":4},{"$f":"Monthly!AS540-Monthly!AS539","v":3.5},{"$f":"Monthly!AT540-Monthly!AT539","v":-4.7999999999999972},{"$f":"Monthly!AU540-Monthly!AU539","v":0.80000000000000426},{"$f":"Monthly!AV540-Monthly!AV539","v":-4},{"$f":"Monthly!AW540-Monthly!AW539","v":-1.2000000000000028},{"$f":"Monthly!AX540-Monthly!AX539","v":-6.3000000000000043},{"$f":"Monthly!AY540-Monthly!AY539","v":8},{"$f":"Monthly!AZ540-Monthly!AZ539","v":-0.5},{"$f":"Monthly!BA540-Monthly!BA539","v":0},{"$f":"Monthly!BB540-Monthly!BB539","v":-0.60000000000000142},{"$f":"(Monthly!BC540/Monthly!BC539)-1","v":4.1373942609015391E-3},null,null,null,null,null,null,null,null,null,{"$f":"(Monthly!BM540/Monthly!BM539)-1","v":-1.3938650971574096E-2},{"$f":"(Monthly!BN540/Monthly!BN539)-1","v":-1.525389485026718E-2},null,null,null,null,null,{"$f":"(Monthly!BT540/Monthly!BT539)-1","v":-2.5554812530518278E-3},null,null,null,{"$f":"(Monthly!BX540/Monthly!BX539)-1","v":-0.12088505126821369},{"$f":"(Monthly!BY540/Monthly!BY539)-1","v":2.5442477876106206E-2},{"$f":"(Monthly!BZ540/Monthly!BZ539)-1","v":7.1810654356267989E-3},{"$f":"(Monthly!CA540/Monthly!CA539)-1","v":-3.7199391171994001E-2},{"$f":"Monthly!CB540-Monthly!CB539","v":0.4886110285609373},{"$f":"Monthly!CC540-Monthly!CC539","v":0.55861102856093936},"--","--",null,"--","--",null,{"$f":"(Monthly!CJ540/Monthly!CJ539)-1","v":-6.3063063063063085E-2},{"$f":"(Monthly!CK540/Monthly!CK539)-1","v":1.5200025872383893E-3},{"$f":"(Monthly!CL540/Monthly!CL539)-1","v":5.9789927282520861E-2},{"$f":"(Monthly!CM540/Monthly!CM539)-1","v":-0.1535458685751464},{"$f":"(Monthly!CN540/Monthly!CN539)-1","v":-2.0524587403165651E-3},{"$f":"(Monthly!CO540/Monthly!CO539)-1","v":1.2484882976453004E-2},{"$f":"(Monthly!CP540/Monthly!CP539)-1","v":5.4698939195474416E-3},{"$f":"(Monthly!CQ540/Monthly!CQ539)-1","v":6.769872684946332E-4},{"$f":"(Monthly!CR540/Monthly!CR539)-1","v":5.0502829001044525E-3},"--","--",null,null,null,null,null,{"$f":"(Monthly!CZ540/Monthly!CZ539)-1","v":5.4764512595837367E-3},{"$f":"(Monthly!DA540/Monthly!DA539)-1","v":5.197505197505059E-4},null,null,null,null,null,"--",{"$f":"((Monthly!DH540-Monthly!DH539)*60)","v":-5.9999999999996589},{"$f":"((Monthly!DI540-Monthly!DI539)*100)","v":0},{"$f":"((Monthly!DJ540-Monthly!DJ539)*100)","v":19.999999999999929},{"$f":"((Monthly!DK540-Monthly!DK539)*100)","v":10.000000000000053},{"$f":"Monthly!DL540-Monthly!DL539","v":-85},null,null,null,{"$f":"Monthly!DP540-Monthly!DP539","v":-149},null,null,null,{"$f":"(Monthly!DT540/Monthly!DT539)-1","v":4.0506329113924044E-2},{"$f":"Monthly!DU540-Monthly!DU539","v":-9.9999999999999645E-2},{"$f":"(Monthly!DV540-Monthly!DV539)","v":-2.7000000000000455},{"$f":"(Monthly!DW540-Monthly!DW539)","v":-4.5},{"$f":"(Monthly!DX540-Monthly!DX539)","v":-3.2000000000000455},{"$f":"(Monthly!DY540-Monthly!DY539)","v":-0.30000000000001137},{"$f":"(Monthly!DZ540-Monthly!DZ539)","v":-2.8999999999999773},{"$f":"(Monthly!EA540-Monthly!EA539)","v":-2.5999999999999659},{"$f":"(Monthly!EB540-Monthly!EB539)","v":-0.29999999999998295},{"$f":"(Monthly!EC540-Monthly!EC539)","v":-1.2999999999999545},null,null,null,null,null,null,null,null,null,null,null,null,null,{"$f":"(Monthly!EQ540/Monthly!EQ539)-1","v":1.6999260901699786E-2},{"$f":"(Monthly!ER540/Monthly!ER539)-1","v":6.6755674232310547E-4},{"$f":"(Monthly!ES540/Monthly!ES539)-1","v":0},null,null,null,null,null,{"$f":"((Monthly!EY540-Monthly!EY539)*100)","v":0},{"$f":"((Monthly!EZ540-Monthly!EZ539)*100)","v":2.0000000000000018},{"$f":"((Monthly!FA540-Monthly!FA539)*100)","v":-21.999999999999975},{"$f":"((Monthly!FB540-Monthly!FB539)*100)","v":-29.000000000000004},"--",{"$f":"((Monthly!FD540-Monthly!FD539)*100)","v":-8.0000000000000071},{"$f":"((Monthly!FE540-Monthly!FE539)*100)","v":0},{"$f":"((Monthly!FF540-Monthly!FF539)*100)","v":-6.0000000000000053},{"$f":"((Monthly!FG540-Monthly!FG539)*100)","v":-11.000000000000011},{"$f":"((Monthly!FH540-Monthly!FH539)*100)","v":-14.999999999999991},{"$f":"((Monthly!FI540-Monthly!FI539)*100)","v":-14.999999999999991},null,null,null,null,null,null,{"$f":"(Monthly!FP540/Monthly!FP539)-1","v":-1.9008693395614396E-2},{"$f":"(Monthly!FQ540/Monthly!FQ539)-1","v":6.0404711567541014E-5},{"$f":"(Monthly!FR540/Monthly!FR539)-1","v":3.0351242198017436E-2},{"$f":"(Monthly!FS540/Monthly!FS539)-1","v":1.5345509320278561E-2},{"$f":"(Monthly!FT540/Monthly!FT539)-1","v":-1.2790962024353814E-3},{"$f":"(Monthly!FU540/Monthly!FU539)-1","v":-1.1031889323446786E-2},{"$f":"(Monthly!FV540/Monthly!FV539)-1","v":-3.1107627768505619E-2},{"$f":"(Monthly!FW540/Monthly!FW539)-1","v":-0.15555750427500326},{"$f":"(Monthly!FX540/Monthly!FX539)-1","v":1.1744610128803012E-2},null,null,null,null,null,{"$f":"(Monthly!GD540/Monthly!GD539)-1","v":8.8949605343047855E-2},{"$f":"(Monthly!GE540/Monthly!GE539)-1","v":5.0994227068633879E-2},{"$f":"(Monthly!GF540/Monthly!GF539)-1","v":0.10299999999999998},{"$f":"(Monthly!GG540/Monthly!GG539)-1","v":0.11155913978494625},{"$f":"(Monthly!GH540/Monthly!GH539)-1","v":{"$error":"#DIV/0!"}},"--",{"$f":"(Monthly!GJ540/Monthly!GJ539)-1","v":0.23713064486154978},{"$f":"(Monthly!GK540/Monthly!GK539)-1","v":0.13636363636363646},"--"]
["2003-08-01",null,null,null,{"$f":"(Monthly!E546/Monthly!E545)-1","v":9.0264273108440207E-3},{"$f":"(Monthly!F546/Monthly!F545)-1","v":3.6052518295307756E-2},{"$f":"(Monthly!G546/Monthly!G545)-1","v":1.1634874662938222E-2},{"$f":"(Monthly!H546/Monthly!H545)-1","v":2.6435108501061677E-3},null,null,null,null,null,null,null,null,null,null,null,null,null,null,null,{"$f":"(Monthly!X546-Monthly!X545)","v":-9.9999999999994316E-2},{"$f":"(Monthly!Y546/Monthly!Y545)-1","v":-1.2822936515188732E-2},null,null,null,null,null,null,null,null,null,null,null,null,null,{"$f":"(Monthly!AM546/Monthly!AM545)-1","v":-1.8878893971532307E-3},{"$f":"(Monthly!AN546/Monthly!AN545)-1","v":-3.7140441010865555E-3},{"$f":"(Monthly!AO546/Monthly!AO545)-1","v":-5.8267713771156249E-3},{"$f":"((Monthly!AP546-Monthly!AP545)*100)","v":-1.0000000000000009},{"$f":"Monthly!AQ546-Monthly!AQ545","v":2.2000000000000028},{"$f":"Monthly!AR546-Monthly!AR545","v":0.5},{"$f":"Monthly!AS546-Monthly!AS545","v":0.5},{"$f":"Monthly!AT546-Monthly!AT545","v":0.80000000000000426},{"$f":"Monthly!AU546-Monthly!AU545","v":2},{"$f":"Monthly!AV546-Monthly!AV545","v":0.30000000000000426},{"$f":"Monthly!AW546-Monthly!AW545","v":-3.1999999999999957},{"$f":"Monthly!AX546-Monthly!AX545","v":4.3000000000000043},{"$f":"Monthly!AY546-Monthly!AY545","v":0},{"$f":"Monthly!AZ546-Monthly!AZ545","v":7.8999999999999986},{"$f":"Monthly!BA546-Monthly!BA545","v":1.5},{"$f":"Monthly!BB546-Monthly!BB545","v":2.3999999999999915},{"$f":"(Monthly!BC546/Monthly!BC545)-1","v":2.4748160609684433E-2},null,null,null,null,null,null,null,null,null,{"$f":"(Monthly!BM546/Monthly!BM545)-1","v":1.6371190403846825E-2},{"$f":"(Monthly!BN546/Monthly!BN545)-1","v":1.6489083480557332E-2},null,null,null,null,null,{"$f":"(Monthly!BT546/Monthly!BT545)-1","v":6.195593378142128E-4},null,null,null,{"$f":"(Monthly!BX546/Monthly!BX545)-1","v":-3.3737480231945227E-2},{"$f":"(Monthly!BY546/Monthly!BY545)-1","v":4.2970822281167109E-2},{"$f":"(Monthly!BZ546/Monthly!BZ545)-1","v":1.0061919504644079E-2},{"$f":"(Monthly!CA546/Monthly!CA545)-1","v":6.8907963757748991E-2},{"$f":"Monthly!CB546-Monthly!CB545","v":6.0510926438917423E-2},{"$f":"Monthly!CC546-Monthly!CC545","v":-9.489073561081085E-3},"--","--",null,"--","--",null,{"$f":"(Monthly!CJ546/Monthly!CJ545)-1","v":3.2534246575342429E-2},{"$f":"(Monthly!CK546/Monthly!CK545)-1","v":4.2793455860705709E-3},{"$f":"(Monthly!CL546/Monthly!CL545)-1","v":-3.4074074074074145E-2},{"$f":"(Monthly!CM546/Monthly!CM545)-1","v":-3.3224755700325681E-2},{"$f":"(Monthly!CN546/Monthly!CN545)-1","v":6.1988746029961739E-3},{"$f":"(Monthly!CO546/Monthly!CO545)-1","v":2.0733339863519218E-2},{"$f":"(Monthly!CP546/Monthly!CP545)-1","v":4.4409872551081087E-3},{"$f":"(Monthly!CQ546/Monthly!CQ545)-1","v":8.6651537033222148E-4},{"$f":"(Monthly!CR546/Monthly!CR545)-1","v":2.5323503604905984E-3},"--","--",null,null,null,null,null,{"$f":"(Monthly!CZ546/Monthly!CZ545)-1","v":4.354926510615087E-3},{"$f":"(Monthly!DA546/Monthly!DA545)-1","v":1.0341261633919352E-3},null,null,null,null,null,"--",{"$f":"((Monthly!DH546-Monthly!DH545)*60)","v":6.0000000000000853},{"$f":"((Monthly!DI546-Monthly!DI545)*100)","v":-10.000000000000853},{"$f":"((Monthly!DJ546-Monthly!DJ545)*100)","v":-20.000000000000107},{"$f":"((Monthly!DK546-Monthly!DK545)*100)","v":-10.000000000000053},{"$f":"Monthly!DL546-Monthly!DL545","v":-26},null,null,null,{"$f":"Monthly!DP546-Monthly!DP545","v":-41},null,null,null,{"$f":"(Monthly!DT546/Monthly!DT545)-1","v":-2.2960429897410872E-2},{"$f":"Monthly!DU546-Monthly!DU545","v":-0.20000000000000107},{"$f":"(Monthly!DV546-Monthly!DV545)","v":9.5},{"$f":"(Monthly!DW546-Monthly!DW545)","v":13.899999999999864},{"$f":"(Monthly!DX546-Monthly!DX545)","v":8.8999999999999773},{"$f":"(Monthly!DY546-Monthly!DY545)","v":1.9000000000000057},{"$f":"(Monthly!DZ546-Monthly!DZ545)","v":7},{"$f":"(Monthly!EA546-Monthly!EA545)","v":5.5},{"$f":"(Monthly!EB546-Monthly!EB545)","v":1.5},{"$f":"(Monthly!EC546-Monthly!EC545)","v":5},null,null,null,null,null,null,null,null,null,null,null,null,null,{"$f":"(Monthly!EQ546/Monthly!EQ545)-1","v":2.1786492374729072E-3},{"$f":"(Monthly!ER546/Monthly!ER545)-1","v":1.3306719893546592E-3},{"$f":"(Monthly!ES546/Monthly!ES545)-1","v":2.1520803443326741E-3},null,null,null,null,null,{"$f":"((Monthly!EY546-Monthly!EY545)*100)","v":0},{"$f":"((Monthly!EZ546-Monthly!EZ545)*100)","v":2.0000000000000018},{"$f":"((Monthly!FA546-Monthly!FA545)*100)","v":38.999999999999972},{"$f":"((Monthly!FB546-Monthly!FB545)*100)","v":38.999999999999972},"--",{"$f":"((Monthly!FD546-Monthly!FD545)*100)","v":62.999999999999986},{"$f":"((Monthly!FE546-Monthly!FE545)*100)","v":4.9999999999999929},{"$f":"((Monthly!FF546-Monthly!FF545)*100)","v":18.999999999999993},{"$f":"((Monthly!FG546-Monthly!FG545)*100)","v":39.000000000000014},{"$f":"((Monthly!FH546-Monthly!FH545)*100)","v":50},{"$f":"((Monthly!FI546-Monthly!FI545)*100)","v":47.000000000000021},null,null,null,null,null,null,{"$f":"(Monthly!FP546/Monthly!FP545)-1","v":1.0274220389262734E-2},{"$f":"(Monthly!FQ546/Monthly!FQ545)-1","v":-3.624370265675747E-5},{"$f":"(Monthly!FR546/Monthly!FR545)-1","v":3.1066828582629658E-2},{"$f":"(Monthly!FS546/Monthly!FS545)-1","v":-1.8477782666080134E-2},{"$f":"(Monthly!FT546/Monthly!FT545)-1","v":1.1517245917793906E-2},{"$f":"(Monthly!FU546/Monthly!FU545)-1","v":1.3185227556190116E-2},{"$f":"(Monthly!FV546/Monthly!FV545)-1","v":2.9561928404979065E-2},{"$f":"(Monthly!FW546/Monthly!FW545)-1","v":2.4280803059842482E-2},{"$f":"(Monthly!FX546/Monthly!FX545)-1","v":2.5016404936762271E-2},null,null,null,null,null,{"$f":"(Monthly!GD546/Monthly!GD545)-1","v":2.6983094928478391E-2},{"$f":"(Monthly!GE546/Monthly!GE545)-1","v":5.4320987654320918E-2},{"$f":"(Monthly!GF546/Monthly!GF545)-1","v":9.9063261901706889E-2},{"$f":"(Monthly!GG546/Monthly!GG545)-1","v":3.6236933797909376E-2},{"$f":"(Monthly!GH546/Monthly!GH545)-1","v":{"$error":"#DIV/0!"}},"--",{"$f":"(Monthly!GJ546/Monthly!GJ545)-1","v":-1.1124354390147029E-2},{"$f":"(Monthly!GK546/Monthly!GK545)-1","v":6.0622761091209121E-3},"--"]
["2003-11-01",null,null,null,{"$f":"(Monthly!E549/Monthly!E548)-1","v":6.5347815420300215E-3},{"$f":"(Monthly!F549/Monthly!F548)-1","v":2.2017571715888584E-2},{"$f":"(Monthly!G549/Monthly!G548)-1","v":9.303246239113161E-3},{"$f":"(Monthly!H549/Monthly!H548)-1","v":2.4950514812289715E-3},null,null,null,null,null,null,null,null,null,null,null,null,null,null,null,{"$f":"(Monthly!X549-Monthly!X548)","v":0.60000000000000853},{"$f":"(Monthly!Y549/Monthly!Y548)-1","v":-5.9855274498740174E-3},null,null,null,null,null,null,null,null,null,null,null,null,null,{"$f":"(Monthly!AM549/Monthly!AM548)-1","v":8.2397860323872862E-3},{"$f":"(Monthly!AN549/Monthly!AN548)-1","v":1.1065776785422088E-2},{"$f":"(Monthly!AO549/Monthly!AO548)-1","v":1.5527529215810798E-3},{"$f":"((Monthly!AP549-Monthly!AP548)*100)","v":-1.0000000000000009},{"$f":"Monthly!AQ549-Monthly!AQ548","v":3.1999999999999957},{"$f":"Monthly!AR549-Monthly!AR548","v":5.5},{"$f":"Monthly!AS549-Monthly!AS548","v":0.5},{"$f":"Monthly!AT549-Monthly!AT548","v":1.7999999999999972},{"$f":"Monthly!AU549-Monthly!AU548","v":-2.3999999999999986},{"$f":"Monthly!AV549-Monthly!AV548","v":2.1999999999999957},{"$f":"Monthly!AW549-Monthly!AW548","v":4.1000000000000014},{"$f":"Monthly!AX549-Monthly!AX548","v":4.6999999999999886},{"$f":"Monthly!AY549-Monthly!AY548","v":5.5},{"$f":"Monthly!AZ549-Monthly!AZ548","v":3.7999999999999972},{"$f":"Monthly!BA549-Monthly!BA548","v":1.7999999999999972},{"$f":"Monthly!BB549-Monthly!BB548","v":-3.3000000000000043},{"$f":"(Monthly!BC549/Monthly!BC548)-1","v":1.5692566576007261E-2},null,null,null,null,null,null,null,null,null,{"$f":"(Monthly!BM549/Monthly!BM548)-1","v":1.2226727554260908E-2},{"$f":"(Monthly!BN549/Monthly!BN548)-1","v":1.2893998449663213E-2},null,null,null,null,null,{"$f":"(Monthly!BT549/Monthly!BT548)-1","v":4.8315281193553217E-2},null,null,null,{"$f":"(Monthly!BX549/Monthly!BX548)-1","v":5.8973055414336617E-2},{"$f":"(Monthly!BY549/Monthly!BY548)-1","v":-4.6719681908548694E-2},{"$f":"(Monthly!BZ549/Monthly!BZ548)-1","v":1.2449826518810658E-2},{"$f":"(Monthly!CA549/Monthly!CA548)-1","v":6.529145759772037E-2},{"$f":"Monthly!CB549-Monthly!CB548","v":-0.313567949209137},{"$f":"Monthly!CC549-Monthly!CC548","v":-0.45356794920913579},"--","--",null,"--","--",null,{"$f":"(Monthly!CJ549/Monthly!CJ548)-1","v":-4.4580419580419584E-2},{"$f":"(Monthly!CK549/Monthly!CK548)-1","v":7.9138409131034315E-3},{"$f":"(Monthly!CL549/Monthly!CL548)-1","v":3.0165912518853588E-2},{"$f":"(Monthly!CM549/Monthly!CM548)-1","v":3.8626609442059978E-2},{"$f":"(Monthly!CN549/Monthly!CN548)-1","v":7.3410629204750943E-3},{"$f":"(Monthly!CO549/Monthly!CO548)-1","v":6.6726262690761651E-3},{"$f":"(Monthly!CP549/Monthly!CP548)-1","v":4.3815160829940858E-4},{"$f":"(Monthly!CQ549/Monthly!CQ548)-1","v":7.991110318479322E-4},{"$f":"(Monthly!CR549/Monthly!CR548)-1","v":-6.8879915645958523E-4},"--","--",null,null,null,null,null,{"$f":"(Monthly!CZ549/Monthly!CZ548)-1","v":5.4083288263928608E-4},{"$f":"(Monthly!DA549/Monthly!DA548)-1","v":0},null,null,null,null,null,"--",{"$f":"((Monthly!DH549-Monthly!DH548)*60)","v":5.9999999999996589},{"$f":"((Monthly!DI549-Monthly!DI548)*100)","v":0},{"$f":"((Monthly!DJ549-Monthly!DJ548)*100)","v":-19.999999999999929},{"$f":"((Monthly!DK549-Monthly!DK548)*100)","v":-20.000000000000018},{"$f":"Monthly!DL549-Monthly!DL548","v":-18},null,null,null,{"$f":"Monthly!DP549-Monthly!DP548","v":11},null,null,null,{"$f":"(Monthly!DT549/Monthly!DT548)-1","v":-4.0190375462718086E-2},{"$f":"Monthly!DU549-Monthly!DU548","v":-9.9999999999999645E-2},{"$f":"(Monthly!DV549-Monthly!DV548)","v":3.7000000000000455},{"$f":"(Monthly!DW549-Monthly!DW548)","v":-2.5},{"$f":"(Monthly!DX549-Monthly!DX548)","v":0.5},{"$f":"(Monthly!DY549-Monthly!DY548)","v":-0.20000000000001705},{"$f":"(Monthly!DZ549-Monthly!DZ548)","v":0.70000000000004547},{"$f":"(Monthly!EA549-Monthly!EA548)","v":0.30000000000001137},{"$f":"(Monthly!EB549-Monthly!EB548)","v":0.40000000000000568},{"$f":"(Monthly!EC549-Monthly!EC548)","v":-3},null,null,null,null,null,null,null,null,null,null,null,null,null,{"$f":"(Monthly!EQ549/Monthly!EQ548)-1","v":-2.8715003589375732E-3},{"$f":"(Monthly!ER549/Monthly!ER548)-1","v":-6.6181336863002649E-4},{"$f":"(Monthly!ES549/Monthly!ES548)-1","v":0},null,null,null,null,null,{"$f":"((Monthly!EY549-Monthly!EY548)*100)","v":0},{"$f":"((Monthly!EZ549-Monthly!EZ548)*100)","v":-1.0000000000000009},{"$f":"((Monthly!FA549-Monthly!FA548)*100)","v":-4.9999999999999822},{"$f":"((Monthly!FB549-Monthly!FB548)*100)","v":-7.0000000000000284},"--",{"$f":"((Monthly!FD549-Monthly!FD548)*100)","v":-2.0000000000000462},{"$f":"((Monthly!FE549-Monthly!FE548)*100)","v":1.0000000000000009},{"$f":"((Monthly!FF549-Monthly!FF548)*100)","v":9.0000000000000071},{"$f":"((Monthly!FG549-Monthly!FG548)*100)","v":17.999999999999993},{"$f":"((Monthly!FH549-Monthly!FH548)*100)","v":10.000000000000009},{"$f":"((Monthly!FI549-Monthly!FI548)*100)","v":0.99999999999997868},null,null,null,null,null,null,{"$f":"(Monthly!FP549/Monthly!FP548)-1","v":-6.8829891838741997E-3},{"$f":"(Monthly!FQ549/Monthly!FQ548)-1","v":1.2081964044119431E-5},{"$f":"(Monthly!FR549/Monthly!FR548)-1","v":-2.7013488854700229E-3},{"$f":"(Monthly!FS549/Monthly!FS548)-1","v":-3.4147174321319529E-4},{"$f":"(Monthly!FT549/Monthly!FT548)-1","v":-1.0586291183255492E-3},{"$f":"(Monthly!FU549/Monthly!FU548)-1","v":-3.6377948328694121E-3},{"$f":"(Monthly!FV549/Monthly!FV548)-1","v":-7.4348113240340297E-2},{"$f":"(Monthly!FW549/Monthly!FW548)-1","v":-0.13983218193859637},{"$f":"(Monthly!FX549/Monthly!FX548)-1","v":-9.8197552002591504E-2},null,null,null,null,null,{"$f":"(Monthly!GD549/Monthly!GD548)-1","v":2.5057698648203175E-2},{"$f":"(Monthly!GE549/Monthly!GE548)-1","v":-2.9044241810199267E-2},{"$f":"(Monthly!GF549/Monthly!GF548)-1","v":-3.5433070866141558E-2},{"$f":"(Monthly!GG549/Monthly!GG548)-1","v":6.7521944631998565E-4},{"$f":"(Monthly!GH549/Monthly!GH548)-1","v":{"$error":"#DIV/0!"}},"--",{"$f":"(Monthly!GJ549/Monthly!GJ548)-1","v":-3.0485359005214652E-2},{"$f":"(Monthly!GK549/Monthly!GK548)-1","v":5.5116033755274296E-2},"--"]
["2004-03-01",null,null,null,{"$f":"(Monthly!E553/Monthly!E552)-1","v":4.3127633591146797E-3},{"$f":"(Monthly!F553/Monthly!F552)-1","v":1.3464898756295529E-2},{"$f":"(Monthly!G553/Monthly!G552)-1","v":1.4973156676353128E-2},{"$f":"(Monthly!H553/Monthly!H552)-1","v":-1.0997127615920421E-3},null,null,null,null,null,null,null,null,null,null,null,null,null,null,null,{"$f":"(Monthly!X553-Monthly!X552)","v":-0.29999999999999716},{"$f":"(Monthly!Y553/Monthly!Y552)-1","v":-5.9336486496529561E-3},null,null,null,null,null,null,null,null,null,null,null,null,null,{"$f":"(Monthly!AM553/Monthly!AM552)-1","v":-4.8893485177663454E-3},{"$f":"(Monthly!AN553/Monthly!AN552)-1","v":-1.5943257395725219E-3},{"$f":"(Monthly!AO553/Monthly!AO552)-1","v":8.1063497870519363E-3},{"$f":"((Monthly!AP553-Monthly!AP552)*100)","v":-3.0000000000000027},{"$f":"Monthly!AQ553-Monthly!AQ552","v":0.70000000000000284},{"$f":"Monthly!AR553-Monthly!AR552","v":1.5},{"$f":"Monthly!AS553-Monthly!AS552","v":1},{"$f":"Monthly!AT553-Monthly!AT552","v":1.2999999999999972},{"$f":"Monthly!AU553-Monthly!AU552","v":5.1000000000000014},{"$f":"Monthly!AV553-Monthly!AV552","v":-2.7999999999999972},{"$f":"Monthly!AW553-Monthly!AW552","v":-1},{"$f":"Monthly!AX553-Monthly!AX552","v":-1.9000000000000057},{"$f":"Monthly!AY553-Monthly!AY552","v":4.5},{"$f":"Monthly!AZ553-Monthly!AZ552","v":1.2000000000000028},{"$f":"Monthly!BA553-Monthly!BA552","v":3.8000000000000043},{"$f":"Monthly!BB553-Monthly!BB552","v":-0.20000000000000284},{"$f":"(Monthly!BC553/Monthly!BC552)-1","v":7.3651633999649579E-2},null,null,null,null,null,null,null,null,null,{"$f":"(Monthly!BM553/Monthly!BM552)-1","v":1.7686327775048305E-2},{"$f":"(Monthly!BN553/Monthly!BN552)-1","v":1.8742481296669444E-2},null,null,null,null,null,{"$f":"(Monthly!BT553/Monthly!BT552)-1","v":-2.114771992906328E-3},null,null,null,{"$f":"(Monthly!BX553/Monthly!BX552)-1","v":8.234019501625145E-2},{"$f":"(Monthly!BY553/Monthly!BY552)-1","v":5.0864699898270693E-2},{"$f":"(Monthly!BZ553/Monthly!BZ552)-1","v":1.5529959880937083E-2},{"$f":"(Monthly!CA553/Monthly!CA552)-1","v":1.2203919682577835E-2},{"$f":"Monthly!CB553-Monthly!CB552","v":0.25162296928922245},{"$f":"Monthly!CC553-Monthly!CC552","v":0.39162296928922302},"--","--",null,"--","--",null,{"$f":"(Monthly!CJ553/Monthly!CJ552)-1","v":0.1009490940465918},{"$f":"(Monthly!CK553/Monthly!CK552)-1","v":4.9567558746737017E-3},{"$f":"(Monthly!CL553/Monthly!CL552)-1","v":-1.0032605969400032E-3},{"$f":"(Monthly!CM553/Monthly!CM552)-1","v":0.10195813639432805},{"$f":"(Monthly!CN553/Monthly!CN552)-1","v":3.6260062419828376E-3},{"$f":"(Monthly!CO553/Monthly!CO552)-1","v":1.2760012418503441E-2},{"$f":"(Monthly!CP553/Monthly!CP552)-1","v":6.8627989991505434E-3},{"$f":"(Monthly!CQ553/Monthly!CQ552)-1","v":6.6012696327910625E-4},{"$f":"(Monthly!CR553/Monthly!CR552)-1","v":7.4190570927659127E-3},"--","--",null,null,null,null,null,{"$f":"(Monthly!CZ553/Monthly!CZ552)-1","v":2.1424745581146709E-3},{"$f":"(Monthly!DA553/Monthly!DA552)-1","v":3.0785017957926097E-3},null,null,null,null,null,"--",{"$f":"((Monthly!DH553-Monthly!DH552)*60)","v":-5.9999999999996589},{"$f":"((Monthly!DI553-Monthly!DI552)*100)","v":0},{"$f":"((Monthly!DJ553-Monthly!DJ552)*100)","v":30.000000000000071},{"$f":"((Monthly!DK553-Monthly!DK552)*100)","v":20.000000000000018},{"$f":"Monthly!DL553-Monthly!DL552","v":8},null,null,null,{"$f":"Monthly!DP553-Monthly!DP552","v":331},null,null,null,{"$f":"(Monthly!DT553/Monthly!DT552)-1","v":-6.6757307953772993E-2},{"$f":"Monthly!DU553-Monthly!DU552","v":0},{"$f":"(Monthly!DV553-Monthly!DV552)","v":1.2999999999999545},{"$f":"(Monthly!DW553-Monthly!DW552)","v":7},{"$f":"(Monthly!DX553-Monthly!DX552)","v":4.6000000000000227},{"$f":"(Monthly!DY553-Monthly!DY552)","v":0.90000000000000568},{"$f":"(Monthly!DZ553-Monthly!DZ552)","v":3.7000000000000455},{"$f":"(Monthly!EA553-Monthly!EA552)","v":2.3000000000000114},{"$f":"(Monthly!EB553-Monthly!EB552)","v":1.3999999999999773},{"$f":"(Monthly!EC553-Monthly!EC552)","v":2.3999999999999773},null,null,null,null,null,null,null,null,null,null,null,null,null,{"$f":"(Monthly!EQ553/Monthly!EQ552)-1","v":7.0372976776917895E-3},{"$f":"(Monthly!ER553/Monthly!ER552)-1","v":3.3046926635822427E-3},{"$f":"(Monthly!ES553/Monthly!ES552)-1","v":3.5739814152966343E-3},null,null,null,null,null,{"$f":"((Monthly!EY553-Monthly!EY552)*100)","v":0},{"$f":"((Monthly!EZ553-Monthly!EZ552)*100)","v":-1.0000000000000009},{"$f":"((Monthly!FA553-Monthly!FA552)*100)","v":-16.999999999999993},{"$f":"((Monthly!FB553-Monthly!FB552)*100)","v":-15.999999999999925},"--",{"$f":"((Monthly!FD553-Monthly!FD552)*100)","v":-18.99999999999995},{"$f":"((Monthly!FE553-Monthly!FE552)*100)","v":0.99999999999998979},{"$f":"((Monthly!FF553-Monthly!FF552)*100)","v":-5.0000000000000044},{"$f":"((Monthly!FG553-Monthly!FG552)*100)","v":-15.999999999999993},{"$f":"((Monthly!FH553-Monthly!FH552)*100)","v":-27.999999999999979},{"$f":"((Monthly!FI553-Monthly!FI552)*100)","v":-25},null,null,null,null,null,null,{"$f":"(Monthly!FP553/Monthly!FP552)-1","v":-9.7751710654947477E-4},{"$f":"(Monthly!FQ553/Monthly!FQ552)-1","v":0},{"$f":"(Monthly!FR553/Monthly!FR552)-1","v":-1.1693361977538341E-3},{"$f":"(Monthly!FS553/Monthly!FS552)-1","v":-2.9984177215189867E-2},{"$f":"(Monthly!FT553/Monthly!FT552)-1","v":1.0182519698405779E-2},{"$f":"(Monthly!FU553/Monthly!FU552)-1","v":1.8225725290280659E-2},{"$f":"(Monthly!FV553/Monthly!FV552)-1","v":0.16152630110659949},{"$f":"(Monthly!FW553/Monthly!FW552)-1","v":0.22481383852100367},{"$f":"(Monthly!FX553/Monthly!FX552)-1","v":0.16095036381648598},null,null,null,null,null,{"$f":"(Monthly!GD553/Monthly!GD552)-1","v":5.8146229130684901E-2},{"$f":"(Monthly!GE553/Monthly!GE552)-1","v":8.9760207388204893E-2},{"$f":"(Monthly!GF553/Monthly!GF552)-1","v":5.1915397130601892E-2},{"$f":"(Monthly!GG553/Monthly!GG552)-1","v":2.9709228824273071E-2},{"$f":"(Monthly!GH553/Monthly!GH552)-1","v":{"$error":"#DIV/0!"}},"--",{"$f":"(Monthly!GJ553/Monthly!GJ552)-1","v":3.3376841320156503E-2},{"$f":"(Monthly!GK553/Monthly!GK552)-1","v":-0.10835509138381205},"--"]
["2004-09-01",null,null,null,{"$f":"(Monthly!E559/Monthly!E558)-1","v":7.5220567514251435E-3},{"$f":"(Monthly!F559/Monthly!F558)-1","v":2.6331719128329212E-2},{"$f":"(Monthly!G559/Monthly!G558)-1","v":5.4621036349573604E-3},{"$f":"(Monthly!H559/Monthly!H558)-1","v":4.4880103694102669E-3},null,null,null,null,null,null,null,null,null,null,null,null,null,null,null,{"$f":"(Monthly!X559-Monthly!X558)","v":0},{"$f":"(Monthly!Y559/Monthly!Y558)-1","v":4.3229214386890646E-3},null,null,null,null,null,null,null,null,null,null,null,null,null,{"$f":"(Monthly!AM559/Monthly!AM558)-1","v":7.8929374244207651E-4},{"$f":"(Monthly!AN559/Monthly!AN558)-1","v":4.3201054842811892E-4},{"$f":"(Monthly!AO559/Monthly!AO558)-1","v":4.1170220371622435E-4},{"$f":"((Monthly!AP559-Monthly!AP558)*100)","v":-1.0000000000000009},{"$f":"Monthly!AQ559-Monthly!AQ558","v":-1.1000000000000014},{"$f":"Monthly!AR559-Monthly!AR558","v":0},{"$f":"Monthly!AS559-Monthly!AS558","v":-4},{"$f":"Monthly!AT559-Monthly!AT558","v":1.6000000000000014},{"$f":"Monthly!AU559-Monthly!AU558","v":-2.2999999999999972},{"$f":"Monthly!AV559-Monthly!AV558","v":-9.9999999999994316E-2},{"$f":"Monthly!AW559-Monthly!AW558","v":-0.5},{"$f":"Monthly!AX559-Monthly!AX558","v":-4.3999999999999986},{"$f":"Monthly!AY559-Monthly!AY558","v":-5.5},{"$f":"Monthly!AZ559-Monthly!AZ558","v":0.5},{"$f":"Monthly!BA559-Monthly!BA558","v":-3},{"$f":"Monthly!BB559-Monthly!BB558","v":0.29999999999999716},{"$f":"(Monthly!BC559/Monthly!BC558)-1","v":8.0473919064471433E-2},null,null,null,null,null,null,null,null,null,{"$f":"(Monthly!BM559/Monthly!BM558)-1","v":1.7752277038360909E-2},{"$f":"(Monthly!BN559/Monthly!BN558)-1","v":1.8297448152020168E-2},null,null,null,null,null,{"$f":"(Monthly!BT559/Monthly!BT558)-1","v":3.1846051789556906E-3},null,null,null,{"$f":"(Monthly!BX559/Monthly!BX558)-1","v":-5.8794466403162104E-2},{"$f":"(Monthly!BY559/Monthly!BY558)-1","v":-7.2957198443579507E-3},{"$f":"(Monthly!BZ559/Monthly!BZ558)-1","v":9.4008448860594118E-3},{"$f":"(Monthly!CA559/Monthly!CA558)-1","v":4.2770832087096977E-2},{"$f":"Monthly!CB559-Monthly!CB558","v":-8.2574569667759334E-3},{"$f":"Monthly!CC559-Monthly!CC558","v":-8.2574569667741571E-3},"--","--",null,"--","--",null,{"$f":"(Monthly!CJ559/Monthly!CJ558)-1","v":3.319148936170202E-2},{"$f":"(Monthly!CK559/Monthly!CK558)-1","v":2.7871396238350332E-3},{"$f":"(Monthly!CL559/Monthly!CL558)-1","v":-0.15342269028243183},{"$f":"(Monthly!CM559/Monthly!CM558)-1","v":-8.0425783560023612E-2},{"$f":"(Monthly!CN559/Monthly!CN558)-1","v":1.9869260267535438E-5},{"$f":"(Monthly!CO559/Monthly!CO558)-1","v":8.4384489605231483E-3},{"$f":"(Monthly!CP559/Monthly!CP558)-1","v":7.7973902732113576E-3},{"$f":"(Monthly!CQ559/Monthly!CQ558)-1","v":8.5796288289152756E-4},{"$f":"(Monthly!CR559/Monthly!CR558)-1","v":8.4167744901377795E-3},"--","--",null,null,null,null,null,{"$f":"(Monthly!CZ559/Monthly!CZ558)-1","v":3.1712473572940159E-3},{"$f":"(Monthly!DA559/Monthly!DA558)-1","v":3.0472320975114542E-3},null,null,null,null,null,"--",{"$f":"((Monthly!DH559-Monthly!DH558)*60)","v":0},{"$f":"((Monthly!DI559-Monthly!DI558)*100)","v":-20.000000000000284},{"$f":"((Monthly!DJ559-Monthly!DJ558)*100)","v":0},{"$f":"((Monthly!DK559-Monthly!DK558)*100)","v":0},{"$f":"Monthly!DL559-Monthly!DL558","v":-14},null,null,null,{"$f":"Monthly!DP559-Monthly!DP558","v":162},null,null,null,{"$f":"(Monthly!DT559/Monthly!DT558)-1","v":-1.0271460014673495E-2},{"$f":"Monthly!DU559-Monthly!DU558","v":0.40000000000000036},{"$f":"(Monthly!DV559-Monthly!DV558)","v":4.2000000000000455},{"$f":"(Monthly!DW559-Monthly!DW558)","v":2.1999999999998181},{"$f":"(Monthly!DX559-Monthly!DX558)","v":2.8999999999999773},{"$f":"(Monthly!DY559-Monthly!DY558)","v":-0.80000000000001137},{"$f":"(Monthly!DZ559-Monthly!DZ558)","v":3.6999999999999318},{"$f":"(Monthly!EA559-Monthly!EA558)","v":1.6999999999999886},{"$f":"(Monthly!EB559-Monthly!EB558)","v":2},{"$f":"(Monthly!EC559-Monthly!EC558)","v":-0.69999999999998863},null,null,null,null,null,null,null,null,null,null,null,null,null,{"$f":"(Monthly!EQ559/Monthly!EQ558)-1","v":-2.0270270270270618E-3},{"$f":"(Monthly!ER559/Monthly!ER558)-1","v":1.9620667102679956E-3},{"$f":"(Monthly!ES559/Monthly!ES558)-1","v":1.4094432699083281E-3},null,null,null,null,null,{"$f":"((Monthly!EY559-Monthly!EY558)*100)","v":15.000000000000036},{"$f":"((Monthly!EZ559-Monthly!EZ558)*100)","v":18.000000000000014},{"$f":"((Monthly!FA559-Monthly!FA558)*100)","v":-19.000000000000039},{"$f":"((Monthly!FB559-Monthly!FB558)*100)","v":-19.000000000000039},"--",{"$f":"((Monthly!FD559-Monthly!FD558)*100)","v":-12.000000000000011},{"$f":"((Monthly!FE559-Monthly!FE558)*100)","v":16.999999999999993},{"$f":"((Monthly!FF559-Monthly!FF558)*100)","v":10.000000000000009},{"$f":"((Monthly!FG559-Monthly!FG558)*100)","v":2.0000000000000018},{"$f":"((Monthly!FH559-Monthly!FH558)*100)","v":-11.000000000000032},{"$f":"((Monthly!FI559-Monthly!FI558)*100)","v":-15.000000000000036},null,null,null,null,null,null,{"$f":"(Monthly!FP559/Monthly!FP558)-1","v":-1.8740001523577354E-2},{"$f":"(Monthly!FQ559/Monthly!FQ558)-1","v":-1.2081964044008409E-5},{"$f":"(Monthly!FR559/Monthly!FR558)-1","v":8.0471773450456752E-3},{"$f":"(Monthly!FS559/Monthly!FS558)-1","v":2.7069149372487278E-3},{"$f":"(Monthly!FT559/Monthly!FT558)-1","v":-3.809546960827026E-3},{"$f":"(Monthly!FU559/Monthly!FU558)-1","v":-5.2018001269349412E-3},{"$f":"(Monthly!FV559/Monthly!FV558)-1","v":-1.4996616450861366E-2},{"$f":"(Monthly!FW559/Monthly!FW558)-1","v":1.7655621295225243E-2},{"$f":"(Monthly!FX559/Monthly!FX558)-1","v":1.823973732368378E-2},null,null,null,null,null,{"$f":"(Monthly!GD559/Monthly!GD558)-1","v":2.2474410324877736E-2},{"$f":"(Monthly!GE559/Monthly!GE558)-1","v":1.076275152082351E-2},{"$f":"(Monthly!GF559/Monthly!GF558)-1","v":-2.9979144942646752E-3},{"$f":"(Monthly!GG559/Monthly!GG558)-1","v":4.5826513911620292E-2},{"$f":"(Monthly!GH559/Monthly!GH558)-1","v":{"$error":"#DIV/0!"}},"--",{"$f":"(Monthly!GJ559/Monthly!GJ558)-1","v":-4.6061049168342083E-2},{"$f":"(Monthly!GK559/Monthly!GK558)-1","v":-5.0479555779914254E-4},"--"]
["2005-02-01",null,null,null,{"$f":"(Monthly!E564/Monthly!E563)-1","v":3.4648926416340764E-3},{"$f":"(Monthly!F564/Monthly!F563)-1","v":7.0754716981131782E-3},{"$f":"(Monthly!G564/Monthly!G563)-1","v":3.6403177004540321E-3},{"$f":"(Monthly!H564/Monthly!H563)-1","v":2.6876989777144811E-3},null,null,null,null,null,null,null,null,null,null,null,null,null,null,null,{"$f":"(Monthly!X564-Monthly!X563)","v":0.5},{"$f":"(Monthly!Y564/Monthly!Y563)-1","v":1.1182742682117608E-2},null,null,null,null,null,null,null,null,null,null,null,null,null,{"$f":"(Monthly!AM564/Monthly!AM563)-1","v":6.7887517423890209E-3},{"$f":"(Monthly!AN564/Monthly!AN563)-1","v":8.7810571786290925E-3},{"$f":"(Monthly!AO564/Monthly!AO563)-1","v":7.1773581892937699E-3},{"$f":"((Monthly!AP564-Monthly!AP563)*100)","v":0},{"$f":"Monthly!AQ564-Monthly!AQ563","v":-1.2999999999999972},{"$f":"Monthly!AR564-Monthly!AR563","v":0},{"$f":"Monthly!AS564-Monthly!AS563","v":-2},{"$f":"Monthly!AT564-Monthly!AT563","v":-2.6000000000000014},{"$f":"Monthly!AU564-Monthly!AU563","v":0},{"$f":"Monthly!AV564-Monthly!AV563","v":-0.39999999999999858},{"$f":"Monthly!AW564-Monthly!AW563","v":-2.5},{"$f":"Monthly!AX564-Monthly!AX563","v":-2},{"$f":"Monthly!AY564-Monthly!AY563","v":-3.5},{"$f":"Monthly!AZ564-Monthly!AZ563","v":-1.0999999999999943},{"$f":"Monthly!BA564-Monthly!BA563","v":1.7999999999999972},{"$f":"Monthly!BB564-Monthly!BB563","v":-0.60000000000000142},{"$f":"(Monthly!BC564/Monthly!BC563)-1","v":-1.8650594919439323E-3},null,null,null,null,null,null,null,null,null,{"$f":"(Monthly!BM564/Monthly!BM563)-1","v":1.2229561918426946E-2},{"$f":"(Monthly!BN564/Monthly!BN563)-1","v":1.1968062716150918E-2},null,null,null,null,null,{"$f":"(Monthly!BT564/Monthly!BT563)-1","v":-4.6152698388192137E-3},null,null,null,{"$f":"(Monthly!BX564/Monthly!BX563)-1","v":2.9384328358208922E-2},{"$f":"(Monthly!BY564/Monthly!BY563)-1","v":-1.1687704534829368E-2},{"$f":"(Monthly!BZ564/Monthly!BZ563)-1","v":1.520698394818365E-2},{"$f":"(Monthly!CA564/Monthly!CA563)-1","v":1.9547953573610943E-3},{"$f":"Monthly!CB564-Monthly!CB563","v":0.30815238594673566},{"$f":"Monthly!CC564-Monthly!CC563","v":0.37815238594673772},{"$f":"(Monthly!CD564/Monthly!CD563)-1","v":1.133786848072571E-2},{"$f":"(Monthly!CE564/Monthly!CE563)-1","v":9.6425602660016541E-2},null,"--","--",null,{"$f":"(Monthly!CJ564/Monthly!CJ563)-1","v":9.6425602660016541E-2},{"$f":"(Monthly!CK564/Monthly!CK563)-1","v":3.771755466136506E-3},{"$f":"(Monthly!CL564/Monthly!CL563)-1","v":-8.8052486187845336E-2},{"$f":"(Monthly!CM564/Monthly!CM563)-1","v":3.0477285796434828E-2},{"$f":"(Monthly!CN564/Monthly!CN563)-1","v":4.0713377820145169E-4},{"$f":"(Monthly!CO564/Monthly!CO563)-1","v":-1.6510105323086499E-3},{"$f":"(Monthly!CP564/Monthly!CP563)-1","v":6.7285372902565754E-3},{"$f":"(Monthly!CQ564/Monthly!CQ563)-1","v":6.4764643251935539E-4},{"$f":"(Monthly!CR564/Monthly!CR563)-1","v":-6.5681889868685062E-4},"--","--",null,null,null,null,null,{"$f":"(Monthly!CZ564/Monthly!CZ563)-1","v":4.1753653444676075E-3},{"$f":"(Monthly!DA564/Monthly!DA563)-1","v":2.0100502512563345E-3},null,null,null,null,null,"--",{"$f":"((Monthly!DH564-Monthly!DH563)*60)","v":5.9999999999996589},{"$f":"((Monthly!DI564-Monthly!DI563)*100)","v":10.000000000000853},{"$f":"((Monthly!DJ564-Monthly!DJ563)*100)","v":0},{"$f":"((Monthly!DK564-Monthly!DK563)*100)","v":10.000000000000053},{"$f":"Monthly!DL564-Monthly!DL563","v":16},null,null,null,{"$f":"Monthly!DP564-Monthly!DP563","v":239},null,null,null,{"$f":"(Monthly!DT564/Monthly!DT563)-1","v":-8.8023088023088003E-2},{"$f":"Monthly!DU564-Monthly!DU563","v":-0.20000000000000107},{"$f":"(Monthly!DV564-Monthly!DV563)","v":7.2000000000000455},{"$f":"(Monthly!DW564-Monthly!DW563)","v":0.70000000000004547},{"$f":"(Monthly!DX564-Monthly!DX563)","v":0.79999999999995453},{"$f":"(Monthly!DY564-Monthly!DY563)","v":1.6999999999999886},{"$f":"(Monthly!DZ564-Monthly!DZ563)","v":-0.90000000000009095},{"$f":"(Monthly!EA564-Monthly!EA563)","v":0.70000000000004547},{"$f":"(Monthly!EB564-Monthly!EB563)","v":-1.5999999999999943},{"$f":"(Monthly!EC564-Monthly!EC563)","v":-9.9999999999965894E-2},null,null,null,null,null,null,null,null,null,null,null,null,null,{"$f":"(Monthly!EQ564/Monthly!EQ563)-1","v":4.6388336646785433E-3},{"$f":"(Monthly!ER564/Monthly!ER563)-1","v":-6.4350064350060521E-4},{"$f":"(Monthly!ES564/Monthly!ES563)-1","v":0},null,null,null,null,null,{"$f":"((Monthly!EY564-Monthly!EY563)*100)","v":24.000000000000021},{"$f":"((Monthly!EZ564-Monthly!EZ563)*100)","v":22.000000000000021},{"$f":"((Monthly!FA564-Monthly!FA563)*100)","v":-16.000000000000014},{"$f":"((Monthly!FB564-Monthly!FB563)*100)","v":-19.999999999999929},"--",{"$f":"((Monthly!FD564-Monthly!FD563)*100)","v":-8.0000000000000071},{"$f":"((Monthly!FE564-Monthly!FE563)*100)","v":20.999999999999996},{"$f":"((Monthly!FF564-Monthly!FF563)*100)","v":16.999999999999993},{"$f":"((Monthly!FG564-Monthly!FG563)*100)","v":15.99999999999997},{"$f":"((Monthly!FH564-Monthly!FH563)*100)","v":6.0000000000000053},{"$f":"((Monthly!FI564-Monthly!FI563)*100)","v":-4.9999999999999822},null,null,null,null,null,null,{"$f":"(Monthly!FP564/Monthly!FP563)-1","v":1.249183540169807E-2},{"$f":"(Monthly!FQ564/Monthly!FQ563)-1","v":0},{"$f":"(Monthly!FR564/Monthly!FR563)-1","v":-1.1134097507702445E-2},{"$f":"(Monthly!FS564/Monthly!FS563)-1","v":-8.3822296730931001E-3},{"$f":"(Monthly!FT564/Monthly!FT563)-1","v":1.8371733267621426E-3},{"$f":"(Monthly!FU564/Monthly!FU563)-1","v":9.337528240479509E-3},{"$f":"(Monthly!FV564/Monthly!FV563)-1","v":-1.5430756198630879E-2},{"$f":"(Monthly!FW564/Monthly!FW563)-1","v":-5.3014122935513108E-2},{"$f":"(Monthly!FX564/Monthly!FX563)-1","v":4.4161372878688709E-2},null,null,null,null,null,{"$f":"(Monthly!GD564/Monthly!GD563)-1","v":2.4124679760888057E-2},{"$f":"(Monthly!GE564/Monthly!GE563)-1","v":2.1792855538081302E-2},{"$f":"(Monthly!GF564/Monthly!GF563)-1","v":4.1555531846793947E-2},{"$f":"(Monthly!GG564/Monthly!GG563)-1","v":3.4711587544665745E-2},{"$f":"(Monthly!GH564/Monthly!GH563)-1","v":{"$error":"#DIV/0!"}},"--",{"$f":"(Monthly!GJ564/Monthly!GJ563)-1","v":2.7481409634659837E-3},{"$f":"(Monthly!GK564/Monthly!GK563)-1","v":1.5151515151515138E-2},"--"]
["2005-07-01",null,null,null,{"$f":"(Monthly!E569/Monthly!E568)-1","v":6.2861505956675057E-3},{"$f":"(Monthly!F569/Monthly!F568)-1","v":3.6857781087118235E-2},{"$f":"(Monthly!G569/Monthly!G568)-1","v":-1.646129244661787E-3},{"$f":"(Monthly!H569/Monthly!H568)-1","v":2.8002831747031554E-3},null,null,null,null,null,null,null,null,null,null,null,null,null,null,null,{"$f":"(Monthly!X569-Monthly!X568)","v":-0.30000000000001137},{"$f":"(Monthly!Y569/Monthly!Y568)-1","v":1.4605654406367741E-2},null,null,null,null,null,null,null,null,null,null,null,null,null,{"$f":"(Monthly!AM569/Monthly!AM568)-1","v":-3.2277955603094988E-3},{"$f":"(Monthly!AN569/Monthly!AN568)-1","v":-3.7556068166282319E-3},{"$f":"(Monthly!AO569/Monthly!AO568)-1","v":-4.141426095843781E-3},{"$f":"((Monthly!AP569-Monthly!AP568)*100)","v":-2.0000000000000018},{"$f":"Monthly!AQ569-Monthly!AQ568","v":0.39999999999999858},{"$f":"Monthly!AR569-Monthly!AR568","v":-2},{"$f":"Monthly!AS569-Monthly!AS568","v":0.5},{"$f":"Monthly!AT569-Monthly!AT568","v":2.1000000000000014},{"$f":"Monthly!AU569-Monthly!AU568","v":4.5999999999999943},{"$f":"Monthly!AV569-Monthly!AV568","v":0.5},{"$f":"Monthly!AW569-Monthly!AW568","v":-2.5},{"$f":"Monthly!AX569-Monthly!AX568","v":1.5},{"$f":"Monthly!AY569-Monthly!AY568","v":-2},{"$f":"Monthly!AZ569-Monthly!AZ568","v":2.2999999999999972},{"$f":"Monthly!BA569-Monthly!BA568","v":-1.2000000000000028},{"$f":"Monthly!BB569-Monthly!BB568","v":0.59999999999999432},{"$f":"(Monthly!BC569/Monthly!BC568)-1","v":-1.2039345606065788E-2},null,null,null,null,null,null,null,null,null,{"$f":"(Monthly!BM569/Monthly!BM568)-1","v":7.9516215784041222E-3},{"$f":"(Monthly!BN569/Monthly!BN568)-1","v":8.6445878062428871E-3},null,null,null,null,null,{"$f":"(Monthly!BT569/Monthly!BT568)-1","v":6.4183991991806355E-3},null,null,null,{"$f":"(Monthly!BX569/Monthly!BX568)-1","v":-6.7698259187620735E-3},{"$f":"(Monthly!BY569/Monthly!BY568)-1","v":1.1478420569329684E-2},{"$f":"(Monthly!BZ569/Monthly!BZ568)-1","v":9.7082256107212661E-3},{"$f":"(Monthly!CA569/Monthly!CA568)-1","v":0.14687221727515576},{"$f":"Monthly!CB569-Monthly!CB568","v":0.52613323426926684},{"$f":"Monthly!CC569-Monthly!CC568","v":0.52613323426926684},{"$f":"(Monthly!CD569/Monthly!CD568)-1","v":1.978021978021971E-2},{"$f":"(Monthly!CE569/Monthly!CE568)-1","v":9.0266875981161787E-2},null,"--","--",null,{"$f":"(Monthly!CJ569/Monthly!CJ568)-1","v":9.0266875981161787E-2},{"$f":"(Monthly!CK569/Monthly!CK568)-1","v":7.0605828293439643E-3},{"$f":"(Monthly!CL569/Monthly!CL568)-1","v":-0.13642823306489804},{"$f":"(Monthly!CM569/Monthly!CM568)-1","v":2.9086678301337709E-3},{"$f":"(Monthly!CN569/Monthly!CN568)-1","v":2.5203985564099529E-3},{"$f":"(Monthly!CO569/Monthly!CO568)-1","v":8.174542140191976E-3},{"$f":"(Monthly!CP569/Monthly!CP568)-1","v":4.1806923947300678E-3},{"$f":"(Monthly!CQ569/Monthly!CQ568)-1","v":8.4477724913489816E-4},{"$f":"(Monthly!CR569/Monthly!CR568)-1","v":8.9267543104942781E-4},"--","--",null,null,null,null,null,{"$f":"(Monthly!CZ569/Monthly!CZ568)-1","v":6.1951471347445608E-3},{"$f":"(Monthly!DA569/Monthly!DA568)-1","v":1.4955134596212893E-3},null,null,null,null,null,"--",{"$f":"((Monthly!DH569-Monthly!DH568)*60)","v":0},{"$f":"((Monthly!DI569-Monthly!DI568)*100)","v":0},{"$f":"((Monthly!DJ569-Monthly!DJ568)*100)","v":-19.999999999999929},{"$f":"((Monthly!DK569-Monthly!DK568)*100)","v":0},{"$f":"Monthly!DL569-Monthly!DL568","v":-1},null,null,null,{"$f":"Monthly!DP569-Monthly!DP568","v":374},null,null,null,{"$f":"(Monthly!DT569/Monthly!DT568)-1","v":-4.1442824251727295E-3},{"$f":"Monthly!DU569-Monthly!DU568","v":-0.19999999999999929},{"$f":"(Monthly!DV569-Monthly!DV568)","v":2.5},{"$f":"(Monthly!DW569-Monthly!DW568)","v":-0.29999999999995453},{"$f":"(Monthly!DX569-Monthly!DX568)","v":-4.7000000000000455},{"$f":"(Monthly!DY569-Monthly!DY568)","v":-1.2999999999999829},{"$f":"(Monthly!DZ569-Monthly!DZ568)","v":-3.3999999999999773},{"$f":"(Monthly!EA569-Monthly!EA568)","v":-3.3000000000000682},{"$f":"(Monthly!EB569-Monthly!EB568)","v":-9.9999999999994316E-2},{"$f":"(Monthly!EC569-Monthly!EC568)","v":4.3999999999999773},null,null,null,null,null,null,null,null,null,null,null,null,null,{"$f":"(Monthly!EQ569/Monthly!EQ568)-1","v":1.2961762799740706E-2},{"$f":"(Monthly!ER569/Monthly!ER568)-1","v":3.8412291933420661E-3},{"$f":"(Monthly!ES569/Monthly!ES568)-1","v":3.4578146611341509E-3},null,null,null,null,null,{"$f":"((Monthly!EY569-Monthly!EY568)*100)","v":24.000000000000021},{"$f":"((Monthly!EZ569-Monthly!EZ568)*100)","v":21.999999999999975},{"$f":"((Monthly!FA569-Monthly!FA568)*100)","v":9.9999999999999645},{"$f":"((Monthly!FB569-Monthly!FB568)*100)","v":8.9999999999999858},"--",{"$f":"((Monthly!FD569-Monthly!FD568)*100)","v":12.000000000000011},{"$f":"((Monthly!FE569-Monthly!FE568)*100)","v":25},{"$f":"((Monthly!FF569-Monthly!FF568)*100)","v":28.000000000000025},{"$f":"((Monthly!FG569-Monthly!FG568)*100)","v":23},{"$f":"((Monthly!FH569-Monthly!FH568)*100)","v":20.999999999999996},{"$f":"((Monthly!FI569-Monthly!FI568)*100)","v":17.999999999999972},null,null,null,null,null,null,{"$f":"(Monthly!FP569/Monthly!FP568)-1","v":-1.394936300596672E-2},{"$f":"(Monthly!FQ569/Monthly!FQ568)-1","v":-6.0532833927385843E-3},{"$f":"(Monthly!FR569/Monthly!FR568)-1","v":-1.361405584258335E-2},{"$f":"(Monthly!FS569/Monthly!FS568)-1","v":-9.3788564376799943E-3},{"$f":"(Monthly!FT569/Monthly!FT568)-1","v":4.1746100966106869E-3},{"$f":"(Monthly!FU569/Monthly!FU568)-1","v":9.2753643641136918E-3},{"$f":"(Monthly!FV569/Monthly!FV568)-1","v":-0.10919559652250321},{"$f":"(Monthly!FW569/Monthly!FW568)-1","v":1.4110894468624791E-2},{"$f":"(Monthly!FX569/Monthly!FX568)-1","v":-0.14401357703756579},null,null,null,null,null,{"$f":"(Monthly!GD569/Monthly!GD568)-1","v":4.3370067543547997E-2},{"$f":"(Monthly!GE569/Monthly!GE568)-1","v":5.83256669733212E-2},{"$f":"(Monthly!GF569/Monthly!GF568)-1","v":6.6855679531735657E-2},{"$f":"(Monthly!GG569/Monthly!GG568)-1","v":3.6244541484716342E-2},{"$f":"(Monthly!GH569/Monthly!GH568)-1","v":{"$error":"#DIV/0!"}},"--",{"$f":"(Monthly!GJ569/Monthly!GJ568)-1","v":5.1762420205384352E-2},{"$f":"(Monthly!GK569/Monthly!GK568)-1","v":-2.6790063321967872E-2},"--"]
["2005-09-01",null,null,null,{"$f":"(Monthly!E571/Monthly!E570)-1","v":-3.8910505836576847E-3},{"$f":"(Monthly!F571/Monthly!F570)-1","v":-2.5813161875945512E-2},{"$f":"(Monthly!G571/Monthly!G570)-1","v":-6.9226811356939422E-3},{"$f":"(Monthly!H571/Monthly!H570)-1","v":1.5021828594676823E-3},null,null,null,null,null,null,null,null,null,null,null,null,null,null,null,{"$f":"(Monthly!X571-Monthly!X570)","v":-1.5999999999999943},{"$f":"(Monthly!Y571/Monthly!Y570)-1","v":5.1458833786550695E-3},null,null,null,null,null,null,null,null,null,null,null,null,null,{"$f":"(Monthly!AM571/Monthly!AM570)-1","v":-1.8362178766764159E-2},{"$f":"(Monthly!AN571/Monthly!AN570)-1","v":-1.0166426859930189E-2},{"$f":"(Monthly!AO571/Monthly!AO570)-1","v":5.9820702558042171E-3},{"$f":"((Monthly!AP571-Monthly!AP570)*100)","v":-1.0000000000000009},{"$f":"Monthly!AQ571-Monthly!AQ570","v":4.3999999999999986},{"$f":"Monthly!AR571-Monthly!AR570","v":4.5},{"$f":"Monthly!AS571-Monthly!AS570","v":-2},{"$f":"Monthly!AT571-Monthly!AT570","v":1.6000000000000014},{"$f":"Monthly!AU571-Monthly!AU570","v":2.7999999999999972},{"$f":"Monthly!AV571-Monthly!AV570","v":0},{"$f":"Monthly!AW571-Monthly!AW570","v":2.5},{"$f":"Monthly!AX571-Monthly!AX570","v":3.1000000000000014},{"$f":"Monthly!AY571-Monthly!AY570","v":15.5},{"$f":"Monthly!AZ571-Monthly!AZ570","v":6.7999999999999972},{"$f":"Monthly!BA571-Monthly!BA570","v":7.8000000000000043},{"$f":"Monthly!BB571-Monthly!BB570","v":-9.5999999999999943},{"$f":"(Monthly!BC571/Monthly!BC570)-1","v":-1.9766007799740026E-2},null,null,null,null,null,null,null,null,null,{"$f":"(Monthly!BM571/Monthly!BM570)-1","v":1.5242925009473218E-3},{"$f":"(Monthly!BN571/Monthly!BN570)-1","v":1.5134842084543187E-3},null,null,null,null,null,{"$f":"(Monthly!BT571/Monthly!BT570)-1","v":7.307957437030721E-3},null,null,null,{"$f":"(Monthly!BX571/Monthly!BX570)-1","v":2.6730310262529811E-2},{"$f":"(Monthly!BY571/Monthly!BY570)-1","v":1.9828751689950463E-2},{"$f":"(Monthly!BZ571/Monthly!BZ570)-1","v":1.1584009929151318E-2},{"$f":"(Monthly!CA571/Monthly!CA570)-1","v":-2.896494650351733E-2},{"$f":"Monthly!CB571-Monthly!CB570","v":1.1948990480688533},{"$f":"Monthly!CC571-Monthly!CC570","v":1.2648990480688536},{"$f":"(Monthly!CD571/Monthly!CD570)-1","v":2.3109243697478909E-2},{"$f":"(Monthly!CE571/Monthly!CE570)-1","v":-8.7649402390438391E-3},null,"--","--",null,{"$f":"(Monthly!CJ571/Monthly!CJ570)-1","v":-8.7649402390438391E-3},{"$f":"(Monthly!CK571/Monthly!CK570)-1","v":4.9523916313924943E-3},{"$f":"(Monthly!CL571/Monthly!CL570)-1","v":-3.6332179930795738E-2},{"$f":"(Monthly!CM571/Monthly!CM570)-1","v":3.5300925925925819E-2},{"$f":"(Monthly!CN571/Monthly!CN570)-1","v":-5.1181871459269335E-3},{"$f":"(Monthly!CO571/Monthly!CO570)-1","v":4.5078041359103427E-3},{"$f":"(Monthly!CP571/Monthly!CP570)-1","v":2.0239563848074571E-3},{"$f":"(Monthly!CQ571/Monthly!CQ570)-1","v":9.0068816623944947E-4},{"$f":"(Monthly!CR571/Monthly!CR570)-1","v":2.2124066935145237E-3},"--","--",null,null,null,null,null,{"$f":"(Monthly!CZ571/Monthly!CZ570)-1","v":1.3768485466598701E-2},{"$f":"(Monthly!DA571/Monthly!DA570)-1","v":9.9453008453509462E-4},null,null,null,null,null,"--",{"$f":"((Monthly!DH571-Monthly!DH570)*60)","v":5.9999999999996589},{"$f":"((Monthly!DI571-Monthly!DI570)*100)","v":-10.000000000000853},{"$f":"((Monthly!DJ571-Monthly!DJ570)*100)","v":9.9999999999999645},{"$f":"((Monthly!DK571-Monthly!DK570)*100)","v":9.9999999999999645},{"$f":"Monthly!DL571-Monthly!DL570","v":-28},null,null,null,{"$f":"Monthly!DP571-Monthly!DP570","v":67},null,null,null,{"$f":"(Monthly!DT571/Monthly!DT570)-1","v":0.21219319081551857},{"$f":"Monthly!DU571-Monthly!DU570","v":-0.79999999999999893},{"$f":"(Monthly!DV571-Monthly!DV570)","v":1.5999999999999091},{"$f":"(Monthly!DW571-Monthly!DW570)","v":0.70000000000004547},{"$f":"(Monthly!DX571-Monthly!DX570)","v":1.1000000000000227},{"$f":"(Monthly!DY571-Monthly!DY570)","v":-2.8000000000000114},{"$f":"(Monthly!DZ571-Monthly!DZ570)","v":3.8999999999999773},{"$f":"(Monthly!EA571-Monthly!EA570)","v":1.1999999999999318},{"$f":"(Monthly!EB571-Monthly!EB570)","v":2.6999999999999886},{"$f":"(Monthly!EC571-Monthly!EC570)","v":-0.39999999999997726},null,null,null,null,null,null,null,null,null,null,null,null,null,{"$f":"(Monthly!EQ571/Monthly!EQ570)-1","v":2.9187817258883308E-2},{"$f":"(Monthly!ER571/Monthly!ER570)-1","v":1.274697259400881E-3},{"$f":"(Monthly!ES571/Monthly!ES570)-1","v":1.3783597518952639E-3},null,null,null,null,null,{"$f":"((Monthly!EY571-Monthly!EY570)*100)","v":14.999999999999947},{"$f":"((Monthly!EZ571-Monthly!EZ570)*100)","v":12.000000000000011},{"$f":"((Monthly!FA571-Monthly!FA570)*100)","v":4.0000000000000036},{"$f":"((Monthly!FB571-Monthly!FB570)*100)","v":7.0000000000000284},"--",{"$f":"((Monthly!FD571-Monthly!FD570)*100)","v":-5.0000000000000711},{"$f":"((Monthly!FE571-Monthly!FE570)*100)","v":-2.0000000000000018},{"$f":"((Monthly!FF571-Monthly!FF570)*100)","v":-2.0000000000000018},{"$f":"((Monthly!FG571-Monthly!FG570)*100)","v":-8.9999999999999858},{"$f":"((Monthly!FH571-Monthly!FH570)*100)","v":-11.000000000000032},{"$f":"((Monthly!FI571-Monthly!FI570)*100)","v":-5.9999999999999609},null,null,null,null,null,null,{"$f":"(Monthly!FP571/Monthly!FP570)-1","v":-2.208751972099976E-2},{"$f":"(Monthly!FQ571/Monthly!FQ570)-1","v":-1.2096226717847047E-3},{"$f":"(Monthly!FR571/Monthly!FR570)-1","v":9.3204319589752505E-3},{"$f":"(Monthly!FS571/Monthly!FS570)-1","v":-4.9613664091093801E-3},{"$f":"(Monthly!FT571/Monthly!FT570)-1","v":-1.1627970011220956E-3},{"$f":"(Monthly!FU571/Monthly!FU570)-1","v":-5.3244446237586951E-3},{"$f":"(Monthly!FV571/Monthly!FV570)-1","v":3.6284058734969982E-2},{"$f":"(Monthly!FW571/Monthly!FW570)-1","v":3.8945110230004465E-2},{"$f":"(Monthly!FX571/Monthly!FX570)-1","v":-2.5376621284137646E-2},null,null,null,null,null,{"$f":"(Monthly!GD571/Monthly!GD570)-1","v":9.2350315530242977E-3},{"$f":"(Monthly!GE571/Monthly!GE570)-1","v":-1.6723976242575822E-2},{"$f":"(Monthly!GF571/Monthly!GF570)-1","v":0.14511591812978941},{"$f":"(Monthly!GG571/Monthly!GG570)-1","v":0.12759999999999994},{"$f":"(Monthly!GH571/Monthly!GH570)-1","v":{"$error":"#DIV/0!"}},"--",{"$f":"(Monthly!GJ571/Monthly!GJ570)-1","v":0.28471411901983679},{"$f":"(Monthly!GK571/Monthly!GK570)-1","v":-7.2067594433399274E-3},"--"]
["2006-05-01",null,null,null,{"$f":"(Monthly!E579/Monthly!E578)-1","v":1.1053003244261284E-3},{"$f":"(Monthly!F579/Monthly!F578)-1","v":-1.0893648449039839E-2},{"$f":"(Monthly!G579/Monthly!G578)-1","v":-2.2822713164138975E-4},{"$f":"(Monthly!H579/Monthly!H578)-1","v":3.8484629239081691E-3},null,null,null,null,null,null,null,null,null,null,null,null,null,null,null,{"$f":"(Monthly!X579-Monthly!X578)","v":-0.29999999999999716},{"$f":"(Monthly!Y579/Monthly!Y578)-1","v":1.695879002042644E-2},null,null,null,null,null,null,null,null,null,null,null,null,null,{"$f":"(Monthly!AM579/Monthly!AM578)-1","v":-1.3964506796779741E-3},{"$f":"(Monthly!AN579/Monthly!AN578)-1","v":-4.3065005958560221E-3},{"$f":"(Monthly!AO579/Monthly!AO578)-1","v":1.09837790696381E-2},{"$f":"((Monthly!AP579-Monthly!AP578)*100)","v":0},{"$f":"Monthly!AQ579-Monthly!AQ578","v":-1.5},{"$f":"Monthly!AR579-Monthly!AR578","v":-4},{"$f":"Monthly!AS579-Monthly!AS578","v":-2.5},{"$f":"Monthly!AT579-Monthly!AT578","v":-1},{"$f":"Monthly!AU579-Monthly!AU578","v":2.3000000000000043},{"$f":"Monthly!AV579-Monthly!AV578","v":-2.5},{"$f":"Monthly!AW579-Monthly!AW578","v":-3},{"$f":"Monthly!AX579-Monthly!AX578","v":-0.80000000000000426},{"$f":"Monthly!AY579-Monthly!AY578","v":5.5},{"$f":"Monthly!AZ579-Monthly!AZ578","v":-1.1000000000000014},{"$f":"Monthly!BA579-Monthly!BA578","v":-1.2999999999999972},{"$f":"Monthly!BB579-Monthly!BB578","v":-3.1999999999999957},{"$f":"(Monthly!BC579/Monthly!BC578)-1","v":1.9618459186598214E-2},null,null,null,null,null,null,null,null,null,{"$f":"(Monthly!BM579/Monthly!BM578)-1","v":-3.0117365443609323E-3},{"$f":"(Monthly!BN579/Monthly!BN578)-1","v":-3.3835390206947702E-3},null,null,null,null,null,{"$f":"(Monthly!BT579/Monthly!BT578)-1","v":1.3971248889526722E-2},null,null,null,{"$f":"(Monthly!BX579/Monthly!BX578)-1","v":6.6447007138934699E-2},{"$f":"(Monthly!BY579/Monthly!BY578)-1","v":-4.6546546546546552E-2},{"$f":"(Monthly!BZ579/Monthly!BZ578)-1","v":-7.2586498911209052E-4},{"$f":"(Monthly!CA579/Monthly!CA578)-1","v":-2.4022211492032763E-2},{"$f":"Monthly!CB579-Monthly!CB578","v":0.26343689867179698},{"$f":"Monthly!CC579-Monthly!CC578","v":0.1934368986717967},{"$f":"(Monthly!CD579/Monthly!CD578)-1","v":0},{"$f":"(Monthly!CE579/Monthly!CE578)-1","v":-3.2947462154942153E-2},null,{"$f":"(Monthly!CG579/Monthly!CG578)-1","v":2.8985507246376718E-2},{"$f":"(Monthly!CH579/Monthly!CH578)-1","v":-7.5187969924812581E-3},null,{"$f":"(Monthly!CJ579/Monthly!CJ578)-1","v":-3.2947462154942153E-2},{"$f":"(Monthly!CK579/Monthly!CK578)-1","v":1.2649605916121853E-3},{"$f":"(Monthly!CL579/Monthly!CL578)-1","v":-5.267804590935854E-2},{"$f":"(Monthly!CM579/Monthly!CM578)-1","v":3.9046988749172673E-2},{"$f":"(Monthly!CN579/Monthly!CN578)-1","v":-8.8159179456082093E-4},{"$f":"(Monthly!CO579/Monthly!CO578)-1","v":-6.9461672041677414E-3},{"$f":"(Monthly!CP579/Monthly!CP578)-1","v":3.9541964013054542E-3},{"$f":"(Monthly!CQ579/Monthly!CQ578)-1","v":7.2079683251691229E-4},{"$f":"(Monthly!CR579/Monthly!CR578)-1","v":6.6527375952531997E-3},"--","--",null,null,null,null,null,{"$f":"(Monthly!CZ579/Monthly!CZ578)-1","v":2.989536621823774E-3},{"$f":"(Monthly!DA579/Monthly!DA578)-1","v":2.9296875E-3},null,null,null,null,null,"--",{"$f":"((Monthly!DH579-Monthly!DH578)*60)","v":-6.0000000000000853},{"$f":"((Monthly!DI579-Monthly!DI578)*100)","v":0},{"$f":"((Monthly!DJ579-Monthly!DJ578)*100)","v":9.9999999999999645},{"$f":"((Monthly!DK579-Monthly!DK578)*100)","v":-10.000000000000053},{"$f":"Monthly!DL579-Monthly!DL578","v":-23},null,null,null,{"$f":"Monthly!DP579-Monthly!DP578","v":25},null,null,null,{"$f":"(Monthly!DT579/Monthly!DT578)-1","v":6.7970660146699169E-2},{"$f":"Monthly!DU579-Monthly!DU578","v":9.9999999999999645E-2},{"$f":"(Monthly!DV579-Monthly!DV578)","v":-0.29999999999995453},{"$f":"(Monthly!DW579-Monthly!DW578)","v":10.900000000000091},{"$f":"(Monthly!DX579-Monthly!DX578)","v":1.2999999999999545},{"$f":"(Monthly!DY579-Monthly!DY578)","v":1.9000000000000057},{"$f":"(Monthly!DZ579-Monthly!DZ578)","v":-0.60000000000002274},{"$f":"(Monthly!EA579-Monthly!EA578)","v":0.30000000000006821},{"$f":"(Monthly!EB579-Monthly!EB578)","v":-0.89999999999997726},{"$f":"(Monthly!EC579-Monthly!EC578)","v":9.6000000000000227},null,null,null,null,null,null,null,null,null,null,null,null,null,{"$f":"(Monthly!EQ579/Monthly!EQ578)-1","v":9.1296409007912693E-3},{"$f":"(Monthly!ER579/Monthly!ER578)-1","v":2.5236593059936308E-3},{"$f":"(Monthly!ES579/Monthly!ES578)-1","v":2.0463847203275876E-3},null,null,null,null,null,{"$f":"((Monthly!EY579-Monthly!EY578)*100)","v":17.999999999999972},{"$f":"((Monthly!EZ579-Monthly!EZ578)*100)","v":15.000000000000036},{"$f":"((Monthly!FA579-Monthly!FA578)*100)","v":11.000000000000032},{"$f":"((Monthly!FB579-Monthly!FB578)*100)","v":7.0000000000000284},"--",{"$f":"((Monthly!FD579-Monthly!FD578)*100)","v":8.9999999999999858},{"$f":"((Monthly!FE579-Monthly!FE578)*100)","v":12.000000000000011},{"$f":"((Monthly!FF579-Monthly!FF578)*100)","v":9.9999999999999645},{"$f":"((Monthly!FG579-Monthly!FG578)*100)","v":8.0000000000000071},{"$f":"((Monthly!FH579-Monthly!FH578)*100)","v":9.9999999999999645},{"$f":"((Monthly!FI579-Monthly!FI578)*100)","v":12.000000000000011},null,null,null,null,null,null,{"$f":"(Monthly!FP579/Monthly!FP578)-1","v":-2.9805086967922167E-2},{"$f":"(Monthly!FQ579/Monthly!FQ578)-1","v":-1.4973235341830815E-4},{"$f":"(Monthly!FR579/Monthly!FR578)-1","v":3.7922327109485288E-3},{"$f":"(Monthly!FS579/Monthly!FS578)-1","v":4.0250957386132047E-2},{"$f":"(Monthly!FT579/Monthly!FT578)-1","v":-2.0253508094481787E-2},{"$f":"(Monthly!FU579/Monthly!FU578)-1","v":-3.8807259538496619E-2},{"$f":"(Monthly!FV579/Monthly!FV578)-1","v":6.5314372221864314E-2},{"$f":"(Monthly!FW579/Monthly!FW578)-1","v":4.0006337637645606E-2},{"$f":"(Monthly!FX579/Monthly!FX578)-1","v":9.5069995467689683E-2},null,null,null,null,null,{"$f":"(Monthly!GD579/Monthly!GD578)-1","v":1.793657626632239E-2},{"$f":"(Monthly!GE579/Monthly!GE578)-1","v":-6.8317677198975746E-3},{"$f":"(Monthly!GF579/Monthly!GF578)-1","v":6.6212094024762136E-2},{"$f":"(Monthly!GG579/Monthly!GG578)-1","v":6.1950146627565816E-2},{"$f":"(Monthly!GH579/Monthly!GH578)-1","v":{"$error":"#DIV/0!"}},"--",{"$f":"(Monthly!GJ579/Monthly!GJ578)-1","v":-0.12279735682819393},{"$f":"(Monthly!GK579/Monthly!GK578)-1","v":-9.2322643343051292E-3},"--"]
["2006-08-01",null,null,null,{"$f":"(Monthly!E582/Monthly!E581)-1","v":-2.2671817812117689E-3},{"$f":"(Monthly!F582/Monthly!F581)-1","v":-1.6537937301226768E-2},{"$f":"(Monthly!G582/Monthly!G581)-1","v":-1.5465793304221265E-3},{"$f":"(Monthly!H582/Monthly!H581)-1","v":1.9893188878183921E-4},null,null,null,null,null,null,null,null,null,null,null,null,null,null,null,{"$f":"(Monthly!X582-Monthly!X581)","v":0.19999999999998863},{"$f":"(Monthly!Y582/Monthly!Y581)-1","v":1.9309122443944338E-2},null,null,null,null,null,null,null,null,null,null,null,null,null,{"$f":"(Monthly!AM582/Monthly!AM581)-1","v":3.4642880579516255E-3},{"$f":"(Monthly!AN582/Monthly!AN581)-1","v":7.1050833343775377E-3},{"$f":"(Monthly!AO582/Monthly!AO581)-1","v":7.8211659488938157E-3},{"$f":"((Monthly!AP582-Monthly!AP581)*100)","v":-1.0000000000000009},{"$f":"Monthly!AQ582-Monthly!AQ581","v":0.70000000000000284},{"$f":"Monthly!AR582-Monthly!AR581","v":1},{"$f":"Monthly!AS582-Monthly!AS581","v":1.5},{"$f":"Monthly!AT582-Monthly!AT581","v":1.8999999999999986},{"$f":"Monthly!AU582-Monthly!AU581","v":3.8000000000000043},{"$f":"Monthly!AV582-Monthly!AV581","v":-3.5},{"$f":"Monthly!AW582-Monthly!AW581","v":3},{"$f":"Monthly!AX582-Monthly!AX581","v":-0.5},{"$f":"Monthly!AY582-Monthly!AY581","v":-5.5},{"$f":"Monthly!AZ582-Monthly!AZ581","v":-1.6999999999999957},{"$f":"Monthly!BA582-Monthly!BA581","v":0.70000000000000284},{"$f":"Monthly!BB582-Monthly!BB581","v":0.40000000000000568},{"$f":"(Monthly!BC582/Monthly!BC581)-1","v":1.2404955685342278E-2},null,null,null,null,null,null,null,null,null,{"$f":"(Monthly!BM582/Monthly!BM581)-1","v":3.9739673115428698E-3},{"$f":"(Monthly!BN582/Monthly!BN581)-1","v":2.5530419124379922E-3},null,null,null,null,null,{"$f":"(Monthly!BT582/Monthly!BT581)-1","v":1.0680649372884821E-2},null,null,null,{"$f":"(Monthly!BX582/Monthly!BX581)-1","v":-5.0086355785837644E-2},{"$f":"(Monthly!BY582/Monthly!BY581)-1","v":-2.3255813953488413E-2},{"$f":"(Monthly!BZ582/Monthly!BZ581)-1","v":-4.0013663202068672E-3},{"$f":"(Monthly!CA582/Monthly!CA581)-1","v":-7.1416058394160653E-2},{"$f":"Monthly!CB582-Monthly!CB581","v":-0.17810098354547144},{"$f":"Monthly!CC582-Monthly!CC581","v":-0.17810098354547144},{"$f":"(Monthly!CD582/Monthly!CD581)-1","v":-1.0489510489510523E-2},{"$f":"(Monthly!CE582/Monthly!CE581)-1","v":7.2538860103626979E-2},null,{"$f":"(Monthly!CG582/Monthly!CG581)-1","v":-1.033591731266148E-2},{"$f":"(Monthly!CH582/Monthly!CH581)-1","v":-4.7393364928910442E-3},null,{"$f":"(Monthly!CJ582/Monthly!CJ581)-1","v":7.2538860103626979E-2},{"$f":"(Monthly!CK582/Monthly!CK581)-1","v":2.9116166488343254E-3},{"$f":"(Monthly!CL582/Monthly!CL581)-1","v":5.555555555555558E-2},{"$f":"(Monthly!CM582/Monthly!CM581)-1","v":-4.2134831460674205E-2},{"$f":"(Monthly!CN582/Monthly!CN581)-1","v":-1.7044808908750486E-4},{"$f":"(Monthly!CO582/Monthly!CO581)-1","v":-1.1574074074074403E-3},{"$f":"(Monthly!CP582/Monthly!CP581)-1","v":5.2568364528258194E-3},{"$f":"(Monthly!CQ582/Monthly!CQ581)-1","v":8.9298853496377895E-4},{"$f":"(Monthly!CR582/Monthly!CR581)-1","v":5.8393642384813038E-3},"--","--",null,null,null,null,null,{"$f":"(Monthly!CZ582/Monthly!CZ581)-1","v":4.4356826022671214E-3},{"$f":"(Monthly!DA582/Monthly!DA581)-1","v":2.4236548715463879E-3},null,null,null,null,null,"--",{"$f":"((Monthly!DH582-Monthly!DH581)*60)","v":-6.0000000000000853},{"$f":"((Monthly!DI582-Monthly!DI581)*100)","v":10.000000000000853},{"$f":"((Monthly!DJ582-Monthly!DJ581)*100)","v":-9.9999999999999645},{"$f":"((Monthly!DK582-Monthly!DK581)*100)","v":0},{"$f":"Monthly!DL582-Monthly!DL581","v":-29},null,null,null,{"$f":"Monthly!DP582-Monthly!DP581","v":183},null,null,null,{"$f":"(Monthly!DT582/Monthly!DT581)-1","v":-1.7857142857142905E-2},{"$f":"Monthly!DU582-Monthly!DU581","v":0.40000000000000036},{"$f":"(Monthly!DV582-Monthly!DV581)","v":-0.89999999999986358},{"$f":"(Monthly!DW582-Monthly!DW581)","v":5.4000000000000909},{"$f":"(Monthly!DX582-Monthly!DX581)","v":6.5},{"$f":"(Monthly!DY582-Monthly!DY581)","v":1.8000000000000114},{"$f":"(Monthly!DZ582-Monthly!DZ581)","v":4.7000000000000455},{"$f":"(Monthly!EA582-Monthly!EA581)","v":2.1000000000000227},{"$f":"(Monthly!EB582-Monthly!EB581)","v":2.6000000000000227},{"$f":"(Monthly!EC582-Monthly!EC581)","v":-1.1000000000000227},null,null,null,null,null,null,null,null,null,null,null,null,null,{"$f":"(Monthly!EQ582/Monthly!EQ581)-1","v":6.5947242206234602E-3},{"$f":"(Monthly!ER582/Monthly!ER581)-1","v":3.7950664136621182E-3},{"$f":"(Monthly!ES582/Monthly!ES581)-1","v":4.7814207650271889E-3},null,null,null,null,null,{"$f":"((Monthly!EY582-Monthly!EY581)*100)","v":0},{"$f":"((Monthly!EZ582-Monthly!EZ581)*100)","v":0.99999999999997868},{"$f":"((Monthly!FA582-Monthly!FA581)*100)","v":-16.999999999999993},{"$f":"((Monthly!FB582-Monthly!FB581)*100)","v":-16.999999999999993},"--",{"$f":"((Monthly!FD582-Monthly!FD581)*100)","v":-24.000000000000021},{"$f":"((Monthly!FE582-Monthly!FE581)*100)","v":0.99999999999997868},{"$f":"((Monthly!FF582-Monthly!FF581)*100)","v":-13.999999999999968},{"$f":"((Monthly!FG582-Monthly!FG581)*100)","v":-21.999999999999975},{"$f":"((Monthly!FH582-Monthly!FH581)*100)","v":-21.999999999999975},{"$f":"((Monthly!FI582-Monthly!FI581)*100)","v":-20.999999999999996},null,null,null,null,null,null,{"$f":"(Monthly!FP582/Monthly!FP581)-1","v":-9.9167699663537112E-3},{"$f":"(Monthly!FQ582/Monthly!FQ581)-1","v":-2.1903200370476661E-3},{"$f":"(Monthly!FR582/Monthly!FR581)-1","v":-9.9699535645998427E-3},{"$f":"(Monthly!FS582/Monthly!FS581)-1","v":1.0172699313934164E-2},{"$f":"(Monthly!FT582/Monthly!FT581)-1","v":-6.4269815297984811E-3},{"$f":"(Monthly!FU582/Monthly!FU581)-1","v":-8.9182439457227147E-3},{"$f":"(Monthly!FV582/Monthly!FV581)-1","v":0.14710423699981701},{"$f":"(Monthly!FW582/Monthly!FW581)-1","v":8.4495777849951326E-2},{"$f":"(Monthly!FX582/Monthly!FX581)-1","v":0.16645866339034576},null,null,null,null,null,{"$f":"(Monthly!GD582/Monthly!GD581)-1","v":-1.8277113291224278E-2},{"$f":"(Monthly!GE582/Monthly!GE581)-1","v":-5.9725804262250604E-3},{"$f":"(Monthly!GF582/Monthly!GF581)-1","v":-8.8913862629734775E-3},{"$f":"(Monthly!GG582/Monthly!GG581)-1","v":3.7832310838445737E-2},{"$f":"(Monthly!GH582/Monthly!GH581)-1","v":{"$error":"#DIV/0!"}},"--",{"$f":"(Monthly!GJ582/Monthly!GJ581)-1","v":0.12327225972356137},{"$f":"(Monthly!GK582/Monthly!GK581)-1","v":-2.1560077519379828E-2},"--"]
["2007-02-01",null,null,null,{"$f":"(Monthly!E588/Monthly!E587)-1","v":6.5105470862802939E-4},{"$f":"(Monthly!F588/Monthly!F587)-1","v":-2.2263781280612571E-3},{"$f":"(Monthly!G588/Monthly!G587)-1","v":-3.1197076388269629E-3},{"$f":"(Monthly!H588/Monthly!H587)-1","v":2.4645810968142445E-3},null,null,null,null,null,null,null,null,null,null,null,null,null,null,null,{"$f":"(Monthly!X588-Monthly!X587)","v":0.69999999999998863},{"$f":"(Monthly!Y588/Monthly!Y587)-1","v":1.0586045135710265E-2},null,null,null,null,null,null,null,null,null,null,null,null,null,{"$f":"(Monthly!AM588/Monthly!AM587)-1","v":1.0251876833387019E-2},{"$f":"(Monthly!AN588/Monthly!AN587)-1","v":4.3652837576726444E-3},{"$f":"(Monthly!AO588/Monthly!AO587)-1","v":4.3092739283971948E-3},{"$f":"((Monthly!AP588-Monthly!AP587)*100)","v":-1.0000000000000009},{"$f":"Monthly!AQ588-Monthly!AQ587","v":2.3999999999999986},{"$f":"Monthly!AR588-Monthly!AR587","v":8},{"$f":"Monthly!AS588-Monthly!AS587","v":1},{"$f":"Monthly!AT588-Monthly!AT587","v":0.60000000000000142},{"$f":"Monthly!AU588-Monthly!AU587","v":1.5},{"$f":"Monthly!AV588-Monthly!AV587","v":7},{"$f":"Monthly!AW588-Monthly!AW587","v":6.5},{"$f":"Monthly!AX588-Monthly!AX587","v":2.8999999999999986},{"$f":"Monthly!AY588-Monthly!AY587","v":6},{"$f":"Monthly!AZ588-Monthly!AZ587","v":2.5999999999999943},{"$f":"Monthly!BA588-Monthly!BA587","v":-0.30000000000000426},{"$f":"Monthly!BB588-Monthly!BB587","v":-2.2999999999999972},{"$f":"(Monthly!BC588/Monthly!BC587)-1","v":3.0263794206200068E-3},null,null,null,null,null,null,null,null,null,{"$f":"(Monthly!BM588/Monthly!BM587)-1","v":1.5680017605634866E-3},{"$f":"(Monthly!BN588/Monthly!BN587)-1","v":2.9071455865494755E-3},null,null,null,null,null,{"$f":"(Monthly!BT588/Monthly!BT587)-1","v":-3.6740182596167736E-3},null,null,null,{"$f":"(Monthly!BX588/Monthly!BX587)-1","v":5.0390347764371901E-2},{"$f":"(Monthly!BY588/Monthly!BY587)-1","v":-1.7220172201722006E-2},{"$f":"(Monthly!BZ588/Monthly!BZ587)-1","v":1.6688754724389909E-3},{"$f":"(Monthly!CA588/Monthly!CA587)-1","v":1.8474483263215769E-2},{"$f":"Monthly!CB588-Monthly!CB587","v":0.24449560422360506},{"$f":"Monthly!CC588-Monthly!CC587","v":0.17449560422360477},{"$f":"(Monthly!CD588/Monthly!CD587)-1","v":1.1152416356877248E-2},{"$f":"(Monthly!CE588/Monthly!CE587)-1","v":-7.0707070707070718E-2},null,{"$f":"(Monthly!CG588/Monthly!CG587)-1","v":7.3015873015872979E-2},{"$f":"(Monthly!CH588/Monthly!CH587)-1","v":8.7108013937282625E-3},null,{"$f":"(Monthly!CJ588/Monthly!CJ587)-1","v":-7.0707070707070718E-2},{"$f":"(Monthly!CK588/Monthly!CK587)-1","v":6.7794300509309569E-3},{"$f":"(Monthly!CL588/Monthly!CL587)-1","v":8.8367609254498714E-2},{"$f":"(Monthly!CM588/Monthly!CM587)-1","v":5.2212389380531077E-2},{"$f":"(Monthly!CN588/Monthly!CN587)-1","v":2.6115484344650941E-3},{"$f":"(Monthly!CO588/Monthly!CO587)-1","v":2.5632723544330993E-3},{"$f":"(Monthly!CP588/Monthly!CP587)-1","v":4.9245597624292259E-3},{"$f":"(Monthly!CQ588/Monthly!CQ587)-1","v":7.585486435952582E-4},{"$f":"(Monthly!CR588/Monthly!CR587)-1","v":6.1730464587423928E-3},"--","--",null,null,null,null,null,{"$f":"(Monthly!CZ588/Monthly!CZ587)-1","v":3.8783505458692691E-3},{"$f":"(Monthly!DA588/Monthly!DA587)-1","v":2.5647171620326592E-3},null,null,null,null,null,"--",{"$f":"((Monthly!DH588-Monthly!DH587)*60)","v":-5.9999999999996589},{"$f":"((Monthly!DI588-Monthly!DI587)*100)","v":-10.000000000000853},{"$f":"((Monthly!DJ588-Monthly!DJ587)*100)","v":-20.000000000000107},{"$f":"((Monthly!DK588-Monthly!DK587)*100)","v":-9.9999999999999645},{"$f":"Monthly!DL588-Monthly!DL587","v":-11},null,null,null,{"$f":"Monthly!DP588-Monthly!DP587","v":89},null,null,null,{"$f":"(Monthly!DT588/Monthly!DT587)-1","v":1.733648542159183E-2},{"$f":"Monthly!DU588-Monthly!DU587","v":0.19999999999999929},{"$f":"(Monthly!DV588-Monthly!DV587)","v":-0.8000000000001819},{"$f":"(Monthly!DW588-Monthly!DW587)","v":-11},{"$f":"(Monthly!DX588-Monthly!DX587)","v":-6.6000000000000227},{"$f":"(Monthly!DY588-Monthly!DY587)","v":-9.9999999999994316E-2},{"$f":"(Monthly!DZ588-Monthly!DZ587)","v":-6.5},{"$f":"(Monthly!EA588-Monthly!EA587)","v":-3.2000000000000455},{"$f":"(Monthly!EB588-Monthly!EB587)","v":-3.3000000000000114},{"$f":"(Monthly!EC588-Monthly!EC587)","v":-4.4000000000000341},null,null,null,null,null,null,null,null,null,null,null,null,null,{"$f":"(Monthly!EQ588/Monthly!EQ587)-1","v":1.7073170731707332E-2},{"$f":"(Monthly!ER588/Monthly!ER587)-1","v":4.3695380774033676E-3},{"$f":"(Monthly!ES588/Monthly!ES587)-1","v":2.6917900403768957E-3},null,null,null,null,null,{"$f":"((Monthly!EY588-Monthly!EY587)*100)","v":0},{"$f":"((Monthly!EZ588-Monthly!EZ587)*100)","v":0.99999999999997868},{"$f":"((Monthly!FA588-Monthly!FA587)*100)","v":-1.0000000000000675},{"$f":"((Monthly!FB588-Monthly!FB587)*100)","v":-5.9999999999999609},"--",{"$f":"((Monthly!FD588-Monthly!FD587)*100)","v":7.0000000000000284},{"$f":"((Monthly!FE588-Monthly!FE587)*100)","v":4.9999999999999822},{"$f":"((Monthly!FF588-Monthly!FF587)*100)","v":-0.99999999999997868},{"$f":"((Monthly!FG588-Monthly!FG587)*100)","v":-3.0000000000000249},{"$f":"((Monthly!FH588-Monthly!FH587)*100)","v":-4.0000000000000036},{"$f":"((Monthly!FI588-Monthly!FI587)*100)","v":-4.0000000000000036},null,null,null,null,null,null,{"$f":"(Monthly!FP588/Monthly!FP587)-1","v":-4.5056533197312953E-3},{"$f":"(Monthly!FQ588/Monthly!FQ587)-1","v":-4.8025065488725982E-3},{"$f":"(Monthly!FR588/Monthly!FR587)-1","v":3.5779808139906333E-3},{"$f":"(Monthly!FS588/Monthly!FS587)-1","v":6.6959131840222952E-3},{"$f":"(Monthly!FT588/Monthly!FT587)-1","v":-3.3221912530799758E-3},{"$f":"(Monthly!FU588/Monthly!FU587)-1","v":-3.4709205764567042E-3},{"$f":"(Monthly!FV588/Monthly!FV587)-1","v":-5.71774411900553E-2},{"$f":"(Monthly!FW588/Monthly!FW587)-1","v":-0.10146798436854043},{"$f":"(Monthly!FX588/Monthly!FX587)-1","v":-1.4999934952580452E-2},null,null,null,null,null,{"$f":"(Monthly!GD588/Monthly!GD587)-1","v":8.5944658237126603E-2},{"$f":"(Monthly!GE588/Monthly!GE587)-1","v":7.2280178837555997E-2},{"$f":"(Monthly!GF588/Monthly!GF587)-1","v":-1.5607704228470465E-2},{"$f":"(Monthly!GG588/Monthly!GG587)-1","v":1.2072434607646176E-3},{"$f":"(Monthly!GH588/Monthly!GH587)-1","v":{"$error":"#DIV/0!"}},"--",{"$f":"(Monthly!GJ588/Monthly!GJ587)-1","v":0.11380073800738},{"$f":"(Monthly!GK588/Monthly!GK587)-1","v":2.8088550345156005E-2},"--"]
["2007-03-01",null,null,null,{"$f":"(Monthly!E589/Monthly!E588)-1","v":7.6073791577835337E-4},{"$f":"(Monthly!F589/Monthly!F588)-1","v":2.142092109960636E-3},{"$f":"(Monthly!G589/Monthly!G588)-1","v":3.2635908440628025E-3},{"$f":"(Monthly!H589/Monthly!H588)-1","v":-3.3182503770734506E-4},null,null,null,null,null,null,null,null,null,null,null,null,null,null,null,{"$f":"(Monthly!X589-Monthly!X588)","v":-9.9999999999994316E-2},{"$f":"(Monthly!Y589/Monthly!Y588)-1","v":8.8849224813662975E-3},null,null,null,null,null,null,null,null,null,null,null,null,null,{"$f":"(Monthly!AM589/Monthly!AM588)-1","v":1.8108068257491894E-3},{"$f":"(Monthly!AN589/Monthly!AN588)-1","v":8.9768980638043061E-3},{"$f":"(Monthly!AO589/Monthly!AO588)-1","v":1.7154677539283902E-3},{"$f":"((Monthly!AP589-Monthly!AP588)*100)","v":-2.0000000000000018},{"$f":"Monthly!AQ589-Monthly!AQ588","v":-1.1999999999999957},{"$f":"Monthly!AR589-Monthly!AR588","v":-4.5},{"$f":"Monthly!AS589-Monthly!AS588","v":-5},{"$f":"Monthly!AT589-Monthly!AT588","v":-1},{"$f":"Monthly!AU589-Monthly!AU588","v":1.5},{"$f":"Monthly!AV589-Monthly!AV588","v":-4},{"$f":"Monthly!AW589-Monthly!AW588","v":2},{"$f":"Monthly!AX589-Monthly!AX588","v":-4.8999999999999986},{"$f":"Monthly!AY589-Monthly!AY588","v":6.5},{"$f":"Monthly!AZ589-Monthly!AZ588","v":-0.69999999999999574},{"$f":"Monthly!BA589-Monthly!BA588","v":-1.5999999999999943},{"$f":"Monthly!BB589-Monthly!BB588","v":-3.2000000000000028},{"$f":"(Monthly!BC589/Monthly!BC588)-1","v":4.0157394590727424E-2},null,null,null,null,null,null,null,null,null,{"$f":"(Monthly!BM589/Monthly!BM588)-1","v":9.1296108105138885E-3},{"$f":"(Monthly!BN589/Monthly!BN588)-1","v":8.302954193540435E-3},null,null,null,null,null,{"$f":"(Monthly!BT589/Monthly!BT588)-1","v":-8.3943510993229609E-3},null,null,null,{"$f":"(Monthly!BX589/Monthly!BX588)-1","v":1.0135135135135087E-2},{"$f":"(Monthly!BY589/Monthly!BY588)-1","v":-1.2515644555695093E-3},{"$f":"(Monthly!BZ589/Monthly!BZ588)-1","v":3.430195521143542E-4},{"$f":"(Monthly!CA589/Monthly!CA588)-1","v":-4.1247605363984641E-2},{"$f":"Monthly!CB589-Monthly!CB588","v":0.27793651359689964},{"$f":"Monthly!CC589-Monthly!CC588","v":0.20793651359690024},{"$f":"(Monthly!CD589/Monthly!CD588)-1","v":1.8382352941177516E-3},{"$f":"(Monthly!CE589/Monthly!CE588)-1","v":6.0386473429951959E-3},null,{"$f":"(Monthly!CG589/Monthly!CG588)-1","v":0},{"$f":"(Monthly!CH589/Monthly!CH588)-1","v":-5.6994818652849721E-2},null,{"$f":"(Monthly!CJ589/Monthly!CJ588)-1","v":6.0386473429951959E-3},{"$f":"(Monthly!CK589/Monthly!CK588)-1","v":6.8606716859826999E-3},{"$f":"(Monthly!CL589/Monthly!CL588)-1","v":9.6250369058163532E-2},{"$f":"(Monthly!CM589/Monthly!CM588)-1","v":1.0933557611438216E-2},{"$f":"(Monthly!CN589/Monthly!CN588)-1","v":3.0218761586948695E-3},{"$f":"(Monthly!CO589/Monthly!CO588)-1","v":3.7677961084048306E-3},{"$f":"(Monthly!CP589/Monthly!CP588)-1","v":5.823080740190667E-3},{"$f":"(Monthly!CQ589/Monthly!CQ588)-1","v":7.2805366985595477E-4},{"$f":"(Monthly!CR589/Monthly!CR588)-1","v":5.4725111259821269E-3},"--","--",null,null,null,null,null,{"$f":"(Monthly!CZ589/Monthly!CZ588)-1","v":5.2001214340975377E-3},{"$f":"(Monthly!DA589/Monthly!DA588)-1","v":1.3531929136683107E-3},null,null,null,null,null,"--",{"$f":"((Monthly!DH589-Monthly!DH588)*60)","v":11.999999999999744},{"$f":"((Monthly!DI589-Monthly!DI588)*100)","v":-9.9999999999994316},{"$f":"((Monthly!DJ589-Monthly!DJ588)*100)","v":-19.999999999999929},{"$f":"((Monthly!DK589-Monthly!DK588)*100)","v":-9.9999999999999645},{"$f":"Monthly!DL589-Monthly!DL588","v":-27},null,null,null,{"$f":"Monthly!DP589-Monthly!DP588","v":190},null,null,null,{"$f":"(Monthly!DT589/Monthly!DT588)-1","v":-4.1363284275755197E-2},{"$f":"Monthly!DU589-Monthly!DU588","v":0.59999999999999964},{"$f":"(Monthly!DV589-Monthly!DV588)","v":-0.89999999999986358},{"$f":"(Monthly!DW589-Monthly!DW588)","v":8.5999999999999091},{"$f":"(Monthly!DX589-Monthly!DX588)","v":4.7999999999999545},{"$f":"(Monthly!DY589-Monthly!DY588)","v":0.5},{"$f":"(Monthly!DZ589-Monthly!DZ588)","v":4.2999999999999545},{"$f":"(Monthly!EA589-Monthly!EA588)","v":4.2000000000000455},{"$f":"(Monthly!EB589-Monthly!EB588)","v":9.9999999999994316E-2},{"$f":"(Monthly!EC589-Monthly!EC588)","v":3.8000000000000114},null,null,null,null,null,null,null,null,null,null,null,null,null,{"$f":"(Monthly!EQ589/Monthly!EQ588)-1","v":1.4988009592326046E-2},{"$f":"(Monthly!ER589/Monthly!ER588)-1","v":0},{"$f":"(Monthly!ES589/Monthly!ES588)-1","v":6.7114093959719234E-4},null,null,null,null,null,{"$f":"((Monthly!EY589-Monthly!EY588)*100)","v":0},{"$f":"((Monthly!EZ589-Monthly!EZ588)*100)","v":0},{"$f":"((Monthly!FA589-Monthly!FA588)*100)","v":-8.9999999999999858},{"$f":"((Monthly!FB589-Monthly!FB588)*100)","v":-1.0000000000000675},"--",{"$f":"((Monthly!FD589-Monthly!FD588)*100)","v":-12.999999999999989},{"$f":"((Monthly!FE589-Monthly!FE588)*100)","v":-8.9999999999999858},{"$f":"((Monthly!FF589-Monthly!FF588)*100)","v":-12.999999999999989},{"$f":"((Monthly!FG589-Monthly!FG588)*100)","v":-27.999999999999936},{"$f":"((Monthly!FH589-Monthly!FH588)*100)","v":-22.999999999999954},{"$f":"((Monthly!FI589-Monthly!FI588)*100)","v":-16.000000000000014},null,null,null,null,null,null,{"$f":"(Monthly!FP589/Monthly!FP588)-1","v":-2.3911187019642899E-3},{"$f":"(Monthly!FQ589/Monthly!FQ588)-1","v":-1.7160847462001083E-3},{"$f":"(Monthly!FR589/Monthly!FR588)-1","v":1.0850287855499241E-2},{"$f":"(Monthly!FS589/Monthly!FS588)-1","v":1.2691131498471009E-2},{"$f":"(Monthly!FT589/Monthly!FT588)-1","v":-4.9034499339311033E-3},{"$f":"(Monthly!FU589/Monthly!FU588)-1","v":-1.0072849810570994E-2},{"$f":"(Monthly!FV589/Monthly!FV588)-1","v":0.15029477845161066},{"$f":"(Monthly!FW589/Monthly!FW588)-1","v":-1.3711592133305084E-2},{"$f":"(Monthly!FX589/Monthly!FX588)-1","v":0.20127057083234279},null,null,null,null,null,{"$f":"(Monthly!GD589/Monthly!GD588)-1","v":2.1937225784677716E-2},{"$f":"(Monthly!GE589/Monthly!GE588)-1","v":7.8005559416261194E-2},{"$f":"(Monthly!GF589/Monthly!GF588)-1","v":0.13653435286180171},{"$f":"(Monthly!GG589/Monthly!GG588)-1","v":7.1945337620578753E-2},{"$f":"(Monthly!GH589/Monthly!GH588)-1","v":{"$error":"#DIV/0!"}},"--",{"$f":"(Monthly!GJ589/Monthly!GJ588)-1","v":-4.3069175722237008E-2},{"$f":"(Monthly!GK589/Monthly!GK588)-1","v":7.0849733734660747E-2},"--"]
["2007-07-01",null,null,null,{"$f":"(Monthly!E593/Monthly!E592)-1","v":2.2344808323440102E-3},{"$f":"(Monthly!F593/Monthly!F592)-1","v":4.4010210368794489E-4},{"$f":"(Monthly!G593/Monthly!G592)-1","v":5.6353146384005015E-3},{"$f":"(Monthly!H593/Monthly!H592)-1","v":1.4138314833196386E-3},null,null,null,null,null,null,null,null,null,null,null,null,null,null,null,{"$f":"(Monthly!X593-Monthly!X592)","v":-0.10000000000000853},{"$f":"(Monthly!Y593/Monthly!Y592)-1","v":1.388079508341078E-2},null,null,null,null,null,null,null,null,null,null,null,null,null,{"$f":"(Monthly!AM593/Monthly!AM592)-1","v":-4.486526578851846E-4},{"$f":"(Monthly!AN593/Monthly!AN592)-1","v":1.0230482389483875E-3},{"$f":"(Monthly!AO593/Monthly!AO592)-1","v":1.2355406804882563E-3},{"$f":"((Monthly!AP593-Monthly!AP592)*100)","v":1.0000000000000009},{"$f":"Monthly!AQ593-Monthly!AQ592","v":-0.20000000000000284},{"$f":"Monthly!AR593-Monthly!AR592","v":-1.5},{"$f":"Monthly!AS593-Monthly!AS592","v":4},{"$f":"Monthly!AT593-Monthly!AT592","v":-2.1000000000000014},{"$f":"Monthly!AU593-Monthly!AU592","v":0.5},{"$f":"Monthly!AV593-Monthly!AV592","v":0},{"$f":"Monthly!AW593-Monthly!AW592","v":1.5},{"$f":"Monthly!AX593-Monthly!AX592","v":0.89999999999999858},{"$f":"Monthly!AY593-Monthly!AY592","v":-3},{"$f":"Monthly!AZ593-Monthly!AZ592","v":-2.5},{"$f":"Monthly!BA593-Monthly!BA592","v":1.1000000000000014},{"$f":"Monthly!BB593-Monthly!BB592","v":-3},{"$f":"(Monthly!BC593/Monthly!BC592)-1","v":2.2470180838785048E-3},null,null,null,null,null,null,null,null,null,{"$f":"(Monthly!BM593/Monthly!BM592)-1","v":3.8578569876113189E-3},{"$f":"(Monthly!BN593/Monthly!BN592)-1","v":3.7039051123557432E-3},null,null,null,null,null,{"$f":"(Monthly!BT593/Monthly!BT592)-1","v":1.3874941695064313E-2},null,null,null,{"$f":"(Monthly!BX593/Monthly!BX592)-1","v":-6.4917127071823177E-2},{"$f":"(Monthly!BY593/Monthly!BY592)-1","v":-3.2693674484719271E-2},{"$f":"(Monthly!BZ593/Monthly!BZ592)-1","v":-1.0108630054314949E-2},{"$f":"(Monthly!CA593/Monthly!CA592)-1","v":-2.0539720659799143E-2},{"$f":"Monthly!CB593-Monthly!CB592","v":-0.27487452747841878},{"$f":"Monthly!CC593-Monthly!CC592","v":-0.20487452747841672},{"$f":"(Monthly!CD593/Monthly!CD592)-1","v":-9.2250922509224953E-3},{"$f":"(Monthly!CE593/Monthly!CE592)-1","v":-1.8915510718789386E-2},null,{"$f":"(Monthly!CG593/Monthly!CG592)-1","v":4.3927648578811374E-2},{"$f":"(Monthly!CH593/Monthly!CH592)-1","v":-9.765625E-3},null,{"$f":"(Monthly!CJ593/Monthly!CJ592)-1","v":-1.8915510718789386E-2},{"$f":"(Monthly!CK593/Monthly!CK592)-1","v":3.5256865480854938E-3},{"$f":"(Monthly!CL593/Monthly!CL592)-1","v":3.3568311513931803E-4},{"$f":"(Monthly!CM593/Monthly!CM592)-1","v":-7.8691423519009707E-2},{"$f":"(Monthly!CN593/Monthly!CN592)-1","v":2.2591128352791312E-3},{"$f":"(Monthly!CO593/Monthly!CO592)-1","v":3.2105263157893305E-3},{"$f":"(Monthly!CP593/Monthly!CP592)-1","v":5.7745142055503074E-3},{"$f":"(Monthly!CQ593/Monthly!CQ592)-1","v":8.7824245457168715E-4},{"$f":"(Monthly!CR593/Monthly!CR592)-1","v":4.6095862243271668E-3},"--","--",null,null,null,null,null,{"$f":"(Monthly!CZ593/Monthly!CZ592)-1","v":1.7805958481715844E-3},{"$f":"(Monthly!DA593/Monthly!DA592)-1","v":1.8109053576180756E-3},null,null,null,null,null,"--",{"$f":"((Monthly!DH593-Monthly!DH592)*60)","v":-6.0000000000000853},{"$f":"((Monthly!DI593-Monthly!DI592)*100)","v":0},{"$f":"((Monthly!DJ593-Monthly!DJ592)*100)","v":9.9999999999999645},{"$f":"((Monthly!DK593-Monthly!DK592)*100)","v":10.000000000000053},{"$f":"Monthly!DL593-Monthly!DL592","v":-22},null,null,null,{"$f":"Monthly!DP593-Monthly!DP592","v":-34},null,null,null,{"$f":"(Monthly!DT593/Monthly!DT592)-1","v":-7.4425969912905732E-3},{"$f":"Monthly!DU593-Monthly!DU592","v":0.99999999999999911},{"$f":"(Monthly!DV593-Monthly!DV592)","v":-8.2000000000000455},{"$f":"(Monthly!DW593-Monthly!DW592)","v":-10.200000000000045},{"$f":"(Monthly!DX593-Monthly!DX592)","v":-7.1999999999999318},{"$f":"(Monthly!DY593-Monthly!DY592)","v":-1.5},{"$f":"(Monthly!DZ593-Monthly!DZ592)","v":-5.6999999999999318},{"$f":"(Monthly!EA593-Monthly!EA592)","v":-5.3999999999999773},{"$f":"(Monthly!EB593-Monthly!EB592)","v":-0.30000000000001137},{"$f":"(Monthly!EC593-Monthly!EC592)","v":-3},null,null,null,null,null,null,null,null,null,null,null,null,null,{"$f":"(Monthly!EQ593/Monthly!EQ592)-1","v":7.4798619102416364E-3},{"$f":"(Monthly!ER593/Monthly!ER592)-1","v":2.4737167594310883E-3},{"$f":"(Monthly!ES593/Monthly!ES592)-1","v":2.0066889632108786E-3},null,null,null,null,null,{"$f":"((Monthly!EY593-Monthly!EY592)*100)","v":0},{"$f":"((Monthly!EZ593-Monthly!EZ592)*100)","v":0.99999999999997868},{"$f":"((Monthly!FA593-Monthly!FA592)*100)","v":-5.9999999999999609},{"$f":"((Monthly!FB593-Monthly!FB592)*100)","v":-4.9999999999999822},"--",{"$f":"((Monthly!FD593-Monthly!FD592)*100)","v":4.0000000000000036},{"$f":"((Monthly!FE593-Monthly!FE592)*100)","v":20.999999999999996},{"$f":"((Monthly!FF593-Monthly!FF592)*100)","v":0},{"$f":"((Monthly!FG593-Monthly!FG592)*100)","v":-16.000000000000014},{"$f":"((Monthly!FH593-Monthly!FH592)*100)","v":-15.000000000000036},{"$f":"((Monthly!FI593-Monthly!FI592)*100)","v":-9.9999999999999645},null,null,null,null,null,null,{"$f":"(Monthly!FP593/Monthly!FP592)-1","v":-1.3989296779645E-2},{"$f":"(Monthly!FQ593/Monthly!FQ592)-1","v":-7.5458844798448332E-3},{"$f":"(Monthly!FR593/Monthly!FR592)-1","v":-1.6985138004246281E-3},{"$f":"(Monthly!FS593/Monthly!FS592)-1","v":2.272557931599728E-2},{"$f":"(Monthly!FT593/Monthly!FT592)-1","v":-1.2579147076676289E-2},{"$f":"(Monthly!FU593/Monthly!FU592)-1","v":-1.7843952685952402E-2},{"$f":"(Monthly!FV593/Monthly!FV592)-1","v":-0.11595192079720096},{"$f":"(Monthly!FW593/Monthly!FW592)-1","v":5.6525433120313329E-2},{"$f":"(Monthly!FX593/Monthly!FX592)-1","v":-6.0103240735590258E-2},null,null,null,null,null,{"$f":"(Monthly!GD593/Monthly!GD592)-1","v":9.9288678126852492E-2},{"$f":"(Monthly!GE593/Monthly!GE592)-1","v":8.2758620689655338E-2},{"$f":"(Monthly!GF593/Monthly!GF592)-1","v":-3.9525691699604737E-2},{"$f":"(Monthly!GG593/Monthly!GG592)-1","v":2.1367521367521292E-2},{"$f":"(Monthly!GH593/Monthly!GH592)-1","v":{"$error":"#DIV/0!"}},"--",{"$f":"(Monthly!GJ593/Monthly!GJ592)-1","v":-0.14714114354258301},{"$f":"(Monthly!GK593/Monthly!GK592)-1","v":-9.363745498199294E-3},"--"]
["2008-02-01",null,null,null,{"$f":"(Monthly!E600/Monthly!E599)-1","v":-2.9182010382444723E-3},{"$f":"(Monthly!F600/Monthly!F599)-1","v":-1.559608776103627E-2},{"$f":"(Monthly!G600/Monthly!G599)-1","v":-1.1154414729203088E-2},{"$f":"(Monthly!H600/Monthly!H599)-1","v":2.1924264343988753E-3},null,null,null,null,null,null,null,null,null,null,null,null,null,null,null,{"$f":"(Monthly!X600-Monthly!X599)","v":-0.20000000000000284},{"$f":"(Monthly!Y600/Monthly!Y599)-1","v":5.6752007466092103E-3},null,null,null,null,null,null,null,null,null,null,null,null,null,{"$f":"(Monthly!AM600/Monthly!AM599)-1","v":-3.2889130113931131E-3},{"$f":"(Monthly!AN600/Monthly!AN599)-1","v":-6.4036591280139943E-3},{"$f":"(Monthly!AO600/Monthly!AO599)-1","v":4.1830802100133457E-3},{"$f":"((Monthly!AP600-Monthly!AP599)*100)","v":2.0000000000000018},{"$f":"Monthly!AQ600-Monthly!AQ599","v":-2.6999999999999957},{"$f":"Monthly!AR600-Monthly!AR599","v":1},{"$f":"Monthly!AS600-Monthly!AS599","v":-0.5},{"$f":"Monthly!AT600-Monthly!AT599","v":-1.3000000000000043},{"$f":"Monthly!AU600-Monthly!AU599","v":-2.5},{"$f":"Monthly!AV600-Monthly!AV599","v":-5},{"$f":"Monthly!AW600-Monthly!AW599","v":-2},{"$f":"Monthly!AX600-Monthly!AX599","v":-1.6000000000000014},{"$f":"Monthly!AY600-Monthly!AY599","v":-0.5},{"$f":"Monthly!AZ600-Monthly!AZ599","v":-6.3000000000000043},{"$f":"Monthly!BA600-Monthly!BA599","v":-2.1999999999999957},{"$f":"Monthly!BB600-Monthly!BB599","v":10.300000000000004},{"$f":"(Monthly!BC600/Monthly!BC599)-1","v":-2.3205919698760846E-2},null,null,null,null,null,null,null,null,null,{"$f":"(Monthly!BM600/Monthly!BM599)-1","v":-9.448944787891711E-3},{"$f":"(Monthly!BN600/Monthly!BN599)-1","v":-8.9264288063234387E-3},null,null,null,null,null,{"$f":"(Monthly!BT600/Monthly!BT599)-1","v":-4.3516817421117571E-3},null,null,null,{"$f":"(Monthly!BX600/Monthly!BX599)-1","v":1.7527675276752808E-2},{"$f":"(Monthly!BY600/Monthly!BY599)-1","v":-7.312614259597805E-2},{"$f":"(Monthly!BZ600/Monthly!BZ599)-1","v":-1.9657368767845407E-2},{"$f":"(Monthly!CA600/Monthly!CA599)-1","v":-1.4106481180523822E-2},{"$f":"Monthly!CB600-Monthly!CB599","v":-0.25173638455401282},{"$f":"Monthly!CC600-Monthly!CC599","v":-0.3217363845540131},{"$f":"(Monthly!CD600/Monthly!CD599)-1","v":-2.0533880903490731E-2},{"$f":"(Monthly!CE600/Monthly!CE599)-1","v":-5.4226475279106845E-2},null,{"$f":"(Monthly!CG600/Monthly!CG599)-1","v":-3.1518624641833859E-2},{"$f":"(Monthly!CH600/Monthly!CH599)-1","v":-1.1990407673860948E-2},null,{"$f":"(Monthly!CJ600/Monthly!CJ599)-1","v":-5.4226475279106845E-2},{"$f":"(Monthly!CK600/Monthly!CK599)-1","v":3.963097713097552E-3},{"$f":"(Monthly!CL600/Monthly!CL599)-1","v":0.153588383133203},{"$f":"(Monthly!CM600/Monthly!CM599)-1","v":-6.3389391979301379E-2},{"$f":"(Monthly!CN600/Monthly!CN599)-1","v":1.760466523628601E-3},{"$f":"(Monthly!CO600/Monthly!CO599)-1","v":1.0835553026972589E-2},{"$f":"(Monthly!CP600/Monthly!CP599)-1","v":5.4939858286893184E-3},{"$f":"(Monthly!CQ600/Monthly!CQ599)-1","v":6.7543969476724364E-4},{"$f":"(Monthly!CR600/Monthly!CR599)-1","v":6.7266086090673749E-3},"--","--",null,null,null,null,null,{"$f":"(Monthly!CZ600/Monthly!CZ599)-1","v":2.4178268779397882E-3},{"$f":"(Monthly!DA600/Monthly!DA599)-1","v":7.858877022608457E-4},null,null,null,null,null,"--",{"$f":"((Monthly!DH600-Monthly!DH599)*60)","v":0},{"$f":"((Monthly!DI600-Monthly!DI599)*100)","v":-20.000000000000284},{"$f":"((Monthly!DJ600-Monthly!DJ599)*100)","v":-19.999999999999929},{"$f":"((Monthly!DK600-Monthly!DK599)*100)","v":-9.9999999999999645},{"$f":"Monthly!DL600-Monthly!DL599","v":-29},null,null,null,{"$f":"Monthly!DP600-Monthly!DP599","v":-84},null,null,null,{"$f":"(Monthly!DT600/Monthly!DT599)-1","v":2.3616236162361526E-2},{"$f":"Monthly!DU600-Monthly!DU599","v":-0.30000000000000071},{"$f":"(Monthly!DV600-Monthly!DV599)","v":-4.3999999999998636},{"$f":"(Monthly!DW600-Monthly!DW599)","v":-14.700000000000045},{"$f":"(Monthly!DX600-Monthly!DX599)","v":-7.2999999999999545},{"$f":"(Monthly!DY600-Monthly!DY599)","v":-2.2999999999999829},{"$f":"(Monthly!DZ600-Monthly!DZ599)","v":-5},{"$f":"(Monthly!EA600-Monthly!EA599)","v":-3.5},{"$f":"(Monthly!EB600-Monthly!EB599)","v":-1.5},{"$f":"(Monthly!EC600-Monthly!EC599)","v":-7.3999999999999773},null,null,null,null,null,null,null,null,null,null,null,null,null,{"$f":"(Monthly!EQ600/Monthly!EQ599)-1","v":9.3922651933699974E-3},{"$f":"(Monthly!ER600/Monthly!ER599)-1","v":4.2656916514320908E-3},{"$f":"(Monthly!ES600/Monthly!ES599)-1","v":3.3068783068783691E-3},null,null,null,null,null,{"$f":"((Monthly!EY600-Monthly!EY599)*100)","v":-98.000000000000043},{"$f":"((Monthly!EZ600-Monthly!EZ599)*100)","v":-96},{"$f":"((Monthly!FA600-Monthly!FA599)*100)","v":20.000000000000018},{"$f":"((Monthly!FB600-Monthly!FB599)*100)","v":28.000000000000025},"--",{"$f":"((Monthly!FD600-Monthly!FD599)*100)","v":16.000000000000014},{"$f":"((Monthly!FE600-Monthly!FE599)*100)","v":-62.999999999999986},{"$f":"((Monthly!FF600-Monthly!FF599)*100)","v":-66.000000000000014},{"$f":"((Monthly!FG600-Monthly!FG599)*100)","v":-51},{"$f":"((Monthly!FH600-Monthly!FH599)*100)","v":-20.000000000000018},{"$f":"((Monthly!FI600-Monthly!FI599)*100)","v":0},null,null,null,null,null,null,{"$f":"(Monthly!FP600/Monthly!FP599)-1","v":-1.1189226656104556E-2},{"$f":"(Monthly!FQ600/Monthly!FQ599)-1","v":-1.0510323872660821E-2},{"$f":"(Monthly!FR600/Monthly!FR599)-1","v":-1.2635594230540059E-2},{"$f":"(Monthly!FS600/Monthly!FS599)-1","v":2.1048343291687477E-3},{"$f":"(Monthly!FT600/Monthly!FT599)-1","v":-8.5553141643496255E-3},{"$f":"(Monthly!FU600/Monthly!FU599)-1","v":-6.7889070788842432E-3},{"$f":"(Monthly!FV600/Monthly!FV599)-1","v":5.1134722998928961E-3},{"$f":"(Monthly!FW600/Monthly!FW599)-1","v":-8.0063375711067808E-2},{"$f":"(Monthly!FX600/Monthly!FX599)-1","v":3.6354041455334274E-2},null,null,null,null,null,{"$f":"(Monthly!GD600/Monthly!GD599)-1","v":2.5820333512641014E-2},{"$f":"(Monthly!GE600/Monthly!GE599)-1","v":3.0483835973095896E-2},{"$f":"(Monthly!GF600/Monthly!GF599)-1","v":-5.2512522216834334E-3},{"$f":"(Monthly!GG600/Monthly!GG599)-1","v":2.0858524788391675E-2},{"$f":"(Monthly!GH600/Monthly!GH599)-1","v":{"$error":"#DIV/0!"}},"--",{"$f":"(Monthly!GJ600/Monthly!GJ599)-1","v":8.1466649981228878E-2},{"$f":"(Monthly!GK600/Monthly!GK599)-1","v":-5.4054054054054057E-2},"--"]
["2008-05-01",null,null,null,{"$f":"(Monthly!E603/Monthly!E602)-1","v":4.5637184384150764E-4},{"$f":"(Monthly!F603/Monthly!F602)-1","v":6.5336078045288293E-3},{"$f":"(Monthly!G603/Monthly!G602)-1","v":-4.4581160001722075E-5},{"$f":"(Monthly!H603/Monthly!H602)-1","v":-4.1682793938124796E-4},null,null,null,null,null,null,null,null,null,null,null,null,null,null,null,{"$f":"(Monthly!X603-Monthly!X602)","v":-0.40000000000000568},{"$f":"(Monthly!Y603/Monthly!Y602)-1","v":8.1698776149252694E-4},null,null,null,null,null,null,null,null,null,null,null,null,null,{"$f":"(Monthly!AM603/Monthly!AM602)-1","v":-5.0414751790567314E-3},{"$f":"(Monthly!AN603/Monthly!AN602)-1","v":-4.3949466139084903E-3},{"$f":"(Monthly!AO603/Monthly!AO602)-1","v":1.3105433043780756E-3},{"$f":"((Monthly!AP603-Monthly!AP602)*100)","v":-1.0000000000000009},{"$f":"Monthly!AQ603-Monthly!AQ602","v":0},{"$f":"Monthly!AR603-Monthly!AR602","v":-5.5},{"$f":"Monthly!AS603-Monthly!AS602","v":2},{"$f":"Monthly!AT603-Monthly!AT602","v":-0.5},{"$f":"Monthly!AU603-Monthly!AU602","v":2},{"$f":"Monthly!AV603-Monthly!AV602","v":1.5},{"$f":"Monthly!AW603-Monthly!AW602","v":-1},{"$f":"Monthly!AX603-Monthly!AX602","v":2},{"$f":"Monthly!AY603-Monthly!AY602","v":2.5},{"$f":"Monthly!AZ603-Monthly!AZ602","v":1.1000000000000014},{"$f":"Monthly!BA603-Monthly!BA602","v":-1.5999999999999943},{"$f":"Monthly!BB603-Monthly!BB602","v":2.1999999999999957},{"$f":"(Monthly!BC603/Monthly!BC602)-1","v":-1.1314085384403705E-2},null,null,null,null,null,null,null,null,null,{"$f":"(Monthly!BM603/Monthly!BM602)-1","v":7.411159893429442E-3},{"$f":"(Monthly!BN603/Monthly!BN602)-1","v":7.1714620538709806E-3},null,null,null,null,null,{"$f":"(Monthly!BT603/Monthly!BT602)-1","v":6.1430458509412755E-3},null,null,null,{"$f":"(Monthly!BX603/Monthly!BX602)-1","v":-3.9486673247778881E-2},{"$f":"(Monthly!BY603/Monthly!BY602)-1","v":-1.2896825396825351E-2},{"$f":"(Monthly!BZ603/Monthly!BZ602)-1","v":-1.6762368772112901E-2},{"$f":"(Monthly!CA603/Monthly!CA602)-1","v":6.728343145500526E-3},{"$f":"Monthly!CB603-Monthly!CB602","v":0.58465284713517995},{"$f":"Monthly!CC603-Monthly!CC602","v":0.86465284713517931},{"$f":"(Monthly!CD603/Monthly!CD602)-1","v":-1.5283842794759805E-2},{"$f":"(Monthly!CE603/Monthly!CE602)-1","v":-5.9701492537313383E-2},null,{"$f":"(Monthly!CG603/Monthly!CG602)-1","v":-2.0997375328083989E-2},{"$f":"(Monthly!CH603/Monthly!CH602)-1","v":7.2992700729928028E-3},null,{"$f":"(Monthly!CJ603/Monthly!CJ602)-1","v":-5.9701492537313383E-2},{"$f":"(Monthly!CK603/Monthly!CK602)-1","v":4.6121880310217245E-2},{"$f":"(Monthly!CL603/Monthly!CL602)-1","v":1.3892564170415453},{"$f":"(Monthly!CM603/Monthly!CM602)-1","v":-4.3988269794721369E-3},{"$f":"(Monthly!CN603/Monthly!CN602)-1","v":4.8107161521605768E-2},{"$f":"(Monthly!CO603/Monthly!CO602)-1","v":6.0269706938549383E-3},{"$f":"(Monthly!CP603/Monthly!CP602)-1","v":1.2739083298172194E-3},{"$f":"(Monthly!CQ603/Monthly!CQ602)-1","v":6.7737088028629877E-4},{"$f":"(Monthly!CR603/Monthly!CR602)-1","v":-6.5641393815651927E-4},"--","--",null,null,null,null,null,{"$f":"(Monthly!CZ603/Monthly!CZ602)-1","v":5.9174916566171465E-3},{"$f":"(Monthly!DA603/Monthly!DA602)-1","v":1.7524235645041131E-3},null,null,null,null,null,"--",{"$f":"((Monthly!DH603-Monthly!DH602)*60)","v":-5.9999999999996589},{"$f":"((Monthly!DI603-Monthly!DI602)*100)","v":19.999999999998863},{"$f":"((Monthly!DJ603-Monthly!DJ602)*100)","v":50},{"$f":"((Monthly!DK603-Monthly!DK602)*100)","v":40.000000000000036},{"$f":"Monthly!DL603-Monthly!DL602","v":-35},null,null,null,{"$f":"Monthly!DP603-Monthly!DP602","v":-186},null,null,null,{"$f":"(Monthly!DT603/Monthly!DT602)-1","v":2.0305980528511736E-2},{"$f":"Monthly!DU603-Monthly!DU602","v":-1.5},{"$f":"(Monthly!DV603-Monthly!DV602)","v":-6.3999999999998636},{"$f":"(Monthly!DW603-Monthly!DW602)","v":10.700000000000045},{"$f":"(Monthly!DX603-Monthly!DX602)","v":-0.29999999999995453},{"$f":"(Monthly!DY603-Monthly!DY602)","v":1.3000000000000114},{"$f":"(Monthly!DZ603-Monthly!DZ602)","v":-1.6000000000000227},{"$f":"(Monthly!EA603-Monthly!EA602)","v":0.30000000000006821},{"$f":"(Monthly!EB603-Monthly!EB602)","v":-1.9000000000000057},{"$f":"(Monthly!EC603-Monthly!EC602)","v":11},null,null,null,null,null,null,null,null,null,null,null,null,null,{"$f":"(Monthly!EQ603/Monthly!EQ602)-1","v":2.9858564693556744E-2},{"$f":"(Monthly!ER603/Monthly!ER602)-1","v":3.0156815440289808E-3},{"$f":"(Monthly!ES603/Monthly!ES602)-1","v":2.6212319790301919E-3},null,null,null,null,null,{"$f":"((Monthly!EY603-Monthly!EY602)*100)","v":-24.000000000000021},{"$f":"((Monthly!EZ603-Monthly!EZ602)*100)","v":-29.999999999999982},{"$f":"((Monthly!FA603-Monthly!FA602)*100)","v":2.0000000000000462},{"$f":"((Monthly!FB603-Monthly!FB602)*100)","v":-4.0000000000000036},"--",{"$f":"((Monthly!FD603-Monthly!FD602)*100)","v":12.000000000000011},{"$f":"((Monthly!FE603-Monthly!FE602)*100)","v":43.999999999999993},{"$f":"((Monthly!FF603-Monthly!FF602)*100)","v":32.000000000000007},{"$f":"((Monthly!FG603-Monthly!FG602)*100)","v":40.000000000000036},{"$f":"((Monthly!FH603-Monthly!FH602)*100)","v":31.000000000000007},{"$f":"((Monthly!FI603-Monthly!FI602)*100)","v":19.999999999999972},null,null,null,null,null,null,{"$f":"(Monthly!FP603/Monthly!FP602)-1","v":-1.4205386208937631E-2},{"$f":"(Monthly!FQ603/Monthly!FQ602)-1","v":-3.8858808234638609E-3},{"$f":"(Monthly!FR603/Monthly!FR602)-1","v":-7.275597740284856E-3},{"$f":"(Monthly!FS603/Monthly!FS602)-1","v":-1.2695188523549561E-2},{"$f":"(Monthly!FT603/Monthly!FT602)-1","v":3.4635396768409876E-3},{"$f":"(Monthly!FU603/Monthly!FU602)-1","v":3.8719955472761303E-3},{"$f":"(Monthly!FV603/Monthly!FV602)-1","v":-3.0794746514859472E-2},{"$f":"(Monthly!FW603/Monthly!FW602)-1","v":6.484353626159356E-2},{"$f":"(Monthly!FX603/Monthly!FX602)-1","v":-2.7250334367851181E-2},null,null,null,null,null,{"$f":"(Monthly!GD603/Monthly!GD602)-1","v":0.11388469396819767},{"$f":"(Monthly!GE603/Monthly!GE602)-1","v":0.12588246080498777},{"$f":"(Monthly!GF603/Monthly!GF602)-1","v":7.1494760852519823E-2},{"$f":"(Monthly!GG603/Monthly!GG602)-1","v":8.3496571988246782E-2},{"$f":"(Monthly!GH603/Monthly!GH602)-1","v":{"$error":"#DIV/0!"}},"--",{"$f":"(Monthly!GJ603/Monthly!GJ602)-1","v":0.1062402799377915},{"$f":"(Monthly!GK603/Monthly!GK602)-1","v":-3.2893212879314349E-2},"--"]
["2008-09-01",null,null,null,{"$f":"(Monthly!E607/Monthly!E606)-1","v":-6.6225165562913135E-3},{"$f":"(Monthly!F607/Monthly!F606)-1","v":-3.9272464030404408E-2},{"$f":"(Monthly!G607/Monthly!G606)-1","v":-1.5575061895115927E-2},{"$f":"(Monthly!H607/Monthly!H606)-1","v":2.0002686928093372E-3},null,null,null,null,null,null,null,null,null,null,null,null,null,null,null,{"$f":"(Monthly!X607-Monthly!X606)","v":-3.3999999999999915},{"$f":"(Monthly!Y607/Monthly!Y606)-1","v":1.1428071259056427E-2},null,null,null,null,null,null,null,null,null,null,null,null,null,{"$f":"(Monthly!AM607/Monthly!AM606)-1","v":-4.3053896667079705E-2},{"$f":"(Monthly!AN607/Monthly!AN606)-1","v":-3.5254294230476213E-2},{"$f":"(Monthly!AO607/Monthly!AO606)-1","v":-6.3891016856754135E-3},{"$f":"((Monthly!AP607-Monthly!AP606)*100)","v":2.0000000000000018},{"$f":"Monthly!AQ607-Monthly!AQ606","v":-4.4000000000000057},{"$f":"Monthly!AR607-Monthly!AR606","v":-8.5},{"$f":"Monthly!AS607-Monthly!AS606","v":-1},{"$f":"Monthly!AT607-Monthly!AT606","v":-6.7999999999999972},{"$f":"Monthly!AU607-Monthly!AU606","v":-5},{"$f":"Monthly!AV607-Monthly!AV606","v":-4.5},{"$f":"Monthly!AW607-Monthly!AW606","v":-7.5},{"$f":"Monthly!AX607-Monthly!AX606","v":-4.9000000000000057},{"$f":"Monthly!AY607-Monthly!AY606","v":-23.5},{"$f":"Monthly!AZ607-Monthly!AZ606","v":-5},{"$f":"Monthly!BA607-Monthly!BA606","v":2.3000000000000043},{"$f":"Monthly!BB607-Monthly!BB606","v":-0.70000000000000284},{"$f":"(Monthly!BC607/Monthly!BC606)-1","v":-4.4484412470023993E-2},null,null,null,null,null,null,null,null,null,{"$f":"(Monthly!BM607/Monthly!BM606)-1","v":-1.5412026486649189E-2},{"$f":"(Monthly!BN607/Monthly!BN606)-1","v":-1.7388777723193471E-2},null,null,null,null,null,{"$f":"(Monthly!BT607/Monthly!BT606)-1","v":9.6454029019068521E-3},null,null,null,{"$f":"(Monthly!BX607/Monthly!BX606)-1","v":-2.8436018957345932E-2},{"$f":"(Monthly!BY607/Monthly!BY606)-1","v":-7.1095571095571075E-2},{"$f":"(Monthly!BZ607/Monthly!BZ606)-1","v":-1.850823616509345E-2},{"$f":"(Monthly!CA607/Monthly!CA606)-1","v":-8.2839381234639187E-2},{"$f":"Monthly!CB607-Monthly!CB606","v":-0.35469728695516167},{"$f":"Monthly!CC607-Monthly!CC606","v":-0.35469728695516167},{"$f":"(Monthly!CD607/Monthly!CD606)-1","v":-3.4229828850855792E-2},{"$f":"(Monthly!CE607/Monthly!CE606)-1","v":-4.5977011494252595E-3},null,{"$f":"(Monthly!CG607/Monthly!CG606)-1","v":0},{"$f":"(Monthly!CH607/Monthly!CH606)-1","v":1.9093078758949833E-2},null,{"$f":"(Monthly!CJ607/Monthly!CJ606)-1","v":-4.5977011494252595E-3},{"$f":"(Monthly!CK607/Monthly!CK606)-1","v":5.9216106781034838E-4},{"$f":"(Monthly!CL607/Monthly!CL606)-1","v":0.2011437095972155},{"$f":"(Monthly!CM607/Monthly!CM606)-1","v":-0.1153212520593081},{"$f":"(Monthly!CN607/Monthly!CN606)-1","v":1.1226959426504646E-3},{"$f":"(Monthly!CO607/Monthly!CO606)-1","v":2.4752475247513672E-4},{"$f":"(Monthly!CP607/Monthly!CP606)-1","v":-1.763360090527466E-3},{"$f":"(Monthly!CQ607/Monthly!CQ606)-1","v":8.6544608172567372E-4},{"$f":"(Monthly!CR607/Monthly!CR606)-1","v":-5.0068615276317452E-3},"--","--",null,null,null,null,null,{"$f":"(Monthly!CZ607/Monthly!CZ606)-1","v":8.550916822900323E-4},{"$f":"(Monthly!DA607/Monthly!DA606)-1","v":1.4787909035873792E-3},null,null,null,null,null,"--",{"$f":"((Monthly!DH607-Monthly!DH606)*60)","v":-6.0000000000000853},{"$f":"((Monthly!DI607-Monthly!DI606)*100)","v":-9.9999999999994316},{"$f":"((Monthly!DJ607-Monthly!DJ606)*100)","v":19.999999999999929},{"$f":"((Monthly!DK607-Monthly!DK606)*100)","v":0},{"$f":"Monthly!DL607-Monthly!DL606","v":-83},null,null,null,{"$f":"Monthly!DP607-Monthly!DP606","v":-450},null,null,null,{"$f":"(Monthly!DT607/Monthly!DT606)-1","v":8.0955154338963276E-2},{"$f":"Monthly!DU607-Monthly!DU606","v":0.5},{"$f":"(Monthly!DV607-Monthly!DV606)","v":-10.400000000000091},{"$f":"(Monthly!DW607-Monthly!DW606)","v":-14.600000000000136},{"$f":"(Monthly!DX607-Monthly!DX606)","v":-4.1000000000000227},{"$f":"(Monthly!DY607-Monthly!DY606)","v":-1.2000000000000171},{"$f":"(Monthly!DZ607-Monthly!DZ606)","v":-2.9000000000000909},{"$f":"(Monthly!EA607-Monthly!EA606)","v":-0.70000000000004547},{"$f":"(Monthly!EB607-Monthly!EB606)","v":-2.1999999999999886},{"$f":"(Monthly!EC607-Monthly!EC606)","v":-10.5},null,null,null,null,null,null,null,null,null,null,null,null,null,{"$f":"(Monthly!EQ607/Monthly!EQ606)-1","v":-1.0552763819095423E-2},{"$f":"(Monthly!ER607/Monthly!ER606)-1","v":4.7590719809638138E-3},{"$f":"(Monthly!ES607/Monthly!ES606)-1","v":3.2341526520052177E-3},null,null,null,null,null,{"$f":"((Monthly!EY607-Monthly!EY606)*100)","v":0},{"$f":"((Monthly!EZ607-Monthly!EZ606)*100)","v":-18.999999999999993},{"$f":"((Monthly!FA607-Monthly!FA606)*100)","v":1.0000000000000675},{"$f":"((Monthly!FB607-Monthly!FB606)*100)","v":15.999999999999925},"--",{"$f":"((Monthly!FD607-Monthly!FD606)*100)","v":-44.000000000000043},{"$f":"((Monthly!FE607-Monthly!FE606)*100)","v":-59.000000000000007},{"$f":"((Monthly!FF607-Monthly!FF606)*100)","v":-27.000000000000025},{"$f":"((Monthly!FG607-Monthly!FG606)*100)","v":-33.999999999999986},{"$f":"((Monthly!FH607-Monthly!FH606)*100)","v":-26.000000000000021},{"$f":"((Monthly!FI607-Monthly!FI606)*100)","v":-20.000000000000018},null,null,null,null,null,null,{"$f":"(Monthly!FP607/Monthly!FP606)-1","v":4.4613194114855315E-3},{"$f":"(Monthly!FQ607/Monthly!FQ606)-1","v":-2.2640296806987203E-3},{"$f":"(Monthly!FR607/Monthly!FR606)-1","v":5.4164936631275085E-2},{"$f":"(Monthly!FS607/Monthly!FS606)-1","v":-4.0989635573386862E-2},{"$f":"(Monthly!FT607/Monthly!FT606)-1","v":2.4099216443450144E-2},{"$f":"(Monthly!FU607/Monthly!FU606)-1","v":2.018602302537853E-2},{"$f":"(Monthly!FV607/Monthly!FV606)-1","v":-1.1362120929240271E-2},{"$f":"(Monthly!FW607/Monthly!FW606)-1","v":3.9436017810625223E-2},{"$f":"(Monthly!FX607/Monthly!FX606)-1","v":-8.1781301862437705E-2},null,null,null,null,null,{"$f":"(Monthly!GD607/Monthly!GD606)-1","v":-0.1089957979590086},{"$f":"(Monthly!GE607/Monthly!GE606)-1","v":-0.14138113740727654},{"$f":"(Monthly!GF607/Monthly!GF606)-1","v":-5.4200542005420349E-3},{"$f":"(Monthly!GG607/Monthly!GG606)-1","v":-6.46211064621105E-2},{"$f":"(Monthly!GH607/Monthly!GH606)-1","v":{"$error":"#DIV/0!"}},"--",{"$f":"(Monthly!GJ607/Monthly!GJ606)-1","v":-9.8301409468738665E-2},{"$f":"(Monthly!GK607/Monthly!GK606)-1","v":-1.8769303872653853E-2},"--"]
["2009-03-01",null,null,null,{"$f":"(Monthly!E613/Monthly!E612)-1","v":-2.4476447766651477E-3},{"$f":"(Monthly!F613/Monthly!F612)-1","v":-1.1924873298221228E-2},{"$f":"(Monthly!G613/Monthly!G612)-1","v":-6.3094367227504167E-3},{"$f":"(Monthly!H613/Monthly!H612)-1","v":2.2545203132273706E-4},null,null,null,null,null,null,null,null,null,null,null,null,null,null,null,{"$f":"(Monthly!X613-Monthly!X612)","v":-1.0999999999999943},{"$f":"(Monthly!Y613/Monthly!Y612)-1","v":-1.3963683541592831E-2},null,null,null,null,null,null,null,null,null,null,null,null,null,{"$f":"(Monthly!AM613/Monthly!AM612)-1","v":-1.5971067610043854E-2},{"$f":"(Monthly!AN613/Monthly!AN612)-1","v":-1.7840081429792987E-2},{"$f":"(Monthly!AO613/Monthly!AO612)-1","v":-1.3899856733624927E-2},{"$f":"((Monthly!AP613-Monthly!AP612)*100)","v":2.0000000000000018},{"$f":"Monthly!AQ613-Monthly!AQ612","v":0.5},{"$f":"Monthly!AR613-Monthly!AR612","v":4.5},{"$f":"Monthly!AS613-Monthly!AS612","v":3},{"$f":"Monthly!AT613-Monthly!AT612","v":3.0999999999999979},{"$f":"Monthly!AU613-Monthly!AU612","v":1.5},{"$f":"Monthly!AV613-Monthly!AV612","v":1},{"$f":"Monthly!AW613-Monthly!AW612","v":-5},{"$f":"Monthly!AX613-Monthly!AX612","v":7.1000000000000014},{"$f":"Monthly!AY613-Monthly!AY612","v":2},{"$f":"Monthly!AZ613-Monthly!AZ612","v":1.1000000000000014},{"$f":"Monthly!BA613-Monthly!BA612","v":-4.3000000000000043},{"$f":"Monthly!BB613-Monthly!BB612","v":2.1999999999999957},{"$f":"(Monthly!BC613/Monthly!BC612)-1","v":-2.8889372908540101E-2},null,null,null,null,null,null,null,null,null,{"$f":"(Monthly!BM613/Monthly!BM612)-1","v":-1.7131469356385765E-2},{"$f":"(Monthly!BN613/Monthly!BN612)-1","v":-1.8025823133363539E-2},null,null,null,null,null,{"$f":"(Monthly!BT613/Monthly!BT612)-1","v":-1.6473899866183084E-2},null,null,null,{"$f":"(Monthly!BX613/Monthly!BX612)-1","v":-0.13230240549828176},{"$f":"(Monthly!BY613/Monthly!BY612)-1","v":-8.064516129032262E-2},{"$f":"(Monthly!BZ613/Monthly!BZ612)-1","v":-1.7652311285115685E-2},{"$f":"(Monthly!CA613/Monthly!CA612)-1","v":5.8627950792419448E-2},{"$f":"Monthly!CB613-Monthly!CB612","v":-5.494190833389645E-2},{"$f":"Monthly!CC613-Monthly!CC612","v":0.22505809166610291},{"$f":"(Monthly!CD613/Monthly!CD612)-1","v":-4.6012269938650263E-2},{"$f":"(Monthly!CE613/Monthly!CE612)-1","v":-8.8709677419354871E-2},null,{"$f":"(Monthly!CG613/Monthly!CG612)-1","v":-3.4375000000000044E-2},{"$f":"(Monthly!CH613/Monthly!CH612)-1","v":-2.5316455696202667E-3},null,{"$f":"(Monthly!CJ613/Monthly!CJ612)-1","v":-8.8709677419354871E-2},{"$f":"(Monthly!CK613/Monthly!CK612)-1","v":-3.3138433939071676E-3},{"$f":"(Monthly!CL613/Monthly!CL612)-1","v":3.1696218421465527E-2},{"$f":"(Monthly!CM613/Monthly!CM612)-1","v":-1.3966480446927387E-2},{"$f":"(Monthly!CN613/Monthly!CN612)-1","v":5.4965188713840263E-5},{"$f":"(Monthly!CO613/Monthly!CO612)-1","v":1.7332927884727622E-2},{"$f":"(Monthly!CP613/Monthly!CP612)-1","v":-6.2436497026353566E-3},{"$f":"(Monthly!CQ613/Monthly!CQ612)-1","v":6.0704564591618215E-4},{"$f":"(Monthly!CR613/Monthly!CR612)-1","v":-8.5470085470085166E-3},"--","--",null,null,null,null,null,{"$f":"(Monthly!CZ613/Monthly!CZ612)-1","v":-9.8728285653848502E-4},{"$f":"(Monthly!DA613/Monthly!DA612)-1","v":2.1166985013223449E-3},null,null,null,null,null,"--",{"$f":"((Monthly!DH613-Monthly!DH612)*60)","v":-6.0000000000000853},{"$f":"((Monthly!DI613-Monthly!DI612)*100)","v":-20.000000000000284},{"$f":"((Monthly!DJ613-Monthly!DJ612)*100)","v":60.000000000000142},{"$f":"((Monthly!DK613-Monthly!DK612)*100)","v":39.999999999999858},{"$f":"Monthly!DL613-Monthly!DL612","v":-172},null,null,null,{"$f":"Monthly!DP613-Monthly!DP612","v":-823},null,null,null,{"$f":"(Monthly!DT613/Monthly!DT612)-1","v":3.063063063063054E-2},{"$f":"Monthly!DU613-Monthly!DU612","v":0.60000000000000142},{"$f":"(Monthly!DV613-Monthly!DV612)","v":-15.600000000000136},{"$f":"(Monthly!DW613-Monthly!DW612)","v":-6},{"$f":"(Monthly!DX613-Monthly!DX612)","v":-11.899999999999977},{"$f":"(Monthly!DY613-Monthly!DY612)","v":-3.1999999999999886},{"$f":"(Monthly!DZ613-Monthly!DZ612)","v":-8.6999999999999318},{"$f":"(Monthly!EA613-Monthly!EA612)","v":-7.3999999999999773},{"$f":"(Monthly!EB613-Monthly!EB612)","v":-1.3000000000000114},{"$f":"(Monthly!EC613-Monthly!EC612)","v":5.8999999999999773},null,null,null,null,null,null,null,null,null,null,null,null,null,{"$f":"(Monthly!EQ613/Monthly!EQ612)-1","v":-7.0880094506793334E-3},{"$f":"(Monthly!ER613/Monthly!ER612)-1","v":1.7554125219425565E-3},{"$f":"(Monthly!ES613/Monthly!ES612)-1","v":0},null,null,null,null,null,{"$f":"((Monthly!EY613-Monthly!EY612)*100)","v":0},{"$f":"((Monthly!EZ613-Monthly!EZ612)*100)","v":-4.0000000000000009},{"$f":"((Monthly!FA613-Monthly!FA612)*100)","v":23.000000000000043},{"$f":"((Monthly!FB613-Monthly!FB612)*100)","v":33.999999999999986},"--",{"$f":"((Monthly!FD613-Monthly!FD612)*100)","v":-12.999999999999989},{"$f":"((Monthly!FE613-Monthly!FE612)*100)","v":-9},{"$f":"((Monthly!FF613-Monthly!FF612)*100)","v":2.0000000000000018},{"$f":"((Monthly!FG613-Monthly!FG612)*100)","v":-4.9999999999999929},{"$f":"((Monthly!FH613-Monthly!FH612)*100)","v":-5.0000000000000044},{"$f":"((Monthly!FI613-Monthly!FI612)*100)","v":-5.0000000000000266},null,null,null,null,null,null,{"$f":"(Monthly!FP613/Monthly!FP612)-1","v":1.5499518149694635E-2},{"$f":"(Monthly!FQ613/Monthly!FQ612)-1","v":-4.3883387212284575E-5},{"$f":"(Monthly!FR613/Monthly!FR612)-1","v":2.7384880807306278E-3},{"$f":"(Monthly!FS613/Monthly!FS612)-1","v":1.9770258654371986E-2},{"$f":"(Monthly!FT613/Monthly!FT612)-1","v":4.3448875156899547E-3},{"$f":"(Monthly!FU613/Monthly!FU612)-1","v":6.3004877487853328E-3},{"$f":"(Monthly!FV613/Monthly!FV612)-1","v":3.6658344002178378E-2},{"$f":"(Monthly!FW613/Monthly!FW612)-1","v":0.12624764532647048},{"$f":"(Monthly!FX613/Monthly!FX612)-1","v":0.12518780594193779},null,null,null,null,null,{"$f":"(Monthly!GD613/Monthly!GD612)-1","v":0.22522982635342181},{"$f":"(Monthly!GE613/Monthly!GE612)-1","v":7.4330563250230908E-2},{"$f":"(Monthly!GF613/Monthly!GF612)-1","v":1.8200227819263226E-2},{"$f":"(Monthly!GG613/Monthly!GG612)-1","v":-4.692482915717533E-2},{"$f":"(Monthly!GH613/Monthly!GH612)-1","v":-0.19920318725099606},{"$f":"(Monthly!GI613/Monthly!GI612)-1","v":-0.19920318725099606},{"$f":"(Monthly!GJ613/Monthly!GJ612)-1","v":-8.6718393427658635E-2},{"$f":"(Monthly!GK613/Monthly!GK612)-1","v":-1.2826837691169213E-2},"--"]
["2009-08-01",null,null,null,{"$f":"(Monthly!E618/Monthly!E617)-1","v":1.0179695524391574E-2},{"$f":"(Monthly!F618/Monthly!F617)-1","v":7.3984526112185645E-2},{"$f":"(Monthly!G618/Monthly!G617)-1","v":5.5914972273567454E-3},{"$f":"(Monthly!H618/Monthly!H617)-1","v":1.8236349113049943E-3},null,null,null,null,null,null,null,null,null,null,null,null,null,null,null,{"$f":"(Monthly!X618-Monthly!X617)","v":0.79999999999999716},{"$f":"(Monthly!Y618/Monthly!Y617)-1","v":-2.2691585947718029E-2},null,null,null,null,null,null,null,null,null,null,null,null,null,{"$f":"(Monthly!AM618/Monthly!AM617)-1","v":1.105238631068084E-2},{"$f":"(Monthly!AN618/Monthly!AN617)-1","v":1.2237113826908175E-2},{"$f":"(Monthly!AO618/Monthly!AO617)-1","v":-1.4153846153846183E-2},{"$f":"((Monthly!AP618-Monthly!AP617)*100)","v":-4.0000000000000036},{"$f":"Monthly!AQ618-Monthly!AQ617","v":3.6000000000000014},{"$f":"Monthly!AR618-Monthly!AR617","v":2.5},{"$f":"Monthly!AS618-Monthly!AS617","v":-3.5},{"$f":"Monthly!AT618-Monthly!AT617","v":1.4000000000000057},{"$f":"Monthly!AU618-Monthly!AU617","v":5},{"$f":"Monthly!AV618-Monthly!AV617","v":-0.5},{"$f":"Monthly!AW618-Monthly!AW617","v":3.5},{"$f":"Monthly!AX618-Monthly!AX617","v":8.3999999999999986},{"$f":"Monthly!AY618-Monthly!AY617","v":10},{"$f":"Monthly!AZ618-Monthly!AZ617","v":3.7000000000000028},{"$f":"Monthly!BA618-Monthly!BA617","v":4.4000000000000057},{"$f":"Monthly!BB618-Monthly!BB617","v":5.1000000000000014},{"$f":"(Monthly!BC618/Monthly!BC617)-1","v":-1.6935183186483238E-2},null,null,null,null,null,null,null,null,null,{"$f":"(Monthly!BM618/Monthly!BM617)-1","v":1.889315725584817E-2},{"$f":"(Monthly!BN618/Monthly!BN617)-1","v":2.1479997619944902E-2},null,null,null,null,null,{"$f":"(Monthly!BT618/Monthly!BT617)-1","v":-2.1310299852750347E-4},null,null,null,{"$f":"(Monthly!BX618/Monthly!BX617)-1","v":-1.3468013468013518E-2},{"$f":"(Monthly!BY618/Monthly!BY617)-1","v":3.529411764705892E-2},{"$f":"(Monthly!BZ618/Monthly!BZ617)-1","v":8.5776559094423721E-3},{"$f":"(Monthly!CA618/Monthly!CA617)-1","v":0.28117854001759035},{"$f":"Monthly!CB618-Monthly!CB617","v":0.57492543743551394},{"$f":"Monthly!CC618-Monthly!CC617","v":0.64492543743551423},{"$f":"(Monthly!CD618/Monthly!CD617)-1","v":-3.3333333333333326E-2},{"$f":"(Monthly!CE618/Monthly!CE617)-1","v":1.7031630170316392E-2},null,{"$f":"(Monthly!CG618/Monthly!CG617)-1","v":-2.3668639053254448E-2},{"$f":"(Monthly!CH618/Monthly!CH617)-1","v":1.8518518518518601E-2},null,{"$f":"(Monthly!CJ618/Monthly!CJ617)-1","v":1.7031630170316392E-2},{"$f":"(Monthly!CK618/Monthly!CK617)-1","v":3.0694695624755575E-4},{"$f":"(Monthly!CL618/Monthly!CL617)-1","v":-0.19176829268292672},{"$f":"(Monthly!CM618/Monthly!CM617)-1","v":-4.3222003929273112E-2},{"$f":"(Monthly!CN618/Monthly!CN617)-1","v":-2.4817986171528084E-3},{"$f":"(Monthly!CO618/Monthly!CO617)-1","v":1.0990955129481117E-2},{"$f":"(Monthly!CP618/Monthly!CP617)-1","v":-3.6174559557293762E-3},{"$f":"(Monthly!CQ618/Monthly!CQ617)-1","v":8.0015873067496024E-4},{"$f":"(Monthly!CR618/Monthly!CR617)-1","v":-9.9671762086229743E-3},"--","--",null,null,null,null,null,{"$f":"(Monthly!CZ618/Monthly!CZ617)-1","v":3.3484533777929926E-3},{"$f":"(Monthly!DA618/Monthly!DA617)-1","v":1.0626507892348425E-3},null,null,null,null,null,"--",{"$f":"((Monthly!DH618-Monthly!DH617)*60)","v":0},{"$f":"((Monthly!DI618-Monthly!DI617)*100)","v":-9.9999999999994316},{"$f":"((Monthly!DJ618-Monthly!DJ617)*100)","v":30.000000000000071},{"$f":"((Monthly!DK618-Monthly!DK617)*100)","v":9.9999999999999645},{"$f":"Monthly!DL618-Monthly!DL617","v":-42},null,null,null,{"$f":"Monthly!DP618-Monthly!DP617","v":-213},null,null,null,{"$f":"(Monthly!DT618/Monthly!DT617)-1","v":-7.0010634526763704E-3},{"$f":"Monthly!DU618-Monthly!DU617","v":0.30000000000000071},{"$f":"(Monthly!DV618-Monthly!DV617)","v":-4.2999999999999545},{"$f":"(Monthly!DW618-Monthly!DW617)","v":1.7999999999999545},{"$f":"(Monthly!DX618-Monthly!DX617)","v":1},{"$f":"(Monthly!DY618-Monthly!DY617)","v":1.5999999999999943},{"$f":"(Monthly!DZ618-Monthly!DZ617)","v":-0.60000000000002274},{"$f":"(Monthly!EA618-Monthly!EA617)","v":-1.8000000000000114},{"$f":"(Monthly!EB618-Monthly!EB617)","v":1.1999999999999886},{"$f":"(Monthly!EC618-Monthly!EC617)","v":0.80000000000001137},null,null,null,null,null,null,null,null,null,null,null,null,null,{"$f":"(Monthly!EQ618/Monthly!EQ617)-1","v":1.449275362318847E-2},{"$f":"(Monthly!ER618/Monthly!ER617)-1","v":2.333722287047868E-3},{"$f":"(Monthly!ES618/Monthly!ES617)-1","v":2.5559105431309792E-3},null,null,null,null,null,{"$f":"((Monthly!EY618-Monthly!EY617)*100)","v":0},{"$f":"((Monthly!EZ618-Monthly!EZ617)*100)","v":0},{"$f":"((Monthly!FA618-Monthly!FA617)*100)","v":-15.000000000000036},{"$f":"((Monthly!FB618-Monthly!FB617)*100)","v":-50.999999999999979},"--",{"$f":"((Monthly!FD618-Monthly!FD617)*100)","v":-2.9999999999999361},{"$f":"((Monthly!FE618-Monthly!FE617)*100)","v":-0.99999999999999811},{"$f":"((Monthly!FF618-Monthly!FF617)*100)","v":-1.9999999999999962},{"$f":"((Monthly!FG618-Monthly!FG617)*100)","v":10.000000000000009},{"$f":"((Monthly!FH618-Monthly!FH617)*100)","v":10.999999999999988},{"$f":"((Monthly!FI618-Monthly!FI617)*100)","v":2.9999999999999805},null,null,null,null,null,null,{"$f":"(Monthly!FP618/Monthly!FP617)-1","v":-3.1792679668715018E-2},{"$f":"(Monthly!FQ618/Monthly!FQ617)-1","v":8.782587057409863E-5},{"$f":"(Monthly!FR618/Monthly!FR617)-1","v":-2.6642119994312319E-2},{"$f":"(Monthly!FS618/Monthly!FS617)-1","v":1.2347431166619405E-2},{"$f":"(Monthly!FT618/Monthly!FT617)-1","v":-1.196225744368129E-2},{"$f":"(Monthly!FU618/Monthly!FU617)-1","v":-1.5611630802109366E-2},{"$f":"(Monthly!FV618/Monthly!FV617)-1","v":2.4883549889678669E-2},{"$f":"(Monthly!FW618/Monthly!FW617)-1","v":4.9471974321317891E-3},{"$f":"(Monthly!FX618/Monthly!FX617)-1","v":6.9508653074557669E-2},null,null,null,null,null,{"$f":"(Monthly!GD618/Monthly!GD617)-1","v":0.10875331564986745},{"$f":"(Monthly!GE618/Monthly!GE617)-1","v":0.12523277467411553},{"$f":"(Monthly!GF618/Monthly!GF617)-1","v":3.7801484230055582E-2},{"$f":"(Monthly!GG618/Monthly!GG617)-1","v":3.700787401574801E-2},{"$f":"(Monthly!GH618/Monthly!GH617)-1","v":-0.10084925690021229},{"$f":"(Monthly!GI618/Monthly!GI617)-1","v":-1.6853932584269704E-2},{"$f":"(Monthly!GJ618/Monthly!GJ617)-1","v":-6.9276260208391949E-2},{"$f":"(Monthly!GK618/Monthly!GK617)-1","v":1.0909090909090979E-2},"--"]
["2010-01-01",null,null,null,{"$f":"(Monthly!E623/Monthly!E622)-1","v":-1.5257456955781734E-3},{"$f":"(Monthly!F623/Monthly!F622)-1","v":-1.2294688310440782E-2},{"$f":"(Monthly!G623/Monthly!G622)-1","v":1.0497968871239216E-3},{"$f":"(Monthly!H623/Monthly!H622)-1","v":-7.2024488326016822E-4},null,null,null,null,null,null,null,null,null,null,null,null,null,null,null,{"$f":"(Monthly!X623-Monthly!X622)","v":1},{"$f":"(Monthly!Y623/Monthly!Y622)-1","v":-2.0839085301332938E-2},null,null,null,null,null,null,null,null,null,null,null,null,null,{"$f":"(Monthly!AM623/Monthly!AM622)-1","v":1.1456313897035608E-2},{"$f":"(Monthly!AN623/Monthly!AN622)-1","v":1.2244340242020701E-2},{"$f":"(Monthly!AO623/Monthly!AO622)-1","v":1.4873541046309668E-3},{"$f":"((Monthly!AP623-Monthly!AP622)*100)","v":-1.0000000000000009},{"$f":"Monthly!AQ623-Monthly!AQ622","v":1.9000000000000057},{"$f":"Monthly!AR623-Monthly!AR622","v":6},{"$f":"Monthly!AS623-Monthly!AS622","v":-3},{"$f":"Monthly!AT623-Monthly!AT622","v":1.6000000000000014},{"$f":"Monthly!AU623-Monthly!AU622","v":4},{"$f":"Monthly!AV623-Monthly!AV622","v":1.5},{"$f":"Monthly!AW623-Monthly!AW622","v":4.5},{"$f":"Monthly!AX623-Monthly!AX622","v":-3.9999999999999929},{"$f":"Monthly!AY623-Monthly!AY622","v":8.5},{"$f":"Monthly!AZ623-Monthly!AZ622","v":1.7999999999999972},{"$f":"Monthly!BA623-Monthly!BA622","v":0.69999999999999574},{"$f":"Monthly!BB623-Monthly!BB622","v":-1.5},{"$f":"(Monthly!BC623/Monthly!BC622)-1","v":-3.3737694037830446E-2},null,null,null,null,null,null,null,null,null,{"$f":"(Monthly!BM623/Monthly!BM622)-1","v":1.0687000852072082E-4},{"$f":"(Monthly!BN623/Monthly!BN622)-1","v":7.5522335811850638E-4},null,null,null,null,null,{"$f":"(Monthly!BT623/Monthly!BT622)-1","v":-1.9242537184894881E-2},null,null,null,{"$f":"(Monthly!BX623/Monthly!BX622)-1","v":5.6798623063683218E-2},{"$f":"(Monthly!BY623/Monthly!BY622)-1","v":-4.216867469879515E-2},{"$f":"(Monthly!BZ623/Monthly!BZ622)-1","v":4.6508446754667254E-3},{"$f":"(Monthly!CA623/Monthly!CA622)-1","v":-3.5443037974683622E-2},{"$f":"Monthly!CB623-Monthly!CB622","v":-0.29301173423165139},{"$f":"Monthly!CC623-Monthly!CC622","v":-0.36301173423165523},{"$f":"(Monthly!CD623/Monthly!CD622)-1","v":-4.2735042735042583E-3},{"$f":"(Monthly!CE623/Monthly!CE622)-1","v":-1.9886363636363646E-2},null,{"$f":"(Monthly!CG623/Monthly!CG622)-1","v":3.6496350364962904E-3},{"$f":"(Monthly!CH623/Monthly!CH622)-1","v":-4.8565121412803558E-2},null,{"$f":"(Monthly!CJ623/Monthly!CJ622)-1","v":-1.9886363636363646E-2},{"$f":"(Monthly!CK623/Monthly!CK622)-1","v":4.3008987565149592E-3},{"$f":"(Monthly!CL623/Monthly!CL622)-1","v":-8.1300813008128303E-3},{"$f":"(Monthly!CM623/Monthly!CM622)-1","v":5.3719008264462742E-2},{"$f":"(Monthly!CN623/Monthly!CN622)-1","v":-1.7390190102235525E-3},{"$f":"(Monthly!CO623/Monthly!CO622)-1","v":5.9459459459461073E-3},{"$f":"(Monthly!CP623/Monthly!CP622)-1","v":-5.4895925138019885E-3},{"$f":"(Monthly!CQ623/Monthly!CQ622)-1","v":6.4801884438803192E-4},{"$f":"(Monthly!CR623/Monthly!CR622)-1","v":-7.2723176206007656E-3},"--","--",null,null,null,null,null,{"$f":"(Monthly!CZ623/Monthly!CZ622)-1","v":6.4873221162464745E-4},{"$f":"(Monthly!DA623/Monthly!DA622)-1","v":-1.1227765176723414E-3},null,null,null,null,null,"--",{"$f":"((Monthly!DH623-Monthly!DH622)*60)","v":5.9999999999996589},{"$f":"((Monthly!DI623-Monthly!DI622)*100)","v":20.000000000000284},{"$f":"((Monthly!DJ623-Monthly!DJ622)*100)","v":-40.000000000000213},{"$f":"((Monthly!DK623-Monthly!DK622)*100)","v":-9.9999999999999645},{"$f":"Monthly!DL623-Monthly!DL622","v":-15},null,null,null,{"$f":"Monthly!DP623-Monthly!DP622","v":23},null,null,null,{"$f":"(Monthly!DT623/Monthly!DT622)-1","v":-2.0082389289392433E-2},{"$f":"Monthly!DU623-Monthly!DU622","v":-0.10000000000000142},{"$f":"(Monthly!DV623-Monthly!DV622)","v":-2.2000000000000455},{"$f":"(Monthly!DW623-Monthly!DW622)","v":-32.200000000000045},{"$f":"(Monthly!DX623-Monthly!DX622)","v":-15.099999999999909},{"$f":"(Monthly!DY623-Monthly!DY622)","v":-5.8000000000000114},{"$f":"(Monthly!DZ623-Monthly!DZ622)","v":-9.2999999999999545},{"$f":"(Monthly!EA623-Monthly!EA622)","v":-7.1000000000000227},{"$f":"(Monthly!EB623-Monthly!EB622)","v":-2.2000000000000171},{"$f":"(Monthly!EC623-Monthly!EC622)","v":-17.099999999999966},null,null,null,null,null,null,null,null,null,null,null,null,null,{"$f":"(Monthly!EQ623/Monthly!EQ622)-1","v":2.1336327905671082E-2},{"$f":"(Monthly!ER623/Monthly!ER622)-1","v":2.3242300987798004E-3},{"$f":"(Monthly!ES623/Monthly!ES622)-1","v":1.913265306122236E-3},null,null,null,null,null,{"$f":"((Monthly!EY623-Monthly!EY622)*100)","v":0},{"$f":"((Monthly!EZ623-Monthly!EZ622)*100)","v":-0.99999999999999956},{"$f":"((Monthly!FA623-Monthly!FA622)*100)","v":0},{"$f":"((Monthly!FB623-Monthly!FB622)*100)","v":-12.000000000000011},"--",{"$f":"((Monthly!FD623-Monthly!FD622)*100)","v":10.000000000000053},{"$f":"((Monthly!FE623-Monthly!FE622)*100)","v":0.99999999999999956},{"$f":"((Monthly!FF623-Monthly!FF622)*100)","v":-2.0000000000000018},{"$f":"((Monthly!FG623-Monthly!FG622)*100)","v":6.0000000000000053},{"$f":"((Monthly!FH623-Monthly!FH622)*100)","v":14.000000000000012},{"$f":"((Monthly!FI623-Monthly!FI622)*100)","v":14.000000000000012},null,null,null,null,null,null,{"$f":"(Monthly!FP623/Monthly!FP622)-1","v":-9.3954636044415452E-3},{"$f":"(Monthly!FQ623/Monthly!FQ622)-1","v":-8.7879897473386315E-5},{"$f":"(Monthly!FR623/Monthly!FR622)-1","v":-4.0895025734322132E-3},{"$f":"(Monthly!FS623/Monthly!FS622)-1","v":-2.1469236573153139E-2},{"$f":"(Monthly!FT623/Monthly!FT622)-1","v":2.8352648801961422E-3},{"$f":"(Monthly!FU623/Monthly!FU622)-1","v":7.428052254198958E-3},{"$f":"(Monthly!FV623/Monthly!FV622)-1","v":-8.8932218362237636E-3},{"$f":"(Monthly!FW623/Monthly!FW622)-1","v":-4.7381762819180828E-2},{"$f":"(Monthly!FX623/Monthly!FX622)-1","v":-5.8411119239209941E-2},null,null,null,null,null,{"$f":"(Monthly!GD623/Monthly!GD622)-1","v":5.2759084791386357E-2},{"$f":"(Monthly!GE623/Monthly!GE622)-1","v":2.2965350523771244E-2},{"$f":"(Monthly!GF623/Monthly!GF622)-1","v":3.9808468688386167E-2},{"$f":"(Monthly!GG623/Monthly!GG622)-1","v":3.642987249544638E-2},{"$f":"(Monthly!GH623/Monthly!GH622)-1","v":-0.12633832976445392},{"$f":"(Monthly!GI623/Monthly!GI622)-1","v":-0.30733944954128445},{"$f":"(Monthly!GJ623/Monthly!GJ622)-1","v":4.771706586826352E-2},{"$f":"(Monthly!GK623/Monthly!GK622)-1","v":5.789325049421068E-2},"--"]
["2010-03-01",null,null,null,{"$f":"(Monthly!E625/Monthly!E624)-1","v":4.9236729793267209E-3},{"$f":"(Monthly!F625/Monthly!F624)-1","v":4.4140473418703863E-2},{"$f":"(Monthly!G625/Monthly!G624)-1","v":2.2238358899882016E-3},{"$f":"(Monthly!H625/Monthly!H624)-1","v":-1.4977683251959917E-4},null,null,null,null,null,null,null,null,null,null,null,null,null,null,null,{"$f":"(Monthly!X625-Monthly!X624)","v":0.59999999999999432},{"$f":"(Monthly!Y625/Monthly!Y624)-1","v":-1.0987587633887075E-2},null,null,null,null,null,null,null,null,null,null,null,null,null,{"$f":"(Monthly!AM625/Monthly!AM624)-1","v":6.9707112606476329E-3},{"$f":"(Monthly!AN625/Monthly!AN624)-1","v":1.298518909441615E-2},{"$f":"(Monthly!AO625/Monthly!AO624)-1","v":6.2291679275183753E-3},{"$f":"((Monthly!AP625-Monthly!AP624)*100)","v":-2.0000000000000018},{"$f":"Monthly!AQ625-Monthly!AQ624","v":3},{"$f":"Monthly!AR625-Monthly!AR624","v":-3},{"$f":"Monthly!AS625-Monthly!AS624","v":2},{"$f":"Monthly!AT625-Monthly!AT624","v":0.89999999999999858},{"$f":"Monthly!AU625-Monthly!AU624","v":5},{"$f":"Monthly!AV625-Monthly!AV624","v":1},{"$f":"Monthly!AW625-Monthly!AW624","v":7.5},{"$f":"Monthly!AX625-Monthly!AX624","v":3.8999999999999986},{"$f":"Monthly!AY625-Monthly!AY624","v":8},{"$f":"Monthly!AZ625-Monthly!AZ624","v":4.8999999999999986},{"$f":"Monthly!BA625-Monthly!BA624","v":0.40000000000000568},{"$f":"Monthly!BB625-Monthly!BB624","v":4.7000000000000028},{"$f":"(Monthly!BC625/Monthly!BC624)-1","v":5.2505831891037635E-2},null,null,null,null,null,null,null,null,null,{"$f":"(Monthly!BM625/Monthly!BM624)-1","v":2.2284371531131608E-2},{"$f":"(Monthly!BN625/Monthly!BN624)-1","v":2.4571569313733166E-2},null,null,null,null,null,{"$f":"(Monthly!BT625/Monthly!BT624)-1","v":9.0531529468202088E-2},null,null,null,{"$f":"(Monthly!BX625/Monthly!BX624)-1","v":5.2980132450331174E-2},{"$f":"(Monthly!BY625/Monthly!BY624)-1","v":5.6923076923076854E-2},{"$f":"(Monthly!BZ625/Monthly!BZ624)-1","v":-1.770031996732202E-3},{"$f":"(Monthly!CA625/Monthly!CA624)-1","v":0.1429560743965177},{"$f":"Monthly!CB625-Monthly!CB624","v":0.23483508146145837},{"$f":"Monthly!CC625-Monthly!CC624","v":0.30483508146146221},{"$f":"(Monthly!CD625/Monthly!CD624)-1","v":-1.7316017316017285E-2},{"$f":"(Monthly!CE625/Monthly!CE624)-1","v":0.1339285714285714},null,{"$f":"(Monthly!CG625/Monthly!CG624)-1","v":3.0000000000000027E-2},{"$f":"(Monthly!CH625/Monthly!CH624)-1","v":7.6923076923076872E-2},null,{"$f":"(Monthly!CJ625/Monthly!CJ624)-1","v":0.1339285714285714},{"$f":"(Monthly!CK625/Monthly!CK624)-1","v":3.4388740143942442E-3},{"$f":"(Monthly!CL625/Monthly!CL624)-1","v":-3.7676609105180336E-2},{"$f":"(Monthly!CM625/Monthly!CM624)-1","v":3.041825095057038E-2},{"$f":"(Monthly!CN625/Monthly!CN624)-1","v":2.2502870264065056E-3},{"$f":"(Monthly!CO625/Monthly!CO624)-1","v":6.0684075027583884E-3},{"$f":"(Monthly!CP625/Monthly!CP624)-1","v":2.5975931249484496E-3},{"$f":"(Monthly!CQ625/Monthly!CQ624)-1","v":5.9865319211582779E-4},{"$f":"(Monthly!CR625/Monthly!CR624)-1","v":-3.6696664144129088E-3},"--","--",null,null,null,null,null,{"$f":"(Monthly!CZ625/Monthly!CZ624)-1","v":3.3136813619227823E-4},{"$f":"(Monthly!DA625/Monthly!DA624)-1","v":2.3558086539732237E-4},null,null,null,null,null,"--",{"$f":"((Monthly!DH625-Monthly!DH624)*60)","v":11.999999999999744},{"$f":"((Monthly!DI625-Monthly!DI624)*100)","v":0},{"$f":"((Monthly!DJ625-Monthly!DJ624)*100)","v":10.000000000000142},{"$f":"((Monthly!DK625-Monthly!DK624)*100)","v":9.9999999999999645},{"$f":"Monthly!DL625-Monthly!DL624","v":0},null,null,null,{"$f":"Monthly!DP625-Monthly!DP624","v":164},null,null,null,{"$f":"(Monthly!DT625/Monthly!DT624)-1","v":-2.8600717580727797E-2},{"$f":"Monthly!DU625-Monthly!DU624","v":0.5},{"$f":"(Monthly!DV625-Monthly!DV624)","v":-0.70000000000004547},{"$f":"(Monthly!DW625-Monthly!DW624)","v":8},{"$f":"(Monthly!DX625-Monthly!DX624)","v":0.5},{"$f":"(Monthly!DY625-Monthly!DY624)","v":0.19999999999998863},{"$f":"(Monthly!DZ625-Monthly!DZ624)","v":0.29999999999995453},{"$f":"(Monthly!EA625-Monthly!EA624)","v":-2},{"$f":"(Monthly!EB625-Monthly!EB624)","v":2.2999999999999829},{"$f":"(Monthly!EC625-Monthly!EC624)","v":7.5},null,null,null,null,null,null,null,null,null,null,null,null,null,{"$f":"(Monthly!EQ625/Monthly!EQ624)-1","v":1.2707182320442101E-2},{"$f":"(Monthly!ER625/Monthly!ER624)-1","v":1.7381228273465332E-3},{"$f":"(Monthly!ES625/Monthly!ES624)-1","v":6.3694267515912451E-4},null,null,null,null,null,{"$f":"((Monthly!EY625-Monthly!EY624)*100)","v":0},{"$f":"((Monthly!EZ625-Monthly!EZ624)*100)","v":3},{"$f":"((Monthly!FA625-Monthly!FA624)*100)","v":-8.0000000000000071},{"$f":"((Monthly!FB625-Monthly!FB624)*100)","v":-7.0000000000000284},"--",{"$f":"((Monthly!FD625-Monthly!FD624)*100)","v":-2.0000000000000462},{"$f":"((Monthly!FE625-Monthly!FE624)*100)","v":3.9999999999999996},{"$f":"((Monthly!FF625-Monthly!FF624)*100)","v":5.0000000000000044},{"$f":"((Monthly!FG625-Monthly!FG624)*100)","v":9.9999999999999982},{"$f":"((Monthly!FH625-Monthly!FH624)*100)","v":7.0000000000000284},{"$f":"((Monthly!FI625-Monthly!FI624)*100)","v":4.0000000000000036},null,null,null,null,null,null,{"$f":"(Monthly!FP625/Monthly!FP624)-1","v":-3.2444192205826727E-2},{"$f":"(Monthly!FQ625/Monthly!FQ624)-1","v":-3.3682360694153868E-4},{"$f":"(Monthly!FR625/Monthly!FR624)-1","v":-2.8772141333580747E-2},{"$f":"(Monthly!FS625/Monthly!FS624)-1","v":-8.0409356725147374E-3},{"$f":"(Monthly!FT625/Monthly!FT624)-1","v":-8.5642057974281149E-3},{"$f":"(Monthly!FU625/Monthly!FU624)-1","v":-4.0366836439510445E-3},{"$f":"(Monthly!FV625/Monthly!FV624)-1","v":0.14520185370080818},{"$f":"(Monthly!FW625/Monthly!FW624)-1","v":4.0672070188666476E-2},{"$f":"(Monthly!FX625/Monthly!FX624)-1","v":0.22055615973947873},null,null,null,null,null,{"$f":"(Monthly!GD625/Monthly!GD624)-1","v":6.3072494111489075E-2},{"$f":"(Monthly!GE625/Monthly!GE624)-1","v":6.8881355932203459E-2},{"$f":"(Monthly!GF625/Monthly!GF624)-1","v":4.6364730943780685E-2},{"$f":"(Monthly!GG625/Monthly!GG624)-1","v":4.6678635547576341E-2},{"$f":"(Monthly!GH625/Monthly!GH624)-1","v":-7.0496083550913857E-2},{"$f":"(Monthly!GI625/Monthly!GI624)-1","v":2.9585798816567976E-2},{"$f":"(Monthly!GJ625/Monthly!GJ624)-1","v":-0.17526366251198455},{"$f":"(Monthly!GK625/Monthly!GK624)-1","v":5.12820512820511E-3},"--"]
["2010-10-01",null,null,null,{"$f":"(Monthly!E632/Monthly!E631)-1","v":4.9270850888758488E-3},{"$f":"(Monthly!F632/Monthly!F631)-1","v":2.6406847568748892E-2},{"$f":"(Monthly!G632/Monthly!G631)-1","v":3.8444345105050903E-3},{"$f":"(Monthly!H632/Monthly!H631)-1","v":1.9400222139949186E-3},null,null,null,null,null,null,null,null,null,null,null,null,null,null,null,{"$f":"(Monthly!X632-Monthly!X631)","v":-9.9999999999994316E-2},{"$f":"(Monthly!Y632/Monthly!Y631)-1","v":-1.0678093055301874E-3},null,null,null,null,null,null,null,null,null,null,null,null,null,{"$f":"(Monthly!AM632/Monthly!AM631)-1","v":-2.3826881701310976E-3},{"$f":"(Monthly!AN632/Monthly!AN631)-1","v":1.3351931788907478E-3},{"$f":"(Monthly!AO632/Monthly!AO631)-1","v":1.0099717469539415E-2},{"$f":"((Monthly!AP632-Monthly!AP631)*100)","v":-1.0000000000000009},{"$f":"Monthly!AQ632-Monthly!AQ631","v":1.4000000000000057},{"$f":"Monthly!AR632-Monthly!AR631","v":-0.5},{"$f":"Monthly!AS632-Monthly!AS631","v":1.5},{"$f":"Monthly!AT632-Monthly!AT631","v":0.10000000000000142},{"$f":"Monthly!AU632-Monthly!AU631","v":6},{"$f":"Monthly!AV632-Monthly!AV631","v":-5},{"$f":"Monthly!AW632-Monthly!AW631","v":-3},{"$f":"Monthly!AX632-Monthly!AX631","v":4.2000000000000028},{"$f":"Monthly!AY632-Monthly!AY631","v":0.5},{"$f":"Monthly!AZ632-Monthly!AZ631","v":2.7000000000000028},{"$f":"Monthly!BA632-Monthly!BA631","v":-0.69999999999999574},{"$f":"Monthly!BB632-Monthly!BB631","v":6.4000000000000057},{"$f":"(Monthly!BC632/Monthly!BC631)-1","v":-2.6665549317020032E-2},null,null,null,null,null,null,null,null,null,{"$f":"(Monthly!BM632/Monthly!BM631)-1","v":1.2272977741660807E-2},{"$f":"(Monthly!BN632/Monthly!BN631)-1","v":1.3494799953735592E-2},null,null,null,null,null,{"$f":"(Monthly!BT632/Monthly!BT631)-1","v":-5.7582906437169123E-3},null,null,null,{"$f":"(Monthly!BX632/Monthly!BX631)-1","v":-8.5858585858585856E-2},{"$f":"(Monthly!BY632/Monthly!BY631)-1","v":-8.8809946714032417E-3},{"$f":"(Monthly!BZ632/Monthly!BZ631)-1","v":-6.4355407930245523E-3},{"$f":"(Monthly!CA632/Monthly!CA631)-1","v":4.2382295137998849E-2},{"$f":"Monthly!CB632-Monthly!CB631","v":-5.1617098301715458E-2},{"$f":"Monthly!CC632-Monthly!CC631","v":-0.12161709830171219},{"$f":"(Monthly!CD632/Monthly!CD631)-1","v":-9.9502487562188602E-3},{"$f":"(Monthly!CE632/Monthly!CE631)-1","v":-8.2018927444794998E-2},null,{"$f":"(Monthly!CG632/Monthly!CG631)-1","v":-3.5190615835777095E-2},{"$f":"(Monthly!CH632/Monthly!CH631)-1","v":-7.9575596816976457E-3},null,{"$f":"(Monthly!CJ632/Monthly!CJ631)-1","v":-8.2018927444794998E-2},{"$f":"(Monthly!CK632/Monthly!CK631)-1","v":5.2423909757688403E-3},{"$f":"(Monthly!CL632/Monthly!CL631)-1","v":-3.6569987389659442E-2},{"$f":"(Monthly!CM632/Monthly!CM631)-1","v":-2.4498886414253906E-2},{"$f":"(Monthly!CN632/Monthly!CN631)-1","v":2.4411775303569971E-3},{"$f":"(Monthly!CO632/Monthly!CO631)-1","v":1.3092125499846174E-2},{"$f":"(Monthly!CP632/Monthly!CP631)-1","v":3.6279907032215064E-3},{"$f":"(Monthly!CQ632/Monthly!CQ631)-1","v":7.3498834656637868E-4},{"$f":"(Monthly!CR632/Monthly!CR631)-1","v":-7.0681097124142278E-3},"--","--",null,null,null,null,null,{"$f":"(Monthly!CZ632/Monthly!CZ631)-1","v":3.4818462948116302E-3},{"$f":"(Monthly!DA632/Monthly!DA631)-1","v":5.3673475831139683E-4},null,null,null,null,null,"--",{"$f":"((Monthly!DH632-Monthly!DH631)*60)","v":6.0000000000000853},{"$f":"((Monthly!DI632-Monthly!DI631)*100)","v":-19.999999999998863},{"$f":"((Monthly!DJ632-Monthly!DJ631)*100)","v":-19.999999999999929},{"$f":"((Monthly!DK632-Monthly!DK631)*100)","v":-9.9999999999999645},{"$f":"Monthly!DL632-Monthly!DL631","v":-1},null,null,null,{"$f":"Monthly!DP632-Monthly!DP631","v":262},null,null,null,{"$f":"(Monthly!DT632/Monthly!DT631)-1","v":-1.4773980154355049E-2},{"$f":"Monthly!DU632-Monthly!DU631","v":0.89999999999999858},{"$f":"(Monthly!DV632-Monthly!DV631)","v":5},{"$f":"(Monthly!DW632-Monthly!DW631)","v":2.1000000000001364},{"$f":"(Monthly!DX632-Monthly!DX631)","v":4.6000000000000227},{"$f":"(Monthly!DY632-Monthly!DY631)","v":1.0999999999999943},{"$f":"(Monthly!DZ632-Monthly!DZ631)","v":3.5},{"$f":"(Monthly!EA632-Monthly!EA631)","v":4.6000000000000227},{"$f":"(Monthly!EB632-Monthly!EB631)","v":-1.0999999999999943},{"$f":"(Monthly!EC632-Monthly!EC631)","v":-2.5},null,null,null,null,null,null,null,null,null,null,null,null,null,{"$f":"(Monthly!EQ632/Monthly!EQ631)-1","v":9.1941590048674193E-3},{"$f":"(Monthly!ER632/Monthly!ER631)-1","v":0},{"$f":"(Monthly!ES632/Monthly!ES631)-1","v":-1.2682308180087531E-3},null,null,null,null,null,{"$f":"((Monthly!EY632-Monthly!EY631)*100)","v":0},{"$f":"((Monthly!EZ632-Monthly!EZ631)*100)","v":0},{"$f":"((Monthly!FA632-Monthly!FA631)*100)","v":14.999999999999947},{"$f":"((Monthly!FB632-Monthly!FB631)*100)","v":5.9999999999999609},"--",{"$f":"((Monthly!FD632-Monthly!FD631)*100)","v":-11.999999999999922},{"$f":"((Monthly!FE632-Monthly!FE631)*100)","v":-1.9999999999999991},{"$f":"((Monthly!FF632-Monthly!FF631)*100)","v":-3},{"$f":"((Monthly!FG632-Monthly!FG631)*100)","v":-9.9999999999999982},{"$f":"((Monthly!FH632-Monthly!FH631)*100)","v":-23},{"$f":"((Monthly!FI632-Monthly!FI631)*100)","v":-10.999999999999988},null,null,null,null,null,null,{"$f":"(Monthly!FP632/Monthly!FP631)-1","v":-1.461761858664079E-2},{"$f":"(Monthly!FQ632/Monthly!FQ631)-1","v":-1.0653451243397338E-2},{"$f":"(Monthly!FR632/Monthly!FR631)-1","v":-2.8005032154215348E-2},{"$f":"(Monthly!FS632/Monthly!FS631)-1","v":6.090208349232995E-2},{"$f":"(Monthly!FT632/Monthly!FT631)-1","v":-2.5994974626792122E-2},{"$f":"(Monthly!FU632/Monthly!FU631)-1","v":-3.5840769325133692E-2},{"$f":"(Monthly!FV632/Monthly!FV631)-1","v":1.7494596682493091E-2},{"$f":"(Monthly!FW632/Monthly!FW631)-1","v":-3.2218929615558389E-3},{"$f":"(Monthly!FX632/Monthly!FX631)-1","v":5.6057866184448413E-2},null,null,null,null,null,{"$f":"(Monthly!GD632/Monthly!GD631)-1","v":8.7504979418403961E-2},{"$f":"(Monthly!GE632/Monthly!GE631)-1","v":6.2050359712230163E-2},{"$f":"(Monthly!GF632/Monthly!GF631)-1","v":3.5306918124943243E-2},{"$f":"(Monthly!GG632/Monthly!GG631)-1","v":3.5980991174473731E-2},{"$f":"(Monthly!GH632/Monthly!GH631)-1","v":0.25145228215767634},{"$f":"(Monthly!GI632/Monthly!GI631)-1","v":0.15632183908045971},{"$f":"(Monthly!GJ632/Monthly!GJ631)-1","v":-7.6449461262185769E-2},{"$f":"(Monthly!GK632/Monthly!GK631)-1","v":-4.749340369393118E-3},{"$f":"(Monthly!GL632/Monthly!GL631)-1","v":3.8953653682115341E-2}]
["2011-02-01",null,null,null,{"$f":"(Monthly!E636/Monthly!E635)-1","v":8.6264361055565786E-4},{"$f":"(Monthly!F636/Monthly!F635)-1","v":-3.5192679922568804E-4},{"$f":"(Monthly!G636/Monthly!G635)-1","v":6.1771973173319061E-4},{"$f":"(Monthly!H636/Monthly!H635)-1","v":1.1471431722920311E-3},null,null,null,null,null,null,null,null,null,null,null,null,null,null,null,{"$f":"(Monthly!X636-Monthly!X635)","v":-0.29999999999999716},{"$f":"(Monthly!Y636/Monthly!Y635)-1","v":3.0722121616557629E-3},null,null,null,null,null,null,null,null,null,null,null,null,null,{"$f":"(Monthly!AM636/Monthly!AM635)-1","v":-4.3881454546966792E-3},{"$f":"(Monthly!AN636/Monthly!AN635)-1","v":1.321316829338226E-3},{"$f":"(Monthly!AO636/Monthly!AO635)-1","v":6.0014746480563375E-3},{"$f":"((Monthly!AP636-Monthly!AP635)*100)","v":1.0000000000000009},{"$f":"Monthly!AQ636-Monthly!AQ635","v":0.60000000000000142},{"$f":"Monthly!AR636-Monthly!AR635","v":1},{"$f":"Monthly!AS636-Monthly!AS635","v":-5.5},{"$f":"Monthly!AT636-Monthly!AT635","v":0.39999999999999858},{"$f":"Monthly!AU636-Monthly!AU635","v":0.5},{"$f":"Monthly!AV636-Monthly!AV635","v":0},{"$f":"Monthly!AW636-Monthly!AW635","v":-1.5},{"$f":"Monthly!AX636-Monthly!AX635","v":-1.0999999999999943},{"$f":"Monthly!AY636-Monthly!AY635","v":0.5},{"$f":"Monthly!AZ636-Monthly!AZ635","v":0.90000000000000568},{"$f":"Monthly!BA636-Monthly!BA635","v":0.80000000000000426},{"$f":"Monthly!BB636-Monthly!BB635","v":2.1999999999999957},{"$f":"(Monthly!BC636/Monthly!BC635)-1","v":-2.3835516739446838E-2},null,null,null,null,null,null,null,null,null,{"$f":"(Monthly!BM636/Monthly!BM635)-1","v":7.8565342550807049E-3},{"$f":"(Monthly!BN636/Monthly!BN635)-1","v":5.9688656749630198E-3},null,null,null,null,null,{"$f":"(Monthly!BT636/Monthly!BT635)-1","v":-3.1176882709528231E-3},null,null,null,{"$f":"(Monthly!BX636/Monthly!BX635)-1","v":-0.17936507936507939},{"$f":"(Monthly!BY636/Monthly!BY635)-1","v":-5.902777777777779E-2},{"$f":"(Monthly!BZ636/Monthly!BZ635)-1","v":-3.5776920378816079E-3},{"$f":"(Monthly!CA636/Monthly!CA635)-1","v":2.1359687574719066E-2},{"$f":"Monthly!CB636-Monthly!CB635","v":0.324114681830169},{"$f":"Monthly!CC636-Monthly!CC635","v":0.25411468183016694},{"$f":"(Monthly!CD636/Monthly!CD635)-1","v":-2.1390374331550777E-2},{"$f":"(Monthly!CE636/Monthly!CE635)-1","v":-0.12052117263843654},null,{"$f":"(Monthly!CG636/Monthly!CG635)-1","v":3.436426116838498E-2},{"$f":"(Monthly!CH636/Monthly!CH635)-1","v":-7.0484581497797349E-2},null,{"$f":"(Monthly!CJ636/Monthly!CJ635)-1","v":-0.12052117263843654},{"$f":"(Monthly!CK636/Monthly!CK635)-1","v":5.4919310858660975E-3},{"$f":"(Monthly!CL636/Monthly!CL635)-1","v":3.7369001654715905E-2},{"$f":"(Monthly!CM636/Monthly!CM635)-1","v":-9.0697674418604657E-2},{"$f":"(Monthly!CN636/Monthly!CN635)-1","v":2.7971037583869318E-3},{"$f":"(Monthly!CO636/Monthly!CO635)-1","v":8.8604296191505671E-3},{"$f":"(Monthly!CP636/Monthly!CP635)-1","v":3.5481824350167557E-3},null,{"$f":"(Monthly!CR636/Monthly!CR635)-1","v":-1.7164969481308079E-3},"--","--",null,null,null,null,null,{"$f":"(Monthly!CZ636/Monthly!CZ635)-1","v":3.2144746300641902E-3},{"$f":"(Monthly!DA636/Monthly!DA635)-1","v":1.8401906617055985E-3},null,null,null,null,null,"--",{"$f":"((Monthly!DH636-Monthly!DH635)*60)","v":6.0000000000000853},{"$f":"((Monthly!DI636-Monthly!DI635)*100)","v":-10.000000000000853},{"$f":"((Monthly!DJ636-Monthly!DJ635)*100)","v":-19.999999999999929},{"$f":"((Monthly!DK636-Monthly!DK635)*100)","v":-9.9999999999999645},{"$f":"Monthly!DL636-Monthly!DL635","v":33},null,null,null,{"$f":"Monthly!DP636-Monthly!DP635","v":189},null,null,null,{"$f":"(Monthly!DT636/Monthly!DT635)-1","v":-5.9278350515463929E-2},{"$f":"Monthly!DU636-Monthly!DU635","v":-0.39999999999999858},{"$f":"(Monthly!DV636-Monthly!DV635)","v":12.099999999999909},{"$f":"(Monthly!DW636-Monthly!DW635)","v":3.5999999999999091},{"$f":"(Monthly!DX636-Monthly!DX635)","v":1.6000000000000227},{"$f":"(Monthly!DY636-Monthly!DY635)","v":1.3000000000000114},{"$f":"(Monthly!DZ636-Monthly!DZ635)","v":0.30000000000006821},{"$f":"(Monthly!EA636-Monthly!EA635)","v":0.40000000000003411},{"$f":"(Monthly!EB636-Monthly!EB635)","v":-9.9999999999994316E-2},{"$f":"(Monthly!EC636-Monthly!EC635)","v":2},null,null,null,null,null,null,null,null,null,null,null,null,null,{"$f":"(Monthly!EQ636/Monthly!EQ635)-1","v":1.6087182148417423E-2},{"$f":"(Monthly!ER636/Monthly!ER635)-1","v":2.2818026240729594E-3},{"$f":"(Monthly!ES636/Monthly!ES635)-1","v":1.8987341772152E-3},null,null,null,null,null,{"$f":"((Monthly!EY636-Monthly!EY635)*100)","v":0},{"$f":"((Monthly!EZ636-Monthly!EZ635)*100)","v":-1.0000000000000009},{"$f":"((Monthly!FA636-Monthly!FA635)*100)","v":17.999999999999972},{"$f":"((Monthly!FB636-Monthly!FB635)*100)","v":6.0000000000000497},"--",{"$f":"((Monthly!FD636-Monthly!FD635)*100)","v":19.000000000000039},{"$f":"((Monthly!FE636-Monthly!FE635)*100)","v":-1.9999999999999991},{"$f":"((Monthly!FF636-Monthly!FF635)*100)","v":1.9999999999999962},{"$f":"((Monthly!FG636-Monthly!FG635)*100)","v":16.000000000000004},{"$f":"((Monthly!FH636-Monthly!FH635)*100)","v":26.999999999999979},{"$f":"((Monthly!FI636-Monthly!FI635)*100)","v":18.999999999999993},null,null,null,null,null,null,{"$f":"(Monthly!FP636/Monthly!FP635)-1","v":-6.3386658617566871E-3},{"$f":"(Monthly!FQ636/Monthly!FQ635)-1","v":-3.0774361773088232E-3},{"$f":"(Monthly!FR636/Monthly!FR635)-1","v":-5.2028364116095682E-3},{"$f":"(Monthly!FS636/Monthly!FS635)-1","v":2.1314785730311758E-2},{"$f":"(Monthly!FT636/Monthly!FT635)-1","v":-7.6270868543006909E-3},{"$f":"(Monthly!FU636/Monthly!FU635)-1","v":-1.3040575096080143E-2},{"$f":"(Monthly!FV636/Monthly!FV635)-1","v":-6.3396415146088403E-2},{"$f":"(Monthly!FW636/Monthly!FW635)-1","v":-0.131709446926769},{"$f":"(Monthly!FX636/Monthly!FX635)-1","v":-2.8194875142810605E-2},null,null,null,null,null,{"$f":"(Monthly!GD636/Monthly!GD635)-1","v":1.7893088794451728E-3},{"$f":"(Monthly!GE636/Monthly!GE635)-1","v":7.4595938665561468E-2},{"$f":"(Monthly!GF636/Monthly!GF635)-1","v":3.6717062634989306E-2},{"$f":"(Monthly!GG636/Monthly!GG635)-1","v":5.7851239669421517E-2},{"$f":"(Monthly!GH636/Monthly!GH635)-1","v":-4.1152263374485631E-2},{"$f":"(Monthly!GI636/Monthly!GI635)-1","v":-0.16237623762376241},{"$f":"(Monthly!GJ636/Monthly!GJ635)-1","v":-0.10291175816848186},{"$f":"(Monthly!GK636/Monthly!GK635)-1","v":-4.9395420632878828E-2},{"$f":"(Monthly!GL636/Monthly!GL635)-1","v":-4.1155419222903888E-2}]
["2011-08-01",null,null,null,{"$f":"(Monthly!E642/Monthly!E641)-1","v":-5.4489549682801286E-4},{"$f":"(Monthly!F642/Monthly!F641)-1","v":-3.8451455038013282E-3},{"$f":"(Monthly!G642/Monthly!G641)-1","v":-3.0914631453429209E-3},{"$f":"(Monthly!H642/Monthly!H641)-1","v":8.4413977790398498E-4},null,null,null,null,null,null,null,null,null,null,null,null,null,null,null,{"$f":"(Monthly!X642-Monthly!X641)","v":0.40000000000000568},{"$f":"(Monthly!Y642/Monthly!Y641)-1","v":1.5333595793627808E-2},null,null,null,null,null,null,null,null,null,null,null,null,null,{"$f":"(Monthly!AM642/Monthly!AM641)-1","v":5.8786163528488089E-3},{"$f":"(Monthly!AN642/Monthly!AN641)-1","v":3.885780904986369E-3},{"$f":"(Monthly!AO642/Monthly!AO641)-1","v":5.8952798542095675E-3},{"$f":"((Monthly!AP642-Monthly!AP641)*100)","v":0},{"$f":"Monthly!AQ642-Monthly!AQ641","v":-0.10000000000000142},{"$f":"Monthly!AR642-Monthly!AR641","v":1},{"$f":"Monthly!AS642-Monthly!AS641","v":2.5},{"$f":"Monthly!AT642-Monthly!AT641","v":-1.5},{"$f":"Monthly!AU642-Monthly!AU641","v":-3.5},{"$f":"Monthly!AV642-Monthly!AV641","v":2},{"$f":"Monthly!AW642-Monthly!AW641","v":6.5},{"$f":"Monthly!AX642-Monthly!AX641","v":1},{"$f":"Monthly!AY642-Monthly!AY641","v":-3.5},{"$f":"Monthly!AZ642-Monthly!AZ641","v":-1},{"$f":"Monthly!BA642-Monthly!BA641","v":0.60000000000000142},{"$f":"Monthly!BB642-Monthly!BB641","v":-0.59999999999999432},{"$f":"(Monthly!BC642/Monthly!BC641)-1","v":-3.5213433386640514E-3},null,null,null,null,null,null,null,null,null,{"$f":"(Monthly!BM642/Monthly!BM641)-1","v":2.3294074635051842E-3},{"$f":"(Monthly!BN642/Monthly!BN641)-1","v":2.0210067542631993E-3},null,null,null,null,null,{"$f":"(Monthly!BT642/Monthly!BT641)-1","v":-1.584120886867213E-3},null,null,null,{"$f":"(Monthly!BX642/Monthly!BX641)-1","v":-6.0995184590690199E-2},{"$f":"(Monthly!BY642/Monthly!BY641)-1","v":4.1867954911433136E-2},{"$f":"(Monthly!BZ642/Monthly!BZ641)-1","v":-2.2097084610449569E-3},{"$f":"(Monthly!CA642/Monthly!CA641)-1","v":-1.1434092922135486E-2},{"$f":"Monthly!CB642-Monthly!CB641","v":0.17511505370846336},{"$f":"Monthly!CC642-Monthly!CC641","v":0.17511505370846336},{"$f":"(Monthly!CD642/Monthly!CD641)-1","v":-2.4096385542168641E-2},{"$f":"(Monthly!CE642/Monthly!CE641)-1","v":1.0135135135135087E-2},null,{"$f":"(Monthly!CG642/Monthly!CG641)-1","v":-4.1269841269841234E-2},{"$f":"(Monthly!CH642/Monthly!CH641)-1","v":8.8888888888888795E-2},null,{"$f":"(Monthly!CJ642/Monthly!CJ641)-1","v":1.0135135135135087E-2},{"$f":"(Monthly!CK642/Monthly!CK641)-1","v":1.6420484366799215E-3},{"$f":"(Monthly!CL642/Monthly!CL641)-1","v":-3.5064059339177112E-3},{"$f":"(Monthly!CM642/Monthly!CM641)-1","v":-2.314814814814814E-2},{"$f":"(Monthly!CN642/Monthly!CN641)-1","v":-6.771492894329656E-4},{"$f":"(Monthly!CO642/Monthly!CO641)-1","v":1.6091715874166912E-2},{"$f":"(Monthly!CP642/Monthly!CP641)-1","v":-2.9232365316296249E-3},null,{"$f":"(Monthly!CR642/Monthly!CR641)-1","v":-9.4487051326974658E-5},"--","--",null,null,null,null,null,{"$f":"(Monthly!CZ642/Monthly!CZ641)-1","v":3.1544621664187922E-3},{"$f":"(Monthly!DA642/Monthly!DA641)-1","v":2.8594517312114931E-3},null,null,null,null,null,"--",{"$f":"((Monthly!DH642-Monthly!DH641)*60)","v":-6.0000000000000853},{"$f":"((Monthly!DI642-Monthly!DI641)*100)","v":9.9999999999994316},{"$f":"((Monthly!DJ642-Monthly!DJ641)*100)","v":20.000000000000107},{"$f":"((Monthly!DK642-Monthly!DK641)*100)","v":0},{"$f":"Monthly!DL642-Monthly!DL641","v":18},null,null,null,{"$f":"Monthly!DP642-Monthly!DP641","v":110},null,null,null,{"$f":"(Monthly!DT642/Monthly!DT641)-1","v":-7.5133301017935583E-3},{"$f":"Monthly!DU642-Monthly!DU641","v":0.39999999999999858},{"$f":"(Monthly!DV642-Monthly!DV641)","v":0.6999999999998181},{"$f":"(Monthly!DW642-Monthly!DW641)","v":5.5},{"$f":"(Monthly!DX642-Monthly!DX641)","v":2.7999999999999545},{"$f":"(Monthly!DY642-Monthly!DY641)","v":-2},{"$f":"(Monthly!DZ642-Monthly!DZ641)","v":4.7999999999999545},{"$f":"(Monthly!EA642-Monthly!EA641)","v":4},{"$f":"(Monthly!EB642-Monthly!EB641)","v":0.80000000000001137},{"$f":"(Monthly!EC642-Monthly!EC641)","v":2.7000000000000455},null,null,null,null,null,null,null,null,null,null,null,null,null,{"$f":"(Monthly!EQ642/Monthly!EQ641)-1","v":-6.8426197458455462E-3},{"$f":"(Monthly!ER642/Monthly!ER641)-1","v":1.1217049915872579E-3},{"$f":"(Monthly!ES642/Monthly!ES641)-1","v":-6.2421972534332237E-4},null,null,null,null,null,{"$f":"((Monthly!EY642-Monthly!EY641)*100)","v":0},{"$f":"((Monthly!EZ642-Monthly!EZ641)*100)","v":3},{"$f":"((Monthly!FA642-Monthly!FA641)*100)","v":-55.999999999999957},{"$f":"((Monthly!FB642-Monthly!FB641)*100)","v":-39.999999999999943},"--",{"$f":"((Monthly!FD642-Monthly!FD641)*100)","v":-28.000000000000025},{"$f":"((Monthly!FE642-Monthly!FE641)*100)","v":-2},{"$f":"((Monthly!FF642-Monthly!FF641)*100)","v":-8},{"$f":"((Monthly!FG642-Monthly!FG641)*100)","v":-17.999999999999996},{"$f":"((Monthly!FH642-Monthly!FH641)*100)","v":-52},{"$f":"((Monthly!FI642-Monthly!FI641)*100)","v":-70.000000000000014},null,null,null,null,null,null,{"$f":"(Monthly!FP642/Monthly!FP641)-1","v":2.7635297812205639E-2},{"$f":"(Monthly!FQ642/Monthly!FQ641)-1","v":-8.3468834688346094E-3},{"$f":"(Monthly!FR642/Monthly!FR641)-1","v":4.818358588670657E-2},{"$f":"(Monthly!FS642/Monthly!FS641)-1","v":4.0630472854641386E-3},{"$f":"(Monthly!FT642/Monthly!FT641)-1","v":5.7152881845292658E-3},{"$f":"(Monthly!FU642/Monthly!FU641)-1","v":-4.7759016685267053E-4},{"$f":"(Monthly!FV642/Monthly!FV641)-1","v":6.6866039989939674E-2},{"$f":"(Monthly!FW642/Monthly!FW641)-1","v":6.3207992671866942E-2},{"$f":"(Monthly!FX642/Monthly!FX641)-1","v":9.7727499016182051E-2},null,null,null,null,null,{"$f":"(Monthly!GD642/Monthly!GD641)-1","v":-0.11173989093528136},{"$f":"(Monthly!GE642/Monthly!GE641)-1","v":-5.7707104385739894E-2},{"$f":"(Monthly!GF642/Monthly!GF641)-1","v":-1.049233252623083E-2},{"$f":"(Monthly!GG642/Monthly!GG641)-1","v":-1.1523687580025643E-2},{"$f":"(Monthly!GH642/Monthly!GH641)-1","v":-8.8044485634847236E-3},{"$f":"(Monthly!GI642/Monthly!GI641)-1","v":-6.8111455108359142E-2},{"$f":"(Monthly!GJ642/Monthly!GJ641)-1","v":-8.4769124741557511E-2},{"$f":"(Monthly!GK642/Monthly!GK641)-1","v":4.9036281179138275E-2},{"$f":"(Monthly!GL642/Monthly!GL641)-1","v":3.0413309072004235E-2}]
["2011-09-01",null,null,null,{"$f":"(Monthly!E643/Monthly!E642)-1","v":2.5604579617586332E-3},{"$f":"(Monthly!F643/Monthly!F642)-1","v":1.9124484603912473E-2},{"$f":"(Monthly!G643/Monthly!G642)-1","v":1.32902139724278E-4},{"$f":"(Monthly!H643/Monthly!H642)-1","v":8.2888594820196282E-4},null,null,null,null,null,null,null,null,null,null,null,null,null,null,null,{"$f":"(Monthly!X643-Monthly!X642)","v":-0.20000000000000284},{"$f":"(Monthly!Y643/Monthly!Y642)-1","v":5.0841360565969662E-3},null,null,null,null,null,null,null,null,null,null,null,null,null,{"$f":"(Monthly!AM643/Monthly!AM642)-1","v":-7.5637623115831776E-4},{"$f":"(Monthly!AN643/Monthly!AN642)-1","v":3.0089797476067215E-3},{"$f":"(Monthly!AO643/Monthly!AO642)-1","v":-2.8234691696011893E-3},{"$f":"((Monthly!AP643-Monthly!AP642)*100)","v":0},{"$f":"Monthly!AQ643-Monthly!AQ642","v":-9.9999999999994316E-2},{"$f":"Monthly!AR643-Monthly!AR642","v":-4.5},{"$f":"Monthly!AS643-Monthly!AS642","v":2.5},{"$f":"Monthly!AT643-Monthly!AT642","v":1.6000000000000014},{"$f":"Monthly!AU643-Monthly!AU642","v":3},{"$f":"Monthly!AV643-Monthly!AV642","v":-1},{"$f":"Monthly!AW643-Monthly!AW642","v":-2.5},{"$f":"Monthly!AX643-Monthly!AX642","v":-0.69999999999999574},{"$f":"Monthly!AY643-Monthly!AY642","v":0.5},{"$f":"Monthly!AZ643-Monthly!AZ642","v":1},{"$f":"Monthly!BA643-Monthly!BA642","v":0.39999999999999858},{"$f":"Monthly!BB643-Monthly!BB642","v":0.39999999999999858},{"$f":"(Monthly!BC643/Monthly!BC642)-1","v":2.1156427943150868E-2},null,null,null,null,null,null,null,null,null,{"$f":"(Monthly!BM643/Monthly!BM642)-1","v":9.3272402311488367E-3},{"$f":"(Monthly!BN643/Monthly!BN642)-1","v":9.4766503753245246E-3},null,null,null,null,null,{"$f":"(Monthly!BT643/Monthly!BT642)-1","v":-1.239769287537773E-3},null,null,null,{"$f":"(Monthly!BX643/Monthly!BX642)-1","v":0.11111111111111116},{"$f":"(Monthly!BY643/Monthly!BY642)-1","v":-5.7187017001545604E-2},{"$f":"(Monthly!BZ643/Monthly!BZ642)-1","v":-4.4292041720244146E-3},{"$f":"(Monthly!CA643/Monthly!CA642)-1","v":6.1008389671743934E-2},{"$f":"Monthly!CB643-Monthly!CB642","v":5.7625662110604381E-2},{"$f":"Monthly!CC643-Monthly!CC642","v":5.7625662110606157E-2},{"$f":"(Monthly!CD643/Monthly!CD642)-1","v":-1.2345679012345734E-2},{"$f":"(Monthly!CE643/Monthly!CE642)-1","v":1.6722408026755842E-2},null,{"$f":"(Monthly!CG643/Monthly!CG642)-1","v":-3.9735099337748325E-2},{"$f":"(Monthly!CH643/Monthly!CH642)-1","v":-2.947845804988658E-2},null,{"$f":"(Monthly!CJ643/Monthly!CJ642)-1","v":1.6722408026755842E-2},{"$f":"(Monthly!CK643/Monthly!CK642)-1","v":-9.7313401552523437E-4},{"$f":"(Monthly!CL643/Monthly!CL642)-1","v":-8.5938557314927611E-2},{"$f":"(Monthly!CM643/Monthly!CM642)-1","v":-9.4786729857819774E-3},{"$f":"(Monthly!CN643/Monthly!CN642)-1","v":-2.8776345316144925E-3},{"$f":"(Monthly!CO643/Monthly!CO642)-1","v":4.3500424808835536E-3},{"$f":"(Monthly!CP643/Monthly!CP642)-1","v":3.9570569700280167E-3},null,{"$f":"(Monthly!CR643/Monthly!CR642)-1","v":1.8329827811578436E-3},"--","--",null,null,null,null,null,{"$f":"(Monthly!CZ643/Monthly!CZ642)-1","v":2.1715478580843772E-3},{"$f":"(Monthly!DA643/Monthly!DA642)-1","v":1.1334354605909702E-3},null,null,null,null,null,"--",{"$f":"((Monthly!DH643-Monthly!DH642)*60)","v":0},{"$f":"((Monthly!DI643-Monthly!DI642)*100)","v":10.000000000000853},{"$f":"((Monthly!DJ643-Monthly!DJ642)*100)","v":29.999999999999716},{"$f":"((Monthly!DK643-Monthly!DK642)*100)","v":0},{"$f":"Monthly!DL643-Monthly!DL642","v":5},null,null,null,{"$f":"Monthly!DP643-Monthly!DP642","v":248},null,null,null,{"$f":"(Monthly!DT643/Monthly!DT642)-1","v":2.0146520146520075E-2},{"$f":"Monthly!DU643-Monthly!DU642","v":-0.39999999999999858},{"$f":"(Monthly!DV643-Monthly!DV642)","v":4},{"$f":"(Monthly!DW643-Monthly!DW642)","v":1.2999999999999545},{"$f":"(Monthly!DX643-Monthly!DX642)","v":5.8000000000000682},{"$f":"(Monthly!DY643-Monthly!DY642)","v":2.1999999999999886},{"$f":"(Monthly!DZ643-Monthly!DZ642)","v":3.6000000000000227},{"$f":"(Monthly!EA643-Monthly!EA642)","v":2.4000000000000341},{"$f":"(Monthly!EB643-Monthly!EB642)","v":1.1999999999999886},{"$f":"(Monthly!EC643-Monthly!EC642)","v":-4.5},null,null,null,null,null,null,null,null,null,null,null,null,null,{"$f":"(Monthly!EQ643/Monthly!EQ642)-1","v":2.4606299212599492E-3},{"$f":"(Monthly!ER643/Monthly!ER642)-1","v":2.8011204481792618E-3},{"$f":"(Monthly!ES643/Monthly!ES642)-1","v":1.8738288569644101E-3},null,null,null,null,null,{"$f":"((Monthly!EY643-Monthly!EY642)*100)","v":0},{"$f":"((Monthly!EZ643-Monthly!EZ642)*100)","v":-2.0000000000000004},{"$f":"((Monthly!FA643-Monthly!FA642)*100)","v":-28.000000000000025},{"$f":"((Monthly!FB643-Monthly!FB642)*100)","v":-9.0000000000000746},"--",{"$f":"((Monthly!FD643-Monthly!FD642)*100)","v":-15.999999999999925},{"$f":"((Monthly!FE643-Monthly!FE642)*100)","v":-1},{"$f":"((Monthly!FF643-Monthly!FF642)*100)","v":-0.99999999999999956},{"$f":"((Monthly!FG643-Monthly!FG642)*100)","v":-2.0000000000000018},{"$f":"((Monthly!FH643-Monthly!FH642)*100)","v":-12},{"$f":"((Monthly!FI643-Monthly!FI642)*100)","v":-31.999999999999986},null,null,null,null,null,null,{"$f":"(Monthly!FP643/Monthly!FP642)-1","v":2.1187735560761922E-2},{"$f":"(Monthly!FQ643/Monthly!FQ642)-1","v":-2.3580485976638643E-3},{"$f":"(Monthly!FR643/Monthly!FR642)-1","v":6.7592305052057045E-2},{"$f":"(Monthly!FS643/Monthly!FS642)-1","v":-4.088467173655197E-2},{"$f":"(Monthly!FT643/Monthly!FT642)-1","v":2.9923017269099184E-2},{"$f":"(Monthly!FU643/Monthly!FU642)-1","v":3.0948150915311778E-2},{"$f":"(Monthly!FV643/Monthly!FV642)-1","v":3.1973007120256192E-3},{"$f":"(Monthly!FW643/Monthly!FW642)-1","v":-2.5565833023403872E-2},{"$f":"(Monthly!FX643/Monthly!FX642)-1","v":-3.6669906057661183E-2},null,null,null,null,null,{"$f":"(Monthly!GD643/Monthly!GD642)-1","v":-8.3400903509788238E-3},{"$f":"(Monthly!GE643/Monthly!GE642)-1","v":2.3679912901469757E-2},{"$f":"(Monthly!GF643/Monthly!GF642)-1","v":-3.0587275693311211E-3},{"$f":"(Monthly!GG643/Monthly!GG642)-1","v":-5.9585492227978154E-3},{"$f":"(Monthly!GH643/Monthly!GH642)-1","v":6.2646096306685273E-2},{"$f":"(Monthly!GI643/Monthly!GI642)-1","v":-4.3189368770764069E-2},{"$f":"(Monthly!GJ643/Monthly!GJ642)-1","v":-3.3885542168674676E-2},{"$f":"(Monthly!GK643/Monthly!GK642)-1","v":3.6476627938395012E-2},{"$f":"(Monthly!GL643/Monthly!GL642)-1","v":1.412714429868811E-2}]
["2012-01-01",null,null,null,{"$f":"(Monthly!E647/Monthly!E646)-1","v":4.2870167407031978E-3},{"$f":"(Monthly!F647/Monthly!F646)-1","v":1.4925373134328179E-2},{"$f":"(Monthly!G647/Monthly!G646)-1","v":6.9675586916966292E-3},{"$f":"(Monthly!H647/Monthly!H646)-1","v":1.6432539336299623E-3},null,null,null,null,null,null,null,null,null,null,null,null,null,null,null,{"$f":"(Monthly!X647-Monthly!X646)","v":0.40000000000000568},{"$f":"(Monthly!Y647/Monthly!Y646)-1","v":1.3336079229063103E-2},null,null,null,null,null,null,null,null,null,null,null,null,null,{"$f":"(Monthly!AM647/Monthly!AM646)-1","v":6.4250199863615798E-3},{"$f":"(Monthly!AN647/Monthly!AN646)-1","v":9.995649656383776E-3},{"$f":"(Monthly!AO647/Monthly!AO646)-1","v":4.4921368391726002E-3},{"$f":"((Monthly!AP647-Monthly!AP646)*100)","v":-1.0000000000000009},{"$f":"Monthly!AQ647-Monthly!AQ646","v":0.5},{"$f":"Monthly!AR647-Monthly!AR646","v":4.5},{"$f":"Monthly!AS647-Monthly!AS646","v":5},{"$f":"Monthly!AT647-Monthly!AT646","v":-0.5},{"$f":"Monthly!AU647-Monthly!AU646","v":2},{"$f":"Monthly!AV647-Monthly!AV646","v":-1.5},{"$f":"Monthly!AW647-Monthly!AW646","v":4},{"$f":"Monthly!AX647-Monthly!AX646","v":2.8000000000000043},{"$f":"Monthly!AY647-Monthly!AY646","v":8},{"$f":"Monthly!AZ647-Monthly!AZ646","v":-3.1999999999999957},{"$f":"Monthly!BA647-Monthly!BA646","v":2.1000000000000014},{"$f":"Monthly!BB647-Monthly!BB646","v":2.7000000000000028},{"$f":"(Monthly!BC647/Monthly!BC646)-1","v":-1.8709087478409825E-2},null,null,null,null,null,null,null,null,null,{"$f":"(Monthly!BM647/Monthly!BM646)-1","v":9.120752328050985E-3},{"$f":"(Monthly!BN647/Monthly!BN646)-1","v":8.1332654846510977E-3},null,null,null,null,null,{"$f":"(Monthly!BT647/Monthly!BT646)-1","v":-9.43585898904864E-5},null,null,null,{"$f":"(Monthly!BX647/Monthly!BX646)-1","v":4.17867435158501E-2},{"$f":"(Monthly!BY647/Monthly!BY646)-1","v":2.582496413199431E-2},{"$f":"(Monthly!BZ647/Monthly!BZ646)-1","v":-1.6746759866025362E-3},{"$f":"(Monthly!CA647/Monthly!CA646)-1","v":4.48160535117057E-2},{"$f":"Monthly!CB647-Monthly!CB646","v":-0.25330050043388397},{"$f":"Monthly!CC647-Monthly!CC646","v":-0.39330050043388098},{"$f":"(Monthly!CD647/Monthly!CD646)-1","v":-1.3245033112582738E-2},{"$f":"(Monthly!CE647/Monthly!CE646)-1","v":-1.7595307917888547E-2},null,{"$f":"(Monthly!CG647/Monthly!CG646)-1","v":4.3103448275862988E-3},{"$f":"(Monthly!CH647/Monthly!CH646)-1","v":2.9680365296803624E-2},null,{"$f":"(Monthly!CJ647/Monthly!CJ646)-1","v":-1.7595307917888547E-2},{"$f":"(Monthly!CK647/Monthly!CK646)-1","v":7.0291855942519188E-3},{"$f":"(Monthly!CL647/Monthly!CL646)-1","v":5.1245085190039452E-2},{"$f":"(Monthly!CM647/Monthly!CM646)-1","v":-7.6628352490420992E-3},{"$f":"(Monthly!CN647/Monthly!CN646)-1","v":6.9376313945339607E-3},{"$f":"(Monthly!CO647/Monthly!CO646)-1","v":9.4633564254698044E-3},{"$f":"(Monthly!CP647/Monthly!CP646)-1","v":3.9531598064670437E-3},null,{"$f":"(Monthly!CR647/Monthly!CR646)-1","v":9.8205058820743929E-5},"--","--",null,null,null,null,null,{"$f":"(Monthly!CZ647/Monthly!CZ646)-1","v":2.7241960540966836E-3},{"$f":"(Monthly!DA647/Monthly!DA646)-1","v":2.0755920054529309E-3},null,null,null,null,null,"--",{"$f":"((Monthly!DH647-Monthly!DH646)*60)","v":5.9999999999996589},{"$f":"((Monthly!DI647-Monthly!DI646)*100)","v":-29.999999999999716},{"$f":"((Monthly!DJ647-Monthly!DJ646)*100)","v":0},{"$f":"((Monthly!DK647-Monthly!DK646)*100)","v":-19.999999999999929},{"$f":"Monthly!DL647-Monthly!DL646","v":36},null,null,null,{"$f":"Monthly!DP647-Monthly!DP646","v":358},null,null,null,{"$f":"(Monthly!DT647/Monthly!DT646)-1","v":8.6782376502003711E-3},{"$f":"Monthly!DU647-Monthly!DU646","v":0.30000000000000071},{"$f":"(Monthly!DV647-Monthly!DV646)","v":4.2999999999999545},{"$f":"(Monthly!DW647-Monthly!DW646)","v":-20},{"$f":"(Monthly!DX647-Monthly!DX646)","v":-10.799999999999955},{"$f":"(Monthly!DY647-Monthly!DY646)","v":-1.5999999999999943},{"$f":"(Monthly!DZ647-Monthly!DZ646)","v":-9.1999999999999318},{"$f":"(Monthly!EA647-Monthly!EA646)","v":-8.9000000000000341},{"$f":"(Monthly!EB647-Monthly!EB646)","v":-0.29999999999998295},{"$f":"(Monthly!EC647-Monthly!EC646)","v":-9.1999999999999886},null,null,null,null,null,null,null,null,null,null,null,null,null,{"$f":"(Monthly!EQ647/Monthly!EQ646)-1","v":4.5045045045044585E-3},{"$f":"(Monthly!ER647/Monthly!ER646)-1","v":3.8888888888888307E-3},{"$f":"(Monthly!ES647/Monthly!ES646)-1","v":2.4813895781639062E-3},null,null,null,null,null,{"$f":"((Monthly!EY647-Monthly!EY646)*100)","v":0},{"$f":"((Monthly!EZ647-Monthly!EZ646)*100)","v":0.99999999999999956},{"$f":"((Monthly!FA647-Monthly!FA646)*100)","v":-8.0000000000000071},{"$f":"((Monthly!FB647-Monthly!FB646)*100)","v":-1.9999999999999574},"--",{"$f":"((Monthly!FD647-Monthly!FD646)*100)","v":-4.0000000000000036},{"$f":"((Monthly!FE647-Monthly!FE646)*100)","v":1.9999999999999998},{"$f":"((Monthly!FF647-Monthly!FF646)*100)","v":0},{"$f":"((Monthly!FG647-Monthly!FG646)*100)","v":-2.0000000000000018},{"$f":"((Monthly!FH647-Monthly!FH646)*100)","v":-5.0000000000000044},{"$f":"((Monthly!FI647-Monthly!FI646)*100)","v":-1.0000000000000009},null,null,null,null,null,null,{"$f":"(Monthly!FP647/Monthly!FP646)-1","v":-1.025891548607738E-2},{"$f":"(Monthly!FQ647/Monthly!FQ646)-1","v":-4.8832739989289609E-3},{"$f":"(Monthly!FR647/Monthly!FR646)-1","v":-2.8436397427148541E-2},{"$f":"(Monthly!FS647/Monthly!FS646)-1","v":-1.8624097301406239E-2},{"$f":"(Monthly!FT647/Monthly!FT646)-1","v":-6.193509353452975E-3},{"$f":"(Monthly!FU647/Monthly!FU646)-1","v":1.891099416433395E-3},{"$f":"(Monthly!FV647/Monthly!FV646)-1","v":8.6188394501112153E-3},{"$f":"(Monthly!FW647/Monthly!FW646)-1","v":4.7006141949300639E-2},{"$f":"(Monthly!FX647/Monthly!FX646)-1","v":7.12823803256879E-3},null,null,null,null,null,{"$f":"(Monthly!GD647/Monthly!GD646)-1","v":1.6942274525717727E-2},{"$f":"(Monthly!GE647/Monthly!GE646)-1","v":2.614257903031425E-2},{"$f":"(Monthly!GF647/Monthly!GF646)-1","v":2.9842892580620894E-2},{"$f":"(Monthly!GG647/Monthly!GG646)-1","v":-7.2520072520072532E-3},{"$f":"(Monthly!GH647/Monthly!GH646)-1","v":1.6853932584269593E-2},{"$f":"(Monthly!GI647/Monthly!GI646)-1","v":-0.15279672578444747},{"$f":"(Monthly!GJ647/Monthly!GJ646)-1","v":-0.1657424522489217},{"$f":"(Monthly!GK647/Monthly!GK646)-1","v":1.7120622568093324E-2},{"$f":"(Monthly!GL647/Monthly!GL646)-1","v":8.6083213773313627E-3}]
["2012-08-01",null,null,null,{"$f":"(Monthly!E654/Monthly!E653)-1","v":-1.5639692195507093E-3},{"$f":"(Monthly!F654/Monthly!F653)-1","v":5.2841232420128836E-3},{"$f":"(Monthly!G654/Monthly!G653)-1","v":6.1406202026415002E-4},{"$f":"(Monthly!H654/Monthly!H653)-1","v":-3.424855491329426E-3},null,null,null,null,null,null,null,null,null,null,null,null,null,null,null,{"$f":"(Monthly!X654-Monthly!X653)","v":-0.39999999999999147},{"$f":"(Monthly!Y654/Monthly!Y653)-1","v":8.6221432453406077E-3},null,null,null,null,null,null,null,null,null,null,null,null,null,{"$f":"(Monthly!AM654/Monthly!AM653)-1","v":-3.8961556867124214E-3},{"$f":"(Monthly!AN654/Monthly!AN653)-1","v":-1.5609094672508483E-3},{"$f":"(Monthly!AO654/Monthly!AO653)-1","v":5.8098699219235606E-3},{"$f":"((Monthly!AP654-Monthly!AP653)*100)","v":-1.0000000000000009},{"$f":"Monthly!AQ654-Monthly!AQ653","v":0.70000000000000284},{"$f":"Monthly!AR654-Monthly!AR653","v":-0.5},{"$f":"Monthly!AS654-Monthly!AS653","v":-0.5},{"$f":"Monthly!AT654-Monthly!AT653","v":-0.39999999999999858},{"$f":"Monthly!AU654-Monthly!AU653","v":0.5},{"$f":"Monthly!AV654-Monthly!AV653","v":-1.5},{"$f":"Monthly!AW654-Monthly!AW653","v":4},{"$f":"Monthly!AX654-Monthly!AX653","v":-0.89999999999999858},{"$f":"Monthly!AY654-Monthly!AY653","v":14.5},{"$f":"Monthly!AZ654-Monthly!AZ653","v":-4.0999999999999943},{"$f":"Monthly!BA654-Monthly!BA653","v":0.59999999999999432},{"$f":"Monthly!BB654-Monthly!BB653","v":-1.5},{"$f":"(Monthly!BC654/Monthly!BC653)-1","v":-1.9510023639210394E-2},null,null,null,null,null,null,null,null,null,{"$f":"(Monthly!BM654/Monthly!BM653)-1","v":1.146856525908091E-2},{"$f":"(Monthly!BN654/Monthly!BN653)-1","v":1.2661484826293368E-2},null,null,null,null,null,{"$f":"(Monthly!BT654/Monthly!BT653)-1","v":1.3914598107698239E-3},null,null,null,{"$f":"(Monthly!BX654/Monthly!BX653)-1","v":1.8918918918918948E-2},{"$f":"(Monthly!BY654/Monthly!BY653)-1","v":-9.52380952380949E-3},{"$f":"(Monthly!BZ654/Monthly!BZ653)-1","v":6.3416009019165998E-3},{"$f":"(Monthly!CA654/Monthly!CA653)-1","v":4.6339202965710591E-3},{"$f":"Monthly!CB654-Monthly!CB653","v":0.16842343563564555},{"$f":"Monthly!CC654-Monthly!CC653","v":9.8423435635647039E-2},{"$f":"(Monthly!CD654/Monthly!CD653)-1","v":7.0422535211267512E-3},{"$f":"(Monthly!CE654/Monthly!CE653)-1","v":1.6260162601626105E-2},null,{"$f":"(Monthly!CG654/Monthly!CG653)-1","v":0},{"$f":"(Monthly!CH654/Monthly!CH653)-1","v":5.2173913043478182E-2},null,{"$f":"(Monthly!CJ654/Monthly!CJ653)-1","v":1.6260162601626105E-2},{"$f":"(Monthly!CK654/Monthly!CK653)-1","v":2.0711430392212904E-3},{"$f":"(Monthly!CL654/Monthly!CL653)-1","v":-4.4561243144425333E-3},{"$f":"(Monthly!CM654/Monthly!CM653)-1","v":3.675048355899424E-2},{"$f":"(Monthly!CN654/Monthly!CN653)-1","v":-1.7890318585288556E-3},{"$f":"(Monthly!CO654/Monthly!CO653)-1","v":7.0482097547222011E-3},{"$f":"(Monthly!CP654/Monthly!CP653)-1","v":6.1005595058567508E-3},null,{"$f":"(Monthly!CR654/Monthly!CR653)-1","v":5.1165084892821344E-3},"--","--",null,null,null,null,null,{"$f":"(Monthly!CZ654/Monthly!CZ653)-1","v":5.8095279758518803E-3},{"$f":"(Monthly!DA654/Monthly!DA653)-1","v":1.1436274296647841E-3},null,null,null,null,null,"--",{"$f":"((Monthly!DH654-Monthly!DH653)*60)","v":-6.0000000000000853},{"$f":"((Monthly!DI654-Monthly!DI653)*100)","v":-20.000000000000284},{"$f":"((Monthly!DJ654-Monthly!DJ653)*100)","v":-20.000000000000107},{"$f":"((Monthly!DK654-Monthly!DK653)*100)","v":-9.9999999999999645},{"$f":"Monthly!DL654-Monthly!DL653","v":-4},null,null,null,{"$f":"Monthly!DP654-Monthly!DP653","v":177},null,null,null,{"$f":"(Monthly!DT654/Monthly!DT653)-1","v":2.0134228187920211E-3},{"$f":"Monthly!DU654-Monthly!DU653","v":0.89999999999999858},{"$f":"(Monthly!DV654-Monthly!DV653)","v":2.6999999999998181},{"$f":"(Monthly!DW654-Monthly!DW653)","v":8.2000000000000455},{"$f":"(Monthly!DX654-Monthly!DX653)","v":4.5},{"$f":"(Monthly!DY654-Monthly!DY653)","v":1.2000000000000171},{"$f":"(Monthly!DZ654-Monthly!DZ653)","v":3.3000000000000682},{"$f":"(Monthly!EA654-Monthly!EA653)","v":1.8000000000000114},{"$f":"(Monthly!EB654-Monthly!EB653)","v":1.5},{"$f":"(Monthly!EC654-Monthly!EC653)","v":3.6999999999999886},null,null,null,null,null,null,null,null,null,null,null,null,null,{"$f":"(Monthly!EQ654/Monthly!EQ653)-1","v":1.2993503248375893E-2},{"$f":"(Monthly!ER654/Monthly!ER653)-1","v":1.0928961748633004E-3},{"$f":"(Monthly!ES654/Monthly!ES653)-1","v":0},null,null,null,null,null,{"$f":"((Monthly!EY654-Monthly!EY653)*100)","v":0},{"$f":"((Monthly!EZ654-Monthly!EZ653)*100)","v":-3},{"$f":"((Monthly!FA654-Monthly!FA653)*100)","v":8.0000000000000071},{"$f":"((Monthly!FB654-Monthly!FB653)*100)","v":4.0000000000000036},"--",{"$f":"((Monthly!FD654-Monthly!FD653)*100)","v":5.0000000000000266},{"$f":"((Monthly!FE654-Monthly!FE653)*100)","v":0},{"$f":"((Monthly!FF654-Monthly!FF653)*100)","v":-1.0000000000000009},{"$f":"((Monthly!FG654-Monthly!FG653)*100)","v":2.0000000000000018},{"$f":"((Monthly!FH654-Monthly!FH653)*100)","v":8.9999999999999964},{"$f":"((Monthly!FI654-Monthly!FI653)*100)","v":14.999999999999991},null,null,null,null,null,null,{"$f":"(Monthly!FP654/Monthly!FP653)-1","v":-2.1494774206270995E-2},{"$f":"(Monthly!FQ654/Monthly!FQ653)-1","v":-1.9461054349702023E-3},{"$f":"(Monthly!FR654/Monthly!FR653)-1","v":-1.3805953396489046E-2},{"$f":"(Monthly!FS654/Monthly!FS653)-1","v":1.0425150676005801E-2},{"$f":"(Monthly!FT654/Monthly!FT653)-1","v":-8.6819599428739069E-3},{"$f":"(Monthly!FU654/Monthly!FU653)-1","v":-1.2874026515422909E-2},{"$f":"(Monthly!FV654/Monthly!FV653)-1","v":8.2242519130124814E-2},{"$f":"(Monthly!FW654/Monthly!FW653)-1","v":-1.7141742330770926E-2},{"$f":"(Monthly!FX654/Monthly!FX653)-1","v":5.4935786169943546E-2},null,null,null,null,null,{"$f":"(Monthly!GD654/Monthly!GD653)-1","v":7.085181394290907E-2},{"$f":"(Monthly!GE654/Monthly!GE653)-1","v":0.10465796141103101},{"$f":"(Monthly!GF654/Monthly!GF653)-1","v":8.0627179692413176E-2},{"$f":"(Monthly!GG654/Monthly!GG653)-1","v":7.041117979037903E-2},{"$f":"(Monthly!GH654/Monthly!GH653)-1","v":8.8757396449703485E-3},{"$f":"(Monthly!GI654/Monthly!GI653)-1","v":-7.0221066319895997E-2},{"$f":"(Monthly!GJ654/Monthly!GJ653)-1","v":-5.1636854539318211E-2},{"$f":"(Monthly!GK654/Monthly!GK653)-1","v":-7.1783545002760407E-3},{"$f":"(Monthly!GL654/Monthly!GL653)-1","v":2.3131239347455645E-2}]
["2012-11-01",null,null,null,{"$f":"(Monthly!E657/Monthly!E656)-1","v":2.6278184311732122E-3},{"$f":"(Monthly!F657/Monthly!F656)-1","v":2.0846748229233603E-2},{"$f":"(Monthly!G657/Monthly!G656)-1","v":-2.0175438596490292E-3},{"$f":"(Monthly!H657/Monthly!H656)-1","v":1.3018196545837579E-3},null,null,null,null,null,null,null,null,null,null,null,null,null,null,null,{"$f":"(Monthly!X657-Monthly!X656)","v":0.19999999999998863},{"$f":"(Monthly!Y657/Monthly!Y656)-1","v":5.3805990584727681E-3},null,null,null,null,null,null,null,null,null,null,null,null,null,{"$f":"(Monthly!AM657/Monthly!AM656)-1","v":4.9298297612025976E-3},{"$f":"(Monthly!AN657/Monthly!AN656)-1","v":7.644136685232672E-3},{"$f":"(Monthly!AO657/Monthly!AO656)-1","v":3.4955146482482657E-3},{"$f":"((Monthly!AP657-Monthly!AP656)*100)","v":-1.0000000000000009},{"$f":"Monthly!AQ657-Monthly!AQ656","v":-1.7000000000000028},{"$f":"Monthly!AR657-Monthly!AR656","v":-0.5},{"$f":"Monthly!AS657-Monthly!AS656","v":-6.5},{"$f":"Monthly!AT657-Monthly!AT656","v":-3.7000000000000028},{"$f":"Monthly!AU657-Monthly!AU656","v":-1},{"$f":"Monthly!AV657-Monthly!AV656","v":0.5},{"$f":"Monthly!AW657-Monthly!AW656","v":-5},{"$f":"Monthly!AX657-Monthly!AX656","v":-3.9000000000000057},{"$f":"Monthly!AY657-Monthly!AY656","v":-2.5},{"$f":"Monthly!AZ657-Monthly!AZ656","v":1.3000000000000043},{"$f":"Monthly!BA657-Monthly!BA656","v":0.69999999999999574},{"$f":"Monthly!BB657-Monthly!BB656","v":4.6000000000000014},{"$f":"(Monthly!BC657/Monthly!BC656)-1","v":1.6047156516600269E-2},null,null,null,null,null,null,null,null,null,{"$f":"(Monthly!BM657/Monthly!BM656)-1","v":3.7178751198023718E-3},{"$f":"(Monthly!BN657/Monthly!BN656)-1","v":2.4248717828330157E-3},null,null,null,null,null,{"$f":"(Monthly!BT657/Monthly!BT656)-1","v":-3.2152666765361548E-4},null,null,null,{"$f":"(Monthly!BX657/Monthly!BX656)-1","v":-8.9617486338797847E-2},{"$f":"(Monthly!BY657/Monthly!BY656)-1","v":3.9106145251396551E-2},{"$f":"(Monthly!BZ657/Monthly!BZ656)-1","v":7.0471189719496508E-3},{"$f":"(Monthly!CA657/Monthly!CA656)-1","v":4.2441780350007008E-2},{"$f":"Monthly!CB657-Monthly!CB656","v":-0.45965835614430972},{"$f":"Monthly!CC657-Monthly!CC656","v":-0.52965835614431001},{"$f":"(Monthly!CD657/Monthly!CD656)-1","v":2.0408163265306145E-2},{"$f":"(Monthly!CE657/Monthly!CE656)-1","v":9.4972067039106101E-2},null,{"$f":"(Monthly!CG657/Monthly!CG656)-1","v":-5.6872037914691975E-2},{"$f":"(Monthly!CH657/Monthly!CH656)-1","v":2.6915113871635699E-2},null,{"$f":"(Monthly!CJ657/Monthly!CJ656)-1","v":9.4972067039106101E-2},{"$f":"(Monthly!CK657/Monthly!CK656)-1","v":1.2482239272520568E-2},{"$f":"(Monthly!CL657/Monthly!CL656)-1","v":0.14016117515046433},{"$f":"(Monthly!CM657/Monthly!CM656)-1","v":-6.8739770867430439E-2},{"$f":"(Monthly!CN657/Monthly!CN656)-1","v":1.3266150002984034E-2},{"$f":"(Monthly!CO657/Monthly!CO656)-1","v":1.1741052243845473E-2},{"$f":"(Monthly!CP657/Monthly!CP656)-1","v":6.1323274001414685E-3},null,{"$f":"(Monthly!CR657/Monthly!CR656)-1","v":2.4739503761181947E-3},"--","--",null,null,null,null,null,{"$f":"(Monthly!CZ657/Monthly!CZ656)-1","v":-1.6793444944266378E-3},{"$f":"(Monthly!DA657/Monthly!DA656)-1","v":1.3245377103678901E-3},null,null,null,null,null,"--",{"$f":"((Monthly!DH657-Monthly!DH656)*60)","v":6.0000000000000853},{"$f":"((Monthly!DI657-Monthly!DI656)*100)","v":-19.999999999999574},{"$f":"((Monthly!DJ657-Monthly!DJ656)*100)","v":0},{"$f":"((Monthly!DK657-Monthly!DK656)*100)","v":-9.9999999999999645},{"$f":"Monthly!DL657-Monthly!DL656","v":-11},null,null,null,{"$f":"Monthly!DP657-Monthly!DP656","v":132},null,null,null,{"$f":"(Monthly!DT657/Monthly!DT656)-1","v":8.8873812754409753E-2},{"$f":"Monthly!DU657-Monthly!DU656","v":-1.2999999999999972},{"$f":"(Monthly!DV657-Monthly!DV656)","v":2.2000000000000455},{"$f":"(Monthly!DW657-Monthly!DW656)","v":-4.7000000000000455},{"$f":"(Monthly!DX657-Monthly!DX656)","v":-1.6999999999999318},{"$f":"(Monthly!DY657-Monthly!DY656)","v":-2.3000000000000114},{"$f":"(Monthly!DZ657-Monthly!DZ656)","v":0.60000000000002274},{"$f":"(Monthly!EA657-Monthly!EA656)","v":0.39999999999997726},{"$f":"(Monthly!EB657-Monthly!EB656)","v":0.19999999999998863},{"$f":"(Monthly!EC657-Monthly!EC656)","v":-3},null,null,null,null,null,null,null,null,null,null,null,null,null,{"$f":"(Monthly!EQ657/Monthly!EQ656)-1","v":-8.3538083538082786E-3},{"$f":"(Monthly!ER657/Monthly!ER656)-1","v":1.6375545851528006E-3},{"$f":"(Monthly!ES657/Monthly!ES656)-1","v":6.1274509803932453E-4},null,null,null,null,null,{"$f":"((Monthly!EY657-Monthly!EY656)*100)","v":0},{"$f":"((Monthly!EZ657-Monthly!EZ656)*100)","v":0},{"$f":"((Monthly!FA657-Monthly!FA656)*100)","v":2.9999999999999805},{"$f":"((Monthly!FB657-Monthly!FB656)*100)","v":-7.0000000000000284},"--",{"$f":"((Monthly!FD657-Monthly!FD656)*100)","v":-2.9999999999999805},{"$f":"((Monthly!FE657-Monthly!FE656)*100)","v":-1.0000000000000009},{"$f":"((Monthly!FF657-Monthly!FF656)*100)","v":0},{"$f":"((Monthly!FG657-Monthly!FG656)*100)","v":-1.0000000000000009},{"$f":"((Monthly!FH657-Monthly!FH656)*100)","v":-3.9999999999999925},{"$f":"((Monthly!FI657-Monthly!FI656)*100)","v":-10.000000000000009},null,null,null,null,null,null,{"$f":"(Monthly!FP657/Monthly!FP656)-1","v":9.9270664505672901E-3},{"$f":"(Monthly!FQ657/Monthly!FQ656)-1","v":-4.6146230858894466E-3},{"$f":"(Monthly!FR657/Monthly!FR656)-1","v":1.2893871728073325E-2},{"$f":"(Monthly!FS657/Monthly!FS656)-1","v":-1.0559580699861293E-2},{"$f":"(Monthly!FT657/Monthly!FT656)-1","v":6.3950786884583444E-3},{"$f":"(Monthly!FU657/Monthly!FU656)-1","v":1.1830404331317323E-2},{"$f":"(Monthly!FV657/Monthly!FV656)-1","v":3.2717189719932982E-3},{"$f":"(Monthly!FW657/Monthly!FW656)-1","v":-1.7721097644887496E-2},{"$f":"(Monthly!FX657/Monthly!FX656)-1","v":-4.3771355812004309E-2},null,null,null,null,null,{"$f":"(Monthly!GD657/Monthly!GD656)-1","v":-3.248855643630677E-2},{"$f":"(Monthly!GE657/Monthly!GE656)-1","v":-2.3722137677915978E-2},{"$f":"(Monthly!GF657/Monthly!GF656)-1","v":-7.6403462749213169E-2},{"$f":"(Monthly!GG657/Monthly!GG656)-1","v":-2.2960429897410872E-2},{"$f":"(Monthly!GH657/Monthly!GH656)-1","v":9.3007233895969765E-3},{"$f":"(Monthly!GI657/Monthly!GI656)-1","v":6.5595716198125764E-2},{"$f":"(Monthly!GJ657/Monthly!GJ656)-1","v":5.428571428571427E-2},{"$f":"(Monthly!GK657/Monthly!GK656)-1","v":-2.1540118470651626E-2},{"$f":"(Monthly!GL657/Monthly!GL656)-1","v":-1.9956193721100024E-2}]
["2013-03-01",null,null,null,{"$f":"(Monthly!E661/Monthly!E660)-1","v":-6.4705826379052311E-4},{"$f":"(Monthly!F661/Monthly!F660)-1","v":-1.0965416762518165E-2},{"$f":"(Monthly!G661/Monthly!G660)-1","v":-3.0825337559156063E-3},{"$f":"(Monthly!H661/Monthly!H660)-1","v":1.9375081331964861E-3},null,null,null,null,null,null,null,null,null,null,null,null,null,null,null,{"$f":"(Monthly!X661-Monthly!X660)","v":0.20000000000000284},{"$f":"(Monthly!Y661/Monthly!Y660)-1","v":6.2238062702946184E-3},null,null,null,null,null,null,null,null,null,null,null,null,null,{"$f":"(Monthly!AM661/Monthly!AM660)-1","v":3.0049148935960002E-3},{"$f":"(Monthly!AN661/Monthly!AN660)-1","v":-1.6959815098573916E-3},{"$f":"(Monthly!AO661/Monthly!AO660)-1","v":-9.9384297761362372E-4},{"$f":"((Monthly!AP661-Monthly!AP660)*100)","v":2.0000000000000018},{"$f":"Monthly!AQ661-Monthly!AQ660","v":-2.1000000000000014},{"$f":"Monthly!AR661-Monthly!AR660","v":-4},{"$f":"Monthly!AS661-Monthly!AS660","v":1},{"$f":"Monthly!AT661-Monthly!AT660","v":1.6000000000000014},{"$f":"Monthly!AU661-Monthly!AU660","v":2.5},{"$f":"Monthly!AV661-Monthly!AV660","v":0},{"$f":"Monthly!AW661-Monthly!AW660","v":-2},{"$f":"Monthly!AX661-Monthly!AX660","v":-6.3999999999999986},{"$f":"Monthly!AY661-Monthly!AY660","v":-7},{"$f":"Monthly!AZ661-Monthly!AZ660","v":-5.3999999999999986},{"$f":"Monthly!BA661-Monthly!BA660","v":-2},{"$f":"Monthly!BB661-Monthly!BB660","v":0.5},{"$f":"(Monthly!BC661/Monthly!BC660)-1","v":7.3450349078463262E-3},null,null,null,null,null,null,null,null,null,{"$f":"(Monthly!BM661/Monthly!BM660)-1","v":-6.6130104679995583E-3},{"$f":"(Monthly!BN661/Monthly!BN660)-1","v":-7.897950729269243E-3},null,null,null,null,null,{"$f":"(Monthly!BT661/Monthly!BT660)-1","v":3.2044536847837257E-3},null,null,null,{"$f":"(Monthly!BX661/Monthly!BX660)-1","v":2.9896907216494739E-2},{"$f":"(Monthly!BY661/Monthly!BY660)-1","v":-4.0164778578784754E-2},{"$f":"(Monthly!BZ661/Monthly!BZ660)-1","v":1.1691608765366013E-2},{"$f":"(Monthly!CA661/Monthly!CA660)-1","v":-4.6752914051492178E-3},{"$f":"Monthly!CB661-Monthly!CB660","v":-0.71298570328792721},{"$f":"Monthly!CC661-Monthly!CC660","v":-0.852985703287926},{"$f":"(Monthly!CD661/Monthly!CD660)-1","v":6.5359477124182774E-3},{"$f":"(Monthly!CE661/Monthly!CE660)-1","v":2.277904328018221E-2},null,{"$f":"(Monthly!CG661/Monthly!CG660)-1","v":1.5789473684210575E-2},{"$f":"(Monthly!CH661/Monthly!CH660)-1","v":2.0202020202020332E-3},null,{"$f":"(Monthly!CJ661/Monthly!CJ660)-1","v":2.277904328018221E-2},{"$f":"(Monthly!CK661/Monthly!CK660)-1","v":5.2448557305440069E-4},{"$f":"(Monthly!CL661/Monthly!CL660)-1","v":2.4642426331208167E-2},{"$f":"(Monthly!CM661/Monthly!CM660)-1","v":-6.3348416289592757E-2},{"$f":"(Monthly!CN661/Monthly!CN660)-1","v":1.075851934784211E-3},{"$f":"(Monthly!CO661/Monthly!CO660)-1","v":9.8206978647421561E-3},{"$f":"(Monthly!CP661/Monthly!CP660)-1","v":3.5237162307992786E-3},null,{"$f":"(Monthly!CR661/Monthly!CR660)-1","v":-1.5509994514628644E-3},"--","--",null,null,null,null,null,{"$f":"(Monthly!CZ661/Monthly!CZ660)-1","v":-2.9443955619460338E-3},{"$f":"(Monthly!DA661/Monthly!DA660)-1","v":8.4693662592494334E-4},null,null,null,null,null,"--",{"$f":"((Monthly!DH661-Monthly!DH660)*60)","v":0},{"$f":"((Monthly!DI661-Monthly!DI660)*100)","v":-10.000000000000142},{"$f":"((Monthly!DJ661-Monthly!DJ660)*100)","v":-59.999999999999964},{"$f":"((Monthly!DK661-Monthly!DK660)*100)","v":-20.000000000000018},{"$f":"Monthly!DL661-Monthly!DL660","v":2},null,null,null,{"$f":"Monthly!DP661-Monthly!DP660","v":130},null,null,null,{"$f":"(Monthly!DT661/Monthly!DT660)-1","v":8.5348506401139446E-4},{"$f":"Monthly!DU661-Monthly!DU660","v":0.40000000000000213},{"$f":"(Monthly!DV661-Monthly!DV660)","v":-5},{"$f":"(Monthly!DW661-Monthly!DW660)","v":0.90000000000009095},{"$f":"(Monthly!DX661-Monthly!DX660)","v":1.7999999999999545},{"$f":"(Monthly!DY661-Monthly!DY660)","v":0.69999999999998863},{"$f":"(Monthly!DZ661-Monthly!DZ660)","v":1.0999999999999091},{"$f":"(Monthly!EA661-Monthly!EA660)","v":1.3000000000000114},{"$f":"(Monthly!EB661-Monthly!EB660)","v":-0.19999999999998863},{"$f":"(Monthly!EC661-Monthly!EC660)","v":-0.89999999999997726},null,null,null,null,null,null,null,null,null,null,null,null,null,{"$f":"(Monthly!EQ661/Monthly!EQ660)-1","v":-1.468428781204123E-3},{"$f":"(Monthly!ER661/Monthly!ER660)-1","v":1.6286644951140072E-3},{"$f":"(Monthly!ES661/Monthly!ES660)-1","v":1.2232415902140303E-3},null,null,null,null,null,{"$f":"((Monthly!EY661-Monthly!EY660)*100)","v":0},{"$f":"((Monthly!EZ661-Monthly!EZ660)*100)","v":-0.99999999999999811},{"$f":"((Monthly!FA661-Monthly!FA660)*100)","v":3.0000000000000249},{"$f":"((Monthly!FB661-Monthly!FB660)*100)","v":0},"--",{"$f":"((Monthly!FD661-Monthly!FD660)*100)","v":4.0000000000000036},{"$f":"((Monthly!FE661-Monthly!FE660)*100)","v":-1.0000000000000009},{"$f":"((Monthly!FF661-Monthly!FF660)*100)","v":-1.0000000000000009},{"$f":"((Monthly!FG661-Monthly!FG660)*100)","v":-1.0000000000000009},{"$f":"((Monthly!FH661-Monthly!FH660)*100)","v":-3.0000000000000027},{"$f":"((Monthly!FI661-Monthly!FI660)*100)","v":-2.0000000000000018},null,null,null,null,null,null,{"$f":"(Monthly!FP661/Monthly!FP660)-1","v":1.4458308575955536E-2},{"$f":"(Monthly!FQ661/Monthly!FQ660)-1","v":-2.7116794762769292E-3},{"$f":"(Monthly!FR661/Monthly!FR660)-1","v":-1.7674009226005705E-2},{"$f":"(Monthly!FS661/Monthly!FS660)-1","v":-2.9519742264179305E-2},{"$f":"(Monthly!FT661/Monthly!FT660)-1","v":8.7570729047865559E-3},{"$f":"(Monthly!FU661/Monthly!FU660)-1","v":2.2138970964449722E-2},{"$f":"(Monthly!FV661/Monthly!FV660)-1","v":9.6485662555515939E-2},{"$f":"(Monthly!FW661/Monthly!FW660)-1","v":-0.16640655779761604},{"$f":"(Monthly!FX661/Monthly!FX660)-1","v":4.9029913639205835E-2},null,null,null,null,null,{"$f":"(Monthly!GD661/Monthly!GD660)-1","v":-2.3814519513218557E-2},{"$f":"(Monthly!GE661/Monthly!GE660)-1","v":-6.5316673847479523E-2},{"$f":"(Monthly!GF661/Monthly!GF660)-1","v":7.976445396145726E-3},{"$f":"(Monthly!GG661/Monthly!GG660)-1","v":-1.0459742155193408E-2},{"$f":"(Monthly!GH661/Monthly!GH660)-1","v":-7.9465280356479817E-2},{"$f":"(Monthly!GI661/Monthly!GI660)-1","v":-3.6423841059602613E-2},{"$f":"(Monthly!GJ661/Monthly!GJ660)-1","v":0.13897280966767367},{"$f":"(Monthly!GK661/Monthly!GK660)-1","v":1.5756923904275411E-2},{"$f":"(Monthly!GL661/Monthly!GL660)-1","v":-3.1764409765919877E-2}]
["2013-08-01",null,null,null,{"$f":"(Monthly!E666/Monthly!E665)-1","v":9.5698313435677029E-4},{"$f":"(Monthly!F666/Monthly!F665)-1","v":1.9762845849804478E-3},{"$f":"(Monthly!G666/Monthly!G665)-1","v":-6.1640587956378612E-3},{"$f":"(Monthly!H666/Monthly!H665)-1","v":3.2739597605826454E-3},null,null,null,null,null,null,null,null,null,null,null,null,null,null,null,{"$f":"(Monthly!X666-Monthly!X665)","v":0.59999999999999432},{"$f":"(Monthly!Y666/Monthly!Y665)-1","v":9.3314326744753373E-4},null,null,null,null,null,null,null,null,null,null,null,null,null,{"$f":"(Monthly!AM666/Monthly!AM665)-1","v":7.7021037148188309E-3},{"$f":"(Monthly!AN666/Monthly!AN665)-1","v":9.8814722644700037E-3},{"$f":"(Monthly!AO666/Monthly!AO665)-1","v":4.7210292718187219E-3},{"$f":"((Monthly!AP666-Monthly!AP665)*100)","v":0},{"$f":"Monthly!AQ666-Monthly!AQ665","v":1.8000000000000043},{"$f":"Monthly!AR666-Monthly!AR665","v":1.5},{"$f":"Monthly!AS666-Monthly!AS665","v":-5},{"$f":"Monthly!AT666-Monthly!AT665","v":-1.1000000000000014},{"$f":"Monthly!AU666-Monthly!AU665","v":2},{"$f":"Monthly!AV666-Monthly!AV665","v":0.5},{"$f":"Monthly!AW666-Monthly!AW665","v":0.5},{"$f":"Monthly!AX666-Monthly!AX665","v":4.9000000000000057},{"$f":"Monthly!AY666-Monthly!AY665","v":5},{"$f":"Monthly!AZ666-Monthly!AZ665","v":-2.6000000000000014},{"$f":"Monthly!BA666-Monthly!BA665","v":0.19999999999999574},{"$f":"Monthly!BB666-Monthly!BB665","v":0.70000000000000284},{"$f":"(Monthly!BC666/Monthly!BC665)-1","v":5.7504312823453141E-4},null,null,null,null,null,null,null,null,null,{"$f":"(Monthly!BM666/Monthly!BM665)-1","v":-1.7191826350598793E-3},{"$f":"(Monthly!BN666/Monthly!BN665)-1","v":-2.3175747183410422E-3},null,null,null,null,null,{"$f":"(Monthly!BT666/Monthly!BT665)-1","v":2.3681081726492081E-3},null,null,null,{"$f":"(Monthly!BX666/Monthly!BX665)-1","v":7.8563411896745983E-3},{"$f":"(Monthly!BY666/Monthly!BY665)-1","v":-3.9553752535496978E-2},{"$f":"(Monthly!BZ666/Monthly!BZ665)-1","v":1.0906355772847043E-2},{"$f":"(Monthly!CA666/Monthly!CA665)-1","v":9.5871149175508208E-4},{"$f":"Monthly!CB666-Monthly!CB665","v":-0.39969691836576615},{"$f":"Monthly!CC666-Monthly!CC665","v":-0.39969691836576615},{"$f":"(Monthly!CD666/Monthly!CD665)-1","v":2.3529411764705799E-2},{"$f":"(Monthly!CE666/Monthly!CE665)-1","v":1.0638297872340496E-2},null,{"$f":"(Monthly!CG666/Monthly!CG665)-1","v":-1.3392857142857095E-2},{"$f":"(Monthly!CH666/Monthly!CH665)-1","v":-9.2936802973977439E-3},null,{"$f":"(Monthly!CJ666/Monthly!CJ665)-1","v":1.0638297872340496E-2},{"$f":"(Monthly!CK666/Monthly!CK665)-1","v":4.0980986810796871E-3},{"$f":"(Monthly!CL666/Monthly!CL665)-1","v":3.760789149198529E-2},{"$f":"(Monthly!CM666/Monthly!CM665)-1","v":4.3478260869565188E-2},{"$f":"(Monthly!CN666/Monthly!CN665)-1","v":2.9985527216633834E-3},{"$f":"(Monthly!CO666/Monthly!CO665)-1","v":7.6961952205616413E-3},{"$f":"(Monthly!CP666/Monthly!CP665)-1","v":5.0796928017866616E-3},null,{"$f":"(Monthly!CR666/Monthly!CR665)-1","v":1.0140161284566407E-3},"--","--",null,null,null,null,null,{"$f":"(Monthly!CZ666/Monthly!CZ665)-1","v":1.8635487292228969E-3},{"$f":"(Monthly!DA666/Monthly!DA665)-1","v":1.9113591174395594E-3},null,null,null,null,null,"--",{"$f":"((Monthly!DH666-Monthly!DH665)*60)","v":12.000000000000171},{"$f":"((Monthly!DI666-Monthly!DI665)*100)","v":0},{"$f":"((Monthly!DJ666-Monthly!DJ665)*100)","v":-20.000000000000107},{"$f":"((Monthly!DK666-Monthly!DK665)*100)","v":0},{"$f":"Monthly!DL666-Monthly!DL665","v":36},null,null,null,{"$f":"Monthly!DP666-Monthly!DP665","v":261},null,null,null,{"$f":"(Monthly!DT666/Monthly!DT665)-1","v":-3.9855072463768071E-2},{"$f":"Monthly!DU666-Monthly!DU665","v":0.30000000000000071},{"$f":"(Monthly!DV666-Monthly!DV665)","v":3.5},{"$f":"(Monthly!DW666-Monthly!DW665)","v":8.2999999999999545},{"$f":"(Monthly!DX666-Monthly!DX665)","v":6.1000000000000227},{"$f":"(Monthly!DY666-Monthly!DY665)","v":2},{"$f":"(Monthly!DZ666-Monthly!DZ665)","v":4.1000000000000227},{"$f":"(Monthly!EA666-Monthly!EA665)","v":2.5},{"$f":"(Monthly!EB666-Monthly!EB665)","v":1.6000000000000227},{"$f":"(Monthly!EC666-Monthly!EC665)","v":2.1999999999999886},null,null,null,null,null,null,null,null,null,null,null,null,null,{"$f":"(Monthly!EQ666/Monthly!EQ665)-1","v":-9.7847358121339045E-4},{"$f":"(Monthly!ER666/Monthly!ER665)-1","v":5.3966540744743163E-4},{"$f":"(Monthly!ES666/Monthly!ES665)-1","v":0},null,null,null,null,null,{"$f":"((Monthly!EY666-Monthly!EY665)*100)","v":0},{"$f":"((Monthly!EZ666-Monthly!EZ665)*100)","v":-0.99999999999999956},{"$f":"((Monthly!FA666-Monthly!FA665)*100)","v":20.000000000000018},{"$f":"((Monthly!FB666-Monthly!FB665)*100)","v":9.9999999999999645},"--",{"$f":"((Monthly!FD666-Monthly!FD665)*100)","v":8.9999999999999858},{"$f":"((Monthly!FE666-Monthly!FE665)*100)","v":0},{"$f":"((Monthly!FF666-Monthly!FF665)*100)","v":1.0000000000000009},{"$f":"((Monthly!FG666-Monthly!FG665)*100)","v":1.9999999999999962},{"$f":"((Monthly!FH666-Monthly!FH665)*100)","v":12.000000000000011},{"$f":"((Monthly!FI666-Monthly!FI665)*100)","v":16.000000000000014},null,null,null,null,null,null,{"$f":"(Monthly!FP666/Monthly!FP665)-1","v":4.8067679292440602E-4},{"$f":"(Monthly!FQ666/Monthly!FQ665)-1","v":-2.1192312081247389E-3},{"$f":"(Monthly!FR666/Monthly!FR665)-1","v":1.1793284488500699E-2},{"$f":"(Monthly!FS666/Monthly!FS665)-1","v":1.7267726161369179E-2},{"$f":"(Monthly!FT666/Monthly!FT665)-1","v":-1.1665079980723858E-3},{"$f":"(Monthly!FU666/Monthly!FU665)-1","v":-1.1748358247225754E-2},{"$f":"(Monthly!FV666/Monthly!FV665)-1","v":6.0429973694559047E-2},{"$f":"(Monthly!FW666/Monthly!FW665)-1","v":9.3014505005102333E-3},{"$f":"(Monthly!FX666/Monthly!FX665)-1","v":1.8788833724767251E-2},null,null,null,null,null,{"$f":"(Monthly!GD666/Monthly!GD665)-1","v":1.8152288143689521E-2},{"$f":"(Monthly!GE666/Monthly!GE665)-1","v":3.2049975919682838E-2},{"$f":"(Monthly!GF666/Monthly!GF665)-1","v":-1.3125779682160887E-2},{"$f":"(Monthly!GG666/Monthly!GG665)-1","v":9.8084646277416532E-3},{"$f":"(Monthly!GH666/Monthly!GH665)-1","v":0.10865010475905423},{"$f":"(Monthly!GI666/Monthly!GI665)-1","v":-0.11595547309833021},{"$f":"(Monthly!GJ666/Monthly!GJ665)-1","v":-6.3186813186813184E-2},{"$f":"(Monthly!GK666/Monthly!GK665)-1","v":-5.9676407876583459E-2},{"$f":"(Monthly!GL666/Monthly!GL665)-1","v":-1.5664805680524641E-2}]
["2014-02-01",null,null,null,{"$f":"(Monthly!E672/Monthly!E671)-1","v":3.7783257235539658E-3},{"$f":"(Monthly!F672/Monthly!F671)-1","v":2.487637885127425E-2},{"$f":"(Monthly!G672/Monthly!G671)-1","v":4.6232876712328785E-3},{"$f":"(Monthly!H672/Monthly!H671)-1","v":1.4227584440718033E-4},null,null,null,null,null,null,null,null,null,null,null,null,null,null,null,{"$f":"(Monthly!X672-Monthly!X671)","v":0.70000000000000284},{"$f":"(Monthly!Y672/Monthly!Y671)-1","v":2.0796612364933464E-2},null,null,null,null,null,null,null,null,null,null,null,null,null,{"$f":"(Monthly!AM672/Monthly!AM671)-1","v":9.9691734328202219E-3},{"$f":"(Monthly!AN672/Monthly!AN671)-1","v":1.105297606219513E-2},{"$f":"(Monthly!AO672/Monthly!AO671)-1","v":4.5866654268178486E-3},{"$f":"((Monthly!AP672-Monthly!AP671)*100)","v":-1.0000000000000009},{"$f":"Monthly!AQ672-Monthly!AQ671","v":2.6999999999999957},{"$f":"Monthly!AR672-Monthly!AR671","v":4},{"$f":"Monthly!AS672-Monthly!AS671","v":2.5},{"$f":"Monthly!AT672-Monthly!AT671","v":0},{"$f":"Monthly!AU672-Monthly!AU671","v":-1},{"$f":"Monthly!AV672-Monthly!AV671","v":0},{"$f":"Monthly!AW672-Monthly!AW671","v":8.5},{"$f":"Monthly!AX672-Monthly!AX671","v":3.2999999999999972},{"$f":"Monthly!AY672-Monthly!AY671","v":-0.5},{"$f":"Monthly!AZ672-Monthly!AZ671","v":-6.5999999999999943},{"$f":"Monthly!BA672-Monthly!BA671","v":4.2000000000000028},{"$f":"Monthly!BB672-Monthly!BB671","v":-0.29999999999999716},{"$f":"(Monthly!BC672/Monthly!BC671)-1","v":-1.4838985928802395E-2},null,null,null,null,null,null,null,null,null,{"$f":"(Monthly!BM672/Monthly!BM671)-1","v":1.2695797516714347E-2},{"$f":"(Monthly!BN672/Monthly!BN671)-1","v":1.2517456088388723E-2},null,null,null,null,null,{"$f":"(Monthly!BT672/Monthly!BT671)-1","v":5.3169717866841104E-3},null,null,null,{"$f":"(Monthly!BX672/Monthly!BX671)-1","v":5.0997782705099803E-2},{"$f":"(Monthly!BY672/Monthly!BY671)-1","v":3.096903096903092E-2},{"$f":"(Monthly!BZ672/Monthly!BZ671)-1","v":4.8243001786778539E-3},{"$f":"(Monthly!CA672/Monthly!CA671)-1","v":1.6357119582925961E-2},{"$f":"Monthly!CB672-Monthly!CB671","v":-0.37572436431671008},{"$f":"Monthly!CC672-Monthly!CC671","v":-0.30572436431670624},{"$f":"(Monthly!CD672/Monthly!CD671)-1","v":-1.0526315789473717E-2},{"$f":"(Monthly!CE672/Monthly!CE671)-1","v":-5.3691275167785268E-2},null,{"$f":"(Monthly!CG672/Monthly!CG671)-1","v":1.0638297872340496E-2},{"$f":"(Monthly!CH672/Monthly!CH671)-1","v":-2.1413276231263545E-3},null,{"$f":"(Monthly!CJ672/Monthly!CJ671)-1","v":-5.3691275167785268E-2},{"$f":"(Monthly!CK672/Monthly!CK671)-1","v":7.1058084073811756E-3},{"$f":"(Monthly!CL672/Monthly!CL671)-1","v":4.8953201970443283E-2},{"$f":"(Monthly!CM672/Monthly!CM671)-1","v":2.9360967184801412E-2},{"$f":"(Monthly!CN672/Monthly!CN671)-1","v":6.1806288789885144E-3},{"$f":"(Monthly!CO672/Monthly!CO671)-1","v":8.2088510400670778E-3},{"$f":"(Monthly!CP672/Monthly!CP671)-1","v":5.8165500401541337E-3},null,{"$f":"(Monthly!CR672/Monthly!CR671)-1","v":3.186209916154592E-3},"--","--",null,null,null,null,null,{"$f":"(Monthly!CZ672/Monthly!CZ671)-1","v":1.2192790534655273E-3},{"$f":"(Monthly!DA672/Monthly!DA671)-1","v":8.9399582237015274E-4},null,null,null,null,null,"--",{"$f":"((Monthly!DH672-Monthly!DH671)*60)","v":-6.0000000000000853},{"$f":"((Monthly!DI672-Monthly!DI671)*100)","v":0},{"$f":"((Monthly!DJ672-Monthly!DJ671)*100)","v":-9.9999999999999645},{"$f":"((Monthly!DK672-Monthly!DK671)*100)","v":10.000000000000053},{"$f":"Monthly!DL672-Monthly!DL671","v":22},null,null,null,{"$f":"Monthly!DP672-Monthly!DP671","v":151},null,null,null,{"$f":"(Monthly!DT672/Monthly!DT671)-1","v":4.5871559633028358E-3},{"$f":"Monthly!DU672-Monthly!DU671","v":0.30000000000000071},{"$f":"(Monthly!DV672-Monthly!DV671)","v":1.2000000000000455},{"$f":"(Monthly!DW672-Monthly!DW671)","v":-2.2999999999999545},{"$f":"(Monthly!DX672-Monthly!DX671)","v":0.89999999999997726},{"$f":"(Monthly!DY672-Monthly!DY671)","v":1.0999999999999943},{"$f":"(Monthly!DZ672-Monthly!DZ671)","v":-0.20000000000004547},{"$f":"(Monthly!EA672-Monthly!EA671)","v":-0.59999999999996589},{"$f":"(Monthly!EB672-Monthly!EB671)","v":0.40000000000000568},{"$f":"(Monthly!EC672-Monthly!EC671)","v":-3.2000000000000455},null,null,null,null,null,null,null,null,null,null,null,null,null,{"$f":"(Monthly!EQ672/Monthly!EQ671)-1","v":9.3228655544650429E-3},{"$f":"(Monthly!ER672/Monthly!ER671)-1","v":1.0666666666665492E-3},{"$f":"(Monthly!ES672/Monthly!ES671)-1","v":1.2070006035003189E-3},null,null,null,null,null,{"$f":"((Monthly!EY672-Monthly!EY671)*100)","v":0},{"$f":"((Monthly!EZ672-Monthly!EZ671)*100)","v":0},{"$f":"((Monthly!FA672-Monthly!FA671)*100)","v":-4.0000000000000036},{"$f":"((Monthly!FB672-Monthly!FB671)*100)","v":-9.0000000000000746},"--",{"$f":"((Monthly!FD672-Monthly!FD671)*100)","v":-12.999999999999989},{"$f":"((Monthly!FE672-Monthly!FE671)*100)","v":1.0000000000000002},{"$f":"((Monthly!FF672-Monthly!FF671)*100)","v":0},{"$f":"((Monthly!FG672-Monthly!FG671)*100)","v":-6},{"$f":"((Monthly!FH672-Monthly!FH671)*100)","v":-12.999999999999989},{"$f":"((Monthly!FI672-Monthly!FI671)*100)","v":-14.999999999999991},null,null,null,null,null,null,{"$f":"(Monthly!FP672/Monthly!FP671)-1","v":1.0420475319926847E-2},{"$f":"(Monthly!FQ672/Monthly!FQ671)-1","v":5.0736254110956835E-3},{"$f":"(Monthly!FR672/Monthly!FR671)-1","v":5.3547118438965757E-3},{"$f":"(Monthly!FS672/Monthly!FS671)-1","v":3.4513144367749327E-3},{"$f":"(Monthly!FT672/Monthly!FT671)-1","v":2.4286959770831729E-3},{"$f":"(Monthly!FU672/Monthly!FU671)-1","v":-1.8979467666796479E-3},{"$f":"(Monthly!FV672/Monthly!FV671)-1","v":-5.8559192645450397E-2},{"$f":"(Monthly!FW672/Monthly!FW671)-1","v":-0.20003543770780563},{"$f":"(Monthly!FX672/Monthly!FX671)-1","v":1.9244916308681415E-2},null,null,null,null,null,{"$f":"(Monthly!GD672/Monthly!GD671)-1","v":6.5525258930458463E-2},{"$f":"(Monthly!GE672/Monthly!GE671)-1","v":7.2142064372919812E-3},{"$f":"(Monthly!GF672/Monthly!GF671)-1","v":1.24557783018866E-2},{"$f":"(Monthly!GG672/Monthly!GG671)-1","v":2.3181146856739332E-2},{"$f":"(Monthly!GH672/Monthly!GH671)-1","v":-7.0364663585002596E-2},{"$f":"(Monthly!GI672/Monthly!GI671)-1","v":-0.25190839694656486},{"$f":"(Monthly!GJ672/Monthly!GJ671)-1","v":0.13656387665198233},{"$f":"(Monthly!GK672/Monthly!GK671)-1","v":-4.8067302122281386E-2},{"$f":"(Monthly!GL672/Monthly!GL671)-1","v":-3.4175942381442281E-2}]
["2014-06-01",null,null,null,{"$f":"(Monthly!E676/Monthly!E675)-1","v":3.5280064448621751E-3},{"$f":"(Monthly!F676/Monthly!F675)-1","v":7.8870007886999716E-3},{"$f":"(Monthly!G676/Monthly!G675)-1","v":2.4598159379107809E-3},{"$f":"(Monthly!H676/Monthly!H675)-1","v":3.1542617895838898E-3},null,null,null,null,null,null,null,null,null,null,null,null,null,null,null,{"$f":"(Monthly!X676-Monthly!X675)","v":0.20000000000000284},{"$f":"(Monthly!Y676/Monthly!Y675)-1","v":8.1689010752732383E-3},null,null,null,null,null,null,null,null,null,null,null,null,null,{"$f":"(Monthly!AM676/Monthly!AM675)-1","v":3.7105098120573388E-3},{"$f":"(Monthly!AN676/Monthly!AN675)-1","v":3.3409846670400256E-3},{"$f":"(Monthly!AO676/Monthly!AO675)-1","v":7.3106440231196501E-4},{"$f":"((Monthly!AP676-Monthly!AP675)*100)","v":0},{"$f":"Monthly!AQ676-Monthly!AQ675","v":-0.5},{"$f":"Monthly!AR676-Monthly!AR675","v":-4.5},{"$f":"Monthly!AS676-Monthly!AS675","v":0},{"$f":"Monthly!AT676-Monthly!AT675","v":0},{"$f":"Monthly!AU676-Monthly!AU675","v":-2},{"$f":"Monthly!AV676-Monthly!AV675","v":2.5},{"$f":"Monthly!AW676-Monthly!AW675","v":0},{"$f":"Monthly!AX676-Monthly!AX675","v":2},{"$f":"Monthly!AY676-Monthly!AY675","v":-2},{"$f":"Monthly!AZ676-Monthly!AZ675","v":-1},{"$f":"Monthly!BA676-Monthly!BA675","v":-1.3000000000000043},{"$f":"Monthly!BB676-Monthly!BB675","v":-1.5},{"$f":"(Monthly!BC676/Monthly!BC675)-1","v":6.4088077204984106E-2},null,null,null,null,null,null,null,null,null,{"$f":"(Monthly!BM676/Monthly!BM675)-1","v":1.7498054492626203E-3},{"$f":"(Monthly!BN676/Monthly!BN675)-1","v":1.4064188542857181E-3},null,null,null,null,null,{"$f":"(Monthly!BT676/Monthly!BT675)-1","v":5.1196485642508449E-3},null,null,null,{"$f":"(Monthly!BX676/Monthly!BX675)-1","v":-5.9777102330293874E-2},{"$f":"(Monthly!BY676/Monthly!BY675)-1","v":7.9443892750745704E-3},{"$f":"(Monthly!BZ676/Monthly!BZ675)-1","v":9.9812118365449898E-4},{"$f":"(Monthly!CA676/Monthly!CA675)-1","v":1.653387647516924E-2},{"$f":"Monthly!CB676-Monthly!CB675","v":-0.31649684438495029},{"$f":"Monthly!CC676-Monthly!CC675","v":-0.45649684438495086},{"$f":"(Monthly!CD676/Monthly!CD675)-1","v":2.5906735751295429E-2},{"$f":"(Monthly!CE676/Monthly!CE675)-1","v":-7.9646017699115057E-2},null,{"$f":"(Monthly!CG676/Monthly!CG675)-1","v":1.777777777777767E-2},{"$f":"(Monthly!CH676/Monthly!CH675)-1","v":2.2448979591836782E-2},null,{"$f":"(Monthly!CJ676/Monthly!CJ675)-1","v":-7.9646017699115057E-2},{"$f":"(Monthly!CK676/Monthly!CK675)-1","v":5.5138935159060321E-3},{"$f":"(Monthly!CL676/Monthly!CL675)-1","v":2.8459670892905242E-2},{"$f":"(Monthly!CM676/Monthly!CM675)-1","v":-5.9561128526645746E-2},{"$f":"(Monthly!CN676/Monthly!CN675)-1","v":4.6260016683941085E-3},{"$f":"(Monthly!CO676/Monthly!CO675)-1","v":3.1383893240182203E-3},{"$f":"(Monthly!CP676/Monthly!CP675)-1","v":4.923038749809594E-3},null,{"$f":"(Monthly!CR676/Monthly!CR675)-1","v":9.817131373912602E-4},"--","--",null,null,null,null,null,{"$f":"(Monthly!CZ676/Monthly!CZ675)-1","v":8.3181326847725501E-4},{"$f":"(Monthly!DA676/Monthly!DA675)-1","v":1.0690955619907516E-3},null,null,null,null,null,"--",{"$f":"((Monthly!DH676-Monthly!DH675)*60)","v":0},{"$f":"((Monthly!DI676-Monthly!DI675)*100)","v":0},{"$f":"((Monthly!DJ676-Monthly!DJ675)*100)","v":-9.9999999999999645},{"$f":"((Monthly!DK676-Monthly!DK675)*100)","v":-20.000000000000018},{"$f":"Monthly!DL676-Monthly!DL675","v":21},null,null,null,{"$f":"Monthly!DP676-Monthly!DP675","v":304},null,null,null,{"$f":"(Monthly!DT676/Monthly!DT675)-1","v":-9.6798212956068497E-3},{"$f":"Monthly!DU676-Monthly!DU675","v":-1},{"$f":"(Monthly!DV676-Monthly!DV675)","v":4.3999999999998636},{"$f":"(Monthly!DW676-Monthly!DW675)","v":18.100000000000136},{"$f":"(Monthly!DX676-Monthly!DX675)","v":1.3999999999999773},{"$f":"(Monthly!DY676-Monthly!DY675)","v":0.89999999999997726},{"$f":"(Monthly!DZ676-Monthly!DZ675)","v":0.80000000000006821},{"$f":"(Monthly!EA676-Monthly!EA675)","v":-1.1999999999999886},{"$f":"(Monthly!EB676-Monthly!EB675)","v":2},{"$f":"(Monthly!EC676-Monthly!EC675)","v":16.400000000000034},null,null,null,null,null,null,null,null,null,null,null,null,null,{"$f":"(Monthly!EQ676/Monthly!EQ675)-1","v":1.4423076923077982E-3},{"$f":"(Monthly!ER676/Monthly!ER675)-1","v":1.5932023366966863E-3},{"$f":"(Monthly!ES676/Monthly!ES675)-1","v":6.0132291040293495E-4},null,null,null,null,null,{"$f":"((Monthly!EY676-Monthly!EY675)*100)","v":0},{"$f":"((Monthly!EZ676-Monthly!EZ675)*100)","v":1.0000000000000009},{"$f":"((Monthly!FA676-Monthly!FA675)*100)","v":8.9999999999999858},{"$f":"((Monthly!FB676-Monthly!FB675)*100)","v":4.0000000000000036},"--",{"$f":"((Monthly!FD676-Monthly!FD675)*100)","v":-3.0000000000000249},{"$f":"((Monthly!FE676-Monthly!FE675)*100)","v":1.0000000000000002},{"$f":"((Monthly!FF676-Monthly!FF675)*100)","v":0},{"$f":"((Monthly!FG676-Monthly!FG675)*100)","v":6},{"$f":"((Monthly!FH676-Monthly!FH675)*100)","v":8.9999999999999858},{"$f":"((Monthly!FI676-Monthly!FI675)*100)","v":4.0000000000000036},null,null,null,null,null,null,{"$f":"(Monthly!FP676/Monthly!FP675)-1","v":-5.8747934642922051E-3},{"$f":"(Monthly!FQ676/Monthly!FQ675)-1","v":-1.1862776530939811E-3},{"$f":"(Monthly!FR676/Monthly!FR675)-1","v":4.6547591432768431E-3},{"$f":"(Monthly!FS676/Monthly!FS675)-1","v":-1.0481112162457173E-2},{"$f":"(Monthly!FT676/Monthly!FT675)-1","v":1.4801611448407304E-3},{"$f":"(Monthly!FU676/Monthly!FU675)-1","v":2.966342962249735E-3},{"$f":"(Monthly!FV676/Monthly!FV675)-1","v":-1.688082140090974E-3},{"$f":"(Monthly!FW676/Monthly!FW675)-1","v":3.7158172310222337E-2},{"$f":"(Monthly!FX676/Monthly!FX675)-1","v":-1.2179497256763816E-2},null,null,null,null,null,{"$f":"(Monthly!GD676/Monthly!GD675)-1","v":3.5329810138970519E-2},{"$f":"(Monthly!GE676/Monthly!GE675)-1","v":2.0631732700383321E-2},{"$f":"(Monthly!GF676/Monthly!GF675)-1","v":4.2666666666668629E-3},{"$f":"(Monthly!GG676/Monthly!GG675)-1","v":-9.2701794432821227E-3},{"$f":"(Monthly!GH676/Monthly!GH675)-1","v":8.3109118086696521E-2},{"$f":"(Monthly!GI676/Monthly!GI675)-1","v":7.709497206703908E-2},{"$f":"(Monthly!GJ676/Monthly!GJ675)-1","v":1.1013215859030812E-2},{"$f":"(Monthly!GK676/Monthly!GK675)-1","v":-8.9057604241986055E-2},{"$f":"(Monthly!GL676/Monthly!GL675)-1","v":-2.2437293154502713E-2}]
["2014-09-01",null,null,null,{"$f":"(Monthly!E679/Monthly!E678)-1","v":-1.9199824458748793E-4},{"$f":"(Monthly!F679/Monthly!F678)-1","v":-9.2133733510155746E-3},{"$f":"(Monthly!G679/Monthly!G678)-1","v":-4.3964326089687145E-3},{"$f":"(Monthly!H679/Monthly!H678)-1","v":2.7157935996864335E-3},null,null,null,null,null,null,null,null,null,null,null,null,null,null,null,{"$f":"(Monthly!X679-Monthly!X678)","v":9.9999999999994316E-2},{"$f":"(Monthly!Y679/Monthly!Y678)-1","v":7.6698698024362244E-3},null,null,null,null,null,null,null,null,null,null,null,null,null,{"$f":"(Monthly!AM679/Monthly!AM678)-1","v":2.9205596395542877E-3},{"$f":"(Monthly!AN679/Monthly!AN678)-1","v":2.9241105586708116E-4},{"$f":"(Monthly!AO679/Monthly!AO678)-1","v":1.0612709358264194E-3},{"$f":"((Monthly!AP679-Monthly!AP678)*100)","v":1.0000000000000009},{"$f":"Monthly!AQ679-Monthly!AQ678","v":-2.3000000000000043},{"$f":"Monthly!AR679-Monthly!AR678","v":-5.5},{"$f":"Monthly!AS679-Monthly!AS678","v":-4.5},{"$f":"Monthly!AT679-Monthly!AT678","v":-3.5},{"$f":"Monthly!AU679-Monthly!AU678","v":-1.5},{"$f":"Monthly!AV679-Monthly!AV678","v":-3},{"$f":"Monthly!AW679-Monthly!AW678","v":-0.5},{"$f":"Monthly!AX679-Monthly!AX678","v":-6.7000000000000028},{"$f":"Monthly!AY679-Monthly!AY678","v":1.5},{"$f":"Monthly!AZ679-Monthly!AZ678","v":9.9999999999994316E-2},{"$f":"Monthly!BA679-Monthly!BA678","v":-1.6999999999999957},{"$f":"Monthly!BB679-Monthly!BB678","v":0.19999999999999574},{"$f":"(Monthly!BC679/Monthly!BC678)-1","v":1.5900753877704288E-2},null,null,null,null,null,null,null,null,null,{"$f":"(Monthly!BM679/Monthly!BM678)-1","v":-1.9724538964496219E-3},{"$f":"(Monthly!BN679/Monthly!BN678)-1","v":-3.4614814322454501E-3},null,null,null,null,null,{"$f":"(Monthly!BT679/Monthly!BT678)-1","v":3.9566367511187917E-3},null,null,null,{"$f":"(Monthly!BX679/Monthly!BX678)-1","v":1.5243902439024293E-2},{"$f":"(Monthly!BY679/Monthly!BY678)-1","v":1.6267942583731987E-2},{"$f":"(Monthly!BZ679/Monthly!BZ678)-1","v":3.0505690484570192E-3},{"$f":"(Monthly!CA679/Monthly!CA678)-1","v":-5.6975258450458921E-2},{"$f":"Monthly!CB679-Monthly!CB678","v":-0.33604328447428511},{"$f":"Monthly!CC679-Monthly!CC678","v":-0.5460432844742833},{"$f":"(Monthly!CD679/Monthly!CD678)-1","v":4.8543689320388328E-3},{"$f":"(Monthly!CE679/Monthly!CE678)-1","v":3.786191536748329E-2},null,{"$f":"(Monthly!CG679/Monthly!CG678)-1","v":-2.1459227467811148E-2},{"$f":"(Monthly!CH679/Monthly!CH678)-1","v":2.0000000000000018E-2},null,{"$f":"(Monthly!CJ679/Monthly!CJ678)-1","v":3.786191536748329E-2},{"$f":"(Monthly!CK679/Monthly!CK678)-1","v":3.9643211100097719E-3},{"$f":"(Monthly!CL679/Monthly!CL678)-1","v":4.248410228656474E-2},{"$f":"(Monthly!CM679/Monthly!CM678)-1","v":3.1298904538341166E-2},{"$f":"(Monthly!CN679/Monthly!CN678)-1","v":2.5487044085923394E-3},{"$f":"(Monthly!CO679/Monthly!CO678)-1","v":-1.9817624295336289E-3},{"$f":"(Monthly!CP679/Monthly!CP678)-1","v":5.1246779234481732E-3},null,{"$f":"(Monthly!CR679/Monthly!CR678)-1","v":1.0842312813805766E-3},"--","--",null,null,null,null,null,{"$f":"(Monthly!CZ679/Monthly!CZ678)-1","v":9.6941700104524742E-4},{"$f":"(Monthly!DA679/Monthly!DA678)-1","v":1.4640489973991588E-3},null,null,null,null,null,"--",{"$f":"((Monthly!DH679-Monthly!DH678)*60)","v":-5.9999999999996589},{"$f":"((Monthly!DI679-Monthly!DI678)*100)","v":-10.000000000000142},{"$f":"((Monthly!DJ679-Monthly!DJ678)*100)","v":-19.999999999999929},{"$f":"((Monthly!DK679-Monthly!DK678)*100)","v":-29.999999999999982},{"$f":"Monthly!DL679-Monthly!DL678","v":17},null,null,null,{"$f":"Monthly!DP679-Monthly!DP678","v":280},null,null,null,{"$f":"(Monthly!DT679/Monthly!DT678)-1","v":-1.607963246554367E-2},{"$f":"Monthly!DU679-Monthly!DU678","v":0.40000000000000036},{"$f":"(Monthly!DV679-Monthly!DV678)","v":5.5999999999999091},{"$f":"(Monthly!DW679-Monthly!DW678)","v":0.70000000000004547},{"$f":"(Monthly!DX679-Monthly!DX678)","v":8.6000000000000227},{"$f":"(Monthly!DY679-Monthly!DY678)","v":1.8999999999999773},{"$f":"(Monthly!DZ679-Monthly!DZ678)","v":6.6999999999999318},{"$f":"(Monthly!EA679-Monthly!EA678)","v":3.1999999999999886},{"$f":"(Monthly!EB679-Monthly!EB678)","v":3.5},{"$f":"(Monthly!EC679-Monthly!EC678)","v":-7.8999999999999773},null,null,null,null,null,null,null,null,null,null,null,null,null,{"$f":"(Monthly!EQ679/Monthly!EQ678)-1","v":-2.8985507246376274E-3},{"$f":"(Monthly!ER679/Monthly!ER678)-1","v":1.5873015873015817E-3},{"$f":"(Monthly!ES679/Monthly!ES678)-1","v":5.9988002399524731E-4},null,null,null,null,null,{"$f":"((Monthly!EY679-Monthly!EY678)*100)","v":0},{"$f":"((Monthly!EZ679-Monthly!EZ678)*100)","v":0},{"$f":"((Monthly!FA679-Monthly!FA678)*100)","v":3.0000000000000249},{"$f":"((Monthly!FB679-Monthly!FB678)*100)","v":10.999999999999943},"--",{"$f":"((Monthly!FD679-Monthly!FD678)*100)","v":4.0000000000000036},{"$f":"((Monthly!FE679-Monthly!FE678)*100)","v":-0.99999999999999989},{"$f":"((Monthly!FF679-Monthly!FF678)*100)","v":0},{"$f":"((Monthly!FG679-Monthly!FG678)*100)","v":9.9999999999999982},{"$f":"((Monthly!FH679-Monthly!FH678)*100)","v":14.000000000000012},{"$f":"((Monthly!FI679-Monthly!FI678)*100)","v":10.999999999999988},null,null,null,null,null,null,{"$f":"(Monthly!FP679/Monthly!FP678)-1","v":7.7796082738421646E-3},{"$f":"(Monthly!FQ679/Monthly!FQ678)-1","v":-2.583643424708626E-3},{"$f":"(Monthly!FR679/Monthly!FR678)-1","v":7.1061200888646869E-3},{"$f":"(Monthly!FS679/Monthly!FS678)-1","v":-3.1993991738640593E-2},{"$f":"(Monthly!FT679/Monthly!FT678)-1","v":1.5093186085893384E-2},{"$f":"(Monthly!FU679/Monthly!FU678)-1","v":2.6276901651816287E-2},{"$f":"(Monthly!FV679/Monthly!FV678)-1","v":5.9510219239127249E-2},{"$f":"(Monthly!FW679/Monthly!FW678)-1","v":0.12493203437938027},{"$f":"(Monthly!FX679/Monthly!FX678)-1","v":7.4208217634512685E-3},null,null,null,null,null,{"$f":"(Monthly!GD679/Monthly!GD678)-1","v":-3.4493474207582531E-2},{"$f":"(Monthly!GE679/Monthly!GE678)-1","v":-4.448381064855822E-2},{"$f":"(Monthly!GF679/Monthly!GF678)-1","v":-2.272089761570828E-2},{"$f":"(Monthly!GG679/Monthly!GG678)-1","v":-1.1985409067222563E-2},{"$f":"(Monthly!GH679/Monthly!GH678)-1","v":-5.6237218813905976E-3},{"$f":"(Monthly!GI679/Monthly!GI678)-1","v":-0.19981668194317137},{"$f":"(Monthly!GJ679/Monthly!GJ678)-1","v":5.12820512820511E-3},{"$f":"(Monthly!GK679/Monthly!GK678)-1","v":-3.9831112015464409E-2},{"$f":"(Monthly!GL679/Monthly!GL678)-1","v":5.2790513137013217E-3}]
["2015-04-01",null,null,null,{"$f":"(Monthly!E686/Monthly!E685)-1","v":1.1351447979979223E-3},{"$f":"(Monthly!F686/Monthly!F685)-1","v":-2.4638742758207322E-3},{"$f":"(Monthly!G686/Monthly!G685)-1","v":-2.7133695115933998E-3},{"$f":"(Monthly!H686/Monthly!H685)-1","v":3.0049396267837203E-3},null,null,null,null,null,null,null,null,null,null,null,null,null,null,null,{"$f":"(Monthly!X686-Monthly!X685)","v":-0.40000000000000568},{"$f":"(Monthly!Y686/Monthly!Y685)-1","v":7.9803773861675253E-3},null,null,null,null,null,null,null,null,null,null,null,null,null,{"$f":"(Monthly!AM686/Monthly!AM685)-1","v":-3.9219791671623039E-3},{"$f":"(Monthly!AN686/Monthly!AN685)-1","v":7.0008755969763747E-4},{"$f":"(Monthly!AO686/Monthly!AO685)-1","v":3.6868898402515615E-3},{"$f":"((Monthly!AP686-Monthly!AP685)*100)","v":0},{"$f":"Monthly!AQ686-Monthly!AQ685","v":-0.69999999999999574},{"$f":"Monthly!AR686-Monthly!AR685","v":0},{"$f":"Monthly!AS686-Monthly!AS685","v":-1.5},{"$f":"Monthly!AT686-Monthly!AT685","v":-1.7000000000000028},{"$f":"Monthly!AU686-Monthly!AU685","v":4},{"$f":"Monthly!AV686-Monthly!AV685","v":1.5},{"$f":"Monthly!AW686-Monthly!AW685","v":-2},{"$f":"Monthly!AX686-Monthly!AX685","v":1.7000000000000028},{"$f":"Monthly!AY686-Monthly!AY685","v":1.5},{"$f":"Monthly!AZ686-Monthly!AZ685","v":2.2000000000000028},{"$f":"Monthly!BA686-Monthly!BA685","v":-0.39999999999999858},{"$f":"Monthly!BB686-Monthly!BB685","v":2.2999999999999972},{"$f":"(Monthly!BC686/Monthly!BC685)-1","v":-1.2651433829167336E-2},null,null,null,null,null,null,null,null,null,{"$f":"(Monthly!BM686/Monthly!BM685)-1","v":-9.4974277799808604E-5},{"$f":"(Monthly!BN686/Monthly!BN685)-1","v":-1.5923444780406859E-3},null,null,null,null,null,{"$f":"(Monthly!BT686/Monthly!BT685)-1","v":8.1411156933064444E-3},null,null,null,{"$f":"(Monthly!BX686/Monthly!BX685)-1","v":0.23203285420944564},{"$f":"(Monthly!BY686/Monthly!BY685)-1","v":9.1751621872103728E-2},{"$f":"(Monthly!BZ686/Monthly!BZ685)-1","v":2.6456515620603138E-3},{"$f":"(Monthly!CA686/Monthly!CA685)-1","v":-3.2409259788511058E-2},{"$f":"Monthly!CB686-Monthly!CB685","v":-0.11884035714985242},{"$f":"Monthly!CC686-Monthly!CC685","v":-0.11884035714985153},{"$f":"(Monthly!CD686/Monthly!CD685)-1","v":4.8780487804878092E-3},{"$f":"(Monthly!CE686/Monthly!CE685)-1","v":3.9501039501039559E-2},null,{"$f":"(Monthly!CG686/Monthly!CG685)-1","v":0.10447761194029859},{"$f":"(Monthly!CH686/Monthly!CH685)-1","v":-2.0952380952380945E-2},null,{"$f":"(Monthly!CJ686/Monthly!CJ685)-1","v":3.9501039501039559E-2},{"$f":"(Monthly!CK686/Monthly!CK685)-1","v":6.4329429247405034E-3},{"$f":"(Monthly!CL686/Monthly!CL685)-1","v":7.8438948995363189E-2},{"$f":"(Monthly!CM686/Monthly!CM685)-1","v":0.19391025641025639},{"$f":"(Monthly!CN686/Monthly!CN685)-1","v":5.8995132495267555E-3},{"$f":"(Monthly!CO686/Monthly!CO685)-1","v":7.4516995557392107E-3},{"$f":"(Monthly!CP686/Monthly!CP685)-1","v":6.3063855214309239E-3},null,{"$f":"(Monthly!CR686/Monthly!CR685)-1","v":6.8896066729726702E-3},"--","--",null,null,null,null,null,{"$f":"(Monthly!CZ686/Monthly!CZ685)-1","v":8.9834695684953836E-4},{"$f":"(Monthly!DA686/Monthly!DA685)-1","v":2.4212672821586345E-3},null,null,null,null,null,"--",{"$f":"((Monthly!DH686-Monthly!DH685)*60)","v":-6.0000000000000853},{"$f":"((Monthly!DI686-Monthly!DI685)*100)","v":9.9999999999994316},{"$f":"((Monthly!DJ686-Monthly!DJ685)*100)","v":-9.9999999999999645},{"$f":"((Monthly!DK686-Monthly!DK685)*100)","v":0},{"$f":"Monthly!DL686-Monthly!DL685","v":2},null,null,null,{"$f":"Monthly!DP686-Monthly!DP685","v":262},null,null,null,{"$f":"(Monthly!DT686/Monthly!DT685)-1","v":-5.3598774885145195E-3},{"$f":"Monthly!DU686-Monthly!DU685","v":-0.40000000000000036},{"$f":"(Monthly!DV686-Monthly!DV685)","v":-0.79999999999995453},{"$f":"(Monthly!DW686-Monthly!DW685)","v":10.299999999999955},{"$f":"(Monthly!DX686-Monthly!DX685)","v":4.7999999999999545},{"$f":"(Monthly!DY686-Monthly!DY685)","v":3.9000000000000057},{"$f":"(Monthly!DZ686-Monthly!DZ685)","v":0.89999999999997726},{"$f":"(Monthly!EA686-Monthly!EA685)","v":-0.40000000000003411},{"$f":"(Monthly!EB686-Monthly!EB685)","v":1.3000000000000114},{"$f":"(Monthly!EC686-Monthly!EC685)","v":5.6999999999999886},null,null,null,null,null,null,null,null,null,null,null,null,null,{"$f":"(Monthly!EQ686/Monthly!EQ685)-1","v":-3.1331592689294308E-3},{"$f":"(Monthly!ER686/Monthly!ER685)-1","v":0},{"$f":"(Monthly!ES686/Monthly!ES685)-1","v":0},null,null,null,null,null,{"$f":"((Monthly!EY686-Monthly!EY685)*100)","v":0},{"$f":"((Monthly!EZ686-Monthly!EZ685)*100)","v":0.99999999999999956},{"$f":"((Monthly!FA686-Monthly!FA685)*100)","v":-12.000000000000011},{"$f":"((Monthly!FB686-Monthly!FB685)*100)","v":-5.9999999999999609},"--",{"$f":"((Monthly!FD686-Monthly!FD685)*100)","v":-10.000000000000009},{"$f":"((Monthly!FE686-Monthly!FE685)*100)","v":-0.99999999999999989},{"$f":"((Monthly!FF686-Monthly!FF685)*100)","v":-1.9999999999999991},{"$f":"((Monthly!FG686-Monthly!FG685)*100)","v":-9.9999999999999982},{"$f":"((Monthly!FH686-Monthly!FH685)*100)","v":-16.999999999999993},{"$f":"((Monthly!FI686-Monthly!FI685)*100)","v":-10.000000000000009},null,null,null,null,null,null,{"$f":"(Monthly!FP686/Monthly!FP685)-1","v":-2.2269773339673504E-2},{"$f":"(Monthly!FQ686/Monthly!FQ685)-1","v":-6.0269932356619149E-3},{"$f":"(Monthly!FR686/Monthly!FR685)-1","v":-2.8351107465135472E-3},{"$f":"(Monthly!FS686/Monthly!FS685)-1","v":2.7728995286069313E-4},{"$f":"(Monthly!FT686/Monthly!FT685)-1","v":-1.0107081923002914E-2},{"$f":"(Monthly!FU686/Monthly!FU685)-1","v":-9.0098635328389465E-3},{"$f":"(Monthly!FV686/Monthly!FV685)-1","v":-3.973417441603333E-2},{"$f":"(Monthly!FW686/Monthly!FW685)-1","v":-0.12179033642355763},{"$f":"(Monthly!FX686/Monthly!FX685)-1","v":-3.6940147214771346E-2},null,null,null,null,null,{"$f":"(Monthly!GD686/Monthly!GD685)-1","v":0.1386449184441656},{"$f":"(Monthly!GE686/Monthly!GE685)-1","v":6.4949006977992552E-2},{"$f":"(Monthly!GF686/Monthly!GF685)-1","v":3.5349567949727323E-3},{"$f":"(Monthly!GG686/Monthly!GG685)-1","v":-3.969623748705553E-2},{"$f":"(Monthly!GH686/Monthly!GH685)-1","v":3.1978481769276756E-2},{"$f":"(Monthly!GI686/Monthly!GI685)-1","v":0.26341463414634148},{"$f":"(Monthly!GJ686/Monthly!GJ685)-1","v":-5.8181818181818223E-2},{"$f":"(Monthly!GK686/Monthly!GK685)-1","v":3.6036036036036112E-2},{"$f":"(Monthly!GL686/Monthly!GL685)-1","v":3.7735849056603765E-2}]
["2015-06-01",null,null,null,{"$f":"(Monthly!E688/Monthly!E687)-1","v":-2.4904384950630298E-4},{"$f":"(Monthly!F688/Monthly!F687)-1","v":-8.700810757365951E-3},{"$f":"(Monthly!G688/Monthly!G687)-1","v":-4.0985286282158029E-5},{"$f":"(Monthly!H688/Monthly!H687)-1","v":1.0789549160736822E-3},null,null,null,null,null,null,null,null,null,null,null,null,null,null,null,{"$f":"(Monthly!X688-Monthly!X687)","v":-0.29999999999999716},{"$f":"(Monthly!Y688/Monthly!Y687)-1","v":9.5879778148053596E-3},null,null,null,null,null,null,null,null,null,null,null,null,null,{"$f":"(Monthly!AM688/Monthly!AM687)-1","v":-2.7962023046613771E-3},{"$f":"(Monthly!AN688/Monthly!AN687)-1","v":-2.8759003645342229E-3},{"$f":"(Monthly!AO688/Monthly!AO687)-1","v":7.4415714897415608E-3},{"$f":"((Monthly!AP688-Monthly!AP687)*100)","v":0.99999999999997868},{"$f":"Monthly!AQ688-Monthly!AQ687","v":0},{"$f":"Monthly!AR688-Monthly!AR687","v":-6.5},{"$f":"Monthly!AS688-Monthly!AS687","v":3},{"$f":"Monthly!AT688-Monthly!AT687","v":3.7999999999999972},{"$f":"Monthly!AU688-Monthly!AU687","v":-0.5},{"$f":"Monthly!AV688-Monthly!AV687","v":-1.5},{"$f":"Monthly!AW688-Monthly!AW687","v":1.5},{"$f":"Monthly!AX688-Monthly!AX687","v":0.20000000000000284},{"$f":"Monthly!AY688-Monthly!AY687","v":0},{"$f":"Monthly!AZ688-Monthly!AZ687","v":-0.5},{"$f":"Monthly!BA688-Monthly!BA687","v":-1.9000000000000057},{"$f":"Monthly!BB688-Monthly!BB687","v":1.6000000000000014},{"$f":"(Monthly!BC688/Monthly!BC687)-1","v":3.8720195638883848E-3},null,null,null,null,null,null,null,null,null,{"$f":"(Monthly!BM688/Monthly!BM687)-1","v":0},{"$f":"(Monthly!BN688/Monthly!BN687)-1","v":-2.5090986506626223E-4},null,null,null,null,null,{"$f":"(Monthly!BT688/Monthly!BT687)-1","v":4.2736298423897701E-3},null,null,null,{"$f":"(Monthly!BX688/Monthly!BX687)-1","v":0.12664165103189484},{"$f":"(Monthly!BY688/Monthly!BY687)-1","v":8.605577689243038E-2},{"$f":"(Monthly!BZ688/Monthly!BZ687)-1","v":1.7931189061974884E-3},{"$f":"(Monthly!CA688/Monthly!CA687)-1","v":-2.2560217120886628E-2},{"$f":"Monthly!CB688-Monthly!CB687","v":-6.0375345203667052E-2},{"$f":"Monthly!CC688-Monthly!CC687","v":-0.20037534520366762},{"$f":"(Monthly!CD688/Monthly!CD687)-1","v":2.857142857142847E-2},{"$f":"(Monthly!CE688/Monthly!CE687)-1","v":-5.555555555555558E-2},null,{"$f":"(Monthly!CG688/Monthly!CG687)-1","v":-1.3157894736842146E-2},{"$f":"(Monthly!CH688/Monthly!CH687)-1","v":2.2684310018903586E-2},null,{"$f":"(Monthly!CJ688/Monthly!CJ687)-1","v":-5.555555555555558E-2},{"$f":"(Monthly!CK688/Monthly!CK687)-1","v":2.7684958054068343E-3},{"$f":"(Monthly!CL688/Monthly!CL687)-1","v":2.2662213740457959E-2},{"$f":"(Monthly!CM688/Monthly!CM687)-1","v":-2.8735632183908288E-3},{"$f":"(Monthly!CN688/Monthly!CN687)-1","v":1.4247651552348195E-3},{"$f":"(Monthly!CO688/Monthly!CO687)-1","v":2.646007454617072E-3},{"$f":"(Monthly!CP688/Monthly!CP687)-1","v":7.1681666735974314E-3},null,{"$f":"(Monthly!CR688/Monthly!CR687)-1","v":6.4926387063724E-3},"--","--",null,null,null,null,null,{"$f":"(Monthly!CZ688/Monthly!CZ687)-1","v":2.2288731948449936E-3},{"$f":"(Monthly!DA688/Monthly!DA687)-1","v":1.4855459277833827E-3},null,null,null,null,null,"--",{"$f":"((Monthly!DH688-Monthly!DH687)*60)","v":6.0000000000000853},{"$f":"((Monthly!DI688-Monthly!DI687)*100)","v":-29.999999999999716},{"$f":"((Monthly!DJ688-Monthly!DJ687)*100)","v":-19.999999999999929},{"$f":"((Monthly!DK688-Monthly!DK687)*100)","v":-20.000000000000018},{"$f":"Monthly!DL688-Monthly!DL687","v":1},null,null,null,{"$f":"Monthly!DP688-Monthly!DP687","v":206},null,null,null,{"$f":"(Monthly!DT688/Monthly!DT687)-1","v":-2.8637770897832815E-2},{"$f":"Monthly!DU688-Monthly!DU687","v":-9.9999999999999645E-2},{"$f":"(Monthly!DV688-Monthly!DV687)","v":5.1999999999998181},{"$f":"(Monthly!DW688-Monthly!DW687)","v":23.200000000000045},{"$f":"(Monthly!DX688-Monthly!DX687)","v":8.7999999999999545},{"$f":"(Monthly!DY688-Monthly!DY687)","v":2.5999999999999943},{"$f":"(Monthly!DZ688-Monthly!DZ687)","v":6.2000000000000455},{"$f":"(Monthly!EA688-Monthly!EA687)","v":4},{"$f":"(Monthly!EB688-Monthly!EB687)","v":2.1999999999999886},{"$f":"(Monthly!EC688-Monthly!EC687)","v":14.400000000000034},null,null,null,null,null,null,null,null,null,null,null,null,null,{"$f":"(Monthly!EQ688/Monthly!EQ687)-1","v":7.2388831437435464E-3},{"$f":"(Monthly!ER688/Monthly!ER687)-1","v":5.2110474205315782E-3},{"$f":"(Monthly!ES688/Monthly!ES687)-1","v":0},null,null,null,null,null,{"$f":"((Monthly!EY688-Monthly!EY687)*100)","v":0},{"$f":"((Monthly!EZ688-Monthly!EZ687)*100)","v":1.0000000000000009},{"$f":"((Monthly!FA688-Monthly!FA687)*100)","v":21.000000000000043},{"$f":"((Monthly!FB688-Monthly!FB687)*100)","v":24.000000000000021},"--",{"$f":"((Monthly!FD688-Monthly!FD687)*100)","v":14.000000000000012},{"$f":"((Monthly!FE688-Monthly!FE687)*100)","v":0},{"$f":"((Monthly!FF688-Monthly!FF687)*100)","v":4.0000000000000036},{"$f":"((Monthly!FG688-Monthly!FG687)*100)","v":7.9999999999999964},{"$f":"((Monthly!FH688-Monthly!FH687)*100)","v":13.999999999999989},{"$f":"((Monthly!FI688-Monthly!FI687)*100)","v":15.99999999999997},null,null,null,null,null,null,{"$f":"(Monthly!FP688/Monthly!FP687)-1","v":1.5522339027595145E-2},{"$f":"(Monthly!FQ688/Monthly!FQ687)-1","v":2.7403884903676179E-4},{"$f":"(Monthly!FR688/Monthly!FR687)-1","v":1.306316919291084E-2},{"$f":"(Monthly!FS688/Monthly!FS687)-1","v":5.2834243753918653E-3},{"$f":"(Monthly!FT688/Monthly!FT687)-1","v":7.7190500411910001E-3},{"$f":"(Monthly!FU688/Monthly!FU687)-1","v":5.5322396032049248E-3},{"$f":"(Monthly!FV688/Monthly!FV687)-1","v":0.12606924727462943},{"$f":"(Monthly!FW688/Monthly!FW687)-1","v":6.0907911271725901E-2},{"$f":"(Monthly!FX688/Monthly!FX687)-1","v":9.9528621729149336E-2},null,null,null,null,null,{"$f":"(Monthly!GD688/Monthly!GD687)-1","v":9.2795680782857826E-3},{"$f":"(Monthly!GE688/Monthly!GE687)-1","v":-4.0574282147315843E-2},{"$f":"(Monthly!GF688/Monthly!GF687)-1","v":2.9621698786580941E-2},{"$f":"(Monthly!GG688/Monthly!GG687)-1","v":-5.1939058171743824E-3},{"$f":"(Monthly!GH688/Monthly!GH687)-1","v":6.8890697043666904E-2},{"$f":"(Monthly!GI688/Monthly!GI687)-1","v":-9.4149908592321752E-2},{"$f":"(Monthly!GJ688/Monthly!GJ687)-1","v":-3.1468531468531458E-2},{"$f":"(Monthly!GK688/Monthly!GK687)-1","v":-1.8062069653727142E-2},{"$f":"(Monthly!GL688/Monthly!GL687)-1","v":1.4994738688179465E-2}]
["2015-07-01",null,null,null,{"$f":"(Monthly!E689/Monthly!E688)-1","v":2.9092009038984568E-3},{"$f":"(Monthly!F689/Monthly!F688)-1","v":8.511204202407141E-3},{"$f":"(Monthly!G689/Monthly!G688)-1","v":5.5332404295433957E-3},{"$f":"(Monthly!H689/Monthly!H688)-1","v":1.1460067123250095E-3},null,null,null,null,null,null,null,null,null,null,null,null,null,null,null,{"$f":"(Monthly!X689-Monthly!X688)","v":0.29999999999999716},{"$f":"(Monthly!Y689/Monthly!Y688)-1","v":5.7985290537587719E-3},null,null,null,null,null,null,null,null,null,null,null,null,null,{"$f":"(Monthly!AM689/Monthly!AM688)-1","v":5.0224679232291347E-3},{"$f":"(Monthly!AN689/Monthly!AN688)-1","v":6.0960283392454961E-3},{"$f":"(Monthly!AO689/Monthly!AO688)-1","v":1.1834122274818615E-3},{"$f":"((Monthly!AP689-Monthly!AP688)*100)","v":0},{"$f":"Monthly!AQ689-Monthly!AQ688","v":-1.2000000000000028},{"$f":"Monthly!AR689-Monthly!AR688","v":-4.5},{"$f":"Monthly!AS689-Monthly!AS688","v":-4.5},{"$f":"Monthly!AT689-Monthly!AT688","v":-2.7999999999999972},{"$f":"Monthly!AU689-Monthly!AU688","v":-1.5},{"$f":"Monthly!AV689-Monthly!AV688","v":-1.5},{"$f":"Monthly!AW689-Monthly!AW688","v":-3.5},{"$f":"Monthly!AX689-Monthly!AX688","v":0.5},{"$f":"Monthly!AY689-Monthly!AY688","v":-5.5},{"$f":"Monthly!AZ689-Monthly!AZ688","v":2},{"$f":"Monthly!BA689-Monthly!BA688","v":0.10000000000000142},{"$f":"Monthly!BB689-Monthly!BB688","v":1.8999999999999986},{"$f":"(Monthly!BC689/Monthly!BC688)-1","v":1.8660795152877885E-2},null,null,null,null,null,null,null,null,null,{"$f":"(Monthly!BM689/Monthly!BM688)-1","v":7.0926277009129013E-3},{"$f":"(Monthly!BN689/Monthly!BN688)-1","v":7.0754059295501381E-3},null,null,null,null,null,{"$f":"(Monthly!BT689/Monthly!BT688)-1","v":5.9768078197373065E-3},null,null,null,{"$f":"(Monthly!BX689/Monthly!BX688)-1","v":-5.0791007493755203E-2},{"$f":"(Monthly!BY689/Monthly!BY688)-1","v":-0.16801173881144538},{"$f":"(Monthly!BZ689/Monthly!BZ688)-1","v":1.9577133907595634E-3},{"$f":"(Monthly!CA689/Monthly!CA688)-1","v":1.2032162896974619E-2},{"$f":"Monthly!CB689-Monthly!CB688","v":-7.4160118805976616E-2},{"$f":"Monthly!CC689-Monthly!CC688","v":-0.14416011880597779},{"$f":"(Monthly!CD689/Monthly!CD688)-1","v":0},{"$f":"(Monthly!CE689/Monthly!CE688)-1","v":4.6218487394958041E-2},null,{"$f":"(Monthly!CG689/Monthly!CG688)-1","v":4.4444444444444731E-3},{"$f":"(Monthly!CH689/Monthly!CH688)-1","v":1.2939001848428777E-2},null,{"$f":"(Monthly!CJ689/Monthly!CJ688)-1","v":4.6218487394958041E-2},{"$f":"(Monthly!CK689/Monthly!CK688)-1","v":7.5120867549705039E-4},{"$f":"(Monthly!CL689/Monthly!CL688)-1","v":-4.3153720550501484E-2},{"$f":"(Monthly!CM689/Monthly!CM688)-1","v":9.9423631123919387E-2},{"$f":"(Monthly!CN689/Monthly!CN688)-1","v":-1.4468522924560023E-4},{"$f":"(Monthly!CO689/Monthly!CO688)-1","v":6.293058604108337E-3},{"$f":"(Monthly!CP689/Monthly!CP688)-1","v":5.30078579818416E-3},null,{"$f":"(Monthly!CR689/Monthly!CR688)-1","v":3.841006161538818E-3},"--","--",null,null,null,null,null,{"$f":"(Monthly!CZ689/Monthly!CZ688)-1","v":1.9248670072740115E-3},{"$f":"(Monthly!DA689/Monthly!DA688)-1","v":1.8965296399899856E-3},null,null,null,null,null,"--",{"$f":"((Monthly!DH689-Monthly!DH688)*60)","v":0},{"$f":"((Monthly!DI689-Monthly!DI688)*100)","v":0},{"$f":"((Monthly!DJ689-Monthly!DJ688)*100)","v":-19.999999999999929},{"$f":"((Monthly!DK689-Monthly!DK688)*100)","v":-9.9999999999999645},{"$f":"Monthly!DL689-Monthly!DL688","v":14},null,null,null,{"$f":"Monthly!DP689-Monthly!DP688","v":254},null,null,null,{"$f":"(Monthly!DT689/Monthly!DT688)-1","v":-7.9681274900398336E-3},{"$f":"Monthly!DU689-Monthly!DU688","v":-0.19999999999999929},{"$f":"(Monthly!DV689-Monthly!DV688)","v":1.4000000000000909},{"$f":"(Monthly!DW689-Monthly!DW688)","v":6.3999999999998636},{"$f":"(Monthly!DX689-Monthly!DX688)","v":5.1000000000000227},{"$f":"(Monthly!DY689-Monthly!DY688)","v":4},{"$f":"(Monthly!DZ689-Monthly!DZ688)","v":1.1000000000000227},{"$f":"(Monthly!EA689-Monthly!EA688)","v":1.3999999999999773},{"$f":"(Monthly!EB689-Monthly!EB688)","v":-0.29999999999998295},{"$f":"(Monthly!EC689-Monthly!EC688)","v":1.3000000000000114},null,null,null,null,null,null,null,null,null,null,null,null,null,{"$f":"(Monthly!EQ689/Monthly!EQ688)-1","v":-4.62012320328542E-3},{"$f":"(Monthly!ER689/Monthly!ER688)-1","v":1.0368066355623817E-3},{"$f":"(Monthly!ES689/Monthly!ES688)-1","v":1.779359430605032E-3},null,null,null,null,null,{"$f":"((Monthly!EY689-Monthly!EY688)*100)","v":0},{"$f":"((Monthly!EZ689-Monthly!EZ688)*100)","v":0},{"$f":"((Monthly!FA689-Monthly!FA688)*100)","v":-4.0000000000000036},{"$f":"((Monthly!FB689-Monthly!FB688)*100)","v":7.0000000000000284},"--",{"$f":"((Monthly!FD689-Monthly!FD688)*100)","v":6.999999999999984},{"$f":"((Monthly!FE689-Monthly!FE688)*100)","v":0.99999999999999989},{"$f":"((Monthly!FF689-Monthly!FF688)*100)","v":1.9999999999999962},{"$f":"((Monthly!FG689-Monthly!FG688)*100)","v":-1.9999999999999907},{"$f":"((Monthly!FH689-Monthly!FH688)*100)","v":-5.0000000000000044},{"$f":"((Monthly!FI689-Monthly!FI688)*100)","v":-4.0000000000000036},null,null,null,null,null,null,{"$f":"(Monthly!FP689/Monthly!FP688)-1","v":4.027496967246269E-2},{"$f":"(Monthly!FQ689/Monthly!FQ688)-1","v":5.318120286212924E-4},{"$f":"(Monthly!FR689/Monthly!FR688)-1","v":3.0511912760349258E-2},{"$f":"(Monthly!FS689/Monthly!FS688)-1","v":-2.039907357919124E-2},{"$f":"(Monthly!FT689/Monthly!FT688)-1","v":1.7311929219777422E-2},{"$f":"(Monthly!FU689/Monthly!FU688)-1","v":2.1756112803687166E-2},{"$f":"(Monthly!FV689/Monthly!FV688)-1","v":-9.6418722707024229E-2},{"$f":"(Monthly!FW689/Monthly!FW688)-1","v":-5.7970804715827828E-3},{"$f":"(Monthly!FX689/Monthly!FX688)-1","v":-7.9270376699606238E-2},null,null,null,null,null,{"$f":"(Monthly!GD689/Monthly!GD688)-1","v":-0.14909729187562681},{"$f":"(Monthly!GE689/Monthly!GE688)-1","v":-8.0026024723487188E-2},{"$f":"(Monthly!GF689/Monthly!GF688)-1","v":-1.7331022530329143E-3},{"$f":"(Monthly!GG689/Monthly!GG688)-1","v":-2.9585798816568198E-2},{"$f":"(Monthly!GH689/Monthly!GH688)-1","v":7.4092869829992303E-2},{"$f":"(Monthly!GI689/Monthly!GI688)-1","v":0.12209889001009078},{"$f":"(Monthly!GJ689/Monthly!GJ688)-1","v":1.4440433212996373E-2},{"$f":"(Monthly!GK689/Monthly!GK688)-1","v":-5.1270325203252032E-2},{"$f":"(Monthly!GL689/Monthly!GL688)-1","v":9.1144708423325227E-3}]
["2015-08-01",null,null,null,{"$f":"(Monthly!E690/Monthly!E689)-1","v":2.6878620408237186E-3},{"$f":"(Monthly!F690/Monthly!F689)-1","v":6.4613964528252854E-3},{"$f":"(Monthly!G690/Monthly!G689)-1","v":1.9157868992785154E-3},{"$f":"(Monthly!H690/Monthly!H689)-1","v":2.330271728761879E-3},null,null,null,null,null,null,null,null,null,null,null,null,null,null,null,{"$f":"(Monthly!X690-Monthly!X689)","v":0},{"$f":"(Monthly!Y690/Monthly!Y689)-1","v":6.6679285828725732E-3},null,null,null,null,null,null,null,null,null,null,null,null,null,{"$f":"(Monthly!AM690/Monthly!AM689)-1","v":-5.6451227096521173E-5},{"$f":"(Monthly!AN690/Monthly!AN689)-1","v":-3.8981162669071701E-4},{"$f":"(Monthly!AO690/Monthly!AO689)-1","v":2.8690184849144984E-4},{"$f":"((Monthly!AP690-Monthly!AP689)*100)","v":1.0000000000000009},{"$f":"Monthly!AQ690-Monthly!AQ689","v":-0.89999999999999858},{"$f":"Monthly!AR690-Monthly!AR689","v":4},{"$f":"Monthly!AS690-Monthly!AS689","v":9},{"$f":"Monthly!AT690-Monthly!AT689","v":-1.5},{"$f":"Monthly!AU690-Monthly!AU689","v":-1.5},{"$f":"Monthly!AV690-Monthly!AV689","v":-0.5},{"$f":"Monthly!AW690-Monthly!AW689","v":-1},{"$f":"Monthly!AX690-Monthly!AX689","v":-4.7999999999999972},{"$f":"Monthly!AY690-Monthly!AY689","v":-5},{"$f":"Monthly!AZ690-Monthly!AZ689","v":-2.3999999999999986},{"$f":"Monthly!BA690-Monthly!BA689","v":1.8000000000000043},{"$f":"Monthly!BB690-Monthly!BB689","v":-1.1000000000000014},{"$f":"(Monthly!BC690/Monthly!BC689)-1","v":-1.1911149264942633E-2},null,null,null,null,null,null,null,null,null,{"$f":"(Monthly!BM690/Monthly!BM689)-1","v":4.2055794020057213E-4},{"$f":"(Monthly!BN690/Monthly!BN689)-1","v":-1.4851883923716613E-4},null,null,null,null,null,{"$f":"(Monthly!BT690/Monthly!BT689)-1","v":5.5301858057554831E-3},null,null,null,{"$f":"(Monthly!BX690/Monthly!BX689)-1","v":-5.2631578947368585E-3},{"$f":"(Monthly!BY690/Monthly!BY689)-1","v":2.2045855379188684E-2},{"$f":"(Monthly!BZ690/Monthly!BZ689)-1","v":2.7912689108466893E-4},{"$f":"(Monthly!CA690/Monthly!CA689)-1","v":1.5032866533295053E-2},{"$f":"Monthly!CB690-Monthly!CB689","v":-5.6452172812127444E-2},{"$f":"Monthly!CC690-Monthly!CC689","v":-0.12645217281212595},{"$f":"(Monthly!CD690/Monthly!CD689)-1","v":4.6296296296295392E-3},{"$f":"(Monthly!CE690/Monthly!CE689)-1","v":3.0120481927710774E-2},null,{"$f":"(Monthly!CG690/Monthly!CG689)-1","v":4.4247787610618428E-3},{"$f":"(Monthly!CH690/Monthly!CH689)-1","v":-3.4671532846715314E-2},null,{"$f":"(Monthly!CJ690/Monthly!CJ689)-1","v":3.0120481927710774E-2},{"$f":"(Monthly!CK690/Monthly!CK689)-1","v":2.5342281190252613E-3},{"$f":"(Monthly!CL690/Monthly!CL689)-1","v":2.5597269624573205E-3},{"$f":"(Monthly!CM690/Monthly!CM689)-1","v":-3.4076015727391828E-2},{"$f":"(Monthly!CN690/Monthly!CN689)-1","v":2.5082402122358349E-3},{"$f":"(Monthly!CO690/Monthly!CO689)-1","v":7.817129600443895E-3},{"$f":"(Monthly!CP690/Monthly!CP689)-1","v":3.8412412746753333E-3},null,{"$f":"(Monthly!CR690/Monthly!CR689)-1","v":3.3014890750309167E-3},"--","--",null,null,null,null,null,{"$f":"(Monthly!CZ690/Monthly!CZ689)-1","v":-2.7325161008251442E-4},{"$f":"(Monthly!DA690/Monthly!DA689)-1","v":1.1299901022765457E-3},null,null,null,null,null,"--",{"$f":"((Monthly!DH690-Monthly!DH689)*60)","v":0},{"$f":"((Monthly!DI690-Monthly!DI689)*100)","v":0},{"$f":"((Monthly!DJ690-Monthly!DJ689)*100)","v":-10.000000000000142},{"$f":"((Monthly!DK690-Monthly!DK689)*100)","v":-10.000000000000053},{"$f":"Monthly!DL690-Monthly!DL689","v":-5},null,null,null,{"$f":"Monthly!DP690-Monthly!DP689","v":157},null,null,null,{"$f":"(Monthly!DT690/Monthly!DT689)-1","v":1.2851405622489986E-2},{"$f":"Monthly!DU690-Monthly!DU689","v":0.59999999999999964},{"$f":"(Monthly!DV690-Monthly!DV689)","v":-0.70000000000004547},{"$f":"(Monthly!DW690-Monthly!DW689)","v":-1.1999999999998181},{"$f":"(Monthly!DX690-Monthly!DX689)","v":3.5},{"$f":"(Monthly!DY690-Monthly!DY689)","v":0.19999999999998863},{"$f":"(Monthly!DZ690-Monthly!DZ689)","v":3.2999999999999545},{"$f":"(Monthly!EA690-Monthly!EA689)","v":2.9000000000000341},{"$f":"(Monthly!EB690-Monthly!EB689)","v":-2.0000000000010232E-2},{"$f":"(Monthly!EC690-Monthly!EC689)","v":-4.7000000000000455},null,null,null,null,null,null,null,null,null,null,null,null,null,{"$f":"(Monthly!EQ690/Monthly!EQ689)-1","v":-1.0314595152140282E-2},{"$f":"(Monthly!ER690/Monthly!ER689)-1","v":-5.1786639047124439E-4},{"$f":"(Monthly!ES690/Monthly!ES689)-1","v":-5.9206631142683097E-4},null,null,null,null,null,{"$f":"((Monthly!EY690-Monthly!EY689)*100)","v":0},{"$f":"((Monthly!EZ690-Monthly!EZ689)*100)","v":1.0000000000000009},{"$f":"((Monthly!FA690-Monthly!FA689)*100)","v":-11.000000000000032},{"$f":"((Monthly!FB690-Monthly!FB689)*100)","v":-0.99999999999997868},"--",{"$f":"((Monthly!FD690-Monthly!FD689)*100)","v":-13.999999999999968},{"$f":"((Monthly!FE690-Monthly!FE689)*100)","v":4.0000000000000009},{"$f":"((Monthly!FF690-Monthly!FF689)*100)","v":8.0000000000000018},{"$f":"((Monthly!FG690-Monthly!FG689)*100)","v":2.9999999999999916},{"$f":"((Monthly!FH690-Monthly!FH689)*100)","v":-8.9999999999999858},{"$f":"((Monthly!FI690-Monthly!FI689)*100)","v":-14.999999999999991},null,null,null,null,null,null,{"$f":"(Monthly!FP690/Monthly!FP689)-1","v":2.2078830754878265E-2},{"$f":"(Monthly!FQ690/Monthly!FQ689)-1","v":2.0906821293388056E-2},{"$f":"(Monthly!FR690/Monthly!FR689)-1","v":3.6516941980377915E-2},{"$f":"(Monthly!FS690/Monthly!FS689)-1","v":1.2639810857506539E-2},{"$f":"(Monthly!FT690/Monthly!FT689)-1","v":1.8659536474910476E-2},{"$f":"(Monthly!FU690/Monthly!FU689)-1","v":1.81745698011615E-3},{"$f":"(Monthly!FV690/Monthly!FV689)-1","v":4.3957111459205223E-3},{"$f":"(Monthly!FW690/Monthly!FW689)-1","v":7.0997000844422509E-2},{"$f":"(Monthly!FX690/Monthly!FX689)-1","v":-3.6434502626673249E-3},null,null,null,null,null,{"$f":"(Monthly!GD690/Monthly!GD689)-1","v":-0.15777686096540355},{"$f":"(Monthly!GE690/Monthly!GE689)-1","v":-0.17751060820367748},{"$f":"(Monthly!GF690/Monthly!GF689)-1","v":-5.3472222222222143E-2},{"$f":"(Monthly!GG690/Monthly!GG689)-1","v":-6.9225251076040051E-2},{"$f":"(Monthly!GH690/Monthly!GH689)-1","v":-3.3073470351996259E-2},{"$f":"(Monthly!GI690/Monthly!GI689)-1","v":-0.19424460431654678},{"$f":"(Monthly!GJ690/Monthly!GJ689)-1","v":-2.1352313167259829E-2},{"$f":"(Monthly!GK690/Monthly!GK689)-1","v":-9.024690696802451E-3},{"$f":"(Monthly!GL690/Monthly!GL689)-1","v":-6.1962244766918806E-3}]
["2015-09-01",null,null,null,{"$f":"(Monthly!E691/Monthly!E690)-1","v":3.0433859438034894E-3},{"$f":"(Monthly!F691/Monthly!F690)-1","v":3.2099574189321523E-3},{"$f":"(Monthly!G691/Monthly!G690)-1","v":3.4580960130186078E-3},{"$f":"(Monthly!H691/Monthly!H690)-1","v":2.8822753660624478E-3},null,null,null,null,null,null,null,null,null,null,null,null,null,null,null,{"$f":"(Monthly!X691-Monthly!X690)","v":-0.29999999999999716},{"$f":"(Monthly!Y691/Monthly!Y690)-1","v":4.7412200867811283E-3},null,null,null,null,null,null,null,null,null,null,null,null,null,{"$f":"(Monthly!AM691/Monthly!AM690)-1","v":-2.9212767117887672E-3},{"$f":"(Monthly!AN691/Monthly!AN690)-1","v":-2.5342774148814362E-3},{"$f":"(Monthly!AO691/Monthly!AO690)-1","v":2.8975987599630937E-3},{"$f":"((Monthly!AP691-Monthly!AP690)*100)","v":0},{"$f":"Monthly!AQ691-Monthly!AQ690","v":-1},{"$f":"Monthly!AR691-Monthly!AR690","v":-5},{"$f":"Monthly!AS691-Monthly!AS690","v":1.5},{"$f":"Monthly!AT691-Monthly!AT690","v":-0.70000000000000284},{"$f":"Monthly!AU691-Monthly!AU690","v":0},{"$f":"Monthly!AV691-Monthly!AV690","v":-1},{"$f":"Monthly!AW691-Monthly!AW690","v":0},{"$f":"Monthly!AX691-Monthly!AX690","v":-1.6000000000000014},{"$f":"Monthly!AY691-Monthly!AY690","v":-1},{"$f":"Monthly!AZ691-Monthly!AZ690","v":-1.8000000000000043},{"$f":"Monthly!BA691-Monthly!BA690","v":-0.5},{"$f":"Monthly!BB691-Monthly!BB690","v":-2.1999999999999957},{"$f":"(Monthly!BC691/Monthly!BC690)-1","v":4.6543378428696158E-3},null,null,null,null,null,null,null,null,null,{"$f":"(Monthly!BM691/Monthly!BM690)-1","v":-2.1352693108422915E-4},{"$f":"(Monthly!BN691/Monthly!BN690)-1","v":-2.870112312026718E-4},null,null,null,null,null,{"$f":"(Monthly!BT691/Monthly!BT690)-1","v":6.836317831541594E-3},null,null,null,{"$f":"(Monthly!BX691/Monthly!BX690)-1","v":6.6137566137566051E-2},{"$f":"(Monthly!BY691/Monthly!BY690)-1","v":-2.9335634167385716E-2},{"$f":"(Monthly!BZ691/Monthly!BZ690)-1","v":5.2461212188861239E-3},{"$f":"(Monthly!CA691/Monthly!CA690)-1","v":1.2050906633630065E-2},{"$f":"Monthly!CB691-Monthly!CB690","v":-0.34192500881550192},{"$f":"Monthly!CC691-Monthly!CC690","v":-0.41192500881550131},{"$f":"(Monthly!CD691/Monthly!CD690)-1","v":2.7649769585253559E-2},{"$f":"(Monthly!CE691/Monthly!CE690)-1","v":-0.10136452241715399},null,{"$f":"(Monthly!CG691/Monthly!CG690)-1","v":-3.524229074889873E-2},{"$f":"(Monthly!CH691/Monthly!CH690)-1","v":2.8355387523629538E-2},null,{"$f":"(Monthly!CJ691/Monthly!CJ690)-1","v":-0.10136452241715399},{"$f":"(Monthly!CK691/Monthly!CK690)-1","v":2.41902970030905E-3},{"$f":"(Monthly!CL691/Monthly!CL690)-1","v":7.2948328267474771E-4},{"$f":"(Monthly!CM691/Monthly!CM690)-1","v":9.4979647218453866E-3},{"$f":"(Monthly!CN691/Monthly!CN690)-1","v":2.6463088001795754E-3},{"$f":"(Monthly!CO691/Monthly!CO690)-1","v":6.5429797455369698E-3},{"$f":"(Monthly!CP691/Monthly!CP690)-1","v":7.9328764063875123E-3},null,{"$f":"(Monthly!CR691/Monthly!CR690)-1","v":6.7491969773936233E-3},"--","--",null,null,null,null,null,{"$f":"(Monthly!CZ691/Monthly!CZ690)-1","v":-1.4465268637698925E-3},{"$f":"(Monthly!DA691/Monthly!DA690)-1","v":2.0391013124396729E-3},null,null,null,null,null,"--",{"$f":"((Monthly!DH691-Monthly!DH690)*60)","v":0},{"$f":"((Monthly!DI691-Monthly!DI690)*100)","v":-20.000000000000284},{"$f":"((Monthly!DJ691-Monthly!DJ690)*100)","v":-19.999999999999929},{"$f":"((Monthly!DK691-Monthly!DK690)*100)","v":-9.9999999999999645},{"$f":"Monthly!DL691-Monthly!DL690","v":-1},null,null,null,{"$f":"Monthly!DP691-Monthly!DP690","v":100},null,null,null,{"$f":"(Monthly!DT691/Monthly!DT690)-1","v":-7.9302141157810979E-3},{"$f":"Monthly!DU691-Monthly!DU690","v":-0.5},{"$f":"(Monthly!DV691-Monthly!DV690)","v":-2},{"$f":"(Monthly!DW691-Monthly!DW690)","v":-4.6000000000001364},{"$f":"(Monthly!DX691-Monthly!DX690)","v":1.1000000000000227},{"$f":"(Monthly!DY691-Monthly!DY690)","v":1.3000000000000114},{"$f":"(Monthly!DZ691-Monthly!DZ690)","v":-0.19999999999993179},{"$f":"(Monthly!EA691-Monthly!EA690)","v":-0.90000000000003411},{"$f":"(Monthly!EB691-Monthly!EB690)","v":1.1200000000000045},{"$f":"(Monthly!EC691-Monthly!EC690)","v":-5.6999999999999886},null,null,null,null,null,null,null,null,null,null,null,null,null,{"$f":"(Monthly!EQ691/Monthly!EQ690)-1","v":-1.4590932777488352E-2},{"$f":"(Monthly!ER691/Monthly!ER690)-1","v":1.0362694300518616E-3},{"$f":"(Monthly!ES691/Monthly!ES690)-1","v":5.924170616113944E-4},null,null,null,null,null,{"$f":"((Monthly!EY691-Monthly!EY690)*100)","v":0},{"$f":"((Monthly!EZ691-Monthly!EZ690)*100)","v":0},{"$f":"((Monthly!FA691-Monthly!FA690)*100)","v":3.0000000000000249},{"$f":"((Monthly!FB691-Monthly!FB690)*100)","v":14.999999999999947},"--",{"$f":"((Monthly!FD691-Monthly!FD690)*100)","v":-2.0000000000000018},{"$f":"((Monthly!FE691-Monthly!FE690)*100)","v":-5},{"$f":"((Monthly!FF691-Monthly!FF690)*100)","v":-1.0000000000000009},{"$f":"((Monthly!FG691-Monthly!FG690)*100)","v":1.0000000000000009},{"$f":"((Monthly!FH691-Monthly!FH690)*100)","v":-5.0000000000000044},{"$f":"((Monthly!FI691-Monthly!FI690)*100)","v":0},null,null,null,null,null,null,{"$f":"(Monthly!FP691/Monthly!FP690)-1","v":9.0514946375599425E-3},{"$f":"(Monthly!FQ691/Monthly!FQ690)-1","v":4.6226906268242995E-3},{"$f":"(Monthly!FR691/Monthly!FR690)-1","v":1.8428692391435852E-2},{"$f":"(Monthly!FS691/Monthly!FS690)-1","v":8.3512931034483984E-3},{"$f":"(Monthly!FT691/Monthly!FT690)-1","v":7.6121301137712649E-3},{"$f":"(Monthly!FU691/Monthly!FU690)-1","v":-2.202285361670886E-3},{"$f":"(Monthly!FV691/Monthly!FV690)-1","v":1.9029196639061885E-2},{"$f":"(Monthly!FW691/Monthly!FW690)-1","v":3.5659020107618344E-2},{"$f":"(Monthly!FX691/Monthly!FX690)-1","v":2.5832290565686256E-2},null,null,null,null,null,{"$f":"(Monthly!GD691/Monthly!GD690)-1","v":6.0881735479356269E-2},{"$f":"(Monthly!GE691/Monthly!GE690)-1","v":2.3645743766121941E-2},{"$f":"(Monthly!GF691/Monthly!GF690)-1","v":-9.6845194424064474E-2},{"$f":"(Monthly!GG691/Monthly!GG690)-1","v":-3.4682080924855585E-2},{"$f":"(Monthly!GH691/Monthly!GH690)-1","v":-4.3977522599559782E-3},{"$f":"(Monthly!GI691/Monthly!GI690)-1","v":0.20089285714285721},{"$f":"(Monthly!GJ691/Monthly!GJ690)-1","v":-3.9999999999999925E-2},{"$f":"(Monthly!GK691/Monthly!GK690)-1","v":2.2226726118092177E-2},{"$f":"(Monthly!GL691/Monthly!GL690)-1","v":-1.7336994561998553E-2}]
["2015-10-01",null,null,null,{"$f":"(Monthly!E692/Monthly!E691)-1","v":8.5556025966693205E-4},{"$f":"(Monthly!F692/Monthly!F691)-1","v":-4.6362805276218833E-3},{"$f":"(Monthly!G692/Monthly!G691)-1","v":-2.229880397324191E-3},{"$f":"(Monthly!H692/Monthly!H691)-1","v":2.7248695180641658E-3},null,null,null,null,null,null,null,null,null,null,null,null,null,null,null,{"$f":"(Monthly!X692-Monthly!X691)","v":-9.9999999999994316E-2},{"$f":"(Monthly!Y692/Monthly!Y691)-1","v":7.5208681750316142E-3},null,null,null,null,null,null,null,null,null,null,null,null,null,{"$f":"(Monthly!AM692/Monthly!AM691)-1","v":-1.9125981969948525E-3},{"$f":"(Monthly!AN692/Monthly!AN691)-1","v":1.5813667805730791E-3},{"$f":"(Monthly!AO692/Monthly!AO691)-1","v":-5.4100401051027092E-4},{"$f":"((Monthly!AP692-Monthly!AP691)*100)","v":1.0000000000000009},{"$f":"Monthly!AQ692-Monthly!AQ691","v":-0.60000000000000142},{"$f":"Monthly!AR692-Monthly!AR691","v":1},{"$f":"Monthly!AS692-Monthly!AS691","v":-3.5},{"$f":"Monthly!AT692-Monthly!AT691","v":-2.8999999999999986},{"$f":"Monthly!AU692-Monthly!AU691","v":1},{"$f":"Monthly!AV692-Monthly!AV691","v":-3.5},{"$f":"Monthly!AW692-Monthly!AW691","v":-2},{"$f":"Monthly!AX692-Monthly!AX691","v":2.7999999999999972},{"$f":"Monthly!AY692-Monthly!AY691","v":1},{"$f":"Monthly!AZ692-Monthly!AZ691","v":1.1000000000000014},{"$f":"Monthly!BA692-Monthly!BA691","v":0.19999999999999574},{"$f":"Monthly!BB692-Monthly!BB691","v":1.6999999999999957},{"$f":"(Monthly!BC692/Monthly!BC691)-1","v":-1.7913397986286661E-3},null,null,null,null,null,null,null,null,null,{"$f":"(Monthly!BM692/Monthly!BM691)-1","v":-1.9577482335771945E-3},{"$f":"(Monthly!BN692/Monthly!BN691)-1","v":-3.0975891690150359E-3},null,null,null,null,null,{"$f":"(Monthly!BT692/Monthly!BT691)-1","v":7.1958939333554017E-3},null,null,null,{"$f":"(Monthly!BX692/Monthly!BX691)-1","v":-0.12406947890818854},{"$f":"(Monthly!BY692/Monthly!BY691)-1","v":3.6444444444444501E-2},{"$f":"(Monthly!BZ692/Monthly!BZ691)-1","v":8.7719298245612087E-3},{"$f":"(Monthly!CA692/Monthly!CA691)-1","v":-3.3941687068773652E-3},{"$f":"Monthly!CB692-Monthly!CB691","v":0.12841848209910189},{"$f":"Monthly!CC692-Monthly!CC691","v":0.12841848209910012},{"$f":"(Monthly!CD692/Monthly!CD691)-1","v":8.9686098654708779E-3},{"$f":"(Monthly!CE692/Monthly!CE691)-1","v":4.5553145336225676E-2},null,{"$f":"(Monthly!CG692/Monthly!CG691)-1","v":-3.6529680365296802E-2},{"$f":"(Monthly!CH692/Monthly!CH691)-1","v":-2.7573529411764719E-2},null,{"$f":"(Monthly!CJ692/Monthly!CJ691)-1","v":4.5553145336225676E-2},{"$f":"(Monthly!CK692/Monthly!CK691)-1","v":5.6052451815959969E-3},{"$f":"(Monthly!CL692/Monthly!CL691)-1","v":5.6372251245292215E-2},{"$f":"(Monthly!CM692/Monthly!CM691)-1","v":-5.3763440860215006E-2},{"$f":"(Monthly!CN692/Monthly!CN691)-1","v":4.2229189327531724E-3},{"$f":"(Monthly!CO692/Monthly!CO691)-1","v":6.1772894501341824E-3},{"$f":"(Monthly!CP692/Monthly!CP691)-1","v":4.6204400680105451E-3},null,{"$f":"(Monthly!CR692/Monthly!CR691)-1","v":2.7451969317928704E-3},"--","--",null,null,null,null,null,{"$f":"(Monthly!CZ692/Monthly!CZ691)-1","v":1.3686112175586018E-3},{"$f":"(Monthly!DA692/Monthly!DA691)-1","v":1.9321764940452013E-3},null,null,null,null,null,"--",{"$f":"((Monthly!DH692-Monthly!DH691)*60)","v":0},{"$f":"((Monthly!DI692-Monthly!DI691)*100)","v":10.000000000000142},{"$f":"((Monthly!DJ692-Monthly!DJ691)*100)","v":-19.999999999999929},{"$f":"((Monthly!DK692-Monthly!DK691)*100)","v":0},{"$f":"Monthly!DL692-Monthly!DL691","v":7},null,null,null,{"$f":"Monthly!DP692-Monthly!DP691","v":321},null,null,null,{"$f":"(Monthly!DT692/Monthly!DT691)-1","v":7.9936051159072985E-3},{"$f":"Monthly!DU692-Monthly!DU691","v":0},{"$f":"(Monthly!DV692-Monthly!DV691)","v":-5.2999999999999545},{"$f":"(Monthly!DW692-Monthly!DW691)","v":-6.7999999999999545},{"$f":"(Monthly!DX692-Monthly!DX691)","v":-2},{"$f":"(Monthly!DY692-Monthly!DY691)","v":-2.5},{"$f":"(Monthly!DZ692-Monthly!DZ691)","v":0.5},{"$f":"(Monthly!EA692-Monthly!EA691)","v":1},{"$f":"(Monthly!EB692-Monthly!EB691)","v":-0.5},{"$f":"(Monthly!EC692-Monthly!EC691)","v":-4.8000000000000114},null,null,null,null,null,null,null,null,null,null,null,null,null,{"$f":"(Monthly!EQ692/Monthly!EQ691)-1","v":-8.461131676361644E-3},{"$f":"(Monthly!ER692/Monthly!ER691)-1","v":-2.5879917184264967E-3},{"$f":"(Monthly!ES692/Monthly!ES691)-1","v":-2.3682652457075459E-3},null,null,null,null,null,{"$f":"((Monthly!EY692-Monthly!EY691)*100)","v":0},{"$f":"((Monthly!EZ692-Monthly!EZ691)*100)","v":-2.0000000000000018},{"$f":"((Monthly!FA692-Monthly!FA691)*100)","v":-12.000000000000011},{"$f":"((Monthly!FB692-Monthly!FB691)*100)","v":0},"--",{"$f":"((Monthly!FD692-Monthly!FD691)*100)","v":-9.0000000000000302},{"$f":"((Monthly!FE692-Monthly!FE691)*100)","v":0},{"$f":"((Monthly!FF692-Monthly!FF691)*100)","v":-10.999999999999998},{"$f":"((Monthly!FG692-Monthly!FG691)*100)","v":-6.9999999999999947},{"$f":"((Monthly!FH692-Monthly!FH691)*100)","v":-10.000000000000009},{"$f":"((Monthly!FI692-Monthly!FI691)*100)","v":-10.000000000000009},null,null,null,null,null,null,{"$f":"(Monthly!FP692/Monthly!FP691)-1","v":-1.4623850444746012E-2},{"$f":"(Monthly!FQ692/Monthly!FQ691)-1","v":-2.6854701928513691E-3},{"$f":"(Monthly!FR692/Monthly!FR691)-1","v":-1.5975104966535314E-2},{"$f":"(Monthly!FS692/Monthly!FS691)-1","v":-8.9055125122472489E-5},{"$f":"(Monthly!FT692/Monthly!FT691)-1","v":-8.7244251455803612E-3},{"$f":"(Monthly!FU692/Monthly!FU691)-1","v":-4.964986139777805E-3},{"$f":"(Monthly!FV692/Monthly!FV691)-1","v":-6.463872312322283E-2},{"$f":"(Monthly!FW692/Monthly!FW691)-1","v":-3.0626933325166195E-2},{"$f":"(Monthly!FX692/Monthly!FX691)-1","v":9.2350326467128374E-2},null,null,null,null,null,{"$f":"(Monthly!GD692/Monthly!GD691)-1","v":1.6270888302550635E-2},{"$f":"(Monthly!GE692/Monthly!GE691)-1","v":1.7009659806803912E-2},{"$f":"(Monthly!GF692/Monthly!GF691)-1","v":-3.046303818034124E-2},{"$f":"(Monthly!GG692/Monthly!GG691)-1","v":5.5888223552895688E-3},{"$f":"(Monthly!GH692/Monthly!GH691)-1","v":1.1288343558282232E-2},{"$f":"(Monthly!GI692/Monthly!GI691)-1","v":-3.6245353159851335E-2},{"$f":"(Monthly!GJ692/Monthly!GJ691)-1","v":-9.8484848484848619E-2},{"$f":"(Monthly!GK692/Monthly!GK691)-1","v":5.1880245852884865E-2},{"$f":"(Monthly!GL692/Monthly!GL691)-1","v":-2.3965810092597795E-2}]
["2015-11-01",null,null,null,{"$f":"(Monthly!E693/Monthly!E692)-1","v":2.5821120442750534E-3},{"$f":"(Monthly!F693/Monthly!F692)-1","v":1.4039231122482621E-2},{"$f":"(Monthly!G693/Monthly!G692)-1","v":4.1852905323040979E-3},{"$f":"(Monthly!H693/Monthly!H692)-1","v":2.1631560446677689E-4},null,null,null,null,null,null,null,null,null,null,null,null,null,null,null,{"$f":"(Monthly!X693-Monthly!X692)","v":-0.40000000000000568},{"$f":"(Monthly!Y693/Monthly!Y692)-1","v":9.5263837975536614E-3},null,null,null,null,null,null,null,null,null,null,null,null,null,{"$f":"(Monthly!AM693/Monthly!AM692)-1","v":-5.8459008985186633E-3},{"$f":"(Monthly!AN693/Monthly!AN692)-1","v":-8.5368002281671629E-4},{"$f":"(Monthly!AO693/Monthly!AO692)-1","v":-2.3517079078045899E-3},{"$f":"((Monthly!AP693-Monthly!AP692)*100)","v":0},{"$f":"Monthly!AQ693-Monthly!AQ692","v":-1},{"$f":"Monthly!AR693-Monthly!AR692","v":0.5},{"$f":"Monthly!AS693-Monthly!AS692","v":-0.5},{"$f":"Monthly!AT693-Monthly!AT692","v":3.6999999999999957},{"$f":"Monthly!AU693-Monthly!AU692","v":0},{"$f":"Monthly!AV693-Monthly!AV692","v":2},{"$f":"Monthly!AW693-Monthly!AW692","v":-3.5},{"$f":"Monthly!AX693-Monthly!AX692","v":-4},{"$f":"Monthly!AY693-Monthly!AY692","v":-3.5},{"$f":"Monthly!AZ693-Monthly!AZ692","v":-3.6999999999999957},{"$f":"Monthly!BA693-Monthly!BA692","v":0.20000000000000284},{"$f":"Monthly!BB693-Monthly!BB692","v":-2.3999999999999986},{"$f":"(Monthly!BC693/Monthly!BC692)-1","v":-1.2329826732673244E-2},null,null,null,null,null,null,null,null,null,{"$f":"(Monthly!BM693/Monthly!BM692)-1","v":4.2196444174973369E-3},{"$f":"(Monthly!BN693/Monthly!BN692)-1","v":4.0671663471036901E-3},null,null,null,null,null,{"$f":"(Monthly!BT693/Monthly!BT692)-1","v":5.151834123169774E-3},null,null,null,{"$f":"(Monthly!BX693/Monthly!BX692)-1","v":0.11048158640226635},{"$f":"(Monthly!BY693/Monthly!BY692)-1","v":8.6620926243567764E-2},{"$f":"(Monthly!BZ693/Monthly!BZ692)-1","v":6.7143643368188233E-3},{"$f":"(Monthly!CA693/Monthly!CA692)-1","v":3.070738652224847E-3},{"$f":"Monthly!CB693-Monthly!CB692","v":0.31607352536742184},{"$f":"Monthly!CC693-Monthly!CC692","v":0.31607352536742184},{"$f":"(Monthly!CD693/Monthly!CD692)-1","v":1.777777777777767E-2},{"$f":"(Monthly!CE693/Monthly!CE692)-1","v":5.3941908713692976E-2},null,{"$f":"(Monthly!CG693/Monthly!CG692)-1","v":-3.3175355450236976E-2},{"$f":"(Monthly!CH693/Monthly!CH692)-1","v":-8.1285444234404536E-2},null,{"$f":"(Monthly!CJ693/Monthly!CJ692)-1","v":5.3941908713692976E-2},{"$f":"(Monthly!CK693/Monthly!CK692)-1","v":1.5680847146657406E-3},{"$f":"(Monthly!CL693/Monthly!CL692)-1","v":-3.7722829212190834E-2},{"$f":"(Monthly!CM693/Monthly!CM692)-1","v":0.109375},{"$f":"(Monthly!CN693/Monthly!CN692)-1","v":6.3714558776517549E-5},{"$f":"(Monthly!CO693/Monthly!CO692)-1","v":5.3117240868159055E-3},{"$f":"(Monthly!CP693/Monthly!CP692)-1","v":5.5488287131677527E-3},null,{"$f":"(Monthly!CR693/Monthly!CR692)-1","v":7.0757558093303974E-3},"--","--",null,null,null,null,null,{"$f":"(Monthly!CZ693/Monthly!CZ692)-1","v":1.5181334948188852E-3},{"$f":"(Monthly!DA693/Monthly!DA692)-1","v":2.0597491373262056E-3},null,null,null,null,null,"--",{"$f":"((Monthly!DH693-Monthly!DH692)*60)","v":0},{"$f":"((Monthly!DI693-Monthly!DI692)*100)","v":0},{"$f":"((Monthly!DJ693-Monthly!DJ692)*100)","v":9.9999999999999645},{"$f":"((Monthly!DK693-Monthly!DK692)*100)","v":0},{"$f":"Monthly!DL693-Monthly!DL692","v":-7},null,null,null,{"$f":"Monthly!DP693-Monthly!DP692","v":272},null,null,null,{"$f":"(Monthly!DT693/Monthly!DT692)-1","v":-3.1720856463124392E-3},{"$f":"Monthly!DU693-Monthly!DU692","v":-0.40000000000000036},{"$f":"(Monthly!DV693-Monthly!DV692)","v":2.5999999999999091},{"$f":"(Monthly!DW693-Monthly!DW692)","v":-5.2000000000000455},{"$f":"(Monthly!DX693-Monthly!DX692)","v":0.79999999999995453},{"$f":"(Monthly!DY693-Monthly!DY692)","v":0.90000000000000568},{"$f":"(Monthly!DZ693-Monthly!DZ692)","v":-0.10000000000002274},{"$f":"(Monthly!EA693-Monthly!EA692)","v":1},{"$f":"(Monthly!EB693-Monthly!EB692)","v":-1.0999999999999943},{"$f":"(Monthly!EC693-Monthly!EC692)","v":-6},null,null,null,null,null,null,null,null,null,null,null,null,null,{"$f":"(Monthly!EQ693/Monthly!EQ692)-1","v":-9.6000000000000529E-3},{"$f":"(Monthly!ER693/Monthly!ER692)-1","v":1.0378827192527584E-3},{"$f":"(Monthly!ES693/Monthly!ES692)-1","v":5.9347181008906347E-4},null,null,null,null,null,{"$f":"((Monthly!EY693-Monthly!EY692)*100)","v":0},{"$f":"((Monthly!EZ693-Monthly!EZ692)*100)","v":0},{"$f":"((Monthly!FA693-Monthly!FA692)*100)","v":10.999999999999943},{"$f":"((Monthly!FB693-Monthly!FB692)*100)","v":12.000000000000011},"--",{"$f":"((Monthly!FD693-Monthly!FD692)*100)","v":14.000000000000012},{"$f":"((Monthly!FE693-Monthly!FE692)*100)","v":10},{"$f":"((Monthly!FF693-Monthly!FF692)*100)","v":21.999999999999996},{"$f":"((Monthly!FG693-Monthly!FG692)*100)","v":24},{"$f":"((Monthly!FH693-Monthly!FH692)*100)","v":28.000000000000004},{"$f":"((Monthly!FI693-Monthly!FI692)*100)","v":18.999999999999993},null,null,null,null,null,null,{"$f":"(Monthly!FP693/Monthly!FP692)-1","v":1.5835373317013568E-2},{"$f":"(Monthly!FQ693/Monthly!FQ692)-1","v":2.1258168648137232E-3},{"$f":"(Monthly!FR693/Monthly!FR692)-1","v":3.6753833805078795E-3},{"$f":"(Monthly!FS693/Monthly!FS692)-1","v":-4.4620591378696117E-2},{"$f":"(Monthly!FT693/Monthly!FT692)-1","v":1.5217046449341742E-2},{"$f":"(Monthly!FU693/Monthly!FU692)-1","v":2.9756277006363518E-2},{"$f":"(Monthly!FV693/Monthly!FV692)-1","v":-3.1333237500105748E-2},{"$f":"(Monthly!FW693/Monthly!FW692)-1","v":-5.4715039470655369E-2},{"$f":"(Monthly!FX693/Monthly!FX692)-1","v":-0.13085084853566165},null,null,null,null,null,{"$f":"(Monthly!GD693/Monthly!GD692)-1","v":-8.1782778018174018E-2},{"$f":"(Monthly!GE693/Monthly!GE692)-1","v":-8.5897171174891485E-2},{"$f":"(Monthly!GF693/Monthly!GF692)-1","v":-5.3204859656472703E-2},{"$f":"(Monthly!GG693/Monthly!GG692)-1","v":-2.0643112346169112E-2},{"$f":"(Monthly!GH693/Monthly!GH692)-1","v":-1.6015530211113793E-2},{"$f":"(Monthly!GI693/Monthly!GI692)-1","v":8.6788813886209404E-3},{"$f":"(Monthly!GJ693/Monthly!GJ692)-1","v":-4.2016806722689148E-2},{"$f":"(Monthly!GK693/Monthly!GK692)-1","v":-3.7697914048755998E-2},{"$f":"(Monthly!GL693/Monthly!GL692)-1","v":6.4411460906274032E-2}]
["2015-12-01",null,null,null,{"$f":"(Monthly!E694/Monthly!E693)-1","v":3.2786597050085131E-3},{"$f":"(Monthly!F694/Monthly!F693)-1","v":3.8817364300964829E-3},{"$f":"(Monthly!G694/Monthly!G693)-1","v":5.6245700643384744E-3},{"$f":"(Monthly!H694/Monthly!H693)-1","v":2.4330242491417131E-3},null,null,null,null,null,null,null,null,null,null,null,null,null,null,null,{"$f":"(Monthly!X694-Monthly!X693)","v":-0.40000000000000568},{"$f":"(Monthly!Y694/Monthly!Y693)-1","v":4.5610686287480551E-3},null,null,null,null,null,null,null,null,null,null,null,null,null,{"$f":"(Monthly!AM694/Monthly!AM693)-1","v":-4.6287833727447492E-3},{"$f":"(Monthly!AN694/Monthly!AN693)-1","v":-2.3303846303730502E-3},{"$f":"(Monthly!AO694/Monthly!AO693)-1","v":3.2177120624821143E-4},{"$f":"((Monthly!AP694-Monthly!AP693)*100)","v":1.0000000000000009},{"$f":"Monthly!AQ694-Monthly!AQ693","v":-0.39999999999999858},{"$f":"Monthly!AR694-Monthly!AR693","v":-2},{"$f":"Monthly!AS694-Monthly!AS693","v":1},{"$f":"Monthly!AT694-Monthly!AT693","v":-3.2999999999999972},{"$f":"Monthly!AU694-Monthly!AU693","v":3.5},{"$f":"Monthly!AV694-Monthly!AV693","v":-3.5},{"$f":"Monthly!AW694-Monthly!AW693","v":0.5},{"$f":"Monthly!AX694-Monthly!AX693","v":-0.10000000000000142},{"$f":"Monthly!AY694-Monthly!AY693","v":-2},{"$f":"Monthly!AZ694-Monthly!AZ693","v":0.69999999999999574},{"$f":"Monthly!BA694-Monthly!BA693","v":-0.80000000000000426},{"$f":"Monthly!BB694-Monthly!BB693","v":0.10000000000000142},{"$f":"(Monthly!BC694/Monthly!BC693)-1","v":-4.457810566546061E-2},null,null,null,null,null,null,null,null,null,{"$f":"(Monthly!BM694/Monthly!BM693)-1","v":4.9876916998328191E-3},{"$f":"(Monthly!BN694/Monthly!BN693)-1","v":3.2682287407883592E-3},null,null,null,null,null,{"$f":"(Monthly!BT694/Monthly!BT693)-1","v":6.1469015140080963E-3},null,null,null,{"$f":"(Monthly!BX694/Monthly!BX693)-1","v":-3.2312925170068008E-2},{"$f":"(Monthly!BY694/Monthly!BY693)-1","v":-3.8674033149171283E-2},{"$f":"(Monthly!BZ694/Monthly!BZ693)-1","v":5.3575333479116694E-3},{"$f":"(Monthly!CA694/Monthly!CA693)-1","v":-4.2914393855059574E-2},{"$f":"Monthly!CB694-Monthly!CB693","v":0.22202130852635449},{"$f":"Monthly!CC694-Monthly!CC693","v":0.22202130852635449},{"$f":"(Monthly!CD694/Monthly!CD693)-1","v":2.1834061135371119E-2},{"$f":"(Monthly!CE694/Monthly!CE693)-1","v":5.5118110236220375E-2},null,{"$f":"(Monthly!CG694/Monthly!CG693)-1","v":-0.13725490196078427},{"$f":"(Monthly!CH694/Monthly!CH693)-1","v":0.12139917695473246},null,{"$f":"(Monthly!CJ694/Monthly!CJ693)-1","v":5.5118110236220375E-2},{"$f":"(Monthly!CK694/Monthly!CK693)-1","v":1.9649603204796584E-4},{"$f":"(Monthly!CL694/Monthly!CL693)-1","v":-3.6333213816182708E-2},{"$f":"(Monthly!CM694/Monthly!CM693)-1","v":-2.1766965428937302E-2},{"$f":"(Monthly!CN694/Monthly!CN693)-1","v":1.1149337410805149E-3},{"$f":"(Monthly!CO694/Monthly!CO693)-1","v":5.1484953860141403E-3},{"$f":"(Monthly!CP694/Monthly!CP693)-1","v":-3.2365453354237683E-2},null,{"$f":"(Monthly!CR694/Monthly!CR693)-1","v":-2.682186889979854E-2},"--","--",null,null,null,null,null,{"$f":"(Monthly!CZ694/Monthly!CZ693)-1","v":-1.2890872674288234E-3},{"$f":"(Monthly!DA694/Monthly!DA693)-1","v":1.4740747110197905E-3},null,null,null,null,null,"--",{"$f":"((Monthly!DH694-Monthly!DH693)*60)","v":5.9999999999996589},{"$f":"((Monthly!DI694-Monthly!DI693)*100)","v":20.000000000000284},{"$f":"((Monthly!DJ694-Monthly!DJ693)*100)","v":0},{"$f":"((Monthly!DK694-Monthly!DK693)*100)","v":0},{"$f":"Monthly!DL694-Monthly!DL693","v":13},null,null,null,{"$f":"Monthly!DP694-Monthly!DP693","v":239},null,null,null,{"$f":"(Monthly!DT694/Monthly!DT693)-1","v":-9.5465393794749165E-3},{"$f":"Monthly!DU694-Monthly!DU693","v":-0.30000000000000071},{"$f":"(Monthly!DV694-Monthly!DV693)","v":0.70000000000004547},{"$f":"(Monthly!DW694-Monthly!DW693)","v":-7.8999999999998636},{"$f":"(Monthly!DX694-Monthly!DX693)","v":-0.19999999999993179},{"$f":"(Monthly!DY694-Monthly!DY693)","v":-1.6000000000000227},{"$f":"(Monthly!DZ694-Monthly!DZ693)","v":1.3999999999999773},{"$f":"(Monthly!EA694-Monthly!EA693)","v":0.40000000000003411},{"$f":"(Monthly!EB694-Monthly!EB693)","v":1},{"$f":"(Monthly!EC694-Monthly!EC693)","v":-7.6999999999999886},null,null,null,null,null,null,null,null,null,null,null,null,null,{"$f":"(Monthly!EQ694/Monthly!EQ693)-1","v":-1.1847065158858361E-2},{"$f":"(Monthly!ER694/Monthly!ER693)-1","v":2.5920165889061764E-3},{"$f":"(Monthly!ES694/Monthly!ES693)-1","v":5.9311981020160331E-4},null,null,null,null,null,{"$f":"((Monthly!EY694-Monthly!EY693)*100)","v":12.000000000000011},{"$f":"((Monthly!EZ694-Monthly!EZ693)*100)","v":12},{"$f":"((Monthly!FA694-Monthly!FA693)*100)","v":-8.9999999999999414},{"$f":"((Monthly!FB694-Monthly!FB693)*100)","v":0},"--",{"$f":"((Monthly!FD694-Monthly!FD693)*100)","v":2.0000000000000018},{"$f":"((Monthly!FE694-Monthly!FE693)*100)","v":11.000000000000002},{"$f":"((Monthly!FF694-Monthly!FF693)*100)","v":17.000000000000004},{"$f":"((Monthly!FG694-Monthly!FG693)*100)","v":9.9999999999999982},{"$f":"((Monthly!FH694-Monthly!FH693)*100)","v":3.0000000000000027},{"$f":"((Monthly!FI694-Monthly!FI693)*100)","v":-1.9999999999999574},null,null,null,null,null,null,{"$f":"(Monthly!FP694/Monthly!FP693)-1","v":3.2683183974696828E-2},{"$f":"(Monthly!FQ694/Monthly!FQ693)-1","v":1.3372093023255704E-2},{"$f":"(Monthly!FR694/Monthly!FR693)-1","v":2.6397123374983567E-2},{"$f":"(Monthly!FS694/Monthly!FS693)-1","v":1.5102078866411794E-2},{"$f":"(Monthly!FT694/Monthly!FT693)-1","v":1.0150823814008003E-2},{"$f":"(Monthly!FU694/Monthly!FU693)-1","v":1.5760911872189087E-3},{"$f":"(Monthly!FV694/Monthly!FV693)-1","v":3.0570334903169183E-2},{"$f":"(Monthly!FW694/Monthly!FW693)-1","v":-9.28094463901602E-2},{"$f":"(Monthly!FX694/Monthly!FX693)-1","v":-3.7371519808402476E-2},null,null,null,null,null,{"$f":"(Monthly!GD694/Monthly!GD693)-1","v":-0.12370405278039587},{"$f":"(Monthly!GE694/Monthly!GE693)-1","v":-0.14140501468262945},{"$f":"(Monthly!GF694/Monthly!GF693)-1","v":-5.1327433628318486E-2},{"$f":"(Monthly!GG694/Monthly!GG693)-1","v":-6.3640048642075397E-2},{"$f":"(Monthly!GH694/Monthly!GH693)-1","v":5.8939580764488353E-2},{"$f":"(Monthly!GI694/Monthly!GI693)-1","v":8.5086042065009471E-2},{"$f":"(Monthly!GJ694/Monthly!GJ693)-1","v":-0.10350877192982444},{"$f":"(Monthly!GK694/Monthly!GK693)-1","v":-5.8696787673021666E-2},{"$f":"(Monthly!GL694/Monthly!GL693)-1","v":-5.3794631084858047E-3}]
["2016-01-01",null,null,null,{"$f":"(Monthly!E695/Monthly!E694)-1","v":-1.2353358624134225E-3},{"$f":"(Monthly!F695/Monthly!F694)-1","v":-1.2115744022684782E-2},{"$f":"(Monthly!G695/Monthly!G694)-1","v":-1.2876227265410378E-3},{"$f":"(Monthly!H695/Monthly!H694)-1","v":5.6632776893827952E-4},null,null,null,null,null,null,null,null,null,null,null,null,null,null,null,{"$f":"(Monthly!X695-Monthly!X694)","v":0.5},{"$f":"(Monthly!Y695/Monthly!Y694)-1","v":5.4470609163865813E-3},null,null,null,null,null,null,null,null,null,null,null,null,null,{"$f":"(Monthly!AM695/Monthly!AM694)-1","v":5.4830112157360222E-3},{"$f":"(Monthly!AN695/Monthly!AN694)-1","v":6.0426854991173506E-3},{"$f":"(Monthly!AO695/Monthly!AO694)-1","v":-3.7380005468345967E-4},{"$f":"((Monthly!AP695-Monthly!AP694)*100)","v":1.0000000000000009},{"$f":"Monthly!AQ695-Monthly!AQ694","v":0.20000000000000284},{"$f":"Monthly!AR695-Monthly!AR694","v":2},{"$f":"Monthly!AS695-Monthly!AS694","v":0},{"$f":"Monthly!AT695-Monthly!AT694","v":-2.1000000000000014},{"$f":"Monthly!AU695-Monthly!AU694","v":-4},{"$f":"Monthly!AV695-Monthly!AV694","v":5.5},{"$f":"Monthly!AW695-Monthly!AW694","v":0},{"$f":"Monthly!AX695-Monthly!AX694","v":2.7000000000000028},{"$f":"Monthly!AY695-Monthly!AY694","v":0},{"$f":"Monthly!AZ695-Monthly!AZ694","v":0.30000000000000426},{"$f":"Monthly!BA695-Monthly!BA694","v":0.20000000000000284},{"$f":"Monthly!BB695-Monthly!BB694","v":-5.6000000000000014},{"$f":"(Monthly!BC695/Monthly!BC694)-1","v":3.1116284407429973E-2},null,null,null,null,null,null,null,null,null,{"$f":"(Monthly!BM695/Monthly!BM694)-1","v":-1.0126867451784149E-2},{"$f":"(Monthly!BN695/Monthly!BN694)-1","v":-8.8172895110366634E-3},null,null,null,null,null,{"$f":"(Monthly!BT695/Monthly!BT694)-1","v":7.7161302992834191E-3},null,null,null,{"$f":"(Monthly!BX695/Monthly!BX694)-1","v":-1.3181019332161648E-2},{"$f":"(Monthly!BY695/Monthly!BY694)-1","v":-2.0525451559934349E-2},{"$f":"(Monthly!BZ695/Monthly!BZ694)-1","v":6.0358890701468493E-3},{"$f":"(Monthly!CA695/Monthly!CA694)-1","v":2.5879616167490571E-2},{"$f":"Monthly!CB695-Monthly!CB694","v":0.60071376291103196},{"$f":"Monthly!CC695-Monthly!CC694","v":0.53071376291103256},{"$f":"(Monthly!CD695/Monthly!CD694)-1","v":1.2820512820512775E-2},{"$f":"(Monthly!CE695/Monthly!CE694)-1","v":-2.9850746268656692E-2},null,{"$f":"(Monthly!CG695/Monthly!CG694)-1","v":3.4090909090909172E-2},{"$f":"(Monthly!CH695/Monthly!CH694)-1","v":5.5045871559633586E-3},null,{"$f":"(Monthly!CJ695/Monthly!CJ694)-1","v":-2.9850746268656692E-2},{"$f":"(Monthly!CK695/Monthly!CK694)-1","v":-1.6857314870559748E-3},{"$f":"(Monthly!CL695/Monthly!CL694)-1","v":1.0293935259829023E-2},{"$f":"(Monthly!CM695/Monthly!CM694)-1","v":9.162303664921545E-3},{"$f":"(Monthly!CN695/Monthly!CN694)-1","v":-5.4889108091760175E-4},{"$f":"(Monthly!CO695/Monthly!CO694)-1","v":4.7064863939758617E-3},{"$f":"(Monthly!CP695/Monthly!CP694)-1","v":5.1283865656024386E-3},null,{"$f":"(Monthly!CR695/Monthly!CR694)-1","v":2.3618530877465016E-3},"--","--",null,null,null,null,null,{"$f":"(Monthly!CZ695/Monthly!CZ694)-1","v":1.0931443034567501E-3},{"$f":"(Monthly!DA695/Monthly!DA694)-1","v":2.6616948986226685E-3},null,null,null,null,null,"--",{"$f":"((Monthly!DH695-Monthly!DH694)*60)","v":-5.9999999999996589},{"$f":"((Monthly!DI695-Monthly!DI694)*100)","v":0},{"$f":"((Monthly!DJ695-Monthly!DJ694)*100)","v":0},{"$f":"((Monthly!DK695-Monthly!DK694)*100)","v":-9.9999999999999645},{"$f":"Monthly!DL695-Monthly!DL694","v":28},null,null,null,{"$f":"Monthly!DP695-Monthly!DP694","v":126},null,null,null,{"$f":"(Monthly!DT695/Monthly!DT694)-1","v":-8.0321285140562138E-3},{"$f":"Monthly!DU695-Monthly!DU694","v":0.5},{"$f":"(Monthly!DV695-Monthly!DV694)","v":0.60000000000013642},{"$f":"(Monthly!DW695-Monthly!DW694)","v":-26.600000000000136},{"$f":"(Monthly!DX695-Monthly!DX694)","v":-10.900000000000091},{"$f":"(Monthly!DY695-Monthly!DY694)","v":-2.5999999999999943},{"$f":"(Monthly!DZ695-Monthly!DZ694)","v":-8.2999999999999545},{"$f":"(Monthly!EA695-Monthly!EA694)","v":-4},{"$f":"(Monthly!EB695-Monthly!EB694)","v":-4.3000000000000114},{"$f":"(Monthly!EC695-Monthly!EC694)","v":-15.699999999999989},null,null,null,null,null,null,null,null,null,null,null,null,null,{"$f":"(Monthly!EQ695/Monthly!EQ694)-1","v":-4.9046321525886283E-3},null,null,null,null,null,null,null,{"$f":"((Monthly!EY695-Monthly!EY694)*100)","v":12.999999999999989},{"$f":"((Monthly!EZ695-Monthly!EZ694)*100)","v":10.000000000000004},{"$f":"((Monthly!FA695-Monthly!FA694)*100)","v":2.9999999999999805},{"$f":"((Monthly!FB695-Monthly!FB694)*100)","v":-0.99999999999997868},"--",{"$f":"((Monthly!FD695-Monthly!FD694)*100)","v":-8.9999999999999858},{"$f":"((Monthly!FE695-Monthly!FE694)*100)","v":3},{"$f":"((Monthly!FF695-Monthly!FF694)*100)","v":-10.999999999999998},{"$f":"((Monthly!FG695-Monthly!FG694)*100)","v":-7.9999999999999964},{"$f":"((Monthly!FH695-Monthly!FH694)*100)","v":-17.999999999999993},{"$f":"((Monthly!FI695-Monthly!FI694)*100)","v":-15.000000000000036},null,null,null,null,null,null,{"$f":"(Monthly!FP695/Monthly!FP694)-1","v":3.6097134106322537E-2},{"$f":"(Monthly!FQ695/Monthly!FQ694)-1","v":1.9149958908995179E-2},{"$f":"(Monthly!FR695/Monthly!FR694)-1","v":5.8302479261376883E-2},{"$f":"(Monthly!FS695/Monthly!FS694)-1","v":-3.1224171181927218E-3},{"$f":"(Monthly!FT695/Monthly!FT694)-1","v":2.1970233296640052E-2},{"$f":"(Monthly!FU695/Monthly!FU694)-1","v":1.1992662160191125E-2},{"$f":"(Monthly!FV695/Monthly!FV694)-1","v":-5.6722359867013905E-2},{"$f":"(Monthly!FW695/Monthly!FW694)-1","v":-2.2108243814375927E-2},{"$f":"(Monthly!FX695/Monthly!FX694)-1","v":-3.3034433905215987E-2},null,null,null,null,null,{"$f":"(Monthly!GD695/Monthly!GD694)-1","v":-0.14815810701801557},{"$f":"(Monthly!GE695/Monthly!GE694)-1","v":-0.19231781110234147},{"$f":"(Monthly!GF695/Monthly!GF694)-1","v":-4.0578358208955279E-2},{"$f":"(Monthly!GG695/Monthly!GG694)-1","v":-7.2294372294372411E-2},{"$f":"(Monthly!GH695/Monthly!GH694)-1","v":-7.4988355845365673E-2},{"$f":"(Monthly!GI695/Monthly!GI694)-1","v":-0.33568281938325994},{"$f":"(Monthly!GJ695/Monthly!GJ694)-1","v":9.0998043052837652E-2},{"$f":"(Monthly!GK695/Monthly!GK694)-1","v":-5.261843656794063E-2},{"$f":"(Monthly!GL695/Monthly!GL694)-1","v":-8.6823267405482851E-2}]
["2016-02-01",null,null,null,{"$f":"(Monthly!E696/Monthly!E695)-1","v":4.1842839348058547E-3},{"$f":"(Monthly!F696/Monthly!F695)-1","v":8.8720725422402058E-3},{"$f":"(Monthly!G696/Monthly!G695)-1","v":4.5930701047542932E-3},{"$f":"(Monthly!H696/Monthly!H695)-1","v":3.3017088027600394E-3},null,null,null,null,null,null,null,null,null,null,null,null,null,null,null,{"$f":"(Monthly!X696-Monthly!X695)","v":-0.19999999999998863},{"$f":"(Monthly!Y696/Monthly!Y695)-1","v":1.1838124612427059E-2},null,null,null,null,null,null,null,null,null,null,null,null,null,{"$f":"(Monthly!AM696/Monthly!AM695)-1","v":-2.0650894549980592E-3},{"$f":"(Monthly!AN696/Monthly!AN695)-1","v":-1.6297236749638344E-3},{"$f":"(Monthly!AO696/Monthly!AO695)-1","v":-1.6272485629115208E-3},{"$f":"((Monthly!AP696-Monthly!AP695)*100)","v":0},{"$f":"Monthly!AQ696-Monthly!AQ695","v":1.2999999999999972},{"$f":"Monthly!AR696-Monthly!AR695","v":5.5},{"$f":"Monthly!AS696-Monthly!AS695","v":-4.5},{"$f":"Monthly!AT696-Monthly!AT695","v":2.6000000000000014},{"$f":"Monthly!AU696-Monthly!AU695","v":-0.5},{"$f":"Monthly!AV696-Monthly!AV695","v":-2},{"$f":"Monthly!AW696-Monthly!AW695","v":1.5},{"$f":"Monthly!AX696-Monthly!AX695","v":0},{"$f":"Monthly!AY696-Monthly!AY695","v":5},{"$f":"Monthly!AZ696-Monthly!AZ695","v":2.5999999999999943},{"$f":"Monthly!BA696-Monthly!BA695","v":-0.29999999999999716},{"$f":"Monthly!BB696-Monthly!BB695","v":3.8999999999999986},{"$f":"(Monthly!BC696/Monthly!BC695)-1","v":-2.715637173066221E-2},null,null,null,null,null,null,null,null,null,{"$f":"(Monthly!BM696/Monthly!BM695)-1","v":6.7786626086918655E-3},{"$f":"(Monthly!BN696/Monthly!BN695)-1","v":4.2606376788127953E-3},null,null,null,null,null,{"$f":"(Monthly!BT696/Monthly!BT695)-1","v":3.9600633629057747E-3},null,null,null,{"$f":"(Monthly!BX696/Monthly!BX695)-1","v":7.6580587711487125E-2},{"$f":"(Monthly!BY696/Monthly!BY695)-1","v":1.6764459346185756E-3},{"$f":"(Monthly!BZ696/Monthly!BZ695)-1","v":5.5672666342359012E-3},{"$f":"(Monthly!CA696/Monthly!CA695)-1","v":-7.2562358276644368E-3},{"$f":"Monthly!CB696-Monthly!CB695","v":-0.37446723424789941},{"$f":"Monthly!CC696-Monthly!CC695","v":-0.37446723424790029},{"$f":"(Monthly!CD696/Monthly!CD695)-1","v":1.2658227848101333E-2},{"$f":"(Monthly!CE696/Monthly!CE695)-1","v":9.6153846153845812E-3},null,{"$f":"(Monthly!CG696/Monthly!CG695)-1","v":2.7472527472527375E-2},{"$f":"(Monthly!CH696/Monthly!CH695)-1","v":-5.1094890510948954E-2},null,{"$f":"(Monthly!CJ696/Monthly!CJ695)-1","v":9.6153846153845812E-3},{"$f":"(Monthly!CK696/Monthly!CK695)-1","v":-1.6124015260682301E-3},{"$f":"(Monthly!CL696/Monthly!CL695)-1","v":-7.3041983795728016E-2},{"$f":"(Monthly!CM696/Monthly!CM695)-1","v":9.0791180285343609E-2},{"$f":"(Monthly!CN696/Monthly!CN695)-1","v":-6.5266358375970501E-4},{"$f":"(Monthly!CO696/Monthly!CO695)-1","v":5.4388163578180659E-3},{"$f":"(Monthly!CP696/Monthly!CP695)-1","v":4.5276110204235387E-3},null,{"$f":"(Monthly!CR696/Monthly!CR695)-1","v":2.0945877987874617E-3},"--","--",null,null,null,null,null,{"$f":"(Monthly!CZ696/Monthly!CZ695)-1","v":-1.2515434302369233E-3},{"$f":"(Monthly!DA696/Monthly!DA695)-1","v":2.499673778299627E-3},null,null,null,null,null,"--",{"$f":"((Monthly!DH696-Monthly!DH695)*60)","v":-6.0000000000000853},{"$f":"((Monthly!DI696-Monthly!DI695)*100)","v":19.999999999999574},{"$f":"((Monthly!DJ696-Monthly!DJ695)*100)","v":-9.9999999999999645},{"$f":"((Monthly!DK696-Monthly!DK695)*100)","v":0},{"$f":"Monthly!DL696-Monthly!DL695","v":-12},null,null,null,{"$f":"Monthly!DP696-Monthly!DP695","v":237},null,null,null,{"$f":"(Monthly!DT696/Monthly!DT695)-1","v":-1.7004048582995979E-2},{"$f":"Monthly!DU696-Monthly!DU695","v":0.10000000000000142},{"$f":"(Monthly!DV696-Monthly!DV695)","v":-1.1000000000001364},{"$f":"(Monthly!DW696-Monthly!DW695)","v":-4.8999999999998636},{"$f":"(Monthly!DX696-Monthly!DX695)","v":-3.5},{"$f":"(Monthly!DY696-Monthly!DY695)","v":-1.0999999999999943},{"$f":"(Monthly!DZ696-Monthly!DZ695)","v":-2.4000000000000909},{"$f":"(Monthly!EA696-Monthly!EA695)","v":-1},{"$f":"(Monthly!EB696-Monthly!EB695)","v":-1.4000000000000057},{"$f":"(Monthly!EC696-Monthly!EC695)","v":-1.3999999999999773},null,null,null,null,null,null,null,null,null,null,null,null,null,{"$f":"(Monthly!EQ696/Monthly!EQ695)-1","v":-7.1193866374588133E-3},null,null,null,null,null,null,null,{"$f":"((Monthly!EY696-Monthly!EY695)*100)","v":0},{"$f":"((Monthly!EZ696-Monthly!EZ695)*100)","v":3.9999999999999982},{"$f":"((Monthly!FA696-Monthly!FA695)*100)","v":-4.0000000000000036},{"$f":"((Monthly!FB696-Monthly!FB695)*100)","v":-11.000000000000032},"--",{"$f":"((Monthly!FD696-Monthly!FD695)*100)","v":-20.999999999999996},{"$f":"((Monthly!FE696-Monthly!FE695)*100)","v":4.9999999999999991},{"$f":"((Monthly!FF696-Monthly!FF695)*100)","v":-1.0000000000000009},{"$f":"((Monthly!FG696-Monthly!FG695)*100)","v":-17.000000000000004},{"$f":"((Monthly!FH696-Monthly!FH695)*100)","v":-30.000000000000004},{"$f":"((Monthly!FI696-Monthly!FI695)*100)","v":-30.999999999999982},null,null,null,null,null,null,{"$f":"(Monthly!FP696/Monthly!FP695)-1","v":-2.8927364864864913E-2},{"$f":"(Monthly!FQ696/Monthly!FQ695)-1","v":-3.4233028025439927E-3},{"$f":"(Monthly!FR696/Monthly!FR695)-1","v":2.0393250963198994E-2},{"$f":"(Monthly!FS696/Monthly!FS695)-1","v":2.1833256563795533E-2},{"$f":"(Monthly!FT696/Monthly!FT695)-1","v":-8.1734376889497362E-3},{"$f":"(Monthly!FU696/Monthly!FU695)-1","v":-2.1740022409140414E-2},{"$f":"(Monthly!FV696/Monthly!FV695)-1","v":-2.0631100654627699E-2},{"$f":"(Monthly!FW696/Monthly!FW695)-1","v":-2.8813782821528022E-2},{"$f":"(Monthly!FX696/Monthly!FX695)-1","v":3.5328854503546836E-2},null,null,null,null,null,{"$f":"(Monthly!GD696/Monthly!GD695)-1","v":-4.2929292929292928E-2},{"$f":"(Monthly!GE696/Monthly!GE695)-1","v":4.820846905537457E-2},{"$f":"(Monthly!GF696/Monthly!GF695)-1","v":-8.9936801166747626E-2},{"$f":"(Monthly!GG696/Monthly!GG695)-1","v":-6.7662155856276107E-2},{"$f":"(Monthly!GH696/Monthly!GH695)-1","v":-8.5095669687814679E-2},{"$f":"(Monthly!GI696/Monthly!GI695)-1","v":-7.294429708222816E-2},{"$f":"(Monthly!GJ696/Monthly!GJ695)-1","v":-0.13452914798206284},{"$f":"(Monthly!GK696/Monthly!GK695)-1","v":3.9243249575353634E-3},{"$f":"(Monthly!GL696/Monthly!GL695)-1","v":-2.6571282575370336E-2}]
["2016-03-01",null,null,null,{"$f":"(Monthly!E697/Monthly!E696)-1","v":-2.795370168159339E-4},{"$f":"(Monthly!F697/Monthly!F696)-1","v":4.7203362431296192E-3},{"$f":"(Monthly!G697/Monthly!G696)-1","v":-1.1630705061362878E-3},{"$f":"(Monthly!H697/Monthly!H696)-1","v":-8.1935284557210775E-4},null,null,null,null,null,null,null,null,null,null,null,null,null,null,null,{"$f":"(Monthly!X697-Monthly!X696)","v":-0.5},{"$f":"(Monthly!Y697/Monthly!Y696)-1","v":1.6909097243837268E-2},null,null,null,null,null,null,null,null,null,null,null,null,null,{"$f":"(Monthly!AM697/Monthly!AM696)-1","v":-7.1870899645100073E-3},{"$f":"(Monthly!AN697/Monthly!AN696)-1","v":-1.718913001418465E-3},{"$f":"(Monthly!AO697/Monthly!AO696)-1","v":4.3823381657974725E-3},{"$f":"((Monthly!AP697-Monthly!AP696)*100)","v":0},{"$f":"Monthly!AQ697-Monthly!AQ696","v":2.2999999999999972},{"$f":"Monthly!AR697-Monthly!AR696","v":2.5},{"$f":"Monthly!AS697-Monthly!AS696","v":2},{"$f":"Monthly!AT697-Monthly!AT696","v":-0.39999999999999858},{"$f":"Monthly!AU697-Monthly!AU696","v":5.5},{"$f":"Monthly!AV697-Monthly!AV696","v":0.5},{"$f":"Monthly!AW697-Monthly!AW696","v":2},{"$f":"Monthly!AX697-Monthly!AX696","v":6.7999999999999972},{"$f":"Monthly!AY697-Monthly!AY696","v":13},{"$f":"Monthly!AZ697-Monthly!AZ696","v":2.5},{"$f":"Monthly!BA697-Monthly!BA696","v":0.5},{"$f":"Monthly!BB697-Monthly!BB696","v":2},{"$f":"(Monthly!BC697/Monthly!BC696)-1","v":1.225750567931172E-3},null,null,null,null,null,null,null,null,null,{"$f":"(Monthly!BM697/Monthly!BM696)-1","v":1.4405741020229179E-4},{"$f":"(Monthly!BN697/Monthly!BN696)-1","v":3.930164008767445E-4},null,null,null,null,null,{"$f":"(Monthly!BT697/Monthly!BT696)-1","v":7.9367871403193124E-3},null,null,null,{"$f":"(Monthly!BX697/Monthly!BX696)-1","v":-6.6997518610421802E-2},{"$f":"(Monthly!BY697/Monthly!BY696)-1","v":-6.6945606694560622E-2},{"$f":"(Monthly!BZ697/Monthly!BZ696)-1","v":5.3214362502687074E-3},{"$f":"(Monthly!CA697/Monthly!CA696)-1","v":-4.2370945637277391E-2},{"$f":"Monthly!CB697-Monthly!CB696","v":4.5137829930386175E-4},{"$f":"Monthly!CC697-Monthly!CC696","v":7.0451378299305034E-2},{"$f":"(Monthly!CD697/Monthly!CD696)-1","v":1.2499999999999956E-2},{"$f":"(Monthly!CE697/Monthly!CE696)-1","v":1.5238095238095273E-2},null,{"$f":"(Monthly!CG697/Monthly!CG696)-1","v":4.8128342245989275E-2},{"$f":"(Monthly!CH697/Monthly!CH696)-1","v":3.6538461538461631E-2},null,{"$f":"(Monthly!CJ697/Monthly!CJ696)-1","v":1.5238095238095273E-2},{"$f":"(Monthly!CK697/Monthly!CK696)-1","v":2.8803051979016114E-3},{"$f":"(Monthly!CL697/Monthly!CL696)-1","v":5.1383922659250292E-2},{"$f":"(Monthly!CM697/Monthly!CM696)-1","v":-0.11058263971462545},{"$f":"(Monthly!CN697/Monthly!CN696)-1","v":2.2141338196992599E-3},{"$f":"(Monthly!CO697/Monthly!CO696)-1","v":6.3896217053514004E-3},{"$f":"(Monthly!CP697/Monthly!CP696)-1","v":7.1227963800695182E-3},null,{"$f":"(Monthly!CR697/Monthly!CR696)-1","v":1.2220672378322917E-2},"--","--",null,null,null,null,null,{"$f":"(Monthly!CZ697/Monthly!CZ696)-1","v":1.1353697100182636E-3},{"$f":"(Monthly!DA697/Monthly!DA696)-1","v":8.8266997498420707E-4},null,null,null,null,null,"--",{"$f":"((Monthly!DH697-Monthly!DH696)*60)","v":0},{"$f":"((Monthly!DI697-Monthly!DI696)*100)","v":10.000000000000142},{"$f":"((Monthly!DJ697-Monthly!DJ696)*100)","v":0},{"$f":"((Monthly!DK697-Monthly!DK696)*100)","v":9.9999999999999645},{"$f":"Monthly!DL697-Monthly!DL696","v":-20},null,null,null,{"$f":"Monthly!DP697-Monthly!DP696","v":225},null,null,null,{"$f":"(Monthly!DT697/Monthly!DT696)-1","v":-6.5897858319604596E-3},{"$f":"Monthly!DU697-Monthly!DU696","v":9.9999999999999645E-2},{"$f":"(Monthly!DV697-Monthly!DV696)","v":-2.2000000000000455},{"$f":"(Monthly!DW697-Monthly!DW696)","v":0.59999999999990905},{"$f":"(Monthly!DX697-Monthly!DX696)","v":-2.6999999999999318},{"$f":"(Monthly!DY697-Monthly!DY696)","v":1},{"$f":"(Monthly!DZ697-Monthly!DZ696)","v":-3.6999999999999318},{"$f":"(Monthly!EA697-Monthly!EA696)","v":-2.9000000000000341},{"$f":"(Monthly!EB697-Monthly!EB696)","v":-0.79999999999998295},{"$f":"(Monthly!EC697-Monthly!EC696)","v":3.2999999999999545},null,null,null,null,null,null,null,null,null,null,null,null,null,{"$f":"(Monthly!EQ697/Monthly!EQ696)-1","v":4.4125758411470706E-3},null,null,null,null,null,null,null,{"$f":"((Monthly!EY697-Monthly!EY696)*100)","v":0},{"$f":"((Monthly!EZ697-Monthly!EZ696)*100)","v":-2.0000000000000018},{"$f":"((Monthly!FA697-Monthly!FA696)*100)","v":-14.000000000000012},{"$f":"((Monthly!FB697-Monthly!FB696)*100)","v":-20.999999999999996},"--",{"$f":"((Monthly!FD697-Monthly!FD696)*100)","v":2.9999999999999805},{"$f":"((Monthly!FE697-Monthly!FE696)*100)","v":-2.0000000000000018},{"$f":"((Monthly!FF697-Monthly!FF696)*100)","v":13},{"$f":"((Monthly!FG697-Monthly!FG696)*100)","v":15.000000000000002},{"$f":"((Monthly!FH697-Monthly!FH696)*100)","v":15.999999999999993},{"$f":"((Monthly!FI697-Monthly!FI696)*100)","v":10.999999999999988},null,null,null,null,null,null,{"$f":"(Monthly!FP697/Monthly!FP696)-1","v":-4.1385808509096123E-2},{"$f":"(Monthly!FQ697/Monthly!FQ696)-1","v":-7.2365307399886447E-3},{"$f":"(Monthly!FR697/Monthly!FR696)-1","v":-4.3557277086995305E-2},{"$f":"(Monthly!FS697/Monthly!FS696)-1","v":3.7865128020193595E-3},{"$f":"(Monthly!FT697/Monthly!FT696)-1","v":-2.0095714642143991E-2},{"$f":"(Monthly!FU697/Monthly!FU696)-1","v":-1.7155621229866136E-2},{"$f":"(Monthly!FV697/Monthly!FV696)-1","v":6.2853291889587215E-2},{"$f":"(Monthly!FW697/Monthly!FW696)-1","v":-0.17319319674357003},{"$f":"(Monthly!FX697/Monthly!FX696)-1","v":6.816034377871838E-2},null,null,null,null,null,{"$f":"(Monthly!GD697/Monthly!GD696)-1","v":0.23845646437994716},{"$f":"(Monthly!GE697/Monthly!GE696)-1","v":0.18738346799254191},{"$f":"(Monthly!GF697/Monthly!GF696)-1","v":0.10630341880341887},{"$f":"(Monthly!GG697/Monthly!GG696)-1","v":4.6046046046045896E-2},{"$f":"(Monthly!GH697/Monthly!GH696)-1","v":-1.8436984039625792E-2},{"$f":"(Monthly!GI697/Monthly!GI696)-1","v":0.40057224606580832},{"$f":"(Monthly!GJ697/Monthly!GJ696)-1","v":-6.2176165803108696E-2},{"$f":"(Monthly!GK697/Monthly!GK696)-1","v":7.9127771295215865E-2},{"$f":"(Monthly!GL697/Monthly!GL696)-1","v":7.1403006442376515E-2}]
["2016-04-01",null,null,null,{"$f":"(Monthly!E698/Monthly!E697)-1","v":5.312688412572264E-3},{"$f":"(Monthly!F698/Monthly!F697)-1","v":8.495301840648839E-3},{"$f":"(Monthly!G698/Monthly!G697)-1","v":7.4282272636017055E-3},{"$f":"(Monthly!H698/Monthly!H697)-1","v":4.1270097327525956E-3},null,null,null,null,null,null,null,null,null,null,null,null,null,null,null,{"$f":"(Monthly!X698-Monthly!X697)","v":0.19999999999998863},{"$f":"(Monthly!Y698/Monthly!Y697)-1","v":8.760235147473372E-3},null,null,null,null,null,null,null,null,null,null,null,null,null,{"$f":"(Monthly!AM698/Monthly!AM697)-1","v":3.3493844993917055E-3},{"$f":"(Monthly!AN698/Monthly!AN697)-1","v":-2.4347748174169404E-4},{"$f":"(Monthly!AO698/Monthly!AO697)-1","v":2.4920022441299317E-3},{"$f":"((Monthly!AP698-Monthly!AP697)*100)","v":0},{"$f":"Monthly!AQ698-Monthly!AQ697","v":-1},{"$f":"Monthly!AR698-Monthly!AR697","v":-0.5},{"$f":"Monthly!AS698-Monthly!AS697","v":-3},{"$f":"Monthly!AT698-Monthly!AT697","v":1.1000000000000014},{"$f":"Monthly!AU698-Monthly!AU697","v":0.5},{"$f":"Monthly!AV698-Monthly!AV697","v":0.5},{"$f":"Monthly!AW698-Monthly!AW697","v":-1.5},{"$f":"Monthly!AX698-Monthly!AX697","v":-2.5},{"$f":"Monthly!AY698-Monthly!AY697","v":7.5},{"$f":"Monthly!AZ698-Monthly!AZ697","v":-1.0999999999999943},{"$f":"Monthly!BA698-Monthly!BA697","v":-1.1000000000000014},{"$f":"Monthly!BB698-Monthly!BB697","v":-1},{"$f":"(Monthly!BC698/Monthly!BC697)-1","v":-2.8729065325976411E-3},null,null,null,null,null,null,null,null,null,{"$f":"(Monthly!BM698/Monthly!BM697)-1","v":6.5525600854470234E-3},{"$f":"(Monthly!BN698/Monthly!BN697)-1","v":6.6811723405004741E-3},null,null,null,null,null,{"$f":"(Monthly!BT698/Monthly!BT697)-1","v":6.1007988970758209E-3},null,null,null,{"$f":"(Monthly!BX698/Monthly!BX697)-1","v":3.1914893617021267E-2},{"$f":"(Monthly!BY698/Monthly!BY697)-1","v":4.3049327354260036E-2},{"$f":"(Monthly!BZ698/Monthly!BZ697)-1","v":2.9941720579587106E-3},{"$f":"(Monthly!CA698/Monthly!CA697)-1","v":4.3172331544424569E-2},{"$f":"Monthly!CB698-Monthly!CB697","v":0.26084705534994423},{"$f":"Monthly!CC698-Monthly!CC697","v":0.26084705534994335},{"$f":"(Monthly!CD698/Monthly!CD697)-1","v":-8.2304526748970819E-3},{"$f":"(Monthly!CE698/Monthly!CE697)-1","v":6.1913696060037493E-2},null,{"$f":"(Monthly!CG698/Monthly!CG697)-1","v":8.163265306122458E-2},{"$f":"(Monthly!CH698/Monthly!CH697)-1","v":1.6697588126159513E-2},null,{"$f":"(Monthly!CJ698/Monthly!CJ697)-1","v":6.1913696060037493E-2},{"$f":"(Monthly!CK698/Monthly!CK697)-1","v":5.6299452221546531E-3},{"$f":"(Monthly!CL698/Monthly!CL697)-1","v":-3.4891044212117306E-2},{"$f":"(Monthly!CM698/Monthly!CM697)-1","v":2.5401069518716568E-2},{"$f":"(Monthly!CN698/Monthly!CN697)-1","v":2.2569237493543781E-3},{"$f":"(Monthly!CO698/Monthly!CO697)-1","v":6.7699189533680926E-3},{"$f":"(Monthly!CP698/Monthly!CP697)-1","v":5.5407676851604304E-3},null,{"$f":"(Monthly!CR698/Monthly!CR697)-1","v":2.80069640574232E-3},"--","--",null,null,null,null,null,{"$f":"(Monthly!CZ698/Monthly!CZ697)-1","v":3.4862524046739285E-3},{"$f":"(Monthly!DA698/Monthly!DA697)-1","v":1.8491274556817761E-3},null,null,null,null,null,"--",{"$f":"((Monthly!DH698-Monthly!DH697)*60)","v":0},{"$f":"((Monthly!DI698-Monthly!DI697)*100)","v":-20.000000000000284},{"$f":"((Monthly!DJ698-Monthly!DJ697)*100)","v":-10.000000000000142},{"$f":"((Monthly!DK698-Monthly!DK697)*100)","v":0},{"$f":"Monthly!DL698-Monthly!DL697","v":1},null,null,null,{"$f":"Monthly!DP698-Monthly!DP697","v":153},null,null,null,{"$f":"(Monthly!DT698/Monthly!DT697)-1","v":-6.6334991708125735E-3},{"$f":"Monthly!DU698-Monthly!DU697","v":-0.20000000000000107},{"$f":"(Monthly!DV698-Monthly!DV697)","v":-0.59999999999990905},{"$f":"(Monthly!DW698-Monthly!DW697)","v":10},{"$f":"(Monthly!DX698-Monthly!DX697)","v":5.1999999999999318},{"$f":"(Monthly!DY698-Monthly!DY697)","v":3},{"$f":"(Monthly!DZ698-Monthly!DZ697)","v":2.1999999999999318},{"$f":"(Monthly!EA698-Monthly!EA697)","v":1.1999999999999886},{"$f":"(Monthly!EB698-Monthly!EB697)","v":1},{"$f":"(Monthly!EC698-Monthly!EC697)","v":4.8000000000000114},null,null,null,null,null,null,null,null,null,null,null,null,null,{"$f":"(Monthly!EQ698/Monthly!EQ697)-1","v":6.0406370126304676E-3},null,null,null,null,null,null,null,{"$f":"((Monthly!EY698-Monthly!EY697)*100)","v":0},{"$f":"((Monthly!EZ698-Monthly!EZ697)*100)","v":1.0000000000000009},{"$f":"((Monthly!FA698-Monthly!FA697)*100)","v":-19.999999999999972},{"$f":"((Monthly!FB698-Monthly!FB697)*100)","v":-33.999999999999986},"--",{"$f":"((Monthly!FD698-Monthly!FD697)*100)","v":-8.0000000000000071},{"$f":"((Monthly!FE698-Monthly!FE697)*100)","v":-5.9999999999999973},{"$f":"((Monthly!FF698-Monthly!FF697)*100)","v":-9.9999999999999982},{"$f":"((Monthly!FG698-Monthly!FG697)*100)","v":-10.999999999999998},{"$f":"((Monthly!FH698-Monthly!FH697)*100)","v":-11.999999999999989},{"$f":"((Monthly!FI698-Monthly!FI697)*100)","v":-7.9999999999999849},null,null,null,null,null,null,{"$f":"(Monthly!FP698/Monthly!FP697)-1","v":-3.0848329048843159E-2},{"$f":"(Monthly!FQ698/Monthly!FQ697)-1","v":-4.1982561090009307E-3},{"$f":"(Monthly!FR698/Monthly!FR697)-1","v":-8.553456265633419E-3},{"$f":"(Monthly!FS698/Monthly!FS697)-1","v":1.9040776001437054E-2},{"$f":"(Monthly!FT698/Monthly!FT697)-1","v":-1.5933782965346532E-2},{"$f":"(Monthly!FU698/Monthly!FU697)-1","v":-2.2841942511617974E-2},{"$f":"(Monthly!FV698/Monthly!FV697)-1","v":-4.1179794424531013E-2},{"$f":"(Monthly!FW698/Monthly!FW697)-1","v":0.10414467312145814},{"$f":"(Monthly!FX698/Monthly!FX697)-1","v":1.3026355649803145E-2},null,null,null,null,null,{"$f":"(Monthly!GD698/Monthly!GD697)-1","v":8.5219707057257121E-2},{"$f":"(Monthly!GE698/Monthly!GE697)-1","v":8.8196807118555265E-2},{"$f":"(Monthly!GF698/Monthly!GF697)-1","v":7.0014485755673483E-2},{"$f":"(Monthly!GG698/Monthly!GG697)-1","v":2.9665071770335061E-2},{"$f":"(Monthly!GH698/Monthly!GH697)-1","v":-1.7101205494813532E-2},{"$f":"(Monthly!GI698/Monthly!GI697)-1","v":9.7037793667007044E-2},{"$f":"(Monthly!GJ698/Monthly!GJ697)-1","v":0.11049723756906071},{"$f":"(Monthly!GK698/Monthly!GK697)-1","v":7.0811651010339816E-2},{"$f":"(Monthly!GL698/Monthly!GL697)-1","v":-1.9831857914370032E-2}]
["2016-05-01",null,null,null,{"$f":"(Monthly!E699/Monthly!E698)-1","v":2.4163197190809615E-3},{"$f":"(Monthly!F699/Monthly!F698)-1","v":3.9566049776642576E-3},{"$f":"(Monthly!G699/Monthly!G698)-1","v":3.5870864886409226E-3},{"$f":"(Monthly!H699/Monthly!H698)-1","v":1.7939621125910854E-3},null,null,null,null,null,null,null,null,null,null,null,null,null,null,null,{"$f":"(Monthly!X699-Monthly!X698)","v":0},{"$f":"(Monthly!Y699/Monthly!Y698)-1","v":7.2353132374847196E-3},null,null,null,null,null,null,null,null,null,null,null,null,null,{"$f":"(Monthly!AM699/Monthly!AM698)-1","v":-1.1130585585453767E-3},{"$f":"(Monthly!AN699/Monthly!AN698)-1","v":-1.8138619185437133E-3},{"$f":"(Monthly!AO699/Monthly!AO698)-1","v":2.4311684068423212E-3},{"$f":"((Monthly!AP699-Monthly!AP698)*100)","v":-1.0000000000000009},{"$f":"Monthly!AQ699-Monthly!AQ698","v":0.5},{"$f":"Monthly!AR699-Monthly!AR698","v":-3.5},{"$f":"Monthly!AS699-Monthly!AS698","v":4},{"$f":"Monthly!AT699-Monthly!AT698","v":0},{"$f":"Monthly!AU699-Monthly!AU698","v":0},{"$f":"Monthly!AV699-Monthly!AV698","v":0},{"$f":"Monthly!AW699-Monthly!AW698","v":-0.5},{"$f":"Monthly!AX699-Monthly!AX698","v":-9.9999999999994316E-2},{"$f":"Monthly!AY699-Monthly!AY698","v":4.5},{"$f":"Monthly!AZ699-Monthly!AZ698","v":-1.6000000000000014},{"$f":"Monthly!BA699-Monthly!BA698","v":5},{"$f":"Monthly!BB699-Monthly!BB698","v":-3.6999999999999957},{"$f":"(Monthly!BC699/Monthly!BC698)-1","v":-1.9971842975477161E-2},null,null,null,null,null,null,null,null,null,{"$f":"(Monthly!BM699/Monthly!BM698)-1","v":3.3507180267309256E-3},{"$f":"(Monthly!BN699/Monthly!BN698)-1","v":3.3446824052694168E-3},null,null,null,null,null,{"$f":"(Monthly!BT699/Monthly!BT698)-1","v":5.7021819104283722E-3},null,null,null,{"$f":"(Monthly!BX699/Monthly!BX698)-1","v":-3.8659793814432963E-2},{"$f":"(Monthly!BY699/Monthly!BY698)-1","v":1.2897678417884695E-2},{"$f":"(Monthly!BZ699/Monthly!BZ698)-1","v":6.3969294738530635E-4},{"$f":"(Monthly!CA699/Monthly!CA698)-1","v":-1.5605350405853424E-2},{"$f":"Monthly!CB699-Monthly!CB698","v":-0.40296203691411137},{"$f":"Monthly!CC699-Monthly!CC698","v":-0.61296203691411044},{"$f":"(Monthly!CD699/Monthly!CD698)-1","v":0},{"$f":"(Monthly!CE699/Monthly!CE698)-1","v":-1.0600706713780883E-2},null,{"$f":"(Monthly!CG699/Monthly!CG698)-1","v":9.4339622641510523E-3},{"$f":"(Monthly!CH699/Monthly!CH698)-1","v":-1.8248175182481452E-3},null,{"$f":"(Monthly!CJ699/Monthly!CJ698)-1","v":-1.0600706713780883E-2},{"$f":"(Monthly!CK699/Monthly!CK698)-1","v":2.9568265496544566E-3},{"$f":"(Monthly!CL699/Monthly!CL698)-1","v":-2.0621247716001156E-2},{"$f":"(Monthly!CM699/Monthly!CM698)-1","v":-4.5632333767926969E-2},{"$f":"(Monthly!CN699/Monthly!CN698)-1","v":1.1814238933069987E-3},{"$f":"(Monthly!CO699/Monthly!CO698)-1","v":4.0848014332637295E-3},{"$f":"(Monthly!CP699/Monthly!CP698)-1","v":5.7666433013008334E-3},null,{"$f":"(Monthly!CR699/Monthly!CR698)-1","v":4.5670899091843076E-3},"--","--",null,null,null,null,null,{"$f":"(Monthly!CZ699/Monthly!CZ698)-1","v":1.9003130912318422E-3},{"$f":"(Monthly!DA699/Monthly!DA698)-1","v":2.0647663244319769E-3},null,null,null,null,null,"--",{"$f":"((Monthly!DH699-Monthly!DH698)*60)","v":0},{"$f":"((Monthly!DI699-Monthly!DI698)*100)","v":-19.999999999999574},{"$f":"((Monthly!DJ699-Monthly!DJ698)*100)","v":0},{"$f":"((Monthly!DK699-Monthly!DK698)*100)","v":-29.999999999999982},{"$f":"Monthly!DL699-Monthly!DL698","v":-21},null,null,null,{"$f":"Monthly!DP699-Monthly!DP698","v":43},null,null,null,{"$f":"(Monthly!DT699/Monthly!DT698)-1","v":2.5041736227044975E-3},{"$f":"Monthly!DU699-Monthly!DU698","v":-0.59999999999999964},{"$f":"(Monthly!DV699-Monthly!DV698)","v":-1.0999999999999091},{"$f":"(Monthly!DW699-Monthly!DW698)","v":14.5},{"$f":"(Monthly!DX699-Monthly!DX698)","v":3.6000000000000227},{"$f":"(Monthly!DY699-Monthly!DY698)","v":0.80000000000001137},{"$f":"(Monthly!DZ699-Monthly!DZ698)","v":2.8000000000000682},{"$f":"(Monthly!EA699-Monthly!EA698)","v":2.2000000000000455},{"$f":"(Monthly!EB699-Monthly!EB698)","v":0.59999999999999432},{"$f":"(Monthly!EC699-Monthly!EC698)","v":10.900000000000034},null,null,null,null,null,null,null,null,null,null,null,null,null,{"$f":"(Monthly!EQ699/Monthly!EQ698)-1","v":1.1462882096070048E-2},null,null,null,null,null,null,null,{"$f":"((Monthly!EY699-Monthly!EY698)*100)","v":0},{"$f":"((Monthly!EZ699-Monthly!EZ698)*100)","v":0},{"$f":"((Monthly!FA699-Monthly!FA698)*100)","v":2.9999999999999805},{"$f":"((Monthly!FB699-Monthly!FB698)*100)","v":-11.000000000000032},"--",{"$f":"((Monthly!FD699-Monthly!FD698)*100)","v":-0.99999999999997868},{"$f":"((Monthly!FE699-Monthly!FE698)*100)","v":4.0000000000000009},{"$f":"((Monthly!FF699-Monthly!FF698)*100)","v":2.9999999999999916},{"$f":"((Monthly!FG699-Monthly!FG698)*100)","v":4.9999999999999929},{"$f":"((Monthly!FH699-Monthly!FH698)*100)","v":4.0000000000000036},{"$f":"((Monthly!FI699-Monthly!FI698)*100)","v":0},null,null,null,null,null,null,{"$f":"(Monthly!FP699/Monthly!FP698)-1","v":9.9079419566234783E-3},{"$f":"(Monthly!FQ699/Monthly!FQ698)-1","v":7.7987460234116845E-3},{"$f":"(Monthly!FR699/Monthly!FR698)-1","v":3.7558282559569722E-2},{"$f":"(Monthly!FS699/Monthly!FS698)-1","v":-2.996650802044809E-3},{"$f":"(Monthly!FT699/Monthly!FT698)-1","v":1.0542198940253655E-2},{"$f":"(Monthly!FU699/Monthly!FU698)-1","v":3.9741818157386088E-3},{"$f":"(Monthly!FV699/Monthly!FV698)-1","v":3.6177965720455285E-2},{"$f":"(Monthly!FW699/Monthly!FW698)-1","v":0.13915886091702112},{"$f":"(Monthly!FX699/Monthly!FX698)-1","v":-9.7567783094099081E-3},null,null,null,null,null,{"$f":"(Monthly!GD699/Monthly!GD698)-1","v":0.14625766871165635},{"$f":"(Monthly!GE699/Monthly!GE698)-1","v":0.12409812409812426},{"$f":"(Monthly!GF699/Monthly!GF698)-1","v":6.9945848375451147E-2},{"$f":"(Monthly!GG699/Monthly!GG698)-1","v":7.5743494423791802E-2},{"$f":"(Monthly!GH699/Monthly!GH698)-1","v":8.8134626354820389E-2},{"$f":"(Monthly!GI699/Monthly!GI698)-1","v":-1.0242085661080091E-2},{"$f":"(Monthly!GJ699/Monthly!GJ698)-1","v":3.4825870646766344E-2},{"$f":"(Monthly!GK699/Monthly!GK698)-1","v":2.5888619610219266E-2},{"$f":"(Monthly!GL699/Monthly!GL698)-1","v":-1.629101154230661E-2}]
["2016-06-01",null,null,null,{"$f":"(Monthly!E700/Monthly!E699)-1","v":3.6764387101249074E-3},{"$f":"(Monthly!F700/Monthly!F699)-1","v":9.5982710399185045E-3},{"$f":"(Monthly!G700/Monthly!G699)-1","v":3.0182684670372328E-3},{"$f":"(Monthly!H700/Monthly!H699)-1","v":2.9400366168197412E-3},null,null,null,null,null,null,null,null,null,null,null,null,null,null,null,{"$f":"(Monthly!X700-Monthly!X699)","v":0.20000000000000284},{"$f":"(Monthly!Y700/Monthly!Y699)-1","v":2.4028481891589237E-3},null,null,null,null,null,null,null,null,null,null,null,null,null,{"$f":"(Monthly!AM700/Monthly!AM699)-1","v":3.5978714459219407E-3},{"$f":"(Monthly!AN700/Monthly!AN699)-1","v":2.5852048987144993E-3},{"$f":"(Monthly!AO700/Monthly!AO699)-1","v":1.4887482237151417E-3},{"$f":"((Monthly!AP700-Monthly!AP699)*100)","v":-1.0000000000000009},{"$f":"Monthly!AQ700-Monthly!AQ699","v":1.9000000000000057},{"$f":"Monthly!AR700-Monthly!AR699","v":5.5},{"$f":"Monthly!AS700-Monthly!AS699","v":1},{"$f":"Monthly!AT700-Monthly!AT699","v":1.1999999999999957},{"$f":"Monthly!AU700-Monthly!AU699","v":1},{"$f":"Monthly!AV700-Monthly!AV699","v":2},{"$f":"Monthly!AW700-Monthly!AW699","v":3.5},{"$f":"Monthly!AX700-Monthly!AX699","v":1.2999999999999972},{"$f":"Monthly!AY700-Monthly!AY699","v":-3},{"$f":"Monthly!AZ700-Monthly!AZ699","v":2.1000000000000014},{"$f":"Monthly!BA700-Monthly!BA699","v":1.2999999999999972},{"$f":"Monthly!BB700-Monthly!BB699","v":4.3999999999999986},{"$f":"(Monthly!BC700/Monthly!BC699)-1","v":3.1403467744630653E-3},null,null,null,null,null,null,null,null,null,{"$f":"(Monthly!BM700/Monthly!BM699)-1","v":1.0553962343637924E-2},{"$f":"(Monthly!BN700/Monthly!BN699)-1","v":1.122979185989692E-2},null,null,null,null,null,{"$f":"(Monthly!BT700/Monthly!BT699)-1","v":1.0028610274289917E-2},null,null,null,{"$f":"(Monthly!BX700/Monthly!BX699)-1","v":6.3449508489722861E-2},{"$f":"(Monthly!BY700/Monthly!BY699)-1","v":1.2733446519524572E-2},{"$f":"(Monthly!BZ700/Monthly!BZ699)-1","v":1.491662671141647E-3},{"$f":"(Monthly!CA700/Monthly!CA699)-1","v":-1.3297717902560735E-2},{"$f":"Monthly!CB700-Monthly!CB699","v":0.17746282072435005},{"$f":"Monthly!CC700-Monthly!CC699","v":0.31746282072434973},{"$f":"(Monthly!CD700/Monthly!CD699)-1","v":8.2987551867219622E-3},{"$f":"(Monthly!CE700/Monthly!CE699)-1","v":-1.7857142857142794E-3},null,{"$f":"(Monthly!CG700/Monthly!CG699)-1","v":-1.4018691588784993E-2},{"$f":"(Monthly!CH700/Monthly!CH699)-1","v":1.8281535648994041E-3},null,{"$f":"(Monthly!CJ700/Monthly!CJ699)-1","v":-1.7857142857142794E-3},{"$f":"(Monthly!CK700/Monthly!CK699)-1","v":3.2561209416348547E-3},{"$f":"(Monthly!CL700/Monthly!CL699)-1","v":-4.1977611940298476E-2},{"$f":"(Monthly!CM700/Monthly!CM699)-1","v":5.1912568306010876E-2},{"$f":"(Monthly!CN700/Monthly!CN699)-1","v":1.2829853961415782E-3},{"$f":"(Monthly!CO700/Monthly!CO699)-1","v":9.8254963303077147E-3},{"$f":"(Monthly!CP700/Monthly!CP699)-1","v":4.2008595162257301E-3},null,{"$f":"(Monthly!CR700/Monthly!CR699)-1","v":8.4784613827380007E-3},"--","--",null,null,null,null,null,{"$f":"(Monthly!CZ700/Monthly!CZ699)-1","v":2.005330837810515E-3},{"$f":"(Monthly!DA700/Monthly!DA699)-1","v":1.4694809453255075E-3},null,null,null,null,null,"--",{"$f":"((Monthly!DH700-Monthly!DH699)*60)","v":0},{"$f":"((Monthly!DI700-Monthly!DI699)*100)","v":10.000000000000142},{"$f":"((Monthly!DJ700-Monthly!DJ699)*100)","v":-9.9999999999999645},{"$f":"((Monthly!DK700-Monthly!DK699)*100)","v":20.000000000000018},{"$f":"Monthly!DL700-Monthly!DL699","v":12},null,null,null,{"$f":"Monthly!DP700-Monthly!DP699","v":297},null,null,null,{"$f":"(Monthly!DT700/Monthly!DT699)-1","v":5.828476269775118E-3},{"$f":"Monthly!DU700-Monthly!DU699","v":-0.40000000000000036},{"$f":"(Monthly!DV700-Monthly!DV699)","v":-5.1000000000001364},{"$f":"(Monthly!DW700-Monthly!DW699)","v":14.299999999999955},{"$f":"(Monthly!DX700-Monthly!DX699)","v":1.5},{"$f":"(Monthly!DY700-Monthly!DY699)","v":1.2999999999999829},{"$f":"(Monthly!DZ700-Monthly!DZ699)","v":0.19999999999993179},{"$f":"(Monthly!EA700-Monthly!EA699)","v":-0.10000000000002274},{"$f":"(Monthly!EB700-Monthly!EB699)","v":0.30000000000001137},{"$f":"(Monthly!EC700-Monthly!EC699)","v":12.799999999999955},null,null,null,null,null,null,null,null,null,null,null,null,null,{"$f":"(Monthly!EQ700/Monthly!EQ699)-1","v":1.2412304371289817E-2},null,null,null,null,null,null,null,{"$f":"((Monthly!EY700-Monthly!EY699)*100)","v":0},{"$f":"((Monthly!EZ700-Monthly!EZ699)*100)","v":1.0000000000000009},{"$f":"((Monthly!FA700-Monthly!FA699)*100)","v":-14.999999999999991},{"$f":"((Monthly!FB700-Monthly!FB699)*100)","v":-14.999999999999947},"--",{"$f":"((Monthly!FD700-Monthly!FD699)*100)","v":-3.0000000000000249},{"$f":"((Monthly!FE700-Monthly!FE699)*100)","v":0},{"$f":"((Monthly!FF700-Monthly!FF699)*100)","v":-3.9999999999999925},{"$f":"((Monthly!FG700-Monthly!FG699)*100)","v":-8.9999999999999964},{"$f":"((Monthly!FH700-Monthly!FH699)*100)","v":-13.000000000000011},{"$f":"((Monthly!FI700-Monthly!FI699)*100)","v":-17.000000000000014},null,null,null,null,null,null,{"$f":"(Monthly!FP700/Monthly!FP699)-1","v":-3.9397450753185792E-3},{"$f":"(Monthly!FQ700/Monthly!FQ699)-1","v":9.6998115202500124E-3},{"$f":"(Monthly!FR700/Monthly!FR699)-1","v":2.8550948389942654E-2},{"$f":"(Monthly!FS700/Monthly!FS699)-1","v":-7.0721357850070943E-3},{"$f":"(Monthly!FT700/Monthly!FT699)-1","v":3.6823500751550498E-3},{"$f":"(Monthly!FU700/Monthly!FU699)-1","v":-1.6161719812216591E-3},{"$f":"(Monthly!FV700/Monthly!FV699)-1","v":5.2094368129482538E-2},{"$f":"(Monthly!FW700/Monthly!FW699)-1","v":2.7329771785614243E-2},{"$f":"(Monthly!FX700/Monthly!FX699)-1","v":2.279014145188496E-3},null,null,null,null,null,{"$f":"(Monthly!GD700/Monthly!GD699)-1","v":4.3887818454292349E-2},{"$f":"(Monthly!GE700/Monthly!GE699)-1","v":3.2306375695335898E-2},{"$f":"(Monthly!GF700/Monthly!GF699)-1","v":4.0489245044285083E-2},{"$f":"(Monthly!GG700/Monthly!GG699)-1","v":4.6652267818574567E-2},{"$f":"(Monthly!GH700/Monthly!GH699)-1","v":0.16592398427260813},{"$f":"(Monthly!GI700/Monthly!GI699)-1","v":0.25305738476011297},{"$f":"(Monthly!GJ700/Monthly!GJ699)-1","v":0.26442307692307687},{"$f":"(Monthly!GK700/Monthly!GK699)-1","v":-5.9181790218394315E-2},{"$f":"(Monthly!GL700/Monthly!GL699)-1","v":6.9984986719020759E-2}]
["2016-07-01",null,null,null,{"$f":"(Monthly!E701/Monthly!E700)-1","v":1.6241479702470141E-3},{"$f":"(Monthly!F701/Monthly!F700)-1","v":1.599194106906765E-2},{"$f":"(Monthly!G701/Monthly!G700)-1","v":-4.5533734558125261E-3},{"$f":"(Monthly!H701/Monthly!H700)-1","v":1.225865767698453E-3},null,null,null,null,null,null,null,null,null,null,null,null,null,null,null,{"$f":"(Monthly!X701-Monthly!X700)","v":0.10000000000000853},{"$f":"(Monthly!Y701/Monthly!Y700)-1","v":4.0821664141039715E-3},null,null,null,null,null,null,null,null,null,null,null,null,null,{"$f":"(Monthly!AM701/Monthly!AM700)-1","v":8.960008688492227E-4},{"$f":"(Monthly!AN701/Monthly!AN700)-1","v":8.5075234151554824E-4},{"$f":"(Monthly!AO701/Monthly!AO700)-1","v":9.9505496166774066E-5},{"$f":"((Monthly!AP701-Monthly!AP700)*100)","v":0},{"$f":"Monthly!AQ701-Monthly!AQ700","v":-0.60000000000000142},{"$f":"Monthly!AR701-Monthly!AR700","v":-4.5},{"$f":"Monthly!AS701-Monthly!AS700","v":0},{"$f":"Monthly!AT701-Monthly!AT700","v":-1},{"$f":"Monthly!AU701-Monthly!AU700","v":-1},{"$f":"Monthly!AV701-Monthly!AV700","v":0},{"$f":"Monthly!AW701-Monthly!AW700","v":1},{"$f":"Monthly!AX701-Monthly!AX700","v":-0.10000000000000142},{"$f":"Monthly!AY701-Monthly!AY700","v":-5.5},{"$f":"Monthly!AZ701-Monthly!AZ700","v":0.69999999999999574},{"$f":"Monthly!BA701-Monthly!BA700","v":-3.6000000000000014},{"$f":"Monthly!BB701-Monthly!BB700","v":-0.20000000000000284},{"$f":"(Monthly!BC701/Monthly!BC700)-1","v":2.6659339927398662E-2},null,null,null,null,null,null,null,null,null,{"$f":"(Monthly!BM701/Monthly!BM700)-1","v":-1.7782583490206783E-3},{"$f":"(Monthly!BN701/Monthly!BN700)-1","v":-1.8368755855810992E-3},null,null,null,null,null,{"$f":"(Monthly!BT701/Monthly!BT700)-1","v":9.9606720288094586E-3},null,null,null,{"$f":"(Monthly!BX701/Monthly!BX700)-1","v":2.7731092436974691E-2},{"$f":"(Monthly!BY701/Monthly!BY700)-1","v":-1.5088013411567514E-2},{"$f":"(Monthly!BZ701/Monthly!BZ700)-1","v":1.6490238842492566E-3},{"$f":"(Monthly!CA701/Monthly!CA700)-1","v":4.4668079096045199E-2},{"$f":"Monthly!CB701-Monthly!CB700","v":-0.17053588960576072},{"$f":"Monthly!CC701-Monthly!CC700","v":-0.17053588960576072},{"$f":"(Monthly!CD701/Monthly!CD700)-1","v":-2.4691358024691357E-2},{"$f":"(Monthly!CE701/Monthly!CE700)-1","v":0.12164579606440062},null,{"$f":"(Monthly!CG701/Monthly!CG700)-1","v":0},{"$f":"(Monthly!CH701/Monthly!CH700)-1","v":-2.7372262773722622E-2},null,{"$f":"(Monthly!CJ701/Monthly!CJ700)-1","v":0.12164579606440062},{"$f":"(Monthly!CK701/Monthly!CK700)-1","v":3.489909337543784E-3},{"$f":"(Monthly!CL701/Monthly!CL700)-1","v":-1.6692168590901613E-3},{"$f":"(Monthly!CM701/Monthly!CM700)-1","v":2.5974025974024872E-3},{"$f":"(Monthly!CN701/Monthly!CN700)-1","v":1.621450605078012E-3},{"$f":"(Monthly!CO701/Monthly!CO700)-1","v":9.2351548419777885E-3},{"$f":"(Monthly!CP701/Monthly!CP700)-1","v":4.7718994434668982E-3},null,{"$f":"(Monthly!CR701/Monthly!CR700)-1","v":3.3701953774551985E-3},"--","--",null,null,null,null,null,{"$f":"(Monthly!CZ701/Monthly!CZ700)-1","v":2.3348704563841416E-4},{"$f":"(Monthly!DA701/Monthly!DA700)-1","v":1.2773405446482311E-3},null,null,null,null,null,"--",{"$f":"((Monthly!DH701-Monthly!DH700)*60)","v":6.0000000000000853},{"$f":"((Monthly!DI701-Monthly!DI700)*100)","v":9.9999999999994316},{"$f":"((Monthly!DJ701-Monthly!DJ700)*100)","v":9.9999999999999645},{"$f":"((Monthly!DK701-Monthly!DK700)*100)","v":0},{"$f":"Monthly!DL701-Monthly!DL700","v":12},null,null,null,{"$f":"Monthly!DP701-Monthly!DP700","v":291},null,null,null,{"$f":"(Monthly!DT701/Monthly!DT700)-1","v":-3.3112582781457123E-3},{"$f":"Monthly!DU701-Monthly!DU700","v":1.3000000000000007},{"$f":"(Monthly!DV701-Monthly!DV700)","v":3.2000000000000455},{"$f":"(Monthly!DW701-Monthly!DW700)","v":3.7999999999999545},{"$f":"(Monthly!DX701-Monthly!DX700)","v":0.80000000000006821},{"$f":"(Monthly!DY701-Monthly!DY700)","v":-9.9999999999994316E-2},{"$f":"(Monthly!DZ701-Monthly!DZ700)","v":0.90000000000009095},{"$f":"(Monthly!EA701-Monthly!EA700)","v":-0.5},{"$f":"(Monthly!EB701-Monthly!EB700)","v":1.3999999999999773},{"$f":"(Monthly!EC701-Monthly!EC700)","v":3},null,null,null,null,null,null,null,null,null,null,null,null,null,{"$f":"(Monthly!EQ701/Monthly!EQ700)-1","v":5.3304904051176827E-4},null,null,null,null,null,null,null,{"$f":"((Monthly!EY701-Monthly!EY700)*100)","v":0},{"$f":"((Monthly!EZ701-Monthly!EZ700)*100)","v":1.0000000000000009},{"$f":"((Monthly!FA701-Monthly!FA700)*100)","v":-22.000000000000021},{"$f":"((Monthly!FB701-Monthly!FB700)*100)","v":-31.00000000000005},"--",{"$f":"((Monthly!FD701-Monthly!FD700)*100)","v":-12.999999999999989},{"$f":"((Monthly!FE701-Monthly!FE700)*100)","v":2.9999999999999973},{"$f":"((Monthly!FF701-Monthly!FF700)*100)","v":-4.0000000000000036},{"$f":"((Monthly!FG701-Monthly!FG700)*100)","v":-5.9999999999999947},{"$f":"((Monthly!FH701-Monthly!FH700)*100)","v":-9.9999999999999858},{"$f":"((Monthly!FI701-Monthly!FI700)*100)","v":-13.999999999999989},null,null,null,null,null,null,{"$f":"(Monthly!FP701/Monthly!FP700)-1","v":1.2253761439429134E-2},{"$f":"(Monthly!FQ701/Monthly!FQ700)-1","v":1.3340010926971457E-2},{"$f":"(Monthly!FR701/Monthly!FR700)-1","v":-2.0532009563735132E-3},{"$f":"(Monthly!FS701/Monthly!FS700)-1","v":-1.5758547008547064E-2},{"$f":"(Monthly!FT701/Monthly!FT700)-1","v":6.9207665927504269E-3},{"$f":"(Monthly!FU701/Monthly!FU700)-1","v":1.5524279588968515E-2},{"$f":"(Monthly!FV701/Monthly!FV700)-1","v":-0.10694050699250202},{"$f":"(Monthly!FW701/Monthly!FW700)-1","v":2.3487791846707129E-2},{"$f":"(Monthly!FX701/Monthly!FX700)-1","v":-7.5136891920665083E-2},null,null,null,null,null,{"$f":"(Monthly!GD701/Monthly!GD700)-1","v":-8.4290401968826867E-2},{"$f":"(Monthly!GE701/Monthly!GE700)-1","v":-6.8393782383419643E-2},{"$f":"(Monthly!GF701/Monthly!GF700)-1","v":-4.9452776651803809E-2},{"$f":"(Monthly!GG701/Monthly!GG700)-1","v":-7.4288072637227476E-3},{"$f":"(Monthly!GH701/Monthly!GH700)-1","v":7.2392086330935301E-2},{"$f":"(Monthly!GI701/Monthly!GI700)-1","v":-2.3273273273273221E-2},{"$f":"(Monthly!GJ701/Monthly!GJ700)-1","v":4.9429657794676674E-2},{"$f":"(Monthly!GK701/Monthly!GK700)-1","v":-3.1190740861832156E-2},{"$f":"(Monthly!GL701/Monthly!GL700)-1","v":3.5186184565569878E-3}]
["2016-08-01",null,null,null,{"$f":"(Monthly!E702/Monthly!E701)-1","v":8.5388257820784297E-4},{"$f":"(Monthly!F702/Monthly!F701)-1","v":-1.0286918262378486E-2},{"$f":"(Monthly!G702/Monthly!G701)-1","v":1.6308022751680973E-3},{"$f":"(Monthly!H702/Monthly!H701)-1","v":2.4354214077533243E-3},null,null,null,null,null,null,null,null,null,null,null,null,null,null,null,{"$f":"(Monthly!X702-Monthly!X701)","v":-0.10000000000000853},{"$f":"(Monthly!Y702/Monthly!Y701)-1","v":-1.7781067774876869E-3},null,null,null,null,null,null,null,null,null,null,null,null,null,{"$f":"(Monthly!AM702/Monthly!AM701)-1","v":-6.917445040705017E-4},{"$f":"(Monthly!AN702/Monthly!AN701)-1","v":-3.5450301497762515E-3},{"$f":"(Monthly!AO702/Monthly!AO701)-1","v":2.0162974885333806E-3},{"$f":"((Monthly!AP702-Monthly!AP701)*100)","v":0},{"$f":"Monthly!AQ702-Monthly!AQ701","v":-3.2000000000000028},{"$f":"Monthly!AR702-Monthly!AR701","v":-2.5},{"$f":"Monthly!AS702-Monthly!AS701","v":-1.5},{"$f":"Monthly!AT702-Monthly!AT701","v":-1.1000000000000014},{"$f":"Monthly!AU702-Monthly!AU701","v":0},{"$f":"Monthly!AV702-Monthly!AV701","v":-5},{"$f":"Monthly!AW702-Monthly!AW701","v":-0.5},{"$f":"Monthly!AX702-Monthly!AX701","v":-7.7999999999999972},{"$f":"Monthly!AY702-Monthly!AY701","v":-2},{"$f":"Monthly!AZ702-Monthly!AZ701","v":-5.7999999999999972},{"$f":"Monthly!BA702-Monthly!BA701","v":-0.89999999999999858},{"$f":"Monthly!BB702-Monthly!BB701","v":-7.5},{"$f":"(Monthly!BC702/Monthly!BC701)-1","v":1.3753953450652778E-2},null,null,null,null,null,null,null,null,null,{"$f":"(Monthly!BM702/Monthly!BM701)-1","v":9.8750609034592429E-4},{"$f":"(Monthly!BN702/Monthly!BN701)-1","v":1.5314881371430999E-4},null,null,null,null,null,{"$f":"(Monthly!BT702/Monthly!BT701)-1","v":5.2575552967935035E-3},null,null,null,{"$f":"(Monthly!BX702/Monthly!BX701)-1","v":-4.8242027800490583E-2},{"$f":"(Monthly!BY702/Monthly!BY701)-1","v":2.1276595744680771E-2},{"$f":"(Monthly!BZ702/Monthly!BZ701)-1","v":2.6553372278259602E-4},{"$f":"(Monthly!CA702/Monthly!CA701)-1","v":-3.4983944566503444E-2},{"$f":"Monthly!CB702-Monthly!CB701","v":0.23403144293392408},{"$f":"Monthly!CC702-Monthly!CC701","v":0.23403144293392408},{"$f":"(Monthly!CD702/Monthly!CD701)-1","v":1.6877637130801704E-2},{"$f":"(Monthly!CE702/Monthly!CE701)-1","v":-9.5693779904306275E-2},null,{"$f":"(Monthly!CG702/Monthly!CG701)-1","v":-4.7393364928909998E-2},{"$f":"(Monthly!CH702/Monthly!CH701)-1","v":1.8761726078799779E-3},null,{"$f":"(Monthly!CJ702/Monthly!CJ701)-1","v":-9.5693779904306275E-2},{"$f":"(Monthly!CK702/Monthly!CK701)-1","v":5.4320679320674081E-4},{"$f":"(Monthly!CL702/Monthly!CL701)-1","v":-3.9152849379963772E-2},{"$f":"(Monthly!CM702/Monthly!CM701)-1","v":-5.8290155440414493E-2},{"$f":"(Monthly!CN702/Monthly!CN701)-1","v":-1.3819244284755117E-3},{"$f":"(Monthly!CO702/Monthly!CO701)-1","v":3.5015231625756815E-3},{"$f":"(Monthly!CP702/Monthly!CP701)-1","v":6.8571599396698435E-3},null,{"$f":"(Monthly!CR702/Monthly!CR701)-1","v":5.9508017691800585E-3},"--","--",null,null,null,null,null,{"$f":"(Monthly!CZ702/Monthly!CZ701)-1","v":2.046703182185805E-3},{"$f":"(Monthly!DA702/Monthly!DA701)-1","v":2.6079408974384322E-3},null,null,null,null,null,"--",{"$f":"((Monthly!DH702-Monthly!DH701)*60)","v":-6.0000000000000853},{"$f":"((Monthly!DI702-Monthly!DI701)*100)","v":0},{"$f":"((Monthly!DJ702-Monthly!DJ701)*100)","v":0},{"$f":"((Monthly!DK702-Monthly!DK701)*100)","v":0},{"$f":"Monthly!DL702-Monthly!DL701","v":-17},null,null,null,{"$f":"Monthly!DP702-Monthly!DP701","v":176},null,null,null,{"$f":"(Monthly!DT702/Monthly!DT701)-1","v":4.1528239202657247E-3},{"$f":"Monthly!DU702-Monthly!DU701","v":-0.59999999999999964},{"$f":"(Monthly!DV702-Monthly!DV701)","v":2.5},{"$f":"(Monthly!DW702-Monthly!DW701)","v":4.9000000000000909},{"$f":"(Monthly!DX702-Monthly!DX701)","v":3.7999999999999545},{"$f":"(Monthly!DY702-Monthly!DY701)","v":0.59999999999999432},{"$f":"(Monthly!DZ702-Monthly!DZ701)","v":3.1999999999999318},{"$f":"(Monthly!EA702-Monthly!EA701)","v":1.8999999999999773},{"$f":"(Monthly!EB702-Monthly!EB701)","v":1.3000000000000114},{"$f":"(Monthly!EC702-Monthly!EC701)","v":1.1000000000000227},null,null,null,null,null,null,null,null,null,null,null,null,null,{"$f":"(Monthly!EQ702/Monthly!EQ701)-1","v":-5.86041555673944E-3},null,null,null,null,null,null,null,{"$f":"((Monthly!EY702-Monthly!EY701)*100)","v":0},{"$f":"((Monthly!EZ702-Monthly!EZ701)*100)","v":1.0000000000000009},{"$f":"((Monthly!FA702-Monthly!FA701)*100)","v":4.0000000000000036},{"$f":"((Monthly!FB702-Monthly!FB701)*100)","v":2.0000000000000462},"--",{"$f":"((Monthly!FD702-Monthly!FD701)*100)","v":0},{"$f":"((Monthly!FE702-Monthly!FE701)*100)","v":0},{"$f":"((Monthly!FF702-Monthly!FF701)*100)","v":5.9999999999999947},{"$f":"((Monthly!FG702-Monthly!FG701)*100)","v":6.9999999999999947},{"$f":"((Monthly!FH702-Monthly!FH701)*100)","v":5.9999999999999831},{"$f":"((Monthly!FI702-Monthly!FI701)*100)","v":6.0000000000000053},null,null,null,null,null,null,{"$f":"(Monthly!FP702/Monthly!FP701)-1","v":-4.1372969659820846E-3},{"$f":"(Monthly!FQ702/Monthly!FQ701)-1","v":-4.5678513126956588E-3},{"$f":"(Monthly!FR702/Monthly!FR701)-1","v":-7.5904488195321917E-3},{"$f":"(Monthly!FS702/Monthly!FS701)-1","v":1.3749434644957148E-2},{"$f":"(Monthly!FT702/Monthly!FT701)-1","v":-9.1779300053703716E-3},{"$f":"(Monthly!FU702/Monthly!FU701)-1","v":-1.1618134013927195E-2},{"$f":"(Monthly!FV702/Monthly!FV701)-1","v":0.11791642022770965},{"$f":"(Monthly!FW702/Monthly!FW701)-1","v":9.5494883659640317E-2},{"$f":"(Monthly!FX702/Monthly!FX701)-1","v":0.11032682350488243},null,null,null,null,null,{"$f":"(Monthly!GD702/Monthly!GD701)-1","v":1.5677491601344684E-3},{"$f":"(Monthly!GE702/Monthly!GE701)-1","v":1.9799777530589591E-2},{"$f":"(Monthly!GF702/Monthly!GF701)-1","v":-2.6012793176972471E-2},{"$f":"(Monthly!GG702/Monthly!GG701)-1","v":-2.2453222453222343E-2},{"$f":"(Monthly!GH702/Monthly!GH701)-1","v":-8.5953878406708206E-3},{"$f":"(Monthly!GI702/Monthly!GI701)-1","v":-0.2059953881629516},{"$f":"(Monthly!GJ702/Monthly!GJ701)-1","v":-1.4492753623188248E-2},{"$f":"(Monthly!GK702/Monthly!GK701)-1","v":1.5996220302375797E-2},{"$f":"(Monthly!GL702/Monthly!GL701)-1","v":-1.001333677508176E-2}]
["2016-09-01",null,null,null,{"$f":"(Monthly!E703/Monthly!E702)-1","v":4.5070665287831879E-3},{"$f":"(Monthly!F703/Monthly!F702)-1","v":1.7406549370734492E-2},{"$f":"(Monthly!G703/Monthly!G702)-1","v":1.2707489476611045E-3},{"$f":"(Monthly!H703/Monthly!H702)-1","v":3.4384791036057294E-3},null,null,null,null,null,null,null,null,null,null,null,null,null,null,null,{"$f":"(Monthly!X703-Monthly!X702)","v":-0.20000000000000284},{"$f":"(Monthly!Y703/Monthly!Y702)-1","v":8.9978555939802529E-3},null,null,null,null,null,null,null,null,null,null,null,null,null,{"$f":"(Monthly!AM703/Monthly!AM702)-1","v":-1.5133902559383294E-3},{"$f":"(Monthly!AN703/Monthly!AN702)-1","v":2.3483365949119595E-3},{"$f":"(Monthly!AO703/Monthly!AO702)-1","v":1.6885701683742038E-3},{"$f":"((Monthly!AP703-Monthly!AP702)*100)","v":0},{"$f":"Monthly!AQ703-Monthly!AQ702","v":2.1000000000000014},{"$f":"Monthly!AR703-Monthly!AR702","v":4},{"$f":"Monthly!AS703-Monthly!AS702","v":3.5},{"$f":"Monthly!AT703-Monthly!AT702","v":1.4000000000000057},{"$f":"Monthly!AU703-Monthly!AU702","v":-0.5},{"$f":"Monthly!AV703-Monthly!AV702","v":2},{"$f":"Monthly!AW703-Monthly!AW702","v":0.5},{"$f":"Monthly!AX703-Monthly!AX702","v":6},{"$f":"Monthly!AY703-Monthly!AY702","v":0},{"$f":"Monthly!AZ703-Monthly!AZ702","v":3.1999999999999957},{"$f":"Monthly!BA703-Monthly!BA702","v":-0.60000000000000142},{"$f":"Monthly!BB703-Monthly!BB702","v":8.5},{"$f":"(Monthly!BC703/Monthly!BC702)-1","v":-2.1070988592547524E-2},null,null,null,null,null,null,null,null,null,{"$f":"(Monthly!BM703/Monthly!BM702)-1","v":6.7514417707161822E-3},{"$f":"(Monthly!BN703/Monthly!BN702)-1","v":7.026478338935549E-3},null,null,null,null,null,{"$f":"(Monthly!BT703/Monthly!BT702)-1","v":3.447010288471164E-3},null,null,null,{"$f":"(Monthly!BX703/Monthly!BX702)-1","v":-8.7628865979381465E-2},{"$f":"(Monthly!BY703/Monthly!BY702)-1","v":5.8333333333333348E-2},{"$f":"(Monthly!BZ703/Monthly!BZ702)-1","v":4.6721529068223244E-3},{"$f":"(Monthly!CA703/Monthly!CA702)-1","v":3.0356100408639897E-2},{"$f":"Monthly!CB703-Monthly!CB702","v":0.40625819429846999},{"$f":"Monthly!CC703-Monthly!CC702","v":0.40625819429846999},{"$f":"(Monthly!CD703/Monthly!CD702)-1","v":4.1493775933609811E-3},{"$f":"(Monthly!CE703/Monthly!CE702)-1","v":5.2910052910053462E-3},null,{"$f":"(Monthly!CG703/Monthly!CG702)-1","v":9.9502487562188602E-3},{"$f":"(Monthly!CH703/Monthly!CH702)-1","v":2.4344569288389462E-2},null,{"$f":"(Monthly!CJ703/Monthly!CJ702)-1","v":5.2910052910053462E-3},{"$f":"(Monthly!CK703/Monthly!CK702)-1","v":1.1669485232173038E-3},{"$f":"(Monthly!CL703/Monthly!CL702)-1","v":-9.2807424593967514E-2},{"$f":"(Monthly!CM703/Monthly!CM702)-1","v":7.7028885832187033E-2},{"$f":"(Monthly!CN703/Monthly!CN702)-1","v":-6.0888818598769934E-4},{"$f":"(Monthly!CO703/Monthly!CO702)-1","v":9.0373006734358885E-3},{"$f":"(Monthly!CP703/Monthly!CP702)-1","v":5.0041648387666449E-3},null,{"$f":"(Monthly!CR703/Monthly!CR702)-1","v":4.1595210323921439E-3},"--","--",null,null,null,null,null,{"$f":"(Monthly!CZ703/Monthly!CZ702)-1","v":2.5666731838811518E-3},{"$f":"(Monthly!DA703/Monthly!DA702)-1","v":1.18783495939212E-3},null,null,null,null,null,"--",{"$f":"((Monthly!DH703-Monthly!DH702)*60)","v":0},{"$f":"((Monthly!DI703-Monthly!DI702)*100)","v":10.000000000000142},{"$f":"((Monthly!DJ703-Monthly!DJ702)*100)","v":0},{"$f":"((Monthly!DK703-Monthly!DK702)*100)","v":0},{"$f":"Monthly!DL703-Monthly!DL702","v":-12},null,null,null,{"$f":"Monthly!DP703-Monthly!DP702","v":249},null,null,null,{"$f":"(Monthly!DT703/Monthly!DT702)-1","v":2.4813895781636841E-3},{"$f":"Monthly!DU703-Monthly!DU702","v":-0.59999999999999964},{"$f":"(Monthly!DV703-Monthly!DV702)","v":3.4000000000000909},{"$f":"(Monthly!DW703-Monthly!DW702)","v":-2.2000000000000455},{"$f":"(Monthly!DX703-Monthly!DX702)","v":4.5},{"$f":"(Monthly!DY703-Monthly!DY702)","v":-0.59999999999999432},{"$f":"(Monthly!DZ703-Monthly!DZ702)","v":5.1000000000000227},{"$f":"(Monthly!EA703-Monthly!EA702)","v":4.7000000000000455},{"$f":"(Monthly!EB703-Monthly!EB702)","v":0.40000000000000568},{"$f":"(Monthly!EC703-Monthly!EC702)","v":-6.6999999999999886},null,null,null,null,null,null,null,null,null,null,null,null,null,{"$f":"(Monthly!EQ703/Monthly!EQ702)-1","v":1.607717041800738E-3},null,null,null,null,null,null,null,{"$f":"((Monthly!EY703-Monthly!EY702)*100)","v":0},{"$f":"((Monthly!EZ703-Monthly!EZ702)*100)","v":0},{"$f":"((Monthly!FA703-Monthly!FA702)*100)","v":9.0000000000000302},{"$f":"((Monthly!FB703-Monthly!FB702)*100)","v":6.9999999999999396},"--",{"$f":"((Monthly!FD703-Monthly!FD702)*100)","v":2.0000000000000018},{"$f":"((Monthly!FE703-Monthly!FE702)*100)","v":-1.0000000000000009},{"$f":"((Monthly!FF703-Monthly!FF702)*100)","v":2.0000000000000018},{"$f":"((Monthly!FG703-Monthly!FG702)*100)","v":3.0000000000000027},{"$f":"((Monthly!FH703-Monthly!FH702)*100)","v":5.0000000000000044},{"$f":"((Monthly!FI703-Monthly!FI702)*100)","v":6.999999999999984},null,null,null,null,null,null,{"$f":"(Monthly!FP703/Monthly!FP702)-1","v":8.4628404369901933E-3},{"$f":"(Monthly!FQ703/Monthly!FQ702)-1","v":3.550687569584543E-3},{"$f":"(Monthly!FR703/Monthly!FR702)-1","v":4.1647270247155532E-2},{"$f":"(Monthly!FS703/Monthly!FS702)-1","v":9.815294012669451E-4},{"$f":"(Monthly!FT703/Monthly!FT702)-1","v":7.6832625689817746E-3},{"$f":"(Monthly!FU703/Monthly!FU702)-1","v":2.8259812187447775E-3},{"$f":"(Monthly!FV703/Monthly!FV702)-1","v":-1.8314836629673148E-2},{"$f":"(Monthly!FW703/Monthly!FW702)-1","v":-2.7834708143843812E-2},{"$f":"(Monthly!FX703/Monthly!FX702)-1","v":-1.6650040099368102E-2},null,null,null,null,null,{"$f":"(Monthly!GD703/Monthly!GD702)-1","v":1.0286225402504456E-2},{"$f":"(Monthly!GE703/Monthly!GE702)-1","v":1.5924956369982368E-2},{"$f":"(Monthly!GF703/Monthly!GF702)-1","v":1.8826619964973812E-2},{"$f":"(Monthly!GG703/Monthly!GG702)-1","v":1.8290089323692138E-2},{"$f":"(Monthly!GH703/Monthly!GH702)-1","v":-6.1323747092408842E-3},{"$f":"(Monthly!GI703/Monthly!GI702)-1","v":9.6805421103574041E-4},{"$f":"(Monthly!GJ703/Monthly!GJ702)-1","v":6.6176470588235281E-2},{"$f":"(Monthly!GK703/Monthly!GK702)-1","v":-4.1147943931442166E-2},{"$f":"(Monthly!GL703/Monthly!GL702)-1","v":-4.617306752132122E-3}]
["2016-10-01",null,null,null,{"$f":"(Monthly!E704/Monthly!E703)-1","v":1.0294862005952865E-3},{"$f":"(Monthly!F704/Monthly!F703)-1","v":1.0092928795618183E-2},{"$f":"(Monthly!G704/Monthly!G703)-1","v":1.1898151820417535E-3},{"$f":"(Monthly!H704/Monthly!H703)-1","v":-4.8952806848101549E-4},null,null,null,null,null,null,null,null,null,null,null,null,null,null,null,{"$f":"(Monthly!X704-Monthly!X703)","v":0.10000000000000853},{"$f":"(Monthly!Y704/Monthly!Y703)-1","v":7.2020973862303439E-3},null,null,null,null,null,null,null,null,null,null,null,null,null,{"$f":"(Monthly!AM704/Monthly!AM703)-1","v":1.7904685706739976E-3},{"$f":"(Monthly!AN704/Monthly!AN703)-1","v":2.054605773734286E-3},{"$f":"(Monthly!AO704/Monthly!AO703)-1","v":-2.6737177163098647E-3},{"$f":"((Monthly!AP704-Monthly!AP703)*100)","v":-2.0000000000000018},{"$f":"Monthly!AQ704-Monthly!AQ703","v":0.39999999999999858},{"$f":"Monthly!AR704-Monthly!AR703","v":-4},{"$f":"Monthly!AS704-Monthly!AS703","v":-3.5},{"$f":"Monthly!AT704-Monthly!AT703","v":3.1999999999999957},{"$f":"Monthly!AU704-Monthly!AU703","v":0.5},{"$f":"Monthly!AV704-Monthly!AV703","v":3},{"$f":"Monthly!AW704-Monthly!AW703","v":-2},{"$f":"Monthly!AX704-Monthly!AX703","v":-3},{"$f":"Monthly!AY704-Monthly!AY703","v":1.5},{"$f":"Monthly!AZ704-Monthly!AZ703","v":1.8000000000000043},{"$f":"Monthly!BA704-Monthly!BA703","v":1.9000000000000057},{"$f":"Monthly!BB704-Monthly!BB703","v":-2.5999999999999943},{"$f":"(Monthly!BC704/Monthly!BC703)-1","v":0},null,null,null,null,null,null,null,null,null,{"$f":"(Monthly!BM704/Monthly!BM703)-1","v":6.6651557829076058E-3},{"$f":"(Monthly!BN704/Monthly!BN703)-1","v":8.0958056810433998E-3},null,null,null,null,null,{"$f":"(Monthly!BT704/Monthly!BT703)-1","v":4.9699508744163179E-3},null,null,null,{"$f":"(Monthly!BX704/Monthly!BX703)-1","v":0.25047080979284364},{"$f":"(Monthly!BY704/Monthly!BY703)-1","v":1.1811023622047223E-2},{"$f":"(Monthly!BZ704/Monthly!BZ703)-1","v":8.7723933837129398E-3},{"$f":"(Monthly!CA704/Monthly!CA703)-1","v":8.7252124645891271E-3},{"$f":"Monthly!CB704-Monthly!CB703","v":5.061755017033942E-2},{"$f":"Monthly!CC704-Monthly!CC703","v":-1.9382449829659976E-2},{"$f":"(Monthly!CD704/Monthly!CD703)-1","v":2.4793388429751984E-2},{"$f":"(Monthly!CE704/Monthly!CE703)-1","v":1.2280701754386003E-2},null,{"$f":"(Monthly!CG704/Monthly!CG703)-1","v":-9.8522167487684609E-3},{"$f":"(Monthly!CH704/Monthly!CH703)-1","v":1.0968921389396646E-2},null,{"$f":"(Monthly!CJ704/Monthly!CJ703)-1","v":1.2280701754386003E-2},{"$f":"(Monthly!CK704/Monthly!CK703)-1","v":-4.9864741887628572E-4},{"$f":"(Monthly!CL704/Monthly!CL703)-1","v":-7.7365728900255726E-2},{"$f":"(Monthly!CM704/Monthly!CM703)-1","v":0.11238825031928479},{"$f":"(Monthly!CN704/Monthly!CN703)-1","v":-1.9702016885182472E-3},{"$f":"(Monthly!CO704/Monthly!CO703)-1","v":4.6107384097562321E-3},{"$f":"(Monthly!CP704/Monthly!CP703)-1","v":5.8383356906874795E-3},null,{"$f":"(Monthly!CR704/Monthly!CR703)-1","v":3.2102887180562867E-3},"--","--",null,null,null,null,null,{"$f":"(Monthly!CZ704/Monthly!CZ703)-1","v":2.8547007128452151E-3},{"$f":"(Monthly!DA704/Monthly!DA703)-1","v":1.4679504194718973E-3},null,null,null,null,null,"--",{"$f":"((Monthly!DH704-Monthly!DH703)*60)","v":0},{"$f":"((Monthly!DI704-Monthly!DI703)*100)","v":-10.000000000000142},{"$f":"((Monthly!DJ704-Monthly!DJ703)*100)","v":-19.999999999999929},{"$f":"((Monthly!DK704-Monthly!DK703)*100)","v":-10.000000000000053},{"$f":"Monthly!DL704-Monthly!DL703","v":-5},null,null,null,{"$f":"Monthly!DP704-Monthly!DP703","v":124},null,null,null,{"$f":"(Monthly!DT704/Monthly!DT703)-1","v":-9.075907590759047E-3},{"$f":"Monthly!DU704-Monthly!DU703","v":-0.10000000000000142},{"$f":"(Monthly!DV704-Monthly!DV703)","v":6},{"$f":"(Monthly!DW704-Monthly!DW703)","v":7.9000000000000909},{"$f":"(Monthly!DX704-Monthly!DX703)","v":7.1000000000000227},{"$f":"(Monthly!DY704-Monthly!DY703)","v":0.80000000000001137},{"$f":"(Monthly!DZ704-Monthly!DZ703)","v":6.2999999999999545},{"$f":"(Monthly!EA704-Monthly!EA703)","v":5.7999999999999545},{"$f":"(Monthly!EB704-Monthly!EB703)","v":0.5},{"$f":"(Monthly!EC704-Monthly!EC703)","v":0.80000000000001137},null,null,null,null,null,null,null,null,null,null,null,null,null,{"$f":"(Monthly!EQ704/Monthly!EQ703)-1","v":-1.0700909577314732E-3},null,null,null,null,null,null,null,{"$f":"((Monthly!EY704-Monthly!EY703)*100)","v":0},{"$f":"((Monthly!EZ704-Monthly!EZ703)*100)","v":0},{"$f":"((Monthly!FA704-Monthly!FA703)*100)","v":9.9999999999999645},{"$f":"((Monthly!FB704-Monthly!FB703)*100)","v":7.0000000000000284},"--",{"$f":"((Monthly!FD704-Monthly!FD703)*100)","v":1.0000000000000231},{"$f":"((Monthly!FE704-Monthly!FE703)*100)","v":4.0000000000000036},{"$f":"((Monthly!FF704-Monthly!FF703)*100)","v":7.0000000000000062},{"$f":"((Monthly!FG704-Monthly!FG703)*100)","v":6.9999999999999947},{"$f":"((Monthly!FH704-Monthly!FH703)*100)","v":9.0000000000000071},{"$f":"((Monthly!FI704-Monthly!FI703)*100)","v":13.000000000000011},null,null,null,null,null,null,{"$f":"(Monthly!FP704/Monthly!FP703)-1","v":1.0909368324687252E-2},{"$f":"(Monthly!FQ704/Monthly!FQ703)-1","v":9.0102245809720038E-3},{"$f":"(Monthly!FR704/Monthly!FR703)-1","v":-1.831258184539275E-2},{"$f":"(Monthly!FS704/Monthly!FS703)-1","v":-1.8185059725441266E-2},{"$f":"(Monthly!FT704/Monthly!FT703)-1","v":9.3031773195944023E-3},{"$f":"(Monthly!FU704/Monthly!FU703)-1","v":2.0204486630232665E-2},{"$f":"(Monthly!FV704/Monthly!FV703)-1","v":3.9746699002962682E-3},{"$f":"(Monthly!FW704/Monthly!FW703)-1","v":4.2034982356538242E-2},{"$f":"(Monthly!FX704/Monthly!FX703)-1","v":4.8631638413583644E-2},null,null,null,null,null,{"$f":"(Monthly!GD704/Monthly!GD703)-1","v":0.10181496237273135},{"$f":"(Monthly!GE704/Monthly!GE703)-1","v":6.334550139574846E-2},{"$f":"(Monthly!GF704/Monthly!GF703)-1","v":1.3751611516974682E-2},{"$f":"(Monthly!GG704/Monthly!GG703)-1","v":2.506265664160412E-2},{"$f":"(Monthly!GH704/Monthly!GH703)-1","v":-0.11425531914893616},{"$f":"(Monthly!GI704/Monthly!GI703)-1","v":-0.2311411992263056},{"$f":"(Monthly!GJ704/Monthly!GJ703)-1","v":5.5172413793103559E-2},{"$f":"(Monthly!GK704/Monthly!GK703)-1","v":0.1280622990799245},{"$f":"(Monthly!GL704/Monthly!GL703)-1","v":-8.666230080768389E-2}]
["2016-11-01",null,null,null,{"$f":"(Monthly!E705/Monthly!E704)-1","v":2.5453579356033984E-3},{"$f":"(Monthly!F705/Monthly!F704)-1","v":-2.1933832937305331E-3},{"$f":"(Monthly!G705/Monthly!G704)-1","v":4.3574710822373852E-3},{"$f":"(Monthly!H705/Monthly!H704)-1","v":2.7532893865986896E-3},null,null,null,null,null,null,null,null,null,null,null,null,null,null,null,{"$f":"(Monthly!X705-Monthly!X704)","v":-0.20000000000000284},{"$f":"(Monthly!Y705/Monthly!Y704)-1","v":1.9619729890123505E-3},null,null,null,null,null,null,null,null,null,null,null,null,null,{"$f":"(Monthly!AM705/Monthly!AM704)-1","v":-2.1943470363714468E-3},{"$f":"(Monthly!AN705/Monthly!AN704)-1","v":1.953217999535406E-3},{"$f":"(Monthly!AO705/Monthly!AO704)-1","v":8.4764749813293072E-3},{"$f":"((Monthly!AP705-Monthly!AP704)*100)","v":1.0000000000000009},{"$f":"Monthly!AQ705-Monthly!AQ704","v":1.3000000000000043},{"$f":"Monthly!AR705-Monthly!AR704","v":3.5},{"$f":"Monthly!AS705-Monthly!AS704","v":-0.5},{"$f":"Monthly!AT705-Monthly!AT704","v":-0.60000000000000142},{"$f":"Monthly!AU705-Monthly!AU704","v":-0.5},{"$f":"Monthly!AV705-Monthly!AV704","v":-1.5},{"$f":"Monthly!AW705-Monthly!AW704","v":1.5},{"$f":"Monthly!AX705-Monthly!AX704","v":0.89999999999999858},{"$f":"Monthly!AY705-Monthly!AY704","v":0},{"$f":"Monthly!AZ705-Monthly!AZ704","v":1.3999999999999986},{"$f":"Monthly!BA705-Monthly!BA704","v":3.5},{"$f":"Monthly!BB705-Monthly!BB704","v":4},{"$f":"(Monthly!BC705/Monthly!BC704)-1","v":1.5395678750040886E-2},null,null,null,null,null,null,null,null,null,{"$f":"(Monthly!BM705/Monthly!BM704)-1","v":1.2457305319761858E-3},{"$f":"(Monthly!BN705/Monthly!BN704)-1","v":-1.5083580063401936E-4},null,null,null,null,null,{"$f":"(Monthly!BT705/Monthly!BT704)-1","v":4.392081179193541E-3},null,null,null,{"$f":"(Monthly!BX705/Monthly!BX704)-1","v":-0.13478915662650603},{"$f":"(Monthly!BY705/Monthly!BY704)-1","v":-2.3346303501945553E-2},{"$f":"(Monthly!BZ705/Monthly!BZ704)-1","v":7.7531562680077659E-3},{"$f":"(Monthly!CA705/Monthly!CA704)-1","v":-1.3480116827679134E-2},{"$f":"Monthly!CB705-Monthly!CB704","v":-0.14202204334889945},{"$f":"Monthly!CC705-Monthly!CC704","v":-0.28202204334889913},{"$f":"(Monthly!CD705/Monthly!CD704)-1","v":0},{"$f":"(Monthly!CE705/Monthly!CE704)-1","v":3.4662045060658286E-3},null,{"$f":"(Monthly!CG705/Monthly!CG704)-1","v":-7.9601990049751215E-2},{"$f":"(Monthly!CH705/Monthly!CH704)-1","v":1.2658227848101333E-2},null,{"$f":"(Monthly!CJ705/Monthly!CJ704)-1","v":3.4662045060658286E-3},{"$f":"(Monthly!CK705/Monthly!CK704)-1","v":-1.3096025044588844E-3},{"$f":"(Monthly!CL705/Monthly!CL704)-1","v":-0.10897435897435914},{"$f":"(Monthly!CM705/Monthly!CM704)-1","v":-5.5109070034443208E-2},{"$f":"(Monthly!CN705/Monthly!CN704)-1","v":-1.902738357619671E-3},{"$f":"(Monthly!CO705/Monthly!CO704)-1","v":6.104137503729179E-3},{"$f":"(Monthly!CP705/Monthly!CP704)-1","v":6.7941009597389801E-3},null,{"$f":"(Monthly!CR705/Monthly!CR704)-1","v":1.2902543033773917E-2},"--","--",null,null,null,null,null,{"$f":"(Monthly!CZ705/Monthly!CZ704)-1","v":2.0894188519369195E-3},{"$f":"(Monthly!DA705/Monthly!DA704)-1","v":1.8191967423126787E-3},null,null,null,null,null,"--",{"$f":"((Monthly!DH705-Monthly!DH704)*60)","v":0},{"$f":"((Monthly!DI705-Monthly!DI704)*100)","v":-19.999999999999574},{"$f":"((Monthly!DJ705-Monthly!DJ704)*100)","v":-19.999999999999929},{"$f":"((Monthly!DK705-Monthly!DK704)*100)","v":-20.000000000000018},{"$f":"Monthly!DL705-Monthly!DL704","v":0},null,null,null,{"$f":"Monthly!DP705-Monthly!DP704","v":164},null,null,null,{"$f":"(Monthly!DT705/Monthly!DT704)-1","v":-8.3263946711076287E-4},{"$f":"Monthly!DU705-Monthly!DU704","v":0},{"$f":"(Monthly!DV705-Monthly!DV704)","v":1.7999999999999545},{"$f":"(Monthly!DW705-Monthly!DW704)","v":-4.5},{"$f":"(Monthly!DX705-Monthly!DX704)","v":1.1000000000000227},{"$f":"(Monthly!DY705-Monthly!DY704)","v":0.5},{"$f":"(Monthly!DZ705-Monthly!DZ704)","v":0.60000000000002274},{"$f":"(Monthly!EA705-Monthly!EA704)","v":1.6000000000000227},{"$f":"(Monthly!EB705-Monthly!EB704)","v":-1},{"$f":"(Monthly!EC705-Monthly!EC704)","v":-5.6000000000000227},null,null,null,null,null,null,null,null,null,null,null,null,null,{"$f":"(Monthly!EQ705/Monthly!EQ704)-1","v":-2.1424745581144489E-3},null,null,null,null,null,null,null,{"$f":"((Monthly!EY705-Monthly!EY704)*100)","v":0},{"$f":"((Monthly!EZ705-Monthly!EZ704)*100)","v":0.99999999999999534},{"$f":"((Monthly!FA705-Monthly!FA704)*100)","v":35.000000000000007},{"$f":"((Monthly!FB705-Monthly!FB704)*100)","v":33.000000000000007},"--",{"$f":"((Monthly!FD705-Monthly!FD704)*100)","v":29.999999999999982},{"$f":"((Monthly!FE705-Monthly!FE704)*100)","v":12},{"$f":"((Monthly!FF705-Monthly!FF704)*100)","v":7.9999999999999964},{"$f":"((Monthly!FG705-Monthly!FG704)*100)","v":14.000000000000002},{"$f":"((Monthly!FH705-Monthly!FH704)*100)","v":33.000000000000007},{"$f":"((Monthly!FI705-Monthly!FI704)*100)","v":38.000000000000014},null,null,null,null,null,null,{"$f":"(Monthly!FP705/Monthly!FP704)-1","v":1.381027846954952E-2},{"$f":"(Monthly!FQ705/Monthly!FQ704)-1","v":1.6329138374218122E-2},{"$f":"(Monthly!FR705/Monthly!FR704)-1","v":5.9149233505547461E-2},{"$f":"(Monthly!FS705/Monthly!FS704)-1","v":-2.0156164881060423E-2},{"$f":"(Monthly!FT705/Monthly!FT704)-1","v":2.356468429766867E-2},{"$f":"(Monthly!FU705/Monthly!FU704)-1","v":1.8988415913106182E-2},{"$f":"(Monthly!FV705/Monthly!FV704)-1","v":2.3334228007783731E-2},{"$f":"(Monthly!FW705/Monthly!FW704)-1","v":-2.7049676321828531E-2},{"$f":"(Monthly!FX705/Monthly!FX704)-1","v":-3.741895342264101E-2},null,null,null,null,null,{"$f":"(Monthly!GD705/Monthly!GD704)-1","v":-8.2764162314182488E-2},{"$f":"(Monthly!GE705/Monthly!GE704)-1","v":-9.6728594507269894E-2},{"$f":"(Monthly!GF705/Monthly!GF704)-1","v":-2.7130139889783855E-2},{"$f":"(Monthly!GG705/Monthly!GG704)-1","v":-6.1124694376528677E-3},{"$f":"(Monthly!GH705/Monthly!GH704)-1","v":-7.1823204419889541E-2},{"$f":"(Monthly!GI705/Monthly!GI704)-1","v":0.26037735849056598},{"$f":"(Monthly!GJ705/Monthly!GJ704)-1","v":-5.8823529411764719E-2},{"$f":"(Monthly!GK705/Monthly!GK704)-1","v":-2.0452032919788699E-2},{"$f":"(Monthly!GL705/Monthly!GL704)-1","v":0.10803059273422555}]
["2016-12-01",null,null,null,{"$f":"(Monthly!E706/Monthly!E705)-1","v":3.5989057958625281E-3},{"$f":"(Monthly!F706/Monthly!F705)-1","v":1.6425474751175395E-2},{"$f":"(Monthly!G706/Monthly!G705)-1","v":1.7354263627040734E-3},{"$f":"(Monthly!H706/Monthly!H705)-1","v":2.1120996911054846E-3},null,null,null,null,null,null,null,null,null,null,null,null,null,null,null,{"$f":"(Monthly!X706-Monthly!X705)","v":0.5},{"$f":"(Monthly!Y706/Monthly!Y705)-1","v":-2.0993430296261106E-3},null,null,null,null,null,null,null,null,null,null,null,null,null,{"$f":"(Monthly!AM706/Monthly!AM705)-1","v":7.962287683660918E-3},{"$f":"(Monthly!AN706/Monthly!AN705)-1","v":2.0793710678406185E-3},{"$f":"(Monthly!AO706/Monthly!AO705)-1","v":4.1966244045661405E-3},{"$f":"((Monthly!AP706-Monthly!AP705)*100)","v":-1.9999999999999796},{"$f":"Monthly!AQ706-Monthly!AQ705","v":1.2999999999999972},{"$f":"Monthly!AR706-Monthly!AR705","v":0},{"$f":"Monthly!AS706-Monthly!AS705","v":0},{"$f":"Monthly!AT706-Monthly!AT705","v":0.5},{"$f":"Monthly!AU706-Monthly!AU705","v":4},{"$f":"Monthly!AV706-Monthly!AV705","v":0},{"$f":"Monthly!AW706-Monthly!AW705","v":-2},{"$f":"Monthly!AX706-Monthly!AX705","v":7.2999999999999972},{"$f":"Monthly!AY706-Monthly!AY705","v":11},{"$f":"Monthly!AZ706-Monthly!AZ705","v":3.3999999999999986},{"$f":"Monthly!BA706-Monthly!BA705","v":-2.7000000000000028},{"$f":"Monthly!BB706-Monthly!BB705","v":-0.80000000000000426},{"$f":"(Monthly!BC706/Monthly!BC705)-1","v":-3.3801184651043314E-3},null,null,null,null,null,null,null,null,null,{"$f":"(Monthly!BM706/Monthly!BM705)-1","v":8.6128992192284759E-3},{"$f":"(Monthly!BN706/Monthly!BN705)-1","v":1.1333857282940007E-2},null,null,null,null,null,{"$f":"(Monthly!BT706/Monthly!BT705)-1","v":4.177390112311663E-3},null,null,null,{"$f":"(Monthly!BX706/Monthly!BX705)-1","v":0.10356832027850316},{"$f":"(Monthly!BY706/Monthly!BY705)-1","v":8.7649402390437281E-3},{"$f":"(Monthly!BZ706/Monthly!BZ705)-1","v":7.953423090918621E-3},{"$f":"(Monthly!CA706/Monthly!CA705)-1","v":2.772716920974716E-2},{"$f":"Monthly!CB706-Monthly!CB705","v":0.49278173569619099},{"$f":"Monthly!CC706-Monthly!CC705","v":0.56278173569619128},{"$f":"(Monthly!CD706/Monthly!CD705)-1","v":3.2258064516129004E-2},{"$f":"(Monthly!CE706/Monthly!CE705)-1","v":-5.3540587219343738E-2},null,{"$f":"(Monthly!CG706/Monthly!CG705)-1","v":-0.10810810810810811},{"$f":"(Monthly!CH706/Monthly!CH705)-1","v":-1.6071428571428625E-2},null,{"$f":"(Monthly!CJ706/Monthly!CJ705)-1","v":-5.3540587219343738E-2},{"$f":"(Monthly!CK706/Monthly!CK705)-1","v":8.0552502747521793E-4},{"$f":"(Monthly!CL706/Monthly!CL705)-1","v":-0.13844059887225346},{"$f":"(Monthly!CM706/Monthly!CM705)-1","v":-1.8226002430133614E-2},{"$f":"(Monthly!CN706/Monthly!CN705)-1","v":-1.5489221090758676E-3},{"$f":"(Monthly!CO706/Monthly!CO705)-1","v":6.751362817325246E-3},{"$f":"(Monthly!CP706/Monthly!CP705)-1","v":3.2410988195792356E-3},null,{"$f":"(Monthly!CR706/Monthly!CR705)-1","v":2.0654510069255672E-3},"--","--",null,null,null,null,null,{"$f":"(Monthly!CZ706/Monthly!CZ705)-1","v":2.568136119472042E-3},{"$f":"(Monthly!DA706/Monthly!DA705)-1","v":2.2007183401211439E-3},null,null,null,null,null,"--",{"$f":"((Monthly!DH706-Monthly!DH705)*60)","v":0},{"$f":"((Monthly!DI706-Monthly!DI705)*100)","v":10.000000000000142},{"$f":"((Monthly!DJ706-Monthly!DJ705)*100)","v":-10.000000000000142},{"$f":"((Monthly!DK706-Monthly!DK705)*100)","v":10.000000000000053},{"$f":"Monthly!DL706-Monthly!DL705","v":18},null,null,null,{"$f":"Monthly!DP706-Monthly!DP705","v":155},null,null,null,{"$f":"(Monthly!DT706/Monthly!DT705)-1","v":-8.3333333333333037E-3},{"$f":"Monthly!DU706-Monthly!DU705","v":0.10000000000000142},{"$f":"(Monthly!DV706-Monthly!DV705)","v":2.7000000000000455},{"$f":"(Monthly!DW706-Monthly!DW705)","v":-7.7000000000000455},{"$f":"(Monthly!DX706-Monthly!DX705)","v":-3.4000000000000909},{"$f":"(Monthly!DY706-Monthly!DY705)","v":-2.3000000000000114},{"$f":"(Monthly!DZ706-Monthly!DZ705)","v":-1.1000000000000227},{"$f":"(Monthly!EA706-Monthly!EA705)","v":-2.2000000000000455},{"$f":"(Monthly!EB706-Monthly!EB705)","v":1.0999999999999943},{"$f":"(Monthly!EC706-Monthly!EC705)","v":-4.3000000000000114},null,null,null,null,null,null,null,null,null,null,null,null,null,{"$f":"(Monthly!EQ706/Monthly!EQ705)-1","v":1.0198604401502775E-2},null,null,null,null,null,null,null,{"$f":"((Monthly!EY706-Monthly!EY705)*100)","v":14.000000000000012},{"$f":"((Monthly!EZ706-Monthly!EZ705)*100)","v":13.000000000000005},{"$f":"((Monthly!FA706-Monthly!FA705)*100)","v":19.999999999999972},{"$f":"((Monthly!FB706-Monthly!FB705)*100)","v":12.000000000000011},"--",{"$f":"((Monthly!FD706-Monthly!FD705)*100)","v":43.000000000000014},{"$f":"((Monthly!FE706-Monthly!FE705)*100)","v":6},{"$f":"((Monthly!FF706-Monthly!FF705)*100)","v":13},{"$f":"((Monthly!FG706-Monthly!FG705)*100)","v":21.999999999999996},{"$f":"((Monthly!FH706-Monthly!FH705)*100)","v":35.999999999999986},{"$f":"((Monthly!FI706-Monthly!FI705)*100)","v":35.000000000000007},null,null,null,null,null,null,{"$f":"(Monthly!FP706/Monthly!FP705)-1","v":-7.071609349411867E-3},{"$f":"(Monthly!FQ706/Monthly!FQ705)-1","v":1.1637086634893823E-2},{"$f":"(Monthly!FR706/Monthly!FR705)-1","v":2.4519456633647296E-2},{"$f":"(Monthly!FS706/Monthly!FS705)-1","v":-2.2887323943661886E-2},{"$f":"(Monthly!FT706/Monthly!FT705)-1","v":1.5385740448695007E-2},{"$f":"(Monthly!FU706/Monthly!FU705)-1","v":1.8804329490544003E-2},{"$f":"(Monthly!FV706/Monthly!FV705)-1","v":-5.0854056357884092E-2},{"$f":"(Monthly!FW706/Monthly!FW705)-1","v":-7.5822187383387085E-2},{"$f":"(Monthly!FX706/Monthly!FX705)-1","v":-7.466892637553213E-2},null,null,null,null,null,{"$f":"(Monthly!GD706/Monthly!GD705)-1","v":0.13819535698642138},{"$f":"(Monthly!GE706/Monthly!GE705)-1","v":0.19137044489157162},{"$f":"(Monthly!GF706/Monthly!GF705)-1","v":3.0936819172113328E-2},{"$f":"(Monthly!GG706/Monthly!GG705)-1","v":2.9110291102910857E-2},{"$f":"(Monthly!GH706/Monthly!GH705)-1","v":-4.1407867494823725E-3},{"$f":"(Monthly!GI706/Monthly!GI705)-1","v":1.4970059880239583E-2},{"$f":"(Monthly!GJ706/Monthly!GJ705)-1","v":0.24652777777777768},{"$f":"(Monthly!GK706/Monthly!GK705)-1","v":-4.4855476832403207E-2},{"$f":"(Monthly!GL706/Monthly!GL705)-1","v":1.7989646246764357E-2}]
["2017-01-01",null,null,null,{"$f":"(Monthly!E707/Monthly!E706)-1","v":-9.9658435618099617E-4},{"$f":"(Monthly!F707/Monthly!F706)-1","v":-1.5859665985822335E-2},{"$f":"(Monthly!G707/Monthly!G706)-1","v":-7.8746357980941095E-4},{"$f":"(Monthly!H707/Monthly!H706)-1","v":1.3699712832944133E-3},null,null,null,null,null,null,null,null,null,null,null,null,null,null,null,{"$f":"(Monthly!X707-Monthly!X706)","v":-0.29999999999999716},{"$f":"(Monthly!Y707/Monthly!Y706)-1","v":7.3966887199428122E-4},null,null,null,null,null,null,null,null,null,null,null,null,null,{"$f":"(Monthly!AM707/Monthly!AM706)-1","v":-2.9903389789673884E-3},{"$f":"(Monthly!AN707/Monthly!AN706)-1","v":4.1936654649277205E-3},{"$f":"(Monthly!AO707/Monthly!AO706)-1","v":3.2545577092946143E-3},{"$f":"((Monthly!AP707-Monthly!AP706)*100)","v":0},{"$f":"Monthly!AQ707-Monthly!AQ706","v":1.5},{"$f":"Monthly!AR707-Monthly!AR706","v":0.5},{"$f":"Monthly!AS707-Monthly!AS706","v":-0.5},{"$f":"Monthly!AT707-Monthly!AT706","v":3.3000000000000043},{"$f":"Monthly!AU707-Monthly!AU706","v":-1.5},{"$f":"Monthly!AV707-Monthly!AV706","v":-0.5},{"$f":"Monthly!AW707-Monthly!AW706","v":1.5},{"$f":"Monthly!AX707-Monthly!AX706","v":0.10000000000000142},{"$f":"Monthly!AY707-Monthly!AY706","v":3.5},{"$f":"Monthly!AZ707-Monthly!AZ706","v":2},{"$f":"Monthly!BA707-Monthly!BA706","v":0.60000000000000142},{"$f":"Monthly!BB707-Monthly!BB706","v":-0.60000000000000142},{"$f":"(Monthly!BC707/Monthly!BC706)-1","v":1.3291772990083661E-2},null,null,null,null,null,null,null,null,null,{"$f":"(Monthly!BM707/Monthly!BM706)-1","v":5.239959575028319E-3},{"$f":"(Monthly!BN707/Monthly!BN706)-1","v":3.6137128614013303E-3},null,null,null,null,null,{"$f":"(Monthly!BT707/Monthly!BT706)-1","v":2.8122954635485531E-3},null,null,null,{"$f":"(Monthly!BX707/Monthly!BX706)-1","v":-2.5236593059936863E-2},{"$f":"(Monthly!BY707/Monthly!BY706)-1","v":2.6856240126382325E-2},{"$f":"(Monthly!BZ707/Monthly!BZ706)-1","v":8.509541000515819E-3},{"$f":"(Monthly!CA707/Monthly!CA706)-1","v":-3.9720791091906182E-2},{"$f":"Monthly!CB707-Monthly!CB706","v":0.55003553337181721},{"$f":"Monthly!CC707-Monthly!CC706","v":0.62003553337181572},{"$f":"(Monthly!CD707/Monthly!CD706)-1","v":1.953125E-2},{"$f":"(Monthly!CE707/Monthly!CE706)-1","v":9.3065693430656848E-2},null,{"$f":"(Monthly!CG707/Monthly!CG706)-1","v":1.8181818181818077E-2},{"$f":"(Monthly!CH707/Monthly!CH706)-1","v":3.2667876588021727E-2},null,{"$f":"(Monthly!CJ707/Monthly!CJ706)-1","v":9.3065693430656848E-2},{"$f":"(Monthly!CK707/Monthly!CK706)-1","v":9.1219356972167542E-3},{"$f":"(Monthly!CL707/Monthly!CL706)-1","v":0.19363574813811768},{"$f":"(Monthly!CM707/Monthly!CM706)-1","v":8.66336633663356E-3},{"$f":"(Monthly!CN707/Monthly!CN706)-1","v":4.5744198442310147E-3},{"$f":"(Monthly!CO707/Monthly!CO706)-1","v":2.9225854686332209E-3},{"$f":"(Monthly!CP707/Monthly!CP706)-1","v":4.1531473069436053E-3},null,{"$f":"(Monthly!CR707/Monthly!CR706)-1","v":9.1416096596619312E-4},"--","--",null,null,null,null,null,{"$f":"(Monthly!CZ707/Monthly!CZ706)-1","v":5.5061135568998942E-3},{"$f":"(Monthly!DA707/Monthly!DA706)-1","v":3.0798398483278255E-3},null,null,null,null,null,"--",{"$f":"((Monthly!DH707-Monthly!DH706)*60)","v":0},{"$f":"((Monthly!DI707-Monthly!DI706)*100)","v":19.999999999999574},{"$f":"((Monthly!DJ707-Monthly!DJ706)*100)","v":20.000000000000107},{"$f":"((Monthly!DK707-Monthly!DK706)*100)","v":9.9999999999999645},{"$f":"Monthly!DL707-Monthly!DL706","v":12},null,null,null,{"$f":"Monthly!DP707-Monthly!DP706","v":216},null,null,null,{"$f":"(Monthly!DT707/Monthly!DT706)-1","v":-1.3445378151260456E-2},{"$f":"Monthly!DU707-Monthly!DU706","v":-0.10000000000000142},{"$f":"(Monthly!DV707-Monthly!DV706)","v":-2.2000000000000455},{"$f":"(Monthly!DW707-Monthly!DW706)","v":-30},{"$f":"(Monthly!DX707-Monthly!DX706)","v":-18.199999999999932},{"$f":"(Monthly!DY707-Monthly!DY706)","v":-4},{"$f":"(Monthly!DZ707-Monthly!DZ706)","v":-14.199999999999932},{"$f":"(Monthly!EA707-Monthly!EA706)","v":-10.699999999999932},{"$f":"(Monthly!EB707-Monthly!EB706)","v":-3.5},{"$f":"(Monthly!EC707-Monthly!EC706)","v":-11.800000000000011},null,null,null,null,null,null,null,null,null,null,null,null,null,{"$f":"(Monthly!EQ707/Monthly!EQ706)-1","v":1.3283740701381497E-2},null,null,null,null,null,null,null,{"$f":"((Monthly!EY707-Monthly!EY706)*100)","v":10.999999999999988},{"$f":"((Monthly!EZ707-Monthly!EZ706)*100)","v":10.999999999999998},{"$f":"((Monthly!FA707-Monthly!FA706)*100)","v":-13.999999999999968},{"$f":"((Monthly!FB707-Monthly!FB706)*100)","v":-16.999999999999993},"--",{"$f":"((Monthly!FD707-Monthly!FD706)*100)","v":-4.9999999999999822},{"$f":"((Monthly!FE707-Monthly!FE706)*100)","v":0},{"$f":"((Monthly!FF707-Monthly!FF706)*100)","v":-4.0000000000000036},{"$f":"((Monthly!FG707-Monthly!FG706)*100)","v":1.0000000000000009},{"$f":"((Monthly!FH707-Monthly!FH706)*100)","v":-4.0000000000000036},{"$f":"((Monthly!FI707-Monthly!FI706)*100)","v":-6.0000000000000053},null,null,null,null,null,null,{"$f":"(Monthly!FP707/Monthly!FP706)-1","v":-1.1695029612414753E-2},{"$f":"(Monthly!FQ707/Monthly!FQ706)-1","v":-4.2053238532906434E-3},{"$f":"(Monthly!FR707/Monthly!FR706)-1","v":4.3509014985950722E-2},{"$f":"(Monthly!FS707/Monthly!FS706)-1","v":8.5348506401137225E-3},{"$f":"(Monthly!FT707/Monthly!FT706)-1","v":-1.4380728414815636E-3},{"$f":"(Monthly!FU707/Monthly!FU706)-1","v":-8.7324300844948688E-3},{"$f":"(Monthly!FV707/Monthly!FV706)-1","v":4.8444968329425686E-2},{"$f":"(Monthly!FW707/Monthly!FW706)-1","v":5.0741273090187056E-2},{"$f":"(Monthly!FX707/Monthly!FX706)-1","v":1.7463528910655057E-4},null,null,null,null,null,{"$f":"(Monthly!GD707/Monthly!GD706)-1","v":1.0198191264190859E-2},{"$f":"(Monthly!GE707/Monthly!GE706)-1","v":2.4207168324263506E-2},{"$f":"(Monthly!GF707/Monthly!GF706)-1","v":3.8884192730346712E-2},{"$f":"(Monthly!GG707/Monthly!GG706)-1","v":2.788844621513964E-2},{"$f":"(Monthly!GH707/Monthly!GH706)-1","v":-2.2609147609147562E-2},{"$f":"(Monthly!GI707/Monthly!GI706)-1","v":-6.8829891838741442E-2},{"$f":"(Monthly!GJ707/Monthly!GJ706)-1","v":-8.3565459610027815E-2},{"$f":"(Monthly!GK707/Monthly!GK706)-1","v":-3.194254805167529E-2},{"$f":"(Monthly!GL707/Monthly!GL706)-1","v":-5.4328940119506619E-2}]
["2017-02-01",null,null,null,{"$f":"(Monthly!E708/Monthly!E707)-1","v":1.0231574639352203E-4},{"$f":"(Monthly!F708/Monthly!F707)-1","v":3.1742156024905377E-3},{"$f":"(Monthly!G708/Monthly!G707)-1","v":-3.0735282528174812E-3},{"$f":"(Monthly!H708/Monthly!H707)-1","v":5.9196506090652967E-4},null,null,null,null,null,null,null,null,null,null,null,null,null,null,null,{"$f":"(Monthly!X708-Monthly!X707)","v":9.9999999999994316E-2},{"$f":"(Monthly!Y708/Monthly!Y707)-1","v":-6.5377472628924682E-4},null,null,null,null,null,null,null,null,null,null,null,null,null,{"$f":"(Monthly!AM708/Monthly!AM707)-1","v":2.3835943752585909E-3},{"$f":"(Monthly!AN708/Monthly!AN707)-1","v":2.5444360700799251E-3},{"$f":"(Monthly!AO708/Monthly!AO707)-1","v":2.6721652159107379E-3},{"$f":"((Monthly!AP708-Monthly!AP707)*100)","v":0},{"$f":"Monthly!AQ708-Monthly!AQ707","v":1.7000000000000028},{"$f":"Monthly!AR708-Monthly!AR707","v":7.5},{"$f":"Monthly!AS708-Monthly!AS707","v":-1},{"$f":"Monthly!AT708-Monthly!AT707","v":-1.8999999999999986},{"$f":"Monthly!AU708-Monthly!AU707","v":0.5},{"$f":"Monthly!AV708-Monthly!AV707","v":4},{"$f":"Monthly!AW708-Monthly!AW707","v":3},{"$f":"Monthly!AX708-Monthly!AX707","v":4.6999999999999957},{"$f":"Monthly!AY708-Monthly!AY707","v":-1},{"$f":"Monthly!AZ708-Monthly!AZ707","v":1.5},{"$f":"Monthly!BA708-Monthly!BA707","v":1.1999999999999957},{"$f":"Monthly!BB708-Monthly!BB707","v":3.3000000000000043},{"$f":"(Monthly!BC708/Monthly!BC707)-1","v":1.3547759838064E-3},null,null,null,null,null,null,null,null,null,{"$f":"(Monthly!BM708/Monthly!BM707)-1","v":-2.0086004426946857E-3},{"$f":"(Monthly!BN708/Monthly!BN707)-1","v":-2.2654210446827472E-3},null,null,null,null,null,{"$f":"(Monthly!BT708/Monthly!BT707)-1","v":2.9687935830831069E-3},null,null,null,{"$f":"(Monthly!BX708/Monthly!BX707)-1","v":4.2071197411003292E-2},{"$f":"(Monthly!BY708/Monthly!BY707)-1","v":-6.2307692307692286E-2},{"$f":"(Monthly!BZ708/Monthly!BZ707)-1","v":6.9547430324723436E-3},{"$f":"(Monthly!CA708/Monthly!CA707)-1","v":-5.1921079958461291E-4},{"$f":"Monthly!CB708-Monthly!CB707","v":0.15380741641989371},{"$f":"Monthly!CC708-Monthly!CC707","v":8.3807416419894309E-2},{"$f":"(Monthly!CD708/Monthly!CD707)-1","v":7.6628352490422103E-3},{"$f":"(Monthly!CE708/Monthly!CE707)-1","v":2.6711185308847973E-2},null,{"$f":"(Monthly!CG708/Monthly!CG707)-1","v":2.9761904761904656E-2},{"$f":"(Monthly!CH708/Monthly!CH707)-1","v":-3.8664323374341003E-2},null,{"$f":"(Monthly!CJ708/Monthly!CJ707)-1","v":2.6711185308847973E-2},{"$f":"(Monthly!CK708/Monthly!CK707)-1","v":5.181315114229923E-3},{"$f":"(Monthly!CL708/Monthly!CL707)-1","v":9.3968614104745773E-2},{"$f":"(Monthly!CM708/Monthly!CM707)-1","v":7.6073619631901845E-2},{"$f":"(Monthly!CN708/Monthly!CN707)-1","v":3.5557596971664829E-3},{"$f":"(Monthly!CO708/Monthly!CO707)-1","v":7.0479804825156478E-3},{"$f":"(Monthly!CP708/Monthly!CP707)-1","v":5.0579248075341976E-3},null,{"$f":"(Monthly!CR708/Monthly!CR707)-1","v":5.1123177739904602E-3},"--","--",null,null,null,null,null,{"$f":"(Monthly!CZ708/Monthly!CZ707)-1","v":1.22052113795168E-3},{"$f":"(Monthly!DA708/Monthly!DA707)-1","v":2.0575557354367557E-3},null,null,null,null,null,"--",{"$f":"((Monthly!DH708-Monthly!DH707)*60)","v":0},{"$f":"((Monthly!DI708-Monthly!DI707)*100)","v":10.000000000000142},{"$f":"((Monthly!DJ708-Monthly!DJ707)*100)","v":-20.000000000000107},{"$f":"((Monthly!DK708-Monthly!DK707)*100)","v":-9.9999999999999645},{"$f":"Monthly!DL708-Monthly!DL707","v":22},null,null,null,{"$f":"Monthly!DP708-Monthly!DP707","v":232},null,null,null,{"$f":"(Monthly!DT708/Monthly!DT707)-1","v":-1.1073253833049357E-2},{"$f":"Monthly!DU708-Monthly!DU707","v":-0.19999999999999929},{"$f":"(Monthly!DV708-Monthly!DV707)","v":8.5999999999999091},{"$f":"(Monthly!DW708-Monthly!DW707)","v":7.4000000000000909},{"$f":"(Monthly!DX708-Monthly!DX707)","v":4.6000000000000227},{"$f":"(Monthly!DY708-Monthly!DY707)","v":-9.9999999999994316E-2},{"$f":"(Monthly!DZ708-Monthly!DZ707)","v":4.6999999999999318},{"$f":"(Monthly!EA708-Monthly!EA707)","v":3.5999999999999659},{"$f":"(Monthly!EB708-Monthly!EB707)","v":1.0999999999999943},{"$f":"(Monthly!EC708-Monthly!EC707)","v":2.8000000000000114},null,null,null,null,null,null,null,null,null,null,null,null,null,{"$f":"(Monthly!EQ708/Monthly!EQ707)-1","v":4.7194546407971494E-3},null,null,null,null,null,null,null,{"$f":"((Monthly!EY708-Monthly!EY707)*100)","v":0},{"$f":"((Monthly!EZ708-Monthly!EZ707)*100)","v":1.0000000000000009},{"$f":"((Monthly!FA708-Monthly!FA707)*100)","v":3.0000000000000249},{"$f":"((Monthly!FB708-Monthly!FB707)*100)","v":-2.0000000000000462},"--",{"$f":"((Monthly!FD708-Monthly!FD707)*100)","v":1.9999999999999574},{"$f":"((Monthly!FE708-Monthly!FE707)*100)","v":1.0000000000000009},{"$f":"((Monthly!FF708-Monthly!FF707)*100)","v":-1.0000000000000009},{"$f":"((Monthly!FG708-Monthly!FG707)*100)","v":-1.0000000000000009},{"$f":"((Monthly!FH708-Monthly!FH707)*100)","v":-2.0000000000000018},{"$f":"((Monthly!FI708-Monthly!FI707)*100)","v":-1.0000000000000231},null,null,null,null,null,null,{"$f":"(Monthly!FP708/Monthly!FP707)-1","v":-5.6132898429795963E-3},{"$f":"(Monthly!FQ708/Monthly!FQ707)-1","v":-3.0911228177108452E-3},{"$f":"(Monthly!FR708/Monthly!FR707)-1","v":-5.096979584967587E-2},{"$f":"(Monthly!FS708/Monthly!FS707)-1","v":1.4104372355430161E-3},{"$f":"(Monthly!FT708/Monthly!FT707)-1","v":-1.4031407209499802E-2},{"$f":"(Monthly!FU708/Monthly!FU707)-1","v":-6.6506259474843343E-3},{"$f":"(Monthly!FV708/Monthly!FV707)-1","v":-4.1882358755142679E-2},{"$f":"(Monthly!FW708/Monthly!FW707)-1","v":-0.20816022698984682},{"$f":"(Monthly!FX708/Monthly!FX707)-1","v":1.823129599345874E-2},null,null,null,null,null,{"$f":"(Monthly!GD708/Monthly!GD707)-1","v":1.8476190476190535E-2},{"$f":"(Monthly!GE708/Monthly!GE707)-1","v":5.3133015756687829E-3},{"$f":"(Monthly!GF708/Monthly!GF707)-1","v":-1.7087062652563212E-2},{"$f":"(Monthly!GG708/Monthly!GG707)-1","v":-4.6511627906976605E-3},{"$f":"(Monthly!GH708/Monthly!GH707)-1","v":6.3281042275990407E-2},{"$f":"(Monthly!GI708/Monthly!GI707)-1","v":9.0813093980992576E-2},{"$f":"(Monthly!GJ708/Monthly!GJ707)-1","v":-0.11550151975683887},{"$f":"(Monthly!GK708/Monthly!GK707)-1","v":7.6015460771682308E-2},{"$f":"(Monthly!GL708/Monthly!GL707)-1","v":-4.6661438494286389E-2}]
["2017-03-01",null,null,null,{"$f":"(Monthly!E709/Monthly!E708)-1","v":7.3745055244851532E-3},{"$f":"(Monthly!F709/Monthly!F708)-1","v":1.0344407934769428E-2},{"$f":"(Monthly!G709/Monthly!G708)-1","v":8.9723320158101583E-3},{"$f":"(Monthly!H709/Monthly!H708)-1","v":6.4025873289246249E-3},null,null,null,null,null,null,null,null,null,null,null,null,null,null,null,{"$f":"(Monthly!X709-Monthly!X708)","v":0.10000000000000853},{"$f":"(Monthly!Y709/Monthly!Y708)-1","v":-6.1532773363635052E-3},null,null,null,null,null,null,null,null,null,null,null,null,null,{"$f":"(Monthly!AM709/Monthly!AM708)-1","v":2.0481409552977059E-3},{"$f":"(Monthly!AN709/Monthly!AN708)-1","v":-6.5304874648864919E-3},{"$f":"(Monthly!AO709/Monthly!AO708)-1","v":1.7211741070297659E-3},{"$f":"((Monthly!AP709-Monthly!AP708)*100)","v":0},{"$f":"Monthly!AQ709-Monthly!AQ708","v":-0.5},{"$f":"Monthly!AR709-Monthly!AR708","v":0.5},{"$f":"Monthly!AS709-Monthly!AS708","v":-0.5},{"$f":"Monthly!AT709-Monthly!AT708","v":4.6999999999999957},{"$f":"Monthly!AU709-Monthly!AU708","v":4},{"$f":"Monthly!AV709-Monthly!AV708","v":-0.5},{"$f":"Monthly!AW709-Monthly!AW708","v":-2.5},{"$f":"Monthly!AX709-Monthly!AX708","v":-0.59999999999999432},{"$f":"Monthly!AY709-Monthly!AY708","v":2.5},{"$f":"Monthly!AZ709-Monthly!AZ708","v":-5.2999999999999972},{"$f":"Monthly!BA709-Monthly!BA708","v":1.1000000000000014},{"$f":"Monthly!BB709-Monthly!BB708","v":-4.7000000000000028},{"$f":"(Monthly!BC709/Monthly!BC708)-1","v":3.8200744914518303E-4},null,null,null,null,null,null,null,null,null,{"$f":"(Monthly!BM709/Monthly!BM708)-1","v":1.0116123789187803E-3},{"$f":"(Monthly!BN709/Monthly!BN708)-1","v":1.2542167632558776E-3},null,null,null,null,null,{"$f":"(Monthly!BT709/Monthly!BT708)-1","v":2.0735014804800223E-3},null,null,null,{"$f":"(Monthly!BX709/Monthly!BX708)-1","v":-7.6863354037267073E-2},{"$f":"(Monthly!BY709/Monthly!BY708)-1","v":3.3634126333059955E-2},{"$f":"(Monthly!BZ709/Monthly!BZ708)-1","v":5.5863084657965523E-3},{"$f":"(Monthly!CA709/Monthly!CA708)-1","v":-3.4978354978354886E-2},{"$f":"Monthly!CB709-Monthly!CB708","v":-0.6122799829602954},{"$f":"Monthly!CC709-Monthly!CC708","v":-0.75227998296029597},{"$f":"(Monthly!CD709/Monthly!CD708)-1","v":1.1406844106463865E-2},{"$f":"(Monthly!CE709/Monthly!CE708)-1","v":3.7398373983739797E-2},null,{"$f":"(Monthly!CG709/Monthly!CG708)-1","v":4.0462427745664664E-2},{"$f":"(Monthly!CH709/Monthly!CH708)-1","v":4.2047531992687404E-2},null,{"$f":"(Monthly!CJ709/Monthly!CJ708)-1","v":3.7398373983739797E-2},{"$f":"(Monthly!CK709/Monthly!CK708)-1","v":2.9279154595167611E-3},{"$f":"(Monthly!CL709/Monthly!CL708)-1","v":-3.87141375734531E-2},{"$f":"(Monthly!CM709/Monthly!CM708)-1","v":-6.0433295324971548E-2},{"$f":"(Monthly!CN709/Monthly!CN708)-1","v":5.4607293072292951E-3},{"$f":"(Monthly!CO709/Monthly!CO708)-1","v":5.83221175415094E-4},{"$f":"(Monthly!CP709/Monthly!CP708)-1","v":3.8089764392430503E-3},null,{"$f":"(Monthly!CR709/Monthly!CR708)-1","v":4.4971692406294839E-3},"--","--",null,null,null,null,null,{"$f":"(Monthly!CZ709/Monthly!CZ708)-1","v":-2.8798638609810467E-3},{"$f":"(Monthly!DA709/Monthly!DA708)-1","v":-1.2176729712414236E-3},null,null,null,null,null,"--",{"$f":"((Monthly!DH709-Monthly!DH708)*60)","v":0},{"$f":"((Monthly!DI709-Monthly!DI708)*100)","v":0},{"$f":"((Monthly!DJ709-Monthly!DJ708)*100)","v":-29.999999999999893},{"$f":"((Monthly!DK709-Monthly!DK708)*100)","v":-20.000000000000018},{"$f":"Monthly!DL709-Monthly!DL708","v":11},null,null,null,{"$f":"Monthly!DP709-Monthly!DP708","v":50},null,null,null,{"$f":"(Monthly!DT709/Monthly!DT708)-1","v":-6.890611541774283E-3},{"$f":"Monthly!DU709-Monthly!DU708","v":0.30000000000000071},{"$f":"(Monthly!DV709-Monthly!DV708)","v":4.2999999999999545},{"$f":"(Monthly!DW709-Monthly!DW708)","v":6.3999999999998636},{"$f":"(Monthly!DX709-Monthly!DX708)","v":3.6999999999999318},{"$f":"(Monthly!DY709-Monthly!DY708)","v":0.59999999999999432},{"$f":"(Monthly!DZ709-Monthly!DZ708)","v":3.1000000000000227},{"$f":"(Monthly!EA709-Monthly!EA708)","v":2.1999999999999886},{"$f":"(Monthly!EB709-Monthly!EB708)","v":0.90000000000000568},{"$f":"(Monthly!EC709-Monthly!EC708)","v":2.6999999999999886},null,null,null,null,null,null,null,null,null,null,null,null,null,{"$f":"(Monthly!EQ709/Monthly!EQ708)-1","v":-5.2192066805845094E-4},null,null,null,null,null,null,null,{"$f":"((Monthly!EY709-Monthly!EY708)*100)","v":12.999999999999989},{"$f":"((Monthly!EZ709-Monthly!EZ708)*100)","v":13},{"$f":"((Monthly!FA709-Monthly!FA708)*100)","v":5.9999999999999609},{"$f":"((Monthly!FB709-Monthly!FB708)*100)","v":4.0000000000000036},"--",{"$f":"((Monthly!FD709-Monthly!FD708)*100)","v":3.0000000000000249},{"$f":"((Monthly!FE709-Monthly!FE708)*100)","v":21.999999999999996},{"$f":"((Monthly!FF709-Monthly!FF708)*100)","v":19.000000000000007},{"$f":"((Monthly!FG709-Monthly!FG708)*100)","v":11.000000000000011},{"$f":"((Monthly!FH709-Monthly!FH708)*100)","v":10.999999999999988},{"$f":"((Monthly!FI709-Monthly!FI708)*100)","v":6.0000000000000053},null,null,null,null,null,null,{"$f":"(Monthly!FP709/Monthly!FP708)-1","v":2.1206804485468078E-2},{"$f":"(Monthly!FQ709/Monthly!FQ708)-1","v":3.5810987859201671E-3},{"$f":"(Monthly!FR709/Monthly!FR708)-1","v":-5.0283732660781677E-2},{"$f":"(Monthly!FS709/Monthly!FS708)-1","v":3.8497652582158981E-3},{"$f":"(Monthly!FT709/Monthly!FT708)-1","v":-4.0408088296682854E-3},{"$f":"(Monthly!FU709/Monthly!FU708)-1","v":5.6053680418461926E-3},{"$f":"(Monthly!FV709/Monthly!FV708)-1","v":0.13011652546926111},{"$f":"(Monthly!FW709/Monthly!FW708)-1","v":4.3991160868529944E-2},{"$f":"(Monthly!FX709/Monthly!FX708)-1","v":0.17334387298878684},null,null,null,null,null,{"$f":"(Monthly!GD709/Monthly!GD708)-1","v":-7.7426594351973077E-2},{"$f":"(Monthly!GE709/Monthly!GE708)-1","v":-5.977765627847631E-2},{"$f":"(Monthly!GF709/Monthly!GF708)-1","v":8.6920529801324253E-3},{"$f":"(Monthly!GG709/Monthly!GG708)-1","v":-5.4517133956387687E-3},{"$f":"(Monthly!GH709/Monthly!GH708)-1","v":-1.7004251062765707E-2},{"$f":"(Monthly!GI709/Monthly!GI708)-1","v":-9.5837366892545961E-2},{"$f":"(Monthly!GJ709/Monthly!GJ708)-1","v":2.7491408934708028E-2},{"$f":"(Monthly!GK709/Monthly!GK708)-1","v":5.0264683640030228E-2},{"$f":"(Monthly!GL709/Monthly!GL708)-1","v":5.0543510194488661E-2}]
["2017-04-01",null,null,null,{"$f":"(Monthly!E710/Monthly!E709)-1","v":9.5632230600606327E-4},{"$f":"(Monthly!F710/Monthly!F709)-1","v":6.6249096603228086E-3},{"$f":"(Monthly!G710/Monthly!G709)-1","v":2.898891369922163E-3},{"$f":"(Monthly!H710/Monthly!H709)-1","v":-5.4866100587847022E-4},null,null,null,null,null,null,null,null,null,null,null,null,null,null,null,{"$f":"(Monthly!X710-Monthly!X709)","v":0.69999999999998863},{"$f":"(Monthly!Y710/Monthly!Y709)-1","v":4.8104678265799006E-3},null,null,null,null,null,null,null,null,null,null,null,null,null,{"$f":"(Monthly!AM710/Monthly!AM709)-1","v":1.0879920551367439E-2},{"$f":"(Monthly!AN710/Monthly!AN709)-1","v":1.3740982480247244E-2},{"$f":"(Monthly!AO710/Monthly!AO709)-1","v":-1.9781286558518962E-3},{"$f":"((Monthly!AP710-Monthly!AP709)*100)","v":0},{"$f":"Monthly!AQ710-Monthly!AQ709","v":-2.4000000000000057},{"$f":"Monthly!AR710-Monthly!AR709","v":-0.5},{"$f":"Monthly!AS710-Monthly!AS709","v":-1.5},{"$f":"Monthly!AT710-Monthly!AT709","v":-6.8999999999999986},{"$f":"Monthly!AU710-Monthly!AU709","v":0.5},{"$f":"Monthly!AV710-Monthly!AV709","v":2},{"$f":"Monthly!AW710-Monthly!AW709","v":2},{"$f":"Monthly!AX710-Monthly!AX709","v":-7},{"$f":"Monthly!AY710-Monthly!AY709","v":-2},{"$f":"Monthly!AZ710-Monthly!AZ709","v":1},{"$f":"Monthly!BA710-Monthly!BA709","v":-0.79999999999999716},{"$f":"Monthly!BB710-Monthly!BB709","v":3.5},{"$f":"(Monthly!BC710/Monthly!BC709)-1","v":2.6889419252187352E-3},null,null,null,null,null,null,null,null,null,{"$f":"(Monthly!BM710/Monthly!BM709)-1","v":3.2897031867413773E-3},{"$f":"(Monthly!BN710/Monthly!BN709)-1","v":4.0674988841373771E-3},null,null,null,null,null,{"$f":"(Monthly!BT710/Monthly!BT709)-1","v":2.3879793272272298E-3},null,null,null,{"$f":"(Monthly!BX710/Monthly!BX709)-1","v":-2.9436501261564385E-2},{"$f":"(Monthly!BY710/Monthly!BY709)-1","v":-2.5396825396825418E-2},{"$f":"(Monthly!BZ710/Monthly!BZ709)-1","v":1.7170849957073298E-3},{"$f":"(Monthly!CA710/Monthly!CA709)-1","v":1.4893235241342007E-2},{"$f":"Monthly!CB710-Monthly!CB709","v":-0.28575392876929406},{"$f":"Monthly!CC710-Monthly!CC709","v":-0.35575392876929257},{"$f":"(Monthly!CD710/Monthly!CD709)-1","v":0},{"$f":"(Monthly!CE710/Monthly!CE709)-1","v":-7.5235109717868287E-2},null,{"$f":"(Monthly!CG710/Monthly!CG709)-1","v":6.6666666666666652E-2},{"$f":"(Monthly!CH710/Monthly!CH709)-1","v":-2.4561403508771895E-2},null,{"$f":"(Monthly!CJ710/Monthly!CJ709)-1","v":-7.5235109717868287E-2},{"$f":"(Monthly!CK710/Monthly!CK709)-1","v":1.4228851449564761E-3},{"$f":"(Monthly!CL710/Monthly!CL709)-1","v":-3.6497662711255097E-2},{"$f":"(Monthly!CM710/Monthly!CM709)-1","v":-1.2135922330097637E-3},{"$f":"(Monthly!CN710/Monthly!CN709)-1","v":7.063532551110363E-5},{"$f":"(Monthly!CO710/Monthly!CO709)-1","v":5.6270456889206955E-3},{"$f":"(Monthly!CP710/Monthly!CP709)-1","v":3.4728790755149674E-3},null,{"$f":"(Monthly!CR710/Monthly!CR709)-1","v":8.068440294766166E-4},"--","--",null,null,null,null,null,{"$f":"(Monthly!CZ710/Monthly!CZ709)-1","v":1.6656273589548132E-3},{"$f":"(Monthly!DA710/Monthly!DA709)-1","v":7.1316729948645019E-4},null,null,null,null,null,"--",{"$f":"((Monthly!DH710-Monthly!DH709)*60)","v":6.0000000000000853},{"$f":"((Monthly!DI710-Monthly!DI709)*100)","v":-10.000000000000142},{"$f":"((Monthly!DJ710-Monthly!DJ709)*100)","v":-30.000000000000071},{"$f":"((Monthly!DK710-Monthly!DK709)*100)","v":-9.9999999999999645},{"$f":"Monthly!DL710-Monthly!DL709","v":9},null,null,null,{"$f":"Monthly!DP710-Monthly!DP709","v":207},null,null,null,{"$f":"(Monthly!DT710/Monthly!DT709)-1","v":-3.4692107545533091E-3},{"$f":"Monthly!DU710-Monthly!DU709","v":-0.10000000000000142},{"$f":"(Monthly!DV710-Monthly!DV709)","v":-1.8999999999998636},{"$f":"(Monthly!DW710-Monthly!DW709)","v":12.600000000000136},{"$f":"(Monthly!DX710-Monthly!DX709)","v":3.8999999999999773},{"$f":"(Monthly!DY710-Monthly!DY709)","v":2.5},{"$f":"(Monthly!DZ710-Monthly!DZ709)","v":1.3999999999999773},{"$f":"(Monthly!EA710-Monthly!EA709)","v":3.7000000000000455},{"$f":"(Monthly!EB710-Monthly!EB709)","v":-2.3000000000000114},{"$f":"(Monthly!EC710-Monthly!EC709)","v":8.7000000000000455},null,null,null,null,null,null,null,null,null,null,null,null,null,{"$f":"(Monthly!EQ710/Monthly!EQ709)-1","v":7.8328981723236879E-3},null,null,null,null,null,null,null,{"$f":"((Monthly!EY710-Monthly!EY709)*100)","v":12.000000000000011},{"$f":"((Monthly!EZ710-Monthly!EZ709)*100)","v":10.999999999999998},{"$f":"((Monthly!FA710-Monthly!FA709)*100)","v":-13.999999999999968},{"$f":"((Monthly!FB710-Monthly!FB709)*100)","v":-10.999999999999943},"--",{"$f":"((Monthly!FD710-Monthly!FD709)*100)","v":-15.000000000000036},{"$f":"((Monthly!FE710-Monthly!FE709)*100)","v":6.0000000000000053},{"$f":"((Monthly!FF710-Monthly!FF709)*100)","v":3.0000000000000027},{"$f":"((Monthly!FG710-Monthly!FG709)*100)","v":-7.0000000000000062},{"$f":"((Monthly!FH710-Monthly!FH709)*100)","v":-18.999999999999972},{"$f":"((Monthly!FI710-Monthly!FI709)*100)","v":-18.000000000000014},null,null,null,null,null,null,{"$f":"(Monthly!FP710/Monthly!FP709)-1","v":3.7349667587958102E-3},{"$f":"(Monthly!FQ710/Monthly!FQ709)-1","v":-9.2834348709025516E-4},{"$f":"(Monthly!FR710/Monthly!FR709)-1","v":-2.6597510373444044E-2},{"$f":"(Monthly!FS710/Monthly!FS709)-1","v":2.1513422504910729E-3},{"$f":"(Monthly!FT710/Monthly!FT709)-1","v":-7.2657627773560218E-3},{"$f":"(Monthly!FU710/Monthly!FU709)-1","v":-5.1719649233465947E-3},{"$f":"(Monthly!FV710/Monthly!FV709)-1","v":-7.4507939526480937E-2},{"$f":"(Monthly!FW710/Monthly!FW709)-1","v":9.5519036857508066E-2},{"$f":"(Monthly!FX710/Monthly!FX709)-1","v":-0.10324976919759177},null,null,null,null,null,{"$f":"(Monthly!GD710/Monthly!GD709)-1","v":3.5069937157916176E-2},{"$f":"(Monthly!GE710/Monthly!GE709)-1","v":1.3956193060670641E-2},{"$f":"(Monthly!GF710/Monthly!GF709)-1","v":3.7340993024210123E-2},{"$f":"(Monthly!GG710/Monthly!GG709)-1","v":1.1354737666405823E-2},{"$f":"(Monthly!GH710/Monthly!GH709)-1","v":2.7473925209870353E-2},{"$f":"(Monthly!GI710/Monthly!GI709)-1","v":0.2044967880085653},{"$f":"(Monthly!GJ710/Monthly!GJ709)-1","v":6.6889632107023367E-2},{"$f":"(Monthly!GK710/Monthly!GK709)-1","v":4.1642665130570133E-3},{"$f":"(Monthly!GL710/Monthly!GL709)-1","v":5.3290974987695083E-2}]
["2017-05-01",null,null,null,{"$f":"(Monthly!E711/Monthly!E710)-1","v":2.7394017281905381E-3},{"$f":"(Monthly!F711/Monthly!F710)-1","v":3.6496350364962904E-3},{"$f":"(Monthly!G711/Monthly!G710)-1","v":4.6482559275029534E-3},{"$f":"(Monthly!H711/Monthly!H710)-1","v":2.0128614001149181E-3},null,null,null,null,null,null,null,null,null,null,null,null,null,null,null,{"$f":"(Monthly!X711-Monthly!X710)","v":-9.9999999999994316E-2},{"$f":"(Monthly!Y711/Monthly!Y710)-1","v":1.5306381763295906E-3},null,null,null,null,null,null,null,null,null,null,null,null,null,{"$f":"(Monthly!AM711/Monthly!AM710)-1","v":-3.1604960836506546E-4},{"$f":"(Monthly!AN711/Monthly!AN710)-1","v":-5.6376210499186064E-3},{"$f":"(Monthly!AO711/Monthly!AO710)-1","v":3.0916951267250248E-3},{"$f":"((Monthly!AP711-Monthly!AP710)*100)","v":0},{"$f":"Monthly!AQ711-Monthly!AQ710","v":0.10000000000000142},{"$f":"Monthly!AR711-Monthly!AR710","v":-2},{"$f":"Monthly!AS711-Monthly!AS710","v":4},{"$f":"Monthly!AT711-Monthly!AT710","v":1.5},{"$f":"Monthly!AU711-Monthly!AU710","v":-2},{"$f":"Monthly!AV711-Monthly!AV710","v":-2},{"$f":"Monthly!AW711-Monthly!AW710","v":0.5},{"$f":"Monthly!AX711-Monthly!AX710","v":2},{"$f":"Monthly!AY711-Monthly!AY710","v":-8},{"$f":"Monthly!AZ711-Monthly!AZ710","v":-1.5},{"$f":"Monthly!BA711-Monthly!BA710","v":-2},{"$f":"Monthly!BB711-Monthly!BB710","v":-1.6999999999999957},{"$f":"(Monthly!BC711/Monthly!BC710)-1","v":7.9975880290070744E-3},null,null,null,null,null,null,null,null,null,{"$f":"(Monthly!BM711/Monthly!BM710)-1","v":4.4884911294351681E-4},{"$f":"(Monthly!BN711/Monthly!BN710)-1","v":-7.6479459290235141E-5},null,null,null,null,null,{"$f":"(Monthly!BT711/Monthly!BT710)-1","v":2.3038843055345204E-3},null,null,null,{"$f":"(Monthly!BX711/Monthly!BX710)-1","v":-2.1663778162911651E-2},{"$f":"(Monthly!BY711/Monthly!BY710)-1","v":-4.8859934853420217E-2},{"$f":"(Monthly!BZ711/Monthly!BZ710)-1","v":8.0665490294928865E-4},{"$f":"(Monthly!CA711/Monthly!CA710)-1","v":-1.5794436586515803E-2},{"$f":"Monthly!CB711-Monthly!CB710","v":-0.4241853943938283},{"$f":"Monthly!CC711-Monthly!CC710","v":-0.49418539439382947},{"$f":"(Monthly!CD711/Monthly!CD710)-1","v":1.8796992481203034E-2},{"$f":"(Monthly!CE711/Monthly!CE710)-1","v":2.7118644067796627E-2},null,{"$f":"(Monthly!CG711/Monthly!CG710)-1","v":2.6041666666666741E-2},{"$f":"(Monthly!CH711/Monthly!CH710)-1","v":1.0791366906474753E-2},null,{"$f":"(Monthly!CJ711/Monthly!CJ710)-1","v":2.7118644067796627E-2},{"$f":"(Monthly!CK711/Monthly!CK710)-1","v":3.2275647503383631E-3},{"$f":"(Monthly!CL711/Monthly!CL710)-1","v":4.9449524164956182E-2},{"$f":"(Monthly!CM711/Monthly!CM710)-1","v":-3.402187120291611E-2},{"$f":"(Monthly!CN711/Monthly!CN710)-1","v":4.9519713711703162E-3},{"$f":"(Monthly!CO711/Monthly!CO710)-1","v":-1.6496867824419281E-3},{"$f":"(Monthly!CP711/Monthly!CP710)-1","v":4.8884342891586385E-3},null,{"$f":"(Monthly!CR711/Monthly!CR710)-1","v":6.9169898001117947E-3},"--","--",null,null,null,null,null,{"$f":"(Monthly!CZ711/Monthly!CZ710)-1","v":-1.2778610571841931E-3},{"$f":"(Monthly!DA711/Monthly!DA710)-1","v":6.2506967337117025E-4},null,null,null,null,null,"--",{"$f":"((Monthly!DH711-Monthly!DH710)*60)","v":0},{"$f":"((Monthly!DI711-Monthly!DI710)*100)","v":-19.999999999999574},{"$f":"((Monthly!DJ711-Monthly!DJ710)*100)","v":-19.999999999999929},{"$f":"((Monthly!DK711-Monthly!DK710)*100)","v":-10.000000000000053},{"$f":"Monthly!DL711-Monthly!DL710","v":0},null,null,null,{"$f":"Monthly!DP711-Monthly!DP710","v":145},null,null,null,{"$f":"(Monthly!DT711/Monthly!DT710)-1","v":-1.2184508268059169E-2},{"$f":"Monthly!DU711-Monthly!DU710","v":0.20000000000000107},{"$f":"(Monthly!DV711-Monthly!DV710)","v":-1.5},{"$f":"(Monthly!DW711-Monthly!DW710)","v":9.2999999999999545},{"$f":"(Monthly!DX711-Monthly!DX710)","v":1},{"$f":"(Monthly!DY711-Monthly!DY710)","v":0.80000000000001137},{"$f":"(Monthly!DZ711-Monthly!DZ710)","v":0.20000000000004547},{"$f":"(Monthly!EA711-Monthly!EA710)","v":-1.1000000000000227},{"$f":"(Monthly!EB711-Monthly!EB710)","v":1.3000000000000114},{"$f":"(Monthly!EC711-Monthly!EC710)","v":8.2999999999999545},null,null,null,null,null,null,null,null,null,null,null,null,null,{"$f":"(Monthly!EQ711/Monthly!EQ710)-1","v":-1.0362694300517505E-3},null,null,null,null,null,null,null,{"$f":"((Monthly!EY711-Monthly!EY710)*100)","v":0},{"$f":"((Monthly!EZ711-Monthly!EZ710)*100)","v":1.0000000000000009},{"$f":"((Monthly!FA711-Monthly!FA710)*100)","v":-2.0000000000000018},{"$f":"((Monthly!FB711-Monthly!FB710)*100)","v":-2.0000000000000462},"--",{"$f":"((Monthly!FD711-Monthly!FD710)*100)","v":-4.0000000000000036},{"$f":"((Monthly!FE711-Monthly!FE710)*100)","v":8.9999999999999964},{"$f":"((Monthly!FF711-Monthly!FF710)*100)","v":8.0000000000000071},{"$f":"((Monthly!FG711-Monthly!FG710)*100)","v":6.0000000000000053},{"$f":"((Monthly!FH711-Monthly!FH710)*100)","v":2.0000000000000018},{"$f":"((Monthly!FI711-Monthly!FI710)*100)","v":0},null,null,null,null,null,null,{"$f":"(Monthly!FP711/Monthly!FP710)-1","v":1.2577212175336916E-2},{"$f":"(Monthly!FQ711/Monthly!FQ710)-1","v":-4.7912190022658674E-4},{"$f":"(Monthly!FR711/Monthly!FR710)-1","v":-3.1970672236592002E-5},{"$f":"(Monthly!FS711/Monthly!FS710)-1","v":3.1360836288967686E-2},{"$f":"(Monthly!FT711/Monthly!FT710)-1","v":-3.872178697629125E-3},{"$f":"(Monthly!FU711/Monthly!FU710)-1","v":-8.4785881076365754E-3},{"$f":"(Monthly!FV711/Monthly!FV710)-1","v":8.2100807528715514E-2},{"$f":"(Monthly!FW711/Monthly!FW710)-1","v":0.11554524857293047},{"$f":"(Monthly!FX711/Monthly!FX710)-1","v":7.9899990857669856E-2},null,null,null,null,null,{"$f":"(Monthly!GD711/Monthly!GD710)-1","v":-5.0528789659224582E-2},{"$f":"(Monthly!GE711/Monthly!GE710)-1","v":-3.7851271267444142E-2},{"$f":"(Monthly!GF711/Monthly!GF710)-1","v":-9.8892405063291111E-3},{"$f":"(Monthly!GG711/Monthly!GG710)-1","v":-8.9043747580332955E-3},{"$f":"(Monthly!GH711/Monthly!GH710)-1","v":7.9475117603367229E-2},{"$f":"(Monthly!GI711/Monthly!GI710)-1","v":0.12711111111111117},{"$f":"(Monthly!GJ711/Monthly!GJ710)-1","v":1.5673981191222763E-2},{"$f":"(Monthly!GK711/Monthly!GK710)-1","v":1.7926501344489587E-4},{"$f":"(Monthly!GL711/Monthly!GL710)-1","v":1.5080713678844448E-2}]
["2017-06-01",null,null,null,{"$f":"(Monthly!E712/Monthly!E711)-1","v":9.9495775645475071E-4},{"$f":"(Monthly!F712/Monthly!F711)-1","v":4.1728763040238537E-3},{"$f":"(Monthly!G712/Monthly!G711)-1","v":-1.7107309486781297E-3},{"$f":"(Monthly!H712/Monthly!H711)-1","v":1.3174714982651103E-3},null,null,null,null,null,null,null,null,null,null,null,null,null,null,null,{"$f":"(Monthly!X712-Monthly!X711)","v":9.9999999999994316E-2},{"$f":"(Monthly!Y712/Monthly!Y711)-1","v":1.9741659208545315E-3},null,null,null,null,null,null,null,null,null,null,null,null,null,{"$f":"(Monthly!AM712/Monthly!AM711)-1","v":2.2216170096063248E-3},{"$f":"(Monthly!AN712/Monthly!AN711)-1","v":1.6492288079379414E-3},{"$f":"(Monthly!AO712/Monthly!AO711)-1","v":4.8624474569711751E-3},{"$f":"((Monthly!AP712-Monthly!AP711)*100)","v":0.99999999999997868},{"$f":"Monthly!AQ712-Monthly!AQ711","v":2.8999999999999986},{"$f":"Monthly!AR712-Monthly!AR711","v":2},{"$f":"Monthly!AS712-Monthly!AS711","v":1},{"$f":"Monthly!AT712-Monthly!AT711","v":3.7000000000000028},{"$f":"Monthly!AU712-Monthly!AU711","v":2},{"$f":"Monthly!AV712-Monthly!AV711","v":0.5},{"$f":"Monthly!AW712-Monthly!AW711","v":-2.5},{"$f":"Monthly!AX712-Monthly!AX711","v":4},{"$f":"Monthly!AY712-Monthly!AY711","v":-5.5},{"$f":"Monthly!AZ712-Monthly!AZ711","v":5.2999999999999972},{"$f":"Monthly!BA712-Monthly!BA711","v":3.8999999999999986},{"$f":"Monthly!BB712-Monthly!BB711","v":9.9999999999994316E-2},{"$f":"(Monthly!BC712/Monthly!BC711)-1","v":-9.2879744344565029E-4},null,null,null,null,null,null,null,null,null,{"$f":"(Monthly!BM712/Monthly!BM711)-1","v":-5.7292105484874067E-4},{"$f":"(Monthly!BN712/Monthly!BN711)-1","v":-8.5089906090385359E-4},null,null,null,null,null,{"$f":"(Monthly!BT712/Monthly!BT711)-1","v":1.4724410677280364E-3},null,null,null,{"$f":"(Monthly!BX712/Monthly!BX711)-1","v":7.7945084145261356E-2},{"$f":"(Monthly!BY712/Monthly!BY711)-1","v":9.1609589041095951E-2},{"$f":"(Monthly!BZ712/Monthly!BZ711)-1","v":8.5638003123267303E-4},{"$f":"(Monthly!CA712/Monthly!CA711)-1","v":-5.5089820359280894E-3},{"$f":"Monthly!CB712-Monthly!CB711","v":-0.12722955257075075},{"$f":"Monthly!CC712-Monthly!CC711","v":-5.7229552570751352E-2},{"$f":"(Monthly!CD712/Monthly!CD711)-1","v":3.6900369003689537E-3},{"$f":"(Monthly!CE712/Monthly!CE711)-1","v":2.1452145214521545E-2},null,{"$f":"(Monthly!CG712/Monthly!CG711)-1","v":-1.5228426395939132E-2},{"$f":"(Monthly!CH712/Monthly!CH711)-1","v":-1.9572953736654797E-2},null,{"$f":"(Monthly!CJ712/Monthly!CJ711)-1","v":2.1452145214521545E-2},{"$f":"(Monthly!CK712/Monthly!CK711)-1","v":2.0756007032640689E-4},{"$f":"(Monthly!CL712/Monthly!CL711)-1","v":-4.2496443812233275E-2},{"$f":"(Monthly!CM712/Monthly!CM711)-1","v":7.7987421383647781E-2},{"$f":"(Monthly!CN712/Monthly!CN711)-1","v":-2.7332005778768487E-4},{"$f":"(Monthly!CO712/Monthly!CO711)-1","v":3.4053100506887812E-3},{"$f":"(Monthly!CP712/Monthly!CP711)-1","v":3.0964797213715034E-3},null,{"$f":"(Monthly!CR712/Monthly!CR711)-1","v":4.5262451123662117E-3},"--","--",null,null,null,null,null,{"$f":"(Monthly!CZ712/Monthly!CZ711)-1","v":-2.2965314173706286E-4},{"$f":"(Monthly!DA712/Monthly!DA711)-1","v":1.1856968356218633E-3},null,null,null,null,null,"--",{"$f":"((Monthly!DH712-Monthly!DH711)*60)","v":0},{"$f":"((Monthly!DI712-Monthly!DI711)*100)","v":9.9999999999994316},{"$f":"((Monthly!DJ712-Monthly!DJ711)*100)","v":19.999999999999929},{"$f":"((Monthly!DK712-Monthly!DK711)*100)","v":10.000000000000053},{"$f":"Monthly!DL712-Monthly!DL711","v":21},null,null,null,{"$f":"Monthly!DP712-Monthly!DP711","v":210},null,null,null,{"$f":"(Monthly!DT712/Monthly!DT711)-1","v":1.0572687224669641E-2},{"$f":"Monthly!DU712-Monthly!DU711","v":-0.80000000000000071},{"$f":"(Monthly!DV712-Monthly!DV711)","v":-0.90000000000009095},{"$f":"(Monthly!DW712-Monthly!DW711)","v":15.599999999999909},{"$f":"(Monthly!DX712-Monthly!DX711)","v":2.1000000000000227},{"$f":"(Monthly!DY712-Monthly!DY711)","v":0.69999999999998863},{"$f":"(Monthly!DZ712-Monthly!DZ711)","v":1.3999999999999773},{"$f":"(Monthly!EA712-Monthly!EA711)","v":0.70000000000004547},{"$f":"(Monthly!EB712-Monthly!EB711)","v":0.69999999999998863},{"$f":"(Monthly!EC712-Monthly!EC711)","v":13.5},null,null,null,null,null,null,null,null,null,null,null,null,null,{"$f":"(Monthly!EQ712/Monthly!EQ711)-1","v":4.6680497925311037E-3},null,null,null,null,null,null,null,{"$f":"((Monthly!EY712-Monthly!EY711)*100)","v":12.999999999999989},{"$f":"((Monthly!EZ712-Monthly!EZ711)*100)","v":13},{"$f":"((Monthly!FA712-Monthly!FA711)*100)","v":-16.999999999999993},{"$f":"((Monthly!FB712-Monthly!FB711)*100)","v":-17.999999999999972},"--",{"$f":"((Monthly!FD712-Monthly!FD711)*100)","v":-10.999999999999988},{"$f":"((Monthly!FE712-Monthly!FE711)*100)","v":8.9999999999999964},{"$f":"((Monthly!FF712-Monthly!FF711)*100)","v":7.9999999999999849},{"$f":"((Monthly!FG712-Monthly!FG711)*100)","v":4.0000000000000036},{"$f":"((Monthly!FH712-Monthly!FH711)*100)","v":-7.0000000000000062},{"$f":"((Monthly!FI712-Monthly!FI711)*100)","v":-10.999999999999988},null,null,null,null,null,null,{"$f":"(Monthly!FP712/Monthly!FP711)-1","v":-2.2857562839923684E-2},{"$f":"(Monthly!FQ712/Monthly!FQ711)-1","v":-1.1286550557064512E-2},{"$f":"(Monthly!FR712/Monthly!FR711)-1","v":-3.3959268061342973E-2},{"$f":"(Monthly!FS712/Monthly!FS711)-1","v":1.6561085972850664E-2},{"$f":"(Monthly!FT712/Monthly!FT711)-1","v":-1.2924335840590384E-2},{"$f":"(Monthly!FU712/Monthly!FU711)-1","v":-1.5422002156548209E-2},{"$f":"(Monthly!FV712/Monthly!FV711)-1","v":-1.7743142191992023E-2},{"$f":"(Monthly!FW712/Monthly!FW711)-1","v":1.1729216106560525E-2},{"$f":"(Monthly!FX712/Monthly!FX711)-1","v":5.197329191174882E-3},null,null,null,null,null,{"$f":"(Monthly!GD712/Monthly!GD711)-1","v":-6.8069306930693019E-2},{"$f":"(Monthly!GE712/Monthly!GE711)-1","v":-7.8680707331611366E-2},{"$f":"(Monthly!GF712/Monthly!GF711)-1","v":-1.7179384738314041E-2},{"$f":"(Monthly!GG712/Monthly!GG711)-1","v":-1.9140625000000022E-2},{"$f":"(Monthly!GH712/Monthly!GH711)-1","v":7.4999999999999956E-2},{"$f":"(Monthly!GI712/Monthly!GI711)-1","v":7.2555205047318605E-2},{"$f":"(Monthly!GJ712/Monthly!GJ711)-1","v":-7.7160493827160503E-2},{"$f":"(Monthly!GK712/Monthly!GK711)-1","v":-4.1271358585255102E-2},{"$f":"(Monthly!GL712/Monthly!GL711)-1","v":1.3852270349445472E-2}]
["2017-07-01",null,null,null,{"$f":"(Monthly!E713/Monthly!E712)-1","v":2.6112739647561334E-3},{"$f":"(Monthly!F713/Monthly!F712)-1","v":1.3653903235381515E-2},{"$f":"(Monthly!G713/Monthly!G712)-1","v":1.9083969465649719E-3},{"$f":"(Monthly!H713/Monthly!H712)-1","v":1.0421687531754209E-3},null,null,null,null,null,null,null,null,null,null,null,null,null,null,null,{"$f":"(Monthly!X713-Monthly!X712)","v":-9.9999999999994316E-2},{"$f":"(Monthly!Y713/Monthly!Y712)-1","v":2.142289043475909E-3},null,null,null,null,null,null,null,null,null,null,null,null,null,{"$f":"(Monthly!AM713/Monthly!AM712)-1","v":-1.3596599994868397E-3},{"$f":"(Monthly!AN713/Monthly!AN712)-1","v":-3.5115394899641883E-3},{"$f":"(Monthly!AO713/Monthly!AO712)-1","v":3.4395584527016076E-3},{"$f":"((Monthly!AP713-Monthly!AP712)*100)","v":0},{"$f":"Monthly!AQ713-Monthly!AQ712","v":-1.5},{"$f":"Monthly!AR713-Monthly!AR712","v":-2},{"$f":"Monthly!AS713-Monthly!AS712","v":-1.5},{"$f":"Monthly!AT713-Monthly!AT712","v":-2},{"$f":"Monthly!AU713-Monthly!AU712","v":-2},{"$f":"Monthly!AV713-Monthly!AV712","v":2},{"$f":"Monthly!AW713-Monthly!AW712","v":1},{"$f":"Monthly!AX713-Monthly!AX712","v":-3.1000000000000014},{"$f":"Monthly!AY713-Monthly!AY712","v":7},{"$f":"Monthly!AZ713-Monthly!AZ712","v":-1.7999999999999972},{"$f":"Monthly!BA713-Monthly!BA712","v":-1.6000000000000014},{"$f":"Monthly!BB713-Monthly!BB712","v":-4.8999999999999986},{"$f":"(Monthly!BC713/Monthly!BC712)-1","v":1.2511029875204915E-2},null,null,null,null,null,null,null,null,null,{"$f":"(Monthly!BM713/Monthly!BM712)-1","v":4.7714589199305824E-3},{"$f":"(Monthly!BN713/Monthly!BN712)-1","v":5.3417857783626399E-3},null,null,null,null,null,{"$f":"(Monthly!BT713/Monthly!BT712)-1","v":3.2494290004094761E-3},null,null,null,{"$f":"(Monthly!BX713/Monthly!BX712)-1","v":-2.6294165981922801E-2},{"$f":"(Monthly!BY713/Monthly!BY712)-1","v":-3.5294117647058809E-2},{"$f":"(Monthly!BZ713/Monthly!BZ712)-1","v":3.4729212804509579E-3},{"$f":"(Monthly!CA713/Monthly!CA712)-1","v":4.9373795761078476E-3},{"$f":"Monthly!CB713-Monthly!CB712","v":-1.618179678702969E-2},{"$f":"Monthly!CC713-Monthly!CC712","v":-8.6181796787029086E-2},{"$f":"(Monthly!CD713/Monthly!CD712)-1","v":7.3529411764705621E-3},{"$f":"(Monthly!CE713/Monthly!CE712)-1","v":-5.9773828756058189E-2},null,{"$f":"(Monthly!CG713/Monthly!CG712)-1","v":-1.0309278350515427E-2},{"$f":"(Monthly!CH713/Monthly!CH712)-1","v":-1.2704174228675091E-2},null,{"$f":"(Monthly!CJ713/Monthly!CJ712)-1","v":-5.9773828756058189E-2},{"$f":"(Monthly!CK713/Monthly!CK712)-1","v":3.1798928235737822E-3},{"$f":"(Monthly!CL713/Monthly!CL712)-1","v":-3.2683379758588704E-2},{"$f":"(Monthly!CM713/Monthly!CM712)-1","v":-1.8669778296382722E-2},{"$f":"(Monthly!CN713/Monthly!CN712)-1","v":6.4052491798172184E-4},{"$f":"(Monthly!CO713/Monthly!CO712)-1","v":4.2727910004338732E-3},{"$f":"(Monthly!CP713/Monthly!CP712)-1","v":4.7431683116787582E-3},null,{"$f":"(Monthly!CR713/Monthly!CR712)-1","v":2.0800265830462905E-3},"--","--",null,null,null,null,null,{"$f":"(Monthly!CZ713/Monthly!CZ712)-1","v":1.0582878707083854E-3},{"$f":"(Monthly!DA713/Monthly!DA712)-1","v":1.1405771240764473E-3},null,null,null,null,null,"--",{"$f":"((Monthly!DH713-Monthly!DH712)*60)","v":0},{"$f":"((Monthly!DI713-Monthly!DI712)*100)","v":10.000000000000142},{"$f":"((Monthly!DJ713-Monthly!DJ712)*100)","v":0},{"$f":"((Monthly!DK713-Monthly!DK712)*100)","v":-10.000000000000053},{"$f":"Monthly!DL713-Monthly!DL712","v":-11},null,null,null,{"$f":"Monthly!DP713-Monthly!DP712","v":138},null,null,null,{"$f":"(Monthly!DT713/Monthly!DT712)-1","v":6.1028770706190727E-3},{"$f":"Monthly!DU713-Monthly!DU712","v":1},{"$f":"(Monthly!DV713-Monthly!DV712)","v":1.7000000000000455},{"$f":"(Monthly!DW713-Monthly!DW712)","v":4.7000000000000455},{"$f":"(Monthly!DX713-Monthly!DX712)","v":1.6000000000000227},{"$f":"(Monthly!DY713-Monthly!DY712)","v":-0.69999999999998863},{"$f":"(Monthly!DZ713-Monthly!DZ712)","v":2.3000000000000682},{"$f":"(Monthly!EA713-Monthly!EA712)","v":2.0999999999999091},{"$f":"(Monthly!EB713-Monthly!EB712)","v":0.20000000000001705},{"$f":"(Monthly!EC713-Monthly!EC712)","v":3.1000000000000227},null,null,null,null,null,null,null,null,null,null,null,null,null,{"$f":"(Monthly!EQ713/Monthly!EQ712)-1","v":-1.5487867836859737E-3},null,null,null,null,null,null,null,{"$f":"((Monthly!EY713-Monthly!EY712)*100)","v":12.000000000000011},{"$f":"((Monthly!EZ713-Monthly!EZ712)*100)","v":10.999999999999988},{"$f":"((Monthly!FA713-Monthly!FA712)*100)","v":2.0000000000000018},{"$f":"((Monthly!FB713-Monthly!FB712)*100)","v":1.9999999999999574},"--",{"$f":"((Monthly!FD713-Monthly!FD712)*100)","v":7.0000000000000284},{"$f":"((Monthly!FE713-Monthly!FE712)*100)","v":9.0000000000000071},{"$f":"((Monthly!FF713-Monthly!FF712)*100)","v":2.0000000000000018},{"$f":"((Monthly!FG713-Monthly!FG712)*100)","v":3.0000000000000027},{"$f":"((Monthly!FH713-Monthly!FH712)*100)","v":10.000000000000009},{"$f":"((Monthly!FI713-Monthly!FI712)*100)","v":12.999999999999989},null,null,null,null,null,null,{"$f":"(Monthly!FP713/Monthly!FP712)-1","v":-4.5505829259119945E-2},{"$f":"(Monthly!FQ713/Monthly!FQ712)-1","v":-5.4652836952370221E-3},{"$f":"(Monthly!FR713/Monthly!FR712)-1","v":-1.7717176063058226E-2},{"$f":"(Monthly!FS713/Monthly!FS712)-1","v":2.6439953707825259E-2},{"$f":"(Monthly!FT713/Monthly!FT712)-1","v":-1.3630913531294864E-2},{"$f":"(Monthly!FU713/Monthly!FU712)-1","v":-2.4231995998565847E-2},{"$f":"(Monthly!FV713/Monthly!FV712)-1","v":-0.11492377465289716},{"$f":"(Monthly!FW713/Monthly!FW712)-1","v":3.0970469522532573E-2},{"$f":"(Monthly!FX713/Monthly!FX712)-1","v":-9.6957047127320672E-2},null,null,null,null,null,{"$f":"(Monthly!GD713/Monthly!GD712)-1","v":3.8822487826472019E-2},{"$f":"(Monthly!GE713/Monthly!GE712)-1","v":4.5503558335130423E-2},{"$f":"(Monthly!GF713/Monthly!GF712)-1","v":-1.8699186991869898E-2},{"$f":"(Monthly!GG713/Monthly!GG712)-1","v":-5.9737156511350253E-3},{"$f":"(Monthly!GH713/Monthly!GH712)-1","v":0.1164924258587583},{"$f":"(Monthly!GI713/Monthly!GI712)-1","v":8.8235294117646967E-2},{"$f":"(Monthly!GJ713/Monthly!GJ712)-1","v":-1.0033444816053616E-2},{"$f":"(Monthly!GK713/Monthly!GK712)-1","v":4.1178523356099506E-2},{"$f":"(Monthly!GL713/Monthly!GL712)-1","v":-1.6139684636341078E-2}]
["2017-08-01",null,null,null,{"$f":"(Monthly!E714/Monthly!E713)-1","v":-7.3093273738511488E-4},{"$f":"(Monthly!F714/Monthly!F713)-1","v":-1.3762811127379204E-2},{"$f":"(Monthly!G714/Monthly!G713)-1","v":2.8377065111759858E-3},{"$f":"(Monthly!H714/Monthly!H713)-1","v":2.8629803625568329E-4},null,null,null,null,null,null,null,null,null,null,null,null,null,null,null,{"$f":"(Monthly!X714-Monthly!X713)","v":-0.70000000000000284},{"$f":"(Monthly!Y714/Monthly!Y713)-1","v":2.8999331120500571E-3},null,null,null,null,null,null,null,null,null,null,null,null,null,{"$f":"(Monthly!AM714/Monthly!AM713)-1","v":-7.2642473440542865E-3},{"$f":"(Monthly!AN714/Monthly!AN713)-1","v":-1.9860486096218155E-3},{"$f":"(Monthly!AO714/Monthly!AO713)-1","v":7.0058682542797346E-3},{"$f":"((Monthly!AP714-Monthly!AP713)*100)","v":0},{"$f":"Monthly!AQ714-Monthly!AQ713","v":2.5},{"$f":"Monthly!AR714-Monthly!AR713","v":2.5},{"$f":"Monthly!AS714-Monthly!AS713","v":-8},{"$f":"Monthly!AT714-Monthly!AT713","v":4.6999999999999957},{"$f":"Monthly!AU714-Monthly!AU713","v":-2},{"$f":"Monthly!AV714-Monthly!AV713","v":-1.5},{"$f":"Monthly!AW714-Monthly!AW713","v":5.5},{"$f":"Monthly!AX714-Monthly!AX713","v":-0.10000000000000142},{"$f":"Monthly!AY714-Monthly!AY713","v":0},{"$f":"Monthly!AZ714-Monthly!AZ713","v":0.39999999999999858},{"$f":"Monthly!BA714-Monthly!BA713","v":1.7000000000000028},{"$f":"Monthly!BB714-Monthly!BB713","v":1.6000000000000014},{"$f":"(Monthly!BC714/Monthly!BC713)-1","v":1.283886831211678E-2},null,null,null,null,null,null,null,null,null,{"$f":"(Monthly!BM714/Monthly!BM713)-1","v":-5.7262476088193459E-4},{"$f":"(Monthly!BN714/Monthly!BN713)-1","v":-8.899295194856327E-4},null,null,null,null,null,{"$f":"(Monthly!BT714/Monthly!BT713)-1","v":2.8443903687782601E-3},null,null,null,{"$f":"(Monthly!BX714/Monthly!BX713)-1","v":-1.6877637130802148E-3},{"$f":"(Monthly!BY714/Monthly!BY713)-1","v":3.4146341463414664E-2},null,{"$f":"(Monthly!CA714/Monthly!CA713)-1","v":-3.9904134212103037E-2},{"$f":"Monthly!CB714-Monthly!CB713","v":0.30071891051334276},{"$f":"Monthly!CC714-Monthly!CC713","v":0.37071891051334305},{"$f":"(Monthly!CD714/Monthly!CD713)-1","v":1.8248175182481674E-2},{"$f":"(Monthly!CE714/Monthly!CE713)-1","v":-3.6082474226804107E-2},null,{"$f":"(Monthly!CG714/Monthly!CG713)-1","v":-2.604166666666663E-2},{"$f":"(Monthly!CH714/Monthly!CH713)-1","v":-1.6544117647058876E-2},null,{"$f":"(Monthly!CJ714/Monthly!CJ713)-1","v":-3.6082474226804107E-2},{"$f":"(Monthly!CK714/Monthly!CK713)-1","v":1.7765555508235664E-3},{"$f":"(Monthly!CL714/Monthly!CL713)-1","v":9.5987713572665001E-4},{"$f":"(Monthly!CM714/Monthly!CM713)-1","v":3.3293697978596937E-2},{"$f":"(Monthly!CN714/Monthly!CN713)-1","v":-1.030428876988676E-3},{"$f":"(Monthly!CO714/Monthly!CO713)-1","v":-8.1989917456093409E-4},{"$f":"(Monthly!CP714/Monthly!CP713)-1","v":3.4811049956462448E-3},null,{"$f":"(Monthly!CR714/Monthly!CR713)-1","v":5.7942182770245321E-3},"--","--",null,null,null,null,null,{"$f":"(Monthly!CZ714/Monthly!CZ713)-1","v":4.0237985969973078E-3},{"$f":"(Monthly!DA714/Monthly!DA713)-1","v":2.4849750311615182E-3},null,null,null,null,null,"--",{"$f":"((Monthly!DH714-Monthly!DH713)*60)","v":-6.0000000000000853},{"$f":"((Monthly!DI714-Monthly!DI713)*100)","v":0},{"$f":"((Monthly!DJ714-Monthly!DJ713)*100)","v":0},{"$f":"((Monthly!DK714-Monthly!DK713)*100)","v":10.000000000000053},{"$f":"Monthly!DL714-Monthly!DL713","v":41},null,null,null,{"$f":"Monthly!DP714-Monthly!DP713","v":169},null,null,null,{"$f":"(Monthly!DT714/Monthly!DT713)-1","v":1.3864818024263537E-2},{"$f":"Monthly!DU714-Monthly!DU713","v":-9.9999999999999645E-2},{"$f":"(Monthly!DV714-Monthly!DV713)","v":-1.7000000000000455},{"$f":"(Monthly!DW714-Monthly!DW713)","v":-0.29999999999995453},{"$f":"(Monthly!DX714-Monthly!DX713)","v":2.8999999999999773},{"$f":"(Monthly!DY714-Monthly!DY713)","v":2},{"$f":"(Monthly!DZ714-Monthly!DZ713)","v":0.89999999999997726},{"$f":"(Monthly!EA714-Monthly!EA713)","v":0.40000000000009095},{"$f":"(Monthly!EB714-Monthly!EB713)","v":0.5},{"$f":"(Monthly!EC714-Monthly!EC713)","v":-3.1999999999999886},null,null,null,null,null,null,null,null,null,null,null,null,null,{"$f":"(Monthly!EQ714/Monthly!EQ713)-1","v":1.5511892450879028E-3},null,null,null,null,null,null,null,{"$f":"((Monthly!EY714-Monthly!EY713)*100)","v":0},{"$f":"((Monthly!EZ714-Monthly!EZ713)*100)","v":1.0000000000000009},null,null,null,{"$f":"((Monthly!FD714-Monthly!FD713)*100)","v":-9.0000000000000302},{"$f":"((Monthly!FE714-Monthly!FE713)*100)","v":-6.0000000000000053},{"$f":"((Monthly!FF714-Monthly!FF713)*100)","v":1.0000000000000009},{"$f":"((Monthly!FG714-Monthly!FG713)*100)","v":-3.0000000000000027},{"$f":"((Monthly!FH714-Monthly!FH713)*100)","v":-9.0000000000000071},{"$f":"((Monthly!FI714-Monthly!FI713)*100)","v":-10.999999999999988},null,null,null,null,null,null,{"$f":"(Monthly!FP714/Monthly!FP713)-1","v":-6.4617809298660456E-3},{"$f":"(Monthly!FQ714/Monthly!FQ713)-1","v":-1.5126894554908898E-2},{"$f":"(Monthly!FR714/Monthly!FR713)-1","v":-6.289272858979178E-4},{"$f":"(Monthly!FS714/Monthly!FS713)-1","v":2.454466608846495E-2},{"$f":"(Monthly!FT714/Monthly!FT713)-1","v":-1.0903850427364636E-2},{"$f":"(Monthly!FU714/Monthly!FU713)-1","v":-1.5108874579254361E-2},{"$f":"(Monthly!FV714/Monthly!FV713)-1","v":9.0639838893572744E-2},{"$f":"(Monthly!FW714/Monthly!FW713)-1","v":5.0864989209136402E-2},{"$f":"(Monthly!FX714/Monthly!FX713)-1","v":9.6743061975897326E-2},null,null,null,null,null,{"$f":"(Monthly!GD714/Monthly!GD713)-1","v":2.4701353673953319E-2},{"$f":"(Monthly!GE714/Monthly!GE713)-1","v":6.6419141914191515E-2},{"$f":"(Monthly!GF714/Monthly!GF713)-1","v":3.3140016570008202E-2},{"$f":"(Monthly!GG714/Monthly!GG713)-1","v":3.9663461538461675E-2},{"$f":"(Monthly!GH714/Monthly!GH713)-1","v":4.6690872030065611E-2},null,{"$f":"(Monthly!GJ714/Monthly!GJ713)-1","v":-1.6891891891891886E-2},{"$f":"(Monthly!GK714/Monthly!GK713)-1","v":6.5836724922196943E-4},{"$f":"(Monthly!GL714/Monthly!GL713)-1","v":9.4923431927838031E-3}]
["2017-09-01",null,null,null,{"$f":"(Monthly!E715/Monthly!E714)-1","v":6.3814224098066585E-3},{"$f":"(Monthly!F715/Monthly!F714)-1","v":3.5035629453681771E-2},{"$f":"(Monthly!G715/Monthly!G714)-1","v":3.2560663617333674E-3},{"$f":"(Monthly!H715/Monthly!H714)-1","v":2.7971118194236588E-3},null,null,null,null,null,null,null,null,null,null,null,null,null,null,null,{"$f":"(Monthly!X715-Monthly!X714)","v":0.20000000000000284},{"$f":"(Monthly!Y715/Monthly!Y714)-1","v":5.4710342702524173E-3},null,null,null,null,null,null,null,null,null,null,null,null,null,{"$f":"(Monthly!AM715/Monthly!AM714)-1","v":2.8407048858398731E-3},{"$f":"(Monthly!AN715/Monthly!AN714)-1","v":1.0282474115534956E-3},null,null,{"$f":"Monthly!AQ715-Monthly!AQ714","v":2},{"$f":"Monthly!AR715-Monthly!AR714","v":0.5},{"$f":"Monthly!AS715-Monthly!AS714","v":1},{"$f":"Monthly!AT715-Monthly!AT714","v":0.39999999999999858},{"$f":"Monthly!AU715-Monthly!AU714","v":1.5},{"$f":"Monthly!AV715-Monthly!AV714","v":-0.5},{"$f":"Monthly!AW715-Monthly!AW714","v":-3},{"$f":"Monthly!AX715-Monthly!AX714","v":4.2999999999999972},{"$f":"Monthly!AY715-Monthly!AY714","v":9.5},{"$f":"Monthly!AZ715-Monthly!AZ714","v":1.2000000000000028},{"$f":"Monthly!BA715-Monthly!BA714","v":7.3000000000000043},{"$f":"Monthly!BB715-Monthly!BB714","v":3.7999999999999972},{"$f":"(Monthly!BC715/Monthly!BC714)-1","v":1.3090976138162125E-2},null,null,null,null,null,null,null,null,null,{"$f":"(Monthly!BM715/Monthly!BM714)-1","v":1.5564169669597172E-2},{"$f":"(Monthly!BN715/Monthly!BN714)-1","v":1.6587914757409283E-2},null,null,null,null,null,{"$f":"(Monthly!BT715/Monthly!BT714)-1","v":6.9315531645546269E-3},null,null,null,{"$f":"(Monthly!BX715/Monthly!BX714)-1","v":-4.7337278106508895E-2},{"$f":"(Monthly!BY715/Monthly!BY714)-1","v":-3.6949685534591215E-2},null,null,{"$f":"Monthly!CB715-Monthly!CB714","v":9.629472699999031E-2},{"$f":"Monthly!CC715-Monthly!CC714","v":-4.370527300000937E-2},{"$f":"(Monthly!CD715/Monthly!CD714)-1","v":0},{"$f":"(Monthly!CE715/Monthly!CE714)-1","v":0.18894830659536543},null,{"$f":"(Monthly!CG715/Monthly!CG714)-1","v":1.6042780748663166E-2},{"$f":"(Monthly!CH715/Monthly!CH714)-1","v":7.4766355140187812E-3},null,{"$f":"(Monthly!CJ715/Monthly!CJ714)-1","v":0.18894830659536543},{"$f":"(Monthly!CK715/Monthly!CK714)-1","v":4.0691142084965382E-3},{"$f":"(Monthly!CL715/Monthly!CL714)-1","v":-0.15247410817031071},{"$f":"(Monthly!CM715/Monthly!CM714)-1","v":-4.602991944764101E-2},{"$f":"(Monthly!CN715/Monthly!CN714)-1","v":-7.0328983355461006E-5},{"$f":"(Monthly!CO715/Monthly!CO714)-1","v":4.1804814761423614E-3},null,null,null,null,null,null,null,null,null,null,{"$f":"(Monthly!CZ715/Monthly!CZ714)-1","v":5.4809615149165047E-3},{"$f":"(Monthly!DA715/Monthly!DA714)-1","v":1.2671259998418005E-3},null,null,null,null,null,"--",{"$f":"((Monthly!DH715-Monthly!DH714)*60)","v":0},{"$f":"((Monthly!DI715-Monthly!DI714)*100)","v":20.000000000000284},{"$f":"((Monthly!DJ715-Monthly!DJ714)*100)","v":-29.999999999999893},{"$f":"((Monthly!DK715-Monthly!DK714)*100)","v":-20.000000000000018},{"$f":"Monthly!DL715-Monthly!DL714","v":-1},null,null,null,{"$f":"Monthly!DP715-Monthly!DP714","v":-33},null,null,null,{"$f":"(Monthly!DT715/Monthly!DT714)-1","v":1.1111111111111072E-2},{"$f":"Monthly!DU715-Monthly!DU714","v":-0.19999999999999929},{"$f":"(Monthly!DV715-Monthly!DV714)","v":-9.9999999999909051E-2},{"$f":"(Monthly!DW715-Monthly!DW714)","v":-4.9000000000000909},null,null,null,null,null,null,null,null,null,null,null,null,null,null,null,null,null,null,null,{"$f":"(Monthly!EQ715/Monthly!EQ714)-1","v":4.1300980898297812E-3},null,null,null,null,null,null,null,{"$f":"((Monthly!EY715-Monthly!EY714)*100)","v":0},{"$f":"((Monthly!EZ715-Monthly!EZ714)*100)","v":-1.0000000000000009},null,null,null,{"$f":"((Monthly!FD715-Monthly!FD714)*100)","v":-6.999999999999984},{"$f":"((Monthly!FE715-Monthly!FE714)*100)","v":2.0000000000000018},{"$f":"((Monthly!FF715-Monthly!FF714)*100)","v":5.0000000000000044},{"$f":"((Monthly!FG715-Monthly!FG714)*100)","v":3.9999999999999813},{"$f":"((Monthly!FH715-Monthly!FH714)*100)","v":2.0000000000000018},{"$f":"((Monthly!FI715-Monthly!FI714)*100)","v":-0.99999999999997868},null,null,null,null,null,null,{"$f":"(Monthly!FP715/Monthly!FP714)-1","v":-2.6094543147208049E-2},{"$f":"(Monthly!FQ715/Monthly!FQ714)-1","v":-1.4699265036748121E-2},{"$f":"(Monthly!FR715/Monthly!FR714)-1","v":1.8879692530722192E-3},{"$f":"(Monthly!FS715/Monthly!FS714)-1","v":8.4652501481419229E-3},{"$f":"(Monthly!FT715/Monthly!FT714)-1","v":-9.662605231521848E-3},{"$f":"(Monthly!FU715/Monthly!FU714)-1","v":-1.2448052794802211E-2},null,null,null,null,null,null,null,null,{"$f":"(Monthly!GD715/Monthly!GD714)-1","v":1.0794981979484364E-2},{"$f":"(Monthly!GE715/Monthly!GE714)-1","v":8.6073500967117855E-2},{"$f":"(Monthly!GF715/Monthly!GF714)-1","v":0.10705693664795501},{"$f":"(Monthly!GG715/Monthly!GG714)-1","v":7.3217726396917149E-2},{"$f":"(Monthly!GH715/Monthly!GH714)-1","v":3.7000973709834462E-2},null,{"$f":"(Monthly!GJ715/Monthly!GJ714)-1","v":3.4364261168384758E-2},{"$f":"(Monthly!GK715/Monthly!GK714)-1","v":-3.6449548417967548E-2},{"$f":"(Monthly!GL715/Monthly!GL714)-1","v":-0.12830796405008049}]
["2017-10-01",null,null,null,null,null,null,null,null,null,null,null,null,null,null,null,null,null,null,null,null,null,null,null,null,null,null,null,null,null,null,null,null,null,null,null,null,null,null,null,null,null,null,null,null,null,null,null,null,null,null,null,null,null,null,null,null,null,null,null,null,null,null,null,null,null,null,null,null,null,null,null,null,null,null,null,null,null,null,null,null,null,null,null,null,null,null,null,null,null,null,null,null,null,null,null,null,null,null,null,null,null,null,null,null,null,null,null,null,null,null,null,null,null,null,null,null,null,null,null,null,null,null,null,null,null,null,null,null,null,null,null,null,null,null,null,null,null,null,null,null,null,null,null,null,null,null,null,null,null,null,null,null,null,null,null,null,null,null,{"$f":"((Monthly!FD716-Monthly!FD715)*100)","v":8.9999999999999858},null,null,null,null,null,null,null,null,null,null,null,{"$f":"(Monthly!FP716/Monthly!FP715)-1","v":1.9301246029806984E-2},{"$f":"(Monthly!FQ716/Monthly!FQ715)-1","v":7.4897244633886917E-3},{"$f":"(Monthly!FR716/Monthly!FR715)-1","v":4.7076638344409671E-2},{"$f":"(Monthly!FS716/Monthly!FS715)-1","v":-1.0828506673382088E-2},{"$f":"(Monthly!FT716/Monthly!FT715)-1","v":1.4580300003385949E-2},{"$f":"(Monthly!FU716/Monthly!FU715)-1","v":1.4345634019843345E-2}]
["2017-11-01"]
["2017-12-01"]

{"sheet":"Mo. YY","index":5,"n_rows":718,"n_cols":194,"rows_kept":281,"cut":true,"hidden":false,"merged":[],"bounds":{"rows_first":125,"rows_last":31,"rows_between":125,"halvings":4}}
[]
[]
[]
[]
[]
[]
["Title:","Nominal Gross Domestic Product","Real Gross Domestic Product","Real Final Sales of Domestic Product","Real Personal Consumption Expenditures","Real PCE: Durable Goods","Real PCE: Nondurable Goods","Real PCE: Services","Real Private Nonres. Fixed Investment","Real Nonres. Invest.: Equip. & Software","Real Private Residential Fixed Investment","Real Change in Private Inventories","Real Imports of Goods & Services","Real Exports of Goods & Services","Net Exports of Goods & Services","Real Gov't Cons. & Invest.","Federal Government Surplus or Deficit [-], NIPA",null,null,null,null,null,"Capacity Utilization: Mfg (NAICS) - Percent of Capacity, SA","Capacity Utilization: Total Industry","Commercial and Industrial Loans, Commercial Banks, SA","Commercial Net Loan Charge-offs - Ratio","Corporate Profits After Tax , SAAR","Corporate Profits Less Financial After Tax - Billions of Dollars, SAAR","Bank Willingness to Make Consumer Loans","Demand for Commercial & Industrial Loans by Small Firms ","Nonperforming Loans - Total","Commercial Net Loan Charge-offs","Total Loan Charge-offs ","E-Commerce Sales ","E-Commerce Sales as % of Total Retail Sales","ECI: \nBenefits: Private Industry Workers  2005=100","ECI: Compensation: Private Industry Workers 2005=100","ECI: Wages & Salaries: Private Industry Workers - Index 2005=100","Industrial Production Index","Industrial Production Index - Mfg.","Inventories: Total Business","Inventory to Sales Ratio: Total Business","ISM INDEX: PMI Manufacturing Composite Index","ISM INDEX Backlogs","ISM INDEX Customer Inventories","ISM INDEX Employment ","ISM INDEX Exports","ISM INDEX Imports","ISM INDEX Inventories","ISM INDEX New Orders","ISM INDEX Prices","ISM INDEX Production","ISM INDEX Supplier deliveries","ISM NonMfg.: Business Activity Index","Mfgs' New Orders: Nondefense Excluding Aircraft","Manufacturing: Output Per Hour of All Persons ","Manufacturing: Unit Labor Cost","Nonfarm: Compensation Per Hour ","Nonfarm: Output Per Hour of All Persons ","Nonfarm: Real Compensation Per Hour ","Nonfarm: Unit Labor Cost","Nonfinancial Corporate Business: Profits After Tax","Nonperforming Total Loans ","PMI Manufacturing Composit Index","Retail and Food Services Sales","Retail Sales: Total (Excluding Food Services)",null,null,null,null,null,"Consumer Loans at All Commercial Banks","Debt Service Payments as a % DPI","Household Financial Obligations as a percent of DPI","Household Credit Market Debt Outstanding - SA","Housing Starts Total: New Privately Owned ","New Private Housing Units Authorized by Building Permits","S&P Case-Shiller 20-City Home Price Index","Autos & Light Trucks","Misery Index","Misery Index - Adjusted ","New Home Inventories","New Homes Sold","New Home IN/RS","Used Home Inventories","Used Homes Sold","Used Home IN/RS","New Homes Sales - Single Family","Personal Income","Personal Saving","Privately Owned Housing Starts: 1-Unit Structures","Real Disposable Personal Income","Savings Deposits - Total","Total Consumer Credit Outstanding","Total Population: Incl'd Armed Forces Overseas - Thousands","Total Revolving Credit Outstanding","University of Michigan: Consumer Sentiment","Conference Board Consumer Confidence",null,null,null,null,null,"CPI Index - All Urban: All Items","CPI Index All Urban: Less Food & Energy",null,null,null,null,null,"Aggregate Weekly Hours Index: Total Private Industries","Average Weekly Hours: Production & Nonsuper.","Civilian Participation Rate","Total Unemployment Rate Plus (U6 Rate)","Civilian Unemployment Rate","Nonfarm Payrolls: Mfg.","Nonfarm Payrolls: Mfg. - Monthly Change","Nonfarm Payrolls: Mfg - Quarterly Change","Nonfarm Payrolls: Mfg - Annual Change","Nonfarm Payrolls: All Employees","Nonfarm Payrolls: All Employees - Monthly Change","Nonfarm Payrolls: All Employees - Quarterly Change","Nonfarm Payrolls: All Employees - Annual Change","Initial Unemployment Claims (Monthly Average)","Median Duration of Unemployment","Trucking Employment - Truck Transportation - SA","Trucking Employment - Truck Transportation - NSA","Trucking Employment - General Freight  - NSA","Trucking Employment - General Freight, local - NSA","Trucking Employment - General Freight, long - NSA","Trucking Employment - General Freight, long TL - NSA","Trucking Employment - General Freight, long LTL - NSA","Trucking Employment - Specialized Freight - NSA",null,null,null,null,null,"Freight Composite Index Class 8","Freight Composite Index Dry Van","Freight Composite Index Reefer Van",null,null,null,null,null,"Producer Price Index: All Commodities","PPI: Finished Goods Less Food & Energy","PPI Finished Goods: Capital Equipment",null,null,null,null,null,"Bank Prime Loan Rate","Effective Federal Funds Rate","Moody's Seasoned Aaa Corporate Bond Yield","Moody's Seasoned Baa Corporate Bond Yield","Yield Spread: Moody's Seasoned Corporate Bond Yield","Mortgage Rate, 30-Year Conventional ","Treasury Bill: Secondary Market Rate, 3-Month ","Treasury Constant Maturity Rate, 1-Year ","Treasury Constant Maturity Rate, 2-Year ","Treasury Constant Maturity Rate, 5-Year ","Treasury Constant Maturity Rate, 10-Year ","Treasury Yield, 10-Year Minus 1-Year",null,null,null,null,null,"Canada / U.S. Foreign Exchange Rate","China/U.S. Foreign Exchange Rate","Mexico/U.S. Foreign Exchange Rate","U.S. / Euro Foreign Exchange Rate","Trade Weighted Exchange Index: Broad","Trade Weighted Exchange Index: Major Currencies","U.S. Imports from Canada, Customs Basis","U.S. Imports from China, Mainland, Customs Basis","U.S. Imports from Mexico, Customs Basis",null,null,null,null,null,"Spot Oil Price: West Texas Intermediate","Europe Brent Spot Price FOB ","EIA  Retail Gasoline Prices : All Grades","EIA Retail On-Highway Diesel Fuel Prices","U.S. Exports of Distillate Fuel Oil ","U.S. Exports of Distillate Fuel Oil, 0 to 15 ppm Sulfur ","Natural Gas Futures Contract 1 ","U.S. Product Supplied of Distillate Fuel Oil","U.S. Refiner Net Production of Distillate Fuel Oil, 0 to 15 ppm Sulfur"]
["ID","GDP001Q","GDP004Q","GDP007Q","GDP010Q","GDP014Q","GDP018Q","GDP022Q","GDP026Q","GDP029Q","GDP032Q","GDP035Q","GDP036Q","GDP039Q","GDP042Q","GDP043Q","GDP046Q",null,null,null,null,null,"BUS001M","BUS002M","BUS003M","BUS004M","BUS005M","BUS006M","BUS007M","BUS008M","BUS009M","BUS010M","BUS011M","BUS012M","BUS013Q","BUS014M","BUS015M","BUS016M","BUS019M","BUS020M","BUS021M","BUS022M","BUS023M","BUS024M","BUS025M","BUS026M","BUS027M","BUS028M","BUS029M","BUS030M","BUS031M","BUS032M","BUS033M","BUS034M","BUS035M","BUS036M","BUS037M","BUS038M","BUS039M","BUS040M","BUS041M","BUS042M","BUS043M","BUS044M","BUS045M","BUS046M",null,null,null,null,null,"CON001M","CON002M","CON003M","CON004M","CON005M","CON006M","CON007M","CON008M","CON009M","CON010M","CON011M","CON012M","CON035M","CON033M","CON034M","COM036M","CON013M","CON014M","CON018M","CON022M","CON023M","CON027M","CON028M","CON029M","CON030M","CON031M","CON032M",null,null,null,null,null,"CPI001M","CPI005M",null,null,null,null,null,"EMP001M","EMP002M","EMP003M","EMP004M","EMP005M","EMP006M","EMP007M","EMP009M","EMP011M","EMP013M","EMP014M","EMP016M","EMP018M","EMP020M","EMP021M","EMP022M","EMP023M","EMP024M","EMP025M","EMP026M","EMP027M","EMP028M","EMP029M",null,null,null,null,null,"FRE001M","FRE004M","FRE007M",null,null,null,null,null,"PPI001M","PPI004M","PPI007M",null,null,null,null,null,"RAT001M","RAT002M","RAT003M","RAT004M",null,"RAT005M","RAT006M","RAT007M","RAT008M","RAT009M","RAT010M","RAT011M",null,null,null,null,null,"TRA001M","TRA002M","TRA003M","TRA004M","TRA005M","TRA006M","TRA007M","TRA008M","TRA009M",null,null,null,null,null,"ENE001M","ENE002M","ENE003M","ENE004M","ENE005M","ENE006M","ENE007M","ENE008W","ENE009W"]
["Frequency:","Quarterly","Quarterly","Quarterly","Monthly","Monthly","Monthly","Monthly","Quarterly","Quarterly","Quarterly","Quarterly","Quarterly","Quarterly","Quarterly","Quarterly","Quarterly",null,null,null,null,null,"Quarterly","Monthly","Monthly","Quarterly, End of Period","Quarterly","Quarterly","Quarterly, End of Period","Quarterly, End of Period","Quarterly, End of Period","Quarterly, End of Period","Quarterly, End of Period","Quarterly","Quarterly","Quarterly","Quarterly","Quarterly","Monthly","Monthly","Monthly, End of Period","Monthly","Monthly","Monthly","Monthly","Monthly","Monthly","Monthly","Monthly","Monthly","Monthly","Monthly","Monthly","Monthly","Monthly","Quarterly","Quarterly","Quarterly","Quarterly","Quarterly","Quarterly","Quarterly","Quarterly","Monthly","Monthly","Monthly",null,null,null,null,null,"Monthly","Quarterly","Quarterly","Quarterly, End of Period","Monthly","Monthly","Monthly","Monthly","Monthly ","Monthly ","Monthly","Monthly","Monthly","Monthly","Monthly ","Monthly","Monthly","Monthly","Monthly","Monthly","Monthly","Monthly","Monthly, End of Period","Monthly","Monthly, End of Period","Monthly","Monthly",null,null,null,null,null,"Monthly","Monthly",null,null,null,null,null,"Monthly","Monthly","Monthly","Monthly","Monthly","Monthly",null,null,null,"Monthly",null,null,null,"Weekly, End of Period","Monthly","Monthly","Monthly","Monthly","Monthly","Monthly","Monthly","Monthly","Monthly",null,null,null,null,null,"Quarterly","Quarterly","Quarterly",null,null,null,null,null,"Monthly","Monthly","Monthly",null,null,null,null,null,"Monthly","Monthly","Monthly","Monthly",null,"Monthly","Monthly","Monthly","Monthly","Monthly","Monthly",null,null,null,null,null,null,"Monthly","Monthly","Monthly","Monthly","Monthly","Monthly","Monthly","Monthly","Monthly",null,null,null,null,null,"Monthly","Monthly","Monthly","Monthly","Monthly","Monthly","Monthly","Weekly","Weekly"]
["Units:","XXXXXXXX","XXXXXXXX","XXXXXXXX","Y/Y % Chg.","Y/Y % Chg.","Y/Y % Chg.","Y/Y % Chg.","XXXXXXXX","XXXXXXXX","XXXXXXXX","XXXXXXXX","XXXXXXXX","XXXXXXXX","XXXXXXXX","XXXXXXXX","XXXXXXXX",null,null,null,null,null,"XXXXXXXX","Y/Y Chg. PP","Y/Y % Chg.","XXXXXXXX","XXXXXXXX","XXXXXXXX","XXXXXXXX","XXXXXXXX","XXXXXXXX","XXXXXXXX","XXXXXXXX","XXXXXXXX","XXXXXXXX","XXXXXXXX","XXXXXXXX","XXXXXXXX","Y/Y % Chg.","Y/Y % Chg.","Y/Y % Chg.","Y/Y Chg. BP","Y/Y Chg. In PP","Y/Y Chg. In PP","Y/Y Chg. In PP","Y/Y Chg. In PP","Y/Y Chg. In PP","Y/Y Chg. In PP","Y/Y Chg. In PP","Y/Y Chg. In PP","Y/Y Chg. In PP","Y/Y Chg. In PP","Y/Y Chg. In PP","Y/Y Chg. In PP","Y/Y % Chg.","XXXXXXXX","XXXXXXXX","XXXXXXXX","XXXXXXXX","XXXXXXXX","XXXXXXXX","XXXXXXXX","XXXXXXXX","XXXXXXXX","Y/Y % Chg.","Y/Y % Chg.",null,null,null,null,null,"Y/Y % Chg","XXXXXXXX","XXXXXXXX","XXXXXXXX","Y/Y % Chg.","Y/Y % Chg","Y/Y % Chg","Y/Y % Chg.","Y/Y % Chg.","Y/Y % Chg.","Y/Y % Chg","Y/Y % Chg","XXXXXXXX","Y/Y % Chg","Y/Y % Chg","XXXXXXXX","Y/Y % Chg","Y/Y % Chg","Y/Y % Chg","Y/Y % Chg","Y/Y % Chg","Y/Y % Chg","Y/Y % Chg","Y/Y % Chg","Y/Y % Chg","XXXXXXXX","XXXXXXXX",null,null,null,null,null,"Y/Y % Chg","Y/Y % Chg",null,null,null,null,null,"XXXXXXXX","Chg. Minutes","Chg. BP","Chg. BP","Chg. BP","mm Chg: Ks of jobs ","XXXXXXXX","XXXXXXXX","XXXXXXXX","Chg: Ks of jobs YY ","XXXXXXXX","XXXXXXXX","XXXXXXXX","Y/Y % Chg","Chg. In % of Wk.","Y/Y % Chg","Y/Y % Chg","Y/Y % Chg","Y/Y % Chg","Y/Y % Chg","Y/Y % Chg","Y/Y % Chg","Y/Y % Chg",null,null,null,null,null,"XXXXXXXX","XXXXXXXX","XXXXXXXX",null,null,null,null,null,"Y/Y % Chg","Y/Y % Chg","Y/Y % Chg",null,null,null,null,null,"Chg BP Y/Y","Chg BP Y/Y","Chg BP Y/Y","Chg BP Y/Y","XXXXXXXX","Chg BP Y/Y","Chg BP Y/Y","Chg BP Y/Y","Chg BP Y/Y","Chg BP Y/Y","Chg BP Y/Y","XXXXXXXX",null,null,null,null,null,"Y/Y % Chg.","Y/Y % Chg.","Y/Y % Chg.","Y/Y % Chg.","Y/Y % Chg.","Y/Y % Chg.","Y/Y % Chg.","Y/Y % Chg.","Y/Y % Chg.",null,null,null,null,null,"Y/Y % Chg.","Y/Y % Chg.","Y/Y % Chg.","Y/Y % Chg.","Y/Y % Chg.","Y/Y % Chg.","Y/Y % Chg.","Y/Y % Chg.","Y/Y % Chg."]
["1959-01-01",null,null,null,"--","--","--","--",null,null,null,null,null,null,null,null,null,null,null,null,null,null,null,"--","--",null,null,null,null,null,null,null,null,null,null,null,null,null,"--","--","--","--","--","--","--","--","--","--","--","--","--","--","--","--","--",null,null,null,null,null,null,null,null,null,"--","--",null,null,null,null,null,"--",null,null,null,"--","--","--","--","--","--","--","--",null,"--","--",null,"--","--","--","--","--","--","--","--","--",null,null,null,null,null,null,null,"--","--",null,null,null,null,null,null,"--","--","--","--","--",null,null,null,"--",null,null,null,"--","--","--","--","--","--","--","--","--","--",null,null,null,null,null,null,null,null,null,null,null,null,null,"--","--","--",null,null,null,null,null,"--","--","--","--","--","--","--","--","--","--","--",null,null,null,null,null,null,"--","--","--","--","--","--","--","--","--",null,null,null,null,null,"--","--","--","--","--","--","--","--","--"]
["1959-02-01",null,null,null,"--","--","--","--",null,null,null,null,null,null,null,null,null,null,null,null,null,null,null,"--","--",null,null,null,null,null,null,null,null,null,null,null,null,null,"--","--","--","--","--","--","--","--","--","--","--","--","--","--","--","--","--",null,null,null,null,null,null,null,null,null,"--","--",null,null,null,null,null,"--",null,null,null,"--","--","--","--","--","--","--","--",null,"--","--",null,"--","--","--","--","--","--","--","--","--",null,null,null,null,null,null,null,"--","--",null,null,null,null,null,null,"--","--","--","--","--",null,null,null,"--",null,null,null,"--","--","--","--","--","--","--","--","--","--",null,null,null,null,null,null,null,null,null,null,null,null,null,"--","--","--",null,null,null,null,null,"--","--","--","--","--","--","--","--","--","--","--",null,null,null,null,null,null,"--","--","--","--","--","--","--","--","--",null,null,null,null,null,"--","--","--","--","--","--","--","--","--"]
["1959-03-01",null,null,null,"--","--","--","--",null,null,null,null,null,null,null,null,null,null,null,null,null,null,null,"--","--",null,null,null,null,null,null,null,null,null,null,null,null,null,"--","--","--","--","--","--","--","--","--","--","--","--","--","--","--","--","--",null,null,null,null,null,null,null,null,null,"--","--",null,null,null,null,null,"--",null,null,null,"--","--","--","--","--","--","--","--",null,"--","--",null,"--","--","--","--","--","--","--","--","--",null,null,null,null,null,null,null,"--","--",null,null,null,null,null,null,"--","--","--","--","--",null,null,null,"--",null,null,null,"--","--","--","--","--","--","--","--","--","--",null,null,null,null,null,null,null,null,null,null,null,null,null,"--","--","--",null,null,null,null,null,"--","--","--","--","--","--","--","--","--","--","--",null,null,null,null,null,null,"--","--","--","--","--","--","--","--","--",null,null,null,null,null,"--","--","--","--","--","--","--","--","--"]
["1959-04-01",null,null,null,"--","--","--","--",null,null,null,null,null,null,null,null,null,null,null,null,null,null,null,"--","--",null,null,null,null,null,null,null,null,null,null,null,null,null,"--","--","--","--","--","--","--","--","--","--","--","--","--","--","--","--","--",null,null,null,null,null,null,null,null,null,"--","--",null,null,null,null,null,"--",null,null,null,"--","--","--","--","--","--","--","--",null,"--","--",null,"--","--","--","--","--","--","--","--","--",null,null,null,null,null,null,null,"--","--",null,null,null,null,null,null,"--","--","--","--","--",null,null,null,"--",null,null,null,"--","--","--","--","--","--","--","--","--","--",null,null,null,null,null,null,null,null,null,null,null,null,null,"--","--","--",null,null,null,null,null,"--","--","--","--","--","--","--","--","--","--","--",null,null,null,null,null,null,"--","--","--","--","--","--","--","--","--",null,null,null,null,null,"--","--","--","--","--","--","--","--","--"]
["1959-05-01",null,null,null,"--","--","--","--",null,null,null,null,null,null,null,null,null,null,null,null,null,null,null,"--","--",null,null,null,null,null,null,null,null,null,null,null,null,null,"--","--","--","--","--","--","--","--","--","--","--","--","--","--","--","--","--",null,null,null,null,null,null,null,null,null,"--","--",null,null,null,null,null,"--",null,null,null,"--","--","--","--","--","--","--","--",null,"--","--",null,"--","--","--","--","--","--","--","--","--",null,null,null,null,null,null,null,"--","--",null,null,null,null,null,null,"--","--","--","--","--",null,null,null,"--",null,null,null,"--","--","--","--","--","--","--","--","--","--",null,null,null,null,null,null,null,null,null,null,null,null,null,"--","--","--",null,null,null,null,null,"--","--","--","--","--","--","--","--","--","--","--",null,null,null,null,null,null,"--","--","--","--","--","--","--","--","--",null,null,null,null,null,"--","--","--","--","--","--","--","--","--"]
["1959-06-01",null,null,null,"--","--","--","--",null,null,null,null,null,null,null,null,null,null,null,null,null,null,null,"--","--",null,null,null,null,null,null,null,null,null,null,null,null,null,"--","--","--","--","--","--","--","--","--","--","--","--","--","--","--","--","--",null,null,null,null,null,null,null,null,null,"--","--",null,null,null,null,null,"--",null,null,null,"--","--","--","--","--","--","--","--",null,"--","--",null,"--","--","--","--","--","--","--","--","--",null,null,null,null,null,null,null,"--","--",null,null,null,null,null,null,"--","--","--","--","--",null,null,null,"--",null,null,null,"--","--","--","--","--","--","--","--","--","--",null,null,null,null,null,null,null,null,null,null,null,null,null,"--","--","--",null,null,null,null,null,"--","--","--","--","--","--","--","--","--","--","--",null,null,null,null,null,null,"--","--","--","--","--","--","--","--","--",null,null,null,null,null,"--","--","--","--","--","--","--","--","--"]
["1959-07-01",null,null,null,"--","--","--","--",null,null,null,null,null,null,null,null,null,null,null,null,null,null,null,"--","--",null,null,null,null,null,null,null,null,null,null,null,null,null,"--","--","--","--","--","--","--","--","--","--","--","--","--","--","--","--","--",null,null,null,null,null,null,null,null,null,"--","--",null,null,null,null,null,"--",null,null,null,"--","--","--","--","--","--","--","--",null,"--","--",null,"--","--","--","--","--","--","--","--","--",null,null,null,null,null,null,null,"--","--",null,null,null,null,null,null,"--","--","--","--","--",null,null,null,"--",null,null,null,"--","--","--","--","--","--","--","--","--","--",null,null,null,null,null,null,null,null,null,null,null,null,null,"--","--","--",null,null,null,null,null,"--","--","--","--","--","--","--","--","--","--","--",null,null,null,null,null,null,"--","--","--","--","--","--","--","--","--",null,null,null,null,null,"--","--","--","--","--","--","--","--","--"]
["1959-08-01",null,null,null,"--","--","--","--",null,null,null,null,null,null,null,null,null,null,null,null,null,null,null,"--","--",null,null,null,null,null,null,null,null,null,null,null,null,null,"--","--","--","--","--","--","--","--","--","--","--","--","--","--","--","--","--",null,null,null,null,null,null,null,null,null,"--","--",null,null,null,null,null,"--",null,null,null,"--","--","--","--","--","--","--","--",null,"--","--",null,"--","--","--","--","--","--","--","--","--",null,null,null,null,null,null,null,"--","--",null,null,null,null,null,null,"--","--","--","--","--",null,null,null,"--",null,null,null,"--","--","--","--","--","--","--","--","--","--",null,null,null,null,null,null,null,null,null,null,null,null,null,"--","--","--",null,null,null,null,null,"--","--","--","--","--","--","--","--","--","--","--",null,null,null,null,null,null,"--","--","--","--","--","--","--","--","--",null,null,null,null,null,"--","--","--","--","--","--","--","--","--"]
["1959-09-01",null,null,null,"--","--","--","--",null,null,null,null,null,null,null,null,null,null,null,null,null,null,null,"--","--",null,null,null,null,null,null,null,null,null,null,null,null,null,"--","--","--","--","--","--","--","--","--","--","--","--","--","--","--","--","--",null,null,null,null,null,null,null,null,null,"--","--",null,null,null,null,null,"--",null,null,null,"--","--","--","--","--","--","--","--",null,"--","--",null,"--","--","--","--","--","--","--","--","--",null,null,null,null,null,null,null,"--","--",null,null,null,null,null,null,"--","--","--","--","--",null,null,null,"--",null,null,null,"--","--","--","--","--","--","--","--","--","--",null,null,null,null,null,null,null,null,null,null,null,null,null,"--","--","--",null,null,null,null,null,"--","--","--","--","--","--","--","--","--","--","--",null,null,null,null,null,null,"--","--","--","--","--","--","--","--","--",null,null,null,null,null,"--","--","--","--","--","--","--","--","--"]
["1959-10-01",null,null,null,"--","--","--","--",null,null,null,null,null,null,null,null,null,null,null,null,null,null,null,"--","--",null,null,null,null,null,null,null,null,null,null,null,null,null,"--","--","--","--","--","--","--","--","--","--","--","--","--","--","--","--","--",null,null,null,null,null,null,null,null,null,"--","--",null,null,null,null,null,"--",null,null,null,"--","--","--","--","--","--","--","--",null,"--","--",null,"--","--","--","--","--","--","--","--","--",null,null,null,null,null,null,null,"--","--",null,null,null,null,null,null,"--","--","--","--","--",null,null,null,"--",null,null,null,"--","--","--","--","--","--","--","--","--","--",null,null,null,null,null,null,null,null,null,null,null,null,null,"--","--","--",null,null,null,null,null,"--","--","--","--","--","--","--","--","--","--","--",null,null,null,null,null,null,"--","--","--","--","--","--","--","--","--",null,null,null,null,null,"--","--","--","--","--","--","--","--","--"]
["1959-11-01",null,null,null,"--","--","--","--",null,null,null,null,null,null,null,null,null,null,null,null,null,null,null,"--","--",null,null,null,null,null,null,null,null,null,null,null,null,null,"--","--","--","--","--","--","--","--","--","--","--","--","--","--","--","--","--",null,null,null,null,null,null,null,null,null,"--","--",null,null,null,null,null,"--",null,null,null,"--","--","--","--","--","--","--","--",null,"--","--",null,"--","--","--","--","--","--","--","--","--",null,null,null,null,null,null,null,"--","--",null,null,null,null,null,null,"--","--","--","--","--",null,null,null,"--",null,null,null,"--","--","--","--","--","--","--","--","--","--",null,null,null,null,null,null,null,null,null,null,null,null,null,"--","--","--",null,null,null,null,null,"--","--","--","--","--","--","--","--","--","--","--",null,null,null,null,null,null,"--","--","--","--","--","--","--","--","--",null,null,null,null,null,"--","--","--","--","--","--","--","--","--"]
["1959-12-01",null,null,null,"--","--","--","--",null,null,null,null,null,null,null,null,null,null,null,null,null,null,null,"--","--",null,null,null,null,null,null,null,null,null,null,null,null,null,"--","--","--","--","--","--","--","--","--","--","--","--","--","--","--","--","--",null,null,null,null,null,null,null,null,null,"--","--",null,null,null,null,null,"--",null,null,null,"--","--","--","--","--","--","--","--",null,"--","--",null,"--","--","--","--","--","--","--","--","--",null,null,null,null,null,null,null,"--","--",null,null,null,null,null,null,"--","--","--","--","--",null,null,null,"--",null,null,null,"--","--","--","--","--","--","--","--","--","--",null,null,null,null,null,null,null,null,null,null,null,null,null,"--","--","--",null,null,null,null,null,"--","--","--","--","--","--","--","--","--","--","--",null,null,null,null,null,null,"--","--","--","--","--","--","--","--","--",null,null,null,null,null,"--","--","--","--","--","--","--","--","--"]
["1960-01-01",null,null,null,{"$f":"(Monthly!E23/Monthly!E11)-1","v":{"$error":"#DIV/0!"}},{"$f":"(Monthly!F23/Monthly!F11)-1","v":{"$error":"#DIV/0!"}},{"$f":"(Monthly!G23/Monthly!G11)-1","v":{"$error":"#DIV/0!"}},{"$f":"(Monthly!H23/Monthly!H11)-1","v":{"$error":"#DIV/0!"}},null,null,null,null,null,null,null,null,null,null,null,null,null,null,null,"--",{"$f":"(Monthly!Y23/Monthly!Y11)-1","v":0.12541106977536698},null,null,null,null,null,null,null,null,null,null,null,null,null,{"$f":"(Monthly!AM23/Monthly!AM11)-1","v":0.10036391158752567},"--","--","--",{"$f":"Monthly!AQ23-Monthly!AQ11","v":-2.9000000000000057},"--","--",{"$f":"Monthly!AT23-Monthly!AT11","v":0},"--","--",{"$f":"Monthly!AW23-Monthly!AW11","v":2.7999999999999972},{"$f":"Monthly!AX23-Monthly!AX11","v":-3.5999999999999943},{"$f":"Monthly!AY23-Monthly!AY11","v":4.6999999999999957},{"$f":"Monthly!AZ23-Monthly!AZ11","v":1.2000000000000028},{"$f":"Monthly!BA23-Monthly!BA11","v":-15.599999999999994},"--","--",null,null,null,null,null,null,null,null,null,"--","--",null,null,null,null,null,{"$f":"(Monthly!BT23/Monthly!BT11)-1","v":0.17110024025240955},null,null,null,{"$f":"(Monthly!BX23/Monthly!BX11)-1","v":-0.11888955944477975},"--","--","--","--","--","--","--",null,"--","--",null,"--",{"$f":"(Monthly!CK23/Monthly!CK11)-1","v":6.1718949247640875E-2},{"$f":"(Monthly!CL23/Monthly!CL11)-1","v":3.2911392405063244E-2},{"$f":"(Monthly!CM23/Monthly!CM11)-1","v":-9.3562874251497008E-2},{"$f":"(Monthly!CN23/Monthly!CN11)-1","v":3.8123024556284912E-2},{"$f":"(Monthly!CO23/Monthly!CO11)-1","v":7.8676470588235237E-2},{"$f":"(Monthly!CP23/Monthly!CP11)-1","v":0.14408143591251843},{"$f":"(Monthly!CQ23/Monthly!CQ11)-1","v":1.6656559760154677E-2},"--",null,null,null,null,null,null,null,{"$f":"(Monthly!CZ23/Monthly!CZ11)-1","v":1.2409513960703222E-2},{"$f":"(Monthly!DA23/Monthly!DA11)-1","v":2.006688963210701E-2},null,null,null,null,null,null,"--",{"$f":"((Monthly!DI23-Monthly!DI11)*100)","v":-19.999999999999574},"--",{"$f":"((Monthly!DK23-Monthly!DK11)*100)","v":-79.999999999999986},{"$f":"Monthly!DL23-Monthly!DL11","v":689},null,null,null,{"$f":"Monthly!DP23-Monthly!DP11","v":1794},null,null,null,"--","--","--","--","--","--","--","--","--","--",null,null,null,null,null,null,null,null,null,null,null,null,null,{"$f":"(Monthly!EQ23/Monthly!EQ11)-1","v":-3.154574132492094E-3},"--",{"$f":"(Monthly!ES23/Monthly!ES11)-1","v":1.2345679012345734E-2},null,null,null,null,null,{"$f":"((Monthly!EY23-Monthly!EY11)*100)","v":100},{"$f":"((Monthly!EZ23-Monthly!EZ11)*100)","v":151.00000000000003},{"$f":"((Monthly!FA23-Monthly!FA11)*100)","v":49.000000000000021},{"$f":"((Monthly!FB23-Monthly!FB11)*100)","v":46.999999999999972},"--","--",{"$f":"((Monthly!FE23-Monthly!FE11)*100)","v":152.99999999999997},{"$f":"((Monthly!FF23-Monthly!FF11)*100)","v":167.00000000000003},"--",{"$f":"((Monthly!FH23-Monthly!FH11)*100)","v":91.000000000000014},{"$f":"((Monthly!FI23-Monthly!FI11)*100)","v":70.000000000000014},null,null,null,null,null,null,"--","--","--","--","--","--","--","--","--",null,null,null,null,null,{"$f":"(Monthly!GD23/Monthly!GD11)-1","v":-9.9999999999998979E-3},"--","--","--","--","--","--","--","--"]
["1960-02-01",null,null,null,{"$f":"(Monthly!E24/Monthly!E12)-1","v":{"$error":"#DIV/0!"}},{"$f":"(Monthly!F24/Monthly!F12)-1","v":{"$error":"#DIV/0!"}},{"$f":"(Monthly!G24/Monthly!G12)-1","v":{"$error":"#DIV/0!"}},{"$f":"(Monthly!H24/Monthly!H12)-1","v":{"$error":"#DIV/0!"}},null,null,null,null,null,null,null,null,null,null,null,null,null,null,null,"--",{"$f":"(Monthly!Y24/Monthly!Y12)-1","v":0.12967311279638594},null,null,null,null,null,null,null,null,null,null,null,null,null,{"$f":"(Monthly!AM24/Monthly!AM12)-1","v":6.9627928857200816E-2},"--","--","--",{"$f":"Monthly!AQ24-Monthly!AQ12","v":-14.600000000000009},"--","--",{"$f":"Monthly!AT24-Monthly!AT12","v":-5.2999999999999972},"--","--",{"$f":"Monthly!AW24-Monthly!AW12","v":1.1000000000000014},{"$f":"Monthly!AX24-Monthly!AX12","v":-18},{"$f":"Monthly!AY24-Monthly!AY12","v":-5.6999999999999957},{"$f":"Monthly!AZ24-Monthly!AZ12","v":-11.699999999999996},{"$f":"Monthly!BA24-Monthly!BA12","v":-35.599999999999994},"--","--",null,null,null,null,null,null,null,null,null,"--","--",null,null,null,null,null,{"$f":"(Monthly!BT24/Monthly!BT12)-1","v":0.16597567782903866},null,null,null,{"$f":"(Monthly!BX24/Monthly!BX12)-1","v":-9.838032393521301E-2},"--","--","--","--","--","--","--",null,"--","--",null,"--",{"$f":"(Monthly!CK24/Monthly!CK12)-1","v":5.8107079421466645E-2},{"$f":"(Monthly!CL24/Monthly!CL12)-1","v":4.5333333333333448E-2},{"$f":"(Monthly!CM24/Monthly!CM12)-1","v":-8.2763857251328732E-2},{"$f":"(Monthly!CN24/Monthly!CN12)-1","v":3.4310637266779853E-2},{"$f":"(Monthly!CO24/Monthly!CO12)-1","v":7.6866764275256294E-2},{"$f":"(Monthly!CP24/Monthly!CP12)-1","v":0.13836372559513843},{"$f":"(Monthly!CQ24/Monthly!CQ12)-1","v":1.6481308543452977E-2},"--",null,null,null,null,null,null,null,{"$f":"(Monthly!CZ24/Monthly!CZ12)-1","v":1.4137931034482687E-2},{"$f":"(Monthly!DA24/Monthly!DA12)-1","v":2.34113712374584E-2},null,null,null,null,null,null,"--",{"$f":"((Monthly!DI24-Monthly!DI12)*100)","v":10.000000000000142},"--",{"$f":"((Monthly!DK24-Monthly!DK12)*100)","v":-110.00000000000006},{"$f":"Monthly!DL24-Monthly!DL12","v":650},null,null,null,{"$f":"Monthly!DP24-Monthly!DP12","v":1826},null,null,null,"--","--","--","--","--","--","--","--","--","--",null,null,null,null,null,null,null,null,null,null,null,null,null,{"$f":"(Monthly!EQ24/Monthly!EQ12)-1","v":-3.154574132492094E-3},"--",{"$f":"(Monthly!ES24/Monthly!ES12)-1","v":1.2307692307692353E-2},null,null,null,null,null,{"$f":"((Monthly!EY24-Monthly!EY12)*100)","v":100},{"$f":"((Monthly!EZ24-Monthly!EZ12)*100)","v":154},{"$f":"((Monthly!FA24-Monthly!FA12)*100)","v":41.999999999999993},{"$f":"((Monthly!FB24-Monthly!FB12)*100)","v":45.000000000000014},"--","--",{"$f":"((Monthly!FE24-Monthly!FE12)*100)","v":125.99999999999997},{"$f":"((Monthly!FF24-Monthly!FF12)*100)","v":112.00000000000001},"--",{"$f":"((Monthly!FH24-Monthly!FH12)*100)","v":73.000000000000043},{"$f":"((Monthly!FI24-Monthly!FI12)*100)","v":53.000000000000028},null,null,null,null,null,null,"--","--","--","--","--","--","--","--","--",null,null,null,null,null,{"$f":"(Monthly!GD24/Monthly!GD12)-1","v":-9.9999999999998979E-3},"--","--","--","--","--","--","--","--"]
["1960-03-01",null,null,null,{"$f":"(Monthly!E25/Monthly!E13)-1","v":{"$error":"#DIV/0!"}},{"$f":"(Monthly!F25/Monthly!F13)-1","v":{"$error":"#DIV/0!"}},{"$f":"(Monthly!G25/Monthly!G13)-1","v":{"$error":"#DIV/0!"}},{"$f":"(Monthly!H25/Monthly!H13)-1","v":{"$error":"#DIV/0!"}},null,null,null,null,null,null,null,null,null,null,null,null,null,null,null,"--",{"$f":"(Monthly!Y25/Monthly!Y13)-1","v":0.13912736547263904},null,null,null,null,null,null,null,null,null,null,null,null,null,{"$f":"(Monthly!AM25/Monthly!AM13)-1","v":4.4970877421385946E-2},"--","--","--",{"$f":"Monthly!AQ25-Monthly!AQ13","v":-19.299999999999997},"--","--",{"$f":"Monthly!AT25-Monthly!AT13","v":-14.299999999999997},"--","--",{"$f":"Monthly!AW25-Monthly!AW13","v":-7.6999999999999957},{"$f":"Monthly!AX25-Monthly!AX13","v":-18},{"$f":"Monthly!AY25-Monthly!AY13","v":-11.600000000000009},{"$f":"Monthly!AZ25-Monthly!AZ13","v":-18.800000000000004},{"$f":"Monthly!BA25-Monthly!BA13","v":-37.5},"--","--",null,null,null,null,null,null,null,null,null,"--","--",null,null,null,null,null,{"$f":"(Monthly!BT25/Monthly!BT13)-1","v":0.16178509123485307},null,null,null,{"$f":"(Monthly!BX25/Monthly!BX13)-1","v":-0.3154320987654321},"--","--","--","--","--","--","--",null,"--","--",null,"--",{"$f":"(Monthly!CK25/Monthly!CK13)-1","v":5.3162005542958024E-2},{"$f":"(Monthly!CL25/Monthly!CL13)-1","v":-4.1095890410958957E-2},{"$f":"(Monthly!CM25/Monthly!CM13)-1","v":-0.27910685805422653},{"$f":"(Monthly!CN25/Monthly!CN13)-1","v":2.9685316370295256E-2},{"$f":"(Monthly!CO25/Monthly!CO13)-1","v":7.5581395348837344E-2},{"$f":"(Monthly!CP25/Monthly!CP13)-1","v":0.13708288923505796},{"$f":"(Monthly!CQ25/Monthly!CQ13)-1","v":1.6296882507560451E-2},"--",null,null,null,null,null,null,null,{"$f":"(Monthly!CZ25/Monthly!CZ13)-1","v":1.5188125647221273E-2},{"$f":"(Monthly!DA25/Monthly!DA13)-1","v":2.0000000000000018E-2},null,null,null,null,null,null,"--",{"$f":"((Monthly!DI25-Monthly!DI13)*100)","v":-79.999999999999716},"--",{"$f":"((Monthly!DK25-Monthly!DK13)*100)","v":-19.999999999999929},{"$f":"Monthly!DL25-Monthly!DL13","v":448},null,null,null,{"$f":"Monthly!DP25-Monthly!DP13","v":1442},null,null,null,"--","--","--","--","--","--","--","--","--","--",null,null,null,null,null,null,null,null,null,null,null,null,null,{"$f":"(Monthly!EQ25/Monthly!EQ13)-1","v":3.154574132492094E-3},"--",{"$f":"(Monthly!ES25/Monthly!ES13)-1","v":9.2024539877300082E-3},null,null,null,null,null,{"$f":"((Monthly!EY25-Monthly!EY13)*100)","v":100},{"$f":"((Monthly!EZ25-Monthly!EZ13)*100)","v":104},{"$f":"((Monthly!FA25-Monthly!FA13)*100)","v":36.000000000000028},{"$f":"((Monthly!FB25-Monthly!FB13)*100)","v":40.000000000000036},"--","--",{"$f":"((Monthly!FE25-Monthly!FE13)*100)","v":51.000000000000021},{"$f":"((Monthly!FF25-Monthly!FF13)*100)","v":40.999999999999972},"--",{"$f":"((Monthly!FH25-Monthly!FH13)*100)","v":31.99999999999994},{"$f":"((Monthly!FI25-Monthly!FI13)*100)","v":25.999999999999979},null,null,null,null,null,null,"--","--","--","--","--","--","--","--","--",null,null,null,null,null,{"$f":"(Monthly!GD25/Monthly!GD13)-1","v":0},"--","--","--","--","--","--","--","--"]
["1960-04-01",null,null,null,{"$f":"(Monthly!E26/Monthly!E14)-1","v":{"$error":"#DIV/0!"}},{"$f":"(Monthly!F26/Monthly!F14)-1","v":{"$error":"#DIV/0!"}},{"$f":"(Monthly!G26/Monthly!G14)-1","v":{"$error":"#DIV/0!"}},{"$f":"(Monthly!H26/Monthly!H14)-1","v":{"$error":"#DIV/0!"}},null,null,null,null,null,null,null,null,null,null,null,null,null,null,null,"--",{"$f":"(Monthly!Y26/Monthly!Y14)-1","v":0.13940846108200367},null,null,null,null,null,null,null,null,null,null,null,null,null,{"$f":"(Monthly!AM26/Monthly!AM14)-1","v":1.5063653935879495E-2},"--","--","--",{"$f":"Monthly!AQ26-Monthly!AQ14","v":-21.600000000000009},"--","--",{"$f":"Monthly!AT26-Monthly!AT14","v":-21.6},"--","--",{"$f":"Monthly!AW26-Monthly!AW14","v":-17.899999999999999},{"$f":"Monthly!AX26-Monthly!AX14","v":-14.900000000000006},{"$f":"Monthly!AY26-Monthly!AY14","v":-3.2000000000000028},{"$f":"Monthly!AZ26-Monthly!AZ14","v":-22.299999999999997},{"$f":"Monthly!BA26-Monthly!BA14","v":-35.9},"--","--",null,null,null,null,null,null,null,null,null,"--","--",null,null,null,null,null,{"$f":"(Monthly!BT26/Monthly!BT14)-1","v":0.15518420795465659},null,null,null,{"$f":"(Monthly!BX26/Monthly!BX14)-1","v":-0.18930817610062889},"--","--","--","--","--","--","--",null,"--","--",null,"--",{"$f":"(Monthly!CK26/Monthly!CK14)-1","v":5.223694076480867E-2},{"$f":"(Monthly!CL26/Monthly!CL14)-1","v":-0.21356783919597988},{"$f":"(Monthly!CM26/Monthly!CM14)-1","v":-0.18174726989079559},{"$f":"(Monthly!CN26/Monthly!CN14)-1","v":2.7350672989414404E-2},{"$f":"(Monthly!CO26/Monthly!CO14)-1","v":7.4421965317919003E-2},{"$f":"(Monthly!CP26/Monthly!CP14)-1","v":0.14362884783823526},{"$f":"(Monthly!CQ26/Monthly!CQ14)-1","v":1.6150519910130612E-2},"--",null,null,null,null,null,null,null,{"$f":"(Monthly!CZ26/Monthly!CZ14)-1","v":1.9323671497584405E-2},{"$f":"(Monthly!DA26/Monthly!DA14)-1","v":2.0000000000000018E-2},null,null,null,null,null,null,"--",{"$f":"((Monthly!DI26-Monthly!DI14)*100)","v":10.000000000000142},"--",{"$f":"((Monthly!DK26-Monthly!DK14)*100)","v":0},{"$f":"Monthly!DL26-Monthly!DL14","v":269},null,null,null,{"$f":"Monthly!DP26-Monthly!DP14","v":1492},null,null,null,"--","--","--","--","--","--","--","--","--","--",null,null,null,null,null,null,null,null,null,null,null,null,null,{"$f":"(Monthly!EQ26/Monthly!EQ14)-1","v":0},"--",{"$f":"(Monthly!ES26/Monthly!ES14)-1","v":3.0581039755350758E-3},null,null,null,null,null,{"$f":"((Monthly!EY26-Monthly!EY14)*100)","v":100},{"$f":"((Monthly!EZ26-Monthly!EZ14)*100)","v":96},{"$f":"((Monthly!FA26-Monthly!FA14)*100)","v":21.999999999999975},{"$f":"((Monthly!FB26-Monthly!FB14)*100)","v":33.999999999999986},"--","--",{"$f":"((Monthly!FE26-Monthly!FE14)*100)","v":27.999999999999979},{"$f":"((Monthly!FF26-Monthly!FF14)*100)","v":31.999999999999986},"--",{"$f":"((Monthly!FH26-Monthly!FH14)*100)","v":16.999999999999993},{"$f":"((Monthly!FI26-Monthly!FI14)*100)","v":16.000000000000014},null,null,null,null,null,null,"--","--","--","--","--","--","--","--","--",null,null,null,null,null,{"$f":"(Monthly!GD26/Monthly!GD14)-1","v":0},"--","--","--","--","--","--","--","--"]
["1960-05-01",null,null,null,{"$f":"(Monthly!E27/Monthly!E15)-1","v":{"$error":"#DIV/0!"}},{"$f":"(Monthly!F27/Monthly!F15)-1","v":{"$error":"#DIV/0!"}},{"$f":"(Monthly!G27/Monthly!G15)-1","v":{"$error":"#DIV/0!"}},{"$f":"(Monthly!H27/Monthly!H15)-1","v":{"$error":"#DIV/0!"}},null,null,null,null,null,null,null,null,null,null,null,null,null,null,null,"--",{"$f":"(Monthly!Y27/Monthly!Y15)-1","v":0.12631932662010015},null,null,null,null,null,null,null,null,null,null,null,null,null,{"$f":"(Monthly!AM27/Monthly!AM15)-1","v":-1.1409153588547438E-3},"--","--","--",{"$f":"Monthly!AQ27-Monthly!AQ15","v":-25.6},"--","--",{"$f":"Monthly!AT27-Monthly!AT15","v":-22.299999999999997},"--","--",{"$f":"Monthly!AW27-Monthly!AW15","v":-21.299999999999997},{"$f":"Monthly!AX27-Monthly!AX15","v":-24.100000000000009},{"$f":"Monthly!AY27-Monthly!AY15","v":-8.0999999999999943},{"$f":"Monthly!AZ27-Monthly!AZ15","v":-28.900000000000006},{"$f":"Monthly!BA27-Monthly!BA15","v":-30.700000000000003},"--","--",null,null,null,null,null,null,null,null,null,"--","--",null,null,null,null,null,{"$f":"(Monthly!BT27/Monthly!BT15)-1","v":0.14981030259498684},null,null,null,{"$f":"(Monthly!BX27/Monthly!BX15)-1","v":-0.15153538050734316},"--","--","--","--","--","--","--",null,"--","--",null,"--",{"$f":"(Monthly!CK27/Monthly!CK15)-1","v":4.9168115222249842E-2},{"$f":"(Monthly!CL27/Monthly!CL15)-1","v":2.3622047244094446E-2},{"$f":"(Monthly!CM27/Monthly!CM15)-1","v":-0.16817807089859849},{"$f":"(Monthly!CN27/Monthly!CN15)-1","v":2.3909316060201968E-2},{"$f":"(Monthly!CO27/Monthly!CO15)-1","v":7.1684587813620082E-2},{"$f":"(Monthly!CP27/Monthly!CP15)-1","v":0.13613372229802856},{"$f":"(Monthly!CQ27/Monthly!CQ15)-1","v":1.6108025822456407E-2},"--",null,null,null,null,null,null,null,{"$f":"(Monthly!CZ27/Monthly!CZ15)-1","v":1.8250688705234275E-2},{"$f":"(Monthly!DA27/Monthly!DA15)-1","v":1.6611295681063121E-2},null,null,null,null,null,null,"--",{"$f":"((Monthly!DI27-Monthly!DI15)*100)","v":29.999999999999716},"--",{"$f":"((Monthly!DK27-Monthly!DK15)*100)","v":0},{"$f":"Monthly!DL27-Monthly!DL15","v":88},null,null,null,{"$f":"Monthly!DP27-Monthly!DP15","v":924},null,null,null,"--","--","--","--","--","--","--","--","--","--",null,null,null,null,null,null,null,null,null,null,null,null,null,{"$f":"(Monthly!EQ27/Monthly!EQ15)-1","v":-3.1446540880503138E-3},"--",{"$f":"(Monthly!ES27/Monthly!ES15)-1","v":0},null,null,null,null,null,{"$f":"((Monthly!EY27-Monthly!EY15)*100)","v":76.999999999999957},{"$f":"((Monthly!EZ27-Monthly!EZ15)*100)","v":95.000000000000014},{"$f":"((Monthly!FA27-Monthly!FA15)*100)","v":8.9999999999999858},{"$f":"((Monthly!FB27-Monthly!FB15)*100)","v":32.000000000000028},"--","--",{"$f":"((Monthly!FE27-Monthly!FE15)*100)","v":45.000000000000014},{"$f":"((Monthly!FF27-Monthly!FF15)*100)","v":25},"--",{"$f":"((Monthly!FH27-Monthly!FH15)*100)","v":14.000000000000057},{"$f":"((Monthly!FI27-Monthly!FI15)*100)","v":4.0000000000000036},null,null,null,null,null,null,"--","--","--","--","--","--","--","--","--",null,null,null,null,null,{"$f":"(Monthly!GD27/Monthly!GD15)-1","v":0},"--","--","--","--","--","--","--","--"]
["1960-06-01",null,null,null,{"$f":"(Monthly!E28/Monthly!E16)-1","v":{"$error":"#DIV/0!"}},{"$f":"(Monthly!F28/Monthly!F16)-1","v":{"$error":"#DIV/0!"}},{"$f":"(Monthly!G28/Monthly!G16)-1","v":{"$error":"#DIV/0!"}},{"$f":"(Monthly!H28/Monthly!H16)-1","v":{"$error":"#DIV/0!"}},null,null,null,null,null,null,null,null,null,null,null,null,null,null,null,"--",{"$f":"(Monthly!Y28/Monthly!Y16)-1","v":0.11351520177488661},null,null,null,null,null,null,null,null,null,null,null,null,null,{"$f":"(Monthly!AM28/Monthly!AM16)-1","v":-1.4823195677661216E-2},"--","--","--",{"$f":"Monthly!AQ28-Monthly!AQ16","v":-20.000000000000007},"--","--",{"$f":"Monthly!AT28-Monthly!AT16","v":-22.5},"--","--",{"$f":"Monthly!AW28-Monthly!AW16","v":-21.699999999999996},{"$f":"Monthly!AX28-Monthly!AX16","v":-15},{"$f":"Monthly!AY28-Monthly!AY16","v":-16.899999999999999},{"$f":"Monthly!AZ28-Monthly!AZ16","v":-17.799999999999997},{"$f":"Monthly!BA28-Monthly!BA16","v":-28.900000000000006},"--","--",null,null,null,null,null,null,null,null,null,"--","--",null,null,null,null,null,{"$f":"(Monthly!BT28/Monthly!BT16)-1","v":0.14284154844695918},null,null,null,{"$f":"(Monthly!BX28/Monthly!BX16)-1","v":-0.17032601463739183},"--","--","--","--","--","--","--",null,"--","--",null,"--",{"$f":"(Monthly!CK28/Monthly!CK16)-1","v":4.3682132280355335E-2},{"$f":"(Monthly!CL28/Monthly!CL16)-1","v":2.8795811518324443E-2},{"$f":"(Monthly!CM28/Monthly!CM16)-1","v":-0.16625103906899419},{"$f":"(Monthly!CN28/Monthly!CN16)-1","v":2.1073615264132206E-2},{"$f":"(Monthly!CO28/Monthly!CO16)-1","v":7.1073205401563699E-2},{"$f":"(Monthly!CP28/Monthly!CP16)-1","v":0.12988191673407457},{"$f":"(Monthly!CQ28/Monthly!CQ16)-1","v":1.6065003294085889E-2},"--",null,null,null,null,null,null,null,{"$f":"(Monthly!CZ28/Monthly!CZ16)-1","v":1.7176228100309165E-2},{"$f":"(Monthly!DA28/Monthly!DA16)-1","v":1.655629139072845E-2},null,null,null,null,null,null,"--",{"$f":"((Monthly!DI28-Monthly!DI16)*100)","v":50},"--",{"$f":"((Monthly!DK28-Monthly!DK16)*100)","v":40.000000000000036},{"$f":"Monthly!DL28-Monthly!DL16","v":-88},null,null,null,{"$f":"Monthly!DP28-Monthly!DP16","v":668},null,null,null,"--","--","--","--","--","--","--","--","--","--",null,null,null,null,null,null,null,null,null,null,null,null,null,{"$f":"(Monthly!EQ28/Monthly!EQ16)-1","v":0},"--",{"$f":"(Monthly!ES28/Monthly!ES16)-1","v":-3.0395136778116338E-3},null,null,null,null,null,{"$f":"((Monthly!EY28-Monthly!EY16)*100)","v":50},{"$f":"((Monthly!EZ28-Monthly!EZ16)*100)","v":-7.0000000000000284},{"$f":"((Monthly!FA28-Monthly!FA16)*100)","v":-0.99999999999997868},{"$f":"((Monthly!FB28-Monthly!FB16)*100)","v":21.999999999999975},"--","--",{"$f":"((Monthly!FE28-Monthly!FE16)*100)","v":-75},{"$f":"((Monthly!FF28-Monthly!FF16)*100)","v":-71.000000000000043},"--",{"$f":"((Monthly!FH28-Monthly!FH16)*100)","v":-37.999999999999986},{"$f":"((Monthly!FI28-Monthly!FI16)*100)","v":-18.99999999999995},null,null,null,null,null,null,"--","--","--","--","--","--","--","--","--",null,null,null,null,null,{"$f":"(Monthly!GD28/Monthly!GD16)-1","v":0},"--","--","--","--","--","--","--","--"]
["1960-07-01",null,null,null,{"$f":"(Monthly!E29/Monthly!E17)-1","v":{"$error":"#DIV/0!"}},{"$f":"(Monthly!F29/Monthly!F17)-1","v":{"$error":"#DIV/0!"}},{"$f":"(Monthly!G29/Monthly!G17)-1","v":{"$error":"#DIV/0!"}},{"$f":"(Monthly!H29/Monthly!H17)-1","v":{"$error":"#DIV/0!"}},null,null,null,null,null,null,null,null,null,null,null,null,null,null,null,"--",{"$f":"(Monthly!Y29/Monthly!Y17)-1","v":9.9066760477372728E-2},null,null,null,null,null,null,null,null,null,null,null,null,null,{"$f":"(Monthly!AM29/Monthly!AM17)-1","v":5.8420586221814563E-3},"--","--","--",{"$f":"Monthly!AQ29-Monthly!AQ17","v":-17.799999999999997},"--","--",{"$f":"Monthly!AT29-Monthly!AT17","v":-16.899999999999999},"--","--",{"$f":"Monthly!AW29-Monthly!AW17","v":-20.100000000000001},{"$f":"Monthly!AX29-Monthly!AX17","v":-15.599999999999994},{"$f":"Monthly!AY29-Monthly!AY17","v":-14},{"$f":"Monthly!AZ29-Monthly!AZ17","v":-16.599999999999994},{"$f":"Monthly!BA29-Monthly!BA17","v":-23.300000000000004},"--","--",null,null,null,null,null,null,null,null,null,"--","--",null,null,null,null,null,{"$f":"(Monthly!BT29/Monthly!BT17)-1","v":0.1317289169520548},null,null,null,{"$f":"(Monthly!BX29/Monthly!BX17)-1","v":-0.22624434389140269},"--","--","--","--","--","--","--",null,"--","--",null,"--",{"$f":"(Monthly!CK29/Monthly!CK17)-1","v":4.5353709637663275E-2},{"$f":"(Monthly!CL29/Monthly!CL17)-1","v":5.1679586563306845E-3},{"$f":"(Monthly!CM29/Monthly!CM17)-1","v":-0.24601910828025475},{"$f":"(Monthly!CN29/Monthly!CN17)-1","v":2.3629534540959396E-2},{"$f":"(Monthly!CO29/Monthly!CO17)-1","v":7.1428571428571397E-2},{"$f":"(Monthly!CP29/Monthly!CP17)-1","v":0.12204313089583207},{"$f":"(Monthly!CQ29/Monthly!CQ17)-1","v":1.5975932069954402E-2},"--",null,null,null,null,null,null,null,{"$f":"(Monthly!CZ29/Monthly!CZ17)-1","v":1.3722126929674117E-2},{"$f":"(Monthly!DA29/Monthly!DA17)-1","v":1.3245033112582849E-2},null,null,null,null,null,null,"--",{"$f":"((Monthly!DI29-Monthly!DI17)*100)","v":10.000000000000142},"--",{"$f":"((Monthly!DK29-Monthly!DK17)*100)","v":40.000000000000036},{"$f":"Monthly!DL29-Monthly!DL17","v":-210},null,null,null,{"$f":"Monthly!DP29-Monthly!DP17","v":501},null,null,null,"--","--","--","--","--","--","--","--","--","--",null,null,null,null,null,null,null,null,null,null,null,null,null,{"$f":"(Monthly!EQ29/Monthly!EQ17)-1","v":0},"--",{"$f":"(Monthly!ES29/Monthly!ES17)-1","v":0},null,null,null,null,null,{"$f":"((Monthly!EY29-Monthly!EY17)*100)","v":50},{"$f":"((Monthly!EZ29-Monthly!EZ17)*100)","v":-24.000000000000021},{"$f":"((Monthly!FA29-Monthly!FA17)*100)","v":-5.9999999999999609},{"$f":"((Monthly!FB29-Monthly!FB17)*100)","v":13.999999999999968},"--","--",{"$f":"((Monthly!FE29-Monthly!FE17)*100)","v":-90.000000000000028},{"$f":"((Monthly!FF29-Monthly!FF17)*100)","v":-118.99999999999994},"--",{"$f":"((Monthly!FH29-Monthly!FH17)*100)","v":-79},{"$f":"((Monthly!FI29-Monthly!FI17)*100)","v":-50.000000000000043},null,null,null,null,null,null,"--","--","--","--","--","--","--","--","--",null,null,null,null,null,{"$f":"(Monthly!GD29/Monthly!GD17)-1","v":0},"--","--","--","--","--","--","--","--"]
["1960-08-01",null,null,null,{"$f":"(Monthly!E30/Monthly!E18)-1","v":{"$error":"#DIV/0!"}},{"$f":"(Monthly!F30/Monthly!F18)-1","v":{"$error":"#DIV/0!"}},{"$f":"(Monthly!G30/Monthly!G18)-1","v":{"$error":"#DIV/0!"}},{"$f":"(Monthly!H30/Monthly!H18)-1","v":{"$error":"#DIV/0!"}},null,null,null,null,null,null,null,null,null,null,null,null,null,null,null,"--",{"$f":"(Monthly!Y30/Monthly!Y18)-1","v":8.4956286591929553E-2},null,null,null,null,null,null,null,null,null,null,null,null,null,{"$f":"(Monthly!AM30/Monthly!AM18)-1","v":3.9902796977838051E-2},"--","--","--",{"$f":"Monthly!AQ30-Monthly!AQ18","v":-7.5},"--","--",{"$f":"Monthly!AT30-Monthly!AT18","v":-10},"--","--",{"$f":"Monthly!AW30-Monthly!AW18","v":-11.799999999999997},{"$f":"Monthly!AX30-Monthly!AX18","v":1.2000000000000028},{"$f":"Monthly!AY30-Monthly!AY18","v":-7},{"$f":"Monthly!AZ30-Monthly!AZ18","v":-7.1000000000000014},{"$f":"Monthly!BA30-Monthly!BA18","v":-19.399999999999999},"--","--",null,null,null,null,null,null,null,null,null,"--","--",null,null,null,null,null,{"$f":"(Monthly!BT30/Monthly!BT18)-1","v":0.12263625885786666},null,null,null,{"$f":"(Monthly!BX30/Monthly!BX18)-1","v":-6.0139860139860168E-2},"--","--","--","--","--","--","--",null,"--","--",null,"--",{"$f":"(Monthly!CK30/Monthly!CK18)-1","v":5.0730017322444976E-2},{"$f":"(Monthly!CL30/Monthly!CL18)-1","v":0.12138728323699399},{"$f":"(Monthly!CM30/Monthly!CM18)-1","v":-8.5498742665549021E-2},{"$f":"(Monthly!CN30/Monthly!CN18)-1","v":2.8358280330926355E-2},{"$f":"(Monthly!CO30/Monthly!CO18)-1","v":7.3787772312016831E-2},{"$f":"(Monthly!CP30/Monthly!CP18)-1","v":0.11140398012764319},{"$f":"(Monthly!CQ30/Monthly!CQ18)-1","v":1.5968467330335079E-2},"--",null,null,null,null,null,null,null,{"$f":"(Monthly!CZ30/Monthly!CZ18)-1","v":1.473612063056895E-2},{"$f":"(Monthly!DA30/Monthly!DA18)-1","v":1.3245033112582849E-2},null,null,null,null,null,null,"--",{"$f":"((Monthly!DI30-Monthly!DI18)*100)","v":29.999999999999716},"--",{"$f":"((Monthly!DK30-Monthly!DK18)*100)","v":39.999999999999943},{"$f":"Monthly!DL30-Monthly!DL18","v":158},null,null,null,{"$f":"Monthly!DP30-Monthly!DP18","v":937},null,null,null,"--","--","--","--","--","--","--","--","--","--",null,null,null,null,null,null,null,null,null,null,null,null,null,{"$f":"(Monthly!EQ30/Monthly!EQ18)-1","v":0},"--",{"$f":"(Monthly!ES30/Monthly!ES18)-1","v":3.0487804878049918E-3},null,null,null,null,null,{"$f":"((Monthly!EY30-Monthly!EY18)*100)","v":34.999999999999964},{"$f":"((Monthly!EZ30-Monthly!EZ18)*100)","v":-52},{"$f":"((Monthly!FA30-Monthly!FA18)*100)","v":-14.999999999999947},{"$f":"((Monthly!FB30-Monthly!FB18)*100)","v":-0.99999999999997868},"--","--",{"$f":"((Monthly!FE30-Monthly!FE18)*100)","v":-108},{"$f":"((Monthly!FF30-Monthly!FF18)*100)","v":-146.99999999999997},"--",{"$f":"((Monthly!FH30-Monthly!FH18)*100)","v":-95.000000000000014},{"$f":"((Monthly!FI30-Monthly!FI18)*100)","v":-62.999999999999986},null,null,null,null,null,null,"--","--","--","--","--","--","--","--","--",null,null,null,null,null,{"$f":"(Monthly!GD30/Monthly!GD18)-1","v":0},"--","--","--","--","--","--","--","--"]
["1960-09-01",null,null,null,{"$f":"(Monthly!E31/Monthly!E19)-1","v":{"$error":"#DIV/0!"}},{"$f":"(Monthly!F31/Monthly!F19)-1","v":{"$error":"#DIV/0!"}},{"$f":"(Monthly!G31/Monthly!G19)-1","v":{"$error":"#DIV/0!"}},{"$f":"(Monthly!H31/Monthly!H19)-1","v":{"$error":"#DIV/0!"}},null,null,null,null,null,null,null,null,null,null,null,null,null,null,null,"--",{"$f":"(Monthly!Y31/Monthly!Y19)-1","v":8.2071588191476863E-2},null,null,null,null,null,null,null,null,null,null,null,null,null,{"$f":"(Monthly!AM31/Monthly!AM19)-1","v":3.0266891833075071E-2},"--","--","--",{"$f":"Monthly!AQ31-Monthly!AQ19","v":-2.8999999999999986},"--","--",{"$f":"Monthly!AT31-Monthly!AT19","v":-7.7999999999999972},"--","--",{"$f":"Monthly!AW31-Monthly!AW19","v":-1.5},{"$f":"Monthly!AX31-Monthly!AX19","v":6.7999999999999972},{"$f":"Monthly!AY31-Monthly!AY19","v":-13.200000000000003},{"$f":"Monthly!AZ31-Monthly!AZ19","v":-0.89999999999999858},{"$f":"Monthly!BA31-Monthly!BA19","v":-20.200000000000003},"--","--",null,null,null,null,null,null,null,null,null,"--","--",null,null,null,null,null,{"$f":"(Monthly!BT31/Monthly!BT19)-1","v":0.11250888874523257},null,null,null,{"$f":"(Monthly!BX31/Monthly!BX19)-1","v":-0.28766233766233762},"--","--","--","--","--","--","--",null,"--","--",null,"--",{"$f":"(Monthly!CK31/Monthly!CK19)-1","v":4.9839624969158614E-2},{"$f":"(Monthly!CL31/Monthly!CL19)-1","v":0.20382165605095537},{"$f":"(Monthly!CM31/Monthly!CM19)-1","v":-0.32156862745098036},{"$f":"(Monthly!CN31/Monthly!CN19)-1","v":3.0030604437643493E-2},{"$f":"(Monthly!CO31/Monthly!CO19)-1","v":7.6762037683182127E-2},{"$f":"(Monthly!CP31/Monthly!CP19)-1","v":0.1058214954977108},{"$f":"(Monthly!CQ31/Monthly!CQ19)-1","v":1.6044759384670648E-2},"--",null,null,null,null,null,null,null,{"$f":"(Monthly!CZ31/Monthly!CZ19)-1","v":1.2307692307692353E-2},{"$f":"(Monthly!DA31/Monthly!DA19)-1","v":9.9009900990099098E-3},null,null,null,null,null,null,"--",{"$f":"((Monthly!DI31-Monthly!DI19)*100)","v":40.000000000000568},"--",{"$f":"((Monthly!DK31-Monthly!DK19)*100)","v":0},{"$f":"Monthly!DL31-Monthly!DL19","v":76},null,null,null,{"$f":"Monthly!DP31-Monthly!DP19","v":799},null,null,null,"--","--","--","--","--","--","--","--","--","--",null,null,null,null,null,null,null,null,null,null,null,null,null,{"$f":"(Monthly!EQ31/Monthly!EQ19)-1","v":-3.154574132492094E-3},"--",{"$f":"(Monthly!ES31/Monthly!ES19)-1","v":-9.1185410334345685E-3},null,null,null,null,null,{"$f":"((Monthly!EY31-Monthly!EY19)*100)","v":-50},{"$f":"((Monthly!EZ31-Monthly!EZ19)*100)","v":-115.99999999999997},{"$f":"((Monthly!FA31-Monthly!FA19)*100)","v":-26.999999999999957},{"$f":"((Monthly!FB31-Monthly!FB19)*100)","v":-16.999999999999993},"--","--",{"$f":"((Monthly!FE31-Monthly!FE19)*100)","v":-156},{"$f":"((Monthly!FF31-Monthly!FF19)*100)","v":-193.00000000000003},"--",{"$f":"((Monthly!FH31-Monthly!FH19)*100)","v":-129.00000000000006},{"$f":"((Monthly!FI31-Monthly!FI19)*100)","v":-87.999999999999986},null,null,null,null,null,null,"--","--","--","--","--","--","--","--","--",null,null,null,null,null,{"$f":"(Monthly!GD31/Monthly!GD19)-1","v":0},"--","--","--","--","--","--","--","--"]
["1960-10-01",null,null,null,{"$f":"(Monthly!E32/Monthly!E20)-1","v":{"$error":"#DIV/0!"}},{"$f":"(Monthly!F32/Monthly!F20)-1","v":{"$error":"#DIV/0!"}},{"$f":"(Monthly!G32/Monthly!G20)-1","v":{"$error":"#DIV/0!"}},{"$f":"(Monthly!H32/Monthly!H20)-1","v":{"$error":"#DIV/0!"}},null,null,null,null,null,null,null,null,null,null,null,null,null,null,null,"--",{"$f":"(Monthly!Y32/Monthly!Y20)-1","v":8.1054273091512252E-2},null,null,null,null,null,null,null,null,null,null,null,null,null,{"$f":"(Monthly!AM32/Monthly!AM20)-1","v":3.6586916395936475E-2},"--","--","--",{"$f":"Monthly!AQ32-Monthly!AQ20","v":-3.7000000000000028},"--","--",{"$f":"Monthly!AT32-Monthly!AT20","v":-3.5999999999999943},"--","--",{"$f":"Monthly!AW32-Monthly!AW20","v":0.60000000000000142},{"$f":"Monthly!AX32-Monthly!AX20","v":0.10000000000000142},{"$f":"Monthly!AY32-Monthly!AY20","v":-18.100000000000001},{"$f":"Monthly!AZ32-Monthly!AZ20","v":0.80000000000000426},{"$f":"Monthly!BA32-Monthly!BA20","v":-22.299999999999997},"--","--",null,null,null,null,null,null,null,null,null,"--","--",null,null,null,null,null,{"$f":"(Monthly!BT32/Monthly!BT20)-1","v":0.10094256021912495},null,null,null,{"$f":"(Monthly!BX32/Monthly!BX20)-1","v":-8.0442804428044301E-2},"--","--","--","--","--","--","--",null,"--","--",null,"--",{"$f":"(Monthly!CK32/Monthly!CK20)-1","v":4.9631449631449609E-2},{"$f":"(Monthly!CL32/Monthly!CL20)-1","v":9.9706744868035102E-2},{"$f":"(Monthly!CM32/Monthly!CM20)-1","v":-0.11601150527325021},{"$f":"(Monthly!CN32/Monthly!CN20)-1","v":3.2427527580113802E-2},{"$f":"(Monthly!CO32/Monthly!CO20)-1","v":8.1363004172461562E-2},{"$f":"(Monthly!CP32/Monthly!CP20)-1","v":9.6806827796784622E-2},{"$f":"(Monthly!CQ32/Monthly!CQ20)-1","v":1.6069899304253399E-2},"--",null,null,null,null,null,null,null,{"$f":"(Monthly!CZ32/Monthly!CZ20)-1","v":1.3628620102214661E-2},{"$f":"(Monthly!DA32/Monthly!DA20)-1","v":1.3157894736842257E-2},null,null,null,null,null,null,"--",{"$f":"((Monthly!DI32-Monthly!DI20)*100)","v":0},"--",{"$f":"((Monthly!DK32-Monthly!DK20)*100)","v":39.999999999999943},{"$f":"Monthly!DL32-Monthly!DL20","v":73},null,null,null,{"$f":"Monthly!DP32-Monthly!DP20","v":785},null,null,null,"--","--","--","--","--","--","--","--","--","--",null,null,null,null,null,null,null,null,null,null,null,null,null,{"$f":"(Monthly!EQ32/Monthly!EQ20)-1","v":3.1645569620253333E-3},"--",{"$f":"(Monthly!ES32/Monthly!ES20)-1","v":0},null,null,null,null,null,{"$f":"((Monthly!EY32-Monthly!EY20)*100)","v":-50},{"$f":"((Monthly!EZ32-Monthly!EZ20)*100)","v":-150.99999999999997},{"$f":"((Monthly!FA32-Monthly!FA20)*100)","v":-27.000000000000046},{"$f":"((Monthly!FB32-Monthly!FB20)*100)","v":-16.999999999999993},"--","--",{"$f":"((Monthly!FE32-Monthly!FE20)*100)","v":-175},{"$f":"((Monthly!FF32-Monthly!FF20)*100)","v":-175.99999999999997},"--",{"$f":"((Monthly!FH32-Monthly!FH20)*100)","v":-96},{"$f":"((Monthly!FI32-Monthly!FI20)*100)","v":-64.000000000000014},null,null,null,null,null,null,"--","--","--","--","--","--","--","--","--",null,null,null,null,null,{"$f":"(Monthly!GD32/Monthly!GD20)-1","v":0},"--","--","--","--","--","--","--","--"]
["1960-11-01",null,null,null,{"$f":"(Monthly!E33/Monthly!E21)-1","v":{"$error":"#DIV/0!"}},{"$f":"(Monthly!F33/Monthly!F21)-1","v":{"$error":"#DIV/0!"}},{"$f":"(Monthly!G33/Monthly!G21)-1","v":{"$error":"#DIV/0!"}},{"$f":"(Monthly!H33/Monthly!H21)-1","v":{"$error":"#DIV/0!"}},null,null,null,null,null,null,null,null,null,null,null,null,null,null,null,"--",{"$f":"(Monthly!Y33/Monthly!Y21)-1","v":7.713358382130231E-2},null,null,null,null,null,null,null,null,null,null,null,null,null,{"$f":"(Monthly!AM33/Monthly!AM21)-1","v":1.5757501808452146E-2},"--","--","--",{"$f":"Monthly!AQ33-Monthly!AQ21","v":-6.3000000000000043},"--","--",{"$f":"Monthly!AT33-Monthly!AT21","v":-5.7999999999999972},"--","--",{"$f":"Monthly!AW33-Monthly!AW21","v":-1.6999999999999957},{"$f":"Monthly!AX33-Monthly!AX21","v":-2.8999999999999986},{"$f":"Monthly!AY33-Monthly!AY21","v":-18.199999999999996},{"$f":"Monthly!AZ33-Monthly!AZ21","v":-6.2999999999999972},{"$f":"Monthly!BA33-Monthly!BA21","v":-17},"--","--",null,null,null,null,null,null,null,null,null,"--","--",null,null,null,null,null,{"$f":"(Monthly!BT33/Monthly!BT21)-1","v":9.9371132803938389E-2},null,null,null,{"$f":"(Monthly!BX33/Monthly!BX21)-1","v":-0.12005649717514122},"--","--","--","--","--","--","--",null,"--","--",null,"--",{"$f":"(Monthly!CK33/Monthly!CK21)-1","v":3.9970753107482215E-2},{"$f":"(Monthly!CL33/Monthly!CL21)-1","v":8.152173913043681E-3},{"$f":"(Monthly!CM33/Monthly!CM21)-1","v":-0.18400687876182287},{"$f":"(Monthly!CN33/Monthly!CN21)-1","v":2.0486555697823539E-2},{"$f":"(Monthly!CO33/Monthly!CO21)-1","v":8.5517241379310382E-2},{"$f":"(Monthly!CP33/Monthly!CP21)-1","v":9.2694927255871029E-2},{"$f":"(Monthly!CQ33/Monthly!CQ21)-1","v":1.6068544217839209E-2},"--",null,null,null,null,null,null,null,{"$f":"(Monthly!CZ33/Monthly!CZ21)-1","v":1.4650766609880739E-2},{"$f":"(Monthly!DA33/Monthly!DA21)-1","v":1.3157894736842257E-2},null,null,null,null,null,null,"--",{"$f":"((Monthly!DI33-Monthly!DI21)*100)","v":69.999999999999574},"--",{"$f":"((Monthly!DK33-Monthly!DK21)*100)","v":29.999999999999982},{"$f":"Monthly!DL33-Monthly!DL21","v":-188},null,null,null,{"$f":"Monthly!DP33-Monthly!DP21","v":327},null,null,null,"--","--","--","--","--","--","--","--","--","--",null,null,null,null,null,null,null,null,null,null,null,null,null,{"$f":"(Monthly!EQ33/Monthly!EQ21)-1","v":6.3492063492063266E-3},"--",{"$f":"(Monthly!ES33/Monthly!ES21)-1","v":3.0581039755350758E-3},null,null,null,null,null,{"$f":"((Monthly!EY33-Monthly!EY21)*100)","v":-50},{"$f":"((Monthly!EZ33-Monthly!EZ21)*100)","v":-156},{"$f":"((Monthly!FA33-Monthly!FA21)*100)","v":-25},{"$f":"((Monthly!FB33-Monthly!FB21)*100)","v":-17.999999999999972},"--","--",{"$f":"((Monthly!FE33-Monthly!FE21)*100)","v":-178.00000000000003},{"$f":"((Monthly!FF33-Monthly!FF21)*100)","v":-172.99999999999994},"--",{"$f":"((Monthly!FH33-Monthly!FH21)*100)","v":-94},{"$f":"((Monthly!FI33-Monthly!FI21)*100)","v":-60.000000000000007},null,null,null,null,null,null,"--","--","--","--","--","--","--","--","--",null,null,null,null,null,{"$f":"(Monthly!GD33/Monthly!GD21)-1","v":0},"--","--","--","--","--","--","--","--"]
["1960-12-01",null,null,null,{"$f":"(Monthly!E34/Monthly!E22)-1","v":{"$error":"#DIV/0!"}},{"$f":"(Monthly!F34/Monthly!F22)-1","v":{"$error":"#DIV/0!"}},{"$f":"(Monthly!G34/Monthly!G22)-1","v":{"$error":"#DIV/0!"}},{"$f":"(Monthly!H34/Monthly!H22)-1","v":{"$error":"#DIV/0!"}},null,null,null,null,null,null,null,null,null,null,null,null,null,null,null,"--",{"$f":"(Monthly!Y34/Monthly!Y22)-1","v":7.1562000549713511E-2},null,null,null,null,null,null,null,null,null,null,null,null,null,{"$f":"(Monthly!AM34/Monthly!AM22)-1","v":-6.1646365486899946E-2},"--","--","--",{"$f":"Monthly!AQ34-Monthly!AQ22","v":-13.900000000000006},"--","--",{"$f":"Monthly!AT34-Monthly!AT22","v":-14.099999999999994},"--","--",{"$f":"Monthly!AW34-Monthly!AW22","v":-9.8000000000000043},{"$f":"Monthly!AX34-Monthly!AX22","v":-15.299999999999997},{"$f":"Monthly!AY34-Monthly!AY22","v":-17},{"$f":"Monthly!AZ34-Monthly!AZ22","v":-14.200000000000003},{"$f":"Monthly!BA34-Monthly!BA22","v":-13.300000000000004},"--","--",null,null,null,null,null,null,null,null,null,"--","--",null,null,null,null,null,{"$f":"(Monthly!BT34/Monthly!BT22)-1","v":9.1811888675591868E-2},null,null,null,{"$f":"(Monthly!BX34/Monthly!BX22)-1","v":-0.33603997501561522},"--","--","--","--","--","--","--",null,"--","--",null,"--",{"$f":"(Monthly!CK34/Monthly!CK22)-1","v":2.3872679045092937E-2},{"$f":"(Monthly!CL34/Monthly!CL22)-1","v":-3.2098765432098664E-2},{"$f":"(Monthly!CM34/Monthly!CM22)-1","v":-0.40354609929078011},{"$f":"(Monthly!CN34/Monthly!CN22)-1","v":6.2508812332566777E-3},{"$f":"(Monthly!CO34/Monthly!CO22)-1","v":8.6006825938566456E-2},{"$f":"(Monthly!CP34/Monthly!CP22)-1","v":7.1675590556804281E-2},{"$f":"(Monthly!CQ34/Monthly!CQ22)-1","v":1.612588123001002E-2},"--",null,null,null,null,null,null,null,{"$f":"(Monthly!CZ34/Monthly!CZ22)-1","v":1.3600816048962905E-2},{"$f":"(Monthly!DA34/Monthly!DA22)-1","v":6.5573770491802463E-3},null,null,null,null,null,null,"--",{"$f":"((Monthly!DI34-Monthly!DI22)*100)","v":20.000000000000284},"--",{"$f":"((Monthly!DK34-Monthly!DK22)*100)","v":129.99999999999997},{"$f":"Monthly!DL34-Monthly!DL22","v":-626},null,null,null,{"$f":"Monthly!DP34-Monthly!DP22","v":-431},null,null,null,"--","--","--","--","--","--","--","--","--","--",null,null,null,null,null,null,null,null,null,null,null,null,null,{"$f":"(Monthly!EQ34/Monthly!EQ22)-1","v":6.3492063492063266E-3},"--",{"$f":"(Monthly!ES34/Monthly!ES22)-1","v":3.0581039755350758E-3},null,null,null,null,null,{"$f":"((Monthly!EY34-Monthly!EY22)*100)","v":-50},{"$f":"((Monthly!EZ34-Monthly!EZ22)*100)","v":-201.00000000000003},{"$f":"((Monthly!FA34-Monthly!FA22)*100)","v":-23.000000000000043},{"$f":"((Monthly!FB34-Monthly!FB22)*100)","v":-18.00000000000006},"--","--",{"$f":"((Monthly!FE34-Monthly!FE22)*100)","v":-224.00000000000003},{"$f":"((Monthly!FF34-Monthly!FF22)*100)","v":-227.99999999999997},"--",{"$f":"((Monthly!FH34-Monthly!FH22)*100)","v":-134},{"$f":"((Monthly!FI34-Monthly!FI22)*100)","v":-85.000000000000057},null,null,null,null,null,null,"--","--","--","--","--","--","--","--","--",null,null,null,null,null,{"$f":"(Monthly!GD34/Monthly!GD22)-1","v":0},"--","--","--","--","--","--","--","--"]
["1961-01-01",null,null,null,{"$f":"(Monthly!E35/Monthly!E23)-1","v":{"$error":"#DIV/0!"}},{"$f":"(Monthly!F35/Monthly!F23)-1","v":{"$error":"#DIV/0!"}},{"$f":"(Monthly!G35/Monthly!G23)-1","v":{"$error":"#DIV/0!"}},{"$f":"(Monthly!H35/Monthly!H23)-1","v":{"$error":"#DIV/0!"}},null,null,null,null,null,null,null,null,null,null,null,null,null,null,null,"--",{"$f":"(Monthly!Y35/Monthly!Y23)-1","v":6.0730624717694859E-2},null,null,null,null,null,null,null,null,null,null,null,null,null,{"$f":"(Monthly!AM35/Monthly!AM23)-1","v":-8.4535373368898048E-2},"--","--","--",{"$f":"Monthly!AQ35-Monthly!AQ23","v":-17.600000000000001},"--","--",{"$f":"Monthly!AT35-Monthly!AT23","v":-21.099999999999994},"--","--",{"$f":"Monthly!AW35-Monthly!AW23","v":-7.7999999999999972},{"$f":"Monthly!AX35-Monthly!AX23","v":-18.200000000000003},{"$f":"Monthly!AY35-Monthly!AY23","v":-14.699999999999996},{"$f":"Monthly!AZ35-Monthly!AZ23","v":-24.600000000000009},{"$f":"Monthly!BA35-Monthly!BA23","v":-7},"--","--",null,null,null,null,null,null,null,null,null,"--","--",null,null,null,null,null,{"$f":"(Monthly!BT35/Monthly!BT23)-1","v":8.3007892958953278E-2},null,null,null,{"$f":"(Monthly!BX35/Monthly!BX23)-1","v":-0.1897260273972603},{"$f":"(Monthly!BY35/Monthly!BY23)-1","v":-0.11263736263736268},"--","--","--","--","--","--",null,"--","--",null,"--",{"$f":"(Monthly!CK35/Monthly!CK23)-1","v":3.0026423252462076E-2},{"$f":"(Monthly!CL35/Monthly!CL23)-1","v":3.6764705882353033E-2},{"$f":"(Monthly!CM35/Monthly!CM23)-1","v":-0.25846407927332782},{"$f":"(Monthly!CN35/Monthly!CN23)-1","v":1.3349571408496796E-2},{"$f":"(Monthly!CO35/Monthly!CO23)-1","v":9.2706203135651144E-2},{"$f":"(Monthly!CP35/Monthly!CP23)-1","v":8.3125058019551723E-2},{"$f":"(Monthly!CQ35/Monthly!CQ23)-1","v":1.6171830577637047E-2},"--",null,null,null,null,null,null,null,{"$f":"(Monthly!CZ35/Monthly!CZ23)-1","v":1.6002723867892366E-2},{"$f":"(Monthly!DA35/Monthly!DA23)-1","v":9.8360655737705915E-3},null,null,null,null,null,null,"--",{"$f":"((Monthly!DI35-Monthly!DI23)*100)","v":50},"--",{"$f":"((Monthly!DK35-Monthly!DK23)*100)","v":139.99999999999994},{"$f":"Monthly!DL35-Monthly!DL23","v":-824},null,null,null,{"$f":"Monthly!DP35-Monthly!DP23","v":-591},null,null,null,"--","--","--","--","--","--","--","--","--","--",null,null,null,null,null,null,null,null,null,null,null,null,null,{"$f":"(Monthly!EQ35/Monthly!EQ23)-1","v":6.3291139240506666E-3},"--",{"$f":"(Monthly!ES35/Monthly!ES23)-1","v":3.0487804878049918E-3},null,null,null,null,null,{"$f":"((Monthly!EY35-Monthly!EY23)*100)","v":-50},{"$f":"((Monthly!EZ35-Monthly!EZ23)*100)","v":-254},{"$f":"((Monthly!FA35-Monthly!FA23)*100)","v":-29.000000000000004},{"$f":"((Monthly!FB35-Monthly!FB23)*100)","v":-24.000000000000021},"--","--",{"$f":"((Monthly!FE35-Monthly!FE23)*100)","v":-210.99999999999994},{"$f":"((Monthly!FF35-Monthly!FF23)*100)","v":-222.00000000000003},"--",{"$f":"((Monthly!FH35-Monthly!FH23)*100)","v":-125},{"$f":"((Monthly!FI35-Monthly!FI23)*100)","v":-87.999999999999986},null,null,null,null,null,null,"--","--","--","--","--","--","--","--","--",null,null,null,null,null,{"$f":"(Monthly!GD35/Monthly!GD23)-1","v":0},"--","--","--","--","--","--","--","--"]
["1961-02-01",null,null,null,{"$f":"(Monthly!E36/Monthly!E24)-1","v":{"$error":"#DIV/0!"}},{"$f":"(Monthly!F36/Monthly!F24)-1","v":{"$error":"#DIV/0!"}},{"$f":"(Monthly!G36/Monthly!G24)-1","v":{"$error":"#DIV/0!"}},{"$f":"(Monthly!H36/Monthly!H24)-1","v":{"$error":"#DIV/0!"}},null,null,null,null,null,null,null,null,null,null,null,null,null,null,null,"--",{"$f":"(Monthly!Y36/Monthly!Y24)-1","v":5.4366731008967717E-2},null,null,null,null,null,null,null,null,null,null,null,null,null,{"$f":"(Monthly!AM36/Monthly!AM24)-1","v":-7.7442340902855067E-2},"--","--","--",{"$f":"Monthly!AQ36-Monthly!AQ24","v":-8.6999999999999957},"--","--",{"$f":"Monthly!AT36-Monthly!AT24","v":-23},"--","--",{"$f":"Monthly!AW36-Monthly!AW24","v":-20},{"$f":"Monthly!AX36-Monthly!AX24","v":-3.7999999999999972},{"$f":"Monthly!AY36-Monthly!AY24","v":-10.600000000000001},{"$f":"Monthly!AZ36-Monthly!AZ24","v":-9.3999999999999986},{"$f":"Monthly!BA36-Monthly!BA24","v":9.4000000000000021},"--","--",null,null,null,null,null,null,null,null,null,"--","--",null,null,null,null,null,{"$f":"(Monthly!BT36/Monthly!BT24)-1","v":0.10118170807555082},null,null,null,{"$f":"(Monthly!BX36/Monthly!BX24)-1","v":-0.18429807052561542},{"$f":"(Monthly!BY36/Monthly!BY24)-1","v":-0.11672794117647056},"--","--",{"$f":"Monthly!CB36-Monthly!CB24","v":2.1482946218152383},{"$f":"Monthly!CC36-Monthly!CC24","v":3.6182946218152363},"--","--",null,"--","--",null,"--",{"$f":"(Monthly!CK36/Monthly!CK24)-1","v":3.3333333333333215E-2},{"$f":"(Monthly!CL36/Monthly!CL24)-1","v":9.183673469387732E-2},{"$f":"(Monthly!CM36/Monthly!CM24)-1","v":-0.21523178807947019},{"$f":"(Monthly!CN36/Monthly!CN24)-1","v":1.7944993674740894E-2},{"$f":"(Monthly!CO36/Monthly!CO24)-1","v":0.10061182868796736},{"$f":"(Monthly!CP36/Monthly!CP24)-1","v":6.9999609684092468E-2},{"$f":"(Monthly!CQ36/Monthly!CQ24)-1","v":1.6275327538878726E-2},"--",null,null,null,null,null,null,null,{"$f":"(Monthly!CZ36/Monthly!CZ24)-1","v":1.4620877252635056E-2},{"$f":"(Monthly!DA36/Monthly!DA24)-1","v":6.5359477124182774E-3},null,null,null,null,null,null,"--",{"$f":"((Monthly!DI36-Monthly!DI24)*100)","v":50},"--",{"$f":"((Monthly!DK36-Monthly!DK24)*100)","v":210.00000000000006},{"$f":"Monthly!DL36-Monthly!DL24","v":-964},null,null,null,{"$f":"Monthly!DP36-Monthly!DP24","v":-957},null,null,null,"--","--","--","--","--","--","--","--","--","--",null,null,null,null,null,null,null,null,null,null,null,null,null,{"$f":"(Monthly!EQ36/Monthly!EQ24)-1","v":6.3291139240506666E-3},"--",{"$f":"(Monthly!ES36/Monthly!ES24)-1","v":0},null,null,null,null,null,{"$f":"((Monthly!EY36-Monthly!EY24)*100)","v":-50},{"$f":"((Monthly!EZ36-Monthly!EZ24)*100)","v":-143.00000000000003},{"$f":"((Monthly!FA36-Monthly!FA24)*100)","v":-29.000000000000004},{"$f":"((Monthly!FB36-Monthly!FB24)*100)","v":-26.999999999999957},"--","--",{"$f":"((Monthly!FE36-Monthly!FE24)*100)","v":-154},{"$f":"((Monthly!FF36-Monthly!FF24)*100)","v":-173},"--",{"$f":"((Monthly!FH36-Monthly!FH24)*100)","v":-103.00000000000003},{"$f":"((Monthly!FI36-Monthly!FI24)*100)","v":-71.000000000000043},null,null,null,null,null,null,"--","--","--","--","--","--","--","--","--",null,null,null,null,null,{"$f":"(Monthly!GD36/Monthly!GD24)-1","v":0},"--","--","--","--","--","--","--","--"]
["1961-03-01",null,null,null,{"$f":"(Monthly!E37/Monthly!E25)-1","v":{"$error":"#DIV/0!"}},{"$f":"(Monthly!F37/Monthly!F25)-1","v":{"$error":"#DIV/0!"}},{"$f":"(Monthly!G37/Monthly!G25)-1","v":{"$error":"#DIV/0!"}},{"$f":"(Monthly!H37/Monthly!H25)-1","v":{"$error":"#DIV/0!"}},null,null,null,null,null,null,null,null,null,null,null,null,null,null,null,"--",{"$f":"(Monthly!Y37/Monthly!Y25)-1","v":5.0822130041481284E-2},null,null,null,null,null,null,null,null,null,null,null,null,null,{"$f":"(Monthly!AM37/Monthly!AM25)-1","v":-6.3421426564771122E-2},"--","--","--",{"$f":"Monthly!AQ37-Monthly!AQ25","v":1.3000000000000043},"--","--",{"$f":"Monthly!AT37-Monthly!AT25","v":-5.7999999999999972},"--","--",{"$f":"Monthly!AW37-Monthly!AW25","v":-11.800000000000004},{"$f":"Monthly!AX37-Monthly!AX25","v":3},{"$f":"Monthly!AY37-Monthly!AY25","v":-7.0999999999999943},{"$f":"Monthly!AZ37-Monthly!AZ25","v":3},{"$f":"Monthly!BA37-Monthly!BA25","v":13.3},"--","--",null,null,null,null,null,null,null,null,null,"--","--",null,null,null,null,null,{"$f":"(Monthly!BT37/Monthly!BT25)-1","v":0.11091179896348669},null,null,null,{"$f":"(Monthly!BX37/Monthly!BX25)-1","v":0.18304779080252476},{"$f":"(Monthly!BY37/Monthly!BY25)-1","v":4.7120418848167533E-2},"--","--",{"$f":"Monthly!CB37-Monthly!CB25","v":1.4432751605413792},{"$f":"Monthly!CC37-Monthly!CC25","v":2.4932751605413781},"--","--",null,"--","--",null,"--",{"$f":"(Monthly!CK37/Monthly!CK25)-1","v":3.4210526315789469E-2},{"$f":"(Monthly!CL37/Monthly!CL25)-1","v":0.14571428571428569},{"$f":"(Monthly!CM37/Monthly!CM25)-1","v":5.8628318584070804E-2},{"$f":"(Monthly!CN37/Monthly!CN25)-1","v":2.0920110450695084E-2},{"$f":"(Monthly!CO37/Monthly!CO25)-1","v":0.10337837837837838},{"$f":"(Monthly!CP37/Monthly!CP25)-1","v":6.3180034785422334E-2},{"$f":"(Monthly!CQ37/Monthly!CQ25)-1","v":1.6430462544774871E-2},"--",null,null,null,null,null,null,null,{"$f":"(Monthly!CZ37/Monthly!CZ25)-1","v":1.4620877252635056E-2},{"$f":"(Monthly!DA37/Monthly!DA25)-1","v":9.8039215686274161E-3},null,null,null,null,null,null,"--",{"$f":"((Monthly!DI37-Monthly!DI25)*100)","v":120.00000000000028},"--",{"$f":"((Monthly!DK37-Monthly!DK25)*100)","v":150},{"$f":"Monthly!DL37-Monthly!DL25","v":-905},null,null,null,{"$f":"Monthly!DP37-Monthly!DP25","v":-796},null,null,null,"--","--","--","--","--","--","--","--","--","--",null,null,null,null,null,null,null,null,null,null,null,null,null,{"$f":"(Monthly!EQ37/Monthly!EQ25)-1","v":0},"--",{"$f":"(Monthly!ES37/Monthly!ES25)-1","v":0},null,null,null,null,null,{"$f":"((Monthly!EY37-Monthly!EY25)*100)","v":-50},{"$f":"((Monthly!EZ37-Monthly!EZ25)*100)","v":-181.99999999999997},{"$f":"((Monthly!FA37-Monthly!FA25)*100)","v":-27.000000000000046},{"$f":"((Monthly!FB37-Monthly!FB25)*100)","v":-23.000000000000043},"--","--",{"$f":"((Monthly!FE37-Monthly!FE25)*100)","v":-92},{"$f":"((Monthly!FF37-Monthly!FF25)*100)","v":-113.99999999999997},"--",{"$f":"((Monthly!FH37-Monthly!FH25)*100)","v":-70.999999999999957},{"$f":"((Monthly!FI37-Monthly!FI25)*100)","v":-50.999999999999979},null,null,null,null,null,null,"--","--","--","--","--","--","--","--","--",null,null,null,null,null,{"$f":"(Monthly!GD37/Monthly!GD25)-1","v":0},"--","--","--","--","--","--","--","--"]
["1961-04-01",null,null,null,{"$f":"(Monthly!E38/Monthly!E26)-1","v":{"$error":"#DIV/0!"}},{"$f":"(Monthly!F38/Monthly!F26)-1","v":{"$error":"#DIV/0!"}},{"$f":"(Monthly!G38/Monthly!G26)-1","v":{"$error":"#DIV/0!"}},{"$f":"(Monthly!H38/Monthly!H26)-1","v":{"$error":"#DIV/0!"}},null,null,null,null,null,null,null,null,null,null,null,null,null,null,null,"--",{"$f":"(Monthly!Y38/Monthly!Y26)-1","v":4.1897855619619229E-2},null,null,null,null,null,null,null,null,null,null,null,null,null,{"$f":"(Monthly!AM38/Monthly!AM26)-1","v":-3.6529811543765223E-2},"--","--","--",{"$f":"Monthly!AQ38-Monthly!AQ26","v":12.300000000000004},"--","--",{"$f":"Monthly!AT38-Monthly!AT26","v":11.200000000000003},"--","--",{"$f":"Monthly!AW38-Monthly!AW26","v":-4.2000000000000028},{"$f":"Monthly!AX38-Monthly!AX26","v":15.700000000000003},{"$f":"Monthly!AY38-Monthly!AY26","v":-8.6000000000000014},{"$f":"Monthly!AZ38-Monthly!AZ26","v":11.900000000000006},{"$f":"Monthly!BA38-Monthly!BA26","v":18.600000000000001},"--","--",null,null,null,null,null,null,null,null,null,"--","--",null,null,null,null,null,{"$f":"(Monthly!BT38/Monthly!BT26)-1","v":9.2974166233619648E-2},null,null,null,{"$f":"(Monthly!BX38/Monthly!BX26)-1","v":-9.5422808378588075E-2},{"$f":"(Monthly!BY38/Monthly!BY26)-1","v":-1.3779527559055094E-2},"--","--",{"$f":"Monthly!CB38-Monthly!CB26","v":0.78164774529911707},{"$f":"Monthly!CC38-Monthly!CC26","v":2.041647745299116},"--","--",null,"--","--",null,"--",{"$f":"(Monthly!CK38/Monthly!CK26)-1","v":2.8741092636579646E-2},{"$f":"(Monthly!CL38/Monthly!CL26)-1","v":0.30670926517571884},{"$f":"(Monthly!CM38/Monthly!CM26)-1","v":-0.16205910390848433},{"$f":"(Monthly!CN38/Monthly!CN26)-1","v":1.9488996643043599E-2},{"$f":"(Monthly!CO38/Monthly!CO26)-1","v":0.1049092131809013},{"$f":"(Monthly!CP38/Monthly!CP26)-1","v":4.0971107961338626E-2},{"$f":"(Monthly!CQ38/Monthly!CQ26)-1","v":1.6582688451004746E-2},"--",null,null,null,null,null,null,null,{"$f":"(Monthly!CZ38/Monthly!CZ26)-1","v":9.1401489505755773E-3},{"$f":"(Monthly!DA38/Monthly!DA26)-1","v":9.8039215686274161E-3},null,null,null,null,null,null,"--",{"$f":"((Monthly!DI38-Monthly!DI26)*100)","v":-20.000000000000284},"--",{"$f":"((Monthly!DK38-Monthly!DK26)*100)","v":179.99999999999997},{"$f":"Monthly!DL38-Monthly!DL26","v":-829},null,null,null,{"$f":"Monthly!DP38-Monthly!DP26","v":-1186},null,null,null,"--","--","--","--","--","--","--","--","--","--",null,null,null,null,null,null,null,null,null,null,null,null,null,{"$f":"(Monthly!EQ38/Monthly!EQ26)-1","v":-6.2893081761006275E-3},"--",{"$f":"(Monthly!ES38/Monthly!ES26)-1","v":3.0487804878049918E-3},null,null,null,null,null,{"$f":"((Monthly!EY38-Monthly!EY26)*100)","v":-50},{"$f":"((Monthly!EZ38-Monthly!EZ26)*100)","v":-242.99999999999997},{"$f":"((Monthly!FA38-Monthly!FA26)*100)","v":-20.000000000000018},{"$f":"((Monthly!FB38-Monthly!FB26)*100)","v":-19.000000000000039},"--","--",{"$f":"((Monthly!FE38-Monthly!FE26)*100)","v":-94},{"$f":"((Monthly!FF38-Monthly!FF26)*100)","v":-116.00000000000001},"--",{"$f":"((Monthly!FH38-Monthly!FH26)*100)","v":-72.000000000000014},{"$f":"((Monthly!FI38-Monthly!FI26)*100)","v":-50.000000000000043},null,null,null,null,null,null,"--","--","--","--","--","--","--","--","--",null,null,null,null,null,{"$f":"(Monthly!GD38/Monthly!GD26)-1","v":0},"--","--","--","--","--","--","--","--"]
["1961-05-01",null,null,null,{"$f":"(Monthly!E39/Monthly!E27)-1","v":{"$error":"#DIV/0!"}},{"$f":"(Monthly!F39/Monthly!F27)-1","v":{"$error":"#DIV/0!"}},{"$f":"(Monthly!G39/Monthly!G27)-1","v":{"$error":"#DIV/0!"}},{"$f":"(Monthly!H39/Monthly!H27)-1","v":{"$error":"#DIV/0!"}},null,null,null,null,null,null,null,null,null,null,null,null,null,null,null,"--",{"$f":"(Monthly!Y39/Monthly!Y27)-1","v":3.0362461667881258E-2},null,null,null,null,null,null,null,null,null,null,null,null,null,{"$f":"(Monthly!AM39/Monthly!AM27)-1","v":-2.0572259702694384E-2},"--","--","--",{"$f":"Monthly!AQ39-Monthly!AQ27","v":16.299999999999997},"--","--",{"$f":"Monthly!AT39-Monthly!AT27","v":13.799999999999997},"--","--",{"$f":"Monthly!AW39-Monthly!AW27","v":1.5},{"$f":"Monthly!AX39-Monthly!AX27","v":19},{"$f":"Monthly!AY39-Monthly!AY27","v":-2},{"$f":"Monthly!AZ39-Monthly!AZ27","v":21.599999999999994},{"$f":"Monthly!BA39-Monthly!BA27","v":15.600000000000001},"--","--",null,null,null,null,null,null,null,null,null,"--","--",null,null,null,null,null,{"$f":"(Monthly!BT39/Monthly!BT27)-1","v":7.9491440584642969E-2},null,null,null,{"$f":"(Monthly!BX39/Monthly!BX27)-1","v":-3.3831628638867017E-2},{"$f":"(Monthly!BY39/Monthly!BY27)-1","v":-2.3764258555133089E-2},"--","--",{"$f":"Monthly!CB39-Monthly!CB27","v":1.0880187182489713},{"$f":"Monthly!CC39-Monthly!CC27","v":2.4880187182489699},"--","--",null,"--","--",null,"--",{"$f":"(Monthly!CK39/Monthly!CK27)-1","v":3.3372781065088786E-2},{"$f":"(Monthly!CL39/Monthly!CL27)-1","v":7.1794871794871762E-2},{"$f":"(Monthly!CM39/Monthly!CM27)-1","v":-7.036669970267595E-2},{"$f":"(Monthly!CN39/Monthly!CN27)-1","v":2.4886035910317128E-2},{"$f":"(Monthly!CO39/Monthly!CO27)-1","v":0.10702341137123739},{"$f":"(Monthly!CP39/Monthly!CP27)-1","v":3.8458352746285618E-2},{"$f":"(Monthly!CQ39/Monthly!CQ27)-1","v":1.6618392871014631E-2},"--",null,null,null,null,null,null,null,{"$f":"(Monthly!CZ39/Monthly!CZ27)-1","v":9.1308758877239882E-3},{"$f":"(Monthly!DA39/Monthly!DA27)-1","v":9.8039215686274161E-3},null,null,null,null,null,null,"--",{"$f":"((Monthly!DI39-Monthly!DI27)*100)","v":-10.000000000000142},"--",{"$f":"((Monthly!DK39-Monthly!DK27)*100)","v":200},{"$f":"Monthly!DL39-Monthly!DL27","v":-643},null,null,null,{"$f":"Monthly!DP39-Monthly!DP27","v":-688},null,null,null,"--","--","--","--","--","--","--","--","--","--",null,null,null,null,null,null,null,null,null,null,null,null,null,{"$f":"(Monthly!EQ39/Monthly!EQ27)-1","v":-6.3091482649841879E-3},"--",{"$f":"(Monthly!ES39/Monthly!ES27)-1","v":6.1162079510701517E-3},null,null,null,null,null,{"$f":"((Monthly!EY39-Monthly!EY27)*100)","v":-50},{"$f":"((Monthly!EZ39-Monthly!EZ27)*100)","v":-187},{"$f":"((Monthly!FA39-Monthly!FA27)*100)","v":-19.000000000000039},{"$f":"((Monthly!FB39-Monthly!FB27)*100)","v":-27.000000000000046},"--","--",{"$f":"((Monthly!FE39-Monthly!FE27)*100)","v":-100},{"$f":"((Monthly!FF39-Monthly!FF27)*100)","v":-134},"--",{"$f":"((Monthly!FH39-Monthly!FH27)*100)","v":-102},{"$f":"((Monthly!FI39-Monthly!FI27)*100)","v":-63.999999999999972},null,null,null,null,null,null,"--","--","--","--","--","--","--","--","--",null,null,null,null,null,{"$f":"(Monthly!GD39/Monthly!GD27)-1","v":0},"--","--","--","--","--","--","--","--"]
["1961-06-01",null,null,null,{"$f":"(Monthly!E40/Monthly!E28)-1","v":{"$error":"#DIV/0!"}},{"$f":"(Monthly!F40/Monthly!F28)-1","v":{"$error":"#DIV/0!"}},{"$f":"(Monthly!G40/Monthly!G28)-1","v":{"$error":"#DIV/0!"}},{"$f":"(Monthly!H40/Monthly!H28)-1","v":{"$error":"#DIV/0!"}},null,null,null,null,null,null,null,null,null,null,null,null,null,null,null,"--",{"$f":"(Monthly!Y40/Monthly!Y28)-1","v":2.6489249547833049E-2},null,null,null,null,null,null,null,null,null,null,null,null,null,{"$f":"(Monthly!AM40/Monthly!AM28)-1","v":5.7879713389314968E-3},"--","--","--",{"$f":"Monthly!AQ40-Monthly!AQ28","v":13.700000000000003},"--","--",{"$f":"Monthly!AT40-Monthly!AT28","v":15.399999999999999},"--","--",{"$f":"Monthly!AW40-Monthly!AW28","v":-1.8999999999999986},{"$f":"Monthly!AX40-Monthly!AX28","v":14.799999999999997},{"$f":"Monthly!AY40-Monthly!AY28","v":-2.6000000000000014},{"$f":"Monthly!AZ40-Monthly!AZ28","v":16.799999999999997},{"$f":"Monthly!BA40-Monthly!BA28","v":14.5},"--","--",null,null,null,null,null,null,null,null,null,"--","--",null,null,null,null,null,{"$f":"(Monthly!BT40/Monthly!BT28)-1","v":7.6592747070809875E-2},null,null,null,{"$f":"(Monthly!BX40/Monthly!BX28)-1","v":0.1082598235765837},{"$f":"(Monthly!BY40/Monthly!BY28)-1","v":0.1169102296450939},"--","--",{"$f":"Monthly!CB40-Monthly!CB28","v":0.5591417965209331},{"$f":"Monthly!CC40-Monthly!CC28","v":1.6091417965209338},"--","--",null,"--","--",null,"--",{"$f":"(Monthly!CK40/Monthly!CK28)-1","v":4.2799716244975139E-2},{"$f":"(Monthly!CL40/Monthly!CL28)-1","v":0.14758269720101791},{"$f":"(Monthly!CM40/Monthly!CM28)-1","v":7.9760717846459883E-3},{"$f":"(Monthly!CN40/Monthly!CN28)-1","v":3.504857528006311E-2},{"$f":"(Monthly!CO40/Monthly!CO28)-1","v":0.10816191108161921},{"$f":"(Monthly!CP40/Monthly!CP28)-1","v":3.3358395947050035E-2},{"$f":"(Monthly!CQ40/Monthly!CQ28)-1","v":1.666999179800932E-2},"--",null,null,null,null,null,null,null,{"$f":"(Monthly!CZ40/Monthly!CZ28)-1","v":7.7676460655184965E-3},{"$f":"(Monthly!DA40/Monthly!DA28)-1","v":9.7719869706840434E-3},null,null,null,null,null,null,"--",{"$f":"((Monthly!DI40-Monthly!DI28)*100)","v":0},"--",{"$f":"((Monthly!DK40-Monthly!DK28)*100)","v":150},{"$f":"Monthly!DL40-Monthly!DL28","v":-485},null,null,null,{"$f":"Monthly!DP40-Monthly!DP28","v":-370},null,null,null,"--","--","--","--","--","--","--","--","--","--",null,null,null,null,null,null,null,null,null,null,null,null,null,{"$f":"(Monthly!EQ40/Monthly!EQ28)-1","v":-1.2618296529968376E-2},"--",{"$f":"(Monthly!ES40/Monthly!ES28)-1","v":3.0487804878049918E-3},null,null,null,null,null,{"$f":"((Monthly!EY40-Monthly!EY28)*100)","v":-50},{"$f":"((Monthly!EZ40-Monthly!EZ28)*100)","v":-159},{"$f":"((Monthly!FA40-Monthly!FA28)*100)","v":-12.000000000000011},{"$f":"((Monthly!FB40-Monthly!FB28)*100)","v":-22.999999999999954},"--","--",{"$f":"((Monthly!FE40-Monthly!FE28)*100)","v":-12.999999999999989},{"$f":"((Monthly!FF40-Monthly!FF28)*100)","v":-29.999999999999982},"--",{"$f":"((Monthly!FH40-Monthly!FH28)*100)","v":-31.000000000000007},{"$f":"((Monthly!FI40-Monthly!FI28)*100)","v":-27.000000000000046},null,null,null,null,null,null,"--","--","--","--","--","--","--","--","--",null,null,null,null,null,{"$f":"(Monthly!GD40/Monthly!GD28)-1","v":0},"--","--","--","--","--","--","--","--"]
["1961-07-01",null,null,null,{"$f":"(Monthly!E41/Monthly!E29)-1","v":{"$error":"#DIV/0!"}},{"$f":"(Monthly!F41/Monthly!F29)-1","v":{"$error":"#DIV/0!"}},{"$f":"(Monthly!G41/Monthly!G29)-1","v":{"$error":"#DIV/0!"}},{"$f":"(Monthly!H41/Monthly!H29)-1","v":{"$error":"#DIV/0!"}},null,null,null,null,null,null,null,null,null,null,null,null,null,null,null,"--",{"$f":"(Monthly!Y41/Monthly!Y29)-1","v":2.8638171022181025E-2},null,null,null,null,null,null,null,null,null,null,null,null,null,{"$f":"(Monthly!AM41/Monthly!AM29)-1","v":2.090257712157384E-2},"--","--","--",{"$f":"Monthly!AQ41-Monthly!AQ29","v":14.5},"--","--",{"$f":"Monthly!AT41-Monthly!AT29","v":12},"--","--",{"$f":"Monthly!AW41-Monthly!AW29","v":3.3999999999999986},{"$f":"Monthly!AX41-Monthly!AX29","v":18.799999999999997},{"$f":"Monthly!AY41-Monthly!AY29","v":1},{"$f":"Monthly!AZ41-Monthly!AZ29","v":16.099999999999994},{"$f":"Monthly!BA41-Monthly!BA29","v":13.600000000000001},"--","--",null,null,null,null,null,null,null,null,null,"--","--",null,null,null,null,null,{"$f":"(Monthly!BT41/Monthly!BT29)-1","v":6.9772298332919647E-2},null,null,null,{"$f":"(Monthly!BX41/Monthly!BX29)-1","v":0.11528822055137855},{"$f":"(Monthly!BY41/Monthly!BY29)-1","v":8.4084084084084187E-2},"--","--",{"$f":"Monthly!CB41-Monthly!CB29","v":1.3799023662542576},{"$f":"Monthly!CC41-Monthly!CC29","v":2.4299023662542609},"--","--",null,"--","--",null,"--",{"$f":"(Monthly!CK41/Monthly!CK29)-1","v":4.5272341428908236E-2},{"$f":"(Monthly!CL41/Monthly!CL29)-1","v":0.22365038560411321},{"$f":"(Monthly!CM41/Monthly!CM29)-1","v":6.0190073917634646E-2},{"$f":"(Monthly!CN41/Monthly!CN29)-1","v":3.7807710171853248E-2},{"$f":"(Monthly!CO41/Monthly!CO29)-1","v":0.10825082508250827},{"$f":"(Monthly!CP41/Monthly!CP29)-1","v":2.807476845507928E-2},{"$f":"(Monthly!CQ41/Monthly!CQ29)-1","v":1.6715466234204612E-2},"--",null,null,null,null,null,null,null,{"$f":"(Monthly!CZ41/Monthly!CZ29)-1","v":1.2521150592216701E-2},{"$f":"(Monthly!DA41/Monthly!DA29)-1","v":1.3071895424836555E-2},null,null,null,null,null,null,"--",{"$f":"((Monthly!DI41-Monthly!DI29)*100)","v":-20.000000000000284},"--",{"$f":"((Monthly!DK41-Monthly!DK29)*100)","v":150},{"$f":"Monthly!DL41-Monthly!DL29","v":-384},null,null,null,{"$f":"Monthly!DP41-Monthly!DP29","v":-181},null,null,null,"--","--","--","--","--","--","--","--","--","--",null,null,null,null,null,null,null,null,null,null,null,null,null,{"$f":"(Monthly!EQ41/Monthly!EQ29)-1","v":-6.3091482649841879E-3},"--",{"$f":"(Monthly!ES41/Monthly!ES29)-1","v":3.0487804878049918E-3},null,null,null,null,null,{"$f":"((Monthly!EY41-Monthly!EY29)*100)","v":-50},{"$f":"((Monthly!EZ41-Monthly!EZ29)*100)","v":-206},{"$f":"((Monthly!FA41-Monthly!FA29)*100)","v":0},{"$f":"((Monthly!FB41-Monthly!FB29)*100)","v":-12.999999999999989},"--","--",{"$f":"((Monthly!FE41-Monthly!FE29)*100)","v":-5.9999999999999609},{"$f":"((Monthly!FF41-Monthly!FF29)*100)","v":-28.000000000000025},"--",{"$f":"((Monthly!FH41-Monthly!FH29)*100)","v":4.9999999999999822},{"$f":"((Monthly!FI41-Monthly!FI29)*100)","v":2.0000000000000018},null,null,null,null,null,null,"--","--","--","--","--","--","--","--","--",null,null,null,null,null,{"$f":"(Monthly!GD41/Monthly!GD29)-1","v":0},"--","--","--","--","--","--","--","--"]
["1961-08-01",null,null,null,{"$f":"(Monthly!E42/Monthly!E30)-1","v":{"$error":"#DIV/0!"}},{"$f":"(Monthly!F42/Monthly!F30)-1","v":{"$error":"#DIV/0!"}},{"$f":"(Monthly!G42/Monthly!G30)-1","v":{"$error":"#DIV/0!"}},{"$f":"(Monthly!H42/Monthly!H30)-1","v":{"$error":"#DIV/0!"}},null,null,null,null,null,null,null,null,null,null,null,null,null,null,null,"--",{"$f":"(Monthly!Y42/Monthly!Y30)-1","v":3.2227543200346487E-2},null,null,null,null,null,null,null,null,null,null,null,null,null,{"$f":"(Monthly!AM42/Monthly!AM30)-1","v":3.139461484116679E-2},"--","--","--",{"$f":"Monthly!AQ42-Monthly!AQ30","v":13.100000000000001},"--","--",{"$f":"Monthly!AT42-Monthly!AT30","v":14.699999999999996},"--","--",{"$f":"Monthly!AW42-Monthly!AW30","v":15.399999999999999},{"$f":"Monthly!AX42-Monthly!AX30","v":7.2999999999999972},{"$f":"Monthly!AY42-Monthly!AY30","v":1.6000000000000014},{"$f":"Monthly!AZ42-Monthly!AZ30","v":18.100000000000009},{"$f":"Monthly!BA42-Monthly!BA30","v":12.600000000000001},"--","--",null,null,null,null,null,null,null,null,null,"--","--",null,null,null,null,null,{"$f":"(Monthly!BT42/Monthly!BT30)-1","v":6.3227297391195592E-2},null,null,null,{"$f":"(Monthly!BX42/Monthly!BX30)-1","v":-2.3809523809523836E-2},{"$f":"(Monthly!BY42/Monthly!BY30)-1","v":0.16599597585513082},"--","--",{"$f":"Monthly!CB42-Monthly!CB30","v":0.64087628547402264},{"$f":"Monthly!CC42-Monthly!CC30","v":1.3408762854740228},"--","--",null,"--","--",null,"--",{"$f":"(Monthly!CK42/Monthly!CK30)-1","v":4.5219029674988143E-2},{"$f":"(Monthly!CL42/Monthly!CL30)-1","v":0.19329896907216493},{"$f":"(Monthly!CM42/Monthly!CM30)-1","v":-0.10815765352887263},{"$f":"(Monthly!CN42/Monthly!CN30)-1","v":3.8829985119047672E-2},{"$f":"(Monthly!CO42/Monthly!CO30)-1","v":0.10667539267015691},{"$f":"(Monthly!CP42/Monthly!CP30)-1","v":2.8369456055588715E-2},{"$f":"(Monthly!CQ42/Monthly!CQ30)-1","v":1.6651468678327674E-2},"--",null,null,null,null,null,null,null,{"$f":"(Monthly!CZ42/Monthly!CZ30)-1","v":1.1144883485309176E-2},{"$f":"(Monthly!DA42/Monthly!DA30)-1","v":1.6339869281045694E-2},null,null,null,null,null,null,"--",{"$f":"((Monthly!DI42-Monthly!DI30)*100)","v":-20.000000000000284},"--",{"$f":"((Monthly!DK42-Monthly!DK30)*100)","v":100},{"$f":"Monthly!DL42-Monthly!DL30","v":-267},null,null,null,{"$f":"Monthly!DP42-Monthly!DP30","v":27},null,null,null,"--","--","--","--","--","--","--","--","--","--",null,null,null,null,null,null,null,null,null,null,null,null,null,{"$f":"(Monthly!EQ42/Monthly!EQ30)-1","v":-3.1645569620253333E-3},"--",{"$f":"(Monthly!ES42/Monthly!ES30)-1","v":0},null,null,null,null,null,{"$f":"((Monthly!EY42-Monthly!EY30)*100)","v":-34.999999999999964},{"$f":"((Monthly!EZ42-Monthly!EZ30)*100)","v":-98},{"$f":"((Monthly!FA42-Monthly!FA30)*100)","v":16.999999999999993},{"$f":"((Monthly!FB42-Monthly!FB30)*100)","v":3.0000000000000249},"--","--",{"$f":"((Monthly!FE42-Monthly!FE30)*100)","v":9.0000000000000302},{"$f":"((Monthly!FF42-Monthly!FF30)*100)","v":10.999999999999988},"--",{"$f":"((Monthly!FH42-Monthly!FH30)*100)","v":33.999999999999986},{"$f":"((Monthly!FI42-Monthly!FI30)*100)","v":24.000000000000021},null,null,null,null,null,null,"--","--","--","--","--","--","--","--","--",null,null,null,null,null,{"$f":"(Monthly!GD42/Monthly!GD30)-1","v":0},"--","--","--","--","--","--","--","--"]
["1961-09-01",null,null,null,{"$f":"(Monthly!E43/Monthly!E31)-1","v":{"$error":"#DIV/0!"}},{"$f":"(Monthly!F43/Monthly!F31)-1","v":{"$error":"#DIV/0!"}},{"$f":"(Monthly!G43/Monthly!G31)-1","v":{"$error":"#DIV/0!"}},{"$f":"(Monthly!H43/Monthly!H31)-1","v":{"$error":"#DIV/0!"}},null,null,null,null,null,null,null,null,null,null,null,null,null,null,null,"--",{"$f":"(Monthly!Y43/Monthly!Y31)-1","v":3.3093723279372877E-2},null,null,null,null,null,null,null,null,null,null,null,null,null,{"$f":"(Monthly!AM43/Monthly!AM31)-1","v":4.1130497232900964E-2},"--","--","--",{"$f":"Monthly!AQ43-Monthly!AQ31","v":17.600000000000001},"--","--",{"$f":"Monthly!AT43-Monthly!AT31","v":20.9},"--","--",{"$f":"Monthly!AW43-Monthly!AW31","v":15.5},{"$f":"Monthly!AX43-Monthly!AX31","v":19},{"$f":"Monthly!AY43-Monthly!AY31","v":5.5},{"$f":"Monthly!AZ43-Monthly!AZ31","v":16.799999999999997},{"$f":"Monthly!BA43-Monthly!BA31","v":13.400000000000006},"--","--",null,null,null,null,null,null,null,null,null,"--","--",null,null,null,null,null,{"$f":"(Monthly!BT43/Monthly!BT31)-1","v":5.3780685749261092E-2},null,null,null,{"$f":"(Monthly!BX43/Monthly!BX31)-1","v":0.3026435733819508},{"$f":"(Monthly!BY43/Monthly!BY31)-1","v":0.11585365853658547},"--","--",{"$f":"Monthly!CB43-Monthly!CB31","v":1.2188086145533008},{"$f":"Monthly!CC43-Monthly!CC31","v":2.0588086145533016},"--","--",null,"--","--",null,"--",{"$f":"(Monthly!CK43/Monthly!CK31)-1","v":4.5593419506462896E-2},{"$f":"(Monthly!CL43/Monthly!CL31)-1","v":0.18518518518518512},{"$f":"(Monthly!CM43/Monthly!CM31)-1","v":0.21618497109826595},{"$f":"(Monthly!CN43/Monthly!CN31)-1","v":3.8161559888579388E-2},{"$f":"(Monthly!CO43/Monthly!CO31)-1","v":0.10434219053791316},{"$f":"(Monthly!CP43/Monthly!CP31)-1","v":2.5577489652941932E-2},{"$f":"(Monthly!CQ43/Monthly!CQ31)-1","v":1.6580408082190301E-2},"--",null,null,null,null,null,null,null,{"$f":"(Monthly!CZ43/Monthly!CZ31)-1","v":1.2495778453225359E-2},{"$f":"(Monthly!DA43/Monthly!DA31)-1","v":1.6339869281045694E-2},null,null,null,null,null,null,"--",{"$f":"((Monthly!DI43-Monthly!DI31)*100)","v":-70.000000000000284},"--",{"$f":"((Monthly!DK43-Monthly!DK31)*100)","v":120.00000000000001},{"$f":"Monthly!DL43-Monthly!DL31","v":-250},null,null,null,{"$f":"Monthly!DP43-Monthly!DP31","v":160},null,null,null,"--","--","--","--","--","--","--","--","--","--",null,null,null,null,null,null,null,null,null,null,null,null,null,{"$f":"(Monthly!EQ43/Monthly!EQ31)-1","v":-3.1645569620253333E-3},"--",{"$f":"(Monthly!ES43/Monthly!ES31)-1","v":9.2024539877300082E-3},null,null,null,null,null,{"$f":"((Monthly!EY43-Monthly!EY31)*100)","v":0},{"$f":"((Monthly!EZ43-Monthly!EZ31)*100)","v":-72.000000000000014},{"$f":"((Monthly!FA43-Monthly!FA31)*100)","v":20.000000000000018},{"$f":"((Monthly!FB43-Monthly!FB31)*100)","v":11.000000000000032},"--","--",{"$f":"((Monthly!FE43-Monthly!FE31)*100)","v":-20.000000000000018},{"$f":"((Monthly!FF43-Monthly!FF31)*100)","v":-0.99999999999997868},"--",{"$f":"((Monthly!FH43-Monthly!FH31)*100)","v":29.000000000000004},{"$f":"((Monthly!FI43-Monthly!FI31)*100)","v":18.000000000000014},null,null,null,null,null,null,"--","--","--","--","--","--","--","--","--",null,null,null,null,null,{"$f":"(Monthly!GD43/Monthly!GD31)-1","v":0},"--","--","--","--","--","--","--","--"]
["1961-10-01",null,null,null,{"$f":"(Monthly!E44/Monthly!E32)-1","v":{"$error":"#DIV/0!"}},{"$f":"(Monthly!F44/Monthly!F32)-1","v":{"$error":"#DIV/0!"}},{"$f":"(Monthly!G44/Monthly!G32)-1","v":{"$error":"#DIV/0!"}},{"$f":"(Monthly!H44/Monthly!H32)-1","v":{"$error":"#DIV/0!"}},null,null,null,null,null,null,null,null,null,null,null,null,null,null,null,"--",{"$f":"(Monthly!Y44/Monthly!Y32)-1","v":3.4993630297148526E-2},null,null,null,null,null,null,null,null,null,null,null,null,null,{"$f":"(Monthly!AM44/Monthly!AM32)-1","v":6.2351965892941674E-2},"--","--","--",{"$f":"Monthly!AQ44-Monthly!AQ32","v":16.200000000000003},"--","--",{"$f":"Monthly!AT44-Monthly!AT32","v":14.5},"--","--",{"$f":"Monthly!AW44-Monthly!AW32","v":17},{"$f":"Monthly!AX44-Monthly!AX32","v":18.199999999999996},{"$f":"Monthly!AY44-Monthly!AY32","v":10.5},{"$f":"Monthly!AZ44-Monthly!AZ32","v":15.099999999999994},{"$f":"Monthly!BA44-Monthly!BA32","v":16.199999999999996},"--","--",null,null,null,null,null,null,null,null,null,"--","--",null,null,null,null,null,{"$f":"(Monthly!BT44/Monthly!BT32)-1","v":5.1780446286211701E-2},null,null,null,{"$f":"(Monthly!BX44/Monthly!BX32)-1","v":0.13563402889245579},{"$f":"(Monthly!BY44/Monthly!BY32)-1","v":0.15534979423868323},"--","--",{"$f":"Monthly!CB44-Monthly!CB32","v":-0.18975276652397621},{"$f":"Monthly!CC44-Monthly!CC32","v":9.0247233476022259E-2},"--","--",null,"--","--",null,"--",{"$f":"(Monthly!CK44/Monthly!CK32)-1","v":5.1264044943820197E-2},{"$f":"(Monthly!CL44/Monthly!CL32)-1","v":0.2453333333333334},{"$f":"(Monthly!CM44/Monthly!CM32)-1","v":7.7006507592190854E-2},{"$f":"(Monthly!CN44/Monthly!CN32)-1","v":4.5055046720325453E-2},{"$f":"(Monthly!CO44/Monthly!CO32)-1","v":0.10289389067524124},{"$f":"(Monthly!CP44/Monthly!CP32)-1","v":2.5645239732345004E-2},{"$f":"(Monthly!CQ44/Monthly!CQ32)-1","v":1.6504340928121364E-2},"--",null,null,null,null,null,null,null,{"$f":"(Monthly!CZ44/Monthly!CZ32)-1","v":7.7310924369748957E-3},{"$f":"(Monthly!DA44/Monthly!DA32)-1","v":9.7402597402598268E-3},null,null,null,null,null,null,"--",{"$f":"((Monthly!DI44-Monthly!DI32)*100)","v":-29.999999999999716},"--",{"$f":"((Monthly!DK44-Monthly!DK32)*100)","v":40.000000000000036},{"$f":"Monthly!DL44-Monthly!DL32","v":-88},null,null,null,{"$f":"Monthly!DP44-Monthly!DP32","v":378},null,null,null,"--","--","--","--","--","--","--","--","--","--",null,null,null,null,null,null,null,null,null,null,null,null,null,{"$f":"(Monthly!EQ44/Monthly!EQ32)-1","v":-6.3091482649841879E-3},"--",{"$f":"(Monthly!ES44/Monthly!ES32)-1","v":3.0487804878049918E-3},null,null,null,null,null,{"$f":"((Monthly!EY44-Monthly!EY32)*100)","v":0},{"$f":"((Monthly!EZ44-Monthly!EZ32)*100)","v":-21.000000000000043},{"$f":"((Monthly!FA44-Monthly!FA32)*100)","v":12.000000000000011},{"$f":"((Monthly!FB44-Monthly!FB32)*100)","v":1.9999999999999574},"--","--",{"$f":"((Monthly!FE44-Monthly!FE32)*100)","v":0},{"$f":"((Monthly!FF44-Monthly!FF32)*100)","v":0.99999999999997868},"--",{"$f":"((Monthly!FH44-Monthly!FH32)*100)","v":4.0000000000000036},{"$f":"((Monthly!FI44-Monthly!FI32)*100)","v":2.9999999999999805},null,null,null,null,null,null,"--","--","--","--","--","--","--","--","--",null,null,null,null,null,{"$f":"(Monthly!GD44/Monthly!GD32)-1","v":0},"--","--","--","--","--","--","--","--"]
["1961-11-01",null,null,null,{"$f":"(Monthly!E45/Monthly!E33)-1","v":{"$error":"#DIV/0!"}},{"$f":"(Monthly!F45/Monthly!F33)-1","v":{"$error":"#DIV/0!"}},{"$f":"(Monthly!G45/Monthly!G33)-1","v":{"$error":"#DIV/0!"}},{"$f":"(Monthly!H45/Monthly!H33)-1","v":{"$error":"#DIV/0!"}},null,null,null,null,null,null,null,null,null,null,null,null,null,null,null,"--",{"$f":"(Monthly!Y45/Monthly!Y33)-1","v":3.4810604879242479E-2},null,null,null,null,null,null,null,null,null,null,null,null,null,{"$f":"(Monthly!AM45/Monthly!AM33)-1","v":9.4270980806026694E-2},"--","--","--",{"$f":"Monthly!AQ45-Monthly!AQ33","v":14.700000000000003},"--","--",{"$f":"Monthly!AT45-Monthly!AT33","v":16},"--","--",{"$f":"Monthly!AW45-Monthly!AW33","v":12.899999999999999},{"$f":"Monthly!AX45-Monthly!AX33","v":16.899999999999991},{"$f":"Monthly!AY45-Monthly!AY33","v":5},{"$f":"Monthly!AZ45-Monthly!AZ33","v":12.699999999999996},{"$f":"Monthly!BA45-Monthly!BA33","v":13.5},"--","--",null,null,null,null,null,null,null,null,null,"--","--",null,null,null,null,null,{"$f":"(Monthly!BT45/Monthly!BT33)-1","v":5.2394681552594191E-2},null,null,null,{"$f":"(Monthly!BX45/Monthly!BX33)-1","v":0.1115569823434992},{"$f":"(Monthly!BY45/Monthly!BY33)-1","v":0.17671092951991829},"--","--",{"$f":"Monthly!CB45-Monthly!CB33","v":-0.79348498872480189},{"$f":"Monthly!CC45-Monthly!CC33","v":-0.793484988724801},"--","--",null,"--","--",null,"--",{"$f":"(Monthly!CK45/Monthly!CK33)-1","v":6.233887977501773E-2},{"$f":"(Monthly!CL45/Monthly!CL33)-1","v":0.26954177897574128},{"$f":"(Monthly!CM45/Monthly!CM33)-1","v":7.2708113804004215E-2},{"$f":"(Monthly!CN45/Monthly!CN33)-1","v":5.9854082438774991E-2},{"$f":"(Monthly!CO45/Monthly!CO33)-1","v":0.10355781448538748},{"$f":"(Monthly!CP45/Monthly!CP33)-1","v":3.1304071884290297E-2},{"$f":"(Monthly!CQ45/Monthly!CQ33)-1","v":1.6430504521551592E-2},"--",null,null,null,null,null,null,null,{"$f":"(Monthly!CZ45/Monthly!CZ33)-1","v":6.7159167226327199E-3},{"$f":"(Monthly!DA45/Monthly!DA33)-1","v":1.298701298701288E-2},null,null,null,null,null,null,"--",{"$f":"((Monthly!DI45-Monthly!DI33)*100)","v":-69.999999999999574},"--",{"$f":"((Monthly!DK45-Monthly!DK33)*100)","v":0},{"$f":"Monthly!DL45-Monthly!DL33","v":147},null,null,null,{"$f":"Monthly!DP45-Monthly!DP33","v":781},null,null,null,"--","--","--","--","--","--","--","--","--","--",null,null,null,null,null,null,null,null,null,null,null,null,null,{"$f":"(Monthly!EQ45/Monthly!EQ33)-1","v":-6.3091482649841879E-3},"--",{"$f":"(Monthly!ES45/Monthly!ES33)-1","v":3.0487804878049918E-3},null,null,null,null,null,{"$f":"((Monthly!EY45-Monthly!EY33)*100)","v":0},{"$f":"((Monthly!EZ45-Monthly!EZ33)*100)","v":16.999999999999993},{"$f":"((Monthly!FA45-Monthly!FA33)*100)","v":8.0000000000000071},{"$f":"((Monthly!FB45-Monthly!FB33)*100)","v":3.0000000000000249},"--","--",{"$f":"((Monthly!FE45-Monthly!FE33)*100)","v":10.999999999999988},{"$f":"((Monthly!FF45-Monthly!FF33)*100)","v":-1.0000000000000231},"--",{"$f":"((Monthly!FH45-Monthly!FH33)*100)","v":0.99999999999997868},{"$f":"((Monthly!FI45-Monthly!FI33)*100)","v":0.99999999999997868},null,null,null,null,null,null,"--","--","--","--","--","--","--","--","--",null,null,null,null,null,{"$f":"(Monthly!GD45/Monthly!GD33)-1","v":0},"--","--","--","--","--","--","--","--"]
["1961-12-01",null,null,null,{"$f":"(Monthly!E46/Monthly!E34)-1","v":{"$error":"#DIV/0!"}},{"$f":"(Monthly!F46/Monthly!F34)-1","v":{"$error":"#DIV/0!"}},{"$f":"(Monthly!G46/Monthly!G34)-1","v":{"$error":"#DIV/0!"}},{"$f":"(Monthly!H46/Monthly!H34)-1","v":{"$error":"#DIV/0!"}},null,null,null,null,null,null,null,null,null,null,null,null,null,null,null,"--",{"$f":"(Monthly!Y46/Monthly!Y34)-1","v":4.0246905956760504E-2},null,null,null,null,null,null,null,null,null,null,null,null,null,{"$f":"(Monthly!AM46/Monthly!AM34)-1","v":0.12530451402404608},"--","--","--",{"$f":"Monthly!AQ46-Monthly!AQ34","v":19.900000000000006},"--","--",{"$f":"Monthly!AT46-Monthly!AT34","v":17.899999999999999},"--","--",{"$f":"Monthly!AW46-Monthly!AW34","v":16.800000000000004},{"$f":"Monthly!AX46-Monthly!AX34","v":25.900000000000006},{"$f":"Monthly!AY46-Monthly!AY34","v":9.6999999999999957},{"$f":"Monthly!AZ46-Monthly!AZ34","v":18.599999999999994},{"$f":"Monthly!BA46-Monthly!BA34","v":15.399999999999999},"--","--",null,null,null,null,null,null,null,null,null,"--","--",null,null,null,null,null,{"$f":"(Monthly!BT46/Monthly!BT34)-1","v":5.0833073275435625E-2},null,null,null,{"$f":"(Monthly!BX46/Monthly!BX34)-1","v":0.28410159924741296},{"$f":"(Monthly!BY46/Monthly!BY34)-1","v":0.22082018927444791},"--","--",{"$f":"Monthly!CB46-Monthly!CB34","v":-1.2891658048291834},{"$f":"Monthly!CC46-Monthly!CC34","v":-1.7091658048291833},"--","--",null,"--","--",null,"--",{"$f":"(Monthly!CK46/Monthly!CK34)-1","v":7.3951954780970164E-2},{"$f":"(Monthly!CL46/Monthly!CL34)-1","v":0.19897959183673453},{"$f":"(Monthly!CM46/Monthly!CM34)-1","v":0.19500594530321047},{"$f":"(Monthly!CN46/Monthly!CN34)-1","v":7.1368519383465667E-2},{"$f":"(Monthly!CO46/Monthly!CO34)-1","v":0.10307982401005655},{"$f":"(Monthly!CP46/Monthly!CP34)-1","v":3.7037715763186485E-2},{"$f":"(Monthly!CQ46/Monthly!CQ34)-1","v":1.6336889289284784E-2},"--",null,null,null,null,null,null,null,{"$f":"(Monthly!CZ46/Monthly!CZ34)-1","v":6.7091580006710672E-3},{"$f":"(Monthly!DA46/Monthly!DA34)-1","v":1.6286644951140072E-2},null,null,null,null,null,null,"--",{"$f":"((Monthly!DI46-Monthly!DI34)*100)","v":-90.000000000000568},"--",{"$f":"((Monthly!DK46-Monthly!DK34)*100)","v":-59.999999999999964},{"$f":"Monthly!DL46-Monthly!DL34","v":362},null,null,null,{"$f":"Monthly!DP46-Monthly!DP34","v":1127},null,null,null,"--","--","--","--","--","--","--","--","--","--",null,null,null,null,null,null,null,null,null,null,null,null,null,{"$f":"(Monthly!EQ46/Monthly!EQ34)-1","v":-3.154574132492094E-3},"--",{"$f":"(Monthly!ES46/Monthly!ES34)-1","v":3.0487804878049918E-3},null,null,null,null,null,{"$f":"((Monthly!EY46-Monthly!EY34)*100)","v":0},{"$f":"((Monthly!EZ46-Monthly!EZ34)*100)","v":35.000000000000007},{"$f":"((Monthly!FA46-Monthly!FA34)*100)","v":7.0000000000000284},{"$f":"((Monthly!FB46-Monthly!FB34)*100)","v":0},"--","--",{"$f":"((Monthly!FE46-Monthly!FE34)*100)","v":35.000000000000007},{"$f":"((Monthly!FF46-Monthly!FF34)*100)","v":32.000000000000028},"--",{"$f":"((Monthly!FH46-Monthly!FH34)*100)","v":24.000000000000021},{"$f":"((Monthly!FI46-Monthly!FI34)*100)","v":21.999999999999975},null,null,null,null,null,null,"--","--","--","--","--","--","--","--","--",null,null,null,null,null,{"$f":"(Monthly!GD46/Monthly!GD34)-1","v":0},"--","--","--","--","--","--","--","--"]
["1962-01-01",null,null,null,{"$f":"(Monthly!E47/Monthly!E35)-1","v":{"$error":"#DIV/0!"}},{"$f":"(Monthly!F47/Monthly!F35)-1","v":{"$error":"#DIV/0!"}},{"$f":"(Monthly!G47/Monthly!G35)-1","v":{"$error":"#DIV/0!"}},{"$f":"(Monthly!H47/Monthly!H35)-1","v":{"$error":"#DIV/0!"}},null,null,null,null,null,null,null,null,null,null,null,null,null,null,null,"--",{"$f":"(Monthly!Y47/Monthly!Y35)-1","v":4.6377135679587456E-2},null,null,null,null,null,null,null,null,null,null,null,null,null,{"$f":"(Monthly!AM47/Monthly!AM35)-1","v":0.11421357492945194},"--","--","--",{"$f":"Monthly!AQ47-Monthly!AQ35","v":17},"--","--",{"$f":"Monthly!AT47-Monthly!AT35","v":20.599999999999994},"--","--",{"$f":"Monthly!AW47-Monthly!AW35","v":18.5},{"$f":"Monthly!AX47-Monthly!AX35","v":12.199999999999996},{"$f":"Monthly!AY47-Monthly!AY35","v":8},{"$f":"Monthly!AZ47-Monthly!AZ35","v":19.100000000000009},{"$f":"Monthly!BA47-Monthly!BA35","v":17.899999999999999},"--","--",null,null,null,null,null,null,null,null,null,"--","--",null,null,null,null,null,{"$f":"(Monthly!BT47/Monthly!BT35)-1","v":5.9791249838340388E-2},null,null,null,{"$f":"(Monthly!BX47/Monthly!BX35)-1","v":0.15046491969568887},{"$f":"(Monthly!BY47/Monthly!BY35)-1","v":0.15789473684210531},"--","--",{"$f":"Monthly!CB47-Monthly!CB35","v":-1.7300310999259771},{"$f":"Monthly!CC47-Monthly!CC35","v":-2.2900310999259759},"--","--",null,"--","--",null,"--",{"$f":"(Monthly!CK47/Monthly!CK35)-1","v":6.4132462686567138E-2},{"$f":"(Monthly!CL47/Monthly!CL35)-1","v":8.2742316784869985E-2},{"$f":"(Monthly!CM47/Monthly!CM35)-1","v":8.4632516703786242E-2},{"$f":"(Monthly!CN47/Monthly!CN35)-1","v":5.7224738837015732E-2},{"$f":"(Monthly!CO47/Monthly!CO35)-1","v":0.10168434185901432},{"$f":"(Monthly!CP47/Monthly!CP35)-1","v":2.6551006314290415E-2},{"$f":"(Monthly!CQ47/Monthly!CQ35)-1","v":1.6210700708223946E-2},"--",null,null,null,null,null,null,null,{"$f":"(Monthly!CZ47/Monthly!CZ35)-1","v":6.7024128686326012E-3},{"$f":"(Monthly!DA47/Monthly!DA35)-1","v":1.298701298701288E-2},null,null,null,null,null,null,"--",{"$f":"((Monthly!DI47-Monthly!DI35)*100)","v":-80.000000000000426},"--",{"$f":"((Monthly!DK47-Monthly!DK35)*100)","v":-79.999999999999986},{"$f":"Monthly!DL47-Monthly!DL35","v":459},null,null,null,{"$f":"Monthly!DP47-Monthly!DP35","v":1208},null,null,null,"--","--","--","--","--","--","--","--","--","--",null,null,null,null,null,null,null,null,null,null,null,null,null,{"$f":"(Monthly!EQ47/Monthly!EQ35)-1","v":-3.1446540880503138E-3},"--",{"$f":"(Monthly!ES47/Monthly!ES35)-1","v":3.0395136778116338E-3},null,null,null,null,null,{"$f":"((Monthly!EY47-Monthly!EY35)*100)","v":0},{"$f":"((Monthly!EZ47-Monthly!EZ35)*100)","v":70},{"$f":"((Monthly!FA47-Monthly!FA35)*100)","v":9.9999999999999645},{"$f":"((Monthly!FB47-Monthly!FB35)*100)","v":-1.9999999999999574},"--","--",{"$f":"((Monthly!FE47-Monthly!FE35)*100)","v":48},{"$f":"((Monthly!FF47-Monthly!FF35)*100)","v":46.999999999999972},"--",{"$f":"((Monthly!FH47-Monthly!FH35)*100)","v":27},{"$f":"((Monthly!FI47-Monthly!FI35)*100)","v":24.000000000000021},null,null,null,null,null,null,"--","--","--","--","--","--","--","--","--",null,null,null,null,null,{"$f":"(Monthly!GD47/Monthly!GD35)-1","v":0},"--","--","--","--","--","--","--","--"]
["1962-02-01",null,null,null,{"$f":"(Monthly!E48/Monthly!E36)-1","v":{"$error":"#DIV/0!"}},{"$f":"(Monthly!F48/Monthly!F36)-1","v":{"$error":"#DIV/0!"}},{"$f":"(Monthly!G48/Monthly!G36)-1","v":{"$error":"#DIV/0!"}},{"$f":"(Monthly!H48/Monthly!H36)-1","v":{"$error":"#DIV/0!"}},null,null,null,null,null,null,null,null,null,null,null,null,null,null,null,"--",{"$f":"(Monthly!Y48/Monthly!Y36)-1","v":4.5732688443229197E-2},null,null,null,null,null,null,null,null,null,null,null,null,null,{"$f":"(Monthly!AM48/Monthly!AM36)-1","v":0.13381997262107292},"--","--","--",{"$f":"Monthly!AQ48-Monthly!AQ36","v":17.5},"--","--",{"$f":"Monthly!AT48-Monthly!AT36","v":26.299999999999997},"--","--",{"$f":"Monthly!AW48-Monthly!AW36","v":22},{"$f":"Monthly!AX48-Monthly!AX36","v":13.099999999999994},{"$f":"Monthly!AY48-Monthly!AY36","v":4.4000000000000057},{"$f":"Monthly!AZ48-Monthly!AZ36","v":15.5},{"$f":"Monthly!BA48-Monthly!BA36","v":15.100000000000001},"--","--",null,null,null,null,null,null,null,null,null,"--","--",null,null,null,null,null,{"$f":"(Monthly!BT48/Monthly!BT36)-1","v":4.2141052318668271E-2},null,null,null,{"$f":"(Monthly!BX48/Monthly!BX36)-1","v":4.2414355628058731E-2},{"$f":"(Monthly!BY48/Monthly!BY36)-1","v":0.2424557752341312},"--","--",{"$f":"Monthly!CB48-Monthly!CB36","v":-1.9572619879980824},{"$f":"Monthly!CC48-Monthly!CC36","v":-2.937261987998081},"--","--",null,"--","--",null,"--",{"$f":"(Monthly!CK48/Monthly!CK36)-1","v":6.6604780691575938E-2},{"$f":"(Monthly!CL48/Monthly!CL36)-1","v":0.12383177570093462},{"$f":"(Monthly!CM48/Monthly!CM36)-1","v":-2.1097046413501852E-3},{"$f":"(Monthly!CN48/Monthly!CN36)-1","v":5.7902973395931312E-2},{"$f":"(Monthly!CO48/Monthly!CO36)-1","v":9.9444101297097021E-2},{"$f":"(Monthly!CP48/Monthly!CP36)-1","v":3.8638635983027747E-2},{"$f":"(Monthly!CQ48/Monthly!CQ36)-1","v":1.6063992987069842E-2},"--",null,null,null,null,null,null,null,{"$f":"(Monthly!CZ48/Monthly!CZ36)-1","v":9.0482573726542448E-3},{"$f":"(Monthly!DA48/Monthly!DA36)-1","v":1.298701298701288E-2},null,null,null,null,null,null,"--",{"$f":"((Monthly!DI48-Monthly!DI36)*100)","v":-60.000000000000142},"--",{"$f":"((Monthly!DK48-Monthly!DK36)*100)","v":-140.00000000000003},{"$f":"Monthly!DL48-Monthly!DL36","v":610},null,null,null,{"$f":"Monthly!DP48-Monthly!DP36","v":1631},null,null,null,"--","--","--","--","--","--","--","--","--","--",null,null,null,null,null,null,null,null,null,null,null,null,null,{"$f":"(Monthly!EQ48/Monthly!EQ36)-1","v":-3.1446540880503138E-3},"--",{"$f":"(Monthly!ES48/Monthly!ES36)-1","v":3.0395136778116338E-3},null,null,null,null,null,{"$f":"((Monthly!EY48-Monthly!EY36)*100)","v":0},{"$f":"((Monthly!EZ48-Monthly!EZ36)*100)","v":-16.999999999999993},{"$f":"((Monthly!FA48-Monthly!FA36)*100)","v":15.000000000000036},{"$f":"((Monthly!FB48-Monthly!FB36)*100)","v":0},"--","--",{"$f":"((Monthly!FE48-Monthly!FE36)*100)","v":31.000000000000007},{"$f":"((Monthly!FF48-Monthly!FF36)*100)","v":34.999999999999964},"--",{"$f":"((Monthly!FH48-Monthly!FH36)*100)","v":23},{"$f":"((Monthly!FI48-Monthly!FI36)*100)","v":26.000000000000021},null,null,null,null,null,null,"--","--","--","--","--","--","--","--","--",null,null,null,null,null,{"$f":"(Monthly!GD48/Monthly!GD36)-1","v":0},"--","--","--","--","--","--","--","--"]
["1962-03-01",null,null,null,{"$f":"(Monthly!E49/Monthly!E37)-1","v":{"$error":"#DIV/0!"}},{"$f":"(Monthly!F49/Monthly!F37)-1","v":{"$error":"#DIV/0!"}},{"$f":"(Monthly!G49/Monthly!G37)-1","v":{"$error":"#DIV/0!"}},{"$f":"(Monthly!H49/Monthly!H37)-1","v":{"$error":"#DIV/0!"}},null,null,null,null,null,null,null,null,null,null,null,null,null,null,null,"--",{"$f":"(Monthly!Y49/Monthly!Y37)-1","v":4.8735131433137235E-2},null,null,null,null,null,null,null,null,null,null,null,null,null,{"$f":"(Monthly!AM49/Monthly!AM37)-1","v":0.13301077232061354},"--","--","--",{"$f":"Monthly!AQ49-Monthly!AQ37","v":11.5},"--","--",{"$f":"Monthly!AT49-Monthly!AT37","v":15.399999999999999},"--","--",{"$f":"Monthly!AW49-Monthly!AW37","v":18.600000000000001},{"$f":"Monthly!AX49-Monthly!AX37","v":4.8999999999999986},{"$f":"Monthly!AY49-Monthly!AY37","v":6.5999999999999943},{"$f":"Monthly!AZ49-Monthly!AZ37","v":11.500000000000007},{"$f":"Monthly!BA49-Monthly!BA37","v":14.899999999999999},"--","--",null,null,null,null,null,null,null,null,null,"--","--",null,null,null,null,null,{"$f":"(Monthly!BT49/Monthly!BT37)-1","v":3.4168456738707942E-2},null,null,null,{"$f":"(Monthly!BX49/Monthly!BX37)-1","v":9.9847560975609762E-2},{"$f":"(Monthly!BY49/Monthly!BY37)-1","v":0.1339999999999999},"--","--",{"$f":"Monthly!CB49-Monthly!CB37","v":-1.6561896019391069},{"$f":"Monthly!CC49-Monthly!CC37","v":-2.5661896019391044},"--","--",null,"--","--",null,"--",{"$f":"(Monthly!CK49/Monthly!CK37)-1","v":7.1709461022438026E-2},{"$f":"(Monthly!CL49/Monthly!CL37)-1","v":0.1920199501246882},{"$f":"(Monthly!CM49/Monthly!CM37)-1","v":2.2988505747126409E-2},{"$f":"(Monthly!CN49/Monthly!CN37)-1","v":6.0419913816814663E-2},{"$f":"(Monthly!CO49/Monthly!CO37)-1","v":0.10042865890998143},{"$f":"(Monthly!CP49/Monthly!CP37)-1","v":4.4215993582056301E-2},{"$f":"(Monthly!CQ49/Monthly!CQ37)-1","v":1.5913145308686483E-2},"--",null,null,null,null,null,null,null,{"$f":"(Monthly!CZ49/Monthly!CZ37)-1","v":1.1058981233244003E-2},{"$f":"(Monthly!DA49/Monthly!DA37)-1","v":1.2944983818770295E-2},null,null,null,null,null,null,"--",{"$f":"((Monthly!DI49-Monthly!DI37)*100)","v":-80.000000000000426},"--",{"$f":"((Monthly!DK49-Monthly!DK37)*100)","v":-130.00000000000006},{"$f":"Monthly!DL49-Monthly!DL37","v":649},null,null,null,{"$f":"Monthly!DP49-Monthly!DP37","v":1614},null,null,null,"--","--","--","--","--","--","--","--","--","--",null,null,null,null,null,null,null,null,null,null,null,null,null,{"$f":"(Monthly!EQ49/Monthly!EQ37)-1","v":-3.1446540880503138E-3},"--",{"$f":"(Monthly!ES49/Monthly!ES37)-1","v":3.0395136778116338E-3},null,null,null,null,null,{"$f":"((Monthly!EY49-Monthly!EY37)*100)","v":0},{"$f":"((Monthly!EZ49-Monthly!EZ37)*100)","v":83},{"$f":"((Monthly!FA49-Monthly!FA37)*100)","v":16.999999999999993},{"$f":"((Monthly!FB49-Monthly!FB37)*100)","v":2.0000000000000462},"--","--",{"$f":"((Monthly!FE49-Monthly!FE37)*100)","v":33.000000000000007},{"$f":"((Monthly!FF49-Monthly!FF37)*100)","v":18.000000000000014},"--",{"$f":"((Monthly!FH49-Monthly!FH37)*100)","v":8.0000000000000071},{"$f":"((Monthly!FI49-Monthly!FI37)*100)","v":18.999999999999993},null,null,null,null,null,null,"--","--","--","--","--","--","--","--","--",null,null,null,null,null,{"$f":"(Monthly!GD49/Monthly!GD37)-1","v":0},"--","--","--","--","--","--","--","--"]
["1962-04-01",null,null,null,{"$f":"(Monthly!E50/Monthly!E38)-1","v":{"$error":"#DIV/0!"}},{"$f":"(Monthly!F50/Monthly!F38)-1","v":{"$error":"#DIV/0!"}},{"$f":"(Monthly!G50/Monthly!G38)-1","v":{"$error":"#DIV/0!"}},{"$f":"(Monthly!H50/Monthly!H38)-1","v":{"$error":"#DIV/0!"}},null,null,null,null,null,null,null,null,null,null,null,null,null,null,null,"--",{"$f":"(Monthly!Y50/Monthly!Y38)-1","v":5.5127959121307191E-2},null,null,null,null,null,null,null,null,null,null,null,null,null,{"$f":"(Monthly!AM50/Monthly!AM38)-1","v":0.11256032679766403},"--","--","--",{"$f":"Monthly!AQ50-Monthly!AQ38","v":-2.5},"--","--",{"$f":"Monthly!AT50-Monthly!AT38","v":2.3999999999999986},"--","--",{"$f":"Monthly!AW50-Monthly!AW38","v":12.200000000000003},{"$f":"Monthly!AX50-Monthly!AX38","v":-10.400000000000006},{"$f":"Monthly!AY50-Monthly!AY38","v":1.8000000000000043},{"$f":"Monthly!AZ50-Monthly!AZ38","v":-4.3000000000000043},{"$f":"Monthly!BA50-Monthly!BA38","v":-0.10000000000000142},"--","--",null,null,null,null,null,null,null,null,null,"--","--",null,null,null,null,null,{"$f":"(Monthly!BT50/Monthly!BT38)-1","v":5.0276241057640281E-2},null,null,null,{"$f":"(Monthly!BX50/Monthly!BX38)-1","v":0.30703259005145789},{"$f":"(Monthly!BY50/Monthly!BY38)-1","v":0.2325349301397206},"--","--",{"$f":"Monthly!CB50-Monthly!CB38","v":-0.97218329492336686},{"$f":"Monthly!CC50-Monthly!CC38","v":-1.9521832949233655},"--","--",null,"--","--",null,"--",{"$f":"(Monthly!CK50/Monthly!CK38)-1","v":7.619487416301074E-2},{"$f":"(Monthly!CL50/Monthly!CL38)-1","v":0.17848410757946231},{"$f":"(Monthly!CM50/Monthly!CM38)-1","v":0.16837315130830488},{"$f":"(Monthly!CN50/Monthly!CN38)-1","v":6.2242751303393407E-2},{"$f":"(Monthly!CO50/Monthly!CO38)-1","v":0.10164333536214243},{"$f":"(Monthly!CP50/Monthly!CP38)-1","v":6.3103507396476965E-2},{"$f":"(Monthly!CQ50/Monthly!CQ38)-1","v":1.5749322374748687E-2},"--",null,null,null,null,null,null,null,{"$f":"(Monthly!CZ50/Monthly!CZ38)-1","v":1.3418316001341912E-2},{"$f":"(Monthly!DA50/Monthly!DA38)-1","v":1.2944983818770295E-2},null,null,null,null,null,null,"--",{"$f":"((Monthly!DI50-Monthly!DI38)*100)","v":-59.999999999999432},"--",{"$f":"((Monthly!DK50-Monthly!DK38)*100)","v":-140.00000000000003},{"$f":"Monthly!DL50-Monthly!DL38","v":699},null,null,null,{"$f":"Monthly!DP50-Monthly!DP38","v":1976},null,null,null,"--","--","--","--","--","--","--","--","--","--",null,null,null,null,null,null,null,null,null,null,null,null,null,{"$f":"(Monthly!EQ50/Monthly!EQ38)-1","v":0},"--",{"$f":"(Monthly!ES50/Monthly!ES38)-1","v":3.0395136778116338E-3},null,null,null,null,null,{"$f":"((Monthly!EY50-Monthly!EY38)*100)","v":0},{"$f":"((Monthly!EZ50-Monthly!EZ38)*100)","v":128.99999999999997},{"$f":"((Monthly!FA50-Monthly!FA38)*100)","v":8.0000000000000071},{"$f":"((Monthly!FB50-Monthly!FB38)*100)","v":0.99999999999997868},"--","--",{"$f":"((Monthly!FE50-Monthly!FE38)*100)","v":43.999999999999993},{"$f":"((Monthly!FF50-Monthly!FF38)*100)","v":11.000000000000032},"--",{"$f":"((Monthly!FH50-Monthly!FH38)*100)","v":3.0000000000000249},{"$f":"((Monthly!FI50-Monthly!FI38)*100)","v":6.0000000000000053},null,null,null,null,null,null,"--","--","--","--","--","--","--","--","--",null,null,null,null,null,{"$f":"(Monthly!GD50/Monthly!GD38)-1","v":0},"--","--","--","--","--","--","--","--"]
["1962-05-01",null,null,null,{"$f":"(Monthly!E51/Monthly!E39)-1","v":{"$error":"#DIV/0!"}},{"$f":"(Monthly!F51/Monthly!F39)-1","v":{"$error":"#DIV/0!"}},{"$f":"(Monthly!G51/Monthly!G39)-1","v":{"$error":"#DIV/0!"}},{"$f":"(Monthly!H51/Monthly!H39)-1","v":{"$error":"#DIV/0!"}},null,null,null,null,null,null,null,null,null,null,null,null,null,null,null,"--",{"$f":"(Monthly!Y51/Monthly!Y39)-1","v":6.4249469552050353E-2},null,null,null,null,null,null,null,null,null,null,null,null,null,{"$f":"(Monthly!AM51/Monthly!AM39)-1","v":9.4513358978769002E-2},"--","--","--",{"$f":"Monthly!AQ51-Monthly!AQ39","v":-6.6999999999999957},"--","--",{"$f":"Monthly!AT51-Monthly!AT39","v":-4},"--","--",{"$f":"Monthly!AW51-Monthly!AW39","v":6.2999999999999972},{"$f":"Monthly!AX51-Monthly!AX39","v":-11.199999999999996},{"$f":"Monthly!AY51-Monthly!AY39","v":-3},{"$f":"Monthly!AZ51-Monthly!AZ39","v":-11.299999999999997},{"$f":"Monthly!BA51-Monthly!BA39","v":-2.6999999999999957},"--","--",null,null,null,null,null,null,null,null,null,"--","--",null,null,null,null,null,{"$f":"(Monthly!BT51/Monthly!BT39)-1","v":6.4508709974181677E-2},null,null,null,{"$f":"(Monthly!BX51/Monthly!BX39)-1","v":0.20765472312703581},{"$f":"(Monthly!BY51/Monthly!BY39)-1","v":0.1119766309639727},"--","--",{"$f":"Monthly!CB51-Monthly!CB39","v":-1.172605015045856},{"$f":"Monthly!CC51-Monthly!CC39","v":-2.2926050150458561},"--","--",null,"--","--",null,"--",{"$f":"(Monthly!CK51/Monthly!CK39)-1","v":6.9399908382959064E-2},{"$f":"(Monthly!CL51/Monthly!CL39)-1","v":8.8516746411483327E-2},{"$f":"(Monthly!CM51/Monthly!CM39)-1","v":0.10021321961620466},{"$f":"(Monthly!CN51/Monthly!CN39)-1","v":5.4418372441337848E-2},{"$f":"(Monthly!CO51/Monthly!CO39)-1","v":0.10211480362537761},{"$f":"(Monthly!CP51/Monthly!CP39)-1","v":7.3468295787449955E-2},{"$f":"(Monthly!CQ51/Monthly!CQ39)-1","v":1.5664485282479212E-2},"--",null,null,null,null,null,null,null,{"$f":"(Monthly!CZ51/Monthly!CZ39)-1","v":1.3404825737265424E-2},{"$f":"(Monthly!DA51/Monthly!DA39)-1","v":1.6181229773462702E-2},null,null,null,null,null,null,"--",{"$f":"((Monthly!DI51-Monthly!DI39)*100)","v":-50},"--",{"$f":"((Monthly!DK51-Monthly!DK39)*100)","v":-159.99999999999997},{"$f":"Monthly!DL51-Monthly!DL39","v":581},null,null,null,{"$f":"Monthly!DP51-Monthly!DP39","v":1842},null,null,null,"--","--","--","--","--","--","--","--","--","--",null,null,null,null,null,null,null,null,null,null,null,null,null,{"$f":"(Monthly!EQ51/Monthly!EQ39)-1","v":0},"--",{"$f":"(Monthly!ES51/Monthly!ES39)-1","v":3.0395136778116338E-3},null,null,null,null,null,{"$f":"((Monthly!EY51-Monthly!EY39)*100)","v":0},{"$f":"((Monthly!EZ51-Monthly!EZ39)*100)","v":37.999999999999986},{"$f":"((Monthly!FA51-Monthly!FA39)*100)","v":1.0000000000000675},{"$f":"((Monthly!FB51-Monthly!FB39)*100)","v":-0.99999999999997868},"--","--",{"$f":"((Monthly!FE51-Monthly!FE39)*100)","v":39.999999999999993},{"$f":"((Monthly!FF51-Monthly!FF39)*100)","v":15.99999999999997},"--",{"$f":"((Monthly!FH51-Monthly!FH39)*100)","v":18.999999999999993},{"$f":"((Monthly!FI51-Monthly!FI39)*100)","v":16.000000000000014},null,null,null,null,null,null,"--","--","--","--","--","--","--","--","--",null,null,null,null,null,{"$f":"(Monthly!GD51/Monthly!GD39)-1","v":0},"--","--","--","--","--","--","--","--"]
["1962-06-01",null,null,null,{"$f":"(Monthly!E52/Monthly!E40)-1","v":{"$error":"#DIV/0!"}},{"$f":"(Monthly!F52/Monthly!F40)-1","v":{"$error":"#DIV/0!"}},{"$f":"(Monthly!G52/Monthly!G40)-1","v":{"$error":"#DIV/0!"}},{"$f":"(Monthly!H52/Monthly!H40)-1","v":{"$error":"#DIV/0!"}},null,null,null,null,null,null,null,null,null,null,null,null,null,null,null,"--",{"$f":"(Monthly!Y52/Monthly!Y40)-1","v":7.2788261538352828E-2},null,null,null,null,null,null,null,null,null,null,null,null,null,{"$f":"(Monthly!AM52/Monthly!AM40)-1","v":7.7098425017685823E-2},"--","--","--",{"$f":"Monthly!AQ52-Monthly!AQ40","v":-7.3000000000000043},"--","--",{"$f":"Monthly!AT52-Monthly!AT40","v":-3.5},"--","--",{"$f":"Monthly!AW52-Monthly!AW40","v":4.3999999999999986},{"$f":"Monthly!AX52-Monthly!AX40","v":-11.5},{"$f":"Monthly!AY52-Monthly!AY40","v":1.7000000000000028},{"$f":"Monthly!AZ52-Monthly!AZ40","v":-10.5},{"$f":"Monthly!BA52-Monthly!BA40","v":-6},"--","--",null,null,null,null,null,null,null,null,null,"--","--",null,null,null,null,null,{"$f":"(Monthly!BT52/Monthly!BT40)-1","v":7.302899349005032E-2},null,null,null,{"$f":"(Monthly!BX52/Monthly!BX40)-1","v":1.591895803183796E-2},{"$f":"(Monthly!BY52/Monthly!BY40)-1","v":7.8504672897196315E-2},"--","--",{"$f":"Monthly!CB52-Monthly!CB40","v":-0.93681822585480656},{"$f":"Monthly!CC52-Monthly!CC40","v":-1.9168182258548079},"--","--",null,"--","--",null,"--",{"$f":"(Monthly!CK52/Monthly!CK40)-1","v":6.1678004535147268E-2},{"$f":"(Monthly!CL52/Monthly!CL40)-1","v":5.7649667405764937E-2},{"$f":"(Monthly!CM52/Monthly!CM40)-1","v":-5.9347181008902128E-2},{"$f":"(Monthly!CN52/Monthly!CN40)-1","v":4.4460412269277327E-2},{"$f":"(Monthly!CO52/Monthly!CO40)-1","v":0.10239520958083825},{"$f":"(Monthly!CP52/Monthly!CP40)-1","v":7.9599169964928995E-2},{"$f":"(Monthly!CQ52/Monthly!CQ40)-1","v":1.5600811111353474E-2},"--",null,null,null,null,null,null,null,{"$f":"(Monthly!CZ52/Monthly!CZ40)-1","v":1.2399463806970434E-2},{"$f":"(Monthly!DA52/Monthly!DA40)-1","v":1.2903225806451646E-2},null,null,null,null,null,null,"--",{"$f":"((Monthly!DI52-Monthly!DI40)*100)","v":-90.000000000000568},"--",{"$f":"((Monthly!DK52-Monthly!DK40)*100)","v":-140.00000000000003},{"$f":"Monthly!DL52-Monthly!DL40","v":537},null,null,null,{"$f":"Monthly!DP52-Monthly!DP40","v":1667},null,null,null,"--","--","--","--","--","--","--","--","--","--",null,null,null,null,null,null,null,null,null,null,null,null,null,{"$f":"(Monthly!EQ52/Monthly!EQ40)-1","v":6.389776357827559E-3},"--",{"$f":"(Monthly!ES52/Monthly!ES40)-1","v":3.0395136778116338E-3},null,null,null,null,null,{"$f":"((Monthly!EY52-Monthly!EY40)*100)","v":0},{"$f":"((Monthly!EZ52-Monthly!EZ40)*100)","v":95.000000000000014},{"$f":"((Monthly!FA52-Monthly!FA40)*100)","v":-4.9999999999999822},{"$f":"((Monthly!FB52-Monthly!FB40)*100)","v":-1.0000000000000675},"--","--",{"$f":"((Monthly!FE52-Monthly!FE40)*100)","v":39.999999999999993},{"$f":"((Monthly!FF52-Monthly!FF40)*100)","v":-3.0000000000000249},"--",{"$f":"((Monthly!FH52-Monthly!FH40)*100)","v":-16.999999999999993},{"$f":"((Monthly!FI52-Monthly!FI40)*100)","v":3.0000000000000249},null,null,null,null,null,null,"--","--","--","--","--","--","--","--","--",null,null,null,null,null,{"$f":"(Monthly!GD52/Monthly!GD40)-1","v":0},"--","--","--","--","--","--","--","--"]
["1962-07-01",null,null,null,{"$f":"(Monthly!E53/Monthly!E41)-1","v":{"$error":"#DIV/0!"}},{"$f":"(Monthly!F53/Monthly!F41)-1","v":{"$error":"#DIV/0!"}},{"$f":"(Monthly!G53/Monthly!G41)-1","v":{"$error":"#DIV/0!"}},{"$f":"(Monthly!H53/Monthly!H41)-1","v":{"$error":"#DIV/0!"}},null,null,null,null,null,null,null,null,null,null,null,null,null,null,null,"--",{"$f":"(Monthly!Y53/Monthly!Y41)-1","v":7.3870454871034941E-2},null,null,null,null,null,null,null,null,null,null,null,null,null,{"$f":"(Monthly!AM53/Monthly!AM41)-1","v":7.5084458768578832E-2},"--","--","--",{"$f":"Monthly!AQ53-Monthly!AQ41","v":-7.2000000000000028},"--","--",{"$f":"Monthly!AT53-Monthly!AT41","v":-2.8999999999999986},"--","--",{"$f":"Monthly!AW53-Monthly!AW41","v":-1.5},{"$f":"Monthly!AX53-Monthly!AX41","v":-11.299999999999997},{"$f":"Monthly!AY53-Monthly!AY41","v":0.70000000000000284},{"$f":"Monthly!AZ53-Monthly!AZ41","v":-9.5999999999999943},{"$f":"Monthly!BA53-Monthly!BA41","v":-4.2999999999999972},"--","--",null,null,null,null,null,null,null,null,null,"--","--",null,null,null,null,null,{"$f":"(Monthly!BT53/Monthly!BT41)-1","v":7.9092466068764855E-2},null,null,null,{"$f":"(Monthly!BX53/Monthly!BX41)-1","v":8.6142322097378266E-2},{"$f":"(Monthly!BY53/Monthly!BY41)-1","v":9.787626962142193E-2},"--","--",{"$f":"Monthly!CB53-Monthly!CB41","v":-1.8494412624302266},{"$f":"Monthly!CC53-Monthly!CC41","v":-2.9694412624302302},"--","--",null,"--","--",null,"--",{"$f":"(Monthly!CK53/Monthly!CK41)-1","v":6.0230092488156917E-2},{"$f":"(Monthly!CL53/Monthly!CL41)-1","v":8.4033613445377853E-3},{"$f":"(Monthly!CM53/Monthly!CM41)-1","v":-2.0916334661354563E-2},{"$f":"(Monthly!CN53/Monthly!CN41)-1","v":4.488900823487274E-2},{"$f":"(Monthly!CO53/Monthly!CO41)-1","v":0.10482430017867772},{"$f":"(Monthly!CP53/Monthly!CP41)-1","v":8.4710908007152863E-2},{"$f":"(Monthly!CQ53/Monthly!CQ41)-1","v":1.5498854053818567E-2},"--",null,null,null,null,null,null,null,{"$f":"(Monthly!CZ53/Monthly!CZ41)-1","v":1.0026737967914423E-2},{"$f":"(Monthly!DA53/Monthly!DA41)-1","v":1.2903225806451646E-2},null,null,null,null,null,null,"--",{"$f":"((Monthly!DI53-Monthly!DI41)*100)","v":-79.999999999999716},"--",{"$f":"((Monthly!DK53-Monthly!DK41)*100)","v":-159.99999999999997},{"$f":"Monthly!DL53-Monthly!DL41","v":493},null,null,null,{"$f":"Monthly!DP53-Monthly!DP41","v":1623},null,null,null,"--","--","--","--","--","--","--","--","--","--",null,null,null,null,null,null,null,null,null,null,null,null,null,{"$f":"(Monthly!EQ53/Monthly!EQ41)-1","v":3.1746031746031633E-3},"--",{"$f":"(Monthly!ES53/Monthly!ES41)-1","v":3.0395136778116338E-3},null,null,null,null,null,{"$f":"((Monthly!EY53-Monthly!EY41)*100)","v":0},{"$f":"((Monthly!EZ53-Monthly!EZ41)*100)","v":154},{"$f":"((Monthly!FA53-Monthly!FA41)*100)","v":-7.0000000000000284},{"$f":"((Monthly!FB53-Monthly!FB41)*100)","v":-4.0000000000000036},"--","--",{"$f":"((Monthly!FE53-Monthly!FE41)*100)","v":67.999999999999972},{"$f":"((Monthly!FF53-Monthly!FF41)*100)","v":37.000000000000014},"--",{"$f":"((Monthly!FH53-Monthly!FH41)*100)","v":-4.0000000000000036},{"$f":"((Monthly!FI53-Monthly!FI41)*100)","v":8.9999999999999858},null,null,null,null,null,null,"--","--","--","--","--","--","--","--","--",null,null,null,null,null,{"$f":"(Monthly!GD53/Monthly!GD41)-1","v":0},"--","--","--","--","--","--","--","--"]
["1962-08-01",null,null,null,{"$f":"(Monthly!E54/Monthly!E42)-1","v":{"$error":"#DIV/0!"}},{"$f":"(Monthly!F54/Monthly!F42)-1","v":{"$error":"#DIV/0!"}},{"$f":"(Monthly!G54/Monthly!G42)-1","v":{"$error":"#DIV/0!"}},{"$f":"(Monthly!H54/Monthly!H42)-1","v":{"$error":"#DIV/0!"}},null,null,null,null,null,null,null,null,null,null,null,null,null,null,null,"--",{"$f":"(Monthly!Y54/Monthly!Y42)-1","v":7.6581170132710596E-2},null,null,null,null,null,null,null,null,null,null,null,null,null,{"$f":"(Monthly!AM54/Monthly!AM42)-1","v":6.6519943418327454E-2},"--","--","--",{"$f":"Monthly!AQ54-Monthly!AQ42","v":-11.200000000000003},"--","--",{"$f":"Monthly!AT54-Monthly!AT42","v":-11.299999999999997},"--","--",{"$f":"Monthly!AW54-Monthly!AW42","v":-9.2999999999999972},{"$f":"Monthly!AX54-Monthly!AX42","v":-10},{"$f":"Monthly!AY54-Monthly!AY42","v":-4.5},{"$f":"Monthly!AZ54-Monthly!AZ42","v":-15.900000000000006},{"$f":"Monthly!BA54-Monthly!BA42","v":-6.8999999999999986},"--","--",null,null,null,null,null,null,null,null,null,"--","--",null,null,null,null,null,{"$f":"(Monthly!BT54/Monthly!BT42)-1","v":8.4341772895494271E-2},null,null,null,{"$f":"(Monthly!BX54/Monthly!BX42)-1","v":0.15625},{"$f":"(Monthly!BY54/Monthly!BY42)-1","v":3.5375323554788674E-2},"--","--",{"$f":"Monthly!CB54-Monthly!CB42","v":-0.87888380611274997},{"$f":"Monthly!CC54-Monthly!CC42","v":-1.5088838061127507},"--","--",null,"--","--",null,"--",{"$f":"(Monthly!CK54/Monthly!CK42)-1","v":6.1964849031095115E-2},{"$f":"(Monthly!CL54/Monthly!CL42)-1","v":2.1598272138228847E-2},{"$f":"(Monthly!CM54/Monthly!CM42)-1","v":8.221993833504615E-2},{"$f":"(Monthly!CN54/Monthly!CN42)-1","v":4.5883880209499184E-2},{"$f":"(Monthly!CO54/Monthly!CO42)-1","v":0.10585452395032524},{"$f":"(Monthly!CP54/Monthly!CP42)-1","v":8.9667516228276289E-2},{"$f":"(Monthly!CQ54/Monthly!CQ42)-1","v":1.5394818382456821E-2},"--",null,null,null,null,null,null,null,{"$f":"(Monthly!CZ54/Monthly!CZ42)-1","v":1.1356045424181671E-2},{"$f":"(Monthly!DA54/Monthly!DA42)-1","v":1.2861736334405016E-2},null,null,null,null,null,null,"--",{"$f":"((Monthly!DI54-Monthly!DI42)*100)","v":-29.999999999999716},"--",{"$f":"((Monthly!DK54-Monthly!DK42)*100)","v":-89.999999999999943},{"$f":"Monthly!DL54-Monthly!DL42","v":424},null,null,null,{"$f":"Monthly!DP54-Monthly!DP42","v":1540},null,null,null,"--","--","--","--","--","--","--","--","--","--",null,null,null,null,null,null,null,null,null,null,null,null,null,{"$f":"(Monthly!EQ54/Monthly!EQ42)-1","v":3.1746031746031633E-3},"--",{"$f":"(Monthly!ES54/Monthly!ES42)-1","v":3.0395136778116338E-3},null,null,null,null,null,{"$f":"((Monthly!EY54-Monthly!EY42)*100)","v":0},{"$f":"((Monthly!EZ54-Monthly!EZ42)*100)","v":93.000000000000014},{"$f":"((Monthly!FA54-Monthly!FA42)*100)","v":-10.000000000000053},{"$f":"((Monthly!FB54-Monthly!FB42)*100)","v":-5.0000000000000711},"--","--",{"$f":"((Monthly!FE54-Monthly!FE42)*100)","v":42.999999999999972},{"$f":"((Monthly!FF54-Monthly!FF42)*100)","v":14.000000000000012},"--",{"$f":"((Monthly!FH54-Monthly!FH42)*100)","v":-25},{"$f":"((Monthly!FI54-Monthly!FI42)*100)","v":-6.0000000000000053},null,null,null,null,null,null,"--","--","--","--","--","--","--","--","--",null,null,null,null,null,{"$f":"(Monthly!GD54/Monthly!GD42)-1","v":0},"--","--","--","--","--","--","--","--"]
["1962-09-01",null,null,null,{"$f":"(Monthly!E55/Monthly!E43)-1","v":{"$error":"#DIV/0!"}},{"$f":"(Monthly!F55/Monthly!F43)-1","v":{"$error":"#DIV/0!"}},{"$f":"(Monthly!G55/Monthly!G43)-1","v":{"$error":"#DIV/0!"}},{"$f":"(Monthly!H55/Monthly!H43)-1","v":{"$error":"#DIV/0!"}},null,null,null,null,null,null,null,null,null,null,null,null,null,null,null,"--",{"$f":"(Monthly!Y55/Monthly!Y43)-1","v":8.4237573853128467E-2},null,null,null,null,null,null,null,null,null,null,null,null,null,{"$f":"(Monthly!AM55/Monthly!AM43)-1","v":7.4490963537651167E-2},"--","--","--",{"$f":"Monthly!AQ55-Monthly!AQ43","v":-13},"--","--",{"$f":"Monthly!AT55-Monthly!AT43","v":-11.399999999999999},"--","--",{"$f":"Monthly!AW55-Monthly!AW43","v":-13.799999999999997},{"$f":"Monthly!AX55-Monthly!AX43","v":-16.5},{"$f":"Monthly!AY55-Monthly!AY43","v":-8.5},{"$f":"Monthly!AZ55-Monthly!AZ43","v":-14.399999999999999},{"$f":"Monthly!BA55-Monthly!BA43","v":-5.6000000000000014},"--","--",null,null,null,null,null,null,null,null,null,"--","--",null,null,null,null,null,{"$f":"(Monthly!BT55/Monthly!BT43)-1","v":9.1705143663794342E-2},null,null,null,{"$f":"(Monthly!BX55/Monthly!BX43)-1","v":-7.3477956613016149E-2},{"$f":"(Monthly!BY55/Monthly!BY43)-1","v":0.11384335154826952},"--","--",{"$f":"Monthly!CB55-Monthly!CB43","v":-0.88193274859137372},{"$f":"Monthly!CC55-Monthly!CC43","v":-1.6519327485913742},"--","--",null,"--","--",null,"--",{"$f":"(Monthly!CK55/Monthly!CK43)-1","v":6.4958417621937548E-2},{"$f":"(Monthly!CL55/Monthly!CL43)-1","v":-2.9017857142857095E-2},{"$f":"(Monthly!CM55/Monthly!CM43)-1","v":-0.17680608365019013},{"$f":"(Monthly!CN55/Monthly!CN43)-1","v":4.5076469009927678E-2},{"$f":"(Monthly!CO55/Monthly!CO43)-1","v":0.107981220657277},{"$f":"(Monthly!CP55/Monthly!CP43)-1","v":9.1243711309049624E-2},{"$f":"(Monthly!CQ55/Monthly!CQ43)-1","v":1.5278735148689604E-2},"--",null,null,null,null,null,null,null,{"$f":"(Monthly!CZ55/Monthly!CZ43)-1","v":1.4676450967311627E-2},{"$f":"(Monthly!DA55/Monthly!DA43)-1","v":1.2861736334405016E-2},null,null,null,null,null,null,"--",{"$f":"((Monthly!DI55-Monthly!DI43)*100)","v":0},"--",{"$f":"((Monthly!DK55-Monthly!DK43)*100)","v":-110.00000000000006},{"$f":"Monthly!DL55-Monthly!DL43","v":488},null,null,null,{"$f":"Monthly!DP55-Monthly!DP43","v":1589},null,null,null,"--","--","--","--","--","--","--","--","--","--",null,null,null,null,null,null,null,null,null,null,null,null,null,{"$f":"(Monthly!EQ55/Monthly!EQ43)-1","v":1.2698412698412653E-2},"--",{"$f":"(Monthly!ES55/Monthly!ES43)-1","v":3.0395136778116338E-3},null,null,null,null,null,{"$f":"((Monthly!EY55-Monthly!EY43)*100)","v":0},{"$f":"((Monthly!EZ55-Monthly!EZ43)*100)","v":102},{"$f":"((Monthly!FA55-Monthly!FA43)*100)","v":-12.999999999999989},{"$f":"((Monthly!FB55-Monthly!FB43)*100)","v":-8.9999999999999858},"--","--",{"$f":"((Monthly!FE55-Monthly!FE43)*100)","v":50},{"$f":"((Monthly!FF55-Monthly!FF43)*100)","v":0},"--",{"$f":"((Monthly!FH55-Monthly!FH43)*100)","v":-19.999999999999972},{"$f":"((Monthly!FI55-Monthly!FI43)*100)","v":0},null,null,null,null,null,null,"--","--","--","--","--","--","--","--","--",null,null,null,null,null,{"$f":"(Monthly!GD55/Monthly!GD43)-1","v":0},"--","--","--","--","--","--","--","--"]
["1962-10-01",null,null,null,{"$f":"(Monthly!E56/Monthly!E44)-1","v":{"$error":"#DIV/0!"}},{"$f":"(Monthly!F56/Monthly!F44)-1","v":{"$error":"#DIV/0!"}},{"$f":"(Monthly!G56/Monthly!G44)-1","v":{"$error":"#DIV/0!"}},{"$f":"(Monthly!H56/Monthly!H44)-1","v":{"$error":"#DIV/0!"}},null,null,null,null,null,null,null,null,null,null,null,null,null,null,null,"--",{"$f":"(Monthly!Y56/Monthly!Y44)-1","v":9.0067430161618223E-2},null,null,null,null,null,null,null,null,null,null,null,null,null,{"$f":"(Monthly!AM56/Monthly!AM44)-1","v":5.5371973213788062E-2},"--","--","--",{"$f":"Monthly!AQ56-Monthly!AQ44","v":-11},"--","--",{"$f":"Monthly!AT56-Monthly!AT44","v":-8.3000000000000043},"--","--",{"$f":"Monthly!AW56-Monthly!AW44","v":-10.5},{"$f":"Monthly!AX56-Monthly!AX44","v":-14.699999999999996},{"$f":"Monthly!AY56-Monthly!AY44","v":-11.600000000000001},{"$f":"Monthly!AZ56-Monthly!AZ44","v":-12.299999999999997},{"$f":"Monthly!BA56-Monthly!BA44","v":-5.6999999999999957},"--","--",null,null,null,null,null,null,null,null,null,"--","--",null,null,null,null,null,{"$f":"(Monthly!BT56/Monthly!BT44)-1","v":9.5086397240561116E-2},null,null,null,{"$f":"(Monthly!BX56/Monthly!BX44)-1","v":8.3392226148409909E-2},{"$f":"(Monthly!BY56/Monthly!BY44)-1","v":5.1647373107747141E-2},"--","--",{"$f":"Monthly!CB56-Monthly!CB44","v":-0.53888642848734936},{"$f":"Monthly!CC56-Monthly!CC44","v":-1.308886428487348},"--","--",null,"--","--",null,"--",{"$f":"(Monthly!CK56/Monthly!CK44)-1","v":5.9006902694277441E-2},{"$f":"(Monthly!CL56/Monthly!CL44)-1","v":8.565310492505418E-3},{"$f":"(Monthly!CM56/Monthly!CM44)-1","v":-3.0211480362537513E-3},{"$f":"(Monthly!CN56/Monthly!CN44)-1","v":3.8996104815864241E-2},{"$f":"(Monthly!CO56/Monthly!CO44)-1","v":0.10962099125364433},{"$f":"(Monthly!CP56/Monthly!CP44)-1","v":9.5992033774702223E-2},{"$f":"(Monthly!CQ56/Monthly!CQ44)-1","v":1.5168758535475169E-2},"--",null,null,null,null,null,null,null,{"$f":"(Monthly!CZ56/Monthly!CZ44)-1","v":1.3342228152101399E-2},{"$f":"(Monthly!DA56/Monthly!DA44)-1","v":1.2861736334405016E-2},null,null,null,null,null,null,"--",{"$f":"((Monthly!DI56-Monthly!DI44)*100)","v":-39.999999999999858},"--",{"$f":"((Monthly!DK56-Monthly!DK44)*100)","v":-109.99999999999997},{"$f":"Monthly!DL56-Monthly!DL44","v":426},null,null,null,{"$f":"Monthly!DP56-Monthly!DP44","v":1519},null,null,null,"--","--","--","--","--","--","--","--","--","--",null,null,null,null,null,null,null,null,null,null,null,null,null,{"$f":"(Monthly!EQ56/Monthly!EQ44)-1","v":6.3492063492063266E-3},"--",{"$f":"(Monthly!ES56/Monthly!ES44)-1","v":3.0395136778116338E-3},null,null,null,null,null,{"$f":"((Monthly!EY56-Monthly!EY44)*100)","v":0},{"$f":"((Monthly!EZ56-Monthly!EZ44)*100)","v":64.000000000000014},{"$f":"((Monthly!FA56-Monthly!FA44)*100)","v":-13.999999999999968},{"$f":"((Monthly!FB56-Monthly!FB44)*100)","v":-13.999999999999968},"--","--",{"$f":"((Monthly!FE56-Monthly!FE44)*100)","v":44.000000000000043},{"$f":"((Monthly!FF56-Monthly!FF44)*100)","v":-6.999999999999984},"--",{"$f":"((Monthly!FH56-Monthly!FH44)*100)","v":-15.99999999999997},{"$f":"((Monthly!FI56-Monthly!FI44)*100)","v":1.0000000000000231},null,null,null,null,null,null,"--","--","--","--","--","--","--","--","--",null,null,null,null,null,{"$f":"(Monthly!GD56/Monthly!GD44)-1","v":0},"--","--","--","--","--","--","--","--"]
["1962-11-01",null,null,null,{"$f":"(Monthly!E57/Monthly!E45)-1","v":{"$error":"#DIV/0!"}},{"$f":"(Monthly!F57/Monthly!F45)-1","v":{"$error":"#DIV/0!"}},{"$f":"(Monthly!G57/Monthly!G45)-1","v":{"$error":"#DIV/0!"}},{"$f":"(Monthly!H57/Monthly!H45)-1","v":{"$error":"#DIV/0!"}},null,null,null,null,null,null,null,null,null,null,null,null,null,null,null,"--",{"$f":"(Monthly!Y57/Monthly!Y45)-1","v":9.4267359396481343E-2},null,null,null,null,null,null,null,null,null,null,null,null,null,{"$f":"(Monthly!AM57/Monthly!AM45)-1","v":4.3619740618188185E-2},"--","--","--",{"$f":"Monthly!AQ57-Monthly!AQ45","v":-5.2000000000000028},"--","--",{"$f":"Monthly!AT57-Monthly!AT45","v":-10.299999999999997},"--","--",{"$f":"Monthly!AW57-Monthly!AW45","v":-3.1000000000000014},{"$f":"Monthly!AX57-Monthly!AX45","v":-7.2999999999999972},{"$f":"Monthly!AY57-Monthly!AY45","v":-4.7999999999999972},{"$f":"Monthly!AZ57-Monthly!AZ45","v":-1.3999999999999986},{"$f":"Monthly!BA57-Monthly!BA45","v":-2.3999999999999986},"--","--",null,null,null,null,null,null,null,null,null,"--","--",null,null,null,null,null,{"$f":"(Monthly!BT57/Monthly!BT45)-1","v":9.6985726463966415E-2},null,null,null,{"$f":"(Monthly!BX57/Monthly!BX45)-1","v":0.17111913357400721},{"$f":"(Monthly!BY57/Monthly!BY45)-1","v":7.2916666666666741E-2},"--","--",{"$f":"Monthly!CB57-Monthly!CB45","v":0.2626311429468684},{"$f":"Monthly!CC57-Monthly!CC45","v":-1.7368857053131848E-2},"--","--",null,"--","--",null,"--",{"$f":"(Monthly!CK57/Monthly!CK45)-1","v":5.4709905140083892E-2},{"$f":"(Monthly!CL57/Monthly!CL45)-1","v":-7.0063694267516019E-2},{"$f":"(Monthly!CM57/Monthly!CM45)-1","v":6.0903732809430178E-2},{"$f":"(Monthly!CN57/Monthly!CN45)-1","v":3.3060025430788897E-2},{"$f":"(Monthly!CO57/Monthly!CO45)-1","v":0.10938399539435806},{"$f":"(Monthly!CP57/Monthly!CP45)-1","v":9.5448781585889764E-2},{"$f":"(Monthly!CQ57/Monthly!CQ45)-1","v":1.5104203308745845E-2},"--",null,null,null,null,null,null,null,{"$f":"(Monthly!CZ57/Monthly!CZ45)-1","v":1.3342228152101399E-2},{"$f":"(Monthly!DA57/Monthly!DA45)-1","v":9.6153846153845812E-3},null,null,null,null,null,null,"--",{"$f":"((Monthly!DI57-Monthly!DI45)*100)","v":-60.000000000000142},"--",{"$f":"((Monthly!DK57-Monthly!DK45)*100)","v":-39.999999999999943},{"$f":"Monthly!DL57-Monthly!DL45","v":271},null,null,null,{"$f":"Monthly!DP57-Monthly!DP45","v":1313},null,null,null,"--","--","--","--","--","--","--","--","--","--",null,null,null,null,null,null,null,null,null,null,null,null,null,{"$f":"(Monthly!EQ57/Monthly!EQ45)-1","v":6.3492063492063266E-3},"--",{"$f":"(Monthly!ES57/Monthly!ES45)-1","v":3.0395136778116338E-3},null,null,null,null,null,{"$f":"((Monthly!EY57-Monthly!EY45)*100)","v":0},{"$f":"((Monthly!EZ57-Monthly!EZ45)*100)","v":33.000000000000007},{"$f":"((Monthly!FA57-Monthly!FA45)*100)","v":-13.999999999999968},{"$f":"((Monthly!FB57-Monthly!FB45)*100)","v":-15.000000000000036},"--","--",{"$f":"((Monthly!FE57-Monthly!FE45)*100)","v":35.000000000000007},{"$f":"((Monthly!FF57-Monthly!FF45)*100)","v":-6.999999999999984},"--",{"$f":"((Monthly!FH57-Monthly!FH45)*100)","v":-21.999999999999975},{"$f":"((Monthly!FI57-Monthly!FI45)*100)","v":-2.0000000000000018},null,null,null,null,null,null,"--","--","--","--","--","--","--","--","--",null,null,null,null,null,{"$f":"(Monthly!GD57/Monthly!GD45)-1","v":0},"--","--","--","--","--","--","--","--"]
["1962-12-01",null,null,null,{"$f":"(Monthly!E58/Monthly!E46)-1","v":{"$error":"#DIV/0!"}},{"$f":"(Monthly!F58/Monthly!F46)-1","v":{"$error":"#DIV/0!"}},{"$f":"(Monthly!G58/Monthly!G46)-1","v":{"$error":"#DIV/0!"}},{"$f":"(Monthly!H58/Monthly!H46)-1","v":{"$error":"#DIV/0!"}},null,null,null,null,null,null,null,null,null,null,null,null,null,null,null,"--",{"$f":"(Monthly!Y58/Monthly!Y46)-1","v":8.3057646513560623E-2},null,null,null,null,null,null,null,null,null,null,null,null,null,{"$f":"(Monthly!AM58/Monthly!AM46)-1","v":3.4594800480386212E-2},"--","--","--",{"$f":"Monthly!AQ58-Monthly!AQ46","v":-7},"--","--",{"$f":"Monthly!AT58-Monthly!AT46","v":-4},"--","--",{"$f":"Monthly!AW58-Monthly!AW46","v":-6},{"$f":"Monthly!AX58-Monthly!AX46","v":-13.700000000000003},{"$f":"Monthly!AY58-Monthly!AY46","v":-9},{"$f":"Monthly!AZ58-Monthly!AZ46","v":-2.7999999999999972},{"$f":"Monthly!BA58-Monthly!BA46","v":-5.6999999999999957},"--","--",null,null,null,null,null,null,null,null,null,"--","--",null,null,null,null,null,{"$f":"(Monthly!BT58/Monthly!BT46)-1","v":9.4937327746370315E-2},null,null,null,{"$f":"(Monthly!BX58/Monthly!BX46)-1","v":0.14578754578754571},{"$f":"(Monthly!BY58/Monthly!BY46)-1","v":6.4599483204134334E-2},"--","--",{"$f":"Monthly!CB58-Monthly!CB46","v":6.2006559146488449E-2},{"$f":"Monthly!CC58-Monthly!CC46","v":-0.28799344085351208},"--","--",null,"--","--",null,"--",{"$f":"(Monthly!CK58/Monthly!CK46)-1","v":5.2850877192982537E-2},{"$f":"(Monthly!CL58/Monthly!CL46)-1","v":-7.4468085106383031E-2},{"$f":"(Monthly!CM58/Monthly!CM46)-1","v":-6.9651741293532687E-3},{"$f":"(Monthly!CN58/Monthly!CN46)-1","v":3.1737727787950032E-2},{"$f":"(Monthly!CO58/Monthly!CO46)-1","v":0.10997150997150995},{"$f":"(Monthly!CP58/Monthly!CP46)-1","v":9.4431191113038881E-2},{"$f":"(Monthly!CQ58/Monthly!CQ46)-1","v":1.5025727504648145E-2},"--",null,null,null,null,null,null,null,{"$f":"(Monthly!CZ58/Monthly!CZ46)-1","v":1.2329223592135952E-2},{"$f":"(Monthly!DA58/Monthly!DA46)-1","v":1.2820512820512997E-2},null,null,null,null,null,null,"--",{"$f":"((Monthly!DI58-Monthly!DI46)*100)","v":-39.999999999999858},"--",{"$f":"((Monthly!DK58-Monthly!DK46)*100)","v":-50},{"$f":"Monthly!DL58-Monthly!DL46","v":211},null,null,null,{"$f":"Monthly!DP58-Monthly!DP46","v":1157},null,null,null,"--","--","--","--","--","--","--","--","--","--",null,null,null,null,null,null,null,null,null,null,null,null,null,{"$f":"(Monthly!EQ58/Monthly!EQ46)-1","v":0},"--",{"$f":"(Monthly!ES58/Monthly!ES46)-1","v":3.0395136778116338E-3},null,null,null,null,null,{"$f":"((Monthly!EY58-Monthly!EY46)*100)","v":0},{"$f":"((Monthly!EZ58-Monthly!EZ46)*100)","v":60.000000000000007},{"$f":"((Monthly!FA58-Monthly!FA46)*100)","v":-17.999999999999972},{"$f":"((Monthly!FB58-Monthly!FB46)*100)","v":-17.999999999999972},"--","--",{"$f":"((Monthly!FE58-Monthly!FE46)*100)","v":27},{"$f":"((Monthly!FF58-Monthly!FF46)*100)","v":-17.000000000000036},"--",{"$f":"((Monthly!FH58-Monthly!FH46)*100)","v":-35.000000000000007},{"$f":"((Monthly!FI58-Monthly!FI46)*100)","v":-19.999999999999972},null,null,null,null,null,null,"--","--","--","--","--","--","--","--","--",null,null,null,null,null,{"$f":"(Monthly!GD58/Monthly!GD46)-1","v":0},"--","--","--","--","--","--","--","--"]
["1963-01-01",null,null,null,{"$f":"(Monthly!E59/Monthly!E47)-1","v":{"$error":"#DIV/0!"}},{"$f":"(Monthly!F59/Monthly!F47)-1","v":{"$error":"#DIV/0!"}},{"$f":"(Monthly!G59/Monthly!G47)-1","v":{"$error":"#DIV/0!"}},{"$f":"(Monthly!H59/Monthly!H47)-1","v":{"$error":"#DIV/0!"}},null,null,null,null,null,null,null,null,null,null,null,null,null,null,null,"--",{"$f":"(Monthly!Y59/Monthly!Y47)-1","v":8.3596110518741495E-2},null,null,null,null,null,null,null,null,null,null,null,null,null,{"$f":"(Monthly!AM59/Monthly!AM47)-1","v":5.1252999200213312E-2},"--","--","--",{"$f":"Monthly!AQ59-Monthly!AQ47","v":-5.6999999999999957},"--","--",{"$f":"Monthly!AT59-Monthly!AT47","v":-7.7999999999999972},"--","--",{"$f":"Monthly!AW59-Monthly!AW47","v":-11.600000000000001},{"$f":"Monthly!AX59-Monthly!AX47","v":1.5},{"$f":"Monthly!AY59-Monthly!AY47","v":-8.6000000000000014},{"$f":"Monthly!AZ59-Monthly!AZ47","v":-9.9000000000000057},{"$f":"Monthly!BA59-Monthly!BA47","v":-6.7000000000000028},"--","--",null,null,null,null,null,null,null,null,null,"--","--",null,null,null,null,null,{"$f":"(Monthly!BT59/Monthly!BT47)-1","v":9.6329369708237467E-2},null,null,null,{"$f":"(Monthly!BX59/Monthly!BX47)-1","v":-8.5966201322556945E-2},{"$f":"(Monthly!BY59/Monthly!BY47)-1","v":0.11229946524064172},"--","--",{"$f":"Monthly!CB59-Monthly!CB47","v":0.56131663590638414},{"$f":"Monthly!CC59-Monthly!CC47","v":0.49131663590638475},"--","--",null,"--","--",null,"--",{"$f":"(Monthly!CK59/Monthly!CK47)-1","v":6.1143984220907166E-2},{"$f":"(Monthly!CL59/Monthly!CL47)-1","v":1.9650655021834273E-2},{"$f":"(Monthly!CM59/Monthly!CM47)-1","v":-0.16837782340862428},{"$f":"(Monthly!CN59/Monthly!CN47)-1","v":4.2016439314445764E-2},{"$f":"(Monthly!CO59/Monthly!CO47)-1","v":0.11155152887882225},{"$f":"(Monthly!CP59/Monthly!CP47)-1","v":0.1023348340151693},{"$f":"(Monthly!CQ59/Monthly!CQ47)-1","v":1.4958810636896525E-2},"--",null,null,null,null,null,null,null,{"$f":"(Monthly!CZ59/Monthly!CZ47)-1","v":1.3315579227696439E-2},{"$f":"(Monthly!DA59/Monthly!DA47)-1","v":9.6153846153845812E-3},null,null,null,null,null,null,"--",{"$f":"((Monthly!DI59-Monthly!DI47)*100)","v":-19.999999999999574},"--",{"$f":"((Monthly!DK59-Monthly!DK47)*100)","v":-9.9999999999999645},{"$f":"Monthly!DL59-Monthly!DL47","v":223},null,null,null,{"$f":"Monthly!DP59-Monthly!DP47","v":1225},null,null,null,"--","--","--","--","--","--","--","--","--","--",null,null,null,null,null,null,null,null,null,null,null,null,null,{"$f":"(Monthly!EQ59/Monthly!EQ47)-1","v":-3.154574132492094E-3},"--",{"$f":"(Monthly!ES59/Monthly!ES47)-1","v":0},null,null,null,null,null,{"$f":"((Monthly!EY59-Monthly!EY47)*100)","v":0},{"$f":"((Monthly!EZ59-Monthly!EZ47)*100)","v":77},{"$f":"((Monthly!FA59-Monthly!FA47)*100)","v":-20.999999999999996},{"$f":"((Monthly!FB59-Monthly!FB47)*100)","v":-16.999999999999993},"--","--",{"$f":"((Monthly!FE59-Monthly!FE47)*100)","v":18.999999999999993},{"$f":"((Monthly!FF59-Monthly!FF47)*100)","v":-23.999999999999979},"--",{"$f":"((Monthly!FH59-Monthly!FH47)*100)","v":-35.999999999999986},{"$f":"((Monthly!FI59-Monthly!FI47)*100)","v":-25},null,null,null,null,null,null,"--","--","--","--","--","--","--","--","--",null,null,null,null,null,{"$f":"(Monthly!GD59/Monthly!GD47)-1","v":0},"--","--","--","--","--","--","--","--"]
["1963-02-01",null,null,null,{"$f":"(Monthly!E60/Monthly!E48)-1","v":{"$error":"#DIV/0!"}},{"$f":"(Monthly!F60/Monthly!F48)-1","v":{"$error":"#DIV/0!"}},{"$f":"(Monthly!G60/Monthly!G48)-1","v":{"$error":"#DIV/0!"}},{"$f":"(Monthly!H60/Monthly!H48)-1","v":{"$error":"#DIV/0!"}},null,null,null,null,null,null,null,null,null,null,null,null,null,null,null,"--",{"$f":"(Monthly!Y60/Monthly!Y48)-1","v":9.0282843387555545E-2},null,null,null,null,null,null,null,null,null,null,null,null,null,{"$f":"(Monthly!AM60/Monthly!AM48)-1","v":4.6138713161549161E-2},"--","--","--",{"$f":"Monthly!AQ60-Monthly!AQ48","v":-6},"--","--",{"$f":"Monthly!AT60-Monthly!AT48","v":-10.299999999999997},"--","--",{"$f":"Monthly!AW60-Monthly!AW48","v":-10.300000000000004},{"$f":"Monthly!AX60-Monthly!AX48","v":-1.3999999999999986},{"$f":"Monthly!AY60-Monthly!AY48","v":-3},{"$f":"Monthly!AZ60-Monthly!AZ48","v":-7},{"$f":"Monthly!BA60-Monthly!BA48","v":-5.2000000000000028},"--","--",null,null,null,null,null,null,null,null,null,"--","--",null,null,null,null,null,{"$f":"(Monthly!BT60/Monthly!BT48)-1","v":0.10195000374383612},null,null,null,{"$f":"(Monthly!BX60/Monthly!BX48)-1","v":0.13928012519561817},{"$f":"(Monthly!BY60/Monthly!BY48)-1","v":1.5075376884422065E-2},"--","--",{"$f":"Monthly!CB60-Monthly!CB48","v":0.72400189475052557},{"$f":"Monthly!CC60-Monthly!CC48","v":1.0040018947505267},"--","--",null,"--","--",null,"--",{"$f":"(Monthly!CK60/Monthly!CK48)-1","v":4.8738033072236675E-2},{"$f":"(Monthly!CL60/Monthly!CL48)-1","v":-5.4054054054054057E-2},{"$f":"(Monthly!CM60/Monthly!CM48)-1","v":3.2769556025370017E-2},{"$f":"(Monthly!CN60/Monthly!CN48)-1","v":3.0673512008353665E-2},{"$f":"(Monthly!CO60/Monthly!CO48)-1","v":0.11292134831460676},{"$f":"(Monthly!CP60/Monthly!CP48)-1","v":0.10754082030127532},{"$f":"(Monthly!CQ60/Monthly!CQ48)-1","v":1.4887949442443427E-2},"--",null,null,null,null,null,null,null,{"$f":"(Monthly!CZ60/Monthly!CZ48)-1","v":1.2288276320159497E-2},{"$f":"(Monthly!DA60/Monthly!DA48)-1","v":1.2820512820512997E-2},null,null,null,null,null,null,"--",{"$f":"((Monthly!DI60-Monthly!DI48)*100)","v":-39.999999999999858},"--",{"$f":"((Monthly!DK60-Monthly!DK48)*100)","v":40.000000000000036},{"$f":"Monthly!DL60-Monthly!DL48","v":131},null,null,null,{"$f":"Monthly!DP60-Monthly!DP48","v":1043},null,null,null,"--","--","--","--","--","--","--","--","--","--",null,null,null,null,null,null,null,null,null,null,null,null,null,{"$f":"(Monthly!EQ60/Monthly!EQ48)-1","v":-6.3091482649841879E-3},"--",{"$f":"(Monthly!ES60/Monthly!ES48)-1","v":0},null,null,null,null,null,{"$f":"((Monthly!EY60-Monthly!EY48)*100)","v":0},{"$f":"((Monthly!EZ60-Monthly!EZ48)*100)","v":62.999999999999986},{"$f":"((Monthly!FA60-Monthly!FA48)*100)","v":-22.999999999999954},{"$f":"((Monthly!FB60-Monthly!FB48)*100)","v":-18.00000000000006},"--","--",{"$f":"((Monthly!FE60-Monthly!FE48)*100)","v":18.999999999999993},{"$f":"((Monthly!FF60-Monthly!FF48)*100)","v":-27},"--",{"$f":"((Monthly!FH60-Monthly!FH48)*100)","v":-23},{"$f":"((Monthly!FI60-Monthly!FI48)*100)","v":-12.000000000000011},null,null,null,null,null,null,"--","--","--","--","--","--","--","--","--",null,null,null,null,null,{"$f":"(Monthly!GD60/Monthly!GD48)-1","v":0},"--","--","--","--","--","--","--","--"]
["1963-03-01",null,null,null,{"$f":"(Monthly!E61/Monthly!E49)-1","v":{"$error":"#DIV/0!"}},{"$f":"(Monthly!F61/Monthly!F49)-1","v":{"$error":"#DIV/0!"}},{"$f":"(Monthly!G61/Monthly!G49)-1","v":{"$error":"#DIV/0!"}},{"$f":"(Monthly!H61/Monthly!H49)-1","v":{"$error":"#DIV/0!"}},null,null,null,null,null,null,null,null,null,null,null,null,null,null,null,"--",{"$f":"(Monthly!Y61/Monthly!Y49)-1","v":8.781393703572693E-2},null,null,null,null,null,null,null,null,null,null,null,null,null,{"$f":"(Monthly!AM61/Monthly!AM49)-1","v":4.6959110773469037E-2},"--","--","--",{"$f":"Monthly!AQ61-Monthly!AQ49","v":-5.8999999999999986},"--","--",{"$f":"Monthly!AT61-Monthly!AT49","v":-5.2000000000000028},"--","--",{"$f":"Monthly!AW61-Monthly!AW49","v":-10.700000000000003},{"$f":"Monthly!AX61-Monthly!AX49","v":-2.6000000000000014},{"$f":"Monthly!AY61-Monthly!AY49","v":-9.2999999999999972},{"$f":"Monthly!AZ61-Monthly!AZ49","v":-10.600000000000009},{"$f":"Monthly!BA61-Monthly!BA49","v":-2.1000000000000014},"--","--",null,null,null,null,null,null,null,null,null,"--","--",null,null,null,null,null,{"$f":"(Monthly!BT61/Monthly!BT49)-1","v":0.1036049243160182},null,null,null,{"$f":"(Monthly!BX61/Monthly!BX49)-1","v":6.3063063063063085E-2},{"$f":"(Monthly!BY61/Monthly!BY49)-1","v":0.10934744268077612},"--","--",{"$f":"Monthly!CB61-Monthly!CB49","v":0.12104917531662363},{"$f":"Monthly!CC61-Monthly!CC49","v":0.19104917531662124},"--","--",null,"--","--",null,"--",{"$f":"(Monthly!CK61/Monthly!CK49)-1","v":4.4031944744226115E-2},{"$f":"(Monthly!CL61/Monthly!CL49)-1","v":-5.6485355648535518E-2},{"$f":"(Monthly!CM61/Monthly!CM49)-1","v":-1.7364657814096018E-2},{"$f":"(Monthly!CN61/Monthly!CN49)-1","v":2.8142832439910226E-2},{"$f":"(Monthly!CO61/Monthly!CO49)-1","v":0.11352253756260433},{"$f":"(Monthly!CP61/Monthly!CP49)-1","v":0.11001035980522311},{"$f":"(Monthly!CQ61/Monthly!CQ49)-1","v":1.4742795583086554E-2},"--",null,null,null,null,null,null,null,{"$f":"(Monthly!CZ61/Monthly!CZ49)-1","v":1.1269472986410234E-2},{"$f":"(Monthly!DA61/Monthly!DA49)-1","v":1.2779552715654896E-2},null,null,null,null,null,null,"--",{"$f":"((Monthly!DI61-Monthly!DI49)*100)","v":-29.999999999999716},"--",{"$f":"((Monthly!DK61-Monthly!DK49)*100)","v":10.000000000000053},{"$f":"Monthly!DL61-Monthly!DL49","v":113},null,null,null,{"$f":"Monthly!DP61-Monthly!DP49","v":1046},null,null,null,"--","--","--","--","--","--","--","--","--","--",null,null,null,null,null,null,null,null,null,null,null,null,null,{"$f":"(Monthly!EQ61/Monthly!EQ49)-1","v":-6.3091482649841879E-3},"--",{"$f":"(Monthly!ES61/Monthly!ES49)-1","v":0},null,null,null,null,null,{"$f":"((Monthly!EY61-Monthly!EY49)*100)","v":0},{"$f":"((Monthly!EZ61-Monthly!EZ49)*100)","v":12.999999999999989},{"$f":"((Monthly!FA61-Monthly!FA49)*100)","v":-19.999999999999929},{"$f":"((Monthly!FB61-Monthly!FB49)*100)","v":-16.000000000000014},"--","--",{"$f":"((Monthly!FE61-Monthly!FE49)*100)","v":16.999999999999993},{"$f":"((Monthly!FF61-Monthly!FF49)*100)","v":-3.0000000000000249},"--",{"$f":"((Monthly!FH61-Monthly!FH49)*100)","v":0},{"$f":"((Monthly!FI61-Monthly!FI49)*100)","v":0},null,null,null,null,null,null,"--","--","--","--","--","--","--","--","--",null,null,null,null,null,{"$f":"(Monthly!GD61/Monthly!GD49)-1","v":0},"--","--","--","--","--","--","--","--"]
["1963-04-01",null,null,null,{"$f":"(Monthly!E62/Monthly!E50)-1","v":{"$error":"#DIV/0!"}},{"$f":"(Monthly!F62/Monthly!F50)-1","v":{"$error":"#DIV/0!"}},{"$f":"(Monthly!G62/Monthly!G50)-1","v":{"$error":"#DIV/0!"}},{"$f":"(Monthly!H62/Monthly!H50)-1","v":{"$error":"#DIV/0!"}},null,null,null,null,null,null,null,null,null,null,null,null,null,null,null,"--",{"$f":"(Monthly!Y62/Monthly!Y50)-1","v":8.6482202434676525E-2},null,null,null,null,null,null,null,null,null,null,null,null,null,{"$f":"(Monthly!AM62/Monthly!AM50)-1","v":5.4313368148613206E-2},"--","--","--",{"$f":"Monthly!AQ62-Monthly!AQ50","v":2.5},"--","--",{"$f":"Monthly!AT62-Monthly!AT50","v":-2.8999999999999986},"--","--",{"$f":"Monthly!AW62-Monthly!AW50","v":-4.8999999999999986},{"$f":"Monthly!AX62-Monthly!AX50","v":3.3000000000000043},{"$f":"Monthly!AY62-Monthly!AY50","v":1.3999999999999986},{"$f":"Monthly!AZ62-Monthly!AZ50","v":3.6000000000000014},{"$f":"Monthly!BA62-Monthly!BA50","v":10.800000000000004},"--","--",null,null,null,null,null,null,null,null,null,"--","--",null,null,null,null,null,{"$f":"(Monthly!BT62/Monthly!BT50)-1","v":0.10671247394389427},null,null,null,{"$f":"(Monthly!BX62/Monthly!BX50)-1","v":0.1082677165354331},{"$f":"(Monthly!BY62/Monthly!BY50)-1","v":4.2914979757084915E-2},"--","--",{"$f":"Monthly!CB62-Monthly!CB50","v":-0.34808780668832373},{"$f":"Monthly!CC62-Monthly!CC50","v":-0.27808780668832611},"--","--",null,"--","--",null,"--",{"$f":"(Monthly!CK62/Monthly!CK50)-1","v":4.0763784595580388E-2},{"$f":"(Monthly!CL62/Monthly!CL50)-1","v":-5.3941908713692976E-2},{"$f":"(Monthly!CM62/Monthly!CM50)-1","v":6.7185978578383709E-2},{"$f":"(Monthly!CN62/Monthly!CN50)-1","v":2.8587419813148607E-2},{"$f":"(Monthly!CO62/Monthly!CO50)-1","v":0.11381215469613259},{"$f":"(Monthly!CP62/Monthly!CP50)-1","v":0.1085805010106955},{"$f":"(Monthly!CQ62/Monthly!CQ50)-1","v":1.4558249136511936E-2},"--",null,null,null,null,null,null,null,{"$f":"(Monthly!CZ62/Monthly!CZ50)-1","v":8.9374379344586696E-3},{"$f":"(Monthly!DA62/Monthly!DA50)-1","v":1.2779552715654896E-2},null,null,null,null,null,null,"--",{"$f":"((Monthly!DI62-Monthly!DI50)*100)","v":9.9999999999994316},"--",{"$f":"((Monthly!DK62-Monthly!DK50)*100)","v":10.000000000000053},{"$f":"Monthly!DL62-Monthly!DL50","v":78},null,null,null,{"$f":"Monthly!DP62-Monthly!DP50","v":978},null,null,null,"--","--","--","--","--","--","--","--","--","--",null,null,null,null,null,null,null,null,null,null,null,null,null,{"$f":"(Monthly!EQ62/Monthly!EQ50)-1","v":-6.3291139240507777E-3},"--",{"$f":"(Monthly!ES62/Monthly!ES50)-1","v":0},null,null,null,null,null,{"$f":"((Monthly!EY62-Monthly!EY50)*100)","v":0},{"$f":"((Monthly!EZ62-Monthly!EZ50)*100)","v":12.000000000000011},{"$f":"((Monthly!FA62-Monthly!FA50)*100)","v":-12.000000000000011},{"$f":"((Monthly!FB62-Monthly!FB50)*100)","v":-14.999999999999947},"--","--",{"$f":"((Monthly!FE62-Monthly!FE50)*100)","v":16.999999999999993},{"$f":"((Monthly!FF62-Monthly!FF50)*100)","v":11.999999999999966},"--",{"$f":"((Monthly!FH62-Monthly!FH50)*100)","v":14.000000000000012},{"$f":"((Monthly!FI62-Monthly!FI50)*100)","v":13.000000000000034},null,null,null,null,null,null,"--","--","--","--","--","--","--","--","--",null,null,null,null,null,{"$f":"(Monthly!GD62/Monthly!GD50)-1","v":0},"--","--","--","--","--","--","--","--"]
["1963-05-01",null,null,null,{"$f":"(Monthly!E63/Monthly!E51)-1","v":{"$error":"#DIV/0!"}},{"$f":"(Monthly!F63/Monthly!F51)-1","v":{"$error":"#DIV/0!"}},{"$f":"(Monthly!G63/Monthly!G51)-1","v":{"$error":"#DIV/0!"}},{"$f":"(Monthly!H63/Monthly!H51)-1","v":{"$error":"#DIV/0!"}},null,null,null,null,null,null,null,null,null,null,null,null,null,null,null,"--",{"$f":"(Monthly!Y63/Monthly!Y51)-1","v":8.491502253502925E-2},null,null,null,null,null,null,null,null,null,null,null,null,null,{"$f":"(Monthly!AM63/Monthly!AM51)-1","v":6.8230685794663959E-2},"--","--","--",{"$f":"Monthly!AQ63-Monthly!AQ51","v":7.5999999999999943},"--","--",{"$f":"Monthly!AT63-Monthly!AT51","v":1.2000000000000028},"--","--",{"$f":"Monthly!AW63-Monthly!AW51","v":3.9000000000000057},{"$f":"Monthly!AX63-Monthly!AX51","v":13.300000000000004},{"$f":"Monthly!AY63-Monthly!AY51","v":15.099999999999994},{"$f":"Monthly!AZ63-Monthly!AZ51","v":5.1000000000000014},{"$f":"Monthly!BA63-Monthly!BA51","v":11.199999999999996},"--","--",null,null,null,null,null,null,null,null,null,"--","--",null,null,null,null,null,{"$f":"(Monthly!BT63/Monthly!BT51)-1","v":0.10936138776022242},null,null,null,{"$f":"(Monthly!BX63/Monthly!BX51)-1","v":0.10654079568442354},{"$f":"(Monthly!BY63/Monthly!BY51)-1","v":0.18213660245183894},"--","--",{"$f":"Monthly!CB63-Monthly!CB51","v":-4.7625430869380203E-2},{"$f":"Monthly!CC63-Monthly!CC51","v":0.23237456913062182},"--","--",null,"--","--",null,"--",{"$f":"(Monthly!CK63/Monthly!CK51)-1","v":4.4763332619404572E-2},{"$f":"(Monthly!CL63/Monthly!CL51)-1","v":2.857142857142847E-2},{"$f":"(Monthly!CM63/Monthly!CM51)-1","v":3.7790697674418672E-2},{"$f":"(Monthly!CN63/Monthly!CN51)-1","v":3.1809573002754776E-2},{"$f":"(Monthly!CO63/Monthly!CO51)-1","v":0.11458333333333326},{"$f":"(Monthly!CP63/Monthly!CP51)-1","v":0.10424142041144879},{"$f":"(Monthly!CQ63/Monthly!CQ51)-1","v":1.4525463895919577E-2},"--",null,null,null,null,null,null,null,{"$f":"(Monthly!CZ63/Monthly!CZ51)-1","v":8.9285714285716189E-3},{"$f":"(Monthly!DA63/Monthly!DA51)-1","v":9.5541401273886439E-3},null,null,null,null,null,null,"--",{"$f":"((Monthly!DI63-Monthly!DI51)*100)","v":-10.000000000000142},"--",{"$f":"((Monthly!DK63-Monthly!DK51)*100)","v":40.000000000000036},{"$f":"Monthly!DL63-Monthly!DL51","v":128},null,null,null,{"$f":"Monthly!DP63-Monthly!DP51","v":989},null,null,null,"--","--","--","--","--","--","--","--","--","--",null,null,null,null,null,null,null,null,null,null,null,null,null,{"$f":"(Monthly!EQ63/Monthly!EQ51)-1","v":0},"--",{"$f":"(Monthly!ES63/Monthly!ES51)-1","v":0},null,null,null,null,null,{"$f":"((Monthly!EY63-Monthly!EY51)*100)","v":0},{"$f":"((Monthly!EZ63-Monthly!EZ51)*100)","v":64.000000000000014},{"$f":"((Monthly!FA63-Monthly!FA51)*100)","v":-6.0000000000000497},{"$f":"((Monthly!FB63-Monthly!FB51)*100)","v":-15.000000000000036},"--","--",{"$f":"((Monthly!FE63-Monthly!FE51)*100)","v":24.000000000000021},{"$f":"((Monthly!FF63-Monthly!FF51)*100)","v":9.0000000000000302},"--",{"$f":"((Monthly!FH63-Monthly!FH51)*100)","v":6.0000000000000053},{"$f":"((Monthly!FI63-Monthly!FI51)*100)","v":6.0000000000000053},null,null,null,null,null,null,"--","--","--","--","--","--","--","--","--",null,null,null,null,null,{"$f":"(Monthly!GD63/Monthly!GD51)-1","v":0},"--","--","--","--","--","--","--","--"]
["1963-06-01",null,null,null,{"$f":"(Monthly!E64/Monthly!E52)-1","v":{"$error":"#DIV/0!"}},{"$f":"(Monthly!F64/Monthly!F52)-1","v":{"$error":"#DIV/0!"}},{"$f":"(Monthly!G64/Monthly!G52)-1","v":{"$error":"#DIV/0!"}},{"$f":"(Monthly!H64/Monthly!H52)-1","v":{"$error":"#DIV/0!"}},null,null,null,null,null,null,null,null,null,null,null,null,null,null,null,"--",{"$f":"(Monthly!Y64/Monthly!Y52)-1","v":8.1353654546692189E-2},null,null,null,null,null,null,null,null,null,null,null,null,null,{"$f":"(Monthly!AM64/Monthly!AM52)-1","v":7.3719142856045528E-2},"--","--","--",{"$f":"Monthly!AQ64-Monthly!AQ52","v":7.4000000000000057},"--","--",{"$f":"Monthly!AT64-Monthly!AT52","v":1},"--","--",{"$f":"Monthly!AW64-Monthly!AW52","v":8.6000000000000014},{"$f":"Monthly!AX64-Monthly!AX52","v":9.3999999999999986},{"$f":"Monthly!AY64-Monthly!AY52","v":7},{"$f":"Monthly!AZ64-Monthly!AZ52","v":5.8000000000000043},{"$f":"Monthly!BA64-Monthly!BA52","v":13},"--","--",null,null,null,null,null,null,null,null,null,"--","--",null,null,null,null,null,{"$f":"(Monthly!BT64/Monthly!BT52)-1","v":0.10643069757186563},null,null,null,{"$f":"(Monthly!BX64/Monthly!BX52)-1","v":0.13105413105413111},{"$f":"(Monthly!BY64/Monthly!BY52)-1","v":0.16551126516464465},"--","--",{"$f":"Monthly!CB64-Monthly!CB52","v":0.18411849848202166},{"$f":"Monthly!CC64-Monthly!CC52","v":0.25411849848202195},"--","--",null,"--","--",null,"--",{"$f":"(Monthly!CK64/Monthly!CK52)-1","v":4.9551473729175566E-2},{"$f":"(Monthly!CL64/Monthly!CL52)-1","v":-4.4025157232704393E-2},{"$f":"(Monthly!CM64/Monthly!CM52)-1","v":5.8885383806519531E-2},{"$f":"(Monthly!CN64/Monthly!CN52)-1","v":3.6591133852173607E-2},{"$f":"(Monthly!CO64/Monthly!CO52)-1","v":0.11461162411732762},{"$f":"(Monthly!CP64/Monthly!CP52)-1","v":0.10344594656833106},{"$f":"(Monthly!CQ64/Monthly!CQ52)-1","v":1.4513133741962392E-2},"--",null,null,null,null,null,null,null,{"$f":"(Monthly!CZ64/Monthly!CZ52)-1","v":1.3240648791790655E-2},{"$f":"(Monthly!DA64/Monthly!DA52)-1","v":1.2738853503184711E-2},null,null,null,null,null,null,"--",{"$f":"((Monthly!DI64-Monthly!DI52)*100)","v":-29.999999999999716},"--",{"$f":"((Monthly!DK64-Monthly!DK52)*100)","v":9.9999999999999645},{"$f":"Monthly!DL64-Monthly!DL52","v":106},null,null,null,{"$f":"Monthly!DP64-Monthly!DP52","v":1014},null,null,null,"--","--","--","--","--","--","--","--","--","--",null,null,null,null,null,null,null,null,null,null,null,null,null,{"$f":"(Monthly!EQ64/Monthly!EQ52)-1","v":3.1746031746031633E-3},"--",{"$f":"(Monthly!ES64/Monthly!ES52)-1","v":0},null,null,null,null,null,{"$f":"((Monthly!EY64-Monthly!EY52)*100)","v":0},{"$f":"((Monthly!EZ64-Monthly!EZ52)*100)","v":31.000000000000007},{"$f":"((Monthly!FA64-Monthly!FA52)*100)","v":-4.9999999999999822},{"$f":"((Monthly!FB64-Monthly!FB52)*100)","v":-17.999999999999972},"--","--",{"$f":"((Monthly!FE64-Monthly!FE52)*100)","v":26.000000000000021},{"$f":"((Monthly!FF64-Monthly!FF52)*100)","v":17.000000000000036},"--",{"$f":"((Monthly!FH64-Monthly!FH52)*100)","v":16.999999999999993},{"$f":"((Monthly!FI64-Monthly!FI52)*100)","v":8.0000000000000071},null,null,null,null,null,null,"--","--","--","--","--","--","--","--","--",null,null,null,null,null,{"$f":"(Monthly!GD64/Monthly!GD52)-1","v":0},"--","--","--","--","--","--","--","--"]
["1963-07-01",null,null,null,{"$f":"(Monthly!E65/Monthly!E53)-1","v":{"$error":"#DIV/0!"}},{"$f":"(Monthly!F65/Monthly!F53)-1","v":{"$error":"#DIV/0!"}},{"$f":"(Monthly!G65/Monthly!G53)-1","v":{"$error":"#DIV/0!"}},{"$f":"(Monthly!H65/Monthly!H53)-1","v":{"$error":"#DIV/0!"}},null,null,null,null,null,null,null,null,null,null,null,null,null,null,null,"--",{"$f":"(Monthly!Y65/Monthly!Y53)-1","v":8.1781362352056242E-2},null,null,null,null,null,null,null,null,null,null,null,null,null,{"$f":"(Monthly!AM65/Monthly!AM53)-1","v":5.9260583741668427E-2},"--","--","--",{"$f":"Monthly!AQ65-Monthly!AQ53","v":4.5},"--","--",{"$f":"Monthly!AT65-Monthly!AT53","v":0.79999999999999716},"--","--",{"$f":"Monthly!AW65-Monthly!AW53","v":10.200000000000003},{"$f":"Monthly!AX65-Monthly!AX53","v":6.8999999999999986},{"$f":"Monthly!AY65-Monthly!AY53","v":9.3999999999999986},{"$f":"Monthly!AZ65-Monthly!AZ53","v":5.6999999999999957},{"$f":"Monthly!BA65-Monthly!BA53","v":-1.5},"--","--",null,null,null,null,null,null,null,null,null,"--","--",null,null,null,null,null,{"$f":"(Monthly!BT65/Monthly!BT53)-1","v":0.10826714542680538},null,null,null,{"$f":"(Monthly!BX65/Monthly!BX53)-1","v":0.11310344827586216},{"$f":"(Monthly!BY65/Monthly!BY53)-1","v":0.11101766190075701},"--","--",{"$f":"Monthly!CB65-Monthly!CB53","v":0.75258761948917474},{"$f":"Monthly!CC65-Monthly!CC53","v":0.89258761948917709},"--","--",null,"--","--",null,"--",{"$f":"(Monthly!CK65/Monthly!CK53)-1","v":4.7872340425531901E-2},{"$f":"(Monthly!CL65/Monthly!CL53)-1","v":-8.5416666666666696E-2},{"$f":"(Monthly!CM65/Monthly!CM53)-1","v":4.8830111902339768E-2},{"$f":"(Monthly!CN65/Monthly!CN53)-1","v":3.3451835353578874E-2},{"$f":"(Monthly!CO65/Monthly!CO53)-1","v":0.1132075471698113},{"$f":"(Monthly!CP65/Monthly!CP53)-1","v":0.10996883023314719},{"$f":"(Monthly!CQ65/Monthly!CQ53)-1","v":1.4495705968756933E-2},"--",null,null,null,null,null,null,null,{"$f":"(Monthly!CZ65/Monthly!CZ53)-1","v":1.5552614162806178E-2},{"$f":"(Monthly!DA65/Monthly!DA53)-1","v":1.2738853503184711E-2},null,null,null,null,null,null,"--",{"$f":"((Monthly!DI65-Monthly!DI53)*100)","v":20.000000000000284},"--",{"$f":"((Monthly!DK65-Monthly!DK53)*100)","v":19.999999999999929},{"$f":"Monthly!DL65-Monthly!DL53","v":124},null,null,null,{"$f":"Monthly!DP65-Monthly!DP53","v":1048},null,null,null,"--","--","--","--","--","--","--","--","--","--",null,null,null,null,null,null,null,null,null,null,null,null,null,{"$f":"(Monthly!EQ65/Monthly!EQ53)-1","v":3.1645569620253333E-3},"--",{"$f":"(Monthly!ES65/Monthly!ES53)-1","v":0},null,null,null,null,null,{"$f":"((Monthly!EY65-Monthly!EY53)*100)","v":0},{"$f":"((Monthly!EZ65-Monthly!EZ53)*100)","v":31.000000000000007},{"$f":"((Monthly!FA65-Monthly!FA53)*100)","v":-8.0000000000000071},{"$f":"((Monthly!FB65-Monthly!FB53)*100)","v":-20.999999999999996},"--","--",{"$f":"((Monthly!FE65-Monthly!FE53)*100)","v":26.000000000000021},{"$f":"((Monthly!FF65-Monthly!FF53)*100)","v":18.999999999999993},"--",{"$f":"((Monthly!FH65-Monthly!FH53)*100)","v":9.0000000000000302},{"$f":"((Monthly!FI65-Monthly!FI53)*100)","v":0.99999999999997868},null,null,null,null,null,null,"--","--","--","--","--","--","--","--","--",null,null,null,null,null,{"$f":"(Monthly!GD65/Monthly!GD53)-1","v":0},"--","--","--","--","--","--","--","--"]
["1963-08-01",null,null,null,{"$f":"(Monthly!E66/Monthly!E54)-1","v":{"$error":"#DIV/0!"}},{"$f":"(Monthly!F66/Monthly!F54)-1","v":{"$error":"#DIV/0!"}},{"$f":"(Monthly!G66/Monthly!G54)-1","v":{"$error":"#DIV/0!"}},{"$f":"(Monthly!H66/Monthly!H54)-1","v":{"$error":"#DIV/0!"}},null,null,null,null,null,null,null,null,null,null,null,null,null,null,null,"--",{"$f":"(Monthly!Y66/Monthly!Y54)-1","v":7.7376675071967549E-2},null,null,null,null,null,null,null,null,null,null,null,null,null,{"$f":"(Monthly!AM66/Monthly!AM54)-1","v":6.0254242119064383E-2},"--","--","--",{"$f":"Monthly!AQ66-Monthly!AQ54","v":5.6000000000000014},"--","--",{"$f":"Monthly!AT66-Monthly!AT54","v":4.1000000000000014},"--","--",{"$f":"Monthly!AW66-Monthly!AW54","v":2.8999999999999986},{"$f":"Monthly!AX66-Monthly!AX54","v":9.1000000000000014},{"$f":"Monthly!AY66-Monthly!AY54","v":12.099999999999994},{"$f":"Monthly!AZ66-Monthly!AZ54","v":4.2999999999999972},{"$f":"Monthly!BA66-Monthly!BA54","v":4.7999999999999972},"--","--",null,null,null,null,null,null,null,null,null,"--","--",null,null,null,null,null,{"$f":"(Monthly!BT66/Monthly!BT54)-1","v":9.023836933703544E-2},null,null,null,{"$f":"(Monthly!BX66/Monthly!BX54)-1","v":8.0421885299934104E-2},{"$f":"(Monthly!BY66/Monthly!BY54)-1","v":9.1666666666666563E-2},"--","--",{"$f":"Monthly!CB66-Monthly!CB54","v":0.11657511412080979},{"$f":"Monthly!CC66-Monthly!CC54","v":-9.342488587918929E-2},"--","--",null,"--","--",null,"--",{"$f":"(Monthly!CK66/Monthly!CK54)-1","v":5.0286441756842715E-2},{"$f":"(Monthly!CL66/Monthly!CL54)-1","v":-6.1310782241014827E-2},{"$f":"(Monthly!CM66/Monthly!CM54)-1","v":2.8490028490029129E-3},{"$f":"(Monthly!CN66/Monthly!CN54)-1","v":3.7108371854134514E-2},{"$f":"(Monthly!CO66/Monthly!CO54)-1","v":0.11176470588235299},{"$f":"(Monthly!CP66/Monthly!CP54)-1","v":0.11386100391945519},{"$f":"(Monthly!CQ66/Monthly!CQ54)-1","v":1.4486856898120903E-2},"--",null,null,null,null,null,null,null,{"$f":"(Monthly!CZ66/Monthly!CZ54)-1","v":1.5521796565389767E-2},{"$f":"(Monthly!DA66/Monthly!DA54)-1","v":1.2698412698412653E-2},null,null,null,null,null,null,"--",{"$f":"((Monthly!DI66-Monthly!DI54)*100)","v":-50},"--",{"$f":"((Monthly!DK66-Monthly!DK54)*100)","v":-29.999999999999982},{"$f":"Monthly!DL66-Monthly!DL54","v":127},null,null,null,{"$f":"Monthly!DP66-Monthly!DP54","v":1072},null,null,null,"--","--","--","--","--","--","--","--","--","--",null,null,null,null,null,null,null,null,null,null,null,null,null,{"$f":"(Monthly!EQ66/Monthly!EQ54)-1","v":0},"--",{"$f":"(Monthly!ES66/Monthly!ES54)-1","v":0},null,null,null,null,null,{"$f":"((Monthly!EY66-Monthly!EY54)*100)","v":0},{"$f":"((Monthly!EZ66-Monthly!EZ54)*100)","v":56.000000000000007},{"$f":"((Monthly!FA66-Monthly!FA54)*100)","v":-5.9999999999999609},{"$f":"((Monthly!FB66-Monthly!FB54)*100)","v":-22.999999999999954},"--","--",{"$f":"((Monthly!FE66-Monthly!FE54)*100)","v":50},{"$f":"((Monthly!FF66-Monthly!FF54)*100)","v":32.999999999999964},"--",{"$f":"((Monthly!FH66-Monthly!FH54)*100)","v":18.000000000000014},{"$f":"((Monthly!FI66-Monthly!FI54)*100)","v":2.0000000000000018},null,null,null,null,null,null,"--","--","--","--","--","--","--","--","--",null,null,null,null,null,{"$f":"(Monthly!GD66/Monthly!GD54)-1","v":0},"--","--","--","--","--","--","--","--"]
["1963-09-01",null,null,null,{"$f":"(Monthly!E67/Monthly!E55)-1","v":{"$error":"#DIV/0!"}},{"$f":"(Monthly!F67/Monthly!F55)-1","v":{"$error":"#DIV/0!"}},{"$f":"(Monthly!G67/Monthly!G55)-1","v":{"$error":"#DIV/0!"}},{"$f":"(Monthly!H67/Monthly!H55)-1","v":{"$error":"#DIV/0!"}},null,null,null,null,null,null,null,null,null,null,null,null,null,null,null,"--",{"$f":"(Monthly!Y67/Monthly!Y55)-1","v":7.437205651491352E-2},null,null,null,null,null,null,null,null,null,null,null,null,null,{"$f":"(Monthly!AM67/Monthly!AM55)-1","v":6.407380553163855E-2},"--","--","--",{"$f":"Monthly!AQ67-Monthly!AQ55","v":6.8999999999999986},"--","--",{"$f":"Monthly!AT67-Monthly!AT55","v":5.0999999999999943},"--","--",{"$f":"Monthly!AW67-Monthly!AW55","v":5.3999999999999986},{"$f":"Monthly!AX67-Monthly!AX55","v":6.7999999999999972},{"$f":"Monthly!AY67-Monthly!AY55","v":12.399999999999999},{"$f":"Monthly!AZ67-Monthly!AZ55","v":10.800000000000004},{"$f":"Monthly!BA67-Monthly!BA55","v":4.6000000000000014},"--","--",null,null,null,null,null,null,null,null,null,"--","--",null,null,null,null,null,{"$f":"(Monthly!BT67/Monthly!BT55)-1","v":0.10409805704279895},null,null,null,{"$f":"(Monthly!BX67/Monthly!BX55)-1","v":0.33157099697885206},{"$f":"(Monthly!BY67/Monthly!BY55)-1","v":0.15535568274734257},"--","--",{"$f":"Monthly!CB67-Monthly!CB55","v":-0.58145180284557796},{"$f":"Monthly!CC67-Monthly!CC55","v":-0.65145180284557824},"--","--",null,"--","--",null,"--",{"$f":"(Monthly!CK67/Monthly!CK55)-1","v":5.14985225833684E-2},{"$f":"(Monthly!CL67/Monthly!CL55)-1","v":0.10804597701149432},{"$f":"(Monthly!CM67/Monthly!CM55)-1","v":0.27713625866050817},{"$f":"(Monthly!CN67/Monthly!CN55)-1","v":4.4287548138639332E-2},{"$f":"(Monthly!CO67/Monthly!CO55)-1","v":0.10963983050847448},{"$f":"(Monthly!CP67/Monthly!CP55)-1","v":0.11637112930342886},{"$f":"(Monthly!CQ67/Monthly!CQ55)-1","v":1.4450063616632258E-2},"--",null,null,null,null,null,null,null,{"$f":"(Monthly!CZ67/Monthly!CZ55)-1","v":9.8619329388558441E-3},{"$f":"(Monthly!DA67/Monthly!DA55)-1","v":1.2698412698412653E-2},null,null,null,null,null,null,"--",{"$f":"((Monthly!DI67-Monthly!DI55)*100)","v":-29.999999999999716},"--",{"$f":"((Monthly!DK67-Monthly!DK55)*100)","v":-9.9999999999999645},{"$f":"Monthly!DL67-Monthly!DL55","v":106},null,null,null,{"$f":"Monthly!DP67-Monthly!DP55","v":1100},null,null,null,"--","--","--","--","--","--","--","--","--","--",null,null,null,null,null,null,null,null,null,null,null,null,null,{"$f":"(Monthly!EQ67/Monthly!EQ55)-1","v":-9.4043887147334804E-3},"--",{"$f":"(Monthly!ES67/Monthly!ES55)-1","v":3.0303030303031608E-3},null,null,null,null,null,{"$f":"((Monthly!EY67-Monthly!EY55)*100)","v":0},{"$f":"((Monthly!EZ67-Monthly!EZ55)*100)","v":58.000000000000007},{"$f":"((Monthly!FA67-Monthly!FA55)*100)","v":-1.0000000000000675},{"$f":"((Monthly!FB67-Monthly!FB55)*100)","v":-19.000000000000039},"--","--",{"$f":"((Monthly!FE67-Monthly!FE55)*100)","v":60.000000000000007},{"$f":"((Monthly!FF67-Monthly!FF55)*100)","v":50.999999999999979},"--",{"$f":"((Monthly!FH67-Monthly!FH55)*100)","v":25.999999999999979},{"$f":"((Monthly!FI67-Monthly!FI55)*100)","v":10.000000000000009},null,null,null,null,null,null,"--","--","--","--","--","--","--","--","--",null,null,null,null,null,{"$f":"(Monthly!GD67/Monthly!GD55)-1","v":0},"--","--","--","--","--","--","--","--"]
["1963-10-01",null,null,null,{"$f":"(Monthly!E68/Monthly!E56)-1","v":{"$error":"#DIV/0!"}},{"$f":"(Monthly!F68/Monthly!F56)-1","v":{"$error":"#DIV/0!"}},{"$f":"(Monthly!G68/Monthly!G56)-1","v":{"$error":"#DIV/0!"}},{"$f":"(Monthly!H68/Monthly!H56)-1","v":{"$error":"#DIV/0!"}},null,null,null,null,null,null,null,null,null,null,null,null,null,null,null,"--",{"$f":"(Monthly!Y68/Monthly!Y56)-1","v":7.6040530473630907E-2},null,null,null,null,null,null,null,null,null,null,null,null,null,{"$f":"(Monthly!AM68/Monthly!AM56)-1","v":7.0302774235896814E-2},"--","--","--",{"$f":"Monthly!AQ68-Monthly!AQ56","v":6.5},"--","--",{"$f":"Monthly!AT68-Monthly!AT56","v":4.6000000000000014},"--","--",{"$f":"Monthly!AW68-Monthly!AW56","v":0.19999999999999574},{"$f":"Monthly!AX68-Monthly!AX56","v":10.399999999999999},{"$f":"Monthly!AY68-Monthly!AY56","v":33.000000000000007},{"$f":"Monthly!AZ68-Monthly!AZ56","v":9.2999999999999972},{"$f":"Monthly!BA68-Monthly!BA56","v":0.69999999999999574},"--","--",null,null,null,null,null,null,null,null,null,"--","--",null,null,null,null,null,{"$f":"(Monthly!BT68/Monthly!BT56)-1","v":0.12732932754198889},null,null,null,{"$f":"(Monthly!BX68/Monthly!BX56)-1","v":0.16046966731898249},{"$f":"(Monthly!BY68/Monthly!BY56)-1","v":0.19729043183742601},"--","--",{"$f":"Monthly!CB68-Monthly!CB56","v":-1.6316297764451981E-2},{"$f":"Monthly!CC68-Monthly!CC56","v":5.3683702235549191E-2},"--","--",null,"--","--",null,"--",{"$f":"(Monthly!CK68/Monthly!CK56)-1","v":5.5719091673675392E-2},{"$f":"(Monthly!CL68/Monthly!CL56)-1","v":8.7048832271762189E-2},{"$f":"(Monthly!CM68/Monthly!CM56)-1","v":9.8989898989898961E-2},{"$f":"(Monthly!CN68/Monthly!CN56)-1","v":4.6138116133429774E-2},{"$f":"(Monthly!CO68/Monthly!CO56)-1","v":0.10509721492380453},{"$f":"(Monthly!CP68/Monthly!CP56)-1","v":0.12060618628681063},{"$f":"(Monthly!CQ68/Monthly!CQ56)-1","v":1.444029830826965E-2},"--",null,null,null,null,null,null,null,{"$f":"(Monthly!CZ68/Monthly!CZ56)-1","v":1.2179065174456882E-2},{"$f":"(Monthly!DA68/Monthly!DA56)-1","v":1.5873015873015817E-2},null,null,null,null,null,null,"--",{"$f":"((Monthly!DI68-Monthly!DI56)*100)","v":9.9999999999994316},"--",{"$f":"((Monthly!DK68-Monthly!DK56)*100)","v":9.9999999999999645},{"$f":"Monthly!DL68-Monthly!DL56","v":145},null,null,null,{"$f":"Monthly!DP68-Monthly!DP56","v":1243},null,null,null,"--","--","--","--","--","--","--","--","--","--",null,null,null,null,null,null,null,null,null,null,null,null,null,{"$f":"(Monthly!EQ68/Monthly!EQ56)-1","v":-3.154574132492094E-3},"--",{"$f":"(Monthly!ES68/Monthly!ES56)-1","v":3.0303030303031608E-3},null,null,null,null,null,{"$f":"((Monthly!EY68-Monthly!EY56)*100)","v":0},{"$f":"((Monthly!EZ68-Monthly!EZ56)*100)","v":60.000000000000007},{"$f":"((Monthly!FA68-Monthly!FA56)*100)","v":4.0000000000000036},{"$f":"((Monthly!FB68-Monthly!FB56)*100)","v":-16.000000000000014},"--","--",{"$f":"((Monthly!FE68-Monthly!FE56)*100)","v":71},{"$f":"((Monthly!FF68-Monthly!FF56)*100)","v":66.000000000000014},"--",{"$f":"((Monthly!FH68-Monthly!FH56)*100)","v":33.000000000000007},{"$f":"((Monthly!FI68-Monthly!FI56)*100)","v":18.000000000000014},null,null,null,null,null,null,"--","--","--","--","--","--","--","--","--",null,null,null,null,null,{"$f":"(Monthly!GD68/Monthly!GD56)-1","v":0},"--","--","--","--","--","--","--","--"]
["1963-11-01",null,null,null,{"$f":"(Monthly!E69/Monthly!E57)-1","v":{"$error":"#DIV/0!"}},{"$f":"(Monthly!F69/Monthly!F57)-1","v":{"$error":"#DIV/0!"}},{"$f":"(Monthly!G69/Monthly!G57)-1","v":{"$error":"#DIV/0!"}},{"$f":"(Monthly!H69/Monthly!H57)-1","v":{"$error":"#DIV/0!"}},null,null,null,null,null,null,null,null,null,null,null,null,null,null,null,"--",{"$f":"(Monthly!Y69/Monthly!Y57)-1","v":8.5559684574934458E-2},null,null,null,null,null,null,null,null,null,null,null,null,null,{"$f":"(Monthly!AM69/Monthly!AM57)-1","v":7.1057198885023709E-2},"--","--","--",{"$f":"Monthly!AQ69-Monthly!AQ57","v":3.7000000000000028},"--","--",{"$f":"Monthly!AT69-Monthly!AT57","v":4.7999999999999972},"--","--",{"$f":"Monthly!AW69-Monthly!AW57","v":-7.7999999999999972},{"$f":"Monthly!AX69-Monthly!AX57","v":5.9000000000000057},{"$f":"Monthly!AY69-Monthly!AY57","v":19.100000000000001},{"$f":"Monthly!AZ69-Monthly!AZ57","v":7.1999999999999957},{"$f":"Monthly!BA69-Monthly!BA57","v":0},"--","--",null,null,null,null,null,null,null,null,null,"--","--",null,null,null,null,null,{"$f":"(Monthly!BT69/Monthly!BT57)-1","v":0.13022223993411175},null,null,null,{"$f":"(Monthly!BX69/Monthly!BX57)-1","v":0},{"$f":"(Monthly!BY69/Monthly!BY57)-1","v":9.7896440129449758E-2},"--","--",{"$f":"Monthly!CB69-Monthly!CB57","v":-1.7567120674244485E-2},{"$f":"Monthly!CC69-Monthly!CC57","v":-1.7567120674245373E-2},"--","--",null,"--","--",null,"--",{"$f":"(Monthly!CK69/Monthly!CK57)-1","v":5.3545283413511724E-2},{"$f":"(Monthly!CL69/Monthly!CL57)-1","v":0.12100456621004585},{"$f":"(Monthly!CM69/Monthly!CM57)-1","v":-4.4444444444444398E-2},{"$f":"(Monthly!CN69/Monthly!CN57)-1","v":4.4140741055133548E-2},{"$f":"(Monthly!CO69/Monthly!CO57)-1","v":0.10326933056564602},{"$f":"(Monthly!CP69/Monthly!CP57)-1","v":0.11774915326401758},{"$f":"(Monthly!CQ69/Monthly!CQ57)-1","v":1.4346337978611068E-2},"--",null,null,null,null,null,null,null,{"$f":"(Monthly!CZ69/Monthly!CZ57)-1","v":1.3166556945358954E-2},{"$f":"(Monthly!DA69/Monthly!DA57)-1","v":1.5873015873015817E-2},null,null,null,null,null,null,"--",{"$f":"((Monthly!DI69-Monthly!DI57)*100)","v":29.999999999999716},"--",{"$f":"((Monthly!DK69-Monthly!DK57)*100)","v":0},{"$f":"Monthly!DL69-Monthly!DL57","v":145},null,null,null,{"$f":"Monthly!DP69-Monthly!DP57","v":1199},null,null,null,"--","--","--","--","--","--","--","--","--","--",null,null,null,null,null,null,null,null,null,null,null,null,null,{"$f":"(Monthly!EQ69/Monthly!EQ57)-1","v":0},"--",{"$f":"(Monthly!ES69/Monthly!ES57)-1","v":6.0606060606060996E-3},null,null,null,null,null,{"$f":"((Monthly!EY69-Monthly!EY57)*100)","v":0},{"$f":"((Monthly!EZ69-Monthly!EZ57)*100)","v":54},{"$f":"((Monthly!FA69-Monthly!FA57)*100)","v":8.0000000000000071},{"$f":"((Monthly!FB69-Monthly!FB57)*100)","v":-12.000000000000011},"--","--",{"$f":"((Monthly!FE69-Monthly!FE57)*100)","v":69},{"$f":"((Monthly!FF69-Monthly!FF57)*100)","v":74.000000000000028},"--",{"$f":"((Monthly!FH69-Monthly!FH57)*100)","v":40.999999999999972},{"$f":"((Monthly!FI69-Monthly!FI57)*100)","v":20.000000000000018},null,null,null,null,null,null,"--","--","--","--","--","--","--","--","--",null,null,null,null,null,{"$f":"(Monthly!GD69/Monthly!GD57)-1","v":0},"--","--","--","--","--","--","--","--"]
["1963-12-01",null,null,null,{"$f":"(Monthly!E70/Monthly!E58)-1","v":{"$error":"#DIV/0!"}},{"$f":"(Monthly!F70/Monthly!F58)-1","v":{"$error":"#DIV/0!"}},{"$f":"(Monthly!G70/Monthly!G58)-1","v":{"$error":"#DIV/0!"}},{"$f":"(Monthly!H70/Monthly!H58)-1","v":{"$error":"#DIV/0!"}},null,null,null,null,null,null,null,null,null,null,null,null,null,null,null,"--",{"$f":"(Monthly!Y70/Monthly!Y58)-1","v":9.9846956844359624E-2},null,null,null,null,null,null,null,null,null,null,null,null,null,{"$f":"(Monthly!AM70/Monthly!AM58)-1","v":6.8968496660330558E-2},"--","--","--",{"$f":"Monthly!AQ70-Monthly!AQ58","v":-3.2000000000000028},"--","--",{"$f":"Monthly!AT70-Monthly!AT58","v":-6.2000000000000028},"--","--",{"$f":"Monthly!AW70-Monthly!AW58","v":-5.8999999999999986},{"$f":"Monthly!AX70-Monthly!AX58","v":-1.1000000000000014},{"$f":"Monthly!AY70-Monthly!AY58","v":17.100000000000009},{"$f":"Monthly!AZ70-Monthly!AZ58","v":-2.5999999999999943},{"$f":"Monthly!BA70-Monthly!BA58","v":-2.5},"--","--",null,null,null,null,null,null,null,null,null,"--","--",null,null,null,null,null,{"$f":"(Monthly!BT70/Monthly!BT58)-1","v":0.13071348479987299},null,null,null,{"$f":"(Monthly!BX70/Monthly!BX58)-1","v":-4.6675191815856776E-2},{"$f":"(Monthly!BY70/Monthly!BY58)-1","v":0.15129449838187692},"--","--",{"$f":"Monthly!CB70-Monthly!CB58","v":0.4128972589562574},{"$f":"Monthly!CC70-Monthly!CC58","v":0.41289725895625828},"--","--",null,"--","--",null,"--",{"$f":"(Monthly!CK70/Monthly!CK58)-1","v":5.8946052905644475E-2},{"$f":"(Monthly!CL70/Monthly!CL58)-1","v":0.10344827586206895},{"$f":"(Monthly!CM70/Monthly!CM58)-1","v":-0.14629258517034072},{"$f":"(Monthly!CN70/Monthly!CN58)-1","v":4.76633144595624E-2},{"$f":"(Monthly!CO70/Monthly!CO58)-1","v":0.1006160164271046},{"$f":"(Monthly!CP70/Monthly!CP58)-1","v":0.12410405905467314},{"$f":"(Monthly!CQ70/Monthly!CQ58)-1","v":1.424950478178455E-2},"--",null,null,null,null,null,null,null,{"$f":"(Monthly!CZ70/Monthly!CZ58)-1","v":1.6458196181698526E-2},{"$f":"(Monthly!DA70/Monthly!DA58)-1","v":1.5822784810126667E-2},null,null,null,null,null,null,"--",{"$f":"((Monthly!DI70-Monthly!DI58)*100)","v":10.000000000000142},"--",{"$f":"((Monthly!DK70-Monthly!DK58)*100)","v":0},{"$f":"Monthly!DL70-Monthly!DL58","v":192},null,null,null,{"$f":"Monthly!DP70-Monthly!DP58","v":1332},null,null,null,"--","--","--","--","--","--","--","--","--","--",null,null,null,null,null,null,null,null,null,null,null,null,null,{"$f":"(Monthly!EQ70/Monthly!EQ58)-1","v":0},"--",{"$f":"(Monthly!ES70/Monthly!ES58)-1","v":6.0606060606060996E-3},null,null,null,null,null,{"$f":"((Monthly!EY70-Monthly!EY58)*100)","v":0},{"$f":"((Monthly!EZ70-Monthly!EZ58)*100)","v":44.999999999999972},{"$f":"((Monthly!FA70-Monthly!FA58)*100)","v":10.999999999999943},{"$f":"((Monthly!FB70-Monthly!FB58)*100)","v":-7.0000000000000284},"--","--",{"$f":"((Monthly!FE70-Monthly!FE58)*100)","v":64.999999999999986},{"$f":"((Monthly!FF70-Monthly!FF58)*100)","v":80.000000000000028},"--",{"$f":"((Monthly!FH70-Monthly!FH58)*100)","v":48},{"$f":"((Monthly!FI70-Monthly!FI58)*100)","v":27},null,null,null,null,null,null,"--","--","--","--","--","--","--","--","--",null,null,null,null,null,{"$f":"(Monthly!GD70/Monthly!GD58)-1","v":0},"--","--","--","--","--","--","--","--"]
["1964-01-01",null,null,null,{"$f":"(Monthly!E71/Monthly!E59)-1","v":{"$error":"#DIV/0!"}},{"$f":"(Monthly!F71/Monthly!F59)-1","v":{"$error":"#DIV/0!"}},{"$f":"(Monthly!G71/Monthly!G59)-1","v":{"$error":"#DIV/0!"}},{"$f":"(Monthly!H71/Monthly!H59)-1","v":{"$error":"#DIV/0!"}},null,null,null,null,null,null,null,null,null,null,null,null,null,null,null,"--",{"$f":"(Monthly!Y71/Monthly!Y59)-1","v":9.9791659235915819E-2},null,null,null,null,null,null,null,null,null,null,null,null,null,{"$f":"(Monthly!AM71/Monthly!AM59)-1","v":7.0541245091201965E-2},"--","--","--",{"$f":"Monthly!AQ71-Monthly!AQ59","v":1.8999999999999986},"--","--",{"$f":"Monthly!AT71-Monthly!AT59","v":-1.1000000000000014},"--","--",{"$f":"Monthly!AW71-Monthly!AW59","v":-4.5},{"$f":"Monthly!AX71-Monthly!AX59","v":0.39999999999999858},{"$f":"Monthly!AY71-Monthly!AY59","v":11.5},{"$f":"Monthly!AZ71-Monthly!AZ59","v":6.7999999999999972},{"$f":"Monthly!BA71-Monthly!BA59","v":4.8999999999999986},"--","--",null,null,null,null,null,null,null,null,null,"--","--",null,null,null,null,null,{"$f":"(Monthly!BT71/Monthly!BT59)-1","v":0.13368864910167089},null,null,null,{"$f":"(Monthly!BX71/Monthly!BX59)-1","v":0.28858520900321549},{"$f":"(Monthly!BY71/Monthly!BY59)-1","v":3.8461538461538547E-2},"--","--",{"$f":"Monthly!CB71-Monthly!CB59","v":0.21101763570604515},{"$f":"Monthly!CC71-Monthly!CC59","v":0.14101763570604575},"--","--",null,"--","--",null,{"$f":"(Monthly!CJ71/Monthly!CJ59)-1","v":-7.1065989847715727E-2},{"$f":"(Monthly!CK71/Monthly!CK59)-1","v":5.6588186699710885E-2},{"$f":"(Monthly!CL71/Monthly!CL59)-1","v":4.0685224839400291E-2},{"$f":"(Monthly!CM71/Monthly!CM59)-1","v":0.26296296296296306},{"$f":"(Monthly!CN71/Monthly!CN59)-1","v":4.4434187890739496E-2},{"$f":"(Monthly!CO71/Monthly!CO59)-1","v":9.8318899643402791E-2},{"$f":"(Monthly!CP71/Monthly!CP59)-1","v":0.12824568686140436},{"$f":"(Monthly!CQ71/Monthly!CQ59)-1","v":1.4121363948237597E-2},"--",null,null,null,null,null,null,null,{"$f":"(Monthly!CZ71/Monthly!CZ59)-1","v":1.6425755584756896E-2},{"$f":"(Monthly!DA71/Monthly!DA59)-1","v":2.2222222222222365E-2},null,null,null,null,null,null,"--",{"$f":"((Monthly!DI71-Monthly!DI59)*100)","v":0},"--",{"$f":"((Monthly!DK71-Monthly!DK59)*100)","v":-10.000000000000053},{"$f":"Monthly!DL71-Monthly!DL59","v":170},null,null,null,{"$f":"Monthly!DP71-Monthly!DP59","v":1371},null,null,null,"--","--","--","--","--","--","--","--","--","--",null,null,null,null,null,null,null,null,null,null,null,null,null,{"$f":"(Monthly!EQ71/Monthly!EQ59)-1","v":6.3291139240506666E-3},"--",{"$f":"(Monthly!ES71/Monthly!ES59)-1","v":6.0606060606060996E-3},null,null,null,null,null,{"$f":"((Monthly!EY71-Monthly!EY59)*100)","v":0},{"$f":"((Monthly!EZ71-Monthly!EZ59)*100)","v":56.000000000000007},{"$f":"((Monthly!FA71-Monthly!FA59)*100)","v":17.999999999999972},{"$f":"((Monthly!FB71-Monthly!FB59)*100)","v":-8.0000000000000071},"--","--",{"$f":"((Monthly!FE71-Monthly!FE59)*100)","v":60.999999999999986},{"$f":"((Monthly!FF71-Monthly!FF59)*100)","v":75},"--",{"$f":"((Monthly!FH71-Monthly!FH59)*100)","v":49.000000000000021},{"$f":"((Monthly!FI71-Monthly!FI59)*100)","v":33.999999999999986},null,null,null,null,null,null,"--","--","--","--","--","--","--","--","--",null,null,null,null,null,{"$f":"(Monthly!GD71/Monthly!GD59)-1","v":0},"--","--","--","--","--","--","--","--"]
["1964-02-01",null,null,null,{"$f":"(Monthly!E72/Monthly!E60)-1","v":{"$error":"#DIV/0!"}},{"$f":"(Monthly!F72/Monthly!F60)-1","v":{"$error":"#DIV/0!"}},{"$f":"(Monthly!G72/Monthly!G60)-1","v":{"$error":"#DIV/0!"}},{"$f":"(Monthly!H72/Monthly!H60)-1","v":{"$error":"#DIV/0!"}},null,null,null,null,null,null,null,null,null,null,null,null,null,null,null,"--",{"$f":"(Monthly!Y72/Monthly!Y60)-1","v":9.8658983804940092E-2},null,null,null,null,null,null,null,null,null,null,null,null,null,{"$f":"(Monthly!AM72/Monthly!AM60)-1","v":6.5641350879974691E-2},"--","--","--",{"$f":"Monthly!AQ72-Monthly!AQ60","v":2.7999999999999972},"--","--",{"$f":"Monthly!AT72-Monthly!AT60","v":2.5},"--","--",{"$f":"Monthly!AW72-Monthly!AW60","v":2.1000000000000014},{"$f":"Monthly!AX72-Monthly!AX60","v":1.3999999999999986},{"$f":"Monthly!AY72-Monthly!AY60","v":8.3999999999999986},{"$f":"Monthly!AZ72-Monthly!AZ60","v":6.2999999999999972},{"$f":"Monthly!BA72-Monthly!BA60","v":0.89999999999999858},"--","--",null,null,null,null,null,null,null,null,null,"--","--",null,null,null,null,null,{"$f":"(Monthly!BT72/Monthly!BT60)-1","v":0.13435839691445506},null,null,null,{"$f":"(Monthly!BX72/Monthly!BX60)-1","v":0.25},{"$f":"(Monthly!BY72/Monthly!BY60)-1","v":0.18976897689768979},"--","--",{"$f":"Monthly!CB72-Monthly!CB60","v":-0.31806647716031655},{"$f":"Monthly!CC72-Monthly!CC60","v":-0.66806647716031797},"--","--",null,"--","--",null,{"$f":"(Monthly!CJ72/Monthly!CJ60)-1","v":0.3125},{"$f":"(Monthly!CK72/Monthly!CK60)-1","v":6.7012448132780067E-2},{"$f":"(Monthly!CL72/Monthly!CL60)-1","v":3.5164835164835262E-2},{"$f":"(Monthly!CM72/Monthly!CM60)-1","v":0.18935516888433979},{"$f":"(Monthly!CN72/Monthly!CN60)-1","v":5.386466292371983E-2},{"$f":"(Monthly!CO72/Monthly!CO60)-1","v":9.6415951539626343E-2},{"$f":"(Monthly!CP72/Monthly!CP60)-1","v":0.12914115381510816},{"$f":"(Monthly!CQ72/Monthly!CQ60)-1","v":1.4053226929064522E-2},"--",null,null,null,null,null,null,null,{"$f":"(Monthly!CZ72/Monthly!CZ60)-1","v":1.4107611548556331E-2},{"$f":"(Monthly!DA72/Monthly!DA60)-1","v":1.8987341772152E-2},null,null,null,null,null,null,"--",{"$f":"((Monthly!DI72-Monthly!DI60)*100)","v":19.999999999999574},"--",{"$f":"((Monthly!DK72-Monthly!DK60)*100)","v":-50},{"$f":"Monthly!DL72-Monthly!DL60","v":200},null,null,null,{"$f":"Monthly!DP72-Monthly!DP60","v":1521},null,null,null,"--","--","--","--","--","--","--","--","--","--",null,null,null,null,null,null,null,null,null,null,null,null,null,{"$f":"(Monthly!EQ72/Monthly!EQ60)-1","v":3.1746031746031633E-3},"--",{"$f":"(Monthly!ES72/Monthly!ES60)-1","v":6.0606060606060996E-3},null,null,null,null,null,{"$f":"((Monthly!EY72-Monthly!EY60)*100)","v":0},{"$f":"((Monthly!EZ72-Monthly!EZ60)*100)","v":48},{"$f":"((Monthly!FA72-Monthly!FA60)*100)","v":16.999999999999993},{"$f":"((Monthly!FB72-Monthly!FB60)*100)","v":-5.9999999999999609},"--","--",{"$f":"((Monthly!FE72-Monthly!FE60)*100)","v":60.999999999999986},{"$f":"((Monthly!FF72-Monthly!FF60)*100)","v":77},"--",{"$f":"((Monthly!FH72-Monthly!FH60)*100)","v":37.000000000000014},{"$f":"((Monthly!FI72-Monthly!FI60)*100)","v":23.000000000000043},null,null,null,null,null,null,"--","--","--","--","--","--","--","--","--",null,null,null,null,null,{"$f":"(Monthly!GD72/Monthly!GD60)-1","v":0},"--","--","--","--","--","--","--","--"]
["1964-03-01",null,null,null,{"$f":"(Monthly!E73/Monthly!E61)-1","v":{"$error":"#DIV/0!"}},{"$f":"(Monthly!F73/Monthly!F61)-1","v":{"$error":"#DIV/0!"}},{"$f":"(Monthly!G73/Monthly!G61)-1","v":{"$error":"#DIV/0!"}},{"$f":"(Monthly!H73/Monthly!H61)-1","v":{"$error":"#DIV/0!"}},null,null,null,null,null,null,null,null,null,null,null,null,null,null,null,"--",{"$f":"(Monthly!Y73/Monthly!Y61)-1","v":9.880372452521069E-2},null,null,null,null,null,null,null,null,null,null,null,null,null,{"$f":"(Monthly!AM73/Monthly!AM61)-1","v":5.9123392091472216E-2},"--","--","--",{"$f":"Monthly!AQ73-Monthly!AQ61","v":5.5},"--","--",{"$f":"Monthly!AT73-Monthly!AT61","v":2.8000000000000043},"--","--",{"$f":"Monthly!AW73-Monthly!AW61","v":7.8000000000000043},{"$f":"Monthly!AX73-Monthly!AX61","v":4.2000000000000028},{"$f":"Monthly!AY73-Monthly!AY61","v":13.100000000000001},{"$f":"Monthly!AZ73-Monthly!AZ61","v":8.1000000000000085},{"$f":"Monthly!BA73-Monthly!BA61","v":5.3999999999999986},"--","--",null,null,null,null,null,null,null,null,null,"--","--",null,null,null,null,null,{"$f":"(Monthly!BT73/Monthly!BT61)-1","v":0.13668401544104958},null,null,null,{"$f":"(Monthly!BX73/Monthly!BX61)-1","v":-1.1082138200782299E-2},{"$f":"(Monthly!BY73/Monthly!BY61)-1","v":4.3720190779014345E-2},"--","--",{"$f":"Monthly!CB73-Monthly!CB61","v":-1.7573322895369614E-2},{"$f":"Monthly!CC73-Monthly!CC61","v":-0.22757332289536869},"--","--",null,"--","--",null,{"$f":"(Monthly!CJ73/Monthly!CJ61)-1","v":0.21908893709327559},{"$f":"(Monthly!CK73/Monthly!CK61)-1","v":6.8844324994831618E-2},{"$f":"(Monthly!CL73/Monthly!CL61)-1","v":0.24833702882483366},{"$f":"(Monthly!CM73/Monthly!CM61)-1","v":-3.2224532224532254E-2},{"$f":"(Monthly!CN73/Monthly!CN61)-1","v":7.412857923727012E-2},{"$f":"(Monthly!CO73/Monthly!CO61)-1","v":9.395302348825596E-2},{"$f":"(Monthly!CP73/Monthly!CP61)-1","v":0.13081996877559798},{"$f":"(Monthly!CQ73/Monthly!CQ61)-1","v":1.4119870267056633E-2},"--",null,null,null,null,null,null,null,{"$f":"(Monthly!CZ73/Monthly!CZ61)-1","v":1.4093739757456536E-2},{"$f":"(Monthly!DA73/Monthly!DA61)-1","v":1.5772870662460692E-2},null,null,null,null,null,null,"--",{"$f":"((Monthly!DI73-Monthly!DI61)*100)","v":10.000000000000142},"--",{"$f":"((Monthly!DK73-Monthly!DK61)*100)","v":-29.999999999999982},{"$f":"Monthly!DL73-Monthly!DL61","v":206},null,null,null,{"$f":"Monthly!DP73-Monthly!DP61","v":1576},null,null,null,"--","--","--","--","--","--","--","--","--","--",null,null,null,null,null,null,null,null,null,null,null,null,null,{"$f":"(Monthly!EQ73/Monthly!EQ61)-1","v":3.1746031746031633E-3},"--",{"$f":"(Monthly!ES73/Monthly!ES61)-1","v":9.0909090909090384E-3},null,null,null,null,null,{"$f":"((Monthly!EY73-Monthly!EY61)*100)","v":0},{"$f":"((Monthly!EZ73-Monthly!EZ61)*100)","v":45.000000000000014},{"$f":"((Monthly!FA73-Monthly!FA61)*100)","v":18.99999999999995},{"$f":"((Monthly!FB73-Monthly!FB61)*100)","v":-4.9999999999999822},"--","--",{"$f":"((Monthly!FE73-Monthly!FE61)*100)","v":64.999999999999986},{"$f":"((Monthly!FF73-Monthly!FF61)*100)","v":88.000000000000028},"--",{"$f":"((Monthly!FH73-Monthly!FH61)*100)","v":45.99999999999995},{"$f":"((Monthly!FI73-Monthly!FI61)*100)","v":28.999999999999957},null,null,null,null,null,null,"--","--","--","--","--","--","--","--","--",null,null,null,null,null,{"$f":"(Monthly!GD73/Monthly!GD61)-1","v":0},"--","--","--","--","--","--","--","--"]
["1964-04-01",null,null,null,{"$f":"(Monthly!E74/Monthly!E62)-1","v":{"$error":"#DIV/0!"}},{"$f":"(Monthly!F74/Monthly!F62)-1","v":{"$error":"#DIV/0!"}},{"$f":"(Monthly!G74/Monthly!G62)-1","v":{"$error":"#DIV/0!"}},{"$f":"(Monthly!H74/Monthly!H62)-1","v":{"$error":"#DIV/0!"}},null,null,null,null,null,null,null,null,null,null,null,null,null,null,null,"--",{"$f":"(Monthly!Y74/Monthly!Y62)-1","v":9.9961357009569873E-2},null,null,null,null,null,null,null,null,null,null,null,null,null,{"$f":"(Monthly!AM74/Monthly!AM62)-1","v":6.6665698286693775E-2},"--","--","--",{"$f":"Monthly!AQ74-Monthly!AQ62","v":1.6000000000000014},"--","--",{"$f":"Monthly!AT74-Monthly!AT62","v":2.5},"--","--",{"$f":"Monthly!AW74-Monthly!AW62","v":4.5},{"$f":"Monthly!AX74-Monthly!AX62","v":3},{"$f":"Monthly!AY74-Monthly!AY62","v":10.400000000000006},{"$f":"Monthly!AZ74-Monthly!AZ62","v":-0.39999999999999858},{"$f":"Monthly!BA74-Monthly!BA62","v":-0.5},"--","--",null,null,null,null,null,null,null,null,null,"--","--",null,null,null,null,null,{"$f":"(Monthly!BT74/Monthly!BT62)-1","v":0.13910600530803419},null,null,null,{"$f":"(Monthly!BX74/Monthly!BX62)-1","v":-0.14268798105387803},{"$f":"(Monthly!BY74/Monthly!BY62)-1","v":-1.8633540372670843E-2},"--","--",{"$f":"Monthly!CB74-Monthly!CB62","v":0.24825095721030532},{"$f":"Monthly!CC74-Monthly!CC62","v":-3.1749042789693149E-2},"--","--",null,"--","--",null,{"$f":"(Monthly!CJ74/Monthly!CJ62)-1","v":-7.6033057851239705E-2},{"$f":"(Monthly!CK74/Monthly!CK62)-1","v":7.3180787466501807E-2},{"$f":"(Monthly!CL74/Monthly!CL62)-1","v":0.27412280701754388},{"$f":"(Monthly!CM74/Monthly!CM62)-1","v":-0.1779197080291971},{"$f":"(Monthly!CN74/Monthly!CN62)-1","v":7.5174751998660527E-2},{"$f":"(Monthly!CO74/Monthly!CO62)-1","v":9.2757936507936511E-2},{"$f":"(Monthly!CP74/Monthly!CP62)-1","v":0.12862138708729742},{"$f":"(Monthly!CQ74/Monthly!CQ62)-1","v":1.4131933396966723E-2},"--",null,null,null,null,null,null,null,{"$f":"(Monthly!CZ74/Monthly!CZ62)-1","v":1.5419947506561726E-2},{"$f":"(Monthly!DA74/Monthly!DA62)-1","v":1.5772870662460692E-2},null,null,null,null,null,null,"--",{"$f":"((Monthly!DI74-Monthly!DI62)*100)","v":30.000000000000426},"--",{"$f":"((Monthly!DK74-Monthly!DK62)*100)","v":-40.000000000000036},{"$f":"Monthly!DL74-Monthly!DL62","v":183},null,null,null,{"$f":"Monthly!DP74-Monthly!DP62","v":1342},null,null,null,"--","--","--","--","--","--","--","--","--","--",null,null,null,null,null,null,null,null,null,null,null,null,null,{"$f":"(Monthly!EQ74/Monthly!EQ62)-1","v":6.3694267515923553E-3},"--",{"$f":"(Monthly!ES74/Monthly!ES62)-1","v":9.0909090909090384E-3},null,null,null,null,null,{"$f":"((Monthly!EY74-Monthly!EY62)*100)","v":0},{"$f":"((Monthly!EZ74-Monthly!EZ62)*100)","v":57.000000000000028},{"$f":"((Monthly!FA74-Monthly!FA62)*100)","v":19.000000000000039},{"$f":"((Monthly!FB74-Monthly!FB62)*100)","v":-2.0000000000000462},"--","--",{"$f":"((Monthly!FE74-Monthly!FE62)*100)","v":57.000000000000028},{"$f":"((Monthly!FF74-Monthly!FF62)*100)","v":80.000000000000028},"--",{"$f":"((Monthly!FH74-Monthly!FH62)*100)","v":41.000000000000014},{"$f":"((Monthly!FI74-Monthly!FI62)*100)","v":26.000000000000021},null,null,null,null,null,null,"--","--","--","--","--","--","--","--","--",null,null,null,null,null,{"$f":"(Monthly!GD74/Monthly!GD62)-1","v":0},"--","--","--","--","--","--","--","--"]
["1964-05-01",null,null,null,{"$f":"(Monthly!E75/Monthly!E63)-1","v":{"$error":"#DIV/0!"}},{"$f":"(Monthly!F75/Monthly!F63)-1","v":{"$error":"#DIV/0!"}},{"$f":"(Monthly!G75/Monthly!G63)-1","v":{"$error":"#DIV/0!"}},{"$f":"(Monthly!H75/Monthly!H63)-1","v":{"$error":"#DIV/0!"}},null,null,null,null,null,null,null,null,null,null,null,null,null,null,null,"--",{"$f":"(Monthly!Y75/Monthly!Y63)-1","v":0.10474007687722264},null,null,null,null,null,null,null,null,null,null,null,null,null,{"$f":"(Monthly!AM75/Monthly!AM63)-1","v":5.9882817685703138E-2},"--","--","--",{"$f":"Monthly!AQ75-Monthly!AQ63","v":-1.0999999999999943},"--","--",{"$f":"Monthly!AT75-Monthly!AT63","v":2.5},"--","--",{"$f":"Monthly!AW75-Monthly!AW63","v":-3.9000000000000057},{"$f":"Monthly!AX75-Monthly!AX63","v":-7.0000000000000071},{"$f":"Monthly!AY75-Monthly!AY63","v":-6.7999999999999972},{"$f":"Monthly!AZ75-Monthly!AZ63","v":0.60000000000000142},{"$f":"Monthly!BA75-Monthly!BA63","v":5},"--","--",null,null,null,null,null,null,null,null,null,"--","--",null,null,null,null,null,{"$f":"(Monthly!BT75/Monthly!BT63)-1","v":0.14220242563978513},null,null,null,{"$f":"(Monthly!BX75/Monthly!BX63)-1","v":-0.10603290676416821},{"$f":"(Monthly!BY75/Monthly!BY63)-1","v":-3.7777777777777799E-2},"--","--",{"$f":"Monthly!CB75-Monthly!CB63","v":-0.15237861122818774},{"$f":"Monthly!CC75-Monthly!CC63","v":-0.71237861122818735},"--","--",null,"--","--",null,{"$f":"(Monthly!CJ75/Monthly!CJ63)-1","v":-0.10750853242320824},{"$f":"(Monthly!CK75/Monthly!CK63)-1","v":7.4005740057400571E-2},{"$f":"(Monthly!CL75/Monthly!CL63)-1","v":0.17521367521367526},{"$f":"(Monthly!CM75/Monthly!CM63)-1","v":-0.11577964519140993},{"$f":"(Monthly!CN75/Monthly!CN63)-1","v":7.7343456676817857E-2},{"$f":"(Monthly!CO75/Monthly!CO63)-1","v":9.247417609444164E-2},{"$f":"(Monthly!CP75/Monthly!CP63)-1","v":0.13316586084550264},{"$f":"(Monthly!CQ75/Monthly!CQ63)-1","v":1.4073838656708526E-2},"--",null,null,null,null,null,null,null,{"$f":"(Monthly!CZ75/Monthly!CZ63)-1","v":1.5404785316289749E-2},{"$f":"(Monthly!DA75/Monthly!DA63)-1","v":1.5772870662460692E-2},null,null,null,null,null,null,"--",{"$f":"((Monthly!DI75-Monthly!DI63)*100)","v":30.000000000000426},"--",{"$f":"((Monthly!DK75-Monthly!DK63)*100)","v":-80.000000000000071},{"$f":"Monthly!DL75-Monthly!DL63","v":171},null,null,null,{"$f":"Monthly!DP75-Monthly!DP63","v":1473},null,null,null,"--","--","--","--","--","--","--","--","--","--",null,null,null,null,null,null,null,null,null,null,null,null,null,{"$f":"(Monthly!EQ75/Monthly!EQ63)-1","v":0},"--",{"$f":"(Monthly!ES75/Monthly!ES63)-1","v":1.5151515151515138E-2},null,null,null,null,null,{"$f":"((Monthly!EY75-Monthly!EY63)*100)","v":0},{"$f":"((Monthly!EZ75-Monthly!EZ63)*100)","v":50},{"$f":"((Monthly!FA75-Monthly!FA63)*100)","v":19.000000000000039},{"$f":"((Monthly!FB75-Monthly!FB63)*100)","v":0},"--","--",{"$f":"((Monthly!FE75-Monthly!FE63)*100)","v":54.999999999999986},{"$f":"((Monthly!FF75-Monthly!FF63)*100)","v":71.999999999999972},"--",{"$f":"((Monthly!FH75-Monthly!FH63)*100)","v":32.999999999999964},{"$f":"((Monthly!FI75-Monthly!FI63)*100)","v":27},null,null,null,null,null,null,"--","--","--","--","--","--","--","--","--",null,null,null,null,null,{"$f":"(Monthly!GD75/Monthly!GD63)-1","v":0},"--","--","--","--","--","--","--","--"]
["1964-06-01",null,null,null,{"$f":"(Monthly!E76/Monthly!E64)-1","v":{"$error":"#DIV/0!"}},{"$f":"(Monthly!F76/Monthly!F64)-1","v":{"$error":"#DIV/0!"}},{"$f":"(Monthly!G76/Monthly!G64)-1","v":{"$error":"#DIV/0!"}},{"$f":"(Monthly!H76/Monthly!H64)-1","v":{"$error":"#DIV/0!"}},null,null,null,null,null,null,null,null,null,null,null,null,null,null,null,"--",{"$f":"(Monthly!Y76/Monthly!Y64)-1","v":0.10247954693594941},null,null,null,null,null,null,null,null,null,null,null,null,null,{"$f":"(Monthly!AM76/Monthly!AM64)-1","v":5.9700371316348644E-2},"--","--","--",{"$f":"Monthly!AQ76-Monthly!AQ64","v":1.8999999999999986},"--","--",{"$f":"Monthly!AT76-Monthly!AT64","v":3.1000000000000014},"--","--",{"$f":"Monthly!AW76-Monthly!AW64","v":-1.5},{"$f":"Monthly!AX76-Monthly!AX64","v":2.8000000000000043},{"$f":"Monthly!AY76-Monthly!AY64","v":0.19999999999999574},{"$f":"Monthly!AZ76-Monthly!AZ64","v":1.5},{"$f":"Monthly!BA76-Monthly!BA64","v":1.3000000000000043},"--","--",null,null,null,null,null,null,null,null,null,"--","--",null,null,null,null,null,{"$f":"(Monthly!BT76/Monthly!BT64)-1","v":0.14428457109762527},null,null,null,{"$f":"(Monthly!BX76/Monthly!BX64)-1","v":-2.3929471032745564E-2},{"$f":"(Monthly!BY76/Monthly!BY64)-1","v":-4.8327137546468446E-2},"--","--",{"$f":"Monthly!CB76-Monthly!CB64","v":-0.41730238326269564},{"$f":"Monthly!CC76-Monthly!CC64","v":-0.697302383262695},"--","--",null,"--","--",null,{"$f":"(Monthly!CJ76/Monthly!CJ64)-1","v":0.10266159695817501},{"$f":"(Monthly!CK76/Monthly!CK64)-1","v":7.1632071632071748E-2},{"$f":"(Monthly!CL76/Monthly!CL64)-1","v":0.1907894736842104},{"$f":"(Monthly!CM76/Monthly!CM64)-1","v":-2.5819265143992021E-2},{"$f":"(Monthly!CN76/Monthly!CN64)-1","v":7.5037332005972956E-2},{"$f":"(Monthly!CO76/Monthly!CO64)-1","v":9.210526315789469E-2},{"$f":"(Monthly!CP76/Monthly!CP64)-1","v":0.13290462966570016},{"$f":"(Monthly!CQ76/Monthly!CQ64)-1","v":1.4009247796506141E-2},"--",null,null,null,null,null,null,null,{"$f":"(Monthly!CZ76/Monthly!CZ64)-1","v":1.3067624959163693E-2},{"$f":"(Monthly!DA76/Monthly!DA64)-1","v":1.5723270440251458E-2},null,null,null,null,null,null,"--",{"$f":"((Monthly!DI76-Monthly!DI64)*100)","v":20.000000000000284},"--",{"$f":"((Monthly!DK76-Monthly!DK64)*100)","v":-39.999999999999943},{"$f":"Monthly!DL76-Monthly!DL64","v":215},null,null,null,{"$f":"Monthly!DP76-Monthly!DP64","v":1563},null,null,null,"--","--","--","--","--","--","--","--","--","--",null,null,null,null,null,null,null,null,null,null,null,null,null,{"$f":"(Monthly!EQ76/Monthly!EQ64)-1","v":-3.1645569620253333E-3},"--",{"$f":"(Monthly!ES76/Monthly!ES64)-1","v":1.2121212121211977E-2},null,null,null,null,null,{"$f":"((Monthly!EY76-Monthly!EY64)*100)","v":0},{"$f":"((Monthly!EZ76-Monthly!EZ64)*100)","v":50.999999999999979},{"$f":"((Monthly!FA76-Monthly!FA64)*100)","v":17.999999999999972},{"$f":"((Monthly!FB76-Monthly!FB64)*100)","v":0.99999999999997868},"--","--",{"$f":"((Monthly!FE76-Monthly!FE64)*100)","v":48.999999999999979},{"$f":"((Monthly!FF76-Monthly!FF64)*100)","v":62.999999999999986},"--",{"$f":"((Monthly!FH76-Monthly!FH64)*100)","v":20.99999999999995},{"$f":"((Monthly!FI76-Monthly!FI64)*100)","v":17.999999999999972},null,null,null,null,null,null,"--","--","--","--","--","--","--","--","--",null,null,null,null,null,{"$f":"(Monthly!GD76/Monthly!GD64)-1","v":0},"--","--","--","--","--","--","--","--"]
["1964-07-01",null,null,null,{"$f":"(Monthly!E77/Monthly!E65)-1","v":{"$error":"#DIV/0!"}},{"$f":"(Monthly!F77/Monthly!F65)-1","v":{"$error":"#DIV/0!"}},{"$f":"(Monthly!G77/Monthly!G65)-1","v":{"$error":"#DIV/0!"}},{"$f":"(Monthly!H77/Monthly!H65)-1","v":{"$error":"#DIV/0!"}},null,null,null,null,null,null,null,null,null,null,null,null,null,null,null,"--",{"$f":"(Monthly!Y77/Monthly!Y65)-1","v":0.10612253974414942},null,null,null,null,null,null,null,null,null,null,null,null,null,{"$f":"(Monthly!AM77/Monthly!AM65)-1","v":7.0929092456713194E-2},"--","--","--",{"$f":"Monthly!AQ77-Monthly!AQ65","v":7.3999999999999986},"--","--",{"$f":"Monthly!AT77-Monthly!AT65","v":4.2999999999999972},"--","--",{"$f":"Monthly!AW77-Monthly!AW65","v":1.5},{"$f":"Monthly!AX77-Monthly!AX65","v":9.8000000000000043},{"$f":"Monthly!AY77-Monthly!AY65","v":-0.10000000000000142},{"$f":"Monthly!AZ77-Monthly!AZ65","v":3.3000000000000043},{"$f":"Monthly!BA77-Monthly!BA65","v":18.199999999999996},"--","--",null,null,null,null,null,null,null,null,null,"--","--",null,null,null,null,null,{"$f":"(Monthly!BT77/Monthly!BT65)-1","v":0.15106298448717093},null,null,null,{"$f":"(Monthly!BX77/Monthly!BX65)-1","v":-3.2218091697645557E-2},{"$f":"(Monthly!BY77/Monthly!BY65)-1","v":-1.2869038607115857E-2},"--","--",{"$f":"Monthly!CB77-Monthly!CB65","v":-1.1799925990763169},{"$f":"Monthly!CC77-Monthly!CC65","v":-1.669992599076318},"--","--",null,"--","--",null,{"$f":"(Monthly!CJ77/Monthly!CJ65)-1","v":-0.13533834586466165},{"$f":"(Monthly!CK77/Monthly!CK65)-1","v":7.5329949238578831E-2},{"$f":"(Monthly!CL77/Monthly!CL65)-1","v":0.20501138952164011},{"$f":"(Monthly!CM77/Monthly!CM65)-1","v":-6.0135790494665331E-2},{"$f":"(Monthly!CN77/Monthly!CN65)-1","v":7.7834880636604709E-2},{"$f":"(Monthly!CO77/Monthly!CO65)-1","v":9.2009685230024285E-2},{"$f":"(Monthly!CP77/Monthly!CP65)-1","v":0.13171701058219254},{"$f":"(Monthly!CQ77/Monthly!CQ65)-1","v":1.3987381236723273E-2},"--",null,null,null,null,null,null,null,{"$f":"(Monthly!CZ77/Monthly!CZ65)-1","v":1.0752688172043001E-2},{"$f":"(Monthly!DA77/Monthly!DA65)-1","v":1.5723270440251458E-2},null,null,null,null,null,null,"--",{"$f":"((Monthly!DI77-Monthly!DI65)*100)","v":-10.000000000000142},"--",{"$f":"((Monthly!DK77-Monthly!DK65)*100)","v":-69.999999999999929},{"$f":"Monthly!DL77-Monthly!DL65","v":241},null,null,null,{"$f":"Monthly!DP77-Monthly!DP65","v":1619},null,null,null,"--","--","--","--","--","--","--","--","--","--",null,null,null,null,null,null,null,null,null,null,null,null,null,{"$f":"(Monthly!EQ77/Monthly!EQ65)-1","v":-3.154574132492094E-3},"--",{"$f":"(Monthly!ES77/Monthly!ES65)-1","v":1.5151515151515138E-2},null,null,null,null,null,{"$f":"((Monthly!EY77-Monthly!EY65)*100)","v":0},{"$f":"((Monthly!EZ77-Monthly!EZ65)*100)","v":39.999999999999993},{"$f":"((Monthly!FA77-Monthly!FA65)*100)","v":14.000000000000057},{"$f":"((Monthly!FB77-Monthly!FB65)*100)","v":-0.99999999999997868},"--","--",{"$f":"((Monthly!FE77-Monthly!FE65)*100)","v":27.999999999999979},{"$f":"((Monthly!FF77-Monthly!FF65)*100)","v":24.000000000000021},"--",{"$f":"((Monthly!FH77-Monthly!FH65)*100)","v":14.000000000000012},{"$f":"((Monthly!FI77-Monthly!FI65)*100)","v":17.000000000000082},null,null,null,null,null,null,"--","--","--","--","--","--","--","--","--",null,null,null,null,null,{"$f":"(Monthly!GD77/Monthly!GD65)-1","v":-1.6835016835016869E-2},"--","--","--","--","--","--","--","--"]
["1964-08-01",null,null,null,{"$f":"(Monthly!E78/Monthly!E66)-1","v":{"$error":"#DIV/0!"}},{"$f":"(Monthly!F78/Monthly!F66)-1","v":{"$error":"#DIV/0!"}},{"$f":"(Monthly!G78/Monthly!G66)-1","v":{"$error":"#DIV/0!"}},{"$f":"(Monthly!H78/Monthly!H66)-1","v":{"$error":"#DIV/0!"}},null,null,null,null,null,null,null,null,null,null,null,null,null,null,null,"--",{"$f":"(Monthly!Y78/Monthly!Y66)-1","v":0.11374624066229022},null,null,null,null,null,null,null,null,null,null,null,null,null,{"$f":"(Monthly!AM78/Monthly!AM66)-1","v":7.5769740850926359E-2},"--","--","--",{"$f":"Monthly!AQ78-Monthly!AQ66","v":8.1999999999999957},"--","--",{"$f":"Monthly!AT78-Monthly!AT66","v":6.8999999999999986},"--","--",{"$f":"Monthly!AW78-Monthly!AW66","v":5.3999999999999986},{"$f":"Monthly!AX78-Monthly!AX66","v":6},{"$f":"Monthly!AY78-Monthly!AY66","v":1.9000000000000057},{"$f":"Monthly!AZ78-Monthly!AZ66","v":7.1000000000000014},{"$f":"Monthly!BA78-Monthly!BA66","v":17.700000000000003},"--","--",null,null,null,null,null,null,null,null,null,"--","--",null,null,null,null,null,{"$f":"(Monthly!BT78/Monthly!BT66)-1","v":0.17930314822463966},null,null,null,{"$f":"(Monthly!BX78/Monthly!BX66)-1","v":-4.2708968883465537E-2},{"$f":"(Monthly!BY78/Monthly!BY66)-1","v":-3.0534351145038441E-3},"--","--",{"$f":"Monthly!CB78-Monthly!CB66","v":-0.97656990044141523},{"$f":"Monthly!CC78-Monthly!CC66","v":-1.2565699004414146},"--","--",null,"--","--",null,{"$f":"(Monthly!CJ78/Monthly!CJ66)-1","v":2.1052631578947434E-2},{"$f":"(Monthly!CK78/Monthly!CK66)-1","v":7.8181818181818352E-2},{"$f":"(Monthly!CL78/Monthly!CL66)-1","v":0.19819819819819839},{"$f":"(Monthly!CM78/Monthly!CM66)-1","v":-6.25E-2},{"$f":"(Monthly!CN78/Monthly!CN66)-1","v":7.9650035079031012E-2},{"$f":"(Monthly!CO78/Monthly!CO66)-1","v":9.3795093795093765E-2},{"$f":"(Monthly!CP78/Monthly!CP66)-1","v":0.12771657139129222},{"$f":"(Monthly!CQ78/Monthly!CQ66)-1","v":1.3905306708321019E-2},"--",null,null,null,null,null,null,null,{"$f":"(Monthly!CZ78/Monthly!CZ66)-1","v":9.7560975609756184E-3},{"$f":"(Monthly!DA78/Monthly!DA66)-1","v":1.2539184952978122E-2},null,null,null,null,null,null,"--",{"$f":"((Monthly!DI78-Monthly!DI66)*100)","v":10.000000000000142},"--",{"$f":"((Monthly!DK78-Monthly!DK66)*100)","v":-40.000000000000036},{"$f":"Monthly!DL78-Monthly!DL66","v":304},null,null,null,{"$f":"Monthly!DP78-Monthly!DP66","v":1709},null,null,null,"--","--","--","--","--","--","--","--","--","--",null,null,null,null,null,null,null,null,null,null,null,null,null,{"$f":"(Monthly!EQ78/Monthly!EQ66)-1","v":0},"--",{"$f":"(Monthly!ES78/Monthly!ES66)-1","v":1.5151515151515138E-2},null,null,null,null,null,{"$f":"((Monthly!EY78-Monthly!EY66)*100)","v":0},{"$f":"((Monthly!EZ78-Monthly!EZ66)*100)","v":0.99999999999997868},{"$f":"((Monthly!FA78-Monthly!FA66)*100)","v":12.000000000000011},{"$f":"((Monthly!FB78-Monthly!FB66)*100)","v":-0.99999999999997868},"--","--",{"$f":"((Monthly!FE78-Monthly!FE66)*100)","v":18.000000000000014},{"$f":"((Monthly!FF78-Monthly!FF66)*100)","v":21.000000000000043},"--",{"$f":"((Monthly!FH78-Monthly!FH66)*100)","v":15.99999999999997},{"$f":"((Monthly!FI78-Monthly!FI66)*100)","v":19.000000000000039},null,null,null,null,null,null,"--","--","--","--","--","--","--","--","--",null,null,null,null,null,{"$f":"(Monthly!GD78/Monthly!GD66)-1","v":-1.6835016835016869E-2},"--","--","--","--","--","--","--","--"]
["1964-09-01",null,null,null,{"$f":"(Monthly!E79/Monthly!E67)-1","v":{"$error":"#DIV/0!"}},{"$f":"(Monthly!F79/Monthly!F67)-1","v":{"$error":"#DIV/0!"}},{"$f":"(Monthly!G79/Monthly!G67)-1","v":{"$error":"#DIV/0!"}},{"$f":"(Monthly!H79/Monthly!H67)-1","v":{"$error":"#DIV/0!"}},null,null,null,null,null,null,null,null,null,null,null,null,null,null,null,"--",{"$f":"(Monthly!Y79/Monthly!Y67)-1","v":0.11947212604746871},null,null,null,null,null,null,null,null,null,null,null,null,null,{"$f":"(Monthly!AM79/Monthly!AM67)-1","v":6.9102214209411095E-2},"--","--","--",{"$f":"Monthly!AQ79-Monthly!AQ67","v":6.3999999999999986},"--","--",{"$f":"Monthly!AT79-Monthly!AT67","v":2},"--","--",{"$f":"Monthly!AW79-Monthly!AW67","v":11.100000000000001},{"$f":"Monthly!AX79-Monthly!AX67","v":3.5},{"$f":"Monthly!AY79-Monthly!AY67","v":7},{"$f":"Monthly!AZ79-Monthly!AZ67","v":1.7000000000000028},{"$f":"Monthly!BA79-Monthly!BA67","v":22.200000000000003},"--","--",null,null,null,null,null,null,null,null,null,"--","--",null,null,null,null,null,{"$f":"(Monthly!BT79/Monthly!BT67)-1","v":0.16998389674397019},null,null,null,{"$f":"(Monthly!BX79/Monthly!BX67)-1","v":-0.17470221213840043},{"$f":"(Monthly!BY79/Monthly!BY67)-1","v":-0.10474168435951881},"--","--",{"$f":"Monthly!CB79-Monthly!CB67","v":-0.21431829388558477},{"$f":"Monthly!CC79-Monthly!CC67","v":-0.49431829388558413},"--","--",null,"--","--",null,{"$f":"(Monthly!CJ79/Monthly!CJ67)-1","v":0},{"$f":"(Monthly!CK79/Monthly!CK67)-1","v":7.7278201525491808E-2},{"$f":"(Monthly!CL79/Monthly!CL67)-1","v":0.17842323651452263},{"$f":"(Monthly!CM79/Monthly!CM67)-1","v":-0.13471971066907773},{"$f":"(Monthly!CN79/Monthly!CN67)-1","v":7.6090964966195385E-2},{"$f":"(Monthly!CO79/Monthly!CO67)-1","v":9.4988066825775652E-2},{"$f":"(Monthly!CP79/Monthly!CP67)-1","v":0.1314847822159424},{"$f":"(Monthly!CQ79/Monthly!CQ67)-1","v":1.3780492303476555E-2},"--",null,null,null,null,null,null,null,{"$f":"(Monthly!CZ79/Monthly!CZ67)-1","v":1.171875E-2},{"$f":"(Monthly!DA79/Monthly!DA67)-1","v":1.2539184952978122E-2},null,null,null,null,null,null,"--",{"$f":"((Monthly!DI79-Monthly!DI67)*100)","v":0},"--",{"$f":"((Monthly!DK79-Monthly!DK67)*100)","v":-40.000000000000036},{"$f":"Monthly!DL79-Monthly!DL67","v":399},null,null,null,{"$f":"Monthly!DP79-Monthly!DP67","v":1826},null,null,null,"--","--","--","--","--","--","--","--","--","--",null,null,null,null,null,null,null,null,null,null,null,null,null,{"$f":"(Monthly!EQ79/Monthly!EQ67)-1","v":3.1645569620253333E-3},"--",{"$f":"(Monthly!ES79/Monthly!ES67)-1","v":1.2084592145015005E-2},null,null,null,null,null,{"$f":"((Monthly!EY79-Monthly!EY67)*100)","v":0},{"$f":"((Monthly!EZ79-Monthly!EZ67)*100)","v":-2.9999999999999805},{"$f":"((Monthly!FA79-Monthly!FA67)*100)","v":11.000000000000032},{"$f":"((Monthly!FB79-Monthly!FB67)*100)","v":-1.9999999999999574},"--","--",{"$f":"((Monthly!FE79-Monthly!FE67)*100)","v":14.999999999999991},{"$f":"((Monthly!FF79-Monthly!FF67)*100)","v":27},"--",{"$f":"((Monthly!FH79-Monthly!FH67)*100)","v":12.000000000000011},{"$f":"((Monthly!FI79-Monthly!FI67)*100)","v":12.000000000000011},null,null,null,null,null,null,"--","--","--","--","--","--","--","--","--",null,null,null,null,null,{"$f":"(Monthly!GD79/Monthly!GD67)-1","v":-1.6835016835016869E-2},"--","--","--","--","--","--","--","--"]
["1964-10-01",null,null,null,{"$f":"(Monthly!E80/Monthly!E68)-1","v":{"$error":"#DIV/0!"}},{"$f":"(Monthly!F80/Monthly!F68)-1","v":{"$error":"#DIV/0!"}},{"$f":"(Monthly!G80/Monthly!G68)-1","v":{"$error":"#DIV/0!"}},{"$f":"(Monthly!H80/Monthly!H68)-1","v":{"$error":"#DIV/0!"}},null,null,null,null,null,null,null,null,null,null,null,null,null,null,null,"--",{"$f":"(Monthly!Y80/Monthly!Y68)-1","v":0.11663502680957172},null,null,null,null,null,null,null,null,null,null,null,null,null,{"$f":"(Monthly!AM80/Monthly!AM68)-1","v":4.706081390676653E-2},"--","--","--",{"$f":"Monthly!AQ80-Monthly!AQ68","v":3},"--","--",{"$f":"Monthly!AT80-Monthly!AT68","v":0.5},"--","--",{"$f":"Monthly!AW80-Monthly!AW68","v":12.700000000000003},{"$f":"Monthly!AX80-Monthly!AX68","v":-5.1000000000000014},{"$f":"Monthly!AY80-Monthly!AY68","v":-8.1000000000000085},{"$f":"Monthly!AZ80-Monthly!AZ68","v":-1.5},{"$f":"Monthly!BA80-Monthly!BA68","v":23.800000000000004},"--","--",null,null,null,null,null,null,null,null,null,"--","--",null,null,null,null,null,{"$f":"(Monthly!BT80/Monthly!BT68)-1","v":0.15130788647088655},null,null,null,{"$f":"(Monthly!BX80/Monthly!BX68)-1","v":-0.14333895446880274},{"$f":"(Monthly!BY80/Monthly!BY68)-1","v":-0.13012729844413018},"--","--",{"$f":"Monthly!CB80-Monthly!CB68","v":-0.41465448492536972},{"$f":"Monthly!CC80-Monthly!CC68","v":-0.69465448492536908},"--","--",null,"--","--",null,{"$f":"(Monthly!CJ80/Monthly!CJ68)-1","v":2.821869488536155E-2},{"$f":"(Monthly!CK80/Monthly!CK68)-1","v":7.0304720175263791E-2},{"$f":"(Monthly!CL80/Monthly!CL68)-1","v":5.46875E-2},{"$f":"(Monthly!CM80/Monthly!CM68)-1","v":-8.4558823529411797E-2},{"$f":"(Monthly!CN80/Monthly!CN68)-1","v":6.9229516207851338E-2},{"$f":"(Monthly!CO80/Monthly!CO68)-1","v":9.7479790775083286E-2},{"$f":"(Monthly!CP80/Monthly!CP68)-1","v":0.12537377018625273},{"$f":"(Monthly!CQ80/Monthly!CQ68)-1","v":1.3697981350116795E-2},"--",null,null,null,null,null,null,null,{"$f":"(Monthly!CZ80/Monthly!CZ68)-1","v":1.2032520325203189E-2},{"$f":"(Monthly!DA80/Monthly!DA68)-1","v":1.2499999999999956E-2},null,null,null,null,null,null,"--",{"$f":"((Monthly!DI80-Monthly!DI68)*100)","v":-19.999999999999574},"--",{"$f":"((Monthly!DK80-Monthly!DK68)*100)","v":-40.000000000000036},{"$f":"Monthly!DL80-Monthly!DL68","v":107},null,null,null,{"$f":"Monthly!DP80-Monthly!DP68","v":1510},null,null,null,"--","--","--","--","--","--","--","--","--","--",null,null,null,null,null,null,null,null,null,null,null,null,null,{"$f":"(Monthly!EQ80/Monthly!EQ68)-1","v":3.1645569620253333E-3},"--",{"$f":"(Monthly!ES80/Monthly!ES68)-1","v":1.2084592145015005E-2},null,null,null,null,null,{"$f":"((Monthly!EY80-Monthly!EY68)*100)","v":0},{"$f":"((Monthly!EZ80-Monthly!EZ68)*100)","v":-14.000000000000012},{"$f":"((Monthly!FA80-Monthly!FA68)*100)","v":9.9999999999999645},{"$f":"((Monthly!FB80-Monthly!FB68)*100)","v":-2.0000000000000462},"--","--",{"$f":"((Monthly!FE80-Monthly!FE68)*100)","v":11.999999999999966},{"$f":"((Monthly!FF80-Monthly!FF68)*100)","v":21.999999999999975},"--",{"$f":"((Monthly!FH80-Monthly!FH68)*100)","v":10.000000000000009},{"$f":"((Monthly!FI80-Monthly!FI68)*100)","v":8.0000000000000071},null,null,null,null,null,null,"--","--","--","--","--","--","--","--","--",null,null,null,null,null,{"$f":"(Monthly!GD80/Monthly!GD68)-1","v":-1.6835016835016869E-2},"--","--","--","--","--","--","--","--"]
["1964-11-01",null,null,null,{"$f":"(Monthly!E81/Monthly!E69)-1","v":{"$error":"#DIV/0!"}},{"$f":"(Monthly!F81/Monthly!F69)-1","v":{"$error":"#DIV/0!"}},{"$f":"(Monthly!G81/Monthly!G69)-1","v":{"$error":"#DIV/0!"}},{"$f":"(Monthly!H81/Monthly!H69)-1","v":{"$error":"#DIV/0!"}},null,null,null,null,null,null,null,null,null,null,null,null,null,null,null,"--",{"$f":"(Monthly!Y81/Monthly!Y69)-1","v":0.10977356737746446},null,null,null,null,null,null,null,null,null,null,null,null,null,{"$f":"(Monthly!AM81/Monthly!AM69)-1","v":7.4147080590230452E-2},"--","--","--",{"$f":"Monthly!AQ81-Monthly!AQ69","v":4.2999999999999972},"--","--",{"$f":"Monthly!AT81-Monthly!AT69","v":3.7999999999999972},"--","--",{"$f":"Monthly!AW81-Monthly!AW69","v":17.299999999999997},{"$f":"Monthly!AX81-Monthly!AX69","v":-3},{"$f":"Monthly!AY81-Monthly!AY69","v":2.2999999999999972},{"$f":"Monthly!AZ81-Monthly!AZ69","v":-1.9999999999999929},{"$f":"Monthly!BA81-Monthly!BA69","v":21.599999999999994},"--","--",null,null,null,null,null,null,null,null,null,"--","--",null,null,null,null,null,{"$f":"(Monthly!BT81/Monthly!BT69)-1","v":0.14931477868409293},null,null,null,{"$f":"(Monthly!BX81/Monthly!BX69)-1","v":-8.3847102342786695E-2},{"$f":"(Monthly!BY81/Monthly!BY69)-1","v":-7.5902726602800286E-2},"--","--",{"$f":"Monthly!CB81-Monthly!CB69","v":-0.81964464840203988},{"$f":"Monthly!CC81-Monthly!CC69","v":-1.4496446484020389},"--","--",null,"--","--",null,{"$f":"(Monthly!CJ81/Monthly!CJ69)-1","v":-5.3540587219343738E-2},{"$f":"(Monthly!CK81/Monthly!CK69)-1","v":7.4647607702997831E-2},{"$f":"(Monthly!CL81/Monthly!CL69)-1","v":0.23217922606924635},{"$f":"(Monthly!CM81/Monthly!CM69)-1","v":-9.8837209302325535E-2},{"$f":"(Monthly!CN81/Monthly!CN69)-1","v":7.3289703670582629E-2},{"$f":"(Monthly!CO81/Monthly!CO69)-1","v":9.6895578551269956E-2},{"$f":"(Monthly!CP81/Monthly!CP69)-1","v":0.12349534235631943},{"$f":"(Monthly!CQ81/Monthly!CQ69)-1","v":1.357054634325805E-2},"--",null,null,null,null,null,null,null,{"$f":"(Monthly!CZ81/Monthly!CZ69)-1","v":1.3970110461338558E-2},{"$f":"(Monthly!DA81/Monthly!DA69)-1","v":1.5625E-2},null,null,null,null,null,null,"--",{"$f":"((Monthly!DI81-Monthly!DI69)*100)","v":-29.999999999999716},"--",{"$f":"((Monthly!DK81-Monthly!DK69)*100)","v":-90.000000000000028},{"$f":"Monthly!DL81-Monthly!DL69","v":421},null,null,null,{"$f":"Monthly!DP81-Monthly!DP69","v":1962},null,null,null,"--","--","--","--","--","--","--","--","--","--",null,null,null,null,null,null,null,null,null,null,null,null,null,{"$f":"(Monthly!EQ81/Monthly!EQ69)-1","v":0},"--",{"$f":"(Monthly!ES81/Monthly!ES69)-1","v":9.0361445783131433E-3},null,null,null,null,null,{"$f":"((Monthly!EY81-Monthly!EY69)*100)","v":0},{"$f":"((Monthly!EZ81-Monthly!EZ69)*100)","v":4.0000000000000036},{"$f":"((Monthly!FA81-Monthly!FA69)*100)","v":9.9999999999999645},{"$f":"((Monthly!FB81-Monthly!FB69)*100)","v":-3.0000000000000249},"--","--",{"$f":"((Monthly!FE81-Monthly!FE69)*100)","v":12.000000000000011},{"$f":"((Monthly!FF81-Monthly!FF69)*100)","v":16.999999999999993},"--",{"$f":"((Monthly!FH81-Monthly!FH69)*100)","v":3.0000000000000249},{"$f":"((Monthly!FI81-Monthly!FI69)*100)","v":3.0000000000000249},null,null,null,null,null,null,"--","--","--","--","--","--","--","--","--",null,null,null,null,null,{"$f":"(Monthly!GD81/Monthly!GD69)-1","v":-1.6835016835016869E-2},"--","--","--","--","--","--","--","--"]
["1964-12-01",null,null,null,{"$f":"(Monthly!E82/Monthly!E70)-1","v":{"$error":"#DIV/0!"}},{"$f":"(Monthly!F82/Monthly!F70)-1","v":{"$error":"#DIV/0!"}},{"$f":"(Monthly!G82/Monthly!G70)-1","v":{"$error":"#DIV/0!"}},{"$f":"(Monthly!H82/Monthly!H70)-1","v":{"$error":"#DIV/0!"}},null,null,null,null,null,null,null,null,null,null,null,null,null,null,null,"--",{"$f":"(Monthly!Y82/Monthly!Y70)-1","v":0.11833457596776942},null,null,null,null,null,null,null,null,null,null,null,null,null,{"$f":"(Monthly!AM82/Monthly!AM70)-1","v":8.8953551710929002E-2},"--","--","--",{"$f":"Monthly!AQ82-Monthly!AQ70","v":8.3999999999999986},"--","--",{"$f":"Monthly!AT82-Monthly!AT70","v":6.8000000000000043},"--","--",{"$f":"Monthly!AW82-Monthly!AW70","v":15.299999999999997},{"$f":"Monthly!AX82-Monthly!AX70","v":5.8000000000000043},{"$f":"Monthly!AY82-Monthly!AY70","v":5.1999999999999886},{"$f":"Monthly!AZ82-Monthly!AZ70","v":2.7999999999999972},{"$f":"Monthly!BA82-Monthly!BA70","v":20.199999999999996},"--","--",null,null,null,null,null,null,null,null,null,"--","--",null,null,null,null,null,{"$f":"(Monthly!BT82/Monthly!BT70)-1","v":0.15566677977604337},null,null,null,{"$f":"(Monthly!BX82/Monthly!BX70)-1","v":-4.6948356807511304E-3},{"$f":"(Monthly!BY82/Monthly!BY70)-1","v":-0.18200983836964157},"--","--",{"$f":"Monthly!CB82-Monthly!CB70","v":-0.94763308967243898},{"$f":"Monthly!CC82-Monthly!CC70","v":-1.2976330896724395},"--","--",null,"--","--",null,{"$f":"(Monthly!CJ82/Monthly!CJ70)-1","v":5.058365758754868E-2},{"$f":"(Monthly!CK82/Monthly!CK70)-1","v":7.6907946498819824E-2},{"$f":"(Monthly!CL82/Monthly!CL70)-1","v":0.27500000000000013},{"$f":"(Monthly!CM82/Monthly!CM70)-1","v":0.13028169014084501},{"$f":"(Monthly!CN82/Monthly!CN70)-1","v":7.5179478906187036E-2},{"$f":"(Monthly!CO82/Monthly!CO70)-1","v":9.7014925373134275E-2},{"$f":"(Monthly!CP82/Monthly!CP70)-1","v":0.12245907954270918},{"$f":"(Monthly!CQ82/Monthly!CQ70)-1","v":1.3477046495022904E-2},"--",null,null,null,null,null,null,null,{"$f":"(Monthly!CZ82/Monthly!CZ70)-1","v":1.1981865284974136E-2},{"$f":"(Monthly!DA82/Monthly!DA70)-1","v":1.2461059190031154E-2},null,null,null,null,null,null,"--",{"$f":"((Monthly!DI82-Monthly!DI70)*100)","v":10.000000000000142},"--",{"$f":"((Monthly!DK82-Monthly!DK70)*100)","v":-50},{"$f":"Monthly!DL82-Monthly!DL70","v":464},null,null,null,{"$f":"Monthly!DP82-Monthly!DP70","v":2061},null,null,null,"--","--","--","--","--","--","--","--","--","--",null,null,null,null,null,null,null,null,null,null,null,null,null,{"$f":"(Monthly!EQ82/Monthly!EQ70)-1","v":3.1645569620253333E-3},"--",{"$f":"(Monthly!ES82/Monthly!ES70)-1","v":9.0361445783131433E-3},null,null,null,null,null,{"$f":"((Monthly!EY82-Monthly!EY70)*100)","v":0},{"$f":"((Monthly!EZ82-Monthly!EZ70)*100)","v":47.000000000000021},{"$f":"((Monthly!FA82-Monthly!FA70)*100)","v":9.0000000000000746},{"$f":"((Monthly!FB82-Monthly!FB70)*100)","v":-4.0000000000000036},"--","--",{"$f":"((Monthly!FE82-Monthly!FE70)*100)","v":31.999999999999986},{"$f":"((Monthly!FF82-Monthly!FF70)*100)","v":20.99999999999995},"--",{"$f":"((Monthly!FH82-Monthly!FH70)*100)","v":4.9999999999999822},{"$f":"((Monthly!FI82-Monthly!FI70)*100)","v":4.9999999999999822},null,null,null,null,null,null,"--","--","--","--","--","--","--","--","--",null,null,null,null,null,{"$f":"(Monthly!GD82/Monthly!GD70)-1","v":-1.6835016835016869E-2},"--","--","--","--","--","--","--","--"]
["1965-01-01",null,null,null,{"$f":"(Monthly!E83/Monthly!E71)-1","v":{"$error":"#DIV/0!"}},{"$f":"(Monthly!F83/Monthly!F71)-1","v":{"$error":"#DIV/0!"}},{"$f":"(Monthly!G83/Monthly!G71)-1","v":{"$error":"#DIV/0!"}},{"$f":"(Monthly!H83/Monthly!H71)-1","v":{"$error":"#DIV/0!"}},null,null,null,null,null,null,null,null,null,null,null,null,null,null,null,"--",{"$f":"(Monthly!Y83/Monthly!Y71)-1","v":0.13015227419274833},null,null,null,null,null,null,null,null,null,null,null,null,null,{"$f":"(Monthly!AM83/Monthly!AM71)-1","v":9.1086756591048479E-2},"--","--","--",{"$f":"Monthly!AQ83-Monthly!AQ71","v":3.8999999999999986},"--","--",{"$f":"Monthly!AT83-Monthly!AT71","v":5.3000000000000043},"--","--",{"$f":"Monthly!AW83-Monthly!AW71","v":18.5},{"$f":"Monthly!AX83-Monthly!AX71","v":1},{"$f":"Monthly!AY83-Monthly!AY71","v":10.700000000000003},{"$f":"Monthly!AZ83-Monthly!AZ71","v":-5.0999999999999943},{"$f":"Monthly!BA83-Monthly!BA71","v":13.200000000000003},"--","--",null,null,null,null,null,null,null,null,null,"--","--",null,null,null,null,null,{"$f":"(Monthly!BT83/Monthly!BT71)-1","v":0.15486063784320758},null,null,null,{"$f":"(Monthly!BX83/Monthly!BX71)-1","v":-0.1509669369931379},{"$f":"(Monthly!BY83/Monthly!BY71)-1","v":-2.4691358024691357E-2},"--","--",{"$f":"Monthly!CB83-Monthly!CB71","v":-1.2436744595745939},{"$f":"Monthly!CC83-Monthly!CC71","v":-1.7336744595745941},"--","--",null,"--","--",null,{"$f":"(Monthly!CJ83/Monthly!CJ71)-1","v":-2.9143897996356971E-2},{"$f":"(Monthly!CK83/Monthly!CK71)-1","v":7.8577013291633913E-2},{"$f":"(Monthly!CL83/Monthly!CL71)-1","v":0.22633744855967075},{"$f":"(Monthly!CM83/Monthly!CM71)-1","v":-0.11827956989247312},{"$f":"(Monthly!CN83/Monthly!CN71)-1","v":7.3557769564518871E-2},{"$f":"(Monthly!CO83/Monthly!CO71)-1","v":9.879406307977745E-2},{"$f":"(Monthly!CP83/Monthly!CP71)-1","v":0.12549734448383321},{"$f":"(Monthly!CQ83/Monthly!CQ71)-1","v":1.3400255942266126E-2},"--",null,null,null,null,null,null,null,{"$f":"(Monthly!CZ83/Monthly!CZ71)-1","v":1.098901098901095E-2},{"$f":"(Monthly!DA83/Monthly!DA71)-1","v":1.2422360248447228E-2},null,null,null,null,null,null,"--",{"$f":"((Monthly!DI83-Monthly!DI71)*100)","v":0},"--",{"$f":"((Monthly!DK83-Monthly!DK71)*100)","v":-69.999999999999929},{"$f":"Monthly!DL83-Monthly!DL71","v":530},null,null,null,{"$f":"Monthly!DP83-Monthly!DP71","v":2096},null,null,null,"--","--","--","--","--","--","--","--","--","--",null,null,null,null,null,null,null,null,null,null,null,null,null,{"$f":"(Monthly!EQ83/Monthly!EQ71)-1","v":0},"--",{"$f":"(Monthly!ES83/Monthly!ES71)-1","v":1.2048192771084265E-2},null,null,null,null,null,{"$f":"((Monthly!EY83-Monthly!EY71)*100)","v":0},{"$f":"((Monthly!EZ83-Monthly!EZ71)*100)","v":41.999999999999993},{"$f":"((Monthly!FA83-Monthly!FA71)*100)","v":4.0000000000000036},{"$f":"((Monthly!FB83-Monthly!FB71)*100)","v":-3.0000000000000249},"--","--",{"$f":"((Monthly!FE83-Monthly!FE71)*100)","v":29.000000000000004},{"$f":"((Monthly!FF83-Monthly!FF71)*100)","v":14.999999999999991},"--",{"$f":"((Monthly!FH83-Monthly!FH71)*100)","v":2.9999999999999361},{"$f":"((Monthly!FI83-Monthly!FI71)*100)","v":2.0000000000000462},null,null,null,null,null,null,"--","--","--","--","--","--","--","--","--",null,null,null,null,null,{"$f":"(Monthly!GD83/Monthly!GD71)-1","v":-1.6835016835016869E-2},"--","--","--","--","--","--","--","--"]
["1965-02-01",null,null,null,{"$f":"(Monthly!E84/Monthly!E72)-1","v":{"$error":"#DIV/0!"}},{"$f":"(Monthly!F84/Monthly!F72)-1","v":{"$error":"#DIV/0!"}},{"$f":"(Monthly!G84/Monthly!G72)-1","v":{"$error":"#DIV/0!"}},{"$f":"(Monthly!H84/Monthly!H72)-1","v":{"$error":"#DIV/0!"}},null,null,null,null,null,null,null,null,null,null,null,null,null,null,null,"--",{"$f":"(Monthly!Y84/Monthly!Y72)-1","v":0.14312764281174228},null,null,null,null,null,null,null,null,null,null,null,null,null,{"$f":"(Monthly!AM84/Monthly!AM72)-1","v":9.0473109275682306E-2},"--","--","--",{"$f":"Monthly!AQ84-Monthly!AQ72","v":4.2000000000000028},"--","--",{"$f":"Monthly!AT84-Monthly!AT72","v":5.5999999999999943},"--","--",{"$f":"Monthly!AW84-Monthly!AW72","v":12.800000000000004},{"$f":"Monthly!AX84-Monthly!AX72","v":1.4000000000000057},{"$f":"Monthly!AY84-Monthly!AY72","v":4.6999999999999957},{"$f":"Monthly!AZ84-Monthly!AZ72","v":-4.2000000000000028},{"$f":"Monthly!BA84-Monthly!BA72","v":16.199999999999996},"--","--",null,null,null,null,null,null,null,null,null,"--","--",null,null,null,null,null,{"$f":"(Monthly!BT84/Monthly!BT72)-1","v":0.14854896770476178},null,null,null,{"$f":"(Monthly!BX84/Monthly!BX72)-1","v":-0.21263736263736266},{"$f":"(Monthly!BY84/Monthly!BY72)-1","v":-0.17822468793342583},"--","--",{"$f":"Monthly!CB84-Monthly!CB72","v":-0.5137375379031921},{"$f":"Monthly!CC84-Monthly!CC72","v":-0.72373753790319206},"--","--",null,"--","--",null,{"$f":"(Monthly!CJ84/Monthly!CJ72)-1","v":-8.2101806239737285E-2},{"$f":"(Monthly!CK84/Monthly!CK72)-1","v":7.3692397433404722E-2},{"$f":"(Monthly!CL84/Monthly!CL72)-1","v":0.12101910828025475},{"$f":"(Monthly!CM84/Monthly!CM72)-1","v":-0.26592082616179002},{"$f":"(Monthly!CN84/Monthly!CN72)-1","v":7.0458642098938595E-2},{"$f":"(Monthly!CO84/Monthly!CO72)-1","v":9.9447513812154886E-2},{"$f":"(Monthly!CP84/Monthly!CP72)-1","v":0.12530349953150655},{"$f":"(Monthly!CQ84/Monthly!CQ72)-1","v":1.3282125978476111E-2},"--",null,null,null,null,null,null,null,{"$f":"(Monthly!CZ84/Monthly!CZ72)-1","v":1.1970236169524417E-2},{"$f":"(Monthly!DA84/Monthly!DA72)-1","v":1.2422360248447228E-2},null,null,null,null,null,null,"--",{"$f":"((Monthly!DI84-Monthly!DI72)*100)","v":-9.9999999999994316},"--",{"$f":"((Monthly!DK84-Monthly!DK72)*100)","v":-30.000000000000071},{"$f":"Monthly!DL84-Monthly!DL72","v":549},null,null,null,{"$f":"Monthly!DP84-Monthly!DP72","v":2049},null,null,null,"--","--","--","--","--","--","--","--","--","--",null,null,null,null,null,null,null,null,null,null,null,null,null,{"$f":"(Monthly!EQ84/Monthly!EQ72)-1","v":9.4936708860757779E-3},"--",{"$f":"(Monthly!ES84/Monthly!ES72)-1","v":1.5060240963855387E-2},null,null,null,null,null,{"$f":"((Monthly!EY84-Monthly!EY72)*100)","v":0},{"$f":"((Monthly!EZ84-Monthly!EZ72)*100)","v":50},{"$f":"((Monthly!FA84-Monthly!FA72)*100)","v":4.9999999999999822},{"$f":"((Monthly!FB84-Monthly!FB72)*100)","v":-4.9999999999999822},"--","--",{"$f":"((Monthly!FE84-Monthly!FE72)*100)","v":40.000000000000036},{"$f":"((Monthly!FF84-Monthly!FF72)*100)","v":25.000000000000043},"--",{"$f":"((Monthly!FH84-Monthly!FH72)*100)","v":12.000000000000011},{"$f":"((Monthly!FI84-Monthly!FI72)*100)","v":5.9999999999999609},null,null,null,null,null,null,"--","--","--","--","--","--","--","--","--",null,null,null,null,null,{"$f":"(Monthly!GD84/Monthly!GD72)-1","v":-1.6835016835016869E-2},"--","--","--","--","--","--","--","--"]
["1965-03-01",null,null,null,{"$f":"(Monthly!E85/Monthly!E73)-1","v":{"$error":"#DIV/0!"}},{"$f":"(Monthly!F85/Monthly!F73)-1","v":{"$error":"#DIV/0!"}},{"$f":"(Monthly!G85/Monthly!G73)-1","v":{"$error":"#DIV/0!"}},{"$f":"(Monthly!H85/Monthly!H73)-1","v":{"$error":"#DIV/0!"}},null,null,null,null,null,null,null,null,null,null,null,null,null,null,null,"--",{"$f":"(Monthly!Y85/Monthly!Y73)-1","v":0.16001472097492297},null,null,null,null,null,null,null,null,null,null,null,null,null,{"$f":"(Monthly!AM85/Monthly!AM73)-1","v":0.10490894558187969},"--","--","--",{"$f":"Monthly!AQ85-Monthly!AQ73","v":4.7000000000000028},"--","--",{"$f":"Monthly!AT85-Monthly!AT73","v":6},"--","--",{"$f":"Monthly!AW85-Monthly!AW73","v":3.1999999999999957},{"$f":"Monthly!AX85-Monthly!AX73","v":7},{"$f":"Monthly!AY85-Monthly!AY73","v":3.8999999999999986},{"$f":"Monthly!AZ85-Monthly!AZ73","v":1.2999999999999972},{"$f":"Monthly!BA85-Monthly!BA73","v":5.6000000000000085},"--","--",null,null,null,null,null,null,null,null,null,"--","--",null,null,null,null,null,{"$f":"(Monthly!BT85/Monthly!BT73)-1","v":0.14565663050946731},null,null,null,{"$f":"(Monthly!BX85/Monthly!BX73)-1","v":-6.196440342781806E-2},{"$f":"(Monthly!BY85/Monthly!BY73)-1","v":-7.7684691546077711E-2},"--","--",{"$f":"Monthly!CB85-Monthly!CB73","v":-0.9135110151768151},{"$f":"Monthly!CC85-Monthly!CC73","v":-1.4035110151768144},"--","--",null,"--","--",null,{"$f":"(Monthly!CJ85/Monthly!CJ73)-1","v":-1.0676156583629859E-2},{"$f":"(Monthly!CK85/Monthly!CK73)-1","v":7.4274661508703987E-2},{"$f":"(Monthly!CL85/Monthly!CL73)-1","v":-6.0390763765541755E-2},{"$f":"(Monthly!CM85/Monthly!CM73)-1","v":-2.1482277121375182E-3},{"$f":"(Monthly!CN85/Monthly!CN73)-1","v":4.9322790260706073E-2},{"$f":"(Monthly!CO85/Monthly!CO73)-1","v":9.9588853357697404E-2},{"$f":"(Monthly!CP85/Monthly!CP73)-1","v":0.12210564308105476},{"$f":"(Monthly!CQ85/Monthly!CQ73)-1","v":1.30491449747967E-2},"--",null,null,null,null,null,null,null,{"$f":"(Monthly!CZ85/Monthly!CZ73)-1","v":1.1958629605688387E-2},{"$f":"(Monthly!DA85/Monthly!DA73)-1","v":1.2422360248447228E-2},null,null,null,null,null,null,"--",{"$f":"((Monthly!DI85-Monthly!DI73)*100)","v":0},"--",{"$f":"((Monthly!DK85-Monthly!DK73)*100)","v":-70.000000000000014},{"$f":"Monthly!DL85-Monthly!DL73","v":583},null,null,null,{"$f":"Monthly!DP85-Monthly!DP73","v":2105},null,null,null,"--","--","--","--","--","--","--","--","--","--",null,null,null,null,null,null,null,null,null,null,null,null,null,{"$f":"(Monthly!EQ85/Monthly!EQ73)-1","v":9.4936708860757779E-3},"--",{"$f":"(Monthly!ES85/Monthly!ES73)-1","v":1.2012012012012185E-2},null,null,null,null,null,{"$f":"((Monthly!EY85-Monthly!EY73)*100)","v":0},{"$f":"((Monthly!EZ85-Monthly!EZ73)*100)","v":60.999999999999986},{"$f":"((Monthly!FA85-Monthly!FA73)*100)","v":4.0000000000000036},{"$f":"((Monthly!FB85-Monthly!FB73)*100)","v":-4.9999999999999822},"--","--",{"$f":"((Monthly!FE85-Monthly!FE73)*100)","v":39.000000000000014},{"$f":"((Monthly!FF85-Monthly!FF73)*100)","v":14.999999999999947},"--",{"$f":"((Monthly!FH85-Monthly!FH73)*100)","v":1.0000000000000675},{"$f":"((Monthly!FI85-Monthly!FI73)*100)","v":-0.99999999999997868},null,null,null,null,null,null,"--","--","--","--","--","--","--","--","--",null,null,null,null,null,{"$f":"(Monthly!GD85/Monthly!GD73)-1","v":-1.6835016835016869E-2},"--","--","--","--","--","--","--","--"]
["1965-04-01",null,null,null,{"$f":"(Monthly!E86/Monthly!E74)-1","v":{"$error":"#DIV/0!"}},{"$f":"(Monthly!F86/Monthly!F74)-1","v":{"$error":"#DIV/0!"}},{"$f":"(Monthly!G86/Monthly!G74)-1","v":{"$error":"#DIV/0!"}},{"$f":"(Monthly!H86/Monthly!H74)-1","v":{"$error":"#DIV/0!"}},null,null,null,null,null,null,null,null,null,null,null,null,null,null,null,"--",{"$f":"(Monthly!Y86/Monthly!Y74)-1","v":0.16727911476826551},null,null,null,null,null,null,null,null,null,null,null,null,null,{"$f":"(Monthly!AM86/Monthly!AM74)-1","v":9.1855841379216541E-2},"--","--","--",{"$f":"Monthly!AQ86-Monthly!AQ74","v":2.7999999999999972},"--","--",{"$f":"Monthly!AT86-Monthly!AT74","v":4},"--","--",{"$f":"Monthly!AW86-Monthly!AW74","v":8.7999999999999972},{"$f":"Monthly!AX86-Monthly!AX74","v":-3.8000000000000043},{"$f":"Monthly!AY86-Monthly!AY74","v":3.2999999999999972},{"$f":"Monthly!AZ86-Monthly!AZ74","v":2},{"$f":"Monthly!BA86-Monthly!BA74","v":11.700000000000003},"--","--",null,null,null,null,null,null,null,null,null,"--","--",null,null,null,null,null,{"$f":"(Monthly!BT86/Monthly!BT74)-1","v":0.14777544879342819},null,null,null,{"$f":"(Monthly!BX86/Monthly!BX74)-1","v":-6.906077348066253E-3},{"$f":"(Monthly!BY86/Monthly!BY74)-1","v":-8.0696202531645556E-2},"--","--",{"$f":"Monthly!CB86-Monthly!CB74","v":-0.652657109299148},{"$f":"Monthly!CC86-Monthly!CC74","v":-1.0026571092991485},"--","--",null,"--","--",null,{"$f":"(Monthly!CJ86/Monthly!CJ74)-1","v":-7.1556350626118537E-3},{"$f":"(Monthly!CK86/Monthly!CK74)-1","v":7.3568958893584169E-2},{"$f":"(Monthly!CL86/Monthly!CL74)-1","v":-0.13080895008605853},{"$f":"(Monthly!CM86/Monthly!CM74)-1","v":5.4384017758046577E-2},{"$f":"(Monthly!CN86/Monthly!CN74)-1","v":4.5275820453926086E-2},{"$f":"(Monthly!CO86/Monthly!CO74)-1","v":9.8955969133000421E-2},{"$f":"(Monthly!CP86/Monthly!CP74)-1","v":0.12688560122740844},{"$f":"(Monthly!CQ86/Monthly!CQ74)-1","v":1.2883996967240963E-2},"--",null,null,null,null,null,null,null,{"$f":"(Monthly!CZ86/Monthly!CZ74)-1","v":1.3893376413570246E-2},{"$f":"(Monthly!DA86/Monthly!DA74)-1","v":1.552795031055898E-2},null,null,null,null,null,null,"--",{"$f":"((Monthly!DI86-Monthly!DI74)*100)","v":-30.000000000000426},"--",{"$f":"((Monthly!DK86-Monthly!DK74)*100)","v":-50},{"$f":"Monthly!DL86-Monthly!DL74","v":633},null,null,null,{"$f":"Monthly!DP86-Monthly!DP74","v":2337},null,null,null,"--","--","--","--","--","--","--","--","--","--",null,null,null,null,null,null,null,null,null,null,null,null,null,{"$f":"(Monthly!EQ86/Monthly!EQ74)-1","v":1.2658227848101111E-2},"--",{"$f":"(Monthly!ES86/Monthly!ES74)-1","v":1.501501501501501E-2},null,null,null,null,null,{"$f":"((Monthly!EY86-Monthly!EY74)*100)","v":0},{"$f":"((Monthly!EZ86-Monthly!EZ74)*100)","v":61.999999999999964},{"$f":"((Monthly!FA86-Monthly!FA74)*100)","v":2.9999999999999361},{"$f":"((Monthly!FB86-Monthly!FB74)*100)","v":-4.9999999999999822},"--","--",{"$f":"((Monthly!FE86-Monthly!FE74)*100)","v":46},{"$f":"((Monthly!FF86-Monthly!FF74)*100)","v":12.999999999999989},"--",{"$f":"((Monthly!FH86-Monthly!FH74)*100)","v":0},{"$f":"((Monthly!FI86-Monthly!FI74)*100)","v":-3.0000000000000249},null,null,null,null,null,null,"--","--","--","--","--","--","--","--","--",null,null,null,null,null,{"$f":"(Monthly!GD86/Monthly!GD74)-1","v":-1.6835016835016869E-2},"--","--","--","--","--","--","--","--"]
["1965-05-01",null,null,null,{"$f":"(Monthly!E87/Monthly!E75)-1","v":{"$error":"#DIV/0!"}},{"$f":"(Monthly!F87/Monthly!F75)-1","v":{"$error":"#DIV/0!"}},{"$f":"(Monthly!G87/Monthly!G75)-1","v":{"$error":"#DIV/0!"}},{"$f":"(Monthly!H87/Monthly!H75)-1","v":{"$error":"#DIV/0!"}},null,null,null,null,null,null,null,null,null,null,null,null,null,null,null,"--",{"$f":"(Monthly!Y87/Monthly!Y75)-1","v":0.17081747899785094},null,null,null,null,null,null,null,null,null,null,null,null,null,{"$f":"(Monthly!AM87/Monthly!AM75)-1","v":9.4160141637976702E-2},"--","--","--",{"$f":"Monthly!AQ87-Monthly!AQ75","v":2.5999999999999943},"--","--",{"$f":"Monthly!AT87-Monthly!AT75","v":0.39999999999999858},"--","--",{"$f":"Monthly!AW87-Monthly!AW75","v":10.300000000000004},{"$f":"Monthly!AX87-Monthly!AX75","v":0.30000000000000426},{"$f":"Monthly!AY87-Monthly!AY75","v":9.7000000000000028},{"$f":"Monthly!AZ87-Monthly!AZ75","v":1.3999999999999986},{"$f":"Monthly!BA87-Monthly!BA75","v":7.5000000000000071},"--","--",null,null,null,null,null,null,null,null,null,"--","--",null,null,null,null,null,{"$f":"(Monthly!BT87/Monthly!BT75)-1","v":0.14860059567844375},null,null,null,{"$f":"(Monthly!BX87/Monthly!BX75)-1","v":7.4982958418541301E-3},{"$f":"(Monthly!BY87/Monthly!BY75)-1","v":-7.0823710546574326E-2},"--","--",{"$f":"Monthly!CB87-Monthly!CB75","v":-0.42653405131910471},{"$f":"Monthly!CC87-Monthly!CC75","v":-0.77653405131910702},"--","--",null,"--","--",null,{"$f":"(Monthly!CJ87/Monthly!CJ75)-1","v":4.0152963671128195E-2},{"$f":"(Monthly!CK87/Monthly!CK75)-1","v":7.4823439587707652E-2},{"$f":"(Monthly!CL87/Monthly!CL75)-1","v":2.3636363636363678E-2},{"$f":"(Monthly!CM87/Monthly!CM75)-1","v":2.1119324181626542E-3},{"$f":"(Monthly!CN87/Monthly!CN75)-1","v":5.0842207163601216E-2},{"$f":"(Monthly!CO87/Monthly!CO75)-1","v":9.725348941918055E-2},{"$f":"(Monthly!CP87/Monthly!CP75)-1","v":0.12434542181865416},{"$f":"(Monthly!CQ87/Monthly!CQ75)-1","v":1.2750265086420853E-2},"--",null,null,null,null,null,null,null,{"$f":"(Monthly!CZ87/Monthly!CZ75)-1","v":1.6139444803098701E-2},{"$f":"(Monthly!DA87/Monthly!DA75)-1","v":1.552795031055898E-2},null,null,null,null,null,null,"--",{"$f":"((Monthly!DI87-Monthly!DI75)*100)","v":-10.000000000000142},"--",{"$f":"((Monthly!DK87-Monthly!DK75)*100)","v":-50},{"$f":"Monthly!DL87-Monthly!DL75","v":665},null,null,null,{"$f":"Monthly!DP87-Monthly!DP75","v":2403},null,null,null,"--","--","--","--","--","--","--","--","--","--",null,null,null,null,null,null,null,null,null,null,null,null,null,{"$f":"(Monthly!EQ87/Monthly!EQ75)-1","v":1.9047619047619202E-2},"--",{"$f":"(Monthly!ES87/Monthly!ES75)-1","v":8.9552238805969964E-3},null,null,null,null,null,{"$f":"((Monthly!EY87-Monthly!EY75)*100)","v":0},{"$f":"((Monthly!EZ87-Monthly!EZ75)*100)","v":59.999999999999964},{"$f":"((Monthly!FA87-Monthly!FA75)*100)","v":3.0000000000000249},{"$f":"((Monthly!FB87-Monthly!FB75)*100)","v":-4.0000000000000036},"--","--",{"$f":"((Monthly!FE87-Monthly!FE75)*100)","v":41.000000000000014},{"$f":"((Monthly!FF87-Monthly!FF75)*100)","v":19.000000000000039},"--",{"$f":"((Monthly!FH87-Monthly!FH75)*100)","v":10.000000000000053},{"$f":"((Monthly!FI87-Monthly!FI75)*100)","v":0.99999999999997868},null,null,null,null,null,null,"--","--","--","--","--","--","--","--","--",null,null,null,null,null,{"$f":"(Monthly!GD87/Monthly!GD75)-1","v":-1.6835016835016869E-2},"--","--","--","--","--","--","--","--"]
["1965-06-01",null,null,null,{"$f":"(Monthly!E88/Monthly!E76)-1","v":{"$error":"#DIV/0!"}},{"$f":"(Monthly!F88/Monthly!F76)-1","v":{"$error":"#DIV/0!"}},{"$f":"(Monthly!G88/Monthly!G76)-1","v":{"$error":"#DIV/0!"}},{"$f":"(Monthly!H88/Monthly!H76)-1","v":{"$error":"#DIV/0!"}},null,null,null,null,null,null,null,null,null,null,null,null,null,null,null,"--",{"$f":"(Monthly!Y88/Monthly!Y76)-1","v":0.18155697622376077},null,null,null,null,null,null,null,null,null,null,null,null,null,{"$f":"(Monthly!AM88/Monthly!AM76)-1","v":9.9532465778858104E-2},"--","--","--",{"$f":"Monthly!AQ88-Monthly!AQ76","v":-1.3999999999999986},"--","--",{"$f":"Monthly!AT88-Monthly!AT76","v":-0.30000000000000426},"--","--",{"$f":"Monthly!AW88-Monthly!AW76","v":2.2999999999999972},{"$f":"Monthly!AX88-Monthly!AX76","v":-7.3000000000000043},{"$f":"Monthly!AY88-Monthly!AY76","v":14.300000000000004},{"$f":"Monthly!AZ88-Monthly!AZ76","v":-4.6000000000000014},{"$f":"Monthly!BA88-Monthly!BA76","v":11.699999999999996},"--","--",null,null,null,null,null,null,null,null,null,"--","--",null,null,null,null,null,{"$f":"(Monthly!BT88/Monthly!BT76)-1","v":0.1491993088341339},null,null,null,{"$f":"(Monthly!BX88/Monthly!BX76)-1","v":-4.0000000000000036E-2},{"$f":"(Monthly!BY88/Monthly!BY76)-1","v":-3.0468750000000044E-2},"--","--",{"$f":"Monthly!CB88-Monthly!CB76","v":2.8097226753720506E-2},{"$f":"Monthly!CC88-Monthly!CC76","v":-0.39190277324627942},"--","--",null,"--","--",null,{"$f":"(Monthly!CJ88/Monthly!CJ76)-1","v":5.862068965517242E-2},{"$f":"(Monthly!CK88/Monthly!CK76)-1","v":7.5199392328142878E-2},{"$f":"(Monthly!CL88/Monthly!CL76)-1","v":0.11786372007366497},{"$f":"(Monthly!CM88/Monthly!CM76)-1","v":-3.4658511722731933E-2},{"$f":"(Monthly!CN88/Monthly!CN76)-1","v":4.8423814484701122E-2},{"$f":"(Monthly!CO88/Monthly!CO76)-1","v":9.6385542168674565E-2},{"$f":"(Monthly!CP88/Monthly!CP76)-1","v":0.12774321426729318},{"$f":"(Monthly!CQ88/Monthly!CQ76)-1","v":1.2631348282950539E-2},"--",null,null,null,null,null,null,null,{"$f":"(Monthly!CZ88/Monthly!CZ76)-1","v":1.9348597226700903E-2},{"$f":"(Monthly!DA88/Monthly!DA76)-1","v":1.2383900928792713E-2},null,null,null,null,null,null,"--",{"$f":"((Monthly!DI88-Monthly!DI76)*100)","v":9.9999999999994316},"--",{"$f":"((Monthly!DK88-Monthly!DK76)*100)","v":-60.000000000000057},{"$f":"Monthly!DL88-Monthly!DL76","v":715},null,null,null,{"$f":"Monthly!DP88-Monthly!DP76","v":2469},null,null,null,"--","--","--","--","--","--","--","--","--","--",null,null,null,null,null,null,null,null,null,null,null,null,null,{"$f":"(Monthly!EQ88/Monthly!EQ76)-1","v":2.857142857142847E-2},"--",{"$f":"(Monthly!ES88/Monthly!ES76)-1","v":1.1976047904191489E-2},null,null,null,null,null,{"$f":"((Monthly!EY88-Monthly!EY76)*100)","v":0},{"$f":"((Monthly!EZ88-Monthly!EZ76)*100)","v":54},{"$f":"((Monthly!FA88-Monthly!FA76)*100)","v":4.9999999999999822},{"$f":"((Monthly!FB88-Monthly!FB76)*100)","v":0},"--","--",{"$f":"((Monthly!FE88-Monthly!FE76)*100)","v":31.999999999999986},{"$f":"((Monthly!FF88-Monthly!FF76)*100)","v":16.000000000000014},"--",{"$f":"((Monthly!FH88-Monthly!FH76)*100)","v":13.000000000000078},{"$f":"((Monthly!FI88-Monthly!FI76)*100)","v":4.0000000000000036},null,null,null,null,null,null,"--","--","--","--","--","--","--","--","--",null,null,null,null,null,{"$f":"(Monthly!GD88/Monthly!GD76)-1","v":-1.6835016835016869E-2},"--","--","--","--","--","--","--","--"]
["1965-07-01",null,null,null,{"$f":"(Monthly!E89/Monthly!E77)-1","v":{"$error":"#DIV/0!"}},{"$f":"(Monthly!F89/Monthly!F77)-1","v":{"$error":"#DIV/0!"}},{"$f":"(Monthly!G89/Monthly!G77)-1","v":{"$error":"#DIV/0!"}},{"$f":"(Monthly!H89/Monthly!H77)-1","v":{"$error":"#DIV/0!"}},null,null,null,null,null,null,null,null,null,null,null,null,null,null,null,"--",{"$f":"(Monthly!Y89/Monthly!Y77)-1","v":0.18595143276451642},null,null,null,null,null,null,null,null,null,null,null,null,null,{"$f":"(Monthly!AM89/Monthly!AM77)-1","v":0.10261182767571464},"--","--","--",{"$f":"Monthly!AQ89-Monthly!AQ77","v":-4.7999999999999972},"--","--",{"$f":"Monthly!AT89-Monthly!AT77","v":-9.9999999999994316E-2},"--","--",{"$f":"Monthly!AW89-Monthly!AW77","v":-1.7000000000000028},{"$f":"Monthly!AX89-Monthly!AX77","v":-13.300000000000004},{"$f":"Monthly!AY89-Monthly!AY77","v":10.899999999999999},{"$f":"Monthly!AZ89-Monthly!AZ77","v":-4.7000000000000028},{"$f":"Monthly!BA89-Monthly!BA77","v":3.2999999999999972},"--","--",null,null,null,null,null,null,null,null,null,"--","--",null,null,null,null,null,{"$f":"(Monthly!BT89/Monthly!BT77)-1","v":0.1469060786784715},null,null,null,{"$f":"(Monthly!BX89/Monthly!BX77)-1","v":-2.1126760563380254E-2},{"$f":"(Monthly!BY89/Monthly!BY77)-1","v":-5.138036809815949E-2},"--","--",{"$f":"Monthly!CB89-Monthly!CB77","v":0.23001809446557875},{"$f":"Monthly!CC89-Monthly!CC77","v":-0.11998190553442178},"--","--",null,"--","--",null,{"$f":"(Monthly!CJ89/Monthly!CJ77)-1","v":-3.6521739130434772E-2},{"$f":"(Monthly!CK89/Monthly!CK77)-1","v":7.7039274924471268E-2},{"$f":"(Monthly!CL89/Monthly!CL77)-1","v":0.14177693761814747},{"$f":"(Monthly!CM89/Monthly!CM77)-1","v":6.6047471620227061E-2},{"$f":"(Monthly!CN89/Monthly!CN77)-1","v":5.5602553256940634E-2},{"$f":"(Monthly!CO89/Monthly!CO77)-1","v":9.5787139689578638E-2},{"$f":"(Monthly!CP89/Monthly!CP77)-1","v":0.12637661083061436},{"$f":"(Monthly!CQ89/Monthly!CQ77)-1","v":1.2580189588772717E-2},"--",null,null,null,null,null,null,null,{"$f":"(Monthly!CZ89/Monthly!CZ77)-1","v":1.8052869116698789E-2},{"$f":"(Monthly!DA89/Monthly!DA77)-1","v":1.2383900928792713E-2},null,null,null,null,null,null,"--",{"$f":"((Monthly!DI89-Monthly!DI77)*100)","v":50},"--",{"$f":"((Monthly!DK89-Monthly!DK77)*100)","v":-50},{"$f":"Monthly!DL89-Monthly!DL77","v":782},null,null,null,{"$f":"Monthly!DP89-Monthly!DP77","v":2550},null,null,null,"--","--","--","--","--","--","--","--","--","--",null,null,null,null,null,null,null,null,null,null,null,null,null,{"$f":"(Monthly!EQ89/Monthly!EQ77)-1","v":2.5316455696202445E-2},"--",{"$f":"(Monthly!ES89/Monthly!ES77)-1","v":8.9552238805969964E-3},null,null,null,null,null,{"$f":"((Monthly!EY89-Monthly!EY77)*100)","v":0},{"$f":"((Monthly!EZ89-Monthly!EZ77)*100)","v":67},{"$f":"((Monthly!FA89-Monthly!FA77)*100)","v":8.0000000000000071},{"$f":"((Monthly!FB89-Monthly!FB77)*100)","v":4.9999999999999822},"--","--",{"$f":"((Monthly!FE89-Monthly!FE77)*100)","v":37.999999999999986},{"$f":"((Monthly!FF89-Monthly!FF77)*100)","v":25.999999999999979},"--",{"$f":"((Monthly!FH89-Monthly!FH77)*100)","v":12.000000000000011},{"$f":"((Monthly!FI89-Monthly!FI77)*100)","v":0.99999999999997868},null,null,null,null,null,null,"--","--","--","--","--","--","--","--","--",null,null,null,null,null,{"$f":"(Monthly!GD89/Monthly!GD77)-1","v":0},"--","--","--","--","--","--","--","--"]
["1965-08-01",null,null,null,{"$f":"(Monthly!E90/Monthly!E78)-1","v":{"$error":"#DIV/0!"}},{"$f":"(Monthly!F90/Monthly!F78)-1","v":{"$error":"#DIV/0!"}},{"$f":"(Monthly!G90/Monthly!G78)-1","v":{"$error":"#DIV/0!"}},{"$f":"(Monthly!H90/Monthly!H78)-1","v":{"$error":"#DIV/0!"}},null,null,null,null,null,null,null,null,null,null,null,null,null,null,null,"--",{"$f":"(Monthly!Y90/Monthly!Y78)-1","v":0.18827103363421571},null,null,null,null,null,null,null,null,null,null,null,null,null,{"$f":"(Monthly!AM90/Monthly!AM78)-1","v":0.10009362640731179},"--","--","--",{"$f":"Monthly!AQ90-Monthly!AQ78","v":-5.1999999999999957},"--","--",{"$f":"Monthly!AT90-Monthly!AT78","v":0},"--","--",{"$f":"Monthly!AW90-Monthly!AW78","v":3.7000000000000028},{"$f":"Monthly!AX90-Monthly!AX78","v":-12},{"$f":"Monthly!AY90-Monthly!AY78","v":8.7999999999999972},{"$f":"Monthly!AZ90-Monthly!AZ78","v":-7.2999999999999972},{"$f":"Monthly!BA90-Monthly!BA78","v":-0.79999999999999716},"--","--",null,null,null,null,null,null,null,null,null,"--","--",null,null,null,null,null,{"$f":"(Monthly!BT90/Monthly!BT78)-1","v":0.14489433142405694},null,null,null,{"$f":"(Monthly!BX90/Monthly!BX78)-1","v":-8.7316762268961123E-2},{"$f":"(Monthly!BY90/Monthly!BY78)-1","v":-4.3644716692189944E-2},"--","--",{"$f":"Monthly!CB90-Monthly!CB78","v":3.4696202034490753E-2},{"$f":"Monthly!CC90-Monthly!CC78","v":-0.38530379796550918},"--","--",null,"--","--",null,{"$f":"(Monthly!CJ90/Monthly!CJ78)-1","v":5.6701030927835072E-2},{"$f":"(Monthly!CK90/Monthly!CK78)-1","v":7.3449503466366695E-2},{"$f":"(Monthly!CL90/Monthly!CL78)-1","v":0.12030075187969924},{"$f":"(Monthly!CM90/Monthly!CM78)-1","v":-3.2323232323232309E-2},{"$f":"(Monthly!CN90/Monthly!CN78)-1","v":5.4546844539582029E-2},{"$f":"(Monthly!CO90/Monthly!CO78)-1","v":9.4107299912049358E-2},{"$f":"(Monthly!CP90/Monthly!CP78)-1","v":0.12430534715468022},{"$f":"(Monthly!CQ90/Monthly!CQ78)-1","v":1.2475862822761474E-2},"--",null,null,null,null,null,null,null,{"$f":"(Monthly!CZ90/Monthly!CZ78)-1","v":1.6103059581320522E-2},{"$f":"(Monthly!DA90/Monthly!DA78)-1","v":1.2383900928792713E-2},null,null,null,null,null,null,"--",{"$f":"((Monthly!DI90-Monthly!DI78)*100)","v":29.999999999999716},"--",{"$f":"((Monthly!DK90-Monthly!DK78)*100)","v":-59.999999999999964},{"$f":"Monthly!DL90-Monthly!DL78","v":784},null,null,null,{"$f":"Monthly!DP90-Monthly!DP78","v":2609},null,null,null,"--","--","--","--","--","--","--","--","--","--",null,null,null,null,null,null,null,null,null,null,null,null,null,{"$f":"(Monthly!EQ90/Monthly!EQ78)-1","v":2.5316455696202445E-2},"--",{"$f":"(Monthly!ES90/Monthly!ES78)-1","v":8.9552238805969964E-3},null,null,null,null,null,{"$f":"((Monthly!EY90-Monthly!EY78)*100)","v":0},{"$f":"((Monthly!EZ90-Monthly!EZ78)*100)","v":62.000000000000014},{"$f":"((Monthly!FA90-Monthly!FA78)*100)","v":8.0000000000000071},{"$f":"((Monthly!FB90-Monthly!FB78)*100)","v":5.9999999999999609},"--","--",{"$f":"((Monthly!FE90-Monthly!FE78)*100)","v":33.999999999999986},{"$f":"((Monthly!FF90-Monthly!FF78)*100)","v":33.000000000000007},"--",{"$f":"((Monthly!FH90-Monthly!FH78)*100)","v":15.000000000000036},{"$f":"((Monthly!FI90-Monthly!FI78)*100)","v":5.9999999999999609},null,null,null,null,null,null,"--","--","--","--","--","--","--","--","--",null,null,null,null,null,{"$f":"(Monthly!GD90/Monthly!GD78)-1","v":0},"--","--","--","--","--","--","--","--"]
["1965-09-01",null,null,null,{"$f":"(Monthly!E91/Monthly!E79)-1","v":{"$error":"#DIV/0!"}},{"$f":"(Monthly!F91/Monthly!F79)-1","v":{"$error":"#DIV/0!"}},{"$f":"(Monthly!G91/Monthly!G79)-1","v":{"$error":"#DIV/0!"}},{"$f":"(Monthly!H91/Monthly!H79)-1","v":{"$error":"#DIV/0!"}},null,null,null,null,null,null,null,null,null,null,null,null,null,null,null,"--",{"$f":"(Monthly!Y91/Monthly!Y79)-1","v":0.19028989742697866},null,null,null,null,null,null,null,null,null,null,null,null,null,{"$f":"(Monthly!AM91/Monthly!AM79)-1","v":9.8800964009002623E-2},"--","--","--",{"$f":"Monthly!AQ91-Monthly!AQ79","v":-2.2999999999999972},"--","--",{"$f":"Monthly!AT91-Monthly!AT79","v":-0.59999999999999432},"--","--",{"$f":"Monthly!AW91-Monthly!AW79","v":-3.2999999999999972},{"$f":"Monthly!AX91-Monthly!AX79","v":0.30000000000000426},{"$f":"Monthly!AY91-Monthly!AY79","v":1.5},{"$f":"Monthly!AZ91-Monthly!AZ79","v":-1.1000000000000085},{"$f":"Monthly!BA91-Monthly!BA79","v":-10.700000000000003},"--","--",null,null,null,null,null,null,null,null,null,"--","--",null,null,null,null,null,{"$f":"(Monthly!BT91/Monthly!BT79)-1","v":0.14397879145714887},null,null,null,{"$f":"(Monthly!BX91/Monthly!BX79)-1","v":1.8556701030927769E-2},{"$f":"(Monthly!BY91/Monthly!BY79)-1","v":-3.0039525691699653E-2},"--","--",{"$f":"Monthly!CB91-Monthly!CB79","v":-0.23442326254825474},{"$f":"Monthly!CC91-Monthly!CC79","v":-0.79442326254825524},"--","--",null,"--","--",null,{"$f":"(Monthly!CJ91/Monthly!CJ79)-1","v":-5.0847457627118953E-3},{"$f":"(Monthly!CK91/Monthly!CK79)-1","v":9.5397801378796165E-2},{"$f":"(Monthly!CL91/Monthly!CL79)-1","v":0.16725352112676051},{"$f":"(Monthly!CM91/Monthly!CM79)-1","v":5.2246603970742544E-3},{"$f":"(Monthly!CN91/Monthly!CN79)-1","v":7.9316122153682223E-2},{"$f":"(Monthly!CO91/Monthly!CO79)-1","v":9.3286835222319064E-2},{"$f":"(Monthly!CP91/Monthly!CP79)-1","v":0.12159505254879521},{"$f":"(Monthly!CQ91/Monthly!CQ79)-1","v":1.2397596373768138E-2},"--",null,null,null,null,null,null,null,{"$f":"(Monthly!CZ91/Monthly!CZ79)-1","v":1.7374517374517451E-2},{"$f":"(Monthly!DA91/Monthly!DA79)-1","v":1.5479876160990669E-2},null,null,null,null,null,null,"--",{"$f":"((Monthly!DI91-Monthly!DI79)*100)","v":0},"--",{"$f":"((Monthly!DK91-Monthly!DK79)*100)","v":-79.999999999999986},{"$f":"Monthly!DL91-Monthly!DL79","v":729},null,null,null,{"$f":"Monthly!DP91-Monthly!DP79","v":2587},null,null,null,"--","--","--","--","--","--","--","--","--","--",null,null,null,null,null,null,null,null,null,null,null,null,null,{"$f":"(Monthly!EQ91/Monthly!EQ79)-1","v":2.208201892744488E-2},"--",{"$f":"(Monthly!ES91/Monthly!ES79)-1","v":1.1940298507462588E-2},null,null,null,null,null,{"$f":"((Monthly!EY91-Monthly!EY79)*100)","v":0},{"$f":"((Monthly!EZ91-Monthly!EZ79)*100)","v":55.999999999999957},{"$f":"((Monthly!FA91-Monthly!FA79)*100)","v":9.9999999999999645},{"$f":"((Monthly!FB91-Monthly!FB79)*100)","v":8.9999999999999858},"--","--",{"$f":"((Monthly!FE91-Monthly!FE79)*100)","v":39.000000000000014},{"$f":"((Monthly!FF91-Monthly!FF79)*100)","v":36.000000000000028},"--",{"$f":"((Monthly!FH91-Monthly!FH79)*100)","v":16.999999999999993},{"$f":"((Monthly!FI91-Monthly!FI79)*100)","v":8.9999999999999858},null,null,null,null,null,null,"--","--","--","--","--","--","--","--","--",null,null,null,null,null,{"$f":"(Monthly!GD91/Monthly!GD79)-1","v":0},"--","--","--","--","--","--","--","--"]
["1965-10-01",null,null,null,{"$f":"(Monthly!E92/Monthly!E80)-1","v":{"$error":"#DIV/0!"}},{"$f":"(Monthly!F92/Monthly!F80)-1","v":{"$error":"#DIV/0!"}},{"$f":"(Monthly!G92/Monthly!G80)-1","v":{"$error":"#DIV/0!"}},{"$f":"(Monthly!H92/Monthly!H80)-1","v":{"$error":"#DIV/0!"}},null,null,null,null,null,null,null,null,null,null,null,null,null,null,null,"--",{"$f":"(Monthly!Y92/Monthly!Y80)-1","v":0.19113602933339013},null,null,null,null,null,null,null,null,null,null,null,null,null,{"$f":"(Monthly!AM92/Monthly!AM80)-1","v":0.1254687447402969},"--","--","--",{"$f":"Monthly!AQ92-Monthly!AQ80","v":-2.1000000000000014},"--","--",{"$f":"Monthly!AT92-Monthly!AT80","v":1.8999999999999986},"--","--",{"$f":"Monthly!AW92-Monthly!AW80","v":-12.600000000000001},{"$f":"Monthly!AX92-Monthly!AX80","v":3.1000000000000014},{"$f":"Monthly!AY92-Monthly!AY80","v":-0.20000000000000284},{"$f":"Monthly!AZ92-Monthly!AZ80","v":-1.2999999999999972},{"$f":"Monthly!BA92-Monthly!BA80","v":-12.100000000000001},"--","--",null,null,null,null,null,null,null,null,null,"--","--",null,null,null,null,null,{"$f":"(Monthly!BT92/Monthly!BT80)-1","v":0.14338674773289362},null,null,null,{"$f":"(Monthly!BX92/Monthly!BX80)-1","v":-4.7244094488189003E-2},{"$f":"(Monthly!BY92/Monthly!BY80)-1","v":3.9837398373983701E-2},"--","--",{"$f":"Monthly!CB92-Monthly!CB80","v":-0.40016719961545189},{"$f":"Monthly!CC92-Monthly!CC80","v":-1.0301671996154536},"--","--",null,"--","--",null,{"$f":"(Monthly!CJ92/Monthly!CJ80)-1","v":-4.8027444253859297E-2},{"$f":"(Monthly!CK92/Monthly!CK80)-1","v":8.8574618533680649E-2},{"$f":"(Monthly!CL92/Monthly!CL80)-1","v":5.3703703703703587E-2},{"$f":"(Monthly!CM92/Monthly!CM80)-1","v":-4.216867469879515E-2},{"$f":"(Monthly!CN92/Monthly!CN80)-1","v":7.3202315661182293E-2},{"$f":"(Monthly!CO92/Monthly!CO80)-1","v":9.3154246100519922E-2},{"$f":"(Monthly!CP92/Monthly!CP80)-1","v":0.12154590903606066},{"$f":"(Monthly!CQ92/Monthly!CQ80)-1","v":1.2282550575971607E-2},"--",null,null,null,null,null,null,null,{"$f":"(Monthly!CZ92/Monthly!CZ80)-1","v":1.7030848329048665E-2},{"$f":"(Monthly!DA92/Monthly!DA80)-1","v":1.2345679012345734E-2},null,null,null,null,null,null,"--",{"$f":"((Monthly!DI92-Monthly!DI80)*100)","v":29.999999999999716},"--",{"$f":"((Monthly!DK92-Monthly!DK80)*100)","v":-89.999999999999943},{"$f":"Monthly!DL92-Monthly!DL80","v":1043},null,null,null,{"$f":"Monthly!DP92-Monthly!DP80","v":2924},null,null,null,"--","--","--","--","--","--","--","--","--","--",null,null,null,null,null,null,null,null,null,null,null,null,null,{"$f":"(Monthly!EQ92/Monthly!EQ80)-1","v":2.5236593059936974E-2},"--",{"$f":"(Monthly!ES92/Monthly!ES80)-1","v":1.1940298507462588E-2},null,null,null,null,null,{"$f":"((Monthly!EY92-Monthly!EY80)*100)","v":0},{"$f":"((Monthly!EZ92-Monthly!EZ80)*100)","v":72.000000000000014},{"$f":"((Monthly!FA92-Monthly!FA80)*100)","v":13.999999999999968},{"$f":"((Monthly!FB92-Monthly!FB80)*100)","v":12.000000000000011},"--","--",{"$f":"((Monthly!FE92-Monthly!FE80)*100)","v":46.000000000000043},{"$f":"((Monthly!FF92-Monthly!FF80)*100)","v":43.999999999999993},"--",{"$f":"((Monthly!FH92-Monthly!FH80)*100)","v":26.999999999999957},{"$f":"((Monthly!FI92-Monthly!FI80)*100)","v":15.999999999999925},null,null,null,null,null,null,"--","--","--","--","--","--","--","--","--",null,null,null,null,null,{"$f":"(Monthly!GD92/Monthly!GD80)-1","v":0},"--","--","--","--","--","--","--","--"]
["1965-11-01",null,null,null,{"$f":"(Monthly!E93/Monthly!E81)-1","v":{"$error":"#DIV/0!"}},{"$f":"(Monthly!F93/Monthly!F81)-1","v":{"$error":"#DIV/0!"}},{"$f":"(Monthly!G93/Monthly!G81)-1","v":{"$error":"#DIV/0!"}},{"$f":"(Monthly!H93/Monthly!H81)-1","v":{"$error":"#DIV/0!"}},null,null,null,null,null,null,null,null,null,null,null,null,null,null,null,"--",{"$f":"(Monthly!Y93/Monthly!Y81)-1","v":0.19153471162165792},null,null,null,null,null,null,null,null,null,null,null,null,null,{"$f":"(Monthly!AM93/Monthly!AM81)-1","v":9.6274600080326955E-2},"--","--","--",{"$f":"Monthly!AQ93-Monthly!AQ81","v":-2.3999999999999986},"--","--",{"$f":"Monthly!AT93-Monthly!AT81","v":-2.5999999999999943},"--","--",{"$f":"Monthly!AW93-Monthly!AW81","v":-12.299999999999997},{"$f":"Monthly!AX93-Monthly!AX81","v":1.1999999999999957},{"$f":"Monthly!AY93-Monthly!AY81","v":2.0999999999999943},{"$f":"Monthly!AZ93-Monthly!AZ81","v":-1.2000000000000028},{"$f":"Monthly!BA93-Monthly!BA81","v":-5.2000000000000028},"--","--",null,null,null,null,null,null,null,null,null,"--","--",null,null,null,null,null,{"$f":"(Monthly!BT93/Monthly!BT81)-1","v":0.14526875012783003},null,null,null,{"$f":"(Monthly!BX93/Monthly!BX81)-1","v":-1.7496635262449489E-2},{"$f":"(Monthly!BY93/Monthly!BY81)-1","v":4.146730462519943E-2},"--","--",{"$f":"Monthly!CB93-Monthly!CB81","v":-0.36679637135014165},{"$f":"Monthly!CC93-Monthly!CC81","v":-0.85679637135014275},"--","--",null,"--","--",null,{"$f":"(Monthly!CJ93/Monthly!CJ81)-1","v":0.12408759124087587},{"$f":"(Monthly!CK93/Monthly!CK81)-1","v":9.0892296323665356E-2},{"$f":"(Monthly!CL93/Monthly!CL81)-1","v":8.2644628099173278E-3},{"$f":"(Monthly!CM93/Monthly!CM81)-1","v":6.6666666666666652E-2},{"$f":"(Monthly!CN93/Monthly!CN81)-1","v":7.5064384184214461E-2},{"$f":"(Monthly!CO93/Monthly!CO81)-1","v":9.2624356775300232E-2},{"$f":"(Monthly!CP93/Monthly!CP81)-1","v":0.12315525522697301},{"$f":"(Monthly!CQ93/Monthly!CQ81)-1","v":1.2175455153567327E-2},"--",null,null,null,null,null,null,null,{"$f":"(Monthly!CZ93/Monthly!CZ81)-1","v":1.7302146747837144E-2},{"$f":"(Monthly!DA93/Monthly!DA81)-1","v":1.2307692307692353E-2},null,null,null,null,null,null,"--",{"$f":"((Monthly!DI93-Monthly!DI81)*100)","v":29.999999999999716},"--",{"$f":"((Monthly!DK93-Monthly!DK81)*100)","v":-70.000000000000014},{"$f":"Monthly!DL93-Monthly!DL81","v":866},null,null,null,{"$f":"Monthly!DP93-Monthly!DP81","v":2780},null,null,null,"--","--","--","--","--","--","--","--","--","--",null,null,null,null,null,null,null,null,null,null,null,null,null,{"$f":"(Monthly!EQ93/Monthly!EQ81)-1","v":2.8391167192429068E-2},"--",{"$f":"(Monthly!ES93/Monthly!ES81)-1","v":1.4925373134328401E-2},null,null,null,null,null,{"$f":"((Monthly!EY93-Monthly!EY81)*100)","v":0},{"$f":"((Monthly!EZ93-Monthly!EZ81)*100)","v":57.999999999999964},{"$f":"((Monthly!FA93-Monthly!FA81)*100)","v":16.999999999999993},{"$f":"((Monthly!FB93-Monthly!FB81)*100)","v":14.000000000000057},"--","--",{"$f":"((Monthly!FE93-Monthly!FE81)*100)","v":44.999999999999972},{"$f":"((Monthly!FF93-Monthly!FF81)*100)","v":46},"--",{"$f":"((Monthly!FH93-Monthly!FH81)*100)","v":41.999999999999993},{"$f":"((Monthly!FI93-Monthly!FI81)*100)","v":29.999999999999982},null,null,null,null,null,null,"--","--","--","--","--","--","--","--","--",null,null,null,null,null,{"$f":"(Monthly!GD93/Monthly!GD81)-1","v":0},"--","--","--","--","--","--","--","--"]
["1965-12-01",null,null,null,{"$f":"(Monthly!E94/Monthly!E82)-1","v":{"$error":"#DIV/0!"}},{"$f":"(Monthly!F94/Monthly!F82)-1","v":{"$error":"#DIV/0!"}},{"$f":"(Monthly!G94/Monthly!G82)-1","v":{"$error":"#DIV/0!"}},{"$f":"(Monthly!H94/Monthly!H82)-1","v":{"$error":"#DIV/0!"}},null,null,null,null,null,null,null,null,null,null,null,null,null,null,null,"--",{"$f":"(Monthly!Y94/Monthly!Y82)-1","v":0.18526053119124697},null,null,null,null,null,null,null,null,null,null,null,null,null,{"$f":"(Monthly!AM94/Monthly!AM82)-1","v":9.6945443983670332E-2},"--","--","--",{"$f":"Monthly!AQ94-Monthly!AQ82","v":0.39999999999999858},"--","--",{"$f":"Monthly!AT94-Monthly!AT82","v":5},"--","--",{"$f":"Monthly!AW94-Monthly!AW82","v":-12.100000000000001},{"$f":"Monthly!AX94-Monthly!AX82","v":-1.5000000000000071},{"$f":"Monthly!AY94-Monthly!AY82","v":-2.5999999999999943},{"$f":"Monthly!AZ94-Monthly!AZ82","v":0.90000000000000568},{"$f":"Monthly!BA94-Monthly!BA82","v":5.7000000000000028},"--","--",null,null,null,null,null,null,null,null,null,"--","--",null,null,null,null,null,{"$f":"(Monthly!BT94/Monthly!BT82)-1","v":0.13961176205555015},null,null,null,{"$f":"(Monthly!BX94/Monthly!BX82)-1","v":0.11590296495956864},{"$f":"(Monthly!BY94/Monthly!BY82)-1","v":0.1297250859106529},"--","--",{"$f":"Monthly!CB94-Monthly!CB82","v":-0.278186528497403},{"$f":"Monthly!CC94-Monthly!CC82","v":-0.97818652849740317},"--","--",null,"--","--",null,{"$f":"(Monthly!CJ94/Monthly!CJ82)-1","v":0.12777777777777777},{"$f":"(Monthly!CK94/Monthly!CK82)-1","v":8.8219178082191707E-2},{"$f":"(Monthly!CL94/Monthly!CL82)-1","v":1.9607843137254832E-2},{"$f":"(Monthly!CM94/Monthly!CM82)-1","v":0.13499480789200424},{"$f":"(Monthly!CN94/Monthly!CN82)-1","v":6.9097456673418822E-2},{"$f":"(Monthly!CO94/Monthly!CO82)-1","v":9.2261904761904656E-2},{"$f":"(Monthly!CP94/Monthly!CP82)-1","v":0.11627671603869727},{"$f":"(Monthly!CQ94/Monthly!CQ82)-1","v":1.2085640725449265E-2},"--",null,null,null,null,null,null,null,{"$f":"(Monthly!CZ94/Monthly!CZ82)-1","v":1.9200000000000106E-2},{"$f":"(Monthly!DA94/Monthly!DA82)-1","v":1.538461538461533E-2},null,null,null,null,null,null,"--",{"$f":"((Monthly!DI94-Monthly!DI82)*100)","v":39.999999999999858},"--",{"$f":"((Monthly!DK94-Monthly!DK82)*100)","v":-100},{"$f":"Monthly!DL94-Monthly!DL82","v":875},null,null,null,{"$f":"Monthly!DP94-Monthly!DP82","v":2900},null,null,null,"--","--","--","--","--","--","--","--","--","--",null,null,null,null,null,null,null,null,null,null,null,null,null,{"$f":"(Monthly!EQ94/Monthly!EQ82)-1","v":3.4700315457413256E-2},"--",{"$f":"(Monthly!ES94/Monthly!ES82)-1","v":1.4925373134328401E-2},null,null,null,null,null,{"$f":"((Monthly!EY94-Monthly!EY82)*100)","v":41.999999999999993},{"$f":"((Monthly!EZ94-Monthly!EZ82)*100)","v":47.000000000000021},{"$f":"((Monthly!FA94-Monthly!FA82)*100)","v":23.999999999999932},{"$f":"((Monthly!FB94-Monthly!FB82)*100)","v":20.999999999999996},"--","--",{"$f":"((Monthly!FE94-Monthly!FE82)*100)","v":54},{"$f":"((Monthly!FF94-Monthly!FF82)*100)","v":70.000000000000014},"--",{"$f":"((Monthly!FH94-Monthly!FH82)*100)","v":62.999999999999986},{"$f":"((Monthly!FI94-Monthly!FI82)*100)","v":44.000000000000043},null,null,null,null,null,null,"--","--","--","--","--","--","--","--","--",null,null,null,null,null,{"$f":"(Monthly!GD94/Monthly!GD82)-1","v":0},"--","--","--","--","--","--","--","--"]
["1966-01-01",null,null,null,{"$f":"(Monthly!E95/Monthly!E83)-1","v":{"$error":"#DIV/0!"}},{"$f":"(Monthly!F95/Monthly!F83)-1","v":{"$error":"#DIV/0!"}},{"$f":"(Monthly!G95/Monthly!G83)-1","v":{"$error":"#DIV/0!"}},{"$f":"(Monthly!H95/Monthly!H83)-1","v":{"$error":"#DIV/0!"}},null,null,null,null,null,null,null,null,null,null,null,null,null,null,null,"--",{"$f":"(Monthly!Y95/Monthly!Y83)-1","v":0.18132880943940832},null,null,null,null,null,null,null,null,null,null,null,null,null,{"$f":"(Monthly!AM95/Monthly!AM83)-1","v":9.5912235834267223E-2},"--","--","--",{"$f":"Monthly!AQ95-Monthly!AQ83","v":4.7999999999999972},"--","--",{"$f":"Monthly!AT95-Monthly!AT83","v":5.8999999999999986},"--","--",{"$f":"Monthly!AW95-Monthly!AW83","v":-11.699999999999996},{"$f":"Monthly!AX95-Monthly!AX83","v":4.2000000000000028},{"$f":"Monthly!AY95-Monthly!AY83","v":5.2000000000000028},{"$f":"Monthly!AZ95-Monthly!AZ83","v":10.200000000000003},{"$f":"Monthly!BA95-Monthly!BA83","v":6.4000000000000057},"--","--",null,null,null,null,null,null,null,null,null,"--","--",null,null,null,null,null,{"$f":"(Monthly!BT95/Monthly!BT83)-1","v":0.13613506735113856},null,null,null,{"$f":"(Monthly!BX95/Monthly!BX83)-1","v":6.6127847171197907E-3},{"$f":"(Monthly!BY95/Monthly!BY83)-1","v":4.8259493670886E-2},"--","--",{"$f":"Monthly!CB95-Monthly!CB83","v":-8.074253112616514E-2},{"$f":"Monthly!CC95-Monthly!CC83","v":-0.71074253112616503},"--","--",null,"--","--",null,{"$f":"(Monthly!CJ95/Monthly!CJ83)-1","v":0.12382739212007499},{"$f":"(Monthly!CK95/Monthly!CK83)-1","v":8.4269662921348409E-2},{"$f":"(Monthly!CL95/Monthly!CL83)-1","v":1.1744966442952975E-2},{"$f":"(Monthly!CM95/Monthly!CM83)-1","v":-5.9866962305986648E-2},{"$f":"(Monthly!CN95/Monthly!CN83)-1","v":6.8031283912734164E-2},{"$f":"(Monthly!CO95/Monthly!CO83)-1","v":8.737864077669899E-2},{"$f":"(Monthly!CP95/Monthly!CP83)-1","v":0.11295946668257195},{"$f":"(Monthly!CQ95/Monthly!CQ83)-1","v":1.1986150717047117E-2},"--",null,null,null,null,null,null,null,{"$f":"(Monthly!CZ95/Monthly!CZ83)-1","v":1.9181585677749302E-2},{"$f":"(Monthly!DA95/Monthly!DA83)-1","v":1.2269938650306678E-2},null,null,null,null,null,null,"--",{"$f":"((Monthly!DI95-Monthly!DI83)*100)","v":39.999999999999858},"--",{"$f":"((Monthly!DK95-Monthly!DK83)*100)","v":-90.000000000000028},{"$f":"Monthly!DL95-Monthly!DL83","v":898},null,null,null,{"$f":"Monthly!DP95-Monthly!DP83","v":2945},null,null,null,"--","--","--","--","--","--","--","--","--","--",null,null,null,null,null,null,null,null,null,null,null,null,null,{"$f":"(Monthly!EQ95/Monthly!EQ83)-1","v":3.459119496855334E-2},"--",{"$f":"(Monthly!ES95/Monthly!ES83)-1","v":1.1904761904761862E-2},null,null,null,null,null,{"$f":"((Monthly!EY95-Monthly!EY83)*100)","v":50},{"$f":"((Monthly!EZ95-Monthly!EZ83)*100)","v":52},{"$f":"((Monthly!FA95-Monthly!FA83)*100)","v":31.00000000000005},{"$f":"((Monthly!FB95-Monthly!FB83)*100)","v":25.999999999999979},"--","--",{"$f":"((Monthly!FE95-Monthly!FE83)*100)","v":77.999999999999986},{"$f":"((Monthly!FF95-Monthly!FF83)*100)","v":94},"--",{"$f":"((Monthly!FH95-Monthly!FH83)*100)","v":76.000000000000071},{"$f":"((Monthly!FI95-Monthly!FI83)*100)","v":41.999999999999993},null,null,null,null,null,null,"--","--","--","--","--","--","--","--","--",null,null,null,null,null,{"$f":"(Monthly!GD95/Monthly!GD83)-1","v":0},"--","--","--","--","--","--","--","--"]
["1966-02-01",null,null,null,{"$f":"(Monthly!E96/Monthly!E84)-1","v":{"$error":"#DIV/0!"}},{"$f":"(Monthly!F96/Monthly!F84)-1","v":{"$error":"#DIV/0!"}},{"$f":"(Monthly!G96/Monthly!G84)-1","v":{"$error":"#DIV/0!"}},{"$f":"(Monthly!H96/Monthly!H84)-1","v":{"$error":"#DIV/0!"}},null,null,null,null,null,null,null,null,null,null,null,null,null,null,null,"--",{"$f":"(Monthly!Y96/Monthly!Y84)-1","v":0.17669092198510739},null,null,null,null,null,null,null,null,null,null,null,null,null,{"$f":"(Monthly!AM96/Monthly!AM84)-1","v":9.620498175471992E-2},"--","--","--",{"$f":"Monthly!AQ96-Monthly!AQ84","v":3.3999999999999986},"--","--",{"$f":"Monthly!AT96-Monthly!AT84","v":2.9000000000000057},"--","--",{"$f":"Monthly!AW96-Monthly!AW84","v":-14.5},{"$f":"Monthly!AX96-Monthly!AX84","v":2.8999999999999915},{"$f":"Monthly!AY96-Monthly!AY84","v":16.100000000000009},{"$f":"Monthly!AZ96-Monthly!AZ84","v":6.2999999999999972},{"$f":"Monthly!BA96-Monthly!BA84","v":12},"--","--",null,null,null,null,null,null,null,null,null,"--","--",null,null,null,null,null,{"$f":"(Monthly!BT96/Monthly!BT84)-1","v":0.1366029563697051},null,null,null,{"$f":"(Monthly!BX96/Monthly!BX84)-1","v":-3.8381018841591064E-2},{"$f":"(Monthly!BY96/Monthly!BY84)-1","v":-2.1940928270042237E-2},"--","--",{"$f":"Monthly!CB96-Monthly!CB84","v":6.0521140080806113E-2},{"$f":"Monthly!CC96-Monthly!CC84","v":-0.84947885991919314},"--","--",null,"--","--",null,{"$f":"(Monthly!CJ96/Monthly!CJ84)-1","v":-3.2200357781753119E-2},{"$f":"(Monthly!CK96/Monthly!CK84)-1","v":9.2720028975008972E-2},{"$f":"(Monthly!CL96/Monthly!CL84)-1","v":0.12310606060606055},{"$f":"(Monthly!CM96/Monthly!CM84)-1","v":6.6822977725674138E-2},{"$f":"(Monthly!CN96/Monthly!CN84)-1","v":7.1658434366112855E-2},{"$f":"(Monthly!CO96/Monthly!CO84)-1","v":8.1658291457286536E-2},{"$f":"(Monthly!CP96/Monthly!CP84)-1","v":0.10897540611670742},{"$f":"(Monthly!CQ96/Monthly!CQ84)-1","v":1.1867027245039852E-2},"--",null,null,null,null,null,null,null,{"$f":"(Monthly!CZ96/Monthly!CZ84)-1","v":2.5575447570332477E-2},{"$f":"(Monthly!DA96/Monthly!DA84)-1","v":1.5337423312883347E-2},null,null,null,null,null,null,"--",{"$f":"((Monthly!DI96-Monthly!DI84)*100)","v":9.9999999999994316},"--",{"$f":"((Monthly!DK96-Monthly!DK84)*100)","v":-129.99999999999997},{"$f":"Monthly!DL96-Monthly!DL84","v":997},null,null,null,{"$f":"Monthly!DP96-Monthly!DP84","v":2996},null,null,null,"--","--","--","--","--","--","--","--","--","--",null,null,null,null,null,null,null,null,null,null,null,null,null,{"$f":"(Monthly!EQ96/Monthly!EQ84)-1","v":4.0752351097178785E-2},"--",{"$f":"(Monthly!ES96/Monthly!ES84)-1","v":1.4836795252225476E-2},null,null,null,null,null,{"$f":"((Monthly!EY96-Monthly!EY84)*100)","v":50},{"$f":"((Monthly!EZ96-Monthly!EZ84)*100)","v":61.999999999999964},{"$f":"((Monthly!FA96-Monthly!FA84)*100)","v":37.000000000000014},{"$f":"((Monthly!FB96-Monthly!FB84)*100)","v":33.999999999999986},"--","--",{"$f":"((Monthly!FE96-Monthly!FE84)*100)","v":72.000000000000014},{"$f":"((Monthly!FF96-Monthly!FF84)*100)","v":91.000000000000014},"--",{"$f":"((Monthly!FH96-Monthly!FH84)*100)","v":83},{"$f":"((Monthly!FI96-Monthly!FI84)*100)","v":62.000000000000014},null,null,null,null,null,null,"--","--","--","--","--","--","--","--","--",null,null,null,null,null,{"$f":"(Monthly!GD96/Monthly!GD84)-1","v":0},"--","--","--","--","--","--","--","--"]
["1966-03-01",null,null,null,{"$f":"(Monthly!E97/Monthly!E85)-1","v":{"$error":"#DIV/0!"}},{"$f":"(Monthly!F97/Monthly!F85)-1","v":{"$error":"#DIV/0!"}},{"$f":"(Monthly!G97/Monthly!G85)-1","v":{"$error":"#DIV/0!"}},{"$f":"(Monthly!H97/Monthly!H85)-1","v":{"$error":"#DIV/0!"}},null,null,null,null,null,null,null,null,null,null,null,null,null,null,null,"--",{"$f":"(Monthly!Y97/Monthly!Y85)-1","v":0.16962038564880166},null,null,null,null,null,null,null,null,null,null,null,null,null,{"$f":"(Monthly!AM97/Monthly!AM85)-1","v":9.6689235317328537E-2},"--","--","--",{"$f":"Monthly!AQ97-Monthly!AQ85","v":0.79999999999999716},"--","--",{"$f":"Monthly!AT97-Monthly!AT85","v":0.29999999999999716},"--","--",{"$f":"Monthly!AW97-Monthly!AW85","v":-5.5},{"$f":"Monthly!AX97-Monthly!AX85","v":-4.4000000000000057},{"$f":"Monthly!AY97-Monthly!AY85","v":21.200000000000003},{"$f":"Monthly!AZ97-Monthly!AZ85","v":-1.9000000000000057},{"$f":"Monthly!BA97-Monthly!BA85","v":20.5},"--","--",null,null,null,null,null,null,null,null,null,"--","--",null,null,null,null,null,{"$f":"(Monthly!BT97/Monthly!BT85)-1","v":0.13567216676785288},null,null,null,{"$f":"(Monthly!BX97/Monthly!BX85)-1","v":-2.037947997189038E-2},{"$f":"(Monthly!BY97/Monthly!BY85)-1","v":1.8992568125516085E-2},"--","--",{"$f":"Monthly!CB97-Monthly!CB85","v":0.68280200270168834},{"$f":"Monthly!CC97-Monthly!CC85","v":5.2802002701687556E-2},"--","--",null,"--","--",null,{"$f":"(Monthly!CJ97/Monthly!CJ85)-1","v":1.7985611510791255E-3},{"$f":"(Monthly!CK97/Monthly!CK85)-1","v":9.4166366582643324E-2},{"$f":"(Monthly!CL97/Monthly!CL85)-1","v":8.5066162570888393E-2},{"$f":"(Monthly!CM97/Monthly!CM85)-1","v":2.2604951560817987E-2},{"$f":"(Monthly!CN97/Monthly!CN85)-1","v":7.1663060508841303E-2},{"$f":"(Monthly!CO97/Monthly!CO85)-1","v":7.2289156626506257E-2},{"$f":"(Monthly!CP97/Monthly!CP85)-1","v":0.10718306358466001},{"$f":"(Monthly!CQ97/Monthly!CQ85)-1","v":1.1837346285005657E-2},"--",null,null,null,null,null,null,null,{"$f":"(Monthly!CZ97/Monthly!CZ85)-1","v":2.7786649632705274E-2},{"$f":"(Monthly!DA97/Monthly!DA85)-1","v":1.5337423312883347E-2},null,null,null,null,null,null,"--",{"$f":"((Monthly!DI97-Monthly!DI85)*100)","v":9.9999999999994316},"--",{"$f":"((Monthly!DK97-Monthly!DK85)*100)","v":-90.000000000000028},{"$f":"Monthly!DL97-Monthly!DL85","v":1047},null,null,null,{"$f":"Monthly!DP97-Monthly!DP85","v":3189},null,null,null,"--","--","--","--","--","--","--","--","--","--",null,null,null,null,null,null,null,null,null,null,null,null,null,{"$f":"(Monthly!EQ97/Monthly!EQ85)-1","v":4.0752351097178785E-2},"--",{"$f":"(Monthly!ES97/Monthly!ES85)-1","v":1.4836795252225476E-2},null,null,null,null,null,{"$f":"((Monthly!EY97-Monthly!EY85)*100)","v":84.999999999999972},{"$f":"((Monthly!EZ97-Monthly!EZ85)*100)","v":61.000000000000028},{"$f":"((Monthly!FA97-Monthly!FA85)*100)","v":50},{"$f":"((Monthly!FB97-Monthly!FB85)*100)","v":54},"--","--",{"$f":"((Monthly!FE97-Monthly!FE85)*100)","v":65.999999999999972},{"$f":"((Monthly!FF97-Monthly!FF85)*100)","v":91.000000000000014},"--",{"$f":"((Monthly!FH97-Monthly!FH85)*100)","v":76.999999999999957},{"$f":"((Monthly!FI97-Monthly!FI85)*100)","v":66.000000000000014},null,null,null,null,null,null,"--","--","--","--","--","--","--","--","--",null,null,null,null,null,{"$f":"(Monthly!GD97/Monthly!GD85)-1","v":0},"--","--","--","--","--","--","--","--"]
["1966-04-01",null,null,null,{"$f":"(Monthly!E98/Monthly!E86)-1","v":{"$error":"#DIV/0!"}},{"$f":"(Monthly!F98/Monthly!F86)-1","v":{"$error":"#DIV/0!"}},{"$f":"(Monthly!G98/Monthly!G86)-1","v":{"$error":"#DIV/0!"}},{"$f":"(Monthly!H98/Monthly!H86)-1","v":{"$error":"#DIV/0!"}},null,null,null,null,null,null,null,null,null,null,null,null,null,null,null,"--",{"$f":"(Monthly!Y98/Monthly!Y86)-1","v":0.16480265752070955},null,null,null,null,null,null,null,null,null,null,null,null,null,{"$f":"(Monthly!AM98/Monthly!AM86)-1","v":9.3669417828401214E-2},"--","--","--",{"$f":"Monthly!AQ98-Monthly!AQ86","v":2.2000000000000028},"--","--",{"$f":"Monthly!AT98-Monthly!AT86","v":0.69999999999999574},"--","--",{"$f":"Monthly!AW98-Monthly!AW86","v":-8.8999999999999986},{"$f":"Monthly!AX98-Monthly!AX86","v":4.5},{"$f":"Monthly!AY98-Monthly!AY86","v":15.200000000000003},{"$f":"Monthly!AZ98-Monthly!AZ86","v":0.5},{"$f":"Monthly!BA98-Monthly!BA86","v":9.8999999999999915},"--","--",null,null,null,null,null,null,null,null,null,"--","--",null,null,null,null,null,{"$f":"(Monthly!BT98/Monthly!BT86)-1","v":0.12827409247007249},null,null,null,{"$f":"(Monthly!BX98/Monthly!BX86)-1","v":-5.9805285118219698E-2},{"$f":"(Monthly!BY98/Monthly!BY86)-1","v":-1.4629948364888179E-2},"--","--",{"$f":"Monthly!CB98-Monthly!CB86","v":0.47873119229497973},{"$f":"Monthly!CC98-Monthly!CC86","v":-0.22126880770501955},"--","--",null,"--","--",null,{"$f":"(Monthly!CJ98/Monthly!CJ86)-1","v":-1.8018018018018056E-2},{"$f":"(Monthly!CK98/Monthly!CK86)-1","v":9.0892825192342208E-2},{"$f":"(Monthly!CL98/Monthly!CL86)-1","v":9.9009900990099098E-2},{"$f":"(Monthly!CM98/Monthly!CM86)-1","v":-7.4736842105263213E-2},{"$f":"(Monthly!CN98/Monthly!CN86)-1","v":6.6666666666666652E-2},{"$f":"(Monthly!CO98/Monthly!CO86)-1","v":5.7414291615035085E-2},{"$f":"(Monthly!CP98/Monthly!CP86)-1","v":9.7256555991622085E-2},{"$f":"(Monthly!CQ98/Monthly!CQ86)-1","v":1.182185649608436E-2},"--",null,null,null,null,null,null,null,{"$f":"(Monthly!CZ98/Monthly!CZ86)-1","v":2.8680688336520044E-2},{"$f":"(Monthly!DA98/Monthly!DA86)-1","v":1.8348623853210899E-2},null,null,null,null,null,null,"--",{"$f":"((Monthly!DI98-Monthly!DI86)*100)","v":20.000000000000284},"--",{"$f":"((Monthly!DK98-Monthly!DK86)*100)","v":-100},{"$f":"Monthly!DL98-Monthly!DL86","v":1099},null,null,null,{"$f":"Monthly!DP98-Monthly!DP86","v":3177},null,null,null,"--","--","--","--","--","--","--","--","--","--",null,null,null,null,null,null,null,null,null,null,null,null,null,{"$f":"(Monthly!EQ98/Monthly!EQ86)-1","v":3.7500000000000089E-2},"--",{"$f":"(Monthly!ES98/Monthly!ES86)-1","v":1.4792899408283988E-2},null,null,null,null,null,{"$f":"((Monthly!EY98-Monthly!EY86)*100)","v":100},{"$f":"((Monthly!EZ98-Monthly!EZ86)*100)","v":58.000000000000007},{"$f":"((Monthly!FA98-Monthly!FA86)*100)","v":53.000000000000028},{"$f":"((Monthly!FB98-Monthly!FB86)*100)","v":61.000000000000028},"--","--",{"$f":"((Monthly!FE98-Monthly!FE86)*100)","v":69},{"$f":"((Monthly!FF98-Monthly!FF86)*100)","v":86.000000000000028},"--",{"$f":"((Monthly!FH98-Monthly!FH86)*100)","v":67.999999999999972},{"$f":"((Monthly!FI98-Monthly!FI86)*100)","v":54.999999999999986},null,null,null,null,null,null,"--","--","--","--","--","--","--","--","--",null,null,null,null,null,{"$f":"(Monthly!GD98/Monthly!GD86)-1","v":0},"--","--","--","--","--","--","--","--"]
["1966-05-01",null,null,null,{"$f":"(Monthly!E99/Monthly!E87)-1","v":{"$error":"#DIV/0!"}},{"$f":"(Monthly!F99/Monthly!F87)-1","v":{"$error":"#DIV/0!"}},{"$f":"(Monthly!G99/Monthly!G87)-1","v":{"$error":"#DIV/0!"}},{"$f":"(Monthly!H99/Monthly!H87)-1","v":{"$error":"#DIV/0!"}},null,null,null,null,null,null,null,null,null,null,null,null,null,null,null,"--",{"$f":"(Monthly!Y99/Monthly!Y87)-1","v":0.16531267381803727},null,null,null,null,null,null,null,null,null,null,null,null,null,{"$f":"(Monthly!AM99/Monthly!AM87)-1","v":9.5527449136181497E-2},"--","--","--",{"$f":"Monthly!AQ99-Monthly!AQ87","v":-3.5999999999999943},"--","--",{"$f":"Monthly!AT99-Monthly!AT87","v":0.60000000000000142},"--","--",{"$f":"Monthly!AW99-Monthly!AW87","v":-6.8000000000000043},{"$f":"Monthly!AX99-Monthly!AX87","v":-7.5},{"$f":"Monthly!AY99-Monthly!AY87","v":13.299999999999997},{"$f":"Monthly!AZ99-Monthly!AZ87","v":-6.8999999999999986},{"$f":"Monthly!BA99-Monthly!BA87","v":5.6999999999999886},"--","--",null,null,null,null,null,null,null,null,null,"--","--",null,null,null,null,null,{"$f":"(Monthly!BT99/Monthly!BT87)-1","v":0.11948196229884611},null,null,null,{"$f":"(Monthly!BX99/Monthly!BX87)-1","v":-0.14411366711772666},{"$f":"(Monthly!BY99/Monthly!BY87)-1","v":-0.10687655343827673},"--","--",{"$f":"Monthly!CB99-Monthly!CB87","v":0.44971498601796966},{"$f":"Monthly!CC99-Monthly!CC87","v":-4.0285013982028772E-2},"--","--",null,"--","--",null,{"$f":"(Monthly!CJ99/Monthly!CJ87)-1","v":-8.2720588235294157E-2},{"$f":"(Monthly!CK99/Monthly!CK87)-1","v":8.7551056650683634E-2},{"$f":"(Monthly!CL99/Monthly!CL87)-1","v":7.9928952042628731E-2},{"$f":"(Monthly!CM99/Monthly!CM87)-1","v":-0.13382507903055851},{"$f":"(Monthly!CN99/Monthly!CN87)-1","v":5.6968089026457225E-2},{"$f":"(Monthly!CO99/Monthly!CO87)-1","v":4.6778826425933451E-2},{"$f":"(Monthly!CP99/Monthly!CP87)-1","v":9.2638131987470063E-2},{"$f":"(Monthly!CQ99/Monthly!CQ87)-1","v":1.1810942399735902E-2},"--",null,null,null,null,null,null,null,{"$f":"(Monthly!CZ99/Monthly!CZ87)-1","v":2.7636594663278391E-2},{"$f":"(Monthly!DA99/Monthly!DA87)-1","v":2.1406727828745975E-2},null,null,null,null,null,null,"--",{"$f":"((Monthly!DI99-Monthly!DI87)*100)","v":0},"--",{"$f":"((Monthly!DK99-Monthly!DK87)*100)","v":-69.999999999999972},{"$f":"Monthly!DL99-Monthly!DL87","v":1148},null,null,null,{"$f":"Monthly!DP99-Monthly!DP87","v":3219},null,null,null,"--","--","--","--","--","--","--","--","--","--",null,null,null,null,null,null,null,null,null,null,null,null,null,{"$f":"(Monthly!EQ99/Monthly!EQ87)-1","v":3.4267912772585785E-2},"--",{"$f":"(Monthly!ES99/Monthly!ES87)-1","v":2.0710059171597628E-2},null,null,null,null,null,{"$f":"((Monthly!EY99-Monthly!EY87)*100)","v":100},{"$f":"((Monthly!EZ99-Monthly!EZ87)*100)","v":80.000000000000071},{"$f":"((Monthly!FA99-Monthly!FA87)*100)","v":54},{"$f":"((Monthly!FB99-Monthly!FB87)*100)","v":67.000000000000085},"--","--",{"$f":"((Monthly!FE99-Monthly!FE87)*100)","v":74.999999999999957},{"$f":"((Monthly!FF99-Monthly!FF87)*100)","v":89.999999999999943},"--",{"$f":"((Monthly!FH99-Monthly!FH87)*100)","v":73.999999999999929},{"$f":"((Monthly!FI99-Monthly!FI87)*100)","v":57.000000000000028},null,null,null,null,null,null,"--","--","--","--","--","--","--","--","--",null,null,null,null,null,{"$f":"(Monthly!GD99/Monthly!GD87)-1","v":0},"--","--","--","--","--","--","--","--"]
["1966-06-01",null,null,null,{"$f":"(Monthly!E100/Monthly!E88)-1","v":{"$error":"#DIV/0!"}},{"$f":"(Monthly!F100/Monthly!F88)-1","v":{"$error":"#DIV/0!"}},{"$f":"(Monthly!G100/Monthly!G88)-1","v":{"$error":"#DIV/0!"}},{"$f":"(Monthly!H100/Monthly!H88)-1","v":{"$error":"#DIV/0!"}},null,null,null,null,null,null,null,null,null,null,null,null,null,null,null,"--",{"$f":"(Monthly!Y100/Monthly!Y88)-1","v":0.17522380754188172},null,null,null,null,null,null,null,null,null,null,null,null,null,{"$f":"(Monthly!AM100/Monthly!AM88)-1","v":9.2226452167505801E-2},"--","--","--",{"$f":"Monthly!AQ100-Monthly!AQ88","v":0.29999999999999716},"--","--",{"$f":"Monthly!AT100-Monthly!AT88","v":3.3999999999999986},"--","--",{"$f":"Monthly!AW100-Monthly!AW88","v":-2.5},{"$f":"Monthly!AX100-Monthly!AX88","v":-1.5},{"$f":"Monthly!AY100-Monthly!AY88","v":8.2999999999999972},{"$f":"Monthly!AZ100-Monthly!AZ88","v":0.10000000000000142},{"$f":"Monthly!BA100-Monthly!BA88","v":2.2999999999999972},"--","--",null,null,null,null,null,null,null,null,null,"--","--",null,null,null,null,null,{"$f":"(Monthly!BT100/Monthly!BT88)-1","v":0.11700230864855254},null,null,null,{"$f":"(Monthly!BX100/Monthly!BX88)-1","v":-0.19758064516129037},{"$f":"(Monthly!BY100/Monthly!BY88)-1","v":-0.22965350523771155},"--","--",{"$f":"Monthly!CB100-Monthly!CB88","v":-0.29892172836447539},{"$f":"Monthly!CC100-Monthly!CC88","v":-0.858921728364475},"--","--",null,"--","--",null,{"$f":"(Monthly!CJ100/Monthly!CJ88)-1","v":-0.29315960912052119},{"$f":"(Monthly!CK100/Monthly!CK88)-1","v":8.9720946661956846E-2},{"$f":"(Monthly!CL100/Monthly!CL88)-1","v":2.1416803953871355E-2},{"$f":"(Monthly!CM100/Monthly!CM88)-1","v":-0.17317845828933476},{"$f":"(Monthly!CN100/Monthly!CN88)-1","v":6.0135433534520777E-2},{"$f":"(Monthly!CO100/Monthly!CO88)-1","v":3.6630036630036722E-2},{"$f":"(Monthly!CP100/Monthly!CP88)-1","v":8.6666572289478161E-2},{"$f":"(Monthly!CQ100/Monthly!CQ88)-1","v":1.1773070839365962E-2},"--",null,null,null,null,null,null,null,{"$f":"(Monthly!CZ100/Monthly!CZ88)-1","v":2.4359379943056148E-2},{"$f":"(Monthly!DA100/Monthly!DA88)-1","v":2.4464831804281273E-2},null,null,null,null,null,null,"--",{"$f":"((Monthly!DI100-Monthly!DI88)*100)","v":30.000000000000426},"--",{"$f":"((Monthly!DK100-Monthly!DK88)*100)","v":-79.999999999999986},{"$f":"Monthly!DL100-Monthly!DL88","v":1179},null,null,null,{"$f":"Monthly!DP100-Monthly!DP88","v":3420},null,null,null,"--","--","--","--","--","--","--","--","--","--",null,null,null,null,null,null,null,null,null,null,null,null,null,{"$f":"(Monthly!EQ100/Monthly!EQ88)-1","v":2.7777777777777679E-2},"--",{"$f":"(Monthly!ES100/Monthly!ES88)-1","v":2.3668639053254559E-2},null,null,null,null,null,{"$f":"((Monthly!EY100-Monthly!EY88)*100)","v":101.99999999999996},{"$f":"((Monthly!EZ100-Monthly!EZ88)*100)","v":112.99999999999999},{"$f":"((Monthly!FA100-Monthly!FA88)*100)","v":61.000000000000028},{"$f":"((Monthly!FB100-Monthly!FB88)*100)","v":73.000000000000043},"--","--",{"$f":"((Monthly!FE100-Monthly!FE88)*100)","v":70.000000000000014},{"$f":"((Monthly!FF100-Monthly!FF88)*100)","v":97.999999999999957},"--",{"$f":"((Monthly!FH100-Monthly!FH88)*100)","v":81.999999999999943},{"$f":"((Monthly!FI100-Monthly!FI88)*100)","v":59.999999999999964},null,null,null,null,null,null,"--","--","--","--","--","--","--","--","--",null,null,null,null,null,{"$f":"(Monthly!GD100/Monthly!GD88)-1","v":0},"--","--","--","--","--","--","--","--"]
["1966-07-01",null,null,null,{"$f":"(Monthly!E101/Monthly!E89)-1","v":{"$error":"#DIV/0!"}},{"$f":"(Monthly!F101/Monthly!F89)-1","v":{"$error":"#DIV/0!"}},{"$f":"(Monthly!G101/Monthly!G89)-1","v":{"$error":"#DIV/0!"}},{"$f":"(Monthly!H101/Monthly!H89)-1","v":{"$error":"#DIV/0!"}},null,null,null,null,null,null,null,null,null,null,null,null,null,null,null,"--",{"$f":"(Monthly!Y101/Monthly!Y89)-1","v":0.18326593764254806},null,null,null,null,null,null,null,null,null,null,null,null,null,{"$f":"(Monthly!AM101/Monthly!AM89)-1","v":8.7986154833489927E-2},"--","--","--",{"$f":"Monthly!AQ101-Monthly!AQ89","v":2.1999999999999957},"--","--",{"$f":"Monthly!AT101-Monthly!AT89","v":2.6999999999999957},"--","--",{"$f":"Monthly!AW101-Monthly!AW89","v":4.1000000000000014},{"$f":"Monthly!AX101-Monthly!AX89","v":-0.30000000000000426},{"$f":"Monthly!AY101-Monthly!AY89","v":7.9000000000000057},{"$f":"Monthly!AZ101-Monthly!AZ89","v":0.29999999999999716},{"$f":"Monthly!BA101-Monthly!BA89","v":8},"--","--",null,null,null,null,null,null,null,null,null,"--","--",null,null,null,null,null,{"$f":"(Monthly!BT101/Monthly!BT89)-1","v":0.10574937887112013},null,null,null,{"$f":"(Monthly!BX101/Monthly!BX89)-1","v":-0.28973185088292996},{"$f":"(Monthly!BY101/Monthly!BY89)-1","v":-0.24656426839126921},"--","--",{"$f":"Monthly!CB101-Monthly!CB89","v":0.34962125805781952},{"$f":"Monthly!CC101-Monthly!CC89","v":-7.0378741942178635E-2},"--","--",null,"--","--",null,{"$f":"(Monthly!CJ101/Monthly!CJ89)-1","v":-0.21480144404332135},{"$f":"(Monthly!CK101/Monthly!CK89)-1","v":8.8359046283309928E-2},{"$f":"(Monthly!CL101/Monthly!CL89)-1","v":-6.6225165562913135E-3},{"$f":"(Monthly!CM101/Monthly!CM89)-1","v":-0.28460793804453044},{"$f":"(Monthly!CN101/Monthly!CN89)-1","v":5.3110884452863161E-2},{"$f":"(Monthly!CO101/Monthly!CO89)-1","v":2.9138000809388886E-2},{"$f":"(Monthly!CP101/Monthly!CP89)-1","v":7.9473885210141759E-2},{"$f":"(Monthly!CQ101/Monthly!CQ89)-1","v":1.1615878293181225E-2},"--",null,null,null,null,null,null,null,{"$f":"(Monthly!CZ101/Monthly!CZ89)-1","v":2.7549081697276989E-2},{"$f":"(Monthly!DA101/Monthly!DA89)-1","v":2.7522935779816571E-2},null,null,null,null,null,null,"--",{"$f":"((Monthly!DI101-Monthly!DI89)*100)","v":0},"--",{"$f":"((Monthly!DK101-Monthly!DK89)*100)","v":-60.000000000000057},{"$f":"Monthly!DL101-Monthly!DL89","v":1091},null,null,null,{"$f":"Monthly!DP101-Monthly!DP89","v":3338},null,null,null,"--","--","--","--","--","--","--","--","--","--",null,null,null,null,null,null,null,null,null,null,null,null,null,{"$f":"(Monthly!EQ101/Monthly!EQ89)-1","v":3.3950617283950768E-2},"--",{"$f":"(Monthly!ES101/Monthly!ES89)-1","v":2.662721893491149E-2},null,null,null,null,null,{"$f":"((Monthly!EY101-Monthly!EY89)*100)","v":125},{"$f":"((Monthly!EZ101-Monthly!EZ89)*100)","v":121},{"$f":"((Monthly!FA101-Monthly!FA89)*100)","v":67.999999999999972},{"$f":"((Monthly!FB101-Monthly!FB89)*100)","v":79.999999999999986},"--","--",{"$f":"((Monthly!FE101-Monthly!FE89)*100)","v":96},{"$f":"((Monthly!FF101-Monthly!FF89)*100)","v":119},"--",{"$f":"((Monthly!FH101-Monthly!FH89)*100)","v":101.99999999999996},{"$f":"((Monthly!FI101-Monthly!FI89)*100)","v":81.999999999999943},null,null,null,null,null,null,"--","--","--","--","--","--","--","--","--",null,null,null,null,null,{"$f":"(Monthly!GD101/Monthly!GD89)-1","v":0},"--","--","--","--","--","--","--","--"]
["1966-08-01",null,null,null,{"$f":"(Monthly!E102/Monthly!E90)-1","v":{"$error":"#DIV/0!"}},{"$f":"(Monthly!F102/Monthly!F90)-1","v":{"$error":"#DIV/0!"}},{"$f":"(Monthly!G102/Monthly!G90)-1","v":{"$error":"#DIV/0!"}},{"$f":"(Monthly!H102/Monthly!H90)-1","v":{"$error":"#DIV/0!"}},null,null,null,null,null,null,null,null,null,null,null,null,null,null,null,"--",{"$f":"(Monthly!Y102/Monthly!Y90)-1","v":0.17585278989358444},null,null,null,null,null,null,null,null,null,null,null,null,null,{"$f":"(Monthly!AM102/Monthly!AM90)-1","v":8.4247508859072617E-2},"--","--","--",{"$f":"Monthly!AQ102-Monthly!AQ90","v":0.39999999999999858},"--","--",{"$f":"Monthly!AT102-Monthly!AT90","v":-1.6000000000000014},"--","--",{"$f":"Monthly!AW102-Monthly!AW90","v":-0.20000000000000284},{"$f":"Monthly!AX102-Monthly!AX90","v":-2.7000000000000028},{"$f":"Monthly!AY102-Monthly!AY90","v":9},{"$f":"Monthly!AZ102-Monthly!AZ90","v":1.1000000000000014},{"$f":"Monthly!BA102-Monthly!BA90","v":8.8999999999999915},"--","--",null,null,null,null,null,null,null,null,null,"--","--",null,null,null,null,null,{"$f":"(Monthly!BT102/Monthly!BT90)-1","v":9.3995330596096549E-2},null,null,null,{"$f":"(Monthly!BX102/Monthly!BX90)-1","v":-0.21857541899441346},{"$f":"(Monthly!BY102/Monthly!BY90)-1","v":-0.29783827061649315},"--","--",{"$f":"Monthly!CB102-Monthly!CB90","v":1.2762233604099338},{"$f":"Monthly!CC102-Monthly!CC90","v":0.85622336040993474},"--","--",null,"--","--",null,{"$f":"(Monthly!CJ102/Monthly!CJ90)-1","v":-0.38699186991869916},{"$f":"(Monthly!CK102/Monthly!CK90)-1","v":9.3035433758072994E-2},{"$f":"(Monthly!CL102/Monthly!CL90)-1","v":4.3624161073825496E-2},{"$f":"(Monthly!CM102/Monthly!CM90)-1","v":-0.22129436325678498},{"$f":"(Monthly!CN102/Monthly!CN90)-1","v":5.3139045962012466E-2},{"$f":"(Monthly!CO102/Monthly!CO90)-1","v":1.7684887459807008E-2},{"$f":"(Monthly!CP102/Monthly!CP90)-1","v":7.8248761082722051E-2},{"$f":"(Monthly!CQ102/Monthly!CQ90)-1","v":1.1484207928935675E-2},"--",null,null,null,null,null,null,null,{"$f":"(Monthly!CZ102/Monthly!CZ90)-1","v":3.4865293185419866E-2},{"$f":"(Monthly!DA102/Monthly!DA90)-1","v":3.0581039755351647E-2},null,null,null,null,null,null,"--",{"$f":"((Monthly!DI102-Monthly!DI90)*100)","v":39.999999999999858},"--",{"$f":"((Monthly!DK102-Monthly!DK90)*100)","v":-60.000000000000057},{"$f":"Monthly!DL102-Monthly!DL90","v":1150},null,null,null,{"$f":"Monthly!DP102-Monthly!DP90","v":3279},null,null,null,"--","--","--","--","--","--","--","--","--","--",null,null,null,null,null,null,null,null,null,null,null,null,null,{"$f":"(Monthly!EQ102/Monthly!EQ90)-1","v":3.7037037037037202E-2},"--",{"$f":"(Monthly!ES102/Monthly!ES90)-1","v":2.9585798816567976E-2},null,null,null,null,null,{"$f":"((Monthly!EY102-Monthly!EY90)*100)","v":138},{"$f":"((Monthly!EZ102-Monthly!EZ90)*100)","v":141},{"$f":"((Monthly!FA102-Monthly!FA90)*100)","v":81.999999999999943},{"$f":"((Monthly!FB102-Monthly!FB90)*100)","v":95.000000000000014},"--","--",{"$f":"((Monthly!FE102-Monthly!FE90)*100)","v":112.00000000000001},{"$f":"((Monthly!FF102-Monthly!FF90)*100)","v":146.99999999999997},"--",{"$f":"((Monthly!FH102-Monthly!FH90)*100)","v":129.99999999999997},{"$f":"((Monthly!FI102-Monthly!FI90)*100)","v":96.999999999999972},null,null,null,null,null,null,"--","--","--","--","--","--","--","--","--",null,null,null,null,null,{"$f":"(Monthly!GD102/Monthly!GD90)-1","v":0},"--","--","--","--","--","--","--","--"]
["1966-09-01",null,null,null,{"$f":"(Monthly!E103/Monthly!E91)-1","v":{"$error":"#DIV/0!"}},{"$f":"(Monthly!F103/Monthly!F91)-1","v":{"$error":"#DIV/0!"}},{"$f":"(Monthly!G103/Monthly!G91)-1","v":{"$error":"#DIV/0!"}},{"$f":"(Monthly!H103/Monthly!H91)-1","v":{"$error":"#DIV/0!"}},null,null,null,null,null,null,null,null,null,null,null,null,null,null,null,"--",{"$f":"(Monthly!Y103/Monthly!Y91)-1","v":0.1671981358161001},null,null,null,null,null,null,null,null,null,null,null,null,null,{"$f":"(Monthly!AM103/Monthly!AM91)-1","v":9.1593782571260274E-2},"--","--","--",{"$f":"Monthly!AQ103-Monthly!AQ91","v":-2.2999999999999972},"--","--",{"$f":"Monthly!AT103-Monthly!AT91","v":0.29999999999999716},"--","--",{"$f":"Monthly!AW103-Monthly!AW91","v":-0.90000000000000568},{"$f":"Monthly!AX103-Monthly!AX91","v":-8.3999999999999986},{"$f":"Monthly!AY103-Monthly!AY91","v":7.4000000000000057},{"$f":"Monthly!AZ103-Monthly!AZ91","v":-5.8999999999999986},{"$f":"Monthly!BA103-Monthly!BA91","v":11.200000000000003},"--","--",null,null,null,null,null,null,null,null,null,"--","--",null,null,null,null,null,{"$f":"(Monthly!BT103/Monthly!BT91)-1","v":8.462078331647116E-2},null,null,null,{"$f":"(Monthly!BX103/Monthly!BX91)-1","v":-0.2941970310391363},{"$f":"(Monthly!BY103/Monthly!BY91)-1","v":-0.36919315403422981},"--","--",{"$f":"Monthly!CB103-Monthly!CB91","v":1.2362358020801887},{"$f":"Monthly!CC103-Monthly!CC91","v":0.81623580208018964},"--","--",null,"--","--",null,{"$f":"(Monthly!CJ103/Monthly!CJ91)-1","v":-0.39011925042589435},{"$f":"(Monthly!CK103/Monthly!CK91)-1","v":7.4502466405851564E-2},{"$f":"(Monthly!CL103/Monthly!CL91)-1","v":-7.9939668174962231E-2},{"$f":"(Monthly!CM103/Monthly!CM91)-1","v":-0.27338877338877343},{"$f":"(Monthly!CN103/Monthly!CN91)-1","v":3.0587405186099703E-2},{"$f":"(Monthly!CO103/Monthly!CO91)-1","v":9.1706539074960514E-3},{"$f":"(Monthly!CP103/Monthly!CP91)-1","v":6.9544708450861359E-2},{"$f":"(Monthly!CQ103/Monthly!CQ91)-1","v":1.1413989453740836E-2},"--",null,null,null,null,null,null,null,{"$f":"(Monthly!CZ103/Monthly!CZ91)-1","v":3.5736875395319334E-2},{"$f":"(Monthly!DA103/Monthly!DA91)-1","v":3.0487804878048808E-2},null,null,null,null,null,null,"--",{"$f":"((Monthly!DI103-Monthly!DI91)*100)","v":59.999999999999432},"--",{"$f":"((Monthly!DK103-Monthly!DK91)*100)","v":-59.999999999999964},{"$f":"Monthly!DL103-Monthly!DL91","v":1084},null,null,null,{"$f":"Monthly!DP103-Monthly!DP91","v":3154},null,null,null,"--","--","--","--","--","--","--","--","--","--",null,null,null,null,null,null,null,null,null,null,null,null,null,{"$f":"(Monthly!EQ103/Monthly!EQ91)-1","v":3.7037037037037202E-2},"--",{"$f":"(Monthly!ES103/Monthly!ES91)-1","v":2.9498525073746285E-2},null,null,null,null,null,{"$f":"((Monthly!EY103-Monthly!EY91)*100)","v":150},{"$f":"((Monthly!EZ103-Monthly!EZ91)*100)","v":139.00000000000006},{"$f":"((Monthly!FA103-Monthly!FA91)*100)","v":97.000000000000057},{"$f":"((Monthly!FB103-Monthly!FB91)*100)","v":117.99999999999997},"--","--",{"$f":"((Monthly!FE103-Monthly!FE91)*100)","v":145.00000000000003},{"$f":"((Monthly!FF103-Monthly!FF91)*100)","v":162},"--",{"$f":"((Monthly!FH103-Monthly!FH91)*100)","v":125},{"$f":"((Monthly!FI103-Monthly!FI91)*100)","v":88.999999999999972},null,null,null,null,null,null,"--","--","--","--","--","--","--","--","--",null,null,null,null,null,{"$f":"(Monthly!GD103/Monthly!GD91)-1","v":1.7123287671233056E-2},"--","--","--","--","--","--","--","--"]
["1966-10-01",null,null,null,{"$f":"(Monthly!E104/Monthly!E92)-1","v":{"$error":"#DIV/0!"}},{"$f":"(Monthly!F104/Monthly!F92)-1","v":{"$error":"#DIV/0!"}},{"$f":"(Monthly!G104/Monthly!G92)-1","v":{"$error":"#DIV/0!"}},{"$f":"(Monthly!H104/Monthly!H92)-1","v":{"$error":"#DIV/0!"}},null,null,null,null,null,null,null,null,null,null,null,null,null,null,null,"--",{"$f":"(Monthly!Y104/Monthly!Y92)-1","v":0.16346607009694258},null,null,null,null,null,null,null,null,null,null,null,null,null,{"$f":"(Monthly!AM104/Monthly!AM92)-1","v":8.8184887974325665E-2},"--","--","--",{"$f":"Monthly!AQ104-Monthly!AQ92","v":-1.3999999999999986},"--","--",{"$f":"Monthly!AT104-Monthly!AT92","v":0},"--","--",{"$f":"Monthly!AW104-Monthly!AW92","v":11.700000000000003},{"$f":"Monthly!AX104-Monthly!AX92","v":-10.399999999999999},{"$f":"Monthly!AY104-Monthly!AY92","v":1.7000000000000028},{"$f":"Monthly!AZ104-Monthly!AZ92","v":-3.5},{"$f":"Monthly!BA104-Monthly!BA92","v":9.6000000000000014},"--","--",null,null,null,null,null,null,null,null,null,"--","--",null,null,null,null,null,{"$f":"(Monthly!BT104/Monthly!BT92)-1","v":7.2284297356793425E-2},null,null,null,{"$f":"(Monthly!BX104/Monthly!BX92)-1","v":-0.41942148760330578},{"$f":"(Monthly!BY104/Monthly!BY92)-1","v":-0.42220484753713838},"--","--",{"$f":"Monthly!CB104-Monthly!CB92","v":1.5883843614079467},{"$f":"Monthly!CC104-Monthly!CC92","v":1.2383843614079471},"--","--",null,"--","--",null,{"$f":"(Monthly!CJ104/Monthly!CJ92)-1","v":-0.30270270270270272},{"$f":"(Monthly!CK104/Monthly!CK92)-1","v":8.7692307692307514E-2},{"$f":"(Monthly!CL104/Monthly!CL92)-1","v":0.14938488576449926},{"$f":"(Monthly!CM104/Monthly!CM92)-1","v":-0.37421383647798745},{"$f":"(Monthly!CN104/Monthly!CN92)-1","v":4.0634537582511232E-2},{"$f":"(Monthly!CO104/Monthly!CO92)-1","v":-3.9635354736433648E-4},{"$f":"(Monthly!CP104/Monthly!CP92)-1","v":6.4855571201788864E-2},{"$f":"(Monthly!CQ104/Monthly!CQ92)-1","v":1.1333507694990086E-2},"--",null,null,null,null,null,null,null,{"$f":"(Monthly!CZ104/Monthly!CZ92)-1","v":3.7914691943128132E-2},{"$f":"(Monthly!DA104/Monthly!DA92)-1","v":3.6585365853658569E-2},null,null,null,null,null,null,"--",{"$f":"((Monthly!DI104-Monthly!DI92)*100)","v":39.999999999999858},"--",{"$f":"((Monthly!DK104-Monthly!DK92)*100)","v":-50},{"$f":"Monthly!DL104-Monthly!DL92","v":1092},null,null,null,{"$f":"Monthly!DP104-Monthly!DP92","v":3136},null,null,null,"--","--","--","--","--","--","--","--","--","--",null,null,null,null,null,null,null,null,null,null,null,null,null,{"$f":"(Monthly!EQ104/Monthly!EQ92)-1","v":2.7692307692307683E-2},"--",{"$f":"(Monthly!ES104/Monthly!ES92)-1","v":3.2448377581121068E-2},null,null,null,null,null,{"$f":"((Monthly!EY104-Monthly!EY92)*100)","v":150},{"$f":"((Monthly!EZ104-Monthly!EZ92)*100)","v":145.00000000000003},{"$f":"((Monthly!FA104-Monthly!FA92)*100)","v":85.000000000000057},{"$f":"((Monthly!FB104-Monthly!FB92)*100)","v":117},"--","--",{"$f":"((Monthly!FE104-Monthly!FE92)*100)","v":131.99999999999994},{"$f":"((Monthly!FF104-Monthly!FF92)*100)","v":128.00000000000003},"--",{"$f":"((Monthly!FH104-Monthly!FH92)*100)","v":92.999999999999972},{"$f":"((Monthly!FI104-Monthly!FI92)*100)","v":66.000000000000014},null,null,null,null,null,null,"--","--","--","--","--","--","--","--","--",null,null,null,null,null,{"$f":"(Monthly!GD104/Monthly!GD92)-1","v":1.7123287671233056E-2},"--","--","--","--","--","--","--","--"]
["1966-11-01",null,null,null,{"$f":"(Monthly!E105/Monthly!E93)-1","v":{"$error":"#DIV/0!"}},{"$f":"(Monthly!F105/Monthly!F93)-1","v":{"$error":"#DIV/0!"}},{"$f":"(Monthly!G105/Monthly!G93)-1","v":{"$error":"#DIV/0!"}},{"$f":"(Monthly!H105/Monthly!H93)-1","v":{"$error":"#DIV/0!"}},null,null,null,null,null,null,null,null,null,null,null,null,null,null,null,"--",{"$f":"(Monthly!Y105/Monthly!Y93)-1","v":0.15672285031142064},null,null,null,null,null,null,null,null,null,null,null,null,null,{"$f":"(Monthly!AM105/Monthly!AM93)-1","v":7.6221282983799599E-2},"--","--","--",{"$f":"Monthly!AQ105-Monthly!AQ93","v":-5.6999999999999957},"--","--",{"$f":"Monthly!AT105-Monthly!AT93","v":0.89999999999999858},"--","--",{"$f":"Monthly!AW105-Monthly!AW93","v":6.8999999999999986},{"$f":"Monthly!AX105-Monthly!AX93","v":-15.100000000000001},{"$f":"Monthly!AY105-Monthly!AY93","v":1.3000000000000114},{"$f":"Monthly!AZ105-Monthly!AZ93","v":-6.6999999999999957},{"$f":"Monthly!BA105-Monthly!BA93","v":-2.4999999999999929},"--","--",null,null,null,null,null,null,null,null,null,"--","--",null,null,null,null,null,{"$f":"(Monthly!BT105/Monthly!BT93)-1","v":6.4487180918151976E-2},null,null,null,{"$f":"(Monthly!BX105/Monthly!BX93)-1","v":-0.34178082191780823},{"$f":"(Monthly!BY105/Monthly!BY93)-1","v":-0.43644716692189889},"--","--",{"$f":"Monthly!CB105-Monthly!CB93","v":1.3288404433265404},{"$f":"Monthly!CC105-Monthly!CC93","v":0.97884044332654341},"--","--",null,"--","--",null,{"$f":"(Monthly!CJ105/Monthly!CJ93)-1","v":-0.37987012987012991},{"$f":"(Monthly!CK105/Monthly!CK93)-1","v":8.5690093141405521E-2},{"$f":"(Monthly!CL105/Monthly!CL93)-1","v":9.6721311475409966E-2},{"$f":"(Monthly!CM105/Monthly!CM93)-1","v":-0.31552419354838712},{"$f":"(Monthly!CN105/Monthly!CN93)-1","v":3.7483266398929072E-2},{"$f":"(Monthly!CO105/Monthly!CO93)-1","v":-8.6342229199373177E-3},{"$f":"(Monthly!CP105/Monthly!CP93)-1","v":6.3226047190250378E-2},{"$f":"(Monthly!CQ105/Monthly!CQ93)-1","v":1.1286149747688157E-2},"--",null,null,null,null,null,null,null,{"$f":"(Monthly!CZ105/Monthly!CZ93)-1","v":3.5590551181102548E-2},{"$f":"(Monthly!DA105/Monthly!DA93)-1","v":3.3434650455927084E-2},null,null,null,null,null,null,"--",{"$f":"((Monthly!DI105-Monthly!DI93)*100)","v":80.000000000000426},"--",{"$f":"((Monthly!DK105-Monthly!DK93)*100)","v":-49.999999999999957},{"$f":"Monthly!DL105-Monthly!DL93","v":1019},null,null,null,{"$f":"Monthly!DP105-Monthly!DP93","v":3022},null,null,null,"--","--","--","--","--","--","--","--","--","--",null,null,null,null,null,null,null,null,null,null,null,null,null,{"$f":"(Monthly!EQ105/Monthly!EQ93)-1","v":2.1472392638036686E-2},"--",{"$f":"(Monthly!ES105/Monthly!ES93)-1","v":3.529411764705892E-2},null,null,null,null,null,{"$f":"((Monthly!EY105-Monthly!EY93)*100)","v":150},{"$f":"((Monthly!EZ105-Monthly!EZ93)*100)","v":166},{"$f":"((Monthly!FA105-Monthly!FA93)*100)","v":75},{"$f":"((Monthly!FB105-Monthly!FB93)*100)","v":117.99999999999997},"--","--",{"$f":"((Monthly!FE105-Monthly!FE93)*100)","v":123.00000000000004},{"$f":"((Monthly!FF105-Monthly!FF93)*100)","v":117},"--",{"$f":"((Monthly!FH105-Monthly!FH93)*100)","v":90.000000000000028},{"$f":"((Monthly!FI105-Monthly!FI93)*100)","v":71},null,null,null,null,null,null,"--","--","--","--","--","--","--","--","--",null,null,null,null,null,{"$f":"(Monthly!GD105/Monthly!GD93)-1","v":1.7123287671233056E-2},"--","--","--","--","--","--","--","--"]
["1966-12-01",null,null,null,{"$f":"(Monthly!E106/Monthly!E94)-1","v":{"$error":"#DIV/0!"}},{"$f":"(Monthly!F106/Monthly!F94)-1","v":{"$error":"#DIV/0!"}},{"$f":"(Monthly!G106/Monthly!G94)-1","v":{"$error":"#DIV/0!"}},{"$f":"(Monthly!H106/Monthly!H94)-1","v":{"$error":"#DIV/0!"}},null,null,null,null,null,null,null,null,null,null,null,null,null,null,null,"--",{"$f":"(Monthly!Y106/Monthly!Y94)-1","v":0.14196973005175129},null,null,null,null,null,null,null,null,null,null,null,null,null,{"$f":"(Monthly!AM106/Monthly!AM94)-1","v":6.5468292611170931E-2},"--","--","--",{"$f":"Monthly!AQ106-Monthly!AQ94","v":-10.399999999999999},"--","--",{"$f":"Monthly!AT106-Monthly!AT94","v":-9.5},"--","--",{"$f":"Monthly!AW106-Monthly!AW94","v":6.3000000000000043},{"$f":"Monthly!AX106-Monthly!AX94","v":-14.100000000000001},{"$f":"Monthly!AY106-Monthly!AY94","v":0.59999999999999432},{"$f":"Monthly!AZ106-Monthly!AZ94","v":-10.300000000000004},{"$f":"Monthly!BA106-Monthly!BA94","v":-15.600000000000001},"--","--",null,null,null,null,null,null,null,null,null,"--","--",null,null,null,null,null,{"$f":"(Monthly!BT106/Monthly!BT94)-1","v":6.0854287764063431E-2},null,null,null,{"$f":"(Monthly!BX106/Monthly!BX94)-1","v":-0.40217391304347827},{"$f":"(Monthly!BY106/Monthly!BY94)-1","v":-0.43498098859315593},"--","--",{"$f":"Monthly!CB106-Monthly!CB94","v":1.2394976452119177},{"$f":"Monthly!CC106-Monthly!CC94","v":1.099497645211919},"--","--",null,"--","--",null,{"$f":"(Monthly!CJ106/Monthly!CJ94)-1","v":-0.39408866995073888},{"$f":"(Monthly!CK106/Monthly!CK94)-1","v":7.7710641154750126E-2},{"$f":"(Monthly!CL106/Monthly!CL94)-1","v":4.9679487179487225E-2},{"$f":"(Monthly!CM106/Monthly!CM94)-1","v":-0.39066788655077767},{"$f":"(Monthly!CN106/Monthly!CN94)-1","v":3.217543859649119E-2},{"$f":"(Monthly!CO106/Monthly!CO94)-1","v":-1.4791747761774943E-2},{"$f":"(Monthly!CP106/Monthly!CP94)-1","v":6.0794312316124088E-2},{"$f":"(Monthly!CQ106/Monthly!CQ94)-1","v":1.1260569580083146E-2},"--",null,null,null,null,null,null,null,{"$f":"(Monthly!CZ106/Monthly!CZ94)-1","v":3.3594976452119285E-2},{"$f":"(Monthly!DA106/Monthly!DA94)-1","v":3.3333333333333437E-2},null,null,null,null,null,null,"--",{"$f":"((Monthly!DI106-Monthly!DI94)*100)","v":50},"--",{"$f":"((Monthly!DK106-Monthly!DK94)*100)","v":-20.000000000000018},{"$f":"Monthly!DL106-Monthly!DL94","v":947},null,null,null,{"$f":"Monthly!DP106-Monthly!DP94","v":2879},null,null,null,"--","--","--","--","--","--","--","--","--","--",null,null,null,null,null,null,null,null,null,null,null,null,null,{"$f":"(Monthly!EQ106/Monthly!EQ94)-1","v":1.5243902439024293E-2},"--",{"$f":"(Monthly!ES106/Monthly!ES94)-1","v":3.8235294117646923E-2},null,null,null,null,null,{"$f":"((Monthly!EY106-Monthly!EY94)*100)","v":108},{"$f":"((Monthly!EZ106-Monthly!EZ94)*100)","v":108},{"$f":"((Monthly!FA106-Monthly!FA94)*100)","v":71},{"$f":"((Monthly!FB106-Monthly!FB94)*100)","v":116.00000000000001},"--","--",{"$f":"((Monthly!FE106-Monthly!FE94)*100)","v":58.000000000000007},{"$f":"((Monthly!FF106-Monthly!FF94)*100)","v":48.000000000000043},"--",{"$f":"((Monthly!FH106-Monthly!FH94)*100)","v":28.000000000000025},{"$f":"((Monthly!FI106-Monthly!FI94)*100)","v":21.999999999999975},null,null,null,null,null,null,"--","--","--","--","--","--","--","--","--",null,null,null,null,null,{"$f":"(Monthly!GD106/Monthly!GD94)-1","v":1.7123287671233056E-2},"--","--","--","--","--","--","--","--"]
["1967-01-01",null,null,null,{"$f":"(Monthly!E107/Monthly!E95)-1","v":{"$error":"#DIV/0!"}},{"$f":"(Monthly!F107/Monthly!F95)-1","v":{"$error":"#DIV/0!"}},{"$f":"(Monthly!G107/Monthly!G95)-1","v":{"$error":"#DIV/0!"}},{"$f":"(Monthly!H107/Monthly!H95)-1","v":{"$error":"#DIV/0!"}},null,null,null,null,null,null,null,null,null,null,null,null,null,null,null,"--",{"$f":"(Monthly!Y107/Monthly!Y95)-1","v":0.1327591947198683},null,null,null,null,null,null,null,null,null,null,null,null,null,{"$f":"(Monthly!AM107/Monthly!AM95)-1","v":6.008279848387299E-2},"--","--","--",{"$f":"Monthly!AQ107-Monthly!AQ95","v":-16.699999999999996},"--","--",{"$f":"Monthly!AT107-Monthly!AT95","v":-14.300000000000004},"--","--",{"$f":"Monthly!AW107-Monthly!AW95","v":-1.5},{"$f":"Monthly!AX107-Monthly!AX95","v":-20.299999999999997},{"$f":"Monthly!AY107-Monthly!AY95","v":-3},{"$f":"Monthly!AZ107-Monthly!AZ95","v":-14.300000000000004},{"$f":"Monthly!BA107-Monthly!BA95","v":-26.700000000000003},"--","--",null,null,null,null,null,null,null,null,null,"--","--",null,null,null,null,null,{"$f":"(Monthly!BT107/Monthly!BT95)-1","v":5.4731689709967002E-2},null,null,null,{"$f":"(Monthly!BX107/Monthly!BX95)-1","v":-0.2211678832116788},{"$f":"(Monthly!BY107/Monthly!BY95)-1","v":-0.24905660377358485},"--","--",{"$f":"Monthly!CB107-Monthly!CB95","v":1.1813395501673591},{"$f":"Monthly!CC107-Monthly!CC95","v":1.1113395501673597},"--","--",null,"--","--",null,{"$f":"(Monthly!CJ107/Monthly!CJ95)-1","v":-0.30550918196994992},{"$f":"(Monthly!CK107/Monthly!CK95)-1","v":8.3570115326759176E-2},{"$f":"(Monthly!CL107/Monthly!CL95)-1","v":0.14593698175787728},{"$f":"(Monthly!CM107/Monthly!CM95)-1","v":-9.4339622641509413E-2},{"$f":"(Monthly!CN107/Monthly!CN95)-1","v":4.1589292596615479E-2},{"$f":"(Monthly!CO107/Monthly!CO95)-1","v":-1.9021739130434923E-2},{"$f":"(Monthly!CP107/Monthly!CP95)-1","v":5.3260462925651453E-2},{"$f":"(Monthly!CQ107/Monthly!CQ95)-1","v":1.1235610287461784E-2},"--",null,null,null,null,null,null,null,{"$f":"(Monthly!CZ107/Monthly!CZ95)-1","v":3.1994981179422899E-2},{"$f":"(Monthly!DA107/Monthly!DA95)-1","v":3.6363636363636376E-2},null,null,null,null,null,null,"--",{"$f":"((Monthly!DI107-Monthly!DI95)*100)","v":50},"--",{"$f":"((Monthly!DK107-Monthly!DK95)*100)","v":-10.000000000000009},{"$f":"Monthly!DL107-Monthly!DL95","v":890},null,null,null,{"$f":"Monthly!DP107-Monthly!DP95","v":2879},null,null,null,"--","--","--","--","--","--","--","--","--","--",null,null,null,null,null,null,null,null,null,null,null,null,null,{"$f":"(Monthly!EQ107/Monthly!EQ95)-1","v":1.5197568389057725E-2},"--",{"$f":"(Monthly!ES107/Monthly!ES95)-1","v":4.1176470588235148E-2},null,null,null,null,null,{"$f":"((Monthly!EY107-Monthly!EY95)*100)","v":96},{"$f":"((Monthly!EZ107-Monthly!EZ95)*100)","v":52.000000000000043},{"$f":"((Monthly!FA107-Monthly!FA95)*100)","v":46},{"$f":"((Monthly!FB107-Monthly!FB95)*100)","v":91.000000000000014},"--","--",{"$f":"((Monthly!FE107-Monthly!FE95)*100)","v":12.999999999999989},{"$f":"((Monthly!FF107-Monthly!FF95)*100)","v":-12.999999999999989},"--",{"$f":"((Monthly!FH107-Monthly!FH95)*100)","v":-16.000000000000014},{"$f":"((Monthly!FI107-Monthly!FI95)*100)","v":-3.0000000000000249},null,null,null,null,null,null,"--","--","--","--","--","--","--","--","--",null,null,null,null,null,{"$f":"(Monthly!GD107/Monthly!GD95)-1","v":1.7123287671233056E-2},"--","--","--","--","--","--","--","--"]
["1967-02-01",null,null,null,{"$f":"(Monthly!E108/Monthly!E96)-1","v":{"$error":"#DIV/0!"}},{"$f":"(Monthly!F108/Monthly!F96)-1","v":{"$error":"#DIV/0!"}},{"$f":"(Monthly!G108/Monthly!G96)-1","v":{"$error":"#DIV/0!"}},{"$f":"(Monthly!H108/Monthly!H96)-1","v":{"$error":"#DIV/0!"}},null,null,null,null,null,null,null,null,null,null,null,null,null,null,null,"--",{"$f":"(Monthly!Y108/Monthly!Y96)-1","v":0.12556060155907356},null,null,null,null,null,null,null,null,null,null,null,null,null,{"$f":"(Monthly!AM108/Monthly!AM96)-1","v":4.1306166399879496E-2},"--","--","--",{"$f":"Monthly!AQ108-Monthly!AQ96","v":-17.899999999999999},"--","--",{"$f":"Monthly!AT108-Monthly!AT96","v":-13.600000000000001},"--","--",{"$f":"Monthly!AW108-Monthly!AW96","v":-3.4000000000000057},{"$f":"Monthly!AX108-Monthly!AX96","v":-20.999999999999993},{"$f":"Monthly!AY108-Monthly!AY96","v":-19.100000000000009},{"$f":"Monthly!AZ108-Monthly!AZ96","v":-15.699999999999996},{"$f":"Monthly!BA108-Monthly!BA96","v":-30.199999999999996},"--","--",null,null,null,null,null,null,null,null,null,"--","--",null,null,null,null,null,{"$f":"(Monthly!BT108/Monthly!BT96)-1","v":4.8809159638159461E-2},null,null,null,{"$f":"(Monthly!BX108/Monthly!BX96)-1","v":-0.18505079825834547},{"$f":"(Monthly!BY108/Monthly!BY96)-1","v":-0.21742881794650559},"--","--",{"$f":"Monthly!CB108-Monthly!CB96","v":0.31028566690691761},{"$f":"Monthly!CC108-Monthly!CC96","v":0.31028566690691761},"--","--",null,"--","--",null,{"$f":"(Monthly!CJ108/Monthly!CJ96)-1","v":-0.24584103512014788},{"$f":"(Monthly!CK108/Monthly!CK96)-1","v":7.6731852833941128E-2},{"$f":"(Monthly!CL108/Monthly!CL96)-1","v":0.21247892074198993},{"$f":"(Monthly!CM108/Monthly!CM96)-1","v":-0.20439560439560445},{"$f":"(Monthly!CN108/Monthly!CN96)-1","v":3.9736024302524431E-2},{"$f":"(Monthly!CO108/Monthly!CO96)-1","v":-2.0905923344947785E-2},{"$f":"(Monthly!CP108/Monthly!CP96)-1","v":4.7097743007250559E-2},{"$f":"(Monthly!CQ108/Monthly!CQ96)-1","v":1.1262826540206827E-2},"--",null,null,null,null,null,null,null,{"$f":"(Monthly!CZ108/Monthly!CZ96)-1","v":2.8678304239401653E-2},{"$f":"(Monthly!DA108/Monthly!DA96)-1","v":3.3232628398791597E-2},null,null,null,null,null,null,"--",{"$f":"((Monthly!DI108-Monthly!DI96)*100)","v":50},"--",{"$f":"((Monthly!DK108-Monthly!DK96)*100)","v":0},{"$f":"Monthly!DL108-Monthly!DL96","v":690},null,null,null,{"$f":"Monthly!DP108-Monthly!DP96","v":2632},null,null,null,"--","--","--","--","--","--","--","--","--","--",null,null,null,null,null,null,null,null,null,null,null,null,null,{"$f":"(Monthly!EQ108/Monthly!EQ96)-1","v":6.0240963855420215E-3},"--",{"$f":"(Monthly!ES108/Monthly!ES96)-1","v":3.8011695906432719E-2},null,null,null,null,null,{"$f":"((Monthly!EY108-Monthly!EY96)*100)","v":75},{"$f":"((Monthly!EZ108-Monthly!EZ96)*100)","v":40.000000000000036},{"$f":"((Monthly!FA108-Monthly!FA96)*100)","v":25},{"$f":"((Monthly!FB108-Monthly!FB96)*100)","v":70.000000000000014},"--","--",{"$f":"((Monthly!FE108-Monthly!FE96)*100)","v":-9.0000000000000746},{"$f":"((Monthly!FF108-Monthly!FF96)*100)","v":-23.000000000000043},"--",{"$f":"((Monthly!FH108-Monthly!FH96)*100)","v":-24.000000000000021},{"$f":"((Monthly!FI108-Monthly!FI96)*100)","v":-20.000000000000018},null,null,null,null,null,null,"--","--","--","--","--","--","--","--","--",null,null,null,null,null,{"$f":"(Monthly!GD108/Monthly!GD96)-1","v":2.7397260273972712E-2},"--","--","--","--","--","--","--","--"]
["1967-03-01",null,null,null,{"$f":"(Monthly!E109/Monthly!E97)-1","v":{"$error":"#DIV/0!"}},{"$f":"(Monthly!F109/Monthly!F97)-1","v":{"$error":"#DIV/0!"}},{"$f":"(Monthly!G109/Monthly!G97)-1","v":{"$error":"#DIV/0!"}},{"$f":"(Monthly!H109/Monthly!H97)-1","v":{"$error":"#DIV/0!"}},null,null,null,null,null,null,null,null,null,null,null,null,null,null,null,"--",{"$f":"(Monthly!Y109/Monthly!Y97)-1","v":0.12027376574712312},null,null,null,null,null,null,null,null,null,null,null,null,null,{"$f":"(Monthly!AM109/Monthly!AM97)-1","v":2.1459350022987156E-2},"--","--","--",{"$f":"Monthly!AQ109-Monthly!AQ97","v":-20.400000000000006},"--","--",{"$f":"Monthly!AT109-Monthly!AT97","v":-15.200000000000003},"--","--",{"$f":"Monthly!AW109-Monthly!AW97","v":-6.6999999999999957},{"$f":"Monthly!AX109-Monthly!AX97","v":-19},{"$f":"Monthly!AY109-Monthly!AY97","v":-31.700000000000003},{"$f":"Monthly!AZ109-Monthly!AZ97","v":-15.099999999999994},{"$f":"Monthly!BA109-Monthly!BA97","v":-48.400000000000006},"--","--",null,null,null,null,null,null,null,null,null,"--","--",null,null,null,null,null,{"$f":"(Monthly!BT109/Monthly!BT97)-1","v":4.2628528389439868E-2},null,null,null,{"$f":"(Monthly!BX109/Monthly!BX97)-1","v":-0.24246771879483497},{"$f":"(Monthly!BY109/Monthly!BY97)-1","v":-0.22609400324149109},"--","--",{"$f":"Monthly!CB109-Monthly!CB97","v":-0.23049840018787293},{"$f":"Monthly!CC109-Monthly!CC97","v":-0.23049840018787293},"--","--",null,"--","--",null,{"$f":"(Monthly!CJ109/Monthly!CJ97)-1","v":-0.21184919210053865},{"$f":"(Monthly!CK109/Monthly!CK97)-1","v":7.6188909001151828E-2},{"$f":"(Monthly!CL109/Monthly!CL97)-1","v":0.28397212543554007},{"$f":"(Monthly!CM109/Monthly!CM97)-1","v":-0.20315789473684209},{"$f":"(Monthly!CN109/Monthly!CN97)-1","v":4.4348522296097759E-2},{"$f":"(Monthly!CO109/Monthly!CO97)-1","v":-1.6272762495156967E-2},{"$f":"(Monthly!CP109/Monthly!CP97)-1","v":4.3534349656259685E-2},{"$f":"(Monthly!CQ109/Monthly!CQ97)-1","v":1.1264815070137102E-2},"--",null,null,null,null,null,null,null,{"$f":"(Monthly!CZ109/Monthly!CZ97)-1","v":2.5481665630826544E-2},{"$f":"(Monthly!DA109/Monthly!DA97)-1","v":3.6253776435045237E-2},null,null,null,null,null,null,"--",{"$f":"((Monthly!DI109-Monthly!DI97)*100)","v":30.000000000000426},"--",{"$f":"((Monthly!DK109-Monthly!DK97)*100)","v":0},{"$f":"Monthly!DL109-Monthly!DL97","v":540},null,null,null,{"$f":"Monthly!DP109-Monthly!DP97","v":2338},null,null,null,"--","--","--","--","--","--","--","--","--","--",null,null,null,null,null,null,null,null,null,null,null,null,null,{"$f":"(Monthly!EQ109/Monthly!EQ97)-1","v":3.0120481927708997E-3},"--",{"$f":"(Monthly!ES109/Monthly!ES97)-1","v":3.8011695906432719E-2},null,null,null,null,null,{"$f":"((Monthly!EY109-Monthly!EY97)*100)","v":36.000000000000028},{"$f":"((Monthly!EZ109-Monthly!EZ97)*100)","v":-12.000000000000011},{"$f":"((Monthly!FA109-Monthly!FA97)*100)","v":20.999999999999996},{"$f":"((Monthly!FB109-Monthly!FB97)*100)","v":52.999999999999936},"--","--",{"$f":"((Monthly!FE109-Monthly!FE97)*100)","v":-33.000000000000007},{"$f":"((Monthly!FF109-Monthly!FF97)*100)","v":-62.000000000000014},"--",{"$f":"((Monthly!FH109-Monthly!FH97)*100)","v":-37.999999999999986},{"$f":"((Monthly!FI109-Monthly!FI97)*100)","v":-33.000000000000007},null,null,null,null,null,null,"--","--","--","--","--","--","--","--","--",null,null,null,null,null,{"$f":"(Monthly!GD109/Monthly!GD97)-1","v":2.7397260273972712E-2},"--","--","--","--","--","--","--","--"]
["1967-04-01",null,null,null,{"$f":"(Monthly!E110/Monthly!E98)-1","v":{"$error":"#DIV/0!"}},{"$f":"(Monthly!F110/Monthly!F98)-1","v":{"$error":"#DIV/0!"}},{"$f":"(Monthly!G110/Monthly!G98)-1","v":{"$error":"#DIV/0!"}},{"$f":"(Monthly!H110/Monthly!H98)-1","v":{"$error":"#DIV/0!"}},null,null,null,null,null,null,null,null,null,null,null,null,null,null,null,"--",{"$f":"(Monthly!Y110/Monthly!Y98)-1","v":0.12176121415780528},null,null,null,null,null,null,null,null,null,null,null,null,null,{"$f":"(Monthly!AM110/Monthly!AM98)-1","v":2.9453691190977072E-2},"--","--","--",{"$f":"Monthly!AQ110-Monthly!AQ98","v":-21.400000000000006},"--","--",{"$f":"Monthly!AT110-Monthly!AT98","v":-18.100000000000001},"--","--",{"$f":"Monthly!AW110-Monthly!AW98","v":-13.600000000000001},{"$f":"Monthly!AX110-Monthly!AX98","v":-17.899999999999999},{"$f":"Monthly!AY110-Monthly!AY98","v":-27.600000000000009},{"$f":"Monthly!AZ110-Monthly!AZ98","v":-18.800000000000004},{"$f":"Monthly!BA110-Monthly!BA98","v":-42.4},"--","--",null,null,null,null,null,null,null,null,null,"--","--",null,null,null,null,null,{"$f":"(Monthly!BT110/Monthly!BT98)-1","v":3.984145101554315E-2},null,null,null,{"$f":"(Monthly!BX110/Monthly!BX98)-1","v":-0.19304733727810652},{"$f":"(Monthly!BY110/Monthly!BY98)-1","v":-9.606986899563319E-2},"--","--",{"$f":"Monthly!CB110-Monthly!CB98","v":-0.32779621902994105},{"$f":"Monthly!CC110-Monthly!CC98","v":-0.32779621902994194},"--","--",null,"--","--",null,{"$f":"(Monthly!CJ110/Monthly!CJ98)-1","v":-0.12110091743119267},{"$f":"(Monthly!CK110/Monthly!CK98)-1","v":7.347876004592413E-2},{"$f":"(Monthly!CL110/Monthly!CL98)-1","v":0.23423423423423428},{"$f":"(Monthly!CM110/Monthly!CM98)-1","v":-0.14106939704209331},{"$f":"(Monthly!CN110/Monthly!CN98)-1","v":4.7171787709497259E-2},{"$f":"(Monthly!CO110/Monthly!CO98)-1","v":-3.5156250000000222E-3},{"$f":"(Monthly!CP110/Monthly!CP98)-1","v":4.1301511764068932E-2},{"$f":"(Monthly!CQ110/Monthly!CQ98)-1","v":1.1260261531946592E-2},"--",null,null,null,null,null,null,null,{"$f":"(Monthly!CZ110/Monthly!CZ98)-1","v":2.5402726146220633E-2},{"$f":"(Monthly!DA110/Monthly!DA98)-1","v":3.3033033033033066E-2},null,null,null,null,null,null,"--",{"$f":"((Monthly!DI110-Monthly!DI98)*100)","v":39.999999999999858},"--",{"$f":"((Monthly!DK110-Monthly!DK98)*100)","v":0},{"$f":"Monthly!DL110-Monthly!DL98","v":361},null,null,null,{"$f":"Monthly!DP110-Monthly!DP98","v":2031},null,null,null,"--","--","--","--","--","--","--","--","--","--",null,null,null,null,null,null,null,null,null,null,null,null,null,{"$f":"(Monthly!EQ110/Monthly!EQ98)-1","v":-3.0120481927711218E-3},"--",{"$f":"(Monthly!ES110/Monthly!ES98)-1","v":3.7900874635568682E-2},null,null,null,null,null,{"$f":"((Monthly!EY110-Monthly!EY98)*100)","v":0},{"$f":"((Monthly!EZ110-Monthly!EZ98)*100)","v":-62.000000000000014},{"$f":"((Monthly!FA110-Monthly!FA98)*100)","v":15.000000000000036},{"$f":"((Monthly!FB110-Monthly!FB98)*100)","v":41.999999999999993},"--","--",{"$f":"((Monthly!FE110-Monthly!FE98)*100)","v":-78.000000000000028},{"$f":"((Monthly!FF110-Monthly!FF98)*100)","v":-79},"--",{"$f":"((Monthly!FH110-Monthly!FH98)*100)","v":-32.000000000000028},{"$f":"((Monthly!FI110-Monthly!FI98)*100)","v":-16.000000000000014},null,null,null,null,null,null,"--","--","--","--","--","--","--","--","--",null,null,null,null,null,{"$f":"(Monthly!GD110/Monthly!GD98)-1","v":2.7397260273972712E-2},"--","--","--","--","--","--","--","--"]
["1967-05-01",null,null,null,{"$f":"(Monthly!E111/Monthly!E99)-1","v":{"$error":"#DIV/0!"}},{"$f":"(Monthly!F111/Monthly!F99)-1","v":{"$error":"#DIV/0!"}},{"$f":"(Monthly!G111/Monthly!G99)-1","v":{"$error":"#DIV/0!"}},{"$f":"(Monthly!H111/Monthly!H99)-1","v":{"$error":"#DIV/0!"}},null,null,null,null,null,null,null,null,null,null,null,null,null,null,null,"--",{"$f":"(Monthly!Y111/Monthly!Y99)-1","v":0.11284882983554567},null,null,null,null,null,null,null,null,null,null,null,null,null,{"$f":"(Monthly!AM111/Monthly!AM99)-1","v":1.08531116207089E-2},"--","--","--",{"$f":"Monthly!AQ111-Monthly!AQ99","v":-13.200000000000003},"--","--",{"$f":"Monthly!AT111-Monthly!AT99","v":-11.5},"--","--",{"$f":"Monthly!AW111-Monthly!AW99","v":-14.099999999999994},{"$f":"Monthly!AX111-Monthly!AX99","v":-5.1000000000000014},{"$f":"Monthly!AY111-Monthly!AY99","v":-27.199999999999996},{"$f":"Monthly!AZ111-Monthly!AZ99","v":-7.5},{"$f":"Monthly!BA111-Monthly!BA99","v":-40.199999999999996},"--","--",null,null,null,null,null,null,null,null,null,"--","--",null,null,null,null,null,{"$f":"(Monthly!BT111/Monthly!BT99)-1","v":4.0446578477398409E-2},null,null,null,{"$f":"(Monthly!BX111/Monthly!BX99)-1","v":3.0830039525691744E-2},{"$f":"(Monthly!BY111/Monthly!BY99)-1","v":-1.8552875695733162E-3},"--","--",{"$f":"Monthly!CB111-Monthly!CB99","v":-0.54526688518409294},{"$f":"Monthly!CC111-Monthly!CC99","v":-0.61526688518409323},"--","--",null,"--","--",null,{"$f":"(Monthly!CJ111/Monthly!CJ99)-1","v":8.0160320641282645E-3},{"$f":"(Monthly!CK111/Monthly!CK99)-1","v":7.2664924885695648E-2},{"$f":"(Monthly!CL111/Monthly!CL99)-1","v":0.14802631578947367},{"$f":"(Monthly!CM111/Monthly!CM99)-1","v":3.649635036496357E-2},{"$f":"(Monthly!CN111/Monthly!CN99)-1","v":4.7657230511783499E-2},{"$f":"(Monthly!CO111/Monthly!CO99)-1","v":6.2720501764013115E-3},{"$f":"(Monthly!CP111/Monthly!CP99)-1","v":3.8729011715374906E-2},{"$f":"(Monthly!CQ111/Monthly!CQ99)-1","v":1.1137844202713909E-2},"--",null,null,null,null,null,null,null,{"$f":"(Monthly!CZ111/Monthly!CZ99)-1","v":2.3183925811437467E-2},{"$f":"(Monthly!DA111/Monthly!DA99)-1","v":3.2934131736527039E-2},null,null,null,null,null,null,"--",{"$f":"((Monthly!DI111-Monthly!DI99)*100)","v":29.999999999999716},"--",{"$f":"((Monthly!DK111-Monthly!DK99)*100)","v":-10.000000000000009},{"$f":"Monthly!DL111-Monthly!DL99","v":207},null,null,null,{"$f":"Monthly!DP111-Monthly!DP99","v":1908},null,null,null,"--","--","--","--","--","--","--","--","--","--",null,null,null,null,null,null,null,null,null,null,null,null,null,{"$f":"(Monthly!EQ111/Monthly!EQ99)-1","v":3.0120481927708997E-3},"--",{"$f":"(Monthly!ES111/Monthly!ES99)-1","v":3.4782608695652195E-2},null,null,null,null,null,{"$f":"((Monthly!EY111-Monthly!EY99)*100)","v":0},{"$f":"((Monthly!EZ111-Monthly!EZ99)*100)","v":-96.000000000000043},{"$f":"((Monthly!FA111-Monthly!FA99)*100)","v":25.999999999999979},{"$f":"((Monthly!FB111-Monthly!FB99)*100)","v":47.999999999999957},"--","--",{"$f":"((Monthly!FE111-Monthly!FE99)*100)","v":-103.99999999999996},{"$f":"((Monthly!FF111-Monthly!FF99)*100)","v":-77.999999999999943},"--",{"$f":"((Monthly!FH111-Monthly!FH99)*100)","v":-13.999999999999968},{"$f":"((Monthly!FI111-Monthly!FI99)*100)","v":6.9999999999999396},null,null,null,null,null,null,"--","--","--","--","--","--","--","--","--",null,null,null,null,null,{"$f":"(Monthly!GD111/Monthly!GD99)-1","v":2.7397260273972712E-2},"--","--","--","--","--","--","--","--"]
["1967-06-01",null,null,null,{"$f":"(Monthly!E112/Monthly!E100)-1","v":{"$error":"#DIV/0!"}},{"$f":"(Monthly!F112/Monthly!F100)-1","v":{"$error":"#DIV/0!"}},{"$f":"(Monthly!G112/Monthly!G100)-1","v":{"$error":"#DIV/0!"}},{"$f":"(Monthly!H112/Monthly!H100)-1","v":{"$error":"#DIV/0!"}},null,null,null,null,null,null,null,null,null,null,null,null,null,null,null,"--",{"$f":"(Monthly!Y112/Monthly!Y100)-1","v":9.6840642031836177E-2},null,null,null,null,null,null,null,null,null,null,null,null,null,{"$f":"(Monthly!AM112/Monthly!AM100)-1","v":5.9871823701371785E-3},"--","--","--",{"$f":"Monthly!AQ112-Monthly!AQ100","v":-12.200000000000003},"--","--",{"$f":"Monthly!AT112-Monthly!AT100","v":-13},"--","--",{"$f":"Monthly!AW112-Monthly!AW100","v":-13.699999999999996},{"$f":"Monthly!AX112-Monthly!AX100","v":-4.1000000000000014},{"$f":"Monthly!AY112-Monthly!AY100","v":-23.1},{"$f":"Monthly!AZ112-Monthly!AZ100","v":-6.8999999999999986},{"$f":"Monthly!BA112-Monthly!BA100","v":-35.099999999999994},"--","--",null,null,null,null,null,null,null,null,null,"--","--",null,null,null,null,null,{"$f":"(Monthly!BT112/Monthly!BT100)-1","v":3.8385714104015367E-2},null,null,null,{"$f":"(Monthly!BX112/Monthly!BX100)-1","v":4.5226130653266416E-2},{"$f":"(Monthly!BY112/Monthly!BY100)-1","v":0.2228033472803348},"--","--",{"$f":"Monthly!CB112-Monthly!CB100","v":0.50532204275427528},{"$f":"Monthly!CC112-Monthly!CC100","v":0.5753220427542729},"--","--",null,"--","--",null,{"$f":"(Monthly!CJ112/Monthly!CJ100)-1","v":0.14976958525345618},{"$f":"(Monthly!CK112/Monthly!CK100)-1","v":7.2285251215559176E-2},{"$f":"(Monthly!CL112/Monthly!CL100)-1","v":0.11612903225806459},{"$f":"(Monthly!CM112/Monthly!CM100)-1","v":9.706257982120059E-2},{"$f":"(Monthly!CN112/Monthly!CN100)-1","v":4.703881135874477E-2},{"$f":"(Monthly!CO112/Monthly!CO100)-1","v":1.4134275618374659E-2},{"$f":"(Monthly!CP112/Monthly!CP100)-1","v":3.9606688933716772E-2},{"$f":"(Monthly!CQ112/Monthly!CQ100)-1","v":1.1024993379911585E-2},"--",null,null,null,null,null,null,null,{"$f":"(Monthly!CZ112/Monthly!CZ100)-1","v":2.8412600370598895E-2},{"$f":"(Monthly!DA112/Monthly!DA100)-1","v":3.2835820895522394E-2},null,null,null,null,null,null,"--",{"$f":"((Monthly!DI112-Monthly!DI100)*100)","v":50},"--",{"$f":"((Monthly!DK112-Monthly!DK100)*100)","v":10.000000000000009},{"$f":"Monthly!DL112-Monthly!DL100","v":79},null,null,null,{"$f":"Monthly!DP112-Monthly!DP100","v":1640},null,null,null,"--","--","--","--","--","--","--","--","--","--",null,null,null,null,null,null,null,null,null,null,null,null,null,{"$f":"(Monthly!EQ112/Monthly!EQ100)-1","v":6.0060060060060927E-3},"--",{"$f":"(Monthly!ES112/Monthly!ES100)-1","v":3.1791907514450823E-2},null,null,null,null,null,{"$f":"((Monthly!EY112-Monthly!EY100)*100)","v":-1.9999999999999574},{"$f":"((Monthly!EZ112-Monthly!EZ100)*100)","v":-119},{"$f":"((Monthly!FA112-Monthly!FA100)*100)","v":37.000000000000014},{"$f":"((Monthly!FB112-Monthly!FB100)*100)","v":57.000000000000028},"--","--",{"$f":"((Monthly!FE112-Monthly!FE100)*100)","v":-96},{"$f":"((Monthly!FF112-Monthly!FF100)*100)","v":-48.999999999999929},"--",{"$f":"((Monthly!FH112-Monthly!FH100)*100)","v":4.0000000000000036},{"$f":"((Monthly!FI112-Monthly!FI100)*100)","v":20.999999999999996},null,null,null,null,null,null,"--","--","--","--","--","--","--","--","--",null,null,null,null,null,{"$f":"(Monthly!GD112/Monthly!GD100)-1","v":2.7397260273972712E-2},"--","--","--","--","--","--","--","--"]
["1967-07-01",null,null,null,{"$f":"(Monthly!E113/Monthly!E101)-1","v":{"$error":"#DIV/0!"}},{"$f":"(Monthly!F113/Monthly!F101)-1","v":{"$error":"#DIV/0!"}},{"$f":"(Monthly!G113/Monthly!G101)-1","v":{"$error":"#DIV/0!"}},{"$f":"(Monthly!H113/Monthly!H101)-1","v":{"$error":"#DIV/0!"}},null,null,null,null,null,null,null,null,null,null,null,null,null,null,null,"--",{"$f":"(Monthly!Y113/Monthly!Y101)-1","v":9.0547858499191225E-2},null,null,null,null,null,null,null,null,null,null,null,null,null,{"$f":"(Monthly!AM113/Monthly!AM101)-1","v":-1.7668091482692105E-3},"--","--","--",{"$f":"Monthly!AQ113-Monthly!AQ101","v":-10.799999999999997},"--","--",{"$f":"Monthly!AT113-Monthly!AT101","v":-8.6999999999999957},"--","--",{"$f":"Monthly!AW113-Monthly!AW101","v":-19.799999999999997},{"$f":"Monthly!AX113-Monthly!AX101","v":-2.5999999999999943},{"$f":"Monthly!AY113-Monthly!AY101","v":-15.800000000000004},{"$f":"Monthly!AZ113-Monthly!AZ101","v":-5.8999999999999986},{"$f":"Monthly!BA113-Monthly!BA101","v":-32.199999999999996},"--","--",null,null,null,null,null,null,null,null,null,"--","--",null,null,null,null,null,{"$f":"(Monthly!BT113/Monthly!BT101)-1","v":4.156671624629471E-2},null,null,null,{"$f":"(Monthly!BX113/Monthly!BX101)-1","v":0.25598526703499069},{"$f":"(Monthly!BY113/Monthly!BY101)-1","v":0.26287553648068673},"--","--",{"$f":"Monthly!CB113-Monthly!CB101","v":0.17267272395486977},{"$f":"Monthly!CC113-Monthly!CC101","v":0.17267272395486799},"--","--",null,"--","--",null,{"$f":"(Monthly!CJ113/Monthly!CJ101)-1","v":0.18390804597701149},{"$f":"(Monthly!CK113/Monthly!CK101)-1","v":7.5225515463917647E-2},{"$f":"(Monthly!CL113/Monthly!CL101)-1","v":0.2366666666666668},{"$f":"(Monthly!CM113/Monthly!CM101)-1","v":0.18403247631935038},{"$f":"(Monthly!CN113/Monthly!CN101)-1","v":4.780352819093725E-2},{"$f":"(Monthly!CO113/Monthly!CO101)-1","v":2.0448289421942434E-2},{"$f":"(Monthly!CP113/Monthly!CP101)-1","v":4.0304253188542249E-2},{"$f":"(Monthly!CQ113/Monthly!CQ101)-1","v":1.0948310948311057E-2},"--",null,null,null,null,null,null,null,{"$f":"(Monthly!CZ113/Monthly!CZ101)-1","v":2.9275808936825687E-2},{"$f":"(Monthly!DA113/Monthly!DA101)-1","v":3.2738095238095344E-2},null,null,null,null,null,null,"--",{"$f":"((Monthly!DI113-Monthly!DI101)*100)","v":50},"--",{"$f":"((Monthly!DK113-Monthly!DK101)*100)","v":0},{"$f":"Monthly!DL113-Monthly!DL101","v":24},null,null,null,{"$f":"Monthly!DP113-Monthly!DP101","v":1586},null,null,null,"--","--","--","--","--","--","--","--","--","--",null,null,null,null,null,null,null,null,null,null,null,null,null,{"$f":"(Monthly!EQ113/Monthly!EQ101)-1","v":0},"--",{"$f":"(Monthly!ES113/Monthly!ES101)-1","v":3.170028818443793E-2},null,null,null,null,null,{"$f":"((Monthly!EY113-Monthly!EY101)*100)","v":-25},{"$f":"((Monthly!EZ113-Monthly!EZ101)*100)","v":-150.99999999999997},{"$f":"((Monthly!FA113-Monthly!FA101)*100)","v":41.999999999999993},{"$f":"((Monthly!FB113-Monthly!FB101)*100)","v":58.000000000000007},"--","--",{"$f":"((Monthly!FE113-Monthly!FE101)*100)","v":-58.999999999999986},{"$f":"((Monthly!FF113-Monthly!FF101)*100)","v":-16.000000000000014},"--",{"$f":"((Monthly!FH113-Monthly!FH101)*100)","v":6.0000000000000497},{"$f":"((Monthly!FI113-Monthly!FI101)*100)","v":14.000000000000057},null,null,null,null,null,null,"--","--","--","--","--","--","--","--","--",null,null,null,null,null,{"$f":"(Monthly!GD113/Monthly!GD101)-1","v":2.7397260273972712E-2},"--","--","--","--","--","--","--","--"]
["1967-08-01",null,null,null,{"$f":"(Monthly!E114/Monthly!E102)-1","v":{"$error":"#DIV/0!"}},{"$f":"(Monthly!F114/Monthly!F102)-1","v":{"$error":"#DIV/0!"}},{"$f":"(Monthly!G114/Monthly!G102)-1","v":{"$error":"#DIV/0!"}},{"$f":"(Monthly!H114/Monthly!H102)-1","v":{"$error":"#DIV/0!"}},null,null,null,null,null,null,null,null,null,null,null,null,null,null,null,"--",{"$f":"(Monthly!Y114/Monthly!Y102)-1","v":8.4661252384929275E-2},null,null,null,null,null,null,null,null,null,null,null,null,null,{"$f":"(Monthly!AM114/Monthly!AM102)-1","v":1.6564893599190889E-2},"--","--","--",{"$f":"Monthly!AQ114-Monthly!AQ102","v":-6.2999999999999972},"--","--",{"$f":"Monthly!AT114-Monthly!AT102","v":-3.5},"--","--",{"$f":"Monthly!AW114-Monthly!AW102","v":-15.299999999999997},{"$f":"Monthly!AX114-Monthly!AX102","v":2.1000000000000014},{"$f":"Monthly!AY114-Monthly!AY102","v":-12},{"$f":"Monthly!AZ114-Monthly!AZ102","v":-1.3000000000000043},{"$f":"Monthly!BA114-Monthly!BA102","v":-29.5},"--","--",null,null,null,null,null,null,null,null,null,"--","--",null,null,null,null,null,{"$f":"(Monthly!BT114/Monthly!BT102)-1","v":4.6517202155552217E-2},null,null,null,{"$f":"(Monthly!BX114/Monthly!BX102)-1","v":0.25737265415549593},{"$f":"(Monthly!BY114/Monthly!BY102)-1","v":0.40136830102622567},"--","--",{"$f":"Monthly!CB114-Monthly!CB102","v":-0.88316025269206122},{"$f":"Monthly!CC114-Monthly!CC102","v":-0.88316025269206122},"--","--",null,"--","--",null,{"$f":"(Monthly!CJ114/Monthly!CJ102)-1","v":0.33687002652519893},{"$f":"(Monthly!CK114/Monthly!CK102)-1","v":7.3778345576493098E-2},{"$f":"(Monthly!CL114/Monthly!CL102)-1","v":0.202572347266881},{"$f":"(Monthly!CM114/Monthly!CM102)-1","v":0.21045576407506705},{"$f":"(Monthly!CN114/Monthly!CN102)-1","v":4.591450402698416E-2},{"$f":"(Monthly!CO114/Monthly!CO102)-1","v":3.0015797788309762E-2},{"$f":"(Monthly!CP114/Monthly!CP102)-1","v":4.0669392673186477E-2},{"$f":"(Monthly!CQ114/Monthly!CQ102)-1","v":1.0921824335999863E-2},"--",null,null,null,null,null,null,null,{"$f":"(Monthly!CZ114/Monthly!CZ102)-1","v":2.6033690658499253E-2},{"$f":"(Monthly!DA114/Monthly!DA102)-1","v":3.5608308605341144E-2},null,null,null,null,null,null,"--",{"$f":"((Monthly!DI114-Monthly!DI102)*100)","v":40.000000000000568},"--",{"$f":"((Monthly!DK114-Monthly!DK102)*100)","v":0},{"$f":"Monthly!DL114-Monthly!DL102","v":23},null,null,null,{"$f":"Monthly!DP114-Monthly!DP102","v":1635},null,null,null,"--","--","--","--","--","--","--","--","--","--",null,null,null,null,null,null,null,null,null,null,null,null,null,{"$f":"(Monthly!EQ114/Monthly!EQ102)-1","v":-5.9523809523810423E-3},"--",{"$f":"(Monthly!ES114/Monthly!ES102)-1","v":3.1609195402298784E-2},null,null,null,null,null,{"$f":"((Monthly!EY114-Monthly!EY102)*100)","v":-37.999999999999986},{"$f":"((Monthly!EZ114-Monthly!EZ102)*100)","v":-163.00000000000003},{"$f":"((Monthly!FA114-Monthly!FA102)*100)","v":31.00000000000005},{"$f":"((Monthly!FB114-Monthly!FB102)*100)","v":50},"--","--",{"$f":"((Monthly!FE114-Monthly!FE102)*100)","v":-69.000000000000043},{"$f":"((Monthly!FF114-Monthly!FF102)*100)","v":-41.000000000000014},"--",{"$f":"((Monthly!FH114-Monthly!FH102)*100)","v":-19.000000000000039},{"$f":"((Monthly!FI114-Monthly!FI102)*100)","v":6.0000000000000497},null,null,null,null,null,null,"--","--","--","--","--","--","--","--","--",null,null,null,null,null,{"$f":"(Monthly!GD114/Monthly!GD102)-1","v":5.1369863013698502E-2},"--","--","--","--","--","--","--","--"]
["1967-09-01",null,null,null,{"$f":"(Monthly!E115/Monthly!E103)-1","v":{"$error":"#DIV/0!"}},{"$f":"(Monthly!F115/Monthly!F103)-1","v":{"$error":"#DIV/0!"}},{"$f":"(Monthly!G115/Monthly!G103)-1","v":{"$error":"#DIV/0!"}},{"$f":"(Monthly!H115/Monthly!H103)-1","v":{"$error":"#DIV/0!"}},null,null,null,null,null,null,null,null,null,null,null,null,null,null,null,"--",{"$f":"(Monthly!Y115/Monthly!Y103)-1","v":8.063410863317455E-2},null,null,null,null,null,null,null,null,null,null,null,null,null,{"$f":"(Monthly!AM115/Monthly!AM103)-1","v":5.5435164658768077E-3},"--","--","--",{"$f":"Monthly!AQ115-Monthly!AQ103","v":-3.8000000000000043},"--","--",{"$f":"Monthly!AT115-Monthly!AT103","v":-4.8999999999999986},"--","--",{"$f":"Monthly!AW115-Monthly!AW103","v":-8},{"$f":"Monthly!AX115-Monthly!AX103","v":6.7999999999999972},{"$f":"Monthly!AY115-Monthly!AY103","v":1.5},{"$f":"Monthly!AZ115-Monthly!AZ103","v":-0.5},{"$f":"Monthly!BA115-Monthly!BA103","v":-25.900000000000006},"--","--",null,null,null,null,null,null,null,null,null,"--","--",null,null,null,null,null,{"$f":"(Monthly!BT115/Monthly!BT103)-1","v":5.4251367681538376E-2},null,null,null,{"$f":"(Monthly!BX115/Monthly!BX103)-1","v":0.35850860420650088},{"$f":"(Monthly!BY115/Monthly!BY103)-1","v":0.65245478036175708},"--","--",{"$f":"Monthly!CB115-Monthly!CB103","v":-0.87826769220368295},{"$f":"Monthly!CC115-Monthly!CC103","v":-0.80826769220368355},"--","--",null,"--","--",null,{"$f":"(Monthly!CJ115/Monthly!CJ103)-1","v":0.48324022346368722},{"$f":"(Monthly!CK115/Monthly!CK103)-1","v":6.8228589520341831E-2},{"$f":"(Monthly!CL115/Monthly!CL103)-1","v":0.15573770491803285},{"$f":"(Monthly!CM115/Monthly!CM103)-1","v":0.30472103004291839},{"$f":"(Monthly!CN115/Monthly!CN103)-1","v":3.9778173353416602E-2},{"$f":"(Monthly!CO115/Monthly!CO103)-1","v":3.5163966811536884E-2},{"$f":"(Monthly!CP115/Monthly!CP103)-1","v":4.4697409918299513E-2},{"$f":"(Monthly!CQ115/Monthly!CQ103)-1","v":1.0807984404824778E-2},"--",null,null,null,null,null,null,null,{"$f":"(Monthly!CZ115/Monthly!CZ103)-1","v":2.5954198473282508E-2},{"$f":"(Monthly!DA115/Monthly!DA103)-1","v":3.5502958579881838E-2},null,null,null,null,null,null,"--",{"$f":"((Monthly!DI115-Monthly!DI103)*100)","v":40.000000000000568},"--",{"$f":"((Monthly!DK115-Monthly!DK103)*100)","v":9.9999999999999645},{"$f":"Monthly!DL115-Monthly!DL103","v":-92},null,null,null,{"$f":"Monthly!DP115-Monthly!DP103","v":1520},null,null,null,"--","--","--","--","--","--","--","--","--","--",null,null,null,null,null,null,null,null,null,null,null,null,null,{"$f":"(Monthly!EQ115/Monthly!EQ103)-1","v":-5.9523809523810423E-3},"--",{"$f":"(Monthly!ES115/Monthly!ES103)-1","v":2.8653295128939771E-2},null,null,null,null,null,{"$f":"((Monthly!EY115-Monthly!EY103)*100)","v":-50},{"$f":"((Monthly!EZ115-Monthly!EZ103)*100)","v":-141},{"$f":"((Monthly!FA115-Monthly!FA103)*100)","v":16.000000000000014},{"$f":"((Monthly!FB115-Monthly!FB103)*100)","v":31.00000000000005},"--","--",{"$f":"((Monthly!FE115-Monthly!FE103)*100)","v":-95.000000000000014},{"$f":"((Monthly!FF115-Monthly!FF103)*100)","v":-58.000000000000007},"--",{"$f":"((Monthly!FH115-Monthly!FH103)*100)","v":-9.9999999999999645},{"$f":"((Monthly!FI115-Monthly!FI103)*100)","v":12.000000000000011},null,null,null,null,null,null,"--","--","--","--","--","--","--","--","--",null,null,null,null,null,{"$f":"(Monthly!GD115/Monthly!GD103)-1","v":3.3670033670033517E-2},"--","--","--","--","--","--","--","--"]
["1967-10-01",null,null,null,{"$f":"(Monthly!E116/Monthly!E104)-1","v":{"$error":"#DIV/0!"}},{"$f":"(Monthly!F116/Monthly!F104)-1","v":{"$error":"#DIV/0!"}},{"$f":"(Monthly!G116/Monthly!G104)-1","v":{"$error":"#DIV/0!"}},{"$f":"(Monthly!H116/Monthly!H104)-1","v":{"$error":"#DIV/0!"}},null,null,null,null,null,null,null,null,null,null,null,null,null,null,null,"--",{"$f":"(Monthly!Y116/Monthly!Y104)-1","v":7.8116507542584035E-2},null,null,null,null,null,null,null,null,null,null,null,null,null,{"$f":"(Monthly!AM116/Monthly!AM104)-1","v":6.7559581889196085E-3},"--","--","--",{"$f":"Monthly!AQ116-Monthly!AQ104","v":-3.1000000000000014},"--","--",{"$f":"Monthly!AT116-Monthly!AT104","v":-4.5},"--","--",{"$f":"Monthly!AW116-Monthly!AW104","v":-10.200000000000003},{"$f":"Monthly!AX116-Monthly!AX104","v":4.1999999999999957},{"$f":"Monthly!AY116-Monthly!AY104","v":8.4000000000000057},{"$f":"Monthly!AZ116-Monthly!AZ104","v":0.70000000000000284},{"$f":"Monthly!BA116-Monthly!BA104","v":-17.600000000000001},"--","--",null,null,null,null,null,null,null,null,null,"--","--",null,null,null,null,null,{"$f":"(Monthly!BT116/Monthly!BT104)-1","v":6.1809463372403339E-2},null,null,null,{"$f":"(Monthly!BX116/Monthly!BX104)-1","v":0.76868327402135228},{"$f":"(Monthly!BY116/Monthly!BY104)-1","v":0.73207036535859271},"--","--",{"$f":"Monthly!CB116-Monthly!CB104","v":-0.90395016843761766},{"$f":"Monthly!CC116-Monthly!CC104","v":-0.69395016843761681},"--","--",null,"--","--",null,{"$f":"(Monthly!CJ116/Monthly!CJ104)-1","v":0.46253229974160215},{"$f":"(Monthly!CK116/Monthly!CK104)-1","v":6.3177746346063213E-2},{"$f":"(Monthly!CL116/Monthly!CL104)-1","v":0.15443425076452599},{"$f":"(Monthly!CM116/Monthly!CM104)-1","v":0.52428810720268015},{"$f":"(Monthly!CN116/Monthly!CN104)-1","v":3.563755413838976E-2},{"$f":"(Monthly!CO116/Monthly!CO104)-1","v":4.1237113402061931E-2},{"$f":"(Monthly!CP116/Monthly!CP104)-1","v":4.4452324891459449E-2},{"$f":"(Monthly!CQ116/Monthly!CQ104)-1","v":1.0668992479982986E-2},"--",null,null,null,null,null,null,null,{"$f":"(Monthly!CZ116/Monthly!CZ104)-1","v":2.5875190258751957E-2},{"$f":"(Monthly!DA116/Monthly!DA104)-1","v":3.2352941176470695E-2},null,null,null,null,null,null,"--",{"$f":"((Monthly!DI116-Monthly!DI104)*100)","v":60.000000000000142},"--",{"$f":"((Monthly!DK116-Monthly!DK104)*100)","v":29.999999999999982},{"$f":"Monthly!DL116-Monthly!DL104","v":-156},null,null,null,{"$f":"Monthly!DP116-Monthly!DP104","v":1371},null,null,null,"--","--","--","--","--","--","--","--","--","--",null,null,null,null,null,null,null,null,null,null,null,null,null,{"$f":"(Monthly!EQ116/Monthly!EQ104)-1","v":0},"--",{"$f":"(Monthly!ES116/Monthly!ES104)-1","v":3.1428571428571361E-2},null,null,null,null,null,{"$f":"((Monthly!EY116-Monthly!EY104)*100)","v":-50},{"$f":"((Monthly!EZ116-Monthly!EZ104)*100)","v":-165.00000000000003},{"$f":"((Monthly!FA116-Monthly!FA104)*100)","v":41.000000000000014},{"$f":"((Monthly!FB116-Monthly!FB104)*100)","v":41.999999999999993},"--","--",{"$f":"((Monthly!FE116-Monthly!FE104)*100)","v":-79},{"$f":"((Monthly!FF116-Monthly!FF104)*100)","v":-20.999999999999996},"--",{"$f":"((Monthly!FH116-Monthly!FH104)*100)","v":30.000000000000071},{"$f":"((Monthly!FI116-Monthly!FI104)*100)","v":47.000000000000064},null,null,null,null,null,null,"--","--","--","--","--","--","--","--","--",null,null,null,null,null,{"$f":"(Monthly!GD116/Monthly!GD104)-1","v":3.3670033670033517E-2},"--","--","--","--","--","--","--","--"]
["1967-11-01",null,null,null,{"$f":"(Monthly!E117/Monthly!E105)-1","v":{"$error":"#DIV/0!"}},{"$f":"(Monthly!F117/Monthly!F105)-1","v":{"$error":"#DIV/0!"}},{"$f":"(Monthly!G117/Monthly!G105)-1","v":{"$error":"#DIV/0!"}},{"$f":"(Monthly!H117/Monthly!H105)-1","v":{"$error":"#DIV/0!"}},null,null,null,null,null,null,null,null,null,null,null,null,null,null,null,"--",{"$f":"(Monthly!Y117/Monthly!Y105)-1","v":7.9406578319463517E-2},null,null,null,null,null,null,null,null,null,null,null,null,null,{"$f":"(Monthly!AM117/Monthly!AM105)-1","v":2.8229589591584059E-2},"--","--","--",{"$f":"Monthly!AQ117-Monthly!AQ105","v":0.5},"--","--",{"$f":"Monthly!AT117-Monthly!AT105","v":-4.1000000000000014},"--","--",{"$f":"Monthly!AW117-Monthly!AW105","v":-11.200000000000003},{"$f":"Monthly!AX117-Monthly!AX105","v":10.200000000000003},{"$f":"Monthly!AY117-Monthly!AY105","v":11.899999999999991},{"$f":"Monthly!AZ117-Monthly!AZ105","v":4.3999999999999986},{"$f":"Monthly!BA117-Monthly!BA105","v":-11.200000000000003},"--","--",null,null,null,null,null,null,null,null,null,"--","--",null,null,null,null,null,{"$f":"(Monthly!BT117/Monthly!BT105)-1","v":6.7811254202028826E-2},null,null,null,{"$f":"(Monthly!BX117/Monthly!BX105)-1","v":0.60041623309053072},{"$f":"(Monthly!BY117/Monthly!BY105)-1","v":0.76222826086956519},"--","--",{"$f":"Monthly!CB117-Monthly!CB105","v":-0.1568653370883748},{"$f":"Monthly!CC117-Monthly!CC105","v":5.3134662911624275E-2},"--","--",null,"--","--",null,{"$f":"(Monthly!CJ117/Monthly!CJ105)-1","v":0.30890052356020936},{"$f":"(Monthly!CK117/Monthly!CK105)-1","v":6.5044454843238064E-2},{"$f":"(Monthly!CL117/Monthly!CL105)-1","v":0.13004484304932706},{"$f":"(Monthly!CM117/Monthly!CM105)-1","v":0.38733431516936667},{"$f":"(Monthly!CN117/Monthly!CN105)-1","v":3.7079796264855691E-2},{"$f":"(Monthly!CO117/Monthly!CO105)-1","v":4.2755344418052177E-2},{"$f":"(Monthly!CP117/Monthly!CP105)-1","v":4.7903436010781064E-2},{"$f":"(Monthly!CQ117/Monthly!CQ105)-1","v":1.0638405657605432E-2},"--",null,null,null,null,null,null,null,{"$f":"(Monthly!CZ117/Monthly!CZ105)-1","v":3.1021897810218801E-2},{"$f":"(Monthly!DA117/Monthly!DA105)-1","v":3.529411764705892E-2},null,null,null,null,null,null,"--",{"$f":"((Monthly!DI117-Monthly!DI105)*100)","v":19.999999999999574},"--",{"$f":"((Monthly!DK117-Monthly!DK105)*100)","v":29.999999999999982},{"$f":"Monthly!DL117-Monthly!DL105","v":4},null,null,null,{"$f":"Monthly!DP117-Monthly!DP105","v":1684},null,null,null,"--","--","--","--","--","--","--","--","--","--",null,null,null,null,null,null,null,null,null,null,null,null,null,{"$f":"(Monthly!EQ117/Monthly!EQ105)-1","v":3.0030030030030463E-3},"--",{"$f":"(Monthly!ES117/Monthly!ES105)-1","v":2.8409090909090828E-2},null,null,null,null,null,{"$f":"((Monthly!EY117-Monthly!EY105)*100)","v":-32.000000000000028},{"$f":"((Monthly!EZ117-Monthly!EZ105)*100)","v":-163},{"$f":"((Monthly!FA117-Monthly!FA105)*100)","v":72.000000000000057},{"$f":"((Monthly!FB117-Monthly!FB105)*100)","v":58.999999999999986},"--","--",{"$f":"((Monthly!FE117-Monthly!FE105)*100)","v":-58.999999999999986},{"$f":"((Monthly!FF117-Monthly!FF105)*100)","v":7.0000000000000284},"--",{"$f":"((Monthly!FH117-Monthly!FH105)*100)","v":41.999999999999993},{"$f":"((Monthly!FI117-Monthly!FI105)*100)","v":58.999999999999986},null,null,null,null,null,null,"--","--","--","--","--","--","--","--","--",null,null,null,null,null,{"$f":"(Monthly!GD117/Monthly!GD105)-1","v":3.3670033670033517E-2},"--","--","--","--","--","--","--","--"]
["1967-12-01",null,null,null,{"$f":"(Monthly!E118/Monthly!E106)-1","v":{"$error":"#DIV/0!"}},{"$f":"(Monthly!F118/Monthly!F106)-1","v":{"$error":"#DIV/0!"}},{"$f":"(Monthly!G118/Monthly!G106)-1","v":{"$error":"#DIV/0!"}},{"$f":"(Monthly!H118/Monthly!H106)-1","v":{"$error":"#DIV/0!"}},null,null,null,null,null,null,null,null,null,null,null,null,null,null,null,"--",{"$f":"(Monthly!Y118/Monthly!Y106)-1","v":9.0707303484603097E-2},null,null,null,null,null,null,null,null,null,null,null,null,null,{"$f":"(Monthly!AM118/Monthly!AM106)-1","v":3.6909304778577345E-2},"--","--","--",{"$f":"Monthly!AQ118-Monthly!AQ106","v":3.2000000000000028},"--","--",{"$f":"Monthly!AT118-Monthly!AT106","v":0.79999999999999716},"--","--",{"$f":"Monthly!AW118-Monthly!AW106","v":9.9999999999994316E-2},{"$f":"Monthly!AX118-Monthly!AX106","v":10.600000000000001},{"$f":"Monthly!AY118-Monthly!AY106","v":12},{"$f":"Monthly!AZ118-Monthly!AZ106","v":4.6000000000000014},{"$f":"Monthly!BA118-Monthly!BA106","v":-8},"--","--",null,null,null,null,null,null,null,null,null,"--","--",null,null,null,null,null,{"$f":"(Monthly!BT118/Monthly!BT106)-1","v":7.179960680120856E-2},null,null,null,{"$f":"(Monthly!BX118/Monthly!BX106)-1","v":0.32121212121212128},{"$f":"(Monthly!BY118/Monthly!BY106)-1","v":0.7698519515477793},"--","--",{"$f":"Monthly!CB118-Monthly!CB106","v":-7.8817207787884591E-2},{"$f":"Monthly!CC118-Monthly!CC106","v":-7.8817207787885479E-2},"--","--",null,"--","--",null,{"$f":"(Monthly!CJ118/Monthly!CJ106)-1","v":0.36043360433604343},{"$f":"(Monthly!CK118/Monthly!CK106)-1","v":7.4443233141255227E-2},{"$f":"(Monthly!CL118/Monthly!CL106)-1","v":0.12977099236641232},{"$f":"(Monthly!CM118/Monthly!CM106)-1","v":0.22972972972972983},{"$f":"(Monthly!CN118/Monthly!CN106)-1","v":4.7115613420811275E-2},{"$f":"(Monthly!CO118/Monthly!CO106)-1","v":4.1880679573291113E-2},{"$f":"(Monthly!CP118/Monthly!CP106)-1","v":4.9656050504871985E-2},{"$f":"(Monthly!CQ118/Monthly!CQ106)-1","v":1.0553114813840025E-2},"--",null,null,null,null,null,null,null,{"$f":"(Monthly!CZ118/Monthly!CZ106)-1","v":3.2806804374240439E-2},{"$f":"(Monthly!DA118/Monthly!DA106)-1","v":3.8123167155425186E-2},null,null,null,null,null,null,"--",{"$f":"((Monthly!DI118-Monthly!DI106)*100)","v":39.999999999999858},"--",{"$f":"((Monthly!DK118-Monthly!DK106)*100)","v":0},{"$f":"Monthly!DL118-Monthly!DL106","v":27},null,null,null,{"$f":"Monthly!DP118-Monthly!DP106","v":1700},null,null,null,"--","--","--","--","--","--","--","--","--","--",null,null,null,null,null,null,null,null,null,null,null,null,null,{"$f":"(Monthly!EQ118/Monthly!EQ106)-1","v":1.2012012012012185E-2},"--",{"$f":"(Monthly!ES118/Monthly!ES106)-1","v":3.1161473087818692E-2},null,null,null,null,null,{"$f":"((Monthly!EY118-Monthly!EY106)*100)","v":0},{"$f":"((Monthly!EZ118-Monthly!EZ106)*100)","v":-89.000000000000057},{"$f":"((Monthly!FA118-Monthly!FA106)*100)","v":80.000000000000071},{"$f":"((Monthly!FB118-Monthly!FB106)*100)","v":75},"--","--",{"$f":"((Monthly!FE118-Monthly!FE106)*100)","v":0.99999999999997868},{"$f":"((Monthly!FF118-Monthly!FF106)*100)","v":50.999999999999979},"--",{"$f":"((Monthly!FH118-Monthly!FH106)*100)","v":75},{"$f":"((Monthly!FI118-Monthly!FI106)*100)","v":86.000000000000028},null,null,null,null,null,null,"--","--","--","--","--","--","--","--","--",null,null,null,null,null,{"$f":"(Monthly!GD118/Monthly!GD106)-1","v":3.3670033670033517E-2},"--","--","--","--","--","--","--","--"]
["1968-01-01",null,null,null,{"$f":"(Monthly!E119/Monthly!E107)-1","v":{"$error":"#DIV/0!"}},{"$f":"(Monthly!F119/Monthly!F107)-1","v":{"$error":"#DIV/0!"}},{"$f":"(Monthly!G119/Monthly!G107)-1","v":{"$error":"#DIV/0!"}},{"$f":"(Monthly!H119/Monthly!H107)-1","v":{"$error":"#DIV/0!"}},null,null,null,null,null,null,null,null,null,null,null,null,null,null,null,"--",{"$f":"(Monthly!Y119/Monthly!Y107)-1","v":9.1794283119307707E-2},null,null,null,null,null,null,null,null,null,null,null,null,null,{"$f":"(Monthly!AM119/Monthly!AM107)-1","v":3.0928968356482844E-2},"--","--","--",{"$f":"Monthly!AQ119-Monthly!AQ107","v":7.5},"--","--",{"$f":"Monthly!AT119-Monthly!AT107","v":4.9000000000000057},"--","--",{"$f":"Monthly!AW119-Monthly!AW107","v":6.5999999999999943},{"$f":"Monthly!AX119-Monthly!AX107","v":13.899999999999999},{"$f":"Monthly!AY119-Monthly!AY107","v":5.0999999999999943},{"$f":"Monthly!AZ119-Monthly!AZ107","v":5.1999999999999957},{"$f":"Monthly!BA119-Monthly!BA107","v":2.3999999999999986},"--","--",null,null,null,null,null,null,null,null,null,"--","--",null,null,null,null,null,{"$f":"(Monthly!BT119/Monthly!BT107)-1","v":7.7040252071030713E-2},null,null,null,{"$f":"(Monthly!BX119/Monthly!BX107)-1","v":0.29334582942830356},{"$f":"(Monthly!BY119/Monthly!BY107)-1","v":0.18492462311557789},"--","--",{"$f":"Monthly!CB119-Monthly!CB107","v":0.24791829543158261},{"$f":"Monthly!CC119-Monthly!CC107","v":0.10791829543158116},"--","--",null,"--","--",null,{"$f":"(Monthly!CJ119/Monthly!CJ107)-1","v":0.1875},{"$f":"(Monthly!CK119/Monthly!CK107)-1","v":7.1263304025914076E-2},{"$f":"(Monthly!CL119/Monthly!CL107)-1","v":4.05209840810421E-2},{"$f":"(Monthly!CM119/Monthly!CM107)-1","v":9.2447916666666741E-2},{"$f":"(Monthly!CN119/Monthly!CN107)-1","v":3.7775834230355132E-2},{"$f":"(Monthly!CO119/Monthly!CO107)-1","v":4.1551246537396169E-2},{"$f":"(Monthly!CP119/Monthly!CP107)-1","v":4.4754037726544293E-2},{"$f":"(Monthly!CQ119/Monthly!CQ107)-1","v":1.04786179552534E-2},"--",null,null,null,null,null,null,null,{"$f":"(Monthly!CZ119/Monthly!CZ107)-1","v":3.6474164133738718E-2},{"$f":"(Monthly!DA119/Monthly!DA107)-1","v":3.8011695906432719E-2},null,null,null,null,null,null,"--",{"$f":"((Monthly!DI119-Monthly!DI107)*100)","v":-29.999999999999716},"--",{"$f":"((Monthly!DK119-Monthly!DK107)*100)","v":-19.999999999999972},{"$f":"Monthly!DL119-Monthly!DL107","v":7},null,null,null,{"$f":"Monthly!DP119-Monthly!DP107","v":1398},null,null,null,{"$f":"(Monthly!DT119/Monthly!DT107)-1","v":3.2296650717703379E-2},"--","--","--","--","--","--","--","--","--",null,null,null,null,null,null,null,null,null,null,null,null,null,{"$f":"(Monthly!EQ119/Monthly!EQ107)-1","v":1.1976047904191489E-2},"--",{"$f":"(Monthly!ES119/Monthly!ES107)-1","v":3.1073446327683607E-2},null,null,null,null,null,{"$f":"((Monthly!EY119-Monthly!EY107)*100)","v":4.0000000000000036},{"$f":"((Monthly!EZ119-Monthly!EZ107)*100)","v":-34.000000000000071},{"$f":"((Monthly!FA119-Monthly!FA107)*100)","v":96.999999999999972},{"$f":"((Monthly!FB119-Monthly!FB107)*100)","v":87.000000000000014},"--","--",{"$f":"((Monthly!FE119-Monthly!FE107)*100)","v":28.000000000000025},{"$f":"((Monthly!FF119-Monthly!FF107)*100)","v":67.999999999999972},"--",{"$f":"((Monthly!FH119-Monthly!FH107)*100)","v":83.999999999999986},{"$f":"((Monthly!FI119-Monthly!FI107)*100)","v":95.000000000000014},null,null,null,null,null,null,"--","--","--","--","--","--","--","--","--",null,null,null,null,null,{"$f":"(Monthly!GD119/Monthly!GD107)-1","v":3.3670033670033517E-2},"--","--","--","--","--","--","--","--"]
["1968-02-01",null,null,null,{"$f":"(Monthly!E120/Monthly!E108)-1","v":{"$error":"#DIV/0!"}},{"$f":"(Monthly!F120/Monthly!F108)-1","v":{"$error":"#DIV/0!"}},{"$f":"(Monthly!G120/Monthly!G108)-1","v":{"$error":"#DIV/0!"}},{"$f":"(Monthly!H120/Monthly!H108)-1","v":{"$error":"#DIV/0!"}},null,null,null,null,null,null,null,null,null,null,null,null,null,null,null,"--",{"$f":"(Monthly!Y120/Monthly!Y108)-1","v":8.8490158123633034E-2},null,null,null,null,null,null,null,null,null,null,null,null,null,{"$f":"(Monthly!AM120/Monthly!AM108)-1","v":4.6494819855506409E-2},"--","--","--",{"$f":"Monthly!AQ120-Monthly!AQ108","v":7.3999999999999986},"--","--",{"$f":"Monthly!AT120-Monthly!AT108","v":2.6999999999999957},"--","--",{"$f":"Monthly!AW120-Monthly!AW108","v":8.4000000000000057},{"$f":"Monthly!AX120-Monthly!AX108","v":11.5},{"$f":"Monthly!AY120-Monthly!AY108","v":14.5},{"$f":"Monthly!AZ120-Monthly!AZ108","v":7.7000000000000028},{"$f":"Monthly!BA120-Monthly!BA108","v":4},"--","--",null,null,null,null,null,null,null,null,null,"--","--",null,null,null,null,null,{"$f":"(Monthly!BT120/Monthly!BT108)-1","v":8.3869099454580986E-2},null,null,null,{"$f":"(Monthly!BX120/Monthly!BX108)-1","v":0.3535173642030276},{"$f":"(Monthly!BY120/Monthly!BY108)-1","v":0.47960308710033073},"--","--",{"$f":"Monthly!CB120-Monthly!CB108","v":0.76853321242347228},{"$f":"Monthly!CC120-Monthly!CC108","v":0.76853321242347228},"--","--",null,"--","--",null,{"$f":"(Monthly!CJ120/Monthly!CJ108)-1","v":0.33088235294117641},{"$f":"(Monthly!CK120/Monthly!CK108)-1","v":8.1422194859165797E-2},{"$f":"(Monthly!CL120/Monthly!CL108)-1","v":5.7023643949930314E-2},{"$f":"(Monthly!CM120/Monthly!CM108)-1","v":0.37154696132596676},{"$f":"(Monthly!CN120/Monthly!CN108)-1","v":4.3422775968029015E-2},{"$f":"(Monthly!CO120/Monthly!CO108)-1","v":4.1913799920917372E-2},{"$f":"(Monthly!CP120/Monthly!CP108)-1","v":5.4373374650507067E-2},{"$f":"(Monthly!CQ120/Monthly!CQ108)-1","v":1.0248014068279687E-2},"--",null,null,null,null,null,null,null,{"$f":"(Monthly!CZ120/Monthly!CZ108)-1","v":3.6363636363636376E-2},{"$f":"(Monthly!DA120/Monthly!DA108)-1","v":4.3859649122806932E-2},null,null,null,null,null,null,"--",{"$f":"((Monthly!DI120-Monthly!DI108)*100)","v":30.000000000000426},"--",{"$f":"((Monthly!DK120-Monthly!DK108)*100)","v":0},{"$f":"Monthly!DL120-Monthly!DL108","v":76},null,null,null,{"$f":"Monthly!DP120-Monthly!DP108","v":1787},null,null,null,{"$f":"(Monthly!DT120/Monthly!DT108)-1","v":-7.9694323144104851E-2},"--","--","--","--","--","--","--","--","--",null,null,null,null,null,null,null,null,null,null,null,null,null,{"$f":"(Monthly!EQ120/Monthly!EQ108)-1","v":1.7964071856287456E-2},"--",{"$f":"(Monthly!ES120/Monthly!ES108)-1","v":3.0985915492957705E-2},null,null,null,null,null,{"$f":"((Monthly!EY120-Monthly!EY108)*100)","v":25},{"$f":"((Monthly!EZ120-Monthly!EZ108)*100)","v":-29.000000000000004},{"$f":"((Monthly!FA120-Monthly!FA108)*100)","v":106.99999999999994},{"$f":"((Monthly!FB120-Monthly!FB108)*100)","v":97.999999999999957},"--","--",{"$f":"((Monthly!FE120-Monthly!FE108)*100)","v":42.000000000000085},{"$f":"((Monthly!FF120-Monthly!FF108)*100)","v":70.000000000000014},"--",{"$f":"((Monthly!FH120-Monthly!FH108)*100)","v":84.999999999999972},{"$f":"((Monthly!FI120-Monthly!FI108)*100)","v":92.999999999999972},null,null,null,null,null,null,"--","--","--","--","--","--","--","--","--",null,null,null,null,null,{"$f":"(Monthly!GD120/Monthly!GD108)-1","v":2.3333333333333206E-2},"--","--","--","--","--","--","--","--"]
["1968-03-01",null,null,null,{"$f":"(Monthly!E121/Monthly!E109)-1","v":{"$error":"#DIV/0!"}},{"$f":"(Monthly!F121/Monthly!F109)-1","v":{"$error":"#DIV/0!"}},{"$f":"(Monthly!G121/Monthly!G109)-1","v":{"$error":"#DIV/0!"}},{"$f":"(Monthly!H121/Monthly!H109)-1","v":{"$error":"#DIV/0!"}},null,null,null,null,null,null,null,null,null,null,null,null,null,null,null,"--",{"$f":"(Monthly!Y121/Monthly!Y109)-1","v":8.7251990998850726E-2},null,null,null,null,null,null,null,null,null,null,null,null,null,{"$f":"(Monthly!AM121/Monthly!AM109)-1","v":5.570962114773903E-2},"--","--","--",{"$f":"Monthly!AQ121-Monthly!AQ109","v":8.5},"--","--",{"$f":"Monthly!AT121-Monthly!AT109","v":3.8000000000000043},"--","--",{"$f":"Monthly!AW121-Monthly!AW109","v":5.1000000000000014},{"$f":"Monthly!AX121-Monthly!AX109","v":10.400000000000006},{"$f":"Monthly!AY121-Monthly!AY109","v":22.099999999999994},{"$f":"Monthly!AZ121-Monthly!AZ109","v":7.0999999999999943},{"$f":"Monthly!BA121-Monthly!BA109","v":16},"--","--",null,null,null,null,null,null,null,null,null,"--","--",null,null,null,null,null,{"$f":"(Monthly!BT121/Monthly!BT109)-1","v":8.908650832202003E-2},null,null,null,{"$f":"(Monthly!BX121/Monthly!BX109)-1","v":0.38825757575757569},{"$f":"(Monthly!BY121/Monthly!BY109)-1","v":0.4345549738219896},"--","--",{"$f":"Monthly!CB121-Monthly!CB109","v":1.2912273763112774},{"$f":"Monthly!CC121-Monthly!CC109","v":1.221227376311278},"--","--",null,"--","--",null,{"$f":"(Monthly!CJ121/Monthly!CJ109)-1","v":0.11617312072892938},{"$f":"(Monthly!CK121/Monthly!CK109)-1","v":8.6850152905198597E-2},{"$f":"(Monthly!CL121/Monthly!CL109)-1","v":-8.141112618724633E-3},{"$f":"(Monthly!CM121/Monthly!CM109)-1","v":0.20475561426684274},{"$f":"(Monthly!CN121/Monthly!CN109)-1","v":4.5331822272590916E-2},{"$f":"(Monthly!CO121/Monthly!CO109)-1","v":4.0961008270972821E-2},{"$f":"(Monthly!CP121/Monthly!CP109)-1","v":5.7984740908887389E-2},{"$f":"(Monthly!CQ121/Monthly!CQ109)-1","v":1.0195064558643052E-2},"--",null,null,null,null,null,null,null,{"$f":"(Monthly!CZ121/Monthly!CZ109)-1","v":3.9393939393939315E-2},{"$f":"(Monthly!DA121/Monthly!DA109)-1","v":4.3731778425655898E-2},null,null,null,null,null,null,{"$f":"((Monthly!DH121-Monthly!DH109)*60)","v":-11.999999999999744},{"$f":"((Monthly!DI121-Monthly!DI109)*100)","v":50},"--",{"$f":"((Monthly!DK121-Monthly!DK109)*100)","v":-9.9999999999999645},{"$f":"Monthly!DL121-Monthly!DL109","v":127},null,null,null,{"$f":"Monthly!DP121-Monthly!DP109","v":1765},null,null,null,{"$f":"(Monthly!DT121/Monthly!DT109)-1","v":-0.25038402457757292},"--","--","--","--","--","--","--","--","--",null,null,null,null,null,null,null,null,null,null,null,null,null,{"$f":"(Monthly!EQ121/Monthly!EQ109)-1","v":2.4024024024024149E-2},"--",{"$f":"(Monthly!ES121/Monthly!ES109)-1","v":3.0985915492957705E-2},null,null,null,null,null,{"$f":"((Monthly!EY121-Monthly!EY109)*100)","v":29.000000000000004},{"$f":"((Monthly!EZ121-Monthly!EZ109)*100)","v":51.999999999999957},{"$f":"((Monthly!FA121-Monthly!FA109)*100)","v":98.000000000000043},{"$f":"((Monthly!FB121-Monthly!FB109)*100)","v":100},"--","--",{"$f":"((Monthly!FE121-Monthly!FE109)*100)","v":91.000000000000014},{"$f":"((Monthly!FF121-Monthly!FF109)*100)","v":123.00000000000004},"--",{"$f":"((Monthly!FH121-Monthly!FH109)*100)","v":121.99999999999997},{"$f":"((Monthly!FI121-Monthly!FI109)*100)","v":120.00000000000001},null,null,null,null,null,null,"--","--","--","--","--","--","--","--","--",null,null,null,null,null,{"$f":"(Monthly!GD121/Monthly!GD109)-1","v":2.3333333333333206E-2},"--","--","--","--","--","--","--","--"]
["1968-04-01",null,null,null,{"$f":"(Monthly!E122/Monthly!E110)-1","v":{"$error":"#DIV/0!"}},{"$f":"(Monthly!F122/Monthly!F110)-1","v":{"$error":"#DIV/0!"}},{"$f":"(Monthly!G122/Monthly!G110)-1","v":{"$error":"#DIV/0!"}},{"$f":"(Monthly!H122/Monthly!H110)-1","v":{"$error":"#DIV/0!"}},null,null,null,null,null,null,null,null,null,null,null,null,null,null,null,"--",{"$f":"(Monthly!Y122/Monthly!Y110)-1","v":8.9129765350742129E-2},null,null,null,null,null,null,null,null,null,null,null,null,null,{"$f":"(Monthly!AM122/Monthly!AM110)-1","v":4.7360039879806859E-2},"--","--","--",{"$f":"Monthly!AQ122-Monthly!AQ110","v":15.200000000000003},"--","--",{"$f":"Monthly!AT122-Monthly!AT110","v":11.700000000000003},"--","--",{"$f":"Monthly!AW122-Monthly!AW110","v":15.5},{"$f":"Monthly!AX122-Monthly!AX110","v":18.100000000000001},{"$f":"Monthly!AY122-Monthly!AY110","v":15.200000000000003},{"$f":"Monthly!AZ122-Monthly!AZ110","v":15.800000000000004},{"$f":"Monthly!BA122-Monthly!BA110","v":12.100000000000001},"--","--",null,null,null,null,null,null,null,null,null,"--","--",null,null,null,null,null,{"$f":"(Monthly!BT122/Monthly!BT110)-1","v":9.2598717529984276E-2},null,null,null,{"$f":"(Monthly!BX122/Monthly!BX110)-1","v":0.42438130155820342},{"$f":"(Monthly!BY122/Monthly!BY110)-1","v":0.24251207729468605},"--","--",{"$f":"Monthly!CB122-Monthly!CB110","v":1.0872198325078468},{"$f":"Monthly!CC122-Monthly!CC110","v":0.87721983250784774},"--","--",null,"--","--",null,{"$f":"(Monthly!CJ122/Monthly!CJ110)-1","v":4.5929018789144127E-2},{"$f":"(Monthly!CK122/Monthly!CK110)-1","v":9.5034377387318569E-2},{"$f":"(Monthly!CL122/Monthly!CL110)-1","v":0.13576642335766409},{"$f":"(Monthly!CM122/Monthly!CM110)-1","v":0.22516556291390732},{"$f":"(Monthly!CN122/Monthly!CN110)-1","v":4.9981661165016122E-2},{"$f":"(Monthly!CO122/Monthly!CO110)-1","v":3.6064288514308096E-2},{"$f":"(Monthly!CP122/Monthly!CP110)-1","v":6.5234400437766515E-2},{"$f":"(Monthly!CQ122/Monthly!CQ110)-1","v":1.0100602403559922E-2},"--",null,null,null,null,null,null,null,{"$f":"(Monthly!CZ122/Monthly!CZ110)-1","v":3.92749244712991E-2},{"$f":"(Monthly!DA122/Monthly!DA110)-1","v":4.3604651162790775E-2},null,null,null,null,null,null,{"$f":"((Monthly!DH122-Monthly!DH110)*60)","v":-11.999999999999744},{"$f":"((Monthly!DI122-Monthly!DI110)*100)","v":10.000000000000142},"--",{"$f":"((Monthly!DK122-Monthly!DK110)*100)","v":-29.999999999999982},{"$f":"Monthly!DL122-Monthly!DL110","v":253},null,null,null,{"$f":"Monthly!DP122-Monthly!DP110","v":2088},null,null,null,{"$f":"(Monthly!DT122/Monthly!DT110)-1","v":-0.24621212121212122},"--","--","--","--","--","--","--","--","--",null,null,null,null,null,null,null,null,null,null,null,null,null,{"$f":"(Monthly!EQ122/Monthly!EQ110)-1","v":3.0211480362537735E-2},"--",{"$f":"(Monthly!ES122/Monthly!ES110)-1","v":3.3707865168539186E-2},null,null,null,null,null,{"$f":"((Monthly!EY122-Monthly!EY110)*100)","v":70.000000000000014},{"$f":"((Monthly!EZ122-Monthly!EZ110)*100)","v":171},{"$f":"((Monthly!FA122-Monthly!FA110)*100)","v":109.99999999999997},{"$f":"((Monthly!FB122-Monthly!FB110)*100)","v":113.99999999999997},"--","--",{"$f":"((Monthly!FE122-Monthly!FE110)*100)","v":154},{"$f":"((Monthly!FF122-Monthly!FF110)*100)","v":159.99999999999997},"--",{"$f":"((Monthly!FH122-Monthly!FH110)*100)","v":118.00000000000006},{"$f":"((Monthly!FI122-Monthly!FI110)*100)","v":104.99999999999999},null,null,null,null,null,null,"--","--","--","--","--","--","--","--","--",null,null,null,null,null,{"$f":"(Monthly!GD122/Monthly!GD110)-1","v":2.3333333333333206E-2},"--","--","--","--","--","--","--","--"]
["1968-05-01",null,null,null,{"$f":"(Monthly!E123/Monthly!E111)-1","v":{"$error":"#DIV/0!"}},{"$f":"(Monthly!F123/Monthly!F111)-1","v":{"$error":"#DIV/0!"}},{"$f":"(Monthly!G123/Monthly!G111)-1","v":{"$error":"#DIV/0!"}},{"$f":"(Monthly!H123/Monthly!H111)-1","v":{"$error":"#DIV/0!"}},null,null,null,null,null,null,null,null,null,null,null,null,null,null,null,"--",{"$f":"(Monthly!Y123/Monthly!Y111)-1","v":9.0321094284222747E-2},null,null,null,null,null,null,null,null,null,null,null,null,null,{"$f":"(Monthly!AM123/Monthly!AM111)-1","v":6.8431419112408687E-2},"--","--","--",{"$f":"Monthly!AQ123-Monthly!AQ111","v":10.799999999999997},"--","--",{"$f":"Monthly!AT123-Monthly!AT111","v":7.6000000000000014},"--","--",{"$f":"Monthly!AW123-Monthly!AW111","v":14.299999999999997},{"$f":"Monthly!AX123-Monthly!AX111","v":8.6000000000000014},{"$f":"Monthly!AY123-Monthly!AY111","v":13.100000000000001},{"$f":"Monthly!AZ123-Monthly!AZ111","v":12},{"$f":"Monthly!BA123-Monthly!BA111","v":15},"--","--",null,null,null,null,null,null,null,null,null,"--","--",null,null,null,null,null,{"$f":"(Monthly!BT123/Monthly!BT111)-1","v":9.5498966012013131E-2},null,null,null,{"$f":"(Monthly!BX123/Monthly!BX111)-1","v":7.9754601226993849E-2},{"$f":"(Monthly!BY123/Monthly!BY111)-1","v":0.20539033457249078},"--","--",{"$f":"Monthly!CB123-Monthly!CB111","v":1.6112146696115275},{"$f":"Monthly!CC123-Monthly!CC111","v":1.4012146696115284},"--","--",null,"--","--",null,{"$f":"(Monthly!CJ123/Monthly!CJ111)-1","v":-0.12326043737574555},{"$f":"(Monthly!CK123/Monthly!CK111)-1","v":0.10047191353326235},{"$f":"(Monthly!CL123/Monthly!CL111)-1","v":9.7421203438395443E-2},{"$f":"(Monthly!CM123/Monthly!CM111)-1","v":-2.3474178403756207E-3},{"$f":"(Monthly!CN123/Monthly!CN111)-1","v":5.184519649928454E-2},{"$f":"(Monthly!CO123/Monthly!CO111)-1","v":3.0385664199454654E-2},{"$f":"(Monthly!CP123/Monthly!CP111)-1","v":7.0048491828516246E-2},{"$f":"(Monthly!CQ123/Monthly!CQ111)-1","v":1.0072442945509019E-2},"--",null,null,null,null,null,null,null,{"$f":"(Monthly!CZ123/Monthly!CZ111)-1","v":4.229607250755274E-2},{"$f":"(Monthly!DA123/Monthly!DA111)-1","v":4.3478260869565188E-2},null,null,null,null,null,null,{"$f":"((Monthly!DH123-Monthly!DH111)*60)","v":-5.9999999999996589},{"$f":"((Monthly!DI123-Monthly!DI111)*100)","v":60.000000000000142},"--",{"$f":"((Monthly!DK123-Monthly!DK111)*100)","v":-29.999999999999982},{"$f":"Monthly!DL123-Monthly!DL111","v":358},null,null,null,{"$f":"Monthly!DP123-Monthly!DP111","v":2034},null,null,null,{"$f":"(Monthly!DT123/Monthly!DT111)-1","v":-0.16456759026028545},"--","--","--","--","--","--","--","--","--",null,null,null,null,null,null,null,null,null,null,null,null,null,{"$f":"(Monthly!EQ123/Monthly!EQ111)-1","v":2.7027027027027195E-2},"--",{"$f":"(Monthly!ES123/Monthly!ES111)-1","v":3.6414565826330403E-2},null,null,null,null,null,{"$f":"((Monthly!EY123-Monthly!EY111)*100)","v":100},{"$f":"((Monthly!EZ123-Monthly!EZ111)*100)","v":217.00000000000003},{"$f":"((Monthly!FA123-Monthly!FA111)*100)","v":102.99999999999994},{"$f":"((Monthly!FB123-Monthly!FB111)*100)","v":107.00000000000003},"--","--",{"$f":"((Monthly!FE123-Monthly!FE111)*100)","v":206},{"$f":"((Monthly!FF123-Monthly!FF111)*100)","v":198.99999999999994},"--",{"$f":"((Monthly!FH123-Monthly!FH111)*100)","v":129},{"$f":"((Monthly!FI123-Monthly!FI111)*100)","v":102.00000000000004},null,null,null,null,null,null,"--","--","--","--","--","--","--","--","--",null,null,null,null,null,{"$f":"(Monthly!GD123/Monthly!GD111)-1","v":2.3333333333333206E-2},"--","--","--","--","--","--","--","--"]
["1968-06-01",null,null,null,{"$f":"(Monthly!E124/Monthly!E112)-1","v":{"$error":"#DIV/0!"}},{"$f":"(Monthly!F124/Monthly!F112)-1","v":{"$error":"#DIV/0!"}},{"$f":"(Monthly!G124/Monthly!G112)-1","v":{"$error":"#DIV/0!"}},{"$f":"(Monthly!H124/Monthly!H112)-1","v":{"$error":"#DIV/0!"}},null,null,null,null,null,null,null,null,null,null,null,null,null,null,null,"--",{"$f":"(Monthly!Y124/Monthly!Y112)-1","v":8.7511745264708507E-2},null,null,null,null,null,null,null,null,null,null,null,null,null,{"$f":"(Monthly!AM124/Monthly!AM112)-1","v":7.2488753527620187E-2},"--","--","--",{"$f":"Monthly!AQ124-Monthly!AQ112","v":6.7000000000000028},"--","--",{"$f":"Monthly!AT124-Monthly!AT112","v":6.8000000000000043},"--","--",{"$f":"Monthly!AW124-Monthly!AW112","v":15.399999999999999},{"$f":"Monthly!AX124-Monthly!AX112","v":2.5},{"$f":"Monthly!AY124-Monthly!AY112","v":12.000000000000007},{"$f":"Monthly!AZ124-Monthly!AZ112","v":4.1999999999999957},{"$f":"Monthly!BA124-Monthly!BA112","v":13.399999999999999},"--","--",null,null,null,null,null,null,null,null,null,"--","--",null,null,null,null,null,{"$f":"(Monthly!BT124/Monthly!BT112)-1","v":9.9747675800149427E-2},null,null,null,{"$f":"(Monthly!BX124/Monthly!BX112)-1","v":0.12580128205128216},{"$f":"(Monthly!BY124/Monthly!BY112)-1","v":0.11206159110350722},"--","--",{"$f":"Monthly!CB124-Monthly!CB112","v":1.1629441671443308},{"$f":"Monthly!CC124-Monthly!CC112","v":1.0229441671443311},"--","--",null,"--","--",null,{"$f":"(Monthly!CJ124/Monthly!CJ112)-1","v":-0.11623246492985972},{"$f":"(Monthly!CK124/Monthly!CK112)-1","v":0.1008162031438935},{"$f":"(Monthly!CL124/Monthly!CL112)-1","v":7.9479768786127059E-2},{"$f":"(Monthly!CM124/Monthly!CM112)-1","v":-6.9848661233993026E-2},{"$f":"(Monthly!CN124/Monthly!CN112)-1","v":5.2352375584364008E-2},{"$f":"(Monthly!CO124/Monthly!CO112)-1","v":2.5551684088269244E-2},{"$f":"(Monthly!CP124/Monthly!CP112)-1","v":7.0626849558033999E-2},{"$f":"(Monthly!CQ124/Monthly!CQ112)-1","v":1.0068652190775573E-2},"--",null,null,null,null,null,null,null,{"$f":"(Monthly!CZ124/Monthly!CZ112)-1","v":4.2042042042042205E-2},{"$f":"(Monthly!DA124/Monthly!DA112)-1","v":4.6242774566473965E-2},null,null,null,null,null,null,{"$f":"((Monthly!DH124-Monthly!DH112)*60)","v":0},{"$f":"((Monthly!DI124-Monthly!DI112)*100)","v":39.999999999999858},"--",{"$f":"((Monthly!DK124-Monthly!DK112)*100)","v":-19.999999999999972},{"$f":"Monthly!DL124-Monthly!DL112","v":416},null,null,null,{"$f":"Monthly!DP124-Monthly!DP112","v":2154},null,null,null,{"$f":"(Monthly!DT124/Monthly!DT112)-1","v":-0.13498312710911131},"--","--","--","--","--","--","--","--","--",null,null,null,null,null,null,null,null,null,null,null,null,null,{"$f":"(Monthly!EQ124/Monthly!EQ112)-1","v":2.0895522388059806E-2},"--",{"$f":"(Monthly!ES124/Monthly!ES112)-1","v":3.6414565826330403E-2},null,null,null,null,null,{"$f":"((Monthly!EY124-Monthly!EY112)*100)","v":100},{"$f":"((Monthly!EZ124-Monthly!EZ112)*100)","v":209.00000000000003},{"$f":"((Monthly!FA124-Monthly!FA112)*100)","v":83.999999999999986},{"$f":"((Monthly!FB124-Monthly!FB112)*100)","v":92},"--","--",{"$f":"((Monthly!FE124-Monthly!FE112)*100)","v":197.99999999999994},{"$f":"((Monthly!FF124-Monthly!FF112)*100)","v":150},"--",{"$f":"((Monthly!FH124-Monthly!FH112)*100)","v":83.999999999999986},{"$f":"((Monthly!FI124-Monthly!FI112)*100)","v":70.000000000000014},null,null,null,null,null,null,"--","--","--","--","--","--","--","--","--",null,null,null,null,null,{"$f":"(Monthly!GD124/Monthly!GD112)-1","v":2.3333333333333206E-2},"--","--","--","--","--","--","--","--"]
["1968-07-01",null,null,null,{"$f":"(Monthly!E125/Monthly!E113)-1","v":{"$error":"#DIV/0!"}},{"$f":"(Monthly!F125/Monthly!F113)-1","v":{"$error":"#DIV/0!"}},{"$f":"(Monthly!G125/Monthly!G113)-1","v":{"$error":"#DIV/0!"}},{"$f":"(Monthly!H125/Monthly!H113)-1","v":{"$error":"#DIV/0!"}},null,null,null,null,null,null,null,null,null,null,null,null,null,null,null,"--",{"$f":"(Monthly!Y125/Monthly!Y113)-1","v":8.7188048978265931E-2},null,null,null,null,null,null,null,null,null,null,null,null,null,{"$f":"(Monthly!AM125/Monthly!AM113)-1","v":7.328992508576615E-2},"--","--","--",{"$f":"Monthly!AQ125-Monthly!AQ113","v":4.6000000000000014},"--","--",{"$f":"Monthly!AT125-Monthly!AT113","v":-2},"--","--",{"$f":"Monthly!AW125-Monthly!AW113","v":17.699999999999996},{"$f":"Monthly!AX125-Monthly!AX113","v":0.79999999999999716},{"$f":"Monthly!AY125-Monthly!AY113","v":3.1999999999999957},{"$f":"Monthly!AZ125-Monthly!AZ113","v":3.1000000000000014},{"$f":"Monthly!BA125-Monthly!BA113","v":15},"--","--",null,null,null,null,null,null,null,null,null,"--","--",null,null,null,null,null,{"$f":"(Monthly!BT125/Monthly!BT113)-1","v":0.10099921610251039},null,null,null,{"$f":"(Monthly!BX125/Monthly!BX113)-1","v":0.10850439882697938},{"$f":"(Monthly!BY125/Monthly!BY113)-1","v":0.14188615123194559},"--","--",{"$f":"Monthly!CB125-Monthly!CB113","v":1.4634370703892854},{"$f":"Monthly!CC125-Monthly!CC113","v":1.393437070389286},"--","--",null,"--","--",null,{"$f":"(Monthly!CJ125/Monthly!CJ113)-1","v":-4.2718446601941795E-2},{"$f":"(Monthly!CK125/Monthly!CK113)-1","v":0.101123595505618},{"$f":"(Monthly!CL125/Monthly!CL113)-1","v":-8.0862533692722338E-2},{"$f":"(Monthly!CM125/Monthly!CM113)-1","v":5.4857142857142938E-2},{"$f":"(Monthly!CN125/Monthly!CN113)-1","v":4.5721642677934771E-2},{"$f":"(Monthly!CO125/Monthly!CO113)-1","v":1.9653179190751491E-2},{"$f":"(Monthly!CP125/Monthly!CP113)-1","v":7.7135827802290668E-2},{"$f":"(Monthly!CQ125/Monthly!CQ113)-1","v":1.0034622971939244E-2},"--",null,null,null,null,null,null,null,{"$f":"(Monthly!CZ125/Monthly!CZ113)-1","v":4.4910179640718528E-2},{"$f":"(Monthly!DA125/Monthly!DA113)-1","v":4.8991354466858761E-2},null,null,null,null,null,null,{"$f":"((Monthly!DH125-Monthly!DH113)*60)","v":-5.9999999999996589},{"$f":"((Monthly!DI125-Monthly!DI113)*100)","v":19.999999999999574},"--",{"$f":"((Monthly!DK125-Monthly!DK113)*100)","v":-9.9999999999999645},{"$f":"Monthly!DL125-Monthly!DL113","v":481},null,null,null,{"$f":"Monthly!DP125-Monthly!DP113","v":2238},null,null,null,{"$f":"(Monthly!DT125/Monthly!DT113)-1","v":-0.13900955690703731},{"$f":"Monthly!DU125-Monthly!DU113","v":{"$error":"#VALUE!"}},"--","--","--","--","--","--","--","--",null,null,null,null,null,null,null,null,null,null,null,null,null,{"$f":"(Monthly!EQ125/Monthly!EQ113)-1","v":2.3880597014925398E-2},"--",{"$f":"(Monthly!ES125/Monthly!ES113)-1","v":3.6312849162011274E-2},null,null,null,null,null,{"$f":"((Monthly!EY125-Monthly!EY113)*100)","v":100},{"$f":"((Monthly!EZ125-Monthly!EZ113)*100)","v":222.99999999999994},{"$f":"((Monthly!FA125-Monthly!FA113)*100)","v":66.000000000000014},{"$f":"((Monthly!FB125-Monthly!FB113)*100)","v":72.000000000000057},"--","--",{"$f":"((Monthly!FE125-Monthly!FE113)*100)","v":109.99999999999997},{"$f":"((Monthly!FF125-Monthly!FF113)*100)","v":64.000000000000057},"--",{"$f":"((Monthly!FH125-Monthly!FH113)*100)","v":36.999999999999922},{"$f":"((Monthly!FI125-Monthly!FI113)*100)","v":33.999999999999986},null,null,null,null,null,null,"--","--","--","--","--","--","--","--","--",null,null,null,null,null,{"$f":"(Monthly!GD125/Monthly!GD113)-1","v":2.3333333333333206E-2},"--","--","--","--","--","--","--","--"]
["1968-09-01",null,null,null,{"$f":"(Monthly!E127/Monthly!E115)-1","v":{"$error":"#DIV/0!"}},{"$f":"(Monthly!F127/Monthly!F115)-1","v":{"$error":"#DIV/0!"}},{"$f":"(Monthly!G127/Monthly!G115)-1","v":{"$error":"#DIV/0!"}},{"$f":"(Monthly!H127/Monthly!H115)-1","v":{"$error":"#DIV/0!"}},null,null,null,null,null,null,null,null,null,null,null,null,null,null,null,"--",{"$f":"(Monthly!Y127/Monthly!Y115)-1","v":9.6835907877687699E-2},null,null,null,null,null,null,null,null,null,null,null,null,null,{"$f":"(Monthly!AM127/Monthly!AM115)-1","v":6.1773723873325803E-2},"--","--","--",{"$f":"Monthly!AQ127-Monthly!AQ115","v":-3.1000000000000014},"--","--",{"$f":"Monthly!AT127-Monthly!AT115","v":-4.5},"--","--",{"$f":"Monthly!AW127-Monthly!AW115","v":-4.3999999999999986},{"$f":"Monthly!AX127-Monthly!AX115","v":-6.6000000000000014},{"$f":"Monthly!AY127-Monthly!AY115","v":-2.7999999999999972},{"$f":"Monthly!AZ127-Monthly!AZ115","v":-0.39999999999999858},{"$f":"Monthly!BA127-Monthly!BA115","v":1.8999999999999986},"--","--",null,null,null,null,null,null,null,null,null,"--","--",null,null,null,null,null,{"$f":"(Monthly!BT127/Monthly!BT115)-1","v":0.10960899621570652},null,null,null,{"$f":"(Monthly!BX127/Monthly!BX115)-1","v":9.5003518648838936E-2},{"$f":"(Monthly!BY127/Monthly!BY115)-1","v":0.14464425332290842},"--","--",{"$f":"Monthly!CB127-Monthly!CB115","v":1.4688658669574703},{"$f":"Monthly!CC127-Monthly!CC115","v":1.1888658669574692},"--","--",null,"--","--",null,{"$f":"(Monthly!CJ127/Monthly!CJ115)-1","v":-5.6497175141242972E-2},{"$f":"(Monthly!CK127/Monthly!CK115)-1","v":0.10669828097213996},{"$f":"(Monthly!CL127/Monthly!CL115)-1","v":-3.546099290780147E-2},{"$f":"(Monthly!CM127/Monthly!CM115)-1","v":1.3157894736842035E-2},{"$f":"(Monthly!CN127/Monthly!CN115)-1","v":4.3260683479291462E-2},{"$f":"(Monthly!CO127/Monthly!CO115)-1","v":1.7175572519083859E-2},{"$f":"(Monthly!CP127/Monthly!CP115)-1","v":8.159848172950479E-2},{"$f":"(Monthly!CQ127/Monthly!CQ115)-1","v":9.9541466403498813E-3},"--",null,null,null,null,null,null,null,{"$f":"(Monthly!CZ127/Monthly!CZ115)-1","v":4.4642857142857206E-2},{"$f":"(Monthly!DA127/Monthly!DA115)-1","v":4.857142857142871E-2},null,null,null,null,null,null,{"$f":"((Monthly!DH127-Monthly!DH115)*60)","v":-5.9999999999996589},{"$f":"((Monthly!DI127-Monthly!DI115)*100)","v":-20.000000000000284},"--",{"$f":"((Monthly!DK127-Monthly!DK115)*100)","v":-39.999999999999993},{"$f":"Monthly!DL127-Monthly!DL115","v":458},null,null,null,{"$f":"Monthly!DP127-Monthly!DP115","v":2323},null,null,null,{"$f":"(Monthly!DT127/Monthly!DT115)-1","v":-0.1157407407407407},{"$f":"Monthly!DU127-Monthly!DU115","v":{"$error":"#VALUE!"}},"--","--","--","--","--","--","--","--",null,null,null,null,null,null,null,null,null,null,null,null,null,{"$f":"(Monthly!EQ127/Monthly!EQ115)-1","v":2.9940119760478945E-2},"--",{"$f":"(Monthly!ES127/Monthly!ES115)-1","v":3.8997214484679521E-2},null,null,null,null,null,{"$f":"((Monthly!EY127-Monthly!EY115)*100)","v":95.000000000000014},{"$f":"((Monthly!EZ127-Monthly!EZ115)*100)","v":179},{"$f":"((Monthly!FA127-Monthly!FA115)*100)","v":31.99999999999994},{"$f":"((Monthly!FB127-Monthly!FB115)*100)","v":38.999999999999972},"--","--",{"$f":"((Monthly!FE127-Monthly!FE115)*100)","v":77.000000000000043},{"$f":"((Monthly!FF127-Monthly!FF115)*100)","v":20.999999999999996},"--",{"$f":"((Monthly!FH127-Monthly!FH115)*100)","v":8.0000000000000071},{"$f":"((Monthly!FI127-Monthly!FI115)*100)","v":16.000000000000014},null,null,null,null,null,null,"--","--","--","--","--","--","--","--","--",null,null,null,null,null,{"$f":"(Monthly!GD127/Monthly!GD115)-1","v":0},"--","--","--","--","--","--","--","--"]
["1969-02-01",null,null,null,{"$f":"(Monthly!E132/Monthly!E120)-1","v":{"$error":"#DIV/0!"}},{"$f":"(Monthly!F132/Monthly!F120)-1","v":{"$error":"#DIV/0!"}},{"$f":"(Monthly!G132/Monthly!G120)-1","v":{"$error":"#DIV/0!"}},{"$f":"(Monthly!H132/Monthly!H120)-1","v":{"$error":"#DIV/0!"}},null,null,null,null,null,null,null,null,null,null,null,null,null,null,null,"--",{"$f":"(Monthly!Y132/Monthly!Y120)-1","v":0.13508610466049475},null,null,null,null,null,null,null,null,null,null,null,null,null,{"$f":"(Monthly!AM132/Monthly!AM120)-1","v":5.6345211374231097E-2},"--","--","--",{"$f":"Monthly!AQ132-Monthly!AQ120","v":2},"--","--",{"$f":"Monthly!AT132-Monthly!AT120","v":5.8000000000000043},"--","--",{"$f":"Monthly!AW132-Monthly!AW120","v":-7.4000000000000057},{"$f":"Monthly!AX132-Monthly!AX120","v":1.2999999999999972},{"$f":"Monthly!AY132-Monthly!AY120","v":3.2999999999999972},{"$f":"Monthly!AZ132-Monthly!AZ120","v":1},{"$f":"Monthly!BA132-Monthly!BA120","v":6.2000000000000028},"--","--",null,null,null,null,null,null,null,null,null,"--","--",null,null,null,null,null,{"$f":"(Monthly!BT132/Monthly!BT120)-1","v":0.12966141603636672},null,null,null,{"$f":"(Monthly!BX132/Monthly!BX120)-1","v":0.12171052631578938},{"$f":"(Monthly!BY132/Monthly!BY120)-1","v":0.11400894187779431},"--","--",{"$f":"Monthly!CB132-Monthly!CB120","v":0.64199893673575481},{"$f":"Monthly!CC132-Monthly!CC120","v":0.36199893673575545},"--","--",null,"--","--",null,{"$f":"(Monthly!CJ132/Monthly!CJ120)-1","v":-3.4990791896869267E-2},{"$f":"(Monthly!CK132/Monthly!CK120)-1","v":9.7068033020210498E-2},{"$f":"(Monthly!CL132/Monthly!CL120)-1","v":-0.17105263157894735},{"$f":"(Monthly!CM132/Monthly!CM120)-1","v":-0.1178247734138973},{"$f":"(Monthly!CN132/Monthly!CN120)-1","v":2.8387512069520282E-2},{"$f":"(Monthly!CO132/Monthly!CO120)-1","v":1.783681214421251E-2},{"$f":"(Monthly!CP132/Monthly!CP120)-1","v":0.10674298887039924},{"$f":"(Monthly!CQ132/Monthly!CQ120)-1","v":9.8089235694278631E-3},{"$f":"(Monthly!CR132/Monthly!CR120)-1","v":0.63107153370621138},null,null,null,null,null,null,null,{"$f":"(Monthly!CZ132/Monthly!CZ120)-1","v":4.6783625730993927E-2},{"$f":"(Monthly!DA132/Monthly!DA120)-1","v":5.3221288515406195E-2},null,null,null,null,null,null,{"$f":"((Monthly!DH132-Monthly!DH120)*60)","v":-17.999999999999829},{"$f":"((Monthly!DI132-Monthly!DI120)*100)","v":39.999999999999858},"--",{"$f":"((Monthly!DK132-Monthly!DK120)*100)","v":-39.999999999999993},{"$f":"Monthly!DL132-Monthly!DL120","v":448},null,null,null,{"$f":"Monthly!DP132-Monthly!DP120","v":2485},null,null,null,{"$f":"(Monthly!DT132/Monthly!DT120)-1","v":-6.9988137603795963E-2},{"$f":"Monthly!DU132-Monthly!DU120","v":0.40000000000000036},"--","--","--","--","--","--","--","--",null,null,null,null,null,null,null,null,null,null,null,null,null,{"$f":"(Monthly!EQ132/Monthly!EQ120)-1","v":2.9411764705882248E-2},"--",{"$f":"(Monthly!ES132/Monthly!ES120)-1","v":3.0054644808743314E-2},null,null,null,null,null,{"$f":"((Monthly!EY132-Monthly!EY120)*100)","v":100},{"$f":"((Monthly!EZ132-Monthly!EZ120)*100)","v":190.00000000000003},{"$f":"((Monthly!FA132-Monthly!FA120)*100)","v":56.00000000000005},{"$f":"((Monthly!FB132-Monthly!FB120)*100)","v":50},"--","--",{"$f":"((Monthly!FE132-Monthly!FE120)*100)","v":113.99999999999997},{"$f":"((Monthly!FF132-Monthly!FF120)*100)","v":100},"--",{"$f":"((Monthly!FH132-Monthly!FH120)*100)","v":75},{"$f":"((Monthly!FI132-Monthly!FI120)*100)","v":63.000000000000078},null,null,null,null,null,null,"--","--","--","--","--","--","--","--","--",null,null,null,null,null,{"$f":"(Monthly!GD132/Monthly!GD120)-1","v":0},"--","--","--","--","--","--","--","--"]
["1969-05-01",null,null,null,{"$f":"(Monthly!E135/Monthly!E123)-1","v":{"$error":"#DIV/0!"}},{"$f":"(Monthly!F135/Monthly!F123)-1","v":{"$error":"#DIV/0!"}},{"$f":"(Monthly!G135/Monthly!G123)-1","v":{"$error":"#DIV/0!"}},{"$f":"(Monthly!H135/Monthly!H123)-1","v":{"$error":"#DIV/0!"}},null,null,null,null,null,null,null,null,null,null,null,null,null,null,null,{"$f":"(Monthly!X135-Monthly!X123)","v":-0.5},{"$f":"(Monthly!Y135/Monthly!Y123)-1","v":0.14580668655293882},null,null,null,null,null,null,null,null,null,null,null,null,null,{"$f":"(Monthly!AM135/Monthly!AM123)-1","v":4.0221845100659293E-2},"--","--","--",{"$f":"Monthly!AQ135-Monthly!AQ123","v":1.4000000000000057},"--","--",{"$f":"Monthly!AT135-Monthly!AT123","v":-0.30000000000000426},"--","--",{"$f":"Monthly!AW135-Monthly!AW123","v":-3.2999999999999972},{"$f":"Monthly!AX135-Monthly!AX123","v":1.3999999999999986},{"$f":"Monthly!AY135-Monthly!AY123","v":10.099999999999994},{"$f":"Monthly!AZ135-Monthly!AZ123","v":-3.7000000000000028},{"$f":"Monthly!BA135-Monthly!BA123","v":15.500000000000007},"--","--",null,null,null,null,null,null,null,null,null,"--","--",null,null,null,null,null,{"$f":"(Monthly!BT135/Monthly!BT123)-1","v":0.13623544114252906},null,null,null,{"$f":"(Monthly!BX135/Monthly!BX123)-1","v":0.12428977272727271},{"$f":"(Monthly!BY135/Monthly!BY123)-1","v":2.3901310717039381E-2},"--","--",{"$f":"Monthly!CB135-Monthly!CB123","v":1.1776391260563184},{"$f":"Monthly!CC135-Monthly!CC123","v":1.1076391260563163},"--","--",null,"--","--",null,{"$f":"(Monthly!CJ135/Monthly!CJ123)-1","v":1.3605442176870763E-2},{"$f":"(Monthly!CK135/Monthly!CK123)-1","v":9.3373910637709168E-2},{"$f":"(Monthly!CL135/Monthly!CL123)-1","v":-0.10704960835509125},{"$f":"(Monthly!CM135/Monthly!CM123)-1","v":5.5294117647058716E-2},{"$f":"(Monthly!CN135/Monthly!CN123)-1","v":2.4075421557151477E-2},{"$f":"(Monthly!CO135/Monthly!CO123)-1","v":1.0586011342154977E-2},{"$f":"(Monthly!CP135/Monthly!CP123)-1","v":0.1104197432436107},{"$f":"(Monthly!CQ135/Monthly!CQ123)-1","v":9.8322527837253482E-3},{"$f":"(Monthly!CR135/Monthly!CR123)-1","v":0.68597243889755588},null,null,null,null,null,null,null,{"$f":"(Monthly!CZ135/Monthly!CZ123)-1","v":5.507246376811592E-2},{"$f":"(Monthly!DA135/Monthly!DA123)-1","v":5.8333333333333348E-2},null,null,null,null,null,null,{"$f":"((Monthly!DH135-Monthly!DH123)*60)","v":-6.0000000000000853},{"$f":"((Monthly!DI135-Monthly!DI123)*100)","v":-10.000000000000142},"--",{"$f":"((Monthly!DK135-Monthly!DK123)*100)","v":-10.000000000000009},{"$f":"Monthly!DL135-Monthly!DL123","v":398},null,null,null,{"$f":"Monthly!DP135-Monthly!DP123","v":2675},null,null,null,{"$f":"(Monthly!DT135/Monthly!DT123)-1","v":-8.9447236180904555E-2},{"$f":"Monthly!DU135-Monthly!DU123","v":-0.20000000000000018},"--","--","--","--","--","--","--","--",null,null,null,null,null,null,null,null,null,null,null,null,null,{"$f":"(Monthly!EQ135/Monthly!EQ123)-1","v":3.8011695906432719E-2},"--",{"$f":"(Monthly!ES135/Monthly!ES123)-1","v":2.7027027027026973E-2},null,null,null,null,null,{"$f":"((Monthly!EY135-Monthly!EY123)*100)","v":100},{"$f":"((Monthly!EZ135-Monthly!EZ123)*100)","v":255.99999999999997},{"$f":"((Monthly!FA135-Monthly!FA123)*100)","v":52.000000000000043},{"$f":"((Monthly!FB135-Monthly!FB123)*100)","v":48.999999999999929},"--","--",{"$f":"((Monthly!FE135-Monthly!FE123)*100)","v":37.999999999999986},{"$f":"((Monthly!FF135-Monthly!FF123)*100)","v":28.000000000000025},"--",{"$f":"((Monthly!FH135-Monthly!FH123)*100)","v":50},{"$f":"((Monthly!FI135-Monthly!FI123)*100)","v":45.000000000000014},null,null,null,null,null,null,"--","--","--","--","--","--","--","--","--",null,null,null,null,null,{"$f":"(Monthly!GD135/Monthly!GD123)-1","v":9.1205211726384405E-2},"--","--","--","--","--","--","--","--"]
["1969-09-01",null,null,null,{"$f":"(Monthly!E139/Monthly!E127)-1","v":{"$error":"#DIV/0!"}},{"$f":"(Monthly!F139/Monthly!F127)-1","v":{"$error":"#DIV/0!"}},{"$f":"(Monthly!G139/Monthly!G127)-1","v":{"$error":"#DIV/0!"}},{"$f":"(Monthly!H139/Monthly!H127)-1","v":{"$error":"#DIV/0!"}},null,null,null,null,null,null,null,null,null,null,null,null,null,null,null,{"$f":"(Monthly!X139-Monthly!X127)","v":0.30000000000001137},{"$f":"(Monthly!Y139/Monthly!Y127)-1","v":0.13035411758045057},null,null,null,null,null,null,null,null,null,null,null,null,null,{"$f":"(Monthly!AM139/Monthly!AM127)-1","v":4.8954039972004093E-2},"--","--","--",{"$f":"Monthly!AQ139-Monthly!AQ127","v":2.3000000000000043},"--","--",{"$f":"Monthly!AT139-Monthly!AT127","v":3.1999999999999957},"--","--",{"$f":"Monthly!AW139-Monthly!AW127","v":7},{"$f":"Monthly!AX139-Monthly!AX127","v":-5},{"$f":"Monthly!AY139-Monthly!AY127","v":10.799999999999997},{"$f":"Monthly!AZ139-Monthly!AZ127","v":-2.2000000000000028},{"$f":"Monthly!BA139-Monthly!BA127","v":20.500000000000007},"--","--",null,null,null,null,null,null,null,null,null,"--","--",null,null,null,null,null,{"$f":"(Monthly!BT139/Monthly!BT127)-1","v":0.10757990998789535},null,null,null,{"$f":"(Monthly!BX139/Monthly!BX127)-1","v":-3.1491002570694038E-2},{"$f":"(Monthly!BY139/Monthly!BY127)-1","v":-0.13729508196721307},"--","--",{"$f":"Monthly!CB139-Monthly!CB127","v":1.5337199837199726},{"$f":"Monthly!CC139-Monthly!CC127","v":1.7437199837199735},"--","--",null,"--","--",null,{"$f":"(Monthly!CJ139/Monthly!CJ127)-1","v":-0.20958083832335328},{"$f":"(Monthly!CK139/Monthly!CK127)-1","v":9.5340117836100857E-2},{"$f":"(Monthly!CL139/Monthly!CL127)-1","v":0.20882352941176485},{"$f":"(Monthly!CM139/Monthly!CM127)-1","v":-0.10822510822510822},{"$f":"(Monthly!CN139/Monthly!CN127)-1","v":4.5190608432214008E-2},{"$f":"(Monthly!CO139/Monthly!CO127)-1","v":-7.1294559099436272E-3},{"$f":"(Monthly!CP139/Monthly!CP127)-1","v":0.10166569673910941},{"$f":"(Monthly!CQ139/Monthly!CQ127)-1","v":9.9206842537109541E-3},{"$f":"(Monthly!CR139/Monthly!CR127)-1","v":0.71712779257487624},null,null,null,null,null,null,null,{"$f":"(Monthly!CZ139/Monthly!CZ127)-1","v":5.6980056980056926E-2},{"$f":"(Monthly!DA139/Monthly!DA127)-1","v":5.9945504087193235E-2},null,null,null,null,null,null,{"$f":"((Monthly!DH139-Monthly!DH127)*60)","v":-12.000000000000171},{"$f":"((Monthly!DI139-Monthly!DI127)*100)","v":79.999999999999716},"--",{"$f":"((Monthly!DK139-Monthly!DK127)*100)","v":30.000000000000028},{"$f":"Monthly!DL139-Monthly!DL127","v":368},null,null,null,{"$f":"Monthly!DP139-Monthly!DP127","v":2430},null,null,null,{"$f":"(Monthly!DT139/Monthly!DT127)-1","v":1.963350785340312E-2},{"$f":"Monthly!DU139-Monthly!DU127","v":0.10000000000000053},"--","--","--","--","--","--","--","--",null,null,null,null,null,null,null,null,null,null,null,null,null,{"$f":"(Monthly!EQ139/Monthly!EQ127)-1","v":4.0697674418604501E-2},"--",{"$f":"(Monthly!ES139/Monthly!ES127)-1","v":3.2171581769437019E-2},null,null,null,null,null,{"$f":"((Monthly!EY139-Monthly!EY127)*100)","v":204.99999999999997},{"$f":"((Monthly!EZ139-Monthly!EZ127)*100)","v":337},{"$f":"((Monthly!FA139-Monthly!FA127)*100)","v":117},{"$f":"((Monthly!FB139-Monthly!FB127)*100)","v":126.00000000000007},"--","--",{"$f":"((Monthly!FE139-Monthly!FE127)*100)","v":189.99999999999994},{"$f":"((Monthly!FF139-Monthly!FF127)*100)","v":237},"--",{"$f":"((Monthly!FH139-Monthly!FH127)*100)","v":209},{"$f":"((Monthly!FI139-Monthly!FI127)*100)","v":170.00000000000003},null,null,null,null,null,null,"--","--","--","--","--","--","--","--","--",null,null,null,null,null,{"$f":"(Monthly!GD139/Monthly!GD127)-1","v":9.1205211726384405E-2},"--","--","--","--","--","--","--","--"]
["1970-03-01",null,null,null,{"$f":"(Monthly!E145/Monthly!E133)-1","v":{"$error":"#DIV/0!"}},{"$f":"(Monthly!F145/Monthly!F133)-1","v":{"$error":"#DIV/0!"}},{"$f":"(Monthly!G145/Monthly!G133)-1","v":{"$error":"#DIV/0!"}},{"$f":"(Monthly!H145/Monthly!H133)-1","v":{"$error":"#DIV/0!"}},null,null,null,null,null,null,null,null,null,null,null,null,null,null,null,{"$f":"(Monthly!X145-Monthly!X133)","v":-5.5999999999999943},{"$f":"(Monthly!Y145/Monthly!Y133)-1","v":6.2218921525257986E-2},null,null,null,null,null,null,null,null,null,null,null,null,null,{"$f":"(Monthly!AM145/Monthly!AM133)-1","v":-2.2667448446213267E-2},"--","--","--",{"$f":"Monthly!AQ145-Monthly!AQ133","v":-10.200000000000003},"--","--",{"$f":"Monthly!AT145-Monthly!AT133","v":-9},"--","--",{"$f":"Monthly!AW145-Monthly!AW133","v":3.7999999999999972},{"$f":"Monthly!AX145-Monthly!AX133","v":-14.099999999999994},{"$f":"Monthly!AY145-Monthly!AY133","v":-11.600000000000009},{"$f":"Monthly!AZ145-Monthly!AZ133","v":-11.5},{"$f":"Monthly!BA145-Monthly!BA133","v":-11.200000000000003},"--","--",null,null,null,null,null,null,null,null,null,"--","--",null,null,null,null,null,{"$f":"(Monthly!BT145/Monthly!BT133)-1","v":6.4395202441217769E-2},null,null,null,{"$f":"(Monthly!BX145/Monthly!BX133)-1","v":-0.1550288276745676},{"$f":"(Monthly!BY145/Monthly!BY133)-1","v":-0.2127955493741307},"--","--",{"$f":"Monthly!CB145-Monthly!CB133","v":1.8463694144060128},{"$f":"Monthly!CC145-Monthly!CC133","v":2.5463694144060121},"--","--",null,"--","--",null,{"$f":"(Monthly!CJ145/Monthly!CJ133)-1","v":-0.17932489451476796},{"$f":"(Monthly!CK145/Monthly!CK133)-1","v":8.8583183337618943E-2},{"$f":"(Monthly!CL145/Monthly!CL133)-1","v":0.36077844311377261},{"$f":"(Monthly!CM145/Monthly!CM133)-1","v":-0.13157894736842102},{"$f":"(Monthly!CN145/Monthly!CN133)-1","v":5.2745055151079523E-2},{"$f":"(Monthly!CO145/Monthly!CO133)-1","v":-5.3551506136110039E-2},{"$f":"(Monthly!CP145/Monthly!CP133)-1","v":6.5169826831020128E-2},{"$f":"(Monthly!CQ145/Monthly!CQ133)-1","v":1.0558203768877839E-2},{"$f":"(Monthly!CR145/Monthly!CR133)-1","v":0.69350435498548335},null,null,null,null,null,null,null,{"$f":"(Monthly!CZ145/Monthly!CZ133)-1","v":6.0941828254847508E-2},{"$f":"(Monthly!DA145/Monthly!DA133)-1","v":6.0846560846560926E-2},null,null,null,null,null,null,{"$f":"((Monthly!DH145-Monthly!DH133)*60)","v":-23.999999999999915},{"$f":"((Monthly!DI145-Monthly!DI133)*100)","v":70.000000000000284},"--",{"$f":"((Monthly!DK145-Monthly!DK133)*100)","v":100.00000000000004},{"$f":"Monthly!DL145-Monthly!DL133","v":-198},null,null,null,{"$f":"Monthly!DP145-Monthly!DP133","v":1547},null,null,null,{"$f":"(Monthly!DT145/Monthly!DT133)-1","v":0.39153439153439162},{"$f":"Monthly!DU145-Monthly!DU133","v":0.59999999999999964},"--","--","--","--","--","--","--","--",null,null,null,null,null,null,null,null,null,null,null,null,null,{"$f":"(Monthly!EQ145/Monthly!EQ133)-1","v":4.2613636363636465E-2},"--",{"$f":"(Monthly!ES145/Monthly!ES133)-1","v":4.7619047619047672E-2},null,null,null,null,null,{"$f":"((Monthly!EY145-Monthly!EY133)*100)","v":115.00000000000003},{"$f":"((Monthly!EZ145-Monthly!EZ133)*100)","v":96.999999999999972},{"$f":"((Monthly!FA145-Monthly!FA133)*100)","v":99.000000000000028},{"$f":"((Monthly!FB145-Monthly!FB133)*100)","v":112.0000000000001},"--","--",{"$f":"((Monthly!FE145-Monthly!FE133)*100)","v":61.000000000000028},{"$f":"((Monthly!FF145-Monthly!FF133)*100)","v":62.999999999999986},"--",{"$f":"((Monthly!FH145-Monthly!FH133)*100)","v":79.999999999999986},{"$f":"((Monthly!FI145-Monthly!FI133)*100)","v":77.000000000000043},null,null,null,null,null,null,"--","--","--","--","--","--","--","--","--",null,null,null,null,null,{"$f":"(Monthly!GD145/Monthly!GD133)-1","v":3.0769230769230882E-2},"--","--","--","--","--","--","--","--"]
["1970-08-01",null,null,null,{"$f":"(Monthly!E150/Monthly!E138)-1","v":{"$error":"#DIV/0!"}},{"$f":"(Monthly!F150/Monthly!F138)-1","v":{"$error":"#DIV/0!"}},{"$f":"(Monthly!G150/Monthly!G138)-1","v":{"$error":"#DIV/0!"}},{"$f":"(Monthly!H150/Monthly!H138)-1","v":{"$error":"#DIV/0!"}},null,null,null,null,null,null,null,null,null,null,null,null,null,null,null,{"$f":"(Monthly!X150-Monthly!X138)","v":-6.7000000000000028},{"$f":"(Monthly!Y150/Monthly!Y138)-1","v":5.0664671313670695E-2},null,null,null,null,null,null,null,null,null,null,null,null,null,{"$f":"(Monthly!AM150/Monthly!AM138)-1","v":-3.8298093125071042E-2},"--","--","--",{"$f":"Monthly!AQ150-Monthly!AQ138","v":-7.5},"--","--",{"$f":"Monthly!AT150-Monthly!AT138","v":-11.100000000000001},"--","--",{"$f":"Monthly!AW150-Monthly!AW138","v":-7.1000000000000014},{"$f":"Monthly!AX150-Monthly!AX138","v":0.29999999999999716},{"$f":"Monthly!AY150-Monthly!AY138","v":-15.800000000000011},{"$f":"Monthly!AZ150-Monthly!AZ138","v":-4.3999999999999986},{"$f":"Monthly!BA150-Monthly!BA138","v":-24.199999999999996},"--","--",null,null,null,null,null,null,null,null,null,"--","--",null,null,null,null,null,{"$f":"(Monthly!BT150/Monthly!BT138)-1","v":4.8658590872254326E-2},null,null,null,{"$f":"(Monthly!BX150/Monthly!BX138)-1","v":3.0191458026509466E-2},{"$f":"(Monthly!BY150/Monthly!BY138)-1","v":5.8466211085800968E-2},"--","--",{"$f":"Monthly!CB150-Monthly!CB138","v":1.8624854819976768},{"$f":"Monthly!CC150-Monthly!CC138","v":2.9824854819976778},"--","--",null,"--","--",null,{"$f":"(Monthly!CJ150/Monthly!CJ138)-1","v":0.22037914691943139},{"$f":"(Monthly!CK150/Monthly!CK138)-1","v":7.504921259842523E-2},{"$f":"(Monthly!CL150/Monthly!CL138)-1","v":0.2496924969249692},{"$f":"(Monthly!CM150/Monthly!CM138)-1","v":0.11946308724832222},{"$f":"(Monthly!CN150/Monthly!CN138)-1","v":4.486190519405886E-2},{"$f":"(Monthly!CO150/Monthly!CO138)-1","v":-4.3494704992435573E-2},{"$f":"(Monthly!CP150/Monthly!CP138)-1","v":4.4747276875531039E-2},{"$f":"(Monthly!CQ150/Monthly!CQ138)-1","v":1.1918551634734431E-2},{"$f":"(Monthly!CR150/Monthly!CR138)-1","v":0.51554784465501124},null,null,null,null,null,null,null,{"$f":"(Monthly!CZ150/Monthly!CZ138)-1","v":5.6910569105691033E-2},{"$f":"(Monthly!DA150/Monthly!DA138)-1","v":6.201550387596888E-2},null,null,null,null,null,null,{"$f":"((Monthly!DH150-Monthly!DH138)*60)","v":-30},{"$f":"((Monthly!DI150-Monthly!DI138)*100)","v":0},"--",{"$f":"((Monthly!DK150-Monthly!DK138)*100)","v":159.99999999999997},{"$f":"Monthly!DL150-Monthly!DL138","v":-988},null,null,null,{"$f":"Monthly!DP150-Monthly!DP138","v":-73},null,null,null,{"$f":"(Monthly!DT150/Monthly!DT138)-1","v":0.46482412060301503},{"$f":"Monthly!DU150-Monthly!DU138","v":1},"--","--","--","--","--","--","--","--",null,null,null,null,null,null,null,null,null,null,null,null,null,{"$f":"(Monthly!EQ150/Monthly!EQ138)-1","v":3.3613445378151141E-2},"--",{"$f":"(Monthly!ES150/Monthly!ES138)-1","v":4.6875000000000222E-2},null,null,null,null,null,{"$f":"((Monthly!EY150-Monthly!EY138)*100)","v":-50},{"$f":"((Monthly!EZ150-Monthly!EZ138)*100)","v":-257.99999999999994},{"$f":"((Monthly!FA150-Monthly!FA138)*100)","v":116.0000000000001},{"$f":"((Monthly!FB150-Monthly!FB138)*100)","v":157.99999999999991},"--","--",{"$f":"((Monthly!FE150-Monthly!FE138)*100)","v":-57.000000000000028},{"$f":"((Monthly!FF150-Monthly!FF138)*100)","v":-55.999999999999957},"--",{"$f":"((Monthly!FH150-Monthly!FH138)*100)","v":54},{"$f":"((Monthly!FI150-Monthly!FI138)*100)","v":83.999999999999986},null,null,null,null,null,null,"--","--","--","--","--","--","--","--","--",null,null,null,null,null,{"$f":"(Monthly!GD150/Monthly!GD138)-1","v":-1.1940298507462699E-2},"--","--","--","--","--","--","--","--"]
["1971-01-01",null,null,null,{"$f":"(Monthly!E155/Monthly!E143)-1","v":{"$error":"#DIV/0!"}},{"$f":"(Monthly!F155/Monthly!F143)-1","v":{"$error":"#DIV/0!"}},{"$f":"(Monthly!G155/Monthly!G143)-1","v":{"$error":"#DIV/0!"}},{"$f":"(Monthly!H155/Monthly!H143)-1","v":{"$error":"#DIV/0!"}},null,null,null,null,null,null,null,null,null,null,null,null,null,null,null,{"$f":"(Monthly!X155-Monthly!X143)","v":-3.8999999999999915},{"$f":"(Monthly!Y155/Monthly!Y143)-1","v":4.9389498757736572E-2},null,null,null,null,null,null,null,null,null,null,null,null,null,{"$f":"(Monthly!AM155/Monthly!AM143)-1","v":-1.1040137383846793E-2},"--","--","--",{"$f":"Monthly!AQ155-Monthly!AQ143","v":-0.80000000000000426},"--","--",{"$f":"Monthly!AT155-Monthly!AT143","v":-6.2999999999999972},"--","--",{"$f":"Monthly!AW155-Monthly!AW143","v":-2.8000000000000043},{"$f":"Monthly!AX155-Monthly!AX143","v":9.6000000000000014},{"$f":"Monthly!AY155-Monthly!AY143","v":-15.5},{"$f":"Monthly!AZ155-Monthly!AZ143","v":2.3999999999999986},{"$f":"Monthly!BA155-Monthly!BA143","v":-18.100000000000001},"--","--",null,null,null,null,null,null,null,null,null,"--","--",null,null,null,null,null,{"$f":"(Monthly!BT155/Monthly!BT143)-1","v":4.3050205342077597E-2},null,null,null,{"$f":"(Monthly!BX155/Monthly!BX143)-1","v":0.68479262672811059},{"$f":"(Monthly!BY155/Monthly!BY143)-1","v":0.54708097928436916},"--","--",{"$f":"Monthly!CB155-Monthly!CB143","v":1.1145798688868975},{"$f":"Monthly!CC155-Monthly!CC143","v":2.5145798688869014},"--","--",null,"--","--",null,{"$f":"(Monthly!CJ155/Monthly!CJ143)-1","v":0.34056399132321036},{"$f":"(Monthly!CK155/Monthly!CK143)-1","v":7.3374760994263877E-2},{"$f":"(Monthly!CL155/Monthly!CL143)-1","v":0.22637106184364053},{"$f":"(Monthly!CM155/Monthly!CM143)-1","v":0.68456375838926165},{"$f":"(Monthly!CN155/Monthly!CN143)-1","v":4.6544260337363808E-2},{"$f":"(Monthly!CO155/Monthly!CO143)-1","v":3.4259611724400951E-3},{"$f":"(Monthly!CP155/Monthly!CP143)-1","v":4.9772697041540415E-2},{"$f":"(Monthly!CQ155/Monthly!CQ143)-1","v":1.2837933960922143E-2},{"$f":"(Monthly!CR155/Monthly!CR143)-1","v":0.94113505902740169},null,null,null,null,null,null,null,{"$f":"(Monthly!CZ155/Monthly!CZ143)-1","v":5.2770448548812743E-2},{"$f":"(Monthly!DA155/Monthly!DA143)-1","v":6.3131313131313149E-2},null,null,null,null,null,null,{"$f":"((Monthly!DH155-Monthly!DH143)*60)","v":-30},{"$f":"((Monthly!DI155-Monthly!DI143)*100)","v":0},"--",{"$f":"((Monthly!DK155-Monthly!DK143)*100)","v":200.00000000000006},{"$f":"Monthly!DL155-Monthly!DL143","v":-1144},null,null,null,{"$f":"Monthly!DP155-Monthly!DP143","v":-310},null,null,null,{"$f":"(Monthly!DT155/Monthly!DT143)-1","v":0.2068273092369477},{"$f":"Monthly!DU155-Monthly!DU143","v":1.6000000000000005},"--","--","--","--","--","--","--","--",null,null,null,null,null,null,null,null,null,null,null,null,null,{"$f":"(Monthly!EQ155/Monthly!EQ143)-1","v":2.1917808219177992E-2},"--",{"$f":"(Monthly!ES155/Monthly!ES143)-1","v":5.0890585241730291E-2},null,null,null,null,null,{"$f":"((Monthly!EY155-Monthly!EY143)*100)","v":-221},{"$f":"((Monthly!EZ155-Monthly!EZ143)*100)","v":-484.00000000000006},{"$f":"((Monthly!FA155-Monthly!FA143)*100)","v":-54.999999999999986},{"$f":"((Monthly!FB155-Monthly!FB143)*100)","v":-11.999999999999922},"--","--",{"$f":"((Monthly!FE155-Monthly!FE143)*100)","v":-343},{"$f":"((Monthly!FF155-Monthly!FF143)*100)","v":-352.99999999999994},"--",{"$f":"((Monthly!FH155-Monthly!FH143)*100)","v":-228.00000000000003},{"$f":"((Monthly!FI155-Monthly!FI143)*100)","v":-154.99999999999997},null,null,null,null,null,null,"--","--","--","--","--","--","--","--","--",null,null,null,null,null,{"$f":"(Monthly!GD155/Monthly!GD143)-1","v":6.2686567164179197E-2},"--","--","--","--","--","--","--","--"]
["1971-03-01",null,null,null,{"$f":"(Monthly!E157/Monthly!E145)-1","v":{"$error":"#DIV/0!"}},{"$f":"(Monthly!F157/Monthly!F145)-1","v":{"$error":"#DIV/0!"}},{"$f":"(Monthly!G157/Monthly!G145)-1","v":{"$error":"#DIV/0!"}},{"$f":"(Monthly!H157/Monthly!H145)-1","v":{"$error":"#DIV/0!"}},null,null,null,null,null,null,null,null,null,null,null,null,null,null,null,{"$f":"(Monthly!X157-Monthly!X145)","v":-3.8000000000000114},{"$f":"(Monthly!Y157/Monthly!Y145)-1","v":6.23728807127788E-2},null,null,null,null,null,null,null,null,null,null,null,null,null,{"$f":"(Monthly!AM157/Monthly!AM145)-1","v":-1.2062495213295499E-2},"--","--","--",{"$f":"Monthly!AQ157-Monthly!AQ145","v":4.3000000000000043},"--","--",{"$f":"Monthly!AT157-Monthly!AT145","v":-0.5},"--","--",{"$f":"Monthly!AW157-Monthly!AW145","v":-0.19999999999999574},{"$f":"Monthly!AX157-Monthly!AX145","v":11},{"$f":"Monthly!AY157-Monthly!AY145","v":-0.79999999999999716},{"$f":"Monthly!AZ157-Monthly!AZ145","v":7.1000000000000014},{"$f":"Monthly!BA157-Monthly!BA145","v":-4.2999999999999972},"--","--",null,null,null,null,null,null,null,null,null,"--","--",null,null,null,null,null,{"$f":"(Monthly!BT157/Monthly!BT145)-1","v":5.2786216062274516E-2},null,null,null,{"$f":"(Monthly!BX157/Monthly!BX145)-1","v":0.44806671721000768},{"$f":"(Monthly!BY157/Monthly!BY145)-1","v":0.55388692579505294},"--","--",{"$f":"Monthly!CB157-Monthly!CB145","v":-5.5540527834610387E-2},{"$f":"Monthly!CC157-Monthly!CC145","v":1.0644594721653888},"--","--",null,"--","--",null,{"$f":"(Monthly!CJ157/Monthly!CJ145)-1","v":0.75064267352185099},{"$f":"(Monthly!CK157/Monthly!CK145)-1","v":7.2634935632455377E-2},{"$f":"(Monthly!CL157/Monthly!CL145)-1","v":0.18151815181518161},{"$f":"(Monthly!CM157/Monthly!CM145)-1","v":0.48484848484848486},{"$f":"(Monthly!CN157/Monthly!CN145)-1","v":4.4997180255854641E-2},{"$f":"(Monthly!CO157/Monthly!CO145)-1","v":5.8939096267190516E-2},{"$f":"(Monthly!CP157/Monthly!CP145)-1","v":5.8125194886186504E-2},{"$f":"(Monthly!CQ157/Monthly!CQ145)-1","v":1.322028252904639E-2},{"$f":"(Monthly!CR157/Monthly!CR145)-1","v":0.86730124612983284},null,null,null,null,null,null,null,{"$f":"(Monthly!CZ157/Monthly!CZ145)-1","v":4.4386422976501416E-2},{"$f":"(Monthly!DA157/Monthly!DA145)-1","v":5.2369077306733125E-2},null,null,null,null,null,null,{"$f":"((Monthly!DH157-Monthly!DH145)*60)","v":-30},{"$f":"((Monthly!DI157-Monthly!DI145)*100)","v":-60.000000000000142},"--",{"$f":"((Monthly!DK157-Monthly!DK145)*100)","v":159.99999999999997},{"$f":"Monthly!DL157-Monthly!DL145","v":-1206},null,null,null,{"$f":"Monthly!DP157-Monthly!DP145","v":-593},null,null,null,{"$f":"(Monthly!DT157/Monthly!DT145)-1","v":0.11406844106463887},{"$f":"Monthly!DU157-Monthly!DU145","v":1.8000000000000007},"--","--","--","--","--","--","--","--",null,null,null,null,null,null,null,null,null,null,null,null,null,{"$f":"(Monthly!EQ157/Monthly!EQ145)-1","v":2.9972752043596618E-2},"--",{"$f":"(Monthly!ES157/Monthly!ES145)-1","v":4.7979797979798011E-2},null,null,null,null,null,{"$f":"((Monthly!EY157-Monthly!EY145)*100)","v":-295},{"$f":"((Monthly!EZ157-Monthly!EZ145)*100)","v":-405},{"$f":"((Monthly!FA157-Monthly!FA145)*100)","v":-62.999999999999986},{"$f":"((Monthly!FB157-Monthly!FB145)*100)","v":-16.999999999999993},"--","--",{"$f":"((Monthly!FE157-Monthly!FE145)*100)","v":-325},{"$f":"((Monthly!FF157-Monthly!FF145)*100)","v":-328},"--",{"$f":"((Monthly!FH157-Monthly!FH145)*100)","v":-221},{"$f":"((Monthly!FI157-Monthly!FI145)*100)","v":-137},null,null,null,null,null,null,"--","--","--","--","--","--","--","--","--",null,null,null,null,null,{"$f":"(Monthly!GD157/Monthly!GD145)-1","v":6.2686567164179197E-2},"--","--","--","--","--","--","--","--"]
["1971-11-01",null,null,null,{"$f":"(Monthly!E165/Monthly!E153)-1","v":{"$error":"#DIV/0!"}},{"$f":"(Monthly!F165/Monthly!F153)-1","v":{"$error":"#DIV/0!"}},{"$f":"(Monthly!G165/Monthly!G153)-1","v":{"$error":"#DIV/0!"}},{"$f":"(Monthly!H165/Monthly!H153)-1","v":{"$error":"#DIV/0!"}},null,null,null,null,null,null,null,null,null,null,null,null,null,null,null,{"$f":"(Monthly!X165-Monthly!X153)","v":2.4000000000000057},{"$f":"(Monthly!Y165/Monthly!Y153)-1","v":6.9308296664197799E-2},null,null,null,null,null,null,null,null,null,null,null,null,null,{"$f":"(Monthly!AM165/Monthly!AM153)-1","v":6.3229349806392054E-2},"--","--","--",{"$f":"Monthly!AQ165-Monthly!AQ153","v":12.599999999999994},"--","--",{"$f":"Monthly!AT165-Monthly!AT153","v":15.5},"--","--",{"$f":"Monthly!AW165-Monthly!AW153","v":-4.6999999999999957},{"$f":"Monthly!AX165-Monthly!AX153","v":12.100000000000001},{"$f":"Monthly!AY165-Monthly!AY153","v":-14.199999999999996},{"$f":"Monthly!AZ165-Monthly!AZ153","v":17.600000000000001},{"$f":"Monthly!BA165-Monthly!BA153","v":13.100000000000001},"--","--",null,null,null,null,null,null,null,null,null,"--","--",null,null,null,null,null,{"$f":"(Monthly!BT165/Monthly!BT153)-1","v":0.11758212958823444},null,null,null,{"$f":"(Monthly!BX165/Monthly!BX153)-1","v":0.32483302975106243},{"$f":"(Monthly!BY165/Monthly!BY153)-1","v":0.38415446071904125},"--","--",{"$f":"Monthly!CB165-Monthly!CB153","v":-1.9646464646464796},{"$f":"Monthly!CC165-Monthly!CC153","v":-1.8946464646464811},"--","--",null,"--","--",null,{"$f":"(Monthly!CJ165/Monthly!CJ153)-1","v":0.2456140350877194},{"$f":"(Monthly!CK165/Monthly!CK153)-1","v":8.6557005104934692E-2},{"$f":"(Monthly!CL165/Monthly!CL153)-1","v":5.1923076923076961E-2},{"$f":"(Monthly!CM165/Monthly!CM153)-1","v":0.32289416846652275},{"$f":"(Monthly!CN165/Monthly!CN153)-1","v":5.3402013852511532E-2},{"$f":"(Monthly!CO165/Monthly!CO153)-1","v":0.12132921174652234},{"$f":"(Monthly!CP165/Monthly!CP153)-1","v":0.11335291428466587},{"$f":"(Monthly!CQ165/Monthly!CQ153)-1","v":1.2284976507591416E-2},{"$f":"(Monthly!CR165/Monthly!CR153)-1","v":0.68990844354018299},null,null,null,null,null,null,null,{"$f":"(Monthly!CZ165/Monthly!CZ153)-1","v":3.5353535353535248E-2},{"$f":"(Monthly!DA165/Monthly!DA153)-1","v":3.3492822966507241E-2},null,null,null,null,null,null,{"$f":"((Monthly!DH165-Monthly!DH153)*60)","v":11.999999999999744},{"$f":"((Monthly!DI165-Monthly!DI153)*100)","v":0},"--",{"$f":"((Monthly!DK165-Monthly!DK153)*100)","v":9.9999999999999645},{"$f":"Monthly!DL165-Monthly!DL153","v":142},null,null,null,{"$f":"Monthly!DP165-Monthly!DP153","v":1437},null,null,null,{"$f":"(Monthly!DT165/Monthly!DT153)-1","v":-0.11760184473481938},{"$f":"Monthly!DU165-Monthly!DU153","v":0.80000000000000071},"--","--","--","--","--","--","--","--",null,null,null,null,null,null,null,null,null,null,null,null,null,{"$f":"(Monthly!EQ165/Monthly!EQ153)-1","v":3.2345013477088846E-2},"--",{"$f":"(Monthly!ES165/Monthly!ES153)-1","v":1.9512195121951237E-2},null,null,null,null,null,{"$f":"((Monthly!EY165-Monthly!EY153)*100)","v":-175},{"$f":"((Monthly!EZ165-Monthly!EZ153)*100)","v":-68.999999999999943},{"$f":"((Monthly!FA165-Monthly!FA153)*100)","v":-79.000000000000085},{"$f":"((Monthly!FB165-Monthly!FB153)*100)","v":-100},"--","--",{"$f":"((Monthly!FE165-Monthly!FE153)*100)","v":-106.00000000000006},{"$f":"((Monthly!FF165-Monthly!FF153)*100)","v":-83.999999999999986},"--",{"$f":"((Monthly!FH165-Monthly!FH153)*100)","v":-68.999999999999943},{"$f":"((Monthly!FI165-Monthly!FI153)*100)","v":-103.00000000000003},null,null,null,null,null,null,"--","--","--","--","--","--","--","--","--",null,null,null,null,null,{"$f":"(Monthly!GD165/Monthly!GD153)-1","v":7.5528700906344337E-2},"--","--","--","--","--","--","--","--"]
["1972-02-01",null,null,null,{"$f":"(Monthly!E168/Monthly!E156)-1","v":{"$error":"#DIV/0!"}},{"$f":"(Monthly!F168/Monthly!F156)-1","v":{"$error":"#DIV/0!"}},{"$f":"(Monthly!G168/Monthly!G156)-1","v":{"$error":"#DIV/0!"}},{"$f":"(Monthly!H168/Monthly!H156)-1","v":{"$error":"#DIV/0!"}},null,null,null,null,null,null,null,null,null,null,null,null,null,null,null,{"$f":"(Monthly!X168-Monthly!X156)","v":3.7999999999999972},{"$f":"(Monthly!Y168/Monthly!Y156)-1","v":6.2586297344566555E-2},null,null,null,null,null,null,null,null,null,null,null,null,null,{"$f":"(Monthly!AM168/Monthly!AM156)-1","v":8.0564267368774534E-2},"--","--","--",{"$f":"Monthly!AQ168-Monthly!AQ156","v":5.8000000000000043},"--","--",{"$f":"Monthly!AT168-Monthly!AT156","v":6.6999999999999957},"--","--",{"$f":"Monthly!AW168-Monthly!AW156","v":3.7000000000000028},{"$f":"Monthly!AX168-Monthly!AX156","v":3.2000000000000028},{"$f":"Monthly!AY168-Monthly!AY156","v":9.5},{"$f":"Monthly!AZ168-Monthly!AZ156","v":7.7000000000000028},{"$f":"Monthly!BA168-Monthly!BA156","v":8.3999999999999986},"--","--",null,null,null,null,null,null,null,null,null,"--","--",null,null,null,null,null,{"$f":"(Monthly!BT168/Monthly!BT156)-1","v":0.13751843512353812},null,null,null,{"$f":"(Monthly!BX168/Monthly!BX156)-1","v":0.37277426766226296},{"$f":"(Monthly!BY168/Monthly!BY156)-1","v":0.36586901763224189},"--","--",{"$f":"Monthly!CB168-Monthly!CB156","v":-1.1650109525782835},{"$f":"Monthly!CC168-Monthly!CC156","v":-1.305010952578284},"--","--",null,"--","--",null,{"$f":"(Monthly!CJ168/Monthly!CJ156)-1","v":0.15048543689320382},{"$f":"(Monthly!CK168/Monthly!CK156)-1","v":9.4172390870817635E-2},{"$f":"(Monthly!CL168/Monthly!CL156)-1","v":4.4719314938154175E-2},{"$f":"(Monthly!CM168/Monthly!CM156)-1","v":0.23785926660059475},{"$f":"(Monthly!CN168/Monthly!CN156)-1","v":3.8176638176638189E-2},{"$f":"(Monthly!CO168/Monthly!CO156)-1","v":0.11649755730928213},{"$f":"(Monthly!CP168/Monthly!CP156)-1","v":0.10369302075327824},{"$f":"(Monthly!CQ168/Monthly!CQ156)-1","v":1.1578957555112623E-2},{"$f":"(Monthly!CR168/Monthly!CR156)-1","v":0.11902556374345008},null,null,null,null,null,null,null,{"$f":"(Monthly!CZ168/Monthly!CZ156)-1","v":3.7593984962406068E-2},{"$f":"(Monthly!DA168/Monthly!DA156)-1","v":3.3175355450236976E-2},null,null,null,null,null,null,{"$f":"((Monthly!DH168-Monthly!DH156)*60)","v":11.999999999999744},{"$f":"((Monthly!DI168-Monthly!DI156)*100)","v":10.000000000000142},"--",{"$f":"((Monthly!DK168-Monthly!DK156)*100)","v":-20.000000000000018},{"$f":"Monthly!DL168-Monthly!DL156","v":145},null,null,null,{"$f":"Monthly!DP168-Monthly!DP156","v":1846},null,null,null,{"$f":"(Monthly!DT168/Monthly!DT156)-1","v":-6.0632688927943712E-2},{"$f":"Monthly!DU168-Monthly!DU156","v":0.29999999999999982},"--","--","--","--","--","--","--","--",null,null,null,null,null,null,null,null,null,null,null,null,null,{"$f":"(Monthly!EQ168/Monthly!EQ156)-1","v":3.9787798408488007E-2},"--",{"$f":"(Monthly!ES168/Monthly!ES156)-1","v":2.6570048309178862E-2},null,null,null,null,null,{"$f":"((Monthly!EY168-Monthly!EY156)*100)","v":-112.99999999999999},{"$f":"((Monthly!EZ168-Monthly!EZ156)*100)","v":-43.000000000000014},{"$f":"((Monthly!FA168-Monthly!FA156)*100)","v":18.99999999999995},{"$f":"((Monthly!FB168-Monthly!FB156)*100)","v":-16.000000000000014},"--","--",{"$f":"((Monthly!FE168-Monthly!FE156)*100)","v":-50},{"$f":"((Monthly!FF168-Monthly!FF156)*100)","v":37.999999999999943},"--",{"$f":"((Monthly!FH168-Monthly!FH156)*100)","v":13.000000000000078},{"$f":"((Monthly!FI168-Monthly!FI156)*100)","v":-3.0000000000000249},null,null,null,null,null,null,{"$f":"(Monthly!FP168/Monthly!FP156)-1","v":-2.7791563275435527E-3},"--","--","--","--","--","--","--","--",null,null,null,null,null,{"$f":"(Monthly!GD168/Monthly!GD156)-1","v":0},"--","--","--","--","--","--","--","--"]
["1972-08-01",null,null,null,{"$f":"(Monthly!E174/Monthly!E162)-1","v":{"$error":"#DIV/0!"}},{"$f":"(Monthly!F174/Monthly!F162)-1","v":{"$error":"#DIV/0!"}},{"$f":"(Monthly!G174/Monthly!G162)-1","v":{"$error":"#DIV/0!"}},{"$f":"(Monthly!H174/Monthly!H162)-1","v":{"$error":"#DIV/0!"}},null,null,null,null,null,null,null,null,null,null,null,null,null,null,null,{"$f":"(Monthly!X174-Monthly!X162)","v":6.2000000000000028},{"$f":"(Monthly!Y174/Monthly!Y162)-1","v":8.9281484644736064E-2},null,null,null,null,null,null,null,null,null,null,null,null,null,{"$f":"(Monthly!AM174/Monthly!AM162)-1","v":0.11097185124306552},"--","--","--",{"$f":"Monthly!AQ174-Monthly!AQ162","v":8.1000000000000014},"--","--",{"$f":"Monthly!AT174-Monthly!AT162","v":8.7000000000000028},"--","--",{"$f":"Monthly!AW174-Monthly!AW162","v":4.6000000000000014},{"$f":"Monthly!AX174-Monthly!AX162","v":6.6999999999999957},{"$f":"Monthly!AY174-Monthly!AY162","v":-2.3000000000000114},{"$f":"Monthly!AZ174-Monthly!AZ162","v":7.6000000000000014},{"$f":"Monthly!BA174-Monthly!BA162","v":13.199999999999996},"--","--",null,null,null,null,null,null,null,null,null,"--","--",null,null,null,null,null,{"$f":"(Monthly!BT174/Monthly!BT162)-1","v":0.16446559054262067},null,null,null,{"$f":"(Monthly!BX174/Monthly!BX162)-1","v":0.10379981464318822},{"$f":"(Monthly!BY174/Monthly!BY162)-1","v":0.12924151696606789},"--","--",{"$f":"Monthly!CB174-Monthly!CB162","v":-1.9105714105714391},{"$f":"Monthly!CC174-Monthly!CC162","v":-2.260571410571437},"--","--",null,"--","--",null,{"$f":"(Monthly!CJ174/Monthly!CJ162)-1","v":0.17298937784522006},{"$f":"(Monthly!CK174/Monthly!CK162)-1","v":9.4519966015292889E-2},{"$f":"(Monthly!CL174/Monthly!CL162)-1","v":-6.0632688927943712E-2},{"$f":"(Monthly!CM174/Monthly!CM162)-1","v":0.14565587734241903},{"$f":"(Monthly!CN174/Monthly!CN162)-1","v":4.735477033773039E-2},{"$f":"(Monthly!CO174/Monthly!CO162)-1","v":9.8094565984474302E-2},{"$f":"(Monthly!CP174/Monthly!CP162)-1","v":0.12521796136128227},{"$f":"(Monthly!CQ174/Monthly!CQ162)-1","v":1.0554115094693506E-2},{"$f":"(Monthly!CR174/Monthly!CR162)-1","v":0.13529236276849632},null,null,null,null,null,null,null,{"$f":"(Monthly!CZ174/Monthly!CZ162)-1","v":2.9484029484029284E-2},{"$f":"(Monthly!DA174/Monthly!DA162)-1","v":3.0232558139534849E-2},null,null,null,null,null,null,{"$f":"((Monthly!DH174-Monthly!DH162)*60)","v":5.9999999999996589},{"$f":"((Monthly!DI174-Monthly!DI162)*100)","v":39.999999999999858},"--",{"$f":"((Monthly!DK174-Monthly!DK162)*100)","v":-50},{"$f":"Monthly!DL174-Monthly!DL162","v":626},null,null,null,{"$f":"Monthly!DP174-Monthly!DP162","v":2768},null,null,null,{"$f":"(Monthly!DT174/Monthly!DT162)-1","v":-0.22059953881629513},{"$f":"Monthly!DU174-Monthly!DU162","v":-0.40000000000000036},"--","--","--","--","--","--","--","--",null,null,null,null,null,null,null,null,null,null,null,null,null,{"$f":"(Monthly!EQ174/Monthly!EQ162)-1","v":4.1558441558441572E-2},"--",{"$f":"(Monthly!ES174/Monthly!ES162)-1","v":2.1428571428571352E-2},null,null,null,null,null,{"$f":"((Monthly!EY174-Monthly!EY162)*100)","v":-73.000000000000043},{"$f":"((Monthly!EZ174-Monthly!EZ162)*100)","v":-75.999999999999972},{"$f":"((Monthly!FA174-Monthly!FA162)*100)","v":-39.999999999999943},{"$f":"((Monthly!FB174-Monthly!FB162)*100)","v":-57.000000000000028},"--",{"$f":"((Monthly!FD174-Monthly!FD162)*100)","v":-29.999999999999982},{"$f":"((Monthly!FE174-Monthly!FE162)*100)","v":-92.000000000000085},{"$f":"((Monthly!FF174-Monthly!FF162)*100)","v":-81.999999999999943},"--",{"$f":"((Monthly!FH174-Monthly!FH162)*100)","v":-53.000000000000028},{"$f":"((Monthly!FI174-Monthly!FI162)*100)","v":-37.000000000000014},null,null,null,null,null,null,{"$f":"(Monthly!FP174/Monthly!FP162)-1","v":-3.0207305034550713E-2},"--","--","--","--","--","--","--","--",null,null,null,null,null,{"$f":"(Monthly!GD174/Monthly!GD162)-1","v":0},"--","--","--","--","--","--","--","--"]
["1972-09-01",null,null,null,{"$f":"(Monthly!E175/Monthly!E163)-1","v":{"$error":"#DIV/0!"}},{"$f":"(Monthly!F175/Monthly!F163)-1","v":{"$error":"#DIV/0!"}},{"$f":"(Monthly!G175/Monthly!G163)-1","v":{"$error":"#DIV/0!"}},{"$f":"(Monthly!H175/Monthly!H163)-1","v":{"$error":"#DIV/0!"}},null,null,null,null,null,null,null,null,null,null,null,null,null,null,null,{"$f":"(Monthly!X175-Monthly!X163)","v":5.5},{"$f":"(Monthly!Y175/Monthly!Y163)-1","v":8.8133225340584431E-2},null,null,null,null,null,null,null,null,null,null,null,null,null,{"$f":"(Monthly!AM175/Monthly!AM163)-1","v":0.10146883403085249},"--","--","--",{"$f":"Monthly!AQ175-Monthly!AQ163","v":9.9999999999999929},"--","--",{"$f":"Monthly!AT175-Monthly!AT163","v":5.6000000000000014},"--","--",{"$f":"Monthly!AW175-Monthly!AW163","v":16.599999999999994},{"$f":"Monthly!AX175-Monthly!AX163","v":8.2999999999999972},{"$f":"Monthly!AY175-Monthly!AY163","v":15.5},{"$f":"Monthly!AZ175-Monthly!AZ163","v":9},{"$f":"Monthly!BA175-Monthly!BA163","v":16.600000000000001},"--","--",null,null,null,null,null,null,null,null,null,"--","--",null,null,null,null,null,{"$f":"(Monthly!BT175/Monthly!BT163)-1","v":0.16458319208081917},null,null,null,{"$f":"(Monthly!BX175/Monthly!BX163)-1","v":0.21558059774620286},{"$f":"(Monthly!BY175/Monthly!BY163)-1","v":0.19889779559118237},"--","--",{"$f":"Monthly!CB175-Monthly!CB163","v":-1.3953581432572726},{"$f":"Monthly!CC175-Monthly!CC163","v":-1.745358143257274},"--","--",null,"--","--",null,{"$f":"(Monthly!CJ175/Monthly!CJ163)-1","v":0.22720000000000007},{"$f":"(Monthly!CK175/Monthly!CK163)-1","v":9.8435187143159464E-2},{"$f":"(Monthly!CL175/Monthly!CL163)-1","v":3.6697247706423131E-3},{"$f":"(Monthly!CM175/Monthly!CM163)-1","v":0.21125541125541125},{"$f":"(Monthly!CN175/Monthly!CN163)-1","v":4.8484005563282473E-2},{"$f":"(Monthly!CO175/Monthly!CO163)-1","v":9.8951048951049003E-2},{"$f":"(Monthly!CP175/Monthly!CP163)-1","v":0.12458586251966497},{"$f":"(Monthly!CQ175/Monthly!CQ163)-1","v":1.0398147169339955E-2},{"$f":"(Monthly!CR175/Monthly!CR163)-1","v":0.13083782864363136},null,null,null,null,null,null,null,{"$f":"(Monthly!CZ175/Monthly!CZ163)-1","v":3.1862745098039325E-2},{"$f":"(Monthly!DA175/Monthly!DA163)-1","v":3.0232558139534849E-2},null,null,null,null,null,null,{"$f":"((Monthly!DH175-Monthly!DH163)*60)","v":11.999999999999744},{"$f":"((Monthly!DI175-Monthly!DI163)*100)","v":29.999999999999716},"--",{"$f":"((Monthly!DK175-Monthly!DK163)*100)","v":-50},{"$f":"Monthly!DL175-Monthly!DL163","v":620},null,null,null,{"$f":"Monthly!DP175-Monthly!DP163","v":2646},null,null,null,{"$f":"(Monthly!DT175/Monthly!DT163)-1","v":-0.19594067135050741},{"$f":"Monthly!DU175-Monthly!DU163","v":-0.20000000000000018},"--","--","--","--","--","--","--","--",null,null,null,null,null,null,null,null,null,null,null,null,null,{"$f":"(Monthly!EQ175/Monthly!EQ163)-1","v":4.9608355091383949E-2},"--",{"$f":"(Monthly!ES175/Monthly!ES163)-1","v":2.6252983293556076E-2},null,null,null,null,null,{"$f":"((Monthly!EY175-Monthly!EY163)*100)","v":-50},{"$f":"((Monthly!EZ175-Monthly!EZ163)*100)","v":-67.999999999999972},{"$f":"((Monthly!FA175-Monthly!FA163)*100)","v":-22.000000000000064},{"$f":"((Monthly!FB175-Monthly!FB163)*100)","v":-50},"--",{"$f":"((Monthly!FD175-Monthly!FD163)*100)","v":-27.000000000000046},{"$f":"((Monthly!FE175-Monthly!FE163)*100)","v":-3.0000000000000249},{"$f":"((Monthly!FF175-Monthly!FF163)*100)","v":10.999999999999943},"--",{"$f":"((Monthly!FH175-Monthly!FH163)*100)","v":11.000000000000032},{"$f":"((Monthly!FI175-Monthly!FI163)*100)","v":41.000000000000014},null,null,null,null,null,null,{"$f":"(Monthly!FP175/Monthly!FP163)-1","v":-2.9615004935834022E-2},"--","--","--","--","--","--","--","--",null,null,null,null,null,{"$f":"(Monthly!GD175/Monthly!GD163)-1","v":0},"--","--","--","--","--","--","--","--"]
["1973-01-01",null,null,null,{"$f":"(Monthly!E179/Monthly!E167)-1","v":{"$error":"#DIV/0!"}},{"$f":"(Monthly!F179/Monthly!F167)-1","v":{"$error":"#DIV/0!"}},{"$f":"(Monthly!G179/Monthly!G167)-1","v":{"$error":"#DIV/0!"}},{"$f":"(Monthly!H179/Monthly!H167)-1","v":{"$error":"#DIV/0!"}},null,null,null,null,null,null,null,null,null,null,null,null,null,null,null,{"$f":"(Monthly!X179-Monthly!X167)","v":5.2000000000000028},{"$f":"(Monthly!Y179/Monthly!Y167)-1","v":0.14597446779701184},null,null,null,null,null,null,null,null,null,null,null,null,null,{"$f":"(Monthly!AM179/Monthly!AM167)-1","v":9.7106645864931673E-2},{"$f":"(Monthly!AN179/Monthly!AN167)-1","v":0.10471309198240419},"--","--",{"$f":"Monthly!AQ179-Monthly!AQ167","v":12.499999999999993},"--","--",{"$f":"Monthly!AT179-Monthly!AT167","v":14.5},"--","--",{"$f":"Monthly!AW179-Monthly!AW167","v":12.600000000000001},{"$f":"Monthly!AX179-Monthly!AX167","v":9},{"$f":"Monthly!AY179-Monthly!AY167","v":3.6000000000000085},{"$f":"Monthly!AZ179-Monthly!AZ167","v":5.5},{"$f":"Monthly!BA179-Monthly!BA167","v":28.5},"--","--",null,null,null,null,null,null,null,null,null,"--","--",null,null,null,null,null,{"$f":"(Monthly!BT179/Monthly!BT167)-1","v":0.16941788338194796},null,null,null,{"$f":"(Monthly!BX179/Monthly!BX167)-1","v":-5.2125100240577593E-3},{"$f":"(Monthly!BY179/Monthly!BY167)-1","v":1.4745308310991856E-2},"--","--",{"$f":"Monthly!CB179-Monthly!CB167","v":-0.51736866437940243},{"$f":"Monthly!CC179-Monthly!CC167","v":-1.1473686643794014},"--","--",null,"--","--",null,{"$f":"(Monthly!CJ179/Monthly!CJ167)-1","v":0.11891117478510038},{"$f":"(Monthly!CK179/Monthly!CK167)-1","v":0.11041688005735928},{"$f":"(Monthly!CL179/Monthly!CL167)-1","v":8.6384976525821555E-2},{"$f":"(Monthly!CM179/Monthly!CM167)-1","v":1.5613910574875822E-2},{"$f":"(Monthly!CN179/Monthly!CN167)-1","v":7.6681107033470308E-2},{"$f":"(Monthly!CO179/Monthly!CO167)-1","v":9.5011876484560664E-2},{"$f":"(Monthly!CP179/Monthly!CP167)-1","v":0.14651311623623098},{"$f":"(Monthly!CQ179/Monthly!CQ167)-1","v":9.8986678920336413E-3},{"$f":"(Monthly!CR179/Monthly!CR167)-1","v":0.15928077113198214},null,null,null,null,null,null,null,{"$f":"(Monthly!CZ179/Monthly!CZ167)-1","v":3.6407766990291357E-2},{"$f":"(Monthly!DA179/Monthly!DA167)-1","v":2.5287356321839205E-2},null,null,null,null,null,null,{"$f":"((Monthly!DH179-Monthly!DH167)*60)","v":-6.0000000000000853},{"$f":"((Monthly!DI179-Monthly!DI167)*100)","v":-20.000000000000284},"--",{"$f":"((Monthly!DK179-Monthly!DK167)*100)","v":-89.999999999999943},{"$f":"Monthly!DL179-Monthly!DL167","v":993},null,null,null,{"$f":"Monthly!DP179-Monthly!DP167","v":3176},null,null,null,{"$f":"(Monthly!DT179/Monthly!DT167)-1","v":-0.15915363385464576},{"$f":"Monthly!DU179-Monthly!DU167","v":-0.5},"--","--","--","--","--","--","--","--",null,null,null,null,null,null,null,null,null,null,null,null,null,{"$f":"(Monthly!EQ179/Monthly!EQ167)-1","v":7.2164948453608435E-2},"--",{"$f":"(Monthly!ES179/Monthly!ES167)-1","v":1.654846335697413E-2},null,null,null,null,null,{"$f":"((Monthly!EY179-Monthly!EY167)*100)","v":82.000000000000028},{"$f":"((Monthly!EZ179-Monthly!EZ167)*100)","v":244.00000000000003},{"$f":"((Monthly!FA179-Monthly!FA167)*100)","v":-4.0000000000000036},{"$f":"((Monthly!FB179-Monthly!FB167)*100)","v":-33.000000000000007},"--",{"$f":"((Monthly!FD179-Monthly!FD167)*100)","v":0},{"$f":"((Monthly!FE179-Monthly!FE167)*100)","v":203.00000000000003},{"$f":"((Monthly!FF179-Monthly!FF167)*100)","v":160.99999999999994},"--",{"$f":"((Monthly!FH179-Monthly!FH167)*100)","v":75},{"$f":"((Monthly!FI179-Monthly!FI167)*100)","v":50.999999999999979},null,null,null,null,null,null,{"$f":"(Monthly!FP179/Monthly!FP167)-1","v":-6.561288398449161E-3},"--","--","--","--","--","--","--","--",null,null,null,null,null,{"$f":"(Monthly!GD179/Monthly!GD167)-1","v":0},"--","--","--","--","--","--","--","--"]
["1973-08-01",null,null,null,{"$f":"(Monthly!E186/Monthly!E174)-1","v":{"$error":"#DIV/0!"}},{"$f":"(Monthly!F186/Monthly!F174)-1","v":{"$error":"#DIV/0!"}},{"$f":"(Monthly!G186/Monthly!G174)-1","v":{"$error":"#DIV/0!"}},{"$f":"(Monthly!H186/Monthly!H174)-1","v":{"$error":"#DIV/0!"}},null,null,null,null,null,null,null,null,null,null,null,null,null,null,null,{"$f":"(Monthly!X186-Monthly!X174)","v":3},{"$f":"(Monthly!Y186/Monthly!Y174)-1","v":0.25442609732850907},null,null,null,null,null,null,null,null,null,null,null,null,null,{"$f":"(Monthly!AM186/Monthly!AM174)-1","v":7.6522072830167653E-2},{"$f":"(Monthly!AN186/Monthly!AN174)-1","v":8.4648776637726852E-2},"--","--",{"$f":"Monthly!AQ186-Monthly!AQ174","v":1},"--","--",{"$f":"Monthly!AT186-Monthly!AT174","v":-2.2000000000000028},"--","--",{"$f":"Monthly!AW186-Monthly!AW174","v":6.6000000000000014},{"$f":"Monthly!AX186-Monthly!AX174","v":-5.9999999999999929},{"$f":"Monthly!AY186-Monthly!AY174","v":16},{"$f":"Monthly!AZ186-Monthly!AZ174","v":-4.2000000000000028},{"$f":"Monthly!BA186-Monthly!BA174","v":23.800000000000004},"--","--",null,null,null,null,null,null,null,null,null,"--","--",null,null,null,null,null,{"$f":"(Monthly!BT186/Monthly!BT174)-1","v":0.17052487524907201},null,null,null,{"$f":"(Monthly!BX186/Monthly!BX174)-1","v":-0.13895885810243491},{"$f":"(Monthly!BY186/Monthly!BY174)-1","v":-0.20061864781263805},"--","--",{"$f":"Monthly!CB186-Monthly!CB174","v":3.6501650706901607},{"$f":"Monthly!CC186-Monthly!CC174","v":3.0901650706901584},"--","--",null,"--","--",null,{"$f":"(Monthly!CJ186/Monthly!CJ174)-1","v":-0.26778783958602848},{"$f":"(Monthly!CK186/Monthly!CK174)-1","v":0.11546671841645639},{"$f":"(Monthly!CL186/Monthly!CL174)-1","v":0.28905519176800754},{"$f":"(Monthly!CM186/Monthly!CM174)-1","v":-0.17769516728624535},{"$f":"(Monthly!CN186/Monthly!CN174)-1","v":5.5252296631606912E-2},{"$f":"(Monthly!CO186/Monthly!CO174)-1","v":4.7236503856041168E-2},{"$f":"(Monthly!CP186/Monthly!CP174)-1","v":0.15972817312761967},{"$f":"(Monthly!CQ186/Monthly!CQ174)-1","v":9.6013328573127943E-3},{"$f":"(Monthly!CR186/Monthly!CR174)-1","v":0.18258660710375341},null,null,null,null,null,null,null,{"$f":"(Monthly!CZ186/Monthly!CZ174)-1","v":7.398568019093088E-2},{"$f":"(Monthly!DA186/Monthly!DA174)-1","v":3.1602708803611934E-2},null,null,null,null,null,null,{"$f":"((Monthly!DH186-Monthly!DH174)*60)","v":6.0000000000000853},{"$f":"((Monthly!DI186-Monthly!DI174)*100)","v":10.000000000000142},"--",{"$f":"((Monthly!DK186-Monthly!DK174)*100)","v":-79.999999999999986},{"$f":"Monthly!DL186-Monthly!DL174","v":888},null,null,null,{"$f":"Monthly!DP186-Monthly!DP174","v":3028},null,null,null,{"$f":"(Monthly!DT186/Monthly!DT174)-1","v":4.930966469427922E-3},{"$f":"Monthly!DU186-Monthly!DU174","v":-1.0999999999999996},"--","--","--","--","--","--","--","--",null,null,null,null,null,null,null,null,null,null,null,null,null,{"$f":"(Monthly!EQ186/Monthly!EQ174)-1","v":0.18453865336658359},"--",{"$f":"(Monthly!ES186/Monthly!ES174)-1","v":3.4965034965035002E-2},null,null,null,null,null,{"$f":"((Monthly!EY186-Monthly!EY174)*100)","v":396.00000000000011},{"$f":"((Monthly!EZ186-Monthly!EZ174)*100)","v":570},{"$f":"((Monthly!FA186-Monthly!FA174)*100)","v":48.999999999999929},{"$f":"((Monthly!FB186-Monthly!FB174)*100)","v":33.999999999999986},"--",{"$f":"((Monthly!FD186-Monthly!FD174)*100)","v":109.99999999999997},{"$f":"((Monthly!FE186-Monthly!FE174)*100)","v":465.00000000000006},{"$f":"((Monthly!FF186-Monthly!FF174)*100)","v":384},"--",{"$f":"((Monthly!FH186-Monthly!FH174)*100)","v":161.00000000000003},{"$f":"((Monthly!FI186-Monthly!FI174)*100)","v":119.00000000000004},null,null,null,null,null,null,{"$f":"(Monthly!FP186/Monthly!FP174)-1","v":2.1885179153094514E-2},"--","--","--","--","--","--","--","--",null,null,null,null,null,{"$f":"(Monthly!GD186/Monthly!GD174)-1","v":0.21067415730337058},"--","--","--","--","--","--","--","--"]
["1973-11-01",null,null,null,{"$f":"(Monthly!E189/Monthly!E177)-1","v":{"$error":"#DIV/0!"}},{"$f":"(Monthly!F189/Monthly!F177)-1","v":{"$error":"#DIV/0!"}},{"$f":"(Monthly!G189/Monthly!G177)-1","v":{"$error":"#DIV/0!"}},{"$f":"(Monthly!H189/Monthly!H177)-1","v":{"$error":"#DIV/0!"}},null,null,null,null,null,null,null,null,null,null,null,null,null,null,null,{"$f":"(Monthly!X189-Monthly!X177)","v":2},{"$f":"(Monthly!Y189/Monthly!Y177)-1","v":0.21540526224997181},null,null,null,null,null,null,null,null,null,null,null,null,null,{"$f":"(Monthly!AM189/Monthly!AM177)-1","v":6.4080242410136767E-2},{"$f":"(Monthly!AN189/Monthly!AN177)-1","v":7.4217800138879575E-2},"--","--",{"$f":"Monthly!AQ189-Monthly!AQ177","v":-1.8000000000000114},"--","--",{"$f":"Monthly!AT189-Monthly!AT177","v":-0.90000000000000568},"--","--",{"$f":"Monthly!AW189-Monthly!AW177","v":0.39999999999999858},{"$f":"Monthly!AX189-Monthly!AX177","v":-7.7999999999999972},{"$f":"Monthly!AY189-Monthly!AY177","v":23.099999999999994},{"$f":"Monthly!AZ189-Monthly!AZ177","v":-10.700000000000003},{"$f":"Monthly!BA189-Monthly!BA177","v":22.299999999999997},"--","--",null,null,null,null,null,null,null,null,null,"--","--",null,null,null,null,null,{"$f":"(Monthly!BT189/Monthly!BT177)-1","v":0.15511560512676925},null,null,null,{"$f":"(Monthly!BX189/Monthly!BX177)-1","v":-0.28789756299049984},{"$f":"(Monthly!BY189/Monthly!BY177)-1","v":-0.37242614145031339},"--","--",{"$f":"Monthly!CB189-Monthly!CB177","v":4.3400828347906035},{"$f":"Monthly!CC189-Monthly!CC177","v":3.9900828347906039},"--","--",null,"--","--",null,{"$f":"(Monthly!CJ189/Monthly!CJ177)-1","v":-0.25578231292517006},{"$f":"(Monthly!CK189/Monthly!CK177)-1","v":0.10397922270661364},{"$f":"(Monthly!CL189/Monthly!CL177)-1","v":0.15499606608969319},{"$f":"(Monthly!CM189/Monthly!CM177)-1","v":-0.27927927927927931},{"$f":"(Monthly!CN189/Monthly!CN177)-1","v":3.0178150916350788E-2},{"$f":"(Monthly!CO189/Monthly!CO177)-1","v":2.0676691729323293E-2},{"$f":"(Monthly!CP189/Monthly!CP177)-1","v":0.15360727744275504},{"$f":"(Monthly!CQ189/Monthly!CQ177)-1","v":9.3897159349840553E-3},{"$f":"(Monthly!CR189/Monthly!CR177)-1","v":0.20852389967878482},null,null,null,null,null,null,null,{"$f":"(Monthly!CZ189/Monthly!CZ177)-1","v":8.2547169811320709E-2},{"$f":"(Monthly!DA189/Monthly!DA177)-1","v":4.7297297297297369E-2},null,null,null,null,null,null,{"$f":"((Monthly!DH189-Monthly!DH177)*60)","v":0},{"$f":"((Monthly!DI189-Monthly!DI177)*100)","v":90.000000000000568},"--",{"$f":"((Monthly!DK189-Monthly!DK177)*100)","v":-50},{"$f":"Monthly!DL189-Monthly!DL177","v":768},null,null,null,{"$f":"Monthly!DP189-Monthly!DP177","v":2945},null,null,null,{"$f":"(Monthly!DT189/Monthly!DT177)-1","v":2.193419740777669E-2},{"$f":"Monthly!DU189-Monthly!DU177","v":-0.60000000000000053},"--","--","--","--","--","--","--","--",null,null,null,null,null,null,null,null,null,null,null,null,null,{"$f":"(Monthly!EQ189/Monthly!EQ177)-1","v":0.15384615384615397},"--",{"$f":"(Monthly!ES189/Monthly!ES177)-1","v":4.6620046620046596E-2},null,null,null,null,null,{"$f":"((Monthly!EY189-Monthly!EY177)*100)","v":400},{"$f":"((Monthly!EZ189-Monthly!EZ177)*100)","v":497},{"$f":"((Monthly!FA189-Monthly!FA177)*100)","v":54.999999999999986},{"$f":"((Monthly!FB189-Monthly!FB177)*100)","v":42.999999999999972},"--",{"$f":"((Monthly!FD189-Monthly!FD177)*100)","v":115.00000000000003},{"$f":"((Monthly!FE189-Monthly!FE177)*100)","v":305},{"$f":"((Monthly!FF189-Monthly!FF177)*100)","v":230.00000000000006},"--",{"$f":"((Monthly!FH189-Monthly!FH177)*100)","v":79.999999999999986},{"$f":"((Monthly!FI189-Monthly!FI177)*100)","v":45.000000000000014},null,null,null,null,null,null,{"$f":"(Monthly!FP189/Monthly!FP177)-1","v":1.184930119505756E-2},"--","--","--","--","--","--","--","--",null,null,null,null,null,{"$f":"(Monthly!GD189/Monthly!GD177)-1","v":0.21067415730337058},"--","--","--","--","--","--","--","--"]
["1974-03-01",null,null,null,{"$f":"(Monthly!E193/Monthly!E181)-1","v":{"$error":"#DIV/0!"}},{"$f":"(Monthly!F193/Monthly!F181)-1","v":{"$error":"#DIV/0!"}},{"$f":"(Monthly!G193/Monthly!G181)-1","v":{"$error":"#DIV/0!"}},{"$f":"(Monthly!H193/Monthly!H181)-1","v":{"$error":"#DIV/0!"}},null,null,null,null,null,null,null,null,null,null,null,null,null,null,null,{"$f":"(Monthly!X193-Monthly!X181)","v":-1.7999999999999972},{"$f":"(Monthly!Y193/Monthly!Y181)-1","v":0.16459433655082578},null,null,null,null,null,null,null,null,null,null,null,null,null,{"$f":"(Monthly!AM193/Monthly!AM181)-1","v":1.6876760250856826E-2},{"$f":"(Monthly!AN193/Monthly!AN181)-1","v":1.9484634196291983E-2},"--","--",{"$f":"Monthly!AQ193-Monthly!AQ181","v":-7.7999999999999972},"--","--",{"$f":"Monthly!AT193-Monthly!AT181","v":-7.3000000000000043},"--","--",{"$f":"Monthly!AW193-Monthly!AW181","v":-2.7999999999999972},{"$f":"Monthly!AX193-Monthly!AX181","v":-10.799999999999997},{"$f":"Monthly!AY193-Monthly!AY181","v":4},{"$f":"Monthly!AZ193-Monthly!AZ181","v":-11.900000000000006},{"$f":"Monthly!BA193-Monthly!BA181","v":1.4000000000000057},"--","--",null,null,null,null,null,null,null,null,null,"--","--",null,null,null,null,null,{"$f":"(Monthly!BT193/Monthly!BT181)-1","v":0.11623662435799686},null,null,null,{"$f":"(Monthly!BX193/Monthly!BX181)-1","v":-0.34249471458773784},{"$f":"(Monthly!BY193/Monthly!BY181)-1","v":-0.30164888457807948},"--","--",{"$f":"Monthly!CB193-Monthly!CB181","v":5.5073309735301326},{"$f":"Monthly!CC193-Monthly!CC181","v":5.6473309735301314},"--","--",null,"--","--",null,{"$f":"(Monthly!CJ193/Monthly!CJ181)-1","v":-0.21103448275862069},{"$f":"(Monthly!CK193/Monthly!CK181)-1","v":9.8076574124478233E-2},{"$f":"(Monthly!CL193/Monthly!CL181)-1","v":0.14628099173553699},{"$f":"(Monthly!CM193/Monthly!CM181)-1","v":-0.21584478577202915},{"$f":"(Monthly!CN193/Monthly!CN181)-1","v":-5.4786181707502379E-3},{"$f":"(Monthly!CO193/Monthly!CO181)-1","v":1.6383307573415884E-2},{"$f":"(Monthly!CP193/Monthly!CP181)-1","v":0.11183498946862414},{"$f":"(Monthly!CQ193/Monthly!CQ181)-1","v":9.2637299175399868E-3},{"$f":"(Monthly!CR193/Monthly!CR181)-1","v":0.17826775894031521},null,null,null,null,null,null,null,{"$f":"(Monthly!CZ193/Monthly!CZ181)-1","v":0.10138248847926268},{"$f":"(Monthly!DA193/Monthly!DA181)-1","v":5.7777777777777706E-2},null,null,null,null,null,null,{"$f":"((Monthly!DH193-Monthly!DH181)*60)","v":-23.999999999999915},{"$f":"((Monthly!DI193-Monthly!DI181)*100)","v":50},"--",{"$f":"((Monthly!DK193-Monthly!DK181)*100)","v":19.999999999999929},{"$f":"Monthly!DL193-Monthly!DL181","v":207},null,null,null,{"$f":"Monthly!DP193-Monthly!DP181","v":2011},null,null,null,{"$f":"(Monthly!DT193/Monthly!DT181)-1","v":0.37147887323943651},{"$f":"Monthly!DU193-Monthly!DU181","v":-0.70000000000000018},"--","--","--","--","--","--","--","--",null,null,null,null,null,null,null,null,null,null,null,null,null,{"$f":"(Monthly!EQ193/Monthly!EQ181)-1","v":0.16589861751152091},"--",{"$f":"(Monthly!ES193/Monthly!ES181)-1","v":7.3394495412844041E-2},null,null,null,null,null,{"$f":"((Monthly!EY193-Monthly!EY181)*100)","v":254.99999999999997},{"$f":"((Monthly!EZ193-Monthly!EZ181)*100)","v":225.99999999999997},{"$f":"((Monthly!FA193-Monthly!FA181)*100)","v":71.999999999999972},{"$f":"((Monthly!FB193-Monthly!FB181)*100)","v":58.999999999999986},"--",{"$f":"((Monthly!FD193-Monthly!FD181)*100)","v":95.000000000000014},{"$f":"((Monthly!FE193-Monthly!FE181)*100)","v":187},{"$f":"((Monthly!FF193-Monthly!FF181)*100)","v":91.000000000000014},"--",{"$f":"((Monthly!FH193-Monthly!FH181)*100)","v":50.999999999999979},{"$f":"((Monthly!FI193-Monthly!FI181)*100)","v":50},null,null,null,null,null,null,{"$f":"(Monthly!FP193/Monthly!FP181)-1","v":-2.4781779873582876E-2},"--","--","--",{"$f":"(Monthly!FT193/Monthly!FT181)-1","v":2.2194149736108004E-2},{"$f":"(Monthly!FU193/Monthly!FU181)-1","v":1.364999999999994E-2},"--","--","--",null,null,null,null,null,{"$f":"(Monthly!GD193/Monthly!GD181)-1","v":1.839887640449438},"--","--","--",{"$f":"(Monthly!GH193/Monthly!GH181)-1","v":{"$error":"#DIV/0!"}},"--","--","--","--"]
["1974-09-01",null,null,null,{"$f":"(Monthly!E199/Monthly!E187)-1","v":{"$error":"#DIV/0!"}},{"$f":"(Monthly!F199/Monthly!F187)-1","v":{"$error":"#DIV/0!"}},{"$f":"(Monthly!G199/Monthly!G187)-1","v":{"$error":"#DIV/0!"}},{"$f":"(Monthly!H199/Monthly!H187)-1","v":{"$error":"#DIV/0!"}},null,null,null,null,null,null,null,null,null,null,null,null,null,null,null,{"$f":"(Monthly!X199-Monthly!X187)","v":-3.1000000000000085},{"$f":"(Monthly!Y199/Monthly!Y187)-1","v":0.18603326296822975},null,null,null,null,null,null,null,null,null,null,null,null,null,{"$f":"(Monthly!AM199/Monthly!AM187)-1","v":-5.7569604951199782E-3},{"$f":"(Monthly!AN199/Monthly!AN187)-1","v":-1.889713745118704E-3},"--","--",{"$f":"Monthly!AQ199-Monthly!AQ187","v":-17.299999999999997},"--","--",{"$f":"Monthly!AT199-Monthly!AT187","v":-11.200000000000003},"--","--",{"$f":"Monthly!AW199-Monthly!AW187","v":-7.5},{"$f":"Monthly!AX199-Monthly!AX187","v":-18.799999999999997},{"$f":"Monthly!AY199-Monthly!AY187","v":-11.099999999999994},{"$f":"Monthly!AZ199-Monthly!AZ187","v":-11.900000000000006},{"$f":"Monthly!BA199-Monthly!BA187","v":-38.299999999999997},"--","--",null,null,null,null,null,null,null,null,null,"--","--",null,null,null,null,null,{"$f":"(Monthly!BT199/Monthly!BT187)-1","v":6.7391820613454056E-2},null,null,null,{"$f":"(Monthly!BX199/Monthly!BX187)-1","v":-0.38633938100320175},{"$f":"(Monthly!BY199/Monthly!BY187)-1","v":-0.50704225352112675},"--","--",{"$f":"Monthly!CB199-Monthly!CB187","v":5.6834822273137959},{"$f":"Monthly!CC199-Monthly!CC187","v":6.4534822273137955},"--","--",null,"--","--",null,{"$f":"(Monthly!CJ199/Monthly!CJ187)-1","v":-8.9126559714794995E-2},{"$f":"(Monthly!CK199/Monthly!CK187)-1","v":9.9577913687656006E-2},{"$f":"(Monthly!CL199/Monthly!CL187)-1","v":5.7339449541284448E-2},{"$f":"(Monthly!CM199/Monthly!CM187)-1","v":-0.15603532875368009},{"$f":"(Monthly!CN199/Monthly!CN187)-1","v":-1.8857028072113646E-2},{"$f":"(Monthly!CO199/Monthly!CO187)-1","v":2.3692307692307679E-2},{"$f":"(Monthly!CP199/Monthly!CP187)-1","v":7.6999981116347538E-2},{"$f":"(Monthly!CQ199/Monthly!CQ187)-1","v":9.2185652577383426E-3},{"$f":"(Monthly!CR199/Monthly!CR187)-1","v":0.21194300139020994},null,null,null,null,null,null,null,{"$f":"(Monthly!CZ199/Monthly!CZ187)-1","v":0.11946902654867242},{"$f":"(Monthly!DA199/Monthly!DA187)-1","v":0.10217391304347823},null,null,null,null,null,null,{"$f":"((Monthly!DH199-Monthly!DH187)*60)","v":-23.999999999999915},{"$f":"((Monthly!DI199-Monthly!DI187)*100)","v":60.000000000000142},"--",{"$f":"((Monthly!DK199-Monthly!DK187)*100)","v":110.00000000000006},{"$f":"Monthly!DL199-Monthly!DL187","v":-117},null,null,null,{"$f":"Monthly!DP199-Monthly!DP187","v":1335},null,null,null,{"$f":"(Monthly!DT199/Monthly!DT187)-1","v":0.45463709677419351},{"$f":"Monthly!DU199-Monthly!DU187","v":-0.10000000000000053},"--","--","--","--","--","--","--","--",null,null,null,null,null,null,null,null,null,null,null,null,null,{"$f":"(Monthly!EQ199/Monthly!EQ187)-1","v":0.19700214132762306},"--",{"$f":"(Monthly!ES199/Monthly!ES187)-1","v":0.1905829596412556},null,null,null,null,null,{"$f":"((Monthly!EY199-Monthly!EY187)*100)","v":214.00000000000006},{"$f":"((Monthly!EZ199-Monthly!EZ187)*100)","v":56.00000000000005},{"$f":"((Monthly!FA199-Monthly!FA187)*100)","v":161.00000000000003},{"$f":"((Monthly!FB199-Monthly!FB187)*100)","v":154.99999999999989},"--",{"$f":"((Monthly!FD199-Monthly!FD187)*100)","v":114.00000000000006},{"$f":"((Monthly!FE199-Monthly!FE187)*100)","v":-22.999999999999865},{"$f":"((Monthly!FF199-Monthly!FF187)*100)","v":55.999999999999872},"--",{"$f":"((Monthly!FH199-Monthly!FH187)*100)","v":131.99999999999994},{"$f":"((Monthly!FI199-Monthly!FI187)*100)","v":94.999999999999929},null,null,null,null,null,null,{"$f":"(Monthly!FP199/Monthly!FP187)-1","v":-2.1719726271942741E-2},"--","--","--",{"$f":"(Monthly!FT199/Monthly!FT187)-1","v":6.1518505763034748E-2},{"$f":"(Monthly!FU199/Monthly!FU187)-1","v":5.6856989958904203E-2},"--","--","--",null,null,null,null,null,{"$f":"(Monthly!GD199/Monthly!GD187)-1","v":1.3457076566125292},"--","--","--",{"$f":"(Monthly!GH199/Monthly!GH187)-1","v":{"$error":"#DIV/0!"}},"--","--","--","--"]
["1975-02-01",null,null,null,{"$f":"(Monthly!E204/Monthly!E192)-1","v":{"$error":"#DIV/0!"}},{"$f":"(Monthly!F204/Monthly!F192)-1","v":{"$error":"#DIV/0!"}},{"$f":"(Monthly!G204/Monthly!G192)-1","v":{"$error":"#DIV/0!"}},{"$f":"(Monthly!H204/Monthly!H192)-1","v":{"$error":"#DIV/0!"}},null,null,null,null,null,null,null,null,null,null,null,null,null,null,null,{"$f":"(Monthly!X204-Monthly!X192)","v":-11.400000000000006},{"$f":"(Monthly!Y204/Monthly!Y192)-1","v":0.15541778943024309},null,null,null,null,null,null,null,null,null,null,null,null,null,{"$f":"(Monthly!AM204/Monthly!AM192)-1","v":-0.10930426672685534},{"$f":"(Monthly!AN204/Monthly!AN192)-1","v":-0.13190928357270948},"--","--",{"$f":"Monthly!AQ204-Monthly!AQ192","v":-24.200000000000003},"--","--",{"$f":"Monthly!AT204-Monthly!AT192","v":-17.899999999999999},"--","--",{"$f":"Monthly!AW204-Monthly!AW192","v":-28.199999999999996},{"$f":"Monthly!AX204-Monthly!AX192","v":-16},{"$f":"Monthly!AY204-Monthly!AY192","v":-44.8},{"$f":"Monthly!AZ204-Monthly!AZ192","v":-8.2000000000000028},{"$f":"Monthly!BA204-Monthly!BA192","v":-72.899999999999991},"--","--",null,null,null,null,null,null,null,null,null,"--","--",null,null,null,null,null,{"$f":"(Monthly!BT204/Monthly!BT192)-1","v":2.4291826978545483E-2},null,null,null,{"$f":"(Monthly!BX204/Monthly!BX192)-1","v":-0.48401826484018262},{"$f":"(Monthly!BY204/Monthly!BY192)-1","v":-0.46397058823529413},"--","--",{"$f":"Monthly!CB204-Monthly!CB192","v":4.1050739957717006},{"$f":"Monthly!CC204-Monthly!CC192","v":6.1350739957717018},"--","--",null,"--","--",null,{"$f":"(Monthly!CJ204/Monthly!CJ192)-1","v":-0.21706864564007422},{"$f":"(Monthly!CK204/Monthly!CK192)-1","v":9.2644861364768571E-2},{"$f":"(Monthly!CL204/Monthly!CL192)-1","v":-4.0355677154582659E-2},{"$f":"(Monthly!CM204/Monthly!CM192)-1","v":-0.3269424823410696},{"$f":"(Monthly!CN204/Monthly!CN192)-1","v":-1.1214054272985052E-2},{"$f":"(Monthly!CO204/Monthly!CO192)-1","v":4.9115314215985251E-2},{"$f":"(Monthly!CP204/Monthly!CP192)-1","v":3.6321250144144335E-2},{"$f":"(Monthly!CQ204/Monthly!CQ192)-1","v":9.3441715084900956E-3},{"$f":"(Monthly!CR204/Monthly!CR192)-1","v":0.16732589348778082},null,null,null,null,null,null,null,{"$f":"(Monthly!CZ204/Monthly!CZ192)-1","v":0.11205073995771686},{"$f":"(Monthly!DA204/Monthly!DA192)-1","v":0.11864406779661008},null,null,null,null,null,null,{"$f":"((Monthly!DH204-Monthly!DH192)*60)","v":-42.000000000000171},{"$f":"((Monthly!DI204-Monthly!DI192)*100)","v":-39.999999999999858},"--",{"$f":"((Monthly!DK204-Monthly!DK192)*100)","v":289.99999999999994},{"$f":"Monthly!DL204-Monthly!DL192","v":-1723},null,null,null,{"$f":"Monthly!DP204-Monthly!DP192","v":-1335},null,null,null,{"$f":"(Monthly!DT204/Monthly!DT192)-1","v":0.7095761381475667},{"$f":"Monthly!DU204-Monthly!DU192","v":2},"--","--","--","--","--","--","--","--",null,null,null,null,null,null,null,null,null,null,null,null,null,{"$f":"(Monthly!EQ204/Monthly!EQ192)-1","v":0.14400000000000013},{"$f":"(Monthly!ER204/Monthly!ER192)-1","v":0.17400000000000015},{"$f":"(Monthly!ES204/Monthly!ES192)-1","v":0.22727272727272729},null,null,null,null,null,{"$f":"((Monthly!EY204-Monthly!EY192)*100)","v":-25},{"$f":"((Monthly!EZ204-Monthly!EZ192)*100)","v":-273.00000000000006},{"$f":"((Monthly!FA204-Monthly!FA192)*100)","v":76.999999999999957},{"$f":"((Monthly!FB204-Monthly!FB192)*100)","v":212.00000000000011},"--",{"$f":"((Monthly!FD204-Monthly!FD192)*100)","v":64.999999999999858},{"$f":"((Monthly!FE204-Monthly!FE192)*100)","v":-162},{"$f":"((Monthly!FF204-Monthly!FF192)*100)","v":-89.999999999999943},"--",{"$f":"((Monthly!FH204-Monthly!FH192)*100)","v":29.000000000000004},{"$f":"((Monthly!FI204-Monthly!FI192)*100)","v":42.999999999999972},null,null,null,null,null,null,{"$f":"(Monthly!FP204/Monthly!FP192)-1","v":2.4370264181855283E-2},"--","--","--",{"$f":"(Monthly!FT204/Monthly!FT192)-1","v":-1.2070206691232044E-2},{"$f":"(Monthly!FU204/Monthly!FU192)-1","v":-4.2287282054549458E-2},{"$f":"(Monthly!FV204/Monthly!FV192)-1","v":0.16346842331376221},{"$f":"(Monthly!FW204/Monthly!FW192)-1","v":0.38157894736842102},{"$f":"(Monthly!FX204/Monthly!FX192)-1","v":-0.12211614956245032},null,null,null,null,null,{"$f":"(Monthly!GD204/Monthly!GD192)-1","v":0.10385756676557878},"--","--","--",{"$f":"(Monthly!GH204/Monthly!GH192)-1","v":{"$error":"#DIV/0!"}},"--","--","--","--"]
["1975-06-01",null,null,null,{"$f":"(Monthly!E208/Monthly!E196)-1","v":{"$error":"#DIV/0!"}},{"$f":"(Monthly!F208/Monthly!F196)-1","v":{"$error":"#DIV/0!"}},{"$f":"(Monthly!G208/Monthly!G196)-1","v":{"$error":"#DIV/0!"}},{"$f":"(Monthly!H208/Monthly!H196)-1","v":{"$error":"#DIV/0!"}},null,null,null,null,null,null,null,null,null,null,null,null,null,null,null,{"$f":"(Monthly!X208-Monthly!X196)","v":-11.800000000000011},{"$f":"(Monthly!Y208/Monthly!Y196)-1","v":2.5150437348216315E-2},null,null,null,null,null,null,null,null,null,null,null,null,null,{"$f":"(Monthly!AM208/Monthly!AM196)-1","v":-0.1172309311424764},{"$f":"(Monthly!AN208/Monthly!AN196)-1","v":-0.1406602153930937},"--","--",{"$f":"Monthly!AQ208-Monthly!AQ196","v":-9.6000000000000014},"--","--",{"$f":"Monthly!AT208-Monthly!AT196","v":-6},"--","--",{"$f":"Monthly!AW208-Monthly!AW196","v":-27.2},{"$f":"Monthly!AX208-Monthly!AX196","v":3},{"$f":"Monthly!AY208-Monthly!AY196","v":-44.599999999999994},{"$f":"Monthly!AZ208-Monthly!AZ196","v":2.7000000000000028},{"$f":"Monthly!BA208-Monthly!BA196","v":-48.199999999999996},"--","--",null,null,null,null,null,null,null,null,null,"--","--",null,null,null,null,null,{"$f":"(Monthly!BT208/Monthly!BT196)-1","v":-6.9053582829919913E-3},null,null,null,{"$f":"(Monthly!BX208/Monthly!BX196)-1","v":-0.28155981493721083},{"$f":"(Monthly!BY208/Monthly!BY196)-1","v":-0.12891344383057091},"--","--",{"$f":"Monthly!CB208-Monthly!CB196","v":1.7239449626004415},{"$f":"Monthly!CC208-Monthly!CC196","v":4.1039449626004441},"--","--",null,"--","--",null,{"$f":"(Monthly!CJ208/Monthly!CJ196)-1","v":4.3071161048689133E-2},{"$f":"(Monthly!CK208/Monthly!CK196)-1","v":0.10521655127998719},{"$f":"(Monthly!CL208/Monthly!CL196)-1","v":0.25569434239529776},{"$f":"(Monthly!CM208/Monthly!CM196)-1","v":-0.10929519918283959},{"$f":"(Monthly!CN208/Monthly!CN196)-1","v":4.0270000767047565E-2},{"$f":"(Monthly!CO208/Monthly!CO196)-1","v":0.10653753026634405},{"$f":"(Monthly!CP208/Monthly!CP196)-1","v":-4.2887370370333633E-3},{"$f":"(Monthly!CQ208/Monthly!CQ196)-1","v":9.7432681598232929E-3},{"$f":"(Monthly!CR208/Monthly!CR196)-1","v":0.10589441478974093},null,null,null,null,null,null,null,{"$f":"(Monthly!CZ208/Monthly!CZ196)-1","v":9.1836734693877542E-2},{"$f":"(Monthly!DA208/Monthly!DA196)-1","v":9.795918367346923E-2},null,null,null,null,null,null,{"$f":"((Monthly!DH208-Monthly!DH196)*60)","v":-36.000000000000085},{"$f":"((Monthly!DI208-Monthly!DI196)*100)","v":0},"--",{"$f":"((Monthly!DK208-Monthly!DK196)*100)","v":340.00000000000006},{"$f":"Monthly!DL208-Monthly!DL196","v":-2000},null,null,null,{"$f":"Monthly!DP208-Monthly!DP196","v":-2082},null,null,null,{"$f":"(Monthly!DT208/Monthly!DT196)-1","v":0.5855999999999999},{"$f":"Monthly!DU208-Monthly!DU196","v":3.5000000000000009},"--","--","--","--","--","--","--","--",null,null,null,null,null,null,null,null,null,null,null,null,null,{"$f":"(Monthly!EQ208/Monthly!EQ196)-1","v":0.11538461538461542},{"$f":"(Monthly!ER208/Monthly!ER196)-1","v":0.12052730696798486},{"$f":"(Monthly!ES208/Monthly!ES196)-1","v":0.16700201207243448},null,null,null,null,null,{"$f":"((Monthly!EY208-Monthly!EY196)*100)","v":-446.99999999999989},{"$f":"((Monthly!EZ208-Monthly!EZ196)*100)","v":-638},{"$f":"((Monthly!FA208-Monthly!FA196)*100)","v":29.999999999999893},{"$f":"((Monthly!FB208-Monthly!FB196)*100)","v":134.99999999999997},"--",{"$f":"((Monthly!FD208-Monthly!FD196)*100)","v":-19.999999999999929},{"$f":"((Monthly!FE208-Monthly!FE196)*100)","v":-256.00000000000006},{"$f":"((Monthly!FF208-Monthly!FF196)*100)","v":-238},"--",{"$f":"((Monthly!FH208-Monthly!FH196)*100)","v":-58.999999999999986},{"$f":"((Monthly!FI208-Monthly!FI196)*100)","v":32.000000000000028},null,null,null,null,null,null,{"$f":"(Monthly!FP208/Monthly!FP196)-1","v":6.20860927152318E-2},"--","--","--",{"$f":"(Monthly!FT208/Monthly!FT196)-1","v":2.9401502785011857E-2},{"$f":"(Monthly!FU208/Monthly!FU196)-1","v":2.3338665985783713E-4},{"$f":"(Monthly!FV208/Monthly!FV196)-1","v":-2.6324272053294129E-3},{"$f":"(Monthly!FW208/Monthly!FW196)-1","v":-0.43165467625899279},{"$f":"(Monthly!FX208/Monthly!FX196)-1","v":3.8476337052712584E-2},null,null,null,null,null,{"$f":"(Monthly!GD208/Monthly!GD196)-1","v":0.10385756676557878},"--","--","--",{"$f":"(Monthly!GH208/Monthly!GH196)-1","v":{"$error":"#DIV/0!"}},"--","--","--","--"]
["1975-09-01",null,null,null,{"$f":"(Monthly!E211/Monthly!E199)-1","v":{"$error":"#DIV/0!"}},{"$f":"(Monthly!F211/Monthly!F199)-1","v":{"$error":"#DIV/0!"}},{"$f":"(Monthly!G211/Monthly!G199)-1","v":{"$error":"#DIV/0!"}},{"$f":"(Monthly!H211/Monthly!H199)-1","v":{"$error":"#DIV/0!"}},null,null,null,null,null,null,null,null,null,null,null,null,null,null,null,{"$f":"(Monthly!X211-Monthly!X199)","v":-8.5},{"$f":"(Monthly!Y211/Monthly!Y199)-1","v":-2.7512033622331789E-2},null,null,null,null,null,null,null,null,null,null,null,null,null,{"$f":"(Monthly!AM211/Monthly!AM199)-1","v":-8.0171504042503505E-2},{"$f":"(Monthly!AN211/Monthly!AN199)-1","v":-9.6218167996959258E-2},"--","--",{"$f":"Monthly!AQ211-Monthly!AQ199","v":8.1999999999999957},"--","--",{"$f":"Monthly!AT211-Monthly!AT199","v":8.6000000000000014},"--","--",{"$f":"Monthly!AW211-Monthly!AW199","v":-20.599999999999994},{"$f":"Monthly!AX211-Monthly!AX199","v":19.199999999999996},{"$f":"Monthly!AY211-Monthly!AY199","v":-7.4000000000000057},{"$f":"Monthly!AZ211-Monthly!AZ199","v":16},{"$f":"Monthly!BA211-Monthly!BA199","v":-8},"--","--",null,null,null,null,null,null,null,null,null,"--","--",null,null,null,null,null,{"$f":"(Monthly!BT211/Monthly!BT199)-1","v":-2.881613781783865E-3},null,null,null,{"$f":"(Monthly!BX211/Monthly!BX199)-1","v":9.9130434782608745E-2},{"$f":"(Monthly!BY211/Monthly!BY199)-1","v":0.26666666666666661},"--","--",{"$f":"Monthly!CB211-Monthly!CB199","v":-1.5417643149462954},{"$f":"Monthly!CC211-Monthly!CC199","v":0.2082356850537046},"--","--",null,"--","--",null,{"$f":"(Monthly!CJ211/Monthly!CJ199)-1","v":8.8062622309197591E-2},{"$f":"(Monthly!CK211/Monthly!CK199)-1","v":9.392871132001579E-2},{"$f":"(Monthly!CL211/Monthly!CL199)-1","v":0.13376717281272588},{"$f":"(Monthly!CM211/Monthly!CM199)-1","v":0.11279069767441863},{"$f":"(Monthly!CN211/Monthly!CN199)-1","v":3.5086372360844553E-2},{"$f":"(Monthly!CO211/Monthly!CO199)-1","v":0.1352569882777277},{"$f":"(Monthly!CP211/Monthly!CP199)-1","v":-9.4230404108663901E-4},{"$f":"(Monthly!CQ211/Monthly!CQ199)-1","v":1.0021190593989981E-2},{"$f":"(Monthly!CR211/Monthly!CR199)-1","v":9.3555909409926974E-2},null,null,null,null,null,null,null,{"$f":"(Monthly!CZ211/Monthly!CZ199)-1","v":7.9051383399209474E-2},{"$f":"(Monthly!DA211/Monthly!DA199)-1","v":7.4950690335305659E-2},null,null,null,null,null,null,{"$f":"((Monthly!DH211-Monthly!DH199)*60)","v":-17.999999999999829},{"$f":"((Monthly!DI211-Monthly!DI199)*100)","v":-19.999999999999574},"--",{"$f":"((Monthly!DK211-Monthly!DK199)*100)","v":250},{"$f":"Monthly!DL211-Monthly!DL199","v":-1588},null,null,null,{"$f":"Monthly!DP211-Monthly!DP199","v":-1381},null,null,null,{"$f":"(Monthly!DT211/Monthly!DT199)-1","v":0.23423423423423428},{"$f":"Monthly!DU211-Monthly!DU199","v":3.8999999999999995},"--","--","--","--","--","--","--","--",null,null,null,null,null,null,null,null,null,null,null,null,null,{"$f":"(Monthly!EQ211/Monthly!EQ199)-1","v":6.2611806797853387E-2},{"$f":"(Monthly!ER211/Monthly!ER199)-1","v":8.0789946140035873E-2},{"$f":"(Monthly!ES211/Monthly!ES199)-1","v":0.10922787193973638},null,null,null,null,null,{"$f":"((Monthly!EY211-Monthly!EY199)*100)","v":-412},{"$f":"((Monthly!EZ211-Monthly!EZ199)*100)","v":-509.99999999999994},{"$f":"((Monthly!FA211-Monthly!FA199)*100)","v":-29.000000000000092},{"$f":"((Monthly!FB211-Monthly!FB199)*100)","v":42.999999999999972},"--",{"$f":"((Monthly!FD211-Monthly!FD199)*100)","v":-83},{"$f":"((Monthly!FE211-Monthly!FE199)*100)","v":-164.00000000000006},{"$f":"((Monthly!FF211-Monthly!FF199)*100)","v":-111.99999999999991},"--",{"$f":"((Monthly!FH211-Monthly!FH199)*100)","v":0},{"$f":"((Monthly!FI211-Monthly!FI199)*100)","v":39.000000000000057},null,null,null,null,null,null,{"$f":"(Monthly!FP211/Monthly!FP199)-1","v":4.0450121654501237E-2},"--","--","--",{"$f":"(Monthly!FT211/Monthly!FT199)-1","v":5.52456033959976E-2},{"$f":"(Monthly!FU211/Monthly!FU199)-1","v":2.031310848249368E-2},{"$f":"(Monthly!FV211/Monthly!FV199)-1","v":5.0387386899279907E-3},{"$f":"(Monthly!FW211/Monthly!FW199)-1","v":0.13709677419354827},{"$f":"(Monthly!FX211/Monthly!FX199)-1","v":2.5641025641025772E-2},null,null,null,null,null,{"$f":"(Monthly!GD211/Monthly!GD199)-1","v":0.10385756676557878},"--","--","--",{"$f":"(Monthly!GH211/Monthly!GH199)-1","v":{"$error":"#DIV/0!"}},"--","--","--","--"]
["1976-04-01",null,null,null,{"$f":"(Monthly!E218/Monthly!E206)-1","v":{"$error":"#DIV/0!"}},{"$f":"(Monthly!F218/Monthly!F206)-1","v":{"$error":"#DIV/0!"}},{"$f":"(Monthly!G218/Monthly!G206)-1","v":{"$error":"#DIV/0!"}},{"$f":"(Monthly!H218/Monthly!H206)-1","v":{"$error":"#DIV/0!"}},null,null,null,null,null,null,null,null,null,null,null,null,null,null,null,{"$f":"(Monthly!X218-Monthly!X206)","v":4.9000000000000057},{"$f":"(Monthly!Y218/Monthly!Y206)-1","v":-5.3013992249116737E-2},null,null,null,null,null,null,null,null,null,null,null,null,null,{"$f":"(Monthly!AM218/Monthly!AM206)-1","v":9.046294821101819E-2},{"$f":"(Monthly!AN218/Monthly!AN206)-1","v":0.11387014909298765},"--","--",{"$f":"Monthly!AQ218-Monthly!AQ206","v":23.1},"--","--",{"$f":"Monthly!AT218-Monthly!AT206","v":19.5},"--","--",{"$f":"Monthly!AW218-Monthly!AW206","v":24.5},{"$f":"Monthly!AX218-Monthly!AX206","v":22.6},{"$f":"Monthly!AY218-Monthly!AY206","v":33.300000000000004},{"$f":"Monthly!AZ218-Monthly!AZ206","v":18.599999999999994},{"$f":"Monthly!BA218-Monthly!BA206","v":35.599999999999994},"--","--",null,null,null,null,null,null,null,null,null,"--","--",null,null,null,null,null,{"$f":"(Monthly!BT218/Monthly!BT206)-1","v":6.0833154221870744E-2},null,null,null,{"$f":"(Monthly!BX218/Monthly!BX206)-1","v":0.38805970149253732},{"$f":"(Monthly!BY218/Monthly!BY206)-1","v":0.30715935334872979},"--","--",{"$f":"Monthly!CB218-Monthly!CB206","v":-5.4380535833365879},{"$f":"Monthly!CC218-Monthly!CC206","v":-6.2080535833365893},"--","--",null,"--","--",null,{"$f":"(Monthly!CJ218/Monthly!CJ206)-1","v":0.12523020257826878},{"$f":"(Monthly!CK218/Monthly!CK206)-1","v":0.10584958217270213},{"$f":"(Monthly!CL218/Monthly!CL206)-1","v":-0.11561743341404351},{"$f":"(Monthly!CM218/Monthly!CM206)-1","v":0.36721728081321481},{"$f":"(Monthly!CN218/Monthly!CN206)-1","v":3.6202957495418131E-2},{"$f":"(Monthly!CO218/Monthly!CO206)-1","v":0.17057991513437054},{"$f":"(Monthly!CP218/Monthly!CP206)-1","v":5.9157836581835266E-2},{"$f":"(Monthly!CQ218/Monthly!CQ206)-1","v":1.0099696776919798E-2},{"$f":"(Monthly!CR218/Monthly!CR206)-1","v":9.3939711900229428E-2},null,null,null,null,null,null,null,{"$f":"(Monthly!CZ218/Monthly!CZ206)-1","v":5.8490566037735947E-2},{"$f":"(Monthly!DA218/Monthly!DA206)-1","v":6.3789868667917471E-2},null,null,null,null,null,null,{"$f":"((Monthly!DH218-Monthly!DH206)*60)","v":12.000000000000171},{"$f":"((Monthly!DI218-Monthly!DI206)*100)","v":30.000000000000426},"--",{"$f":"((Monthly!DK218-Monthly!DK206)*100)","v":-110.00000000000006},{"$f":"Monthly!DL218-Monthly!DL206","v":782},null,null,null,{"$f":"Monthly!DP218-Monthly!DP206","v":2831},null,null,null,{"$f":"(Monthly!DT218/Monthly!DT206)-1","v":-0.29509757258448355},{"$f":"Monthly!DU218-Monthly!DU206","v":-0.5},"--","--","--","--","--","--","--","--",null,null,null,null,null,null,null,null,null,null,null,null,null,{"$f":"(Monthly!EQ218/Monthly!EQ206)-1","v":5.3913043478260869E-2},{"$f":"(Monthly!ER218/Monthly!ER206)-1","v":5.2364864864864691E-2},{"$f":"(Monthly!ES218/Monthly!ES206)-1","v":6.6086956521739015E-2},null,null,null,null,null,{"$f":"((Monthly!EY218-Monthly!EY206)*100)","v":-75},{"$f":"((Monthly!EZ218-Monthly!EZ206)*100)","v":-67},{"$f":"((Monthly!FA218-Monthly!FA206)*100)","v":-54.999999999999893},{"$f":"((Monthly!FB218-Monthly!FB206)*100)","v":-64.000000000000057},"--",{"$f":"((Monthly!FD218-Monthly!FD206)*100)","v":-8.9999999999999858},{"$f":"((Monthly!FE218-Monthly!FE206)*100)","v":-75},{"$f":"((Monthly!FF218-Monthly!FF206)*100)","v":-98.000000000000043},"--",{"$f":"((Monthly!FH218-Monthly!FH206)*100)","v":-74.000000000000028},{"$f":"((Monthly!FI218-Monthly!FI206)*100)","v":-67.000000000000085},null,null,null,null,null,null,{"$f":"(Monthly!FP218/Monthly!FP206)-1","v":-2.7101879327398493E-2},"--","--","--",{"$f":"(Monthly!FT218/Monthly!FT206)-1","v":8.6262273460016692E-2},{"$f":"(Monthly!FU218/Monthly!FU206)-1","v":6.6882036495481412E-2},{"$f":"(Monthly!FV218/Monthly!FV206)-1","v":0.20807532879586499},{"$f":"(Monthly!FW218/Monthly!FW206)-1","v":-0.27835051546391743},{"$f":"(Monthly!FX218/Monthly!FX206)-1","v":0.22534653465346532},null,null,null,null,null,{"$f":"(Monthly!GD218/Monthly!GD206)-1","v":9.0501792114695334E-2},"--","--","--",{"$f":"(Monthly!GH218/Monthly!GH206)-1","v":{"$error":"#DIV/0!"}},"--","--","--","--"]
["1976-08-01",null,null,null,{"$f":"(Monthly!E222/Monthly!E210)-1","v":{"$error":"#DIV/0!"}},{"$f":"(Monthly!F222/Monthly!F210)-1","v":{"$error":"#DIV/0!"}},{"$f":"(Monthly!G222/Monthly!G210)-1","v":{"$error":"#DIV/0!"}},{"$f":"(Monthly!H222/Monthly!H210)-1","v":{"$error":"#DIV/0!"}},null,null,null,null,null,null,null,null,null,null,null,null,null,null,null,{"$f":"(Monthly!X222-Monthly!X210)","v":4.2999999999999972},{"$f":"(Monthly!Y222/Monthly!Y210)-1","v":-1.7128578316519816E-2},null,null,null,null,null,null,null,null,null,null,null,null,null,{"$f":"(Monthly!AM222/Monthly!AM210)-1","v":8.3105182057649607E-2},{"$f":"(Monthly!AN222/Monthly!AN210)-1","v":9.9049416444346949E-2},"--","--",{"$f":"Monthly!AQ222-Monthly!AQ210","v":3.1000000000000014},"--","--",{"$f":"Monthly!AT222-Monthly!AT210","v":2.3999999999999986},"--","--",{"$f":"Monthly!AW222-Monthly!AW210","v":24.299999999999997},{"$f":"Monthly!AX222-Monthly!AX210","v":-2.5999999999999943},{"$f":"Monthly!AY222-Monthly!AY210","v":4.5},{"$f":"Monthly!AZ222-Monthly!AZ210","v":-8.2000000000000028},{"$f":"Monthly!BA222-Monthly!BA210","v":20.100000000000001},"--","--",null,null,null,null,null,null,null,null,null,"--","--",null,null,null,null,null,{"$f":"(Monthly!BT222/Monthly!BT210)-1","v":9.7362210845993946E-2},null,null,null,{"$f":"(Monthly!BX222/Monthly!BX210)-1","v":0.23015873015873023},{"$f":"(Monthly!BY222/Monthly!BY210)-1","v":0.31690140845070425},"--","--",{"$f":"Monthly!CB222-Monthly!CB210","v":-3.4976772733659374},{"$f":"Monthly!CC222-Monthly!CC210","v":-3.9176772733659391},"--","--",null,"--","--",null,{"$f":"(Monthly!CJ222/Monthly!CJ210)-1","v":0.14487632508833914},{"$f":"(Monthly!CK222/Monthly!CK210)-1","v":9.286384299011452E-2},{"$f":"(Monthly!CL222/Monthly!CL210)-1","v":-3.7371134020618424E-2},{"$f":"(Monthly!CM222/Monthly!CM210)-1","v":0.20966084275436803},{"$f":"(Monthly!CN222/Monthly!CN210)-1","v":3.1586254772648426E-2},{"$f":"(Monthly!CO222/Monthly!CO210)-1","v":0.14510956707642975},{"$f":"(Monthly!CP222/Monthly!CP210)-1","v":9.2316998601494449E-2},{"$f":"(Monthly!CQ222/Monthly!CQ210)-1","v":9.4266749924836191E-3},{"$f":"(Monthly!CR222/Monthly!CR210)-1","v":0.12231429458765053},null,null,null,null,null,null,null,{"$f":"(Monthly!CZ222/Monthly!CZ210)-1","v":5.719557195571956E-2},{"$f":"(Monthly!DA222/Monthly!DA210)-1","v":6.8265682656826421E-2},null,null,null,null,null,null,{"$f":"((Monthly!DH222-Monthly!DH210)*60)","v":-6.0000000000000853},{"$f":"((Monthly!DI222-Monthly!DI210)*100)","v":50},"--",{"$f":"((Monthly!DK222-Monthly!DK210)*100)","v":-60.000000000000057},{"$f":"Monthly!DL222-Monthly!DL210","v":772},null,null,null,{"$f":"Monthly!DP222-Monthly!DP210","v":2549},null,null,null,{"$f":"(Monthly!DT222/Monthly!DT210)-1","v":-0.13953488372093026},{"$f":"Monthly!DU222-Monthly!DU210","v":-1.2999999999999989},"--","--","--","--","--","--","--","--",null,null,null,null,null,null,null,null,null,null,null,null,null,{"$f":"(Monthly!EQ222/Monthly!EQ210)-1","v":4.067796610169494E-2},{"$f":"(Monthly!ER222/Monthly!ER210)-1","v":6.0100166944908162E-2},{"$f":"(Monthly!ES222/Monthly!ES210)-1","v":6.8376068376068355E-2},null,null,null,null,null,{"$f":"((Monthly!EY222-Monthly!EY210)*100)","v":-65.000000000000028},{"$f":"((Monthly!EZ222-Monthly!EZ210)*100)","v":-84.999999999999972},{"$f":"((Monthly!FA222-Monthly!FA210)*100)","v":-50},{"$f":"((Monthly!FB222-Monthly!FB210)*100)","v":-94.999999999999929},"--",{"$f":"((Monthly!FD222-Monthly!FD210)*100)","v":6.0000000000000497},{"$f":"((Monthly!FE222-Monthly!FE210)*100)","v":-130.00000000000006},{"$f":"((Monthly!FF222-Monthly!FF210)*100)","v":-170.00000000000003},"--",{"$f":"((Monthly!FH222-Monthly!FH210)*100)","v":-102.00000000000004},{"$f":"((Monthly!FI222-Monthly!FI210)*100)","v":-63.000000000000078},null,null,null,null,null,null,{"$f":"(Monthly!FP222/Monthly!FP210)-1","v":-4.8290515742708151E-2},"--","--","--",{"$f":"(Monthly!FT222/Monthly!FT210)-1","v":3.3734087489454501E-2},{"$f":"(Monthly!FU222/Monthly!FU210)-1","v":1.4887942169115931E-2},{"$f":"(Monthly!FV222/Monthly!FV210)-1","v":0.29322473158089624},{"$f":"(Monthly!FW222/Monthly!FW210)-1","v":0.61538461538461542},{"$f":"(Monthly!FX222/Monthly!FX210)-1","v":0.13153594771241828},null,null,null,null,null,{"$f":"(Monthly!GD222/Monthly!GD210)-1","v":9.0501792114695334E-2},"--","--","--",{"$f":"(Monthly!GH222/Monthly!GH210)-1","v":{"$error":"#DIV/0!"}},"--","--","--","--"]
["1977-02-01",null,null,null,{"$f":"(Monthly!E228/Monthly!E216)-1","v":{"$error":"#DIV/0!"}},{"$f":"(Monthly!F228/Monthly!F216)-1","v":{"$error":"#DIV/0!"}},{"$f":"(Monthly!G228/Monthly!G216)-1","v":{"$error":"#DIV/0!"}},{"$f":"(Monthly!H228/Monthly!H216)-1","v":{"$error":"#DIV/0!"}},null,null,null,null,null,null,null,null,null,null,null,null,null,null,null,{"$f":"(Monthly!X228-Monthly!X216)","v":2.7999999999999972},{"$f":"(Monthly!Y228/Monthly!Y216)-1","v":2.9481269404606936E-2},null,null,null,null,null,null,null,null,null,null,null,null,null,{"$f":"(Monthly!AM228/Monthly!AM216)-1","v":6.3950481896559275E-2},{"$f":"(Monthly!AN228/Monthly!AN216)-1","v":6.959351706968353E-2},"--","--",{"$f":"Monthly!AQ228-Monthly!AQ216","v":-6.5},"--","--",{"$f":"Monthly!AT228-Monthly!AT216","v":-5.7999999999999972},"--","--",{"$f":"Monthly!AW228-Monthly!AW216","v":3.6999999999999957},{"$f":"Monthly!AX228-Monthly!AX216","v":-11.900000000000006},{"$f":"Monthly!AY228-Monthly!AY216","v":3.5999999999999943},{"$f":"Monthly!AZ228-Monthly!AZ216","v":-14},{"$f":"Monthly!BA228-Monthly!BA216","v":8.9999999999999929},"--","--",null,null,null,null,null,null,null,null,null,"--","--",null,null,null,null,null,{"$f":"(Monthly!BT228/Monthly!BT216)-1","v":0.12530139613400082},null,null,null,{"$f":"(Monthly!BX228/Monthly!BX216)-1","v":0.26332899869960991},{"$f":"(Monthly!BY228/Monthly!BY216)-1","v":0.31092436974789917},"--",{"$f":"(Monthly!CA228/Monthly!CA216)-1","v":9.8972707758356426E-2},{"$f":"Monthly!CB228-Monthly!CB216","v":-0.29147445533509497},{"$f":"Monthly!CC228-Monthly!CC216","v":-0.36147445533509526},"--","--",null,"--","--",null,{"$f":"(Monthly!CJ228/Monthly!CJ216)-1","v":0.30279503105590067},{"$f":"(Monthly!CK228/Monthly!CK216)-1","v":8.6845905246510258E-2},{"$f":"(Monthly!CL228/Monthly!CL216)-1","v":-0.23537061118335512},{"$f":"(Monthly!CM228/Monthly!CM216)-1","v":0.19760956175298805},{"$f":"(Monthly!CN228/Monthly!CN216)-1","v":9.3894429579177707E-3},{"$f":"(Monthly!CO228/Monthly!CO216)-1","v":0.15048423143779499},{"$f":"(Monthly!CP228/Monthly!CP216)-1","v":0.10555354790519811},{"$f":"(Monthly!CQ228/Monthly!CQ216)-1","v":9.6433125123704944E-3},{"$f":"(Monthly!CR228/Monthly!CR216)-1","v":1.1277385996209164},null,null,null,null,null,null,null,{"$f":"(Monthly!CZ228/Monthly!CZ216)-1","v":6.0822898032200312E-2},{"$f":"(Monthly!DA228/Monthly!DA216)-1","v":6.2277580071174343E-2},null,null,null,null,null,null,{"$f":"((Monthly!DH228-Monthly!DH216)*60)","v":-17.999999999999829},{"$f":"((Monthly!DI228-Monthly!DI216)*100)","v":60.000000000000142},"--",{"$f":"((Monthly!DK228-Monthly!DK216)*100)","v":-10.000000000000053},{"$f":"Monthly!DL228-Monthly!DL216","v":459},null,null,null,{"$f":"Monthly!DP228-Monthly!DP216","v":2171},null,null,null,{"$f":"(Monthly!DT228/Monthly!DT216)-1","v":0.28510334996436204},{"$f":"Monthly!DU228-Monthly!DU216","v":-0.99999999999999911},"--","--","--","--","--","--","--","--",null,null,null,null,null,null,null,null,null,null,null,null,null,{"$f":"(Monthly!EQ228/Monthly!EQ216)-1","v":6.0100166944908162E-2},{"$f":"(Monthly!ER228/Monthly!ER216)-1","v":5.6542810985460434E-2},{"$f":"(Monthly!ES228/Monthly!ES216)-1","v":5.9308072487644026E-2},null,null,null,null,null,{"$f":"((Monthly!EY228-Monthly!EY216)*100)","v":-50},{"$f":"((Monthly!EZ228-Monthly!EZ216)*100)","v":-8.9999999999999858},{"$f":"((Monthly!FA228-Monthly!FA216)*100)","v":-51.000000000000156},{"$f":"((Monthly!FB228-Monthly!FB216)*100)","v":-112.0000000000001},"--",{"$f":"((Monthly!FD228-Monthly!FD216)*100)","v":-14.000000000000057},{"$f":"((Monthly!FE228-Monthly!FE216)*100)","v":-20.999999999999996},{"$f":"((Monthly!FF228-Monthly!FF216)*100)","v":-44.000000000000043},"--",{"$f":"((Monthly!FH228-Monthly!FH216)*100)","v":-62.000000000000014},{"$f":"((Monthly!FI228-Monthly!FI216)*100)","v":-40.000000000000036},null,null,null,null,null,null,{"$f":"(Monthly!FP228/Monthly!FP216)-1","v":3.4625062908907989E-2},"--","--","--",{"$f":"(Monthly!FT228/Monthly!FT216)-1","v":5.4107216671180458E-2},{"$f":"(Monthly!FU228/Monthly!FU216)-1","v":1.9257623917756206E-2},{"$f":"(Monthly!FV228/Monthly!FV216)-1","v":0.16359651411574405},{"$f":"(Monthly!FW228/Monthly!FW216)-1","v":4.2682926829268553E-2},{"$f":"(Monthly!FX228/Monthly!FX216)-1","v":0.42636258214147671},null,null,null,null,null,{"$f":"(Monthly!GD228/Monthly!GD216)-1","v":0.15544472152950961},"--","--","--",{"$f":"(Monthly!GH228/Monthly!GH216)-1","v":{"$error":"#DIV/0!"}},"--","--","--","--"]
["1977-03-01",null,null,null,{"$f":"(Monthly!E229/Monthly!E217)-1","v":{"$error":"#DIV/0!"}},{"$f":"(Monthly!F229/Monthly!F217)-1","v":{"$error":"#DIV/0!"}},{"$f":"(Monthly!G229/Monthly!G217)-1","v":{"$error":"#DIV/0!"}},{"$f":"(Monthly!H229/Monthly!H217)-1","v":{"$error":"#DIV/0!"}},null,null,null,null,null,null,null,null,null,null,null,null,null,null,null,{"$f":"(Monthly!X229-Monthly!X217)","v":3.7000000000000028},{"$f":"(Monthly!Y229/Monthly!Y217)-1","v":5.3858843809353019E-2},null,null,null,null,null,null,null,null,null,null,null,null,null,{"$f":"(Monthly!AM229/Monthly!AM217)-1","v":7.6264582776738976E-2},{"$f":"(Monthly!AN229/Monthly!AN217)-1","v":8.321087756502199E-2},"--","--",{"$f":"Monthly!AQ229-Monthly!AQ217","v":0},"--","--",{"$f":"Monthly!AT229-Monthly!AT217","v":-0.60000000000000142},"--","--",{"$f":"Monthly!AW229-Monthly!AW217","v":8},{"$f":"Monthly!AX229-Monthly!AX217","v":1.8999999999999986},{"$f":"Monthly!AY229-Monthly!AY217","v":6.6000000000000085},{"$f":"Monthly!AZ229-Monthly!AZ217","v":-0.79999999999999716},{"$f":"Monthly!BA229-Monthly!BA217","v":-7.1000000000000014},"--","--",null,null,null,null,null,null,null,null,null,"--","--",null,null,null,null,null,{"$f":"(Monthly!BT229/Monthly!BT217)-1","v":0.13305797605836345},null,null,null,{"$f":"(Monthly!BX229/Monthly!BX217)-1","v":0.45179451090781142},{"$f":"(Monthly!BY229/Monthly!BY217)-1","v":0.42611683848797255},"--",{"$f":"(Monthly!CA229/Monthly!CA217)-1","v":0.12969048528849814},{"$f":"Monthly!CB229-Monthly!CB217","v":0.16796536796537431},{"$f":"Monthly!CC229-Monthly!CC217","v":2.7965367965371968E-2},"--","--",null,"--","--",null,{"$f":"(Monthly!CJ229/Monthly!CJ217)-1","v":0.47546531302876471},{"$f":"(Monthly!CK229/Monthly!CK217)-1","v":9.3262119967132184E-2},{"$f":"(Monthly!CL229/Monthly!CL217)-1","v":-9.6393442622950798E-2},{"$f":"(Monthly!CM229/Monthly!CM217)-1","v":0.33873873873873883},{"$f":"(Monthly!CN229/Monthly!CN217)-1","v":2.1268340002425168E-2},{"$f":"(Monthly!CO229/Monthly!CO217)-1","v":0.14121390112579535},{"$f":"(Monthly!CP229/Monthly!CP217)-1","v":0.11524364664061282},{"$f":"(Monthly!CQ229/Monthly!CQ217)-1","v":9.7662629208623564E-3},{"$f":"(Monthly!CR229/Monthly!CR217)-1","v":1.1655500520465836},null,null,null,null,null,null,null,{"$f":"(Monthly!CZ229/Monthly!CZ217)-1","v":6.4285714285714279E-2},{"$f":"(Monthly!DA229/Monthly!DA217)-1","v":6.1946902654867353E-2},null,null,null,null,null,null,{"$f":"((Monthly!DH229-Monthly!DH217)*60)","v":-6.0000000000000853},{"$f":"((Monthly!DI229-Monthly!DI217)*100)","v":70.000000000000284},"--",{"$f":"((Monthly!DK229-Monthly!DK217)*100)","v":-19.999999999999929},{"$f":"Monthly!DL229-Monthly!DL217","v":471},null,null,null,{"$f":"Monthly!DP229-Monthly!DP217","v":2342},null,null,null,{"$f":"(Monthly!DT229/Monthly!DT217)-1","v":0},{"$f":"Monthly!DU229-Monthly!DU217","v":-1.4999999999999991},"--","--","--","--","--","--","--","--",null,null,null,null,null,null,null,null,null,null,null,null,null,{"$f":"(Monthly!EQ229/Monthly!EQ217)-1","v":6.8333333333333135E-2},{"$f":"(Monthly!ER229/Monthly!ER217)-1","v":5.6270096463022501E-2},{"$f":"(Monthly!ES229/Monthly!ES217)-1","v":5.891980360065463E-2},null,null,null,null,null,{"$f":"((Monthly!EY229-Monthly!EY217)*100)","v":-50},{"$f":"((Monthly!EZ229-Monthly!EZ217)*100)","v":-14.999999999999947},{"$f":"((Monthly!FA229-Monthly!FA217)*100)","v":-41.999999999999993},{"$f":"((Monthly!FB229-Monthly!FB217)*100)","v":-100},"--",{"$f":"((Monthly!FD229-Monthly!FD217)*100)","v":-7.0000000000000284},{"$f":"((Monthly!FE229-Monthly!FE217)*100)","v":-40.000000000000036},{"$f":"((Monthly!FF229-Monthly!FF217)*100)","v":-71},"--",{"$f":"((Monthly!FH229-Monthly!FH217)*100)","v":-56.00000000000005},{"$f":"((Monthly!FI229-Monthly!FI217)*100)","v":-27.000000000000046},null,null,null,null,null,null,{"$f":"(Monthly!FP229/Monthly!FP217)-1","v":6.6335328126584825E-2},"--","--","--",{"$f":"(Monthly!FT229/Monthly!FT217)-1","v":4.8511779330944194E-2},{"$f":"(Monthly!FU229/Monthly!FU217)-1","v":1.3685842310129592E-2},{"$f":"(Monthly!FV229/Monthly!FV217)-1","v":0.20893835318667953},{"$f":"(Monthly!FW229/Monthly!FW217)-1","v":0.19277108433734935},{"$f":"(Monthly!FX229/Monthly!FX217)-1","v":0.2825245608812148},null,null,null,null,null,{"$f":"(Monthly!GD229/Monthly!GD217)-1","v":0.14876033057851257},"--","--","--",{"$f":"(Monthly!GH229/Monthly!GH217)-1","v":{"$error":"#DIV/0!"}},"--","--","--","--"]
["1977-07-01",null,null,null,{"$f":"(Monthly!E233/Monthly!E221)-1","v":{"$error":"#DIV/0!"}},{"$f":"(Monthly!F233/Monthly!F221)-1","v":{"$error":"#DIV/0!"}},{"$f":"(Monthly!G233/Monthly!G221)-1","v":{"$error":"#DIV/0!"}},{"$f":"(Monthly!H233/Monthly!H221)-1","v":{"$error":"#DIV/0!"}},null,null,null,null,null,null,null,null,null,null,null,null,null,null,null,{"$f":"(Monthly!X233-Monthly!X221)","v":4.5},{"$f":"(Monthly!Y233/Monthly!Y221)-1","v":8.9544457115935172E-2},null,null,null,null,null,null,null,null,null,null,null,null,null,{"$f":"(Monthly!AM233/Monthly!AM221)-1","v":8.7401504082227355E-2},{"$f":"(Monthly!AN233/Monthly!AN221)-1","v":9.2599936354067269E-2},"--","--",{"$f":"Monthly!AQ233-Monthly!AQ221","v":1.8000000000000043},"--","--",{"$f":"Monthly!AT233-Monthly!AT221","v":-0.60000000000000142},"--","--",{"$f":"Monthly!AW233-Monthly!AW221","v":1.5},{"$f":"Monthly!AX233-Monthly!AX221","v":0.89999999999999858},{"$f":"Monthly!AY233-Monthly!AY221","v":-15.200000000000003},{"$f":"Monthly!AZ233-Monthly!AZ221","v":3.8999999999999986},{"$f":"Monthly!BA233-Monthly!BA221","v":4.2999999999999972},"--","--",null,null,null,null,null,null,null,null,null,"--","--",null,null,null,null,null,{"$f":"(Monthly!BT233/Monthly!BT221)-1","v":0.16256392154733157},null,null,null,{"$f":"(Monthly!BX233/Monthly!BX221)-1","v":0.46895074946466808},{"$f":"(Monthly!BY233/Monthly!BY221)-1","v":0.35502008032128507},"--",{"$f":"(Monthly!CA233/Monthly!CA221)-1","v":9.0230147843316511E-2},{"$f":"Monthly!CB233-Monthly!CB221","v":0.21111111111110858},{"$f":"Monthly!CC233-Monthly!CC221","v":-0.41888888888889397},"--","--",null,"--","--",null,{"$f":"(Monthly!CJ233/Monthly!CJ221)-1","v":0.13704819277108427},{"$f":"(Monthly!CK233/Monthly!CK221)-1","v":0.10462562396006669},{"$f":"(Monthly!CL233/Monthly!CL221)-1","v":-2.6954177897574594E-3},{"$f":"(Monthly!CM233/Monthly!CM221)-1","v":0.28774422735346361},{"$f":"(Monthly!CN233/Monthly!CN221)-1","v":3.0165876206755371E-2},{"$f":"(Monthly!CO233/Monthly!CO221)-1","v":0.12774498229043685},{"$f":"(Monthly!CP233/Monthly!CP221)-1","v":0.140326200210245},{"$f":"(Monthly!CQ233/Monthly!CQ221)-1","v":1.0108468823812666E-2},{"$f":"(Monthly!CR233/Monthly!CR221)-1","v":1.1794050842455119},null,null,null,null,null,null,null,{"$f":"(Monthly!CZ233/Monthly!CZ221)-1","v":6.6666666666666652E-2},{"$f":"(Monthly!DA233/Monthly!DA221)-1","v":6.25E-2},null,null,null,null,null,null,{"$f":"((Monthly!DH233-Monthly!DH221)*60)","v":-12.000000000000171},{"$f":"((Monthly!DI233-Monthly!DI221)*100)","v":30.000000000000426},"--",{"$f":"((Monthly!DK233-Monthly!DK221)*100)","v":-89.999999999999943},{"$f":"Monthly!DL233-Monthly!DL221","v":735},null,null,null,{"$f":"Monthly!DP233-Monthly!DP221","v":3289},null,null,null,{"$f":"(Monthly!DT233/Monthly!DT221)-1","v":-6.0900716479017403E-2},{"$f":"Monthly!DU233-Monthly!DU221","v":-0.60000000000000053},"--","--","--","--","--","--","--","--",null,null,null,null,null,null,null,null,null,null,null,null,null,{"$f":"(Monthly!EQ233/Monthly!EQ221)-1","v":5.6818181818181657E-2},{"$f":"(Monthly!ER233/Monthly!ER221)-1","v":5.8637083993660744E-2},{"$f":"(Monthly!ES233/Monthly!ES221)-1","v":6.2801932367149815E-2},null,null,null,null,null,{"$f":"((Monthly!EY233-Monthly!EY221)*100)","v":-50},{"$f":"((Monthly!EZ233-Monthly!EZ221)*100)","v":11.000000000000032},{"$f":"((Monthly!FA233-Monthly!FA221)*100)","v":-62.000000000000014},{"$f":"((Monthly!FB233-Monthly!FB221)*100)","v":-95.000000000000114},"--",{"$f":"((Monthly!FD233-Monthly!FD221)*100)","v":0.99999999999997868},{"$f":"((Monthly!FE233-Monthly!FE221)*100)","v":-4.0000000000000036},{"$f":"((Monthly!FF233-Monthly!FF221)*100)","v":-25.999999999999979},{"$f":"((Monthly!FG233-Monthly!FG221)*100)","v":-58.000000000000007},{"$f":"((Monthly!FH233-Monthly!FH221)*100)","v":-65.000000000000028},{"$f":"((Monthly!FI233-Monthly!FI221)*100)","v":-50},null,null,null,null,null,null,{"$f":"(Monthly!FP233/Monthly!FP221)-1","v":9.1544949598847847E-2},"--","--","--",{"$f":"(Monthly!FT233/Monthly!FT221)-1","v":3.0525365872797749E-2},{"$f":"(Monthly!FU233/Monthly!FU221)-1","v":-9.1131865275005941E-3},{"$f":"(Monthly!FV233/Monthly!FV221)-1","v":2.0682476466328925E-2},{"$f":"(Monthly!FW233/Monthly!FW221)-1","v":-7.9268292682926789E-2},{"$f":"(Monthly!FX233/Monthly!FX221)-1","v":0.25135820354943861},null,null,null,null,null,{"$f":"(Monthly!GD233/Monthly!GD221)-1","v":0.14215283483977004},"--","--","--",{"$f":"(Monthly!GH233/Monthly!GH221)-1","v":{"$error":"#DIV/0!"}},"--","--","--","--"]
["1978-02-01",null,null,null,{"$f":"(Monthly!E240/Monthly!E228)-1","v":{"$error":"#DIV/0!"}},{"$f":"(Monthly!F240/Monthly!F228)-1","v":{"$error":"#DIV/0!"}},{"$f":"(Monthly!G240/Monthly!G228)-1","v":{"$error":"#DIV/0!"}},{"$f":"(Monthly!H240/Monthly!H228)-1","v":{"$error":"#DIV/0!"}},null,null,null,null,null,null,null,null,null,null,null,null,null,null,null,{"$f":"(Monthly!X240-Monthly!X228)","v":0.59999999999999432},{"$f":"(Monthly!Y240/Monthly!Y228)-1","v":0.1219120725377818},null,null,null,null,null,null,null,null,null,null,null,null,null,{"$f":"(Monthly!AM240/Monthly!AM228)-1","v":4.0397205317020513E-2},{"$f":"(Monthly!AN240/Monthly!AN228)-1","v":5.276835207567987E-2},"--","--",{"$f":"Monthly!AQ240-Monthly!AQ228","v":0.89999999999999858},"--","--",{"$f":"Monthly!AT240-Monthly!AT228","v":1.2999999999999972},"--","--",{"$f":"Monthly!AW240-Monthly!AW228","v":2.1000000000000014},{"$f":"Monthly!AX240-Monthly!AX228","v":-0.59999999999999432},{"$f":"Monthly!AY240-Monthly!AY228","v":-2.3999999999999915},{"$f":"Monthly!AZ240-Monthly!AZ228","v":3.8000000000000043},{"$f":"Monthly!BA240-Monthly!BA228","v":-1.6999999999999957},"--","--",null,null,null,null,null,null,null,null,null,"--","--",null,null,null,null,null,{"$f":"(Monthly!BT240/Monthly!BT228)-1","v":0.19199100256097767},null,null,null,{"$f":"(Monthly!BX240/Monthly!BX228)-1","v":-0.105506948018528},{"$f":"(Monthly!BY240/Monthly!BY228)-1","v":0.11282051282051286},"--",{"$f":"(Monthly!CA240/Monthly!CA228)-1","v":-2.5531914893617169E-2},{"$f":"Monthly!CB240-Monthly!CB228","v":-1.1428294322250885},{"$f":"Monthly!CC240-Monthly!CC228","v":-2.0528294322250886},"--","--",null,"--","--",null,{"$f":"(Monthly!CJ240/Monthly!CJ228)-1","v":-5.7210965435041672E-2},{"$f":"(Monthly!CK240/Monthly!CK228)-1","v":0.12172592686321648},{"$f":"(Monthly!CL240/Monthly!CL228)-1","v":0.41751700680272097},{"$f":"(Monthly!CM240/Monthly!CM228)-1","v":-0.17831004657351968},{"$f":"(Monthly!CN240/Monthly!CN228)-1","v":6.2656641604009966E-2},{"$f":"(Monthly!CO240/Monthly!CO228)-1","v":7.1443988776170864E-2},{"$f":"(Monthly!CP240/Monthly!CP228)-1","v":0.16282366902640466},{"$f":"(Monthly!CQ240/Monthly!CQ228)-1","v":1.0417426508133376E-2},{"$f":"(Monthly!CR240/Monthly!CR228)-1","v":0.20830290267538709},null,null,null,null,null,null,null,{"$f":"(Monthly!CZ240/Monthly!CZ228)-1","v":6.2394603709949426E-2},{"$f":"(Monthly!DA240/Monthly!DA228)-1","v":6.1976549413735205E-2},null,null,null,null,null,null,{"$f":"((Monthly!DH240-Monthly!DH228)*60)","v":-23.999999999999915},{"$f":"((Monthly!DI240-Monthly!DI228)*100)","v":80.000000000000426},"--",{"$f":"((Monthly!DK240-Monthly!DK228)*100)","v":-129.99999999999997},{"$f":"Monthly!DL240-Monthly!DL228","v":796},null,null,null,{"$f":"Monthly!DP240-Monthly!DP228","v":3960},null,null,null,{"$f":"(Monthly!DT240/Monthly!DT228)-1","v":-0.14975041597337768},{"$f":"Monthly!DU240-Monthly!DU228","v":-0.5},"--","--","--","--","--","--","--","--",null,null,null,null,null,null,null,null,null,null,null,null,null,{"$f":"(Monthly!EQ240/Monthly!EQ228)-1","v":6.2992125984252079E-2},{"$f":"(Monthly!ER240/Monthly!ER228)-1","v":6.2691131498470831E-2},{"$f":"(Monthly!ES240/Monthly!ES228)-1","v":7.4650077760497702E-2},null,null,null,null,null,{"$f":"((Monthly!EY240-Monthly!EY228)*100)","v":175},{"$f":"((Monthly!EZ240-Monthly!EZ228)*100)","v":210.00000000000006},{"$f":"((Monthly!FA240-Monthly!FA228)*100)","v":43.000000000000149},{"$f":"((Monthly!FB240-Monthly!FB228)*100)","v":8.0000000000000071},"--",{"$f":"((Monthly!FD240-Monthly!FD228)*100)","v":49.000000000000021},{"$f":"((Monthly!FE240-Monthly!FE228)*100)","v":178.00000000000003},{"$f":"((Monthly!FF240-Monthly!FF228)*100)","v":187},{"$f":"((Monthly!FG240-Monthly!FG228)*100)","v":148.00000000000006},{"$f":"((Monthly!FH240-Monthly!FH228)*100)","v":100},{"$f":"((Monthly!FI240-Monthly!FI228)*100)","v":63.999999999999972},null,null,null,null,null,null,{"$f":"(Monthly!FP240/Monthly!FP228)-1","v":8.2790154684307726E-2},"--","--","--",{"$f":"(Monthly!FT240/Monthly!FT228)-1","v":-2.8147607264073282E-2},{"$f":"(Monthly!FU240/Monthly!FU228)-1","v":-5.8960096780266591E-2},{"$f":"(Monthly!FV240/Monthly!FV228)-1","v":0.16234639878015966},{"$f":"(Monthly!FW240/Monthly!FW228)-1","v":0.43274853801169577},{"$f":"(Monthly!FX240/Monthly!FX228)-1","v":0.2105691056910568},null,null,null,null,null,{"$f":"(Monthly!GD240/Monthly!GD228)-1","v":6.8345323741007213E-2},"--","--","--",{"$f":"(Monthly!GH240/Monthly!GH228)-1","v":{"$error":"#DIV/0!"}},"--","--","--","--"]
["1978-04-01",null,null,null,{"$f":"(Monthly!E242/Monthly!E230)-1","v":{"$error":"#DIV/0!"}},{"$f":"(Monthly!F242/Monthly!F230)-1","v":{"$error":"#DIV/0!"}},{"$f":"(Monthly!G242/Monthly!G230)-1","v":{"$error":"#DIV/0!"}},{"$f":"(Monthly!H242/Monthly!H230)-1","v":{"$error":"#DIV/0!"}},null,null,null,null,null,null,null,null,null,null,null,null,null,null,null,{"$f":"(Monthly!X242-Monthly!X230)","v":2},{"$f":"(Monthly!Y242/Monthly!Y230)-1","v":0.14032490640837247},null,null,null,null,null,null,null,null,null,null,null,null,null,{"$f":"(Monthly!AM242/Monthly!AM230)-1","v":5.9144425151038682E-2},{"$f":"(Monthly!AN242/Monthly!AN230)-1","v":6.2894616788321089E-2},"--","--",{"$f":"Monthly!AQ242-Monthly!AQ230","v":0.80000000000000426},"--","--",{"$f":"Monthly!AT242-Monthly!AT230","v":1.8999999999999986},"--","--",{"$f":"Monthly!AW242-Monthly!AW230","v":-2},{"$f":"Monthly!AX242-Monthly!AX230","v":-9.9999999999994316E-2},{"$f":"Monthly!AY242-Monthly!AY230","v":-9.9999999999994316E-2},{"$f":"Monthly!AZ242-Monthly!AZ230","v":1.0999999999999943},{"$f":"Monthly!BA242-Monthly!BA230","v":2.5},"--","--",null,null,null,null,null,null,null,null,null,"--","--",null,null,null,null,null,{"$f":"(Monthly!BT242/Monthly!BT230)-1","v":0.19406225304581937},null,null,null,{"$f":"(Monthly!BX242/Monthly!BX230)-1","v":0.16120507399577177},{"$f":"(Monthly!BY242/Monthly!BY230)-1","v":0.17349397590361448},"--",{"$f":"(Monthly!CA242/Monthly!CA230)-1","v":6.8053955127770571E-2},{"$f":"Monthly!CB242-Monthly!CB230","v":-1.5518716577540221},{"$f":"Monthly!CC242-Monthly!CC230","v":-2.3218716577540235},"--","--",null,"--","--",null,{"$f":"(Monthly!CJ242/Monthly!CJ230)-1","v":8.1351689612014999E-2},{"$f":"(Monthly!CK242/Monthly!CK230)-1","v":0.1254952947003467},{"$f":"(Monthly!CL242/Monthly!CL230)-1","v":0.16371367824238137},{"$f":"(Monthly!CM242/Monthly!CM230)-1","v":6.7558057705841001E-2},{"$f":"(Monthly!CN242/Monthly!CN230)-1","v":5.56028973157221E-2},{"$f":"(Monthly!CO242/Monthly!CO230)-1","v":6.0851063829787222E-2},{"$f":"(Monthly!CP242/Monthly!CP230)-1","v":0.16359874886510317},{"$f":"(Monthly!CQ242/Monthly!CQ230)-1","v":1.0501447533730168E-2},{"$f":"(Monthly!CR242/Monthly!CR230)-1","v":0.20508396270000673},null,null,null,null,null,null,null,{"$f":"(Monthly!CZ242/Monthly!CZ230)-1","v":6.4999999999999947E-2},{"$f":"(Monthly!DA242/Monthly!DA230)-1","v":6.6334991708125957E-2},null,null,null,null,null,null,{"$f":"((Monthly!DH242-Monthly!DH230)*60)","v":-12.000000000000171},{"$f":"((Monthly!DI242-Monthly!DI230)*100)","v":89.999999999999858},"--",{"$f":"((Monthly!DK242-Monthly!DK230)*100)","v":-110.00000000000006},{"$f":"Monthly!DL242-Monthly!DL230","v":748},null,null,null,{"$f":"Monthly!DP242-Monthly!DP230","v":4434},null,null,null,{"$f":"(Monthly!DT242/Monthly!DT230)-1","v":-0.12777404169468731},{"$f":"Monthly!DU242-Monthly!DU230","v":-1.2000000000000002},"--","--","--","--","--","--","--","--",null,null,null,null,null,null,null,null,null,null,null,null,null,{"$f":"(Monthly!EQ242/Monthly!EQ230)-1","v":6.3174114021571581E-2},{"$f":"(Monthly!ER242/Monthly!ER230)-1","v":7.1320182094081863E-2},{"$f":"(Monthly!ES242/Monthly!ES230)-1","v":7.5384615384615383E-2},null,null,null,null,null,{"$f":"((Monthly!EY242-Monthly!EY230)*100)","v":175},{"$f":"((Monthly!EZ242-Monthly!EZ230)*100)","v":215.99999999999991},{"$f":"((Monthly!FA242-Monthly!FA230)*100)","v":52.000000000000135},{"$f":"((Monthly!FB242-Monthly!FB230)*100)","v":25},"--",{"$f":"((Monthly!FD242-Monthly!FD230)*100)","v":60.999999999999943},{"$f":"((Monthly!FE242-Monthly!FE230)*100)","v":175},{"$f":"((Monthly!FF242-Monthly!FF230)*100)","v":200.99999999999997},{"$f":"((Monthly!FG242-Monthly!FG230)*100)","v":178.00000000000003},{"$f":"((Monthly!FH242-Monthly!FH230)*100)","v":119.00000000000004},{"$f":"((Monthly!FI242-Monthly!FI230)*100)","v":78.000000000000028},null,null,null,null,null,null,{"$f":"(Monthly!FP242/Monthly!FP230)-1","v":8.5782215882073132E-2},"--","--","--",{"$f":"(Monthly!FT242/Monthly!FT230)-1","v":-3.4603732756288808E-2},{"$f":"(Monthly!FU242/Monthly!FU230)-1","v":-6.8145773641647978E-2},{"$f":"(Monthly!FV242/Monthly!FV230)-1","v":0.11160873528595783},{"$f":"(Monthly!FW242/Monthly!FW230)-1","v":1.1402439024390247},{"$f":"(Monthly!FX242/Monthly!FX230)-1","v":-2.3866348448686736E-3},null,null,null,null,null,{"$f":"(Monthly!GD242/Monthly!GD230)-1","v":6.8345323741007213E-2},"--","--","--",{"$f":"(Monthly!GH242/Monthly!GH230)-1","v":{"$error":"#DIV/0!"}},"--","--","--","--"]
["1978-09-01",null,null,null,{"$f":"(Monthly!E247/Monthly!E235)-1","v":{"$error":"#DIV/0!"}},{"$f":"(Monthly!F247/Monthly!F235)-1","v":{"$error":"#DIV/0!"}},{"$f":"(Monthly!G247/Monthly!G235)-1","v":{"$error":"#DIV/0!"}},{"$f":"(Monthly!H247/Monthly!H235)-1","v":{"$error":"#DIV/0!"}},null,null,null,null,null,null,null,null,null,null,null,null,null,null,null,{"$f":"(Monthly!X247-Monthly!X235)","v":1.5},{"$f":"(Monthly!Y247/Monthly!Y235)-1","v":0.15830222347739276},null,null,null,null,null,null,null,null,null,null,null,null,null,{"$f":"(Monthly!AM247/Monthly!AM235)-1","v":5.2622716849211715E-2},{"$f":"(Monthly!AN247/Monthly!AN235)-1","v":6.1387343261497751E-2},"--","--",{"$f":"Monthly!AQ247-Monthly!AQ235","v":6.6000000000000014},"--","--",{"$f":"Monthly!AT247-Monthly!AT235","v":6.8000000000000043},"--","--",{"$f":"Monthly!AW247-Monthly!AW235","v":9.7000000000000028},{"$f":"Monthly!AX247-Monthly!AX235","v":4.2999999999999972},{"$f":"Monthly!AY247-Monthly!AY235","v":21.399999999999991},{"$f":"Monthly!AZ247-Monthly!AZ235","v":10.100000000000001},{"$f":"Monthly!BA247-Monthly!BA235","v":3.2999999999999972},"--","--",null,null,null,null,null,null,null,null,null,"--","--",null,null,null,null,null,{"$f":"(Monthly!BT247/Monthly!BT235)-1","v":0.20724905445305875},null,null,null,{"$f":"(Monthly!BX247/Monthly!BX235)-1","v":1.0774756285274467E-2},{"$f":"(Monthly!BY247/Monthly!BY235)-1","v":4.5997610513739629E-2},"--",{"$f":"(Monthly!CA247/Monthly!CA235)-1","v":-5.5345383214234767E-3},{"$f":"Monthly!CB247-Monthly!CB235","v":1.2592600145006525},{"$f":"Monthly!CC247-Monthly!CC235","v":0.69926001450065556},"--","--",null,"--","--",null,{"$f":"(Monthly!CJ247/Monthly!CJ235)-1","v":-3.5629453681710221E-2},{"$f":"(Monthly!CK247/Monthly!CK235)-1","v":0.12465259298681342},{"$f":"(Monthly!CL247/Monthly!CL235)-1","v":4.4430538172715917E-2},{"$f":"(Monthly!CM247/Monthly!CM235)-1","v":-5.8305084745762681E-2},{"$f":"(Monthly!CN247/Monthly!CN235)-1","v":4.0411054020274895E-2},{"$f":"(Monthly!CO247/Monthly!CO235)-1","v":2.1245874587458857E-2},{"$f":"(Monthly!CP247/Monthly!CP235)-1","v":0.17876812153697852},{"$f":"(Monthly!CQ247/Monthly!CQ235)-1","v":1.0716486623649768E-2},{"$f":"(Monthly!CR247/Monthly!CR235)-1","v":0.23001769671338645},null,null,null,null,null,null,null,{"$f":"(Monthly!CZ247/Monthly!CZ235)-1","v":8.4828711256117462E-2},{"$f":"(Monthly!DA247/Monthly!DA235)-1","v":7.928802588996775E-2},null,null,null,null,null,null,{"$f":"((Monthly!DH247-Monthly!DH235)*60)","v":-6.0000000000000853},{"$f":"((Monthly!DI247-Monthly!DI235)*100)","v":100},"--",{"$f":"((Monthly!DK247-Monthly!DK235)*100)","v":-79.999999999999986},{"$f":"Monthly!DL247-Monthly!DL235","v":734},null,null,null,{"$f":"Monthly!DP247-Monthly!DP235","v":4086},null,null,null,{"$f":"(Monthly!DT247/Monthly!DT235)-1","v":-0.1028295376121463},{"$f":"Monthly!DU247-Monthly!DU235","v":-1.1000000000000005},"--","--","--","--","--","--","--","--",null,null,null,null,null,null,null,null,null,null,null,null,null,{"$f":"(Monthly!EQ247/Monthly!EQ235)-1","v":8.7289433384379889E-2},{"$f":"(Monthly!ER247/Monthly!ER235)-1","v":8.4070796460177011E-2},{"$f":"(Monthly!ES247/Monthly!ES235)-1","v":8.3582089552238781E-2},null,null,null,null,null,{"$f":"((Monthly!EY247-Monthly!EY235)*100)","v":228.00000000000003},{"$f":"((Monthly!EZ247-Monthly!EZ235)*100)","v":230.99999999999997},{"$f":"((Monthly!FA247-Monthly!FA235)*100)","v":76.999999999999957},{"$f":"((Monthly!FB247-Monthly!FB235)*100)","v":61.999999999999922},"--",{"$f":"((Monthly!FD247-Monthly!FD235)*100)","v":85.999999999999943},{"$f":"((Monthly!FE247-Monthly!FE235)*100)","v":204},{"$f":"((Monthly!FF247-Monthly!FF235)*100)","v":211.00000000000003},{"$f":"((Monthly!FG247-Monthly!FG235)*100)","v":186.00000000000003},{"$f":"((Monthly!FH247-Monthly!FH235)*100)","v":138.99999999999997},{"$f":"((Monthly!FI247-Monthly!FI235)*100)","v":108},null,null,null,null,null,null,{"$f":"(Monthly!FP247/Monthly!FP235)-1","v":8.674182428025734E-2},"--","--","--",{"$f":"(Monthly!FT247/Monthly!FT235)-1","v":-7.6205647613460825E-2},{"$f":"(Monthly!FU247/Monthly!FU235)-1","v":-0.11686035942328843},{"$f":"(Monthly!FV247/Monthly!FV235)-1","v":0.11730076091309583},{"$f":"(Monthly!FW247/Monthly!FW235)-1","v":0.14166666666666661},{"$f":"(Monthly!FX247/Monthly!FX235)-1","v":0.61419753086419759},null,null,null,null,null,{"$f":"(Monthly!GD247/Monthly!GD235)-1","v":0},"--","--","--",{"$f":"(Monthly!GH247/Monthly!GH235)-1","v":{"$error":"#DIV/0!"}},"--","--","--","--"]
["1979-02-01",null,null,null,{"$f":"(Monthly!E252/Monthly!E240)-1","v":{"$error":"#DIV/0!"}},{"$f":"(Monthly!F252/Monthly!F240)-1","v":{"$error":"#DIV/0!"}},{"$f":"(Monthly!G252/Monthly!G240)-1","v":{"$error":"#DIV/0!"}},{"$f":"(Monthly!H252/Monthly!H240)-1","v":{"$error":"#DIV/0!"}},null,null,null,null,null,null,null,null,null,null,null,null,null,null,null,{"$f":"(Monthly!X252-Monthly!X240)","v":3.6000000000000085},{"$f":"(Monthly!Y252/Monthly!Y240)-1","v":0.15988661603070509},null,null,null,null,null,null,null,null,null,null,null,null,null,{"$f":"(Monthly!AM252/Monthly!AM240)-1","v":7.8645961282112209E-2},{"$f":"(Monthly!AN252/Monthly!AN240)-1","v":7.8141926089041247E-2},"--","--",{"$f":"Monthly!AQ252-Monthly!AQ240","v":2.3000000000000043},"--","--",{"$f":"Monthly!AT252-Monthly!AT240","v":2.8000000000000043},"--","--",{"$f":"Monthly!AW252-Monthly!AW240","v":-2.6000000000000014},{"$f":"Monthly!AX252-Monthly!AX240","v":2.3999999999999986},{"$f":"Monthly!AY252-Monthly!AY240","v":12.099999999999994},{"$f":"Monthly!AZ252-Monthly!AZ240","v":4.3999999999999986},{"$f":"Monthly!BA252-Monthly!BA240","v":0.60000000000000142},"--","--",null,null,null,null,null,null,null,null,null,"--","--",null,null,null,null,null,{"$f":"(Monthly!BT252/Monthly!BT240)-1","v":0.17376040948801297},null,null,null,{"$f":"(Monthly!BX252/Monthly!BX240)-1","v":-0.12543153049482159},{"$f":"(Monthly!BY252/Monthly!BY240)-1","v":-0.14055299539170507},"--",{"$f":"(Monthly!CA252/Monthly!CA240)-1","v":6.3497745006800832E-2},{"$f":"Monthly!CB252-Monthly!CB240","v":3.2018094702749096},{"$f":"Monthly!CC252-Monthly!CC240","v":2.9218094702749084},"--","--",null,"--","--",null,{"$f":"(Monthly!CJ252/Monthly!CJ240)-1","v":-8.5967130214917864E-2},{"$f":"(Monthly!CK252/Monthly!CK240)-1","v":0.12695995487873657},{"$f":"(Monthly!CL252/Monthly!CL240)-1","v":9.7780443911217763E-2},{"$f":"(Monthly!CM252/Monthly!CM240)-1","v":-0.14817813765182186},{"$f":"(Monthly!CN252/Monthly!CN240)-1","v":3.7259615384615197E-2},{"$f":"(Monthly!CO252/Monthly!CO240)-1","v":-5.9830781627719598E-2},{"$f":"(Monthly!CP252/Monthly!CP240)-1","v":0.17982298354017856},{"$f":"(Monthly!CQ252/Monthly!CQ240)-1","v":1.0937196846982911E-2},{"$f":"(Monthly!CR252/Monthly!CR240)-1","v":0.24157997734061176},null,null,null,null,null,null,null,{"$f":"(Monthly!CZ252/Monthly!CZ240)-1","v":9.8412698412698507E-2},{"$f":"(Monthly!DA252/Monthly!DA240)-1","v":9.1482649842271391E-2},null,null,null,null,null,null,{"$f":"((Monthly!DH252-Monthly!DH240)*60)","v":6.0000000000000853},{"$f":"((Monthly!DI252-Monthly!DI240)*100)","v":109.99999999999943},"--",{"$f":"((Monthly!DK252-Monthly!DK240)*100)","v":-39.999999999999943},{"$f":"Monthly!DL252-Monthly!DL240","v":770},null,null,null,{"$f":"Monthly!DP252-Monthly!DP240","v":4106},null,null,null,{"$f":"(Monthly!DT252/Monthly!DT240)-1","v":-6.457925636007833E-2},{"$f":"Monthly!DU252-Monthly!DU240","v":-0.79999999999999982},"--","--","--","--","--","--","--","--",null,null,null,null,null,null,null,null,null,null,null,null,null,{"$f":"(Monthly!EQ252/Monthly!EQ240)-1","v":0.10962962962962974},{"$f":"(Monthly!ER252/Monthly!ER240)-1","v":9.2086330935251981E-2},{"$f":"(Monthly!ES252/Monthly!ES240)-1","v":8.8277858176555757E-2},null,null,null,null,null,{"$f":"((Monthly!EY252-Monthly!EY240)*100)","v":375},{"$f":"((Monthly!EZ252-Monthly!EZ240)*100)","v":328},{"$f":"((Monthly!FA252-Monthly!FA240)*100)","v":78.999999999999915},{"$f":"((Monthly!FB252-Monthly!FB240)*100)","v":88.000000000000085},"--",{"$f":"((Monthly!FD252-Monthly!FD240)*100)","v":125},{"$f":"((Monthly!FE252-Monthly!FE240)*100)","v":287},{"$f":"((Monthly!FF252-Monthly!FF240)*100)","v":290.00000000000006},{"$f":"((Monthly!FG252-Monthly!FG240)*100)","v":215.00000000000003},{"$f":"((Monthly!FH252-Monthly!FH240)*100)","v":130.00000000000006},{"$f":"((Monthly!FI252-Monthly!FI240)*100)","v":107.00000000000003},null,null,null,null,null,null,{"$f":"(Monthly!FP252/Monthly!FP240)-1","v":7.4213836477987405E-2},"--","--","--",{"$f":"(Monthly!FT252/Monthly!FT240)-1","v":-2.9945152035441014E-2},{"$f":"(Monthly!FU252/Monthly!FU240)-1","v":-5.8657898255396468E-2},{"$f":"(Monthly!FV252/Monthly!FV240)-1","v":0.11625125395478042},{"$f":"(Monthly!FW252/Monthly!FW240)-1","v":4.8979591836734615E-2},{"$f":"(Monthly!FX252/Monthly!FX240)-1","v":0.47123349003805703},null,null,null,null,null,{"$f":"(Monthly!GD252/Monthly!GD240)-1","v":6.7340067340067256E-2},"--","--","--",{"$f":"(Monthly!GH252/Monthly!GH240)-1","v":{"$error":"#DIV/0!"}},"--","--","--","--"]
["1979-08-01",null,null,null,{"$f":"(Monthly!E258/Monthly!E246)-1","v":{"$error":"#DIV/0!"}},{"$f":"(Monthly!F258/Monthly!F246)-1","v":{"$error":"#DIV/0!"}},{"$f":"(Monthly!G258/Monthly!G246)-1","v":{"$error":"#DIV/0!"}},{"$f":"(Monthly!H258/Monthly!H246)-1","v":{"$error":"#DIV/0!"}},null,null,null,null,null,null,null,null,null,null,null,null,null,null,null,{"$f":"(Monthly!X258-Monthly!X246)","v":-1.2999999999999972},{"$f":"(Monthly!Y258/Monthly!Y246)-1","v":0.18515709466930397},null,null,null,null,null,null,null,null,null,null,null,null,null,{"$f":"(Monthly!AM258/Monthly!AM246)-1","v":1.4104431594079481E-2},{"$f":"(Monthly!AN258/Monthly!AN246)-1","v":1.45990177269264E-2},"--","--",{"$f":"Monthly!AQ258-Monthly!AQ246","v":-10.799999999999997},"--","--",{"$f":"Monthly!AT258-Monthly!AT246","v":-4.7999999999999972},"--","--",{"$f":"Monthly!AW258-Monthly!AW246","v":-3.7999999999999972},{"$f":"Monthly!AX258-Monthly!AX246","v":-14.399999999999999},{"$f":"Monthly!AY258-Monthly!AY246","v":0.19999999999998863},{"$f":"Monthly!AZ258-Monthly!AZ246","v":-15.900000000000006},{"$f":"Monthly!BA258-Monthly!BA246","v":-7.7000000000000028},"--","--",null,null,null,null,null,null,null,null,null,"--","--",null,null,null,null,null,{"$f":"(Monthly!BT258/Monthly!BT246)-1","v":0.14310442782903143},null,null,null,{"$f":"(Monthly!BX258/Monthly!BX246)-1","v":-0.10921843687374755},{"$f":"(Monthly!BY258/Monthly!BY246)-1","v":-5.9136605558840927E-2},"--",{"$f":"(Monthly!CA258/Monthly!CA246)-1","v":-0.10697882112783874},{"$f":"Monthly!CB258-Monthly!CB246","v":4.0801415128312613},{"$f":"Monthly!CC258-Monthly!CC246","v":4.1501415128312544},"--","--",null,"--","--",null,{"$f":"(Monthly!CJ258/Monthly!CJ246)-1","v":-3.5714285714285698E-2},{"$f":"(Monthly!CK258/Monthly!CK246)-1","v":0.11456403197628262},{"$f":"(Monthly!CL258/Monthly!CL246)-1","v":2.9339853300733632E-2},{"$f":"(Monthly!CM258/Monthly!CM246)-1","v":-0.1417543859649123},{"$f":"(Monthly!CN258/Monthly!CN246)-1","v":1.3905884970519589E-2},{"$f":"(Monthly!CO258/Monthly!CO246)-1","v":-7.5444983818770184E-2},{"$f":"(Monthly!CP258/Monthly!CP246)-1","v":0.14675709522558922},{"$f":"(Monthly!CQ258/Monthly!CQ246)-1","v":1.1175691748389838E-2},{"$f":"(Monthly!CR258/Monthly!CR246)-1","v":0.20690223365715754},null,null,null,null,null,null,null,{"$f":"(Monthly!CZ258/Monthly!CZ246)-1","v":0.11836115326251884},{"$f":"(Monthly!DA258/Monthly!DA246)-1","v":9.9848714069591615E-2},null,null,null,null,null,null,{"$f":"((Monthly!DH258-Monthly!DH246)*60)","v":-11.999999999999744},{"$f":"((Monthly!DI258-Monthly!DI246)*100)","v":39.999999999999858},"--",{"$f":"((Monthly!DK258-Monthly!DK246)*100)","v":9.9999999999999645},{"$f":"Monthly!DL258-Monthly!DL246","v":400},null,null,null,{"$f":"Monthly!DP258-Monthly!DP246","v":2816},null,null,null,{"$f":"(Monthly!DT258/Monthly!DT246)-1","v":0.15562174236783322},{"$f":"Monthly!DU258-Monthly!DU246","v":-1},"--","--","--","--","--","--","--","--",null,null,null,null,null,null,null,null,null,null,null,null,null,{"$f":"(Monthly!EQ258/Monthly!EQ246)-1","v":0.1306818181818179},{"$f":"(Monthly!ER258/Monthly!ER246)-1","v":8.2417582417582347E-2},{"$f":"(Monthly!ES258/Monthly!ES246)-1","v":8.0555555555555491E-2},null,null,null,null,null,{"$f":"((Monthly!EY258-Monthly!EY246)*100)","v":290.00000000000006},{"$f":"((Monthly!EZ258-Monthly!EZ246)*100)","v":290.00000000000006},{"$f":"((Monthly!FA258-Monthly!FA246)*100)","v":54.000000000000092},{"$f":"((Monthly!FB258-Monthly!FB246)*100)","v":86.999999999999915},"--",{"$f":"((Monthly!FD258-Monthly!FD246)*100)","v":130.00000000000006},{"$f":"((Monthly!FE258-Monthly!FE246)*100)","v":243.99999999999994},{"$f":"((Monthly!FF258-Monthly!FF246)*100)","v":167},{"$f":"((Monthly!FG258-Monthly!FG246)*100)","v":109.00000000000017},{"$f":"((Monthly!FH258-Monthly!FH246)*100)","v":73.000000000000043},{"$f":"((Monthly!FI258-Monthly!FI246)*100)","v":61.999999999999922},null,null,null,null,null,null,{"$f":"(Monthly!FP258/Monthly!FP246)-1","v":2.6481936162749964E-2},"--","--","--",{"$f":"(Monthly!FT258/Monthly!FT246)-1","v":2.8316485929351876E-2},{"$f":"(Monthly!FU258/Monthly!FU246)-1","v":8.0404265116076346E-3},{"$f":"(Monthly!FV258/Monthly!FV246)-1","v":0.20018527876031644},{"$f":"(Monthly!FW258/Monthly!FW246)-1","v":1.166666666666667},{"$f":"(Monthly!FX258/Monthly!FX246)-1","v":0.52889067847795457},null,null,null,null,null,{"$f":"(Monthly!GD258/Monthly!GD246)-1","v":0.7845117845117846},"--","--","--",{"$f":"(Monthly!GH258/Monthly!GH246)-1","v":{"$error":"#DIV/0!"}},"--","--","--","--"]
["1979-12-01",null,null,null,{"$f":"(Monthly!E262/Monthly!E250)-1","v":{"$error":"#DIV/0!"}},{"$f":"(Monthly!F262/Monthly!F250)-1","v":{"$error":"#DIV/0!"}},{"$f":"(Monthly!G262/Monthly!G250)-1","v":{"$error":"#DIV/0!"}},{"$f":"(Monthly!H262/Monthly!H250)-1","v":{"$error":"#DIV/0!"}},null,null,null,null,null,null,null,null,null,null,null,null,null,null,null,{"$f":"(Monthly!X262-Monthly!X250)","v":-2.6000000000000085},{"$f":"(Monthly!Y262/Monthly!Y250)-1","v":0.17908618888768069},null,null,null,null,null,null,null,null,null,null,null,null,null,{"$f":"(Monthly!AM262/Monthly!AM250)-1","v":-3.2817697689335734E-3},{"$f":"(Monthly!AN262/Monthly!AN250)-1","v":-8.782696898597453E-3},"--","--",{"$f":"Monthly!AQ262-Monthly!AQ250","v":-14.600000000000001},"--","--",{"$f":"Monthly!AT262-Monthly!AT250","v":-12.799999999999997},"--","--",{"$f":"Monthly!AW262-Monthly!AW250","v":-10.399999999999999},{"$f":"Monthly!AX262-Monthly!AX250","v":-15.600000000000001},{"$f":"Monthly!AY262-Monthly!AY250","v":-9.9999999999994316E-2},{"$f":"Monthly!AZ262-Monthly!AZ250","v":-12.199999999999996},{"$f":"Monthly!BA262-Monthly!BA250","v":-21.299999999999997},"--","--",null,null,null,null,null,null,null,null,null,"--","--",null,null,null,null,null,{"$f":"(Monthly!BT262/Monthly!BT250)-1","v":0.11767303059807732},null,null,null,{"$f":"(Monthly!BX262/Monthly!BX250)-1","v":-0.26712328767123283},{"$f":"(Monthly!BY262/Monthly!BY250)-1","v":-0.31023102310231021},"--",{"$f":"(Monthly!CA262/Monthly!CA250)-1","v":-0.11058696677673696},{"$f":"Monthly!CB262-Monthly!CB250","v":4.2660224057188927},{"$f":"Monthly!CC262-Monthly!CC250","v":4.2660224057188962},"--","--",null,"--","--",null,{"$f":"(Monthly!CJ262/Monthly!CJ250)-1","v":-0.30559006211180129},{"$f":"(Monthly!CK262/Monthly!CK250)-1","v":0.11760207982872006},{"$f":"(Monthly!CL262/Monthly!CL250)-1","v":9.6131301289566373E-2},{"$f":"(Monthly!CM262/Monthly!CM250)-1","v":-0.30410958904109586},{"$f":"(Monthly!CN262/Monthly!CN250)-1","v":9.8839896977569452E-3},{"$f":"(Monthly!CO262/Monthly!CO250)-1","v":-0.12056443245486614},{"$f":"(Monthly!CP262/Monthly!CP250)-1","v":0.13880641776358349},{"$f":"(Monthly!CQ262/Monthly!CQ250)-1","v":1.1503554343452516E-2},{"$f":"(Monthly!CR262/Monthly!CR250)-1","v":0.17301875642905595},null,null,null,null,null,null,null,{"$f":"(Monthly!CZ262/Monthly!CZ250)-1","v":0.13254786450662737},{"$f":"(Monthly!DA262/Monthly!DA250)-1","v":0.1132352941176471},null,null,null,null,null,null,{"$f":"((Monthly!DH262-Monthly!DH250)*60)","v":-12.000000000000171},{"$f":"((Monthly!DI262-Monthly!DI250)*100)","v":29.999999999999716},"--",{"$f":"((Monthly!DK262-Monthly!DK250)*100)","v":0},{"$f":"Monthly!DL262-Monthly!DL250","v":-33},null,null,null,{"$f":"Monthly!DP262-Monthly!DP250","v":2000},null,null,null,{"$f":"(Monthly!DT262/Monthly!DT250)-1","v":0.23126338329764451},{"$f":"Monthly!DU262-Monthly!DU250","v":0.10000000000000053},"--","--","--","--","--","--","--","--",null,null,null,null,null,null,null,null,null,null,null,null,null,{"$f":"(Monthly!EQ262/Monthly!EQ250)-1","v":0.14718019257221471},{"$f":"(Monthly!ER262/Monthly!ER250)-1","v":9.3708165997322679E-2},{"$f":"(Monthly!ES262/Monthly!ES250)-1","v":8.9189189189189166E-2},null,null,null,null,null,{"$f":"((Monthly!EY262-Monthly!EY250)*100)","v":375},{"$f":"((Monthly!EZ262-Monthly!EZ250)*100)","v":375},{"$f":"((Monthly!FA262-Monthly!FA250)*100)","v":158},{"$f":"((Monthly!FB262-Monthly!FB250)*100)","v":212.00000000000011},"--",{"$f":"((Monthly!FD262-Monthly!FD250)*100)","v":255.00000000000006},{"$f":"((Monthly!FE262-Monthly!FE250)*100)","v":295.99999999999989},{"$f":"((Monthly!FF262-Monthly!FF250)*100)","v":167.99999999999997},{"$f":"((Monthly!FG262-Monthly!FG250)*100)","v":167},{"$f":"((Monthly!FH262-Monthly!FH250)*100)","v":134},{"$f":"((Monthly!FI262-Monthly!FI250)*100)","v":138.00000000000009},null,null,null,null,null,null,{"$f":"(Monthly!FP262/Monthly!FP250)-1","v":-8.3064926258687999E-3},"--","--","--",{"$f":"(Monthly!FT262/Monthly!FT250)-1","v":3.5471798290035883E-2},{"$f":"(Monthly!FU262/Monthly!FU250)-1","v":1.4717095668524749E-2},{"$f":"(Monthly!FV262/Monthly!FV250)-1","v":0.11471712913030685},{"$f":"(Monthly!FW262/Monthly!FW250)-1","v":2.2511627906976748},{"$f":"(Monthly!FX262/Monthly!FX250)-1","v":0.46085464753587013},null,null,null,null,null,{"$f":"(Monthly!GD262/Monthly!GD250)-1","v":1.1885521885521886},"--","--","--",{"$f":"(Monthly!GH262/Monthly!GH250)-1","v":{"$error":"#DIV/0!"}},"--","--","--","--"]
["1980-03-01",null,null,null,{"$f":"(Monthly!E265/Monthly!E253)-1","v":{"$error":"#DIV/0!"}},{"$f":"(Monthly!F265/Monthly!F253)-1","v":{"$error":"#DIV/0!"}},{"$f":"(Monthly!G265/Monthly!G253)-1","v":{"$error":"#DIV/0!"}},{"$f":"(Monthly!H265/Monthly!H253)-1","v":{"$error":"#DIV/0!"}},null,null,null,null,null,null,null,null,null,null,null,null,null,null,null,{"$f":"(Monthly!X265-Monthly!X253)","v":-2.4000000000000057},{"$f":"(Monthly!Y265/Monthly!Y253)-1","v":0.1673748342532857},null,null,null,null,null,null,null,null,null,null,null,null,null,{"$f":"(Monthly!AM265/Monthly!AM253)-1","v":-3.5041424434835156E-3},{"$f":"(Monthly!AN265/Monthly!AN253)-1","v":-1.3073663330628538E-2},"--","--",{"$f":"Monthly!AQ265-Monthly!AQ253","v":-14.100000000000001},"--","--",{"$f":"Monthly!AT265-Monthly!AT253","v":-11.599999999999994},"--","--",{"$f":"Monthly!AW265-Monthly!AW253","v":-11.100000000000001},{"$f":"Monthly!AX265-Monthly!AX253","v":-12.900000000000006},{"$f":"Monthly!AY265-Monthly!AY253","v":-3.7000000000000028},{"$f":"Monthly!AZ265-Monthly!AZ253","v":-10.699999999999996},{"$f":"Monthly!BA265-Monthly!BA253","v":-27.6},"--","--",null,null,null,null,null,null,null,null,null,"--","--",null,null,null,null,null,{"$f":"(Monthly!BT265/Monthly!BT253)-1","v":0.10419967835073018},null,null,null,{"$f":"(Monthly!BX265/Monthly!BX253)-1","v":-0.43313481321061176},{"$f":"(Monthly!BY265/Monthly!BY253)-1","v":-0.42558139534883721},"--",{"$f":"(Monthly!CA265/Monthly!CA253)-1","v":-0.20500033694992925},{"$f":"Monthly!CB265-Monthly!CB253","v":4.8399087475122009},{"$f":"Monthly!CC265-Monthly!CC253","v":5.1899087475122023},"--","--",null,"--","--",null,{"$f":"(Monthly!CJ265/Monthly!CJ253)-1","v":-0.40226986128625475},{"$f":"(Monthly!CK265/Monthly!CK253)-1","v":0.11043461043461056},{"$f":"(Monthly!CL265/Monthly!CL253)-1","v":2.0202020202020332E-2},{"$f":"(Monthly!CM265/Monthly!CM253)-1","v":-0.52118003025718607},{"$f":"(Monthly!CN265/Monthly!CN253)-1","v":-6.5833932814509666E-3},{"$f":"(Monthly!CO265/Monthly!CO253)-1","v":-0.13622625215889461},{"$f":"(Monthly!CP265/Monthly!CP253)-1","v":0.11299281495910951},{"$f":"(Monthly!CQ265/Monthly!CQ253)-1","v":1.1657412981916249E-2},{"$f":"(Monthly!CR265/Monthly!CR253)-1","v":0.1675533807637315},null,null,null,null,null,null,null,{"$f":"(Monthly!CZ265/Monthly!CZ253)-1","v":0.14592274678111572},{"$f":"(Monthly!DA265/Monthly!DA253)-1","v":0.12607449856733521},null,null,null,null,null,null,{"$f":"((Monthly!DH265-Monthly!DH253)*60)","v":-30},{"$f":"((Monthly!DI265-Monthly!DI253)*100)","v":-9.9999999999994316},"--",{"$f":"((Monthly!DK265-Monthly!DK253)*100)","v":50},{"$f":"Monthly!DL265-Monthly!DL253","v":-236},null,null,null,{"$f":"Monthly!DP265-Monthly!DP253","v":1514},null,null,null,{"$f":"(Monthly!DT265/Monthly!DT253)-1","v":0.21173184357541897},{"$f":"Monthly!DU265-Monthly!DU253","v":9.9999999999999645E-2},"--","--","--","--","--","--","--","--",null,null,null,null,null,null,null,null,null,null,null,null,null,{"$f":"(Monthly!EQ265/Monthly!EQ253)-1","v":0.15435356200527717},{"$f":"(Monthly!ER265/Monthly!ER253)-1","v":0.1086387434554974},{"$f":"(Monthly!ES265/Monthly!ES253)-1","v":9.7754293262879655E-2},null,null,null,null,null,{"$f":"((Monthly!EY265-Monthly!EY253)*100)","v":655.99999999999989},{"$f":"((Monthly!EZ265-Monthly!EZ253)*100)","v":710.00000000000011},{"$f":"((Monthly!FA265-Monthly!FA253)*100)","v":359.00000000000017},{"$f":"((Monthly!FB265-Monthly!FB253)*100)","v":418.99999999999994},"--",{"$f":"((Monthly!FD265-Monthly!FD253)*100)","v":484.99999999999994},{"$f":"((Monthly!FE265-Monthly!FE253)*100)","v":571.99999999999989},{"$f":"((Monthly!FF265-Monthly!FF253)*100)","v":557},{"$f":"((Monthly!FG265-Monthly!FG253)*100)","v":509.00000000000017},{"$f":"((Monthly!FH265-Monthly!FH253)*100)","v":427.00000000000011},{"$f":"((Monthly!FI265-Monthly!FI253)*100)","v":363.00000000000006},null,null,null,null,null,null,{"$f":"(Monthly!FP265/Monthly!FP253)-1","v":-6.8148905358200729E-4},"--","--","--",{"$f":"(Monthly!FT265/Monthly!FT253)-1","v":6.2193500421772185E-2},{"$f":"(Monthly!FU265/Monthly!FU253)-1","v":4.0202024662232327E-2},{"$f":"(Monthly!FV265/Monthly!FV253)-1","v":0.10051409324587857},{"$f":"(Monthly!FW265/Monthly!FW253)-1","v":0.33944954128440363},{"$f":"(Monthly!FX265/Monthly!FX253)-1","v":0.67042682926829267},null,null,null,null,null,{"$f":"(Monthly!GD265/Monthly!GD253)-1","v":1.3974763406940065},"--","--","--",{"$f":"(Monthly!GH265/Monthly!GH253)-1","v":{"$error":"#DIV/0!"}},"--","--","--","--"]
["1980-10-01",null,null,null,{"$f":"(Monthly!E272/Monthly!E260)-1","v":{"$error":"#DIV/0!"}},{"$f":"(Monthly!F272/Monthly!F260)-1","v":{"$error":"#DIV/0!"}},{"$f":"(Monthly!G272/Monthly!G260)-1","v":{"$error":"#DIV/0!"}},{"$f":"(Monthly!H272/Monthly!H260)-1","v":{"$error":"#DIV/0!"}},null,null,null,null,null,null,null,null,null,null,null,null,null,null,null,{"$f":"(Monthly!X272-Monthly!X260)","v":-4.5999999999999943},{"$f":"(Monthly!Y272/Monthly!Y260)-1","v":8.6209119226972497E-2},null,null,null,null,null,null,null,null,null,null,null,null,null,{"$f":"(Monthly!AM272/Monthly!AM260)-1","v":-3.0840770121414063E-2},{"$f":"(Monthly!AN272/Monthly!AN260)-1","v":-4.0590413533445946E-2},"--","--",{"$f":"Monthly!AQ272-Monthly!AQ260","v":6.5},"--","--",{"$f":"Monthly!AT272-Monthly!AT260","v":-5.2000000000000028},"--","--",{"$f":"Monthly!AW272-Monthly!AW260","v":-2.1000000000000014},{"$f":"Monthly!AX272-Monthly!AX260","v":16.400000000000006},{"$f":"Monthly!AY272-Monthly!AY260","v":-10.399999999999991},{"$f":"Monthly!AZ272-Monthly!AZ260","v":11.700000000000003},{"$f":"Monthly!BA272-Monthly!BA260","v":-0.39999999999999858},"--","--",null,null,null,null,null,null,null,null,null,"--","--",null,null,null,null,null,{"$f":"(Monthly!BT272/Monthly!BT260)-1","v":-2.4740196522987645E-2},null,null,null,{"$f":"(Monthly!BX272/Monthly!BX260)-1","v":-9.3991671624033324E-2},{"$f":"(Monthly!BY272/Monthly!BY260)-1","v":-7.7650236326806232E-2},"--",{"$f":"(Monthly!CA272/Monthly!CA260)-1","v":-0.12463677059608891},{"$f":"Monthly!CB272-Monthly!CB260","v":2.0614437010495372},{"$f":"Monthly!CC272-Monthly!CC260","v":3.1114437010495344},"--","--",null,"--","--",null,{"$f":"(Monthly!CJ272/Monthly!CJ260)-1","v":-0.16268656716417906},{"$f":"(Monthly!CK272/Monthly!CK260)-1","v":0.12705739730498444},{"$f":"(Monthly!CL272/Monthly!CL260)-1","v":0.33525345622119818},{"$f":"(Monthly!CM272/Monthly!CM260)-1","v":-9.8302055406613076E-2},{"$f":"(Monthly!CN272/Monthly!CN260)-1","v":2.0483354533093578E-2},{"$f":"(Monthly!CO272/Monthly!CO260)-1","v":-4.9807561693457125E-2},{"$f":"(Monthly!CP272/Monthly!CP260)-1","v":1.8489077827236189E-2},{"$f":"(Monthly!CQ272/Monthly!CQ260)-1","v":1.1585422562344627E-2},{"$f":"(Monthly!CR272/Monthly!CR260)-1","v":2.2124567747321855E-2},null,null,null,null,null,null,null,{"$f":"(Monthly!CZ272/Monthly!CZ260)-1","v":0.12632978723404253},{"$f":"(Monthly!DA272/Monthly!DA260)-1","v":0.12162162162162171},null,null,null,null,null,null,{"$f":"((Monthly!DH272-Monthly!DH260)*60)","v":-23.999999999999915},{"$f":"((Monthly!DI272-Monthly!DI260)*100)","v":0},"--",{"$f":"((Monthly!DK272-Monthly!DK260)*100)","v":150},{"$f":"Monthly!DL272-Monthly!DL260","v":-884},null,null,null,{"$f":"Monthly!DP272-Monthly!DP260","v":9},null,null,null,{"$f":"(Monthly!DT272/Monthly!DT260)-1","v":8.3333333333333259E-2},{"$f":"Monthly!DU272-Monthly!DU260","v":2},"--","--","--","--","--","--","--","--",null,null,null,null,null,null,null,null,null,null,null,null,null,{"$f":"(Monthly!EQ272/Monthly!EQ260)-1","v":0.1303288672350793},{"$f":"(Monthly!ER272/Monthly!ER260)-1","v":0.11442786069651723},{"$f":"(Monthly!ES272/Monthly!ES260)-1","v":0.1212121212121211},null,null,null,null,null,{"$f":"((Monthly!EY272-Monthly!EY260)*100)","v":-60.000000000000142},{"$f":"((Monthly!EZ272-Monthly!EZ260)*100)","v":-95.999999999999915},{"$f":"((Monthly!FA272-Monthly!FA260)*100)","v":217.99999999999997},{"$f":"((Monthly!FB272-Monthly!FB260)*100)","v":283},"--",{"$f":"((Monthly!FD272-Monthly!FD260)*100)","v":214.99999999999986},{"$f":"((Monthly!FE272-Monthly!FE260)*100)","v":-8.0000000000000071},{"$f":"((Monthly!FF272-Monthly!FF260)*100)","v":5.0000000000000711},{"$f":"((Monthly!FG272-Monthly!FG260)*100)","v":59.999999999999964},{"$f":"((Monthly!FH272-Monthly!FH260)*100)","v":122.99999999999986},{"$f":"((Monthly!FI272-Monthly!FI260)*100)","v":144.99999999999994},null,null,null,null,null,null,{"$f":"(Monthly!FP272/Monthly!FP260)-1","v":-5.3598774885145195E-3},"--","--","--",{"$f":"(Monthly!FT272/Monthly!FT260)-1","v":9.2262904489981423E-3},{"$f":"(Monthly!FU272/Monthly!FU260)-1","v":-2.8540984458651608E-2},{"$f":"(Monthly!FV272/Monthly!FV260)-1","v":0.13423368119500712},{"$f":"(Monthly!FW272/Monthly!FW260)-1","v":1.1852631578947368},{"$f":"(Monthly!FX272/Monthly!FX260)-1","v":0.17633999365683484},null,null,null,null,null,{"$f":"(Monthly!GD272/Monthly!GD260)-1","v":0.24137931034482762},"--","--","--",{"$f":"(Monthly!GH272/Monthly!GH260)-1","v":{"$error":"#DIV/0!"}},"--","--","--","--"]
["1981-02-01",null,null,null,{"$f":"(Monthly!E276/Monthly!E264)-1","v":{"$error":"#DIV/0!"}},{"$f":"(Monthly!F276/Monthly!F264)-1","v":{"$error":"#DIV/0!"}},{"$f":"(Monthly!G276/Monthly!G264)-1","v":{"$error":"#DIV/0!"}},{"$f":"(Monthly!H276/Monthly!H264)-1","v":{"$error":"#DIV/0!"}},null,null,null,null,null,null,null,null,null,null,null,null,null,null,null,{"$f":"(Monthly!X276-Monthly!X264)","v":-4.1000000000000085},{"$f":"(Monthly!Y276/Monthly!Y264)-1","v":9.6067498129855489E-2},null,null,null,null,null,null,null,null,null,null,null,null,null,{"$f":"(Monthly!AM276/Monthly!AM264)-1","v":-2.3506222290055945E-2},{"$f":"(Monthly!AN276/Monthly!AN264)-1","v":-3.1606714134097325E-2},"--","--",{"$f":"Monthly!AQ276-Monthly!AQ264","v":-1.4000000000000057},"--","--",{"$f":"Monthly!AT276-Monthly!AT264","v":-3.4000000000000057},"--","--",{"$f":"Monthly!AW276-Monthly!AW264","v":-4.3999999999999986},{"$f":"Monthly!AX276-Monthly!AX264","v":-0.5},{"$f":"Monthly!AY276-Monthly!AY264","v":-13.599999999999994},{"$f":"Monthly!AZ276-Monthly!AZ264","v":-2.2000000000000028},{"$f":"Monthly!BA276-Monthly!BA264","v":2.5},"--","--",null,null,null,null,null,null,null,null,null,"--","--",null,null,null,null,null,{"$f":"(Monthly!BT276/Monthly!BT264)-1","v":-3.78499590455601E-2},null,null,null,{"$f":"(Monthly!BX276/Monthly!BX264)-1","v":-7.7037037037037015E-2},{"$f":"(Monthly!BY276/Monthly!BY264)-1","v":0},"--",{"$f":"(Monthly!CA276/Monthly!CA264)-1","v":-6.5628132952880502E-2},{"$f":"Monthly!CB276-Monthly!CB264","v":-1.6694446476915097},{"$f":"Monthly!CC276-Monthly!CC264","v":-0.89944464769151011},"--","--",null,"--","--",null,{"$f":"(Monthly!CJ276/Monthly!CJ264)-1","v":-5.7301293900184791E-2},{"$f":"(Monthly!CK276/Monthly!CK264)-1","v":0.12110075295804967},{"$f":"(Monthly!CL276/Monthly!CL264)-1","v":0.17739403453689162},{"$f":"(Monthly!CM276/Monthly!CM264)-1","v":-3.7082818294190689E-3},{"$f":"(Monthly!CN276/Monthly!CN264)-1","v":1.1494753341751318E-2},{"$f":"(Monthly!CO276/Monthly!CO264)-1","v":-8.6702386751095983E-2},{"$f":"(Monthly!CP276/Monthly!CP264)-1","v":4.7833744316061466E-3},{"$f":"(Monthly!CQ276/Monthly!CQ264)-1","v":1.0654913172384539E-2},{"$f":"(Monthly!CR276/Monthly!CR264)-1","v":3.1079400913741395E-2},null,null,null,null,null,null,null,{"$f":"(Monthly!CZ276/Monthly!CZ264)-1","v":0.11392405063291133},{"$f":"(Monthly!DA276/Monthly!DA264)-1","v":0.10838709677419356},null,null,null,null,null,null,{"$f":"((Monthly!DH276-Monthly!DH264)*60)","v":-11.999999999999744},{"$f":"((Monthly!DI276-Monthly!DI264)*100)","v":-10.000000000000142},"--",{"$f":"((Monthly!DK276-Monthly!DK264)*100)","v":110.00000000000006},{"$f":"Monthly!DL276-Monthly!DL264","v":-606},null,null,null,{"$f":"Monthly!DP276-Monthly!DP264","v":223},null,null,null,{"$f":"(Monthly!DT276/Monthly!DT264)-1","v":1.674641148325362E-2},{"$f":"Monthly!DU276-Monthly!DU264","v":1.2999999999999998},"--","--","--","--","--","--","--","--",null,null,null,null,null,null,null,null,null,null,null,null,null,{"$f":"(Monthly!EQ276/Monthly!EQ264)-1","v":0.1058688147295741},{"$f":"(Monthly!ER276/Monthly!ER264)-1","v":9.263657957244642E-2},{"$f":"(Monthly!ES276/Monthly!ES264)-1","v":0.11421628189550437},null,null,null,null,null,{"$f":"((Monthly!EY276-Monthly!EY264)*100)","v":379.99999999999989},{"$f":"((Monthly!EZ276-Monthly!EZ264)*100)","v":179.99999999999989},{"$f":"((Monthly!FA276-Monthly!FA264)*100)","v":96.999999999999886},{"$f":"((Monthly!FB276-Monthly!FB264)*100)","v":179.99999999999989},"--",{"$f":"((Monthly!FD276-Monthly!FD264)*100)","v":209.00000000000017},{"$f":"((Monthly!FE276-Monthly!FE264)*100)","v":192.99999999999997},{"$f":"((Monthly!FF276-Monthly!FF264)*100)","v":65.000000000000028},{"$f":"((Monthly!FG276-Monthly!FG264)*100)","v":50},{"$f":"((Monthly!FH276-Monthly!FH264)*100)","v":81.000000000000057},{"$f":"((Monthly!FI276-Monthly!FI264)*100)","v":77.999999999999943},null,null,null,null,null,null,{"$f":"(Monthly!FP276/Monthly!FP264)-1","v":3.7126784941583724E-2},"--","--","--",{"$f":"(Monthly!FT276/Monthly!FT264)-1","v":5.0846615058728561E-2},{"$f":"(Monthly!FU276/Monthly!FU264)-1","v":3.4342780815628027E-2},{"$f":"(Monthly!FV276/Monthly!FV264)-1","v":1.2256608819187109E-2},{"$f":"(Monthly!FW276/Monthly!FW264)-1","v":0.86655948553054651},{"$f":"(Monthly!FX276/Monthly!FX264)-1","v":7.5075625630213416E-2},null,null,null,null,null,{"$f":"(Monthly!GD276/Monthly!GD264)-1","v":2.7027027027026973E-2},"--","--","--",{"$f":"(Monthly!GH276/Monthly!GH264)-1","v":{"$error":"#DIV/0!"}},"--","--","--","--"]
["1981-07-01",null,null,null,{"$f":"(Monthly!E281/Monthly!E269)-1","v":{"$error":"#DIV/0!"}},{"$f":"(Monthly!F281/Monthly!F269)-1","v":{"$error":"#DIV/0!"}},{"$f":"(Monthly!G281/Monthly!G269)-1","v":{"$error":"#DIV/0!"}},{"$f":"(Monthly!H281/Monthly!H269)-1","v":{"$error":"#DIV/0!"}},null,null,null,null,null,null,null,null,null,null,null,null,null,null,null,{"$f":"(Monthly!X281-Monthly!X269)","v":2.7000000000000028},{"$f":"(Monthly!Y281/Monthly!Y269)-1","v":0.15204838742712856},null,null,null,null,null,null,null,null,null,null,null,null,null,{"$f":"(Monthly!AM281/Monthly!AM269)-1","v":6.4553681776502225E-2},{"$f":"(Monthly!AN281/Monthly!AN269)-1","v":6.8371123437668935E-2},"--","--",{"$f":"Monthly!AQ281-Monthly!AQ269","v":11.700000000000003},"--","--",{"$f":"Monthly!AT281-Monthly!AT269","v":11.600000000000001},"--","--",{"$f":"Monthly!AW281-Monthly!AW269","v":14.899999999999999},{"$f":"Monthly!AX281-Monthly!AX269","v":11.5},{"$f":"Monthly!AY281-Monthly!AY269","v":7.6000000000000085},{"$f":"Monthly!AZ281-Monthly!AZ269","v":12.5},{"$f":"Monthly!BA281-Monthly!BA269","v":8.6000000000000014},"--","--",null,null,null,null,null,null,null,null,null,"--","--",null,null,null,null,null,{"$f":"(Monthly!BT281/Monthly!BT269)-1","v":1.0011470372296216E-2},null,null,null,{"$f":"(Monthly!BX281/Monthly!BX269)-1","v":-0.17966903073286056},{"$f":"(Monthly!BY281/Monthly!BY269)-1","v":-0.25734710087370927},"--",{"$f":"(Monthly!CA281/Monthly!CA269)-1","v":-0.10324224584834374},{"$f":"Monthly!CB281-Monthly!CB269","v":-2.9758665295697817},{"$f":"Monthly!CC281-Monthly!CC269","v":-3.3958665295697834},"--","--",null,"--","--",null,{"$f":"(Monthly!CJ281/Monthly!CJ269)-1","v":-0.32232704402515722},{"$f":"(Monthly!CK281/Monthly!CK269)-1","v":0.1376158710907045},{"$f":"(Monthly!CL281/Monthly!CL269)-1","v":0.26373106060606055},{"$f":"(Monthly!CM281/Monthly!CM269)-1","v":-0.1855309218203034},{"$f":"(Monthly!CN281/Monthly!CN269)-1","v":3.9282271492419696E-2},{"$f":"(Monthly!CO281/Monthly!CO269)-1","v":-0.10625620655412116},{"$f":"(Monthly!CP281/Monthly!CP269)-1","v":5.0728178697524662E-2},{"$f":"(Monthly!CQ281/Monthly!CQ269)-1","v":9.8363823191027766E-3},{"$f":"(Monthly!CR281/Monthly!CR269)-1","v":9.2376543895092755E-2},null,null,null,null,null,null,null,{"$f":"(Monthly!CZ281/Monthly!CZ269)-1","v":0.10774818401937059},{"$f":"(Monthly!DA281/Monthly!DA269)-1","v":0.11138613861386149},null,null,null,null,null,null,{"$f":"((Monthly!DH281-Monthly!DH269)*60)","v":18.000000000000256},{"$f":"((Monthly!DI281-Monthly!DI269)*100)","v":0},"--",{"$f":"((Monthly!DK281-Monthly!DK269)*100)","v":-59.999999999999964},{"$f":"Monthly!DL281-Monthly!DL269","v":509},null,null,null,{"$f":"Monthly!DP281-Monthly!DP269","v":1765},null,null,null,{"$f":"(Monthly!DT281/Monthly!DT269)-1","v":-0.21632216678545968},{"$f":"Monthly!DU281-Monthly!DU269","v":9.9999999999999645E-2},"--","--","--","--","--","--","--","--",null,null,null,null,null,null,null,null,null,null,null,null,null,{"$f":"(Monthly!EQ281/Monthly!EQ269)-1","v":9.6345514950166189E-2},{"$f":"(Monthly!ER281/Monthly!ER269)-1","v":8.0957810718357948E-2},{"$f":"(Monthly!ES281/Monthly!ES269)-1","v":0.10208816705336421},null,null,null,null,null,{"$f":"((Monthly!EY281-Monthly!EY269)*100)","v":891},{"$f":"((Monthly!EZ281-Monthly!EZ269)*100)","v":1001},{"$f":"((Monthly!FA281-Monthly!FA269)*100)","v":331.00000000000006},{"$f":"((Monthly!FB281-Monthly!FB269)*100)","v":352.00000000000011},"--",{"$f":"((Monthly!FD281-Monthly!FD269)*100)","v":463.99999999999989},{"$f":"((Monthly!FE281-Monthly!FE269)*100)","v":688.99999999999989},{"$f":"((Monthly!FF281-Monthly!FF269)*100)","v":707},{"$f":"((Monthly!FG281-Monthly!FG269)*100)","v":632},{"$f":"((Monthly!FH281-Monthly!FH269)*100)","v":526},{"$f":"((Monthly!FI281-Monthly!FI269)*100)","v":402.99999999999994},null,null,null,null,null,null,{"$f":"(Monthly!FP281/Monthly!FP269)-1","v":5.0681246203245767E-2},"--","--","--",{"$f":"(Monthly!FT281/Monthly!FT269)-1","v":0.17175740362611736},{"$f":"(Monthly!FU281/Monthly!FU269)-1","v":0.17923220460204026},{"$f":"(Monthly!FV281/Monthly!FV269)-1","v":0.18039330218068539},{"$f":"(Monthly!FW281/Monthly!FW269)-1","v":0.96987253765932802},{"$f":"(Monthly!FX281/Monthly!FX269)-1","v":8.994825498183423E-2},null,null,null,null,null,{"$f":"(Monthly!GD281/Monthly!GD269)-1","v":-8.8607594936708889E-2},"--","--","--",{"$f":"(Monthly!GH281/Monthly!GH269)-1","v":{"$error":"#DIV/0!"}},"--","--","--","--"]
["1981-09-01",null,null,null,{"$f":"(Monthly!E283/Monthly!E271)-1","v":{"$error":"#DIV/0!"}},{"$f":"(Monthly!F283/Monthly!F271)-1","v":{"$error":"#DIV/0!"}},{"$f":"(Monthly!G283/Monthly!G271)-1","v":{"$error":"#DIV/0!"}},{"$f":"(Monthly!H283/Monthly!H271)-1","v":{"$error":"#DIV/0!"}},null,null,null,null,null,null,null,null,null,null,null,null,null,null,null,{"$f":"(Monthly!X283-Monthly!X271)","v":0.5},{"$f":"(Monthly!Y283/Monthly!Y271)-1","v":0.14696099799011164},null,null,null,null,null,null,null,null,null,null,null,null,null,{"$f":"(Monthly!AM283/Monthly!AM271)-1","v":3.7195614067657035E-2},{"$f":"(Monthly!AN283/Monthly!AN271)-1","v":3.7450181706393249E-2},"--","--",{"$f":"Monthly!AQ283-Monthly!AQ271","v":-7.6000000000000014},"--","--",{"$f":"Monthly!AT283-Monthly!AT271","v":-7.7999999999999972},"--","--",{"$f":"Monthly!AW283-Monthly!AW271","v":-3.3999999999999986},{"$f":"Monthly!AX283-Monthly!AX271","v":-11.699999999999996},{"$f":"Monthly!AY283-Monthly!AY271","v":-2.2000000000000028},{"$f":"Monthly!AZ283-Monthly!AZ271","v":-11.300000000000004},{"$f":"Monthly!BA283-Monthly!BA271","v":4.6999999999999957},"--","--",null,null,null,null,null,null,null,null,null,"--","--",null,null,null,null,null,{"$f":"(Monthly!BT283/Monthly!BT271)-1","v":2.0838307111016974E-2},null,null,null,{"$f":"(Monthly!BX283/Monthly!BX271)-1","v":-0.38069340584636302},{"$f":"(Monthly!BY283/Monthly!BY271)-1","v":-0.42924528301886788},"--",{"$f":"(Monthly!CA283/Monthly!CA271)-1","v":2.2688759179062323E-2},{"$f":"Monthly!CB283-Monthly!CB271","v":-1.7033821625847558},{"$f":"Monthly!CC283-Monthly!CC271","v":-1.6333821625847555},"--","--",null,"--","--",null,{"$f":"(Monthly!CJ283/Monthly!CJ271)-1","v":-0.43288590604026844},{"$f":"(Monthly!CK283/Monthly!CK271)-1","v":0.12525858065605622},{"$f":"(Monthly!CL283/Monthly!CL271)-1","v":0.1990355107409032},{"$f":"(Monthly!CM283/Monthly!CM271)-1","v":-0.37684003925417076},{"$f":"(Monthly!CN283/Monthly!CN271)-1","v":3.3168758292189571E-2},{"$f":"(Monthly!CO283/Monthly!CO271)-1","v":-0.16921241050119329},{"$f":"(Monthly!CP283/Monthly!CP271)-1","v":6.1559079638250136E-2},{"$f":"(Monthly!CQ283/Monthly!CQ271)-1","v":9.7551997055034256E-3},{"$f":"(Monthly!CR283/Monthly!CR271)-1","v":0.10669904929648677},null,null,null,null,null,null,null,{"$f":"(Monthly!CZ283/Monthly!CZ271)-1","v":0.1096543504171632},{"$f":"(Monthly!DA283/Monthly!DA271)-1","v":0.11814859926918397},null,null,null,null,null,null,{"$f":"((Monthly!DH283-Monthly!DH271)*60)","v":-6.0000000000000853},{"$f":"((Monthly!DI283-Monthly!DI271)*100)","v":-10.000000000000142},"--",{"$f":"((Monthly!DK283-Monthly!DK271)*100)","v":9.9999999999999645},{"$f":"Monthly!DL283-Monthly!DL271","v":267},null,null,null,{"$f":"Monthly!DP283-Monthly!DP271","v":1269},null,null,null,{"$f":"(Monthly!DT283/Monthly!DT271)-1","v":-1.9678922837907842E-2},{"$f":"Monthly!DU283-Monthly!DU271","v":-0.90000000000000036},"--","--","--","--","--","--","--","--",null,null,null,null,null,null,null,null,null,null,null,null,null,{"$f":"(Monthly!EQ283/Monthly!EQ271)-1","v":7.7426390403489531E-2},{"$f":"(Monthly!ER283/Monthly!ER271)-1","v":7.9954954954954971E-2},{"$f":"(Monthly!ES283/Monthly!ES271)-1","v":9.828571428571431E-2},null,null,null,null,null,{"$f":"((Monthly!EY283-Monthly!EY271)*100)","v":784.99999999999977},{"$f":"((Monthly!EZ283-Monthly!EZ271)*100)","v":500},{"$f":"((Monthly!FA283-Monthly!FA271)*100)","v":347.00000000000006},{"$f":"((Monthly!FB283-Monthly!FB271)*100)","v":322.00000000000023},"--",{"$f":"((Monthly!FD283-Monthly!FD271)*100)","v":496.00000000000011},{"$f":"((Monthly!FE283-Monthly!FE271)*100)","v":443},{"$f":"((Monthly!FF283-Monthly!FF271)*100)","v":500},{"$f":"((Monthly!FG283-Monthly!FG271)*100)","v":489.00000000000006},{"$f":"((Monthly!FH283-Monthly!FH271)*100)","v":431.00000000000006},{"$f":"((Monthly!FI283-Monthly!FI271)*100)","v":381.00000000000006},null,null,null,null,null,null,{"$f":"(Monthly!FP283/Monthly!FP271)-1","v":3.0995106035889064E-2},"--","--","--",{"$f":"(Monthly!FT283/Monthly!FT271)-1","v":0.16601219026172553},{"$f":"(Monthly!FU283/Monthly!FU271)-1","v":0.16330318165180557},{"$f":"(Monthly!FV283/Monthly!FV271)-1","v":0.11317490667395069},{"$f":"(Monthly!FW283/Monthly!FW271)-1","v":0.69423791821561354},{"$f":"(Monthly!FX283/Monthly!FX271)-1","v":0.21868895159539847},null,null,null,null,null,{"$f":"(Monthly!GD283/Monthly!GD271)-1","v":0},"--","--","--",{"$f":"(Monthly!GH283/Monthly!GH271)-1","v":{"$error":"#DIV/0!"}},"--","--","--","--"]
["1982-05-01",null,null,null,{"$f":"(Monthly!E291/Monthly!E279)-1","v":{"$error":"#DIV/0!"}},{"$f":"(Monthly!F291/Monthly!F279)-1","v":{"$error":"#DIV/0!"}},{"$f":"(Monthly!G291/Monthly!G279)-1","v":{"$error":"#DIV/0!"}},{"$f":"(Monthly!H291/Monthly!H279)-1","v":{"$error":"#DIV/0!"}},null,null,null,null,null,null,null,null,null,null,null,null,null,null,null,{"$f":"(Monthly!X291-Monthly!X279)","v":-5.7999999999999972},{"$f":"(Monthly!Y291/Monthly!Y279)-1","v":0.16015274006418179},null,null,null,null,null,null,null,null,null,null,null,null,null,{"$f":"(Monthly!AM291/Monthly!AM279)-1","v":-4.6772975193625332E-2},{"$f":"(Monthly!AN291/Monthly!AN279)-1","v":-6.0356143036855436E-2},"--","--",{"$f":"Monthly!AQ291-Monthly!AQ279","v":-18},"--","--",{"$f":"Monthly!AT291-Monthly!AT279","v":-20.499999999999996},"--","--",{"$f":"Monthly!AW291-Monthly!AW279","v":-19.900000000000002},{"$f":"Monthly!AX291-Monthly!AX279","v":-17.600000000000001},{"$f":"Monthly!AY291-Monthly!AY279","v":-24.800000000000004},{"$f":"Monthly!AZ291-Monthly!AZ279","v":-21.799999999999997},{"$f":"Monthly!BA291-Monthly!BA279","v":-8.1000000000000014},"--","--",null,null,null,null,null,null,null,null,null,"--","--",null,null,null,null,null,{"$f":"(Monthly!BT291/Monthly!BT279)-1","v":2.1836870389983165E-2},null,null,null,{"$f":"(Monthly!BX291/Monthly!BX279)-1","v":-0.10087719298245612},{"$f":"(Monthly!BY291/Monthly!BY279)-1","v":-0.18755328218243816},"--",{"$f":"(Monthly!CA291/Monthly!CA279)-1","v":7.5374901341752176E-2},{"$f":"Monthly!CB291-Monthly!CB279","v":-0.9799930135675794},{"$f":"Monthly!CC291-Monthly!CC279","v":0.3500069864324189},"--","--",null,"--","--",null,{"$f":"(Monthly!CJ291/Monthly!CJ279)-1","v":-0.17773019271948609},{"$f":"(Monthly!CK291/Monthly!CK279)-1","v":8.2633932073103766E-2},{"$f":"(Monthly!CL291/Monthly!CL279)-1","v":0.22493461203138621},{"$f":"(Monthly!CM291/Monthly!CM279)-1","v":-0.20105820105820105},{"$f":"(Monthly!CN291/Monthly!CN279)-1","v":3.1252016432581353E-2},{"$f":"(Monthly!CO291/Monthly!CO279)-1","v":-6.2670299727520473E-2},{"$f":"(Monthly!CP291/Monthly!CP279)-1","v":5.3167929379613454E-2},{"$f":"(Monthly!CQ291/Monthly!CQ279)-1","v":9.7310247195905308E-3},{"$f":"(Monthly!CR291/Monthly!CR279)-1","v":8.7973798279992854E-2},null,null,null,null,null,null,null,{"$f":"(Monthly!CZ291/Monthly!CZ279)-1","v":6.911928651059096E-2},{"$f":"(Monthly!DA291/Monthly!DA279)-1","v":8.6560364464692618E-2},null,null,null,null,null,null,{"$f":"((Monthly!DH291-Monthly!DH279)*60)","v":-30},{"$f":"((Monthly!DI291-Monthly!DI279)*100)","v":-9.9999999999994316},"--",{"$f":"((Monthly!DK291-Monthly!DK279)*100)","v":190.00000000000003},{"$f":"Monthly!DL291-Monthly!DL279","v":-1178},null,null,null,{"$f":"Monthly!DP291-Monthly!DP279","v":-1186},null,null,null,{"$f":"(Monthly!DT291/Monthly!DT279)-1","v":0.40201729106628248},{"$f":"Monthly!DU291-Monthly!DU279","v":1.5999999999999996},"--","--","--","--","--","--","--","--",null,null,null,null,null,null,null,null,null,null,null,null,null,{"$f":"(Monthly!EQ291/Monthly!EQ279)-1","v":1.5259409969481164E-2},{"$f":"(Monthly!ER291/Monthly!ER279)-1","v":5.7446808510638325E-2},{"$f":"(Monthly!ES291/Monthly!ES279)-1","v":6.076759061833692E-2},null,null,null,null,null,{"$f":"((Monthly!EY291-Monthly!EY279)*100)","v":-310.99999999999994},{"$f":"((Monthly!EZ291-Monthly!EZ279)*100)","v":-407},{"$f":"((Monthly!FA291-Monthly!FA279)*100)","v":-6.0000000000000497},{"$f":"((Monthly!FB291-Monthly!FB279)*100)","v":69.000000000000128},"--",{"$f":"((Monthly!FD291-Monthly!FD279)*100)","v":28.000000000000114},{"$f":"((Monthly!FE291-Monthly!FE279)*100)","v":-421.00000000000011},{"$f":"((Monthly!FF291-Monthly!FF279)*100)","v":-285.99999999999994},{"$f":"((Monthly!FG291-Monthly!FG279)*100)","v":-168.00000000000014},{"$f":"((Monthly!FH291-Monthly!FH279)*100)","v":-88.000000000000085},{"$f":"((Monthly!FI291-Monthly!FI279)*100)","v":-48.000000000000043},null,null,null,null,null,null,{"$f":"(Monthly!FP291/Monthly!FP279)-1","v":2.7144046627810114E-2},{"$f":"(Monthly!FQ291/Monthly!FQ279)-1","v":4.9392009264620729E-2},"--","--",{"$f":"(Monthly!FT291/Monthly!FT279)-1","v":0.11758405177245423},{"$f":"(Monthly!FU291/Monthly!FU279)-1","v":6.4270487219761252E-2},{"$f":"(Monthly!FV291/Monthly!FV279)-1","v":-7.1500036604114081E-3},{"$f":"(Monthly!FW291/Monthly!FW279)-1","v":-0.12613575628006413},{"$f":"(Monthly!FX291/Monthly!FX279)-1","v":0.15179983257371421},null,null,null,null,null,{"$f":"(Monthly!GD291/Monthly!GD279)-1","v":-5.4473684210526341E-2},"--","--","--",{"$f":"(Monthly!GH291/Monthly!GH279)-1","v":{"$error":"#DIV/0!"}},"--","--","--","--"]
["1982-08-01",null,null,null,{"$f":"(Monthly!E294/Monthly!E282)-1","v":{"$error":"#DIV/0!"}},{"$f":"(Monthly!F294/Monthly!F282)-1","v":{"$error":"#DIV/0!"}},{"$f":"(Monthly!G294/Monthly!G282)-1","v":{"$error":"#DIV/0!"}},{"$f":"(Monthly!H294/Monthly!H282)-1","v":{"$error":"#DIV/0!"}},null,null,null,null,null,null,null,null,null,null,null,null,null,null,null,{"$f":"(Monthly!X294-Monthly!X282)","v":-7.5},{"$f":"(Monthly!Y294/Monthly!Y282)-1","v":0.14660602692832292},null,null,null,null,null,null,null,null,null,null,null,null,null,{"$f":"(Monthly!AM294/Monthly!AM282)-1","v":-7.0949267640399327E-2},{"$f":"(Monthly!AN294/Monthly!AN282)-1","v":-6.8450481756436532E-2},"--","--",{"$f":"Monthly!AQ294-Monthly!AQ282","v":-10},"--","--",{"$f":"Monthly!AT294-Monthly!AT282","v":-15.999999999999996},"--","--",{"$f":"Monthly!AW294-Monthly!AW282","v":-15.699999999999996},{"$f":"Monthly!AX294-Monthly!AX282","v":-7.1000000000000014},{"$f":"Monthly!AY294-Monthly!AY282","v":-26.399999999999991},{"$f":"Monthly!AZ294-Monthly!AZ282","v":-9.6000000000000014},{"$f":"Monthly!BA294-Monthly!BA282","v":-4.3000000000000043},"--","--",null,null,null,null,null,null,null,null,null,"--","--",null,null,null,null,null,{"$f":"(Monthly!BT294/Monthly!BT282)-1","v":2.2969320858943432E-2},null,null,null,{"$f":"(Monthly!BX294/Monthly!BX282)-1","v":0.11276595744680851},{"$f":"(Monthly!BY294/Monthly!BY282)-1","v":4.1619797525309421E-2},"--",{"$f":"(Monthly!CA294/Monthly!CA282)-1","v":-0.21497952958176136},{"$f":"Monthly!CB294-Monthly!CB282","v":-2.45201485065909},{"$f":"Monthly!CC294-Monthly!CC282","v":-0.77201485065909026},"--","--",null,"--","--",null,{"$f":"(Monthly!CJ294/Monthly!CJ282)-1","v":7.6719576719576743E-2},{"$f":"(Monthly!CK294/Monthly!CK282)-1","v":5.6456479106954394E-2},{"$f":"(Monthly!CL294/Monthly!CL282)-1","v":0.11739961759082207},{"$f":"(Monthly!CM294/Monthly!CM282)-1","v":7.0376432078559814E-2},{"$f":"(Monthly!CN294/Monthly!CN282)-1","v":1.3458667171366789E-2},{"$f":"(Monthly!CO294/Monthly!CO282)-1","v":-2.7683615819209084E-2},{"$f":"(Monthly!CP294/Monthly!CP282)-1","v":4.8494815208357078E-2},{"$f":"(Monthly!CQ294/Monthly!CQ282)-1","v":9.5791682414732016E-3},{"$f":"(Monthly!CR294/Monthly!CR282)-1","v":9.2837677405428698E-2},null,null,null,null,null,null,null,{"$f":"(Monthly!CZ294/Monthly!CZ282)-1","v":5.9652928416485951E-2},{"$f":"(Monthly!DA294/Monthly!DA282)-1","v":7.056229327453134E-2},null,null,null,null,null,null,{"$f":"((Monthly!DH294-Monthly!DH282)*60)","v":-30},{"$f":"((Monthly!DI294-Monthly!DI282)*100)","v":29.999999999999716},"--",{"$f":"((Monthly!DK294-Monthly!DK282)*100)","v":240.00000000000003},{"$f":"Monthly!DL294-Monthly!DL282","v":-1588},null,null,null,{"$f":"Monthly!DP294-Monthly!DP282","v":-2202},null,null,null,{"$f":"(Monthly!DT294/Monthly!DT282)-1","v":0.41859154929577458},{"$f":"Monthly!DU294-Monthly!DU282","v":1.4999999999999991},"--","--","--","--","--","--","--","--",null,null,null,null,null,null,null,null,null,null,null,null,null,{"$f":"(Monthly!EQ294/Monthly!EQ282)-1","v":1.3131313131313105E-2},{"$f":"(Monthly!ER294/Monthly!ER282)-1","v":5.561385099685201E-2},{"$f":"(Monthly!ES294/Monthly!ES282)-1","v":5.555555555555558E-2},null,null,null,null,null,{"$f":"((Monthly!EY294-Monthly!EY282)*100)","v":-611},{"$f":"((Monthly!EZ294-Monthly!EZ282)*100)","v":-770.00000000000011},{"$f":"((Monthly!FA294-Monthly!FA282)*100)","v":-117.99999999999997},{"$f":"((Monthly!FB294-Monthly!FB282)*100)","v":-1.9999999999999574},"--",{"$f":"((Monthly!FD294-Monthly!FD282)*100)","v":-101.99999999999996},{"$f":"((Monthly!FE294-Monthly!FE282)*100)","v":-683},{"$f":"((Monthly!FF294-Monthly!FF282)*100)","v":-528.99999999999989},{"$f":"((Monthly!FG294-Monthly!FG282)*100)","v":-396.00000000000011},{"$f":"((Monthly!FH294-Monthly!FH282)*100)","v":-256.00000000000006},{"$f":"((Monthly!FI294-Monthly!FI282)*100)","v":-187.99999999999989},null,null,null,null,null,null,{"$f":"(Monthly!FP294/Monthly!FP282)-1","v":1.7985611510791477E-2},{"$f":"(Monthly!FQ294/Monthly!FQ282)-1","v":7.9375659612286764E-2},"--","--",{"$f":"(Monthly!FT294/Monthly!FT282)-1","v":0.14474064908884343},{"$f":"(Monthly!FU294/Monthly!FU282)-1","v":6.5383271803778342E-2},{"$f":"(Monthly!FV294/Monthly!FV282)-1","v":6.2382062382062342E-2},{"$f":"(Monthly!FW294/Monthly!FW282)-1","v":0.63739224137931028},{"$f":"(Monthly!FX294/Monthly!FX282)-1","v":0.27514214641080326},null,null,null,null,null,{"$f":"(Monthly!GD294/Monthly!GD282)-1","v":-5.6944444444444353E-2},"--","--","--",{"$f":"(Monthly!GH294/Monthly!GH282)-1","v":{"$error":"#DIV/0!"}},"--","--","--","--"]
["1982-10-01",null,null,null,{"$f":"(Monthly!E296/Monthly!E284)-1","v":{"$error":"#DIV/0!"}},{"$f":"(Monthly!F296/Monthly!F284)-1","v":{"$error":"#DIV/0!"}},{"$f":"(Monthly!G296/Monthly!G284)-1","v":{"$error":"#DIV/0!"}},{"$f":"(Monthly!H296/Monthly!H284)-1","v":{"$error":"#DIV/0!"}},null,null,null,null,null,null,null,null,null,null,null,null,null,null,null,{"$f":"(Monthly!X296-Monthly!X284)","v":-7.1000000000000085},{"$f":"(Monthly!Y296/Monthly!Y284)-1","v":0.15003799836400411},null,null,null,null,null,null,null,null,null,null,null,null,null,{"$f":"(Monthly!AM296/Monthly!AM284)-1","v":-6.995058560986156E-2},{"$f":"(Monthly!AN296/Monthly!AN284)-1","v":-6.8484397772392569E-2},"--","--",{"$f":"Monthly!AQ296-Monthly!AQ284","v":-0.60000000000000142},"--","--",{"$f":"Monthly!AT296-Monthly!AT284","v":-7.2999999999999972},"--","--",{"$f":"Monthly!AW296-Monthly!AW284","v":-16.399999999999999},{"$f":"Monthly!AX296-Monthly!AX284","v":1.6999999999999957},{"$f":"Monthly!AY296-Monthly!AY284","v":-16.5},{"$f":"Monthly!AZ296-Monthly!AZ284","v":2.6000000000000014},{"$f":"Monthly!BA296-Monthly!BA284","v":8.7999999999999972},"--","--",null,null,null,null,null,null,null,null,null,"--","--",null,null,null,null,null,{"$f":"(Monthly!BT296/Monthly!BT284)-1","v":2.3797796158680606E-2},null,null,null,{"$f":"(Monthly!BX296/Monthly!BX284)-1","v":0.34364261168384869},{"$f":"(Monthly!BY296/Monthly!BY284)-1","v":0.57181942544459652},"--",{"$f":"(Monthly!CA296/Monthly!CA284)-1","v":8.3831034857204889E-2},{"$f":"Monthly!CB296-Monthly!CB284","v":-2.7394267208361036},{"$f":"Monthly!CC296-Monthly!CC284","v":-0.98942672083610361},"--","--",null,"--","--",null,{"$f":"(Monthly!CJ296/Monthly!CJ284)-1","v":0.348314606741573},{"$f":"(Monthly!CK296/Monthly!CK284)-1","v":5.8213148529687286E-2},{"$f":"(Monthly!CL296/Monthly!CL284)-1","v":-9.006211180124235E-2},{"$f":"(Monthly!CM296/Monthly!CM284)-1","v":0.40917782026768634},{"$f":"(Monthly!CN296/Monthly!CN284)-1","v":1.2268392084366253E-2},{"$f":"(Monthly!CO296/Monthly!CO284)-1","v":3.4051222351571653E-2},{"$f":"(Monthly!CP296/Monthly!CP284)-1","v":3.9169220046499253E-2},{"$f":"(Monthly!CQ296/Monthly!CQ284)-1","v":9.4302400700656541E-3},{"$f":"(Monthly!CR296/Monthly!CR284)-1","v":7.948056489310118E-2},null,null,null,null,null,null,null,{"$f":"(Monthly!CZ296/Monthly!CZ284)-1","v":5.0321199143468887E-2},{"$f":"(Monthly!DA296/Monthly!DA284)-1","v":5.8631921824104261E-2},null,null,null,null,null,null,{"$f":"((Monthly!DH296-Monthly!DH284)*60)","v":-30},{"$f":"((Monthly!DI296-Monthly!DI284)*100)","v":29.999999999999716},"--",{"$f":"((Monthly!DK296-Monthly!DK284)*100)","v":250},{"$f":"Monthly!DL296-Monthly!DL284","v":-1713},null,null,null,{"$f":"Monthly!DP296-Monthly!DP284","v":-2474},null,null,null,{"$f":"(Monthly!DT296/Monthly!DT284)-1","v":0.32386363636363646},{"$f":"Monthly!DU296-Monthly!DU284","v":2.8999999999999995},"--","--","--","--","--","--","--","--",null,null,null,null,null,null,null,null,null,null,null,null,null,{"$f":"(Monthly!EQ296/Monthly!EQ284)-1","v":1.3144590495449915E-2},{"$f":"(Monthly!ER296/Monthly!ER284)-1","v":4.9740932642486912E-2},{"$f":"(Monthly!ES296/Monthly!ES284)-1","v":4.3343653250773828E-2},null,null,null,null,null,{"$f":"((Monthly!EY296-Monthly!EY284)*100)","v":-593},{"$f":"((Monthly!EZ296-Monthly!EZ284)*100)","v":-536.99999999999989},{"$f":"((Monthly!FA296-Monthly!FA284)*100)","v":-328.00000000000011},{"$f":"((Monthly!FB296-Monthly!FB284)*100)","v":-237.99999999999989},"--",{"$f":"((Monthly!FD296-Monthly!FD284)*100)","v":-384},{"$f":"((Monthly!FE296-Monthly!FE284)*100)","v":-582.99999999999989},{"$f":"((Monthly!FF296-Monthly!FF284)*100)","v":-606},{"$f":"((Monthly!FG296-Monthly!FG284)*100)","v":-535},{"$f":"((Monthly!FH296-Monthly!FH284)*100)","v":-460.99999999999994},{"$f":"((Monthly!FI296-Monthly!FI284)*100)","v":-424},null,null,null,null,null,null,{"$f":"(Monthly!FP296/Monthly!FP284)-1","v":2.2612020949372313E-2},{"$f":"(Monthly!FQ296/Monthly!FQ284)-1","v":0.13148611743286298},"--","--",{"$f":"(Monthly!FT296/Monthly!FT284)-1","v":0.19511862035257876},{"$f":"(Monthly!FU296/Monthly!FU284)-1","v":0.12839777343720993},{"$f":"(Monthly!FV296/Monthly!FV284)-1","v":-7.3156846000569486E-2},{"$f":"(Monthly!FW296/Monthly!FW284)-1","v":4.8664688427299652E-2},{"$f":"(Monthly!FX296/Monthly!FX284)-1","v":-4.7831819513624363E-2},null,null,null,null,null,{"$f":"(Monthly!GD296/Monthly!GD284)-1","v":1.9428571428571351E-2},"--","--","--",{"$f":"(Monthly!GH296/Monthly!GH284)-1","v":{"$error":"#DIV/0!"}},"--","--","--","--"]
["1983-03-01",null,null,null,{"$f":"(Monthly!E301/Monthly!E289)-1","v":{"$error":"#DIV/0!"}},{"$f":"(Monthly!F301/Monthly!F289)-1","v":{"$error":"#DIV/0!"}},{"$f":"(Monthly!G301/Monthly!G289)-1","v":{"$error":"#DIV/0!"}},{"$f":"(Monthly!H301/Monthly!H289)-1","v":{"$error":"#DIV/0!"}},null,null,null,null,null,null,null,null,null,null,null,null,null,null,null,{"$f":"(Monthly!X301-Monthly!X289)","v":-3.4000000000000057},{"$f":"(Monthly!Y301/Monthly!Y289)-1","v":8.1956817865862064E-2},null,null,null,null,null,null,null,null,null,null,null,null,null,{"$f":"(Monthly!AM301/Monthly!AM289)-1","v":-3.1796368644590123E-2},{"$f":"(Monthly!AN301/Monthly!AN289)-1","v":-1.1907268709284824E-2},"--","--",{"$f":"Monthly!AQ301-Monthly!AQ289","v":17.100000000000001},"--","--",{"$f":"Monthly!AT301-Monthly!AT289","v":12},"--","--",{"$f":"Monthly!AW301-Monthly!AW289","v":13.000000000000004},{"$f":"Monthly!AX301-Monthly!AX289","v":20.399999999999999},{"$f":"Monthly!AY301-Monthly!AY289","v":12.5},{"$f":"Monthly!AZ301-Monthly!AZ289","v":20.399999999999999},{"$f":"Monthly!BA301-Monthly!BA289","v":14.399999999999999},"--","--",null,null,null,null,null,null,null,null,null,"--","--",null,null,null,null,null,{"$f":"(Monthly!BT301/Monthly!BT289)-1","v":3.2895609352495692E-2},null,null,null,{"$f":"(Monthly!BX301/Monthly!BX289)-1","v":0.72502685284640167},{"$f":"(Monthly!BY301/Monthly!BY289)-1","v":0.65544332210998868},"--",{"$f":"(Monthly!CA301/Monthly!CA289)-1","v":3.5861145644066283E-2},{"$f":"Monthly!CB301-Monthly!CB289","v":-1.994590735624703},{"$f":"Monthly!CC301-Monthly!CC289","v":-1.0845907356246975},"--","--",null,"--","--",null,{"$f":"(Monthly!CJ301/Monthly!CJ289)-1","v":0.59358288770053469},{"$f":"(Monthly!CK301/Monthly!CK289)-1","v":6.2834911546649108E-2},{"$f":"(Monthly!CL301/Monthly!CL289)-1","v":-8.1765557163530955E-2},{"$f":"(Monthly!CM301/Monthly!CM289)-1","v":0.63875205254515599},{"$f":"(Monthly!CN301/Monthly!CN289)-1","v":2.7075774417482767E-2},{"$f":"(Monthly!CO301/Monthly!CO289)-1","v":0.85705984892504383},{"$f":"(Monthly!CP301/Monthly!CP289)-1","v":4.9611101942394153E-2},{"$f":"(Monthly!CQ301/Monthly!CQ289)-1","v":9.2582192076726688E-3},{"$f":"(Monthly!CR301/Monthly!CR289)-1","v":9.6002778079782081E-2},null,null,null,null,null,null,null,{"$f":"(Monthly!CZ301/Monthly!CZ289)-1","v":3.5902851108764455E-2},{"$f":"(Monthly!DA301/Monthly!DA289)-1","v":4.5793397231096877E-2},null,null,null,null,null,null,{"$f":"((Monthly!DH301-Monthly!DH289)*60)","v":-11.999999999999744},{"$f":"((Monthly!DI301-Monthly!DI289)*100)","v":-9.9999999999994316},"--",{"$f":"((Monthly!DK301-Monthly!DK289)*100)","v":130.00000000000006},{"$f":"Monthly!DL301-Monthly!DL289","v":-1146},null,null,null,{"$f":"Monthly!DP301-Monthly!DP289","v":-1342},null,null,null,{"$f":"(Monthly!DT301/Monthly!DT289)-1","v":-0.12781408859840238},{"$f":"Monthly!DU301-Monthly!DU289","v":2.7},"--","--","--","--","--","--","--","--",null,null,null,null,null,null,null,null,null,null,null,null,null,{"$f":"(Monthly!EQ301/Monthly!EQ289)-1","v":8.0321285140563248E-3},{"$f":"(Monthly!ER301/Monthly!ER289)-1","v":3.8500506585612992E-2},{"$f":"(Monthly!ES301/Monthly!ES289)-1","v":3.5460992907801359E-2},null,null,null,null,null,{"$f":"((Monthly!EY301-Monthly!EY289)*100)","v":-600},{"$f":"((Monthly!EZ301-Monthly!EZ289)*100)","v":-591},{"$f":"((Monthly!FA301-Monthly!FA289)*100)","v":-284.99999999999994},{"$f":"((Monthly!FB301-Monthly!FB289)*100)","v":-321.00000000000011},"--",{"$f":"((Monthly!FD301-Monthly!FD289)*100)","v":-435.99999999999994},{"$f":"((Monthly!FE301-Monthly!FE289)*100)","v":-433},{"$f":"((Monthly!FF301-Monthly!FF289)*100)","v":-491},{"$f":"((Monthly!FG301-Monthly!FG289)*100)","v":-452.99999999999994},{"$f":"((Monthly!FH301-Monthly!FH289)*100)","v":-390.00000000000006},{"$f":"((Monthly!FI301-Monthly!FI289)*100)","v":-334.99999999999994},null,null,null,null,null,null,{"$f":"(Monthly!FP301/Monthly!FP289)-1","v":4.7521507578860422E-3},{"$f":"(Monthly!FQ301/Monthly!FQ289)-1","v":7.6238537088284763E-2},"--","--",{"$f":"(Monthly!FT301/Monthly!FT289)-1","v":0.1331804421203393},{"$f":"(Monthly!FU301/Monthly!FU289)-1","v":5.3344100026976093E-2},{"$f":"(Monthly!FV301/Monthly!FV289)-1","v":9.0346951542274123E-2},{"$f":"(Monthly!FW301/Monthly!FW289)-1","v":-4.7472256473489405E-2},{"$f":"(Monthly!FX301/Monthly!FX289)-1","v":1.3964135826020518E-2},null,null,null,null,null,{"$f":"(Monthly!GD301/Monthly!GD289)-1","v":1.1938202247190999E-2},"--","--","--",{"$f":"(Monthly!GH301/Monthly!GH289)-1","v":{"$error":"#DIV/0!"}},"--","--","--","--"]
["1983-08-01",null,null,null,{"$f":"(Monthly!E306/Monthly!E294)-1","v":{"$error":"#DIV/0!"}},{"$f":"(Monthly!F306/Monthly!F294)-1","v":{"$error":"#DIV/0!"}},{"$f":"(Monthly!G306/Monthly!G294)-1","v":{"$error":"#DIV/0!"}},{"$f":"(Monthly!H306/Monthly!H294)-1","v":{"$error":"#DIV/0!"}},null,null,null,null,null,null,null,null,null,null,null,null,null,null,null,{"$f":"(Monthly!X306-Monthly!X294)","v":3.1000000000000085},{"$f":"(Monthly!Y306/Monthly!Y294)-1","v":4.0759157547841873E-2},null,null,null,null,null,null,null,null,null,null,null,null,null,{"$f":"(Monthly!AM306/Monthly!AM294)-1","v":4.9597339112029459E-2},{"$f":"(Monthly!AN306/Monthly!AN294)-1","v":6.5278088636584464E-2},"--","--",{"$f":"Monthly!AQ306-Monthly!AQ294","v":24.800000000000004},"--","--",{"$f":"Monthly!AT306-Monthly!AT294","v":24.2},"--","--",{"$f":"Monthly!AW306-Monthly!AW294","v":17.699999999999996},{"$f":"Monthly!AX306-Monthly!AX294","v":27.999999999999993},{"$f":"Monthly!AY306-Monthly!AY294","v":30.200000000000003},{"$f":"Monthly!AZ306-Monthly!AZ294","v":30.000000000000007},{"$f":"Monthly!BA306-Monthly!BA294","v":14.900000000000006},"--","--",null,null,null,null,null,null,null,null,null,"--","--",null,null,null,null,null,{"$f":"(Monthly!BT306/Monthly!BT294)-1","v":7.4975980444369705E-2},null,null,null,{"$f":"(Monthly!BX306/Monthly!BX294)-1","v":0.82600382409177819},{"$f":"(Monthly!BY306/Monthly!BY294)-1","v":0.84989200863930892},"--",{"$f":"(Monthly!CA306/Monthly!CA294)-1","v":0.23202781470498013},{"$f":"Monthly!CB306-Monthly!CB294","v":-3.8087933534193361},{"$f":"Monthly!CC306-Monthly!CC294","v":-4.018793353419337},"--","--",null,"--","--",null,{"$f":"(Monthly!CJ306/Monthly!CJ294)-1","v":0.40540540540540548},{"$f":"(Monthly!CK306/Monthly!CK294)-1","v":6.5969371363295615E-2},{"$f":"(Monthly!CL306/Monthly!CL294)-1","v":-0.21115674195756329},{"$f":"(Monthly!CM306/Monthly!CM294)-1","v":0.76605504587155959},{"$f":"(Monthly!CN306/Monthly!CN294)-1","v":3.3262092005063026E-2},{"$f":"(Monthly!CO306/Monthly!CO294)-1","v":0.99767576990122042},{"$f":"(Monthly!CP306/Monthly!CP294)-1","v":8.1311154445485201E-2},{"$f":"(Monthly!CQ306/Monthly!CQ294)-1","v":9.0751833109572466E-3},{"$f":"(Monthly!CR306/Monthly!CR294)-1","v":0.11976810216590228},null,null,null,null,null,null,null,{"$f":"(Monthly!CZ306/Monthly!CZ294)-1","v":2.4564994882292579E-2},{"$f":"(Monthly!DA306/Monthly!DA294)-1","v":3.0895983522142068E-2},null,null,null,null,null,null,{"$f":"((Monthly!DH306-Monthly!DH294)*60)","v":11.999999999999744},{"$f":"((Monthly!DI306-Monthly!DI294)*100)","v":20.000000000000284},"--",{"$f":"((Monthly!DK306-Monthly!DK294)*100)","v":-30.000000000000071},{"$f":"Monthly!DL306-Monthly!DL294","v":-42},null,null,null,{"$f":"Monthly!DP306-Monthly!DP294","v":768},null,null,null,{"$f":"(Monthly!DT306/Monthly!DT294)-1","v":-0.30778395552025417},{"$f":"Monthly!DU306-Monthly!DU294","v":0.60000000000000142},"--","--","--","--","--","--","--","--",null,null,null,null,null,null,null,null,null,null,null,null,null,{"$f":"(Monthly!EQ306/Monthly!EQ294)-1","v":1.4955134596211339E-2},{"$f":"(Monthly!ER306/Monthly!ER294)-1","v":2.8827037773359931E-2},{"$f":"(Monthly!ES306/Monthly!ES294)-1","v":2.3833167825223267E-2},null,null,null,null,null,{"$f":"((Monthly!EY306-Monthly!EY294)*100)","v":-350},{"$f":"((Monthly!EZ306-Monthly!EZ294)*100)","v":-55.999999999999872},{"$f":"((Monthly!FA306-Monthly!FA294)*100)","v":-120.00000000000011},{"$f":"((Monthly!FB306-Monthly!FB294)*100)","v":-268},"--",{"$f":"((Monthly!FD306-Monthly!FD294)*100)","v":-245.99999999999991},{"$f":"((Monthly!FE306-Monthly!FE294)*100)","v":66.000000000000014},{"$f":"((Monthly!FF306-Monthly!FF294)*100)","v":-90.000000000000028},{"$f":"((Monthly!FG306-Monthly!FG294)*100)","v":-125},{"$f":"((Monthly!FH306-Monthly!FH294)*100)","v":-136.99999999999991},{"$f":"((Monthly!FI306-Monthly!FI294)*100)","v":-121.00000000000009},null,null,null,null,null,null,{"$f":"(Monthly!FP306/Monthly!FP294)-1","v":-9.1551557982654241E-3},{"$f":"(Monthly!FQ306/Monthly!FQ294)-1","v":2.1150679291889629E-2},"--","--",{"$f":"(Monthly!FT306/Monthly!FT294)-1","v":0.11476191356845034},{"$f":"(Monthly!FU306/Monthly!FU294)-1","v":4.0802788349285413E-2},{"$f":"(Monthly!FV306/Monthly!FV294)-1","v":5.9293699717897885E-2},{"$f":"(Monthly!FW306/Monthly!FW294)-1","v":-0.25337282000658101},{"$f":"(Monthly!FX306/Monthly!FX294)-1","v":3.9085905385633835E-2},null,null,null,null,null,{"$f":"(Monthly!GD306/Monthly!GD294)-1","v":-6.0088365243004538E-2},"--","--","--",{"$f":"(Monthly!GH306/Monthly!GH294)-1","v":{"$error":"#DIV/0!"}},"--","--","--","--"]
["1984-02-01",null,null,null,{"$f":"(Monthly!E312/Monthly!E300)-1","v":{"$error":"#DIV/0!"}},{"$f":"(Monthly!F312/Monthly!F300)-1","v":{"$error":"#DIV/0!"}},{"$f":"(Monthly!G312/Monthly!G300)-1","v":{"$error":"#DIV/0!"}},{"$f":"(Monthly!H312/Monthly!H300)-1","v":{"$error":"#DIV/0!"}},null,null,null,null,null,null,null,null,null,null,null,null,null,null,null,{"$f":"(Monthly!X312-Monthly!X300)","v":8.0999999999999943},{"$f":"(Monthly!Y312/Monthly!Y300)-1","v":7.6839378923294843E-2},null,null,null,null,null,null,null,null,null,null,null,null,null,{"$f":"(Monthly!AM312/Monthly!AM300)-1","v":0.12183584917191226},{"$f":"(Monthly!AN312/Monthly!AN300)-1","v":0.14094324496922428},"--","--",{"$f":"Monthly!AQ312-Monthly!AQ300","v":6.8999999999999986},"--","--",{"$f":"Monthly!AT312-Monthly!AT300","v":9},"--","--",{"$f":"Monthly!AW312-Monthly!AW300","v":12.600000000000001},{"$f":"Monthly!AX312-Monthly!AX300","v":4.3000000000000043},{"$f":"Monthly!AY312-Monthly!AY300","v":22.399999999999991},{"$f":"Monthly!AZ312-Monthly!AZ300","v":2.8999999999999986},{"$f":"Monthly!BA312-Monthly!BA300","v":11.600000000000001},"--","--",null,null,null,null,null,null,null,null,null,"--","--",null,null,null,null,null,{"$f":"(Monthly!BT312/Monthly!BT300)-1","v":0.16123032409561966},null,null,null,{"$f":"(Monthly!BX312/Monthly!BX300)-1","v":0.33019423190111841},{"$f":"(Monthly!BY312/Monthly!BY300)-1","v":0.35078178110129166},"--",{"$f":"(Monthly!CA312/Monthly!CA300)-1","v":0.35331864763911502},{"$f":"Monthly!CB312-Monthly!CB300","v":-1.3908109389479275},{"$f":"Monthly!CC312-Monthly!CC300","v":-3.210810938947926},"--","--",null,"--","--",null,{"$f":"(Monthly!CJ312/Monthly!CJ300)-1","v":0.23843416370106763},{"$f":"(Monthly!CK312/Monthly!CK300)-1","v":0.10158774276482641},{"$f":"(Monthly!CL312/Monthly!CL300)-1","v":0.17680392897619956},{"$f":"(Monthly!CM312/Monthly!CM300)-1","v":0.34357005758157388},{"$f":"(Monthly!CN312/Monthly!CN300)-1","v":6.6964835255016286E-2},{"$f":"(Monthly!CO312/Monthly!CO300)-1","v":0.14769895331450411},{"$f":"(Monthly!CP312/Monthly!CP300)-1","v":0.15176329961438562},{"$f":"(Monthly!CQ312/Monthly!CQ300)-1","v":8.7975911561508635E-3},{"$f":"(Monthly!CR312/Monthly!CR300)-1","v":0.20894388835793509},null,null,null,null,null,null,null,{"$f":"(Monthly!CZ312/Monthly!CZ300)-1","v":4.6938775510203978E-2},{"$f":"(Monthly!DA312/Monthly!DA300)-1","v":4.8979591836734615E-2},null,null,null,null,null,null,{"$f":"((Monthly!DH312-Monthly!DH300)*60)","v":47.999999999999829},{"$f":"((Monthly!DI312-Monthly!DI300)*100)","v":29.999999999999716},"--",{"$f":"((Monthly!DK312-Monthly!DK300)*100)","v":-260.00000000000006},{"$f":"Monthly!DL312-Monthly!DL300","v":1022},null,null,null,{"$f":"Monthly!DP312-Monthly!DP300","v":4236},null,null,null,{"$f":"(Monthly!DT312/Monthly!DT300)-1","v":-0.31360647445624679},{"$f":"Monthly!DU312-Monthly!DU300","v":-1.5},"--","--","--","--","--","--","--","--",null,null,null,null,null,null,null,null,null,null,null,null,null,{"$f":"(Monthly!EQ312/Monthly!EQ300)-1","v":2.6865671641790989E-2},{"$f":"(Monthly!ER312/Monthly!ER300)-1","v":2.4461839530332652E-2},{"$f":"(Monthly!ES312/Monthly!ES300)-1","v":2.350636630754166E-2},null,null,null,null,null,{"$f":"((Monthly!EY312-Monthly!EY300)*100)","v":1.9999999999999574},{"$f":"((Monthly!EZ312-Monthly!EZ300)*100)","v":108},{"$f":"((Monthly!FA312-Monthly!FA300)*100)","v":7.0000000000000284},{"$f":"((Monthly!FB312-Monthly!FB300)*100)","v":-35.999999999999943},"--",{"$f":"((Monthly!FD312-Monthly!FD300)*100)","v":19.000000000000128},{"$f":"((Monthly!FE312-Monthly!FE300)*100)","v":98.000000000000043},{"$f":"((Monthly!FF312-Monthly!FF300)*100)","v":111.99999999999991},{"$f":"((Monthly!FG312-Monthly!FG300)*100)","v":114.99999999999986},{"$f":"((Monthly!FH312-Monthly!FH300)*100)","v":127.99999999999994},{"$f":"((Monthly!FI312-Monthly!FI300)*100)","v":111.99999999999991},null,null,null,null,null,null,{"$f":"(Monthly!FP312/Monthly!FP300)-1","v":1.6534984116640894E-2},{"$f":"(Monthly!FQ312/Monthly!FQ300)-1","v":4.9610746450923671E-2},"--","--",{"$f":"(Monthly!FT312/Monthly!FT300)-1","v":0.12701282220120436},{"$f":"(Monthly!FU312/Monthly!FU300)-1","v":5.5193488773084498E-2},{"$f":"(Monthly!FV312/Monthly!FV300)-1","v":0.43512670876968595},{"$f":"(Monthly!FW312/Monthly!FW300)-1","v":0.18721690991444406},{"$f":"(Monthly!FX312/Monthly!FX300)-1","v":0.31411114830934039},null,null,null,null,null,{"$f":"(Monthly!GD312/Monthly!GD300)-1","v":4.1278065630397265E-2},"--","--","--",{"$f":"(Monthly!GH312/Monthly!GH300)-1","v":{"$error":"#DIV/0!"}},"--","--","--","--"]
["1984-06-01",null,null,null,{"$f":"(Monthly!E316/Monthly!E304)-1","v":{"$error":"#DIV/0!"}},{"$f":"(Monthly!F316/Monthly!F304)-1","v":{"$error":"#DIV/0!"}},{"$f":"(Monthly!G316/Monthly!G304)-1","v":{"$error":"#DIV/0!"}},{"$f":"(Monthly!H316/Monthly!H304)-1","v":{"$error":"#DIV/0!"}},null,null,null,null,null,null,null,null,null,null,null,null,null,null,null,{"$f":"(Monthly!X316-Monthly!X304)","v":6.9000000000000057},{"$f":"(Monthly!Y316/Monthly!Y304)-1","v":0.14506620082546329},null,null,null,null,null,null,null,null,null,null,null,null,null,{"$f":"(Monthly!AM316/Monthly!AM304)-1","v":0.10686472198733377},{"$f":"(Monthly!AN316/Monthly!AN304)-1","v":0.11256399011762452},"--","--",{"$f":"Monthly!AQ316-Monthly!AQ304","v":0.60000000000000142},"--","--",{"$f":"Monthly!AT316-Monthly!AT304","v":2},"--","--",{"$f":"Monthly!AW316-Monthly!AW304","v":10.599999999999994},{"$f":"Monthly!AX316-Monthly!AX304","v":-1.7999999999999972},{"$f":"Monthly!AY316-Monthly!AY304","v":2.5},{"$f":"Monthly!AZ316-Monthly!AZ304","v":-0.90000000000000568},{"$f":"Monthly!BA316-Monthly!BA304","v":-0.59999999999999432},"--","--",null,null,null,null,null,null,null,null,null,"--","--",null,null,null,null,null,{"$f":"(Monthly!BT316/Monthly!BT304)-1","v":0.20324692362930041},null,null,null,{"$f":"(Monthly!BX316/Monthly!BX304)-1","v":6.3473744950952149E-2},{"$f":"(Monthly!BY316/Monthly!BY304)-1","v":2.5438100621820281E-2},"--",{"$f":"(Monthly!CA316/Monthly!CA304)-1","v":0.12585060617911625},{"$f":"Monthly!CB316-Monthly!CB304","v":-1.0482710697172859},{"$f":"Monthly!CC316-Monthly!CC304","v":-3.0782710697172817},"--","--",null,"--","--",null,{"$f":"(Monthly!CJ316/Monthly!CJ304)-1","v":-3.2258064516129004E-2},{"$f":"(Monthly!CK316/Monthly!CK304)-1","v":0.1109113726554285},{"$f":"(Monthly!CL316/Monthly!CL304)-1","v":0.39561443581544076},{"$f":"(Monthly!CM316/Monthly!CM304)-1","v":-3.1222123104371113E-2},{"$f":"(Monthly!CN316/Monthly!CN304)-1","v":8.0419580419580416E-2},{"$f":"(Monthly!CO316/Monthly!CO304)-1","v":1.6009314510260442E-2},{"$f":"(Monthly!CP316/Monthly!CP304)-1","v":0.18813183523263688},{"$f":"(Monthly!CQ316/Monthly!CQ304)-1","v":8.7220974038733079E-3},{"$f":"(Monthly!CR316/Monthly!CR304)-1","v":0.27231050301077953},null,null,null,null,null,null,null,{"$f":"(Monthly!CZ316/Monthly!CZ304)-1","v":4.3259557344064392E-2},{"$f":"(Monthly!DA316/Monthly!DA304)-1","v":5.3427419354838745E-2},null,null,null,null,null,null,{"$f":"((Monthly!DH316-Monthly!DH304)*60)","v":12.000000000000171},{"$f":"((Monthly!DI316-Monthly!DI304)*100)","v":29.999999999999716},"--",{"$f":"((Monthly!DK316-Monthly!DK304)*100)","v":-289.99999999999994},{"$f":"Monthly!DL316-Monthly!DL304","v":1007},null,null,null,{"$f":"Monthly!DP316-Monthly!DP304","v":4457},null,null,null,{"$f":"(Monthly!DT316/Monthly!DT304)-1","v":-0.18289251547552055},{"$f":"Monthly!DU316-Monthly!DU304","v":-3.8000000000000007},"--","--","--","--","--","--","--","--",null,null,null,null,null,null,null,null,null,null,null,null,null,{"$f":"(Monthly!EQ316/Monthly!EQ304)-1","v":2.9702970297029729E-2},{"$f":"(Monthly!ER316/Monthly!ER304)-1","v":2.6264591439688845E-2},{"$f":"(Monthly!ES316/Monthly!ES304)-1","v":2.5341130604288553E-2},null,null,null,null,null,{"$f":"((Monthly!EY316-Monthly!EY304)*100)","v":209.99999999999997},{"$f":"((Monthly!EZ316-Monthly!EZ304)*100)","v":208},{"$f":"((Monthly!FA316-Monthly!FA304)*100)","v":181.00000000000006},{"$f":"((Monthly!FB316-Monthly!FB304)*100)","v":168.00000000000014},"--",{"$f":"((Monthly!FD316-Monthly!FD304)*100)","v":155.00000000000006},{"$f":"((Monthly!FE316-Monthly!FE304)*100)","v":108},{"$f":"((Monthly!FF316-Monthly!FF304)*100)","v":242},{"$f":"((Monthly!FG316-Monthly!FG304)*100)","v":273.00000000000006},{"$f":"((Monthly!FH316-Monthly!FH304)*100)","v":284.99999999999994},{"$f":"((Monthly!FI316-Monthly!FI304)*100)","v":271.00000000000011},null,null,null,null,null,null,{"$f":"(Monthly!FP316/Monthly!FP304)-1","v":5.8183883794530544E-2},{"$f":"(Monthly!FQ316/Monthly!FQ304)-1","v":0.11173492405634367},"--","--",{"$f":"(Monthly!FT316/Monthly!FT304)-1","v":0.11903623963525201},{"$f":"(Monthly!FU316/Monthly!FU304)-1","v":4.8723888293797479E-2},{"$f":"(Monthly!FV316/Monthly!FV304)-1","v":0.22513222999488125},{"$f":"(Monthly!FW316/Monthly!FW304)-1","v":0.22281167108753341},{"$f":"(Monthly!FX316/Monthly!FX304)-1","v":5.9397228129353996E-2},null,null,null,null,null,{"$f":"(Monthly!GD316/Monthly!GD304)-1","v":-3.3322580645161359E-2},"--","--","--",{"$f":"(Monthly!GH316/Monthly!GH304)-1","v":{"$error":"#DIV/0!"}},"--","--","--","--"]
["1984-09-01",null,null,null,{"$f":"(Monthly!E319/Monthly!E307)-1","v":{"$error":"#DIV/0!"}},{"$f":"(Monthly!F319/Monthly!F307)-1","v":{"$error":"#DIV/0!"}},{"$f":"(Monthly!G319/Monthly!G307)-1","v":{"$error":"#DIV/0!"}},{"$f":"(Monthly!H319/Monthly!H307)-1","v":{"$error":"#DIV/0!"}},null,null,null,null,null,null,null,null,null,null,null,null,null,null,null,{"$f":"(Monthly!X319-Monthly!X307)","v":3.5},{"$f":"(Monthly!Y319/Monthly!Y307)-1","v":0.14753173063307234},null,null,null,null,null,null,null,null,null,null,null,null,null,{"$f":"(Monthly!AM319/Monthly!AM307)-1","v":6.501763574985997E-2},{"$f":"(Monthly!AN319/Monthly!AN307)-1","v":7.0468087586136763E-2},"--","--",{"$f":"Monthly!AQ319-Monthly!AQ307","v":-12.5},"--","--",{"$f":"Monthly!AT319-Monthly!AT307","v":-6.6999999999999957},"--","--",{"$f":"Monthly!AW319-Monthly!AW307","v":-1.8000000000000043},{"$f":"Monthly!AX319-Monthly!AX307","v":-19.700000000000003},{"$f":"Monthly!AY319-Monthly!AY307","v":-14.600000000000001},{"$f":"Monthly!AZ319-Monthly!AZ307","v":-15.599999999999994},{"$f":"Monthly!BA319-Monthly!BA307","v":-7.9000000000000057},"--","--",null,null,null,null,null,null,null,null,null,"--","--",null,null,null,null,null,{"$f":"(Monthly!BT319/Monthly!BT307)-1","v":0.19710586991907619},null,null,null,{"$f":"(Monthly!BX319/Monthly!BX307)-1","v":-7.0175438596491446E-3},{"$f":"(Monthly!BY319/Monthly!BY307)-1","v":-3.9116719242902165E-2},"--",{"$f":"(Monthly!CA319/Monthly!CA307)-1","v":0.11453744493392093},{"$f":"Monthly!CB319-Monthly!CB307","v":-0.38069339836151705},{"$f":"Monthly!CC319-Monthly!CC307","v":-1.7106933983615171},"--","--",null,"--","--",null,{"$f":"(Monthly!CJ319/Monthly!CJ307)-1","v":8.8815789473684292E-2},{"$f":"(Monthly!CK319/Monthly!CK307)-1","v":0.11450001659420539},{"$f":"(Monthly!CL319/Monthly!CL307)-1","v":0.39057940808670288},{"$f":"(Monthly!CM319/Monthly!CM307)-1","v":-2.0754716981132071E-2},{"$f":"(Monthly!CN319/Monthly!CN307)-1","v":7.8071961982348892E-2},{"$f":"(Monthly!CO319/Monthly!CO307)-1","v":-2.6189436927105403E-3},{"$f":"(Monthly!CP319/Monthly!CP307)-1","v":0.19308631999978942},{"$f":"(Monthly!CQ319/Monthly!CQ307)-1","v":8.7728641974256227E-3},{"$f":"(Monthly!CR319/Monthly!CR307)-1","v":0.28421549156583592},null,null,null,null,null,null,null,{"$f":"(Monthly!CZ319/Monthly!CZ307)-1","v":4.2828685258964105E-2},{"$f":"(Monthly!DA319/Monthly!DA307)-1","v":5.2736318407960114E-2},null,null,null,null,null,null,{"$f":"((Monthly!DH319-Monthly!DH307)*60)","v":6.0000000000000853},{"$f":"((Monthly!DI319-Monthly!DI307)*100)","v":10.000000000000853},"--",{"$f":"((Monthly!DK319-Monthly!DK307)*100)","v":-189.99999999999994},{"$f":"Monthly!DL319-Monthly!DL307","v":764},null,null,null,{"$f":"Monthly!DP319-Monthly!DP307","v":4097},null,null,null,{"$f":"(Monthly!DT319/Monthly!DT307)-1","v":-2.6299694189602429E-2},{"$f":"Monthly!DU319-Monthly!DU307","v":-1.7000000000000011},"--","--","--","--","--","--","--","--",null,null,null,null,null,null,null,null,null,null,null,null,null,{"$f":"(Monthly!EQ319/Monthly!EQ307)-1","v":1.3725490196078383E-2},{"$f":"(Monthly!ER319/Monthly!ER307)-1","v":2.6086956521739202E-2},{"$f":"(Monthly!ES319/Monthly!ES307)-1","v":2.5169409486931249E-2},null,null,null,null,null,{"$f":"((Monthly!EY319-Monthly!EY307)*100)","v":197.00000000000006},{"$f":"((Monthly!EZ319-Monthly!EZ307)*100)","v":185.00000000000014},{"$f":"((Monthly!FA319-Monthly!FA307)*100)","v":29.000000000000092},{"$f":"((Monthly!FB319-Monthly!FB307)*100)","v":79.999999999999886},"--",{"$f":"((Monthly!FD319-Monthly!FD307)*100)","v":61.999999999999922},{"$f":"((Monthly!FE319-Monthly!FE307)*100)","v":136.99999999999991},{"$f":"((Monthly!FF319-Monthly!FF307)*100)","v":142},{"$f":"((Monthly!FG319-Monthly!FG307)*100)","v":141},{"$f":"((Monthly!FH319-Monthly!FH307)*100)","v":109.99999999999997},{"$f":"((Monthly!FI319-Monthly!FI307)*100)","v":86.999999999999915},null,null,null,null,null,null,{"$f":"(Monthly!FP319/Monthly!FP307)-1","v":6.6444913191627597E-2},{"$f":"(Monthly!FQ319/Monthly!FQ307)-1","v":0.28197513464539181},"--","--",{"$f":"(Monthly!FT319/Monthly!FT307)-1","v":0.15136293690921088},{"$f":"(Monthly!FU319/Monthly!FU307)-1","v":8.6925962538937585E-2},{"$f":"(Monthly!FV319/Monthly!FV307)-1","v":0.29297932918219471},{"$f":"(Monthly!FW319/Monthly!FW307)-1","v":0.63901345291479794},{"$f":"(Monthly!FX319/Monthly!FX307)-1","v":5.9661556262655457E-2},null,null,null,null,null,{"$f":"(Monthly!GD319/Monthly!GD307)-1","v":-5.782706525233039E-2},"--","--","--",{"$f":"(Monthly!GH319/Monthly!GH307)-1","v":{"$error":"#DIV/0!"}},"--","--","--","--"]
["1985-03-01",null,null,null,{"$f":"(Monthly!E325/Monthly!E313)-1","v":{"$error":"#DIV/0!"}},{"$f":"(Monthly!F325/Monthly!F313)-1","v":{"$error":"#DIV/0!"}},{"$f":"(Monthly!G325/Monthly!G313)-1","v":{"$error":"#DIV/0!"}},{"$f":"(Monthly!H325/Monthly!H313)-1","v":{"$error":"#DIV/0!"}},null,null,null,null,null,null,null,null,null,null,null,null,null,null,null,{"$f":"(Monthly!X325-Monthly!X313)","v":-0.19999999999998863},{"$f":"(Monthly!Y325/Monthly!Y313)-1","v":0.11447458766904361},null,null,null,null,null,null,null,null,null,null,null,null,null,{"$f":"(Monthly!AM325/Monthly!AM313)-1","v":2.3963468405302502E-2},{"$f":"(Monthly!AN325/Monthly!AN313)-1","v":2.6970421449882487E-2},"--","--",{"$f":"Monthly!AQ325-Monthly!AQ313","v":-11.100000000000001},"--","--",{"$f":"Monthly!AT325-Monthly!AT313","v":-6.8999999999999986},"--","--",{"$f":"Monthly!AW325-Monthly!AW313","v":-8.7000000000000028},{"$f":"Monthly!AX325-Monthly!AX313","v":-11.799999999999997},{"$f":"Monthly!AY325-Monthly!AY313","v":-27.399999999999991},{"$f":"Monthly!AZ325-Monthly!AZ313","v":-10.299999999999997},{"$f":"Monthly!BA325-Monthly!BA313","v":-18.799999999999997},"--","--",null,null,null,null,null,null,null,null,null,"--","--",null,null,null,null,null,{"$f":"(Monthly!BT325/Monthly!BT313)-1","v":0.19969545444077008},null,null,null,{"$f":"(Monthly!BX325/Monthly!BX313)-1","v":8.2381238725195427E-2},{"$f":"(Monthly!BY325/Monthly!BY313)-1","v":1.159420289855051E-3},"--",{"$f":"(Monthly!CA325/Monthly!CA313)-1","v":7.7468318178563589E-2},{"$f":"Monthly!CB325-Monthly!CB313","v":-1.7028788972994295},{"$f":"Monthly!CC325-Monthly!CC313","v":-2.1228788972994295},"--","--",null,"--","--",null,{"$f":"(Monthly!CJ325/Monthly!CJ313)-1","v":4.6801872074883066E-2},{"$f":"(Monthly!CK325/Monthly!CK313)-1","v":8.4643024527417676E-2},{"$f":"(Monthly!CL325/Monthly!CL313)-1","v":-0.21391752577319578},{"$f":"(Monthly!CM325/Monthly!CM313)-1","v":7.7437858508604185E-2},{"$f":"(Monthly!CN325/Monthly!CN313)-1","v":2.3610315186246567E-2},{"$f":"(Monthly!CO325/Monthly!CO313)-1","v":6.8465623654370589E-2},{"$f":"(Monthly!CP325/Monthly!CP313)-1","v":0.18663226957298451},{"$f":"(Monthly!CQ325/Monthly!CQ313)-1","v":8.7281213535588265E-3},{"$f":"(Monthly!CR325/Monthly!CR313)-1","v":0.29971308894724236},null,null,null,null,null,null,null,{"$f":"(Monthly!CZ325/Monthly!CZ313)-1","v":3.790087463556846E-2},{"$f":"(Monthly!DA325/Monthly!DA313)-1","v":4.7480620155038622E-2},null,null,null,null,null,null,{"$f":"((Monthly!DH325-Monthly!DH313)*60)","v":-12.000000000000171},{"$f":"((Monthly!DI325-Monthly!DI313)*100)","v":80.000000000001137},"--",{"$f":"((Monthly!DK325-Monthly!DK313)*100)","v":-59.999999999999964},{"$f":"Monthly!DL325-Monthly!DL313","v":133},null,null,null,{"$f":"Monthly!DP325-Monthly!DP313","v":3414},null,null,null,{"$f":"(Monthly!DT325/Monthly!DT313)-1","v":0.10121457489878538},{"$f":"Monthly!DU325-Monthly!DU313","v":-1.2000000000000011},"--","--","--","--","--","--","--","--",null,null,null,null,null,null,null,null,null,null,null,null,null,{"$f":"(Monthly!EQ325/Monthly!EQ313)-1","v":-7.6997112608278018E-3},{"$f":"(Monthly!ER325/Monthly!ER313)-1","v":2.281368821292773E-2},{"$f":"(Monthly!ES325/Monthly!ES313)-1","v":2.390057361376674E-2},null,null,null,null,null,{"$f":"((Monthly!EY325-Monthly!EY313)*100)","v":-71.000000000000085},{"$f":"((Monthly!EZ325-Monthly!EZ313)*100)","v":-133},{"$f":"((Monthly!FA325-Monthly!FA313)*100)","v":-0.99999999999997868},{"$f":"((Monthly!FB325-Monthly!FB313)*100)","v":-30.000000000000071},"--",{"$f":"((Monthly!FD325-Monthly!FD313)*100)","v":-22.000000000000064},{"$f":"((Monthly!FE325-Monthly!FE313)*100)","v":-100},{"$f":"((Monthly!FF325-Monthly!FF313)*100)","v":-73.000000000000043},{"$f":"((Monthly!FG325-Monthly!FG313)*100)","v":-59.999999999999964},{"$f":"((Monthly!FH325-Monthly!FH313)*100)","v":-50},{"$f":"((Monthly!FI325-Monthly!FI313)*100)","v":-46.000000000000085},null,null,null,null,null,null,{"$f":"(Monthly!FP325/Monthly!FP313)-1","v":9.0021264865716155E-2},{"$f":"(Monthly!FQ325/Monthly!FQ313)-1","v":0.38201104330136593},"--","--",{"$f":"(Monthly!FT325/Monthly!FT313)-1","v":0.23026445549674013},{"$f":"(Monthly!FU325/Monthly!FU313)-1","v":0.1853941376878927},{"$f":"(Monthly!FV325/Monthly!FV313)-1","v":9.311238259743071E-2},{"$f":"(Monthly!FW325/Monthly!FW313)-1","v":0.21829521829521825},{"$f":"(Monthly!FX325/Monthly!FX313)-1","v":4.6720907297830294E-2},null,null,null,null,null,{"$f":"(Monthly!GD325/Monthly!GD313)-1","v":-8.2019440200253535E-2},"--","--","--",{"$f":"(Monthly!GH325/Monthly!GH313)-1","v":{"$error":"#DIV/0!"}},"--","--","--","--"]
["1985-08-01",null,null,null,{"$f":"(Monthly!E330/Monthly!E318)-1","v":{"$error":"#DIV/0!"}},{"$f":"(Monthly!F330/Monthly!F318)-1","v":{"$error":"#DIV/0!"}},{"$f":"(Monthly!G330/Monthly!G318)-1","v":{"$error":"#DIV/0!"}},{"$f":"(Monthly!H330/Monthly!H318)-1","v":{"$error":"#DIV/0!"}},null,null,null,null,null,null,null,null,null,null,null,null,null,null,null,{"$f":"(Monthly!X330-Monthly!X318)","v":-2.2000000000000028},{"$f":"(Monthly!Y330/Monthly!Y318)-1","v":6.7957300958494171E-2},null,null,null,null,null,null,null,null,null,null,null,null,null,{"$f":"(Monthly!AM330/Monthly!AM318)-1","v":1.9739397389717528E-3},{"$f":"(Monthly!AN330/Monthly!AN318)-1","v":7.655856914807968E-3},"--","--",{"$f":"Monthly!AQ330-Monthly!AQ318","v":-5.2999999999999972},"--","--",{"$f":"Monthly!AT330-Monthly!AT318","v":-9.2999999999999972},"--","--",{"$f":"Monthly!AW330-Monthly!AW318","v":-6.1000000000000014},{"$f":"Monthly!AX330-Monthly!AX318","v":-2.2000000000000028},{"$f":"Monthly!AY330-Monthly!AY318","v":-14.700000000000003},{"$f":"Monthly!AZ330-Monthly!AZ318","v":-3.6999999999999957},{"$f":"Monthly!BA330-Monthly!BA318","v":-8.6000000000000014},"--","--",null,null,null,null,null,null,null,null,null,"--","--",null,null,null,null,null,{"$f":"(Monthly!BT330/Monthly!BT318)-1","v":0.17600562196544001},null,null,null,{"$f":"(Monthly!BX330/Monthly!BX318)-1","v":9.8991172761664581E-2},{"$f":"(Monthly!BY330/Monthly!BY318)-1","v":0.18169934640522878},"--",{"$f":"(Monthly!CA330/Monthly!CA318)-1","v":0.18756247322576036},{"$f":"Monthly!CB330-Monthly!CB318","v":-1.3432138742483826},{"$f":"Monthly!CC330-Monthly!CC318","v":-1.6232138742483855},"--","--",null,"--","--",null,{"$f":"(Monthly!CJ330/Monthly!CJ318)-1","v":0.28042328042328046},{"$f":"(Monthly!CK330/Monthly!CK318)-1","v":6.0759037230685875E-2},{"$f":"(Monthly!CL330/Monthly!CL318)-1","v":-0.2946509519492293},{"$f":"(Monthly!CM330/Monthly!CM318)-1","v":0.11478800413650458},{"$f":"(Monthly!CN330/Monthly!CN318)-1","v":2.0016042680993218E-2},{"$f":"(Monthly!CO330/Monthly!CO318)-1","v":0.15343144397493824},{"$f":"(Monthly!CP330/Monthly!CP318)-1","v":0.16024869383320905},{"$f":"(Monthly!CQ330/Monthly!CQ318)-1","v":9.0044768737131964E-3},{"$f":"(Monthly!CR330/Monthly!CR318)-1","v":0.2549125462368429},null,null,null,null,null,null,null,{"$f":"(Monthly!CZ330/Monthly!CZ318)-1","v":3.3524904214559337E-2},{"$f":"(Monthly!DA330/Monthly!DA318)-1","v":4.1745730550284632E-2},null,null,null,null,null,null,{"$f":"((Monthly!DH330-Monthly!DH318)*60)","v":-12.000000000000171},{"$f":"((Monthly!DI330-Monthly!DI318)*100)","v":19.999999999998863},"--",{"$f":"((Monthly!DK330-Monthly!DK318)*100)","v":-40.000000000000036},{"$f":"Monthly!DL330-Monthly!DL318","v":-278},null,null,null,{"$f":"Monthly!DP330-Monthly!DP318","v":2808},null,null,null,{"$f":"(Monthly!DT330/Monthly!DT318)-1","v":3.4593209481101894E-2},{"$f":"Monthly!DU330-Monthly!DU318","v":-0.20000000000000018},"--","--","--","--","--","--","--","--",null,null,null,null,null,null,null,null,null,null,null,null,null,{"$f":"(Monthly!EQ330/Monthly!EQ318)-1","v":-1.0597302504816941E-2},{"$f":"(Monthly!ER330/Monthly!ER318)-1","v":2.455146364494798E-2},{"$f":"(Monthly!ES330/Monthly!ES318)-1","v":2.1780303030303205E-2},null,null,null,null,null,{"$f":"((Monthly!EY330-Monthly!EY318)*100)","v":-350},{"$f":"((Monthly!EZ330-Monthly!EZ318)*100)","v":-374},{"$f":"((Monthly!FA330-Monthly!FA318)*100)","v":-181.99999999999986},{"$f":"((Monthly!FB330-Monthly!FB318)*100)","v":-213.00000000000009},"--",{"$f":"((Monthly!FD330-Monthly!FD318)*100)","v":-228.00000000000011},{"$f":"((Monthly!FE330-Monthly!FE318)*100)","v":-333.00000000000011},{"$f":"((Monthly!FF330-Monthly!FF318)*100)","v":-376.99999999999994},{"$f":"((Monthly!FG330-Monthly!FG318)*100)","v":-349},{"$f":"((Monthly!FH330-Monthly!FH318)*100)","v":-286.99999999999994},{"$f":"((Monthly!FI330-Monthly!FI318)*100)","v":-239.00000000000006},null,null,null,null,null,null,{"$f":"(Monthly!FP330/Monthly!FP318)-1","v":4.1426927502876687E-2},{"$f":"(Monthly!FQ330/Monthly!FQ318)-1","v":0.22662113162998576},"--","--",{"$f":"(Monthly!FT330/Monthly!FT318)-1","v":9.6035543403964585E-2},{"$f":"(Monthly!FU330/Monthly!FU318)-1","v":-1.7846091629341032E-3},{"$f":"(Monthly!FV330/Monthly!FV318)-1","v":-2.0371199479018332E-2},{"$f":"(Monthly!FW330/Monthly!FW318)-1","v":0.2085271317829458},{"$f":"(Monthly!FX330/Monthly!FX318)-1","v":3.5876347135564313E-2},null,null,null,null,null,{"$f":"(Monthly!GD330/Monthly!GD318)-1","v":-5.1111111111111107E-2},"--","--","--",{"$f":"(Monthly!GH330/Monthly!GH318)-1","v":{"$error":"#DIV/0!"}},"--","--","--","--"]
["1986-01-01",null,null,null,{"$f":"(Monthly!E335/Monthly!E323)-1","v":{"$error":"#DIV/0!"}},{"$f":"(Monthly!F335/Monthly!F323)-1","v":{"$error":"#DIV/0!"}},{"$f":"(Monthly!G335/Monthly!G323)-1","v":{"$error":"#DIV/0!"}},{"$f":"(Monthly!H335/Monthly!H323)-1","v":{"$error":"#DIV/0!"}},null,null,null,null,null,null,null,null,null,null,null,null,null,null,null,{"$f":"(Monthly!X335-Monthly!X323)","v":-0.30000000000001137},{"$f":"(Monthly!Y335/Monthly!Y323)-1","v":5.7958953423515203E-2},null,null,null,null,null,null,null,null,null,null,null,null,null,{"$f":"(Monthly!AM335/Monthly!AM323)-1","v":2.084778139804655E-2},{"$f":"(Monthly!AN335/Monthly!AN323)-1","v":2.484781533897773E-2},"--","--",{"$f":"Monthly!AQ335-Monthly!AQ323","v":0.90000000000000568},"--","--",{"$f":"Monthly!AT335-Monthly!AT323","v":0.70000000000000284},"--","--",{"$f":"Monthly!AW335-Monthly!AW323","v":-1},{"$f":"Monthly!AX335-Monthly!AX323","v":4.9000000000000057},{"$f":"Monthly!AY335-Monthly!AY323","v":0.79999999999999716},{"$f":"Monthly!AZ335-Monthly!AZ323","v":-2},{"$f":"Monthly!BA335-Monthly!BA323","v":-0.29999999999999716},"--","--",null,null,null,null,null,null,null,null,null,"--","--",null,null,null,null,null,{"$f":"(Monthly!BT335/Monthly!BT323)-1","v":0.13648594860799945},null,null,null,{"$f":"(Monthly!BX335/Monthly!BX323)-1","v":0.15254237288135597},{"$f":"(Monthly!BY335/Monthly!BY323)-1","v":0.11265060240963853},"--",{"$f":"(Monthly!CA335/Monthly!CA323)-1","v":3.3802816901408406E-2},{"$f":"Monthly!CB335-Monthly!CB323","v":-0.15244501235642716},{"$f":"Monthly!CC335-Monthly!CC323","v":-0.57244501235642886},"--","--",null,"--","--",null,{"$f":"(Monthly!CJ335/Monthly!CJ323)-1","v":0.13643410852713189},{"$f":"(Monthly!CK335/Monthly!CK323)-1","v":6.231930613556047E-2},{"$f":"(Monthly!CL335/Monthly!CL323)-1","v":-0.12631937351038458},{"$f":"(Monthly!CM335/Monthly!CM323)-1","v":0.28542510121457498},{"$f":"(Monthly!CN335/Monthly!CN323)-1","v":2.5287102473498191E-2},{"$f":"(Monthly!CO335/Monthly!CO323)-1","v":0.13468480977506236},{"$f":"(Monthly!CP335/Monthly!CP323)-1","v":0.15596720023726096},{"$f":"(Monthly!CQ335/Monthly!CQ323)-1","v":9.1380733404080594E-3},{"$f":"(Monthly!CR335/Monthly!CR323)-1","v":0.23576502939466248},null,null,null,null,null,null,null,{"$f":"(Monthly!CZ335/Monthly!CZ323)-1","v":3.9735099337748325E-2},{"$f":"(Monthly!DA335/Monthly!DA323)-1","v":4.481792717086841E-2},null,null,null,null,null,null,{"$f":"((Monthly!DH335-Monthly!DH323)*60)","v":6.0000000000000853},{"$f":"((Monthly!DI335-Monthly!DI323)*100)","v":20.000000000000284},"--",{"$f":"((Monthly!DK335-Monthly!DK323)*100)","v":-59.999999999999964},{"$f":"Monthly!DL335-Monthly!DL323","v":-323},null,null,null,{"$f":"Monthly!DP335-Monthly!DP323","v":2361},null,null,null,{"$f":"(Monthly!DT335/Monthly!DT323)-1","v":-1.078894133513153E-2},{"$f":"Monthly!DU335-Monthly!DU323","v":-9.9999999999999645E-2},"--","--","--","--","--","--","--","--",null,null,null,null,null,null,null,null,null,null,null,null,null,{"$f":"(Monthly!EQ335/Monthly!EQ323)-1","v":-1.9342359767892114E-3},{"$f":"(Monthly!ER335/Monthly!ER323)-1","v":2.2450888681010195E-2},{"$f":"(Monthly!ES335/Monthly!ES323)-1","v":2.1636876763875712E-2},null,null,null,null,null,{"$f":"((Monthly!EY335-Monthly!EY323)*100)","v":-110.99999999999994},{"$f":"((Monthly!EZ335-Monthly!EZ323)*100)","v":-20.999999999999908},{"$f":"((Monthly!FA335-Monthly!FA323)*100)","v":-202.99999999999994},{"$f":"((Monthly!FB335-Monthly!FB323)*100)","v":-182.00000000000003},"--",{"$f":"((Monthly!FD335-Monthly!FD323)*100)","v":-219.99999999999994},{"$f":"((Monthly!FE335-Monthly!FE323)*100)","v":-68.999999999999943},{"$f":"((Monthly!FF335-Monthly!FF323)*100)","v":-128.99999999999991},{"$f":"((Monthly!FG335-Monthly!FG323)*100)","v":-178.99999999999991},{"$f":"((Monthly!FH335-Monthly!FH323)*100)","v":-225},{"$f":"((Monthly!FI335-Monthly!FI323)*100)","v":-219.00000000000011},null,null,null,null,null,null,{"$f":"(Monthly!FP335/Monthly!FP323)-1","v":6.2688821752265866E-2},{"$f":"(Monthly!FQ335/Monthly!FQ323)-1","v":0.13973721590909083},"--","--",{"$f":"(Monthly!FT335/Monthly!FT323)-1","v":-2.3157397844515759E-2},{"$f":"(Monthly!FU335/Monthly!FU323)-1","v":-0.13511932346430944},{"$f":"(Monthly!FV335/Monthly!FV323)-1","v":6.7981425429113784E-2},{"$f":"(Monthly!FW335/Monthly!FW323)-1","v":0.56772432616854296},{"$f":"(Monthly!FX335/Monthly!FX323)-1","v":0.15176858743190369},null,null,null,null,null,{"$f":"(Monthly!GD335/Monthly!GD323)-1","v":-0.1051441051441051},"--","--","--",{"$f":"(Monthly!GH335/Monthly!GH323)-1","v":{"$error":"#DIV/0!"}},"--","--","--","--"]
["1986-03-01",null,null,null,{"$f":"(Monthly!E337/Monthly!E325)-1","v":{"$error":"#DIV/0!"}},{"$f":"(Monthly!F337/Monthly!F325)-1","v":{"$error":"#DIV/0!"}},{"$f":"(Monthly!G337/Monthly!G325)-1","v":{"$error":"#DIV/0!"}},{"$f":"(Monthly!H337/Monthly!H325)-1","v":{"$error":"#DIV/0!"}},null,null,null,null,null,null,null,null,null,null,null,null,null,null,null,{"$f":"(Monthly!X337-Monthly!X325)","v":-1.6000000000000085},{"$f":"(Monthly!Y337/Monthly!Y325)-1","v":5.2053318208781674E-2},null,null,null,null,null,null,null,null,null,null,null,null,null,{"$f":"(Monthly!AM337/Monthly!AM325)-1","v":2.0100768558797277E-3},{"$f":"(Monthly!AN337/Monthly!AN325)-1","v":1.2613513929505826E-2},"--","--",{"$f":"Monthly!AQ337-Monthly!AQ325","v":3.2000000000000028},"--","--",{"$f":"Monthly!AT337-Monthly!AT325","v":-0.80000000000000426},"--","--",{"$f":"Monthly!AW337-Monthly!AW325","v":-0.29999999999999716},{"$f":"Monthly!AX337-Monthly!AX325","v":5.3999999999999986},{"$f":"Monthly!AY337-Monthly!AY325","v":2.7999999999999972},{"$f":"Monthly!AZ337-Monthly!AZ325","v":4.7999999999999972},{"$f":"Monthly!BA337-Monthly!BA325","v":3.7999999999999972},"--","--",null,null,null,null,null,null,null,null,null,"--","--",null,null,null,null,null,{"$f":"(Monthly!BT337/Monthly!BT325)-1","v":0.11625039240972312},null,null,null,{"$f":"(Monthly!BX337/Monthly!BX325)-1","v":4.2222222222222161E-2},{"$f":"(Monthly!BY337/Monthly!BY325)-1","v":3.0689056166763207E-2},"--",{"$f":"(Monthly!CA337/Monthly!CA325)-1","v":-7.6350588078942017E-2},{"$f":"Monthly!CB337-Monthly!CB325","v":-1.6365294111224014},{"$f":"Monthly!CC337-Monthly!CC325","v":-1.6365294111223996},"--","--",null,"--","--",null,{"$f":"(Monthly!CJ337/Monthly!CJ325)-1","v":0.31147540983606548},{"$f":"(Monthly!CK337/Monthly!CK325)-1","v":6.0695972806360521E-2},{"$f":"(Monthly!CL337/Monthly!CL325)-1","v":0.23647540983606552},{"$f":"(Monthly!CM337/Monthly!CM325)-1","v":4.7027506654835793E-2},{"$f":"(Monthly!CN337/Monthly!CN325)-1","v":5.5742171462695334E-2},{"$f":"(Monthly!CO337/Monthly!CO325)-1","v":0.10706609349811935},{"$f":"(Monthly!CP337/Monthly!CP325)-1","v":0.13219833534284375},{"$f":"(Monthly!CQ337/Monthly!CQ325)-1","v":9.237292413305731E-3},{"$f":"(Monthly!CR337/Monthly!CR325)-1","v":0.20590567519898029},null,null,null,null,null,null,null,{"$f":"(Monthly!CZ337/Monthly!CZ325)-1","v":2.1535580524344455E-2},{"$f":"(Monthly!DA337/Monthly!DA325)-1","v":4.0703052728954692E-2},null,null,null,null,null,null,{"$f":"((Monthly!DH337-Monthly!DH325)*60)","v":-6.0000000000000853},{"$f":"((Monthly!DI337-Monthly!DI325)*100)","v":19.999999999998863},"--",{"$f":"((Monthly!DK337-Monthly!DK325)*100)","v":0},{"$f":"Monthly!DL337-Monthly!DL325","v":-315},null,null,null,{"$f":"Monthly!DP337-Monthly!DP325","v":2092},null,null,null,{"$f":"(Monthly!DT337/Monthly!DT325)-1","v":1.0504201680672232E-3},{"$f":"Monthly!DU337-Monthly!DU325","v":-0.29999999999999982},"--","--","--","--","--","--","--","--",null,null,null,null,null,null,null,null,null,null,null,null,null,{"$f":"(Monthly!EQ337/Monthly!EQ325)-1","v":-2.7158098933074637E-2},{"$f":"(Monthly!ER337/Monthly!ER325)-1","v":1.8587360594795488E-2},{"$f":"(Monthly!ES337/Monthly!ES325)-1","v":1.6806722689075793E-2},null,null,null,null,null,{"$f":"((Monthly!EY337-Monthly!EY325)*100)","v":-140.00000000000003},{"$f":"((Monthly!EZ337-Monthly!EZ325)*100)","v":-109.99999999999997},{"$f":"((Monthly!FA337-Monthly!FA325)*100)","v":-356.00000000000006},{"$f":"((Monthly!FB337-Monthly!FB325)*100)","v":-318.99999999999994},"--",{"$f":"((Monthly!FD337-Monthly!FD325)*100)","v":-309},{"$f":"((Monthly!FE337-Monthly!FE325)*100)","v":-196},{"$f":"((Monthly!FF337-Monthly!FF325)*100)","v":-282.99999999999994},{"$f":"((Monthly!FG337-Monthly!FG325)*100)","v":-350.00000000000011},{"$f":"((Monthly!FH337-Monthly!FH325)*100)","v":-405.99999999999994},{"$f":"((Monthly!FI337-Monthly!FI325)*100)","v":-407.99999999999994},null,null,null,null,null,null,{"$f":"(Monthly!FP337/Monthly!FP325)-1","v":1.221098265895959E-2},{"$f":"(Monthly!FQ337/Monthly!FQ325)-1","v":0.12858795079381768},"--","--",{"$f":"(Monthly!FT337/Monthly!FT325)-1","v":-9.104420054681972E-2},{"$f":"(Monthly!FU337/Monthly!FU325)-1","v":-0.21280155990824556},{"$f":"(Monthly!FV337/Monthly!FV325)-1","v":-2.5085180978717148E-2},{"$f":"(Monthly!FW337/Monthly!FW325)-1","v":0.37133105802047783},{"$f":"(Monthly!FX337/Monthly!FX325)-1","v":-0.1239547756448004},null,null,null,null,null,{"$f":"(Monthly!GD337/Monthly!GD325)-1","v":-0.55315532261491607},"--","--","--",{"$f":"(Monthly!GH337/Monthly!GH325)-1","v":{"$error":"#DIV/0!"}},"--","--","--","--"]
["1986-11-01",null,null,null,{"$f":"(Monthly!E345/Monthly!E333)-1","v":{"$error":"#DIV/0!"}},{"$f":"(Monthly!F345/Monthly!F333)-1","v":{"$error":"#DIV/0!"}},{"$f":"(Monthly!G345/Monthly!G333)-1","v":{"$error":"#DIV/0!"}},{"$f":"(Monthly!H345/Monthly!H333)-1","v":{"$error":"#DIV/0!"}},null,null,null,null,null,null,null,null,null,null,null,null,null,null,null,{"$f":"(Monthly!X345-Monthly!X333)","v":0.20000000000000284},{"$f":"(Monthly!Y345/Monthly!Y333)-1","v":5.385271278526349E-2},null,null,null,null,null,null,null,null,null,null,null,null,null,{"$f":"(Monthly!AM345/Monthly!AM333)-1","v":1.630733847868715E-2},{"$f":"(Monthly!AN345/Monthly!AN333)-1","v":2.6310300418507682E-2},"--","--",{"$f":"Monthly!AQ345-Monthly!AQ333","v":-0.79999999999999716},"--","--",{"$f":"Monthly!AT345-Monthly!AT333","v":-2.2999999999999972},"--","--",{"$f":"Monthly!AW345-Monthly!AW333","v":-3},{"$f":"Monthly!AX345-Monthly!AX333","v":-0.20000000000000284},{"$f":"Monthly!AY345-Monthly!AY333","v":11.399999999999999},{"$f":"Monthly!AZ345-Monthly!AZ333","v":-1.7999999999999972},{"$f":"Monthly!BA345-Monthly!BA333","v":3.5},"--","--",null,null,null,null,null,null,null,null,null,"--","--",null,null,null,null,null,{"$f":"(Monthly!BT345/Monthly!BT333)-1","v":8.1411082596645645E-2},null,null,null,{"$f":"(Monthly!BX345/Monthly!BX333)-1","v":-4.4169611307420475E-2},{"$f":"(Monthly!BY345/Monthly!BY333)-1","v":-2.8368794326241176E-2},"--",{"$f":"(Monthly!CA345/Monthly!CA333)-1","v":1.479104165213152E-2},{"$f":"Monthly!CB345-Monthly!CB333","v":-2.3293665107120827},{"$f":"Monthly!CC345-Monthly!CC333","v":-2.399366510712083},"--","--",null,"--","--",null,{"$f":"(Monthly!CJ345/Monthly!CJ333)-1","v":-3.5470668485675261E-2},{"$f":"(Monthly!CK345/Monthly!CK333)-1","v":5.5077787982522164E-2},{"$f":"(Monthly!CL345/Monthly!CL333)-1","v":2.0232296740352318E-2},{"$f":"(Monthly!CM345/Monthly!CM333)-1","v":7.0192307692307665E-2},{"$f":"(Monthly!CN345/Monthly!CN333)-1","v":3.5982794766139081E-2},{"$f":"(Monthly!CO345/Monthly!CO333)-1","v":0.14595126753630328},{"$f":"(Monthly!CP345/Monthly!CP333)-1","v":9.9733749519326009E-2},{"$f":"(Monthly!CQ345/Monthly!CQ333)-1","v":9.0260627562086526E-3},{"$f":"(Monthly!CR345/Monthly!CR333)-1","v":0.14212331002787515},null,null,null,null,null,null,null,{"$f":"(Monthly!CZ345/Monthly!CZ333)-1","v":1.2844036697247763E-2},{"$f":"(Monthly!DA345/Monthly!DA333)-1","v":3.7803780378037777E-2},null,null,null,null,null,null,{"$f":"((Monthly!DH345-Monthly!DH333)*60)","v":-5.9999999999996589},{"$f":"((Monthly!DI345-Monthly!DI333)*100)","v":50},"--",{"$f":"((Monthly!DK345-Monthly!DK333)*100)","v":-9.9999999999999645},{"$f":"Monthly!DL345-Monthly!DL333","v":-225},null,null,null,{"$f":"Monthly!DP345-Monthly!DP333","v":1864},null,null,null,{"$f":"(Monthly!DT345/Monthly!DT333)-1","v":-7.4569789674952203E-2},{"$f":"Monthly!DU345-Monthly!DU333","v":9.9999999999999645E-2},"--","--","--","--","--","--","--","--",null,null,null,null,null,null,null,null,null,null,null,null,null,{"$f":"(Monthly!EQ345/Monthly!EQ333)-1","v":-3.481624758220514E-2},{"$f":"(Monthly!ER345/Monthly!ER333)-1","v":2.6581118240146751E-2},{"$f":"(Monthly!ES345/Monthly!ES333)-1","v":2.1198156682027625E-2},null,null,null,null,null,{"$f":"((Monthly!EY345-Monthly!EY333)*100)","v":-200},{"$f":"((Monthly!EZ345-Monthly!EZ333)*100)","v":-201.00000000000006},{"$f":"((Monthly!FA345-Monthly!FA333)*100)","v":-187.00000000000011},{"$f":"((Monthly!FB345-Monthly!FB333)*100)","v":-192},"--",{"$f":"((Monthly!FD345-Monthly!FD333)*100)","v":-208},{"$f":"((Monthly!FE345-Monthly!FE333)*100)","v":-189.00000000000006},{"$f":"((Monthly!FF345-Monthly!FF333)*100)","v":-208},{"$f":"((Monthly!FG345-Monthly!FG333)*100)","v":-229.99999999999997},{"$f":"((Monthly!FH345-Monthly!FH333)*100)","v":-251.99999999999994},{"$f":"((Monthly!FI345-Monthly!FI333)*100)","v":-252.99999999999994},null,null,null,null,null,null,{"$f":"(Monthly!FP345/Monthly!FP333)-1","v":7.1195059934616722E-3},{"$f":"(Monthly!FQ345/Monthly!FQ333)-1","v":0.16293710652621063},"--","--",{"$f":"(Monthly!FT345/Monthly!FT333)-1","v":-3.9228674241490569E-2},{"$f":"(Monthly!FU345/Monthly!FU333)-1","v":-0.12418560948344315},{"$f":"(Monthly!FV345/Monthly!FV333)-1","v":0.17308097478755524},{"$f":"(Monthly!FW345/Monthly!FW333)-1","v":0.4839694656488549},{"$f":"(Monthly!FX345/Monthly!FX333)-1","v":-7.4069576832007766E-2},null,null,null,null,null,{"$f":"(Monthly!GD345/Monthly!GD333)-1","v":-0.50647453996689706},"--","--","--",{"$f":"(Monthly!GH345/Monthly!GH333)-1","v":{"$error":"#DIV/0!"}},"--","--","--","--"]
["1987-02-01",null,null,null,{"$f":"(Monthly!E348/Monthly!E336)-1","v":{"$error":"#DIV/0!"}},{"$f":"(Monthly!F348/Monthly!F336)-1","v":{"$error":"#DIV/0!"}},{"$f":"(Monthly!G348/Monthly!G336)-1","v":{"$error":"#DIV/0!"}},{"$f":"(Monthly!H348/Monthly!H336)-1","v":{"$error":"#DIV/0!"}},null,null,null,null,null,null,null,null,null,null,null,null,null,null,null,{"$f":"(Monthly!X348-Monthly!X336)","v":0.89999999999999147},{"$f":"(Monthly!Y348/Monthly!Y336)-1","v":9.2322533076066859E-2},null,null,null,null,null,null,null,null,null,null,null,null,null,{"$f":"(Monthly!AM348/Monthly!AM336)-1","v":2.6102531541506435E-2},{"$f":"(Monthly!AN348/Monthly!AN336)-1","v":3.6361949026225471E-2},"--","--",{"$f":"Monthly!AQ348-Monthly!AQ336","v":1.6000000000000014},"--","--",{"$f":"Monthly!AT348-Monthly!AT336","v":3.6000000000000014},"--","--",{"$f":"Monthly!AW348-Monthly!AW336","v":2},{"$f":"Monthly!AX348-Monthly!AX336","v":-1.7000000000000028},{"$f":"Monthly!AY348-Monthly!AY336","v":12.799999999999997},{"$f":"Monthly!AZ348-Monthly!AZ336","v":3.6999999999999957},{"$f":"Monthly!BA348-Monthly!BA336","v":1.4000000000000057},"--","--",null,null,null,null,null,null,null,null,null,"--","--",null,null,null,null,null,{"$f":"(Monthly!BT348/Monthly!BT336)-1","v":6.874799449861535E-2},null,null,null,{"$f":"(Monthly!BX348/Monthly!BX336)-1","v":-3.4632034632034681E-2},{"$f":"(Monthly!BY348/Monthly!BY336)-1","v":-4.4142614601018648E-2},"--",{"$f":"(Monthly!CA348/Monthly!CA336)-1","v":-1.9568954118735937E-2},{"$f":"Monthly!CB348-Monthly!CB336","v":-1.8841830666205936},{"$f":"Monthly!CC348-Monthly!CC336","v":-2.3041830666205918},"--","--",null,"--","--",null,{"$f":"(Monthly!CJ348/Monthly!CJ336)-1","v":5.494505494505475E-3},{"$f":"(Monthly!CK348/Monthly!CK336)-1","v":5.4108764635080409E-2},{"$f":"(Monthly!CL348/Monthly!CL336)-1","v":-3.7897747586699948E-2},{"$f":"(Monthly!CM348/Monthly!CM336)-1","v":0.12160979877515321},{"$f":"(Monthly!CN348/Monthly!CN336)-1","v":3.3929177306737612E-2},{"$f":"(Monthly!CO348/Monthly!CO336)-1","v":0.17018421373673287},{"$f":"(Monthly!CP348/Monthly!CP336)-1","v":6.8536903964001805E-2},{"$f":"(Monthly!CQ348/Monthly!CQ336)-1","v":8.932890720136033E-3},{"$f":"(Monthly!CR348/Monthly!CR336)-1","v":0.10579700242861678},null,null,null,null,null,null,null,{"$f":"(Monthly!CZ348/Monthly!CZ336)-1","v":1.9143117593436676E-2},{"$f":"(Monthly!DA348/Monthly!DA336)-1","v":3.5650623885917998E-2},null,null,null,null,null,null,{"$f":"((Monthly!DH348-Monthly!DH336)*60)","v":6.0000000000000853},{"$f":"((Monthly!DI348-Monthly!DI336)*100)","v":50},"--",{"$f":"((Monthly!DK348-Monthly!DK336)*100)","v":-60.000000000000057},{"$f":"Monthly!DL348-Monthly!DL336","v":-164},null,null,null,{"$f":"Monthly!DP348-Monthly!DP336","v":2074},null,null,null,{"$f":"(Monthly!DT348/Monthly!DT336)-1","v":-4.1271989174560209E-2},{"$f":"Monthly!DU348-Monthly!DU336","v":-0.30000000000000071},"--","--","--","--","--","--","--","--",null,null,null,null,null,null,null,null,null,null,null,null,null,{"$f":"(Monthly!EQ348/Monthly!EQ336)-1","v":-6.8829891838741997E-3},{"$f":"(Monthly!ER348/Monthly!ER336)-1","v":2.5570776255707806E-2},{"$f":"(Monthly!ES348/Monthly!ES336)-1","v":2.2079116835326484E-2},null,null,null,null,null,{"$f":"((Monthly!EY348-Monthly!EY336)*100)","v":-200},{"$f":"((Monthly!EZ348-Monthly!EZ336)*100)","v":-176.00000000000006},{"$f":"((Monthly!FA348-Monthly!FA336)*100)","v":-128.99999999999991},{"$f":"((Monthly!FB348-Monthly!FB336)*100)","v":-145.99999999999991},"--",{"$f":"((Monthly!FD348-Monthly!FD336)*100)","v":-163.00000000000009},{"$f":"((Monthly!FE348-Monthly!FE336)*100)","v":-146.99999999999997},{"$f":"((Monthly!FF348-Monthly!FF336)*100)","v":-165.00000000000003},{"$f":"((Monthly!FG348-Monthly!FG336)*100)","v":-156.99999999999994},{"$f":"((Monthly!FH348-Monthly!FH336)*100)","v":-154.99999999999997},{"$f":"((Monthly!FI348-Monthly!FI336)*100)","v":-144.99999999999994},null,null,null,null,null,null,{"$f":"(Monthly!FP348/Monthly!FP336)-1","v":-5.0060528377127378E-2},{"$f":"(Monthly!FQ348/Monthly!FQ336)-1","v":0.16054988803184878},"--","--",{"$f":"(Monthly!FT348/Monthly!FT336)-1","v":-4.7905849339438533E-2},{"$f":"(Monthly!FU348/Monthly!FU336)-1","v":-0.13325014129395885},{"$f":"(Monthly!FV348/Monthly!FV336)-1","v":4.7672055835321192E-2},{"$f":"(Monthly!FW348/Monthly!FW336)-1","v":0.50106213489113105},{"$f":"(Monthly!FX348/Monthly!FX336)-1","v":0.23935160065111227},null,null,null,null,null,{"$f":"(Monthly!GD348/Monthly!GD336)-1","v":0.14790830203341532},"--","--","--",{"$f":"(Monthly!GH348/Monthly!GH336)-1","v":{"$error":"#DIV/0!"}},"--","--","--","--"]
["1987-04-01",null,null,null,{"$f":"(Monthly!E350/Monthly!E338)-1","v":{"$error":"#DIV/0!"}},{"$f":"(Monthly!F350/Monthly!F338)-1","v":{"$error":"#DIV/0!"}},{"$f":"(Monthly!G350/Monthly!G338)-1","v":{"$error":"#DIV/0!"}},{"$f":"(Monthly!H350/Monthly!H338)-1","v":{"$error":"#DIV/0!"}},null,null,null,null,null,null,null,null,null,null,null,null,null,null,null,{"$f":"(Monthly!X350-Monthly!X338)","v":1.9000000000000057},{"$f":"(Monthly!Y350/Monthly!Y338)-1","v":8.2264525231063645E-2},null,null,null,null,null,null,null,null,null,null,null,null,null,{"$f":"(Monthly!AM350/Monthly!AM338)-1","v":4.0807563161266103E-2},{"$f":"(Monthly!AN350/Monthly!AN338)-1","v":4.4599033523240239E-2},"--","--",{"$f":"Monthly!AQ350-Monthly!AQ338","v":5.7999999999999972},"--","--",{"$f":"Monthly!AT350-Monthly!AT338","v":9.0999999999999943},"--","--",{"$f":"Monthly!AW350-Monthly!AW338","v":3.3999999999999986},{"$f":"Monthly!AX350-Monthly!AX338","v":5.3999999999999986},{"$f":"Monthly!AY350-Monthly!AY338","v":22.799999999999997},{"$f":"Monthly!AZ350-Monthly!AZ338","v":6.7999999999999972},{"$f":"Monthly!BA350-Monthly!BA338","v":2.0999999999999943},"--","--",null,null,null,null,null,null,null,null,null,"--","--",null,null,null,null,null,{"$f":"(Monthly!BT350/Monthly!BT338)-1","v":6.4161873557161853E-2},null,null,null,{"$f":"(Monthly!BX350/Monthly!BX338)-1","v":-0.16502845318158299},{"$f":"(Monthly!BY350/Monthly!BY338)-1","v":-0.13832077502691065},"--",{"$f":"(Monthly!CA350/Monthly!CA338)-1","v":-2.6445856601835849E-2},{"$f":"Monthly!CB350-Monthly!CB338","v":1.2910677591587945},{"$f":"Monthly!CC350-Monthly!CC338","v":0.73106775915879396},"--","--",null,"--","--",null,{"$f":"(Monthly!CJ350/Monthly!CJ338)-1","v":-0.14235705950991828},{"$f":"(Monthly!CK350/Monthly!CK338)-1","v":5.367070756379988E-2},{"$f":"(Monthly!CL350/Monthly!CL338)-1","v":-0.57075152335815837},{"$f":"(Monthly!CM350/Monthly!CM338)-1","v":-1.3366750208855471E-2},{"$f":"(Monthly!CN350/Monthly!CN338)-1","v":-1.8063380281690189E-2},{"$f":"(Monthly!CO350/Monthly!CO338)-1","v":0.16177703269069577},{"$f":"(Monthly!CP350/Monthly!CP338)-1","v":5.9296769813398598E-2},{"$f":"(Monthly!CQ350/Monthly!CQ338)-1","v":8.9881463093621772E-3},{"$f":"(Monthly!CR350/Monthly!CR338)-1","v":0.10187412337436097},null,null,null,null,null,null,null,{"$f":"(Monthly!CZ350/Monthly!CZ338)-1","v":3.6798528058877622E-2},{"$f":"(Monthly!DA350/Monthly!DA338)-1","v":3.8972542072630567E-2},null,null,null,null,null,null,{"$f":"((Monthly!DH350-Monthly!DH338)*60)","v":0},{"$f":"((Monthly!DI350-Monthly!DI338)*100)","v":30.000000000001137},"--",{"$f":"((Monthly!DK350-Monthly!DK338)*100)","v":-79.999999999999986},{"$f":"Monthly!DL350-Monthly!DL338","v":-91},null,null,null,{"$f":"Monthly!DP350-Monthly!DP338","v":2380},null,null,null,{"$f":"(Monthly!DT350/Monthly!DT338)-1","v":-0.12832145171743359},{"$f":"Monthly!DU350-Monthly!DU338","v":0.39999999999999947},"--","--","--","--","--","--","--","--",null,null,null,null,null,null,null,null,null,null,null,null,null,{"$f":"(Monthly!EQ350/Monthly!EQ338)-1","v":2.3092369477911712E-2},{"$f":"(Monthly!ER350/Monthly!ER338)-1","v":2.5431425976385258E-2},{"$f":"(Monthly!ES350/Monthly!ES338)-1","v":2.19780219780219E-2},null,null,null,null,null,{"$f":"((Monthly!EY350-Monthly!EY338)*100)","v":-108},{"$f":"((Monthly!EZ350-Monthly!EZ338)*100)","v":-62.000000000000014},{"$f":"((Monthly!FA350-Monthly!FA338)*100)","v":6.0000000000000497},{"$f":"((Monthly!FB350-Monthly!FB338)*100)","v":-15.000000000000036},"--",{"$f":"((Monthly!FD350-Monthly!FD338)*100)","v":-10.999999999999943},{"$f":"((Monthly!FE350-Monthly!FE338)*100)","v":-41.999999999999993},{"$f":"((Monthly!FF350-Monthly!FF338)*100)","v":5.9999999999999609},{"$f":"((Monthly!FG350-Monthly!FG338)*100)","v":31.99999999999994},{"$f":"((Monthly!FH350-Monthly!FH338)*100)","v":52.000000000000043},{"$f":"((Monthly!FI350-Monthly!FI338)*100)","v":71.999999999999972},null,null,null,null,null,null,{"$f":"(Monthly!FP350/Monthly!FP338)-1","v":-4.9499243461344489E-2},{"$f":"(Monthly!FQ350/Monthly!FQ338)-1","v":0.16087484055626411},"--","--",{"$f":"(Monthly!FT350/Monthly!FT338)-1","v":-4.7963554140980524E-2},{"$f":"(Monthly!FU350/Monthly!FU338)-1","v":-0.13678390347789671},{"$f":"(Monthly!FV350/Monthly!FV338)-1","v":-1.15098520898127E-3},{"$f":"(Monthly!FW350/Monthly!FW338)-1","v":0.76783691959229916},{"$f":"(Monthly!FX350/Monthly!FX338)-1","v":0.16319267920691405},null,null,null,null,null,{"$f":"(Monthly!GD350/Monthly!GD338)-1","v":0.45115591188604354},"--","--","--",{"$f":"(Monthly!GH350/Monthly!GH338)-1","v":{"$error":"#DIV/0!"}},"--","--","--","--"]
["1987-09-01",null,null,null,{"$f":"(Monthly!E355/Monthly!E343)-1","v":{"$error":"#DIV/0!"}},{"$f":"(Monthly!F355/Monthly!F343)-1","v":{"$error":"#DIV/0!"}},{"$f":"(Monthly!G355/Monthly!G343)-1","v":{"$error":"#DIV/0!"}},{"$f":"(Monthly!H355/Monthly!H343)-1","v":{"$error":"#DIV/0!"}},null,null,null,null,null,null,null,null,null,null,null,null,null,null,null,{"$f":"(Monthly!X355-Monthly!X343)","v":3.4000000000000057},{"$f":"(Monthly!Y355/Monthly!Y343)-1","v":8.4288208227048189E-2},null,null,null,null,null,null,null,null,null,null,null,null,null,{"$f":"(Monthly!AM355/Monthly!AM343)-1","v":6.6252272512321575E-2},{"$f":"(Monthly!AN355/Monthly!AN343)-1","v":6.7826636426209896E-2},"--","--",{"$f":"Monthly!AQ355-Monthly!AQ343","v":7.6000000000000014},"--","--",{"$f":"Monthly!AT355-Monthly!AT343","v":10.600000000000001},"--","--",{"$f":"Monthly!AW355-Monthly!AW343","v":1},{"$f":"Monthly!AX355-Monthly!AX343","v":4.8000000000000043},{"$f":"Monthly!AY355-Monthly!AY343","v":20.199999999999996},{"$f":"Monthly!AZ355-Monthly!AZ343","v":9},{"$f":"Monthly!BA355-Monthly!BA343","v":11.899999999999999},"--","--",null,null,null,null,null,null,null,null,null,"--","--",null,null,null,null,null,{"$f":"(Monthly!BT355/Monthly!BT343)-1","v":4.0208746165748321E-2},null,null,null,{"$f":"(Monthly!BX355/Monthly!BX343)-1","v":4.7421458209839784E-3},{"$f":"(Monthly!BY355/Monthly!BY343)-1","v":-0.10201660735468565},"--",{"$f":"(Monthly!CA355/Monthly!CA343)-1","v":-0.2545120399604166},{"$f":"Monthly!CB355-Monthly!CB343","v":1.415095450340587},{"$f":"Monthly!CC355-Monthly!CC343","v":0.64509545034058924},"--","--",null,"--","--",null,{"$f":"(Monthly!CJ355/Monthly!CJ343)-1","v":-0.12712975098296198},{"$f":"(Monthly!CK355/Monthly!CK343)-1","v":6.3475629181267923E-2},{"$f":"(Monthly!CL355/Monthly!CL343)-1","v":0.12179487179487181},{"$f":"(Monthly!CM355/Monthly!CM343)-1","v":8.3553210202286676E-2},{"$f":"(Monthly!CN355/Monthly!CN343)-1","v":1.8651963777851277E-2},{"$f":"(Monthly!CO355/Monthly!CO343)-1","v":6.2506914481690545E-2},{"$f":"(Monthly!CP355/Monthly!CP343)-1","v":4.6728971962616717E-2},{"$f":"(Monthly!CQ355/Monthly!CQ343)-1","v":8.9393863971991561E-3},{"$f":"(Monthly!CR355/Monthly!CR343)-1","v":0.13999172297617313},null,null,null,null,null,null,null,{"$f":"(Monthly!CZ355/Monthly!CZ343)-1","v":4.2727272727272725E-2},{"$f":"(Monthly!DA355/Monthly!DA343)-1","v":4.0139616055846483E-2},null,null,null,null,null,null,{"$f":"((Monthly!DH355-Monthly!DH343)*60)","v":6.0000000000000853},{"$f":"((Monthly!DI355-Monthly!DI343)*100)","v":9.9999999999994316},"--",{"$f":"((Monthly!DK355-Monthly!DK343)*100)","v":-109.99999999999997},{"$f":"Monthly!DL355-Monthly!DL343","v":193},null,null,null,{"$f":"Monthly!DP355-Monthly!DP343","v":2712},null,null,null,{"$f":"(Monthly!DT355/Monthly!DT343)-1","v":-0.2168141592920354},{"$f":"Monthly!DU355-Monthly!DU343","v":-1.4000000000000004},"--","--","--","--","--","--","--","--",null,null,null,null,null,null,null,null,null,null,null,null,null,{"$f":"(Monthly!EQ355/Monthly!EQ343)-1","v":4.3259557344064392E-2},{"$f":"(Monthly!ER355/Monthly!ER343)-1","v":2.8906955736224038E-2},{"$f":"(Monthly!ES355/Monthly!ES343)-1","v":2.0966271649954349E-2},null,null,null,null,null,{"$f":"((Monthly!EY355-Monthly!EY343)*100)","v":119.99999999999993},{"$f":"((Monthly!EZ355-Monthly!EZ343)*100)","v":133},{"$f":"((Monthly!FA355-Monthly!FA343)*100)","v":128.99999999999991},{"$f":"((Monthly!FB355-Monthly!FB343)*100)","v":111.00000000000011},"--",{"$f":"((Monthly!FD355-Monthly!FD343)*100)","v":88.000000000000085},{"$f":"((Monthly!FE355-Monthly!FE343)*100)","v":119.00000000000004},{"$f":"((Monthly!FF355-Monthly!FF343)*100)","v":190.00000000000003},{"$f":"((Monthly!FG355-Monthly!FG343)*100)","v":199.00000000000003},{"$f":"((Monthly!FH355-Monthly!FH343)*100)","v":201.99999999999994},{"$f":"((Monthly!FI355-Monthly!FI343)*100)","v":196.99999999999997},null,null,null,null,null,null,{"$f":"(Monthly!FP355/Monthly!FP343)-1","v":-5.1827290420240812E-2},{"$f":"(Monthly!FQ355/Monthly!FQ343)-1","v":4.4145356662179669E-3},"--","--",{"$f":"(Monthly!FT355/Monthly!FT343)-1","v":-4.1752322932566699E-3},{"$f":"(Monthly!FU355/Monthly!FU343)-1","v":-8.1616296892072282E-2},{"$f":"(Monthly!FV355/Monthly!FV343)-1","v":9.3886854763443051E-2},{"$f":"(Monthly!FW355/Monthly!FW343)-1","v":0.3294629898403485},{"$f":"(Monthly!FX355/Monthly!FX343)-1","v":0.24838919858104691},null,null,null,null,null,{"$f":"(Monthly!GD355/Monthly!GD343)-1","v":0.30932743244149385},"--","--","--",{"$f":"(Monthly!GH355/Monthly!GH343)-1","v":{"$error":"#DIV/0!"}},"--","--","--","--"]
["1988-01-01",null,null,null,{"$f":"(Monthly!E359/Monthly!E347)-1","v":{"$error":"#DIV/0!"}},{"$f":"(Monthly!F359/Monthly!F347)-1","v":{"$error":"#DIV/0!"}},{"$f":"(Monthly!G359/Monthly!G347)-1","v":{"$error":"#DIV/0!"}},{"$f":"(Monthly!H359/Monthly!H347)-1","v":{"$error":"#DIV/0!"}},null,null,null,null,null,null,null,null,null,null,null,null,null,null,null,{"$f":"(Monthly!X359-Monthly!X347)","v":4.4000000000000057},{"$f":"(Monthly!Y359/Monthly!Y347)-1","v":3.3329591472639919E-2},null,null,null,null,null,null,null,null,null,null,null,null,null,{"$f":"(Monthly!AM359/Monthly!AM347)-1","v":7.7755696484470116E-2},{"$f":"(Monthly!AN359/Monthly!AN347)-1","v":8.1314606220738828E-2},"--","--",{"$f":"Monthly!AQ359-Monthly!AQ347","v":2.6000000000000014},"--","--",{"$f":"Monthly!AT359-Monthly!AT347","v":3.9000000000000057},"--","--",{"$f":"Monthly!AW359-Monthly!AW347","v":4.4000000000000057},{"$f":"Monthly!AX359-Monthly!AX347","v":0.5},{"$f":"Monthly!AY359-Monthly!AY347","v":17.600000000000001},{"$f":"Monthly!AZ359-Monthly!AZ347","v":-1.4000000000000057},{"$f":"Monthly!BA359-Monthly!BA347","v":10.5},"--","--",null,null,null,null,null,null,null,null,null,"--","--",null,null,null,null,null,{"$f":"(Monthly!BT359/Monthly!BT347)-1","v":4.858802193531675E-2},null,null,null,{"$f":"(Monthly!BX359/Monthly!BX347)-1","v":-0.28354002254791433},{"$f":"(Monthly!BY359/Monthly!BY347)-1","v":-0.26390532544378698},"--",{"$f":"(Monthly!CA359/Monthly!CA347)-1","v":0.29740847387906211},{"$f":"Monthly!CB359-Monthly!CB347","v":1.8643867527685325},{"$f":"Monthly!CC359-Monthly!CC347","v":1.2343867527685344},"--","--",null,"--","--",null,{"$f":"(Monthly!CJ359/Monthly!CJ347)-1","v":-0.17489421720733422},{"$f":"(Monthly!CK359/Monthly!CK347)-1","v":7.9518135256611222E-2},{"$f":"(Monthly!CL359/Monthly!CL347)-1","v":-0.11583769633507868},{"$f":"(Monthly!CM359/Monthly!CM347)-1","v":-0.24509803921568629},{"$f":"(Monthly!CN359/Monthly!CN347)-1","v":3.5525767467703862E-2},{"$f":"(Monthly!CO359/Monthly!CO347)-1","v":-1.6384833525890152E-2},{"$f":"(Monthly!CP359/Monthly!CP347)-1","v":5.9705250911762597E-2},{"$f":"(Monthly!CQ359/Monthly!CQ347)-1","v":9.0866227707375735E-3},{"$f":"(Monthly!CR359/Monthly!CR347)-1","v":0.16706364420418707},null,null,null,null,null,null,null,{"$f":"(Monthly!CZ359/Monthly!CZ347)-1","v":4.1292639138240439E-2},{"$f":"(Monthly!DA359/Monthly!DA347)-1","v":4.3140638481449445E-2},null,null,null,null,null,null,{"$f":"((Monthly!DH359-Monthly!DH347)*60)","v":-6.0000000000000853},{"$f":"((Monthly!DI359-Monthly!DI347)*100)","v":39.999999999999147},"--",{"$f":"((Monthly!DK359-Monthly!DK347)*100)","v":-89.999999999999943},{"$f":"Monthly!DL359-Monthly!DL347","v":325},null,null,null,{"$f":"Monthly!DP359-Monthly!DP347","v":3075},null,null,null,{"$f":"(Monthly!DT359/Monthly!DT347)-1","v":-1.6200294550810068E-2},{"$f":"Monthly!DU359-Monthly!DU347","v":-0.70000000000000018},"--","--","--","--","--","--","--","--",null,null,null,null,null,null,null,null,null,null,null,null,null,{"$f":"(Monthly!EQ359/Monthly!EQ347)-1","v":4.0796019900497527E-2},{"$f":"(Monthly!ER359/Monthly!ER347)-1","v":2.2222222222222143E-2},{"$f":"(Monthly!ES359/Monthly!ES347)-1","v":1.3477088948786964E-2},null,null,null,null,null,{"$f":"((Monthly!EY359-Monthly!EY347)*100)","v":125},{"$f":"((Monthly!EZ359-Monthly!EZ347)*100)","v":40.000000000000036},{"$f":"((Monthly!FA359-Monthly!FA347)*100)","v":152.00000000000014},{"$f":"((Monthly!FB359-Monthly!FB347)*100)","v":134.99999999999997},"--",{"$f":"((Monthly!FD359-Monthly!FD347)*100)","v":123.00000000000004},{"$f":"((Monthly!FE359-Monthly!FE347)*100)","v":37.999999999999986},{"$f":"((Monthly!FF359-Monthly!FF347)*100)","v":121},{"$f":"((Monthly!FG359-Monthly!FG347)*100)","v":139.99999999999994},{"$f":"((Monthly!FH359-Monthly!FH347)*100)","v":154},{"$f":"((Monthly!FI359-Monthly!FI347)*100)","v":159},null,null,null,null,null,null,{"$f":"(Monthly!FP359/Monthly!FP347)-1","v":-5.5196236954284883E-2},{"$f":"(Monthly!FQ359/Monthly!FQ347)-1","v":0},"--","--",{"$f":"(Monthly!FT359/Monthly!FT347)-1","v":-2.8632848066107774E-2},{"$f":"(Monthly!FU359/Monthly!FU347)-1","v":-0.12005855940333021},{"$f":"(Monthly!FV359/Monthly!FV347)-1","v":0.10011234092708898},{"$f":"(Monthly!FW359/Monthly!FW347)-1","v":0.25393776411832492},{"$f":"(Monthly!FX359/Monthly!FX347)-1","v":0.50731032096202089},null,null,null,null,null,{"$f":"(Monthly!GD359/Monthly!GD347)-1","v":-8.0188679245282946E-2},"--","--","--",{"$f":"(Monthly!GH359/Monthly!GH347)-1","v":{"$error":"#DIV/0!"}},"--","--","--","--"]
["1988-08-01",null,null,null,{"$f":"(Monthly!E366/Monthly!E354)-1","v":{"$error":"#DIV/0!"}},{"$f":"(Monthly!F366/Monthly!F354)-1","v":{"$error":"#DIV/0!"}},{"$f":"(Monthly!G366/Monthly!G354)-1","v":{"$error":"#DIV/0!"}},{"$f":"(Monthly!H366/Monthly!H354)-1","v":{"$error":"#DIV/0!"}},null,null,null,null,null,null,null,null,null,null,null,null,null,null,null,{"$f":"(Monthly!X366-Monthly!X354)","v":3},{"$f":"(Monthly!Y366/Monthly!Y354)-1","v":7.2911664946119892E-2},null,null,null,null,null,null,null,null,null,null,null,null,null,{"$f":"(Monthly!AM366/Monthly!AM354)-1","v":4.7291755195620233E-2},{"$f":"(Monthly!AN366/Monthly!AN354)-1","v":5.0612774189433773E-2},"--","--",{"$f":"Monthly!AQ366-Monthly!AQ354","v":-3.2999999999999972},"--","--",{"$f":"Monthly!AT366-Monthly!AT354","v":-1.1999999999999957},"--","--",{"$f":"Monthly!AW366-Monthly!AW354","v":0.10000000000000142},{"$f":"Monthly!AX366-Monthly!AX354","v":-3.5},{"$f":"Monthly!AY366-Monthly!AY354","v":0.79999999999999716},{"$f":"Monthly!AZ366-Monthly!AZ354","v":-6.4000000000000057},{"$f":"Monthly!BA366-Monthly!BA354","v":-2.8999999999999986},"--","--",null,null,null,null,null,null,null,null,null,"--","--",null,null,null,null,null,{"$f":"(Monthly!BT366/Monthly!BT354)-1","v":8.7587597461423528E-2},null,null,null,{"$f":"(Monthly!BX366/Monthly!BX354)-1","v":-6.978193146417444E-2},{"$f":"(Monthly!BY366/Monthly!BY354)-1","v":-3.375248180013235E-2},"--",{"$f":"(Monthly!CA366/Monthly!CA354)-1","v":-0.10175145954962483},{"$f":"Monthly!CB366-Monthly!CB354","v":-0.57633516613344682},{"$f":"Monthly!CC366-Monthly!CC354","v":-0.85633516613344618},"--","--",null,"--","--",null,{"$f":"(Monthly!CJ366/Monthly!CJ354)-1","v":4.7184170471841647E-2},{"$f":"(Monthly!CK366/Monthly!CK354)-1","v":8.2320206552527919E-2},{"$f":"(Monthly!CL366/Monthly!CL354)-1","v":0.29973821989528782},{"$f":"(Monthly!CM366/Monthly!CM354)-1","v":-9.8214285714285365E-3},{"$f":"(Monthly!CN366/Monthly!CN354)-1","v":4.7774846688821038E-2},{"$f":"(Monthly!CO366/Monthly!CO354)-1","v":-1.7239588742340883E-2},{"$f":"(Monthly!CP366/Monthly!CP354)-1","v":7.3354148781412665E-2},{"$f":"(Monthly!CQ366/Monthly!CQ354)-1","v":9.1682715256860003E-3},{"$f":"(Monthly!CR366/Monthly!CR354)-1","v":0.14296177582289604},null,null,null,null,null,null,null,{"$f":"(Monthly!CZ366/Monthly!CZ354)-1","v":4.1119860017497789E-2},{"$f":"(Monthly!DA366/Monthly!DA354)-1","v":4.4650379106992322E-2},null,null,null,null,null,null,{"$f":"((Monthly!DH366-Monthly!DH354)*60)","v":-23.999999999999915},{"$f":"((Monthly!DI366-Monthly!DI354)*100)","v":39.999999999999147},"--",{"$f":"((Monthly!DK366-Monthly!DK354)*100)","v":-40.000000000000036},{"$f":"Monthly!DL366-Monthly!DL354","v":261},null,null,null,{"$f":"Monthly!DP366-Monthly!DP354","v":3252},null,null,null,{"$f":"(Monthly!DT366/Monthly!DT354)-1","v":-1.6406249999999956E-2},{"$f":"Monthly!DU366-Monthly!DU354","v":-0.5},"--","--","--","--","--","--","--","--",null,null,null,null,null,null,null,null,null,null,null,null,null,{"$f":"(Monthly!EQ366/Monthly!EQ354)-1","v":4.0462427745664664E-2},{"$f":"(Monthly!ER366/Monthly!ER354)-1","v":3.6091549295774739E-2},{"$f":"(Monthly!ES366/Monthly!ES354)-1","v":2.5892857142857162E-2},null,null,null,null,null,{"$f":"((Monthly!EY366-Monthly!EY354)*100)","v":159},{"$f":"((Monthly!EZ366-Monthly!EZ354)*100)","v":127.99999999999994},{"$f":"((Monthly!FA366-Monthly!FA354)*100)","v":43.99999999999995},{"$f":"((Monthly!FB366-Monthly!FB354)*100)","v":41.000000000000014},"--",{"$f":"((Monthly!FD366-Monthly!FD354)*100)","v":26.999999999999957},{"$f":"((Monthly!FE366-Monthly!FE354)*100)","v":101.99999999999996},{"$f":"((Monthly!FF366-Monthly!FF354)*100)","v":113.99999999999997},{"$f":"((Monthly!FG366-Monthly!FG354)*100)","v":88.000000000000085},{"$f":"((Monthly!FH366-Monthly!FH354)*100)","v":61.999999999999922},{"$f":"((Monthly!FI366-Monthly!FI354)*100)","v":50},null,null,null,null,null,null,{"$f":"(Monthly!FP366/Monthly!FP354)-1","v":-7.6870850935425339E-2},{"$f":"(Monthly!FQ366/Monthly!FQ354)-1","v":0},"--","--",{"$f":"(Monthly!FT366/Monthly!FT354)-1","v":2.3342743113014652E-2},{"$f":"(Monthly!FU366/Monthly!FU354)-1","v":-4.9483287346025029E-2},{"$f":"(Monthly!FV366/Monthly!FV354)-1","v":0.24452554744525545},{"$f":"(Monthly!FW366/Monthly!FW354)-1","v":0.34408961712088271},{"$f":"(Monthly!FX366/Monthly!FX354)-1","v":0.23477834324606039},null,null,null,null,null,{"$f":"(Monthly!GD366/Monthly!GD354)-1","v":-0.23429022393212995},"--","--","--",{"$f":"(Monthly!GH366/Monthly!GH354)-1","v":{"$error":"#DIV/0!"}},"--","--","--","--"]
["1988-11-01",null,null,null,{"$f":"(Monthly!E369/Monthly!E357)-1","v":{"$error":"#DIV/0!"}},{"$f":"(Monthly!F369/Monthly!F357)-1","v":{"$error":"#DIV/0!"}},{"$f":"(Monthly!G369/Monthly!G357)-1","v":{"$error":"#DIV/0!"}},{"$f":"(Monthly!H369/Monthly!H357)-1","v":{"$error":"#DIV/0!"}},null,null,null,null,null,null,null,null,null,null,null,null,null,null,null,{"$f":"(Monthly!X369-Monthly!X357)","v":1.7000000000000028},{"$f":"(Monthly!Y369/Monthly!Y357)-1","v":6.8556332525388175E-2},null,null,null,null,null,null,null,null,null,null,null,null,null,{"$f":"(Monthly!AM369/Monthly!AM357)-1","v":2.780596221674636E-2},{"$f":"(Monthly!AN369/Monthly!AN357)-1","v":3.3385708477192688E-2},"--","--",{"$f":"Monthly!AQ369-Monthly!AQ357","v":-3.1999999999999957},"--","--",{"$f":"Monthly!AT369-Monthly!AT357","v":9.9999999999994316E-2},"--","--",{"$f":"Monthly!AW369-Monthly!AW357","v":0.39999999999999858},{"$f":"Monthly!AX369-Monthly!AX357","v":-0.89999999999999858},{"$f":"Monthly!AY369-Monthly!AY357","v":-8.2999999999999972},{"$f":"Monthly!AZ369-Monthly!AZ357","v":-4.3999999999999986},{"$f":"Monthly!BA369-Monthly!BA357","v":-12.800000000000004},"--","--",null,null,null,null,null,null,null,null,null,"--","--",null,null,null,null,null,{"$f":"(Monthly!BT369/Monthly!BT357)-1","v":8.5419056151456951E-2},null,null,null,{"$f":"(Monthly!BX369/Monthly!BX357)-1","v":-5.2536231884057982E-2},{"$f":"(Monthly!BY369/Monthly!BY357)-1","v":3.5003431708991117E-2},"--",{"$f":"(Monthly!CA369/Monthly!CA357)-1","v":5.7004287622126837E-2},{"$f":"Monthly!CB369-Monthly!CB357","v":-0.78288498731572531},{"$f":"Monthly!CC369-Monthly!CC357","v":-1.1328849873157232},"--","--",null,"--","--",null,{"$f":"(Monthly!CJ369/Monthly!CJ357)-1","v":4.7999999999999154E-3},{"$f":"(Monthly!CK369/Monthly!CK357)-1","v":8.0177900090915744E-2},{"$f":"(Monthly!CL369/Monthly!CL357)-1","v":7.1275837491090455E-2},{"$f":"(Monthly!CM369/Monthly!CM357)-1","v":2.6079136690647431E-2},{"$f":"(Monthly!CN369/Monthly!CN357)-1","v":4.4920384595818152E-2},{"$f":"(Monthly!CO369/Monthly!CO357)-1","v":-1.0091353303590345E-2},{"$f":"(Monthly!CP369/Monthly!CP357)-1","v":6.5648376685019993E-2},{"$f":"(Monthly!CQ369/Monthly!CQ357)-1","v":9.2144525301778302E-3},{"$f":"(Monthly!CR369/Monthly!CR357)-1","v":0.15815882900157563},null,null,null,null,null,null,null,{"$f":"(Monthly!CZ369/Monthly!CZ357)-1","v":4.2461005199306623E-2},{"$f":"(Monthly!DA369/Monthly!DA357)-1","v":4.5795170691090847E-2},null,null,null,null,null,null,{"$f":"((Monthly!DH369-Monthly!DH357)*60)","v":-17.999999999999829},{"$f":"((Monthly!DI369-Monthly!DI357)*100)","v":50},"--",{"$f":"((Monthly!DK369-Monthly!DK357)*100)","v":-50},{"$f":"Monthly!DL369-Monthly!DL357","v":228},null,null,null,{"$f":"Monthly!DP369-Monthly!DP357","v":3246},null,null,null,{"$f":"(Monthly!DT369/Monthly!DT357)-1","v":-5.2974735126324335E-2},{"$f":"Monthly!DU369-Monthly!DU357","v":-0.5},"--","--","--","--","--","--","--","--",null,null,null,null,null,null,null,null,null,null,null,null,null,{"$f":"(Monthly!EQ369/Monthly!EQ357)-1","v":3.9347408829174535E-2},{"$f":"(Monthly!ER369/Monthly!ER357)-1","v":3.9404553415061327E-2},{"$f":"(Monthly!ES369/Monthly!ES357)-1","v":3.211418376449604E-2},null,null,null,null,null,{"$f":"((Monthly!EY369-Monthly!EY357)*100)","v":127.00000000000014},{"$f":"((Monthly!EZ369-Monthly!EZ357)*100)","v":165.99999999999991},{"$f":"((Monthly!FA369-Monthly!FA357)*100)","v":-56.00000000000005},{"$f":"((Monthly!FB369-Monthly!FB357)*100)","v":-75},"--",{"$f":"((Monthly!FD369-Monthly!FD357)*100)","v":-38.000000000000078},{"$f":"((Monthly!FE369-Monthly!FE357)*100)","v":206.99999999999994},{"$f":"((Monthly!FF369-Monthly!FF357)*100)","v":152.00000000000006},{"$f":"((Monthly!FG369-Monthly!FG357)*100)","v":97.999999999999957},{"$f":"((Monthly!FH369-Monthly!FH357)*100)","v":43.99999999999995},{"$f":"((Monthly!FI369-Monthly!FI357)*100)","v":10.000000000000142},null,null,null,null,null,null,{"$f":"(Monthly!FP369/Monthly!FP357)-1","v":-7.4504442925495629E-2},{"$f":"(Monthly!FQ369/Monthly!FQ357)-1","v":0},"--","--",{"$f":"(Monthly!FT369/Monthly!FT357)-1","v":3.175980387211319E-2},{"$f":"(Monthly!FU369/Monthly!FU357)-1","v":-4.0112590677327753E-2},{"$f":"(Monthly!FV369/Monthly!FV357)-1","v":5.9332748285761072E-2},{"$f":"(Monthly!FW369/Monthly!FW357)-1","v":0.63086974275214369},{"$f":"(Monthly!FX369/Monthly!FX357)-1","v":0.15331127684629609},null,null,null,null,null,{"$f":"(Monthly!GD369/Monthly!GD357)-1","v":-0.26125792811839332},"--","--","--",{"$f":"(Monthly!GH369/Monthly!GH357)-1","v":{"$error":"#DIV/0!"}},"--","--","--","--"]
["1989-03-01",null,null,null,{"$f":"(Monthly!E373/Monthly!E361)-1","v":{"$error":"#DIV/0!"}},{"$f":"(Monthly!F373/Monthly!F361)-1","v":{"$error":"#DIV/0!"}},{"$f":"(Monthly!G373/Monthly!G361)-1","v":{"$error":"#DIV/0!"}},{"$f":"(Monthly!H373/Monthly!H361)-1","v":{"$error":"#DIV/0!"}},null,null,null,null,null,null,null,null,null,null,null,null,null,null,null,{"$f":"(Monthly!X373-Monthly!X361)","v":1},{"$f":"(Monthly!Y373/Monthly!Y361)-1","v":7.8996831186515237E-2},null,null,null,null,null,null,null,null,null,null,null,null,null,{"$f":"(Monthly!AM373/Monthly!AM361)-1","v":2.1067087191548151E-2},{"$f":"(Monthly!AN373/Monthly!AN361)-1","v":2.3713764719916819E-2},"--","--",{"$f":"Monthly!AQ373-Monthly!AQ361","v":-3.1000000000000014},"--","--",{"$f":"Monthly!AT373-Monthly!AT361","v":0},{"$f":"Monthly!AU373-Monthly!AU361","v":-11.700000000000003},"--",{"$f":"Monthly!AW373-Monthly!AW361","v":6.3999999999999986},{"$f":"Monthly!AX373-Monthly!AX361","v":-5.8999999999999986},{"$f":"Monthly!AY373-Monthly!AY361","v":-6.5999999999999943},{"$f":"Monthly!AZ373-Monthly!AZ361","v":-5},{"$f":"Monthly!BA373-Monthly!BA361","v":-4.7999999999999972},"--","--",null,null,null,null,null,null,null,null,null,"--","--",null,null,null,null,null,{"$f":"(Monthly!BT373/Monthly!BT361)-1","v":6.7871594489634646E-2},null,null,null,{"$f":"(Monthly!BX373/Monthly!BX361)-1","v":-7.1801566579634435E-2},{"$f":"(Monthly!BY373/Monthly!BY361)-1","v":-0.20393442622950819},"--",{"$f":"(Monthly!CA373/Monthly!CA361)-1","v":-9.3765774861181206E-2},{"$f":"Monthly!CB373-Monthly!CB361","v":0.36026179492475485},{"$f":"Monthly!CC373-Monthly!CC361","v":-0.12973820507524536},"--","--",null,"--","--",null,{"$f":"(Monthly!CJ373/Monthly!CJ361)-1","v":-0.15246636771300448},{"$f":"(Monthly!CK373/Monthly!CK361)-1","v":9.4045538343668467E-2},{"$f":"(Monthly!CL373/Monthly!CL361)-1","v":0.30404666423623761},{"$f":"(Monthly!CM373/Monthly!CM361)-1","v":-0.16567544604927786},{"$f":"(Monthly!CN373/Monthly!CN361)-1","v":4.25726292709665E-2},{"$f":"(Monthly!CO373/Monthly!CO361)-1","v":-5.0042498937526547E-2},{"$f":"(Monthly!CP373/Monthly!CP361)-1","v":8.4653915249467193E-2},{"$f":"(Monthly!CQ373/Monthly!CQ361)-1","v":9.2148731573324927E-3},{"$f":"(Monthly!CR373/Monthly!CR361)-1","v":0.1396691496658129},null,null,null,null,null,null,null,{"$f":"(Monthly!CZ373/Monthly!CZ361)-1","v":4.8927038626609409E-2},{"$f":"(Monthly!DA373/Monthly!DA361)-1","v":4.6836483155299868E-2},null,null,null,null,null,null,{"$f":"((Monthly!DH373-Monthly!DH361)*60)","v":0},{"$f":"((Monthly!DI373-Monthly!DI361)*100)","v":59.999999999999432},"--",{"$f":"((Monthly!DK373-Monthly!DK361)*100)","v":-70.000000000000014},{"$f":"Monthly!DL373-Monthly!DL361","v":216},null,null,null,{"$f":"Monthly!DP373-Monthly!DP361","v":3132},null,null,null,{"$f":"(Monthly!DT373/Monthly!DT361)-1","v":4.542504866969499E-2},{"$f":"Monthly!DU373-Monthly!DU361","v":-1},"--","--","--","--","--","--","--","--",null,null,null,null,null,null,null,null,null,null,null,null,null,{"$f":"(Monthly!EQ373/Monthly!EQ361)-1","v":6.2917063870352674E-2},{"$f":"(Monthly!ER373/Monthly!ER361)-1","v":4.4117647058823595E-2},{"$f":"(Monthly!ES373/Monthly!ES361)-1","v":3.7985865724381673E-2},null,null,null,null,null,{"$f":"((Monthly!EY373-Monthly!EY361)*100)","v":300},{"$f":"((Monthly!EZ373-Monthly!EZ361)*100)","v":326.99999999999994},{"$f":"((Monthly!FA373-Monthly!FA361)*100)","v":41.000000000000014},{"$f":"((Monthly!FB373-Monthly!FB361)*100)","v":9.9999999999999645},"--",{"$f":"((Monthly!FD373-Monthly!FD361)*100)","v":109.99999999999997},{"$f":"((Monthly!FE373-Monthly!FE361)*100)","v":312},{"$f":"((Monthly!FF373-Monthly!FF361)*100)","v":286.00000000000006},{"$f":"((Monthly!FG373-Monthly!FG361)*100)","v":241},{"$f":"((Monthly!FH373-Monthly!FH361)*100)","v":167.99999999999997},{"$f":"((Monthly!FI373-Monthly!FI361)*100)","v":99.000000000000028},null,null,null,null,null,null,{"$f":"(Monthly!FP373/Monthly!FP361)-1","v":-4.3067563240474005E-2},{"$f":"(Monthly!FQ373/Monthly!FQ361)-1","v":0},"--","--",{"$f":"(Monthly!FT373/Monthly!FT361)-1","v":8.4660002260073863E-2},{"$f":"(Monthly!FU373/Monthly!FU361)-1","v":3.6179867616284778E-2},{"$f":"(Monthly!FV373/Monthly!FV361)-1","v":5.4889330500925038E-2},{"$f":"(Monthly!FW373/Monthly!FW361)-1","v":0.30868797803490877},{"$f":"(Monthly!FX373/Monthly!FX361)-1","v":0.13279240055412611},null,null,null,null,null,{"$f":"(Monthly!GD373/Monthly!GD361)-1","v":0.19905037923167068},{"$f":"(Monthly!GE373/Monthly!GE361)-1","v":0.26951799049558711},"--","--",{"$f":"(Monthly!GH373/Monthly!GH361)-1","v":{"$error":"#DIV/0!"}},"--","--","--","--"]
["1989-09-01",null,null,null,{"$f":"(Monthly!E379/Monthly!E367)-1","v":{"$error":"#DIV/0!"}},{"$f":"(Monthly!F379/Monthly!F367)-1","v":{"$error":"#DIV/0!"}},{"$f":"(Monthly!G379/Monthly!G367)-1","v":{"$error":"#DIV/0!"}},{"$f":"(Monthly!H379/Monthly!H367)-1","v":{"$error":"#DIV/0!"}},null,null,null,null,null,null,null,null,null,null,null,null,null,null,null,{"$f":"(Monthly!X379-Monthly!X367)","v":-1.4000000000000057},{"$f":"(Monthly!Y379/Monthly!Y367)-1","v":7.0050188422791759E-2},null,null,null,null,null,null,null,null,null,null,null,null,null,{"$f":"(Monthly!AM379/Monthly!AM367)-1","v":2.6969481902057169E-3},{"$f":"(Monthly!AN379/Monthly!AN367)-1","v":2.1000462010167809E-4},"--","--",{"$f":"Monthly!AQ379-Monthly!AQ367","v":-8.5},"--","--",{"$f":"Monthly!AT379-Monthly!AT367","v":-4.8000000000000043},{"$f":"Monthly!AU379-Monthly!AU367","v":0},"--",{"$f":"Monthly!AW379-Monthly!AW367","v":-4.7000000000000028},{"$f":"Monthly!AX379-Monthly!AX367","v":-12.600000000000001},{"$f":"Monthly!AY379-Monthly!AY367","v":-30.4},{"$f":"Monthly!AZ379-Monthly!AZ367","v":-6.7999999999999972},{"$f":"Monthly!BA379-Monthly!BA367","v":-11.300000000000004},"--","--",null,null,null,null,null,null,null,null,null,"--","--",null,null,null,null,null,{"$f":"(Monthly!BT379/Monthly!BT367)-1","v":5.6534297001540113E-2},null,null,null,{"$f":"(Monthly!BX379/Monthly!BX367)-1","v":-0.14276139410187672},{"$f":"(Monthly!BY379/Monthly!BY367)-1","v":-8.4958217270195036E-2},"--",{"$f":"(Monthly!CA379/Monthly!CA367)-1","v":4.4255608429639715E-2},{"$f":"Monthly!CB379-Monthly!CB367","v":0.15031645223303514},{"$f":"Monthly!CC379-Monthly!CC367","v":8.0316452233034852E-2},"--","--",null,"--","--",null,{"$f":"(Monthly!CJ379/Monthly!CJ367)-1","v":-9.1038406827880558E-2},{"$f":"(Monthly!CK379/Monthly!CK367)-1","v":7.2723925250851584E-2},{"$f":"(Monthly!CL379/Monthly!CL367)-1","v":-2.9271396754692924E-2},{"$f":"(Monthly!CM379/Monthly!CM367)-1","v":-7.4712643678160884E-2},{"$f":"(Monthly!CN379/Monthly!CN367)-1","v":2.6674937965260437E-2},{"$f":"(Monthly!CO379/Monthly!CO367)-1","v":-6.9799658994032399E-2},{"$f":"(Monthly!CP379/Monthly!CP367)-1","v":8.1436596312568499E-2},{"$f":"(Monthly!CQ379/Monthly!CQ367)-1","v":9.5818531434344045E-3},{"$f":"(Monthly!CR379/Monthly!CR367)-1","v":0.14478750011973163},null,null,null,null,null,null,null,{"$f":"(Monthly!CZ379/Monthly!CZ367)-1","v":4.435146443514637E-2},{"$f":"(Monthly!DA379/Monthly!DA367)-1","v":4.1700080192461852E-2},null,null,null,null,null,null,{"$f":"((Monthly!DH379-Monthly!DH367)*60)","v":-6.0000000000000853},{"$f":"((Monthly!DI379-Monthly!DI367)*100)","v":50},"--",{"$f":"((Monthly!DK379-Monthly!DK367)*100)","v":-10.000000000000053},{"$f":"Monthly!DL379-Monthly!DL367","v":8},null,null,null,{"$f":"Monthly!DP379-Monthly!DP367","v":2356},null,null,null,{"$f":"(Monthly!DT379/Monthly!DT367)-1","v":0.10919540229885061},{"$f":"Monthly!DU379-Monthly!DU367","v":-0.79999999999999982},"--","--","--","--","--","--","--","--",null,null,null,null,null,null,null,null,null,null,null,null,null,{"$f":"(Monthly!EQ379/Monthly!EQ367)-1","v":3.9777983348751267E-2},{"$f":"(Monthly!ER379/Monthly!ER367)-1","v":4.2337002540220103E-2},{"$f":"(Monthly!ES379/Monthly!ES367)-1","v":3.90625E-2},null,null,null,null,null,{"$f":"((Monthly!EY379-Monthly!EY367)*100)","v":50},{"$f":"((Monthly!EZ379-Monthly!EZ367)*100)","v":83},{"$f":"((Monthly!FA379-Monthly!FA367)*100)","v":-81.000000000000057},{"$f":"((Monthly!FB379-Monthly!FB367)*100)","v":-99.000000000000028},"--",{"$f":"((Monthly!FD379-Monthly!FD367)*100)","v":-34.999999999999964},{"$f":"((Monthly!FE379-Monthly!FE367)*100)","v":50.999999999999979},{"$f":"((Monthly!FF379-Monthly!FF367)*100)","v":13.000000000000078},{"$f":"((Monthly!FG379-Monthly!FG367)*100)","v":-18.000000000000149},{"$f":"((Monthly!FH379-Monthly!FH367)*100)","v":-51.999999999999957},{"$f":"((Monthly!FI379-Monthly!FI367)*100)","v":-79.000000000000085},null,null,null,null,null,null,{"$f":"(Monthly!FP379/Monthly!FP367)-1","v":-3.57870710035052E-2},{"$f":"(Monthly!FQ379/Monthly!FQ367)-1","v":0},"--","--",{"$f":"(Monthly!FT379/Monthly!FT367)-1","v":9.562319421454335E-2},{"$f":"(Monthly!FU379/Monthly!FU367)-1","v":3.2631754683896119E-2},{"$f":"(Monthly!FV379/Monthly!FV367)-1","v":2.2546799300518838E-2},{"$f":"(Monthly!FW379/Monthly!FW367)-1","v":0.48657506617925117},{"$f":"(Monthly!FX379/Monthly!FX367)-1","v":0.13735981068011127},null,null,null,null,null,{"$f":"(Monthly!GD379/Monthly!GD367)-1","v":0.35439275592728281},{"$f":"(Monthly!GE379/Monthly!GE367)-1","v":0.34825493171471922},"--","--",{"$f":"(Monthly!GH379/Monthly!GH367)-1","v":{"$error":"#DIV/0!"}},"--","--","--","--"]
["1990-02-01",null,null,null,{"$f":"(Monthly!E384/Monthly!E372)-1","v":{"$error":"#DIV/0!"}},{"$f":"(Monthly!F384/Monthly!F372)-1","v":{"$error":"#DIV/0!"}},{"$f":"(Monthly!G384/Monthly!G372)-1","v":{"$error":"#DIV/0!"}},{"$f":"(Monthly!H384/Monthly!H372)-1","v":{"$error":"#DIV/0!"}},null,null,null,null,null,null,null,null,null,null,null,null,null,null,null,{"$f":"(Monthly!X384-Monthly!X372)","v":-1.7000000000000028},{"$f":"(Monthly!Y384/Monthly!Y372)-1","v":3.1486313046522163E-2},null,null,null,null,null,null,null,null,null,null,null,null,null,{"$f":"(Monthly!AM384/Monthly!AM372)-1","v":5.0666916565145215E-3},{"$f":"(Monthly!AN384/Monthly!AN372)-1","v":3.1680653691892324E-3},"--","--",{"$f":"Monthly!AQ384-Monthly!AQ372","v":-5},"--","--",{"$f":"Monthly!AT384-Monthly!AT372","v":-3.5},{"$f":"Monthly!AU384-Monthly!AU372","v":-5.2999999999999972},"--",{"$f":"Monthly!AW384-Monthly!AW372","v":-7.6000000000000014},{"$f":"Monthly!AX384-Monthly!AX372","v":-4.7999999999999972},{"$f":"Monthly!AY384-Monthly!AY372","v":-23.300000000000004},{"$f":"Monthly!AZ384-Monthly!AZ372","v":-2.8000000000000043},{"$f":"Monthly!BA384-Monthly!BA372","v":-9.6000000000000014},"--","--",null,null,null,null,null,null,null,null,null,"--","--",null,null,null,null,null,{"$f":"(Monthly!BT384/Monthly!BT372)-1","v":5.2919505235881292E-2},null,null,null,{"$f":"(Monthly!BX384/Monthly!BX372)-1","v":8.4210526315788847E-3},{"$f":"(Monthly!BY384/Monthly!BY372)-1","v":-3.9045553145336198E-2},"--",{"$f":"(Monthly!CA384/Monthly!CA372)-1","v":-4.1041723479683601E-2},{"$f":"Monthly!CB384-Monthly!CB372","v":0.71599782589003524},{"$f":"Monthly!CC384-Monthly!CC372","v":0.78599782589003553},"--","--",null,"--","--",null,{"$f":"(Monthly!CJ384/Monthly!CJ372)-1","v":-4.9839228295819882E-2},{"$f":"(Monthly!CK384/Monthly!CK372)-1","v":6.4012541953718305E-2},{"$f":"(Monthly!CL384/Monthly!CL372)-1","v":2.270011947431283E-2},{"$f":"(Monthly!CM384/Monthly!CM372)-1","v":9.9800399201596779E-2},{"$f":"(Monthly!CN384/Monthly!CN372)-1","v":2.1986644674684142E-2},{"$f":"(Monthly!CO384/Monthly!CO372)-1","v":4.4233108481717132E-4},{"$f":"(Monthly!CP384/Monthly!CP372)-1","v":6.0938539739378461E-2},{"$f":"(Monthly!CQ384/Monthly!CQ372)-1","v":9.9400108775946627E-3},{"$f":"(Monthly!CR384/Monthly!CR372)-1","v":0.15398465366271741},null,null,null,null,null,null,null,{"$f":"(Monthly!CZ384/Monthly!CZ372)-1","v":5.2631578947368363E-2},{"$f":"(Monthly!DA384/Monthly!DA372)-1","v":4.5705279747832783E-2},null,null,null,null,null,null,{"$f":"((Monthly!DH384-Monthly!DH372)*60)","v":-6.0000000000000853},{"$f":"((Monthly!DI384-Monthly!DI372)*100)","v":40.000000000000568},"--",{"$f":"((Monthly!DK384-Monthly!DK372)*100)","v":9.9999999999999645},{"$f":"Monthly!DL384-Monthly!DL372","v":-162},null,null,null,{"$f":"Monthly!DP384-Monthly!DP372","v":2007},null,null,null,{"$f":"(Monthly!DT384/Monthly!DT372)-1","v":0.17942386831275714},{"$f":"Monthly!DU384-Monthly!DU372","v":-0.10000000000000053},"--","--","--","--","--","--","--","--",null,null,null,null,null,null,null,null,null,null,null,null,null,{"$f":"(Monthly!EQ384/Monthly!EQ372)-1","v":3.2490974729241895E-2},{"$f":"(Monthly!ER384/Monthly!ER372)-1","v":3.6514522821576856E-2},{"$f":"(Monthly!ES384/Monthly!ES372)-1","v":3.4953111679454363E-2},null,null,null,null,null,{"$f":"((Monthly!EY384-Monthly!EY372)*100)","v":-92.999999999999972},{"$f":"((Monthly!EZ384-Monthly!EZ372)*100)","v":-111.99999999999991},{"$f":"((Monthly!FA384-Monthly!FA372)*100)","v":-41.999999999999993},{"$f":"((Monthly!FB384-Monthly!FB372)*100)","v":-46.999999999999886},"--",{"$f":"((Monthly!FD384-Monthly!FD372)*100)","v":-45.000000000000107},{"$f":"((Monthly!FE384-Monthly!FE372)*100)","v":-78.999999999999915},{"$f":"((Monthly!FF384-Monthly!FF372)*100)","v":-114.00000000000006},{"$f":"((Monthly!FG384-Monthly!FG372)*100)","v":-100},{"$f":"((Monthly!FH384-Monthly!FH372)*100)","v":-84.999999999999972},{"$f":"((Monthly!FI384-Monthly!FI372)*100)","v":-69.999999999999929},null,null,null,null,null,null,{"$f":"(Monthly!FP384/Monthly!FP372)-1","v":6.2231940122781104E-3},{"$f":"(Monthly!FQ384/Monthly!FQ372)-1","v":0.26866591627807268},"--","--",{"$f":"(Monthly!FT384/Monthly!FT372)-1","v":0.12384491890730276},{"$f":"(Monthly!FU384/Monthly!FU372)-1","v":1.6242467412835193E-2},{"$f":"(Monthly!FV384/Monthly!FV372)-1","v":-4.3501842709130156E-2},{"$f":"(Monthly!FW384/Monthly!FW372)-1","v":0.24520736749780725},{"$f":"(Monthly!FX384/Monthly!FX372)-1","v":0.13317098791959103},null,null,null,null,null,{"$f":"(Monthly!GD384/Monthly!GD372)-1","v":0.24021092785818476},{"$f":"(Monthly!GE384/Monthly!GE372)-1","v":0.17288336293664885},"--","--",{"$f":"(Monthly!GH384/Monthly!GH372)-1","v":{"$error":"#DIV/0!"}},"--","--","--","--"]
["1990-07-01",null,null,null,{"$f":"(Monthly!E389/Monthly!E377)-1","v":{"$error":"#DIV/0!"}},{"$f":"(Monthly!F389/Monthly!F377)-1","v":{"$error":"#DIV/0!"}},{"$f":"(Monthly!G389/Monthly!G377)-1","v":{"$error":"#DIV/0!"}},{"$f":"(Monthly!H389/Monthly!H377)-1","v":{"$error":"#DIV/0!"}},null,null,null,null,null,null,null,null,null,null,null,null,null,null,null,{"$f":"(Monthly!X389-Monthly!X377)","v":-0.10000000000000853},{"$f":"(Monthly!Y389/Monthly!Y377)-1","v":1.4056703139080584E-2},null,null,null,null,null,null,null,null,null,null,null,null,null,{"$f":"(Monthly!AM389/Monthly!AM377)-1","v":2.5422227844898337E-2},{"$f":"(Monthly!AN389/Monthly!AN377)-1","v":2.6783011609128327E-2},"--","--",{"$f":"Monthly!AQ389-Monthly!AQ377","v":0.70000000000000284},"--","--",{"$f":"Monthly!AT389-Monthly!AT377","v":1.7999999999999972},{"$f":"Monthly!AU389-Monthly!AU377","v":1.1000000000000014},"--",{"$f":"Monthly!AW389-Monthly!AW377","v":-6.6000000000000014},{"$f":"Monthly!AX389-Monthly!AX377","v":0.90000000000000568},{"$f":"Monthly!AY389-Monthly!AY377","v":3.2999999999999972},{"$f":"Monthly!AZ389-Monthly!AZ377","v":2.8999999999999986},{"$f":"Monthly!BA389-Monthly!BA377","v":0.29999999999999716},"--","--",null,null,null,null,null,null,null,null,null,"--","--",null,null,null,null,null,{"$f":"(Monthly!BT389/Monthly!BT377)-1","v":1.8576977055029475E-2},null,null,null,{"$f":"(Monthly!BX389/Monthly!BX377)-1","v":-0.17939733707077787},{"$f":"(Monthly!BY389/Monthly!BY377)-1","v":-0.15978176149649259},"--",{"$f":"(Monthly!CA389/Monthly!CA377)-1","v":-4.1698519702550563E-2},{"$f":"Monthly!CB389-Monthly!CB377","v":5.5985969193216079E-2},{"$f":"Monthly!CC389-Monthly!CC377","v":0.26598596919321693},"--","--",null,"--","--",null,{"$f":"(Monthly!CJ389/Monthly!CJ377)-1","v":-0.25854993160054718},{"$f":"(Monthly!CK389/Monthly!CK377)-1","v":6.7039709631421918E-2},{"$f":"(Monthly!CL389/Monthly!CL377)-1","v":0.11601150527325021},{"$f":"(Monthly!CM389/Monthly!CM377)-1","v":-0.14021421616358321},{"$f":"(Monthly!CN389/Monthly!CN377)-1","v":2.9663251770045918E-2},{"$f":"(Monthly!CO389/Monthly!CO377)-1","v":6.276053728578046E-2},{"$f":"(Monthly!CP389/Monthly!CP377)-1","v":3.9455074400964518E-2},{"$f":"(Monthly!CQ389/Monthly!CQ377)-1","v":1.1279928196586075E-2},{"$f":"(Monthly!CR389/Monthly!CR377)-1","v":0.15064241352626784},null,null,null,null,null,null,null,{"$f":"(Monthly!CZ389/Monthly!CZ377)-1","v":4.8192771084337283E-2},{"$f":"(Monthly!DA389/Monthly!DA377)-1","v":5.1083591331269496E-2},null,null,null,null,null,null,{"$f":"((Monthly!DH389-Monthly!DH377)*60)","v":-17.999999999999829},{"$f":"((Monthly!DI389-Monthly!DI377)*100)","v":0},"--",{"$f":"((Monthly!DK389-Monthly!DK377)*100)","v":29.999999999999982},{"$f":"Monthly!DL389-Monthly!DL377","v":-276},null,null,null,{"$f":"Monthly!DP389-Monthly!DP377","v":1764},null,null,null,{"$f":"(Monthly!DT389/Monthly!DT377)-1","v":8.24985268120213E-2},{"$f":"Monthly!DU389-Monthly!DU377","v":-0.19999999999999929},"--","--","--","--","--","--","--","--",null,null,null,null,null,null,null,null,null,null,null,null,null,{"$f":"(Monthly!EQ389/Monthly!EQ377)-1","v":1.5070921985815611E-2},{"$f":"(Monthly!ER389/Monthly!ER377)-1","v":3.6855036855036882E-2},{"$f":"(Monthly!ES389/Monthly!ES377)-1","v":3.3641715727502186E-2},null,null,null,null,null,{"$f":"((Monthly!EY389-Monthly!EY377)*100)","v":-98.000000000000043},{"$f":"((Monthly!EZ389-Monthly!EZ377)*100)","v":-108.99999999999999},{"$f":"((Monthly!FA389-Monthly!FA377)*100)","v":31.00000000000005},{"$f":"((Monthly!FB389-Monthly!FB377)*100)","v":33.000000000000007},"--",{"$f":"((Monthly!FD389-Monthly!FD377)*100)","v":15.999999999999837},{"$f":"((Monthly!FE389-Monthly!FE377)*100)","v":-25.999999999999979},{"$f":"((Monthly!FF389-Monthly!FF377)*100)","v":5.0000000000000711},{"$f":"((Monthly!FG389-Monthly!FG377)*100)","v":33.999999999999986},{"$f":"((Monthly!FH389-Monthly!FH377)*100)","v":50},{"$f":"((Monthly!FI389-Monthly!FI377)*100)","v":45.000000000000107},null,null,null,null,null,null,{"$f":"(Monthly!FP389/Monthly!FP377)-1","v":-2.6995206458666265E-2},{"$f":"(Monthly!FQ389/Monthly!FQ377)-1","v":0.26866591627807268},"--","--",{"$f":"(Monthly!FT389/Monthly!FT377)-1","v":6.9880784008761854E-2},{"$f":"(Monthly!FU389/Monthly!FU377)-1","v":-4.8825646422792524E-2},{"$f":"(Monthly!FV389/Monthly!FV377)-1","v":0.15241070260368983},{"$f":"(Monthly!FW389/Monthly!FW377)-1","v":0.28365012470972739},{"$f":"(Monthly!FX389/Monthly!FX377)-1","v":6.2951543877410199E-2},null,null,null,null,null,{"$f":"(Monthly!GD389/Monthly!GD377)-1","v":-5.121156587253084E-2},{"$f":"(Monthly!GE389/Monthly!GE377)-1","v":-2.5539160045402909E-2},"--","--",{"$f":"(Monthly!GH389/Monthly!GH377)-1","v":{"$error":"#DIV/0!"}},"--","--","--","--"]
["1990-09-01",null,null,null,{"$f":"(Monthly!E391/Monthly!E379)-1","v":{"$error":"#DIV/0!"}},{"$f":"(Monthly!F391/Monthly!F379)-1","v":{"$error":"#DIV/0!"}},{"$f":"(Monthly!G391/Monthly!G379)-1","v":{"$error":"#DIV/0!"}},{"$f":"(Monthly!H391/Monthly!H379)-1","v":{"$error":"#DIV/0!"}},null,null,null,null,null,null,null,null,null,null,null,null,null,null,null,{"$f":"(Monthly!X391-Monthly!X379)","v":-9.9999999999994316E-2},{"$f":"(Monthly!Y391/Monthly!Y379)-1","v":3.5851574950507281E-3},null,null,null,null,null,null,null,null,null,null,null,null,null,{"$f":"(Monthly!AM391/Monthly!AM379)-1","v":2.4556436391091063E-2},{"$f":"(Monthly!AN391/Monthly!AN379)-1","v":2.318300159569997E-2},"--","--",{"$f":"Monthly!AQ391-Monthly!AQ379","v":-1.5},"--","--",{"$f":"Monthly!AT391-Monthly!AT379","v":-4.1000000000000014},{"$f":"Monthly!AU391-Monthly!AU379","v":-7},"--",{"$f":"Monthly!AW391-Monthly!AW379","v":-4},{"$f":"Monthly!AX391-Monthly!AX379","v":-1.1000000000000014},{"$f":"Monthly!AY391-Monthly!AY379","v":27.800000000000004},{"$f":"Monthly!AZ391-Monthly!AZ379","v":-2.5},{"$f":"Monthly!BA391-Monthly!BA379","v":5},"--","--",null,null,null,null,null,null,null,null,null,"--","--",null,null,null,null,null,{"$f":"(Monthly!BT391/Monthly!BT379)-1","v":1.3994611697407677E-2},null,null,null,{"$f":"(Monthly!BX391/Monthly!BX379)-1","v":-0.13213448006254891},{"$f":"(Monthly!BY391/Monthly!BY379)-1","v":-0.25722983257229837},"--",{"$f":"(Monthly!CA391/Monthly!CA379)-1","v":-8.6973504329145301E-2},{"$f":"Monthly!CB391-Monthly!CB379","v":2.3347253513571697},{"$f":"Monthly!CC391-Monthly!CC379","v":2.7547253513571697},"--","--",null,"--","--",null,{"$f":"(Monthly!CJ391/Monthly!CJ379)-1","v":-0.22378716744913929},{"$f":"(Monthly!CK391/Monthly!CK379)-1","v":6.6506479018278553E-2},{"$f":"(Monthly!CL391/Monthly!CL379)-1","v":7.8334972140281733E-2},{"$f":"(Monthly!CM391/Monthly!CM379)-1","v":-0.11180124223602483},{"$f":"(Monthly!CN391/Monthly!CN379)-1","v":1.8285896008904512E-2},{"$f":"(Monthly!CO391/Monthly!CO379)-1","v":5.6822087295222756E-2},{"$f":"(Monthly!CP391/Monthly!CP379)-1","v":3.659924681075144E-2},{"$f":"(Monthly!CQ391/Monthly!CQ379)-1","v":1.1843464505923773E-2},{"$f":"(Monthly!CR391/Monthly!CR379)-1","v":0.15527348075815661},null,null,null,null,null,null,null,{"$f":"(Monthly!CZ391/Monthly!CZ379)-1","v":6.1698717948718063E-2},{"$f":"(Monthly!DA391/Monthly!DA379)-1","v":5.5427251732101501E-2},null,null,null,null,null,null,{"$f":"((Monthly!DH391-Monthly!DH379)*60)","v":-11.999999999999744},{"$f":"((Monthly!DI391-Monthly!DI379)*100)","v":0},"--",{"$f":"((Monthly!DK391-Monthly!DK379)*100)","v":60.000000000000057},{"$f":"Monthly!DL391-Monthly!DL379","v":-313},null,null,null,{"$f":"Monthly!DP391-Monthly!DP379","v":1159},null,null,null,{"$f":"(Monthly!DT391/Monthly!DT379)-1","v":0.16802368615840124},{"$f":"Monthly!DU391-Monthly!DU379","v":0.69999999999999929},"--","--","--","--","--","--","--","--",null,null,null,null,null,null,null,null,null,null,null,null,null,{"$f":"(Monthly!EQ391/Monthly!EQ379)-1","v":5.3380782918149405E-2},{"$f":"(Monthly!ER391/Monthly!ER379)-1","v":3.7367993501218555E-2},{"$f":"(Monthly!ES391/Monthly!ES379)-1","v":3.4252297410192201E-2},null,null,null,null,null,{"$f":"((Monthly!EY391-Monthly!EY379)*100)","v":-50},{"$f":"((Monthly!EZ391-Monthly!EZ379)*100)","v":-82.000000000000028},{"$f":"((Monthly!FA391-Monthly!FA379)*100)","v":55.000000000000071},{"$f":"((Monthly!FB391-Monthly!FB379)*100)","v":73.000000000000043},"--",{"$f":"((Monthly!FD391-Monthly!FD379)*100)","v":4.9999999999998934},{"$f":"((Monthly!FE391-Monthly!FE379)*100)","v":-38.999999999999972},{"$f":"((Monthly!FF391-Monthly!FF379)*100)","v":-46.000000000000085},{"$f":"((Monthly!FG391-Monthly!FG379)*100)","v":-19.999999999999929},{"$f":"((Monthly!FH391-Monthly!FH379)*100)","v":33.999999999999986},{"$f":"((Monthly!FI391-Monthly!FI379)*100)","v":70.000000000000114},null,null,null,null,null,null,{"$f":"(Monthly!FP391/Monthly!FP379)-1","v":-2.0713561041596162E-2},{"$f":"(Monthly!FQ391/Monthly!FQ379)-1","v":0.26874631505601121},"--","--",{"$f":"(Monthly!FT391/Monthly!FT379)-1","v":1.5484080964849545E-2},{"$f":"(Monthly!FU391/Monthly!FU379)-1","v":-0.10388223542617048},{"$f":"(Monthly!FV391/Monthly!FV379)-1","v":8.2507464360307869E-2},{"$f":"(Monthly!FW391/Monthly!FW379)-1","v":0.21436445348935806},{"$f":"(Monthly!FX391/Monthly!FX379)-1","v":0.18748869187624395},null,null,null,null,null,{"$f":"(Monthly!GD391/Monthly!GD379)-1","v":0.7192507910584871},{"$f":"(Monthly!GE391/Monthly!GE379)-1","v":0.963984243106359},"--","--",{"$f":"(Monthly!GH391/Monthly!GH379)-1","v":{"$error":"#DIV/0!"}},"--","--","--","--"]
["1991-04-01",null,null,null,{"$f":"(Monthly!E398/Monthly!E386)-1","v":{"$error":"#DIV/0!"}},{"$f":"(Monthly!F398/Monthly!F386)-1","v":{"$error":"#DIV/0!"}},{"$f":"(Monthly!G398/Monthly!G386)-1","v":{"$error":"#DIV/0!"}},{"$f":"(Monthly!H398/Monthly!H386)-1","v":{"$error":"#DIV/0!"}},null,null,null,null,null,null,null,null,null,null,null,null,null,null,null,{"$f":"(Monthly!X398-Monthly!X386)","v":-4.0999999999999943},{"$f":"(Monthly!Y398/Monthly!Y386)-1","v":-1.4944577100314937E-2},null,null,null,null,null,null,null,null,null,null,null,null,null,{"$f":"(Monthly!AM398/Monthly!AM386)-1","v":-3.1691628933008142E-2},{"$f":"(Monthly!AN398/Monthly!AN386)-1","v":-3.7636353724234684E-2},"--","--",{"$f":"Monthly!AQ398-Monthly!AQ386","v":-7.2000000000000028},"--","--",{"$f":"Monthly!AT398-Monthly!AT386","v":-10.800000000000004},{"$f":"Monthly!AU398-Monthly!AU386","v":-3.6000000000000014},{"$f":"Monthly!AV398-Monthly!AV386","v":-2.7999999999999972},{"$f":"Monthly!AW398-Monthly!AW386","v":-1.6999999999999957},{"$f":"Monthly!AX398-Monthly!AX386","v":-7.6000000000000014},{"$f":"Monthly!AY398-Monthly!AY386","v":-12.100000000000001},{"$f":"Monthly!AZ398-Monthly!AZ386","v":-9},{"$f":"Monthly!BA398-Monthly!BA386","v":-2.2000000000000028},"--","--",null,null,null,null,null,null,null,null,null,"--","--",null,null,null,null,null,{"$f":"(Monthly!BT398/Monthly!BT386)-1","v":-8.8741344147664769E-3},null,null,null,{"$f":"(Monthly!BX398/Monthly!BX386)-1","v":-0.19791666666666663},{"$f":"(Monthly!BY398/Monthly!BY386)-1","v":-0.19366197183098588},"--",{"$f":"(Monthly!CA398/Monthly!CA386)-1","v":-0.1558997787136841},{"$f":"Monthly!CB398-Monthly!CB386","v":1.3983136065400892},{"$f":"Monthly!CC398-Monthly!CC386","v":2.3083136065400911},"--","--",null,"--","--",null,{"$f":"(Monthly!CJ398/Monthly!CJ386)-1","v":-6.2730627306273101E-2},{"$f":"(Monthly!CK398/Monthly!CK386)-1","v":2.8743644415286207E-2},{"$f":"(Monthly!CL398/Monthly!CL386)-1","v":8.8596741926265654E-3},{"$f":"(Monthly!CM398/Monthly!CM386)-1","v":-0.11171366594360088},{"$f":"(Monthly!CN398/Monthly!CN386)-1","v":-1.0125872382851231E-3},{"$f":"(Monthly!CO398/Monthly!CO386)-1","v":5.058707341160984E-2},{"$f":"(Monthly!CP398/Monthly!CP386)-1","v":1.1357789137236285E-2},{"$f":"(Monthly!CQ398/Monthly!CQ386)-1","v":1.3385157196377229E-2},{"$f":"(Monthly!CR398/Monthly!CR386)-1","v":0.13183943548152244},null,null,null,null,null,null,null,{"$f":"(Monthly!CZ398/Monthly!CZ386)-1","v":4.8099301784328752E-2},{"$f":"(Monthly!DA398/Monthly!DA386)-1","v":5.1492537313432951E-2},null,null,null,null,null,null,{"$f":"((Monthly!DH398-Monthly!DH386)*60)","v":-17.999999999999829},{"$f":"((Monthly!DI398-Monthly!DI386)*100)","v":-19.999999999998863},"--",{"$f":"((Monthly!DK398-Monthly!DK386)*100)","v":129.99999999999997},{"$f":"Monthly!DL398-Monthly!DL386","v":-752},null,null,null,{"$f":"Monthly!DP398-Monthly!DP386","v":-1321},null,null,null,{"$f":"(Monthly!DT398/Monthly!DT386)-1","v":0.29163787145818931},{"$f":"Monthly!DU398-Monthly!DU386","v":1.7999999999999998},{"$f":"(Monthly!DV398/Monthly!DV386)-1","v":-2.2735314932767148E-2},{"$f":"(Monthly!DW398/Monthly!DW386)-1","v":-2.3041061502599991E-2},{"$f":"(Monthly!DX398/Monthly!DX386)-1","v":-2.3004227804028887E-2},{"$f":"(Monthly!DY398/Monthly!DY386)-1","v":-2.2587268993839893E-2},{"$f":"(Monthly!DZ398/Monthly!DZ386)-1","v":-2.3137512307187413E-2},{"$f":"(Monthly!EA398/Monthly!EA386)-1","v":-2.2832103321033248E-2},{"$f":"(Monthly!EB398/Monthly!EB386)-1","v":-2.3890784982935287E-2},{"$f":"(Monthly!EC398/Monthly!EC386)-1","v":-2.3136246786632397E-2},null,null,null,null,null,null,null,null,null,null,null,null,null,{"$f":"(Monthly!EQ398/Monthly!EQ386)-1","v":1.6652059596844904E-2},{"$f":"(Monthly!ER398/Monthly!ER386)-1","v":3.9043824701195273E-2},{"$f":"(Monthly!ES398/Monthly!ES386)-1","v":3.2760032760032809E-2},null,null,null,null,null,{"$f":"((Monthly!EY398-Monthly!EY386)*100)","v":-100},{"$f":"((Monthly!EZ398-Monthly!EZ386)*100)","v":-234.99999999999997},{"$f":"((Monthly!FA398-Monthly!FA386)*100)","v":-60.000000000000142},{"$f":"((Monthly!FB398-Monthly!FB386)*100)","v":-36.000000000000121},"--",{"$f":"((Monthly!FD398-Monthly!FD386)*100)","v":-87.999999999999901},{"$f":"((Monthly!FE398-Monthly!FE386)*100)","v":-211.99999999999991},{"$f":"((Monthly!FF398-Monthly!FF386)*100)","v":-216},{"$f":"((Monthly!FG398-Monthly!FG386)*100)","v":-177.00000000000006},{"$f":"((Monthly!FH398-Monthly!FH386)*100)","v":-106.99999999999994},{"$f":"((Monthly!FI398-Monthly!FI386)*100)","v":-75},null,null,null,null,null,null,{"$f":"(Monthly!FP398/Monthly!FP386)-1","v":-9.1057469289579362E-3},{"$f":"(Monthly!FQ398/Monthly!FQ386)-1","v":0.11466232915777685},"--","--",{"$f":"(Monthly!FT398/Monthly!FT386)-1","v":1.5809172671917837E-2},{"$f":"(Monthly!FU398/Monthly!FU386)-1","v":-4.705963438944738E-2},{"$f":"(Monthly!FV398/Monthly!FV386)-1","v":5.1062518423238723E-2},{"$f":"(Monthly!FW398/Monthly!FW386)-1","v":0.10818948213568857},{"$f":"(Monthly!FX398/Monthly!FX386)-1","v":0.22868412603770127},null,null,null,null,null,{"$f":"(Monthly!GD398/Monthly!GD386)-1","v":0.12060058120762029},{"$f":"(Monthly!GE398/Monthly!GE386)-1","v":0.15472606863335336},{"$f":"(Monthly!GF398/Monthly!GF386)-1","v":5.6823992133726575E-2},{"$f":"(Monthly!GG398/Monthly!GG386)-1","v":5.6823992133726575E-2},{"$f":"(Monthly!GH398/Monthly!GH386)-1","v":{"$error":"#DIV/0!"}},"--","--","--","--"]
["1991-08-01",null,null,null,{"$f":"(Monthly!E402/Monthly!E390)-1","v":{"$error":"#DIV/0!"}},{"$f":"(Monthly!F402/Monthly!F390)-1","v":{"$error":"#DIV/0!"}},{"$f":"(Monthly!G402/Monthly!G390)-1","v":{"$error":"#DIV/0!"}},{"$f":"(Monthly!H402/Monthly!H390)-1","v":{"$error":"#DIV/0!"}},null,null,null,null,null,null,null,null,null,null,null,null,null,null,null,{"$f":"(Monthly!X402-Monthly!X390)","v":-2.7000000000000028},{"$f":"(Monthly!Y402/Monthly!Y390)-1","v":-3.4364461328874274E-2},null,null,null,null,null,null,null,null,null,null,null,null,null,{"$f":"(Monthly!AM402/Monthly!AM390)-1","v":-1.8337100072260082E-2},{"$f":"(Monthly!AN402/Monthly!AN390)-1","v":-2.0873594320306887E-2},"--","--",{"$f":"Monthly!AQ402-Monthly!AQ390","v":6.7999999999999972},"--","--",{"$f":"Monthly!AT402-Monthly!AT390","v":0.89999999999999858},{"$f":"Monthly!AU402-Monthly!AU390","v":1.8999999999999986},{"$f":"Monthly!AV402-Monthly!AV390","v":2.6000000000000014},{"$f":"Monthly!AW402-Monthly!AW390","v":-4},{"$f":"Monthly!AX402-Monthly!AX390","v":14.600000000000001},{"$f":"Monthly!AY402-Monthly!AY390","v":-11.300000000000004},{"$f":"Monthly!AZ402-Monthly!AZ390","v":11.899999999999999},{"$f":"Monthly!BA402-Monthly!BA390","v":-1.8000000000000043},"--","--",null,null,null,null,null,null,null,null,null,"--","--",null,null,null,null,null,{"$f":"(Monthly!BT402/Monthly!BT390)-1","v":-2.1714837977340418E-2},null,null,null,{"$f":"(Monthly!BX402/Monthly!BX390)-1","v":-5.9192825112107661E-2},{"$f":"(Monthly!BY402/Monthly!BY390)-1","v":-0.11693171188026197},"--",{"$f":"(Monthly!CA402/Monthly!CA390)-1","v":-9.0561036666175876E-2},{"$f":"Monthly!CB402-Monthly!CB390","v":-0.7034191477154792},{"$f":"Monthly!CC402-Monthly!CC390","v":0.13658085228452066},"--","--",null,"--","--",null,{"$f":"(Monthly!CJ402/Monthly!CJ390)-1","v":-3.7878787878787845E-3},{"$f":"(Monthly!CK402/Monthly!CK390)-1","v":2.9806952932130093E-2},{"$f":"(Monthly!CL402/Monthly!CL390)-1","v":9.3817286988618909E-2},{"$f":"(Monthly!CM402/Monthly!CM390)-1","v":6.6505441354292705E-2},{"$f":"(Monthly!CN402/Monthly!CN390)-1","v":6.2922541258763065E-3},{"$f":"(Monthly!CO402/Monthly!CO390)-1","v":8.6120764552563012E-2},{"$f":"(Monthly!CP402/Monthly!CP390)-1","v":-8.3296795854783667E-3},{"$f":"(Monthly!CQ402/Monthly!CQ390)-1","v":1.344838463657827E-2},{"$f":"(Monthly!CR402/Monthly!CR390)-1","v":0.1010167592525264},null,null,null,null,null,null,null,{"$f":"(Monthly!CZ402/Monthly!CZ390)-1","v":3.7993920972644313E-2},{"$f":"(Monthly!DA402/Monthly!DA390)-1","v":4.6120058565153776E-2},null,null,null,null,null,null,{"$f":"((Monthly!DH402-Monthly!DH390)*60)","v":-6.0000000000000853},{"$f":"((Monthly!DI402-Monthly!DI390)*100)","v":-50},"--",{"$f":"((Monthly!DK402-Monthly!DK390)*100)","v":120.00000000000001},{"$f":"Monthly!DL402-Monthly!DL390","v":-624},null,null,null,{"$f":"Monthly!DP402-Monthly!DP390","v":-1306},null,null,null,{"$f":"(Monthly!DT402/Monthly!DT390)-1","v":0.10256410256410264},{"$f":"Monthly!DU402-Monthly!DU390","v":1.8999999999999995},{"$f":"(Monthly!DV402/Monthly!DV390)-1","v":-9.6913137114144066E-3},{"$f":"(Monthly!DW402/Monthly!DW390)-1","v":-9.2518459211812232E-3},{"$f":"(Monthly!DX402/Monthly!DX390)-1","v":-9.4187631676787564E-3},{"$f":"(Monthly!DY402/Monthly!DY390)-1","v":-8.9507707608154075E-3},{"$f":"(Monthly!DZ402/Monthly!DZ390)-1","v":-9.5741168702541124E-3},{"$f":"(Monthly!EA402/Monthly!EA390)-1","v":-9.2807424593968069E-3},{"$f":"(Monthly!EB402/Monthly!EB390)-1","v":-1.0297482837528626E-2},{"$f":"(Monthly!EC402/Monthly!EC390)-1","v":-8.8272383354350836E-3},null,null,null,null,null,null,null,null,null,null,null,null,null,{"$f":"(Monthly!EQ402/Monthly!EQ390)-1","v":-2.5751072961373023E-3},{"$f":"(Monthly!ER402/Monthly!ER390)-1","v":3.3044846577498177E-2},{"$f":"(Monthly!ES402/Monthly!ES390)-1","v":2.8386050283860431E-2},null,null,null,null,null,{"$f":"((Monthly!EY402-Monthly!EY390)*100)","v":-150},{"$f":"((Monthly!EZ402-Monthly!EZ390)*100)","v":-247.00000000000006},{"$f":"((Monthly!FA402-Monthly!FA390)*100)","v":-66.000000000000014},{"$f":"((Monthly!FB402-Monthly!FB390)*100)","v":-75.999999999999972},"--",{"$f":"((Monthly!FD402-Monthly!FD390)*100)","v":-85.999999999999943},{"$f":"((Monthly!FE402-Monthly!FE390)*100)","v":-212},{"$f":"((Monthly!FF402-Monthly!FF390)*100)","v":-200},{"$f":"((Monthly!FG402-Monthly!FG390)*100)","v":-163.00000000000009},{"$f":"((Monthly!FH402-Monthly!FH390)*100)","v":-100.99999999999997},{"$f":"((Monthly!FI402-Monthly!FI390)*100)","v":-84.999999999999972},null,null,null,null,null,null,{"$f":"(Monthly!FP402/Monthly!FP390)-1","v":3.4940600978328185E-4},{"$f":"(Monthly!FQ402/Monthly!FQ390)-1","v":0.13489934303639695},"--","--",{"$f":"(Monthly!FT402/Monthly!FT390)-1","v":6.8691411778124545E-2},{"$f":"(Monthly!FU402/Monthly!FU390)-1","v":3.0939865611975925E-2},{"$f":"(Monthly!FV402/Monthly!FV390)-1","v":3.6832258244673399E-2},{"$f":"(Monthly!FW402/Monthly!FW390)-1","v":0.19367588932806346},{"$f":"(Monthly!FX402/Monthly!FX390)-1","v":2.7930135760687813E-2},null,null,null,null,null,{"$f":"(Monthly!GD402/Monthly!GD390)-1","v":-0.20188415397070736},{"$f":"(Monthly!GE402/Monthly!GE390)-1","v":-0.27235921972764088},{"$f":"(Monthly!GF402/Monthly!GF390)-1","v":-9.0609158148425073E-2},{"$f":"(Monthly!GG402/Monthly!GG390)-1","v":-9.0609158148425073E-2},{"$f":"(Monthly!GH402/Monthly!GH390)-1","v":{"$error":"#DIV/0!"}},"--","--","--","--"]
["1992-02-01",null,null,null,{"$f":"(Monthly!E408/Monthly!E396)-1","v":{"$error":"#DIV/0!"}},{"$f":"(Monthly!F408/Monthly!F396)-1","v":{"$error":"#DIV/0!"}},{"$f":"(Monthly!G408/Monthly!G396)-1","v":{"$error":"#DIV/0!"}},{"$f":"(Monthly!H408/Monthly!H396)-1","v":{"$error":"#DIV/0!"}},null,null,null,null,null,null,null,null,null,null,null,null,null,null,null,{"$f":"(Monthly!X408-Monthly!X396)","v":0.29999999999999716},{"$f":"(Monthly!Y408/Monthly!Y396)-1","v":-4.1245366490857971E-2},null,null,null,null,null,null,null,null,null,null,null,null,null,{"$f":"(Monthly!AM408/Monthly!AM396)-1","v":2.0433885449779643E-2},{"$f":"(Monthly!AN408/Monthly!AN396)-1","v":3.0344310634285332E-2},"--","--",{"$f":"Monthly!AQ408-Monthly!AQ396","v":13.300000000000004},"--","--",{"$f":"Monthly!AT408-Monthly!AT396","v":8.2999999999999972},{"$f":"Monthly!AU408-Monthly!AU396","v":1.4000000000000057},{"$f":"Monthly!AV408-Monthly!AV396","v":1.4000000000000057},{"$f":"Monthly!AW408-Monthly!AW396","v":4.1000000000000014},{"$f":"Monthly!AX408-Monthly!AX396","v":19.099999999999994},{"$f":"Monthly!AY408-Monthly!AY396","v":1.3999999999999986},{"$f":"Monthly!AZ408-Monthly!AZ396","v":19.600000000000001},{"$f":"Monthly!BA408-Monthly!BA396","v":4.5999999999999943},"--","--",null,null,null,null,null,null,null,null,null,"--","--",null,null,null,null,null,{"$f":"(Monthly!BT408/Monthly!BT396)-1","v":-2.6723695162250705E-2},null,null,null,{"$f":"(Monthly!BX408/Monthly!BX396)-1","v":0.29533678756476678},{"$f":"(Monthly!BY408/Monthly!BY396)-1","v":0.34349355216881605},"--",{"$f":"(Monthly!CA408/Monthly!CA396)-1","v":4.2956878850102687E-2},{"$f":"Monthly!CB408-Monthly!CB396","v":-1.6935089020771787},{"$f":"Monthly!CC408-Monthly!CC396","v":-1.1335089020771765},"--","--",null,"--","--",null,{"$f":"(Monthly!CJ408/Monthly!CJ396)-1","v":0.32572614107883813},{"$f":"(Monthly!CK408/Monthly!CK396)-1","v":6.2911382244341008E-2},{"$f":"(Monthly!CL408/Monthly!CL396)-1","v":0.19350399119185258},{"$f":"(Monthly!CM408/Monthly!CM396)-1","v":0.45960264900662251},{"$f":"(Monthly!CN408/Monthly!CN396)-1","v":4.2402106781201931E-2},{"$f":"(Monthly!CO408/Monthly!CO396)-1","v":0.16327840787502668},{"$f":"(Monthly!CP408/Monthly!CP396)-1","v":-9.1570280376055413E-3},{"$f":"(Monthly!CQ408/Monthly!CQ396)-1","v":1.3139786225633054E-2},{"$f":"(Monthly!CR408/Monthly!CR396)-1","v":9.9856328065637712E-2},null,null,null,null,null,null,null,{"$f":"(Monthly!CZ408/Monthly!CZ396)-1","v":2.8189910979228294E-2},{"$f":"(Monthly!DA408/Monthly!DA396)-1","v":3.7089871611982961E-2},null,null,null,null,null,null,{"$f":"((Monthly!DH408-Monthly!DH396)*60)","v":0},{"$f":"((Monthly!DI408-Monthly!DI396)*100)","v":0},"--",{"$f":"((Monthly!DK408-Monthly!DK396)*100)","v":80.000000000000071},{"$f":"Monthly!DL408-Monthly!DL396","v":-382},null,null,null,{"$f":"Monthly!DP408-Monthly!DP396","v":-422},null,null,null,{"$f":"(Monthly!DT408/Monthly!DT396)-1","v":-8.7293388429752095E-2},{"$f":"Monthly!DU408-Monthly!DU396","v":1.9999999999999991},{"$f":"(Monthly!DV408/Monthly!DV396)-1","v":-1.0364095169430376E-2},{"$f":"(Monthly!DW408/Monthly!DW396)-1","v":-9.7256629048537713E-3},{"$f":"(Monthly!DX408/Monthly!DX396)-1","v":-9.7914547304169819E-3},{"$f":"(Monthly!DY408/Monthly!DY396)-1","v":-1.0015814443858573E-2},{"$f":"(Monthly!DZ408/Monthly!DZ396)-1","v":-9.7201273671863042E-3},{"$f":"(Monthly!EA408/Monthly!EA396)-1","v":-9.6538733223451301E-3},{"$f":"(Monthly!EB408/Monthly!EB396)-1","v":-9.8837209302324869E-3},{"$f":"(Monthly!EC408/Monthly!EC396)-1","v":-9.5551894563425943E-3},null,null,null,null,null,null,null,null,null,null,null,null,null,{"$f":"(Monthly!EQ408/Monthly!EQ396)-1","v":-1.0238907849829393E-2},{"$f":"(Monthly!ER408/Monthly!ER396)-1","v":2.5423728813559254E-2},{"$f":"(Monthly!ES408/Monthly!ES396)-1","v":1.9872813990461147E-2},null,null,null,null,null,{"$f":"((Monthly!EY408-Monthly!EY396)*100)","v":-255.00000000000006},{"$f":"((Monthly!EZ408-Monthly!EZ396)*100)","v":-219.00000000000003},{"$f":"((Monthly!FA408-Monthly!FA396)*100)","v":-54.000000000000092},{"$f":"((Monthly!FB408-Monthly!FB396)*100)","v":-83.999999999999986},"--",{"$f":"((Monthly!FD408-Monthly!FD396)*100)","v":-60.999999999999943},{"$f":"((Monthly!FE408-Monthly!FE396)*100)","v":-210.00000000000006},{"$f":"((Monthly!FF408-Monthly!FF396)*100)","v":-197.99999999999994},{"$f":"((Monthly!FG408-Monthly!FG396)*100)","v":-166},{"$f":"((Monthly!FH408-Monthly!FH396)*100)","v":-88.999999999999972},{"$f":"((Monthly!FI408-Monthly!FI396)*100)","v":-50.999999999999979},null,null,null,null,null,null,{"$f":"(Monthly!FP408/Monthly!FP396)-1","v":2.3898173001991596E-2},{"$f":"(Monthly!FQ408/Monthly!FQ396)-1","v":4.6301955990220023E-2},"--","--",{"$f":"(Monthly!FT408/Monthly!FT396)-1","v":6.9914639924752997E-2},{"$f":"(Monthly!FU408/Monthly!FU396)-1","v":4.2960039726308574E-2},{"$f":"(Monthly!FV408/Monthly!FV396)-1","v":0.11429486619492746},{"$f":"(Monthly!FW408/Monthly!FW396)-1","v":0.35096115498125546},{"$f":"(Monthly!FX408/Monthly!FX396)-1","v":0.19059338255400626},null,null,null,null,null,{"$f":"(Monthly!GD408/Monthly!GD396)-1","v":-7.4453052672611153E-2},{"$f":"(Monthly!GE408/Monthly!GE396)-1","v":-7.6253838280450292E-2},{"$f":"(Monthly!GF408/Monthly!GF396)-1","v":-0.10693084377695461},{"$f":"(Monthly!GG408/Monthly!GG396)-1","v":-0.10693084377695461},{"$f":"(Monthly!GH408/Monthly!GH396)-1","v":{"$error":"#DIV/0!"}},"--","--",{"$f":"(Monthly!GK408/Monthly!GK396)-1","v":0.14888010540184449},"--"]
["1992-03-01",null,null,null,{"$f":"(Monthly!E409/Monthly!E397)-1","v":{"$error":"#DIV/0!"}},{"$f":"(Monthly!F409/Monthly!F397)-1","v":{"$error":"#DIV/0!"}},{"$f":"(Monthly!G409/Monthly!G397)-1","v":{"$error":"#DIV/0!"}},{"$f":"(Monthly!H409/Monthly!H397)-1","v":{"$error":"#DIV/0!"}},null,null,null,null,null,null,null,null,null,null,null,null,null,null,null,{"$f":"(Monthly!X409-Monthly!X397)","v":1.4000000000000057},{"$f":"(Monthly!Y409/Monthly!Y397)-1","v":-4.3938789587001592E-2},null,null,null,null,null,null,null,null,null,null,null,null,null,{"$f":"(Monthly!AM409/Monthly!AM397)-1","v":3.4773693863984212E-2},{"$f":"(Monthly!AN409/Monthly!AN397)-1","v":4.820254682267322E-2},"--","--",{"$f":"Monthly!AQ409-Monthly!AQ397","v":13.899999999999999},"--","--",{"$f":"Monthly!AT409-Monthly!AT397","v":10.100000000000001},{"$f":"Monthly!AU409-Monthly!AU397","v":-1.1999999999999957},{"$f":"Monthly!AV409-Monthly!AV397","v":4},{"$f":"Monthly!AW409-Monthly!AW397","v":0.69999999999999574},{"$f":"Monthly!AX409-Monthly!AX397","v":20.9},{"$f":"Monthly!AY409-Monthly!AY397","v":6.8999999999999986},{"$f":"Monthly!AZ409-Monthly!AZ397","v":18.5},{"$f":"Monthly!BA409-Monthly!BA397","v":6.3999999999999986},"--","--",null,null,null,null,null,null,null,null,null,"--","--",null,null,null,null,null,{"$f":"(Monthly!BT409/Monthly!BT397)-1","v":-3.1675566857442106E-2},null,null,null,{"$f":"(Monthly!BX409/Monthly!BX397)-1","v":0.40825190010857759},{"$f":"(Monthly!BY409/Monthly!BY397)-1","v":0.18770581778265649},"--",{"$f":"(Monthly!CA409/Monthly!CA397)-1","v":-1.9023462270132407E-3},{"$f":"Monthly!CB409-Monthly!CB397","v":-1.0312398761370236},{"$f":"Monthly!CC409-Monthly!CC397","v":-0.61123987613702546},"--","--",null,"--","--",null,{"$f":"(Monthly!CJ409/Monthly!CJ397)-1","v":9.0729783037475364E-2},{"$f":"(Monthly!CK409/Monthly!CK397)-1","v":6.5630258834842525E-2},{"$f":"(Monthly!CL409/Monthly!CL397)-1","v":0.33743842364532006},{"$f":"(Monthly!CM409/Monthly!CM397)-1","v":0.38266666666666671},{"$f":"(Monthly!CN409/Monthly!CN397)-1","v":4.2093074202735226E-2},{"$f":"(Monthly!CO409/Monthly!CO397)-1","v":0.16712502644383331},{"$f":"(Monthly!CP409/Monthly!CP397)-1","v":-1.102205747547047E-2},{"$f":"(Monthly!CQ409/Monthly!CQ397)-1","v":1.3198770069579924E-2},{"$f":"(Monthly!CR409/Monthly!CR397)-1","v":8.0679125979173483E-2},null,null,null,null,null,null,null,{"$f":"(Monthly!CZ409/Monthly!CZ397)-1","v":3.1899109792284719E-2},{"$f":"(Monthly!DA409/Monthly!DA397)-1","v":3.843416370106767E-2},null,null,null,null,null,null,{"$f":"((Monthly!DH409-Monthly!DH397)*60)","v":0},{"$f":"((Monthly!DI409-Monthly!DI397)*100)","v":10.000000000000853},"--",{"$f":"((Monthly!DK409-Monthly!DK397)*100)","v":60.000000000000057},{"$f":"Monthly!DL409-Monthly!DL397","v":-335},null,null,null,{"$f":"Monthly!DP409-Monthly!DP397","v":-209},null,null,null,{"$f":"(Monthly!DT409/Monthly!DT397)-1","v":-0.13277176093060572},{"$f":"Monthly!DU409-Monthly!DU397","v":1.6000000000000005},{"$f":"(Monthly!DV409/Monthly!DV397)-1","v":-4.3458578542326931E-3},{"$f":"(Monthly!DW409/Monthly!DW397)-1","v":-4.7851292905125575E-3},{"$f":"(Monthly!DX409/Monthly!DX397)-1","v":-4.7205919877518765E-3},{"$f":"(Monthly!DY409/Monthly!DY397)-1","v":-4.7518479408659164E-3},{"$f":"(Monthly!DZ409/Monthly!DZ397)-1","v":-4.710632570659401E-3},{"$f":"(Monthly!EA409/Monthly!EA397)-1","v":-4.491725768321464E-3},{"$f":"(Monthly!EB409/Monthly!EB397)-1","v":-5.2508751458576475E-3},{"$f":"(Monthly!EC409/Monthly!EC397)-1","v":-4.9521294156487095E-3},null,null,null,null,null,null,null,null,null,null,null,null,null,{"$f":"(Monthly!EQ409/Monthly!EQ397)-1","v":-8.6058519793463795E-4},{"$f":"(Monthly!ER409/Monthly!ER397)-1","v":2.5365103766333608E-2},{"$f":"(Monthly!ES409/Monthly!ES397)-1","v":2.0634920634920562E-2},null,null,null,null,null,{"$f":"((Monthly!EY409-Monthly!EY397)*100)","v":-250},{"$f":"((Monthly!EZ409-Monthly!EZ397)*100)","v":-214},{"$f":"((Monthly!FA409-Monthly!FA397)*100)","v":-58.000000000000007},{"$f":"((Monthly!FB409-Monthly!FB397)*100)","v":-83.999999999999986},"--",{"$f":"((Monthly!FD409-Monthly!FD397)*100)","v":-56.00000000000005},{"$f":"((Monthly!FE409-Monthly!FE397)*100)","v":-187},{"$f":"((Monthly!FF409-Monthly!FF397)*100)","v":-177.00000000000006},{"$f":"((Monthly!FG409-Monthly!FG397)*100)","v":-140.99999999999991},{"$f":"((Monthly!FH409-Monthly!FH397)*100)","v":-81.999999999999943},{"$f":"((Monthly!FI409-Monthly!FI397)*100)","v":-56.999999999999943},null,null,null,null,null,null,{"$f":"(Monthly!FP409/Monthly!FP397)-1","v":3.076391289319047E-2},{"$f":"(Monthly!FQ409/Monthly!FQ397)-1","v":4.8116595354523284E-2},"--","--",{"$f":"(Monthly!FT409/Monthly!FT397)-1","v":5.3887580673294799E-2},{"$f":"(Monthly!FU409/Monthly!FU397)-1","v":1.6264062783523769E-2},{"$f":"(Monthly!FV409/Monthly!FV397)-1","v":0.14009038947228492},{"$f":"(Monthly!FW409/Monthly!FW397)-1","v":0.47983167402237514},{"$f":"(Monthly!FX409/Monthly!FX397)-1","v":0.22214843101444481},null,null,null,null,null,{"$f":"(Monthly!GD409/Monthly!GD397)-1","v":-4.7532729103726079E-2},{"$f":"(Monthly!GE409/Monthly!GE397)-1","v":-7.5995807127882564E-2},{"$f":"(Monthly!GF409/Monthly!GF397)-1","v":-3.0676815847395456E-2},{"$f":"(Monthly!GG409/Monthly!GG397)-1","v":-3.0676815847395456E-2},{"$f":"(Monthly!GH409/Monthly!GH397)-1","v":{"$error":"#DIV/0!"}},"--","--",{"$f":"(Monthly!GK409/Monthly!GK397)-1","v":-1.5649452269170583E-2},"--"]
["1992-07-01",null,null,null,{"$f":"(Monthly!E413/Monthly!E401)-1","v":{"$error":"#DIV/0!"}},{"$f":"(Monthly!F413/Monthly!F401)-1","v":{"$error":"#DIV/0!"}},{"$f":"(Monthly!G413/Monthly!G401)-1","v":{"$error":"#DIV/0!"}},{"$f":"(Monthly!H413/Monthly!H401)-1","v":{"$error":"#DIV/0!"}},null,null,null,null,null,null,null,null,null,null,null,null,null,null,null,{"$f":"(Monthly!X413-Monthly!X401)","v":0.79999999999999716},{"$f":"(Monthly!Y413/Monthly!Y401)-1","v":-3.8461964278407978E-2},null,null,null,null,null,null,null,null,null,null,null,null,null,{"$f":"(Monthly!AM413/Monthly!AM401)-1","v":3.2556513888867045E-2},{"$f":"(Monthly!AN413/Monthly!AN401)-1","v":4.6450969261104369E-2},"--","--",{"$f":"Monthly!AQ413-Monthly!AQ401","v":3.2999999999999972},"--","--",{"$f":"Monthly!AT413-Monthly!AT401","v":4.2000000000000028},{"$f":"Monthly!AU413-Monthly!AU401","v":2.4000000000000057},{"$f":"Monthly!AV413-Monthly!AV401","v":2.1000000000000014},{"$f":"Monthly!AW413-Monthly!AW401","v":7.7999999999999972},{"$f":"Monthly!AX413-Monthly!AX401","v":3.8999999999999986},{"$f":"Monthly!AY413-Monthly!AY401","v":17.800000000000004},{"$f":"Monthly!AZ413-Monthly!AZ401","v":0.19999999999999574},{"$f":"Monthly!BA413-Monthly!BA401","v":2.8999999999999986},"--","--",null,null,null,null,null,null,null,null,null,"--","--",null,null,null,null,null,{"$f":"(Monthly!BT413/Monthly!BT401)-1","v":-2.7838818238480112E-2},null,null,null,{"$f":"(Monthly!BX413/Monthly!BX401)-1","v":7.1495766698024488E-2},{"$f":"(Monthly!BY413/Monthly!BY401)-1","v":0.11921891058581702},"--",{"$f":"(Monthly!CA413/Monthly!CA401)-1","v":-1.1144247370899474E-2},{"$f":"Monthly!CB413-Monthly!CB401","v":-0.31069421236517059},{"$f":"Monthly!CC413-Monthly!CC401","v":0.3193057876348302},"--","--",null,"--","--",null,{"$f":"(Monthly!CJ413/Monthly!CJ401)-1","v":0.22700587084148727},{"$f":"(Monthly!CK413/Monthly!CK401)-1","v":7.2258497228414154E-2},{"$f":"(Monthly!CL413/Monthly!CL401)-1","v":0.28647058823529403},{"$f":"(Monthly!CM413/Monthly!CM401)-1","v":0.1093573844419391},{"$f":"(Monthly!CN413/Monthly!CN401)-1","v":4.7257803755751837E-2},{"$f":"(Monthly!CO413/Monthly!CO401)-1","v":0.1486364093790884},{"$f":"(Monthly!CP413/Monthly!CP401)-1","v":-7.4119346151798604E-3},{"$f":"(Monthly!CQ413/Monthly!CQ401)-1","v":1.3416544046581214E-2},{"$f":"(Monthly!CR413/Monthly!CR401)-1","v":6.7386409364958322E-2},null,null,null,null,null,null,null,{"$f":"(Monthly!CZ413/Monthly!CZ401)-1","v":3.1571218795888534E-2},{"$f":"(Monthly!DA413/Monthly!DA401)-1","v":3.7245256500351154E-2},null,null,null,null,null,null,{"$f":"((Monthly!DH413-Monthly!DH401)*60)","v":6.0000000000000853},{"$f":"((Monthly!DI413-Monthly!DI401)*100)","v":60.000000000000853},"--",{"$f":"((Monthly!DK413-Monthly!DK401)*100)","v":90.000000000000028},{"$f":"Monthly!DL413-Monthly!DL401","v":-196},null,null,null,{"$f":"Monthly!DP413-Monthly!DP401","v":494},null,null,null,{"$f":"(Monthly!DT413/Monthly!DT401)-1","v":3.9317858834675423E-2},{"$f":"Monthly!DU413-Monthly!DU401","v":1.5999999999999996},{"$f":"(Monthly!DV413/Monthly!DV401)-1","v":2.1766733176129538E-3},{"$f":"(Monthly!DW413/Monthly!DW401)-1","v":7.030827474310497E-3},{"$f":"(Monthly!DX413/Monthly!DX401)-1","v":7.036943955767816E-3},{"$f":"(Monthly!DY413/Monthly!DY401)-1","v":7.0422535211267512E-3},{"$f":"(Monthly!DZ413/Monthly!DZ401)-1","v":7.0351758793971708E-3},{"$f":"(Monthly!EA413/Monthly!EA401)-1","v":7.0604848199575798E-3},{"$f":"(Monthly!EB413/Monthly!EB401)-1","v":6.9726902963394011E-3},{"$f":"(Monthly!EC413/Monthly!EC401)-1","v":7.0153061224489388E-3},null,null,null,null,null,null,null,null,null,null,null,null,null,{"$f":"(Monthly!EQ413/Monthly!EQ401)-1","v":1.5503875968992276E-2},{"$f":"(Monthly!ER413/Monthly!ER401)-1","v":2.5190839694656519E-2},{"$f":"(Monthly!ES413/Monthly!ES401)-1","v":1.8942383583267386E-2},null,null,null,null,null,{"$f":"((Monthly!EY413-Monthly!EY401)*100)","v":-248.00000000000006},{"$f":"((Monthly!EZ413-Monthly!EZ401)*100)","v":-257},{"$f":"((Monthly!FA413-Monthly!FA401)*100)","v":-92.999999999999972},{"$f":"((Monthly!FB413-Monthly!FB401)*100)","v":-105.00000000000007},"--",{"$f":"((Monthly!FD413-Monthly!FD401)*100)","v":-144.99999999999994},{"$f":"((Monthly!FE413-Monthly!FE401)*100)","v":-237},{"$f":"((Monthly!FF413-Monthly!FF401)*100)","v":-270.99999999999994},{"$f":"((Monthly!FG413-Monthly!FG401)*100)","v":-255.99999999999997},{"$f":"((Monthly!FH413-Monthly!FH401)*100)","v":-207.00000000000003},{"$f":"((Monthly!FI413-Monthly!FI401)*100)","v":-142.99999999999997},null,null,null,null,null,null,{"$f":"(Monthly!FP413/Monthly!FP401)-1","v":3.7501087618550422E-2},{"$f":"(Monthly!FQ413/Monthly!FQ401)-1","v":1.6221853872944392E-2},"--","--",{"$f":"(Monthly!FT413/Monthly!FT401)-1","v":-1.4468380274316961E-2},{"$f":"(Monthly!FU413/Monthly!FU401)-1","v":-8.5628063652297026E-2},{"$f":"(Monthly!FV413/Monthly!FV401)-1","v":4.8434038486599107E-2},{"$f":"(Monthly!FW413/Monthly!FW401)-1","v":0.38087359364659168},{"$f":"(Monthly!FX413/Monthly!FX401)-1","v":0.15364142269537862},null,null,null,null,null,{"$f":"(Monthly!GD413/Monthly!GD401)-1","v":1.5826330532212829E-2},{"$f":"(Monthly!GE413/Monthly!GE401)-1","v":4.3298969072165017E-2},{"$f":"(Monthly!GF413/Monthly!GF401)-1","v":6.610633676456712E-2},{"$f":"(Monthly!GG413/Monthly!GG401)-1","v":6.610633676456712E-2},{"$f":"(Monthly!GH413/Monthly!GH401)-1","v":{"$error":"#DIV/0!"}},"--","--",{"$f":"(Monthly!GK413/Monthly!GK401)-1","v":2.7286135693215252E-2},"--"]
["1993-02-01",null,null,null,{"$f":"(Monthly!E420/Monthly!E408)-1","v":{"$error":"#DIV/0!"}},{"$f":"(Monthly!F420/Monthly!F408)-1","v":{"$error":"#DIV/0!"}},{"$f":"(Monthly!G420/Monthly!G408)-1","v":{"$error":"#DIV/0!"}},{"$f":"(Monthly!H420/Monthly!H408)-1","v":{"$error":"#DIV/0!"}},null,null,null,null,null,null,null,null,null,null,null,null,null,null,null,{"$f":"(Monthly!X420-Monthly!X408)","v":1.9000000000000057},{"$f":"(Monthly!Y420/Monthly!Y408)-1","v":-2.6621733726570507E-2},null,null,null,null,null,null,null,null,null,null,null,null,null,{"$f":"(Monthly!AM420/Monthly!AM408)-1","v":4.803648918113268E-2},{"$f":"(Monthly!AN420/Monthly!AN408)-1","v":5.4062897594583825E-2},{"$f":"(Monthly!AO420/Monthly!AO408)-1","v":3.5224089289860983E-2},{"$f":"((Monthly!AP420-Monthly!AP408)*100)","v":-6.0000000000000053},{"$f":"Monthly!AQ420-Monthly!AQ408","v":2.5},"--","--",{"$f":"Monthly!AT420-Monthly!AT408","v":3.1000000000000014},{"$f":"Monthly!AU420-Monthly!AU408","v":-1.5},{"$f":"Monthly!AV420-Monthly!AV408","v":2.2999999999999972},{"$f":"Monthly!AW420-Monthly!AW408","v":-1.3999999999999986},{"$f":"Monthly!AX420-Monthly!AX408","v":1.4000000000000057},{"$f":"Monthly!AY420-Monthly!AY408","v":8},{"$f":"Monthly!AZ420-Monthly!AZ408","v":4.7999999999999972},{"$f":"Monthly!BA420-Monthly!BA408","v":2.4000000000000057},"--",{"$f":"(Monthly!BC420/Monthly!BC408)-1","v":9.1709247718344766E-2},null,null,null,null,null,null,null,null,null,{"$f":"(Monthly!BM420/Monthly!BM408)-1","v":5.7896018507244573E-2},{"$f":"(Monthly!BN420/Monthly!BN408)-1","v":6.126162830175863E-2},null,null,null,null,null,{"$f":"(Monthly!BT420/Monthly!BT408)-1","v":-7.5741379076682547E-3},null,null,null,{"$f":"(Monthly!BX420/Monthly!BX408)-1","v":-3.2000000000000028E-2},{"$f":"(Monthly!BY420/Monthly!BY408)-1","v":1.7452006980802626E-3},"--",{"$f":"(Monthly!CA420/Monthly!CA408)-1","v":0},{"$f":"Monthly!CB420-Monthly!CB408","v":0.12776214883042236},{"$f":"Monthly!CC420-Monthly!CC408","v":-8.2237851169578491E-2},"--","--",null,"--","--",null,{"$f":"(Monthly!CJ420/Monthly!CJ408)-1","v":-5.477308294209704E-2},{"$f":"(Monthly!CK420/Monthly!CK408)-1","v":5.1277210338512624E-2},{"$f":"(Monthly!CL420/Monthly!CL408)-1","v":-4.151291512915134E-2},{"$f":"(Monthly!CM420/Monthly!CM408)-1","v":-3.5390199637023612E-2},{"$f":"(Monthly!CN420/Monthly!CN408)-1","v":2.514323523662032E-2},{"$f":"(Monthly!CO420/Monthly!CO408)-1","v":9.3910963944076498E-2},{"$f":"(Monthly!CP420/Monthly!CP408)-1","v":1.8031230037901969E-2},{"$f":"(Monthly!CQ420/Monthly!CQ408)-1","v":1.3587892643512678E-2},{"$f":"(Monthly!CR420/Monthly!CR408)-1","v":6.3978781314016908E-2},null,null,null,null,null,null,null,{"$f":"(Monthly!CZ420/Monthly!CZ408)-1","v":3.2467532467532534E-2},{"$f":"(Monthly!DA420/Monthly!DA408)-1","v":3.5763411279229551E-2},null,null,null,null,null,null,{"$f":"((Monthly!DH420-Monthly!DH408)*60)","v":11.999999999999744},{"$f":"((Monthly!DI420-Monthly!DI408)*100)","v":0},"--",{"$f":"((Monthly!DK420-Monthly!DK408)*100)","v":-30.000000000000071},{"$f":"Monthly!DL420-Monthly!DL408","v":-24},null,null,null,{"$f":"Monthly!DP420-Monthly!DP408","v":1733},null,null,null,{"$f":"(Monthly!DT420/Monthly!DT408)-1","v":-0.24674589700056593},{"$f":"Monthly!DU420-Monthly!DU408","v":0.30000000000000071},{"$f":"(Monthly!DV420/Monthly!DV408)-1","v":3.506055914761852E-2},{"$f":"(Monthly!DW420/Monthly!DW408)-1","v":3.5022699898082044E-2},{"$f":"(Monthly!DX420/Monthly!DX408)-1","v":3.4930011557724239E-2},{"$f":"(Monthly!DY420/Monthly!DY408)-1","v":3.514376996805102E-2},{"$f":"(Monthly!DZ420/Monthly!DZ408)-1","v":3.4862074801150778E-2},{"$f":"(Monthly!EA420/Monthly!EA408)-1","v":3.4950071326676158E-2},{"$f":"(Monthly!EB420/Monthly!EB408)-1","v":3.4644744568408603E-2},{"$f":"(Monthly!EC420/Monthly!EC408)-1","v":3.526280771789736E-2},null,null,null,null,null,null,null,null,null,null,null,null,null,{"$f":"(Monthly!EQ420/Monthly!EQ408)-1","v":2.0689655172413834E-2},{"$f":"(Monthly!ER420/Monthly!ER408)-1","v":2.1036814425244188E-2},{"$f":"(Monthly!ES420/Monthly!ES408)-1","v":1.8706157443491689E-2},null,null,null,null,null,{"$f":"((Monthly!EY420-Monthly!EY408)*100)","v":-50},{"$f":"((Monthly!EZ420-Monthly!EZ408)*100)","v":-102.99999999999999},{"$f":"((Monthly!FA420-Monthly!FA408)*100)","v":-57.999999999999915},{"$f":"((Monthly!FB420-Monthly!FB408)*100)","v":-83.999999999999986},"--",{"$f":"((Monthly!FD420-Monthly!FD408)*100)","v":-108},{"$f":"((Monthly!FE420-Monthly!FE408)*100)","v":-90.999999999999972},{"$f":"((Monthly!FF420-Monthly!FF408)*100)","v":-89.999999999999986},{"$f":"((Monthly!FG420-Monthly!FG408)*100)","v":-111.00000000000003},{"$f":"((Monthly!FH420-Monthly!FH408)*100)","v":-115.00000000000003},{"$f":"((Monthly!FI420-Monthly!FI408)*100)","v":-108},null,null,null,null,null,null,{"$f":"(Monthly!FP420/Monthly!FP408)-1","v":6.5708245243128793E-2},{"$f":"(Monthly!FQ420/Monthly!FQ408)-1","v":5.6557616474368411E-2},"--","--",{"$f":"(Monthly!FT420/Monthly!FT408)-1","v":9.1227931018527775E-2},{"$f":"(Monthly!FU420/Monthly!FU408)-1","v":4.7077957379987323E-2},{"$f":"(Monthly!FV420/Monthly!FV408)-1","v":0.11329901217791249},{"$f":"(Monthly!FW420/Monthly!FW408)-1","v":9.9604416366534831E-2},{"$f":"(Monthly!FX420/Monthly!FX408)-1","v":0.14511560251110089},null,null,null,null,null,{"$f":"(Monthly!GD420/Monthly!GD408)-1","v":5.5698868123190248E-2},{"$f":"(Monthly!GE420/Monthly!GE408)-1","v":2.3268698060941784E-2},{"$f":"(Monthly!GF420/Monthly!GF408)-1","v":2.7014743061670732E-2},{"$f":"(Monthly!GG420/Monthly!GG408)-1","v":2.7014743061670732E-2},{"$f":"(Monthly!GH420/Monthly!GH408)-1","v":{"$error":"#DIV/0!"}},"--","--",{"$f":"(Monthly!GK420/Monthly!GK408)-1","v":4.3577981651376163E-2},"--"]
["1993-05-01",null,null,null,{"$f":"(Monthly!E423/Monthly!E411)-1","v":{"$error":"#DIV/0!"}},{"$f":"(Monthly!F423/Monthly!F411)-1","v":{"$error":"#DIV/0!"}},{"$f":"(Monthly!G423/Monthly!G411)-1","v":{"$error":"#DIV/0!"}},{"$f":"(Monthly!H423/Monthly!H411)-1","v":{"$error":"#DIV/0!"}},null,null,null,null,null,null,null,null,null,null,null,null,null,null,null,{"$f":"(Monthly!X423-Monthly!X411)","v":0.39999999999999147},{"$f":"(Monthly!Y423/Monthly!Y411)-1","v":-2.359037336494374E-2},null,null,null,null,null,null,null,null,null,null,null,null,null,{"$f":"(Monthly!AM423/Monthly!AM411)-1","v":2.6797134327260608E-2},{"$f":"(Monthly!AN423/Monthly!AN411)-1","v":3.3799393677479195E-2},{"$f":"(Monthly!AO423/Monthly!AO411)-1","v":3.9620372756162592E-2},{"$f":"((Monthly!AP423-Monthly!AP411)*100)","v":-3.0000000000000027},{"$f":"Monthly!AQ423-Monthly!AQ411","v":-4.5},"--","--",{"$f":"Monthly!AT423-Monthly!AT411","v":-5.8999999999999986},{"$f":"Monthly!AU423-Monthly!AU411","v":-2},{"$f":"Monthly!AV423-Monthly!AV411","v":-6.5},{"$f":"Monthly!AW423-Monthly!AW411","v":-2.2000000000000028},{"$f":"Monthly!AX423-Monthly!AX411","v":-5.6999999999999957},{"$f":"Monthly!AY423-Monthly!AY411","v":-4.6000000000000014},{"$f":"Monthly!AZ423-Monthly!AZ411","v":-6.2000000000000028},{"$f":"Monthly!BA423-Monthly!BA411","v":1.5},"--",{"$f":"(Monthly!BC423/Monthly!BC411)-1","v":2.8741408818016456E-2},null,null,null,null,null,null,null,null,null,{"$f":"(Monthly!BM423/Monthly!BM411)-1","v":7.7455816733789318E-2},{"$f":"(Monthly!BN423/Monthly!BN411)-1","v":7.7904908901788472E-2},null,null,null,null,null,{"$f":"(Monthly!BT423/Monthly!BT411)-1","v":1.6684922198969776E-2},null,null,null,{"$f":"(Monthly!BX423/Monthly!BX411)-1","v":3.7891268533772671E-2},{"$f":"(Monthly!BY423/Monthly!BY411)-1","v":5.3030303030302983E-2},"--",{"$f":"(Monthly!CA423/Monthly!CA411)-1","v":0.10513219284603426},{"$f":"Monthly!CB423-Monthly!CB411","v":-0.30241055950065387},{"$f":"Monthly!CC423-Monthly!CC411","v":-0.6524105595006553},"--","--",null,"--","--",null,{"$f":"(Monthly!CJ423/Monthly!CJ411)-1","v":0.12996389891696758},{"$f":"(Monthly!CK423/Monthly!CK411)-1","v":4.5099530638368801E-2},{"$f":"(Monthly!CL423/Monthly!CL411)-1","v":-0.14148841354723707},{"$f":"(Monthly!CM423/Monthly!CM411)-1","v":8.6705202312138629E-2},{"$f":"(Monthly!CN423/Monthly!CN411)-1","v":1.5135038507947396E-2},{"$f":"(Monthly!CO423/Monthly!CO411)-1","v":6.5896980461811694E-2},{"$f":"(Monthly!CP423/Monthly!CP411)-1","v":2.7694733610315714E-2},{"$f":"(Monthly!CQ423/Monthly!CQ411)-1","v":1.3246971145404629E-2},{"$f":"(Monthly!CR423/Monthly!CR411)-1","v":7.3371787649422204E-2},null,null,null,null,null,null,null,{"$f":"(Monthly!CZ423/Monthly!CZ411)-1","v":3.2211882605583497E-2},{"$f":"(Monthly!DA423/Monthly!DA411)-1","v":3.4059945504087086E-2},null,null,null,null,null,null,{"$f":"((Monthly!DH423-Monthly!DH411)*60)","v":0},{"$f":"((Monthly!DI423-Monthly!DI411)*100)","v":-19.999999999998863},"--",{"$f":"((Monthly!DK423-Monthly!DK411)*100)","v":-50},{"$f":"Monthly!DL423-Monthly!DL411","v":-69},null,null,null,{"$f":"Monthly!DP423-Monthly!DP411","v":1919},null,null,null,{"$f":"(Monthly!DT423/Monthly!DT411)-1","v":-0.17680881648298996},{"$f":"Monthly!DU423-Monthly!DU411","v":-0.70000000000000107},{"$f":"(Monthly!DV423/Monthly!DV411)-1","v":3.6939791760977725E-2},{"$f":"(Monthly!DW423/Monthly!DW411)-1","v":3.8142922166590987E-2},{"$f":"(Monthly!DX423/Monthly!DX411)-1","v":3.8057908711594424E-2},{"$f":"(Monthly!DY423/Monthly!DY411)-1","v":3.8242894056847554E-2},{"$f":"(Monthly!DZ423/Monthly!DZ411)-1","v":3.799799129561432E-2},{"$f":"(Monthly!EA423/Monthly!EA411)-1","v":3.833490122295391E-2},{"$f":"(Monthly!EB423/Monthly!EB411)-1","v":3.716608594657389E-2},{"$f":"(Monthly!EC423/Monthly!EC411)-1","v":3.836150845253572E-2},null,null,null,null,null,null,null,null,null,null,null,null,null,{"$f":"(Monthly!EQ423/Monthly!EQ411)-1","v":2.1331058020477744E-2},{"$f":"(Monthly!ER423/Monthly!ER411)-1","v":1.7125837676842837E-2},{"$f":"(Monthly!ES423/Monthly!ES411)-1","v":1.7054263565891459E-2},null,null,null,null,null,{"$f":"((Monthly!EY423-Monthly!EY411)*100)","v":-50},{"$f":"((Monthly!EZ423-Monthly!EZ411)*100)","v":-81.999999999999986},{"$f":"((Monthly!FA423-Monthly!FA411)*100)","v":-84.999999999999972},{"$f":"((Monthly!FB423-Monthly!FB411)*100)","v":-92},"--",{"$f":"((Monthly!FD423-Monthly!FD411)*100)","v":-120.00000000000001},{"$f":"((Monthly!FE423-Monthly!FE411)*100)","v":-67},{"$f":"((Monthly!FF423-Monthly!FF411)*100)","v":-83.000000000000057},{"$f":"((Monthly!FG423-Monthly!FG411)*100)","v":-125.00000000000004},{"$f":"((Monthly!FH423-Monthly!FH411)*100)","v":-149.00000000000003},{"$f":"((Monthly!FI423-Monthly!FI411)*100)","v":-134.99999999999997},null,null,null,null,null,null,{"$f":"(Monthly!FP423/Monthly!FP411)-1","v":5.8960887332165868E-2},{"$f":"(Monthly!FQ423/Monthly!FQ411)-1","v":4.0049291435612977E-2},"--","--",{"$f":"(Monthly!FT423/Monthly!FT411)-1","v":6.2044505789592419E-2},{"$f":"(Monthly!FU423/Monthly!FU411)-1","v":-2.5489166253568341E-3},{"$f":"(Monthly!FV423/Monthly!FV411)-1","v":0.13405113448747574},{"$f":"(Monthly!FW423/Monthly!FW411)-1","v":0.28178434651275697},{"$f":"(Monthly!FX423/Monthly!FX411)-1","v":0.10159994599338429},null,null,null,null,null,{"$f":"(Monthly!GD423/Monthly!GD411)-1","v":-4.7755491881566359E-2},{"$f":"(Monthly!GE423/Monthly!GE411)-1","v":-6.9381598793363475E-2},{"$f":"(Monthly!GF423/Monthly!GF411)-1","v":-3.7597390831671795E-3},{"$f":"(Monthly!GG423/Monthly!GG411)-1","v":-3.7597390831671795E-3},{"$f":"(Monthly!GH423/Monthly!GH411)-1","v":{"$error":"#DIV/0!"}},"--","--",{"$f":"(Monthly!GK423/Monthly!GK411)-1","v":8.114725428471492E-2},"--"]
["1993-09-01",null,null,null,{"$f":"(Monthly!E427/Monthly!E415)-1","v":{"$error":"#DIV/0!"}},{"$f":"(Monthly!F427/Monthly!F415)-1","v":{"$error":"#DIV/0!"}},{"$f":"(Monthly!G427/Monthly!G415)-1","v":{"$error":"#DIV/0!"}},{"$f":"(Monthly!H427/Monthly!H415)-1","v":{"$error":"#DIV/0!"}},null,null,null,null,null,null,null,null,null,null,null,null,null,null,null,{"$f":"(Monthly!X427-Monthly!X415)","v":0.79999999999999716},{"$f":"(Monthly!Y427/Monthly!Y415)-1","v":-2.1724828090875836E-2},null,null,null,null,null,null,null,null,null,null,null,null,null,{"$f":"(Monthly!AM427/Monthly!AM415)-1","v":2.8824469299246758E-2},{"$f":"(Monthly!AN427/Monthly!AN415)-1","v":3.0641287339742584E-2},{"$f":"(Monthly!AO427/Monthly!AO415)-1","v":3.3238630527334667E-2},{"$f":"((Monthly!AP427-Monthly!AP415)*100)","v":-1.0000000000000009},{"$f":"Monthly!AQ427-Monthly!AQ415","v":1.0999999999999943},"--","--",{"$f":"Monthly!AT427-Monthly!AT415","v":-0.60000000000000142},{"$f":"Monthly!AU427-Monthly!AU415","v":-4.0999999999999943},{"$f":"Monthly!AV427-Monthly!AV415","v":3.1999999999999957},{"$f":"Monthly!AW427-Monthly!AW415","v":3.9000000000000057},{"$f":"Monthly!AX427-Monthly!AX415","v":1.5},{"$f":"Monthly!AY427-Monthly!AY415","v":-2.6000000000000014},{"$f":"Monthly!AZ427-Monthly!AZ415","v":1.3000000000000043},{"$f":"Monthly!BA427-Monthly!BA415","v":9.9999999999994316E-2},"--",{"$f":"(Monthly!BC427/Monthly!BC415)-1","v":4.459326583220391E-2},null,null,null,null,null,null,null,null,null,{"$f":"(Monthly!BM427/Monthly!BM415)-1","v":7.3155182489507586E-2},{"$f":"(Monthly!BN427/Monthly!BN415)-1","v":7.0054720010485294E-2},null,null,null,null,null,{"$f":"(Monthly!BT427/Monthly!BT415)-1","v":5.2930950928738785E-2},null,null,null,{"$f":"(Monthly!BX427/Monthly!BX415)-1","v":0.13237774030354132},{"$f":"(Monthly!BY427/Monthly!BY415)-1","v":0.12298025134649904},"--",{"$f":"(Monthly!CA427/Monthly!CA415)-1","v":4.2854964160439213E-2},{"$f":"Monthly!CB427-Monthly!CB415","v":-1.1287035647958952},{"$f":"Monthly!CC427-Monthly!CC415","v":-1.7587035647958942},"--","--",null,"--","--",null,{"$f":"(Monthly!CJ427/Monthly!CJ415)-1","v":0.11692307692307691},{"$f":"(Monthly!CK427/Monthly!CK415)-1","v":4.0498385202583531E-2},{"$f":"(Monthly!CL427/Monthly!CL415)-1","v":-0.19659639319278632},{"$f":"(Monthly!CM427/Monthly!CM415)-1","v":0.1162109375},{"$f":"(Monthly!CN427/Monthly!CN415)-1","v":1.2414880014273377E-2},{"$f":"(Monthly!CO427/Monthly!CO415)-1","v":4.0360669815371342E-2},{"$f":"(Monthly!CP427/Monthly!CP415)-1","v":5.0492571284464383E-2},{"$f":"(Monthly!CQ427/Monthly!CQ415)-1","v":1.2886918166710615E-2},{"$f":"(Monthly!CR427/Monthly!CR415)-1","v":9.6168418278258949E-2},null,null,null,null,null,null,null,{"$f":"(Monthly!CZ427/Monthly!CZ415)-1","v":2.7639971651311157E-2},{"$f":"(Monthly!DA427/Monthly!DA415)-1","v":3.2410533423362642E-2},null,null,null,null,null,null,{"$f":"((Monthly!DH427-Monthly!DH415)*60)","v":6.0000000000000853},{"$f":"((Monthly!DI427-Monthly!DI415)*100)","v":-29.999999999999716},"--",{"$f":"((Monthly!DK427-Monthly!DK415)*100)","v":-89.999999999999943},{"$f":"Monthly!DL427-Monthly!DL415","v":8},null,null,null,{"$f":"Monthly!DP427-Monthly!DP415","v":2487},null,null,null,{"$f":"(Monthly!DT427/Monthly!DT415)-1","v":-0.18705035971223016},{"$f":"Monthly!DU427-Monthly!DU415","v":-0.29999999999999893},{"$f":"(Monthly!DV427/Monthly!DV415)-1","v":4.9473778897184406E-2},{"$f":"(Monthly!DW427/Monthly!DW415)-1","v":4.8941092721124679E-2},{"$f":"(Monthly!DX427/Monthly!DX415)-1","v":4.8865186655091319E-2},{"$f":"(Monthly!DY427/Monthly!DY415)-1","v":4.8985650667986214E-2},{"$f":"(Monthly!DZ427/Monthly!DZ415)-1","v":4.8824892419728538E-2},{"$f":"(Monthly!EA427/Monthly!EA415)-1","v":4.9302325581395356E-2},{"$f":"(Monthly!EB427/Monthly!EB415)-1","v":4.7646383467279119E-2},{"$f":"(Monthly!EC427/Monthly!EC415)-1","v":4.9133858267716546E-2},null,null,null,null,null,null,null,null,null,null,null,null,null,{"$f":"(Monthly!EQ427/Monthly!EQ415)-1","v":5.9322033898305815E-3},{"$f":"(Monthly!ER427/Monthly!ER415)-1","v":2.2288261515601704E-3},{"$f":"(Monthly!ES427/Monthly!ES415)-1","v":1.7774343122101799E-2},null,null,null,null,null,{"$f":"((Monthly!EY427-Monthly!EY415)*100)","v":0},{"$f":"((Monthly!EZ427-Monthly!EZ415)*100)","v":-13.000000000000034},{"$f":"((Monthly!FA427-Monthly!FA415)*100)","v":-125.99999999999997},{"$f":"((Monthly!FB427-Monthly!FB415)*100)","v":-127.99999999999994},"--",{"$f":"((Monthly!FD427-Monthly!FD415)*100)","v":-100},{"$f":"((Monthly!FE427-Monthly!FE415)*100)","v":4.0000000000000036},{"$f":"((Monthly!FF427-Monthly!FF415)*100)","v":17.999999999999972},{"$f":"((Monthly!FG427-Monthly!FG415)*100)","v":-4.0000000000000036},{"$f":"((Monthly!FH427-Monthly!FH415)*100)","v":-64.999999999999943},{"$f":"((Monthly!FI427-Monthly!FI415)*100)","v":-105.99999999999996},null,null,null,null,null,null,{"$f":"(Monthly!FP427/Monthly!FP415)-1","v":8.0981595092024516E-2},{"$f":"(Monthly!FQ427/Monthly!FQ415)-1","v":5.3898415927917442E-2},"--","--",{"$f":"(Monthly!FT427/Monthly!FT415)-1","v":0.11239029379318888},{"$f":"(Monthly!FU427/Monthly!FU415)-1","v":5.783168627600177E-2},{"$f":"(Monthly!FV427/Monthly!FV415)-1","v":0.12677117877600241},{"$f":"(Monthly!FW427/Monthly!FW415)-1","v":0.20945480891142898},{"$f":"(Monthly!FX427/Monthly!FX415)-1","v":0.15460318515809424},null,null,null,null,null,{"$f":"(Monthly!GD427/Monthly!GD415)-1","v":-0.2003470002739477},{"$f":"(Monthly!GE427/Monthly!GE415)-1","v":-0.2101628021706955},{"$f":"(Monthly!GF427/Monthly!GF415)-1","v":-6.7301796077246512E-2},{"$f":"(Monthly!GG427/Monthly!GG415)-1","v":-2.661678056930572E-2},{"$f":"(Monthly!GH427/Monthly!GH415)-1","v":{"$error":"#DIV/0!"}},"--","--",{"$f":"(Monthly!GK427/Monthly!GK415)-1","v":0.10511159107271428},"--"]
["1994-02-01",null,null,null,{"$f":"(Monthly!E432/Monthly!E420)-1","v":{"$error":"#DIV/0!"}},{"$f":"(Monthly!F432/Monthly!F420)-1","v":{"$error":"#DIV/0!"}},{"$f":"(Monthly!G432/Monthly!G420)-1","v":{"$error":"#DIV/0!"}},{"$f":"(Monthly!H432/Monthly!H420)-1","v":{"$error":"#DIV/0!"}},null,null,null,null,null,null,null,null,null,null,null,null,null,null,null,{"$f":"(Monthly!X432-Monthly!X420)","v":0.70000000000000284},{"$f":"(Monthly!Y432/Monthly!Y420)-1","v":-9.2204063139081915E-3},null,null,null,null,null,null,null,null,null,null,null,null,null,{"$f":"(Monthly!AM432/Monthly!AM420)-1","v":2.8675212911146497E-2},{"$f":"(Monthly!AN432/Monthly!AN420)-1","v":3.1293383148941034E-2},{"$f":"(Monthly!AO432/Monthly!AO420)-1","v":3.5281975408809174E-2},{"$f":"((Monthly!AP432-Monthly!AP420)*100)","v":-3.0000000000000027},{"$f":"Monthly!AQ432-Monthly!AQ420","v":1.2999999999999972},{"$f":"Monthly!AR432-Monthly!AR420","v":0.5},"--",{"$f":"Monthly!AT432-Monthly!AT420","v":1.7000000000000028},{"$f":"Monthly!AU432-Monthly!AU420","v":5.0999999999999943},{"$f":"Monthly!AV432-Monthly!AV420","v":2.3999999999999986},{"$f":"Monthly!AW432-Monthly!AW420","v":2},{"$f":"Monthly!AX432-Monthly!AX420","v":2.5},{"$f":"Monthly!AY432-Monthly!AY420","v":9.1000000000000014},{"$f":"Monthly!AZ432-Monthly!AZ420","v":-3.2999999999999972},{"$f":"Monthly!BA432-Monthly!BA420","v":5.2999999999999972},"--",{"$f":"(Monthly!BC432/Monthly!BC420)-1","v":0.12915967750662838},null,null,null,null,null,null,null,null,null,{"$f":"(Monthly!BM432/Monthly!BM420)-1","v":8.2332968866893008E-2},{"$f":"(Monthly!BN432/Monthly!BN420)-1","v":8.5481022701098031E-2},null,null,null,null,null,{"$f":"(Monthly!BT432/Monthly!BT420)-1","v":8.9526025247142815E-2},null,null,null,{"$f":"(Monthly!BX432/Monthly!BX420)-1","v":0.10495867768595035},{"$f":"(Monthly!BY432/Monthly!BY420)-1","v":0.10540069686411146},"--",{"$f":"(Monthly!CA432/Monthly!CA420)-1","v":0.19656638840762319},{"$f":"Monthly!CB432-Monthly!CB420","v":-1.2310299763130015},{"$f":"Monthly!CC432-Monthly!CC420","v":-1.5810299763130011},"--","--",null,"--","--",null,{"$f":"(Monthly!CJ432/Monthly!CJ420)-1","v":0.13576158940397343},{"$f":"(Monthly!CK432/Monthly!CK420)-1","v":4.0353429233338733E-2},{"$f":"(Monthly!CL432/Monthly!CL420)-1","v":-0.26924927815206934},{"$f":"(Monthly!CM432/Monthly!CM420)-1","v":6.5851364063969964E-2},{"$f":"(Monthly!CN432/Monthly!CN420)-1","v":1.3392791656275937E-2},{"$f":"(Monthly!CO432/Monthly!CO420)-1","v":3.1531152778945692E-2},{"$f":"(Monthly!CP432/Monthly!CP420)-1","v":8.1436367810732158E-2},{"$f":"(Monthly!CQ432/Monthly!CQ420)-1","v":1.2374526396286001E-2},{"$f":"(Monthly!CR432/Monthly!CR420)-1","v":0.11244754988249972},null,null,null,null,null,null,null,{"$f":"(Monthly!CZ432/Monthly!CZ420)-1","v":2.515723270440251E-2},{"$f":"(Monthly!DA432/Monthly!DA420)-1","v":2.788844621513964E-2},null,null,null,null,null,null,{"$f":"((Monthly!DH432-Monthly!DH420)*60)","v":-5.9999999999996589},{"$f":"((Monthly!DI432-Monthly!DI420)*100)","v":39.999999999999147},"--",{"$f":"((Monthly!DK432-Monthly!DK420)*100)","v":-50},{"$f":"Monthly!DL432-Monthly!DL420","v":57},null,null,null,{"$f":"Monthly!DP432-Monthly!DP420","v":2736},null,null,null,{"$f":"(Monthly!DT432/Monthly!DT420)-1","v":0.10668670172802397},{"$f":"Monthly!DU432-Monthly!DU420","v":0.69999999999999929},{"$f":"(Monthly!DV432/Monthly!DV420)-1","v":4.5398557100123194E-2},{"$f":"(Monthly!DW432/Monthly!DW420)-1","v":4.4579715334348125E-2},{"$f":"(Monthly!DX432/Monthly!DX420)-1","v":4.3429705918848427E-2},{"$f":"(Monthly!DY432/Monthly!DY420)-1","v":5.2469135802469147E-2},{"$f":"(Monthly!DZ432/Monthly!DZ420)-1","v":4.0556009811937743E-2},{"$f":"(Monthly!EA432/Monthly!EA420)-1","v":4.1121065931541523E-2},{"$f":"(Monthly!EB432/Monthly!EB420)-1","v":3.916004540295126E-2},{"$f":"(Monthly!EC432/Monthly!EC420)-1","v":4.7557840616966551E-2},null,null,null,null,null,null,null,null,null,null,null,null,null,{"$f":"(Monthly!EQ432/Monthly!EQ420)-1","v":7.6013513513513153E-3},{"$f":"(Monthly!ER432/Monthly!ER420)-1","v":2.9433406916850036E-3},{"$f":"(Monthly!ES432/Monthly!ES420)-1","v":1.8362662586075107E-2},null,null,null,null,null,{"$f":"((Monthly!EY432-Monthly!EY420)*100)","v":0},{"$f":"((Monthly!EZ432-Monthly!EZ420)*100)","v":22.000000000000021},{"$f":"((Monthly!FA432-Monthly!FA420)*100)","v":-62.999999999999986},{"$f":"((Monthly!FB432-Monthly!FB420)*100)","v":-63.000000000000078},"--",{"$f":"((Monthly!FD432-Monthly!FD420)*100)","v":-52.999999999999936},{"$f":"((Monthly!FE432-Monthly!FE420)*100)","v":31.999999999999986},{"$f":"((Monthly!FF432-Monthly!FF420)*100)","v":48},{"$f":"((Monthly!FG432-Monthly!FG420)*100)","v":37.000000000000014},{"$f":"((Monthly!FH432-Monthly!FH420)*100)","v":-2.9999999999999361},{"$f":"((Monthly!FI432-Monthly!FI420)*100)","v":-29.000000000000004},null,null,null,null,null,null,{"$f":"(Monthly!FP432/Monthly!FP420)-1","v":6.5227741628312907E-2},{"$f":"(Monthly!FQ432/Monthly!FQ420)-1","v":0.50756816532467086},"--","--",{"$f":"(Monthly!FT432/Monthly!FT420)-1","v":9.6023589757257444E-2},{"$f":"(Monthly!FU432/Monthly!FU420)-1","v":-4.3351179532471473E-3},{"$f":"(Monthly!FV432/Monthly!FV420)-1","v":6.5056394727885269E-2},{"$f":"(Monthly!FW432/Monthly!FW420)-1","v":0.34192439862542945},{"$f":"(Monthly!FX432/Monthly!FX420)-1","v":0.20792244693297679},null,null,null,null,null,{"$f":"(Monthly!GD432/Monthly!GD420)-1","v":-0.26295317408866514},{"$f":"(Monthly!GE432/Monthly!GE420)-1","v":-0.25284244721169458},{"$f":"(Monthly!GF432/Monthly!GF420)-1","v":-6.9489775220814565E-2},{"$f":"(Monthly!GG432/Monthly!GG420)-1","v":2.3399900425955744E-2},{"$f":"(Monthly!GH432/Monthly!GH420)-1","v":{"$error":"#DIV/0!"}},"--","--",{"$f":"(Monthly!GK432/Monthly!GK420)-1","v":0.13296703296703294},"--"]
["1994-08-01",null,null,null,{"$f":"(Monthly!E438/Monthly!E426)-1","v":{"$error":"#DIV/0!"}},{"$f":"(Monthly!F438/Monthly!F426)-1","v":{"$error":"#DIV/0!"}},{"$f":"(Monthly!G438/Monthly!G426)-1","v":{"$error":"#DIV/0!"}},{"$f":"(Monthly!H438/Monthly!H426)-1","v":{"$error":"#DIV/0!"}},null,null,null,null,null,null,null,null,null,null,null,null,null,null,null,{"$f":"(Monthly!X438-Monthly!X426)","v":2.7000000000000028},{"$f":"(Monthly!Y438/Monthly!Y426)-1","v":5.8492628503889588E-2},null,null,null,null,null,null,null,null,null,null,null,null,null,{"$f":"(Monthly!AM438/Monthly!AM426)-1","v":6.2210947438503972E-2},{"$f":"(Monthly!AN438/Monthly!AN426)-1","v":7.5931991251255937E-2},{"$f":"(Monthly!AO438/Monthly!AO426)-1","v":6.0261254326327007E-2},{"$f":"((Monthly!AP438-Monthly!AP426)*100)","v":-4.0000000000000036},{"$f":"Monthly!AQ438-Monthly!AQ426","v":7.2999999999999972},{"$f":"Monthly!AR438-Monthly!AR426","v":9.5},"--",{"$f":"Monthly!AT438-Monthly!AT426","v":9.5},{"$f":"Monthly!AU438-Monthly!AU426","v":5.1000000000000014},{"$f":"Monthly!AV438-Monthly!AV426","v":1.8999999999999986},{"$f":"Monthly!AW438-Monthly!AW426","v":0.5},{"$f":"Monthly!AX438-Monthly!AX426","v":7.7000000000000028},{"$f":"Monthly!AY438-Monthly!AY426","v":22.900000000000006},{"$f":"Monthly!AZ438-Monthly!AZ426","v":6.3000000000000043},{"$f":"Monthly!BA438-Monthly!BA426","v":9.8000000000000043},"--",{"$f":"(Monthly!BC438/Monthly!BC426)-1","v":0.12966496222239177},null,null,null,null,null,null,null,null,null,{"$f":"(Monthly!BM438/Monthly!BM426)-1","v":8.558762977885026E-2},{"$f":"(Monthly!BN438/Monthly!BN426)-1","v":9.1069659242665857E-2},null,null,null,null,null,{"$f":"(Monthly!BT438/Monthly!BT426)-1","v":0.13064935351265428},null,null,null,{"$f":"(Monthly!BX438/Monthly!BX426)-1","v":0.11538461538461542},{"$f":"(Monthly!BY438/Monthly!BY426)-1","v":0.11951219512195133},"--",{"$f":"(Monthly!CA438/Monthly!CA426)-1","v":0.12902982826152454},{"$f":"Monthly!CB438-Monthly!CB426","v":-0.74035660472124931},{"$f":"Monthly!CC438-Monthly!CC426","v":-1.300356604721248},"--","--",null,"--","--",null,{"$f":"(Monthly!CJ438/Monthly!CJ426)-1","v":1.7054263565891459E-2},{"$f":"(Monthly!CK438/Monthly!CK426)-1","v":5.119712478638494E-2},{"$f":"(Monthly!CL438/Monthly!CL426)-1","v":-0.11590524534686975},{"$f":"(Monthly!CM438/Monthly!CM426)-1","v":-1.1187607573149738E-2},{"$f":"(Monthly!CN438/Monthly!CN426)-1","v":2.8153334602821323E-2},{"$f":"(Monthly!CO438/Monthly!CO426)-1","v":-8.2665123584360067E-3},{"$f":"(Monthly!CP438/Monthly!CP426)-1","v":0.13253775462684092},{"$f":"(Monthly!CQ438/Monthly!CQ426)-1","v":1.2119770039068722E-2},{"$f":"(Monthly!CR438/Monthly!CR426)-1","v":0.17351573359184136},null,null,null,null,null,null,null,{"$f":"(Monthly!CZ438/Monthly!CZ426)-1","v":2.9005524861878351E-2},{"$f":"(Monthly!DA438/Monthly!DA426)-1","v":2.8141361256544428E-2},null,null,null,null,null,null,{"$f":"((Monthly!DH438-Monthly!DH426)*60)","v":12.000000000000171},{"$f":"((Monthly!DI438-Monthly!DI426)*100)","v":19.999999999998863},"--",{"$f":"((Monthly!DK438-Monthly!DK426)*100)","v":-79.999999999999986},{"$f":"Monthly!DL438-Monthly!DL426","v":340},null,null,null,{"$f":"Monthly!DP438-Monthly!DP426","v":3690},null,null,null,{"$f":"(Monthly!DT438/Monthly!DT426)-1","v":-1.3929618768328433E-2},{"$f":"Monthly!DU438-Monthly!DU426","v":0.70000000000000107},{"$f":"(Monthly!DV438/Monthly!DV426)-1","v":4.7791580400275979E-2},{"$f":"(Monthly!DW438/Monthly!DW426)-1","v":4.9501576211979037E-2},{"$f":"(Monthly!DX438/Monthly!DX426)-1","v":5.081324943606802E-2},{"$f":"(Monthly!DY438/Monthly!DY426)-1","v":4.0476190476190554E-2},{"$f":"(Monthly!DZ438/Monthly!DZ426)-1","v":5.42464020243556E-2},{"$f":"(Monthly!EA438/Monthly!EA426)-1","v":5.4642381163927167E-2},{"$f":"(Monthly!EB438/Monthly!EB426)-1","v":5.326743547501378E-2},{"$f":"(Monthly!EC438/Monthly!EC426)-1","v":4.6167773083886532E-2},null,null,null,null,null,null,null,null,null,null,null,null,null,{"$f":"(Monthly!EQ438/Monthly!EQ426)-1","v":2.1061499578769904E-2},{"$f":"(Monthly!ER438/Monthly!ER426)-1","v":2.0014825796886404E-2},{"$f":"(Monthly!ES438/Monthly!ES426)-1","v":2.2796352583586588E-2},null,null,null,null,null,{"$f":"((Monthly!EY438-Monthly!EY426)*100)","v":150.99999999999997},{"$f":"((Monthly!EZ438-Monthly!EZ426)*100)","v":144},{"$f":"((Monthly!FA438-Monthly!FA426)*100)","v":122.00000000000006},{"$f":"((Monthly!FB438-Monthly!FB426)*100)","v":114.00000000000006},"--",{"$f":"((Monthly!FD438-Monthly!FD426)*100)","v":139.99999999999994},{"$f":"((Monthly!FE438-Monthly!FE426)*100)","v":146.00000000000003},{"$f":"((Monthly!FF438-Monthly!FF426)*100)","v":211.99999999999997},{"$f":"((Monthly!FG438-Monthly!FG426)*100)","v":217.99999999999997},{"$f":"((Monthly!FH438-Monthly!FH426)*100)","v":184.99999999999997},{"$f":"((Monthly!FI438-Monthly!FI426)*100)","v":156.00000000000006},null,null,null,null,null,null,{"$f":"(Monthly!FP438/Monthly!FP426)-1","v":5.3746177370030512E-2},{"$f":"(Monthly!FQ438/Monthly!FQ426)-1","v":0.48640900770213791},"--","--",{"$f":"(Monthly!FT438/Monthly!FT426)-1","v":7.8321977161035949E-2},{"$f":"(Monthly!FU438/Monthly!FU426)-1","v":-2.6009096871288495E-2},{"$f":"(Monthly!FV438/Monthly!FV426)-1","v":0.24756004509788299},{"$f":"(Monthly!FW438/Monthly!FW426)-1","v":0.29240219650668564},{"$f":"(Monthly!FX438/Monthly!FX426)-1","v":0.37933873828223952},null,null,null,null,null,{"$f":"(Monthly!GD438/Monthly!GD426)-1","v":2.0600810705758255E-2},{"$f":"(Monthly!GE438/Monthly!GE426)-1","v":1.1377245508982003E-2},{"$f":"(Monthly!GF438/Monthly!GF426)-1","v":9.3735280263777643E-2},{"$f":"(Monthly!GG438/Monthly!GG426)-1","v":5.7209832145580508E-2},{"$f":"(Monthly!GH438/Monthly!GH426)-1","v":{"$error":"#DIV/0!"}},"--","--",{"$f":"(Monthly!GK438/Monthly!GK426)-1","v":3.8461538461538547E-2},"--"]
["1994-12-01",null,null,null,{"$f":"(Monthly!E442/Monthly!E430)-1","v":{"$error":"#DIV/0!"}},{"$f":"(Monthly!F442/Monthly!F430)-1","v":{"$error":"#DIV/0!"}},{"$f":"(Monthly!G442/Monthly!G430)-1","v":{"$error":"#DIV/0!"}},{"$f":"(Monthly!H442/Monthly!H430)-1","v":{"$error":"#DIV/0!"}},null,null,null,null,null,null,null,null,null,null,null,null,null,null,null,{"$f":"(Monthly!X442-Monthly!X430)","v":2.7000000000000028},{"$f":"(Monthly!Y442/Monthly!Y430)-1","v":0.10300298952227949},null,null,null,null,null,null,null,null,null,null,null,null,null,{"$f":"(Monthly!AM442/Monthly!AM430)-1","v":6.9541118189075046E-2},{"$f":"(Monthly!AN442/Monthly!AN430)-1","v":8.5297975897115075E-2},{"$f":"(Monthly!AO442/Monthly!AO430)-1","v":7.3384907536035993E-2},{"$f":"((Monthly!AP442-Monthly!AP430)*100)","v":-6.0000000000000053},{"$f":"Monthly!AQ442-Monthly!AQ430","v":0.5},{"$f":"Monthly!AR442-Monthly!AR430","v":-1},"--",{"$f":"Monthly!AT442-Monthly!AT430","v":-0.39999999999999858},{"$f":"Monthly!AU442-Monthly!AU430","v":4.6000000000000014},{"$f":"Monthly!AV442-Monthly!AV430","v":2.3000000000000043},{"$f":"Monthly!AW442-Monthly!AW430","v":1.7999999999999972},{"$f":"Monthly!AX442-Monthly!AX430","v":-3.5},{"$f":"Monthly!AY442-Monthly!AY430","v":33.999999999999993},{"$f":"Monthly!AZ442-Monthly!AZ430","v":-2.2000000000000028},{"$f":"Monthly!BA442-Monthly!BA430","v":13.299999999999997},"--",{"$f":"(Monthly!BC442/Monthly!BC430)-1","v":6.6749815225424891E-2},null,null,null,null,null,null,null,null,null,{"$f":"(Monthly!BM442/Monthly!BM430)-1","v":7.6908215671437574E-2},{"$f":"(Monthly!BN442/Monthly!BN430)-1","v":7.9660442234133155E-2},null,null,null,null,null,{"$f":"(Monthly!BT442/Monthly!BT430)-1","v":0.15058049170909715},null,null,null,{"$f":"(Monthly!BX442/Monthly!BX430)-1","v":-5.0880626223091974E-2},{"$f":"(Monthly!BY442/Monthly!BY430)-1","v":-4.4490075290896658E-2},"--",{"$f":"(Monthly!CA442/Monthly!CA430)-1","v":3.5220382859867838E-2},{"$f":"Monthly!CB442-Monthly!CB430","v":-1.2135601573409307},{"$f":"Monthly!CC442-Monthly!CC430","v":-1.91356015734093},"--","--",null,"--","--",null,{"$f":"(Monthly!CJ442/Monthly!CJ430)-1","v":-0.22536945812807885},{"$f":"(Monthly!CK442/Monthly!CK430)-1","v":3.695271751134066E-2},{"$f":"(Monthly!CL442/Monthly!CL430)-1","v":-0.19342315597168303},{"$f":"(Monthly!CM442/Monthly!CM430)-1","v":-0.12537993920972645},{"$f":"(Monthly!CN442/Monthly!CN430)-1","v":1.7228613737327647E-2},{"$f":"(Monthly!CO442/Monthly!CO430)-1","v":-5.5769703928483572E-2},{"$f":"(Monthly!CP442/Monthly!CP430)-1","v":0.1520834156413684},{"$f":"(Monthly!CQ442/Monthly!CQ430)-1","v":1.1961448214190096E-2},{"$f":"(Monthly!CR442/Monthly!CR430)-1","v":0.17960685106547736},null,null,null,null,null,null,null,{"$f":"(Monthly!CZ442/Monthly!CZ430)-1","v":2.5974025974025761E-2},{"$f":"(Monthly!DA442/Monthly!DA430)-1","v":2.5923525599481634E-2},null,null,null,null,null,null,{"$f":"((Monthly!DH442-Monthly!DH430)*60)","v":6.0000000000000853},{"$f":"((Monthly!DI442-Monthly!DI430)*100)","v":29.999999999999716},"--",{"$f":"((Monthly!DK442-Monthly!DK430)*100)","v":-100},{"$f":"Monthly!DL442-Monthly!DL430","v":402},null,null,null,{"$f":"Monthly!DP442-Monthly!DP430","v":3851},null,null,null,{"$f":"(Monthly!DT442/Monthly!DT430)-1","v":6.1919504643959122E-4},{"$f":"Monthly!DU442-Monthly!DU430","v":0.39999999999999858},{"$f":"(Monthly!DV442/Monthly!DV430)-1","v":5.3504593399115397E-2},{"$f":"(Monthly!DW442/Monthly!DW430)-1","v":5.110904950662043E-2},{"$f":"(Monthly!DX442/Monthly!DX430)-1","v":5.4095282797465227E-2},{"$f":"(Monthly!DY442/Monthly!DY430)-1","v":3.1205673758865293E-2},{"$f":"(Monthly!DZ442/Monthly!DZ430)-1","v":6.1651318869985872E-2},{"$f":"(Monthly!EA442/Monthly!EA430)-1","v":6.2075016450976017E-2},{"$f":"(Monthly!EB442/Monthly!EB430)-1","v":6.0606060606060552E-2},{"$f":"(Monthly!EC442/Monthly!EC430)-1","v":4.3478260869565188E-2},null,null,null,null,null,null,null,null,null,null,null,null,null,{"$f":"(Monthly!EQ442/Monthly!EQ430)-1","v":2.7824620573355885E-2},{"$f":"(Monthly!ER442/Monthly!ER430)-1","v":1.621223286661766E-2},{"$f":"(Monthly!ES442/Monthly!ES430)-1","v":1.8882175226586195E-2},null,null,null,null,null,{"$f":"((Monthly!EY442-Monthly!EY430)*100)","v":250},{"$f":"((Monthly!EZ442-Monthly!EZ430)*100)","v":249.00000000000003},{"$f":"((Monthly!FA442-Monthly!FA430)*100)","v":153.00000000000011},{"$f":"((Monthly!FB442-Monthly!FB430)*100)","v":140.99999999999991},"--",{"$f":"((Monthly!FD442-Monthly!FD430)*100)","v":202.99999999999994},{"$f":"((Monthly!FE442-Monthly!FE430)*100)","v":253.99999999999997},{"$f":"((Monthly!FF442-Monthly!FF430)*100)","v":353},{"$f":"((Monthly!FG442-Monthly!FG430)*100)","v":338},{"$f":"((Monthly!FH442-Monthly!FH430)*100)","v":263},{"$f":"((Monthly!FI442-Monthly!FI430)*100)","v":204},null,null,null,null,null,null,{"$f":"(Monthly!FP442/Monthly!FP430)-1","v":4.3958521190261557E-2},{"$f":"(Monthly!FQ442/Monthly!FQ430)-1","v":0.46079711389795563},{"$f":"(Monthly!FR442/Monthly!FR430)-1","v":0.27876974552005929},"--",{"$f":"(Monthly!FT442/Monthly!FT430)-1","v":5.1689938069882757E-2},{"$f":"(Monthly!FU442/Monthly!FU430)-1","v":-4.6140049030143682E-2},{"$f":"(Monthly!FV442/Monthly!FV430)-1","v":0.30310901489000508},{"$f":"(Monthly!FW442/Monthly!FW430)-1","v":0.21329842032967039},{"$f":"(Monthly!FX442/Monthly!FX430)-1","v":0.29561677956319676},null,null,null,null,null,{"$f":"(Monthly!GD442/Monthly!GD430)-1","v":0.18263266712612003},{"$f":"(Monthly!GE442/Monthly!GE430)-1","v":0.16023306627822276},{"$f":"(Monthly!GF442/Monthly!GF430)-1","v":0.11365877712031547},{"$f":"(Monthly!GG442/Monthly!GG430)-1","v":2.3617702240370742E-2},{"$f":"(Monthly!GH442/Monthly!GH430)-1","v":{"$error":"#DIV/0!"}},"--","--",{"$f":"(Monthly!GK442/Monthly!GK430)-1","v":1.5013246982631845E-2},"--"]
["1995-03-01",null,null,null,{"$f":"(Monthly!E445/Monthly!E433)-1","v":{"$error":"#DIV/0!"}},{"$f":"(Monthly!F445/Monthly!F433)-1","v":{"$error":"#DIV/0!"}},{"$f":"(Monthly!G445/Monthly!G433)-1","v":{"$error":"#DIV/0!"}},{"$f":"(Monthly!H445/Monthly!H433)-1","v":{"$error":"#DIV/0!"}},null,null,null,null,null,null,null,null,null,null,null,null,null,null,null,{"$f":"(Monthly!X445-Monthly!X433)","v":1.3999999999999915},{"$f":"(Monthly!Y445/Monthly!Y433)-1","v":0.13243441534577149},null,null,null,null,null,null,null,null,null,null,null,null,null,{"$f":"(Monthly!AM445/Monthly!AM433)-1","v":5.635609863786617E-2},{"$f":"(Monthly!AN445/Monthly!AN433)-1","v":6.9212122673934839E-2},{"$f":"(Monthly!AO445/Monthly!AO433)-1","v":9.5247139098185718E-2},{"$f":"((Monthly!AP445-Monthly!AP433)*100)","v":2.0000000000000018},{"$f":"Monthly!AQ445-Monthly!AQ433","v":-4.7999999999999972},{"$f":"Monthly!AR445-Monthly!AR433","v":-5.5},"--",{"$f":"Monthly!AT445-Monthly!AT433","v":-0.10000000000000142},{"$f":"Monthly!AU445-Monthly!AU433","v":1.6999999999999957},{"$f":"Monthly!AV445-Monthly!AV433","v":0.20000000000000284},{"$f":"Monthly!AW445-Monthly!AW433","v":4},{"$f":"Monthly!AX445-Monthly!AX433","v":-10.899999999999999},{"$f":"Monthly!AY445-Monthly!AY433","v":16.000000000000007},{"$f":"Monthly!AZ445-Monthly!AZ433","v":-8.6000000000000014},{"$f":"Monthly!BA445-Monthly!BA433","v":1.5},"--",{"$f":"(Monthly!BC445/Monthly!BC433)-1","v":0.11759001091041332},null,null,null,null,null,null,null,null,null,{"$f":"(Monthly!BM445/Monthly!BM433)-1","v":4.5107209219784172E-2},{"$f":"(Monthly!BN445/Monthly!BN433)-1","v":4.7582115468094432E-2},null,null,null,null,null,{"$f":"(Monthly!BT445/Monthly!BT433)-1","v":0.14690163855287008},null,null,null,{"$f":"(Monthly!BX445/Monthly!BX433)-1","v":-0.20140664961636834},{"$f":"(Monthly!BY445/Monthly!BY433)-1","v":-8.6438152011922509E-2},"--",{"$f":"(Monthly!CA445/Monthly!CA433)-1","v":-7.2792840924268409E-3},{"$f":"Monthly!CB445-Monthly!CB433","v":-0.96455990508280642},{"$f":"Monthly!CC445-Monthly!CC433","v":-1.7345599050828042},"--","--",null,"--","--",null,{"$f":"(Monthly!CJ445/Monthly!CJ433)-1","v":-0.17536813922356087},{"$f":"(Monthly!CK445/Monthly!CK433)-1","v":6.4496746836964158E-2},{"$f":"(Monthly!CL445/Monthly!CL433)-1","v":0.19181505779443908},{"$f":"(Monthly!CM445/Monthly!CM433)-1","v":-0.2373660030627871},{"$f":"(Monthly!CN445/Monthly!CN433)-1","v":4.0098695601985535E-2},{"$f":"(Monthly!CO445/Monthly!CO433)-1","v":-0.10334148329258352},{"$f":"(Monthly!CP445/Monthly!CP433)-1","v":0.15964725649173617},{"$f":"(Monthly!CQ445/Monthly!CQ433)-1","v":1.1980087820942842E-2},{"$f":"(Monthly!CR445/Monthly!CR433)-1","v":0.20571341189214754},null,null,null,null,null,null,null,{"$f":"(Monthly!CZ445/Monthly!CZ433)-1","v":2.7872195785180187E-2},{"$f":"(Monthly!DA445/Monthly!DA433)-1","v":2.962009014810052E-2},null,null,null,null,null,null,{"$f":"((Monthly!DH445-Monthly!DH433)*60)","v":-12.000000000000171},{"$f":"((Monthly!DI445-Monthly!DI433)*100)","v":20.000000000000284},"--",{"$f":"((Monthly!DK445-Monthly!DK433)*100)","v":-109.99999999999997},{"$f":"Monthly!DL445-Monthly!DL433","v":366},null,null,null,{"$f":"Monthly!DP445-Monthly!DP433","v":3665},null,null,null,{"$f":"(Monthly!DT445/Monthly!DT433)-1","v":1.5568862275449069E-2},{"$f":"Monthly!DU445-Monthly!DU433","v":-1},{"$f":"(Monthly!DV445/Monthly!DV433)-1","v":4.2889390519187609E-2},{"$f":"(Monthly!DW445/Monthly!DW433)-1","v":4.2629076086956541E-2},{"$f":"(Monthly!DX445/Monthly!DX433)-1","v":4.5272341428908236E-2},{"$f":"(Monthly!DY445/Monthly!DY433)-1","v":2.4625784645099014E-2},{"$f":"(Monthly!DZ445/Monthly!DZ433)-1","v":5.1941974730931095E-2},{"$f":"(Monthly!EA445/Monthly!EA433)-1","v":5.2343407796758612E-2},{"$f":"(Monthly!EB445/Monthly!EB433)-1","v":5.0948509485094773E-2},{"$f":"(Monthly!EC445/Monthly!EC433)-1","v":3.5822707953855559E-2},null,null,null,null,null,null,null,null,null,null,null,null,null,{"$f":"(Monthly!EQ445/Monthly!EQ433)-1","v":3.5087719298245723E-2},{"$f":"(Monthly!ER445/Monthly!ER433)-1","v":1.9061583577712593E-2},{"$f":"(Monthly!ES445/Monthly!ES433)-1","v":1.9504876219054612E-2},null,null,null,null,null,{"$f":"((Monthly!EY445-Monthly!EY433)*100)","v":294.00000000000006},{"$f":"((Monthly!EZ445-Monthly!EZ433)*100)","v":264.00000000000006},{"$f":"((Monthly!FA445-Monthly!FA433)*100)","v":63.999999999999879},{"$f":"((Monthly!FB445-Monthly!FB433)*100)","v":56.999999999999851},"--",{"$f":"((Monthly!FD445-Monthly!FD433)*100)","v":78.000000000000114},{"$f":"((Monthly!FE445-Monthly!FE433)*100)","v":223.00000000000006},{"$f":"((Monthly!FF445-Monthly!FF433)*100)","v":210.99999999999994},{"$f":"((Monthly!FG445-Monthly!FG433)*100)","v":178.00000000000003},{"$f":"((Monthly!FH445-Monthly!FH433)*100)","v":110.99999999999994},{"$f":"((Monthly!FI445-Monthly!FI433)*100)","v":71.999999999999972},null,null,null,null,null,null,{"$f":"(Monthly!FP445/Monthly!FP433)-1","v":3.173556141893874E-2},{"$f":"(Monthly!FQ445/Monthly!FQ433)-1","v":-3.1613576185509085E-2},{"$f":"(Monthly!FR445/Monthly!FR433)-1","v":1.0520196209047419},"--",{"$f":"(Monthly!FT445/Monthly!FT433)-1","v":1.9198580960115841E-2},{"$f":"(Monthly!FU445/Monthly!FU433)-1","v":-8.2688108987420184E-2},{"$f":"(Monthly!FV445/Monthly!FV433)-1","v":0.15377366258909198},{"$f":"(Monthly!FW445/Monthly!FW433)-1","v":0.33321117727897387},{"$f":"(Monthly!FX445/Monthly!FX433)-1","v":0.30278107915379127},null,null,null,null,null,{"$f":"(Monthly!GD445/Monthly!GD433)-1","v":0.2653478854024558},{"$f":"(Monthly!GE445/Monthly!GE433)-1","v":0.23082489146164997},{"$f":"(Monthly!GF445/Monthly!GF433)-1","v":0.11122144985104243},{"$f":"(Monthly!GG445/Monthly!GG433)-1","v":-1.7163504968382925E-2},{"$f":"(Monthly!GH445/Monthly!GH433)-1","v":{"$error":"#DIV/0!"}},"--",{"$f":"(Monthly!GJ445/Monthly!GJ433)-1","v":-0.27264106211474626},{"$f":"(Monthly!GK445/Monthly!GK433)-1","v":-1.1186340889019708E-2},"--"]
["1995-10-01",null,null,null,{"$f":"(Monthly!E452/Monthly!E440)-1","v":{"$error":"#DIV/0!"}},{"$f":"(Monthly!F452/Monthly!F440)-1","v":{"$error":"#DIV/0!"}},{"$f":"(Monthly!G452/Monthly!G440)-1","v":{"$error":"#DIV/0!"}},{"$f":"(Monthly!H452/Monthly!H440)-1","v":{"$error":"#DIV/0!"}},null,null,null,null,null,null,null,null,null,null,null,null,null,null,null,{"$f":"(Monthly!X452-Monthly!X440)","v":-0.60000000000000853},{"$f":"(Monthly!Y452/Monthly!Y440)-1","v":0.11825022012453634},null,null,null,null,null,null,null,null,null,null,null,null,null,{"$f":"(Monthly!AM452/Monthly!AM440)-1","v":3.6553929001394758E-2},{"$f":"(Monthly!AN452/Monthly!AN440)-1","v":4.1017691281311608E-2},{"$f":"(Monthly!AO452/Monthly!AO440)-1","v":7.7538915606857994E-2},{"$f":"((Monthly!AP452-Monthly!AP440)*100)","v":4.0000000000000036},{"$f":"Monthly!AQ452-Monthly!AQ440","v":-12.699999999999996},{"$f":"Monthly!AR452-Monthly!AR440","v":-20},"--",{"$f":"Monthly!AT452-Monthly!AT440","v":-5.2000000000000028},{"$f":"Monthly!AU452-Monthly!AU440","v":-6.2999999999999972},{"$f":"Monthly!AV452-Monthly!AV440","v":-4.2000000000000028},{"$f":"Monthly!AW452-Monthly!AW440","v":-5.3999999999999986},{"$f":"Monthly!AX452-Monthly!AX440","v":-15.5},{"$f":"Monthly!AY452-Monthly!AY440","v":-37.599999999999994},{"$f":"Monthly!AZ452-Monthly!AZ440","v":-16.299999999999997},{"$f":"Monthly!BA452-Monthly!BA440","v":-16.500000000000007},"--",{"$f":"(Monthly!BC452/Monthly!BC440)-1","v":9.408385735111735E-2},null,null,null,null,null,null,null,null,null,{"$f":"(Monthly!BM452/Monthly!BM440)-1","v":3.295937949383454E-2},{"$f":"(Monthly!BN452/Monthly!BN440)-1","v":3.310091986996655E-2},null,null,null,null,null,{"$f":"(Monthly!BT452/Monthly!BT440)-1","v":9.7183593616496422E-2},null,null,null,{"$f":"(Monthly!BX452/Monthly!BX440)-1","v":-5.5862068965517264E-2},{"$f":"(Monthly!BY452/Monthly!BY440)-1","v":2.1474588403722628E-3},"--",{"$f":"(Monthly!CA452/Monthly!CA440)-1","v":-6.7474382934845534E-2},{"$f":"Monthly!CB452-Monthly!CB440","v":-0.16557953425425609},{"$f":"Monthly!CC452-Monthly!CC440","v":-0.37557953425425694},"--","--",null,"--","--",null,{"$f":"(Monthly!CJ452/Monthly!CJ440)-1","v":-2.657342657342654E-2},{"$f":"(Monthly!CK452/Monthly!CK440)-1","v":5.093050881013661E-2},{"$f":"(Monthly!CL452/Monthly!CL440)-1","v":4.6947004608294929E-2},{"$f":"(Monthly!CM452/Monthly!CM440)-1","v":-2.083333333333337E-2},{"$f":"(Monthly!CN452/Monthly!CN440)-1","v":2.5908848089521319E-2},{"$f":"(Monthly!CO452/Monthly!CO440)-1","v":-4.8406239403187445E-2},{"$f":"(Monthly!CP452/Monthly!CP440)-1","v":0.149782641400801},{"$f":"(Monthly!CQ452/Monthly!CQ440)-1","v":1.1937147419041061E-2},{"$f":"(Monthly!CR452/Monthly!CR440)-1","v":0.22867404238914446},null,null,null,null,null,null,null,{"$f":"(Monthly!CZ452/Monthly!CZ440)-1","v":2.7443105756358666E-2},{"$f":"(Monthly!DA452/Monthly!DA440)-1","v":3.1051964512040398E-2},null,null,null,null,null,null,{"$f":"((Monthly!DH452-Monthly!DH440)*60)","v":-12.000000000000171},{"$f":"((Monthly!DI452-Monthly!DI440)*100)","v":-10.000000000000853},{"$f":"((Monthly!DJ452-Monthly!DJ440)*100)","v":-40.000000000000036},{"$f":"((Monthly!DK452-Monthly!DK440)*100)","v":-29.999999999999982},{"$f":"Monthly!DL452-Monthly!DL440","v":72},null,null,null,{"$f":"Monthly!DP452-Monthly!DP440","v":2574},null,null,null,{"$f":"(Monthly!DT452/Monthly!DT440)-1","v":0.11937612477504489},{"$f":"Monthly!DU452-Monthly!DU440","v":-1.8000000000000007},{"$f":"(Monthly!DV452/Monthly!DV440)-1","v":3.8430089942763646E-2},{"$f":"(Monthly!DW452/Monthly!DW440)-1","v":3.9452365521710719E-2},{"$f":"(Monthly!DX452/Monthly!DX440)-1","v":4.234711116116685E-2},{"$f":"(Monthly!DY452/Monthly!DY440)-1","v":2.0576131687242816E-2},{"$f":"(Monthly!DZ452/Monthly!DZ440)-1","v":4.9462044231918467E-2},{"$f":"(Monthly!EA452/Monthly!EA440)-1","v":5.0146873688627691E-2},{"$f":"(Monthly!EB452/Monthly!EB440)-1","v":4.7767393561786164E-2},{"$f":"(Monthly!EC452/Monthly!EC440)-1","v":3.2034632034632082E-2},null,null,null,null,null,null,null,null,null,null,null,null,null,{"$f":"(Monthly!EQ452/Monthly!EQ440)-1","v":3.6393713813068551E-2},{"$f":"(Monthly!ER452/Monthly!ER440)-1","v":2.6200873362445476E-2},{"$f":"(Monthly!ES452/Monthly!ES440)-1","v":2.3809523809523725E-2},null,null,null,null,null,{"$f":"((Monthly!EY452-Monthly!EY440)*100)","v":100},{"$f":"((Monthly!EZ452-Monthly!EZ440)*100)","v":100},{"$f":"((Monthly!FA452-Monthly!FA440)*100)","v":-145.00000000000003},{"$f":"((Monthly!FB452-Monthly!FB440)*100)","v":-144.99999999999994},"--",{"$f":"((Monthly!FD452-Monthly!FD440)*100)","v":-144.99999999999994},{"$f":"((Monthly!FE452-Monthly!FE440)*100)","v":33.000000000000007},{"$f":"((Monthly!FF452-Monthly!FF440)*100)","v":-52.000000000000043},{"$f":"((Monthly!FG452-Monthly!FG440)*100)","v":-103.00000000000003},{"$f":"((Monthly!FH452-Monthly!FH440)*100)","v":-154},{"$f":"((Monthly!FI452-Monthly!FI440)*100)","v":-170.00000000000003},null,null,null,null,null,null,{"$f":"(Monthly!FP452/Monthly!FP440)-1","v":-3.3325927571650205E-3},{"$f":"(Monthly!FQ452/Monthly!FQ440)-1","v":-2.5019884901511302E-2},{"$f":"(Monthly!FR452/Monthly!FR440)-1","v":0.97158891616976506},"--",{"$f":"(Monthly!FT452/Monthly!FT440)-1","v":4.6001567968765755E-2},{"$f":"(Monthly!FU452/Monthly!FU440)-1","v":-1.074254917152917E-2},{"$f":"(Monthly!FV452/Monthly!FV440)-1","v":9.2798990846244989E-2},{"$f":"(Monthly!FW452/Monthly!FW440)-1","v":0.14949283136642944},{"$f":"(Monthly!FX452/Monthly!FX440)-1","v":0.24792089581559829},null,null,null,null,null,{"$f":"(Monthly!GD452/Monthly!GD440)-1","v":-1.5245623941276043E-2},{"$f":"(Monthly!GE452/Monthly!GE440)-1","v":-2.3044269254093308E-2},{"$f":"(Monthly!GF452/Monthly!GF440)-1","v":1.7959770114942541E-2},{"$f":"(Monthly!GG452/Monthly!GG440)-1","v":-6.2388591800357496E-3},{"$f":"(Monthly!GH452/Monthly!GH440)-1","v":{"$error":"#DIV/0!"}},"--",{"$f":"(Monthly!GJ452/Monthly!GJ440)-1","v":4.0092969203951112E-2},{"$f":"(Monthly!GK452/Monthly!GK440)-1","v":6.0864272671941055E-3},"--"]
["1996-02-01",null,null,null,{"$f":"(Monthly!E456/Monthly!E444)-1","v":{"$error":"#DIV/0!"}},{"$f":"(Monthly!F456/Monthly!F444)-1","v":{"$error":"#DIV/0!"}},{"$f":"(Monthly!G456/Monthly!G444)-1","v":{"$error":"#DIV/0!"}},{"$f":"(Monthly!H456/Monthly!H444)-1","v":{"$error":"#DIV/0!"}},null,null,null,null,null,null,null,null,null,null,null,null,null,null,null,{"$f":"(Monthly!X456-Monthly!X444)","v":-1.0999999999999943},{"$f":"(Monthly!Y456/Monthly!Y444)-1","v":8.6437927078866661E-2},null,null,null,null,null,null,null,null,null,null,null,null,null,{"$f":"(Monthly!AM456/Monthly!AM444)-1","v":3.4843570157999437E-2},{"$f":"(Monthly!AN456/Monthly!AN444)-1","v":3.6671716971852231E-2},{"$f":"(Monthly!AO456/Monthly!AO444)-1","v":5.1475618849820215E-2},{"$f":"((Monthly!AP456-Monthly!AP444)*100)","v":4.0000000000000036},{"$f":"Monthly!AQ456-Monthly!AQ444","v":-9.2000000000000028},{"$f":"Monthly!AR456-Monthly!AR444","v":-11.5},"--",{"$f":"Monthly!AT456-Monthly!AT444","v":-5.3999999999999986},{"$f":"Monthly!AU456-Monthly!AU444","v":-7.4000000000000057},{"$f":"Monthly!AV456-Monthly!AV444","v":-4.8999999999999986},{"$f":"Monthly!AW456-Monthly!AW444","v":-3.7000000000000028},{"$f":"Monthly!AX456-Monthly!AX444","v":-10.5},{"$f":"Monthly!AY456-Monthly!AY444","v":-42.900000000000006},{"$f":"Monthly!AZ456-Monthly!AZ444","v":-11.699999999999996},{"$f":"Monthly!BA456-Monthly!BA444","v":-11.200000000000003},"--",{"$f":"(Monthly!BC456/Monthly!BC444)-1","v":6.4567099567099495E-2},null,null,null,null,null,null,null,null,null,{"$f":"(Monthly!BM456/Monthly!BM444)-1","v":6.8695402327820343E-2},{"$f":"(Monthly!BN456/Monthly!BN444)-1","v":7.1303601676027561E-2},null,null,null,null,null,{"$f":"(Monthly!BT456/Monthly!BT444)-1","v":8.0517543984817586E-2},null,null,null,{"$f":"(Monthly!BX456/Monthly!BX444)-1","v":0.13297872340425543},{"$f":"(Monthly!BY456/Monthly!BY444)-1","v":0.13237639553429026},"--",{"$f":"(Monthly!CA456/Monthly!CA444)-1","v":5.2431348135851152E-2},{"$f":"Monthly!CB456-Monthly!CB444","v":-4.5954538616987506E-2},{"$f":"Monthly!CC456-Monthly!CC444","v":2.4045461383011002E-2},"--","--",null,"--","--",null,{"$f":"(Monthly!CJ456/Monthly!CJ444)-1","v":0.37567084078711988},{"$f":"(Monthly!CK456/Monthly!CK444)-1","v":5.5309017880279976E-2},{"$f":"(Monthly!CL456/Monthly!CL444)-1","v":-0.12200050517807515},{"$f":"(Monthly!CM456/Monthly!CM444)-1","v":9.9715099715099731E-2},{"$f":"(Monthly!CN456/Monthly!CN444)-1","v":2.8413279000876202E-2},{"$f":"(Monthly!CO456/Monthly!CO444)-1","v":3.9574772199392427E-2},{"$f":"(Monthly!CP456/Monthly!CP444)-1","v":0.14190114250611496},{"$f":"(Monthly!CQ456/Monthly!CQ444)-1","v":1.1663588042371886E-2},{"$f":"(Monthly!CR456/Monthly!CR444)-1","v":0.20495451773245077},null,null,null,null,null,null,null,{"$f":"(Monthly!CZ456/Monthly!CZ444)-1","v":2.7170311464546071E-2},{"$f":"(Monthly!DA456/Monthly!DA444)-1","v":2.8858218318695172E-2},null,null,null,null,null,null,{"$f":"((Monthly!DH456-Monthly!DH444)*60)","v":-6.0000000000000853},{"$f":"((Monthly!DI456-Monthly!DI444)*100)","v":-20.000000000000284},{"$f":"((Monthly!DJ456-Monthly!DJ444)*100)","v":9.9999999999999645},{"$f":"((Monthly!DK456-Monthly!DK444)*100)","v":9.9999999999999645},{"$f":"Monthly!DL456-Monthly!DL444","v":-36},null,null,null,{"$f":"Monthly!DP456-Monthly!DP444","v":2043},null,null,null,{"$f":"(Monthly!DT456/Monthly!DT444)-1","v":0.11695040710584759},{"$f":"Monthly!DU456-Monthly!DU444","v":-0.29999999999999982},{"$f":"(Monthly!DV456/Monthly!DV444)-1","v":2.1225277375783946E-2},{"$f":"(Monthly!DW456/Monthly!DW444)-1","v":2.0006559527714129E-2},{"$f":"(Monthly!DX456/Monthly!DX444)-1","v":2.0677118836627928E-2},{"$f":"(Monthly!DY456/Monthly!DY444)-1","v":1.4636449480642133E-2},{"$f":"(Monthly!DZ456/Monthly!DZ444)-1","v":2.2591262716936011E-2},{"$f":"(Monthly!EA456/Monthly!EA444)-1","v":2.3104389834068373E-2},{"$f":"(Monthly!EB456/Monthly!EB444)-1","v":2.1320852834113335E-2},{"$f":"(Monthly!EC456/Monthly!EC444)-1","v":1.8267530936947773E-2},null,null,null,null,null,null,null,null,null,null,null,null,null,{"$f":"(Monthly!EQ456/Monthly!EQ444)-1","v":2.1862348178137703E-2},{"$f":"(Monthly!ER456/Monthly!ER444)-1","v":2.0908435472242193E-2},{"$f":"(Monthly!ES456/Monthly!ES444)-1","v":1.6936671575846773E-2},null,null,null,null,null,{"$f":"((Monthly!EY456-Monthly!EY444)*100)","v":-75},{"$f":"((Monthly!EZ456-Monthly!EZ444)*100)","v":-70.000000000000014},{"$f":"((Monthly!FA456-Monthly!FA444)*100)","v":-126.99999999999996},{"$f":"((Monthly!FB456-Monthly!FB444)*100)","v":-121.99999999999997},"--",{"$f":"((Monthly!FD456-Monthly!FD444)*100)","v":-175},{"$f":"((Monthly!FE456-Monthly!FE444)*100)","v":-93.999999999999943},{"$f":"((Monthly!FF456-Monthly!FF444)*100)","v":-175.99999999999997},{"$f":"((Monthly!FG456-Monthly!FG444)*100)","v":-208},{"$f":"((Monthly!FH456-Monthly!FH444)*100)","v":-199.00000000000003},{"$f":"((Monthly!FI456-Monthly!FI444)*100)","v":-166},null,null,null,null,null,null,{"$f":"(Monthly!FP456/Monthly!FP444)-1","v":-1.8064976794002208E-2},{"$f":"(Monthly!FQ456/Monthly!FQ444)-1","v":-1.436968528615179E-2},{"$f":"(Monthly!FR456/Monthly!FR444)-1","v":0.32413392275313058},"--",{"$f":"(Monthly!FT456/Monthly!FT444)-1","v":3.1847480708125264E-2},{"$f":"(Monthly!FU456/Monthly!FU444)-1","v":5.491546824372584E-3},{"$f":"(Monthly!FV456/Monthly!FV444)-1","v":8.6102811681313396E-2},{"$f":"(Monthly!FW456/Monthly!FW444)-1","v":0.17927702815259039},{"$f":"(Monthly!FX456/Monthly!FX444)-1","v":0.16611309561112142},null,null,null,null,null,{"$f":"(Monthly!GD456/Monthly!GD444)-1","v":2.9141932002158644E-2},{"$f":"(Monthly!GE456/Monthly!GE444)-1","v":5.201636469900639E-2},{"$f":"(Monthly!GF456/Monthly!GF444)-1","v":6.9026942774439437E-3},{"$f":"(Monthly!GG456/Monthly!GG444)-1","v":5.2389705882352811E-2},{"$f":"(Monthly!GH456/Monthly!GH444)-1","v":{"$error":"#DIV/0!"}},"--",{"$f":"(Monthly!GJ456/Monthly!GJ444)-1","v":0.7081306462821404},{"$f":"(Monthly!GK456/Monthly!GK444)-1","v":6.9505494505494481E-2},"--"]
["1996-08-01",null,null,null,{"$f":"(Monthly!E462/Monthly!E450)-1","v":{"$error":"#DIV/0!"}},{"$f":"(Monthly!F462/Monthly!F450)-1","v":{"$error":"#DIV/0!"}},{"$f":"(Monthly!G462/Monthly!G450)-1","v":{"$error":"#DIV/0!"}},{"$f":"(Monthly!H462/Monthly!H450)-1","v":{"$error":"#DIV/0!"}},null,null,null,null,null,null,null,null,null,null,null,null,null,null,null,{"$f":"(Monthly!X462-Monthly!X450)","v":-0.59999999999999432},{"$f":"(Monthly!Y462/Monthly!Y450)-1","v":6.3967121870129429E-2},null,null,null,null,null,null,null,null,null,null,null,null,null,{"$f":"(Monthly!AM462/Monthly!AM450)-1","v":4.7073895130134602E-2},{"$f":"(Monthly!AN462/Monthly!AN450)-1","v":6.0826693935745579E-2},{"$f":"(Monthly!AO462/Monthly!AO450)-1","v":2.4465705905434065E-2},{"$f":"((Monthly!AP462-Monthly!AP450)*100)","v":-3.0000000000000027},{"$f":"Monthly!AQ462-Monthly!AQ450","v":4.5},{"$f":"Monthly!AR462-Monthly!AR450","v":6.5},"--",{"$f":"Monthly!AT462-Monthly!AT450","v":2.3999999999999986},{"$f":"Monthly!AU462-Monthly!AU450","v":1.5999999999999943},{"$f":"Monthly!AV462-Monthly!AV450","v":-1.7999999999999972},{"$f":"Monthly!AW462-Monthly!AW450","v":-3.2999999999999972},{"$f":"Monthly!AX462-Monthly!AX450","v":8.1000000000000014},{"$f":"Monthly!AY462-Monthly!AY450","v":-1.8999999999999986},{"$f":"Monthly!AZ462-Monthly!AZ450","v":6},{"$f":"Monthly!BA462-Monthly!BA450","v":2.7999999999999972},"--",{"$f":"(Monthly!BC462/Monthly!BC450)-1","v":6.9007620731758701E-2},null,null,null,null,null,null,null,null,null,{"$f":"(Monthly!BM462/Monthly!BM450)-1","v":4.7576853613778169E-2},{"$f":"(Monthly!BN462/Monthly!BN450)-1","v":5.0322780947894774E-2},null,null,null,null,null,{"$f":"(Monthly!BT462/Monthly!BT450)-1","v":4.7210694809865394E-2},null,null,null,{"$f":"(Monthly!BX462/Monthly!BX450)-1","v":9.9576271186440746E-2},{"$f":"(Monthly!BY462/Monthly!BY450)-1","v":1.9480519480519431E-2},"--",{"$f":"(Monthly!CA462/Monthly!CA450)-1","v":8.1300813008129413E-3},{"$f":"Monthly!CB462-Monthly!CB450","v":-0.40515404637853081},{"$f":"Monthly!CC462-Monthly!CC450","v":-0.82515404637852896},"--","--",null,"--","--",null,{"$f":"(Monthly!CJ462/Monthly!CJ450)-1","v":0.17831669044222531},{"$f":"(Monthly!CK462/Monthly!CK450)-1","v":6.275633818429438E-2},{"$f":"(Monthly!CL462/Monthly!CL450)-1","v":3.5597745476119824E-2},{"$f":"(Monthly!CM462/Monthly!CM450)-1","v":0.10017574692442888},{"$f":"(Monthly!CN462/Monthly!CN450)-1","v":3.4132511216934169E-2},{"$f":"(Monthly!CO462/Monthly!CO450)-1","v":0.10988514063489196},{"$f":"(Monthly!CP462/Monthly!CP450)-1","v":0.12013642411298564},{"$f":"(Monthly!CQ462/Monthly!CQ450)-1","v":1.1740986272827048E-2},{"$f":"(Monthly!CR462/Monthly!CR450)-1","v":0.15740612794585385},null,null,null,null,null,null,null,{"$f":"(Monthly!CZ462/Monthly!CZ450)-1","v":2.8122956180510084E-2},{"$f":"(Monthly!DA462/Monthly!DA450)-1","v":2.5957972805933149E-2},null,null,null,null,null,null,{"$f":"((Monthly!DH462-Monthly!DH450)*60)","v":6.0000000000000853},{"$f":"((Monthly!DI462-Monthly!DI450)*100)","v":10.000000000000853},{"$f":"((Monthly!DJ462-Monthly!DJ450)*100)","v":-69.999999999999929},{"$f":"((Monthly!DK462-Monthly!DK450)*100)","v":-60.000000000000057},{"$f":"Monthly!DL462-Monthly!DL450","v":15},null,null,null,{"$f":"Monthly!DP462-Monthly!DP450","v":2559},null,null,null,{"$f":"(Monthly!DT462/Monthly!DT450)-1","v":-6.7179846046186098E-2},{"$f":"Monthly!DU462-Monthly!DU450","v":9.9999999999999645E-2},{"$f":"(Monthly!DV462/Monthly!DV450)-1","v":3.9752152571014721E-2},{"$f":"(Monthly!DW462/Monthly!DW450)-1","v":4.0117107137205288E-2},{"$f":"(Monthly!DX462/Monthly!DX450)-1","v":3.8948179117614723E-2},{"$f":"(Monthly!DY462/Monthly!DY450)-1","v":4.9305244285073879E-2},{"$f":"(Monthly!DZ462/Monthly!DZ450)-1","v":3.557888597258696E-2},{"$f":"(Monthly!EA462/Monthly!EA450)-1","v":3.6225951698731107E-2},{"$f":"(Monthly!EB462/Monthly!EB450)-1","v":3.3975659229209088E-2},{"$f":"(Monthly!EC462/Monthly!EC450)-1","v":4.3110735418427693E-2},null,null,null,null,null,null,null,null,null,null,null,null,null,{"$f":"(Monthly!EQ462/Monthly!EQ450)-1","v":2.5579536370903488E-2},{"$f":"(Monthly!ER462/Monthly!ER450)-1","v":1.4978601997147178E-2},{"$f":"(Monthly!ES462/Monthly!ES450)-1","v":1.1678832116788218E-2},null,null,null,null,null,{"$f":"((Monthly!EY462-Monthly!EY450)*100)","v":-50},{"$f":"((Monthly!EZ462-Monthly!EZ450)*100)","v":-52.000000000000043},{"$f":"((Monthly!FA462-Monthly!FA450)*100)","v":-11.000000000000032},{"$f":"((Monthly!FB462-Monthly!FB450)*100)","v":-0.99999999999997868},"--",{"$f":"((Monthly!FD462-Monthly!FD450)*100)","v":13.999999999999968},{"$f":"((Monthly!FE462-Monthly!FE450)*100)","v":-35.000000000000057},{"$f":"((Monthly!FF462-Monthly!FF450)*100)","v":-8.0000000000000071},{"$f":"((Monthly!FG462-Monthly!FG450)*100)","v":4.9999999999999822},{"$f":"((Monthly!FH462-Monthly!FH450)*100)","v":14.999999999999947},{"$f":"((Monthly!FI462-Monthly!FI450)*100)","v":14.999999999999947},null,null,null,null,null,null,{"$f":"(Monthly!FP462/Monthly!FP450)-1","v":1.2544273907910464E-2},{"$f":"(Monthly!FQ462/Monthly!FQ450)-1","v":1.5134589744512095E-3},{"$f":"(Monthly!FR462/Monthly!FR450)-1","v":0.21106580495430882},"--",{"$f":"(Monthly!FT462/Monthly!FT450)-1","v":5.1648187674761203E-2},{"$f":"(Monthly!FU462/Monthly!FU450)-1","v":3.996445474926702E-2},{"$f":"(Monthly!FV462/Monthly!FV450)-1","v":7.7777140938827927E-2},{"$f":"(Monthly!FW462/Monthly!FW450)-1","v":0.1438175120194809},{"$f":"(Monthly!FX462/Monthly!FX450)-1","v":0.20895912725099008},null,null,null,null,null,{"$f":"(Monthly!GD462/Monthly!GD450)-1","v":0.21797004991680535},{"$f":"(Monthly!GE462/Monthly!GE450)-1","v":0.27391304347826084},{"$f":"(Monthly!GF462/Monthly!GF450)-1","v":6.9017094017094216E-2},{"$f":"(Monthly!GG462/Monthly!GG450)-1","v":8.6877828054298778E-2},{"$f":"(Monthly!GH462/Monthly!GH450)-1","v":{"$error":"#DIV/0!"}},"--",{"$f":"(Monthly!GJ462/Monthly!GJ450)-1","v":0.31599229287090558},{"$f":"(Monthly!GK462/Monthly!GK450)-1","v":5.8229552339279733E-2},"--"]
["1996-09-01",null,null,null,{"$f":"(Monthly!E463/Monthly!E451)-1","v":{"$error":"#DIV/0!"}},{"$f":"(Monthly!F463/Monthly!F451)-1","v":{"$error":"#DIV/0!"}},{"$f":"(Monthly!G463/Monthly!G451)-1","v":{"$error":"#DIV/0!"}},{"$f":"(Monthly!H463/Monthly!H451)-1","v":{"$error":"#DIV/0!"}},null,null,null,null,null,null,null,null,null,null,null,null,null,null,null,{"$f":"(Monthly!X463-Monthly!X451)","v":-0.40000000000000568},{"$f":"(Monthly!Y463/Monthly!Y451)-1","v":7.429520588859817E-2},null,null,null,null,null,null,null,null,null,null,null,null,null,{"$f":"(Monthly!AM463/Monthly!AM451)-1","v":5.0113552357293534E-2},{"$f":"(Monthly!AN463/Monthly!AN451)-1","v":6.0486580196700279E-2},{"$f":"(Monthly!AO463/Monthly!AO451)-1","v":2.1091040440309961E-2},{"$f":"((Monthly!AP463-Monthly!AP451)*100)","v":-3.0000000000000027},{"$f":"Monthly!AQ463-Monthly!AQ451","v":3},{"$f":"Monthly!AR463-Monthly!AR451","v":6},"--",{"$f":"Monthly!AT463-Monthly!AT451","v":1.7000000000000028},{"$f":"Monthly!AU463-Monthly!AU451","v":2.5},{"$f":"Monthly!AV463-Monthly!AV451","v":1.3000000000000043},{"$f":"Monthly!AW463-Monthly!AW451","v":3.4000000000000057},{"$f":"Monthly!AX463-Monthly!AX451","v":5.2000000000000028},{"$f":"Monthly!AY463-Monthly!AY451","v":1.3000000000000043},{"$f":"Monthly!AZ463-Monthly!AZ451","v":3},{"$f":"Monthly!BA463-Monthly!BA451","v":0},"--",{"$f":"(Monthly!BC463/Monthly!BC451)-1","v":7.9504764216786761E-3},null,null,null,null,null,null,null,null,null,{"$f":"(Monthly!BM463/Monthly!BM451)-1","v":5.9243011334537909E-2},{"$f":"(Monthly!BN463/Monthly!BN451)-1","v":6.1413060884604409E-2},null,null,null,null,null,{"$f":"(Monthly!BT463/Monthly!BT451)-1","v":5.127210547649752E-2},null,null,null,{"$f":"(Monthly!BX463/Monthly!BX451)-1","v":7.7428780131482799E-2},{"$f":"(Monthly!BY463/Monthly!BY451)-1","v":-2.0408163265306145E-2},"--",{"$f":"(Monthly!CA463/Monthly!CA451)-1","v":1.5041112373821663E-2},{"$f":"Monthly!CB463-Monthly!CB451","v":5.9361190454222168E-2},{"$f":"Monthly!CC463-Monthly!CC451","v":-0.22063880954577897},"--","--",null,"--","--",null,{"$f":"(Monthly!CJ463/Monthly!CJ451)-1","v":0.13569321533923295},{"$f":"(Monthly!CK463/Monthly!CK451)-1","v":6.3903907690852746E-2},{"$f":"(Monthly!CL463/Monthly!CL451)-1","v":4.3287510968119447E-2},{"$f":"(Monthly!CM463/Monthly!CM451)-1","v":4.8401826484018251E-2},{"$f":"(Monthly!CN463/Monthly!CN451)-1","v":3.3253765742036423E-2},{"$f":"(Monthly!CO463/Monthly!CO451)-1","v":0.11033243486073663},{"$f":"(Monthly!CP463/Monthly!CP451)-1","v":0.10722730725935103},{"$f":"(Monthly!CQ463/Monthly!CQ451)-1","v":1.1723662933461165E-2},{"$f":"(Monthly!CR463/Monthly!CR451)-1","v":0.13344592783478726},null,null,null,null,null,null,null,{"$f":"(Monthly!CZ463/Monthly!CZ451)-1","v":3.0045721750489918E-2},{"$f":"(Monthly!DA463/Monthly!DA451)-1","v":2.6510480887792953E-2},null,null,null,null,null,null,{"$f":"((Monthly!DH463-Monthly!DH451)*60)","v":6.0000000000000853},{"$f":"((Monthly!DI463-Monthly!DI451)*100)","v":30.000000000001137},{"$f":"((Monthly!DJ463-Monthly!DJ451)*100)","v":-69.999999999999929},{"$f":"((Monthly!DK463-Monthly!DK451)*100)","v":-39.999999999999943},{"$f":"Monthly!DL463-Monthly!DL451","v":5},null,null,null,{"$f":"Monthly!DP463-Monthly!DP451","v":2539},null,null,null,{"$f":"(Monthly!DT463/Monthly!DT451)-1","v":-5.7731958762886615E-2},{"$f":"Monthly!DU463-Monthly!DU451","v":0.59999999999999964},{"$f":"(Monthly!DV463/Monthly!DV451)-1","v":4.0949842500605849E-2},{"$f":"(Monthly!DW463/Monthly!DW451)-1","v":4.2425695110259065E-2},{"$f":"(Monthly!DX463/Monthly!DX451)-1","v":3.8086802480070903E-2},{"$f":"(Monthly!DY463/Monthly!DY451)-1","v":4.5434098065676887E-2},{"$f":"(Monthly!DZ463/Monthly!DZ451)-1","v":3.5688059920693238E-2},{"$f":"(Monthly!EA463/Monthly!EA451)-1","v":3.6281179138321962E-2},{"$f":"(Monthly!EB463/Monthly!EB451)-1","v":3.4218590398365611E-2},{"$f":"(Monthly!EC463/Monthly!EC451)-1","v":5.3673938002296362E-2},null,null,null,null,null,null,null,null,null,null,null,null,null,{"$f":"(Monthly!EQ463/Monthly!EQ451)-1","v":2.3961661341852958E-2},{"$f":"(Monthly!ER463/Monthly!ER451)-1","v":1.4265335235378096E-2},{"$f":"(Monthly!ES463/Monthly!ES451)-1","v":1.1695906432748426E-2},null,null,null,null,null,{"$f":"((Monthly!EY463-Monthly!EY451)*100)","v":-50},{"$f":"((Monthly!EZ463-Monthly!EZ451)*100)","v":-50},{"$f":"((Monthly!FA463-Monthly!FA451)*100)","v":33.999999999999986},{"$f":"((Monthly!FB463-Monthly!FB451)*100)","v":41.999999999999993},"--",{"$f":"((Monthly!FD463-Monthly!FD451)*100)","v":59.000000000000071},{"$f":"((Monthly!FE463-Monthly!FE451)*100)","v":-19.000000000000039},{"$f":"((Monthly!FF463-Monthly!FF451)*100)","v":20.999999999999996},{"$f":"((Monthly!FG463-Monthly!FG451)*100)","v":42.000000000000085},{"$f":"((Monthly!FH463-Monthly!FH451)*100)","v":59.999999999999964},{"$f":"((Monthly!FI463-Monthly!FI451)*100)","v":62.999999999999986},null,null,null,null,null,null,{"$f":"(Monthly!FP463/Monthly!FP451)-1","v":1.36945739877119E-2},{"$f":"(Monthly!FQ463/Monthly!FQ451)-1","v":-3.958068462591724E-4},{"$f":"(Monthly!FR463/Monthly!FR451)-1","v":0.19431032026216233},"--",{"$f":"(Monthly!FT463/Monthly!FT451)-1","v":4.2068393773549317E-2},{"$f":"(Monthly!FU463/Monthly!FU451)-1","v":2.9697204283870571E-2},{"$f":"(Monthly!FV463/Monthly!FV451)-1","v":8.2807507666618596E-2},{"$f":"(Monthly!FW463/Monthly!FW451)-1","v":0.19558910145939201},{"$f":"(Monthly!FX463/Monthly!FX451)-1","v":0.2057306164866568},null,null,null,null,null,{"$f":"(Monthly!GD463/Monthly!GD451)-1","v":0.31596269884805261},{"$f":"(Monthly!GE463/Monthly!GE451)-1","v":0.35508982035928138},{"$f":"(Monthly!GF463/Monthly!GF451)-1","v":7.7521053768084824E-2},{"$f":"(Monthly!GG463/Monthly!GG451)-1","v":0.13047363717604998},{"$f":"(Monthly!GH463/Monthly!GH451)-1","v":{"$error":"#DIV/0!"}},"--",{"$f":"(Monthly!GJ463/Monthly!GJ451)-1","v":0.15471923536439669},{"$f":"(Monthly!GK463/Monthly!GK451)-1","v":8.3873167405386972E-2},"--"]
["1997-01-01",null,null,null,{"$f":"(Monthly!E467/Monthly!E455)-1","v":{"$error":"#DIV/0!"}},{"$f":"(Monthly!F467/Monthly!F455)-1","v":{"$error":"#DIV/0!"}},{"$f":"(Monthly!G467/Monthly!G455)-1","v":{"$error":"#DIV/0!"}},{"$f":"(Monthly!H467/Monthly!H455)-1","v":{"$error":"#DIV/0!"}},null,null,null,null,null,null,null,null,null,null,null,null,null,null,null,{"$f":"(Monthly!X467-Monthly!X455)","v":0.79999999999999716},{"$f":"(Monthly!Y467/Monthly!Y455)-1","v":8.3919994280713839E-2},null,null,null,null,null,null,null,null,null,null,null,null,null,{"$f":"(Monthly!AM467/Monthly!AM455)-1","v":6.8034722861261887E-2},{"$f":"(Monthly!AN467/Monthly!AN455)-1","v":7.949145638976729E-2},{"$f":"(Monthly!AO467/Monthly!AO455)-1","v":1.7161659542470176E-2},{"$f":"((Monthly!AP467-Monthly!AP455)*100)","v":-7.0000000000000062},{"$f":"Monthly!AQ467-Monthly!AQ455","v":8.2999999999999972},{"$f":"Monthly!AR467-Monthly!AR455","v":4},"--",{"$f":"Monthly!AT467-Monthly!AT455","v":4.5},{"$f":"Monthly!AU467-Monthly!AU455","v":6.2000000000000028},{"$f":"Monthly!AV467-Monthly!AV455","v":5.2000000000000028},{"$f":"Monthly!AW467-Monthly!AW455","v":-3.3999999999999986},{"$f":"Monthly!AX467-Monthly!AX455","v":12.899999999999999},{"$f":"Monthly!AY467-Monthly!AY455","v":13},{"$f":"Monthly!AZ467-Monthly!AZ455","v":14.199999999999996},{"$f":"Monthly!BA467-Monthly!BA455","v":1.9000000000000057},"--",{"$f":"(Monthly!BC467/Monthly!BC455)-1","v":8.4016607206192306E-2},null,null,null,null,null,null,null,null,null,{"$f":"(Monthly!BM467/Monthly!BM455)-1","v":7.0871121203846199E-2},{"$f":"(Monthly!BN467/Monthly!BN455)-1","v":7.0028070435118162E-2},null,null,null,null,null,{"$f":"(Monthly!BT467/Monthly!BT455)-1","v":5.449333954274338E-2},null,null,null,{"$f":"(Monthly!BX467/Monthly!BX455)-1","v":-7.6346284935241981E-2},{"$f":"(Monthly!BY467/Monthly!BY455)-1","v":-3.6049026676280294E-3},"--",{"$f":"(Monthly!CA467/Monthly!CA455)-1","v":6.1111495605232324E-2},{"$f":"Monthly!CB467-Monthly!CB455","v":-5.2559342162606271E-2},{"$f":"Monthly!CC467-Monthly!CC455","v":-0.26255934216260357},"--","--",null,"--","--",null,{"$f":"(Monthly!CJ467/Monthly!CJ455)-1","v":0.16246498599439785},{"$f":"(Monthly!CK467/Monthly!CK455)-1","v":6.8103969373362938E-2},{"$f":"(Monthly!CL467/Monthly!CL455)-1","v":-2.2163896179644094E-2},{"$f":"(Monthly!CM467/Monthly!CM455)-1","v":-3.062117235345585E-2},{"$f":"(Monthly!CN467/Monthly!CN455)-1","v":3.606132879046009E-2},{"$f":"(Monthly!CO467/Monthly!CO455)-1","v":0.11388888888888893},{"$f":"(Monthly!CP467/Monthly!CP455)-1","v":9.112781279462423E-2},{"$f":"(Monthly!CQ467/Monthly!CQ455)-1","v":1.1967137918560855E-2},{"$f":"(Monthly!CR467/Monthly!CR455)-1","v":0.13439180505903736},null,null,null,null,null,null,null,{"$f":"(Monthly!CZ467/Monthly!CZ455)-1","v":3.0381383322559907E-2},{"$f":"(Monthly!DA467/Monthly!DA455)-1","v":2.5045815516188341E-2},null,null,null,null,null,null,{"$f":"((Monthly!DH467-Monthly!DH455)*60)","v":30},{"$f":"((Monthly!DI467-Monthly!DI455)*100)","v":59.999999999999432},{"$f":"((Monthly!DJ467-Monthly!DJ455)*100)","v":-40.000000000000036},{"$f":"((Monthly!DK467-Monthly!DK455)*100)","v":-29.999999999999982},{"$f":"Monthly!DL467-Monthly!DL455","v":89},null,null,null,{"$f":"Monthly!DP467-Monthly!DP455","v":3072},null,null,null,{"$f":"(Monthly!DT467/Monthly!DT455)-1","v":-9.35828877005348E-2},{"$f":"Monthly!DU467-Monthly!DU455","v":-0.50000000000000089},{"$f":"(Monthly!DV467/Monthly!DV455)-1","v":1.31734637532539E-2},{"$f":"(Monthly!DW467/Monthly!DW455)-1","v":1.1345349211458133E-2},{"$f":"(Monthly!DX467/Monthly!DX455)-1","v":1.0030090270812364E-2},{"$f":"(Monthly!DY467/Monthly!DY455)-1","v":1.9543973941368087E-2},{"$f":"(Monthly!DZ467/Monthly!DZ455)-1","v":7.0339976553341899E-3},{"$f":"(Monthly!EA467/Monthly!EA455)-1","v":7.1986836692718992E-3},{"$f":"(Monthly!EB467/Monthly!EB455)-1","v":6.6258919469928124E-3},{"$f":"(Monthly!EC467/Monthly!EC455)-1","v":1.4761215629522484E-2},null,null,null,null,null,null,null,null,null,null,null,null,null,{"$f":"(Monthly!EQ467/Monthly!EQ455)-1","v":2.6920031670625511E-2},{"$f":"(Monthly!ER467/Monthly!ER455)-1","v":7.0671378091873294E-3},{"$f":"(Monthly!ES467/Monthly!ES455)-1","v":5.0724637681158757E-3},null,null,null,null,null,{"$f":"((Monthly!EY467-Monthly!EY455)*100)","v":-25},{"$f":"((Monthly!EZ467-Monthly!EZ455)*100)","v":-30.999999999999961},{"$f":"((Monthly!FA467-Monthly!FA455)*100)","v":61.000000000000028},{"$f":"((Monthly!FB467-Monthly!FB455)*100)","v":62.000000000000014},"--",{"$f":"((Monthly!FD467-Monthly!FD455)*100)","v":79},{"$f":"((Monthly!FE467-Monthly!FE455)*100)","v":3.0000000000000249},{"$f":"((Monthly!FF467-Monthly!FF455)*100)","v":52.000000000000043},{"$f":"((Monthly!FG467-Monthly!FG455)*100)","v":89.999999999999943},{"$f":"((Monthly!FH467-Monthly!FH455)*100)","v":96.999999999999972},{"$f":"((Monthly!FI467-Monthly!FI455)*100)","v":92.999999999999972},null,null,null,null,null,null,{"$f":"(Monthly!FP467/Monthly!FP455)-1","v":-1.2802692223279011E-2},{"$f":"(Monthly!FQ467/Monthly!FQ455)-1","v":-1.4870958457257055E-3},{"$f":"(Monthly!FR467/Monthly!FR455)-1","v":4.6560436328636712E-2},"--",{"$f":"(Monthly!FT467/Monthly!FT455)-1","v":3.6805560595582598E-2},{"$f":"(Monthly!FU467/Monthly!FU455)-1","v":4.1474121328143543E-2},{"$f":"(Monthly!FV467/Monthly!FV455)-1","v":0.12076420394058007},{"$f":"(Monthly!FW467/Monthly!FW455)-1","v":0.27610246876452438},{"$f":"(Monthly!FX467/Monthly!FX455)-1","v":0.10345811560343132},null,null,null,null,null,{"$f":"(Monthly!GD467/Monthly!GD455)-1","v":0.33315677966101709},{"$f":"(Monthly!GE467/Monthly!GE455)-1","v":0.31876750700280088},{"$f":"(Monthly!GF467/Monthly!GF455)-1","v":0.12722478576137108},{"$f":"(Monthly!GG467/Monthly!GG455)-1","v":0.12751091703056749},{"$f":"(Monthly!GH467/Monthly!GH455)-1","v":{"$error":"#DIV/0!"}},"--",{"$f":"(Monthly!GJ467/Monthly!GJ455)-1","v":0.23519935561820371},{"$f":"(Monthly!GK467/Monthly!GK455)-1","v":-5.9718633362044193E-2},"--"]
["1997-08-01",null,null,null,{"$f":"(Monthly!E474/Monthly!E462)-1","v":{"$error":"#DIV/0!"}},{"$f":"(Monthly!F474/Monthly!F462)-1","v":{"$error":"#DIV/0!"}},{"$f":"(Monthly!G474/Monthly!G462)-1","v":{"$error":"#DIV/0!"}},{"$f":"(Monthly!H474/Monthly!H462)-1","v":{"$error":"#DIV/0!"}},null,null,null,null,null,null,null,null,null,null,null,null,null,null,null,{"$f":"(Monthly!X474-Monthly!X462)","v":0.79999999999999716},{"$f":"(Monthly!Y474/Monthly!Y462)-1","v":9.983228410590983E-2},null,null,null,null,null,null,null,null,null,null,null,null,null,{"$f":"(Monthly!AM474/Monthly!AM462)-1","v":7.3164283752977344E-2},{"$f":"(Monthly!AN474/Monthly!AN462)-1","v":8.4266604244037202E-2},{"$f":"(Monthly!AO474/Monthly!AO462)-1","v":2.8047504855087446E-2},{"$f":"((Monthly!AP474-Monthly!AP462)*100)","v":-4.0000000000000036},{"$f":"Monthly!AQ474-Monthly!AQ462","v":4.6999999999999957},{"$f":"Monthly!AR474-Monthly!AR462","v":13},"--",{"$f":"Monthly!AT474-Monthly!AT462","v":3.8999999999999986},{"$f":"Monthly!AU474-Monthly!AU462","v":-0.39999999999999858},{"$f":"Monthly!AV474-Monthly!AV462","v":3.7000000000000028},{"$f":"Monthly!AW474-Monthly!AW462","v":0.79999999999999716},{"$f":"Monthly!AX474-Monthly!AX462","v":5.6999999999999957},{"$f":"Monthly!AY474-Monthly!AY462","v":5.5},{"$f":"Monthly!AZ474-Monthly!AZ462","v":6.3999999999999986},{"$f":"Monthly!BA474-Monthly!BA462","v":3.3000000000000043},"--",{"$f":"(Monthly!BC474/Monthly!BC462)-1","v":0.14675068924773527},null,null,null,null,null,null,null,null,null,{"$f":"(Monthly!BM474/Monthly!BM462)-1","v":5.9910794758614383E-2},{"$f":"(Monthly!BN474/Monthly!BN462)-1","v":5.8242234283821359E-2},null,null,null,null,null,{"$f":"(Monthly!BT474/Monthly!BT462)-1","v":3.4295569731964903E-2},null,null,null,{"$f":"(Monthly!BX474/Monthly!BX462)-1","v":-0.10725754656390496},{"$f":"(Monthly!BY474/Monthly!BY462)-1","v":2.5477707006369421E-2},"--",{"$f":"(Monthly!CA474/Monthly!CA462)-1","v":4.2107350608143967E-2},{"$f":"Monthly!CB474-Monthly!CB462","v":-0.82221928217313067},{"$f":"Monthly!CC474-Monthly!CC462","v":-1.0322192821731306},"--","--",null,"--","--",null,{"$f":"(Monthly!CJ474/Monthly!CJ462)-1","v":-1.3317191283293006E-2},{"$f":"(Monthly!CK474/Monthly!CK462)-1","v":6.1866730241983525E-2},{"$f":"(Monthly!CL474/Monthly!CL462)-1","v":-4.4113434545975494E-2},{"$f":"(Monthly!CM474/Monthly!CM462)-1","v":-0.12140575079872207},{"$f":"(Monthly!CN474/Monthly!CN462)-1","v":3.6985280417365374E-2},{"$f":"(Monthly!CO474/Monthly!CO462)-1","v":9.6968709256844754E-2},{"$f":"(Monthly!CP474/Monthly!CP462)-1","v":6.0398212867973422E-2},{"$f":"(Monthly!CQ474/Monthly!CQ462)-1","v":1.2078851453462436E-2},{"$f":"(Monthly!CR474/Monthly!CR462)-1","v":8.5148536157457988E-2},null,null,null,null,null,null,null,{"$f":"(Monthly!CZ474/Monthly!CZ462)-1","v":2.2900763358778775E-2},{"$f":"(Monthly!DA474/Monthly!DA462)-1","v":2.2891566265060392E-2},null,null,null,null,null,null,{"$f":"((Monthly!DH474-Monthly!DH462)*60)","v":12.000000000000171},{"$f":"((Monthly!DI474-Monthly!DI462)*100)","v":50},{"$f":"((Monthly!DJ474-Monthly!DJ462)*100)","v":-70.000000000000114},{"$f":"((Monthly!DK474-Monthly!DK462)*100)","v":-29.999999999999982},{"$f":"Monthly!DL474-Monthly!DL462","v":197},null,null,null,{"$f":"Monthly!DP474-Monthly!DP462","v":2890},null,null,null,{"$f":"(Monthly!DT474/Monthly!DT462)-1","v":-1.5003750937734317E-3},{"$f":"Monthly!DU474-Monthly!DU462","v":-0.60000000000000053},{"$f":"(Monthly!DV474/Monthly!DV462)-1","v":1.927095426050629E-2},{"$f":"(Monthly!DW474/Monthly!DW462)-1","v":2.0692278432864253E-2},{"$f":"(Monthly!DX474/Monthly!DX462)-1","v":1.895584030498787E-2},{"$f":"(Monthly!DY474/Monthly!DY462)-1","v":3.3746262281076467E-2},{"$f":"(Monthly!DZ474/Monthly!DZ462)-1","v":1.4080540692762655E-2},{"$f":"(Monthly!EA474/Monthly!EA462)-1","v":1.4220817697017551E-2},{"$f":"(Monthly!EB474/Monthly!EB462)-1","v":1.37322216772926E-2},{"$f":"(Monthly!EC474/Monthly!EC462)-1","v":2.5121555915721183E-2},null,null,null,null,null,null,null,null,null,null,null,null,null,{"$f":"(Monthly!EQ474/Monthly!EQ462)-1","v":-8.5736554949338295E-3},{"$f":"(Monthly!ER474/Monthly!ER462)-1","v":0},{"$f":"(Monthly!ES474/Monthly!ES462)-1","v":-2.8860028860029363E-3},null,null,null,null,null,{"$f":"((Monthly!EY474-Monthly!EY462)*100)","v":25},{"$f":"((Monthly!EZ474-Monthly!EZ462)*100)","v":32.000000000000028},{"$f":"((Monthly!FA474-Monthly!FA462)*100)","v":-24.000000000000021},{"$f":"((Monthly!FB474-Monthly!FB462)*100)","v":-35.999999999999943},"--",{"$f":"((Monthly!FD474-Monthly!FD462)*100)","v":-51.999999999999957},{"$f":"((Monthly!FE474-Monthly!FE462)*100)","v":8.9999999999999858},{"$f":"((Monthly!FF474-Monthly!FF462)*100)","v":-11.000000000000032},{"$f":"((Monthly!FG474-Monthly!FG462)*100)","v":-8.9999999999999858},{"$f":"((Monthly!FH474-Monthly!FH462)*100)","v":-22.999999999999954},{"$f":"((Monthly!FI474-Monthly!FI462)*100)","v":-33.999999999999986},null,null,null,null,null,null,{"$f":"(Monthly!FP474/Monthly!FP462)-1","v":1.3336248360297231E-2},{"$f":"(Monthly!FQ474/Monthly!FQ462)-1","v":-2.3027380995214175E-3},{"$f":"(Monthly!FR474/Monthly!FR462)-1","v":3.5598791637278193E-2},"--",{"$f":"(Monthly!FT474/Monthly!FT462)-1","v":8.1416820892453279E-2},{"$f":"(Monthly!FU474/Monthly!FU462)-1","v":9.9481552624366199E-2},{"$f":"(Monthly!FV474/Monthly!FV462)-1","v":2.988680392007903E-2},{"$f":"(Monthly!FW474/Monthly!FW462)-1","v":0.1051549393161928},{"$f":"(Monthly!FX474/Monthly!FX462)-1","v":0.12477208813622176},null,null,null,null,null,{"$f":"(Monthly!GD474/Monthly!GD462)-1","v":-9.244080145719491E-2},{"$f":"(Monthly!GE474/Monthly!GE462)-1","v":-9.3125304729400282E-2},{"$f":"(Monthly!GF474/Monthly!GF462)-1","v":2.3585848490905503E-2},{"$f":"(Monthly!GG474/Monthly!GG462)-1","v":-2.9975020815986686E-2},{"$f":"(Monthly!GH474/Monthly!GH462)-1","v":{"$error":"#DIV/0!"}},"--",{"$f":"(Monthly!GJ474/Monthly!GJ462)-1","v":0.20156173743289418},{"$f":"(Monthly!GK474/Monthly!GK462)-1","v":2.5127226463104391E-2},"--"]
["1997-10-01",null,null,null,{"$f":"(Monthly!E476/Monthly!E464)-1","v":{"$error":"#DIV/0!"}},{"$f":"(Monthly!F476/Monthly!F464)-1","v":{"$error":"#DIV/0!"}},{"$f":"(Monthly!G476/Monthly!G464)-1","v":{"$error":"#DIV/0!"}},{"$f":"(Monthly!H476/Monthly!H464)-1","v":{"$error":"#DIV/0!"}},null,null,null,null,null,null,null,null,null,null,null,null,null,null,null,{"$f":"(Monthly!X476-Monthly!X464)","v":1.5},{"$f":"(Monthly!Y476/Monthly!Y464)-1","v":8.8707045079589264E-2},null,null,null,null,null,null,null,null,null,null,null,null,null,{"$f":"(Monthly!AM476/Monthly!AM464)-1","v":8.5400263758134587E-2},{"$f":"(Monthly!AN476/Monthly!AN464)-1","v":9.5394689585909909E-2},{"$f":"(Monthly!AO476/Monthly!AO464)-1","v":3.3740172100862997E-2},{"$f":"((Monthly!AP476-Monthly!AP464)*100)","v":-2.0000000000000018},{"$f":"Monthly!AQ476-Monthly!AQ464","v":5.8999999999999986},{"$f":"Monthly!AR476-Monthly!AR464","v":12},"--",{"$f":"Monthly!AT476-Monthly!AT464","v":6.7999999999999972},{"$f":"Monthly!AU476-Monthly!AU464","v":-2.1000000000000014},{"$f":"Monthly!AV476-Monthly!AV464","v":-1},{"$f":"Monthly!AW476-Monthly!AW464","v":5.3999999999999986},{"$f":"Monthly!AX476-Monthly!AX464","v":8},{"$f":"Monthly!AY476-Monthly!AY464","v":7.8999999999999986},{"$f":"Monthly!AZ476-Monthly!AZ464","v":4},{"$f":"Monthly!BA476-Monthly!BA464","v":4},"--",{"$f":"(Monthly!BC476/Monthly!BC464)-1","v":9.5631326584975973E-2},null,null,null,null,null,null,null,null,null,{"$f":"(Monthly!BM476/Monthly!BM464)-1","v":3.9735069376897192E-2},{"$f":"(Monthly!BN476/Monthly!BN464)-1","v":3.7787797773432885E-2},null,null,null,null,null,{"$f":"(Monthly!BT476/Monthly!BT464)-1","v":-7.2896713548079584E-3},null,null,null,{"$f":"(Monthly!BX476/Monthly!BX464)-1","v":9.1954022988505857E-2},{"$f":"(Monthly!BY476/Monthly!BY464)-1","v":0.10382916053019153},"--",{"$f":"(Monthly!CA476/Monthly!CA464)-1","v":4.2746460058775693E-3},{"$f":"Monthly!CB476-Monthly!CB464","v":-1.475922120599404},{"$f":"Monthly!CC476-Monthly!CC464","v":-1.8259221205994045},"--","--",null,"--","--",null,{"$f":"(Monthly!CJ476/Monthly!CJ464)-1","v":0.11111111111111116},{"$f":"(Monthly!CK476/Monthly!CK464)-1","v":6.4954437371693707E-2},{"$f":"(Monthly!CL476/Monthly!CL464)-1","v":2.3522493384298793E-2},{"$f":"(Monthly!CM476/Monthly!CM464)-1","v":1.2578616352201255E-2},{"$f":"(Monthly!CN476/Monthly!CN464)-1","v":4.234609868805439E-2},{"$f":"(Monthly!CO476/Monthly!CO464)-1","v":0.10115144730529346},{"$f":"(Monthly!CP476/Monthly!CP464)-1","v":6.3389110414288963E-2},{"$f":"(Monthly!CQ476/Monthly!CQ464)-1","v":1.2088801504909874E-2},{"$f":"(Monthly!CR476/Monthly!CR464)-1","v":8.4827021198854213E-2},null,null,null,null,null,null,null,{"$f":"(Monthly!CZ476/Monthly!CZ464)-1","v":2.0859671302149163E-2},{"$f":"(Monthly!DA476/Monthly!DA464)-1","v":2.278177458033559E-2},null,null,null,null,null,null,{"$f":"((Monthly!DH476-Monthly!DH464)*60)","v":6.0000000000000853},{"$f":"((Monthly!DI476-Monthly!DI464)*100)","v":9.9999999999994316},{"$f":"((Monthly!DJ476-Monthly!DJ464)*100)","v":-100},{"$f":"((Monthly!DK476-Monthly!DK464)*100)","v":-50},{"$f":"Monthly!DL476-Monthly!DL464","v":245},null,null,null,{"$f":"Monthly!DP476-Monthly!DP464","v":3270},null,null,null,{"$f":"(Monthly!DT476/Monthly!DT464)-1","v":-8.1065088757396486E-2},{"$f":"Monthly!DU476-Monthly!DU464","v":-0.60000000000000053},{"$f":"(Monthly!DV476/Monthly!DV464)-1","v":2.9391182645206682E-2},{"$f":"(Monthly!DW476/Monthly!DW464)-1","v":3.0132984856637623E-2},{"$f":"(Monthly!DX476/Monthly!DX464)-1","v":3.0037413148049197E-2},{"$f":"(Monthly!DY476/Monthly!DY464)-1","v":3.2453483340545208E-2},{"$f":"(Monthly!DZ476/Monthly!DZ464)-1","v":2.9244747302668905E-2},{"$f":"(Monthly!EA476/Monthly!EA464)-1","v":2.9681274900398291E-2},{"$f":"(Monthly!EB476/Monthly!EB464)-1","v":2.8162055335968272E-2},{"$f":"(Monthly!EC476/Monthly!EC464)-1","v":3.0377668308702921E-2},null,null,null,null,null,null,null,null,null,null,null,null,null,{"$f":"(Monthly!EQ476/Monthly!EQ464)-1","v":-1.5625000000000222E-3},{"$f":"(Monthly!ER476/Monthly!ER464)-1","v":2.1082220660575413E-3},{"$f":"(Monthly!ES476/Monthly!ES464)-1","v":-3.6101083032491488E-3},null,null,null,null,null,{"$f":"((Monthly!EY476-Monthly!EY464)*100)","v":25},{"$f":"((Monthly!EZ476-Monthly!EZ464)*100)","v":25.999999999999979},{"$f":"((Monthly!FA476-Monthly!FA464)*100)","v":-38.999999999999972},{"$f":"((Monthly!FB476-Monthly!FB464)*100)","v":-50},"--",{"$f":"((Monthly!FD476-Monthly!FD464)*100)","v":-62.999999999999986},{"$f":"((Monthly!FE476-Monthly!FE464)*100)","v":-2.0000000000000462},{"$f":"((Monthly!FF476-Monthly!FF464)*100)","v":-8.9999999999999858},{"$f":"((Monthly!FG476-Monthly!FG464)*100)","v":-14.000000000000057},{"$f":"((Monthly!FH476-Monthly!FH464)*100)","v":-33.999999999999986},{"$f":"((Monthly!FI476-Monthly!FI464)*100)","v":-50},null,null,null,null,null,null,{"$f":"(Monthly!FP476/Monthly!FP464)-1","v":2.6724903760734442E-2},{"$f":"(Monthly!FQ476/Monthly!FQ464)-1","v":-1.9688111501939831E-3},{"$f":"(Monthly!FR476/Monthly!FR464)-1","v":1.7622341457107726E-2},"--",{"$f":"(Monthly!FT476/Monthly!FT464)-1","v":8.1742895705971153E-2},{"$f":"(Monthly!FU476/Monthly!FU464)-1","v":7.5321383306174106E-2},{"$f":"(Monthly!FV476/Monthly!FV464)-1","v":0.1083869725273503},{"$f":"(Monthly!FW476/Monthly!FW464)-1","v":0.13652393813759067},{"$f":"(Monthly!FX476/Monthly!FX464)-1","v":0.18864530635188292},null,null,null,null,null,{"$f":"(Monthly!GD476/Monthly!GD464)-1","v":-0.14618473895582318},{"$f":"(Monthly!GE476/Monthly!GE464)-1","v":-0.17756622516556286},{"$f":"(Monthly!GF476/Monthly!GF464)-1","v":-8.331998077231173E-3},{"$f":"(Monthly!GG476/Monthly!GG464)-1","v":-0.1058201058201057},{"$f":"(Monthly!GH476/Monthly!GH464)-1","v":{"$error":"#DIV/0!"}},"--",{"$f":"(Monthly!GJ476/Monthly!GJ464)-1","v":0.30713422007255131},{"$f":"(Monthly!GK476/Monthly!GK464)-1","v":1.0037281330656622E-2},"--"]
["1998-03-01",null,null,null,{"$f":"(Monthly!E481/Monthly!E469)-1","v":{"$error":"#DIV/0!"}},{"$f":"(Monthly!F481/Monthly!F469)-1","v":{"$error":"#DIV/0!"}},{"$f":"(Monthly!G481/Monthly!G469)-1","v":{"$error":"#DIV/0!"}},{"$f":"(Monthly!H481/Monthly!H469)-1","v":{"$error":"#DIV/0!"}},null,null,null,null,null,null,null,null,null,null,null,null,null,null,null,{"$f":"(Monthly!X481-Monthly!X469)","v":-0.5},{"$f":"(Monthly!Y481/Monthly!Y469)-1","v":8.8583741643152969E-2},null,null,null,null,null,null,null,null,null,null,null,null,null,{"$f":"(Monthly!AM481/Monthly!AM469)-1","v":6.7654175779072512E-2},{"$f":"(Monthly!AN481/Monthly!AN469)-1","v":7.4674337127257351E-2},{"$f":"(Monthly!AO481/Monthly!AO469)-1","v":4.9341659218701039E-2},{"$f":"((Monthly!AP481-Monthly!AP469)*100)","v":2.0000000000000018},{"$f":"Monthly!AQ481-Monthly!AQ469","v":-0.89999999999999858},{"$f":"Monthly!AR481-Monthly!AR469","v":0},{"$f":"Monthly!AS481-Monthly!AS469","v":0.5},{"$f":"Monthly!AT481-Monthly!AT469","v":0.60000000000000142},{"$f":"Monthly!AU481-Monthly!AU469","v":-9},{"$f":"Monthly!AV481-Monthly!AV469","v":3.8000000000000043},{"$f":"Monthly!AW481-Monthly!AW469","v":2.5},{"$f":"Monthly!AX481-Monthly!AX469","v":-3.7000000000000028},{"$f":"Monthly!AY481-Monthly!AY469","v":-6.8999999999999986},{"$f":"Monthly!AZ481-Monthly!AZ469","v":-0.5},{"$f":"Monthly!BA481-Monthly!BA469","v":-0.10000000000000142},"--",{"$f":"(Monthly!BC481/Monthly!BC469)-1","v":6.4157210074730076E-2},null,null,null,null,null,null,null,null,null,{"$f":"(Monthly!BM481/Monthly!BM469)-1","v":3.054356670322278E-2},{"$f":"(Monthly!BN481/Monthly!BN469)-1","v":2.8429244017271316E-2},null,null,null,null,null,{"$f":"(Monthly!BT481/Monthly!BT469)-1","v":-2.5628001074976425E-2},null,null,null,{"$f":"(Monthly!BX481/Monthly!BX469)-1","v":7.549759780370624E-2},{"$f":"(Monthly!BY481/Monthly!BY469)-1","v":0.11768802228412256},"--",{"$f":"(Monthly!CA481/Monthly!CA469)-1","v":-2.8684278684278808E-2},{"$f":"Monthly!CB481-Monthly!CB469","v":-1.8885524107707159},{"$f":"Monthly!CC481-Monthly!CC469","v":-2.2385524107707155},"--","--",null,"--","--",null,{"$f":"(Monthly!CJ481/Monthly!CJ469)-1","v":6.0168471720818406E-3},{"$f":"(Monthly!CK481/Monthly!CK469)-1","v":7.1515690691767997E-2},{"$f":"(Monthly!CL481/Monthly!CL469)-1","v":0.25211744776962175},{"$f":"(Monthly!CM481/Monthly!CM469)-1","v":8.0530973451327537E-2},{"$f":"(Monthly!CN481/Monthly!CN469)-1","v":5.9338076897969882E-2},{"$f":"(Monthly!CO481/Monthly!CO469)-1","v":0.10980753009738531},{"$f":"(Monthly!CP481/Monthly!CP469)-1","v":5.4390144558426279E-2},{"$f":"(Monthly!CQ481/Monthly!CQ469)-1","v":1.1868104377513067E-2},{"$f":"(Monthly!CR481/Monthly!CR469)-1","v":5.7605329831991403E-2},null,null,null,null,null,null,null,{"$f":"(Monthly!CZ481/Monthly!CZ469)-1","v":1.3767209011263937E-2},{"$f":"(Monthly!DA481/Monthly!DA469)-1","v":2.25653206650831E-2},null,null,null,null,null,null,{"$f":"((Monthly!DH481-Monthly!DH469)*60)","v":0},{"$f":"((Monthly!DI481-Monthly!DI469)*100)","v":0},{"$f":"((Monthly!DJ481-Monthly!DJ469)*100)","v":-69.999999999999929},{"$f":"((Monthly!DK481-Monthly!DK469)*100)","v":-50},{"$f":"Monthly!DL481-Monthly!DL469","v":297},null,null,null,{"$f":"Monthly!DP481-Monthly!DP469","v":3177},null,null,null,{"$f":"(Monthly!DT481/Monthly!DT469)-1","v":-1.2523481527864755E-2},{"$f":"Monthly!DU481-Monthly!DU469","v":-1.1000000000000005},{"$f":"(Monthly!DV481/Monthly!DV469)-1","v":3.481624758220514E-2},{"$f":"(Monthly!DW481/Monthly!DW469)-1","v":3.428976824846286E-2},{"$f":"(Monthly!DX481/Monthly!DX469)-1","v":3.6272260461051031E-2},{"$f":"(Monthly!DY481/Monthly!DY469)-1","v":2.2212148685403443E-2},{"$f":"(Monthly!DZ481/Monthly!DZ469)-1","v":4.073700878076858E-2},{"$f":"(Monthly!EA481/Monthly!EA469)-1","v":4.1195476575121237E-2},{"$f":"(Monthly!EB481/Monthly!EB469)-1","v":3.95989974937343E-2},{"$f":"(Monthly!EC481/Monthly!EC469)-1","v":2.915369374469301E-2},null,null,null,null,null,null,null,null,null,null,null,null,null,{"$f":"(Monthly!EQ481/Monthly!EQ469)-1","v":-2.0424194815396701E-2},{"$f":"(Monthly!ER481/Monthly!ER469)-1","v":4.908835904628539E-3},{"$f":"(Monthly!ES481/Monthly!ES469)-1","v":-5.7720057720056506E-3},null,null,null,null,null,{"$f":"((Monthly!EY481-Monthly!EY469)*100)","v":19.999999999999929},{"$f":"((Monthly!EZ481-Monthly!EZ469)*100)","v":10.000000000000053},{"$f":"((Monthly!FA481-Monthly!FA469)*100)","v":-83},{"$f":"((Monthly!FB481-Monthly!FB469)*100)","v":-85.999999999999943},"--",{"$f":"((Monthly!FD481-Monthly!FD469)*100)","v":-77.000000000000043},{"$f":"((Monthly!FE481-Monthly!FE469)*100)","v":-10.999999999999943},{"$f":"((Monthly!FF481-Monthly!FF469)*100)","v":-41.000000000000014},{"$f":"((Monthly!FG481-Monthly!FG469)*100)","v":-66.000000000000014},{"$f":"((Monthly!FH481-Monthly!FH469)*100)","v":-92.999999999999972},{"$f":"((Monthly!FI481-Monthly!FI469)*100)","v":-104},null,null,null,null,null,null,{"$f":"(Monthly!FP481/Monthly!FP469)-1","v":3.2131147540983562E-2},{"$f":"(Monthly!FQ481/Monthly!FQ469)-1","v":-2.1859761224144458E-3},{"$f":"(Monthly!FR481/Monthly!FR469)-1","v":7.6908574445086808E-2},"--",{"$f":"(Monthly!FT481/Monthly!FT469)-1","v":0.11225994743538048},{"$f":"(Monthly!FU481/Monthly!FU469)-1","v":4.7469204004950027E-2},{"$f":"(Monthly!FV481/Monthly!FV469)-1","v":9.4168076545772639E-2},{"$f":"(Monthly!FW481/Monthly!FW469)-1","v":0.32230061180620639},{"$f":"(Monthly!FX481/Monthly!FX469)-1","v":0.19663672296083368},null,null,null,null,null,{"$f":"(Monthly!GD481/Monthly!GD469)-1","v":-0.28442115292996661},{"$f":"(Monthly!GE481/Monthly!GE469)-1","v":-0.3152117093570308},{"$f":"(Monthly!GF481/Monthly!GF469)-1","v":-0.1497762148337598},{"$f":"(Monthly!GG481/Monthly!GG469)-1","v":-0.13506916192026053},{"$f":"(Monthly!GH481/Monthly!GH469)-1","v":{"$error":"#DIV/0!"}},"--",{"$f":"(Monthly!GJ481/Monthly!GJ469)-1","v":0.18641390205371255},{"$f":"(Monthly!GK481/Monthly!GK469)-1","v":4.0127944169816798E-2},"--"]
["1998-08-01",null,null,null,{"$f":"(Monthly!E486/Monthly!E474)-1","v":{"$error":"#DIV/0!"}},{"$f":"(Monthly!F486/Monthly!F474)-1","v":{"$error":"#DIV/0!"}},{"$f":"(Monthly!G486/Monthly!G474)-1","v":{"$error":"#DIV/0!"}},{"$f":"(Monthly!H486/Monthly!H474)-1","v":{"$error":"#DIV/0!"}},null,null,null,null,null,null,null,null,null,null,null,null,null,null,null,{"$f":"(Monthly!X486-Monthly!X474)","v":-1.5},{"$f":"(Monthly!Y486/Monthly!Y474)-1","v":9.9024985988102943E-2},null,null,null,null,null,null,null,null,null,null,null,null,null,{"$f":"(Monthly!AM486/Monthly!AM474)-1","v":5.839272729869216E-2},{"$f":"(Monthly!AN486/Monthly!AN474)-1","v":6.4610029291011895E-2},{"$f":"(Monthly!AO486/Monthly!AO474)-1","v":3.7299531433451882E-2},{"$f":"((Monthly!AP486-Monthly!AP474)*100)","v":3.0000000000000027},{"$f":"Monthly!AQ486-Monthly!AQ474","v":-7},{"$f":"Monthly!AR486-Monthly!AR474","v":-11.5},{"$f":"Monthly!AS486-Monthly!AS474","v":3.5},{"$f":"Monthly!AT486-Monthly!AT474","v":-4.5999999999999943},{"$f":"Monthly!AU486-Monthly!AU474","v":-10.899999999999999},{"$f":"Monthly!AV486-Monthly!AV474","v":-2.5},{"$f":"Monthly!AW486-Monthly!AW474","v":1.7999999999999972},{"$f":"Monthly!AX486-Monthly!AX474","v":-9.3999999999999986},{"$f":"Monthly!AY486-Monthly!AY474","v":-14.300000000000004},{"$f":"Monthly!AZ486-Monthly!AZ474","v":-10.799999999999997},{"$f":"Monthly!BA486-Monthly!BA474","v":-4.9000000000000057},{"$f":"(Monthly!BB486/Monthly!BB474)-1","v":-0.16613418530351431},{"$f":"(Monthly!BC486/Monthly!BC474)-1","v":-9.8571232312131274E-3},null,null,null,null,null,null,null,null,null,{"$f":"(Monthly!BM486/Monthly!BM474)-1","v":3.093970355446829E-2},{"$f":"(Monthly!BN486/Monthly!BN474)-1","v":2.9020963865865834E-2},null,null,null,null,null,{"$f":"(Monthly!BT486/Monthly!BT474)-1","v":-4.3408041243587658E-2},null,null,null,{"$f":"(Monthly!BX486/Monthly!BX474)-1","v":0.16115107913669058},{"$f":"(Monthly!BY486/Monthly!BY474)-1","v":0.14147688060731545},"--",{"$f":"(Monthly!CA486/Monthly!CA474)-1","v":-8.924833491912465E-2},{"$f":"Monthly!CB486-Monthly!CB474","v":-0.97316091299229868},{"$f":"Monthly!CC486-Monthly!CC474","v":-1.1831609129922995},"--","--",null,"--","--",null,{"$f":"(Monthly!CJ486/Monthly!CJ474)-1","v":3.8036809815950923E-2},{"$f":"(Monthly!CK486/Monthly!CK474)-1","v":7.5016838796587493E-2},{"$f":"(Monthly!CL486/Monthly!CL474)-1","v":0.22625112376385981},{"$f":"(Monthly!CM486/Monthly!CM474)-1","v":0.1581818181818182},{"$f":"(Monthly!CN486/Monthly!CN474)-1","v":6.0333431728634146E-2},{"$f":"(Monthly!CO486/Monthly!CO474)-1","v":0.13140692319120473},{"$f":"(Monthly!CP486/Monthly!CP474)-1","v":7.1430944618964043E-2},{"$f":"(Monthly!CQ486/Monthly!CQ474)-1","v":1.1641907940725504E-2},{"$f":"(Monthly!CR486/Monthly!CR474)-1","v":7.6224609339247795E-2},null,null,null,null,null,null,null,{"$f":"(Monthly!CZ486/Monthly!CZ474)-1","v":1.6169154228855787E-2},{"$f":"(Monthly!DA486/Monthly!DA474)-1","v":2.4734982332155431E-2},null,null,null,null,null,null,{"$f":"((Monthly!DH486-Monthly!DH474)*60)","v":-6.0000000000000853},{"$f":"((Monthly!DI486-Monthly!DI474)*100)","v":-20.000000000000284},{"$f":"((Monthly!DJ486-Monthly!DJ474)*100)","v":-69.999999999999929},{"$f":"((Monthly!DK486-Monthly!DK474)*100)","v":-29.999999999999982},{"$f":"Monthly!DL486-Monthly!DL474","v":111},null,null,null,{"$f":"Monthly!DP486-Monthly!DP474","v":3458},null,null,null,{"$f":"(Monthly!DT486/Monthly!DT474)-1","v":-7.1374906085649892E-2},{"$f":"Monthly!DU486-Monthly!DU474","v":-1},{"$f":"(Monthly!DV486/Monthly!DV474)-1","v":3.3788914198936926E-2},{"$f":"(Monthly!DW486/Monthly!DW474)-1","v":3.5402847134232696E-2},{"$f":"(Monthly!DX486/Monthly!DX474)-1","v":3.6790688006651306E-2},{"$f":"(Monthly!DY486/Monthly!DY474)-1","v":2.4793388429751984E-2},{"$f":"(Monthly!DZ486/Monthly!DZ474)-1","v":4.0821993890585828E-2},{"$f":"(Monthly!EA486/Monthly!EA474)-1","v":4.1285296981499631E-2},{"$f":"(Monthly!EB486/Monthly!EB474)-1","v":3.9671020803096368E-2},{"$f":"(Monthly!EC486/Monthly!EC474)-1","v":3.1884057971014457E-2},null,null,null,null,null,null,null,null,null,null,null,null,null,{"$f":"(Monthly!EQ486/Monthly!EQ474)-1","v":-2.3584905660377409E-2},{"$f":"(Monthly!ER486/Monthly!ER474)-1","v":1.054111033028815E-2},{"$f":"(Monthly!ES486/Monthly!ES474)-1","v":-6.5123010130244685E-3},null,null,null,null,null,{"$f":"((Monthly!EY486-Monthly!EY474)*100)","v":0},{"$f":"((Monthly!EZ486-Monthly!EZ474)*100)","v":0.99999999999997868},{"$f":"((Monthly!FA486-Monthly!FA474)*100)","v":-70.000000000000014},{"$f":"((Monthly!FB486-Monthly!FB474)*100)","v":-68.000000000000057},"--",{"$f":"((Monthly!FD486-Monthly!FD474)*100)","v":-56.00000000000005},{"$f":"((Monthly!FE486-Monthly!FE474)*100)","v":-23.999999999999932},{"$f":"((Monthly!FF486-Monthly!FF474)*100)","v":-34.999999999999964},{"$f":"((Monthly!FG486-Monthly!FG474)*100)","v":-67.000000000000085},{"$f":"((Monthly!FH486-Monthly!FH474)*100)","v":-89.000000000000057},{"$f":"((Monthly!FI486-Monthly!FI474)*100)","v":-96},null,null,null,null,null,null,{"$f":"(Monthly!FP486/Monthly!FP474)-1","v":0.10363178712693277},{"$f":"(Monthly!FQ486/Monthly!FQ474)-1","v":-1.0458364888743521E-3},{"$f":"(Monthly!FR486/Monthly!FR474)-1","v":0.20424580431262696},"--",{"$f":"(Monthly!FT486/Monthly!FT474)-1","v":0.13715052301513797},{"$f":"(Monthly!FU486/Monthly!FU474)-1","v":7.5154909986719032E-2},{"$f":"(Monthly!FV486/Monthly!FV474)-1","v":1.4502375261868927E-2},{"$f":"(Monthly!FW486/Monthly!FW474)-1","v":0.11629017386722862},{"$f":"(Monthly!FX486/Monthly!FX474)-1","v":9.3635377028010947E-2},null,null,null,null,null,{"$f":"(Monthly!GD486/Monthly!GD474)-1","v":-0.32965378825890623},{"$f":"(Monthly!GE486/Monthly!GE474)-1","v":-0.35967741935483877},{"$f":"(Monthly!GF486/Monthly!GF474)-1","v":-0.17047451669595781},{"$f":"(Monthly!GG486/Monthly!GG474)-1","v":-0.13562231759656662},{"$f":"(Monthly!GH486/Monthly!GH474)-1","v":{"$error":"#DIV/0!"}},"--",{"$f":"(Monthly!GJ486/Monthly!GJ474)-1","v":-0.24654752233956134},{"$f":"(Monthly!GK486/Monthly!GK474)-1","v":9.4632330127210729E-2},"--"]
["1999-02-01",null,null,null,{"$f":"(Monthly!E492/Monthly!E480)-1","v":{"$error":"#DIV/0!"}},{"$f":"(Monthly!F492/Monthly!F480)-1","v":{"$error":"#DIV/0!"}},{"$f":"(Monthly!G492/Monthly!G480)-1","v":{"$error":"#DIV/0!"}},{"$f":"(Monthly!H492/Monthly!H480)-1","v":{"$error":"#DIV/0!"}},null,null,null,null,null,null,null,null,null,null,null,null,null,null,null,{"$f":"(Monthly!X492-Monthly!X480)","v":-2},{"$f":"(Monthly!Y492/Monthly!Y480)-1","v":8.5351476036794605E-2},null,null,null,null,null,null,null,null,null,null,null,null,null,{"$f":"(Monthly!AM492/Monthly!AM480)-1","v":4.1342066666896216E-2},{"$f":"(Monthly!AN492/Monthly!AN480)-1","v":4.9242965996551202E-2},{"$f":"(Monthly!AO492/Monthly!AO480)-1","v":2.6283861917309581E-2},{"$f":"((Monthly!AP492-Monthly!AP480)*100)","v":-2.0000000000000018},{"$f":"Monthly!AQ492-Monthly!AQ480","v":-1.1999999999999957},{"$f":"Monthly!AR492-Monthly!AR480","v":0.5},{"$f":"Monthly!AS492-Monthly!AS480","v":-3.5},{"$f":"Monthly!AT492-Monthly!AT480","v":-5.9000000000000057},{"$f":"Monthly!AU492-Monthly!AU480","v":5},{"$f":"Monthly!AV492-Monthly!AV480","v":1.2000000000000028},{"$f":"Monthly!AW492-Monthly!AW480","v":-2.7000000000000028},{"$f":"Monthly!AX492-Monthly!AX480","v":0.39999999999999858},{"$f":"Monthly!AY492-Monthly!AY480","v":-10.299999999999997},{"$f":"Monthly!AZ492-Monthly!AZ480","v":1.3999999999999986},{"$f":"Monthly!BA492-Monthly!BA480","v":-2},{"$f":"(Monthly!BB492/Monthly!BB480)-1","v":-2.7164685908319219E-2},{"$f":"(Monthly!BC492/Monthly!BC480)-1","v":-1.3240793773794723E-2},null,null,null,null,null,null,null,null,null,{"$f":"(Monthly!BM492/Monthly!BM480)-1","v":7.7033980247254608E-2},{"$f":"(Monthly!BN492/Monthly!BN480)-1","v":7.9739610178874765E-2},null,null,null,null,null,{"$f":"(Monthly!BT492/Monthly!BT480)-1","v":3.2365608727868977E-3},null,null,null,{"$f":"(Monthly!BX492/Monthly!BX480)-1","v":5.4292929292929282E-2},{"$f":"(Monthly!BY492/Monthly!BY480)-1","v":4.4323011536126389E-2},"--",{"$f":"(Monthly!CA492/Monthly!CA480)-1","v":0.11638250555967367},{"$f":"Monthly!CB492-Monthly!CB480","v":2.6466290962213534E-2},{"$f":"Monthly!CC492-Monthly!CC480","v":-0.11353370903778526},"--","--",null,"--","--",null,{"$f":"(Monthly!CJ492/Monthly!CJ480)-1","v":-2.0785219399538146E-2},{"$f":"(Monthly!CK492/Monthly!CK480)-1","v":5.6828288817615702E-2},{"$f":"(Monthly!CL492/Monthly!CL480)-1","v":-0.12880184331797229},{"$f":"(Monthly!CM492/Monthly!CM480)-1","v":6.4672594987873921E-2},{"$f":"(Monthly!CN492/Monthly!CN480)-1","v":4.2394942357753873E-2},{"$f":"(Monthly!CO492/Monthly!CO480)-1","v":0.1450024446462248},{"$f":"(Monthly!CP492/Monthly!CP480)-1","v":8.8324494860733571E-2},{"$f":"(Monthly!CQ492/Monthly!CQ480)-1","v":1.1475851228723855E-2},{"$f":"(Monthly!CR492/Monthly!CR480)-1","v":8.6398575750383566E-2},null,null,null,null,null,null,null,{"$f":"(Monthly!CZ492/Monthly!CZ480)-1","v":1.6666666666666607E-2},{"$f":"(Monthly!DA492/Monthly!DA480)-1","v":2.1524141942990127E-2},null,null,null,null,null,null,{"$f":"((Monthly!DH492-Monthly!DH480)*60)","v":-6.0000000000000853},{"$f":"((Monthly!DI492-Monthly!DI480)*100)","v":10.000000000000853},{"$f":"((Monthly!DJ492-Monthly!DJ480)*100)","v":-70.000000000000014},{"$f":"((Monthly!DK492-Monthly!DK480)*100)","v":-19.999999999999929},{"$f":"Monthly!DL492-Monthly!DL480","v":-232},null,null,null,{"$f":"Monthly!DP492-Monthly!DP480","v":3109},null,null,null,{"$f":"(Monthly!DT492/Monthly!DT480)-1","v":-5.0235478806907374E-2},{"$f":"Monthly!DU492-Monthly!DU480","v":-0.20000000000000018},{"$f":"(Monthly!DV492/Monthly!DV480)-1","v":2.8428218747662104E-2},{"$f":"(Monthly!DW492/Monthly!DW480)-1","v":2.7918005201162721E-2},{"$f":"(Monthly!DX492/Monthly!DX480)-1","v":2.6772486772486781E-2},{"$f":"(Monthly!DY492/Monthly!DY480)-1","v":3.0653043091959153E-2},{"$f":"(Monthly!DZ492/Monthly!DZ480)-1","v":2.5559105431309792E-2},{"$f":"(Monthly!EA492/Monthly!EA480)-1","v":2.5710946630307818E-2},{"$f":"(Monthly!EB492/Monthly!EB480)-1","v":2.5181598062953947E-2},{"$f":"(Monthly!EC492/Monthly!EC480)-1","v":3.0905077262693315E-2},null,null,null,null,null,null,null,null,null,null,null,null,null,{"$f":"(Monthly!EQ492/Monthly!EQ480)-1","v":-2.1600000000000064E-2},{"$f":"(Monthly!ER492/Monthly!ER480)-1","v":2.1739130434782483E-2},{"$f":"(Monthly!ES492/Monthly!ES480)-1","v":0},null,null,null,null,null,{"$f":"((Monthly!EY492-Monthly!EY480)*100)","v":-75},{"$f":"((Monthly!EZ492-Monthly!EZ480)*100)","v":-75},{"$f":"((Monthly!FA492-Monthly!FA480)*100)","v":-26.999999999999957},{"$f":"((Monthly!FB492-Monthly!FB480)*100)","v":13.999999999999968},"--",{"$f":"((Monthly!FD492-Monthly!FD480)*100)","v":-23.000000000000043},{"$f":"((Monthly!FE492-Monthly!FE480)*100)","v":-64.999999999999943},{"$f":"((Monthly!FF492-Monthly!FF480)*100)","v":-60.999999999999943},{"$f":"((Monthly!FG492-Monthly!FG480)*100)","v":-54},{"$f":"((Monthly!FH492-Monthly!FH480)*100)","v":-58.000000000000007},{"$f":"((Monthly!FI492-Monthly!FI480)*100)","v":-57.000000000000028},null,null,null,null,null,null,{"$f":"(Monthly!FP492/Monthly!FP480)-1","v":4.4858378680061373E-2},{"$f":"(Monthly!FQ492/Monthly!FQ480)-1","v":-3.5029853620954787E-3},{"$f":"(Monthly!FR492/Monthly!FR480)-1","v":0.17685042518907079},"--",{"$f":"(Monthly!FT492/Monthly!FT480)-1","v":1.376526354878882E-2},{"$f":"(Monthly!FU492/Monthly!FU480)-1","v":-1.5558434848925828E-2},{"$f":"(Monthly!FV492/Monthly!FV480)-1","v":9.5068304837185424E-2},{"$f":"(Monthly!FW492/Monthly!FW480)-1","v":0.22008509518378805},{"$f":"(Monthly!FX492/Monthly!FX480)-1","v":0.13944566576145534},null,null,null,null,null,{"$f":"(Monthly!GD492/Monthly!GD480)-1","v":-0.25217932752179328},{"$f":"(Monthly!GE492/Monthly!GE480)-1","v":-0.27007818052594179},{"$f":"(Monthly!GF492/Monthly!GF480)-1","v":-0.12226277372262762},{"$f":"(Monthly!GG492/Monthly!GG480)-1","v":-0.11531365313653141},{"$f":"(Monthly!GH492/Monthly!GH480)-1","v":{"$error":"#DIV/0!"}},"--",{"$f":"(Monthly!GJ492/Monthly!GJ480)-1","v":-0.22182942996022981},{"$f":"(Monthly!GK492/Monthly!GK480)-1","v":-3.9079229122055636E-2},"--"]
["1999-06-01",null,null,null,{"$f":"(Monthly!E496/Monthly!E484)-1","v":{"$error":"#DIV/0!"}},{"$f":"(Monthly!F496/Monthly!F484)-1","v":{"$error":"#DIV/0!"}},{"$f":"(Monthly!G496/Monthly!G484)-1","v":{"$error":"#DIV/0!"}},{"$f":"(Monthly!H496/Monthly!H484)-1","v":{"$error":"#DIV/0!"}},null,null,null,null,null,null,null,null,null,null,null,null,null,null,null,{"$f":"(Monthly!X496-Monthly!X484)","v":-0.79999999999999716},{"$f":"(Monthly!Y496/Monthly!Y484)-1","v":6.5779821845661557E-2},null,null,null,null,null,null,null,null,null,null,null,null,null,{"$f":"(Monthly!AM496/Monthly!AM484)-1","v":4.7162551696774857E-2},{"$f":"(Monthly!AN496/Monthly!AN484)-1","v":5.9572261164420937E-2},{"$f":"(Monthly!AO496/Monthly!AO484)-1","v":3.4673524407159206E-2},{"$f":"((Monthly!AP496-Monthly!AP484)*100)","v":-4.0000000000000036},{"$f":"Monthly!AQ496-Monthly!AQ484","v":6.8999999999999986},{"$f":"Monthly!AR496-Monthly!AR484","v":6},{"$f":"Monthly!AS496-Monthly!AS484","v":-1},{"$f":"Monthly!AT496-Monthly!AT484","v":4.2999999999999972},{"$f":"Monthly!AU496-Monthly!AU484","v":6.1000000000000014},{"$f":"Monthly!AV496-Monthly!AV484","v":0.5},{"$f":"Monthly!AW496-Monthly!AW484","v":2.7000000000000028},{"$f":"Monthly!AX496-Monthly!AX484","v":9.1999999999999957},{"$f":"Monthly!AY496-Monthly!AY484","v":14.900000000000006},{"$f":"Monthly!AZ496-Monthly!AZ484","v":11},{"$f":"Monthly!BA496-Monthly!BA484","v":1.7000000000000028},{"$f":"(Monthly!BB496/Monthly!BB484)-1","v":-1.3628620102214772E-2},{"$f":"(Monthly!BC496/Monthly!BC484)-1","v":4.2358522534735599E-4},null,null,null,null,null,null,null,null,null,{"$f":"(Monthly!BM496/Monthly!BM484)-1","v":6.9108378878296683E-2},{"$f":"(Monthly!BN496/Monthly!BN484)-1","v":7.2123296536676484E-2},null,null,null,null,null,{"$f":"(Monthly!BT496/Monthly!BT484)-1","v":2.8212688805113739E-3},null,null,null,{"$f":"(Monthly!BX496/Monthly!BX484)-1","v":-4.9969530773918303E-2},{"$f":"(Monthly!BY496/Monthly!BY484)-1","v":9.7356544165054792E-2},"--",{"$f":"(Monthly!CA496/Monthly!CA484)-1","v":2.8147514959091291E-2},{"$f":"Monthly!CB496-Monthly!CB484","v":0.14263067970932131},{"$f":"Monthly!CC496-Monthly!CC484","v":2.6306797093216261E-3},"--","--",null,"--","--",null,{"$f":"(Monthly!CJ496/Monthly!CJ484)-1","v":0},{"$f":"(Monthly!CK496/Monthly!CK484)-1","v":4.5927175445763746E-2},{"$f":"(Monthly!CL496/Monthly!CL484)-1","v":-0.29452223041021863},{"$f":"(Monthly!CM496/Monthly!CM484)-1","v":-7.058823529411784E-3},{"$f":"(Monthly!CN496/Monthly!CN484)-1","v":2.7859219698536553E-2},{"$f":"(Monthly!CO496/Monthly!CO484)-1","v":0.14166890260262943},{"$f":"(Monthly!CP496/Monthly!CP484)-1","v":7.6693904831374615E-2},{"$f":"(Monthly!CQ496/Monthly!CQ484)-1","v":1.1474209312779982E-2},{"$f":"(Monthly!CR496/Monthly!CR484)-1","v":5.8873066625352299E-2},null,null,null,null,null,null,null,{"$f":"(Monthly!CZ496/Monthly!CZ484)-1","v":1.9656019656019597E-2},{"$f":"(Monthly!DA496/Monthly!DA484)-1","v":1.9630484988452768E-2},null,null,null,null,null,null,{"$f":"((Monthly!DH496-Monthly!DH484)*60)","v":0},{"$f":"((Monthly!DI496-Monthly!DI484)*100)","v":9.9999999999994316},{"$f":"((Monthly!DJ496-Monthly!DJ484)*100)","v":-50},{"$f":"((Monthly!DK496-Monthly!DK484)*100)","v":-20.000000000000018},{"$f":"Monthly!DL496-Monthly!DL484","v":-313},null,null,null,{"$f":"Monthly!DP496-Monthly!DP484","v":3013},null,null,null,{"$f":"(Monthly!DT496/Monthly!DT484)-1","v":-0.13017751479289941},{"$f":"Monthly!DU496-Monthly!DU484","v":-0.60000000000000053},{"$f":"(Monthly!DV496/Monthly!DV484)-1","v":2.4546660769571016E-2},{"$f":"(Monthly!DW496/Monthly!DW484)-1","v":2.4258760107816579E-2},{"$f":"(Monthly!DX496/Monthly!DX484)-1","v":2.4328433857070397E-2},{"$f":"(Monthly!DY496/Monthly!DY484)-1","v":1.9672131147540961E-2},{"$f":"(Monthly!DZ496/Monthly!DZ484)-1","v":2.5858585858586025E-2},{"$f":"(Monthly!EA496/Monthly!EA484)-1","v":2.6057401812688674E-2},{"$f":"(Monthly!EB496/Monthly!EB484)-1","v":2.5364020666979847E-2},{"$f":"(Monthly!EC496/Monthly!EC484)-1","v":2.408078715691353E-2},null,null,null,null,null,null,null,null,null,null,null,null,null,{"$f":"(Monthly!EQ496/Monthly!EQ484)-1","v":3.2051282051281937E-3},{"$f":"(Monthly!ER496/Monthly!ER484)-1","v":1.6027874564459976E-2},{"$f":"(Monthly!ES496/Monthly!ES484)-1","v":7.2780203784561515E-4},null,null,null,null,null,{"$f":"((Monthly!EY496-Monthly!EY484)*100)","v":-75},{"$f":"((Monthly!EZ496-Monthly!EZ484)*100)","v":-79.999999999999986},{"$f":"((Monthly!FA496-Monthly!FA484)*100)","v":70.000000000000014},{"$f":"((Monthly!FB496-Monthly!FB484)*100)","v":88.999999999999972},"--",{"$f":"((Monthly!FD496-Monthly!FD484)*100)","v":54.999999999999986},{"$f":"((Monthly!FE496-Monthly!FE484)*100)","v":-41.000000000000014},{"$f":"((Monthly!FF496-Monthly!FF484)*100)","v":-31.00000000000005},{"$f":"((Monthly!FG496-Monthly!FG484)*100)","v":10.000000000000053},{"$f":"((Monthly!FH496-Monthly!FH484)*100)","v":29.000000000000004},{"$f":"((Monthly!FI496-Monthly!FI484)*100)","v":40.000000000000036},null,null,null,null,null,null,{"$f":"(Monthly!FP496/Monthly!FP484)-1","v":2.7294438758103112E-3},{"$f":"(Monthly!FQ496/Monthly!FQ484)-1","v":-3.8507821901323513E-3},{"$f":"(Monthly!FR496/Monthly!FR484)-1","v":6.6659192825112124E-2},"--",{"$f":"(Monthly!FT496/Monthly!FT484)-1","v":-9.0654029631254129E-4},{"$f":"(Monthly!FU496/Monthly!FU484)-1","v":-1.3984976923942072E-2},{"$f":"(Monthly!FV496/Monthly!FV484)-1","v":0.19216450367071425},{"$f":"(Monthly!FW496/Monthly!FW484)-1","v":0.18225308129298035},{"$f":"(Monthly!FX496/Monthly!FX484)-1","v":0.19632209249887245},null,null,null,null,null,{"$f":"(Monthly!GD496/Monthly!GD484)-1","v":0.30966325036603215},{"$f":"(Monthly!GE496/Monthly!GE484)-1","v":0.29893529893529869},{"$f":"(Monthly!GF496/Monthly!GF484)-1","v":4.607291855613993E-2},{"$f":"(Monthly!GG496/Monthly!GG484)-1","v":3.1700288184438152E-2},{"$f":"(Monthly!GH496/Monthly!GH484)-1","v":{"$error":"#DIV/0!"}},"--",{"$f":"(Monthly!GJ496/Monthly!GJ484)-1","v":8.2103321033210275E-2},{"$f":"(Monthly!GK496/Monthly!GK484)-1","v":8.2595870206489952E-3},"--"]
["1999-09-01",null,null,null,{"$f":"(Monthly!E499/Monthly!E487)-1","v":{"$error":"#DIV/0!"}},{"$f":"(Monthly!F499/Monthly!F487)-1","v":{"$error":"#DIV/0!"}},{"$f":"(Monthly!G499/Monthly!G487)-1","v":{"$error":"#DIV/0!"}},{"$f":"(Monthly!H499/Monthly!H487)-1","v":{"$error":"#DIV/0!"}},null,null,null,null,null,null,null,null,null,null,null,null,null,null,null,{"$f":"(Monthly!X499-Monthly!X487)","v":-1.0999999999999943},{"$f":"(Monthly!Y499/Monthly!Y487)-1","v":6.8842255587479473E-2},null,null,null,null,null,null,null,null,null,null,null,null,null,{"$f":"(Monthly!AM499/Monthly!AM487)-1","v":3.8206537655725459E-2},{"$f":"(Monthly!AN499/Monthly!AN487)-1","v":4.5513102118361237E-2},{"$f":"(Monthly!AO499/Monthly!AO487)-1","v":3.8726866746294997E-2},{"$f":"((Monthly!AP499-Monthly!AP487)*100)","v":-4.0000000000000036},{"$f":"Monthly!AQ499-Monthly!AQ487","v":8.2999999999999972},{"$f":"Monthly!AR499-Monthly!AR487","v":8.5},{"$f":"Monthly!AS499-Monthly!AS487","v":-5.5},{"$f":"Monthly!AT499-Monthly!AT487","v":5.5999999999999943},{"$f":"Monthly!AU499-Monthly!AU487","v":11.599999999999994},{"$f":"Monthly!AV499-Monthly!AV487","v":2.7000000000000028},{"$f":"Monthly!AW499-Monthly!AW487","v":0.59999999999999432},{"$f":"Monthly!AX499-Monthly!AX487","v":14.100000000000001},{"$f":"Monthly!AY499-Monthly!AY487","v":31.799999999999997},{"$f":"Monthly!AZ499-Monthly!AZ487","v":8.6999999999999957},{"$f":"Monthly!BA499-Monthly!BA487","v":5},{"$f":"(Monthly!BB499/Monthly!BB487)-1","v":2.9616724738676048E-2},{"$f":"(Monthly!BC499/Monthly!BC487)-1","v":4.9355261629354219E-2},null,null,null,null,null,null,null,null,null,{"$f":"(Monthly!BM499/Monthly!BM487)-1","v":9.562257380251693E-2},{"$f":"(Monthly!BN499/Monthly!BN487)-1","v":0.10107921673342224},null,null,null,null,null,{"$f":"(Monthly!BT499/Monthly!BT487)-1","v":4.6235226061830392E-3},null,null,null,{"$f":"(Monthly!BX499/Monthly!BX487)-1","v":3.3501896333754777E-2},{"$f":"(Monthly!BY499/Monthly!BY487)-1","v":-1.6487000634115456E-2},"--",{"$f":"(Monthly!CA499/Monthly!CA487)-1","v":7.905686546463242E-2},{"$f":"Monthly!CB499-Monthly!CB487","v":0.80317041151607516},{"$f":"Monthly!CC499-Monthly!CC487","v":0.52317041151607668},"--","--",null,"--","--",null,{"$f":"(Monthly!CJ499/Monthly!CJ487)-1","v":-4.398148148148151E-2},{"$f":"(Monthly!CK499/Monthly!CK487)-1","v":4.7734311964811038E-2},{"$f":"(Monthly!CL499/Monthly!CL487)-1","v":-0.36803748047891716},{"$f":"(Monthly!CM499/Monthly!CM487)-1","v":1.9017432646592614E-2},{"$f":"(Monthly!CN499/Monthly!CN487)-1","v":2.4253978979884794E-2},{"$f":"(Monthly!CO499/Monthly!CO487)-1","v":0.12883316008316004},{"$f":"(Monthly!CP499/Monthly!CP487)-1","v":8.1421626452982343E-2},{"$f":"(Monthly!CQ499/Monthly!CQ487)-1","v":1.1524534356772698E-2},{"$f":"(Monthly!CR499/Monthly!CR487)-1","v":6.7305387452369247E-2},null,null,null,null,null,null,null,{"$f":"(Monthly!CZ499/Monthly!CZ487)-1","v":2.629969418960254E-2},{"$f":"(Monthly!DA499/Monthly!DA487)-1","v":2.0665901262916231E-2},null,null,null,null,null,null,{"$f":"((Monthly!DH499-Monthly!DH487)*60)","v":-6.0000000000000853},{"$f":"((Monthly!DI499-Monthly!DI487)*100)","v":-20.000000000000284},{"$f":"((Monthly!DJ499-Monthly!DJ487)*100)","v":-50},{"$f":"((Monthly!DK499-Monthly!DK487)*100)","v":-39.999999999999943},{"$f":"Monthly!DL499-Monthly!DL487","v":-276},null,null,null,{"$f":"Monthly!DP499-Monthly!DP487","v":3019},null,null,null,{"$f":"(Monthly!DT499/Monthly!DT487)-1","v":-4.7697368421052655E-2},{"$f":"Monthly!DU499-Monthly!DU487","v":-0.70000000000000018},{"$f":"(Monthly!DV499/Monthly!DV487)-1","v":2.7258738184216424E-2},{"$f":"(Monthly!DW499/Monthly!DW487)-1","v":2.7509025270758158E-2},{"$f":"(Monthly!DX499/Monthly!DX487)-1","v":2.8137875590392936E-2},{"$f":"(Monthly!DY499/Monthly!DY487)-1","v":1.9036046982584098E-2},{"$f":"(Monthly!DZ499/Monthly!DZ487)-1","v":3.1141406041165443E-2},{"$f":"(Monthly!EA499/Monthly!EA487)-1","v":3.1478358628442837E-2},{"$f":"(Monthly!EB499/Monthly!EB487)-1","v":3.0303030303030276E-2},{"$f":"(Monthly!EC499/Monthly!EC487)-1","v":2.5904077968710082E-2},null,null,null,null,null,null,null,null,null,null,null,null,null,{"$f":"(Monthly!EQ499/Monthly!EQ487)-1","v":3.3925686591276261E-2},{"$f":"(Monthly!ER499/Monthly!ER487)-1","v":1.736111111111116E-2},{"$f":"(Monthly!ES499/Monthly!ES487)-1","v":-7.2727272727268755E-4},null,null,null,null,null,{"$f":"((Monthly!EY499-Monthly!EY487)*100)","v":-24.000000000000021},{"$f":"((Monthly!EZ499-Monthly!EZ487)*100)","v":-29.000000000000004},{"$f":"((Monthly!FA499-Monthly!FA487)*100)","v":98.999999999999929},{"$f":"((Monthly!FB499-Monthly!FB487)*100)","v":110.99999999999994},"--",{"$f":"((Monthly!FD499-Monthly!FD487)*100)","v":110.00000000000006},{"$f":"((Monthly!FE499-Monthly!FE487)*100)","v":6.9999999999999396},{"$f":"((Monthly!FF499-Monthly!FF487)*100)","v":54},{"$f":"((Monthly!FG499-Monthly!FG487)*100)","v":99.000000000000028},{"$f":"((Monthly!FH499-Monthly!FH487)*100)","v":117.99999999999997},{"$f":"((Monthly!FI499-Monthly!FI487)*100)","v":111.00000000000003},null,null,null,null,null,null,{"$f":"(Monthly!FP499/Monthly!FP487)-1","v":-2.9373110789854051E-2},{"$f":"(Monthly!FQ499/Monthly!FQ487)-1","v":-3.3833002227440234E-3},{"$f":"(Monthly!FR499/Monthly!FR487)-1","v":-8.5906920306873413E-2},"--",{"$f":"(Monthly!FT499/Monthly!FT487)-1","v":-2.1791749118237003E-2},{"$f":"(Monthly!FU499/Monthly!FU487)-1","v":-2.672893008241517E-2},{"$f":"(Monthly!FV499/Monthly!FV487)-1","v":0.14294761841931658},{"$f":"(Monthly!FW499/Monthly!FW487)-1","v":0.15059226407679804},{"$f":"(Monthly!FX499/Monthly!FX487)-1","v":0.18096963443749914},null,null,null,null,null,{"$f":"(Monthly!GD499/Monthly!GD487)-1","v":0.59732441471571907},{"$f":"(Monthly!GE499/Monthly!GE487)-1","v":0.68965517241379315},{"$f":"(Monthly!GF499/Monthly!GF487)-1","v":0.2353361945636625},{"$f":"(Monthly!GG499/Monthly!GG487)-1","v":0.1865234375},{"$f":"(Monthly!GH499/Monthly!GH487)-1","v":{"$error":"#DIV/0!"}},"--",{"$f":"(Monthly!GJ499/Monthly!GJ487)-1","v":0.29215686274509811},{"$f":"(Monthly!GK499/Monthly!GK487)-1","v":8.8365243004417948E-4},"--"]
["2000-04-01",null,null,null,{"$f":"(Monthly!E506/Monthly!E494)-1","v":5.2456546026137252E-2},{"$f":"(Monthly!F506/Monthly!F494)-1","v":9.1215226939970639E-2},{"$f":"(Monthly!G506/Monthly!G494)-1","v":3.7194236568747874E-2},{"$f":"(Monthly!H506/Monthly!H494)-1","v":4.9939490204977011E-2},null,null,null,null,null,null,null,null,null,null,null,null,null,null,null,{"$f":"(Monthly!X506-Monthly!X494)","v":0.70000000000000284},{"$f":"(Monthly!Y506/Monthly!Y494)-1","v":9.2725146025971483E-2},null,null,null,null,null,null,null,null,null,null,null,null,null,{"$f":"(Monthly!AM506/Monthly!AM494)-1","v":5.3028006922664739E-2},{"$f":"(Monthly!AN506/Monthly!AN494)-1","v":6.0068400344100104E-2},{"$f":"(Monthly!AO506/Monthly!AO494)-1","v":5.909479359002745E-2},{"$f":"((Monthly!AP506-Monthly!AP494)*100)","v":-3.0000000000000027},{"$f":"Monthly!AQ506-Monthly!AQ494","v":2.4000000000000057},{"$f":"Monthly!AR506-Monthly!AR494","v":-2},{"$f":"Monthly!AS506-Monthly!AS494","v":2},{"$f":"Monthly!AT506-Monthly!AT494","v":4.4000000000000057},{"$f":"Monthly!AU506-Monthly!AU494","v":0.39999999999999858},{"$f":"Monthly!AV506-Monthly!AV494","v":2.1999999999999957},{"$f":"Monthly!AW506-Monthly!AW494","v":-0.69999999999999574},{"$f":"Monthly!AX506-Monthly!AX494","v":1.3999999999999986},{"$f":"Monthly!AY506-Monthly!AY494","v":23.800000000000004},{"$f":"Monthly!AZ506-Monthly!AZ494","v":0.89999999999999858},{"$f":"Monthly!BA506-Monthly!BA494","v":5.8999999999999986},{"$f":"(Monthly!BB506/Monthly!BB494)-1","v":2.1739130434782705E-2},{"$f":"(Monthly!BC506/Monthly!BC494)-1","v":9.3078110947071968E-2},null,null,null,null,null,null,null,null,null,{"$f":"(Monthly!BM506/Monthly!BM494)-1","v":7.3631832912074424E-2},{"$f":"(Monthly!BN506/Monthly!BN494)-1","v":7.3417533562176285E-2},null,null,null,null,null,{"$f":"(Monthly!BT506/Monthly!BT494)-1","v":4.6484204276513896E-2},null,null,null,{"$f":"(Monthly!BX506/Monthly!BX494)-1","v":4.7005795235028902E-2},{"$f":"(Monthly!BY506/Monthly!BY494)-1","v":-1.87499999999996E-3},"--",{"$f":"(Monthly!CA506/Monthly!CA494)-1","v":6.211180124223592E-2},{"$f":"Monthly!CB506-Monthly!CB494","v":0.23272937138455507},{"$f":"Monthly!CC506-Monthly!CC494","v":-0.11727062861544368},"--","--",null,"--","--",null,{"$f":"(Monthly!CJ506/Monthly!CJ494)-1","v":-8.3877995642701486E-2},{"$f":"(Monthly!CK506/Monthly!CK494)-1","v":8.2947437865543261E-2},{"$f":"(Monthly!CL506/Monthly!CL494)-1","v":3.5737491877842809E-2},{"$f":"(Monthly!CM506/Monthly!CM494)-1","v":4.508196721311486E-2},{"$f":"(Monthly!CN506/Monthly!CN494)-1","v":5.1686382786280349E-2},{"$f":"(Monthly!CO506/Monthly!CO494)-1","v":6.8255492856285294E-2},{"$f":"(Monthly!CP506/Monthly!CP494)-1","v":7.7422910224024699E-2},{"$f":"(Monthly!CQ506/Monthly!CQ494)-1","v":1.1499330223270876E-2},{"$f":"(Monthly!CR506/Monthly!CR494)-1","v":6.8292898624359388E-2},null,null,null,null,null,null,null,{"$f":"(Monthly!CZ506/Monthly!CZ494)-1","v":3.0138637733574392E-2},{"$f":"(Monthly!DA506/Monthly!DA494)-1","v":2.2688598979013097E-2},null,null,null,null,null,null,{"$f":"((Monthly!DH506-Monthly!DH494)*60)","v":0},{"$f":"((Monthly!DI506-Monthly!DI494)*100)","v":20.000000000000284},{"$f":"((Monthly!DJ506-Monthly!DJ494)*100)","v":-69.999999999999929},{"$f":"((Monthly!DK506-Monthly!DK494)*100)","v":-50},{"$f":"Monthly!DL506-Monthly!DL494","v":-46},null,null,null,{"$f":"Monthly!DP506-Monthly!DP494","v":3277},null,null,null,{"$f":"(Monthly!DT506/Monthly!DT494)-1","v":-0.13533225283630468},{"$f":"Monthly!DU506-Monthly!DU494","v":-0.10000000000000053},{"$f":"(Monthly!DV506/Monthly!DV494)-1","v":2.0788063160944503E-2},{"$f":"(Monthly!DW506/Monthly!DW494)-1","v":1.9719961879627768E-2},{"$f":"(Monthly!DX506/Monthly!DX494)-1","v":2.1447448668428626E-2},{"$f":"(Monthly!DY506/Monthly!DY494)-1","v":7.1699704765921801E-3},{"$f":"(Monthly!DZ506/Monthly!DZ494)-1","v":2.5980982991830714E-2},{"$f":"(Monthly!EA506/Monthly!EA494)-1","v":2.6098385279759606E-2},{"$f":"(Monthly!EB506/Monthly!EB494)-1","v":2.5688930406352117E-2},{"$f":"(Monthly!EC506/Monthly!EC494)-1","v":1.5251117538785275E-2},null,null,null,null,null,null,null,null,null,null,null,null,null,{"$f":"(Monthly!EQ506/Monthly!EQ494)-1","v":5.7443365695792892E-2},{"$f":"(Monthly!ER506/Monthly!ER494)-1","v":1.1667810569663706E-2},{"$f":"(Monthly!ES506/Monthly!ES494)-1","v":5.8097312999274564E-3},null,null,null,null,null,{"$f":"((Monthly!EY506-Monthly!EY494)*100)","v":125},{"$f":"((Monthly!EZ506-Monthly!EZ494)*100)","v":127.99999999999994},{"$f":"((Monthly!FA506-Monthly!FA494)*100)","v":100},{"$f":"((Monthly!FB506-Monthly!FB494)*100)","v":92},"--",{"$f":"((Monthly!FD506-Monthly!FD494)*100)","v":123.00000000000004},{"$f":"((Monthly!FE506-Monthly!FE494)*100)","v":137},{"$f":"((Monthly!FF506-Monthly!FF494)*100)","v":146},{"$f":"((Monthly!FG506-Monthly!FG494)*100)","v":142},{"$f":"((Monthly!FH506-Monthly!FH494)*100)","v":117.99999999999997},{"$f":"((Monthly!FI506-Monthly!FI494)*100)","v":81.000000000000057},null,null,null,null,null,null,{"$f":"(Monthly!FP506/Monthly!FP494)-1","v":-1.2902358712452044E-2},{"$f":"(Monthly!FQ506/Monthly!FQ494)-1","v":1.2078461687048403E-5},{"$f":"(Monthly!FR506/Monthly!FR494)-1","v":-3.8916694944010066E-3},{"$f":"(Monthly!FS506/Monthly!FS494)-1","v":-0.11699841136342404},{"$f":"(Monthly!FT506/Monthly!FT494)-1","v":4.0880527364792751E-3},{"$f":"(Monthly!FU506/Monthly!FU494)-1","v":1.3794677100448904E-2},{"$f":"(Monthly!FV506/Monthly!FV494)-1","v":0.156161409385565},{"$f":"(Monthly!FW506/Monthly!FW494)-1","v":0.21509219955661729},{"$f":"(Monthly!FX506/Monthly!FX494)-1","v":0.25194524837500598},null,null,null,null,null,{"$f":"(Monthly!GD506/Monthly!GD494)-1","v":0.48442906574394451},{"$f":"(Monthly!GE506/Monthly!GE494)-1","v":0.48855461085676932},{"$f":"(Monthly!GF506/Monthly!GF494)-1","v":0.28614136237454613},{"$f":"(Monthly!GG506/Monthly!GG494)-1","v":0.31788693234476373},{"$f":"(Monthly!GH506/Monthly!GH494)-1","v":{"$error":"#DIV/0!"}},"--",{"$f":"(Monthly!GJ506/Monthly!GJ494)-1","v":0.40640966093822573},{"$f":"(Monthly!GK506/Monthly!GK494)-1","v":0.11689470553242121},"--"]
["2000-08-01",null,null,null,{"$f":"(Monthly!E510/Monthly!E498)-1","v":4.8958559756549613E-2},{"$f":"(Monthly!F510/Monthly!F498)-1","v":6.1421960454354219E-2},{"$f":"(Monthly!G510/Monthly!G498)-1","v":3.6981675247743873E-2},{"$f":"(Monthly!H510/Monthly!H498)-1","v":5.0675928000597503E-2},null,null,null,null,null,null,null,null,null,null,null,null,null,null,null,{"$f":"(Monthly!X510-Monthly!X498)","v":-0.60000000000000853},{"$f":"(Monthly!Y510/Monthly!Y498)-1","v":0.10590970874087002},null,null,null,null,null,null,null,null,null,null,null,null,null,{"$f":"(Monthly!AM510/Monthly!AM498)-1","v":3.4385424962960487E-2},{"$f":"(Monthly!AN510/Monthly!AN498)-1","v":3.8676434002583582E-2},{"$f":"(Monthly!AO510/Monthly!AO498)-1","v":6.998421163998203E-2},{"$f":"((Monthly!AP510-Monthly!AP498)*100)","v":4.0000000000000036},{"$f":"Monthly!AQ510-Monthly!AQ498","v":-4.8999999999999986},{"$f":"Monthly!AR510-Monthly!AR498","v":-3.5},{"$f":"Monthly!AS510-Monthly!AS498","v":5},{"$f":"Monthly!AT510-Monthly!AT498","v":-4.3000000000000043},{"$f":"Monthly!AU510-Monthly!AU498","v":-3.6000000000000014},{"$f":"Monthly!AV510-Monthly!AV498","v":-1.5},{"$f":"Monthly!AW510-Monthly!AW498","v":0.89999999999999858},{"$f":"Monthly!AX510-Monthly!AX498","v":-7.5},{"$f":"Monthly!AY510-Monthly!AY498","v":-2.5},{"$f":"Monthly!AZ510-Monthly!AZ498","v":-8.5999999999999943},{"$f":"Monthly!BA510-Monthly!BA498","v":2.1000000000000014},{"$f":"(Monthly!BB510/Monthly!BB498)-1","v":1.6583747927031434E-2},{"$f":"(Monthly!BC510/Monthly!BC498)-1","v":4.9034536383075311E-2},null,null,null,null,null,null,null,null,null,{"$f":"(Monthly!BM510/Monthly!BM498)-1","v":4.8760244838676137E-2},{"$f":"(Monthly!BN510/Monthly!BN498)-1","v":4.65448520429943E-2},null,null,null,null,null,{"$f":"(Monthly!BT510/Monthly!BT498)-1","v":9.4146579887936399E-2},null,null,null,{"$f":"(Monthly!BX510/Monthly!BX498)-1","v":-6.4927184466019416E-2},{"$f":"(Monthly!BY510/Monthly!BY498)-1","v":-7.1214841412327923E-2},"--",{"$f":"(Monthly!CA510/Monthly!CA498)-1","v":-1.8106419017580588E-3},{"$f":"Monthly!CB510-Monthly!CB498","v":0.98690476975286057},{"$f":"Monthly!CC510-Monthly!CC498","v":0.91690476975285939},"--","--",null,"--","--",null,{"$f":"(Monthly!CJ510/Monthly!CJ498)-1","v":-5.039193729003355E-2},{"$f":"(Monthly!CK510/Monthly!CK498)-1","v":8.7569952513304905E-2},{"$f":"(Monthly!CL510/Monthly!CL498)-1","v":0.22625899280575523},{"$f":"(Monthly!CM510/Monthly!CM498)-1","v":-2.6877470355731181E-2},{"$f":"(Monthly!CN510/Monthly!CN498)-1","v":5.7779242795253483E-2},{"$f":"(Monthly!CO510/Monthly!CO498)-1","v":4.8268686051216925E-2},{"$f":"(Monthly!CP510/Monthly!CP498)-1","v":9.8713527288567082E-2},{"$f":"(Monthly!CQ510/Monthly!CQ498)-1","v":1.0911939113454228E-2},{"$f":"(Monthly!CR510/Monthly!CR498)-1","v":8.6976779405261162E-2},null,null,null,null,null,null,null,{"$f":"(Monthly!CZ510/Monthly!CZ498)-1","v":3.3512866546977715E-2},{"$f":"(Monthly!DA510/Monthly!DA498)-1","v":2.5944726452340694E-2},null,null,null,null,null,null,{"$f":"((Monthly!DH510-Monthly!DH498)*60)","v":-11.999999999999744},{"$f":"((Monthly!DI510-Monthly!DI498)*100)","v":-9.9999999999994316},{"$f":"((Monthly!DJ510-Monthly!DJ498)*100)","v":-20.000000000000018},{"$f":"((Monthly!DK510-Monthly!DK498)*100)","v":-10.000000000000053},{"$f":"Monthly!DL510-Monthly!DL498","v":0},null,null,null,{"$f":"Monthly!DP510-Monthly!DP498","v":2664},null,null,null,{"$f":"(Monthly!DT510/Monthly!DT498)-1","v":7.5666380051590654E-2},{"$f":"Monthly!DU510-Monthly!DU498","v":-0.20000000000000018},{"$f":"(Monthly!DV510/Monthly!DV498)-1","v":6.5195586760282698E-3},{"$f":"(Monthly!DW510/Monthly!DW498)-1","v":6.4643057897695311E-3},{"$f":"(Monthly!DX510/Monthly!DX498)-1","v":6.7521283882963079E-3},{"$f":"(Monthly!DY510/Monthly!DY498)-1","v":2.7678924476077782E-3},{"$f":"(Monthly!DZ510/Monthly!DZ498)-1","v":8.0624187256177482E-3},{"$f":"(Monthly!EA510/Monthly!EA498)-1","v":8.0189538910151459E-3},{"$f":"(Monthly!EB510/Monthly!EB498)-1","v":8.1706763504312274E-3},{"$f":"(Monthly!EC510/Monthly!EC498)-1","v":5.7313730376278293E-3},null,null,null,null,null,null,null,null,null,null,null,null,null,{"$f":"(Monthly!EQ510/Monthly!EQ498)-1","v":4.7281323877068626E-2},{"$f":"(Monthly!ER510/Monthly!ER498)-1","v":1.7158544955387711E-2},{"$f":"(Monthly!ES510/Monthly!ES498)-1","v":1.1644832605531175E-2},null,null,null,null,null,{"$f":"((Monthly!EY510-Monthly!EY498)*100)","v":143.99999999999994},{"$f":"((Monthly!EZ510-Monthly!EZ498)*100)","v":142.99999999999997},{"$f":"((Monthly!FA510-Monthly!FA498)*100)","v":14.999999999999947},{"$f":"((Monthly!FB510-Monthly!FB498)*100)","v":10.999999999999943},"--",{"$f":"((Monthly!FD510-Monthly!FD498)*100)","v":8.999999999999897},{"$f":"((Monthly!FE510-Monthly!FE498)*100)","v":137},{"$f":"((Monthly!FF510-Monthly!FF498)*100)","v":97.999999999999957},{"$f":"((Monthly!FG510-Monthly!FG498)*100)","v":55.000000000000071},{"$f":"((Monthly!FH510-Monthly!FH498)*100)","v":21.999999999999975},{"$f":"((Monthly!FI510-Monthly!FI498)*100)","v":-11.000000000000032},null,null,null,null,null,null,{"$f":"(Monthly!FP510/Monthly!FP498)-1","v":-6.9649075810341854E-3},{"$f":"(Monthly!FQ510/Monthly!FQ498)-1","v":2.8995312424484609E-4},{"$f":"(Monthly!FR510/Monthly!FR498)-1","v":-1.335404718075317E-2},{"$f":"(Monthly!FS510/Monthly!FS498)-1","v":-0.14710042432814707},{"$f":"(Monthly!FT510/Monthly!FT498)-1","v":3.037323302942907E-2},{"$f":"(Monthly!FU510/Monthly!FU498)-1","v":5.36355164481086E-2},{"$f":"(Monthly!FV510/Monthly!FV498)-1","v":0.14955705492286886},{"$f":"(Monthly!FW510/Monthly!FW498)-1","v":0.25328779247329258},{"$f":"(Monthly!FX510/Monthly!FX498)-1","v":0.27233532191193044},null,null,null,null,null,{"$f":"(Monthly!GD510/Monthly!GD498)-1","v":0.46848541862652859},{"$f":"(Monthly!GE510/Monthly!GE498)-1","v":0.49357072205736907},{"$f":"(Monthly!GF510/Monthly!GF498)-1","v":0.18847444247089018},{"$f":"(Monthly!GG510/Monthly!GG498)-1","v":0.25085324232081918},{"$f":"(Monthly!GH510/Monthly!GH498)-1","v":{"$error":"#DIV/0!"}},"--",{"$f":"(Monthly!GJ510/Monthly!GJ498)-1","v":0.59172019985724478},{"$f":"(Monthly!GK510/Monthly!GK498)-1","v":7.2066706372841072E-2},"--"]
["2001-01-01",null,null,null,{"$f":"(Monthly!E515/Monthly!E503)-1","v":4.079614445765789E-2},{"$f":"(Monthly!F515/Monthly!F503)-1","v":2.17275393228471E-2},{"$f":"(Monthly!G515/Monthly!G503)-1","v":4.7252808056216455E-2},{"$f":"(Monthly!H515/Monthly!H503)-1","v":4.247238199580039E-2},null,null,null,null,null,null,null,null,null,null,null,null,null,null,null,{"$f":"(Monthly!X515-Monthly!X503)","v":-2.9000000000000057},{"$f":"(Monthly!Y515/Monthly!Y503)-1","v":9.0203386764019511E-2},null,null,null,null,null,null,null,null,null,null,null,null,null,{"$f":"(Monthly!AM515/Monthly!AM503)-1","v":4.274118998411458E-3},{"$f":"(Monthly!AN515/Monthly!AN503)-1","v":1.3983732258140424E-3},{"$f":"(Monthly!AO515/Monthly!AO503)-1","v":5.0805352290091754E-2},{"$f":"((Monthly!AP515-Monthly!AP503)*100)","v":6.0000000000000053},{"$f":"Monthly!AQ515-Monthly!AQ503","v":-14.400000000000006},{"$f":"Monthly!AR515-Monthly!AR503","v":-19.5},{"$f":"Monthly!AS515-Monthly!AS503","v":9.5},{"$f":"Monthly!AT515-Monthly!AT503","v":-10.5},{"$f":"Monthly!AU515-Monthly!AU503","v":-6.6999999999999957},{"$f":"Monthly!AV515-Monthly!AV503","v":-3.7999999999999972},{"$f":"Monthly!AW515-Monthly!AW503","v":-11},{"$f":"Monthly!AX515-Monthly!AX503","v":-22},{"$f":"Monthly!AY515-Monthly!AY503","v":-7.8000000000000114},{"$f":"Monthly!AZ515-Monthly!AZ503","v":-18.599999999999994},{"$f":"Monthly!BA515-Monthly!BA503","v":-5.2000000000000028},{"$f":"(Monthly!BB515/Monthly!BB503)-1","v":-9.0121317157712322E-2},{"$f":"(Monthly!BC515/Monthly!BC503)-1","v":-4.9503712387651388E-2},null,null,null,null,null,null,null,null,null,{"$f":"(Monthly!BM515/Monthly!BM503)-1","v":4.0378080577117448E-2},{"$f":"(Monthly!BN515/Monthly!BN503)-1","v":3.800265316264384E-2},null,null,null,null,null,{"$f":"(Monthly!BT515/Monthly!BT503)-1","v":9.3167087045459729E-2},null,null,null,{"$f":"(Monthly!BX515/Monthly!BX503)-1","v":-2.2004889975550168E-2},{"$f":"(Monthly!BY515/Monthly!BY503)-1","v":-1.6213086276780531E-2},{"$f":"(Monthly!BZ515/Monthly!BZ503)-1","v":0.12386917188587332},{"$f":"(Monthly!CA515/Monthly!CA503)-1","v":-4.7642707298222398E-2},{"$f":"Monthly!CB515-Monthly!CB503","v":1.1282480702890396},{"$f":"Monthly!CC515-Monthly!CC503","v":1.2682480702890384},"--","--",null,"--","--",null,{"$f":"(Monthly!CJ515/Monthly!CJ503)-1","v":7.2164948453608213E-2},{"$f":"(Monthly!CK515/Monthly!CK503)-1","v":6.4186046511627959E-2},{"$f":"(Monthly!CL515/Monthly!CL503)-1","v":-9.7682604869463008E-2},{"$f":"(Monthly!CM515/Monthly!CM503)-1","v":5.5205047318611644E-3},{"$f":"(Monthly!CN515/Monthly!CN503)-1","v":3.5415332540481348E-2},{"$f":"(Monthly!CO515/Monthly!CO503)-1","v":9.0606338998622027E-2},{"$f":"(Monthly!CP515/Monthly!CP503)-1","v":0.12436073312524587},{"$f":"(Monthly!CQ515/Monthly!CQ503)-1","v":1.0477763225328784E-2},{"$f":"(Monthly!CR515/Monthly!CR503)-1","v":0.11696397117589985},null,null,null,null,null,null,null,{"$f":"(Monthly!CZ515/Monthly!CZ503)-1","v":3.7212049616065945E-2},{"$f":"(Monthly!DA515/Monthly!DA503)-1","v":2.5655326268823275E-2},null,null,null,null,null,null,{"$f":"((Monthly!DH515-Monthly!DH503)*60)","v":-11.999999999999744},{"$f":"((Monthly!DI515-Monthly!DI503)*100)","v":-9.9999999999994316},{"$f":"((Monthly!DJ515-Monthly!DJ503)*100)","v":20.000000000000018},{"$f":"((Monthly!DK515-Monthly!DK503)*100)","v":20.000000000000018},{"$f":"Monthly!DL515-Monthly!DL503","v":-180},null,null,null,{"$f":"Monthly!DP515-Monthly!DP503","v":1697},null,null,null,{"$f":"(Monthly!DT515/Monthly!DT503)-1","v":0.1754537597234227},{"$f":"Monthly!DU515-Monthly!DU503","v":0},{"$f":"(Monthly!DV515/Monthly!DV503)-1","v":-1.0649627263046302E-3},{"$f":"(Monthly!DW515/Monthly!DW503)-1","v":-7.2511057936330836E-4},{"$f":"(Monthly!DX515/Monthly!DX503)-1","v":-1.2040939193257438E-3},{"$f":"(Monthly!DY515/Monthly!DY503)-1","v":3.8151759220008685E-3},{"$f":"(Monthly!DZ515/Monthly!DZ503)-1","v":-2.7606152228211167E-3},{"$f":"(Monthly!EA515/Monthly!EA503)-1","v":-2.7644673792849295E-3},{"$f":"(Monthly!EB515/Monthly!EB503)-1","v":-2.7510316368637433E-3},{"$f":"(Monthly!EC515/Monthly!EC503)-1","v":5.228758169935066E-4},null,null,null,null,null,null,null,null,null,null,null,null,null,{"$f":"(Monthly!EQ515/Monthly!EQ503)-1","v":9.1192517537022511E-2},{"$f":"(Monthly!ER515/Monthly!ER503)-1","v":1.8392370572207106E-2},{"$f":"(Monthly!ES515/Monthly!ES503)-1","v":1.1577424023154981E-2},null,null,null,null,null,{"$f":"((Monthly!EY515-Monthly!EY503)*100)","v":55.000000000000071},{"$f":"((Monthly!EZ515-Monthly!EZ503)*100)","v":53.000000000000028},{"$f":"((Monthly!FA515-Monthly!FA503)*100)","v":-62.999999999999986},{"$f":"((Monthly!FB515-Monthly!FB503)*100)","v":-40.000000000000036},"--",{"$f":"((Monthly!FD515-Monthly!FD503)*100)","v":-118.00000000000006},{"$f":"((Monthly!FE515-Monthly!FE503)*100)","v":-16.999999999999993},{"$f":"((Monthly!FF515-Monthly!FF503)*100)","v":-131.00000000000006},{"$f":"((Monthly!FG515-Monthly!FG503)*100)","v":-168.00000000000006},{"$f":"((Monthly!FH515-Monthly!FH503)*100)","v":-171.99999999999997},{"$f":"((Monthly!FI515-Monthly!FI503)*100)","v":-150},null,null,null,null,null,null,{"$f":"(Monthly!FP515/Monthly!FP503)-1","v":3.7691564268949262E-2},{"$f":"(Monthly!FQ515/Monthly!FQ503)-1","v":-1.9325538699388467E-4},{"$f":"(Monthly!FR515/Monthly!FR503)-1","v":2.8998788644862383E-2},{"$f":"(Monthly!FS515/Monthly!FS503)-1","v":-7.4523739018852897E-2},{"$f":"(Monthly!FT515/Monthly!FT503)-1","v":6.5848792497333664E-2},{"$f":"(Monthly!FU515/Monthly!FU503)-1","v":7.6933147962269022E-2},{"$f":"(Monthly!FV515/Monthly!FV503)-1","v":0.16289216941149709},{"$f":"(Monthly!FW515/Monthly!FW503)-1","v":0.22100520131554169},{"$f":"(Monthly!FX515/Monthly!FX503)-1","v":0.11717502687021941},null,null,null,null,null,{"$f":"(Monthly!GD515/Monthly!GD503)-1","v":8.8300220750551883E-2},{"$f":"(Monthly!GE515/Monthly!GE503)-1","v":4.3120344962759294E-3},{"$f":"(Monthly!GF515/Monthly!GF503)-1","v":0.12235249621785171},{"$f":"(Monthly!GG515/Monthly!GG503)-1","v":0.12389380530973448},{"$f":"(Monthly!GH515/Monthly!GH503)-1","v":{"$error":"#DIV/0!"}},"--",{"$f":"(Monthly!GJ515/Monthly!GJ503)-1","v":2.2809224318658283},{"$f":"(Monthly!GK515/Monthly!GK503)-1","v":0.14762032804517333},"--"]
["2001-03-01",null,null,null,{"$f":"(Monthly!E517/Monthly!E505)-1","v":2.5472209892982045E-2},{"$f":"(Monthly!F517/Monthly!F505)-1","v":2.057667103538674E-2},{"$f":"(Monthly!G517/Monthly!G505)-1","v":1.114175996538469E-2},{"$f":"(Monthly!H517/Monthly!H505)-1","v":3.1442229638315222E-2},null,null,null,null,null,null,null,null,null,null,null,null,null,null,null,{"$f":"(Monthly!X517-Monthly!X505)","v":-4},{"$f":"(Monthly!Y517/Monthly!Y505)-1","v":6.4023022833314958E-2},null,null,null,null,null,null,null,null,null,null,null,null,null,{"$f":"(Monthly!AM517/Monthly!AM505)-1","v":-1.1264907041407257E-2},{"$f":"(Monthly!AN517/Monthly!AN505)-1","v":-1.4963572613323817E-2},{"$f":"(Monthly!AO517/Monthly!AO505)-1","v":3.0739603266886739E-2},{"$f":"((Monthly!AP517-Monthly!AP505)*100)","v":6.0000000000000053},{"$f":"Monthly!AQ517-Monthly!AQ505","v":-11.799999999999997},{"$f":"Monthly!AR517-Monthly!AR505","v":-7.5},{"$f":"Monthly!AS517-Monthly!AS505","v":4},{"$f":"Monthly!AT517-Monthly!AT505","v":-11.300000000000004},{"$f":"Monthly!AU517-Monthly!AU505","v":-4.5},{"$f":"Monthly!AV517-Monthly!AV505","v":-4.7000000000000028},{"$f":"Monthly!AW517-Monthly!AW505","v":-3.7999999999999972},{"$f":"Monthly!AX517-Monthly!AX505","v":-14.700000000000003},{"$f":"Monthly!AY517-Monthly!AY505","v":-28.800000000000004},{"$f":"Monthly!AZ517-Monthly!AZ505","v":-16.899999999999999},{"$f":"Monthly!BA517-Monthly!BA505","v":-6.5999999999999943},{"$f":"(Monthly!BB517/Monthly!BB505)-1","v":-0.17355371900826444},{"$f":"(Monthly!BC517/Monthly!BC505)-1","v":-8.6358065428490671E-2},null,null,null,null,null,null,null,null,null,{"$f":"(Monthly!BM517/Monthly!BM505)-1","v":4.5564542501470573E-3},{"$f":"(Monthly!BN517/Monthly!BN505)-1","v":1.9972223000477296E-3},null,null,null,null,null,{"$f":"(Monthly!BT517/Monthly!BT505)-1","v":8.1197521952982354E-2},null,null,null,{"$f":"(Monthly!BX517/Monthly!BX505)-1","v":-8.7281795511221505E-3},{"$f":"(Monthly!BY517/Monthly!BY505)-1","v":4.8455481526348265E-3},{"$f":"(Monthly!BZ517/Monthly!BZ505)-1","v":0.11977038334306278},{"$f":"(Monthly!CA517/Monthly!CA505)-1","v":-5.3529345752440838E-2},{"$f":"Monthly!CB517-Monthly!CB505","v":-0.47967978197923689},{"$f":"Monthly!CC517-Monthly!CC505","v":-0.26967978197923514},"--","--",null,"--","--",null,{"$f":"(Monthly!CJ517/Monthly!CJ505)-1","v":4.3333333333333224E-2},{"$f":"(Monthly!CK517/Monthly!CK505)-1","v":5.7909837029372246E-2},{"$f":"(Monthly!CL517/Monthly!CL505)-1","v":0.21366024518388782},{"$f":"(Monthly!CM517/Monthly!CM505)-1","v":-7.2353389185072392E-2},{"$f":"(Monthly!CN517/Monthly!CN505)-1","v":3.4168124900574748E-2},{"$f":"(Monthly!CO517/Monthly!CO505)-1","v":0.11757025262560306},{"$f":"(Monthly!CP517/Monthly!CP505)-1","v":0.12750392951887624},{"$f":"(Monthly!CQ517/Monthly!CQ505)-1","v":1.0450980601188986E-2},{"$f":"(Monthly!CR517/Monthly!CR505)-1","v":0.12859178392028414},null,null,null,null,null,null,null,{"$f":"(Monthly!CZ517/Monthly!CZ505)-1","v":2.9824561403508643E-2},{"$f":"(Monthly!DA517/Monthly!DA505)-1","v":2.6111111111110974E-2},null,null,null,null,null,null,{"$f":"((Monthly!DH517-Monthly!DH505)*60)","v":-17.999999999999829},{"$f":"((Monthly!DI517-Monthly!DI505)*100)","v":-9.9999999999994316},{"$f":"((Monthly!DJ517-Monthly!DJ505)*100)","v":20.000000000000018},{"$f":"((Monthly!DK517-Monthly!DK505)*100)","v":29.999999999999982},{"$f":"Monthly!DL517-Monthly!DL505","v":-364},null,null,null,{"$f":"Monthly!DP517-Monthly!DP505","v":1143},null,null,null,{"$f":"(Monthly!DT517/Monthly!DT505)-1","v":0.4039158810732415},{"$f":"Monthly!DU517-Monthly!DU505","v":0.59999999999999964},{"$f":"(Monthly!DV517/Monthly!DV505)-1","v":-6.3870555673828378E-4},{"$f":"(Monthly!DW517/Monthly!DW505)-1","v":-2.1696680407889968E-4},{"$f":"(Monthly!DX517/Monthly!DX505)-1","v":-2.7002700270026825E-3},{"$f":"(Monthly!DY517/Monthly!DY505)-1","v":1.5697921086126554E-2},{"$f":"(Monthly!DZ517/Monthly!DZ505)-1","v":-8.3747710023555078E-3},{"$f":"(Monthly!EA517/Monthly!EA505)-1","v":-8.4372707263390412E-3},{"$f":"(Monthly!EB517/Monthly!EB505)-1","v":-8.2191780821918581E-3},{"$f":"(Monthly!EC517/Monthly!EC505)-1","v":6.2695924764890609E-3},null,null,null,null,null,null,null,null,null,null,null,null,null,{"$f":"(Monthly!EQ517/Monthly!EQ505)-1","v":3.8990825688073327E-2},{"$f":"(Monthly!ER517/Monthly!ER505)-1","v":1.4246947082767969E-2},{"$f":"(Monthly!ES517/Monthly!ES505)-1","v":8.6705202312138407E-3},null,null,null,null,null,{"$f":"((Monthly!EY517-Monthly!EY505)*100)","v":-50.999999999999979},{"$f":"((Monthly!EZ517-Monthly!EZ505)*100)","v":-54},{"$f":"((Monthly!FA517-Monthly!FA505)*100)","v":-69.999999999999929},{"$f":"((Monthly!FB517-Monthly!FB505)*100)","v":-52.999999999999936},"--",{"$f":"((Monthly!FD517-Monthly!FD505)*100)","v":-129},{"$f":"((Monthly!FE517-Monthly!FE505)*100)","v":-127.00000000000004},{"$f":"((Monthly!FF517-Monthly!FF505)*100)","v":-192},{"$f":"((Monthly!FG517-Monthly!FG505)*100)","v":-219.00000000000003},{"$f":"((Monthly!FH517-Monthly!FH505)*100)","v":-186.00000000000003},{"$f":"((Monthly!FI517-Monthly!FI505)*100)","v":-137},null,null,null,null,null,null,{"$f":"(Monthly!FP517/Monthly!FP505)-1","v":6.7018072289156461E-2},{"$f":"(Monthly!FQ517/Monthly!FQ505)-1","v":-1.328727079459302E-4},{"$f":"(Monthly!FR517/Monthly!FR505)-1","v":3.3417307236827787E-2},{"$f":"(Monthly!FS517/Monthly!FS505)-1","v":-5.807321373016705E-2},{"$f":"(Monthly!FT517/Monthly!FT505)-1","v":7.6214450584158433E-2},{"$f":"(Monthly!FU517/Monthly!FU505)-1","v":8.783828907133806E-2},{"$f":"(Monthly!FV517/Monthly!FV505)-1","v":-3.7844086409941524E-2},{"$f":"(Monthly!FW517/Monthly!FW505)-1","v":0.18151959029280351},{"$f":"(Monthly!FX517/Monthly!FX505)-1","v":3.3700922548809409E-2},null,null,null,null,null,{"$f":"(Monthly!GD517/Monthly!GD505)-1","v":-8.8658414185346368E-2},{"$f":"(Monthly!GE517/Monthly!GE505)-1","v":-0.10876682429974527},{"$f":"(Monthly!GF517/Monthly!GF505)-1","v":-5.3508657726858533E-2},{"$f":"(Monthly!GG517/Monthly!GG505)-1","v":-5.4090601757944556E-2},{"$f":"(Monthly!GH517/Monthly!GH505)-1","v":{"$error":"#DIV/0!"}},"--",{"$f":"(Monthly!GJ517/Monthly!GJ505)-1","v":0.83486562942008491},{"$f":"(Monthly!GK517/Monthly!GK505)-1","v":0.10877862595419852},"--"]
["2001-11-01",null,null,null,{"$f":"(Monthly!E525/Monthly!E513)-1","v":2.6279842852825475E-2},{"$f":"(Monthly!F525/Monthly!F513)-1","v":0.11759307813319353},{"$f":"(Monthly!G525/Monthly!G513)-1","v":1.5436846851625941E-2},{"$f":"(Monthly!H525/Monthly!H513)-1","v":1.1904761904761862E-2},null,null,null,null,null,null,null,null,null,null,null,null,null,null,null,{"$f":"(Monthly!X525-Monthly!X513)","v":-6.6000000000000085},{"$f":"(Monthly!Y525/Monthly!Y513)-1","v":-4.2994256090824412E-2},null,null,null,null,null,null,null,null,null,null,null,null,null,{"$f":"(Monthly!AM525/Monthly!AM513)-1","v":-5.2689351214692093E-2},{"$f":"(Monthly!AN525/Monthly!AN513)-1","v":-5.5696970648085653E-2},{"$f":"(Monthly!AO525/Monthly!AO513)-1","v":-5.909149386571233E-2},{"$f":"((Monthly!AP525-Monthly!AP513)*100)","v":-4.0000000000000036},{"$f":"Monthly!AQ525-Monthly!AQ513","v":-4.3999999999999986},{"$f":"Monthly!AR525-Monthly!AR513","v":-3.5},{"$f":"Monthly!AS525-Monthly!AS513","v":-7},{"$f":"Monthly!AT525-Monthly!AT513","v":-10.700000000000003},{"$f":"Monthly!AU525-Monthly!AU513","v":1.3999999999999986},{"$f":"Monthly!AV525-Monthly!AV513","v":-3.7000000000000028},{"$f":"Monthly!AW525-Monthly!AW513","v":-3.8999999999999986},{"$f":"Monthly!AX525-Monthly!AX513","v":0},{"$f":"Monthly!AY525-Monthly!AY513","v":-26.1},{"$f":"Monthly!AZ525-Monthly!AZ513","v":-3.2000000000000028},{"$f":"Monthly!BA525-Monthly!BA513","v":-1.1999999999999957},{"$f":"(Monthly!BB525/Monthly!BB513)-1","v":-0.17252931323283094},{"$f":"(Monthly!BC525/Monthly!BC513)-1","v":-0.17954578145727118},null,null,null,null,null,null,null,null,null,{"$f":"(Monthly!BM525/Monthly!BM513)-1","v":4.0000289935960387E-2},{"$f":"(Monthly!BN525/Monthly!BN513)-1","v":4.0515536017584175E-2},null,null,null,null,null,{"$f":"(Monthly!BT525/Monthly!BT513)-1","v":4.2749278076974262E-2},null,null,null,{"$f":"(Monthly!BX525/Monthly!BX513)-1","v":3.2882011605415817E-2},{"$f":"(Monthly!BY525/Monthly!BY513)-1","v":2.2924411400247813E-2},{"$f":"(Monthly!BZ525/Monthly!BZ513)-1","v":8.7727231617979573E-2},{"$f":"(Monthly!CA525/Monthly!CA513)-1","v":9.0165446829448381E-2},{"$f":"Monthly!CB525-Monthly!CB513","v":5.019375986867658E-2},{"$f":"Monthly!CC525-Monthly!CC513","v":1.1701937598686758},"--","--",null,"--","--",null,{"$f":"(Monthly!CJ525/Monthly!CJ513)-1","v":5.0000000000000044E-2},{"$f":"(Monthly!CK525/Monthly!CK513)-1","v":2.484881553221463E-2},{"$f":"(Monthly!CL525/Monthly!CL513)-1","v":-7.2619874913134264E-2},{"$f":"(Monthly!CM525/Monthly!CM513)-1","v":2.64026402640265E-2},{"$f":"(Monthly!CN525/Monthly!CN513)-1","v":1.9290638203246502E-2},{"$f":"(Monthly!CO525/Monthly!CO513)-1","v":0.22002485546009609},{"$f":"(Monthly!CP525/Monthly!CP513)-1","v":9.2241869149757516E-2},{"$f":"(Monthly!CQ525/Monthly!CQ513)-1","v":1.0188637975255155E-2},{"$f":"(Monthly!CR525/Monthly!CR513)-1","v":5.7365436256397784E-2},null,null,null,null,null,null,null,{"$f":"(Monthly!CZ525/Monthly!CZ513)-1","v":1.8943742824339971E-2},{"$f":"(Monthly!DA525/Monthly!DA513)-1","v":2.7307482250136461E-2},null,null,null,null,null,null,{"$f":"((Monthly!DH525-Monthly!DH513)*60)","v":-24.000000000000341},{"$f":"((Monthly!DI525-Monthly!DI513)*100)","v":-20.000000000000284},{"$f":"((Monthly!DJ525-Monthly!DJ513)*100)","v":230.00000000000006},{"$f":"((Monthly!DK525-Monthly!DK513)*100)","v":160},{"$f":"Monthly!DL525-Monthly!DL513","v":-1377},null,null,null,{"$f":"Monthly!DP525-Monthly!DP513","v":-1413},null,null,null,{"$f":"(Monthly!DT525/Monthly!DT513)-1","v":0.35751682872101731},{"$f":"Monthly!DU525-Monthly!DU513","v":1.6000000000000005},{"$f":"(Monthly!DV525/Monthly!DV513)-1","v":-2.8998931243320314E-2},{"$f":"(Monthly!DW525/Monthly!DW513)-1","v":-2.8270549155417379E-2},{"$f":"(Monthly!DX525/Monthly!DX513)-1","v":-3.6699048179766436E-2},{"$f":"(Monthly!DY525/Monthly!DY513)-1","v":-5.32258064516129E-2},{"$f":"(Monthly!DZ525/Monthly!DZ513)-1","v":-3.1383737517831745E-2},{"$f":"(Monthly!EA525/Monthly!EA513)-1","v":-2.8737722808293897E-2},{"$f":"(Monthly!EB525/Monthly!EB513)-1","v":-3.7957523723452402E-2},{"$f":"(Monthly!EC525/Monthly!EC513)-1","v":-6.5689742294088305E-3},null,null,null,null,null,null,null,null,null,null,null,null,null,{"$f":"(Monthly!EQ525/Monthly!EQ513)-1","v":-3.8518518518518396E-2},{"$f":"(Monthly!ER525/Monthly!ER513)-1","v":1.0087424344317419E-2},{"$f":"(Monthly!ES525/Monthly!ES513)-1","v":0},null,null,null,null,null,{"$f":"((Monthly!EY525-Monthly!EY513)*100)","v":-440.00000000000006},{"$f":"((Monthly!EZ525-Monthly!EZ513)*100)","v":-442},{"$f":"((Monthly!FA525-Monthly!FA513)*100)","v":-48.000000000000043},{"$f":"((Monthly!FB525-Monthly!FB513)*100)","v":-46.999999999999972},"--",{"$f":"((Monthly!FD525-Monthly!FD513)*100)","v":-108.99999999999999},{"$f":"((Monthly!FE525-Monthly!FE513)*100)","v":-430},{"$f":"((Monthly!FF525-Monthly!FF513)*100)","v":-390.99999999999994},{"$f":"((Monthly!FG525-Monthly!FG513)*100)","v":-310},{"$f":"((Monthly!FH525-Monthly!FH513)*100)","v":-173},{"$f":"((Monthly!FI525-Monthly!FI513)*100)","v":-106.99999999999994},null,null,null,null,null,null,{"$f":"(Monthly!FP525/Monthly!FP513)-1","v":3.2153507065992626E-2},{"$f":"(Monthly!FQ525/Monthly!FQ513)-1","v":-6.0405441322242126E-5},{"$f":"(Monthly!FR525/Monthly!FR513)-1","v":-2.9774613224513913E-2},{"$f":"(Monthly!FS525/Monthly!FS513)-1","v":3.87043966323668E-2},{"$f":"(Monthly!FT525/Monthly!FT513)-1","v":2.6687218252518408E-2},{"$f":"(Monthly!FU525/Monthly!FU513)-1","v":2.2529156177121257E-2},{"$f":"(Monthly!FV525/Monthly!FV513)-1","v":-0.14016585541734272},{"$f":"(Monthly!FW525/Monthly!FW513)-1","v":-2.0734989191335429E-2},{"$f":"(Monthly!FX525/Monthly!FX513)-1","v":-8.9332227777917383E-2},null,null,null,null,null,{"$f":"(Monthly!GD525/Monthly!GD513)-1","v":-0.42819767441860457},{"$f":"(Monthly!GE525/Monthly!GE513)-1","v":-0.42242703533026105},{"$f":"(Monthly!GF525/Monthly!GF513)-1","v":-0.22116929007388364},{"$f":"(Monthly!GG525/Monthly!GG513)-1","v":-0.22331893892658861},{"$f":"(Monthly!GH525/Monthly!GH513)-1","v":{"$error":"#DIV/0!"}},"--",{"$f":"(Monthly!GJ525/Monthly!GJ513)-1","v":-0.51463414634146343},{"$f":"(Monthly!GK525/Monthly!GK513)-1","v":4.6248715313463862E-3},"--"]
["2002-02-01",null,null,null,{"$f":"(Monthly!E528/Monthly!E516)-1","v":2.5377418541248975E-2},{"$f":"(Monthly!F528/Monthly!F516)-1","v":7.5517197613910403E-2},{"$f":"(Monthly!G528/Monthly!G516)-1","v":2.2010739539582103E-2},{"$f":"(Monthly!H528/Monthly!H516)-1","v":1.6486021957978103E-2},null,null,null,null,null,null,null,null,null,null,null,null,null,null,null,{"$f":"(Monthly!X528-Monthly!X516)","v":-4.5},{"$f":"(Monthly!Y528/Monthly!Y516)-1","v":-7.0849383187595927E-2},null,null,null,null,null,null,null,null,null,null,null,null,null,{"$f":"(Monthly!AM528/Monthly!AM516)-1","v":-3.1809174623022463E-2},{"$f":"(Monthly!AN528/Monthly!AN516)-1","v":-3.1628214574687896E-2},{"$f":"(Monthly!AO528/Monthly!AO516)-1","v":-6.6436001839500269E-2},{"$f":"((Monthly!AP528-Monthly!AP516)*100)","v":-4.0000000000000036},{"$f":"Monthly!AQ528-Monthly!AQ516","v":8.6000000000000014},{"$f":"Monthly!AR528-Monthly!AR516","v":16},{"$f":"Monthly!AS528-Monthly!AS516","v":-11},{"$f":"Monthly!AT528-Monthly!AT516","v":6},{"$f":"Monthly!AU528-Monthly!AU516","v":3.9000000000000057},{"$f":"Monthly!AV528-Monthly!AV516","v":4.8999999999999986},{"$f":"Monthly!AW528-Monthly!AW516","v":-4.5},{"$f":"Monthly!AX528-Monthly!AX516","v":20.800000000000004},{"$f":"Monthly!AY528-Monthly!AY516","v":-14.100000000000001},{"$f":"Monthly!AZ528-Monthly!AZ516","v":19.5},{"$f":"Monthly!BA528-Monthly!BA516","v":1.1999999999999957},{"$f":"(Monthly!BB528/Monthly!BB516)-1","v":0.11650485436893199},{"$f":"(Monthly!BC528/Monthly!BC516)-1","v":-0.16882218231543566},null,null,null,null,null,null,null,null,null,{"$f":"(Monthly!BM528/Monthly!BM516)-1","v":2.2460625755472474E-2},{"$f":"(Monthly!BN528/Monthly!BN516)-1","v":1.9574249198749616E-2},null,null,null,null,null,{"$f":"(Monthly!BT528/Monthly!BT516)-1","v":3.2732355192325757E-2},null,null,null,{"$f":"(Monthly!BX528/Monthly!BX516)-1","v":0.1255384615384616},{"$f":"(Monthly!BY528/Monthly!BY516)-1","v":7.9106280193236733E-2},{"$f":"(Monthly!BZ528/Monthly!BZ516)-1","v":7.0621221414176816E-2},{"$f":"(Monthly!CA528/Monthly!CA516)-1","v":-2.4493776171628512E-2},{"$f":"Monthly!CB528-Monthly!CB516","v":-0.89304812834224556},{"$f":"Monthly!CC528-Monthly!CC516","v":0.15695187165775337},"--","--",null,"--","--",null,{"$f":"(Monthly!CJ528/Monthly!CJ516)-1","v":-1.5576323987538943E-2},{"$f":"(Monthly!CK528/Monthly!CK516)-1","v":1.0543109603712963E-2},{"$f":"(Monthly!CL528/Monthly!CL516)-1","v":0.34604385128694015},{"$f":"(Monthly!CM528/Monthly!CM516)-1","v":0.17265624999999996},{"$f":"(Monthly!CN528/Monthly!CN516)-1","v":3.5545023696682554E-2},{"$f":"(Monthly!CO528/Monthly!CO516)-1","v":0.24207253886010349},{"$f":"(Monthly!CP528/Monthly!CP516)-1","v":7.6172726971204918E-2},{"$f":"(Monthly!CQ528/Monthly!CQ516)-1","v":1.0055008675392552E-2},{"$f":"(Monthly!CR528/Monthly!CR516)-1","v":2.412610631355383E-2},null,null,null,null,null,null,null,{"$f":"(Monthly!CZ528/Monthly!CZ516)-1","v":1.1363636363636465E-2},{"$f":"(Monthly!DA528/Monthly!DA516)-1","v":2.5488069414316694E-2},null,null,null,null,null,null,{"$f":"((Monthly!DH528-Monthly!DH516)*60)","v":-12.000000000000171},{"$f":"((Monthly!DI528-Monthly!DI516)*100)","v":-29.999999999999716},{"$f":"((Monthly!DJ528-Monthly!DJ516)*100)","v":209.99999999999997},{"$f":"((Monthly!DK528-Monthly!DK516)*100)","v":150},{"$f":"Monthly!DL528-Monthly!DL516","v":-1513},null,null,null,{"$f":"Monthly!DP528-Monthly!DP516","v":-2045},null,null,null,{"$f":"(Monthly!DT528/Monthly!DT516)-1","v":7.4747474747474785E-2},{"$f":"Monthly!DU528-Monthly!DU516","v":2.2000000000000011},{"$f":"(Monthly!DV528/Monthly!DV516)-1","v":-4.1939152686949144E-2},{"$f":"(Monthly!DW528/Monthly!DW516)-1","v":-4.3415024361864507E-2},{"$f":"(Monthly!DX528/Monthly!DX516)-1","v":-4.7134656058011815E-2},{"$f":"(Monthly!DY528/Monthly!DY516)-1","v":-4.9408783783783883E-2},{"$f":"(Monthly!DZ528/Monthly!DZ516)-1","v":-4.6422430895384226E-2},{"$f":"(Monthly!EA528/Monthly!EA516)-1","v":-4.5050055617352536E-2},{"$f":"(Monthly!EB528/Monthly!EB516)-1","v":-4.9838486386709624E-2},{"$f":"(Monthly!EC528/Monthly!EC516)-1","v":-3.3751962323390838E-2},null,null,null,null,null,null,null,null,null,null,null,null,null,{"$f":"(Monthly!EQ528/Monthly!EQ516)-1","v":-6.5502183406113579E-2},{"$f":"(Monthly!ER528/Monthly!ER516)-1","v":6.0321715817694965E-3},{"$f":"(Monthly!ES528/Monthly!ES516)-1","v":1.43575017946862E-3},null,null,null,null,null,{"$f":"((Monthly!EY528-Monthly!EY516)*100)","v":-375},{"$f":"((Monthly!EZ528-Monthly!EZ516)*100)","v":-375},{"$f":"((Monthly!FA528-Monthly!FA516)*100)","v":-58.999999999999986},{"$f":"((Monthly!FB528-Monthly!FB516)*100)","v":1.9999999999999574},"--",{"$f":"((Monthly!FD528-Monthly!FD516)*100)","v":-16.000000000000014},{"$f":"((Monthly!FE528-Monthly!FE516)*100)","v":-315},{"$f":"((Monthly!FF528-Monthly!FF516)*100)","v":-244.99999999999997},{"$f":"((Monthly!FG528-Monthly!FG516)*100)","v":-164},{"$f":"((Monthly!FH528-Monthly!FH516)*100)","v":-58.999999999999986},{"$f":"((Monthly!FI528-Monthly!FI516)*100)","v":-18.99999999999995},null,null,null,null,null,null,{"$f":"(Monthly!FP528/Monthly!FP516)-1","v":4.9158780231335353E-2},{"$f":"(Monthly!FQ528/Monthly!FQ516)-1","v":-4.8326104553630955E-5},{"$f":"(Monthly!FR528/Monthly!FR516)-1","v":-6.2384149606623529E-2},{"$f":"(Monthly!FS528/Monthly!FS516)-1","v":-5.4101032047800035E-2},{"$f":"(Monthly!FT528/Monthly!FT516)-1","v":4.9529897788382682E-2},{"$f":"(Monthly!FU528/Monthly!FU516)-1","v":6.8087573948721225E-2},{"$f":"(Monthly!FV528/Monthly!FV516)-1","v":-0.11410252198385851},{"$f":"(Monthly!FW528/Monthly!FW516)-1","v":0.25804630152456243},{"$f":"(Monthly!FX528/Monthly!FX516)-1","v":-2.6658249975721082E-2},null,null,null,null,null,{"$f":"(Monthly!GD528/Monthly!GD516)-1","v":-0.29956095913542724},{"$f":"(Monthly!GE528/Monthly!GE516)-1","v":-0.26254545454545453},{"$f":"(Monthly!GF528/Monthly!GF516)-1","v":-0.22849507265742452},{"$f":"(Monthly!GG528/Monthly!GG516)-1","v":-0.22788203753351211},{"$f":"(Monthly!GH528/Monthly!GH516)-1","v":{"$error":"#DIV/0!"}},"--",{"$f":"(Monthly!GJ528/Monthly!GJ516)-1","v":-0.60123348017621148},{"$f":"(Monthly!GK528/Monthly!GK516)-1","v":-5.2193645990922799E-2},"--"]
["2002-04-01",null,null,null,{"$f":"(Monthly!E530/Monthly!E518)-1","v":3.1122651375815824E-2},{"$f":"(Monthly!F530/Monthly!F518)-1","v":0.13164424709416211},{"$f":"(Monthly!G530/Monthly!G518)-1","v":1.3761710686497564E-2},{"$f":"(Monthly!H530/Monthly!H518)-1","v":1.7594487293842054E-2},null,null,null,null,null,null,null,null,null,null,null,null,null,null,null,{"$f":"(Monthly!X530-Monthly!X518)","v":-3},{"$f":"(Monthly!Y530/Monthly!Y518)-1","v":-8.1641170626512105E-2},null,null,null,null,null,null,null,null,null,null,null,null,null,{"$f":"(Monthly!AM530/Monthly!AM518)-1","v":-1.5197095822316098E-2},{"$f":"(Monthly!AN530/Monthly!AN518)-1","v":-1.5630962216980127E-2},{"$f":"(Monthly!AO530/Monthly!AO518)-1","v":-6.5466973541346229E-2},{"$f":"((Monthly!AP530-Monthly!AP518)*100)","v":-9.9999999999999858},{"$f":"Monthly!AQ530-Monthly!AQ518","v":9.6999999999999957},{"$f":"Monthly!AR530-Monthly!AR518","v":12.5},{"$f":"Monthly!AS530-Monthly!AS518","v":-9.5},{"$f":"Monthly!AT530-Monthly!AT518","v":8.3999999999999986},{"$f":"Monthly!AU530-Monthly!AU518","v":4.3999999999999986},{"$f":"Monthly!AV530-Monthly!AV518","v":8.2999999999999972},{"$f":"Monthly!AW530-Monthly!AW518","v":3.2999999999999972},{"$f":"Monthly!AX530-Monthly!AX518","v":14.399999999999999},{"$f":"Monthly!AY530-Monthly!AY518","v":12.299999999999997},{"$f":"Monthly!AZ530-Monthly!AZ518","v":16},{"$f":"Monthly!BA530-Monthly!BA518","v":6.2999999999999972},{"$f":"(Monthly!BB530/Monthly!BB518)-1","v":0.16563146997929601},{"$f":"(Monthly!BC530/Monthly!BC518)-1","v":-9.598657938403754E-2},null,null,null,null,null,null,null,null,null,{"$f":"(Monthly!BM530/Monthly!BM518)-1","v":2.8546601900257818E-2},{"$f":"(Monthly!BN530/Monthly!BN518)-1","v":2.5753751584831175E-2},null,null,null,null,null,{"$f":"(Monthly!BT530/Monthly!BT518)-1","v":3.3672043354882719E-2},null,null,null,{"$f":"(Monthly!BX530/Monthly!BX518)-1","v":-3.4566403881140073E-2},{"$f":"(Monthly!BY530/Monthly!BY518)-1","v":1.8007202881151763E-3},{"$f":"(Monthly!BZ530/Monthly!BZ518)-1","v":7.4844613259668513E-2},{"$f":"(Monthly!CA530/Monthly!CA518)-1","v":4.9119835460649686E-2},{"$f":"Monthly!CB530-Monthly!CB518","v":-7.4265360522986157E-2},{"$f":"Monthly!CC530-Monthly!CC518","v":0.97573463947701455},"--","--",null,"--","--",null,{"$f":"(Monthly!CJ530/Monthly!CJ518)-1","v":2.9702970297029729E-2},{"$f":"(Monthly!CK530/Monthly!CK518)-1","v":1.3328294000600316E-2},{"$f":"(Monthly!CL530/Monthly!CL518)-1","v":0.24323502584372148},{"$f":"(Monthly!CM530/Monthly!CM518)-1","v":-2.5934401220442438E-2},{"$f":"(Monthly!CN530/Monthly!CN518)-1","v":3.7122279975332573E-2},{"$f":"(Monthly!CO530/Monthly!CO518)-1","v":0.22225542936840026},{"$f":"(Monthly!CP530/Monthly!CP518)-1","v":7.3802845561354413E-2},{"$f":"(Monthly!CQ530/Monthly!CQ518)-1","v":9.8952495071702451E-3},{"$f":"(Monthly!CR530/Monthly!CR518)-1","v":2.5133614249547964E-2},null,null,null,null,null,null,null,{"$f":"(Monthly!CZ530/Monthly!CZ518)-1","v":1.6439909297052191E-2},{"$f":"(Monthly!DA530/Monthly!DA518)-1","v":2.485143165856285E-2},null,null,null,null,null,null,{"$f":"((Monthly!DH530-Monthly!DH518)*60)","v":-6.0000000000000853},{"$f":"((Monthly!DI530-Monthly!DI518)*100)","v":-20.000000000000284},{"$f":"((Monthly!DJ530-Monthly!DJ518)*100)","v":229.99999999999989},{"$f":"((Monthly!DK530-Monthly!DK518)*100)","v":150},{"$f":"Monthly!DL530-Monthly!DL518","v":-1410},null,null,null,{"$f":"Monthly!DP530-Monthly!DP518","v":-1837},null,null,null,{"$f":"(Monthly!DT530/Monthly!DT518)-1","v":8.1915563957151827E-2},{"$f":"Monthly!DU530-Monthly!DU518","v":3},{"$f":"(Monthly!DV530/Monthly!DV518)-1","v":-3.9271688682613326E-2},{"$f":"(Monthly!DW530/Monthly!DW518)-1","v":-3.9453717754173057E-2},{"$f":"(Monthly!DX530/Monthly!DX518)-1","v":-4.8508586923772246E-2},{"$f":"(Monthly!DY530/Monthly!DY518)-1","v":-4.0602762662201863E-2},{"$f":"(Monthly!DZ530/Monthly!DZ518)-1","v":-5.1004228329809553E-2},{"$f":"(Monthly!EA530/Monthly!EA518)-1","v":-5.1224944320712673E-2},{"$f":"(Monthly!EB530/Monthly!EB518)-1","v":-5.0458715596330306E-2},{"$f":"(Monthly!EC530/Monthly!EC518)-1","v":-1.6228748068006227E-2},null,null,null,null,null,null,null,null,null,null,null,null,null,{"$f":"(Monthly!EQ530/Monthly!EQ518)-1","v":-4.1055718475073277E-2},{"$f":"(Monthly!ER530/Monthly!ER518)-1","v":3.3377837116155273E-3},{"$f":"(Monthly!ES530/Monthly!ES518)-1","v":-3.5765379113018581E-3},null,null,null,null,null,{"$f":"((Monthly!EY530-Monthly!EY518)*100)","v":-305},{"$f":"((Monthly!EZ530-Monthly!EZ518)*100)","v":-305},{"$f":"((Monthly!FA530-Monthly!FA518)*100)","v":-44.000000000000043},{"$f":"((Monthly!FB530-Monthly!FB518)*100)","v":-4.0000000000000924},"--",{"$f":"((Monthly!FD530-Monthly!FD518)*100)","v":-8.9999999999999858},{"$f":"((Monthly!FE530-Monthly!FE518)*100)","v":-215.00000000000003},{"$f":"((Monthly!FF530-Monthly!FF518)*100)","v":-150},{"$f":"((Monthly!FG530-Monthly!FG518)*100)","v":-81.000000000000057},{"$f":"((Monthly!FH530-Monthly!FH518)*100)","v":-10.999999999999943},{"$f":"((Monthly!FI530-Monthly!FI518)*100)","v":7.0000000000000284},null,null,null,null,null,null,{"$f":"(Monthly!FP530/Monthly!FP518)-1","v":1.5213762999101155E-2},{"$f":"(Monthly!FQ530/Monthly!FQ518)-1","v":1.2081526138407739E-5},{"$f":"(Monthly!FR530/Monthly!FR518)-1","v":-1.7442857755478491E-2},{"$f":"(Monthly!FS530/Monthly!FS518)-1","v":-7.2829131652660806E-3},{"$f":"(Monthly!FT530/Monthly!FT518)-1","v":1.6069338488250873E-2},{"$f":"(Monthly!FU530/Monthly!FU518)-1","v":1.5664544438861228E-2},{"$f":"(Monthly!FV530/Monthly!FV518)-1","v":-2.9205301902001435E-2},{"$f":"(Monthly!FW530/Monthly!FW518)-1","v":0.18353541135452978},{"$f":"(Monthly!FX530/Monthly!FX518)-1","v":9.4506144569116879E-2},null,null,null,null,null,{"$f":"(Monthly!GD530/Monthly!GD518)-1","v":-4.1590660342940566E-2},{"$f":"(Monthly!GE530/Monthly!GE518)-1","v":2.7279812938425518E-3},{"$f":"(Monthly!GF530/Monthly!GF518)-1","v":-8.092209856915733E-2},{"$f":"(Monthly!GG530/Monthly!GG518)-1","v":-7.9465541490857938E-2},{"$f":"(Monthly!GH530/Monthly!GH518)-1","v":{"$error":"#DIV/0!"}},"--",{"$f":"(Monthly!GJ530/Monthly!GJ518)-1","v":-0.34284062439776453},{"$f":"(Monthly!GK530/Monthly!GK518)-1","v":-1.9099947671376238E-2},"--"]
["2002-09-01",null,null,null,{"$f":"(Monthly!E535/Monthly!E523)-1","v":3.2704447804901449E-2},{"$f":"(Monthly!F535/Monthly!F523)-1","v":0.10179331699135585},{"$f":"(Monthly!G535/Monthly!G523)-1","v":2.0130317317370361E-2},{"$f":"(Monthly!H535/Monthly!H523)-1","v":2.337576054269519E-2},null,null,null,null,null,null,null,null,null,null,null,null,null,null,null,{"$f":"(Monthly!X535-Monthly!X523)","v":0.70000000000000284},{"$f":"(Monthly!Y535/Monthly!Y523)-1","v":-8.7717689803036292E-2},null,null,null,null,null,null,null,null,null,null,null,null,null,{"$f":"(Monthly!AM535/Monthly!AM523)-1","v":2.2165260499893646E-2},{"$f":"(Monthly!AN535/Monthly!AN523)-1","v":2.9744513521231974E-2},{"$f":"(Monthly!AO535/Monthly!AO523)-1","v":-2.4766250151224467E-2},{"$f":"((Monthly!AP535-Monthly!AP523)*100)","v":-7.9999999999999849},{"$f":"Monthly!AQ535-Monthly!AQ523","v":4.2999999999999972},{"$f":"Monthly!AR535-Monthly!AR523","v":1.5},{"$f":"Monthly!AS535-Monthly!AS523","v":-8},{"$f":"Monthly!AT535-Monthly!AT523","v":4.2999999999999972},{"$f":"Monthly!AU535-Monthly!AU523","v":6.8999999999999986},{"$f":"Monthly!AV535-Monthly!AV523","v":5},{"$f":"Monthly!AW535-Monthly!AW523","v":4.8999999999999986},{"$f":"Monthly!AX535-Monthly!AX523","v":1.6000000000000014},{"$f":"Monthly!AY535-Monthly!AY523","v":25.9},{"$f":"Monthly!AZ535-Monthly!AZ523","v":1.7000000000000028},{"$f":"Monthly!BA535-Monthly!BA523","v":9.2000000000000028},{"$f":"(Monthly!BB535/Monthly!BB523)-1","v":0.1046277665995976},{"$f":"(Monthly!BC535/Monthly!BC523)-1","v":-4.9571301862619488E-2},null,null,null,null,null,null,null,null,null,{"$f":"(Monthly!BM535/Monthly!BM523)-1","v":4.4691138919574769E-2},{"$f":"(Monthly!BN535/Monthly!BN523)-1","v":4.3200883709016313E-2},null,null,null,null,null,{"$f":"(Monthly!BT535/Monthly!BT523)-1","v":5.5438351710656475E-2},null,null,null,{"$f":"(Monthly!BX535/Monthly!BX523)-1","v":0.15492957746478875},{"$f":"(Monthly!BY535/Monthly!BY523)-1","v":0.15207667731629404},{"$f":"(Monthly!BZ535/Monthly!BZ523)-1","v":0.10501554230026033},{"$f":"(Monthly!CA535/Monthly!CA523)-1","v":1.6816143497757841E-2},{"$f":"Monthly!CB535-Monthly!CB523","v":-0.37616365268823326},{"$f":"Monthly!CC535-Monthly!CC523","v":0.11383634731176429},"--","--",null,"--","--",null,{"$f":"(Monthly!CJ535/Monthly!CJ523)-1","v":0.22391559202813593},{"$f":"(Monthly!CK535/Monthly!CK523)-1","v":2.3544086692133703E-2},{"$f":"(Monthly!CL535/Monthly!CL523)-1","v":-0.19875151026983495},{"$f":"(Monthly!CM535/Monthly!CM523)-1","v":0.16331456154465007},{"$f":"(Monthly!CN535/Monthly!CN523)-1","v":1.4692269605838248E-2},{"$f":"(Monthly!CO535/Monthly!CO523)-1","v":0.21730742731156116},{"$f":"(Monthly!CP535/Monthly!CP523)-1","v":7.5181931687123615E-2},{"$f":"(Monthly!CQ535/Monthly!CQ523)-1","v":9.7081264890166441E-3},{"$f":"(Monthly!CR535/Monthly!CR523)-1","v":5.0990678709718296E-2},null,null,null,null,null,null,null,{"$f":"(Monthly!CZ535/Monthly!CZ523)-1","v":1.516002245929271E-2},{"$f":"(Monthly!DA535/Monthly!DA523)-1","v":2.2447888829502993E-2},null,null,null,null,null,null,{"$f":"((Monthly!DH535-Monthly!DH523)*60)","v":6.0000000000000853},{"$f":"((Monthly!DI535-Monthly!DI523)*100)","v":-9.9999999999994316},{"$f":"((Monthly!DJ535-Monthly!DJ523)*100)","v":90.000000000000028},{"$f":"((Monthly!DK535-Monthly!DK523)*100)","v":70.000000000000014},{"$f":"Monthly!DL535-Monthly!DL523","v":-998},null,null,null,{"$f":"Monthly!DP535-Monthly!DP523","v":-1267},null,null,null,{"$f":"(Monthly!DT535/Monthly!DT523)-1","v":-7.6142131979695438E-2},{"$f":"Monthly!DU535-Monthly!DU523","v":2.2999999999999998},{"$f":"(Monthly!DV535/Monthly!DV523)-1","v":-3.2820214928841129E-2},{"$f":"(Monthly!DW535/Monthly!DW523)-1","v":-3.2258064516129004E-2},{"$f":"(Monthly!DX535/Monthly!DX523)-1","v":-3.627935100272095E-2},{"$f":"(Monthly!DY535/Monthly!DY523)-1","v":-1.2083333333333335E-2},{"$f":"(Monthly!DZ535/Monthly!DZ523)-1","v":-4.3998404891665399E-2},{"$f":"(Monthly!EA535/Monthly!EA523)-1","v":-4.92353599403208E-2},{"$f":"(Monthly!EB535/Monthly!EB523)-1","v":-3.1004164738546947E-2},{"$f":"(Monthly!EC535/Monthly!EC523)-1","v":-2.2349143282840878E-2},null,null,null,null,null,null,null,null,null,null,null,null,null,{"$f":"(Monthly!EQ535/Monthly!EQ523)-1","v":-7.5018754688672695E-3},{"$f":"(Monthly!ER535/Monthly!ER523)-1","v":-2.6542800265426658E-3},{"$f":"(Monthly!ES535/Monthly!ES523)-1","v":-8.5592011412267688E-3},null,null,null,null,null,{"$f":"((Monthly!EY535-Monthly!EY523)*100)","v":-153.00000000000003},{"$f":"((Monthly!EZ535-Monthly!EZ523)*100)","v":-131.99999999999997},{"$f":"((Monthly!FA535-Monthly!FA523)*100)","v":-101.99999999999996},{"$f":"((Monthly!FB535-Monthly!FB523)*100)","v":-62.999999999999901},"--",{"$f":"((Monthly!FD535-Monthly!FD523)*100)","v":-73.000000000000043},{"$f":"((Monthly!FE535-Monthly!FE523)*100)","v":-101.00000000000003},{"$f":"((Monthly!FF535-Monthly!FF523)*100)","v":-109.99999999999999},{"$f":"((Monthly!FG535-Monthly!FG523)*100)","v":-112.00000000000001},{"$f":"((Monthly!FH535-Monthly!FH523)*100)","v":-118.00000000000001},{"$f":"((Monthly!FI535-Monthly!FI523)*100)","v":-86.000000000000028},null,null,null,null,null,null,{"$f":"(Monthly!FP535/Monthly!FP523)-1","v":5.229925377894018E-3},{"$f":"(Monthly!FQ535/Monthly!FQ523)-1","v":2.4163928088016817E-5},{"$f":"(Monthly!FR535/Monthly!FR523)-1","v":6.8485883738448772E-2},{"$f":"(Monthly!FS535/Monthly!FS523)-1","v":7.5927145051569056E-2},{"$f":"(Monthly!FT535/Monthly!FT523)-1","v":1.5391726589564225E-3},{"$f":"(Monthly!FU535/Monthly!FU523)-1","v":-3.1422336170188858E-2},{"$f":"(Monthly!FV535/Monthly!FV523)-1","v":6.9672597481150733E-2},{"$f":"(Monthly!FW535/Monthly!FW523)-1","v":0.2380890025987632},{"$f":"(Monthly!FX535/Monthly!FX523)-1","v":6.7537474034844891E-2},null,null,null,null,null,{"$f":"(Monthly!GD535/Monthly!GD523)-1","v":0.14644513137557968},{"$f":"(Monthly!GE535/Monthly!GE523)-1","v":0.10850897736143628},{"$f":"(Monthly!GF535/Monthly!GF523)-1","v":-7.3390075477758221E-2},{"$f":"(Monthly!GG535/Monthly!GG523)-1","v":-5.6187290969899717E-2},{"$f":"(Monthly!GH535/Monthly!GH523)-1","v":{"$error":"#DIV/0!"}},"--",{"$f":"(Monthly!GJ535/Monthly!GJ523)-1","v":0.61274288296430179},{"$f":"(Monthly!GK535/Monthly!GK523)-1","v":2.0132377275234425E-2},"--"]
["2003-02-01",null,null,null,{"$f":"(Monthly!E540/Monthly!E528)-1","v":1.7253092203898035E-2},{"$f":"(Monthly!F540/Monthly!F528)-1","v":3.3042246872787562E-3},{"$f":"(Monthly!G540/Monthly!G528)-1","v":2.0236175414867663E-2},{"$f":"(Monthly!H540/Monthly!H528)-1","v":1.8823975982608099E-2},null,null,null,null,null,null,null,null,null,null,null,null,null,null,null,{"$f":"(Monthly!X540-Monthly!X528)","v":2.0999999999999943},{"$f":"(Monthly!Y540/Monthly!Y528)-1","v":-7.3987702694011226E-2},null,null,null,null,null,null,null,null,null,null,null,null,null,{"$f":"(Monthly!AM540/Monthly!AM528)-1","v":3.1615284259559173E-2},{"$f":"(Monthly!AN540/Monthly!AN528)-1","v":3.091875701326563E-2},{"$f":"(Monthly!AO540/Monthly!AO528)-1","v":3.2659122432157073E-2},{"$f":"((Monthly!AP540-Monthly!AP528)*100)","v":-0.99999999999997868},{"$f":"Monthly!AQ540-Monthly!AQ528","v":-1.9000000000000057},{"$f":"Monthly!AR540-Monthly!AR528","v":-4},{"$f":"Monthly!AS540-Monthly!AS528","v":4.5},{"$f":"Monthly!AT540-Monthly!AT528","v":-1.1999999999999957},{"$f":"Monthly!AU540-Monthly!AU528","v":4.5},{"$f":"Monthly!AV540-Monthly!AV528","v":2.2000000000000028},{"$f":"Monthly!AW540-Monthly!AW528","v":3.2999999999999972},{"$f":"Monthly!AX540-Monthly!AX528","v":-8.8000000000000043},{"$f":"Monthly!AY540-Monthly!AY528","v":24},{"$f":"Monthly!AZ540-Monthly!AZ528","v":-4.5},{"$f":"Monthly!BA540-Monthly!BA528","v":1.3999999999999986},{"$f":"(Monthly!BB540/Monthly!BB528)-1","v":-3.3043478260869508E-2},{"$f":"(Monthly!BC540/Monthly!BC528)-1","v":-2.8245787908820597E-2},null,null,null,null,null,null,null,null,null,{"$f":"(Monthly!BM540/Monthly!BM528)-1","v":2.145856500889276E-2},{"$f":"(Monthly!BN540/Monthly!BN528)-1","v":2.1429929718213003E-2},null,null,null,null,null,{"$f":"(Monthly!BT540/Monthly!BT528)-1","v":5.7711918724230538E-2},null,null,null,{"$f":"(Monthly!BX540/Monthly!BX528)-1","v":-0.10934937124111532},{"$f":"(Monthly!BY540/Monthly!BY528)-1","v":3.7493005036373761E-2},{"$f":"(Monthly!BZ540/Monthly!BZ528)-1","v":0.12488747033308778},{"$f":"(Monthly!CA540/Monthly!CA528)-1","v":-7.0092908385275821E-2},{"$f":"Monthly!CB540-Monthly!CB528","v":2.2097037793666896},{"$f":"Monthly!CC540-Monthly!CC528","v":2.3497037793666919},"--","--",null,"--","--",null,{"$f":"(Monthly!CJ540/Monthly!CJ528)-1","v":-1.2658227848101222E-2},{"$f":"(Monthly!CK540/Monthly!CK528)-1","v":2.5690848670192112E-2},{"$f":"(Monthly!CL540/Monthly!CL528)-1","v":-7.1057601510859381E-2},{"$f":"(Monthly!CM540/Monthly!CM528)-1","v":-0.1332445036642238},{"$f":"(Monthly!CN540/Monthly!CN528)-1","v":9.1320312915756929E-3},{"$f":"(Monthly!CO540/Monthly!CO528)-1","v":0.18742699816452535},{"$f":"(Monthly!CP540/Monthly!CP528)-1","v":5.9248621104971644E-2},{"$f":"(Monthly!CQ540/Monthly!CQ528)-1","v":9.4775500533113011E-3},{"$f":"(Monthly!CR540/Monthly!CR528)-1","v":6.1244888763232197E-2},null,null,null,null,null,null,null,{"$f":"(Monthly!CZ540/Monthly!CZ528)-1","v":3.1460674157303359E-2},{"$f":"(Monthly!DA540/Monthly!DA528)-1","v":1.7979904812268632E-2},null,null,null,null,null,null,{"$f":"((Monthly!DH540-Monthly!DH528)*60)","v":-5.9999999999996589},{"$f":"((Monthly!DI540-Monthly!DI528)*100)","v":-39.999999999999147},{"$f":"((Monthly!DJ540-Monthly!DJ528)*100)","v":69.999999999999929},{"$f":"((Monthly!DK540-Monthly!DK528)*100)","v":20.000000000000018},{"$f":"Monthly!DL540-Monthly!DL528","v":-734},null,null,null,{"$f":"Monthly!DP540-Monthly!DP528","v":-286},null,null,null,{"$f":"(Monthly!DT540/Monthly!DT528)-1","v":3.007518796992481E-2},{"$f":"Monthly!DU540-Monthly!DU528","v":1.1999999999999993},{"$f":"(Monthly!DV540/Monthly!DV528)-1","v":-1.676806647870599E-2},{"$f":"(Monthly!DW540/Monthly!DW528)-1","v":-1.6648928082712566E-2},{"$f":"(Monthly!DX540/Monthly!DX528)-1","v":-2.4521720748335363E-2},{"$f":"(Monthly!DY540/Monthly!DY528)-1","v":-3.998223011994706E-3},{"$f":"(Monthly!DZ540/Monthly!DZ528)-1","v":-3.0929264909847376E-2},{"$f":"(Monthly!EA540/Monthly!EA528)-1","v":-3.8439138031450271E-2},{"$f":"(Monthly!EB540/Monthly!EB528)-1","v":-1.2141816415735751E-2},{"$f":"(Monthly!EC540/Monthly!EC528)-1","v":3.5201733008394243E-3},null,null,null,null,null,null,null,null,null,null,null,null,null,{"$f":"(Monthly!EQ540/Monthly!EQ528)-1","v":7.1651090342679025E-2},{"$f":"(Monthly!ER540/Monthly!ER528)-1","v":-1.3324450366422047E-3},{"$f":"(Monthly!ES540/Monthly!ES528)-1","v":-3.5842293906810374E-3},null,null,null,null,null,{"$f":"((Monthly!EY540-Monthly!EY528)*100)","v":-50},{"$f":"((Monthly!EZ540-Monthly!EZ528)*100)","v":-48},{"$f":"((Monthly!FA540-Monthly!FA528)*100)","v":-55.999999999999957},{"$f":"((Monthly!FB540-Monthly!FB528)*100)","v":-83},"--",{"$f":"((Monthly!FD540-Monthly!FD528)*100)","v":-104.99999999999999},{"$f":"((Monthly!FE540-Monthly!FE528)*100)","v":-56.000000000000007},{"$f":"((Monthly!FF540-Monthly!FF528)*100)","v":-93},{"$f":"((Monthly!FG540-Monthly!FG528)*100)","v":-139},{"$f":"((Monthly!FH540-Monthly!FH528)*100)","v":-140},{"$f":"((Monthly!FI540-Monthly!FI528)*100)","v":-101.00000000000003},null,null,null,null,null,null,{"$f":"(Monthly!FP540/Monthly!FP528)-1","v":-5.2806314206965688E-2},{"$f":"(Monthly!FQ540/Monthly!FQ528)-1","v":1.5706743025600822E-4},{"$f":"(Monthly!FR540/Monthly!FR528)-1","v":0.20205381658429422},{"$f":"(Monthly!FS540/Monthly!FS528)-1","v":0.238658550591478},{"$f":"(Monthly!FT540/Monthly!FT528)-1","v":-4.7985260694903609E-2},{"$f":"(Monthly!FU540/Monthly!FU528)-1","v":-0.12737490728590173},{"$f":"(Monthly!FV540/Monthly!FV528)-1","v":6.2053833554807092E-2},{"$f":"(Monthly!FW540/Monthly!FW528)-1","v":0.20057849591063248},{"$f":"(Monthly!FX540/Monthly!FX528)-1","v":9.3310052382140185E-2},null,null,null,null,null,{"$f":"(Monthly!GD540/Monthly!GD528)-1","v":0.72950819672131151},{"$f":"(Monthly!GE540/Monthly!GE528)-1","v":0.61587771203155817},{"$f":"(Monthly!GF540/Monthly!GF528)-1","v":0.43277765750162378},{"$f":"(Monthly!GG540/Monthly!GG528)-1","v":0.43576388888888884},{"$f":"(Monthly!GH540/Monthly!GH528)-1","v":{"$error":"#DIV/0!"}},"--",{"$f":"(Monthly!GJ540/Monthly!GJ528)-1","v":1.9416703490941232},{"$f":"(Monthly!GK540/Monthly!GK528)-1","v":0.17052407555200855},"--"]
["2003-08-01",null,null,null,{"$f":"(Monthly!E546/Monthly!E534)-1","v":3.8238219713618182E-2},{"$f":"(Monthly!F546/Monthly!F534)-1","v":7.8051511758118641E-2},{"$f":"(Monthly!G546/Monthly!G534)-1","v":5.2306253895699095E-2},{"$f":"(Monthly!H546/Monthly!H534)-1","v":2.5673062111694955E-2},null,null,null,null,null,null,null,null,null,null,null,null,null,null,null,{"$f":"(Monthly!X546-Monthly!X534)","v":0.29999999999999716},{"$f":"(Monthly!Y546/Monthly!Y534)-1","v":-6.4556862182925889E-2},null,null,null,null,null,null,null,null,null,null,null,null,null,{"$f":"(Monthly!AM546/Monthly!AM534)-1","v":1.7162428601198432E-3},{"$f":"(Monthly!AN546/Monthly!AN534)-1","v":1.9348600672020044E-3},{"$f":"(Monthly!AO546/Monthly!AO534)-1","v":1.0971347584572078E-2},{"$f":"((Monthly!AP546-Monthly!AP534)*100)","v":-2.0000000000000018},{"$f":"Monthly!AQ546-Monthly!AQ534","v":2.9000000000000057},{"$f":"Monthly!AR546-Monthly!AR534","v":6.5},{"$f":"Monthly!AS546-Monthly!AS534","v":0.5},{"$f":"Monthly!AT546-Monthly!AT534","v":0.30000000000000426},{"$f":"Monthly!AU546-Monthly!AU534","v":3},{"$f":"Monthly!AV546-Monthly!AV534","v":2.6000000000000014},{"$f":"Monthly!AW546-Monthly!AW534","v":-2.2999999999999972},{"$f":"Monthly!AX546-Monthly!AX534","v":10.5},{"$f":"Monthly!AY546-Monthly!AY534","v":-8.5},{"$f":"Monthly!AZ546-Monthly!AZ534","v":6.8999999999999986},{"$f":"Monthly!BA546-Monthly!BA534","v":-0.60000000000000142},{"$f":"(Monthly!BB546/Monthly!BB534)-1","v":0.25433526011560681},{"$f":"(Monthly!BC546/Monthly!BC534)-1","v":-8.4139094278934401E-3},null,null,null,null,null,null,null,null,null,{"$f":"(Monthly!BM546/Monthly!BM534)-1","v":5.1824787580917464E-2},{"$f":"(Monthly!BN546/Monthly!BN534)-1","v":4.8781960562317206E-2},null,null,null,null,null,{"$f":"(Monthly!BT546/Monthly!BT534)-1","v":4.7338858483719548E-2},null,null,null,{"$f":"(Monthly!BX546/Monthly!BX534)-1","v":0.12247397428046547},{"$f":"(Monthly!BY546/Monthly!BY534)-1","v":0.15988200589970503},{"$f":"(Monthly!BZ546/Monthly!BZ534)-1","v":0.10160386770009988},{"$f":"(Monthly!CA546/Monthly!CA534)-1","v":-9.5553714443524784E-3},{"$f":"Monthly!CB546-Monthly!CB534","v":0.86860312235523818},{"$f":"Monthly!CC546-Monthly!CC534","v":1.1486031223552384},"--","--",null,"--","--",null,{"$f":"(Monthly!CJ546/Monthly!CJ534)-1","v":0.18934911242603558},{"$f":"(Monthly!CK546/Monthly!CK534)-1","v":4.1387280716100205E-2},{"$f":"(Monthly!CL546/Monthly!CL534)-1","v":0.28238269176735042},{"$f":"(Monthly!CM546/Monthly!CM534)-1","v":0.19005613472333605},{"$f":"(Monthly!CN546/Monthly!CN534)-1","v":4.572277648057721E-2},{"$f":"(Monthly!CO546/Monthly!CO534)-1","v":0.19557901177910342},{"$f":"(Monthly!CP546/Monthly!CP534)-1","v":5.2181871518260703E-2},{"$f":"(Monthly!CQ546/Monthly!CQ534)-1","v":9.4049105285061163E-3},{"$f":"(Monthly!CR546/Monthly!CR534)-1","v":3.4888948459093516E-2},null,null,null,null,null,null,null,{"$f":"(Monthly!CZ546/Monthly!CZ534)-1","v":2.2160664819944609E-2},{"$f":"(Monthly!DA546/Monthly!DA534)-1","v":1.3082155939298845E-2},null,null,null,null,null,null,{"$f":"((Monthly!DH546-Monthly!DH534)*60)","v":-11.999999999999744},{"$f":"((Monthly!DI546-Monthly!DI534)*100)","v":-50},{"$f":"((Monthly!DJ546-Monthly!DJ534)*100)","v":50},{"$f":"((Monthly!DK546-Monthly!DK534)*100)","v":39.999999999999943},{"$f":"Monthly!DL546-Monthly!DL534","v":-795},null,null,null,{"$f":"Monthly!DP546-Monthly!DP534","v":-409},null,null,null,{"$f":"(Monthly!DT546/Monthly!DT534)-1","v":1.2658227848101333E-2},{"$f":"Monthly!DU546-Monthly!DU534","v":1.0999999999999996},{"$f":"(Monthly!DV546/Monthly!DV534)-1","v":-1.1270568788037671E-3},{"$f":"(Monthly!DW546/Monthly!DW534)-1","v":-2.8814185445142915E-3},{"$f":"(Monthly!DX546/Monthly!DX534)-1","v":-1.3731656184486352E-2},{"$f":"(Monthly!DY546/Monthly!DY534)-1","v":-1.0169491525423791E-2},{"$f":"(Monthly!DZ546/Monthly!DZ534)-1","v":-1.4902506963788364E-2},{"$f":"(Monthly!EA546/Monthly!EA534)-1","v":-2.4011021452470027E-2},{"$f":"(Monthly!EB546/Monthly!EB534)-1","v":7.1462601238685419E-3},{"$f":"(Monthly!EC546/Monthly!EC534)-1","v":2.3028785982478039E-2},null,null,null,null,null,null,null,null,null,null,null,null,null,{"$f":"(Monthly!EQ546/Monthly!EQ534)-1","v":4.9429657794676896E-2},{"$f":"(Monthly!ER546/Monthly!ER534)-1","v":4.002668445630464E-3},{"$f":"(Monthly!ES546/Monthly!ES534)-1","v":7.2098053352560587E-3},null,null,null,null,null,{"$f":"((Monthly!EY546-Monthly!EY534)*100)","v":-75},{"$f":"((Monthly!EZ546-Monthly!EZ534)*100)","v":-71},{"$f":"((Monthly!FA546-Monthly!FA534)*100)","v":-49.000000000000021},{"$f":"((Monthly!FB546-Monthly!FB534)*100)","v":-57.000000000000028},"--",{"$f":"((Monthly!FD546-Monthly!FD534)*100)","v":-3.0000000000000249},{"$f":"((Monthly!FE546-Monthly!FE534)*100)","v":-67.000000000000014},{"$f":"((Monthly!FF546-Monthly!FF534)*100)","v":-44.999999999999993},{"$f":"((Monthly!FG546-Monthly!FG534)*100)","v":-26.999999999999979},{"$f":"((Monthly!FH546-Monthly!FH534)*100)","v":8.0000000000000071},{"$f":"((Monthly!FI546-Monthly!FI534)*100)","v":19.000000000000039},null,null,null,null,null,null,{"$f":"(Monthly!FP546/Monthly!FP534)-1","v":-0.11029692876258435},{"$f":"(Monthly!FQ546/Monthly!FQ534)-1","v":3.6246330058942178E-5},{"$f":"(Monthly!FR546/Monthly!FR534)-1","v":9.5955848722926174E-2},{"$f":"(Monthly!FS546/Monthly!FS534)-1","v":0.140476433902464},{"$f":"(Monthly!FT546/Monthly!FT534)-1","v":-4.26631298379202E-2},{"$f":"(Monthly!FU546/Monthly!FU534)-1","v":-8.8669869749053221E-2},{"$f":"(Monthly!FV546/Monthly!FV534)-1","v":-2.0007467968545356E-2},{"$f":"(Monthly!FW546/Monthly!FW534)-1","v":8.6296699654339726E-2},{"$f":"(Monthly!FX546/Monthly!FX534)-1","v":-3.8046229120971775E-2},null,null,null,null,null,{"$f":"(Monthly!GD546/Monthly!GD534)-1","v":0.11310782241014805},{"$f":"(Monthly!GE546/Monthly!GE534)-1","v":0.12157598499061928},{"$f":"(Monthly!GF546/Monthly!GF534)-1","v":0.19185945381805536},{"$f":"(Monthly!GG546/Monthly!GG534)-1","v":0.11972891566265065},{"$f":"(Monthly!GH546/Monthly!GH534)-1","v":{"$error":"#DIV/0!"}},"--",{"$f":"(Monthly!GJ546/Monthly!GJ534)-1","v":0.60996119016817585},{"$f":"(Monthly!GK546/Monthly!GK534)-1","v":3.8395904436860029E-2},"--"]
["2003-11-01",null,null,null,{"$f":"(Monthly!E549/Monthly!E537)-1","v":4.1625794836878116E-2},{"$f":"(Monthly!F549/Monthly!F537)-1","v":0.12976831266089395},{"$f":"(Monthly!G549/Monthly!G537)-1","v":4.3060243428454381E-2},{"$f":"(Monthly!H549/Monthly!H537)-1","v":2.4077346564262969E-2},null,null,null,null,null,null,null,null,null,null,null,null,null,null,null,{"$f":"(Monthly!X549-Monthly!X537)","v":1.3000000000000114},{"$f":"(Monthly!Y549/Monthly!Y537)-1","v":-8.1984261672266912E-2},null,null,null,null,null,null,null,null,null,null,null,null,null,{"$f":"(Monthly!AM549/Monthly!AM537)-1","v":1.4344484947132141E-2},{"$f":"(Monthly!AN549/Monthly!AN537)-1","v":2.0069562548751474E-2},{"$f":"(Monthly!AO549/Monthly!AO537)-1","v":1.1127734022428504E-2},{"$f":"((Monthly!AP549-Monthly!AP537)*100)","v":-4.0000000000000036},{"$f":"Monthly!AQ549-Monthly!AQ537","v":9.8999999999999986},{"$f":"Monthly!AR549-Monthly!AR537","v":16.5},{"$f":"Monthly!AS549-Monthly!AS537","v":-7},{"$f":"Monthly!AT549-Monthly!AT537","v":5.6000000000000014},{"$f":"Monthly!AU549-Monthly!AU537","v":7.1000000000000014},{"$f":"Monthly!AV549-Monthly!AV537","v":9},{"$f":"Monthly!AW549-Monthly!AW537","v":6.6000000000000014},{"$f":"Monthly!AX549-Monthly!AX537","v":19.199999999999996},{"$f":"Monthly!AY549-Monthly!AY537","v":8.2999999999999972},{"$f":"Monthly!AZ549-Monthly!AZ537","v":13.899999999999991},{"$f":"Monthly!BA549-Monthly!BA537","v":4.2999999999999972},{"$f":"(Monthly!BB549/Monthly!BB537)-1","v":7.5704225352112742E-2},{"$f":"(Monthly!BC549/Monthly!BC537)-1","v":5.1002227171492276E-2},null,null,null,null,null,null,null,null,null,{"$f":"(Monthly!BM549/Monthly!BM537)-1","v":5.8584784286817015E-2},{"$f":"(Monthly!BN549/Monthly!BN537)-1","v":5.6014023425494885E-2},null,null,null,null,null,{"$f":"(Monthly!BT549/Monthly!BT537)-1","v":6.7498540331385914E-2},null,null,null,{"$f":"(Monthly!BX549/Monthly!BX537)-1","v":0.18824871648602404},{"$f":"(Monthly!BY549/Monthly!BY537)-1","v":8.3003952569169925E-2},{"$f":"(Monthly!BZ549/Monthly!BZ537)-1","v":0.10976882923191655},{"$f":"(Monthly!CA549/Monthly!CA537)-1","v":6.18709478234023E-2},{"$f":"Monthly!CB549-Monthly!CB537","v":-0.42514647111316961},{"$f":"Monthly!CC549-Monthly!CC537","v":-0.49514647111316989},"--","--",null,"--","--",null,{"$f":"(Monthly!CJ549/Monthly!CJ537)-1","v":6.73828125E-2},{"$f":"(Monthly!CK549/Monthly!CK537)-1","v":5.0007032577060739E-2},{"$f":"(Monthly!CL549/Monthly!CL537)-1","v":6.0010346611484744E-2},{"$f":"(Monthly!CM549/Monthly!CM537)-1","v":0.2152080344332854},{"$f":"(Monthly!CN549/Monthly!CN537)-1","v":4.043508104968585E-2},{"$f":"(Monthly!CO549/Monthly!CO537)-1","v":0.14858662392539701},{"$f":"(Monthly!CP549/Monthly!CP537)-1","v":5.1507264655928697E-2},{"$f":"(Monthly!CQ549/Monthly!CQ537)-1","v":9.3425940658442563E-3},{"$f":"(Monthly!CR549/Monthly!CR537)-1","v":2.0138118607367028E-2},null,null,null,null,null,null,null,{"$f":"(Monthly!CZ549/Monthly!CZ537)-1","v":1.9283746556473913E-2},{"$f":"(Monthly!DA549/Monthly!DA537)-1","v":1.0943199583116181E-2},null,null,null,null,null,null,{"$f":"((Monthly!DH549-Monthly!DH537)*60)","v":0},{"$f":"((Monthly!DI549-Monthly!DI537)*100)","v":-30.000000000001137},{"$f":"((Monthly!DJ549-Monthly!DJ537)*100)","v":30.000000000000071},{"$f":"((Monthly!DK549-Monthly!DK537)*100)","v":-10.000000000000053},{"$f":"Monthly!DL549-Monthly!DL537","v":-676},null,null,null,{"$f":"Monthly!DP549-Monthly!DP537","v":-166},null,null,null,{"$f":"(Monthly!DT549/Monthly!DT537)-1","v":-6.6838046272493568E-2},{"$f":"Monthly!DU549-Monthly!DU537","v":1},{"$f":"(Monthly!DV549/Monthly!DV537)-1","v":-8.2502062551559341E-4},{"$f":"(Monthly!DW549/Monthly!DW537)-1","v":-2.8979045920640711E-3},{"$f":"(Monthly!DX549/Monthly!DX537)-1","v":-1.0041841004184149E-2},{"$f":"(Monthly!DY549/Monthly!DY537)-1","v":-8.5689802913457847E-4},{"$f":"(Monthly!DZ549/Monthly!DZ537)-1","v":-1.3008580127317981E-2},{"$f":"(Monthly!EA549/Monthly!EA537)-1","v":-2.6905829596412523E-2},{"$f":"(Monthly!EB549/Monthly!EB537)-1","v":2.0982355746304249E-2},{"$f":"(Monthly!EC549/Monthly!EC537)-1","v":1.4622883530015285E-2},null,null,null,null,null,null,null,null,null,null,null,null,null,{"$f":"(Monthly!EQ549/Monthly!EQ537)-1","v":4.3576258452291627E-2},{"$f":"(Monthly!ER549/Monthly!ER537)-1","v":4.6573519627410853E-3},{"$f":"(Monthly!ES549/Monthly!ES537)-1","v":7.194244604316502E-3},null,null,null,null,null,{"$f":"((Monthly!EY549-Monthly!EY537)*100)","v":-34.999999999999964},{"$f":"((Monthly!EZ549-Monthly!EZ537)*100)","v":-34.000000000000007},{"$f":"((Monthly!FA549-Monthly!FA537)*100)","v":-65.999999999999929},{"$f":"((Monthly!FB549-Monthly!FB537)*100)","v":-96},"--",{"$f":"((Monthly!FD549-Monthly!FD537)*100)","v":-14.000000000000057},{"$f":"((Monthly!FE549-Monthly!FE537)*100)","v":-29.999999999999993},{"$f":"((Monthly!FF549-Monthly!FF537)*100)","v":-14.999999999999991},{"$f":"((Monthly!FG549-Monthly!FG537)*100)","v":1.0000000000000009},{"$f":"((Monthly!FH549-Monthly!FH537)*100)","v":24.000000000000021},{"$f":"((Monthly!FI549-Monthly!FI537)*100)","v":25},null,null,null,null,null,null,{"$f":"(Monthly!FP549/Monthly!FP537)-1","v":-0.16449252306713325},{"$f":"(Monthly!FQ549/Monthly!FQ537)-1","v":-3.6244140530716784E-5},{"$f":"(Monthly!FR549/Monthly!FR537)-1","v":9.3593063402385379E-2},{"$f":"(Monthly!FS549/Monthly!FS537)-1","v":0.1694796764206532},{"$f":"(Monthly!FT549/Monthly!FT537)-1","v":-7.7165399407331359E-2},{"$f":"(Monthly!FU549/Monthly!FU537)-1","v":-0.13656136958962206},{"$f":"(Monthly!FV549/Monthly!FV537)-1","v":5.4034798048052224E-2},{"$f":"(Monthly!FW549/Monthly!FW537)-1","v":0.12628086812627282},{"$f":"(Monthly!FX549/Monthly!FX537)-1","v":1.8173426914436019E-2},null,null,null,null,null,{"$f":"(Monthly!GD549/Monthly!GD537)-1","v":0.1834792539017891},{"$f":"(Monthly!GE549/Monthly!GE537)-1","v":0.18118323746918663},{"$f":"(Monthly!GF549/Monthly!GF537)-1","v":7.1502950364456863E-2},{"$f":"(Monthly!GG549/Monthly!GG537)-1","v":4.3661971830985857E-2},{"$f":"(Monthly!GH549/Monthly!GH537)-1","v":{"$error":"#DIV/0!"}},"--",{"$f":"(Monthly!GJ549/Monthly!GJ537)-1","v":0.19653465346534649},{"$f":"(Monthly!GK549/Monthly!GK537)-1","v":3.1717380092831426E-2},"--"]
["2004-03-01",null,null,null,{"$f":"(Monthly!E553/Monthly!E541)-1","v":4.6186464959028228E-2},{"$f":"(Monthly!F553/Monthly!F541)-1","v":0.13164237346493746},{"$f":"(Monthly!G553/Monthly!G541)-1","v":4.5191722458916672E-2},{"$f":"(Monthly!H553/Monthly!H541)-1","v":3.0077351432778787E-2},null,null,null,null,null,null,null,null,null,null,null,null,null,null,null,{"$f":"(Monthly!X553-Monthly!X541)","v":1.2999999999999972},{"$f":"(Monthly!Y553/Monthly!Y541)-1","v":-7.2636836617412048E-2},null,null,null,null,null,null,null,null,null,null,null,null,null,{"$f":"(Monthly!AM553/Monthly!AM541)-1","v":1.5016758540901121E-2},{"$f":"(Monthly!AN553/Monthly!AN541)-1","v":2.0612068287310104E-2},{"$f":"(Monthly!AO553/Monthly!AO541)-1","v":1.6641461559746551E-2},{"$f":"((Monthly!AP553-Monthly!AP541)*100)","v":-7.0000000000000062},{"$f":"Monthly!AQ553-Monthly!AQ541","v":14.300000000000004},{"$f":"Monthly!AR553-Monthly!AR541","v":22},{"$f":"Monthly!AS553-Monthly!AS541","v":-2.5},{"$f":"Monthly!AT553-Monthly!AT541","v":14.799999999999997},{"$f":"Monthly!AU553-Monthly!AU541","v":8.9000000000000057},{"$f":"Monthly!AV553-Monthly!AV541","v":3.8000000000000043},{"$f":"Monthly!AW553-Monthly!AW541","v":5.7000000000000028},{"$f":"Monthly!AX553-Monthly!AX541","v":17.399999999999991},{"$f":"Monthly!AY553-Monthly!AY541","v":16},{"$f":"Monthly!AZ553-Monthly!AZ541","v":19.799999999999997},{"$f":"Monthly!BA553-Monthly!BA541","v":14.100000000000001},{"$f":"(Monthly!BB553/Monthly!BB541)-1","v":0.3455723542116631},{"$f":"(Monthly!BC553/Monthly!BC541)-1","v":6.0156445196133168E-2},null,null,null,null,null,null,null,null,null,{"$f":"(Monthly!BM553/Monthly!BM541)-1","v":6.9472611499357129E-2},{"$f":"(Monthly!BN553/Monthly!BN541)-1","v":6.8659881571971448E-2},null,null,null,null,null,{"$f":"(Monthly!BT553/Monthly!BT541)-1","v":0.11066353028547349},null,null,null,{"$f":"(Monthly!BX553/Monthly!BX541)-1","v":0.15758980301274628},{"$f":"(Monthly!BY553/Monthly!BY541)-1","v":0.17586795674445077},{"$f":"(Monthly!BZ553/Monthly!BZ541)-1","v":0.13412342824107526},{"$f":"(Monthly!CA553/Monthly!CA541)-1","v":4.1056081122859078E-2},{"$f":"Monthly!CB553-Monthly!CB541","v":-1.3851339557030231},{"$f":"Monthly!CC553-Monthly!CC541","v":-1.4551339557030225},"--","--",null,"--","--",null,{"$f":"(Monthly!CJ553/Monthly!CJ541)-1","v":0.27727727727727736},{"$f":"(Monthly!CK553/Monthly!CK541)-1","v":5.5261636001456615E-2},{"$f":"(Monthly!CL553/Monthly!CL541)-1","v":3.0263838592860859E-2},{"$f":"(Monthly!CM553/Monthly!CM541)-1","v":0.16654753395282351},{"$f":"(Monthly!CN553/Monthly!CN541)-1","v":4.4319961323818546E-2},{"$f":"(Monthly!CO553/Monthly!CO541)-1","v":0.13393353726362611},{"$f":"(Monthly!CP553/Monthly!CP541)-1","v":5.4223293708270726E-2},{"$f":"(Monthly!CQ553/Monthly!CQ541)-1","v":9.1407362949318394E-3},{"$f":"(Monthly!CR553/Monthly!CR541)-1","v":2.4270616458624827E-2},null,null,null,null,null,null,null,{"$f":"(Monthly!CZ553/Monthly!CZ541)-1","v":1.7400761283306032E-2},{"$f":"(Monthly!DA553/Monthly!DA541)-1","v":1.558441558441559E-2},null,null,null,null,null,null,{"$f":"((Monthly!DH553-Monthly!DH541)*60)","v":-5.9999999999996589},{"$f":"((Monthly!DI553-Monthly!DI541)*100)","v":-29.999999999999716},{"$f":"((Monthly!DJ553-Monthly!DJ541)*100)","v":0},{"$f":"((Monthly!DK553-Monthly!DK541)*100)","v":-10.000000000000053},{"$f":"Monthly!DL553-Monthly!DL541","v":-434},null,null,null,{"$f":"Monthly!DP553-Monthly!DP541","v":919},null,null,null,{"$f":"(Monthly!DT553/Monthly!DT541)-1","v":-0.19700514740290131},{"$f":"Monthly!DU553-Monthly!DU541","v":0.5},{"$f":"(Monthly!DV553/Monthly!DV541)-1","v":6.5408615893542965E-3},{"$f":"(Monthly!DW553/Monthly!DW541)-1","v":7.057920981971666E-3},{"$f":"(Monthly!DX553/Monthly!DX541)-1","v":3.0165912518853588E-3},{"$f":"(Monthly!DY553/Monthly!DY541)-1","v":-3.9752650176678728E-3},{"$f":"(Monthly!DZ553/Monthly!DZ541)-1","v":5.2721573097749275E-3},{"$f":"(Monthly!EA553/Monthly!EA541)-1","v":-2.4814888933359924E-2},{"$f":"(Monthly!EB553/Monthly!EB541)-1","v":7.9663532904502787E-2},{"$f":"(Monthly!EC553/Monthly!EC541)-1","v":1.7053024247268844E-2},null,null,null,null,null,null,null,null,null,null,null,null,null,{"$f":"(Monthly!EQ553/Monthly!EQ541)-1","v":1.3456090651558172E-2},{"$f":"(Monthly!ER553/Monthly!ER541)-1","v":7.2992700729928028E-3},{"$f":"(Monthly!ES553/Monthly!ES541)-1","v":4.2918454935620964E-3},null,null,null,null,null,{"$f":"((Monthly!EY553-Monthly!EY541)*100)","v":-25},{"$f":"((Monthly!EZ553-Monthly!EZ541)*100)","v":-25},{"$f":"((Monthly!FA553-Monthly!FA541)*100)","v":-55.999999999999957},{"$f":"((Monthly!FB553-Monthly!FB541)*100)","v":-83.999999999999986},"--",{"$f":"((Monthly!FD553-Monthly!FD541)*100)","v":-29.999999999999982},{"$f":"((Monthly!FE553-Monthly!FE541)*100)","v":-18.999999999999993},{"$f":"((Monthly!FF553-Monthly!FF541)*100)","v":-5.0000000000000044},{"$f":"((Monthly!FG553-Monthly!FG541)*100)","v":1.0000000000000009},{"$f":"((Monthly!FH553-Monthly!FH541)*100)","v":1.0000000000000231},{"$f":"((Monthly!FI553-Monthly!FI541)*100)","v":2.0000000000000018},null,null,null,null,null,null,{"$f":"(Monthly!FP553/Monthly!FP541)-1","v":-9.9925479303570208E-2},{"$f":"(Monthly!FQ553/Monthly!FQ541)-1","v":-2.4162468437727291E-5},{"$f":"(Monthly!FR553/Monthly!FR541)-1","v":1.0426123077769578E-2},{"$f":"(Monthly!FS553/Monthly!FS541)-1","v":0.13559322033898291},{"$f":"(Monthly!FT553/Monthly!FT541)-1","v":-7.0793300705420004E-2},{"$f":"(Monthly!FU553/Monthly!FU541)-1","v":-0.10873249872647839},{"$f":"(Monthly!FV553/Monthly!FV541)-1","v":0.13422625804010591},{"$f":"(Monthly!FW553/Monthly!FW541)-1","v":0.36499505440158253},{"$f":"(Monthly!FX553/Monthly!FX541)-1","v":0.15368882023949948},null,null,null,null,null,{"$f":"(Monthly!GD553/Monthly!GD541)-1","v":9.5678092399403836E-2},{"$f":"(Monthly!GE553/Monthly!GE541)-1","v":9.8660568441685914E-2},{"$f":"(Monthly!GF553/Monthly!GF541)-1","v":2.5374855824682907E-2},{"$f":"(Monthly!GG553/Monthly!GG541)-1","v":-4.625292740046838E-2},{"$f":"(Monthly!GH553/Monthly!GH541)-1","v":{"$error":"#DIV/0!"}},"--",{"$f":"(Monthly!GJ553/Monthly!GJ541)-1","v":-4.2170756999654335E-2},{"$f":"(Monthly!GK553/Monthly!GK541)-1","v":-6.9059518400726994E-2},"--"]
["2004-09-01",null,null,null,{"$f":"(Monthly!E559/Monthly!E547)-1","v":3.9113764154845354E-2},{"$f":"(Monthly!F559/Monthly!F547)-1","v":7.9707068562937744E-2},{"$f":"(Monthly!G559/Monthly!G547)-1","v":2.8530458860759333E-2},{"$f":"(Monthly!H559/Monthly!H547)-1","v":3.4835586713403366E-2},null,null,null,null,null,null,null,null,null,null,null,null,null,null,null,{"$f":"(Monthly!X559-Monthly!X547)","v":2},{"$f":"(Monthly!Y559/Monthly!Y547)-1","v":-1.4498939967969582E-2},null,null,null,null,null,null,null,null,null,null,null,null,null,{"$f":"(Monthly!AM559/Monthly!AM547)-1","v":2.5642928475863691E-2},{"$f":"(Monthly!AN559/Monthly!AN547)-1","v":3.2998883758688757E-2},{"$f":"(Monthly!AO559/Monthly!AO547)-1","v":7.0728410187311574E-2},{"$f":"((Monthly!AP559-Monthly!AP547)*100)","v":-1.0000000000000009},{"$f":"Monthly!AQ559-Monthly!AQ547","v":5},{"$f":"Monthly!AR559-Monthly!AR547","v":2.5},{"$f":"Monthly!AS559-Monthly!AS547","v":-3},{"$f":"Monthly!AT559-Monthly!AT547","v":11.5},{"$f":"Monthly!AU559-Monthly!AU547","v":-1},{"$f":"Monthly!AV559-Monthly!AV547","v":-3.1999999999999957},{"$f":"Monthly!AW559-Monthly!AW547","v":8.2000000000000028},{"$f":"Monthly!AX559-Monthly!AX547","v":-3.0999999999999943},{"$f":"Monthly!AY559-Monthly!AY547","v":20},{"$f":"Monthly!AZ559-Monthly!AZ547","v":2},{"$f":"Monthly!BA559-Monthly!BA547","v":6.3999999999999986},{"$f":"(Monthly!BB559/Monthly!BB547)-1","v":-5.9561128526645746E-2},{"$f":"(Monthly!BC559/Monthly!BC547)-1","v":8.4374095164559515E-2},null,null,null,null,null,null,null,null,null,{"$f":"(Monthly!BM559/Monthly!BM547)-1","v":6.109847147583003E-2},{"$f":"(Monthly!BN559/Monthly!BN547)-1","v":6.0648377608867987E-2},null,null,null,null,null,{"$f":"(Monthly!BT559/Monthly!BT547)-1","v":0.11063326100462123},null,null,null,{"$f":"(Monthly!BX559/Monthly!BX547)-1","v":-1.7534811758638469E-2},{"$f":"(Monthly!BY559/Monthly!BY547)-1","v":4.0795512493625674E-2},{"$f":"(Monthly!BZ559/Monthly!BZ547)-1","v":0.16790582403965315},{"$f":"(Monthly!CA559/Monthly!CA547)-1","v":2.8740041310120867E-2},{"$f":"Monthly!CB559-Monthly!CB547","v":-0.53915056678282891},{"$f":"Monthly!CC559-Monthly!CC547","v":-1.0291505667828282},"--","--",null,"--","--",null,{"$f":"(Monthly!CJ559/Monthly!CJ547)-1","v":7.3386383731211424E-2},{"$f":"(Monthly!CK559/Monthly!CK547)-1","v":5.7844087871300243E-2},{"$f":"(Monthly!CL559/Monthly!CL547)-1","v":-8.0582271900181968E-2},{"$f":"(Monthly!CM559/Monthly!CM547)-1","v":0},{"$f":"(Monthly!CN559/Monthly!CN547)-1","v":3.3576342540301951E-2},{"$f":"(Monthly!CO559/Monthly!CO547)-1","v":0.10905237468289397},{"$f":"(Monthly!CP559/Monthly!CP547)-1","v":5.0098663607848426E-2},{"$f":"(Monthly!CQ559/Monthly!CQ547)-1","v":9.0964949317076105E-3},{"$f":"(Monthly!CR559/Monthly!CR547)-1","v":3.6021397785160225E-2},null,null,null,null,null,null,null,{"$f":"(Monthly!CZ559/Monthly!CZ547)-1","v":2.5391680172879516E-2},{"$f":"(Monthly!DA559/Monthly!DA547)-1","v":1.961796592669085E-2},null,null,null,null,null,null,{"$f":"((Monthly!DH559-Monthly!DH547)*60)","v":11.999999999999744},{"$f":"((Monthly!DI559-Monthly!DI547)*100)","v":-29.999999999999716},{"$f":"((Monthly!DJ559-Monthly!DJ547)*100)","v":-100},{"$f":"((Monthly!DK559-Monthly!DK547)*100)","v":-69.999999999999929},{"$f":"Monthly!DL559-Monthly!DL547","v":-16},null,null,null,{"$f":"Monthly!DP559-Monthly!DP547","v":1836},null,null,null,{"$f":"(Monthly!DT559/Monthly!DT547)-1","v":-0.14728192161820486},{"$f":"Monthly!DU559-Monthly!DU547","v":-0.59999999999999964},{"$f":"(Monthly!DV559/Monthly!DV547)-1","v":2.7907678382863121E-2},{"$f":"(Monthly!DW559/Monthly!DW547)-1","v":2.9103088946780709E-2},{"$f":"(Monthly!DX559/Monthly!DX547)-1","v":2.4649383765405819E-2},{"$f":"(Monthly!DY559/Monthly!DY547)-1","v":-1.7137960582690459E-3},{"$f":"(Monthly!DZ559/Monthly!DZ547)-1","v":3.3342752189884139E-2},{"$f":"(Monthly!EA559/Monthly!EA547)-1","v":1.9118534916482188E-2},{"$f":"(Monthly!EB559/Monthly!EB547)-1","v":6.6856330014224641E-2},{"$f":"(Monthly!EC559/Monthly!EC547)-1","v":3.9522744220730655E-2},null,null,null,null,null,null,null,null,null,null,null,null,null,{"$f":"(Monthly!EQ559/Monthly!EQ547)-1","v":6.6425992779783227E-2},{"$f":"(Monthly!ER559/Monthly!ER547)-1","v":1.8617021276595702E-2},{"$f":"(Monthly!ES559/Monthly!ES547)-1","v":1.7908309455587412E-2},null,null,null,null,null,{"$f":"((Monthly!EY559-Monthly!EY547)*100)","v":58.000000000000007},{"$f":"((Monthly!EZ559-Monthly!EZ547)*100)","v":60.000000000000007},{"$f":"((Monthly!FA559-Monthly!FA547)*100)","v":-25.999999999999979},{"$f":"((Monthly!FB559-Monthly!FB547)*100)","v":-52.000000000000043},"--",{"$f":"((Monthly!FD559-Monthly!FD547)*100)","v":-40.000000000000036},{"$f":"((Monthly!FE559-Monthly!FE547)*100)","v":71},{"$f":"((Monthly!FF559-Monthly!FF547)*100)","v":88.000000000000014},{"$f":"((Monthly!FG559-Monthly!FG547)*100)","v":81.999999999999986},{"$f":"((Monthly!FH559-Monthly!FH547)*100)","v":17.999999999999972},{"$f":"((Monthly!FI559-Monthly!FI547)*100)","v":-13.999999999999968},null,null,null,null,null,null,{"$f":"(Monthly!FP559/Monthly!FP547)-1","v":-5.5229573126008402E-2},{"$f":"(Monthly!FQ559/Monthly!FQ547)-1","v":-6.0406900884379944E-5},{"$f":"(Monthly!FR559/Monthly!FR547)-1","v":5.1643794230469942E-2},{"$f":"(Monthly!FS559/Monthly!FS547)-1","v":8.4938315434454514E-2},{"$f":"(Monthly!FT559/Monthly!FT547)-1","v":-3.2702267991178813E-2},{"$f":"(Monthly!FU559/Monthly!FU547)-1","v":-6.6512390548444045E-2},{"$f":"(Monthly!FV559/Monthly!FV547)-1","v":0.12020680963596542},{"$f":"(Monthly!FW559/Monthly!FW547)-1","v":0.24678081030683185},{"$f":"(Monthly!FX559/Monthly!FX547)-1","v":0.14420025556618055},null,null,null,null,null,{"$f":"(Monthly!GD559/Monthly!GD547)-1","v":0.62424885118416418},{"$f":"(Monthly!GE559/Monthly!GE547)-1","v":0.59350793065289564},{"$f":"(Monthly!GF559/Monthly!GF547)-1","v":0.12188325022000601},{"$f":"(Monthly!GG559/Monthly!GG547)-1","v":0.30674846625766872},{"$f":"(Monthly!GH559/Monthly!GH547)-1","v":{"$error":"#DIV/0!"}},"--",{"$f":"(Monthly!GJ559/Monthly!GJ547)-1","v":0.1182772659095781},{"$f":"(Monthly!GK559/Monthly!GK547)-1","v":0.11204717775905637},"--"]
["2005-02-01",null,null,null,{"$f":"(Monthly!E564/Monthly!E552)-1","v":3.5536289923316478E-2},{"$f":"(Monthly!F564/Monthly!F552)-1","v":5.334566759173609E-2},{"$f":"(Monthly!G564/Monthly!G552)-1","v":4.5609023297049855E-2},{"$f":"(Monthly!H564/Monthly!H552)-1","v":2.8723840787853838E-2},null,null,null,null,null,null,null,null,null,null,null,null,null,null,null,{"$f":"(Monthly!X564-Monthly!X552)","v":2.9000000000000057},{"$f":"(Monthly!Y564/Monthly!Y552)-1","v":6.5555646393691047E-2},null,null,null,null,null,null,null,null,null,null,null,null,null,{"$f":"(Monthly!AM564/Monthly!AM552)-1","v":3.9107490607029893E-2},{"$f":"(Monthly!AN564/Monthly!AN552)-1","v":5.163826589775744E-2},{"$f":"(Monthly!AO564/Monthly!AO552)-1","v":8.8502874971526424E-2},{"$f":"((Monthly!AP564-Monthly!AP552)*100)","v":-2.0000000000000018},{"$f":"Monthly!AQ564-Monthly!AQ552","v":-4.3999999999999986},{"$f":"Monthly!AR564-Monthly!AR552","v":-11.5},{"$f":"Monthly!AS564-Monthly!AS552","v":4},{"$f":"Monthly!AT564-Monthly!AT552","v":0.29999999999999716},{"$f":"Monthly!AU564-Monthly!AU552","v":1.3999999999999986},{"$f":"Monthly!AV564-Monthly!AV552","v":0.80000000000000426},{"$f":"Monthly!AW564-Monthly!AW552","v":2},{"$f":"Monthly!AX564-Monthly!AX552","v":-10.600000000000001},{"$f":"Monthly!AY564-Monthly!AY552","v":-16},{"$f":"Monthly!AZ564-Monthly!AZ552","v":-7.3999999999999915},{"$f":"Monthly!BA564-Monthly!BA552","v":-6.3999999999999986},{"$f":"(Monthly!BB564/Monthly!BB552)-1","v":-9.6000000000000529E-3},{"$f":"(Monthly!BC564/Monthly!BC552)-1","v":0.12499756700469078},null,null,null,null,null,null,null,null,null,{"$f":"(Monthly!BM564/Monthly!BM552)-1","v":6.9207229944738158E-2},{"$f":"(Monthly!BN564/Monthly!BN552)-1","v":6.9563577087619066E-2},null,null,null,null,null,{"$f":"(Monthly!BT564/Monthly!BT552)-1","v":2.934259172240794E-2},null,null,null,{"$f":"(Monthly!BX564/Monthly!BX552)-1","v":0.19555796316359686},{"$f":"(Monthly!BY564/Monthly!BY552)-1","v":7.5279755849440466E-2},{"$f":"(Monthly!BZ564/Monthly!BZ552)-1","v":0.16636469522453745},{"$f":"(Monthly!CA564/Monthly!CA552)-1","v":-1.394733678008897E-2},{"$f":"Monthly!CB564-Monthly!CB552","v":1.1645730862719583},{"$f":"Monthly!CC564-Monthly!CC552","v":1.0245730862719604},"--","--",null,"--","--",null,{"$f":"(Monthly!CJ564/Monthly!CJ552)-1","v":0.1380500431406384},{"$f":"(Monthly!CK564/Monthly!CK552)-1","v":5.5850195822454429E-2},{"$f":"(Monthly!CL564/Monthly!CL552)-1","v":-0.33759719087032847},{"$f":"(Monthly!CM564/Monthly!CM552)-1","v":0.20999324780553685},{"$f":"(Monthly!CN564/Monthly!CN552)-1","v":1.7554314341410082E-2},{"$f":"(Monthly!CO564/Monthly!CO552)-1","v":8.8854393045638025E-2},{"$f":"(Monthly!CP564/Monthly!CP552)-1","v":5.5465116789615632E-2},{"$f":"(Monthly!CQ564/Monthly!CQ552)-1","v":9.3614896295080019E-3},{"$f":"(Monthly!CR564/Monthly!CR552)-1","v":4.1101177517338661E-2},null,null,null,null,null,null,null,{"$f":"(Monthly!CZ564/Monthly!CZ552)-1","v":3.0530262453133394E-2},{"$f":"(Monthly!DA564/Monthly!DA552)-1","v":2.308876346844535E-2},null,null,null,null,null,null,{"$f":"((Monthly!DH564-Monthly!DH552)*60)","v":0},{"$f":"((Monthly!DI564-Monthly!DI552)*100)","v":-9.9999999999994316},{"$f":"((Monthly!DJ564-Monthly!DJ552)*100)","v":-39.999999999999858},{"$f":"((Monthly!DK564-Monthly!DK552)*100)","v":-19.999999999999929},{"$f":"Monthly!DL564-Monthly!DL552","v":-6},null,null,null,{"$f":"Monthly!DP564-Monthly!DP552","v":2208},null,null,null,{"$f":"(Monthly!DT564/Monthly!DT552)-1","v":-0.14072059823249494},{"$f":"Monthly!DU564-Monthly!DU552","v":-1},{"$f":"(Monthly!DV564/Monthly!DV552)-1","v":3.2299065420560824E-2},{"$f":"(Monthly!DW564/Monthly!DW552)-1","v":3.3009113885272168E-2},{"$f":"(Monthly!DX564/Monthly!DX552)-1","v":3.4650259067357636E-2},{"$f":"(Monthly!DY564/Monthly!DY552)-1","v":-1.7809439002671734E-3},{"$f":"(Monthly!DZ564/Monthly!DZ552)-1","v":4.6309489883157529E-2},{"$f":"(Monthly!EA564/Monthly!EA552)-1","v":5.6082474226804235E-2},{"$f":"(Monthly!EB564/Monthly!EB552)-1","v":2.4446494464944513E-2},{"$f":"(Monthly!EC564/Monthly!EC552)-1","v":2.9000790930661768E-2},null,null,null,null,null,null,null,null,null,null,null,null,null,{"$f":"(Monthly!EQ564/Monthly!EQ552)-1","v":6.6854327938071778E-2},{"$f":"(Monthly!ER564/Monthly!ER552)-1","v":2.6437541308658385E-2},{"$f":"(Monthly!ES564/Monthly!ES552)-1","v":2.7162258756254332E-2},null,null,null,null,null,{"$f":"((Monthly!EY564-Monthly!EY552)*100)","v":149.00000000000003},{"$f":"((Monthly!EZ564-Monthly!EZ552)*100)","v":149},{"$f":"((Monthly!FA564-Monthly!FA552)*100)","v":-29.999999999999982},{"$f":"((Monthly!FB564-Monthly!FB552)*100)","v":-44.999999999999929},"--",{"$f":"((Monthly!FD564-Monthly!FD552)*100)","v":-0.99999999999997868},{"$f":"((Monthly!FE564-Monthly!FE552)*100)","v":161},{"$f":"((Monthly!FF564-Monthly!FF552)*100)","v":178.99999999999997},{"$f":"((Monthly!FG564-Monthly!FG552)*100)","v":164},{"$f":"((Monthly!FH564-Monthly!FH552)*100)","v":70.000000000000014},{"$f":"((Monthly!FI564-Monthly!FI552)*100)","v":8.9999999999999858},null,null,null,null,null,null,{"$f":"(Monthly!FP564/Monthly!FP552)-1","v":-6.7523873975486981E-2},{"$f":"(Monthly!FQ564/Monthly!FQ552)-1","v":-7.2489156830335411E-5},{"$f":"(Monthly!FR564/Monthly!FR552)-1","v":9.5541112591666089E-3},{"$f":"(Monthly!FS564/Monthly!FS552)-1","v":2.9509493670885956E-2},{"$f":"(Monthly!FT564/Monthly!FT552)-1","v":-2.9475109985712455E-2},{"$f":"(Monthly!FU564/Monthly!FU552)-1","v":-3.6679536679536606E-2},{"$f":"(Monthly!FV564/Monthly!FV552)-1","v":0.11086141161154339},{"$f":"(Monthly!FW564/Monthly!FW552)-1","v":0.50327945966575238},{"$f":"(Monthly!FX564/Monthly!FX552)-1","v":7.6683291770573536E-2},null,null,null,null,null,{"$f":"(Monthly!GD564/Monthly!GD552)-1","v":0.38082901554404125},{"$f":"(Monthly!GE564/Monthly!GE552)-1","v":0.47375243033052494},{"$f":"(Monthly!GF564/Monthly!GF552)-1","v":0.15515456293447683},{"$f":"(Monthly!GG564/Monthly!GG552)-1","v":0.28128950695322374},{"$f":"(Monthly!GH564/Monthly!GH552)-1","v":{"$error":"#DIV/0!"}},"--",{"$f":"(Monthly!GJ564/Monthly!GJ552)-1","v":0.15662875256386344},{"$f":"(Monthly!GK564/Monthly!GK552)-1","v":-5.2436901653611812E-2},"--"]
["2005-07-01",null,null,null,{"$f":"(Monthly!E569/Monthly!E557)-1","v":4.4910017051687179E-2},{"$f":"(Monthly!F569/Monthly!F557)-1","v":0.11903566047212455},{"$f":"(Monthly!G569/Monthly!G557)-1","v":3.2140425945735629E-2},{"$f":"(Monthly!H569/Monthly!H557)-1","v":3.487296046757038E-2},null,null,null,null,null,null,null,null,null,null,null,null,null,null,null,{"$f":"(Monthly!X569-Monthly!X557)","v":2},{"$f":"(Monthly!Y569/Monthly!Y557)-1","v":0.12693680858568723},null,null,null,null,null,null,null,null,null,null,null,null,null,{"$f":"(Monthly!AM569/Monthly!AM557)-1","v":3.4264381132227628E-2},{"$f":"(Monthly!AN569/Monthly!AN557)-1","v":4.0254934548835442E-2},{"$f":"(Monthly!AO569/Monthly!AO557)-1","v":5.2666244143707575E-2},{"$f":"((Monthly!AP569-Monthly!AP557)*100)","v":-5.0000000000000044},{"$f":"Monthly!AQ569-Monthly!AQ557","v":-7.1000000000000014},{"$f":"Monthly!AR569-Monthly!AR557","v":-9},{"$f":"Monthly!AS569-Monthly!AS557","v":7},{"$f":"Monthly!AT569-Monthly!AT557","v":-4.1999999999999957},{"$f":"Monthly!AU569-Monthly!AU557","v":-0.90000000000000568},{"$f":"Monthly!AV569-Monthly!AV557","v":-4.0999999999999943},{"$f":"Monthly!AW569-Monthly!AW557","v":-5.2999999999999972},{"$f":"Monthly!AX569-Monthly!AX557","v":-5.5999999999999943},{"$f":"Monthly!AY569-Monthly!AY557","v":-28.5},{"$f":"Monthly!AZ569-Monthly!AZ557","v":-6.3999999999999986},{"$f":"Monthly!BA569-Monthly!BA557","v":-13.700000000000003},{"$f":"(Monthly!BB569/Monthly!BB557)-1","v":-3.0063291139240556E-2},{"$f":"(Monthly!BC569/Monthly!BC557)-1","v":7.5374549239748623E-2},null,null,null,null,null,null,null,null,null,{"$f":"(Monthly!BM569/Monthly!BM557)-1","v":8.839928170482092E-2},{"$f":"(Monthly!BN569/Monthly!BN557)-1","v":9.1504519020954245E-2},null,null,null,null,null,{"$f":"(Monthly!BT569/Monthly!BT557)-1","v":2.5372711274186832E-2},null,null,null,{"$f":"(Monthly!BX569/Monthly!BX557)-1","v":2.5974025974025983E-2},{"$f":"(Monthly!BY569/Monthly!BY557)-1","v":4.3087121212121104E-2},{"$f":"(Monthly!BZ569/Monthly!BZ557)-1","v":0.15012921449606353},{"$f":"(Monthly!CA569/Monthly!CA557)-1","v":0.22151748666271476},{"$f":"Monthly!CB569-Monthly!CB557","v":-0.37241516198410629},{"$f":"Monthly!CC569-Monthly!CC557","v":-0.72241516198410594},"--","--",null,"--","--",null,{"$f":"(Monthly!CJ569/Monthly!CJ557)-1","v":0.27665441176470584},{"$f":"(Monthly!CK569/Monthly!CK557)-1","v":5.6602087326097505E-2},{"$f":"(Monthly!CL569/Monthly!CL557)-1","v":-0.55655558258331306},{"$f":"(Monthly!CM569/Monthly!CM557)-1","v":2.9253731343283684E-2},{"$f":"(Monthly!CN569/Monthly!CN557)-1","v":1.8542505280777943E-2},{"$f":"(Monthly!CO569/Monthly!CO557)-1","v":3.8401736732478708E-2},{"$f":"(Monthly!CP569/Monthly!CP557)-1","v":5.6215569467496396E-2},{"$f":"(Monthly!CQ569/Monthly!CQ557)-1","v":9.2788528707197226E-3},{"$f":"(Monthly!CR569/Monthly!CR557)-1","v":3.6664384900858993E-2},null,null,null,null,null,null,null,{"$f":"(Monthly!CZ569/Monthly!CZ557)-1","v":3.0671602326811209E-2},{"$f":"(Monthly!DA569/Monthly!DA557)-1","v":2.0833333333333259E-2},null,null,null,null,null,null,{"$f":"((Monthly!DH569-Monthly!DH557)*60)","v":0},{"$f":"((Monthly!DI569-Monthly!DI557)*100)","v":0},{"$f":"((Monthly!DJ569-Monthly!DJ557)*100)","v":-69.999999999999929},{"$f":"((Monthly!DK569-Monthly!DK557)*100)","v":-50},{"$f":"Monthly!DL569-Monthly!DL557","v":-104},null,null,null,{"$f":"Monthly!DP569-Monthly!DP557","v":2492},null,null,null,{"$f":"(Monthly!DT569/Monthly!DT557)-1","v":-5.4227405247813443E-2},{"$f":"Monthly!DU569-Monthly!DU557","v":-9.9999999999999645E-2},{"$f":"(Monthly!DV569/Monthly!DV557)-1","v":3.6648440963499285E-2},{"$f":"(Monthly!DW569/Monthly!DW557)-1","v":3.2316762500909757E-2},{"$f":"(Monthly!DX569/Monthly!DX557)-1","v":2.9741334171117462E-2},{"$f":"(Monthly!DY569/Monthly!DY557)-1","v":1.7810599478714328E-2},{"$f":"(Monthly!DZ569/Monthly!DZ557)-1","v":3.3531116323995969E-2},{"$f":"(Monthly!EA569/Monthly!EA557)-1","v":4.250648573139082E-2},{"$f":"(Monthly!EB569/Monthly!EB557)-1","v":1.3416815742397059E-2},{"$f":"(Monthly!EC569/Monthly!EC557)-1","v":3.8186157517899666E-2},null,null,null,null,null,null,null,null,null,null,null,null,null,{"$f":"(Monthly!EQ569/Monthly!EQ557)-1","v":6.0379918588873815E-2},{"$f":"(Monthly!ER569/Monthly!ER557)-1","v":2.8196721311475548E-2},{"$f":"(Monthly!ES569/Monthly!ES557)-1","v":2.6166902404526127E-2},null,null,null,null,null,{"$f":"((Monthly!EY569-Monthly!EY557)*100)","v":200},{"$f":"((Monthly!EZ569-Monthly!EZ557)*100)","v":199.99999999999997},{"$f":"((Monthly!FA569-Monthly!FA557)*100)","v":-76.000000000000071},{"$f":"((Monthly!FB569-Monthly!FB557)*100)","v":-67},"--",{"$f":"((Monthly!FD569-Monthly!FD557)*100)","v":-35.999999999999943},{"$f":"((Monthly!FE569-Monthly!FE557)*100)","v":189},{"$f":"((Monthly!FF569-Monthly!FF557)*100)","v":154},{"$f":"((Monthly!FG569-Monthly!FG557)*100)","v":123},{"$f":"((Monthly!FH569-Monthly!FH557)*100)","v":29.000000000000004},{"$f":"((Monthly!FI569-Monthly!FI557)*100)","v":-32.000000000000028},null,null,null,null,null,null,{"$f":"(Monthly!FP569/Monthly!FP557)-1","v":-7.531190926275988E-2},{"$f":"(Monthly!FQ569/Monthly!FQ557)-1","v":-6.0773013399060272E-3},{"$f":"(Monthly!FR569/Monthly!FR557)-1","v":-6.9359423777882512E-2},{"$f":"(Monthly!FS569/Monthly!FS557)-1","v":-1.8343388227621049E-2},{"$f":"(Monthly!FT569/Monthly!FT557)-1","v":-2.4943896231722218E-2},{"$f":"(Monthly!FU569/Monthly!FU557)-1","v":-8.5787230109861667E-3},{"$f":"(Monthly!FV569/Monthly!FV557)-1","v":6.6280686673577227E-2},{"$f":"(Monthly!FW569/Monthly!FW557)-1","v":0.2112845274767825},{"$f":"(Monthly!FX569/Monthly!FX557)-1","v":4.0702196821445824E-2},null,null,null,null,null,{"$f":"(Monthly!GD569/Monthly!GD557)-1","v":0.44261489309412649},{"$f":"(Monthly!GE569/Monthly!GE557)-1","v":0.50497121925693378},{"$f":"(Monthly!GF569/Monthly!GF557)-1","v":0.19677849594747077},{"$f":"(Monthly!GG569/Monthly!GG557)-1","v":0.36457734330074754},{"$f":"(Monthly!GH569/Monthly!GH557)-1","v":{"$error":"#DIV/0!"}},"--",{"$f":"(Monthly!GJ569/Monthly!GJ557)-1","v":0.24983509234828483},{"$f":"(Monthly!GK569/Monthly!GK557)-1","v":2.0168496298187399E-2},"--"]
["2005-09-01",null,null,null,{"$f":"(Monthly!E571/Monthly!E559)-1","v":2.7238693575454942E-2},{"$f":"(Monthly!F571/Monthly!F559)-1","v":1.2778924604344821E-2},{"$f":"(Monthly!G571/Monthly!G559)-1","v":2.0672083072929226E-2},{"$f":"(Monthly!H571/Monthly!H559)-1","v":3.2356404342145595E-2},null,null,null,null,null,null,null,null,null,null,null,null,null,null,null,{"$f":"(Monthly!X571-Monthly!X559)","v":0.29999999999999716},{"$f":"(Monthly!Y571/Monthly!Y559)-1","v":0.12871816575094264},null,null,null,null,null,null,null,null,null,null,null,null,null,{"$f":"(Monthly!AM571/Monthly!AM559)-1","v":1.5705204403328343E-2},{"$f":"(Monthly!AN571/Monthly!AN559)-1","v":2.8475825019186551E-2},{"$f":"(Monthly!AO571/Monthly!AO559)-1","v":5.3836044028257035E-2},{"$f":"((Monthly!AP571-Monthly!AP559)*100)","v":-5.0000000000000044},{"$f":"Monthly!AQ571-Monthly!AQ559","v":-0.60000000000000142},{"$f":"Monthly!AR571-Monthly!AR559","v":0},{"$f":"Monthly!AS571-Monthly!AS559","v":3},{"$f":"Monthly!AT571-Monthly!AT559","v":-4.6000000000000014},{"$f":"Monthly!AU571-Monthly!AU559","v":3.7999999999999972},{"$f":"Monthly!AV571-Monthly!AV559","v":-4.8000000000000043},{"$f":"Monthly!AW571-Monthly!AW559","v":-2.1000000000000014},{"$f":"Monthly!AX571-Monthly!AX559","v":3.1999999999999957},{"$f":"Monthly!AY571-Monthly!AY559","v":2},{"$f":"Monthly!AZ571-Monthly!AZ559","v":2.6000000000000014},{"$f":"Monthly!BA571-Monthly!BA559","v":-2.0999999999999943},{"$f":"(Monthly!BB571/Monthly!BB559)-1","v":-7.999999999999996E-2},{"$f":"(Monthly!BC571/Monthly!BC559)-1","v":4.6995158074622623E-2},null,null,null,null,null,null,null,null,null,{"$f":"(Monthly!BM571/Monthly!BM559)-1","v":5.8612414396485679E-2},{"$f":"(Monthly!BN571/Monthly!BN559)-1","v":5.8575536280131013E-2},null,null,null,null,null,{"$f":"(Monthly!BT571/Monthly!BT559)-1","v":3.6675373040098824E-2},null,null,null,{"$f":"(Monthly!BX571/Monthly!BX559)-1","v":0.12913385826771662},{"$f":"(Monthly!BY571/Monthly!BY559)-1","v":0.10877021068103865},{"$f":"(Monthly!BZ571/Monthly!BZ559)-1","v":0.15302092543471857},{"$f":"(Monthly!CA571/Monthly!CA559)-1","v":-5.7652592932537772E-2},{"$f":"Monthly!CB571-Monthly!CB559","v":1.8026654916688534},{"$f":"Monthly!CC571-Monthly!CC559","v":1.5226654916688531},"--","--",null,"--","--",null,{"$f":"(Monthly!CJ571/Monthly!CJ559)-1","v":2.4711696869851751E-2},{"$f":"(Monthly!CK571/Monthly!CK559)-1","v":6.0003351041286734E-2},{"$f":"(Monthly!CL571/Monthly!CL559)-1","v":-0.37008764489680512},{"$f":"(Monthly!CM571/Monthly!CM559)-1","v":0.15048231511254029},{"$f":"(Monthly!CN571/Monthly!CN559)-1","v":1.1881581561692833E-2},{"$f":"(Monthly!CO571/Monthly!CO559)-1","v":3.2342125836059887E-2},{"$f":"(Monthly!CP571/Monthly!CP559)-1","v":5.1609882525195161E-2},{"$f":"(Monthly!CQ571/Monthly!CQ559)-1","v":9.3070404903885517E-3},{"$f":"(Monthly!CR571/Monthly!CR559)-1","v":3.278077929448231E-2},null,null,null,null,null,null,null,{"$f":"(Monthly!CZ571/Monthly!CZ559)-1","v":4.7418335089568053E-2},{"$f":"(Monthly!DA571/Monthly!DA559)-1","v":1.9240506329113893E-2},null,null,null,null,null,null,{"$f":"((Monthly!DH571-Monthly!DH559)*60)","v":0},{"$f":"((Monthly!DI571-Monthly!DI559)*100)","v":29.999999999999716},{"$f":"((Monthly!DJ571-Monthly!DJ559)*100)","v":-40.000000000000036},{"$f":"((Monthly!DK571-Monthly!DK559)*100)","v":-40.000000000000036},{"$f":"Monthly!DL571-Monthly!DL559","v":-156},null,null,null,{"$f":"Monthly!DP571-Monthly!DP559","v":2474},null,null,null,{"$f":"(Monthly!DT571/Monthly!DT559)-1","v":0.13491475166790212},{"$f":"Monthly!DU571-Monthly!DU559","v":-1.1999999999999993},{"$f":"(Monthly!DV571/Monthly!DV559)-1","v":2.9864983856765503E-2},{"$f":"(Monthly!DW571/Monthly!DW559)-1","v":2.9726602054101159E-2},{"$f":"(Monthly!DX571/Monthly!DX559)-1","v":2.8515138946495266E-2},{"$f":"(Monthly!DY571/Monthly!DY559)-1","v":0},{"$f":"(Monthly!DZ571/Monthly!DZ559)-1","v":3.7599124965818964E-2},{"$f":"(Monthly!EA571/Monthly!EA559)-1","v":4.6406003159557674E-2},{"$f":"(Monthly!EB571/Monthly!EB559)-1","v":1.777777777777767E-2},{"$f":"(Monthly!EC571/Monthly!EC559)-1","v":3.2520325203251987E-2},null,null,null,null,null,null,null,null,null,null,null,null,null,{"$f":"(Monthly!EQ571/Monthly!EQ559)-1","v":9.8171970209884885E-2},{"$f":"(Monthly!ER571/Monthly!ER559)-1","v":2.5456919060052208E-2},{"$f":"(Monthly!ES571/Monthly!ES559)-1","v":2.2519352568613815E-2},null,null,null,null,null,{"$f":"((Monthly!EY571-Monthly!EY559)*100)","v":200.99999999999997},{"$f":"((Monthly!EZ571-Monthly!EZ559)*100)","v":200.99999999999997},{"$f":"((Monthly!FA571-Monthly!FA559)*100)","v":-33.000000000000007},{"$f":"((Monthly!FB571-Monthly!FB559)*100)","v":-23.999999999999932},"--",{"$f":"((Monthly!FD571-Monthly!FD559)*100)","v":1.9999999999999574},{"$f":"((Monthly!FE571-Monthly!FE559)*100)","v":177},{"$f":"((Monthly!FF571-Monthly!FF559)*100)","v":173},{"$f":"((Monthly!FG571-Monthly!FG559)*100)","v":142.00000000000003},{"$f":"((Monthly!FH571-Monthly!FH559)*100)","v":64.999999999999986},{"$f":"((Monthly!FI571-Monthly!FI559)*100)","v":7.0000000000000284},null,null,null,null,null,null,{"$f":"(Monthly!FP571/Monthly!FP559)-1","v":-8.5707631395078088E-2},{"$f":"(Monthly!FQ571/Monthly!FQ559)-1","v":-2.2327739316394091E-2},{"$f":"(Monthly!FR571/Monthly!FR559)-1","v":-6.104291808130935E-2},{"$f":"(Monthly!FS571/Monthly!FS559)-1","v":8.1806282722518553E-4},{"$f":"(Monthly!FT571/Monthly!FT559)-1","v":-3.6539995032484951E-2},{"$f":"(Monthly!FU571/Monthly!FU559)-1","v":-2.94276004608377E-2},{"$f":"(Monthly!FV571/Monthly!FV559)-1","v":0.19650407366251543},{"$f":"(Monthly!FW571/Monthly!FW559)-1","v":0.26690741778113747},{"$f":"(Monthly!FX571/Monthly!FX559)-1","v":7.3715507103817135E-2},null,null,null,null,null,{"$f":"(Monthly!GD571/Monthly!GD559)-1","v":0.4269858541893361},{"$f":"(Monthly!GE571/Monthly!GE559)-1","v":0.45624999999999982},{"$f":"(Monthly!GF571/Monthly!GF559)-1","v":0.54333899856190326},{"$f":"(Monthly!GG571/Monthly!GG559)-1","v":0.47052686489306206},{"$f":"(Monthly!GH571/Monthly!GH559)-1","v":{"$error":"#DIV/0!"}},"--",{"$f":"(Monthly!GJ571/Monthly!GJ559)-1","v":1.3205594941559684},{"$f":"(Monthly!GK571/Monthly!GK559)-1","v":8.8383838383838675E-3},"--"]
["2006-05-01",null,null,null,{"$f":"(Monthly!E579/Monthly!E567)-1","v":3.3677825682644214E-2},{"$f":"(Monthly!F579/Monthly!F567)-1","v":4.7414214488219919E-2},{"$f":"(Monthly!G579/Monthly!G567)-1","v":3.5064505458154205E-2},{"$f":"(Monthly!H579/Monthly!H567)-1","v":3.0401188237710874E-2},null,null,null,null,null,null,null,null,null,null,null,null,null,null,null,{"$f":"(Monthly!X579-Monthly!X567)","v":0.20000000000000284},{"$f":"(Monthly!Y579/Monthly!Y567)-1","v":0.13883951864832622},null,null,null,null,null,null,null,null,null,null,null,null,null,{"$f":"(Monthly!AM579/Monthly!AM567)-1","v":1.946685795234826E-2},{"$f":"(Monthly!AN579/Monthly!AN567)-1","v":2.2849357534591386E-2},{"$f":"(Monthly!AO579/Monthly!AO567)-1","v":6.8463775794517012E-2},{"$f":"((Monthly!AP579-Monthly!AP567)*100)","v":-2.0000000000000018},{"$f":"Monthly!AQ579-Monthly!AQ567","v":2.9000000000000057},{"$f":"Monthly!AR579-Monthly!AR567","v":2},{"$f":"Monthly!AS579-Monthly!AS567","v":-3.5},{"$f":"Monthly!AT579-Monthly!AT567","v":3.9000000000000057},{"$f":"Monthly!AU579-Monthly!AU567","v":0.40000000000000568},{"$f":"Monthly!AV579-Monthly!AV567","v":2.6000000000000014},{"$f":"Monthly!AW579-Monthly!AW567","v":0},{"$f":"Monthly!AX579-Monthly!AX567","v":3.1000000000000014},{"$f":"Monthly!AY579-Monthly!AY567","v":19},{"$f":"Monthly!AZ579-Monthly!AZ567","v":1.2999999999999972},{"$f":"Monthly!BA579-Monthly!BA567","v":6.3000000000000043},{"$f":"(Monthly!BB579/Monthly!BB567)-1","v":1.0434782608695681E-2},{"$f":"(Monthly!BC579/Monthly!BC567)-1","v":0.11836934309119163},null,null,null,null,null,null,null,null,null,{"$f":"(Monthly!BM579/Monthly!BM567)-1","v":6.5988147846938627E-2},{"$f":"(Monthly!BN579/Monthly!BN567)-1","v":6.6087077571691744E-2},null,null,null,null,null,{"$f":"(Monthly!BT579/Monthly!BT567)-1","v":4.4652092255700326E-2},null,null,null,{"$f":"(Monthly!BX579/Monthly!BX567)-1","v":-4.098765432098761E-2},{"$f":"(Monthly!BY579/Monthly!BY567)-1","v":-8.633093525179858E-2},{"$f":"(Monthly!BZ579/Monthly!BZ567)-1","v":0.10103972274060236},{"$f":"(Monthly!CA579/Monthly!CA567)-1","v":-4.4777882797731539E-2},{"$f":"Monthly!CB579-Monthly!CB567","v":0.60798473577431356},{"$f":"Monthly!CC579-Monthly!CC567","v":0.25798473577431302},{"$f":"(Monthly!CD579/Monthly!CD567)-1","v":0.25555555555555554},{"$f":"(Monthly!CE579/Monthly!CE567)-1","v":-0.15552099533437014},null,"--","--",null,{"$f":"(Monthly!CJ579/Monthly!CJ567)-1","v":-0.15552099533437014},{"$f":"(Monthly!CK579/Monthly!CK567)-1","v":7.557227971150815E-2},{"$f":"(Monthly!CL579/Monthly!CL567)-1","v":0.16083663901911271},{"$f":"(Monthly!CM579/Monthly!CM567)-1","v":-8.4014002333722249E-2},{"$f":"(Monthly!CN579/Monthly!CN567)-1","v":3.6616670764691328E-2},{"$f":"(Monthly!CO579/Monthly!CO567)-1","v":2.7903791834289038E-2},{"$f":"(Monthly!CP579/Monthly!CP567)-1","v":7.8153010866130579E-2},{"$f":"(Monthly!CQ579/Monthly!CQ567)-1","v":9.4418743067392619E-3},{"$f":"(Monthly!CR579/Monthly!CR567)-1","v":0.11154029428149581},null,null,null,null,null,null,null,{"$f":"(Monthly!CZ579/Monthly!CZ567)-1","v":3.9772727272727293E-2},{"$f":"(Monthly!DA579/Monthly!DA567)-1","v":2.4438902743142199E-2},null,null,null,null,null,null,{"$f":"((Monthly!DH579-Monthly!DH567)*60)","v":5.9999999999996589},{"$f":"((Monthly!DI579-Monthly!DI567)*100)","v":0},{"$f":"((Monthly!DJ579-Monthly!DJ567)*100)","v":-70.000000000000114},{"$f":"((Monthly!DK579-Monthly!DK567)*100)","v":-50},{"$f":"Monthly!DL579-Monthly!DL567","v":-53},null,null,null,{"$f":"Monthly!DP579-Monthly!DP567","v":2547},null,null,null,{"$f":"(Monthly!DT579/Monthly!DT567)-1","v":-2.4360535931789995E-3},{"$f":"Monthly!DU579-Monthly!DU567","v":-0.59999999999999964},{"$f":"(Monthly!DV579/Monthly!DV567)-1","v":2.506804182781841E-2},{"$f":"(Monthly!DW579/Monthly!DW567)-1","v":2.544382951196722E-2},{"$f":"(Monthly!DX579/Monthly!DX567)-1","v":2.1017018659011732E-2},{"$f":"(Monthly!DY579/Monthly!DY567)-1","v":8.6393088552916275E-3},{"$f":"(Monthly!DZ579/Monthly!DZ567)-1","v":2.4868933996504916E-2},{"$f":"(Monthly!EA579/Monthly!EA567)-1","v":2.5562175667884102E-2},{"$f":"(Monthly!EB579/Monthly!EB567)-1","v":2.3255813953488413E-2},{"$f":"(Monthly!EC579/Monthly!EC567)-1","v":3.5825919692233699E-2},null,null,null,null,null,null,null,null,null,null,null,null,null,{"$f":"(Monthly!EQ579/Monthly!EQ567)-1","v":7.4530136098509336E-2},{"$f":"(Monthly!ER579/Monthly!ER567)-1","v":1.5984654731457715E-2},{"$f":"(Monthly!ES579/Monthly!ES567)-1","v":1.3802622498274575E-2},null,null,null,null,null,{"$f":"((Monthly!EY579-Monthly!EY567)*100)","v":194.99999999999994},{"$f":"((Monthly!EZ579-Monthly!EZ567)*100)","v":194.00000000000003},{"$f":"((Monthly!FA579-Monthly!FA567)*100)","v":79.999999999999986},{"$f":"((Monthly!FB579-Monthly!FB567)*100)","v":74.000000000000028},"--",{"$f":"((Monthly!FD579-Monthly!FD567)*100)","v":87.999999999999986},{"$f":"((Monthly!FE579-Monthly!FE567)*100)","v":188},{"$f":"((Monthly!FF579-Monthly!FF567)*100)","v":167},{"$f":"((Monthly!FG579-Monthly!FG567)*100)","v":132.99999999999997},{"$f":"((Monthly!FH579-Monthly!FH567)*100)","v":114.99999999999999},{"$f":"((Monthly!FI579-Monthly!FI567)*100)","v":97.000000000000057},null,null,null,null,null,null,{"$f":"(Monthly!FP579/Monthly!FP567)-1","v":-0.11589008363201903},{"$f":"(Monthly!FQ579/Monthly!FQ567)-1","v":-3.1825046819307756E-2},{"$f":"(Monthly!FR579/Monthly!FR567)-1","v":1.0422360701140665E-2},{"$f":"(Monthly!FS579/Monthly!FS567)-1","v":5.5131133338583993E-3},{"$f":"(Monthly!FT579/Monthly!FT567)-1","v":-2.7403390639578196E-2},{"$f":"(Monthly!FU579/Monthly!FU567)-1","v":-3.2714997527215628E-2},{"$f":"(Monthly!FV579/Monthly!FV567)-1","v":0.12458931387258421},{"$f":"(Monthly!FW579/Monthly!FW567)-1","v":0.17133080007557777},{"$f":"(Monthly!FX579/Monthly!FX567)-1","v":0.19017587678218328},null,null,null,null,null,{"$f":"(Monthly!GD579/Monthly!GD567)-1","v":0.42364037728276149},{"$f":"(Monthly!GE579/Monthly!GE567)-1","v":0.43432682425488189},{"$f":"(Monthly!GF579/Monthly!GF567)-1","v":0.33783631655972091},{"$f":"(Monthly!GG579/Monthly!GG567)-1","v":0.31741700773078674},{"$f":"(Monthly!GH579/Monthly!GH567)-1","v":{"$error":"#DIV/0!"}},"--",{"$f":"(Monthly!GJ579/Monthly!GJ567)-1","v":-1.7576318223866738E-2},{"$f":"(Monthly!GK579/Monthly!GK567)-1","v":-1.6401350699469353E-2},"--"]
["2006-08-01",null,null,null,{"$f":"(Monthly!E582/Monthly!E570)-1","v":2.3742710800012556E-2},{"$f":"(Monthly!F582/Monthly!F570)-1","v":2.3354765506807817E-2},{"$f":"(Monthly!G582/Monthly!G570)-1","v":2.6708452219467604E-2},{"$f":"(Monthly!H582/Monthly!H570)-1","v":2.2767458963806719E-2},null,null,null,null,null,null,null,null,null,null,null,null,null,null,null,{"$f":"(Monthly!X582-Monthly!X570)","v":0.5},{"$f":"(Monthly!Y582/Monthly!Y570)-1","v":0.15708907872288735},null,null,null,null,null,null,null,null,null,null,null,null,null,{"$f":"(Monthly!AM582/Monthly!AM570)-1","v":2.3476936140456095E-2},{"$f":"(Monthly!AN582/Monthly!AN570)-1","v":2.9089985138876173E-2},{"$f":"(Monthly!AO582/Monthly!AO570)-1","v":9.1440440802282641E-2},{"$f":"((Monthly!AP582-Monthly!AP570)*100)","v":2.0000000000000018},{"$f":"Monthly!AQ582-Monthly!AQ570","v":1.3000000000000043},{"$f":"Monthly!AR582-Monthly!AR570","v":1},{"$f":"Monthly!AS582-Monthly!AS570","v":-0.5},{"$f":"Monthly!AT582-Monthly!AT570","v":0.80000000000000426},{"$f":"Monthly!AU582-Monthly!AU570","v":1.2000000000000028},{"$f":"Monthly!AV582-Monthly!AV570","v":0.60000000000000142},{"$f":"Monthly!AW582-Monthly!AW570","v":4},{"$f":"Monthly!AX582-Monthly!AX570","v":-2.5},{"$f":"Monthly!AY582-Monthly!AY570","v":10.5},{"$f":"Monthly!AZ582-Monthly!AZ570","v":-0.39999999999999858},{"$f":"Monthly!BA582-Monthly!BA570","v":4.3000000000000043},{"$f":"(Monthly!BB582/Monthly!BB570)-1","v":-0.12499999999999989},{"$f":"(Monthly!BC582/Monthly!BC570)-1","v":7.1814272857571471E-2},null,null,null,null,null,null,null,null,null,{"$f":"(Monthly!BM582/Monthly!BM570)-1","v":5.072425752674059E-2},{"$f":"(Monthly!BN582/Monthly!BN570)-1","v":4.9264072337445564E-2},null,null,null,null,null,{"$f":"(Monthly!BT582/Monthly!BT570)-1","v":1.7292837427272278E-2},null,null,null,{"$f":"(Monthly!BX582/Monthly!BX570)-1","v":-0.21241050119331739},{"$f":"(Monthly!BY582/Monthly!BY570)-1","v":-0.22397476340694011},{"$f":"(Monthly!BZ582/Monthly!BZ570)-1","v":5.5541190463877621E-2},{"$f":"(Monthly!CA582/Monthly!CA570)-1","v":-5.9998817757285661E-2},{"$f":"Monthly!CB582-Monthly!CB570","v":7.9633616623530301E-2},{"$f":"Monthly!CC582-Monthly!CC570","v":-6.0366383376468491E-2},{"$f":"(Monthly!CD582/Monthly!CD570)-1","v":0.18907563025210083},{"$f":"(Monthly!CE582/Monthly!CE570)-1","v":-0.17529880478087645},null,"--","--",null,{"$f":"(Monthly!CJ582/Monthly!CJ570)-1","v":-0.17529880478087645},{"$f":"(Monthly!CK582/Monthly!CK570)-1","v":6.857660789205644E-2},{"$f":"(Monthly!CL582/Monthly!CL570)-1","v":0.31487889273356418},{"$f":"(Monthly!CM582/Monthly!CM570)-1","v":-0.21064814814814814},{"$f":"(Monthly!CN582/Monthly!CN570)-1","v":3.1314709904278315E-2},{"$f":"(Monthly!CO582/Monthly!CO570)-1","v":2.1186679438778278E-2},{"$f":"(Monthly!CP582/Monthly!CP570)-1","v":6.558630576747726E-2},{"$f":"(Monthly!CQ582/Monthly!CQ570)-1","v":9.5230063419242672E-3},{"$f":"(Monthly!CR582/Monthly!CR570)-1","v":0.10525487551146773},null,null,null,null,null,null,null,{"$f":"(Monthly!CZ582/Monthly!CZ570)-1","v":3.9265680775114831E-2},{"$f":"(Monthly!DA582/Monthly!DA570)-1","v":2.8344107409249197E-2},null,null,null,null,null,null,{"$f":"((Monthly!DH582-Monthly!DH570)*60)","v":5.9999999999996589},{"$f":"((Monthly!DI582-Monthly!DI570)*100)","v":0},{"$f":"((Monthly!DJ582-Monthly!DJ570)*100)","v":-50},{"$f":"((Monthly!DK582-Monthly!DK570)*100)","v":-20.000000000000018},{"$f":"Monthly!DL582-Monthly!DL570","v":-44},null,null,null,{"$f":"Monthly!DP582-Monthly!DP570","v":2200},null,null,null,{"$f":"(Monthly!DT582/Monthly!DT570)-1","v":-7.1258907363420665E-3},{"$f":"Monthly!DU582-Monthly!DU570","v":-0.79999999999999893},{"$f":"(Monthly!DV582/Monthly!DV570)-1","v":2.8746700905913469E-2},{"$f":"(Monthly!DW582/Monthly!DW570)-1","v":2.8812368236120767E-2},{"$f":"(Monthly!DX582/Monthly!DX570)-1","v":2.4727492935002093E-2},{"$f":"(Monthly!DY582/Monthly!DY570)-1","v":2.3324851569126448E-2},{"$f":"(Monthly!DZ582/Monthly!DZ570)-1","v":2.5165562913907369E-2},{"$f":"(Monthly!EA582/Monthly!EA570)-1","v":2.3642897673538776E-2},{"$f":"(Monthly!EB582/Monthly!EB570)-1","v":2.8722934158197155E-2},{"$f":"(Monthly!EC582/Monthly!EC570)-1","v":3.8176770013882422E-2},null,null,null,null,null,null,null,null,null,null,null,null,null,{"$f":"(Monthly!EQ582/Monthly!EQ570)-1","v":6.535532994923865E-2},{"$f":"(Monthly!ER582/Monthly!ER570)-1","v":1.1472275334607929E-2},{"$f":"(Monthly!ES582/Monthly!ES570)-1","v":1.3783597518952417E-2},null,null,null,null,null,{"$f":"((Monthly!EY582-Monthly!EY570)*100)","v":180.99999999999997},{"$f":"((Monthly!EZ582-Monthly!EZ570)*100)","v":175},{"$f":"((Monthly!FA582-Monthly!FA570)*100)","v":58.999999999999986},{"$f":"((Monthly!FB582-Monthly!FB570)*100)","v":62.999999999999986},"--",{"$f":"((Monthly!FD582-Monthly!FD570)*100)","v":69.999999999999929},{"$f":"((Monthly!FE582-Monthly!FE570)*100)","v":152},{"$f":"((Monthly!FF582-Monthly!FF570)*100)","v":121},{"$f":"((Monthly!FG582-Monthly!FG570)*100)","v":86.000000000000028},{"$f":"((Monthly!FH582-Monthly!FH570)*100)","v":70.000000000000014},{"$f":"((Monthly!FI582-Monthly!FI570)*100)","v":62.000000000000014},null,null,null,null,null,null,{"$f":"(Monthly!FP582/Monthly!FP570)-1","v":-7.1493813833762188E-2},{"$f":"(Monthly!FQ582/Monthly!FQ570)-1","v":-1.5984299591443651E-2},{"$f":"(Monthly!FR582/Monthly!FR570)-1","v":1.7527278171847849E-2},{"$f":"(Monthly!FS582/Monthly!FS570)-1","v":4.1886945912972706E-2},{"$f":"(Monthly!FT582/Monthly!FT570)-1","v":-2.5628515721701994E-2},{"$f":"(Monthly!FU582/Monthly!FU570)-1","v":-3.5101938135815525E-2},{"$f":"(Monthly!FV582/Monthly!FV570)-1","v":5.0233015059122366E-2},{"$f":"(Monthly!FW582/Monthly!FW570)-1","v":0.1914251180796831},{"$f":"(Monthly!FX582/Monthly!FX570)-1","v":0.2110086199951664},null,null,null,null,null,{"$f":"(Monthly!GD582/Monthly!GD570)-1","v":0.1243650915807295},{"$f":"(Monthly!GE582/Monthly!GE570)-1","v":0.14457643013441723},{"$f":"(Monthly!GF582/Monthly!GF570)-1","v":0.1634494131341544},{"$f":"(Monthly!GG582/Monthly!GG570)-1","v":0.21799999999999997},{"$f":"(Monthly!GH582/Monthly!GH570)-1","v":{"$error":"#DIV/0!"}},"--",{"$f":"(Monthly!GJ582/Monthly!GJ570)-1","v":-0.25861886071921081},{"$f":"(Monthly!GK582/Monthly!GK570)-1","v":3.7276341948309089E-3},"--"]
["2007-02-01",null,null,null,{"$f":"(Monthly!E588/Monthly!E576)-1","v":2.6372565135201587E-2},{"$f":"(Monthly!F588/Monthly!F576)-1","v":4.2911663408731426E-2},{"$f":"(Monthly!G588/Monthly!G576)-1","v":2.1323227249897325E-2},{"$f":"(Monthly!H588/Monthly!H576)-1","v":2.4887927036636226E-2},null,null,null,null,null,null,null,null,null,null,null,null,null,null,null,{"$f":"(Monthly!X588-Monthly!X576)","v":0.19999999999998863},{"$f":"(Monthly!Y588/Monthly!Y576)-1","v":0.13851652839747763},null,null,null,null,null,null,null,null,null,null,null,null,null,{"$f":"(Monthly!AM588/Monthly!AM576)-1","v":2.4590350084670032E-2},{"$f":"(Monthly!AN588/Monthly!AN576)-1","v":2.2055445085812586E-2},{"$f":"(Monthly!AO588/Monthly!AO576)-1","v":6.89131455098424E-2},{"$f":"((Monthly!AP588-Monthly!AP576)*100)","v":4.0000000000000036},{"$f":"Monthly!AQ588-Monthly!AQ576","v":-3.8999999999999986},{"$f":"Monthly!AR588-Monthly!AR576","v":-3},{"$f":"Monthly!AS588-Monthly!AS576","v":4.5},{"$f":"Monthly!AT588-Monthly!AT576","v":-2.6000000000000014},{"$f":"Monthly!AU588-Monthly!AU576","v":-3},{"$f":"Monthly!AV588-Monthly!AV576","v":4},{"$f":"Monthly!AW588-Monthly!AW576","v":-5},{"$f":"Monthly!AX588-Monthly!AX576","v":-5.8999999999999986},{"$f":"Monthly!AY588-Monthly!AY576","v":-3.5},{"$f":"Monthly!AZ588-Monthly!AZ576","v":-4.1000000000000014},{"$f":"Monthly!BA588-Monthly!BA576","v":-1.6000000000000014},{"$f":"(Monthly!BB588/Monthly!BB576)-1","v":-9.3851132686084138E-2},{"$f":"(Monthly!BC588/Monthly!BC576)-1","v":2.5078120017856032E-2},null,null,null,null,null,null,null,null,null,{"$f":"(Monthly!BM588/Monthly!BM576)-1","v":2.6371798666610324E-2},{"$f":"(Monthly!BN588/Monthly!BN576)-1","v":2.4475546312430208E-2},null,null,null,null,null,{"$f":"(Monthly!BT588/Monthly!BT576)-1","v":5.3495745088297797E-2},null,null,null,{"$f":"(Monthly!BX588/Monthly!BX576)-1","v":-0.30155733836715437},{"$f":"(Monthly!BY588/Monthly!BY576)-1","v":-0.25361980382998595},{"$f":"(Monthly!BZ588/Monthly!BZ576)-1","v":-6.281651733541227E-3},{"$f":"(Monthly!CA588/Monthly!CA576)-1","v":1.1444141689373355E-2},{"$f":"Monthly!CB588-Monthly!CB576","v":-1.5179928559066029},{"$f":"Monthly!CC588-Monthly!CC576","v":-1.7279928559066029},{"$f":"(Monthly!CD588/Monthly!CD576)-1","v":9.27643784786647E-3},{"$f":"(Monthly!CE588/Monthly!CE576)-1","v":-0.21960414703110276},null,{"$f":"(Monthly!CG588/Monthly!CG576)-1","v":0.12666666666666671},{"$f":"(Monthly!CH588/Monthly!CH576)-1","v":-0.16690647482014387},null,{"$f":"(Monthly!CJ588/Monthly!CJ576)-1","v":-0.21960414703110276},{"$f":"(Monthly!CK588/Monthly!CK576)-1","v":5.3893817144385459E-2},{"$f":"(Monthly!CL588/Monthly!CL576)-1","v":-0.10938732579542476},{"$f":"(Monthly!CM588/Monthly!CM576)-1","v":-0.34090909090909094},{"$f":"(Monthly!CN588/Monthly!CN576)-1","v":2.3199347459073927E-2},{"$f":"(Monthly!CO588/Monthly!CO576)-1","v":2.468148474987597E-2},{"$f":"(Monthly!CP588/Monthly!CP576)-1","v":4.0030951032668849E-2},{"$f":"(Monthly!CQ588/Monthly!CQ576)-1","v":9.8974665440114684E-3},{"$f":"(Monthly!CR588/Monthly!CR576)-1","v":5.4294204484701458E-2},null,null,null,null,null,null,null,{"$f":"(Monthly!CZ588/Monthly!CZ576)-1","v":2.4202607823470279E-2},{"$f":"(Monthly!DA588/Monthly!DA576)-1","v":2.7185658153241699E-2},null,null,null,null,null,null,{"$f":"((Monthly!DH588-Monthly!DH576)*60)","v":-5.9999999999996589},{"$f":"((Monthly!DI588-Monthly!DI576)*100)","v":20.000000000000284},{"$f":"((Monthly!DJ588-Monthly!DJ576)*100)","v":-20.000000000000107},{"$f":"((Monthly!DK588-Monthly!DK576)*100)","v":-29.999999999999982},{"$f":"Monthly!DL588-Monthly!DL576","v":-212},null,null,null,{"$f":"Monthly!DP588-Monthly!DP576","v":1828},null,null,null,{"$f":"(Monthly!DT588/Monthly!DT576)-1","v":0.11006018916595006},{"$f":"Monthly!DU588-Monthly!DU576","v":-0.59999999999999964},{"$f":"(Monthly!DV588/Monthly!DV576)-1","v":2.1878297572986316E-2},{"$f":"(Monthly!DW588/Monthly!DW576)-1","v":2.1479025515352523E-2},{"$f":"(Monthly!DX588/Monthly!DX576)-1","v":2.0803589638996423E-2},{"$f":"(Monthly!DY588/Monthly!DY576)-1","v":1.4460999123575791E-2},{"$f":"(Monthly!DZ588/Monthly!DZ576)-1","v":2.2727272727272707E-2},{"$f":"(Monthly!EA588/Monthly!EA576)-1","v":2.6760296071360878E-2},{"$f":"(Monthly!EB588/Monthly!EB576)-1","v":1.3303769401330268E-2},{"$f":"(Monthly!EC588/Monthly!EC576)-1","v":2.3107177974434512E-2},null,null,null,null,null,null,null,null,null,null,null,null,null,{"$f":"(Monthly!EQ588/Monthly!EQ576)-1","v":3.0902348578492056E-2},{"$f":"(Monthly!ER588/Monthly!ER576)-1","v":1.8354430379746933E-2},{"$f":"(Monthly!ES588/Monthly!ES576)-1","v":2.0547945205479534E-2},null,null,null,null,null,{"$f":"((Monthly!EY588-Monthly!EY576)*100)","v":75},{"$f":"((Monthly!EZ588-Monthly!EZ576)*100)","v":76.999999999999957},{"$f":"((Monthly!FA588-Monthly!FA576)*100)","v":4.0000000000000036},{"$f":"((Monthly!FB588-Monthly!FB576)*100)","v":1.0000000000000675},"--",{"$f":"((Monthly!FD588-Monthly!FD576)*100)","v":4.0000000000000036},{"$f":"((Monthly!FE588-Monthly!FE576)*100)","v":60.000000000000057},{"$f":"((Monthly!FF588-Monthly!FF576)*100)","v":37.000000000000014},{"$f":"((Monthly!FG588-Monthly!FG576)*100)","v":17.999999999999972},{"$f":"((Monthly!FH588-Monthly!FH576)*100)","v":13.999999999999968},{"$f":"((Monthly!FI588-Monthly!FI576)*100)","v":14.999999999999947},null,null,null,null,null,null,{"$f":"(Monthly!FP588/Monthly!FP576)-1","v":1.9235790756375604E-2},{"$f":"(Monthly!FQ588/Monthly!FQ576)-1","v":-3.7385731319554805E-2},{"$f":"(Monthly!FR588/Monthly!FR576)-1","v":4.873047061292235E-2},{"$f":"(Monthly!FS588/Monthly!FS576)-1","v":9.5477386934673447E-2},{"$f":"(Monthly!FT588/Monthly!FT576)-1","v":-2.8122379262688679E-2},{"$f":"(Monthly!FU588/Monthly!FU576)-1","v":-3.6211189306775582E-2},{"$f":"(Monthly!FV588/Monthly!FV576)-1","v":-2.9978947368420883E-3},{"$f":"(Monthly!FW588/Monthly!FW576)-1","v":0.28670121862678299},{"$f":"(Monthly!FX588/Monthly!FX576)-1","v":2.1774481953563019E-2},null,null,null,null,null,{"$f":"(Monthly!GD588/Monthly!GD576)-1","v":-3.8455297744604988E-2},{"$f":"(Monthly!GE588/Monthly!GE576)-1","v":-4.4012622487958786E-2},{"$f":"(Monthly!GF588/Monthly!GF576)-1","v":-5.4640161581800739E-2},{"$f":"(Monthly!GG588/Monthly!GG576)-1","v":5.2525252525252863E-3},{"$f":"(Monthly!GH588/Monthly!GH576)-1","v":{"$error":"#DIV/0!"}},"--",{"$f":"(Monthly!GJ588/Monthly!GJ576)-1","v":3.457446808510678E-3},{"$f":"(Monthly!GK588/Monthly!GK576)-1","v":2.9804482594182113E-2},"--"]
["2007-03-01",null,null,null,{"$f":"(Monthly!E589/Monthly!E577)-1","v":2.511022249564232E-2},{"$f":"(Monthly!F589/Monthly!F577)-1","v":3.8091715976331431E-2},{"$f":"(Monthly!G589/Monthly!G577)-1","v":2.987608994951807E-2},{"$f":"(Monthly!H589/Monthly!H577)-1","v":2.098096000985894E-2},null,null,null,null,null,null,null,null,null,null,null,null,null,null,null,{"$f":"(Monthly!X589-Monthly!X577)","v":9.9999999999994316E-2},{"$f":"(Monthly!Y589/Monthly!Y577)-1","v":0.13765122791811368},null,null,null,null,null,null,null,null,null,null,null,null,null,{"$f":"(Monthly!AM589/Monthly!AM577)-1","v":2.4527645466273507E-2},{"$f":"(Monthly!AN589/Monthly!AN577)-1","v":3.2310493035048848E-2},{"$f":"(Monthly!AO589/Monthly!AO577)-1","v":6.0564499580262998E-2},{"$f":"((Monthly!AP589-Monthly!AP577)*100)","v":2.0000000000000018},{"$f":"Monthly!AQ589-Monthly!AQ577","v":-3.5999999999999943},{"$f":"Monthly!AR589-Monthly!AR577","v":-12.5},{"$f":"Monthly!AS589-Monthly!AS577","v":0},{"$f":"Monthly!AT589-Monthly!AT577","v":-3.8999999999999986},{"$f":"Monthly!AU589-Monthly!AU577","v":-1.7999999999999972},{"$f":"Monthly!AV589-Monthly!AV577","v":0.5},{"$f":"Monthly!AW589-Monthly!AW577","v":-1},{"$f":"Monthly!AX589-Monthly!AX577","v":-6.7999999999999972},{"$f":"Monthly!AY589-Monthly!AY577","v":-1},{"$f":"Monthly!AZ589-Monthly!AZ577","v":-3.8999999999999986},{"$f":"Monthly!BA589-Monthly!BA577","v":-2.6999999999999957},{"$f":"(Monthly!BB589/Monthly!BB577)-1","v":-0.12},{"$f":"(Monthly!BC589/Monthly!BC577)-1","v":2.1583722848501408E-2},null,null,null,null,null,null,null,null,null,{"$f":"(Monthly!BM589/Monthly!BM577)-1","v":3.2566479121817871E-2},{"$f":"(Monthly!BN589/Monthly!BN577)-1","v":3.0542436665877526E-2},null,null,null,null,null,{"$f":"(Monthly!BT589/Monthly!BT577)-1","v":3.4045507186926116E-2},null,null,null,{"$f":"(Monthly!BX589/Monthly!BX577)-1","v":-0.24073133570340277},{"$f":"(Monthly!BY589/Monthly!BY577)-1","v":-0.2464589235127479},{"$f":"(Monthly!BZ589/Monthly!BZ577)-1","v":-1.0230303030303145E-2},{"$f":"(Monthly!CA589/Monthly!CA577)-1","v":-2.4011213358522632E-2},{"$f":"Monthly!CB589-Monthly!CB577","v":-0.91972088116637352},{"$f":"Monthly!CC589-Monthly!CC577","v":-1.1297208811663744},{"$f":"(Monthly!CD589/Monthly!CD577)-1","v":-1.26811594202898E-2},{"$f":"(Monthly!CE589/Monthly!CE577)-1","v":-0.25358422939068104},null,{"$f":"(Monthly!CG589/Monthly!CG577)-1","v":5.6249999999999911E-2},{"$f":"(Monthly!CH589/Monthly!CH577)-1","v":-0.20869565217391306},null,{"$f":"(Monthly!CJ589/Monthly!CJ577)-1","v":-0.25358422939068104},{"$f":"(Monthly!CK589/Monthly!CK577)-1","v":5.6743318831572465E-2},{"$f":"(Monthly!CL589/Monthly!CL577)-1","v":-1.6944665078104215E-2},{"$f":"(Monthly!CM589/Monthly!CM577)-1","v":-0.24921923797626488},{"$f":"(Monthly!CN589/Monthly!CN577)-1","v":2.4416105730542315E-2},{"$f":"(Monthly!CO589/Monthly!CO577)-1","v":3.1415060424213825E-2},{"$f":"(Monthly!CP589/Monthly!CP577)-1","v":4.133832401175308E-2},{"$f":"(Monthly!CQ589/Monthly!CQ577)-1","v":9.9342414279004476E-3},{"$f":"(Monthly!CR589/Monthly!CR577)-1","v":5.6538544156130133E-2},null,null,null,null,null,null,null,{"$f":"(Monthly!CZ589/Monthly!CZ577)-1","v":2.7981972959439272E-2},{"$f":"(Monthly!DA589/Monthly!DA577)-1","v":2.5051395007342103E-2},null,null,null,null,null,null,{"$f":"((Monthly!DH589-Monthly!DH577)*60)","v":6.0000000000000853},{"$f":"((Monthly!DI589-Monthly!DI577)*100)","v":0},{"$f":"((Monthly!DJ589-Monthly!DJ577)*100)","v":-19.999999999999929},{"$f":"((Monthly!DK589-Monthly!DK577)*100)","v":-29.999999999999982},{"$f":"Monthly!DL589-Monthly!DL577","v":-244},null,null,null,{"$f":"Monthly!DP589-Monthly!DP577","v":1736},null,null,null,{"$f":"(Monthly!DT589/Monthly!DT577)-1","v":3.2710280373831724E-2},{"$f":"Monthly!DU589-Monthly!DU577","v":0.40000000000000036},{"$f":"(Monthly!DV589/Monthly!DV577)-1","v":1.9953628890606367E-2},{"$f":"(Monthly!DW589/Monthly!DW577)-1","v":2.0250447227191382E-2},{"$f":"(Monthly!DX589/Monthly!DX577)-1","v":1.873797224754381E-2},{"$f":"(Monthly!DY589/Monthly!DY577)-1","v":9.5735422106177914E-3},{"$f":"(Monthly!DZ589/Monthly!DZ577)-1","v":2.1518151815181463E-2},{"$f":"(Monthly!EA589/Monthly!EA577)-1","v":2.5390257664096305E-2},{"$f":"(Monthly!EB589/Monthly!EB577)-1","v":1.2400354295836857E-2},{"$f":"(Monthly!EC589/Monthly!EC577)-1","v":2.3890784982935287E-2},null,null,null,null,null,null,null,null,null,null,null,null,null,{"$f":"(Monthly!EQ589/Monthly!EQ577)-1","v":4.3773119605425626E-2},{"$f":"(Monthly!ER589/Monthly!ER577)-1","v":1.5782828282828287E-2},{"$f":"(Monthly!ES589/Monthly!ES577)-1","v":1.9138755980861122E-2},null,null,null,null,null,{"$f":"((Monthly!EY589-Monthly!EY577)*100)","v":71.999999999999972},{"$f":"((Monthly!EZ589-Monthly!EZ577)*100)","v":67},{"$f":"((Monthly!FA589-Monthly!FA577)*100)","v":-23.000000000000043},{"$f":"((Monthly!FB589-Monthly!FB577)*100)","v":-14.000000000000057},"--",{"$f":"((Monthly!FD589-Monthly!FD577)*100)","v":-16.000000000000014},{"$f":"((Monthly!FE589-Monthly!FE577)*100)","v":43.000000000000057},{"$f":"((Monthly!FF589-Monthly!FF577)*100)","v":15.000000000000036},{"$f":"((Monthly!FG589-Monthly!FG577)*100)","v":-16.000000000000014},{"$f":"((Monthly!FH589-Monthly!FH577)*100)","v":-23.999999999999932},{"$f":"((Monthly!FI589-Monthly!FI577)*100)","v":-16.000000000000014},null,null,null,null,null,null,{"$f":"(Monthly!FP589/Monthly!FP577)-1","v":9.4184740343903339E-3},{"$f":"(Monthly!FQ589/Monthly!FQ577)-1","v":-3.7100186683260761E-2},{"$f":"(Monthly!FR589/Monthly!FR577)-1","v":3.3965002372247532E-2},{"$f":"(Monthly!FS589/Monthly!FS577)-1","v":0.10126371799135336},{"$f":"(Monthly!FT589/Monthly!FT577)-1","v":-3.4274195371685856E-2},{"$f":"(Monthly!FU589/Monthly!FU577)-1","v":-4.5235937008317739E-2},{"$f":"(Monthly!FV589/Monthly!FV577)-1","v":2.8699622701367389E-2},{"$f":"(Monthly!FW589/Monthly!FW577)-1","v":0.10674920730786663},{"$f":"(Monthly!FX589/Monthly!FX577)-1","v":4.7640439084510877E-2},null,null,null,null,null,{"$f":"(Monthly!GD589/Monthly!GD577)-1","v":-3.7201907790142985E-2},{"$f":"(Monthly!GE589/Monthly!GE577)-1","v":-1.6113438607812114E-4},{"$f":"(Monthly!GF589/Monthly!GF577)-1","v":3.8211849782233465E-2},{"$f":"(Monthly!GG589/Monthly!GG577)-1","v":4.2203985932004473E-2},{"$f":"(Monthly!GH589/Monthly!GH577)-1","v":{"$error":"#DIV/0!"}},"--",{"$f":"(Monthly!GJ589/Monthly!GJ577)-1","v":3.467545493623736E-2},{"$f":"(Monthly!GK589/Monthly!GK577)-1","v":6.8869886757568777E-2},"--"]
["2007-07-01",null,null,null,{"$f":"(Monthly!E593/Monthly!E581)-1","v":2.1461976413176043E-2},{"$f":"(Monthly!F593/Monthly!F581)-1","v":3.2803271240345211E-2},{"$f":"(Monthly!G593/Monthly!G581)-1","v":2.278930131004353E-2},{"$f":"(Monthly!H593/Monthly!H581)-1","v":1.883731962233548E-2},null,null,null,null,null,null,null,null,null,null,null,null,null,null,null,{"$f":"(Monthly!X593-Monthly!X581)","v":0.19999999999998863},{"$f":"(Monthly!Y593/Monthly!Y581)-1","v":0.13369925408394323},null,null,null,null,null,null,null,null,null,null,null,null,null,{"$f":"(Monthly!AM593/Monthly!AM581)-1","v":2.5584996508287494E-2},{"$f":"(Monthly!AN593/Monthly!AN581)-1","v":4.1120236090777862E-2},{"$f":"(Monthly!AO593/Monthly!AO581)-1","v":4.7919665431923608E-2},{"$f":"((Monthly!AP593-Monthly!AP581)*100)","v":0},{"$f":"Monthly!AQ593-Monthly!AQ581","v":-0.60000000000000142},{"$f":"Monthly!AR593-Monthly!AR581","v":1.5},{"$f":"Monthly!AS593-Monthly!AS581","v":6.5},{"$f":"Monthly!AT593-Monthly!AT581","v":-0.90000000000000568},{"$f":"Monthly!AU593-Monthly!AU581","v":4.6000000000000014},{"$f":"Monthly!AV593-Monthly!AV581","v":-3},{"$f":"Monthly!AW593-Monthly!AW581","v":-1.5},{"$f":"Monthly!AX593-Monthly!AX581","v":2.8000000000000043},{"$f":"Monthly!AY593-Monthly!AY581","v":-13.5},{"$f":"Monthly!AZ593-Monthly!AZ581","v":0.10000000000000142},{"$f":"Monthly!BA593-Monthly!BA581","v":-3.5},{"$f":"(Monthly!BB593/Monthly!BB581)-1","v":1.4209591474245276E-2},{"$f":"(Monthly!BC593/Monthly!BC581)-1","v":2.5156242620782976E-2},null,null,null,null,null,null,null,null,null,{"$f":"(Monthly!BM593/Monthly!BM581)-1","v":2.899854352844855E-2},{"$f":"(Monthly!BN593/Monthly!BN581)-1","v":2.438648367810714E-2},null,null,null,null,null,{"$f":"(Monthly!BT593/Monthly!BT581)-1","v":7.1755830609528726E-2},null,null,null,{"$f":"(Monthly!BX593/Monthly!BX581)-1","v":-0.22049510650546922},{"$f":"(Monthly!BY593/Monthly!BY581)-1","v":-0.22802041973908116},{"$f":"(Monthly!BZ593/Monthly!BZ581)-1","v":-3.9525691699604737E-2},{"$f":"(Monthly!CA593/Monthly!CA581)-1","v":-9.5007299270073009E-2},{"$f":"Monthly!CB593-Monthly!CB581","v":-1.7867784745611459},{"$f":"Monthly!CC593-Monthly!CC581","v":-1.7867784745611459},{"$f":"(Monthly!CD593/Monthly!CD581)-1","v":-6.1188811188811143E-2},{"$f":"(Monthly!CE593/Monthly!CE581)-1","v":-0.19378238341968912},null,{"$f":"(Monthly!CG593/Monthly!CG581)-1","v":4.3927648578811374E-2},{"$f":"(Monthly!CH593/Monthly!CH581)-1","v":-0.19905213270142175},null,{"$f":"(Monthly!CJ593/Monthly!CJ581)-1","v":-0.19378238341968912},{"$f":"(Monthly!CK593/Monthly!CK581)-1","v":5.3400101731184035E-2},{"$f":"(Monthly!CL593/Monthly!CL581)-1","v":3.4722222222222321E-2},{"$f":"(Monthly!CM593/Monthly!CM581)-1","v":-0.2682584269662921},{"$f":"(Monthly!CN593/Monthly!CN581)-1","v":2.5065338434150375E-2},{"$f":"(Monthly!CO593/Monthly!CO581)-1","v":5.0540123456789932E-2},{"$f":"(Monthly!CP593/Monthly!CP581)-1","v":5.4333335289141083E-2},{"$f":"(Monthly!CQ593/Monthly!CQ581)-1","v":1.006033525532124E-2},{"$f":"(Monthly!CR593/Monthly!CR581)-1","v":6.6370594271621286E-2},null,null,null,null,null,null,null,{"$f":"(Monthly!CZ593/Monthly!CZ581)-1","v":2.3178905864958077E-2},{"$f":"(Monthly!DA593/Monthly!DA581)-1","v":2.1682016480853106E-2},null,null,null,null,null,null,{"$f":"((Monthly!DH593-Monthly!DH581)*60)","v":-6.0000000000000853},{"$f":"((Monthly!DI593-Monthly!DI581)*100)","v":-9.9999999999994316},{"$f":"((Monthly!DJ593-Monthly!DJ581)*100)","v":-9.9999999999999645},{"$f":"((Monthly!DK593-Monthly!DK581)*100)","v":0},{"$f":"Monthly!DL593-Monthly!DL581","v":-299},null,null,null,{"$f":"Monthly!DP593-Monthly!DP581","v":1507},null,null,null,{"$f":"(Monthly!DT593/Monthly!DT581)-1","v":-1.8170426065162948E-2},{"$f":"Monthly!DU593-Monthly!DU581","v":0.69999999999999929},{"$f":"(Monthly!DV593/Monthly!DV581)-1","v":-4.5041923636615078E-3},{"$f":"(Monthly!DW593/Monthly!DW581)-1","v":-4.6620046620046152E-3},{"$f":"(Monthly!DX593/Monthly!DX581)-1","v":-3.0729579698650644E-3},{"$f":"(Monthly!DY593/Monthly!DY581)-1","v":-3.7578288100208468E-3},{"$f":"(Monthly!DZ593/Monthly!DZ581)-1","v":-2.8597426231637968E-3},{"$f":"(Monthly!EA593/Monthly!EA581)-1","v":0},{"$f":"(Monthly!EB593/Monthly!EB581)-1","v":-9.5569070373587861E-3},{"$f":"(Monthly!EC593/Monthly!EC581)-1","v":-8.2258781680746296E-3},null,null,null,null,null,null,null,null,null,null,null,null,null,{"$f":"(Monthly!EQ593/Monthly!EQ581)-1","v":4.9760191846522694E-2},{"$f":"(Monthly!ER593/Monthly!ER581)-1","v":2.5300442757748343E-2},{"$f":"(Monthly!ES593/Monthly!ES581)-1","v":2.3224043715847076E-2},null,null,null,null,null,{"$f":"((Monthly!EY593-Monthly!EY581)*100)","v":0},{"$f":"((Monthly!EZ593-Monthly!EZ581)*100)","v":1.9999999999999574},{"$f":"((Monthly!FA593-Monthly!FA581)*100)","v":-11.999999999999922},{"$f":"((Monthly!FB593-Monthly!FB581)*100)","v":-10.999999999999943},"--",{"$f":"((Monthly!FD593-Monthly!FD581)*100)","v":-5.9999999999999609},{"$f":"((Monthly!FE593-Monthly!FE581)*100)","v":-12.999999999999989},{"$f":"((Monthly!FF593-Monthly!FF581)*100)","v":-25.999999999999979},{"$f":"((Monthly!FG593-Monthly!FG581)*100)","v":-29.999999999999982},{"$f":"((Monthly!FH593-Monthly!FH581)*100)","v":-16.000000000000014},{"$f":"((Monthly!FI593-Monthly!FI581)*100)","v":-8.9999999999999858},null,null,null,null,null,null,{"$f":"(Monthly!FP593/Monthly!FP581)-1","v":-7.0125730476359061E-2},{"$f":"(Monthly!FQ593/Monthly!FQ581)-1","v":-5.181671401929977E-2},{"$f":"(Monthly!FR593/Monthly!FR581)-1","v":-1.5332787034507911E-2},{"$f":"(Monthly!FS593/Monthly!FS581)-1","v":8.2406750256289074E-2},{"$f":"(Monthly!FT593/Monthly!FT581)-1","v":-5.1320958445731812E-2},{"$f":"(Monthly!FU593/Monthly!FU581)-1","v":-5.3542372323582166E-2},{"$f":"(Monthly!FV593/Monthly!FV581)-1","v":7.340818089031953E-2},{"$f":"(Monthly!FW593/Monthly!FW581)-1","v":0.1611399805131537},{"$f":"(Monthly!FX593/Monthly!FX581)-1","v":9.2625044456658978E-2},null,null,null,null,null,{"$f":"(Monthly!GD593/Monthly!GD581)-1","v":-3.0909823948392923E-3},{"$f":"(Monthly!GE593/Monthly!GE581)-1","v":4.4251391339758417E-2},{"$f":"(Monthly!GF593/Monthly!GF581)-1","v":-2.0096516163152001E-2},{"$f":"(Monthly!GG593/Monthly!GG581)-1","v":-2.2494887525562501E-2},{"$f":"(Monthly!GH593/Monthly!GH581)-1","v":{"$error":"#DIV/0!"}},"--",{"$f":"(Monthly!GJ593/Monthly!GJ581)-1","v":2.8447444551590984E-2},{"$f":"(Monthly!GK593/Monthly!GK581)-1","v":-4.8449612403100861E-4},"--"]
["2008-02-01",null,null,null,{"$f":"(Monthly!E600/Monthly!E588)-1","v":5.505340179974505E-3},{"$f":"(Monthly!F600/Monthly!F588)-1","v":-2.8561228132809591E-3},{"$f":"(Monthly!G600/Monthly!G588)-1","v":-1.3143776824034337E-2},{"$f":"(Monthly!H600/Monthly!H588)-1","v":1.3514328808446496E-2},null,null,null,null,null,null,null,null,null,null,null,null,null,null,null,{"$f":"(Monthly!X600-Monthly!X588)","v":0},{"$f":"(Monthly!Y600/Monthly!Y588)-1","v":0.20255729847378867},null,null,null,null,null,null,null,null,null,null,null,null,null,{"$f":"(Monthly!AM600/Monthly!AM588)-1","v":8.7523936090756482E-3},{"$f":"(Monthly!AN600/Monthly!AN588)-1","v":1.3909705910963854E-2},{"$f":"(Monthly!AO600/Monthly!AO588)-1","v":6.2353799366390517E-2},{"$f":"((Monthly!AP600-Monthly!AP588)*100)","v":-1.0000000000000009},{"$f":"Monthly!AQ600-Monthly!AQ588","v":-4.2999999999999972},{"$f":"Monthly!AR600-Monthly!AR588","v":-6.5},{"$f":"Monthly!AS600-Monthly!AS588","v":-4},{"$f":"Monthly!AT600-Monthly!AT588","v":-5.1000000000000014},{"$f":"Monthly!AU600-Monthly!AU588","v":2},{"$f":"Monthly!AV600-Monthly!AV588","v":-14},{"$f":"Monthly!AW600-Monthly!AW588","v":0},{"$f":"Monthly!AX600-Monthly!AX588","v":-8.7000000000000028},{"$f":"Monthly!AY600-Monthly!AY588","v":16.5},{"$f":"Monthly!AZ600-Monthly!AZ588","v":-6.3999999999999986},{"$f":"Monthly!BA600-Monthly!BA588","v":-1.1999999999999957},{"$f":"(Monthly!BB600/Monthly!BB588)-1","v":-6.7857142857142838E-2},{"$f":"(Monthly!BC600/Monthly!BC588)-1","v":4.090393019892069E-2},null,null,null,null,null,null,null,null,null,{"$f":"(Monthly!BM600/Monthly!BM588)-1","v":2.0994808975802748E-2},{"$f":"(Monthly!BN600/Monthly!BN588)-1","v":1.9653982613784704E-2},null,null,null,null,null,{"$f":"(Monthly!BT600/Monthly!BT588)-1","v":8.03990878410481E-2},null,null,null,{"$f":"(Monthly!BX600/Monthly!BX588)-1","v":-0.25472972972972974},{"$f":"(Monthly!BY600/Monthly!BY588)-1","v":-0.36545682102628285},{"$f":"(Monthly!BZ600/Monthly!BZ588)-1","v":-0.12510413093546335},{"$f":"(Monthly!CA600/Monthly!CA588)-1","v":-9.2073754789272044E-2},{"$f":"Monthly!CB600-Monthly!CB588","v":2.1226984882649402},{"$f":"Monthly!CC600-Monthly!CC588","v":2.4026984882649405},{"$f":"(Monthly!CD600/Monthly!CD588)-1","v":-0.12316176470588236},{"$f":"(Monthly!CE600/Monthly!CE588)-1","v":-0.28381642512077299},null,{"$f":"(Monthly!CG600/Monthly!CG588)-1","v":0},{"$f":"(Monthly!CH600/Monthly!CH588)-1","v":-0.2884283246977547},null,{"$f":"(Monthly!CJ600/Monthly!CJ588)-1","v":-0.28381642512077299},{"$f":"(Monthly!CK600/Monthly!CK588)-1","v":4.5799847728618559E-2},{"$f":"(Monthly!CL600/Monthly!CL588)-1","v":0.21966341895482744},{"$f":"(Monthly!CM600/Monthly!CM588)-1","v":-0.39108494533221194},{"$f":"(Monthly!CN600/Monthly!CN588)-1","v":1.2736373748609475E-2},{"$f":"(Monthly!CO600/Monthly!CO588)-1","v":5.1968673466641579E-2},{"$f":"(Monthly!CP600/Monthly!CP588)-1","v":6.6976217767908297E-2},{"$f":"(Monthly!CQ600/Monthly!CQ588)-1","v":9.6708133589538114E-3},{"$f":"(Monthly!CR600/Monthly!CR588)-1","v":8.7571856306030371E-2},null,null,null,null,null,null,null,{"$f":"(Monthly!CZ600/Monthly!CZ588)-1","v":4.1429592706119678E-2},{"$f":"(Monthly!DA600/Monthly!DA588)-1","v":2.2970808329547898E-2},null,null,null,null,null,null,{"$f":"((Monthly!DH600-Monthly!DH588)*60)","v":0},{"$f":"((Monthly!DI600-Monthly!DI588)*100)","v":-29.999999999999716},{"$f":"((Monthly!DJ600-Monthly!DJ588)*100)","v":80.000000000000071},{"$f":"((Monthly!DK600-Monthly!DK588)*100)","v":40.000000000000036},{"$f":"Monthly!DL600-Monthly!DL588","v":-301},null,null,null,{"$f":"Monthly!DP600-Monthly!DP588","v":751},null,null,null,{"$f":"(Monthly!DT600/Monthly!DT588)-1","v":7.4360960495739814E-2},{"$f":"Monthly!DU600-Monthly!DU588","v":0.19999999999999929},{"$f":"(Monthly!DV600/Monthly!DV588)-1","v":-2.7467988434531132E-2},{"$f":"(Monthly!DW600/Monthly!DW588)-1","v":-2.8506915043748249E-2},{"$f":"(Monthly!DX600/Monthly!DX588)-1","v":-2.2277722277722178E-2},{"$f":"(Monthly!DY600/Monthly!DY588)-1","v":-1.9870410367170632E-2},{"$f":"(Monthly!DZ600/Monthly!DZ588)-1","v":-2.3001949317738801E-2},{"$f":"(Monthly!EA600/Monthly!EA588)-1","v":-1.9963031423290145E-2},{"$f":"(Monthly!EB600/Monthly!EB588)-1","v":-3.0196936542669639E-2},{"$f":"(Monthly!EC600/Monthly!EC588)-1","v":-4.3488707352234424E-2},null,null,null,null,null,null,null,null,null,null,null,null,null,{"$f":"(Monthly!EQ600/Monthly!EQ588)-1","v":9.5323741007194096E-2},{"$f":"(Monthly!ER600/Monthly!ER588)-1","v":2.4238657551274079E-2},{"$f":"(Monthly!ES600/Monthly!ES588)-1","v":1.8120805369127524E-2},null,null,null,null,null,{"$f":"((Monthly!EY600-Monthly!EY588)*100)","v":-225},{"$f":"((Monthly!EZ600-Monthly!EZ588)*100)","v":-227.99999999999997},{"$f":"((Monthly!FA600-Monthly!FA588)*100)","v":14.000000000000057},{"$f":"((Monthly!FB600-Monthly!FB588)*100)","v":54},"--",{"$f":"((Monthly!FD600-Monthly!FD588)*100)","v":-37.000000000000014},{"$f":"((Monthly!FE600-Monthly!FE588)*100)","v":-291},{"$f":"((Monthly!FF600-Monthly!FF588)*100)","v":-300},{"$f":"((Monthly!FG600-Monthly!FG588)*100)","v":-288},{"$f":"((Monthly!FH600-Monthly!FH588)*100)","v":-193.00000000000003},{"$f":"((Monthly!FI600-Monthly!FI588)*100)","v":-97.999999999999957},null,null,null,null,null,null,{"$f":"(Monthly!FP600/Monthly!FP588)-1","v":-0.14722459436379165},{"$f":"(Monthly!FQ600/Monthly!FQ588)-1","v":-7.5585146189775854E-2},{"$f":"(Monthly!FR600/Monthly!FR588)-1","v":-2.0663750216005417E-2},{"$f":"(Monthly!FS600/Monthly!FS588)-1","v":0.12836391437308858},{"$f":"(Monthly!FT600/Monthly!FT588)-1","v":-8.8240666019334224E-2},{"$f":"(Monthly!FU600/Monthly!FU588)-1","v":-0.11516941476669562},{"$f":"(Monthly!FV600/Monthly!FV588)-1","v":0.1613341892325626},{"$f":"(Monthly!FW600/Monthly!FW588)-1","v":4.5878926511248475E-2},{"$f":"(Monthly!FX600/Monthly!FX588)-1","v":0.16718836674855386},null,null,null,null,null,{"$f":"(Monthly!GD600/Monthly!GD588)-1","v":0.60901113736078294},{"$f":"(Monthly!GE600/Monthly!GE588)-1","v":0.65027797081306438},{"$f":"(Monthly!GF600/Monthly!GF588)-1","v":0.38457213538738366},{"$f":"(Monthly!GG600/Monthly!GG588)-1","v":0.35731511254019277},{"$f":"(Monthly!GH600/Monthly!GH588)-1","v":{"$error":"#DIV/0!"}},"--",{"$f":"(Monthly!GJ600/Monthly!GJ588)-1","v":0.1452425125894512},{"$f":"(Monthly!GK600/Monthly!GK588)-1","v":-1.9448946515397081E-2},"--"]
["2008-05-01",null,null,null,{"$f":"(Monthly!E603/Monthly!E591)-1","v":5.3637478440327069E-3},{"$f":"(Monthly!F603/Monthly!F591)-1","v":-2.1661591996520291E-2},{"$f":"(Monthly!G603/Monthly!G591)-1","v":2.5029051577722949E-3},{"$f":"(Monthly!H603/Monthly!H591)-1","v":1.1509144045072528E-2},null,null,null,null,null,null,null,null,null,null,null,null,null,null,null,{"$f":"(Monthly!X603-Monthly!X591)","v":-1.2999999999999972},{"$f":"(Monthly!Y603/Monthly!Y591)-1","v":0.19820951912615725},null,null,null,null,null,null,null,null,null,null,null,null,null,{"$f":"(Monthly!AM603/Monthly!AM591)-1","v":-1.5588439981785274E-2},{"$f":"(Monthly!AN603/Monthly!AN591)-1","v":-1.9468987051050046E-2},{"$f":"(Monthly!AO603/Monthly!AO591)-1","v":5.4629001212741501E-2},{"$f":"((Monthly!AP603-Monthly!AP591)*100)","v":-2.0000000000000018},{"$f":"Monthly!AQ603-Monthly!AQ591","v":-3.7000000000000028},{"$f":"Monthly!AR603-Monthly!AR591","v":-6.5},{"$f":"Monthly!AS603-Monthly!AS591","v":-1},{"$f":"Monthly!AT603-Monthly!AT591","v":-6.1000000000000014},{"$f":"Monthly!AU603-Monthly!AU591","v":0.5},{"$f":"Monthly!AV603-Monthly!AV591","v":-8},{"$f":"Monthly!AW603-Monthly!AW591","v":2},{"$f":"Monthly!AX603-Monthly!AX591","v":-10.100000000000001},{"$f":"Monthly!AY603-Monthly!AY591","v":16},{"$f":"Monthly!AZ603-Monthly!AZ591","v":-6.8000000000000043},{"$f":"Monthly!BA603-Monthly!BA591","v":2.9000000000000057},{"$f":"(Monthly!BB603/Monthly!BB591)-1","v":-8.2616179001721246E-2},{"$f":"(Monthly!BC603/Monthly!BC591)-1","v":5.8797976977256416E-2},null,null,null,null,null,null,null,null,null,{"$f":"(Monthly!BM603/Monthly!BM591)-1","v":1.343877993997844E-2},{"$f":"(Monthly!BN603/Monthly!BN591)-1","v":1.0854893979978186E-2},null,null,null,null,null,{"$f":"(Monthly!BT603/Monthly!BT591)-1","v":9.0007539784199508E-2},null,null,null,{"$f":"(Monthly!BX603/Monthly!BX591)-1","v":-0.31236749116607776},{"$f":"(Monthly!BY603/Monthly!BY591)-1","v":-0.33355659745478905},{"$f":"(Monthly!BZ603/Monthly!BZ591)-1","v":-0.1566588726929008},{"$f":"(Monthly!CA603/Monthly!CA591)-1","v":-0.11855670103092775},{"$f":"Monthly!CB603-Monthly!CB591","v":2.37852808045138},{"$f":"Monthly!CC603-Monthly!CC591","v":3.0785280804513793},{"$f":"(Monthly!CD603/Monthly!CD591)-1","v":-0.1724770642201835},{"$f":"(Monthly!CE603/Monthly!CE591)-1","v":-0.40142517814726841},null,{"$f":"(Monthly!CG603/Monthly!CG591)-1","v":-4.6035805626598481E-2},{"$f":"(Monthly!CH603/Monthly!CH591)-1","v":-0.21442125237191656},null,{"$f":"(Monthly!CJ603/Monthly!CJ591)-1","v":-0.40142517814726841},{"$f":"(Monthly!CK603/Monthly!CK591)-1","v":8.6657910807351524E-2},{"$f":"(Monthly!CL603/Monthly!CL591)-1","v":1.8782276059929868},{"$f":"(Monthly!CM603/Monthly!CM591)-1","v":-0.39911504424778765},{"$f":"(Monthly!CN603/Monthly!CN591)-1","v":5.7208915194673082E-2},{"$f":"(Monthly!CO603/Monthly!CO591)-1","v":6.3218238275962735E-2},{"$f":"(Monthly!CP603/Monthly!CP591)-1","v":5.9257866911690327E-2},{"$f":"(Monthly!CQ603/Monthly!CQ591)-1","v":9.4200999724693979E-3},{"$f":"(Monthly!CR603/Monthly!CR591)-1","v":7.3005998152796181E-2},null,null,null,null,null,null,null,{"$f":"(Monthly!CZ603/Monthly!CZ591)-1","v":4.088413823123993E-2},{"$f":"(Monthly!DA603/Monthly!DA591)-1","v":2.3222157689781087E-2},null,null,null,null,null,null,{"$f":"((Monthly!DH603-Monthly!DH591)*60)","v":-5.9999999999996589},{"$f":"((Monthly!DI603-Monthly!DI591)*100)","v":9.9999999999994316},{"$f":"((Monthly!DJ603-Monthly!DJ591)*100)","v":150},{"$f":"((Monthly!DK603-Monthly!DK591)*100)","v":100},{"$f":"Monthly!DL603-Monthly!DL591","v":-365},null,null,null,{"$f":"Monthly!DP603-Monthly!DP591","v":-136},null,null,null,{"$f":"(Monthly!DT603/Monthly!DT591)-1","v":0.1986928104575163},{"$f":"Monthly!DU603-Monthly!DU591","v":-0.29999999999999893},{"$f":"(Monthly!DV603/Monthly!DV591)-1","v":-3.0752258153485479E-2},{"$f":"(Monthly!DW603/Monthly!DW591)-1","v":-2.8359964031265172E-2},{"$f":"(Monthly!DX603/Monthly!DX591)-1","v":-2.8789077958052967E-2},{"$f":"(Monthly!DY603/Monthly!DY591)-1","v":-2.9610829103214886E-2},{"$f":"(Monthly!DZ603/Monthly!DZ591)-1","v":-2.8538223140495922E-2},{"$f":"(Monthly!EA603/Monthly!EA591)-1","v":-2.5969275786393409E-2},{"$f":"(Monthly!EB603/Monthly!EB591)-1","v":-3.4710017574692498E-2},{"$f":"(Monthly!EC603/Monthly!EC591)-1","v":-2.736261209473434E-2},null,null,null,null,null,null,null,null,null,null,null,null,null,{"$f":"(Monthly!EQ603/Monthly!EQ591)-1","v":0.13444893248701661},{"$f":"(Monthly!ER603/Monthly!ER591)-1","v":3.0359355638166052E-2},{"$f":"(Monthly!ES603/Monthly!ES591)-1","v":2.409638554216853E-2},null,null,null,null,null,{"$f":"((Monthly!EY603-Monthly!EY591)*100)","v":-325},{"$f":"((Monthly!EZ603-Monthly!EZ591)*100)","v":-327},{"$f":"((Monthly!FA603-Monthly!FA591)*100)","v":10.000000000000053},{"$f":"((Monthly!FB603-Monthly!FB591)*100)","v":54},"--",{"$f":"((Monthly!FD603-Monthly!FD591)*100)","v":-21.999999999999975},{"$f":"((Monthly!FE603-Monthly!FE591)*100)","v":-300.00000000000006},{"$f":"((Monthly!FF603-Monthly!FF591)*100)","v":-285},{"$f":"((Monthly!FG603-Monthly!FG591)*100)","v":-231.99999999999994},{"$f":"((Monthly!FH603-Monthly!FH591)*100)","v":-152},{"$f":"((Monthly!FI603-Monthly!FI591)*100)","v":-87.000000000000014},null,null,null,null,null,null,{"$f":"(Monthly!FP603/Monthly!FP591)-1","v":-8.7480595379417436E-2},{"$f":"(Monthly!FQ603/Monthly!FQ591)-1","v":-9.180310786344148E-2},{"$f":"(Monthly!FR603/Monthly!FR591)-1","v":-3.5482946932665627E-2},{"$f":"(Monthly!FS603/Monthly!FS591)-1","v":0.15061399615327709},{"$f":"(Monthly!FT603/Monthly!FT591)-1","v":-8.2898709329333409E-2},{"$f":"(Monthly!FU603/Monthly!FU591)-1","v":-0.10845699499636841},{"$f":"(Monthly!FV603/Monthly!FV591)-1","v":0.1244683340700814},{"$f":"(Monthly!FW603/Monthly!FW591)-1","v":9.267870275912804E-2},{"$f":"(Monthly!FX603/Monthly!FX591)-1","v":4.5413427012747754E-2},null,null,null,null,null,{"$f":"(Monthly!GD603/Monthly!GD591)-1","v":0.9758903246139301},{"$f":"(Monthly!GE603/Monthly!GE591)-1","v":0.82710906115161453},{"$f":"(Monthly!GF603/Monthly!GF591)-1","v":0.23510078878177043},{"$f":"(Monthly!GG603/Monthly!GG591)-1","v":0.58261802575107291},{"$f":"(Monthly!GH603/Monthly!GH591)-1","v":{"$error":"#DIV/0!"}},"--",{"$f":"(Monthly!GJ603/Monthly!GJ591)-1","v":0.45518475898222732},{"$f":"(Monthly!GK603/Monthly!GK591)-1","v":-1.5562367366187213E-2},"--"]
["2008-09-01",null,null,null,{"$f":"(Monthly!E607/Monthly!E595)-1","v":-1.1875353433137947E-2},{"$f":"(Monthly!F607/Monthly!F595)-1","v":-8.866952789699567E-2},{"$f":"(Monthly!G607/Monthly!G595)-1","v":-2.2439765768181963E-2},{"$f":"(Monthly!H607/Monthly!H595)-1","v":6.0399868109468624E-3},null,null,null,null,null,null,null,null,null,null,null,null,null,null,null,{"$f":"(Monthly!X607-Monthly!X595)","v":-6.5},{"$f":"(Monthly!Y607/Monthly!Y595)-1","v":0.13403088877842895},null,null,null,null,null,null,null,null,null,null,null,null,null,{"$f":"(Monthly!AM607/Monthly!AM595)-1","v":-8.2948315101960213E-2},{"$f":"(Monthly!AN607/Monthly!AN595)-1","v":-8.7116475973174512E-2},{"$f":"(Monthly!AO607/Monthly!AO595)-1","v":4.6389047222493929E-2},{"$f":"((Monthly!AP607-Monthly!AP595)*100)","v":3.0000000000000027},{"$f":"Monthly!AQ607-Monthly!AQ595","v":-6.2000000000000028},{"$f":"Monthly!AR607-Monthly!AR595","v":-16},{"$f":"Monthly!AS607-Monthly!AS595","v":3.5},{"$f":"Monthly!AT607-Monthly!AT595","v":-9.8999999999999986},{"$f":"Monthly!AU607-Monthly!AU595","v":-2.5},{"$f":"Monthly!AV607-Monthly!AV595","v":-9},{"$f":"Monthly!AW607-Monthly!AW595","v":1.5},{"$f":"Monthly!AX607-Monthly!AX595","v":-12.600000000000001},{"$f":"Monthly!AY607-Monthly!AY595","v":-5.5},{"$f":"Monthly!AZ607-Monthly!AZ595","v":-10.899999999999999},{"$f":"Monthly!BA607-Monthly!BA595","v":0.89999999999999858},{"$f":"(Monthly!BB607/Monthly!BB595)-1","v":-7.011070110701112E-2},{"$f":"(Monthly!BC607/Monthly!BC595)-1","v":-2.7592623663458493E-2},null,null,null,null,null,null,null,null,null,{"$f":"(Monthly!BM607/Monthly!BM595)-1","v":-1.7587468091039726E-2},{"$f":"(Monthly!BN607/Monthly!BN595)-1","v":-2.2288522811608646E-2},null,null,null,null,null,{"$f":"(Monthly!BT607/Monthly!BT595)-1","v":8.1760135842385617E-2},null,null,null,{"$f":"(Monthly!BX607/Monthly!BX595)-1","v":-0.30684699915469149},{"$f":"(Monthly!BY607/Monthly!BY595)-1","v":-0.36796193497224428},{"$f":"(Monthly!BZ607/Monthly!BZ595)-1","v":-0.1761263593992749},{"$f":"(Monthly!CA607/Monthly!CA595)-1","v":-0.21674177418359164},{"$f":"Monthly!CB607-Monthly!CB595","v":3.5194934451558071},{"$f":"Monthly!CC607-Monthly!CC595","v":4.4994934451558066},{"$f":"(Monthly!CD607/Monthly!CD595)-1","v":-0.25047438330170779},{"$f":"(Monthly!CE607/Monthly!CE595)-1","v":-0.36880466472303208},null,{"$f":"(Monthly!CG607/Monthly!CG595)-1","v":-7.1979434447300816E-2},{"$f":"(Monthly!CH607/Monthly!CH595)-1","v":-6.7685589519650646E-2},null,{"$f":"(Monthly!CJ607/Monthly!CJ595)-1","v":-0.36880466472303208},{"$f":"(Monthly!CK607/Monthly!CK595)-1","v":3.2910388580491556E-2},{"$f":"(Monthly!CL607/Monthly!CL595)-1","v":0.6140995656531909},{"$f":"(Monthly!CM607/Monthly!CM595)-1","v":-0.42566844919786095},{"$f":"(Monthly!CN607/Monthly!CN595)-1","v":1.8141299543243949E-3},{"$f":"(Monthly!CO607/Monthly!CO595)-1","v":4.882036907264653E-2},{"$f":"(Monthly!CP607/Monthly!CP595)-1","v":3.4527642706333017E-2},{"$f":"(Monthly!CQ607/Monthly!CQ595)-1","v":9.1324955543949926E-3},{"$f":"(Monthly!CR607/Monthly!CR595)-1","v":3.8040089808321742E-2},null,null,null,null,null,null,null,{"$f":"(Monthly!CZ607/Monthly!CZ595)-1","v":4.9533198751360752E-2},{"$f":"(Monthly!DA607/Monthly!DA595)-1","v":2.4386208722122937E-2},null,null,null,null,null,null,{"$f":"((Monthly!DH607-Monthly!DH595)*60)","v":-11.999999999999744},{"$f":"((Monthly!DI607-Monthly!DI595)*100)","v":0},{"$f":"((Monthly!DJ607-Monthly!DJ595)*100)","v":259.99999999999994},{"$f":"((Monthly!DK607-Monthly!DK595)*100)","v":139.99999999999994},{"$f":"Monthly!DL607-Monthly!DL595","v":-515},null,null,null,{"$f":"Monthly!DP607-Monthly!DP595","v":-1337},null,null,null,{"$f":"(Monthly!DT607/Monthly!DT595)-1","v":0.48124501197126901},{"$f":"Monthly!DU607-Monthly!DU595","v":1.5},{"$f":"(Monthly!DV607/Monthly!DV595)-1","v":-4.2850164003070734E-2},{"$f":"(Monthly!DW607/Monthly!DW595)-1","v":-4.1572184429327308E-2},{"$f":"(Monthly!DX607/Monthly!DX595)-1","v":-3.1794770206022172E-2},{"$f":"(Monthly!DY607/Monthly!DY595)-1","v":-3.3444816053511683E-2},{"$f":"(Monthly!DZ607/Monthly!DZ595)-1","v":-3.1282450674974038E-2},{"$f":"(Monthly!EA607/Monthly!EA595)-1","v":-1.8107908351810864E-2},{"$f":"(Monthly!EB607/Monthly!EB595)-1","v":-6.2390924956369886E-2},{"$f":"(Monthly!EC607/Monthly!EC595)-1","v":-6.3719991025353306E-2},null,null,null,null,null,null,null,null,null,null,null,null,null,{"$f":"(Monthly!EQ607/Monthly!EQ595)-1","v":0.13487031700288177},{"$f":"(Monthly!ER607/Monthly!ER595)-1","v":4.0665434380776411E-2},{"$f":"(Monthly!ES607/Monthly!ES595)-1","v":3.5380507343124146E-2},null,null,null,null,null,{"$f":"((Monthly!EY607-Monthly!EY595)*100)","v":-302.99999999999994},{"$f":"((Monthly!EZ607-Monthly!EZ595)*100)","v":-313.00000000000006},{"$f":"((Monthly!FA607-Monthly!FA595)*100)","v":-8.9999999999999858},{"$f":"((Monthly!FB607-Monthly!FB595)*100)","v":71.999999999999972},"--",{"$f":"((Monthly!FD607-Monthly!FD595)*100)","v":-33.999999999999986},{"$f":"((Monthly!FE607-Monthly!FE595)*100)","v":-276},{"$f":"((Monthly!FF607-Monthly!FF595)*100)","v":-222.99999999999994},{"$f":"((Monthly!FG607-Monthly!FG595)*100)","v":-192.99999999999997},{"$f":"((Monthly!FH607-Monthly!FH595)*100)","v":-132.00000000000003},{"$f":"((Monthly!FI607-Monthly!FI595)*100)","v":-82.999999999999957},null,null,null,null,null,null,{"$f":"(Monthly!FP607/Monthly!FP595)-1","v":3.0680822051232237E-2},{"$f":"(Monthly!FQ607/Monthly!FQ595)-1","v":-9.178300757877933E-2},{"$f":"(Monthly!FR607/Monthly!FR595)-1","v":-3.341219554201913E-2},{"$f":"(Monthly!FS607/Monthly!FS595)-1","v":3.1056793673616134E-2},{"$f":"(Monthly!FT607/Monthly!FT595)-1","v":-1.8636373870897338E-2},{"$f":"(Monthly!FU607/Monthly!FU595)-1","v":-6.4743812258722944E-3},{"$f":"(Monthly!FV607/Monthly!FV595)-1","v":0.12363825135369644},{"$f":"(Monthly!FW607/Monthly!FW595)-1","v":0.12439919779734177},{"$f":"(Monthly!FX607/Monthly!FX595)-1","v":6.5187730557381141E-3},null,null,null,null,null,{"$f":"(Monthly!GD607/Monthly!GD595)-1","v":0.29988740147629178},{"$f":"(Monthly!GE607/Monthly!GE595)-1","v":0.25994557470519641},{"$f":"(Monthly!GF607/Monthly!GF595)-1","v":0.34192455185944892},{"$f":"(Monthly!GG607/Monthly!GG595)-1","v":0.36268201828648849},{"$f":"(Monthly!GH607/Monthly!GH595)-1","v":{"$error":"#DIV/0!"}},"--",{"$f":"(Monthly!GJ607/Monthly!GJ595)-1","v":0.2095992243051068},{"$f":"(Monthly!GK607/Monthly!GK595)-1","v":-1.4790076335877811E-2},"--"]
["2009-03-01",null,null,null,{"$f":"(Monthly!E613/Monthly!E601)-1","v":-2.3939183146179044E-2},{"$f":"(Monthly!F613/Monthly!F601)-1","v":-0.10857091626322402},{"$f":"(Monthly!G613/Monthly!G601)-1","v":-2.9212077898874478E-2},{"$f":"(Monthly!H613/Monthly!H601)-1","v":-7.782913374086764E-3},null,null,null,null,null,null,null,null,null,null,null,null,null,null,null,{"$f":"(Monthly!X613-Monthly!X601)","v":-12},{"$f":"(Monthly!Y613/Monthly!Y601)-1","v":2.7579598435292896E-2},null,null,null,null,null,null,null,null,null,null,null,null,null,{"$f":"(Monthly!AM613/Monthly!AM601)-1","v":-0.14582365667189245},{"$f":"(Monthly!AN613/Monthly!AN601)-1","v":-0.17708319710950149},{"$f":"(Monthly!AO613/Monthly!AO601)-1","v":-6.7413850675167475E-2},{"$f":"((Monthly!AP613-Monthly!AP601)*100)","v":18.999999999999993},{"$f":"Monthly!AQ613-Monthly!AQ601","v":-12.299999999999997},{"$f":"Monthly!AR613-Monthly!AR601","v":-12},{"$f":"Monthly!AS613-Monthly!AS601","v":3},{"$f":"Monthly!AT613-Monthly!AT601","v":-19.800000000000004},{"$f":"Monthly!AU613-Monthly!AU601","v":-17.5},{"$f":"Monthly!AV613-Monthly!AV601","v":-12},{"$f":"Monthly!AW613-Monthly!AW601","v":-13.5},{"$f":"Monthly!AX613-Monthly!AX601","v":-5.6000000000000014},{"$f":"Monthly!AY613-Monthly!AY601","v":-52.5},{"$f":"Monthly!AZ613-Monthly!AZ601","v":-12.199999999999996},{"$f":"Monthly!BA613-Monthly!BA601","v":-10.300000000000004},{"$f":"(Monthly!BB613/Monthly!BB601)-1","v":-0.17214700193423604},{"$f":"(Monthly!BC613/Monthly!BC601)-1","v":-0.25555555555555554},null,null,null,null,null,null,null,null,null,{"$f":"(Monthly!BM613/Monthly!BM601)-1","v":-0.11460703705293895},{"$f":"(Monthly!BN613/Monthly!BN601)-1","v":-0.12735449293353707},null,null,null,null,null,{"$f":"(Monthly!BT613/Monthly!BT601)-1","v":9.9469686309070049E-2},null,null,null,{"$f":"(Monthly!BX613/Monthly!BX601)-1","v":-0.49751243781094523},{"$f":"(Monthly!BY613/Monthly!BY601)-1","v":-0.46949327817993791},{"$f":"(Monthly!BZ613/Monthly!BZ601)-1","v":-0.18451362755160217},{"$f":"(Monthly!CA613/Monthly!CA601)-1","v":-0.35437647854004739},{"$f":"Monthly!CB613-Monthly!CB601","v":-0.82138231779681803},{"$f":"Monthly!CC613-Monthly!CC601","v":1.6986176822031815},{"$f":"(Monthly!CD613/Monthly!CD601)-1","v":-0.33829787234042552},{"$f":"(Monthly!CE613/Monthly!CE601)-1","v":-0.36635514018691584},null,{"$f":"(Monthly!CG613/Monthly!CG601)-1","v":-9.3841642228739031E-2},{"$f":"(Monthly!CH613/Monthly!CH601)-1","v":-5.2884615384615419E-2},null,{"$f":"(Monthly!CJ613/Monthly!CJ601)-1","v":-0.36635514018691584},{"$f":"(Monthly!CK613/Monthly!CK601)-1","v":-3.4499127062666335E-2},{"$f":"(Monthly!CL613/Monthly!CL601)-1","v":0.53729249473930318},{"$f":"(Monthly!CM613/Monthly!CM601)-1","v":-0.51510989010989006},{"$f":"(Monthly!CN613/Monthly!CN601)-1","v":-2.9045339958349015E-3},{"$f":"(Monthly!CO613/Monthly!CO601)-1","v":9.6787209360972293E-2},{"$f":"(Monthly!CP613/Monthly!CP601)-1","v":-9.0844617826396634E-3},{"$f":"(Monthly!CQ613/Monthly!CQ601)-1","v":8.8217777148931198E-3},{"$f":"(Monthly!CR613/Monthly!CR601)-1","v":-7.7112024613488983E-2},null,null,null,null,null,null,null,{"$f":"(Monthly!CZ613/Monthly!CZ601)-1","v":-4.4647876766238381E-3},{"$f":"(Monthly!DA613/Monthly!DA601)-1","v":1.7876130957932945E-2},null,null,null,null,null,null,{"$f":"((Monthly!DH613-Monthly!DH601)*60)","v":-41.999999999999744},{"$f":"((Monthly!DI613-Monthly!DI601)*100)","v":-50},{"$f":"((Monthly!DJ613-Monthly!DJ601)*100)","v":670.00000000000011},{"$f":"((Monthly!DK613-Monthly!DK601)*100)","v":359.99999999999994},{"$f":"Monthly!DL613-Monthly!DL601","v":-1451},null,null,null,{"$f":"Monthly!DP613-Monthly!DP601","v":-5740},null,null,null,{"$f":"(Monthly!DT613/Monthly!DT601)-1","v":0.81012658227848111},{"$f":"Monthly!DU613-Monthly!DU601","v":3.6000000000000014},{"$f":"(Monthly!DV613/Monthly!DV601)-1","v":-8.5494241503568102E-2},{"$f":"(Monthly!DW613/Monthly!DW601)-1","v":-8.7087951633798788E-2},{"$f":"(Monthly!DX613/Monthly!DX601)-1","v":-8.9243919812760808E-2},{"$f":"(Monthly!DY613/Monthly!DY601)-1","v":-9.5026642984014087E-2},{"$f":"(Monthly!DZ613/Monthly!DZ601)-1","v":-8.7524752475247491E-2},{"$f":"(Monthly!EA613/Monthly!EA601)-1","v":-8.3520179372197356E-2},{"$f":"(Monthly!EB613/Monthly!EB601)-1","v":-9.7165991902834148E-2},{"$f":"(Monthly!EC613/Monthly!EC601)-1","v":-8.1878534546348636E-2},null,null,null,null,null,null,null,null,null,null,null,null,null,{"$f":"(Monthly!EQ613/Monthly!EQ601)-1","v":-0.10537519957424168},{"$f":"(Monthly!ER613/Monthly!ER601)-1","v":3.6947304663839997E-2},{"$f":"(Monthly!ES613/Monthly!ES601)-1","v":3.2258064516129004E-2},null,null,null,null,null,{"$f":"((Monthly!EY613-Monthly!EY601)*100)","v":-241},{"$f":"((Monthly!EZ613-Monthly!EZ601)*100)","v":-242.99999999999997},{"$f":"((Monthly!FA613-Monthly!FA601)*100)","v":-0.99999999999997868},{"$f":"((Monthly!FB613-Monthly!FB601)*100)","v":153.00000000000003},"--",{"$f":"((Monthly!FD613-Monthly!FD601)*100)","v":-96.999999999999972},{"$f":"((Monthly!FE613-Monthly!FE601)*100)","v":-105},{"$f":"((Monthly!FF613-Monthly!FF601)*100)","v":-90},{"$f":"((Monthly!FG613-Monthly!FG601)*100)","v":-69},{"$f":"((Monthly!FH613-Monthly!FH601)*100)","v":-65.999999999999986},{"$f":"((Monthly!FI613-Monthly!FI601)*100)","v":-69},null,null,null,null,null,null,{"$f":"(Monthly!FP613/Monthly!FP601)-1","v":0.26084355369428658},{"$f":"(Monthly!FQ613/Monthly!FQ601)-1","v":-3.3398376742739044E-2},{"$f":"(Monthly!FR613/Monthly!FR601)-1","v":0.36465787119856885},{"$f":"(Monthly!FS613/Monthly!FS601)-1","v":-0.15914948453608257},{"$f":"(Monthly!FT613/Monthly!FT601)-1","v":0.1713292218184852},{"$f":"(Monthly!FU613/Monthly!FU601)-1","v":0.19433395221617866},{"$f":"(Monthly!FV613/Monthly!FV601)-1","v":-0.40286639081687126},{"$f":"(Monthly!FW613/Monthly!FW601)-1","v":-5.4166183902104259E-2},{"$f":"(Monthly!FX613/Monthly!FX601)-1","v":-0.21333250504035095},null,null,null,null,null,{"$f":"(Monthly!GD613/Monthly!GD601)-1","v":-0.54547176960970067},{"$f":"(Monthly!GE613/Monthly!GE601)-1","v":-0.550945580856812},{"$f":"(Monthly!GF613/Monthly!GF601)-1","v":-0.38928701566865065},{"$f":"(Monthly!GG613/Monthly!GG601)-1","v":-0.46096366915743359},{"$f":"(Monthly!GH613/Monthly!GH601)-1","v":{"$error":"#DIV/0!"}},"--",{"$f":"(Monthly!GJ613/Monthly!GJ601)-1","v":-0.58416458852867836},{"$f":"(Monthly!GK613/Monthly!GK601)-1","v":-7.4039796390559909E-2},"--"]
["2009-08-01",null,null,null,{"$f":"(Monthly!E618/Monthly!E606)-1","v":-9.2755126466129711E-3},{"$f":"(Monthly!F618/Monthly!F606)-1","v":4.8864356166864464E-3},{"$f":"(Monthly!G618/Monthly!G606)-1","v":-2.0436641908620379E-2},{"$f":"(Monthly!H618/Monthly!H606)-1","v":-7.7473093400607373E-3},null,null,null,null,null,null,null,null,null,null,null,null,null,null,null,{"$f":"(Monthly!X618-Monthly!X606)","v":-9.5999999999999943},{"$f":"(Monthly!Y618/Monthly!Y606)-1","v":-9.9189277120571351E-2},null,null,null,null,null,null,null,null,null,null,null,null,null,{"$f":"(Monthly!AM618/Monthly!AM606)-1","v":-0.11829116590261435},{"$f":"(Monthly!AN618/Monthly!AN606)-1","v":-0.13640554255556037},{"$f":"(Monthly!AO618/Monthly!AO606)-1","v":-0.14228405349613749},{"$f":"((Monthly!AP618-Monthly!AP606)*100)","v":3.0000000000000027},{"$f":"Monthly!AQ618-Monthly!AQ606","v":4.2999999999999972},{"$f":"Monthly!AR618-Monthly!AR606","v":9},{"$f":"Monthly!AS618-Monthly!AS606","v":-15.5},{"$f":"Monthly!AT618-Monthly!AT606","v":-1.6999999999999957},{"$f":"Monthly!AU618-Monthly!AU606","v":-1.5},{"$f":"Monthly!AV618-Monthly!AV606","v":1},{"$f":"Monthly!AW618-Monthly!AW606","v":-14.5},{"$f":"Monthly!AX618-Monthly!AX606","v":18.599999999999994},{"$f":"Monthly!AY618-Monthly!AY606","v":-12},{"$f":"Monthly!AZ618-Monthly!AZ606","v":12.800000000000004},{"$f":"Monthly!BA618-Monthly!BA606","v":6.4000000000000057},{"$f":"(Monthly!BB618/Monthly!BB606)-1","v":1.9569471624266255E-2},{"$f":"(Monthly!BC618/Monthly!BC606)-1","v":-0.24916067146282972},null,null,null,null,null,null,null,null,null,{"$f":"(Monthly!BM618/Monthly!BM606)-1","v":-6.8406823751988699E-2},{"$f":"(Monthly!BN618/Monthly!BN606)-1","v":-7.43598653230928E-2},null,null,null,null,null,{"$f":"(Monthly!BT618/Monthly!BT606)-1","v":2.4764747741554238E-2},null,null,null,{"$f":"(Monthly!BX618/Monthly!BX606)-1","v":-0.30568720379146919},{"$f":"(Monthly!BY618/Monthly!BY606)-1","v":-0.28205128205128205},{"$f":"(Monthly!BZ618/Monthly!BZ606)-1","v":-0.11499784070578078},{"$f":"(Monthly!CA618/Monthly!CA606)-1","v":5.2985398294058239E-2},{"$f":"Monthly!CB618-Monthly!CB606","v":-3.2918527284180001},{"$f":"Monthly!CC618-Monthly!CC606","v":-0.84185272841800085},{"$f":"(Monthly!CD618/Monthly!CD606)-1","v":-0.36185819070904646},{"$f":"(Monthly!CE618/Monthly!CE606)-1","v":-3.9080459770114984E-2},null,{"$f":"(Monthly!CG618/Monthly!CG606)-1","v":-8.5872576177285276E-2},{"$f":"(Monthly!CH618/Monthly!CH606)-1","v":5.0119331742243478E-2},null,{"$f":"(Monthly!CJ618/Monthly!CJ606)-1","v":-3.9080459770114984E-2},{"$f":"(Monthly!CK618/Monthly!CK606)-1","v":-3.5105548709248979E-2},{"$f":"(Monthly!CL618/Monthly!CL606)-1","v":0.31824962705121851},{"$f":"(Monthly!CM618/Monthly!CM606)-1","v":-0.19769357495881379},{"$f":"(Monthly!CN618/Monthly!CN606)-1","v":2.3650234201735287E-3},{"$f":"(Monthly!CO618/Monthly!CO606)-1","v":0.1315841584158417},{"$f":"(Monthly!CP618/Monthly!CP606)-1","v":-3.1063269560024143E-2},{"$f":"(Monthly!CQ618/Monthly!CQ606)-1","v":8.6544608172565152E-3},{"$f":"(Monthly!CR618/Monthly!CR606)-1","v":-6.5593079476790495E-2},null,null,null,null,null,null,null,{"$f":"(Monthly!CZ618/Monthly!CZ606)-1","v":-1.4838355663267633E-2},{"$f":"(Monthly!DA618/Monthly!DA606)-1","v":1.4339650543224725E-2},null,null,null,null,null,null,{"$f":"((Monthly!DH618-Monthly!DH606)*60)","v":-36.000000000000085},{"$f":"((Monthly!DI618-Monthly!DI606)*100)","v":-69.999999999998863},{"$f":"((Monthly!DJ618-Monthly!DJ606)*100)","v":589.99999999999989},{"$f":"((Monthly!DK618-Monthly!DK606)*100)","v":350},{"$f":"Monthly!DL618-Monthly!DL606","v":-1732},null,null,null,{"$f":"Monthly!DP618-Monthly!DP606","v":-6751},null,null,null,{"$f":"(Monthly!DT618/Monthly!DT606)-1","v":0.30518345952242276},{"$f":"Monthly!DU618-Monthly!DU606","v":6.6000000000000014},{"$f":"(Monthly!DV618/Monthly!DV606)-1","v":-9.3711556552572572E-2},{"$f":"(Monthly!DW618/Monthly!DW606)-1","v":-9.486306229601249E-2},{"$f":"(Monthly!DX618/Monthly!DX606)-1","v":-0.10656071719641402},{"$f":"(Monthly!DY618/Monthly!DY606)-1","v":-0.1097246127366609},{"$f":"(Monthly!DZ618/Monthly!DZ606)-1","v":-0.10557928457020826},{"$f":"(Monthly!EA618/Monthly!EA606)-1","v":-0.11106934786694234},{"$f":"(Monthly!EB618/Monthly!EB606)-1","v":-9.2123445416858574E-2},{"$f":"(Monthly!EC618/Monthly!EC606)-1","v":-6.8022440392706884E-2},null,null,null,null,null,null,null,null,null,null,null,null,null,{"$f":"(Monthly!EQ618/Monthly!EQ606)-1","v":-0.12060301507537685},{"$f":"(Monthly!ER618/Monthly!ER606)-1","v":2.2010707911957361E-2},{"$f":"(Monthly!ES618/Monthly!ES606)-1","v":1.487710219922378E-2},null,null,null,null,null,{"$f":"((Monthly!EY618-Monthly!EY606)*100)","v":-175},{"$f":"((Monthly!EZ618-Monthly!EZ606)*100)","v":-184},{"$f":"((Monthly!FA618-Monthly!FA606)*100)","v":-37.999999999999986},{"$f":"((Monthly!FB618-Monthly!FB606)*100)","v":-57.000000000000028},"--",{"$f":"((Monthly!FD618-Monthly!FD606)*100)","v":-129},{"$f":"((Monthly!FE618-Monthly!FE606)*100)","v":-155},{"$f":"((Monthly!FF618-Monthly!FF606)*100)","v":-172.00000000000003},{"$f":"((Monthly!FG618-Monthly!FG606)*100)","v":-129.99999999999997},{"$f":"((Monthly!FH618-Monthly!FH606)*100)","v":-57.000000000000028},{"$f":"((Monthly!FI618-Monthly!FI606)*100)","v":-30.000000000000028},null,null,null,null,null,null,{"$f":"(Monthly!FP618/Monthly!FP606)-1","v":3.1988609397247014E-2},{"$f":"(Monthly!FQ618/Monthly!FQ606)-1","v":-2.0303233910782259E-3},{"$f":"(Monthly!FR618/Monthly!FR606)-1","v":0.28579196077268332},{"$f":"(Monthly!FS618/Monthly!FS606)-1","v":-4.6071547977265093E-2},{"$f":"(Monthly!FT618/Monthly!FT606)-1","v":5.6258747331106251E-2},{"$f":"(Monthly!FU618/Monthly!FU606)-1","v":1.7426325943987964E-2},{"$f":"(Monthly!FV618/Monthly!FV606)-1","v":-0.35887032246019257},{"$f":"(Monthly!FW618/Monthly!FW606)-1","v":-0.18934316248582039},{"$f":"(Monthly!FX618/Monthly!FX606)-1","v":-0.22856864793984466},null,null,null,null,null,{"$f":"(Monthly!GD618/Monthly!GD606)-1","v":-0.39061830031729694},{"$f":"(Monthly!GE618/Monthly!GE606)-1","v":-0.35967855881314015},{"$f":"(Monthly!GF618/Monthly!GF606)-1","v":-0.29010509617291291},{"$f":"(Monthly!GG618/Monthly!GG606)-1","v":-0.38772663877266389},{"$f":"(Monthly!GH618/Monthly!GH606)-1","v":{"$error":"#DIV/0!"}},"--",{"$f":"(Monthly!GJ618/Monthly!GJ606)-1","v":-0.60185519816889532},{"$f":"(Monthly!GK618/Monthly!GK606)-1","v":-0.20741268709907346},"--"]
["2010-01-01",null,null,null,{"$f":"(Monthly!E623/Monthly!E611)-1","v":-2.5292891685724239E-4},{"$f":"(Monthly!F623/Monthly!F611)-1","v":3.0238002341005377E-3},{"$f":"(Monthly!G623/Monthly!G611)-1","v":6.1011973026283695E-3},{"$f":"(Monthly!H623/Monthly!H611)-1","v":-2.9792649150385264E-3},null,null,null,null,null,null,null,null,null,null,null,null,null,null,null,{"$f":"(Monthly!X623-Monthly!X611)","v":0.79999999999999716},{"$f":"(Monthly!Y623/Monthly!Y611)-1","v":-0.19819341085191033},null,null,null,null,null,null,null,null,null,null,null,null,null,{"$f":"(Monthly!AM623/Monthly!AM611)-1","v":3.6379898653646769E-3},{"$f":"(Monthly!AN623/Monthly!AN611)-1","v":1.5149371375731802E-2},{"$f":"(Monthly!AO623/Monthly!AO611)-1","v":-7.9969451720586893E-2},{"$f":"((Monthly!AP623-Monthly!AP611)*100)","v":-20.999999999999996},{"$f":"Monthly!AQ623-Monthly!AQ611","v":22.300000000000004},{"$f":"Monthly!AR623-Monthly!AR611","v":26.5},{"$f":"Monthly!AS623-Monthly!AS611","v":-23.5},{"$f":"Monthly!AT623-Monthly!AT611","v":24.400000000000002},{"$f":"Monthly!AU623-Monthly!AU611","v":21},{"$f":"Monthly!AV623-Monthly!AV611","v":20},{"$f":"Monthly!AW623-Monthly!AW611","v":8},{"$f":"Monthly!AX623-Monthly!AX611","v":29.200000000000003},{"$f":"Monthly!AY623-Monthly!AY611","v":41},{"$f":"Monthly!AZ623-Monthly!AZ611","v":32.9},{"$f":"Monthly!BA623-Monthly!BA611","v":14.299999999999997},{"$f":"(Monthly!BB623/Monthly!BB611)-1","v":0.16780045351473927},{"$f":"(Monthly!BC623/Monthly!BC611)-1","v":5.4503752288594276E-2},null,null,null,null,null,null,null,null,null,{"$f":"(Monthly!BM623/Monthly!BM611)-1","v":2.7704070426632033E-2},{"$f":"(Monthly!BN623/Monthly!BN611)-1","v":3.3223680908096132E-2},null,null,null,null,null,{"$f":"(Monthly!BT623/Monthly!BT611)-1","v":-7.6612112196094206E-2},null,null,null,{"$f":"(Monthly!BX623/Monthly!BX611)-1","v":0.25306122448979584},{"$f":"(Monthly!BY623/Monthly!BY611)-1","v":0.16697247706422025},{"$f":"(Monthly!BZ623/Monthly!BZ611)-1","v":-5.4167513034059089E-3},{"$f":"(Monthly!CA623/Monthly!CA611)-1","v":0.11426780864842279},{"$f":"Monthly!CB623-Monthly!CB611","v":4.7346974079988424},{"$f":"Monthly!CC623-Monthly!CC611","v":6.1346974079988428},{"$f":"(Monthly!CD623/Monthly!CD611)-1","v":-0.31671554252199419},{"$f":"(Monthly!CE623/Monthly!CE611)-1","v":2.6785714285714191E-2},null,{"$f":"(Monthly!CG623/Monthly!CG611)-1","v":-9.2409240924092417E-2},{"$f":"(Monthly!CH623/Monthly!CH611)-1","v":0.12239583333333326},null,{"$f":"(Monthly!CJ623/Monthly!CJ611)-1","v":2.6785714285714191E-2},{"$f":"(Monthly!CK623/Monthly!CK611)-1","v":7.3601448977071993E-3},{"$f":"(Monthly!CL623/Monthly!CL611)-1","v":-0.10961648540354885},{"$f":"(Monthly!CM623/Monthly!CM611)-1","v":0.42458100558659218},{"$f":"(Monthly!CN623/Monthly!CN611)-1","v":-9.8410363954933855E-3},{"$f":"(Monthly!CO623/Monthly!CO611)-1","v":0.15204761904761921},{"$f":"(Monthly!CP623/Monthly!CP611)-1","v":-4.065167666466607E-2},{"$f":"(Monthly!CQ623/Monthly!CQ611)-1","v":8.5726042428675431E-3},{"$f":"(Monthly!CR623/Monthly!CR611)-1","v":-5.1903044203503002E-2},null,null,null,null,null,null,null,{"$f":"(Monthly!CZ623/Monthly!CZ611)-1","v":2.6211113889767157E-2},{"$f":"(Monthly!DA623/Monthly!DA611)-1","v":1.5123351706495702E-2},null,null,null,null,null,null,{"$f":"((Monthly!DH623-Monthly!DH611)*60)","v":0},{"$f":"((Monthly!DI623-Monthly!DI611)*100)","v":-90.000000000000568},{"$f":"((Monthly!DJ623-Monthly!DJ611)*100)","v":250},{"$f":"((Monthly!DK623-Monthly!DK611)*100)","v":200.00000000000009},{"$f":"Monthly!DL623-Monthly!DL611","v":-1101},null,null,null,{"$f":"Monthly!DP623-Monthly!DP611","v":-4252},null,null,null,{"$f":"(Monthly!DT623/Monthly!DT611)-1","v":-0.14701927386822056},{"$f":"Monthly!DU623-Monthly!DU611","v":9.3000000000000007},{"$f":"(Monthly!DV623/Monthly!DV611)-1","v":-6.0723220377530085E-2},{"$f":"(Monthly!DW623/Monthly!DW611)-1","v":-6.1684275947793688E-2},{"$f":"(Monthly!DX623/Monthly!DX611)-1","v":-7.0083223828296126E-2},{"$f":"(Monthly!DY623/Monthly!DY611)-1","v":-6.7206863679695084E-2},{"$f":"(Monthly!DZ623/Monthly!DZ611)-1","v":-7.0941143019618957E-2},{"$f":"(Monthly!EA623/Monthly!EA611)-1","v":-8.6852589641434275E-2},{"$f":"(Monthly!EB623/Monthly!EB611)-1","v":-3.1281032770605788E-2},{"$f":"(Monthly!EC623/Monthly!EC611)-1","v":-4.1176470588235259E-2},null,null,null,null,null,null,null,null,null,null,null,null,null,{"$f":"(Monthly!EQ623/Monthly!EQ611)-1","v":6.25E-2},{"$f":"(Monthly!ER623/Monthly!ER611)-1","v":9.9531615925056993E-3},{"$f":"(Monthly!ES623/Monthly!ES611)-1","v":1.274697259400881E-3},null,null,null,null,null,{"$f":"((Monthly!EY623-Monthly!EY611)*100)","v":0},{"$f":"((Monthly!EZ623-Monthly!EZ611)*100)","v":-3.9999999999999996},{"$f":"((Monthly!FA623-Monthly!FA611)*100)","v":20.999999999999996},{"$f":"((Monthly!FB623-Monthly!FB611)*100)","v":-189.00000000000006},"--",{"$f":"((Monthly!FD623-Monthly!FD611)*100)","v":-2.9999999999999361},{"$f":"((Monthly!FE623-Monthly!FE611)*100)","v":-7.0000000000000009},{"$f":"((Monthly!FF623-Monthly!FF611)*100)","v":-9.0000000000000018},{"$f":"((Monthly!FG623-Monthly!FG611)*100)","v":12},{"$f":"((Monthly!FH623-Monthly!FH611)*100)","v":87.999999999999986},{"$f":"((Monthly!FI623-Monthly!FI611)*100)","v":121},null,null,null,null,null,null,{"$f":"(Monthly!FP623/Monthly!FP611)-1","v":-0.14777922926192033},{"$f":"(Monthly!FQ623/Monthly!FQ611)-1","v":-1.3311878291398793E-3},{"$f":"(Monthly!FR623/Monthly!FR611)-1","v":-7.7377393959910501E-2},{"$f":"(Monthly!FS623/Monthly!FS611)-1","v":7.716701902748424E-2},{"$f":"(Monthly!FT623/Monthly!FT611)-1","v":-7.0525864249810111E-2},{"$f":"(Monthly!FU623/Monthly!FU611)-1","v":-9.1086213496159307E-2},{"$f":"(Monthly!FV623/Monthly!FV611)-1","v":0.23362388195750006},{"$f":"(Monthly!FW623/Monthly!FW611)-1","v":1.9091882716673059E-2},{"$f":"(Monthly!FX623/Monthly!FX611)-1","v":0.29077650041316017},null,null,null,null,null,{"$f":"(Monthly!GD623/Monthly!GD611)-1","v":0.87398179204599891},{"$f":"(Monthly!GE623/Monthly!GE611)-1","v":0.75345303867403324},{"$f":"(Monthly!GF623/Monthly!GF611)-1","v":0.50475543478260887},{"$f":"(Monthly!GG623/Monthly!GG611)-1","v":0.24127399650959869},{"$f":"(Monthly!GH623/Monthly!GH611)-1","v":-0.36050156739811912},{"$f":"(Monthly!GI623/Monthly!GI611)-1","v":-0.52664576802507834},{"$f":"(Monthly!GJ623/Monthly!GJ611)-1","v":0.10433925049309667},{"$f":"(Monthly!GK623/Monthly!GK611)-1","v":-0.10915576694411411},"--"]
["2010-03-01",null,null,null,{"$f":"(Monthly!E625/Monthly!E613)-1","v":1.404994858533315E-2},{"$f":"(Monthly!F625/Monthly!F613)-1","v":8.2470079452881428E-2},{"$f":"(Monthly!G625/Monthly!G613)-1","v":1.6057789638354691E-2},{"$f":"(Monthly!H625/Monthly!H613)-1","v":3.125563503035389E-3},null,null,null,null,null,null,null,null,null,null,null,null,null,null,null,{"$f":"(Monthly!X625-Monthly!X613)","v":3.3999999999999915},{"$f":"(Monthly!Y625/Monthly!Y613)-1","v":-0.19931047947220604},null,null,null,null,null,null,null,null,null,null,null,null,null,{"$f":"(Monthly!AM625/Monthly!AM613)-1","v":3.7538414621157035E-2},{"$f":"(Monthly!AN625/Monthly!AN613)-1","v":4.8005203373111538E-2},{"$f":"(Monthly!AO625/Monthly!AO613)-1","v":-4.1356988134397588E-2},{"$f":"((Monthly!AP625-Monthly!AP613)*100)","v":-20.999999999999996},{"$f":"Monthly!AQ625-Monthly!AQ613","v":22.799999999999997},{"$f":"Monthly!AR625-Monthly!AR613","v":22.5},{"$f":"Monthly!AS625-Monthly!AS613","v":-15},{"$f":"Monthly!AT625-Monthly!AT613","v":26.9},{"$f":"Monthly!AU625-Monthly!AU613","v":22.5},{"$f":"Monthly!AV625-Monthly!AV613","v":24},{"$f":"Monthly!AW625-Monthly!AW613","v":23.5},{"$f":"Monthly!AX625-Monthly!AX613","v":21.4},{"$f":"Monthly!AY625-Monthly!AY613","v":44},{"$f":"Monthly!AZ625-Monthly!AZ613","v":26},{"$f":"Monthly!BA625-Monthly!BA613","v":18.800000000000004},{"$f":"(Monthly!BB625/Monthly!BB613)-1","v":0.34813084112149539},{"$f":"(Monthly!BC625/Monthly!BC613)-1","v":0.14075116222167838},null,null,null,null,null,null,null,null,null,{"$f":"(Monthly!BM625/Monthly!BM613)-1","v":7.4608952346892021E-2},{"$f":"(Monthly!BN625/Monthly!BN613)-1","v":8.1124519965666719E-2},null,null,null,null,null,{"$f":"(Monthly!BT625/Monthly!BT613)-1","v":9.9194499859587282E-3},null,null,null,{"$f":"(Monthly!BX625/Monthly!BX613)-1","v":0.25940594059405941},{"$f":"(Monthly!BY625/Monthly!BY613)-1","v":0.33918128654970769},{"$f":"(Monthly!BZ625/Monthly!BZ613)-1","v":2.5241225003495904E-2},{"$f":"(Monthly!CA625/Monthly!CA613)-1","v":0.20948492462311563},{"$f":"Monthly!CB625-Monthly!CB613","v":3.9326502069903739},{"$f":"Monthly!CC625-Monthly!CC613","v":4.7726502069903773},{"$f":"(Monthly!CD625/Monthly!CD613)-1","v":-0.270096463022508},{"$f":"(Monthly!CE625/Monthly!CE613)-1","v":0.12389380530973448},null,{"$f":"(Monthly!CG625/Monthly!CG613)-1","v":0},{"$f":"(Monthly!CH625/Monthly!CH613)-1","v":0.17258883248730972},null,{"$f":"(Monthly!CJ625/Monthly!CJ613)-1","v":0.12389380530973448},{"$f":"(Monthly!CK625/Monthly!CK613)-1","v":2.1232448647972912E-2},{"$f":"(Monthly!CL625/Monthly!CL613)-1","v":-0.16091254752851702},{"$f":"(Monthly!CM625/Monthly!CM613)-1","v":0.53541076487252126},{"$f":"(Monthly!CN625/Monthly!CN613)-1","v":-4.213766190939161E-4},{"$f":"(Monthly!CO625/Monthly!CO613)-1","v":0.13213924399889621},{"$f":"(Monthly!CP625/Monthly!CP613)-1","v":-3.24530680700017E-2},{"$f":"(Monthly!CQ625/Monthly!CQ613)-1","v":8.558717236160529E-3},{"$f":"(Monthly!CR625/Monthly!CR613)-1","v":-4.3117709663686776E-2},null,null,null,null,null,null,null,{"$f":"(Monthly!CZ625/Monthly!CZ613)-1","v":2.2861714393279886E-2},{"$f":"(Monthly!DA625/Monthly!DA613)-1","v":1.1592051426555505E-2},null,null,null,null,null,null,{"$f":"((Monthly!DH625-Monthly!DH613)*60)","v":11.999999999999744},{"$f":"((Monthly!DI625-Monthly!DI613)*100)","v":-69.999999999998863},{"$f":"((Monthly!DJ625-Monthly!DJ613)*100)","v":130.00000000000006},{"$f":"((Monthly!DK625-Monthly!DK613)*100)","v":120.00000000000011},{"$f":"Monthly!DL625-Monthly!DL613","v":-755},null,null,null,{"$f":"Monthly!DP625-Monthly!DP613","v":-2631},null,null,null,{"$f":"(Monthly!DT625/Monthly!DT613)-1","v":-0.27972027972027969},{"$f":"Monthly!DU625-Monthly!DU613","v":8.0999999999999979},{"$f":"(Monthly!DV625/Monthly!DV613)-1","v":-4.7206984470369973E-2},{"$f":"(Monthly!DW625/Monthly!DW613)-1","v":-4.7697887101860625E-2},{"$f":"(Monthly!DX625/Monthly!DX613)-1","v":-5.4972067039106176E-2},{"$f":"(Monthly!DY625/Monthly!DY613)-1","v":-4.5632973503434759E-2},{"$f":"(Monthly!DZ625/Monthly!DZ613)-1","v":-5.7725694444444531E-2},{"$f":"(Monthly!EA625/Monthly!EA613)-1","v":-7.4006116207951056E-2},{"$f":"(Monthly!EB625/Monthly!EB613)-1","v":-1.7937219730941645E-2},{"$f":"(Monthly!EC625/Monthly!EC613)-1","v":-3.0262453133368949E-2},null,null,null,null,null,null,null,null,null,null,null,null,null,{"$f":"(Monthly!EQ625/Monthly!EQ613)-1","v":9.0422367638310686E-2},{"$f":"(Monthly!ER625/Monthly!ER613)-1","v":9.9299065420561661E-3},{"$f":"(Monthly!ES625/Monthly!ES613)-1","v":1.913265306122236E-3},null,null,null,null,null,{"$f":"((Monthly!EY625-Monthly!EY613)*100)","v":0},{"$f":"((Monthly!EZ625-Monthly!EZ613)*100)","v":-1.9999999999999991},{"$f":"((Monthly!FA625-Monthly!FA613)*100)","v":-23.000000000000043},{"$f":"((Monthly!FB625-Monthly!FB613)*100)","v":-215.00000000000003},"--",{"$f":"((Monthly!FD625-Monthly!FD613)*100)","v":-3.0000000000000249},{"$f":"((Monthly!FE625-Monthly!FE613)*100)","v":-6},{"$f":"((Monthly!FF625-Monthly!FF613)*100)","v":-24},{"$f":"((Monthly!FG625-Monthly!FG613)*100)","v":2.9999999999999916},{"$f":"((Monthly!FH625-Monthly!FH613)*100)","v":61.000000000000007},{"$f":"((Monthly!FI625-Monthly!FI613)*100)","v":91.000000000000014},null,null,null,null,null,null,{"$f":"(Monthly!FP625/Monthly!FP613)-1","v":-0.19106366152629506},{"$f":"(Monthly!FQ625/Monthly!FQ613)-1","v":-1.4335868929198359E-3},{"$f":"(Monthly!FR625/Monthly!FR613)-1","v":-0.14196468805046902},{"$f":"(Monthly!FS625/Monthly!FS613)-1","v":3.9846743295019138E-2},{"$f":"(Monthly!FT625/Monthly!FT613)-1","v":-9.1637470002207566E-2},{"$f":"(Monthly!FU625/Monthly!FU613)-1","v":-0.10455937037266283},{"$f":"(Monthly!FV625/Monthly!FV613)-1","v":0.35883966940301404},{"$f":"(Monthly!FW625/Monthly!FW613)-1","v":0.14452501095421844},{"$f":"(Monthly!FX625/Monthly!FX613)-1","v":0.4422165747760165},null,null,null,null,null,{"$f":"(Monthly!GD625/Monthly!GD613)-1","v":0.69320550229262201},{"$f":"(Monthly!GE625/Monthly!GE613)-1","v":0.69381177481736134},{"$f":"(Monthly!GF625/Monthly!GF613)-1","v":0.4043357199681783},{"$f":"(Monthly!GG625/Monthly!GG613)-1","v":0.39340344168260044},{"$f":"(Monthly!GH625/Monthly!GH613)-1","v":-0.11442786069651745},{"$f":"(Monthly!GI625/Monthly!GI613)-1","v":-0.13432835820895528},{"$f":"(Monthly!GJ625/Monthly!GJ613)-1","v":7.4712643678161106E-2},{"$f":"(Monthly!GK625/Monthly!GK613)-1","v":-6.9465267366316863E-2},"--"]
["2010-10-01",null,null,null,{"$f":"(Monthly!E632/Monthly!E620)-1","v":2.9168993349916184E-2},{"$f":"(Monthly!F632/Monthly!F620)-1","v":0.10966725733412108},{"$f":"(Monthly!G632/Monthly!G620)-1","v":2.90532490147557E-2},{"$f":"(Monthly!H632/Monthly!H620)-1","v":1.7230491655390257E-2},null,null,null,null,null,null,null,null,null,null,null,null,null,null,null,{"$f":"(Monthly!X632-Monthly!X620)","v":5.8000000000000114},{"$f":"(Monthly!Y632/Monthly!Y620)-1","v":-9.3974251670781328E-2},null,null,null,null,null,null,null,null,null,null,null,null,null,{"$f":"(Monthly!AM632/Monthly!AM620)-1","v":6.0779459392127588E-2},{"$f":"(Monthly!AN632/Monthly!AN620)-1","v":7.0493917552780561E-2},{"$f":"(Monthly!AO632/Monthly!AO620)-1","v":7.4400726561619779E-2},{"$f":"((Monthly!AP632-Monthly!AP620)*100)","v":-4.0000000000000036},{"$f":"Monthly!AQ632-Monthly!AQ620","v":1.7000000000000028},{"$f":"Monthly!AR632-Monthly!AR620","v":-7.5},{"$f":"Monthly!AS632-Monthly!AS620","v":5.5},{"$f":"Monthly!AT632-Monthly!AT620","v":6.1000000000000014},{"$f":"Monthly!AU632-Monthly!AU620","v":5},{"$f":"Monthly!AV632-Monthly!AV620","v":0.5},{"$f":"Monthly!AW632-Monthly!AW620","v":6.5},{"$f":"Monthly!AX632-Monthly!AX620","v":-0.79999999999999716},{"$f":"Monthly!AY632-Monthly!AY620","v":6},{"$f":"Monthly!AZ632-Monthly!AZ620","v":-1.2000000000000028},{"$f":"Monthly!BA632-Monthly!BA620","v":-5},{"$f":"(Monthly!BB632/Monthly!BB620)-1","v":8.545454545454545E-2},{"$f":"(Monthly!BC632/Monthly!BC620)-1","v":0.10690936815019536},null,null,null,null,null,null,null,null,null,{"$f":"(Monthly!BM632/Monthly!BM620)-1","v":6.486951735767521E-2},{"$f":"(Monthly!BN632/Monthly!BN620)-1","v":6.6233006005038231E-2},null,null,null,null,null,{"$f":"(Monthly!BT632/Monthly!BT620)-1","v":0.32272548872025153},null,null,null,{"$f":"(Monthly!BX632/Monthly!BX620)-1","v":1.6853932584269593E-2},{"$f":"(Monthly!BY632/Monthly!BY620)-1","v":-4.2881646655231531E-2},{"$f":"(Monthly!BZ632/Monthly!BZ620)-1","v":-8.1514230450399072E-3},{"$f":"(Monthly!CA632/Monthly!CA620)-1","v":0.17637415621986507},{"$f":"Monthly!CB632-Monthly!CB620","v":0.79066344313180004},{"$f":"Monthly!CC632-Monthly!CC620","v":0.37066344313180366},{"$f":"(Monthly!CD632/Monthly!CD620)-1","v":-0.18106995884773658},{"$f":"(Monthly!CE632/Monthly!CE620)-1","v":-0.26515151515151514},null,{"$f":"(Monthly!CG632/Monthly!CG620)-1","v":0.1077441077441077},{"$f":"(Monthly!CH632/Monthly!CH620)-1","v":-0.24899598393574296},null,{"$f":"(Monthly!CJ632/Monthly!CJ620)-1","v":-0.26515151515151514},{"$f":"(Monthly!CK632/Monthly!CK620)-1","v":4.5972634942182289E-2},{"$f":"(Monthly!CL632/Monthly!CL620)-1","v":3.0517619288484177E-2},{"$f":"(Monthly!CM632/Monthly!CM620)-1","v":-7.9831932773109293E-2},{"$f":"(Monthly!CN632/Monthly!CN620)-1","v":2.4460074015429045E-2},{"$f":"(Monthly!CO632/Monthly!CO620)-1","v":0.12085504626183119},{"$f":"(Monthly!CP632/Monthly!CP620)-1","v":-1.182672077944924E-2},{"$f":"(Monthly!CQ632/Monthly!CQ620)-1","v":7.2942252968146715E-3},{"$f":"(Monthly!CR632/Monthly!CR620)-1","v":-9.1025864603954454E-2},null,null,null,null,null,null,null,{"$f":"(Monthly!CZ632/Monthly!CZ620)-1","v":1.1666951489314625E-2},{"$f":"(Monthly!DA632/Monthly!DA620)-1","v":6.0271835501879423E-3},null,null,null,null,null,null,{"$f":"((Monthly!DH632-Monthly!DH620)*60)","v":36.000000000000085},{"$f":"((Monthly!DI632-Monthly!DI620)*100)","v":-59.999999999999432},{"$f":"((Monthly!DJ632-Monthly!DJ620)*100)","v":-50},{"$f":"((Monthly!DK632-Monthly!DK620)*100)","v":-59.999999999999964},{"$f":"Monthly!DL632-Monthly!DL620","v":24},null,null,null,{"$f":"Monthly!DP632-Monthly!DP620","v":578},null,null,null,{"$f":"(Monthly!DT632/Monthly!DT620)-1","v":-0.14960030452988204},{"$f":"Monthly!DU632-Monthly!DU620","v":2.3000000000000007},{"$f":"(Monthly!DV632/Monthly!DV620)-1","v":1.6050076237862143E-2},{"$f":"(Monthly!DW632/Monthly!DW620)-1","v":1.3503909026297167E-2},{"$f":"(Monthly!DX632/Monthly!DX620)-1","v":1.4147176269252659E-2},{"$f":"(Monthly!DY632/Monthly!DY620)-1","v":1.449275362318847E-2},{"$f":"(Monthly!DZ632/Monthly!DZ620)-1","v":1.4040328603435404E-2},{"$f":"(Monthly!EA632/Monthly!EA620)-1","v":5.9536466085476913E-3},{"$f":"(Monthly!EB632/Monthly!EB620)-1","v":3.3132530120482118E-2},{"$f":"(Monthly!EC632/Monthly!EC620)-1","v":1.2057465366854814E-2},null,null,null,null,null,null,null,null,null,null,null,null,null,{"$f":"(Monthly!EQ632/Monthly!EQ620)-1","v":6.5068493150684859E-2},{"$f":"(Monthly!ER632/Monthly!ER620)-1","v":1.6326530612244872E-2},{"$f":"(Monthly!ES632/Monthly!ES620)-1","v":6.389776357827559E-3},null,null,null,null,null,{"$f":"((Monthly!EY632-Monthly!EY620)*100)","v":0},{"$f":"((Monthly!EZ632-Monthly!EZ620)*100)","v":7.0000000000000009},{"$f":"((Monthly!FA632-Monthly!FA620)*100)","v":-47.000000000000064},{"$f":"((Monthly!FB632-Monthly!FB620)*100)","v":-57.000000000000028},"--",{"$f":"((Monthly!FD632-Monthly!FD620)*100)","v":-71.999999999999972},{"$f":"((Monthly!FE632-Monthly!FE620)*100)","v":6},{"$f":"((Monthly!FF632-Monthly!FF620)*100)","v":-13.999999999999998},{"$f":"((Monthly!FG632-Monthly!FG620)*100)","v":-56.999999999999993},{"$f":"((Monthly!FH632-Monthly!FH620)*100)","v":-115.00000000000001},{"$f":"((Monthly!FI632-Monthly!FI620)*100)","v":-85.000000000000014},null,null,null,null,null,null,{"$f":"(Monthly!FP632/Monthly!FP620)-1","v":-3.4891438323693902E-2},{"$f":"(Monthly!FQ632/Monthly!FQ620)-1","v":-2.3276253533918267E-2},{"$f":"(Monthly!FR632/Monthly!FR620)-1","v":-5.9587979587979567E-2},{"$f":"(Monthly!FS632/Monthly!FS620)-1","v":-6.2074084069900892E-2},{"$f":"(Monthly!FT632/Monthly!FT620)-1","v":-2.2773019187269594E-2},{"$f":"(Monthly!FU632/Monthly!FU620)-1","v":-7.4263507790803818E-3},{"$f":"(Monthly!FV632/Monthly!FV620)-1","v":0.10435155352062253},{"$f":"(Monthly!FW632/Monthly!FW620)-1","v":0.18693881141356949},{"$f":"(Monthly!FX632/Monthly!FX620)-1","v":0.21597001717765862},null,null,null,null,null,{"$f":"(Monthly!GD632/Monthly!GD620)-1","v":8.0189923503033667E-2},{"$f":"(Monthly!GE632/Monthly!GE620)-1","v":0.1360450735193075},{"$f":"(Monthly!GF632/Monthly!GF620)-1","v":8.4162552221800135E-2},{"$f":"(Monthly!GG632/Monthly!GG620)-1","v":0.14221556886227549},{"$f":"(Monthly!GH632/Monthly!GH620)-1","v":0.7931034482758621},{"$f":"(Monthly!GI632/Monthly!GI620)-1","v":1.2968036529680367},{"$f":"(Monthly!GJ632/Monthly!GJ620)-1","v":-0.2468619246861925},{"$f":"(Monthly!GK632/Monthly!GK620)-1","v":9.9708454810495617E-2},"--"]
["2011-02-01",null,null,null,{"$f":"(Monthly!E636/Monthly!E624)-1","v":3.0137318010755365E-2},{"$f":"(Monthly!F636/Monthly!F624)-1","v":0.1022506790842066},{"$f":"(Monthly!G636/Monthly!G624)-1","v":2.9227557411273475E-2},{"$f":"(Monthly!H636/Monthly!H624)-1","v":1.957583201030455E-2},null,null,null,null,null,null,null,null,null,null,null,null,null,null,null,{"$f":"(Monthly!X636-Monthly!X624)","v":4.2000000000000028},{"$f":"(Monthly!Y636/Monthly!Y624)-1","v":-1.9650338849668159E-2},null,null,null,null,null,null,null,null,null,null,null,null,null,{"$f":"(Monthly!AM636/Monthly!AM624)-1","v":4.161860655416616E-2},{"$f":"(Monthly!AN636/Monthly!AN624)-1","v":5.7629662626464295E-2},{"$f":"(Monthly!AO636/Monthly!AO624)-1","v":9.5894965633851692E-2},{"$f":"((Monthly!AP636-Monthly!AP624)*100)","v":-2.0000000000000018},{"$f":"Monthly!AQ636-Monthly!AQ624","v":4.1000000000000014},{"$f":"Monthly!AR636-Monthly!AR624","v":-2},{"$f":"Monthly!AS636-Monthly!AS624","v":3},{"$f":"Monthly!AT636-Monthly!AT624","v":6.7000000000000028},{"$f":"Monthly!AU636-Monthly!AU624","v":6},{"$f":"Monthly!AV636-Monthly!AV624","v":-1},{"$f":"Monthly!AW636-Monthly!AW624","v":1.5},{"$f":"Monthly!AX636-Monthly!AX624","v":5.2000000000000028},{"$f":"Monthly!AY636-Monthly!AY624","v":15},{"$f":"Monthly!AZ636-Monthly!AZ624","v":7.2000000000000028},{"$f":"Monthly!BA636-Monthly!BA624","v":-0.69999999999999574},{"$f":"(Monthly!BB636/Monthly!BB624)-1","v":0.20566037735849063},{"$f":"(Monthly!BC636/Monthly!BC624)-1","v":0.11022274061253667},null,null,null,null,null,null,null,null,null,{"$f":"(Monthly!BM636/Monthly!BM624)-1","v":8.1119264203439734E-2},{"$f":"(Monthly!BN636/Monthly!BN624)-1","v":8.4182416841668717E-2},null,null,null,null,null,{"$f":"(Monthly!BT636/Monthly!BT624)-1","v":0.31999169537125227},null,null,null,{"$f":"(Monthly!BX636/Monthly!BX624)-1","v":-0.14403973509933776},{"$f":"(Monthly!BY636/Monthly!BY624)-1","v":-0.16615384615384621},{"$f":"(Monthly!BZ636/Monthly!BZ624)-1","v":-3.3017904554428434E-2},{"$f":"(Monthly!CA636/Monthly!CA624)-1","v":0.26780767708745534},{"$f":"Monthly!CB636-Monthly!CB624","v":-0.82643818453338547},{"$f":"Monthly!CC636-Monthly!CC624","v":-1.386438184533386},{"$f":"(Monthly!CD636/Monthly!CD624)-1","v":-0.20779220779220775},{"$f":"(Monthly!CE636/Monthly!CE624)-1","v":-0.1964285714285714},null,{"$f":"(Monthly!CG636/Monthly!CG624)-1","v":3.3333333333334103E-3},{"$f":"(Monthly!CH636/Monthly!CH624)-1","v":-1.631701631701632E-2},null,{"$f":"(Monthly!CJ636/Monthly!CJ624)-1","v":-0.1964285714285714},{"$f":"(Monthly!CK636/Monthly!CK624)-1","v":7.1831527924475891E-2},{"$f":"(Monthly!CL636/Monthly!CL624)-1","v":0.31222745508459804},{"$f":"(Monthly!CM636/Monthly!CM624)-1","v":-0.25665399239543729},{"$f":"(Monthly!CN636/Monthly!CN624)-1","v":4.055109070034435E-2},{"$f":"(Monthly!CO636/Monthly!CO624)-1","v":0.10739242368517843},{"$f":"(Monthly!CP636/Monthly!CP624)-1","v":5.3055795114659521E-2},null,{"$f":"(Monthly!CR636/Monthly!CR624)-1","v":-7.5808781069020448E-2},null,null,null,null,null,null,null,{"$f":"(Monthly!CZ636/Monthly!CZ624)-1","v":2.1248981733331451E-2},{"$f":"(Monthly!DA636/Monthly!DA624)-1","v":1.1244455921461061E-2},null,null,null,null,null,null,{"$f":"((Monthly!DH636-Monthly!DH624)*60)","v":23.999999999999915},{"$f":"((Monthly!DI636-Monthly!DI624)*100)","v":-80.000000000001137},{"$f":"((Monthly!DJ636-Monthly!DJ624)*100)","v":-100},{"$f":"((Monthly!DK636-Monthly!DK624)*100)","v":-80.000000000000071},{"$f":"Monthly!DL636-Monthly!DL624","v":201},null,null,null,{"$f":"Monthly!DP636-Monthly!DP624","v":1338},null,null,null,{"$f":"(Monthly!DT636/Monthly!DT624)-1","v":-0.17683239364428494},{"$f":"Monthly!DU636-Monthly!DU624","v":1.2000000000000028},{"$f":"(Monthly!DV636/Monthly!DV624)-1","v":4.0602966204716706E-2},{"$f":"(Monthly!DW636/Monthly!DW624)-1","v":4.0336694724560251E-2},{"$f":"(Monthly!DX636/Monthly!DX624)-1","v":3.6555069206199109E-2},{"$f":"(Monthly!DY636/Monthly!DY624)-1","v":5.5069480185280462E-2},{"$f":"(Monthly!DZ636/Monthly!DZ624)-1","v":3.1029185867895714E-2},{"$f":"(Monthly!EA636/Monthly!EA624)-1","v":2.4989039894782961E-2},{"$f":"(Monthly!EB636/Monthly!EB624)-1","v":4.5174537987679564E-2},{"$f":"(Monthly!EC636/Monthly!EC624)-1","v":4.9351381838691477E-2},null,null,null,null,null,null,null,null,null,null,null,null,null,{"$f":"(Monthly!EQ636/Monthly!EQ624)-1","v":8.1767955801105074E-2},{"$f":"(Monthly!ER636/Monthly!ER624)-1","v":1.7960602549246696E-2},{"$f":"(Monthly!ES636/Monthly!ES624)-1","v":8.2802547770701729E-3},null,null,null,null,null,{"$f":"((Monthly!EY636-Monthly!EY624)*100)","v":0},{"$f":"((Monthly!EZ636-Monthly!EZ624)*100)","v":3},{"$f":"((Monthly!FA636-Monthly!FA624)*100)","v":-12.999999999999989},{"$f":"((Monthly!FB636-Monthly!FB624)*100)","v":-18.99999999999995},"--",{"$f":"((Monthly!FD636-Monthly!FD624)*100)","v":-4.0000000000000036},{"$f":"((Monthly!FE636-Monthly!FE624)*100)","v":2.0000000000000004},{"$f":"((Monthly!FF636-Monthly!FF624)*100)","v":-6},{"$f":"((Monthly!FG636-Monthly!FG624)*100)","v":-8.9999999999999964},{"$f":"((Monthly!FH636-Monthly!FH624)*100)","v":-10.000000000000009},{"$f":"((Monthly!FI636-Monthly!FI624)*100)","v":-10.999999999999988},null,null,null,null,null,null,{"$f":"(Monthly!FP636/Monthly!FP624)-1","v":-6.5834279228149772E-2},{"$f":"(Monthly!FQ636/Monthly!FQ624)-1","v":-3.6962729735666611E-2},{"$f":"(Monthly!FR636/Monthly!FR624)-1","v":-6.7598689294877778E-2},{"$f":"(Monthly!FS636/Monthly!FS624)-1","v":-1.7543859649123972E-3},{"$f":"(Monthly!FT636/Monthly!FT624)-1","v":-4.9018541044065556E-2},{"$f":"(Monthly!FU636/Monthly!FU624)-1","v":-4.6993140682860313E-2},{"$f":"(Monthly!FV636/Monthly!FV624)-1","v":9.3636380762202709E-2},{"$f":"(Monthly!FW636/Monthly!FW624)-1","v":0.16715646794729011},{"$f":"(Monthly!FX636/Monthly!FX624)-1","v":0.15761909680241559},null,null,null,null,null,{"$f":"(Monthly!GD636/Monthly!GD624)-1","v":0.17220622873593294},{"$f":"(Monthly!GE636/Monthly!GE624)-1","v":0.40637288135593219},{"$f":"(Monthly!GF636/Monthly!GF624)-1","v":0.20922478466240646},{"$f":"(Monthly!GG636/Monthly!GG624)-1","v":0.28689407540394973},{"$f":"(Monthly!GH636/Monthly!GH624)-1","v":1.4334203655352482},{"$f":"(Monthly!GI636/Monthly!GI624)-1","v":1.5029585798816569},{"$f":"(Monthly!GJ636/Monthly!GJ624)-1","v":-0.22607861936721008},{"$f":"(Monthly!GK636/Monthly!GK624)-1","v":-2.6990553306343035E-3},"--"]
["2011-08-01",null,null,null,{"$f":"(Monthly!E642/Monthly!E630)-1","v":1.9533886528764866E-2},{"$f":"(Monthly!F642/Monthly!F630)-1","v":4.1384980814909822E-2},{"$f":"(Monthly!G642/Monthly!G630)-1","v":1.128981676448193E-2},{"$f":"(Monthly!H642/Monthly!H630)-1","v":1.8951517306780463E-2},null,null,null,null,null,null,null,null,null,null,null,null,null,null,null,{"$f":"(Monthly!X642-Monthly!X630)","v":2},{"$f":"(Monthly!Y642/Monthly!Y630)-1","v":6.3581930464345238E-2},null,null,null,null,null,null,null,null,null,null,null,null,null,{"$f":"(Monthly!AM642/Monthly!AM630)-1","v":2.479795675409191E-2},{"$f":"(Monthly!AN642/Monthly!AN630)-1","v":2.1779465225394423E-2},{"$f":"(Monthly!AO642/Monthly!AO630)-1","v":0.10749061190650622},{"$f":"((Monthly!AP642-Monthly!AP630)*100)","v":-1.0000000000000009},{"$f":"Monthly!AQ642-Monthly!AQ630","v":-5.2000000000000028},{"$f":"Monthly!AR642-Monthly!AR630","v":-5.5},{"$f":"Monthly!AS642-Monthly!AS630","v":3},{"$f":"Monthly!AT642-Monthly!AT630","v":-7.1000000000000014},{"$f":"Monthly!AU642-Monthly!AU630","v":-5},{"$f":"Monthly!AV642-Monthly!AV630","v":-1},{"$f":"Monthly!AW642-Monthly!AW630","v":1.5},{"$f":"Monthly!AX642-Monthly!AX630","v":-3.8000000000000043},{"$f":"Monthly!AY642-Monthly!AY630","v":-6},{"$f":"Monthly!AZ642-Monthly!AZ630","v":-9.7000000000000028},{"$f":"Monthly!BA642-Monthly!BA630","v":-5.1999999999999957},{"$f":"(Monthly!BB642/Monthly!BB630)-1","v":-1.7921146953403522E-3},{"$f":"(Monthly!BC642/Monthly!BC630)-1","v":0.10046359977584185},null,null,null,null,null,null,null,null,null,{"$f":"(Monthly!BM642/Monthly!BM630)-1","v":7.6624451269968086E-2},{"$f":"(Monthly!BN642/Monthly!BN630)-1","v":7.8841890489840916E-2},null,null,null,null,null,{"$f":"(Monthly!BT642/Monthly!BT630)-1","v":-4.6725718365782098E-2},null,null,null,{"$f":"(Monthly!BX642/Monthly!BX630)-1","v":-2.3372287145242088E-2},{"$f":"(Monthly!BY642/Monthly!BY630)-1","v":0.11551724137931041},{"$f":"(Monthly!BZ642/Monthly!BZ630)-1","v":-3.793814432989695E-2},{"$f":"(Monthly!CA642/Monthly!CA630)-1","v":4.0247415692255428E-2},{"$f":"Monthly!CB642-Monthly!CB630","v":2.1048184911968253},{"$f":"Monthly!CC642-Monthly!CC630","v":1.7548184911968256},{"$f":"(Monthly!CD642/Monthly!CD630)-1","v":-0.21359223300970875},{"$f":"(Monthly!CE642/Monthly!CE630)-1","v":6.0283687943262443E-2},null,{"$f":"(Monthly!CG642/Monthly!CG630)-1","v":-0.14204545454545459},{"$f":"(Monthly!CH642/Monthly!CH630)-1","v":0.21823204419889497},null,{"$f":"(Monthly!CJ642/Monthly!CJ630)-1","v":6.0283687943262443E-2},{"$f":"(Monthly!CK642/Monthly!CK630)-1","v":6.3335774325012695E-2},{"$f":"(Monthly!CL642/Monthly!CL630)-1","v":0.12551408987052537},{"$f":"(Monthly!CM642/Monthly!CM630)-1","v":1.1990407673860837E-2},{"$f":"(Monthly!CN642/Monthly!CN630)-1","v":2.2384769719380637E-2},{"$f":"(Monthly!CO642/Monthly!CO630)-1","v":0.14015034097954104},{"$f":"(Monthly!CP642/Monthly!CP630)-1","v":7.5835691473278066E-2},null,{"$f":"(Monthly!CR642/Monthly!CR630)-1","v":-3.4242892970310468E-2},null,null,null,null,null,null,null,{"$f":"(Monthly!CZ642/Monthly!CZ630)-1","v":3.7549960307080799E-2},{"$f":"(Monthly!DA642/Monthly!DA630)-1","v":1.9651571719433658E-2},null,null,null,null,null,null,{"$f":"((Monthly!DH642-Monthly!DH630)*60)","v":6.0000000000000853},{"$f":"((Monthly!DI642-Monthly!DI630)*100)","v":-60.000000000000853},{"$f":"((Monthly!DJ642-Monthly!DJ630)*100)","v":-39.999999999999858},{"$f":"((Monthly!DK642-Monthly!DK630)*100)","v":-50},{"$f":"Monthly!DL642-Monthly!DL630","v":211},null,null,null,{"$f":"Monthly!DP642-Monthly!DP630","v":1700},null,null,null,{"$f":"(Monthly!DT642/Monthly!DT630)-1","v":-0.13789473684210529},{"$f":"Monthly!DU642-Monthly!DU630","v":1.3999999999999986},{"$f":"(Monthly!DV642/Monthly!DV630)-1","v":3.7125367676285714E-2},{"$f":"(Monthly!DW642/Monthly!DW630)-1","v":3.7094884810620954E-2},{"$f":"(Monthly!DX642/Monthly!DX630)-1","v":3.6728641496520886E-2},{"$f":"(Monthly!DY642/Monthly!DY630)-1","v":6.0311284046692615E-2},{"$f":"(Monthly!DZ642/Monthly!DZ630)-1","v":2.950379973178352E-2},{"$f":"(Monthly!EA642/Monthly!EA630)-1","v":3.086816720257235E-2},{"$f":"(Monthly!EB642/Monthly!EB630)-1","v":2.6392961876832821E-2},{"$f":"(Monthly!EC642/Monthly!EC630)-1","v":3.7890044576523119E-2},null,null,null,null,null,null,null,null,null,null,null,null,null,{"$f":"(Monthly!EQ642/Monthly!EQ630)-1","v":9.8972417522985356E-2},{"$f":"(Monthly!ER642/Monthly!ER630)-1","v":2.6451983898792442E-2},{"$f":"(Monthly!ES642/Monthly!ES630)-1","v":1.6507936507936583E-2},null,null,null,null,null,{"$f":"((Monthly!EY642-Monthly!EY630)*100)","v":0},{"$f":"((Monthly!EZ642-Monthly!EZ630)*100)","v":-9},{"$f":"((Monthly!FA642-Monthly!FA630)*100)","v":-12.000000000000011},{"$f":"((Monthly!FB642-Monthly!FB630)*100)","v":-29.999999999999982},"--",{"$f":"((Monthly!FD642-Monthly!FD630)*100)","v":-16.000000000000014},{"$f":"((Monthly!FE642-Monthly!FE630)*100)","v":-14.000000000000002},{"$f":"((Monthly!FF642-Monthly!FF630)*100)","v":-15.000000000000002},{"$f":"((Monthly!FG642-Monthly!FG630)*100)","v":-29.000000000000004},{"$f":"((Monthly!FH642-Monthly!FH630)*100)","v":-44.999999999999993},{"$f":"((Monthly!FI642-Monthly!FI630)*100)","v":-40.000000000000036},null,null,null,null,null,null,{"$f":"(Monthly!FP642/Monthly!FP630)-1","v":-5.6420607458669725E-2},{"$f":"(Monthly!FQ642/Monthly!FQ630)-1","v":-5.6532052509834618E-2},{"$f":"(Monthly!FR642/Monthly!FR630)-1","v":-4.1469528434905256E-2},{"$f":"(Monthly!FS642/Monthly!FS630)-1","v":0.11082693947144073},{"$f":"(Monthly!FT642/Monthly!FT630)-1","v":-7.1436516811175133E-2},{"$f":"(Monthly!FU642/Monthly!FU630)-1","v":-9.0736861784272094E-2},{"$f":"(Monthly!FV642/Monthly!FV630)-1","v":0.15734748689090683},{"$f":"(Monthly!FW642/Monthly!FW630)-1","v":5.6502701037164149E-2},{"$f":"(Monthly!FX642/Monthly!FX630)-1","v":0.14320913283495118},null,null,null,null,null,{"$f":"(Monthly!GD642/Monthly!GD630)-1","v":0.12379588648789386},{"$f":"(Monthly!GE642/Monthly!GE630)-1","v":0.43068535825545151},{"$f":"(Monthly!GF642/Monthly!GF630)-1","v":0.32207045291157432},{"$f":"(Monthly!GG642/Monthly!GG630)-1","v":0.30449476174383228},{"$f":"(Monthly!GH642/Monthly!GH630)-1","v":0.99906542056074765},{"$f":"(Monthly!GI642/Monthly!GI630)-1","v":1.3888888888888888},{"$f":"(Monthly!GJ642/Monthly!GJ630)-1","v":-5.5924170616113655E-2},{"$f":"(Monthly!GK642/Monthly!GK630)-1","v":7.1201157742402321E-2},{"$f":"(Monthly!GL642/Monthly!GL630)-1","v":9.321566464423614E-2}]
["2011-09-01",null,null,null,{"$f":"(Monthly!E643/Monthly!E631)-1","v":2.0897978606338796E-2},{"$f":"(Monthly!F643/Monthly!F631)-1","v":5.7821890366053452E-2},{"$f":"(Monthly!G643/Monthly!G631)-1","v":9.2087617344658312E-3},{"$f":"(Monthly!H643/Monthly!H631)-1","v":1.9237319511292039E-2},null,null,null,null,null,null,null,null,null,null,null,null,null,null,null,{"$f":"(Monthly!X643-Monthly!X631)","v":1.5},{"$f":"(Monthly!Y643/Monthly!Y631)-1","v":7.0661658993728116E-2},null,null,null,null,null,null,null,null,null,null,null,null,null,{"$f":"(Monthly!AM643/Monthly!AM631)-1","v":2.1154463670281176E-2},{"$f":"(Monthly!AN643/Monthly!AN631)-1","v":2.3838696097465917E-2},{"$f":"(Monthly!AO643/Monthly!AO631)-1","v":9.0978505219064143E-2},{"$f":"((Monthly!AP643-Monthly!AP631)*100)","v":-2.0000000000000018},{"$f":"Monthly!AQ643-Monthly!AQ631","v":-3.5999999999999943},{"$f":"Monthly!AR643-Monthly!AR631","v":-5},{"$f":"Monthly!AS643-Monthly!AS631","v":6.5},{"$f":"Monthly!AT643-Monthly!AT631","v":-3.0999999999999943},{"$f":"Monthly!AU643-Monthly!AU631","v":-1},{"$f":"Monthly!AV643-Monthly!AV631","v":-2},{"$f":"Monthly!AW643-Monthly!AW631","v":-4},{"$f":"Monthly!AX643-Monthly!AX631","v":-3.3999999999999986},{"$f":"Monthly!AY643-Monthly!AY631","v":-14.5},{"$f":"Monthly!AZ643-Monthly!AZ631","v":-6.7999999999999972},{"$f":"Monthly!BA643-Monthly!BA631","v":-2.1999999999999957},{"$f":"(Monthly!BB643/Monthly!BB631)-1","v":5.2532833020638048E-2},{"$f":"(Monthly!BC643/Monthly!BC631)-1","v":0.10909243274951819},null,null,null,null,null,null,null,null,null,{"$f":"(Monthly!BM643/Monthly!BM631)-1","v":7.8135175300423576E-2},{"$f":"(Monthly!BN643/Monthly!BN631)-1","v":7.9540232759510054E-2},null,null,null,null,null,{"$f":"(Monthly!BT643/Monthly!BT631)-1","v":-3.7485776944474858E-2},null,null,null,{"$f":"(Monthly!BX643/Monthly!BX631)-1","v":9.4276094276094291E-2},{"$f":"(Monthly!BY643/Monthly!BY631)-1","v":8.3481349911190161E-2},{"$f":"(Monthly!BZ643/Monthly!BZ631)-1","v":-3.5637672133416176E-2},{"$f":"(Monthly!CA643/Monthly!CA631)-1","v":0.11304793642655731},{"$f":"Monthly!CB643-Monthly!CB631","v":2.1943094455855068},{"$f":"Monthly!CC643-Monthly!CC631","v":1.8443094455855089},{"$f":"(Monthly!CD643/Monthly!CD631)-1","v":-0.20398009950248752},{"$f":"(Monthly!CE643/Monthly!CE631)-1","v":-4.1009463722397443E-2},null,{"$f":"(Monthly!CG643/Monthly!CG631)-1","v":-0.14956011730205276},{"$f":"(Monthly!CH643/Monthly!CH631)-1","v":0.13527851458885931},null,{"$f":"(Monthly!CJ643/Monthly!CJ631)-1","v":-4.1009463722397443E-2},{"$f":"(Monthly!CK643/Monthly!CK631)-1","v":6.1675655895502057E-2},{"$f":"(Monthly!CL643/Monthly!CL631)-1","v":6.462799495586391E-2},{"$f":"(Monthly!CM643/Monthly!CM631)-1","v":-6.9042316258351888E-2},{"$f":"(Monthly!CN643/Monthly!CN631)-1","v":2.0682448744279824E-2},{"$f":"(Monthly!CO643/Monthly!CO631)-1","v":0.13630421408797289},{"$f":"(Monthly!CP643/Monthly!CP631)-1","v":7.9683863483147377E-2},null,{"$f":"(Monthly!CR643/Monthly!CR631)-1","v":-2.5936211981652524E-2},null,null,null,null,null,null,null,{"$f":"(Monthly!CZ643/Monthly!CZ631)-1","v":3.8126216928186851E-2},{"$f":"(Monthly!DA643/Monthly!DA631)-1","v":1.9877227562006272E-2},null,null,null,null,null,null,{"$f":"((Monthly!DH643-Monthly!DH631)*60)","v":6.0000000000000853},{"$f":"((Monthly!DI643-Monthly!DI631)*100)","v":-39.999999999999147},{"$f":"((Monthly!DJ643-Monthly!DJ631)*100)","v":-40.000000000000213},{"$f":"((Monthly!DK643-Monthly!DK631)*100)","v":-50},{"$f":"Monthly!DL643-Monthly!DL631","v":206},null,null,null,{"$f":"Monthly!DP643-Monthly!DP631","v":2000},null,null,null,{"$f":"(Monthly!DT643/Monthly!DT631)-1","v":-7.8831312017640598E-2},{"$f":"Monthly!DU643-Monthly!DU631","v":1.6999999999999993},{"$f":"(Monthly!DV643/Monthly!DV631)-1","v":3.7665530092776178E-2},{"$f":"(Monthly!DW643/Monthly!DW631)-1","v":3.7461952704284762E-2},{"$f":"(Monthly!DX643/Monthly!DX631)-1","v":3.4377473708017803E-2},{"$f":"(Monthly!DY643/Monthly!DY631)-1","v":5.4092867400669986E-2},{"$f":"(Monthly!DZ643/Monthly!DZ631)-1","v":2.8279538051525055E-2},{"$f":"(Monthly!EA643/Monthly!EA631)-1","v":3.1590181430096065E-2},{"$f":"(Monthly!EB643/Monthly!EB631)-1","v":2.0782986950217408E-2},{"$f":"(Monthly!EC643/Monthly!EC631)-1","v":4.4332493702770925E-2},null,null,null,null,null,null,null,null,null,null,null,null,null,{"$f":"(Monthly!EQ643/Monthly!EQ631)-1","v":0.10167658193618156},{"$f":"(Monthly!ER643/Monthly!ER631)-1","v":2.6965002868617249E-2},{"$f":"(Monthly!ES643/Monthly!ES631)-1","v":1.7121116043119944E-2},null,null,null,null,null,{"$f":"((Monthly!EY643-Monthly!EY631)*100)","v":0},{"$f":"((Monthly!EZ643-Monthly!EZ631)*100)","v":-11},{"$f":"((Monthly!FA643-Monthly!FA631)*100)","v":-44.000000000000043},{"$f":"((Monthly!FB643-Monthly!FB631)*100)","v":-39.000000000000057},"--",{"$f":"((Monthly!FD643-Monthly!FD631)*100)","v":-23.999999999999932},{"$f":"((Monthly!FE643-Monthly!FE631)*100)","v":-13.999999999999998},{"$f":"((Monthly!FF643-Monthly!FF631)*100)","v":-16},{"$f":"((Monthly!FG643-Monthly!FG631)*100)","v":-27},{"$f":"((Monthly!FH643-Monthly!FH631)*100)","v":-50.999999999999993},{"$f":"((Monthly!FI643-Monthly!FI631)*100)","v":-67},null,null,null,null,null,null,{"$f":"(Monthly!FP643/Monthly!FP631)-1","v":-2.9525653436592414E-2},{"$f":"(Monthly!FQ643/Monthly!FQ631)-1","v":-5.2095079826696034E-2},{"$f":"(Monthly!FR643/Monthly!FR631)-1","v":2.0784984801956563E-2},{"$f":"(Monthly!FS643/Monthly!FS631)-1","v":4.9149049835915504E-2},{"$f":"(Monthly!FT643/Monthly!FT631)-1","v":-3.4223776912844284E-2},{"$f":"(Monthly!FU643/Monthly!FU631)-1","v":-5.0593634826576417E-2},{"$f":"(Monthly!FV643/Monthly!FV631)-1","v":0.18198980964698319},{"$f":"(Monthly!FW643/Monthly!FW631)-1","v":3.4716322837084146E-2},{"$f":"(Monthly!FX643/Monthly!FX631)-1","v":0.12032851115129595},null,null,null,null,null,{"$f":"(Monthly!GD643/Monthly!GD631)-1","v":0.13676802549462219},{"$f":"(Monthly!GE643/Monthly!GE631)-1","v":0.44951181911613558},{"$f":"(Monthly!GF643/Monthly!GF631)-1","v":0.32985764801885931},{"$f":"(Monthly!GG643/Monthly!GG631)-1","v":0.30244399185336057},{"$f":"(Monthly!GH643/Monthly!GH631)-1","v":0.88630705394190867},{"$f":"(Monthly!GI643/Monthly!GI631)-1","v":0.32413793103448274},{"$f":"(Monthly!GJ643/Monthly!GJ631)-1","v":-1.2570548999486952E-2},{"$f":"(Monthly!GK643/Monthly!GK631)-1","v":1.2137203166227017E-2},{"$f":"(Monthly!GL643/Monthly!GL631)-1","v":0.14301961899346027}]
["2012-01-01",null,null,null,{"$f":"(Monthly!E647/Monthly!E635)-1","v":1.5017841038309054E-2},{"$f":"(Monthly!F647/Monthly!F635)-1","v":5.8947738870315014E-2},{"$f":"(Monthly!G647/Monthly!G635)-1","v":1.1471937875042748E-3},{"$f":"(Monthly!H647/Monthly!H635)-1","v":1.3000955952643611E-2},null,null,null,null,null,null,null,null,null,null,null,null,null,null,null,{"$f":"(Monthly!X647-Monthly!X635)","v":1.7000000000000028},{"$f":"(Monthly!Y647/Monthly!Y635)-1","v":0.10466115363602668},null,null,null,null,null,null,null,null,null,null,null,null,null,{"$f":"(Monthly!AM647/Monthly!AM635)-1","v":3.308530621329786E-2},{"$f":"(Monthly!AN647/Monthly!AN635)-1","v":3.4601465082748639E-2},{"$f":"(Monthly!AO647/Monthly!AO635)-1","v":7.5744783003823812E-2},{"$f":"((Monthly!AP647-Monthly!AP635)*100)","v":0},{"$f":"Monthly!AQ647-Monthly!AQ635","v":-6.1999999999999957},{"$f":"Monthly!AR647-Monthly!AR635","v":-5.5},{"$f":"Monthly!AS647-Monthly!AS635","v":2},{"$f":"Monthly!AT647-Monthly!AT635","v":-6.4000000000000057},{"$f":"Monthly!AU647-Monthly!AU635","v":-7},{"$f":"Monthly!AV647-Monthly!AV635","v":-2.5},{"$f":"Monthly!AW647-Monthly!AW635","v":-2.5},{"$f":"Monthly!AX647-Monthly!AX635","v":-6.1999999999999957},{"$f":"Monthly!AY647-Monthly!AY635","v":-26},{"$f":"Monthly!AZ647-Monthly!AZ635","v":-7.7999999999999972},{"$f":"Monthly!BA647-Monthly!BA635","v":-5.6999999999999957},{"$f":"(Monthly!BB647/Monthly!BB635)-1","v":-4.8622366288492702E-2},{"$f":"(Monthly!BC647/Monthly!BC635)-1","v":0.11830091306073842},null,null,null,null,null,null,null,null,null,{"$f":"(Monthly!BM647/Monthly!BM635)-1","v":6.2545861141199977E-2},{"$f":"(Monthly!BN647/Monthly!BN635)-1","v":6.0392291292672873E-2},null,null,null,null,null,{"$f":"(Monthly!BT647/Monthly!BT635)-1","v":9.5301216980285819E-3},null,null,null,{"$f":"(Monthly!BX647/Monthly!BX635)-1","v":0.14761904761904754},{"$f":"(Monthly!BY647/Monthly!BY635)-1","v":0.24131944444444442},{"$f":"(Monthly!BZ647/Monthly!BZ635)-1","v":-3.8162048404068782E-2},{"$f":"(Monthly!CA647/Monthly!CA635)-1","v":0.12042719375149424},{"$f":"Monthly!CB647-Monthly!CB635","v":0.5079828464825269},{"$f":"Monthly!CC647-Monthly!CC635","v":-5.2017153517471826E-2},{"$f":"(Monthly!CD647/Monthly!CD635)-1","v":-0.20320855614973266},{"$f":"(Monthly!CE647/Monthly!CE635)-1","v":9.1205211726384405E-2},null,{"$f":"(Monthly!CG647/Monthly!CG635)-1","v":-0.19931271477663226},{"$f":"(Monthly!CH647/Monthly!CH635)-1","v":-6.6079295154185536E-3},null,{"$f":"(Monthly!CJ647/Monthly!CJ635)-1","v":9.1205211726384405E-2},{"$f":"(Monthly!CK647/Monthly!CK635)-1","v":4.2092003287477642E-2},{"$f":"(Monthly!CL647/Monthly!CL635)-1","v":0.10603971318257033},{"$f":"(Monthly!CM647/Monthly!CM635)-1","v":0.20465116279069773},{"$f":"(Monthly!CN647/Monthly!CN635)-1","v":1.7508453272434554E-2},{"$f":"(Monthly!CO647/Monthly!CO635)-1","v":0.13378131864040799},{"$f":"(Monthly!CP647/Monthly!CP635)-1","v":4.2803872394846065E-2},null,{"$f":"(Monthly!CR647/Monthly!CR635)-1","v":6.8916035768253892E-3},null,null,null,null,null,null,null,{"$f":"(Monthly!CZ647/Monthly!CZ635)-1","v":3.0087663379855023E-2},{"$f":"(Monthly!DA647/Monthly!DA635)-1","v":2.2773481506083826E-2},null,null,null,null,null,null,{"$f":"((Monthly!DH647-Monthly!DH635)*60)","v":23.999999999999915},{"$f":"((Monthly!DI647-Monthly!DI635)*100)","v":-50},{"$f":"((Monthly!DJ647-Monthly!DJ635)*100)","v":-100},{"$f":"((Monthly!DK647-Monthly!DK635)*100)","v":-79.999999999999886},{"$f":"Monthly!DL647-Monthly!DL635","v":217},null,null,null,{"$f":"Monthly!DP647-Monthly!DP635","v":2406},null,null,null,{"$f":"(Monthly!DT647/Monthly!DT635)-1","v":-0.11492502343017807},{"$f":"Monthly!DU647-Monthly!DU635","v":-0.69999999999999929},{"$f":"(Monthly!DV647/Monthly!DV635)-1","v":4.3949996068873176E-2},{"$f":"(Monthly!DW647/Monthly!DW635)-1","v":4.4026673093918278E-2},{"$f":"(Monthly!DX647/Monthly!DX635)-1","v":3.5330436771095375E-2},{"$f":"(Monthly!DY647/Monthly!DY635)-1","v":5.7437407952871888E-2},{"$f":"(Monthly!DZ647/Monthly!DZ635)-1","v":2.861827396035177E-2},{"$f":"(Monthly!EA647/Monthly!EA635)-1","v":2.5684931506849251E-2},{"$f":"(Monthly!EB647/Monthly!EB635)-1","v":3.5346097201767401E-2},{"$f":"(Monthly!EC647/Monthly!EC635)-1","v":6.4577141313158615E-2},null,null,null,null,null,null,null,null,null,null,null,null,null,{"$f":"(Monthly!EQ647/Monthly!EQ635)-1","v":4.1515308770109005E-2},{"$f":"(Monthly!ER647/Monthly!ER635)-1","v":3.0804335424985618E-2},{"$f":"(Monthly!ES647/Monthly!ES635)-1","v":2.2784810126582178E-2},null,null,null,null,null,{"$f":"((Monthly!EY647-Monthly!EY635)*100)","v":0},{"$f":"((Monthly!EZ647-Monthly!EZ635)*100)","v":-9.0000000000000018},{"$f":"((Monthly!FA647-Monthly!FA635)*100)","v":-119},{"$f":"((Monthly!FB647-Monthly!FB635)*100)","v":-85.999999999999943},"--",{"$f":"((Monthly!FD647-Monthly!FD635)*100)","v":-83.999999999999986},{"$f":"((Monthly!FE647-Monthly!FE635)*100)","v":-12},{"$f":"((Monthly!FF647-Monthly!FF635)*100)","v":-15.000000000000002},{"$f":"((Monthly!FG647-Monthly!FG635)*100)","v":-37},{"$f":"((Monthly!FH647-Monthly!FH635)*100)","v":-114.99999999999999},{"$f":"((Monthly!FI647-Monthly!FI635)*100)","v":-142.00000000000003},null,null,null,null,null,null,{"$f":"(Monthly!FP647/Monthly!FP635)-1","v":1.9217225072944766E-2},{"$f":"(Monthly!FQ647/Monthly!FQ635)-1","v":-4.2326117276090036E-2},{"$f":"(Monthly!FR647/Monthly!FR635)-1","v":0.10347130606860144},{"$f":"(Monthly!FS647/Monthly!FS635)-1","v":-3.4477600777802708E-2},{"$f":"(Monthly!FT647/Monthly!FT635)-1","v":1.2516817001621217E-2},{"$f":"(Monthly!FU647/Monthly!FU635)-1","v":6.7924517953927843E-3},{"$f":"(Monthly!FV647/Monthly!FV635)-1","v":8.0417211170804803E-2},{"$f":"(Monthly!FW647/Monthly!FW635)-1","v":9.6888206161122259E-2},{"$f":"(Monthly!FX647/Monthly!FX635)-1","v":9.6779622980251334E-2},null,null,null,null,null,{"$f":"(Monthly!GD647/Monthly!GD635)-1","v":0.12100201297248936},{"$f":"(Monthly!GE647/Monthly!GE635)-1","v":0.14680895151263984},{"$f":"(Monthly!GF647/Monthly!GF635)-1","v":8.7854148138737154E-2},{"$f":"(Monthly!GG647/Monthly!GG635)-1","v":0.13134592680047241},{"$f":"(Monthly!GH647/Monthly!GH635)-1","v":0.39660493827160503},{"$f":"(Monthly!GI647/Monthly!GI635)-1","v":0.22970297029702968},{"$f":"(Monthly!GJ647/Monthly!GJ635)-1","v":-0.39808846410313392},{"$f":"(Monthly!GK647/Monthly!GK635)-1","v":8.7471057370722693E-3},{"$f":"(Monthly!GL647/Monthly!GL635)-1","v":7.8220858895705625E-2}]
["2012-08-01",null,null,null,{"$f":"(Monthly!E654/Monthly!E642)-1","v":1.3074886093695115E-2},{"$f":"(Monthly!F654/Monthly!F642)-1","v":8.4832002807263551E-2},{"$f":"(Monthly!G654/Monthly!G642)-1","v":1.0632171177956007E-2},{"$f":"(Monthly!H654/Monthly!H642)-1","v":2.8502043131153343E-3},null,null,null,null,null,null,null,null,null,null,null,null,null,null,null,{"$f":"(Monthly!X654-Monthly!X642)","v":0.20000000000000284},{"$f":"(Monthly!Y654/Monthly!Y642)-1","v":0.12868683167129613},null,null,null,null,null,null,null,null,null,null,null,null,null,{"$f":"(Monthly!AM654/Monthly!AM642)-1","v":2.2624758578831505E-2},{"$f":"(Monthly!AN654/Monthly!AN642)-1","v":2.4363195037901964E-2},{"$f":"(Monthly!AO654/Monthly!AO642)-1","v":5.8038699397681581E-2},{"$f":"((Monthly!AP654-Monthly!AP642)*100)","v":3.0000000000000027},{"$f":"Monthly!AQ654-Monthly!AQ642","v":-2.0999999999999943},{"$f":"Monthly!AR654-Monthly!AR642","v":-3.5},{"$f":"Monthly!AS654-Monthly!AS642","v":2.5},{"$f":"Monthly!AT654-Monthly!AT642","v":-2},{"$f":"Monthly!AU654-Monthly!AU642","v":-3.5},{"$f":"Monthly!AV654-Monthly!AV642","v":-6.5},{"$f":"Monthly!AW654-Monthly!AW642","v":-1.5},{"$f":"Monthly!AX654-Monthly!AX642","v":-4.6999999999999957},{"$f":"Monthly!AY654-Monthly!AY642","v":-1.5},{"$f":"Monthly!AZ654-Monthly!AZ642","v":-4.2999999999999972},{"$f":"Monthly!BA654-Monthly!BA642","v":-1.9000000000000057},{"$f":"(Monthly!BB654/Monthly!BB642)-1","v":-3.4111310592459754E-2},{"$f":"(Monthly!BC654/Monthly!BC642)-1","v":-1.4320324676326712E-2},null,null,null,null,null,null,null,null,null,{"$f":"(Monthly!BM654/Monthly!BM642)-1","v":4.7110379290400184E-2},{"$f":"(Monthly!BN654/Monthly!BN642)-1","v":4.690094240347964E-2},null,null,null,null,null,{"$f":"(Monthly!BT654/Monthly!BT642)-1","v":1.9037667170698214E-2},null,null,null,{"$f":"(Monthly!BX654/Monthly!BX642)-1","v":0.28888888888888897},{"$f":"(Monthly!BY654/Monthly!BY642)-1","v":0.28593508500772802},{"$f":"(Monthly!BZ654/Monthly!BZ642)-1","v":2.0288612658951211E-2},{"$f":"(Monthly!CA654/Monthly!CA642)-1","v":0.14783741956504048},{"$f":"Monthly!CB654-Monthly!CB642","v":-2.9690611152259567},{"$f":"Monthly!CC654-Monthly!CC642","v":-3.5990611152259557},{"$f":"(Monthly!CD654/Monthly!CD642)-1","v":-0.11728395061728392},{"$f":"(Monthly!CE654/Monthly!CE642)-1","v":0.25418060200668902},null,{"$f":"(Monthly!CG654/Monthly!CG642)-1","v":-0.20529801324503316},{"$f":"(Monthly!CH654/Monthly!CH642)-1","v":9.7505668934240397E-2},null,{"$f":"(Monthly!CJ654/Monthly!CJ642)-1","v":0.25418060200668902},{"$f":"(Monthly!CK654/Monthly!CK642)-1","v":3.5818817417601734E-2},{"$f":"(Monthly!CL654/Monthly!CL642)-1","v":0.17918527540939233},{"$f":"(Monthly!CM654/Monthly!CM642)-1","v":0.27014218009478674},{"$f":"(Monthly!CN654/Monthly!CN642)-1","v":2.1305055660667982E-2},{"$f":"(Monthly!CO654/Monthly!CO642)-1","v":9.25403568394223E-2},{"$f":"(Monthly!CP654/Monthly!CP642)-1","v":5.6835018948169003E-2},null,{"$f":"(Monthly!CR654/Monthly!CR642)-1","v":1.1537361078947983E-2},null,null,null,null,null,null,null,{"$f":"(Monthly!CZ654/Monthly!CZ642)-1","v":1.6859349154821235E-2},{"$f":"(Monthly!DA654/Monthly!DA642)-1","v":1.9352524993137443E-2},null,null,null,null,null,null,{"$f":"((Monthly!DH654-Monthly!DH642)*60)","v":0},{"$f":"((Monthly!DI654-Monthly!DI642)*100)","v":-59.999999999999432},{"$f":"((Monthly!DJ654-Monthly!DJ642)*100)","v":-150.00000000000017},{"$f":"((Monthly!DK654-Monthly!DK642)*100)","v":-90.000000000000028},{"$f":"Monthly!DL654-Monthly!DL642","v":196},null,null,null,{"$f":"Monthly!DP654-Monthly!DP642","v":2224},null,null,null,{"$f":"(Monthly!DT654/Monthly!DT642)-1","v":-8.8522588522588541E-2},{"$f":"Monthly!DU654-Monthly!DU642","v":-4},{"$f":"(Monthly!DV654/Monthly!DV642)-1","v":3.985896060095051E-2},{"$f":"(Monthly!DW654/Monthly!DW642)-1","v":4.0512048192770989E-2},{"$f":"(Monthly!DX654/Monthly!DX642)-1","v":3.025635383430525E-2},{"$f":"(Monthly!DY654/Monthly!DY642)-1","v":3.1192660550458662E-2},{"$f":"(Monthly!DZ654/Monthly!DZ642)-1","v":2.9960920538428137E-2},{"$f":"(Monthly!EA654/Monthly!EA642)-1","v":2.6616760241214399E-2},{"$f":"(Monthly!EB654/Monthly!EB642)-1","v":3.7619047619047663E-2},{"$f":"(Monthly!EC654/Monthly!EC642)-1","v":6.2753519446432815E-2},null,null,null,null,null,null,null,null,null,null,null,null,null,{"$f":"(Monthly!EQ654/Monthly!EQ642)-1","v":-2.4606299212598381E-3},{"$f":"(Monthly!ER654/Monthly!ER642)-1","v":2.6330532212885061E-2},{"$f":"(Monthly!ES654/Monthly!ES642)-1","v":1.9987507807620375E-2},null,null,null,null,null,{"$f":"((Monthly!EY654-Monthly!EY642)*100)","v":0},{"$f":"((Monthly!EZ654-Monthly!EZ642)*100)","v":3},{"$f":"((Monthly!FA654-Monthly!FA642)*100)","v":-89.000000000000014},{"$f":"((Monthly!FB654-Monthly!FB642)*100)","v":-45.000000000000014},"--",{"$f":"((Monthly!FD654-Monthly!FD642)*100)","v":-66.999999999999943},{"$f":"((Monthly!FE654-Monthly!FE642)*100)","v":8},{"$f":"((Monthly!FF654-Monthly!FF642)*100)","v":6.9999999999999991},{"$f":"((Monthly!FG654-Monthly!FG642)*100)","v":4.0000000000000009},{"$f":"((Monthly!FH654-Monthly!FH642)*100)","v":-31.000000000000007},{"$f":"((Monthly!FI654-Monthly!FI642)*100)","v":-61.999999999999986},null,null,null,null,null,null,{"$f":"(Monthly!FP654/Monthly!FP642)-1","v":1.0899460120199489E-2},{"$f":"(Monthly!FQ654/Monthly!FQ642)-1","v":-6.9179836342057044E-3},{"$f":"(Monthly!FR654/Monthly!FR642)-1","v":7.7039373682232126E-2},{"$f":"(Monthly!FS654/Monthly!FS642)-1","v":-0.13444498709272312},{"$f":"(Monthly!FT654/Monthly!FT642)-1","v":5.9814510078369798E-2},{"$f":"(Monthly!FU654/Monthly!FU642)-1","v":7.6575461275717238E-2},{"$f":"(Monthly!FV654/Monthly!FV642)-1","v":-4.4312819776116674E-3},{"$f":"(Monthly!FW654/Monthly!FW642)-1","v":-2.5017324831901888E-3},{"$f":"(Monthly!FX654/Monthly!FX642)-1","v":2.6403196199114465E-2},null,null,null,null,null,{"$f":"(Monthly!GD654/Monthly!GD642)-1","v":9.0698482566894389E-2},{"$f":"(Monthly!GE654/Monthly!GE642)-1","v":2.8488477590274064E-2},{"$f":"(Monthly!GF654/Monthly!GF642)-1","v":2.7800435019031955E-2},{"$f":"(Monthly!GG654/Monthly!GG642)-1","v":3.1865284974093244E-2},{"$f":"(Monthly!GH654/Monthly!GH642)-1","v":0.43478260869565211},{"$f":"(Monthly!GI654/Monthly!GI642)-1","v":0.18770764119601324},{"$f":"(Monthly!GJ654/Monthly!GJ642)-1","v":-0.29467871485943775},{"$f":"(Monthly!GK654/Monthly!GK642)-1","v":-2.8370710618751738E-2},{"$f":"(Monthly!GL654/Monthly!GL642)-1","v":6.0040363269424857E-2}]
["2012-11-01",null,null,null,{"$f":"(Monthly!E657/Monthly!E645)-1","v":1.3671666682826933E-2},{"$f":"(Monthly!F657/Monthly!F645)-1","v":7.7112526539278026E-2},{"$f":"(Monthly!G657/Monthly!G645)-1","v":5.1685293987719927E-3},{"$f":"(Monthly!H657/Monthly!H645)-1","v":6.6602681557745846E-3},null,null,null,null,null,null,null,null,null,null,null,null,null,null,null,{"$f":"(Monthly!X657-Monthly!X645)","v":0.29999999999999716},{"$f":"(Monthly!Y657/Monthly!Y645)-1","v":0.12720812413624749},null,null,null,null,null,null,null,null,null,null,null,null,null,{"$f":"(Monthly!AM657/Monthly!AM645)-1","v":2.5483233348167156E-2},{"$f":"(Monthly!AN657/Monthly!AN645)-1","v":2.4668994809642575E-2},{"$f":"(Monthly!AO657/Monthly!AO645)-1","v":5.9984329520440749E-2},{"$f":"((Monthly!AP657-Monthly!AP645)*100)","v":2.0000000000000018},{"$f":"Monthly!AQ657-Monthly!AQ645","v":-2.7000000000000028},{"$f":"Monthly!AR657-Monthly!AR645","v":-4},{"$f":"Monthly!AS657-Monthly!AS645","v":-7.5},{"$f":"Monthly!AT657-Monthly!AT645","v":-4},{"$f":"Monthly!AU657-Monthly!AU645","v":-5},{"$f":"Monthly!AV657-Monthly!AV645","v":-1},{"$f":"Monthly!AW657-Monthly!AW645","v":-1.5},{"$f":"Monthly!AX657-Monthly!AX645","v":-4.7000000000000028},{"$f":"Monthly!AY657-Monthly!AY645","v":7.5},{"$f":"Monthly!AZ657-Monthly!AZ645","v":-2},{"$f":"Monthly!BA657-Monthly!BA645","v":-1},{"$f":"(Monthly!BB657/Monthly!BB645)-1","v":8.199643493761144E-2},{"$f":"(Monthly!BC657/Monthly!BC645)-1","v":3.1347094471959824E-2},null,null,null,null,null,null,null,null,null,{"$f":"(Monthly!BM657/Monthly!BM645)-1","v":4.0388588531837133E-2},{"$f":"(Monthly!BN657/Monthly!BN645)-1","v":3.8868964648705262E-2},null,null,null,null,null,{"$f":"(Monthly!BT657/Monthly!BT645)-1","v":1.8253638502902625E-2},null,null,null,{"$f":"(Monthly!BX657/Monthly!BX645)-1","v":0.17158931082981721},{"$f":"(Monthly!BY657/Monthly!BY645)-1","v":0.31728045325779042},{"$f":"(Monthly!BZ657/Monthly!BZ645)-1","v":5.6997824510514716E-2},{"$f":"(Monthly!CA657/Monthly!CA645)-1","v":0.12859913471579887},{"$f":"Monthly!CB657-Monthly!CB645","v":-2.5554125111891022},{"$f":"Monthly!CC657-Monthly!CC645","v":-3.1854125111890994},{"$f":"(Monthly!CD657/Monthly!CD645)-1","v":-3.2258064516129004E-2},{"$f":"(Monthly!CE657/Monthly!CE645)-1","v":0.19512195121951215},null,{"$f":"(Monthly!CG657/Monthly!CG645)-1","v":-0.24045801526717558},{"$f":"(Monthly!CH657/Monthly!CH645)-1","v":0.1272727272727272},null,{"$f":"(Monthly!CJ657/Monthly!CJ645)-1","v":0.19512195121951215},{"$f":"(Monthly!CK657/Monthly!CK645)-1","v":6.648856561302674E-2},{"$f":"(Monthly!CL657/Monthly!CL645)-1","v":0.68455162019593074},{"$f":"(Monthly!CM657/Monthly!CM645)-1","v":0.2236559139784946},{"$f":"(Monthly!CN657/Monthly!CN645)-1","v":4.9023328890575923E-2},{"$f":"(Monthly!CO657/Monthly!CO645)-1","v":0.10268977284132363},{"$f":"(Monthly!CP657/Monthly!CP645)-1","v":5.887453463437442E-2},null,{"$f":"(Monthly!CR657/Monthly!CR645)-1","v":8.6405127900766043E-3},null,null,null,null,null,null,null,{"$f":"(Monthly!CZ657/Monthly!CZ645)-1","v":1.7960197033926262E-2},{"$f":"(Monthly!DA657/Monthly!DA645)-1","v":1.9528512686261434E-2},null,null,null,null,null,null,{"$f":"((Monthly!DH657-Monthly!DH645)*60)","v":6.0000000000000853},{"$f":"((Monthly!DI657-Monthly!DI645)*100)","v":-49.999999999999289},{"$f":"((Monthly!DJ657-Monthly!DJ645)*100)","v":-109.99999999999997},{"$f":"((Monthly!DK657-Monthly!DK645)*100)","v":-89.999999999999943},{"$f":"Monthly!DL657-Monthly!DL645","v":180},null,null,null,{"$f":"Monthly!DP657-Monthly!DP645","v":2107},null,null,null,{"$f":"(Monthly!DT657/Monthly!DT645)-1","v":3.2021604938271553E-2},{"$f":"Monthly!DU657-Monthly!DU645","v":-2.1999999999999993},{"$f":"(Monthly!DV657/Monthly!DV645)-1","v":3.6732831394022281E-2},{"$f":"(Monthly!DW657/Monthly!DW645)-1","v":3.45061402847886E-2},{"$f":"(Monthly!DX657/Monthly!DX645)-1","v":2.5722070844686584E-2},{"$f":"(Monthly!DY657/Monthly!DY645)-1","v":1.9239578561612403E-2},{"$f":"(Monthly!DZ657/Monthly!DZ645)-1","v":2.7745995423340997E-2},{"$f":"(Monthly!EA657/Monthly!EA645)-1","v":2.6672137874435675E-2},{"$f":"(Monthly!EB657/Monthly!EB645)-1","v":3.0217186024551257E-2},{"$f":"(Monthly!EC657/Monthly!EC645)-1","v":5.4172767203513938E-2},null,null,null,null,null,null,null,null,null,null,null,null,null,{"$f":"(Monthly!EQ657/Monthly!EQ645)-1","v":1.9860973187686426E-3},{"$f":"(Monthly!ER657/Monthly!ER645)-1","v":2.1714922048997831E-2},{"$f":"(Monthly!ES657/Monthly!ES645)-1","v":1.4916096954630254E-2},null,null,null,null,null,{"$f":"((Monthly!EY657-Monthly!EY645)*100)","v":0},{"$f":"((Monthly!EZ657-Monthly!EZ645)*100)","v":8},{"$f":"((Monthly!FA657-Monthly!FA645)*100)","v":-37.000000000000014},{"$f":"((Monthly!FB657-Monthly!FB645)*100)","v":-62.999999999999986},"--",{"$f":"((Monthly!FD657-Monthly!FD645)*100)","v":-64.000000000000014},{"$f":"((Monthly!FE657-Monthly!FE645)*100)","v":8},{"$f":"((Monthly!FF657-Monthly!FF645)*100)","v":6.9999999999999991},{"$f":"((Monthly!FG657-Monthly!FG645)*100)","v":2.0000000000000018},{"$f":"((Monthly!FH657-Monthly!FH645)*100)","v":-24},{"$f":"((Monthly!FI657-Monthly!FI645)*100)","v":-35.999999999999986},null,null,null,null,null,null,{"$f":"(Monthly!FP657/Monthly!FP645)-1","v":-2.7127244340359069E-2},{"$f":"(Monthly!FQ657/Monthly!FQ645)-1","v":-1.928764709584041E-2},{"$f":"(Monthly!FR657/Monthly!FR645)-1","v":-4.6117337811689918E-2},{"$f":"(Monthly!FS657/Monthly!FS645)-1","v":-5.3178934946157108E-2},{"$f":"(Monthly!FT657/Monthly!FT645)-1","v":7.8752258853853618E-4},{"$f":"(Monthly!FU657/Monthly!FU645)-1","v":1.9877849329056785E-2},{"$f":"(Monthly!FV657/Monthly!FV645)-1","v":6.0159682163731576E-2},{"$f":"(Monthly!FW657/Monthly!FW645)-1","v":7.5582960921966258E-2},{"$f":"(Monthly!FX657/Monthly!FX645)-1","v":2.525187066894774E-2},null,null,null,null,null,{"$f":"(Monthly!GD657/Monthly!GD645)-1","v":-0.10852792922538834},{"$f":"(Monthly!GE657/Monthly!GE645)-1","v":-1.5437392795883298E-2},{"$f":"(Monthly!GF657/Monthly!GF645)-1","v":2.2582050537321985E-2},{"$f":"(Monthly!GG657/Monthly!GG645)-1","v":9.591115598182709E-3},{"$f":"(Monthly!GH657/Monthly!GH645)-1","v":0.15399763686490742},{"$f":"(Monthly!GI657/Monthly!GI645)-1","v":0.2360248447204969},{"$f":"(Monthly!GJ657/Monthly!GJ645)-1","v":3.7099494097807773E-2},{"$f":"(Monthly!GK657/Monthly!GK645)-1","v":-0.15330848089468774},{"$f":"(Monthly!GL657/Monthly!GL645)-1","v":2.8082716364564719E-2}]
["2013-03-01",null,null,null,{"$f":"(Monthly!E661/Monthly!E649)-1","v":1.1324352171945051E-2},{"$f":"(Monthly!F661/Monthly!F649)-1","v":5.6347256347256236E-2},{"$f":"(Monthly!G661/Monthly!G649)-1","v":9.0082172518346493E-3},{"$f":"(Monthly!H661/Monthly!H649)-1","v":4.9890501950660138E-3},null,null,null,null,null,null,null,null,null,null,null,null,null,null,null,{"$f":"(Monthly!X661-Monthly!X649)","v":0.59999999999999432},{"$f":"(Monthly!Y661/Monthly!Y649)-1","v":0.1100999729426817},null,null,null,null,null,null,null,null,null,null,null,null,null,{"$f":"(Monthly!AM661/Monthly!AM649)-1","v":2.7300605446393122E-2},{"$f":"(Monthly!AN661/Monthly!AN649)-1","v":1.7789465853594866E-2},{"$f":"(Monthly!AO661/Monthly!AO649)-1","v":4.7058527344020495E-2},{"$f":"((Monthly!AP661-Monthly!AP649)*100)","v":4.0000000000000036},{"$f":"Monthly!AQ661-Monthly!AQ649","v":-1.1000000000000014},{"$f":"Monthly!AR661-Monthly!AR649","v":-1.5},{"$f":"Monthly!AS661-Monthly!AS649","v":3},{"$f":"Monthly!AT661-Monthly!AT649","v":-1.8999999999999986},{"$f":"Monthly!AU661-Monthly!AU649","v":2},{"$f":"Monthly!AV661-Monthly!AV649","v":0.5},{"$f":"Monthly!AW661-Monthly!AW649","v":-0.5},{"$f":"Monthly!AX661-Monthly!AX649","v":-3.1000000000000014},{"$f":"Monthly!AY661-Monthly!AY649","v":-6.5},{"$f":"Monthly!AZ661-Monthly!AZ649","v":-6.0999999999999943},{"$f":"Monthly!BA661-Monthly!BA649","v":1.3999999999999986},{"$f":"(Monthly!BB661/Monthly!BB649)-1","v":-2.195945945945954E-2},{"$f":"(Monthly!BC661/Monthly!BC649)-1","v":-4.9730702744403277E-2},null,null,null,null,null,null,null,null,null,{"$f":"(Monthly!BM661/Monthly!BM649)-1","v":2.9833847195160468E-2},{"$f":"(Monthly!BN661/Monthly!BN649)-1","v":2.7552331040324063E-2},null,null,null,null,null,{"$f":"(Monthly!BT661/Monthly!BT649)-1","v":2.0171183837085715E-2},null,null,null,{"$f":"(Monthly!BX661/Monthly!BX649)-1","v":0.43741007194244608},{"$f":"(Monthly!BY661/Monthly!BY649)-1","v":0.16938519447929745},{"$f":"(Monthly!BZ661/Monthly!BZ649)-1","v":0.10484459360863863},{"$f":"(Monthly!CA661/Monthly!CA649)-1","v":9.1592329844770726E-2},{"$f":"Monthly!CB661-Monthly!CB649","v":-1.7566981975890208},{"$f":"Monthly!CC661-Monthly!CC649","v":-2.2466981975890192},{"$f":"(Monthly!CD661/Monthly!CD649)-1","v":6.2068965517241281E-2},{"$f":"(Monthly!CE661/Monthly!CE649)-1","v":0.26836158192090398},null,{"$f":"(Monthly!CG661/Monthly!CG649)-1","v":-0.1681034482758621},{"$f":"(Monthly!CH661/Monthly!CH649)-1","v":0.11210762331838575},null,{"$f":"(Monthly!CJ661/Monthly!CJ649)-1","v":0.26836158192090398},{"$f":"(Monthly!CK661/Monthly!CK649)-1","v":1.3161341016239003E-2},{"$f":"(Monthly!CL661/Monthly!CL649)-1","v":-0.30948786435954012},{"$f":"(Monthly!CM661/Monthly!CM649)-1","v":0.31567796610169485},{"$f":"(Monthly!CN661/Monthly!CN649)-1","v":-1.2416947105013398E-2},{"$f":"(Monthly!CO661/Monthly!CO649)-1","v":9.5338777881790904E-2},{"$f":"(Monthly!CP661/Monthly!CP649)-1","v":6.2846418136444093E-2},null,{"$f":"(Monthly!CR661/Monthly!CR649)-1","v":9.780103777227156E-3},null,null,null,null,null,null,null,{"$f":"(Monthly!CZ661/Monthly!CZ649)-1","v":1.5261770837430744E-2},{"$f":"(Monthly!DA661/Monthly!DA649)-1","v":1.8916482112063315E-2},null,null,null,null,null,null,{"$f":"((Monthly!DH661-Monthly!DH649)*60)","v":5.9999999999996589},{"$f":"((Monthly!DI661-Monthly!DI649)*100)","v":-50},{"$f":"((Monthly!DJ661-Monthly!DJ649)*100)","v":-69.999999999999929},{"$f":"((Monthly!DK661-Monthly!DK649)*100)","v":-69.999999999999929},{"$f":"Monthly!DL661-Monthly!DL649","v":104},null,null,null,{"$f":"Monthly!DP661-Monthly!DP649","v":1941},null,null,null,{"$f":"(Monthly!DT661/Monthly!DT649)-1","v":-4.0370976541189263E-2},{"$f":"Monthly!DU661-Monthly!DU649","v":-1.5999999999999979},{"$f":"(Monthly!DV661/Monthly!DV649)-1","v":2.2767990444908959E-2},{"$f":"(Monthly!DW661/Monthly!DW649)-1","v":2.2850178993068848E-2},{"$f":"(Monthly!DX661/Monthly!DX649)-1","v":2.1720052654673028E-2},{"$f":"(Monthly!DY661/Monthly!DY649)-1","v":3.9095619406500193E-2},{"$f":"(Monthly!DZ661/Monthly!DZ649)-1","v":1.6445016445016503E-2},{"$f":"(Monthly!EA661/Monthly!EA649)-1","v":1.5840362065418612E-2},{"$f":"(Monthly!EB661/Monthly!EB649)-1","v":1.7823639774859235E-2},{"$f":"(Monthly!EC661/Monthly!EC649)-1","v":2.5417393471218519E-2},null,null,null,null,null,null,null,null,null,null,null,null,null,{"$f":"(Monthly!EQ661/Monthly!EQ649)-1","v":-9.7943192948080071E-4},{"$f":"(Monthly!ER661/Monthly!ER649)-1","v":1.7089305402425481E-2},{"$f":"(Monthly!ES661/Monthly!ES649)-1","v":9.2478421701602809E-3},null,null,null,null,null,{"$f":"((Monthly!EY661-Monthly!EY649)*100)","v":0},{"$f":"((Monthly!EZ661-Monthly!EZ649)*100)","v":1.0000000000000009},{"$f":"((Monthly!FA661-Monthly!FA649)*100)","v":-6.0000000000000053},{"$f":"((Monthly!FB661-Monthly!FB649)*100)","v":-38.000000000000078},"--",{"$f":"((Monthly!FD661-Monthly!FD649)*100)","v":-38.000000000000036},{"$f":"((Monthly!FE661-Monthly!FE649)*100)","v":0.99999999999999956},{"$f":"((Monthly!FF661-Monthly!FF649)*100)","v":-4.0000000000000009},{"$f":"((Monthly!FG661-Monthly!FG649)*100)","v":-8.0000000000000018},{"$f":"((Monthly!FH661-Monthly!FH649)*100)","v":-20.000000000000007},{"$f":"((Monthly!FI661-Monthly!FI649)*100)","v":-20.999999999999996},null,null,null,null,null,null,{"$f":"(Monthly!FP661/Monthly!FP649)-1","v":3.0790903602334385E-2},{"$f":"(Monthly!FQ661/Monthly!FQ649)-1","v":-1.538217821782184E-2},{"$f":"(Monthly!FR661/Monthly!FR649)-1","v":-1.9784666295491804E-2},{"$f":"(Monthly!FS661/Monthly!FS649)-1","v":-1.9306480920654234E-2},{"$f":"(Monthly!FT661/Monthly!FT649)-1","v":1.9481933507203841E-2},{"$f":"(Monthly!FU661/Monthly!FU649)-1","v":4.5022752388555798E-2},{"$f":"(Monthly!FV661/Monthly!FV649)-1","v":-2.8870995374336128E-2},{"$f":"(Monthly!FW661/Monthly!FW649)-1","v":-0.13162675422270165},{"$f":"(Monthly!FX661/Monthly!FX649)-1","v":-7.8148516822616032E-2},null,null,null,null,null,{"$f":"(Monthly!GD661/Monthly!GD649)-1","v":-0.12374046520387982},{"$f":"(Monthly!GE661/Monthly!GE649)-1","v":-0.13535273017138305},{"$f":"(Monthly!GF661/Monthly!GF649)-1","v":-2.9883043948683463E-2},{"$f":"(Monthly!GG661/Monthly!GG649)-1","v":-1.4296098861158235E-2},{"$f":"(Monthly!GH661/Monthly!GH649)-1","v":-5.3093964858670795E-2},{"$f":"(Monthly!GI661/Monthly!GI649)-1","v":1.7211703958692759E-3},{"$f":"(Monthly!GJ661/Monthly!GJ649)-1","v":0.64198606271777026},{"$f":"(Monthly!GK661/Monthly!GK649)-1","v":6.1720067453625571E-2},{"$f":"(Monthly!GL661/Monthly!GL649)-1","v":3.3252753156056913E-2}]
["2013-08-01",null,null,null,{"$f":"(Monthly!E666/Monthly!E654)-1","v":1.5202913731633183E-2},{"$f":"(Monthly!F666/Monthly!F654)-1","v":6.598738476467747E-2},{"$f":"(Monthly!G666/Monthly!G654)-1","v":1.0651821329943356E-2},{"$f":"(Monthly!H666/Monthly!H654)-1","v":8.6858170323216299E-3},null,null,null,null,null,null,null,null,null,null,null,null,null,null,null,{"$f":"(Monthly!X666-Monthly!X654)","v":0.39999999999999147},{"$f":"(Monthly!Y666/Monthly!Y654)-1","v":7.5467404686553552E-2},null,null,null,null,null,null,null,null,null,null,null,null,null,{"$f":"(Monthly!AM666/Monthly!AM654)-1","v":2.1658799838259579E-2},{"$f":"(Monthly!AN666/Monthly!AN654)-1","v":1.2786217685180956E-2},{"$f":"(Monthly!AO666/Monthly!AO654)-1","v":3.0367239445719951E-2},{"$f":"((Monthly!AP666-Monthly!AP654)*100)","v":0},{"$f":"Monthly!AQ666-Monthly!AQ654","v":4.8999999999999986},{"$f":"Monthly!AR666-Monthly!AR654","v":4},{"$f":"Monthly!AS666-Monthly!AS654","v":-6.5},{"$f":"Monthly!AT666-Monthly!AT654","v":1.6999999999999957},{"$f":"Monthly!AU666-Monthly!AU654","v":8.5},{"$f":"Monthly!AV666-Monthly!AV654","v":9},{"$f":"Monthly!AW666-Monthly!AW654","v":-5.5},{"$f":"Monthly!AX666-Monthly!AX654","v":16.100000000000001},{"$f":"Monthly!AY666-Monthly!AY654","v":0},{"$f":"Monthly!AZ666-Monthly!AZ654","v":15.199999999999996},{"$f":"Monthly!BA666-Monthly!BA654","v":3},{"$f":"(Monthly!BB666/Monthly!BB654)-1","v":8.9219330855018653E-2},{"$f":"(Monthly!BC666/Monthly!BC654)-1","v":3.5146771037182001E-2},null,null,null,null,null,null,null,null,null,{"$f":"(Monthly!BM666/Monthly!BM654)-1","v":3.8812751303793913E-2},{"$f":"(Monthly!BN666/Monthly!BN654)-1","v":3.9706937615350046E-2},null,null,null,null,null,{"$f":"(Monthly!BT666/Monthly!BT654)-1","v":2.4465186377080839E-2},null,null,null,{"$f":"(Monthly!BX666/Monthly!BX654)-1","v":0.19098143236074261},{"$f":"(Monthly!BY666/Monthly!BY654)-1","v":0.13822115384615374},{"$f":"(Monthly!BZ666/Monthly!BZ654)-1","v":0.12925360593754376},{"$f":"(Monthly!CA666/Monthly!CA654)-1","v":0.1113397672438261},{"$f":"Monthly!CB666-Monthly!CB654","v":-1.0049721374482115},{"$f":"Monthly!CC666-Monthly!CC654","v":-1.5649721374482102},{"$f":"(Monthly!CD666/Monthly!CD654)-1","v":0.21678321678321688},{"$f":"(Monthly!CE666/Monthly!CE654)-1","v":1.3333333333333419E-2},null,{"$f":"(Monthly!CG666/Monthly!CG654)-1","v":-7.9166666666666718E-2},{"$f":"(Monthly!CH666/Monthly!CH654)-1","v":0.10123966942148765},null,{"$f":"(Monthly!CJ666/Monthly!CJ654)-1","v":1.3333333333333419E-2},{"$f":"(Monthly!CK666/Monthly!CK654)-1","v":2.1680373480567061E-2},{"$f":"(Monthly!CL666/Monthly!CL654)-1","v":-0.22736141397911158},{"$f":"(Monthly!CM666/Monthly!CM654)-1","v":0.16417910447761197},{"$f":"(Monthly!CN666/Monthly!CN654)-1","v":-2.765906114289729E-3},{"$f":"(Monthly!CO666/Monthly!CO654)-1","v":8.5417444320019964E-2},{"$f":"(Monthly!CP666/Monthly!CP654)-1","v":5.9703716232868187E-2},null,{"$f":"(Monthly!CR666/Monthly!CR654)-1","v":8.2367637671791893E-3},null,null,null,null,null,null,null,{"$f":"(Monthly!CZ666/Monthly!CZ654)-1","v":1.4809627780339119E-2},{"$f":"(Monthly!DA666/Monthly!DA654)-1","v":1.7716834684862848E-2},null,null,null,null,null,null,{"$f":"((Monthly!DH666-Monthly!DH654)*60)","v":6.0000000000000853},{"$f":"((Monthly!DI666-Monthly!DI654)*100)","v":-20.000000000000284},{"$f":"((Monthly!DJ666-Monthly!DJ654)*100)","v":-100},{"$f":"((Monthly!DK666-Monthly!DK654)*100)","v":-79.999999999999986},{"$f":"Monthly!DL666-Monthly!DL654","v":56},null,null,null,{"$f":"Monthly!DP666-Monthly!DP654","v":2320},null,null,null,{"$f":"(Monthly!DT666/Monthly!DT654)-1","v":-0.11252511721366376},{"$f":"Monthly!DU666-Monthly!DU654","v":-1.7999999999999972},{"$f":"(Monthly!DV666/Monthly!DV654)-1","v":2.0566121185316311E-2},{"$f":"(Monthly!DW666/Monthly!DW654)-1","v":1.9684469532493809E-2},{"$f":"(Monthly!DX666/Monthly!DX654)-1","v":1.366937206322083E-2},{"$f":"(Monthly!DY666/Monthly!DY654)-1","v":1.556939501779353E-2},{"$f":"(Monthly!DZ666/Monthly!DZ654)-1","v":1.3069139966273013E-2},{"$f":"(Monthly!EA666/Monthly!EA654)-1","v":1.0937816487745611E-2},{"$f":"(Monthly!EB666/Monthly!EB654)-1","v":1.7898118402937202E-2},{"$f":"(Monthly!EC666/Monthly!EC654)-1","v":3.233048944768746E-2},null,null,null,null,null,null,null,null,null,null,null,null,null,{"$f":"(Monthly!EQ666/Monthly!EQ654)-1","v":7.4000986679823022E-3},{"$f":"(Monthly!ER666/Monthly!ER654)-1","v":1.2008733624454315E-2},{"$f":"(Monthly!ES666/Monthly!ES654)-1","v":5.511328842620733E-3},null,null,null,null,null,{"$f":"((Monthly!EY666-Monthly!EY654)*100)","v":0},{"$f":"((Monthly!EZ666-Monthly!EZ654)*100)","v":-5},{"$f":"((Monthly!FA666-Monthly!FA654)*100)","v":106},{"$f":"((Monthly!FB666-Monthly!FB654)*100)","v":50.999999999999979},"--",{"$f":"((Monthly!FD666-Monthly!FD654)*100)","v":85.999999999999986},{"$f":"((Monthly!FE666-Monthly!FE654)*100)","v":-6.0000000000000009},{"$f":"((Monthly!FF666-Monthly!FF654)*100)","v":-4.9999999999999991},{"$f":"((Monthly!FG666-Monthly!FG654)*100)","v":8.9999999999999964},{"$f":"((Monthly!FH666-Monthly!FH654)*100)","v":81},{"$f":"((Monthly!FI666-Monthly!FI654)*100)","v":106.00000000000003},null,null,null,null,null,null,{"$f":"(Monthly!FP666/Monthly!FP654)-1","v":4.8669891172914204E-2},{"$f":"(Monthly!FQ666/Monthly!FQ654)-1","v":-3.7425502806912814E-2},{"$f":"(Monthly!FR666/Monthly!FR654)-1","v":-2.0281805558716948E-2},{"$f":"(Monthly!FS666/Monthly!FS654)-1","v":7.319039174592934E-2},{"$f":"(Monthly!FT666/Monthly!FT654)-1","v":1.1145549513962516E-2},{"$f":"(Monthly!FU666/Monthly!FU654)-1","v":2.6355536128576551E-2},{"$f":"(Monthly!FV666/Monthly!FV654)-1","v":2.765691367343015E-2},{"$f":"(Monthly!FW666/Monthly!FW654)-1","v":5.0447149455749241E-2},{"$f":"(Monthly!FX666/Monthly!FX654)-1","v":9.4471422920576753E-3},null,null,null,null,null,{"$f":"(Monthly!GD666/Monthly!GD654)-1","v":0.13179694137638065},{"$f":"(Monthly!GE666/Monthly!GE654)-1","v":-1.7003352152434648E-2},{"$f":"(Monthly!GF666/Monthly!GF654)-1","v":-3.7365253620792127E-2},{"$f":"(Monthly!GG666/Monthly!GG654)-1","v":-1.5189555611348271E-2},{"$f":"(Monthly!GH666/Monthly!GH654)-1","v":0.20690778755294881},{"$f":"(Monthly!GI666/Monthly!GI654)-1","v":0.33286713286713288},{"$f":"(Monthly!GJ666/Monthly!GJ654)-1","v":0.21352313167259784},{"$f":"(Monthly!GK666/Monthly!GK654)-1","v":4.2436040044493861E-2},{"$f":"(Monthly!GL666/Monthly!GL654)-1","v":8.0437886720609253E-2}]
["2014-02-01",null,null,null,{"$f":"(Monthly!E672/Monthly!E660)-1","v":1.8774205212625183E-2},{"$f":"(Monthly!F672/Monthly!F660)-1","v":3.3049612759757707E-2},{"$f":"(Monthly!G672/Monthly!G660)-1","v":1.8885946251031127E-2},{"$f":"(Monthly!H672/Monthly!H660)-1","v":1.6410983068492424E-2},null,null,null,null,null,null,null,null,null,null,null,null,null,null,null,{"$f":"(Monthly!X672-Monthly!X660)","v":0.70000000000000284},{"$f":"(Monthly!Y672/Monthly!Y660)-1","v":8.5867234455326402E-2},null,null,null,null,null,null,null,null,null,null,null,null,null,{"$f":"(Monthly!AM672/Monthly!AM660)-1","v":2.1308384688238702E-2},{"$f":"(Monthly!AN672/Monthly!AN660)-1","v":-8.0854932446694505E-4},{"$f":"(Monthly!AO672/Monthly!AO660)-1","v":3.7999631287257918E-2},{"$f":"((Monthly!AP672-Monthly!AP660)*100)","v":3.0000000000000027},{"$f":"Monthly!AQ672-Monthly!AQ660","v":0.19999999999999574},{"$f":"Monthly!AR672-Monthly!AR660","v":-3},{"$f":"Monthly!AS672-Monthly!AS660","v":0},{"$f":"Monthly!AT672-Monthly!AT660","v":-0.30000000000000426},{"$f":"Monthly!AU672-Monthly!AU660","v":0},{"$f":"Monthly!AV672-Monthly!AV660","v":-0.5},{"$f":"Monthly!AW672-Monthly!AW660","v":1},{"$f":"Monthly!AX672-Monthly!AX660","v":-3.2999999999999972},{"$f":"Monthly!AY672-Monthly!AY660","v":-1.5},{"$f":"Monthly!AZ672-Monthly!AZ660","v":-9.3999999999999986},{"$f":"Monthly!BA672-Monthly!BA660","v":7.1000000000000014},{"$f":"(Monthly!BB672/Monthly!BB660)-1","v":-2.2648083623693305E-2},{"$f":"(Monthly!BC672/Monthly!BC660)-1","v":1.0464781693447112E-2},null,null,null,null,null,null,null,null,null,{"$f":"(Monthly!BM672/Monthly!BM660)-1","v":1.8036355955189931E-2},{"$f":"(Monthly!BN672/Monthly!BN660)-1","v":1.6159056549972739E-2},null,null,null,null,null,{"$f":"(Monthly!BT672/Monthly!BT660)-1","v":2.4498530364089888E-2},null,null,null,{"$f":"(Monthly!BX672/Monthly!BX660)-1","v":-2.2680412371134051E-2},{"$f":"(Monthly!BY672/Monthly!BY660)-1","v":6.2821833161688989E-2},{"$f":"(Monthly!BZ672/Monthly!BZ660)-1","v":0.12713789417423849},{"$f":"(Monthly!CA672/Monthly!CA660)-1","v":-1.1528115793518756E-3},{"$f":"Monthly!CB672-Monthly!CB660","v":-1.885869656571959},{"$f":"Monthly!CC672-Monthly!CC660","v":-2.5858696565719566},{"$f":"(Monthly!CD672/Monthly!CD660)-1","v":0.2287581699346406},{"$f":"(Monthly!CE672/Monthly!CE660)-1","v":-3.6446469248291535E-2},null,{"$f":"(Monthly!CG672/Monthly!CG660)-1","v":0},{"$f":"(Monthly!CH672/Monthly!CH660)-1","v":-5.858585858585863E-2},null,{"$f":"(Monthly!CJ672/Monthly!CJ660)-1","v":-3.6446469248291535E-2},{"$f":"(Monthly!CK672/Monthly!CK660)-1","v":4.0694332681917356E-2},{"$f":"(Monthly!CL672/Monthly!CL660)-1","v":0.17422023091504402},{"$f":"(Monthly!CM672/Monthly!CM660)-1","v":-0.10105580693815985},{"$f":"(Monthly!CN672/Monthly!CN660)-1","v":2.5234413267091194E-2},{"$f":"(Monthly!CO672/Monthly!CO660)-1","v":7.4592664236291961E-2},{"$f":"(Monthly!CP672/Monthly!CP660)-1","v":5.9349166947301191E-2},null,{"$f":"(Monthly!CR672/Monthly!CR660)-1","v":1.3409166755389723E-2},null,null,null,null,null,null,null,{"$f":"(Monthly!CZ672/Monthly!CZ660)-1","v":1.1532931304590432E-2},{"$f":"(Monthly!DA672/Monthly!DA660)-1","v":1.5593092092535343E-2},null,null,null,null,null,null,{"$f":"((Monthly!DH672-Monthly!DH660)*60)","v":-23.999999999999915},{"$f":"((Monthly!DI672-Monthly!DI660)*100)","v":-50},{"$f":"((Monthly!DJ672-Monthly!DJ660)*100)","v":-180.00000000000006},{"$f":"((Monthly!DK672-Monthly!DK660)*100)","v":-100},{"$f":"Monthly!DL672-Monthly!DL660","v":110},null,null,null,{"$f":"Monthly!DP672-Monthly!DP660","v":2146},null,null,null,{"$f":"(Monthly!DT672/Monthly!DT660)-1","v":-6.5433854907539168E-2},{"$f":"Monthly!DU672-Monthly!DU660","v":-1.3999999999999986},{"$f":"(Monthly!DV672/Monthly!DV660)-1","v":1.3671732964875449E-2},{"$f":"(Monthly!DW672/Monthly!DW660)-1","v":1.4307004470939022E-2},{"$f":"(Monthly!DX672/Monthly!DX660)-1","v":1.0972461273665912E-2},{"$f":"(Monthly!DY672/Monthly!DY660)-1","v":1.6371077762619368E-2},{"$f":"(Monthly!DZ672/Monthly!DZ660)-1","v":9.2997041003239911E-3},{"$f":"(Monthly!EA672/Monthly!EA660)-1","v":-2.4365482233502656E-3},{"$f":"(Monthly!EB672/Monthly!EB660)-1","v":3.5911602209944826E-2},{"$f":"(Monthly!EC672/Monthly!EC660)-1","v":2.1823472356935048E-2},null,null,null,null,null,null,null,null,null,null,null,null,null,{"$f":"(Monthly!EQ672/Monthly!EQ660)-1","v":6.8526676456190927E-3},{"$f":"(Monthly!ER672/Monthly!ER660)-1","v":1.9001085776330084E-2},{"$f":"(Monthly!ES672/Monthly!ES660)-1","v":1.4678899082568808E-2},null,null,null,null,null,{"$f":"((Monthly!EY672-Monthly!EY660)*100)","v":0},{"$f":"((Monthly!EZ672-Monthly!EZ660)*100)","v":-7.9999999999999991},{"$f":"((Monthly!FA672-Monthly!FA660)*100)","v":55.000000000000028},{"$f":"((Monthly!FB672-Monthly!FB660)*100)","v":25},"--",{"$f":"((Monthly!FD672-Monthly!FD660)*100)","v":77},{"$f":"((Monthly!FE672-Monthly!FE660)*100)","v":-5},{"$f":"((Monthly!FF672-Monthly!FF660)*100)","v":-4.0000000000000009},{"$f":"((Monthly!FG672-Monthly!FG660)*100)","v":6},{"$f":"((Monthly!FH672-Monthly!FH660)*100)","v":67},{"$f":"((Monthly!FI672-Monthly!FI660)*100)","v":73},null,null,null,null,null,null,{"$f":"(Monthly!FP672/Monthly!FP660)-1","v":9.4672212319271143E-2},{"$f":"(Monthly!FQ672/Monthly!FQ660)-1","v":-2.4180479116859055E-2},{"$f":"(Monthly!FR672/Monthly!FR660)-1","v":4.462903441284416E-2},{"$f":"(Monthly!FS672/Monthly!FS660)-1","v":2.3825578781748735E-2},{"$f":"(Monthly!FT672/Monthly!FT660)-1","v":3.2456690672284072E-2},{"$f":"(Monthly!FU672/Monthly!FU660)-1","v":3.0495498270832311E-2},{"$f":"(Monthly!FV672/Monthly!FV660)-1","v":9.0721282555206173E-3},{"$f":"(Monthly!FW672/Monthly!FW660)-1","v":-6.2374208602222758E-2},{"$f":"(Monthly!FX672/Monthly!FX660)-1","v":1.6991237052677466E-2},null,null,null,null,null,{"$f":"(Monthly!GD672/Monthly!GD660)-1","v":5.7700377675199421E-2},{"$f":"(Monthly!GE672/Monthly!GE660)-1","v":-6.1611374407582908E-2},{"$f":"(Monthly!GF672/Monthly!GF660)-1","v":-8.076820128479667E-2},{"$f":"(Monthly!GG672/Monthly!GG660)-1","v":-3.1014351739236057E-2},{"$f":"(Monthly!GH672/Monthly!GH660)-1","v":0.34422577051615288},{"$f":"(Monthly!GI672/Monthly!GI660)-1","v":0.13576158940397343},{"$f":"(Monthly!GJ672/Monthly!GJ660)-1","v":0.55891238670694876},{"$f":"(Monthly!GK672/Monthly!GK660)-1","v":-2.7897284216187201E-2},{"$f":"(Monthly!GL672/Monthly!GL660)-1","v":3.9579662723382869E-2}]
["2014-06-01",null,null,null,{"$f":"(Monthly!E676/Monthly!E664)-1","v":2.7845748212219634E-2},{"$f":"(Monthly!F676/Monthly!F664)-1","v":7.1499352084762435E-2},{"$f":"(Monthly!G676/Monthly!G664)-1","v":2.3645576198518814E-2},{"$f":"(Monthly!H676/Monthly!H664)-1","v":2.2225745542599373E-2},null,null,null,null,null,null,null,null,null,null,null,null,null,null,null,{"$f":"(Monthly!X676-Monthly!X664)","v":1.7999999999999972},{"$f":"(Monthly!Y676/Monthly!Y664)-1","v":0.10220046152961748},null,null,null,null,null,null,null,null,null,null,null,null,null,{"$f":"(Monthly!AM676/Monthly!AM664)-1","v":3.5306705407713634E-2},{"$f":"(Monthly!AN676/Monthly!AN664)-1","v":1.3845497596638223E-2},{"$f":"(Monthly!AO676/Monthly!AO664)-1","v":5.1586473871344962E-2},{"$f":"((Monthly!AP676-Monthly!AP664)*100)","v":2.0000000000000018},{"$f":"Monthly!AQ676-Monthly!AQ664","v":3},{"$f":"Monthly!AR676-Monthly!AR664","v":1.5},{"$f":"Monthly!AS676-Monthly!AS664","v":1.5},{"$f":"Monthly!AT676-Monthly!AT664","v":4.0999999999999943},{"$f":"Monthly!AU676-Monthly!AU664","v":0},{"$f":"Monthly!AV676-Monthly!AV664","v":1},{"$f":"Monthly!AW676-Monthly!AW664","v":2.5},{"$f":"Monthly!AX676-Monthly!AX664","v":7},{"$f":"Monthly!AY676-Monthly!AY664","v":5.5},{"$f":"Monthly!AZ676-Monthly!AZ664","v":6.6000000000000014},{"$f":"Monthly!BA676-Monthly!BA664","v":1.8999999999999986},{"$f":"(Monthly!BB676/Monthly!BB664)-1","v":7.9279279279279358E-2},{"$f":"(Monthly!BC676/Monthly!BC664)-1","v":1.9159049360146341E-2},null,null,null,null,null,null,null,null,null,{"$f":"(Monthly!BM676/Monthly!BM664)-1","v":4.6460001394978523E-2},{"$f":"(Monthly!BN676/Monthly!BN664)-1","v":4.377561661775764E-2},null,null,null,null,null,{"$f":"(Monthly!BT676/Monthly!BT664)-1","v":3.1002000386965323E-2},null,null,null,{"$f":"(Monthly!BX676/Monthly!BX664)-1","v":8.9201877934272256E-2},{"$f":"(Monthly!BY676/Monthly!BY664)-1","v":6.7297581493165115E-2},{"$f":"(Monthly!BZ676/Monthly!BZ664)-1","v":8.0623692717246564E-2},{"$f":"(Monthly!CA676/Monthly!CA664)-1","v":8.1172347881490969E-2},{"$f":"Monthly!CB676-Monthly!CB664","v":-1.0814884179570541},{"$f":"Monthly!CC676-Monthly!CC664","v":-2.0614884179570545},{"$f":"(Monthly!CD676/Monthly!CD664)-1","v":0.23750000000000004},{"$f":"(Monthly!CE676/Monthly!CE664)-1","v":-0.10151187904967607},null,{"$f":"(Monthly!CG676/Monthly!CG664)-1","v":6.0185185185185119E-2},{"$f":"(Monthly!CH676/Monthly!CH664)-1","v":-2.9069767441860517E-2},null,{"$f":"(Monthly!CJ676/Monthly!CJ664)-1","v":-0.10151187904967607},{"$f":"(Monthly!CK676/Monthly!CK664)-1","v":4.9980831215300947E-2},{"$f":"(Monthly!CL676/Monthly!CL664)-1","v":0.14455118583008097},{"$f":"(Monthly!CM676/Monthly!CM664)-1","v":-8.2644628099173278E-3},{"$f":"(Monthly!CN676/Monthly!CN664)-1","v":3.2662076133558537E-2},{"$f":"(Monthly!CO676/Monthly!CO664)-1","v":6.8018711683179855E-2},{"$f":"(Monthly!CP676/Monthly!CP664)-1","v":6.8429354806029741E-2},null,{"$f":"(Monthly!CR676/Monthly!CR664)-1","v":2.96476400691843E-2},null,null,null,null,null,null,null,{"$f":"(Monthly!CZ676/Monthly!CZ664)-1","v":2.0032361623933737E-2},{"$f":"(Monthly!DA676/Monthly!DA664)-1","v":1.9167398710175032E-2},null,null,null,null,null,null,{"$f":"((Monthly!DH676-Monthly!DH664)*60)","v":0},{"$f":"((Monthly!DI676-Monthly!DI664)*100)","v":-60.000000000000142},{"$f":"((Monthly!DJ676-Monthly!DJ664)*100)","v":-219.99999999999994},{"$f":"((Monthly!DK676-Monthly!DK664)*100)","v":-140.00000000000003},{"$f":"Monthly!DL676-Monthly!DL664","v":168},null,null,null,{"$f":"Monthly!DP676-Monthly!DP664","v":2582},null,null,null,{"$f":"(Monthly!DT676/Monthly!DT664)-1","v":-3.5672853828306317E-2},{"$f":"Monthly!DU676-Monthly!DU664","v":-3.4000000000000004},{"$f":"(Monthly!DV676/Monthly!DV664)-1","v":2.5802710734217582E-2},{"$f":"(Monthly!DW676/Monthly!DW664)-1","v":2.534908700322247E-2},{"$f":"(Monthly!DX676/Monthly!DX664)-1","v":2.63659466327828E-2},{"$f":"(Monthly!DY676/Monthly!DY664)-1","v":3.1718061674008702E-2},{"$f":"(Monthly!DZ676/Monthly!DZ664)-1","v":2.4672428212991315E-2},{"$f":"(Monthly!EA676/Monthly!EA664)-1","v":4.8163756773027533E-3},{"$f":"(Monthly!EB676/Monthly!EB664)-1","v":6.9831127339114563E-2},{"$f":"(Monthly!EC676/Monthly!EC664)-1","v":2.3224950232249464E-2},null,null,null,null,null,null,null,null,null,null,null,null,null,{"$f":"(Monthly!EQ676/Monthly!EQ664)-1","v":1.9579050416054899E-2},{"$f":"(Monthly!ER676/Monthly!ER664)-1","v":1.8908698001080415E-2},{"$f":"(Monthly!ES676/Monthly!ES664)-1","v":1.4015843997562616E-2},null,null,null,null,null,{"$f":"((Monthly!EY676-Monthly!EY664)*100)","v":0},{"$f":"((Monthly!EZ676-Monthly!EZ664)*100)","v":1.0000000000000009},{"$f":"((Monthly!FA676-Monthly!FA664)*100)","v":-1.9999999999999574},{"$f":"((Monthly!FB676-Monthly!FB664)*100)","v":-39.000000000000057},"--",{"$f":"((Monthly!FD676-Monthly!FD664)*100)","v":8.9999999999999858},{"$f":"((Monthly!FE676-Monthly!FE664)*100)","v":-1.0000000000000002},{"$f":"((Monthly!FF676-Monthly!FF664)*100)","v":-4.0000000000000009},{"$f":"((Monthly!FG676-Monthly!FG664)*100)","v":12},{"$f":"((Monthly!FH676-Monthly!FH664)*100)","v":48},{"$f":"((Monthly!FI676-Monthly!FI664)*100)","v":30.000000000000028},null,null,null,null,null,null,{"$f":"(Monthly!FP676/Monthly!FP664)-1","v":5.0029086678301304E-2},{"$f":"(Monthly!FQ676/Monthly!FQ664)-1","v":1.571517068240369E-2},{"$f":"(Monthly!FR676/Monthly!FR664)-1","v":2.2833163627387076E-3},{"$f":"(Monthly!FS676/Monthly!FS664)-1","v":3.0158369326361845E-2},{"$f":"(Monthly!FT676/Monthly!FT664)-1","v":8.1453337902834821E-3},{"$f":"(Monthly!FU676/Monthly!FU664)-1","v":2.6703635550462401E-3},{"$f":"(Monthly!FV676/Monthly!FV664)-1","v":0.11298161193545186},{"$f":"(Monthly!FW676/Monthly!FW664)-1","v":0.10369224767318719},{"$f":"(Monthly!FX676/Monthly!FX664)-1","v":9.6255168443273753E-2},null,null,null,null,null,{"$f":"(Monthly!GD676/Monthly!GD664)-1","v":0.10427974947807939},{"$f":"(Monthly!GE676/Monthly!GE664)-1","v":8.6280606296152307E-2},{"$f":"(Monthly!GF676/Monthly!GF664)-1","v":2.7782326292233206E-2},{"$f":"(Monthly!GG676/Monthly!GG664)-1","v":1.6498386593108982E-2},{"$f":"(Monthly!GH676/Monthly!GH664)-1","v":0.27346221441124774},{"$f":"(Monthly!GI676/Monthly!GI664)-1","v":8.3146067415730274E-2},{"$f":"(Monthly!GJ676/Monthly!GJ664)-1","v":0.20472440944881876},{"$f":"(Monthly!GK676/Monthly!GK664)-1","v":-8.024578694408957E-2},{"$f":"(Monthly!GL676/Monthly!GL664)-1","v":2.6287216412366421E-2}]
["2014-09-01",null,null,null,{"$f":"(Monthly!E679/Monthly!E667)-1","v":3.1524435682416474E-2},{"$f":"(Monthly!F679/Monthly!F667)-1","v":7.7828397873956012E-2},{"$f":"(Monthly!G679/Monthly!G667)-1","v":1.9596072209596693E-2},{"$f":"(Monthly!H679/Monthly!H667)-1","v":2.8133432852959661E-2},null,null,null,null,null,null,null,null,null,null,null,null,null,null,null,{"$f":"(Monthly!X679-Monthly!X667)","v":1.2000000000000028},{"$f":"(Monthly!Y679/Monthly!Y667)-1","v":0.12051400447487715},null,null,null,null,null,null,null,null,null,null,null,null,null,{"$f":"(Monthly!AM679/Monthly!AM667)-1","v":3.083147688662935E-2},{"$f":"(Monthly!AN679/Monthly!AN667)-1","v":1.4073971601071156E-2},{"$f":"(Monthly!AO679/Monthly!AO667)-1","v":4.6134063287916804E-2},{"$f":"((Monthly!AP679-Monthly!AP667)*100)","v":2.0000000000000018},{"$f":"Monthly!AQ679-Monthly!AQ667","v":0.39999999999999858},{"$f":"Monthly!AR679-Monthly!AR667","v":-2.5},{"$f":"Monthly!AS679-Monthly!AS667","v":1.5},{"$f":"Monthly!AT679-Monthly!AT667","v":-0.79999999999999716},{"$f":"Monthly!AU679-Monthly!AU667","v":1.5},{"$f":"Monthly!AV679-Monthly!AV667","v":-2},{"$f":"Monthly!AW679-Monthly!AW667","v":1.5},{"$f":"Monthly!AX679-Monthly!AX667","v":-0.5},{"$f":"Monthly!AY679-Monthly!AY667","v":3},{"$f":"Monthly!AZ679-Monthly!AZ667","v":1.9999999999999929},{"$f":"Monthly!BA679-Monthly!BA667","v":-0.39999999999999858},{"$f":"(Monthly!BB679/Monthly!BB667)-1","v":0.13369963369963367},{"$f":"(Monthly!BC679/Monthly!BC667)-1","v":5.4886552794565224E-2},null,null,null,null,null,null,null,null,null,{"$f":"(Monthly!BM679/Monthly!BM667)-1","v":5.0583741453426478E-2},{"$f":"(Monthly!BN679/Monthly!BN667)-1","v":4.7341666039743435E-2},null,null,null,null,null,{"$f":"(Monthly!BT679/Monthly!BT667)-1","v":3.9878538623123294E-2},null,null,null,{"$f":"(Monthly!BX679/Monthly!BX667)-1","v":0.16162790697674412},{"$f":"(Monthly!BY679/Monthly!BY667)-1","v":4.6305418719211788E-2},{"$f":"(Monthly!BZ679/Monthly!BZ667)-1","v":4.8892705968959005E-2},{"$f":"(Monthly!CA679/Monthly!CA667)-1","v":7.1536989375041049E-2},{"$f":"Monthly!CB679-Monthly!CB667","v":-0.78322407857612575},{"$f":"Monthly!CC679-Monthly!CC667","v":-1.6932240785761259},{"$f":"(Monthly!CD679/Monthly!CD667)-1","v":0.13114754098360648},{"$f":"(Monthly!CE679/Monthly!CE667)-1","v":0.16791979949874691},null,{"$f":"(Monthly!CG679/Monthly!CG667)-1","v":5.0691244239631228E-2},{"$f":"(Monthly!CH679/Monthly!CH667)-1","v":-3.041825095057038E-2},null,{"$f":"(Monthly!CJ679/Monthly!CJ667)-1","v":0.16791979949874691},{"$f":"(Monthly!CK679/Monthly!CK667)-1","v":5.6628773195948945E-2},{"$f":"(Monthly!CL679/Monthly!CL667)-1","v":0.16512929079086658},{"$f":"(Monthly!CM679/Monthly!CM667)-1","v":0.13230240549828176},{"$f":"(Monthly!CN679/Monthly!CN667)-1","v":3.7396145757920607E-2},{"$f":"(Monthly!CO679/Monthly!CO667)-1","v":6.4863629220064833E-2},{"$f":"(Monthly!CP679/Monthly!CP667)-1","v":6.978473157498688E-2},null,{"$f":"(Monthly!CR679/Monthly!CR667)-1","v":3.5461353492891368E-2},null,null,null,null,null,null,null,{"$f":"(Monthly!CZ679/Monthly!CZ667)-1","v":1.6496027941377722E-2},{"$f":"(Monthly!DA679/Monthly!DA667)-1","v":1.7348652080900751E-2},null,null,null,null,null,null,{"$f":"((Monthly!DH679-Monthly!DH667)*60)","v":0},{"$f":"((Monthly!DI679-Monthly!DI667)*100)","v":-50},{"$f":"((Monthly!DJ679-Monthly!DJ667)*100)","v":-189.99999999999986},{"$f":"((Monthly!DK679-Monthly!DK667)*100)","v":-129.99999999999997},{"$f":"Monthly!DL679-Monthly!DL667","v":192},null,null,null,{"$f":"Monthly!DP679-Monthly!DP667","v":2721},null,null,null,{"$f":"(Monthly!DT679/Monthly!DT667)-1","v":1.5810276679841806E-2},{"$f":"Monthly!DU679-Monthly!DU667","v":-3.2000000000000011},{"$f":"(Monthly!DV679/Monthly!DV667)-1","v":3.0652722683014888E-2},{"$f":"(Monthly!DW679/Monthly!DW667)-1","v":2.9434767152506369E-2},{"$f":"(Monthly!DX679/Monthly!DX667)-1","v":3.0751469353484495E-2},{"$f":"(Monthly!DY679/Monthly!DY667)-1","v":2.7850304612706545E-2},{"$f":"(Monthly!DZ679/Monthly!DZ667)-1","v":3.1673582295988822E-2},{"$f":"(Monthly!EA679/Monthly!EA667)-1","v":1.1429717264888728E-2},{"$f":"(Monthly!EB679/Monthly!EB667)-1","v":7.6683013820775692E-2},{"$f":"(Monthly!EC679/Monthly!EC667)-1","v":2.6669605466167035E-2},null,null,null,null,null,null,null,null,null,null,null,null,null,{"$f":"(Monthly!EQ679/Monthly!EQ667)-1","v":1.2260912211868646E-2},{"$f":"(Monthly!ER679/Monthly!ER667)-1","v":2.1035598705501757E-2},{"$f":"(Monthly!ES679/Monthly!ES667)-1","v":1.3365735115431487E-2},null,null,null,null,null,{"$f":"((Monthly!EY679-Monthly!EY667)*100)","v":0},{"$f":"((Monthly!EZ679-Monthly!EZ667)*100)","v":0.99999999999999956},{"$f":"((Monthly!FA679-Monthly!FA667)*100)","v":-52.999999999999936},{"$f":"((Monthly!FB679-Monthly!FB667)*100)","v":-67},"--",{"$f":"((Monthly!FD679-Monthly!FD667)*100)","v":-33.000000000000007},{"$f":"((Monthly!FE679-Monthly!FE667)*100)","v":0},{"$f":"((Monthly!FF679-Monthly!FF667)*100)","v":-0.99999999999999956},{"$f":"((Monthly!FG679-Monthly!FG667)*100)","v":16.999999999999993},{"$f":"((Monthly!FH679-Monthly!FH667)*100)","v":16.999999999999993},{"$f":"((Monthly!FI679-Monthly!FI667)*100)","v":-28.000000000000025},null,null,null,null,null,null,{"$f":"(Monthly!FP679/Monthly!FP667)-1","v":6.4687681299555155E-2},{"$f":"(Monthly!FQ679/Monthly!FQ667)-1","v":3.0066342037322613E-3},{"$f":"(Monthly!FR679/Monthly!FR667)-1","v":1.391771924046159E-2},{"$f":"(Monthly!FS679/Monthly!FS667)-1","v":-3.5543250523795367E-2},{"$f":"(Monthly!FT679/Monthly!FT667)-1","v":2.7849728204261348E-2},{"$f":"(Monthly!FU679/Monthly!FU667)-1","v":4.7097054296201923E-2},{"$f":"(Monthly!FV679/Monthly!FV667)-1","v":9.3873363437562141E-2},{"$f":"(Monthly!FW679/Monthly!FW667)-1","v":0.12351411404828583},{"$f":"(Monthly!FX679/Monthly!FX667)-1","v":7.4242703823063749E-2},null,null,null,null,null,{"$f":"(Monthly!GD679/Monthly!GD667)-1","v":-0.12305955405024005},{"$f":"(Monthly!GE679/Monthly!GE667)-1","v":-0.13001792114695332},{"$f":"(Monthly!GF679/Monthly!GF667)-1","v":-2.8376211392316941E-2},{"$f":"(Monthly!GG679/Monthly!GG667)-1","v":-4.1395437022056614E-2},{"$f":"(Monthly!GH679/Monthly!GH667)-1","v":-4.3991152617350648E-2},{"$f":"(Monthly!GI679/Monthly!GI667)-1","v":-0.23954703832752611},{"$f":"(Monthly!GJ679/Monthly!GJ667)-1","v":8.287292817679548E-2},{"$f":"(Monthly!GK679/Monthly!GK667)-1","v":7.607099959962671E-3},{"$f":"(Monthly!GL679/Monthly!GL667)-1","v":2.0473233764054299E-2}]
["2015-04-01",null,null,null,{"$f":"(Monthly!E686/Monthly!E674)-1","v":3.9160929990907922E-2},{"$f":"(Monthly!F686/Monthly!F674)-1","v":8.5349949282712556E-2},{"$f":"(Monthly!G686/Monthly!G674)-1","v":2.6011927420378056E-2},{"$f":"(Monthly!H686/Monthly!H674)-1","v":3.6130403968816394E-2},null,null,null,null,null,null,null,null,null,null,null,null,null,null,null,{"$f":"(Monthly!X686-Monthly!X674)","v":-1.6000000000000085},{"$f":"(Monthly!Y686/Monthly!Y674)-1","v":0.11879305264184414},null,null,null,null,null,null,null,null,null,null,null,null,null,{"$f":"(Monthly!AM686/Monthly!AM674)-1","v":-1.1290247154294164E-3},{"$f":"(Monthly!AN686/Monthly!AN674)-1","v":5.1043392759906325E-3},{"$f":"(Monthly!AO686/Monthly!AO674)-1","v":2.5229131253732717E-2},{"$f":"((Monthly!AP686-Monthly!AP674)*100)","v":7.0000000000000062},{"$f":"Monthly!AQ686-Monthly!AQ674","v":-3.7999999999999972},{"$f":"Monthly!AR686-Monthly!AR674","v":-6},{"$f":"Monthly!AS686-Monthly!AS674","v":2},{"$f":"Monthly!AT686-Monthly!AT674","v":-6.4000000000000057},{"$f":"Monthly!AU686-Monthly!AU674","v":-5.5},{"$f":"Monthly!AV686-Monthly!AV674","v":-4},{"$f":"Monthly!AW686-Monthly!AW674","v":-3.5},{"$f":"Monthly!AX686-Monthly!AX674","v":-1.6000000000000014},{"$f":"Monthly!AY686-Monthly!AY674","v":-16},{"$f":"Monthly!AZ686-Monthly!AZ674","v":0.29999999999999716},{"$f":"Monthly!BA686-Monthly!BA674","v":-5.7999999999999972},{"$f":"(Monthly!BB686/Monthly!BB674)-1","v":1.8272425249169277E-2},{"$f":"(Monthly!BC686/Monthly!BC674)-1","v":-2.9044954834039571E-2},null,null,null,null,null,null,null,null,null,{"$f":"(Monthly!BM686/Monthly!BM674)-1","v":1.9618377817490096E-2},{"$f":"(Monthly!BN686/Monthly!BN674)-1","v":1.0583831134728383E-2},null,null,null,null,null,{"$f":"(Monthly!BT686/Monthly!BT674)-1","v":4.6920454356293106E-2},null,null,null,{"$f":"(Monthly!BX686/Monthly!BX674)-1","v":0.1560693641618498},{"$f":"(Monthly!BY686/Monthly!BY674)-1","v":9.0740740740740788E-2},{"$f":"(Monthly!BZ686/Monthly!BZ674)-1","v":4.6841022627093665E-2},{"$f":"(Monthly!CA686/Monthly!CA674)-1","v":3.9228927497083843E-2},{"$f":"Monthly!CB686-Monthly!CB674","v":-2.9314786748512276},{"$f":"Monthly!CC686-Monthly!CC674","v":-3.4914786748512281},{"$f":"(Monthly!CD686/Monthly!CD674)-1","v":7.8534031413612482E-2},{"$f":"(Monthly!CE686/Monthly!CE674)-1","v":0.24688279301745641},null,{"$f":"(Monthly!CG686/Monthly!CG674)-1","v":-4.484304932735439E-3},{"$f":"(Monthly!CH686/Monthly!CH674)-1","v":8.2105263157894681E-2},null,{"$f":"(Monthly!CJ686/Monthly!CJ674)-1","v":0.24688279301745641},{"$f":"(Monthly!CK686/Monthly!CK674)-1","v":5.4545206209152708E-2},{"$f":"(Monthly!CL686/Monthly!CL674)-1","v":0.17186843946815955},{"$f":"(Monthly!CM686/Monthly!CM674)-1","v":0.15325077399380804},{"$f":"(Monthly!CN686/Monthly!CN674)-1","v":4.6895350213967957E-2},{"$f":"(Monthly!CO686/Monthly!CO674)-1","v":7.1861388587367347E-2},{"$f":"(Monthly!CP686/Monthly!CP674)-1","v":6.9193596965486215E-2},null,{"$f":"(Monthly!CR686/Monthly!CR674)-1","v":3.6589570913436287E-2},null,null,null,null,null,null,null,{"$f":"(Monthly!CZ686/Monthly!CZ674)-1","v":-1.1417890565862399E-3},{"$f":"(Monthly!DA686/Monthly!DA674)-1","v":1.8073991589372618E-2},null,null,null,null,null,null,{"$f":"((Monthly!DH686-Monthly!DH674)*60)","v":-6.0000000000000853},{"$f":"((Monthly!DI686-Monthly!DI674)*100)","v":0},{"$f":"((Monthly!DJ686-Monthly!DJ674)*100)","v":-150},{"$f":"((Monthly!DK686-Monthly!DK674)*100)","v":-79.999999999999986},{"$f":"Monthly!DL686-Monthly!DL674","v":179},null,null,null,{"$f":"Monthly!DP686-Monthly!DP674","v":2876},null,null,null,{"$f":"(Monthly!DT686/Monthly!DT674)-1","v":-3.491827637444278E-2},{"$f":"Monthly!DU686-Monthly!DU674","v":-4.1999999999999993},{"$f":"(Monthly!DV686/Monthly!DV674)-1","v":2.7876546721661288E-2},{"$f":"(Monthly!DW686/Monthly!DW674)-1","v":2.5563693810139343E-2},{"$f":"(Monthly!DX686/Monthly!DX674)-1","v":2.7705175117616276E-2},{"$f":"(Monthly!DY686/Monthly!DY674)-1","v":4.7095070422535246E-2},{"$f":"(Monthly!DZ686/Monthly!DZ674)-1","v":2.1664609899904042E-2},{"$f":"(Monthly!EA686/Monthly!EA674)-1","v":-5.7930483419896817E-3},{"$f":"(Monthly!EB686/Monthly!EB674)-1","v":8.1766506340183787E-2},{"$f":"(Monthly!EC686/Monthly!EC674)-1","v":2.1325384086218646E-2},null,null,null,null,null,null,null,null,null,null,null,null,null,{"$f":"(Monthly!EQ686/Monthly!EQ674)-1","v":-8.3533365338454124E-2},{"$f":"(Monthly!ER686/Monthly!ER674)-1","v":1.9691325172964236E-2},{"$f":"(Monthly!ES686/Monthly!ES674)-1","v":1.3847080072245666E-2},null,null,null,null,null,{"$f":"((Monthly!EY686-Monthly!EY674)*100)","v":0},{"$f":"((Monthly!EZ686-Monthly!EZ674)*100)","v":3},{"$f":"((Monthly!FA686-Monthly!FA674)*100)","v":-72.000000000000014},{"$f":"((Monthly!FB686-Monthly!FB674)*100)","v":-41.999999999999993},"--",{"$f":"((Monthly!FD686-Monthly!FD674)*100)","v":-67},{"$f":"((Monthly!FE686-Monthly!FE674)*100)","v":-0.99999999999999989},{"$f":"((Monthly!FF686-Monthly!FF674)*100)","v":12.000000000000002},{"$f":"((Monthly!FG686-Monthly!FG674)*100)","v":12.000000000000005},{"$f":"((Monthly!FH686-Monthly!FH674)*100)","v":-34.999999999999986},{"$f":"((Monthly!FI686-Monthly!FI674)*100)","v":-77},null,null,null,null,null,null,{"$f":"(Monthly!FP686/Monthly!FP674)-1","v":0.12236171761280934},{"$f":"(Monthly!FQ686/Monthly!FQ674)-1","v":-3.7914082832631868E-3},{"$f":"(Monthly!FR686/Monthly!FR674)-1","v":0.16280831719841737},{"$f":"(Monthly!FS686/Monthly!FS674)-1","v":-0.21636495293265745},{"$f":"(Monthly!FT686/Monthly!FT674)-1","v":0.12254202115002788},{"$f":"(Monthly!FU686/Monthly!FU674)-1","v":0.19053313494454382},{"$f":"(Monthly!FV686/Monthly!FV674)-1","v":-0.15476552282280953},{"$f":"(Monthly!FW686/Monthly!FW674)-1","v":-9.0452178588867893E-3},{"$f":"(Monthly!FX686/Monthly!FX674)-1","v":5.0533202592570881E-3},null,null,null,null,null,{"$f":"(Monthly!GD686/Monthly!GD674)-1","v":-0.46654256882531586},{"$f":"(Monthly!GE686/Monthly!GE674)-1","v":-0.4476614699331849},{"$f":"(Monthly!GF686/Monthly!GF674)-1","v":-0.31597617294692448},{"$f":"(Monthly!GG686/Monthly!GG674)-1","v":-0.29822791196317078},{"$f":"(Monthly!GH686/Monthly!GH674)-1","v":2.5542025542025559E-2},{"$f":"(Monthly!GI686/Monthly!GI674)-1","v":3.3932135728542923E-2},{"$f":"(Monthly!GJ686/Monthly!GJ674)-1","v":-0.43817787418655108},{"$f":"(Monthly!GK686/Monthly!GK674)-1","v":2.2102936532997219E-3},{"$f":"(Monthly!GL686/Monthly!GL674)-1","v":-1.9073569482288555E-3}]
["2015-06-01",null,null,null,{"$f":"(Monthly!E688/Monthly!E676)-1","v":3.7167586321442458E-2},{"$f":"(Monthly!F688/Monthly!F676)-1","v":6.9858433520665786E-2},{"$f":"(Monthly!G688/Monthly!G676)-1","v":3.2195287049964216E-2},{"$f":"(Monthly!H688/Monthly!H676)-1","v":3.3516165874705628E-2},null,null,null,null,null,null,null,null,null,null,null,null,null,null,null,{"$f":"(Monthly!X688-Monthly!X676)","v":-2.5},{"$f":"(Monthly!Y688/Monthly!Y676)-1","v":0.12115125407923633},null,null,null,null,null,null,null,null,null,null,null,null,null,{"$f":"(Monthly!AM688/Monthly!AM676)-1","v":-1.4004956869170249E-2},{"$f":"(Monthly!AN688/Monthly!AN676)-1","v":-4.1888641078333677E-3},{"$f":"(Monthly!AO688/Monthly!AO676)-1","v":2.8847374034962625E-2},{"$f":"((Monthly!AP688-Monthly!AP676)*100)","v":7.9999999999999849},{"$f":"Monthly!AQ688-Monthly!AQ676","v":-2.1999999999999957},{"$f":"Monthly!AR688-Monthly!AR676","v":-1},{"$f":"Monthly!AS688-Monthly!AS676","v":2},{"$f":"Monthly!AT688-Monthly!AT676","v":2.7000000000000028},{"$f":"Monthly!AU688-Monthly!AU676","v":-5},{"$f":"Monthly!AV688-Monthly!AV676","v":-3.5},{"$f":"Monthly!AW688-Monthly!AW676","v":0},{"$f":"Monthly!AX688-Monthly!AX676","v":-2.8999999999999986},{"$f":"Monthly!AY688-Monthly!AY676","v":-8.5},{"$f":"Monthly!AZ688-Monthly!AZ676","v":-6},{"$f":"Monthly!BA688-Monthly!BA676","v":-3.1000000000000014},{"$f":"(Monthly!BB688/Monthly!BB676)-1","v":2.6711185308848195E-2},{"$f":"(Monthly!BC688/Monthly!BC676)-1","v":-8.1036090980842412E-2},null,null,null,null,null,null,null,null,null,{"$f":"(Monthly!BM688/Monthly!BM676)-1","v":2.5612856072480872E-2},{"$f":"(Monthly!BN688/Monthly!BN676)-1","v":1.8389433627130636E-2},null,null,null,null,null,{"$f":"(Monthly!BT688/Monthly!BT676)-1","v":4.5459488121721181E-2},null,null,null,{"$f":"(Monthly!BX688/Monthly!BX676)-1","v":0.29418103448275867},{"$f":"(Monthly!BY688/Monthly!BY676)-1","v":0.34285714285714275},{"$f":"(Monthly!BZ688/Monthly!BZ676)-1","v":4.8624552759692685E-2},{"$f":"(Monthly!CA688/Monthly!CA676)-1","v":1.8740055395132238E-2},{"$f":"Monthly!CB688-Monthly!CB676","v":-2.6386993335665059},{"$f":"Monthly!CC688-Monthly!CC676","v":-3.1986993335665055},{"$f":"(Monthly!CD688/Monthly!CD676)-1","v":9.0909090909090828E-2},{"$f":"(Monthly!CE688/Monthly!CE676)-1","v":0.14423076923076916},null,{"$f":"(Monthly!CG688/Monthly!CG676)-1","v":-1.7467248908296984E-2},{"$f":"(Monthly!CH688/Monthly!CH676)-1","v":7.9840319361277334E-2},null,{"$f":"(Monthly!CJ688/Monthly!CJ676)-1","v":0.14423076923076916},{"$f":"(Monthly!CK688/Monthly!CK676)-1","v":5.31123642608895E-2},{"$f":"(Monthly!CL688/Monthly!CL676)-1","v":0.1244590163934427},{"$f":"(Monthly!CM688/Monthly!CM676)-1","v":0.15666666666666673},{"$f":"(Monthly!CN688/Monthly!CN676)-1","v":4.3463674030832067E-2},{"$f":"(Monthly!CO688/Monthly!CO676)-1","v":7.2106752271614338E-2},{"$f":"(Monthly!CP688/Monthly!CP676)-1","v":7.0905370762384567E-2},null,{"$f":"(Monthly!CR688/Monthly!CR676)-1","v":4.1457009797690958E-2},null,null,null,null,null,null,null,{"$f":"(Monthly!CZ688/Monthly!CZ676)-1","v":1.6453682882686671E-3},{"$f":"(Monthly!DA688/Monthly!DA676)-1","v":1.7587601644817097E-2},null,null,null,null,null,null,{"$f":"((Monthly!DH688-Monthly!DH676)*60)","v":0},{"$f":"((Monthly!DI688-Monthly!DI676)*100)","v":-19.999999999999574},{"$f":"((Monthly!DJ688-Monthly!DJ676)*100)","v":-150},{"$f":"((Monthly!DK688-Monthly!DK676)*100)","v":-79.999999999999986},{"$f":"Monthly!DL688-Monthly!DL676","v":167},null,null,null,{"$f":"Monthly!DP688-Monthly!DP676","v":2876},null,null,null,{"$f":"(Monthly!DT688/Monthly!DT676)-1","v":-5.6390977443608992E-2},{"$f":"Monthly!DU688-Monthly!DU676","v":-2.0999999999999996},{"$f":"(Monthly!DV688/Monthly!DV676)-1","v":3.0240938316964616E-2},{"$f":"(Monthly!DW688/Monthly!DW676)-1","v":2.9541169076052753E-2},{"$f":"(Monthly!DX688/Monthly!DX676)-1","v":3.002166511915827E-2},{"$f":"(Monthly!DY688/Monthly!DY676)-1","v":3.2877882152006821E-2},{"$f":"(Monthly!DZ688/Monthly!DZ676)-1","v":2.9111685484968008E-2},{"$f":"(Monthly!EA688/Monthly!EA676)-1","v":8.1885360495306259E-3},{"$f":"(Monthly!EB688/Monthly!EB676)-1","v":7.3805460750853147E-2},{"$f":"(Monthly!EC688/Monthly!EC676)-1","v":2.8534370946822207E-2},null,null,null,null,null,null,null,null,null,null,null,null,null,{"$f":"(Monthly!EQ688/Monthly!EQ676)-1","v":-6.4810369659145439E-2},{"$f":"(Monthly!ER688/Monthly!ER676)-1","v":2.279957582184533E-2},{"$f":"(Monthly!ES688/Monthly!ES676)-1","v":1.3221153846153744E-2},null,null,null,null,null,{"$f":"((Monthly!EY688-Monthly!EY676)*100)","v":0},{"$f":"((Monthly!EZ688-Monthly!EZ676)*100)","v":3},{"$f":"((Monthly!FA688-Monthly!FA676)*100)","v":-5.9999999999999609},{"$f":"((Monthly!FB688-Monthly!FB676)*100)","v":33.000000000000007},"--",{"$f":"((Monthly!FD688-Monthly!FD676)*100)","v":-18.000000000000014},{"$f":"((Monthly!FE688-Monthly!FE676)*100)","v":-2},{"$f":"((Monthly!FF688-Monthly!FF676)*100)","v":18.000000000000004},{"$f":"((Monthly!FG688-Monthly!FG676)*100)","v":23.999999999999993},{"$f":"((Monthly!FH688-Monthly!FH676)*100)","v":0},{"$f":"((Monthly!FI688-Monthly!FI676)*100)","v":-24.000000000000021},null,null,null,null,null,null,{"$f":"(Monthly!FP688/Monthly!FP676)-1","v":0.14173591874422886},{"$f":"(Monthly!FQ688/Monthly!FQ676)-1","v":-4.0766539338106256E-3},{"$f":"(Monthly!FR688/Monthly!FR676)-1","v":0.19133084998306815},{"$f":"(Monthly!FS688/Monthly!FS676)-1","v":-0.17425524089738864},{"$f":"(Monthly!FT688/Monthly!FT676)-1","v":0.12440863964895921},{"$f":"(Monthly!FU688/Monthly!FU676)-1","v":0.17213160858571652},{"$f":"(Monthly!FV688/Monthly!FV676)-1","v":-9.3452428317551184E-2},{"$f":"(Monthly!FW688/Monthly!FW676)-1","v":4.657750756808765E-2},{"$f":"(Monthly!FX688/Monthly!FX676)-1","v":7.0958244643816171E-2},null,null,null,null,null,{"$f":"(Monthly!GD688/Monthly!GD676)-1","v":-0.43454012666603647},{"$f":"(Monthly!GE688/Monthly!GE676)-1","v":-0.45008944543828266},{"$f":"(Monthly!GF688/Monthly!GF676)-1","v":-0.23393520977164117},{"$f":"(Monthly!GG688/Monthly!GG676)-1","v":-0.26450258563309603},{"$f":"(Monthly!GH688/Monthly!GH676)-1","v":8.777256417333712E-2},{"$f":"(Monthly!GI688/Monthly!GI676)-1","v":2.8008298755186622E-2},{"$f":"(Monthly!GJ688/Monthly!GJ676)-1","v":-0.39651416122004357},{"$f":"(Monthly!GK688/Monthly!GK676)-1","v":4.1407593597036607E-2},{"$f":"(Monthly!GL688/Monthly!GL676)-1","v":3.1237819477699214E-2}]
["2015-07-01",null,null,null,{"$f":"(Monthly!E689/Monthly!E677)-1","v":3.8354902592916629E-2},{"$f":"(Monthly!F689/Monthly!F677)-1","v":7.8120557293147597E-2},{"$f":"(Monthly!G689/Monthly!G677)-1","v":3.4274873524452021E-2},{"$f":"(Monthly!H689/Monthly!H677)-1","v":3.3316435732792637E-2},null,null,null,null,null,null,null,null,null,null,null,null,null,null,null,{"$f":"(Monthly!X689-Monthly!X677)","v":-2.1000000000000085},{"$f":"(Monthly!Y689/Monthly!Y677)-1","v":0.11559538666215508},null,null,null,null,null,null,null,null,null,null,null,null,null,{"$f":"(Monthly!AM689/Monthly!AM677)-1","v":-9.2604266299118887E-3},{"$f":"(Monthly!AN689/Monthly!AN677)-1","v":-8.6150881565361104E-4},{"$f":"(Monthly!AO689/Monthly!AO677)-1","v":2.5698091255886846E-2},{"$f":"((Monthly!AP689-Monthly!AP677)*100)","v":7.9999999999999849},{"$f":"Monthly!AQ689-Monthly!AQ677","v":-3.7000000000000028},{"$f":"Monthly!AR689-Monthly!AR677","v":-7},{"$f":"Monthly!AS689-Monthly!AS677","v":0.5},{"$f":"Monthly!AT689-Monthly!AT677","v":-5.5},{"$f":"Monthly!AU689-Monthly!AU677","v":-5},{"$f":"Monthly!AV689-Monthly!AV677","v":0},{"$f":"Monthly!AW689-Monthly!AW677","v":1},{"$f":"Monthly!AX689-Monthly!AX677","v":-6.8999999999999986},{"$f":"Monthly!AY689-Monthly!AY677","v":-15.5},{"$f":"Monthly!AZ689-Monthly!AZ677","v":-5.2000000000000028},{"$f":"Monthly!BA689-Monthly!BA677","v":-5.2000000000000028},{"$f":"(Monthly!BB689/Monthly!BB677)-1","v":5.3156146179401897E-2},{"$f":"(Monthly!BC689/Monthly!BC677)-1","v":-3.6710524372775777E-2},null,null,null,null,null,null,null,null,null,{"$f":"(Monthly!BM689/Monthly!BM677)-1","v":3.1478948238188753E-2},{"$f":"(Monthly!BN689/Monthly!BN677)-1","v":2.4851466502245678E-2},null,null,null,null,null,{"$f":"(Monthly!BT689/Monthly!BT677)-1","v":4.6418654255186986E-2},null,null,null,{"$f":"(Monthly!BX689/Monthly!BX677)-1","v":5.0691244239631228E-2},{"$f":"(Monthly!BY689/Monthly!BY677)-1","v":7.6923076923076872E-2},{"$f":"(Monthly!BZ689/Monthly!BZ677)-1","v":5.049261083743839E-2},{"$f":"(Monthly!CA689/Monthly!CA677)-1","v":5.8442737007683432E-2},{"$f":"Monthly!CB689-Monthly!CB677","v":-2.7569028952846519},{"$f":"Monthly!CC689-Monthly!CC677","v":-3.4569028952846512},{"$f":"(Monthly!CD689/Monthly!CD677)-1","v":6.4039408866995107E-2},{"$f":"(Monthly!CE689/Monthly!CE677)-1","v":0.23880597014925375},null,{"$f":"(Monthly!CG689/Monthly!CG677)-1","v":-3.8297872340425587E-2},{"$f":"(Monthly!CH689/Monthly!CH677)-1","v":8.0867850098619298E-2},null,{"$f":"(Monthly!CJ689/Monthly!CJ677)-1","v":0.23880597014925375},{"$f":"(Monthly!CK689/Monthly!CK677)-1","v":4.9680447709931519E-2},{"$f":"(Monthly!CL689/Monthly!CL677)-1","v":7.5793338578546976E-2},{"$f":"(Monthly!CM689/Monthly!CM677)-1","v":0.17204301075268824},{"$f":"(Monthly!CN689/Monthly!CN677)-1","v":4.1521882928218012E-2},{"$f":"(Monthly!CO689/Monthly!CO677)-1","v":7.0336432706711083E-2},{"$f":"(Monthly!CP689/Monthly!CP677)-1","v":6.9243901430589894E-2},null,{"$f":"(Monthly!CR689/Monthly!CR677)-1","v":3.9318023463076335E-2},null,null,null,null,null,null,null,{"$f":"(Monthly!CZ689/Monthly!CZ677)-1","v":1.9037671002088974E-3},{"$f":"(Monthly!DA689/Monthly!DA677)-1","v":1.7980914956947425E-2},null,null,null,null,null,null,{"$f":"((Monthly!DH689-Monthly!DH677)*60)","v":0},{"$f":"((Monthly!DI689-Monthly!DI677)*100)","v":-29.999999999999716},{"$f":"((Monthly!DJ689-Monthly!DJ677)*100)","v":-189.99999999999986},{"$f":"((Monthly!DK689-Monthly!DK677)*100)","v":-100},{"$f":"Monthly!DL689-Monthly!DL677","v":168},null,null,null,{"$f":"Monthly!DP689-Monthly!DP677","v":2928},null,null,null,{"$f":"(Monthly!DT689/Monthly!DT677)-1","v":-5.5386949924127515E-2},{"$f":"Monthly!DU689-Monthly!DU677","v":-2.1999999999999993},{"$f":"(Monthly!DV689/Monthly!DV677)-1","v":2.7889287978026589E-2},{"$f":"(Monthly!DW689/Monthly!DW677)-1","v":2.8623037376684701E-2},{"$f":"(Monthly!DX689/Monthly!DX677)-1","v":3.5390012381345315E-2},{"$f":"(Monthly!DY689/Monthly!DY677)-1","v":5.5817947617003094E-2},{"$f":"(Monthly!DZ689/Monthly!DZ677)-1","v":2.8928425913350653E-2},{"$f":"(Monthly!EA689/Monthly!EA677)-1","v":1.1792924245452641E-2},{"$f":"(Monthly!EB689/Monthly!EB677)-1","v":6.5254237288135508E-2},{"$f":"(Monthly!EC689/Monthly!EC677)-1","v":1.4674606550404201E-2},null,null,null,null,null,null,null,null,null,null,null,null,null,{"$f":"(Monthly!EQ689/Monthly!EQ677)-1","v":-6.778846153846152E-2},{"$f":"(Monthly!ER689/Monthly!ER677)-1","v":2.277542372881336E-2},{"$f":"(Monthly!ES689/Monthly!ES677)-1","v":1.3805522208883536E-2},null,null,null,null,null,{"$f":"((Monthly!EY689-Monthly!EY677)*100)","v":0},{"$f":"((Monthly!EZ689-Monthly!EZ677)*100)","v":4.0000000000000009},{"$f":"((Monthly!FA689-Monthly!FA677)*100)","v":-0.99999999999997868},{"$f":"((Monthly!FB689-Monthly!FB677)*100)","v":46.999999999999972},"--",{"$f":"((Monthly!FD689-Monthly!FD677)*100)","v":-8.0000000000000071},{"$f":"((Monthly!FE689-Monthly!FE677)*100)","v":0},{"$f":"((Monthly!FF689-Monthly!FF677)*100)","v":19},{"$f":"((Monthly!FG689-Monthly!FG677)*100)","v":16.000000000000004},{"$f":"((Monthly!FH689-Monthly!FH677)*100)","v":-7.0000000000000062},{"$f":"((Monthly!FI689-Monthly!FI677)*100)","v":-22.000000000000021},null,null,null,null,null,null,{"$f":"(Monthly!FP689/Monthly!FP677)-1","v":0.19778377875034914},{"$f":"(Monthly!FQ689/Monthly!FQ677)-1","v":1.629452762003103E-3},{"$f":"(Monthly!FR689/Monthly!FR677)-1","v":0.22785073202272255},{"$f":"(Monthly!FS689/Monthly!FS677)-1","v":-0.18739377817187619},{"$f":"(Monthly!FT689/Monthly!FT677)-1","v":0.14658369888767031},{"$f":"(Monthly!FU689/Monthly!FU677)-1","v":0.19950136776681937},{"$f":"(Monthly!FV689/Monthly!FV677)-1","v":-0.15638925216571797},{"$f":"(Monthly!FW689/Monthly!FW677)-1","v":2.2123235349557069E-2},{"$f":"(Monthly!FX689/Monthly!FX677)-1","v":-2.0735706665612974E-2},null,null,null,null,null,{"$f":"(Monthly!GD689/Monthly!GD677)-1","v":-0.50863017665797861},{"$f":"(Monthly!GE689/Monthly!GE677)-1","v":-0.47026318254191246},{"$f":"(Monthly!GF689/Monthly!GF677)-1","v":-0.21908893709327559},{"$f":"(Monthly!GG689/Monthly!GG677)-1","v":-0.28218331616889802},{"$f":"(Monthly!GH689/Monthly!GH677)-1","v":0.10724561862411708},{"$f":"(Monthly!GI689/Monthly!GI677)-1","v":0.15592515592515599},{"$f":"(Monthly!GJ689/Monthly!GJ677)-1","v":-0.3009950248756218},{"$f":"(Monthly!GK689/Monthly!GK677)-1","v":-3.3154249465984886E-2},{"$f":"(Monthly!GL689/Monthly!GL677)-1","v":3.7488586927332257E-3}]
["2015-08-01",null,null,null,{"$f":"(Monthly!E690/Monthly!E678)-1","v":3.3425980105324715E-2},{"$f":"(Monthly!F690/Monthly!F678)-1","v":6.54707894185802E-2},{"$f":"(Monthly!G690/Monthly!G678)-1","v":2.9183938366201811E-2},{"$f":"(Monthly!H690/Monthly!H678)-1","v":2.9663745555337906E-2},null,null,null,null,null,null,null,null,null,null,null,null,null,null,null,{"$f":"(Monthly!X690-Monthly!X678)","v":-1.9000000000000057},{"$f":"(Monthly!Y690/Monthly!Y678)-1","v":0.11193757046872421},null,null,null,null,null,null,null,null,null,null,null,null,null,{"$f":"(Monthly!AM690/Monthly!AM678)-1","v":-8.6876926725159009E-3},{"$f":"(Monthly!AN690/Monthly!AN678)-1","v":2.2886038639198247E-3},{"$f":"(Monthly!AO690/Monthly!AO678)-1","v":2.3525690819807599E-2},{"$f":"((Monthly!AP690-Monthly!AP678)*100)","v":8.9999999999999858},{"$f":"Monthly!AQ690-Monthly!AQ678","v":-7.1000000000000014},{"$f":"Monthly!AR690-Monthly!AR678","v":-6},{"$f":"Monthly!AS690-Monthly!AS678","v":4},{"$f":"Monthly!AT690-Monthly!AT678","v":-6.8999999999999986},{"$f":"Monthly!AU690-Monthly!AU678","v":-8.5},{"$f":"Monthly!AV690-Monthly!AV678","v":-4.5},{"$f":"Monthly!AW690-Monthly!AW678","v":-3.5},{"$f":"Monthly!AX690-Monthly!AX678","v":-15},{"$f":"Monthly!AY690-Monthly!AY678","v":-19},{"$f":"Monthly!AZ690-Monthly!AZ678","v":-10.899999999999999},{"$f":"Monthly!BA690-Monthly!BA678","v":-3.1999999999999957},{"$f":"(Monthly!BB690/Monthly!BB678)-1","v":9.7244732576984294E-3},{"$f":"(Monthly!BC690/Monthly!BC678)-1","v":-6.9119898327604679E-2},null,null,null,null,null,null,null,null,null,{"$f":"(Monthly!BM690/Monthly!BM678)-1","v":2.2836784558893708E-2},{"$f":"(Monthly!BN690/Monthly!BN678)-1","v":1.5428390283309668E-2},null,null,null,null,null,{"$f":"(Monthly!BT690/Monthly!BT678)-1","v":4.852667949038203E-2},null,null,null,{"$f":"(Monthly!BX690/Monthly!BX678)-1","v":0.15243902439024382},{"$f":"(Monthly!BY690/Monthly!BY678)-1","v":0.10909090909090913},{"$f":"(Monthly!BZ690/Monthly!BZ678)-1","v":5.1155696351049995E-2},{"$f":"(Monthly!CA690/Monthly!CA678)-1","v":3.136252758740854E-2},{"$f":"Monthly!CB690-Monthly!CB678","v":-2.5517215414032952},{"$f":"Monthly!CC690-Monthly!CC678","v":-3.3217215414032939},{"$f":"(Monthly!CD690/Monthly!CD678)-1","v":5.3398058252427161E-2},{"$f":"(Monthly!CE690/Monthly!CE678)-1","v":0.1425389755011135},null,{"$f":"(Monthly!CG690/Monthly!CG678)-1","v":-2.5751072961373356E-2},{"$f":"(Monthly!CH690/Monthly!CH678)-1","v":5.8000000000000052E-2},null,{"$f":"(Monthly!CJ690/Monthly!CJ678)-1","v":0.1425389755011135},{"$f":"(Monthly!CK690/Monthly!CK678)-1","v":4.639996785685585E-2},{"$f":"(Monthly!CL690/Monthly!CL678)-1","v":0.11283994046813683},{"$f":"(Monthly!CM690/Monthly!CM678)-1","v":0.15336463223787167},{"$f":"(Monthly!CN690/Monthly!CN678)-1","v":3.8655350196983296E-2},{"$f":"(Monthly!CO690/Monthly!CO678)-1","v":7.0325785675071195E-2},{"$f":"(Monthly!CP690/Monthly!CP678)-1","v":6.8060999843869707E-2},null,{"$f":"(Monthly!CR690/Monthly!CR678)-1","v":4.1236918409246037E-2},null,null,null,null,null,null,null,{"$f":"(Monthly!CZ690/Monthly!CZ678)-1","v":2.3392453720876283E-3},{"$f":"(Monthly!DA690/Monthly!DA678)-1","v":1.83488547696955E-2},null,null,null,null,null,null,{"$f":"((Monthly!DH690-Monthly!DH678)*60)","v":-5.9999999999996589},{"$f":"((Monthly!DI690-Monthly!DI678)*100)","v":-29.999999999999716},{"$f":"((Monthly!DJ690-Monthly!DJ678)*100)","v":-180.00000000000006},{"$f":"((Monthly!DK690-Monthly!DK678)*100)","v":-110.00000000000006},{"$f":"Monthly!DL690-Monthly!DL678","v":139},null,null,null,{"$f":"Monthly!DP690-Monthly!DP678","v":2855},null,null,null,{"$f":"(Monthly!DT690/Monthly!DT678)-1","v":-3.4456355283307816E-2},{"$f":"Monthly!DU690-Monthly!DU678","v":-1.0999999999999996},{"$f":"(Monthly!DV690/Monthly!DV678)-1","v":2.4870029506814495E-2},{"$f":"(Monthly!DW690/Monthly!DW678)-1","v":2.2249861802100535E-2},{"$f":"(Monthly!DX690/Monthly!DX678)-1","v":3.4411915767847967E-2},{"$f":"(Monthly!DY690/Monthly!DY678)-1","v":5.0362782757148894E-2},{"$f":"(Monthly!DZ690/Monthly!DZ678)-1","v":2.9356060606060552E-2},{"$f":"(Monthly!EA690/Monthly!EA678)-1","v":1.5762170790103891E-2},{"$f":"(Monthly!EB690/Monthly!EB678)-1","v":5.621848739495805E-2},{"$f":"(Monthly!EC690/Monthly!EC678)-1","v":-2.7443529660122756E-3},null,null,null,null,null,null,null,null,null,null,null,null,null,{"$f":"(Monthly!EQ690/Monthly!EQ678)-1","v":-7.2946859903381567E-2},{"$f":"(Monthly!ER690/Monthly!ER678)-1","v":2.1164021164021163E-2},{"$f":"(Monthly!ES690/Monthly!ES678)-1","v":1.2597480503899305E-2},null,null,null,null,null,{"$f":"((Monthly!EY690-Monthly!EY678)*100)","v":0},{"$f":"((Monthly!EZ690-Monthly!EZ678)*100)","v":5.0000000000000018},{"$f":"((Monthly!FA690-Monthly!FA678)*100)","v":-4.0000000000000036},{"$f":"((Monthly!FB690-Monthly!FB678)*100)","v":50},"--",{"$f":"((Monthly!FD690-Monthly!FD678)*100)","v":-20.999999999999996},{"$f":"((Monthly!FE690-Monthly!FE678)*100)","v":4.0000000000000009},{"$f":"((Monthly!FF690-Monthly!FF678)*100)","v":27},{"$f":"((Monthly!FG690-Monthly!FG678)*100)","v":23},{"$f":"((Monthly!FH690-Monthly!FH678)*100)","v":-8.9999999999999858},{"$f":"((Monthly!FI690-Monthly!FI678)*100)","v":-25},null,null,null,null,null,null,{"$f":"(Monthly!FP690/Monthly!FP678)-1","v":0.20327658795533576},{"$f":"(Monthly!FQ690/Monthly!FQ678)-1","v":2.9931265335304991E-2},{"$f":"(Monthly!FR690/Monthly!FR678)-1","v":0.25795063757265901},{"$f":"(Monthly!FS690/Monthly!FS678)-1","v":-0.16365001877581675},{"$f":"(Monthly!FT690/Monthly!FT678)-1","v":0.15756770001892351},{"$f":"(Monthly!FU690/Monthly!FU678)-1","v":0.18274296914288657},{"$f":"(Monthly!FV690/Monthly!FV678)-1","v":-0.146751987456331},{"$f":"(Monthly!FW690/Monthly!FW678)-1","v":0.10085599269712509},{"$f":"(Monthly!FX690/Monthly!FX678)-1","v":-6.241699867197803E-3},null,null,null,null,null,{"$f":"(Monthly!GD690/Monthly!GD678)-1","v":-0.5559353635798634},{"$f":"(Monthly!GE690/Monthly!GE678)-1","v":-0.54217104615687428},{"$f":"(Monthly!GF690/Monthly!GF678)-1","v":-0.23534361851332397},{"$f":"(Monthly!GG690/Monthly!GG678)-1","v":-0.32386659718603439},{"$f":"(Monthly!GH690/Monthly!GH678)-1","v":4.6267893660531634E-2},{"$f":"(Monthly!GI690/Monthly!GI678)-1","v":-0.17873510540788262},{"$f":"(Monthly!GJ690/Monthly!GJ678)-1","v":-0.29487179487179482},{"$f":"(Monthly!GK690/Monthly!GK678)-1","v":-5.8780140400854552E-2},{"$f":"(Monthly!GL690/Monthly!GL678)-1","v":2.3463674836889492E-2}]
["2015-09-01",null,null,null,{"$f":"(Monthly!E691/Monthly!E679)-1","v":3.6770152256412558E-2},{"$f":"(Monthly!F691/Monthly!F679)-1","v":7.8830574145825949E-2},{"$f":"(Monthly!G691/Monthly!G679)-1","v":3.7303389687946664E-2},{"$f":"(Monthly!H691/Monthly!H679)-1","v":2.983470151337464E-2},null,null,null,null,null,null,null,null,null,null,null,null,null,null,null,{"$f":"(Monthly!X691-Monthly!X679)","v":-2.2999999999999972},{"$f":"(Monthly!Y691/Monthly!Y679)-1","v":0.10870588145313631},null,null,null,null,null,null,null,null,null,null,null,null,null,{"$f":"(Monthly!AM691/Monthly!AM679)-1","v":-1.4461912990185621E-2},{"$f":"(Monthly!AN691/Monthly!AN679)-1","v":-5.4372557254389609E-4},{"$f":"(Monthly!AO691/Monthly!AO679)-1","v":2.5403226950052815E-2},{"$f":"((Monthly!AP691-Monthly!AP679)*100)","v":7.9999999999999849},{"$f":"Monthly!AQ691-Monthly!AQ679","v":-5.7999999999999972},{"$f":"Monthly!AR691-Monthly!AR679","v":-5.5},{"$f":"Monthly!AS691-Monthly!AS679","v":10},{"$f":"Monthly!AT691-Monthly!AT679","v":-4.1000000000000014},{"$f":"Monthly!AU691-Monthly!AU679","v":-7},{"$f":"Monthly!AV691-Monthly!AV679","v":-2.5},{"$f":"Monthly!AW691-Monthly!AW679","v":-3},{"$f":"Monthly!AX691-Monthly!AX679","v":-9.8999999999999986},{"$f":"Monthly!AY691-Monthly!AY679","v":-21.5},{"$f":"Monthly!AZ691-Monthly!AZ679","v":-12.799999999999997},{"$f":"Monthly!BA691-Monthly!BA679","v":-2},{"$f":"(Monthly!BB691/Monthly!BB679)-1","v":-2.9079159935379573E-2},{"$f":"(Monthly!BC691/Monthly!BC679)-1","v":-7.9425102711001783E-2},null,null,null,null,null,null,null,null,null,{"$f":"(Monthly!BM691/Monthly!BM679)-1","v":2.4639435406109689E-2},{"$f":"(Monthly!BN691/Monthly!BN679)-1","v":1.8663034109099863E-2},null,null,null,null,null,{"$f":"(Monthly!BT691/Monthly!BT679)-1","v":5.153420225652261E-2},null,null,null,{"$f":"(Monthly!BX691/Monthly!BX679)-1","v":0.21021021021021014},{"$f":"(Monthly!BY691/Monthly!BY679)-1","v":5.9322033898305149E-2},{"$f":"(Monthly!BZ691/Monthly!BZ679)-1","v":5.345654462510252E-2},{"$f":"(Monthly!CA691/Monthly!CA679)-1","v":0.10685471454086359},{"$f":"Monthly!CB691-Monthly!CB679","v":-2.557603265744512},{"$f":"Monthly!CC691-Monthly!CC679","v":-3.1876032657445119},{"$f":"(Monthly!CD691/Monthly!CD679)-1","v":7.7294685990338063E-2},{"$f":"(Monthly!CE691/Monthly!CE679)-1","v":-1.0729613733905574E-2},null,{"$f":"(Monthly!CG691/Monthly!CG679)-1","v":-3.9473684210526327E-2},{"$f":"(Monthly!CH691/Monthly!CH679)-1","v":6.6666666666666652E-2},null,{"$f":"(Monthly!CJ691/Monthly!CJ679)-1","v":-1.0729613733905574E-2},{"$f":"(Monthly!CK691/Monthly!CK679)-1","v":4.4789359942370766E-2},{"$f":"(Monthly!CL691/Monthly!CL679)-1","v":6.8267358857884597E-2},{"$f":"(Monthly!CM691/Monthly!CM679)-1","v":0.1289833080424887},{"$f":"(Monthly!CN691/Monthly!CN679)-1","v":3.8756469796539017E-2},{"$f":"(Monthly!CO691/Monthly!CO679)-1","v":7.9468155045416156E-2},{"$f":"(Monthly!CP691/Monthly!CP679)-1","v":7.1045034904718918E-2},null,{"$f":"(Monthly!CR691/Monthly!CR679)-1","v":4.7129101344402624E-2},null,null,null,null,null,null,null,{"$f":"(Monthly!CZ691/Monthly!CZ679)-1","v":-8.0004716067394455E-5},{"$f":"(Monthly!DA691/Monthly!DA679)-1","v":1.8933602536767458E-2},null,null,null,null,null,null,{"$f":"((Monthly!DH691-Monthly!DH679)*60)","v":0},{"$f":"((Monthly!DI691-Monthly!DI679)*100)","v":-39.999999999999858},{"$f":"((Monthly!DJ691-Monthly!DJ679)*100)","v":-180.00000000000006},{"$f":"((Monthly!DK691-Monthly!DK679)*100)","v":-90.000000000000028},{"$f":"Monthly!DL691-Monthly!DL679","v":121},null,null,null,{"$f":"Monthly!DP691-Monthly!DP679","v":2675},null,null,null,{"$f":"(Monthly!DT691/Monthly!DT679)-1","v":-2.6459143968871612E-2},{"$f":"Monthly!DU691-Monthly!DU679","v":-2},{"$f":"(Monthly!DV691/Monthly!DV679)-1","v":1.945416375087472E-2},{"$f":"(Monthly!DW691/Monthly!DW679)-1","v":1.857863112093372E-2},{"$f":"(Monthly!DX691/Monthly!DX679)-1","v":2.6473882496690804E-2},{"$f":"(Monthly!DY691/Monthly!DY679)-1","v":4.7417442845046676E-2},{"$f":"(Monthly!DZ691/Monthly!DZ679)-1","v":1.9841801850114082E-2},{"$f":"(Monthly!EA691/Monthly!EA679)-1","v":7.533703409992043E-3},{"$f":"(Monthly!EB691/Monthly!EB679)-1","v":4.554865424430643E-2},{"$f":"(Monthly!EC691/Monthly!EC679)-1","v":1.9321597252039968E-3},null,null,null,null,null,null,null,null,null,null,null,null,null,{"$f":"(Monthly!EQ691/Monthly!EQ679)-1","v":-8.3817829457364379E-2},{"$f":"(Monthly!ER691/Monthly!ER679)-1","v":2.0602218700475294E-2},{"$f":"(Monthly!ES691/Monthly!ES679)-1","v":1.2589928057553879E-2},null,null,null,null,null,{"$f":"((Monthly!EY691-Monthly!EY679)*100)","v":0},{"$f":"((Monthly!EZ691-Monthly!EZ679)*100)","v":5.0000000000000018},{"$f":"((Monthly!FA691-Monthly!FA679)*100)","v":-4.0000000000000036},{"$f":"((Monthly!FB691-Monthly!FB679)*100)","v":54},"--",{"$f":"((Monthly!FD691-Monthly!FD679)*100)","v":-27},{"$f":"((Monthly!FE691-Monthly!FE679)*100)","v":0},{"$f":"((Monthly!FF691-Monthly!FF679)*100)","v":26},{"$f":"((Monthly!FG691-Monthly!FG679)*100)","v":14.000000000000002},{"$f":"((Monthly!FH691-Monthly!FH679)*100)","v":-28.000000000000004},{"$f":"((Monthly!FI691-Monthly!FI679)*100)","v":-35.999999999999986},null,null,null,null,null,null,{"$f":"(Monthly!FP691/Monthly!FP679)-1","v":0.20479520479520485},{"$f":"(Monthly!FQ691/Monthly!FQ679)-1","v":3.7372519631162282E-2},{"$f":"(Monthly!FR691/Monthly!FR679)-1","v":0.27209337463171401},{"$f":"(Monthly!FS691/Monthly!FS679)-1","v":-0.12879199317247259},{"$f":"(Monthly!FT691/Monthly!FT679)-1","v":0.14903663225680641},{"$f":"(Monthly!FU691/Monthly!FU679)-1","v":0.14992184830026334},{"$f":"(Monthly!FV691/Monthly!FV679)-1","v":-0.17935228847470708},{"$f":"(Monthly!FW691/Monthly!FW679)-1","v":1.3493619021435421E-2},{"$f":"(Monthly!FX691/Monthly!FX679)-1","v":1.1920074780093604E-2},null,null,null,null,null,{"$f":"(Monthly!GD691/Monthly!GD679)-1","v":-0.51206952043772125},{"$f":"(Monthly!GE691/Monthly!GE679)-1","v":-0.50952724276444539},{"$f":"(Monthly!GF691/Monthly!GF679)-1","v":-0.29334098737083802},{"$f":"(Monthly!GG691/Monthly!GG679)-1","v":-0.33939873417721522},{"$f":"(Monthly!GH691/Monthly!GH679)-1","v":4.7557840616966551E-2},{"$f":"(Monthly!GI691/Monthly!GI679)-1","v":0.23253150057273775},{"$f":"(Monthly!GJ691/Monthly!GJ679)-1","v":-0.32653061224489788},{"$f":"(Monthly!GK691/Monthly!GK679)-1","v":2.052980132450255E-3},{"$f":"(Monthly!GL691/Monthly!GL679)-1","v":4.3852436551006235E-4}]
["2015-10-01",null,null,null,{"$f":"(Monthly!E692/Monthly!E680)-1","v":3.1160263167460345E-2},{"$f":"(Monthly!F692/Monthly!F680)-1","v":6.4678354403855387E-2},{"$f":"(Monthly!G692/Monthly!G680)-1","v":2.6742876215111178E-2},{"$f":"(Monthly!H692/Monthly!H680)-1","v":2.7148630070405799E-2},null,null,null,null,null,null,null,null,null,null,null,null,null,null,null,{"$f":"(Monthly!X692-Monthly!X680)","v":-2.2999999999999972},{"$f":"(Monthly!Y692/Monthly!Y680)-1","v":0.11417962543757554},null,null,null,null,null,null,null,null,null,null,null,null,null,{"$f":"(Monthly!AM692/Monthly!AM680)-1","v":-1.6875918094183096E-2},{"$f":"(Monthly!AN692/Monthly!AN680)-1","v":9.5582733140031628E-4},{"$f":"(Monthly!AO692/Monthly!AO680)-1","v":2.1859929269546496E-2},{"$f":"((Monthly!AP692-Monthly!AP680)*100)","v":7.9999999999999849},{"$f":"Monthly!AQ692-Monthly!AQ680","v":-7.8999999999999986},{"$f":"Monthly!AR692-Monthly!AR680","v":-10.5},{"$f":"Monthly!AS692-Monthly!AS680","v":3},{"$f":"Monthly!AT692-Monthly!AT680","v":-7.8999999999999986},{"$f":"Monthly!AU692-Monthly!AU680","v":-4},{"$f":"Monthly!AV692-Monthly!AV680","v":-7.5},{"$f":"Monthly!AW692-Monthly!AW680","v":-6},{"$f":"Monthly!AX692-Monthly!AX680","v":-12.899999999999999},{"$f":"Monthly!AY692-Monthly!AY680","v":-14.5},{"$f":"Monthly!AZ692-Monthly!AZ680","v":-11.899999999999999},{"$f":"Monthly!BA692-Monthly!BA680","v":-5.8000000000000043},{"$f":"(Monthly!BB692/Monthly!BB680)-1","v":3.8655462184873812E-2},{"$f":"(Monthly!BC692/Monthly!BC680)-1","v":-5.5078617803624441E-3},null,null,null,null,null,null,null,null,null,{"$f":"(Monthly!BM692/Monthly!BM680)-1","v":1.8665019664120486E-2},{"$f":"(Monthly!BN692/Monthly!BN680)-1","v":1.3168401977947664E-2},null,null,null,null,null,{"$f":"(Monthly!BT692/Monthly!BT680)-1","v":5.7306470500537054E-2},null,null,null,{"$f":"(Monthly!BX692/Monthly!BX680)-1","v":-3.1992687385740348E-2},{"$f":"(Monthly!BY692/Monthly!BY680)-1","v":3.8290293855743451E-2},{"$f":"(Monthly!BZ692/Monthly!BZ680)-1","v":5.4678430462038463E-2},{"$f":"(Monthly!CA692/Monthly!CA680)-1","v":0.10146977430662329},{"$f":"Monthly!CB692-Monthly!CB680","v":-2.2003386278495736},{"$f":"Monthly!CC692-Monthly!CC680","v":-2.6903386278495738},{"$f":"(Monthly!CD692/Monthly!CD680)-1","v":7.6555023923444931E-2},{"$f":"(Monthly!CE692/Monthly!CE680)-1","v":1.6877637130801704E-2},null,{"$f":"(Monthly!CG692/Monthly!CG680)-1","v":-5.8035714285714302E-2},{"$f":"(Monthly!CH692/Monthly!CH680)-1","v":2.5193798449612448E-2},null,{"$f":"(Monthly!CJ692/Monthly!CJ680)-1","v":1.6877637130801704E-2},{"$f":"(Monthly!CK692/Monthly!CK680)-1","v":4.444547588420189E-2},{"$f":"(Monthly!CL692/Monthly!CL680)-1","v":0.14002884489314282},{"$f":"(Monthly!CM692/Monthly!CM680)-1","v":-1.538461538461533E-2},{"$f":"(Monthly!CN692/Monthly!CN680)-1","v":3.7240194296665807E-2},{"$f":"(Monthly!CO692/Monthly!CO680)-1","v":8.0410527439675361E-2},{"$f":"(Monthly!CP692/Monthly!CP680)-1","v":7.2156846080032366E-2},null,{"$f":"(Monthly!CR692/Monthly!CR680)-1","v":4.6906852734388771E-2},null,null,null,null,null,null,null,{"$f":"(Monthly!CZ692/Monthly!CZ680)-1","v":1.2041801049236245E-3},{"$f":"(Monthly!DA692/Monthly!DA680)-1","v":1.9117948374848925E-2},null,null,null,null,null,null,{"$f":"((Monthly!DH692-Monthly!DH680)*60)","v":0},{"$f":"((Monthly!DI692-Monthly!DI680)*100)","v":-39.999999999999858},{"$f":"((Monthly!DJ692-Monthly!DJ680)*100)","v":-169.99999999999994},{"$f":"((Monthly!DK692-Monthly!DK680)*100)","v":-70.000000000000014},{"$f":"Monthly!DL692-Monthly!DL680","v":101},null,null,null,{"$f":"Monthly!DP692-Monthly!DP680","v":2769},null,null,null,{"$f":"(Monthly!DT692/Monthly!DT680)-1","v":-2.7006172839506126E-2},{"$f":"Monthly!DU692-Monthly!DU680","v":-2.1999999999999993},{"$f":"(Monthly!DV692/Monthly!DV680)-1","v":1.2556679455877129E-2},{"$f":"(Monthly!DW692/Monthly!DW680)-1","v":1.2483619559969572E-2},{"$f":"(Monthly!DX692/Monthly!DX680)-1","v":1.8938626696374472E-2},{"$f":"(Monthly!DY692/Monthly!DY680)-1","v":3.6394413880660226E-2},{"$f":"(Monthly!DZ692/Monthly!DZ680)-1","v":1.3446944481427359E-2},{"$f":"(Monthly!EA692/Monthly!EA680)-1","v":1.9642506383799052E-4},{"$f":"(Monthly!EB692/Monthly!EB680)-1","v":4.1322314049586861E-2},{"$f":"(Monthly!EC692/Monthly!EC680)-1","v":-1.2972972972973285E-3},null,null,null,null,null,null,null,null,null,null,null,null,null,{"$f":"(Monthly!EQ692/Monthly!EQ680)-1","v":-7.8171091445427776E-2},{"$f":"(Monthly!ER692/Monthly!ER680)-1","v":1.6886543535620024E-2},{"$f":"(Monthly!ES692/Monthly!ES680)-1","v":8.9820359281436168E-3},null,null,null,null,null,{"$f":"((Monthly!EY692-Monthly!EY680)*100)","v":0},{"$f":"((Monthly!EZ692-Monthly!EZ680)*100)","v":3},{"$f":"((Monthly!FA692-Monthly!FA680)*100)","v":3.0000000000000249},{"$f":"((Monthly!FB692-Monthly!FB680)*100)","v":64.999999999999943},"--",{"$f":"((Monthly!FD692-Monthly!FD680)*100)","v":-24.000000000000021},{"$f":"((Monthly!FE692-Monthly!FE680)*100)","v":0},{"$f":"((Monthly!FF692-Monthly!FF680)*100)","v":16},{"$f":"((Monthly!FG692-Monthly!FG680)*100)","v":19},{"$f":"((Monthly!FH692-Monthly!FH680)*100)","v":-16.000000000000014},{"$f":"((Monthly!FI692-Monthly!FI680)*100)","v":-23},null,null,null,null,null,null,{"$f":"(Monthly!FP692/Monthly!FP680)-1","v":0.16589368533713866},{"$f":"(Monthly!FQ692/Monthly!FQ680)-1","v":3.679939919348274E-2},{"$f":"(Monthly!FR692/Monthly!FR680)-1","v":0.22925182684817691},{"$f":"(Monthly!FS692/Monthly!FS680)-1","v":-0.11430149088901165},{"$f":"(Monthly!FT692/Monthly!FT680)-1","v":0.1245064940335685},{"$f":"(Monthly!FU692/Monthly!FU680)-1","v":0.12667160720493786},{"$f":"(Monthly!FV692/Monthly!FV680)-1","v":-0.22995380152562395},{"$f":"(Monthly!FW692/Monthly!FW680)-1","v":-2.2587205583274872E-2},{"$f":"(Monthly!FX692/Monthly!FX680)-1","v":3.8308616536553153E-3},null,null,null,null,null,{"$f":"(Monthly!GD692/Monthly!GD680)-1","v":-0.45236966824644553},{"$f":"(Monthly!GE692/Monthly!GE680)-1","v":-0.44607114262838843},{"$f":"(Monthly!GF692/Monthly!GF680)-1","v":-0.26666666666666661},{"$f":"(Monthly!GG692/Monthly!GG680)-1","v":-0.31567508829122515},{"$f":"(Monthly!GH692/Monthly!GH680)-1","v":0.13183191430925567},{"$f":"(Monthly!GI692/Monthly!GI680)-1","v":0.45034965034965024},{"$f":"(Monthly!GJ692/Monthly!GJ680)-1","v":-0.37368421052631584},{"$f":"(Monthly!GK692/Monthly!GK680)-1","v":0.11002622328851208},{"$f":"(Monthly!GL692/Monthly!GL680)-1","v":6.3879598662207382E-2}]
["2015-11-01",null,null,null,{"$f":"(Monthly!E693/Monthly!E681)-1","v":2.9053675127087342E-2},{"$f":"(Monthly!F693/Monthly!F681)-1","v":6.1680060443711771E-2},{"$f":"(Monthly!G693/Monthly!G681)-1","v":2.6202142679179641E-2},{"$f":"(Monthly!H693/Monthly!H681)-1","v":2.4709825756946024E-2},null,null,null,null,null,null,null,null,null,null,null,null,null,null,null,{"$f":"(Monthly!X693-Monthly!X681)","v":-3.2000000000000028},{"$f":"(Monthly!Y693/Monthly!Y681)-1","v":0.11141202705673758},null,null,null,null,null,null,null,null,null,null,null,null,null,{"$f":"(Monthly!AM693/Monthly!AM681)-1","v":-3.0173505394256228E-2},{"$f":"(Monthly!AN693/Monthly!AN681)-1","v":-9.1484163306519983E-3},{"$f":"(Monthly!AO693/Monthly!AO681)-1","v":1.803465622495537E-2},{"$f":"((Monthly!AP693-Monthly!AP681)*100)","v":7.9999999999999849},{"$f":"Monthly!AQ693-Monthly!AQ681","v":-9.1000000000000014},{"$f":"Monthly!AR693-Monthly!AR681","v":-12},{"$f":"Monthly!AS693-Monthly!AS681","v":0.5},{"$f":"Monthly!AT693-Monthly!AT681","v":-3.6000000000000014},{"$f":"Monthly!AU693-Monthly!AU681","v":-7.5},{"$f":"Monthly!AV693-Monthly!AV681","v":-7},{"$f":"Monthly!AW693-Monthly!AW681","v":-8.5},{"$f":"Monthly!AX693-Monthly!AX681","v":-17.100000000000001},{"$f":"Monthly!AY693-Monthly!AY681","v":-9},{"$f":"Monthly!AZ693-Monthly!AZ681","v":-15.200000000000003},{"$f":"Monthly!BA693-Monthly!BA681","v":-6.1999999999999957},{"$f":"(Monthly!BB693/Monthly!BB681)-1","v":-7.7639751552795122E-2},{"$f":"(Monthly!BC693/Monthly!BC681)-1","v":-1.2115866679045628E-2},null,null,null,null,null,null,null,null,null,{"$f":"(Monthly!BM693/Monthly!BM681)-1","v":1.9006754036362317E-2},{"$f":"(Monthly!BN693/Monthly!BN681)-1","v":1.2889744014474847E-2},null,null,null,null,null,{"$f":"(Monthly!BT693/Monthly!BT681)-1","v":5.8342300638201561E-2},null,null,null,{"$f":"(Monthly!BX693/Monthly!BX681)-1","v":0.18309859154929575},{"$f":"(Monthly!BY693/Monthly!BY681)-1","v":0.18080149114631872},{"$f":"(Monthly!BZ693/Monthly!BZ681)-1","v":5.673021374927778E-2},{"$f":"(Monthly!CA693/Monthly!CA681)-1","v":7.0169168453657393E-2},{"$f":"Monthly!CB693-Monthly!CB681","v":-1.6436157590859803},{"$f":"Monthly!CC693-Monthly!CC681","v":-2.2036157590859808},{"$f":"(Monthly!CD693/Monthly!CD681)-1","v":8.5308056872037907E-2},{"$f":"(Monthly!CE693/Monthly!CE681)-1","v":0.13901345291479816},null,{"$f":"(Monthly!CG693/Monthly!CG681)-1","v":-1.9230769230769273E-2},{"$f":"(Monthly!CH693/Monthly!CH681)-1","v":-1.8181818181818188E-2},null,{"$f":"(Monthly!CJ693/Monthly!CJ681)-1","v":0.13901345291479816},{"$f":"(Monthly!CK693/Monthly!CK681)-1","v":4.0590990040234809E-2},{"$f":"(Monthly!CL693/Monthly!CL681)-1","v":7.7388617048673725E-2},{"$f":"(Monthly!CM693/Monthly!CM681)-1","v":0.18154311649016641},{"$f":"(Monthly!CN693/Monthly!CN681)-1","v":3.1613539270456625E-2},{"$f":"(Monthly!CO693/Monthly!CO681)-1","v":7.9207001723909265E-2},{"$f":"(Monthly!CP693/Monthly!CP681)-1","v":7.298420950030815E-2},null,{"$f":"(Monthly!CR693/Monthly!CR681)-1","v":5.2999243247786376E-2},null,null,null,null,null,null,null,{"$f":"(Monthly!CZ693/Monthly!CZ681)-1","v":4.3649153585978429E-3},{"$f":"(Monthly!DA693/Monthly!DA681)-1","v":2.0252910729280371E-2},null,null,null,null,null,null,{"$f":"((Monthly!DH693-Monthly!DH681)*60)","v":-5.9999999999996589},{"$f":"((Monthly!DI693-Monthly!DI681)*100)","v":-39.999999999999858},{"$f":"((Monthly!DJ693-Monthly!DJ681)*100)","v":-150},{"$f":"((Monthly!DK693-Monthly!DK681)*100)","v":-79.999999999999986},{"$f":"Monthly!DL693-Monthly!DL681","v":71},null,null,null,{"$f":"Monthly!DP693-Monthly!DP681","v":2729},null,null,null,{"$f":"(Monthly!DT693/Monthly!DT681)-1","v":-2.0265003897116163E-2},{"$f":"Monthly!DU693-Monthly!DU681","v":-2},{"$f":"(Monthly!DV693/Monthly!DV681)-1","v":1.2957157784743822E-2},{"$f":"(Monthly!DW693/Monthly!DW681)-1","v":1.3019390581717527E-2},{"$f":"(Monthly!DX693/Monthly!DX681)-1","v":2.1300334719545511E-2},{"$f":"(Monthly!DY693/Monthly!DY681)-1","v":3.4947368421052616E-2},{"$f":"(Monthly!DZ693/Monthly!DZ681)-1","v":1.6969535008017234E-2},{"$f":"(Monthly!EA693/Monthly!EA681)-1","v":6.3116370808677935E-3},{"$f":"(Monthly!EB693/Monthly!EB681)-1","v":3.9353769676884864E-2},{"$f":"(Monthly!EC693/Monthly!EC681)-1","v":-4.8024448810304321E-3},null,null,null,null,null,null,null,null,null,null,null,null,null,{"$f":"(Monthly!EQ693/Monthly!EQ681)-1","v":-7.5659532105525229E-2},{"$f":"(Monthly!ER693/Monthly!ER681)-1","v":1.7405063291139333E-2},{"$f":"(Monthly!ES693/Monthly!ES681)-1","v":9.5808383233533245E-3},null,null,null,null,null,{"$f":"((Monthly!EY693-Monthly!EY681)*100)","v":0},{"$f":"((Monthly!EZ693-Monthly!EZ681)*100)","v":3},{"$f":"((Monthly!FA693-Monthly!FA681)*100)","v":13.999999999999968},{"$f":"((Monthly!FB693-Monthly!FB681)*100)","v":67},"--",{"$f":"((Monthly!FD693-Monthly!FD681)*100)","v":-6.0000000000000053},{"$f":"((Monthly!FE693-Monthly!FE681)*100)","v":10},{"$f":"((Monthly!FF693-Monthly!FF681)*100)","v":35},{"$f":"((Monthly!FG693-Monthly!FG681)*100)","v":35},{"$f":"((Monthly!FH693-Monthly!FH681)*100)","v":4.9999999999999822},{"$f":"((Monthly!FI693-Monthly!FI681)*100)","v":-7.0000000000000284},null,null,null,null,null,null,{"$f":"(Monthly!FP693/Monthly!FP681)-1","v":0.17253863134657843},{"$f":"(Monthly!FQ693/Monthly!FQ681)-1","v":3.9037372038727147E-2},{"$f":"(Monthly!FR693/Monthly!FR681)-1","v":0.22150894614684025},{"$f":"(Monthly!FS693/Monthly!FS681)-1","v":-0.13998236190170776},{"$f":"(Monthly!FT693/Monthly!FT681)-1","v":0.12257849558368084},{"$f":"(Monthly!FU693/Monthly!FU681)-1","v":0.13369633680016157},{"$f":"(Monthly!FV693/Monthly!FV681)-1","v":-0.15326905237949173},{"$f":"(Monthly!FW693/Monthly!FW681)-1","v":-1.4043099085527255E-2},{"$f":"(Monthly!FX693/Monthly!FX681)-1","v":-1.3600196866540792E-2},null,null,null,null,null,{"$f":"(Monthly!GD693/Monthly!GD681)-1","v":-0.44003166644676084},{"$f":"(Monthly!GE693/Monthly!GE681)-1","v":-0.44272406847935541},{"$f":"(Monthly!GF693/Monthly!GF681)-1","v":-0.24591257924591259},{"$f":"(Monthly!GG693/Monthly!GG681)-1","v":-0.3235536057033177},{"$f":"(Monthly!GH693/Monthly!GH681)-1","v":0.15231599886331337},{"$f":"(Monthly!GI693/Monthly!GI681)-1","v":0.24523809523809526},{"$f":"(Monthly!GJ693/Monthly!GJ681)-1","v":-0.46099290780141855},{"$f":"(Monthly!GK693/Monthly!GK681)-1","v":-8.9938531219669882E-3},{"$f":"(Monthly!GL693/Monthly!GL681)-1","v":5.432606761565828E-2}]
["2015-12-01",null,null,null,{"$f":"(Monthly!E694/Monthly!E682)-1","v":3.0526011665071628E-2},{"$f":"(Monthly!F694/Monthly!F682)-1","v":6.4923478141514002E-2},{"$f":"(Monthly!G694/Monthly!G682)-1","v":3.0390978067083907E-2},{"$f":"(Monthly!H694/Monthly!H682)-1","v":2.5030752857596816E-2},null,null,null,null,null,null,null,null,null,null,null,null,null,null,null,{"$f":"(Monthly!X694-Monthly!X682)","v":-3.2000000000000028},{"$f":"(Monthly!Y694/Monthly!Y682)-1","v":0.10280239405848945},null,null,null,null,null,null,null,null,null,null,null,null,null,{"$f":"(Monthly!AM694/Monthly!AM682)-1","v":-3.2541922942065038E-2},{"$f":"(Monthly!AN694/Monthly!AN682)-1","v":-7.8390604366272987E-3},{"$f":"(Monthly!AO694/Monthly!AO682)-1","v":1.8365106241662321E-2},{"$f":"((Monthly!AP694-Monthly!AP682)*100)","v":6.999999999999984},{"$f":"Monthly!AQ694-Monthly!AQ682","v":-6.8999999999999986},{"$f":"Monthly!AR694-Monthly!AR682","v":-11.5},{"$f":"Monthly!AS694-Monthly!AS682","v":7},{"$f":"Monthly!AT694-Monthly!AT682","v":-8},{"$f":"Monthly!AU694-Monthly!AU682","v":-1},{"$f":"Monthly!AV694-Monthly!AV682","v":-9.5},{"$f":"Monthly!AW694-Monthly!AW682","v":-2},{"$f":"Monthly!AX694-Monthly!AX682","v":-9},{"$f":"Monthly!AY694-Monthly!AY682","v":-5},{"$f":"Monthly!AZ694-Monthly!AZ682","v":-7.8000000000000043},{"$f":"Monthly!BA694-Monthly!BA682","v":-8.8000000000000043},{"$f":"(Monthly!BB694/Monthly!BB682)-1","v":6.7681895093061328E-3},{"$f":"(Monthly!BC694/Monthly!BC682)-1","v":-7.5550907823345725E-2},null,null,null,null,null,null,null,null,null,{"$f":"(Monthly!BM694/Monthly!BM682)-1","v":3.0576591710427259E-2},{"$f":"(Monthly!BN694/Monthly!BN682)-1","v":2.5374523649117853E-2},null,null,null,null,null,{"$f":"(Monthly!BT694/Monthly!BT682)-1","v":6.0726768180896729E-2},null,null,null,{"$f":"(Monthly!BX694/Monthly!BX682)-1","v":5.2728954671600325E-2},{"$f":"(Monthly!BY694/Monthly!BY682)-1","v":0.1383177570093459},{"$f":"(Monthly!BZ694/Monthly!BZ682)-1","v":5.5561933187923351E-2},{"$f":"(Monthly!CA694/Monthly!CA682)-1","v":2.8778269714012206E-2},{"$f":"Monthly!CB694-Monthly!CB682","v":-0.60908257659943921},{"$f":"Monthly!CC694-Monthly!CC682","v":-1.0290825765994391},{"$f":"(Monthly!CD694/Monthly!CD682)-1","v":0.1090047393364928},{"$f":"(Monthly!CE694/Monthly!CE682)-1","v":8.9430894308943021E-2},null,{"$f":"(Monthly!CG694/Monthly!CG682)-1","v":-5.3763440860215006E-2},{"$f":"(Monthly!CH694/Monthly!CH682)-1","v":7.4950690335305659E-2},null,{"$f":"(Monthly!CJ694/Monthly!CJ682)-1","v":8.9430894308943021E-2},{"$f":"(Monthly!CK694/Monthly!CK682)-1","v":3.7858707305362449E-2},{"$f":"(Monthly!CL694/Monthly!CL682)-1","v":-1.0553442140139868E-2},{"$f":"(Monthly!CM694/Monthly!CM682)-1","v":5.8171745152354681E-2},{"$f":"(Monthly!CN694/Monthly!CN682)-1","v":2.7731449687694143E-2},{"$f":"(Monthly!CO694/Monthly!CO682)-1","v":7.9125112131285924E-2},{"$f":"(Monthly!CP694/Monthly!CP682)-1","v":3.0056403930722286E-2},null,{"$f":"(Monthly!CR694/Monthly!CR682)-1","v":2.0778221540094233E-2},null,null,null,null,null,null,null,{"$f":"(Monthly!CZ694/Monthly!CZ682)-1","v":6.5851284438613877E-3},{"$f":"(Monthly!DA694/Monthly!DA682)-1","v":2.0989092184193092E-2},null,null,null,null,null,null,{"$f":"((Monthly!DH694-Monthly!DH682)*60)","v":0},{"$f":"((Monthly!DI694-Monthly!DI682)*100)","v":0},{"$f":"((Monthly!DJ694-Monthly!DJ682)*100)","v":-129.99999999999989},{"$f":"((Monthly!DK694-Monthly!DK682)*100)","v":-59.999999999999964},{"$f":"Monthly!DL694-Monthly!DL682","v":68},null,null,null,{"$f":"Monthly!DP694-Monthly!DP682","v":2713},null,null,null,{"$f":"(Monthly!DT694/Monthly!DT682)-1","v":-1.8138801261829651E-2},{"$f":"Monthly!DU694-Monthly!DU682","v":-2},{"$f":"(Monthly!DV694/Monthly!DV682)-1","v":9.0864951099396407E-3},{"$f":"(Monthly!DW694/Monthly!DW682)-1","v":9.6460791117281008E-3},{"$f":"(Monthly!DX694/Monthly!DX682)-1","v":1.87209066990488E-2},{"$f":"(Monthly!DY694/Monthly!DY682)-1","v":3.6502546689303861E-2},{"$f":"(Monthly!DZ694/Monthly!DZ682)-1","v":1.3154398086632879E-2},{"$f":"(Monthly!EA694/Monthly!EA682)-1","v":5.1181102362205522E-3},{"$f":"(Monthly!EB694/Monthly!EB682)-1","v":2.9844644317252644E-2},{"$f":"(Monthly!EC694/Monthly!EC682)-1","v":-1.0159010600706786E-2},null,null,null,null,null,null,null,null,null,null,null,null,null,{"$f":"(Monthly!EQ694/Monthly!EQ682)-1","v":-6.8527918781725927E-2},{"$f":"(Monthly!ER694/Monthly!ER682)-1","v":1.8967334035827177E-2},{"$f":"(Monthly!ES694/Monthly!ES682)-1","v":1.1390887290167795E-2},null,null,null,null,null,{"$f":"((Monthly!EY694-Monthly!EY682)*100)","v":12.000000000000011},{"$f":"((Monthly!EZ694-Monthly!EZ682)*100)","v":12},{"$f":"((Monthly!FA694-Monthly!FA682)*100)","v":18.000000000000014},{"$f":"((Monthly!FB694-Monthly!FB682)*100)","v":71.999999999999972},"--",{"$f":"((Monthly!FD694-Monthly!FD682)*100)","v":10.000000000000009},{"$f":"((Monthly!FE694-Monthly!FE682)*100)","v":20},{"$f":"((Monthly!FF694-Monthly!FF682)*100)","v":44.000000000000007},{"$f":"((Monthly!FG694-Monthly!FG682)*100)","v":34},{"$f":"((Monthly!FH694-Monthly!FH682)*100)","v":6.0000000000000053},{"$f":"((Monthly!FI694-Monthly!FI682)*100)","v":3.0000000000000249},null,null,null,null,null,null,{"$f":"(Monthly!FP694/Monthly!FP682)-1","v":0.18912591050988548},{"$f":"(Monthly!FQ694/Monthly!FQ682)-1","v":4.2093526807355452E-2},{"$f":"(Monthly!FR694/Monthly!FR682)-1","v":0.17555180606728427},{"$f":"(Monthly!FS694/Monthly!FS682)-1","v":-0.11679779381945021},{"$f":"(Monthly!FT694/Monthly!FT682)-1","v":0.10722603329376268},{"$f":"(Monthly!FU694/Monthly!FU682)-1","v":0.11686762747336377},{"$f":"(Monthly!FV694/Monthly!FV682)-1","v":-0.18098379762115357},{"$f":"(Monthly!FW694/Monthly!FW682)-1","v":-5.9325327570372233E-2},{"$f":"(Monthly!FX694/Monthly!FX682)-1","v":-3.6305663550312617E-2},null,null,null,null,null,{"$f":"(Monthly!GD694/Monthly!GD682)-1","v":-0.37274413897790526},{"$f":"(Monthly!GE694/Monthly!GE682)-1","v":-0.39027911453320507},{"$f":"(Monthly!GF694/Monthly!GF682)-1","v":-0.18541033434650456},{"$f":"(Monthly!GG694/Monthly!GG682)-1","v":-0.3227792436235708},{"$f":"(Monthly!GH694/Monthly!GH682)-1","v":0.27911826035150433},{"$f":"(Monthly!GI694/Monthly!GI682)-1","v":0.22174381054897729},{"$f":"(Monthly!GJ694/Monthly!GJ682)-1","v":-0.41766381766381766},{"$f":"(Monthly!GK694/Monthly!GK682)-1","v":-0.11252693136349645},{"$f":"(Monthly!GL694/Monthly!GL682)-1","v":-3.2226612613537209E-2}]
["2016-01-01",null,null,null,{"$f":"(Monthly!E695/Monthly!E683)-1","v":2.5650714819113185E-2},{"$f":"(Monthly!F695/Monthly!F683)-1","v":4.6205296205296342E-2},{"$f":"(Monthly!G695/Monthly!G683)-1","v":2.6850357866865293E-2},{"$f":"(Monthly!H695/Monthly!H683)-1","v":2.1910677151474101E-2},null,null,null,null,null,null,null,null,null,null,null,null,null,null,null,{"$f":"(Monthly!X695-Monthly!X683)","v":-2},{"$f":"(Monthly!Y695/Monthly!Y683)-1","v":9.849849927043719E-2},null,null,null,null,null,null,null,null,null,null,null,null,null,{"$f":"(Monthly!AM695/Monthly!AM683)-1","v":-2.0192245783734797E-2},{"$f":"(Monthly!AN695/Monthly!AN683)-1","v":2.0707961330874713E-3},{"$f":"(Monthly!AO695/Monthly!AO683)-1","v":1.8174207572238199E-2},{"$f":"((Monthly!AP695-Monthly!AP683)*100)","v":4.9999999999999822},{"$f":"Monthly!AQ695-Monthly!AQ683","v":-5.6999999999999957},{"$f":"Monthly!AR695-Monthly!AR683","v":-3},{"$f":"Monthly!AS695-Monthly!AS683","v":9},{"$f":"Monthly!AT695-Monthly!AT683","v":-8.2000000000000028},{"$f":"Monthly!AU695-Monthly!AU683","v":-2.5},{"$f":"Monthly!AV695-Monthly!AV683","v":-4.5},{"$f":"Monthly!AW695-Monthly!AW683","v":-7.5},{"$f":"Monthly!AX695-Monthly!AX683","v":-1.3999999999999986},{"$f":"Monthly!AY695-Monthly!AY683","v":-1.5},{"$f":"Monthly!AZ695-Monthly!AZ683","v":-6.2999999999999972},{"$f":"Monthly!BA695-Monthly!BA683","v":-2.8999999999999986},{"$f":"(Monthly!BB695/Monthly!BB683)-1","v":-0.12071778140293632},{"$f":"(Monthly!BC695/Monthly!BC683)-1","v":-5.1843700063315956E-2},null,null,null,null,null,null,null,null,null,{"$f":"(Monthly!BM695/Monthly!BM683)-1","v":2.808255472794885E-2},{"$f":"(Monthly!BN695/Monthly!BN683)-1","v":2.4935819308663731E-2},null,null,null,null,null,{"$f":"(Monthly!BT695/Monthly!BT683)-1","v":6.884581205580953E-2},null,null,null,{"$f":"(Monthly!BX695/Monthly!BX683)-1","v":1.9981834695731227E-2},{"$f":"(Monthly!BY695/Monthly!BY683)-1","v":0.11599625818521986},{"$f":"(Monthly!BZ695/Monthly!BZ683)-1","v":5.5932880543347885E-2},{"$f":"(Monthly!CA695/Monthly!CA683)-1","v":5.8632899237832437E-2},{"$f":"Monthly!CB695-Monthly!CB683","v":0.75974915546293076},{"$f":"Monthly!CC695-Monthly!CC683","v":0.19974915546293026},{"$f":"(Monthly!CD695/Monthly!CD683)-1","v":0.14492753623188404},{"$f":"(Monthly!CE695/Monthly!CE683)-1","v":-5.7361376673039643E-3},null,{"$f":"(Monthly!CG695/Monthly!CG683)-1","v":-2.1505376344086002E-2},{"$f":"(Monthly!CH695/Monthly!CH683)-1","v":0.11156186612576069},null,{"$f":"(Monthly!CJ695/Monthly!CJ683)-1","v":-5.7361376673039643E-3},{"$f":"(Monthly!CK695/Monthly!CK683)-1","v":3.3641290796708523E-2},{"$f":"(Monthly!CL695/Monthly!CL683)-1","v":5.3066765395533011E-3},{"$f":"(Monthly!CM695/Monthly!CM683)-1","v":8.8983050847457612E-2},{"$f":"(Monthly!CN695/Monthly!CN683)-1","v":2.3869285306820975E-2},{"$f":"(Monthly!CO695/Monthly!CO683)-1","v":7.5126890272618096E-2},{"$f":"(Monthly!CP695/Monthly!CP683)-1","v":3.0963411148231534E-2},null,{"$f":"(Monthly!CR695/Monthly!CR683)-1","v":2.2645960493792305E-2},null,null,null,null,null,null,null,{"$f":"(Monthly!CZ695/Monthly!CZ683)-1","v":1.3592266072971704E-2},{"$f":"(Monthly!DA695/Monthly!DA683)-1","v":2.2183318744529279E-2},null,null,null,null,null,null,{"$f":"((Monthly!DH695-Monthly!DH683)*60)","v":0},{"$f":"((Monthly!DI695-Monthly!DI683)*100)","v":-19.999999999999574},{"$f":"((Monthly!DJ695-Monthly!DJ683)*100)","v":-140.00000000000003},{"$f":"((Monthly!DK695-Monthly!DK683)*100)","v":-79.999999999999986},{"$f":"Monthly!DL695-Monthly!DL683","v":88},null,null,null,{"$f":"Monthly!DP695-Monthly!DP683","v":2605},null,null,null,{"$f":"(Monthly!DT695/Monthly!DT683)-1","v":-3.6661466458658309E-2},{"$f":"Monthly!DU695-Monthly!DU683","v":-2},{"$f":"(Monthly!DV695/Monthly!DV683)-1","v":7.4063819478091819E-3},{"$f":"(Monthly!DW695/Monthly!DW683)-1","v":8.1880426342908486E-3},{"$f":"(Monthly!DX695/Monthly!DX683)-1","v":1.8512836248337772E-2},{"$f":"(Monthly!DY695/Monthly!DY683)-1","v":3.7355088020609717E-2},{"$f":"(Monthly!DZ695/Monthly!DZ683)-1","v":1.2620837808807961E-2},{"$f":"(Monthly!EA695/Monthly!EA683)-1","v":9.7667929041260759E-3},{"$f":"(Monthly!EB695/Monthly!EB683)-1","v":1.8510900863841995E-2},{"$f":"(Monthly!EC695/Monthly!EC683)-1","v":-1.4806378132118492E-2},null,null,null,null,null,null,null,null,null,null,null,null,null,{"$f":"(Monthly!EQ695/Monthly!EQ683)-1","v":-4.8958333333333326E-2},null,null,null,null,null,null,null,{"$f":"((Monthly!EY695-Monthly!EY683)*100)","v":25},{"$f":"((Monthly!EZ695-Monthly!EZ683)*100)","v":23.000000000000004},{"$f":"((Monthly!FA695-Monthly!FA683)*100)","v":54},{"$f":"((Monthly!FB695-Monthly!FB683)*100)","v":100},"--",{"$f":"((Monthly!FD695-Monthly!FD683)*100)","v":16.000000000000014},{"$f":"((Monthly!FE695-Monthly!FE683)*100)","v":23},{"$f":"((Monthly!FF695-Monthly!FF683)*100)","v":34},{"$f":"((Monthly!FG695-Monthly!FG683)*100)","v":35},{"$f":"((Monthly!FH695-Monthly!FH683)*100)","v":14.999999999999991},{"$f":"((Monthly!FI695-Monthly!FI683)*100)","v":20.999999999999996},null,null,null,null,null,null,{"$f":"(Monthly!FP695/Monthly!FP683)-1","v":0.17208381455205424},{"$f":"(Monthly!FQ695/Monthly!FQ683)-1","v":5.7010984062655812E-2},{"$f":"(Monthly!FR695/Monthly!FR683)-1","v":0.22913207957978399},{"$f":"(Monthly!FS695/Monthly!FS683)-1","v":-6.5432630219543708E-2},{"$f":"(Monthly!FT695/Monthly!FT683)-1","v":0.10757995873669723},{"$f":"(Monthly!FU695/Monthly!FU683)-1","v":8.6824282991318169E-2},{"$f":"(Monthly!FV695/Monthly!FV683)-1","v":-0.13810277505814428},{"$f":"(Monthly!FW695/Monthly!FW683)-1","v":-3.7004498901189842E-2},{"$f":"(Monthly!FX695/Monthly!FX683)-1","v":5.8228348579334455E-3},null,null,null,null,null,{"$f":"(Monthly!GD695/Monthly!GD683)-1","v":-0.32909783989834818},{"$f":"(Monthly!GE695/Monthly!GE683)-1","v":-0.35720268006700162},{"$f":"(Monthly!GF695/Monthly!GF683)-1","v":-6.8387681159420399E-2},{"$f":"(Monthly!GG695/Monthly!GG683)-1","v":-0.28495161828495164},{"$f":"(Monthly!GH695/Monthly!GH683)-1","v":0.18779904306220097},{"$f":"(Monthly!GI695/Monthly!GI683)-1","v":-0.12325581395348839},{"$f":"(Monthly!GJ695/Monthly!GJ683)-1","v":-0.23890784982935154},{"$f":"(Monthly!GK695/Monthly!GK683)-1","v":-0.12817239442373485},{"$f":"(Monthly!GL695/Monthly!GL683)-1","v":-5.2300242130750685E-2}]
["2016-02-01",null,null,null,{"$f":"(Monthly!E696/Monthly!E684)-1","v":2.8230877016491185E-2},{"$f":"(Monthly!F696/Monthly!F684)-1","v":5.9464273480852148E-2},{"$f":"(Monthly!G696/Monthly!G684)-1","v":3.4133797851602976E-2},{"$f":"(Monthly!H696/Monthly!H684)-1","v":2.1304323968393213E-2},null,null,null,null,null,null,null,null,null,null,null,null,null,null,null,{"$f":"(Monthly!X696-Monthly!X684)","v":-2},{"$f":"(Monthly!Y696/Monthly!Y684)-1","v":0.10192082576893702},null,null,null,null,null,null,null,null,null,null,null,null,null,{"$f":"(Monthly!AM696/Monthly!AM684)-1","v":-2.052126439670654E-2},{"$f":"(Monthly!AN696/Monthly!AN684)-1","v":5.3416506042467393E-3},{"$f":"(Monthly!AO696/Monthly!AO684)-1","v":1.3105373326922631E-2},{"$f":"((Monthly!AP696-Monthly!AP684)*100)","v":4.0000000000000036},{"$f":"Monthly!AQ696-Monthly!AQ684","v":-3.7999999999999972},{"$f":"Monthly!AR696-Monthly!AR684","v":-3},{"$f":"Monthly!AS696-Monthly!AS684","v":0.5},{"$f":"Monthly!AT696-Monthly!AT684","v":-2.8999999999999986},{"$f":"Monthly!AU696-Monthly!AU684","v":-2},{"$f":"Monthly!AV696-Monthly!AV684","v":-5},{"$f":"Monthly!AW696-Monthly!AW684","v":-7.5},{"$f":"Monthly!AX696-Monthly!AX684","v":-1},{"$f":"Monthly!AY696-Monthly!AY684","v":3.5},{"$f":"Monthly!AZ696-Monthly!AZ684","v":-0.90000000000000568},{"$f":"Monthly!BA696-Monthly!BA684","v":-4.5999999999999943},{"$f":"(Monthly!BB696/Monthly!BB684)-1","v":-3.8269550748752157E-2},{"$f":"(Monthly!BC696/Monthly!BC684)-1","v":-5.2598166728601514E-2},null,null,null,null,null,null,null,null,null,{"$f":"(Monthly!BM696/Monthly!BM684)-1","v":3.9285689607120089E-2},{"$f":"(Monthly!BN696/Monthly!BN684)-1","v":3.4167413552327108E-2},null,null,null,null,null,{"$f":"(Monthly!BT696/Monthly!BT684)-1","v":7.0531487711137819E-2},null,null,null,{"$f":"(Monthly!BX696/Monthly!BX684)-1","v":0.36302142051860198},{"$f":"(Monthly!BY696/Monthly!BY684)-1","v":6.0337178349600729E-2},{"$f":"(Monthly!BZ696/Monthly!BZ684)-1","v":5.2798370211080137E-2},{"$f":"(Monthly!CA696/Monthly!CA684)-1","v":6.7869992072687291E-2},{"$f":"Monthly!CB696-Monthly!CB684","v":0.46240966667769978},{"$f":"Monthly!CC696-Monthly!CC684","v":4.2409666677698965E-2},{"$f":"(Monthly!CD696/Monthly!CD684)-1","v":0.17647058823529416},{"$f":"(Monthly!CE696/Monthly!CE684)-1","v":-4.3715846994535568E-2},null,{"$f":"(Monthly!CG696/Monthly!CG684)-1","v":-1.5789473684210575E-2},{"$f":"(Monthly!CH696/Monthly!CH684)-1","v":4.6277665995975825E-2},null,{"$f":"(Monthly!CJ696/Monthly!CJ684)-1","v":-4.3715846994535568E-2},{"$f":"(Monthly!CK696/Monthly!CK684)-1","v":2.6599216710182727E-2},{"$f":"(Monthly!CL696/Monthly!CL684)-1","v":-0.10352605959871775},{"$f":"(Monthly!CM696/Monthly!CM684)-1","v":0.43270868824531505},{"$f":"(Monthly!CN696/Monthly!CN684)-1","v":1.9470765433301729E-2},{"$f":"(Monthly!CO696/Monthly!CO684)-1","v":7.1610125531694102E-2},{"$f":"(Monthly!CP696/Monthly!CP684)-1","v":2.9763506686192764E-2},null,{"$f":"(Monthly!CR696/Monthly!CR684)-1","v":2.387520750318517E-2},null,null,null,null,null,null,null,{"$f":"(Monthly!CZ696/Monthly!CZ684)-1","v":9.8475937304927097E-3},{"$f":"(Monthly!DA696/Monthly!DA684)-1","v":2.3347874589986661E-2},null,null,null,null,null,null,{"$f":"((Monthly!DH696-Monthly!DH684)*60)","v":-6.0000000000000853},{"$f":"((Monthly!DI696-Monthly!DI684)*100)","v":19.999999999999574},{"$f":"((Monthly!DJ696-Monthly!DJ684)*100)","v":-119.99999999999993},{"$f":"((Monthly!DK696-Monthly!DK684)*100)","v":-59.999999999999964},{"$f":"Monthly!DL696-Monthly!DL684","v":69},null,null,null,{"$f":"Monthly!DP696-Monthly!DP684","v":2604},null,null,null,{"$f":"(Monthly!DT696/Monthly!DT684)-1","v":-6.1823802163833097E-2},{"$f":"Monthly!DU696-Monthly!DU684","v":-1.5},{"$f":"(Monthly!DV696/Monthly!DV684)-1","v":3.4499413509969656E-3},{"$f":"(Monthly!DW696/Monthly!DW684)-1","v":4.233102864399596E-3},{"$f":"(Monthly!DX696/Monthly!DX684)-1","v":1.5764151909100299E-2},{"$f":"(Monthly!DY696/Monthly!DY684)-1","v":3.1746031746031855E-2},{"$f":"(Monthly!DZ696/Monthly!DZ684)-1","v":1.0755579456843245E-2},{"$f":"(Monthly!EA696/Monthly!EA684)-1","v":1.1807084250550437E-2},{"$f":"(Monthly!EB696/Monthly!EB684)-1","v":8.6030315444489691E-3},{"$f":"(Monthly!EC696/Monthly!EC684)-1","v":-2.133938706015881E-2},null,null,null,null,null,null,null,null,null,null,null,null,null,{"$f":"(Monthly!EQ696/Monthly!EQ684)-1","v":-5.1282051282051211E-2},null,null,null,null,null,null,null,{"$f":"((Monthly!EY696-Monthly!EY684)*100)","v":25},{"$f":"((Monthly!EZ696-Monthly!EZ684)*100)","v":27},{"$f":"((Monthly!FA696-Monthly!FA684)*100)","v":35.000000000000007},{"$f":"((Monthly!FB696-Monthly!FB684)*100)","v":83},"--",{"$f":"((Monthly!FD696-Monthly!FD684)*100)","v":-4.9999999999999822},{"$f":"((Monthly!FE696-Monthly!FE684)*100)","v":28.999999999999996},{"$f":"((Monthly!FF696-Monthly!FF684)*100)","v":31.000000000000007},{"$f":"((Monthly!FG696-Monthly!FG684)*100)","v":10.999999999999998},{"$f":"((Monthly!FH696-Monthly!FH684)*100)","v":-25},{"$f":"((Monthly!FI696-Monthly!FI684)*100)","v":-19.999999999999996},null,null,null,null,null,null,{"$f":"(Monthly!FP696/Monthly!FP684)-1","v":0.10384830786462906},{"$f":"(Monthly!FQ696/Monthly!FQ684)-1","v":4.7714258293611422E-2},{"$f":"(Monthly!FR696/Monthly!FR684)-1","v":0.23571763759469055},{"$f":"(Monthly!FS696/Monthly!FS684)-1","v":-2.2731277533039718E-2},{"$f":"(Monthly!FT696/Monthly!FT684)-1","v":8.4550359349973681E-2},{"$f":"(Monthly!FU696/Monthly!FU684)-1","v":4.3679273026042464E-2},{"$f":"(Monthly!FV696/Monthly!FV684)-1","v":-6.2057370387729627E-2},{"$f":"(Monthly!FW696/Monthly!FW684)-1","v":0.14316576388228963},{"$f":"(Monthly!FX696/Monthly!FX684)-1","v":2.0603439924613998E-2},null,null,null,null,null,{"$f":"(Monthly!GD696/Monthly!GD684)-1","v":-0.40055357848952156},{"$f":"(Monthly!GE696/Monthly!GE684)-1","v":-0.44612736660929431},{"$f":"(Monthly!GF696/Monthly!GF684)-1","v":-0.18644067796610175},{"$f":"(Monthly!GG696/Monthly!GG684)-1","v":-0.30090972708187547},{"$f":"(Monthly!GH696/Monthly!GH684)-1","v":7.9619726678550107E-2},{"$f":"(Monthly!GI696/Monthly!GI684)-1","v":-5.1560379918588861E-2},{"$f":"(Monthly!GJ696/Monthly!GJ684)-1","v":-0.29818181818181821},{"$f":"(Monthly!GK696/Monthly!GK684)-1","v":-0.18791827065442701},{"$f":"(Monthly!GL696/Monthly!GL684)-1","v":-3.7713104873428605E-2}]
["2016-03-01",null,null,null,{"$f":"(Monthly!E697/Monthly!E685)-1","v":2.2908473364318782E-2},{"$f":"(Monthly!F697/Monthly!F685)-1","v":3.4694013451421757E-2},{"$f":"(Monthly!G697/Monthly!G685)-1","v":2.3885874033875876E-2},{"$f":"(Monthly!H697/Monthly!H685)-1","v":2.0691547749725592E-2},null,null,null,null,null,null,null,null,null,null,null,null,null,null,null,{"$f":"(Monthly!X697-Monthly!X685)","v":-2.0999999999999943},{"$f":"(Monthly!Y697/Monthly!Y685)-1","v":0.10379800412255191},null,null,null,null,null,null,null,null,null,null,null,null,null,{"$f":"(Monthly!AM697/Monthly!AM685)-1","v":-2.4251364508039441E-2},{"$f":"(Monthly!AN697/Monthly!AN685)-1","v":1.1729879308024493E-3},{"$f":"(Monthly!AO697/Monthly!AO685)-1","v":1.6105265820934633E-2},{"$f":"((Monthly!AP697-Monthly!AP685)*100)","v":4.9999999999999822},{"$f":"Monthly!AQ697-Monthly!AQ685","v":-0.5},{"$f":"Monthly!AR697-Monthly!AR685","v":1.5},{"$f":"Monthly!AS697-Monthly!AS685","v":3.5},{"$f":"Monthly!AT697-Monthly!AT685","v":-1.8999999999999986},{"$f":"Monthly!AU697-Monthly!AU685","v":4.5},{"$f":"Monthly!AV697-Monthly!AV685","v":-3},{"$f":"Monthly!AW697-Monthly!AW685","v":-4.5},{"$f":"Monthly!AX697-Monthly!AX685","v":6.5},{"$f":"Monthly!AY697-Monthly!AY685","v":12.5},{"$f":"Monthly!AZ697-Monthly!AZ685","v":1.5},{"$f":"Monthly!BA697-Monthly!BA685","v":-0.29999999999999716},{"$f":"(Monthly!BB697/Monthly!BB685)-1","v":1.3559322033898313E-2},{"$f":"(Monthly!BC697/Monthly!BC685)-1","v":-6.0542861524306102E-2},null,null,null,null,null,null,null,null,null,{"$f":"(Monthly!BM697/Monthly!BM685)-1","v":2.0462434281191655E-2},{"$f":"(Monthly!BN697/Monthly!BN685)-1","v":1.4924076095152117E-2},null,null,null,null,null,{"$f":"(Monthly!BT697/Monthly!BT685)-1","v":7.7231958559996539E-2},null,null,null,{"$f":"(Monthly!BX697/Monthly!BX685)-1","v":0.15811088295687892},{"$f":"(Monthly!BY697/Monthly!BY685)-1","v":3.3364226135310426E-2},{"$f":"(Monthly!BZ697/Monthly!BZ685)-1","v":5.280045032367009E-2},{"$f":"(Monthly!CA697/Monthly!CA685)-1","v":-4.1440411546156075E-2},{"$f":"Monthly!CB697-Monthly!CB685","v":0.48054929985734685},{"$f":"Monthly!CC697-Monthly!CC685","v":0.20054929985734837},{"$f":"(Monthly!CD697/Monthly!CD685)-1","v":0.18536585365853653},{"$f":"(Monthly!CE697/Monthly!CE685)-1","v":0.10810810810810811},null,{"$f":"(Monthly!CG697/Monthly!CG685)-1","v":-2.4875621890547261E-2},{"$f":"(Monthly!CH697/Monthly!CH685)-1","v":2.6666666666666616E-2},null,{"$f":"(Monthly!CJ697/Monthly!CJ685)-1","v":0.10810810810810811},{"$f":"(Monthly!CK697/Monthly!CK685)-1","v":2.8019474805936362E-2},{"$f":"(Monthly!CL697/Monthly!CL685)-1","v":2.2539927872230914E-2},{"$f":"(Monthly!CM697/Monthly!CM685)-1","v":0.19871794871794868},{"$f":"(Monthly!CN697/Monthly!CN685)-1","v":2.2541666328081078E-2},{"$f":"(Monthly!CO697/Monthly!CO685)-1","v":7.4000413265833398E-2},{"$f":"(Monthly!CP697/Monthly!CP685)-1","v":3.0126756789623288E-2},null,{"$f":"(Monthly!CR697/Monthly!CR685)-1","v":2.9412314714160726E-2},null,null,null,null,null,null,null,{"$f":"(Monthly!CZ697/Monthly!CZ685)-1","v":8.8521075134857519E-3},{"$f":"(Monthly!DA697/Monthly!DA685)-1","v":2.1924305287333468E-2},null,null,null,null,null,null,{"$f":"((Monthly!DH697-Monthly!DH685)*60)","v":-6.0000000000000853},{"$f":"((Monthly!DI697-Monthly!DI685)*100)","v":29.999999999999716},{"$f":"((Monthly!DJ697-Monthly!DJ685)*100)","v":-109.99999999999997},{"$f":"((Monthly!DK697-Monthly!DK685)*100)","v":-40.000000000000036},{"$f":"Monthly!DL697-Monthly!DL685","v":36},null,null,null,{"$f":"Monthly!DP697-Monthly!DP685","v":2743},null,null,null,{"$f":"(Monthly!DT697/Monthly!DT685)-1","v":-7.6569678407350739E-2},{"$f":"Monthly!DU697-Monthly!DU685","v":-0.5},{"$f":"(Monthly!DV697/Monthly!DV685)-1","v":4.0796570322223502E-3},{"$f":"(Monthly!DW697/Monthly!DW685)-1","v":4.3021369631144335E-3},{"$f":"(Monthly!DX697/Monthly!DX685)-1","v":1.165405847474954E-2},{"$f":"(Monthly!DY697/Monthly!DY685)-1","v":3.2051282051282159E-2},{"$f":"(Monthly!DZ697/Monthly!DZ685)-1","v":5.2405267401236522E-3},{"$f":"(Monthly!EA697/Monthly!EA685)-1","v":9.2350933547480363E-3},{"$f":"(Monthly!EB697/Monthly!EB685)-1","v":-2.8443722064200871E-3},{"$f":"(Monthly!EC697/Monthly!EC685)-1","v":-1.2053672958835637E-2},null,null,null,null,null,null,null,null,null,null,null,null,null,{"$f":"(Monthly!EQ697/Monthly!EQ685)-1","v":-4.9086161879895562E-2},null,null,null,null,null,null,null,{"$f":"((Monthly!EY697-Monthly!EY685)*100)","v":25},{"$f":"((Monthly!EZ697-Monthly!EZ685)*100)","v":25},{"$f":"((Monthly!FA697-Monthly!FA685)*100)","v":17.999999999999972},{"$f":"((Monthly!FB697-Monthly!FB685)*100)","v":58.999999999999986},"--",{"$f":"((Monthly!FD697-Monthly!FD685)*100)","v":-8.0000000000000071},{"$f":"((Monthly!FE697-Monthly!FE685)*100)","v":26},{"$f":"((Monthly!FF697-Monthly!FF685)*100)","v":41},{"$f":"((Monthly!FG697-Monthly!FG685)*100)","v":24},{"$f":"((Monthly!FH697-Monthly!FH685)*100)","v":-14.000000000000012},{"$f":"((Monthly!FI697-Monthly!FI685)*100)","v":-15.000000000000014},null,null,null,null,null,null,{"$f":"(Monthly!FP697/Monthly!FP685)-1","v":4.8185132350610171E-2},{"$f":"(Monthly!FQ697/Monthly!FQ685)-1","v":4.2333215785592904E-2},{"$f":"(Monthly!FR697/Monthly!FR685)-1","v":0.15703363412633298},{"$f":"(Monthly!FS697/Monthly!FS685)-1","v":2.9115445050374111E-2},{"$f":"(Monthly!FT697/Monthly!FT685)-1","v":4.3631669831310838E-2},{"$f":"(Monthly!FU697/Monthly!FU685)-1","v":-3.6283671148702457E-3},{"$f":"(Monthly!FV697/Monthly!FV685)-1","v":-0.10058076605253663},{"$f":"(Monthly!FW697/Monthly!FW685)-1","v":-0.27453154289965642},{"$f":"(Monthly!FX697/Monthly!FX685)-1","v":-3.4780269477886594E-2},null,null,null,null,null,{"$f":"(Monthly!GD697/Monthly!GD685)-1","v":-0.21476369719782529},{"$f":"(Monthly!GE697/Monthly!GE685)-1","v":-0.31633565933082841},{"$f":"(Monthly!GF697/Monthly!GF685)-1","v":-0.18656716417910435},{"$f":"(Monthly!GG697/Monthly!GG685)-1","v":-0.27856403175698996},{"$f":"(Monthly!GH697/Monthly!GH685)-1","v":6.6049013747758512E-2},{"$f":"(Monthly!GI697/Monthly!GI685)-1","v":0.19390243902439019},{"$f":"(Monthly!GJ697/Monthly!GJ685)-1","v":-0.3418181818181818},{"$f":"(Monthly!GK697/Monthly!GK685)-1","v":-3.4012273142707938E-2},{"$f":"(Monthly!GL697/Monthly!GL685)-1","v":1.7678055413904437E-2}]
["2016-04-01",null,null,null,{"$f":"(Monthly!E698/Monthly!E686)-1","v":2.7176872874016711E-2},{"$f":"(Monthly!F698/Monthly!F686)-1","v":4.6061415220293833E-2},{"$f":"(Monthly!G698/Monthly!G686)-1","v":3.4297963558413747E-2},{"$f":"(Monthly!H698/Monthly!H686)-1","v":2.1833404013734903E-2},null,null,null,null,null,null,null,null,null,null,null,null,null,null,null,{"$f":"(Monthly!X698-Monthly!X686)","v":-1.5},{"$f":"(Monthly!Y698/Monthly!Y686)-1","v":0.1046519943982962},null,null,null,null,null,null,null,null,null,null,null,null,null,{"$f":"(Monthly!AM698/Monthly!AM686)-1","v":-1.712840523435355E-2},{"$f":"(Monthly!AN698/Monthly!AN686)-1","v":2.2897698927404342E-4},{"$f":"(Monthly!AO698/Monthly!AO686)-1","v":1.4895594168576221E-2},{"$f":"((Monthly!AP698-Monthly!AP686)*100)","v":4.9999999999999822},{"$f":"Monthly!AQ698-Monthly!AQ686","v":-0.80000000000000426},{"$f":"Monthly!AR698-Monthly!AR686","v":1},{"$f":"Monthly!AS698-Monthly!AS686","v":2},{"$f":"Monthly!AT698-Monthly!AT686","v":0.90000000000000568},{"$f":"Monthly!AU698-Monthly!AU686","v":1},{"$f":"Monthly!AV698-Monthly!AV686","v":-4},{"$f":"Monthly!AW698-Monthly!AW686","v":-4},{"$f":"Monthly!AX698-Monthly!AX686","v":2.2999999999999972},{"$f":"Monthly!AY698-Monthly!AY686","v":18.5},{"$f":"Monthly!AZ698-Monthly!AZ686","v":-1.7999999999999972},{"$f":"Monthly!BA698-Monthly!BA686","v":-1},{"$f":"(Monthly!BB698/Monthly!BB686)-1","v":-4.0783034257748763E-2},{"$f":"(Monthly!BC698/Monthly!BC686)-1","v":-5.1238642540964552E-2},null,null,null,null,null,null,null,null,null,{"$f":"(Monthly!BM698/Monthly!BM686)-1","v":2.7246637704298804E-2},{"$f":"(Monthly!BN698/Monthly!BN686)-1","v":2.3334459736216839E-2},null,null,null,null,null,{"$f":"(Monthly!BT698/Monthly!BT686)-1","v":7.505181291939822E-2},null,null,null,{"$f":"(Monthly!BX698/Monthly!BX686)-1","v":-3.0000000000000027E-2},{"$f":"(Monthly!BY698/Monthly!BY686)-1","v":-1.2733446519524572E-2},{"$f":"(Monthly!BZ698/Monthly!BZ686)-1","v":5.3166404671008305E-2},{"$f":"(Monthly!CA698/Monthly!CA686)-1","v":3.3435727788279745E-2},{"$f":"Monthly!CB698-Monthly!CB686","v":0.8602367123571435},{"$f":"Monthly!CC698-Monthly!CC686","v":0.58023671235714325},{"$f":"(Monthly!CD698/Monthly!CD686)-1","v":0.16990291262135915},{"$f":"(Monthly!CE698/Monthly!CE686)-1","v":0.1319999999999999},null,{"$f":"(Monthly!CG698/Monthly!CG686)-1","v":-4.5045045045045029E-2},{"$f":"(Monthly!CH698/Monthly!CH686)-1","v":6.6147859922178975E-2},null,{"$f":"(Monthly!CJ698/Monthly!CJ686)-1","v":0.1319999999999999},{"$f":"(Monthly!CK698/Monthly!CK686)-1","v":2.7199253963319903E-2},{"$f":"(Monthly!CL698/Monthly!CL686)-1","v":-8.4915800788247786E-2},{"$f":"(Monthly!CM698/Monthly!CM686)-1","v":2.9530201342281792E-2},{"$f":"(Monthly!CN698/Monthly!CN686)-1","v":1.8838811829998248E-2},{"$f":"(Monthly!CO698/Monthly!CO686)-1","v":7.3273596636285632E-2},{"$f":"(Monthly!CP698/Monthly!CP686)-1","v":2.9343015942933759E-2},null,{"$f":"(Monthly!CR698/Monthly!CR686)-1","v":2.5231941260156709E-2},null,null,null,null,null,null,null,{"$f":"(Monthly!CZ698/Monthly!CZ686)-1","v":1.1460578066985194E-2},{"$f":"(Monthly!DA698/Monthly!DA686)-1","v":2.1341033948443444E-2},null,null,null,null,null,null,{"$f":"((Monthly!DH698-Monthly!DH686)*60)","v":0},{"$f":"((Monthly!DI698-Monthly!DI686)*100)","v":0},{"$f":"((Monthly!DJ698-Monthly!DJ686)*100)","v":-110.00000000000014},{"$f":"((Monthly!DK698-Monthly!DK686)*100)","v":-40.000000000000036},{"$f":"Monthly!DL698-Monthly!DL686","v":35},null,null,null,{"$f":"Monthly!DP698-Monthly!DP686","v":2634},null,null,null,{"$f":"(Monthly!DT698/Monthly!DT686)-1","v":-7.7752117013087041E-2},{"$f":"Monthly!DU698-Monthly!DU686","v":-0.30000000000000071},{"$f":"(Monthly!DV698/Monthly!DV686)-1","v":4.2202850422028426E-3},{"$f":"(Monthly!DW698/Monthly!DW686)-1","v":4.0610558745273195E-3},{"$f":"(Monthly!DX698/Monthly!DX686)-1","v":1.2004069175991727E-2},{"$f":"(Monthly!DY698/Monthly!DY686)-1","v":2.7742749054224358E-2},{"$f":"(Monthly!DZ698/Monthly!DZ686)-1","v":6.9789290028183792E-3},{"$f":"(Monthly!EA698/Monthly!EA686)-1","v":1.2457303596544067E-2},{"$f":"(Monthly!EB698/Monthly!EB686)-1","v":-4.0420371867421201E-3},{"$f":"(Monthly!EC698/Monthly!EC686)-1","v":-1.3920071845532123E-2},null,null,null,null,null,null,null,null,null,null,null,null,null,{"$f":"(Monthly!EQ698/Monthly!EQ686)-1","v":-4.0335254059717163E-2},null,null,null,null,null,null,null,{"$f":"((Monthly!EY698-Monthly!EY686)*100)","v":25},{"$f":"((Monthly!EZ698-Monthly!EZ686)*100)","v":25},{"$f":"((Monthly!FA698-Monthly!FA686)*100)","v":10.000000000000009},{"$f":"((Monthly!FB698-Monthly!FB686)*100)","v":30.999999999999961},"--",{"$f":"((Monthly!FD698-Monthly!FD686)*100)","v":-6.0000000000000053},{"$f":"((Monthly!FE698-Monthly!FE686)*100)","v":21.000000000000004},{"$f":"((Monthly!FF698-Monthly!FF686)*100)","v":33.000000000000007},{"$f":"((Monthly!FG698-Monthly!FG686)*100)","v":23},{"$f":"((Monthly!FH698-Monthly!FH686)*100)","v":-9.0000000000000071},{"$f":"((Monthly!FI698-Monthly!FI686)*100)","v":-12.999999999999989},null,null,null,null,null,null,{"$f":"(Monthly!FP698/Monthly!FP686)-1","v":3.8988408851422518E-2},{"$f":"(Monthly!FQ698/Monthly!FQ686)-1","v":4.4250927269795293E-2},{"$f":"(Monthly!FR698/Monthly!FR686)-1","v":0.15039850470242144},{"$f":"(Monthly!FS698/Monthly!FS686)-1","v":4.8419885418591768E-2},{"$f":"(Monthly!FT698/Monthly!FT686)-1","v":3.7488652109513243E-2},{"$f":"(Monthly!FU698/Monthly!FU686)-1","v":-1.7535560144473994E-2},{"$f":"(Monthly!FV698/Monthly!FV686)-1","v":-0.10193478533134559},{"$f":"(Monthly!FW698/Monthly!FW686)-1","v":-8.7891917332262759E-2},{"$f":"(Monthly!FX698/Monthly!FX686)-1","v":1.5298294476987939E-2},null,null,null,null,null,{"$f":"(Monthly!GD698/Monthly!GD686)-1","v":-0.25160697887970618},{"$f":"(Monthly!GE698/Monthly!GE686)-1","v":-0.30141129032258074},{"$f":"(Monthly!GF698/Monthly!GF686)-1","v":-0.13268101761252449},{"$f":"(Monthly!GG698/Monthly!GG686)-1","v":-0.22645578720345072},{"$f":"(Monthly!GH698/Monthly!GH686)-1","v":1.5348971908485387E-2},{"$f":"(Monthly!GI698/Monthly!GI686)-1","v":3.6679536679536717E-2},{"$f":"(Monthly!GJ698/Monthly!GJ686)-1","v":-0.22393822393822393},{"$f":"(Monthly!GK698/Monthly!GK686)-1","v":-1.5879017013232799E-3},{"$f":"(Monthly!GL698/Monthly!GL686)-1","v":-3.8776958776958859E-2}]
["2016-05-01",null,null,null,{"$f":"(Monthly!E699/Monthly!E687)-1","v":2.5784932847104924E-2},{"$f":"(Monthly!F699/Monthly!F687)-1","v":3.6978445718805819E-2},{"$f":"(Monthly!G699/Monthly!G687)-1","v":3.2009508586417379E-2},{"$f":"(Monthly!H699/Monthly!H687)-1","v":2.1988828036438646E-2},null,null,null,null,null,null,null,null,null,null,null,null,null,null,null,{"$f":"(Monthly!X699-Monthly!X687)","v":-1.2000000000000028},{"$f":"(Monthly!Y699/Monthly!Y687)-1","v":0.10310020228523764},null,null,null,null,null,null,null,null,null,null,null,null,null,{"$f":"(Monthly!AM699/Monthly!AM687)-1","v":-1.4662801591418861E-2},{"$f":"(Monthly!AN699/Monthly!AN687)-1","v":-7.226321363580368E-4},{"$f":"(Monthly!AO699/Monthly!AO687)-1","v":1.6627252551655758E-2},{"$f":"((Monthly!AP699-Monthly!AP687)*100)","v":3.9999999999999813},{"$f":"Monthly!AQ699-Monthly!AQ687","v":-1.8000000000000043},{"$f":"Monthly!AR699-Monthly!AR687","v":-6.5},{"$f":"Monthly!AS699-Monthly!AS687","v":4.5},{"$f":"Monthly!AT699-Monthly!AT687","v":-2.5},{"$f":"Monthly!AU699-Monthly!AU687","v":2.5},{"$f":"Monthly!AV699-Monthly!AV687","v":-5},{"$f":"Monthly!AW699-Monthly!AW687","v":-6.5},{"$f":"Monthly!AX699-Monthly!AX687","v":-9.9999999999994316E-2},{"$f":"Monthly!AY699-Monthly!AY687","v":14},{"$f":"Monthly!AZ699-Monthly!AZ687","v":-1.8999999999999986},{"$f":"Monthly!BA699-Monthly!BA687","v":3.3999999999999986},{"$f":"(Monthly!BB699/Monthly!BB687)-1","v":-8.0133555926544142E-2},{"$f":"(Monthly!BC699/Monthly!BC687)-1","v":-6.1529055822921674E-2},null,null,null,null,null,null,null,null,null,{"$f":"(Monthly!BM699/Monthly!BM687)-1","v":2.1322702235130109E-2},{"$f":"(Monthly!BN699/Monthly!BN687)-1","v":1.650429334657999E-2},null,null,null,null,null,{"$f":"(Monthly!BT699/Monthly!BT687)-1","v":7.4978684823172159E-2},null,null,null,{"$f":"(Monthly!BX699/Monthly!BX687)-1","v":4.971857410881797E-2},{"$f":"(Monthly!BY699/Monthly!BY687)-1","v":-6.1354581673306763E-2},{"$f":"(Monthly!BZ699/Monthly!BZ687)-1","v":5.1832343382270496E-2},{"$f":"(Monthly!CA699/Monthly!CA687)-1","v":-2.6291982358927934E-2},{"$f":"Monthly!CB699-Monthly!CB687","v":0.21818359575387447},{"$f":"Monthly!CC699-Monthly!CC687","v":-0.34181640424612603},{"$f":"(Monthly!CD699/Monthly!CD687)-1","v":0.14761904761904754},{"$f":"(Monthly!CE699/Monthly!CE687)-1","v":0.11111111111111116},null,{"$f":"(Monthly!CG699/Monthly!CG687)-1","v":-6.1403508771929793E-2},{"$f":"(Monthly!CH699/Monthly!CH687)-1","v":3.402646502835549E-2},null,{"$f":"(Monthly!CJ699/Monthly!CJ687)-1","v":0.11111111111111116},{"$f":"(Monthly!CK699/Monthly!CK687)-1","v":2.4246872565494293E-2},{"$f":"(Monthly!CL699/Monthly!CL687)-1","v":-0.10496183206106868},{"$f":"(Monthly!CM699/Monthly!CM687)-1","v":5.1724137931034475E-2},{"$f":"(Monthly!CN699/Monthly!CN687)-1","v":1.6396873566179027E-2},{"$f":"(Monthly!CO699/Monthly!CO687)-1","v":6.9432253304329228E-2},{"$f":"(Monthly!CP699/Monthly!CP687)-1","v":2.9849948901796708E-2},null,{"$f":"(Monthly!CR699/Monthly!CR687)-1","v":2.7248176629588006E-2},null,null,null,null,null,null,null,{"$f":"(Monthly!CZ699/Monthly!CZ687)-1","v":1.0430957697844079E-2},{"$f":"(Monthly!DA699/Monthly!DA687)-1","v":2.2196290686992581E-2},null,null,null,null,null,null,{"$f":"((Monthly!DH699-Monthly!DH687)*60)","v":0},{"$f":"((Monthly!DI699-Monthly!DI687)*100)","v":-29.999999999999716},{"$f":"((Monthly!DJ699-Monthly!DJ687)*100)","v":-100},{"$f":"((Monthly!DK699-Monthly!DK687)*100)","v":-79.999999999999986},{"$f":"Monthly!DL699-Monthly!DL687","v":-2},null,null,null,{"$f":"Monthly!DP699-Monthly!DP687","v":2333},null,null,null,{"$f":"(Monthly!DT699/Monthly!DT687)-1","v":-7.0433436532507776E-2},{"$f":"Monthly!DU699-Monthly!DU687","v":-1},{"$f":"(Monthly!DV699/Monthly!DV687)-1","v":-1.7206965379585881E-3},{"$f":"(Monthly!DW699/Monthly!DW687)-1","v":-1.7229496898690799E-3},{"$f":"(Monthly!DX699/Monthly!DX687)-1","v":8.8924818108326864E-3},{"$f":"(Monthly!DY699/Monthly!DY687)-1","v":2.5073129962390306E-2},{"$f":"(Monthly!DZ699/Monthly!DZ687)-1","v":3.7318405970945268E-3},{"$f":"(Monthly!EA699/Monthly!EA687)-1","v":1.0583067092651888E-2},{"$f":"(Monthly!EB699/Monthly!EB687)-1","v":-1.0020040080160331E-2},{"$f":"(Monthly!EC699/Monthly!EC687)-1","v":-2.449068053749448E-2},null,null,null,null,null,null,null,null,null,null,null,null,null,{"$f":"(Monthly!EQ699/Monthly!EQ687)-1","v":-4.1882109617373264E-2},null,null,null,null,null,null,null,{"$f":"((Monthly!EY699-Monthly!EY687)*100)","v":25},{"$f":"((Monthly!EZ699-Monthly!EZ687)*100)","v":25},{"$f":"((Monthly!FA699-Monthly!FA687)*100)","v":-33.000000000000007},{"$f":"((Monthly!FB699-Monthly!FB687)*100)","v":-20.999999999999996},"--",{"$f":"((Monthly!FD699-Monthly!FD687)*100)","v":-23.999999999999979},{"$f":"((Monthly!FE699-Monthly!FE687)*100)","v":25},{"$f":"((Monthly!FF699-Monthly!FF687)*100)","v":35},{"$f":"((Monthly!FG699-Monthly!FG687)*100)","v":20.999999999999996},{"$f":"((Monthly!FH699-Monthly!FH687)*100)","v":-24},{"$f":"((Monthly!FI699-Monthly!FI687)*100)","v":-39.000000000000014},null,null,null,null,null,null,{"$f":"(Monthly!FP699/Monthly!FP687)-1","v":6.3157030223390143E-2},{"$f":"(Monthly!FQ699/Monthly!FQ687)-1","v":5.1970661723220735E-2},{"$f":"(Monthly!FR699/Monthly!FR687)-1","v":0.18694206654624468},{"$f":"(Monthly!FS699/Monthly!FS687)-1","v":1.2984687024267805E-2},{"$f":"(Monthly!FT699/Monthly!FT687)-1","v":5.655471403095147E-2},{"$f":"(Monthly!FU699/Monthly!FU687)-1","v":6.0854635635252396E-3},{"$f":"(Monthly!FV699/Monthly!FV687)-1","v":-5.1393882484730868E-2},{"$f":"(Monthly!FW699/Monthly!FW687)-1","v":-3.9455263474448499E-2},{"$f":"(Monthly!FX699/Monthly!FX687)-1","v":1.4455872621663701E-2},null,null,null,null,null,{"$f":"(Monthly!GD699/Monthly!GD687)-1","v":-0.21191159102412693},{"$f":"(Monthly!GE699/Monthly!GE687)-1","v":-0.27059925093632953},{"$f":"(Monthly!GF699/Monthly!GF687)-1","v":-0.15381870092790861},{"$f":"(Monthly!GG699/Monthly!GG687)-1","v":-0.19840720221606645},{"$f":"(Monthly!GH699/Monthly!GH687)-1","v":3.4716571738540924E-2},{"$f":"(Monthly!GI699/Monthly!GI687)-1","v":-2.833638025594154E-2},{"$f":"(Monthly!GJ699/Monthly!GJ687)-1","v":-0.27272727272727271},{"$f":"(Monthly!GK699/Monthly!GK687)-1","v":1.3808502145494339E-2},{"$f":"(Monthly!GL699/Monthly!GL687)-1","v":-5.0881269729919354E-2}]
["2016-06-01",null,null,null,{"$f":"(Monthly!E700/Monthly!E688)-1","v":2.9812636785822244E-2},{"$f":"(Monthly!F700/Monthly!F688)-1","v":5.6120752709621469E-2},{"$f":"(Monthly!G700/Monthly!G688)-1","v":3.5166816952209023E-2},{"$f":"(Monthly!H700/Monthly!H688)-1","v":2.3888782777156115E-2},null,null,null,null,null,null,null,null,null,null,null,null,null,null,null,{"$f":"(Monthly!X700-Monthly!X688)","v":-0.70000000000000284},{"$f":"(Monthly!Y700/Monthly!Y688)-1","v":9.5249556162597226E-2},null,null,null,null,null,null,null,null,null,null,null,null,null,{"$f":"(Monthly!AM700/Monthly!AM688)-1","v":-8.3448165111589256E-3},{"$f":"(Monthly!AN700/Monthly!AN688)-1","v":4.7502662672413987E-3},{"$f":"(Monthly!AO700/Monthly!AO688)-1","v":1.0620152454608123E-2},{"$f":"((Monthly!AP700-Monthly!AP688)*100)","v":2.0000000000000018},{"$f":"Monthly!AQ700-Monthly!AQ688","v":0.10000000000000142},{"$f":"Monthly!AR700-Monthly!AR688","v":5.5},{"$f":"Monthly!AS700-Monthly!AS688","v":2.5},{"$f":"Monthly!AT700-Monthly!AT688","v":-5.1000000000000014},{"$f":"Monthly!AU700-Monthly!AU688","v":4},{"$f":"Monthly!AV700-Monthly!AV688","v":-1.5},{"$f":"Monthly!AW700-Monthly!AW688","v":-4.5},{"$f":"Monthly!AX700-Monthly!AX688","v":1},{"$f":"Monthly!AY700-Monthly!AY688","v":11},{"$f":"Monthly!AZ700-Monthly!AZ688","v":0.70000000000000284},{"$f":"Monthly!BA700-Monthly!BA688","v":6.6000000000000014},{"$f":"(Monthly!BB700/Monthly!BB688)-1","v":-3.2520325203251987E-2},{"$f":"(Monthly!BC700/Monthly!BC688)-1","v":-6.2213060995034208E-2},null,null,null,null,null,null,null,null,null,{"$f":"(Monthly!BM700/Monthly!BM688)-1","v":3.210170357522224E-2},{"$f":"(Monthly!BN700/Monthly!BN688)-1","v":2.8177404839466069E-2},null,null,null,null,null,{"$f":"(Monthly!BT700/Monthly!BT688)-1","v":8.1138839896484072E-2},null,null,null,{"$f":"(Monthly!BX700/Monthly!BX688)-1","v":-9.1590341382181695E-3},{"$f":"(Monthly!BY700/Monthly!BY688)-1","v":-0.12472487160674983},{"$f":"(Monthly!BZ700/Monthly!BZ688)-1","v":5.1515829511131095E-2},{"$f":"(Monthly!CA700/Monthly!CA688)-1","v":-1.7064846416382173E-2},{"$f":"Monthly!CB700-Monthly!CB688","v":0.45602176168189157},{"$f":"Monthly!CC700-Monthly!CC688","v":0.17602176168189132},{"$f":"(Monthly!CD700/Monthly!CD688)-1","v":0.125},{"$f":"(Monthly!CE700/Monthly!CE688)-1","v":0.17436974789915971},null,{"$f":"(Monthly!CG700/Monthly!CG688)-1","v":-6.2222222222222179E-2},{"$f":"(Monthly!CH700/Monthly!CH688)-1","v":1.2939001848428777E-2},null,{"$f":"(Monthly!CJ700/Monthly!CJ688)-1","v":0.17436974789915971},{"$f":"(Monthly!CK700/Monthly!CK688)-1","v":2.4744942182614249E-2},{"$f":"(Monthly!CL700/Monthly!CL688)-1","v":-0.16153487287147195},{"$f":"(Monthly!CM700/Monthly!CM688)-1","v":0.10951008645533133},{"$f":"(Monthly!CN700/Monthly!CN688)-1","v":1.6252974085267935E-2},{"$f":"(Monthly!CO700/Monthly!CO688)-1","v":7.7089967900326073E-2},{"$f":"(Monthly!CP700/Monthly!CP688)-1","v":2.681581694100621E-2},null,{"$f":"(Monthly!CR700/Monthly!CR688)-1","v":2.9274950244175146E-2},null,null,null,null,null,null,null,{"$f":"(Monthly!CZ700/Monthly!CZ688)-1","v":1.0205585905087577E-2},{"$f":"(Monthly!DA700/Monthly!DA688)-1","v":2.2179893480317903E-2},null,null,null,null,null,null,{"$f":"((Monthly!DH700-Monthly!DH688)*60)","v":-6.0000000000000853},{"$f":"((Monthly!DI700-Monthly!DI688)*100)","v":10.000000000000142},{"$f":"((Monthly!DJ700-Monthly!DJ688)*100)","v":-90.000000000000028},{"$f":"((Monthly!DK700-Monthly!DK688)*100)","v":-39.999999999999943},{"$f":"Monthly!DL700-Monthly!DL688","v":9},null,null,null,{"$f":"Monthly!DP700-Monthly!DP688","v":2424},null,null,null,{"$f":"(Monthly!DT700/Monthly!DT688)-1","v":-3.7450199203187262E-2},{"$f":"Monthly!DU700-Monthly!DU688","v":-1.3000000000000007},{"$f":"(Monthly!DV700/Monthly!DV688)-1","v":-8.7785474247308315E-3},{"$f":"(Monthly!DW700/Monthly!DW688)-1","v":-7.7330077330077795E-3},{"$f":"(Monthly!DX700/Monthly!DX688)-1","v":1.5024038461537437E-3},{"$f":"(Monthly!DY700/Monthly!DY688)-1","v":1.9429516329061647E-2},{"$f":"(Monthly!DZ700/Monthly!DZ688)-1","v":-4.2300066093854394E-3},{"$f":"(Monthly!EA700/Monthly!EA688)-1","v":2.3771790808240212E-3},{"$f":"(Monthly!EB700/Monthly!EB688)-1","v":-1.7481128327373807E-2},{"$f":"(Monthly!EC700/Monthly!EC688)-1","v":-2.7112232030264916E-2},null,null,null,null,null,null,null,null,null,null,null,null,null,{"$f":"(Monthly!EQ700/Monthly!EQ688)-1","v":-3.6960985626283471E-2},null,null,null,null,null,null,null,{"$f":"((Monthly!EY700-Monthly!EY688)*100)","v":25},{"$f":"((Monthly!EZ700-Monthly!EZ688)*100)","v":25},{"$f":"((Monthly!FA700-Monthly!FA688)*100)","v":-69.000000000000043},{"$f":"((Monthly!FB700-Monthly!FB688)*100)","v":-59.999999999999964},"--",{"$f":"((Monthly!FD700-Monthly!FD688)*100)","v":-41.000000000000014},{"$f":"((Monthly!FE700-Monthly!FE688)*100)","v":25},{"$f":"((Monthly!FF700-Monthly!FF688)*100)","v":27},{"$f":"((Monthly!FG700-Monthly!FG688)*100)","v":4.0000000000000036},{"$f":"((Monthly!FH700-Monthly!FH688)*100)","v":-51},{"$f":"((Monthly!FI700-Monthly!FI688)*100)","v":-72},null,null,null,null,null,null,{"$f":"(Monthly!FP700/Monthly!FP688)-1","v":4.2782046097856963E-2},{"$f":"(Monthly!FQ700/Monthly!FQ688)-1","v":6.1883581512280017E-2},{"$f":"(Monthly!FR700/Monthly!FR688)-1","v":0.20508811824900519},{"$f":"(Monthly!FS700/Monthly!FS688)-1","v":5.3447354355951049E-4},{"$f":"(Monthly!FT700/Monthly!FT688)-1","v":5.2322389180022633E-2},{"$f":"(Monthly!FU700/Monthly!FU688)-1","v":-1.0668809356412234E-3},{"$f":"(Monthly!FV700/Monthly!FV688)-1","v":-0.11371067434222559},{"$f":"(Monthly!FW700/Monthly!FW688)-1","v":-6.9856870252027137E-2},{"$f":"(Monthly!FX700/Monthly!FX688)-1","v":-7.5269336503454909E-2},null,null,null,null,null,{"$f":"(Monthly!GD700/Monthly!GD688)-1","v":-0.18488799732530925},{"$f":"(Monthly!GE700/Monthly!GE688)-1","v":-0.21519193233571887},{"$f":"(Monthly!GF700/Monthly!GF688)-1","v":-0.14488734835355277},{"$f":"(Monthly!GG700/Monthly!GG688)-1","v":-0.15663069961712506},{"$f":"(Monthly!GH700/Monthly!GH688)-1","v":0.12864755138289774},{"$f":"(Monthly!GI700/Monthly!GI688)-1","v":0.34409687184661952},{"$f":"(Monthly!GJ700/Monthly!GJ688)-1","v":-5.0541516245487417E-2},{"$f":"(Monthly!GK700/Monthly!GK688)-1","v":-2.864583333333337E-2},{"$f":"(Monthly!GL700/Monthly!GL688)-1","v":5.3995680345564345E-4}]
["2016-07-01",null,null,null,{"$f":"(Monthly!E701/Monthly!E689)-1","v":2.8493111799093418E-2},{"$f":"(Monthly!F701/Monthly!F689)-1","v":6.3954638359596583E-2},{"$f":"(Monthly!G701/Monthly!G689)-1","v":2.4782945420454006E-2},{"$f":"(Monthly!H701/Monthly!H689)-1","v":2.3970455970129034E-2},null,null,null,null,null,null,null,null,null,null,null,null,null,null,null,{"$f":"(Monthly!X701-Monthly!X689)","v":-0.89999999999999147},{"$f":"(Monthly!Y701/Monthly!Y689)-1","v":9.3380548240042049E-2},null,null,null,null,null,null,null,null,null,null,null,null,null,{"$f":"(Monthly!AM701/Monthly!AM689)-1","v":-1.2416399559871838E-2},{"$f":"(Monthly!AN701/Monthly!AN689)-1","v":-4.8799360747819875E-4},{"$f":"(Monthly!AO701/Monthly!AO689)-1","v":9.52602926731827E-3},{"$f":"((Monthly!AP701-Monthly!AP689)*100)","v":2.0000000000000018},{"$f":"Monthly!AQ701-Monthly!AQ689","v":0.70000000000000284},{"$f":"Monthly!AR701-Monthly!AR689","v":5.5},{"$f":"Monthly!AS701-Monthly!AS689","v":7},{"$f":"Monthly!AT701-Monthly!AT689","v":-3.3000000000000043},{"$f":"Monthly!AU701-Monthly!AU689","v":4.5},{"$f":"Monthly!AV701-Monthly!AV689","v":0},{"$f":"Monthly!AW701-Monthly!AW689","v":0},{"$f":"Monthly!AX701-Monthly!AX689","v":0.39999999999999858},{"$f":"Monthly!AY701-Monthly!AY689","v":11},{"$f":"Monthly!AZ701-Monthly!AZ689","v":-0.60000000000000142},{"$f":"Monthly!BA701-Monthly!BA689","v":2.8999999999999986},{"$f":"(Monthly!BB701/Monthly!BB689)-1","v":-6.466876971608837E-2},{"$f":"(Monthly!BC701/Monthly!BC689)-1","v":-5.484953934358372E-2},null,null,null,null,null,null,null,null,null,{"$f":"(Monthly!BM701/Monthly!BM689)-1","v":2.3010527299550665E-2},{"$f":"(Monthly!BN701/Monthly!BN689)-1","v":1.9078377670821878E-2},null,null,null,null,null,{"$f":"(Monthly!BT701/Monthly!BT689)-1","v":8.5420360400556561E-2},null,null,null,{"$f":"(Monthly!BX701/Monthly!BX689)-1","v":7.2807017543859542E-2},{"$f":"(Monthly!BY701/Monthly!BY689)-1","v":3.6155202821869459E-2},{"$f":"(Monthly!BZ701/Monthly!BZ689)-1","v":5.1191871824931789E-2},{"$f":"(Monthly!CA701/Monthly!CA689)-1","v":1.4632752214918554E-2},{"$f":"Monthly!CB701-Monthly!CB689","v":0.35964599088210747},{"$f":"Monthly!CC701-Monthly!CC689","v":0.14964599088210839},{"$f":"(Monthly!CD701/Monthly!CD689)-1","v":9.7222222222222321E-2},{"$f":"(Monthly!CE701/Monthly!CE689)-1","v":0.25903614457831314},null,{"$f":"(Monthly!CG701/Monthly!CG689)-1","v":-6.6371681415929196E-2},{"$f":"(Monthly!CH701/Monthly!CH689)-1","v":-2.7372262773722622E-2},null,{"$f":"(Monthly!CJ701/Monthly!CJ689)-1","v":0.25903614457831314},{"$f":"(Monthly!CK701/Monthly!CK689)-1","v":2.7549305172391625E-2},{"$f":"(Monthly!CL701/Monthly!CL689)-1","v":-0.12518283764017546},{"$f":"(Monthly!CM701/Monthly!CM689)-1","v":1.1795543905635641E-2},{"$f":"(Monthly!CN701/Monthly!CN689)-1","v":1.8048074604067876E-2},{"$f":"(Monthly!CO701/Monthly!CO689)-1","v":8.0239052866491134E-2},{"$f":"(Monthly!CP701/Monthly!CP689)-1","v":2.6275611579526403E-2},null,{"$f":"(Monthly!CR701/Monthly!CR689)-1","v":2.8792210703363796E-2},null,null,null,null,null,null,null,{"$f":"(Monthly!CZ701/Monthly!CZ689)-1","v":8.5002270090299703E-3},{"$f":"(Monthly!DA701/Monthly!DA689)-1","v":2.1548168921148303E-2},null,null,null,null,null,null,{"$f":"((Monthly!DH701-Monthly!DH689)*60)","v":0},{"$f":"((Monthly!DI701-Monthly!DI689)*100)","v":19.999999999999574},{"$f":"((Monthly!DJ701-Monthly!DJ689)*100)","v":-60.000000000000142},{"$f":"((Monthly!DK701-Monthly!DK689)*100)","v":-29.999999999999982},{"$f":"Monthly!DL701-Monthly!DL689","v":7},null,null,null,{"$f":"Monthly!DP701-Monthly!DP689","v":2461},null,null,null,{"$f":"(Monthly!DT701/Monthly!DT689)-1","v":-3.2931726907630576E-2},{"$f":"Monthly!DU701-Monthly!DU689","v":0.19999999999999929},{"$f":"(Monthly!DV701/Monthly!DV689)-1","v":-7.5368276807126211E-3},{"$f":"(Monthly!DW701/Monthly!DW689)-1","v":-9.455626097528036E-3},{"$f":"(Monthly!DX701/Monthly!DX689)-1","v":-2.7902341803686115E-3},{"$f":"(Monthly!DY701/Monthly!DY689)-1","v":2.4400162667750358E-3},{"$f":"(Monthly!DZ701/Monthly!DZ689)-1","v":-4.4878563885955014E-3},{"$f":"(Monthly!EA701/Monthly!EA689)-1","v":-1.3828526274199948E-3},{"$f":"(Monthly!EB701/Monthly!EB689)-1","v":-1.0739856801909364E-2},{"$f":"(Monthly!EC701/Monthly!EC689)-1","v":-2.3475162439740238E-2},null,null,null,null,null,null,null,null,null,null,null,null,null,{"$f":"(Monthly!EQ701/Monthly!EQ689)-1","v":-3.1975244971634953E-2},null,null,null,null,null,null,null,{"$f":"((Monthly!EY701-Monthly!EY689)*100)","v":25},{"$f":"((Monthly!EZ701-Monthly!EZ689)*100)","v":26},{"$f":"((Monthly!FA701-Monthly!FA689)*100)","v":-87.000000000000057},{"$f":"((Monthly!FB701-Monthly!FB689)*100)","v":-98.000000000000043},"--",{"$f":"((Monthly!FD701-Monthly!FD689)*100)","v":-60.999999999999986},{"$f":"((Monthly!FE701-Monthly!FE689)*100)","v":27},{"$f":"((Monthly!FF701-Monthly!FF689)*100)","v":21.000000000000004},{"$f":"((Monthly!FG701-Monthly!FG689)*100)","v":0},{"$f":"((Monthly!FH701-Monthly!FH689)*100)","v":-55.999999999999986},{"$f":"((Monthly!FI701-Monthly!FI689)*100)","v":-81.999999999999986},null,null,null,null,null,null,{"$f":"(Monthly!FP701/Monthly!FP689)-1","v":1.4693306382647764E-2},{"$f":"(Monthly!FQ701/Monthly!FQ689)-1","v":7.5477168398163874E-2},{"$f":"(Monthly!FR701/Monthly!FR689)-1","v":0.16700623765790068},{"$f":"(Monthly!FS701/Monthly!FS689)-1","v":5.2741656815495919E-3},{"$f":"(Monthly!FT701/Monthly!FT689)-1","v":4.1573618062772821E-2},{"$f":"(Monthly!FU701/Monthly!FU689)-1","v":-7.1595135244357788E-3},{"$f":"(Monthly!FV701/Monthly!FV689)-1","v":-0.1240311018825464},{"$f":"(Monthly!FW701/Monthly!FW689)-1","v":-4.2458919333391409E-2},{"$f":"(Monthly!FX701/Monthly!FX689)-1","v":-7.1117889623227737E-2},null,null,null,null,null,{"$f":"(Monthly!GD701/Monthly!GD689)-1","v":-0.1228070175438597},{"$f":"(Monthly!GE701/Monthly!GE689)-1","v":-0.20526874115983029},{"$f":"(Monthly!GF701/Monthly!GF689)-1","v":-0.18576388888888884},{"$f":"(Monthly!GG701/Monthly!GG689)-1","v":-0.13737446197991388},{"$f":"(Monthly!GH701/Monthly!GH689)-1","v":0.12686038270729982},{"$f":"(Monthly!GI701/Monthly!GI689)-1","v":0.16996402877697836},{"$f":"(Monthly!GJ701/Monthly!GJ689)-1","v":-1.7793594306049876E-2},{"$f":"(Monthly!GK701/Monthly!GK689)-1","v":-8.0874082802205871E-3},{"$f":"(Monthly!GL701/Monthly!GL689)-1","v":-5.008347245408884E-3}]
["2016-08-01",null,null,null,{"$f":"(Monthly!E702/Monthly!E690)-1","v":2.6611932903956248E-2},{"$f":"(Monthly!F702/Monthly!F690)-1","v":4.6249590566655785E-2},{"$f":"(Monthly!G702/Monthly!G690)-1","v":2.4491456468673567E-2},{"$f":"(Monthly!H702/Monthly!H690)-1","v":2.4077875817437588E-2},null,null,null,null,null,null,null,null,null,null,null,null,null,null,null,{"$f":"(Monthly!X702-Monthly!X690)","v":-1},{"$f":"(Monthly!Y702/Monthly!Y690)-1","v":8.4206986124314653E-2},null,null,null,null,null,null,null,null,null,null,null,null,null,{"$f":"(Monthly!AM702/Monthly!AM690)-1","v":-1.304384020147531E-2},{"$f":"(Monthly!AN702/Monthly!AN690)-1","v":-3.6429022241541986E-3},{"$f":"(Monthly!AO702/Monthly!AO690)-1","v":1.1271398431202506E-2},{"$f":"((Monthly!AP702-Monthly!AP690)*100)","v":1.0000000000000009},{"$f":"Monthly!AQ702-Monthly!AQ690","v":-1.6000000000000014},{"$f":"Monthly!AR702-Monthly!AR690","v":-1},{"$f":"Monthly!AS702-Monthly!AS690","v":-3.5},{"$f":"Monthly!AT702-Monthly!AT690","v":-2.9000000000000057},{"$f":"Monthly!AU702-Monthly!AU690","v":6},{"$f":"Monthly!AV702-Monthly!AV690","v":-4.5},{"$f":"Monthly!AW702-Monthly!AW690","v":0.5},{"$f":"Monthly!AX702-Monthly!AX690","v":-2.6000000000000014},{"$f":"Monthly!AY702-Monthly!AY690","v":14},{"$f":"Monthly!AZ702-Monthly!AZ690","v":-4},{"$f":"Monthly!BA702-Monthly!BA690","v":0.19999999999999574},{"$f":"(Monthly!BB702/Monthly!BB690)-1","v":-0.1685393258426966},{"$f":"(Monthly!BC702/Monthly!BC690)-1","v":-3.0299739357080746E-2},null,null,null,null,null,null,null,null,null,{"$f":"(Monthly!BM702/Monthly!BM690)-1","v":2.3590277407071314E-2},{"$f":"(Monthly!BN702/Monthly!BN690)-1","v":1.9385846318073829E-2},null,null,null,null,null,{"$f":"(Monthly!BT702/Monthly!BT690)-1","v":8.5126069180391228E-2},null,null,null,{"$f":"(Monthly!BX702/Monthly!BX690)-1","v":2.6455026455026509E-2},{"$f":"(Monthly!BY702/Monthly!BY690)-1","v":3.5375323554788674E-2},{"$f":"(Monthly!BZ702/Monthly!BZ690)-1","v":5.1177586784239226E-2},{"$f":"(Monthly!CA702/Monthly!CA690)-1","v":-3.5364342831399886E-2},{"$f":"Monthly!CB702-Monthly!CB690","v":0.650129606628159},{"$f":"Monthly!CC702-Monthly!CC690","v":0.51012960662815843},{"$f":"(Monthly!CD702/Monthly!CD690)-1","v":0.11059907834101379},{"$f":"(Monthly!CE702/Monthly!CE690)-1","v":0.10526315789473695},null,{"$f":"(Monthly!CG702/Monthly!CG690)-1","v":-0.11453744493392071},{"$f":"(Monthly!CH702/Monthly!CH690)-1","v":9.4517958412099201E-3},null,{"$f":"(Monthly!CJ702/Monthly!CJ690)-1","v":0.10526315789473695},{"$f":"(Monthly!CK702/Monthly!CK690)-1","v":2.5508604194264706E-2},{"$f":"(Monthly!CL702/Monthly!CL690)-1","v":-0.16158054711246195},{"$f":"(Monthly!CM702/Monthly!CM690)-1","v":-1.3568521031207648E-2},{"$f":"(Monthly!CN702/Monthly!CN690)-1","v":1.4097608699138675E-2},{"$f":"(Monthly!CO702/Monthly!CO690)-1","v":7.5613326160659522E-2},{"$f":"(Monthly!CP702/Monthly!CP690)-1","v":2.9358931575884872E-2},null,{"$f":"(Monthly!CR702/Monthly!CR690)-1","v":3.1508834064474467E-2},null,null,null,null,null,null,null,{"$f":"(Monthly!CZ702/Monthly!CZ690)-1","v":1.0840541438369211E-2},{"$f":"(Monthly!DA702/Monthly!DA690)-1","v":2.3056262718637033E-2},null,null,null,null,null,null,{"$f":"((Monthly!DH702-Monthly!DH690)*60)","v":-6.0000000000000853},{"$f":"((Monthly!DI702-Monthly!DI690)*100)","v":19.999999999999574},{"$f":"((Monthly!DJ702-Monthly!DJ690)*100)","v":-50},{"$f":"((Monthly!DK702-Monthly!DK690)*100)","v":-19.999999999999929},{"$f":"Monthly!DL702-Monthly!DL690","v":-5},null,null,null,{"$f":"Monthly!DP702-Monthly!DP690","v":2480},null,null,null,{"$f":"(Monthly!DT702/Monthly!DT690)-1","v":-4.123711340206182E-2},{"$f":"Monthly!DU702-Monthly!DU690","v":-1},{"$f":"(Monthly!DV702/Monthly!DV690)-1","v":-5.3468604332327363E-3},{"$f":"(Monthly!DW702/Monthly!DW690)-1","v":-5.3400027037988629E-3},{"$f":"(Monthly!DX702/Monthly!DX690)-1","v":-2.4826216484608032E-3},{"$f":"(Monthly!DY702/Monthly!DY690)-1","v":4.0633888663144102E-3},{"$f":"(Monthly!DZ702/Monthly!DZ690)-1","v":-4.5998160073597028E-3},{"$f":"(Monthly!EA702/Monthly!EA690)-1","v":-3.3392260852486144E-3},{"$f":"(Monthly!EB702/Monthly!EB690)-1","v":-5.4896968732596196E-3},{"$f":"(Monthly!EC702/Monthly!EC690)-1","v":-1.1430990685859399E-2},null,null,null,null,null,null,null,null,null,null,null,null,null,{"$f":"(Monthly!EQ702/Monthly!EQ690)-1","v":-2.7618551328817187E-2},null,null,null,null,null,null,null,{"$f":"((Monthly!EY702-Monthly!EY690)*100)","v":25},{"$f":"((Monthly!EZ702-Monthly!EZ690)*100)","v":26},{"$f":"((Monthly!FA702-Monthly!FA690)*100)","v":-72.000000000000014},{"$f":"((Monthly!FB702-Monthly!FB690)*100)","v":-95.000000000000014},"--",{"$f":"((Monthly!FD702-Monthly!FD690)*100)","v":-47.000000000000021},{"$f":"((Monthly!FE702-Monthly!FE690)*100)","v":23},{"$f":"((Monthly!FF702-Monthly!FF690)*100)","v":18.999999999999993},{"$f":"((Monthly!FG702-Monthly!FG690)*100)","v":4.0000000000000036},{"$f":"((Monthly!FH702-Monthly!FH690)*100)","v":-41.000000000000014},{"$f":"((Monthly!FI702-Monthly!FI690)*100)","v":-60.999999999999986},null,null,null,null,null,null,{"$f":"(Monthly!FP702/Monthly!FP690)-1","v":-1.1333384041986694E-2},{"$f":"(Monthly!FQ702/Monthly!FQ690)-1","v":4.8640802738904698E-2},{"$f":"(Monthly!FR702/Monthly!FR690)-1","v":0.11734607475505032},{"$f":"(Monthly!FS702/Monthly!FS690)-1","v":6.3757183908046411E-3},{"$f":"(Monthly!FT702/Monthly!FT690)-1","v":1.310996593823277E-2},{"$f":"(Monthly!FU702/Monthly!FU690)-1","v":-2.0474712421870711E-2},{"$f":"(Monthly!FV702/Monthly!FV690)-1","v":-2.5025690624433272E-2},{"$f":"(Monthly!FW702/Monthly!FW690)-1","v":-2.0556216369300495E-2},{"$f":"(Monthly!FX702/Monthly!FX690)-1","v":3.5134182935866676E-2},null,null,null,null,null,{"$f":"(Monthly!GD702/Monthly!GD690)-1","v":4.3153720550501484E-2},{"$f":"(Monthly!GE702/Monthly!GE690)-1","v":-1.4617368873602765E-2},{"$f":"(Monthly!GF702/Monthly!GF690)-1","v":-0.16214233308877479},{"$f":"(Monthly!GG702/Monthly!GG690)-1","v":-9.4026974951830544E-2},{"$f":"(Monthly!GH702/Monthly!GH690)-1","v":0.15538724651844604},{"$f":"(Monthly!GI702/Monthly!GI690)-1","v":0.15290178571428581},{"$f":"(Monthly!GJ702/Monthly!GJ690)-1","v":-1.0909090909090868E-2},{"$f":"(Monthly!GK702/Monthly!GK690)-1","v":1.6957167950276908E-2},{"$f":"(Monthly!GL702/Monthly!GL690)-1","v":-8.8300220750552327E-3}]
["2016-09-01",null,null,null,{"$f":"(Monthly!E703/Monthly!E691)-1","v":2.8110005644933489E-2},{"$f":"(Monthly!F703/Monthly!F691)-1","v":6.105524356797698E-2},{"$f":"(Monthly!G703/Monthly!G691)-1","v":2.2258260693290177E-2},{"$f":"(Monthly!H703/Monthly!H691)-1","v":2.4645834745475437E-2},null,null,null,null,null,null,null,null,null,null,null,null,null,null,null,{"$f":"(Monthly!X703-Monthly!X691)","v":-0.90000000000000568},{"$f":"(Monthly!Y703/Monthly!Y691)-1","v":8.8800282250745877E-2},null,null,null,null,null,null,null,null,null,null,null,null,null,{"$f":"(Monthly!AM703/Monthly!AM691)-1","v":-1.1650246919977958E-2},{"$f":"(Monthly!AN703/Monthly!AN691)-1","v":1.2342850457494059E-3},{"$f":"(Monthly!AO703/Monthly!AO691)-1","v":1.005227492739591E-2},{"$f":"((Monthly!AP703-Monthly!AP691)*100)","v":1.0000000000000009},{"$f":"Monthly!AQ703-Monthly!AQ691","v":1.5},{"$f":"Monthly!AR703-Monthly!AR691","v":8},{"$f":"Monthly!AS703-Monthly!AS691","v":-1.5},{"$f":"Monthly!AT703-Monthly!AT691","v":-0.79999999999999716},{"$f":"Monthly!AU703-Monthly!AU691","v":5.5},{"$f":"Monthly!AV703-Monthly!AV691","v":-1.5},{"$f":"Monthly!AW703-Monthly!AW691","v":1},{"$f":"Monthly!AX703-Monthly!AX691","v":5},{"$f":"Monthly!AY703-Monthly!AY691","v":15},{"$f":"Monthly!AZ703-Monthly!AZ691","v":1},{"$f":"Monthly!BA703-Monthly!BA691","v":9.9999999999994316E-2},{"$f":"(Monthly!BB703/Monthly!BB691)-1","v":3.3277870216306127E-3},{"$f":"(Monthly!BC703/Monthly!BC691)-1","v":-5.5130026561245327E-2},null,null,null,null,null,null,null,null,null,{"$f":"(Monthly!BM703/Monthly!BM691)-1","v":3.0721074269848936E-2},{"$f":"(Monthly!BN703/Monthly!BN691)-1","v":2.6843254432952213E-2},null,null,null,null,null,{"$f":"(Monthly!BT703/Monthly!BT691)-1","v":8.1473215279196598E-2},null,null,null,{"$f":"(Monthly!BX703/Monthly!BX691)-1","v":-0.12158808933002485},{"$f":"(Monthly!BY703/Monthly!BY691)-1","v":0.12888888888888883},{"$f":"(Monthly!BZ703/Monthly!BZ691)-1","v":5.0577392849211478E-2},{"$f":"(Monthly!CA703/Monthly!CA691)-1","v":-1.791675940351678E-2},{"$f":"Monthly!CB703-Monthly!CB691","v":1.3983128097421309},{"$f":"Monthly!CC703-Monthly!CC691","v":1.3283128097421297},{"$f":"(Monthly!CD703/Monthly!CD691)-1","v":8.5201793721973118E-2},{"$f":"(Monthly!CE703/Monthly!CE691)-1","v":0.2364425162689805},null,{"$f":"(Monthly!CG703/Monthly!CG691)-1","v":-7.3059360730593603E-2},{"$f":"(Monthly!CH703/Monthly!CH691)-1","v":5.5147058823530326E-3},null,{"$f":"(Monthly!CJ703/Monthly!CJ691)-1","v":0.2364425162689805},{"$f":"(Monthly!CK703/Monthly!CK691)-1","v":2.4227682760998182E-2},{"$f":"(Monthly!CL703/Monthly!CL691)-1","v":-0.23994654355485356},{"$f":"(Monthly!CM703/Monthly!CM691)-1","v":5.2419354838709742E-2},{"$f":"(Monthly!CN703/Monthly!CN691)-1","v":1.0805233860131658E-2},{"$f":"(Monthly!CO703/Monthly!CO691)-1","v":7.8278810778562136E-2},{"$f":"(Monthly!CP703/Monthly!CP691)-1","v":2.636796314861356E-2},null,{"$f":"(Monthly!CR703/Monthly!CR691)-1","v":2.8855468536443052E-2},null,null,null,null,null,null,null,{"$f":"(Monthly!CZ703/Monthly!CZ691)-1","v":1.4903123381353911E-2},{"$f":"(Monthly!DA703/Monthly!DA691)-1","v":2.2187141570982893E-2},null,null,null,null,null,null,{"$f":"((Monthly!DH703-Monthly!DH691)*60)","v":-6.0000000000000853},{"$f":"((Monthly!DI703-Monthly!DI691)*100)","v":50},{"$f":"((Monthly!DJ703-Monthly!DJ691)*100)","v":-30.000000000000071},{"$f":"((Monthly!DK703-Monthly!DK691)*100)","v":-9.9999999999999645},{"$f":"Monthly!DL703-Monthly!DL691","v":-16},null,null,null,{"$f":"Monthly!DP703-Monthly!DP691","v":2629},null,null,null,{"$f":"(Monthly!DT703/Monthly!DT691)-1","v":-3.1175059952038398E-2},{"$f":"Monthly!DU703-Monthly!DU691","v":-1.0999999999999996},{"$f":"(Monthly!DV703/Monthly!DV691)-1","v":-1.6474464579899761E-3},{"$f":"(Monthly!DW703/Monthly!DW691)-1","v":-3.7293192297260802E-3},{"$f":"(Monthly!DX703/Monthly!DX691)-1","v":8.9276857454612113E-4},{"$f":"(Monthly!DY703/Monthly!DY691)-1","v":-3.637833468067897E-3},{"$f":"(Monthly!DZ703/Monthly!DZ691)-1","v":2.3662416195608937E-3},{"$f":"(Monthly!EA703/Monthly!EA691)-1","v":7.6741440377805503E-3},{"$f":"(Monthly!EB703/Monthly!EB691)-1","v":-8.3168316831683242E-3},{"$f":"(Monthly!EC703/Monthly!EC691)-1","v":-1.3713306192414731E-2},null,null,null,null,null,null,null,null,null,null,null,null,null,{"$f":"(Monthly!EQ703/Monthly!EQ691)-1","v":-1.1634056054997344E-2},null,null,null,null,null,null,null,{"$f":"((Monthly!EY703-Monthly!EY691)*100)","v":25},{"$f":"((Monthly!EZ703-Monthly!EZ691)*100)","v":26},{"$f":"((Monthly!FA703-Monthly!FA691)*100)","v":-66.000000000000014},{"$f":"((Monthly!FB703-Monthly!FB691)*100)","v":-103.00000000000003},"--",{"$f":"((Monthly!FD703-Monthly!FD691)*100)","v":-43.000000000000014},{"$f":"((Monthly!FE703-Monthly!FE691)*100)","v":26.999999999999996},{"$f":"((Monthly!FF703-Monthly!FF691)*100)","v":21.999999999999996},{"$f":"((Monthly!FG703-Monthly!FG691)*100)","v":6.0000000000000053},{"$f":"((Monthly!FH703-Monthly!FH691)*100)","v":-31.000000000000007},{"$f":"((Monthly!FI703-Monthly!FI691)*100)","v":-54},null,null,null,null,null,null,{"$f":"(Monthly!FP703/Monthly!FP691)-1","v":-1.1910146238504504E-2},{"$f":"(Monthly!FQ703/Monthly!FQ691)-1","v":4.7521829260631865E-2},{"$f":"(Monthly!FR703/Monthly!FR691)-1","v":0.1428198138811192},{"$f":"(Monthly!FS703/Monthly!FS691)-1","v":-9.7960637634708636E-4},{"$f":"(Monthly!FT703/Monthly!FT691)-1","v":1.3181486513582863E-2},{"$f":"(Monthly!FU703/Monthly!FU691)-1","v":-1.5538527265356872E-2},{"$f":"(Monthly!FV703/Monthly!FV691)-1","v":-6.0755258693305114E-2},{"$f":"(Monthly!FW703/Monthly!FW691)-1","v":-8.0603525597553349E-2},{"$f":"(Monthly!FX703/Monthly!FX691)-1","v":-7.7333628088015471E-3},null,null,null,null,null,{"$f":"(Monthly!GD703/Monthly!GD691)-1","v":-6.5963060686015096E-3},{"$f":"(Monthly!GE703/Monthly!GE691)-1","v":-2.2049559008819775E-2},{"$f":"(Monthly!GF703/Monthly!GF691)-1","v":-5.4833468724614254E-2},{"$f":"(Monthly!GG703/Monthly!GG691)-1","v":-4.4311377245508932E-2},{"$f":"(Monthly!GH703/Monthly!GH691)-1","v":0.15337423312883436},{"$f":"(Monthly!GI703/Monthly!GI691)-1","v":-3.9033457249070591E-2},{"$f":"(Monthly!GJ703/Monthly!GJ691)-1","v":9.8484848484848397E-2},{"$f":"(Monthly!GK703/Monthly!GK691)-1","v":-4.6090806952613805E-2},{"$f":"(Monthly!GL703/Monthly!GL691)-1","v":3.9997808339269358E-3}]
["2016-10-01",null,null,null,{"$f":"(Monthly!E704/Monthly!E692)-1","v":2.8288667788813227E-2},{"$f":"(Monthly!F704/Monthly!F692)-1","v":7.6756543987404058E-2},{"$f":"(Monthly!G704/Monthly!G692)-1","v":2.576188541243396E-2},{"$f":"(Monthly!H704/Monthly!H692)-1","v":2.1361165941108151E-2},null,null,null,null,null,null,null,null,null,null,null,null,null,null,null,{"$f":"(Monthly!X704-Monthly!X692)","v":-0.70000000000000284},{"$f":"(Monthly!Y704/Monthly!Y692)-1","v":8.8455795366370937E-2},null,null,null,null,null,null,null,null,null,null,null,null,null,{"$f":"(Monthly!AM704/Monthly!AM692)-1","v":-7.9833084145396471E-3},{"$f":"(Monthly!AN704/Monthly!AN692)-1","v":1.7073600456334326E-3},{"$f":"(Monthly!AO704/Monthly!AO692)-1","v":7.8969565612041492E-3},{"$f":"((Monthly!AP704-Monthly!AP692)*100)","v":-2.0000000000000018},{"$f":"Monthly!AQ704-Monthly!AQ692","v":2.5},{"$f":"Monthly!AR704-Monthly!AR692","v":3},{"$f":"Monthly!AS704-Monthly!AS692","v":-1.5},{"$f":"Monthly!AT704-Monthly!AT692","v":5.2999999999999972},{"$f":"Monthly!AU704-Monthly!AU692","v":5},{"$f":"Monthly!AV704-Monthly!AV692","v":5},{"$f":"Monthly!AW704-Monthly!AW692","v":1},{"$f":"Monthly!AX704-Monthly!AX692","v":-0.79999999999999716},{"$f":"Monthly!AY704-Monthly!AY692","v":15.5},{"$f":"Monthly!AZ704-Monthly!AZ692","v":1.7000000000000028},{"$f":"Monthly!BA704-Monthly!BA692","v":1.8000000000000043},{"$f":"(Monthly!BB704/Monthly!BB692)-1","v":-6.6343042071197345E-2},{"$f":"(Monthly!BC704/Monthly!BC692)-1","v":-5.343440594059401E-2},null,null,null,null,null,null,null,null,null,{"$f":"(Monthly!BM704/Monthly!BM692)-1","v":3.9626317385024201E-2},{"$f":"(Monthly!BN704/Monthly!BN692)-1","v":3.8372830318325279E-2},null,null,null,null,null,{"$f":"(Monthly!BT704/Monthly!BT692)-1","v":7.9083116380383567E-2},null,null,null,{"$f":"(Monthly!BX704/Monthly!BX692)-1","v":0.25401322001888582},{"$f":"(Monthly!BY704/Monthly!BY692)-1","v":0.10205831903945106},{"$f":"(Monthly!BZ704/Monthly!BZ692)-1","v":5.057787561915239E-2},{"$f":"(Monthly!CA704/Monthly!CA692)-1","v":-5.9739824688740395E-3},{"$f":"Monthly!CB704-Monthly!CB692","v":1.3205118778133684},{"$f":"Monthly!CC704-Monthly!CC692","v":1.1805118778133696},{"$f":"(Monthly!CD704/Monthly!CD692)-1","v":0.10222222222222221},{"$f":"(Monthly!CE704/Monthly!CE692)-1","v":0.19709543568464727},null,{"$f":"(Monthly!CG704/Monthly!CG692)-1","v":-4.7393364928909998E-2},{"$f":"(Monthly!CH704/Monthly!CH692)-1","v":4.5368620037807172E-2},null,{"$f":"(Monthly!CJ704/Monthly!CJ692)-1","v":0.19709543568464727},{"$f":"(Monthly!CK704/Monthly!CK692)-1","v":1.8010754394763628E-2},{"$f":"(Monthly!CL704/Monthly!CL692)-1","v":-0.33617021276595738},{"$f":"(Monthly!CM704/Monthly!CM692)-1","v":0.23721590909090917},{"$f":"(Monthly!CN704/Monthly!CN692)-1","v":4.5715195922269025E-3},{"$f":"(Monthly!CO704/Monthly!CO692)-1","v":7.6600002470569306E-2},{"$f":"(Monthly!CP704/Monthly!CP692)-1","v":2.7612223169333427E-2},null,{"$f":"(Monthly!CR704/Monthly!CR692)-1","v":2.9332670750058742E-2},null,null,null,null,null,null,null,{"$f":"(Monthly!CZ704/Monthly!CZ692)-1","v":1.6409298883057311E-2},{"$f":"(Monthly!DA704/Monthly!DA692)-1","v":2.1713530746474419E-2},null,null,null,null,null,null,{"$f":"((Monthly!DH704-Monthly!DH692)*60)","v":-6.0000000000000853},{"$f":"((Monthly!DI704-Monthly!DI692)*100)","v":29.999999999999716},{"$f":"((Monthly!DJ704-Monthly!DJ692)*100)","v":-30.000000000000071},{"$f":"((Monthly!DK704-Monthly!DK692)*100)","v":-20.000000000000018},{"$f":"Monthly!DL704-Monthly!DL692","v":-28},null,null,null,{"$f":"Monthly!DP704-Monthly!DP692","v":2432},null,null,null,{"$f":"(Monthly!DT704/Monthly!DT692)-1","v":-4.758128469468681E-2},{"$f":"Monthly!DU704-Monthly!DU692","v":-1.2000000000000011},{"$f":"(Monthly!DV704/Monthly!DV692)-1","v":6.1315880124011013E-3},{"$f":"(Monthly!DW704/Monthly!DW692)-1","v":6.2670299727520806E-3},{"$f":"(Monthly!DX704/Monthly!DX692)-1","v":9.9393698439518285E-3},{"$f":"(Monthly!DY704/Monthly!DY692)-1","v":9.7999183340138352E-3},{"$f":"(Monthly!DZ704/Monthly!DZ692)-1","v":9.984235417761278E-3},{"$f":"(Monthly!EA704/Monthly!EA692)-1","v":1.7085624509033837E-2},{"$f":"(Monthly!EB704/Monthly!EB692)-1","v":-4.3650793650793496E-3},{"$f":"(Monthly!EC704/Monthly!EC692)-1","v":-1.7319766183155894E-3},null,null,null,null,null,null,null,null,null,null,null,null,null,{"$f":"(Monthly!EQ704/Monthly!EQ692)-1","v":-4.2666666666667519E-3},null,null,null,null,null,null,null,{"$f":"((Monthly!EY704-Monthly!EY692)*100)","v":25},{"$f":"((Monthly!EZ704-Monthly!EZ692)*100)","v":28.000000000000004},{"$f":"((Monthly!FA704-Monthly!FA692)*100)","v":-44.000000000000043},{"$f":"((Monthly!FB704-Monthly!FB692)*100)","v":-96},"--",{"$f":"((Monthly!FD704-Monthly!FD692)*100)","v":-32.999999999999964},{"$f":"((Monthly!FE704-Monthly!FE692)*100)","v":31},{"$f":"((Monthly!FF704-Monthly!FF692)*100)","v":40},{"$f":"((Monthly!FG704-Monthly!FG692)*100)","v":19.999999999999996},{"$f":"((Monthly!FH704-Monthly!FH692)*100)","v":-11.999999999999989},{"$f":"((Monthly!FI704-Monthly!FI692)*100)","v":-30.999999999999982},null,null,null,null,null,null,{"$f":"(Monthly!FP704/Monthly!FP692)-1","v":1.3693390452876431E-2},{"$f":"(Monthly!FQ704/Monthly!FQ692)-1","v":5.980631446342799E-2},{"$f":"(Monthly!FR704/Monthly!FR692)-1","v":0.14010513165597449},{"$f":"(Monthly!FS704/Monthly!FS692)-1","v":-1.9059494121838383E-2},{"$f":"(Monthly!FT704/Monthly!FT692)-1","v":3.1607475741274982E-2},{"$f":"(Monthly!FU704/Monthly!FU692)-1","v":9.3634871220482641E-3},{"$f":"(Monthly!FV704/Monthly!FV692)-1","v":8.1430057246258958E-3},{"$f":"(Monthly!FW704/Monthly!FW692)-1","v":-1.1687737241432239E-2},{"$f":"(Monthly!FX704/Monthly!FX692)-1","v":-4.7446442510624798E-2},null,null,null,null,null,{"$f":"(Monthly!GD704/Monthly!GD692)-1","v":7.7022933794894E-2},{"$f":"(Monthly!GE704/Monthly!GE692)-1","v":2.2506710716498013E-2},{"$f":"(Monthly!GF704/Monthly!GF692)-1","v":-1.1730205278592365E-2},{"$f":"(Monthly!GG704/Monthly!GG692)-1","v":-2.5803890432711363E-2},{"$f":"(Monthly!GH704/Monthly!GH692)-1","v":1.019170104343603E-2},{"$f":"(Monthly!GI704/Monthly!GI692)-1","v":-0.23336547733847635},{"$f":"(Monthly!GJ704/Monthly!GJ692)-1","v":0.28571428571428581},{"$f":"(Monthly!GK704/Monthly!GK692)-1","v":2.299572756974122E-2},{"$f":"(Monthly!GL704/Monthly!GL692)-1","v":-6.0493106390622775E-2}]
["2016-11-01",null,null,null,{"$f":"(Monthly!E705/Monthly!E693)-1","v":2.8250971291950089E-2},{"$f":"(Monthly!F705/Monthly!F693)-1","v":5.9519958594811406E-2},{"$f":"(Monthly!G705/Monthly!G693)-1","v":2.5937765548496694E-2},{"$f":"(Monthly!H705/Monthly!H693)-1","v":2.3951772052661413E-2},null,null,null,null,null,null,null,null,null,null,null,null,null,null,null,{"$f":"(Monthly!X705-Monthly!X693)","v":-0.5},{"$f":"(Monthly!Y705/Monthly!Y693)-1","v":8.0299964161527404E-2},null,null,null,null,null,null,null,null,null,null,null,null,null,{"$f":"(Monthly!AM705/Monthly!AM693)-1","v":-4.3396053057889183E-3},{"$f":"(Monthly!AN705/Monthly!AN693)-1","v":4.5214527882777578E-3},{"$f":"(Monthly!AO705/Monthly!AO693)-1","v":1.883637545817729E-2},{"$f":"((Monthly!AP705-Monthly!AP693)*100)","v":-1.0000000000000009},{"$f":"Monthly!AQ705-Monthly!AQ693","v":4.8000000000000043},{"$f":"Monthly!AR705-Monthly!AR693","v":6},{"$f":"Monthly!AS705-Monthly!AS693","v":-1.5},{"$f":"Monthly!AT705-Monthly!AT693","v":1},{"$f":"Monthly!AU705-Monthly!AU693","v":4.5},{"$f":"Monthly!AV705-Monthly!AV693","v":1.5},{"$f":"Monthly!AW705-Monthly!AW693","v":6},{"$f":"Monthly!AX705-Monthly!AX693","v":4.1000000000000014},{"$f":"Monthly!AY705-Monthly!AY693","v":19},{"$f":"Monthly!AZ705-Monthly!AZ693","v":6.7999999999999972},{"$f":"Monthly!BA705-Monthly!BA693","v":5.1000000000000014},{"$f":"(Monthly!BB705/Monthly!BB693)-1","v":3.8720538720538711E-2},{"$f":"(Monthly!BC705/Monthly!BC693)-1","v":-2.6862772739376317E-2},null,null,null,null,null,null,null,null,null,{"$f":"(Monthly!BM705/Monthly!BM693)-1","v":3.6547549549509561E-2},{"$f":"(Monthly!BN705/Monthly!BN693)-1","v":3.4010712946865418E-2},null,null,null,null,null,{"$f":"(Monthly!BT705/Monthly!BT693)-1","v":7.8267481819879192E-2},null,null,null,{"$f":"(Monthly!BX705/Monthly!BX693)-1","v":-2.2959183673469385E-2},{"$f":"(Monthly!BY705/Monthly!BY693)-1","v":-9.471191791633804E-3},{"$f":"(Monthly!BZ705/Monthly!BZ693)-1","v":5.1661928712005256E-2},{"$f":"(Monthly!CA705/Monthly!CA693)-1","v":-2.2375598352443515E-2},{"$f":"Monthly!CB705-Monthly!CB693","v":0.86241630909704714},{"$f":"Monthly!CC705-Monthly!CC693","v":0.58241630909704867},{"$f":"(Monthly!CD705/Monthly!CD693)-1","v":8.2969432314410563E-2},{"$f":"(Monthly!CE705/Monthly!CE693)-1","v":0.13976377952755903},null,{"$f":"(Monthly!CG705/Monthly!CG693)-1","v":-9.3137254901960786E-2},{"$f":"(Monthly!CH705/Monthly!CH693)-1","v":0.15226337448559679},null,{"$f":"(Monthly!CJ705/Monthly!CJ693)-1","v":0.13976377952755903},{"$f":"(Monthly!CK705/Monthly!CK693)-1","v":1.508582439593309E-2},{"$f":"(Monthly!CL705/Monthly!CL693)-1","v":-0.38532329389267372},{"$f":"(Monthly!CM705/Monthly!CM693)-1","v":5.3777208706786261E-2},{"$f":"(Monthly!CN705/Monthly!CN693)-1","v":2.596202854230345E-3},{"$f":"(Monthly!CO705/Monthly!CO693)-1","v":7.7448607202978526E-2},{"$f":"(Monthly!CP705/Monthly!CP693)-1","v":2.8884818736261586E-2},null,{"$f":"(Monthly!CR705/Monthly!CR693)-1","v":3.5288233100786659E-2},null,null,null,null,null,null,null,{"$f":"(Monthly!CZ705/Monthly!CZ693)-1","v":1.6989078449568318E-2},{"$f":"(Monthly!DA705/Monthly!DA693)-1","v":2.1468260305215425E-2},null,null,null,null,null,null,{"$f":"((Monthly!DH705-Monthly!DH693)*60)","v":-6.0000000000000853},{"$f":"((Monthly!DI705-Monthly!DI693)*100)","v":10.000000000000142},{"$f":"((Monthly!DJ705-Monthly!DJ693)*100)","v":-59.999999999999964},{"$f":"((Monthly!DK705-Monthly!DK693)*100)","v":-40.000000000000036},{"$f":"Monthly!DL705-Monthly!DL693","v":-21},null,null,null,{"$f":"Monthly!DP705-Monthly!DP693","v":2324},null,null,null,{"$f":"(Monthly!DT705/Monthly!DT693)-1","v":-4.534606205250602E-2},{"$f":"Monthly!DU705-Monthly!DU693","v":-0.80000000000000071},{"$f":"(Monthly!DV705/Monthly!DV693)-1","v":5.5704559521354557E-3},{"$f":"(Monthly!DW705/Monthly!DW693)-1","v":6.7678424938475423E-3},{"$f":"(Monthly!DX705/Monthly!DX693)-1","v":1.022941702254454E-2},{"$f":"(Monthly!DY705/Monthly!DY693)-1","v":8.1366965012203973E-3},{"$f":"(Monthly!DZ705/Monthly!DZ693)-1","v":1.0905268690053704E-2},{"$f":"(Monthly!EA705/Monthly!EA693)-1","v":1.822814582516652E-2},{"$f":"(Monthly!EB705/Monthly!EB693)-1","v":-3.9856516540454079E-3},{"$f":"(Monthly!EC705/Monthly!EC693)-1","v":-8.7738539153314754E-4},null,null,null,null,null,null,null,null,null,null,null,null,null,{"$f":"(Monthly!EQ705/Monthly!EQ693)-1","v":3.231017770597866E-3},null,null,null,null,null,null,null,{"$f":"((Monthly!EY705-Monthly!EY693)*100)","v":25},{"$f":"((Monthly!EZ705-Monthly!EZ693)*100)","v":28.999999999999996},{"$f":"((Monthly!FA705-Monthly!FA693)*100)","v":-19.999999999999972},{"$f":"((Monthly!FB705-Monthly!FB693)*100)","v":-75},"--",{"$f":"((Monthly!FD705-Monthly!FD693)*100)","v":-16.999999999999993},{"$f":"((Monthly!FE705-Monthly!FE693)*100)","v":33},{"$f":"((Monthly!FF705-Monthly!FF693)*100)","v":26},{"$f":"((Monthly!FG705-Monthly!FG693)*100)","v":9.9999999999999982},{"$f":"((Monthly!FH705-Monthly!FH693)*100)","v":-6.999999999999984},{"$f":"((Monthly!FI705-Monthly!FI693)*100)","v":-11.999999999999966},null,null,null,null,null,null,{"$f":"(Monthly!FP705/Monthly!FP693)-1","v":1.1672565705248772E-2},{"$f":"(Monthly!FQ705/Monthly!FQ693)-1","v":7.4827152734129543E-2},{"$f":"(Monthly!FR705/Monthly!FR693)-1","v":0.20311955070773147},{"$f":"(Monthly!FS705/Monthly!FS693)-1","v":6.0594760883749821E-3},{"$f":"(Monthly!FT705/Monthly!FT693)-1","v":4.0089884147667343E-2},{"$f":"(Monthly!FU705/Monthly!FU693)-1","v":-1.1911325142921481E-3},{"$f":"(Monthly!FV705/Monthly!FV693)-1","v":6.5038343859526782E-2},{"$f":"(Monthly!FW705/Monthly!FW693)-1","v":1.7236892680050353E-2},{"$f":"(Monthly!FX705/Monthly!FX693)-1","v":5.4951269001762837E-2},null,null,null,null,null,{"$f":"(Monthly!GD705/Monthly!GD693)-1","v":7.5871819038642707E-2},{"$f":"(Monthly!GE705/Monthly!GE693)-1","v":1.0390783826518923E-2},{"$f":"(Monthly!GF705/Monthly!GF693)-1","v":1.5486725663716783E-2},{"$f":"(Monthly!GG705/Monthly!GG693)-1","v":-1.1349817592217315E-2},{"$f":"(Monthly!GH705/Monthly!GH693)-1","v":-4.7102342786683127E-2},{"$f":"(Monthly!GI705/Monthly!GI693)-1","v":-4.2065009560229405E-2},{"$f":"(Monthly!GJ705/Monthly!GJ693)-1","v":0.26315789473684226},{"$f":"(Monthly!GK705/Monthly!GK693)-1","v":4.1329328806476884E-2},{"$f":"(Monthly!GL705/Monthly!GL693)-1","v":-2.199251094351562E-2}]
["2016-12-01",null,null,null,{"$f":"(Monthly!E706/Monthly!E694)-1","v":2.8579188533279565E-2},{"$f":"(Monthly!F706/Monthly!F694)-1","v":7.2758909583037878E-2},{"$f":"(Monthly!G706/Monthly!G694)-1","v":2.1970062771607957E-2},{"$f":"(Monthly!H706/Monthly!H694)-1","v":2.3623958361425057E-2},null,null,null,null,null,null,null,null,null,null,null,null,null,null,null,{"$f":"(Monthly!X706-Monthly!X694)","v":0.40000000000000568},{"$f":"(Monthly!Y706/Monthly!Y694)-1","v":7.3137390674915759E-2},null,null,null,null,null,null,null,null,null,null,null,null,null,{"$f":"(Monthly!AM706/Monthly!AM694)-1","v":8.2551237442660685E-3},{"$f":"(Monthly!AN706/Monthly!AN694)-1","v":8.9614939924691495E-3},{"$f":"(Monthly!AO706/Monthly!AO694)-1","v":2.2782946953113559E-2},{"$f":"((Monthly!AP706-Monthly!AP694)*100)","v":-3.9999999999999813},{"$f":"Monthly!AQ706-Monthly!AQ694","v":6.5},{"$f":"Monthly!AR706-Monthly!AR694","v":8},{"$f":"Monthly!AS706-Monthly!AS694","v":-2.5},{"$f":"Monthly!AT706-Monthly!AT694","v":4.7999999999999972},{"$f":"Monthly!AU706-Monthly!AU694","v":5},{"$f":"Monthly!AV706-Monthly!AV694","v":5},{"$f":"Monthly!AW706-Monthly!AW694","v":3.5},{"$f":"Monthly!AX706-Monthly!AX694","v":11.5},{"$f":"Monthly!AY706-Monthly!AY694","v":32},{"$f":"Monthly!AZ706-Monthly!AZ694","v":9.5},{"$f":"Monthly!BA706-Monthly!BA694","v":3.2000000000000028},{"$f":"(Monthly!BB706/Monthly!BB694)-1","v":2.3529411764705799E-2},{"$f":"(Monthly!BC706/Monthly!BC694)-1","v":1.5099103234585298E-2},null,null,null,null,null,null,null,null,null,{"$f":"(Monthly!BM706/Monthly!BM694)-1","v":4.0286600288013785E-2},{"$f":"(Monthly!BN706/Monthly!BN694)-1","v":4.2323491205280339E-2},null,null,null,null,null,{"$f":"(Monthly!BT706/Monthly!BT694)-1","v":7.6156795898840057E-2},null,null,null,{"$f":"(Monthly!BX706/Monthly!BX694)-1","v":0.11423550087873457},{"$f":"(Monthly!BY706/Monthly!BY694)-1","v":3.9408866995073843E-2},{"$f":"(Monthly!BZ706/Monthly!BZ694)-1","v":5.4377379010331683E-2},{"$f":"(Monthly!CA706/Monthly!CA694)-1","v":4.9781913346903073E-2},{"$f":"Monthly!CB706-Monthly!CB694","v":1.1331767362668836},{"$f":"Monthly!CC706-Monthly!CC694","v":0.92317673626688546},{"$f":"(Monthly!CD706/Monthly!CD694)-1","v":9.4017094017094127E-2},{"$f":"(Monthly!CE706/Monthly!CE694)-1","v":2.2388059701492491E-2},null,{"$f":"(Monthly!CG706/Monthly!CG694)-1","v":-6.25E-2},{"$f":"(Monthly!CH706/Monthly!CH694)-1","v":1.1009174311926495E-2},null,{"$f":"(Monthly!CJ706/Monthly!CJ694)-1","v":2.2388059701492491E-2},{"$f":"(Monthly!CK706/Monthly!CK694)-1","v":1.5703919642574116E-2},{"$f":"(Monthly!CL706/Monthly!CL694)-1","v":-0.45045268510479963},{"$f":"(Monthly!CM706/Monthly!CM694)-1","v":5.7591623036649109E-2},{"$f":"(Monthly!CN706/Monthly!CN694)-1","v":-7.1594488815329704E-5},{"$f":"(Monthly!CO706/Monthly!CO694)-1","v":7.9166768538666554E-2},{"$f":"(Monthly!CP706/Monthly!CP694)-1","v":6.6745229059739231E-2},null,{"$f":"(Monthly!CR706/Monthly!CR694)-1","v":6.6019197381127936E-2},null,null,null,null,null,null,null,{"$f":"(Monthly!CZ706/Monthly!CZ694)-1","v":2.0916895806530222E-2},{"$f":"(Monthly!DA706/Monthly!DA694)-1","v":2.2209411197108508E-2},null,null,null,null,null,null,{"$f":"((Monthly!DH706-Monthly!DH694)*60)","v":-11.999999999999744},{"$f":"((Monthly!DI706-Monthly!DI694)*100)","v":0},{"$f":"((Monthly!DJ706-Monthly!DJ694)*100)","v":-70.000000000000114},{"$f":"((Monthly!DK706-Monthly!DK694)*100)","v":-29.999999999999982},{"$f":"Monthly!DL706-Monthly!DL694","v":-16},null,null,null,{"$f":"Monthly!DP706-Monthly!DP694","v":2240},null,null,null,{"$f":"(Monthly!DT706/Monthly!DT694)-1","v":-4.4176706827309231E-2},{"$f":"Monthly!DU706-Monthly!DU694","v":-0.39999999999999858},{"$f":"(Monthly!DV706/Monthly!DV694)-1","v":6.9425350563652177E-3},{"$f":"(Monthly!DW706/Monthly!DW694)-1","v":6.9420578733931926E-3},{"$f":"(Monthly!DX706/Monthly!DX694)-1","v":7.0527465977947568E-3},{"$f":"(Monthly!DY706/Monthly!DY694)-1","v":5.3235053235054508E-3},{"$f":"(Monthly!DZ706/Monthly!DZ694)-1","v":7.6065573770491834E-3},{"$f":"(Monthly!EA706/Monthly!EA694)-1","v":1.3121817469643471E-2},{"$f":"(Monthly!EB706/Monthly!EB694)-1","v":-3.5728463676062416E-3},{"$f":"(Monthly!EC706/Monthly!EC694)-1","v":6.6934404283802706E-3},null,null,null,null,null,null,null,null,null,null,null,null,null,{"$f":"(Monthly!EQ706/Monthly!EQ694)-1","v":2.5613079019073615E-2},null,null,null,null,null,null,null,{"$f":"((Monthly!EY706-Monthly!EY694)*100)","v":27},{"$f":"((Monthly!EZ706-Monthly!EZ694)*100)","v":30.000000000000004},{"$f":"((Monthly!FA706-Monthly!FA694)*100)","v":8.9999999999999414},{"$f":"((Monthly!FB706-Monthly!FB694)*100)","v":-62.999999999999986},"--",{"$f":"((Monthly!FD706-Monthly!FD694)*100)","v":24.000000000000021},{"$f":"((Monthly!FE706-Monthly!FE694)*100)","v":28.000000000000004},{"$f":"((Monthly!FF706-Monthly!FF694)*100)","v":21.999999999999996},{"$f":"((Monthly!FG706-Monthly!FG694)*100)","v":21.999999999999996},{"$f":"((Monthly!FH706-Monthly!FH694)*100)","v":26},{"$f":"((Monthly!FI706-Monthly!FI694)*100)","v":25},null,null,null,null,null,null,{"$f":"(Monthly!FP706/Monthly!FP694)-1","v":-2.7273390213665816E-2},{"$f":"(Monthly!FQ706/Monthly!FQ694)-1","v":7.2986928408615315E-2},{"$f":"(Monthly!FR706/Monthly!FR694)-1","v":0.2009185921169796},{"$f":"(Monthly!FS706/Monthly!FS694)-1","v":-3.1591514372302343E-2},{"$f":"(Monthly!FT706/Monthly!FT694)-1","v":4.5479954330985839E-2},{"$f":"(Monthly!FU706/Monthly!FU694)-1","v":1.5989506420609922E-2},{"$f":"(Monthly!FV706/Monthly!FV694)-1","v":-1.9109332316879502E-2},{"$f":"(Monthly!FW706/Monthly!FW694)-1","v":3.6284783443949031E-2},{"$f":"(Monthly!FX706/Monthly!FX694)-1","v":1.4076780870436734E-2},null,null,null,null,null,{"$f":"(Monthly!GD706/Monthly!GD694)-1","v":0.3974186609303576},{"$f":"(Monthly!GE706/Monthly!GE694)-1","v":0.4019994738226782},{"$f":"(Monthly!GF706/Monthly!GF694)-1","v":0.10354477611940305},{"$f":"(Monthly!GG706/Monthly!GG694)-1","v":8.6580086580086535E-2},{"$f":"(Monthly!GH706/Monthly!GH694)-1","v":-0.10386585933861203},{"$f":"(Monthly!GI706/Monthly!GI694)-1","v":-0.10396475770925107},{"$f":"(Monthly!GJ706/Monthly!GJ694)-1","v":0.75636007827788632},{"$f":"(Monthly!GK706/Monthly!GK694)-1","v":5.6641464937226882E-2},{"$f":"(Monthly!GL706/Monthly!GL694)-1","v":9.8626650405631011E-4}]
["2017-01-01",null,null,null,{"$f":"(Monthly!E707/Monthly!E695)-1","v":2.8825067106440505E-2},{"$f":"(Monthly!F707/Monthly!F695)-1","v":6.8693326374845043E-2},{"$f":"(Monthly!G707/Monthly!G695)-1","v":2.2481869460112991E-2},{"$f":"(Monthly!H707/Monthly!H695)-1","v":2.4446121502883944E-2},null,null,null,null,null,null,null,null,null,null,null,null,null,null,null,{"$f":"(Monthly!X707-Monthly!X695)","v":-0.39999999999999147},{"$f":"(Monthly!Y707/Monthly!Y695)-1","v":6.8113079985898661E-2},null,null,null,null,null,null,null,null,null,null,null,null,null,{"$f":"(Monthly!AM707/Monthly!AM695)-1","v":-2.4158744209157312E-4},{"$f":"(Monthly!AN707/Monthly!AN695)-1","v":7.1071094390022793E-3},{"$f":"(Monthly!AO707/Monthly!AO695)-1","v":2.6495357098670791E-2},{"$f":"((Monthly!AP707-Monthly!AP695)*100)","v":-4.9999999999999822},{"$f":"Monthly!AQ707-Monthly!AQ695","v":7.7999999999999972},{"$f":"Monthly!AR707-Monthly!AR695","v":6.5},{"$f":"Monthly!AS707-Monthly!AS695","v":-3},{"$f":"Monthly!AT707-Monthly!AT695","v":10.200000000000003},{"$f":"Monthly!AU707-Monthly!AU695","v":7.5},{"$f":"Monthly!AV707-Monthly!AV695","v":-1},{"$f":"Monthly!AW707-Monthly!AW695","v":5},{"$f":"Monthly!AX707-Monthly!AX695","v":8.8999999999999986},{"$f":"Monthly!AY707-Monthly!AY695","v":35.5},{"$f":"Monthly!AZ707-Monthly!AZ695","v":11.199999999999996},{"$f":"Monthly!BA707-Monthly!BA695","v":3.6000000000000014},{"$f":"(Monthly!BB707/Monthly!BB695)-1","v":0.11873840445269024},{"$f":"(Monthly!BC707/Monthly!BC695)-1","v":-2.4485253199777457E-3},null,null,null,null,null,null,null,null,null,{"$f":"(Monthly!BM707/Monthly!BM695)-1","v":5.6436047847808091E-2},{"$f":"(Monthly!BN707/Monthly!BN695)-1","v":5.5395880034206479E-2},null,null,null,null,null,{"$f":"(Monthly!BT707/Monthly!BT695)-1","v":7.0919909214417931E-2},null,null,null,{"$f":"(Monthly!BX707/Monthly!BX695)-1","v":0.10062333036509341},{"$f":"(Monthly!BY707/Monthly!BY695)-1","v":8.968985750209546E-2},{"$f":"(Monthly!BZ707/Monthly!BZ695)-1","v":5.6969893519269288E-2},{"$f":"(Monthly!CA707/Monthly!CA695)-1","v":-1.7346938775510301E-2},{"$f":"Monthly!CB707-Monthly!CB695","v":1.0824985067276689},{"$f":"Monthly!CC707-Monthly!CC695","v":1.0124985067276686},{"$f":"(Monthly!CD707/Monthly!CD695)-1","v":0.10126582278481022},{"$f":"(Monthly!CE707/Monthly!CE695)-1","v":0.15192307692307683},null,{"$f":"(Monthly!CG707/Monthly!CG695)-1","v":-7.6923076923076872E-2},{"$f":"(Monthly!CH707/Monthly!CH695)-1","v":3.8321167883211604E-2},null,{"$f":"(Monthly!CJ707/Monthly!CJ695)-1","v":0.15192307692307683},{"$f":"(Monthly!CK707/Monthly!CK695)-1","v":2.6699845742688577E-2},{"$f":"(Monthly!CL707/Monthly!CL695)-1","v":-0.3507242818561257},{"$f":"(Monthly!CM707/Monthly!CM695)-1","v":5.7068741893644637E-2},{"$f":"(Monthly!CN707/Monthly!CN695)-1","v":5.0541631181399982E-3},{"$f":"(Monthly!CO707/Monthly!CO695)-1","v":7.7250660080061317E-2},{"$f":"(Monthly!CP707/Monthly!CP695)-1","v":6.5710205235647745E-2},null,{"$f":"(Monthly!CR707/Monthly!CR695)-1","v":6.4479566170142055E-2},null,null,null,null,null,null,null,{"$f":"(Monthly!CZ707/Monthly!CZ695)-1","v":2.5417251140248398E-2},{"$f":"(Monthly!DA707/Monthly!DA695)-1","v":2.2635708227311202E-2},null,null,null,null,null,null,{"$f":"((Monthly!DH707-Monthly!DH695)*60)","v":-6.0000000000000853},{"$f":"((Monthly!DI707-Monthly!DI695)*100)","v":19.999999999999574},{"$f":"((Monthly!DJ707-Monthly!DJ695)*100)","v":-50},{"$f":"((Monthly!DK707-Monthly!DK695)*100)","v":-10.000000000000053},{"$f":"Monthly!DL707-Monthly!DL695","v":-32},null,null,null,{"$f":"Monthly!DP707-Monthly!DP695","v":2330},null,null,null,{"$f":"(Monthly!DT707/Monthly!DT695)-1","v":-4.9392712550607287E-2},{"$f":"Monthly!DU707-Monthly!DU695","v":-1},{"$f":"(Monthly!DV707/Monthly!DV695)-1","v":5.0158032156109034E-3},{"$f":"(Monthly!DW707/Monthly!DW695)-1","v":4.6908912693413019E-3},{"$f":"(Monthly!DX707/Monthly!DX695)-1","v":-2.0084354288008033E-4},{"$f":"(Monthly!DY707/Monthly!DY695)-1","v":-4.1390728476820016E-4},{"$f":"(Monthly!DZ707/Monthly!DZ695)-1","v":-1.3259082471495098E-4},{"$f":"(Monthly!EA707/Monthly!EA695)-1","v":0},{"$f":"(Monthly!EB707/Monthly!EB695)-1","v":-4.0387722132473325E-4},{"$f":"(Monthly!EC707/Monthly!EC695)-1","v":1.5953757225433574E-2},null,null,null,null,null,null,null,null,null,null,null,null,null,{"$f":"(Monthly!EQ707/Monthly!EQ695)-1","v":4.4359255202628622E-2},null,null,null,null,null,null,null,{"$f":"((Monthly!EY707-Monthly!EY695)*100)","v":25},{"$f":"((Monthly!EZ707-Monthly!EZ695)*100)","v":31},{"$f":"((Monthly!FA707-Monthly!FA695)*100)","v":-8.0000000000000071},{"$f":"((Monthly!FB707-Monthly!FB695)*100)","v":-79},"--",{"$f":"((Monthly!FD707-Monthly!FD695)*100)","v":28.000000000000025},{"$f":"((Monthly!FE707-Monthly!FE695)*100)","v":25},{"$f":"((Monthly!FF707-Monthly!FF695)*100)","v":28.999999999999993},{"$f":"((Monthly!FG707-Monthly!FG695)*100)","v":30.999999999999993},{"$f":"((Monthly!FH707-Monthly!FH695)*100)","v":39.999999999999993},{"$f":"((Monthly!FI707-Monthly!FI695)*100)","v":34.000000000000028},null,null,null,null,null,null,{"$f":"(Monthly!FP707/Monthly!FP695)-1","v":-7.2142454954954971E-2},{"$f":"(Monthly!FQ707/Monthly!FQ695)-1","v":4.8397894288409349E-2},{"$f":"(Monthly!FR707/Monthly!FR695)-1","v":0.18413157078960185},{"$f":"(Monthly!FS707/Monthly!FS695)-1","v":-2.0267157991708862E-2},{"$f":"(Monthly!FT707/Monthly!FT695)-1","v":2.1533156239514017E-2},{"$f":"(Monthly!FU707/Monthly!FU695)-1","v":-4.8174391507671555E-3},{"$f":"(Monthly!FV707/Monthly!FV695)-1","v":9.0251524321800281E-2},{"$f":"(Monthly!FW707/Monthly!FW695)-1","v":0.11348437672399636},{"$f":"(Monthly!FX707/Monthly!FX695)-1","v":4.8903818321510917E-2},null,null,null,null,null,{"$f":"(Monthly!GD707/Monthly!GD695)-1","v":0.65719696969696972},{"$f":"(Monthly!GE707/Monthly!GE695)-1","v":0.77785016286644959},{"$f":"(Monthly!GF707/Monthly!GF695)-1","v":0.19494409333981544},{"$f":"(Monthly!GG707/Monthly!GG695)-1","v":0.20391973868408786},{"$f":"(Monthly!GH707/Monthly!GH695)-1","v":-5.3121852970795524E-2},{"$f":"(Monthly!GI707/Monthly!GI695)-1","v":0.25596816976127323},{"$f":"(Monthly!GJ707/Monthly!GJ695)-1","v":0.4753363228699552},{"$f":"(Monthly!GK707/Monthly!GK695)-1","v":7.9701868447255908E-2},{"$f":"(Monthly!GL707/Monthly!GL695)-1","v":3.6605193477958098E-2}]
["2017-02-01",null,null,null,{"$f":"(Monthly!E708/Monthly!E696)-1","v":2.4642935138676547E-2},{"$f":"(Monthly!F708/Monthly!F696)-1","v":6.2657613967022296E-2},{"$f":"(Monthly!G708/Monthly!G696)-1","v":1.4678751905029319E-2},{"$f":"(Monthly!H708/Monthly!H696)-1","v":2.1679270373007098E-2},null,null,null,null,null,null,null,null,null,null,null,null,null,null,null,{"$f":"(Monthly!X708-Monthly!X696)","v":-0.10000000000000853},{"$f":"(Monthly!Y708/Monthly!Y696)-1","v":5.4926424182964784E-2},null,null,null,null,null,null,null,null,null,null,null,null,null,{"$f":"(Monthly!AM708/Monthly!AM696)-1","v":4.2152253591365429E-3},{"$f":"(Monthly!AN708/Monthly!AN696)-1","v":1.1317797652439232E-2},{"$f":"(Monthly!AO708/Monthly!AO696)-1","v":3.0915878668249297E-2},{"$f":"((Monthly!AP708-Monthly!AP696)*100)","v":-4.9999999999999822},{"$f":"Monthly!AQ708-Monthly!AQ696","v":8.2000000000000028},{"$f":"Monthly!AR708-Monthly!AR696","v":8.5},{"$f":"Monthly!AS708-Monthly!AS696","v":0.5},{"$f":"Monthly!AT708-Monthly!AT696","v":5.7000000000000028},{"$f":"Monthly!AU708-Monthly!AU696","v":8.5},{"$f":"Monthly!AV708-Monthly!AV696","v":5},{"$f":"Monthly!AW708-Monthly!AW696","v":6.5},{"$f":"Monthly!AX708-Monthly!AX696","v":13.599999999999994},{"$f":"Monthly!AY708-Monthly!AY696","v":29.5},{"$f":"Monthly!AZ708-Monthly!AZ696","v":10.100000000000001},{"$f":"Monthly!BA708-Monthly!BA696","v":5.0999999999999943},{"$f":"(Monthly!BB708/Monthly!BB696)-1","v":0.10034602076124566},{"$f":"(Monthly!BC708/Monthly!BC696)-1","v":2.678673574452084E-2},null,null,null,null,null,null,null,null,null,{"$f":"(Monthly!BM708/Monthly!BM696)-1","v":4.7215370260788259E-2},{"$f":"(Monthly!BN708/Monthly!BN696)-1","v":4.8537525508276058E-2},null,null,null,null,null,{"$f":"(Monthly!BT708/Monthly!BT696)-1","v":6.9862525976424505E-2},null,null,null,{"$f":"(Monthly!BX708/Monthly!BX696)-1","v":6.534325889164605E-2},{"$f":"(Monthly!BY708/Monthly!BY696)-1","v":2.0083682008368298E-2},{"$f":"(Monthly!BZ708/Monthly!BZ696)-1","v":5.8428294990324758E-2},{"$f":"(Monthly!CA708/Monthly!CA696)-1","v":-1.0678391959799027E-2},{"$f":"Monthly!CB708-Monthly!CB696","v":1.610773157395462},{"$f":"Monthly!CC708-Monthly!CC696","v":1.4707731573954632},{"$f":"(Monthly!CD708/Monthly!CD696)-1","v":9.5833333333333437E-2},{"$f":"(Monthly!CE708/Monthly!CE696)-1","v":0.17142857142857149},null,{"$f":"(Monthly!CG708/Monthly!CG696)-1","v":-7.4866310160427774E-2},{"$f":"(Monthly!CH708/Monthly!CH696)-1","v":5.1923076923076961E-2},null,{"$f":"(Monthly!CJ708/Monthly!CJ696)-1","v":0.17142857142857149},{"$f":"(Monthly!CK708/Monthly!CK696)-1","v":3.3686218407248392E-2},{"$f":"(Monthly!CL708/Monthly!CL696)-1","v":-0.23374387498344584},{"$f":"(Monthly!CM708/Monthly!CM696)-1","v":4.2806183115338792E-2},{"$f":"(Monthly!CN708/Monthly!CN696)-1","v":9.2866188265090521E-3},{"$f":"(Monthly!CO708/Monthly!CO696)-1","v":7.8974756153641357E-2},{"$f":"(Monthly!CP708/Monthly!CP696)-1","v":6.6272818755376495E-2},null,{"$f":"(Monthly!CR708/Monthly!CR696)-1","v":6.7685163659575442E-2},null,null,null,null,null,null,null,{"$f":"(Monthly!CZ708/Monthly!CZ696)-1","v":2.7955325304447332E-2},{"$f":"(Monthly!DA708/Monthly!DA696)-1","v":2.2184709878175335E-2},null,null,null,null,null,null,{"$f":"((Monthly!DH708-Monthly!DH696)*60)","v":0},{"$f":"((Monthly!DI708-Monthly!DI696)*100)","v":10.000000000000142},{"$f":"((Monthly!DJ708-Monthly!DJ696)*100)","v":-60.000000000000142},{"$f":"((Monthly!DK708-Monthly!DK696)*100)","v":-20.000000000000018},{"$f":"Monthly!DL708-Monthly!DL696","v":2},null,null,null,{"$f":"Monthly!DP708-Monthly!DP696","v":2325},null,null,null,{"$f":"(Monthly!DT708/Monthly!DT696)-1","v":-4.3657331136738087E-2},{"$f":"Monthly!DU708-Monthly!DU696","v":-1.3000000000000007},{"$f":"(Monthly!DV708/Monthly!DV696)-1","v":1.1689472598501061E-2},{"$f":"(Monthly!DW708/Monthly!DW696)-1","v":1.3348320921736656E-2},{"$f":"(Monthly!DX708/Monthly!DX696)-1","v":7.9613020255970834E-3},{"$f":"(Monthly!DY708/Monthly!DY696)-1","v":3.7422037422036869E-3},{"$f":"(Monthly!DZ708/Monthly!DZ696)-1","v":9.3109869646181842E-3},{"$f":"(Monthly!EA708/Monthly!EA696)-1","v":9.0981012658226668E-3},{"$f":"(Monthly!EB708/Monthly!EB696)-1","v":9.7481722177092944E-3},{"$f":"(Monthly!EC708/Monthly!EC696)-1","v":2.5748086290883654E-2},null,null,null,null,null,null,null,null,null,null,null,null,null,{"$f":"(Monthly!EQ708/Monthly!EQ696)-1","v":5.6811913954770921E-2},null,null,null,null,null,null,null,{"$f":"((Monthly!EY708-Monthly!EY696)*100)","v":25},{"$f":"((Monthly!EZ708-Monthly!EZ696)*100)","v":28.000000000000004},{"$f":"((Monthly!FA708-Monthly!FA696)*100)","v":-0.99999999999997868},{"$f":"((Monthly!FB708-Monthly!FB696)*100)","v":-70.000000000000014},"--",{"$f":"((Monthly!FD708-Monthly!FD696)*100)","v":50.999999999999979},{"$f":"((Monthly!FE708-Monthly!FE696)*100)","v":21.000000000000004},{"$f":"((Monthly!FF708-Monthly!FF696)*100)","v":28.999999999999993},{"$f":"((Monthly!FG708-Monthly!FG696)*100)","v":47},{"$f":"((Monthly!FH708-Monthly!FH696)*100)","v":68},{"$f":"((Monthly!FI708-Monthly!FI696)*100)","v":63.999999999999993},null,null,null,null,null,null,{"$f":"(Monthly!FP708/Monthly!FP696)-1","v":-4.9865912879611507E-2},{"$f":"(Monthly!FQ708/Monthly!FQ696)-1","v":4.8747347368742533E-2},{"$f":"(Monthly!FR708/Monthly!FR696)-1","v":0.10131718855109262},{"$f":"(Monthly!FS708/Monthly!FS696)-1","v":-3.9848539487919221E-2},{"$f":"(Monthly!FT708/Monthly!FT696)-1","v":1.549973233166968E-2},{"$f":"(Monthly!FU708/Monthly!FU696)-1","v":1.0532983596120093E-2},{"$f":"(Monthly!FV708/Monthly!FV696)-1","v":6.6594231800739756E-2},{"$f":"(Monthly!FW708/Monthly!FW696)-1","v":-9.213990013466844E-2},{"$f":"(Monthly!FX708/Monthly!FX696)-1","v":3.1582081052045741E-2},null,null,null,null,null,{"$f":"(Monthly!GD708/Monthly!GD696)-1","v":0.76352242744063314},{"$f":"(Monthly!GE708/Monthly!GE696)-1","v":0.70509633312616526},{"$f":"(Monthly!GF708/Monthly!GF696)-1","v":0.29059829059829045},{"$f":"(Monthly!GG708/Monthly!GG696)-1","v":0.28528528528528541},{"$f":"(Monthly!GH708/Monthly!GH696)-1","v":0.10044028618602097},{"$f":"(Monthly!GI708/Monthly!GI696)-1","v":0.4778254649499285},{"$f":"(Monthly!GJ708/Monthly!GJ696)-1","v":0.50777202072538863},{"$f":"(Monthly!GK708/Monthly!GK696)-1","v":0.15723453908984841},{"$f":"(Monthly!GL708/Monthly!GL696)-1","v":1.5211166785970009E-2}]
["2017-03-01",null,null,null,{"$f":"(Monthly!E709/Monthly!E697)-1","v":3.2487788680828134E-2},{"$f":"(Monthly!F709/Monthly!F697)-1","v":6.8605998197966311E-2},{"$f":"(Monthly!G709/Monthly!G697)-1","v":2.4974904637622863E-2},{"$f":"(Monthly!H709/Monthly!H697)-1","v":2.9063827499058892E-2},null,null,null,null,null,null,null,null,null,null,null,null,null,null,null,{"$f":"(Monthly!X709-Monthly!X697)","v":0.5},{"$f":"(Monthly!Y709/Monthly!Y697)-1","v":3.1001858639201574E-2},null,null,null,null,null,null,null,null,null,null,null,null,null,{"$f":"(Monthly!AM709/Monthly!AM697)-1","v":1.3556521594946913E-2},{"$f":"(Monthly!AN709/Monthly!AN697)-1","v":6.4433880768104412E-3},{"$f":"(Monthly!AO709/Monthly!AO697)-1","v":2.8184412592357377E-2},{"$f":"((Monthly!AP709-Monthly!AP697)*100)","v":-4.9999999999999822},{"$f":"Monthly!AQ709-Monthly!AQ697","v":5.4000000000000057},{"$f":"Monthly!AR709-Monthly!AR697","v":6.5},{"$f":"Monthly!AS709-Monthly!AS697","v":-2},{"$f":"Monthly!AT709-Monthly!AT697","v":10.799999999999997},{"$f":"Monthly!AU709-Monthly!AU697","v":7},{"$f":"Monthly!AV709-Monthly!AV697","v":4},{"$f":"Monthly!AW709-Monthly!AW697","v":2},{"$f":"Monthly!AX709-Monthly!AX697","v":6.2000000000000028},{"$f":"Monthly!AY709-Monthly!AY697","v":19},{"$f":"Monthly!AZ709-Monthly!AZ697","v":2.3000000000000043},{"$f":"Monthly!BA709-Monthly!BA697","v":5.6999999999999957},{"$f":"(Monthly!BB709/Monthly!BB697)-1","v":-1.5050167224080258E-2},{"$f":"(Monthly!BC709/Monthly!BC697)-1","v":2.5921452123665478E-2},null,null,null,null,null,null,null,null,null,{"$f":"(Monthly!BM709/Monthly!BM697)-1","v":4.812375629883392E-2},{"$f":"(Monthly!BN709/Monthly!BN697)-1","v":4.9440171650473763E-2},null,null,null,null,null,{"$f":"(Monthly!BT709/Monthly!BT697)-1","v":6.3639011082842645E-2},null,null,null,{"$f":"(Monthly!BX709/Monthly!BX697)-1","v":5.4078014184397061E-2},{"$f":"(Monthly!BY709/Monthly!BY697)-1","v":0.13004484304932729},{"$f":"(Monthly!BZ709/Monthly!BZ697)-1","v":5.8707159279259846E-2},{"$f":"(Monthly!CA709/Monthly!CA697)-1","v":-3.0411449016098935E-3},{"$f":"Monthly!CB709-Monthly!CB697","v":0.99804179613586275},{"$f":"Monthly!CC709-Monthly!CC697","v":0.64804179613586221},{"$f":"(Monthly!CD709/Monthly!CD697)-1","v":9.4650205761316775E-2},{"$f":"(Monthly!CE709/Monthly!CE697)-1","v":0.19699812382739212},null,{"$f":"(Monthly!CG709/Monthly!CG697)-1","v":-8.1632653061224469E-2},{"$f":"(Monthly!CH709/Monthly!CH697)-1","v":5.7513914656771803E-2},null,{"$f":"(Monthly!CJ709/Monthly!CJ697)-1","v":0.19699812382739212},{"$f":"(Monthly!CK709/Monthly!CK697)-1","v":3.3735291134104228E-2},{"$f":"(Monthly!CL709/Monthly!CL697)-1","v":-0.29940798589242967},{"$f":"(Monthly!CM709/Monthly!CM697)-1","v":0.10160427807486627},{"$f":"(Monthly!CN709/Monthly!CN697)-1","v":1.2556125084435932E-2},{"$f":"(Monthly!CO709/Monthly!CO697)-1","v":7.2749573122339539E-2},{"$f":"(Monthly!CP709/Monthly!CP697)-1","v":6.2764372573984151E-2},null,{"$f":"(Monthly!CR709/Monthly!CR697)-1","v":5.9538452239210837E-2},null,null,null,null,null,null,null,{"$f":"(Monthly!CZ709/Monthly!CZ697)-1","v":2.3832525474844379E-2},{"$f":"(Monthly!DA709/Monthly!DA697)-1","v":2.0039664799928358E-2},null,null,null,null,null,null,{"$f":"((Monthly!DH709-Monthly!DH697)*60)","v":0},{"$f":"((Monthly!DI709-Monthly!DI697)*100)","v":0},{"$f":"((Monthly!DJ709-Monthly!DJ697)*100)","v":-90.000000000000028},{"$f":"((Monthly!DK709-Monthly!DK697)*100)","v":-50},{"$f":"Monthly!DL709-Monthly!DL697","v":33},null,null,null,{"$f":"Monthly!DP709-Monthly!DP697","v":2150},null,null,null,{"$f":"(Monthly!DT709/Monthly!DT697)-1","v":-4.3946932006633466E-2},{"$f":"Monthly!DU709-Monthly!DU697","v":-1.0999999999999996},{"$f":"(Monthly!DV709/Monthly!DV697)-1","v":1.6183458439501308E-2},{"$f":"(Monthly!DW709/Monthly!DW697)-1","v":1.741573033707855E-2},{"$f":"(Monthly!DX709/Monthly!DX697)-1","v":1.4450282942602977E-2},{"$f":"(Monthly!DY709/Monthly!DY697)-1","v":2.0703933747412417E-3},{"$f":"(Monthly!DZ709/Monthly!DZ697)-1","v":1.8446731720358267E-2},{"$f":"(Monthly!EA709/Monthly!EA697)-1","v":1.9295802665605599E-2},{"$f":"(Monthly!EB709/Monthly!EB697)-1","v":1.6707416462917735E-2},{"$f":"(Monthly!EC709/Monthly!EC697)-1","v":2.4171270718231996E-2},null,null,null,null,null,null,null,null,null,null,null,null,null,{"$f":"(Monthly!EQ709/Monthly!EQ697)-1","v":5.1619989017023693E-2},null,null,null,null,null,null,null,{"$f":"((Monthly!EY709-Monthly!EY697)*100)","v":37.999999999999986},{"$f":"((Monthly!EZ709-Monthly!EZ697)*100)","v":43.000000000000007},{"$f":"((Monthly!FA709-Monthly!FA697)*100)","v":18.999999999999993},{"$f":"((Monthly!FB709-Monthly!FB697)*100)","v":-45.000000000000014},"--",{"$f":"((Monthly!FD709-Monthly!FD697)*100)","v":51.000000000000021},{"$f":"((Monthly!FE709-Monthly!FE697)*100)","v":45},{"$f":"((Monthly!FF709-Monthly!FF697)*100)","v":35},{"$f":"((Monthly!FG709-Monthly!FG697)*100)","v":43.000000000000007},{"$f":"((Monthly!FH709-Monthly!FH697)*100)","v":62.999999999999986},{"$f":"((Monthly!FI709-Monthly!FI697)*100)","v":59.000000000000007},null,null,null,null,null,null,{"$f":"(Monthly!FP709/Monthly!FP697)-1","v":1.2172992590352427E-2},{"$f":"(Monthly!FQ709/Monthly!FQ697)-1","v":6.0175004229012563E-2},{"$f":"(Monthly!FR709/Monthly!FR697)-1","v":9.3571862078353885E-2},{"$f":"(Monthly!FS709/Monthly!FS697)-1","v":-3.9788036644512359E-2},{"$f":"(Monthly!FT709/Monthly!FT697)-1","v":3.2137839541523716E-2},{"$f":"(Monthly!FU709/Monthly!FU697)-1","v":3.3935193442529599E-2},{"$f":"(Monthly!FV709/Monthly!FV697)-1","v":0.13409421274429878},{"$f":"(Monthly!FW709/Monthly!FW697)-1","v":0.14633541455109711},{"$f":"(Monthly!FX709/Monthly!FX697)-1","v":0.13316368777138243},null,null,null,null,null,{"$f":"(Monthly!GD709/Monthly!GD697)-1","v":0.31371504660452731},{"$f":"(Monthly!GE709/Monthly!GE697)-1","v":0.35017011253598551},{"$f":"(Monthly!GF709/Monthly!GF697)-1","v":0.17672621921776899},{"$f":"(Monthly!GG709/Monthly!GG697)-1","v":0.22200956937799043},{"$f":"(Monthly!GH709/Monthly!GH697)-1","v":0.10204653770675631},{"$f":"(Monthly!GI709/Monthly!GI697)-1","v":-4.5965270684371839E-2},{"$f":"(Monthly!GJ709/Monthly!GJ697)-1","v":0.65193370165745868},{"$f":"(Monthly!GK709/Monthly!GK697)-1","v":0.12628235453132386},{"$f":"(Monthly!GL709/Monthly!GL697)-1","v":-4.5543121207058945E-3}]
["2017-04-01",null,null,null,{"$f":"(Monthly!E710/Monthly!E698)-1","v":2.801366350574952E-2},{"$f":"(Monthly!F710/Monthly!F698)-1","v":6.6624122527122021E-2},{"$f":"(Monthly!G710/Monthly!G698)-1","v":2.0366679952172229E-2},{"$f":"(Monthly!H710/Monthly!H698)-1","v":2.4272039627819764E-2},null,null,null,null,null,null,null,null,null,null,null,null,null,null,null,{"$f":"(Monthly!X710-Monthly!X698)","v":1},{"$f":"(Monthly!Y710/Monthly!Y698)-1","v":2.6965004977500318E-2},null,null,null,null,null,null,null,null,null,null,null,null,null,{"$f":"(Monthly!AM710/Monthly!AM698)-1","v":2.1163666269076398E-2},{"$f":"(Monthly!AN710/Monthly!AN698)-1","v":2.052138301613482E-2},{"$f":"(Monthly!AO710/Monthly!AO698)-1","v":2.3599718746102116E-2},{"$f":"((Monthly!AP710-Monthly!AP698)*100)","v":-4.9999999999999822},{"$f":"Monthly!AQ710-Monthly!AQ698","v":4},{"$f":"Monthly!AR710-Monthly!AR698","v":6.5},{"$f":"Monthly!AS710-Monthly!AS698","v":-0.5},{"$f":"Monthly!AT710-Monthly!AT698","v":2.7999999999999972},{"$f":"Monthly!AU710-Monthly!AU698","v":7},{"$f":"Monthly!AV710-Monthly!AV698","v":5.5},{"$f":"Monthly!AW710-Monthly!AW698","v":5.5},{"$f":"Monthly!AX710-Monthly!AX698","v":1.7000000000000028},{"$f":"Monthly!AY710-Monthly!AY698","v":9.5},{"$f":"Monthly!AZ710-Monthly!AZ698","v":4.3999999999999986},{"$f":"Monthly!BA710-Monthly!BA698","v":6},{"$f":"(Monthly!BB710/Monthly!BB698)-1","v":6.1224489795918435E-2},{"$f":"(Monthly!BC710/Monthly!BC698)-1","v":3.1643911861965135E-2},null,null,null,null,null,null,null,null,null,{"$f":"(Monthly!BM710/Monthly!BM698)-1","v":4.4726141544720655E-2},{"$f":"(Monthly!BN710/Monthly!BN698)-1","v":4.6715481851908436E-2},null,null,null,null,null,{"$f":"(Monthly!BT710/Monthly!BT698)-1","v":5.9713857917343072E-2},null,null,null,{"$f":"(Monthly!BX710/Monthly!BX698)-1","v":-8.5910652920961894E-3},{"$f":"(Monthly!BY710/Monthly!BY698)-1","v":5.5889939810834122E-2},{"$f":"(Monthly!BZ710/Monthly!BZ698)-1","v":5.7359134282211066E-2},{"$f":"(Monthly!CA710/Monthly!CA698)-1","v":-3.0067451697724956E-2},{"$f":"Monthly!CB710-Monthly!CB698","v":0.45144081201662445},{"$f":"Monthly!CC710-Monthly!CC698","v":3.1440812016626296E-2},{"$f":"(Monthly!CD710/Monthly!CD698)-1","v":0.10373443983402497},{"$f":"(Monthly!CE710/Monthly!CE698)-1","v":4.2402826855123754E-2},null,{"$f":"(Monthly!CG710/Monthly!CG698)-1","v":-9.4339622641509413E-2},{"$f":"(Monthly!CH710/Monthly!CH698)-1","v":1.4598540145985384E-2},null,{"$f":"(Monthly!CJ710/Monthly!CJ698)-1","v":4.2402826855123754E-2},{"$f":"(Monthly!CK710/Monthly!CK698)-1","v":2.9410652141019789E-2},{"$f":"(Monthly!CL710/Monthly!CL698)-1","v":-0.30057426259462283},{"$f":"(Monthly!CM710/Monthly!CM698)-1","v":7.3011734028683106E-2},{"$f":"(Monthly!CN710/Monthly!CN698)-1","v":1.0347370340709983E-2},{"$f":"(Monthly!CO710/Monthly!CO698)-1","v":7.1531800537473877E-2},{"$f":"(Monthly!CP710/Monthly!CP698)-1","v":6.0578803961145011E-2},null,{"$f":"(Monthly!CR710/Monthly!CR698)-1","v":5.7431789102344366E-2},null,null,null,null,null,null,null,{"$f":"(Monthly!CZ710/Monthly!CZ698)-1","v":2.1974986187151435E-2},{"$f":"(Monthly!DA710/Monthly!DA698)-1","v":1.8883079057428143E-2},null,null,null,null,null,null,{"$f":"((Monthly!DH710-Monthly!DH698)*60)","v":6.0000000000000853},{"$f":"((Monthly!DI710-Monthly!DI698)*100)","v":10.000000000000142},{"$f":"((Monthly!DJ710-Monthly!DJ698)*100)","v":-109.99999999999997},{"$f":"((Monthly!DK710-Monthly!DK698)*100)","v":-59.999999999999964},{"$f":"Monthly!DL710-Monthly!DL698","v":41},null,null,null,{"$f":"Monthly!DP710-Monthly!DP698","v":2204},null,null,null,{"$f":"(Monthly!DT710/Monthly!DT698)-1","v":-4.090150250417357E-2},{"$f":"Monthly!DU710-Monthly!DU698","v":-1},{"$f":"(Monthly!DV710/Monthly!DV698)-1","v":1.5294522907337349E-2},{"$f":"(Monthly!DW710/Monthly!DW698)-1","v":1.910739191073918E-2},{"$f":"(Monthly!DX710/Monthly!DX698)-1","v":1.3067953357458695E-2},{"$f":"(Monthly!DY710/Monthly!DY698)-1","v":0},{"$f":"(Monthly!DZ710/Monthly!DZ698)-1","v":1.7326402772224414E-2},{"$f":"(Monthly!EA710/Monthly!EA698)-1","v":2.4211153006548969E-2},{"$f":"(Monthly!EB710/Monthly!EB698)-1","v":3.2467532467532756E-3},{"$f":"(Monthly!EC710/Monthly!EC698)-1","v":3.2786885245901676E-2},null,null,null,null,null,null,null,null,null,null,null,null,null,{"$f":"(Monthly!EQ710/Monthly!EQ698)-1","v":5.3493449781659486E-2},null,null,null,null,null,null,null,{"$f":"((Monthly!EY710-Monthly!EY698)*100)","v":50},{"$f":"((Monthly!EZ710-Monthly!EZ698)*100)","v":53},{"$f":"((Monthly!FA710-Monthly!FA698)*100)","v":25},{"$f":"((Monthly!FB710-Monthly!FB698)*100)","v":-21.999999999999975},"--",{"$f":"((Monthly!FD710-Monthly!FD698)*100)","v":43.999999999999993},{"$f":"((Monthly!FE710-Monthly!FE698)*100)","v":57.000000000000007},{"$f":"((Monthly!FF710-Monthly!FF698)*100)","v":48},{"$f":"((Monthly!FG710-Monthly!FG698)*100)","v":47},{"$f":"((Monthly!FH710-Monthly!FH698)*100)","v":56.000000000000007},{"$f":"((Monthly!FI710-Monthly!FI698)*100)","v":48.999999999999979},null,null,null,null,null,null,{"$f":"(Monthly!FP710/Monthly!FP698)-1","v":4.8291465127164868E-2},{"$f":"(Monthly!FQ710/Monthly!FQ698)-1","v":6.3656299224758461E-2},{"$f":"(Monthly!FR710/Monthly!FR698)-1","v":7.3669155296203881E-2},{"$f":"(Monthly!FS710/Monthly!FS698)-1","v":-5.5702450202714693E-2},{"$f":"(Monthly!FT710/Monthly!FT698)-1","v":4.1229292408277107E-2},{"$f":"(Monthly!FU710/Monthly!FU698)-1","v":5.2631873632440263E-2},{"$f":"(Monthly!FV710/Monthly!FV698)-1","v":9.467362454451389E-2},{"$f":"(Monthly!FW710/Monthly!FW698)-1","v":0.1373801819958842},{"$f":"(Monthly!FX710/Monthly!FX698)-1","v":3.0980861244018776E-3},null,null,null,null,null,{"$f":"(Monthly!GD710/Monthly!GD698)-1","v":0.25300613496932511},{"$f":"(Monthly!GE710/Monthly!GE698)-1","v":0.2580567580567581},{"$f":"(Monthly!GF710/Monthly!GF698)-1","v":0.1407942238267148},{"$f":"(Monthly!GG710/Monthly!GG698)-1","v":0.20027881040892193},{"$f":"(Monthly!GH710/Monthly!GH698)-1","v":0.15202509982886481},{"$f":"(Monthly!GI710/Monthly!GI698)-1","v":4.748603351955305E-2},{"$f":"(Monthly!GJ710/Monthly!GJ698)-1","v":0.58706467661691564},{"$f":"(Monthly!GK710/Monthly!GK698)-1","v":5.6182469958598436E-2},{"$f":"(Monthly!GL710/Monthly!GL698)-1","v":6.970826138325914E-2}]
["2017-05-01",null,null,null,{"$f":"(Monthly!E711/Monthly!E699)-1","v":2.8344995621222724E-2},{"$f":"(Monthly!F711/Monthly!F699)-1","v":6.6297991355199537E-2},{"$f":"(Monthly!G711/Monthly!G699)-1","v":2.14455917394758E-2},{"$f":"(Monthly!H711/Monthly!H699)-1","v":2.4495850539229425E-2},null,null,null,null,null,null,null,null,null,null,null,null,null,null,null,{"$f":"(Monthly!X711-Monthly!X699)","v":0.90000000000000568},{"$f":"(Monthly!Y711/Monthly!Y699)-1","v":2.1148586931409863E-2},null,null,null,null,null,null,null,null,null,null,null,null,null,{"$f":"(Monthly!AM711/Monthly!AM699)-1","v":2.1978449752421136E-2},{"$f":"(Monthly!AN711/Monthly!AN699)-1","v":1.6612064094343904E-2},{"$f":"(Monthly!AO711/Monthly!AO699)-1","v":2.4274193947996237E-2},{"$f":"((Monthly!AP711-Monthly!AP699)*100)","v":-3.9999999999999813},{"$f":"Monthly!AQ711-Monthly!AQ699","v":3.6000000000000014},{"$f":"Monthly!AR711-Monthly!AR699","v":8},{"$f":"Monthly!AS711-Monthly!AS699","v":-0.5},{"$f":"Monthly!AT711-Monthly!AT699","v":4.2999999999999972},{"$f":"Monthly!AU711-Monthly!AU699","v":5},{"$f":"Monthly!AV711-Monthly!AV699","v":3.5},{"$f":"Monthly!AW711-Monthly!AW699","v":6.5},{"$f":"Monthly!AX711-Monthly!AX699","v":3.7999999999999972},{"$f":"Monthly!AY711-Monthly!AY699","v":-3},{"$f":"Monthly!AZ711-Monthly!AZ699","v":4.5},{"$f":"Monthly!BA711-Monthly!BA699","v":-1},{"$f":"(Monthly!BB711/Monthly!BB699)-1","v":0.10163339382940118},{"$f":"(Monthly!BC711/Monthly!BC699)-1","v":6.108642635218664E-2},null,null,null,null,null,null,null,null,null,{"$f":"(Monthly!BM711/Monthly!BM699)-1","v":4.1704607539610361E-2},{"$f":"(Monthly!BN711/Monthly!BN699)-1","v":4.3146436086926254E-2},null,null,null,null,null,{"$f":"(Monthly!BT711/Monthly!BT699)-1","v":5.6133053251698595E-2},null,null,null,{"$f":"(Monthly!BX711/Monthly!BX699)-1","v":8.936550491510209E-3},{"$f":"(Monthly!BY711/Monthly!BY699)-1","v":-8.4889643463497144E-3},{"$f":"(Monthly!BZ711/Monthly!BZ699)-1","v":5.7535560172606637E-2},{"$f":"(Monthly!CA711/Monthly!CA699)-1","v":-3.0253759944254166E-2},{"$f":"Monthly!CB711-Monthly!CB699","v":0.43021745453690752},{"$f":"Monthly!CC711-Monthly!CC699","v":0.15021745453690727},{"$f":"(Monthly!CD711/Monthly!CD699)-1","v":0.12448132780082988},{"$f":"(Monthly!CE711/Monthly!CE699)-1","v":8.2142857142857073E-2},null,{"$f":"(Monthly!CG711/Monthly!CG699)-1","v":-7.9439252336448551E-2},{"$f":"(Monthly!CH711/Monthly!CH699)-1","v":2.7422303473491727E-2},null,{"$f":"(Monthly!CJ711/Monthly!CJ699)-1","v":8.2142857142857073E-2},{"$f":"(Monthly!CK711/Monthly!CK699)-1","v":2.9688531288304842E-2},{"$f":"(Monthly!CL711/Monthly!CL699)-1","v":-0.25053304904051177},{"$f":"(Monthly!CM711/Monthly!CM699)-1","v":8.6065573770491843E-2},{"$f":"(Monthly!CN711/Monthly!CN699)-1","v":1.4152437672252827E-2},{"$f":"(Monthly!CO711/Monthly!CO699)-1","v":6.5412111767994441E-2},{"$f":"(Monthly!CP711/Monthly!CP699)-1","v":5.9652734410192032E-2},null,{"$f":"(Monthly!CR711/Monthly!CR699)-1","v":5.9905350968779247E-2},null,null,null,null,null,null,null,{"$f":"(Monthly!CZ711/Monthly!CZ699)-1","v":1.8733132243213158E-2},{"$f":"(Monthly!DA711/Monthly!DA699)-1","v":1.7419219029575883E-2},null,null,null,null,null,null,{"$f":"((Monthly!DH711-Monthly!DH699)*60)","v":6.0000000000000853},{"$f":"((Monthly!DI711-Monthly!DI699)*100)","v":10.000000000000142},{"$f":"((Monthly!DJ711-Monthly!DJ699)*100)","v":-129.99999999999989},{"$f":"((Monthly!DK711-Monthly!DK699)*100)","v":-40.000000000000036},{"$f":"Monthly!DL711-Monthly!DL699","v":62},null,null,null,{"$f":"Monthly!DP711-Monthly!DP699","v":2306},null,null,null,{"$f":"(Monthly!DT711/Monthly!DT699)-1","v":-5.4954204829308906E-2},{"$f":"Monthly!DU711-Monthly!DU699","v":-0.19999999999999929},{"$f":"(Monthly!DV711/Monthly!DV699)-1","v":1.5030336458907945E-2},{"$f":"(Monthly!DW711/Monthly!DW699)-1","v":1.5326199516741523E-2},{"$f":"(Monthly!DX711/Monthly!DX699)-1","v":1.0416666666666741E-2},{"$f":"(Monthly!DY711/Monthly!DY699)-1","v":0},{"$f":"(Monthly!DZ711/Monthly!DZ699)-1","v":1.3809587040233717E-2},{"$f":"(Monthly!EA711/Monthly!EA699)-1","v":1.7585457419482253E-2},{"$f":"(Monthly!EB711/Monthly!EB699)-1","v":6.0728744939271273E-3},{"$f":"(Monthly!EC711/Monthly!EC699)-1","v":2.6216396356365079E-2},null,null,null,null,null,null,null,null,null,null,null,null,null,{"$f":"(Monthly!EQ711/Monthly!EQ699)-1","v":4.0474905558553598E-2},null,null,null,null,null,null,null,{"$f":"((Monthly!EY711-Monthly!EY699)*100)","v":50},{"$f":"((Monthly!EZ711-Monthly!EZ699)*100)","v":54},{"$f":"((Monthly!FA711-Monthly!FA699)*100)","v":20.000000000000018},{"$f":"((Monthly!FB711-Monthly!FB699)*100)","v":-12.999999999999989},"--",{"$f":"((Monthly!FD711-Monthly!FD699)*100)","v":40.999999999999972},{"$f":"((Monthly!FE711-Monthly!FE699)*100)","v":62},{"$f":"((Monthly!FF711-Monthly!FF699)*100)","v":53.000000000000014},{"$f":"((Monthly!FG711-Monthly!FG699)*100)","v":48.000000000000007},{"$f":"((Monthly!FH711-Monthly!FH699)*100)","v":54},{"$f":"((Monthly!FI711-Monthly!FI699)*100)","v":48.999999999999979},null,null,null,null,null,null,{"$f":"(Monthly!FP711/Monthly!FP699)-1","v":5.1062186172267321E-2},{"$f":"(Monthly!FQ711/Monthly!FQ699)-1","v":5.4919627944038263E-2},{"$f":"(Monthly!FR711/Monthly!FR699)-1","v":3.4770621967357807E-2},{"$f":"(Monthly!FS711/Monthly!FS699)-1","v":-2.3161244695898198E-2},{"$f":"(Monthly!FT711/Monthly!FT699)-1","v":2.6377193956438116E-2},{"$f":"(Monthly!FU711/Monthly!FU699)-1","v":3.9575579184061738E-2},{"$f":"(Monthly!FV711/Monthly!FV699)-1","v":0.14318896202004061},{"$f":"(Monthly!FW711/Monthly!FW699)-1","v":0.11380343986890651},{"$f":"(Monthly!FX711/Monthly!FX699)-1","v":9.3918736636964262E-2},null,null,null,null,null,{"$f":"(Monthly!GD711/Monthly!GD699)-1","v":3.789338471419379E-2},{"$f":"(Monthly!GE711/Monthly!GE699)-1","v":7.680787334189132E-2},{"$f":"(Monthly!GF711/Monthly!GF699)-1","v":5.5672711935892183E-2},{"$f":"(Monthly!GG711/Monthly!GG699)-1","v":0.10583153347732188},{"$f":"(Monthly!GH711/Monthly!GH699)-1","v":0.14285714285714279},{"$f":"(Monthly!GI711/Monthly!GI699)-1","v":0.19285042333019753},{"$f":"(Monthly!GJ711/Monthly!GJ699)-1","v":0.55769230769230771},{"$f":"(Monthly!GK711/Monthly!GK699)-1","v":2.9713934174100176E-2},{"$f":"(Monthly!GL711/Monthly!GL699)-1","v":0.10382261231089029}]
["2017-06-01",null,null,null,{"$f":"(Monthly!E712/Monthly!E700)-1","v":2.5597608701286356E-2},{"$f":"(Monthly!F712/Monthly!F700)-1","v":6.05679027891457E-2},{"$f":"(Monthly!G712/Monthly!G700)-1","v":1.6629711751662946E-2},{"$f":"(Monthly!H712/Monthly!H700)-1","v":2.2838412237338401E-2},null,null,null,null,null,null,null,null,null,null,null,null,null,null,null,{"$f":"(Monthly!X712-Monthly!X700)","v":0.79999999999999716},{"$f":"(Monthly!Y712/Monthly!Y700)-1","v":2.0711887960220388E-2},null,null,null,null,null,null,null,null,null,null,null,null,null,{"$f":"(Monthly!AM712/Monthly!AM700)-1","v":2.0576989650414212E-2},{"$f":"(Monthly!AN712/Monthly!AN700)-1","v":1.5662993051864804E-2},{"$f":"(Monthly!AO712/Monthly!AO700)-1","v":2.7724650150220409E-2},{"$f":"((Monthly!AP712-Monthly!AP700)*100)","v":-2.0000000000000018},{"$f":"Monthly!AQ712-Monthly!AQ700","v":4.5999999999999943},{"$f":"Monthly!AR712-Monthly!AR700","v":4.5},{"$f":"Monthly!AS712-Monthly!AS700","v":-0.5},{"$f":"Monthly!AT712-Monthly!AT700","v":6.8000000000000043},{"$f":"Monthly!AU712-Monthly!AU700","v":6},{"$f":"Monthly!AV712-Monthly!AV700","v":2},{"$f":"Monthly!AW712-Monthly!AW700","v":0.5},{"$f":"Monthly!AX712-Monthly!AX700","v":6.5},{"$f":"Monthly!AY712-Monthly!AY700","v":-5.5},{"$f":"Monthly!AZ712-Monthly!AZ700","v":7.6999999999999957},{"$f":"Monthly!BA712-Monthly!BA700","v":1.6000000000000014},{"$f":"(Monthly!BB712/Monthly!BB700)-1","v":2.1848739495798242E-2},{"$f":"(Monthly!BC712/Monthly!BC700)-1","v":5.6782229326939104E-2},null,null,null,null,null,null,null,null,null,{"$f":"(Monthly!BM712/Monthly!BM700)-1","v":3.0234734444581912E-2},{"$f":"(Monthly!BN712/Monthly!BN700)-1","v":3.0684451896050069E-2},null,null,null,null,null,{"$f":"(Monthly!BT712/Monthly!BT700)-1","v":4.7186323410243647E-2},null,null,null,{"$f":"(Monthly!BX712/Monthly!BX700)-1","v":2.268907563025202E-2},{"$f":"(Monthly!BY712/Monthly!BY700)-1","v":6.8734283319362932E-2},{"$f":"(Monthly!BZ712/Monthly!BZ700)-1","v":5.6864726847172697E-2},{"$f":"(Monthly!CA712/Monthly!CA700)-1","v":-2.2598870056497189E-2},{"$f":"Monthly!CB712-Monthly!CB700","v":0.12552508124180672},{"$f":"Monthly!CC712-Monthly!CC700","v":-0.22447491875819381},{"$f":"(Monthly!CD712/Monthly!CD700)-1","v":0.11934156378600824},{"$f":"(Monthly!CE712/Monthly!CE700)-1","v":0.10733452593917714},null,{"$f":"(Monthly!CG712/Monthly!CG700)-1","v":-8.0568720379146974E-2},{"$f":"(Monthly!CH712/Monthly!CH700)-1","v":5.4744525547445466E-3},null,{"$f":"(Monthly!CJ712/Monthly!CJ700)-1","v":0.10733452593917714},{"$f":"(Monthly!CK712/Monthly!CK700)-1","v":2.6559651134377305E-2},{"$f":"(Monthly!CL712/Monthly!CL700)-1","v":-0.25093893448323823},{"$f":"(Monthly!CM712/Monthly!CM700)-1","v":0.11298701298701297},{"$f":"(Monthly!CN712/Monthly!CN700)-1","v":1.2576129083287091E-2},{"$f":"(Monthly!CO712/Monthly!CO700)-1","v":5.8638521432862634E-2},{"$f":"(Monthly!CP712/Monthly!CP700)-1","v":5.848737086926814E-2},null,{"$f":"(Monthly!CR712/Monthly!CR700)-1","v":5.5751593269869781E-2},null,null,null,null,null,null,null,{"$f":"(Monthly!CZ712/Monthly!CZ700)-1","v":1.6460836717505645E-2},{"$f":"(Monthly!DA712/Monthly!DA700)-1","v":1.7130915279175651E-2},null,null,null,null,null,null,{"$f":"((Monthly!DH712-Monthly!DH700)*60)","v":6.0000000000000853},{"$f":"((Monthly!DI712-Monthly!DI700)*100)","v":9.9999999999994316},{"$f":"((Monthly!DJ712-Monthly!DJ700)*100)","v":-100},{"$f":"((Monthly!DK712-Monthly!DK700)*100)","v":-50},{"$f":"Monthly!DL712-Monthly!DL700","v":71},null,null,null,{"$f":"Monthly!DP712-Monthly!DP700","v":2219},null,null,null,{"$f":"(Monthly!DT712/Monthly!DT700)-1","v":-5.0496688741721862E-2},{"$f":"Monthly!DU712-Monthly!DU700","v":-0.59999999999999964},{"$f":"(Monthly!DV712/Monthly!DV700)-1","v":1.7989344772711524E-2},{"$f":"(Monthly!DW712/Monthly!DW700)-1","v":1.6065080667213572E-2},{"$f":"(Monthly!DX712/Monthly!DX700)-1","v":1.1001100110010986E-2},{"$f":"(Monthly!DY712/Monthly!DY700)-1","v":-2.4330900243308973E-3},{"$f":"(Monthly!DZ712/Monthly!DZ700)-1","v":1.5398911456259157E-2},{"$f":"(Monthly!EA712/Monthly!EA700)-1","v":1.9169960474308301E-2},{"$f":"(Monthly!EB712/Monthly!EB700)-1","v":7.6829761423371501E-3},{"$f":"(Monthly!EC712/Monthly!EC700)-1","v":2.7003672499460007E-2},null,null,null,null,null,null,null,null,null,null,null,null,null,{"$f":"(Monthly!EQ712/Monthly!EQ700)-1","v":3.2515991471215422E-2},null,null,null,null,null,null,null,{"$f":"((Monthly!EY712-Monthly!EY700)*100)","v":62.999999999999986},{"$f":"((Monthly!EZ712-Monthly!EZ700)*100)","v":66},{"$f":"((Monthly!FA712-Monthly!FA700)*100)","v":18.000000000000014},{"$f":"((Monthly!FB712-Monthly!FB700)*100)","v":-16.000000000000014},"--",{"$f":"((Monthly!FD712-Monthly!FD700)*100)","v":33.000000000000007},{"$f":"((Monthly!FE712-Monthly!FE700)*100)","v":71},{"$f":"((Monthly!FF712-Monthly!FF700)*100)","v":64.999999999999986},{"$f":"((Monthly!FG712-Monthly!FG700)*100)","v":61.000000000000007},{"$f":"((Monthly!FH712-Monthly!FH700)*100)","v":60.000000000000007},{"$f":"((Monthly!FI712-Monthly!FI700)*100)","v":55.000000000000007},null,null,null,null,null,null,{"$f":"(Monthly!FP712/Monthly!FP700)-1","v":3.1099736311462456E-2},{"$f":"(Monthly!FQ712/Monthly!FQ700)-1","v":3.2993383111758812E-2},{"$f":"(Monthly!FR712/Monthly!FR700)-1","v":-2.8117595342503909E-2},{"$f":"(Monthly!FS712/Monthly!FS700)-1","v":8.9031339031375722E-5},{"$f":"(Monthly!FT712/Monthly!FT700)-1","v":9.3950046314565938E-3},{"$f":"(Monthly!FU712/Monthly!FU700)-1","v":2.5200142104804479E-2},{"$f":"(Monthly!FV712/Monthly!FV700)-1","v":6.7304637046023741E-2},{"$f":"(Monthly!FW712/Monthly!FW700)-1","v":9.6889734984256792E-2},{"$f":"(Monthly!FX712/Monthly!FX700)-1","v":9.7103877164860686E-2},null,null,null,null,null,{"$f":"(Monthly!GD712/Monthly!GD700)-1","v":-7.3420836751435625E-2},{"$f":"(Monthly!GE712/Monthly!GE700)-1","v":-3.8963730569948285E-2},{"$f":"(Monthly!GF712/Monthly!GF700)-1","v":-2.8374543980543843E-3},{"$f":"(Monthly!GG712/Monthly!GG700)-1","v":3.6318613289310742E-2},{"$f":"(Monthly!GH712/Monthly!GH700)-1","v":5.373201438848918E-2},{"$f":"(Monthly!GI712/Monthly!GI700)-1","v":2.1021021021021102E-2},{"$f":"(Monthly!GJ712/Monthly!GJ700)-1","v":0.1368821292775666},{"$f":"(Monthly!GK712/Monthly!GK700)-1","v":4.9316680834368798E-2},{"$f":"(Monthly!GL712/Monthly!GL700)-1","v":4.5914732865623309E-2}]
["2017-07-01",null,null,null,{"$f":"(Monthly!E713/Monthly!E701)-1","v":2.6608361149205173E-2},{"$f":"(Monthly!F713/Monthly!F701)-1","v":5.8127285121150063E-2},{"$f":"(Monthly!G713/Monthly!G701)-1","v":2.3228988504832682E-2},{"$f":"(Monthly!H713/Monthly!H701)-1","v":2.2650749923477154E-2},null,null,null,null,null,null,null,null,null,null,null,null,null,null,null,{"$f":"(Monthly!X713-Monthly!X701)","v":0.59999999999999432},{"$f":"(Monthly!Y713/Monthly!Y701)-1","v":1.8739882122833285E-2},null,null,null,null,null,null,null,null,null,null,null,null,null,{"$f":"(Monthly!AM713/Monthly!AM701)-1","v":1.8276974886962005E-2},{"$f":"(Monthly!AN713/Monthly!AN701)-1","v":1.1236140828632779E-2},{"$f":"(Monthly!AO713/Monthly!AO701)-1","v":3.1156963372428015E-2},{"$f":"((Monthly!AP713-Monthly!AP701)*100)","v":-2.0000000000000018},{"$f":"Monthly!AQ713-Monthly!AQ701","v":3.6999999999999957},{"$f":"Monthly!AR713-Monthly!AR701","v":7},{"$f":"Monthly!AS713-Monthly!AS701","v":-2},{"$f":"Monthly!AT713-Monthly!AT701","v":5.8000000000000043},{"$f":"Monthly!AU713-Monthly!AU701","v":5},{"$f":"Monthly!AV713-Monthly!AV701","v":4},{"$f":"Monthly!AW713-Monthly!AW701","v":0.5},{"$f":"Monthly!AX713-Monthly!AX701","v":3.5},{"$f":"Monthly!AY713-Monthly!AY701","v":7},{"$f":"Monthly!AZ713-Monthly!AZ701","v":5.2000000000000028},{"$f":"Monthly!BA713-Monthly!BA701","v":3.6000000000000014},{"$f":"(Monthly!BB713/Monthly!BB701)-1","v":-5.7335581787521073E-2},{"$f":"(Monthly!BC713/Monthly!BC701)-1","v":4.2218798151001602E-2},null,null,null,null,null,null,null,null,null,{"$f":"(Monthly!BM713/Monthly!BM701)-1","v":3.6994501287673121E-2},{"$f":"(Monthly!BN713/Monthly!BN701)-1","v":3.8097002482492925E-2},null,null,null,null,null,{"$f":"(Monthly!BT713/Monthly!BT701)-1","v":4.022771392468294E-2},null,null,null,{"$f":"(Monthly!BX713/Monthly!BX701)-1","v":-3.107113654946847E-2},{"$f":"(Monthly!BY713/Monthly!BY701)-1","v":4.6808510638297829E-2},{"$f":"(Monthly!BZ713/Monthly!BZ701)-1","v":5.8789166224110456E-2},{"$f":"(Monthly!CA713/Monthly!CA701)-1","v":-5.977128049123992E-2},{"$f":"Monthly!CB713-Monthly!CB701","v":0.27987917406053775},{"$f":"Monthly!CC713-Monthly!CC701","v":-0.14012082593946218},{"$f":"(Monthly!CD713/Monthly!CD701)-1","v":0.1561181434599157},{"$f":"(Monthly!CE713/Monthly!CE701)-1","v":-7.1770334928229707E-2},null,{"$f":"(Monthly!CG713/Monthly!CG701)-1","v":-9.0047393364928952E-2},{"$f":"(Monthly!CH713/Monthly!CH701)-1","v":2.063789868667909E-2},null,{"$f":"(Monthly!CJ713/Monthly!CJ701)-1","v":-7.1770334928229707E-2},{"$f":"(Monthly!CK713/Monthly!CK701)-1","v":2.624250749250745E-2},{"$f":"(Monthly!CL713/Monthly!CL701)-1","v":-0.2742092796433051},{"$f":"(Monthly!CM713/Monthly!CM701)-1","v":8.9378238341969007E-2},{"$f":"(Monthly!CN713/Monthly!CN701)-1","v":1.1584475066134914E-2},{"$f":"(Monthly!CO713/Monthly!CO701)-1","v":5.34332434609055E-2},{"$f":"(Monthly!CP713/Monthly!CP701)-1","v":5.8457103760718221E-2},null,{"$f":"(Monthly!CR713/Monthly!CR701)-1","v":5.4394070626124114E-2},null,null,null,null,null,null,null,{"$f":"(Monthly!CZ713/Monthly!CZ701)-1","v":1.7299018749635353E-2},{"$f":"(Monthly!DA713/Monthly!DA701)-1","v":1.6991986435477502E-2},null,null,null,null,null,null,{"$f":"((Monthly!DH713-Monthly!DH701)*60)","v":0},{"$f":"((Monthly!DI713-Monthly!DI701)*100)","v":10.000000000000142},{"$f":"((Monthly!DJ713-Monthly!DJ701)*100)","v":-109.99999999999997},{"$f":"((Monthly!DK713-Monthly!DK701)*100)","v":-60.000000000000057},{"$f":"Monthly!DL713-Monthly!DL701","v":48},null,null,null,{"$f":"Monthly!DP713-Monthly!DP701","v":2066},null,null,null,{"$f":"(Monthly!DT713/Monthly!DT701)-1","v":-4.1528239202657802E-2},{"$f":"Monthly!DU713-Monthly!DU701","v":-0.90000000000000036},{"$f":"(Monthly!DV713/Monthly!DV701)-1","v":1.691404901622362E-2},{"$f":"(Monthly!DW713/Monthly!DW701)-1","v":1.6637119869085115E-2},{"$f":"(Monthly!DX713/Monthly!DX701)-1","v":1.1791745777955276E-2},{"$f":"(Monthly!DY713/Monthly!DY701)-1","v":-4.8681541582149546E-3},{"$f":"(Monthly!DZ713/Monthly!DZ701)-1","v":1.7236807212940963E-2},{"$f":"(Monthly!EA713/Monthly!EA701)-1","v":2.4332344213649826E-2},{"$f":"(Monthly!EB713/Monthly!EB701)-1","v":2.8146361077603377E-3},{"$f":"(Monthly!EC713/Monthly!EC701)-1","v":2.7044430135222175E-2},null,null,null,null,null,null,null,null,null,null,null,null,null,{"$f":"(Monthly!EQ713/Monthly!EQ701)-1","v":3.0367607884922876E-2},null,null,null,null,null,null,null,{"$f":"((Monthly!EY713-Monthly!EY701)*100)","v":75},{"$f":"((Monthly!EZ713-Monthly!EZ701)*100)","v":75.999999999999986},{"$f":"((Monthly!FA713-Monthly!FA701)*100)","v":42.000000000000036},{"$f":"((Monthly!FB713-Monthly!FB701)*100)","v":16.999999999999993},"--",{"$f":"((Monthly!FD713-Monthly!FD701)*100)","v":53.000000000000028},{"$f":"((Monthly!FE713-Monthly!FE701)*100)","v":77},{"$f":"((Monthly!FF713-Monthly!FF701)*100)","v":71},{"$f":"((Monthly!FG713-Monthly!FG701)*100)","v":70},{"$f":"((Monthly!FH713-Monthly!FH701)*100)","v":80},{"$f":"((Monthly!FI713-Monthly!FI701)*100)","v":81.999999999999986},null,null,null,null,null,null,{"$f":"(Monthly!FP713/Monthly!FP701)-1","v":-2.7735212994177139E-2},{"$f":"(Monthly!FQ713/Monthly!FQ701)-1","v":1.3823366431534589E-2},{"$f":"(Monthly!FR713/Monthly!FR701)-1","v":-4.337245843517501E-2},{"$f":"(Monthly!FS713/Monthly!FS701)-1","v":4.2966983265490866E-2},{"$f":"(Monthly!FT713/Monthly!FT701)-1","v":-1.1207175740879705E-2},{"$f":"(Monthly!FU713/Monthly!FU701)-1","v":-1.4934929208699432E-2},{"$f":"(Monthly!FV713/Monthly!FV701)-1","v":5.7763751293804733E-2},{"$f":"(Monthly!FW713/Monthly!FW701)-1","v":0.10490905128504013},{"$f":"(Monthly!FX713/Monthly!FX701)-1","v":7.1220071584946476E-2},null,null,null,null,null,{"$f":"(Monthly!GD713/Monthly!GD701)-1","v":5.1153415453527584E-2},{"$f":"(Monthly!GE713/Monthly!GE701)-1","v":7.8531701890989902E-2},{"$f":"(Monthly!GF713/Monthly!GF701)-1","v":2.942430703624721E-2},{"$f":"(Monthly!GG713/Monthly!GG701)-1","v":3.7837837837837895E-2},{"$f":"(Monthly!GH713/Monthly!GH701)-1","v":9.7064989517819722E-2},{"$f":"(Monthly!GI713/Monthly!GI701)-1","v":0.13758647194465801},{"$f":"(Monthly!GJ713/Monthly!GJ701)-1","v":7.2463768115942129E-2},{"$f":"(Monthly!GK713/Monthly!GK701)-1","v":0.12769978401727866},{"$f":"(Monthly!GL713/Monthly!GL701)-1","v":2.5425916365513723E-2}]
["2017-08-01",null,null,null,{"$f":"(Monthly!E714/Monthly!E702)-1","v":2.4982764563943327E-2},{"$f":"(Monthly!F714/Monthly!F702)-1","v":5.4411120155281489E-2},{"$f":"(Monthly!G714/Monthly!G702)-1","v":2.4461917242474929E-2},{"$f":"(Monthly!H714/Monthly!H702)-1","v":2.0458286867399478E-2},null,null,null,null,null,null,null,null,null,null,null,null,null,null,null,{"$f":"(Monthly!X714-Monthly!X702)","v":0},{"$f":"(Monthly!Y714/Monthly!Y702)-1","v":2.351407695665797E-2},null,null,null,null,null,null,null,null,null,null,null,null,null,{"$f":"(Monthly!AM714/Monthly!AM702)-1","v":1.1579713784066969E-2},{"$f":"(Monthly!AN714/Monthly!AN702)-1","v":1.2818247922268711E-2},{"$f":"(Monthly!AO714/Monthly!AO702)-1","v":3.6291640974214001E-2},{"$f":"((Monthly!AP714-Monthly!AP702)*100)","v":-2.0000000000000018},{"$f":"Monthly!AQ714-Monthly!AQ702","v":9.3999999999999986},{"$f":"Monthly!AR714-Monthly!AR702","v":12},{"$f":"Monthly!AS714-Monthly!AS702","v":-8.5},{"$f":"Monthly!AT714-Monthly!AT702","v":11.600000000000001},{"$f":"Monthly!AU714-Monthly!AU702","v":3},{"$f":"Monthly!AV714-Monthly!AV702","v":7.5},{"$f":"Monthly!AW714-Monthly!AW702","v":6.5},{"$f":"Monthly!AX714-Monthly!AX702","v":11.199999999999996},{"$f":"Monthly!AY714-Monthly!AY702","v":9},{"$f":"Monthly!AZ714-Monthly!AZ702","v":11.399999999999999},{"$f":"Monthly!BA714-Monthly!BA702","v":6.2000000000000028},{"$f":"(Monthly!BB714/Monthly!BB702)-1","v":0.11003861003861015},{"$f":"(Monthly!BC714/Monthly!BC702)-1","v":4.1278018655104498E-2},null,null,null,null,null,null,null,null,null,{"$f":"(Monthly!BM714/Monthly!BM702)-1","v":3.5378250231422159E-2},{"$f":"(Monthly!BN714/Monthly!BN702)-1","v":3.7014351798111633E-2},null,null,null,null,null,{"$f":"(Monthly!BT714/Monthly!BT702)-1","v":3.7730601594448743E-2},null,null,null,{"$f":"(Monthly!BX714/Monthly!BX702)-1","v":1.632302405498276E-2},{"$f":"(Monthly!BY714/Monthly!BY702)-1","v":6.0000000000000053E-2},null,{"$f":"(Monthly!CA714/Monthly!CA702)-1","v":-6.4565090484529963E-2},{"$f":"Monthly!CB714-Monthly!CB702","v":0.34656664163995643},{"$f":"Monthly!CC714-Monthly!CC702","v":-3.4333583600432149E-3},{"$f":"(Monthly!CD714/Monthly!CD702)-1","v":0.15767634854771795},{"$f":"(Monthly!CE714/Monthly!CE702)-1","v":-1.0582010582010581E-2},null,{"$f":"(Monthly!CG714/Monthly!CG702)-1","v":-6.9651741293532354E-2},{"$f":"(Monthly!CH714/Monthly!CH702)-1","v":1.8726591760298561E-3},null,{"$f":"(Monthly!CJ714/Monthly!CJ702)-1","v":-1.0582010582010581E-2},{"$f":"(Monthly!CK714/Monthly!CK702)-1","v":2.7507535242469405E-2},{"$f":"(Monthly!CL714/Monthly!CL702)-1","v":-0.24390951276102091},{"$f":"(Monthly!CM714/Monthly!CM702)-1","v":0.19532324621733155},{"$f":"(Monthly!CN714/Monthly!CN702)-1","v":1.1940534556381444E-2},{"$f":"(Monthly!CO714/Monthly!CO702)-1","v":4.8896797980855222E-2},{"$f":"(Monthly!CP714/Monthly!CP702)-1","v":5.4908030982210088E-2},null,{"$f":"(Monthly!CR714/Monthly!CR702)-1","v":5.4229946590041544E-2},null,null,null,null,null,null,null,{"$f":"(Monthly!CZ714/Monthly!CZ702)-1","v":1.9306207854768775E-2},{"$f":"(Monthly!DA714/Monthly!DA702)-1","v":1.6867256423368504E-2},null,null,null,null,null,null,{"$f":"((Monthly!DH714-Monthly!DH702)*60)","v":0},{"$f":"((Monthly!DI714-Monthly!DI702)*100)","v":10.000000000000142},{"$f":"((Monthly!DJ714-Monthly!DJ702)*100)","v":-109.99999999999997},{"$f":"((Monthly!DK714-Monthly!DK702)*100)","v":-50},{"$f":"Monthly!DL714-Monthly!DL702","v":106},null,null,null,{"$f":"Monthly!DP714-Monthly!DP702","v":2059},null,null,null,{"$f":"(Monthly!DT714/Monthly!DT702)-1","v":-3.2258064516129004E-2},{"$f":"Monthly!DU714-Monthly!DU702","v":-0.40000000000000036},{"$f":"(Monthly!DV714/Monthly!DV702)-1","v":1.3990351481736774E-2},{"$f":"(Monthly!DW714/Monthly!DW702)-1","v":1.3047910295616694E-2},{"$f":"(Monthly!DX714/Monthly!DX702)-1","v":1.085116973618705E-2},{"$f":"(Monthly!DY714/Monthly!DY702)-1","v":8.0938891137205538E-4},{"$f":"(Monthly!DZ714/Monthly!DZ702)-1","v":1.4127277528386717E-2},{"$f":"(Monthly!EA714/Monthly!EA702)-1","v":2.1284982262514962E-2},{"$f":"(Monthly!EB714/Monthly!EB702)-1","v":-3.9999999999995595E-4},{"$f":"(Monthly!EC714/Monthly!EC702)-1","v":1.7773019271948742E-2},null,null,null,null,null,null,null,null,null,null,null,null,null,{"$f":"(Monthly!EQ714/Monthly!EQ702)-1","v":3.8049303322615247E-2},null,null,null,null,null,null,null,{"$f":"((Monthly!EY714-Monthly!EY702)*100)","v":75},{"$f":"((Monthly!EZ714-Monthly!EZ702)*100)","v":75.999999999999986},null,null,null,{"$f":"((Monthly!FD714-Monthly!FD702)*100)","v":43.999999999999993},{"$f":"((Monthly!FE714-Monthly!FE702)*100)","v":71},{"$f":"((Monthly!FF714-Monthly!FF702)*100)","v":66},{"$f":"((Monthly!FG714-Monthly!FG702)*100)","v":60.000000000000007},{"$f":"((Monthly!FH714-Monthly!FH702)*100)","v":65.000000000000014},{"$f":"((Monthly!FI714-Monthly!FI702)*100)","v":64.999999999999986},null,null,null,null,null,null,{"$f":"(Monthly!FP714/Monthly!FP702)-1","v":-3.0004616094783887E-2},{"$f":"(Monthly!FQ714/Monthly!FQ702)-1","v":3.0692384076067558E-3},{"$f":"(Monthly!FR714/Monthly!FR702)-1","v":-3.666193935326012E-2},{"$f":"(Monthly!FS714/Monthly!FS702)-1","v":5.4073347015258344E-2},{"$f":"(Monthly!FT714/Monthly!FT702)-1","v":-1.292956140445245E-2},{"$f":"(Monthly!FU714/Monthly!FU702)-1","v":-1.8413955605716015E-2},{"$f":"(Monthly!FV714/Monthly!FV702)-1","v":3.1954863909727793E-2},{"$f":"(Monthly!FW714/Monthly!FW702)-1","v":5.9895628518952027E-2},{"$f":"(Monthly!FX714/Monthly!FX702)-1","v":5.8114742875026826E-2},null,null,null,null,null,{"$f":"(Monthly!GD714/Monthly!GD702)-1","v":7.5432319618366162E-2},{"$f":"(Monthly!GE714/Monthly!GE702)-1","v":0.12783595113438051},{"$f":"(Monthly!GF714/Monthly!GF702)-1","v":9.1943957968476653E-2},{"$f":"(Monthly!GG714/Monthly!GG702)-1","v":0.1037856231390899},{"$f":"(Monthly!GH714/Monthly!GH702)-1","v":0.15824346232466335},null,{"$f":"(Monthly!GJ714/Monthly!GJ702)-1","v":6.9852941176470562E-2},{"$f":"(Monthly!GK714/Monthly!GK702)-1","v":0.11067561283465088},{"$f":"(Monthly!GL714/Monthly!GL702)-1","v":4.5629854962246696E-2}]
["2017-09-01",null,null,null,{"$f":"(Monthly!E715/Monthly!E703)-1","v":2.6895326990554524E-2},{"$f":"(Monthly!F715/Monthly!F703)-1","v":7.2681395778201763E-2},{"$f":"(Monthly!G715/Monthly!G703)-1","v":2.6493218053462275E-2},{"$f":"(Monthly!H715/Monthly!H703)-1","v":1.9806041040974831E-2},null,null,null,null,null,null,null,null,null,null,null,null,null,null,null,{"$f":"(Monthly!X715-Monthly!X703)","v":0.40000000000000568},{"$f":"(Monthly!Y715/Monthly!Y703)-1","v":1.9936516061227261E-2},null,null,null,null,null,null,null,null,null,null,null,null,null,{"$f":"(Monthly!AM715/Monthly!AM703)-1","v":1.5990903953595481E-2},{"$f":"(Monthly!AN715/Monthly!AN703)-1","v":1.1484369903044023E-2},null,null,{"$f":"Monthly!AQ715-Monthly!AQ703","v":9.2999999999999972},{"$f":"Monthly!AR715-Monthly!AR703","v":8.5},{"$f":"Monthly!AS715-Monthly!AS703","v":-11},{"$f":"Monthly!AT715-Monthly!AT703","v":10.599999999999994},{"$f":"Monthly!AU715-Monthly!AU703","v":5},{"$f":"Monthly!AV715-Monthly!AV703","v":5},{"$f":"Monthly!AW715-Monthly!AW703","v":3},{"$f":"Monthly!AX715-Monthly!AX703","v":9.4999999999999929},{"$f":"Monthly!AY715-Monthly!AY703","v":18.5},{"$f":"Monthly!AZ715-Monthly!AZ703","v":9.4000000000000057},{"$f":"Monthly!BA715-Monthly!BA703","v":14.100000000000009},{"$f":"(Monthly!BB715/Monthly!BB703)-1","v":1.6583747927031434E-2},{"$f":"(Monthly!BC715/Monthly!BC703)-1","v":7.7615794462785548E-2},null,null,null,null,null,null,null,null,null,{"$f":"(Monthly!BM715/Monthly!BM703)-1","v":4.4441566570617708E-2},{"$f":"(Monthly!BN715/Monthly!BN703)-1","v":4.6860514737260273E-2},null,null,null,null,null,{"$f":"(Monthly!BT715/Monthly!BT703)-1","v":4.1334196739986506E-2},null,null,null,{"$f":"(Monthly!BX715/Monthly!BX703)-1","v":6.1205273069679933E-2},{"$f":"(Monthly!BY715/Monthly!BY703)-1","v":-3.543307086614178E-2},null,{"$f":"(Monthly!CA715/Monthly!CA703)-1","v":4.6402266288952054E-2},{"$f":"Monthly!CB715-Monthly!CB703","v":3.6603174341476752E-2},{"$f":"Monthly!CC715-Monthly!CC703","v":-0.45339682565852257},{"$f":"(Monthly!CD715/Monthly!CD703)-1","v":0.15289256198347112},{"$f":"(Monthly!CE715/Monthly!CE703)-1","v":0.17017543859649131},null,{"$f":"(Monthly!CG715/Monthly!CG703)-1","v":-6.4039408866995107E-2},{"$f":"(Monthly!CH715/Monthly!CH703)-1","v":-1.4625228519195566E-2},null,{"$f":"(Monthly!CJ715/Monthly!CJ703)-1","v":0.17017543859649131},{"$f":"(Monthly!CK715/Monthly!CK703)-1","v":3.048605657154968E-2},{"$f":"(Monthly!CL715/Monthly!CL703)-1","v":-0.2936381074168799},{"$f":"(Monthly!CM715/Monthly!CM703)-1","v":5.874840357598976E-2},{"$f":"(Monthly!CN715/Monthly!CN703)-1","v":1.2485856483862579E-2},{"$f":"(Monthly!CO715/Monthly!CO703)-1","v":4.3848122276782586E-2},null,null,null,null,null,null,null,null,null,null,{"$f":"(Monthly!CZ715/Monthly!CZ703)-1","v":2.226915512476868E-2},{"$f":"(Monthly!DA715/Monthly!DA703)-1","v":1.694778922645046E-2},null,null,null,null,null,null,{"$f":"((Monthly!DH715-Monthly!DH703)*60)","v":0},{"$f":"((Monthly!DI715-Monthly!DI703)*100)","v":20.000000000000284},{"$f":"((Monthly!DJ715-Monthly!DJ703)*100)","v":-139.99999999999986},{"$f":"((Monthly!DK715-Monthly!DK703)*100)","v":-70.000000000000014},{"$f":"Monthly!DL715-Monthly!DL703","v":117},null,null,null,{"$f":"Monthly!DP715-Monthly!DP703","v":1777},null,null,null,{"$f":"(Monthly!DT715/Monthly!DT703)-1","v":-2.3927392739273912E-2},{"$f":"Monthly!DU715-Monthly!DU703","v":0},{"$f":"(Monthly!DV715/Monthly!DV703)-1","v":1.1551155115511413E-2},{"$f":"(Monthly!DW715/Monthly!DW703)-1","v":1.1229837337507709E-2},null,null,null,null,null,null,null,null,null,null,null,null,null,null,null,null,null,null,null,{"$f":"(Monthly!EQ715/Monthly!EQ703)-1","v":4.066345639379354E-2},null,null,null,null,null,null,null,{"$f":"((Monthly!EY715-Monthly!EY703)*100)","v":75},{"$f":"((Monthly!EZ715-Monthly!EZ703)*100)","v":74.999999999999986},null,null,null,{"$f":"((Monthly!FD715-Monthly!FD703)*100)","v":35.000000000000007},{"$f":"((Monthly!FE715-Monthly!FE703)*100)","v":74},{"$f":"((Monthly!FF715-Monthly!FF703)*100)","v":69},{"$f":"((Monthly!FG715-Monthly!FG703)*100)","v":60.999999999999986},{"$f":"((Monthly!FH715-Monthly!FH703)*100)","v":62.000000000000014},{"$f":"((Monthly!FI715-Monthly!FI703)*100)","v":57.000000000000028},null,null,null,null,null,null,{"$f":"(Monthly!FP715/Monthly!FP703)-1","v":-6.3243820567592257E-2},{"$f":"(Monthly!FQ715/Monthly!FQ703)-1","v":-1.5171958861803336E-2},{"$f":"(Monthly!FR715/Monthly!FR703)-1","v":-7.3432206032135405E-2},{"$f":"(Monthly!FS715/Monthly!FS703)-1","v":6.1954002495988592E-2},{"$f":"(Monthly!FT715/Monthly!FT703)-1","v":-2.9920608069268328E-2},{"$f":"(Monthly!FU715/Monthly!FU703)-1","v":-3.3364484321655841E-2},null,null,null,null,null,null,null,null,{"$f":"(Monthly!GD715/Monthly!GD703)-1","v":7.5973882248782543E-2},{"$f":"(Monthly!GE715/Monthly!GE703)-1","v":0.2057118316512776},{"$f":"(Monthly!GF715/Monthly!GF703)-1","v":0.1865062311989687},{"$f":"(Monthly!GG715/Monthly!GG703)-1","v":0.16332497911445287},{"$f":"(Monthly!GH715/Monthly!GH703)-1","v":0.20851063829787231},null,{"$f":"(Monthly!GJ715/Monthly!GJ703)-1","v":3.7931034482758585E-2},{"$f":"(Monthly!GK715/Monthly!GK703)-1","v":0.11611794701252642},{"$f":"(Monthly!GL715/Monthly!GL703)-1","v":-8.4304736956996251E-2}]
["2017-10-01",null,null,null,null,null,null,null,null,null,null,null,null,null,null,null,null,null,null,null,null,null,null,null,null,null,null,null,null,null,null,null,null,null,null,null,null,null,null,null,null,null,null,null,null,null,null,null,null,null,null,null,null,null,null,null,null,null,null,null,null,null,null,null,null,null,null,null,null,null,null,null,null,null,null,null,null,null,null,null,null,null,null,null,null,null,null,null,null,null,null,null,null,null,null,null,null,null,null,null,null,null,null,null,null,null,null,null,null,null,null,null,null,null,null,null,null,null,null,null,null,null,null,null,null,null,null,null,null,null,null,null,null,null,null,null,null,null,null,null,null,null,null,null,null,null,null,null,null,null,null,null,null,null,null,null,null,null,null,{"$f":"((Monthly!FD716-Monthly!FD704)*100)","v":42.999999999999972},null,null,null,null,null,null,null,null,null,null,null,{"$f":"(Monthly!FP716/Monthly!FP704)-1","v":-5.5467511885895382E-2},{"$f":"(Monthly!FQ716/Monthly!FQ704)-1","v":-1.6656018305276077E-2},{"$f":"(Monthly!FR716/Monthly!FR704)-1","v":-1.1714449055645115E-2},{"$f":"(Monthly!FS716/Monthly!FS704)-1","v":6.9911022335209738E-2},{"$f":"(Monthly!FT716/Monthly!FT704)-1","v":-2.4848566209822787E-2},{"$f":"(Monthly!FU716/Monthly!FU704)-1","v":-3.8915699875542886E-2}]
["2017-11-01"]
["2017-12-01"]

{"sheet":"Qtr QQ","index":6,"n_rows":246,"n_cols":194,"rows_kept":246,"cut":false,"hidden":false,"merged":[]}
[]
[]
[]
[]
[]
[]
["Title:","Nominal Gross Domestic Product","Real Gross Domestic Product","Real Final Sales of Domestic Product","Real Personal Consumption Expenditures","Real PCE: Durable Goods","Real PCE: Nondurable Goods","Real PCE: Services","Real Private Nonres. Fixed Investment","Real Nonres. Invest.: Equip. & Software","Real Private Residential Fixed Investment","Real Change in Private Inventories","Real Imports of Goods & Services","Real Exports of Goods & Services","Net Exports of Goods & Services","Real Gov't Cons. & Invest.","Federal Government Surplus or Deficit [-], NIPA",null,null,null,null,null,"Capacity Utilization: Mfg (NAICS)","Capacity Utilization: Total Industry","Com'l & Industrial Loans, Commercial Banks","Commercial Net Loan Charge-offs","Corporate Profits After Tax","Corporate Profits Less Financial After Tax","Bank Willingness to Make Consumer Loans","Demand for Com'l & Ind'l Loans by Small Firms - Net","Nonperf'g Loans - Total","Commercial Net Loan Charge-offs","Total Loan Charge-offs","E-Commerce Sales","E-Commerce Sales as % of Total Retail Sales","ECI: Benefits: Private Industry Workers ","ECI: Compensation: Private Industry Workers","ECI: Wages & Salaries: Private Industry Workers ","Industrial Production Index","Industrial Production Index - Mfg.","Inventories: Total Business","Inventory to Sales Ratio: Total Business","ISM INDEX: PMI Manufacturing Composite Index","ISM INDEX Backlogs","ISM INDEX Customer Inventories","ISM INDEX Employment ","ISM INDEX Exports","ISM INDEX Imports","ISM INDEX Inventories","ISM INDEX New Orders","ISM INDEX Prices","ISM INDEX Production","ISM INDEX Supplier deliveries","ISM Non Mfg: Business Activity Index","Mfgs' New Orders: Nondefense Excluding Aircraft","Mfg.: Output Per Hour of All Persons","Mfg.: Unit Labor Cost","Nonfarm: Comp. Per Hour","Nonfarm: Output Per Hour of All Persons","Nonfarm: Real Comp. Per Hour","Nonfarm: Unit Labor Cost","Nonfinancial Corporate Business: Profits After Tax","Nonperf'g Total Loans","PMI Manufacturing Composit Index","Retail and Food Services Sales","Retail Sales: Total (Excl'g Food Svcs.)",null,null,null,null,null,"Consumer Loans at All Commercial Banks","Debt Service Payments as a % DPI","Household Financial Obligations as a percent of DPI","Household Credit Market Debt Outstanding","Housing Starts: Total: New Privately Owned ","New Private Housing Units Authorized by Building Permits - Thousands","S&P Case-Shiller 20-City Home Price Index","Autos & Light Trucks","Misery Index","Misery Index - Adjusted ","New Home Inventories - Thousands","New Homes Sold - Thousands","New Home IN/RS","Used Home Inventories - Thousands","Used Homes Sold - Thousands","Used Home IN/RS","New Homes Sales - Single Family - Thousands","Personal Income","Personal Saving","Privately Owned Housing Starts: 1-Unit Structures","Real Disposable Personal Income","Savings Deposits - Total","Total Consumer Credit Outstanding","Total Population: Incl'd Armed Forces Overseas - Thousands","Total Revolving Credit Outstanding","University of Michigan: Consumer Sentiment","Conference Board Consumer Confidence",null,null,null,null,null,"CPI Index - All Urban: All Items","CPI Index All Urban: Less Food & Energy",null,null,null,null,null,"Aggregate Weekly Hours Index: Total Private Industries","Average Weekly Hours: Production & Nonsuper.","Civilian Participation Rate","Total Unemployment Rate Plus (U6 Rate)","Civilian Unemployment Rate","Nonfarm Payrolls: Mfg.","Nonfarm Payrolls: Mfg. - Monthly Change","Nonfarm Payrolls: Mfg - Quarterly Change","Nonfarm Payrolls: Mfg - Annual Change","Total Nonfarm Payrolls: All Employees","Nonfarm Payrolls: All Employees - Monthly Change","Nonfarm Payrolls: All Employees - Quarterly Change","Nonfarm Payrolls: All Employees - Annual Change","Initial Unemployment Claims (Monthly Average)","Median Duration of Unemployment","Trucking Employment - Truck Transportation - SA","Trucking Employment - Truck Transportation - NSA","Trucking Employment - General Freight  - NSA","Trucking Employment - General Freight, local - NSA","Trucking Employment - General Freight, long - NSA","Trucking Employment - General Freight, long TL - NSA","Trucking Employment - General Freight, long LTL - NSA","Trucking Employment - Specialized Freight - NSA",null,null,null,null,null,"Freight Composite Index Class 8","Freight Composite Index Dry Van","Freight Composite Index Reefer Van",null,null,null,null,null,"Producer Price Index: All Commodities","PPI: Finished Goods Less Food & Energy","PPI Finished Goods: Capital Equipment",null,null,null,null,null,"Bank Prime Loan Rate","Effective Federal Funds Rate","Moody's Seasoned Aaa Corporate Bond Yield","Moody's Seasoned Baa Corporate Bond Yield","Yield Spread: Moody's Seasoned Corporate Bond Yield","Mortgage Rate, 30-Year Conventional ","Treasury Bill: Secondary Market Rate, 3-Month ","Treasury Constant Maturity Rate, 1-Year ","Treasury Constant Maturity Rate, 2-Year ","Treasury Constant Maturity Rate, 5-Year ","Treasury Constant Maturity Rate, 10-Year ","Treasury Yield, 10-Year Minus 1-Year",null,null,null,null,null,"Canada/U.S. Foreign Exchange Rate","China/U.S. Foreign Exchange Rate","Mexico/U.S. Foreign Exchange Rate","U.S./Euro Foreign Exchange Rate","Trade Weighted Exchange Index: Broad","Trade Weighted Exchange Index: Major Currencies","U.S. Imports from Canada, Customs Basis","U.S. Imports from China, Mainland, Customs Basis","U.S. Imports from Mexico, Customs Basis",null,null,null,null,null,"Spot Oil Price: West Texas Intermediate","Europe Brent Spot Price FOB ","EIA  Retail Gasoline Prices : All Grades","EIA Retail On-Highway Diesel Fuel Prices","U.S. Exports of Distillate Fuel Oil ","U.S. Exports of Distillate Fuel Oil, 0 to 15 ppm Sulfur ","Natural Gas Futures Contract 1 ","U.S. Product Supplied of Distillate Fuel Oil","U.S. Refiner Net Production of Distillate Fuel Oil, 0 to 15 ppm Sulfur"]
["ID","GDP001Q","GDP004Q","GDP007Q","GDP010Q","GDP014Q","GDP018Q","GDP022Q","GDP026Q","GDP029Q","GDP032Q","GDP035Q","GDP036Q","GDP039Q","GDP042Q","GDP043Q","GDP046Q",null,null,null,null,null,"BUS001Q","BUS002Q","BUS003Q","BUS004Q","BUS005Q","BUS006Q","BUS007Q","BUS008Q","BUS009Q","BUS010Q","BUS011Q","BUS012Q","BUS013Q","BUS014Q","BUS015Q","BUS016Q","BUS019Q","BUS020M","BUS021Q","BUS022Q","BUS023Q","BUS024Q","BUS025Q","BUS026Q","BUS027Q","BUS028Q","BUS029Q","BUS030Q","BUS031Q","BUS032Q","BUS033Q","BUS034Q","BUS035Q","BUS036Q","BUS037Q","BUS038Q","BUS039Q","BUS040Q","BUS041Q","BUS042Q","BUS043Q","BUS044Q","BUS045Q","BUS046Q",null,null,null,null,null,"CON001Q","CON002Q","CON003Q","CON004Q","CON005Q","CON006Q","CON007Q","CON008Q","CON009Q","CON010Q","CON011Q","CON012Q","CON035M","CON033Q","CON034Q","COM036M","CON013Q","CON014Q","CON018Q","CON022Q","CON023Q","CON027Q","CON028Q","CON029Q","CON030Q","CON031Q","CON032Q",null,null,null,null,null,"CPI001Q","CPI005Q",null,null,null,null,null,"EMP001Q","EMP002Q","EMP003Q","EMP004Q","EMP005Q","EMP006Q","EMP007Q","EMP009Q","EMP011Q","EMP013Q","EMP014Q","EMP016Q","EMP018Q","EMP020Q","EMP021Q","EMP022Q","EMP023Q","EMP024Q","EMP025Q","EMP026Q","EMP027Q","EMP028Q","EMP029Q",null,null,null,null,null,"FRE001Q","FRE004Q","FRE007Q",null,null,null,null,null,"PPI001Q","PPI004Q","PPI007Q",null,null,null,null,null,"RAT001Q","RAT002Q","RAT003Q","RAT004Q",null,"RAT005Q","RAT006Q","RAT007Q","RAT008Q","RAT009Q","RAT010Q","RAT011Q",null,null,null,null,null,"TRA001Q","TRA002Q","TRA003Q","TRA004Q","TRA005Q","TRA006Q","TRA007Q","TRA008Q","TRA009Q",null,null,null,null,null,"ENE001Q","ENE002Q","ENE003Q","ENE004Q","ENE005Q","ENE006Q","ENE007Q","ENE008W","ENE009W"]
["Frequency:","Quarterly","Quarterly","Quarterly","Monthly","Monthly","Monthly","Monthly","Quarterly","Quarterly","Quarterly","Quarterly","Quarterly","Quarterly","Quarterly","Quarterly","Quarterly",null,null,null,null,null,"Quarterly","Monthly","Monthly","Quarterly, End of Period","Quarterly","Quarterly","Quarterly, End of Period","Quarterly, End of Period","Quarterly, End of Period","Quarterly, End of Period","Quarterly, End of Period","Quarterly","Quarterly","Quarterly","Quarterly","Quarterly","Monthly","Monthly","Monthly, End of Period","Monthly","Monthly","Monthly","Monthly","Monthly","Monthly","Monthly","Monthly","Monthly","Monthly","Monthly","Monthly","Monthly","Monthly","Quarterly","Quarterly","Quarterly","Quarterly","Quarterly","Quarterly","Quarterly","Quarterly","Monthly","Monthly","Monthly",null,null,null,null,null,"Monthly","Quarterly","Quarterly","Quarterly, End of Period","Monthly","Monthly","Monthly","Monthly","Monthly ","Monthly ","Monthly","Monthly","Monthly","Monthly","Monthly ","Monthly","Monthly","Monthly","Monthly","Monthly","Monthly","Monthly","Monthly, End of Period","Monthly","Monthly, End of Period","Monthly","Monthly",null,null,null,null,null,"Monthly","Monthly",null,null,null,null,null,"Monthly","Monthly","Monthly","Monthly","Monthly","Monthly",null,null,null,"Monthly",null,null,null,"Weekly, End of Period","Monthly","Monthly","Monthly","Monthly","Monthly","Monthly","Monthly","Monthly","Monthly",null,null,null,null,null,"Quarterly","Quarterly","Quarterly",null,null,null,null,null,"Monthly","Monthly","Monthly",null,null,null,null,null,"Monthly","Monthly","Monthly","Monthly",null,"Monthly","Monthly","Monthly","Monthly","Monthly","Monthly",null,null,null,null,null,null,"Monthly","Monthly","Monthly","Monthly","Monthly","Monthly","Monthly","Monthly","Monthly",null,null,null,null,null,"Monthly","Monthly","Monthly","Monthly","Monthly","Monthly","Monthly","Weekly","Weekly"]
["Units:","Q/Q at SAAR","Q/Q at SAAR","Q/Q at SAAR","Q/Q at SAAR","Q/Q at SAAR","Q/Q at SAAR","Q/Q at SAAR","Q/Q at SAAR","Q/Q at SAAR","Q/Q at SAAR","Q-Q $Bils","Q/Q at SAAR","Q/Q at SAAR","Q/Q at SAAR","Q/Q at SAAR","Q/Q at SAAR",null,null,null,null,null,"Q/Q at SAAR","Q/Q at SAAR","Q/Q at SAAR","PPT Chg. Q-Q","Q/Q at SAAR","Q/Q at SAAR","PPT Chg. Q-Q","PPT Chg. Q-Q","Chg BP Q-Q","Chg BP Q-Q","Chg BP Q-Q","Q/Q at SAAR","Percent","Q/Q at SAAR","Q/Q at SAAR","Q/Q at SAAR","Q/Q at SAAR","Q/Q at SAAR","Q/Q at SAAR","Chg BP Q-Q","PPT Chg. Q-Q","PPT Chg. Q-Q","PPT Chg. Q-Q","PPT Chg. Q-Q","PPT Chg. Q-Q","PPT Chg. Q-Q","PPT Chg. Q-Q","PPT Chg. Q-Q","PPT Chg. Q-Q","PPT Chg. Q-Q","PPT Chg. Q-Q","PPT Chg. Q-Q","Q/Q at SAAR","Q/Q at SAAR","Q/Q at SAAR","Q/Q at SAAR","Q/Q at SAAR","Q/Q at SAAR","Q/Q at SAAR","Q/Q at SAAR","Q/Q at SAAR","XXXXXXXX","Q/Q at SAAR","Q/Q at SAAR",null,null,null,null,null,"Q/Q at SAAR","PPT Chg. Q-Q","PPT Chg. Q-Q","Q/Q at SAAR","Q/Q at SAAR","Q/Q at SAAR","Q/Q at SAAR","Q/Q at SAAR","Q/Q at SAAR","Q/Q at SAAR","Q/Q at SAAR","Q/Q at SAAR","XXXXXXXX","Q/Q at SAAR","Q/Q at SAAR","XXXXXXXX","Q/Q at SAAR","Q/Q at SAAR","Q/Q at SAAR","Q/Q at SAAR","Q/Q at SAAR","Q/Q at SAAR","Q/Q at SAAR","Q/Q at SAAR","Q/Q at SAAR","PPT Chg. Q-Q","PPT Chg. Q-Q",null,null,null,null,null,"Q/Q at SAAR","Q/Q at SAAR",null,null,null,null,null,"Q/Q at SAAR","Chg. Minutes","PPT Chg. Q-Q","Chg BP Q-Q","Chg BP Q-Q","Q/Q at SAAR","XXXXXXXX","XXXXXXXX","XXXXXXXX","Q/Q at SAAR","XXXXXXXX","XXXXXXXX","XXXXXXXX","Q/Q at SAAR","Chg. In % of Wk.","Q/Q at SAAR","Q/Q at SAAR","Q/Q at SAAR","Q/Q at SAAR","Q/Q at SAAR","Q/Q at SAAR","Q/Q at SAAR","Q/Q at SAAR",null,null,null,null,null,"Q/Q at SAAR","Q/Q at SAAR","Q/Q at SAAR",null,null,null,null,null,"Q/Q at SAAR","Q/Q at SAAR","Q/Q at SAAR",null,null,null,null,null,"Chg BP Q-Q","Chg BP Q-Q","Chg BP Q-Q","Chg BP Q-Q","Yield Spread (in BPS)","Chg BP Q-Q","Chg BP Q-Q","Chg BP Q-Q","Chg BP Q-Q","Chg BP Q-Q","Chg BP Q-Q","XXXXXXXX",null,null,null,null,null,"Q/Q at SAAR","Q/Q at SAAR","Q/Q at SAAR","Q/Q at SAAR","Q/Q at SAAR","Q/Q at SAAR","Q/Q at SAAR","Q/Q at SAAR","Q/Q at SAAR",null,null,null,null,null,"Q/Q at SAAR","Q/Q at SAAR","Q/Q at SAAR","Q/Q at SAAR","Q/Q at SAAR","Q/Q at SAAR","Q/Q at SAAR","Q/Q at SAAR","Q/Q at SAAR"]
["59'Q1","--","--","--","--","--","--","--","--","--","--","--","--","--","--","--","--",null,null,null,null,null,"--","--","--","--","--","--","--","--","--","--","--","--","--","--","--","--","--","--","--","--","--","--","--","--","--","--","--","--","--","--","--","--","--","--","--","--","--","--","--","--","--",null,"--","--",null,null,null,null,null,"--","--","--","--","--","--","--","--","--","--","--","--",null,"--","--",null,"--","--","--","--","--","--","--","--","--","--","--",null,null,null,null,null,"--","--",null,null,null,null,null,"--","--","--","--","--","--",null,null,null,"--",null,null,null,"--","--","--","--","--","--","--","--","--","--",null,null,null,null,null,"--","--","--",null,null,null,null,null,"--","--","--",null,null,null,null,null,"--","--","--","--",{"$f":"+FB11-FA11","v":{"$error":"#VALUE!"}},"--","--","--","--","--","--",{"$f":"+FI11-FF11","v":{"$error":"#VALUE!"}},null,null,null,null,null,"--","--","--","--","--","--","--","--","--",null,null,null,null,null,"--","--","--","--","--","--","--","--","--"]
["59'Q2",{"$f":"((Quarterly!B12/Quarterly!B11)^4)-1","v":0.10720024582827747},{"$f":"((Quarterly!C12/Quarterly!C11)^4)-1","v":0.10087277200347144},{"$f":"((Quarterly!D12/Quarterly!D11)^4)-1","v":6.780846550505415E-2},{"$f":"((Quarterly!E12/Quarterly!E11)^4)-1","v":6.3115618140054952E-2},{"$f":"((Quarterly!F12/Quarterly!F11)^4)-1","v":0.15939206538101192},{"$f":"((Quarterly!G12/Quarterly!G11)^4)-1","v":3.3466436321267778E-2},{"$f":"((Quarterly!H12/Quarterly!H11)^4)-1","v":7.3694949086341888E-2},{"$f":"((Quarterly!I12/Quarterly!I11)^4)-1","v":0.12048565490207075},{"$f":"((Quarterly!J12/Quarterly!J11)^4)-1","v":0.21399788966450517},{"$f":"((Quarterly!K12/Quarterly!K11)^4)-1","v":0.14812796859070709},{"$f":"((Quarterly!L12-Quarterly!L11))","v":17.686},{"$f":"((Quarterly!M12/Quarterly!M11)^4)-1","v":0.20790828848799792},{"$f":"((Quarterly!N12/Quarterly!N11)^4)-1","v":0.13969575041113469},{"$f":"((Quarterly!O12/Quarterly!O11)^4)-1","v":0.41785782467367838},{"$f":"((Quarterly!P12/Quarterly!P11)^4)-1","v":5.0659555353864905E-2},{"$f":"((Quarterly!Q12/Quarterly!Q11)^4)-1","v":-0.9733475328556509},null,null,null,null,null,"--","--",{"$f":"((Quarterly!Y12/Quarterly!Y11)^4)-1","v":0.13691752078636932},"--",{"$f":"((Quarterly!AA12/Quarterly!AA11)^4)-1","v":0.37818429264361209},{"$f":"((Quarterly!AB12/Quarterly!AB11)^4)-1","v":0.37972016599540748},"--","--","--","--","--","--","--","--","--","--",{"$f":"((Quarterly!AM12/Quarterly!AM11)^4)-1","v":0.20856304895106859},"--","--","--",{"$f":"Quarterly!AQ12-Quarterly!AQ11","v":0.36666666666667425},"--","--",{"$f":"Quarterly!AT12-Quarterly!AT11","v":1.6666666666666714},"--","--",{"$f":"Quarterly!AW12-Quarterly!AW11","v":11.133333333333333},{"$f":"Quarterly!AX12-Quarterly!AX11","v":-2.8999999999999915},{"$f":"Quarterly!AY12-Quarterly!AY11","v":1.2000000000000028},{"$f":"Quarterly!AZ12-Quarterly!AZ11","v":3.3333333333331439E-2},{"$f":"Quarterly!BA12-Quarterly!BA11","v":-1.2999999999999901},"--","--","--","--",{"$f":"((Quarterly!BF12/Quarterly!BF11)^4)-1","v":3.3112445068510743E-2},{"$f":"((Quarterly!BG12/Quarterly!BG11)^4)-1","v":4.8292577726521513E-2},{"$f":"((Quarterly!BH12/Quarterly!BH11)^4)-1","v":2.6190875079956211E-2},{"$f":"((Quarterly!BI12/Quarterly!BI11)^4)-1","v":-1.4260021377819898E-2},{"$f":"((Quarterly!BJ12/Quarterly!BJ11)^4)-1","v":0.45400996913792291},"--",null,"--","--",null,null,null,null,null,{"$f":"((Quarterly!BT12/Quarterly!BT11)^4)-1","v":0.15424227702420779},"--","--",{"$f":"((Quarterly!BW12/Quarterly!BW11)^4)-1","v":0.19711814461875887},{"$f":"((Quarterly!BX12/Quarterly!BX11)^4)-1","v":-0.25644119163575541},"--","--","--","--","--","--","--",null,"--","--",null,"--",{"$f":"((Quarterly!CK12/Quarterly!CK11)^4)-1","v":8.6880806986655346E-2},{"$f":"((Quarterly!CL12/Quarterly!CL11)^4)-1","v":9.482683272198833E-2},{"$f":"((Quarterly!CM12/Quarterly!CM11)^4)-1","v":-0.19740955993854392},{"$f":"((Quarterly!CN12/Quarterly!CN11)^4)-1","v":6.5537822904845999E-2},{"$f":"((Quarterly!CO12/Quarterly!CO11)^4)-1","v":8.4461833006026943E-2},{"$f":"((Quarterly!CP12/Quarterly!CP11)^4)-1","v":0.13167149666124378},{"$f":"((Quarterly!CQ12/Quarterly!CQ11)^4)-1","v":1.5675125267915258E-2},"--","--","--",null,null,null,null,null,{"$f":"((Quarterly!CZ12/Quarterly!CZ11)^4)-1","v":6.9160021397871585E-3},{"$f":"((Quarterly!DA12/Quarterly!DA11)^4)-1","v":2.2458417329177971E-2},null,null,null,null,null,"--","--",{"$f":"Quarterly!DI12-Quarterly!DI11","v":6.6666666666677088E-2},"--",{"$f":"(Quarterly!DK12-Quarterly!DK11)*100","v":-73.333333333333258},{"$f":"((Quarterly!DL12/Quarterly!DL11)^4)-1","v":9.620902843241308E-2},null,null,null,{"$f":"((Quarterly!DP12/Quarterly!DP11)^4)-1","v":6.1158770262473405E-2},null,null,null,"--","--","--","--","--","--","--","--","--","--",null,null,null,null,null,"--","--","--",null,null,null,null,null,{"$f":"((Quarterly!EQ12/Quarterly!EQ11)^4)-1","v":8.4387718130363165E-3},"--",{"$f":"((Quarterly!ES12/Quarterly!ES11)^4)-1","v":3.3226671738661784E-2},null,null,null,null,null,{"$f":"(Quarterly!EY12-Quarterly!EY11)*100","v":24.333333333333318},{"$f":"(Quarterly!EZ12-Quarterly!EZ11)*100","v":51.333333333333364},{"$f":"(Quarterly!FA12-Quarterly!FA11)*100","v":22.333333333333449},{"$f":"(Quarterly!FB12-Quarterly!FB11)*100","v":8.3333333333333037},{"$f":"+FB12-FA12","v":-14.000000000000146},"--",{"$f":"(Quarterly!FE12-Quarterly!FE11)*100","v":22.666666666666657},{"$f":"(Quarterly!FF12-Quarterly!FF11)*100","v":41.333333333333314},"--",{"$f":"(Quarterly!FH12-Quarterly!FH11)*100","v":33.666666666666643},{"$f":"(Quarterly!FI12-Quarterly!FI11)*100","v":26.666666666666707},-14.666666666666607,null,null,null,null,null,"--","--","--","--","--","--","--","--","--",null,null,null,null,null,{"$f":"((Quarterly!GD12/Quarterly!GD11)^4)-1","v":-2.6488594584428093E-2},"--","--","--","--","--","--","--","--"]
["59'Q3",{"$f":"((Quarterly!B13/Quarterly!B12)^4)-1","v":7.306660326243497E-3},{"$f":"((Quarterly!C13/Quarterly!C12)^4)-1","v":-7.6812562529172679E-3},{"$f":"((Quarterly!D13/Quarterly!D12)^4)-1","v":4.4737710856190827E-2},{"$f":"((Quarterly!E13/Quarterly!E12)^4)-1","v":4.223335054391808E-2},{"$f":"((Quarterly!F13/Quarterly!F12)^4)-1","v":7.954144936016605E-2},{"$f":"((Quarterly!G13/Quarterly!G12)^4)-1","v":1.5460369212651592E-2},{"$f":"((Quarterly!H13/Quarterly!H12)^4)-1","v":5.5058415673400418E-2},{"$f":"((Quarterly!I13/Quarterly!I12)^4)-1","v":0.11184789217334057},{"$f":"((Quarterly!J13/Quarterly!J12)^4)-1","v":0.2005662889897073},{"$f":"((Quarterly!K13/Quarterly!K12)^4)-1","v":-7.2948516179551448E-2},{"$f":"((Quarterly!L13-Quarterly!L12))","v":-25.77},{"$f":"((Quarterly!M13/Quarterly!M12)^4)-1","v":3.8090213793279482E-2},{"$f":"((Quarterly!N13/Quarterly!N12)^4)-1","v":0.13292379980542601},{"$f":"((Quarterly!O13/Quarterly!O12)^4)-1","v":-0.18702007554652134},{"$f":"((Quarterly!P13/Quarterly!P12)^4)-1","v":3.4702755190734846E-2},{"$f":"((Quarterly!Q13/Quarterly!Q12)^4)-1","v":27.228768271951342},null,null,null,null,null,"--","--",{"$f":"((Quarterly!Y13/Quarterly!Y12)^4)-1","v":0.19687458912714551},"--",{"$f":"((Quarterly!AA13/Quarterly!AA12)^4)-1","v":-0.3246521046808305},{"$f":"((Quarterly!AB13/Quarterly!AB12)^4)-1","v":-0.24565510447089678},"--","--","--","--","--","--","--","--","--","--",{"$f":"((Quarterly!AM13/Quarterly!AM12)^4)-1","v":-0.15384347734623272},"--","--","--",{"$f":"Quarterly!AQ13-Quarterly!AQ12","v":-11.533333333333353},"--","--",{"$f":"Quarterly!AT13-Quarterly!AT12","v":-10.000000000000007},"--","--",{"$f":"Quarterly!AW13-Quarterly!AW12","v":-12.533333333333339},{"$f":"Quarterly!AX13-Quarterly!AX12","v":-13.866666666666674},{"$f":"Quarterly!AY13-Quarterly!AY12","v":-5.0333333333333314},{"$f":"Quarterly!AZ13-Quarterly!AZ12","v":-13.06666666666667},{"$f":"Quarterly!BA13-Quarterly!BA12","v":-5.8333333333333357},"--","--","--","--",{"$f":"((Quarterly!BF13/Quarterly!BF12)^4)-1","v":2.4289322852576234E-2},{"$f":"((Quarterly!BG13/Quarterly!BG12)^4)-1","v":-8.019894805876282E-3},{"$f":"((Quarterly!BH13/Quarterly!BH12)^4)-1","v":2.9528877437203782E-3},{"$f":"((Quarterly!BI13/Quarterly!BI12)^4)-1","v":3.2069718265560931E-2},{"$f":"((Quarterly!BJ13/Quarterly!BJ12)^4)-1","v":-0.44174098772101134},"--",null,"--","--",null,null,null,null,null,{"$f":"((Quarterly!BT13/Quarterly!BT12)^4)-1","v":0.21508724797285317},"--","--",{"$f":"((Quarterly!BW13/Quarterly!BW12)^4)-1","v":0.17106006024568221},{"$f":"((Quarterly!BX13/Quarterly!BX12)^4)-1","v":-6.2931819183298154E-2},"--","--","--","--","--","--","--",null,"--","--",null,"--",{"$f":"((Quarterly!CK13/Quarterly!CK12)^4)-1","v":2.3718015984198093E-2},{"$f":"((Quarterly!CL13/Quarterly!CL12)^4)-1","v":-0.33860965959376865},{"$f":"((Quarterly!CM13/Quarterly!CM12)^4)-1","v":2.8421297757157848E-2},{"$f":"((Quarterly!CN13/Quarterly!CN12)^4)-1","v":-5.4541579860638567E-3},{"$f":"((Quarterly!CO13/Quarterly!CO12)^4)-1","v":8.2716123181945989E-2},{"$f":"((Quarterly!CP13/Quarterly!CP12)^4)-1","v":0.1642090234874074},{"$f":"((Quarterly!CQ13/Quarterly!CQ12)^4)-1","v":1.6679087793711078E-2},"--","--","--",null,null,null,null,null,{"$f":"((Quarterly!CZ13/Quarterly!CZ12)^4)-1","v":2.0819382023607114E-2},{"$f":"((Quarterly!DA13/Quarterly!DA12)^4)-1","v":1.7836795783955584E-2},null,null,null,null,null,"--","--",{"$f":"Quarterly!DI13-Quarterly!DI12","v":3.3333333333317228E-2},"--",{"$f":"(Quarterly!DK13-Quarterly!DK12)*100","v":16.666666666666607},{"$f":"((Quarterly!DL13/Quarterly!DL12)^4)-1","v":-2.9563520130349907E-2},null,null,null,{"$f":"((Quarterly!DP13/Quarterly!DP12)^4)-1","v":4.48539436388673E-4},null,null,null,"--","--","--","--","--","--","--","--","--","--",null,null,null,null,null,"--","--","--",null,null,null,null,null,{"$f":"((Quarterly!EQ13/Quarterly!EQ12)^4)-1","v":-1.2532482321966687E-2},"--",{"$f":"((Quarterly!ES13/Quarterly!ES12)^4)-1","v":8.1632229798391798E-3},null,null,null,null,null,{"$f":"(Quarterly!EY13-Quarterly!EY12)*100","v":42.333333333333378},{"$f":"(Quarterly!EZ13-Quarterly!EZ12)*100","v":49.333333333333314},{"$f":"(Quarterly!FA13-Quarterly!FA12)*100","v":11.999999999999833},{"$f":"(Quarterly!FB13-Quarterly!FB12)*100","v":16.333333333333311},4.3333333333334778,"--",{"$f":"(Quarterly!FE13-Quarterly!FE12)*100","v":54.00000000000005},{"$f":"(Quarterly!FF13-Quarterly!FF12)*100","v":68.666666666666615},"--",{"$f":"(Quarterly!FH13-Quarterly!FH12)*100","v":36.000000000000028},{"$f":"(Quarterly!FI13-Quarterly!FI12)*100","v":24.666666666666615},-44,null,null,null,null,null,"--","--","--","--","--","--","--","--","--",null,null,null,null,null,{"$f":"((Quarterly!GD13/Quarterly!GD12)^4)-1","v":0},"--","--","--","--","--","--","--","--"]
["59'Q4",{"$f":"((Quarterly!B14/Quarterly!B13)^4)-1","v":3.1796713185308301E-2},{"$f":"((Quarterly!C14/Quarterly!C13)^4)-1","v":1.5820179160181524E-2},{"$f":"((Quarterly!D14/Quarterly!D13)^4)-1","v":-1.2364262296827633E-2},{"$f":"((Quarterly!E14/Quarterly!E13)^4)-1","v":4.532326085082472E-3},{"$f":"((Quarterly!F14/Quarterly!F13)^4)-1","v":-0.17751599034583299},{"$f":"((Quarterly!G14/Quarterly!G13)^4)-1","v":2.5029993448952403E-2},{"$f":"((Quarterly!H14/Quarterly!H13)^4)-1","v":7.6753751582063767E-3},{"$f":"((Quarterly!I14/Quarterly!I13)^4)-1","v":-1.091298921402617E-2},{"$f":"((Quarterly!J14/Quarterly!J13)^4)-1","v":-2.2597493401755653E-2},{"$f":"((Quarterly!K14/Quarterly!K13)^4)-1","v":-0.11152912834251361},{"$f":"((Quarterly!L14-Quarterly!L13))","v":13.666999999999998},{"$f":"((Quarterly!M14/Quarterly!M13)^4)-1","v":-9.7814187406012554E-2},{"$f":"((Quarterly!N14/Quarterly!N13)^4)-1","v":-0.10287334514280844},{"$f":"((Quarterly!O14/Quarterly!O13)^4)-1","v":-8.294505501673255E-2},{"$f":"((Quarterly!P14/Quarterly!P13)^4)-1","v":-3.2013619844544761E-2},{"$f":"((Quarterly!Q14/Quarterly!Q13)^4)-1","v":0.8282299700631528},null,null,null,null,null,"--","--",{"$f":"((Quarterly!Y14/Quarterly!Y13)^4)-1","v":8.645943737414985E-2},"--",{"$f":"((Quarterly!AA14/Quarterly!AA13)^4)-1","v":-7.815153714760692E-2},{"$f":"((Quarterly!AB14/Quarterly!AB13)^4)-1","v":0.12000220729383848},"--","--","--","--","--","--","--","--","--","--",{"$f":"((Quarterly!AM14/Quarterly!AM13)^4)-1","v":1.9269627174883119E-2},"--","--","--",{"$f":"Quarterly!AQ14-Quarterly!AQ13","v":-2.1333333333333258},"--","--",{"$f":"Quarterly!AT14-Quarterly!AT13","v":-3.2333333333333414},"--","--",{"$f":"Quarterly!AW14-Quarterly!AW13","v":-7.86666666666666},{"$f":"Quarterly!AX14-Quarterly!AX13","v":1.5},{"$f":"Quarterly!AY14-Quarterly!AY13","v":2.8999999999999986},{"$f":"Quarterly!AZ14-Quarterly!AZ13","v":-3.0333333333333314},{"$f":"Quarterly!BA14-Quarterly!BA13","v":-2.3999999999999986},"--","--","--","--",{"$f":"((Quarterly!BF14/Quarterly!BF13)^4)-1","v":3.9050720064245592E-2},{"$f":"((Quarterly!BG14/Quarterly!BG13)^4)-1","v":-6.8909815827314924E-3},{"$f":"((Quarterly!BH14/Quarterly!BH13)^4)-1","v":1.4348427617604465E-2},{"$f":"((Quarterly!BI14/Quarterly!BI13)^4)-1","v":4.6320196686409298E-2},{"$f":"((Quarterly!BJ14/Quarterly!BJ13)^4)-1","v":-0.15107931103393968},"--",null,"--","--",null,null,null,null,null,{"$f":"((Quarterly!BT14/Quarterly!BT13)^4)-1","v":0.18245063024413799},"--","--",{"$f":"((Quarterly!BW14/Quarterly!BW13)^4)-1","v":0.13396335914547386},{"$f":"((Quarterly!BX14/Quarterly!BX13)^4)-1","v":-0.12235223568144094},"--","--","--","--","--","--","--",null,"--","--",null,"--",{"$f":"((Quarterly!CK14/Quarterly!CK13)^4)-1","v":5.6804728651207448E-2},{"$f":"((Quarterly!CL14/Quarterly!CL13)^4)-1","v":0.28160453832640986},{"$f":"((Quarterly!CM14/Quarterly!CM13)^4)-1","v":-0.1110547821114467},{"$f":"((Quarterly!CN14/Quarterly!CN13)^4)-1","v":2.8750852900862656E-2},{"$f":"((Quarterly!CO14/Quarterly!CO13)^4)-1","v":8.0048277275963864E-2},{"$f":"((Quarterly!CP14/Quarterly!CP13)^4)-1","v":0.16221602205463626},{"$f":"((Quarterly!CQ14/Quarterly!CQ13)^4)-1","v":1.8270735380804926E-2},"--","--","--",null,null,null,null,null,{"$f":"((Quarterly!CZ14/Quarterly!CZ13)^4)-1","v":2.4427059553845831E-2},{"$f":"((Quarterly!DA14/Quarterly!DA13)^4)-1","v":2.672458626505092E-2},null,null,null,null,null,"--","--",{"$f":"Quarterly!DI14-Quarterly!DI13","v":3.3333333333345649E-2},"--",{"$f":"(Quarterly!DK14-Quarterly!DK13)*100","v":33.333333333333393},{"$f":"((Quarterly!DL14/Quarterly!DL13)^4)-1","v":-4.1602509120765019E-3},null,null,null,{"$f":"((Quarterly!DP14/Quarterly!DP13)^4)-1","v":1.5106693335738663E-2},null,null,null,"--","--","--","--","--","--","--","--","--","--",null,null,null,null,null,"--","--","--",null,null,null,null,null,{"$f":"((Quarterly!EQ14/Quarterly!EQ13)^4)-1","v":-1.6736032343521279E-2},"--",{"$f":"((Quarterly!ES14/Quarterly!ES13)^4)-1","v":-1.2127196847313448E-2},null,null,null,null,null,{"$f":"(Quarterly!EY14-Quarterly!EY13)*100","v":33.3333333333333},{"$f":"(Quarterly!EZ14-Quarterly!EZ13)*100","v":41.333333333333357},{"$f":"(Quarterly!FA14-Quarterly!FA13)*100","v":9.6666666666666679},{"$f":"(Quarterly!FB14-Quarterly!FB13)*100","v":15.666666666666718},6.0000000000000497,"--",{"$f":"(Quarterly!FE14-Quarterly!FE13)*100","v":68.999999999999901},{"$f":"(Quarterly!FF14-Quarterly!FF13)*100","v":31.333333333333435},"--",{"$f":"(Quarterly!FH14-Quarterly!FH13)*100","v":14.333333333333265},{"$f":"(Quarterly!FI14-Quarterly!FI13)*100","v":8.0000000000000071},-23.333333333333428,null,null,null,null,null,"--","--","--","--","--","--","--","--","--",null,null,null,null,null,{"$f":"((Quarterly!GD14/Quarterly!GD13)^4)-1","v":0},"--","--","--","--","--","--","--","--"]
["60'Q1",{"$f":"((Quarterly!B15/Quarterly!B14)^4)-1","v":0.11027181468456204},{"$f":"((Quarterly!C15/Quarterly!C14)^4)-1","v":9.2129283969517362E-2},{"$f":"((Quarterly!D15/Quarterly!D14)^4)-1","v":4.5262903110632413E-2},{"$f":"((Quarterly!E15/Quarterly!E14)^4)-1","v":3.8862251454266916E-2},{"$f":"((Quarterly!F15/Quarterly!F14)^4)-1","v":0.13458377302259961},{"$f":"((Quarterly!G15/Quarterly!G14)^4)-1","v":1.0003301705782119E-2},{"$f":"((Quarterly!H15/Quarterly!H14)^4)-1","v":4.894238912163873E-2},{"$f":"((Quarterly!I15/Quarterly!I14)^4)-1","v":0.14635430742943067},{"$f":"((Quarterly!J15/Quarterly!J14)^4)-1","v":0.26617328028570619},{"$f":"((Quarterly!K15/Quarterly!K14)^4)-1","v":0.11939424851538716},{"$f":"((Quarterly!L15-Quarterly!L14))","v":25.623999999999999},{"$f":"((Quarterly!M15/Quarterly!M14)^4)-1","v":0.16046205482619236},{"$f":"((Quarterly!N15/Quarterly!N14)^4)-1","v":0.60299589930638797},{"$f":"((Quarterly!O15/Quarterly!O14)^4)-1","v":-0.62061979158648883},{"$f":"((Quarterly!P15/Quarterly!P14)^4)-1","v":-6.5908472213864977E-2},{"$f":"((Quarterly!Q15/Quarterly!Q14)^4)-1","v":-0.15004919169307129},null,null,null,null,null,"--","--",{"$f":"((Quarterly!Y15/Quarterly!Y14)^4)-1","v":0.10833239556841212},"--",{"$f":"((Quarterly!AA15/Quarterly!AA14)^4)-1","v":0.42881487943524821},{"$f":"((Quarterly!AB15/Quarterly!AB14)^4)-1","v":0.20693202872837912},"--","--","--","--","--","--","--","--","--","--",{"$f":"((Quarterly!AM15/Quarterly!AM14)^4)-1","v":0.26387204905668171},"--","--","--",{"$f":"Quarterly!AQ15-Quarterly!AQ14","v":1.0333333333333314},"--","--",{"$f":"Quarterly!AT15-Quarterly!AT14","v":5.0333333333333456},"--","--",{"$f":"Quarterly!AW15-Quarterly!AW14","v":8.0000000000000071},{"$f":"Quarterly!AX15-Quarterly!AX14","v":2.0666666666666842},{"$f":"Quarterly!AY15-Quarterly!AY14","v":-3.2666666666666657},{"$f":"Quarterly!AZ15-Quarterly!AZ14","v":6.3000000000000043},{"$f":"Quarterly!BA15-Quarterly!BA14","v":-20.033333333333331},"--","--","--","--",{"$f":"((Quarterly!BF15/Quarterly!BF14)^4)-1","v":8.8305044978805203E-2},{"$f":"((Quarterly!BG15/Quarterly!BG14)^4)-1","v":9.6137803444822811E-2},{"$f":"((Quarterly!BH15/Quarterly!BH14)^4)-1","v":8.4723959021309136E-2},{"$f":"((Quarterly!BI15/Quarterly!BI14)^4)-1","v":-6.7720852549350008E-3},{"$f":"((Quarterly!BJ15/Quarterly!BJ14)^4)-1","v":0.60031935507932888},"--",null,"--","--",null,null,null,null,null,{"$f":"((Quarterly!BT15/Quarterly!BT14)^4)-1","v":0.11553015759838892},"--","--",{"$f":"((Quarterly!BW15/Quarterly!BW14)^4)-1","v":0.13179608671608345},{"$f":"((Quarterly!BX15/Quarterly!BX14)^4)-1","v":-0.24749313860236355},"--","--","--","--","--","--","--",null,"--","--",null,"--",{"$f":"((Quarterly!CK15/Quarterly!CK14)^4)-1","v":6.4150239096973261E-2},{"$f":"((Quarterly!CL15/Quarterly!CL14)^4)-1","v":0.13566593242381919},{"$f":"((Quarterly!CM15/Quarterly!CM14)^4)-1","v":-0.28680600485964292},{"$f":"((Quarterly!CN15/Quarterly!CN14)^4)-1","v":4.8632830136339456E-2},{"$f":"((Quarterly!CO15/Quarterly!CO14)^4)-1","v":6.1080119218911655E-2},{"$f":"((Quarterly!CP15/Quarterly!CP14)^4)-1","v":0.1023092078851191},{"$f":"((Quarterly!CQ15/Quarterly!CQ14)^4)-1","v":1.529004216143437E-2},"--","--","--",null,null,null,null,null,{"$f":"((Quarterly!CZ15/Quarterly!CZ14)^4)-1","v":3.6367731554365346E-3},{"$f":"((Quarterly!DA15/Quarterly!DA14)^4)-1","v":1.7640148207787698E-2},null,null,null,null,null,"--","--",{"$f":"Quarterly!DI15-Quarterly!DI14","v":-0.43333333333333712},"--",{"$f":"(Quarterly!DK15-Quarterly!DK14)*100","v":-46.666666666666679},{"$f":"((Quarterly!DL15/Quarterly!DL14)^4)-1","v":0.10168315794603044},null,null,null,{"$f":"((Quarterly!DP15/Quarterly!DP14)^4)-1","v":5.2527636006079348E-2},null,null,null,"--","--","--","--","--","--","--","--","--","--",null,null,null,null,null,"--","--","--",null,null,null,null,null,{"$f":"((Quarterly!EQ15/Quarterly!EQ14)^4)-1","v":1.7020894585825452E-2},"--",{"$f":"((Quarterly!ES15/Quarterly!ES14)^4)-1","v":1.6393101237691221E-2},null,null,null,null,null,{"$f":"(Quarterly!EY15-Quarterly!EY14)*100","v":0},{"$f":"(Quarterly!EZ15-Quarterly!EZ14)*100","v":-5.6666666666666643},{"$f":"(Quarterly!FA15-Quarterly!FA14)*100","v":-1.6666666666665719},{"$f":"(Quarterly!FB15-Quarterly!FB14)*100","v":3.6666666666666181},5.33333333333319,"--",{"$f":"(Quarterly!FE15-Quarterly!FE14)*100","v":-35.666666666666643},{"$f":"(Quarterly!FF15-Quarterly!FF14)*100","v":-34.666666666666671},"--",{"$f":"(Quarterly!FH15-Quarterly!FH14)*100","v":-18.666666666666654},{"$f":"(Quarterly!FI15-Quarterly!FI14)*100","v":-9.666666666666579},25.000000000000092,null,null,null,null,null,"--","--","--","--","--","--","--","--","--",null,null,null,null,null,{"$f":"((Quarterly!GD15/Quarterly!GD14)^4)-1","v":0},"--","--","--","--","--","--","--","--"]
["60'Q2",{"$f":"((Quarterly!B16/Quarterly!B15)^4)-1","v":-4.7765759136384478E-3},{"$f":"((Quarterly!C16/Quarterly!C15)^4)-1","v":-1.5093300040260105E-2},{"$f":"((Quarterly!D16/Quarterly!D15)^4)-1","v":4.0544697313754874E-2},{"$f":"((Quarterly!E16/Quarterly!E15)^4)-1","v":5.1487549699754664E-2},{"$f":"((Quarterly!F16/Quarterly!F15)^4)-1","v":9.4031600309200325E-2},{"$f":"((Quarterly!G16/Quarterly!G15)^4)-1","v":4.4380854455084773E-2},{"$f":"((Quarterly!H16/Quarterly!H15)^4)-1","v":5.2467721267523082E-2},{"$f":"((Quarterly!I16/Quarterly!I15)^4)-1","v":5.9876007778011608E-2},{"$f":"((Quarterly!J16/Quarterly!J15)^4)-1","v":0.1296168939676472},{"$f":"((Quarterly!K16/Quarterly!K15)^4)-1","v":-0.28994601045610424},{"$f":"((Quarterly!L16-Quarterly!L15))","v":-30.535999999999998},{"$f":"((Quarterly!M16/Quarterly!M15)^4)-1","v":3.0393024997935836E-2},{"$f":"((Quarterly!N16/Quarterly!N15)^4)-1","v":0.27934992651695034},{"$f":"((Quarterly!O16/Quarterly!O15)^4)-1","v":-0.63977766968251704},{"$f":"((Quarterly!P16/Quarterly!P15)^4)-1","v":4.3845203402959498E-2},{"$f":"((Quarterly!Q16/Quarterly!Q15)^4)-1","v":-0.99416332573990318},null,null,null,null,null,"--","--",{"$f":"((Quarterly!Y16/Quarterly!Y15)^4)-1","v":0.11627366286058249},"--",{"$f":"((Quarterly!AA16/Quarterly!AA15)^4)-1","v":-0.24742991574078499},{"$f":"((Quarterly!AB16/Quarterly!AB15)^4)-1","v":-0.19554927795853416},"--","--","--","--","--","--","--","--","--","--",{"$f":"((Quarterly!AM16/Quarterly!AM15)^4)-1","v":-8.4004614437540481E-2},"--","--","--",{"$f":"Quarterly!AQ16-Quarterly!AQ15","v":-9.7666666666666657},"--","--",{"$f":"Quarterly!AT16-Quarterly!AT15","v":-13.933333333333337},"--","--",{"$f":"Quarterly!AW16-Quarterly!AW15","v":-7.9000000000000057},{"$f":"Quarterly!AX16-Quarterly!AX15","v":-7.7000000000000099},{"$f":"Quarterly!AY16-Quarterly!AY15","v":-4},{"$f":"Quarterly!AZ16-Quarterly!AZ15","v":-13.199999999999996},{"$f":"Quarterly!BA16-Quarterly!BA15","v":-3.56666666666667},"--","--","--","--",{"$f":"((Quarterly!BF16/Quarterly!BF15)^4)-1","v":2.5974327995300639E-2},{"$f":"((Quarterly!BG16/Quarterly!BG15)^4)-1","v":-5.3022311036880376E-2},{"$f":"((Quarterly!BH16/Quarterly!BH15)^4)-1","v":1.667171508546339E-3},{"$f":"((Quarterly!BI16/Quarterly!BI15)^4)-1","v":8.3382099309680546E-2},{"$f":"((Quarterly!BJ16/Quarterly!BJ15)^4)-1","v":-0.32734430680436666},"--",null,"--","--",null,null,null,null,null,{"$f":"((Quarterly!BT16/Quarterly!BT15)^4)-1","v":8.8324300467134575E-2},"--","--",{"$f":"((Quarterly!BW16/Quarterly!BW15)^4)-1","v":0.10646306279107387},{"$f":"((Quarterly!BX16/Quarterly!BX15)^4)-1","v":-0.23598756012665767},{"$f":"((Quarterly!BY16/Quarterly!BY15)^4)-1","v":-0.13198842996297366},"--","--",{"$f":"((Quarterly!CB16/Quarterly!CB15)^4)-1","v":0.36968114439605682},{"$f":"((Quarterly!CC16/Quarterly!CC15)^4)-1","v":0.26095338187517259},"--","--",null,"--","--",null,"--",{"$f":"((Quarterly!CK16/Quarterly!CK15)^4)-1","v":4.9150589900077923E-2},{"$f":"((Quarterly!CL16/Quarterly!CL15)^4)-1","v":-0.17500587624772679},{"$f":"((Quarterly!CM16/Quarterly!CM15)^4)-1","v":-0.28000090047801451},{"$f":"((Quarterly!CN16/Quarterly!CN15)^4)-1","v":2.5211893206614544E-2},{"$f":"((Quarterly!CO16/Quarterly!CO15)^4)-1","v":6.5848738365199333E-2},{"$f":"((Quarterly!CP16/Quarterly!CP15)^4)-1","v":0.11852896130075563},{"$f":"((Quarterly!CQ16/Quarterly!CQ15)^4)-1","v":1.4195979722170904E-2},"--","--","--",null,null,null,null,null,{"$f":"((Quarterly!CZ16/Quarterly!CZ15)^4)-1","v":2.4256578905112791E-2},{"$f":"((Quarterly!DA16/Quarterly!DA15)^4)-1","v":8.7526830716413428E-3},null,null,null,null,null,"--","--",{"$f":"Quarterly!DI16-Quarterly!DI15","v":0.6666666666666643},"--",{"$f":"(Quarterly!DK16-Quarterly!DK15)*100","v":9.9999999999999645},{"$f":"((Quarterly!DL16/Quarterly!DL15)^4)-1","v":-3.8779178999063468E-2},null,null,null,{"$f":"((Quarterly!DP16/Quarterly!DP15)^4)-1","v":9.5164531864961877E-3},null,null,null,"--","--","--","--","--","--","--","--","--","--",null,null,null,null,null,{"$f":"((Quarterly!EI16/Quarterly!EI15)^4)-1","v":-7.9197532283566074E-2},{"$f":"((Quarterly!EJ16/Quarterly!EJ15)^4)-1","v":-1.3786223635587014E-2},{"$f":"((Quarterly!EK16/Quarterly!EK15)^4)-1","v":1.2777502358585657E-2},null,null,null,null,null,{"$f":"((Quarterly!EQ16/Quarterly!EQ15)^4)-1","v":8.447682772231957E-3},"--",{"$f":"((Quarterly!ES16/Quarterly!ES15)^4)-1","v":-1.2114953620619762E-2},null,null,null,null,null,{"$f":"(Quarterly!EY16-Quarterly!EY15)*100","v":0},{"$f":"(Quarterly!EZ16-Quarterly!EZ15)*100","v":-23.666666666666679},{"$f":"(Quarterly!FA16-Quarterly!FA15)*100","v":-10.000000000000053},{"$f":"(Quarterly!FB16-Quarterly!FB15)*100","v":-6.3333333333332575},3.6666666666667957,"--",{"$f":"(Quarterly!FE16-Quarterly!FE15)*100","v":-87.999999999999943},{"$f":"(Quarterly!FF16-Quarterly!FF15)*100","v":-70.000000000000057},"--",{"$f":"(Quarterly!FH16-Quarterly!FH15)*100","v":-33.999999999999901},{"$f":"(Quarterly!FI16-Quarterly!FI15)*100","v":-22.666666666666746},47.333333333333314,null,null,null,null,null,"--","--","--","--","--","--","--","--","--",null,null,null,null,null,{"$f":"((Quarterly!GD16/Quarterly!GD15)^4)-1","v":0},"--","--","--","--","--","--","--","--"]
["60'Q3",{"$f":"((Quarterly!B17/Quarterly!B16)^4)-1","v":2.4658310647323045E-2},{"$f":"((Quarterly!C17/Quarterly!C16)^4)-1","v":9.9970526889074929E-3},{"$f":"((Quarterly!D17/Quarterly!D16)^4)-1","v":-1.7932010530837816E-3},{"$f":"((Quarterly!E17/Quarterly!E16)^4)-1","v":-1.5903423747157919E-2},{"$f":"((Quarterly!F17/Quarterly!F16)^4)-1","v":-3.1329151758117346E-2},{"$f":"((Quarterly!G17/Quarterly!G16)^4)-1","v":-2.3184365988733302E-2},{"$f":"((Quarterly!H17/Quarterly!H16)^4)-1","v":-1.0632880339111583E-2},{"$f":"((Quarterly!I17/Quarterly!I16)^4)-1","v":-6.8395153503167938E-2},{"$f":"((Quarterly!J17/Quarterly!J16)^4)-1","v":-0.10480187922610007},{"$f":"((Quarterly!K17/Quarterly!K16)^4)-1","v":-0.11575806318323334},{"$f":"((Quarterly!L17-Quarterly!L16))","v":5.0599999999999987},{"$f":"((Quarterly!M17/Quarterly!M16)^4)-1","v":-0.1126054554114857},{"$f":"((Quarterly!N17/Quarterly!N16)^4)-1","v":-9.7274077727931396E-2},{"$f":"((Quarterly!O17/Quarterly!O16)^4)-1","v":-0.19638009659070288},{"$f":"((Quarterly!P17/Quarterly!P16)^4)-1","v":0.10073273233027913},{"$f":"((Quarterly!Q17/Quarterly!Q16)^4)-1","v":-0.99298230496088702},null,null,null,null,null,"--","--",{"$f":"((Quarterly!Y17/Quarterly!Y16)^4)-1","v":4.495673639589981E-2},"--",{"$f":"((Quarterly!AA17/Quarterly!AA16)^4)-1","v":-0.14821811211416425},{"$f":"((Quarterly!AB17/Quarterly!AB16)^4)-1","v":6.444356912508109E-3},"--","--","--","--","--","--","--","--","--","--",{"$f":"((Quarterly!AM17/Quarterly!AM16)^4)-1","v":-6.4171434264970406E-2},"--","--","--",{"$f":"Quarterly!AQ17-Quarterly!AQ16","v":1.4666666666666686},"--","--",{"$f":"Quarterly!AT17-Quarterly!AT16","v":0.56666666666666998},"--","--",{"$f":"Quarterly!AW17-Quarterly!AW16","v":-3.3666666666666671},{"$f":"Quarterly!AX17-Quarterly!AX16","v":1.6000000000000014},{"$f":"Quarterly!AY17-Quarterly!AY16","v":-7.0333333333333314},{"$f":"Quarterly!AZ17-Quarterly!AZ16","v":1.7333333333333272},{"$f":"Quarterly!BA17-Quarterly!BA16","v":5.0333333333333314},"--","--","--","--",{"$f":"((Quarterly!BF17/Quarterly!BF16)^4)-1","v":2.4785419924463259E-2},{"$f":"((Quarterly!BG17/Quarterly!BG16)^4)-1","v":1.1591919523346705E-2},{"$f":"((Quarterly!BH17/Quarterly!BH16)^4)-1","v":2.2057924001464446E-2},{"$f":"((Quarterly!BI17/Quarterly!BI16)^4)-1","v":1.2690420342706066E-2},{"$f":"((Quarterly!BJ17/Quarterly!BJ16)^4)-1","v":-0.17433257130201996},"--",null,"--","--",null,null,null,null,null,{"$f":"((Quarterly!BT17/Quarterly!BT16)^4)-1","v":0.10466547405049753},"--","--",{"$f":"((Quarterly!BW17/Quarterly!BW16)^4)-1","v":8.8824143975809955E-2},{"$f":"((Quarterly!BX17/Quarterly!BX16)^4)-1","v":-0.16608982746580836},{"$f":"((Quarterly!BY17/Quarterly!BY16)^4)-1","v":-6.3215613170251039E-2},"--","--",{"$f":"((Quarterly!CB17/Quarterly!CB16)^4)-1","v":-9.0887776589029134E-2},{"$f":"((Quarterly!CC17/Quarterly!CC16)^4)-1","v":1.6458133032102529E-2},"--","--",null,"--","--",null,"--",{"$f":"((Quarterly!CK17/Quarterly!CK16)^4)-1","v":2.4865315518280751E-2},{"$f":"((Quarterly!CL17/Quarterly!CL16)^4)-1","v":0.233348245422067},{"$f":"((Quarterly!CM17/Quarterly!CM16)^4)-1","v":-0.19102551364509979},{"$f":"((Quarterly!CN17/Quarterly!CN16)^4)-1","v":7.1554395797266412E-3},{"$f":"((Quarterly!CO17/Quarterly!CO16)^4)-1","v":8.9275611322495285E-2},{"$f":"((Quarterly!CP17/Quarterly!CP16)^4)-1","v":7.0969206388527661E-2},{"$f":"((Quarterly!CQ17/Quarterly!CQ16)^4)-1","v":1.6233341062050544E-2},"--","--","--",null,null,null,null,null,{"$f":"((Quarterly!CZ17/Quarterly!CZ16)^4)-1","v":2.25618952622475E-3},{"$f":"((Quarterly!DA17/Quarterly!DA16)^4)-1","v":-4.3454579969628426E-3},null,null,null,null,null,"--","--",{"$f":"Quarterly!DI17-Quarterly!DI16","v":0},"--",{"$f":"(Quarterly!DK17-Quarterly!DK16)*100","v":30.000000000000071},{"$f":"((Quarterly!DL17/Quarterly!DL16)^4)-1","v":-4.9755800218292845E-2},null,null,null,{"$f":"((Quarterly!DP17/Quarterly!DP16)^4)-1","v":-2.0111503219569671E-2},null,null,null,"--","--","--","--","--","--","--","--","--","--",null,null,null,null,null,{"$f":"((Quarterly!EI17/Quarterly!EI16)^4)-1","v":-1.1391051606030711E-2},{"$f":"((Quarterly!EJ17/Quarterly!EJ16)^4)-1","v":-7.219660722853849E-3},{"$f":"((Quarterly!EK17/Quarterly!EK16)^4)-1","v":-3.4255170305008686E-3},null,null,null,null,null,{"$f":"((Quarterly!EQ17/Quarterly!EQ16)^4)-1","v":-1.2545584435248891E-2},"--",{"$f":"((Quarterly!ES17/Quarterly!ES16)^4)-1","v":-8.8817841970012523E-16},null,null,null,null,null,{"$f":"(Quarterly!EY17-Quarterly!EY16)*100","v":-21.666666666666679},{"$f":"(Quarterly!EZ17-Quarterly!EZ16)*100","v":-75.999999999999972},{"$f":"(Quarterly!FA17-Quarterly!FA16)*100","v":-13.999999999999968},{"$f":"(Quarterly!FB17-Quarterly!FB16)*100","v":-14.333333333333353},-0.33333333333338544,"--",{"$f":"(Quarterly!FE17-Quarterly!FE16)*100","v":-63.333333333333371},{"$f":"(Quarterly!FF17-Quarterly!FF16)*100","v":-79.6666666666666},"--",{"$f":"(Quarterly!FH17-Quarterly!FH16)*100","v":-62.666666666666735},{"$f":"(Quarterly!FI17-Quarterly!FI16)*100","v":-42.666666666666629},36.999999999999972,null,null,null,null,null,"--","--","--","--","--","--","--","--","--",null,null,null,null,null,{"$f":"((Quarterly!GD17/Quarterly!GD16)^4)-1","v":0},"--","--","--","--","--","--","--","--"]
["60'Q4",{"$f":"((Quarterly!B18/Quarterly!B17)^4)-1","v":-3.57656591721075E-2},{"$f":"((Quarterly!C18/Quarterly!C17)^4)-1","v":-4.7548895118343815E-2},{"$f":"((Quarterly!D18/Quarterly!D17)^4)-1","v":2.0348646926674263E-2},{"$f":"((Quarterly!E18/Quarterly!E17)^4)-1","v":5.2944953847937626E-3},{"$f":"((Quarterly!F18/Quarterly!F17)^4)-1","v":-9.6525264808653199E-2},{"$f":"((Quarterly!G18/Quarterly!G17)^4)-1","v":2.8100676842699457E-3},{"$f":"((Quarterly!H18/Quarterly!H17)^4)-1","v":1.4463815449430095E-2},{"$f":"((Quarterly!I18/Quarterly!I17)^4)-1","v":-9.2461174879489016E-3},{"$f":"((Quarterly!J18/Quarterly!J17)^4)-1","v":4.4891815780976341E-3},{"$f":"((Quarterly!K18/Quarterly!K17)^4)-1","v":-6.1302501457847214E-3},{"$f":"((Quarterly!L18-Quarterly!L17))","v":-37.382999999999996},{"$f":"((Quarterly!M18/Quarterly!M17)^4)-1","v":-0.17573696891818136},{"$f":"((Quarterly!N18/Quarterly!N17)^4)-1","v":8.5499241601404208E-2},{"$f":"((Quarterly!O18/Quarterly!O17)^4)-1","v":-0.90576992354204977},{"$f":"((Quarterly!P18/Quarterly!P17)^4)-1","v":2.6966097832350266E-2},{"$f":"((Quarterly!Q18/Quarterly!Q17)^4)-1","v":28467.118776053012},null,null,null,null,null,"--","--",{"$f":"((Quarterly!Y18/Quarterly!Y17)^4)-1","v":3.8944420020351478E-2},"--",{"$f":"((Quarterly!AA18/Quarterly!AA17)^4)-1","v":-0.12832753210489789},{"$f":"((Quarterly!AB18/Quarterly!AB17)^4)-1","v":-0.14414103675064294},"--","--","--","--","--","--","--","--","--","--",{"$f":"((Quarterly!AM18/Quarterly!AM17)^4)-1","v":-9.299416934834126E-2},"--","--","--",{"$f":"Quarterly!AQ18-Quarterly!AQ17","v":-0.70000000000000284},"--","--",{"$f":"Quarterly!AT18-Quarterly!AT17","v":0.5},"--","--",{"$f":"Quarterly!AW18-Quarterly!AW17","v":-0.36666666666666714},{"$f":"Quarterly!AX18-Quarterly!AX17","v":-2},{"$f":"Quarterly!AY18-Quarterly!AY17","v":-3.4666666666666686},{"$f":"Quarterly!AZ18-Quarterly!AZ17","v":-1.3999999999999986},{"$f":"Quarterly!BA18-Quarterly!BA17","v":1.0333333333333385},"--","--","--","--",{"$f":"((Quarterly!BF18/Quarterly!BF17)^4)-1","v":1.7548938998713126E-2},{"$f":"((Quarterly!BG18/Quarterly!BG17)^4)-1","v":-4.7884679307361955E-2},{"$f":"((Quarterly!BH18/Quarterly!BH17)^4)-1","v":-8.0317110501251232E-3},{"$f":"((Quarterly!BI18/Quarterly!BI17)^4)-1","v":6.886042551129834E-2},{"$f":"((Quarterly!BJ18/Quarterly!BJ17)^4)-1","v":-0.20815919679969264},"--",null,"--","--",null,null,null,null,null,{"$f":"((Quarterly!BT18/Quarterly!BT17)^4)-1","v":8.1177231889902002E-2},"--","--",{"$f":"((Quarterly!BW18/Quarterly!BW17)^4)-1","v":9.2752800440848882E-2},{"$f":"((Quarterly!BX18/Quarterly!BX17)^4)-1","v":-8.8183091570014471E-2},{"$f":"((Quarterly!BY18/Quarterly!BY17)^4)-1","v":-9.7027978769983703E-2},"--","--",{"$f":"((Quarterly!CB18/Quarterly!CB17)^4)-1","v":0.52788366095369343},{"$f":"((Quarterly!CC18/Quarterly!CC17)^4)-1","v":0.5693187852606254},"--","--",null,"--","--",null,"--",{"$f":"((Quarterly!CK18/Quarterly!CK17)^4)-1","v":1.3567149929277544E-2},{"$f":"((Quarterly!CL18/Quarterly!CL17)^4)-1","v":-5.7587340649794316E-2},{"$f":"((Quarterly!CM18/Quarterly!CM17)^4)-1","v":-0.23832342820174968},{"$f":"((Quarterly!CN18/Quarterly!CN17)^4)-1","v":-1.6714510892754664E-3},{"$f":"((Quarterly!CO18/Quarterly!CO17)^4)-1","v":0.12210059578849153},{"$f":"((Quarterly!CP18/Quarterly!CP17)^4)-1","v":5.697221276095088E-2},{"$f":"((Quarterly!CQ18/Quarterly!CQ17)^4)-1","v":1.8638454363795631E-2},"--","--","--",null,null,null,null,null,{"$f":"((Quarterly!CZ18/Quarterly!CZ17)^4)-1","v":2.5932795739764591E-2},{"$f":"((Quarterly!DA18/Quarterly!DA17)^4)-1","v":2.1965133785144086E-2},null,null,null,null,null,"--","--",{"$f":"Quarterly!DI18-Quarterly!DI17","v":6.6666666666662877E-2},"--",{"$f":"(Quarterly!DK18-Quarterly!DK17)*100","v":73.333333333333158},{"$f":"((Quarterly!DL18/Quarterly!DL17)^4)-1","v":-6.8693709514440426E-2},null,null,null,{"$f":"((Quarterly!DP18/Quarterly!DP17)^4)-1","v":-2.321000823534991E-2},null,null,null,"--","--","--","--","--","--","--","--","--","--",null,null,null,null,null,{"$f":"((Quarterly!EI18/Quarterly!EI17)^4)-1","v":-6.9258881450652732E-2},{"$f":"((Quarterly!EJ18/Quarterly!EJ17)^4)-1","v":-3.5579301572919331E-2},{"$f":"((Quarterly!EK18/Quarterly!EK17)^4)-1","v":-2.5687534741735241E-2},null,null,null,null,null,{"$f":"((Quarterly!EQ18/Quarterly!EQ17)^4)-1","v":8.4566125703511297E-3},"--",{"$f":"((Quarterly!ES18/Quarterly!ES17)^4)-1","v":4.0753895265406292E-3},null,null,null,null,null,{"$f":"(Quarterly!EY18-Quarterly!EY17)*100","v":-28.333333333333321},{"$f":"(Quarterly!EZ18-Quarterly!EZ17)*100","v":-64.000000000000014},{"$f":"(Quarterly!FA18-Quarterly!FA17)*100","v":0.66666666666659324},{"$f":"(Quarterly!FB18-Quarterly!FB17)*100","v":-0.66666666666668206},-1.3333333333332753,"--",{"$f":"(Quarterly!FE18-Quarterly!FE17)*100","v":-5.3333333333333233},{"$f":"(Quarterly!FF18-Quarterly!FF17)*100","v":-8.0000000000000071},"--",{"$f":"(Quarterly!FH18-Quarterly!FH17)*100","v":7.333333333333325},{"$f":"(Quarterly!FI18-Quarterly!FI17)*100","v":5.3333333333333233},13.33333333333333,null,null,null,null,null,"--","--","--","--","--","--","--","--","--",null,null,null,null,null,{"$f":"((Quarterly!GD18/Quarterly!GD17)^4)-1","v":0},"--","--","--","--","--","--","--","--"]
["61'Q1",{"$f":"((Quarterly!B19/Quarterly!B18)^4)-1","v":3.6613724725607533E-2},{"$f":"((Quarterly!C19/Quarterly!C18)^4)-1","v":2.7476262206509894E-2},{"$f":"((Quarterly!D19/Quarterly!D18)^4)-1","v":7.2396828769576427E-3},{"$f":"((Quarterly!E19/Quarterly!E18)^4)-1","v":-1.2658893925550085E-3},{"$f":"((Quarterly!F19/Quarterly!F18)^4)-1","v":-0.20251892305717678},{"$f":"((Quarterly!G19/Quarterly!G18)^4)-1","v":2.3853801337364144E-2},{"$f":"((Quarterly!H19/Quarterly!H18)^4)-1","v":2.8639289825327374E-4},{"$f":"((Quarterly!I19/Quarterly!I18)^4)-1","v":-5.5962976040004109E-2},{"$f":"((Quarterly!J19/Quarterly!J18)^4)-1","v":-9.7462320125969892E-2},{"$f":"((Quarterly!K19/Quarterly!K18)^4)-1","v":1.6511519088389104E-2},{"$f":"((Quarterly!L19-Quarterly!L18))","v":10.941000000000001},{"$f":"((Quarterly!M19/Quarterly!M18)^4)-1","v":-1.930701079563002E-2},{"$f":"((Quarterly!N19/Quarterly!N18)^4)-1","v":-2.7136639750462987E-2},{"$f":"((Quarterly!O19/Quarterly!O18)^4)-1","v":6.8479541038067637E-2},{"$f":"((Quarterly!P19/Quarterly!P18)^4)-1","v":6.0397007410585735E-2},{"$f":"((Quarterly!Q19/Quarterly!Q18)^4)-1","v":-0.17813498789615201},null,null,null,null,null,"--","--",{"$f":"((Quarterly!Y19/Quarterly!Y18)^4)-1","v":2.3356745991331307E-2},"--",{"$f":"((Quarterly!AA19/Quarterly!AA18)^4)-1","v":-7.875891735438989E-2},{"$f":"((Quarterly!AB19/Quarterly!AB18)^4)-1","v":-0.12266944125154411},"--","--","--","--","--","--","--","--","--","--",{"$f":"((Quarterly!AM19/Quarterly!AM18)^4)-1","v":-5.9196986299098087E-2},"--","--","--",{"$f":"Quarterly!AQ19-Quarterly!AQ18","v":0.6666666666666643},"--","--",{"$f":"Quarterly!AT19-Quarterly!AT18","v":-3.7666666666666657},"--","--",{"$f":"Quarterly!AW19-Quarterly!AW18","v":-1.56666666666667},{"$f":"Quarterly!AX19-Quarterly!AX18","v":1.7666666666666728},{"$f":"Quarterly!AY19-Quarterly!AY18","v":3.7000000000000099},{"$f":"Quarterly!AZ19-Quarterly!AZ18","v":2.5333333333333314},{"$f":"Quarterly!BA19-Quarterly!BA18","v":2.7333333333333343},"--","--","--","--",{"$f":"((Quarterly!BF19/Quarterly!BF18)^4)-1","v":3.5681628982255242E-2},{"$f":"((Quarterly!BG19/Quarterly!BG18)^4)-1","v":5.2209096021610168E-2},{"$f":"((Quarterly!BH19/Quarterly!BH18)^4)-1","v":2.7205962213284307E-2},{"$f":"((Quarterly!BI19/Quarterly!BI18)^4)-1","v":-1.5898818028036943E-2},{"$f":"((Quarterly!BJ19/Quarterly!BJ18)^4)-1","v":-0.15912031748872135},"--",null,"--","--",null,null,null,null,null,{"$f":"((Quarterly!BT19/Quarterly!BT18)^4)-1","v":0.11998691827587171},"--","--",{"$f":"((Quarterly!BW19/Quarterly!BW18)^4)-1","v":0.10794998659836996},{"$f":"((Quarterly!BX19/Quarterly!BX18)^4)-1","v":0.20027361636119378},{"$f":"((Quarterly!BY19/Quarterly!BY18)^4)-1","v":3.9156238020559009E-2},"--","--",{"$f":"((Quarterly!CB19/Quarterly!CB18)^4)-1","v":0.38196135221823746},{"$f":"((Quarterly!CC19/Quarterly!CC18)^4)-1","v":0.38357688365986453},"--","--",null,"--","--",null,"--",{"$f":"((Quarterly!CK19/Quarterly!CK18)^4)-1","v":4.2910704693609691E-2},{"$f":"((Quarterly!CL19/Quarterly!CL18)^4)-1","v":0.46503590088902902},{"$f":"((Quarterly!CM19/Quarterly!CM18)^4)-1","v":0.1411261303018756},{"$f":"((Quarterly!CN19/Quarterly!CN18)^4)-1","v":3.942523646025764E-2},{"$f":"((Quarterly!CO19/Quarterly!CO18)^4)-1","v":0.11940938185180627},{"$f":"((Quarterly!CP19/Quarterly!CP18)^4)-1","v":4.3221523811861617E-2},{"$f":"((Quarterly!CQ19/Quarterly!CQ18)^4)-1","v":1.6107657864222746E-2},"--","--","--",null,null,null,null,null,{"$f":"((Quarterly!CZ19/Quarterly!CZ18)^4)-1","v":8.0834887083001128E-3},{"$f":"((Quarterly!DA19/Quarterly!DA18)^4)-1","v":8.6956010281804552E-3},null,null,null,null,null,"--","--",{"$f":"Quarterly!DI19-Quarterly!DI18","v":0},"--",{"$f":"(Quarterly!DK19-Quarterly!DK18)*100","v":53.333333333333414},{"$f":"((Quarterly!DL19/Quarterly!DL18)^4)-1","v":-7.0813327789373326E-2},null,null,null,{"$f":"((Quarterly!DP19/Quarterly!DP18)^4)-1","v":-2.3248339879486157E-2},null,null,null,"--","--","--","--","--","--","--","--","--","--",null,null,null,null,null,{"$f":"((Quarterly!EI19/Quarterly!EI18)^4)-1","v":2.0949764807300486E-2},{"$f":"((Quarterly!EJ19/Quarterly!EJ18)^4)-1","v":1.7686595654991644E-2},{"$f":"((Quarterly!EK19/Quarterly!EK18)^4)-1","v":1.957213896395027E-2},null,null,null,null,null,{"$f":"((Quarterly!EQ19/Quarterly!EQ18)^4)-1","v":1.2678130225675099E-2},"--",{"$f":"((Quarterly!ES19/Quarterly!ES18)^4)-1","v":1.2251005766815481E-2},null,null,null,null,null,{"$f":"(Quarterly!EY19-Quarterly!EY18)*100","v":0},{"$f":"(Quarterly!EZ19-Quarterly!EZ18)*100","v":-29.333333333333343},{"$f":"(Quarterly!FA19-Quarterly!FA18)*100","v":-4.9999999999999822},{"$f":"(Quarterly!FB19-Quarterly!FB18)*100","v":-3.3333333333333215},1.6666666666666607,"--",{"$f":"(Quarterly!FE19-Quarterly!FE18)*100","v":4.3333333333333446},{"$f":"(Quarterly!FF19-Quarterly!FF18)*100","v":-12.000000000000011},"--",{"$f":"(Quarterly!FH19-Quarterly!FH18)*100","v":-10.33333333333335},{"$f":"(Quarterly!FI19-Quarterly!FI18)*100","v":-10.000000000000009},2.0000000000000018,null,null,null,null,null,"--","--","--","--","--","--","--","--","--",null,null,null,null,null,{"$f":"((Quarterly!GD19/Quarterly!GD18)^4)-1","v":0},"--","--","--","--","--","--","--","--"]
["61'Q2",{"$f":"((Quarterly!B20/Quarterly!B19)^4)-1","v":8.6808566110623264E-2},{"$f":"((Quarterly!C20/Quarterly!C19)^4)-1","v":7.645410513394113E-2},{"$f":"((Quarterly!D20/Quarterly!D19)^4)-1","v":4.4214805445077499E-2},{"$f":"((Quarterly!E20/Quarterly!E19)^4)-1","v":6.1107453253068877E-2},{"$f":"((Quarterly!F20/Quarterly!F19)^4)-1","v":8.5659402610523516E-2},{"$f":"((Quarterly!G20/Quarterly!G19)^4)-1","v":5.4737489463772881E-2},{"$f":"((Quarterly!H20/Quarterly!H19)^4)-1","v":6.3078343842996709E-2},{"$f":"((Quarterly!I20/Quarterly!I19)^4)-1","v":9.2128256811923714E-2},{"$f":"((Quarterly!J20/Quarterly!J19)^4)-1","v":0.16258294350146607},{"$f":"((Quarterly!K20/Quarterly!K19)^4)-1","v":1.4377176409734682E-2},{"$f":"((Quarterly!L20-Quarterly!L19))","v":17.076999999999998},{"$f":"((Quarterly!M20/Quarterly!M19)^4)-1","v":4.965398232863083E-2},{"$f":"((Quarterly!N20/Quarterly!N19)^4)-1","v":-5.4405316513044366E-2},{"$f":"((Quarterly!O20/Quarterly!O19)^4)-1","v":1.7507887683717627},{"$f":"((Quarterly!P20/Quarterly!P19)^4)-1","v":9.2411633884059707E-3},{"$f":"((Quarterly!Q20/Quarterly!Q19)^4)-1","v":2.4751448935498841},null,null,null,null,null,"--","--",{"$f":"((Quarterly!Y20/Quarterly!Y19)^4)-1","v":2.4367850846370498E-2},"--",{"$f":"((Quarterly!AA20/Quarterly!AA19)^4)-1","v":0.22427200931145408},{"$f":"((Quarterly!AB20/Quarterly!AB19)^4)-1","v":0.43629995344217543},"--","--","--","--","--","--","--","--","--","--",{"$f":"((Quarterly!AM20/Quarterly!AM19)^4)-1","v":0.16826297057442852},"--","--","--",{"$f":"Quarterly!AQ20-Quarterly!AQ19","v":12.666666666666664},"--","--",{"$f":"Quarterly!AT20-Quarterly!AT19","v":16.166666666666664},"--","--",{"$f":"Quarterly!AW20-Quarterly!AW19","v":3.7666666666666657},{"$f":"Quarterly!AX20-Quarterly!AX19","v":15.133333333333326},{"$f":"Quarterly!AY20-Quarterly!AY19","v":2.3999999999999986},{"$f":"Quarterly!AZ20-Quarterly!AZ19","v":13.900000000000013},{"$f":"Quarterly!BA20-Quarterly!BA19","v":7.4333333333333229},"--","--","--","--",{"$f":"((Quarterly!BF20/Quarterly!BF19)^4)-1","v":5.6723716909103494E-2},{"$f":"((Quarterly!BG20/Quarterly!BG19)^4)-1","v":0.1193484584264124},{"$f":"((Quarterly!BH20/Quarterly!BH19)^4)-1","v":5.8492996185931512E-2},{"$f":"((Quarterly!BI20/Quarterly!BI19)^4)-1","v":-5.5611001530700199E-2},{"$f":"((Quarterly!BJ20/Quarterly!BJ19)^4)-1","v":0.42265828453616572},"--",null,"--","--",null,null,null,null,null,{"$f":"((Quarterly!BT20/Quarterly!BT19)^4)-1","v":2.8375218218284148E-2},"--","--",{"$f":"((Quarterly!BW20/Quarterly!BW19)^4)-1","v":8.8816389990810762E-2},{"$f":"((Quarterly!BX20/Quarterly!BX19)^4)-1","v":6.0447719330662952E-2},{"$f":"((Quarterly!BY20/Quarterly!BY19)^4)-1","v":0.25145668785738096},"--","--",{"$f":"((Quarterly!CB20/Quarterly!CB19)^4)-1","v":-0.19567705459678575},{"$f":"((Quarterly!CC20/Quarterly!CC19)^4)-1","v":-8.8767667783978932E-2},"--","--",null,"--","--",null,"--",{"$f":"((Quarterly!CK20/Quarterly!CK19)^4)-1","v":5.9163834160578244E-2},{"$f":"((Quarterly!CL20/Quarterly!CL19)^4)-1","v":8.5690655261885906E-2},{"$f":"((Quarterly!CM20/Quarterly!CM19)^4)-1","v":3.615619868783515E-2},{"$f":"((Quarterly!CN20/Quarterly!CN19)^4)-1","v":6.2287368245809605E-2},{"$f":"((Quarterly!CO20/Quarterly!CO19)^4)-1","v":9.6400971526021895E-2},{"$f":"((Quarterly!CP20/Quarterly!CP19)^4)-1","v":-1.8544920439032997E-2},{"$f":"((Quarterly!CQ20/Quarterly!CQ19)^4)-1","v":1.5518253360408352E-2},"--","--","--",null,null,null,null,null,{"$f":"((Quarterly!CZ20/Quarterly!CZ19)^4)-1","v":-1.3398088891841686E-3},{"$f":"((Quarterly!DA20/Quarterly!DA19)^4)-1","v":1.3036221301883533E-2},null,null,null,null,null,"--","--",{"$f":"Quarterly!DI20-Quarterly!DI19","v":-0.1666666666666714},"--",{"$f":"(Quarterly!DK20-Quarterly!DK19)*100","v":20.000000000000018},{"$f":"((Quarterly!DL20/Quarterly!DL19)^4)-1","v":2.4693558480442857E-2},null,null,null,{"$f":"((Quarterly!DP20/Quarterly!DP19)^4)-1","v":1.2161900134625148E-2},null,null,null,"--","--","--","--","--","--","--","--","--","--",null,null,null,null,null,{"$f":"((Quarterly!EI20/Quarterly!EI19)^4)-1","v":7.3028760334736598E-2},{"$f":"((Quarterly!EJ20/Quarterly!EJ19)^4)-1","v":6.7051808872855556E-2},{"$f":"((Quarterly!EK20/Quarterly!EK19)^4)-1","v":6.6987274285027265E-2},null,null,null,null,null,{"$f":"((Quarterly!EQ20/Quarterly!EQ19)^4)-1","v":-4.1274059443529021E-2},"--",{"$f":"((Quarterly!ES20/Quarterly!ES19)^4)-1","v":0},null,null,null,null,null,{"$f":"(Quarterly!EY20-Quarterly!EY19)*100","v":0},{"$f":"(Quarterly!EZ20-Quarterly!EZ19)*100","v":-27.000000000000025},{"$f":"(Quarterly!FA20-Quarterly!FA19)*100","v":1.3333333333333641},{"$f":"(Quarterly!FB20-Quarterly!FB19)*100","v":-4.6666666666666856},-6.0000000000000497,"--",{"$f":"(Quarterly!FE20-Quarterly!FE19)*100","v":-4.6666666666666856},{"$f":"(Quarterly!FF20-Quarterly!FF19)*100","v":6.3333333333333464},"--",{"$f":"(Quarterly!FH20-Quarterly!FH19)*100","v":-2.6666666666666394},{"$f":"(Quarterly!FI20-Quarterly!FI19)*100","v":0.33333333333338544},-5.9999999999999609,null,null,null,null,null,"--","--","--","--","--","--","--","--","--",null,null,null,null,null,{"$f":"((Quarterly!GD20/Quarterly!GD19)^4)-1","v":0},"--","--","--","--","--","--","--","--"]
["61'Q3",{"$f":"((Quarterly!B21/Quarterly!B20)^4)-1","v":7.9764807799925785E-2},{"$f":"((Quarterly!C21/Quarterly!C20)^4)-1","v":6.8382125080203471E-2},{"$f":"((Quarterly!D21/Quarterly!D20)^4)-1","v":3.4447632053547173E-2},{"$f":"((Quarterly!E21/Quarterly!E20)^4)-1","v":1.9488621775025416E-2},{"$f":"((Quarterly!F21/Quarterly!F20)^4)-1","v":0.10147218104513778},{"$f":"((Quarterly!G21/Quarterly!G20)^4)-1","v":3.0172321684975856E-3},{"$f":"((Quarterly!H21/Quarterly!H20)^4)-1","v":2.3457963805874504E-2},{"$f":"((Quarterly!I21/Quarterly!I20)^4)-1","v":3.9892789856806221E-2},{"$f":"((Quarterly!J21/Quarterly!J20)^4)-1","v":6.7720409512611157E-2},{"$f":"((Quarterly!K21/Quarterly!K20)^4)-1","v":0.23387219246002866},{"$f":"((Quarterly!L21-Quarterly!L20))","v":18.338999999999999},{"$f":"((Quarterly!M21/Quarterly!M20)^4)-1","v":0.29236412792969957},{"$f":"((Quarterly!N21/Quarterly!N20)^4)-1","v":-2.1555199159644101E-2},{"$f":"((Quarterly!O21/Quarterly!O20)^4)-1","v":6.3437107417526715},{"$f":"((Quarterly!P21/Quarterly!P20)^4)-1","v":8.6963933022799589E-2},{"$f":"((Quarterly!Q21/Quarterly!Q20)^4)-1","v":-0.66086458795489955},null,null,null,null,null,"--","--",{"$f":"((Quarterly!Y21/Quarterly!Y20)^4)-1","v":3.8717322797759079E-2},"--",{"$f":"((Quarterly!AA21/Quarterly!AA20)^4)-1","v":0.23692131914668257},{"$f":"((Quarterly!AB21/Quarterly!AB20)^4)-1","v":0.19315221866432375},"--","--","--","--","--","--","--","--","--","--",{"$f":"((Quarterly!AM21/Quarterly!AM20)^4)-1","v":0.13386112290673702},"--","--","--",{"$f":"Quarterly!AQ21-Quarterly!AQ20","v":2.4333333333333371},"--","--",{"$f":"Quarterly!AT21-Quarterly!AT20","v":2.9666666666666686},"--","--",{"$f":"Quarterly!AW21-Quarterly!AW20","v":9.6000000000000014},{"$f":"Quarterly!AX21-Quarterly!AX20","v":0.13333333333333997},{"$f":"Quarterly!AY21-Quarterly!AY20","v":6.6666666666662877E-2},{"$f":"Quarterly!AZ21-Quarterly!AZ20","v":1.9666666666666544},{"$f":"Quarterly!BA21-Quarterly!BA20","v":2},"--","--","--","--",{"$f":"((Quarterly!BF21/Quarterly!BF20)^4)-1","v":3.0404898946669201E-2},{"$f":"((Quarterly!BG21/Quarterly!BG20)^4)-1","v":5.6294208826723313E-2},{"$f":"((Quarterly!BH21/Quarterly!BH20)^4)-1","v":1.4260554172811357E-2},{"$f":"((Quarterly!BI21/Quarterly!BI20)^4)-1","v":-2.4641967854012514E-2},{"$f":"((Quarterly!BJ21/Quarterly!BJ20)^4)-1","v":0.30145105837374131},"--",null,"--","--",null,null,null,null,null,{"$f":"((Quarterly!BT21/Quarterly!BT20)^4)-1","v":2.2323833934746906E-2},"--","--",{"$f":"((Quarterly!BW21/Quarterly!BW20)^4)-1","v":7.3700221747530881E-2},{"$f":"((Quarterly!BX21/Quarterly!BX20)^4)-1","v":0.35771544621281293},{"$f":"((Quarterly!BY21/Quarterly!BY20)^4)-1","v":0.34927216865021382},"--","--",{"$f":"((Quarterly!CB21/Quarterly!CB20)^4)-1","v":5.3985660753139042E-2},{"$f":"((Quarterly!CC21/Quarterly!CC20)^4)-1","v":-1.8426679430194381E-2},"--","--",null,"--","--",null,"--",{"$f":"((Quarterly!CK21/Quarterly!CK20)^4)-1","v":6.6605212182925699E-2},{"$f":"((Quarterly!CL21/Quarterly!CL20)^4)-1","v":0.38733846953673301},{"$f":"((Quarterly!CM21/Quarterly!CM20)^4)-1","v":0.31607146487256732},{"$f":"((Quarterly!CN21/Quarterly!CN20)^4)-1","v":5.4207394312236756E-2},{"$f":"((Quarterly!CO21/Quarterly!CO20)^4)-1","v":8.8116767977416854E-2},{"$f":"((Quarterly!CP21/Quarterly!CP20)^4)-1","v":2.9292447627221385E-2},{"$f":"((Quarterly!CQ21/Quarterly!CQ20)^4)-1","v":1.6334575562953368E-2},"--","--","--",null,null,null,null,null,{"$f":"((Quarterly!CZ21/Quarterly!CZ20)^4)-1","v":1.5736223533041827E-2},{"$f":"((Quarterly!DA21/Quarterly!DA20)^4)-1","v":1.735317441956008E-2},null,null,null,null,null,"--","--",{"$f":"Quarterly!DI21-Quarterly!DI20","v":-0.26666666666666572},"--",{"$f":"(Quarterly!DK21-Quarterly!DK20)*100","v":-23.333333333333339},{"$f":"((Quarterly!DL21/Quarterly!DL20)^4)-1","v":4.2135866810138367E-2},null,null,null,{"$f":"((Quarterly!DP21/Quarterly!DP20)^4)-1","v":3.5687361691470576E-2},null,null,null,"--","--","--","--","--","--","--","--","--","--",null,null,null,null,null,{"$f":"((Quarterly!EI21/Quarterly!EI20)^4)-1","v":0.11312969106409021},{"$f":"((Quarterly!EJ21/Quarterly!EJ20)^4)-1","v":5.9999761269028618E-2},{"$f":"((Quarterly!EK21/Quarterly!EK20)^4)-1","v":4.5371340937143012E-2},null,null,null,null,null,{"$f":"((Quarterly!EQ21/Quarterly!EQ20)^4)-1","v":4.2440258708094092E-3},"--",{"$f":"((Quarterly!ES21/Quarterly!ES20)^4)-1","v":0},null,null,null,null,null,{"$f":"(Quarterly!EY21-Quarterly!EY20)*100","v":0},{"$f":"(Quarterly!EZ21-Quarterly!EZ20)*100","v":-4.9999999999999822},{"$f":"(Quarterly!FA21-Quarterly!FA20)*100","v":15.333333333333332},{"$f":"(Quarterly!FB21-Quarterly!FB20)*100","v":8.9999999999999858},-6.3333333333333464,"--",{"$f":"(Quarterly!FE21-Quarterly!FE20)*100","v":0},{"$f":"(Quarterly!FF21-Quarterly!FF20)*100","v":7.6666666666666661},"--",{"$f":"(Quarterly!FH21-Quarterly!FH20)*100","v":28.333333333333321},{"$f":"(Quarterly!FI21-Quarterly!FI20)*100","v":18.99999999999995},11.333333333333284,null,null,null,null,null,"--","--","--","--","--","--","--","--","--",null,null,null,null,null,{"$f":"((Quarterly!GD21/Quarterly!GD20)^4)-1","v":0},"--","--","--","--","--","--","--","--"]
["61'Q4",{"$f":"((Quarterly!B22/Quarterly!B21)^4)-1","v":9.7687590728160023E-2},{"$f":"((Quarterly!C22/Quarterly!C21)^4)-1","v":8.3567448588537818E-2},{"$f":"((Quarterly!D22/Quarterly!D21)^4)-1","v":9.3409709415669173E-2},{"$f":"((Quarterly!E22/Quarterly!E21)^4)-1","v":8.2783741697468161E-2},{"$f":"((Quarterly!F22/Quarterly!F21)^4)-1","v":0.20856870759378787},{"$f":"((Quarterly!G22/Quarterly!G21)^4)-1","v":5.545626270991999E-2},{"$f":"((Quarterly!H22/Quarterly!H21)^4)-1","v":8.9974117240058327E-2},{"$f":"((Quarterly!I22/Quarterly!I21)^4)-1","v":0.12717050409527397},{"$f":"((Quarterly!J22/Quarterly!J21)^4)-1","v":0.21782708037372767},{"$f":"((Quarterly!K22/Quarterly!K21)^4)-1","v":0.14007834813749809},{"$f":"((Quarterly!L22-Quarterly!L21))","v":-4.4699999999999989},{"$f":"((Quarterly!M22/Quarterly!M21)^4)-1","v":9.8549587199334709E-2},{"$f":"((Quarterly!N22/Quarterly!N21)^4)-1","v":0.12954721889883203},{"$f":"((Quarterly!O22/Quarterly!O21)^4)-1","v":-4.3951289695978613E-2},{"$f":"((Quarterly!P22/Quarterly!P21)^4)-1","v":9.0332105777774174E-2},{"$f":"((Quarterly!Q22/Quarterly!Q21)^4)-1","v":-0.87591483903905443},null,null,null,null,null,"--","--",{"$f":"((Quarterly!Y22/Quarterly!Y21)^4)-1","v":6.0787587257028264E-2},"--",{"$f":"((Quarterly!AA22/Quarterly!AA21)^4)-1","v":0.31624498948700697},{"$f":"((Quarterly!AB22/Quarterly!AB21)^4)-1","v":0.33637583596776643},"--","--","--","--","--","--","--","--","--","--",{"$f":"((Quarterly!AM22/Quarterly!AM21)^4)-1","v":0.14782155678705466},"--","--","--",{"$f":"Quarterly!AQ22-Quarterly!AQ21","v":1.1666666666666714},"--","--",{"$f":"Quarterly!AT22-Quarterly!AT21","v":0.76666666666666572},"--","--",{"$f":"Quarterly!AW22-Quarterly!AW21","v":3.7666666666666728},{"$f":"Quarterly!AX22-Quarterly!AX21","v":3.2999999999999829},{"$f":"Quarterly!AY22-Quarterly!AY21","v":2.2333333333333272},{"$f":"Quarterly!AZ22-Quarterly!AZ21","v":-2.9333333333333371},{"$f":"Quarterly!BA22-Quarterly!BA21","v":2.8666666666666742},"--","--","--","--",{"$f":"((Quarterly!BF22/Quarterly!BF21)^4)-1","v":2.9683490304458937E-2},{"$f":"((Quarterly!BG22/Quarterly!BG21)^4)-1","v":3.799344029094609E-2},{"$f":"((Quarterly!BH22/Quarterly!BH21)^4)-1","v":2.3617082586702365E-2},{"$f":"((Quarterly!BI22/Quarterly!BI21)^4)-1","v":-8.2584284359612514E-3},{"$f":"((Quarterly!BJ22/Quarterly!BJ21)^4)-1","v":0.43533697472527311},"--",null,"--","--",null,null,null,null,null,{"$f":"((Quarterly!BT22/Quarterly!BT21)^4)-1","v":3.8867659428048151E-2},"--","--",{"$f":"((Quarterly!BW22/Quarterly!BW21)^4)-1","v":4.212389507627079E-2},{"$f":"((Quarterly!BX22/Quarterly!BX21)^4)-1","v":9.0243036914461117E-2},{"$f":"((Quarterly!BY22/Quarterly!BY21)^4)-1","v":0.12002251584010826},"--","--",{"$f":"((Quarterly!CB22/Quarterly!CB21)^4)-1","v":-0.4371092349549629},{"$f":"((Quarterly!CC22/Quarterly!CC21)^4)-1","v":-0.38699871826119281},"--","--",null,"--","--",null,"--",{"$f":"((Quarterly!CK22/Quarterly!CK21)^4)-1","v":8.1667528040415549E-2},{"$f":"((Quarterly!CL22/Quarterly!CL21)^4)-1","v":6.1951725543256009E-2},{"$f":"((Quarterly!CM22/Quarterly!CM21)^4)-1","v":-1.7057178230618142E-2},{"$f":"((Quarterly!CN22/Quarterly!CN21)^4)-1","v":7.9339464779528246E-2},{"$f":"((Quarterly!CO22/Quarterly!CO21)^4)-1","v":0.10904318934489265},{"$f":"((Quarterly!CP22/Quarterly!CP21)^4)-1","v":7.3555130294803428E-2},{"$f":"((Quarterly!CQ22/Quarterly!CQ21)^4)-1","v":1.7736147620391218E-2},"--","--","--",null,null,null,null,null,{"$f":"((Quarterly!CZ22/Quarterly!CZ21)^4)-1","v":5.8006429474257715E-3},{"$f":"((Quarterly!DA22/Quarterly!DA21)^4)-1","v":1.293783728411757E-2},null,null,null,null,null,"--","--",{"$f":"Quarterly!DI22-Quarterly!DI21","v":-0.19999999999999574},"--",{"$f":"(Quarterly!DK22-Quarterly!DK21)*100","v":-56.666666666666643},{"$f":"((Quarterly!DL22/Quarterly!DL21)^4)-1","v":4.5808783984931045E-2},null,null,null,{"$f":"((Quarterly!DP22/Quarterly!DP21)^4)-1","v":3.3003389624950863E-2},null,null,null,"--","--","--","--","--","--","--","--","--","--",null,null,null,null,null,{"$f":"((Quarterly!EI22/Quarterly!EI21)^4)-1","v":9.6327514765176536E-2},{"$f":"((Quarterly!EJ22/Quarterly!EJ21)^4)-1","v":8.3940601955164063E-2},{"$f":"((Quarterly!EK22/Quarterly!EK21)^4)-1","v":7.9330070824041865E-2},null,null,null,null,null,{"$f":"((Quarterly!EQ22/Quarterly!EQ21)^4)-1","v":4.2395277107849516E-3},"--",{"$f":"((Quarterly!ES22/Quarterly!ES21)^4)-1","v":0},null,null,null,null,null,{"$f":"(Quarterly!EY22-Quarterly!EY21)*100","v":0},{"$f":"(Quarterly!EZ22-Quarterly!EZ21)*100","v":71.666666666666657},{"$f":"(Quarterly!FA22-Quarterly!FA21)*100","v":-2.6666666666667282},{"$f":"(Quarterly!FB22-Quarterly!FB21)*100","v":0.66666666666668206},3.3333333333334103,"--",{"$f":"(Quarterly!FE22-Quarterly!FE21)*100","v":15.666666666666629},{"$f":"(Quarterly!FF22-Quarterly!FF21)*100","v":8.6666666666666003},"--",{"$f":"(Quarterly!FH22-Quarterly!FH21)*100","v":-5.6666666666666643},{"$f":"(Quarterly!FI22-Quarterly!FI21)*100","v":-0.66666666666672647},-9.3333333333333268,null,null,null,null,null,"--","--","--","--","--","--","--","--","--",null,null,null,null,null,{"$f":"((Quarterly!GD22/Quarterly!GD21)^4)-1","v":0},"--","--","--","--","--","--","--","--"]
["62'Q1",{"$f":"((Quarterly!B23/Quarterly!B22)^4)-1","v":9.6509417062449199E-2},{"$f":"((Quarterly!C23/Quarterly!C22)^4)-1","v":7.4015190607629622E-2},{"$f":"((Quarterly!D23/Quarterly!D22)^4)-1","v":5.0757593213657692E-2},{"$f":"((Quarterly!E23/Quarterly!E22)^4)-1","v":4.3098879913430643E-2},{"$f":"((Quarterly!F23/Quarterly!F22)^4)-1","v":8.911110574396286E-2},{"$f":"((Quarterly!G23/Quarterly!G22)^4)-1","v":3.3615472983017369E-2},{"$f":"((Quarterly!H23/Quarterly!H22)^4)-1","v":4.5199121701660738E-2},{"$f":"((Quarterly!I23/Quarterly!I22)^4)-1","v":8.2599508676468147E-2},{"$f":"((Quarterly!J23/Quarterly!J22)^4)-1","v":0.14028096175890892},{"$f":"((Quarterly!K23/Quarterly!K22)^4)-1","v":7.4914268014184104E-2},{"$f":"((Quarterly!L23-Quarterly!L22))","v":12.636999999999997},{"$f":"((Quarterly!M23/Quarterly!M22)^4)-1","v":0.12747085085148413},{"$f":"((Quarterly!N23/Quarterly!N22)^4)-1","v":-9.7606863285748524E-3},{"$f":"((Quarterly!O23/Quarterly!O22)^4)-1","v":1.0610268102648277},{"$f":"((Quarterly!P23/Quarterly!P22)^4)-1","v":7.9331152795013349E-2},{"$f":"((Quarterly!Q23/Quarterly!Q22)^4)-1","v":10.9131947879489},null,null,null,null,null,"--","--",{"$f":"((Quarterly!Y23/Quarterly!Y22)^4)-1","v":6.4439484492690768E-2},"--",{"$f":"((Quarterly!AA23/Quarterly!AA22)^4)-1","v":6.5892147349923214E-2},{"$f":"((Quarterly!AB23/Quarterly!AB22)^4)-1","v":0.27143297992135551},"--","--","--","--","--","--","--","--","--","--",{"$f":"((Quarterly!AM23/Quarterly!AM22)^4)-1","v":6.1095012741937849E-2},"--","--","--",{"$f":"Quarterly!AQ23-Quarterly!AQ22","v":-0.93333333333333712},"--","--",{"$f":"Quarterly!AT23-Quarterly!AT22","v":0.86666666666666714},"--","--",{"$f":"Quarterly!AW23-Quarterly!AW22","v":2.5666666666666629},{"$f":"Quarterly!AX23-Quarterly!AX22","v":-8.4999999999999929},{"$f":"Quarterly!AY23-Quarterly!AY22","v":1.6333333333333471},{"$f":"Quarterly!AZ23-Quarterly!AZ22","v":2.4333333333333513},{"$f":"Quarterly!BA23-Quarterly!BA22","v":3.6666666666666714},"--","--","--","--",{"$f":"((Quarterly!BF23/Quarterly!BF22)^4)-1","v":6.5075496153842449E-2},{"$f":"((Quarterly!BG23/Quarterly!BG22)^4)-1","v":6.8228746697227116E-2},{"$f":"((Quarterly!BH23/Quarterly!BH22)^4)-1","v":4.8884283625763025E-2},{"$f":"((Quarterly!BI23/Quarterly!BI22)^4)-1","v":-2.6467265321142852E-3},{"$f":"((Quarterly!BJ23/Quarterly!BJ22)^4)-1","v":5.6037273475139759E-2},"--",null,"--","--",null,null,null,null,null,{"$f":"((Quarterly!BT23/Quarterly!BT22)^4)-1","v":9.2654997223286628E-2},"--","--",{"$f":"((Quarterly!BW23/Quarterly!BW22)^4)-1","v":5.3478207508544706E-2},{"$f":"((Quarterly!BX23/Quarterly!BX22)^4)-1","v":-7.7360638337635179E-2},{"$f":"((Quarterly!BY23/Quarterly!BY22)^4)-1","v":1.6397901360959866E-2},"--","--",{"$f":"((Quarterly!CB23/Quarterly!CB22)^4)-1","v":-0.20173900421468793},{"$f":"((Quarterly!CC23/Quarterly!CC22)^4)-1","v":-0.24842814470235774},"--","--",null,"--","--",null,"--",{"$f":"((Quarterly!CK23/Quarterly!CK22)^4)-1","v":6.2669711369923498E-2},{"$f":"((Quarterly!CL23/Quarterly!CL22)^4)-1","v":2.5814377629174157E-2},{"$f":"((Quarterly!CM23/Quarterly!CM22)^4)-1","v":-0.14637423952553441},{"$f":"((Quarterly!CN23/Quarterly!CN22)^4)-1","v":3.8653243136504312E-2},{"$f":"((Quarterly!CO23/Quarterly!CO22)^4)-1","v":0.10863959676836377},{"$f":"((Quarterly!CP23/Quarterly!CP22)^4)-1","v":6.4065105755979346E-2},{"$f":"((Quarterly!CQ23/Quarterly!CQ22)^4)-1","v":1.4663504133445526E-2},"--","--","--",null,null,null,null,null,{"$f":"((Quarterly!CZ23/Quarterly!CZ22)^4)-1","v":1.5651779452747538E-2},{"$f":"((Quarterly!DA23/Quarterly!DA22)^4)-1","v":8.5836417888998096E-3},null,null,null,null,null,"--","--",{"$f":"Quarterly!DI23-Quarterly!DI22","v":-0.10000000000000142},"--",{"$f":"(Quarterly!DK23-Quarterly!DK22)*100","v":-56.666666666666728},{"$f":"((Quarterly!DL23/Quarterly!DL22)^4)-1","v":4.2037357497140659E-2},null,null,null,{"$f":"((Quarterly!DP23/Quarterly!DP22)^4)-1","v":3.0014738254637852E-2},null,null,null,"--","--","--","--","--","--","--","--","--","--",null,null,null,null,null,{"$f":"((Quarterly!EI23/Quarterly!EI22)^4)-1","v":8.9144455850394877E-2},{"$f":"((Quarterly!EJ23/Quarterly!EJ22)^4)-1","v":6.7256571325557069E-2},{"$f":"((Quarterly!EK23/Quarterly!EK22)^4)-1","v":6.0991072408288272E-2},null,null,null,null,null,{"$f":"((Quarterly!EQ23/Quarterly!EQ22)^4)-1","v":2.1309853929995404E-2},"--",{"$f":"((Quarterly!ES23/Quarterly!ES22)^4)-1","v":1.2213598980916673E-2},null,null,null,null,null,{"$f":"(Quarterly!EY23-Quarterly!EY22)*100","v":0},{"$f":"(Quarterly!EZ23-Quarterly!EZ22)*100","v":5.6666666666666643},{"$f":"(Quarterly!FA23-Quarterly!FA22)*100","v":8.8817841970012523E-14},{"$f":"(Quarterly!FB23-Quarterly!FB22)*100","v":-4.9999999999999822},-5.0000000000000711,"--",{"$f":"(Quarterly!FE23-Quarterly!FE22)*100","v":26.333333333333364},{"$f":"(Quarterly!FF23-Quarterly!FF22)*100","v":10.666666666666691},"--",{"$f":"(Quarterly!FH23-Quarterly!FH22)*100","v":-0.66666666666668206},{"$f":"(Quarterly!FI23-Quarterly!FI22)*100","v":4.333333333333389},-6.333333333333302,null,null,null,null,null,"--","--","--","--","--","--","--","--","--",null,null,null,null,null,{"$f":"((Quarterly!GD23/Quarterly!GD22)^4)-1","v":0},"--","--","--","--","--","--","--","--"]
["62'Q2",{"$f":"((Quarterly!B24/Quarterly!B23)^4)-1","v":5.0696319740126672E-2},{"$f":"((Quarterly!C24/Quarterly!C23)^4)-1","v":4.3800985391678537E-2},{"$f":"((Quarterly!D24/Quarterly!D23)^4)-1","v":6.7892502252455911E-2},{"$f":"((Quarterly!E24/Quarterly!E23)^4)-1","v":5.0119560580390132E-2},{"$f":"((Quarterly!F24/Quarterly!F23)^4)-1","v":0.11185619052361617},{"$f":"((Quarterly!G24/Quarterly!G23)^4)-1","v":1.6111297187052731E-2},{"$f":"((Quarterly!H24/Quarterly!H23)^4)-1","v":6.4977317393948519E-2},{"$f":"((Quarterly!I24/Quarterly!I23)^4)-1","v":0.11268352814328986},{"$f":"((Quarterly!J24/Quarterly!J23)^4)-1","v":0.18614437594137812},{"$f":"((Quarterly!K24/Quarterly!K23)^4)-1","v":0.13079366994127684},{"$f":"((Quarterly!L24-Quarterly!L23))","v":-12.797999999999998},{"$f":"((Quarterly!M24/Quarterly!M23)^4)-1","v":9.0177497264954276E-2},{"$f":"((Quarterly!N24/Quarterly!N23)^4)-1","v":0.44269296678185222},{"$f":"((Quarterly!O24/Quarterly!O23)^4)-1","v":-0.74997459799603083},{"$f":"((Quarterly!P24/Quarterly!P23)^4)-1","v":1.924981017733618E-2},{"$f":"((Quarterly!Q24/Quarterly!Q23)^4)-1","v":0.21934727157381984},null,null,null,null,null,"--","--",{"$f":"((Quarterly!Y24/Quarterly!Y23)^4)-1","v":9.3041378151539345E-2},"--",{"$f":"((Quarterly!AA24/Quarterly!AA23)^4)-1","v":-8.1062666600133504E-3},{"$f":"((Quarterly!AB24/Quarterly!AB23)^4)-1","v":2.2122826237574111E-2},"--","--","--","--","--","--","--","--","--","--",{"$f":"((Quarterly!AM24/Quarterly!AM23)^4)-1","v":3.9336806953913506E-2},"--","--","--",{"$f":"Quarterly!AQ24-Quarterly!AQ23","v":-8.1666666666666572},"--","--",{"$f":"Quarterly!AT24-Quarterly!AT23","v":-6.3000000000000043},"--","--",{"$f":"Quarterly!AW24-Quarterly!AW23","v":-8.3000000000000043},{"$f":"Quarterly!AX24-Quarterly!AX23","v":-5.9666666666666615},{"$f":"Quarterly!AY24-Quarterly!AY23","v":-3.7666666666666728},{"$f":"Quarterly!AZ24-Quarterly!AZ23","v":-10.166666666666679},{"$f":"Quarterly!BA24-Quarterly!BA23","v":-11.466666666666683},"--","--","--","--",{"$f":"((Quarterly!BF24/Quarterly!BF23)^4)-1","v":2.7078462257319469E-2},{"$f":"((Quarterly!BG24/Quarterly!BG23)^4)-1","v":-6.6888509790051787E-3},{"$f":"((Quarterly!BH24/Quarterly!BH23)^4)-1","v":1.1694826414499371E-2},{"$f":"((Quarterly!BI24/Quarterly!BI23)^4)-1","v":3.3824800080412221E-2},{"$f":"((Quarterly!BJ24/Quarterly!BJ23)^4)-1","v":-7.0757174911809106E-2},"--",null,"--","--",null,null,null,null,null,{"$f":"((Quarterly!BT24/Quarterly!BT23)^4)-1","v":9.8579087221152273E-2},"--","--",{"$f":"((Quarterly!BW24/Quarterly!BW23)^4)-1","v":4.50050900066854E-2},{"$f":"((Quarterly!BX24/Quarterly!BX23)^4)-1","v":0.36350341371344763},{"$f":"((Quarterly!BY24/Quarterly!BY23)^4)-1","v":9.7272487300144928E-2},"--","--",{"$f":"((Quarterly!CB24/Quarterly!CB23)^4)-1","v":0.20660302882731085},{"$f":"((Quarterly!CC24/Quarterly!CC23)^4)-1","v":9.6429079622383007E-2},"--","--",null,"--","--",null,"--",{"$f":"((Quarterly!CK24/Quarterly!CK23)^4)-1","v":6.5348063180943994E-2},{"$f":"((Quarterly!CL24/Quarterly!CL23)^4)-1","v":-8.441739646473656E-3},{"$f":"((Quarterly!CM24/Quarterly!CM23)^4)-1","v":0.162179260291619},{"$f":"((Quarterly!CN24/Quarterly!CN23)^4)-1","v":4.2883091365859549E-2},{"$f":"((Quarterly!CO24/Quarterly!CO23)^4)-1","v":0.1025436626967362},{"$f":"((Quarterly!CP24/Quarterly!CP23)^4)-1","v":0.12346355670978615},{"$f":"((Quarterly!CQ24/Quarterly!CQ23)^4)-1","v":1.3955945744449583E-2},"--","--","--",null,null,null,null,null,{"$f":"((Quarterly!CZ24/Quarterly!CZ23)^4)-1","v":1.5142810590096367E-2},{"$f":"((Quarterly!DA24/Quarterly!DA23)^4)-1","v":1.718542853330951E-2},null,null,null,null,null,"--","--",{"$f":"Quarterly!DI24-Quarterly!DI23","v":-0.10000000000000853},"--",{"$f":"(Quarterly!DK24-Quarterly!DK23)*100","v":-9.9999999999998757},{"$f":"((Quarterly!DL24/Quarterly!DL23)^4)-1","v":3.2521600615757373E-2},null,null,null,{"$f":"((Quarterly!DP24/Quarterly!DP23)^4)-1","v":3.7254849201918017E-2},null,null,null,"--","--","--","--","--","--","--","--","--","--",null,null,null,null,null,{"$f":"((Quarterly!EI24/Quarterly!EI23)^4)-1","v":5.6776121354378484E-2},{"$f":"((Quarterly!EJ24/Quarterly!EJ23)^4)-1","v":4.9170244365578597E-2},{"$f":"((Quarterly!EK24/Quarterly!EK23)^4)-1","v":4.6251600908375545E-2},null,null,null,null,null,{"$f":"((Quarterly!EQ24/Quarterly!EQ23)^4)-1","v":-2.0865219157531367E-2},"--",{"$f":"((Quarterly!ES24/Quarterly!ES23)^4)-1","v":0},null,null,null,null,null,{"$f":"(Quarterly!EY24-Quarterly!EY23)*100","v":0},{"$f":"(Quarterly!EZ24-Quarterly!EZ23)*100","v":15.000000000000036},{"$f":"(Quarterly!FA24-Quarterly!FA23)*100","v":-11.333333333333329},{"$f":"(Quarterly!FB24-Quarterly!FB23)*100","v":-5.0000000000000711},6.3333333333332575,"--",{"$f":"(Quarterly!FE24-Quarterly!FE23)*100","v":-0.66666666666663765},{"$f":"(Quarterly!FF24-Quarterly!FF23)*100","v":-19.000000000000039},"--",{"$f":"(Quarterly!FH24-Quarterly!FH23)*100","v":-20.333333333333314},{"$f":"(Quarterly!FI24-Quarterly!FI23)*100","v":-14.333333333333309},4.66666666666673,null,null,null,null,null,"--","--","--","--","--","--","--","--","--",null,null,null,null,null,{"$f":"((Quarterly!GD24/Quarterly!GD23)^4)-1","v":0},"--","--","--","--","--","--","--","--"]
["62'Q3",{"$f":"((Quarterly!B25/Quarterly!B24)^4)-1","v":4.7248475993649786E-2},{"$f":"((Quarterly!C25/Quarterly!C24)^4)-1","v":3.8650228961167654E-2},{"$f":"((Quarterly!D25/Quarterly!D24)^4)-1","v":3.2793492895941023E-2},{"$f":"((Quarterly!E25/Quarterly!E24)^4)-1","v":3.2732335906001442E-2},{"$f":"((Quarterly!F25/Quarterly!F24)^4)-1","v":2.9099089745848739E-2},{"$f":"((Quarterly!G25/Quarterly!G24)^4)-1","v":3.1501791510033961E-2},{"$f":"((Quarterly!H25/Quarterly!H24)^4)-1","v":3.3668774594662887E-2},{"$f":"((Quarterly!I25/Quarterly!I24)^4)-1","v":5.0473463573716959E-2},{"$f":"((Quarterly!J25/Quarterly!J24)^4)-1","v":8.8264864939229248E-2},{"$f":"((Quarterly!K25/Quarterly!K24)^4)-1","v":-3.5555520376454597E-3},{"$f":"((Quarterly!L25-Quarterly!L24))","v":3.7360000000000007},{"$f":"((Quarterly!M25/Quarterly!M24)^4)-1","v":5.1726459700438099E-2},{"$f":"((Quarterly!N25/Quarterly!N24)^4)-1","v":-0.20563584056175477},{"$f":"((Quarterly!O25/Quarterly!O24)^4)-1","v":3.5950683094960949},{"$f":"((Quarterly!P25/Quarterly!P24)^4)-1","v":9.5361096203137263E-2},{"$f":"((Quarterly!Q25/Quarterly!Q24)^4)-1","v":-0.44839747600711466},null,null,null,null,null,"--","--",{"$f":"((Quarterly!Y25/Quarterly!Y24)^4)-1","v":9.5145854484581349E-2},"--",{"$f":"((Quarterly!AA25/Quarterly!AA24)^4)-1","v":0.12500269116041052},{"$f":"((Quarterly!AB25/Quarterly!AB24)^4)-1","v":0.10908760786041305},"--","--","--","--","--","--","--","--","--","--",{"$f":"((Quarterly!AM25/Quarterly!AM24)^4)-1","v":4.334821965745661E-2},"--","--","--",{"$f":"Quarterly!AQ25-Quarterly!AQ24","v":-2.5333333333333456},"--","--",{"$f":"Quarterly!AT25-Quarterly!AT24","v":-3.86666666666666},"--","--",{"$f":"Quarterly!AW25-Quarterly!AW24","v":-6.2333333333333272},{"$f":"Quarterly!AX25-Quarterly!AX24","v":-1.4333333333333371},{"$f":"Quarterly!AY25-Quarterly!AY24","v":-4.1999999999999957},{"$f":"Quarterly!AZ25-Quarterly!AZ24","v":-2.63333333333334},{"$f":"Quarterly!BA25-Quarterly!BA24","v":-0.66666666666665719},"--","--","--","--",{"$f":"((Quarterly!BF25/Quarterly!BF24)^4)-1","v":2.8326860735269799E-2},{"$f":"((Quarterly!BG25/Quarterly!BG24)^4)-1","v":5.3275422532929717E-2},{"$f":"((Quarterly!BH25/Quarterly!BH24)^4)-1","v":1.6616273848000684E-2},{"$f":"((Quarterly!BI25/Quarterly!BI24)^4)-1","v":-2.3625450321339003E-2},{"$f":"((Quarterly!BJ25/Quarterly!BJ24)^4)-1","v":0.14752300062499968},"--",null,"--","--",null,null,null,null,null,{"$f":"((Quarterly!BT25/Quarterly!BT24)^4)-1","v":0.11153800544604886},"--","--",{"$f":"((Quarterly!BW25/Quarterly!BW24)^4)-1","v":7.9151730073792947E-2},{"$f":"((Quarterly!BX25/Quarterly!BX24)^4)-1","v":-0.10445827138947839},{"$f":"((Quarterly!BY25/Quarterly!BY24)^4)-1","v":9.4964644297016232E-2},"--","--",{"$f":"((Quarterly!CB25/Quarterly!CB24)^4)-1","v":-4.1504256614502189E-2},{"$f":"((Quarterly!CC25/Quarterly!CC24)^4)-1","v":-1.8087188841368174E-2},"--","--",null,"--","--",null,"--",{"$f":"((Quarterly!CK25/Quarterly!CK24)^4)-1","v":4.0274635137538706E-2},{"$f":"((Quarterly!CL25/Quarterly!CL24)^4)-1","v":-7.1546352691711723E-2},{"$f":"((Quarterly!CM25/Quarterly!CM24)^4)-1","v":-0.13598028935792161},{"$f":"((Quarterly!CN25/Quarterly!CN24)^4)-1","v":2.1107147228546008E-2},{"$f":"((Quarterly!CO25/Quarterly!CO24)^4)-1","v":0.10469827239846885},{"$f":"((Quarterly!CP25/Quarterly!CP24)^4)-1","v":9.4059456673930786E-2},{"$f":"((Quarterly!CQ25/Quarterly!CQ24)^4)-1","v":1.5211167747618548E-2},"--","--","--",null,null,null,null,null,{"$f":"((Quarterly!CZ25/Quarterly!CZ24)^4)-1","v":1.1520873793271935E-2},{"$f":"((Quarterly!DA25/Quarterly!DA24)^4)-1","v":1.2813504595802216E-2},null,null,null,null,null,"--","--",{"$f":"Quarterly!DI25-Quarterly!DI24","v":3.3333333333345649E-2},"--",{"$f":"(Quarterly!DK25-Quarterly!DK24)*100","v":3.3333333333333215},{"$f":"((Quarterly!DL25/Quarterly!DL24)^4)-1","v":4.4753248975308857E-3},null,null,null,{"$f":"((Quarterly!DP25/Quarterly!DP24)^4)-1","v":1.6593853658442681E-2},null,null,null,"--","--","--","--","--","--","--","--","--","--",null,null,null,null,null,{"$f":"((Quarterly!EI25/Quarterly!EI24)^4)-1","v":3.6017705092233454E-2},{"$f":"((Quarterly!EJ25/Quarterly!EJ24)^4)-1","v":3.7412554755531735E-2},{"$f":"((Quarterly!EK25/Quarterly!EK24)^4)-1","v":3.8206584031414526E-2},null,null,null,null,null,{"$f":"((Quarterly!EQ25/Quarterly!EQ24)^4)-1","v":2.1309853929995404E-2},"--",{"$f":"((Quarterly!ES25/Quarterly!ES24)^4)-1","v":0},null,null,null,null,null,{"$f":"(Quarterly!EY25-Quarterly!EY24)*100","v":0},{"$f":"(Quarterly!EZ25-Quarterly!EZ24)*100","v":24.000000000000021},{"$f":"(Quarterly!FA25-Quarterly!FA24)*100","v":4.0000000000000036},{"$f":"(Quarterly!FB25-Quarterly!FB24)*100","v":3.3333333333334103},-0.66666666666659324,"--",{"$f":"(Quarterly!FE25-Quarterly!FE24)*100","v":12.333333333333307},{"$f":"(Quarterly!FF25-Quarterly!FF24)*100","v":16.666666666666742},"--",{"$f":"(Quarterly!FH25-Quarterly!FH24)*100","v":10.33333333333335},{"$f":"(Quarterly!FI25-Quarterly!FI24)*100","v":11.66666666666667},-5.0000000000000728,null,null,null,null,null,"--","--","--","--","--","--","--","--","--",null,null,null,null,null,{"$f":"((Quarterly!GD25/Quarterly!GD24)^4)-1","v":0},"--","--","--","--","--","--","--","--"]
["62'Q4",{"$f":"((Quarterly!B26/Quarterly!B25)^4)-1","v":2.354594641039176E-2},{"$f":"((Quarterly!C26/Quarterly!C25)^4)-1","v":1.5613232037971603E-2},{"$f":"((Quarterly!D26/Quarterly!D25)^4)-1","v":3.333571057277851E-2},{"$f":"((Quarterly!E26/Quarterly!E25)^4)-1","v":5.7895076674032264E-2},{"$f":"((Quarterly!F26/Quarterly!F25)^4)-1","v":0.18850364791919172},{"$f":"((Quarterly!G26/Quarterly!G25)^4)-1","v":2.2601224611242809E-2},{"$f":"((Quarterly!H26/Quarterly!H25)^4)-1","v":6.8520391499810929E-2},{"$f":"((Quarterly!I26/Quarterly!I25)^4)-1","v":-1.478489886291201E-2},{"$f":"((Quarterly!J26/Quarterly!J25)^4)-1","v":-3.2168143965778384E-2},{"$f":"((Quarterly!K26/Quarterly!K25)^4)-1","v":-5.3345068905079618E-3},{"$f":"((Quarterly!L26-Quarterly!L25))","v":-10.300999999999998},{"$f":"((Quarterly!M26/Quarterly!M25)^4)-1","v":4.9793486647517149E-2},{"$f":"((Quarterly!N26/Quarterly!N25)^4)-1","v":-8.3505032721900574E-2},{"$f":"((Quarterly!O26/Quarterly!O25)^4)-1","v":0.78300192294553761},{"$f":"((Quarterly!P26/Quarterly!P25)^4)-1","v":2.811676234914029E-2},{"$f":"((Quarterly!Q26/Quarterly!Q25)^4)-1","v":0.62298726744913813},null,null,null,null,null,"--","--",{"$f":"((Quarterly!Y26/Quarterly!Y25)^4)-1","v":0.10417823541858007},"--",{"$f":"((Quarterly!AA26/Quarterly!AA25)^4)-1","v":9.9459205186847477E-2},{"$f":"((Quarterly!AB26/Quarterly!AB25)^4)-1","v":0.27859263410463364},"--","--","--","--","--","--","--","--","--","--",{"$f":"((Quarterly!AM26/Quarterly!AM25)^4)-1","v":3.4193391840084297E-2},"--","--","--",{"$f":"Quarterly!AQ26-Quarterly!AQ25","v":3.8999999999999986},"--","--",{"$f":"Quarterly!AT26-Quarterly!AT25","v":1.7666666666666586},"--","--",{"$f":"Quarterly!AW26-Quarterly!AW25","v":5.4333333333333371},{"$f":"Quarterly!AX26-Quarterly!AX25","v":4.0000000000000071},{"$f":"Quarterly!AY26-Quarterly!AY25","v":-2.13333333333334},{"$f":"Quarterly!AZ26-Quarterly!AZ25","v":4.8666666666666671},{"$f":"Quarterly!BA26-Quarterly!BA25","v":3.8666666666666671},"--","--","--","--",{"$f":"((Quarterly!BF26/Quarterly!BF25)^4)-1","v":3.7157233343471541E-2},{"$f":"((Quarterly!BG26/Quarterly!BG25)^4)-1","v":3.4321593052276667E-2},{"$f":"((Quarterly!BH26/Quarterly!BH25)^4)-1","v":2.7350710630362984E-2},{"$f":"((Quarterly!BI26/Quarterly!BI25)^4)-1","v":3.0009467211973284E-3},{"$f":"((Quarterly!BJ26/Quarterly!BJ25)^4)-1","v":4.8721984613483871E-2},"--",null,"--","--",null,null,null,null,null,{"$f":"((Quarterly!BT26/Quarterly!BT25)^4)-1","v":8.0138304688774031E-2},"--","--",{"$f":"((Quarterly!BW26/Quarterly!BW25)^4)-1","v":0.1030788301506349},{"$f":"((Quarterly!BX26/Quarterly!BX25)^4)-1","v":0.46273566695340462},{"$f":"((Quarterly!BY26/Quarterly!BY25)^4)-1","v":4.6183153259955034E-2},"--","--",{"$f":"((Quarterly!CB26/Quarterly!CB25)^4)-1","v":3.9059427231672217E-2},{"$f":"((Quarterly!CC26/Quarterly!CC25)^4)-1","v":1.5775036945880228E-2},"--","--",null,"--","--",null,"--",{"$f":"((Quarterly!CK26/Quarterly!CK25)^4)-1","v":5.391547229725413E-2},{"$f":"((Quarterly!CL26/Quarterly!CL25)^4)-1","v":-0.120898116798416},{"$f":"((Quarterly!CM26/Quarterly!CM25)^4)-1","v":0.24919946252590397},{"$f":"((Quarterly!CN26/Quarterly!CN25)^4)-1","v":3.5801401305317171E-2},{"$f":"((Quarterly!CO26/Quarterly!CO25)^4)-1","v":0.12287129875036973},{"$f":"((Quarterly!CP26/Quarterly!CP25)^4)-1","v":0.10037878356775698},{"$f":"((Quarterly!CQ26/Quarterly!CQ25)^4)-1","v":1.6569188694044445E-2},"--","--","--",null,null,null,null,null,{"$f":"((Quarterly!CZ26/Quarterly!CZ25)^4)-1","v":9.7140252115062165E-3},{"$f":"((Quarterly!DA26/Quarterly!DA25)^4)-1","v":8.5015462468795988E-3},null,null,null,null,null,"--","--",{"$f":"Quarterly!DI26-Quarterly!DI25","v":-0.30000000000000426},"--",{"$f":"(Quarterly!DK26-Quarterly!DK25)*100","v":-3.3333333333333215},{"$f":"((Quarterly!DL26/Quarterly!DL25)^4)-1","v":1.030286033644634E-3},null,null,null,{"$f":"((Quarterly!DP26/Quarterly!DP25)^4)-1","v":1.3531883412085888E-2},null,null,null,"--","--","--","--","--","--","--","--","--","--",null,null,null,null,null,{"$f":"((Quarterly!EI26/Quarterly!EI25)^4)-1","v":-3.9220705869016381E-3},{"$f":"((Quarterly!EJ26/Quarterly!EJ25)^4)-1","v":2.4037090310098819E-2},{"$f":"((Quarterly!EK26/Quarterly!EK25)^4)-1","v":3.2523157277850823E-2},null,null,null,null,null,{"$f":"((Quarterly!EQ26/Quarterly!EQ25)^4)-1","v":-4.1994692674964806E-3},"--",{"$f":"((Quarterly!ES26/Quarterly!ES25)^4)-1","v":0},null,null,null,null,null,{"$f":"(Quarterly!EY26-Quarterly!EY25)*100","v":0},{"$f":"(Quarterly!EZ26-Quarterly!EZ25)*100","v":7.6666666666666217},{"$f":"(Quarterly!FA26-Quarterly!FA25)*100","v":-8.0000000000000071},{"$f":"(Quarterly!FB26-Quarterly!FB25)*100","v":-9.0000000000000746},-1.0000000000000675,"--",{"$f":"(Quarterly!FE26-Quarterly!FE25)*100","v":-2.666666666666595},{"$f":"(Quarterly!FF26-Quarterly!FF25)*100","v":-18.6666666666667},"--",{"$f":"(Quarterly!FH26-Quarterly!FH25)*100","v":-13.666666666666671},{"$f":"(Quarterly!FI26-Quarterly!FI25)*100","v":-8.6666666666667336},9.9999999999999662,null,null,null,null,null,"--","--","--","--","--","--","--","--","--",null,null,null,null,null,{"$f":"((Quarterly!GD26/Quarterly!GD25)^4)-1","v":0},"--","--","--","--","--","--","--","--"]
["63'Q1",{"$f":"((Quarterly!B27/Quarterly!B26)^4)-1","v":6.3753360615819599E-2},{"$f":"((Quarterly!C27/Quarterly!C26)^4)-1","v":4.5258082919824583E-2},{"$f":"((Quarterly!D27/Quarterly!D26)^4)-1","v":1.9860268384453317E-2},{"$f":"((Quarterly!E27/Quarterly!E26)^4)-1","v":2.7445350682300917E-2},{"$f":"((Quarterly!F27/Quarterly!F26)^4)-1","v":8.2376829772351057E-2},{"$f":"((Quarterly!G27/Quarterly!G26)^4)-1","v":2.2090197273681778E-2},{"$f":"((Quarterly!H27/Quarterly!H26)^4)-1","v":2.6374897100280403E-2},{"$f":"((Quarterly!I27/Quarterly!I26)^4)-1","v":9.6726937856164152E-3},{"$f":"((Quarterly!J27/Quarterly!J26)^4)-1","v":7.9989482191966665E-3},{"$f":"((Quarterly!K27/Quarterly!K26)^4)-1","v":0.15253575187041424},{"$f":"((Quarterly!L27-Quarterly!L26))","v":14.553000000000001},{"$f":"((Quarterly!M27/Quarterly!M26)^4)-1","v":-8.9423039458968567E-2},{"$f":"((Quarterly!N27/Quarterly!N26)^4)-1","v":9.691360130691562E-2},{"$f":"((Quarterly!O27/Quarterly!O26)^4)-1","v":-0.57021606905680899},{"$f":"((Quarterly!P27/Quarterly!P26)^4)-1","v":-5.2952313002457507E-2},{"$f":"((Quarterly!Q27/Quarterly!Q26)^4)-1","v":-0.84834383949253855},null,null,null,null,null,"--","--",{"$f":"((Quarterly!Y27/Quarterly!Y26)^4)-1","v":5.7148537720921766E-2},"--",{"$f":"((Quarterly!AA27/Quarterly!AA26)^4)-1","v":-4.0215483409860808E-2},{"$f":"((Quarterly!AB27/Quarterly!AB26)^4)-1","v":2.2255716976002704E-2},"--","--","--","--","--","--","--","--","--","--",{"$f":"((Quarterly!AM27/Quarterly!AM26)^4)-1","v":7.6019617800548112E-2},"--","--","--",{"$f":"Quarterly!AQ27-Quarterly!AQ26","v":0.93333333333333712},"--","--",{"$f":"Quarterly!AT27-Quarterly!AT26","v":0.63333333333333286},"--","--",{"$f":"Quarterly!AW27-Quarterly!AW26","v":-1.7666666666666728},{"$f":"Quarterly!AX27-Quarterly!AX26","v":2.5666666666666629},{"$f":"Quarterly!AY27-Quarterly!AY26","v":3.1333333333333258},{"$f":"Quarterly!AZ27-Quarterly!AZ26","v":-1.2333333333333272},{"$f":"Quarterly!BA27-Quarterly!BA26","v":3.6000000000000014},"--","--","--","--",{"$f":"((Quarterly!BF27/Quarterly!BF26)^4)-1","v":4.0125708825477391E-2},{"$f":"((Quarterly!BG27/Quarterly!BG26)^4)-1","v":1.3319690217975078E-2},{"$f":"((Quarterly!BH27/Quarterly!BH26)^4)-1","v":2.7092196234524746E-2},{"$f":"((Quarterly!BI27/Quarterly!BI26)^4)-1","v":2.651278762702991E-2},{"$f":"((Quarterly!BJ27/Quarterly!BJ26)^4)-1","v":2.0746509370048516E-2},"--",null,"--","--",null,null,null,null,null,{"$f":"((Quarterly!BT27/Quarterly!BT26)^4)-1","v":0.11264563560844953},"--","--",{"$f":"((Quarterly!BW27/Quarterly!BW26)^4)-1","v":0.12936437829847058},{"$f":"((Quarterly!BX27/Quarterly!BX26)^4)-1","v":-0.35195747522242116},{"$f":"((Quarterly!BY27/Quarterly!BY26)^4)-1","v":7.3096684119128286E-2},"--","--",{"$f":"((Quarterly!CB27/Quarterly!CB26)^4)-1","v":9.8240960046010795E-2},{"$f":"((Quarterly!CC27/Quarterly!CC26)^4)-1","v":0.12718670883104743},"--","--",null,"--","--",null,"--",{"$f":"((Quarterly!CK27/Quarterly!CK26)^4)-1","v":4.5677817570184187E-2},{"$f":"((Quarterly!CL27/Quarterly!CL26)^4)-1","v":8.9143425068833659E-2},{"$f":"((Quarterly!CM27/Quarterly!CM26)^4)-1","v":-0.355418943024567},{"$f":"((Quarterly!CN27/Quarterly!CN26)^4)-1","v":3.4671011750128766E-2},{"$f":"((Quarterly!CO27/Quarterly!CO26)^4)-1","v":0.12072042193892663},{"$f":"((Quarterly!CP27/Quarterly!CP26)^4)-1","v":0.10889940237757445},{"$f":"((Quarterly!CQ27/Quarterly!CQ26)^4)-1","v":1.3718666495479814E-2},"--","--","--",null,null,null,null,null,{"$f":"((Quarterly!CZ27/Quarterly!CZ26)^4)-1","v":1.27885482891823E-2},{"$f":"((Quarterly!DA27/Quarterly!DA26)^4)-1","v":8.483515597572433E-3},null,null,null,null,null,"--","--",{"$f":"Quarterly!DI27-Quarterly!DI26","v":6.6666666666669983E-2},"--",{"$f":"(Quarterly!DK27-Quarterly!DK26)*100","v":23.33333333333325},{"$f":"((Quarterly!DL27/Quarterly!DL26)^4)-1","v":2.7484899306797761E-3},null,null,null,{"$f":"((Quarterly!DP27/Quarterly!DP26)^4)-1","v":1.2981681291269753E-2},null,null,null,"--","--","--","--","--","--","--","--","--","--",null,null,null,null,null,{"$f":"((Quarterly!EI27/Quarterly!EI26)^4)-1","v":6.5240591877579357E-2},{"$f":"((Quarterly!EJ27/Quarterly!EJ26)^4)-1","v":4.6199849795834025E-2},{"$f":"((Quarterly!EK27/Quarterly!EK26)^4)-1","v":3.5669850994163088E-2},null,null,null,null,null,{"$f":"((Quarterly!EQ27/Quarterly!EQ26)^4)-1","v":-1.6736032343521279E-2},"--",{"$f":"((Quarterly!ES27/Quarterly!ES26)^4)-1","v":0},null,null,null,null,null,{"$f":"(Quarterly!EY27-Quarterly!EY26)*100","v":0},{"$f":"(Quarterly!EZ27-Quarterly!EZ26)*100","v":4.3333333333333446},{"$f":"(Quarterly!FA27-Quarterly!FA26)*100","v":-6.0000000000000497},{"$f":"(Quarterly!FB27-Quarterly!FB26)*100","v":-6.3333333333332575},-0.3333333333332078,"--",{"$f":"(Quarterly!FE27-Quarterly!FE26)*100","v":9.3333333333332824},{"$f":"(Quarterly!FF27-Quarterly!FF26)*100","v":3.0000000000000249},"--",{"$f":"(Quarterly!FH27-Quarterly!FH26)*100","v":4.0000000000000036},{"$f":"(Quarterly!FI27-Quarterly!FI26)*100","v":-0.99999999999997868},-4.0000000000000036,null,null,null,null,null,"--","--","--","--","--","--","--","--","--",null,null,null,null,null,{"$f":"((Quarterly!GD27/Quarterly!GD26)^4)-1","v":0},"--","--","--","--","--","--","--","--"]
["63'Q2",{"$f":"((Quarterly!B28/Quarterly!B27)^4)-1","v":6.0126867862469346E-2},{"$f":"((Quarterly!C28/Quarterly!C27)^4)-1","v":5.3173164960299113E-2},{"$f":"((Quarterly!D28/Quarterly!D27)^4)-1","v":7.1051821411250105E-2},{"$f":"((Quarterly!E28/Quarterly!E27)^4)-1","v":3.8712799245405494E-2},{"$f":"((Quarterly!F28/Quarterly!F27)^4)-1","v":8.8411683139444364E-2},{"$f":"((Quarterly!G28/Quarterly!G27)^4)-1","v":1.3720199246425535E-2},{"$f":"((Quarterly!H28/Quarterly!H27)^4)-1","v":4.8738309677607727E-2},{"$f":"((Quarterly!I28/Quarterly!I27)^4)-1","v":0.13029163917637687},{"$f":"((Quarterly!J28/Quarterly!J27)^4)-1","v":0.21751958427375517},{"$f":"((Quarterly!K28/Quarterly!K27)^4)-1","v":0.32220279519952655},{"$f":"((Quarterly!L28-Quarterly!L27))","v":-10.082000000000001},{"$f":"((Quarterly!M28/Quarterly!M27)^4)-1","v":9.7539552795967044E-2},{"$f":"((Quarterly!N28/Quarterly!N27)^4)-1","v":0.55683950699406637},{"$f":"((Quarterly!O28/Quarterly!O27)^4)-1","v":-0.87114064510959521},{"$f":"((Quarterly!P28/Quarterly!P27)^4)-1","v":3.3972734703664464E-3},{"$f":"((Quarterly!Q28/Quarterly!Q27)^4)-1","v":-0.99044988835273995},null,null,null,null,null,"--","--",{"$f":"((Quarterly!Y28/Quarterly!Y27)^4)-1","v":8.1032980577301794E-2},"--",{"$f":"((Quarterly!AA28/Quarterly!AA27)^4)-1","v":0.23294821355982265},{"$f":"((Quarterly!AB28/Quarterly!AB27)^4)-1","v":0.13021098975645296},"--","--","--","--","--","--","--","--","--","--",{"$f":"((Quarterly!AM28/Quarterly!AM27)^4)-1","v":0.10973125601628908},"--","--","--",{"$f":"Quarterly!AQ28-Quarterly!AQ27","v":3.5333333333333385},"--","--",{"$f":"Quarterly!AT28-Quarterly!AT27","v":1.2333333333333414},"--","--",{"$f":"Quarterly!AW28-Quarterly!AW27","v":5.1000000000000014},{"$f":"Quarterly!AX28-Quarterly!AX27","v":3.5333333333333314},{"$f":"Quarterly!AY28-Quarterly!AY27","v":11.033333333333346},{"$f":"Quarterly!AZ28-Quarterly!AZ27","v":3.8333333333333286},{"$f":"Quarterly!BA28-Quarterly!BA27","v":4.86666666666666},"--","--","--","--",{"$f":"((Quarterly!BF28/Quarterly!BF27)^4)-1","v":2.064270528402945E-2},{"$f":"((Quarterly!BG28/Quarterly!BG27)^4)-1","v":4.1079911903122213E-2},{"$f":"((Quarterly!BH28/Quarterly!BH27)^4)-1","v":1.2815557222319418E-2},{"$f":"((Quarterly!BI28/Quarterly!BI27)^4)-1","v":-1.9978956722648267E-2},{"$f":"((Quarterly!BJ28/Quarterly!BJ27)^4)-1","v":0.37247907815379344},"--",null,"--","--",null,null,null,null,null,{"$f":"((Quarterly!BT28/Quarterly!BT27)^4)-1","v":0.12619403389171713},"--","--",{"$f":"((Quarterly!BW28/Quarterly!BW27)^4)-1","v":0.11641106625279085},{"$f":"((Quarterly!BX28/Quarterly!BX27)^4)-1","v":0.82033233182880894},{"$f":"((Quarterly!BY28/Quarterly!BY27)^4)-1","v":0.31705431003789664},"--","--",{"$f":"((Quarterly!CB28/Quarterly!CB27)^4)-1","v":-0.12286257708631054},{"$f":"((Quarterly!CC28/Quarterly!CC27)^4)-1","v":-8.7230955166846313E-2},"--","--",null,"--","--",null,{"$f":"((Quarterly!CJ28/Quarterly!CJ27)^4)-1","v":1.3450343760977739},{"$f":"((Quarterly!CK28/Quarterly!CK27)^4)-1","v":4.0322640371766916E-2},{"$f":"((Quarterly!CL28/Quarterly!CL27)^4)-1","v":2.054978759825965E-2},{"$f":"((Quarterly!CM28/Quarterly!CM27)^4)-1","v":0.7771690051999649},{"$f":"((Quarterly!CN28/Quarterly!CN27)^4)-1","v":3.7829649718240654E-2},{"$f":"((Quarterly!CO28/Quarterly!CO27)^4)-1","v":0.10916629563812319},{"$f":"((Quarterly!CP28/Quarterly!CP27)^4)-1","v":0.11843484067285015},{"$f":"((Quarterly!CQ28/Quarterly!CQ27)^4)-1","v":1.2634408210546955E-2},"--","--","--",null,null,null,null,null,{"$f":"((Quarterly!CZ28/Quarterly!CZ27)^4)-1","v":7.458152519229877E-3},{"$f":"((Quarterly!DA28/Quarterly!DA27)^4)-1","v":1.6984758415506507E-2},null,null,null,null,null,"--","--",{"$f":"Quarterly!DI28-Quarterly!DI27","v":9.9999999999994316E-2},"--",{"$f":"(Quarterly!DK28-Quarterly!DK27)*100","v":-3.3333333333332327},{"$f":"((Quarterly!DL28/Quarterly!DL27)^4)-1","v":1.8649529206270499E-2},null,null,null,{"$f":"((Quarterly!DP28/Quarterly!DP27)^4)-1","v":2.8424310395468222E-2},null,null,null,"--","--","--","--","--","--","--","--","--","--",null,null,null,null,null,{"$f":"((Quarterly!EI28/Quarterly!EI27)^4)-1","v":0.1012033301248052},{"$f":"((Quarterly!EJ28/Quarterly!EJ27)^4)-1","v":6.0803381534023426E-2},{"$f":"((Quarterly!EK28/Quarterly!EK27)^4)-1","v":4.5261322982131258E-2},null,null,null,null,null,{"$f":"((Quarterly!EQ28/Quarterly!EQ27)^4)-1","v":-4.2216299934429991E-3},"--",{"$f":"((Quarterly!ES28/Quarterly!ES27)^4)-1","v":0},null,null,null,null,null,{"$f":"(Quarterly!EY28-Quarterly!EY27)*100","v":0},{"$f":"(Quarterly!EZ28-Quarterly!EZ27)*100","v":-0.33333333333334103},{"$f":"(Quarterly!FA28-Quarterly!FA27)*100","v":2.3333333333333428},{"$f":"(Quarterly!FB28-Quarterly!FB27)*100","v":-4.0000000000000924},-6.3333333333334352,"--",{"$f":"(Quarterly!FE28-Quarterly!FE27)*100","v":3.3333333333333215},{"$f":"(Quarterly!FF28-Quarterly!FF27)*100","v":11.666666666666625},"--",{"$f":"(Quarterly!FH28-Quarterly!FH27)*100","v":11.666666666666714},{"$f":"(Quarterly!FI28-Quarterly!FI27)*100","v":7.0000000000000284},-4.6666666666665968,null,null,null,null,null,"--","--","--","--","--","--","--","--","--",null,null,null,null,null,{"$f":"((Quarterly!GD28/Quarterly!GD27)^4)-1","v":0},"--","--","--","--","--","--","--","--"]
["63'Q3",{"$f":"((Quarterly!B29/Quarterly!B28)^4)-1","v":8.5716416749345603E-2},{"$f":"((Quarterly!C29/Quarterly!C28)^4)-1","v":8.0399546289888546E-2},{"$f":"((Quarterly!D29/Quarterly!D28)^4)-1","v":7.5984632510984751E-2},{"$f":"((Quarterly!E29/Quarterly!E28)^4)-1","v":5.5731891197804861E-2},{"$f":"((Quarterly!F29/Quarterly!F28)^4)-1","v":5.056119648198143E-2},{"$f":"((Quarterly!G29/Quarterly!G28)^4)-1","v":3.7072379096938723E-2},{"$f":"((Quarterly!H29/Quarterly!H28)^4)-1","v":6.6236743098141426E-2},{"$f":"((Quarterly!I29/Quarterly!I28)^4)-1","v":0.11439449712966798},{"$f":"((Quarterly!J29/Quarterly!J28)^4)-1","v":0.18403022013403203},{"$f":"((Quarterly!K29/Quarterly!K28)^4)-1","v":7.5937287822671173E-2},{"$f":"((Quarterly!L29-Quarterly!L28))","v":3.6489999999999974},{"$f":"((Quarterly!M29/Quarterly!M28)^4)-1","v":0.10548106020798298},{"$f":"((Quarterly!N29/Quarterly!N28)^4)-1","v":-0.19709457950269405},{"$f":"((Quarterly!O29/Quarterly!O28)^4)-1","v":7.2012409922250598},{"$f":"((Quarterly!P29/Quarterly!P28)^4)-1","v":0.18957976466742421},{"$f":"((Quarterly!Q29/Quarterly!Q28)^4)-1","v":4.4580415104714319},null,null,null,null,null,"--","--",{"$f":"((Quarterly!Y29/Quarterly!Y28)^4)-1","v":6.9500965132118564E-2},"--",{"$f":"((Quarterly!AA29/Quarterly!AA28)^4)-1","v":0.10609378954848792},{"$f":"((Quarterly!AB29/Quarterly!AB28)^4)-1","v":6.4079946661671938E-2},"--","--","--","--","--","--","--","--","--","--",{"$f":"((Quarterly!AM29/Quarterly!AM28)^4)-1","v":2.6961246870256472E-2},"--","--","--",{"$f":"Quarterly!AQ29-Quarterly!AQ28","v":-2.7000000000000028},"--","--",{"$f":"Quarterly!AT29-Quarterly!AT28","v":-0.30000000000001137},"--","--",{"$f":"Quarterly!AW29-Quarterly!AW28","v":-2.6000000000000014},{"$f":"Quarterly!AX29-Quarterly!AX28","v":-2.5000000000000071},{"$f":"Quarterly!AY29-Quarterly!AY28","v":-0.73333333333334139},{"$f":"Quarterly!AZ29-Quarterly!AZ28","v":-0.53333333333333854},{"$f":"Quarterly!BA29-Quarterly!BA28","v":-9.6999999999999886},"--","--","--","--",{"$f":"((Quarterly!BF29/Quarterly!BF28)^4)-1","v":4.1388156161284329E-2},{"$f":"((Quarterly!BG29/Quarterly!BG28)^4)-1","v":8.7917287622155671E-2},{"$f":"((Quarterly!BH29/Quarterly!BH28)^4)-1","v":1.6487757439373363E-2},{"$f":"((Quarterly!BI29/Quarterly!BI28)^4)-1","v":-4.2582019390371206E-2},{"$f":"((Quarterly!BJ29/Quarterly!BJ28)^4)-1","v":0.13480792590553836},"--",null,"--","--",null,null,null,null,null,{"$f":"((Quarterly!BT29/Quarterly!BT28)^4)-1","v":8.5099474407631881E-2},"--","--",{"$f":"((Quarterly!BW29/Quarterly!BW28)^4)-1","v":0.1313769403430467},{"$f":"((Quarterly!BX29/Quarterly!BX28)^4)-1","v":8.2121469673231307E-2},{"$f":"((Quarterly!BY29/Quarterly!BY28)^4)-1","v":6.2682091996333567E-2},"--","--",{"$f":"((Quarterly!CB29/Quarterly!CB28)^4)-1","v":5.6903531152448616E-2},{"$f":"((Quarterly!CC29/Quarterly!CC28)^4)-1","v":-2.5353732924471628E-2},"--","--",null,"--","--",null,{"$f":"((Quarterly!CJ29/Quarterly!CJ28)^4)-1","v":0.2763515041728859},{"$f":"((Quarterly!CK29/Quarterly!CK28)^4)-1","v":5.9751997713053173E-2},{"$f":"((Quarterly!CL29/Quarterly!CL28)^4)-1","v":-4.2774499068221172E-2},{"$f":"((Quarterly!CM29/Quarterly!CM28)^4)-1","v":2.4160411817024441E-2},{"$f":"((Quarterly!CN29/Quarterly!CN28)^4)-1","v":4.4865164098602195E-2},{"$f":"((Quarterly!CO29/Quarterly!CO28)^4)-1","v":9.3593304354032458E-2},{"$f":"((Quarterly!CP29/Quarterly!CP28)^4)-1","v":0.12611819098896815},{"$f":"((Quarterly!CQ29/Quarterly!CQ28)^4)-1","v":1.4992064096231994E-2},"--","--","--",null,null,null,null,null,{"$f":"((Quarterly!CZ29/Quarterly!CZ28)^4)-1","v":2.4679315867101703E-2},{"$f":"((Quarterly!DA29/Quarterly!DA28)^4)-1","v":1.6912944431479948E-2},null,null,null,null,null,"--","--",{"$f":"Quarterly!DI29-Quarterly!DI28","v":-6.6666666666662877E-2},"--",{"$f":"(Quarterly!DK29-Quarterly!DK28)*100","v":-23.333333333333428},{"$f":"((Quarterly!DL29/Quarterly!DL28)^4)-1","v":8.3044833353012049E-3},null,null,null,{"$f":"((Quarterly!DP29/Quarterly!DP28)^4)-1","v":2.200987862980841E-2},null,null,null,"--","--","--","--","--","--","--","--","--","--",null,null,null,null,null,{"$f":"((Quarterly!EI29/Quarterly!EI28)^4)-1","v":8.7399807700106802E-2},{"$f":"((Quarterly!EJ29/Quarterly!EJ28)^4)-1","v":7.1948509656014403E-2},{"$f":"((Quarterly!EK29/Quarterly!EK28)^4)-1","v":6.9341496236708045E-2},null,null,null,null,null,{"$f":"((Quarterly!EQ29/Quarterly!EQ28)^4)-1","v":1.7039020392640047E-2},"--",{"$f":"((Quarterly!ES29/Quarterly!ES28)^4)-1","v":4.046529988188885E-3},null,null,null,null,null,{"$f":"(Quarterly!EY29-Quarterly!EY28)*100","v":0},{"$f":"(Quarterly!EZ29-Quarterly!EZ28)*100","v":36.666666666666671},{"$f":"(Quarterly!FA29-Quarterly!FA28)*100","v":6.666666666666643},{"$f":"(Quarterly!FB29-Quarterly!FB28)*100","v":-1.6666666666665719},-8.3333333333332149,"--",{"$f":"(Quarterly!FE29-Quarterly!FE28)*100","v":35.333333333333307},{"$f":"(Quarterly!FF29-Quarterly!FF28)*100","v":38.333333333333371},"--",{"$f":"(Quarterly!FH29-Quarterly!FH28)*100","v":15.666666666666629},{"$f":"(Quarterly!FI29-Quarterly!FI28)*100","v":6.999999999999984},-31.333333333333385,null,null,null,null,null,"--","--","--","--","--","--","--","--","--",null,null,null,null,null,{"$f":"((Quarterly!GD29/Quarterly!GD28)^4)-1","v":0},"--","--","--","--","--","--","--","--"]
["63'Q4",{"$f":"((Quarterly!B30/Quarterly!B29)^4)-1","v":6.2697542054925393E-2},{"$f":"((Quarterly!C30/Quarterly!C29)^4)-1","v":2.8854651926119246E-2},{"$f":"((Quarterly!D30/Quarterly!D29)^4)-1","v":3.9920787112356582E-2},{"$f":"((Quarterly!E30/Quarterly!E29)^4)-1","v":3.3757147111600494E-2},{"$f":"((Quarterly!F30/Quarterly!F29)^4)-1","v":6.4533205810330729E-2},{"$f":"((Quarterly!G30/Quarterly!G29)^4)-1","v":-5.0610153216100739E-3},{"$f":"((Quarterly!H30/Quarterly!H29)^4)-1","v":5.2567719607434782E-2},{"$f":"((Quarterly!I30/Quarterly!I29)^4)-1","v":0.12170991737522319},{"$f":"((Quarterly!J30/Quarterly!J29)^4)-1","v":0.19849045189133241},{"$f":"((Quarterly!K30/Quarterly!K29)^4)-1","v":0.12876855889065419},{"$f":"((Quarterly!L30-Quarterly!L29))","v":-6.2449999999999974},{"$f":"((Quarterly!M30/Quarterly!M29)^4)-1","v":-1.3050122073921755E-2},{"$f":"((Quarterly!N30/Quarterly!N29)^4)-1","v":0.21635880056270018},{"$f":"((Quarterly!O30/Quarterly!O29)^4)-1","v":-0.6942646556980514},{"$f":"((Quarterly!P30/Quarterly!P29)^4)-1","v":-3.9101951464885931E-2},{"$f":"((Quarterly!Q30/Quarterly!Q29)^4)-1","v":3.1822591225421375},null,null,null,null,null,"--","--",{"$f":"((Quarterly!Y30/Quarterly!Y29)^4)-1","v":0.14308463023334084},"--",{"$f":"((Quarterly!AA30/Quarterly!AA29)^4)-1","v":0.10491060866361379},{"$f":"((Quarterly!AB30/Quarterly!AB29)^4)-1","v":5.8294926410227932E-2},"--","--","--","--","--","--","--","--","--","--",{"$f":"((Quarterly!AM30/Quarterly!AM29)^4)-1","v":6.9351200271662305E-2},"--","--","--",{"$f":"Quarterly!AQ30-Quarterly!AQ29","v":0.56666666666666288},"--","--",{"$f":"Quarterly!AT30-Quarterly!AT29","v":-0.49999999999999289},"--","--",{"$f":"Quarterly!AW30-Quarterly!AW29","v":-5.2333333333333272},{"$f":"Quarterly!AX30-Quarterly!AX29","v":1.4666666666666757},{"$f":"Quarterly!AY30-Quarterly!AY29","v":9.63333333333334},{"$f":"Quarterly!AZ30-Quarterly!AZ29","v":2.56666666666667},{"$f":"Quarterly!BA30-Quarterly!BA29","v":0.63333333333332575},"--","--","--","--",{"$f":"((Quarterly!BF30/Quarterly!BF29)^4)-1","v":4.6983811581903012E-2},{"$f":"((Quarterly!BG30/Quarterly!BG29)^4)-1","v":0},{"$f":"((Quarterly!BH30/Quarterly!BH29)^4)-1","v":3.5638889400389173E-2},{"$f":"((Quarterly!BI30/Quarterly!BI29)^4)-1","v":4.7050870583608795E-2},{"$f":"((Quarterly!BJ30/Quarterly!BJ29)^4)-1","v":0.11102694329301954},"--",null,"--","--",null,null,null,null,null,{"$f":"((Quarterly!BT30/Quarterly!BT29)^4)-1","v":0.19672627981475399},"--","--",{"$f":"((Quarterly!BW30/Quarterly!BW29)^4)-1","v":0.10976878082905772},{"$f":"((Quarterly!BX30/Quarterly!BX29)^4)-1","v":-9.5276893732374801E-2},{"$f":"((Quarterly!BY30/Quarterly!BY29)^4)-1","v":0.15682886583281141},"--","--",{"$f":"((Quarterly!CB30/Quarterly!CB29)^4)-1","v":5.6870446347610626E-2},{"$f":"((Quarterly!CC30/Quarterly!CC29)^4)-1","v":5.4172013786688344E-2},"--","--",null,"--","--",null,{"$f":"((Quarterly!CJ30/Quarterly!CJ29)^4)-1","v":-0.31548829796887767},{"$f":"((Quarterly!CK30/Quarterly!CK29)^4)-1","v":7.8967774881201214E-2},{"$f":"((Quarterly!CL30/Quarterly!CL29)^4)-1","v":0.3932658700549525},{"$f":"((Quarterly!CM30/Quarterly!CM29)^4)-1","v":-0.24941557871195008},{"$f":"((Quarterly!CN30/Quarterly!CN29)^4)-1","v":6.6866169188723346E-2},{"$f":"((Quarterly!CO30/Quarterly!CO29)^4)-1","v":8.8718822597975366E-2},{"$f":"((Quarterly!CP30/Quarterly!CP29)^4)-1","v":0.12997681048133281},{"$f":"((Quarterly!CQ30/Quarterly!CQ29)^4)-1","v":1.6039319189992352E-2},"--","--","--",null,null,null,null,null,{"$f":"((Quarterly!CZ30/Quarterly!CZ29)^4)-1","v":1.0894925933215838E-2},{"$f":"((Quarterly!DA30/Quarterly!DA29)^4)-1","v":2.1085200382091829E-2},null,null,null,null,null,"--","--",{"$f":"Quarterly!DI30-Quarterly!DI29","v":6.6666666666662877E-2},"--",{"$f":"(Quarterly!DK30-Quarterly!DK29)*100","v":6.666666666666643},{"$f":"((Quarterly!DL30/Quarterly!DL29)^4)-1","v":1.1719669234050212E-2},null,null,null,{"$f":"((Quarterly!DP30/Quarterly!DP29)^4)-1","v":2.6443838510926465E-2},null,null,null,"--","--","--","--","--","--","--","--","--","--",null,null,null,null,null,{"$f":"((Quarterly!EI30/Quarterly!EI29)^4)-1","v":4.1113547659265448E-2},{"$f":"((Quarterly!EJ30/Quarterly!EJ29)^4)-1","v":3.0119076058092942E-2},{"$f":"((Quarterly!EK30/Quarterly!EK29)^4)-1","v":2.6749213587964782E-2},null,null,null,null,null,{"$f":"((Quarterly!EQ30/Quarterly!EQ29)^4)-1","v":0},"--",{"$f":"((Quarterly!ES30/Quarterly!ES29)^4)-1","v":1.6243322684785122E-2},null,null,null,null,null,{"$f":"(Quarterly!EY30-Quarterly!EY29)*100","v":0},{"$f":"(Quarterly!EZ30-Quarterly!EZ29)*100","v":12.333333333333307},{"$f":"(Quarterly!FA30-Quarterly!FA29)*100","v":4.6666666666666856},{"$f":"(Quarterly!FB30-Quarterly!FB29)*100","v":0.33333333333329662},-4.333333333333389,"--",{"$f":"(Quarterly!FE30-Quarterly!FE29)*100","v":20.333333333333357},{"$f":"(Quarterly!FF30-Quarterly!FF29)*100","v":20.333333333333357},"--",{"$f":"(Quarterly!FH30-Quarterly!FH29)*100","v":9.3333333333333268},{"$f":"(Quarterly!FI30-Quarterly!FI29)*100","v":8.6666666666666892},-11.666666666666668,null,null,null,null,null,"--","--","--","--","--","--","--","--","--",null,null,null,null,null,{"$f":"((Quarterly!GD30/Quarterly!GD29)^4)-1","v":0},"--","--","--","--","--","--","--","--"]
["64'Q1",{"$f":"((Quarterly!B31/Quarterly!B30)^4)-1","v":0.103405108764687},{"$f":"((Quarterly!C31/Quarterly!C30)^4)-1","v":8.9362079066874767E-2},{"$f":"((Quarterly!D31/Quarterly!D30)^4)-1","v":8.7010126851918557E-2},{"$f":"((Quarterly!E31/Quarterly!E30)^4)-1","v":8.1187831501514651E-2},{"$f":"((Quarterly!F31/Quarterly!F30)^4)-1","v":0.1650667614983421},{"$f":"((Quarterly!G31/Quarterly!G30)^4)-1","v":7.0257389129028347E-2},{"$f":"((Quarterly!H31/Quarterly!H30)^4)-1","v":8.0798677816713571E-2},{"$f":"((Quarterly!I31/Quarterly!I30)^4)-1","v":8.659816100868567E-2},{"$f":"((Quarterly!J31/Quarterly!J30)^4)-1","v":0.14311770390436429},{"$f":"((Quarterly!K31/Quarterly!K30)^4)-1","v":0.26813408884689727},{"$f":"((Quarterly!L31-Quarterly!L30))","v":1.1400000000000006},{"$f":"((Quarterly!M31/Quarterly!M30)^4)-1","v":-3.7500002779287112E-3},{"$f":"((Quarterly!N31/Quarterly!N30)^4)-1","v":0.26862623624031468},{"$f":"((Quarterly!O31/Quarterly!O30)^4)-1","v":-0.88450513973068234},{"$f":"((Quarterly!P31/Quarterly!P30)^4)-1","v":1.252192791211848E-2},{"$f":"((Quarterly!Q31/Quarterly!Q30)^4)-1","v":29.86889828884539},null,null,null,null,null,"--","--",{"$f":"((Quarterly!Y31/Quarterly!Y30)^4)-1","v":0.10414098582489428},"--",{"$f":"((Quarterly!AA31/Quarterly!AA30)^4)-1","v":0.35763606181107233},{"$f":"((Quarterly!AB31/Quarterly!AB30)^4)-1","v":0.38691377347256783},"--","--","--","--","--","--","--","--","--","--",{"$f":"((Quarterly!AM31/Quarterly!AM30)^4)-1","v":5.5891024449145066E-2},"--","--","--",{"$f":"Quarterly!AQ31-Quarterly!AQ30","v":2},"--","--",{"$f":"Quarterly!AT31-Quarterly!AT30","v":0.96666666666666856},"--","--",{"$f":"Quarterly!AW31-Quarterly!AW30","v":4.5333333333333314},{"$f":"Quarterly!AX31-Quarterly!AX30","v":-0.5},{"$f":"Quarterly!AY31-Quarterly!AY30","v":-8.9333333333333442},{"$f":"Quarterly!AZ31-Quarterly!AZ30","v":1.2000000000000028},{"$f":"Quarterly!BA31-Quarterly!BA30","v":7.9333333333333371},"--","--","--","--",{"$f":"((Quarterly!BF31/Quarterly!BF30)^4)-1","v":-3.0988853921338766E-3},{"$f":"((Quarterly!BG31/Quarterly!BG30)^4)-1","v":3.6276819948752204E-2},{"$f":"((Quarterly!BH31/Quarterly!BH30)^4)-1","v":-1.9313571989213796E-2},{"$f":"((Quarterly!BI31/Quarterly!BI30)^4)-1","v":-3.7953051694465278E-2},{"$f":"((Quarterly!BJ31/Quarterly!BJ30)^4)-1","v":0.44096917493504773},"--",null,"--","--",null,null,null,null,null,{"$f":"((Quarterly!BT31/Quarterly!BT30)^4)-1","v":0.13445096490442054},"--","--",{"$f":"((Quarterly!BW31/Quarterly!BW30)^4)-1","v":9.4305458826137611E-2},{"$f":"((Quarterly!BX31/Quarterly!BX30)^4)-1","v":3.9829183989666062E-2},{"$f":"((Quarterly!BY31/Quarterly!BY30)^4)-1","v":-0.1295671593244585},"--","--",{"$f":"((Quarterly!CB31/Quarterly!CB30)^4)-1","v":-3.3809192088628537E-3},{"$f":"((Quarterly!CC31/Quarterly!CC30)^4)-1","v":-2.7668704848742065E-2},"--","--",null,"--","--",null,{"$f":"((Quarterly!CJ31/Quarterly!CJ30)^4)-1","v":0.15260748478649311},{"$f":"((Quarterly!CK31/Quarterly!CK30)^4)-1","v":7.7998480702680784E-2},{"$f":"((Quarterly!CL31/Quarterly!CL30)^4)-1","v":0.1035950596888946},{"$f":"((Quarterly!CM31/Quarterly!CM30)^4)-1","v":0.20835508953875226},{"$f":"((Quarterly!CN31/Quarterly!CN30)^4)-1","v":8.0882028868121347E-2},{"$f":"((Quarterly!CO31/Quarterly!CO30)^4)-1","v":9.3490992809427409E-2},{"$f":"((Quarterly!CP31/Quarterly!CP30)^4)-1","v":0.14325705254814491},{"$f":"((Quarterly!CQ31/Quarterly!CQ30)^4)-1","v":1.2731046228679821E-2},"--","--","--",null,null,null,null,null,{"$f":"((Quarterly!CZ31/Quarterly!CZ30)^4)-1","v":1.6550171382681E-2},{"$f":"((Quarterly!DA31/Quarterly!DA30)^4)-1","v":2.0974640498831576E-2},null,null,null,null,null,"--","--",{"$f":"Quarterly!DI31-Quarterly!DI30","v":0},"--",{"$f":"(Quarterly!DK31-Quarterly!DK30)*100","v":-10.000000000000053},{"$f":"((Quarterly!DL31/Quarterly!DL30)^4)-1","v":1.0743423421318621E-2},null,null,null,{"$f":"((Quarterly!DP31/Quarterly!DP30)^4)-1","v":2.9096539463980831E-2},null,null,null,"--","--","--","--","--","--","--","--","--","--",null,null,null,null,null,{"$f":"((Quarterly!EI31/Quarterly!EI30)^4)-1","v":0.12070327143435233},{"$f":"((Quarterly!EJ31/Quarterly!EJ30)^4)-1","v":9.4485264228003629E-2},{"$f":"((Quarterly!EK31/Quarterly!EK30)^4)-1","v":8.1234993105923525E-2},null,null,null,null,null,{"$f":"((Quarterly!EQ31/Quarterly!EQ30)^4)-1","v":4.22163001825826E-3},"--",{"$f":"((Quarterly!ES31/Quarterly!ES30)^4)-1","v":8.0644753182641526E-3},null,null,null,null,null,{"$f":"(Quarterly!EY31-Quarterly!EY30)*100","v":0},{"$f":"(Quarterly!EZ31-Quarterly!EZ30)*100","v":1.0000000000000231},{"$f":"(Quarterly!FA31-Quarterly!FA30)*100","v":4.3333333333333002},{"$f":"(Quarterly!FB31-Quarterly!FB30)*100","v":-0.99999999999997868},-5.3333333333332789,"--",{"$f":"(Quarterly!FE31-Quarterly!FE30)*100","v":3.3333333333333215},{"$f":"(Quarterly!FF31-Quarterly!FF30)*100","v":9.6666666666666234},"--",{"$f":"(Quarterly!FH31-Quarterly!FH30)*100","v":7.3333333333334139},{"$f":"(Quarterly!FI31-Quarterly!FI30)*100","v":5.9999999999999609},-3.6666666666666625,null,null,null,null,null,"--","--","--","--","--","--","--","--","--",null,null,null,null,null,{"$f":"((Quarterly!GD31/Quarterly!GD30)^4)-1","v":0},"--","--","--","--","--","--","--","--"]
["64'Q2",{"$f":"((Quarterly!B32/Quarterly!B31)^4)-1","v":5.8504413643027275E-2},{"$f":"((Quarterly!C32/Quarterly!C31)^4)-1","v":4.8421184727353239E-2},{"$f":"((Quarterly!D32/Quarterly!D31)^4)-1","v":5.0037578500800484E-2},{"$f":"((Quarterly!E32/Quarterly!E31)^4)-1","v":7.2219931050062858E-2},{"$f":"((Quarterly!F32/Quarterly!F31)^4)-1","v":0.10879220282919966},{"$f":"((Quarterly!G32/Quarterly!G31)^4)-1","v":7.854850741343955E-2},{"$f":"((Quarterly!H32/Quarterly!H31)^4)-1","v":6.614865635720979E-2},{"$f":"((Quarterly!I32/Quarterly!I31)^4)-1","v":9.6957697638126561E-2},{"$f":"((Quarterly!J32/Quarterly!J31)^4)-1","v":0.12573924970347505},{"$f":"((Quarterly!K32/Quarterly!K31)^4)-1","v":-0.18580267001738748},{"$f":"((Quarterly!L32-Quarterly!L31))","v":-0.73200000000000287},{"$f":"((Quarterly!M32/Quarterly!M31)^4)-1","v":9.3128185300116906E-2},{"$f":"((Quarterly!N32/Quarterly!N31)^4)-1","v":6.7811039128978567E-2},{"$f":"((Quarterly!O32/Quarterly!O31)^4)-1","v":0.43879531556846785},{"$f":"((Quarterly!P32/Quarterly!P31)^4)-1","v":3.6590589766584136E-2},{"$f":"((Quarterly!Q32/Quarterly!Q31)^4)-1","v":10.47077936489171},null,null,null,null,null,"--","--",{"$f":"((Quarterly!Y32/Quarterly!Y31)^4)-1","v":9.413276910705215E-2},"--",{"$f":"((Quarterly!AA32/Quarterly!AA31)^4)-1","v":-6.3251202741372303E-3},{"$f":"((Quarterly!AB32/Quarterly!AB31)^4)-1","v":1.6953460148604993E-2},"--","--","--","--","--","--","--","--","--","--",{"$f":"((Quarterly!AM32/Quarterly!AM31)^4)-1","v":9.7251908021685152E-2},"--","--","--",{"$f":"Quarterly!AQ32-Quarterly!AQ31","v":0.93333333333333712},"--","--",{"$f":"Quarterly!AT32-Quarterly!AT31","v":2.5333333333333314},"--","--",{"$f":"Quarterly!AW32-Quarterly!AW31","v":3},{"$f":"Quarterly!AX32-Quarterly!AX31","v":1.1333333333333258},{"$f":"Quarterly!AY32-Quarterly!AY31","v":1.3000000000000043},{"$f":"Quarterly!AZ32-Quarterly!AZ31","v":-2.6666666666666714},{"$f":"Quarterly!BA32-Quarterly!BA31","v":3.0666666666666629},"--","--","--","--",{"$f":"((Quarterly!BF32/Quarterly!BF31)^4)-1","v":4.5098988919651584E-2},{"$f":"((Quarterly!BG32/Quarterly!BG31)^4)-1","v":2.7459975536434422E-2},{"$f":"((Quarterly!BH32/Quarterly!BH31)^4)-1","v":3.8307210961188609E-2},{"$f":"((Quarterly!BI32/Quarterly!BI31)^4)-1","v":1.6972620753216372E-2},{"$f":"((Quarterly!BJ32/Quarterly!BJ31)^4)-1","v":9.0065499977962649E-3},"--",null,"--","--",null,null,null,null,null,{"$f":"((Quarterly!BT32/Quarterly!BT31)^4)-1","v":0.15406916372031221},"--","--",{"$f":"((Quarterly!BW32/Quarterly!BW31)^4)-1","v":9.3994394571373041E-2},{"$f":"((Quarterly!BX32/Quarterly!BX31)^4)-1","v":-0.33261251684990045},{"$f":"((Quarterly!BY32/Quarterly!BY31)^4)-1","v":-0.19009782527319452},"--","--",{"$f":"((Quarterly!CB32/Quarterly!CB31)^4)-1","v":-0.15724406392000367},{"$f":"((Quarterly!CC32/Quarterly!CC31)^4)-1","v":-0.16584375448236355},"--","--",null,"--","--",null,{"$f":"((Quarterly!CJ32/Quarterly!CJ31)^4)-1","v":-0.12821319754900928},{"$f":"((Quarterly!CK32/Quarterly!CK31)^4)-1","v":7.5137966224139596E-2},{"$f":"((Quarterly!CL32/Quarterly!CL31)^4)-1","v":0.47111784243629584},{"$f":"((Quarterly!CM32/Quarterly!CM31)^4)-1","v":-0.32057426350127793},{"$f":"((Quarterly!CN32/Quarterly!CN31)^4)-1","v":0.11188558752015587},{"$f":"((Quarterly!CO32/Quarterly!CO31)^4)-1","v":9.3980878274500412E-2},{"$f":"((Quarterly!CP32/Quarterly!CP31)^4)-1","v":0.12703003855323058},{"$f":"((Quarterly!CQ32/Quarterly!CQ31)^4)-1","v":1.2528460022284804E-2},"--","--","--",null,null,null,null,null,{"$f":"((Quarterly!CZ32/Quarterly!CZ31)^4)-1","v":6.4819104077804557E-3},{"$f":"((Quarterly!DA32/Quarterly!DA31)^4)-1","v":4.147220981119748E-3},null,null,null,null,null,"--","--",{"$f":"Quarterly!DI32-Quarterly!DI31","v":0.26666666666665861},"--",{"$f":"(Quarterly!DK32-Quarterly!DK31)*100","v":-26.666666666666661},{"$f":"((Quarterly!DL32/Quarterly!DL31)^4)-1","v":1.7819592303647491E-2},null,null,null,{"$f":"((Quarterly!DP32/Quarterly!DP31)^4)-1","v":2.5562586068107906E-2},null,null,null,"--","--","--","--","--","--","--","--","--","--",null,null,null,null,null,{"$f":"((Quarterly!EI32/Quarterly!EI31)^4)-1","v":4.6237754411779797E-3},{"$f":"((Quarterly!EJ32/Quarterly!EJ31)^4)-1","v":3.9940385965951508E-2},{"$f":"((Quarterly!EK32/Quarterly!EK31)^4)-1","v":5.6653918995030583E-2},null,null,null,null,null,{"$f":"((Quarterly!EQ32/Quarterly!EQ31)^4)-1","v":-1.6736032343521279E-2},"--",{"$f":"((Quarterly!ES32/Quarterly!ES31)^4)-1","v":2.0211589767577642E-2},null,null,null,null,null,{"$f":"(Quarterly!EY32-Quarterly!EY31)*100","v":0},{"$f":"(Quarterly!EZ32-Quarterly!EZ31)*100","v":2.6666666666666838},{"$f":"(Quarterly!FA32-Quarterly!FA31)*100","v":3.0000000000001137},{"$f":"(Quarterly!FB32-Quarterly!FB31)*100","v":1.9999999999999574},-1.0000000000001563,"--",{"$f":"(Quarterly!FE32-Quarterly!FE31)*100","v":-5.3333333333333233},{"$f":"(Quarterly!FF32-Quarterly!FF31)*100","v":3.3333333333333215},"--",{"$f":"(Quarterly!FH32-Quarterly!FH31)*100","v":-0.66666666666677088},{"$f":"(Quarterly!FI32-Quarterly!FI31)*100","v":2.0000000000000462},-1.3333333333332753,null,null,null,null,null,"--","--","--","--","--","--","--","--","--",null,null,null,null,null,{"$f":"((Quarterly!GD32/Quarterly!GD31)^4)-1","v":0},"--","--","--","--","--","--","--","--"]
["64'Q3",{"$f":"((Quarterly!B33/Quarterly!B32)^4)-1","v":7.2705741923659861E-2},{"$f":"((Quarterly!C33/Quarterly!C32)^4)-1","v":5.5449475098345191E-2},{"$f":"((Quarterly!D33/Quarterly!D32)^4)-1","v":5.0582844326179321E-2},{"$f":"((Quarterly!E33/Quarterly!E32)^4)-1","v":7.5685294051628604E-2},{"$f":"((Quarterly!F33/Quarterly!F32)^4)-1","v":0.13868103055190484},{"$f":"((Quarterly!G33/Quarterly!G32)^4)-1","v":8.0450689918411644E-2},{"$f":"((Quarterly!H33/Quarterly!H32)^4)-1","v":6.8417886597517574E-2},{"$f":"((Quarterly!I33/Quarterly!I32)^4)-1","v":0.13543042632414726},{"$f":"((Quarterly!J33/Quarterly!J32)^4)-1","v":0.21222305776955319},{"$f":"((Quarterly!K33/Quarterly!K32)^4)-1","v":-6.5114626691567756E-2},{"$f":"((Quarterly!L33-Quarterly!L32))","v":3.4370000000000012},{"$f":"((Quarterly!M33/Quarterly!M32)^4)-1","v":0.11175165042778867},{"$f":"((Quarterly!N33/Quarterly!N32)^4)-1","v":-3.0247993074906554E-2},{"$f":"((Quarterly!O33/Quarterly!O32)^4)-1","v":3.0259738838094599},{"$f":"((Quarterly!P33/Quarterly!P32)^4)-1","v":4.8473985653869622E-3},{"$f":"((Quarterly!Q33/Quarterly!Q32)^4)-1","v":-0.8090380337418549},null,null,null,null,null,"--","--",{"$f":"((Quarterly!Y33/Quarterly!Y32)^4)-1","v":0.11175448939493537},"--",{"$f":"((Quarterly!AA33/Quarterly!AA32)^4)-1","v":0.10423281542299057},{"$f":"((Quarterly!AB33/Quarterly!AB32)^4)-1","v":4.1141851342745062E-2},"--","--","--","--","--","--","--","--","--","--",{"$f":"((Quarterly!AM33/Quarterly!AM32)^4)-1","v":6.5643009714868139E-2},"--","--","--",{"$f":"Quarterly!AQ33-Quarterly!AQ32","v":3.8333333333333286},"--","--",{"$f":"Quarterly!AT33-Quarterly!AT32","v":1.3999999999999986},"--","--",{"$f":"Quarterly!AW33-Quarterly!AW32","v":3.6999999999999957},{"$f":"Quarterly!AX33-Quarterly!AX32","v":4.3333333333333357},{"$f":"Quarterly!AY33-Quarterly!AY32","v":0.93333333333333002},{"$f":"Quarterly!AZ33-Quarterly!AZ32","v":2.9333333333333442},{"$f":"Quarterly!BA33-Quarterly!BA32","v":7.7333333333333414},"--","--","--","--",{"$f":"((Quarterly!BF33/Quarterly!BF32)^4)-1","v":5.369150852439919E-2},{"$f":"((Quarterly!BG33/Quarterly!BG32)^4)-1","v":3.0416085234906909E-2},{"$f":"((Quarterly!BH33/Quarterly!BH32)^4)-1","v":4.431155001531728E-2},{"$f":"((Quarterly!BI33/Quarterly!BI32)^4)-1","v":2.26417900768765E-2},{"$f":"((Quarterly!BJ33/Quarterly!BJ32)^4)-1","v":0.12199873462054223},"--",null,"--","--",null,null,null,null,null,{"$f":"((Quarterly!BT33/Quarterly!BT32)^4)-1","v":0.18280258834792451},"--","--",{"$f":"((Quarterly!BW33/Quarterly!BW32)^4)-1","v":8.7604279320525169E-2},{"$f":"((Quarterly!BX33/Quarterly!BX32)^4)-1","v":0.11288515338063632},{"$f":"((Quarterly!BY33/Quarterly!BY32)^4)-1","v":3.3725642588406046E-2},"--","--",{"$f":"((Quarterly!CB33/Quarterly!CB32)^4)-1","v":-0.30932895983983388},{"$f":"((Quarterly!CC33/Quarterly!CC32)^4)-1","v":-0.25432219033773185},"--","--",null,"--","--",null,{"$f":"((Quarterly!CJ33/Quarterly!CJ32)^4)-1","v":0.22080849353385523},{"$f":"((Quarterly!CK33/Quarterly!CK32)^4)-1","v":7.5634234402474076E-2},{"$f":"((Quarterly!CL33/Quarterly!CL32)^4)-1","v":-0.10326829998759024},{"$f":"((Quarterly!CM33/Quarterly!CM32)^4)-1","v":0.12880334774521085},{"$f":"((Quarterly!CN33/Quarterly!CN32)^4)-1","v":5.266966763186165E-2},{"$f":"((Quarterly!CO33/Quarterly!CO32)^4)-1","v":9.8249135608077909E-2},{"$f":"((Quarterly!CP33/Quarterly!CP32)^4)-1","v":0.12106767102583382},{"$f":"((Quarterly!CQ33/Quarterly!CQ32)^4)-1","v":1.4268960227747707E-2},"--","--","--",null,null,null,null,null,{"$f":"((Quarterly!CZ33/Quarterly!CZ32)^4)-1","v":9.0687679046279612E-3},{"$f":"((Quarterly!DA33/Quarterly!DA32)^4)-1","v":8.2987107207410649E-3},null,null,null,null,null,"--","--",{"$f":"Quarterly!DI33-Quarterly!DI32","v":-0.3333333333333357},"--",{"$f":"(Quarterly!DK33-Quarterly!DK32)*100","v":-19.999999999999929},{"$f":"((Quarterly!DL33/Quarterly!DL32)^4)-1","v":4.0398990124251855E-2},null,null,null,{"$f":"((Quarterly!DP33/Quarterly!DP32)^4)-1","v":3.9674264386635461E-2},null,null,null,"--","--","--","--","--","--","--","--","--","--",null,null,null,null,null,{"$f":"((Quarterly!EI33/Quarterly!EI32)^4)-1","v":3.9774108257496721E-2},{"$f":"((Quarterly!EJ33/Quarterly!EJ32)^4)-1","v":5.5587370593892071E-2},{"$f":"((Quarterly!EK33/Quarterly!EK32)^4)-1","v":6.2216665676053662E-2},null,null,null,null,null,{"$f":"((Quarterly!EQ33/Quarterly!EQ32)^4)-1","v":1.2745457959648432E-2},"--",{"$f":"((Quarterly!ES33/Quarterly!ES32)^4)-1","v":1.2029939985406468E-2},null,null,null,null,null,{"$f":"(Quarterly!EY33-Quarterly!EY32)*100","v":0},{"$f":"(Quarterly!EZ33-Quarterly!EZ32)*100","v":-3.3333333333333215},{"$f":"(Quarterly!FA33-Quarterly!FA32)*100","v":0.33333333333329662},{"$f":"(Quarterly!FB33-Quarterly!FB32)*100","v":-2.6666666666666394},-2.9999999999999361,"--",{"$f":"(Quarterly!FE33-Quarterly!FE32)*100","v":2.0000000000000018},{"$f":"(Quarterly!FF33-Quarterly!FF32)*100","v":-9.3333333333332824},"--",{"$f":"(Quarterly!FH33-Quarterly!FH32)*100","v":-1.9999999999999574},{"$f":"(Quarterly!FI33-Quarterly!FI32)*100","v":-0.66666666666659324},8.6666666666666892,null,null,null,null,null,"--","--","--","--","--","--","--","--","--",null,null,null,null,null,{"$f":"((Quarterly!GD33/Quarterly!GD32)^4)-1","v":-6.5658565636598554E-2},"--","--","--","--","--","--","--","--"]
["64'Q4",{"$f":"((Quarterly!B34/Quarterly!B33)^4)-1","v":3.2826923113903117E-2},{"$f":"((Quarterly!C34/Quarterly!C33)^4)-1","v":1.4259309122984565E-2},{"$f":"((Quarterly!D34/Quarterly!D33)^4)-1","v":1.3595060072812082E-2},{"$f":"((Quarterly!E34/Quarterly!E33)^4)-1","v":1.1182744310874515E-2},{"$f":"((Quarterly!F34/Quarterly!F33)^4)-1","v":-0.1174398555262518},{"$f":"((Quarterly!G34/Quarterly!G33)^4)-1","v":7.6383747631763033E-3},{"$f":"((Quarterly!H34/Quarterly!H33)^4)-1","v":2.3779085334235894E-2},{"$f":"((Quarterly!I34/Quarterly!I33)^4)-1","v":8.7950941786629766E-2},{"$f":"((Quarterly!J34/Quarterly!J33)^4)-1","v":0.10050443002861176},{"$f":"((Quarterly!K34/Quarterly!K33)^4)-1","v":-7.0581831557033348E-2},{"$f":"((Quarterly!L34-Quarterly!L33))","v":-0.90599999999999881},{"$f":"((Quarterly!M34/Quarterly!M33)^4)-1","v":0.1126483940138403},{"$f":"((Quarterly!N34/Quarterly!N33)^4)-1","v":0.12457883591808794},{"$f":"((Quarterly!O34/Quarterly!O33)^4)-1","v":2.1529967324930288E-2},{"$f":"((Quarterly!P34/Quarterly!P33)^4)-1","v":-1.435267955177677E-3},{"$f":"((Quarterly!Q34/Quarterly!Q33)^4)-1","v":-0.67694329403289122},null,null,null,null,null,"--","--",{"$f":"((Quarterly!Y34/Quarterly!Y33)^4)-1","v":0.15048415856354191},"--",{"$f":"((Quarterly!AA34/Quarterly!AA33)^4)-1","v":-3.4703444837094533E-2},{"$f":"((Quarterly!AB34/Quarterly!AB33)^4)-1","v":-4.0109498427898238E-4},"--","--","--","--","--","--","--","--","--","--",{"$f":"((Quarterly!AM34/Quarterly!AM33)^4)-1","v":6.2003991909831413E-2},"--","--","--",{"$f":"Quarterly!AQ34-Quarterly!AQ33","v":-1.5333333333333314},"--","--",{"$f":"Quarterly!AT34-Quarterly!AT33","v":-1.1999999999999957},"--","--",{"$f":"Quarterly!AW34-Quarterly!AW33","v":3.8666666666666671},{"$f":"Quarterly!AX34-Quarterly!AX33","v":-5.7333333333333272},{"$f":"Quarterly!AY34-Quarterly!AY33","v":6.5000000000000071},{"$f":"Quarterly!AZ34-Quarterly!AZ33","v":-1.7000000000000028},{"$f":"Quarterly!BA34-Quarterly!BA33","v":3.1333333333333258},"--","--","--","--",{"$f":"((Quarterly!BF34/Quarterly!BF33)^4)-1","v":2.97702979340011E-2},{"$f":"((Quarterly!BG34/Quarterly!BG33)^4)-1","v":-3.5285047762178112E-2},{"$f":"((Quarterly!BH34/Quarterly!BH33)^4)-1","v":1.1032286079710518E-2},{"$f":"((Quarterly!BI34/Quarterly!BI33)^4)-1","v":6.7573161906768542E-2},{"$f":"((Quarterly!BJ34/Quarterly!BJ33)^4)-1","v":-3.8477073954464314E-2},"--",null,"--","--",null,null,null,null,null,{"$f":"((Quarterly!BT34/Quarterly!BT33)^4)-1","v":0.13772507224064667},"--","--",{"$f":"((Quarterly!BW34/Quarterly!BW33)^4)-1","v":7.1038442343304808E-2},{"$f":"((Quarterly!BX34/Quarterly!BX33)^4)-1","v":-7.7861677883326541E-2},{"$f":"((Quarterly!BY34/Quarterly!BY33)^4)-1","v":-0.21452477513267953},"--","--",{"$f":"((Quarterly!CB34/Quarterly!CB33)^4)-1","v":0.10857832770595643},{"$f":"((Quarterly!CC34/Quarterly!CC33)^4)-1","v":5.7706538254686635E-2},"--","--",null,"--","--",null,{"$f":"((Quarterly!CJ34/Quarterly!CJ33)^4)-1","v":-0.16298319091430324},{"$f":"((Quarterly!CK34/Quarterly!CK33)^4)-1","v":6.7126478860331629E-2},{"$f":"((Quarterly!CL34/Quarterly!CL33)^4)-1","v":0.35332688254283662},{"$f":"((Quarterly!CM34/Quarterly!CM33)^4)-1","v":-3.6525801723521711E-2},{"$f":"((Quarterly!CN34/Quarterly!CN33)^4)-1","v":4.6117119566238429E-2},{"$f":"((Quarterly!CO34/Quarterly!CO33)^4)-1","v":0.10281888220651925},{"$f":"((Quarterly!CP34/Quarterly!CP33)^4)-1","v":0.10406287153648375},{"$f":"((Quarterly!CQ34/Quarterly!CQ33)^4)-1","v":1.4800490693179125E-2},"--","--","--",null,null,null,null,null,{"$f":"((Quarterly!CZ34/Quarterly!CZ33)^4)-1","v":1.8593091973488018E-2},{"$f":"((Quarterly!DA34/Quarterly!DA33)^4)-1","v":2.0800136173389383E-2},null,null,null,null,null,"--","--",{"$f":"Quarterly!DI34-Quarterly!DI33","v":-6.6666666666669983E-2},"--",{"$f":"(Quarterly!DK34-Quarterly!DK33)*100","v":-3.3333333333334103},{"$f":"((Quarterly!DL34/Quarterly!DL33)^4)-1","v":1.5535972818782273E-2},null,null,null,{"$f":"((Quarterly!DP34/Quarterly!DP33)^4)-1","v":3.4472167071090576E-2},null,null,null,"--","--","--","--","--","--","--","--","--","--",null,null,null,null,null,{"$f":"((Quarterly!EI34/Quarterly!EI33)^4)-1","v":-1.1420319040498228E-3},{"$f":"((Quarterly!EJ34/Quarterly!EJ33)^4)-1","v":7.6335329414796149E-3},{"$f":"((Quarterly!EK34/Quarterly!EK33)^4)-1","v":1.664411831004986E-2},null,null,null,null,null,{"$f":"((Quarterly!EQ34/Quarterly!EQ33)^4)-1","v":8.4566125703511297E-3},"--",{"$f":"((Quarterly!ES34/Quarterly!ES33)^4)-1","v":0},null,null,null,null,null,{"$f":"(Quarterly!EY34-Quarterly!EY33)*100","v":0},{"$f":"(Quarterly!EZ34-Quarterly!EZ33)*100","v":11.999999999999966},{"$f":"(Quarterly!FA34-Quarterly!FA33)*100","v":1.9999999999999574},{"$f":"(Quarterly!FB34-Quarterly!FB33)*100","v":-1.3333333333333641},-3.3333333333333215,"--",{"$f":"(Quarterly!FE34-Quarterly!FE33)*100","v":18.6666666666667},{"$f":"(Quarterly!FF34-Quarterly!FF33)*100","v":16.333333333333265},"--",{"$f":"(Quarterly!FH34-Quarterly!FH33)*100","v":1.3333333333332753},{"$f":"(Quarterly!FI34-Quarterly!FI33)*100","v":-2.000000000000135},-18.3333333333334,null,null,null,null,null,"--","--","--","--","--","--","--","--","--",null,null,null,null,null,{"$f":"((Quarterly!GD34/Quarterly!GD33)^4)-1","v":0},"--","--","--","--","--","--","--","--"]
["65'Q1",{"$f":"((Quarterly!B35/Quarterly!B34)^4)-1","v":0.12470346498287399},{"$f":"((Quarterly!C35/Quarterly!C34)^4)-1","v":0.10236361848521014},{"$f":"((Quarterly!D35/Quarterly!D34)^4)-1","v":6.6368971172011904E-2},{"$f":"((Quarterly!E35/Quarterly!E34)^4)-1","v":9.2222394311239242E-2},{"$f":"((Quarterly!F35/Quarterly!F34)^4)-1","v":0.42763079622169653},{"$f":"((Quarterly!G35/Quarterly!G34)^4)-1","v":3.8796490802165851E-2},{"$f":"((Quarterly!H35/Quarterly!H34)^4)-1","v":9.7809799520072405E-2},{"$f":"((Quarterly!I35/Quarterly!I34)^4)-1","v":0.27999470767208812},{"$f":"((Quarterly!J35/Quarterly!J34)^4)-1","v":0.44228972644148512},{"$f":"((Quarterly!K35/Quarterly!K34)^4)-1","v":1.2633084687417195E-2},{"$f":"((Quarterly!L35-Quarterly!L34))","v":25.654},{"$f":"((Quarterly!M35/Quarterly!M34)^4)-1","v":-0.13639889552456741},{"$f":"((Quarterly!N35/Quarterly!N34)^4)-1","v":-0.36674058716457891},{"$f":"((Quarterly!O35/Quarterly!O34)^4)-1","v":4.7317995423774688},{"$f":"((Quarterly!P35/Quarterly!P34)^4)-1","v":-4.3630710788757909E-3},{"$f":"((Quarterly!Q35/Quarterly!Q34)^4)-1","v":-0.99896846540181927},null,null,null,null,null,"--","--",{"$f":"((Quarterly!Y35/Quarterly!Y34)^4)-1","v":0.22586428916139867},"--",{"$f":"((Quarterly!AA35/Quarterly!AA34)^4)-1","v":0.67158755363164846},{"$f":"((Quarterly!AB35/Quarterly!AB34)^4)-1","v":0.62531262994585535},"--","--","--","--","--","--","--","--","--","--",{"$f":"((Quarterly!AM35/Quarterly!AM34)^4)-1","v":0.15985719653417019},"--","--","--",{"$f":"Quarterly!AQ35-Quarterly!AQ34","v":1.0333333333333314},"--","--",{"$f":"Quarterly!AT35-Quarterly!AT34","v":2.8999999999999915},"--","--",{"$f":"Quarterly!AW35-Quarterly!AW34","v":0.93333333333332291},{"$f":"Quarterly!AX35-Quarterly!AX34","v":3.3999999999999986},{"$f":"Quarterly!AY35-Quarterly!AY34","v":-2.2999999999999972},{"$f":"Quarterly!AZ35-Quarterly!AZ34","v":-1.2333333333333414},{"$f":"Quarterly!BA35-Quarterly!BA34","v":-2.2666666666666657},"--","--","--","--",{"$f":"((Quarterly!BF35/Quarterly!BF34)^4)-1","v":1.5998817780199959E-2},{"$f":"((Quarterly!BG35/Quarterly!BG34)^4)-1","v":6.0783127062965514E-2},{"$f":"((Quarterly!BH35/Quarterly!BH34)^4)-1","v":3.5657311257424329E-3},{"$f":"((Quarterly!BI35/Quarterly!BI34)^4)-1","v":-4.2206763707015371E-2},{"$f":"((Quarterly!BJ35/Quarterly!BJ34)^4)-1","v":0.73516343624410907},"--",null,"--","--",null,null,null,null,null,{"$f":"((Quarterly!BT35/Quarterly!BT34)^4)-1","v":0.12481621000931531},"--","--",{"$f":"((Quarterly!BW35/Quarterly!BW34)^4)-1","v":8.9841815970567396E-2},{"$f":"((Quarterly!BX35/Quarterly!BX34)^4)-1","v":-0.22467795654127265},{"$f":"((Quarterly!BY35/Quarterly!BY34)^4)-1","v":1.3222961053447779E-2},"--","--",{"$f":"((Quarterly!CB35/Quarterly!CB34)^4)-1","v":-0.10405959826744948},{"$f":"((Quarterly!CC35/Quarterly!CC34)^4)-1","v":-8.5887809948230309E-2},"--","--",null,"--","--",null,{"$f":"((Quarterly!CJ35/Quarterly!CJ34)^4)-1","v":-5.3930525643692939E-2},{"$f":"((Quarterly!CK35/Quarterly!CK34)^4)-1","v":8.4197786046009693E-2},{"$f":"((Quarterly!CL35/Quarterly!CL34)^4)-1","v":-0.21656247715086241},{"$f":"((Quarterly!CM35/Quarterly!CM34)^4)-1","v":-0.25502812239677686},{"$f":"((Quarterly!CN35/Quarterly!CN34)^4)-1","v":4.7992282565953559E-2},{"$f":"((Quarterly!CO35/Quarterly!CO34)^4)-1","v":0.1020889048465683},{"$f":"((Quarterly!CP35/Quarterly!CP34)^4)-1","v":0.145384043505973},{"$f":"((Quarterly!CQ35/Quarterly!CQ34)^4)-1","v":1.1380674074602748E-2},"--","--","--",null,null,null,null,null,{"$f":"((Quarterly!CZ35/Quarterly!CZ34)^4)-1","v":1.2453551255781292E-2},{"$f":"((Quarterly!DA35/Quarterly!DA34)^4)-1","v":1.6528575723982808E-2},null,null,null,null,null,"--","--",{"$f":"Quarterly!DI35-Quarterly!DI34","v":0.10000000000000142},"--",{"$f":"(Quarterly!DK35-Quarterly!DK34)*100","v":-6.666666666666643},{"$f":"((Quarterly!DL35/Quarterly!DL34)^4)-1","v":6.7866938867244597E-2},null,null,null,{"$f":"((Quarterly!DP35/Quarterly!DP34)^4)-1","v":4.4783709051829046E-2},null,null,null,"--","--","--","--","--","--","--","--","--","--",null,null,null,null,null,{"$f":"((Quarterly!EI35/Quarterly!EI34)^4)-1","v":0.11160273971210888},{"$f":"((Quarterly!EJ35/Quarterly!EJ34)^4)-1","v":9.9522070303290411E-2},{"$f":"((Quarterly!EK35/Quarterly!EK34)^4)-1","v":8.9506165895347545E-2},null,null,null,null,null,{"$f":"((Quarterly!EQ35/Quarterly!EQ34)^4)-1","v":2.1196931951004361E-2},"--",{"$f":"((Quarterly!ES35/Quarterly!ES34)^4)-1","v":2.0049501874938258E-2},null,null,null,null,null,{"$f":"(Quarterly!EY35-Quarterly!EY34)*100","v":0},{"$f":"(Quarterly!EZ35-Quarterly!EZ34)*100","v":39.66666666666665},{"$f":"(Quarterly!FA35-Quarterly!FA34)*100","v":-0.99999999999997868},{"$f":"(Quarterly!FB35-Quarterly!FB34)*100","v":-2.3333333333333428},-1.3333333333333641,"--",{"$f":"(Quarterly!FE35-Quarterly!FE34)*100","v":20.666666666666657},{"$f":"(Quarterly!FF35-Quarterly!FF34)*100","v":8.0000000000000959},"--",{"$f":"(Quarterly!FH35-Quarterly!FH34)*100","v":6.6666666666667318},{"$f":"(Quarterly!FI35-Quarterly!FI34)*100","v":3.0000000000000249},-5.0000000000000711,null,null,null,null,null,"--","--","--","--","--","--","--","--","--",null,null,null,null,null,{"$f":"((Quarterly!GD35/Quarterly!GD34)^4)-1","v":0},"--","--","--","--","--","--","--","--"]
["65'Q2",{"$f":"((Quarterly!B36/Quarterly!B35)^4)-1","v":7.4991822113464224E-2},{"$f":"((Quarterly!C36/Quarterly!C35)^4)-1","v":5.581567316916769E-2},{"$f":"((Quarterly!D36/Quarterly!D35)^4)-1","v":7.4100738128868748E-2},{"$f":"((Quarterly!E36/Quarterly!E35)^4)-1","v":4.5056023393829747E-2},{"$f":"((Quarterly!F36/Quarterly!F35)^4)-1","v":6.2712115208087837E-3},{"$f":"((Quarterly!G36/Quarterly!G35)^4)-1","v":3.8781413217688909E-2},{"$f":"((Quarterly!H36/Quarterly!H35)^4)-1","v":5.1518481874563093E-2},{"$f":"((Quarterly!I36/Quarterly!I35)^4)-1","v":0.15518029561088698},{"$f":"((Quarterly!J36/Quarterly!J35)^4)-1","v":0.21899730053315603},{"$f":"((Quarterly!K36/Quarterly!K35)^4)-1","v":3.0102871466049397E-2},{"$f":"((Quarterly!L36-Quarterly!L35))","v":-12.725000000000001},{"$f":"((Quarterly!M36/Quarterly!M35)^4)-1","v":0.56237755586366189},{"$f":"((Quarterly!N36/Quarterly!N35)^4)-1","v":0.99007816863932074},{"$f":"((Quarterly!O36/Quarterly!O35)^4)-1","v":-0.60630805786210373},{"$f":"((Quarterly!P36/Quarterly!P35)^4)-1","v":4.9272908490153977E-2},{"$f":"((Quarterly!Q36/Quarterly!Q35)^4)-1","v":22.453788234466771},null,null,null,null,null,"--","--",{"$f":"((Quarterly!Y36/Quarterly!Y35)^4)-1","v":0.20851734208438311},"--",{"$f":"((Quarterly!AA36/Quarterly!AA35)^4)-1","v":0.15497525073302021},{"$f":"((Quarterly!AB36/Quarterly!AB35)^4)-1","v":9.2137230367852707E-2},"--","--","--","--","--","--","--","--","--","--",{"$f":"((Quarterly!AM36/Quarterly!AM35)^4)-1","v":9.6025150148466576E-2},"--","--","--",{"$f":"Quarterly!AQ36-Quarterly!AQ35","v":-2},"--","--",{"$f":"Quarterly!AT36-Quarterly!AT35","v":-1.7333333333333272},"--","--",{"$f":"Quarterly!AW36-Quarterly!AW35","v":-1.3666666666666529},{"$f":"Quarterly!AX36-Quarterly!AX35","v":-5.6000000000000014},{"$f":"Quarterly!AY36-Quarterly!AY35","v":3.9666666666666544},{"$f":"Quarterly!AZ36-Quarterly!AZ35","v":-0.39999999999999147},{"$f":"Quarterly!BA36-Quarterly!BA35","v":1.7000000000000028},"--","--","--","--",{"$f":"((Quarterly!BF36/Quarterly!BF35)^4)-1","v":2.7246102689481688E-2},{"$f":"((Quarterly!BG36/Quarterly!BG35)^4)-1","v":2.4015238062411681E-2},{"$f":"((Quarterly!BH36/Quarterly!BH35)^4)-1","v":1.3006013564393903E-3},{"$f":"((Quarterly!BI36/Quarterly!BI35)^4)-1","v":3.1505686016530809E-3},{"$f":"((Quarterly!BJ36/Quarterly!BJ35)^4)-1","v":0.16554448074250705},"--",null,"--","--",null,null,null,null,null,{"$f":"((Quarterly!BT36/Quarterly!BT35)^4)-1","v":0.14957948830603729},"--","--",{"$f":"((Quarterly!BW36/Quarterly!BW35)^4)-1","v":6.7715879990431604E-2},{"$f":"((Quarterly!BX36/Quarterly!BX35)^4)-1","v":0.1895284598692164},{"$f":"((Quarterly!BY36/Quarterly!BY35)^4)-1","v":-5.3535201517718067E-2},"--","--",{"$f":"((Quarterly!CB36/Quarterly!CB35)^4)-1","v":0.17448627490653212},{"$f":"((Quarterly!CC36/Quarterly!CC35)^4)-1","v":3.6491530737030597E-2},"--","--",null,"--","--",null,{"$f":"((Quarterly!CJ36/Quarterly!CJ35)^4)-1","v":0.16734874949974787},{"$f":"((Quarterly!CK36/Quarterly!CK35)^4)-1","v":7.1251000920641072E-2},{"$f":"((Quarterly!CL36/Quarterly!CL35)^4)-1","v":5.4308799384566786E-2},{"$f":"((Quarterly!CM36/Quarterly!CM35)^4)-1","v":0.26418180978062855},{"$f":"((Quarterly!CN36/Quarterly!CN35)^4)-1","v":4.5979201785318224E-2},{"$f":"((Quarterly!CO36/Quarterly!CO35)^4)-1","v":8.7013688628727826E-2},{"$f":"((Quarterly!CP36/Quarterly!CP35)^4)-1","v":0.13521937701325082},{"$f":"((Quarterly!CQ36/Quarterly!CQ35)^4)-1","v":1.0576791188592338E-2},"--","--","--",null,null,null,null,null,{"$f":"((Quarterly!CZ36/Quarterly!CZ35)^4)-1","v":2.581345217863551E-2},{"$f":"((Quarterly!DA36/Quarterly!DA35)^4)-1","v":1.232651096529902E-2},null,null,null,null,null,"--","--",{"$f":"Quarterly!DI36-Quarterly!DI35","v":0.20000000000000284},"--",{"$f":"(Quarterly!DK36-Quarterly!DK35)*100","v":-23.333333333333339},{"$f":"((Quarterly!DL36/Quarterly!DL35)^4)-1","v":4.6611342599673256E-2},null,null,null,{"$f":"((Quarterly!DP36/Quarterly!DP35)^4)-1","v":4.66164090315353E-2},null,null,null,"--","--","--","--","--","--","--","--","--","--",null,null,null,null,null,{"$f":"((Quarterly!EI36/Quarterly!EI35)^4)-1","v":6.8922106949553807E-2},{"$f":"((Quarterly!EJ36/Quarterly!EJ35)^4)-1","v":5.6021392529862712E-2},{"$f":"((Quarterly!EK36/Quarterly!EK35)^4)-1","v":5.8486404535969427E-2},null,null,null,null,null,{"$f":"((Quarterly!EQ36/Quarterly!EQ35)^4)-1","v":3.8192014963898124E-2},"--",{"$f":"((Quarterly!ES36/Quarterly!ES35)^4)-1","v":1.5935941296246758E-2},null,null,null,null,null,{"$f":"(Quarterly!EY36-Quarterly!EY35)*100","v":0},{"$f":"(Quarterly!EZ36-Quarterly!EZ35)*100","v":10.333333333333394},{"$f":"(Quarterly!FA36-Quarterly!FA35)*100","v":2.3333333333334316},{"$f":"(Quarterly!FB36-Quarterly!FB35)*100","v":3.3333333333333215},0.99999999999988987,"--",{"$f":"(Quarterly!FE36-Quarterly!FE35)*100","v":-1.6666666666666607},{"$f":"(Quarterly!FF36-Quarterly!FF35)*100","v":0.99999999999997868},"--",{"$f":"(Quarterly!FH36-Quarterly!FH35)*100","v":1.6666666666666607},{"$f":"(Quarterly!FI36-Quarterly!FI35)*100","v":0.33333333333338544},-0.66666666666659324,null,null,null,null,null,"--","--","--","--","--","--","--","--","--",null,null,null,null,null,{"$f":"((Quarterly!GD36/Quarterly!GD35)^4)-1","v":0},"--","--","--","--","--","--","--","--"]
["65'Q3",{"$f":"((Quarterly!B37/Quarterly!B36)^4)-1","v":0.10090888515210072},{"$f":"((Quarterly!C37/Quarterly!C36)^4)-1","v":8.3749409054596047E-2},{"$f":"((Quarterly!D37/Quarterly!D36)^4)-1","v":7.7693249567293954E-2},{"$f":"((Quarterly!E37/Quarterly!E36)^4)-1","v":7.0698513086385528E-2},{"$f":"((Quarterly!F37/Quarterly!F36)^4)-1","v":0.14390658652815969},{"$f":"((Quarterly!G37/Quarterly!G36)^4)-1","v":6.1259160627681997E-2},{"$f":"((Quarterly!H37/Quarterly!H36)^4)-1","v":6.9854405656555763E-2},{"$f":"((Quarterly!I37/Quarterly!I36)^4)-1","v":0.15355881680656691},{"$f":"((Quarterly!J37/Quarterly!J36)^4)-1","v":0.22394127650679341},{"$f":"((Quarterly!K37/Quarterly!K36)^4)-1","v":1.721737024966985E-2},{"$f":"((Quarterly!L37-Quarterly!L36))","v":4.1379999999999981},{"$f":"((Quarterly!M37/Quarterly!M36)^4)-1","v":1.6515483193032088E-2},{"$f":"((Quarterly!N37/Quarterly!N36)^4)-1","v":-0.21013575654846306},{"$f":"((Quarterly!O37/Quarterly!O36)^4)-1","v":3.2317642069800874},{"$f":"((Quarterly!P37/Quarterly!P36)^4)-1","v":0.1388376782734082},{"$f":"((Quarterly!Q37/Quarterly!Q36)^4)-1","v":486.7184733526488},null,null,null,null,null,"--","--",{"$f":"((Quarterly!Y37/Quarterly!Y36)^4)-1","v":0.16939091871311329},"--",{"$f":"((Quarterly!AA37/Quarterly!AA36)^4)-1","v":7.1301853078200583E-2},{"$f":"((Quarterly!AB37/Quarterly!AB36)^4)-1","v":4.4950380754049002E-2},"--","--","--","--","--","--","--","--","--","--",{"$f":"((Quarterly!AM37/Quarterly!AM36)^4)-1","v":8.6430235390398513E-2},"--","--","--",{"$f":"Quarterly!AQ37-Quarterly!AQ36","v":-1.6000000000000014},"--","--",{"$f":"Quarterly!AT37-Quarterly!AT36","v":-0.19999999999999574},"--","--",{"$f":"Quarterly!AW37-Quarterly!AW36","v":-3.8666666666666742},{"$f":"Quarterly!AX37-Quarterly!AX36","v":-0.40000000000000568},{"$f":"Quarterly!AY37-Quarterly!AY36","v":-1.0999999999999801},{"$f":"Quarterly!AZ37-Quarterly!AZ36","v":-1.0333333333333456},{"$f":"Quarterly!BA37-Quarterly!BA36","v":-5.3000000000000043},"--","--","--","--",{"$f":"((Quarterly!BF37/Quarterly!BF36)^4)-1","v":4.3209040916948549E-2},{"$f":"((Quarterly!BG37/Quarterly!BG36)^4)-1","v":7.3716807792757688E-2},{"$f":"((Quarterly!BH37/Quarterly!BH36)^4)-1","v":3.057598376102777E-2},{"$f":"((Quarterly!BI37/Quarterly!BI36)^4)-1","v":-2.8684351932890206E-2},{"$f":"((Quarterly!BJ37/Quarterly!BJ36)^4)-1","v":9.617632130907805E-2},"--",null,"--","--",null,null,null,null,null,{"$f":"((Quarterly!BT37/Quarterly!BT36)^4)-1","v":0.16933321744937491},"--","--",{"$f":"((Quarterly!BW37/Quarterly!BW36)^4)-1","v":7.8033251594662678E-2},{"$f":"((Quarterly!BX37/Quarterly!BX36)^4)-1","v":3.5895655746403632E-2},{"$f":"((Quarterly!BY37/Quarterly!BY36)^4)-1","v":0.11910539470032244},"--","--",{"$f":"((Quarterly!CB37/Quarterly!CB36)^4)-1","v":-0.13703774535097701},{"$f":"((Quarterly!CC37/Quarterly!CC36)^4)-1","v":-0.17085985278245952},"--","--",null,"--","--",null,{"$f":"((Quarterly!CJ37/Quarterly!CJ36)^4)-1","v":0.10425301680327181},{"$f":"((Quarterly!CK37/Quarterly!CK36)^4)-1","v":0.1058427880873607},{"$f":"((Quarterly!CL37/Quarterly!CL36)^4)-1","v":0.53035495521485609},{"$f":"((Quarterly!CM37/Quarterly!CM36)^4)-1","v":0.15908211576272357},{"$f":"((Quarterly!CN37/Quarterly!CN36)^4)-1","v":0.11425240190126629},{"$f":"((Quarterly!CO37/Quarterly!CO36)^4)-1","v":8.5743613521231277E-2},{"$f":"((Quarterly!CP37/Quarterly!CP36)^4)-1","v":0.11213858782642827},{"$f":"((Quarterly!CQ37/Quarterly!CQ36)^4)-1","v":1.318522277940426E-2},"--","--","--",null,null,null,null,null,{"$f":"((Quarterly!CZ37/Quarterly!CZ36)^4)-1","v":1.1908428122264336E-2},{"$f":"((Quarterly!DA37/Quarterly!DA36)^4)-1","v":4.083710872023083E-3},null,null,null,null,null,"--","--",{"$f":"Quarterly!DI37-Quarterly!DI36","v":3.3333333333331439E-2},"--",{"$f":"(Quarterly!DK37-Quarterly!DK36)*100","v":-29.999999999999893},{"$f":"((Quarterly!DL37/Quarterly!DL36)^4)-1","v":6.2401383313299918E-2},null,null,null,{"$f":"((Quarterly!DP37/Quarterly!DP36)^4)-1","v":5.0304478352463322E-2},null,null,null,"--","--","--","--","--","--","--","--","--","--",null,null,null,null,null,{"$f":"((Quarterly!EI37/Quarterly!EI36)^4)-1","v":8.6182066731304241E-2},{"$f":"((Quarterly!EJ37/Quarterly!EJ36)^4)-1","v":7.7944813022065906E-2},{"$f":"((Quarterly!EK37/Quarterly!EK36)^4)-1","v":7.4795571259088867E-2},null,null,null,null,null,{"$f":"((Quarterly!EQ37/Quarterly!EQ36)^4)-1","v":2.9332786748619055E-2},"--",{"$f":"((Quarterly!ES37/Quarterly!ES36)^4)-1","v":3.9506124763628581E-3},null,null,null,null,null,{"$f":"(Quarterly!EY37-Quarterly!EY36)*100","v":0},{"$f":"(Quarterly!EZ37-Quarterly!EZ36)*100","v":-0.33333333333338544},{"$f":"(Quarterly!FA37-Quarterly!FA36)*100","v":5.3333333333332789},{"$f":"(Quarterly!FB37-Quarterly!FB36)*100","v":7.0000000000000284},1.6666666666667496,"--",{"$f":"(Quarterly!FE37-Quarterly!FE36)*100","v":-0.66666666666668206},{"$f":"(Quarterly!FF37-Quarterly!FF36)*100","v":6.3333333333332575},"--",{"$f":"(Quarterly!FH37-Quarterly!FH36)*100","v":4.9999999999999822},{"$f":"(Quarterly!FI37-Quarterly!FI36)*100","v":3.9999999999999147},-2.3333333333333428,null,null,null,null,null,"--","--","--","--","--","--","--","--","--",null,null,null,null,null,{"$f":"((Quarterly!GD37/Quarterly!GD36)^4)-1","v":0},"--","--","--","--","--","--","--","--"]
["65'Q4",{"$f":"((Quarterly!B38/Quarterly!B37)^4)-1","v":0.12792569993475156},{"$f":"((Quarterly!C38/Quarterly!C37)^4)-1","v":9.7723773236603417E-2},{"$f":"((Quarterly!D38/Quarterly!D37)^4)-1","v":0.11038622973350187},{"$f":"((Quarterly!E38/Quarterly!E37)^4)-1","v":0.11732944564293546},{"$f":"((Quarterly!F38/Quarterly!F37)^4)-1","v":0.17977970028868162},{"$f":"((Quarterly!G38/Quarterly!G37)^4)-1","v":0.15691531249895485},{"$f":"((Quarterly!H38/Quarterly!H37)^4)-1","v":9.2425645246449584E-2},{"$f":"((Quarterly!I38/Quarterly!I37)^4)-1","v":0.17290166258566231},{"$f":"((Quarterly!J38/Quarterly!J37)^4)-1","v":0.21461896289426141},{"$f":"((Quarterly!K38/Quarterly!K37)^4)-1","v":-8.2490322400225691E-2},{"$f":"((Quarterly!L38-Quarterly!L37))","v":-7.2309999999999981},{"$f":"((Quarterly!M38/Quarterly!M37)^4)-1","v":0.20992704970217724},{"$f":"((Quarterly!N38/Quarterly!N37)^4)-1","v":0.32305398870042001},{"$f":"((Quarterly!O38/Quarterly!O37)^4)-1","v":-0.22055628232815871},{"$f":"((Quarterly!P38/Quarterly!P37)^4)-1","v":7.8340449988159921E-2},{"$f":"((Quarterly!Q38/Quarterly!Q37)^4)-1","v":9.3972548898798136E-2},null,null,null,null,null,"--","--",{"$f":"((Quarterly!Y38/Quarterly!Y37)^4)-1","v":0.15469099178975765},"--",{"$f":"((Quarterly!AA38/Quarterly!AA37)^4)-1","v":0.25087195333937773},{"$f":"((Quarterly!AB38/Quarterly!AB37)^4)-1","v":0.19999270784195566},"--","--","--","--","--","--","--","--","--","--",{"$f":"((Quarterly!AM38/Quarterly!AM37)^4)-1","v":8.3409791007825751E-2},"--","--","--",{"$f":"Quarterly!AQ38-Quarterly!AQ37","v":1.2000000000000099},"--","--",{"$f":"Quarterly!AT38-Quarterly!AT37","v":0.46666666666666856},"--","--",{"$f":"Quarterly!AW38-Quarterly!AW37","v":-8.0333333333333314},{"$f":"Quarterly!AX38-Quarterly!AX37","v":3.5333333333333456},{"$f":"Quarterly!AY38-Quarterly!AY37","v":-0.80000000000001137},{"$f":"Quarterly!AZ38-Quarterly!AZ37","v":2.1333333333333471},{"$f":"Quarterly!BA38-Quarterly!BA37","v":1.9999999999999929},"--","--","--","--",{"$f":"((Quarterly!BF38/Quarterly!BF37)^4)-1","v":6.0664111246815589E-2},{"$f":"((Quarterly!BG38/Quarterly!BG37)^4)-1","v":7.4804656464525943E-2},{"$f":"((Quarterly!BH38/Quarterly!BH37)^4)-1","v":3.8560441587455196E-2},{"$f":"((Quarterly!BI38/Quarterly!BI37)^4)-1","v":-1.3306301613673521E-2},{"$f":"((Quarterly!BJ38/Quarterly!BJ37)^4)-1","v":0.25586941916022088},"--",null,"--","--",null,null,null,null,null,{"$f":"((Quarterly!BT38/Quarterly!BT37)^4)-1","v":0.12781120038098837},"--","--",{"$f":"((Quarterly!BW38/Quarterly!BW37)^4)-1","v":9.2802167277004077E-2},{"$f":"((Quarterly!BX38/Quarterly!BX37)^4)-1","v":0.11737545720074771},{"$f":"((Quarterly!BY38/Quarterly!BY37)^4)-1","v":0.21719071611256546},"--","--",{"$f":"((Quarterly!CB38/Quarterly!CB37)^4)-1","v":-0.12509218129165833},{"$f":"((Quarterly!CC38/Quarterly!CC37)^4)-1","v":-0.15873181474563081},"--","--",null,"--","--",null,{"$f":"((Quarterly!CJ38/Quarterly!CJ37)^4)-1","v":5.5800742182152474E-2},{"$f":"((Quarterly!CK38/Quarterly!CK37)^4)-1","v":9.5921675952896246E-2},{"$f":"((Quarterly!CL38/Quarterly!CL37)^4)-1","v":-0.12273361726843268},{"$f":"((Quarterly!CM38/Quarterly!CM37)^4)-1","v":0.12168009339191377},{"$f":"((Quarterly!CN38/Quarterly!CN37)^4)-1","v":8.3007517218021798E-2},{"$f":"((Quarterly!CO38/Quarterly!CO37)^4)-1","v":9.5945175038396835E-2},{"$f":"((Quarterly!CP38/Quarterly!CP37)^4)-1","v":8.9330680228582704E-2},{"$f":"((Quarterly!CQ38/Quarterly!CQ37)^4)-1","v":1.3584955473466609E-2},"--","--","--",null,null,null,null,null,{"$f":"((Quarterly!CZ38/Quarterly!CZ37)^4)-1","v":2.1275851213139241E-2},{"$f":"((Quarterly!DA38/Quarterly!DA37)^4)-1","v":2.0522676831741027E-2},null,null,null,null,null,"--","--",{"$f":"Quarterly!DI38-Quarterly!DI37","v":0},"--",{"$f":"(Quarterly!DK38-Quarterly!DK37)*100","v":-26.666666666666661},{"$f":"((Quarterly!DL38/Quarterly!DL37)^4)-1","v":5.4793145032681068E-2},null,null,null,{"$f":"((Quarterly!DP38/Quarterly!DP37)^4)-1","v":5.2279311201690604E-2},null,null,null,"--","--","--","--","--","--","--","--","--","--",null,null,null,null,null,{"$f":"((Quarterly!EI38/Quarterly!EI37)^4)-1","v":8.3718023321701418E-2},{"$f":"((Quarterly!EJ38/Quarterly!EJ37)^4)-1","v":0.10061879421275233},{"$f":"((Quarterly!EK38/Quarterly!EK37)^4)-1","v":0.10655801807764043},null,null,null,null,null,{"$f":"((Quarterly!EQ38/Quarterly!EQ37)^4)-1","v":2.911926330669834E-2},"--",{"$f":"((Quarterly!ES38/Quarterly!ES37)^4)-1","v":1.5856975384249239E-2},null,null,null,null,null,{"$f":"(Quarterly!EY38-Quarterly!EY37)*100","v":13.999999999999968},{"$f":"(Quarterly!EZ38-Quarterly!EZ37)*100","v":9.3333333333333712},{"$f":"(Quarterly!FA38-Quarterly!FA37)*100","v":11.666666666666625},{"$f":"(Quarterly!FB38-Quarterly!FB37)*100","v":7.6666666666666217},-4.0000000000000036,"--",{"$f":"(Quarterly!FE38-Quarterly!FE37)*100","v":30.000000000000028},{"$f":"(Quarterly!FF38-Quarterly!FF37)*100","v":38.000000000000078},"--",{"$f":"(Quarterly!FH38-Quarterly!FH37)*100","v":30.666666666666664},{"$f":"(Quarterly!FI38-Quarterly!FI37)*100","v":22.666666666666746},-15.333333333333332,null,null,null,null,null,"--","--","--","--","--","--","--","--","--",null,null,null,null,null,{"$f":"((Quarterly!GD38/Quarterly!GD37)^4)-1","v":0},"--","--","--","--","--","--","--","--"]
["66'Q1",{"$f":"((Quarterly!B39/Quarterly!B38)^4)-1","v":0.13134843715455347},{"$f":"((Quarterly!C39/Quarterly!C38)^4)-1","v":0.10249433609969172},{"$f":"((Quarterly!D39/Quarterly!D38)^4)-1","v":7.033268290632666E-2},{"$f":"((Quarterly!E39/Quarterly!E38)^4)-1","v":6.017897299461028E-2},{"$f":"((Quarterly!F39/Quarterly!F38)^4)-1","v":0.2039370461301937},{"$f":"((Quarterly!G39/Quarterly!G38)^4)-1","v":2.9425605782958053E-2},{"$f":"((Quarterly!H39/Quarterly!H38)^4)-1","v":6.5033525456381858E-2},{"$f":"((Quarterly!I39/Quarterly!I38)^4)-1","v":0.17847030314124113},{"$f":"((Quarterly!J39/Quarterly!J38)^4)-1","v":0.26543297375761088},{"$f":"((Quarterly!K39/Quarterly!K38)^4)-1","v":9.8370372097085657E-2},{"$f":"((Quarterly!L39-Quarterly!L38))","v":22.337999999999997},{"$f":"((Quarterly!M39/Quarterly!M38)^4)-1","v":0.10713260524197854},{"$f":"((Quarterly!N39/Quarterly!N38)^4)-1","v":-6.8754788339513206E-2},{"$f":"((Quarterly!O39/Quarterly!O38)^4)-1","v":1.4736011966624711},{"$f":"((Quarterly!P39/Quarterly!P38)^4)-1","v":7.6879700995010181E-2},{"$f":"((Quarterly!Q39/Quarterly!Q38)^4)-1","v":-0.96772607991212101},null,null,null,null,null,"--","--",{"$f":"((Quarterly!Y39/Quarterly!Y38)^4)-1","v":0.17133579890823691},"--",{"$f":"((Quarterly!AA39/Quarterly!AA38)^4)-1","v":0.1097617530284114},{"$f":"((Quarterly!AB39/Quarterly!AB38)^4)-1","v":0.16082532945801686},"--","--","--","--","--","--","--","--","--","--",{"$f":"((Quarterly!AM39/Quarterly!AM38)^4)-1","v":0.11958538083314285},"--","--","--",{"$f":"Quarterly!AQ39-Quarterly!AQ38","v":5.3999999999999986},"--","--",{"$f":"Quarterly!AT39-Quarterly!AT38","v":4.5},"--","--",{"$f":"Quarterly!AW39-Quarterly!AW38","v":2.6999999999999957},{"$f":"Quarterly!AX39-Quarterly!AX38","v":3.3666666666666529},{"$f":"Quarterly!AY39-Quarterly!AY38","v":12.099999999999994},{"$f":"Quarterly!AZ39-Quarterly!AZ38","v":4.1666666666666714},{"$f":"Quarterly!BA39-Quarterly!BA38","v":14.566666666666677},"--","--","--","--",{"$f":"((Quarterly!BF39/Quarterly!BF38)^4)-1","v":7.0626728041013553E-2},{"$f":"((Quarterly!BG39/Quarterly!BG38)^4)-1","v":5.7080060975368774E-2},{"$f":"((Quarterly!BH39/Quarterly!BH38)^4)-1","v":3.1706317597307798E-2},{"$f":"((Quarterly!BI39/Quarterly!BI38)^4)-1","v":1.3129121304399582E-2},{"$f":"((Quarterly!BJ39/Quarterly!BJ38)^4)-1","v":0.10389724164203473},"--",null,"--","--",null,null,null,null,null,{"$f":"((Quarterly!BT39/Quarterly!BT38)^4)-1","v":9.9021662772487362E-2},"--","--",{"$f":"((Quarterly!BW39/Quarterly!BW38)^4)-1","v":9.6092646630054679E-2},{"$f":"((Quarterly!BX39/Quarterly!BX38)^4)-1","v":-0.32401665277237746},{"$f":"((Quarterly!BY39/Quarterly!BY38)^4)-1","v":-0.17400177580246934},"--","--",{"$f":"((Quarterly!CB39/Quarterly!CB38)^4)-1","v":0.30120099260461153},{"$f":"((Quarterly!CC39/Quarterly!CC38)^4)-1","v":0.11277660204491924},"--","--",null,"--","--",null,{"$f":"((Quarterly!CJ39/Quarterly!CJ38)^4)-1","v":-0.17387196565060181},{"$f":"((Quarterly!CK39/Quarterly!CK38)^4)-1","v":8.8854507756365386E-2},{"$f":"((Quarterly!CL39/Quarterly!CL38)^4)-1","v":-7.1225766359544362E-2},{"$f":"((Quarterly!CM39/Quarterly!CM38)^4)-1","v":-0.36951923749814108},{"$f":"((Quarterly!CN39/Quarterly!CN38)^4)-1","v":4.0233914554829386E-2},{"$f":"((Quarterly!CO39/Quarterly!CO38)^4)-1","v":5.3392952383262138E-2},{"$f":"((Quarterly!CP39/Quarterly!CP38)^4)-1","v":0.10256235063271624},{"$f":"((Quarterly!CQ39/Quarterly!CQ38)^4)-1","v":1.0244669333001388E-2},"--","--","--",null,null,null,null,null,{"$f":"((Quarterly!CZ39/Quarterly!CZ38)^4)-1","v":3.7902442022680338E-2},{"$f":"((Quarterly!DA39/Quarterly!DA38)^4)-1","v":2.0417922585491022E-2},null,null,null,null,null,"--","--",{"$f":"Quarterly!DI39-Quarterly!DI38","v":-3.3333333333331439E-2},"--",{"$f":"(Quarterly!DK39-Quarterly!DK38)*100","v":-23.333333333333385},{"$f":"((Quarterly!DL39/Quarterly!DL38)^4)-1","v":7.7140541677024554E-2},null,null,null,{"$f":"((Quarterly!DP39/Quarterly!DP38)^4)-1","v":5.4398774192222499E-2},null,null,null,"--","--","--","--","--","--","--","--","--","--",null,null,null,null,null,{"$f":"((Quarterly!EI39/Quarterly!EI38)^4)-1","v":0.12971684347726131},{"$f":"((Quarterly!EJ39/Quarterly!EJ38)^4)-1","v":9.4179598055779357E-2},{"$f":"((Quarterly!EK39/Quarterly!EK38)^4)-1","v":8.1782292514095634E-2},null,null,null,null,null,{"$f":"((Quarterly!EQ39/Quarterly!EQ38)^4)-1","v":5.8439957725100244E-2},"--",{"$f":"((Quarterly!ES39/Quarterly!ES38)^4)-1","v":1.977201693731212E-2},null,null,null,null,null,{"$f":"(Quarterly!EY39-Quarterly!EY38)*100","v":47.666666666666657},{"$f":"(Quarterly!EZ39-Quarterly!EZ38)*100","v":38.999999999999972},{"$f":"(Quarterly!FA39-Quarterly!FA38)*100","v":20.000000000000018},{"$f":"(Quarterly!FB39-Quarterly!FB38)*100","v":20.000000000000107},8.8817841970012523E-14,"--",{"$f":"(Quarterly!FE39-Quarterly!FE38)*100","v":44.333333333333336},{"$f":"(Quarterly!FF39-Quarterly!FF38)*100","v":46.666666666666586},"--",{"$f":"(Quarterly!FH39-Quarterly!FH38)*100","v":41.333333333333314},{"$f":"(Quarterly!FI39-Quarterly!FI38)*100","v":29.666666666666686},-16.999999999999901,null,null,null,null,null,"--","--","--","--","--","--","--","--","--",null,null,null,null,null,{"$f":"((Quarterly!GD39/Quarterly!GD38)^4)-1","v":0},"--","--","--","--","--","--","--","--"]
["66'Q2",{"$f":"((Quarterly!B40/Quarterly!B39)^4)-1","v":5.0208184894401819E-2},{"$f":"((Quarterly!C40/Quarterly!C39)^4)-1","v":1.6480172461023956E-2},{"$f":"((Quarterly!D40/Quarterly!D39)^4)-1","v":2.1192226297028327E-2},{"$f":"((Quarterly!E40/Quarterly!E39)^4)-1","v":1.0162642992141757E-2},{"$f":"((Quarterly!F40/Quarterly!F39)^4)-1","v":-0.15023999369896235},{"$f":"((Quarterly!G40/Quarterly!G39)^4)-1","v":3.8420243670999721E-2},{"$f":"((Quarterly!H40/Quarterly!H39)^4)-1","v":1.034350536301476E-2},{"$f":"((Quarterly!I40/Quarterly!I39)^4)-1","v":6.7501715692599662E-2},{"$f":"((Quarterly!J40/Quarterly!J39)^4)-1","v":5.8430504452558818E-2},{"$f":"((Quarterly!K40/Quarterly!K39)^4)-1","v":-0.28355889733396644},{"$f":"((Quarterly!L40-Quarterly!L39))","v":-2.0269999999999939},{"$f":"((Quarterly!M40/Quarterly!M39)^4)-1","v":0.10324937184115113},{"$f":"((Quarterly!N40/Quarterly!N39)^4)-1","v":0.18706696891611152},{"$f":"((Quarterly!O40/Quarterly!O39)^4)-1","v":-0.1961560324847611},{"$f":"((Quarterly!P40/Quarterly!P39)^4)-1","v":7.7723056485864417E-2},{"$f":"((Quarterly!Q40/Quarterly!Q39)^4)-1","v":2.6576558219757196},null,null,null,null,null,"--","--",{"$f":"((Quarterly!Y40/Quarterly!Y39)^4)-1","v":0.17873506824878937},"--",{"$f":"((Quarterly!AA40/Quarterly!AA39)^4)-1","v":2.4150877562874262E-2},{"$f":"((Quarterly!AB40/Quarterly!AB39)^4)-1","v":-6.4453660355724862E-2},"--","--","--","--","--","--","--","--","--","--",{"$f":"((Quarterly!AM40/Quarterly!AM39)^4)-1","v":8.6191211198784812E-2},"--","--","--",{"$f":"Quarterly!AQ40-Quarterly!AQ39","v":-5.3666666666666671},"--","--",{"$f":"Quarterly!AT40-Quarterly!AT39","v":-3.2000000000000099},"--","--",{"$f":"Quarterly!AW40-Quarterly!AW39","v":3.13333333333334},{"$f":"Quarterly!AX40-Quarterly!AX39","v":-7.9999999999999929},{"$f":"Quarterly!AY40-Quarterly!AY39","v":2.0666666666666629},{"$f":"Quarterly!AZ40-Quarterly!AZ39","v":-7.3666666666666814},{"$f":"Quarterly!BA40-Quarterly!BA39","v":-5.3000000000000114},"--","--","--","--",{"$f":"((Quarterly!BF40/Quarterly!BF39)^4)-1","v":6.5121591710748827E-2},{"$f":"((Quarterly!BG40/Quarterly!BG39)^4)-1","v":-2.4054355404807604E-2},{"$f":"((Quarterly!BH40/Quarterly!BH39)^4)-1","v":2.7501851572799385E-2},{"$f":"((Quarterly!BI40/Quarterly!BI39)^4)-1","v":9.131130262515974E-2},{"$f":"((Quarterly!BJ40/Quarterly!BJ39)^4)-1","v":3.5392476871610734E-2},"--",null,"--","--",null,null,null,null,null,{"$f":"((Quarterly!BT40/Quarterly!BT39)^4)-1","v":9.163896234219604E-2},"--","--",{"$f":"((Quarterly!BW40/Quarterly!BW39)^4)-1","v":7.4113755674412252E-2},{"$f":"((Quarterly!BX40/Quarterly!BX39)^4)-1","v":-0.28333628441592373},{"$f":"((Quarterly!BY40/Quarterly!BY39)^4)-1","v":-0.46552847791728524},"--","--",{"$f":"((Quarterly!CB40/Quarterly!CB39)^4)-1","v":0.16013409172359983},{"$f":"((Quarterly!CC40/Quarterly!CC39)^4)-1","v":9.8861050256446203E-2},"--","--",null,"--","--",null,{"$f":"((Quarterly!CJ40/Quarterly!CJ39)^4)-1","v":-0.42459932507820564},{"$f":"((Quarterly!CK40/Quarterly!CK39)^4)-1","v":6.7291458128521775E-2},{"$f":"((Quarterly!CL40/Quarterly!CL39)^4)-1","v":2.9703780550999648E-2},{"$f":"((Quarterly!CM40/Quarterly!CM39)^4)-1","v":-0.29203510079761974},{"$f":"((Quarterly!CN40/Quarterly!CN39)^4)-1","v":1.0423821522542065E-2},{"$f":"((Quarterly!CO40/Quarterly!CO39)^4)-1","v":-4.1708567694322629E-2},{"$f":"((Quarterly!CP40/Quarterly!CP39)^4)-1","v":6.5150959600014158E-2},{"$f":"((Quarterly!CQ40/Quarterly!CQ39)^4)-1","v":1.019790105067564E-2},"--","--","--",null,null,null,null,null,{"$f":"((Quarterly!CZ40/Quarterly!CZ39)^4)-1","v":3.6691522609693772E-2},{"$f":"((Quarterly!DA40/Quarterly!DA39)^4)-1","v":4.0936404969601492E-2},null,null,null,null,null,"--","--",{"$f":"Quarterly!DI40-Quarterly!DI39","v":0.1666666666666643},"--",{"$f":"(Quarterly!DK40-Quarterly!DK39)*100","v":-3.3333333333333215},{"$f":"((Quarterly!DL40/Quarterly!DL39)^4)-1","v":8.3036690499715737E-2},null,null,null,{"$f":"((Quarterly!DP40/Quarterly!DP39)^4)-1","v":5.9440308349495208E-2},null,null,null,"--","--","--","--","--","--","--","--","--","--",null,null,null,null,null,{"$f":"((Quarterly!EI40/Quarterly!EI39)^4)-1","v":-2.8941678104596469E-2},{"$f":"((Quarterly!EJ40/Quarterly!EJ39)^4)-1","v":-2.9908056757621537E-4},{"$f":"((Quarterly!EK40/Quarterly!EK39)^4)-1","v":1.874832348691946E-2},null,null,null,null,null,{"$f":"((Quarterly!EQ40/Quarterly!EQ39)^4)-1","v":1.6210409487007249E-2},"--",{"$f":"((Quarterly!ES40/Quarterly!ES39)^4)-1","v":3.963843897508923E-2},null,null,null,null,null,{"$f":"(Quarterly!EY40-Quarterly!EY39)*100","v":39.000000000000057},{"$f":"(Quarterly!EZ40-Quarterly!EZ39)*100","v":35.666666666666643},{"$f":"(Quarterly!FA40-Quarterly!FA39)*100","v":19.000000000000039},{"$f":"(Quarterly!FB40-Quarterly!FB39)*100","v":32.333333333333236},13.333333333333197,"--",{"$f":"(Quarterly!FE40-Quarterly!FE39)*100","v":-2.3333333333333428},{"$f":"(Quarterly!FF40-Quarterly!FF39)*100","v":0.33333333333338544},"--",{"$f":"(Quarterly!FH40-Quarterly!FH39)*100","v":-2.3333333333334316},{"$f":"(Quarterly!FI40-Quarterly!FI39)*100","v":0.99999999999997868},0.66666666666659324,null,null,null,null,null,"--","--","--","--","--","--","--","--","--",null,null,null,null,null,{"$f":"((Quarterly!GD40/Quarterly!GD39)^4)-1","v":0},"--","--","--","--","--","--","--","--"]
["66'Q3",{"$f":"((Quarterly!B41/Quarterly!B40)^4)-1","v":6.9354489466070701E-2},{"$f":"((Quarterly!C41/Quarterly!C40)^4)-1","v":2.880016823991749E-2},{"$f":"((Quarterly!D41/Quarterly!D40)^4)-1","v":3.546913695167242E-2},{"$f":"((Quarterly!E41/Quarterly!E40)^4)-1","v":4.6306831903749845E-2},{"$f":"((Quarterly!F41/Quarterly!F40)^4)-1","v":0.13786676086220351},{"$f":"((Quarterly!G41/Quarterly!G40)^4)-1","v":2.9043306686159287E-2},{"$f":"((Quarterly!H41/Quarterly!H40)^4)-1","v":4.8080129327797261E-2},{"$f":"((Quarterly!I41/Quarterly!I40)^4)-1","v":5.3744035013733038E-2},{"$f":"((Quarterly!J41/Quarterly!J40)^4)-1","v":7.3757609413726E-2},{"$f":"((Quarterly!K41/Quarterly!K40)^4)-1","v":-0.12473780550960945},{"$f":"((Quarterly!L41-Quarterly!L40))","v":-5.5579999999999998},{"$f":"((Quarterly!M41/Quarterly!M40)^4)-1","v":0.24393950695302391},{"$f":"((Quarterly!N41/Quarterly!N40)^4)-1","v":-0.14247445809182324},{"$f":"((Quarterly!O41/Quarterly!O40)^4)-1","v":3.8230888747623224},{"$f":"((Quarterly!P41/Quarterly!P40)^4)-1","v":0.11336125203509839},{"$f":"((Quarterly!Q41/Quarterly!Q40)^4)-1","v":2.7407154913933893},null,null,null,null,null,"--","--",{"$f":"((Quarterly!Y41/Quarterly!Y40)^4)-1","v":0.19714299361194065},"--",{"$f":"((Quarterly!AA41/Quarterly!AA40)^4)-1","v":-2.1649607068526144E-2},{"$f":"((Quarterly!AB41/Quarterly!AB40)^4)-1","v":-7.5195859551185906E-2},"--","--","--","--","--","--","--","--","--","--",{"$f":"((Quarterly!AM41/Quarterly!AM40)^4)-1","v":6.334036936256271E-2},"--","--","--",{"$f":"Quarterly!AQ41-Quarterly!AQ40","v":-1.13333333333334},"--","--",{"$f":"Quarterly!AT41-Quarterly!AT40","v":-1.2999999999999901},"--","--",{"$f":"Quarterly!AW41-Quarterly!AW40","v":3.1999999999999957},{"$f":"Quarterly!AX41-Quarterly!AX40","v":-2.6999999999999957},{"$f":"Quarterly!AY41-Quarterly!AY40","v":-5.2666666666666657},{"$f":"Quarterly!AZ41-Quarterly!AZ40","v":-0.43333333333332291},{"$f":"Quarterly!BA41-Quarterly!BA40","v":-1.8999999999999915},"--","--","--","--",{"$f":"((Quarterly!BF41/Quarterly!BF40)^4)-1","v":5.8624302573965226E-2},{"$f":"((Quarterly!BG41/Quarterly!BG40)^4)-1","v":6.0728334089716896E-3},{"$f":"((Quarterly!BH41/Quarterly!BH40)^4)-1","v":2.2655932472508633E-2},{"$f":"((Quarterly!BI41/Quarterly!BI40)^4)-1","v":5.2125345597248351E-2},{"$f":"((Quarterly!BJ41/Quarterly!BJ40)^4)-1","v":-3.8561161569425018E-2},"--",null,"--","--",null,null,null,null,null,{"$f":"((Quarterly!BT41/Quarterly!BT40)^4)-1","v":6.1370459728665727E-2},"--","--",{"$f":"((Quarterly!BW41/Quarterly!BW40)^4)-1","v":0.10859649266750671},{"$f":"((Quarterly!BX41/Quarterly!BX40)^4)-1","v":-0.47044376852997249},{"$f":"((Quarterly!BY41/Quarterly!BY40)^4)-1","v":-0.56415154279089874},"--","--",{"$f":"((Quarterly!CB41/Quarterly!CB40)^4)-1","v":0.35587138739871205},{"$f":"((Quarterly!CC41/Quarterly!CC40)^4)-1","v":0.21996813106332458},"--","--",null,"--","--",null,{"$f":"((Quarterly!CJ41/Quarterly!CJ40)^4)-1","v":-0.60731373541115619},{"$f":"((Quarterly!CK41/Quarterly!CK40)^4)-1","v":8.8951064839851712E-2},{"$f":"((Quarterly!CL41/Quarterly!CL40)^4)-1","v":0.11454216861846112},{"$f":"((Quarterly!CM41/Quarterly!CM40)^4)-1","v":-0.40240883221817281},{"$f":"((Quarterly!CN41/Quarterly!CN40)^4)-1","v":4.9469841177960605E-2},{"$f":"((Quarterly!CO41/Quarterly!CO40)^4)-1","v":-2.6885741102049998E-2},{"$f":"((Quarterly!CP41/Quarterly!CP40)^4)-1","v":4.6737893209089387E-2},{"$f":"((Quarterly!CQ41/Quarterly!CQ40)^4)-1","v":1.1994810622362628E-2},"--","--","--",null,null,null,null,null,{"$f":"((Quarterly!CZ41/Quarterly!CZ40)^4)-1","v":3.5088066471282708E-2},{"$f":"((Quarterly!DA41/Quarterly!DA40)^4)-1","v":3.6415110611586865E-2},null,null,null,null,null,"--","--",{"$f":"Quarterly!DI41-Quarterly!DI40","v":0.19999999999999574},"--",{"$f":"(Quarterly!DK41-Quarterly!DK40)*100","v":-6.666666666666643},{"$f":"((Quarterly!DL41/Quarterly!DL40)^4)-1","v":5.0322202326494869E-2},null,null,null,{"$f":"((Quarterly!DP41/Quarterly!DP40)^4)-1","v":4.6703168860422473E-2},null,null,null,"--","--","--","--","--","--","--","--","--","--",null,null,null,null,null,{"$f":"((Quarterly!EI41/Quarterly!EI40)^4)-1","v":1.1281879239515513E-2},{"$f":"((Quarterly!EJ41/Quarterly!EJ40)^4)-1","v":2.7771058433172735E-2},{"$f":"((Quarterly!EK41/Quarterly!EK40)^4)-1","v":3.7072604135424347E-2},null,null,null,null,null,{"$f":"((Quarterly!EQ41/Quarterly!EQ40)^4)-1","v":4.0728023686283477E-2},"--",{"$f":"((Quarterly!ES41/Quarterly!ES40)^4)-1","v":3.9249536854421674E-2},null,null,null,null,null,{"$f":"(Quarterly!EY41-Quarterly!EY40)*100","v":36.999999999999922},{"$f":"(Quarterly!EZ41-Quarterly!EZ40)*100","v":49.6666666666667},{"$f":"(Quarterly!FA41-Quarterly!FA40)*100","v":31.666666666666554},{"$f":"(Quarterly!FB41-Quarterly!FB40)*100","v":37.666666666666785},6.0000000000002309,"--",{"$f":"(Quarterly!FE41-Quarterly!FE40)*100","v":45.666666666666615},{"$f":"(Quarterly!FF41-Quarterly!FF40)*100","v":57.666666666666714},"--",{"$f":"(Quarterly!FH41-Quarterly!FH40)*100","v":49.333333333333499},{"$f":"(Quarterly!FI41-Quarterly!FI40)*100","v":35.999999999999943},-21.666666666666771,null,null,null,null,null,"--","--","--","--","--","--","--","--","--",null,null,null,null,null,{"$f":"((Quarterly!GD41/Quarterly!GD40)^4)-1","v":2.3027266412710468E-2},"--","--","--","--","--","--","--","--"]
["66'Q4",{"$f":"((Quarterly!B42/Quarterly!B41)^4)-1","v":7.0330199220938638E-2},{"$f":"((Quarterly!C42/Quarterly!C41)^4)-1","v":3.4737454502961729E-2},{"$f":"((Quarterly!D42/Quarterly!D41)^4)-1","v":1.3457519400620788E-2},{"$f":"((Quarterly!E42/Quarterly!E41)^4)-1","v":1.6585245737177567E-2},{"$f":"((Quarterly!F42/Quarterly!F41)^4)-1","v":-1.549006408860798E-3},{"$f":"((Quarterly!G42/Quarterly!G41)^4)-1","v":-1.1024434941530825E-2},{"$f":"((Quarterly!H42/Quarterly!H41)^4)-1","v":3.2693971955379153E-2},{"$f":"((Quarterly!I42/Quarterly!I41)^4)-1","v":0},{"$f":"((Quarterly!J42/Quarterly!J41)^4)-1","v":-1.998086880394212E-2},{"$f":"((Quarterly!K42/Quarterly!K41)^4)-1","v":-0.35858927826659148},{"$f":"((Quarterly!L42-Quarterly!L41))","v":16.725999999999999},{"$f":"((Quarterly!M42/Quarterly!M41)^4)-1","v":4.5815981073274781E-2},{"$f":"((Quarterly!N42/Quarterly!N41)^4)-1","v":0.13848466791434166},{"$f":"((Quarterly!O42/Quarterly!O41)^4)-1","v":-0.19472384984617708},{"$f":"((Quarterly!P42/Quarterly!P41)^4)-1","v":7.0834109134700007E-2},{"$f":"((Quarterly!Q42/Quarterly!Q41)^4)-1","v":2.0249141868799283},null,null,null,null,null,"--","--",{"$f":"((Quarterly!Y42/Quarterly!Y41)^4)-1","v":7.271684166738579E-2},"--",{"$f":"((Quarterly!AA42/Quarterly!AA41)^4)-1","v":-6.8457054975506137E-2},{"$f":"((Quarterly!AB42/Quarterly!AB41)^4)-1","v":0.11552629731797204},"--","--","--","--","--","--","--","--","--","--",{"$f":"((Quarterly!AM42/Quarterly!AM41)^4)-1","v":3.877553580948967E-2},"--","--","--",{"$f":"Quarterly!AQ42-Quarterly!AQ41","v":-4.7333333333333272},"--","--",{"$f":"Quarterly!AT42-Quarterly!AT41","v":-2.8666666666666742},"--","--",{"$f":"Quarterly!AW42-Quarterly!AW41","v":-0.73333333333332718},{"$f":"Quarterly!AX42-Quarterly!AX41","v":-5.8666666666666742},{"$f":"Quarterly!AY42-Quarterly!AY41","v":-7.7000000000000028},{"$f":"Quarterly!AZ42-Quarterly!AZ41","v":-3.2000000000000028},{"$f":"Quarterly!BA42-Quarterly!BA41","v":-10.199999999999996},"--","--","--","--",{"$f":"((Quarterly!BF42/Quarterly!BF41)^4)-1","v":5.530435110034837E-2},{"$f":"((Quarterly!BG42/Quarterly!BG41)^4)-1","v":2.7646190969908391E-2},{"$f":"((Quarterly!BH42/Quarterly!BH41)^4)-1","v":2.1456574993914845E-2},{"$f":"((Quarterly!BI42/Quarterly!BI41)^4)-1","v":2.6958800314370812E-2},{"$f":"((Quarterly!BJ42/Quarterly!BJ41)^4)-1","v":-8.5341005215328725E-2},"--",null,"--","--",null,null,null,null,null,{"$f":"((Quarterly!BT42/Quarterly!BT41)^4)-1","v":1.3508015527119888E-2},"--","--",{"$f":"((Quarterly!BW42/Quarterly!BW41)^4)-1","v":8.8863434562102217E-2},{"$f":"((Quarterly!BX42/Quarterly!BX41)^4)-1","v":-0.45444601914365812},{"$f":"((Quarterly!BY42/Quarterly!BY41)^4)-1","v":-0.45631350855445596},"--","--",{"$f":"((Quarterly!CB42/Quarterly!CB41)^4)-1","v":0.13828177367607664},{"$f":"((Quarterly!CC42/Quarterly!CC41)^4)-1","v":7.8692282280251602E-2},"--","--",null,"--","--",null,{"$f":"((Quarterly!CJ42/Quarterly!CJ41)^4)-1","v":-0.10499471206914324},{"$f":"((Quarterly!CK42/Quarterly!CK41)^4)-1","v":8.9739578262795217E-2},{"$f":"((Quarterly!CL42/Quarterly!CL41)^4)-1","v":0.35894935458152855},{"$f":"((Quarterly!CM42/Quarterly!CM41)^4)-1","v":-0.37484693301468686},{"$f":"((Quarterly!CN42/Quarterly!CN41)^4)-1","v":4.7344650602714644E-2},{"$f":"((Quarterly!CO42/Quarterly!CO41)^4)-1","v":-1.4123887380993461E-2},{"$f":"((Quarterly!CP42/Quarterly!CP41)^4)-1","v":3.8484224774193443E-2},{"$f":"((Quarterly!CQ42/Quarterly!CQ41)^4)-1","v":1.2738573771570616E-2},"--","--","--",null,null,null,null,null,{"$f":"((Quarterly!CZ42/Quarterly!CZ41)^4)-1","v":3.3106367668766179E-2},{"$f":"((Quarterly!DA42/Quarterly!DA41)^4)-1","v":4.0155682411681548E-2},null,null,null,null,null,"--","--",{"$f":"Quarterly!DI42-Quarterly!DI41","v":0.23333333333334139},"--",{"$f":"(Quarterly!DK42-Quarterly!DK41)*100","v":-6.666666666666643},{"$f":"((Quarterly!DL42/Quarterly!DL41)^4)-1","v":3.0762629633073191E-2},null,null,null,{"$f":"((Quarterly!DP42/Quarterly!DP41)^4)-1","v":3.3940996596974582E-2},null,null,null,"--","--","--","--","--","--","--","--","--","--",null,null,null,null,null,{"$f":"((Quarterly!EI42/Quarterly!EI41)^4)-1","v":-2.5685639720136932E-2},{"$f":"((Quarterly!EJ42/Quarterly!EJ41)^4)-1","v":5.5437840312131392E-3},{"$f":"((Quarterly!EK42/Quarterly!EK41)^4)-1","v":2.6080135004463045E-2},null,null,null,null,null,{"$f":"((Quarterly!EQ42/Quarterly!EQ41)^4)-1","v":-2.7516776896407746E-2},"--",{"$f":"((Quarterly!ES42/Quarterly!ES41)^4)-1","v":4.2816379172498031E-2},null,null,null,null,null,{"$f":"(Quarterly!EY42-Quarterly!EY41)*100","v":12.333333333333396},{"$f":"(Quarterly!EZ42-Quarterly!EZ41)*100","v":15.333333333333243},{"$f":"(Quarterly!FA42-Quarterly!FA41)*100","v":6.3333333333333464},{"$f":"(Quarterly!FB42-Quarterly!FB41)*100","v":26.999999999999957},20.666666666666611,"--",{"$f":"(Quarterly!FE42-Quarterly!FE41)*100","v":16.666666666666696},{"$f":"(Quarterly!FF42-Quarterly!FF41)*100","v":-7.0000000000000284},"--",{"$f":"(Quarterly!FH42-Quarterly!FH41)*100","v":-18.00000000000006},{"$f":"(Quarterly!FI42-Quarterly!FI41)*100","v":-13.666666666666671},-6.666666666666643,null,null,null,null,null,"--","--","--","--","--","--","--","--","--",null,null,null,null,null,{"$f":"((Quarterly!GD42/Quarterly!GD41)^4)-1","v":4.618185296484123E-2},"--","--","--","--","--","--","--","--"]
["67'Q1",{"$f":"((Quarterly!B43/Quarterly!B42)^4)-1","v":5.4661199319482323E-2},{"$f":"((Quarterly!C43/Quarterly!C42)^4)-1","v":3.7230997295099044E-2},{"$f":"((Quarterly!D43/Quarterly!D42)^4)-1","v":4.3628115600458317E-2},{"$f":"((Quarterly!E43/Quarterly!E42)^4)-1","v":2.3565868362706466E-2},{"$f":"((Quarterly!F43/Quarterly!F42)^4)-1","v":-7.3544792122650859E-2},{"$f":"((Quarterly!G43/Quarterly!G42)^4)-1","v":4.5700789219661697E-2},{"$f":"((Quarterly!H43/Quarterly!H42)^4)-1","v":2.0672430778857276E-2},{"$f":"((Quarterly!I43/Quarterly!I42)^4)-1","v":-6.3394668063788351E-2},{"$f":"((Quarterly!J43/Quarterly!J42)^4)-1","v":-9.4046539040673394E-2},{"$f":"((Quarterly!K43/Quarterly!K42)^4)-1","v":-0.11854470215947677},{"$f":"((Quarterly!L43-Quarterly!L42))","v":-3.9230000000000018},{"$f":"((Quarterly!M43/Quarterly!M42)^4)-1","v":6.3917882328228259E-2},{"$f":"((Quarterly!N43/Quarterly!N42)^4)-1","v":7.8032924291869143E-2},{"$f":"((Quarterly!O43/Quarterly!O42)^4)-1","v":1.9473072636135624E-2},{"$f":"((Quarterly!P43/Quarterly!P42)^4)-1","v":0.1783129502951919},{"$f":"((Quarterly!Q43/Quarterly!Q42)^4)-1","v":11.171822978409375},null,null,null,null,null,"--","--",{"$f":"((Quarterly!Y43/Quarterly!Y42)^4)-1","v":6.2531895393374004E-2},"--",{"$f":"((Quarterly!AA43/Quarterly!AA42)^4)-1","v":-0.16043618033853524},{"$f":"((Quarterly!AB43/Quarterly!AB42)^4)-1","v":-0.11007393401627197},"--","--","--","--","--","--","--","--","--","--",{"$f":"((Quarterly!AM43/Quarterly!AM42)^4)-1","v":-2.1858264896992052E-2},"--","--","--",{"$f":"Quarterly!AQ43-Quarterly!AQ42","v":-7.1000000000000014},"--","--",{"$f":"Quarterly!AT43-Quarterly!AT42","v":-7},"--","--",{"$f":"Quarterly!AW43-Quarterly!AW42","v":-9.4666666666666686},{"$f":"Quarterly!AX43-Quarterly!AX42","v":-3.5333333333333243},{"$f":"Quarterly!AY43-Quarterly!AY42","v":-7.0333333333333243},{"$f":"Quarterly!AZ43-Quarterly!AZ42","v":-4.0333333333333385},{"$f":"Quarterly!BA43-Quarterly!BA42","v":-17.700000000000003},"--","--","--","--",{"$f":"((Quarterly!BF43/Quarterly!BF42)^4)-1","v":5.4956503939760371E-2},{"$f":"((Quarterly!BG43/Quarterly!BG42)^4)-1","v":3.4170964760591893E-2},{"$f":"((Quarterly!BH43/Quarterly!BH42)^4)-1","v":4.4513234895365406E-2},{"$f":"((Quarterly!BI43/Quarterly!BI42)^4)-1","v":2.0248214650718799E-2},{"$f":"((Quarterly!BJ43/Quarterly!BJ42)^4)-1","v":-0.17191146651184563},"--",null,"--","--",null,null,null,null,null,{"$f":"((Quarterly!BT43/Quarterly!BT42)^4)-1","v":2.9945185813819775E-2},"--","--",{"$f":"((Quarterly!BW43/Quarterly!BW42)^4)-1","v":0.11958887646348293},{"$f":"((Quarterly!BX43/Quarterly!BX42)^4)-1","v":0.82174864363888278},{"$f":"((Quarterly!BY43/Quarterly!BY42)^4)-1","v":1.7529276276684369},"--","--",{"$f":"((Quarterly!CB43/Quarterly!CB42)^4)-1","v":-0.27640010651019598},{"$f":"((Quarterly!CC43/Quarterly!CC42)^4)-1","v":-0.17799285741711268},"--","--",null,"--","--",null,{"$f":"((Quarterly!CJ43/Quarterly!CJ42)^4)-1","v":0.51720530994264924},{"$f":"((Quarterly!CK43/Quarterly!CK42)^4)-1","v":6.9465520505115563E-2},{"$f":"((Quarterly!CL43/Quarterly!CL42)^4)-1","v":0.38810726975632215},{"$f":"((Quarterly!CM43/Quarterly!CM42)^4)-1","v":0.79870904870758452},{"$f":"((Quarterly!CN43/Quarterly!CN42)^4)-1","v":6.1038703150403384E-2},{"$f":"((Quarterly!CO43/Quarterly!CO42)^4)-1","v":8.4711638264169942E-3},{"$f":"((Quarterly!CP43/Quarterly!CP42)^4)-1","v":4.1592232835505394E-2},{"$f":"((Quarterly!CQ43/Quarterly!CQ42)^4)-1","v":1.0088996272372697E-2},"--","--","--",null,null,null,null,null,{"$f":"((Quarterly!CZ43/Quarterly!CZ42)^4)-1","v":1.0175445961365881E-2},{"$f":"((Quarterly!DA43/Quarterly!DA42)^4)-1","v":2.3714385248108094E-2},null,null,null,null,null,"--","--",{"$f":"Quarterly!DI43-Quarterly!DI42","v":-0.1666666666666643},"--",{"$f":"(Quarterly!DK43-Quarterly!DK42)*100","v":13.333333333333286},{"$f":"((Quarterly!DL43/Quarterly!DL42)^4)-1","v":1.1871416400679458E-3},null,null,null,{"$f":"((Quarterly!DP43/Quarterly!DP42)^4)-1","v":2.6757008016800476E-2},null,null,null,"--","--","--","--","--","--","--","--","--","--",null,null,null,null,null,{"$f":"((Quarterly!EI43/Quarterly!EI42)^4)-1","v":9.9303855496160054E-3},{"$f":"((Quarterly!EJ43/Quarterly!EJ42)^4)-1","v":2.1394984202484979E-2},{"$f":"((Quarterly!EK43/Quarterly!EK42)^4)-1","v":3.0940563424062484E-2},null,null,null,null,null,{"$f":"((Quarterly!EQ43/Quarterly!EQ42)^4)-1","v":4.0060040010003739E-3},"--",{"$f":"((Quarterly!ES43/Quarterly!ES42)^4)-1","v":3.4562359224446615E-2},null,null,null,null,null,{"$f":"(Quarterly!EY43-Quarterly!EY42)*100","v":-19.333333333333247},{"$f":"(Quarterly!EZ43-Quarterly!EZ42)*100","v":-73.999999999999844},{"$f":"(Quarterly!FA43-Quarterly!FA42)*100","v":-26.333333333333275},{"$f":"(Quarterly!FB43-Quarterly!FB42)*100","v":-25.666666666666682},0.66666666666659324,"--",{"$f":"(Quarterly!FE43-Quarterly!FE42)*100","v":-69.666666666666714},{"$f":"(Quarterly!FF43-Quarterly!FF42)*100","v":-83.666666666666686},"--",{"$f":"(Quarterly!FH43-Quarterly!FH42)*100","v":-54.999999999999986},{"$f":"(Quarterly!FI43-Quarterly!FI42)*100","v":-41.999999999999993},41.666666666666693,null,null,null,null,null,"--","--","--","--","--","--","--","--","--",null,null,null,null,null,{"$f":"((Quarterly!GD43/Quarterly!GD42)^4)-1","v":2.7209331536409254E-2},"--","--","--","--","--","--","--","--"]
["67'Q2",{"$f":"((Quarterly!B44/Quarterly!B43)^4)-1","v":2.3907508541793687E-2},{"$f":"((Quarterly!C44/Quarterly!C43)^4)-1","v":3.5135817775164835E-3},{"$f":"((Quarterly!D44/Quarterly!D43)^4)-1","v":4.4182151929981872E-2},{"$f":"((Quarterly!E44/Quarterly!E43)^4)-1","v":5.5738194425022369E-2},{"$f":"((Quarterly!F44/Quarterly!F43)^4)-1","v":0.18335627339500671},{"$f":"((Quarterly!G44/Quarterly!G43)^4)-1","v":3.0100377219783869E-2},{"$f":"((Quarterly!H44/Quarterly!H43)^4)-1","v":5.9191471682054519E-2},{"$f":"((Quarterly!I44/Quarterly!I43)^4)-1","v":-9.4290620015050619E-3},{"$f":"((Quarterly!J44/Quarterly!J43)^4)-1","v":-2.2225702049691876E-2},{"$f":"((Quarterly!K44/Quarterly!K43)^4)-1","v":0.53272400397481046},{"$f":"((Quarterly!L44-Quarterly!L43))","v":-32.105000000000004},{"$f":"((Quarterly!M44/Quarterly!M43)^4)-1","v":-3.1396618117711883E-2},{"$f":"((Quarterly!N44/Quarterly!N43)^4)-1","v":-3.5041461209462943E-2},{"$f":"((Quarterly!O44/Quarterly!O43)^4)-1","v":-1.9441217992791637E-2},{"$f":"((Quarterly!P44/Quarterly!P43)^4)-1","v":-1.5651607184271166E-2},{"$f":"((Quarterly!Q44/Quarterly!Q43)^4)-1","v":0.27544147287498277},null,null,null,null,null,"--","--",{"$f":"((Quarterly!Y44/Quarterly!Y43)^4)-1","v":0.11378137148965317},"--",{"$f":"((Quarterly!AA44/Quarterly!AA43)^4)-1","v":8.3557928770079393E-3},{"$f":"((Quarterly!AB44/Quarterly!AB43)^4)-1","v":-5.6608909699547016E-2},"--","--","--","--","--","--","--","--","--","--",{"$f":"((Quarterly!AM44/Quarterly!AM43)^4)-1","v":-1.6202950545658346E-2},"--","--","--",{"$f":"Quarterly!AQ44-Quarterly!AQ43","v":-2.63333333333334},"--","--",{"$f":"Quarterly!AT44-Quarterly!AT43","v":-3.0333333333333314},"--","--",{"$f":"Quarterly!AW44-Quarterly!AW43","v":-6.8000000000000043},{"$f":"Quarterly!AX44-Quarterly!AX43","v":3.0666666666666629},{"$f":"Quarterly!AY44-Quarterly!AY43","v":-5.9666666666666615},{"$f":"Quarterly!AZ44-Quarterly!AZ43","v":-3.3999999999999986},{"$f":"Quarterly!BA44-Quarterly!BA43","v":-9.4333333333333371},"--","--","--","--",{"$f":"((Quarterly!BF44/Quarterly!BF43)^4)-1","v":6.668699373399134E-2},{"$f":"((Quarterly!BG44/Quarterly!BG43)^4)-1","v":1.6510091359806189E-2},{"$f":"((Quarterly!BH44/Quarterly!BH43)^4)-1","v":4.1079758973755487E-2},{"$f":"((Quarterly!BI44/Quarterly!BI43)^4)-1","v":4.927851237139147E-2},{"$f":"((Quarterly!BJ44/Quarterly!BJ43)^4)-1","v":1.9256084638714199E-2},"--",null,"--","--",null,null,null,null,null,{"$f":"((Quarterly!BT44/Quarterly!BT43)^4)-1","v":5.4095208133523309E-2},"--","--",{"$f":"((Quarterly!BW44/Quarterly!BW43)^4)-1","v":9.7382329406717316E-2},{"$f":"((Quarterly!BX44/Quarterly!BX43)^4)-1","v":0.58650930277938484},{"$f":"((Quarterly!BY44/Quarterly!BY43)^4)-1","v":0.73721837083275865},"--","--",{"$f":"((Quarterly!CB44/Quarterly!CB43)^4)-1","v":-0.17000544268339179},{"$f":"((Quarterly!CC44/Quarterly!CC43)^4)-1","v":-0.12382329843299944},"--","--",null,"--","--",null,{"$f":"((Quarterly!CJ44/Quarterly!CJ43)^4)-1","v":0.89063124934300819},{"$f":"((Quarterly!CK44/Quarterly!CK43)^4)-1","v":4.3732213623854044E-2},{"$f":"((Quarterly!CL44/Quarterly!CL43)^4)-1","v":-0.12754260832628417},{"$f":"((Quarterly!CM44/Quarterly!CM43)^4)-1","v":0.4454879222989887},{"$f":"((Quarterly!CN44/Quarterly!CN43)^4)-1","v":3.151448408129176E-2},{"$f":"((Quarterly!CO44/Quarterly!CO43)^4)-1","v":5.7005825300974866E-2},{"$f":"((Quarterly!CP44/Quarterly!CP43)^4)-1","v":3.2740093881531651E-2},{"$f":"((Quarterly!CQ44/Quarterly!CQ43)^4)-1","v":9.7445872201138428E-3},"--","--","--",null,null,null,null,null,{"$f":"((Quarterly!CZ44/Quarterly!CZ43)^4)-1","v":2.4488662378882697E-2},{"$f":"((Quarterly!DA44/Quarterly!DA43)^4)-1","v":3.1524683630774097E-2},null,null,null,null,null,{"$f":"((Quarterly!DG44/Quarterly!DG43)^4)-1","v":-3.0046966843837453E-2},{"$f":"((Quarterly!DH44-Quarterly!DH43)*60)","v":-14.000000000000057},{"$f":"Quarterly!DI44-Quarterly!DI43","v":0.13333333333332575},"--",{"$f":"(Quarterly!DK44-Quarterly!DK43)*100","v":0},{"$f":"((Quarterly!DL44/Quarterly!DL43)^4)-1","v":-3.1429273093460663E-2},null,null,null,{"$f":"((Quarterly!DP44/Quarterly!DP43)^4)-1","v":9.6289525809603038E-3},null,null,null,"--","--","--","--","--","--","--","--","--","--",null,null,null,null,null,{"$f":"((Quarterly!EI44/Quarterly!EI43)^4)-1","v":3.3212483233809209E-2},{"$f":"((Quarterly!EJ44/Quarterly!EJ43)^4)-1","v":2.9472925943288653E-2},{"$f":"((Quarterly!EK44/Quarterly!EK43)^4)-1","v":2.0370854258212612E-2},null,null,null,null,null,{"$f":"((Quarterly!EQ44/Quarterly!EQ43)^4)-1","v":-7.9680878083592255E-3},"--",{"$f":"((Quarterly!ES44/Quarterly!ES43)^4)-1","v":2.2747905809096469E-2},null,null,null,null,null,{"$f":"(Quarterly!EY44-Quarterly!EY43)*100","v":-30.666666666666753},{"$f":"(Quarterly!EZ44-Quarterly!EZ43)*100","v":-83.3333333333334},{"$f":"(Quarterly!FA44-Quarterly!FA43)*100","v":14.333333333333442},{"$f":"(Quarterly!FB44-Quarterly!FB43)*100","v":9.9999999999999645},-4.3333333333334778,"--",{"$f":"(Quarterly!FE44-Quarterly!FE43)*100","v":-85.333333333333258},{"$f":"(Quarterly!FF44-Quarterly!FF43)*100","v":-35.666666666666643},"--",{"$f":"(Quarterly!FH44-Quarterly!FH43)*100","v":9.6666666666666679},{"$f":"(Quarterly!FI44-Quarterly!FI43)*100","v":23.666666666666636},59.333333333333279,null,null,null,null,null,"--","--","--","--","--","--","--","--","--",null,null,null,null,null,{"$f":"((Quarterly!GD44/Quarterly!GD43)^4)-1","v":1.3445189529333712E-2},"--","--","--","--","--","--","--","--"]
["67'Q3",{"$f":"((Quarterly!B45/Quarterly!B44)^4)-1","v":7.5142844768537831E-2},{"$f":"((Quarterly!C45/Quarterly!C44)^4)-1","v":3.4980006853623458E-2},{"$f":"((Quarterly!D45/Quarterly!D44)^4)-1","v":2.3356286457927755E-2},{"$f":"((Quarterly!E45/Quarterly!E44)^4)-1","v":2.043496197381045E-2},{"$f":"((Quarterly!F45/Quarterly!F44)^4)-1","v":-3.1738740172253643E-2},{"$f":"((Quarterly!G45/Quarterly!G44)^4)-1","v":-3.7665726790867549E-3},{"$f":"((Quarterly!H45/Quarterly!H44)^4)-1","v":3.7511990714087284E-2},{"$f":"((Quarterly!I45/Quarterly!I44)^4)-1","v":-6.9922611157494652E-3},{"$f":"((Quarterly!J45/Quarterly!J44)^4)-1","v":-2.1368210615643757E-2},{"$f":"((Quarterly!K45/Quarterly!K44)^4)-1","v":0.21529787005833767},{"$f":"((Quarterly!L45-Quarterly!L44))","v":8.7410000000000032},{"$f":"((Quarterly!M45/Quarterly!M44)^4)-1","v":5.3565539749648394E-2},{"$f":"((Quarterly!N45/Quarterly!N44)^4)-1","v":-9.3276915733096932E-2},{"$f":"((Quarterly!O45/Quarterly!O44)^4)-1","v":0.65542525807551466},{"$f":"((Quarterly!P45/Quarterly!P44)^4)-1","v":4.5519725050010784E-2},{"$f":"((Quarterly!Q45/Quarterly!Q44)^4)-1","v":-0.28790634204165777},null,null,null,null,null,"--","--",{"$f":"((Quarterly!Y45/Quarterly!Y44)^4)-1","v":9.2743640527842119E-2},"--",{"$f":"((Quarterly!AA45/Quarterly!AA44)^4)-1","v":9.6785405867557239E-2},{"$f":"((Quarterly!AB45/Quarterly!AB44)^4)-1","v":5.2014612999730758E-2},"--","--","--","--","--","--","--","--","--","--",{"$f":"((Quarterly!AM45/Quarterly!AM44)^4)-1","v":2.7797194414273418E-2},"--","--","--",{"$f":"Quarterly!AQ45-Quarterly!AQ44","v":7.5},"--","--",{"$f":"Quarterly!AT45-Quarterly!AT44","v":7.1999999999999957},"--","--",{"$f":"Quarterly!AW45-Quarterly!AW44","v":2.63333333333334},{"$f":"Quarterly!AX45-Quarterly!AX44","v":8.43333333333333},{"$f":"Quarterly!AY45-Quarterly!AY44","v":11.933333333333337},{"$f":"Quarterly!AZ45-Quarterly!AZ44","v":8.0666666666666629},{"$f":"Quarterly!BA45-Quarterly!BA44","v":8.1333333333333329},"--","--","--","--",{"$f":"((Quarterly!BF45/Quarterly!BF44)^4)-1","v":5.5298264419864074E-2},{"$f":"((Quarterly!BG45/Quarterly!BG44)^4)-1","v":1.644222710779597E-2},{"$f":"((Quarterly!BH45/Quarterly!BH44)^4)-1","v":1.4002836031152155E-2},{"$f":"((Quarterly!BI45/Quarterly!BI44)^4)-1","v":3.8223273053638707E-2},{"$f":"((Quarterly!BJ45/Quarterly!BJ44)^4)-1","v":5.8316484113490663E-2},"--",null,"--","--",null,null,null,null,null,{"$f":"((Quarterly!BT45/Quarterly!BT44)^4)-1","v":9.400180486997578E-2},"--","--",{"$f":"((Quarterly!BW45/Quarterly!BW44)^4)-1","v":0.1222501960017861},{"$f":"((Quarterly!BX45/Quarterly!BX44)^4)-1","v":0.75326842243142944},{"$f":"((Quarterly!BY45/Quarterly!BY44)^4)-1","v":0.59314239197410323},"--","--",{"$f":"((Quarterly!CB45/Quarterly!CB44)^4)-1","v":6.9763782084848458E-2},{"$f":"((Quarterly!CC45/Quarterly!CC44)^4)-1","v":3.8178068182990854E-2},"--","--",null,"--","--",null,{"$f":"((Quarterly!CJ45/Quarterly!CJ44)^4)-1","v":0.19979364868968386},{"$f":"((Quarterly!CK45/Quarterly!CK44)^4)-1","v":8.7259484233344731E-2},{"$f":"((Quarterly!CL45/Quarterly!CL44)^4)-1","v":0.25217691847126256},{"$f":"((Quarterly!CM45/Quarterly!CM44)^4)-1","v":0.41591385348482568},{"$f":"((Quarterly!CN45/Quarterly!CN44)^4)-1","v":3.827450420601286E-2},{"$f":"((Quarterly!CO45/Quarterly!CO44)^4)-1","v":6.489019289559339E-2},{"$f":"((Quarterly!CP45/Quarterly!CP44)^4)-1","v":5.4885528207528456E-2},{"$f":"((Quarterly!CQ45/Quarterly!CQ44)^4)-1","v":1.1001126596411837E-2},"--","--","--",null,null,null,null,null,{"$f":"((Quarterly!CZ45/Quarterly!CZ44)^4)-1","v":4.0811121134574968E-2},{"$f":"((Quarterly!DA45/Quarterly!DA44)^4)-1","v":4.3194620764902103E-2},null,null,null,null,null,{"$f":"((Quarterly!DG45/Quarterly!DG44)^4)-1","v":2.3766046100438087E-2},{"$f":"((Quarterly!DH45-Quarterly!DH44)*60)","v":0},{"$f":"Quarterly!DI45-Quarterly!DI44","v":0.23333333333333428},"--",{"$f":"(Quarterly!DK45-Quarterly!DK44)*100","v":-3.3333333333334103},{"$f":"((Quarterly!DL45/Quarterly!DL44)^4)-1","v":-2.911505053845298E-3},null,null,null,{"$f":"((Quarterly!DP45/Quarterly!DP44)^4)-1","v":2.7862738000793197E-2},null,null,null,"--","--","--","--","--","--","--","--","--","--",null,null,null,null,null,{"$f":"((Quarterly!EI45/Quarterly!EI44)^4)-1","v":4.7633667025237303E-2},{"$f":"((Quarterly!EJ45/Quarterly!EJ44)^4)-1","v":3.28251159323798E-2},{"$f":"((Quarterly!EK45/Quarterly!EK44)^4)-1","v":2.9552166169369842E-2},null,null,null,null,null,{"$f":"((Quarterly!EQ45/Quarterly!EQ44)^4)-1","v":1.6112465330964998E-2},"--",{"$f":"((Quarterly!ES45/Quarterly!ES44)^4)-1","v":2.261927557744059E-2},null,null,null,null,null,{"$f":"(Quarterly!EY45-Quarterly!EY44)*100","v":0},{"$f":"(Quarterly!EZ45-Quarterly!EZ44)*100","v":-9.6666666666667123},{"$f":"(Quarterly!FA45-Quarterly!FA44)*100","v":35.333333333333258},{"$f":"(Quarterly!FB45-Quarterly!FB44)*100","v":35.000000000000142},-0.33333333333311543,"--",{"$f":"(Quarterly!FE45-Quarterly!FE44)*100","v":63.999999999999972},{"$f":"(Quarterly!FF45-Quarterly!FF44)*100","v":87.999999999999986},"--",{"$f":"(Quarterly!FH45-Quarterly!FH44)*100","v":55.666666666666664},{"$f":"(Quarterly!FI45-Quarterly!FI44)*100","v":42.666666666666764},-45.333333333333222,null,null,null,null,null,"--","--","--","--","--","--","--","--","--",null,null,null,null,null,{"$f":"((Quarterly!GD45/Quarterly!GD44)^4)-1","v":6.3689188867550595E-2},"--","--","--","--","--","--","--","--"]
["67'Q4",{"$f":"((Quarterly!B46/Quarterly!B45)^4)-1","v":7.8786258046324775E-2},{"$f":"((Quarterly!C46/Quarterly!C45)^4)-1","v":3.2589021046935063E-2},{"$f":"((Quarterly!D46/Quarterly!D45)^4)-1","v":3.7412965061994097E-2},{"$f":"((Quarterly!E46/Quarterly!E45)^4)-1","v":2.4559714680300937E-2},{"$f":"((Quarterly!F46/Quarterly!F45)^4)-1","v":1.0119902570774109E-2},{"$f":"((Quarterly!G46/Quarterly!G45)^4)-1","v":1.8267020131155887E-2},{"$f":"((Quarterly!H46/Quarterly!H45)^4)-1","v":2.8961330586752654E-2},{"$f":"((Quarterly!I46/Quarterly!I45)^4)-1","v":8.3024124708515279E-2},{"$f":"((Quarterly!J46/Quarterly!J45)^4)-1","v":9.4268309035101083E-2},{"$f":"((Quarterly!K46/Quarterly!K45)^4)-1","v":0.25233831023069242},{"$f":"((Quarterly!L46-Quarterly!L45))","v":-0.92000000000000171},{"$f":"((Quarterly!M46/Quarterly!M45)^4)-1","v":0.2282337089612676},{"$f":"((Quarterly!N46/Quarterly!N45)^4)-1","v":0.11900799893697012},{"$f":"((Quarterly!O46/Quarterly!O45)^4)-1","v":0.57590037851425357},{"$f":"((Quarterly!P46/Quarterly!P45)^4)-1","v":3.1688512203801755E-2},{"$f":"((Quarterly!Q46/Quarterly!Q45)^4)-1","v":0.13878093187562568},null,null,null,null,null,"--","--",{"$f":"((Quarterly!Y46/Quarterly!Y45)^4)-1","v":6.2884931618287787E-2},"--",{"$f":"((Quarterly!AA46/Quarterly!AA45)^4)-1","v":0.21922935367381458},{"$f":"((Quarterly!AB46/Quarterly!AB45)^4)-1","v":0.1093380179447323},"--","--","--","--","--","--","--","--","--","--",{"$f":"((Quarterly!AM46/Quarterly!AM45)^4)-1","v":0.11141246003051153},"--","--","--",{"$f":"Quarterly!AQ46-Quarterly!AQ45","v":2.4333333333333371},"--","--",{"$f":"Quarterly!AT46-Quarterly!AT45","v":0.23333333333334139},"--","--",{"$f":"Quarterly!AW46-Quarterly!AW45","v":6.5333333333333243},{"$f":"Quarterly!AX46-Quarterly!AX45","v":0.36666666666666714},{"$f":"Quarterly!AY46-Quarterly!AY45","v":11.833333333333329},{"$f":"Quarterly!AZ46-Quarterly!AZ45","v":2.6000000000000085},{"$f":"Quarterly!BA46-Quarterly!BA45","v":6.7333333333333414},"--","--","--","--",{"$f":"((Quarterly!BF46/Quarterly!BF45)^4)-1","v":5.5322713703662263E-2},{"$f":"((Quarterly!BG46/Quarterly!BG45)^4)-1","v":1.4443499711244367E-2},{"$f":"((Quarterly!BH46/Quarterly!BH45)^4)-1","v":1.0403534485981858E-2},{"$f":"((Quarterly!BI46/Quarterly!BI45)^4)-1","v":4.0400676019413551E-2},{"$f":"((Quarterly!BJ46/Quarterly!BJ45)^4)-1","v":0.26809185472062302},"--",null,"--","--",null,null,null,null,null,{"$f":"((Quarterly!BT46/Quarterly!BT45)^4)-1","v":9.1901968491181707E-2},"--","--",{"$f":"((Quarterly!BW46/Quarterly!BW45)^4)-1","v":9.9278487897056067E-2},{"$f":"((Quarterly!BX46/Quarterly!BX45)^4)-1","v":0.14570443091224683},{"$f":"((Quarterly!BY46/Quarterly!BY45)^4)-1","v":0.24434657742271537},"--","--",{"$f":"((Quarterly!CB46/Quarterly!CB45)^4)-1","v":0.2557655922091977},{"$f":"((Quarterly!CC46/Quarterly!CC45)^4)-1","v":0.21192467160197492},"--","--",null,"--","--",null,{"$f":"((Quarterly!CJ46/Quarterly!CJ45)^4)-1","v":4.7267052660589615E-2},{"$f":"((Quarterly!CK46/Quarterly!CK45)^4)-1","v":7.0276138531718102E-2},{"$f":"((Quarterly!CL46/Quarterly!CL45)^4)-1","v":0.10602229551432774},{"$f":"((Quarterly!CM46/Quarterly!CM45)^4)-1","v":-2.7954862598176144E-2},{"$f":"((Quarterly!CN46/Quarterly!CN45)^4)-1","v":2.9265658361369296E-2},{"$f":"((Quarterly!CO46/Quarterly!CO45)^4)-1","v":3.837740910849563E-2},{"$f":"((Quarterly!CP46/Quarterly!CP45)^4)-1","v":6.0386484368681881E-2},{"$f":"((Quarterly!CQ46/Quarterly!CQ45)^4)-1","v":1.1646944222784672E-2},"--","--","--",null,null,null,null,null,{"$f":"((Quarterly!CZ46/Quarterly!CZ45)^4)-1","v":4.4505147900416597E-2},{"$f":"((Quarterly!DA46/Quarterly!DA45)^4)-1","v":4.2733223211923299E-2},null,null,null,null,null,{"$f":"((Quarterly!DG46/Quarterly!DG45)^4)-1","v":3.3192210028989422E-2},{"$f":"((Quarterly!DH46-Quarterly!DH45)*60)","v":0},{"$f":"Quarterly!DI46-Quarterly!DI45","v":0.20000000000000284},"--",{"$f":"(Quarterly!DK46-Quarterly!DK45)*100","v":10.000000000000053},{"$f":"((Quarterly!DL46/Quarterly!DL45)^4)-1","v":2.468157769209256E-2},null,null,null,{"$f":"((Quarterly!DP46/Quarterly!DP45)^4)-1","v":3.340871741347784E-2},null,null,null,"--",{"$f":"Quarterly!DU46-Quarterly!DU45","v":{"$error":"#DIV/0!"}},"--","--","--","--","--","--","--","--",null,null,null,null,null,{"$f":"((Quarterly!EI46/Quarterly!EI45)^4)-1","v":6.7292375897962664E-2},{"$f":"((Quarterly!EJ46/Quarterly!EJ45)^4)-1","v":3.9436696967068752E-2},{"$f":"((Quarterly!EK46/Quarterly!EK45)^4)-1","v":3.1432598604944184E-2},null,null,null,null,null,{"$f":"((Quarterly!EQ46/Quarterly!EQ45)^4)-1","v":7.9999601595925895E-3},"--",{"$f":"((Quarterly!ES46/Quarterly!ES45)^4)-1","v":4.1523542206081121E-2},null,null,null,null,null,{"$f":"(Quarterly!EY46-Quarterly!EY45)*100","v":22.666666666666657},{"$f":"(Quarterly!EZ46-Quarterly!EZ45)*100","v":27.999999999999979},{"$f":"(Quarterly!FA46-Quarterly!FA45)*100","v":41.000000000000014},{"$f":"(Quarterly!FB46-Quarterly!FB45)*100","v":39.333333333333172},-1.6666666666668419,"--",{"$f":"(Quarterly!FE46-Quarterly!FE45)*100","v":45.333333333333314},{"$f":"(Quarterly!FF46-Quarterly!FF45)*100","v":43.666666666666657},"--",{"$f":"(Quarterly!FH46-Quarterly!FH45)*100","v":38.666666666666671},{"$f":"(Quarterly!FI46-Quarterly!FI45)*100","v":39.66666666666665},-4.0000000000000071,null,null,null,null,null,"--","--","--","--","--","--","--","--","--",null,null,null,null,null,{"$f":"((Quarterly!GD46/Quarterly!GD45)^4)-1","v":3.0988302515427169E-2},"--","--","--","--","--","--","--","--"]
["68'Q1",{"$f":"((Quarterly!B47/Quarterly!B46)^4)-1","v":0.13264212734951797},{"$f":"((Quarterly!C47/Quarterly!C46)^4)-1","v":8.3736067753768184E-2},{"$f":"((Quarterly!D47/Quarterly!D46)^4)-1","v":8.5292874748154501E-2},{"$f":"((Quarterly!E47/Quarterly!E46)^4)-1","v":9.8517745762229048E-2},{"$f":"((Quarterly!F47/Quarterly!F46)^4)-1","v":0.27283091160795014},{"$f":"((Quarterly!G47/Quarterly!G46)^4)-1","v":8.1072292251479938E-2},{"$f":"((Quarterly!H47/Quarterly!H46)^4)-1","v":9.3959445825134269E-2},{"$f":"((Quarterly!I47/Quarterly!I46)^4)-1","v":0.12315428525816885},{"$f":"((Quarterly!J47/Quarterly!J46)^4)-1","v":0.15137573450235098},{"$f":"((Quarterly!K47/Quarterly!K46)^4)-1","v":2.6185194695207858E-2},{"$f":"((Quarterly!L47-Quarterly!L46))","v":-2.8490000000000002},{"$f":"((Quarterly!M47/Quarterly!M46)^4)-1","v":0.2573346048913987},{"$f":"((Quarterly!N47/Quarterly!N46)^4)-1","v":0.12170709490859855},{"$f":"((Quarterly!O47/Quarterly!O46)^4)-1","v":0.66136074746312778},{"$f":"((Quarterly!P47/Quarterly!P46)^4)-1","v":7.3023331559860738E-2},{"$f":"((Quarterly!Q47/Quarterly!Q46)^4)-1","v":-0.42106106870066307},null,null,null,null,null,"--","--",{"$f":"((Quarterly!Y47/Quarterly!Y46)^4)-1","v":8.7877568866505218E-2},"--",{"$f":"((Quarterly!AA47/Quarterly!AA46)^4)-1","v":-6.0619553466014109E-2},{"$f":"((Quarterly!AB47/Quarterly!AB46)^4)-1","v":-0.17524961813020645},"--","--","--","--","--","--","--","--","--","--",{"$f":"((Quarterly!AM47/Quarterly!AM46)^4)-1","v":5.8331224634051271E-2},"--","--","--",{"$f":"Quarterly!AQ47-Quarterly!AQ46","v":0.49999999999999289},"--","--",{"$f":"Quarterly!AT47-Quarterly!AT46","v":-0.60000000000000853},"--","--",{"$f":"Quarterly!AW47-Quarterly!AW46","v":4.3333333333333357},{"$f":"Quarterly!AX47-Quarterly!AX46","v":6.6666666666669983E-2},{"$f":"Quarterly!AY47-Quarterly!AY46","v":-3.9000000000000057},{"$f":"Quarterly!AZ47-Quarterly!AZ46","v":-0.60000000000000853},{"$f":"Quarterly!BA47-Quarterly!BA46","v":2.0333333333333314},"--","--","--","--",{"$f":"((Quarterly!BF47/Quarterly!BF46)^4)-1","v":0.11213844371492576},{"$f":"((Quarterly!BG47/Quarterly!BG46)^4)-1","v":9.2270229518912394E-2},{"$f":"((Quarterly!BH47/Quarterly!BH46)^4)-1","v":6.9233892698544075E-2},{"$f":"((Quarterly!BI47/Quarterly!BI46)^4)-1","v":1.8034550124430559E-2},{"$f":"((Quarterly!BJ47/Quarterly!BJ46)^4)-1","v":-0.12504313857822724},"--",null,"--","--",null,null,null,null,null,{"$f":"((Quarterly!BT47/Quarterly!BT46)^4)-1","v":9.3908960670100239E-2},"--","--",{"$f":"((Quarterly!BW47/Quarterly!BW46)^4)-1","v":0.12662693880763309},{"$f":"((Quarterly!BX47/Quarterly!BX46)^4)-1","v":2.701606461540762E-2},{"$f":"((Quarterly!BY47/Quarterly!BY46)^4)-1","v":-1.0273531963526095E-3},"--","--",{"$f":"((Quarterly!CB47/Quarterly!CB46)^4)-1","v":0.38482127658699006},{"$f":"((Quarterly!CC47/Quarterly!CC46)^4)-1","v":0.20906364320969617},"--","--",null,"--","--",null,{"$f":"((Quarterly!CJ47/Quarterly!CJ46)^4)-1","v":-0.10056058573874738},{"$f":"((Quarterly!CK47/Quarterly!CK46)^4)-1","v":0.11959932141517493},{"$f":"((Quarterly!CL47/Quarterly!CL46)^4)-1","v":-7.0890042080340443E-2},{"$f":"((Quarterly!CM47/Quarterly!CM46)^4)-1","v":0.11388633484133148},{"$f":"((Quarterly!CN47/Quarterly!CN46)^4)-1","v":7.0207023219515774E-2},{"$f":"((Quarterly!CO47/Quarterly!CO46)^4)-1","v":6.6010566249019575E-3},{"$f":"((Quarterly!CP47/Quarterly!CP46)^4)-1","v":6.1774575358268802E-2},{"$f":"((Quarterly!CQ47/Quarterly!CQ46)^4)-1","v":8.838332253098935E-3},"--","--","--",null,null,null,null,null,{"$f":"((Quarterly!CZ47/Quarterly!CZ46)^4)-1","v":3.9955153271469035E-2},{"$f":"((Quarterly!DA47/Quarterly!DA46)^4)-1","v":5.0110888137005594E-2},null,null,null,null,null,{"$f":"((Quarterly!DG47/Quarterly!DG46)^4)-1","v":1.6359578899582283E-2},{"$f":"((Quarterly!DH47-Quarterly!DH46)*60)","v":-5.9999999999996589},{"$f":"Quarterly!DI47-Quarterly!DI46","v":-0.39999999999999858},"--",{"$f":"(Quarterly!DK47-Quarterly!DK46)*100","v":-16.666666666666696},{"$f":"((Quarterly!DL47/Quarterly!DL46)^4)-1","v":2.6348209833291003E-2},null,null,null,{"$f":"((Quarterly!DP47/Quarterly!DP46)^4)-1","v":3.0099496302320672E-2},null,null,null,"--",{"$f":"Quarterly!DU47-Quarterly!DU46","v":-0.18333333333333357},"--","--","--","--","--","--","--","--",null,null,null,null,null,{"$f":"((Quarterly!EI47/Quarterly!EI46)^4)-1","v":8.7894679450973401E-2},{"$f":"((Quarterly!EJ47/Quarterly!EJ46)^4)-1","v":9.0377884359152283E-2},{"$f":"((Quarterly!EK47/Quarterly!EK46)^4)-1","v":9.0591327726673443E-2},null,null,null,null,null,{"$f":"((Quarterly!EQ47/Quarterly!EQ46)^4)-1","v":5.6896571300450338E-2},"--",{"$f":"((Quarterly!ES47/Quarterly!ES46)^4)-1","v":3.7309448975157089E-2},null,null,null,null,null,{"$f":"(Quarterly!EY47-Quarterly!EY46)*100","v":27.333333333333343},{"$f":"(Quarterly!EZ47-Quarterly!EZ46)*100","v":61.333333333333329},{"$f":"(Quarterly!FA47-Quarterly!FA46)*100","v":9.9999999999998757},{"$f":"(Quarterly!FB47-Quarterly!FB46)*100","v":10.666666666666824},0.66666666666694852,"--",{"$f":"(Quarterly!FE47-Quarterly!FE46)*100","v":29.666666666666686},{"$f":"(Quarterly!FF47-Quarterly!FF46)*100","v":-8.9999999999999858},"--",{"$f":"(Quarterly!FH47-Quarterly!FH46)*100","v":-7.0000000000000284},{"$f":"(Quarterly!FI47-Quarterly!FI46)*100","v":-3.3333333333334103},5.6666666666665755,null,null,null,null,null,"--","--","--","--","--","--","--","--","--",null,null,null,null,null,{"$f":"((Quarterly!GD47/Quarterly!GD46)^4)-1","v":0},"--","--","--","--","--","--","--","--"]
["68'Q2",{"$f":"((Quarterly!B48/Quarterly!B47)^4)-1","v":0.11512514358757753},{"$f":"((Quarterly!C48/Quarterly!C47)^4)-1","v":6.9278449031133338E-2},{"$f":"((Quarterly!D48/Quarterly!D47)^4)-1","v":4.1511570235215789E-2},{"$f":"((Quarterly!E48/Quarterly!E47)^4)-1","v":6.2580669720276205E-2},{"$f":"((Quarterly!F48/Quarterly!F47)^4)-1","v":8.7971819538238183E-2},{"$f":"((Quarterly!G48/Quarterly!G47)^4)-1","v":5.0058236325577266E-2},{"$f":"((Quarterly!H48/Quarterly!H47)^4)-1","v":6.6806267162651256E-2},{"$f":"((Quarterly!I48/Quarterly!I47)^4)-1","v":-4.8272181358909649E-2},{"$f":"((Quarterly!J48/Quarterly!J47)^4)-1","v":-8.7030882209927274E-2},{"$f":"((Quarterly!K48/Quarterly!K47)^4)-1","v":0.10711141500321553},{"$f":"((Quarterly!L48-Quarterly!L47))","v":22.641999999999999},{"$f":"((Quarterly!M48/Quarterly!M47)^4)-1","v":6.2409175658851623E-2},{"$f":"((Quarterly!N48/Quarterly!N47)^4)-1","v":8.1721868285616006E-2},{"$f":"((Quarterly!O48/Quarterly!O47)^4)-1","v":1.8514385656459353E-2},{"$f":"((Quarterly!P48/Quarterly!P47)^4)-1","v":2.1222373936210071E-2},{"$f":"((Quarterly!Q48/Quarterly!Q47)^4)-1","v":0.45766966196619374},null,null,null,null,null,"--","--",{"$f":"((Quarterly!Y48/Quarterly!Y47)^4)-1","v":0.11300272851774906},"--",{"$f":"((Quarterly!AA48/Quarterly!AA47)^4)-1","v":0.11392544434790497},{"$f":"((Quarterly!AB48/Quarterly!AB47)^4)-1","v":0.23529157578853144},"--","--","--","--","--","--","--","--","--","--",{"$f":"((Quarterly!AM48/Quarterly!AM47)^4)-1","v":5.502395399923854E-2},"--","--","--",{"$f":"Quarterly!AQ48-Quarterly!AQ47","v":0.46666666666667567},"--","--",{"$f":"Quarterly!AT48-Quarterly!AT47","v":1.8666666666666671},"--","--",{"$f":"Quarterly!AW48-Quarterly!AW47","v":1.56666666666667},{"$f":"Quarterly!AX48-Quarterly!AX47","v":0.86666666666666714},{"$f":"Quarterly!AY48-Quarterly!AY47","v":-6.4333333333333371},{"$f":"Quarterly!AZ48-Quarterly!AZ47","v":0.60000000000000853},{"$f":"Quarterly!BA48-Quarterly!BA47","v":-3.3999999999999986},"--","--","--","--",{"$f":"((Quarterly!BF48/Quarterly!BF47)^4)-1","v":6.6616688562236792E-2},{"$f":"((Quarterly!BG48/Quarterly!BG47)^4)-1","v":3.8837444546014899E-2},{"$f":"((Quarterly!BH48/Quarterly!BH47)^4)-1","v":2.6039108705757874E-2},{"$f":"((Quarterly!BI48/Quarterly!BI47)^4)-1","v":2.6689763226565466E-2},{"$f":"((Quarterly!BJ48/Quarterly!BJ47)^4)-1","v":9.9472374982735534E-2},"--",null,"--","--",null,null,null,null,null,{"$f":"((Quarterly!BT48/Quarterly!BT47)^4)-1","v":0.10408230091268122},"--","--",{"$f":"((Quarterly!BW48/Quarterly!BW47)^4)-1","v":7.7742221626430519E-2},{"$f":"((Quarterly!BX48/Quarterly!BX47)^4)-1","v":9.1648521884257761E-4},{"$f":"((Quarterly!BY48/Quarterly!BY47)^4)-1","v":-8.1987781853966046E-3},"--","--",{"$f":"((Quarterly!CB48/Quarterly!CB47)^4)-1","v":0.11878616894000715},{"$f":"((Quarterly!CC48/Quarterly!CC47)^4)-1","v":3.8630572985711487E-2},"--","--",null,"--","--",null,{"$f":"((Quarterly!CJ48/Quarterly!CJ47)^4)-1","v":-0.32712782076311897},{"$f":"((Quarterly!CK48/Quarterly!CK47)^4)-1","v":0.11881161428819742},{"$f":"((Quarterly!CL48/Quarterly!CL47)^4)-1","v":0.15486511287798588},{"$f":"((Quarterly!CM48/Quarterly!CM47)^4)-1","v":-0.22572053352056543},{"$f":"((Quarterly!CN48/Quarterly!CN47)^4)-1","v":6.8455572383627317E-2},{"$f":"((Quarterly!CO48/Quarterly!CO47)^4)-1","v":1.3723670080606265E-2},{"$f":"((Quarterly!CP48/Quarterly!CP47)^4)-1","v":9.806792074899251E-2},{"$f":"((Quarterly!CQ48/Quarterly!CQ47)^4)-1","v":8.8389859354349731E-3},{"$f":"((Quarterly!CR48/Quarterly!CR47)^4)-1","v":0.64564271389949512},"--","--",null,null,null,null,null,{"$f":"((Quarterly!CZ48/Quarterly!CZ47)^4)-1","v":3.9560043294496028E-2},{"$f":"((Quarterly!DA48/Quarterly!DA47)^4)-1","v":4.1759968983275053E-2},null,null,null,null,null,{"$f":"((Quarterly!DG48/Quarterly!DG47)^4)-1","v":3.5156346927769144E-2},{"$f":"((Quarterly!DH48-Quarterly!DH47)*60)","v":0},{"$f":"Quarterly!DI48-Quarterly!DI47","v":0.3333333333333357},"--",{"$f":"(Quarterly!DK48-Quarterly!DK47)*100","v":-16.66666666666665},{"$f":"((Quarterly!DL48/Quarterly!DL47)^4)-1","v":2.8964701163387563E-2},null,null,null,{"$f":"((Quarterly!DP48/Quarterly!DP47)^4)-1","v":3.6186163375558023E-2},null,null,null,"--",{"$f":"Quarterly!DU48-Quarterly!DU47","v":-9.9999999999999645E-2},"--","--","--","--","--","--","--","--",null,null,null,null,null,{"$f":"((Quarterly!EI48/Quarterly!EI47)^4)-1","v":6.4586043879587551E-2},{"$f":"((Quarterly!EJ48/Quarterly!EJ47)^4)-1","v":6.56909110401529E-2},{"$f":"((Quarterly!EK48/Quarterly!EK47)^4)-1","v":6.5992839074026977E-2},null,null,null,null,null,{"$f":"((Quarterly!EQ48/Quarterly!EQ47)^4)-1","v":2.3761340360635153E-2},"--",{"$f":"((Quarterly!ES48/Quarterly!ES47)^4)-1","v":4.071671842438418E-2},null,null,null,null,null,{"$f":"(Quarterly!EY48-Quarterly!EY47)*100","v":39.999999999999943},{"$f":"(Quarterly!EZ48-Quarterly!EZ47)*100","v":119.33333333333343},{"$f":"(Quarterly!FA48-Quarterly!FA47)*100","v":12.666666666666782},{"$f":"(Quarterly!FB48-Quarterly!FB47)*100","v":19.333333333333247},6.6666666666664653,"--",{"$f":"(Quarterly!FE48-Quarterly!FE47)*100","v":46.999999999999972},{"$f":"(Quarterly!FF48-Quarterly!FF47)*100","v":46.999999999999886},"--",{"$f":"(Quarterly!FH48-Quarterly!FH47)*100","v":22.999999999999954},{"$f":"(Quarterly!FI48-Quarterly!FI47)*100","v":13.333333333333375},-33.666666666666515,null,null,null,null,null,"--","--","--","--","--","--","--","--","--",null,null,null,null,null,{"$f":"((Quarterly!GD48/Quarterly!GD47)^4)-1","v":0},"--","--","--","--","--","--","--","--"]
["68'Q3",{"$f":"((Quarterly!B49/Quarterly!B48)^4)-1","v":7.0351309642504134E-2},{"$f":"((Quarterly!C49/Quarterly!C48)^4)-1","v":2.9122933618298319E-2},{"$f":"((Quarterly!D49/Quarterly!D48)^4)-1","v":5.9060340710708648E-2},{"$f":"((Quarterly!E49/Quarterly!E48)^4)-1","v":7.7105692803105752E-2},{"$f":"((Quarterly!F49/Quarterly!F48)^4)-1","v":0.19259714338949352},{"$f":"((Quarterly!G49/Quarterly!G48)^4)-1","v":6.5258861875471919E-2},{"$f":"((Quarterly!H49/Quarterly!H48)^4)-1","v":7.3625658004630168E-2},{"$f":"((Quarterly!I49/Quarterly!I48)^4)-1","v":5.610409545134587E-2},{"$f":"((Quarterly!J49/Quarterly!J48)^4)-1","v":6.6192935202948888E-2},{"$f":"((Quarterly!K49/Quarterly!K48)^4)-1","v":7.4192689286206148E-2},{"$f":"((Quarterly!L49-Quarterly!L48))","v":-23.963000000000001},{"$f":"((Quarterly!M49/Quarterly!M48)^4)-1","v":0.26295876153467335},{"$f":"((Quarterly!N49/Quarterly!N48)^4)-1","v":0.25771885069658151},{"$f":"((Quarterly!O49/Quarterly!O48)^4)-1","v":0.27538917693009957},{"$f":"((Quarterly!P49/Quarterly!P48)^4)-1","v":1.2562352465704363E-2},{"$f":"((Quarterly!Q49/Quarterly!Q48)^4)-1","v":-0.91378812701484957},null,null,null,null,null,"--","--",{"$f":"((Quarterly!Y49/Quarterly!Y48)^4)-1","v":0.10563361431901575},"--",{"$f":"((Quarterly!AA49/Quarterly!AA48)^4)-1","v":2.6562766147734118E-2},{"$f":"((Quarterly!AB49/Quarterly!AB48)^4)-1","v":2.3261023425091176E-2},"--","--","--","--","--","--","--","--","--","--",{"$f":"((Quarterly!AM49/Quarterly!AM48)^4)-1","v":3.140347714277314E-2},"--","--","--",{"$f":"Quarterly!AQ49-Quarterly!AQ48","v":-2.7333333333333272},"--","--",{"$f":"Quarterly!AT49-Quarterly!AT48","v":-4.7999999999999901},"--","--",{"$f":"Quarterly!AW49-Quarterly!AW48","v":-3.8333333333333286},{"$f":"Quarterly!AX49-Quarterly!AX48","v":-3.7666666666666728},{"$f":"Quarterly!AY49-Quarterly!AY48","v":0.90000000000000568},{"$f":"Quarterly!AZ49-Quarterly!AZ48","v":-1.8000000000000043},{"$f":"Quarterly!BA49-Quarterly!BA48","v":1.2666666666666586},"--","--","--","--",{"$f":"((Quarterly!BF49/Quarterly!BF48)^4)-1","v":6.700926257268347E-2},{"$f":"((Quarterly!BG49/Quarterly!BG48)^4)-1","v":-1.3160634754124656E-3},{"$f":"((Quarterly!BH49/Quarterly!BH48)^4)-1","v":1.1269258044016128E-2},{"$f":"((Quarterly!BI49/Quarterly!BI48)^4)-1","v":6.8535296205793017E-2},{"$f":"((Quarterly!BJ49/Quarterly!BJ48)^4)-1","v":1.1688715533267002E-2},"--",null,"--","--",null,null,null,null,null,{"$f":"((Quarterly!BT49/Quarterly!BT48)^4)-1","v":0.12930118884438246},"--","--",{"$f":"((Quarterly!BW49/Quarterly!BW48)^4)-1","v":9.5953235553332794E-2},{"$f":"((Quarterly!BX49/Quarterly!BX48)^4)-1","v":0.19198038118150818},{"$f":"((Quarterly!BY49/Quarterly!BY48)^4)-1","v":0.32370271853778743},"--","--",{"$f":"((Quarterly!CB49/Quarterly!CB48)^4)-1","v":0.17947953696192842},{"$f":"((Quarterly!CC49/Quarterly!CC48)^4)-1","v":0.12337469870935514},"--","--",null,"--","--",null,{"$f":"((Quarterly!CJ49/Quarterly!CJ48)^4)-1","v":0.38750337611956032},{"$f":"((Quarterly!CK49/Quarterly!CK48)^4)-1","v":0.10540830184223382},{"$f":"((Quarterly!CL49/Quarterly!CL48)^4)-1","v":-0.37624974252587629},{"$f":"((Quarterly!CM49/Quarterly!CM48)^4)-1","v":0.27466233316298916},{"$f":"((Quarterly!CN49/Quarterly!CN48)^4)-1","v":9.6935124749970569E-3},{"$f":"((Quarterly!CO49/Quarterly!CO48)^4)-1","v":1.3676746968573683E-2},{"$f":"((Quarterly!CP49/Quarterly!CP48)^4)-1","v":9.6082448324856573E-2},{"$f":"((Quarterly!CQ49/Quarterly!CQ48)^4)-1","v":1.0649398221184825E-2},{"$f":"((Quarterly!CR49/Quarterly!CR48)^4)-1","v":0.70903414971623557},"--","--",null,null,null,null,null,{"$f":"((Quarterly!CZ49/Quarterly!CZ48)^4)-1","v":5.5159648770836123E-2},{"$f":"((Quarterly!DA49/Quarterly!DA48)^4)-1","v":5.6670153940741264E-2},null,null,null,null,null,{"$f":"((Quarterly!DG49/Quarterly!DG48)^4)-1","v":3.4850074919460905E-2},{"$f":"((Quarterly!DH49-Quarterly!DH48)*60)","v":0},{"$f":"Quarterly!DI49-Quarterly!DI48","v":-0.1666666666666714},"--",{"$f":"(Quarterly!DK49-Quarterly!DK48)*100","v":-3.3333333333333215},{"$f":"((Quarterly!DL49/Quarterly!DL48)^4)-1","v":1.6378588247732528E-2},null,null,null,{"$f":"((Quarterly!DP49/Quarterly!DP48)^4)-1","v":3.6488760720254421E-2},null,null,null,"--",{"$f":"Quarterly!DU49-Quarterly!DU48","v":-3.3333333333334103E-2},"--","--","--","--","--","--","--","--",null,null,null,null,null,{"$f":"((Quarterly!EI49/Quarterly!EI48)^4)-1","v":3.1035253816228181E-2},{"$f":"((Quarterly!EJ49/Quarterly!EJ48)^4)-1","v":4.6144295446722827E-2},{"$f":"((Quarterly!EK49/Quarterly!EK48)^4)-1","v":5.0628496076617235E-2},null,null,null,null,null,{"$f":"((Quarterly!EQ49/Quarterly!EQ48)^4)-1","v":1.5701368232967861E-2},"--",{"$f":"((Quarterly!ES49/Quarterly!ES48)^4)-1","v":2.9195163914450317E-2},null,null,null,null,null,{"$f":"(Quarterly!EY49-Quarterly!EY48)*100","v":8.3333333333333925},{"$f":"(Quarterly!EZ49-Quarterly!EZ48)*100","v":-3.6666666666666181},{"$f":"(Quarterly!FA49-Quarterly!FA48)*100","v":-17.666666666666675},{"$f":"(Quarterly!FB49-Quarterly!FB48)*100","v":-16.000000000000014},1.6666666666666607,"--",{"$f":"(Quarterly!FE49-Quarterly!FE48)*100","v":-32.333333333333329},{"$f":"(Quarterly!FF49-Quarterly!FF48)*100","v":-43.333333333333179},"--",{"$f":"(Quarterly!FH49-Quarterly!FH48)*100","v":-33.3333333333333},{"$f":"(Quarterly!FI49-Quarterly!FI48)*100","v":-28.333333333333321},14.999999999999858,null,null,null,null,null,"--","--","--","--","--","--","--","--","--",null,null,null,null,null,{"$f":"((Quarterly!GD49/Quarterly!GD48)^4)-1","v":0},"--","--","--","--","--","--","--","--"]
["68'Q4",{"$f":"((Quarterly!B50/Quarterly!B49)^4)-1","v":7.6805031646162814E-2},{"$f":"((Quarterly!C50/Quarterly!C49)^4)-1","v":1.7922669146610115E-2},{"$f":"((Quarterly!D50/Quarterly!D49)^4)-1","v":2.5878818187345276E-2},{"$f":"((Quarterly!E50/Quarterly!E49)^4)-1","v":1.8342136077965421E-2},{"$f":"((Quarterly!F50/Quarterly!F49)^4)-1","v":-2.3446889274366556E-2},{"$f":"((Quarterly!G50/Quarterly!G49)^4)-1","v":8.9631385281840892E-4},{"$f":"((Quarterly!H50/Quarterly!H49)^4)-1","v":3.0930957144285287E-2},{"$f":"((Quarterly!I50/Quarterly!I49)^4)-1","v":0.1135599160844909},{"$f":"((Quarterly!J50/Quarterly!J49)^4)-1","v":0.11725192938231266},{"$f":"((Quarterly!K50/Quarterly!K49)^4)-1","v":5.1865967876019381E-2},{"$f":"((Quarterly!L50-Quarterly!L49))","v":-4.8719999999999999},{"$f":"((Quarterly!M50/Quarterly!M49)^4)-1","v":-3.3280308174248097E-2},{"$f":"((Quarterly!N50/Quarterly!N49)^4)-1","v":-4.9506681087936544E-2},{"$f":"((Quarterly!O50/Quarterly!O49)^4)-1","v":5.6969065797249918E-3},{"$f":"((Quarterly!P50/Quarterly!P49)^4)-1","v":3.5922391840543799E-3},{"$f":"((Quarterly!Q50/Quarterly!Q49)^4)-1","v":-0.27923785007294377},null,null,null,null,null,"--","--",{"$f":"((Quarterly!Y50/Quarterly!Y49)^4)-1","v":0.14389894346510435},"--",{"$f":"((Quarterly!AA50/Quarterly!AA49)^4)-1","v":0.10802510617150185},{"$f":"((Quarterly!AB50/Quarterly!AB49)^4)-1","v":3.2657731093725717E-2},"--","--","--","--","--","--","--","--","--","--",{"$f":"((Quarterly!AM50/Quarterly!AM49)^4)-1","v":6.2140101107482693E-2},"--","--","--",{"$f":"Quarterly!AQ50-Quarterly!AQ49","v":3.7999999999999901},"--","--",{"$f":"Quarterly!AT50-Quarterly!AT49","v":5.6666666666666643},"--","--",{"$f":"Quarterly!AW50-Quarterly!AW49","v":-6.1000000000000085},{"$f":"Quarterly!AX50-Quarterly!AX49","v":4.2666666666666728},{"$f":"Quarterly!AY50-Quarterly!AY49","v":1.1000000000000085},{"$f":"Quarterly!AZ50-Quarterly!AZ49","v":3.9666666666666686},{"$f":"Quarterly!BA50-Quarterly!BA49","v":6.8333333333333357},"--","--","--","--",{"$f":"((Quarterly!BF50/Quarterly!BF49)^4)-1","v":8.2048397323466471E-2},{"$f":"((Quarterly!BG50/Quarterly!BG49)^4)-1","v":-6.9189497620362195E-3},{"$f":"((Quarterly!BH50/Quarterly!BH49)^4)-1","v":3.0049936400009525E-2},{"$f":"((Quarterly!BI50/Quarterly!BI49)^4)-1","v":8.9510160832746433E-2},{"$f":"((Quarterly!BJ50/Quarterly!BJ49)^4)-1","v":0.122805529752396},"--",null,"--","--",null,null,null,null,null,{"$f":"((Quarterly!BT50/Quarterly!BT49)^4)-1","v":0.16242483029595189},"--","--",{"$f":"((Quarterly!BW50/Quarterly!BW49)^4)-1","v":0.10160545238429286},{"$f":"((Quarterly!BX50/Quarterly!BX49)^4)-1","v":0.17131863248812462},{"$f":"((Quarterly!BY50/Quarterly!BY49)^4)-1","v":8.0089978021898434E-2},"--","--",{"$f":"((Quarterly!CB50/Quarterly!CB49)^4)-1","v":7.5978240938390229E-3},{"$f":"((Quarterly!CC50/Quarterly!CC49)^4)-1","v":-2.9488010267191389E-2},"--","--",null,"--","--",null,{"$f":"((Quarterly!CJ50/Quarterly!CJ49)^4)-1","v":-4.9679614273459238E-2},{"$f":"((Quarterly!CK50/Quarterly!CK49)^4)-1","v":8.7677767170664112E-2},{"$f":"((Quarterly!CL50/Quarterly!CL49)^4)-1","v":0.15569128572243995},{"$f":"((Quarterly!CM50/Quarterly!CM49)^4)-1","v":2.3606509062873648E-2},{"$f":"((Quarterly!CN50/Quarterly!CN49)^4)-1","v":2.7630610458367455E-2},{"$f":"((Quarterly!CO50/Quarterly!CO49)^4)-1","v":3.3563527980329688E-2},{"$f":"((Quarterly!CP50/Quarterly!CP49)^4)-1","v":0.12472074536299149},{"$f":"((Quarterly!CQ50/Quarterly!CQ49)^4)-1","v":1.1183165746581292E-2},{"$f":"((Quarterly!CR50/Quarterly!CR49)^4)-1","v":0.6425143746002504},"--","--",null,null,null,null,null,{"$f":"((Quarterly!CZ50/Quarterly!CZ49)^4)-1","v":5.0451152316987047E-2},{"$f":"((Quarterly!DA50/Quarterly!DA49)^4)-1","v":5.968535505950423E-2},null,null,null,null,null,{"$f":"((Quarterly!DG50/Quarterly!DG49)^4)-1","v":2.9891591477831048E-2},{"$f":"((Quarterly!DH50-Quarterly!DH49)*60)","v":-7.9999999999999716},{"$f":"Quarterly!DI50-Quarterly!DI49","v":-3.3333333333331439E-2},"--",{"$f":"(Quarterly!DK50-Quarterly!DK49)*100","v":-13.33333333333333},{"$f":"((Quarterly!DL50/Quarterly!DL49)^4)-1","v":2.0457813740817787E-2},null,null,null,{"$f":"((Quarterly!DP50/Quarterly!DP49)^4)-1","v":3.983202697652799E-2},null,null,null,"--",{"$f":"Quarterly!DU50-Quarterly!DU49","v":0.10000000000000053},"--","--","--","--","--","--","--","--",null,null,null,null,null,{"$f":"((Quarterly!EI50/Quarterly!EI49)^4)-1","v":2.3417214165554645E-2},{"$f":"((Quarterly!EJ50/Quarterly!EJ49)^4)-1","v":2.2133018906769664E-2},{"$f":"((Quarterly!EK50/Quarterly!EK49)^4)-1","v":2.0850881153229972E-2},null,null,null,null,null,{"$f":"((Quarterly!EQ50/Quarterly!EQ49)^4)-1","v":2.3528405940198338E-2},"--",{"$f":"((Quarterly!ES50/Quarterly!ES49)^4)-1","v":2.8983632030520345E-2},null,null,null,null,null,{"$f":"(Quarterly!EY50-Quarterly!EY49)*100","v":-11.666666666666625},{"$f":"(Quarterly!EZ50-Quarterly!EZ49)*100","v":-2.6666666666667282},{"$f":"(Quarterly!FA50-Quarterly!FA49)*100","v":16.666666666666607},{"$f":"(Quarterly!FB50-Quarterly!FB49)*100","v":16.333333333333311},-0.33333333333329662,"--",{"$f":"(Quarterly!FE50-Quarterly!FE49)*100","v":39.000000000000057},{"$f":"(Quarterly!FF50-Quarterly!FF49)*100","v":32.666666666666622},"--",{"$f":"(Quarterly!FH50-Quarterly!FH49)*100","v":25.000000000000089},{"$f":"(Quarterly!FI50-Quarterly!FI49)*100","v":31.00000000000005},-1.6666666666665719,null,null,null,null,null,"--","--","--","--","--","--","--","--","--",null,null,null,null,null,{"$f":"((Quarterly!GD50/Quarterly!GD49)^4)-1","v":0},"--","--","--","--","--","--","--","--"]
["69'Q1",{"$f":"((Quarterly!B51/Quarterly!B50)^4)-1","v":0.10842357901657418},{"$f":"((Quarterly!C51/Quarterly!C50)^4)-1","v":6.3662343596214921E-2},{"$f":"((Quarterly!D51/Quarterly!D50)^4)-1","v":4.1869933984936658E-2},{"$f":"((Quarterly!E51/Quarterly!E50)^4)-1","v":4.5518036019775776E-2},{"$f":"((Quarterly!F51/Quarterly!F50)^4)-1","v":7.7607701954604202E-2},{"$f":"((Quarterly!G51/Quarterly!G50)^4)-1","v":4.5136957248153031E-2},{"$f":"((Quarterly!H51/Quarterly!H50)^4)-1","v":4.297196050386809E-2},{"$f":"((Quarterly!I51/Quarterly!I50)^4)-1","v":0.10629639297053251},{"$f":"((Quarterly!J51/Quarterly!J50)^4)-1","v":0.12704502739387502},{"$f":"((Quarterly!K51/Quarterly!K50)^4)-1","v":0.15268911565703513},{"$f":"((Quarterly!L51-Quarterly!L50))","v":16.191000000000003},{"$f":"((Quarterly!M51/Quarterly!M50)^4)-1","v":-0.3271926328977719},{"$f":"((Quarterly!N51/Quarterly!N50)^4)-1","v":-0.3997421412340687},{"$f":"((Quarterly!O51/Quarterly!O50)^4)-1","v":-0.13378530245019704},{"$f":"((Quarterly!P51/Quarterly!P50)^4)-1","v":1.0025466881200318E-2},{"$f":"((Quarterly!Q51/Quarterly!Q50)^4)-1","v":-0.99663463701162369},null,null,null,null,null,"--","--",{"$f":"((Quarterly!Y51/Quarterly!Y50)^4)-1","v":0.16754522937856176},"--",{"$f":"((Quarterly!AA51/Quarterly!AA50)^4)-1","v":-4.9780336379915635E-2},{"$f":"((Quarterly!AB51/Quarterly!AB50)^4)-1","v":-8.9451370455759793E-2},"--","--","--","--","--","--","--","--","--","--",{"$f":"((Quarterly!AM51/Quarterly!AM50)^4)-1","v":8.0114243645438732E-2},"--","--","--",{"$f":"Quarterly!AQ51-Quarterly!AQ50","v":-0.3333333333333286},"--","--",{"$f":"Quarterly!AT51-Quarterly!AT50","v":0},"--","--",{"$f":"Quarterly!AW51-Quarterly!AW50","v":1.3333333333333357},{"$f":"Quarterly!AX51-Quarterly!AX50","v":-1.63333333333334},{"$f":"Quarterly!AY51-Quarterly!AY50","v":6.3333333333333286},{"$f":"Quarterly!AZ51-Quarterly!AZ50","v":-2.1666666666666643},{"$f":"Quarterly!BA51-Quarterly!BA50","v":3.8666666666666671},"--","--","--","--",{"$f":"((Quarterly!BF51/Quarterly!BF50)^4)-1","v":5.5682633575828699E-2},{"$f":"((Quarterly!BG51/Quarterly!BG50)^4)-1","v":3.1054080080714641E-2},{"$f":"((Quarterly!BH51/Quarterly!BH50)^4)-1","v":5.5036238955705752E-3},{"$f":"((Quarterly!BI51/Quarterly!BI50)^4)-1","v":2.3935579567872622E-2},{"$f":"((Quarterly!BJ51/Quarterly!BJ50)^4)-1","v":-0.11688740451093038},"--",null,"--","--",null,null,null,null,null,{"$f":"((Quarterly!BT51/Quarterly!BT50)^4)-1","v":0.12526726893367823},"--","--",{"$f":"((Quarterly!BW51/Quarterly!BW50)^4)-1","v":0.10152933217453919},{"$f":"((Quarterly!BX51/Quarterly!BX50)^4)-1","v":0.26567141776526948},{"$f":"((Quarterly!BY51/Quarterly!BY50)^4)-1","v":0.1447993296563248},"--","--",{"$f":"((Quarterly!CB51/Quarterly!CB50)^4)-1","v":0.12868335181311719},{"$f":"((Quarterly!CC51/Quarterly!CC50)^4)-1","v":9.8216222944594422E-2},"--","--",null,"--","--",null,{"$f":"((Quarterly!CJ51/Quarterly!CJ50)^4)-1","v":-1.0752590520789251E-2},{"$f":"((Quarterly!CK51/Quarterly!CK50)^4)-1","v":7.9626320297790931E-2},{"$f":"((Quarterly!CL51/Quarterly!CL50)^4)-1","v":-0.24771722006191144},{"$f":"((Quarterly!CM51/Quarterly!CM50)^4)-1","v":-0.10065050967202827},{"$f":"((Quarterly!CN51/Quarterly!CN50)^4)-1","v":8.1318285945222168E-3},{"$f":"((Quarterly!CO51/Quarterly!CO50)^4)-1","v":1.402081770766439E-2},{"$f":"((Quarterly!CP51/Quarterly!CP50)^4)-1","v":0.11077443173492374},{"$f":"((Quarterly!CQ51/Quarterly!CQ50)^4)-1","v":8.5451085822880746E-3},{"$f":"((Quarterly!CR51/Quarterly!CR50)^4)-1","v":0.52573510673720625},"--","--",null,null,null,null,null,{"$f":"((Quarterly!CZ51/Quarterly!CZ50)^4)-1","v":4.9822864560272295E-2},{"$f":"((Quarterly!DA51/Quarterly!DA50)^4)-1","v":5.5058438056784453E-2},null,null,null,null,null,{"$f":"((Quarterly!DG51/Quarterly!DG50)^4)-1","v":4.5916829399901937E-2},{"$f":"((Quarterly!DH51-Quarterly!DH50)*60)","v":1.9999999999998863},{"$f":"Quarterly!DI51-Quarterly!DI50","v":0.23333333333333428},"--",{"$f":"(Quarterly!DK51-Quarterly!DK50)*100","v":0},{"$f":"((Quarterly!DL51/Quarterly!DL50)^4)-1","v":3.2580154251476978E-2},null,null,null,{"$f":"((Quarterly!DP51/Quarterly!DP50)^4)-1","v":4.1051946169093689E-2},null,null,null,"--",{"$f":"Quarterly!DU51-Quarterly!DU50","v":-9.9999999999999645E-2},"--","--","--","--","--","--","--","--",null,null,null,null,null,{"$f":"((Quarterly!EI51/Quarterly!EI50)^4)-1","v":7.811244493455316E-2},{"$f":"((Quarterly!EJ51/Quarterly!EJ50)^4)-1","v":6.5672887188812368E-2},{"$f":"((Quarterly!EK51/Quarterly!EK50)^4)-1","v":5.0668529479706459E-2},null,null,null,null,null,{"$f":"((Quarterly!EQ51/Quarterly!EQ50)^4)-1","v":5.9243474281537756E-2},"--",{"$f":"((Quarterly!ES51/Quarterly!ES50)^4)-1","v":2.5144709525139808E-2},null,null,null,null,null,{"$f":"(Quarterly!EY51-Quarterly!EY50)*100","v":69.666666666666544},{"$f":"(Quarterly!EZ51-Quarterly!EZ50)*100","v":64.999999999999943},{"$f":"(Quarterly!FA51-Quarterly!FA50)*100","v":45.6666666666667},{"$f":"(Quarterly!FB51-Quarterly!FB50)*100","v":35.000000000000142},-10.666666666666558,"--",{"$f":"(Quarterly!FE51-Quarterly!FE50)*100","v":50.666666666666686},{"$f":"(Quarterly!FF51-Quarterly!FF50)*100","v":52.666666666666643},"--",{"$f":"(Quarterly!FH51-Quarterly!FH50)*100","v":55.666666666666572},{"$f":"(Quarterly!FI51-Quarterly!FI50)*100","v":40.666666666666629},-12.000000000000014,null,null,null,null,null,"--","--","--","--","--","--","--","--","--",null,null,null,null,null,{"$f":"((Quarterly!GD51/Quarterly!GD50)^4)-1","v":8.0497703774646823E-2},"--","--","--","--","--","--","--","--"]
["69'Q2",{"$f":"((Quarterly!B52/Quarterly!B51)^4)-1","v":6.5616914377129243E-2},{"$f":"((Quarterly!C52/Quarterly!C51)^4)-1","v":1.2890633200530743E-2},{"$f":"((Quarterly!D52/Quarterly!D51)^4)-1","v":2.0710971836298109E-2},{"$f":"((Quarterly!E52/Quarterly!E51)^4)-1","v":2.572215985543358E-2},{"$f":"((Quarterly!F52/Quarterly!F51)^4)-1","v":-1.0837501202241806E-2},{"$f":"((Quarterly!G52/Quarterly!G51)^4)-1","v":8.8892732334520108E-3},{"$f":"((Quarterly!H52/Quarterly!H51)^4)-1","v":3.7443682728324212E-2},{"$f":"((Quarterly!I52/Quarterly!I51)^4)-1","v":4.434931646105067E-2},{"$f":"((Quarterly!J52/Quarterly!J51)^4)-1","v":3.4830371288266493E-2},{"$f":"((Quarterly!K52/Quarterly!K51)^4)-1","v":-4.1939510533663404E-2},{"$f":"((Quarterly!L52-Quarterly!L51))","v":-6.5940000000000012},{"$f":"((Quarterly!M52/Quarterly!M51)^4)-1","v":1.0549410798666861},{"$f":"((Quarterly!N52/Quarterly!N51)^4)-1","v":1.2461085533903686},{"$f":"((Quarterly!O52/Quarterly!O51)^4)-1","v":0.69093590022796958},{"$f":"((Quarterly!P52/Quarterly!P51)^4)-1","v":-1.2494606925966156E-2},{"$f":"((Quarterly!Q52/Quarterly!Q51)^4)-1","v":-0.80229263107611459},null,null,null,null,null,"--","--",{"$f":"((Quarterly!Y52/Quarterly!Y51)^4)-1","v":0.151451560661781},"--",{"$f":"((Quarterly!AA52/Quarterly!AA51)^4)-1","v":-0.11974895333190438},{"$f":"((Quarterly!AB52/Quarterly!AB51)^4)-1","v":-0.12942079994281663},"--","--","--","--","--","--","--","--","--","--",{"$f":"((Quarterly!AM52/Quarterly!AM51)^4)-1","v":1.7570743464934147E-2},"--","--","--",{"$f":"Quarterly!AQ52-Quarterly!AQ51","v":-0.53333333333333144},"--","--",{"$f":"Quarterly!AT52-Quarterly!AT51","v":-1.06666666666667},"--","--",{"$f":"Quarterly!AW52-Quarterly!AW51","v":3.1999999999999957},{"$f":"Quarterly!AX52-Quarterly!AX51","v":-2.2999999999999972},{"$f":"Quarterly!AY52-Quarterly!AY51","v":0.96666666666666856},{"$f":"Quarterly!AZ52-Quarterly!AZ51","v":-2.2333333333333343},{"$f":"Quarterly!BA52-Quarterly!BA51","v":3.8666666666666671},"--","--","--","--",{"$f":"((Quarterly!BF52/Quarterly!BF51)^4)-1","v":6.6167857702342125E-2},{"$f":"((Quarterly!BG52/Quarterly!BG51)^4)-1","v":-3.1738701439254724E-2},{"$f":"((Quarterly!BH52/Quarterly!BH51)^4)-1","v":1.5415562236298364E-3},{"$f":"((Quarterly!BI52/Quarterly!BI51)^4)-1","v":0.10120079528603987},{"$f":"((Quarterly!BJ52/Quarterly!BJ51)^4)-1","v":-0.14063363023729913},"--",null,"--","--",null,null,null,null,null,{"$f":"((Quarterly!BT52/Quarterly!BT51)^4)-1","v":0.11535915097483729},"--","--",{"$f":"((Quarterly!BW52/Quarterly!BW51)^4)-1","v":6.4929695048717484E-2},{"$f":"((Quarterly!BX52/Quarterly!BX51)^4)-1","v":-0.28187333267821213},{"$f":"((Quarterly!BY52/Quarterly!BY51)^4)-1","v":-0.2271485192355388},"--","--",{"$f":"((Quarterly!CB52/Quarterly!CB51)^4)-1","v":0.36095350519732161},{"$f":"((Quarterly!CC52/Quarterly!CC51)^4)-1","v":0.28351487091830907},"--","--",null,"--","--",null,{"$f":"((Quarterly!CJ52/Quarterly!CJ51)^4)-1","v":-0.2873088866605561},{"$f":"((Quarterly!CK52/Quarterly!CK51)^4)-1","v":0.10278940945029635},{"$f":"((Quarterly!CL52/Quarterly!CL51)^4)-1","v":0.26499900308384272},{"$f":"((Quarterly!CM52/Quarterly!CM51)^4)-1","v":-0.20960800986369543},{"$f":"((Quarterly!CN52/Quarterly!CN51)^4)-1","v":4.4729959558414967E-2},{"$f":"((Quarterly!CO52/Quarterly!CO51)^4)-1","v":-1.3335616397616934E-2},{"$f":"((Quarterly!CP52/Quarterly!CP51)^4)-1","v":0.10875338729155537},{"$f":"((Quarterly!CQ52/Quarterly!CQ51)^4)-1","v":8.8459633390918224E-3},{"$f":"((Quarterly!CR52/Quarterly!CR51)^4)-1","v":0.84172979374371515},"--","--",null,null,null,null,null,{"$f":"((Quarterly!CZ52/Quarterly!CZ51)^4)-1","v":6.4710562388311521E-2},{"$f":"((Quarterly!DA52/Quarterly!DA51)^4)-1","v":6.5433339331116169E-2},null,null,null,null,null,{"$f":"((Quarterly!DG52/Quarterly!DG51)^4)-1","v":3.8489825977128023E-2},{"$f":"((Quarterly!DH52-Quarterly!DH51)*60)","v":0},{"$f":"Quarterly!DI52-Quarterly!DI51","v":0.13333333333333286},"--",{"$f":"(Quarterly!DK52-Quarterly!DK51)*100","v":3.3333333333333659},{"$f":"((Quarterly!DL52/Quarterly!DL51)^4)-1","v":2.1068350836193073E-2},null,null,null,{"$f":"((Quarterly!DP52/Quarterly!DP51)^4)-1","v":3.86845434028249E-2},null,null,null,"--",{"$f":"Quarterly!DU52-Quarterly!DU51","v":-0.23333333333333339},"--","--","--","--","--","--","--","--",null,null,null,null,null,{"$f":"((Quarterly!EI52/Quarterly!EI51)^4)-1","v":1.3403721149105374E-2},{"$f":"((Quarterly!EJ52/Quarterly!EJ51)^4)-1","v":1.1856201542272515E-2},{"$f":"((Quarterly!EK52/Quarterly!EK51)^4)-1","v":2.7277204210777617E-2},null,null,null,null,null,{"$f":"((Quarterly!EQ52/Quarterly!EQ51)^4)-1","v":5.8379050395668042E-2},"--",{"$f":"((Quarterly!ES52/Quarterly!ES51)^4)-1","v":3.2212194851531706E-2},null,null,null,null,null,{"$f":"(Quarterly!EY52-Quarterly!EY51)*100","v":68.000000000000057},{"$f":"(Quarterly!EZ52-Quarterly!EZ51)*100","v":175.99999999999997},{"$f":"(Quarterly!FA52-Quarterly!FA51)*100","v":18.666666666666654},{"$f":"(Quarterly!FB52-Quarterly!FB51)*100","v":20.999999999999819},2.3333333333331652,"--",{"$f":"(Quarterly!FE52-Quarterly!FE51)*100","v":10.333333333333261},{"$f":"(Quarterly!FF52-Quarterly!FF51)*100","v":20.999999999999996},"--",{"$f":"(Quarterly!FH52-Quarterly!FH51)*100","v":19.666666666666721},{"$f":"(Quarterly!FI52-Quarterly!FI51)*100","v":17.666666666666764},-3.3333333333332327,null,null,null,null,null,"--","--","--","--","--","--","--","--","--",null,null,null,null,null,{"$f":"((Quarterly!GD52/Quarterly!GD51)^4)-1","v":0.31220557320212516},"--","--","--","--","--","--","--","--"]
["69'Q3",{"$f":"((Quarterly!B53/Quarterly!B52)^4)-1","v":8.4228733177658555E-2},{"$f":"((Quarterly!C53/Quarterly!C52)^4)-1","v":2.5271915774676357E-2},{"$f":"((Quarterly!D53/Quarterly!D52)^4)-1","v":2.0790453638640516E-2},{"$f":"((Quarterly!E53/Quarterly!E52)^4)-1","v":1.9661032649499699E-2},{"$f":"((Quarterly!F53/Quarterly!F52)^4)-1","v":-1.1394762678738291E-2},{"$f":"((Quarterly!G53/Quarterly!G52)^4)-1","v":1.5013936838050634E-2},{"$f":"((Quarterly!H53/Quarterly!H52)^4)-1","v":2.4677111946585395E-2},{"$f":"((Quarterly!I53/Quarterly!I52)^4)-1","v":9.4077909734810783E-2},{"$f":"((Quarterly!J53/Quarterly!J52)^4)-1","v":0.11012394411906024},{"$f":"((Quarterly!K53/Quarterly!K52)^4)-1","v":-3.0829019914537681E-2},{"$f":"((Quarterly!L53-Quarterly!L52))","v":5.2160000000000011},{"$f":"((Quarterly!M53/Quarterly!M52)^4)-1","v":-5.0823297380733323E-2},{"$f":"((Quarterly!N53/Quarterly!N52)^4)-1","v":-9.2524005866453929E-2},{"$f":"((Quarterly!O53/Quarterly!O52)^4)-1","v":4.9214312668514726E-2},{"$f":"((Quarterly!P53/Quarterly!P52)^4)-1","v":9.2776052291445588E-3},{"$f":"((Quarterly!Q53/Quarterly!Q52)^4)-1","v":1115.3591901756306},null,null,null,null,null,"--","--",{"$f":"((Quarterly!Y53/Quarterly!Y52)^4)-1","v":6.6082789485167659E-2},"--",{"$f":"((Quarterly!AA53/Quarterly!AA52)^4)-1","v":-0.12053069514392589},{"$f":"((Quarterly!AB53/Quarterly!AB52)^4)-1","v":-0.10423257393726382},"--","--","--","--","--","--","--","--","--","--",{"$f":"((Quarterly!AM53/Quarterly!AM52)^4)-1","v":4.888494524489051E-2},"--","--","--",{"$f":"Quarterly!AQ53-Quarterly!AQ52","v":-1.8000000000000043},"--","--",{"$f":"Quarterly!AT53-Quarterly!AT52","v":-1.3666666666666671},"--","--",{"$f":"Quarterly!AW53-Quarterly!AW52","v":0.63333333333333997},{"$f":"Quarterly!AX53-Quarterly!AX52","v":-4.3333333333333357},{"$f":"Quarterly!AY53-Quarterly!AY52","v":3.1666666666666572},{"$f":"Quarterly!AZ53-Quarterly!AZ52","v":-2.7333333333333272},{"$f":"Quarterly!BA53-Quarterly!BA52","v":3.0333333333333314},"--","--","--","--",{"$f":"((Quarterly!BF53/Quarterly!BF52)^4)-1","v":7.3794916993394688E-2},{"$f":"((Quarterly!BG53/Quarterly!BG52)^4)-1","v":2.3780940523356886E-3},{"$f":"((Quarterly!BH53/Quarterly!BH52)^4)-1","v":1.6549705713097662E-2},{"$f":"((Quarterly!BI53/Quarterly!BI52)^4)-1","v":7.1034615992742411E-2},{"$f":"((Quarterly!BJ53/Quarterly!BJ52)^4)-1","v":-0.17332701345478085},"--",null,"--","--",null,null,null,null,null,{"$f":"((Quarterly!BT53/Quarterly!BT52)^4)-1","v":6.3531924361247993E-2},"--","--",{"$f":"((Quarterly!BW53/Quarterly!BW52)^4)-1","v":8.8996144758394902E-2},{"$f":"((Quarterly!BX53/Quarterly!BX52)^4)-1","v":-0.30434466519404235},{"$f":"((Quarterly!BY53/Quarterly!BY52)^4)-1","v":-0.22962261706351439},"--","--",{"$f":"((Quarterly!CB53/Quarterly!CB52)^4)-1","v":7.116622881134882E-2},{"$f":"((Quarterly!CC53/Quarterly!CC52)^4)-1","v":9.0488048466196735E-2},"--","--",null,"--","--",null,{"$f":"((Quarterly!CJ53/Quarterly!CJ52)^4)-1","v":-0.27290515394063275},{"$f":"((Quarterly!CK53/Quarterly!CK52)^4)-1","v":0.11368694984452299},{"$f":"((Quarterly!CL53/Quarterly!CL52)^4)-1","v":0.92525922331592425},{"$f":"((Quarterly!CM53/Quarterly!CM52)^4)-1","v":-0.23677855717626428},{"$f":"((Quarterly!CN53/Quarterly!CN52)^4)-1","v":8.7372402335655464E-2},{"$f":"((Quarterly!CO53/Quarterly!CO52)^4)-1","v":-3.9737407587081885E-2},{"$f":"((Quarterly!CP53/Quarterly!CP52)^4)-1","v":7.2224742910263817E-2},{"$f":"((Quarterly!CQ53/Quarterly!CQ52)^4)-1","v":1.0884361573440415E-2},{"$f":"((Quarterly!CR53/Quarterly!CR52)^4)-1","v":0.82512598437783136},"--","--",null,null,null,null,null,{"$f":"((Quarterly!CZ53/Quarterly!CZ52)^4)-1","v":5.6035198374658313E-2},{"$f":"((Quarterly!DA53/Quarterly!DA52)^4)-1","v":5.7077751498768814E-2},null,null,null,null,null,{"$f":"((Quarterly!DG53/Quarterly!DG52)^4)-1","v":2.004950187493737E-2},{"$f":"((Quarterly!DH53-Quarterly!DH52)*60)","v":-6.0000000000000853},{"$f":"Quarterly!DI53-Quarterly!DI52","v":0.26666666666665861},"--",{"$f":"(Quarterly!DK53-Quarterly!DK52)*100","v":13.333333333333286},{"$f":"((Quarterly!DL53/Quarterly!DL52)^4)-1","v":1.7829794867382676E-2},null,null,null,{"$f":"((Quarterly!DP53/Quarterly!DP52)^4)-1","v":3.0983464896718882E-2},null,null,null,"--",{"$f":"Quarterly!DU53-Quarterly!DU52","v":0.29999999999999982},"--","--","--","--","--","--","--","--",null,null,null,null,null,{"$f":"((Quarterly!EI53/Quarterly!EI52)^4)-1","v":1.8075766441105756E-2},{"$f":"((Quarterly!EJ53/Quarterly!EJ52)^4)-1","v":1.5240684868985666E-2},{"$f":"((Quarterly!EK53/Quarterly!EK52)^4)-1","v":1.7062526765740493E-2},null,null,null,null,null,{"$f":"((Quarterly!EQ53/Quarterly!EQ52)^4)-1","v":3.0387204140246649E-2},"--",{"$f":"((Quarterly!ES53/Quarterly!ES52)^4)-1","v":4.2774760782989807E-2},null,null,null,null,null,{"$f":"(Quarterly!EY53-Quarterly!EY52)*100","v":75.666666666666686},{"$f":"(Quarterly!EZ53-Quarterly!EZ52)*100","v":65.666666666666629},{"$f":"(Quarterly!FA53-Quarterly!FA52)*100","v":17.666666666666675},{"$f":"(Quarterly!FB53-Quarterly!FB52)*100","v":33.000000000000099},15.333333333333425,"--",{"$f":"(Quarterly!FE53-Quarterly!FE52)*100","v":82.666666666666714},{"$f":"(Quarterly!FF53-Quarterly!FF52)*100","v":108},"--",{"$f":"(Quarterly!FH53-Quarterly!FH52)*100","v":67.333333333333286},{"$f":"(Quarterly!FI53-Quarterly!FI52)*100","v":50.333333333333208},-57.666666666666792,null,null,null,null,null,"--","--","--","--","--","--","--","--","--",null,null,null,null,null,{"$f":"((Quarterly!GD53/Quarterly!GD52)^4)-1","v":0},"--","--","--","--","--","--","--","--"]
["69'Q4",{"$f":"((Quarterly!B54/Quarterly!B53)^4)-1","v":3.4248581178175197E-2},{"$f":"((Quarterly!C54/Quarterly!C53)^4)-1","v":-1.7346626292037981E-2},{"$f":"((Quarterly!D54/Quarterly!D53)^4)-1","v":1.4326873263454942E-3},{"$f":"((Quarterly!E54/Quarterly!E53)^4)-1","v":3.2334158731574636E-2},{"$f":"((Quarterly!F54/Quarterly!F53)^4)-1","v":-1.5126614239092007E-2},{"$f":"((Quarterly!G54/Quarterly!G53)^4)-1","v":2.7084273068249232E-2},{"$f":"((Quarterly!H54/Quarterly!H53)^4)-1","v":3.9065645251891823E-2},{"$f":"((Quarterly!I54/Quarterly!I53)^4)-1","v":-2.0756205535476191E-2},{"$f":"((Quarterly!J54/Quarterly!J53)^4)-1","v":-5.9577510381302323E-2},{"$f":"((Quarterly!K54/Quarterly!K53)^4)-1","v":-0.26148688682501575},{"$f":"((Quarterly!L54-Quarterly!L53))","v":-17.761000000000003},{"$f":"((Quarterly!M54/Quarterly!M53)^4)-1","v":-4.3222657262421693E-2},{"$f":"((Quarterly!N54/Quarterly!N53)^4)-1","v":0.14498712520961643},{"$f":"((Quarterly!O54/Quarterly!O53)^4)-1","v":-0.37384743582758329},{"$f":"((Quarterly!P54/Quarterly!P53)^4)-1","v":-5.1303600039467101E-2},{"$f":"((Quarterly!Q54/Quarterly!Q53)^4)-1","v":3.4694579662781111},null,null,null,null,null,"--","--",{"$f":"((Quarterly!Y54/Quarterly!Y53)^4)-1","v":7.883610938320551E-2},"--",{"$f":"((Quarterly!AA54/Quarterly!AA53)^4)-1","v":-7.2182911226233104E-2},{"$f":"((Quarterly!AB54/Quarterly!AB53)^4)-1","v":-0.28658256803192672},"--","--","--","--","--","--","--","--","--","--",{"$f":"((Quarterly!AM54/Quarterly!AM53)^4)-1","v":-2.483901435686553E-2},"--","--","--",{"$f":"Quarterly!AQ54-Quarterly!AQ53","v":-0.73333333333332718},"--","--",{"$f":"Quarterly!AT54-Quarterly!AT53","v":-1.06666666666667},"--","--",{"$f":"Quarterly!AW54-Quarterly!AW53","v":3.9000000000000057},{"$f":"Quarterly!AX54-Quarterly!AX53","v":-0.39999999999999858},{"$f":"Quarterly!AY54-Quarterly!AY53","v":0.26666666666667993},{"$f":"Quarterly!AZ54-Quarterly!AZ53","v":-1.8000000000000114},{"$f":"Quarterly!BA54-Quarterly!BA53","v":-2.4000000000000057},"--","--","--","--",{"$f":"((Quarterly!BF54/Quarterly!BF53)^4)-1","v":7.9673933250002493E-2},{"$f":"((Quarterly!BG54/Quarterly!BG53)^4)-1","v":-1.6692337060230877E-2},{"$f":"((Quarterly!BH54/Quarterly!BH53)^4)-1","v":1.5984747581367253E-2},{"$f":"((Quarterly!BI54/Quarterly!BI53)^4)-1","v":9.7919211853284782E-2},{"$f":"((Quarterly!BJ54/Quarterly!BJ53)^4)-1","v":-0.13452738142306631},"--",null,"--","--",null,null,null,null,null,{"$f":"((Quarterly!BT54/Quarterly!BT53)^4)-1","v":5.8535878655247009E-2},"--","--",{"$f":"((Quarterly!BW54/Quarterly!BW53)^4)-1","v":0.1074106415693612},{"$f":"((Quarterly!BX54/Quarterly!BX53)^4)-1","v":-0.25171233668109461},{"$f":"((Quarterly!BY54/Quarterly!BY53)^4)-1","v":-0.27334750798901808},"--","--",{"$f":"((Quarterly!CB54/Quarterly!CB53)^4)-1","v":0.14291539406554143},{"$f":"((Quarterly!CC54/Quarterly!CC53)^4)-1","v":0.11090346003765772},"--","--",null,"--","--",null,{"$f":"((Quarterly!CJ54/Quarterly!CJ53)^4)-1","v":0.13382742986069496},{"$f":"((Quarterly!CK54/Quarterly!CK53)^4)-1","v":7.7352900095241095E-2},{"$f":"((Quarterly!CL54/Quarterly!CL53)^4)-1","v":6.8466031080625545E-2},{"$f":"((Quarterly!CM54/Quarterly!CM53)^4)-1","v":-0.21972936896567541},{"$f":"((Quarterly!CN54/Quarterly!CN53)^4)-1","v":3.1635243805919977E-2},{"$f":"((Quarterly!CO54/Quarterly!CO53)^4)-1","v":-2.244999460742636E-2},{"$f":"((Quarterly!CP54/Quarterly!CP53)^4)-1","v":6.365090607190349E-2},{"$f":"((Quarterly!CQ54/Quarterly!CQ53)^4)-1","v":1.2100979006437029E-2},{"$f":"((Quarterly!CR54/Quarterly!CR53)^4)-1","v":0.76444474052394673},"--","--",null,null,null,null,null,{"$f":"((Quarterly!CZ54/Quarterly!CZ53)^4)-1","v":6.2798782480020909E-2},{"$f":"((Quarterly!DA54/Quarterly!DA53)^4)-1","v":5.6274930498523057E-2},null,null,null,null,null,{"$f":"((Quarterly!DG54/Quarterly!DG53)^4)-1","v":6.6170163148033811E-3},{"$f":"((Quarterly!DH54-Quarterly!DH53)*60)","v":-1.9999999999998863},{"$f":"Quarterly!DI54-Quarterly!DI53","v":3.3333333333345649E-2},"--",{"$f":"(Quarterly!DK54-Quarterly!DK53)*100","v":0},{"$f":"((Quarterly!DL54/Quarterly!DL53)^4)-1","v":-3.2716477816123524E-2},null,null,null,{"$f":"((Quarterly!DP54/Quarterly!DP53)^4)-1","v":1.5038076964530189E-2},null,null,null,"--",{"$f":"Quarterly!DU54-Quarterly!DU53","v":0.13333333333333375},"--","--","--","--","--","--","--","--",null,null,null,null,null,{"$f":"((Quarterly!EI54/Quarterly!EI53)^4)-1","v":-7.7888690534927751E-2},{"$f":"((Quarterly!EJ54/Quarterly!EJ53)^4)-1","v":-2.5000197791946066E-2},{"$f":"((Quarterly!EK54/Quarterly!EK53)^4)-1","v":-9.2371536297009005E-4},null,null,null,null,null,{"$f":"((Quarterly!EQ54/Quarterly!EQ53)^4)-1","v":3.7803040270341093E-2},"--",{"$f":"((Quarterly!ES54/Quarterly!ES53)^4)-1","v":6.0347283982687294E-2},null,null,null,null,null,{"$f":"(Quarterly!EY54-Quarterly!EY53)*100","v":0},{"$f":"(Quarterly!EZ54-Quarterly!EZ53)*100","v":-4.3333333333333002},{"$f":"(Quarterly!FA54-Quarterly!FA53)*100","v":40.333333333333243},{"$f":"(Quarterly!FB54-Quarterly!FB53)*100","v":45.666666666666615},5.3333333333333712,"--",{"$f":"(Quarterly!FE54-Quarterly!FE53)*100","v":33.000000000000099},{"$f":"(Quarterly!FF54-Quarterly!FF53)*100","v":24.666666666666615},"--",{"$f":"(Quarterly!FH54-Quarterly!FH53)*100","v":46.333333333333385},{"$f":"(Quarterly!FI54-Quarterly!FI53)*100","v":44.000000000000043},19.333333333333428,null,null,null,null,null,"--","--","--","--","--","--","--","--","--",null,null,null,null,null,{"$f":"((Quarterly!GD54/Quarterly!GD53)^4)-1","v":0},"--","--","--","--","--","--","--","--"]
["70'Q1",{"$f":"((Quarterly!B55/Quarterly!B54)^4)-1","v":5.0058933928593286E-2},{"$f":"((Quarterly!C55/Quarterly!C54)^4)-1","v":-7.0701855277206516E-3},{"$f":"((Quarterly!D55/Quarterly!D54)^4)-1","v":9.4382712592817608E-3},{"$f":"((Quarterly!E55/Quarterly!E54)^4)-1","v":2.494462960990429E-2},{"$f":"((Quarterly!F55/Quarterly!F54)^4)-1","v":-5.9955788653780817E-2},{"$f":"((Quarterly!G55/Quarterly!G54)^4)-1","v":3.4758404040202917E-2},{"$f":"((Quarterly!H55/Quarterly!H54)^4)-1","v":2.7501886403827669E-2},{"$f":"((Quarterly!I55/Quarterly!I54)^4)-1","v":-2.7805351565822312E-2},{"$f":"((Quarterly!J55/Quarterly!J54)^4)-1","v":-5.5926826020257336E-2},{"$f":"((Quarterly!K55/Quarterly!K54)^4)-1","v":8.0987640933574134E-3},{"$f":"((Quarterly!L55-Quarterly!L54))","v":-17.164999999999999},{"$f":"((Quarterly!M55/Quarterly!M54)^4)-1","v":-1.3039020868165219E-2},{"$f":"((Quarterly!N55/Quarterly!N54)^4)-1","v":3.1605471274586794E-2},{"$f":"((Quarterly!O55/Quarterly!O54)^4)-1","v":-0.12020453732952063},{"$f":"((Quarterly!P55/Quarterly!P54)^4)-1","v":-1.8821786154373132E-2},{"$f":"((Quarterly!Q55/Quarterly!Q54)^4)-1","v":8.8842550667111855},null,null,null,null,null,"--","--",{"$f":"((Quarterly!Y55/Quarterly!Y54)^4)-1","v":1.6365436385101795E-2},"--",{"$f":"((Quarterly!AA55/Quarterly!AA54)^4)-1","v":-0.1775057043496755},{"$f":"((Quarterly!AB55/Quarterly!AB54)^4)-1","v":-0.22860013075993946},"--","--","--","--","--","--","--","--","--","--",{"$f":"((Quarterly!AM55/Quarterly!AM54)^4)-1","v":-9.3441585253413395E-2},"--","--","--",{"$f":"Quarterly!AQ55-Quarterly!AQ54","v":-5.6000000000000085},"--","--",{"$f":"Quarterly!AT55-Quarterly!AT54","v":-5.63333333333334},"--","--",{"$f":"Quarterly!AW55-Quarterly!AW54","v":-3.7000000000000028},{"$f":"Quarterly!AX55-Quarterly!AX54","v":-4.5666666666666629},{"$f":"Quarterly!AY55-Quarterly!AY54","v":-8.8000000000000114},{"$f":"Quarterly!AZ55-Quarterly!AZ54","v":-4.4666666666666615},{"$f":"Quarterly!BA55-Quarterly!BA54","v":-10.93333333333333},"--","--","--","--",{"$f":"((Quarterly!BF55/Quarterly!BF54)^4)-1","v":7.4073792961789842E-2},{"$f":"((Quarterly!BG55/Quarterly!BG54)^4)-1","v":1.0640326678994949E-2},{"$f":"((Quarterly!BH55/Quarterly!BH54)^4)-1","v":8.0906728575620424E-3},{"$f":"((Quarterly!BI55/Quarterly!BI54)^4)-1","v":6.2991819249336167E-2},{"$f":"((Quarterly!BJ55/Quarterly!BJ54)^4)-1","v":-0.26647276508327955},"--",null,"--","--",null,null,null,null,null,{"$f":"((Quarterly!BT55/Quarterly!BT54)^4)-1","v":5.0494409807660512E-2},"--","--",{"$f":"((Quarterly!BW55/Quarterly!BW54)^4)-1","v":8.1730299872782242E-2},{"$f":"((Quarterly!BX55/Quarterly!BX54)^4)-1","v":-0.21229124194330684},{"$f":"((Quarterly!BY55/Quarterly!BY54)^4)-1","v":-0.25254396640318966},"--","--",{"$f":"((Quarterly!CB55/Quarterly!CB54)^4)-1","v":0.49545543524364888},{"$f":"((Quarterly!CC55/Quarterly!CC54)^4)-1","v":0.56754554012493941},"--","--",null,"--","--",null,{"$f":"((Quarterly!CJ55/Quarterly!CJ54)^4)-1","v":-0.20206278094825947},{"$f":"((Quarterly!CK55/Quarterly!CK54)^4)-1","v":7.1975337982060461E-2},{"$f":"((Quarterly!CL55/Quarterly!CL54)^4)-1","v":0.20838242301925636},{"$f":"((Quarterly!CM55/Quarterly!CM54)^4)-1","v":-0.25436646052629241},{"$f":"((Quarterly!CN55/Quarterly!CN54)^4)-1","v":3.9781194399914233E-2},{"$f":"((Quarterly!CO55/Quarterly!CO54)^4)-1","v":-7.5677658231447453E-2},{"$f":"((Quarterly!CP55/Quarterly!CP54)^4)-1","v":4.8567019156615876E-2},{"$f":"((Quarterly!CQ55/Quarterly!CQ54)^4)-1","v":1.0102308485725908E-2},{"$f":"((Quarterly!CR55/Quarterly!CR54)^4)-1","v":0.44810031835476472},"--","--",null,null,null,null,null,{"$f":"((Quarterly!CZ55/Quarterly!CZ54)^4)-1","v":6.5552449536000035E-2},{"$f":"((Quarterly!DA55/Quarterly!DA54)^4)-1","v":6.2590110838651292E-2},null,null,null,null,null,{"$f":"((Quarterly!DG55/Quarterly!DG54)^4)-1","v":-2.1785675623321787E-2},{"$f":"((Quarterly!DH55-Quarterly!DH54)*60)","v":-12.000000000000171},{"$f":"Quarterly!DI55-Quarterly!DI54","v":0.19999999999999574},"--",{"$f":"(Quarterly!DK55-Quarterly!DK54)*100","v":60.000000000000057},{"$f":"((Quarterly!DL55/Quarterly!DL54)^4)-1","v":-2.9893779216811023E-2},null,null,null,{"$f":"((Quarterly!DP55/Quarterly!DP54)^4)-1","v":9.1199323579682634E-3},null,null,null,"--",{"$f":"Quarterly!DU55-Quarterly!DU54","v":-6.6666666666667318E-2},"--","--","--","--","--","--","--","--",null,null,null,null,null,{"$f":"((Quarterly!EI55/Quarterly!EI54)^4)-1","v":-2.589749660106111E-2},{"$f":"((Quarterly!EJ55/Quarterly!EJ54)^4)-1","v":-2.3974418092869154E-3},{"$f":"((Quarterly!EK55/Quarterly!EK54)^4)-1","v":6.6492770391044509E-3},null,null,null,null,null,{"$f":"((Quarterly!EQ55/Quarterly!EQ54)^4)-1","v":6.0417639028832237E-2},"--",{"$f":"((Quarterly!ES55/Quarterly!ES54)^4)-1","v":4.8771637221461495E-2},null,null,null,null,null,{"$f":"(Quarterly!EY55-Quarterly!EY54)*100","v":-3.6666666666667069},{"$f":"(Quarterly!EZ55-Quarterly!EZ54)*100","v":-36.666666666666714},{"$f":"(Quarterly!FA55-Quarterly!FA54)*100","v":42.666666666666764},{"$f":"(Quarterly!FB55-Quarterly!FB54)*100","v":38.333333333333464},-4.3333333333333002,"--",{"$f":"(Quarterly!FE55-Quarterly!FE54)*100","v":-14.333333333333442},{"$f":"(Quarterly!FF55-Quarterly!FF54)*100","v":-34.666666666666579},"--",{"$f":"(Quarterly!FH55-Quarterly!FH54)*100","v":6.666666666666643},{"$f":"(Quarterly!FI55-Quarterly!FI54)*100","v":7.0000000000000284},41.666666666666607,null,null,null,null,null,"--","--","--","--","--","--","--","--","--",null,null,null,null,null,{"$f":"((Quarterly!GD55/Quarterly!GD54)^4)-1","v":0},"--","--","--","--","--","--","--","--"]
["70'Q2",{"$f":"((Quarterly!B56/Quarterly!B55)^4)-1","v":6.4460033494579738E-2},{"$f":"((Quarterly!C56/Quarterly!C55)^4)-1","v":7.0966084636245874E-3},{"$f":"((Quarterly!D56/Quarterly!D55)^4)-1","v":-7.3197185241230533E-3},{"$f":"((Quarterly!E56/Quarterly!E55)^4)-1","v":1.8584980562315279E-2},{"$f":"((Quarterly!F56/Quarterly!F55)^4)-1","v":4.7063894297891595E-2},{"$f":"((Quarterly!G56/Quarterly!G55)^4)-1","v":-2.5035494814910075E-3},{"$f":"((Quarterly!H56/Quarterly!H55)^4)-1","v":2.6780741382603779E-2},{"$f":"((Quarterly!I56/Quarterly!I55)^4)-1","v":-2.5853492359100838E-2},{"$f":"((Quarterly!J56/Quarterly!J55)^4)-1","v":-8.8982838654703467E-2},{"$f":"((Quarterly!K56/Quarterly!K55)^4)-1","v":-0.2418640139331818},{"$f":"((Quarterly!L56-Quarterly!L55))","v":13.963000000000001},{"$f":"((Quarterly!M56/Quarterly!M55)^4)-1","v":8.1429195600209558E-2},{"$f":"((Quarterly!N56/Quarterly!N55)^4)-1","v":0.18776236248570832},{"$f":"((Quarterly!O56/Quarterly!O55)^4)-1","v":-0.1659641319746763},{"$f":"((Quarterly!P56/Quarterly!P55)^4)-1","v":-4.5015337560762814E-2},{"$f":"((Quarterly!Q56/Quarterly!Q55)^4)-1","v":3.6137564485095579},null,null,null,null,null,"--","--",{"$f":"((Quarterly!Y56/Quarterly!Y55)^4)-1","v":1.4166372474451183E-2},"--",{"$f":"((Quarterly!AA56/Quarterly!AA55)^4)-1","v":-1.7826467857776529E-2},{"$f":"((Quarterly!AB56/Quarterly!AB55)^4)-1","v":0.32150369910837684},"--","--","--","--","--","--","--","--","--","--",{"$f":"((Quarterly!AM56/Quarterly!AM55)^4)-1","v":-2.1825074111491927E-2},"--","--","--",{"$f":"Quarterly!AQ56-Quarterly!AQ55","v":0.10000000000000853},"--","--",{"$f":"Quarterly!AT56-Quarterly!AT55","v":-3.8333333333333215},"--","--",{"$f":"Quarterly!AW56-Quarterly!AW55","v":-6.7333333333333343},{"$f":"Quarterly!AX56-Quarterly!AX55","v":2.4666666666666615},{"$f":"Quarterly!AY56-Quarterly!AY55","v":1.4333333333333371},{"$f":"Quarterly!AZ56-Quarterly!AZ55","v":-0.29999999999999716},{"$f":"Quarterly!BA56-Quarterly!BA55","v":5.7000000000000028},"--","--","--","--",{"$f":"((Quarterly!BF56/Quarterly!BF55)^4)-1","v":6.5150219728671965E-2},{"$f":"((Quarterly!BG56/Quarterly!BG55)^4)-1","v":6.2361892070891045E-2},{"$f":"((Quarterly!BH56/Quarterly!BH55)^4)-1","v":7.644932925760628E-3},{"$f":"((Quarterly!BI56/Quarterly!BI55)^4)-1","v":2.7065993540673627E-3},{"$f":"((Quarterly!BJ56/Quarterly!BJ55)^4)-1","v":-5.4847823996709844E-2},"--",null,"--","--",null,null,null,null,null,{"$f":"((Quarterly!BT56/Quarterly!BT55)^4)-1","v":2.3311573464153801E-2},"--","--",{"$f":"((Quarterly!BW56/Quarterly!BW55)^4)-1","v":5.3785031470585665E-2},{"$f":"((Quarterly!BX56/Quarterly!BX55)^4)-1","v":0.27208634248362573},{"$f":"((Quarterly!BY56/Quarterly!BY55)^4)-1","v":0.87187633188724334},"--","--",{"$f":"((Quarterly!CB56/Quarterly!CB55)^4)-1","v":0.16798567333543546},{"$f":"((Quarterly!CC56/Quarterly!CC55)^4)-1","v":0.27425636381572027},"--","--",null,"--","--",null,{"$f":"((Quarterly!CJ56/Quarterly!CJ55)^4)-1","v":0.69760187018413888},{"$f":"((Quarterly!CK56/Quarterly!CK55)^4)-1","v":8.7642310349222319E-2},{"$f":"((Quarterly!CL56/Quarterly!CL55)^4)-1","v":0.34431713603440062},{"$f":"((Quarterly!CM56/Quarterly!CM55)^4)-1","v":0.48173643545101674},{"$f":"((Quarterly!CN56/Quarterly!CN55)^4)-1","v":4.8038010399069186E-2},{"$f":"((Quarterly!CO56/Quarterly!CO55)^4)-1","v":-0.11445753558616278},{"$f":"((Quarterly!CP56/Quarterly!CP55)^4)-1","v":1.9078764862072939E-2},{"$f":"((Quarterly!CQ56/Quarterly!CQ55)^4)-1","v":1.1981309961410558E-2},{"$f":"((Quarterly!CR56/Quarterly!CR55)^4)-1","v":0.42125854970554966},"--","--",null,null,null,null,null,{"$f":"((Quarterly!CZ56/Quarterly!CZ55)^4)-1","v":5.7179717211833125E-2},{"$f":"((Quarterly!DA56/Quarterly!DA55)^4)-1","v":7.5698818916301036E-2},null,null,null,null,null,{"$f":"((Quarterly!DG56/Quarterly!DG55)^4)-1","v":-5.4085207923660228E-2},{"$f":"((Quarterly!DH56-Quarterly!DH55)*60)","v":-17.999999999999829},{"$f":"Quarterly!DI56-Quarterly!DI55","v":-9.9999999999994316E-2},"--",{"$f":"(Quarterly!DK56-Quarterly!DK55)*100","v":59.999999999999964},{"$f":"((Quarterly!DL56/Quarterly!DL55)^4)-1","v":-6.9144010830091474E-2},null,null,null,{"$f":"((Quarterly!DP56/Quarterly!DP55)^4)-1","v":-8.0528996641280326E-3},null,null,null,"--",{"$f":"Quarterly!DU56-Quarterly!DU55","v":0},"--","--","--","--","--","--","--","--",null,null,null,null,null,{"$f":"((Quarterly!EI56/Quarterly!EI55)^4)-1","v":-3.6060316373357493E-2},{"$f":"((Quarterly!EJ56/Quarterly!EJ55)^4)-1","v":-7.6953502889518521E-3},{"$f":"((Quarterly!EK56/Quarterly!EK55)^4)-1","v":8.759919189730736E-3},null,null,null,null,null,{"$f":"((Quarterly!EQ56/Quarterly!EQ55)^4)-1","v":2.2017523782701165E-2},"--",{"$f":"((Quarterly!ES56/Quarterly!ES55)^4)-1","v":3.7715559668086707E-2},null,null,null,null,null,{"$f":"(Quarterly!EY56-Quarterly!EY55)*100","v":-46.333333333333293},{"$f":"(Quarterly!EZ56-Quarterly!EZ55)*100","v":-69.333333333333243},{"$f":"(Quarterly!FA56-Quarterly!FA55)*100","v":24.666666666666703},{"$f":"(Quarterly!FB56-Quarterly!FB55)*100","v":21.999999999999886},-2.6666666666668171,"--",{"$f":"(Quarterly!FE56-Quarterly!FE55)*100","v":-53.333333333333321},{"$f":"(Quarterly!FF56-Quarterly!FF55)*100","v":-10.000000000000053},"--",{"$f":"(Quarterly!FH56-Quarterly!FH55)*100","v":4.0000000000000036},{"$f":"(Quarterly!FI56-Quarterly!FI55)*100","v":34.666666666666671},44.666666666666728,null,null,null,null,null,"--","--","--","--","--","--","--","--","--",null,null,null,null,null,{"$f":"((Quarterly!GD56/Quarterly!GD55)^4)-1","v":0},"--","--","--","--","--","--","--","--"]
["70'Q3",{"$f":"((Quarterly!B57/Quarterly!B56)^4)-1","v":7.0379544430978047E-2},{"$f":"((Quarterly!C57/Quarterly!C56)^4)-1","v":3.5907856510300595E-2},{"$f":"((Quarterly!D57/Quarterly!D56)^4)-1","v":3.6152803586912086E-2},{"$f":"((Quarterly!E57/Quarterly!E56)^4)-1","v":3.5550861736866946E-2},{"$f":"((Quarterly!F57/Quarterly!F56)^4)-1","v":1.4604220884819386E-2},{"$f":"((Quarterly!G57/Quarterly!G56)^4)-1","v":2.9050733107873761E-2},{"$f":"((Quarterly!H57/Quarterly!H56)^4)-1","v":4.0496280262999562E-2},{"$f":"((Quarterly!I57/Quarterly!I56)^4)-1","v":1.4040058696654478E-2},{"$f":"((Quarterly!J57/Quarterly!J56)^4)-1","v":1.5305685424845672E-2},{"$f":"((Quarterly!K57/Quarterly!K56)^4)-1","v":0.22996564499039995},{"$f":"((Quarterly!L57-Quarterly!L56))","v":8.9999999999999858E-2},{"$f":"((Quarterly!M57/Quarterly!M56)^4)-1","v":-9.1452352604051157E-3},{"$f":"((Quarterly!N57/Quarterly!N56)^4)-1","v":-1.1911562503667095E-2},{"$f":"((Quarterly!O57/Quarterly!O56)^4)-1","v":-1.1031945629418338E-3},{"$f":"((Quarterly!P57/Quarterly!P56)^4)-1","v":1.7569317157682063E-2},{"$f":"((Quarterly!Q57/Quarterly!Q56)^4)-1","v":1.1551996150477004},null,null,null,null,null,"--","--",{"$f":"((Quarterly!Y57/Quarterly!Y56)^4)-1","v":9.3830002156828796E-2},"--",{"$f":"((Quarterly!AA57/Quarterly!AA56)^4)-1","v":6.7731429250164288E-2},{"$f":"((Quarterly!AB57/Quarterly!AB56)^4)-1","v":-8.3399240440591993E-2},"--","--","--","--","--","--","--","--","--","--",{"$f":"((Quarterly!AM57/Quarterly!AM56)^4)-1","v":-1.4242054716731678E-2},"--","--","--",{"$f":"Quarterly!AQ57-Quarterly!AQ56","v":-0.80000000000000426},"--","--",{"$f":"Quarterly!AT57-Quarterly!AT56","v":-0.89999999999999858},"--","--",{"$f":"Quarterly!AW57-Quarterly!AW56","v":2.1333333333333258},{"$f":"Quarterly!AX57-Quarterly!AX56","v":1.4333333333333371},{"$f":"Quarterly!AY57-Quarterly!AY56","v":-5.2000000000000028},{"$f":"Quarterly!AZ57-Quarterly!AZ56","v":2.9666666666666686},{"$f":"Quarterly!BA57-Quarterly!BA56","v":-13.199999999999996},"--","--","--","--",{"$f":"((Quarterly!BF57/Quarterly!BF56)^4)-1","v":6.7341995978214442E-2},{"$f":"((Quarterly!BG57/Quarterly!BG56)^4)-1","v":6.285722484951739E-2},{"$f":"((Quarterly!BH57/Quarterly!BH56)^4)-1","v":2.4198893786305575E-2},{"$f":"((Quarterly!BI57/Quarterly!BI56)^4)-1","v":4.1305337903168038E-3},{"$f":"((Quarterly!BJ57/Quarterly!BJ56)^4)-1","v":-1.4059561710384472E-3},"--",null,"--","--",null,null,null,null,null,{"$f":"((Quarterly!BT57/Quarterly!BT56)^4)-1","v":5.803631753015992E-2},"--","--",{"$f":"((Quarterly!BW57/Quarterly!BW56)^4)-1","v":4.7034128518085749E-2},{"$f":"((Quarterly!BX57/Quarterly!BX56)^4)-1","v":0.62890636636626618},{"$f":"((Quarterly!BY57/Quarterly!BY56)^4)-1","v":0.30930408062041481},"--","--",{"$f":"((Quarterly!CB57/Quarterly!CB56)^4)-1","v":1.7696093392733703E-2},{"$f":"((Quarterly!CC57/Quarterly!CC56)^4)-1","v":9.5897241026236202E-2},"--","--",null,"--","--",null,{"$f":"((Quarterly!CJ57/Quarterly!CJ56)^4)-1","v":0.55939709295628215},{"$f":"((Quarterly!CK57/Quarterly!CK56)^4)-1","v":6.8544813695856632E-2},{"$f":"((Quarterly!CL57/Quarterly!CL56)^4)-1","v":0.33295899549243568},{"$f":"((Quarterly!CM57/Quarterly!CM56)^4)-1","v":0.49832925149769691},{"$f":"((Quarterly!CN57/Quarterly!CN56)^4)-1","v":6.3975024789158175E-2},{"$f":"((Quarterly!CO57/Quarterly!CO56)^4)-1","v":4.1048046355242729E-2},{"$f":"((Quarterly!CP57/Quarterly!CP56)^4)-1","v":5.0644525160512543E-2},{"$f":"((Quarterly!CQ57/Quarterly!CQ56)^4)-1","v":1.3419059990074977E-2},{"$f":"((Quarterly!CR57/Quarterly!CR56)^4)-1","v":0.4451017493400462},"--","--",null,null,null,null,null,{"$f":"((Quarterly!CZ57/Quarterly!CZ56)^4)-1","v":4.2062665368373553E-2},{"$f":"((Quarterly!DA57/Quarterly!DA56)^4)-1","v":5.3634526258384385E-2},null,null,null,null,null,{"$f":"((Quarterly!DG57/Quarterly!DG56)^4)-1","v":-1.7797108471022005E-2},{"$f":"((Quarterly!DH57-Quarterly!DH56)*60)","v":-2.0000000000003126},{"$f":"Quarterly!DI57-Quarterly!DI56","v":-6.6666666666684193E-2},"--",{"$f":"(Quarterly!DK57-Quarterly!DK56)*100","v":40.000000000000036},{"$f":"((Quarterly!DL57/Quarterly!DL56)^4)-1","v":-5.9052249359617726E-2},null,null,null,{"$f":"((Quarterly!DP57/Quarterly!DP56)^4)-1","v":-1.0562121415080727E-2},null,null,null,"--",{"$f":"Quarterly!DU57-Quarterly!DU56","v":0.66666666666666607},"--","--","--","--","--","--","--","--",null,null,null,null,null,{"$f":"((Quarterly!EI57/Quarterly!EI56)^4)-1","v":5.099252557760714E-2},{"$f":"((Quarterly!EJ57/Quarterly!EJ56)^4)-1","v":4.1684028718263377E-2},{"$f":"((Quarterly!EK57/Quarterly!EK56)^4)-1","v":3.6196458153824995E-2},null,null,null,null,null,{"$f":"((Quarterly!EQ57/Quarterly!EQ56)^4)-1","v":2.1896998801708367E-2},"--",{"$f":"((Quarterly!ES57/Quarterly!ES56)^4)-1","v":3.7363302576026269E-2},null,null,null,null,null,{"$f":"(Quarterly!EY57-Quarterly!EY56)*100","v":-5.6666666666667531},{"$f":"(Quarterly!EZ57-Quarterly!EZ56)*100","v":-117.66666666666667},{"$f":"(Quarterly!FA57-Quarterly!FA56)*100","v":8.0000000000000071},{"$f":"(Quarterly!FB57-Quarterly!FB56)*100","v":43.333333333333357},35.33333333333335,"--",{"$f":"(Quarterly!FE57-Quarterly!FE56)*100","v":-34.999999999999964},{"$f":"(Quarterly!FF57-Quarterly!FF56)*100","v":-51.666666666666572},"--",{"$f":"(Quarterly!FH57-Quarterly!FH56)*100","v":-29.000000000000004},{"$f":"(Quarterly!FI57-Quarterly!FI56)*100","v":-25.333333333333385},26.333333333333186,null,null,null,null,null,"--","--","--","--","--","--","--","--","--",null,null,null,null,null,{"$f":"((Quarterly!GD57/Quarterly!GD56)^4)-1","v":-4.6912558680978544E-2},"--","--","--","--","--","--","--","--"]
["70'Q4",{"$f":"((Quarterly!B58/Quarterly!B57)^4)-1","v":1.1074108970793306E-2},{"$f":"((Quarterly!C58/Quarterly!C57)^4)-1","v":-4.0512966308139831E-2},{"$f":"((Quarterly!D58/Quarterly!D57)^4)-1","v":-7.3186224238752651E-3},{"$f":"((Quarterly!E58/Quarterly!E57)^4)-1","v":-1.077403701851809E-2},{"$f":"((Quarterly!F58/Quarterly!F57)^4)-1","v":-0.24029345911437505},{"$f":"((Quarterly!G58/Quarterly!G57)^4)-1","v":4.7453681871360454E-2},{"$f":"((Quarterly!H58/Quarterly!H57)^4)-1","v":-1.7843794368076815E-2},{"$f":"((Quarterly!I58/Quarterly!I57)^4)-1","v":-0.13027130392745667},{"$f":"((Quarterly!J58/Quarterly!J57)^4)-1","v":-0.21166496884479014},{"$f":"((Quarterly!K58/Quarterly!K57)^4)-1","v":0.4906918491943808},{"$f":"((Quarterly!L58-Quarterly!L57))","v":-32.725999999999999},{"$f":"((Quarterly!M58/Quarterly!M57)^4)-1","v":6.3492413462070685E-2},{"$f":"((Quarterly!N58/Quarterly!N57)^4)-1","v":3.7430687441995625E-2},{"$f":"((Quarterly!O58/Quarterly!O57)^4)-1","v":0.1415033988162393},{"$f":"((Quarterly!P58/Quarterly!P57)^4)-1","v":2.0998623327812549E-3},{"$f":"((Quarterly!Q58/Quarterly!Q57)^4)-1","v":0.63556763355619905},null,null,null,null,null,"--","--",{"$f":"((Quarterly!Y58/Quarterly!Y57)^4)-1","v":7.0036734458979399E-2},"--",{"$f":"((Quarterly!AA58/Quarterly!AA57)^4)-1","v":-0.19085780745188585},{"$f":"((Quarterly!AB58/Quarterly!AB57)^4)-1","v":-0.23337876202613717},"--","--","--","--","--","--","--","--","--","--",{"$f":"((Quarterly!AM58/Quarterly!AM57)^4)-1","v":-8.3707853894474993E-2},"--","--","--",{"$f":"Quarterly!AQ58-Quarterly!AQ57","v":-4.4666666666666686},"--","--",{"$f":"Quarterly!AT58-Quarterly!AT57","v":-2.4666666666666686},"--","--",{"$f":"Quarterly!AW58-Quarterly!AW57","v":0},{"$f":"Quarterly!AX58-Quarterly!AX57","v":-3.1000000000000014},{"$f":"Quarterly!AY58-Quarterly!AY57","v":-3.7333333333333343},{"$f":"Quarterly!AZ58-Quarterly!AZ57","v":-6.6333333333333471},{"$f":"Quarterly!BA58-Quarterly!BA57","v":-9.3666666666666671},"--","--","--","--",{"$f":"((Quarterly!BF58/Quarterly!BF57)^4)-1","v":4.0353883595961149E-2},{"$f":"((Quarterly!BG58/Quarterly!BG57)^4)-1","v":-3.3827664120178347E-2},{"$f":"((Quarterly!BH58/Quarterly!BH57)^4)-1","v":-1.7968967529944035E-2},{"$f":"((Quarterly!BI58/Quarterly!BI57)^4)-1","v":7.6696575760415664E-2},{"$f":"((Quarterly!BJ58/Quarterly!BJ57)^4)-1","v":-0.27188358736686991},"--",null,"--","--",null,null,null,null,null,{"$f":"((Quarterly!BT58/Quarterly!BT57)^4)-1","v":4.2800467671295195E-2},"--","--",{"$f":"((Quarterly!BW58/Quarterly!BW57)^4)-1","v":7.8445305448790803E-2},{"$f":"((Quarterly!BX58/Quarterly!BX57)^4)-1","v":0.75242645186358637},{"$f":"((Quarterly!BY58/Quarterly!BY57)^4)-1","v":0.85007013951530563},"--","--",{"$f":"((Quarterly!CB58/Quarterly!CB57)^4)-1","v":0.23186775482737443},{"$f":"((Quarterly!CC58/Quarterly!CC57)^4)-1","v":0.32255361003202609},"--","--",null,"--","--",null,{"$f":"((Quarterly!CJ58/Quarterly!CJ57)^4)-1","v":0.40032543049526192},{"$f":"((Quarterly!CK58/Quarterly!CK57)^4)-1","v":4.1515941236298648E-2},{"$f":"((Quarterly!CL58/Quarterly!CL57)^4)-1","v":4.2932557267784999E-2},{"$f":"((Quarterly!CM58/Quarterly!CM57)^4)-1","v":0.80390164371104933},{"$f":"((Quarterly!CN58/Quarterly!CN57)^4)-1","v":-1.0158745562397264E-2},{"$f":"((Quarterly!CO58/Quarterly!CO57)^4)-1","v":9.4273179389022799E-2},{"$f":"((Quarterly!CP58/Quarterly!CP57)^4)-1","v":2.6661581114480137E-2},{"$f":"((Quarterly!CQ58/Quarterly!CQ57)^4)-1","v":1.4122210157894388E-2},{"$f":"((Quarterly!CR58/Quarterly!CR57)^4)-1","v":0.34880441064307277},"--","--",null,null,null,null,null,{"$f":"((Quarterly!CZ58/Quarterly!CZ57)^4)-1","v":5.9346856713344609E-2},{"$f":"((Quarterly!DA58/Quarterly!DA57)^4)-1","v":6.647818816251827E-2},null,null,null,null,null,{"$f":"((Quarterly!DG58/Quarterly!DG57)^4)-1","v":-6.1519683582488494E-2},{"$f":"((Quarterly!DH58-Quarterly!DH57)*60)","v":-9.9999999999998579},{"$f":"Quarterly!DI58-Quarterly!DI57","v":0.10000000000000853},"--",{"$f":"(Quarterly!DK58-Quarterly!DK57)*100","v":66.6666666666666},{"$f":"((Quarterly!DL58/Quarterly!DL57)^4)-1","v":-0.13112215401918925},null,null,null,{"$f":"((Quarterly!DP58/Quarterly!DP57)^4)-1","v":-2.2647830812175807E-2},null,null,null,"--",{"$f":"Quarterly!DU58-Quarterly!DU57","v":0.33333333333333393},"--","--","--","--","--","--","--","--",null,null,null,null,null,{"$f":"((Quarterly!EI58/Quarterly!EI57)^4)-1","v":-1.2487785661083328E-2},{"$f":"((Quarterly!EJ58/Quarterly!EJ57)^4)-1","v":-1.4672377662422242E-2},{"$f":"((Quarterly!EK58/Quarterly!EK57)^4)-1","v":-1.8214567376943158E-2},null,null,null,null,null,{"$f":"((Quarterly!EQ58/Quarterly!EQ57)^4)-1","v":7.2201873060921962E-3},"--",{"$f":"((Quarterly!ES58/Quarterly!ES57)^4)-1","v":8.2079934772896657E-2},null,null,null,null,null,{"$f":"(Quarterly!EY58-Quarterly!EY57)*100","v":-70.999999999999815},{"$f":"(Quarterly!EZ58-Quarterly!EZ57)*100","v":-113.66666666666659},{"$f":"(Quarterly!FA58-Quarterly!FA57)*100","v":-31.333333333333435},{"$f":"(Quarterly!FB58-Quarterly!FB57)*100","v":-13.333333333333464},17.999999999999972,"--",{"$f":"(Quarterly!FE58-Quarterly!FE57)*100","v":-97.333333333333272},{"$f":"(Quarterly!FF58-Quarterly!FF57)*100","v":-129.00000000000017},"--",{"$f":"(Quarterly!FH58-Quarterly!FH57)*100","v":-97.000000000000057},{"$f":"(Quarterly!FI58-Quarterly!FI57)*100","v":-60.666666666666735},68.333333333333428,null,null,null,null,null,"--","--","--","--","--","--","--","--","--",null,null,null,null,null,{"$f":"((Quarterly!GD58/Quarterly!GD57)^4)-1","v":0.10457222383045939},"--","--","--","--","--","--","--","--"]
["71'Q1",{"$f":"((Quarterly!B59/Quarterly!B58)^4)-1","v":0.18099364017938324},{"$f":"((Quarterly!C59/Quarterly!C58)^4)-1","v":0.11148217057002507},{"$f":"((Quarterly!D59/Quarterly!D58)^4)-1","v":4.9310880936922485E-2},{"$f":"((Quarterly!E59/Quarterly!E58)^4)-1","v":7.8700981094310452E-2},{"$f":"((Quarterly!F59/Quarterly!F58)^4)-1","v":0.50291803489965092},{"$f":"((Quarterly!G59/Quarterly!G58)^4)-1","v":1.6475255532219624E-2},{"$f":"((Quarterly!H59/Quarterly!H58)^4)-1","v":8.1564880022430897E-2},{"$f":"((Quarterly!I59/Quarterly!I58)^4)-1","v":3.3407272839002022E-2},{"$f":"((Quarterly!J59/Quarterly!J58)^4)-1","v":8.4468810154190166E-3},{"$f":"((Quarterly!K59/Quarterly!K58)^4)-1","v":0.22628051602572397},{"$f":"((Quarterly!L59-Quarterly!L58))","v":56.95},{"$f":"((Quarterly!M59/Quarterly!M58)^4)-1","v":-4.6324122861429951E-2},{"$f":"((Quarterly!N59/Quarterly!N58)^4)-1","v":1.511212285137109E-2},{"$f":"((Quarterly!O59/Quarterly!O58)^4)-1","v":-0.20456886394901852},{"$f":"((Quarterly!P59/Quarterly!P58)^4)-1","v":-5.6839911167146706E-2},{"$f":"((Quarterly!Q59/Quarterly!Q58)^4)-1","v":7.5645802091237169E-2},null,null,null,null,null,"--","--",{"$f":"((Quarterly!Y59/Quarterly!Y58)^4)-1","v":5.0734472912585593E-2},"--",{"$f":"((Quarterly!AA59/Quarterly!AA58)^4)-1","v":0.67616979378749731},{"$f":"((Quarterly!AB59/Quarterly!AB58)^4)-1","v":1.0275843895730947},"--","--","--","--","--","--","--","--","--","--",{"$f":"((Quarterly!AM59/Quarterly!AM58)^4)-1","v":7.9376487557233588E-2},"--","--","--",{"$f":"Quarterly!AQ59-Quarterly!AQ58","v":8.7999999999999901},"--","--",{"$f":"Quarterly!AT59-Quarterly!AT58","v":6.3999999999999986},"--","--",{"$f":"Quarterly!AW59-Quarterly!AW58","v":3.4000000000000057},{"$f":"Quarterly!AX59-Quarterly!AX58","v":11.733333333333327},{"$f":"Quarterly!AY59-Quarterly!AY58","v":-1.2333333333333343},{"$f":"Quarterly!AZ59-Quarterly!AZ58","v":11.833333333333343},{"$f":"Quarterly!BA59-Quarterly!BA58","v":4.8999999999999986},"--","--","--","--",{"$f":"((Quarterly!BF59/Quarterly!BF58)^4)-1","v":8.4915308489045049E-2},{"$f":"((Quarterly!BG59/Quarterly!BG58)^4)-1","v":0.12143634028135564},{"$f":"((Quarterly!BH59/Quarterly!BH58)^4)-1","v":4.9203588617434901E-2},{"$f":"((Quarterly!BI59/Quarterly!BI58)^4)-1","v":-3.2373698019812491E-2},{"$f":"((Quarterly!BJ59/Quarterly!BJ58)^4)-1","v":0.9559119673134433},"--",null,"--","--",null,null,null,null,null,{"$f":"((Quarterly!BT59/Quarterly!BT58)^4)-1","v":6.5001532222543457E-2},"--","--",{"$f":"((Quarterly!BW59/Quarterly!BW58)^4)-1","v":2.9418683332436801E-2},{"$f":"((Quarterly!BX59/Quarterly!BX58)^4)-1","v":0.3113703432499908},{"$f":"((Quarterly!BY59/Quarterly!BY58)^4)-1","v":0.13640988286378786},"--","--",{"$f":"((Quarterly!CB59/Quarterly!CB58)^4)-1","v":-0.21946438860792572},{"$f":"((Quarterly!CC59/Quarterly!CC58)^4)-1","v":-0.14975670394146667},"--","--",null,"--","--",null,{"$f":"((Quarterly!CJ59/Quarterly!CJ58)^4)-1","v":0.6283999570085903},{"$f":"((Quarterly!CK59/Quarterly!CK58)^4)-1","v":9.4055488439997337E-2},{"$f":"((Quarterly!CL59/Quarterly!CL58)^4)-1","v":0.15896055912322971},{"$f":"((Quarterly!CM59/Quarterly!CM58)^4)-1","v":0.26081191327492026},{"$f":"((Quarterly!CN59/Quarterly!CN58)^4)-1","v":8.268780380828411E-2},{"$f":"((Quarterly!CO59/Quarterly!CO58)^4)-1","v":0.12043078568186782},{"$f":"((Quarterly!CP59/Quarterly!CP58)^4)-1","v":0.12059619092912399},{"$f":"((Quarterly!CQ59/Quarterly!CQ58)^4)-1","v":1.2608325526169528E-2},{"$f":"((Quarterly!CR59/Quarterly!CR58)^4)-1","v":3.7322187494283749},"--","--",null,null,null,null,null,{"$f":"((Quarterly!CZ59/Quarterly!CZ58)^4)-1","v":3.4097551049787178E-2},{"$f":"((Quarterly!DA59/Quarterly!DA58)^4)-1","v":3.8861897968930581E-2},null,null,null,null,null,{"$f":"((Quarterly!DG59/Quarterly!DG58)^4)-1","v":1.3784977677540722E-2},{"$f":"((Quarterly!DH59-Quarterly!DH58)*60)","v":-1.9999999999998863},{"$f":"Quarterly!DI59-Quarterly!DI58","v":-0.23333333333333428},"--",{"$f":"(Quarterly!DK59-Quarterly!DK58)*100","v":10.000000000000053},{"$f":"((Quarterly!DL59/Quarterly!DL58)^4)-1","v":1.1230149276883372E-2},null,null,null,{"$f":"((Quarterly!DP59/Quarterly!DP58)^4)-1","v":1.5448755351086696E-2},null,null,null,"--",{"$f":"Quarterly!DU59-Quarterly!DU58","v":0.7333333333333325},"--","--","--","--","--","--","--","--",null,null,null,null,null,{"$f":"((Quarterly!EI59/Quarterly!EI58)^4)-1","v":0.14356986594787879},{"$f":"((Quarterly!EJ59/Quarterly!EJ58)^4)-1","v":0.1059528957450806},{"$f":"((Quarterly!EK59/Quarterly!EK58)^4)-1","v":8.5911404477020392E-2},null,null,null,null,null,{"$f":"((Quarterly!EQ59/Quarterly!EQ58)^4)-1","v":5.500797182302497E-2},"--",{"$f":"((Quarterly!ES59/Quarterly!ES58)^4)-1","v":4.2986895507955314E-2},null,null,null,null,null,{"$f":"(Quarterly!EY59-Quarterly!EY58)*100","v":-136.33333333333343},{"$f":"(Quarterly!EZ59-Quarterly!EZ58)*100","v":-171.00000000000003},{"$f":"(Quarterly!FA59-Quarterly!FA58)*100","v":-68.999999999999858},{"$f":"(Quarterly!FB59-Quarterly!FB58)*100","v":-74.66666666666643},-5.6666666666665719,"--",{"$f":"(Quarterly!FE59-Quarterly!FE58)*100","v":-151.33333333333346},{"$f":"(Quarterly!FF59-Quarterly!FF58)*100","v":-159.66666666666657},"--",{"$f":"(Quarterly!FH59-Quarterly!FH58)*100","v":-102.99999999999994},{"$f":"(Quarterly!FI59-Quarterly!FI58)*100","v":-83.6666666666666},75.999999999999972,null,null,null,null,null,"--","--","--","--","--","--","--","--","--",null,null,null,null,null,{"$f":"((Quarterly!GD59/Quarterly!GD58)^4)-1","v":0.21141765516187139},"--","--","--","--","--","--","--","--"]
["71'Q2",{"$f":"((Quarterly!B60/Quarterly!B59)^4)-1","v":7.7913021506663682E-2},{"$f":"((Quarterly!C60/Quarterly!C59)^4)-1","v":2.3023633630256057E-2},{"$f":"((Quarterly!D60/Quarterly!D59)^4)-1","v":2.7912108006017622E-2},{"$f":"((Quarterly!E60/Quarterly!E59)^4)-1","v":3.7291740623083269E-2},{"$f":"((Quarterly!F60/Quarterly!F59)^4)-1","v":9.4156346867410035E-2},{"$f":"((Quarterly!G60/Quarterly!G59)^4)-1","v":9.1750111710584559E-3},{"$f":"((Quarterly!H60/Quarterly!H59)^4)-1","v":4.6549910049248133E-2},{"$f":"((Quarterly!I60/Quarterly!I59)^4)-1","v":5.5474573115794401E-2},{"$f":"((Quarterly!J60/Quarterly!J59)^4)-1","v":3.6293108282180686E-2},{"$f":"((Quarterly!K60/Quarterly!K59)^4)-1","v":0.46672997848756759},{"$f":"((Quarterly!L60-Quarterly!L59))","v":-6.2719999999999985},{"$f":"((Quarterly!M60/Quarterly!M59)^4)-1","v":0.33762757580841107},{"$f":"((Quarterly!N60/Quarterly!N59)^4)-1","v":-7.0057214161318715E-3},{"$f":"((Quarterly!O60/Quarterly!O59)^4)-1","v":1.9157089406930372},{"$f":"((Quarterly!P60/Quarterly!P59)^4)-1","v":-9.0770719314611226E-3},{"$f":"((Quarterly!Q60/Quarterly!Q59)^4)-1","v":0.75968630369220302},null,null,null,null,null,"--","--",{"$f":"((Quarterly!Y60/Quarterly!Y59)^4)-1","v":4.740996552462784E-2},"--",{"$f":"((Quarterly!AA60/Quarterly!AA59)^4)-1","v":0.18480725412197874},{"$f":"((Quarterly!AB60/Quarterly!AB59)^4)-1","v":9.6654513405157516E-2},"--","--","--","--","--","--","--","--","--","--",{"$f":"((Quarterly!AM60/Quarterly!AM59)^4)-1","v":3.6726440074866806E-2},"--","--","--",{"$f":"Quarterly!AQ60-Quarterly!AQ59","v":2.8666666666666742},"--","--",{"$f":"Quarterly!AT60-Quarterly!AT59","v":2.8666666666666671},"--","--",{"$f":"Quarterly!AW60-Quarterly!AW59","v":7.6666666666666572},{"$f":"Quarterly!AX60-Quarterly!AX59","v":3.3333333333338544E-2},{"$f":"Quarterly!AY60-Quarterly!AY59","v":7.9333333333333229},{"$f":"Quarterly!AZ60-Quarterly!AZ59","v":2.5},{"$f":"Quarterly!BA60-Quarterly!BA59","v":5.7333333333333272},"--","--","--","--",{"$f":"((Quarterly!BF60/Quarterly!BF59)^4)-1","v":6.0201735356104846E-2},{"$f":"((Quarterly!BG60/Quarterly!BG59)^4)-1","v":1.3552708389477974E-2},{"$f":"((Quarterly!BH60/Quarterly!BH59)^4)-1","v":2.2101122390333128E-2},{"$f":"((Quarterly!BI60/Quarterly!BI59)^4)-1","v":4.5907965592584254E-2},{"$f":"((Quarterly!BJ60/Quarterly!BJ59)^4)-1","v":0.15579804767350924},"--",null,"--","--",null,null,null,null,null,{"$f":"((Quarterly!BT60/Quarterly!BT59)^4)-1","v":0.1222534225262577},"--","--",{"$f":"((Quarterly!BW60/Quarterly!BW59)^4)-1","v":2.2172468193594641E-2},{"$f":"((Quarterly!BX60/Quarterly!BX59)^4)-1","v":0.4975175966927905},{"$f":"((Quarterly!BY60/Quarterly!BY59)^4)-1","v":0.60895196974742527},"--","--",{"$f":"((Quarterly!CB60/Quarterly!CB59)^4)-1","v":-0.18407371573233056},{"$f":"((Quarterly!CC60/Quarterly!CC59)^4)-1","v":-0.1411657218495358},"--","--",null,"--","--",null,{"$f":"((Quarterly!CJ60/Quarterly!CJ59)^4)-1","v":1.891200602579346E-2},{"$f":"((Quarterly!CK60/Quarterly!CK59)^4)-1","v":0.10759420991781266},{"$f":"((Quarterly!CL60/Quarterly!CL59)^4)-1","v":0.26915023658437431},{"$f":"((Quarterly!CM60/Quarterly!CM59)^4)-1","v":0.54119130749030342},{"$f":"((Quarterly!CN60/Quarterly!CN59)^4)-1","v":5.9641073096511565E-2},{"$f":"((Quarterly!CO60/Quarterly!CO59)^4)-1","v":0.14379852130530724},{"$f":"((Quarterly!CP60/Quarterly!CP59)^4)-1","v":8.9499075323670629E-2},{"$f":"((Quarterly!CQ60/Quarterly!CQ59)^4)-1","v":1.165076523259323E-2},{"$f":"((Quarterly!CR60/Quarterly!CR59)^4)-1","v":0.22778519026872024},"--","--",null,null,null,null,null,{"$f":"((Quarterly!CZ60/Quarterly!CZ59)^4)-1","v":3.7236834815673525E-2},{"$f":"((Quarterly!DA60/Quarterly!DA59)^4)-1","v":4.1744732699269038E-2},null,null,null,null,null,{"$f":"((Quarterly!DG60/Quarterly!DG59)^4)-1","v":2.5293376383081156E-2},{"$f":"((Quarterly!DH60-Quarterly!DH59)*60)","v":1.9999999999998863},{"$f":"Quarterly!DI60-Quarterly!DI59","v":-0.13333333333332575},"--",{"$f":"(Quarterly!DK60-Quarterly!DK59)*100","v":-3.3333333333332327},{"$f":"((Quarterly!DL60/Quarterly!DL59)^4)-1","v":-1.0567735214092822E-2},null,null,null,{"$f":"((Quarterly!DP60/Quarterly!DP59)^4)-1","v":1.9068565206324495E-2},null,null,null,"--",{"$f":"Quarterly!DU60-Quarterly!DU59","v":0},"--","--","--","--","--","--","--","--",null,null,null,null,null,{"$f":"((Quarterly!EI60/Quarterly!EI59)^4)-1","v":7.8961808921656385E-2},{"$f":"((Quarterly!EJ60/Quarterly!EJ59)^4)-1","v":4.2319117701668407E-2},{"$f":"((Quarterly!EK60/Quarterly!EK59)^4)-1","v":3.0478813088135492E-2},null,null,null,null,null,{"$f":"((Quarterly!EQ60/Quarterly!EQ59)^4)-1","v":5.0577310535653952E-2},"--",{"$f":"((Quarterly!ES60/Quarterly!ES59)^4)-1","v":2.6014902207378121E-2},null,null,null,null,null,{"$f":"(Quarterly!EY60-Quarterly!EY59)*100","v":-45.666666666666615},{"$f":"(Quarterly!EZ60-Quarterly!EZ59)*100","v":70.666666666666657},{"$f":"(Quarterly!FA60-Quarterly!FA59)*100","v":25.666666666666593},{"$f":"(Quarterly!FB60-Quarterly!FB59)*100","v":7.6666666666666217},-17.999999999999972,"--",{"$f":"(Quarterly!FE60-Quarterly!FE59)*100","v":41.000000000000014},{"$f":"(Quarterly!FF60-Quarterly!FF59)*100","v":94.333333333333343},"--",{"$f":"(Quarterly!FH60-Quarterly!FH59)*100","v":67},{"$f":"(Quarterly!FI60-Quarterly!FI59)*100","v":22.999999999999954},-71.333333333333385,null,null,null,null,null,{"$f":"((Quarterly!FP60/Quarterly!FP59)^4)-1","v":1.5958723440368638E-2},"--","--","--","--","--","--","--","--",null,null,null,null,null,{"$f":"((Quarterly!GD60/Quarterly!GD59)^4)-1","v":0},"--","--","--","--","--","--","--","--"]
["71'Q3",{"$f":"((Quarterly!B61/Quarterly!B60)^4)-1","v":7.4293639636732411E-2},{"$f":"((Quarterly!C61/Quarterly!C60)^4)-1","v":3.1641794544028379E-2},{"$f":"((Quarterly!D61/Quarterly!D60)^4)-1","v":3.4856744745489499E-2},{"$f":"((Quarterly!E61/Quarterly!E60)^4)-1","v":3.2290889777378151E-2},{"$f":"((Quarterly!F61/Quarterly!F60)^4)-1","v":0.11107187300551558},{"$f":"((Quarterly!G61/Quarterly!G60)^4)-1","v":-8.1571952118805191E-3},{"$f":"((Quarterly!H61/Quarterly!H60)^4)-1","v":4.576750464247592E-2},{"$f":"((Quarterly!I61/Quarterly!I60)^4)-1","v":1.7745381814168404E-2},{"$f":"((Quarterly!J61/Quarterly!J60)^4)-1","v":-1.8689075664827248E-2},{"$f":"((Quarterly!K61/Quarterly!K60)^4)-1","v":0.21098740332858412},{"$f":"((Quarterly!L61-Quarterly!L60))","v":-1.7750000000000057},{"$f":"((Quarterly!M61/Quarterly!M60)^4)-1","v":9.1402646748376171E-2},{"$f":"((Quarterly!N61/Quarterly!N60)^4)-1","v":0.17628991722292509},{"$f":"((Quarterly!O61/Quarterly!O60)^4)-1","v":-8.5576983797088335E-2},{"$f":"((Quarterly!P61/Quarterly!P60)^4)-1","v":-1.174795757702074E-3},{"$f":"((Quarterly!Q61/Quarterly!Q60)^4)-1","v":-5.2293711584036728E-2},null,null,null,null,null,"--","--",{"$f":"((Quarterly!Y61/Quarterly!Y60)^4)-1","v":9.0052115211654238E-2},"--",{"$f":"((Quarterly!AA61/Quarterly!AA60)^4)-1","v":0.30008254769293541},{"$f":"((Quarterly!AB61/Quarterly!AB60)^4)-1","v":0.24200090332579749},"--","--","--","--","--","--","--","--","--","--",{"$f":"((Quarterly!AM61/Quarterly!AM60)^4)-1","v":1.2390673595691126E-2},"--","--","--",{"$f":"Quarterly!AQ61-Quarterly!AQ60","v":0.20000000000000284},"--","--",{"$f":"Quarterly!AT61-Quarterly!AT60","v":3.4333333333333371},"--","--",{"$f":"Quarterly!AW61-Quarterly!AW60","v":-6.5333333333333314},{"$f":"Quarterly!AX61-Quarterly!AX60","v":0.89999999999999858},{"$f":"Quarterly!AY61-Quarterly!AY60","v":-7.7333333333333201},{"$f":"Quarterly!AZ61-Quarterly!AZ60","v":-0.23333333333334139},{"$f":"Quarterly!BA61-Quarterly!BA60","v":-6.6666666666662877E-2},"--","--","--","--",{"$f":"((Quarterly!BF61/Quarterly!BF60)^4)-1","v":5.6282742749547143E-2},{"$f":"((Quarterly!BG61/Quarterly!BG60)^4)-1","v":3.6121976031689096E-2},{"$f":"((Quarterly!BH61/Quarterly!BH60)^4)-1","v":1.5257499914546058E-2},{"$f":"((Quarterly!BI61/Quarterly!BI60)^4)-1","v":1.9327172440514406E-2},{"$f":"((Quarterly!BJ61/Quarterly!BJ60)^4)-1","v":0.34974882346482494},"--",null,"--","--",null,null,null,null,null,{"$f":"((Quarterly!BT61/Quarterly!BT60)^4)-1","v":0.12698414218928655},"--","--",{"$f":"((Quarterly!BW61/Quarterly!BW60)^4)-1","v":7.4352254267698425E-2},{"$f":"((Quarterly!BX61/Quarterly!BX60)^4)-1","v":0.1540233393128434},{"$f":"((Quarterly!BY61/Quarterly!BY60)^4)-1","v":0.35995108446023916},"--","--",{"$f":"((Quarterly!CB61/Quarterly!CB60)^4)-1","v":3.5628483060912597E-2},{"$f":"((Quarterly!CC61/Quarterly!CC60)^4)-1","v":5.2051636935398493E-2},"--","--",null,"--","--",null,{"$f":"((Quarterly!CJ61/Quarterly!CJ60)^4)-1","v":0.13969114634596225},{"$f":"((Quarterly!CK61/Quarterly!CK60)^4)-1","v":6.2437818764982111E-2},{"$f":"((Quarterly!CL61/Quarterly!CL60)^4)-1","v":-1.5336686932312826E-2},{"$f":"((Quarterly!CM61/Quarterly!CM60)^4)-1","v":3.8881928228436058E-2},{"$f":"((Quarterly!CN61/Quarterly!CN60)^4)-1","v":2.1499943753441775E-2},{"$f":"((Quarterly!CO61/Quarterly!CO60)^4)-1","v":0.11972911523270091},{"$f":"((Quarterly!CP61/Quarterly!CP60)^4)-1","v":0.10364983078836176},{"$f":"((Quarterly!CQ61/Quarterly!CQ60)^4)-1","v":1.2077729555808325E-2},{"$f":"((Quarterly!CR61/Quarterly!CR60)^4)-1","v":0.25502511555723251},"--","--",null,null,null,null,null,{"$f":"((Quarterly!CZ61/Quarterly!CZ60)^4)-1","v":4.0297254536382221E-2},{"$f":"((Quarterly!DA61/Quarterly!DA60)^4)-1","v":3.4875854320707722E-2},null,null,null,null,null,{"$f":"((Quarterly!DG61/Quarterly!DG60)^4)-1","v":4.5351401215312226E-3},{"$f":"((Quarterly!DH61-Quarterly!DH60)*60)","v":-3.9999999999997726},{"$f":"Quarterly!DI61-Quarterly!DI60","v":9.9999999999994316E-2},"--",{"$f":"(Quarterly!DK61-Quarterly!DK60)*100","v":13.333333333333286},{"$f":"((Quarterly!DL61/Quarterly!DL60)^4)-1","v":-9.1313002750909034E-3},null,null,null,{"$f":"((Quarterly!DP61/Quarterly!DP60)^4)-1","v":1.4407259926894733E-2},null,null,null,"--",{"$f":"Quarterly!DU61-Quarterly!DU60","v":-0.16666666666666607},"--","--","--","--","--","--","--","--",null,null,null,null,null,{"$f":"((Quarterly!EI61/Quarterly!EI60)^4)-1","v":5.4942586379719494E-2},{"$f":"((Quarterly!EJ61/Quarterly!EJ60)^4)-1","v":3.8351310808245387E-2},{"$f":"((Quarterly!EK61/Quarterly!EK60)^4)-1","v":3.1500768639697307E-2},null,null,null,null,null,{"$f":"((Quarterly!EQ61/Quarterly!EQ60)^4)-1","v":3.1898257002853869E-2},"--",{"$f":"((Quarterly!ES61/Quarterly!ES60)^4)-1","v":2.5846810253721486E-2},null,null,null,null,null,{"$f":"(Quarterly!EY61-Quarterly!EY60)*100","v":55.666666666666572},{"$f":"(Quarterly!EZ61-Quarterly!EZ60)*100","v":90.999999999999929},{"$f":"(Quarterly!FA61-Quarterly!FA60)*100","v":8.3333333333333925},{"$f":"(Quarterly!FB61-Quarterly!FB60)*100","v":9.666666666666579},1.3333333333331865,{"$f":"(Quarterly!FD61-Quarterly!FD60)*100","v":24.00000000000011},{"$f":"(Quarterly!FE61-Quarterly!FE60)*100","v":76.000000000000071},{"$f":"(Quarterly!FF61-Quarterly!FF60)*100","v":75.666666666666686},"--",{"$f":"(Quarterly!FH61-Quarterly!FH60)*100","v":35.999999999999943},{"$f":"(Quarterly!FI61-Quarterly!FI60)*100","v":23.666666666666725},-51.999999999999957,null,null,null,null,null,{"$f":"((Quarterly!FP61/Quarterly!FP60)^4)-1","v":1.2701193757830964E-2},"--","--","--","--","--","--","--","--",null,null,null,null,null,{"$f":"((Quarterly!GD61/Quarterly!GD60)^4)-1","v":0},"--","--","--","--","--","--","--","--"]
["71'Q4",{"$f":"((Quarterly!B62/Quarterly!B61)^4)-1","v":4.5742232147846229E-2},{"$f":"((Quarterly!C62/Quarterly!C61)^4)-1","v":1.1733848816107173E-2},{"$f":"((Quarterly!D62/Quarterly!D61)^4)-1","v":4.8372182664695673E-2},{"$f":"((Quarterly!E62/Quarterly!E61)^4)-1","v":6.8164049446532315E-2},{"$f":"((Quarterly!F62/Quarterly!F61)^4)-1","v":0.18184736029583615},{"$f":"((Quarterly!G62/Quarterly!G61)^4)-1","v":2.7515324732688917E-2},{"$f":"((Quarterly!H62/Quarterly!H61)^4)-1","v":7.8526520803546829E-2},{"$f":"((Quarterly!I62/Quarterly!I61)^4)-1","v":8.439013647798399E-2},{"$f":"((Quarterly!J62/Quarterly!J61)^4)-1","v":9.0976131716037356E-2},{"$f":"((Quarterly!K62/Quarterly!K61)^4)-1","v":0.16579593540993964},{"$f":"((Quarterly!L62-Quarterly!L61))","v":-36.016999999999996},{"$f":"((Quarterly!M62/Quarterly!M61)^4)-1","v":-0.24478618055367052},{"$f":"((Quarterly!N62/Quarterly!N61)^4)-1","v":-0.29525412844903509},{"$f":"((Quarterly!O62/Quarterly!O61)^4)-1","v":-0.11040981628990398},{"$f":"((Quarterly!P62/Quarterly!P61)^4)-1","v":-2.6986088880355918E-2},{"$f":"((Quarterly!Q62/Quarterly!Q61)^4)-1","v":0.1612399815089256},null,null,null,null,null,"--","--",{"$f":"((Quarterly!Y62/Quarterly!Y61)^4)-1","v":7.2768235085748367E-2},"--",{"$f":"((Quarterly!AA62/Quarterly!AA61)^4)-1","v":0.14553779309415393},{"$f":"((Quarterly!AB62/Quarterly!AB61)^4)-1","v":0.27050614608372969},"--","--","--","--","--","--","--","--","--","--",{"$f":"((Quarterly!AM62/Quarterly!AM61)^4)-1","v":9.5992287391294173E-2},"--","--","--",{"$f":"Quarterly!AQ62-Quarterly!AQ61","v":0.60000000000000142},"--","--",{"$f":"Quarterly!AT62-Quarterly!AT61","v":-0.93333333333333712},"--","--",{"$f":"Quarterly!AW62-Quarterly!AW61","v":-7.5333333333333314},{"$f":"Quarterly!AX62-Quarterly!AX61","v":1.0333333333333385},{"$f":"Quarterly!AY62-Quarterly!AY61","v":-8.8666666666666671},{"$f":"Quarterly!AZ62-Quarterly!AZ61","v":3.0333333333333456},{"$f":"Quarterly!BA62-Quarterly!BA61","v":3.0333333333333314},"--","--","--","--",{"$f":"((Quarterly!BF62/Quarterly!BF61)^4)-1","v":2.7762070238175784E-2},{"$f":"((Quarterly!BG62/Quarterly!BG61)^4)-1","v":-3.1393819620448404E-2},{"$f":"((Quarterly!BH62/Quarterly!BH61)^4)-1","v":-2.0215526798238459E-3},{"$f":"((Quarterly!BI62/Quarterly!BI61)^4)-1","v":6.099098292450833E-2},{"$f":"((Quarterly!BJ62/Quarterly!BJ61)^4)-1","v":0.15926319516612808},"--",null,"--","--",null,null,null,null,null,{"$f":"((Quarterly!BT62/Quarterly!BT61)^4)-1","v":0.1461897949030404},"--","--",{"$f":"((Quarterly!BW62/Quarterly!BW61)^4)-1","v":0.25832328971612672},{"$f":"((Quarterly!BX62/Quarterly!BX61)^4)-1","v":0.22207978292967323},{"$f":"((Quarterly!BY62/Quarterly!BY61)^4)-1","v":0.11612524607470753},"--","--",{"$f":"((Quarterly!CB62/Quarterly!CB61)^4)-1","v":-0.2865380645586012},{"$f":"((Quarterly!CC62/Quarterly!CC61)^4)-1","v":-0.22663071050782946},"--","--",null,"--","--",null,{"$f":"((Quarterly!CJ62/Quarterly!CJ61)^4)-1","v":0.11740397474326314},{"$f":"((Quarterly!CK62/Quarterly!CK61)^4)-1","v":7.9681624306419119E-2},{"$f":"((Quarterly!CL62/Quarterly!CL61)^4)-1","v":-6.1653824858763473E-2},{"$f":"((Quarterly!CM62/Quarterly!CM61)^4)-1","v":0.33722072183056917},{"$f":"((Quarterly!CN62/Quarterly!CN61)^4)-1","v":4.7459130286271245E-2},{"$f":"((Quarterly!CO62/Quarterly!CO61)^4)-1","v":9.9487379749033877E-2},{"$f":"((Quarterly!CP62/Quarterly!CP61)^4)-1","v":0.12393520781193157},{"$f":"((Quarterly!CQ62/Quarterly!CQ61)^4)-1","v":1.2785814408396545E-2},{"$f":"((Quarterly!CR62/Quarterly!CR61)^4)-1","v":0.11883531493829036},"--","--",null,null,null,null,null,{"$f":"((Quarterly!CZ62/Quarterly!CZ61)^4)-1","v":2.9811624852858376E-2},{"$f":"((Quarterly!DA62/Quarterly!DA61)^4)-1","v":2.1899853108124256E-2},null,null,null,null,null,{"$f":"((Quarterly!DG62/Quarterly!DG61)^4)-1","v":3.8997461715239323E-2},{"$f":"((Quarterly!DH62-Quarterly!DH61)*60)","v":9.9999999999998579},{"$f":"Quarterly!DI62-Quarterly!DI61","v":0.1666666666666714},"--",{"$f":"(Quarterly!DK62-Quarterly!DK61)*100","v":-10.000000000000053},{"$f":"((Quarterly!DL62/Quarterly!DL61)^4)-1","v":7.7273210810209214E-3},null,null,null,{"$f":"((Quarterly!DP62/Quarterly!DP61)^4)-1","v":2.4372472709845328E-2},null,null,null,"--",{"$f":"Quarterly!DU62-Quarterly!DU61","v":0.23333333333333339},"--","--","--","--","--","--","--","--",null,null,null,null,null,{"$f":"((Quarterly!EI62/Quarterly!EI61)^4)-1","v":1.2291521565516605E-2},{"$f":"((Quarterly!EJ62/Quarterly!EJ61)^4)-1","v":3.4470489548503958E-2},{"$f":"((Quarterly!EK62/Quarterly!EK61)^4)-1","v":3.0460316870551729E-2},null,null,null,null,null,{"$f":"((Quarterly!EQ62/Quarterly!EQ61)^4)-1","v":3.4797705285494196E-3},"--",{"$f":"((Quarterly!ES62/Quarterly!ES61)^4)-1","v":-3.1758609313868869E-3},null,null,null,null,null,{"$f":"(Quarterly!EY62-Quarterly!EY61)*100","v":-32.999999999999915},{"$f":"(Quarterly!EZ62-Quarterly!EZ61)*100","v":-72.333333333333272},{"$f":"(Quarterly!FA62-Quarterly!FA61)*100","v":-25.666666666666771},{"$f":"(Quarterly!FB62-Quarterly!FB61)*100","v":-28.999999999999915},-3.3333333333331439,{"$f":"(Quarterly!FD62-Quarterly!FD61)*100","v":-11.000000000000032},{"$f":"(Quarterly!FE62-Quarterly!FE61)*100","v":-78.000000000000114},{"$f":"(Quarterly!FF62-Quarterly!FF61)*100","v":-102.33333333333334},"--",{"$f":"(Quarterly!FH62-Quarterly!FH61)*100","v":-71.333333333333201},{"$f":"(Quarterly!FI62-Quarterly!FI61)*100","v":-59.333333333333371},42.999999999999972,null,null,null,null,null,{"$f":"((Quarterly!FP62/Quarterly!FP61)^4)-1","v":-5.0723503535608061E-2},"--","--","--","--","--","--","--","--",null,null,null,null,null,{"$f":"((Quarterly!GD62/Quarterly!GD61)^4)-1","v":0},"--","--","--","--","--","--","--","--"]
["72'Q1",{"$f":"((Quarterly!B63/Quarterly!B62)^4)-1","v":0.14176180425454588},{"$f":"((Quarterly!C63/Quarterly!C62)^4)-1","v":7.3725557304384237E-2},{"$f":"((Quarterly!D63/Quarterly!D62)^4)-1","v":5.7557608697991425E-2},{"$f":"((Quarterly!E63/Quarterly!E62)^4)-1","v":5.3816782724194212E-2},{"$f":"((Quarterly!F63/Quarterly!F62)^4)-1","v":9.484447471144164E-2},{"$f":"((Quarterly!G63/Quarterly!G62)^4)-1","v":1.3263697171015831E-2},{"$f":"((Quarterly!H63/Quarterly!H62)^4)-1","v":6.9791789934449566E-2},{"$f":"((Quarterly!I63/Quarterly!I62)^4)-1","v":0.13367768607479502},{"$f":"((Quarterly!J63/Quarterly!J62)^4)-1","v":0.1621515704174894},{"$f":"((Quarterly!K63/Quarterly!K62)^4)-1","v":0.29625147338438218},{"$f":"((Quarterly!L63-Quarterly!L62))","v":14.266},{"$f":"((Quarterly!M63/Quarterly!M62)^4)-1","v":0.72570023851778798},{"$f":"((Quarterly!N63/Quarterly!N62)^4)-1","v":0.50932231803836459},{"$f":"((Quarterly!O63/Quarterly!O62)^4)-1","v":1.3111017501346134},{"$f":"((Quarterly!P63/Quarterly!P62)^4)-1","v":1.9031800720064052E-2},{"$f":"((Quarterly!Q63/Quarterly!Q62)^4)-1","v":-0.47590605416454901},null,null,null,null,null,"--","--",{"$f":"((Quarterly!Y63/Quarterly!Y62)^4)-1","v":4.4702997691858926E-2},"--",{"$f":"((Quarterly!AA63/Quarterly!AA62)^4)-1","v":0.2824352952726068},{"$f":"((Quarterly!AB63/Quarterly!AB62)^4)-1","v":0.2390273406246195},"--","--","--","--","--","--","--","--","--","--",{"$f":"((Quarterly!AM63/Quarterly!AM62)^4)-1","v":0.18056774923991159},"--","--","--",{"$f":"Quarterly!AQ63-Quarterly!AQ62","v":5.0333333333333314},"--","--",{"$f":"Quarterly!AT63-Quarterly!AT62","v":4.5},"--","--",{"$f":"Quarterly!AW63-Quarterly!AW62","v":8.0666666666666629},{"$f":"Quarterly!AX63-Quarterly!AX62","v":5.0333333333333385},{"$f":"Quarterly!AY63-Quarterly!AY62","v":18.866666666666667},{"$f":"Quarterly!AZ63-Quarterly!AZ62","v":5.3333333333333357},{"$f":"Quarterly!BA63-Quarterly!BA62","v":3.2666666666666728},"--","--","--","--",{"$f":"((Quarterly!BF63/Quarterly!BF62)^4)-1","v":0.11124760761303598},{"$f":"((Quarterly!BG63/Quarterly!BG62)^4)-1","v":5.7405970476240631E-2},{"$f":"((Quarterly!BH63/Quarterly!BH62)^4)-1","v":7.6015103348131996E-2},{"$f":"((Quarterly!BI63/Quarterly!BI62)^4)-1","v":5.1129336164548622E-2},{"$f":"((Quarterly!BJ63/Quarterly!BJ62)^4)-1","v":0.2861727294060239},"--",null,"--","--",null,null,null,null,null,{"$f":"((Quarterly!BT63/Quarterly!BT62)^4)-1","v":0.1515866262472525},"--","--",{"$f":"((Quarterly!BW63/Quarterly!BW62)^4)-1","v":-5.5954473162230123E-2},{"$f":"((Quarterly!BX63/Quarterly!BX62)^4)-1","v":0.42618617786878987},{"$f":"((Quarterly!BY63/Quarterly!BY62)^4)-1","v":0.18761612552165507},"--","--",{"$f":"((Quarterly!CB63/Quarterly!CB62)^4)-1","v":-8.0685583990449672E-2},{"$f":"((Quarterly!CC63/Quarterly!CC62)^4)-1","v":-8.898991142974555E-2},"--","--",null,"--","--",null,{"$f":"((Quarterly!CJ63/Quarterly!CJ62)^4)-1","v":5.8780150395434383E-3},{"$f":"((Quarterly!CK63/Quarterly!CK62)^4)-1","v":0.11871129044473183},{"$f":"((Quarterly!CL63/Quarterly!CL62)^4)-1","v":-0.15897481320418894},{"$f":"((Quarterly!CM63/Quarterly!CM62)^4)-1","v":0.28125996027458955},{"$f":"((Quarterly!CN63/Quarterly!CN62)^4)-1","v":1.85230004460335E-2},{"$f":"((Quarterly!CO63/Quarterly!CO62)^4)-1","v":9.8552899795350646E-2},{"$f":"((Quarterly!CP63/Quarterly!CP62)^4)-1","v":0.10333932342976082},{"$f":"((Quarterly!CQ63/Quarterly!CQ62)^4)-1","v":9.9467401136401623E-3},{"$f":"((Quarterly!CR63/Quarterly!CR62)^4)-1","v":-6.9490081791347413E-2},"--","--",null,null,null,null,null,{"$f":"((Quarterly!CZ63/Quarterly!CZ62)^4)-1","v":3.2919068439647869E-2},{"$f":"((Quarterly!DA63/Quarterly!DA62)^4)-1","v":3.4385309940821118E-2},null,null,null,null,null,{"$f":"((Quarterly!DG63/Quarterly!DG62)^4)-1","v":6.6548721094622065E-2},{"$f":"((Quarterly!DH63-Quarterly!DH62)*60)","v":1.9999999999998863},{"$f":"Quarterly!DI63-Quarterly!DI62","v":0},"--",{"$f":"(Quarterly!DK63-Quarterly!DK62)*100","v":-16.666666666666696},{"$f":"((Quarterly!DL63/Quarterly!DL62)^4)-1","v":4.7187053270189683E-2},null,null,null,{"$f":"((Quarterly!DP63/Quarterly!DP62)^4)-1","v":4.6159327912802972E-2},null,null,null,"--",{"$f":"Quarterly!DU63-Quarterly!DU62","v":9.9999999999998757E-2},"--","--","--","--","--","--","--","--",null,null,null,null,null,{"$f":"((Quarterly!EI63/Quarterly!EI62)^4)-1","v":0.12992519160959604},{"$f":"((Quarterly!EJ63/Quarterly!EJ62)^4)-1","v":8.0234852703923387E-2},{"$f":"((Quarterly!EK63/Quarterly!EK62)^4)-1","v":7.2083670126643185E-2},null,null,null,null,null,{"$f":"((Quarterly!EQ63/Quarterly!EQ62)^4)-1","v":7.1273915488951456E-2},"--",{"$f":"((Quarterly!ES63/Quarterly!ES62)^4)-1","v":5.5204418919335918E-2},null,null,null,null,null,{"$f":"(Quarterly!EY63-Quarterly!EY62)*100","v":-74.6666666666667},{"$f":"(Quarterly!EZ63-Quarterly!EZ62)*100","v":-120.99999999999996},{"$f":"(Quarterly!FA63-Quarterly!FA62)*100","v":-6.6666666666665542},{"$f":"(Quarterly!FB63-Quarterly!FB62)*100","v":-17.999999999999972},-11.333333333333417,{"$f":"(Quarterly!FD63-Quarterly!FD62)*100","v":-19.666666666666721},{"$f":"(Quarterly!FE63-Quarterly!FE62)*100","v":-79.333333333333258},{"$f":"(Quarterly!FF63-Quarterly!FF62)*100","v":-31.99999999999994},"--",{"$f":"(Quarterly!FH63-Quarterly!FH62)*100","v":-8.3333333333333037},{"$f":"(Quarterly!FI63-Quarterly!FI62)*100","v":14.333333333333442},46.333333333333385,null,null,null,null,null,{"$f":"((Quarterly!FP63/Quarterly!FP62)^4)-1","v":1.5967529505529487E-3},"--","--","--","--","--","--","--","--",null,null,null,null,null,{"$f":"((Quarterly!GD63/Quarterly!GD62)^4)-1","v":0},"--","--","--","--","--","--","--","--"]
["72'Q2",{"$f":"((Quarterly!B64/Quarterly!B63)^4)-1","v":0.12303381899638111},{"$f":"((Quarterly!C64/Quarterly!C63)^4)-1","v":9.5895943831353359E-2},{"$f":"((Quarterly!D64/Quarterly!D63)^4)-1","v":6.6742421310592492E-2},{"$f":"((Quarterly!E64/Quarterly!E63)^4)-1","v":7.8594708672135249E-2},{"$f":"((Quarterly!F64/Quarterly!F63)^4)-1","v":0.10432406301151764},{"$f":"((Quarterly!G64/Quarterly!G63)^4)-1","v":0.11259495568374422},{"$f":"((Quarterly!H64/Quarterly!H63)^4)-1","v":6.0794353522430233E-2},{"$f":"((Quarterly!I64/Quarterly!I63)^4)-1","v":6.688384224567212E-2},{"$f":"((Quarterly!J64/Quarterly!J63)^4)-1","v":7.5245876452372018E-2},{"$f":"((Quarterly!K64/Quarterly!K63)^4)-1","v":8.2899985886205396E-2},{"$f":"((Quarterly!L64-Quarterly!L63))","v":27.981999999999999},{"$f":"((Quarterly!M64/Quarterly!M63)^4)-1","v":-0.13472135462867862},{"$f":"((Quarterly!N64/Quarterly!N63)^4)-1","v":-0.11139930950748977},{"$f":"((Quarterly!O64/Quarterly!O63)^4)-1","v":-0.18148178616275024},{"$f":"((Quarterly!P64/Quarterly!P63)^4)-1","v":2.4310674202129734E-2},{"$f":"((Quarterly!Q64/Quarterly!Q63)^4)-1","v":0.60294485903136441},null,null,null,null,null,{"$f":"((Quarterly!W64/Quarterly!W63)^4)-1","v":5.5021726166081253E-2},"--",{"$f":"((Quarterly!Y64/Quarterly!Y63)^4)-1","v":0.12838817782236989},"--",{"$f":"((Quarterly!AA64/Quarterly!AA63)^4)-1","v":6.2846319615902591E-2},{"$f":"((Quarterly!AB64/Quarterly!AB63)^4)-1","v":9.3030732169380626E-2},"--","--","--","--","--","--","--","--","--","--",{"$f":"((Quarterly!AM64/Quarterly!AM63)^4)-1","v":7.8600243572054085E-2},{"$f":"((Quarterly!AN64/Quarterly!AN63)^4)-1","v":8.5414192237581066E-2},"--","--",{"$f":"Quarterly!AQ64-Quarterly!AQ63","v":-0.23333333333334139},"--","--",{"$f":"Quarterly!AT64-Quarterly!AT63","v":1.4000000000000057},"--","--",{"$f":"Quarterly!AW64-Quarterly!AW63","v":1.1333333333333329},{"$f":"Quarterly!AX64-Quarterly!AX63","v":-1.13333333333334},{"$f":"Quarterly!AY64-Quarterly!AY63","v":-4.0999999999999943},{"$f":"Quarterly!AZ64-Quarterly!AZ63","v":-2.1000000000000085},{"$f":"Quarterly!BA64-Quarterly!BA63","v":1.3000000000000043},"--","--","--","--",{"$f":"((Quarterly!BF64/Quarterly!BF63)^4)-1","v":4.8192719917685922E-2},{"$f":"((Quarterly!BG64/Quarterly!BG63)^4)-1","v":8.4201450721871351E-2},{"$f":"((Quarterly!BH64/Quarterly!BH63)^4)-1","v":2.1387569994615108E-2},{"$f":"((Quarterly!BI64/Quarterly!BI63)^4)-1","v":-3.337415083867068E-2},{"$f":"((Quarterly!BJ64/Quarterly!BJ63)^4)-1","v":5.1098376876835383E-2},"--",null,"--","--",null,null,null,null,null,{"$f":"((Quarterly!BT64/Quarterly!BT63)^4)-1","v":0.17158600759916931},"--","--",{"$f":"((Quarterly!BW64/Quarterly!BW63)^4)-1","v":7.3773141039917833E-2},{"$f":"((Quarterly!BX64/Quarterly!BX63)^4)-1","v":-0.24691619510737106},{"$f":"((Quarterly!BY64/Quarterly!BY63)^4)-1","v":-7.343906678263612E-2},"--","--",{"$f":"((Quarterly!CB64/Quarterly!CB63)^4)-1","v":-0.1410461320793257},{"$f":"((Quarterly!CC64/Quarterly!CC63)^4)-1","v":-0.11284747232277426},"--","--",null,"--","--",null,{"$f":"((Quarterly!CJ64/Quarterly!CJ63)^4)-1","v":-1.9507431405277886E-3},{"$f":"((Quarterly!CK64/Quarterly!CK63)^4)-1","v":7.2908958927917489E-2},{"$f":"((Quarterly!CL64/Quarterly!CL63)^4)-1","v":-0.18413844225182341},{"$f":"((Quarterly!CM64/Quarterly!CM63)^4)-1","v":-0.17866164259772643},{"$f":"((Quarterly!CN64/Quarterly!CN63)^4)-1","v":4.1464204914577252E-2},{"$f":"((Quarterly!CO64/Quarterly!CO63)^4)-1","v":8.0404753038155086E-2},{"$f":"((Quarterly!CP64/Quarterly!CP63)^4)-1","v":0.14416537987736611},{"$f":"((Quarterly!CQ64/Quarterly!CQ63)^4)-1","v":9.3824708819616465E-3},{"$f":"((Quarterly!CR64/Quarterly!CR63)^4)-1","v":0.2441684740456902},"--","--",null,null,null,null,null,{"$f":"((Quarterly!CZ64/Quarterly!CZ63)^4)-1","v":2.6057267349631985E-2},{"$f":"((Quarterly!DA64/Quarterly!DA63)^4)-1","v":3.0957469489349965E-2},null,null,null,null,null,{"$f":"((Quarterly!DG64/Quarterly!DG63)^4)-1","v":4.2535393245417552E-2},{"$f":"((Quarterly!DH64-Quarterly!DH63)*60)","v":-1.9999999999998863},{"$f":"Quarterly!DI64-Quarterly!DI63","v":9.9999999999994316E-2},"--",{"$f":"(Quarterly!DK64-Quarterly!DK63)*100","v":-6.666666666666643},{"$f":"((Quarterly!DL64/Quarterly!DL63)^4)-1","v":5.1651895378630464E-2},null,null,null,{"$f":"((Quarterly!DP64/Quarterly!DP63)^4)-1","v":4.3775050801533766E-2},null,null,null,"--",{"$f":"Quarterly!DU64-Quarterly!DU63","v":-0.23333333333333162},"--","--","--","--","--","--","--","--",null,null,null,null,null,{"$f":"((Quarterly!EI64/Quarterly!EI63)^4)-1","v":0.10314249998743841},{"$f":"((Quarterly!EJ64/Quarterly!EJ63)^4)-1","v":0.10126449829394213},{"$f":"((Quarterly!EK64/Quarterly!EK63)^4)-1","v":9.0475469000452557E-2},null,null,null,null,null,{"$f":"((Quarterly!EQ64/Quarterly!EQ63)^4)-1","v":4.5112289518926429E-2},"--",{"$f":"((Quarterly!ES64/Quarterly!ES63)^4)-1","v":2.8558300964544037E-2},null,null,null,null,null,{"$f":"(Quarterly!EY64-Quarterly!EY63)*100","v":10.999999999999943},{"$f":"(Quarterly!EZ64-Quarterly!EZ63)*100","v":75.999999999999929},{"$f":"(Quarterly!FA64-Quarterly!FA63)*100","v":4.3333333333332114},{"$f":"(Quarterly!FB64-Quarterly!FB63)*100","v":-1.0000000000001563},-5.3333333333333677,{"$f":"(Quarterly!FD64-Quarterly!FD63)*100","v":-1.3333333333332753},{"$f":"(Quarterly!FE64-Quarterly!FE63)*100","v":33.3333333333333},{"$f":"(Quarterly!FF64-Quarterly!FF63)*100","v":43.666666666666565},"--",{"$f":"(Quarterly!FH64-Quarterly!FH63)*100","v":25.99999999999989},{"$f":"(Quarterly!FI64-Quarterly!FI63)*100","v":10.999999999999943},-32.666666666666622,null,null,null,null,null,{"$f":"((Quarterly!FP64/Quarterly!FP63)^4)-1","v":-5.8490031158932809E-2},"--","--","--","--","--","--","--","--",null,null,null,null,null,{"$f":"((Quarterly!GD64/Quarterly!GD63)^4)-1","v":0},"--","--","--","--","--","--","--","--"]
["72'Q3",{"$f":"((Quarterly!B65/Quarterly!B64)^4)-1","v":7.6803632360335383E-2},{"$f":"((Quarterly!C65/Quarterly!C64)^4)-1","v":3.7376705976503111E-2},{"$f":"((Quarterly!D65/Quarterly!D64)^4)-1","v":3.5132265950075459E-2},{"$f":"((Quarterly!E65/Quarterly!E64)^4)-1","v":6.3141878131280027E-2},{"$f":"((Quarterly!F65/Quarterly!F64)^4)-1","v":0.10702663653535338},{"$f":"((Quarterly!G65/Quarterly!G64)^4)-1","v":5.6291153746380829E-2},{"$f":"((Quarterly!H65/Quarterly!H64)^4)-1","v":6.2523557897867343E-2},{"$f":"((Quarterly!I65/Quarterly!I64)^4)-1","v":5.9820922110309427E-2},{"$f":"((Quarterly!J65/Quarterly!J64)^4)-1","v":6.3184559362335468E-2},{"$f":"((Quarterly!K65/Quarterly!K64)^4)-1","v":1.0845887845970958E-2},{"$f":"((Quarterly!L65-Quarterly!L64))","v":2.8239999999999981},{"$f":"((Quarterly!M65/Quarterly!M64)^4)-1","v":8.5895730160897799E-2},{"$f":"((Quarterly!N65/Quarterly!N64)^4)-1","v":0.26433246534886923},{"$f":"((Quarterly!O65/Quarterly!O64)^4)-1","v":-0.22819497953846735},{"$f":"((Quarterly!P65/Quarterly!P64)^4)-1","v":-7.7372354921437791E-2},{"$f":"((Quarterly!Q65/Quarterly!Q64)^4)-1","v":-0.60824195456608776},null,null,null,null,null,{"$f":"((Quarterly!W65/Quarterly!W64)^4)-1","v":2.4404003206120795E-2},"--",{"$f":"((Quarterly!Y65/Quarterly!Y64)^4)-1","v":0.11279079561371974},"--",{"$f":"((Quarterly!AA65/Quarterly!AA64)^4)-1","v":0.19360964680206849},{"$f":"((Quarterly!AB65/Quarterly!AB64)^4)-1","v":0.20481674623947521},"--","--","--","--","--","--","--","--","--","--",{"$f":"((Quarterly!AM65/Quarterly!AM64)^4)-1","v":5.227149316270574E-2},{"$f":"((Quarterly!AN65/Quarterly!AN64)^4)-1","v":5.6607052683036008E-2},"--","--",{"$f":"Quarterly!AQ65-Quarterly!AQ64","v":2.5333333333333456},"--","--",{"$f":"Quarterly!AT65-Quarterly!AT64","v":0.6666666666666643},"--","--",{"$f":"Quarterly!AW65-Quarterly!AW64","v":1.3333333333333357},{"$f":"Quarterly!AX65-Quarterly!AX64","v":2.3666666666666742},{"$f":"Quarterly!AY65-Quarterly!AY64","v":-2.1666666666666714},{"$f":"Quarterly!AZ65-Quarterly!AZ64","v":2.1000000000000085},{"$f":"Quarterly!BA65-Quarterly!BA64","v":7.0999999999999943},"--","--","--","--",{"$f":"((Quarterly!BF65/Quarterly!BF64)^4)-1","v":5.4436087880113559E-2},{"$f":"((Quarterly!BG65/Quarterly!BG64)^4)-1","v":2.1857338479141841E-2},{"$f":"((Quarterly!BH65/Quarterly!BH64)^4)-1","v":2.1332895398890273E-2},{"$f":"((Quarterly!BI65/Quarterly!BI64)^4)-1","v":3.2021114754894553E-2},{"$f":"((Quarterly!BJ65/Quarterly!BJ64)^4)-1","v":0.23823947135587664},"--",null,"--","--",null,null,null,null,null,{"$f":"((Quarterly!BT65/Quarterly!BT64)^4)-1","v":0.17914824290566234},"--","--",{"$f":"((Quarterly!BW65/Quarterly!BW64)^4)-1","v":8.4917959389375408E-2},{"$f":"((Quarterly!BX65/Quarterly!BX64)^4)-1","v":0.2536860650037891},{"$f":"((Quarterly!BY65/Quarterly!BY64)^4)-1","v":0.32216092386198847},"--","--",{"$f":"((Quarterly!CB65/Quarterly!CB64)^4)-1","v":-0.13983162344093703},{"$f":"((Quarterly!CC65/Quarterly!CC64)^4)-1","v":-0.1247632864182816},"--","--",null,"--","--",null,{"$f":"((Quarterly!CJ65/Quarterly!CJ64)^4)-1","v":0.38316638249767832},{"$f":"((Quarterly!CK65/Quarterly!CK64)^4)-1","v":0.10659144347434224},{"$f":"((Quarterly!CL65/Quarterly!CL64)^4)-1","v":0.26171690867222419},{"$f":"((Quarterly!CM65/Quarterly!CM64)^4)-1","v":0.28754481723064718},{"$f":"((Quarterly!CN65/Quarterly!CN64)^4)-1","v":7.9099733813704498E-2},{"$f":"((Quarterly!CO65/Quarterly!CO64)^4)-1","v":0.11228686400148735},{"$f":"((Quarterly!CP65/Quarterly!CP64)^4)-1","v":0.12756840284192705},{"$f":"((Quarterly!CQ65/Quarterly!CQ64)^4)-1","v":1.0174500355224936E-2},{"$f":"((Quarterly!CR65/Quarterly!CR64)^4)-1","v":0.27348087940289512},"--","--",null,null,null,null,null,{"$f":"((Quarterly!CZ65/Quarterly!CZ64)^4)-1","v":3.2438575790967095E-2},{"$f":"((Quarterly!DA65/Quarterly!DA64)^4)-1","v":3.0719735305993368E-2},null,null,null,null,null,{"$f":"((Quarterly!DG65/Quarterly!DG64)^4)-1","v":1.9774188958917582E-2},{"$f":"((Quarterly!DH65-Quarterly!DH64)*60)","v":-1.9999999999998863},{"$f":"Quarterly!DI65-Quarterly!DI64","v":6.6666666666669983E-2},"--",{"$f":"(Quarterly!DK65-Quarterly!DK64)*100","v":-13.333333333333375},{"$f":"((Quarterly!DL65/Quarterly!DL64)^4)-1","v":2.4486632423953658E-2},null,null,null,{"$f":"((Quarterly!DP65/Quarterly!DP64)^4)-1","v":3.1566161647722746E-2},null,null,null,"--",{"$f":"Quarterly!DU65-Quarterly!DU64","v":-0.33333333333333481},"--","--","--","--","--","--","--","--",null,null,null,null,null,{"$f":"((Quarterly!EI65/Quarterly!EI64)^4)-1","v":2.9048094698208793E-2},{"$f":"((Quarterly!EJ65/Quarterly!EJ64)^4)-1","v":4.412610712236642E-2},{"$f":"((Quarterly!EK65/Quarterly!EK64)^4)-1","v":4.8822998830718056E-2},null,null,null,null,null,{"$f":"((Quarterly!EQ65/Quarterly!EQ64)^4)-1","v":6.2157959609891789E-2},"--",{"$f":"((Quarterly!ES65/Quarterly!ES64)^4)-1","v":1.5679826601902924E-2},null,null,null,null,null,{"$f":"(Quarterly!EY65-Quarterly!EY64)*100","v":33.666666666666686},{"$f":"(Quarterly!EZ65-Quarterly!EZ64)*100","v":43.99999999999995},{"$f":"(Quarterly!FA65-Quarterly!FA64)*100","v":-6.9999999999999396},{"$f":"(Quarterly!FB65-Quarterly!FB64)*100","v":-5.3333333333332789},1.6666666666666607,{"$f":"(Quarterly!FD65-Quarterly!FD64)*100","v":6.3333333333332575},{"$f":"(Quarterly!FE65-Quarterly!FE64)*100","v":44.999999999999972},{"$f":"(Quarterly!FF65-Quarterly!FF64)*100","v":31.00000000000005},"--",{"$f":"(Quarterly!FH65-Quarterly!FH64)*100","v":10.333333333333261},{"$f":"(Quarterly!FI65-Quarterly!FI64)*100","v":14.66666666666665},-16.3333333333334,null,null,null,null,null,{"$f":"((Quarterly!FP65/Quarterly!FP64)^4)-1","v":-1.9690303973501244E-2},"--","--","--","--","--","--","--","--",null,null,null,null,null,{"$f":"((Quarterly!GD65/Quarterly!GD64)^4)-1","v":0},"--","--","--","--","--","--","--","--"]
["72'Q4",{"$f":"((Quarterly!B66/Quarterly!B65)^4)-1","v":0.1233850220769086},{"$f":"((Quarterly!C66/Quarterly!C65)^4)-1","v":6.809741265828495E-2},{"$f":"((Quarterly!D66/Quarterly!D65)^4)-1","v":9.5945355482482508E-2},{"$f":"((Quarterly!E66/Quarterly!E65)^4)-1","v":9.7300637015130365E-2},{"$f":"((Quarterly!F66/Quarterly!F65)^4)-1","v":0.22922503084954959},{"$f":"((Quarterly!G66/Quarterly!G65)^4)-1","v":7.7704425214857098E-2},{"$f":"((Quarterly!H66/Quarterly!H65)^4)-1","v":9.5199745007108705E-2},{"$f":"((Quarterly!I66/Quarterly!I65)^4)-1","v":0.20579545497094731},{"$f":"((Quarterly!J66/Quarterly!J65)^4)-1","v":0.27411531157260471},{"$f":"((Quarterly!K66/Quarterly!K65)^4)-1","v":0.15236205217650411},{"$f":"((Quarterly!L66-Quarterly!L65))","v":-25.791999999999998},{"$f":"((Quarterly!M66/Quarterly!M65)^4)-1","v":0.19271682031426352},{"$f":"((Quarterly!N66/Quarterly!N65)^4)-1","v":0.1806960729355469},{"$f":"((Quarterly!O66/Quarterly!O65)^4)-1","v":0.22178850272842632},{"$f":"((Quarterly!P66/Quarterly!P65)^4)-1","v":3.0996178955241982E-2},{"$f":"((Quarterly!Q66/Quarterly!Q65)^4)-1","v":3.0931164309837156},null,null,null,null,null,{"$f":"((Quarterly!W66/Quarterly!W65)^4)-1","v":0.12047392293304204},"--",{"$f":"((Quarterly!Y66/Quarterly!Y65)^4)-1","v":0.18226169713030549},"--",{"$f":"((Quarterly!AA66/Quarterly!AA65)^4)-1","v":0.39121646141576383},{"$f":"((Quarterly!AB66/Quarterly!AB65)^4)-1","v":0.17560952564293597},"--","--","--","--","--","--","--","--","--","--",{"$f":"((Quarterly!AM66/Quarterly!AM65)^4)-1","v":0.14712743875676226},{"$f":"((Quarterly!AN66/Quarterly!AN65)^4)-1","v":0.16264858184166386},"--","--",{"$f":"Quarterly!AQ66-Quarterly!AQ65","v":6.8333333333333357},"--","--",{"$f":"Quarterly!AT66-Quarterly!AT65","v":5.3666666666666671},"--","--",{"$f":"Quarterly!AW66-Quarterly!AW65","v":9.9666666666666686},{"$f":"Quarterly!AX66-Quarterly!AX65","v":5.5333333333333314},{"$f":"Quarterly!AY66-Quarterly!AY65","v":5.3333333333333286},{"$f":"Quarterly!AZ66-Quarterly!AZ65","v":4.8666666666666742},{"$f":"Quarterly!BA66-Quarterly!BA65","v":12.699999999999996},"--","--","--","--",{"$f":"((Quarterly!BF66/Quarterly!BF65)^4)-1","v":7.7209029333650037E-2},{"$f":"((Quarterly!BG66/Quarterly!BG65)^4)-1","v":3.3355845038561593E-2},{"$f":"((Quarterly!BH66/Quarterly!BH65)^4)-1","v":3.4029555204585282E-2},{"$f":"((Quarterly!BI66/Quarterly!BI65)^4)-1","v":4.2568406034099615E-2},{"$f":"((Quarterly!BJ66/Quarterly!BJ65)^4)-1","v":0.49069529796466327},"--",null,"--","--",null,null,null,null,null,{"$f":"((Quarterly!BT66/Quarterly!BT65)^4)-1","v":0.16424121803632485},"--","--",{"$f":"((Quarterly!BW66/Quarterly!BW65)^4)-1","v":0.15043210997373579},{"$f":"((Quarterly!BX66/Quarterly!BX65)^4)-1","v":9.1228909791589041E-2},{"$f":"((Quarterly!BY66/Quarterly!BY65)^4)-1","v":9.4240034034027254E-2},"--","--",{"$f":"((Quarterly!CB66/Quarterly!CB65)^4)-1","v":4.8809479542781142E-2},{"$f":"((Quarterly!CC66/Quarterly!CC65)^4)-1","v":-1.1782920145290809E-2},"--","--",null,"--","--",null,{"$f":"((Quarterly!CJ66/Quarterly!CJ65)^4)-1","v":0.253363995557637},{"$f":"((Quarterly!CK66/Quarterly!CK65)^4)-1","v":0.1931958455790701},{"$f":"((Quarterly!CL66/Quarterly!CL65)^4)-1","v":0.90022950688961489},{"$f":"((Quarterly!CM66/Quarterly!CM65)^4)-1","v":-9.7368550520597119E-2},{"$f":"((Quarterly!CN66/Quarterly!CN65)^4)-1","v":0.1684092419455101},{"$f":"((Quarterly!CO66/Quarterly!CO65)^4)-1","v":0.10690879782928309},{"$f":"((Quarterly!CP66/Quarterly!CP65)^4)-1","v":0.13876775653827544},{"$f":"((Quarterly!CQ66/Quarterly!CQ65)^4)-1","v":1.0877907146489951E-2},{"$f":"((Quarterly!CR66/Quarterly!CR65)^4)-1","v":0.11759052688835747},"--","--",null,null,null,null,null,{"$f":"((Quarterly!CZ66/Quarterly!CZ65)^4)-1","v":4.1980611045663974E-2},{"$f":"((Quarterly!DA66/Quarterly!DA65)^4)-1","v":2.1267771315347739E-2},null,null,null,null,null,{"$f":"((Quarterly!DG66/Quarterly!DG65)^4)-1","v":6.6718356409168011E-2},{"$f":"((Quarterly!DH66-Quarterly!DH65)*60)","v":3.9999999999997726},{"$f":"Quarterly!DI66-Quarterly!DI65","v":-0.10000000000000142},"--",{"$f":"(Quarterly!DK66-Quarterly!DK65)*100","v":-20.000000000000018},{"$f":"((Quarterly!DL66/Quarterly!DL65)^4)-1","v":7.6332712388602841E-2},null,null,null,{"$f":"((Quarterly!DP66/Quarterly!DP65)^4)-1","v":5.1405961310410975E-2},null,null,null,"--",{"$f":"Quarterly!DU66-Quarterly!DU65","v":-6.666666666666643E-2},"--","--","--","--","--","--","--","--",null,null,null,null,null,{"$f":"((Quarterly!EI66/Quarterly!EI65)^4)-1","v":8.8836193365317229E-2},{"$f":"((Quarterly!EJ66/Quarterly!EJ65)^4)-1","v":7.5810281149493841E-2},{"$f":"((Quarterly!EK66/Quarterly!EK65)^4)-1","v":7.2193515863851143E-2},null,null,null,null,null,{"$f":"((Quarterly!EQ66/Quarterly!EQ65)^4)-1","v":4.0501240639174929E-2},"--",{"$f":"((Quarterly!ES66/Quarterly!ES65)^4)-1","v":-3.1019751751644176E-3},null,null,null,null,null,{"$f":"(Quarterly!EY66-Quarterly!EY65)*100","v":41.6666666666667},{"$f":"(Quarterly!EZ66-Quarterly!EZ65)*100","v":40.333333333333421},{"$f":"(Quarterly!FA66-Quarterly!FA65)*100","v":-7.0000000000000284},{"$f":"(Quarterly!FB66-Quarterly!FB65)*100","v":-17.666666666666675},-10.666666666666647,{"$f":"(Quarterly!FD66-Quarterly!FD65)*100","v":2.3333333333333428},{"$f":"(Quarterly!FE66-Quarterly!FE65)*100","v":64.333333333333357},{"$f":"(Quarterly!FF66-Quarterly!FF65)*100","v":28.333333333333321},"--",{"$f":"(Quarterly!FH66-Quarterly!FH65)*100","v":7.3333333333334139},{"$f":"(Quarterly!FI66-Quarterly!FI65)*100","v":8.3333333333333925},-19.999999999999929,null,null,null,null,null,{"$f":"((Quarterly!FP66/Quarterly!FP65)^4)-1","v":2.3945709669737303E-2},"--","--","--","--","--","--","--","--",null,null,null,null,null,{"$f":"((Quarterly!GD66/Quarterly!GD65)^4)-1","v":0},"--","--","--","--","--","--","--","--"]
["73'Q1",{"$f":"((Quarterly!B67/Quarterly!B66)^4)-1","v":0.15431739443027581},{"$f":"((Quarterly!C67/Quarterly!C66)^4)-1","v":0.10216940160482779},{"$f":"((Quarterly!D67/Quarterly!D66)^4)-1","v":8.7081572675067109E-2},{"$f":"((Quarterly!E67/Quarterly!E66)^4)-1","v":7.498655813245203E-2},{"$f":"((Quarterly!F67/Quarterly!F66)^4)-1","v":0.28005029999872555},{"$f":"((Quarterly!G67/Quarterly!G66)^4)-1","v":2.4315539155419508E-2},{"$f":"((Quarterly!H67/Quarterly!H66)^4)-1","v":8.1394385580069839E-2},{"$f":"((Quarterly!I67/Quarterly!I66)^4)-1","v":0.17857671362531691},{"$f":"((Quarterly!J67/Quarterly!J66)^4)-1","v":0.23984479642588785},{"$f":"((Quarterly!K67/Quarterly!K66)^4)-1","v":0.14447684732886001},{"$f":"((Quarterly!L67-Quarterly!L66))","v":11.079000000000001},{"$f":"((Quarterly!M67/Quarterly!M66)^4)-1","v":0.19804268544158909},{"$f":"((Quarterly!N67/Quarterly!N66)^4)-1","v":0.3269563860778002},{"$f":"((Quarterly!O67/Quarterly!O66)^4)-1","v":-6.9641733531558336E-2},{"$f":"((Quarterly!P67/Quarterly!P66)^4)-1","v":3.2799434453235854E-2},{"$f":"((Quarterly!Q67/Quarterly!Q66)^4)-1","v":-0.7700232762582514},null,null,null,null,null,{"$f":"((Quarterly!W67/Quarterly!W66)^4)-1","v":0.10180138701864361},"--",{"$f":"((Quarterly!Y67/Quarterly!Y66)^4)-1","v":0.30848161379100869},"--",{"$f":"((Quarterly!AA67/Quarterly!AA66)^4)-1","v":0.72103900512195662},{"$f":"((Quarterly!AB67/Quarterly!AB66)^4)-1","v":0.24059661638650143},"--","--","--","--","--","--","--","--","--","--",{"$f":"((Quarterly!AM67/Quarterly!AM66)^4)-1","v":0.11875023194952594},{"$f":"((Quarterly!AN67/Quarterly!AN66)^4)-1","v":0.13807690583569165},"--","--",{"$f":"Quarterly!AQ67-Quarterly!AQ66","v":1.2999999999999829},"--","--",{"$f":"Quarterly!AT67-Quarterly!AT66","v":3.5666666666666558},"--","--",{"$f":"Quarterly!AW67-Quarterly!AW66","v":-0.80000000000000426},{"$f":"Quarterly!AX67-Quarterly!AX66","v":-1.36666666666666},{"$f":"Quarterly!AY67-Quarterly!AY66","v":12.066666666666663},{"$f":"Quarterly!AZ67-Quarterly!AZ66","v":-1.3666666666666742},{"$f":"Quarterly!BA67-Quarterly!BA66","v":9.3999999999999915},"--","--","--","--",{"$f":"((Quarterly!BF67/Quarterly!BF66)^4)-1","v":0.10916745214714041},{"$f":"((Quarterly!BG67/Quarterly!BG66)^4)-1","v":9.2490596162589478E-2},{"$f":"((Quarterly!BH67/Quarterly!BH66)^4)-1","v":4.1940173548613568E-2},{"$f":"((Quarterly!BI67/Quarterly!BI66)^4)-1","v":1.5288397245071028E-2},{"$f":"((Quarterly!BJ67/Quarterly!BJ66)^4)-1","v":0.75983097645871811},"--",null,"--","--",null,null,null,null,null,{"$f":"((Quarterly!BT67/Quarterly!BT66)^4)-1","v":0.18830421984611023},"--","--",{"$f":"((Quarterly!BW67/Quarterly!BW66)^4)-1","v":1.2242641333989557E-2},{"$f":"((Quarterly!BX67/Quarterly!BX66)^4)-1","v":-7.3254621537086617E-2},{"$f":"((Quarterly!BY67/Quarterly!BY66)^4)-1","v":-0.23224606039284912},"--","--",{"$f":"((Quarterly!CB67/Quarterly!CB66)^4)-1","v":0.16865342410203943},{"$f":"((Quarterly!CC67/Quarterly!CC66)^4)-1","v":1.3661782960165292E-2},"--","--",null,"--","--",null,{"$f":"((Quarterly!CJ67/Quarterly!CJ66)^4)-1","v":-0.17006200887636724},{"$f":"((Quarterly!CK67/Quarterly!CK66)^4)-1","v":6.7201801485412549E-2},{"$f":"((Quarterly!CL67/Quarterly!CL66)^4)-1","v":-0.19175190638076478},{"$f":"((Quarterly!CM67/Quarterly!CM66)^4)-1","v":8.0662766392546548E-2},{"$f":"((Quarterly!CN67/Quarterly!CN66)^4)-1","v":2.8664832198940449E-2},{"$f":"((Quarterly!CO67/Quarterly!CO66)^4)-1","v":5.1531025697856281E-2},{"$f":"((Quarterly!CP67/Quarterly!CP66)^4)-1","v":0.19369138209532899},{"$f":"((Quarterly!CQ67/Quarterly!CQ66)^4)-1","v":8.9099817141322646E-3},{"$f":"((Quarterly!CR67/Quarterly!CR66)^4)-1","v":5.375741887471408E-2},"--","--",null,null,null,null,null,{"$f":"((Quarterly!CZ67/Quarterly!CZ66)^4)-1","v":6.4443873883431868E-2},{"$f":"((Quarterly!DA67/Quarterly!DA66)^4)-1","v":3.0323858378230373E-2},null,null,null,null,null,{"$f":"((Quarterly!DG67/Quarterly!DG66)^4)-1","v":7.0110956185083673E-2},{"$f":"((Quarterly!DH67-Quarterly!DH66)*60)","v":0},{"$f":"Quarterly!DI67-Quarterly!DI66","v":6.6666666666669983E-2},"--",{"$f":"(Quarterly!DK67-Quarterly!DK66)*100","v":-43.333333333333272},{"$f":"((Quarterly!DL67/Quarterly!DL66)^4)-1","v":8.5724601385102073E-2},null,null,null,{"$f":"((Quarterly!DP67/Quarterly!DP66)^4)-1","v":5.467232021736157E-2},null,null,null,"--",{"$f":"Quarterly!DU67-Quarterly!DU66","v":-0.36666666666666714},"--","--","--","--","--","--","--","--",null,null,null,null,null,{"$f":"((Quarterly!EI67/Quarterly!EI66)^4)-1","v":0.13255360514288705},{"$f":"((Quarterly!EJ67/Quarterly!EJ66)^4)-1","v":9.1890871770129223E-2},{"$f":"((Quarterly!EK67/Quarterly!EK66)^4)-1","v":8.0157682438105837E-2},null,null,null,null,null,{"$f":"((Quarterly!EQ67/Quarterly!EQ66)^4)-1","v":0.2088505161468408},"--",{"$f":"((Quarterly!ES67/Quarterly!ES66)^4)-1","v":3.782091016453526E-2},null,null,null,null,null,{"$f":"(Quarterly!EY67-Quarterly!EY66)*100","v":34.999999999999964},{"$f":"(Quarterly!EZ67-Quarterly!EZ66)*100","v":139.33333333333326},{"$f":"(Quarterly!FA67-Quarterly!FA66)*100","v":8.3333333333333037},{"$f":"(Quarterly!FB67-Quarterly!FB66)*100","v":-2.6666666666667282},-11.000000000000032,{"$f":"(Quarterly!FD67-Quarterly!FD66)*100","v":1.6666666666666607},{"$f":"(Quarterly!FE67-Quarterly!FE66)*100","v":83.666666666666686},{"$f":"(Quarterly!FF67-Quarterly!FF66)*100","v":87.333333333333314},"--",{"$f":"(Quarterly!FH67-Quarterly!FH66)*100","v":42.666666666666586},{"$f":"(Quarterly!FI67-Quarterly!FI66)*100","v":22.999999999999865},-64.333333333333456,null,null,null,null,null,{"$f":"((Quarterly!FP67/Quarterly!FP66)^4)-1","v":3.371891698564955E-2},"--","--","--","--","--","--","--","--",null,null,null,null,null,{"$f":"((Quarterly!GD67/Quarterly!GD66)^4)-1","v":0},"--","--","--","--","--","--","--","--"]
["73'Q2",{"$f":"((Quarterly!B68/Quarterly!B67)^4)-1","v":0.11131341144027185},{"$f":"((Quarterly!C68/Quarterly!C67)^4)-1","v":4.612750874258631E-2},{"$f":"((Quarterly!D68/Quarterly!D67)^4)-1","v":1.9605045289477818E-2},{"$f":"((Quarterly!E68/Quarterly!E67)^4)-1","v":-1.6682054221039966E-3},{"$f":"((Quarterly!F68/Quarterly!F67)^4)-1","v":-4.63509282453205E-2},{"$f":"((Quarterly!G68/Quarterly!G67)^4)-1","v":-3.3404105772507964E-2},{"$f":"((Quarterly!H68/Quarterly!H67)^4)-1","v":1.7731628563717239E-2},{"$f":"((Quarterly!I68/Quarterly!I67)^4)-1","v":0.15733702253123272},{"$f":"((Quarterly!J68/Quarterly!J67)^4)-1","v":0.19095537196855594},{"$f":"((Quarterly!K68/Quarterly!K67)^4)-1","v":-0.18639836796718323},{"$f":"((Quarterly!L68-Quarterly!L67))","v":27.096999999999998},{"$f":"((Quarterly!M68/Quarterly!M67)^4)-1","v":-0.11039883663524974},{"$f":"((Quarterly!N68/Quarterly!N67)^4)-1","v":0.20731449330409757},{"$f":"((Quarterly!O68/Quarterly!O67)^4)-1","v":-0.6450718465335481},{"$f":"((Quarterly!P68/Quarterly!P67)^4)-1","v":-1.9605583042024644E-2},{"$f":"((Quarterly!Q68/Quarterly!Q67)^4)-1","v":7.2300503258928339E-2},null,null,null,null,null,{"$f":"((Quarterly!W68/Quarterly!W67)^4)-1","v":-4.5532083170749527E-3},"--",{"$f":"((Quarterly!Y68/Quarterly!Y67)^4)-1","v":0.30705530438886908},"--",{"$f":"((Quarterly!AA68/Quarterly!AA67)^4)-1","v":0.13885703758950085},{"$f":"((Quarterly!AB68/Quarterly!AB67)^4)-1","v":-0.12361703684144509},"--","--","--","--","--","--","--","--","--","--",{"$f":"((Quarterly!AM68/Quarterly!AM67)^4)-1","v":3.3237589163330528E-2},{"$f":"((Quarterly!AN68/Quarterly!AN67)^4)-1","v":3.8169978390980353E-2},"--","--",{"$f":"Quarterly!AQ68-Quarterly!AQ67","v":-4.5999999999999943},"--","--",{"$f":"Quarterly!AT68-Quarterly!AT67","v":-4.0333333333333243},"--","--",{"$f":"Quarterly!AW68-Quarterly!AW67","v":-1.86666666666666},{"$f":"Quarterly!AX68-Quarterly!AX67","v":-7.0666666666666771},{"$f":"Quarterly!AY68-Quarterly!AY67","v":1.5},{"$f":"Quarterly!AZ68-Quarterly!AZ67","v":-6.6000000000000085},{"$f":"Quarterly!BA68-Quarterly!BA67","v":0.83333333333334281},"--","--","--","--",{"$f":"((Quarterly!BF68/Quarterly!BF67)^4)-1","v":5.7236024505529004E-2},{"$f":"((Quarterly!BG68/Quarterly!BG67)^4)-1","v":3.7380953369245962E-3},{"$f":"((Quarterly!BH68/Quarterly!BH67)^4)-1","v":-2.6972314932559915E-2},{"$f":"((Quarterly!BI68/Quarterly!BI67)^4)-1","v":5.2961643894232413E-2},{"$f":"((Quarterly!BJ68/Quarterly!BJ67)^4)-1","v":8.4479388025012314E-2},"--",null,"--","--",null,null,null,null,null,{"$f":"((Quarterly!BT68/Quarterly!BT67)^4)-1","v":0.19315666331292092},"--","--",{"$f":"((Quarterly!BW68/Quarterly!BW67)^4)-1","v":5.2499552705003616E-2},{"$f":"((Quarterly!BX68/Quarterly!BX67)^4)-1","v":-0.34573717073163579},{"$f":"((Quarterly!BY68/Quarterly!BY67)^4)-1","v":-0.34970463953929343},"--","--",{"$f":"((Quarterly!CB68/Quarterly!CB67)^4)-1","v":0.84469833629799163},{"$f":"((Quarterly!CC68/Quarterly!CC67)^4)-1","v":0.57190951075214791},"--","--",null,"--","--",null,{"$f":"((Quarterly!CJ68/Quarterly!CJ67)^4)-1","v":-0.40374861234001591},{"$f":"((Quarterly!CK68/Quarterly!CK67)^4)-1","v":0.11158520846454323},{"$f":"((Quarterly!CL68/Quarterly!CL67)^4)-1","v":0.39934635631645032},{"$f":"((Quarterly!CM68/Quarterly!CM67)^4)-1","v":-0.39067358960624776},{"$f":"((Quarterly!CN68/Quarterly!CN67)^4)-1","v":3.224772212380822E-2},{"$f":"((Quarterly!CO68/Quarterly!CO67)^4)-1","v":2.583200370037475E-2},{"$f":"((Quarterly!CP68/Quarterly!CP67)^4)-1","v":0.16046847454908431},{"$f":"((Quarterly!CQ68/Quarterly!CQ67)^4)-1","v":8.7693900910223999E-3},{"$f":"((Quarterly!CR68/Quarterly!CR67)^4)-1","v":0.25595700728088611},"--","--",null,null,null,null,null,{"$f":"((Quarterly!CZ68/Quarterly!CZ67)^4)-1","v":8.631724015848552E-2},{"$f":"((Quarterly!DA68/Quarterly!DA67)^4)-1","v":4.2322241229775681E-2},null,null,null,null,null,{"$f":"((Quarterly!DG68/Quarterly!DG67)^4)-1","v":3.402142960816823E-2},{"$f":"((Quarterly!DH68-Quarterly!DH67)*60)","v":0},{"$f":"Quarterly!DI68-Quarterly!DI67","v":0.3333333333333357},"--",{"$f":"(Quarterly!DK68-Quarterly!DK67)*100","v":0},{"$f":"((Quarterly!DL68/Quarterly!DL67)^4)-1","v":3.830627440210832E-2},null,null,null,{"$f":"((Quarterly!DP68/Quarterly!DP67)^4)-1","v":3.6735800755831383E-2},null,null,null,"--",{"$f":"Quarterly!DU68-Quarterly!DU67","v":-0.49999999999999911},"--","--","--","--","--","--","--","--",null,null,null,null,null,{"$f":"((Quarterly!EI68/Quarterly!EI67)^4)-1","v":1.6821097603972435E-2},{"$f":"((Quarterly!EJ68/Quarterly!EJ67)^4)-1","v":1.4660583954961615E-2},{"$f":"((Quarterly!EK68/Quarterly!EK67)^4)-1","v":2.0700408085088107E-2},null,null,null,null,null,{"$f":"((Quarterly!EQ68/Quarterly!EQ67)^4)-1","v":0.20933917233909072},"--",{"$f":"((Quarterly!ES68/Quarterly!ES67)^4)-1","v":6.9484922152592166E-2},null,null,null,null,null,{"$f":"(Quarterly!EY68-Quarterly!EY67)*100","v":92.999999999999972},{"$f":"(Quarterly!EZ68-Quarterly!EZ67)*100","v":128.00000000000011},{"$f":"(Quarterly!FA68-Quarterly!FA67)*100","v":8.666666666666778},{"$f":"(Quarterly!FB68-Quarterly!FB67)*100","v":12.666666666666782},4.0000000000000036,{"$f":"(Quarterly!FD68-Quarterly!FD67)*100","v":19.333333333333425},{"$f":"(Quarterly!FE68-Quarterly!FE67)*100","v":90.333333333333428},{"$f":"(Quarterly!FF68-Quarterly!FF67)*100","v":70.666666666666615},"--",{"$f":"(Quarterly!FH68-Quarterly!FH67)*100","v":14.000000000000057},{"$f":"(Quarterly!FI68-Quarterly!FI67)*100","v":20.333333333333492},-50.333333333333123,null,null,null,null,null,{"$f":"((Quarterly!FP68/Quarterly!FP67)^4)-1","v":1.1144010763857404E-2},"--","--","--",{"$f":"((Quarterly!FT68/Quarterly!FT67)^4)-1","v":-0.1427336964632212},{"$f":"((Quarterly!FU68/Quarterly!FU67)^4)-1","v":-0.15470799908184929},"--","--","--",null,null,null,null,null,{"$f":"((Quarterly!GD68/Quarterly!GD67)^4)-1","v":0},"--","--","--",{"$f":"((Quarterly!GH68/Quarterly!GH67)^4)-1","v":{"$error":"#DIV/0!"}},"--","--","--","--"]
["73'Q3",{"$f":"((Quarterly!B69/Quarterly!B68)^4)-1","v":5.533976850947564E-2},{"$f":"((Quarterly!C69/Quarterly!C68)^4)-1","v":-2.1559374829402067E-2},{"$f":"((Quarterly!D69/Quarterly!D68)^4)-1","v":3.77637841057199E-3},{"$f":"((Quarterly!E69/Quarterly!E68)^4)-1","v":1.4390846353085074E-2},{"$f":"((Quarterly!F69/Quarterly!F68)^4)-1","v":-3.513506765038954E-2},{"$f":"((Quarterly!G69/Quarterly!G68)^4)-1","v":1.8911586253227641E-2},{"$f":"((Quarterly!H69/Quarterly!H68)^4)-1","v":1.7137424716760608E-2},{"$f":"((Quarterly!I69/Quarterly!I68)^4)-1","v":6.303853761123257E-2},{"$f":"((Quarterly!J69/Quarterly!J68)^4)-1","v":3.9451206498243518E-2},{"$f":"((Quarterly!K69/Quarterly!K68)^4)-1","v":-0.15797164885971782},{"$f":"((Quarterly!L69-Quarterly!L68))","v":-29.032999999999998},{"$f":"((Quarterly!M69/Quarterly!M68)^4)-1","v":-0.10600658875283131},{"$f":"((Quarterly!N69/Quarterly!N68)^4)-1","v":1.3423574161347096E-2},{"$f":"((Quarterly!O69/Quarterly!O68)^4)-1","v":-0.44380985949770924},{"$f":"((Quarterly!P69/Quarterly!P68)^4)-1","v":-4.9917494843033983E-2},{"$f":"((Quarterly!Q69/Quarterly!Q68)^4)-1","v":-0.35002514465663614},null,null,null,null,null,{"$f":"((Quarterly!W69/Quarterly!W68)^4)-1","v":-4.5583971415664726E-3},"--",{"$f":"((Quarterly!Y69/Quarterly!Y68)^4)-1","v":0.20584835114791744},"--",{"$f":"((Quarterly!AA69/Quarterly!AA68)^4)-1","v":7.3278167170086839E-2},{"$f":"((Quarterly!AB69/Quarterly!AB68)^4)-1","v":0.17833832696520791},"--","--","--","--","--","--","--","--","--","--",{"$f":"((Quarterly!AM69/Quarterly!AM68)^4)-1","v":3.5008558231838016E-2},{"$f":"((Quarterly!AN69/Quarterly!AN68)^4)-1","v":3.2535525728818904E-2},"--","--",{"$f":"Quarterly!AQ69-Quarterly!AQ68","v":-4.4999999999999929},"--","--",{"$f":"Quarterly!AT69-Quarterly!AT68","v":-5.0333333333333314},"--","--",{"$f":"Quarterly!AW69-Quarterly!AW68","v":2.4999999999999858},{"$f":"Quarterly!AX69-Quarterly!AX68","v":-7.3666666666666671},{"$f":"Quarterly!AY69-Quarterly!AY68","v":-5.7999999999999972},{"$f":"Quarterly!AZ69-Quarterly!AZ68","v":-6.6333333333333258},{"$f":"Quarterly!BA69-Quarterly!BA68","v":1.0333333333333314},"--","--","--","--",{"$f":"((Quarterly!BF69/Quarterly!BF68)^4)-1","v":7.1102569324525522E-2},{"$f":"((Quarterly!BG69/Quarterly!BG68)^4)-1","v":-3.8210043223356749E-2},{"$f":"((Quarterly!BH69/Quarterly!BH68)^4)-1","v":-9.3979626839184593E-3},{"$f":"((Quarterly!BI69/Quarterly!BI68)^4)-1","v":0.11365350792936435},{"$f":"((Quarterly!BJ69/Quarterly!BJ68)^4)-1","v":-2.1173138863997965E-2},"--",null,"--","--",null,null,null,null,null,{"$f":"((Quarterly!BT69/Quarterly!BT68)^4)-1","v":0.13795902614535827},"--","--",{"$f":"((Quarterly!BW69/Quarterly!BW68)^4)-1","v":6.1050002462961883E-2},{"$f":"((Quarterly!BX69/Quarterly!BX68)^4)-1","v":-0.21092374848258733},{"$f":"((Quarterly!BY69/Quarterly!BY68)^4)-1","v":-0.32841747991497905},"--","--",{"$f":"((Quarterly!CB69/Quarterly!CB68)^4)-1","v":0.48369801875314589},{"$f":"((Quarterly!CC69/Quarterly!CC68)^4)-1","v":0.31774158134953123},"--","--",null,"--","--",null,{"$f":"((Quarterly!CJ69/Quarterly!CJ68)^4)-1","v":-0.40921636660524163},{"$f":"((Quarterly!CK69/Quarterly!CK68)^4)-1","v":0.10139109841019622},{"$f":"((Quarterly!CL69/Quarterly!CL68)^4)-1","v":0.12008331920739024},{"$f":"((Quarterly!CM69/Quarterly!CM68)^4)-1","v":-0.24379408973144545},{"$f":"((Quarterly!CN69/Quarterly!CN68)^4)-1","v":1.7572602774802881E-2},{"$f":"((Quarterly!CO69/Quarterly!CO68)^4)-1","v":1.1530818826411382E-2},{"$f":"((Quarterly!CP69/Quarterly!CP68)^4)-1","v":0.13898957119365773},{"$f":"((Quarterly!CQ69/Quarterly!CQ68)^4)-1","v":9.7845252852550857E-3},{"$f":"((Quarterly!CR69/Quarterly!CR68)^4)-1","v":0.30017383594033564},"--","--",null,null,null,null,null,{"$f":"((Quarterly!CZ69/Quarterly!CZ68)^4)-1","v":8.1273187458754448E-2},{"$f":"((Quarterly!DA69/Quarterly!DA68)^4)-1","v":4.1879194749135262E-2},null,null,null,null,null,{"$f":"((Quarterly!DG69/Quarterly!DG68)^4)-1","v":1.6762338075305472E-2},{"$f":"((Quarterly!DH69-Quarterly!DH68)*60)","v":-1.9999999999998863},{"$f":"Quarterly!DI69-Quarterly!DI68","v":3.3333333333317228E-2},"--",{"$f":"(Quarterly!DK69-Quarterly!DK68)*100","v":-13.333333333333375},{"$f":"((Quarterly!DL69/Quarterly!DL68)^4)-1","v":9.8024350613297173E-3},null,null,null,{"$f":"((Quarterly!DP69/Quarterly!DP68)^4)-1","v":2.3952558486871833E-2},null,null,null,"--",{"$f":"Quarterly!DU69-Quarterly!DU68","v":0.20000000000000018},"--","--","--","--","--","--","--","--",null,null,null,null,null,{"$f":"((Quarterly!EI69/Quarterly!EI68)^4)-1","v":-5.6782450515883154E-2},{"$f":"((Quarterly!EJ69/Quarterly!EJ68)^4)-1","v":-2.2766328918545908E-2},{"$f":"((Quarterly!EK69/Quarterly!EK68)^4)-1","v":-9.1044016888166546E-3},null,null,null,null,null,{"$f":"((Quarterly!EQ69/Quarterly!EQ68)^4)-1","v":0.17512127061844218},"--",{"$f":"((Quarterly!ES69/Quarterly!ES68)^4)-1","v":3.6834231563906528E-2},null,null,null,null,null,{"$f":"(Quarterly!EY69-Quarterly!EY68)*100","v":209.33333333333346},{"$f":"(Quarterly!EZ69-Quarterly!EZ68)*100","v":274.33333333333331},{"$f":"(Quarterly!FA69-Quarterly!FA68)*100","v":27.999999999999847},{"$f":"(Quarterly!FB69-Quarterly!FB68)*100","v":37.333333333333307},9.33333333333346,{"$f":"(Quarterly!FD69-Quarterly!FD68)*100","v":81.666666666666643},{"$f":"(Quarterly!FE69-Quarterly!FE68)*100","v":171.9999999999998},{"$f":"(Quarterly!FF69-Quarterly!FF68)*100","v":149.0000000000002},"--",{"$f":"(Quarterly!FH69-Quarterly!FH68)*100","v":61.666666666666714},{"$f":"(Quarterly!FI69-Quarterly!FI68)*100","v":39.999999999999943},-109.00000000000026,null,null,null,null,null,{"$f":"((Quarterly!FP69/Quarterly!FP68)^4)-1","v":1.582693432655824E-2},"--","--","--",{"$f":"((Quarterly!FT69/Quarterly!FT68)^4)-1","v":-7.1647110269260628E-2},{"$f":"((Quarterly!FU69/Quarterly!FU68)^4)-1","v":-9.3181011822790927E-2},"--","--","--",null,null,null,null,null,{"$f":"((Quarterly!GD69/Quarterly!GD68)^4)-1","v":0.69162518537550999},"--","--","--",{"$f":"((Quarterly!GH69/Quarterly!GH68)^4)-1","v":{"$error":"#DIV/0!"}},"--","--","--","--"]
["73'Q4",{"$f":"((Quarterly!B70/Quarterly!B69)^4)-1","v":0.12293015353215853},{"$f":"((Quarterly!C70/Quarterly!C69)^4)-1","v":3.782172151323504E-2},{"$f":"((Quarterly!D70/Quarterly!D69)^4)-1","v":4.8265954434736358E-3},{"$f":"((Quarterly!E70/Quarterly!E69)^4)-1","v":-1.1714983479206298E-2},{"$f":"((Quarterly!F70/Quarterly!F69)^4)-1","v":-9.0302288992431201E-2},{"$f":"((Quarterly!G70/Quarterly!G69)^4)-1","v":-1.5702048314062189E-2},{"$f":"((Quarterly!H70/Quarterly!H69)^4)-1","v":-2.2400095496187822E-3},{"$f":"((Quarterly!I70/Quarterly!I69)^4)-1","v":3.0377399898238844E-2},{"$f":"((Quarterly!J70/Quarterly!J69)^4)-1","v":-1.7096421768330039E-3},{"$f":"((Quarterly!K70/Quarterly!K69)^4)-1","v":-0.17693383953105124},{"$f":"((Quarterly!L70-Quarterly!L69))","v":34.936999999999998},{"$f":"((Quarterly!M70/Quarterly!M69)^4)-1","v":3.0201534506770544E-2},{"$f":"((Quarterly!N70/Quarterly!N69)^4)-1","v":0.21127109055207494},{"$f":"((Quarterly!O70/Quarterly!O69)^4)-1","v":-0.50782187987521543},{"$f":"((Quarterly!P70/Quarterly!P69)^4)-1","v":2.6887982963847756E-2},{"$f":"((Quarterly!Q70/Quarterly!Q69)^4)-1","v":-0.30829147241864807},null,null,null,null,null,{"$f":"((Quarterly!W70/Quarterly!W69)^4)-1","v":3.7076043652318313E-2},"--",{"$f":"((Quarterly!Y70/Quarterly!Y69)^4)-1","v":7.3233739719752666E-2},"--",{"$f":"((Quarterly!AA70/Quarterly!AA69)^4)-1","v":0.21590674974689494},{"$f":"((Quarterly!AB70/Quarterly!AB69)^4)-1","v":-3.7893140916267498E-4},"--","--","--","--","--","--","--","--","--","--",{"$f":"((Quarterly!AM70/Quarterly!AM69)^4)-1","v":6.0787208559812456E-2},{"$f":"((Quarterly!AN70/Quarterly!AN69)^4)-1","v":7.8347556196851187E-2},"--","--",{"$f":"Quarterly!AQ70-Quarterly!AQ69","v":4.6333333333333329},"--","--",{"$f":"Quarterly!AT70-Quarterly!AT69","v":3.9333333333333229},"--","--",{"$f":"Quarterly!AW70-Quarterly!AW69","v":1.9000000000000128},{"$f":"Quarterly!AX70-Quarterly!AX69","v":7.1000000000000085},{"$f":"Quarterly!AY70-Quarterly!AY69","v":12.299999999999997},{"$f":"Quarterly!AZ70-Quarterly!AZ69","v":2.93333333333333},{"$f":"Quarterly!BA70-Quarterly!BA69","v":5.4333333333333371},"--","--","--","--",{"$f":"((Quarterly!BF70/Quarterly!BF69)^4)-1","v":8.3357094151492284E-2},{"$f":"((Quarterly!BG70/Quarterly!BG69)^4)-1","v":-2.5640189594756779E-2},{"$f":"((Quarterly!BH70/Quarterly!BH69)^4)-1","v":-1.9620489586369416E-2},{"$f":"((Quarterly!BI70/Quarterly!BI69)^4)-1","v":0.11189776342533664},{"$f":"((Quarterly!BJ70/Quarterly!BJ69)^4)-1","v":0.28246081043025395},"--",null,"--","--",null,null,null,null,null,{"$f":"((Quarterly!BT70/Quarterly!BT69)^4)-1","v":0.10621747604122089},"--","--",{"$f":"((Quarterly!BW70/Quarterly!BW69)^4)-1","v":0.12651154185225022},{"$f":"((Quarterly!BX70/Quarterly!BX69)^4)-1","v":-0.55956368625811082},{"$f":"((Quarterly!BY70/Quarterly!BY69)^4)-1","v":-0.65005603020930525},"--","--",{"$f":"((Quarterly!CB70/Quarterly!CB69)^4)-1","v":0.64901940786302603},{"$f":"((Quarterly!CC70/Quarterly!CC69)^4)-1","v":0.47368512764142823},"--","--",null,"--","--",null,{"$f":"((Quarterly!CJ70/Quarterly!CJ69)^4)-1","v":-0.20632830608080888},{"$f":"((Quarterly!CK70/Quarterly!CK69)^4)-1","v":0.13937777475706659},{"$f":"((Quarterly!CL70/Quarterly!CL69)^4)-1","v":0.55727962572333634},{"$f":"((Quarterly!CM70/Quarterly!CM69)^4)-1","v":-0.51669482106364484},{"$f":"((Quarterly!CN70/Quarterly!CN69)^4)-1","v":4.4688584057091862E-2},{"$f":"((Quarterly!CO70/Quarterly!CO69)^4)-1","v":-8.1749433702671404E-4},{"$f":"((Quarterly!CP70/Quarterly!CP69)^4)-1","v":0.11227481349210344},{"$f":"((Quarterly!CQ70/Quarterly!CQ69)^4)-1","v":1.0121645137477708E-2},{"$f":"((Quarterly!CR70/Quarterly!CR69)^4)-1","v":0.21749442243155626},"--","--",null,null,null,null,null,{"$f":"((Quarterly!CZ70/Quarterly!CZ69)^4)-1","v":0.10509546174978124},{"$f":"((Quarterly!DA70/Quarterly!DA69)^4)-1","v":6.8760476590475683E-2},null,null,null,null,null,{"$f":"((Quarterly!DG70/Quarterly!DG69)^4)-1","v":2.5116516796338972E-2},{"$f":"((Quarterly!DH70-Quarterly!DH69)*60)","v":-6.0000000000000853},{"$f":"Quarterly!DI70-Quarterly!DI69","v":0.30000000000001137},"--",{"$f":"(Quarterly!DK70-Quarterly!DK69)*100","v":-3.3333333333333215},{"$f":"((Quarterly!DL70/Quarterly!DL69)^4)-1","v":3.3289698236508958E-2},null,null,null,{"$f":"((Quarterly!DP70/Quarterly!DP69)^4)-1","v":3.8583118065434796E-2},null,null,null,"--",{"$f":"Quarterly!DU70-Quarterly!DU69","v":-6.666666666666643E-2},"--","--","--","--","--","--","--","--",null,null,null,null,null,{"$f":"((Quarterly!EI70/Quarterly!EI69)^4)-1","v":1.3906871287435729E-2},{"$f":"((Quarterly!EJ70/Quarterly!EJ69)^4)-1","v":1.279061684567262E-2},{"$f":"((Quarterly!EK70/Quarterly!EK69)^4)-1","v":1.9545716251327727E-2},null,null,null,null,null,{"$f":"((Quarterly!EQ70/Quarterly!EQ69)^4)-1","v":3.2009118405280645E-2},"--",{"$f":"((Quarterly!ES70/Quarterly!ES69)^4)-1","v":4.8883373106145767E-2},null,null,null,null,null,{"$f":"(Quarterly!EY70-Quarterly!EY69)*100","v":68.333333333333172},{"$f":"(Quarterly!EZ70-Quarterly!EZ69)*100","v":-56.333333333333435},{"$f":"(Quarterly!FA70-Quarterly!FA69)*100","v":6.3333333333333464},{"$f":"(Quarterly!FB70-Quarterly!FB69)*100","v":-3.0000000000001137},-9.33333333333346,{"$f":"(Quarterly!FD70-Quarterly!FD69)*100","v":17.333333333333378},{"$f":"(Quarterly!FE70-Quarterly!FE69)*100","v":-82.333333333333229},{"$f":"(Quarterly!FF70-Quarterly!FF69)*100","v":-109.33333333333337},"--",{"$f":"(Quarterly!FH70-Quarterly!FH69)*100","v":-50.666666666666771},{"$f":"(Quarterly!FI70-Quarterly!FI69)*100","v":-45.3333333333334},63.999999999999972,null,null,null,null,null,{"$f":"((Quarterly!FP70/Quarterly!FP69)^4)-1","v":-1.5974067148646687E-2},"--","--","--",{"$f":"((Quarterly!FT70/Quarterly!FT69)^4)-1","v":0.11314588530435077},{"$f":"((Quarterly!FU70/Quarterly!FU69)^4)-1","v":0.11351367539107615},"--","--","--",null,null,null,null,null,{"$f":"((Quarterly!GD70/Quarterly!GD69)^4)-1","v":0.27000358335775743},"--","--","--",{"$f":"((Quarterly!GH70/Quarterly!GH69)^4)-1","v":{"$error":"#DIV/0!"}},"--","--","--","--"]
["74'Q1",{"$f":"((Quarterly!B71/Quarterly!B70)^4)-1","v":4.2819001556929859E-2},{"$f":"((Quarterly!C71/Quarterly!C70)^4)-1","v":-3.2814013952428334E-2},{"$f":"((Quarterly!D71/Quarterly!D70)^4)-1","v":-3.9863434968295808E-3},{"$f":"((Quarterly!E71/Quarterly!E70)^4)-1","v":-3.435679104730327E-2},{"$f":"((Quarterly!F71/Quarterly!F70)^4)-1","v":-9.047389565023467E-2},{"$f":"((Quarterly!G71/Quarterly!G70)^4)-1","v":-5.2582977554734511E-2},{"$f":"((Quarterly!H71/Quarterly!H70)^4)-1","v":-2.0655776473792686E-2},{"$f":"((Quarterly!I71/Quarterly!I70)^4)-1","v":-4.1058674458394062E-3},{"$f":"((Quarterly!J71/Quarterly!J70)^4)-1","v":-5.6655943960326915E-2},{"$f":"((Quarterly!K71/Quarterly!K70)^4)-1","v":-0.26090286896161674},{"$f":"((Quarterly!L71-Quarterly!L70))","v":-31.452999999999999},{"$f":"((Quarterly!M71/Quarterly!M70)^4)-1","v":-0.12891286595369955},{"$f":"((Quarterly!N71/Quarterly!N70)^4)-1","v":5.2120802804935584E-2},{"$f":"((Quarterly!O71/Quarterly!O70)^4)-1","v":-0.72013429875773372},{"$f":"((Quarterly!P71/Quarterly!P70)^4)-1","v":7.7250543370621205E-2},{"$f":"((Quarterly!Q71/Quarterly!Q70)^4)-1","v":0.25263480524113335},null,null,null,null,null,{"$f":"((Quarterly!W71/Quarterly!W70)^4)-1","v":-7.0533855001623236E-2},"--",{"$f":"((Quarterly!Y71/Quarterly!Y70)^4)-1","v":0.14276919253633391},"--",{"$f":"((Quarterly!AA71/Quarterly!AA70)^4)-1","v":0.26452970552593924},{"$f":"((Quarterly!AB71/Quarterly!AB70)^4)-1","v":-0.17137257020248586},"--","--","--","--","--","--","--","--","--","--",{"$f":"((Quarterly!AM71/Quarterly!AM70)^4)-1","v":-3.4411986374428993E-2},{"$f":"((Quarterly!AN71/Quarterly!AN70)^4)-1","v":-3.4053223606461014E-2},"--","--",{"$f":"Quarterly!AQ71-Quarterly!AQ70","v":-5.1333333333333329},"--","--",{"$f":"Quarterly!AT71-Quarterly!AT70","v":-4.86666666666666},"--","--",{"$f":"Quarterly!AW71-Quarterly!AW70","v":-4.7333333333333343},{"$f":"Quarterly!AX71-Quarterly!AX70","v":-6.6333333333333471},{"$f":"Quarterly!AY71-Quarterly!AY70","v":-0.59999999999999432},{"$f":"Quarterly!AZ71-Quarterly!AZ70","v":-5.0000000000000142},{"$f":"Quarterly!BA71-Quarterly!BA70","v":-2.9333333333333371},"--","--","--","--",{"$f":"((Quarterly!BF71/Quarterly!BF70)^4)-1","v":9.4204660703660625E-2},{"$f":"((Quarterly!BG71/Quarterly!BG70)^4)-1","v":-8.1088375949355251E-3},{"$f":"((Quarterly!BH71/Quarterly!BH70)^4)-1","v":-2.6788644983930743E-2},{"$f":"((Quarterly!BI71/Quarterly!BI70)^4)-1","v":0.10335778595436818},{"$f":"((Quarterly!BJ71/Quarterly!BJ70)^4)-1","v":0.23178143544684682},"--",null,"--","--",null,null,null,null,null,{"$f":"((Quarterly!BT71/Quarterly!BT70)^4)-1","v":8.6319585775558094E-2},"--","--",{"$f":"((Quarterly!BW71/Quarterly!BW70)^4)-1","v":1.303564329744944E-2},{"$f":"((Quarterly!BX71/Quarterly!BX70)^4)-1","v":-0.1303039417652716},{"$f":"((Quarterly!BY71/Quarterly!BY70)^4)-1","v":2.9583805259691065E-2},"--","--",{"$f":"((Quarterly!CB71/Quarterly!CB70)^4)-1","v":0.69645956023840161},{"$f":"((Quarterly!CC71/Quarterly!CC70)^4)-1","v":0.62050482610372382},"--","--",null,"--","--",null,{"$f":"((Quarterly!CJ71/Quarterly!CJ70)^4)-1","v":7.3777738443248086E-3},{"$f":"((Quarterly!CK71/Quarterly!CK70)^4)-1","v":5.578024137845583E-2},{"$f":"((Quarterly!CL71/Quarterly!CL70)^4)-1","v":-9.63956826149307E-2},{"$f":"((Quarterly!CM71/Quarterly!CM70)^4)-1","v":2.9366625445606198E-2},{"$f":"((Quarterly!CN71/Quarterly!CN70)^4)-1","v":-6.4180258353636055E-2},{"$f":"((Quarterly!CO71/Quarterly!CO70)^4)-1","v":2.5180665970309768E-2},{"$f":"((Quarterly!CP71/Quarterly!CP70)^4)-1","v":7.4794116380512143E-2},{"$f":"((Quarterly!CQ71/Quarterly!CQ70)^4)-1","v":8.3218940530791485E-3},{"$f":"((Quarterly!CR71/Quarterly!CR70)^4)-1","v":1.638667764614854E-2},"--","--",null,null,null,null,null,{"$f":"((Quarterly!CZ71/Quarterly!CZ70)^4)-1","v":0.12443074409738109},{"$f":"((Quarterly!DA71/Quarterly!DA70)^4)-1","v":6.4590461210058958E-2},null,null,null,null,null,{"$f":"((Quarterly!DG71/Quarterly!DG70)^4)-1","v":-8.2177273947311447E-3},{"$f":"((Quarterly!DH71-Quarterly!DH70)*60)","v":-9.9999999999998579},{"$f":"Quarterly!DI71-Quarterly!DI70","v":0.23333333333333428},"--",{"$f":"(Quarterly!DK71-Quarterly!DK70)*100","v":36.666666666666714},{"$f":"((Quarterly!DL71/Quarterly!DL70)^4)-1","v":-5.6722359896134167E-3},null,null,null,{"$f":"((Quarterly!DP71/Quarterly!DP70)^4)-1","v":1.8990291501158607E-2},null,null,null,"--",{"$f":"Quarterly!DU71-Quarterly!DU70","v":-0.13333333333333464},"--","--","--","--","--","--","--","--",null,null,null,null,null,{"$f":"((Quarterly!EI71/Quarterly!EI70)^4)-1","v":-7.6954525841181121E-2},{"$f":"((Quarterly!EJ71/Quarterly!EJ70)^4)-1","v":-4.8724489548955363E-2},{"$f":"((Quarterly!EK71/Quarterly!EK70)^4)-1","v":-3.4376869896970308E-2},null,null,null,null,null,{"$f":"((Quarterly!EQ71/Quarterly!EQ70)^4)-1","v":0.29638596197528},"--",{"$f":"((Quarterly!ES71/Quarterly!ES70)^4)-1","v":0.12075340191017325},null,null,null,null,null,{"$f":"(Quarterly!EY71-Quarterly!EY70)*100","v":-54.999999999999893},{"$f":"(Quarterly!EZ71-Quarterly!EZ70)*100","v":-67.333333333333371},{"$f":"(Quarterly!FA71-Quarterly!FA70)*100","v":24.666666666666615},{"$f":"(Quarterly!FB71-Quarterly!FB70)*100","v":10.666666666666558},-14.000000000000057,{"$f":"(Quarterly!FD71-Quarterly!FD70)*100","v":-16.000000000000014},{"$f":"(Quarterly!FE71-Quarterly!FE70)*100","v":11.666666666666714},{"$f":"(Quarterly!FF71-Quarterly!FF70)*100","v":-5.9999999999999609},"--",{"$f":"(Quarterly!FH71-Quarterly!FH70)*100","v":19.666666666666721},{"$f":"(Quarterly!FI71-Quarterly!FI70)*100","v":30.000000000000071},36.000000000000028,null,null,null,null,null,{"$f":"((Quarterly!FP71/Quarterly!FP70)^4)-1","v":-7.7014180669948029E-2},"--","--","--",{"$f":"((Quarterly!FT71/Quarterly!FT70)^4)-1","v":0.13951781881128777},{"$f":"((Quarterly!FU71/Quarterly!FU70)^4)-1","v":0.15458140942769627},"--","--","--",null,null,null,null,null,{"$f":"((Quarterly!GD71/Quarterly!GD70)^4)-1","v":29.275794009456686},"--","--","--",{"$f":"((Quarterly!GH71/Quarterly!GH70)^4)-1","v":{"$error":"#DIV/0!"}},"--","--","--","--"]
["74'Q2",{"$f":"((Quarterly!B72/Quarterly!B71)^4)-1","v":0.11016590326190556},{"$f":"((Quarterly!C72/Quarterly!C71)^4)-1","v":1.0557277551449085E-2},{"$f":"((Quarterly!D72/Quarterly!D71)^4)-1","v":4.8545918759139717E-3},{"$f":"((Quarterly!E72/Quarterly!E71)^4)-1","v":1.4022573109122138E-2},{"$f":"((Quarterly!F72/Quarterly!F71)^4)-1","v":2.1639187106543556E-2},{"$f":"((Quarterly!G72/Quarterly!G71)^4)-1","v":-2.6258803679404141E-2},{"$f":"((Quarterly!H72/Quarterly!H71)^4)-1","v":3.1924195640748776E-2},{"$f":"((Quarterly!I72/Quarterly!I71)^4)-1","v":-6.8918488906944964E-3},{"$f":"((Quarterly!J72/Quarterly!J71)^4)-1","v":-9.4120416446717647E-2},{"$f":"((Quarterly!K72/Quarterly!K71)^4)-1","v":-0.16289607312723997},{"$f":"((Quarterly!L72-Quarterly!L71))","v":9.3219999999999992},{"$f":"((Quarterly!M72/Quarterly!M71)^4)-1","v":0.22936963478695582},{"$f":"((Quarterly!N72/Quarterly!N71)^4)-1","v":0.20921587594189472},{"$f":"((Quarterly!O72/Quarterly!O71)^4)-1","v":0.38021660641116695},{"$f":"((Quarterly!P72/Quarterly!P71)^4)-1","v":2.599935504179518E-2},{"$f":"((Quarterly!Q72/Quarterly!Q71)^4)-1","v":0.32289445495213109},null,null,null,null,null,{"$f":"((Quarterly!W72/Quarterly!W71)^4)-1","v":-3.64011668646671E-2},"--",{"$f":"((Quarterly!Y72/Quarterly!Y71)^4)-1","v":0.32422528941204809},"--",{"$f":"((Quarterly!AA72/Quarterly!AA71)^4)-1","v":9.7699783007907604E-2},{"$f":"((Quarterly!AB72/Quarterly!AB71)^4)-1","v":-0.17502987309875073},"--","--","--","--","--","--","--","--","--","--",{"$f":"((Quarterly!AM72/Quarterly!AM71)^4)-1","v":2.8105719869400136E-3},{"$f":"((Quarterly!AN72/Quarterly!AN71)^4)-1","v":-4.6415693006834902E-3},"--","--",{"$f":"Quarterly!AQ72-Quarterly!AQ71","v":-4.0666666666666629},"--","--",{"$f":"Quarterly!AT72-Quarterly!AT71","v":-3.2333333333333343},"--","--",{"$f":"Quarterly!AW72-Quarterly!AW71","v":-0.73333333333334139},{"$f":"Quarterly!AX72-Quarterly!AX71","v":-3.2666666666666586},{"$f":"Quarterly!AY72-Quarterly!AY71","v":-2.8333333333333428},{"$f":"Quarterly!AZ72-Quarterly!AZ71","v":-1.6333333333333258},{"$f":"Quarterly!BA72-Quarterly!BA71","v":-13.266666666666666},"--","--","--","--",{"$f":"((Quarterly!BF72/Quarterly!BF71)^4)-1","v":0.1090548419178583},{"$f":"((Quarterly!BG72/Quarterly!BG71)^4)-1","v":-1.0482564878030676E-2},{"$f":"((Quarterly!BH72/Quarterly!BH71)^4)-1","v":-2.2589534632001529E-3},{"$f":"((Quarterly!BI72/Quarterly!BI71)^4)-1","v":0.12070384402534473},{"$f":"((Quarterly!BJ72/Quarterly!BJ71)^4)-1","v":0.22352412173461289},"--",null,"--","--",null,null,null,null,null,{"$f":"((Quarterly!BT72/Quarterly!BT71)^4)-1","v":6.8905471149529607E-2},"--","--",{"$f":"((Quarterly!BW72/Quarterly!BW71)^4)-1","v":7.0388453569592002E-4},{"$f":"((Quarterly!BX72/Quarterly!BX71)^4)-1","v":-0.16666432416979371},{"$f":"((Quarterly!BY72/Quarterly!BY71)^4)-1","v":-0.49754458528974732},"--","--",{"$f":"((Quarterly!CB72/Quarterly!CB71)^4)-1","v":0.19891230599691556},{"$f":"((Quarterly!CC72/Quarterly!CC71)^4)-1","v":0.16966557969116258},"--","--",null,"--","--",null,{"$f":"((Quarterly!CJ72/Quarterly!CJ71)^4)-1","v":8.5865353560470759E-2},{"$f":"((Quarterly!CK72/Quarterly!CK71)^4)-1","v":8.9068606235244818E-2},{"$f":"((Quarterly!CL72/Quarterly!CL71)^4)-1","v":-0.23033005943945317},{"$f":"((Quarterly!CM72/Quarterly!CM71)^4)-1","v":0.18131937660129771},{"$f":"((Quarterly!CN72/Quarterly!CN71)^4)-1","v":-3.6968460488069232E-2},{"$f":"((Quarterly!CO72/Quarterly!CO71)^4)-1","v":2.2128042958145633E-2},{"$f":"((Quarterly!CP72/Quarterly!CP71)^4)-1","v":7.2404087428758812E-2},{"$f":"((Quarterly!CQ72/Quarterly!CQ71)^4)-1","v":8.4305543310005948E-3},{"$f":"((Quarterly!CR72/Quarterly!CR71)^4)-1","v":0.22818148129911564},"--","--",null,null,null,null,null,{"$f":"((Quarterly!CZ72/Quarterly!CZ71)^4)-1","v":0.11149784560224019},{"$f":"((Quarterly!DA72/Quarterly!DA71)^4)-1","v":0.10860855355555055},null,null,null,null,null,{"$f":"((Quarterly!DG72/Quarterly!DG71)^4)-1","v":-4.1237058504831614E-3},{"$f":"((Quarterly!DH72-Quarterly!DH71)*60)","v":-7.9999999999999716},{"$f":"Quarterly!DI72-Quarterly!DI71","v":-0.1666666666666714},"--",{"$f":"(Quarterly!DK72-Quarterly!DK71)*100","v":6.666666666666643},{"$f":"((Quarterly!DL72/Quarterly!DL71)^4)-1","v":-9.5714293703013098E-3},null,null,null,{"$f":"((Quarterly!DP72/Quarterly!DP71)^4)-1","v":1.5033689339171818E-2},null,null,null,"--",{"$f":"Quarterly!DU72-Quarterly!DU71","v":0},"--","--","--","--","--","--","--","--",null,null,null,null,null,{"$f":"((Quarterly!EI72/Quarterly!EI71)^4)-1","v":-1.8317696064288125E-2},{"$f":"((Quarterly!EJ72/Quarterly!EJ71)^4)-1","v":1.9700939038733711E-3},{"$f":"((Quarterly!EK72/Quarterly!EK71)^4)-1","v":1.6677434760184351E-2},null,null,null,null,null,{"$f":"((Quarterly!EQ72/Quarterly!EQ71)^4)-1","v":0.14645615769823439},{"$f":"((Quarterly!ER72/Quarterly!ER71)^4)-1","v":0.17562080778932532},{"$f":"((Quarterly!ES72/Quarterly!ES71)^4)-1","v":0.21750914349927575},null,null,null,null,null,{"$f":"(Quarterly!EY72-Quarterly!EY71)*100","v":167.33333333333337},{"$f":"(Quarterly!EZ72-Quarterly!EZ71)*100","v":192.66666666666677},{"$f":"(Quarterly!FA72-Quarterly!FA71)*100","v":46.666666666666586},{"$f":"(Quarterly!FB72-Quarterly!FB71)*100","v":52.000000000000313},5.3333333333337265,{"$f":"(Quarterly!FD72-Quarterly!FD71)*100","v":41.000000000000014},{"$f":"(Quarterly!FE72-Quarterly!FE71)*100","v":53.666666666666707},{"$f":"(Quarterly!FF72-Quarterly!FF71)*100","v":133.66666666666652},"--",{"$f":"(Quarterly!FH72-Quarterly!FH71)*100","v":104.00000000000018},{"$f":"(Quarterly!FI72-Quarterly!FI71)*100","v":48.999999999999929},-84.666666666666586,null,null,null,null,null,{"$f":"((Quarterly!FP72/Quarterly!FP71)^4)-1","v":-5.8271381085753915E-2},"--","--","--",{"$f":"((Quarterly!FT72/Quarterly!FT71)^4)-1","v":-9.8280103545047903E-2},{"$f":"((Quarterly!FU72/Quarterly!FU71)^4)-1","v":-0.14033443468942852},"--","--","--",null,null,null,null,null,{"$f":"((Quarterly!GD72/Quarterly!GD71)^4)-1","v":0},"--","--","--",{"$f":"((Quarterly!GH72/Quarterly!GH71)^4)-1","v":{"$error":"#DIV/0!"}},"--","--","--","--"]
["74'Q3",{"$f":"((Quarterly!B73/Quarterly!B72)^4)-1","v":7.8264796149768445E-2},{"$f":"((Quarterly!C73/Quarterly!C72)^4)-1","v":-3.8169526991311931E-2},{"$f":"((Quarterly!D73/Quarterly!D72)^4)-1","v":-1.2304094349567918E-2},{"$f":"((Quarterly!E73/Quarterly!E72)^4)-1","v":1.6640183202485614E-2},{"$f":"((Quarterly!F73/Quarterly!F72)^4)-1","v":2.3438361581338052E-2},{"$f":"((Quarterly!G73/Quarterly!G72)^4)-1","v":8.6577629692625724E-3},{"$f":"((Quarterly!H73/Quarterly!H72)^4)-1","v":1.9597151365416066E-2},{"$f":"((Quarterly!I73/Quarterly!I72)^4)-1","v":-4.017396743972701E-2},{"$f":"((Quarterly!J73/Quarterly!J72)^4)-1","v":-0.15290156393826471},{"$f":"((Quarterly!K73/Quarterly!K72)^4)-1","v":-0.12689234769748081},{"$f":"((Quarterly!L73-Quarterly!L72))","v":-26.700000000000003},{"$f":"((Quarterly!M73/Quarterly!M72)^4)-1","v":-6.8110360794985558E-2},{"$f":"((Quarterly!N73/Quarterly!N72)^4)-1","v":-0.19886766305529191},{"$f":"((Quarterly!O73/Quarterly!O72)^4)-1","v":1.3151735615238689},{"$f":"((Quarterly!P73/Quarterly!P72)^4)-1","v":5.1378804455635141E-3},{"$f":"((Quarterly!Q73/Quarterly!Q72)^4)-1","v":-0.16750160713694195},null,null,null,null,null,{"$f":"((Quarterly!W73/Quarterly!W72)^4)-1","v":-4.5758927286506768E-2},"--",{"$f":"((Quarterly!Y73/Quarterly!Y72)^4)-1","v":0.20680984513085621},"--",{"$f":"((Quarterly!AA73/Quarterly!AA72)^4)-1","v":0.20270084719889914},{"$f":"((Quarterly!AB73/Quarterly!AB72)^4)-1","v":-0.42121369562573829},"--","--","--","--","--","--","--","--","--","--",{"$f":"((Quarterly!AM73/Quarterly!AM72)^4)-1","v":-1.6593574474121686E-2},{"$f":"((Quarterly!AN73/Quarterly!AN72)^4)-1","v":-1.5904131266494259E-2},"--","--",{"$f":"Quarterly!AQ73-Quarterly!AQ72","v":-5.4666666666666828},"--","--",{"$f":"Quarterly!AT73-Quarterly!AT72","v":-3.5},"--","--",{"$f":"Quarterly!AW73-Quarterly!AW72","v":-3.6999999999999957},{"$f":"Quarterly!AX73-Quarterly!AX72","v":-5.3000000000000043},{"$f":"Quarterly!AY73-Quarterly!AY72","v":-5.6333333333333258},{"$f":"Quarterly!AZ73-Quarterly!AZ72","v":-2.8666666666666742},{"$f":"Quarterly!BA73-Quarterly!BA72","v":-14.133333333333326},"--","--","--","--",{"$f":"((Quarterly!BF73/Quarterly!BF72)^4)-1","v":0.12392296837913341},{"$f":"((Quarterly!BG73/Quarterly!BG72)^4)-1","v":-4.1774328294501784E-2},{"$f":"((Quarterly!BH73/Quarterly!BH72)^4)-1","v":5.9877896623647953E-3},{"$f":"((Quarterly!BI73/Quarterly!BI72)^4)-1","v":0.17301787156236426},{"$f":"((Quarterly!BJ73/Quarterly!BJ72)^4)-1","v":0.334129394929779},"--",null,"--","--",null,null,null,null,null,{"$f":"((Quarterly!BT73/Quarterly!BT72)^4)-1","v":3.6459395932546323E-2},"--","--",{"$f":"((Quarterly!BW73/Quarterly!BW72)^4)-1","v":6.5671254772145859E-2},{"$f":"((Quarterly!BX73/Quarterly!BX72)^4)-1","v":-0.6032212636837172},{"$f":"((Quarterly!BY73/Quarterly!BY72)^4)-1","v":-0.60400610431675528},"--","--",{"$f":"((Quarterly!CB73/Quarterly!CB72)^4)-1","v":0.38854201047977988},{"$f":"((Quarterly!CC73/Quarterly!CC72)^4)-1","v":0.38643770246981424},"--","--",null,"--","--",null,{"$f":"((Quarterly!CJ73/Quarterly!CJ72)^4)-1","v":-0.27903980950945717},{"$f":"((Quarterly!CK73/Quarterly!CK72)^4)-1","v":0.12310331275450426},{"$f":"((Quarterly!CL73/Quarterly!CL72)^4)-1","v":1.9894939194118333E-2},{"$f":"((Quarterly!CM73/Quarterly!CM72)^4)-1","v":-0.36363765990026287},{"$f":"((Quarterly!CN73/Quarterly!CN72)^4)-1","v":3.9233198824430993E-3},{"$f":"((Quarterly!CO73/Quarterly!CO72)^4)-1","v":2.7770454939486822E-2},{"$f":"((Quarterly!CP73/Quarterly!CP72)^4)-1","v":6.8901247516515607E-2},{"$f":"((Quarterly!CQ73/Quarterly!CQ72)^4)-1","v":9.915513217617633E-3},{"$f":"((Quarterly!CR73/Quarterly!CR72)^4)-1","v":0.39439503472082116},"--","--",null,null,null,null,null,{"$f":"((Quarterly!CZ73/Quarterly!CZ72)^4)-1","v":0.11740097603248523},{"$f":"((Quarterly!DA73/Quarterly!DA72)^4)-1","v":0.14481080284761694},null,null,null,null,null,{"$f":"((Quarterly!DG73/Quarterly!DG72)^4)-1","v":-6.1871430782926007E-3},{"$f":"((Quarterly!DH73-Quarterly!DH72)*60)","v":0},{"$f":"Quarterly!DI73-Quarterly!DI72","v":0.1666666666666714},"--",{"$f":"(Quarterly!DK73-Quarterly!DK72)*100","v":43.333333333333272},{"$f":"((Quarterly!DL73/Quarterly!DL72)^4)-1","v":-2.55713237920141E-2},null,null,null,{"$f":"((Quarterly!DP73/Quarterly!DP72)^4)-1","v":5.6843664084755829E-3},null,null,null,"--",{"$f":"Quarterly!DU73-Quarterly!DU72","v":0.36666666666666714},"--","--","--","--","--","--","--","--",null,null,null,null,null,{"$f":"((Quarterly!EI73/Quarterly!EI72)^4)-1","v":-7.1294141883569861E-2},{"$f":"((Quarterly!EJ73/Quarterly!EJ72)^4)-1","v":-2.4656460355209853E-2},{"$f":"((Quarterly!EK73/Quarterly!EK72)^4)-1","v":-1.1367407941516916E-2},null,null,null,null,null,{"$f":"((Quarterly!EQ73/Quarterly!EQ72)^4)-1","v":0.31599512196439705},{"$f":"((Quarterly!ER73/Quarterly!ER72)^4)-1","v":0.22977993198272118},{"$f":"((Quarterly!ES73/Quarterly!ES72)^4)-1","v":0.30723709995147774},null,null,null,null,null,{"$f":"(Quarterly!EY73-Quarterly!EY72)*100","v":105.33333333333329},{"$f":"(Quarterly!EZ73-Quarterly!EZ72)*100","v":83.999999999999801},{"$f":"(Quarterly!FA73-Quarterly!FA72)*100","v":62.333333333333485},{"$f":"(Quarterly!FB73-Quarterly!FB72)*100","v":74.666666666666615},12.33333333333313,{"$f":"(Quarterly!FD73-Quarterly!FD72)*100","v":72.999999999999858},{"$f":"(Quarterly!FE73-Quarterly!FE72)*100","v":3.6666666666665293},{"$f":"(Quarterly!FF73-Quarterly!FF72)*100","v":32.000000000000028},"--",{"$f":"(Quarterly!FH73-Quarterly!FH72)*100","v":39.333333333333265},{"$f":"(Quarterly!FI73-Quarterly!FI72)*100","v":41.999999999999901},9.9999999999998721,null,null,null,null,null,{"$f":"((Quarterly!FP73/Quarterly!FP72)^4)-1","v":6.5493354812944826E-2},"--","--","--",{"$f":"((Quarterly!FT73/Quarterly!FT72)^4)-1","v":9.9937214999764379E-2},{"$f":"((Quarterly!FU73/Quarterly!FU72)^4)-1","v":0.11565661472366262},"--","--","--",null,null,null,null,null,{"$f":"((Quarterly!GD73/Quarterly!GD72)^4)-1","v":0},"--","--","--",{"$f":"((Quarterly!GH73/Quarterly!GH72)^4)-1","v":{"$error":"#DIV/0!"}},"--","--","--","--"]
["74'Q4",{"$f":"((Quarterly!B74/Quarterly!B73)^4)-1","v":0.10525487301373881},{"$f":"((Quarterly!C74/Quarterly!C73)^4)-1","v":-1.5902994846241914E-2},{"$f":"((Quarterly!D74/Quarterly!D73)^4)-1","v":-5.574326453580325E-2},{"$f":"((Quarterly!E74/Quarterly!E73)^4)-1","v":-5.7436218786158122E-2},{"$f":"((Quarterly!F74/Quarterly!F73)^4)-1","v":-0.3296761264700534},{"$f":"((Quarterly!G74/Quarterly!G73)^4)-1","v":-6.9512183605914157E-2},{"$f":"((Quarterly!H74/Quarterly!H73)^4)-1","v":-2.3891875403598606E-2},{"$f":"((Quarterly!I74/Quarterly!I73)^4)-1","v":-0.10097802677105461},{"$f":"((Quarterly!J74/Quarterly!J73)^4)-1","v":-0.23961231427012886},{"$f":"((Quarterly!K74/Quarterly!K73)^4)-1","v":-0.43306697155784746},{"$f":"((Quarterly!L74-Quarterly!L73))","v":33.769000000000005},{"$f":"((Quarterly!M74/Quarterly!M73)^4)-1","v":-3.9115412549080131E-2},{"$f":"((Quarterly!N74/Quarterly!N73)^4)-1","v":0.10870031642861444},{"$f":"((Quarterly!O74/Quarterly!O73)^4)-1","v":-0.59122384437364917},{"$f":"((Quarterly!P74/Quarterly!P73)^4)-1","v":1.7698704084867289E-2},{"$f":"((Quarterly!Q74/Quarterly!Q73)^4)-1","v":3.70363454205404},null,null,null,null,null,{"$f":"((Quarterly!W74/Quarterly!W73)^4)-1","v":-0.18771318051139441},"--",{"$f":"((Quarterly!Y74/Quarterly!Y73)^4)-1","v":9.2964816966881081E-2},"--",{"$f":"((Quarterly!AA74/Quarterly!AA73)^4)-1","v":-0.38276022240349139},{"$f":"((Quarterly!AB74/Quarterly!AB73)^4)-1","v":2.6422721161015517E-2},"--","--","--","--","--","--","--","--","--","--",{"$f":"((Quarterly!AM74/Quarterly!AM73)^4)-1","v":-0.1498980378228687},{"$f":"((Quarterly!AN74/Quarterly!AN73)^4)-1","v":-0.16610456798328188},"--","--",{"$f":"Quarterly!AQ74-Quarterly!AQ73","v":-14.133333333333326},"--","--",{"$f":"Quarterly!AT74-Quarterly!AT73","v":-8.7000000000000028},"--","--",{"$f":"Quarterly!AW74-Quarterly!AW73","v":-10.300000000000004},{"$f":"Quarterly!AX74-Quarterly!AX73","v":-15.5},{"$f":"Quarterly!AY74-Quarterly!AY73","v":-15.366666666666674},{"$f":"Quarterly!AZ74-Quarterly!AZ73","v":90.433333333333337},{"$f":"Quarterly!BA74-Quarterly!BA73","v":-28.266666666666673},"--","--","--","--",{"$f":"((Quarterly!BF74/Quarterly!BF73)^4)-1","v":0.11526559676694959},{"$f":"((Quarterly!BG74/Quarterly!BG73)^4)-1","v":3.5916801007631394E-2},{"$f":"((Quarterly!BH74/Quarterly!BH73)^4)-1","v":-1.1935087533579192E-2},{"$f":"((Quarterly!BI74/Quarterly!BI73)^4)-1","v":7.6527406692437072E-2},{"$f":"((Quarterly!BJ74/Quarterly!BJ73)^4)-1","v":-0.41237983266279943},"--",null,"--","--",null,null,null,null,null,{"$f":"((Quarterly!BT74/Quarterly!BT73)^4)-1","v":1.7730194277563172E-3},"--","--",{"$f":"((Quarterly!BW74/Quarterly!BW73)^4)-1","v":4.4434315244774147E-2},{"$f":"((Quarterly!BX74/Quarterly!BX73)^4)-1","v":-0.47512830827091923},{"$f":"((Quarterly!BY74/Quarterly!BY73)^4)-1","v":-0.35137189979662664},"--","--",{"$f":"((Quarterly!CB74/Quarterly!CB73)^4)-1","v":0.41650176222261104},{"$f":"((Quarterly!CC74/Quarterly!CC73)^4)-1","v":0.49667248082438054},"--","--",null,"--","--",null,{"$f":"((Quarterly!CJ74/Quarterly!CJ73)^4)-1","v":-0.46419403856778751},{"$f":"((Quarterly!CK74/Quarterly!CK73)^4)-1","v":9.6242793222154122E-2},{"$f":"((Quarterly!CL74/Quarterly!CL73)^4)-1","v":0.5728016615556879},{"$f":"((Quarterly!CM74/Quarterly!CM73)^4)-1","v":-0.32875602182134278},{"$f":"((Quarterly!CN74/Quarterly!CN73)^4)-1","v":-5.1290001864920942E-3},{"$f":"((Quarterly!CO74/Quarterly!CO73)^4)-1","v":5.1549665307233594E-2},{"$f":"((Quarterly!CP74/Quarterly!CP73)^4)-1","v":3.2180622850948026E-3},{"$f":"((Quarterly!CQ74/Quarterly!CQ73)^4)-1","v":1.0732148207014625E-2},{"$f":"((Quarterly!CR74/Quarterly!CR73)^4)-1","v":0.153890102438766},"--","--",null,null,null,null,null,{"$f":"((Quarterly!CZ74/Quarterly!CZ73)^4)-1","v":0.12860489754473492},{"$f":"((Quarterly!DA74/Quarterly!DA73)^4)-1","v":0.12225740673937291},null,null,null,null,null,{"$f":"((Quarterly!DG74/Quarterly!DG73)^4)-1","v":-7.8333149514962841E-2},{"$f":"((Quarterly!DH74-Quarterly!DH73)*60)","v":-18.000000000000256},{"$f":"Quarterly!DI74-Quarterly!DI73","v":-6.6666666666662877E-2},"--",{"$f":"(Quarterly!DK74-Quarterly!DK73)*100","v":96.666666666666771},{"$f":"((Quarterly!DL74/Quarterly!DL73)^4)-1","v":-0.10895754241261402},null,null,null,{"$f":"((Quarterly!DP74/Quarterly!DP73)^4)-1","v":-2.2165115389722434E-2},null,null,null,"--",{"$f":"Quarterly!DU74-Quarterly!DU73","v":0.13333333333333286},"--","--","--","--","--","--","--","--",null,null,null,null,null,{"$f":"((Quarterly!EI74/Quarterly!EI73)^4)-1","v":-0.10232288056767169},{"$f":"((Quarterly!EJ74/Quarterly!EJ73)^4)-1","v":-5.8258402892411132E-2},{"$f":"((Quarterly!EK74/Quarterly!EK73)^4)-1","v":-2.6403885526973925E-2},null,null,null,null,null,{"$f":"((Quarterly!EQ74/Quarterly!EQ73)^4)-1","v":0.14744275776846782},{"$f":"((Quarterly!ER74/Quarterly!ER73)^4)-1","v":0.18943137705833002},{"$f":"((Quarterly!ES74/Quarterly!ES73)^4)-1","v":0.2456325142486675},null,null,null,null,null,{"$f":"(Quarterly!EY74-Quarterly!EY73)*100","v":-98.666666666666814},{"$f":"(Quarterly!EZ74-Quarterly!EZ73)*100","v":-274.33333333333326},{"$f":"(Quarterly!FA74-Quarterly!FA73)*100","v":3.0000000000001137},{"$f":"(Quarterly!FB74-Quarterly!FB73)*100","v":75.999999999999972},72.999999999999858,{"$f":"(Quarterly!FD74-Quarterly!FD73)*100","v":18.666666666666742},{"$f":"(Quarterly!FE74-Quarterly!FE73)*100","v":-83},{"$f":"(Quarterly!FF74-Quarterly!FF73)*100","v":-133.66666666666669},"--",{"$f":"(Quarterly!FH74-Quarterly!FH73)*100","v":-80.666666666666842},{"$f":"(Quarterly!FI74-Quarterly!FI73)*100","v":-29.3333333333333},104.33333333333339,null,null,null,null,null,{"$f":"((Quarterly!FP74/Quarterly!FP73)^4)-1","v":2.1927506996723523E-2},"--","--","--",{"$f":"((Quarterly!FT74/Quarterly!FT73)^4)-1","v":1.7694910828210952E-2},{"$f":"((Quarterly!FU74/Quarterly!FU73)^4)-1","v":-8.0298787131163341E-3},"--","--","--",null,null,null,null,null,{"$f":"((Quarterly!GD74/Quarterly!GD73)^4)-1","v":0.48474597302094002},"--","--","--",{"$f":"((Quarterly!GH75/Quarterly!GH73)^4)-1","v":{"$error":"#DIV/0!"}},"--","--","--","--"]
["75'Q1",{"$f":"((Quarterly!B75/Quarterly!B74)^4)-1","v":4.1938859173767939E-2},{"$f":"((Quarterly!C75/Quarterly!C74)^4)-1","v":-4.7456823935196235E-2},{"$f":"((Quarterly!D75/Quarterly!D74)^4)-1","v":2.9309193083869367E-2},{"$f":"((Quarterly!E75/Quarterly!E74)^4)-1","v":3.3974815429180127E-2},{"$f":"((Quarterly!F75/Quarterly!F74)^4)-1","v":8.8101082951213217E-2},{"$f":"((Quarterly!G75/Quarterly!G74)^4)-1","v":7.6938575271554566E-3},{"$f":"((Quarterly!H75/Quarterly!H74)^4)-1","v":4.1282728971408833E-2},{"$f":"((Quarterly!I75/Quarterly!I74)^4)-1","v":-0.20947374651378159},{"$f":"((Quarterly!J75/Quarterly!J74)^4)-1","v":-0.38203692476955975},{"$f":"((Quarterly!K75/Quarterly!K74)^4)-1","v":-0.22968987653563111},{"$f":"((Quarterly!L75-Quarterly!L74))","v":-64.998999999999995},{"$f":"((Quarterly!M75/Quarterly!M74)^4)-1","v":-0.34491237506455852},{"$f":"((Quarterly!N75/Quarterly!N74)^4)-1","v":2.850656325982226E-2},{"$f":"((Quarterly!O75/Quarterly!O74)^4)-1","v":-0.99913310153285606},{"$f":"((Quarterly!P75/Quarterly!P74)^4)-1","v":4.5190844744766867E-2},{"$f":"((Quarterly!Q75/Quarterly!Q74)^4)-1","v":2.9616489627009903},null,null,null,null,null,{"$f":"((Quarterly!W75/Quarterly!W74)^4)-1","v":-0.30847292399338455},"--",{"$f":"((Quarterly!Y75/Quarterly!Y74)^4)-1","v":-5.7642303308184095E-3},"--",{"$f":"((Quarterly!AA75/Quarterly!AA74)^4)-1","v":-0.41789990588349657},{"$f":"((Quarterly!AB75/Quarterly!AB74)^4)-1","v":0.44994856369093417},"--","--","--","--","--","--","--","--","--","--",{"$f":"((Quarterly!AM75/Quarterly!AM74)^4)-1","v":-0.23933709484692267},{"$f":"((Quarterly!AN75/Quarterly!AN74)^4)-1","v":-0.29358399442032956},"--","--",{"$f":"Quarterly!AQ75-Quarterly!AQ74","v":-4.9333333333333371},"--","--",{"$f":"Quarterly!AT75-Quarterly!AT74","v":-7.5666666666666664},"--","--",{"$f":"Quarterly!AW75-Quarterly!AW74","v":-12.533333333333331},{"$f":"Quarterly!AX75-Quarterly!AX74","v":4.1000000000000014},{"$f":"Quarterly!AY75-Quarterly!AY74","v":-21.933333333333316},{"$f":"Quarterly!AZ75-Quarterly!AZ74","v":-103.73333333333332},{"$f":"Quarterly!BA75-Quarterly!BA74","v":-16.599999999999998},"--","--","--","--",{"$f":"((Quarterly!BF75/Quarterly!BF74)^4)-1","v":0.12670941221123067},{"$f":"((Quarterly!BG75/Quarterly!BG74)^4)-1","v":3.2093020754336399E-2},{"$f":"((Quarterly!BH75/Quarterly!BH74)^4)-1","v":3.537269344686611E-2},{"$f":"((Quarterly!BI75/Quarterly!BI74)^4)-1","v":9.1742892484208305E-2},{"$f":"((Quarterly!BJ75/Quarterly!BJ74)^4)-1","v":-0.48294747670536509},"--",null,"--","--",null,null,null,null,null,{"$f":"((Quarterly!BT75/Quarterly!BT74)^4)-1","v":-1.3537504592438299E-2},"--","--",{"$f":"((Quarterly!BW75/Quarterly!BW74)^4)-1","v":0.10723776420823916},{"$f":"((Quarterly!BX75/Quarterly!BX74)^4)-1","v":-0.1725186373421056},{"$f":"((Quarterly!BY75/Quarterly!BY74)^4)-1","v":-0.4165193415939894},"--","--",{"$f":"((Quarterly!CB75/Quarterly!CB74)^4)-1","v":0.17327165180600357},{"$f":"((Quarterly!CC75/Quarterly!CC74)^4)-1","v":0.37469993929988865},"--","--",null,"--","--",null,{"$f":"((Quarterly!CJ75/Quarterly!CJ74)^4)-1","v":0},{"$f":"((Quarterly!CK75/Quarterly!CK74)^4)-1","v":6.2847281065063543E-2},{"$f":"((Quarterly!CL75/Quarterly!CL74)^4)-1","v":-0.19601152029572622},{"$f":"((Quarterly!CM75/Quarterly!CM74)^4)-1","v":-0.21457966194817468},{"$f":"((Quarterly!CN75/Quarterly!CN74)^4)-1","v":-6.2892085011363452E-3},{"$f":"((Quarterly!CO75/Quarterly!CO74)^4)-1","v":9.9869230602356085E-2},{"$f":"((Quarterly!CP75/Quarterly!CP74)^4)-1","v":-1.7398685655367618E-4},{"$f":"((Quarterly!CQ75/Quarterly!CQ74)^4)-1","v":8.3258360607529891E-3},{"$f":"((Quarterly!CR75/Quarterly!CR74)^4)-1","v":-6.5088194558298507E-2},"--","--",null,null,null,null,null,{"$f":"((Quarterly!CZ75/Quarterly!CZ74)^4)-1","v":8.8272335540763969E-2},{"$f":"((Quarterly!DA75/Quarterly!DA74)^4)-1","v":8.8036975008598084E-2},null,null,null,null,null,{"$f":"((Quarterly!DG75/Quarterly!DG74)^4)-1","v":-0.12471210697440338},{"$f":"((Quarterly!DH75-Quarterly!DH74)*60)","v":-15.999999999999943},{"$f":"Quarterly!DI75-Quarterly!DI74","v":-6.6666666666662877E-2},"--",{"$f":"(Quarterly!DK75-Quarterly!DK74)*100","v":166.66666666666652},{"$f":"((Quarterly!DL75/Quarterly!DL74)^4)-1","v":-0.19973596706684182},null,null,null,{"$f":"((Quarterly!DP75/Quarterly!DP74)^4)-1","v":-6.1330170208189982E-2},null,null,null,"--",{"$f":"Quarterly!DU75-Quarterly!DU74","v":1.4000000000000004},"--","--","--","--","--","--","--","--",null,null,null,null,null,{"$f":"((Quarterly!EI75/Quarterly!EI74)^4)-1","v":-0.1268499595217174},{"$f":"((Quarterly!EJ75/Quarterly!EJ74)^4)-1","v":-4.053245636189462E-2},{"$f":"((Quarterly!EK75/Quarterly!EK74)^4)-1","v":-1.7827700023080761E-2},null,null,null,null,null,{"$f":"((Quarterly!EQ75/Quarterly!EQ74)^4)-1","v":-2.3289655330410719E-3},{"$f":"((Quarterly!ER75/Quarterly!ER74)^4)-1","v":9.6318855645589618E-2},{"$f":"((Quarterly!ES75/Quarterly!ES74)^4)-1","v":0.13773955659320469},null,null,null,null,null,{"$f":"(Quarterly!EY75-Quarterly!EY74)*100","v":-202.33333333333317},{"$f":"(Quarterly!EZ75-Quarterly!EZ74)*100","v":-304.3333333333332},{"$f":"(Quarterly!FA75-Quarterly!FA74)*100","v":-31.000000000000227},{"$f":"(Quarterly!FB75-Quarterly!FB74)*100","v":7.6666666666666217},38.666666666666849,{"$f":"(Quarterly!FD75-Quarterly!FD74)*100","v":-65.000000000000028},{"$f":"(Quarterly!FE75-Quarterly!FE74)*100","v":-160.99999999999994},{"$f":"(Quarterly!FF75-Quarterly!FF74)*100","v":-136.66666666666654},"--",{"$f":"(Quarterly!FH75-Quarterly!FH74)*100","v":-37.999999999999901},{"$f":"(Quarterly!FI75-Quarterly!FI74)*100","v":-12.999999999999901},{"$f":"+FI75-FF75","v":123.66666666666664},null,null,null,null,null,{"$f":"((Quarterly!FP75/Quarterly!FP74)^4)-1","v":5.1110237520582302E-2},"--","--","--",{"$f":"((Quarterly!FT75/Quarterly!FT74)^4)-1","v":-4.9837874456470366E-2},{"$f":"((Quarterly!FU75/Quarterly!FU74)^4)-1","v":-0.10983461886510115},"--","--","--",null,null,null,null,null,{"$f":"((Quarterly!GD75/Quarterly!GD74)^4)-1","v":0},"--","--","--",{"$f":"((Quarterly!GH76/Quarterly!GH75)^4)-1","v":{"$error":"#DIV/0!"}},"--","--","--","--"]
["75'Q2",{"$f":"((Quarterly!B76/Quarterly!B75)^4)-1","v":9.4285306593941964E-2},{"$f":"((Quarterly!C76/Quarterly!C75)^4)-1","v":3.1176271227260743E-2},{"$f":"((Quarterly!D76/Quarterly!D75)^4)-1","v":4.1600762530489055E-2},{"$f":"((Quarterly!E76/Quarterly!E75)^4)-1","v":6.8473946132751484E-2},{"$f":"((Quarterly!F76/Quarterly!F75)^4)-1","v":7.9987038860230397E-2},{"$f":"((Quarterly!G76/Quarterly!G75)^4)-1","v":9.1590934796659695E-2},{"$f":"((Quarterly!H76/Quarterly!H75)^4)-1","v":5.7589403609375811E-2},{"$f":"((Quarterly!I76/Quarterly!I75)^4)-1","v":-9.2686945643000618E-2},{"$f":"((Quarterly!J76/Quarterly!J75)^4)-1","v":-0.2055193176528245},{"$f":"((Quarterly!K76/Quarterly!K75)^4)-1","v":8.5863186276487591E-2},{"$f":"((Quarterly!L76-Quarterly!L75))","v":-14.072000000000003},{"$f":"((Quarterly!M76/Quarterly!M75)^4)-1","v":-0.28367654659802077},{"$f":"((Quarterly!N76/Quarterly!N75)^4)-1","v":-0.11143244798092777},{"$f":"((Quarterly!O76/Quarterly!O75)^4)-1","v":0.49543157481981703},{"$f":"((Quarterly!P76/Quarterly!P75)^4)-1","v":-2.6484295528240498E-2},{"$f":"((Quarterly!Q76/Quarterly!Q75)^4)-1","v":8.6465649494239809},null,null,null,null,null,{"$f":"((Quarterly!W76/Quarterly!W75)^4)-1","v":-8.9356440021964967E-2},"--",{"$f":"((Quarterly!Y76/Quarterly!Y75)^4)-1","v":-8.1336753692565211E-2},"--",{"$f":"((Quarterly!AA76/Quarterly!AA75)^4)-1","v":0.2337534228774496},{"$f":"((Quarterly!AB76/Quarterly!AB75)^4)-1","v":0.52241105958733436},"--","--","--","--","--","--","--","--","--","--",{"$f":"((Quarterly!AM76/Quarterly!AM75)^4)-1","v":-5.2207669853321925E-2},{"$f":"((Quarterly!AN76/Quarterly!AN75)^4)-1","v":-6.8231375670694927E-2},"--","--",{"$f":"Quarterly!AQ76-Quarterly!AQ75","v":9.0333333333333456},"--","--",{"$f":"Quarterly!AT76-Quarterly!AT75","v":8.2666666666666693},"--","--",{"$f":"Quarterly!AW76-Quarterly!AW75","v":-3.8333333333333321},{"$f":"Quarterly!AX76-Quarterly!AX75","v":11.63333333333334},{"$f":"Quarterly!AY76-Quarterly!AY75","v":-4.5333333333333385},{"$f":"Quarterly!AZ76-Quarterly!AZ75","v":13.699999999999996},{"$f":"Quarterly!BA76-Quarterly!BA75","v":5.5333333333333314},"--","--","--","--",{"$f":"((Quarterly!BF76/Quarterly!BF75)^4)-1","v":8.8366921212134741E-2},{"$f":"((Quarterly!BG76/Quarterly!BG75)^4)-1","v":6.8401650152755789E-2},{"$f":"((Quarterly!BH76/Quarterly!BH75)^4)-1","v":3.7428547643279186E-2},{"$f":"((Quarterly!BI76/Quarterly!BI75)^4)-1","v":1.8624024073970569E-2},{"$f":"((Quarterly!BJ76/Quarterly!BJ75)^4)-1","v":0.38856269151417022},"--",null,"--","--",null,null,null,null,null,{"$f":"((Quarterly!BT76/Quarterly!BT75)^4)-1","v":-2.8486398534753099E-2},"--","--",{"$f":"((Quarterly!BW76/Quarterly!BW75)^4)-1","v":5.9809448816553257E-2},{"$f":"((Quarterly!BX76/Quarterly!BX75)^4)-1","v":0.44798950955163641},{"$f":"((Quarterly!BY76/Quarterly!BY75)^4)-1","v":1.518108159332253},"--","--",{"$f":"((Quarterly!CB76/Quarterly!CB75)^4)-1","v":-0.18999359054822895},{"$f":"((Quarterly!CC76/Quarterly!CC75)^4)-1","v":-8.8338114182215488E-2},"--","--",null,"--","--",null,{"$f":"((Quarterly!CJ76/Quarterly!CJ75)^4)-1","v":1.6576621619532692},{"$f":"((Quarterly!CK76/Quarterly!CK75)^4)-1","v":9.9569072103509404E-2},{"$f":"((Quarterly!CL76/Quarterly!CL75)^4)-1","v":1.644241388165586},{"$f":"((Quarterly!CM76/Quarterly!CM75)^4)-1","v":0.78479465916893432},{"$f":"((Quarterly!CN76/Quarterly!CN75)^4)-1","v":0.19899888200092297},{"$f":"((Quarterly!CO76/Quarterly!CO75)^4)-1","v":0.18415395582841088},{"$f":"((Quarterly!CP76/Quarterly!CP75)^4)-1","v":-2.7537183739662408E-2},{"$f":"((Quarterly!CQ76/Quarterly!CQ75)^4)-1","v":9.0198941240546837E-3},{"$f":"((Quarterly!CR76/Quarterly!CR75)^4)-1","v":7.3856904206752949E-2},"--","--",null,null,null,null,null,{"$f":"((Quarterly!CZ76/Quarterly!CZ75)^4)-1","v":4.9070741461755496E-2},{"$f":"((Quarterly!DA76/Quarterly!DA75)^4)-1","v":6.4767248416522705E-2},null,null,null,null,null,{"$f":"((Quarterly!DG76/Quarterly!DG75)^4)-1","v":-4.2981299688187646E-2},{"$f":"((Quarterly!DH76-Quarterly!DH75)*60)","v":-1.9999999999998863},{"$f":"Quarterly!DI76-Quarterly!DI75","v":0.13333333333332575},"--",{"$f":"(Quarterly!DK76-Quarterly!DK75)*100","v":60.000000000000142},{"$f":"((Quarterly!DL76/Quarterly!DL75)^4)-1","v":-7.6306130079041523E-2},null,null,null,{"$f":"((Quarterly!DP76/Quarterly!DP75)^4)-1","v":-2.1669912209994036E-2},null,null,null,"--",{"$f":"Quarterly!DU76-Quarterly!DU75","v":2.1000000000000005},"--","--","--","--","--","--","--","--",null,null,null,null,null,{"$f":"((Quarterly!EI76/Quarterly!EI75)^4)-1","v":-7.6901628664161059E-4},{"$f":"((Quarterly!EJ76/Quarterly!EJ75)^4)-1","v":2.9449595129278805E-2},{"$f":"((Quarterly!EK76/Quarterly!EK75)^4)-1","v":3.3681266978112134E-2},null,null,null,null,null,{"$f":"((Quarterly!EQ76/Quarterly!EQ75)^4)-1","v":4.5056750835468229E-2},{"$f":"((Quarterly!ER76/Quarterly!ER75)^4)-1","v":4.6235225164990901E-2},{"$f":"((Quarterly!ES76/Quarterly!ES75)^4)-1","v":7.7400062505018408E-2},null,null,null,null,null,{"$f":"(Quarterly!EY76-Quarterly!EY75)*100","v":-165.66666666666671},{"$f":"(Quarterly!EZ76-Quarterly!EZ75)*100","v":-88.333333333333286},{"$f":"(Quarterly!FA76-Quarterly!FA75)*100","v":16.666666666666785},{"$f":"(Quarterly!FB76-Quarterly!FB75)*100","v":-1.6666666666665719},{"$f":"+FB76-FA76","v":-18.333333333333357},{"$f":"(Quarterly!FD76-Quarterly!FD75)*100","v":-27.333333333333343},{"$f":"(Quarterly!FE76-Quarterly!FE75)*100","v":-35.666666666666643},{"$f":"(Quarterly!FF76-Quarterly!FF75)*100","v":21.999999999999886},"--",{"$f":"(Quarterly!FH76-Quarterly!FH75)*100","v":46.666666666666586},{"$f":"(Quarterly!FI76-Quarterly!FI75)*100","v":50.999999999999886},29,null,null,null,null,null,{"$f":"((Quarterly!FP76/Quarterly!FP75)^4)-1","v":9.7224065368166412E-2},"--","--","--",{"$f":"((Quarterly!FT76/Quarterly!FT75)^4)-1","v":5.6544090395838742E-2},{"$f":"((Quarterly!FU76/Quarterly!FU75)^4)-1","v":3.0273156589398997E-2},"--","--","--",null,null,null,null,null,{"$f":"((Quarterly!GD76/Quarterly!GD75)^4)-1","v":0},"--","--","--",{"$f":"((Quarterly!GH77/Quarterly!GH76)^4)-1","v":{"$error":"#DIV/0!"}},"--","--","--","--"]
["75'Q3",{"$f":"((Quarterly!B77/Quarterly!B76)^4)-1","v":0.14588620263431706},{"$f":"((Quarterly!C77/Quarterly!C76)^4)-1","v":6.7760942731398321E-2},{"$f":"((Quarterly!D77/Quarterly!D76)^4)-1","v":3.617613034252054E-2},{"$f":"((Quarterly!E77/Quarterly!E76)^4)-1","v":5.8294520602460098E-2},{"$f":"((Quarterly!F77/Quarterly!F76)^4)-1","v":0.27424716266847704},{"$f":"((Quarterly!G77/Quarterly!G76)^4)-1","v":3.9728646422987568E-2},{"$f":"((Quarterly!H77/Quarterly!H76)^4)-1","v":4.9763775403804278E-2},{"$f":"((Quarterly!I77/Quarterly!I76)^4)-1","v":4.3359228750041501E-2},{"$f":"((Quarterly!J77/Quarterly!J76)^4)-1","v":4.9441001503210957E-2},{"$f":"((Quarterly!K77/Quarterly!K76)^4)-1","v":0.30539082704078924},{"$f":"((Quarterly!L77-Quarterly!L76))","v":27.506},{"$f":"((Quarterly!M77/Quarterly!M76)^4)-1","v":0.37634374649858882},{"$f":"((Quarterly!N77/Quarterly!N76)^4)-1","v":-6.5702661706898202E-2},{"$f":"((Quarterly!O77/Quarterly!O76)^4)-1","v":32.69107012818256},{"$f":"((Quarterly!P77/Quarterly!P76)^4)-1","v":6.5101194879388924E-2},{"$f":"((Quarterly!Q77/Quarterly!Q76)^4)-1","v":-0.78941840626164717},null,null,null,null,null,{"$f":"((Quarterly!W77/Quarterly!W76)^4)-1","v":0.11012574485851068},"--",{"$f":"((Quarterly!Y77/Quarterly!Y76)^4)-1","v":-6.1057394517566199E-2},"--",{"$f":"((Quarterly!AA77/Quarterly!AA76)^4)-1","v":0.91665981403813257},{"$f":"((Quarterly!AB77/Quarterly!AB76)^4)-1","v":0.61104699047505306},"--","--","--","--","--","--","--","--","--","--",{"$f":"((Quarterly!AM77/Quarterly!AM76)^4)-1","v":0.10188261865371384},{"$f":"((Quarterly!AN77/Quarterly!AN76)^4)-1","v":0.13787955666211049},"--","--",{"$f":"Quarterly!AQ77-Quarterly!AQ76","v":9.7333333333333272},"--","--",{"$f":"Quarterly!AT77-Quarterly!AT76","v":9.0333333333333314},"--","--",{"$f":"Quarterly!AW77-Quarterly!AW76","v":0.10000000000000497},{"$f":"Quarterly!AX77-Quarterly!AX76","v":11.466666666666654},{"$f":"Quarterly!AY77-Quarterly!AY76","v":21.133333333333326},{"$f":"Quarterly!AZ77-Quarterly!AZ76","v":10.033333333333331},{"$f":"Quarterly!BA77-Quarterly!BA76","v":12.766666666666669},"--","--","--","--",{"$f":"((Quarterly!BF77/Quarterly!BF76)^4)-1","v":7.2226294769738519E-2},{"$f":"((Quarterly!BG77/Quarterly!BG76)^4)-1","v":4.6153165086779246E-2},{"$f":"((Quarterly!BH77/Quarterly!BH76)^4)-1","v":-9.6086862644401139E-3},{"$f":"((Quarterly!BI77/Quarterly!BI76)^4)-1","v":2.5031241758513456E-2},{"$f":"((Quarterly!BJ77/Quarterly!BJ76)^4)-1","v":1.2532102288331597},"--",null,"--","--",null,null,null,null,null,{"$f":"((Quarterly!BT77/Quarterly!BT76)^4)-1","v":1.7748104256853914E-2},"--","--",{"$f":"((Quarterly!BW77/Quarterly!BW76)^4)-1","v":0.10704564509662018},{"$f":"((Quarterly!BX77/Quarterly!BX76)^4)-1","v":0.85559062089153781},{"$f":"((Quarterly!BY77/Quarterly!BY76)^4)-1","v":0.62544042295301616},"--","--",{"$f":"((Quarterly!CB77/Quarterly!CB76)^4)-1","v":-0.2465798819034779},{"$f":"((Quarterly!CC77/Quarterly!CC76)^4)-1","v":-0.22746015389109364},"--","--",null,"--","--",null,{"$f":"((Quarterly!CJ77/Quarterly!CJ76)^4)-1","v":2.8896395650807039E-2},{"$f":"((Quarterly!CK77/Quarterly!CK76)^4)-1","v":0.11293543387664107},{"$f":"((Quarterly!CL77/Quarterly!CL76)^4)-1","v":-0.50650691960305605},{"$f":"((Quarterly!CM77/Quarterly!CM76)^4)-1","v":0.57290092940662896},{"$f":"((Quarterly!CN77/Quarterly!CN76)^4)-1","v":-5.6929655609220697E-2},{"$f":"((Quarterly!CO77/Quarterly!CO76)^4)-1","v":0.17648464641845152},{"$f":"((Quarterly!CP77/Quarterly!CP76)^4)-1","v":1.1482528767983169E-2},{"$f":"((Quarterly!CQ77/Quarterly!CQ76)^4)-1","v":1.1910982771727419E-2},{"$f":"((Quarterly!CR77/Quarterly!CR76)^4)-1","v":0.23129272247409416},"--","--",null,null,null,null,null,{"$f":"((Quarterly!CZ77/Quarterly!CZ76)^4)-1","v":8.2644949218672936E-2},{"$f":"((Quarterly!DA77/Quarterly!DA76)^4)-1","v":5.3338717901366905E-2},null,null,null,null,null,{"$f":"((Quarterly!DG77/Quarterly!DG76)^4)-1","v":5.8675405583261453E-2},{"$f":"((Quarterly!DH77-Quarterly!DH76)*60)","v":9.9999999999998579},{"$f":"Quarterly!DI77-Quarterly!DI76","v":-6.6666666666662877E-2},"--",{"$f":"(Quarterly!DK77-Quarterly!DK76)*100","v":-40.000000000000036},{"$f":"((Quarterly!DL77/Quarterly!DL76)^4)-1","v":1.6920742992818427E-2},null,null,null,{"$f":"((Quarterly!DP77/Quarterly!DP76)^4)-1","v":2.7277682595722608E-2},null,null,null,"--",{"$f":"Quarterly!DU77-Quarterly!DU76","v":3.3333333333331439E-2},"--","--","--","--","--","--","--","--",null,null,null,null,null,{"$f":"((Quarterly!EI77/Quarterly!EI76)^4)-1","v":0.11436004226809193},{"$f":"((Quarterly!EJ77/Quarterly!EJ76)^4)-1","v":7.0306291181206459E-2},{"$f":"((Quarterly!EK77/Quarterly!EK76)^4)-1","v":5.7464505996062565E-2},null,null,null,null,null,{"$f":"((Quarterly!EQ77/Quarterly!EQ76)^4)-1","v":8.8122704307926902E-2},{"$f":"((Quarterly!ER77/Quarterly!ER76)^4)-1","v":4.3385132753007705E-2},{"$f":"((Quarterly!ES77/Quarterly!ES76)^4)-1","v":5.8964087270172216E-2},null,null,null,null,null,{"$f":"(Quarterly!EY77-Quarterly!EY76)*100","v":24.000000000000021},{"$f":"(Quarterly!EZ77-Quarterly!EZ76)*100","v":73.999999999999844},{"$f":"(Quarterly!FA77-Quarterly!FA76)*100","v":3.9999999999999147},{"$f":"(Quarterly!FB77-Quarterly!FB76)*100","v":-4.6666666666666856},-8.6666666666666003,{"$f":"(Quarterly!FD77-Quarterly!FD76)*100","v":11.333333333333329},{"$f":"(Quarterly!FE77-Quarterly!FE76)*100","v":93.666666666666742},{"$f":"(Quarterly!FF77-Quarterly!FF76)*100","v":99.3333333333334},"--",{"$f":"(Quarterly!FH77-Quarterly!FH76)*100","v":46.666666666666586},{"$f":"(Quarterly!FI77-Quarterly!FI76)*100","v":24.666666666666792},-74.6666666666666,null,null,null,null,null,{"$f":"((Quarterly!FP77/Quarterly!FP76)^4)-1","v":3.5157431043173704E-2},"--","--","--",{"$f":"((Quarterly!FT77/Quarterly!FT76)^4)-1","v":0.19372100305172091},{"$f":"((Quarterly!FU77/Quarterly!FU76)^4)-1","v":0.18400138423223411},"--","--","--",null,null,null,null,null,{"$f":"((Quarterly!GD77/Quarterly!GD76)^4)-1","v":0},"--","--","--",{"$f":"((Quarterly!GH78/Quarterly!GH77)^4)-1","v":{"$error":"#DIV/0!"}},"--","--","--","--"]
["75'Q4",{"$f":"((Quarterly!B78/Quarterly!B77)^4)-1","v":0.12714358863428399},{"$f":"((Quarterly!C78/Quarterly!C77)^4)-1","v":5.5027088513221356E-2},{"$f":"((Quarterly!D78/Quarterly!D77)^4)-1","v":4.9971718801391285E-2},{"$f":"((Quarterly!E78/Quarterly!E77)^4)-1","v":4.3077181444688195E-2},{"$f":"((Quarterly!F78/Quarterly!F77)^4)-1","v":0.12161962118470449},{"$f":"((Quarterly!G78/Quarterly!G77)^4)-1","v":-9.7670771076524554E-3},{"$f":"((Quarterly!H78/Quarterly!H77)^4)-1","v":6.0069584461326375E-2},{"$f":"((Quarterly!I78/Quarterly!I77)^4)-1","v":4.8500474207907596E-2},{"$f":"((Quarterly!J78/Quarterly!J77)^4)-1","v":4.8920746571359253E-2},{"$f":"((Quarterly!K78/Quarterly!K77)^4)-1","v":0.18558753006171447},{"$f":"((Quarterly!L78-Quarterly!L77))","v":5.5759999999999996},{"$f":"((Quarterly!M78/Quarterly!M77)^4)-1","v":0.23121902341176859},{"$f":"((Quarterly!N78/Quarterly!N77)^4)-1","v":0.2460838172693216},{"$f":"((Quarterly!O78/Quarterly!O77)^4)-1","v":3.3450882695380768E-2},{"$f":"((Quarterly!P78/Quarterly!P77)^4)-1","v":3.7656772209034406E-2},{"$f":"((Quarterly!Q78/Quarterly!Q77)^4)-1","v":4.2994197660019662E-2},null,null,null,null,null,{"$f":"((Quarterly!W78/Quarterly!W77)^4)-1","v":8.9707533603270218E-2},"--",{"$f":"((Quarterly!Y78/Quarterly!Y77)^4)-1","v":-5.1556261911936963E-3},"--",{"$f":"((Quarterly!AA78/Quarterly!AA77)^4)-1","v":0.31979641571605311},{"$f":"((Quarterly!AB78/Quarterly!AB77)^4)-1","v":0.37292678627069153},"--","--","--","--","--","--","--","--","--","--",{"$f":"((Quarterly!AM78/Quarterly!AM77)^4)-1","v":9.0697196474152086E-2},{"$f":"((Quarterly!AN78/Quarterly!AN77)^4)-1","v":0.11241249431046874},"--","--",{"$f":"Quarterly!AQ78-Quarterly!AQ77","v":3.9666666666666686},"--","--",{"$f":"Quarterly!AT78-Quarterly!AT77","v":0.6666666666666714},"--","--",{"$f":"Quarterly!AW78-Quarterly!AW77","v":11.333333333333329},{"$f":"Quarterly!AX78-Quarterly!AX77","v":3.4666666666666686},{"$f":"Quarterly!AY78-Quarterly!AY77","v":5.0333333333333456},{"$f":"Quarterly!AZ78-Quarterly!AZ77","v":1.8333333333333357},{"$f":"Quarterly!BA78-Quarterly!BA77","v":8.4000000000000057},"--","--","--","--",{"$f":"((Quarterly!BF78/Quarterly!BF77)^4)-1","v":6.7040544294425741E-2},{"$f":"((Quarterly!BG78/Quarterly!BG77)^4)-1","v":3.8402413596847484E-3},{"$f":"((Quarterly!BH78/Quarterly!BH77)^4)-1","v":-8.1545526199316987E-3},{"$f":"((Quarterly!BI78/Quarterly!BI77)^4)-1","v":6.2886532782435722E-2},{"$f":"((Quarterly!BJ78/Quarterly!BJ77)^4)-1","v":0.20604103107187632},"--",null,"--","--",null,null,null,null,null,{"$f":"((Quarterly!BT78/Quarterly!BT77)^4)-1","v":7.7758969335163242E-2},"--","--",{"$f":"((Quarterly!BW78/Quarterly!BW77)^4)-1","v":0.10468979607622142},{"$f":"((Quarterly!BX78/Quarterly!BX77)^4)-1","v":0.32720640197530915},{"$f":"((Quarterly!BY78/Quarterly!BY77)^4)-1","v":0.31644077823384897},"--","--",{"$f":"((Quarterly!CB78/Quarterly!CB77)^4)-1","v":-0.30067867638966295},{"$f":"((Quarterly!CC78/Quarterly!CC77)^4)-1","v":-0.24750196414029135},"--","--",null,"--","--",null,{"$f":"((Quarterly!CJ78/Quarterly!CJ77)^4)-1","v":0.79753071262497999},{"$f":"((Quarterly!CK78/Quarterly!CK77)^4)-1","v":0.1080672480789997},{"$f":"((Quarterly!CL78/Quarterly!CL77)^4)-1","v":2.7146788415707945E-2},{"$f":"((Quarterly!CM78/Quarterly!CM77)^4)-1","v":0.39996283964659063},{"$f":"((Quarterly!CN78/Quarterly!CN77)^4)-1","v":3.1070074535427095E-2},{"$f":"((Quarterly!CO78/Quarterly!CO77)^4)-1","v":0.1174397813014556},{"$f":"((Quarterly!CP78/Quarterly!CP77)^4)-1","v":7.3933686560841094E-2},{"$f":"((Quarterly!CQ78/Quarterly!CQ77)^4)-1","v":1.0700108678122655E-2},{"$f":"((Quarterly!CR78/Quarterly!CR77)^4)-1","v":0.14508187712517029},"--","--",null,null,null,null,null,{"$f":"((Quarterly!CZ78/Quarterly!CZ77)^4)-1","v":7.5772659615523263E-2},{"$f":"((Quarterly!DA78/Quarterly!DA77)^4)-1","v":7.0635847918940176E-2},null,null,null,null,null,{"$f":"((Quarterly!DG78/Quarterly!DG77)^4)-1","v":5.329219807584229E-2},{"$f":"((Quarterly!DH78-Quarterly!DH77)*60)","v":6.0000000000000853},{"$f":"Quarterly!DI78-Quarterly!DI77","v":-0.13333333333333997},"--",{"$f":"(Quarterly!DK78-Quarterly!DK77)*100","v":-16.666666666666607},{"$f":"((Quarterly!DL78/Quarterly!DL77)^4)-1","v":6.027775308760619E-2},null,null,null,{"$f":"((Quarterly!DP78/Quarterly!DP77)^4)-1","v":3.6464285356065274E-2},null,null,null,"--",{"$f":"Quarterly!DU78-Quarterly!DU77","v":3.3333333333334991E-2},"--","--","--","--","--","--","--","--",null,null,null,null,null,{"$f":"((Quarterly!EI78/Quarterly!EI77)^4)-1","v":8.0175312583337544E-2},{"$f":"((Quarterly!EJ78/Quarterly!EJ77)^4)-1","v":6.4508463338019739E-2},{"$f":"((Quarterly!EK78/Quarterly!EK77)^4)-1","v":5.842567881515226E-2},null,null,null,null,null,{"$f":"((Quarterly!EQ78/Quarterly!EQ77)^4)-1","v":4.3609152336400836E-2},{"$f":"((Quarterly!ER78/Quarterly!ER77)^4)-1","v":7.0729345459972004E-2},{"$f":"((Quarterly!ES78/Quarterly!ES77)^4)-1","v":7.4822232037487613E-2},null,null,null,null,null,{"$f":"(Quarterly!EY78-Quarterly!EY77)*100","v":1.9999999999999574},{"$f":"(Quarterly!EZ78-Quarterly!EZ77)*100","v":-74.666666666666615},{"$f":"(Quarterly!FA78-Quarterly!FA77)*100","v":-10.333333333333172},{"$f":"(Quarterly!FB78-Quarterly!FB77)*100","v":-0.33333333333338544},9.9999999999997868,{"$f":"(Quarterly!FD78-Quarterly!FD77)*100","v":16.999999999999993},{"$f":"(Quarterly!FE78-Quarterly!FE77)*100","v":-70.333333333333314},{"$f":"(Quarterly!FF78-Quarterly!FF77)*100","v":-84.000000000000071},"--",{"$f":"(Quarterly!FH78-Quarterly!FH77)*100","v":-36.333333333333151},{"$f":"(Quarterly!FI78-Quarterly!FI77)*100","v":-23.33333333333325},60.666666666666821,null,null,null,null,null,{"$f":"((Quarterly!FP78/Quarterly!FP77)^4)-1","v":-5.0368068550724177E-2},"--","--","--",{"$f":"((Quarterly!FT78/Quarterly!FT77)^4)-1","v":7.022308330303817E-2},{"$f":"((Quarterly!FU78/Quarterly!FU77)^4)-1","v":4.4889876441275289E-2},"--","--","--",null,null,null,null,null,{"$f":"((Quarterly!GD78/Quarterly!GD77)^4)-1","v":0},"--","--","--",{"$f":"((Quarterly!GH79/Quarterly!GH78)^4)-1","v":{"$error":"#DIV/0!"}},"--","--","--","--"]
["76'Q1",{"$f":"((Quarterly!B79/Quarterly!B78)^4)-1","v":0.13959904694230252},{"$f":"((Quarterly!C79/Quarterly!C78)^4)-1","v":9.3432773240635703E-2},{"$f":"((Quarterly!D79/Quarterly!D78)^4)-1","v":5.6878857271436045E-2},{"$f":"((Quarterly!E79/Quarterly!E78)^4)-1","v":8.2419928869001957E-2},{"$f":"((Quarterly!F79/Quarterly!F78)^4)-1","v":0.21552963889490151},{"$f":"((Quarterly!G79/Quarterly!G78)^4)-1","v":8.3595750881498398E-2},{"$f":"((Quarterly!H79/Quarterly!H78)^4)-1","v":7.0669945234087983E-2},{"$f":"((Quarterly!I79/Quarterly!I78)^4)-1","v":8.8516372063868642E-2},{"$f":"((Quarterly!J79/Quarterly!J78)^4)-1","v":0.14280204943208674},{"$f":"((Quarterly!K79/Quarterly!K78)^4)-1","v":0.47855290368144821},{"$f":"((Quarterly!L79-Quarterly!L78))","v":34.252000000000002},{"$f":"((Quarterly!M79/Quarterly!M78)^4)-1","v":0.27517711847323834},{"$f":"((Quarterly!N79/Quarterly!N78)^4)-1","v":-2.7411916258834323E-2},{"$f":"((Quarterly!O79/Quarterly!O78)^4)-1","v":18.521697659978948},{"$f":"((Quarterly!P79/Quarterly!P78)^4)-1","v":8.4263190100120067E-3},{"$f":"((Quarterly!Q79/Quarterly!Q78)^4)-1","v":-0.37019109016352192},null,null,null,null,null,{"$f":"((Quarterly!W79/Quarterly!W78)^4)-1","v":0.11630774505110075},"--",{"$f":"((Quarterly!Y79/Quarterly!Y78)^4)-1","v":-3.2485726418197913E-2},"--",{"$f":"((Quarterly!AA79/Quarterly!AA78)^4)-1","v":0.31200912988050189},{"$f":"((Quarterly!AB79/Quarterly!AB78)^4)-1","v":0.37513931722616456},"--","--","--","--","--","--","--","--","--","--",{"$f":"((Quarterly!AM79/Quarterly!AM78)^4)-1","v":0.12864569807104043},{"$f":"((Quarterly!AN79/Quarterly!AN78)^4)-1","v":0.14595742264767653},"--","--",{"$f":"Quarterly!AQ79-Quarterly!AQ78","v":4.5999999999999943},"--","--",{"$f":"Quarterly!AT79-Quarterly!AT78","v":5.2666666666666657},"--","--",{"$f":"Quarterly!AW79-Quarterly!AW78","v":6.43333333333333},{"$f":"Quarterly!AX79-Quarterly!AX78","v":1.5333333333333385},{"$f":"Quarterly!AY79-Quarterly!AY78","v":2.3999999999999915},{"$f":"Quarterly!AZ79-Quarterly!AZ78","v":3},{"$f":"Quarterly!BA79-Quarterly!BA78","v":11.333333333333329},"--","--","--","--",{"$f":"((Quarterly!BF79/Quarterly!BF78)^4)-1","v":7.8558841704823523E-2},{"$f":"((Quarterly!BG79/Quarterly!BG78)^4)-1","v":6.0236297681697248E-2},{"$f":"((Quarterly!BH79/Quarterly!BH78)^4)-1","v":3.0491455720935923E-2},{"$f":"((Quarterly!BI79/Quarterly!BI78)^4)-1","v":1.7175459976428442E-2},{"$f":"((Quarterly!BJ79/Quarterly!BJ78)^4)-1","v":0.41810334448181985},"--",null,"--","--",null,null,null,null,null,{"$f":"((Quarterly!BT79/Quarterly!BT78)^4)-1","v":9.2013033899684515E-2},"--","--",{"$f":"((Quarterly!BW79/Quarterly!BW78)^4)-1","v":0.13494762827203655},{"$f":"((Quarterly!BX79/Quarterly!BX78)^4)-1","v":0.33438921011059786},{"$f":"((Quarterly!BY79/Quarterly!BY78)^4)-1","v":0.34260484112432055},"--","--",{"$f":"((Quarterly!CB79/Quarterly!CB78)^4)-1","v":-0.35147591520226118},{"$f":"((Quarterly!CC79/Quarterly!CC78)^4)-1","v":-0.32422824355784674},"--","--",null,"--","--",null,{"$f":"((Quarterly!CJ79/Quarterly!CJ78)^4)-1","v":-0.22351820429013547},{"$f":"((Quarterly!CK79/Quarterly!CK78)^4)-1","v":9.5944582402086143E-2},{"$f":"((Quarterly!CL79/Quarterly!CL78)^4)-1","v":-0.11128339605586079},{"$f":"((Quarterly!CM79/Quarterly!CM78)^4)-1","v":0.49021427433360798},{"$f":"((Quarterly!CN79/Quarterly!CN78)^4)-1","v":4.7530457653260916E-2},{"$f":"((Quarterly!CO79/Quarterly!CO78)^4)-1","v":0.19078337800806544},{"$f":"((Quarterly!CP79/Quarterly!CP78)^4)-1","v":0.10020076025583835},{"$f":"((Quarterly!CQ79/Quarterly!CQ78)^4)-1","v":8.8622970682703528E-3},{"$f":"((Quarterly!CR79/Quarterly!CR78)^4)-1","v":-8.0384141242705986E-2},"--","--",null,null,null,null,null,{"$f":"((Quarterly!CZ79/Quarterly!CZ78)^4)-1","v":4.663232950852958E-2},{"$f":"((Quarterly!DA79/Quarterly!DA78)^4)-1","v":7.7056010656476825E-2},null,null,null,null,null,{"$f":"((Quarterly!DG79/Quarterly!DG78)^4)-1","v":7.7377346207952113E-2},{"$f":"((Quarterly!DH79-Quarterly!DH78)*60)","v":3.9999999999997726},{"$f":"Quarterly!DI79-Quarterly!DI78","v":0.16666666666665719},"--",{"$f":"(Quarterly!DK79-Quarterly!DK78)*100","v":-56.666666666666643},{"$f":"((Quarterly!DL79/Quarterly!DL78)^4)-1","v":7.9863433157637775E-2},null,null,null,{"$f":"((Quarterly!DP79/Quarterly!DP78)^4)-1","v":5.4931172229697456E-2},null,null,null,"--",{"$f":"Quarterly!DU79-Quarterly!DU78","v":-0.40000000000000036},"--","--","--","--","--","--","--","--",null,null,null,null,null,{"$f":"((Quarterly!EI79/Quarterly!EI78)^4)-1","v":0.15737858785505288},{"$f":"((Quarterly!EJ79/Quarterly!EJ78)^4)-1","v":0.10968844301217673},{"$f":"((Quarterly!EK79/Quarterly!EK78)^4)-1","v":8.9440322567659214E-2},null,null,null,null,null,{"$f":"((Quarterly!EQ79/Quarterly!EQ78)^4)-1","v":1.7997298902169057E-2},{"$f":"((Quarterly!ER79/Quarterly!ER78)^4)-1","v":6.2621208771038939E-2},{"$f":"((Quarterly!ES79/Quarterly!ES78)^4)-1","v":7.3448878574857934E-2},null,null,null,null,null,{"$f":"(Quarterly!EY79-Quarterly!EY78)*100","v":-75},{"$f":"(Quarterly!EZ79-Quarterly!EZ78)*100","v":-58.6666666666666},{"$f":"(Quarterly!FA79-Quarterly!FA78)*100","v":-25.333333333333385},{"$f":"(Quarterly!FB79-Quarterly!FB78)*100","v":-32.333333333333414},-7.0000000000000284,{"$f":"(Quarterly!FD79-Quarterly!FD78)*100","v":-29.333333333333478},{"$f":"(Quarterly!FE79-Quarterly!FE78)*100","v":-71.000000000000085},{"$f":"(Quarterly!FF79-Quarterly!FF78)*100","v":-70.333333333333314},"--",{"$f":"(Quarterly!FH79-Quarterly!FH78)*100","v":-37.666666666666785},{"$f":"(Quarterly!FI79-Quarterly!FI78)*100","v":-31.00000000000005},39.333333333333265,null,null,null,null,null,{"$f":"((Quarterly!FP79/Quarterly!FP78)^4)-1","v":-8.4937580904900223E-2},"--","--","--",{"$f":"((Quarterly!FT79/Quarterly!FT78)^4)-1","v":2.3380997802474601E-2},{"$f":"((Quarterly!FU79/Quarterly!FU78)^4)-1","v":1.8712995919736297E-3},"--","--","--",null,null,null,null,null,{"$f":"((Quarterly!GD79/Quarterly!GD78)^4)-1","v":0.23442536248588253},"--","--","--",{"$f":"((Quarterly!GH80/Quarterly!GH79)^4)-1","v":{"$error":"#DIV/0!"}},"--","--","--","--"]
["76'Q2",{"$f":"((Quarterly!B80/Quarterly!B79)^4)-1","v":7.3028327991746966E-2},{"$f":"((Quarterly!C80/Quarterly!C79)^4)-1","v":3.0567168341213424E-2},{"$f":"((Quarterly!D80/Quarterly!D79)^4)-1","v":1.416736888513781E-2},{"$f":"((Quarterly!E80/Quarterly!E79)^4)-1","v":3.7349197396469913E-2},{"$f":"((Quarterly!F80/Quarterly!F79)^4)-1","v":1.8210410538109567E-2},{"$f":"((Quarterly!G80/Quarterly!G79)^4)-1","v":6.2865594361388499E-2},{"$f":"((Quarterly!H80/Quarterly!H79)^4)-1","v":2.8236561484888734E-2},{"$f":"((Quarterly!I80/Quarterly!I79)^4)-1","v":5.4153736962630372E-2},{"$f":"((Quarterly!J80/Quarterly!J79)^4)-1","v":3.8831912713560346E-2},{"$f":"((Quarterly!K80/Quarterly!K79)^4)-1","v":0.1204322726595215},{"$f":"((Quarterly!L80-Quarterly!L79))","v":17.445999999999998},{"$f":"((Quarterly!M80/Quarterly!M79)^4)-1","v":0.18482890306187705},{"$f":"((Quarterly!N80/Quarterly!N79)^4)-1","v":4.0902090955613479E-2},{"$f":"((Quarterly!O80/Quarterly!O79)^4)-1","v":1.666597618070115},{"$f":"((Quarterly!P80/Quarterly!P79)^4)-1","v":-3.965844792023554E-2},{"$f":"((Quarterly!Q80/Quarterly!Q79)^4)-1","v":-0.20840135281336836},null,null,null,null,null,{"$f":"((Quarterly!W80/Quarterly!W79)^4)-1","v":3.6669431954639453E-2},{"$f":"((Quarterly!X80/Quarterly!X79)^4)-1","v":2.5568708315316879E-2},{"$f":"((Quarterly!Y80/Quarterly!Y79)^4)-1","v":-6.57201563202644E-2},"--",{"$f":"((Quarterly!AA80/Quarterly!AA79)^4)-1","v":0.12610192652543883},{"$f":"((Quarterly!AB80/Quarterly!AB79)^4)-1","v":-1.9034698647056536E-2},"--","--","--","--","--","--","--","--","--","--",{"$f":"((Quarterly!AM80/Quarterly!AM79)^4)-1","v":5.2225371411457999E-2},{"$f":"((Quarterly!AN80/Quarterly!AN79)^4)-1","v":6.6687437897831936E-2},"--","--",{"$f":"Quarterly!AQ80-Quarterly!AQ79","v":-0.36666666666665293},"--","--",{"$f":"Quarterly!AT80-Quarterly!AT79","v":0.26666666666666572},"--","--",{"$f":"Quarterly!AW80-Quarterly!AW79","v":5.13333333333334},{"$f":"Quarterly!AX80-Quarterly!AX79","v":-2.0000000000000071},{"$f":"Quarterly!AY80-Quarterly!AY79","v":5.4333333333333371},{"$f":"Quarterly!AZ80-Quarterly!AZ79","v":-2.8666666666666671},{"$f":"Quarterly!BA80-Quarterly!BA79","v":2.4666666666666615},"--","--","--","--",{"$f":"((Quarterly!BF80/Quarterly!BF79)^4)-1","v":7.7467696354093452E-2},{"$f":"((Quarterly!BG80/Quarterly!BG79)^4)-1","v":3.8991443747157017E-2},{"$f":"((Quarterly!BH80/Quarterly!BH79)^4)-1","v":3.9893225393766274E-2},{"$f":"((Quarterly!BI80/Quarterly!BI79)^4)-1","v":3.7240185311181451E-2},{"$f":"((Quarterly!BJ80/Quarterly!BJ79)^4)-1","v":9.9500806070999204E-2},"--",null,"--","--",null,null,null,null,null,{"$f":"((Quarterly!BT80/Quarterly!BT79)^4)-1","v":0.10344994604886915},"--","--",{"$f":"((Quarterly!BW80/Quarterly!BW79)^4)-1","v":0.10345584088943816},{"$f":"((Quarterly!BX80/Quarterly!BX79)^4)-1","v":2.1436964222870891E-2},{"$f":"((Quarterly!BY80/Quarterly!BY79)^4)-1","v":-3.8868012565117516E-2},"--",{"$f":"((Quarterly!CA80/Quarterly!CA79)^4)-1","v":-3.6144511478410912E-2},{"$f":"((Quarterly!CB80/Quarterly!CB79)^4)-1","v":-0.1331219887947136},{"$f":"((Quarterly!CC80/Quarterly!CC79)^4)-1","v":-0.11953523632731622},"--","--",null,"--","--",null,{"$f":"((Quarterly!CJ80/Quarterly!CJ79)^4)-1","v":-0.13608136494482603},{"$f":"((Quarterly!CK80/Quarterly!CK79)^4)-1","v":6.9078581440451536E-2},{"$f":"((Quarterly!CL80/Quarterly!CL79)^4)-1","v":-5.6415292561848962E-2},{"$f":"((Quarterly!CM80/Quarterly!CM79)^4)-1","v":-0.14135471773369179},{"$f":"((Quarterly!CN80/Quarterly!CN79)^4)-1","v":2.0940841773184671E-2},{"$f":"((Quarterly!CO80/Quarterly!CO79)^4)-1","v":0.16305169495211103},{"$f":"((Quarterly!CP80/Quarterly!CP79)^4)-1","v":9.7334863504885627E-2},{"$f":"((Quarterly!CQ80/Quarterly!CQ79)^4)-1","v":8.3053079630057702E-3},{"$f":"((Quarterly!CR80/Quarterly!CR79)^4)-1","v":0.13499984401182652},"--","--",null,null,null,null,null,{"$f":"((Quarterly!CZ80/Quarterly!CZ79)^4)-1","v":3.6261073327672255E-2},{"$f":"((Quarterly!DA80/Quarterly!DA79)^4)-1","v":5.5693796937904105E-2},null,null,null,null,null,{"$f":"((Quarterly!DG80/Quarterly!DG79)^4)-1","v":1.484991840934291E-2},{"$f":"((Quarterly!DH80-Quarterly!DH79)*60)","v":-7.9999999999999716},{"$f":"Quarterly!DI80-Quarterly!DI79","v":0.23333333333334139},"--",{"$f":"(Quarterly!DK80-Quarterly!DK79)*100","v":-16.666666666666696},{"$f":"((Quarterly!DL80/Quarterly!DL79)^4)-1","v":3.3712340326977008E-2},null,null,null,{"$f":"((Quarterly!DP80/Quarterly!DP79)^4)-1","v":2.7473007669651217E-2},null,null,null,"--",{"$f":"Quarterly!DU80-Quarterly!DU79","v":-0.53333333333333321},"--","--","--","--","--","--","--","--",null,null,null,null,null,{"$f":"((Quarterly!EI80/Quarterly!EI79)^4)-1","v":5.2261457546511902E-2},{"$f":"((Quarterly!EJ80/Quarterly!EJ79)^4)-1","v":4.8659475290665499E-2},{"$f":"((Quarterly!EK80/Quarterly!EK79)^4)-1","v":4.4251528798485706E-2},null,null,null,null,null,{"$f":"((Quarterly!EQ80/Quarterly!EQ79)^4)-1","v":6.3761683855842799E-2},{"$f":"((Quarterly!ER80/Quarterly!ER79)^4)-1","v":3.7103857510328853E-2},{"$f":"((Quarterly!ES80/Quarterly!ES79)^4)-1","v":5.3739587565865943E-2},null,null,null,null,null,{"$f":"(Quarterly!EY80-Quarterly!EY79)*100","v":6.666666666666643},{"$f":"(Quarterly!EZ80-Quarterly!EZ79)*100","v":36.999999999999922},{"$f":"(Quarterly!FA80-Quarterly!FA79)*100","v":-2.3333333333333428},{"$f":"(Quarterly!FB80-Quarterly!FB79)*100","v":-35.999999999999943},-33.6666666666666,{"$f":"(Quarterly!FD80-Quarterly!FD79)*100","v":-7.9999999999998295},{"$f":"(Quarterly!FE80-Quarterly!FE79)*100","v":24.000000000000021},{"$f":"(Quarterly!FF80-Quarterly!FF79)*100","v":30.333333333333368},"--",{"$f":"(Quarterly!FH80-Quarterly!FH79)*100","v":1.6666666666667496},{"$f":"(Quarterly!FI80-Quarterly!FI79)*100","v":1.9999999999999574},-28.33333333333341,null,null,null,null,null,{"$f":"((Quarterly!FP80/Quarterly!FP79)^4)-1","v":-6.3406095531030937E-2},"--","--","--",{"$f":"((Quarterly!FT80/Quarterly!FT79)^4)-1","v":6.0203701616598826E-2},{"$f":"((Quarterly!FU80/Quarterly!FU79)^4)-1","v":4.5911360789265165E-2},"--","--","--",null,null,null,null,null,{"$f":"((Quarterly!GD80/Quarterly!GD79)^4)-1","v":0.14562029413689004},"--","--","--",{"$f":"((Quarterly!GH81/Quarterly!GH80)^4)-1","v":{"$error":"#DIV/0!"}},"--","--","--","--"]
["76'Q3",{"$f":"((Quarterly!B81/Quarterly!B80)^4)-1","v":7.4265180035812506E-2},{"$f":"((Quarterly!C81/Quarterly!C80)^4)-1","v":2.0494204525810522E-2},{"$f":"((Quarterly!D81/Quarterly!D80)^4)-1","v":2.5558065454615697E-2},{"$f":"((Quarterly!E81/Quarterly!E80)^4)-1","v":4.3115340082514608E-2},{"$f":"((Quarterly!F81/Quarterly!F80)^4)-1","v":4.617667994184349E-2},{"$f":"((Quarterly!G81/Quarterly!G80)^4)-1","v":3.1035275781891247E-2},{"$f":"((Quarterly!H81/Quarterly!H80)^4)-1","v":4.8122250523974452E-2},{"$f":"((Quarterly!I81/Quarterly!I80)^4)-1","v":9.0444577624734679E-2},{"$f":"((Quarterly!J81/Quarterly!J80)^4)-1","v":0.11532313257708826},{"$f":"((Quarterly!K81/Quarterly!K80)^4)-1","v":-6.2892787343851952E-2},{"$f":"((Quarterly!L81-Quarterly!L80))","v":-5.0229999999999961},{"$f":"((Quarterly!M81/Quarterly!M80)^4)-1","v":0.17346449924796303},{"$f":"((Quarterly!N81/Quarterly!N80)^4)-1","v":0.12139028839158317},{"$f":"((Quarterly!O81/Quarterly!O80)^4)-1","v":0.49798060142488398},{"$f":"((Quarterly!P81/Quarterly!P80)^4)-1","v":-1.9785000365110772E-2},{"$f":"((Quarterly!Q81/Quarterly!Q80)^4)-1","v":0.18589365969219229},null,null,null,null,null,{"$f":"((Quarterly!W81/Quarterly!W80)^4)-1","v":3.1085771711198085E-2},{"$f":"((Quarterly!X81/Quarterly!X80)^4)-1","v":2.5406314689356169E-2},{"$f":"((Quarterly!Y81/Quarterly!Y80)^4)-1","v":3.8681116902536283E-2},"--",{"$f":"((Quarterly!AA81/Quarterly!AA80)^4)-1","v":6.8281741464175427E-2},{"$f":"((Quarterly!AB81/Quarterly!AB80)^4)-1","v":7.1644696031196942E-2},"--","--","--","--","--","--","--","--","--","--",{"$f":"((Quarterly!AM81/Quarterly!AM80)^4)-1","v":5.3726737517432177E-2},{"$f":"((Quarterly!AN81/Quarterly!AN80)^4)-1","v":5.8268227655510652E-2},"--","--",{"$f":"Quarterly!AQ81-Quarterly!AQ80","v":-4.5333333333333456},"--","--",{"$f":"Quarterly!AT81-Quarterly!AT80","v":-1.5666666666666629},"--","--",{"$f":"Quarterly!AW81-Quarterly!AW80","v":-1.0666666666666629},{"$f":"Quarterly!AX81-Quarterly!AX80","v":-5.6999999999999957},{"$f":"Quarterly!AY81-Quarterly!AY80","v":-1.9666666666666686},{"$f":"Quarterly!AZ81-Quarterly!AZ80","v":-7.4333333333333229},{"$f":"Quarterly!BA81-Quarterly!BA80","v":-4.1333333333333258},"--","--","--","--",{"$f":"((Quarterly!BF81/Quarterly!BF80)^4)-1","v":8.6780235730429034E-2},{"$f":"((Quarterly!BG81/Quarterly!BG80)^4)-1","v":7.2744017204295908E-3},{"$f":"((Quarterly!BH81/Quarterly!BH80)^4)-1","v":2.0092174084053616E-2},{"$f":"((Quarterly!BI81/Quarterly!BI80)^4)-1","v":7.8895903347719676E-2},{"$f":"((Quarterly!BJ81/Quarterly!BJ80)^4)-1","v":6.1370398092453815E-2},"--",null,"--","--",null,null,null,null,null,{"$f":"((Quarterly!BT81/Quarterly!BT80)^4)-1","v":0.11354723491335195},"--","--",{"$f":"((Quarterly!BW81/Quarterly!BW80)^4)-1","v":0.11201836235519402},{"$f":"((Quarterly!BX81/Quarterly!BX80)^4)-1","v":0.33070515254733412},{"$f":"((Quarterly!BY81/Quarterly!BY80)^4)-1","v":0.73846970753118613},"--",{"$f":"((Quarterly!CA81/Quarterly!CA80)^4)-1","v":6.8339120778619256E-2},{"$f":"((Quarterly!CB81/Quarterly!CB80)^4)-1","v":-7.3979932373653745E-2},{"$f":"((Quarterly!CC81/Quarterly!CC80)^4)-1","v":-2.9710663245980595E-2},"--","--",null,"--","--",null,{"$f":"((Quarterly!CJ81/Quarterly!CJ80)^4)-1","v":0.64892143528132018},{"$f":"((Quarterly!CK81/Quarterly!CK80)^4)-1","v":0.10225385112031593},{"$f":"((Quarterly!CL81/Quarterly!CL80)^4)-1","v":-6.2843481845927807E-3},{"$f":"((Quarterly!CM81/Quarterly!CM80)^4)-1","v":0.3141889806132474},{"$f":"((Quarterly!CN81/Quarterly!CN80)^4)-1","v":2.9783150224770516E-2},{"$f":"((Quarterly!CO81/Quarterly!CO80)^4)-1","v":0.11139232373110208},{"$f":"((Quarterly!CP81/Quarterly!CP80)^4)-1","v":0.10018974210630582},{"$f":"((Quarterly!CQ81/Quarterly!CQ80)^4)-1","v":1.0045677338723413E-2},{"$f":"((Quarterly!CR81/Quarterly!CR80)^4)-1","v":0.33762111841403741},"--","--",null,null,null,null,null,{"$f":"((Quarterly!CZ81/Quarterly!CZ80)^4)-1","v":6.5373946351462431E-2},{"$f":"((Quarterly!DA81/Quarterly!DA80)^4)-1","v":6.7163647862875875E-2},null,null,null,null,null,{"$f":"((Quarterly!DG81/Quarterly!DG80)^4)-1","v":2.1185705537721367E-2},{"$f":"((Quarterly!DH81-Quarterly!DH80)*60)","v":-1.9999999999998863},{"$f":"Quarterly!DI81-Quarterly!DI80","v":0.19999999999999574},"--",{"$f":"(Quarterly!DK81-Quarterly!DK80)*100","v":16.666666666666607},{"$f":"((Quarterly!DL81/Quarterly!DL80)^4)-1","v":1.6073156925073606E-2},null,null,null,{"$f":"((Quarterly!DP81/Quarterly!DP80)^4)-1","v":1.9708762458789941E-2},null,null,null,"--",{"$f":"Quarterly!DU81-Quarterly!DU80","v":-0.29999999999999893},"--","--","--","--","--","--","--","--",null,null,null,null,null,{"$f":"((Quarterly!EI81/Quarterly!EI80)^4)-1","v":8.712514596208365E-3},{"$f":"((Quarterly!EJ81/Quarterly!EJ80)^4)-1","v":2.5418249309874907E-2},{"$f":"((Quarterly!EK81/Quarterly!EK80)^4)-1","v":3.382187556479721E-2},null,null,null,null,null,{"$f":"((Quarterly!EQ81/Quarterly!EQ80)^4)-1","v":4.9070741461755496E-2},{"$f":"((Quarterly!ER81/Quarterly!ER80)^4)-1","v":6.5552449536000035E-2},{"$f":"((Quarterly!ES81/Quarterly!ES80)^4)-1","v":6.4334896097583139E-2},null,null,null,null,null,{"$f":"(Quarterly!EY81-Quarterly!EY80)*100","v":18.666666666666654},{"$f":"(Quarterly!EZ81-Quarterly!EZ80)*100","v":8.6666666666666892},{"$f":"(Quarterly!FA81-Quarterly!FA80)*100","v":-7.0000000000000284},{"$f":"(Quarterly!FB81-Quarterly!FB80)*100","v":-27.666666666666728},-20.6666666666667,{"$f":"(Quarterly!FD81-Quarterly!FD80)*100","v":18.666666666666742},{"$f":"(Quarterly!FE81-Quarterly!FE80)*100","v":-0.66666666666668206},{"$f":"(Quarterly!FF81-Quarterly!FF80)*100","v":-26.66666666666675},{"$f":"(Quarterly!FG81-Quarterly!FG80)*100","v":-42.666666666666671},{"$f":"(Quarterly!FH81-Quarterly!FH80)*100","v":-17.333333333333378},{"$f":"(Quarterly!FI81-Quarterly!FI80)*100","v":-4.333333333333389},22.333333333333361,null,null,null,null,null,{"$f":"((Quarterly!FP81/Quarterly!FP80)^4)-1","v":-6.3848732130361574E-3},"--","--","--",{"$f":"((Quarterly!FT81/Quarterly!FT80)^4)-1","v":1.2033144757408465E-2},{"$f":"((Quarterly!FU81/Quarterly!FU80)^4)-1","v":-2.277195513638075E-2},"--","--","--",null,null,null,null,null,{"$f":"((Quarterly!GD81/Quarterly!GD80)^4)-1","v":0.20343933528634461},"--","--","--",{"$f":"((Quarterly!GH82/Quarterly!GH81)^4)-1","v":{"$error":"#DIV/0!"}},"--","--","--","--"]
["76'Q4",{"$f":"((Quarterly!B82/Quarterly!B81)^4)-1","v":0.10529582143123806},{"$f":"((Quarterly!C82/Quarterly!C81)^4)-1","v":3.0362794148877548E-2},{"$f":"((Quarterly!D82/Quarterly!D81)^4)-1","v":5.7373661245832652E-2},{"$f":"((Quarterly!E82/Quarterly!E81)^4)-1","v":5.3212626770356097E-2},{"$f":"((Quarterly!F82/Quarterly!F81)^4)-1","v":6.4578650509822477E-2},{"$f":"((Quarterly!G82/Quarterly!G81)^4)-1","v":4.2734227200998287E-2},{"$f":"((Quarterly!H82/Quarterly!H81)^4)-1","v":5.6739935758392201E-2},{"$f":"((Quarterly!I82/Quarterly!I81)^4)-1","v":7.9476937713165441E-2},{"$f":"((Quarterly!J82/Quarterly!J81)^4)-1","v":9.7569518886555962E-2},{"$f":"((Quarterly!K82/Quarterly!K81)^4)-1","v":0.61536980233990768},{"$f":"((Quarterly!L82-Quarterly!L81))","v":-29.840000000000003},{"$f":"((Quarterly!M82/Quarterly!M81)^4)-1","v":0.13911053524167216},{"$f":"((Quarterly!N82/Quarterly!N81)^4)-1","v":4.1264350987595622E-2},{"$f":"((Quarterly!O82/Quarterly!O81)^4)-1","v":0.76188221880719587},{"$f":"((Quarterly!P82/Quarterly!P81)^4)-1","v":1.3808371698345034E-3},{"$f":"((Quarterly!Q82/Quarterly!Q81)^4)-1","v":0.18850110780376528},null,null,null,null,null,{"$f":"((Quarterly!W82/Quarterly!W81)^4)-1","v":3.0846070649887869E-2},{"$f":"((Quarterly!X82/Quarterly!X81)^4)-1","v":4.4061256061472376E-2},{"$f":"((Quarterly!Y82/Quarterly!Y81)^4)-1","v":8.7738921960694549E-2},"--",{"$f":"((Quarterly!AA82/Quarterly!AA81)^4)-1","v":5.1555803867464611E-3},{"$f":"((Quarterly!AB82/Quarterly!AB81)^4)-1","v":1.019915591985221E-3},"--","--","--","--","--","--","--","--","--","--",{"$f":"((Quarterly!AM82/Quarterly!AM81)^4)-1","v":7.3708011739676005E-2},{"$f":"((Quarterly!AN82/Quarterly!AN81)^4)-1","v":6.0466143759315916E-2},"--","--",{"$f":"Quarterly!AQ82-Quarterly!AQ81","v":-0.73333333333332718},"--","--",{"$f":"Quarterly!AT82-Quarterly!AT81","v":-2.3000000000000043},"--","--",{"$f":"Quarterly!AW82-Quarterly!AW81","v":-2.4000000000000057},{"$f":"Quarterly!AX82-Quarterly!AX81","v":0.19999999999999574},{"$f":"Quarterly!AY82-Quarterly!AY81","v":-5.1666666666666572},{"$f":"Quarterly!AZ82-Quarterly!AZ81","v":2.4333333333333229},{"$f":"Quarterly!BA82-Quarterly!BA81","v":-4.1000000000000014},"--","--","--","--",{"$f":"((Quarterly!BF82/Quarterly!BF81)^4)-1","v":8.8199904967634302E-2},{"$f":"((Quarterly!BG82/Quarterly!BG81)^4)-1","v":1.2977953188870073E-2},{"$f":"((Quarterly!BH82/Quarterly!BH81)^4)-1","v":2.7007717945969789E-2},{"$f":"((Quarterly!BI82/Quarterly!BI81)^4)-1","v":7.4118577393491147E-2},{"$f":"((Quarterly!BJ82/Quarterly!BJ81)^4)-1","v":-5.8606837018751357E-2},"--",null,"--","--",null,null,null,null,null,{"$f":"((Quarterly!BT82/Quarterly!BT81)^4)-1","v":0.12227943413871101},"--","--",{"$f":"((Quarterly!BW82/Quarterly!BW81)^4)-1","v":0.11888586413427338},{"$f":"((Quarterly!BX82/Quarterly!BX81)^4)-1","v":0.39239476691577746},{"$f":"((Quarterly!BY82/Quarterly!BY81)^4)-1","v":0.5020682062425883},"--",{"$f":"((Quarterly!CA82/Quarterly!CA81)^4)-1","v":8.6418034163861623E-2},{"$f":"((Quarterly!CB82/Quarterly!CB81)^4)-1","v":-0.10616262233568508},{"$f":"((Quarterly!CC82/Quarterly!CC81)^4)-1","v":-7.1702341759699917E-2},"--","--",null,"--","--",null,{"$f":"((Quarterly!CJ82/Quarterly!CJ81)^4)-1","v":0.46728426706197301},{"$f":"((Quarterly!CK82/Quarterly!CK81)^4)-1","v":9.8099756259297788E-2},{"$f":"((Quarterly!CL82/Quarterly!CL81)^4)-1","v":-0.13255268718147006},{"$f":"((Quarterly!CM82/Quarterly!CM81)^4)-1","v":0.2736647465467279},{"$f":"((Quarterly!CN82/Quarterly!CN81)^4)-1","v":2.4068609198198754E-2},{"$f":"((Quarterly!CO82/Quarterly!CO81)^4)-1","v":0.18066142418652409},{"$f":"((Quarterly!CP82/Quarterly!CP81)^4)-1","v":0.12139853988574689},{"$f":"((Quarterly!CQ82/Quarterly!CQ81)^4)-1","v":1.0894869792406281E-2},{"$f":"((Quarterly!CR82/Quarterly!CR81)^4)-1","v":0.18778854926909339},"--","--",null,null,null,null,null,{"$f":"((Quarterly!CZ82/Quarterly!CZ81)^4)-1","v":5.9454757792343438E-2},{"$f":"((Quarterly!DA82/Quarterly!DA81)^4)-1","v":5.6423735017685051E-2},null,null,null,null,null,{"$f":"((Quarterly!DG82/Quarterly!DG81)^4)-1","v":2.0925967214255881E-3},{"$f":"((Quarterly!DH82-Quarterly!DH81)*60)","v":-7.9999999999999716},{"$f":"Quarterly!DI82-Quarterly!DI81","v":3.3333333333345649E-2},"--",{"$f":"(Quarterly!DK82-Quarterly!DK81)*100","v":3.3333333333333215},{"$f":"((Quarterly!DL82/Quarterly!DL81)^4)-1","v":1.2485811679797898E-2},null,null,null,{"$f":"((Quarterly!DP82/Quarterly!DP81)^4)-1","v":2.4423650455478674E-2},null,null,null,"--",{"$f":"Quarterly!DU82-Quarterly!DU81","v":0.2333333333333325},"--","--","--","--","--","--","--","--",null,null,null,null,null,{"$f":"((Quarterly!EI82/Quarterly!EI81)^4)-1","v":8.7345329503025981E-2},{"$f":"((Quarterly!EJ82/Quarterly!EJ81)^4)-1","v":4.9969376353024897E-2},{"$f":"((Quarterly!EK82/Quarterly!EK81)^4)-1","v":3.5830293472172592E-2},null,null,null,null,null,{"$f":"((Quarterly!EQ82/Quarterly!EQ81)^4)-1","v":3.5084402990629204E-2},{"$f":"((Quarterly!ER82/Quarterly!ER81)^4)-1","v":6.6698027090662526E-2},{"$f":"((Quarterly!ES82/Quarterly!ES81)^4)-1","v":6.5552449536000035E-2},null,null,null,null,null,{"$f":"(Quarterly!EY82-Quarterly!EY81)*100","v":-54.666666666666686},{"$f":"(Quarterly!EZ82-Quarterly!EZ81)*100","v":-41.000000000000014},{"$f":"(Quarterly!FA82-Quarterly!FA81)*100","v":-27.999999999999936},{"$f":"(Quarterly!FB82-Quarterly!FB81)*100","v":-40.666666666666629},-12.666666666666693,{"$f":"(Quarterly!FD82-Quarterly!FD81)*100","v":-12.666666666666693},{"$f":"(Quarterly!FE82-Quarterly!FE81)*100","v":-47.666666666666742},{"$f":"(Quarterly!FF82-Quarterly!FF81)*100","v":-78.666666666666615},{"$f":"(Quarterly!FG82-Quarterly!FG81)*100","v":-91.000000000000014},{"$f":"(Quarterly!FH82-Quarterly!FH81)*100","v":-85.333333333333343},{"$f":"(Quarterly!FI82-Quarterly!FI81)*100","v":-53.999999999999915},24.6666666666667,null,null,null,null,null,{"$f":"((Quarterly!FP82/Quarterly!FP81)^4)-1","v":6.1662377982568017E-2},"--","--","--",{"$f":"((Quarterly!FT82/Quarterly!FT81)^4)-1","v":9.5620105782849629E-2},{"$f":"((Quarterly!FU82/Quarterly!FU81)^4)-1","v":2.8003872123201878E-2},"--","--","--",null,null,null,null,null,{"$f":"((Quarterly!GD82/Quarterly!GD81)^4)-1","v":0.41407578537758227},"--","--","--",{"$f":"((Quarterly!GH83/Quarterly!GH82)^4)-1","v":{"$error":"#DIV/0!"}},"--","--","--","--"]
["77'Q1",{"$f":"((Quarterly!B83/Quarterly!B82)^4)-1","v":0.11644596445957367},{"$f":"((Quarterly!C83/Quarterly!C82)^4)-1","v":4.7359139227510116E-2},{"$f":"((Quarterly!D83/Quarterly!D82)^4)-1","v":3.843090268181415E-2},{"$f":"((Quarterly!E83/Quarterly!E82)^4)-1","v":4.6617108647031058E-2},{"$f":"((Quarterly!F83/Quarterly!F82)^4)-1","v":0.15481322927388597},{"$f":"((Quarterly!G83/Quarterly!G82)^4)-1","v":-2.5992251468108796E-3},{"$f":"((Quarterly!H83/Quarterly!H82)^4)-1","v":5.8773492339708966E-2},{"$f":"((Quarterly!I83/Quarterly!I82)^4)-1","v":0.15394219971673739},{"$f":"((Quarterly!J83/Quarterly!J82)^4)-1","v":0.17055010898357126},{"$f":"((Quarterly!K83/Quarterly!K82)^4)-1","v":0.12641042974492733},{"$f":"((Quarterly!L83-Quarterly!L82))","v":12.080000000000002},{"$f":"((Quarterly!M83/Quarterly!M82)^4)-1","v":0.20323825329806544},{"$f":"((Quarterly!N83/Quarterly!N82)^4)-1","v":-6.2730328401433888E-2},{"$f":"((Quarterly!O83/Quarterly!O82)^4)-1","v":2.1838630927923521},{"$f":"((Quarterly!P83/Quarterly!P82)^4)-1","v":3.511681989441251E-2},{"$f":"((Quarterly!Q83/Quarterly!Q82)^4)-1","v":-0.42774921771652463},null,null,null,null,null,{"$f":"((Quarterly!W83/Quarterly!W82)^4)-1","v":7.25100973351267E-2},{"$f":"((Quarterly!X83/Quarterly!X82)^4)-1","v":5.5554210511906676E-2},{"$f":"((Quarterly!Y83/Quarterly!Y82)^4)-1","v":8.0394768699651786E-2},"--",{"$f":"((Quarterly!AA83/Quarterly!AA82)^4)-1","v":0.36807939690054359},{"$f":"((Quarterly!AB83/Quarterly!AB82)^4)-1","v":0.2130155687981663},"--","--","--","--","--","--","--","--","--","--",{"$f":"((Quarterly!AM83/Quarterly!AM82)^4)-1","v":8.5562819362640541E-2},{"$f":"((Quarterly!AN83/Quarterly!AN82)^4)-1","v":0.10880914278154941},"--","--",{"$f":"Quarterly!AQ83-Quarterly!AQ82","v":2.1333333333333258},"--","--",{"$f":"Quarterly!AT83-Quarterly!AT82","v":0.39999999999999858},"--","--",{"$f":"Quarterly!AW83-Quarterly!AW82","v":4.2666666666666657},{"$f":"Quarterly!AX83-Quarterly!AX82","v":1.9666666666666686},{"$f":"Quarterly!AY83-Quarterly!AY82","v":7.8333333333333286},{"$f":"Quarterly!AZ83-Quarterly!AZ82","v":3.3333333333331439E-2},{"$f":"Quarterly!BA83-Quarterly!BA82","v":6.8333333333333286},"--","--","--","--",{"$f":"((Quarterly!BF83/Quarterly!BF82)^4)-1","v":7.7544870004225608E-2},{"$f":"((Quarterly!BG83/Quarterly!BG82)^4)-1","v":2.4480693936585141E-2},{"$f":"((Quarterly!BH83/Quarterly!BH82)^4)-1","v":1.9503355056789129E-3},{"$f":"((Quarterly!BI83/Quarterly!BI82)^4)-1","v":5.1886028166111542E-2},{"$f":"((Quarterly!BJ83/Quarterly!BJ82)^4)-1","v":0.32992513157932324},"--",null,"--","--",null,null,null,null,null,{"$f":"((Quarterly!BT83/Quarterly!BT82)^4)-1","v":0.1598463772060037},"--","--",{"$f":"((Quarterly!BW83/Quarterly!BW82)^4)-1","v":0.16756983230916078},{"$f":"((Quarterly!BX83/Quarterly!BX82)^4)-1","v":0.41397206455829938},{"$f":"((Quarterly!BY83/Quarterly!BY82)^4)-1","v":0.21100330154354752},"--",{"$f":"((Quarterly!CA83/Quarterly!CA82)^4)-1","v":0.3881871852258747},{"$f":"((Quarterly!CB83/Quarterly!CB82)^4)-1","v":0.14570051007811613},{"$f":"((Quarterly!CC83/Quarterly!CC82)^4)-1","v":5.8080588545256218E-2},"--","--",null,"--","--",null,{"$f":"((Quarterly!CJ83/Quarterly!CJ82)^4)-1","v":0.73391539296112973},{"$f":"((Quarterly!CK83/Quarterly!CK82)^4)-1","v":8.062721138988227E-2},{"$f":"((Quarterly!CL83/Quarterly!CL82)^4)-1","v":-0.30685208278302845},{"$f":"((Quarterly!CM83/Quarterly!CM82)^4)-1","v":0.41516370150749649},{"$f":"((Quarterly!CN83/Quarterly!CN82)^4)-1","v":-1.2424386938069132E-3},{"$f":"((Quarterly!CO83/Quarterly!CO82)^4)-1","v":0.15314763660773156},{"$f":"((Quarterly!CP83/Quarterly!CP82)^4)-1","v":0.10691306913846454},{"$f":"((Quarterly!CQ83/Quarterly!CQ82)^4)-1","v":9.4347982887625914E-3},{"$f":"((Quarterly!CR83/Quarterly!CR82)^4)-1","v":10.623945760904354},"--","--",null,null,null,null,null,{"$f":"((Quarterly!CZ83/Quarterly!CZ82)^4)-1","v":7.5439350616078871E-2},{"$f":"((Quarterly!DA83/Quarterly!DA82)^4)-1","v":6.7516754793498279E-2},null,null,null,null,null,{"$f":"((Quarterly!DG83/Quarterly!DG82)^4)-1","v":4.8940246636080431E-2},{"$f":"((Quarterly!DH83-Quarterly!DH82)*60)","v":-3.9999999999997726},{"$f":"Quarterly!DI83-Quarterly!DI82","v":6.6666666666662877E-2},"--",{"$f":"(Quarterly!DK83-Quarterly!DK82)*100","v":-26.666666666666661},{"$f":"((Quarterly!DL83/Quarterly!DL82)^4)-1","v":4.9075458815607709E-2},null,null,null,{"$f":"((Quarterly!DP83/Quarterly!DP82)^4)-1","v":4.1891037439188539E-2},null,null,null,"--",{"$f":"Quarterly!DU83-Quarterly!DU82","v":-0.73333333333333339},"--","--","--","--","--","--","--","--",null,null,null,null,null,{"$f":"((Quarterly!EI83/Quarterly!EI82)^4)-1","v":7.388570737916722E-2},{"$f":"((Quarterly!EJ83/Quarterly!EJ82)^4)-1","v":5.3273116628071104E-2},{"$f":"((Quarterly!EK83/Quarterly!EK82)^4)-1","v":4.7558653106417381E-2},null,null,null,null,null,{"$f":"((Quarterly!EQ83/Quarterly!EQ82)^4)-1","v":8.8639640354544413E-2},{"$f":"((Quarterly!ER83/Quarterly!ER82)^4)-1","v":5.4810878902715965E-2},{"$f":"((Quarterly!ES83/Quarterly!ES82)^4)-1","v":5.3535843935506922E-2},null,null,null,null,null,{"$f":"(Quarterly!EY83-Quarterly!EY82)*100","v":-28.999999999999915},{"$f":"(Quarterly!EZ83-Quarterly!EZ82)*100","v":-21.333333333333293},{"$f":"(Quarterly!FA83-Quarterly!FA82)*100","v":-15.000000000000036},{"$f":"(Quarterly!FB83-Quarterly!FB82)*100","v":-10.666666666666558},4.3333333333334778,{"$f":"(Quarterly!FD83-Quarterly!FD82)*100","v":-15.000000000000036},{"$f":"(Quarterly!FE83-Quarterly!FE82)*100","v":-4.3333333333333002},{"$f":"(Quarterly!FF83-Quarterly!FF82)*100","v":19.333333333333247},{"$f":"(Quarterly!FG83-Quarterly!FG82)*100","v":30.333333333333368},{"$f":"(Quarterly!FH83-Quarterly!FH82)*100","v":32.333333333333414},{"$f":"(Quarterly!FI83-Quarterly!FI82)*100","v":16.333333333333222},-3.0000000000000249,null,null,null,null,null,{"$f":"((Quarterly!FP83/Quarterly!FP82)^4)-1","v":0.16010103405755594},"--","--","--",{"$f":"((Quarterly!FT83/Quarterly!FT82)^4)-1","v":3.4501886160509976E-2},{"$f":"((Quarterly!FU83/Quarterly!FU82)^4)-1","v":1.2935388909035783E-2},"--","--","--",null,null,null,null,null,{"$f":"((Quarterly!GD83/Quarterly!GD82)^4)-1","v":0},"--","--","--",{"$f":"((Quarterly!GH84/Quarterly!GH83)^4)-1","v":{"$error":"#DIV/0!"}},"--","--","--","--"]
["77'Q2",{"$f":"((Quarterly!B84/Quarterly!B83)^4)-1","v":0.14283900813716111},{"$f":"((Quarterly!C84/Quarterly!C83)^4)-1","v":8.0847429584056441E-2},{"$f":"((Quarterly!D84/Quarterly!D83)^4)-1","v":6.523485795525219E-2},{"$f":"((Quarterly!E84/Quarterly!E83)^4)-1","v":2.2240754792051565E-2},{"$f":"((Quarterly!F84/Quarterly!F83)^4)-1","v":9.7829988796066969E-2},{"$f":"((Quarterly!G84/Quarterly!G83)^4)-1","v":-3.3588747473334291E-4},{"$f":"((Quarterly!H84/Quarterly!H83)^4)-1","v":2.5052611621157572E-2},{"$f":"((Quarterly!I84/Quarterly!I83)^4)-1","v":0.11524438839866691},{"$f":"((Quarterly!J84/Quarterly!J83)^4)-1","v":0.14789048794399262},{"$f":"((Quarterly!K84/Quarterly!K83)^4)-1","v":0.54107221301137143},{"$f":"((Quarterly!L84-Quarterly!L83))","v":14.398},{"$f":"((Quarterly!M84/Quarterly!M83)^4)-1","v":3.7392968873233734E-2},{"$f":"((Quarterly!N84/Quarterly!N83)^4)-1","v":0.11226887817671516},{"$f":"((Quarterly!O84/Quarterly!O83)^4)-1","v":-0.186239464312422},{"$f":"((Quarterly!P84/Quarterly!P83)^4)-1","v":3.9910518485875013E-2},{"$f":"((Quarterly!Q84/Quarterly!Q83)^4)-1","v":-0.28692541137729533},null,null,null,null,null,{"$f":"((Quarterly!W84/Quarterly!W83)^4)-1","v":0.10822312506190213},{"$f":"((Quarterly!X84/Quarterly!X83)^4)-1","v":9.7779288709485046E-2},{"$f":"((Quarterly!Y84/Quarterly!Y83)^4)-1","v":9.7827906215200988E-2},"--",{"$f":"((Quarterly!AA84/Quarterly!AA83)^4)-1","v":0.26921484021234932},{"$f":"((Quarterly!AB84/Quarterly!AB83)^4)-1","v":0.64134437066040495},"--","--","--","--","--","--","--","--","--","--",{"$f":"((Quarterly!AM84/Quarterly!AM83)^4)-1","v":0.1302587031986544},{"$f":"((Quarterly!AN84/Quarterly!AN83)^4)-1","v":0.14605279391471782},"--","--",{"$f":"Quarterly!AQ84-Quarterly!AQ83","v":1.7333333333333272},"--","--",{"$f":"Quarterly!AT84-Quarterly!AT83","v":1.1666666666666643},"--","--",{"$f":"Quarterly!AW84-Quarterly!AW83","v":0.73333333333333428},{"$f":"Quarterly!AX84-Quarterly!AX83","v":1.8000000000000043},{"$f":"Quarterly!AY84-Quarterly!AY83","v":-3.2333333333333343},{"$f":"Quarterly!AZ84-Quarterly!AZ83","v":4.8333333333333357},{"$f":"Quarterly!BA84-Quarterly!BA83","v":-2.2333333333333272},"--","--","--","--",{"$f":"((Quarterly!BF84/Quarterly!BF83)^4)-1","v":8.3870478005268367E-2},{"$f":"((Quarterly!BG84/Quarterly!BG83)^4)-1","v":1.7270822417934983E-2},{"$f":"((Quarterly!BH84/Quarterly!BH83)^4)-1","v":1.1458398417660609E-2},{"$f":"((Quarterly!BI84/Quarterly!BI83)^4)-1","v":6.5450566804390986E-2},{"$f":"((Quarterly!BJ84/Quarterly!BJ83)^4)-1","v":0.29843658092742364},"--",null,"--","--",null,null,null,null,null,{"$f":"((Quarterly!BT84/Quarterly!BT83)^4)-1","v":0.20018313208697558},"--","--",{"$f":"((Quarterly!BW84/Quarterly!BW83)^4)-1","v":8.0741880051651727E-2},{"$f":"((Quarterly!BX84/Quarterly!BX83)^4)-1","v":0.17122534060526129},{"$f":"((Quarterly!BY84/Quarterly!BY83)^4)-1","v":0.38116546972093679},"--",{"$f":"((Quarterly!CA84/Quarterly!CA83)^4)-1","v":7.5587598826179159E-2},{"$f":"((Quarterly!CB84/Quarterly!CB83)^4)-1","v":0.16707314459504907},{"$f":"((Quarterly!CC84/Quarterly!CC83)^4)-1","v":5.9424183984194467E-2},"--","--",null,"--","--",null,{"$f":"((Quarterly!CJ84/Quarterly!CJ83)^4)-1","v":-0.18305683293998132},{"$f":"((Quarterly!CK84/Quarterly!CK83)^4)-1","v":0.12809582879450465},{"$f":"((Quarterly!CL84/Quarterly!CL83)^4)-1","v":0.43865565073012669},{"$f":"((Quarterly!CM84/Quarterly!CM83)^4)-1","v":0.19586551926612406},{"$f":"((Quarterly!CN84/Quarterly!CN83)^4)-1","v":5.0737695283362472E-2},{"$f":"((Quarterly!CO84/Quarterly!CO83)^4)-1","v":8.434691976688935E-2},{"$f":"((Quarterly!CP84/Quarterly!CP83)^4)-1","v":0.18928866243325904},{"$f":"((Quarterly!CQ84/Quarterly!CQ83)^4)-1","v":9.5289131472893196E-3},{"$f":"((Quarterly!CR84/Quarterly!CR83)^4)-1","v":0.27204482783015882},"--","--",null,null,null,null,null,{"$f":"((Quarterly!CZ84/Quarterly!CZ83)^4)-1","v":7.166923774702405E-2},{"$f":"((Quarterly!DA84/Quarterly!DA83)^4)-1","v":6.6396405012685511E-2},null,null,null,null,null,{"$f":"((Quarterly!DG84/Quarterly!DG83)^4)-1","v":8.5196025192980196E-2},{"$f":"((Quarterly!DH84-Quarterly!DH83)*60)","v":9.9999999999998579},{"$f":"Quarterly!DI84-Quarterly!DI83","v":0.40000000000000568},"--",{"$f":"(Quarterly!DK84-Quarterly!DK83)*100","v":-36.666666666666714},{"$f":"((Quarterly!DL84/Quarterly!DL83)^4)-1","v":5.6080944804690835E-2},null,null,null,{"$f":"((Quarterly!DP84/Quarterly!DP83)^4)-1","v":5.4307691068905539E-2},null,null,null,"--",{"$f":"Quarterly!DU84-Quarterly!DU83","v":-0.16666666666666696},"--","--","--","--","--","--","--","--",null,null,null,null,null,{"$f":"((Quarterly!EI84/Quarterly!EI83)^4)-1","v":0.17096617369671607},{"$f":"((Quarterly!EJ84/Quarterly!EJ83)^4)-1","v":8.3602715379753612E-2},{"$f":"((Quarterly!EK84/Quarterly!EK83)^4)-1","v":5.0837094530909566E-2},null,null,null,null,null,{"$f":"((Quarterly!EQ84/Quarterly!EQ83)^4)-1","v":0.10245609132943145},{"$f":"((Quarterly!ER84/Quarterly!ER83)^4)-1","v":4.7721925035716373E-2},{"$f":"((Quarterly!ES84/Quarterly!ES83)^4)-1","v":6.3640950362352511E-2},null,null,null,null,null,{"$f":"(Quarterly!EY84-Quarterly!EY83)*100","v":21.999999999999975},{"$f":"(Quarterly!EZ84-Quarterly!EZ83)*100","v":49.666666666666615},{"$f":"(Quarterly!FA84-Quarterly!FA83)*100","v":-1.9999999999999574},{"$f":"(Quarterly!FB84-Quarterly!FB83)*100","v":-11.000000000000121},-9.0000000000001634,{"$f":"(Quarterly!FD84-Quarterly!FD83)*100","v":11.666666666666714},{"$f":"(Quarterly!FE84-Quarterly!FE83)*100","v":20.999999999999996},{"$f":"(Quarterly!FF84-Quarterly!FF83)*100","v":27.33333333333352},{"$f":"(Quarterly!FG84-Quarterly!FG83)*100","v":8.6666666666666892},{"$f":"(Quarterly!FH84-Quarterly!FH83)*100","v":5.0000000000000711},{"$f":"(Quarterly!FI84-Quarterly!FI83)*100","v":1.6666666666667496},-25.666666666666771,null,null,null,null,null,{"$f":"((Quarterly!FP84/Quarterly!FP83)^4)-1","v":9.1404357507261613E-2},"--","--","--",{"$f":"((Quarterly!FT84/Quarterly!FT83)^4)-1","v":7.2165616644717101E-3},{"$f":"((Quarterly!FU84/Quarterly!FU83)^4)-1","v":-1.5753554392633928E-2},"--","--","--",null,null,null,null,null,{"$f":"((Quarterly!GD84/Quarterly!GD83)^4)-1","v":0},"--","--","--",{"$f":"((Quarterly!GH85/Quarterly!GH84)^4)-1","v":{"$error":"#DIV/0!"}},"--","--","--","--"]
["77'Q3",{"$f":"((Quarterly!B85/Quarterly!B84)^4)-1","v":0.12639389670647483},{"$f":"((Quarterly!C85/Quarterly!C84)^4)-1","v":7.2665873537897774E-2},{"$f":"((Quarterly!D85/Quarterly!D84)^4)-1","v":4.2766301086554437E-2},{"$f":"((Quarterly!E85/Quarterly!E84)^4)-1","v":3.8613417173098075E-2},{"$f":"((Quarterly!F85/Quarterly!F84)^4)-1","v":6.017977384471207E-2},{"$f":"((Quarterly!G85/Quarterly!G84)^4)-1","v":1.9969344425972979E-2},{"$f":"((Quarterly!H85/Quarterly!H84)^4)-1","v":4.4525864328290421E-2},{"$f":"((Quarterly!I85/Quarterly!I84)^4)-1","v":8.2162100519635795E-2},{"$f":"((Quarterly!J85/Quarterly!J84)^4)-1","v":7.3611576734865292E-2},{"$f":"((Quarterly!K85/Quarterly!K84)^4)-1","v":-1.2090541179130665E-2},{"$f":"((Quarterly!L85-Quarterly!L84))","v":32.971000000000004},{"$f":"((Quarterly!M85/Quarterly!M84)^4)-1","v":-5.4602776958372679E-2},{"$f":"((Quarterly!N85/Quarterly!N84)^4)-1","v":3.1338822323576876E-2},{"$f":"((Quarterly!O85/Quarterly!O84)^4)-1","v":-0.32176910275758108},{"$f":"((Quarterly!P85/Quarterly!P84)^4)-1","v":8.9477211571695747E-3},{"$f":"((Quarterly!Q85/Quarterly!Q84)^4)-1","v":0.47645873033514929},null,null,null,null,null,{"$f":"((Quarterly!W85/Quarterly!W84)^4)-1","v":1.4571709014402412E-2},{"$f":"((Quarterly!X85/Quarterly!X84)^4)-1","v":1.1175305657354251E-2},{"$f":"((Quarterly!Y85/Quarterly!Y84)^4)-1","v":0.11621713672023093},"--",{"$f":"((Quarterly!AA85/Quarterly!AA84)^4)-1","v":0.17980033396601147},{"$f":"((Quarterly!AB85/Quarterly!AB84)^4)-1","v":0.43637506530800785},"--","--","--","--","--","--","--","--","--","--",{"$f":"((Quarterly!AM85/Quarterly!AM84)^4)-1","v":4.4972055833487179E-2},{"$f":"((Quarterly!AN85/Quarterly!AN84)^4)-1","v":5.0596988110189978E-2},"--","--",{"$f":"Quarterly!AQ85-Quarterly!AQ84","v":-2.2999999999999901},"--","--",{"$f":"Quarterly!AT85-Quarterly!AT84","v":-0.23333333333332718},"--","--",{"$f":"Quarterly!AW85-Quarterly!AW84","v":-4.4666666666666615},{"$f":"Quarterly!AX85-Quarterly!AX84","v":-2.7333333333333414},{"$f":"Quarterly!AY85-Quarterly!AY84","v":-7.2000000000000028},{"$f":"Quarterly!AZ85-Quarterly!AZ84","v":-5.0999999999999943},{"$f":"Quarterly!BA85-Quarterly!BA84","v":1.7333333333333272},"--","--","--","--",{"$f":"((Quarterly!BF85/Quarterly!BF84)^4)-1","v":8.0236183521920745E-2},{"$f":"((Quarterly!BG85/Quarterly!BG84)^4)-1","v":4.0368038383200133E-2},{"$f":"((Quarterly!BH85/Quarterly!BH84)^4)-1","v":2.2497441264258899E-2},{"$f":"((Quarterly!BI85/Quarterly!BI84)^4)-1","v":3.8356874800359986E-2},{"$f":"((Quarterly!BJ85/Quarterly!BJ84)^4)-1","v":0.16614078322980763},"--",null,"--","--",null,null,null,null,null,{"$f":"((Quarterly!BT85/Quarterly!BT84)^4)-1","v":0.19356797605491116},"--","--",{"$f":"((Quarterly!BW85/Quarterly!BW84)^4)-1","v":0.12288266101040213},{"$f":"((Quarterly!BX85/Quarterly!BX84)^4)-1","v":0.20204748689772933},{"$f":"((Quarterly!BY85/Quarterly!BY84)^4)-1","v":4.890357669896872E-2},"--",{"$f":"((Quarterly!CA85/Quarterly!CA84)^4)-1","v":-7.6124289792948496E-2},{"$f":"((Quarterly!CB85/Quarterly!CB84)^4)-1","v":-0.12476387715697979},{"$f":"((Quarterly!CC85/Quarterly!CC84)^4)-1","v":-0.12471013652136365},"--","--",null,"--","--",null,{"$f":"((Quarterly!CJ85/Quarterly!CJ84)^4)-1","v":-9.9172787888525127E-3},{"$f":"((Quarterly!CK85/Quarterly!CK84)^4)-1","v":0.11984038208373726},{"$f":"((Quarterly!CL85/Quarterly!CL84)^4)-1","v":0.37301134181960127},{"$f":"((Quarterly!CM85/Quarterly!CM84)^4)-1","v":8.788247724617837E-2},{"$f":"((Quarterly!CN85/Quarterly!CN84)^4)-1","v":6.2669439623871837E-2},{"$f":"((Quarterly!CO85/Quarterly!CO84)^4)-1","v":7.9015424230936437E-2},{"$f":"((Quarterly!CP85/Quarterly!CP84)^4)-1","v":0.1668228610872613},{"$f":"((Quarterly!CQ85/Quarterly!CQ84)^4)-1","v":1.0936197168202266E-2},{"$f":"((Quarterly!CR85/Quarterly!CR84)^4)-1","v":0.26918008453934639},"--","--",null,null,null,null,null,{"$f":"((Quarterly!CZ85/Quarterly!CZ84)^4)-1","v":5.6499430011445417E-2},{"$f":"((Quarterly!DA85/Quarterly!DA84)^4)-1","v":5.8411830869168124E-2},null,null,null,null,null,{"$f":"((Quarterly!DG85/Quarterly!DG84)^4)-1","v":3.6919216041303438E-2},{"$f":"((Quarterly!DH85-Quarterly!DH84)*60)","v":-6.0000000000000853},{"$f":"Quarterly!DI85-Quarterly!DI84","v":0},"--",{"$f":"(Quarterly!DK85-Quarterly!DK84)*100","v":-23.333333333333339},{"$f":"((Quarterly!DL85/Quarterly!DL84)^4)-1","v":4.0814171434726321E-2},null,null,null,{"$f":"((Quarterly!DP85/Quarterly!DP84)^4)-1","v":5.1909444762469725E-2},null,null,null,"--",{"$f":"Quarterly!DU85-Quarterly!DU84","v":-0.19999999999999929},"--","--","--","--","--","--","--","--",null,null,null,null,null,{"$f":"((Quarterly!EI85/Quarterly!EI84)^4)-1","v":6.6533564129503953E-2},{"$f":"((Quarterly!EJ85/Quarterly!EJ84)^4)-1","v":5.2207808953959267E-2},{"$f":"((Quarterly!EK85/Quarterly!EK84)^4)-1","v":4.9796601765722759E-2},null,null,null,null,null,{"$f":"((Quarterly!EQ85/Quarterly!EQ84)^4)-1","v":6.1648931306772514E-3},{"$f":"((Quarterly!ER85/Quarterly!ER84)^4)-1","v":7.0294346431312382E-2},{"$f":"((Quarterly!ES85/Quarterly!ES84)^4)-1","v":7.5518443758943343E-2},null,null,null,null,null,{"$f":"(Quarterly!EY85-Quarterly!EY84)*100","v":43.333333333333357},{"$f":"(Quarterly!EZ85-Quarterly!EZ84)*100","v":66.3333333333334},{"$f":"(Quarterly!FA85-Quarterly!FA84)*100","v":-6.6666666666665542},{"$f":"(Quarterly!FB85-Quarterly!FB84)*100","v":-16.666666666666607},-10.000000000000053,{"$f":"(Quarterly!FD85-Quarterly!FD84)*100","v":11.666666666666714},{"$f":"(Quarterly!FE85-Quarterly!FE84)*100","v":65.666666666666629},{"$f":"(Quarterly!FF85-Quarterly!FF84)*100","v":58.6666666666666},{"$f":"(Quarterly!FG85-Quarterly!FG84)*100","v":41.6666666666667},{"$f":"(Quarterly!FH85-Quarterly!FH84)*100","v":13.999999999999879},{"$f":"(Quarterly!FI85-Quarterly!FI84)*100","v":-1.3333333333333641},-59.999999999999964,null,null,null,null,null,{"$f":"((Quarterly!FP85/Quarterly!FP84)^4)-1","v":6.7114542554747469E-2},"--","--","--",{"$f":"((Quarterly!FT85/Quarterly!FT84)^4)-1","v":-1.8685955989605763E-3},{"$f":"((Quarterly!FU85/Quarterly!FU84)^4)-1","v":-2.399362509358216E-2},"--","--","--",null,null,null,null,null,{"$f":"((Quarterly!GD85/Quarterly!GD84)^4)-1","v":0.19509309510290662},"--","--","--",{"$f":"((Quarterly!GH86/Quarterly!GH85)^4)-1","v":{"$error":"#DIV/0!"}},"--","--","--","--"]
["77'Q4",{"$f":"((Quarterly!B86/Quarterly!B85)^4)-1","v":9.0215687059174154E-2},{"$f":"((Quarterly!C86/Quarterly!C85)^4)-1","v":4.2016820110202246E-4},{"$f":"((Quarterly!D86/Quarterly!D85)^4)-1","v":3.347939282762491E-2},{"$f":"((Quarterly!E86/Quarterly!E85)^4)-1","v":6.1666549096769829E-2},{"$f":"((Quarterly!F86/Quarterly!F85)^4)-1","v":8.6672548197268329E-2},{"$f":"((Quarterly!G86/Quarterly!G85)^4)-1","v":8.8723362827777263E-2},{"$f":"((Quarterly!H86/Quarterly!H85)^4)-1","v":4.810648689686392E-2},{"$f":"((Quarterly!I86/Quarterly!I85)^4)-1","v":0.12753702982968451},{"$f":"((Quarterly!J86/Quarterly!J85)^4)-1","v":0.1593684008002334},{"$f":"((Quarterly!K86/Quarterly!K85)^4)-1","v":-5.175592505852733E-2},{"$f":"((Quarterly!L86-Quarterly!L85))","v":-36.322000000000003},{"$f":"((Quarterly!M86/Quarterly!M85)^4)-1","v":5.7967804078439711E-2},{"$f":"((Quarterly!N86/Quarterly!N85)^4)-1","v":-0.12231938152864896},{"$f":"((Quarterly!O86/Quarterly!O85)^4)-1","v":1.0762984147215584},{"$f":"((Quarterly!P86/Quarterly!P85)^4)-1","v":-8.6192558444976308E-3},{"$f":"((Quarterly!Q86/Quarterly!Q85)^4)-1","v":0.16599412689737347},null,null,null,null,null,{"$f":"((Quarterly!W86/Quarterly!W85)^4)-1","v":4.8221732981243992E-3},{"$f":"((Quarterly!X86/Quarterly!X85)^4)-1","v":-7.9035376444888117E-3},{"$f":"((Quarterly!Y86/Quarterly!Y85)^4)-1","v":0.12145697639788722},"--",{"$f":"((Quarterly!AA86/Quarterly!AA85)^4)-1","v":2.5460119381007118E-2},{"$f":"((Quarterly!AB86/Quarterly!AB85)^4)-1","v":-0.16415009141449022},"--","--","--","--","--","--","--","--","--","--",{"$f":"((Quarterly!AM86/Quarterly!AM85)^4)-1","v":2.5916838214684157E-2},{"$f":"((Quarterly!AN86/Quarterly!AN85)^4)-1","v":3.9017008332862702E-2},"--","--",{"$f":"Quarterly!AQ86-Quarterly!AQ85","v":1.6000000000000014},"--","--",{"$f":"Quarterly!AT86-Quarterly!AT85","v":3.0333333333333314},"--","--",{"$f":"Quarterly!AW86-Quarterly!AW85","v":-0.6666666666666643},{"$f":"Quarterly!AX86-Quarterly!AX85","v":0.76666666666667282},{"$f":"Quarterly!AY86-Quarterly!AY85","v":-3.7000000000000028},{"$f":"Quarterly!AZ86-Quarterly!AZ85","v":3.6666666666666643},{"$f":"Quarterly!BA86-Quarterly!BA85","v":-0.5},"--","--","--","--",{"$f":"((Quarterly!BF86/Quarterly!BF85)^4)-1","v":7.1187227126888741E-2},{"$f":"((Quarterly!BG86/Quarterly!BG85)^4)-1","v":-5.0359124248135045E-2},{"$f":"((Quarterly!BH86/Quarterly!BH85)^4)-1","v":1.0304909543702001E-2},{"$f":"((Quarterly!BI86/Quarterly!BI85)^4)-1","v":0.128011646846657},{"$f":"((Quarterly!BJ86/Quarterly!BJ85)^4)-1","v":3.3877872644124007E-2},"--",null,"--","--",null,null,null,null,null,{"$f":"((Quarterly!BT86/Quarterly!BT85)^4)-1","v":0.18708944567377239},"--","--",{"$f":"((Quarterly!BW86/Quarterly!BW85)^4)-1","v":8.8879789022333622E-2},{"$f":"((Quarterly!BX86/Quarterly!BX85)^4)-1","v":0.1387586778569494},{"$f":"((Quarterly!BY86/Quarterly!BY85)^4)-1","v":0.11514676096612453},"--",{"$f":"((Quarterly!CA86/Quarterly!CA85)^4)-1","v":5.9614551264316917E-2},{"$f":"((Quarterly!CB86/Quarterly!CB85)^4)-1","v":-6.1944014049188145E-2},{"$f":"((Quarterly!CC86/Quarterly!CC85)^4)-1","v":-7.9880244655300858E-2},"--","--",null,"--","--",null,{"$f":"((Quarterly!CJ86/Quarterly!CJ85)^4)-1","v":0.13617847004606287},{"$f":"((Quarterly!CK86/Quarterly!CK85)^4)-1","v":0.15107626957022924},{"$f":"((Quarterly!CL86/Quarterly!CL85)^4)-1","v":0.31046816393105603},{"$f":"((Quarterly!CM86/Quarterly!CM85)^4)-1","v":0.14362322179991738},{"$f":"((Quarterly!CN86/Quarterly!CN85)^4)-1","v":7.9526187636922874E-2},{"$f":"((Quarterly!CO86/Quarterly!CO85)^4)-1","v":7.3098762407038054E-2},{"$f":"((Quarterly!CP86/Quarterly!CP85)^4)-1","v":0.16819968227835802},{"$f":"((Quarterly!CQ86/Quarterly!CQ85)^4)-1","v":1.1729768185663403E-2},{"$f":"((Quarterly!CR86/Quarterly!CR85)^4)-1","v":0.2941382367553258},"--","--",null,null,null,null,null,{"$f":"((Quarterly!CZ86/Quarterly!CZ85)^4)-1","v":6.0268067425608196E-2},{"$f":"((Quarterly!DA86/Quarterly!DA85)^4)-1","v":5.531216430332031E-2},null,null,null,null,null,{"$f":"((Quarterly!DG86/Quarterly!DG85)^4)-1","v":4.6918917669822369E-2},{"$f":"((Quarterly!DH86-Quarterly!DH85)*60)","v":0},{"$f":"Quarterly!DI86-Quarterly!DI85","v":0.39999999999999858},"--",{"$f":"(Quarterly!DK86-Quarterly!DK85)*100","v":-23.33333333333325},{"$f":"((Quarterly!DL86/Quarterly!DL85)^4)-1","v":3.2240314579578655E-2},null,null,null,{"$f":"((Quarterly!DP86/Quarterly!DP85)^4)-1","v":4.7869037195255926E-2},null,null,null,"--",{"$f":"Quarterly!DU86-Quarterly!DU85","v":-3.3333333333334103E-2},"--","--","--","--","--","--","--","--",null,null,null,null,null,{"$f":"((Quarterly!EI86/Quarterly!EI85)^4)-1","v":-1.3795956188476177E-2},{"$f":"((Quarterly!EJ86/Quarterly!EJ85)^4)-1","v":1.2575361676273378E-2},{"$f":"((Quarterly!EK86/Quarterly!EK85)^4)-1","v":2.1819075217364592E-2},null,null,null,null,null,{"$f":"((Quarterly!EQ86/Quarterly!EQ85)^4)-1","v":4.5802133484841967E-2},{"$f":"((Quarterly!ER86/Quarterly!ER85)^4)-1","v":8.3736263307134129E-2},{"$f":"((Quarterly!ES86/Quarterly!ES85)^4)-1","v":9.7567702272996826E-2},null,null,null,null,null,{"$f":"(Quarterly!EY86-Quarterly!EY85)*100","v":76.999999999999957},{"$f":"(Quarterly!EZ86-Quarterly!EZ85)*100","v":69.333333333333243},{"$f":"(Quarterly!FA86-Quarterly!FA85)*100","v":15.666666666666362},{"$f":"(Quarterly!FB86-Quarterly!FB85)*100","v":11.333333333333329},-4.3333333333330337,{"$f":"(Quarterly!FD86-Quarterly!FD85)*100","v":0.66666666666659324},{"$f":"(Quarterly!FE86-Quarterly!FE85)*100","v":61.333333333333329},{"$f":"(Quarterly!FF86-Quarterly!FF85)*100","v":67.999999999999972},{"$f":"(Quarterly!FG86-Quarterly!FG85)*100","v":61.333333333333329},{"$f":"(Quarterly!FH86-Quarterly!FH85)*100","v":41.000000000000014},{"$f":"(Quarterly!FI86-Quarterly!FI85)*100","v":24.000000000000021},-43.99999999999995,null,null,null,null,null,{"$f":"((Quarterly!FP86/Quarterly!FP85)^4)-1","v":0.12512072846214317},"--","--","--",{"$f":"((Quarterly!FT86/Quarterly!FT85)^4)-1","v":-4.5026229923832983E-2},{"$f":"((Quarterly!FU86/Quarterly!FU85)^4)-1","v":-8.5032093380510099E-2},"--","--","--",null,null,null,null,null,{"$f":"((Quarterly!GD86/Quarterly!GD85)^4)-1","v":9.0046127602837478E-2},"--","--","--",{"$f":"((Quarterly!GH87/Quarterly!GH86)^4)-1","v":{"$error":"#DIV/0!"}},"--","--","--","--"]
["78'Q1",{"$f":"((Quarterly!B87/Quarterly!B86)^4)-1","v":7.5788140495186118E-2},{"$f":"((Quarterly!C87/Quarterly!C86)^4)-1","v":1.3990548559041471E-2},{"$f":"((Quarterly!D87/Quarterly!D86)^4)-1","v":5.5096094925008998E-3},{"$f":"((Quarterly!E87/Quarterly!E86)^4)-1","v":2.3393609899022172E-2},{"$f":"((Quarterly!F87/Quarterly!F86)^4)-1","v":-0.10186834774028386},{"$f":"((Quarterly!G87/Quarterly!G86)^4)-1","v":1.7209927233079236E-2},{"$f":"((Quarterly!H87/Quarterly!H86)^4)-1","v":3.8762152773513359E-2},{"$f":"((Quarterly!I87/Quarterly!I86)^4)-1","v":3.54394479932989E-2},{"$f":"((Quarterly!J87/Quarterly!J86)^4)-1","v":-3.3410695000497537E-3},{"$f":"((Quarterly!K87/Quarterly!K86)^4)-1","v":1.9691079204707806E-2},{"$f":"((Quarterly!L87-Quarterly!L86))","v":7.8659999999999997},{"$f":"((Quarterly!M87/Quarterly!M86)^4)-1","v":0.2965988020356729},{"$f":"((Quarterly!N87/Quarterly!N86)^4)-1","v":9.7611484199292775E-2},{"$f":"((Quarterly!O87/Quarterly!O86)^4)-1","v":1.1317404466794208},{"$f":"((Quarterly!P87/Quarterly!P86)^4)-1","v":4.6240384598448259E-3},{"$f":"((Quarterly!Q87/Quarterly!Q86)^4)-1","v":0.11939384563559208},null,null,null,null,null,{"$f":"((Quarterly!W87/Quarterly!W86)^4)-1","v":-3.3231505365215797E-2},{"$f":"((Quarterly!X87/Quarterly!X86)^4)-1","v":-4.5278542846448278E-2},{"$f":"((Quarterly!Y87/Quarterly!Y86)^4)-1","v":0.15464697009064055},"--",{"$f":"((Quarterly!AA87/Quarterly!AA86)^4)-1","v":0.14165673793518829},{"$f":"((Quarterly!AB87/Quarterly!AB86)^4)-1","v":2.3984992078306178E-2},"--","--","--","--","--","--","--","--","--","--",{"$f":"((Quarterly!AM87/Quarterly!AM86)^4)-1","v":-1.1879957306405453E-2},{"$f":"((Quarterly!AN87/Quarterly!AN86)^4)-1","v":4.4160851412606839E-3},"--","--",{"$f":"Quarterly!AQ87-Quarterly!AQ86","v":-1},"--","--",{"$f":"Quarterly!AT87-Quarterly!AT86","v":-2.2666666666666657},"--","--",{"$f":"Quarterly!AW87-Quarterly!AW86","v":2.3999999999999915},{"$f":"Quarterly!AX87-Quarterly!AX86","v":-1.1999999999999957},{"$f":"Quarterly!AY87-Quarterly!AY86","v":8.0333333333333456},{"$f":"Quarterly!AZ87-Quarterly!AZ86","v":-3.6999999999999957},{"$f":"Quarterly!BA87-Quarterly!BA86","v":3.63333333333334},"--","--","--","--",{"$f":"((Quarterly!BF87/Quarterly!BF86)^4)-1","v":0.14137808494929271},{"$f":"((Quarterly!BG87/Quarterly!BG86)^4)-1","v":2.5880621289520178E-3},{"$f":"((Quarterly!BH87/Quarterly!BH86)^4)-1","v":7.3680919077852458E-2},{"$f":"((Quarterly!BI87/Quarterly!BI86)^4)-1","v":0.138404693555364},{"$f":"((Quarterly!BJ87/Quarterly!BJ86)^4)-1","v":2.3367336536660455E-2},"--",null,"--","--",null,null,null,null,null,{"$f":"((Quarterly!BT87/Quarterly!BT86)^4)-1","v":0.18807795426626162},"--","--",{"$f":"((Quarterly!BW87/Quarterly!BW86)^4)-1","v":0.10268345848258353},{"$f":"((Quarterly!BX87/Quarterly!BX86)^4)-1","v":-0.39630171040257411},{"$f":"((Quarterly!BY87/Quarterly!BY86)^4)-1","v":-6.0434199085419582E-3},"--",{"$f":"((Quarterly!CA87/Quarterly!CA86)^4)-1","v":-0.14506434120544787},{"$f":"((Quarterly!CB87/Quarterly!CB86)^4)-1","v":-0.12911223097212587},{"$f":"((Quarterly!CC87/Quarterly!CC86)^4)-1","v":-0.14406238318042897},"--","--",null,"--","--",null,{"$f":"((Quarterly!CJ87/Quarterly!CJ86)^4)-1","v":-0.12715307022454803},{"$f":"((Quarterly!CK87/Quarterly!CK86)^4)-1","v":9.5128335033553668E-2},{"$f":"((Quarterly!CL87/Quarterly!CL86)^4)-1","v":0.12224102657518277},{"$f":"((Quarterly!CM87/Quarterly!CM86)^4)-1","v":-0.43170787728231363},{"$f":"((Quarterly!CN87/Quarterly!CN86)^4)-1","v":2.8692518870063299E-2},{"$f":"((Quarterly!CO87/Quarterly!CO86)^4)-1","v":5.1298432652216785E-2},{"$f":"((Quarterly!CP87/Quarterly!CP86)^4)-1","v":0.12987258046848349},{"$f":"((Quarterly!CQ87/Quarterly!CQ86)^4)-1","v":9.5741310510093491E-3},{"$f":"((Quarterly!CR87/Quarterly!CR86)^4)-1","v":1.5615426689649547E-2},"--","--",null,null,null,null,null,{"$f":"((Quarterly!CZ87/Quarterly!CZ86)^4)-1","v":7.0652551445463452E-2},{"$f":"((Quarterly!DA87/Quarterly!DA86)^4)-1","v":7.2478826881861913E-2},null,null,null,null,null,{"$f":"((Quarterly!DG87/Quarterly!DG86)^4)-1","v":3.9702184455880918E-3},{"$f":"((Quarterly!DH87-Quarterly!DH86)*60)","v":-19.999999999999716},{"$f":"Quarterly!DI87-Quarterly!DI86","v":0.13333333333334707},"--",{"$f":"(Quarterly!DK87-Quarterly!DK86)*100","v":-33.333333333333393},{"$f":"((Quarterly!DL87/Quarterly!DL86)^4)-1","v":4.5975084646494802E-2},null,null,null,{"$f":"((Quarterly!DP87/Quarterly!DP86)^4)-1","v":4.2323774033965256E-2},null,null,null,"--",{"$f":"Quarterly!DU87-Quarterly!DU86","v":-0.43333333333333357},"--","--","--","--","--","--","--","--",null,null,null,null,null,{"$f":"((Quarterly!EI87/Quarterly!EI86)^4)-1","v":4.3940379995139889E-3},{"$f":"((Quarterly!EJ87/Quarterly!EJ86)^4)-1","v":6.210468500976285E-3},{"$f":"((Quarterly!EK87/Quarterly!EK86)^4)-1","v":1.9484851082436361E-2},null,null,null,null,null,{"$f":"((Quarterly!EQ87/Quarterly!EQ86)^4)-1","v":0.10076413674172691},{"$f":"((Quarterly!ER87/Quarterly!ER86)^4)-1","v":5.1449296786046039E-2},{"$f":"((Quarterly!ES87/Quarterly!ES86)^4)-1","v":6.4140415203710388E-2},null,null,null,null,null,{"$f":"(Quarterly!EY87-Quarterly!EY86)*100","v":30.333333333333368},{"$f":"(Quarterly!EZ87-Quarterly!EZ86)*100","v":24.333333333333407},{"$f":"(Quarterly!FA87-Quarterly!FA86)*100","v":34.666666666666934},{"$f":"(Quarterly!FB87-Quarterly!FB86)*100","v":25.333333333333208},-9.3333333333337265,{"$f":"(Quarterly!FD87-Quarterly!FD86)*100","v":19.333333333333336},{"$f":"(Quarterly!FE87-Quarterly!FE86)*100","v":28.33333333333341},{"$f":"(Quarterly!FF87-Quarterly!FF86)*100","v":34.999999999999964},{"$f":"(Quarterly!FG87-Quarterly!FG86)*100","v":40.333333333333329},{"$f":"(Quarterly!FH87-Quarterly!FH86)*100","v":44.000000000000043},{"$f":"(Quarterly!FI87-Quarterly!FI86)*100","v":41.333333333333314},6.3333333333333499,null,null,null,null,null,{"$f":"((Quarterly!FP87/Quarterly!FP86)^4)-1","v":4.2406765156209669E-2},"--","--","--",{"$f":"((Quarterly!FT87/Quarterly!FT86)^4)-1","v":-7.3975619945993332E-2},{"$f":"((Quarterly!FU87/Quarterly!FU86)^4)-1","v":-0.11687199445943353},"--","--","--",null,null,null,null,null,{"$f":"((Quarterly!GD87/Quarterly!GD86)^4)-1","v":0},"--","--","--",{"$f":"((Quarterly!GH88/Quarterly!GH87)^4)-1","v":{"$error":"#DIV/0!"}},"--","--","--","--"]
["78'Q2",{"$f":"((Quarterly!B88/Quarterly!B87)^4)-1","v":0.25248488805274816},{"$f":"((Quarterly!C88/Quarterly!C87)^4)-1","v":0.16482918804658309},{"$f":"((Quarterly!D88/Quarterly!D87)^4)-1","v":0.1663387731707564},{"$f":"((Quarterly!E88/Quarterly!E87)^4)-1","v":8.8114306836009737E-2},{"$f":"((Quarterly!F88/Quarterly!F87)^4)-1","v":0.33333841486309801},{"$f":"((Quarterly!G88/Quarterly!G87)^4)-1","v":3.1153017860743759E-2},{"$f":"((Quarterly!H88/Quarterly!H87)^4)-1","v":9.1582788333516518E-2},{"$f":"((Quarterly!I88/Quarterly!I87)^4)-1","v":0.34769236431382589},{"$f":"((Quarterly!J88/Quarterly!J87)^4)-1","v":0.54884784600777836},{"$f":"((Quarterly!K88/Quarterly!K87)^4)-1","v":0.20681855665447668},{"$f":"((Quarterly!L88-Quarterly!L87))","v":-0.9930000000000021},{"$f":"((Quarterly!M88/Quarterly!M87)^4)-1","v":1.2719537875503395E-2},{"$f":"((Quarterly!N88/Quarterly!N87)^4)-1","v":0.48667191756369266},{"$f":"((Quarterly!O88/Quarterly!O87)^4)-1","v":-0.72301417447014549},{"$f":"((Quarterly!P88/Quarterly!P87)^4)-1","v":0.11049601846689905},{"$f":"((Quarterly!Q88/Quarterly!Q87)^4)-1","v":-0.6775649979630598},null,null,null,null,null,{"$f":"((Quarterly!W88/Quarterly!W87)^4)-1","v":0.10577217639232273},{"$f":"((Quarterly!X88/Quarterly!X87)^4)-1","v":0.12960608118986294},{"$f":"((Quarterly!Y88/Quarterly!Y87)^4)-1","v":0.20205229953318549},"--",{"$f":"((Quarterly!AA88/Quarterly!AA87)^4)-1","v":0.52731107907669106},{"$f":"((Quarterly!AB88/Quarterly!AB87)^4)-1","v":0.53997499483326172},"--","--","--","--","--","--","--","--","--","--",{"$f":"((Quarterly!AM88/Quarterly!AM87)^4)-1","v":0.17112191237831964},{"$f":"((Quarterly!AN88/Quarterly!AN87)^4)-1","v":0.14682207400935465},"--","--",{"$f":"Quarterly!AQ88-Quarterly!AQ87","v":3.3666666666666671},"--","--",{"$f":"Quarterly!AT88-Quarterly!AT87","v":2.3999999999999986},"--","--",{"$f":"Quarterly!AW88-Quarterly!AW87","v":3.0333333333333456},{"$f":"Quarterly!AX88-Quarterly!AX87","v":4.7666666666666586},{"$f":"Quarterly!AY88-Quarterly!AY87","v":8.3333333333333286},{"$f":"Quarterly!AZ88-Quarterly!AZ87","v":5},{"$f":"Quarterly!BA88-Quarterly!BA87","v":-0.76666666666667282},"--","--","--","--",{"$f":"((Quarterly!BF88/Quarterly!BF87)^4)-1","v":4.4821588687070202E-2},{"$f":"((Quarterly!BG88/Quarterly!BG87)^4)-1","v":8.073779238484291E-2},{"$f":"((Quarterly!BH88/Quarterly!BH87)^4)-1","v":-4.1309429047834967E-2},{"$f":"((Quarterly!BI88/Quarterly!BI87)^4)-1","v":-3.3309388891655578E-2},{"$f":"((Quarterly!BJ88/Quarterly!BJ87)^4)-1","v":0.80265017500892077},"--",null,"--","--",null,null,null,null,null,{"$f":"((Quarterly!BT88/Quarterly!BT87)^4)-1","v":0.21543548373169408},"--","--",{"$f":"((Quarterly!BW88/Quarterly!BW87)^4)-1","v":7.9256735995664185E-2},{"$f":"((Quarterly!BX88/Quarterly!BX87)^4)-1","v":0.78339908699153638},{"$f":"((Quarterly!BY88/Quarterly!BY87)^4)-1","v":0.3604889600000003},"--",{"$f":"((Quarterly!CA88/Quarterly!CA87)^4)-1","v":0.62715059056368849},{"$f":"((Quarterly!CB88/Quarterly!CB87)^4)-1","v":6.9530508038199379E-2},{"$f":"((Quarterly!CC88/Quarterly!CC87)^4)-1","v":-3.7631714463894905E-3},"--","--",null,"--","--",null,{"$f":"((Quarterly!CJ88/Quarterly!CJ87)^4)-1","v":0.28445428242624504},{"$f":"((Quarterly!CK88/Quarterly!CK87)^4)-1","v":0.13991178756333222},{"$f":"((Quarterly!CL88/Quarterly!CL87)^4)-1","v":-0.23852730501601116},{"$f":"((Quarterly!CM88/Quarterly!CM87)^4)-1","v":0.66649288686765851},{"$f":"((Quarterly!CN88/Quarterly!CN87)^4)-1","v":4.0139338367263244E-2},{"$f":"((Quarterly!CO88/Quarterly!CO87)^4)-1","v":2.2491583920341895E-2},{"$f":"((Quarterly!CP88/Quarterly!CP87)^4)-1","v":0.21428929427178445},{"$f":"((Quarterly!CQ88/Quarterly!CQ87)^4)-1","v":9.9512236134138288E-3},{"$f":"((Quarterly!CR88/Quarterly!CR87)^4)-1","v":0.2738722397115041},{"$f":"Quarterly!CS88-Quarterly!CS87","v":-0.76666666666666572},"--",null,null,null,null,null,{"$f":"((Quarterly!CZ88/Quarterly!CZ87)^4)-1","v":9.4106916832918497E-2},{"$f":"((Quarterly!DA88/Quarterly!DA87)^4)-1","v":8.4530447695163602E-2},null,null,null,null,null,{"$f":"((Quarterly!DG88/Quarterly!DG87)^4)-1","v":0.11558821797736396},{"$f":"((Quarterly!DH88-Quarterly!DH87)*60)","v":15.999999999999943},{"$f":"Quarterly!DI88-Quarterly!DI87","v":0.36666666666665293},"--",{"$f":"(Quarterly!DK88-Quarterly!DK87)*100","v":-33.3333333333333},{"$f":"((Quarterly!DL88/Quarterly!DL87)^4)-1","v":4.4196311269817601E-2},null,null,null,{"$f":"((Quarterly!DP88/Quarterly!DP87)^4)-1","v":7.4446225471073824E-2},null,null,null,"--",{"$f":"Quarterly!DU88-Quarterly!DU87","v":-0.53333333333333233},"--","--","--","--","--","--","--","--",null,null,null,null,null,{"$f":"((Quarterly!EI88/Quarterly!EI87)^4)-1","v":0.23105493302411695},{"$f":"((Quarterly!EJ88/Quarterly!EJ87)^4)-1","v":0.15430890713360945},{"$f":"((Quarterly!EK88/Quarterly!EK87)^4)-1","v":0.12308440550050559},null,null,null,null,null,{"$f":"((Quarterly!EQ88/Quarterly!EQ87)^4)-1","v":0.12611360289870488},{"$f":"((Quarterly!ER88/Quarterly!ER87)^4)-1","v":9.5268112837940455E-2},{"$f":"((Quarterly!ES88/Quarterly!ES87)^4)-1","v":7.7326958847131921E-2},null,null,null,null,null,{"$f":"(Quarterly!EY88-Quarterly!EY87)*100","v":32.333333333333236},{"$f":"(Quarterly!EZ88-Quarterly!EZ87)*100","v":52.666666666666728},{"$f":"(Quarterly!FA88-Quarterly!FA87)*100","v":21.999999999999886},{"$f":"(Quarterly!FB88-Quarterly!FB87)*100","v":27.33333333333352},5.3333333333336341,{"$f":"(Quarterly!FD88-Quarterly!FD87)*100","v":42.333333333333201},{"$f":"(Quarterly!FE88-Quarterly!FE87)*100","v":8.3333333333333037},{"$f":"(Quarterly!FF88-Quarterly!FF87)*100","v":47.666666666666657},{"$f":"(Quarterly!FG88-Quarterly!FG87)*100","v":45.000000000000014},{"$f":"(Quarterly!FH88-Quarterly!FH87)*100","v":35.33333333333335},{"$f":"(Quarterly!FI88-Quarterly!FI87)*100","v":31.00000000000005},-16.666666666666607,null,null,null,null,null,{"$f":"((Quarterly!FP88/Quarterly!FP87)^4)-1","v":5.1380482002596262E-2},"--","--","--",{"$f":"((Quarterly!FT88/Quarterly!FT87)^4)-1","v":-1.437020264451927E-2},{"$f":"((Quarterly!FU88/Quarterly!FU87)^4)-1","v":-4.1640360183677783E-2},"--","--","--",null,null,null,null,null,{"$f":"((Quarterly!GD88/Quarterly!GD87)^4)-1","v":0},"--","--","--",{"$f":"((Quarterly!GH89/Quarterly!GH88)^4)-1","v":{"$error":"#DIV/0!"}},"--","--","--","--"]
["78'Q3",{"$f":"((Quarterly!B89/Quarterly!B88)^4)-1","v":0.11099978590847015},{"$f":"((Quarterly!C89/Quarterly!C88)^4)-1","v":3.9694123994375774E-2},{"$f":"((Quarterly!D89/Quarterly!D88)^4)-1","v":3.7145952316785191E-2},{"$f":"((Quarterly!E89/Quarterly!E88)^4)-1","v":1.6858614673967987E-2},{"$f":"((Quarterly!F89/Quarterly!F88)^4)-1","v":-5.2909303483501646E-2},{"$f":"((Quarterly!G89/Quarterly!G88)^4)-1","v":3.1408659357073931E-2},{"$f":"((Quarterly!H89/Quarterly!H88)^4)-1","v":1.7829014472878546E-2},{"$f":"((Quarterly!I89/Quarterly!I88)^4)-1","v":0.14285592703555872},{"$f":"((Quarterly!J89/Quarterly!J88)^4)-1","v":0.17256617008235398},{"$f":"((Quarterly!K89/Quarterly!K88)^4)-1","v":5.7869510030391424E-2},{"$f":"((Quarterly!L89-Quarterly!L88))","v":0.90299999999999869},{"$f":"((Quarterly!M89/Quarterly!M88)^4)-1","v":5.327260813614787E-2},{"$f":"((Quarterly!N89/Quarterly!N88)^4)-1","v":4.4590504862265679E-2},{"$f":"((Quarterly!O89/Quarterly!O88)^4)-1","v":9.0177369034454058E-2},{"$f":"((Quarterly!P89/Quarterly!P88)^4)-1","v":3.2200413975099984E-2},{"$f":"((Quarterly!Q89/Quarterly!Q88)^4)-1","v":-0.34010413632801295},null,null,null,null,null,{"$f":"((Quarterly!W89/Quarterly!W88)^4)-1","v":4.7365222092696779E-3},{"$f":"((Quarterly!X89/Quarterly!X88)^4)-1","v":1.5597579412465201E-3},{"$f":"((Quarterly!Y89/Quarterly!Y88)^4)-1","v":0.15481663481829888},"--",{"$f":"((Quarterly!AA89/Quarterly!AA88)^4)-1","v":0.14464297885355504},{"$f":"((Quarterly!AB89/Quarterly!AB88)^4)-1","v":0.15708882768075316},"--","--","--","--","--","--","--","--","--","--",{"$f":"((Quarterly!AM89/Quarterly!AM88)^4)-1","v":3.5390312078332986E-2},{"$f":"((Quarterly!AN89/Quarterly!AN88)^4)-1","v":4.6744658864056765E-2},"--","--",{"$f":"Quarterly!AQ89-Quarterly!AQ88","v":1.5333333333333314},"--","--",{"$f":"Quarterly!AT89-Quarterly!AT88","v":1.1000000000000014},"--","--",{"$f":"Quarterly!AW89-Quarterly!AW88","v":2.1666666666666572},{"$f":"Quarterly!AX89-Quarterly!AX88","v":-0.13333333333332575},{"$f":"Quarterly!AY89-Quarterly!AY88","v":4.1333333333333258},{"$f":"Quarterly!AZ89-Quarterly!AZ88","v":3.5666666666666629},{"$f":"Quarterly!BA89-Quarterly!BA88","v":1.4666666666666686},"--","--","--","--",{"$f":"((Quarterly!BF89/Quarterly!BF88)^4)-1","v":6.2147819958554784E-2},{"$f":"((Quarterly!BG89/Quarterly!BG88)^4)-1","v":1.4481997043680472E-4},{"$f":"((Quarterly!BH89/Quarterly!BH88)^4)-1","v":-1.104833985362963E-2},{"$f":"((Quarterly!BI89/Quarterly!BI88)^4)-1","v":6.2080513293827355E-2},{"$f":"((Quarterly!BJ89/Quarterly!BJ88)^4)-1","v":7.2615768494060484E-2},"--",null,"--","--",null,null,null,null,null,{"$f":"((Quarterly!BT89/Quarterly!BT88)^4)-1","v":0.24407571353218427},"--","--",{"$f":"((Quarterly!BW89/Quarterly!BW88)^4)-1","v":9.9771548683616151E-2},{"$f":"((Quarterly!BX89/Quarterly!BX88)^4)-1","v":-0.16744654921748681},{"$f":"((Quarterly!BY89/Quarterly!BY88)^4)-1","v":-0.29081843482083336},"--",{"$f":"((Quarterly!CA89/Quarterly!CA88)^4)-1","v":-0.19450772345354339},{"$f":"((Quarterly!CB89/Quarterly!CB88)^4)-1","v":0.35556580819032768},{"$f":"((Quarterly!CC89/Quarterly!CC88)^4)-1","v":0.26777488445878417},"--","--",null,"--","--",null,{"$f":"((Quarterly!CJ89/Quarterly!CJ88)^4)-1","v":-0.27577299926111742},{"$f":"((Quarterly!CK89/Quarterly!CK88)^4)-1","v":0.12173674209386398},{"$f":"((Quarterly!CL89/Quarterly!CL88)^4)-1","v":0.21036510651987905},{"$f":"((Quarterly!CM89/Quarterly!CM88)^4)-1","v":-0.15366804711812354},{"$f":"((Quarterly!CN89/Quarterly!CN88)^4)-1","v":2.9092532024011186E-2},{"$f":"((Quarterly!CO89/Quarterly!CO88)^4)-1","v":-3.4551107292254635E-2},{"$f":"((Quarterly!CP89/Quarterly!CP88)^4)-1","v":0.20109589361616487},{"$f":"((Quarterly!CQ89/Quarterly!CQ88)^4)-1","v":1.1432751601875735E-2},{"$f":"((Quarterly!CR89/Quarterly!CR88)^4)-1","v":0.35312745955469382},{"$f":"Quarterly!CS89-Quarterly!CS88","v":-1.0999999999999943},"--",null,null,null,null,null,{"$f":"((Quarterly!CZ89/Quarterly!CZ88)^4)-1","v":9.6370389827257208E-2},{"$f":"((Quarterly!DA89/Quarterly!DA88)^4)-1","v":8.9355847520113052E-2},null,null,null,null,null,{"$f":"((Quarterly!DG89/Quarterly!DG88)^4)-1","v":4.7050870583608795E-2},{"$f":"((Quarterly!DH89-Quarterly!DH88)*60)","v":-4.2632564145606011E-13},{"$f":"Quarterly!DI89-Quarterly!DI88","v":0.10000000000000142},"--",{"$f":"(Quarterly!DK89-Quarterly!DK88)*100","v":3.3333333333334103},{"$f":"((Quarterly!DL89/Quarterly!DL88)^4)-1","v":3.4829222430086348E-2},null,null,null,{"$f":"((Quarterly!DP89/Quarterly!DP88)^4)-1","v":4.1950284821934192E-2},null,null,null,"--",{"$f":"Quarterly!DU89-Quarterly!DU88","v":-0.20000000000000018},"--","--","--","--","--","--","--","--",null,null,null,null,null,{"$f":"((Quarterly!EI89/Quarterly!EI88)^4)-1","v":6.1392793788449085E-2},{"$f":"((Quarterly!EJ89/Quarterly!EJ88)^4)-1","v":4.4471205378420642E-2},{"$f":"((Quarterly!EK89/Quarterly!EK88)^4)-1","v":3.7922126265321987E-2},null,null,null,null,null,{"$f":"((Quarterly!EQ89/Quarterly!EQ88)^4)-1","v":6.4828302350220524E-2},{"$f":"((Quarterly!ER89/Quarterly!ER88)^4)-1","v":0.10109038453398833},{"$f":"((Quarterly!ES89/Quarterly!ES88)^4)-1","v":9.194090581765102E-2},null,null,null,null,null,{"$f":"(Quarterly!EY89-Quarterly!EY88)*100","v":83.999999999999986},{"$f":"(Quarterly!EZ89-Quarterly!EZ88)*100","v":81.666666666666558},{"$f":"(Quarterly!FA89-Quarterly!FA88)*100","v":8.3333333333332149},{"$f":"(Quarterly!FB89-Quarterly!FB88)*100","v":2.9999999999999361},-5.3333333333332789,{"$f":"(Quarterly!FD89-Quarterly!FD88)*100","v":21.333333333333471},{"$f":"(Quarterly!FE89-Quarterly!FE88)*100","v":83.6666666666666},{"$f":"(Quarterly!FF89-Quarterly!FF88)*100","v":66.000000000000099},{"$f":"(Quarterly!FG89-Quarterly!FG88)*100","v":47.999999999999957},{"$f":"(Quarterly!FH89-Quarterly!FH88)*100","v":25.999999999999801},{"$f":"(Quarterly!FI89-Quarterly!FI88)*100","v":16.999999999999993},-49.000000000000107,null,null,null,null,null,{"$f":"((Quarterly!FP89/Quarterly!FP88)^4)-1","v":5.9594291828150014E-2},"--","--","--",{"$f":"((Quarterly!FT89/Quarterly!FT88)^4)-1","v":-0.13449528514776299},{"$f":"((Quarterly!FU89/Quarterly!FU88)^4)-1","v":-0.18038054642838608},"--","--","--",null,null,null,null,null,{"$f":"((Quarterly!GD89/Quarterly!GD88)^4)-1","v":0},"--","--","--",{"$f":"((Quarterly!GH90/Quarterly!GH89)^4)-1","v":{"$error":"#DIV/0!"}},"--","--","--","--"]
["78'Q4",{"$f":"((Quarterly!B90/Quarterly!B89)^4)-1","v":0.14628981744494873},{"$f":"((Quarterly!C90/Quarterly!C89)^4)-1","v":5.4738108894574866E-2},{"$f":"((Quarterly!D90/Quarterly!D89)^4)-1","v":5.3229215034450883E-2},{"$f":"((Quarterly!E90/Quarterly!E89)^4)-1","v":3.2431061978642761E-2},{"$f":"((Quarterly!F90/Quarterly!F89)^4)-1","v":3.2100585460980158E-2},{"$f":"((Quarterly!G90/Quarterly!G89)^4)-1","v":5.2590900849777578E-2},{"$f":"((Quarterly!H90/Quarterly!H89)^4)-1","v":2.4134793183192338E-2},{"$f":"((Quarterly!I90/Quarterly!I89)^4)-1","v":0.13569572459066048},{"$f":"((Quarterly!J90/Quarterly!J89)^4)-1","v":0.15134978523829323},{"$f":"((Quarterly!K90/Quarterly!K89)^4)-1","v":-1.1507911891969425E-2},{"$f":"((Quarterly!L90-Quarterly!L89))","v":9.0930000000000035},{"$f":"((Quarterly!M90/Quarterly!M89)^4)-1","v":5.600173731446989E-2},{"$f":"((Quarterly!N90/Quarterly!N89)^4)-1","v":0.16851991398749955},{"$f":"((Quarterly!O90/Quarterly!O89)^4)-1","v":-0.3257240164303723},{"$f":"((Quarterly!P90/Quarterly!P89)^4)-1","v":3.6670628467334154E-2},{"$f":"((Quarterly!Q90/Quarterly!Q89)^4)-1","v":-0.26407244660751217},null,null,null,null,null,{"$f":"((Quarterly!W90/Quarterly!W89)^4)-1","v":5.2968817121681999E-2},{"$f":"((Quarterly!X90/Quarterly!X89)^4)-1","v":4.1133911440056847E-2},{"$f":"((Quarterly!Y90/Quarterly!Y89)^4)-1","v":0.12760691487331499},"--",{"$f":"((Quarterly!AA90/Quarterly!AA89)^4)-1","v":0.26479130613262947},{"$f":"((Quarterly!AB90/Quarterly!AB89)^4)-1","v":0.17978336512124882},"--","--","--","--","--","--","--","--","--","--",{"$f":"((Quarterly!AM90/Quarterly!AM89)^4)-1","v":7.397879705385213E-2},{"$f":"((Quarterly!AN90/Quarterly!AN89)^4)-1","v":8.9696997609361784E-2},"--","--",{"$f":"Quarterly!AQ90-Quarterly!AQ89","v":-0.73333333333332718},"--","--",{"$f":"Quarterly!AT90-Quarterly!AT89","v":1.2999999999999972},"--","--",{"$f":"Quarterly!AW90-Quarterly!AW89","v":-0.29999999999999716},{"$f":"Quarterly!AX90-Quarterly!AX89","v":-2.2333333333333414},{"$f":"Quarterly!AY90-Quarterly!AY89","v":6.6666666666662877E-2},{"$f":"Quarterly!AZ90-Quarterly!AZ89","v":-3.7666666666666728},{"$f":"Quarterly!BA90-Quarterly!BA89","v":4.2333333333333343},"--","--","--","--",{"$f":"((Quarterly!BF90/Quarterly!BF89)^4)-1","v":9.7303667477899092E-2},{"$f":"((Quarterly!BG90/Quarterly!BG89)^4)-1","v":2.5509249787941668E-2},{"$f":"((Quarterly!BH90/Quarterly!BH89)^4)-1","v":1.5267425578010752E-2},{"$f":"((Quarterly!BI90/Quarterly!BI89)^4)-1","v":7.0061401277630386E-2},{"$f":"((Quarterly!BJ90/Quarterly!BJ89)^4)-1","v":0.20861684863194174},"--",null,"--","--",null,null,null,null,null,{"$f":"((Quarterly!BT90/Quarterly!BT89)^4)-1","v":0.16307145195284778},"--","--",{"$f":"((Quarterly!BW90/Quarterly!BW89)^4)-1","v":5.8082255678737482E-2},{"$f":"((Quarterly!BX90/Quarterly!BX89)^4)-1","v":4.0889761718549744E-2},{"$f":"((Quarterly!BY90/Quarterly!BY89)^4)-1","v":0.13318665874271729},"--",{"$f":"((Quarterly!CA90/Quarterly!CA89)^4)-1","v":2.5871769240138009E-2},{"$f":"((Quarterly!CB90/Quarterly!CB89)^4)-1","v":0.23881286325002415},{"$f":"((Quarterly!CC90/Quarterly!CC89)^4)-1","v":0.15724415838365013},"--","--",null,"--","--",null,{"$f":"((Quarterly!CJ90/Quarterly!CJ89)^4)-1","v":0.21580096283392436},{"$f":"((Quarterly!CK90/Quarterly!CK89)^4)-1","v":0.12260673928054944},{"$f":"((Quarterly!CL90/Quarterly!CL89)^4)-1","v":9.9532247888027836E-2},{"$f":"((Quarterly!CM90/Quarterly!CM89)^4)-1","v":9.2940721698042239E-2},{"$f":"((Quarterly!CN90/Quarterly!CN89)^4)-1","v":3.1920306762153627E-2},{"$f":"((Quarterly!CO90/Quarterly!CO89)^4)-1","v":-5.1803002484889005E-2},{"$f":"((Quarterly!CP90/Quarterly!CP89)^4)-1","v":0.14309439113156919},{"$f":"((Quarterly!CQ90/Quarterly!CQ89)^4)-1","v":1.1870991769198369E-2},{"$f":"((Quarterly!CR90/Quarterly!CR89)^4)-1","v":0.26239313257608465},{"$f":"Quarterly!CS90-Quarterly!CS89","v":-6.9333333333333371},"--",null,null,null,null,null,{"$f":"((Quarterly!CZ90/Quarterly!CZ89)^4)-1","v":9.6268495042428182E-2},{"$f":"((Quarterly!DA90/Quarterly!DA89)^4)-1","v":9.1704577683392463E-2},null,null,null,null,null,{"$f":"((Quarterly!DG90/Quarterly!DG89)^4)-1","v":3.6684601885069057E-2},{"$f":"((Quarterly!DH90-Quarterly!DH89)*60)","v":-5.9999999999996589},{"$f":"Quarterly!DI90-Quarterly!DI89","v":0.23333333333334139},"--",{"$f":"(Quarterly!DK90-Quarterly!DK89)*100","v":-13.333333333333464},{"$f":"((Quarterly!DL90/Quarterly!DL89)^4)-1","v":5.0594991661458089E-2},null,null,null,{"$f":"((Quarterly!DP90/Quarterly!DP89)^4)-1","v":4.2033869319738848E-2},null,null,null,"--",{"$f":"Quarterly!DU90-Quarterly!DU89","v":-6.666666666666643E-2},"--","--","--","--","--","--","--","--",null,null,null,null,null,{"$f":"((Quarterly!EI90/Quarterly!EI89)^4)-1","v":6.75224419999505E-2},{"$f":"((Quarterly!EJ90/Quarterly!EJ89)^4)-1","v":5.3548178475520292E-2},{"$f":"((Quarterly!EK90/Quarterly!EK89)^4)-1","v":4.8028283002273575E-2},null,null,null,null,null,{"$f":"((Quarterly!EQ90/Quarterly!EQ89)^4)-1","v":9.3780020468316794E-2},{"$f":"((Quarterly!ER90/Quarterly!ER89)^4)-1","v":6.7518937331585871E-2},{"$f":"((Quarterly!ES90/Quarterly!ES89)^4)-1","v":8.003771430784612E-2},null,null,null,null,null,{"$f":"(Quarterly!EY90-Quarterly!EY89)*100","v":167.00000000000017},{"$f":"(Quarterly!EZ90-Quarterly!EZ89)*100","v":148.33333333333343},{"$f":"(Quarterly!FA90-Quarterly!FA89)*100","v":27.33333333333352},{"$f":"(Quarterly!FB90-Quarterly!FB89)*100","v":28.666666666666707},1.3333333333331865,{"$f":"(Quarterly!FD90-Quarterly!FD89)*100","v":34.333333333333371},{"$f":"(Quarterly!FE90-Quarterly!FE89)*100","v":125.66666666666677},{"$f":"(Quarterly!FF90-Quarterly!FF89)*100","v":136.99999999999991},{"$f":"(Quarterly!FG90-Quarterly!FG89)*100","v":85.333333333333343},{"$f":"(Quarterly!FH90-Quarterly!FH89)*100","v":41.000000000000192},{"$f":"(Quarterly!FI90-Quarterly!FI89)*100","v":33.000000000000007},-103.99999999999991,null,null,null,null,null,{"$f":"((Quarterly!FP90/Quarterly!FP89)^4)-1","v":0.12723962393799515},"--","--","--",{"$f":"((Quarterly!FT90/Quarterly!FT89)^4)-1","v":-2.1168134420200158E-2},{"$f":"((Quarterly!FU90/Quarterly!FU89)^4)-1","v":-4.9234070110675154E-2},"--","--","--",null,null,null,null,null,{"$f":"((Quarterly!GD90/Quarterly!GD89)^4)-1","v":0},"--","--","--",{"$f":"((Quarterly!GH91/Quarterly!GH90)^4)-1","v":{"$error":"#DIV/0!"}},"--","--","--","--"]
["79'Q1",{"$f":"((Quarterly!B91/Quarterly!B90)^4)-1","v":8.2009510230960148E-2},{"$f":"((Quarterly!C91/Quarterly!C90)^4)-1","v":7.9710233075418468E-3},{"$f":"((Quarterly!D91/Quarterly!D90)^4)-1","v":1.3803150183021584E-2},{"$f":"((Quarterly!E91/Quarterly!E90)^4)-1","v":2.0439411295863241E-2},{"$f":"((Quarterly!F91/Quarterly!F90)^4)-1","v":-4.6614369509124787E-2},{"$f":"((Quarterly!G91/Quarterly!G90)^4)-1","v":1.7779645880298345E-2},{"$f":"((Quarterly!H91/Quarterly!H90)^4)-1","v":2.8183937768198719E-2},{"$f":"((Quarterly!I91/Quarterly!I90)^4)-1","v":9.5305015035401563E-2},{"$f":"((Quarterly!J91/Quarterly!J90)^4)-1","v":8.0893557578174846E-2},{"$f":"((Quarterly!K91/Quarterly!K90)^4)-1","v":-8.8655468958770411E-2},{"$f":"((Quarterly!L91-Quarterly!L90))","v":-13.884},{"$f":"((Quarterly!M91/Quarterly!M90)^4)-1","v":-1.0910410406951065E-2},{"$f":"((Quarterly!N91/Quarterly!N90)^4)-1","v":3.2921833233265918E-3},{"$f":"((Quarterly!O91/Quarterly!O90)^4)-1","v":-7.6302560519694529E-2},{"$f":"((Quarterly!P91/Quarterly!P90)^4)-1","v":-3.4175753970064449E-2},{"$f":"((Quarterly!Q91/Quarterly!Q90)^4)-1","v":-0.57856872525106895},null,null,null,null,null,{"$f":"((Quarterly!W91/Quarterly!W90)^4)-1","v":-2.3107054816028816E-2},{"$f":"((Quarterly!X91/Quarterly!X90)^4)-1","v":-1.5337139271761946E-2},{"$f":"((Quarterly!Y91/Quarterly!Y90)^4)-1","v":0.15285579776084623},"--",{"$f":"((Quarterly!AA91/Quarterly!AA90)^4)-1","v":4.7050515112173397E-2},{"$f":"((Quarterly!AB91/Quarterly!AB90)^4)-1","v":-0.1354365258592507},"--","--","--","--","--","--","--","--","--","--",{"$f":"((Quarterly!AM91/Quarterly!AM90)^4)-1","v":1.7202596482975396E-2},{"$f":"((Quarterly!AN91/Quarterly!AN90)^4)-1","v":1.5121694075469927E-2},"--","--",{"$f":"Quarterly!AQ91-Quarterly!AQ90","v":-2.13333333333334},"--","--",{"$f":"Quarterly!AT91-Quarterly!AT90","v":-2.5},"--","--",{"$f":"Quarterly!AW91-Quarterly!AW90","v":-2.9666666666666757},{"$f":"Quarterly!AX91-Quarterly!AX90","v":-2.6666666666666572},{"$f":"Quarterly!AY91-Quarterly!AY90","v":1.5333333333333456},{"$f":"Quarterly!AZ91-Quarterly!AZ90","v":-2.8333333333333286},{"$f":"Quarterly!BA91-Quarterly!BA90","v":1.4666666666666686},"--","--","--","--",{"$f":"((Quarterly!BF91/Quarterly!BF90)^4)-1","v":0.12548605505498345},{"$f":"((Quarterly!BG91/Quarterly!BG90)^4)-1","v":-3.5211919949546533E-2},{"$f":"((Quarterly!BH91/Quarterly!BH90)^4)-1","v":2.7746442008861338E-2},{"$f":"((Quarterly!BI91/Quarterly!BI90)^4)-1","v":0.1664883913053663},{"$f":"((Quarterly!BJ91/Quarterly!BJ90)^4)-1","v":7.3786621087065241E-2},"--",null,"--","--",null,null,null,null,null,{"$f":"((Quarterly!BT91/Quarterly!BT90)^4)-1","v":7.953800021813584E-2},"--","--",{"$f":"((Quarterly!BW91/Quarterly!BW90)^4)-1","v":7.3893749710134404E-2},{"$f":"((Quarterly!BX91/Quarterly!BX90)^4)-1","v":-0.55525038072235933},{"$f":"((Quarterly!BY91/Quarterly!BY90)^4)-1","v":-0.43670051311848301},"--",{"$f":"((Quarterly!CA91/Quarterly!CA90)^4)-1","v":-7.9220095497082754E-2},{"$f":"((Quarterly!CB91/Quarterly!CB90)^4)-1","v":0.23976187520147674},{"$f":"((Quarterly!CC91/Quarterly!CC90)^4)-1","v":0.17863226411079736},"--","--",null,"--","--",null,{"$f":"((Quarterly!CJ91/Quarterly!CJ90)^4)-1","v":-0.29237589973333356},{"$f":"((Quarterly!CK91/Quarterly!CK90)^4)-1","v":0.12172928830814089},{"$f":"((Quarterly!CL91/Quarterly!CL90)^4)-1","v":0.36786679633547892},{"$f":"((Quarterly!CM91/Quarterly!CM90)^4)-1","v":-0.5956248989827444},{"$f":"((Quarterly!CN91/Quarterly!CN90)^4)-1","v":4.3149034367046202E-2},{"$f":"((Quarterly!CO91/Quarterly!CO90)^4)-1","v":-0.15796815366995143},{"$f":"((Quarterly!CP91/Quarterly!CP90)^4)-1","v":0.15348095696482122},{"$f":"((Quarterly!CQ91/Quarterly!CQ90)^4)-1","v":1.0392004602158833E-2},{"$f":"((Quarterly!CR91/Quarterly!CR90)^4)-1","v":7.8808647505401952E-2},{"$f":"Quarterly!CS91-Quarterly!CS90","v":-2},"--",null,null,null,null,null,{"$f":"((Quarterly!CZ91/Quarterly!CZ90)^4)-1","v":0.10461080358828179},{"$f":"((Quarterly!DA91/Quarterly!DA90)^4)-1","v":9.597488357262085E-2},null,null,null,null,null,{"$f":"((Quarterly!DG91/Quarterly!DG90)^4)-1","v":3.6351252581028115E-2},{"$f":"((Quarterly!DH91-Quarterly!DH90)*60)","v":-1.9999999999998863},{"$f":"Quarterly!DI91-Quarterly!DI90","v":0.26666666666665861},"--",{"$f":"(Quarterly!DK91-Quarterly!DK90)*100","v":-3.3333333333332327},{"$f":"((Quarterly!DL91/Quarterly!DL90)^4)-1","v":3.6304101154170709E-2},null,null,null,{"$f":"((Quarterly!DP91/Quarterly!DP90)^4)-1","v":3.5571948959346456E-2},null,null,null,"--",{"$f":"Quarterly!DU91-Quarterly!DU90","v":0.23333333333333428},"--","--","--","--","--","--","--","--",null,null,null,null,null,{"$f":"((Quarterly!EI91/Quarterly!EI90)^4)-1","v":-1.0962875383089377E-2},{"$f":"((Quarterly!EJ91/Quarterly!EJ90)^4)-1","v":5.3165383277140599E-3},{"$f":"((Quarterly!EK91/Quarterly!EK90)^4)-1","v":1.3849030271269935E-2},null,null,null,null,null,{"$f":"((Quarterly!EQ91/Quarterly!EQ90)^4)-1","v":0.15406846005222286},{"$f":"((Quarterly!ER91/Quarterly!ER90)^4)-1","v":0.10081113133447883},{"$f":"((Quarterly!ES91/Quarterly!ES90)^4)-1","v":9.5866518248429511E-2},null,null,null,null,null,{"$f":"(Quarterly!EY91-Quarterly!EY90)*100","v":93.999999999999943},{"$f":"(Quarterly!EZ91-Quarterly!EZ90)*100","v":49.000000000000021},{"$f":"(Quarterly!FA91-Quarterly!FA90)*100","v":26.666666666666394},{"$f":"(Quarterly!FB91-Quarterly!FB90)*100","v":36.999999999999922},10.333333333333528,{"$f":"(Quarterly!FD91-Quarterly!FD90)*100","v":30.333333333333279},{"$f":"(Quarterly!FE91-Quarterly!FE90)*100","v":81.333333333333428},{"$f":"(Quarterly!FF91-Quarterly!FF90)*100","v":48.33333333333325},{"$f":"(Quarterly!FG91-Quarterly!FG90)*100","v":45.999999999999908},{"$f":"(Quarterly!FH91-Quarterly!FH90)*100","v":33.333333333333215},{"$f":"(Quarterly!FI91-Quarterly!FI90)*100","v":28.666666666666707},-19.666666666666544,null,null,null,null,null,{"$f":"((Quarterly!FP91/Quarterly!FP90)^4)-1","v":2.7083022132786461E-2},"--","--","--",{"$f":"((Quarterly!FT91/Quarterly!FT90)^4)-1","v":6.4456281508482371E-2},{"$f":"((Quarterly!FU91/Quarterly!FU90)^4)-1","v":5.4119340120897919E-2},"--","--","--",null,null,null,null,null,{"$f":"((Quarterly!GD91/Quarterly!GD90)^4)-1","v":0.19203198248264486},"--","--","--",{"$f":"((Quarterly!GH92/Quarterly!GH91)^4)-1","v":{"$error":"#DIV/0!"}},"--","--","--","--"]
["79'Q2",{"$f":"((Quarterly!B92/Quarterly!B91)^4)-1","v":0.10562636820853677},{"$f":"((Quarterly!C92/Quarterly!C91)^4)-1","v":4.8512983476054483E-3},{"$f":"((Quarterly!D92/Quarterly!D91)^4)-1","v":1.0059516451514927E-3},{"$f":"((Quarterly!E92/Quarterly!E91)^4)-1","v":-2.4076431788925268E-3},{"$f":"((Quarterly!F92/Quarterly!F91)^4)-1","v":-8.7411952860709019E-2},{"$f":"((Quarterly!G92/Quarterly!G91)^4)-1","v":-7.7054267419597311E-3},{"$f":"((Quarterly!H92/Quarterly!H91)^4)-1","v":8.1381776908411307E-3},{"$f":"((Quarterly!I92/Quarterly!I91)^4)-1","v":-3.848543843071428E-3},{"$f":"((Quarterly!J92/Quarterly!J91)^4)-1","v":-8.90399446745197E-2},{"$f":"((Quarterly!K92/Quarterly!K91)^4)-1","v":-7.1175963879423043E-2},{"$f":"((Quarterly!L92-Quarterly!L91))","v":5.6869999999999976},{"$f":"((Quarterly!M92/Quarterly!M91)^4)-1","v":2.1782046493769469E-2},{"$f":"((Quarterly!N92/Quarterly!N91)^4)-1","v":1.0581967152236027E-2},{"$f":"((Quarterly!O92/Quarterly!O91)^4)-1","v":7.7399584008029265E-2},{"$f":"((Quarterly!P92/Quarterly!P91)^4)-1","v":4.167750496775624E-2},{"$f":"((Quarterly!Q92/Quarterly!Q91)^4)-1","v":-3.7332044543912368E-2},null,null,null,null,null,{"$f":"((Quarterly!W92/Quarterly!W91)^4)-1","v":-4.1540730674929027E-2},{"$f":"((Quarterly!X92/Quarterly!X91)^4)-1","v":-3.665129290041591E-2},{"$f":"((Quarterly!Y92/Quarterly!Y91)^4)-1","v":0.26611998557364402},"--",{"$f":"((Quarterly!AA92/Quarterly!AA91)^4)-1","v":0.16095274984204733},{"$f":"((Quarterly!AB92/Quarterly!AB91)^4)-1","v":4.1383100662532035E-2},"--","--","--","--","--","--","--","--","--","--",{"$f":"((Quarterly!AM92/Quarterly!AM91)^4)-1","v":-7.9593143510479081E-3},{"$f":"((Quarterly!AN92/Quarterly!AN91)^4)-1","v":-1.0907052321813215E-2},"--","--",{"$f":"Quarterly!AQ92-Quarterly!AQ91","v":-3.6999999999999957},"--","--",{"$f":"Quarterly!AT92-Quarterly!AT91","v":-4.1666666666666714},"--","--",{"$f":"Quarterly!AW92-Quarterly!AW91","v":6.6666666666669983E-2},{"$f":"Quarterly!AX92-Quarterly!AX91","v":-5.3333333333333428},{"$f":"Quarterly!AY92-Quarterly!AY91","v":0.63333333333332575},{"$f":"Quarterly!AZ92-Quarterly!AZ91","v":-5.7999999999999972},{"$f":"Quarterly!BA92-Quarterly!BA91","v":1.2000000000000028},"--","--","--","--",{"$f":"((Quarterly!BF92/Quarterly!BF91)^4)-1","v":9.1139413913994494E-2},{"$f":"((Quarterly!BG92/Quarterly!BG91)^4)-1","v":-1.0989105357989581E-2},{"$f":"((Quarterly!BH92/Quarterly!BH91)^4)-1","v":-1.9218174286184664E-2},{"$f":"((Quarterly!BI92/Quarterly!BI91)^4)-1","v":0.10316708254662688},{"$f":"((Quarterly!BJ92/Quarterly!BJ91)^4)-1","v":6.7699196805276918E-2},"--",null,"--","--",null,null,null,null,null,{"$f":"((Quarterly!BT92/Quarterly!BT91)^4)-1","v":0.20047935454344623},"--","--",{"$f":"((Quarterly!BW92/Quarterly!BW91)^4)-1","v":3.2242020951844808E-2},{"$f":"((Quarterly!BX92/Quarterly!BX91)^4)-1","v":0.50751171678152018},{"$f":"((Quarterly!BY92/Quarterly!BY91)^4)-1","v":0.22978824086231486},"--",{"$f":"((Quarterly!CA92/Quarterly!CA91)^4)-1","v":-0.29355663587629544},{"$f":"((Quarterly!CB92/Quarterly!CB91)^4)-1","v":0.22227653585284757},{"$f":"((Quarterly!CC92/Quarterly!CC91)^4)-1","v":0.14688367712900252},"--","--",null,"--","--",null,{"$f":"((Quarterly!CJ92/Quarterly!CJ91)^4)-1","v":-0.15718236065071955},{"$f":"((Quarterly!CK92/Quarterly!CK91)^4)-1","v":8.3593267731440823E-2},{"$f":"((Quarterly!CL92/Quarterly!CL91)^4)-1","v":-0.19117812617042262},{"$f":"((Quarterly!CM92/Quarterly!CM91)^4)-1","v":0.53820534823669219},{"$f":"((Quarterly!CN92/Quarterly!CN91)^4)-1","v":-3.3940700611339358E-2},{"$f":"((Quarterly!CO92/Quarterly!CO91)^4)-1","v":-8.6058444808396528E-2},{"$f":"((Quarterly!CP92/Quarterly!CP91)^4)-1","v":0.15104161189113308},{"$f":"((Quarterly!CQ92/Quarterly!CQ91)^4)-1","v":1.0515015401577399E-2},{"$f":"((Quarterly!CR92/Quarterly!CR91)^4)-1","v":0.23793285369632744},{"$f":"Quarterly!CS92-Quarterly!CS91","v":-4.8333333333333428},"--",null,null,null,null,null,{"$f":"((Quarterly!CZ92/Quarterly!CZ91)^4)-1","v":0.13336153547569429},{"$f":"((Quarterly!DA92/Quarterly!DA91)^4)-1","v":9.7856671715009336E-2},null,null,null,null,null,{"$f":"((Quarterly!DG92/Quarterly!DG91)^4)-1","v":5.6245467189157683E-3},{"$f":"((Quarterly!DH92-Quarterly!DH91)*60)","v":-12.000000000000171},{"$f":"Quarterly!DI92-Quarterly!DI91","v":-0.29999999999999005},"--",{"$f":"(Quarterly!DK92-Quarterly!DK91)*100","v":-16.666666666666785},{"$f":"((Quarterly!DL92/Quarterly!DL91)^4)-1","v":1.8113164844884233E-2},null,null,null,{"$f":"((Quarterly!DP92/Quarterly!DP91)^4)-1","v":2.9863712525207031E-2},null,null,null,"--",{"$f":"Quarterly!DU92-Quarterly!DU91","v":-0.36666666666666714},"--","--","--","--","--","--","--","--",null,null,null,null,null,{"$f":"((Quarterly!EI92/Quarterly!EI91)^4)-1","v":-1.5239546078541721E-2},{"$f":"((Quarterly!EJ92/Quarterly!EJ91)^4)-1","v":-6.8031842088416283E-3},{"$f":"((Quarterly!EK92/Quarterly!EK91)^4)-1","v":1.6986452830278775E-3},null,null,null,null,null,{"$f":"((Quarterly!EQ92/Quarterly!EQ91)^4)-1","v":0.14836279464419633},{"$f":"((Quarterly!ER92/Quarterly!ER91)^4)-1","v":8.7064877099654936E-2},{"$f":"((Quarterly!ES92/Quarterly!ES91)^4)-1","v":9.3624099815561745E-2},null,null,null,null,null,{"$f":"(Quarterly!EY92-Quarterly!EY91)*100","v":-3.3333333333333215},{"$f":"(Quarterly!EZ92-Quarterly!EZ91)*100","v":10.666666666666558},{"$f":"(Quarterly!FA92-Quarterly!FA91)*100","v":9.6666666666669343},{"$f":"(Quarterly!FB92-Quarterly!FB91)*100","v":23.666666666666636},13.999999999999702,{"$f":"(Quarterly!FD92-Quarterly!FD91)*100","v":33.333333333333215},{"$f":"(Quarterly!FE92-Quarterly!FE91)*100","v":-0.66666666666677088},{"$f":"(Quarterly!FF92-Quarterly!FF91)*100","v":-36.333333333333329},{"$f":"(Quarterly!FG92-Quarterly!FG91)*100","v":-19.666666666666544},{"$f":"(Quarterly!FH92-Quarterly!FH91)*100","v":-6.3333333333330799},{"$f":"(Quarterly!FI92-Quarterly!FI91)*100","v":0.66666666666659324},36.999999999999922,null,null,null,null,null,{"$f":"((Quarterly!FP92/Quarterly!FP91)^4)-1","v":-9.2154216150585722E-2},"--","--","--",{"$f":"((Quarterly!FT92/Quarterly!FT91)^4)-1","v":7.7401692801410071E-2},{"$f":"((Quarterly!FU92/Quarterly!FU91)^4)-1","v":6.249363595749946E-2},"--","--","--",null,null,null,null,null,{"$f":"((Quarterly!GD92/Quarterly!GD91)^4)-1","v":0.68679696790786249},"--","--","--",{"$f":"((Quarterly!GH93/Quarterly!GH92)^4)-1","v":{"$error":"#DIV/0!"}},"--","--","--","--"]
["79'Q3",{"$f":"((Quarterly!B93/Quarterly!B92)^4)-1","v":0.11979781157720759},{"$f":"((Quarterly!C93/Quarterly!C92)^4)-1","v":2.9032590924713109E-2},{"$f":"((Quarterly!D93/Quarterly!D92)^4)-1","v":5.8402862379886011E-2},{"$f":"((Quarterly!E93/Quarterly!E92)^4)-1","v":3.9969614092356442E-2},{"$f":"((Quarterly!F93/Quarterly!F92)^4)-1","v":0.11636180559828024},{"$f":"((Quarterly!G93/Quarterly!G92)^4)-1","v":4.7681141276303407E-2},{"$f":"((Quarterly!H93/Quarterly!H92)^4)-1","v":2.9959498050702527E-2},{"$f":"((Quarterly!I93/Quarterly!I92)^4)-1","v":0.12345327762698366},{"$f":"((Quarterly!J93/Quarterly!J92)^4)-1","v":0.11884346667268475},{"$f":"((Quarterly!K93/Quarterly!K92)^4)-1","v":-4.5525738221096401E-2},{"$f":"((Quarterly!L93-Quarterly!L92))","v":-30.930999999999997},{"$f":"((Quarterly!M93/Quarterly!M92)^4)-1","v":-5.962504892827003E-2},{"$f":"((Quarterly!N93/Quarterly!N92)^4)-1","v":0.1519870592155963},{"$f":"((Quarterly!O93/Quarterly!O92)^4)-1","v":-0.69976719005942289},{"$f":"((Quarterly!P93/Quarterly!P92)^4)-1","v":5.4159676116254385E-3},{"$f":"((Quarterly!Q93/Quarterly!Q92)^4)-1","v":0.70634717960790105},null,null,null,null,null,{"$f":"((Quarterly!W93/Quarterly!W92)^4)-1","v":-4.1976603408731772E-2},{"$f":"((Quarterly!X93/Quarterly!X92)^4)-1","v":-3.6990190209946872E-2},{"$f":"((Quarterly!Y93/Quarterly!Y92)^4)-1","v":0.20425674962802276},"--",{"$f":"((Quarterly!AA93/Quarterly!AA92)^4)-1","v":8.0859426935454337E-2},{"$f":"((Quarterly!AB93/Quarterly!AB92)^4)-1","v":-4.2047145277903653E-2},"--","--","--","--","--","--","--","--","--","--",{"$f":"((Quarterly!AM93/Quarterly!AM92)^4)-1","v":-1.212909749105584E-2},{"$f":"((Quarterly!AN93/Quarterly!AN92)^4)-1","v":-9.9868076649674009E-3},"--","--",{"$f":"Quarterly!AQ93-Quarterly!AQ92","v":-4.3000000000000043},"--","--",{"$f":"Quarterly!AT93-Quarterly!AT92","v":-1.3999999999999915},"--","--",{"$f":"Quarterly!AW93-Quarterly!AW92","v":-0.1666666666666643},{"$f":"Quarterly!AX93-Quarterly!AX92","v":-3.7333333333333343},{"$f":"Quarterly!AY93-Quarterly!AY92","v":0.59999999999999432},{"$f":"Quarterly!AZ93-Quarterly!AZ92","v":-3.7000000000000028},{"$f":"Quarterly!BA93-Quarterly!BA92","v":-13.233333333333341},"--","--","--","--",{"$f":"((Quarterly!BF93/Quarterly!BF92)^4)-1","v":9.5939761698298653E-2},{"$f":"((Quarterly!BG93/Quarterly!BG92)^4)-1","v":-4.2881351171607518E-3},{"$f":"((Quarterly!BH93/Quarterly!BH92)^4)-1","v":-1.3229052356357518E-2},{"$f":"((Quarterly!BI93/Quarterly!BI92)^4)-1","v":0.10066482730369919},{"$f":"((Quarterly!BJ93/Quarterly!BJ92)^4)-1","v":-1.2473487914176018E-2},"--",null,"--","--",null,null,null,null,null,{"$f":"((Quarterly!BT93/Quarterly!BT92)^4)-1","v":0.14781436892660715},"--","--",{"$f":"((Quarterly!BW93/Quarterly!BW92)^4)-1","v":9.8853854934116026E-2},{"$f":"((Quarterly!BX93/Quarterly!BX92)^4)-1","v":-0.11529384493262895},{"$f":"((Quarterly!BY93/Quarterly!BY92)^4)-1","v":-0.12237524276486134},"--",{"$f":"((Quarterly!CA93/Quarterly!CA92)^4)-1","v":0.10542249353515731},{"$f":"((Quarterly!CB93/Quarterly!CB92)^4)-1","v":0.30596649100281526},{"$f":"((Quarterly!CC93/Quarterly!CC92)^4)-1","v":0.26844412115487937},"--","--",null,"--","--",null,{"$f":"((Quarterly!CJ93/Quarterly!CJ92)^4)-1","v":-7.3360534066927441E-3},{"$f":"((Quarterly!CK93/Quarterly!CK92)^4)-1","v":0.13475954816226121},{"$f":"((Quarterly!CL93/Quarterly!CL92)^4)-1","v":-7.1881656524555249E-2},{"$f":"((Quarterly!CM93/Quarterly!CM92)^4)-1","v":-0.25641581199663588},{"$f":"((Quarterly!CN93/Quarterly!CN92)^4)-1","v":1.9077835039392754E-2},{"$f":"((Quarterly!CO93/Quarterly!CO92)^4)-1","v":-1.5658679833845279E-2},{"$f":"((Quarterly!CP93/Quarterly!CP92)^4)-1","v":0.1422064521511921},{"$f":"((Quarterly!CQ93/Quarterly!CQ92)^4)-1","v":1.182810572178461E-2},{"$f":"((Quarterly!CR93/Quarterly!CR92)^4)-1","v":0.24433629034569804},{"$f":"Quarterly!CS93-Quarterly!CS92","v":-2.7666666666666515},"--",null,null,null,null,null,{"$f":"((Quarterly!CZ93/Quarterly!CZ92)^4)-1","v":0.13521234256918535},{"$f":"((Quarterly!DA93/Quarterly!DA92)^4)-1","v":0.1076712187726554},null,null,null,null,null,{"$f":"((Quarterly!DG93/Quarterly!DG92)^4)-1","v":2.6413673251342917E-2},{"$f":"((Quarterly!DH93-Quarterly!DH92)*60)","v":6.0000000000000853},{"$f":"Quarterly!DI93-Quarterly!DI92","v":0.23333333333332718},"--",{"$f":"(Quarterly!DK93-Quarterly!DK92)*100","v":16.666666666666785},{"$f":"((Quarterly!DL93/Quarterly!DL92)^4)-1","v":-9.0611987761816115E-3},null,null,null,{"$f":"((Quarterly!DP93/Quarterly!DP92)^4)-1","v":2.2752278319430719E-2},null,null,null,"--",{"$f":"Quarterly!DU93-Quarterly!DU92","v":-0.13333333333333464},"--","--","--","--","--","--","--","--",null,null,null,null,null,{"$f":"((Quarterly!EI93/Quarterly!EI92)^4)-1","v":2.6382141095243394E-2},{"$f":"((Quarterly!EJ93/Quarterly!EJ92)^4)-1","v":3.3066794049940729E-2},{"$f":"((Quarterly!EK93/Quarterly!EK92)^4)-1","v":3.0259708821469555E-2},null,null,null,null,null,{"$f":"((Quarterly!EQ93/Quarterly!EQ92)^4)-1","v":0.13169042456901847},{"$f":"((Quarterly!ER93/Quarterly!ER92)^4)-1","v":8.1555696757462437E-2},{"$f":"((Quarterly!ES93/Quarterly!ES92)^4)-1","v":6.759230664584881E-2},null,null,null,null,null,{"$f":"(Quarterly!EY93-Quarterly!EY92)*100","v":40.000000000000036},{"$f":"(Quarterly!EZ93-Quarterly!EZ92)*100","v":76.666666666666742},{"$f":"(Quarterly!FA93-Quarterly!FA92)*100","v":-10.000000000000142},{"$f":"(Quarterly!FB93-Quarterly!FB92)*100","v":0},10.000000000000142,{"$f":"(Quarterly!FD93-Quarterly!FD92)*100","v":41.666666666666963},{"$f":"(Quarterly!FE93-Quarterly!FE92)*100","v":29.666666666666508},{"$f":"(Quarterly!FF93-Quarterly!FF92)*100","v":21.666666666666856},{"$f":"(Quarterly!FG93-Quarterly!FG92)*100","v":-3.9999999999999147},{"$f":"(Quarterly!FH93-Quarterly!FH92)*100","v":0.99999999999980105},{"$f":"(Quarterly!FI93-Quarterly!FI92)*100","v":-1.0000000000001563},-22.666666666667012,null,null,null,null,null,{"$f":"((Quarterly!FP93/Quarterly!FP92)^4)-1","v":2.9564695382808148E-2},"--","--","--",{"$f":"((Quarterly!FT93/Quarterly!FT92)^4)-1","v":-3.3904073036146509E-2},{"$f":"((Quarterly!FU93/Quarterly!FU92)^4)-1","v":-6.807821901555533E-2},"--","--","--",null,null,null,null,null,{"$f":"((Quarterly!GD93/Quarterly!GD92)^4)-1","v":3.3809871934685471},"--","--","--",{"$f":"((Quarterly!GH94/Quarterly!GH93)^4)-1","v":{"$error":"#DIV/0!"}},"--","--","--","--"]
["79'Q4",{"$f":"((Quarterly!B94/Quarterly!B93)^4)-1","v":9.345690437943821E-2},{"$f":"((Quarterly!C94/Quarterly!C93)^4)-1","v":1.0395634429505529E-2},{"$f":"((Quarterly!D94/Quarterly!D93)^4)-1","v":1.7537660601575134E-2},{"$f":"((Quarterly!E94/Quarterly!E93)^4)-1","v":1.0788304896400591E-2},{"$f":"((Quarterly!F94/Quarterly!F93)^4)-1","v":-9.9079759620255059E-2},{"$f":"((Quarterly!G94/Quarterly!G93)^4)-1","v":2.1252406533137425E-2},{"$f":"((Quarterly!H94/Quarterly!H93)^4)-1","v":1.7185065877208583E-2},{"$f":"((Quarterly!I94/Quarterly!I93)^4)-1","v":1.0844507643613222E-2},{"$f":"((Quarterly!J94/Quarterly!J93)^4)-1","v":-4.3315315878165395E-2},{"$f":"((Quarterly!K94/Quarterly!K93)^4)-1","v":-0.14338286328426664},{"$f":"((Quarterly!L94-Quarterly!L93))","v":-5.0700000000000021},{"$f":"((Quarterly!M94/Quarterly!M93)^4)-1","v":9.030083479529516E-2},{"$f":"((Quarterly!N94/Quarterly!N93)^4)-1","v":0.27646053114971614},{"$f":"((Quarterly!O94/Quarterly!O93)^4)-1","v":-0.68761500918873097},{"$f":"((Quarterly!P94/Quarterly!P93)^4)-1","v":2.6305390986794519E-2},{"$f":"((Quarterly!Q94/Quarterly!Q93)^4)-1","v":1.1617131834174841},null,null,null,null,null,{"$f":"((Quarterly!W94/Quarterly!W93)^4)-1","v":-2.8434196811275347E-2},{"$f":"((Quarterly!X94/Quarterly!X93)^4)-1","v":-1.0999699022249732E-2},{"$f":"((Quarterly!Y94/Quarterly!Y93)^4)-1","v":0.10332540042390481},"--",{"$f":"((Quarterly!AA94/Quarterly!AA93)^4)-1","v":-7.8591094660686589E-2},{"$f":"((Quarterly!AB94/Quarterly!AB93)^4)-1","v":-9.4632588211167601E-2},"--","--","--","--","--","--","--","--","--","--",{"$f":"((Quarterly!AM94/Quarterly!AM93)^4)-1","v":1.3723937707203149E-2},{"$f":"((Quarterly!AN94/Quarterly!AN93)^4)-1","v":-1.3289868292336582E-3},"--","--",{"$f":"Quarterly!AQ94-Quarterly!AQ93","v":-2.86666666666666},"--","--",{"$f":"Quarterly!AT94-Quarterly!AT93","v":-1.6666666666666714},"--","--",{"$f":"Quarterly!AW94-Quarterly!AW93","v":-7.8999999999999986},{"$f":"Quarterly!AX94-Quarterly!AX93","v":-2.43333333333333},{"$f":"Quarterly!AY94-Quarterly!AY93","v":-1.4999999999999716},{"$f":"Quarterly!AZ94-Quarterly!AZ93","v":1.0333333333333385},{"$f":"Quarterly!BA94-Quarterly!BA93","v":-8.3666666666666742},"--","--","--","--",{"$f":"((Quarterly!BF94/Quarterly!BF93)^4)-1","v":0.10695530232870643},{"$f":"((Quarterly!BG94/Quarterly!BG93)^4)-1","v":-3.5661291070783196E-3},{"$f":"((Quarterly!BH94/Quarterly!BH93)^4)-1","v":2.7363134061504368E-3},{"$f":"((Quarterly!BI94/Quarterly!BI93)^4)-1","v":0.11094844503262014},{"$f":"((Quarterly!BJ94/Quarterly!BJ93)^4)-1","v":-7.3444618551396834E-2},"--",null,"--","--",null,null,null,null,null,{"$f":"((Quarterly!BT94/Quarterly!BT93)^4)-1","v":6.6795635764585137E-2},"--","--",{"$f":"((Quarterly!BW94/Quarterly!BW93)^4)-1","v":0.1142402213549536},{"$f":"((Quarterly!BX94/Quarterly!BX93)^4)-1","v":-0.41169468475592164},{"$f":"((Quarterly!BY94/Quarterly!BY93)^4)-1","v":-0.49709225745243069},"--",{"$f":"((Quarterly!CA94/Quarterly!CA93)^4)-1","v":-0.26342774332911156},{"$f":"((Quarterly!CB94/Quarterly!CB93)^4)-1","v":0.2522826950335455},{"$f":"((Quarterly!CC94/Quarterly!CC93)^4)-1","v":0.21610454008199964},"--","--",null,"--","--",null,{"$f":"((Quarterly!CJ94/Quarterly!CJ93)^4)-1","v":-0.49954642155771734},{"$f":"((Quarterly!CK94/Quarterly!CK93)^4)-1","v":0.12482870220709441},{"$f":"((Quarterly!CL94/Quarterly!CL93)^4)-1","v":0.1776316216938576},{"$f":"((Quarterly!CM94/Quarterly!CM93)^4)-1","v":-0.45762346469664328},{"$f":"((Quarterly!CN94/Quarterly!CN93)^4)-1","v":1.7444190463032028E-2},{"$f":"((Quarterly!CO94/Quarterly!CO93)^4)-1","v":-0.19301253170688693},{"$f":"((Quarterly!CP94/Quarterly!CP93)^4)-1","v":0.12893114961811603},{"$f":"((Quarterly!CQ94/Quarterly!CQ93)^4)-1","v":1.2928072807065316E-2},{"$f":"((Quarterly!CR94/Quarterly!CR93)^4)-1","v":0.20168374072591821},{"$f":"Quarterly!CS94-Quarterly!CS93","v":-1.7333333333333414},"--",null,null,null,null,null,{"$f":"((Quarterly!CZ94/Quarterly!CZ93)^4)-1","v":0.13278156014899234},{"$f":"((Quarterly!DA94/Quarterly!DA93)^4)-1","v":0.12677307420395989},null,null,null,null,null,{"$f":"((Quarterly!DG94/Quarterly!DG93)^4)-1","v":1.3056483799277485E-2},{"$f":"((Quarterly!DH94-Quarterly!DH93)*60)","v":-1.9999999999998863},{"$f":"Quarterly!DI94-Quarterly!DI93","v":0.10000000000000853},"--",{"$f":"(Quarterly!DK94-Quarterly!DK93)*100","v":9.9999999999998757},{"$f":"((Quarterly!DL94/Quarterly!DL93)^4)-1","v":-2.6388199545559821E-2},null,null,null,{"$f":"((Quarterly!DP94/Quarterly!DP93)^4)-1","v":1.3269032322766661E-2},null,null,null,"--",{"$f":"Quarterly!DU94-Quarterly!DU93","v":0.10000000000000053},"--","--","--","--","--","--","--","--",null,null,null,null,null,{"$f":"((Quarterly!EI94/Quarterly!EI93)^4)-1","v":-2.0765283593826456E-2},{"$f":"((Quarterly!EJ94/Quarterly!EJ93)^4)-1","v":1.1720419955552064E-3},{"$f":"((Quarterly!EK94/Quarterly!EK93)^4)-1","v":1.4904289481120436E-2},null,null,null,null,null,{"$f":"((Quarterly!EQ94/Quarterly!EQ93)^4)-1","v":0.14771728142221563},{"$f":"((Quarterly!ER94/Quarterly!ER93)^4)-1","v":0.10699701887657809},{"$f":"((Quarterly!ES94/Quarterly!ES93)^4)-1","v":9.3598990041809271E-2},null,null,null,null,null,{"$f":"(Quarterly!EY94-Quarterly!EY93)*100","v":296.33333333333331},{"$f":"(Quarterly!EZ94-Quarterly!EZ93)*100","v":262.99999999999989},{"$f":"(Quarterly!FA94-Quarterly!FA93)*100","v":125.33333333333357},{"$f":"(Quarterly!FB94-Quarterly!FB93)*100","v":142.33333333333354},16.999999999999972,{"$f":"(Quarterly!FD94-Quarterly!FD93)*100","v":129.66666666666634},{"$f":"(Quarterly!FE94-Quarterly!FE93)*100","v":217.00000000000017},{"$f":"(Quarterly!FF94-Quarterly!FF93)*100","v":211.66666666666671},{"$f":"(Quarterly!FG94-Quarterly!FG93)*100","v":200.9999999999998},{"$f":"(Quarterly!FH94-Quarterly!FH93)*100","v":153.66666666666688},{"$f":"(Quarterly!FI94-Quarterly!FI93)*100","v":134.33333333333354},-77.333333333333172,null,null,null,null,null,{"$f":"((Quarterly!FP94/Quarterly!FP93)^4)-1","v":2.9231001182462801E-2},"--","--","--",{"$f":"((Quarterly!FT94/Quarterly!FT93)^4)-1","v":8.9379791916314399E-2},{"$f":"((Quarterly!FU94/Quarterly!FU93)^4)-1","v":8.4643765269308613E-2},"--","--","--",null,null,null,null,null,{"$f":"((Quarterly!GD94/Quarterly!GD93)^4)-1","v":1.1098588134752498},"--","--","--",{"$f":"((Quarterly!GH95/Quarterly!GH94)^4)-1","v":{"$error":"#DIV/0!"}},"--","--","--","--"]
["80'Q1",{"$f":"((Quarterly!B95/Quarterly!B94)^4)-1","v":9.9953788846841585E-2},{"$f":"((Quarterly!C95/Quarterly!C94)^4)-1","v":1.3001664753444553E-2},{"$f":"((Quarterly!D95/Quarterly!D94)^4)-1","v":7.9620853843813677E-3},{"$f":"((Quarterly!E95/Quarterly!E94)^4)-1","v":-6.1376842021618749E-3},{"$f":"((Quarterly!F95/Quarterly!F94)^4)-1","v":-6.1580441043784684E-2},{"$f":"((Quarterly!G95/Quarterly!G94)^4)-1","v":-1.9406730362399038E-3},{"$f":"((Quarterly!H95/Quarterly!H94)^4)-1","v":-2.7389632573104894E-3},{"$f":"((Quarterly!I95/Quarterly!I94)^4)-1","v":4.4014596791346117E-2},{"$f":"((Quarterly!J95/Quarterly!J94)^4)-1","v":2.3943981002928494E-2},{"$f":"((Quarterly!K95/Quarterly!K94)^4)-1","v":-0.27352637741058428},{"$f":"((Quarterly!L95-Quarterly!L94))","v":1.3680000000000003},{"$f":"((Quarterly!M95/Quarterly!M94)^4)-1","v":2.9655806748636326E-3},{"$f":"((Quarterly!N95/Quarterly!N94)^4)-1","v":0.11635058276514232},{"$f":"((Quarterly!O95/Quarterly!O94)^4)-1","v":-0.69534336600426783},{"$f":"((Quarterly!P95/Quarterly!P94)^4)-1","v":6.3539632893150566E-2},{"$f":"((Quarterly!Q95/Quarterly!Q94)^4)-1","v":0.86139969600200583},null,null,null,null,null,{"$f":"((Quarterly!W95/Quarterly!W94)^4)-1","v":-1.9161121692807148E-2},{"$f":"((Quarterly!X95/Quarterly!X94)^4)-1","v":-7.8879520395320757E-3},{"$f":"((Quarterly!Y95/Quarterly!Y94)^4)-1","v":0.11922449293165704},"--",{"$f":"((Quarterly!AA95/Quarterly!AA94)^4)-1","v":-4.6740341078813641E-3},{"$f":"((Quarterly!AB95/Quarterly!AB94)^4)-1","v":-0.33572169623836756},"--","--","--","--","--","--","--","--","--","--",{"$f":"((Quarterly!AM95/Quarterly!AM94)^4)-1","v":1.6495336083522938E-2},{"$f":"((Quarterly!AN95/Quarterly!AN94)^4)-1","v":9.0125596889647497E-3},"--","--",{"$f":"Quarterly!AQ95-Quarterly!AQ94","v":-0.60000000000000853},"--","--",{"$f":"Quarterly!AT95-Quarterly!AT94","v":-2.2999999999999901},"--","--",{"$f":"Quarterly!AW95-Quarterly!AW94","v":6.6666666666662877E-2},{"$f":"Quarterly!AX95-Quarterly!AX94","v":1.4666666666666686},{"$f":"Quarterly!AY95-Quarterly!AY94","v":-2.5666666666666913},{"$f":"Quarterly!AZ95-Quarterly!AZ94","v":-0.53333333333333854},{"$f":"Quarterly!BA95-Quarterly!BA94","v":-2.8999999999999915},"--","--","--","--",{"$f":"((Quarterly!BF95/Quarterly!BF94)^4)-1","v":0.11892605887068219},{"$f":"((Quarterly!BG95/Quarterly!BG94)^4)-1","v":1.9173888581874854E-2},{"$f":"((Quarterly!BH95/Quarterly!BH94)^4)-1","v":-1.2344104511808673E-2},{"$f":"((Quarterly!BI95/Quarterly!BI94)^4)-1","v":9.7944295680445936E-2},{"$f":"((Quarterly!BJ95/Quarterly!BJ94)^4)-1","v":4.0539895386962232E-2},"--",null,"--","--",null,null,null,null,null,{"$f":"((Quarterly!BT95/Quarterly!BT94)^4)-1","v":4.9051387602819574E-2},"--","--",{"$f":"((Quarterly!BW95/Quarterly!BW94)^4)-1","v":0.13642809023844293},{"$f":"((Quarterly!BX95/Quarterly!BX94)^4)-1","v":-0.6009224722056753},{"$f":"((Quarterly!BY95/Quarterly!BY94)^4)-1","v":-0.44178086594935273},"--",{"$f":"((Quarterly!CA95/Quarterly!CA94)^4)-1","v":2.9440231306180342E-2},{"$f":"((Quarterly!CB95/Quarterly!CB94)^4)-1","v":0.47576455035634746},{"$f":"((Quarterly!CC95/Quarterly!CC94)^4)-1","v":0.43080988256229036},"--","--",null,"--","--",null,{"$f":"((Quarterly!CJ95/Quarterly!CJ94)^4)-1","v":-0.40012548161897488},{"$f":"((Quarterly!CK95/Quarterly!CK94)^4)-1","v":0.12058597578299457},{"$f":"((Quarterly!CL95/Quarterly!CL94)^4)-1","v":0.2624059620338306},{"$f":"((Quarterly!CM95/Quarterly!CM94)^4)-1","v":-0.64778399434695366},{"$f":"((Quarterly!CN95/Quarterly!CN94)^4)-1","v":1.3741324665459853E-2},{"$f":"((Quarterly!CO95/Quarterly!CO94)^4)-1","v":-0.19069991364711092},{"$f":"((Quarterly!CP95/Quarterly!CP94)^4)-1","v":7.2570176979774637E-2},{"$f":"((Quarterly!CQ95/Quarterly!CQ94)^4)-1","v":1.1166234047519374E-2},{"$f":"((Quarterly!CR95/Quarterly!CR94)^4)-1","v":3.3415477734715093E-2},{"$f":"Quarterly!CS95-Quarterly!CS94","v":1.3333333333333357},"--",null,null,null,null,null,{"$f":"((Quarterly!CZ95/Quarterly!CZ94)^4)-1","v":0.16741447741001836},{"$f":"((Quarterly!DA95/Quarterly!DA94)^4)-1","v":0.15628934190835042},null,null,null,null,null,{"$f":"((Quarterly!DG95/Quarterly!DG94)^4)-1","v":-1.4719160230992068E-2},{"$f":"((Quarterly!DH95-Quarterly!DH94)*60)","v":-12.000000000000171},{"$f":"Quarterly!DI95-Quarterly!DI94","v":0.13333333333332575},"--",{"$f":"(Quarterly!DK95-Quarterly!DK94)*100","v":33.333333333333393},{"$f":"((Quarterly!DL95/Quarterly!DL94)^4)-1","v":-1.8630265069527252E-2},null,null,null,{"$f":"((Quarterly!DP95/Quarterly!DP94)^4)-1","v":1.4013300591740219E-2},null,null,null,"--",{"$f":"Quarterly!DU95-Quarterly!DU94","v":0.20000000000000018},"--","--","--","--","--","--","--","--",null,null,null,null,null,{"$f":"((Quarterly!EI95/Quarterly!EI94)^4)-1","v":-2.1446445257302549E-2},{"$f":"((Quarterly!EJ95/Quarterly!EJ94)^4)-1","v":-4.8762786400200486E-3},{"$f":"((Quarterly!EK95/Quarterly!EK94)^4)-1","v":6.9448244028984529E-3},null,null,null,null,null,{"$f":"((Quarterly!EQ95/Quarterly!EQ94)^4)-1","v":0.19870328479947563},{"$f":"((Quarterly!ER95/Quarterly!ER94)^4)-1","v":0.15835184189452223},{"$f":"((Quarterly!ES95/Quarterly!ES94)^4)-1","v":0.13121127908504171},null,null,null,null,null,{"$f":"(Quarterly!EY95-Quarterly!EY94)*100","v":131.66666666666646},{"$f":"(Quarterly!EZ95-Quarterly!EZ94)*100","v":147.00000000000006},{"$f":"(Quarterly!FA95-Quarterly!FA94)*100","v":159.99999999999977},{"$f":"(Quarterly!FB95-Quarterly!FB94)*100","v":166.33333333333303},6.3333333333332575,{"$f":"(Quarterly!FD95-Quarterly!FD94)*100","v":127.66666666666691},{"$f":"(Quarterly!FE95-Quarterly!FE94)*100","v":150.99999999999997},{"$f":"(Quarterly!FF95-Quarterly!FF94)*100","v":166.33333333333303},{"$f":"(Quarterly!FG95-Quarterly!FG94)*100","v":170.33333333333348},{"$f":"(Quarterly!FH95-Quarterly!FH94)*100","v":160.99999999999994},{"$f":"(Quarterly!FI95-Quarterly!FI94)*100","v":153.99999999999991},-12.333333333333115,null,null,null,null,null,{"$f":"((Quarterly!FP95/Quarterly!FP94)^4)-1","v":-3.6371508132303609E-2},"--","--","--",{"$f":"((Quarterly!FT95/Quarterly!FT94)^4)-1","v":5.2707217795241457E-2},{"$f":"((Quarterly!FU95/Quarterly!FU94)^4)-1","v":1.3135223545148733E-3},"--","--","--",null,null,null,null,null,{"$f":"((Quarterly!GD95/Quarterly!GD94)^4)-1","v":0.82417679164170043},"--","--","--",{"$f":"((Quarterly!GH96/Quarterly!GH95)^4)-1","v":{"$error":"#DIV/0!"}},"--","--","--","--"]
["80'Q2",{"$f":"((Quarterly!B96/Quarterly!B95)^4)-1","v":4.8935917673380569E-3},{"$f":"((Quarterly!C96/Quarterly!C95)^4)-1","v":-7.8690587594446915E-2},{"$f":"((Quarterly!D96/Quarterly!D95)^4)-1","v":-7.5401109921959253E-2},{"$f":"((Quarterly!E96/Quarterly!E95)^4)-1","v":-8.7040524222384175E-2},{"$f":"((Quarterly!F96/Quarterly!F95)^4)-1","v":-0.36644354502973497},{"$f":"((Quarterly!G96/Quarterly!G95)^4)-1","v":-5.3081123847313449E-2},{"$f":"((Quarterly!H96/Quarterly!H95)^4)-1","v":-7.2452572036724727E-2},{"$f":"((Quarterly!I96/Quarterly!I95)^4)-1","v":-0.17242917809251612},{"$f":"((Quarterly!J96/Quarterly!J95)^4)-1","v":-0.33659710387334618},{"$f":"((Quarterly!K96/Quarterly!K95)^4)-1","v":-0.55874615287441176},{"$f":"((Quarterly!L96-Quarterly!L95))","v":-2.0990000000000002},{"$f":"((Quarterly!M96/Quarterly!M95)^4)-1","v":-0.26018211615661724},{"$f":"((Quarterly!N96/Quarterly!N95)^4)-1","v":7.7600966651462766E-2},{"$f":"((Quarterly!O96/Quarterly!O95)^4)-1","v":-0.99441343771213642},{"$f":"((Quarterly!P96/Quarterly!P95)^4)-1","v":1.4161733744653571E-2},{"$f":"((Quarterly!Q96/Quarterly!Q95)^4)-1","v":2.5858545798194035},null,null,null,null,null,{"$f":"((Quarterly!W96/Quarterly!W95)^4)-1","v":-0.21319288053001828},{"$f":"((Quarterly!X96/Quarterly!X95)^4)-1","v":-0.17710185913298537},{"$f":"((Quarterly!Y96/Quarterly!Y95)^4)-1","v":4.0802767522763128E-2},"--",{"$f":"((Quarterly!AA96/Quarterly!AA95)^4)-1","v":-0.44777654694663027},{"$f":"((Quarterly!AB96/Quarterly!AB95)^4)-1","v":-0.27002799031175284},"--","--","--","--","--","--","--","--","--","--",{"$f":"((Quarterly!AM96/Quarterly!AM95)^4)-1","v":-0.15804084661929785},{"$f":"((Quarterly!AN96/Quarterly!AN95)^4)-1","v":-0.19139355860212215},"--","--",{"$f":"Quarterly!AQ96-Quarterly!AQ95","v":-14.299999999999997},"--","--",{"$f":"Quarterly!AT96-Quarterly!AT95","v":-10.266666666666673},"--","--",{"$f":"Quarterly!AW96-Quarterly!AW95","v":-6.0333333333333314},{"$f":"Quarterly!AX96-Quarterly!AX95","v":-20.233333333333334},{"$f":"Quarterly!AY96-Quarterly!AY95","v":-13.266666666666652},{"$f":"Quarterly!AZ96-Quarterly!AZ95","v":-16.899999999999999},{"$f":"Quarterly!BA96-Quarterly!BA95","v":-9.3666666666666671},"--","--","--","--",{"$f":"((Quarterly!BF96/Quarterly!BF95)^4)-1","v":0.1071033295554884},{"$f":"((Quarterly!BG96/Quarterly!BG95)^4)-1","v":-4.2710352790597539E-2},{"$f":"((Quarterly!BH96/Quarterly!BH95)^4)-1","v":5.0513962504921128E-3},{"$f":"((Quarterly!BI96/Quarterly!BI95)^4)-1","v":0.15647461753526382},{"$f":"((Quarterly!BJ96/Quarterly!BJ95)^4)-1","v":-0.49035666118882304},"--",null,"--","--",null,null,null,null,null,{"$f":"((Quarterly!BT96/Quarterly!BT95)^4)-1","v":-7.9127250517456726E-2},{"$f":"Quarterly!BU96-Quarterly!BU95","v":8.3480000000001553E-2},{"$f":"Quarterly!BV96-Quarterly!BV95","v":0.17744999999999855},{"$f":"((Quarterly!BW96/Quarterly!BW95)^4)-1","v":9.9551804712817882E-2},{"$f":"((Quarterly!BX96/Quarterly!BX95)^4)-1","v":-0.4801590334373359},{"$f":"((Quarterly!BY96/Quarterly!BY95)^4)-1","v":-0.58242690526768448},"--",{"$f":"((Quarterly!CA96/Quarterly!CA95)^4)-1","v":-0.65996632054272331},{"$f":"((Quarterly!CB96/Quarterly!CB95)^4)-1","v":0.26766008350635007},{"$f":"((Quarterly!CC96/Quarterly!CC95)^4)-1","v":0.35698563264420335},"--","--",null,"--","--",null,{"$f":"((Quarterly!CJ96/Quarterly!CJ95)^4)-1","v":-0.43863541210844659},{"$f":"((Quarterly!CK96/Quarterly!CK95)^4)-1","v":4.7379551480253967E-2},{"$f":"((Quarterly!CL96/Quarterly!CL95)^4)-1","v":0.39247019710970776},{"$f":"((Quarterly!CM96/Quarterly!CM95)^4)-1","v":-0.42637221426988214},{"$f":"((Quarterly!CN96/Quarterly!CN95)^4)-1","v":-5.6818811638664424E-2},{"$f":"((Quarterly!CO96/Quarterly!CO95)^4)-1","v":-0.20515730596379811},{"$f":"((Quarterly!CP96/Quarterly!CP95)^4)-1","v":-3.7122850585353362E-2},{"$f":"((Quarterly!CQ96/Quarterly!CQ95)^4)-1","v":1.1093628002471156E-2},{"$f":"((Quarterly!CR96/Quarterly!CR95)^4)-1","v":-7.1675098854979691E-3},{"$f":"Quarterly!CS96-Quarterly!CS95","v":-9.0999999999999943},"--",null,null,null,null,null,{"$f":"((Quarterly!CZ96/Quarterly!CZ95)^4)-1","v":0.1419498428821182},{"$f":"((Quarterly!DA96/Quarterly!DA95)^4)-1","v":0.14090790202968306},null,null,null,null,null,{"$f":"((Quarterly!DG96/Quarterly!DG95)^4)-1","v":-7.574276345955544E-2},{"$f":"((Quarterly!DH96-Quarterly!DH95)*60)","v":-15.999999999999943},{"$f":"Quarterly!DI96-Quarterly!DI95","v":-0.10000000000000853},"--",{"$f":"(Quarterly!DK96-Quarterly!DK95)*100","v":103.33333333333331},{"$f":"((Quarterly!DL96/Quarterly!DL95)^4)-1","v":-0.10182674973592154},null,null,null,{"$f":"((Quarterly!DP96/Quarterly!DP95)^4)-1","v":-1.9078766067009867E-2},null,null,null,"--",{"$f":"Quarterly!DU96-Quarterly!DU95","v":0.26666666666666572},"--","--","--","--","--","--","--","--",null,null,null,null,null,{"$f":"((Quarterly!EI96/Quarterly!EI95)^4)-1","v":-0.18891783351678693},{"$f":"((Quarterly!EJ96/Quarterly!EJ95)^4)-1","v":-0.1176529646790947},{"$f":"((Quarterly!EK96/Quarterly!EK95)^4)-1","v":-8.0026670261617472E-2},null,null,null,null,null,{"$f":"((Quarterly!EQ96/Quarterly!EQ95)^4)-1","v":8.2562977392099945E-2},{"$f":"((Quarterly!ER96/Quarterly!ER95)^4)-1","v":9.1820698029138281E-2},{"$f":"((Quarterly!ES96/Quarterly!ES95)^4)-1","v":0.11822108913308393},null,null,null,null,null,{"$f":"(Quarterly!EY96-Quarterly!EY95)*100","v":-7.3333333333330586},{"$f":"(Quarterly!EZ96-Quarterly!EZ95)*100","v":-235.99999999999994},{"$f":"(Quarterly!FA96-Quarterly!FA95)*100","v":-93.999999999999943},{"$f":"(Quarterly!FB96-Quarterly!FB95)*100","v":-12.33333333333313},81.666666666666814,{"$f":"(Quarterly!FD96-Quarterly!FD95)*100","v":69.999999999999744},{"$f":"(Quarterly!FE96-Quarterly!FE95)*100","v":-373.66666666666663},{"$f":"(Quarterly!FF96-Quarterly!FF95)*100","v":-364.99999999999989},{"$f":"(Quarterly!FG96-Quarterly!FG95)*100","v":-304.00000000000011},{"$f":"(Quarterly!FH96-Quarterly!FH95)*100","v":-193.66666666666674},{"$f":"(Quarterly!FI96-Quarterly!FI95)*100","v":-150.99999999999997},213.99999999999991,null,null,null,null,null,{"$f":"((Quarterly!FP96/Quarterly!FP95)^4)-1","v":2.2171338655838424E-2},"--","--","--",{"$f":"((Quarterly!FT96/Quarterly!FT95)^4)-1","v":6.181907908716866E-3},{"$f":"((Quarterly!FU96/Quarterly!FU95)^4)-1","v":-1.9951048759719092E-2},"--","--","--",null,null,null,null,null,{"$f":"((Quarterly!GD96/Quarterly!GD95)^4)-1","v":0.47652071518640571},"--","--","--",{"$f":"((Quarterly!GH97/Quarterly!GH96)^4)-1","v":{"$error":"#DIV/0!"}},"--","--","--","--"]
["80'Q3",{"$f":"((Quarterly!B97/Quarterly!B96)^4)-1","v":8.867236598180761E-2},{"$f":"((Quarterly!C97/Quarterly!C96)^4)-1","v":-6.0470176293423439E-3},{"$f":"((Quarterly!D97/Quarterly!D96)^4)-1","v":5.3023374311478966E-2},{"$f":"((Quarterly!E97/Quarterly!E96)^4)-1","v":4.3807671032903395E-2},{"$f":"((Quarterly!F97/Quarterly!F96)^4)-1","v":0.18956668143066269},{"$f":"((Quarterly!G97/Quarterly!G96)^4)-1","v":-9.7340066808541126E-3},{"$f":"((Quarterly!H97/Quarterly!H96)^4)-1","v":5.5600443448081682E-2},{"$f":"((Quarterly!I97/Quarterly!I96)^4)-1","v":2.6829078375162352E-2},{"$f":"((Quarterly!J97/Quarterly!J96)^4)-1","v":-2.447625395734021E-2},{"$f":"((Quarterly!K97/Quarterly!K96)^4)-1","v":7.0769697616647864E-2},{"$f":"((Quarterly!L97-Quarterly!L96))","v":-65.126000000000005},{"$f":"((Quarterly!M97/Quarterly!M96)^4)-1","v":-0.25811114727614515},{"$f":"((Quarterly!N97/Quarterly!N96)^4)-1","v":-8.4337846032825903E-3},{"$f":"((Quarterly!O97/Quarterly!O96)^4)-1","v":355.36394075360658},{"$f":"((Quarterly!P97/Quarterly!P96)^4)-1","v":-5.7775344381801097E-2},{"$f":"((Quarterly!Q97/Quarterly!Q96)^4)-1","v":0.73730083234449539},null,null,null,null,null,{"$f":"((Quarterly!W97/Quarterly!W96)^4)-1","v":-0.11324977308983231},{"$f":"((Quarterly!X97/Quarterly!X96)^4)-1","v":-8.6902857040123793E-2},{"$f":"((Quarterly!Y97/Quarterly!Y96)^4)-1","v":4.1207524354833103E-2},"--",{"$f":"((Quarterly!AA97/Quarterly!AA96)^4)-1","v":0.20798235451074998},{"$f":"((Quarterly!AB97/Quarterly!AB96)^4)-1","v":5.1240395927039772E-2},"--","--","--","--","--","--","--","--","--","--",{"$f":"((Quarterly!AM97/Quarterly!AM96)^4)-1","v":-6.3617149356831382E-2},{"$f":"((Quarterly!AN97/Quarterly!AN96)^4)-1","v":-8.4904893683610982E-2},"--","--",{"$f":"Quarterly!AQ97-Quarterly!AQ96","v":11.166666666666664},"--","--",{"$f":"Quarterly!AT97-Quarterly!AT96","v":4.1333333333333329},"--","--",{"$f":"Quarterly!AW97-Quarterly!AW96","v":-1.1666666666666714},{"$f":"Quarterly!AX97-Quarterly!AX96","v":20.766666666666666},{"$f":"Quarterly!AY97-Quarterly!AY96","v":-5.8000000000000114},{"$f":"Quarterly!AZ97-Quarterly!AZ96","v":13.199999999999996},{"$f":"Quarterly!BA97-Quarterly!BA96","v":6.1666666666666714},"--","--","--","--",{"$f":"((Quarterly!BF97/Quarterly!BF96)^4)-1","v":0.10268481731341228},{"$f":"((Quarterly!BG97/Quarterly!BG96)^4)-1","v":1.349849522171831E-2},{"$f":"((Quarterly!BH97/Quarterly!BH96)^4)-1","v":2.0815067457691239E-3},{"$f":"((Quarterly!BI97/Quarterly!BI96)^4)-1","v":8.7924088648396292E-2},{"$f":"((Quarterly!BJ97/Quarterly!BJ96)^4)-1","v":0.3874381288365516},"--",null,"--","--",null,null,null,null,null,{"$f":"((Quarterly!BT97/Quarterly!BT96)^4)-1","v":-6.6714595329937509E-2},{"$f":"Quarterly!BU97-Quarterly!BU96","v":-0.24136000000000024},{"$f":"Quarterly!BV97-Quarterly!BV96","v":-0.25910999999999973},{"$f":"((Quarterly!BW97/Quarterly!BW96)^4)-1","v":0.1112396364385364},{"$f":"((Quarterly!BX97/Quarterly!BX96)^4)-1","v":1.9964999190596755},{"$f":"((Quarterly!BY97/Quarterly!BY96)^4)-1","v":3.7295455517470772},"--",{"$f":"((Quarterly!CA97/Quarterly!CA96)^4)-1","v":0.50122762802045129},{"$f":"((Quarterly!CB97/Quarterly!CB96)^4)-1","v":-0.1963291261654686},{"$f":"((Quarterly!CC97/Quarterly!CC96)^4)-1","v":-0.13047879393944584},"--","--",null,"--","--",null,{"$f":"((Quarterly!CJ97/Quarterly!CJ96)^4)-1","v":2.4155259980320647},{"$f":"((Quarterly!CK97/Quarterly!CK96)^4)-1","v":0.1504338510629164},{"$f":"((Quarterly!CL97/Quarterly!CL96)^4)-1","v":0.25566187103377569},{"$f":"((Quarterly!CM97/Quarterly!CM96)^4)-1","v":2.6636955720712088},{"$f":"((Quarterly!CN97/Quarterly!CN96)^4)-1","v":4.9655485887525996E-2},{"$f":"((Quarterly!CO97/Quarterly!CO96)^4)-1","v":0.29331049384030328},{"$f":"((Quarterly!CP97/Quarterly!CP96)^4)-1","v":-1.4626117653784187E-2},{"$f":"((Quarterly!CQ97/Quarterly!CQ96)^4)-1","v":1.1968266398097338E-2},{"$f":"((Quarterly!CR97/Quarterly!CR96)^4)-1","v":2.8245158634037537E-2},{"$f":"Quarterly!CS97-Quarterly!CS96","v":13.399999999999991},"--",null,null,null,null,null,{"$f":"((Quarterly!CZ97/Quarterly!CZ96)^4)-1","v":7.7211359189190087E-2},{"$f":"((Quarterly!DA97/Quarterly!DA96)^4)-1","v":6.1207098669272542E-2},null,null,null,null,null,{"$f":"((Quarterly!DG97/Quarterly!DG96)^4)-1","v":-2.625266970963458E-2},{"$f":"((Quarterly!DH97-Quarterly!DH96)*60)","v":-4.000000000000199},{"$f":"Quarterly!DI97-Quarterly!DI96","v":-9.9999999999994316E-2},"--",{"$f":"(Quarterly!DK97-Quarterly!DK96)*100","v":33.333333333333393},{"$f":"((Quarterly!DL97/Quarterly!DL96)^4)-1","v":-7.2947554937787151E-2},null,null,null,{"$f":"((Quarterly!DP97/Quarterly!DP96)^4)-1","v":-1.7920220981051282E-2},null,null,null,"--",{"$f":"Quarterly!DU97-Quarterly!DU96","v":1.4333333333333336},"--","--","--","--","--","--","--","--",null,null,null,null,null,{"$f":"((Quarterly!EI97/Quarterly!EI96)^4)-1","v":-2.1285351902849858E-2},{"$f":"((Quarterly!EJ97/Quarterly!EJ96)^4)-1","v":-3.1164989075216365E-4},{"$f":"((Quarterly!EK97/Quarterly!EK96)^4)-1","v":1.7042851936110992E-3},null,null,null,null,null,{"$f":"((Quarterly!EQ97/Quarterly!EQ96)^4)-1","v":0.13803966624185882},{"$f":"((Quarterly!ER97/Quarterly!ER96)^4)-1","v":0.11479800057019363},{"$f":"((Quarterly!ES97/Quarterly!ES96)^4)-1","v":0.10801455270967808},null,null,null,null,null,{"$f":"(Quarterly!EY97-Quarterly!EY96)*100","v":-471.33333333333348},{"$f":"(Quarterly!EZ97-Quarterly!EZ96)*100","v":-285.00000000000011},{"$f":"(Quarterly!FA97-Quarterly!FA96)*100","v":37.333333333333485},{"$f":"(Quarterly!FB97-Quarterly!FB96)*100","v":-19.000000000000128},-56.333333333333613,{"$f":"(Quarterly!FD97-Quarterly!FD96)*100","v":-178.33333333333314},{"$f":"(Quarterly!FE97-Quarterly!FE96)*100","v":-46.333333333333293},{"$f":"(Quarterly!FF97-Quarterly!FF96)*100","v":-14.66666666666665},{"$f":"(Quarterly!FG97-Quarterly!FG96)*100","v":15.000000000000036},{"$f":"(Quarterly!FH97-Quarterly!FH96)*100","v":32.999999999999829},{"$f":"(Quarterly!FI97-Quarterly!FI96)*100","v":47.666666666666657},62.333333333333307,null,null,null,null,null,{"$f":"((Quarterly!FP97/Quarterly!FP96)^4)-1","v":-3.9936579405832728E-2},"--","--","--",{"$f":"((Quarterly!FT97/Quarterly!FT96)^4)-1","v":-6.0662353394864699E-2},{"$f":"((Quarterly!FU97/Quarterly!FU96)^4)-1","v":-0.10739013786114182},"--","--","--",null,null,null,null,null,{"$f":"((Quarterly!GD97/Quarterly!GD96)^4)-1","v":-0.15839163244821597},"--","--","--",{"$f":"((Quarterly!GH98/Quarterly!GH97)^4)-1","v":{"$error":"#DIV/0!"}},"--","--","--","--"]
["80'Q4",{"$f":"((Quarterly!B98/Quarterly!B97)^4)-1","v":0.20016428764113847},{"$f":"((Quarterly!C98/Quarterly!C97)^4)-1","v":7.6216997440194278E-2},{"$f":"((Quarterly!D98/Quarterly!D97)^4)-1","v":3.7356345579796946E-2},{"$f":"((Quarterly!E98/Quarterly!E97)^4)-1","v":5.417370357254625E-2},{"$f":"((Quarterly!F98/Quarterly!F97)^4)-1","v":0.12757746059952324},{"$f":"((Quarterly!G98/Quarterly!G97)^4)-1","v":1.5730213889485256E-2},{"$f":"((Quarterly!H98/Quarterly!H97)^4)-1","v":6.4392602092313123E-2},{"$f":"((Quarterly!I98/Quarterly!I97)^4)-1","v":8.6960626056855617E-2},{"$f":"((Quarterly!J98/Quarterly!J97)^4)-1","v":4.8510405392244049E-2},{"$f":"((Quarterly!K98/Quarterly!K97)^4)-1","v":0.45289865924252615},{"$f":"((Quarterly!L98-Quarterly!L97))","v":37.879999999999995},{"$f":"((Quarterly!M98/Quarterly!M97)^4)-1","v":0.23254181729756107},{"$f":"((Quarterly!N98/Quarterly!N97)^4)-1","v":-2.3874510711409114E-2},{"$f":"((Quarterly!O98/Quarterly!O97)^4)-1","v":-0.97854196012429917},{"$f":"((Quarterly!P98/Quarterly!P97)^4)-1","v":-1.2983980996306155E-4},{"$f":"((Quarterly!Q98/Quarterly!Q97)^4)-1","v":-0.23844804809881981},null,null,null,null,null,{"$f":"((Quarterly!W98/Quarterly!W97)^4)-1","v":0.16295166485767254},{"$f":"((Quarterly!X98/Quarterly!X97)^4)-1","v":0.13209165591999295},{"$f":"((Quarterly!Y98/Quarterly!Y97)^4)-1","v":0.22269858285200628},"--",{"$f":"((Quarterly!AA98/Quarterly!AA97)^4)-1","v":0.12559154701478681},{"$f":"((Quarterly!AB98/Quarterly!AB97)^4)-1","v":0.43011988148327007},"--","--","--","--","--","--","--","--","--","--",{"$f":"((Quarterly!AM98/Quarterly!AM97)^4)-1","v":0.1635011413224936},{"$f":"((Quarterly!AN98/Quarterly!AN97)^4)-1","v":0.20225226237912741},"--","--",{"$f":"Quarterly!AQ98-Quarterly!AQ97","v":12.033333333333331},"--","--",{"$f":"Quarterly!AT98-Quarterly!AT97","v":11.733333333333327},"--","--",{"$f":"Quarterly!AW98-Quarterly!AW97","v":8.3666666666666742},{"$f":"Quarterly!AX98-Quarterly!AX97","v":12.033333333333331},{"$f":"Quarterly!AY98-Quarterly!AY97","v":10.733333333333334},{"$f":"Quarterly!AZ98-Quarterly!AZ97","v":15.866666666666667},{"$f":"Quarterly!BA98-Quarterly!BA97","v":8.6000000000000014},"--","--","--","--",{"$f":"((Quarterly!BF98/Quarterly!BF97)^4)-1","v":0.11619517338938823},{"$f":"((Quarterly!BG98/Quarterly!BG97)^4)-1","v":4.537132681062217E-2},{"$f":"((Quarterly!BH98/Quarterly!BH97)^4)-1","v":1.6845211828816931E-2},{"$f":"((Quarterly!BI98/Quarterly!BI97)^4)-1","v":6.7736781824936365E-2},{"$f":"((Quarterly!BJ98/Quarterly!BJ97)^4)-1","v":0.29107116569118707},"--",null,"--","--",null,null,null,null,null,{"$f":"((Quarterly!BT98/Quarterly!BT97)^4)-1","v":-4.1725012330794398E-3},{"$f":"Quarterly!BU98-Quarterly!BU97","v":-0.2129600000000007},{"$f":"Quarterly!BV98-Quarterly!BV97","v":-0.26131999999999955},{"$f":"((Quarterly!BW98/Quarterly!BW97)^4)-1","v":0.12774010311993433},{"$f":"((Quarterly!BX98/Quarterly!BX97)^4)-1","v":0.36643525508095887},{"$f":"((Quarterly!BY98/Quarterly!BY97)^4)-1","v":-0.10462725246717863},"--",{"$f":"((Quarterly!CA98/Quarterly!CA97)^4)-1","v":1.8270119019976327E-3},{"$f":"((Quarterly!CB98/Quarterly!CB97)^4)-1","v":-0.12277386317595007},{"$f":"((Quarterly!CC98/Quarterly!CC97)^4)-1","v":-0.12469441063398612},"--","--",null,"--","--",null,{"$f":"((Quarterly!CJ98/Quarterly!CJ97)^4)-1","v":-0.41328677583177253},{"$f":"((Quarterly!CK98/Quarterly!CK97)^4)-1","v":0.19771788259067868},{"$f":"((Quarterly!CL98/Quarterly!CL97)^4)-1","v":0.4412079209156714},{"$f":"((Quarterly!CM98/Quarterly!CM97)^4)-1","v":9.9763237407217931E-2},{"$f":"((Quarterly!CN98/Quarterly!CN97)^4)-1","v":8.0888938463280491E-2},{"$f":"((Quarterly!CO98/Quarterly!CO97)^4)-1","v":-5.8106536619646487E-3},{"$f":"((Quarterly!CP98/Quarterly!CP97)^4)-1","v":3.3956682366483415E-2},{"$f":"((Quarterly!CQ98/Quarterly!CQ97)^4)-1","v":1.1413342604541521E-2},{"$f":"((Quarterly!CR98/Quarterly!CR97)^4)-1","v":2.2696286059856741E-2},{"$f":"Quarterly!CS98-Quarterly!CS97","v":4.2999999999999972},"--",null,null,null,null,null,{"$f":"((Quarterly!CZ98/Quarterly!CZ97)^4)-1","v":0.11693861391181448},{"$f":"((Quarterly!DA98/Quarterly!DA97)^4)-1","v":0.13042112437373743},null,null,null,null,null,{"$f":"((Quarterly!DG98/Quarterly!DG97)^4)-1","v":6.4417150227925379E-2},{"$f":"((Quarterly!DH98-Quarterly!DH97)*60)","v":14.000000000000057},{"$f":"Quarterly!DI98-Quarterly!DI97","v":0},"--",{"$f":"(Quarterly!DK98-Quarterly!DK97)*100","v":-26.66666666666675},{"$f":"((Quarterly!DL98/Quarterly!DL97)^4)-1","v":4.514485819271008E-2},null,null,null,{"$f":"((Quarterly!DP98/Quarterly!DP97)^4)-1","v":3.0519702056191589E-2},null,null,null,"--",{"$f":"Quarterly!DU98-Quarterly!DU97","v":0.16666666666666696},"--","--","--","--","--","--","--","--",null,null,null,null,null,{"$f":"((Quarterly!EI98/Quarterly!EI97)^4)-1","v":0.12826422990000652},{"$f":"((Quarterly!EJ98/Quarterly!EJ97)^4)-1","v":7.6010071490602238E-2},{"$f":"((Quarterly!EK98/Quarterly!EK97)^4)-1","v":6.2442998946555361E-2},null,null,null,null,null,{"$f":"((Quarterly!EQ98/Quarterly!EQ97)^4)-1","v":9.5371704113049516E-2},{"$f":"((Quarterly!ER98/Quarterly!ER97)^4)-1","v":8.0862634626966301E-2},{"$f":"((Quarterly!ES98/Quarterly!ES97)^4)-1","v":0.11346909140068195},null,null,null,null,null,{"$f":"(Quarterly!EY98-Quarterly!EY97)*100","v":512.33333333333348},{"$f":"(Quarterly!EZ98-Quarterly!EZ97)*100","v":601.66666666666674},{"$f":"(Quarterly!FA98-Quarterly!FA97)*100","v":125.3333333333332},{"$f":"(Quarterly!FB98-Quarterly!FB97)*100","v":150.33333333333357},25.000000000000369,{"$f":"(Quarterly!FD98-Quarterly!FD97)*100","v":161.33333333333331},{"$f":"(Quarterly!FE98-Quarterly!FE97)*100","v":446.00000000000011},{"$f":"(Quarterly!FF98-Quarterly!FF97)*100","v":370.33333333333348},{"$f":"(Quarterly!FG98-Quarterly!FG97)*100","v":284.99999999999994},{"$f":"(Quarterly!FH98-Quarterly!FH97)*100","v":198.33333333333343},{"$f":"(Quarterly!FI98-Quarterly!FI97)*100","v":146.99999999999989},-223.3333333333336,null,null,null,null,null,{"$f":"((Quarterly!FP98/Quarterly!FP97)^4)-1","v":9.0484563910562255E-2},"--","--","--",{"$f":"((Quarterly!FT98/Quarterly!FT97)^4)-1","v":8.6979708120927812E-2},{"$f":"((Quarterly!FU98/Quarterly!FU97)^4)-1","v":7.9363193281739131E-2},"--","--","--",null,null,null,null,null,{"$f":"((Quarterly!GD98/Quarterly!GD97)^4)-1","v":-0.14940554811112294},"--","--","--",{"$f":"((Quarterly!GH99/Quarterly!GH98)^4)-1","v":{"$error":"#DIV/0!"}},"--","--","--","--"]
["81'Q1",{"$f":"((Quarterly!B99/Quarterly!B98)^4)-1","v":0.19796454990347501},{"$f":"((Quarterly!C99/Quarterly!C98)^4)-1","v":8.5385332960867366E-2},{"$f":"((Quarterly!D99/Quarterly!D98)^4)-1","v":2.1110704975220829E-2},{"$f":"((Quarterly!E99/Quarterly!E98)^4)-1","v":2.1210398141494835E-2},{"$f":"((Quarterly!F99/Quarterly!F98)^4)-1","v":0.11839037504091277},{"$f":"((Quarterly!G99/Quarterly!G98)^4)-1","v":3.5795121849413691E-2},{"$f":"((Quarterly!H99/Quarterly!H98)^4)-1","v":7.3323101431035376E-3},{"$f":"((Quarterly!I99/Quarterly!I98)^4)-1","v":8.4757547741955985E-2},{"$f":"((Quarterly!J99/Quarterly!J98)^4)-1","v":5.7060292408261937E-4},{"$f":"((Quarterly!K99/Quarterly!K98)^4)-1","v":-6.8727553425345089E-2},{"$f":"((Quarterly!L99-Quarterly!L98))","v":76.113},{"$f":"((Quarterly!M99/Quarterly!M98)^4)-1","v":0.18282224983453399},{"$f":"((Quarterly!N99/Quarterly!N98)^4)-1","v":7.7644034800831374E-2},{"$f":"((Quarterly!O99/Quarterly!O98)^4)-1","v":-0.98628421863787119},{"$f":"((Quarterly!P99/Quarterly!P98)^4)-1","v":5.3279895129219268E-2},{"$f":"((Quarterly!Q99/Quarterly!Q98)^4)-1","v":-0.65534978361813601},null,null,null,null,null,{"$f":"((Quarterly!W99/Quarterly!W98)^4)-1","v":-3.030082310136073E-2},{"$f":"((Quarterly!X99/Quarterly!X98)^4)-1","v":-1.9663472191540299E-2},{"$f":"((Quarterly!Y99/Quarterly!Y98)^4)-1","v":9.2649790972604729E-2},"--",{"$f":"((Quarterly!AA99/Quarterly!AA98)^4)-1","v":6.6728660595265943E-2},{"$f":"((Quarterly!AB99/Quarterly!AB98)^4)-1","v":0.29114661250548268},"--","--","--","--","--","--","--","--","--","--",{"$f":"((Quarterly!AM99/Quarterly!AM98)^4)-1","v":9.7009264176484145E-3},{"$f":"((Quarterly!AN99/Quarterly!AN98)^4)-1","v":8.7662947239608435E-3},"--","--",{"$f":"Quarterly!AQ99-Quarterly!AQ98","v":-6.3666666666666671},"--","--",{"$f":"Quarterly!AT99-Quarterly!AT98","v":-4.2666666666666657},"--","--",{"$f":"Quarterly!AW99-Quarterly!AW98","v":-2.0333333333333314},{"$f":"Quarterly!AX99-Quarterly!AX98","v":-10.066666666666663},{"$f":"Quarterly!AY99-Quarterly!AY98","v":-2.2333333333333343},{"$f":"Quarterly!AZ99-Quarterly!AZ98","v":-9.7333333333333272},{"$f":"Quarterly!BA99-Quarterly!BA98","v":1.1666666666666643},"--","--","--","--",{"$f":"((Quarterly!BF99/Quarterly!BF98)^4)-1","v":0.10896465384546894},{"$f":"((Quarterly!BG99/Quarterly!BG98)^4)-1","v":6.9372186951622616E-2},{"$f":"((Quarterly!BH99/Quarterly!BH98)^4)-1","v":-6.4670625671503501E-3},{"$f":"((Quarterly!BI99/Quarterly!BI98)^4)-1","v":3.7084941344245781E-2},{"$f":"((Quarterly!BJ99/Quarterly!BJ98)^4)-1","v":0.14643953280179756},"--",null,"--","--",null,null,null,null,null,{"$f":"((Quarterly!BT99/Quarterly!BT98)^4)-1","v":1.3539478998045196E-2},{"$f":"Quarterly!BU99-Quarterly!BU98","v":5.9960000000000235E-2},{"$f":"Quarterly!BV99-Quarterly!BV98","v":8.7439999999999074E-2},{"$f":"((Quarterly!BW99/Quarterly!BW98)^4)-1","v":0.16750143746983648},{"$f":"((Quarterly!BX99/Quarterly!BX98)^4)-1","v":-0.32067021788557493},{"$f":"((Quarterly!BY99/Quarterly!BY98)^4)-1","v":-0.34039203788889194},"--",{"$f":"((Quarterly!CA99/Quarterly!CA98)^4)-1","v":0.33443413119582188},{"$f":"((Quarterly!CB99/Quarterly!CB98)^4)-1","v":-0.22645489489530091},{"$f":"((Quarterly!CC99/Quarterly!CC98)^4)-1","v":-0.1800801055743031},"--","--",null,"--","--",null,{"$f":"((Quarterly!CJ99/Quarterly!CJ98)^4)-1","v":-0.25998328940922499},{"$f":"((Quarterly!CK99/Quarterly!CK98)^4)-1","v":9.9836749141683612E-2},{"$f":"((Quarterly!CL99/Quarterly!CL98)^4)-1","v":-0.20330887196679226},{"$f":"((Quarterly!CM99/Quarterly!CM98)^4)-1","v":-0.3830060772593229},{"$f":"((Quarterly!CN99/Quarterly!CN98)^4)-1","v":-1.0696231994491101E-2},{"$f":"((Quarterly!CO99/Quarterly!CO98)^4)-1","v":-0.29994490291913056},{"$f":"((Quarterly!CP99/Quarterly!CP98)^4)-1","v":5.1873811343714493E-2},{"$f":"((Quarterly!CQ99/Quarterly!CQ98)^4)-1","v":8.3314355996679801E-3},{"$f":"((Quarterly!CR99/Quarterly!CR98)^4)-1","v":9.6392614586983116E-2},{"$f":"Quarterly!CS99-Quarterly!CS98","v":-3.7999999999999972},"--",null,null,null,null,null,{"$f":"((Quarterly!CZ99/Quarterly!CZ98)^4)-1","v":0.11531024140762991},{"$f":"((Quarterly!DA99/Quarterly!DA98)^4)-1","v":9.7071091083849481E-2},null,null,null,null,null,{"$f":"((Quarterly!DG99/Quarterly!DG98)^4)-1","v":2.4625889761419772E-2},{"$f":"((Quarterly!DH99-Quarterly!DH98)*60)","v":1.9999999999998863},{"$f":"Quarterly!DI99-Quarterly!DI98","v":0.26666666666666572},"--",{"$f":"(Quarterly!DK99-Quarterly!DK98)*100","v":3.3333333333334103},{"$f":"((Quarterly!DL99/Quarterly!DL98)^4)-1","v":1.0951103846620569E-2},null,null,null,{"$f":"((Quarterly!DP99/Quarterly!DP98)^4)-1","v":1.7305562828226817E-2},null,null,null,"--",{"$f":"Quarterly!DU99-Quarterly!DU98","v":-0.36666666666666625},"--","--","--","--","--","--","--","--",null,null,null,null,null,{"$f":"((Quarterly!EI99/Quarterly!EI98)^4)-1","v":0.11061362315901757},{"$f":"((Quarterly!EJ99/Quarterly!EJ98)^4)-1","v":7.0733313915861462E-2},{"$f":"((Quarterly!EK99/Quarterly!EK98)^4)-1","v":5.8891987777178967E-2},null,null,null,null,null,{"$f":"((Quarterly!EQ99/Quarterly!EQ98)^4)-1","v":0.1271656074541696},{"$f":"((Quarterly!ER99/Quarterly!ER98)^4)-1","v":9.0279864464607673E-2},{"$f":"((Quarterly!ES99/Quarterly!ES98)^4)-1","v":0.11034174648642781},null,null,null,null,null,{"$f":"(Quarterly!EY99-Quarterly!EY98)*100","v":248.00000000000006},{"$f":"(Quarterly!EZ99-Quarterly!EZ98)*100","v":71.666666666666316},{"$f":"(Quarterly!FA99-Quarterly!FA98)*100","v":33.333333333333393},{"$f":"(Quarterly!FB99-Quarterly!FB98)*100","v":57.666666666666266},24.333333333332874,{"$f":"(Quarterly!FD99-Quarterly!FD98)*100","v":87.999999999999901},{"$f":"(Quarterly!FE99-Quarterly!FE98)*100","v":77.666666666666544},{"$f":"(Quarterly!FF99-Quarterly!FF98)*100","v":27.999999999999758},{"$f":"(Quarterly!FG99-Quarterly!FG98)*100","v":35.666666666666735},{"$f":"(Quarterly!FH99-Quarterly!FH98)*100","v":55.000000000000071},{"$f":"(Quarterly!FI99-Quarterly!FI98)*100","v":53.666666666666707},25.666666666666949,null,null,null,null,null,{"$f":"((Quarterly!FP99/Quarterly!FP98)^4)-1","v":3.2364832044805558E-2},"--","--","--",{"$f":"((Quarterly!FT99/Quarterly!FT98)^4)-1","v":0.1317332691080404},{"$f":"((Quarterly!FU99/Quarterly!FU98)^4)-1","v":0.13051719475135926},"--","--","--",null,null,null,null,null,{"$f":"((Quarterly!GD99/Quarterly!GD98)^4)-1","v":0.19650195782870794},"--","--","--",{"$f":"((Quarterly!GH100/Quarterly!GH99)^4)-1","v":{"$error":"#DIV/0!"}},"--","--","--","--"]
["81'Q2",{"$f":"((Quarterly!B100/Quarterly!B99)^4)-1","v":4.6054719769192287E-2},{"$f":"((Quarterly!C100/Quarterly!C99)^4)-1","v":-2.8891366329542811E-2},{"$f":"((Quarterly!D100/Quarterly!D99)^4)-1","v":9.7327255220345243E-3},{"$f":"((Quarterly!E100/Quarterly!E99)^4)-1","v":-7.8971393697768733E-4},{"$f":"((Quarterly!F100/Quarterly!F99)^4)-1","v":-0.14677263454945433},{"$f":"((Quarterly!G100/Quarterly!G99)^4)-1","v":1.7899457785944373E-2},{"$f":"((Quarterly!H100/Quarterly!H99)^4)-1","v":5.0769273956774441E-3},{"$f":"((Quarterly!I100/Quarterly!I99)^4)-1","v":8.3692180513606607E-2},{"$f":"((Quarterly!J100/Quarterly!J99)^4)-1","v":2.634769051926078E-2},{"$f":"((Quarterly!K100/Quarterly!K99)^4)-1","v":-0.1280489935799185},{"$f":"((Quarterly!L100-Quarterly!L99))","v":-45.795999999999999},{"$f":"((Quarterly!M100/Quarterly!M99)^4)-1","v":6.0511393898079469E-3},{"$f":"((Quarterly!N100/Quarterly!N99)^4)-1","v":2.1992051663669354E-2},{"$f":"((Quarterly!O100/Quarterly!O99)^4)-1","v":2.2658679295222353},{"$f":"((Quarterly!P100/Quarterly!P99)^4)-1","v":1.2652901811623929E-2},{"$f":"((Quarterly!Q100/Quarterly!Q99)^4)-1","v":0.22538725976295848},null,null,null,null,null,{"$f":"((Quarterly!W100/Quarterly!W99)^4)-1","v":-5.138075438398837E-3},{"$f":"((Quarterly!X100/Quarterly!X99)^4)-1","v":-1.8125174192744509E-2},{"$f":"((Quarterly!Y100/Quarterly!Y99)^4)-1","v":0.13761794413088158},"--",{"$f":"((Quarterly!AA100/Quarterly!AA99)^4)-1","v":-0.22157779112226894},{"$f":"((Quarterly!AB100/Quarterly!AB99)^4)-1","v":0.13586778888234075},"--","--","--","--","--","--","--","--","--","--",{"$f":"((Quarterly!AM100/Quarterly!AM99)^4)-1","v":1.2443247583068029E-2},{"$f":"((Quarterly!AN100/Quarterly!AN99)^4)-1","v":2.7972040638415185E-2},"--","--",{"$f":"Quarterly!AQ100-Quarterly!AQ99","v":2.7333333333333414},"--","--",{"$f":"Quarterly!AT100-Quarterly!AT99","v":1.0666666666666771},"--","--",{"$f":"Quarterly!AW100-Quarterly!AW99","v":3.6999999999999957},{"$f":"Quarterly!AX100-Quarterly!AX99","v":3.2666666666666728},{"$f":"Quarterly!AY100-Quarterly!AY99","v":-4.2000000000000028},{"$f":"Quarterly!AZ100-Quarterly!AZ99","v":4.1333333333333329},{"$f":"Quarterly!BA100-Quarterly!BA99","v":0.80000000000000426},"--","--","--","--",{"$f":"((Quarterly!BF100/Quarterly!BF99)^4)-1","v":7.1385957801237465E-2},{"$f":"((Quarterly!BG100/Quarterly!BG99)^4)-1","v":-4.9078850806417273E-2},{"$f":"((Quarterly!BH100/Quarterly!BH99)^4)-1","v":-5.2823856821258008E-3},{"$f":"((Quarterly!BI100/Quarterly!BI99)^4)-1","v":0.12664909939872993},{"$f":"((Quarterly!BJ100/Quarterly!BJ99)^4)-1","v":-0.18784922043673136},"--",null,"--","--",null,null,null,null,null,{"$f":"((Quarterly!BT100/Quarterly!BT99)^4)-1","v":2.7630025631011357E-2},{"$f":"Quarterly!BU100-Quarterly!BU99","v":0.14528999999999925},{"$f":"Quarterly!BV100-Quarterly!BV99","v":0.20991000000000071},{"$f":"((Quarterly!BW100/Quarterly!BW99)^4)-1","v":0.15259758974529891},{"$f":"((Quarterly!BX100/Quarterly!BX99)^4)-1","v":-0.44056029681971531},{"$f":"((Quarterly!BY100/Quarterly!BY99)^4)-1","v":-0.26242085643529967},"--",{"$f":"((Quarterly!CA100/Quarterly!CA99)^4)-1","v":-0.44114809686243139},{"$f":"((Quarterly!CB100/Quarterly!CB99)^4)-1","v":-0.27166404370666564},{"$f":"((Quarterly!CC100/Quarterly!CC99)^4)-1","v":-0.22117706931918557},"--","--",null,"--","--",null,{"$f":"((Quarterly!CJ100/Quarterly!CJ99)^4)-1","v":-0.39817081132257737},{"$f":"((Quarterly!CK100/Quarterly!CK99)^4)-1","v":7.806725128374481E-2},{"$f":"((Quarterly!CL100/Quarterly!CL99)^4)-1","v":3.6515009610901261E-2},{"$f":"((Quarterly!CM100/Quarterly!CM99)^4)-1","v":-0.325448533020961},{"$f":"((Quarterly!CN100/Quarterly!CN99)^4)-1","v":-9.447567128992862E-4},{"$f":"((Quarterly!CO100/Quarterly!CO99)^4)-1","v":-9.8501487814589117E-2},{"$f":"((Quarterly!CP100/Quarterly!CP99)^4)-1","v":7.016658682771082E-2},{"$f":"((Quarterly!CQ100/Quarterly!CQ99)^4)-1","v":8.8003131336131801E-3},{"$f":"((Quarterly!CR100/Quarterly!CR99)^4)-1","v":0.15240618763137603},{"$f":"Quarterly!CS100-Quarterly!CS99","v":5.6666666666666572},"--",null,null,null,null,null,{"$f":"((Quarterly!CZ100/Quarterly!CZ99)^4)-1","v":8.6041069631967781E-2},{"$f":"((Quarterly!DA100/Quarterly!DA99)^4)-1","v":9.1453928315937016E-2},null,null,null,null,null,{"$f":"((Quarterly!DG100/Quarterly!DG99)^4)-1","v":1.3123799245312151E-2},{"$f":"((Quarterly!DH100-Quarterly!DH99)*60)","v":-1.9999999999998863},{"$f":"Quarterly!DI100-Quarterly!DI99","v":0.10000000000000142},"--",{"$f":"(Quarterly!DK100-Quarterly!DK99)*100","v":-3.3333333333334103},{"$f":"((Quarterly!DL100/Quarterly!DL99)^4)-1","v":2.6521412190988469E-2},null,null,null,{"$f":"((Quarterly!DP100/Quarterly!DP99)^4)-1","v":1.0489074079849336E-2},null,null,null,"--",{"$f":"Quarterly!DU100-Quarterly!DU99","v":-0.23333333333333428},"--","--","--","--","--","--","--","--",null,null,null,null,null,{"$f":"((Quarterly!EI100/Quarterly!EI99)^4)-1","v":-4.1826596574954911E-2},{"$f":"((Quarterly!EJ100/Quarterly!EJ99)^4)-1","v":-1.4256287853770977E-2},{"$f":"((Quarterly!EK100/Quarterly!EK99)^4)-1","v":-4.133140162001725E-3},null,null,null,null,null,{"$f":"((Quarterly!EQ100/Quarterly!EQ99)^4)-1","v":9.3279858565621376E-2},{"$f":"((Quarterly!ER100/Quarterly!ER99)^4)-1","v":9.1380064007429596E-2},{"$f":"((Quarterly!ES100/Quarterly!ES99)^4)-1","v":9.6427625080095725E-2},null,null,null,null,null,{"$f":"(Quarterly!EY100-Quarterly!EY99)*100","v":-28.333333333333499},{"$f":"(Quarterly!EZ100-Quarterly!EZ99)*100","v":121.00000000000044},{"$f":"(Quarterly!FA100-Quarterly!FA99)*100","v":82.000000000000028},{"$f":"(Quarterly!FB100-Quarterly!FB99)*100","v":52.333333333333698},-29.66666666666633,{"$f":"(Quarterly!FD100-Quarterly!FD99)*100","v":108.33333333333303},{"$f":"(Quarterly!FE100-Quarterly!FE99)*100","v":51.666666666666572},{"$f":"(Quarterly!FF100-Quarterly!FF99)*100","v":100.6666666666666},{"$f":"(Quarterly!FG100-Quarterly!FG99)*100","v":112.33333333333313},{"$f":"(Quarterly!FH100-Quarterly!FH99)*100","v":99.333333333333229},{"$f":"(Quarterly!FI100-Quarterly!FI99)*100","v":79.000000000000085},-21.666666666666515,null,null,null,null,null,{"$f":"((Quarterly!FP100/Quarterly!FP99)^4)-1","v":1.7314641776332573E-2},{"$f":"((Quarterly!FQ100/Quarterly!FQ99)^4)-1","v":0.33285763179181949},"--","--",{"$f":"((Quarterly!FT100/Quarterly!FT99)^4)-1","v":0.25899075332095833},{"$f":"((Quarterly!FU100/Quarterly!FU99)^4)-1","v":0.27993219644326262},"--","--","--",null,null,null,null,null,{"$f":"((Quarterly!GD100/Quarterly!GD99)^4)-1","v":-6.8350220883836355E-2},"--","--","--",{"$f":"((Quarterly!GH101/Quarterly!GH100)^4)-1","v":{"$error":"#DIV/0!"}},"--","--","--","--"]
["81'Q3",{"$f":"((Quarterly!B101/Quarterly!B100)^4)-1","v":0.12403906468654391},{"$f":"((Quarterly!C101/Quarterly!C100)^4)-1","v":4.6696170438190743E-2},{"$f":"((Quarterly!D101/Quarterly!D100)^4)-1","v":3.0958563977709908E-3},{"$f":"((Quarterly!E101/Quarterly!E100)^4)-1","v":1.619581299852868E-2},{"$f":"((Quarterly!F101/Quarterly!F100)^4)-1","v":0.12733055105206548},{"$f":"((Quarterly!G101/Quarterly!G100)^4)-1","v":8.8803521586384715E-3},{"$f":"((Quarterly!H101/Quarterly!H100)^4)-1","v":1.0286007465189595E-2},{"$f":"((Quarterly!I101/Quarterly!I100)^4)-1","v":9.45761300388821E-2},{"$f":"((Quarterly!J101/Quarterly!J100)^4)-1","v":7.1877560636556925E-2},{"$f":"((Quarterly!K101/Quarterly!K100)^4)-1","v":-0.27525929022232953},{"$f":"((Quarterly!L101-Quarterly!L100))","v":47.742000000000004},{"$f":"((Quarterly!M101/Quarterly!M100)^4)-1","v":-4.4865049610546381E-2},{"$f":"((Quarterly!N101/Quarterly!N100)^4)-1","v":-8.2368824557732201E-2},{"$f":"((Quarterly!O101/Quarterly!O100)^4)-1","v":-0.98529995692899108},{"$f":"((Quarterly!P101/Quarterly!P100)^4)-1","v":-1.5244927009130493E-2},{"$f":"((Quarterly!Q101/Quarterly!Q100)^4)-1","v":0.42643826185363998},null,null,null,null,null,{"$f":"((Quarterly!W101/Quarterly!W100)^4)-1","v":-4.0603797516439721E-2},{"$f":"((Quarterly!X101/Quarterly!X100)^4)-1","v":6.6833518595681429E-3},{"$f":"((Quarterly!Y101/Quarterly!Y100)^4)-1","v":0.1556038450476116},"--",{"$f":"((Quarterly!AA101/Quarterly!AA100)^4)-1","v":9.5155402852315829E-2},{"$f":"((Quarterly!AB101/Quarterly!AB100)^4)-1","v":0.38742332419559733},"--","--","--","--","--","--","--","--","--","--",{"$f":"((Quarterly!AM101/Quarterly!AM100)^4)-1","v":3.7432649088718906E-2},{"$f":"((Quarterly!AN101/Quarterly!AN100)^4)-1","v":-5.3664094872735157E-3},"--","--",{"$f":"Quarterly!AQ101-Quarterly!AQ100","v":-6.1000000000000014},"--","--",{"$f":"Quarterly!AT101-Quarterly!AT100","v":-4.2333333333333343},"--","--",{"$f":"Quarterly!AW101-Quarterly!AW100","v":-2.9666666666666686},{"$f":"Quarterly!AX101-Quarterly!AX100","v":-7.6000000000000085},{"$f":"Quarterly!AY101-Quarterly!AY100","v":-2.9666666666666544},{"$f":"Quarterly!AZ101-Quarterly!AZ100","v":-9.0000000000000071},{"$f":"Quarterly!BA101-Quarterly!BA100","v":-2.9666666666666686},"--","--","--","--",{"$f":"((Quarterly!BF101/Quarterly!BF100)^4)-1","v":8.9595766154437761E-2},{"$f":"((Quarterly!BG101/Quarterly!BG100)^4)-1","v":3.4215825138774969E-2},{"$f":"((Quarterly!BH101/Quarterly!BH100)^4)-1","v":5.3652941443442792E-3},{"$f":"((Quarterly!BI101/Quarterly!BI100)^4)-1","v":5.3504781387541556E-2},{"$f":"((Quarterly!BJ101/Quarterly!BJ100)^4)-1","v":0.17928958630140812},"--",null,"--","--",null,null,null,null,null,{"$f":"((Quarterly!BT101/Quarterly!BT100)^4)-1","v":2.612770624341243E-2},{"$f":"Quarterly!BU101-Quarterly!BU100","v":-9.853999999999985E-2},{"$f":"Quarterly!BV101-Quarterly!BV100","v":-0.12706000000000017},{"$f":"((Quarterly!BW101/Quarterly!BW100)^4)-1","v":0.15948743076525185},{"$f":"((Quarterly!BX101/Quarterly!BX100)^4)-1","v":-0.55707703712018319},{"$f":"((Quarterly!BY101/Quarterly!BY100)^4)-1","v":-0.59052265768209011},"--",{"$f":"((Quarterly!CA101/Quarterly!CA100)^4)-1","v":0.44981144052669597},{"$f":"((Quarterly!CB101/Quarterly!CB100)^4)-1","v":0.24630339994342365},{"$f":"((Quarterly!CC101/Quarterly!CC100)^4)-1","v":0.18584340471018401},"--","--",null,"--","--",null,{"$f":"((Quarterly!CJ101/Quarterly!CJ100)^4)-1","v":-0.48197954956316047},{"$f":"((Quarterly!CK101/Quarterly!CK100)^4)-1","v":0.15979689406034381},{"$f":"((Quarterly!CL101/Quarterly!CL100)^4)-1","v":0.89574952592655532},{"$f":"((Quarterly!CM101/Quarterly!CM100)^4)-1","v":-0.53881701195308063},{"$f":"((Quarterly!CN101/Quarterly!CN100)^4)-1","v":8.4357107979361023E-2},{"$f":"((Quarterly!CO101/Quarterly!CO100)^4)-1","v":-0.13212074304793364},{"$f":"((Quarterly!CP101/Quarterly!CP100)^4)-1","v":6.1641864517832046E-2},{"$f":"((Quarterly!CQ101/Quarterly!CQ100)^4)-1","v":1.0647136523547207E-2},{"$f":"((Quarterly!CR101/Quarterly!CR100)^4)-1","v":0.11785478373419989},{"$f":"Quarterly!CS101-Quarterly!CS100","v":0.86666666666667425},"--",null,null,null,null,null,{"$f":"((Quarterly!CZ101/Quarterly!CZ100)^4)-1","v":0.11614066029075776},{"$f":"((Quarterly!DA101/Quarterly!DA100)^4)-1","v":0.14216141054940268},null,null,null,null,null,{"$f":"((Quarterly!DG101/Quarterly!DG100)^4)-1","v":-1.8583037955132164E-3},{"$f":"((Quarterly!DH101-Quarterly!DH100)*60)","v":-7.9999999999999716},{"$f":"Quarterly!DI101-Quarterly!DI100","v":-0.36666666666666714},"--",{"$f":"(Quarterly!DK101-Quarterly!DK100)*100","v":1.7763568394002505E-13},{"$f":"((Quarterly!DL101/Quarterly!DL100)^4)-1","v":-1.4920731005657606E-3},null,null,null,{"$f":"((Quarterly!DP101/Quarterly!DP100)^4)-1","v":8.5067119468706931E-3},null,null,null,"--",{"$f":"Quarterly!DU101-Quarterly!DU100","v":6.6666666666668206E-2},"--","--","--","--","--","--","--","--",null,null,null,null,null,{"$f":"((Quarterly!EI101/Quarterly!EI100)^4)-1","v":2.9468637296781841E-2},{"$f":"((Quarterly!EJ101/Quarterly!EJ100)^4)-1","v":2.6479140901715548E-2},{"$f":"((Quarterly!EK101/Quarterly!EK100)^4)-1","v":2.6947867509784729E-2},null,null,null,null,null,{"$f":"((Quarterly!EQ101/Quarterly!EQ100)^4)-1","v":2.7414450339961371E-2},{"$f":"((Quarterly!ER101/Quarterly!ER100)^4)-1","v":5.645690959670957E-2},{"$f":"((Quarterly!ES101/Quarterly!ES100)^4)-1","v":7.6018099436686581E-2},null,null,null,null,null,{"$f":"(Quarterly!EY101-Quarterly!EY100)*100","v":139.33333333333343},{"$f":"(Quarterly!EZ101-Quarterly!EZ100)*100","v":-20.33333333333367},{"$f":"(Quarterly!FA101-Quarterly!FA100)*100","v":93.666666666666742},{"$f":"(Quarterly!FB101-Quarterly!FB100)*100","v":70.666666666666885},-22.999999999999858,{"$f":"(Quarterly!FD101-Quarterly!FD100)*100","v":120.00000000000028},{"$f":"(Quarterly!FE101-Quarterly!FE100)*100","v":14.66666666666665},{"$f":"(Quarterly!FF101-Quarterly!FF100)*100","v":119.33333333333316},{"$f":"(Quarterly!FG101-Quarterly!FG100)*100","v":132.3333333333336},{"$f":"(Quarterly!FH101-Quarterly!FH100)*100","v":123.66666666666681},{"$f":"(Quarterly!FI101-Quarterly!FI100)*100","v":109.66666666666657},-9.6666666666665861,null,null,null,null,null,{"$f":"((Quarterly!FP101/Quarterly!FP100)^4)-1","v":4.3631655628940225E-2},{"$f":"((Quarterly!FQ101/Quarterly!FQ100)^4)-1","v":0.13494850793444391},"--","--",{"$f":"((Quarterly!FT101/Quarterly!FT100)^4)-1","v":0.21728976203774253},{"$f":"((Quarterly!FU101/Quarterly!FU100)^4)-1","v":0.22066359287983928},"--","--","--",null,null,null,null,null,{"$f":"((Quarterly!GD101/Quarterly!GD100)^4)-1","v":-0.13538467044981284},"--","--","--",{"$f":"((Quarterly!GH102/Quarterly!GH101)^4)-1","v":{"$error":"#DIV/0!"}},"--","--","--","--"]
["81'Q4",{"$f":"((Quarterly!B102/Quarterly!B101)^4)-1","v":2.7675010232867781E-2},{"$f":"((Quarterly!C102/Quarterly!C101)^4)-1","v":-4.5854975187104019E-2},{"$f":"((Quarterly!D102/Quarterly!D101)^4)-1","v":-2.0876029967947685E-2},{"$f":"((Quarterly!E102/Quarterly!E101)^4)-1","v":-2.9666107742589709E-2},{"$f":"((Quarterly!F102/Quarterly!F101)^4)-1","v":-0.2578053049001241},{"$f":"((Quarterly!G102/Quarterly!G101)^4)-1","v":1.5427184805674621E-2},{"$f":"((Quarterly!H102/Quarterly!H101)^4)-1","v":-2.6344305435062165E-2},{"$f":"((Quarterly!I102/Quarterly!I101)^4)-1","v":9.3617528159954055E-2},{"$f":"((Quarterly!J102/Quarterly!J101)^4)-1","v":4.6999154270706001E-2},{"$f":"((Quarterly!K102/Quarterly!K101)^4)-1","v":-0.35121168985326712},{"$f":"((Quarterly!L102-Quarterly!L101))","v":-31},{"$f":"((Quarterly!M102/Quarterly!M101)^4)-1","v":0.11973657530750192},{"$f":"((Quarterly!N102/Quarterly!N101)^4)-1","v":1.8662773100462937E-2},{"$f":"((Quarterly!O102/Quarterly!O101)^4)-1","v":127.19582881771154},{"$f":"((Quarterly!P102/Quarterly!P101)^4)-1","v":4.5822723618810457E-2},{"$f":"((Quarterly!Q102/Quarterly!Q101)^4)-1","v":2.5407908802243622},null,null,null,null,null,{"$f":"((Quarterly!W102/Quarterly!W101)^4)-1","v":-0.12869392717142158},{"$f":"((Quarterly!X102/Quarterly!X101)^4)-1","v":-0.11148338475866781},{"$f":"((Quarterly!Y102/Quarterly!Y101)^4)-1","v":0.12692055560977633},"--",{"$f":"((Quarterly!AA102/Quarterly!AA101)^4)-1","v":-7.7117404900263753E-2},{"$f":"((Quarterly!AB102/Quarterly!AB101)^4)-1","v":-5.0099076608443815E-2},"--","--","--","--","--","--","--","--","--","--",{"$f":"((Quarterly!AM102/Quarterly!AM101)^4)-1","v":-8.6083966545331458E-2},{"$f":"((Quarterly!AN102/Quarterly!AN101)^4)-1","v":-0.10383809772778574},"--","--",{"$f":"Quarterly!AQ102-Quarterly!AQ101","v":-7.8666666666666742},"--","--",{"$f":"Quarterly!AT102-Quarterly!AT101","v":-8.9666666666666757},"--","--",{"$f":"Quarterly!AW102-Quarterly!AW101","v":-1.7333333333333414},{"$f":"Quarterly!AX102-Quarterly!AX101","v":-8.2999999999999972},{"$f":"Quarterly!AY102-Quarterly!AY101","v":-9.2333333333333343},{"$f":"Quarterly!AZ102-Quarterly!AZ101","v":-9.36666666666666},{"$f":"Quarterly!BA102-Quarterly!BA101","v":-7},"--","--","--","--",{"$f":"((Quarterly!BF102/Quarterly!BF101)^4)-1","v":6.3731896803398635E-2},{"$f":"((Quarterly!BG102/Quarterly!BG101)^4)-1","v":-4.6526013235282604E-2},{"$f":"((Quarterly!BH102/Quarterly!BH101)^4)-1","v":-6.8032054898012895E-3},{"$f":"((Quarterly!BI102/Quarterly!BI101)^4)-1","v":0.11567008334094453},{"$f":"((Quarterly!BJ102/Quarterly!BJ101)^4)-1","v":-0.20646224281701098},"--",null,"--","--",null,null,null,null,null,{"$f":"((Quarterly!BT102/Quarterly!BT101)^4)-1","v":9.5748588023909509E-3},{"$f":"Quarterly!BU102-Quarterly!BU101","v":6.486000000000125E-2},{"$f":"Quarterly!BV102-Quarterly!BV101","v":0.13025999999999982},{"$f":"((Quarterly!BW102/Quarterly!BW101)^4)-1","v":0.14404840305477218},{"$f":"((Quarterly!BX102/Quarterly!BX101)^4)-1","v":-0.32638459461880531},{"$f":"((Quarterly!BY102/Quarterly!BY101)^4)-1","v":-0.47370402106254861},"--",{"$f":"((Quarterly!CA102/Quarterly!CA101)^4)-1","v":-0.55697382260084838},{"$f":"((Quarterly!CB102/Quarterly!CB101)^4)-1","v":-9.1264157908251931E-2},{"$f":"((Quarterly!CC102/Quarterly!CC101)^4)-1","v":2.616917997024415E-2},"--","--",null,"--","--",null,{"$f":"((Quarterly!CJ102/Quarterly!CJ101)^4)-1","v":0.17819710026428082},{"$f":"((Quarterly!CK102/Quarterly!CK101)^4)-1","v":5.4194347788302455E-2},{"$f":"((Quarterly!CL102/Quarterly!CL101)^4)-1","v":0.36645563522641567},{"$f":"((Quarterly!CM102/Quarterly!CM101)^4)-1","v":-0.51296625036151733},{"$f":"((Quarterly!CN102/Quarterly!CN101)^4)-1","v":7.9115264974238819E-3},{"$f":"((Quarterly!CO102/Quarterly!CO101)^4)-1","v":-0.1134588124886865},{"$f":"((Quarterly!CP102/Quarterly!CP101)^4)-1","v":5.2257311315874189E-2},{"$f":"((Quarterly!CQ102/Quarterly!CQ101)^4)-1","v":1.0975062844823302E-2},{"$f":"((Quarterly!CR102/Quarterly!CR101)^4)-1","v":8.7274422456532275E-2},{"$f":"Quarterly!CS102-Quarterly!CS101","v":-9.0999999999999943},"--",null,null,null,null,null,{"$f":"((Quarterly!CZ102/Quarterly!CZ101)^4)-1","v":6.6631942828261792E-2},{"$f":"((Quarterly!DA102/Quarterly!DA101)^4)-1","v":8.0157988204217823E-2},null,null,null,null,null,{"$f":"((Quarterly!DG102/Quarterly!DG101)^4)-1","v":-3.8501068187075216E-2},{"$f":"((Quarterly!DH102-Quarterly!DH101)*60)","v":-6.0000000000000853},{"$f":"Quarterly!DI102-Quarterly!DI101","v":6.6666666666662877E-2},"--",{"$f":"(Quarterly!DK102-Quarterly!DK101)*100","v":83.3333333333333},{"$f":"((Quarterly!DL102/Quarterly!DL101)^4)-1","v":-7.2406526949090333E-2},null,null,null,{"$f":"((Quarterly!DP102/Quarterly!DP101)^4)-1","v":-1.7405892541014323E-2},null,null,null,"--",{"$f":"Quarterly!DU102-Quarterly!DU101","v":-0.16666666666666696},"--","--","--","--","--","--","--","--",null,null,null,null,null,{"$f":"((Quarterly!EI102/Quarterly!EI101)^4)-1","v":-8.3053146583473514E-2},{"$f":"((Quarterly!EJ102/Quarterly!EJ101)^4)-1","v":-5.6031415738184709E-2},{"$f":"((Quarterly!EK102/Quarterly!EK101)^4)-1","v":-3.4659770450320315E-2},null,null,null,null,null,{"$f":"((Quarterly!EQ102/Quarterly!EQ101)^4)-1","v":-4.0370007368520922E-3},{"$f":"((Quarterly!ER102/Quarterly!ER101)^4)-1","v":7.3259371235300241E-2},{"$f":"((Quarterly!ES102/Quarterly!ES101)^4)-1","v":8.6438072736153559E-2},null,null,null,null,null,{"$f":"(Quarterly!EY102-Quarterly!EY101)*100","v":-331.00000000000023},{"$f":"(Quarterly!EZ102-Quarterly!EZ101)*100","v":-398.99999999999983},{"$f":"(Quarterly!FA102-Quarterly!FA101)*100","v":-30.333333333333456},{"$f":"(Quarterly!FB102-Quarterly!FB101)*100","v":20.666666666666345},50.999999999999801,{"$f":"(Quarterly!FD102-Quarterly!FD101)*100","v":30.666666666666842},{"$f":"(Quarterly!FE102-Quarterly!FE101)*100","v":-330.33333333333326},{"$f":"(Quarterly!FF102-Quarterly!FF101)*100","v":-277.33333333333297},{"$f":"(Quarterly!FG102-Quarterly!FG101)*100","v":-212.66666666666669},{"$f":"(Quarterly!FH102-Quarterly!FH101)*100","v":-129.66666666666669},{"$f":"(Quarterly!FI102-Quarterly!FI101)*100","v":-75.999999999999972},201.333333333333,null,null,null,null,null,{"$f":"((Quarterly!FP102/Quarterly!FP101)^4)-1","v":-6.3889573069624062E-2},{"$f":"((Quarterly!FQ102/Quarterly!FQ101)^4)-1","v":-5.8959501615815979E-2},"--","--",{"$f":"((Quarterly!FT102/Quarterly!FT101)^4)-1","v":-5.5340031157069092E-2},{"$f":"((Quarterly!FU102/Quarterly!FU101)^4)-1","v":-0.1235406272248416},"--","--","--",null,null,null,null,null,{"$f":"((Quarterly!GD102/Quarterly!GD101)^4)-1","v":-7.204174593228585E-2},"--","--","--",{"$f":"((Quarterly!GH103/Quarterly!GH102)^4)-1","v":{"$error":"#DIV/0!"}},"--","--","--","--"]
["82'Q1",{"$f":"((Quarterly!B103/Quarterly!B102)^4)-1","v":-1.1796871485798999E-2},{"$f":"((Quarterly!C103/Quarterly!C102)^4)-1","v":-6.5250532029430208E-2},{"$f":"((Quarterly!D103/Quarterly!D102)^4)-1","v":-1.3927793558107915E-2},{"$f":"((Quarterly!E103/Quarterly!E102)^4)-1","v":2.6827352394589665E-2},{"$f":"((Quarterly!F103/Quarterly!F102)^4)-1","v":0.13444706636216952},{"$f":"((Quarterly!G103/Quarterly!G102)^4)-1","v":7.4291586122476883E-3},{"$f":"((Quarterly!H103/Quarterly!H102)^4)-1","v":2.6661179523531864E-2},{"$f":"((Quarterly!I103/Quarterly!I102)^4)-1","v":-0.10018057982255957},{"$f":"((Quarterly!J103/Quarterly!J102)^4)-1","v":-0.26568658785975674},{"$f":"((Quarterly!K103/Quarterly!K102)^4)-1","v":-0.2129736930031435},{"$f":"((Quarterly!L103-Quarterly!L102))","v":-62.180999999999997},{"$f":"((Quarterly!M103/Quarterly!M102)^4)-1","v":-0.10924814550800421},{"$f":"((Quarterly!N103/Quarterly!N102)^4)-1","v":-0.16248528463660517},{"$f":"((Quarterly!O103/Quarterly!O102)^4)-1","v":9.0801344557771504},{"$f":"((Quarterly!P103/Quarterly!P102)^4)-1","v":-4.1523037824212627E-3},{"$f":"((Quarterly!Q103/Quarterly!Q102)^4)-1","v":0.91030734840221794},null,null,null,null,null,{"$f":"((Quarterly!W103/Quarterly!W102)^4)-1","v":-0.11834243069996642},{"$f":"((Quarterly!X103/Quarterly!X102)^4)-1","v":-0.10367578374864672},{"$f":"((Quarterly!Y103/Quarterly!Y102)^4)-1","v":0.17436785423495316},"--",{"$f":"((Quarterly!AA103/Quarterly!AA102)^4)-1","v":-0.36445118043793268},{"$f":"((Quarterly!AB103/Quarterly!AB102)^4)-1","v":-0.28042558974955079},"--","--","--","--","--","--","--","--","--","--",{"$f":"((Quarterly!AM103/Quarterly!AM102)^4)-1","v":-7.9682704435432128E-2},{"$f":"((Quarterly!AN103/Quarterly!AN102)^4)-1","v":-9.6423186256028193E-2},"--","--",{"$f":"Quarterly!AQ103-Quarterly!AQ102","v":-0.19999999999999574},"--","--",{"$f":"Quarterly!AT103-Quarterly!AT102","v":-1.1999999999999957},"--","--",{"$f":"Quarterly!AW103-Quarterly!AW102","v":-8.8999999999999915},{"$f":"Quarterly!AX103-Quarterly!AX102","v":2.2666666666666657},{"$f":"Quarterly!AY103-Quarterly!AY102","v":-13.70000000000001},{"$f":"Quarterly!AZ103-Quarterly!AZ102","v":1.43333333333333},{"$f":"Quarterly!BA103-Quarterly!BA102","v":-0.70000000000000284},"--","--","--","--",{"$f":"((Quarterly!BF103/Quarterly!BF102)^4)-1","v":0.10715998311492481},{"$f":"((Quarterly!BG103/Quarterly!BG102)^4)-1","v":-2.8391581212746875E-2},{"$f":"((Quarterly!BH103/Quarterly!BH102)^4)-1","v":5.5048920624591435E-2},{"$f":"((Quarterly!BI103/Quarterly!BI102)^4)-1","v":0.13952198442047292},{"$f":"((Quarterly!BJ103/Quarterly!BJ102)^4)-1","v":-0.35903542665647858},"--",null,"--","--",null,null,null,null,null,{"$f":"((Quarterly!BT103/Quarterly!BT102)^4)-1","v":1.7522699778667716E-2},{"$f":"Quarterly!BU103-Quarterly!BU102","v":8.0849999999999866E-2},{"$f":"Quarterly!BV103-Quarterly!BV102","v":0.12286000000000108},{"$f":"((Quarterly!BW103/Quarterly!BW102)^4)-1","v":0.17965999661108945},{"$f":"((Quarterly!BX103/Quarterly!BX102)^4)-1","v":3.0885763802972033E-2},{"$f":"((Quarterly!BY103/Quarterly!BY102)^4)-1","v":0.44199418830652393},"--",{"$f":"((Quarterly!CA103/Quarterly!CA102)^4)-1","v":0.70542576489828579},{"$f":"((Quarterly!CB103/Quarterly!CB102)^4)-1","v":-0.27955454191909779},{"$f":"((Quarterly!CC103/Quarterly!CC102)^4)-1","v":-0.15651580528484776},"--","--",null,"--","--",null,{"$f":"((Quarterly!CJ103/Quarterly!CJ102)^4)-1","v":-0.26359138186381914},{"$f":"((Quarterly!CK103/Quarterly!CK102)^4)-1","v":4.8775338100627508E-2},{"$f":"((Quarterly!CL103/Quarterly!CL102)^4)-1","v":-0.12472798633506221},{"$f":"((Quarterly!CM103/Quarterly!CM102)^4)-1","v":0.22064670979289214},{"$f":"((Quarterly!CN103/Quarterly!CN102)^4)-1","v":4.8837901807368134E-3},{"$f":"((Quarterly!CO103/Quarterly!CO102)^4)-1","v":2.1123965622671159E-2},{"$f":"((Quarterly!CP103/Quarterly!CP102)^4)-1","v":5.4652468214459349E-2},{"$f":"((Quarterly!CQ103/Quarterly!CQ102)^4)-1","v":8.6232876044953777E-3},{"$f":"((Quarterly!CR103/Quarterly!CR102)^4)-1","v":4.4095733223665334E-2},{"$f":"Quarterly!CS103-Quarterly!CS102","v":0.79999999999999716},"--",null,null,null,null,null,{"$f":"((Quarterly!CZ103/Quarterly!CZ102)^4)-1","v":3.6025955319359815E-2},{"$f":"((Quarterly!DA103/Quarterly!DA102)^4)-1","v":4.9898783445486261E-2},null,null,null,null,null,{"$f":"((Quarterly!DG103/Quarterly!DG102)^4)-1","v":-7.4834708170472219E-2},{"$f":"((Quarterly!DH103-Quarterly!DH102)*60)","v":-20.000000000000142},{"$f":"Quarterly!DI103-Quarterly!DI102","v":0},"--",{"$f":"(Quarterly!DK103-Quarterly!DK102)*100","v":59.999999999999964},{"$f":"((Quarterly!DL103/Quarterly!DL102)^4)-1","v":-9.1806937220095586E-2},null,null,null,{"$f":"((Quarterly!DP103/Quarterly!DP102)^4)-1","v":-2.7261727654188772E-2},null,null,null,"--",{"$f":"Quarterly!DU103-Quarterly!DU102","v":0.56666666666666643},"--","--","--","--","--","--","--","--",null,null,null,null,null,{"$f":"((Quarterly!EI103/Quarterly!EI102)^4)-1","v":-0.11593387282723511},{"$f":"((Quarterly!EJ103/Quarterly!EJ102)^4)-1","v":-4.9614470023489399E-2},{"$f":"((Quarterly!EK103/Quarterly!EK102)^4)-1","v":-2.9769824442913762E-2},null,null,null,null,null,{"$f":"((Quarterly!EQ103/Quarterly!EQ102)^4)-1","v":3.5539957546236067E-2},{"$f":"((Quarterly!ER103/Quarterly!ER102)^4)-1","v":5.3247091350524745E-2},{"$f":"((Quarterly!ES103/Quarterly!ES102)^4)-1","v":4.1661131448781363E-2},null,null,null,null,null,{"$f":"(Quarterly!EY103-Quarterly!EY102)*100","v":-74.333333333333229},{"$f":"(Quarterly!EZ103-Quarterly!EZ102)*100","v":64.000000000000057},{"$f":"(Quarterly!FA103-Quarterly!FA102)*100","v":39.333333333333265},{"$f":"(Quarterly!FB103-Quarterly!FB102)*100","v":35.000000000000142},-4.3333333333331225,{"$f":"(Quarterly!FD103-Quarterly!FD102)*100","v":-34.666666666666757},{"$f":"(Quarterly!FE103-Quarterly!FE102)*100","v":106.33333333333326},{"$f":"(Quarterly!FF103-Quarterly!FF102)*100","v":78.666666666666714},{"$f":"(Quarterly!FG103-Quarterly!FG102)*100","v":62.33333333333313},{"$f":"(Quarterly!FH103-Quarterly!FH102)*100","v":25.999999999999979},{"$f":"(Quarterly!FI103-Quarterly!FI102)*100","v":20.666666666666522},-58.000000000000192,null,null,null,null,null,{"$f":"((Quarterly!FP103/Quarterly!FP102)^4)-1","v":5.9343364917057828E-2},{"$f":"((Quarterly!FQ103/Quarterly!FQ102)^4)-1","v":0.15757430673708228},"--","--",{"$f":"((Quarterly!FT103/Quarterly!FT102)^4)-1","v":0.21083654891206938},{"$f":"((Quarterly!FU103/Quarterly!FU102)^4)-1","v":0.14809420671852624},"--","--","--",null,null,null,null,null,{"$f":"((Quarterly!GD103/Quarterly!GD102)^4)-1","v":-0.38446338035911243},"--","--","--",{"$f":"((Quarterly!GH104/Quarterly!GH103)^4)-1","v":{"$error":"#DIV/0!"}},"--","--","--","--"]
["82'Q2",{"$f":"((Quarterly!B104/Quarterly!B103)^4)-1","v":7.2091167697464487E-2},{"$f":"((Quarterly!C104/Quarterly!C103)^4)-1","v":2.1969694023989295E-2},{"$f":"((Quarterly!D104/Quarterly!D103)^4)-1","v":-9.8061857905051841E-4},{"$f":"((Quarterly!E104/Quarterly!E103)^4)-1","v":1.4850495974582101E-2},{"$f":"((Quarterly!F104/Quarterly!F103)^4)-1","v":1.4711043998711038E-2},{"$f":"((Quarterly!G104/Quarterly!G103)^4)-1","v":-6.9146735800454939E-3},{"$f":"((Quarterly!H104/Quarterly!H103)^4)-1","v":2.404067490253059E-2},{"$f":"((Quarterly!I104/Quarterly!I103)^4)-1","v":-0.12130676218176228},{"$f":"((Quarterly!J104/Quarterly!J103)^4)-1","v":-0.27854979022213811},{"$f":"((Quarterly!K104/Quarterly!K103)^4)-1","v":-0.12167720338686061},{"$f":"((Quarterly!L104-Quarterly!L103))","v":24.206},{"$f":"((Quarterly!M104/Quarterly!M103)^4)-1","v":-6.3783284376440874E-2},{"$f":"((Quarterly!N104/Quarterly!N103)^4)-1","v":2.42425409476974E-2},{"$f":"((Quarterly!O104/Quarterly!O103)^4)-1","v":-0.98827757911093617},{"$f":"((Quarterly!P104/Quarterly!P103)^4)-1","v":2.637589929994455E-2},{"$f":"((Quarterly!Q104/Quarterly!Q103)^4)-1","v":0.19758952896723181},null,null,null,null,null,{"$f":"((Quarterly!W104/Quarterly!W103)^4)-1","v":-4.3768950611996704E-2},{"$f":"((Quarterly!X104/Quarterly!X103)^4)-1","v":-7.194922650872948E-2},{"$f":"((Quarterly!Y104/Quarterly!Y103)^4)-1","v":0.19036435149850517},"--",{"$f":"((Quarterly!AA104/Quarterly!AA103)^4)-1","v":3.1540597412966997E-2},{"$f":"((Quarterly!AB104/Quarterly!AB103)^4)-1","v":0.33386796007751585},"--","--","--","--","--","--","--","--","--","--",{"$f":"((Quarterly!AM104/Quarterly!AM103)^4)-1","v":-4.8722085122015035E-2},{"$f":"((Quarterly!AN104/Quarterly!AN103)^4)-1","v":-1.9169721092595515E-2},"--","--",{"$f":"Quarterly!AQ104-Quarterly!AQ103","v":-0.56666666666666998},"--","--",{"$f":"Quarterly!AT104-Quarterly!AT103","v":-4.2666666666666693},"--","--",{"$f":"Quarterly!AW104-Quarterly!AW103","v":-4.0000000000000036},{"$f":"Quarterly!AX104-Quarterly!AX103","v":0.70000000000000284},{"$f":"Quarterly!AY104-Quarterly!AY103","v":-4.2666666666666657},{"$f":"Quarterly!AZ104-Quarterly!AZ103","v":0.26666666666667282},{"$f":"Quarterly!BA104-Quarterly!BA103","v":2.7333333333333343},"--","--","--","--",{"$f":"((Quarterly!BF104/Quarterly!BF103)^4)-1","v":3.5333248019995711E-2},{"$f":"((Quarterly!BG104/Quarterly!BG103)^4)-1","v":8.3264409816703466E-3},{"$f":"((Quarterly!BH104/Quarterly!BH103)^4)-1","v":-7.3144517209796645E-3},{"$f":"((Quarterly!BI104/Quarterly!BI103)^4)-1","v":2.6909075518661396E-2},{"$f":"((Quarterly!BJ104/Quarterly!BJ103)^4)-1","v":-7.1296524408213546E-2},"--",null,"--","--",null,null,null,null,null,{"$f":"((Quarterly!BT104/Quarterly!BT103)^4)-1","v":4.0405982002848617E-2},{"$f":"Quarterly!BU104-Quarterly!BU103","v":6.0529999999999973E-2},{"$f":"Quarterly!BV104-Quarterly!BV103","v":7.5120000000000076E-2},{"$f":"((Quarterly!BW104/Quarterly!BW103)^4)-1","v":0.18139946653076677},{"$f":"((Quarterly!BX104/Quarterly!BX103)^4)-1","v":0.34679861390956956},{"$f":"((Quarterly!BY104/Quarterly!BY103)^4)-1","v":0.48924664253956296},"--",{"$f":"((Quarterly!CA104/Quarterly!CA103)^4)-1","v":-0.16703218891654015},{"$f":"((Quarterly!CB104/Quarterly!CB103)^4)-1","v":-1.9297888906698701E-2},{"$f":"((Quarterly!CC104/Quarterly!CC103)^4)-1","v":6.1582466659086954E-2},"--","--",null,"--","--",null,{"$f":"((Quarterly!CJ104/Quarterly!CJ103)^4)-1","v":-4.963558967962578E-2},{"$f":"((Quarterly!CK104/Quarterly!CK103)^4)-1","v":6.5643511191344039E-2},{"$f":"((Quarterly!CL104/Quarterly!CL103)^4)-1","v":9.171484847310496E-2},{"$f":"((Quarterly!CM104/Quarterly!CM103)^4)-1","v":0.24465452523167719},{"$f":"((Quarterly!CN104/Quarterly!CN103)^4)-1","v":2.3257632153429242E-2},{"$f":"((Quarterly!CO104/Quarterly!CO103)^4)-1","v":-1.6117870339714457E-2},{"$f":"((Quarterly!CP104/Quarterly!CP103)^4)-1","v":4.5523035522786026E-2},{"$f":"((Quarterly!CQ104/Quarterly!CQ103)^4)-1","v":8.7091657250841781E-3},{"$f":"((Quarterly!CR104/Quarterly!CR103)^4)-1","v":9.6630068868293506E-2},{"$f":"Quarterly!CS104-Quarterly!CS103","v":-0.26666666666666572},"--",null,null,null,null,null,{"$f":"((Quarterly!CZ104/Quarterly!CZ103)^4)-1","v":5.9051537435523604E-2},{"$f":"((Quarterly!DA104/Quarterly!DA103)^4)-1","v":7.6101503237649304E-2},null,null,null,null,null,{"$f":"((Quarterly!DG104/Quarterly!DG103)^4)-1","v":-1.7130224858804333E-2},{"$f":"((Quarterly!DH104-Quarterly!DH103)*60)","v":6.0000000000000853},{"$f":"Quarterly!DI104-Quarterly!DI103","v":0.23333333333332718},"--",{"$f":"(Quarterly!DK104-Quarterly!DK103)*100","v":60.000000000000142},{"$f":"((Quarterly!DL104/Quarterly!DL103)^4)-1","v":-8.5036276918242115E-2},null,null,null,{"$f":"((Quarterly!DP104/Quarterly!DP103)^4)-1","v":-2.1013595949066821E-2},null,null,null,"--",{"$f":"Quarterly!DU104-Quarterly!DU103","v":1.2666666666666675},"--","--","--","--","--","--","--","--",null,null,null,null,null,{"$f":"((Quarterly!EI104/Quarterly!EI103)^4)-1","v":-1.8572204327639841E-2},{"$f":"((Quarterly!EJ104/Quarterly!EJ103)^4)-1","v":4.4687139346213378E-3},{"$f":"((Quarterly!EK104/Quarterly!EK103)^4)-1","v":1.4141578801755816E-2},null,null,null,null,null,{"$f":"((Quarterly!EQ104/Quarterly!EQ103)^4)-1","v":4.018076308204499E-3},{"$f":"((Quarterly!ER104/Quarterly!ER103)^4)-1","v":4.6921028720638747E-2},{"$f":"((Quarterly!ES104/Quarterly!ES103)^4)-1","v":4.123174647179062E-2},null,null,null,null,null,{"$f":"(Quarterly!EY104-Quarterly!EY103)*100","v":23.000000000000043},{"$f":"(Quarterly!EZ104-Quarterly!EZ103)*100","v":28.666666666666707},{"$f":"(Quarterly!FA104-Quarterly!FA103)*100","v":-50},{"$f":"(Quarterly!FB104-Quarterly!FB103)*100","v":-25.333333333333385},24.666666666666615,{"$f":"(Quarterly!FD104-Quarterly!FD103)*100","v":-63.000000000000256},{"$f":"(Quarterly!FE104-Quarterly!FE103)*100","v":-39.333333333333265},{"$f":"(Quarterly!FF104-Quarterly!FF103)*100","v":-53.666666666666707},{"$f":"(Quarterly!FG104-Quarterly!FG103)*100","v":-37.666666666666693},{"$f":"(Quarterly!FH104-Quarterly!FH103)*100","v":-33.000000000000007},{"$f":"(Quarterly!FI104-Quarterly!FI103)*100","v":-36.333333333333151},17.333333333333556,null,null,null,null,null,{"$f":"((Quarterly!FP104/Quarterly!FP103)^4)-1","v":0.12368664697768028},{"$f":"((Quarterly!FQ104/Quarterly!FQ103)^4)-1","v":0.10392783320205368},"--","--",{"$f":"((Quarterly!FT104/Quarterly!FT103)^4)-1","v":0.21348651334985536},{"$f":"((Quarterly!FU104/Quarterly!FU103)^4)-1","v":0.15729111661690265},"--","--","--",null,null,null,null,null,{"$f":"((Quarterly!GD104/Quarterly!GD103)^4)-1","v":0.53163901694628657},"--","--","--",{"$f":"((Quarterly!GH105/Quarterly!GH104)^4)-1","v":{"$error":"#DIV/0!"}},"--","--","--","--"]
["82'Q3",{"$f":"((Quarterly!B105/Quarterly!B104)^4)-1","v":4.3673224453189219E-2},{"$f":"((Quarterly!C105/Quarterly!C104)^4)-1","v":-1.4328571828164161E-2},{"$f":"((Quarterly!D105/Quarterly!D104)^4)-1","v":-2.4685021573200072E-2},{"$f":"((Quarterly!E105/Quarterly!E104)^4)-1","v":3.1259667891814891E-2},{"$f":"((Quarterly!F105/Quarterly!F104)^4)-1","v":3.2831035618444915E-2},{"$f":"((Quarterly!G105/Quarterly!G104)^4)-1","v":1.7162490758647841E-2},{"$f":"((Quarterly!H105/Quarterly!H104)^4)-1","v":3.7004397086072949E-2},{"$f":"((Quarterly!I105/Quarterly!I104)^4)-1","v":-0.1114361863121146},{"$f":"((Quarterly!J105/Quarterly!J104)^4)-1","v":-0.24563106397057066},{"$f":"((Quarterly!K105/Quarterly!K104)^4)-1","v":-1.3991913909601306E-2},{"$f":"((Quarterly!L105-Quarterly!L104))","v":12.496},{"$f":"((Quarterly!M105/Quarterly!M104)^4)-1","v":0.19892005278184954},{"$f":"((Quarterly!N105/Quarterly!N104)^4)-1","v":-0.16581857311577108},{"$f":"((Quarterly!O105/Quarterly!O104)^4)-1","v":7070.5348131362744},{"$f":"((Quarterly!P105/Quarterly!P104)^4)-1","v":2.5411870361193634E-2},{"$f":"((Quarterly!Q105/Quarterly!Q104)^4)-1","v":1.5362754459129881},null,null,null,null,null,{"$f":"((Quarterly!W105/Quarterly!W104)^4)-1","v":-5.5082985865021805E-2},{"$f":"((Quarterly!X105/Quarterly!X104)^4)-1","v":-6.9871884250255256E-2},{"$f":"((Quarterly!Y105/Quarterly!Y104)^4)-1","v":0.12361222040825348},"--",{"$f":"((Quarterly!AA105/Quarterly!AA104)^4)-1","v":-9.80285058087077E-2},{"$f":"((Quarterly!AB105/Quarterly!AB104)^4)-1","v":-6.2791399310322515E-2},"--","--","--","--","--","--","--","--","--","--",{"$f":"((Quarterly!AM105/Quarterly!AM104)^4)-1","v":-5.4449449099772229E-2},{"$f":"((Quarterly!AN105/Quarterly!AN104)^4)-1","v":-3.6216968553646645E-2},"--","--",{"$f":"Quarterly!AQ105-Quarterly!AQ104","v":1.2999999999999972},"--","--",{"$f":"Quarterly!AT105-Quarterly!AT104","v":0.86666666666667069},"--","--",{"$f":"Quarterly!AW105-Quarterly!AW104","v":1.6666666666666714},{"$f":"Quarterly!AX105-Quarterly!AX104","v":6.6666666666669983E-2},{"$f":"Quarterly!AY105-Quarterly!AY104","v":1.5},{"$f":"Quarterly!AZ105-Quarterly!AZ104","v":1.4666666666666615},{"$f":"Quarterly!BA105-Quarterly!BA104","v":3.8333333333333286},"--","--","--","--",{"$f":"((Quarterly!BF105/Quarterly!BF104)^4)-1","v":6.3503875038623203E-2},{"$f":"((Quarterly!BG105/Quarterly!BG104)^4)-1","v":7.5782078294246435E-3},{"$f":"((Quarterly!BH105/Quarterly!BH104)^4)-1","v":-7.0591604790589679E-3},{"$f":"((Quarterly!BI105/Quarterly!BI104)^4)-1","v":5.5458090970906815E-2},{"$f":"((Quarterly!BJ105/Quarterly!BJ104)^4)-1","v":-8.9912491409606221E-2},"--",null,"--","--",null,null,null,null,null,{"$f":"((Quarterly!BT105/Quarterly!BT104)^4)-1","v":2.5883661724858786E-2},{"$f":"Quarterly!BU105-Quarterly!BU104","v":-0.10014000000000145},{"$f":"Quarterly!BV105-Quarterly!BV104","v":-8.5560000000000969E-2},{"$f":"((Quarterly!BW105/Quarterly!BW104)^4)-1","v":0.16967469511982247},{"$f":"((Quarterly!BX105/Quarterly!BX104)^4)-1","v":0.93896263659656776},{"$f":"((Quarterly!BY105/Quarterly!BY104)^4)-1","v":0.43075122503394381},"--",{"$f":"((Quarterly!CA105/Quarterly!CA104)^4)-1","v":6.319759030954919E-2},{"$f":"((Quarterly!CB105/Quarterly!CB104)^4)-1","v":-0.14281355959096231},{"$f":"((Quarterly!CC105/Quarterly!CC104)^4)-1","v":-4.9747481344106559E-2},"--","--",null,"--","--",null,{"$f":"((Quarterly!CJ105/Quarterly!CJ104)^4)-1","v":0.78292368533702894},{"$f":"((Quarterly!CK105/Quarterly!CK104)^4)-1","v":6.1042391956845909E-2},{"$f":"((Quarterly!CL105/Quarterly!CL104)^4)-1","v":9.3359778918111758E-4},{"$f":"((Quarterly!CM105/Quarterly!CM104)^4)-1","v":0.4602650593558002},{"$f":"((Quarterly!CN105/Quarterly!CN104)^4)-1","v":2.1567405172491894E-2},{"$f":"((Quarterly!CO105/Quarterly!CO104)^4)-1","v":3.8823597970465418E-3},{"$f":"((Quarterly!CP105/Quarterly!CP104)^4)-1","v":3.0512570512780668E-2},{"$f":"((Quarterly!CQ105/Quarterly!CQ104)^4)-1","v":1.0005024285762998E-2},{"$f":"((Quarterly!CR105/Quarterly!CR104)^4)-1","v":0.12641803496339499},{"$f":"Quarterly!CS105-Quarterly!CS104","v":0.46666666666666856},"--",null,null,null,null,null,{"$f":"((Quarterly!CZ105/Quarterly!CZ104)^4)-1","v":7.1299314985132645E-2},{"$f":"((Quarterly!DA105/Quarterly!DA104)^4)-1","v":6.8792600078007027E-2},null,null,null,null,null,{"$f":"((Quarterly!DG105/Quarterly!DG104)^4)-1","v":-3.7928323524198726E-2},{"$f":"((Quarterly!DH105-Quarterly!DH104)*60)","v":-1.9999999999998863},{"$f":"Quarterly!DI105-Quarterly!DI104","v":6.6666666666662877E-2},"--",{"$f":"(Quarterly!DK105-Quarterly!DK104)*100","v":46.666666666666501},{"$f":"((Quarterly!DL105/Quarterly!DL104)^4)-1","v":-8.7236585586624726E-2},null,null,null,{"$f":"((Quarterly!DP105/Quarterly!DP104)^4)-1","v":-3.0070609120167013E-2},null,null,null,"--",{"$f":"Quarterly!DU105-Quarterly!DU104","v":0.19999999999999929},"--","--","--","--","--","--","--","--",null,null,null,null,null,{"$f":"((Quarterly!EI105/Quarterly!EI104)^4)-1","v":-4.2513690105794533E-2},{"$f":"((Quarterly!EJ105/Quarterly!EJ104)^4)-1","v":-1.7808648893652412E-3},{"$f":"((Quarterly!EK105/Quarterly!EK104)^4)-1","v":1.2701249305767437E-2},null,null,null,null,null,{"$f":"((Quarterly!EQ105/Quarterly!EQ104)^4)-1","v":1.7481515958873706E-2},{"$f":"((Quarterly!ER105/Quarterly!ER104)^4)-1","v":4.3605243378614045E-2},{"$f":"((Quarterly!ES105/Quarterly!ES104)^4)-1","v":4.77325345153925E-2},null,null,null,null,null,{"$f":"(Quarterly!EY105-Quarterly!EY104)*100","v":-178.33333333333314},{"$f":"(Quarterly!EZ105-Quarterly!EZ104)*100","v":-350.66666666666657},{"$f":"(Quarterly!FA105-Quarterly!FA104)*100","v":-75.666666666666771},{"$f":"(Quarterly!FB105-Quarterly!FB104)*100","v":-52.999999999999758},22.666666666667012,{"$f":"(Quarterly!FD105-Quarterly!FD104)*100","v":-58.33333333333286},{"$f":"(Quarterly!FE105-Quarterly!FE104)*100","v":-310.33333333333314},{"$f":"(Quarterly!FF105-Quarterly!FF104)*100","v":-195.66666666666652},{"$f":"(Quarterly!FG105-Quarterly!FG104)*100","v":-151.66666666666657},{"$f":"(Quarterly!FH105-Quarterly!FH104)*100","v":-95.333333333333314},{"$f":"(Quarterly!FI105-Quarterly!FI104)*100","v":-81.333333333333428},114.33333333333309,null,null,null,null,null,{"$f":"((Quarterly!FP105/Quarterly!FP104)^4)-1","v":1.681450637805848E-2},{"$f":"((Quarterly!FQ105/Quarterly!FQ104)^4)-1","v":0.19994479369000073},"--","--",{"$f":"((Quarterly!FT105/Quarterly!FT104)^4)-1","v":0.26623869011492429},{"$f":"((Quarterly!FU105/Quarterly!FU104)^4)-1","v":0.17849863421665524},"--","--","--",null,null,null,null,null,{"$f":"((Quarterly!GD105/Quarterly!GD104)^4)-1","v":-2.6914060379020333E-2},"--","--","--",{"$f":"((Quarterly!GH106/Quarterly!GH105)^4)-1","v":{"$error":"#DIV/0!"}},"--","--","--","--"]
["82'Q4",{"$f":"((Quarterly!B106/Quarterly!B105)^4)-1","v":4.9281169314014273E-2},{"$f":"((Quarterly!C106/Quarterly!C105)^4)-1","v":3.9077916104623966E-3},{"$f":"((Quarterly!D106/Quarterly!D105)^4)-1","v":5.9771178876040887E-2},{"$f":"((Quarterly!E106/Quarterly!E105)^4)-1","v":7.5030096175175975E-2},{"$f":"((Quarterly!F106/Quarterly!F105)^4)-1","v":0.19543994304838908},{"$f":"((Quarterly!G106/Quarterly!G105)^4)-1","v":4.174523375345518E-2},{"$f":"((Quarterly!H106/Quarterly!H105)^4)-1","v":7.9379651366708215E-2},{"$f":"((Quarterly!I106/Quarterly!I105)^4)-1","v":-6.7413480661613789E-2},{"$f":"((Quarterly!J106/Quarterly!J105)^4)-1","v":-0.12999180170837199},{"$f":"((Quarterly!K106/Quarterly!K105)^4)-1","v":0.32448853065333538},{"$f":"((Quarterly!L106-Quarterly!L105))","v":-64.031000000000006},{"$f":"((Quarterly!M106/Quarterly!M105)^4)-1","v":-0.14800420139414627},{"$f":"((Quarterly!N106/Quarterly!N105)^4)-1","v":-0.17096420969933468},{"$f":"((Quarterly!O106/Quarterly!O105)^4)-1","v":8.9997567920478527E-2},{"$f":"((Quarterly!P106/Quarterly!P105)^4)-1","v":6.5445416645225629E-2},{"$f":"((Quarterly!Q106/Quarterly!Q105)^4)-1","v":1.0417924811147286},null,null,null,null,null,{"$f":"((Quarterly!W106/Quarterly!W105)^4)-1","v":-9.8821664074957405E-2},{"$f":"((Quarterly!X106/Quarterly!X105)^4)-1","v":-8.3157324752972883E-2},{"$f":"((Quarterly!Y106/Quarterly!Y105)^4)-1","v":5.4366420312246921E-2},"--",{"$f":"((Quarterly!AA106/Quarterly!AA105)^4)-1","v":-0.12346079336214566},{"$f":"((Quarterly!AB106/Quarterly!AB105)^4)-1","v":-1.417246345838552E-2},"--","--","--","--","--","--","--","--","--","--",{"$f":"((Quarterly!AM106/Quarterly!AM105)^4)-1","v":-7.3101213697228329E-2},{"$f":"((Quarterly!AN106/Quarterly!AN105)^4)-1","v":-8.678264807195224E-2},"--","--",{"$f":"Quarterly!AQ106-Quarterly!AQ105","v":1.9666666666666686},"--","--",{"$f":"Quarterly!AT106-Quarterly!AT105","v":0.73333333333333073},"--","--",{"$f":"Quarterly!AW106-Quarterly!AW105","v":2.033333333333335},{"$f":"Quarterly!AX106-Quarterly!AX105","v":2.7333333333333272},{"$f":"Quarterly!AY106-Quarterly!AY105","v":-1.2666666666666657},{"$f":"Quarterly!AZ106-Quarterly!AZ105","v":2.1000000000000014},{"$f":"Quarterly!BA106-Quarterly!BA105","v":1.6666666666666714},"--","--","--","--",{"$f":"((Quarterly!BF106/Quarterly!BF105)^4)-1","v":5.8080050037222719E-2},{"$f":"((Quarterly!BG106/Quarterly!BG105)^4)-1","v":3.6907229048718238E-2},{"$f":"((Quarterly!BH106/Quarterly!BH105)^4)-1","v":1.2780346310421686E-2},{"$f":"((Quarterly!BI106/Quarterly!BI105)^4)-1","v":2.0320896443319469E-2},{"$f":"((Quarterly!BJ106/Quarterly!BJ105)^4)-1","v":-0.32932861420781434},"--",null,"--","--",null,null,null,null,null,{"$f":"((Quarterly!BT106/Quarterly!BT105)^4)-1","v":2.5492809204153533E-2},{"$f":"Quarterly!BU106-Quarterly!BU105","v":-4.4759999999998357E-2},{"$f":"Quarterly!BV106-Quarterly!BV105","v":-1.4739999999999753E-2},{"$f":"((Quarterly!BW106/Quarterly!BW105)^4)-1","v":0.13717127173004373},{"$f":"((Quarterly!BX106/Quarterly!BX105)^4)-1","v":0.72843258361714147},{"$f":"((Quarterly!BY106/Quarterly!BY105)^4)-1","v":1.3493605036957876},"--",{"$f":"((Quarterly!CA106/Quarterly!CA105)^4)-1","v":0.38933805820695233},{"$f":"((Quarterly!CB106/Quarterly!CB105)^4)-1","v":-0.14626293430991055},{"$f":"((Quarterly!CC106/Quarterly!CC105)^4)-1","v":-1.2779089765347695E-2},"--","--",null,"--","--",null,{"$f":"((Quarterly!CJ106/Quarterly!CJ105)^4)-1","v":1.297778551548519},{"$f":"((Quarterly!CK106/Quarterly!CK105)^4)-1","v":6.5508897042894754E-2},{"$f":"((Quarterly!CL106/Quarterly!CL105)^4)-1","v":-0.31787831093562691},{"$f":"((Quarterly!CM106/Quarterly!CM105)^4)-1","v":1.3886263196547923},{"$f":"((Quarterly!CN106/Quarterly!CN105)^4)-1","v":1.8137853095522072E-2},{"$f":"((Quarterly!CO106/Quarterly!CO105)^4)-1","v":0.37359174727449695},{"$f":"((Quarterly!CP106/Quarterly!CP105)^4)-1","v":4.2113810181280131E-2},{"$f":"((Quarterly!CQ106/Quarterly!CQ105)^4)-1","v":1.0309579132388169E-2},{"$f":"((Quarterly!CR106/Quarterly!CR105)^4)-1","v":6.6412497905687484E-2},{"$f":"Quarterly!CS106-Quarterly!CS105","v":5.7666666666666657},"--",null,null,null,null,null,{"$f":"((Quarterly!CZ106/Quarterly!CZ105)^4)-1","v":1.2347650084246098E-2},{"$f":"((Quarterly!DA106/Quarterly!DA105)^4)-1","v":1.3816721076906235E-2},null,null,null,null,null,{"$f":"((Quarterly!DG106/Quarterly!DG105)^4)-1","v":-5.515892474803219E-2},{"$f":"((Quarterly!DH106-Quarterly!DH105)*60)","v":-7.9999999999999716},{"$f":"Quarterly!DI106-Quarterly!DI105","v":6.6666666666677088E-2},"--",{"$f":"(Quarterly!DK106-Quarterly!DK105)*100","v":76.666666666666572},{"$f":"((Quarterly!DL106/Quarterly!DL105)^4)-1","v":-9.3372059099049554E-2},null,null,null,{"$f":"((Quarterly!DP106/Quarterly!DP105)^4)-1","v":-2.3822758824141199E-2},null,null,null,"--",{"$f":"Quarterly!DU106-Quarterly!DU105","v":1.0666666666666664},"--","--","--","--","--","--","--","--",null,null,null,null,null,{"$f":"((Quarterly!EI106/Quarterly!EI105)^4)-1","v":-5.4371565617329365E-3},{"$f":"((Quarterly!EJ106/Quarterly!EJ105)^4)-1","v":4.4513211156227417E-2},{"$f":"((Quarterly!EK106/Quarterly!EK105)^4)-1","v":4.3944283035406873E-2},null,null,null,null,null,{"$f":"((Quarterly!EQ106/Quarterly!EQ105)^4)-1","v":3.9966644645643701E-3},{"$f":"((Quarterly!ER106/Quarterly!ER105)^4)-1","v":4.862344807517105E-2},{"$f":"((Quarterly!ES106/Quarterly!ES105)^4)-1","v":3.081335751883163E-2},null,null,null,null,null,{"$f":"(Quarterly!EY106-Quarterly!EY105)*100","v":-276.00000000000034},{"$f":"(Quarterly!EZ106-Quarterly!EZ105)*100","v":-172.00000000000006},{"$f":"(Quarterly!FA106-Quarterly!FA105)*100","v":-187.66666666666669},{"$f":"(Quarterly!FB106-Quarterly!FB105)*100","v":-186.00000000000028},1.6666666666664014,{"$f":"(Quarterly!FD106-Quarterly!FD105)*100","v":-215.33333333333377},{"$f":"(Quarterly!FE106-Quarterly!FE105)*100","v":-141.00000000000011},{"$f":"(Quarterly!FF106-Quarterly!FF105)*100","v":-271.00000000000011},{"$f":"(Quarterly!FG106-Quarterly!FG105)*100","v":-274.99999999999983},{"$f":"(Quarterly!FH106-Quarterly!FH105)*100","v":-264.00000000000006},{"$f":"(Quarterly!FI106-Quarterly!FI105)*100","v":-244.99999999999994},26.000000000000171,null,null,null,null,null,{"$f":"((Quarterly!FP106/Quarterly!FP105)^4)-1","v":-5.7592640674662854E-2},{"$f":"((Quarterly!FQ106/Quarterly!FQ105)^4)-1","v":7.2926785497825275E-2},"--","--",{"$f":"((Quarterly!FT106/Quarterly!FT105)^4)-1","v":0.11372140021014054},{"$f":"((Quarterly!FU106/Quarterly!FU105)^4)-1","v":4.6120584875386506E-2},"--","--","--",null,null,null,null,null,{"$f":"((Quarterly!GD106/Quarterly!GD105)^4)-1","v":-8.1805395713382301E-2},"--","--","--",{"$f":"((Quarterly!GH107/Quarterly!GH106)^4)-1","v":{"$error":"#DIV/0!"}},"--","--","--","--"]
["83'Q1",{"$f":"((Quarterly!B107/Quarterly!B106)^4)-1","v":8.7866782835226198E-2},{"$f":"((Quarterly!C107/Quarterly!C106)^4)-1","v":5.3430369359144025E-2},{"$f":"((Quarterly!D107/Quarterly!D106)^4)-1","v":4.5855883366436867E-2},{"$f":"((Quarterly!E107/Quarterly!E106)^4)-1","v":3.9381248333479668E-2},{"$f":"((Quarterly!F107/Quarterly!F106)^4)-1","v":4.0710873337196363E-2},{"$f":"((Quarterly!G107/Quarterly!G106)^4)-1","v":1.2992053547548732E-2},{"$f":"((Quarterly!H107/Quarterly!H106)^4)-1","v":5.0183678292522682E-2},{"$f":"((Quarterly!I107/Quarterly!I106)^4)-1","v":-5.7681918991600689E-2},{"$f":"((Quarterly!J107/Quarterly!J106)^4)-1","v":-4.5150034640610293E-2},{"$f":"((Quarterly!K107/Quarterly!K106)^4)-1","v":0.87536281540924499},{"$f":"((Quarterly!L107-Quarterly!L106))","v":3.919000000000004},{"$f":"((Quarterly!M107/Quarterly!M106)^4)-1","v":9.4788680404609416E-2},{"$f":"((Quarterly!N107/Quarterly!N106)^4)-1","v":6.6223506763054774E-2},{"$f":"((Quarterly!O107/Quarterly!O106)^4)-1","v":0.36872890116118517},{"$f":"((Quarterly!P107/Quarterly!P106)^4)-1","v":3.8857718185298262E-2},{"$f":"((Quarterly!Q107/Quarterly!Q106)^4)-1","v":-5.9906445581105139E-2},null,null,null,null,null,{"$f":"((Quarterly!W107/Quarterly!W106)^4)-1","v":8.4546800952513879E-2},{"$f":"((Quarterly!X107/Quarterly!X106)^4)-1","v":3.7874621347753434E-2},{"$f":"((Quarterly!Y107/Quarterly!Y106)^4)-1","v":1.3457631564523398E-2},"--",{"$f":"((Quarterly!AA107/Quarterly!AA106)^4)-1","v":5.7820826386102864E-2},{"$f":"((Quarterly!AB107/Quarterly!AB106)^4)-1","v":0.44739557011682307},"--","--","--","--","--","--","--","--","--","--",{"$f":"((Quarterly!AM107/Quarterly!AM106)^4)-1","v":4.6627647275735651E-2},{"$f":"((Quarterly!AN107/Quarterly!AN106)^4)-1","v":9.2873970941846906E-2},"--","--",{"$f":"Quarterly!AQ107-Quarterly!AQ106","v":10.966666666666676},"--","--",{"$f":"Quarterly!AT107-Quarterly!AT106","v":11.7},"--","--",{"$f":"Quarterly!AW107-Quarterly!AW106","v":6.6000000000000014},{"$f":"Quarterly!AX107-Quarterly!AX106","v":14.099999999999994},{"$f":"Quarterly!AY107-Quarterly!AY106","v":7.63333333333334},{"$f":"Quarterly!AZ107-Quarterly!AZ106","v":13.900000000000006},{"$f":"Quarterly!BA107-Quarterly!BA106","v":1.7999999999999901},"--","--","--","--",{"$f":"((Quarterly!BF107/Quarterly!BF106)^4)-1","v":4.5046601382723983E-2},{"$f":"((Quarterly!BG107/Quarterly!BG106)^4)-1","v":5.4403530430161551E-2},{"$f":"((Quarterly!BH107/Quarterly!BH106)^4)-1","v":2.1428005107460013E-2},{"$f":"((Quarterly!BI107/Quarterly!BI106)^4)-1","v":-8.7776515613351425E-3},{"$f":"((Quarterly!BJ107/Quarterly!BJ106)^4)-1","v":-2.782297683176338E-2},"--",null,"--","--",null,null,null,null,null,{"$f":"((Quarterly!BT107/Quarterly!BT106)^4)-1","v":2.9834973511543517E-2},{"$f":"Quarterly!BU107-Quarterly!BU106","v":-2.6930000000000121E-2},{"$f":"Quarterly!BV107-Quarterly!BV106","v":-2.5760000000000005E-2},{"$f":"((Quarterly!BW107/Quarterly!BW106)^4)-1","v":0.17238247739905632},{"$f":"((Quarterly!BX107/Quarterly!BX106)^4)-1","v":1.6100594399827739},{"$f":"((Quarterly!BY107/Quarterly!BY106)^4)-1","v":0.88951820100445023},"--",{"$f":"((Quarterly!CA107/Quarterly!CA106)^4)-1","v":-0.11153130465152428},{"$f":"((Quarterly!CB107/Quarterly!CB106)^4)-1","v":-0.27157830156541607},{"$f":"((Quarterly!CC107/Quarterly!CC106)^4)-1","v":-0.22016890071231943},"--","--",null,"--","--",null,{"$f":"((Quarterly!CJ107/Quarterly!CJ106)^4)-1","v":0.56774498311391119},{"$f":"((Quarterly!CK107/Quarterly!CK106)^4)-1","v":5.3492857895148571E-2},{"$f":"((Quarterly!CL107/Quarterly!CL106)^4)-1","v":1.28955714905723E-2},{"$f":"((Quarterly!CM107/Quarterly!CM106)^4)-1","v":1.4604858564835514},{"$f":"((Quarterly!CN107/Quarterly!CN106)^4)-1","v":3.4771613777415444E-2},{"$f":"((Quarterly!CO107/Quarterly!CO106)^4)-1","v":5.1757893360732803},{"$f":"((Quarterly!CP107/Quarterly!CP106)^4)-1","v":6.4122565293124767E-2},{"$f":"((Quarterly!CQ107/Quarterly!CQ106)^4)-1","v":8.2604516459245936E-3},{"$f":"((Quarterly!CR107/Quarterly!CR106)^4)-1","v":7.4723736035171351E-2},{"$f":"Quarterly!CS107-Quarterly!CS106","v":2.7999999999999972},"--",null,null,null,null,null,{"$f":"((Quarterly!CZ107/Quarterly!CZ106)^4)-1","v":2.7257224404904079E-3},{"$f":"((Quarterly!DA107/Quarterly!DA106)^4)-1","v":2.4886470415764528E-2},null,null,null,null,null,{"$f":"((Quarterly!DG107/Quarterly!DG106)^4)-1","v":1.9850511507195634E-2},{"$f":"((Quarterly!DH107-Quarterly!DH106)*60)","v":1.9999999999998863},{"$f":"Quarterly!DI107-Quarterly!DI106","v":-0.33333333333334991},"--",{"$f":"(Quarterly!DK107-Quarterly!DK106)*100","v":-29.999999999999893},{"$f":"((Quarterly!DL107/Quarterly!DL106)^4)-1","v":-1.1331218208165184E-2},null,null,null,{"$f":"((Quarterly!DP107/Quarterly!DP106)^4)-1","v":8.1763291860275089E-3},null,null,null,"--",{"$f":"Quarterly!DU107-Quarterly!DU106","v":0.46666666666666501},"--","--","--","--","--","--","--","--",null,null,null,null,null,{"$f":"((Quarterly!EI107/Quarterly!EI106)^4)-1","v":0.10723810509638176},{"$f":"((Quarterly!EJ107/Quarterly!EJ106)^4)-1","v":7.0685406226148384E-2},{"$f":"((Quarterly!EK107/Quarterly!EK106)^4)-1","v":5.3781705682628411E-2},null,null,null,null,null,{"$f":"((Quarterly!EQ107/Quarterly!EQ106)^4)-1","v":1.3295660455201475E-3},{"$f":"((Quarterly!ER107/Quarterly!ER106)^4)-1","v":1.8481359512128703E-2},{"$f":"((Quarterly!ES107/Quarterly!ES106)^4)-1","v":2.3871628733432404E-2},null,null,null,null,null,{"$f":"(Quarterly!EY107-Quarterly!EY106)*100","v":-107.66666666666644},{"$f":"(Quarterly!EZ107-Quarterly!EZ106)*100","v":-63.333333333333464},{"$f":"(Quarterly!FA107-Quarterly!FA106)*100","v":-3.3333333333331439},{"$f":"(Quarterly!FB107-Quarterly!FB106)*100","v":-55.666666666666664},-52.33333333333352,{"$f":"(Quarterly!FD107-Quarterly!FD106)*100","v":-98.999999999999659},{"$f":"(Quarterly!FE107-Quarterly!FE106)*100","v":20.000000000000018},{"$f":"(Quarterly!FF107-Quarterly!FF106)*100","v":-27.000000000000135},{"$f":"(Quarterly!FG107-Quarterly!FG106)*100","v":-34.000000000000163},{"$f":"(Quarterly!FH107-Quarterly!FH106)*100","v":-34.333333333333371},{"$f":"(Quarterly!FI107-Quarterly!FI106)*100","v":-10.33333333333335},16.666666666666785,null,null,null,null,null,{"$f":"((Quarterly!FP107/Quarterly!FP106)^4)-1","v":-1.3035282800175407E-2},{"$f":"((Quarterly!FQ107/Quarterly!FQ106)^4)-1","v":-4.0427943017648627E-2},"--","--",{"$f":"((Quarterly!FT107/Quarterly!FT106)^4)-1","v":2.5854306281609452E-2},{"$f":"((Quarterly!FU107/Quarterly!FU106)^4)-1","v":-0.10021303924211444},"--","--","--",null,null,null,null,null,{"$f":"((Quarterly!GD107/Quarterly!GD106)^4)-1","v":-0.41107581989670272},"--","--","--",{"$f":"((Quarterly!GH108/Quarterly!GH107)^4)-1","v":{"$error":"#DIV/0!"}},"--","--","--","--"]
["83'Q2",{"$f":"((Quarterly!B108/Quarterly!B107)^4)-1","v":0.1243957113458638},{"$f":"((Quarterly!C108/Quarterly!C107)^4)-1","v":9.4451048803955384E-2},{"$f":"((Quarterly!D108/Quarterly!D107)^4)-1","v":6.0211662196071769E-2},{"$f":"((Quarterly!E108/Quarterly!E107)^4)-1","v":8.1632607315624606E-2},{"$f":"((Quarterly!F108/Quarterly!F107)^4)-1","v":0.32510268543669674},{"$f":"((Quarterly!G108/Quarterly!G107)^4)-1","v":4.7915204170630332E-2},{"$f":"((Quarterly!H108/Quarterly!H107)^4)-1","v":7.6456679993360366E-2},{"$f":"((Quarterly!I108/Quarterly!I107)^4)-1","v":5.7493922910103912E-2},{"$f":"((Quarterly!J108/Quarterly!J107)^4)-1","v":0.19977593152419137},{"$f":"((Quarterly!K108/Quarterly!K107)^4)-1","v":0.56461313371484767},{"$f":"((Quarterly!L108-Quarterly!L107))","v":45.113999999999997},{"$f":"((Quarterly!M108/Quarterly!M107)^4)-1","v":0.34483476678909875},{"$f":"((Quarterly!N108/Quarterly!N107)^4)-1","v":1.213465992174001E-2},{"$f":"((Quarterly!O108/Quarterly!O107)^4)-1","v":6.9975443151298968},{"$f":"((Quarterly!P108/Quarterly!P107)^4)-1","v":4.0966798535776006E-2},{"$f":"((Quarterly!Q108/Quarterly!Q107)^4)-1","v":-0.11310756019197621},null,null,null,null,null,{"$f":"((Quarterly!W108/Quarterly!W107)^4)-1","v":0.11357885761657194},{"$f":"((Quarterly!X108/Quarterly!X107)^4)-1","v":8.5891851425694776E-2},{"$f":"((Quarterly!Y108/Quarterly!Y107)^4)-1","v":-8.7509280075364071E-3},"--",{"$f":"((Quarterly!AA108/Quarterly!AA107)^4)-1","v":0.56477289258070029},{"$f":"((Quarterly!AB108/Quarterly!AB107)^4)-1","v":0.37752043502061916},"--","--","--","--","--","--","--","--","--","--",{"$f":"((Quarterly!AM108/Quarterly!AM107)^4)-1","v":9.1205570030568728E-2},{"$f":"((Quarterly!AN108/Quarterly!AN107)^4)-1","v":0.12315896265902704},"--","--",{"$f":"Quarterly!AQ108-Quarterly!AQ107","v":4.5},"--","--",{"$f":"Quarterly!AT108-Quarterly!AT107","v":5.0333333333333385},"--","--",{"$f":"Quarterly!AW108-Quarterly!AW107","v":5.6000000000000014},{"$f":"Quarterly!AX108-Quarterly!AX107","v":3.9333333333333371},{"$f":"Quarterly!AY108-Quarterly!AY107","v":12.36666666666666},{"$f":"Quarterly!AZ108-Quarterly!AZ107","v":4.1999999999999957},{"$f":"Quarterly!BA108-Quarterly!BA107","v":4.6666666666666643},"--","--","--","--",{"$f":"((Quarterly!BF108/Quarterly!BF107)^4)-1","v":4.0623589398689042E-2},{"$f":"((Quarterly!BG108/Quarterly!BG107)^4)-1","v":9.5287187481899016E-2},{"$f":"((Quarterly!BH108/Quarterly!BH107)^4)-1","v":-8.3994372345836954E-3},{"$f":"((Quarterly!BI108/Quarterly!BI107)^4)-1","v":-4.9974530164594411E-2},{"$f":"((Quarterly!BJ108/Quarterly!BJ107)^4)-1","v":0.69768611366290756},"--",null,"--","--",null,null,null,null,null,{"$f":"((Quarterly!BT108/Quarterly!BT107)^4)-1","v":8.422189907827593E-2},{"$f":"Quarterly!BU108-Quarterly!BU107","v":2.4949999999998695E-2},{"$f":"Quarterly!BV108-Quarterly!BV107","v":1.9429999999999836E-2},{"$f":"((Quarterly!BW108/Quarterly!BW107)^4)-1","v":0.14055671025090555},{"$f":"((Quarterly!BX108/Quarterly!BX107)^4)-1","v":7.5661229974934407E-2},{"$f":"((Quarterly!BY108/Quarterly!BY107)^4)-1","v":0.71612370763112532},"--",{"$f":"((Quarterly!CA108/Quarterly!CA107)^4)-1","v":0.63790278170646664},{"$f":"((Quarterly!CB108/Quarterly!CB107)^4)-1","v":-0.14148971424777568},{"$f":"((Quarterly!CC108/Quarterly!CC107)^4)-1","v":-0.12314858755712488},"--","--",null,"--","--",null,{"$f":"((Quarterly!CJ108/Quarterly!CJ107)^4)-1","v":0.58712809690384749},{"$f":"((Quarterly!CK108/Quarterly!CK107)^4)-1","v":7.1423125882966509E-2},{"$f":"((Quarterly!CL108/Quarterly!CL107)^4)-1","v":-0.33388317234626652},{"$f":"((Quarterly!CM108/Quarterly!CM107)^4)-1","v":0.2392356481785991},{"$f":"((Quarterly!CN108/Quarterly!CN107)^4)-1","v":2.8740091229087827E-2},{"$f":"((Quarterly!CO108/Quarterly!CO107)^4)-1","v":0.74559183144132812},{"$f":"((Quarterly!CP108/Quarterly!CP107)^4)-1","v":8.1877323845856775E-2},{"$f":"((Quarterly!CQ108/Quarterly!CQ107)^4)-1","v":8.0940344688773536E-3},{"$f":"((Quarterly!CR108/Quarterly!CR107)^4)-1","v":0.13674804580319999},{"$f":"Quarterly!CS108-Quarterly!CS107","v":16.266666666666652},"--",null,null,null,null,null,{"$f":"((Quarterly!CZ108/Quarterly!CZ107)^4)-1","v":4.7067151352912395E-2},{"$f":"((Quarterly!DA108/Quarterly!DA107)^4)-1","v":4.0071077146419887E-2},null,null,null,null,null,{"$f":"((Quarterly!DG108/Quarterly!DG107)^4)-1","v":6.8351929012346435E-2},{"$f":"((Quarterly!DH108-Quarterly!DH107)*60)","v":12.000000000000171},{"$f":"Quarterly!DI108-Quarterly!DI107","v":0.13333333333334707},"--",{"$f":"(Quarterly!DK108-Quarterly!DK107)*100","v":-23.333333333333428},{"$f":"((Quarterly!DL108/Quarterly!DL107)^4)-1","v":4.1902102910530648E-2},null,null,null,{"$f":"((Quarterly!DP108/Quarterly!DP107)^4)-1","v":3.0760463134154481E-2},null,null,null,"--",{"$f":"Quarterly!DU108-Quarterly!DU107","v":1.0666666666666682},"--","--","--","--","--","--","--","--",null,null,null,null,null,{"$f":"((Quarterly!EI108/Quarterly!EI107)^4)-1","v":0.16284407467307127},{"$f":"((Quarterly!EJ108/Quarterly!EJ107)^4)-1","v":0.10915026306681286},{"$f":"((Quarterly!EK108/Quarterly!EK107)^4)-1","v":8.8270506096513879E-2},null,null,null,null,null,{"$f":"((Quarterly!EQ108/Quarterly!EQ107)^4)-1","v":1.469335891261947E-2},{"$f":"((Quarterly!ER108/Quarterly!ER107)^4)-1","v":1.7073986438552957E-2},{"$f":"((Quarterly!ES108/Quarterly!ES107)^4)-1","v":1.7096440118700373E-2},null,null,null,null,null,{"$f":"(Quarterly!EY108-Quarterly!EY107)*100","v":-38.000000000000078},{"$f":"(Quarterly!EZ108-Quarterly!EZ107)*100","v":15.000000000000036},{"$f":"(Quarterly!FA108-Quarterly!FA107)*100","v":-27.333333333333343},{"$f":"(Quarterly!FB108-Quarterly!FB107)*100","v":-58.333333333333393},-31.00000000000005,{"$f":"(Quarterly!FD108-Quarterly!FD107)*100","v":-27.000000000000135},{"$f":"(Quarterly!FE108-Quarterly!FE107)*100","v":28.999999999999915},{"$f":"(Quarterly!FF108-Quarterly!FF107)*100","v":32.000000000000206},{"$f":"(Quarterly!FG108-Quarterly!FG107)*100","v":20.333333333333492},{"$f":"(Quarterly!FH108-Quarterly!FH107)*100","v":10.33333333333335},{"$f":"(Quarterly!FI108-Quarterly!FI107)*100","v":-1.9999999999997797},-33.999999999999986,null,null,null,null,null,{"$f":"((Quarterly!FP108/Quarterly!FP107)^4)-1","v":1.2330209756259203E-2},{"$f":"((Quarterly!FQ108/Quarterly!FQ107)^4)-1","v":7.396384003769807E-2},"--","--",{"$f":"((Quarterly!FT108/Quarterly!FT107)^4)-1","v":0.16069018541091662},{"$f":"((Quarterly!FU108/Quarterly!FU107)^4)-1","v":7.8199897675341301E-2},"--","--","--",null,null,null,null,null,{"$f":"((Quarterly!GD108/Quarterly!GD107)^4)-1","v":0.12458538616920434},"--","--","--",{"$f":"((Quarterly!GH109/Quarterly!GH108)^4)-1","v":{"$error":"#DIV/0!"}},"--","--","--","--"]
["83'Q3",{"$f":"((Quarterly!B109/Quarterly!B108)^4)-1","v":0.12660403294757883},{"$f":"((Quarterly!C109/Quarterly!C108)^4)-1","v":8.064736940463102E-2},{"$f":"((Quarterly!D109/Quarterly!D108)^4)-1","v":7.5901186709264046E-2},{"$f":"((Quarterly!E109/Quarterly!E108)^4)-1","v":7.2055866568975668E-2},{"$f":"((Quarterly!F109/Quarterly!F108)^4)-1","v":0.16286921890689809},{"$f":"((Quarterly!G109/Quarterly!G108)^4)-1","v":6.2243302436011172E-2},{"$f":"((Quarterly!H109/Quarterly!H108)^4)-1","v":6.8199294574928793E-2},{"$f":"((Quarterly!I109/Quarterly!I108)^4)-1","v":0.17979453707773674},{"$f":"((Quarterly!J109/Quarterly!J108)^4)-1","v":0.45732252131156259},{"$f":"((Quarterly!K109/Quarterly!K108)^4)-1","v":0.46025672651707783},{"$f":"((Quarterly!L109-Quarterly!L108))","v":5.5090000000000003},{"$f":"((Quarterly!M109/Quarterly!M108)^4)-1","v":0.34990296480983929},{"$f":"((Quarterly!N109/Quarterly!N108)^4)-1","v":6.1615506518786001E-2},{"$f":"((Quarterly!O109/Quarterly!O108)^4)-1","v":2.6770222473237788},{"$f":"((Quarterly!P109/Quarterly!P108)^4)-1","v":6.7265535440103941E-2},{"$f":"((Quarterly!Q109/Quarterly!Q108)^4)-1","v":0.37151446251220621},null,null,null,null,null,{"$f":"((Quarterly!W109/Quarterly!W108)^4)-1","v":0.1533564053347507},{"$f":"((Quarterly!X109/Quarterly!X108)^4)-1","v":0.13901660480696232},{"$f":"((Quarterly!Y109/Quarterly!Y108)^4)-1","v":8.4592600457250811E-2},"--",{"$f":"((Quarterly!AA109/Quarterly!AA108)^4)-1","v":0.25957887620947528},{"$f":"((Quarterly!AB109/Quarterly!AB108)^4)-1","v":0.16307948563451635},"--","--","--","--","--","--","--","--","--","--",{"$f":"((Quarterly!AM109/Quarterly!AM108)^4)-1","v":0.1440049341100007},{"$f":"((Quarterly!AN109/Quarterly!AN108)^4)-1","v":0.15727133811527971},"--","--",{"$f":"Quarterly!AQ109-Quarterly!AQ108","v":7.1333333333333258},"--","--",{"$f":"Quarterly!AT109-Quarterly!AT108","v":7.3999999999999986},"--","--",{"$f":"Quarterly!AW109-Quarterly!AW108","v":3.7666666666666586},{"$f":"Quarterly!AX109-Quarterly!AX108","v":7.2666666666666586},{"$f":"Quarterly!AY109-Quarterly!AY108","v":7.7333333333333414},{"$f":"Quarterly!AZ109-Quarterly!AZ108","v":8.7666666666666657},{"$f":"Quarterly!BA109-Quarterly!BA108","v":6.1333333333333471},"--","--","--","--",{"$f":"((Quarterly!BF109/Quarterly!BF108)^4)-1","v":2.231994660888259E-2},{"$f":"((Quarterly!BG109/Quarterly!BG108)^4)-1","v":2.908340772848006E-2},{"$f":"((Quarterly!BH109/Quarterly!BH108)^4)-1","v":-1.5931037741880316E-2},{"$f":"((Quarterly!BI109/Quarterly!BI108)^4)-1","v":-6.6246029839726051E-3},{"$f":"((Quarterly!BJ109/Quarterly!BJ108)^4)-1","v":0.46325076977801571},"--",null,"--","--",null,null,null,null,null,{"$f":"((Quarterly!BT109/Quarterly!BT108)^4)-1","v":0.16516202496748944},{"$f":"Quarterly!BU109-Quarterly!BU108","v":3.8400000000002876E-3},{"$f":"Quarterly!BV109-Quarterly!BV108","v":-2.3619999999999308E-2},{"$f":"((Quarterly!BW109/Quarterly!BW108)^4)-1","v":0.15115078464570808},{"$f":"((Quarterly!BX109/Quarterly!BX108)^4)-1","v":0.38648963168972883},{"$f":"((Quarterly!BY109/Quarterly!BY108)^4)-1","v":7.3063692533561264E-2},"--",{"$f":"((Quarterly!CA109/Quarterly!CA108)^4)-1","v":0.10120317375691101},{"$f":"((Quarterly!CB109/Quarterly!CB108)^4)-1","v":-0.38655961033670239},{"$f":"((Quarterly!CC109/Quarterly!CC108)^4)-1","v":-0.34799695946082942},"--","--",null,"--","--",null,{"$f":"((Quarterly!CJ109/Quarterly!CJ108)^4)-1","v":-0.30061414410858722},{"$f":"((Quarterly!CK109/Quarterly!CK108)^4)-1","v":8.3148512555383469E-2},{"$f":"((Quarterly!CL109/Quarterly!CL108)^4)-1","v":8.5232844539475661E-3},{"$f":"((Quarterly!CM109/Quarterly!CM108)^4)-1","v":2.8556331230750409E-2},{"$f":"((Quarterly!CN109/Quarterly!CN108)^4)-1","v":6.1699108245740097E-2},{"$f":"((Quarterly!CO109/Quarterly!CO108)^4)-1","v":7.653583915846629E-2},{"$f":"((Quarterly!CP109/Quarterly!CP108)^4)-1","v":0.13271993692104989},{"$f":"((Quarterly!CQ109/Quarterly!CQ108)^4)-1","v":9.6554515491356074E-3},{"$f":"((Quarterly!CR109/Quarterly!CR108)^4)-1","v":0.20931687599203008},{"$f":"Quarterly!CS109-Quarterly!CS108","v":-0.33333333333331439},"--",null,null,null,null,null,{"$f":"((Quarterly!CZ109/Quarterly!CZ108)^4)-1","v":3.9578937987760909E-2},{"$f":"((Quarterly!DA109/Quarterly!DA108)^4)-1","v":5.0822898803478678E-2},null,null,null,null,null,{"$f":"((Quarterly!DG109/Quarterly!DG108)^4)-1","v":6.3159585560128351E-2},{"$f":"((Quarterly!DH109-Quarterly!DH108)*60)","v":3.9999999999997726},{"$f":"Quarterly!DI109-Quarterly!DI108","v":0.29999999999999716},"--",{"$f":"(Quarterly!DK109-Quarterly!DK108)*100","v":-76.666666666666742},{"$f":"((Quarterly!DL109/Quarterly!DL108)^4)-1","v":6.412627749691846E-2},null,null,null,{"$f":"((Quarterly!DP109/Quarterly!DP108)^4)-1","v":4.210130059786521E-2},null,null,null,"--",{"$f":"Quarterly!DU109-Quarterly!DU108","v":-1.9333333333333336},"--","--","--","--","--","--","--","--",null,null,null,null,null,{"$f":"((Quarterly!EI109/Quarterly!EI108)^4)-1","v":0.15163152582376616},{"$f":"((Quarterly!EJ109/Quarterly!EJ108)^4)-1","v":0.10091776563521271},{"$f":"((Quarterly!EK109/Quarterly!EK108)^4)-1","v":8.2464336881364675E-2},null,null,null,null,null,{"$f":"((Quarterly!EQ109/Quarterly!EQ108)^4)-1","v":3.8941251841144719E-2},{"$f":"((Quarterly!ER109/Quarterly!ER108)^4)-1","v":3.0226229902909019E-2},{"$f":"((Quarterly!ES109/Quarterly!ES108)^4)-1","v":2.3628781100513585E-2},null,null,null,null,null,{"$f":"(Quarterly!EY109-Quarterly!EY108)*100","v":29.666666666666686},{"$f":"(Quarterly!EZ109-Quarterly!EZ108)*100","v":65.666666666666629},{"$f":"(Quarterly!FA109-Quarterly!FA108)*100","v":77.333333333333343},{"$f":"(Quarterly!FB109-Quarterly!FB108)*100","v":27.666666666666551},-49.666666666666792,{"$f":"(Quarterly!FD109-Quarterly!FD108)*100","v":89.333333333333442},{"$f":"(Quarterly!FE109-Quarterly!FE108)*100","v":74.3333333333334},{"$f":"(Quarterly!FF109-Quarterly!FF108)*100","v":111.66666666666636},{"$f":"(Quarterly!FG109-Quarterly!FG108)*100","v":110.33333333333317},{"$f":"(Quarterly!FH109-Quarterly!FH108)*100","v":119.66666666666671},{"$f":"(Quarterly!FI109-Quarterly!FI108)*100","v":108.33333333333321},-3.3333333333331439,null,null,null,null,null,{"$f":"((Quarterly!FP109/Quarterly!FP108)^4)-1","v":5.0990552920469057E-3},{"$f":"((Quarterly!FQ109/Quarterly!FQ108)^4)-1","v":-7.0735946460304122E-3},"--","--",{"$f":"((Quarterly!FT109/Quarterly!FT108)^4)-1","v":0.16830567241411787},{"$f":"((Quarterly!FU109/Quarterly!FU108)^4)-1","v":0.12093615937781221},"--","--","--",null,null,null,null,null,{"$f":"((Quarterly!GD109/Quarterly!GD108)^4)-1","v":0.14093647499002104},"--","--","--",{"$f":"((Quarterly!GH110/Quarterly!GH109)^4)-1","v":{"$error":"#DIV/0!"}},"--","--","--","--"]
["83'Q4",{"$f":"((Quarterly!B110/Quarterly!B109)^4)-1","v":0.11735839864086395},{"$f":"((Quarterly!C110/Quarterly!C109)^4)-1","v":8.5074629919890121E-2},{"$f":"((Quarterly!D110/Quarterly!D109)^4)-1","v":5.4196015092601524E-2},{"$f":"((Quarterly!E110/Quarterly!E109)^4)-1","v":6.455228070982244E-2},{"$f":"((Quarterly!F110/Quarterly!F109)^4)-1","v":0.21230860293143206},{"$f":"((Quarterly!G110/Quarterly!G109)^4)-1","v":4.9684757564949944E-2},{"$f":"((Quarterly!H110/Quarterly!H109)^4)-1","v":5.781224223349013E-2},{"$f":"((Quarterly!I110/Quarterly!I109)^4)-1","v":0.26470270423037157},{"$f":"((Quarterly!J110/Quarterly!J109)^4)-1","v":0.64364083261604521},{"$f":"((Quarterly!K110/Quarterly!K109)^4)-1","v":0.18023172198712101},{"$f":"((Quarterly!L110-Quarterly!L109))","v":33.328000000000003},{"$f":"((Quarterly!M110/Quarterly!M109)^4)-1","v":0.21112978051978448},{"$f":"((Quarterly!N110/Quarterly!N109)^4)-1","v":8.3065431733412076E-2},{"$f":"((Quarterly!O110/Quarterly!O109)^4)-1","v":0.76445275284789216},{"$f":"((Quarterly!P110/Quarterly!P109)^4)-1","v":-6.5317482147024597E-2},{"$f":"((Quarterly!Q110/Quarterly!Q109)^4)-1","v":-0.35327989101483259},null,null,null,null,null,{"$f":"((Quarterly!W110/Quarterly!W109)^4)-1","v":0.11810484842432234},{"$f":"((Quarterly!X110/Quarterly!X109)^4)-1","v":0.10003917479265034},{"$f":"((Quarterly!Y110/Quarterly!Y109)^4)-1","v":9.4340902324964837E-2},"--",{"$f":"((Quarterly!AA110/Quarterly!AA109)^4)-1","v":0.1033900042603495},{"$f":"((Quarterly!AB110/Quarterly!AB109)^4)-1","v":0.32171007397692497},"--","--","--","--","--","--","--","--","--","--",{"$f":"((Quarterly!AM110/Quarterly!AM109)^4)-1","v":0.10920614068905476},{"$f":"((Quarterly!AN110/Quarterly!AN109)^4)-1","v":0.12890012386757665},"--","--",{"$f":"Quarterly!AQ110-Quarterly!AQ109","v":3.7000000000000028},"--","--",{"$f":"Quarterly!AT110-Quarterly!AT109","v":3.4000000000000057},"--","--",{"$f":"Quarterly!AW110-Quarterly!AW109","v":6},{"$f":"Quarterly!AX110-Quarterly!AX109","v":2.7333333333333485},{"$f":"Quarterly!AY110-Quarterly!AY109","v":2.7333333333333201},{"$f":"Quarterly!AZ110-Quarterly!AZ109","v":3.9000000000000057},{"$f":"Quarterly!BA110-Quarterly!BA109","v":4.2000000000000028},"--","--","--","--",{"$f":"((Quarterly!BF110/Quarterly!BF109)^4)-1","v":4.3963685572628641E-2},{"$f":"((Quarterly!BG110/Quarterly!BG109)^4)-1","v":1.9552881601858418E-2},{"$f":"((Quarterly!BH110/Quarterly!BH109)^4)-1","v":6.1700649202989233E-3},{"$f":"((Quarterly!BI110/Quarterly!BI109)^4)-1","v":2.4007450880977776E-2},{"$f":"((Quarterly!BJ110/Quarterly!BJ109)^4)-1","v":7.3057304163375969E-2},"--",null,"--","--",null,null,null,null,null,{"$f":"((Quarterly!BT110/Quarterly!BT109)^4)-1","v":0.21627359914178412},{"$f":"Quarterly!BU110-Quarterly!BU109","v":5.1490000000001146E-2},{"$f":"Quarterly!BV110-Quarterly!BV109","v":3.5989999999999966E-2},{"$f":"((Quarterly!BW110/Quarterly!BW109)^4)-1","v":0.12507624736231593},{"$f":"((Quarterly!BX110/Quarterly!BX109)^4)-1","v":-0.15117712187114729},{"$f":"((Quarterly!BY110/Quarterly!BY109)^4)-1","v":-6.2863385707398134E-2},"--",{"$f":"((Quarterly!CA110/Quarterly!CA109)^4)-1","v":0.39868795906998478},{"$f":"((Quarterly!CB110/Quarterly!CB109)^4)-1","v":-4.153249107950574E-2},{"$f":"((Quarterly!CC110/Quarterly!CC109)^4)-1","v":-0.14503932196300462},"--","--",null,"--","--",null,{"$f":"((Quarterly!CJ110/Quarterly!CJ109)^4)-1","v":0.73237542928776134},{"$f":"((Quarterly!CK110/Quarterly!CK109)^4)-1","v":0.11894920000853126},{"$f":"((Quarterly!CL110/Quarterly!CL109)^4)-1","v":0.38907773533107126},{"$f":"((Quarterly!CM110/Quarterly!CM109)^4)-1","v":-0.13963479948865287},{"$f":"((Quarterly!CN110/Quarterly!CN109)^4)-1","v":8.9024437513744781E-2},{"$f":"((Quarterly!CO110/Quarterly!CO109)^4)-1","v":-1.4457941881388714E-2},{"$f":"((Quarterly!CP110/Quarterly!CP109)^4)-1","v":0.16941643771095261},{"$f":"((Quarterly!CQ110/Quarterly!CQ109)^4)-1","v":9.7639239642608455E-3},{"$f":"((Quarterly!CR110/Quarterly!CR109)^4)-1","v":0.26699370943788581},{"$f":"Quarterly!CS110-Quarterly!CS109","v":0.33333333333331439},"--",null,null,null,null,null,{"$f":"((Quarterly!CZ110/Quarterly!CZ109)^4)-1","v":4.056283974170305E-2},{"$f":"((Quarterly!DA110/Quarterly!DA109)^4)-1","v":5.2950841737129828E-2},null,null,null,null,null,{"$f":"((Quarterly!DG110/Quarterly!DG109)^4)-1","v":9.8402616247193819E-2},{"$f":"((Quarterly!DH110-Quarterly!DH109)*60)","v":12.000000000000171},{"$f":"Quarterly!DI110-Quarterly!DI109","v":-0.1666666666666714},"--",{"$f":"(Quarterly!DK110-Quarterly!DK109)*100","v":-83.333333333333215},{"$f":"((Quarterly!DL110/Quarterly!DL109)^4)-1","v":7.7189316174122391E-2},null,null,null,{"$f":"((Quarterly!DP110/Quarterly!DP109)^4)-1","v":5.7057131419220752E-2},null,null,null,"--",{"$f":"Quarterly!DU110-Quarterly!DU109","v":-0.43333333333333179},"--","--","--","--","--","--","--","--",null,null,null,null,null,{"$f":"((Quarterly!EI110/Quarterly!EI109)^4)-1","v":0.13786921954697129},{"$f":"((Quarterly!EJ110/Quarterly!EJ109)^4)-1","v":8.13856812936955E-2},{"$f":"((Quarterly!EK110/Quarterly!EK109)^4)-1","v":6.627023105217722E-2},null,null,null,null,null,{"$f":"((Quarterly!EQ110/Quarterly!EQ109)^4)-1","v":1.9811186473379205E-2},{"$f":"((Quarterly!ER110/Quarterly!ER109)^4)-1","v":1.8181352854241162E-2},{"$f":"((Quarterly!ES110/Quarterly!ES109)^4)-1","v":1.954657968497453E-2},null,null,null,null,null,{"$f":"(Quarterly!EY110-Quarterly!EY109)*100","v":20.333333333333314},{"$f":"(Quarterly!EZ110-Quarterly!EZ109)*100","v":-2.9999999999999361},{"$f":"(Quarterly!FA110-Quarterly!FA109)*100","v":6.6666666666668206},{"$f":"(Quarterly!FB110-Quarterly!FB109)*100","v":8.0000000000001847},1.3333333333333641,{"$f":"(Quarterly!FD110-Quarterly!FD109)*100","v":-18.666666666666742},{"$f":"(Quarterly!FE110-Quarterly!FE109)*100","v":-34.000000000000163},{"$f":"(Quarterly!FF110-Quarterly!FF109)*100","v":-34.333333333333194},{"$f":"(Quarterly!FG110-Quarterly!FG109)*100","v":-16.000000000000014},{"$f":"(Quarterly!FH110-Quarterly!FH109)*100","v":-1.3333333333335418},{"$f":"(Quarterly!FI110-Quarterly!FI109)*100","v":5.9999999999998721},40.333333333333066,null,null,null,null,null,{"$f":"((Quarterly!FP110/Quarterly!FP109)^4)-1","v":1.8402337864064755E-2},{"$f":"((Quarterly!FQ110/Quarterly!FQ109)^4)-1","v":-1.0149490550399487E-2},"--","--",{"$f":"((Quarterly!FT110/Quarterly!FT109)^4)-1","v":8.5836096709789755E-2},{"$f":"((Quarterly!FU110/Quarterly!FU109)^4)-1","v":1.6949147900580108E-4},"--","--","--",null,null,null,null,null,{"$f":"((Quarterly!GD110/Quarterly!GD109)^4)-1","v":-0.20188580463083494},"--","--","--",{"$f":"((Quarterly!GH111/Quarterly!GH110)^4)-1","v":{"$error":"#DIV/0!"}},"--","--","--","--"]
["84'Q1",{"$f":"((Quarterly!B111/Quarterly!B110)^4)-1","v":0.1287008915375405},{"$f":"((Quarterly!C111/Quarterly!C110)^4)-1","v":8.1873415460317789E-2},{"$f":"((Quarterly!D111/Quarterly!D110)^4)-1","v":3.0378262045624993E-2},{"$f":"((Quarterly!E111/Quarterly!E110)^4)-1","v":3.429574232993704E-2},{"$f":"((Quarterly!F111/Quarterly!F110)^4)-1","v":0.15968889871475089},{"$f":"((Quarterly!G111/Quarterly!G110)^4)-1","v":1.017384471285343E-2},{"$f":"((Quarterly!H111/Quarterly!H110)^4)-1","v":3.2776008163115877E-2},{"$f":"((Quarterly!I111/Quarterly!I110)^4)-1","v":0.13318321317757786},{"$f":"((Quarterly!J111/Quarterly!J110)^4)-1","v":0.27665176085069643},{"$f":"((Quarterly!K111/Quarterly!K110)^4)-1","v":0.11665421203919157},{"$f":"((Quarterly!L111-Quarterly!L110))","v":66.447000000000003},{"$f":"((Quarterly!M111/Quarterly!M110)^4)-1","v":0.3624939867560717},{"$f":"((Quarterly!N111/Quarterly!N110)^4)-1","v":8.6250111560993714E-2},{"$f":"((Quarterly!O111/Quarterly!O110)^4)-1","v":1.5927554236553485},{"$f":"((Quarterly!P111/Quarterly!P110)^4)-1","v":4.7639740520978524E-2},{"$f":"((Quarterly!Q111/Quarterly!Q110)^4)-1","v":-0.27646384609491703},null,null,null,null,null,{"$f":"((Quarterly!W111/Quarterly!W110)^4)-1","v":0.10904430594199988},{"$f":"((Quarterly!X111/Quarterly!X110)^4)-1","v":0.10681371337839041},{"$f":"((Quarterly!Y111/Quarterly!Y110)^4)-1","v":0.13960814558979728},"--",{"$f":"((Quarterly!AA111/Quarterly!AA110)^4)-1","v":0.16432168418898119},{"$f":"((Quarterly!AB111/Quarterly!AB110)^4)-1","v":0.30752419002691278},"--","--","--","--","--","--","--","--","--","--",{"$f":"((Quarterly!AM111/Quarterly!AM110)^4)-1","v":0.12255794244688234},{"$f":"((Quarterly!AN111/Quarterly!AN110)^4)-1","v":0.1300375344786926},"--","--",{"$f":"Quarterly!AQ111-Quarterly!AQ110","v":-6.5333333333333385},"--","--",{"$f":"Quarterly!AT111-Quarterly!AT110","v":-4.2000000000000099},"--","--",{"$f":"Quarterly!AW111-Quarterly!AW110","v":-2.8666666666666529},{"$f":"Quarterly!AX111-Quarterly!AX110","v":-7.9999999999999929},{"$f":"Quarterly!AY111-Quarterly!AY110","v":0.10000000000000853},{"$f":"Quarterly!AZ111-Quarterly!AZ110","v":-11.833333333333336},{"$f":"Quarterly!BA111-Quarterly!BA110","v":-0.3333333333333357},"--","--","--","--",{"$f":"((Quarterly!BF111/Quarterly!BF110)^4)-1","v":5.1151623837586646E-2},{"$f":"((Quarterly!BG111/Quarterly!BG110)^4)-1","v":6.523527535566398E-3},{"$f":"((Quarterly!BH111/Quarterly!BH110)^4)-1","v":-4.4137566736401901E-3},{"$f":"((Quarterly!BI111/Quarterly!BI110)^4)-1","v":4.4337944364283066E-2},{"$f":"((Quarterly!BJ111/Quarterly!BJ110)^4)-1","v":0.42885887984267934},"--",null,"--","--",null,null,null,null,null,{"$f":"((Quarterly!BT111/Quarterly!BT110)^4)-1","v":0.17414819171137519},{"$f":"Quarterly!BU111-Quarterly!BU110","v":4.9459999999999837E-2},{"$f":"Quarterly!BV111-Quarterly!BV110","v":-1.2900000000009015E-3},{"$f":"((Quarterly!BW111/Quarterly!BW110)^4)-1","v":0.14172824522996574},{"$f":"((Quarterly!BX111/Quarterly!BX110)^4)-1","v":0.58376984214153027},{"$f":"((Quarterly!BY111/Quarterly!BY110)^4)-1","v":0.48106638977955662},"--",{"$f":"((Quarterly!CA111/Quarterly!CA110)^4)-1","v":0.19279059992456671},{"$f":"((Quarterly!CB111/Quarterly!CB110)^4)-1","v":0.27006652516928131},{"$f":"((Quarterly!CC111/Quarterly!CC110)^4)-1","v":5.9473464546443866E-2},"--","--",null,"--","--",null,{"$f":"((Quarterly!CJ111/Quarterly!CJ110)^4)-1","v":-4.0369662816944318E-2},{"$f":"((Quarterly!CK111/Quarterly!CK110)^4)-1","v":0.12386769897921068},{"$f":"((Quarterly!CL111/Quarterly!CL110)^4)-1","v":0.74153561233856125},{"$f":"((Quarterly!CM111/Quarterly!CM110)^4)-1","v":0.81008584413669404},{"$f":"((Quarterly!CN111/Quarterly!CN110)^4)-1","v":8.4110772137154566E-2},{"$f":"((Quarterly!CO111/Quarterly!CO110)^4)-1","v":3.3084365632696677E-2},{"$f":"((Quarterly!CP111/Quarterly!CP110)^4)-1","v":0.19798132775832467},{"$f":"((Quarterly!CQ111/Quarterly!CQ110)^4)-1","v":7.7761823690289944E-3},{"$f":"((Quarterly!CR111/Quarterly!CR110)^4)-1","v":0.22339095408361231},{"$f":"Quarterly!CS111-Quarterly!CS110","v":7.9666666666666828},"--",null,null,null,null,null,{"$f":"((Quarterly!CZ111/Quarterly!CZ110)^4)-1","v":5.7926956415341957E-2},{"$f":"((Quarterly!DA111/Quarterly!DA110)^4)-1","v":5.6362228384675195E-2},null,null,null,null,null,{"$f":"((Quarterly!DG111/Quarterly!DG110)^4)-1","v":6.0704092742869475E-2},{"$f":"((Quarterly!DH111-Quarterly!DH110)*60)","v":1.9999999999998863},{"$f":"Quarterly!DI111-Quarterly!DI110","v":-3.3333333333331439E-2},"--",{"$f":"(Quarterly!DK111-Quarterly!DK110)*100","v":-66.6666666666666},{"$f":"((Quarterly!DL111/Quarterly!DL110)^4)-1","v":5.9851232013968581E-2},null,null,null,{"$f":"((Quarterly!DP111/Quarterly!DP110)^4)-1","v":5.3882880569866121E-2},null,null,null,"--",{"$f":"Quarterly!DU111-Quarterly!DU110","v":-0.56666666666666821},"--","--","--","--","--","--","--","--",null,null,null,null,null,{"$f":"((Quarterly!EI111/Quarterly!EI110)^4)-1","v":0.11731264269518116},{"$f":"((Quarterly!EJ111/Quarterly!EJ110)^4)-1","v":5.3760532700052988E-2},{"$f":"((Quarterly!EK111/Quarterly!EK110)^4)-1","v":4.497510315106612E-2},null,null,null,null,null,{"$f":"((Quarterly!EQ111/Quarterly!EQ110)^4)-1","v":4.5100783352481244E-2},{"$f":"((Quarterly!ER111/Quarterly!ER110)^4)-1","v":3.7762433729958245E-2},{"$f":"((Quarterly!ES111/Quarterly!ES110)^4)-1","v":3.2575938023001516E-2},null,null,null,null,null,{"$f":"(Quarterly!EY111-Quarterly!EY110)*100","v":7.0000000000000284},{"$f":"(Quarterly!EZ111-Quarterly!EZ110)*100","v":25.666666666666593},{"$f":"(Quarterly!FA111-Quarterly!FA110)*100","v":-12.66666666666687},{"$f":"(Quarterly!FB111-Quarterly!FB110)*100","v":13.666666666666671},26.333333333333542,{"$f":"(Quarterly!FD111-Quarterly!FD110)*100","v":-13.666666666666671},{"$f":"(Quarterly!FE111-Quarterly!FE110)*100","v":37.000000000000099},{"$f":"(Quarterly!FF111-Quarterly!FF110)*100","v":22.333333333333272},{"$f":"(Quarterly!FG111-Quarterly!FG110)*100","v":22.333333333333449},{"$f":"(Quarterly!FH111-Quarterly!FH110)*100","v":23.33333333333325},{"$f":"(Quarterly!FI111-Quarterly!FI110)*100","v":25.666666666666771},3.3333333333334991,null,null,null,null,null,{"$f":"((Quarterly!FP111/Quarterly!FP110)^4)-1","v":5.548380304155387E-2},{"$f":"((Quarterly!FQ111/Quarterly!FQ110)^4)-1","v":0.15923964478343011},"--","--",{"$f":"((Quarterly!FT111/Quarterly!FT110)^4)-1","v":9.9068745005936432E-2},{"$f":"((Quarterly!FU111/Quarterly!FU110)^4)-1","v":2.3812174007825648E-2},"--","--","--",null,null,null,null,null,{"$f":"((Quarterly!GD111/Quarterly!GD110)^4)-1","v":5.0359723257882072E-2},"--","--","--",{"$f":"((Quarterly!GH112/Quarterly!GH111)^4)-1","v":{"$error":"#DIV/0!"}},"--","--","--","--"]
["84'Q2",{"$f":"((Quarterly!B112/Quarterly!B111)^4)-1","v":0.1086721612767958},{"$f":"((Quarterly!C112/Quarterly!C111)^4)-1","v":7.2126109382096626E-2},{"$f":"((Quarterly!D112/Quarterly!D111)^4)-1","v":7.6537614899669482E-2},{"$f":"((Quarterly!E112/Quarterly!E111)^4)-1","v":5.8327269908532653E-2},{"$f":"((Quarterly!F112/Quarterly!F111)^4)-1","v":9.6104461693160115E-2},{"$f":"((Quarterly!G112/Quarterly!G111)^4)-1","v":9.0330977713143135E-2},{"$f":"((Quarterly!H112/Quarterly!H111)^4)-1","v":4.2218940686320483E-2},{"$f":"((Quarterly!I112/Quarterly!I111)^4)-1","v":0.19959255673798149},{"$f":"((Quarterly!J112/Quarterly!J111)^4)-1","v":0.36885207184930624},{"$f":"((Quarterly!K112/Quarterly!K111)^4)-1","v":7.680452477704347E-2},{"$f":"((Quarterly!L112-Quarterly!L111))","v":-5.8000000000000114},{"$f":"((Quarterly!M112/Quarterly!M111)^4)-1","v":0.17839938154358026},{"$f":"((Quarterly!N112/Quarterly!N111)^4)-1","v":0.10320381488098174},{"$f":"((Quarterly!O112/Quarterly!O111)^4)-1","v":0.38749510328454595},{"$f":"((Quarterly!P112/Quarterly!P111)^4)-1","v":9.2667075077009109E-2},{"$f":"((Quarterly!Q112/Quarterly!Q111)^4)-1","v":0.2224543379320143},null,null,null,null,null,{"$f":"((Quarterly!W112/Quarterly!W111)^4)-1","v":4.149906826255334E-2},{"$f":"((Quarterly!X112/Quarterly!X111)^4)-1","v":4.4136040926640918E-2},{"$f":"((Quarterly!Y112/Quarterly!Y111)^4)-1","v":0.22094331217405361},"--",{"$f":"((Quarterly!AA112/Quarterly!AA111)^4)-1","v":1.0852054810501333E-2},{"$f":"((Quarterly!AB112/Quarterly!AB111)^4)-1","v":4.570918703093918E-2},"--","--","--","--","--","--","--","--","--","--",{"$f":"((Quarterly!AM112/Quarterly!AM111)^4)-1","v":6.3601932716076615E-2},{"$f":"((Quarterly!AN112/Quarterly!AN111)^4)-1","v":6.2540338689725194E-2},"--","--",{"$f":"Quarterly!AQ112-Quarterly!AQ111","v":-1},"--","--",{"$f":"Quarterly!AT112-Quarterly!AT111","v":-0.13333333333333286},"--","--",{"$f":"Quarterly!AW112-Quarterly!AW111","v":2.0999999999999801},{"$f":"Quarterly!AX112-Quarterly!AX111","v":-2.2000000000000099},{"$f":"Quarterly!AY112-Quarterly!AY111","v":-3.5666666666666629},{"$f":"Quarterly!AZ112-Quarterly!AZ111","v":-0.50000000000001421},{"$f":"Quarterly!BA112-Quarterly!BA111","v":-2.7000000000000028},"--","--","--","--",{"$f":"((Quarterly!BF112/Quarterly!BF111)^4)-1","v":3.9612704806383681E-2},{"$f":"((Quarterly!BG112/Quarterly!BG111)^4)-1","v":2.5057679507507036E-2},{"$f":"((Quarterly!BH112/Quarterly!BH111)^4)-1","v":1.1339627488642368E-3},{"$f":"((Quarterly!BI112/Quarterly!BI111)^4)-1","v":1.4227563451073122E-2},{"$f":"((Quarterly!BJ112/Quarterly!BJ111)^4)-1","v":-1.2719409807290027E-2},"--",null,"--","--",null,null,null,null,null,{"$f":"((Quarterly!BT112/Quarterly!BT111)^4)-1","v":0.21698866566660979},{"$f":"Quarterly!BU112-Quarterly!BU111","v":0.12904999999999944},{"$f":"Quarterly!BV112-Quarterly!BV111","v":0.11540000000000106},{"$f":"((Quarterly!BW112/Quarterly!BW111)^4)-1","v":4.6061424567237719E-2},{"$f":"((Quarterly!BX112/Quarterly!BX111)^4)-1","v":-0.22084818803474893},{"$f":"((Quarterly!BY112/Quarterly!BY111)^4)-1","v":-0.13510658085143257},"--",{"$f":"((Quarterly!CA112/Quarterly!CA111)^4)-1","v":9.459387270904096E-2},{"$f":"((Quarterly!CB112/Quarterly!CB111)^4)-1","v":-0.19349862474763857},{"$f":"((Quarterly!CC112/Quarterly!CC111)^4)-1","v":-0.19635056792774297},"--","--",null,"--","--",null,{"$f":"((Quarterly!CJ112/Quarterly!CJ111)^4)-1","v":-0.25517920882619316},{"$f":"((Quarterly!CK112/Quarterly!CK111)^4)-1","v":0.11001028555134917},{"$f":"((Quarterly!CL112/Quarterly!CL111)^4)-1","v":0.19139670772093775},{"$f":"((Quarterly!CM112/Quarterly!CM111)^4)-1","v":-0.33324804089280435},{"$f":"((Quarterly!CN112/Quarterly!CN111)^4)-1","v":6.8411639389464485E-2},{"$f":"((Quarterly!CO112/Quarterly!CO111)^4)-1","v":5.734393984694397E-2},{"$f":"((Quarterly!CP112/Quarterly!CP111)^4)-1","v":0.20732952785480729},{"$f":"((Quarterly!CQ112/Quarterly!CQ111)^4)-1","v":7.9774814864947974E-3},{"$f":"((Quarterly!CR112/Quarterly!CR111)^4)-1","v":0.3302602914386561},{"$f":"Quarterly!CS112-Quarterly!CS111","v":-2.9333333333333371},"--",null,null,null,null,null,{"$f":"((Quarterly!CZ112/Quarterly!CZ111)^4)-1","v":3.8247976908982517E-2},{"$f":"((Quarterly!DA112/Quarterly!DA111)^4)-1","v":5.0188512505515925E-2},null,null,null,null,null,{"$f":"((Quarterly!DG112/Quarterly!DG111)^4)-1","v":4.8385958285444675E-2},{"$f":"((Quarterly!DH112-Quarterly!DH111)*60)","v":-1.9999999999998863},{"$f":"Quarterly!DI112-Quarterly!DI111","v":0.43333333333333712},"--",{"$f":"(Quarterly!DK112-Quarterly!DK111)*100","v":-43.333333333333357},{"$f":"((Quarterly!DL112/Quarterly!DL111)^4)-1","v":4.5213155856429266E-2},null,null,null,{"$f":"((Quarterly!DP112/Quarterly!DP111)^4)-1","v":4.537068096237995E-2},null,null,null,"--",{"$f":"Quarterly!DU112-Quarterly!DU111","v":-0.30000000000000071},"--","--","--","--","--","--","--","--",null,null,null,null,null,{"$f":"((Quarterly!EI112/Quarterly!EI111)^4)-1","v":0.10245109027160315},{"$f":"((Quarterly!EJ112/Quarterly!EJ111)^4)-1","v":6.3627392876157485E-2},{"$f":"((Quarterly!EK112/Quarterly!EK111)^4)-1","v":5.6364554168616188E-2},null,null,null,null,null,{"$f":"((Quarterly!EQ112/Quarterly!EQ111)^4)-1","v":2.7373357951589794E-2},{"$f":"((Quarterly!ER112/Quarterly!ER111)^4)-1","v":2.1804553918853609E-2},{"$f":"((Quarterly!ES112/Quarterly!ES111)^4)-1","v":3.1005458525861007E-2},null,null,null,null,null,{"$f":"(Quarterly!EY112-Quarterly!EY111)*100","v":123.66666666666663},{"$f":"(Quarterly!EZ112-Quarterly!EZ111)*100","v":87.000000000000099},{"$f":"(Quarterly!FA112-Quarterly!FA111)*100","v":92.999999999999972},{"$f":"(Quarterly!FB112-Quarterly!FB111)*100","v":95.6666666666667},2.6666666666667282,{"$f":"(Quarterly!FD112-Quarterly!FD111)*100","v":67.333333333333201},{"$f":"(Quarterly!FE112-Quarterly!FE111)*100","v":62.666666666666693},{"$f":"(Quarterly!FF112-Quarterly!FF111)*100","v":137.00000000000011},{"$f":"(Quarterly!FG112-Quarterly!FG111)*100","v":144.33333333333334},{"$f":"(Quarterly!FH112-Quarterly!FH111)*100","v":136.33333333333351},{"$f":"(Quarterly!FI112-Quarterly!FI111)*100","v":125.66666666666677},-11.333333333333343,null,null,null,null,null,{"$f":"((Quarterly!FP112/Quarterly!FP111)^4)-1","v":0.12425241443553325},{"$f":"((Quarterly!FQ112/Quarterly!FQ111)^4)-1","v":0.22458806515612029},"--","--",{"$f":"((Quarterly!FT112/Quarterly!FT111)^4)-1","v":0.12112729306963321},{"$f":"((Quarterly!FU112/Quarterly!FU111)^4)-1","v":4.8470707979817895E-2},"--","--","--",null,null,null,null,null,{"$f":"((Quarterly!GD112/Quarterly!GD111)^4)-1","v":2.2663503885506309E-2},"--","--","--",{"$f":"((Quarterly!GH113/Quarterly!GH112)^4)-1","v":{"$error":"#DIV/0!"}},"--","--","--","--"]
["84'Q3",{"$f":"((Quarterly!B113/Quarterly!B112)^4)-1","v":7.4080949411249764E-2},{"$f":"((Quarterly!C113/Quarterly!C112)^4)-1","v":3.9936531946923814E-2},{"$f":"((Quarterly!D113/Quarterly!D112)^4)-1","v":3.7956988526079094E-2},{"$f":"((Quarterly!E113/Quarterly!E112)^4)-1","v":3.1091524290104422E-2},{"$f":"((Quarterly!F113/Quarterly!F112)^4)-1","v":1.2414005644374448E-3},{"$f":"((Quarterly!G113/Quarterly!G112)^4)-1","v":3.0640670894870325E-3},{"$f":"((Quarterly!H113/Quarterly!H112)^4)-1","v":4.5521161371960162E-2},{"$f":"((Quarterly!I113/Quarterly!I112)^4)-1","v":0.12851496773974613},{"$f":"((Quarterly!J113/Quarterly!J112)^4)-1","v":0.22692048650174201},{"$f":"((Quarterly!K113/Quarterly!K112)^4)-1","v":-3.7176389251790232E-2},{"$f":"((Quarterly!L113-Quarterly!L112))","v":4.0080000000000098},{"$f":"((Quarterly!M113/Quarterly!M112)^4)-1","v":0.10762037338190455},{"$f":"((Quarterly!N113/Quarterly!N112)^4)-1","v":9.1262245154987376E-2},{"$f":"((Quarterly!O113/Quarterly!O112)^4)-1","v":0.14775420115600024},{"$f":"((Quarterly!P113/Quarterly!P112)^4)-1","v":3.349154442796598E-2},{"$f":"((Quarterly!Q113/Quarterly!Q112)^4)-1","v":0.14109613169710311},null,null,null,null,null,{"$f":"((Quarterly!W113/Quarterly!W112)^4)-1","v":5.066487648639928E-3},{"$f":"((Quarterly!X113/Quarterly!X112)^4)-1","v":4.9658501712317449E-3},{"$f":"((Quarterly!Y113/Quarterly!Y112)^4)-1","v":0.12985729965484016},"--",{"$f":"((Quarterly!AA113/Quarterly!AA112)^4)-1","v":-0.16843812469518549},{"$f":"((Quarterly!AB113/Quarterly!AB112)^4)-1","v":0.12760584445391032},"--","--","--","--","--","--","--","--","--","--",{"$f":"((Quarterly!AM113/Quarterly!AM112)^4)-1","v":2.9009374951774802E-2},{"$f":"((Quarterly!AN113/Quarterly!AN112)^4)-1","v":3.5098430820528437E-2},"--","--",{"$f":"Quarterly!AQ113-Quarterly!AQ112","v":-6.1999999999999957},"--","--",{"$f":"Quarterly!AT113-Quarterly!AT112","v":-3.2333333333333343},"--","--",{"$f":"Quarterly!AW113-Quarterly!AW112","v":-3.5666666666666629},{"$f":"Quarterly!AX113-Quarterly!AX112","v":-9.1999999999999957},{"$f":"Quarterly!AY113-Quarterly!AY112","v":-8.3333333333333357},{"$f":"Quarterly!AZ113-Quarterly!AZ112","v":-6.3999999999999915},{"$f":"Quarterly!BA113-Quarterly!BA112","v":-5.3999999999999915},"--","--","--","--",{"$f":"((Quarterly!BF113/Quarterly!BF112)^4)-1","v":5.7874284675597742E-2},{"$f":"((Quarterly!BG113/Quarterly!BG112)^4)-1","v":1.7169485394312067E-2},{"$f":"((Quarterly!BH113/Quarterly!BH112)^4)-1","v":2.5823401319728934E-2},{"$f":"((Quarterly!BI113/Quarterly!BI112)^4)-1","v":4.0075229725618167E-2},{"$f":"((Quarterly!BJ113/Quarterly!BJ112)^4)-1","v":-0.23568411578871662},"--",null,"--","--",null,null,null,null,null,{"$f":"((Quarterly!BT113/Quarterly!BT112)^4)-1","v":0.18955019949018337},{"$f":"Quarterly!BU113-Quarterly!BU112","v":0.10566999999999993},{"$f":"Quarterly!BV113-Quarterly!BV112","v":0.14290999999999876},{"$f":"((Quarterly!BW113/Quarterly!BW112)^4)-1","v":9.0490229085277596E-2},{"$f":"((Quarterly!BX113/Quarterly!BX112)^4)-1","v":-0.29186495512214561},{"$f":"((Quarterly!BY113/Quarterly!BY112)^4)-1","v":-0.41714140283941359},"--",{"$f":"((Quarterly!CA113/Quarterly!CA112)^4)-1","v":-8.3986006725109585E-2},{"$f":"((Quarterly!CB113/Quarterly!CB112)^4)-1","v":-3.6444058395408652E-2},{"$f":"((Quarterly!CC113/Quarterly!CC112)^4)-1","v":-2.5424135831318417E-2},"--","--",null,"--","--",null,{"$f":"((Quarterly!CJ113/Quarterly!CJ112)^4)-1","v":-7.4270137204422215E-2},{"$f":"((Quarterly!CK113/Quarterly!CK112)^4)-1","v":9.6659168608082435E-2},{"$f":"((Quarterly!CL113/Quarterly!CL112)^4)-1","v":0.29784059626303394},{"$f":"((Quarterly!CM113/Quarterly!CM112)^4)-1","v":-0.31525156719823344},{"$f":"((Quarterly!CN113/Quarterly!CN112)^4)-1","v":5.600198894097197E-2},{"$f":"((Quarterly!CO113/Quarterly!CO112)^4)-1","v":-6.8929410937018654E-2},{"$f":"((Quarterly!CP113/Quarterly!CP112)^4)-1","v":0.19407264428125726},{"$f":"((Quarterly!CQ113/Quarterly!CQ112)^4)-1","v":9.4401215735206989E-3},{"$f":"((Quarterly!CR113/Quarterly!CR112)^4)-1","v":0.27720610984792149},{"$f":"Quarterly!CS113-Quarterly!CS112","v":2.3000000000000114},"--",null,null,null,null,null,{"$f":"((Quarterly!CZ113/Quarterly!CZ112)^4)-1","v":3.5238930678492375E-2},{"$f":"((Quarterly!DA113/Quarterly!DA112)^4)-1","v":5.0895483300294586E-2},null,null,null,null,null,{"$f":"((Quarterly!DG113/Quarterly!DG112)^4)-1","v":3.2919068439646981E-2},{"$f":"((Quarterly!DH113-Quarterly!DH112)*60)","v":-4.000000000000199},{"$f":"Quarterly!DI113-Quarterly!DI112","v":0},"--",{"$f":"(Quarterly!DK113-Quarterly!DK112)*100","v":0},{"$f":"((Quarterly!DL113/Quarterly!DL112)^4)-1","v":2.3343641671673687E-2},null,null,null,{"$f":"((Quarterly!DP113/Quarterly!DP112)^4)-1","v":4.0243414482955986E-2},null,null,null,"--",{"$f":"Quarterly!DU113-Quarterly!DU112","v":-0.79999999999999982},"--","--","--","--","--","--","--","--",null,null,null,null,null,{"$f":"((Quarterly!EI113/Quarterly!EI112)^4)-1","v":3.6447118271172529E-2},{"$f":"((Quarterly!EJ113/Quarterly!EJ112)^4)-1","v":2.3956944603811925E-2},{"$f":"((Quarterly!EK113/Quarterly!EK112)^4)-1","v":2.9695576391953304E-2},null,null,null,null,null,{"$f":"((Quarterly!EQ113/Quarterly!EQ112)^4)-1","v":-8.9413457857858702E-3},{"$f":"((Quarterly!ER113/Quarterly!ER112)^4)-1","v":2.1686342934335245E-2},{"$f":"((Quarterly!ES113/Quarterly!ES112)^4)-1","v":1.7862397581460021E-2},null,null,null,null,null,{"$f":"(Quarterly!EY113-Quarterly!EY112)*100","v":68.333333333333357},{"$f":"(Quarterly!EZ113-Quarterly!EZ112)*100","v":83.3333333333334},{"$f":"(Quarterly!FA113-Quarterly!FA112)*100","v":-22.333333333333272},{"$f":"(Quarterly!FB113-Quarterly!FB112)*100","v":0.99999999999997868},23.33333333333325,{"$f":"(Quarterly!FD113-Quarterly!FD112)*100","v":49.333333333333584},{"$f":"(Quarterly!FE113-Quarterly!FE112)*100","v":52.333333333333343},{"$f":"(Quarterly!FF113-Quarterly!FF112)*100","v":26.333333333333364},{"$f":"(Quarterly!FG113-Quarterly!FG112)*100","v":14.666666666666828},{"$f":"(Quarterly!FH113-Quarterly!FH112)*100","v":-17.999999999999972},{"$f":"(Quarterly!FI113-Quarterly!FI112)*100","v":-33.33333333333357},-59.666666666666934,null,null,null,null,null,{"$f":"((Quarterly!FP113/Quarterly!FP112)^4)-1","v":6.7448967997301823E-2},{"$f":"((Quarterly!FQ113/Quarterly!FQ112)^4)-1","v":0.52337923551337173},"--","--",{"$f":"((Quarterly!FT113/Quarterly!FT112)^4)-1","v":0.26277463818056268},{"$f":"((Quarterly!FU113/Quarterly!FU112)^4)-1","v":0.23678407921978839},"--","--","--",null,null,null,null,null,{"$f":"((Quarterly!GD113/Quarterly!GD112)^4)-1","v":-0.15638014597703986},"--","--","--",{"$f":"((Quarterly!GH114/Quarterly!GH113)^4)-1","v":{"$error":"#DIV/0!"}},"--","--","--","--"]
["84'Q4",{"$f":"((Quarterly!B114/Quarterly!B113)^4)-1","v":6.025606165485109E-2},{"$f":"((Quarterly!C114/Quarterly!C113)^4)-1","v":3.2288936714644834E-2},{"$f":"((Quarterly!D114/Quarterly!D113)^4)-1","v":5.8153919258451703E-2},{"$f":"((Quarterly!E114/Quarterly!E113)^4)-1","v":5.3956193726643065E-2},{"$f":"((Quarterly!F114/Quarterly!F113)^4)-1","v":0.13629161655169453},{"$f":"((Quarterly!G114/Quarterly!G113)^4)-1","v":3.1152955605339594E-2},{"$f":"((Quarterly!H114/Quarterly!H113)^4)-1","v":5.537696682583082E-2},{"$f":"((Quarterly!I114/Quarterly!I113)^4)-1","v":9.7409366299396005E-2},{"$f":"((Quarterly!J114/Quarterly!J113)^4)-1","v":0.16361991893360228},{"$f":"((Quarterly!K114/Quarterly!K113)^4)-1","v":4.2361603431471107E-3},{"$f":"((Quarterly!L114-Quarterly!L113))","v":-35.206000000000003},{"$f":"((Quarterly!M114/Quarterly!M113)^4)-1","v":0.12245138182692972},{"$f":"((Quarterly!N114/Quarterly!N113)^4)-1","v":8.3718963616418618E-2},{"$f":"((Quarterly!O114/Quarterly!O113)^4)-1","v":0.21868879108107508},{"$f":"((Quarterly!P114/Quarterly!P113)^4)-1","v":7.8598057311042968E-2},{"$f":"((Quarterly!Q114/Quarterly!Q113)^4)-1","v":0.21793169478538799},null,null,null,null,null,{"$f":"((Quarterly!W114/Quarterly!W113)^4)-1","v":-1.006281307158241E-2},{"$f":"((Quarterly!X114/Quarterly!X113)^4)-1","v":-2.7759072681848518E-2},{"$f":"((Quarterly!Y114/Quarterly!Y113)^4)-1","v":0.10302386696085342},"--",{"$f":"((Quarterly!AA114/Quarterly!AA113)^4)-1","v":2.1273443793166091E-2},{"$f":"((Quarterly!AB114/Quarterly!AB113)^4)-1","v":0.14436403998749858},"--","--","--","--","--","--","--","--","--","--",{"$f":"((Quarterly!AM114/Quarterly!AM113)^4)-1","v":1.9066815804333892E-3},{"$f":"((Quarterly!AN114/Quarterly!AN113)^4)-1","v":2.4075547192082158E-2},"--","--",{"$f":"Quarterly!AQ114-Quarterly!AQ113","v":-2.4666666666666686},"--","--",{"$f":"Quarterly!AT114-Quarterly!AT113","v":-4.7666666666666657},"--","--",{"$f":"Quarterly!AW114-Quarterly!AW113","v":-5.0333333333333172},{"$f":"Quarterly!AX114-Quarterly!AX113","v":0.79999999999999005},{"$f":"Quarterly!AY114-Quarterly!AY113","v":-5.3333333333333357},{"$f":"Quarterly!AZ114-Quarterly!AZ113","v":-0.86666666666666714},{"$f":"Quarterly!BA114-Quarterly!BA113","v":-6.9666666666666828},"--","--","--","--",{"$f":"((Quarterly!BF114/Quarterly!BF113)^4)-1","v":3.166347220968535E-2},{"$f":"((Quarterly!BG114/Quarterly!BG113)^4)-1","v":2.5064978863971188E-3},{"$f":"((Quarterly!BH114/Quarterly!BH113)^4)-1","v":-1.8752799391906771E-3},{"$f":"((Quarterly!BI114/Quarterly!BI113)^4)-1","v":2.9047042386892485E-2},{"$f":"((Quarterly!BJ114/Quarterly!BJ113)^4)-1","v":-1.370557478650003E-3},"--",null,"--","--",null,null,null,null,null,{"$f":"((Quarterly!BT114/Quarterly!BT113)^4)-1","v":0.18036789827404487},{"$f":"Quarterly!BU114-Quarterly!BU113","v":0.15859000000000023},{"$f":"Quarterly!BV114-Quarterly!BV113","v":0.23625000000000007},{"$f":"((Quarterly!BW114/Quarterly!BW113)^4)-1","v":0.10697579614696195},{"$f":"((Quarterly!BX114/Quarterly!BX113)^4)-1","v":-9.6016424178086424E-2},{"$f":"((Quarterly!BY114/Quarterly!BY113)^4)-1","v":8.9594449912279828E-2},"--",{"$f":"((Quarterly!CA114/Quarterly!CA113)^4)-1","v":9.5240332504701986E-2},{"$f":"((Quarterly!CB114/Quarterly!CB113)^4)-1","v":-9.0391174652370454E-2},{"$f":"((Quarterly!CC114/Quarterly!CC113)^4)-1","v":-8.4112838899752407E-2},"--","--",null,"--","--",null,{"$f":"((Quarterly!CJ114/Quarterly!CJ113)^4)-1","v":7.3364715385516144E-2},{"$f":"((Quarterly!CK114/Quarterly!CK113)^4)-1","v":6.7193587803384469E-2},{"$f":"((Quarterly!CL114/Quarterly!CL113)^4)-1","v":-0.10828755672969592},{"$f":"((Quarterly!CM114/Quarterly!CM113)^4)-1","v":0.2709472420185961},{"$f":"((Quarterly!CN114/Quarterly!CN113)^4)-1","v":3.3313388881694328E-2},{"$f":"((Quarterly!CO114/Quarterly!CO113)^4)-1","v":4.1704152123413385E-2},{"$f":"((Quarterly!CP114/Quarterly!CP113)^4)-1","v":0.14913415043901068},{"$f":"((Quarterly!CQ114/Quarterly!CQ113)^4)-1","v":1.0150336127149551E-2},{"$f":"((Quarterly!CR114/Quarterly!CR113)^4)-1","v":0.27676191773413383},{"$f":"Quarterly!CS114-Quarterly!CS113","v":-3.9000000000000199},"--",null,null,null,null,null,{"$f":"((Quarterly!CZ114/Quarterly!CZ113)^4)-1","v":3.4931224515079684E-2},{"$f":"((Quarterly!DA114/Quarterly!DA113)^4)-1","v":4.1099372762001485E-2},null,null,null,null,null,{"$f":"((Quarterly!DG114/Quarterly!DG113)^4)-1","v":3.0815785829576336E-2},{"$f":"((Quarterly!DH114-Quarterly!DH113)*60)","v":-3.9999999999997726},{"$f":"Quarterly!DI114-Quarterly!DI113","v":3.3333333333331439E-2},"--",{"$f":"(Quarterly!DK114-Quarterly!DK113)*100","v":-13.333333333333286},{"$f":"((Quarterly!DL114/Quarterly!DL113)^4)-1","v":-2.2193247618973455E-4},null,null,null,{"$f":"((Quarterly!DP114/Quarterly!DP113)^4)-1","v":3.6193140300873061E-2},null,null,null,"--",{"$f":"Quarterly!DU114-Quarterly!DU113","v":-0.2333333333333325},"--","--","--","--","--","--","--","--",null,null,null,null,null,{"$f":"((Quarterly!EI114/Quarterly!EI113)^4)-1","v":3.3117057289340446E-2},{"$f":"((Quarterly!EJ114/Quarterly!EJ113)^4)-1","v":3.8814335504801623E-2},{"$f":"((Quarterly!EK114/Quarterly!EK113)^4)-1","v":4.079071442230231E-2},null,null,null,null,null,{"$f":"((Quarterly!EQ114/Quarterly!EQ113)^4)-1","v":-1.0236640012289744E-2},{"$f":"((Quarterly!ER114/Quarterly!ER113)^4)-1","v":7.5733331852185781E-3},{"$f":"((Quarterly!ES114/Quarterly!ES113)^4)-1","v":0},null,null,null,null,null,{"$f":"(Quarterly!EY114-Quarterly!EY113)*100","v":-118.66666666666657},{"$f":"(Quarterly!EZ114-Quarterly!EZ113)*100","v":-212.33333333333331},{"$f":"(Quarterly!FA114-Quarterly!FA113)*100","v":-63.999999999999879},{"$f":"(Quarterly!FB114-Quarterly!FB113)*100","v":-110.33333333333334},-46.333333333333464,{"$f":"(Quarterly!FD114-Quarterly!FD113)*100","v":-84.666666666666757},{"$f":"(Quarterly!FE114-Quarterly!FE113)*100","v":-151.66666666666657},{"$f":"(Quarterly!FF114-Quarterly!FF113)*100","v":-179.33333333333348},{"$f":"(Quarterly!FG114-Quarterly!FG113)*100","v":-169.33333333333351},{"$f":"(Quarterly!FH114-Quarterly!FH113)*100","v":-134},{"$f":"(Quarterly!FI114-Quarterly!FI113)*100","v":-112.33333333333313},67.000000000000355,null,null,null,null,null,{"$f":"((Quarterly!FP114/Quarterly!FP113)^4)-1","v":1.4385138868326042E-2},{"$f":"((Quarterly!FQ114/Quarterly!FQ113)^4)-1","v":0.60339511407856183},"--","--",{"$f":"((Quarterly!FT114/Quarterly!FT113)^4)-1","v":0.18392851660155651},{"$f":"((Quarterly!FU114/Quarterly!FU113)^4)-1","v":9.896045304260559E-2},"--","--","--",null,null,null,null,null,{"$f":"((Quarterly!GD114/Quarterly!GD113)^4)-1","v":-0.21093127956260316},"--","--","--",{"$f":"((Quarterly!GH115/Quarterly!GH114)^4)-1","v":{"$error":"#DIV/0!"}},"--","--","--","--"]
["85'Q1",{"$f":"((Quarterly!B115/Quarterly!B114)^4)-1","v":8.9050402237125681E-2},{"$f":"((Quarterly!C115/Quarterly!C114)^4)-1","v":4.0362092076362543E-2},{"$f":"((Quarterly!D115/Quarterly!D114)^4)-1","v":7.0787035762943207E-2},{"$f":"((Quarterly!E115/Quarterly!E114)^4)-1","v":6.969773569883686E-2},{"$f":"((Quarterly!F115/Quarterly!F114)^4)-1","v":0.14637785787957935},{"$f":"((Quarterly!G115/Quarterly!G114)^4)-1","v":2.4644474803964478E-2},{"$f":"((Quarterly!H115/Quarterly!H114)^4)-1","v":8.0516945314213384E-2},{"$f":"((Quarterly!I115/Quarterly!I114)^4)-1","v":4.5667258060563487E-2},{"$f":"((Quarterly!J115/Quarterly!J114)^4)-1","v":5.8109158701087793E-2},{"$f":"((Quarterly!K115/Quarterly!K114)^4)-1","v":-1.2614822458411057E-2},{"$f":"((Quarterly!L115-Quarterly!L114))","v":-41.363},{"$f":"((Quarterly!M115/Quarterly!M114)^4)-1","v":-8.5407380524442744E-2},{"$f":"((Quarterly!N115/Quarterly!N114)^4)-1","v":1.0385909160118167E-2},{"$f":"((Quarterly!O115/Quarterly!O114)^4)-1","v":-0.28046769926041237},{"$f":"((Quarterly!P115/Quarterly!P114)^4)-1","v":4.8973295205579692E-2},{"$f":"((Quarterly!Q115/Quarterly!Q114)^4)-1","v":-0.55306252754537111},null,null,null,null,null,{"$f":"((Quarterly!W115/Quarterly!W114)^4)-1","v":-3.4974736198879919E-2},{"$f":"((Quarterly!X115/Quarterly!X114)^4)-1","v":-1.4872701182640946E-2},{"$f":"((Quarterly!Y115/Quarterly!Y114)^4)-1","v":5.2247841443036958E-2},"--",{"$f":"((Quarterly!AA115/Quarterly!AA114)^4)-1","v":-0.19514806501192083},{"$f":"((Quarterly!AB115/Quarterly!AB114)^4)-1","v":-2.5788638764269289E-2},"--","--","--","--","--","--","--","--","--","--",{"$f":"((Quarterly!AM115/Quarterly!AM114)^4)-1","v":1.2912705448236972E-2},{"$f":"((Quarterly!AN115/Quarterly!AN114)^4)-1","v":-1.7954633005150544E-3},"--","--",{"$f":"Quarterly!AQ115-Quarterly!AQ114","v":-1.2333333333333272},"--","--",{"$f":"Quarterly!AT115-Quarterly!AT114","v":-2.2999999999999972},"--","--",{"$f":"Quarterly!AW115-Quarterly!AW114","v":-1.3000000000000114},{"$f":"Quarterly!AX115-Quarterly!AX114","v":-1.6666666666666643},{"$f":"Quarterly!AY115-Quarterly!AY114","v":-6.2666666666666586},{"$f":"Quarterly!AZ115-Quarterly!AZ114","v":-0.59999999999999432},{"$f":"Quarterly!BA115-Quarterly!BA114","v":-0.1666666666666643},"--","--","--","--",{"$f":"((Quarterly!BF115/Quarterly!BF114)^4)-1","v":5.312637052987168E-2},{"$f":"((Quarterly!BG115/Quarterly!BG114)^4)-1","v":6.644945962466231E-3},{"$f":"((Quarterly!BH115/Quarterly!BH114)^4)-1","v":1.5918635604500464E-2},{"$f":"((Quarterly!BI115/Quarterly!BI114)^4)-1","v":4.6130916452045145E-2},{"$f":"((Quarterly!BJ115/Quarterly!BJ114)^4)-1","v":-0.25793071168186799},"--",null,"--","--",null,null,null,null,null,{"$f":"((Quarterly!BT115/Quarterly!BT114)^4)-1","v":0.2097301429409133},{"$f":"Quarterly!BU115-Quarterly!BU114","v":0.33868000000000009},{"$f":"Quarterly!BV115-Quarterly!BV114","v":0.43469000000000158},{"$f":"((Quarterly!BW115/Quarterly!BW114)^4)-1","v":8.0372208746404716E-2},{"$f":"((Quarterly!BX115/Quarterly!BX114)^4)-1","v":0.22257481754770048},{"$f":"((Quarterly!BY115/Quarterly!BY114)^4)-1","v":0.26694763041302139},"--",{"$f":"((Quarterly!CA115/Quarterly!CA114)^4)-1","v":0.27006485321825768},{"$f":"((Quarterly!CB115/Quarterly!CB114)^4)-1","v":-0.18779764649447128},{"$f":"((Quarterly!CC115/Quarterly!CC114)^4)-1","v":-0.14304681484652293},"--","--",null,"--","--",null,{"$f":"((Quarterly!CJ115/Quarterly!CJ114)^4)-1","v":0.27299516267870216},{"$f":"((Quarterly!CK115/Quarterly!CK114)^4)-1","v":7.8924142302112532E-2},{"$f":"((Quarterly!CL115/Quarterly!CL114)^4)-1","v":-0.52640128563443445},{"$f":"((Quarterly!CM115/Quarterly!CM114)^4)-1","v":-6.241204227128816E-3},{"$f":"((Quarterly!CN115/Quarterly!CN114)^4)-1","v":-9.4881586997170864E-3},{"$f":"((Quarterly!CO115/Quarterly!CO114)^4)-1","v":0.23851959331628203},{"$f":"((Quarterly!CP115/Quarterly!CP114)^4)-1","v":0.18404729012123111},{"$f":"((Quarterly!CQ115/Quarterly!CQ114)^4)-1","v":7.6174076247292888E-3},{"$f":"((Quarterly!CR115/Quarterly!CR114)^4)-1","v":0.32322993156376922},{"$f":"Quarterly!CS115-Quarterly!CS114","v":-0.5},"--",null,null,null,null,null,{"$f":"((Quarterly!CZ115/Quarterly!CZ114)^4)-1","v":3.7229230522680234E-2},{"$f":"((Quarterly!DA115/Quarterly!DA114)^4)-1","v":4.4557935758887002E-2},null,null,null,null,null,{"$f":"((Quarterly!DG115/Quarterly!DG114)^4)-1","v":1.7904658489651837E-2},{"$f":"((Quarterly!DH115-Quarterly!DH114)*60)","v":-7.9999999999999716},{"$f":"Quarterly!DI115-Quarterly!DI114","v":0.26666666666666572},"--",{"$f":"(Quarterly!DK115-Quarterly!DK114)*100","v":-6.6666666666667318},{"$f":"((Quarterly!DL115/Quarterly!DL114)^4)-1","v":-1.0978684511410486E-2},null,null,null,{"$f":"((Quarterly!DP115/Quarterly!DP114)^4)-1","v":2.8053883088183129E-2},null,null,null,"--",{"$f":"Quarterly!DU115-Quarterly!DU114","v":-0.23333333333333339},"--","--","--","--","--","--","--","--",null,null,null,null,null,{"$f":"((Quarterly!EI115/Quarterly!EI114)^4)-1","v":2.9314824376707627E-2},{"$f":"((Quarterly!EJ115/Quarterly!EJ114)^4)-1","v":6.7987546888724992E-2},{"$f":"((Quarterly!EK115/Quarterly!EK114)^4)-1","v":6.8108282799461017E-2},null,null,null,null,null,{"$f":"((Quarterly!EQ115/Quarterly!EQ114)^4)-1","v":-1.0262904208458878E-2},{"$f":"((Quarterly!ER115/Quarterly!ER114)^4)-1","v":4.3402619715731339E-2},{"$f":"((Quarterly!ES115/Quarterly!ES114)^4)-1","v":4.2295123285856162E-2},null,null,null,null,null,{"$f":"(Quarterly!EY115-Quarterly!EY114)*100","v":-126.66666666666674},{"$f":"(Quarterly!EZ115-Quarterly!EZ114)*100","v":-79.000000000000085},{"$f":"(Quarterly!FA115-Quarterly!FA114)*100","v":-9.3333333333333712},{"$f":"(Quarterly!FB115-Quarterly!FB114)*100","v":-21.333333333333471},-12.000000000000099,{"$f":"(Quarterly!FD115-Quarterly!FD114)*100","v":-59.333333333333371},{"$f":"(Quarterly!FE115-Quarterly!FE114)*100","v":-62.000000000000099},{"$f":"(Quarterly!FF115-Quarterly!FF114)*100","v":-62.666666666666693},{"$f":"(Quarterly!FG115-Quarterly!FG114)*100","v":-53.999999999999915},{"$f":"(Quarterly!FH115-Quarterly!FH114)*100","v":-29.3333333333333},{"$f":"(Quarterly!FI115-Quarterly!FI114)*100","v":-16.000000000000014},46.666666666666679,null,null,null,null,null,{"$f":"((Quarterly!FP115/Quarterly!FP114)^4)-1","v":0.11244307735180414},{"$f":"((Quarterly!FQ115/Quarterly!FQ114)^4)-1","v":0.20146946799134913},"--","--",{"$f":"((Quarterly!FT115/Quarterly!FT114)^4)-1","v":0.26131334614131085},{"$f":"((Quarterly!FU115/Quarterly!FU114)^4)-1","v":0.23280479557418499},"--","--","--",null,null,null,null,null,{"$f":"((Quarterly!GD115/Quarterly!GD114)^4)-1","v":-5.436480626454876E-2},"--","--","--",{"$f":"((Quarterly!GH116/Quarterly!GH115)^4)-1","v":{"$error":"#DIV/0!"}},"--","--","--","--"]
["85'Q2",{"$f":"((Quarterly!B116/Quarterly!B115)^4)-1","v":6.307424029014852E-2},{"$f":"((Quarterly!C116/Quarterly!C115)^4)-1","v":3.7125583743186308E-2},{"$f":"((Quarterly!D116/Quarterly!D115)^4)-1","v":3.3739650603691107E-2},{"$f":"((Quarterly!E116/Quarterly!E115)^4)-1","v":3.808201670467537E-2},{"$f":"((Quarterly!F116/Quarterly!F115)^4)-1","v":4.8461834423320749E-2},{"$f":"((Quarterly!G116/Quarterly!G115)^4)-1","v":3.1583902102692463E-2},{"$f":"((Quarterly!H116/Quarterly!H115)^4)-1","v":3.9595275523327533E-2},{"$f":"((Quarterly!I116/Quarterly!I115)^4)-1","v":5.8554169441208392E-2},{"$f":"((Quarterly!J116/Quarterly!J115)^4)-1","v":0.10069779415615177},{"$f":"((Quarterly!K116/Quarterly!K115)^4)-1","v":3.2169021787545438E-2},{"$f":"((Quarterly!L116-Quarterly!L115))","v":8.6179999999999986},{"$f":"((Quarterly!M116/Quarterly!M115)^4)-1","v":0.21153193208667886},{"$f":"((Quarterly!N116/Quarterly!N115)^4)-1","v":-8.6112256762488348E-3},{"$f":"((Quarterly!O116/Quarterly!O115)^4)-1","v":0.92601587382736539},{"$f":"((Quarterly!P116/Quarterly!P115)^4)-1","v":9.6398678555370099E-2},{"$f":"((Quarterly!Q116/Quarterly!Q115)^4)-1","v":1.8033124115625934},null,null,null,null,null,{"$f":"((Quarterly!W116/Quarterly!W115)^4)-1","v":-3.030082310136073E-2},{"$f":"((Quarterly!X116/Quarterly!X115)^4)-1","v":-2.6422981926754741E-2},{"$f":"((Quarterly!Y116/Quarterly!Y115)^4)-1","v":3.8888094599842216E-2},"--",{"$f":"((Quarterly!AA116/Quarterly!AA115)^4)-1","v":2.3724749040900051E-2},{"$f":"((Quarterly!AB116/Quarterly!AB115)^4)-1","v":8.8938868175343577E-2},"--","--","--","--","--","--","--","--","--","--",{"$f":"((Quarterly!AM116/Quarterly!AM115)^4)-1","v":2.7831637084014815E-3},{"$f":"((Quarterly!AN116/Quarterly!AN115)^4)-1","v":6.5389229295504947E-3},"--","--",{"$f":"Quarterly!AQ116-Quarterly!AQ115","v":-1.6333333333333258},"--","--",{"$f":"Quarterly!AT116-Quarterly!AT115","v":-1.9000000000000057},"--","--",{"$f":"Quarterly!AW116-Quarterly!AW115","v":-3.4333333333333371},{"$f":"Quarterly!AX116-Quarterly!AX115","v":-0.39999999999999858},{"$f":"Quarterly!AY116-Quarterly!AY115","v":-1.13333333333334},{"$f":"Quarterly!AZ116-Quarterly!AZ115","v":-2.1000000000000014},{"$f":"Quarterly!BA116-Quarterly!BA115","v":-1.5},"--","--","--","--",{"$f":"((Quarterly!BF116/Quarterly!BF115)^4)-1","v":3.8287186731277734E-2},{"$f":"((Quarterly!BG116/Quarterly!BG115)^4)-1","v":1.3573622041964439E-2},{"$f":"((Quarterly!BH116/Quarterly!BH115)^4)-1","v":2.6742243195074789E-3},{"$f":"((Quarterly!BI116/Quarterly!BI115)^4)-1","v":2.4409929926883178E-2},{"$f":"((Quarterly!BJ116/Quarterly!BJ115)^4)-1","v":-0.11079733992858698},"--",null,"--","--",null,null,null,null,null,{"$f":"((Quarterly!BT116/Quarterly!BT115)^4)-1","v":0.1416846890691974},{"$f":"Quarterly!BU116-Quarterly!BU115","v":8.9369999999998839E-2},{"$f":"Quarterly!BV116-Quarterly!BV115","v":0.10416000000000025},{"$f":"((Quarterly!BW116/Quarterly!BW115)^4)-1","v":9.1446821967466674E-2},{"$f":"((Quarterly!BX116/Quarterly!BX115)^4)-1","v":2.6707093684908534E-2},{"$f":"((Quarterly!BY116/Quarterly!BY115)^4)-1","v":3.2068019153300042E-2},"--",{"$f":"((Quarterly!CA116/Quarterly!CA115)^4)-1","v":-3.8940667245710658E-2},{"$f":"((Quarterly!CB116/Quarterly!CB115)^4)-1","v":1.2171566253001753E-2},{"$f":"((Quarterly!CC116/Quarterly!CC115)^4)-1","v":2.0129675145904802E-2},"--","--",null,"--","--",null,{"$f":"((Quarterly!CJ116/Quarterly!CJ115)^4)-1","v":4.4776852928660071E-2},{"$f":"((Quarterly!CK116/Quarterly!CK115)^4)-1","v":4.7440033119044989E-2},{"$f":"((Quarterly!CL116/Quarterly!CL115)^4)-1","v":0.60342238291561712},{"$f":"((Quarterly!CM116/Quarterly!CM115)^4)-1","v":-4.0716503571030627E-2},{"$f":"((Quarterly!CN116/Quarterly!CN115)^4)-1","v":7.9201310000123648E-2},{"$f":"((Quarterly!CO116/Quarterly!CO115)^4)-1","v":0.13623036928777466},{"$f":"((Quarterly!CP116/Quarterly!CP115)^4)-1","v":0.18196908217962648},{"$f":"((Quarterly!CQ116/Quarterly!CQ115)^4)-1","v":8.1165970810399557E-3},{"$f":"((Quarterly!CR116/Quarterly!CR115)^4)-1","v":0.24031407303640928},{"$f":"Quarterly!CS116-Quarterly!CS115","v":-0.16666666666665719},"--",null,null,null,null,null,{"$f":"((Quarterly!CZ116/Quarterly!CZ115)^4)-1","v":3.6885957082150478E-2},{"$f":"((Quarterly!DA116/Quarterly!DA115)^4)-1","v":4.2788216700800685E-2},null,null,null,null,null,{"$f":"((Quarterly!DG116/Quarterly!DG115)^4)-1","v":3.2255483944763963E-2},{"$f":"((Quarterly!DH116-Quarterly!DH115)*60)","v":1.9999999999998863},{"$f":"Quarterly!DI116-Quarterly!DI115","v":0},"--",{"$f":"(Quarterly!DK116-Quarterly!DK115)*100","v":6.666666666666643},{"$f":"((Quarterly!DL116/Quarterly!DL115)^4)-1","v":-2.6006505480730691E-2},null,null,null,{"$f":"((Quarterly!DP116/Quarterly!DP115)^4)-1","v":2.9282768703998041E-2},null,null,null,"--",{"$f":"Quarterly!DU116-Quarterly!DU115","v":-0.20000000000000018},"--","--","--","--","--","--","--","--",null,null,null,null,null,{"$f":"((Quarterly!EI116/Quarterly!EI115)^4)-1","v":4.8352251373694699E-2},{"$f":"((Quarterly!EJ116/Quarterly!EJ115)^4)-1","v":5.0459815247096751E-2},{"$f":"((Quarterly!EK116/Quarterly!EK115)^4)-1","v":5.0195862662475887E-2},null,null,null,null,null,{"$f":"((Quarterly!EQ116/Quarterly!EQ115)^4)-1","v":3.8790967901622952E-3},{"$f":"((Quarterly!ER116/Quarterly!ER115)^4)-1","v":2.2562572339200004E-2},{"$f":"((Quarterly!ES116/Quarterly!ES115)^4)-1","v":2.2669125212714469E-2},null,null,null,null,null,{"$f":"(Quarterly!EY116-Quarterly!EY115)*100","v":-33.999999999999986},{"$f":"(Quarterly!EZ116-Quarterly!EZ115)*100","v":-55.333333333333371},{"$f":"(Quarterly!FA116-Quarterly!FA115)*100","v":-62.666666666666693},{"$f":"(Quarterly!FB116-Quarterly!FB115)*100","v":-37.33333333333313},25.333333333333563,{"$f":"(Quarterly!FD116-Quarterly!FD115)*100","v":-28.000000000000114},{"$f":"(Quarterly!FE116-Quarterly!FE115)*100","v":-72.333333333333357},{"$f":"(Quarterly!FF116-Quarterly!FF115)*100","v":-92.333333333333201},{"$f":"(Quarterly!FG116-Quarterly!FG115)*100","v":-88.000000000000085},{"$f":"(Quarterly!FH116-Quarterly!FH115)*100","v":-87.666666666666515},{"$f":"(Quarterly!FI116-Quarterly!FI115)*100","v":-77.000000000000142},15.333333333333059,null,null,null,null,null,{"$f":"((Quarterly!FP116/Quarterly!FP115)^4)-1","v":4.6370647877849391E-2},{"$f":"((Quarterly!FQ116/Quarterly!FQ115)^4)-1","v":3.2804271352344427E-2},"--","--",{"$f":"((Quarterly!FT116/Quarterly!FT115)^4)-1","v":1.4065921559880401E-3},{"$f":"((Quarterly!FU116/Quarterly!FU115)^4)-1","v":-0.10787618193401582},{"$f":"((Quarterly!FV116/Quarterly!FV115)^4)-1","v":0.36387297491164783},{"$f":"((Quarterly!FW116/Quarterly!FW115)^4)-1","v":0.3068615467301461},{"$f":"((Quarterly!FX116/Quarterly!FX115)^4)-1","v":0.50072329416170169},null,null,null,null,null,{"$f":"((Quarterly!GD116/Quarterly!GD115)^4)-1","v":0.12478184803003445},"--","--","--",{"$f":"((Quarterly!GH117/Quarterly!GH116)^4)-1","v":{"$error":"#DIV/0!"}},"--","--","--","--"]
["85'Q3",{"$f":"((Quarterly!B117/Quarterly!B116)^4)-1","v":8.8582200001926736E-2},{"$f":"((Quarterly!C117/Quarterly!C116)^4)-1","v":6.3695492896262307E-2},{"$f":"((Quarterly!D117/Quarterly!D116)^4)-1","v":6.6195805204199321E-2},{"$f":"((Quarterly!E117/Quarterly!E116)^4)-1","v":7.9073356946756768E-2},{"$f":"((Quarterly!F117/Quarterly!F116)^4)-1","v":0.28165118191886362},{"$f":"((Quarterly!G117/Quarterly!G116)^4)-1","v":3.3261205076339229E-2},{"$f":"((Quarterly!H117/Quarterly!H116)^4)-1","v":7.822946601162406E-2},{"$f":"((Quarterly!I117/Quarterly!I116)^4)-1","v":-4.4677897960518131E-2},{"$f":"((Quarterly!J117/Quarterly!J116)^4)-1","v":-9.5454918839462333E-2},{"$f":"((Quarterly!K117/Quarterly!K116)^4)-1","v":5.1422802924547373E-2},{"$f":"((Quarterly!L117-Quarterly!L116))","v":-4.32},{"$f":"((Quarterly!M117/Quarterly!M116)^4)-1","v":-3.8024973491975977E-2},{"$f":"((Quarterly!N117/Quarterly!N116)^4)-1","v":-5.6932193763541195E-2},{"$f":"((Quarterly!O117/Quarterly!O116)^4)-1","v":3.1641314030872447E-3},{"$f":"((Quarterly!P117/Quarterly!P116)^4)-1","v":9.7393930551244789E-2},{"$f":"((Quarterly!Q117/Quarterly!Q116)^4)-1","v":-0.33509290218709531},null,null,null,null,null,{"$f":"((Quarterly!W117/Quarterly!W116)^4)-1","v":-2.5492634055032437E-2},{"$f":"((Quarterly!X117/Quarterly!X116)^4)-1","v":-3.3164597532469364E-2},{"$f":"((Quarterly!Y117/Quarterly!Y116)^4)-1","v":8.3175613698605266E-2},"--",{"$f":"((Quarterly!AA117/Quarterly!AA116)^4)-1","v":0.10346351024477696},{"$f":"((Quarterly!AB117/Quarterly!AB116)^4)-1","v":0.20287803247745617},"--","--","--","--","--","--","--","--","--","--",{"$f":"((Quarterly!AM117/Quarterly!AM116)^4)-1","v":-5.6718133348224731E-3},{"$f":"((Quarterly!AN117/Quarterly!AN116)^4)-1","v":1.1703159019698095E-3},"--","--",{"$f":"Quarterly!AQ117-Quarterly!AQ116","v":0.79999999999999005},"--","--",{"$f":"Quarterly!AT117-Quarterly!AT116","v":0},"--","--",{"$f":"Quarterly!AW117-Quarterly!AW116","v":1.9666666666666757},{"$f":"Quarterly!AX117-Quarterly!AX116","v":2.4666666666666686},{"$f":"Quarterly!AY117-Quarterly!AY116","v":-0.43333333333334423},{"$f":"Quarterly!AZ117-Quarterly!AZ116","v":-0.79999999999999716},{"$f":"Quarterly!BA117-Quarterly!BA116","v":0.20000000000000995},"--","--","--","--",{"$f":"((Quarterly!BF117/Quarterly!BF116)^4)-1","v":6.1169105899705034E-2},{"$f":"((Quarterly!BG117/Quarterly!BG116)^4)-1","v":5.2135971515878898E-2},{"$f":"((Quarterly!BH117/Quarterly!BH116)^4)-1","v":3.4230020312426168E-2},{"$f":"((Quarterly!BI117/Quarterly!BI116)^4)-1","v":8.5670180054810974E-3},{"$f":"((Quarterly!BJ117/Quarterly!BJ116)^4)-1","v":0.18602366257710434},"--",null,"--","--",null,null,null,null,null,{"$f":"((Quarterly!BT117/Quarterly!BT116)^4)-1","v":0.16429653386318344},{"$f":"Quarterly!BU117-Quarterly!BU116","v":0.28714000000000084},{"$f":"Quarterly!BV117-Quarterly!BV116","v":0.41397999999999868},{"$f":"((Quarterly!BW117/Quarterly!BW116)^4)-1","v":6.685488171352727E-2},{"$f":"((Quarterly!BX117/Quarterly!BX116)^4)-1","v":-5.5961701629371419E-2},{"$f":"((Quarterly!BY117/Quarterly!BY116)^4)-1","v":0.28762033167805967},"--",{"$f":"((Quarterly!CA117/Quarterly!CA116)^4)-1","v":0.56543556774122616},{"$f":"((Quarterly!CB117/Quarterly!CB116)^4)-1","v":-0.12375260040166902},{"$f":"((Quarterly!CC117/Quarterly!CC116)^4)-1","v":-0.10183473329574733},"--","--",null,"--","--",null,{"$f":"((Quarterly!CJ117/Quarterly!CJ116)^4)-1","v":0.33178297153112113},{"$f":"((Quarterly!CK117/Quarterly!CK116)^4)-1","v":5.5260261935485389E-2},{"$f":"((Quarterly!CL117/Quarterly!CL116)^4)-1","v":-0.61074653415912694},{"$f":"((Quarterly!CM117/Quarterly!CM116)^4)-1","v":2.298756745448638E-2},{"$f":"((Quarterly!CN117/Quarterly!CN116)^4)-1","v":-1.3324859335761663E-2},{"$f":"((Quarterly!CO117/Quarterly!CO116)^4)-1","v":0.18461379871443029},{"$f":"((Quarterly!CP117/Quarterly!CP116)^4)-1","v":0.14321606339551574},{"$f":"((Quarterly!CQ117/Quarterly!CQ116)^4)-1","v":1.0113116857736859E-2},{"$f":"((Quarterly!CR117/Quarterly!CR116)^4)-1","v":0.1902078635087272},{"$f":"Quarterly!CS117-Quarterly!CS116","v":-1.4666666666666686},"--",null,null,null,null,null,{"$f":"((Quarterly!CZ117/Quarterly!CZ116)^4)-1","v":2.5100756464268903E-2},{"$f":"((Quarterly!DA117/Quarterly!DA116)^4)-1","v":3.6026850336387861E-2},null,null,null,null,null,{"$f":"((Quarterly!DG117/Quarterly!DG116)^4)-1","v":1.0581918494989351E-2},{"$f":"((Quarterly!DH117-Quarterly!DH116)*60)","v":-6.0000000000000853},{"$f":"Quarterly!DI117-Quarterly!DI116","v":-3.3333333333331439E-2},"--",{"$f":"(Quarterly!DK117-Quarterly!DK116)*100","v":-9.9999999999999645},{"$f":"((Quarterly!DL117/Quarterly!DL116)^4)-1","v":-2.2951381310851726E-2},null,null,null,{"$f":"((Quarterly!DP117/Quarterly!DP116)^4)-1","v":2.3855934326300732E-2},null,null,null,"--",{"$f":"Quarterly!DU117-Quarterly!DU116","v":0.16666666666666607},"--","--","--","--","--","--","--","--",null,null,null,null,null,{"$f":"((Quarterly!EI117/Quarterly!EI116)^4)-1","v":5.4123804908670969E-2},{"$f":"((Quarterly!EJ117/Quarterly!EJ116)^4)-1","v":7.5094984119665975E-2},{"$f":"((Quarterly!EK117/Quarterly!EK116)^4)-1","v":7.1379777104507713E-2},null,null,null,null,null,{"$f":"((Quarterly!EQ117/Quarterly!EQ116)^4)-1","v":-2.6814115636686675E-2},{"$f":"((Quarterly!ER117/Quarterly!ER116)^4)-1","v":1.4915839607121173E-2},{"$f":"((Quarterly!ES117/Quarterly!ES116)^4)-1","v":8.7213313617144905E-3},null,null,null,null,null,{"$f":"(Quarterly!EY117-Quarterly!EY116)*100","v":-69.666666666666714},{"$f":"(Quarterly!EZ117-Quarterly!EZ116)*100","v":-2.3333333333331652},{"$f":"(Quarterly!FA117-Quarterly!FA116)*100","v":-59.999999999999964},{"$f":"(Quarterly!FB117-Quarterly!FB116)*100","v":-55.000000000000249},4.9999999999997158,{"$f":"(Quarterly!FD117-Quarterly!FD116)*100","v":-64.000000000000057},{"$f":"(Quarterly!FE117-Quarterly!FE116)*100","v":-35.33333333333335},{"$f":"(Quarterly!FF117-Quarterly!FF116)*100","v":-47.333333333333357},{"$f":"(Quarterly!FG117-Quarterly!FG116)*100","v":-49.333333333333407},{"$f":"(Quarterly!FH117-Quarterly!FH116)*100","v":-54.333333333333478},{"$f":"(Quarterly!FI117-Quarterly!FI116)*100","v":-47.666666666666657},-0.33333333333330017,null,null,null,null,null,{"$f":"((Quarterly!FP117/Quarterly!FP116)^4)-1","v":-2.7551993138440589E-2},{"$f":"((Quarterly!FQ117/Quarterly!FQ116)^4)-1","v":9.1393259466673982E-2},"--","--",{"$f":"((Quarterly!FT117/Quarterly!FT116)^4)-1","v":-4.8740186833023946E-2},{"$f":"((Quarterly!FU117/Quarterly!FU116)^4)-1","v":-0.18201500226679068},{"$f":"((Quarterly!FV117/Quarterly!FV116)^4)-1","v":-0.41094272758571526},{"$f":"((Quarterly!FW117/Quarterly!FW116)^4)-1","v":0.6328218609849956},{"$f":"((Quarterly!FX117/Quarterly!FX116)^4)-1","v":-0.2433988784968677},null,null,null,null,null,{"$f":"((Quarterly!GD117/Quarterly!GD116)^4)-1","v":-9.443344970406331E-3},"--","--","--",{"$f":"((Quarterly!GH118/Quarterly!GH117)^4)-1","v":{"$error":"#DIV/0!"}},"--","--","--","--"]
["85'Q4",{"$f":"((Quarterly!B118/Quarterly!B117)^4)-1","v":5.4360099971114018E-2},{"$f":"((Quarterly!C118/Quarterly!C117)^4)-1","v":3.0346687839905906E-2},{"$f":"((Quarterly!D118/Quarterly!D117)^4)-1","v":1.6527131210103185E-2},{"$f":"((Quarterly!E118/Quarterly!E117)^4)-1","v":1.0315467443158033E-2},{"$f":"((Quarterly!F118/Quarterly!F117)^4)-1","v":-0.13073238205943583},{"$f":"((Quarterly!G118/Quarterly!G117)^4)-1","v":3.6173930908260266E-2},{"$f":"((Quarterly!H118/Quarterly!H117)^4)-1","v":1.6041864311839849E-2},{"$f":"((Quarterly!I118/Quarterly!I117)^4)-1","v":7.4310879105830008E-2},{"$f":"((Quarterly!J118/Quarterly!J117)^4)-1","v":0.11824747500774513},{"$f":"((Quarterly!K118/Quarterly!K117)^4)-1","v":9.7871696642179984E-2},{"$f":"((Quarterly!L118-Quarterly!L117))","v":19.138999999999999},{"$f":"((Quarterly!M118/Quarterly!M117)^4)-1","v":0.16621248139107903},{"$f":"((Quarterly!N118/Quarterly!N117)^4)-1","v":0.12519219412066485},{"$f":"((Quarterly!O118/Quarterly!O117)^4)-1","v":0.25581503239014447},{"$f":"((Quarterly!P118/Quarterly!P117)^4)-1","v":1.3186476597041308E-2},{"$f":"((Quarterly!Q118/Quarterly!Q117)^4)-1","v":0.11489156154954938},null,null,null,null,null,{"$f":"((Quarterly!W118/Quarterly!W117)^4)-1","v":5.1914232312026964E-3},{"$f":"((Quarterly!X118/Quarterly!X117)^4)-1","v":3.3912644443578888E-3},{"$f":"((Quarterly!Y118/Quarterly!Y117)^4)-1","v":4.8396710478822325E-2},"--",{"$f":"((Quarterly!AA118/Quarterly!AA117)^4)-1","v":4.1361332455720046E-2},{"$f":"((Quarterly!AB118/Quarterly!AB117)^4)-1","v":-0.2268204081578743},"--","--","--","--","--","--","--","--","--","--",{"$f":"((Quarterly!AM118/Quarterly!AM117)^4)-1","v":2.3829971370128877E-2},{"$f":"((Quarterly!AN118/Quarterly!AN117)^4)-1","v":2.6213260845166841E-2},"--","--",{"$f":"Quarterly!AQ118-Quarterly!AQ117","v":2.7000000000000099},"--","--",{"$f":"Quarterly!AT118-Quarterly!AT117","v":1.3999999999999915},"--","--",{"$f":"Quarterly!AW118-Quarterly!AW117","v":2},{"$f":"Quarterly!AX118-Quarterly!AX117","v":2.1666666666666572},{"$f":"Quarterly!AY118-Quarterly!AY117","v":2.3000000000000114},{"$f":"Quarterly!AZ118-Quarterly!AZ117","v":5.0333333333333243},{"$f":"Quarterly!BA118-Quarterly!BA117","v":2},"--","--","--","--",{"$f":"((Quarterly!BF118/Quarterly!BF117)^4)-1","v":7.8512499916697287E-2},{"$f":"((Quarterly!BG118/Quarterly!BG117)^4)-1","v":1.7523494687419428E-2},{"$f":"((Quarterly!BH118/Quarterly!BH117)^4)-1","v":3.872541271640273E-2},{"$f":"((Quarterly!BI118/Quarterly!BI117)^4)-1","v":5.9924038576011807E-2},{"$f":"((Quarterly!BJ118/Quarterly!BJ117)^4)-1","v":-0.14191384821459452},"--",null,"--","--",null,null,null,null,null,{"$f":"((Quarterly!BT118/Quarterly!BT117)^4)-1","v":0.12112479725070902},{"$f":"Quarterly!BU118-Quarterly!BU117","v":0.12081000000000053},{"$f":"Quarterly!BV118-Quarterly!BV117","v":0.16750000000000043},{"$f":"((Quarterly!BW118/Quarterly!BW117)^4)-1","v":6.5279925072196043E-2},{"$f":"((Quarterly!BX118/Quarterly!BX117)^4)-1","v":0.3240881503948434},{"$f":"((Quarterly!BY118/Quarterly!BY117)^4)-1","v":-0.13432088868073644},"--",{"$f":"((Quarterly!CA118/Quarterly!CA117)^4)-1","v":-0.45118377864741765},{"$f":"((Quarterly!CB118/Quarterly!CB117)^4)-1","v":-2.2500965779518323E-3},{"$f":"((Quarterly!CC118/Quarterly!CC117)^4)-1","v":-3.1083602995890969E-2},"--","--",null,"--","--",null,{"$f":"((Quarterly!CJ118/Quarterly!CJ117)^4)-1","v":-0.10778938983647401},{"$f":"((Quarterly!CK118/Quarterly!CK117)^4)-1","v":7.5391828040841435E-2},{"$f":"((Quarterly!CL118/Quarterly!CL117)^4)-1","v":0.57651783001837709},{"$f":"((Quarterly!CM118/Quarterly!CM117)^4)-1","v":0.19688522489107263},{"$f":"((Quarterly!CN118/Quarterly!CN117)^4)-1","v":4.6781601560971886E-2},{"$f":"((Quarterly!CO118/Quarterly!CO117)^4)-1","v":0.11245180113097719},{"$f":"((Quarterly!CP118/Quarterly!CP117)^4)-1","v":0.14517565696300849},{"$f":"((Quarterly!CQ118/Quarterly!CQ117)^4)-1","v":1.0397214055767767E-2},{"$f":"((Quarterly!CR118/Quarterly!CR117)^4)-1","v":0.23369273618444697},{"$f":"Quarterly!CS118-Quarterly!CS117","v":-1.7666666666666515},"--",null,null,null,null,null,{"$f":"((Quarterly!CZ118/Quarterly!CZ117)^4)-1","v":4.1406329766694228E-2},{"$f":"((Quarterly!DA118/Quarterly!DA117)^4)-1","v":4.6978173231851272E-2},null,null,null,null,null,{"$f":"((Quarterly!DG118/Quarterly!DG117)^4)-1","v":3.1912394104341102E-2},{"$f":"((Quarterly!DH118-Quarterly!DH117)*60)","v":2.0000000000003126},{"$f":"Quarterly!DI118-Quarterly!DI117","v":0.23333333333333428},"--",{"$f":"(Quarterly!DK118-Quarterly!DK117)*100","v":-16.666666666666607},{"$f":"((Quarterly!DL118/Quarterly!DL117)^4)-1","v":-1.1369045686538293E-2},null,null,null,{"$f":"((Quarterly!DP118/Quarterly!DP117)^4)-1","v":2.40335226746895E-2},null,null,null,"--",{"$f":"Quarterly!DU118-Quarterly!DU117","v":0},"--","--","--","--","--","--","--","--",null,null,null,null,null,{"$f":"((Quarterly!EI118/Quarterly!EI117)^4)-1","v":4.5807910409520591E-2},{"$f":"((Quarterly!EJ118/Quarterly!EJ117)^4)-1","v":3.5068324767386638E-2},{"$f":"((Quarterly!EK118/Quarterly!EK117)^4)-1","v":3.492259910461204E-2},null,null,null,null,null,{"$f":"((Quarterly!EQ118/Quarterly!EQ117)^4)-1","v":2.4904591998004211E-2},{"$f":"((Quarterly!ER118/Quarterly!ER117)^4)-1","v":2.8627413242993782E-2},{"$f":"((Quarterly!ES118/Quarterly!ES117)^4)-1","v":3.2609438103331501E-2},null,null,null,null,null,{"$f":"(Quarterly!EY118-Quarterly!EY117)*100","v":0},{"$f":"(Quarterly!EZ118-Quarterly!EZ117)*100","v":20.333333333333226},{"$f":"(Quarterly!FA118-Quarterly!FA117)*100","v":-45.333333333333492},{"$f":"(Quarterly!FB118-Quarterly!FB117)*100","v":-49.333333333333229},-3.9999999999997371,{"$f":"(Quarterly!FD118-Quarterly!FD117)*100","v":-40.999999999999837},{"$f":"(Quarterly!FE118-Quarterly!FE117)*100","v":6.0000000000000497},{"$f":"(Quarterly!FF118-Quarterly!FF117)*100","v":-13.999999999999879},{"$f":"(Quarterly!FG118-Quarterly!FG117)*100","v":-36.666666666666714},{"$f":"(Quarterly!FH118-Quarterly!FH117)*100","v":-54.000000000000092},{"$f":"(Quarterly!FI118-Quarterly!FI117)*100","v":-57.666666666666622},-43.666666666666742,null,null,null,null,null,{"$f":"((Quarterly!FP118/Quarterly!FP117)^4)-1","v":5.8387818238133216E-2},{"$f":"((Quarterly!FQ118/Quarterly!FQ117)^4)-1","v":0.37951175538489679},"--","--",{"$f":"((Quarterly!FT118/Quarterly!FT117)^4)-1","v":-0.12147959968603927},{"$f":"((Quarterly!FU118/Quarterly!FU117)^4)-1","v":-0.23763426015858824},{"$f":"((Quarterly!FV118/Quarterly!FV117)^4)-1","v":0.48698185428990159},{"$f":"((Quarterly!FW118/Quarterly!FW117)^4)-1","v":-0.10442123013298543},{"$f":"((Quarterly!FX118/Quarterly!FX117)^4)-1","v":0.3344752385482328},null,null,null,null,null,{"$f":"((Quarterly!GD118/Quarterly!GD117)^4)-1","v":0.2175819806404502},"--","--","--",{"$f":"((Quarterly!GH119/Quarterly!GH118)^4)-1","v":{"$error":"#DIV/0!"}},"--","--","--","--"]
["86'Q1",{"$f":"((Quarterly!B119/Quarterly!B118)^4)-1","v":5.8025933850758715E-2},{"$f":"((Quarterly!C119/Quarterly!C118)^4)-1","v":3.7592913074421475E-2},{"$f":"((Quarterly!D119/Quarterly!D118)^4)-1","v":4.0281975040258322E-2},{"$f":"((Quarterly!E119/Quarterly!E118)^4)-1","v":3.4380832327055577E-2},{"$f":"((Quarterly!F119/Quarterly!F118)^4)-1","v":8.4190002334031178E-2},{"$f":"((Quarterly!G119/Quarterly!G118)^4)-1","v":5.167799422745567E-2},{"$f":"((Quarterly!H119/Quarterly!H118)^4)-1","v":2.2834418119915822E-2},{"$f":"((Quarterly!I119/Quarterly!I118)^4)-1","v":-3.899033720834566E-2},{"$f":"((Quarterly!J119/Quarterly!J118)^4)-1","v":-8.2658900828362025E-2},{"$f":"((Quarterly!K119/Quarterly!K118)^4)-1","v":0.18158453699218646},{"$f":"((Quarterly!L119-Quarterly!L118))","v":-4.7369999999999948},{"$f":"((Quarterly!M119/Quarterly!M118)^4)-1","v":-3.6861421416124474E-3},{"$f":"((Quarterly!N119/Quarterly!N118)^4)-1","v":0.13193073265630795},{"$f":"((Quarterly!O119/Quarterly!O118)^4)-1","v":-0.24214193549113383},{"$f":"((Quarterly!P119/Quarterly!P118)^4)-1","v":3.3791760268968796E-2},{"$f":"((Quarterly!Q119/Quarterly!Q118)^4)-1","v":-2.7792942409987642E-4},null,null,null,null,null,{"$f":"((Quarterly!W119/Quarterly!W118)^4)-1","v":3.1411228395758606E-2},{"$f":"((Quarterly!X119/Quarterly!X118)^4)-1","v":6.7853870409579908E-3},{"$f":"((Quarterly!Y119/Quarterly!Y118)^4)-1","v":4.7051158283657468E-2},"--",{"$f":"((Quarterly!AA119/Quarterly!AA118)^4)-1","v":-0.56186013084113484},{"$f":"((Quarterly!AB119/Quarterly!AB118)^4)-1","v":-0.23074809485935821},"--","--","--","--","--","--","--","--","--","--",{"$f":"((Quarterly!AM119/Quarterly!AM118)^4)-1","v":2.3734215964000827E-2},{"$f":"((Quarterly!AN119/Quarterly!AN118)^4)-1","v":4.8345722994719731E-2},"--","--",{"$f":"Quarterly!AQ119-Quarterly!AQ118","v":-0.13333333333334707},"--","--",{"$f":"Quarterly!AT119-Quarterly!AT118","v":-0.26666666666666572},"--","--",{"$f":"Quarterly!AW119-Quarterly!AW118","v":-1},{"$f":"Quarterly!AX119-Quarterly!AX118","v":0.96666666666667567},{"$f":"Quarterly!AY119-Quarterly!AY118","v":2.0999999999999943},{"$f":"Quarterly!AZ119-Quarterly!AZ118","v":-1.3999999999999986},{"$f":"Quarterly!BA119-Quarterly!BA118","v":0.86666666666666003},"--","--","--","--",{"$f":"((Quarterly!BF119/Quarterly!BF118)^4)-1","v":6.0330663004751539E-2},{"$f":"((Quarterly!BG119/Quarterly!BG118)^4)-1","v":4.7944982180423201E-2},{"$f":"((Quarterly!BH119/Quarterly!BH118)^4)-1","v":3.8731827959580301E-2},{"$f":"((Quarterly!BI119/Quarterly!BI118)^4)-1","v":1.1785605835367363E-2},{"$f":"((Quarterly!BJ119/Quarterly!BJ118)^4)-1","v":-0.75129606866359455},"--",null,"--","--",null,null,null,null,null,{"$f":"((Quarterly!BT119/Quarterly!BT118)^4)-1","v":8.0744819842373694E-2},{"$f":"Quarterly!BU119-Quarterly!BU118","v":2.1569999999998757E-2},{"$f":"Quarterly!BV119-Quarterly!BV118","v":9.280000000000399E-3},{"$f":"((Quarterly!BW119/Quarterly!BW118)^4)-1","v":5.9473479392005313E-2},{"$f":"((Quarterly!BX119/Quarterly!BX118)^4)-1","v":0.17235934669158737},{"$f":"((Quarterly!BY119/Quarterly!BY118)^4)-1","v":0.13232005967421823},"--",{"$f":"((Quarterly!CA119/Quarterly!CA118)^4)-1","v":0.11470161268207035},{"$f":"((Quarterly!CB119/Quarterly!CB118)^4)-1","v":-0.14494380741556601},{"$f":"((Quarterly!CC119/Quarterly!CC118)^4)-1","v":-0.10065271509217066},"--","--",null,"--","--",null,{"$f":"((Quarterly!CJ119/Quarterly!CJ118)^4)-1","v":0.51809634911357438},{"$f":"((Quarterly!CK119/Quarterly!CK118)^4)-1","v":6.8263029229101324E-2},{"$f":"((Quarterly!CL119/Quarterly!CL118)^4)-1","v":0.26481781243795277},{"$f":"((Quarterly!CM119/Quarterly!CM118)^4)-1","v":0.36680797362924999},{"$f":"((Quarterly!CN119/Quarterly!CN118)^4)-1","v":5.0754257221478527E-2},{"$f":"((Quarterly!CO119/Quarterly!CO118)^4)-1","v":4.4428459651025376E-2},{"$f":"((Quarterly!CP119/Quarterly!CP118)^4)-1","v":0.11034970249303444},{"$f":"((Quarterly!CQ119/Quarterly!CQ118)^4)-1","v":8.1429038543290311E-3},{"$f":"((Quarterly!CR119/Quarterly!CR118)^4)-1","v":0.22123037548944668},{"$f":"Quarterly!CS119-Quarterly!CS118","v":4.4666666666666686},"--",null,null,null,null,null,{"$f":"((Quarterly!CZ119/Quarterly!CZ118)^4)-1","v":2.095783347799185E-2},{"$f":"((Quarterly!DA119/Quarterly!DA118)^4)-1","v":4.3949552679839687E-2},null,null,null,null,null,{"$f":"((Quarterly!DG119/Quarterly!DG118)^4)-1","v":2.1024248631348552E-2},{"$f":"((Quarterly!DH119-Quarterly!DH118)*60)","v":1.9999999999998863},{"$f":"Quarterly!DI119-Quarterly!DI118","v":3.3333333333331439E-2},"--",{"$f":"(Quarterly!DK119-Quarterly!DK118)*100","v":0},{"$f":"((Quarterly!DL119/Quarterly!DL118)^4)-1","v":-9.3833509007292815E-3},null,null,null,{"$f":"((Quarterly!DP119/Quarterly!DP118)^4)-1","v":1.6711458325428197E-2},null,null,null,"--",{"$f":"Quarterly!DU119-Quarterly!DU118","v":-0.16666666666666519},"--","--","--","--","--","--","--","--",null,null,null,null,null,{"$f":"((Quarterly!EI119/Quarterly!EI118)^4)-1","v":4.683768568065938E-2},{"$f":"((Quarterly!EJ119/Quarterly!EJ118)^4)-1","v":2.4472795897127586E-2},{"$f":"((Quarterly!EK119/Quarterly!EK118)^4)-1","v":1.9788440376780292E-2},null,null,null,null,null,{"$f":"((Quarterly!EQ119/Quarterly!EQ118)^4)-1","v":-5.9298552759566081E-2},{"$f":"((Quarterly!ER119/Quarterly!ER118)^4)-1","v":1.5992301776284412E-2},{"$f":"((Quarterly!ES119/Quarterly!ES118)^4)-1","v":9.8703755810607419E-3},null,null,null,null,null,{"$f":"(Quarterly!EY119-Quarterly!EY118)*100","v":-13.333333333333286},{"$f":"(Quarterly!EZ119-Quarterly!EZ118)*100","v":-27.666666666666639},{"$f":"(Quarterly!FA119-Quarterly!FA118)*100","v":-100.33333333333339},{"$f":"(Quarterly!FB119-Quarterly!FB118)*100","v":-96.000000000000085},4.3333333333333002,{"$f":"(Quarterly!FD119-Quarterly!FD118)*100","v":-117},{"$f":"(Quarterly!FE119-Quarterly!FE118)*100","v":-27.000000000000135},{"$f":"(Quarterly!FF119-Quarterly!FF118)*100","v":-39.666666666666742},{"$f":"(Quarterly!FG119-Quarterly!FG118)*100","v":-75.6666666666666},{"$f":"(Quarterly!FH119-Quarterly!FH118)*100","v":-107.33333333333323},{"$f":"(Quarterly!FI119-Quarterly!FI118)*100","v":-120.33333333333331},-80.666666666666572,null,null,null,null,null,{"$f":"((Quarterly!FP119/Quarterly!FP118)^4)-1","v":7.2951637756954346E-2},{"$f":"((Quarterly!FQ119/Quarterly!FQ118)^4)-1","v":6.4077383065100024E-2},"--","--",{"$f":"((Quarterly!FT119/Quarterly!FT118)^4)-1","v":-7.7626560665783439E-2},{"$f":"((Quarterly!FU119/Quarterly!FU118)^4)-1","v":-0.19159751264287461},{"$f":"((Quarterly!FV119/Quarterly!FV118)^4)-1","v":-9.7832786410748884E-2},{"$f":"((Quarterly!FW119/Quarterly!FW118)^4)-1","v":1.173668597644447},{"$f":"((Quarterly!FX119/Quarterly!FX118)^4)-1","v":-0.36311517109687363},null,null,null,null,null,{"$f":"((Quarterly!GD119/Quarterly!GD118)^4)-1","v":-0.88495941549833124},"--","--","--",{"$f":"((Quarterly!GH120/Quarterly!GH119)^4)-1","v":{"$error":"#DIV/0!"}},"--","--","--","--"]
["86'Q2",{"$f":"((Quarterly!B120/Quarterly!B119)^4)-1","v":3.4901235250503593E-2},{"$f":"((Quarterly!C120/Quarterly!C119)^4)-1","v":1.8489369316069926E-2},{"$f":"((Quarterly!D120/Quarterly!D119)^4)-1","v":3.2506045717217713E-2},{"$f":"((Quarterly!E120/Quarterly!E119)^4)-1","v":4.5473671621269585E-2},{"$f":"((Quarterly!F120/Quarterly!F119)^4)-1","v":0.14898194065475301},{"$f":"((Quarterly!G120/Quarterly!G119)^4)-1","v":3.6088883652040993E-2},{"$f":"((Quarterly!H120/Quarterly!H119)^4)-1","v":3.8968121580569948E-2},{"$f":"((Quarterly!I120/Quarterly!I119)^4)-1","v":-7.8733391323422608E-2},{"$f":"((Quarterly!J120/Quarterly!J119)^4)-1","v":-0.15619411290231022},{"$f":"((Quarterly!K120/Quarterly!K119)^4)-1","v":0.24207185071890835},{"$f":"((Quarterly!L120-Quarterly!L119))","v":-19.102000000000004},{"$f":"((Quarterly!M120/Quarterly!M119)^4)-1","v":0.18151151866304116},{"$f":"((Quarterly!N120/Quarterly!N119)^4)-1","v":4.4047860722893351E-2},{"$f":"((Quarterly!O120/Quarterly!O119)^4)-1","v":0.54085611761064301},{"$f":"((Quarterly!P120/Quarterly!P119)^4)-1","v":8.3971862004359688E-2},{"$f":"((Quarterly!Q120/Quarterly!Q119)^4)-1","v":0.53297745519912332},null,null,null,null,null,{"$f":"((Quarterly!W120/Quarterly!W119)^4)-1","v":-1.5315607392716091E-2},{"$f":"((Quarterly!X120/Quarterly!X119)^4)-1","v":-3.3358184610244423E-2},{"$f":"((Quarterly!Y120/Quarterly!Y119)^4)-1","v":5.6567532677553878E-2},"--",{"$f":"((Quarterly!AA120/Quarterly!AA119)^4)-1","v":-7.5272134691609205E-2},{"$f":"((Quarterly!AB120/Quarterly!AB119)^4)-1","v":-0.21692168497599962},"--","--","--","--","--","--","--","--","--","--",{"$f":"((Quarterly!AM120/Quarterly!AM119)^4)-1","v":-2.3145004554047222E-2},{"$f":"((Quarterly!AN120/Quarterly!AN119)^4)-1","v":-8.2044397683166403E-3},"--","--",{"$f":"Quarterly!AQ120-Quarterly!AQ119","v":0.13333333333333286},"--","--",{"$f":"Quarterly!AT120-Quarterly!AT119","v":-0.20000000000000995},"--","--",{"$f":"Quarterly!AW120-Quarterly!AW119","v":0.1666666666666643},{"$f":"Quarterly!AX120-Quarterly!AX119","v":0.8333333333333357},{"$f":"Quarterly!AY120-Quarterly!AY119","v":-1.1666666666666643},{"$f":"Quarterly!AZ120-Quarterly!AZ119","v":-0.46666666666666856},{"$f":"Quarterly!BA120-Quarterly!BA119","v":0.13333333333333997},"--","--","--","--",{"$f":"((Quarterly!BF120/Quarterly!BF119)^4)-1","v":4.4108364394377597E-2},{"$f":"((Quarterly!BG120/Quarterly!BG119)^4)-1","v":3.1156452206614116E-2},{"$f":"((Quarterly!BH120/Quarterly!BH119)^4)-1","v":6.5883758207134546E-2},{"$f":"((Quarterly!BI120/Quarterly!BI119)^4)-1","v":1.2590001173165888E-2},{"$f":"((Quarterly!BJ120/Quarterly!BJ119)^4)-1","v":-4.8570662337514614E-2},"--",null,"--","--",null,null,null,null,null,{"$f":"((Quarterly!BT120/Quarterly!BT119)^4)-1","v":7.1909170585219728E-2},{"$f":"Quarterly!BU120-Quarterly!BU119","v":6.8540000000000489E-2},{"$f":"Quarterly!BV120-Quarterly!BV119","v":0.11322999999999794},{"$f":"((Quarterly!BW120/Quarterly!BW119)^4)-1","v":5.2502498319593194E-2},{"$f":"((Quarterly!BX120/Quarterly!BX119)^4)-1","v":-4.2833592989719227E-2},{"$f":"((Quarterly!BY120/Quarterly!BY119)^4)-1","v":3.8359565181681488E-2},"--",{"$f":"((Quarterly!CA120/Quarterly!CA119)^4)-1","v":0.23700324526641614},{"$f":"((Quarterly!CB120/Quarterly!CB119)^4)-1","v":-0.42144642649136188},{"$f":"((Quarterly!CC120/Quarterly!CC119)^4)-1","v":-0.28323387709873427},"--","--",null,"--","--",null,{"$f":"((Quarterly!CJ120/Quarterly!CJ119)^4)-1","v":5.7589678508424003E-2},{"$f":"((Quarterly!CK120/Quarterly!CK119)^4)-1","v":4.6944026905951119E-2},{"$f":"((Quarterly!CL120/Quarterly!CL119)^4)-1","v":0.13997383670775743},{"$f":"((Quarterly!CM120/Quarterly!CM119)^4)-1","v":6.0322039148499318E-2},{"$f":"((Quarterly!CN120/Quarterly!CN119)^4)-1","v":5.4217596995278061E-2},{"$f":"((Quarterly!CO120/Quarterly!CO119)^4)-1","v":0.15052637501507338},{"$f":"((Quarterly!CP120/Quarterly!CP119)^4)-1","v":0.10388740790057849},{"$f":"((Quarterly!CQ120/Quarterly!CQ119)^4)-1","v":8.1990900697463953E-3},{"$f":"((Quarterly!CR120/Quarterly!CR119)^4)-1","v":0.15296462409690381},{"$f":"Quarterly!CS120-Quarterly!CS119","v":1.2333333333333201},"--",null,null,null,null,null,{"$f":"((Quarterly!CZ120/Quarterly!CZ119)^4)-1","v":-1.9328937989681383E-2},{"$f":"((Quarterly!DA120/Quarterly!DA119)^4)-1","v":3.3691405421200749E-2},null,null,null,null,null,{"$f":"((Quarterly!DG120/Quarterly!DG119)^4)-1","v":-3.4542282080247677E-3},{"$f":"((Quarterly!DH120-Quarterly!DH119)*60)","v":-7.9999999999999716},{"$f":"Quarterly!DI120-Quarterly!DI119","v":0.23333333333333428},"--",{"$f":"(Quarterly!DK120-Quarterly!DK119)*100","v":13.333333333333286},{"$f":"((Quarterly!DL120/Quarterly!DL119)^4)-1","v":-1.7552645536382472E-2},null,null,null,{"$f":"((Quarterly!DP120/Quarterly!DP119)^4)-1","v":1.3776722117780027E-2},null,null,null,"--",{"$f":"Quarterly!DU120-Quarterly!DU119","v":3.3333333333332327E-2},"--","--","--","--","--","--","--","--",null,null,null,null,null,{"$f":"((Quarterly!EI120/Quarterly!EI119)^4)-1","v":3.259046745233074E-2},{"$f":"((Quarterly!EJ120/Quarterly!EJ119)^4)-1","v":2.4204754194497413E-2},{"$f":"((Quarterly!EK120/Quarterly!EK119)^4)-1","v":2.3297482479362586E-2},null,null,null,null,null,{"$f":"((Quarterly!EQ120/Quarterly!EQ119)^4)-1","v":-7.2638227005909051E-2},{"$f":"((Quarterly!ER120/Quarterly!ER119)^4)-1","v":2.9554662547062627E-2},{"$f":"((Quarterly!ES120/Quarterly!ES119)^4)-1","v":2.3502940521118898E-2},null,null,null,null,null,{"$f":"(Quarterly!EY120-Quarterly!EY119)*100","v":-75.666666666666771},{"$f":"(Quarterly!EZ120-Quarterly!EZ119)*100","v":-90.666666666666799},{"$f":"(Quarterly!FA120-Quarterly!FA119)*100","v":-57.000000000000028},{"$f":"(Quarterly!FB120-Quarterly!FB119)*100","v":-74.3333333333334},-17.333333333333371,{"$f":"(Quarterly!FD120-Quarterly!FD119)*100","v":-30.333333333333456},{"$f":"(Quarterly!FE120-Quarterly!FE119)*100","v":-75.666666666666501},{"$f":"(Quarterly!FF120-Quarterly!FF119)*100","v":-85.000000000000057},{"$f":"(Quarterly!FG120-Quarterly!FG119)*100","v":-79},{"$f":"(Quarterly!FH120-Quarterly!FH119)*100","v":-75.666666666666686},{"$f":"(Quarterly!FI120-Quarterly!FI119)*100","v":-95.3333333333334},-10.333333333333343,null,null,null,null,null,{"$f":"((Quarterly!FP120/Quarterly!FP119)^4)-1","v":-5.4588405817497132E-2},{"$f":"((Quarterly!FQ120/Quarterly!FQ119)^4)-1","v":-7.3204847766461523E-3},"--","--",{"$f":"((Quarterly!FT120/Quarterly!FT119)^4)-1","v":-9.3401438914640478E-2},{"$f":"((Quarterly!FU120/Quarterly!FU119)^4)-1","v":-0.18182400762947881},{"$f":"((Quarterly!FV120/Quarterly!FV119)^4)-1","v":4.5283570183373367E-2},{"$f":"((Quarterly!FW120/Quarterly!FW119)^4)-1","v":-0.6389073026645693},{"$f":"((Quarterly!FX120/Quarterly!FX119)^4)-1","v":-0.12066642351774326},null,null,null,null,null,{"$f":"((Quarterly!GD120/Quarterly!GD119)^4)-1","v":-0.55064357845621925},"--","--","--",{"$f":"((Quarterly!GH121/Quarterly!GH120)^4)-1","v":{"$error":"#DIV/0!"}},"--","--","--","--"]
["86'Q3",{"$f":"((Quarterly!B121/Quarterly!B120)^4)-1","v":5.7744275203526874E-2},{"$f":"((Quarterly!C121/Quarterly!C120)^4)-1","v":4.0874697427854434E-2},{"$f":"((Quarterly!D121/Quarterly!D120)^4)-1","v":5.8608972095472556E-2},{"$f":"((Quarterly!E121/Quarterly!E120)^4)-1","v":7.443864216238083E-2},{"$f":"((Quarterly!F121/Quarterly!F120)^4)-1","v":0.38728383627618945},{"$f":"((Quarterly!G121/Quarterly!G120)^4)-1","v":8.3309088757816951E-3},{"$f":"((Quarterly!H121/Quarterly!H120)^4)-1","v":7.1176651281048109E-2},{"$f":"((Quarterly!I121/Quarterly!I120)^4)-1","v":-4.5134489996139338E-2},{"$f":"((Quarterly!J121/Quarterly!J120)^4)-1","v":-9.8053795043621994E-2},{"$f":"((Quarterly!K121/Quarterly!K120)^4)-1","v":6.3180983472630903E-2},{"$f":"((Quarterly!L121-Quarterly!L120))","v":-28.495999999999999},{"$f":"((Quarterly!M121/Quarterly!M120)^4)-1","v":0.115502689805006},{"$f":"((Quarterly!N121/Quarterly!N120)^4)-1","v":9.4707382526833417E-2},{"$f":"((Quarterly!O121/Quarterly!O120)^4)-1","v":0.15895455635860767},{"$f":"((Quarterly!P121/Quarterly!P120)^4)-1","v":9.4406398435230798E-2},{"$f":"((Quarterly!Q121/Quarterly!Q120)^4)-1","v":0.10690900418056759},null,null,null,null,null,{"$f":"((Quarterly!W121/Quarterly!W120)^4)-1","v":1.0349202332347485E-2},{"$f":"((Quarterly!X121/Quarterly!X120)^4)-1","v":1.7046661379434003E-3},{"$f":"((Quarterly!Y121/Quarterly!Y120)^4)-1","v":5.0348081136719403E-2},"--",{"$f":"((Quarterly!AA121/Quarterly!AA120)^4)-1","v":-2.1445981589324536E-2},{"$f":"((Quarterly!AB121/Quarterly!AB120)^4)-1","v":-0.20053009590318305},"--","--","--","--","--","--","--","--","--","--",{"$f":"((Quarterly!AM121/Quarterly!AM120)^4)-1","v":1.4850012241348853E-2},{"$f":"((Quarterly!AN121/Quarterly!AN120)^4)-1","v":2.4373261687246517E-2},"--","--",{"$f":"Quarterly!AQ121-Quarterly!AQ120","v":-0.19999999999999574},"--","--",{"$f":"Quarterly!AT121-Quarterly!AT120","v":-0.19999999999998863},"--","--",{"$f":"Quarterly!AW121-Quarterly!AW120","v":1.3999999999999986},{"$f":"Quarterly!AX121-Quarterly!AX120","v":-1.3000000000000114},{"$f":"Quarterly!AY121-Quarterly!AY120","v":4.7666666666666657},{"$f":"Quarterly!AZ121-Quarterly!AZ120","v":0.23333333333334139},{"$f":"Quarterly!BA121-Quarterly!BA120","v":-0.16666666666667851},"--","--","--","--",{"$f":"((Quarterly!BF121/Quarterly!BF120)^4)-1","v":5.0387184958541775E-2},{"$f":"((Quarterly!BG121/Quarterly!BG120)^4)-1","v":1.9478143777685197E-2},{"$f":"((Quarterly!BH121/Quarterly!BH120)^4)-1","v":2.6488462099395926E-2},{"$f":"((Quarterly!BI121/Quarterly!BI120)^4)-1","v":3.0355537968499435E-2},{"$f":"((Quarterly!BJ121/Quarterly!BJ120)^4)-1","v":-2.1274856109072537E-3},"--",null,"--","--",null,null,null,null,null,{"$f":"((Quarterly!BT121/Quarterly!BT120)^4)-1","v":9.7039895288994149E-2},{"$f":"Quarterly!BU121-Quarterly!BU120","v":9.9120000000000985E-2},{"$f":"Quarterly!BV121-Quarterly!BV120","v":0.13865000000000194},{"$f":"((Quarterly!BW121/Quarterly!BW120)^4)-1","v":6.7725494551587051E-3},{"$f":"((Quarterly!BX121/Quarterly!BX120)^4)-1","v":-0.23095495752036677},{"$f":"((Quarterly!BY121/Quarterly!BY120)^4)-1","v":-0.17330140638831082},"--",{"$f":"((Quarterly!CA121/Quarterly!CA120)^4)-1","v":0.66804411814072018},{"$f":"((Quarterly!CB121/Quarterly!CB120)^4)-1","v":-9.175912237785333E-2},{"$f":"((Quarterly!CC121/Quarterly!CC120)^4)-1","v":-9.7312358401664079E-2},"--","--",null,"--","--",null,{"$f":"((Quarterly!CJ121/Quarterly!CJ120)^4)-1","v":-0.40843830831062622},{"$f":"((Quarterly!CK121/Quarterly!CK120)^4)-1","v":5.5074493444532635E-2},{"$f":"((Quarterly!CL121/Quarterly!CL120)^4)-1","v":-0.3324091483120678},{"$f":"((Quarterly!CM121/Quarterly!CM120)^4)-1","v":-0.1662306461972175},{"$f":"((Quarterly!CN121/Quarterly!CN120)^4)-1","v":2.8615772720694599E-2},{"$f":"((Quarterly!CO121/Quarterly!CO120)^4)-1","v":0.20150558732257884},{"$f":"((Quarterly!CP121/Quarterly!CP120)^4)-1","v":9.8440977894843851E-2},{"$f":"((Quarterly!CQ121/Quarterly!CQ120)^4)-1","v":9.7409405729429466E-3},{"$f":"((Quarterly!CR121/Quarterly!CR120)^4)-1","v":0.10076747343595627},{"$f":"Quarterly!CS121-Quarterly!CS120","v":-1.9333333333333371},"--",null,null,null,null,null,{"$f":"((Quarterly!CZ121/Quarterly!CZ120)^4)-1","v":2.46825790146461E-2},{"$f":"((Quarterly!DA121/Quarterly!DA120)^4)-1","v":3.8250341408684996E-2},null,null,null,null,null,{"$f":"((Quarterly!DG121/Quarterly!DG120)^4)-1","v":1.21711271066125E-2},{"$f":"((Quarterly!DH121-Quarterly!DH120)*60)","v":-6.0000000000000853},{"$f":"Quarterly!DI121-Quarterly!DI120","v":0.13333333333332575},"--",{"$f":"(Quarterly!DK121-Quarterly!DK120)*100","v":-20.000000000000107},{"$f":"((Quarterly!DL121/Quarterly!DL120)^4)-1","v":-1.9200706612791052E-2},null,null,null,{"$f":"((Quarterly!DP121/Quarterly!DP120)^4)-1","v":1.9882638823226051E-2},null,null,null,"--",{"$f":"Quarterly!DU121-Quarterly!DU120","v":0.29999999999999982},"--","--","--","--","--","--","--","--",null,null,null,null,null,{"$f":"((Quarterly!EI121/Quarterly!EI120)^4)-1","v":3.8064934311152099E-2},{"$f":"((Quarterly!EJ121/Quarterly!EJ120)^4)-1","v":4.4848321732112506E-2},{"$f":"((Quarterly!EK121/Quarterly!EK120)^4)-1","v":4.3832092737309258E-2},null,null,null,null,null,{"$f":"((Quarterly!EQ121/Quarterly!EQ120)^4)-1","v":-1.8567134483115755E-2},{"$f":"((Quarterly!ER121/Quarterly!ER120)^4)-1","v":1.7036428628513178E-2},{"$f":"((Quarterly!ES121/Quarterly!ES120)^4)-1","v":1.3478137453175609E-2},null,null,null,null,null,{"$f":"(Quarterly!EY121-Quarterly!EY120)*100","v":-75.666666666666501},{"$f":"(Quarterly!EZ121-Quarterly!EZ120)*100","v":-71.333333333333201},{"$f":"(Quarterly!FA121-Quarterly!FA120)*100","v":-17.333333333333201},{"$f":"(Quarterly!FB121-Quarterly!FB120)*100","v":-9.3333333333331936},8.0000000000000071,{"$f":"(Quarterly!FD121-Quarterly!FD120)*100","v":-1.3333333333331865},{"$f":"(Quarterly!FE121-Quarterly!FE120)*100","v":-61.666666666666714},{"$f":"(Quarterly!FF121-Quarterly!FF120)*100","v":-61.666666666666714},{"$f":"(Quarterly!FG121-Quarterly!FG120)*100","v":-53.333333333333321},{"$f":"(Quarterly!FH121-Quarterly!FH120)*100","v":-47.666666666666657},{"$f":"(Quarterly!FI121-Quarterly!FI120)*100","v":-29.666666666666686},32.000000000000028,null,null,null,null,null,{"$f":"((Quarterly!FP121/Quarterly!FP120)^4)-1","v":2.9887779406982951E-3},{"$f":"((Quarterly!FQ121/Quarterly!FQ120)^4)-1","v":0.74908208013430322},"--","--",{"$f":"((Quarterly!FT121/Quarterly!FT120)^4)-1","v":-6.8590670471134985E-2},{"$f":"((Quarterly!FU121/Quarterly!FU120)^4)-1","v":-0.15587483061255769},{"$f":"((Quarterly!FV121/Quarterly!FV120)^4)-1","v":-0.24481305614061488},{"$f":"((Quarterly!FW121/Quarterly!FW120)^4)-1","v":2.3507287436673776},{"$f":"((Quarterly!FX121/Quarterly!FX120)^4)-1","v":-2.2027609049247721E-2},null,null,null,null,null,{"$f":"((Quarterly!GD121/Quarterly!GD120)^4)-1","v":-1.7130224858803444E-2},"--","--","--",{"$f":"((Quarterly!GH122/Quarterly!GH121)^4)-1","v":{"$error":"#DIV/0!"}},"--","--","--","--"]
["86'Q4",{"$f":"((Quarterly!B122/Quarterly!B121)^4)-1","v":4.3794932018173416E-2},{"$f":"((Quarterly!C122/Quarterly!C121)^4)-1","v":2.0871513979465073E-2},{"$f":"((Quarterly!D122/Quarterly!D121)^4)-1","v":2.4405444896721695E-2},{"$f":"((Quarterly!E122/Quarterly!E121)^4)-1","v":2.58349603313901E-2},{"$f":"((Quarterly!F122/Quarterly!F121)^4)-1","v":-6.1932417834865805E-2},{"$f":"((Quarterly!G122/Quarterly!G121)^4)-1","v":3.2949133405583586E-2},{"$f":"((Quarterly!H122/Quarterly!H121)^4)-1","v":3.3263302989306798E-2},{"$f":"((Quarterly!I122/Quarterly!I121)^4)-1","v":3.9197957762938884E-2},{"$f":"((Quarterly!J122/Quarterly!J121)^4)-1","v":5.5954097121578839E-2},{"$f":"((Quarterly!K122/Quarterly!K121)^4)-1","v":-7.2397892504778572E-3},{"$f":"((Quarterly!L122-Quarterly!L121))","v":1.5890000000000004},{"$f":"((Quarterly!M122/Quarterly!M121)^4)-1","v":3.1159275092966787E-2},{"$f":"((Quarterly!N122/Quarterly!N121)^4)-1","v":0.15763788339904772},{"$f":"((Quarterly!O122/Quarterly!O121)^4)-1","v":-0.19207819992549557},{"$f":"((Quarterly!P122/Quarterly!P121)^4)-1","v":-2.3118772876329574E-2},{"$f":"((Quarterly!Q122/Quarterly!Q121)^4)-1","v":-0.48160562298016651},null,null,null,null,null,{"$f":"((Quarterly!W122/Quarterly!W121)^4)-1","v":3.6478359683846273E-2},{"$f":"((Quarterly!X122/Quarterly!X121)^4)-1","v":2.9264263290735171E-2},{"$f":"((Quarterly!Y122/Quarterly!Y121)^4)-1","v":9.2230715995095025E-2},"--",{"$f":"((Quarterly!AA122/Quarterly!AA121)^4)-1","v":0.12310219180870496},{"$f":"((Quarterly!AB122/Quarterly!AB121)^4)-1","v":-0.21216050032124101},"--","--","--","--","--","--","--","--","--","--",{"$f":"((Quarterly!AM122/Quarterly!AM121)^4)-1","v":4.6237807983051216E-2},{"$f":"((Quarterly!AN122/Quarterly!AN121)^4)-1","v":5.0815503721003852E-2},"--","--",{"$f":"Quarterly!AQ122-Quarterly!AQ121","v":-3.3333333333331439E-2},"--","--",{"$f":"Quarterly!AT122-Quarterly!AT121","v":3.3333333333331439E-2},"--","--",{"$f":"Quarterly!AW122-Quarterly!AW121","v":-3.0666666666666629},{"$f":"Quarterly!AX122-Quarterly!AX121","v":0},{"$f":"Quarterly!AY122-Quarterly!AY121","v":4.3666666666666671},{"$f":"Quarterly!AZ122-Quarterly!AZ121","v":3.3333333333331439E-2},{"$f":"Quarterly!BA122-Quarterly!BA121","v":1.9333333333333371},"--","--","--","--",{"$f":"((Quarterly!BF122/Quarterly!BF121)^4)-1","v":5.3997600639565935E-2},{"$f":"((Quarterly!BG122/Quarterly!BG121)^4)-1","v":-9.7157717405051969E-3},{"$f":"((Quarterly!BH122/Quarterly!BH121)^4)-1","v":2.7817108677139712E-2},{"$f":"((Quarterly!BI122/Quarterly!BI121)^4)-1","v":6.4373623024467364E-2},{"$f":"((Quarterly!BJ122/Quarterly!BJ121)^4)-1","v":0.3536887150846495},"--",null,"--","--",null,null,null,null,null,{"$f":"((Quarterly!BT122/Quarterly!BT121)^4)-1","v":7.9626779762076882E-2},{"$f":"Quarterly!BU122-Quarterly!BU121","v":0.14255999999999958},{"$f":"Quarterly!BV122-Quarterly!BV121","v":0.20504000000000033},{"$f":"((Quarterly!BW122/Quarterly!BW121)^4)-1","v":7.1907403382618806E-2},{"$f":"((Quarterly!BX122/Quarterly!BX121)^4)-1","v":-0.1012909492922619},{"$f":"((Quarterly!BY122/Quarterly!BY121)^4)-1","v":2.3313573540330257E-2},"--",{"$f":"((Quarterly!CA122/Quarterly!CA121)^4)-1","v":-0.42108211934128215},{"$f":"((Quarterly!CB122/Quarterly!CB121)^4)-1","v":-0.19482813871076388},{"$f":"((Quarterly!CC122/Quarterly!CC121)^4)-1","v":-0.15280407166580878},"--","--",null,"--","--",null,{"$f":"((Quarterly!CJ122/Quarterly!CJ121)^4)-1","v":0.15848950533840545},{"$f":"((Quarterly!CK122/Quarterly!CK121)^4)-1","v":4.5992025796654401E-2},{"$f":"((Quarterly!CL122/Quarterly!CL121)^4)-1","v":-0.17565657028183246},{"$f":"((Quarterly!CM122/Quarterly!CM121)^4)-1","v":-2.0506297371191362E-2},{"$f":"((Quarterly!CN122/Quarterly!CN121)^4)-1","v":7.1467491109138415E-3},{"$f":"((Quarterly!CO122/Quarterly!CO121)^4)-1","v":0.19786026171425575},{"$f":"((Quarterly!CP122/Quarterly!CP121)^4)-1","v":9.0912292994333788E-2},{"$f":"((Quarterly!CQ122/Quarterly!CQ121)^4)-1","v":9.9347611289806181E-3},{"$f":"((Quarterly!CR122/Quarterly!CR121)^4)-1","v":0.10304068154000623},{"$f":"Quarterly!CS122-Quarterly!CS121","v":-2.7999999999999829},"--",null,null,null,null,null,{"$f":"((Quarterly!CZ122/Quarterly!CZ121)^4)-1","v":2.8249453016673476E-2},{"$f":"((Quarterly!DA122/Quarterly!DA121)^4)-1","v":3.908915843624472E-2},null,null,null,null,null,{"$f":"((Quarterly!DG122/Quarterly!DG121)^4)-1","v":2.4378507227106772E-2},{"$f":"((Quarterly!DH122-Quarterly!DH121)*60)","v":0},{"$f":"Quarterly!DI122-Quarterly!DI121","v":0},"--",{"$f":"(Quarterly!DK122-Quarterly!DK121)*100","v":-13.333333333333286},{"$f":"((Quarterly!DL122/Quarterly!DL121)^4)-1","v":-4.3371092403213796E-3},null,null,null,{"$f":"((Quarterly!DP122/Quarterly!DP121)^4)-1","v":2.6248311904984334E-2},null,null,null,"--",{"$f":"Quarterly!DU122-Quarterly!DU121","v":-6.666666666666643E-2},"--","--","--","--","--","--","--","--",null,null,null,null,null,{"$f":"((Quarterly!EI122/Quarterly!EI121)^4)-1","v":9.9507728119549999E-3},{"$f":"((Quarterly!EJ122/Quarterly!EJ121)^4)-1","v":2.115615267892923E-2},{"$f":"((Quarterly!EK122/Quarterly!EK121)^4)-1","v":2.7830021748563416E-2},null,null,null,null,null,{"$f":"((Quarterly!EQ122/Quarterly!EQ121)^4)-1","v":1.4842047000503289E-2},{"$f":"((Quarterly!ER122/Quarterly!ER121)^4)-1","v":4.5301329831176851E-2},{"$f":"((Quarterly!ES122/Quarterly!ES121)^4)-1","v":3.8202472807995269E-2},null,null,null,null,null,{"$f":"(Quarterly!EY122-Quarterly!EY121)*100","v":-35.333333333333442},{"$f":"(Quarterly!EZ122-Quarterly!EZ121)*100","v":5.9999999999999609},{"$f":"(Quarterly!FA122-Quarterly!FA121)*100","v":-15.333333333333243},{"$f":"(Quarterly!FB122-Quarterly!FB121)*100","v":-8.6666666666666003},6.666666666666643,{"$f":"(Quarterly!FD122-Quarterly!FD121)*100","v":-57.999999999999829},{"$f":"(Quarterly!FE122-Quarterly!FE121)*100","v":-17.000000000000082},{"$f":"(Quarterly!FF122-Quarterly!FF121)*100","v":-19.333333333333247},{"$f":"(Quarterly!FG122-Quarterly!FG121)*100","v":-17.333333333333378},{"$f":"(Quarterly!FH122-Quarterly!FH121)*100","v":-17.333333333333378},{"$f":"(Quarterly!FI122-Quarterly!FI121)*100","v":-4.3333333333333002},14.999999999999947,null,null,null,null,null,{"$f":"((Quarterly!FP122/Quarterly!FP121)^4)-1","v":-1.6349491070958289E-3},{"$f":"((Quarterly!FQ122/Quarterly!FQ121)^4)-1","v":4.2983163700445859E-2},"--","--",{"$f":"((Quarterly!FT122/Quarterly!FT121)^4)-1","v":6.0855771164119554E-2},{"$f":"((Quarterly!FU122/Quarterly!FU121)^4)-1","v":4.7557806535745151E-3},{"$f":"((Quarterly!FV122/Quarterly!FV121)^4)-1","v":0.26657495844919676},{"$f":"((Quarterly!FW122/Quarterly!FW121)^4)-1","v":-6.9292983920043349E-2},{"$f":"((Quarterly!FX122/Quarterly!FX121)^4)-1","v":-7.1960269790942166E-2},null,null,null,null,null,{"$f":"((Quarterly!GD122/Quarterly!GD121)^4)-1","v":0.51559847567136741},"--","--","--",{"$f":"((Quarterly!GH123/Quarterly!GH122)^4)-1","v":{"$error":"#DIV/0!"}},"--","--","--","--"]
["87'Q1",{"$f":"((Quarterly!B123/Quarterly!B122)^4)-1","v":5.8494672388759383E-2},{"$f":"((Quarterly!C123/Quarterly!C122)^4)-1","v":2.8263915071382373E-2},{"$f":"((Quarterly!D123/Quarterly!D122)^4)-1","v":-4.1253050016230031E-3},{"$f":"((Quarterly!E123/Quarterly!E122)^4)-1","v":6.2794346574790438E-4},{"$f":"((Quarterly!F123/Quarterly!F122)^4)-1","v":-0.21694108809397894},{"$f":"((Quarterly!G123/Quarterly!G122)^4)-1","v":5.24780699150873E-3},{"$f":"((Quarterly!H123/Quarterly!H122)^4)-1","v":2.5026095563620343E-2},{"$f":"((Quarterly!I123/Quarterly!I122)^4)-1","v":-9.1238126106869322E-2},{"$f":"((Quarterly!J123/Quarterly!J122)^4)-1","v":-0.16850821717711084},{"$f":"((Quarterly!K123/Quarterly!K122)^4)-1","v":-9.9625624609377406E-3},{"$f":"((Quarterly!L123-Quarterly!L122))","v":48.913999999999994},{"$f":"((Quarterly!M123/Quarterly!M122)^4)-1","v":-2.3669676273842311E-2},{"$f":"((Quarterly!N123/Quarterly!N122)^4)-1","v":2.9181306896695069E-3},{"$f":"((Quarterly!O123/Quarterly!O122)^4)-1","v":-8.0449292251339233E-2},{"$f":"((Quarterly!P123/Quarterly!P122)^4)-1","v":2.5540786684486561E-2},{"$f":"((Quarterly!Q123/Quarterly!Q122)^4)-1","v":-7.6458813313857732E-3},null,null,null,null,null,{"$f":"((Quarterly!W123/Quarterly!W122)^4)-1","v":3.0925559235783329E-2},{"$f":"((Quarterly!X123/Quarterly!X122)^4)-1","v":3.4243490573785618E-2},{"$f":"((Quarterly!Y123/Quarterly!Y122)^4)-1","v":0.1702969257174145},"--",{"$f":"((Quarterly!AA123/Quarterly!AA122)^4)-1","v":0.33617361859937089},{"$f":"((Quarterly!AB123/Quarterly!AB122)^4)-1","v":0.24261547047451404},"--","--","--","--","--","--","--","--","--","--",{"$f":"((Quarterly!AM123/Quarterly!AM122)^4)-1","v":5.3327681732888266E-2},{"$f":"((Quarterly!AN123/Quarterly!AN122)^4)-1","v":5.8076636558503481E-2},"--","--",{"$f":"Quarterly!AQ123-Quarterly!AQ122","v":3.1999999999999957},"--","--",{"$f":"Quarterly!AT123-Quarterly!AT122","v":3.93333333333333},"--","--",{"$f":"Quarterly!AW123-Quarterly!AW122","v":3.5666666666666629},{"$f":"Quarterly!AX123-Quarterly!AX122","v":3.2999999999999972},{"$f":"Quarterly!AY123-Quarterly!AY122","v":5.1000000000000014},{"$f":"Quarterly!AZ123-Quarterly!AZ122","v":4.5666666666666629},{"$f":"Quarterly!BA123-Quarterly!BA122","v":-0.5},"--","--","--","--",{"$f":"((Quarterly!BF123/Quarterly!BF122)^4)-1","v":2.0378145890947996E-2},{"$f":"((Quarterly!BG123/Quarterly!BG122)^4)-1","v":-1.9407539992117639E-2},{"$f":"((Quarterly!BH123/Quarterly!BH122)^4)-1","v":-2.5630244729038187E-2},{"$f":"((Quarterly!BI123/Quarterly!BI122)^4)-1","v":4.0519968379993276E-2},{"$f":"((Quarterly!BJ123/Quarterly!BJ122)^4)-1","v":0.53259161126023824},"--",null,"--","--",null,null,null,null,null,{"$f":"((Quarterly!BT123/Quarterly!BT122)^4)-1","v":3.1775738978397472E-2},{"$f":"Quarterly!BU123-Quarterly!BU122","v":-0.13479000000000063},{"$f":"Quarterly!BV123-Quarterly!BV122","v":-0.1506299999999996},{"$f":"((Quarterly!BW123/Quarterly!BW122)^4)-1","v":2.9930055557655599E-2},{"$f":"((Quarterly!BX123/Quarterly!BX122)^4)-1","v":0.11947132285577577},{"$f":"((Quarterly!BY123/Quarterly!BY122)^4)-1","v":-0.10229639575347094},"--",{"$f":"((Quarterly!CA123/Quarterly!CA122)^4)-1","v":-0.35360040169834783},{"$f":"((Quarterly!CB123/Quarterly!CB122)^4)-1","v":0.24506998792787238},{"$f":"((Quarterly!CC123/Quarterly!CC122)^4)-1","v":9.4974775559687252E-2},"--","--",null,"--","--",null,{"$f":"((Quarterly!CJ123/Quarterly!CJ122)^4)-1","v":-1.1064900489159313E-2},{"$f":"((Quarterly!CK123/Quarterly!CK122)^4)-1","v":6.2729776077317778E-2},{"$f":"((Quarterly!CL123/Quarterly!CL122)^4)-1","v":0.64714459064741581},{"$f":"((Quarterly!CM123/Quarterly!CM122)^4)-1","v":0.31416405404447811},{"$f":"((Quarterly!CN123/Quarterly!CN122)^4)-1","v":3.3452195046772104E-2},{"$f":"((Quarterly!CO123/Quarterly!CO122)^4)-1","v":0.12605533170179006},{"$f":"((Quarterly!CP123/Quarterly!CP122)^4)-1","v":-1.0774691896297539E-2},{"$f":"((Quarterly!CQ123/Quarterly!CQ122)^4)-1","v":7.9311393757683923E-3},{"$f":"((Quarterly!CR123/Quarterly!CR122)^4)-1","v":6.5320657481090061E-2},{"$f":"Quarterly!CS123-Quarterly!CS122","v":-1.5666666666666629},"--",null,null,null,null,null,{"$f":"((Quarterly!CZ123/Quarterly!CZ122)^4)-1","v":4.9161189315775955E-2},{"$f":"((Quarterly!DA123/Quarterly!DA122)^4)-1","v":3.2774583521619549E-2},null,null,null,null,null,{"$f":"((Quarterly!DG123/Quarterly!DG122)^4)-1","v":4.3576151489655102E-2},{"$f":"((Quarterly!DH123-Quarterly!DH122)*60)","v":7.9999999999999716},{"$f":"Quarterly!DI123-Quarterly!DI122","v":9.9999999999994316E-2},"--",{"$f":"(Quarterly!DK123-Quarterly!DK122)*100","v":-23.333333333333428},{"$f":"((Quarterly!DL123/Quarterly!DL122)^4)-1","v":3.3612773803111118E-3},null,null,null,{"$f":"((Quarterly!DP123/Quarterly!DP122)^4)-1","v":2.4479123447129991E-2},null,null,null,"--",{"$f":"Quarterly!DU123-Quarterly!DU122","v":-0.36666666666666625},"--","--","--","--","--","--","--","--",null,null,null,null,null,{"$f":"((Quarterly!EI123/Quarterly!EI122)^4)-1","v":-1.1420990209035753E-2},{"$f":"((Quarterly!EJ123/Quarterly!EJ122)^4)-1","v":1.0217586411074953E-2},{"$f":"((Quarterly!EK123/Quarterly!EK122)^4)-1","v":2.426574052982744E-2},null,null,null,null,null,{"$f":"((Quarterly!EQ123/Quarterly!EQ122)^4)-1","v":4.7618905220924157E-2},{"$f":"((Quarterly!ER123/Quarterly!ER122)^4)-1","v":1.5570900622474904E-2},{"$f":"((Quarterly!ES123/Quarterly!ES122)^4)-1","v":1.4523211717928586E-2},null,null,null,null,null,{"$f":"(Quarterly!EY123-Quarterly!EY122)*100","v":0},{"$f":"(Quarterly!EZ123-Quarterly!EZ122)*100","v":-4.6666666666666856},{"$f":"(Quarterly!FA123-Quarterly!FA122)*100","v":-31.00000000000005},{"$f":"(Quarterly!FB123-Quarterly!FB122)*100","v":-43.333333333333357},-12.333333333333307,{"$f":"(Quarterly!FD123-Quarterly!FD122)*100","v":-55.333333333333456},{"$f":"(Quarterly!FE123-Quarterly!FE122)*100","v":18.333333333333357},{"$f":"(Quarterly!FF123-Quarterly!FF122)*100","v":12.666666666666604},{"$f":"(Quarterly!FG123-Quarterly!FG122)*100","v":7.3333333333334139},{"$f":"(Quarterly!FH123-Quarterly!FH122)*100","v":-1.3333333333333641},{"$f":"(Quarterly!FI123-Quarterly!FI122)*100","v":-7.0000000000000284},-19.666666666666632,null,null,null,null,null,{"$f":"((Quarterly!FP123/Quarterly!FP122)^4)-1","v":-0.12890169242589578},{"$f":"((Quarterly!FQ123/Quarterly!FQ122)^4)-1","v":2.0393644514784537E-3},"--","--",{"$f":"((Quarterly!FT123/Quarterly!FT122)^4)-1","v":-9.1934678922741542E-2},{"$f":"((Quarterly!FU123/Quarterly!FU122)^4)-1","v":-0.19959119185405472},{"$f":"((Quarterly!FV123/Quarterly!FV122)^4)-1","v":1.9348311466732104E-2},{"$f":"((Quarterly!FW123/Quarterly!FW122)^4)-1","v":1.2883060999879361},{"$f":"((Quarterly!FX123/Quarterly!FX122)^4)-1","v":0.53573800356003476},null,null,null,null,null,{"$f":"((Quarterly!GD123/Quarterly!GD122)^4)-1","v":0.97430524296880838},"--","--","--",{"$f":"((Quarterly!GH124/Quarterly!GH123)^4)-1","v":{"$error":"#DIV/0!"}},"--","--","--","--"]
["87'Q2",{"$f":"((Quarterly!B124/Quarterly!B123)^4)-1","v":7.394590871933393E-2},{"$f":"((Quarterly!C124/Quarterly!C123)^4)-1","v":4.5662462331348186E-2},{"$f":"((Quarterly!D124/Quarterly!D123)^4)-1","v":5.6916562191375197E-2},{"$f":"((Quarterly!E124/Quarterly!E123)^4)-1","v":5.6637399371316732E-2},{"$f":"((Quarterly!F124/Quarterly!F123)^4)-1","v":0.1743943169417792},{"$f":"((Quarterly!G124/Quarterly!G123)^4)-1","v":3.0874387868457864E-2},{"$f":"((Quarterly!H124/Quarterly!H123)^4)-1","v":5.5054028427373058E-2},{"$f":"((Quarterly!I124/Quarterly!I123)^4)-1","v":8.3064467926192487E-2},{"$f":"((Quarterly!J124/Quarterly!J123)^4)-1","v":0.14795676773348299},{"$f":"((Quarterly!K124/Quarterly!K123)^4)-1","v":1.8352354677607208E-2},{"$f":"((Quarterly!L124-Quarterly!L123))","v":-17.617999999999999},{"$f":"((Quarterly!M124/Quarterly!M123)^4)-1","v":0.10355431658351955},{"$f":"((Quarterly!N124/Quarterly!N123)^4)-1","v":0.17471326216456995},{"$f":"((Quarterly!O124/Quarterly!O123)^4)-1","v":-4.4976290691511767E-2},{"$f":"((Quarterly!P124/Quarterly!P123)^4)-1","v":3.6844751016098742E-2},{"$f":"((Quarterly!Q124/Quarterly!Q123)^4)-1","v":-0.72075239181077233},null,null,null,null,null,{"$f":"((Quarterly!W124/Quarterly!W123)^4)-1","v":3.5870896432356414E-2},{"$f":"((Quarterly!X124/Quarterly!X123)^4)-1","v":4.7773247918706296E-2},{"$f":"((Quarterly!Y124/Quarterly!Y123)^4)-1","v":2.949441775981998E-2},"--",{"$f":"((Quarterly!AA124/Quarterly!AA123)^4)-1","v":0.79925671998238745},{"$f":"((Quarterly!AB124/Quarterly!AB123)^4)-1","v":0.52235160777812517},"--","--","--","--","--","--","--","--","--","--",{"$f":"((Quarterly!AM124/Quarterly!AM123)^4)-1","v":7.3042862725996693E-2},{"$f":"((Quarterly!AN124/Quarterly!AN123)^4)-1","v":7.0382120424556938E-2},"--","--",{"$f":"Quarterly!AQ124-Quarterly!AQ123","v":2.5333333333333314},"--","--",{"$f":"Quarterly!AT124-Quarterly!AT123","v":3.7999999999999972},"--","--",{"$f":"Quarterly!AW124-Quarterly!AW123","v":2.1000000000000014},{"$f":"Quarterly!AX124-Quarterly!AX123","v":2.5333333333333314},{"$f":"Quarterly!AY124-Quarterly!AY123","v":6.4999999999999929},{"$f":"Quarterly!AZ124-Quarterly!AZ123","v":1.4666666666666686},{"$f":"Quarterly!BA124-Quarterly!BA123","v":3},"--","--",{"$f":"((Quarterly!BD124/Quarterly!BD123)^4)-1","v":7.1264020462420419E-2},{"$f":"((Quarterly!BE124/Quarterly!BE123)^4)-1","v":-4.5809107439141128E-2},{"$f":"((Quarterly!BF124/Quarterly!BF123)^4)-1","v":2.9098600443743683E-2},{"$f":"((Quarterly!BG124/Quarterly!BG123)^4)-1","v":2.9065582273701818E-2},{"$f":"((Quarterly!BH124/Quarterly!BH123)^4)-1","v":-1.3639608423654193E-2},{"$f":"((Quarterly!BI124/Quarterly!BI123)^4)-1","v":5.7282380640844011E-5},{"$f":"((Quarterly!BJ124/Quarterly!BJ123)^4)-1","v":0.65900993692609999},"--",null,"--","--",null,null,null,null,null,{"$f":"((Quarterly!BT124/Quarterly!BT123)^4)-1","v":1.4393370061543731E-2},{"$f":"Quarterly!BU124-Quarterly!BU123","v":0.14156000000000013},{"$f":"Quarterly!BV124-Quarterly!BV123","v":0.21435999999999922},{"$f":"((Quarterly!BW124/Quarterly!BW123)^4)-1","v":0.1083123878050436},{"$f":"((Quarterly!BX124/Quarterly!BX123)^4)-1","v":-0.29839296832326956},{"$f":"((Quarterly!BY124/Quarterly!BY123)^4)-1","v":-0.3157494818674752},"--",{"$f":"((Quarterly!CA124/Quarterly!CA123)^4)-1","v":0.29325197975783746},{"$f":"((Quarterly!CB124/Quarterly!CB123)^4)-1","v":0.76988877135732592},{"$f":"((Quarterly!CC124/Quarterly!CC123)^4)-1","v":0.37246325815172621},"--","--",null,"--","--",null,{"$f":"((Quarterly!CJ124/Quarterly!CJ123)^4)-1","v":-0.22196213178832802},{"$f":"((Quarterly!CK124/Quarterly!CK123)^4)-1","v":6.3827155355760334E-2},{"$f":"((Quarterly!CL124/Quarterly!CL123)^4)-1","v":-0.69341380114571416},{"$f":"((Quarterly!CM124/Quarterly!CM123)^4)-1","v":-0.28370775423725769},{"$f":"((Quarterly!CN124/Quarterly!CN123)^4)-1","v":-3.8429807670899208E-2},{"$f":"((Quarterly!CO124/Quarterly!CO123)^4)-1","v":5.2176658574798696E-2},{"$f":"((Quarterly!CP124/Quarterly!CP123)^4)-1","v":4.3136375889236245E-2},{"$f":"((Quarterly!CQ124/Quarterly!CQ123)^4)-1","v":8.2370294259890287E-3},{"$f":"((Quarterly!CR124/Quarterly!CR123)^4)-1","v":0.15864873975291038},{"$f":"Quarterly!CS124-Quarterly!CS123","v":1.3333333333333144},"--",null,null,null,null,null,{"$f":"((Quarterly!CZ124/Quarterly!CZ123)^4)-1","v":4.6095036002593792E-2},{"$f":"((Quarterly!DA124/Quarterly!DA123)^4)-1","v":4.9056415251898633E-2},null,null,null,null,null,{"$f":"((Quarterly!DG124/Quarterly!DG123)^4)-1","v":3.2636365427681113E-2},{"$f":"((Quarterly!DH124-Quarterly!DH123)*60)","v":-1.9999999999998863},{"$f":"Quarterly!DI124-Quarterly!DI123","v":6.6666666666677088E-2},"--",{"$f":"(Quarterly!DK124-Quarterly!DK123)*100","v":-33.333333333333215},{"$f":"((Quarterly!DL124/Quarterly!DL123)^4)-1","v":1.0177548312579221E-2},null,null,null,{"$f":"((Quarterly!DP124/Quarterly!DP123)^4)-1","v":3.1654256314978424E-2},null,null,null,"--",{"$f":"Quarterly!DU124-Quarterly!DU123","v":3.3333333333333215E-2},"--","--","--","--","--","--","--","--",null,null,null,null,null,{"$f":"((Quarterly!EI124/Quarterly!EI123)^4)-1","v":5.5480459788863623E-2},{"$f":"((Quarterly!EJ124/Quarterly!EJ123)^4)-1","v":5.9891301088494941E-2},{"$f":"((Quarterly!EK124/Quarterly!EK123)^4)-1","v":5.6298551154019938E-2},null,null,null,null,null,{"$f":"((Quarterly!EQ124/Quarterly!EQ123)^4)-1","v":6.4953871284657572E-2},{"$f":"((Quarterly!ER124/Quarterly!ER123)^4)-1","v":2.1523892894194985E-2},{"$f":"((Quarterly!ES124/Quarterly!ES123)^4)-1","v":1.4470672408451124E-2},null,null,null,null,null,{"$f":"(Quarterly!EY124-Quarterly!EY123)*100","v":54.666666666666686},{"$f":"(Quarterly!EZ124-Quarterly!EZ123)*100","v":42.999999999999972},{"$f":"(Quarterly!FA124-Quarterly!FA123)*100","v":79.999999999999886},{"$f":"(Quarterly!FB124-Quarterly!FB123)*100","v":69.666666666666544},-10.333333333333343,{"$f":"(Quarterly!FD124-Quarterly!FD123)*100","v":121.6666666666665},{"$f":"(Quarterly!FE124-Quarterly!FE123)*100","v":12.000000000000011},{"$f":"(Quarterly!FF124-Quarterly!FF123)*100","v":84.333333333333371},{"$f":"(Quarterly!FG124-Quarterly!FG123)*100","v":109.99999999999997},{"$f":"(Quarterly!FH124-Quarterly!FH123)*100","v":121.00000000000009},{"$f":"(Quarterly!FI124-Quarterly!FI123)*100","v":115.00000000000013},30.666666666666757,null,null,null,null,null,{"$f":"((Quarterly!FP124/Quarterly!FP123)^4)-1","v":-1.4864104190805305E-2},{"$f":"((Quarterly!FQ124/Quarterly!FQ123)^4)-1","v":0},"--","--",{"$f":"((Quarterly!FT124/Quarterly!FT123)^4)-1","v":-4.1942811210973985E-2},{"$f":"((Quarterly!FU124/Quarterly!FU123)^4)-1","v":-0.13361655883480594},{"$f":"((Quarterly!FV124/Quarterly!FV123)^4)-1","v":0.11687620229975204},{"$f":"((Quarterly!FW124/Quarterly!FW123)^4)-1","v":-0.11946460743970777},{"$f":"((Quarterly!FX124/Quarterly!FX123)^4)-1","v":0.50799466914402092},null,null,null,null,null,{"$f":"((Quarterly!GD124/Quarterly!GD123)^4)-1","v":0.27329465534643749},"--","--","--",{"$f":"((Quarterly!GH125/Quarterly!GH124)^4)-1","v":{"$error":"#DIV/0!"}},"--","--","--","--"]
["87'Q3",{"$f":"((Quarterly!B125/Quarterly!B124)^4)-1","v":6.7212374782835482E-2},{"$f":"((Quarterly!C125/Quarterly!C124)^4)-1","v":3.6774893182828228E-2},{"$f":"((Quarterly!D125/Quarterly!D124)^4)-1","v":4.9511099784244283E-2},{"$f":"((Quarterly!E125/Quarterly!E124)^4)-1","v":4.7168021891499157E-2},{"$f":"((Quarterly!F125/Quarterly!F124)^4)-1","v":0.17584790767135039},{"$f":"((Quarterly!G125/Quarterly!G124)^4)-1","v":3.289525011920702E-3},{"$f":"((Quarterly!H125/Quarterly!H124)^4)-1","v":5.1241231266746512E-2},{"$f":"((Quarterly!I125/Quarterly!I124)^4)-1","v":0.11590612722947036},{"$f":"((Quarterly!J125/Quarterly!J124)^4)-1","v":0.20728538556987597},{"$f":"((Quarterly!K125/Quarterly!K124)^4)-1","v":-1.2640924706895373E-2},{"$f":"((Quarterly!L125-Quarterly!L124))","v":-24.427999999999997},{"$f":"((Quarterly!M125/Quarterly!M124)^4)-1","v":8.0095929852472159E-2},{"$f":"((Quarterly!N125/Quarterly!N124)^4)-1","v":0.18494119009007459},{"$f":"((Quarterly!O125/Quarterly!O124)^4)-1","v":-0.14091606638364962},{"$f":"((Quarterly!P125/Quarterly!P124)^4)-1","v":9.2968285129666484E-3},{"$f":"((Quarterly!Q125/Quarterly!Q124)^4)-1","v":0.37685713059066361},null,null,null,null,null,{"$f":"((Quarterly!W125/Quarterly!W124)^4)-1","v":4.5881722536842418E-2},{"$f":"((Quarterly!X125/Quarterly!X124)^4)-1","v":5.2364988099465437E-2},{"$f":"((Quarterly!Y125/Quarterly!Y124)^4)-1","v":3.2349688133879395E-2},"--",{"$f":"((Quarterly!AA125/Quarterly!AA124)^4)-1","v":0.32689898007064744},{"$f":"((Quarterly!AB125/Quarterly!AB124)^4)-1","v":0.35995207391212913},"--","--","--","--","--","--","--","--","--","--",{"$f":"((Quarterly!AM125/Quarterly!AM124)^4)-1","v":7.7221391373152315E-2},{"$f":"((Quarterly!AN125/Quarterly!AN124)^4)-1","v":7.7186934374174454E-2},"--","--",{"$f":"Quarterly!AQ125-Quarterly!AQ124","v":2.2333333333333414},"--","--",{"$f":"Quarterly!AT125-Quarterly!AT124","v":-3.3333333333331439E-2},"--","--",{"$f":"Quarterly!AW125-Quarterly!AW124","v":-0.86666666666667425},{"$f":"Quarterly!AX125-Quarterly!AX124","v":1.4666666666666757},{"$f":"Quarterly!AY125-Quarterly!AY124","v":7.7333333333333343},{"$f":"Quarterly!AZ125-Quarterly!AZ124","v":4.0666666666666629},{"$f":"Quarterly!BA125-Quarterly!BA124","v":5.6999999999999957},"--","--",{"$f":"((Quarterly!BD125/Quarterly!BD124)^4)-1","v":3.4436430697468934E-2},{"$f":"((Quarterly!BE125/Quarterly!BE124)^4)-1","v":-3.420447047151165E-3},{"$f":"((Quarterly!BF125/Quarterly!BF124)^4)-1","v":4.2467358749420203E-2},{"$f":"((Quarterly!BG125/Quarterly!BG124)^4)-1","v":9.0456801094829231E-4},{"$f":"((Quarterly!BH125/Quarterly!BH124)^4)-1","v":1.8355401732439436E-3},{"$f":"((Quarterly!BI125/Quarterly!BI124)^4)-1","v":4.1470635122966115E-2},{"$f":"((Quarterly!BJ125/Quarterly!BJ124)^4)-1","v":0.47237216079221311},"--",null,"--","--",null,null,null,null,null,{"$f":"((Quarterly!BT125/Quarterly!BT124)^4)-1","v":3.4593115746658798E-2},{"$f":"Quarterly!BU125-Quarterly!BU124","v":-0.13020999999999994},{"$f":"Quarterly!BV125-Quarterly!BV124","v":-0.1851300000000009},{"$f":"((Quarterly!BW125/Quarterly!BW124)^4)-1","v":0.12594627242554401},{"$f":"((Quarterly!BX125/Quarterly!BX124)^4)-1","v":3.2650385217282363E-2},{"$f":"((Quarterly!BY125/Quarterly!BY124)^4)-1","v":-6.9084130534471599E-2},"--",{"$f":"((Quarterly!CA125/Quarterly!CA124)^4)-1","v":0.3164535080286528},{"$f":"((Quarterly!CB125/Quarterly!CB124)^4)-1","v":8.1403288784857475E-2},{"$f":"((Quarterly!CC125/Quarterly!CC124)^4)-1","v":2.854758016737069E-3},"--","--",null,"--","--",null,{"$f":"((Quarterly!CJ125/Quarterly!CJ124)^4)-1","v":-8.0494415803469388E-2},{"$f":"((Quarterly!CK125/Quarterly!CK124)^4)-1","v":7.5189673154625103E-2},{"$f":"((Quarterly!CL125/Quarterly!CL124)^4)-1","v":0.63846584786350014},{"$f":"((Quarterly!CM125/Quarterly!CM124)^4)-1","v":9.0811758167723688E-2},{"$f":"((Quarterly!CN125/Quarterly!CN124)^4)-1","v":7.4810429926357447E-2},{"$f":"((Quarterly!CO125/Quarterly!CO124)^4)-1","v":-3.1616971386641768E-2},{"$f":"((Quarterly!CP125/Quarterly!CP124)^4)-1","v":7.979856099723337E-2},{"$f":"((Quarterly!CQ125/Quarterly!CQ124)^4)-1","v":9.6928977919517045E-3},{"$f":"((Quarterly!CR125/Quarterly!CR124)^4)-1","v":0.19436407964001923},{"$f":"Quarterly!CS125-Quarterly!CS124","v":2.1000000000000227},"--",null,null,null,null,null,{"$f":"((Quarterly!CZ125/Quarterly!CZ124)^4)-1","v":4.3133465817322136E-2},{"$f":"((Quarterly!DA125/Quarterly!DA124)^4)-1","v":3.7932299647758683E-2},null,null,null,null,null,{"$f":"((Quarterly!DG125/Quarterly!DG124)^4)-1","v":3.7554623008480892E-2},{"$f":"((Quarterly!DH125-Quarterly!DH124)*60)","v":1.9999999999998863},{"$f":"Quarterly!DI125-Quarterly!DI124","v":6.6666666666662877E-2},"--",{"$f":"(Quarterly!DK125-Quarterly!DK124)*100","v":-26.666666666666661},{"$f":"((Quarterly!DL125/Quarterly!DL124)^4)-1","v":2.3781542666067024E-2},null,null,null,{"$f":"((Quarterly!DP125/Quarterly!DP124)^4)-1","v":2.8899099629385194E-2},null,null,null,"--",{"$f":"Quarterly!DU125-Quarterly!DU124","v":-0.43333333333333357},"--","--","--","--","--","--","--","--",null,null,null,null,null,{"$f":"((Quarterly!EI125/Quarterly!EI124)^4)-1","v":4.2713251751311798E-2},{"$f":"((Quarterly!EJ125/Quarterly!EJ124)^4)-1","v":4.2131332516490927E-2},{"$f":"((Quarterly!EK125/Quarterly!EK124)^4)-1","v":4.0119887634666451E-2},null,null,null,null,null,{"$f":"((Quarterly!EQ125/Quarterly!EQ124)^4)-1","v":4.6311685484519138E-2},{"$f":"((Quarterly!ER125/Quarterly!ER124)^4)-1","v":2.1408697326906756E-2},{"$f":"((Quarterly!ES125/Quarterly!ES124)^4)-1","v":1.200466756683749E-2},null,null,null,null,null,{"$f":"(Quarterly!EY125-Quarterly!EY124)*100","v":35.33333333333335},{"$f":"(Quarterly!EZ125-Quarterly!EZ124)*100","v":19.333333333333425},{"$f":"(Quarterly!FA125-Quarterly!FA124)*100","v":58.999999999999986},{"$f":"(Quarterly!FB125-Quarterly!FB124)*100","v":55.000000000000071},-3.9999999999999147,{"$f":"(Quarterly!FD125-Quarterly!FD124)*100","v":17.666666666666764},{"$f":"(Quarterly!FE125-Quarterly!FE124)*100","v":38.666666666666757},{"$f":"(Quarterly!FF125-Quarterly!FF124)*100","v":36.000000000000121},{"$f":"(Quarterly!FG125-Quarterly!FG124)*100","v":39.333333333333357},{"$f":"(Quarterly!FH125-Quarterly!FH124)*100","v":47.333333333333186},{"$f":"(Quarterly!FI125-Quarterly!FI124)*100","v":53.333333333333321},17.333333333333201,null,null,null,null,null,{"$f":"((Quarterly!FP125/Quarterly!FP124)^4)-1","v":-3.143055465845157E-2},{"$f":"((Quarterly!FQ125/Quarterly!FQ124)^4)-1","v":0},"--","--",{"$f":"((Quarterly!FT125/Quarterly!FT124)^4)-1","v":9.8235975215432703E-2},{"$f":"((Quarterly!FU125/Quarterly!FU124)^4)-1","v":5.8887779484424696E-2},{"$f":"((Quarterly!FV125/Quarterly!FV124)^4)-1","v":-0.26937126689198321},{"$f":"((Quarterly!FW125/Quarterly!FW124)^4)-1","v":0.59614434038164532},{"$f":"((Quarterly!FX125/Quarterly!FX124)^4)-1","v":-0.14194278956529061},null,null,null,null,null,{"$f":"((Quarterly!GD125/Quarterly!GD124)^4)-1","v":0.22818154503585575},"--","--","--",{"$f":"((Quarterly!GH126/Quarterly!GH125)^4)-1","v":{"$error":"#DIV/0!"}},"--","--","--","--"]
["87'Q4",{"$f":"((Quarterly!B126/Quarterly!B125)^4)-1","v":0.10350375573854831},{"$f":"((Quarterly!C126/Quarterly!C125)^4)-1","v":6.7674419830218602E-2},{"$f":"((Quarterly!D126/Quarterly!D125)^4)-1","v":1.7038522096592068E-2},{"$f":"((Quarterly!E126/Quarterly!E125)^4)-1","v":8.4418480182251177E-3},{"$f":"((Quarterly!F126/Quarterly!F125)^4)-1","v":-0.10376350905930132},{"$f":"((Quarterly!G126/Quarterly!G125)^4)-1","v":4.8673713427691556E-3},{"$f":"((Quarterly!H126/Quarterly!H125)^4)-1","v":2.2484945655190547E-2},{"$f":"((Quarterly!I126/Quarterly!I125)^4)-1","v":-5.0036661344408095E-3},{"$f":"((Quarterly!J126/Quarterly!J125)^4)-1","v":-4.2660820837609137E-2},{"$f":"((Quarterly!K126/Quarterly!K125)^4)-1","v":2.0173596955898265E-2},{"$f":"((Quarterly!L126-Quarterly!L125))","v":86.427000000000007},{"$f":"((Quarterly!M126/Quarterly!M125)^4)-1","v":9.5172207328147351E-2},{"$f":"((Quarterly!N126/Quarterly!N125)^4)-1","v":0.15770633049463534},{"$f":"((Quarterly!O126/Quarterly!O125)^4)-1","v":-5.4085266297039469E-2},{"$f":"((Quarterly!P126/Quarterly!P125)^4)-1","v":4.9448030016402855E-2},{"$f":"((Quarterly!Q126/Quarterly!Q125)^4)-1","v":0.2787077370549329},null,null,null,null,null,{"$f":"((Quarterly!W126/Quarterly!W125)^4)-1","v":9.7554388000616221E-2},{"$f":"((Quarterly!X126/Quarterly!X125)^4)-1","v":8.0870490771720815E-2},{"$f":"((Quarterly!Y126/Quarterly!Y125)^4)-1","v":5.2512269119826094E-2},"--",{"$f":"((Quarterly!AA126/Quarterly!AA125)^4)-1","v":0.17600349174914709},{"$f":"((Quarterly!AB126/Quarterly!AB125)^4)-1","v":0.13462535911492002},"--","--","--","--","--","--","--","--","--","--",{"$f":"((Quarterly!AM126/Quarterly!AM125)^4)-1","v":0.10118065281182309},{"$f":"((Quarterly!AN126/Quarterly!AN125)^4)-1","v":0.12025916128300085},"--","--",{"$f":"Quarterly!AQ126-Quarterly!AQ125","v":1.2333333333333272},"--","--",{"$f":"Quarterly!AT126-Quarterly!AT125","v":4.63333333333334},"--","--",{"$f":"Quarterly!AW126-Quarterly!AW125","v":3.1666666666666714},{"$f":"Quarterly!AX126-Quarterly!AX125","v":-0.90000000000000568},{"$f":"Quarterly!AY126-Quarterly!AY125","v":2.8333333333333428},{"$f":"Quarterly!AZ126-Quarterly!AZ125","v":-0.6666666666666643},{"$f":"Quarterly!BA126-Quarterly!BA125","v":3.0333333333333456},"--","--",{"$f":"((Quarterly!BD126/Quarterly!BD125)^4)-1","v":2.5043250258654171E-2},{"$f":"((Quarterly!BE126/Quarterly!BE125)^4)-1","v":-2.2585684946703988E-2},{"$f":"((Quarterly!BF126/Quarterly!BF125)^4)-1","v":4.9214792643838878E-2},{"$f":"((Quarterly!BG126/Quarterly!BG125)^4)-1","v":3.4931795722018322E-2},{"$f":"((Quarterly!BH126/Quarterly!BH125)^4)-1","v":1.7170619593072978E-2},{"$f":"((Quarterly!BI126/Quarterly!BI125)^4)-1","v":1.3792506796153958E-2},{"$f":"((Quarterly!BJ126/Quarterly!BJ125)^4)-1","v":3.4335937043316278E-2},"--",null,"--","--",null,null,null,null,null,{"$f":"((Quarterly!BT126/Quarterly!BT125)^4)-1","v":7.7345669841438536E-2},{"$f":"Quarterly!BU126-Quarterly!BU125","v":-0.13379999999999903},{"$f":"Quarterly!BV126-Quarterly!BV125","v":-0.17771000000000114},{"$f":"((Quarterly!BW126/Quarterly!BW125)^4)-1","v":0.14289139980409526},{"$f":"((Quarterly!BX126/Quarterly!BX125)^4)-1","v":-0.22705889263116985},{"$f":"((Quarterly!BY126/Quarterly!BY125)^4)-1","v":-0.23344924319008897},"--",{"$f":"((Quarterly!CA126/Quarterly!CA125)^4)-1","v":-0.32075977666016386},{"$f":"((Quarterly!CB126/Quarterly!CB125)^4)-1","v":3.0363791784963068E-2},{"$f":"((Quarterly!CC126/Quarterly!CC125)^4)-1","v":-1.1200028528225214E-2},"--","--",null,"--","--",null,{"$f":"((Quarterly!CJ126/Quarterly!CJ125)^4)-1","v":-0.20598533441831191},{"$f":"((Quarterly!CK126/Quarterly!CK125)^4)-1","v":9.9707766987171986E-2},{"$f":"((Quarterly!CL126/Quarterly!CL125)^4)-1","v":0.94586498879358549},{"$f":"((Quarterly!CM126/Quarterly!CM125)^4)-1","v":-0.26000263384005018},{"$f":"((Quarterly!CN126/Quarterly!CN125)^4)-1","v":5.4580241903317672E-2},{"$f":"((Quarterly!CO126/Quarterly!CO125)^4)-1","v":-7.7259124535228429E-2},{"$f":"((Quarterly!CP126/Quarterly!CP125)^4)-1","v":7.3606354623576564E-2},{"$f":"((Quarterly!CQ126/Quarterly!CQ125)^4)-1","v":1.021669313646445E-2},{"$f":"((Quarterly!CR126/Quarterly!CR125)^4)-1","v":0.12868424728939742},{"$f":"Quarterly!CS126-Quarterly!CS125","v":-7.5000000000000284},"--",null,null,null,null,null,{"$f":"((Quarterly!CZ126/Quarterly!CZ125)^4)-1","v":3.7865658893390108E-2},{"$f":"((Quarterly!DA126/Quarterly!DA125)^4)-1","v":4.6842601355995717E-2},null,null,null,null,null,{"$f":"((Quarterly!DG126/Quarterly!DG125)^4)-1","v":3.2071740327102027E-2},{"$f":"((Quarterly!DH126-Quarterly!DH125)*60)","v":-2.0000000000003126},{"$f":"Quarterly!DI126-Quarterly!DI125","v":9.9999999999994316E-2},"--",{"$f":"(Quarterly!DK126-Quarterly!DK125)*100","v":-16.666666666666696},{"$f":"((Quarterly!DL126/Quarterly!DL125)^4)-1","v":3.0505026380155176E-2},null,null,null,{"$f":"((Quarterly!DP126/Quarterly!DP125)^4)-1","v":3.7762416544651511E-2},null,null,null,"--",{"$f":"Quarterly!DU126-Quarterly!DU125","v":-0.13333333333333286},"--","--","--","--","--","--","--","--",null,null,null,null,null,{"$f":"((Quarterly!EI126/Quarterly!EI125)^4)-1","v":5.8178015797201388E-2},{"$f":"((Quarterly!EJ126/Quarterly!EJ125)^4)-1","v":2.6371179543305479E-2},{"$f":"((Quarterly!EK126/Quarterly!EK125)^4)-1","v":3.1297260499120627E-2},null,null,null,null,null,{"$f":"((Quarterly!EQ126/Quarterly!EQ125)^4)-1","v":1.9432630563180897E-2},{"$f":"((Quarterly!ER126/Quarterly!ER125)^4)-1","v":2.0102845350680631E-2},{"$f":"((Quarterly!ES126/Quarterly!ES125)^4)-1","v":7.1684301058250188E-3},null,null,null,null,null,{"$f":"(Quarterly!EY126-Quarterly!EY125)*100","v":46.666666666666679},{"$f":"(Quarterly!EZ126-Quarterly!EZ125)*100","v":7.333333333333325},{"$f":"(Quarterly!FA126-Quarterly!FA125)*100","v":45.6666666666667},{"$f":"(Quarterly!FB126-Quarterly!FB125)*100","v":47.333333333333449},1.6666666666667496,{"$f":"(Quarterly!FD126-Quarterly!FD125)*100","v":35.33333333333335},{"$f":"(Quarterly!FE126-Quarterly!FE125)*100","v":-18.00000000000006},{"$f":"(Quarterly!FF126-Quarterly!FF125)*100","v":11.333333333333151},{"$f":"(Quarterly!FG126-Quarterly!FG125)*100","v":13.999999999999968},{"$f":"(Quarterly!FH126-Quarterly!FH125)*100","v":20.333333333333492},{"$f":"(Quarterly!FI126-Quarterly!FI125)*100","v":24.666666666666615},13.333333333333464,null,null,null,null,null,{"$f":"((Quarterly!FP126/Quarterly!FP125)^4)-1","v":-3.3154940003234601E-2},{"$f":"((Quarterly!FQ126/Quarterly!FQ125)^4)-1","v":0},"--","--",{"$f":"((Quarterly!FT126/Quarterly!FT125)^4)-1","v":-0.1048110819496455},{"$f":"((Quarterly!FU126/Quarterly!FU125)^4)-1","v":-0.20438366565666444},{"$f":"((Quarterly!FV126/Quarterly!FV125)^4)-1","v":0.92680278054684551},{"$f":"((Quarterly!FW126/Quarterly!FW125)^4)-1","v":-0.40757570928283426},{"$f":"((Quarterly!FX126/Quarterly!FX125)^4)-1","v":0.31363357362982525},null,null,null,null,null,{"$f":"((Quarterly!GD126/Quarterly!GD125)^4)-1","v":-0.29643635070112939},"--","--","--",{"$f":"((Quarterly!GH127/Quarterly!GH126)^4)-1","v":{"$error":"#DIV/0!"}},"--","--","--","--"]
["88'Q1",{"$f":"((Quarterly!B127/Quarterly!B126)^4)-1","v":5.5218584287884953E-2},{"$f":"((Quarterly!C127/Quarterly!C126)^4)-1","v":2.268596308854387E-2},{"$f":"((Quarterly!D127/Quarterly!D126)^4)-1","v":6.1069059261060765E-2},{"$f":"((Quarterly!E127/Quarterly!E126)^4)-1","v":7.2990991416672202E-2},{"$f":"((Quarterly!F127/Quarterly!F126)^4)-1","v":0.20319018438610459},{"$f":"((Quarterly!G127/Quarterly!G126)^4)-1","v":4.3852177393707059E-2},{"$f":"((Quarterly!H127/Quarterly!H126)^4)-1","v":7.1024572247828877E-2},{"$f":"((Quarterly!I127/Quarterly!I126)^4)-1","v":3.2440888433672654E-2},{"$f":"((Quarterly!J127/Quarterly!J126)^4)-1","v":4.7827336168038137E-3},{"$f":"((Quarterly!K127/Quarterly!K126)^4)-1","v":-8.4143423699402198E-2},{"$f":"((Quarterly!L127-Quarterly!L126))","v":-65.915000000000006},{"$f":"((Quarterly!M127/Quarterly!M126)^4)-1","v":-1.8601163053452052E-2},{"$f":"((Quarterly!N127/Quarterly!N126)^4)-1","v":0.24148956659946985},{"$f":"((Quarterly!O127/Quarterly!O126)^4)-1","v":-0.52019772958415467},{"$f":"((Quarterly!P127/Quarterly!P126)^4)-1","v":-2.6755373914406411E-2},{"$f":"((Quarterly!Q127/Quarterly!Q126)^4)-1","v":1.8849401812877975E-2},null,null,null,null,null,{"$f":"((Quarterly!W127/Quarterly!W126)^4)-1","v":1.4607183704726356E-2},{"$f":"((Quarterly!X127/Quarterly!X126)^4)-1","v":2.5920082455719307E-2},{"$f":"((Quarterly!Y127/Quarterly!Y126)^4)-1","v":3.8474596953984141E-2},"--",{"$f":"((Quarterly!AA127/Quarterly!AA126)^4)-1","v":0.23515793757372339},{"$f":"((Quarterly!AB127/Quarterly!AB126)^4)-1","v":0.14303882276458357},"--","--","--","--","--","--","--","--","--","--",{"$f":"((Quarterly!AM127/Quarterly!AM126)^4)-1","v":3.7272871275675357E-2},{"$f":"((Quarterly!AN127/Quarterly!AN126)^4)-1","v":2.9865529821922365E-2},"--","--",{"$f":"Quarterly!AQ127-Quarterly!AQ126","v":-4.0666666666666629},"--","--",{"$f":"Quarterly!AT127-Quarterly!AT126","v":-4.5},"--","--",{"$f":"Quarterly!AW127-Quarterly!AW126","v":-3.9999999999999929},{"$f":"Quarterly!AX127-Quarterly!AX126","v":-3.6333333333333329},{"$f":"Quarterly!AY127-Quarterly!AY126","v":-1.0333333333333314},{"$f":"Quarterly!AZ127-Quarterly!AZ126","v":-4.86666666666666},{"$f":"Quarterly!BA127-Quarterly!BA126","v":-3.1000000000000085},"--","--",{"$f":"((Quarterly!BD127/Quarterly!BD126)^4)-1","v":-1.6688518407716457E-2},{"$f":"((Quarterly!BE127/Quarterly!BE126)^4)-1","v":9.0919529429915213E-2},{"$f":"((Quarterly!BF127/Quarterly!BF126)^4)-1","v":7.1958598651288064E-2},{"$f":"((Quarterly!BG127/Quarterly!BG126)^4)-1","v":1.3836282580631742E-2},{"$f":"((Quarterly!BH127/Quarterly!BH126)^4)-1","v":4.4174075883218311E-2},{"$f":"((Quarterly!BI127/Quarterly!BI126)^4)-1","v":5.7362707656187339E-2},{"$f":"((Quarterly!BJ127/Quarterly!BJ126)^4)-1","v":0.44714428293248387},"--",null,"--","--",null,null,null,null,null,{"$f":"((Quarterly!BT127/Quarterly!BT126)^4)-1","v":9.6672103530946796E-2},{"$f":"Quarterly!BU127-Quarterly!BU126","v":-5.1110000000001321E-2},{"$f":"Quarterly!BV127-Quarterly!BV126","v":-9.2769999999998021E-2},{"$f":"((Quarterly!BW127/Quarterly!BW126)^4)-1","v":0.13882391107722736},{"$f":"((Quarterly!BX127/Quarterly!BX126)^4)-1","v":-0.23421668262447526},{"$f":"((Quarterly!BY127/Quarterly!BY126)^4)-1","v":-3.8956327405671787E-2},"--",{"$f":"((Quarterly!CA127/Quarterly!CA126)^4)-1","v":0.44929290305423075},{"$f":"((Quarterly!CB127/Quarterly!CB126)^4)-1","v":-0.20580919825481025},{"$f":"((Quarterly!CC127/Quarterly!CC126)^4)-1","v":-0.17355064924297559},"--","--",null,"--","--",null,{"$f":"((Quarterly!CJ127/Quarterly!CJ126)^4)-1","v":0.10438888064112395},{"$f":"((Quarterly!CK127/Quarterly!CK126)^4)-1","v":7.5921828842562933E-2},{"$f":"((Quarterly!CL127/Quarterly!CL126)^4)-1","v":-3.8937292931119583E-2},{"$f":"((Quarterly!CM127/Quarterly!CM126)^4)-1","v":-7.7957549344873422E-2},{"$f":"((Quarterly!CN127/Quarterly!CN126)^4)-1","v":5.9608959886856105E-2},{"$f":"((Quarterly!CO127/Quarterly!CO126)^4)-1","v":-2.2548508439500514E-2},{"$f":"((Quarterly!CP127/Quarterly!CP126)^4)-1","v":7.4391829635099826E-2},{"$f":"((Quarterly!CQ127/Quarterly!CQ126)^4)-1","v":8.2179110172706515E-3},{"$f":"((Quarterly!CR127/Quarterly!CR126)^4)-1","v":0.19017817284446448},{"$f":"Quarterly!CS127-Quarterly!CS126","v":5.9333333333333371},"--",null,null,null,null,null,{"$f":"((Quarterly!CZ127/Quarterly!CZ126)^4)-1","v":3.158114197810713E-2},{"$f":"((Quarterly!DA127/Quarterly!DA126)^4)-1","v":3.9426369629458557E-2},null,null,null,null,null,{"$f":"((Quarterly!DG127/Quarterly!DG126)^4)-1","v":1.4977896289603221E-2},{"$f":"((Quarterly!DH127-Quarterly!DH126)*60)","v":-7.9999999999995453},{"$f":"Quarterly!DI127-Quarterly!DI126","v":9.9999999999994316E-2},"--",{"$f":"(Quarterly!DK127-Quarterly!DK126)*100","v":-13.333333333333286},{"$f":"((Quarterly!DL127/Quarterly!DL126)^4)-1","v":1.0847971316572114E-2},null,null,null,{"$f":"((Quarterly!DP127/Quarterly!DP126)^4)-1","v":2.9781565850904856E-2},null,null,null,"--",{"$f":"Quarterly!DU127-Quarterly!DU126","v":0.13333333333333286},"--","--","--","--","--","--","--","--",null,null,null,null,null,{"$f":"((Quarterly!EI127/Quarterly!EI126)^4)-1","v":-4.5941778414120282E-3},{"$f":"((Quarterly!EJ127/Quarterly!EJ126)^4)-1","v":2.7723308438892369E-2},{"$f":"((Quarterly!EK127/Quarterly!EK126)^4)-1","v":3.6315032164551564E-2},null,null,null,null,null,{"$f":"((Quarterly!EQ127/Quarterly!EQ126)^4)-1","v":2.3239831112656262E-2},{"$f":"((Quarterly!ER127/Quarterly!ER126)^4)-1","v":4.0303224798365012E-2},{"$f":"((Quarterly!ES127/Quarterly!ES126)^4)-1","v":3.2503003220447413E-2},null,null,null,null,null,{"$f":"(Quarterly!EY127-Quarterly!EY126)*100","v":-28.000000000000114},{"$f":"(Quarterly!EZ127-Quarterly!EZ126)*100","v":-25.333333333333297},{"$f":"(Quarterly!FA127-Quarterly!FA126)*100","v":-65.666666666666629},{"$f":"(Quarterly!FB127-Quarterly!FB126)*100","v":-62.66666666666687},2.9999999999997584,{"$f":"(Quarterly!FD127-Quarterly!FD126)*100","v":-76.999999999999957},{"$f":"(Quarterly!FE127-Quarterly!FE126)*100","v":-14.000000000000057},{"$f":"(Quarterly!FF127-Quarterly!FF126)*100","v":-45.999999999999908},{"$f":"(Quarterly!FG127-Quarterly!FG126)*100","v":-62.3333333333334},{"$f":"(Quarterly!FH127-Quarterly!FH126)*100","v":-72.000000000000057},{"$f":"(Quarterly!FI127-Quarterly!FI126)*100","v":-70.6666666666667},-24.666666666666792,null,null,null,null,null,{"$f":"((Quarterly!FP127/Quarterly!FP126)^4)-1","v":-0.12669417249358639},{"$f":"((Quarterly!FQ127/Quarterly!FQ126)^4)-1","v":0},"--","--",{"$f":"((Quarterly!FT127/Quarterly!FT126)^4)-1","v":-2.1636168442506154E-2},{"$f":"((Quarterly!FU127/Quarterly!FU126)^4)-1","v":-0.12785881407977939},{"$f":"((Quarterly!FV127/Quarterly!FV126)^4)-1","v":9.6055128968722148E-2},{"$f":"((Quarterly!FW127/Quarterly!FW126)^4)-1","v":1.1458505671544885},{"$f":"((Quarterly!FX127/Quarterly!FX126)^4)-1","v":0.29936745186881475},null,null,null,null,null,{"$f":"((Quarterly!GD127/Quarterly!GD126)^4)-1","v":-0.35764466522055904},"--","--","--",{"$f":"((Quarterly!GH127/Quarterly!GH126)^4)-1","v":{"$error":"#DIV/0!"}},"--","--","--","--"]
["88'Q2",{"$f":"((Quarterly!B128/Quarterly!B127)^4)-1","v":9.5229555746319194E-2},{"$f":"((Quarterly!C128/Quarterly!C127)^4)-1","v":5.390801537398171E-2},{"$f":"((Quarterly!D128/Quarterly!D127)^4)-1","v":5.0647687098082095E-2},{"$f":"((Quarterly!E128/Quarterly!E127)^4)-1","v":2.9729295407681322E-2},{"$f":"((Quarterly!F128/Quarterly!F127)^4)-1","v":1.376553382675505E-3},{"$f":"((Quarterly!G128/Quarterly!G127)^4)-1","v":3.2170253697711315E-2},{"$f":"((Quarterly!H128/Quarterly!H127)^4)-1","v":3.1897491974063108E-2},{"$f":"((Quarterly!I128/Quarterly!I127)^4)-1","v":9.2501618034723121E-2},{"$f":"((Quarterly!J128/Quarterly!J127)^4)-1","v":0.14138691196927278},{"$f":"((Quarterly!K128/Quarterly!K127)^4)-1","v":3.1847632691877292E-2},{"$f":"((Quarterly!L128-Quarterly!L127))","v":7.195999999999998},{"$f":"((Quarterly!M128/Quarterly!M127)^4)-1","v":-4.5209534287042441E-2},{"$f":"((Quarterly!N128/Quarterly!N127)^4)-1","v":0.11698499360457126},{"$f":"((Quarterly!O128/Quarterly!O127)^4)-1","v":-0.47112953832893756},{"$f":"((Quarterly!P128/Quarterly!P127)^4)-1","v":1.436683831576735E-2},{"$f":"((Quarterly!Q128/Quarterly!Q127)^4)-1","v":-0.18291781152674713},null,null,null,null,null,{"$f":"((Quarterly!W128/Quarterly!W127)^4)-1","v":4.4138121907485006E-2},{"$f":"((Quarterly!X128/Quarterly!X127)^4)-1","v":2.9006984088696175E-2},{"$f":"((Quarterly!Y128/Quarterly!Y127)^4)-1","v":0.10660241128129178},"--",{"$f":"((Quarterly!AA128/Quarterly!AA127)^4)-1","v":0.29715407377067193},{"$f":"((Quarterly!AB128/Quarterly!AB127)^4)-1","v":0.11427749039217883},"--","--",{"$f":"(Quarterly!AE128-Quarterly!AE127)*100","v":-19.000000000000039},{"$f":"(Quarterly!AF128-Quarterly!AF127)*100","v":24.000000000000011},{"$f":"(Quarterly!AG128-Quarterly!AG127)*100","v":13},"--","--","--","--","--",{"$f":"((Quarterly!AM128/Quarterly!AM127)^4)-1","v":3.5350784570248539E-2},{"$f":"((Quarterly!AN128/Quarterly!AN127)^4)-1","v":4.8868721462411058E-2},"--","--",{"$f":"Quarterly!AQ128-Quarterly!AQ127","v":0.76666666666666572},"--","--",{"$f":"Quarterly!AT128-Quarterly!AT127","v":-1.2666666666666728},{"$f":"Quarterly!AU128-Quarterly!AU127","v":-0.23333333333332007},"--",{"$f":"Quarterly!AW128-Quarterly!AW127","v":3.2333333333333272},{"$f":"Quarterly!AX128-Quarterly!AX127","v":1.2333333333333343},{"$f":"Quarterly!AY128-Quarterly!AY127","v":2.9333333333333229},{"$f":"Quarterly!AZ128-Quarterly!AZ127","v":1.0666666666666629},{"$f":"Quarterly!BA128-Quarterly!BA127","v":0.20000000000000284},"--","--",{"$f":"((Quarterly!BD128/Quarterly!BD127)^4)-1","v":4.2847664448755207E-3},{"$f":"((Quarterly!BE128/Quarterly!BE127)^4)-1","v":2.7739431168449347E-2},{"$f":"((Quarterly!BF128/Quarterly!BF127)^4)-1","v":4.794887739937348E-2},{"$f":"((Quarterly!BG128/Quarterly!BG127)^4)-1","v":1.0955203714358097E-2},{"$f":"((Quarterly!BH128/Quarterly!BH127)^4)-1","v":5.0261891675624781E-3},{"$f":"((Quarterly!BI128/Quarterly!BI127)^4)-1","v":3.6544506836488688E-2},{"$f":"((Quarterly!BJ128/Quarterly!BJ127)^4)-1","v":0.15086349055570181},{"$f":"((Quarterly!BK128/Quarterly!BK127)^4)-1","v":1.649811036914608},null,"--","--",null,null,null,null,null,{"$f":"((Quarterly!BT128/Quarterly!BT127)^4)-1","v":0.10424755192031943},{"$f":"Quarterly!BU128-Quarterly!BU127","v":-1.6149999999999665E-2},{"$f":"Quarterly!BV128-Quarterly!BV127","v":-6.3459999999999184E-2},{"$f":"((Quarterly!BW128/Quarterly!BW127)^4)-1","v":0.12807161732990524},{"$f":"((Quarterly!BX128/Quarterly!BX127)^4)-1","v":0.19634487473087225},{"$f":"((Quarterly!BY128/Quarterly!BY127)^4)-1","v":0.15148651299426175},"--",{"$f":"((Quarterly!CA128/Quarterly!CA127)^4)-1","v":-0.1165620149799943},{"$f":"((Quarterly!CB128/Quarterly!CB127)^4)-1","v":-8.7639707562280678E-2},{"$f":"((Quarterly!CC128/Quarterly!CC127)^4)-1","v":-0.10740656115619318},"--","--",null,"--","--",null,{"$f":"((Quarterly!CJ128/Quarterly!CJ127)^4)-1","v":0.44008699169633902},{"$f":"((Quarterly!CK128/Quarterly!CK127)^4)-1","v":7.3221465030027799E-2},{"$f":"((Quarterly!CL128/Quarterly!CL127)^4)-1","v":0.25443205536998836},{"$f":"((Quarterly!CM128/Quarterly!CM127)^4)-1","v":3.4496128100040657E-2},{"$f":"((Quarterly!CN128/Quarterly!CN127)^4)-1","v":4.1725239549189164E-2},{"$f":"((Quarterly!CO128/Quarterly!CO127)^4)-1","v":4.5652521642793209E-2},{"$f":"((Quarterly!CP128/Quarterly!CP127)^4)-1","v":7.8286485938277472E-2},{"$f":"((Quarterly!CQ128/Quarterly!CQ127)^4)-1","v":8.0527020932981141E-3},{"$f":"((Quarterly!CR128/Quarterly!CR127)^4)-1","v":0.12282151886288495},{"$f":"Quarterly!CS128-Quarterly!CS127","v":1.2333333333333343},"--",null,null,null,null,null,{"$f":"((Quarterly!CZ128/Quarterly!CZ127)^4)-1","v":4.6680297484486877E-2},{"$f":"((Quarterly!DA128/Quarterly!DA127)^4)-1","v":4.9262997799457198E-2},null,null,null,null,null,{"$f":"((Quarterly!DG128/Quarterly!DG127)^4)-1","v":3.8465216501350152E-2},{"$f":"((Quarterly!DH128-Quarterly!DH127)*60)","v":0},{"$f":"Quarterly!DI128-Quarterly!DI127","v":-3.3333333333331439E-2},"--",{"$f":"(Quarterly!DK128-Quarterly!DK127)*100","v":-23.333333333333428},{"$f":"((Quarterly!DL128/Quarterly!DL127)^4)-1","v":1.6942553788315884E-2},null,null,null,{"$f":"((Quarterly!DP128/Quarterly!DP127)^4)-1","v":3.3190704549190819E-2},null,null,null,"--",{"$f":"Quarterly!DU128-Quarterly!DU127","v":-0.43333333333333268},"--","--","--","--","--","--","--","--",null,null,null,null,null,{"$f":"((Quarterly!EI128/Quarterly!EI127)^4)-1","v":5.5974274065553775E-2},{"$f":"((Quarterly!EJ128/Quarterly!EJ127)^4)-1","v":3.9030528386177155E-2},{"$f":"((Quarterly!EK128/Quarterly!EK127)^4)-1","v":3.5686060380790918E-2},null,null,null,null,null,{"$f":"((Quarterly!EQ128/Quarterly!EQ127)^4)-1","v":6.7839363007360154E-2},{"$f":"((Quarterly!ER128/Quarterly!ER127)^4)-1","v":3.2774583521619549E-2},{"$f":"((Quarterly!ES128/Quarterly!ES127)^4)-1","v":2.7416084152845466E-2},null,null,null,null,null,{"$f":"(Quarterly!EY128-Quarterly!EY127)*100","v":19.333333333333336},{"$f":"(Quarterly!EZ128-Quarterly!EZ127)*100","v":49.333333333333229},{"$f":"(Quarterly!FA128-Quarterly!FA127)*100","v":25.333333333333385},{"$f":"(Quarterly!FB128-Quarterly!FB127)*100","v":22.666666666666657},-2.6666666666667282,{"$f":"(Quarterly!FD128-Quarterly!FD127)*100","v":28.999999999999915},{"$f":"(Quarterly!FE128-Quarterly!FE127)*100","v":48.666666666666728},{"$f":"(Quarterly!FF128-Quarterly!FF127)*100","v":51.999999999999957},{"$f":"(Quarterly!FG128-Quarterly!FG127)*100","v":51.333333333333272},{"$f":"(Quarterly!FH128-Quarterly!FH127)*100","v":51.333333333333364},{"$f":"(Quarterly!FI128-Quarterly!FI127)*100","v":49.333333333333584},-2.666666666666373,null,null,null,null,null,{"$f":"((Quarterly!FP128/Quarterly!FP127)^4)-1","v":-0.11337495240436024},{"$f":"((Quarterly!FQ128/Quarterly!FQ127)^4)-1","v":0},"--","--",{"$f":"((Quarterly!FT128/Quarterly!FT127)^4)-1","v":1.837026633692429E-2},{"$f":"((Quarterly!FU128/Quarterly!FU127)^4)-1","v":-4.3190088827643858E-2},{"$f":"((Quarterly!FV128/Quarterly!FV127)^4)-1","v":0.38672296594052358},{"$f":"((Quarterly!FW128/Quarterly!FW127)^4)-1","v":0.17474953235874735},{"$f":"((Quarterly!FX128/Quarterly!FX127)^4)-1","v":0.10281814384415089},null,null,null,null,null,{"$f":"((Quarterly!GD128/Quarterly!GD127)^4)-1","v":0.14275699792614005},{"$f":"((Quarterly!GE128/Quarterly!GE127)^4)-1","v":0.10927474080758337},"--","--",{"$f":"((Quarterly!GH128/Quarterly!GH127)^4)-1","v":{"$error":"#DIV/0!"}},"--","--","--","--"]
["88'Q3",{"$f":"((Quarterly!B129/Quarterly!B128)^4)-1","v":7.2380307292473356E-2},{"$f":"((Quarterly!C129/Quarterly!C128)^4)-1","v":2.3289354137540519E-2},{"$f":"((Quarterly!D129/Quarterly!D128)^4)-1","v":2.2656473636757823E-2},{"$f":"((Quarterly!E129/Quarterly!E128)^4)-1","v":3.4542014573905266E-2},{"$f":"((Quarterly!F129/Quarterly!F128)^4)-1","v":-5.1146930904277688E-2},{"$f":"((Quarterly!G129/Quarterly!G128)^4)-1","v":2.7899631360162491E-2},{"$f":"((Quarterly!H129/Quarterly!H128)^4)-1","v":4.6493229781912504E-2},{"$f":"((Quarterly!I129/Quarterly!I128)^4)-1","v":2.5359419735798472E-2},{"$f":"((Quarterly!J129/Quarterly!J128)^4)-1","v":1.2669363836546266E-2},{"$f":"((Quarterly!K129/Quarterly!K128)^4)-1","v":2.7583020060000241E-3},{"$f":"((Quarterly!L129-Quarterly!L128))","v":-4.3290000000000006},{"$f":"((Quarterly!M129/Quarterly!M128)^4)-1","v":9.7814582973182684E-2},{"$f":"((Quarterly!N129/Quarterly!N128)^4)-1","v":8.1216717465609323E-2},{"$f":"((Quarterly!O129/Quarterly!O128)^4)-1","v":0.16852856881343481},{"$f":"((Quarterly!P129/Quarterly!P128)^4)-1","v":2.8370491827653943E-3},{"$f":"((Quarterly!Q129/Quarterly!Q128)^4)-1","v":-0.11190285242836395},null,null,null,null,null,{"$f":"((Quarterly!W129/Quarterly!W128)^4)-1","v":4.781820527757219E-3},{"$f":"((Quarterly!X129/Quarterly!X128)^4)-1","v":1.1126457654604627E-2},{"$f":"((Quarterly!Y129/Quarterly!Y128)^4)-1","v":7.9431921294814245E-2},"--",{"$f":"((Quarterly!AA129/Quarterly!AA128)^4)-1","v":-2.2673178597942933E-2},{"$f":"((Quarterly!AB129/Quarterly!AB128)^4)-1","v":-4.8399407750433054E-2},"--","--",{"$f":"(Quarterly!AE129-Quarterly!AE128)*100","v":8.0000000000000071},{"$f":"(Quarterly!AF129-Quarterly!AF128)*100","v":-8.0000000000000071},{"$f":"(Quarterly!AG129-Quarterly!AG128)*100","v":-6.0000000000000053},"--","--","--","--","--",{"$f":"((Quarterly!AM129/Quarterly!AM128)^4)-1","v":1.5134212043812267E-2},{"$f":"((Quarterly!AN129/Quarterly!AN128)^4)-1","v":1.120288682569992E-2},"--","--",{"$f":"Quarterly!AQ129-Quarterly!AQ128","v":-0.63333333333333997},"--","--",{"$f":"Quarterly!AT129-Quarterly!AT128","v":1.2666666666666728},{"$f":"Quarterly!AU129-Quarterly!AU128","v":-2.1333333333333329},"--",{"$f":"Quarterly!AW129-Quarterly!AW128","v":1},{"$f":"Quarterly!AX129-Quarterly!AX128","v":-0.1666666666666643},{"$f":"Quarterly!AY129-Quarterly!AY128","v":-3.7333333333333343},{"$f":"Quarterly!AZ129-Quarterly!AZ128","v":-1.6666666666666643},{"$f":"Quarterly!BA129-Quarterly!BA128","v":-3.3666666666666671},"--","--",{"$f":"((Quarterly!BD129/Quarterly!BD128)^4)-1","v":-1.0477542374793813E-2},{"$f":"((Quarterly!BE129/Quarterly!BE128)^4)-1","v":5.5220506180952089E-2},{"$f":"((Quarterly!BF129/Quarterly!BF128)^4)-1","v":4.883706142390376E-2},{"$f":"((Quarterly!BG129/Quarterly!BG128)^4)-1","v":1.1823696627028424E-2},{"$f":"((Quarterly!BH129/Quarterly!BH128)^4)-1","v":2.7083944776615798E-3},{"$f":"((Quarterly!BI129/Quarterly!BI128)^4)-1","v":3.6610787961922631E-2},{"$f":"((Quarterly!BJ129/Quarterly!BJ128)^4)-1","v":6.4216998700634464E-2},{"$f":"((Quarterly!BK129/Quarterly!BK128)^4)-1","v":-0.25859248517992017},null,"--","--",null,null,null,null,null,{"$f":"((Quarterly!BT129/Quarterly!BT128)^4)-1","v":7.0293888826785889E-2},{"$f":"Quarterly!BU129-Quarterly!BU128","v":-4.48599999999999E-2},{"$f":"Quarterly!BV129-Quarterly!BV128","v":-8.4240000000001203E-2},{"$f":"((Quarterly!BW129/Quarterly!BW128)^4)-1","v":9.6554779108563693E-2},{"$f":"((Quarterly!BX129/Quarterly!BX128)^4)-1","v":-1.7769437763545226E-2},{"$f":"((Quarterly!BY129/Quarterly!BY128)^4)-1","v":-2.094406686744521E-2},"--",{"$f":"((Quarterly!CA129/Quarterly!CA128)^4)-1","v":-9.7168007869833928E-2},{"$f":"((Quarterly!CB129/Quarterly!CB128)^4)-1","v":7.0515458458023428E-2},{"$f":"((Quarterly!CC129/Quarterly!CC128)^4)-1","v":4.9815452784301328E-2},"--","--",null,"--","--",null,{"$f":"((Quarterly!CJ129/Quarterly!CJ128)^4)-1","v":-5.5929987505205947E-2},{"$f":"((Quarterly!CK129/Quarterly!CK128)^4)-1","v":8.9051114505465545E-2},{"$f":"((Quarterly!CL129/Quarterly!CL128)^4)-1","v":0.15808597960156323},{"$f":"((Quarterly!CM129/Quarterly!CM128)^4)-1","v":2.016319705855163E-2},{"$f":"((Quarterly!CN129/Quarterly!CN128)^4)-1","v":3.9094575885548988E-2},{"$f":"((Quarterly!CO129/Quarterly!CO128)^4)-1","v":-1.4808350161329087E-2},{"$f":"((Quarterly!CP129/Quarterly!CP128)^4)-1","v":6.0492646340747802E-2},{"$f":"((Quarterly!CQ129/Quarterly!CQ128)^4)-1","v":1.0198737073575437E-2},{"$f":"((Quarterly!CR129/Quarterly!CR128)^4)-1","v":0.1185416518734832},{"$f":"Quarterly!CS129-Quarterly!CS128","v":2.4666666666666828},"--",null,null,null,null,null,{"$f":"((Quarterly!CZ129/Quarterly!CZ128)^4)-1","v":4.9665747893576251E-2},{"$f":"((Quarterly!DA129/Quarterly!DA128)^4)-1","v":4.5290511606445039E-2},null,null,null,null,null,{"$f":"((Quarterly!DG129/Quarterly!DG128)^4)-1","v":2.639033523647516E-2},{"$f":"((Quarterly!DH129-Quarterly!DH128)*60)","v":-1.9999999999998863},{"$f":"Quarterly!DI129-Quarterly!DI128","v":0.20000000000000284},"--",{"$f":"(Quarterly!DK129-Quarterly!DK128)*100","v":0},{"$f":"((Quarterly!DL129/Quarterly!DL128)^4)-1","v":3.6561328089095291E-3},null,null,null,{"$f":"((Quarterly!DP129/Quarterly!DP128)^4)-1","v":2.8332730677939288E-2},null,null,null,"--",{"$f":"Quarterly!DU129-Quarterly!DU128","v":3.3333333333332327E-2},"--","--","--","--","--","--","--","--",null,null,null,null,null,{"$f":"((Quarterly!EI129/Quarterly!EI128)^4)-1","v":4.6369456806740761E-3},{"$f":"((Quarterly!EJ129/Quarterly!EJ128)^4)-1","v":1.1038157052856379E-2},{"$f":"((Quarterly!EK129/Quarterly!EK128)^4)-1","v":2.3313272408928221E-2},null,null,null,null,null,{"$f":"((Quarterly!EQ129/Quarterly!EQ128)^4)-1","v":5.7539483515474554E-2},{"$f":"((Quarterly!ER129/Quarterly!ER128)^4)-1","v":5.0245990089520687E-2},{"$f":"((Quarterly!ES129/Quarterly!ES128)^4)-1","v":3.803441382095496E-2},null,null,null,null,null,{"$f":"(Quarterly!EY129-Quarterly!EY128)*100","v":92.999999999999972},{"$f":"(Quarterly!EZ129-Quarterly!EZ128)*100","v":82.666666666666714},{"$f":"(Quarterly!FA129-Quarterly!FA128)*100","v":15.333333333333243},{"$f":"(Quarterly!FB129-Quarterly!FB128)*100","v":9.3333333333333712},-5.9999999999998721,{"$f":"(Quarterly!FD129-Quarterly!FD128)*100","v":13.000000000000078},{"$f":"(Quarterly!FE129-Quarterly!FE128)*100","v":80.000000000000071},{"$f":"(Quarterly!FF129-Quarterly!FF128)*100","v":70.333333333333229},{"$f":"(Quarterly!FG129-Quarterly!FG128)*100","v":58.333333333333485},{"$f":"(Quarterly!FH129-Quarterly!FH128)*100","v":34.333333333333371},{"$f":"(Quarterly!FI129-Quarterly!FI128)*100","v":18.999999999999773},-51.333333333333456,null,null,null,null,null,{"$f":"((Quarterly!FP129/Quarterly!FP128)^4)-1","v":-3.4554648051507542E-2},{"$f":"((Quarterly!FQ129/Quarterly!FQ128)^4)-1","v":0},"--","--",{"$f":"((Quarterly!FT129/Quarterly!FT128)^4)-1","v":0.23376287645387261},{"$f":"((Quarterly!FU129/Quarterly!FU128)^4)-1","v":0.23666411172755519},{"$f":"((Quarterly!FV129/Quarterly!FV128)^4)-1","v":-0.39482305115728467},{"$f":"((Quarterly!FW129/Quarterly!FW128)^4)-1","v":1.4374771291719268},{"$f":"((Quarterly!FX129/Quarterly!FX128)^4)-1","v":-0.1421354125181048},null,null,null,null,null,{"$f":"((Quarterly!GD129/Quarterly!GD128)^4)-1","v":-0.40725887635031821},{"$f":"((Quarterly!GE129/Quarterly!GE128)^4)-1","v":-0.38071505961462038},"--","--",{"$f":"((Quarterly!GH129/Quarterly!GH128)^4)-1","v":{"$error":"#DIV/0!"}},"--","--","--","--"]
["88'Q4",{"$f":"((Quarterly!B130/Quarterly!B129)^4)-1","v":8.8240797002148375E-2},{"$f":"((Quarterly!C130/Quarterly!C129)^4)-1","v":5.4045947105289427E-2},{"$f":"((Quarterly!D130/Quarterly!D129)^4)-1","v":5.1555309501844837E-2},{"$f":"((Quarterly!E130/Quarterly!E129)^4)-1","v":4.6644079786222203E-2},{"$f":"((Quarterly!F130/Quarterly!F129)^4)-1","v":0.10775748161900411},{"$f":"((Quarterly!G130/Quarterly!G129)^4)-1","v":4.2333918468251186E-2},{"$f":"((Quarterly!H130/Quarterly!H129)^4)-1","v":4.2034914410311597E-2},{"$f":"((Quarterly!I130/Quarterly!I129)^4)-1","v":5.6878604552823342E-2},{"$f":"((Quarterly!J130/Quarterly!J129)^4)-1","v":6.8952002082070418E-2},{"$f":"((Quarterly!K130/Quarterly!K129)^4)-1","v":3.627962394840667E-2},{"$f":"((Quarterly!L130-Quarterly!L129))","v":8.0130000000000017},{"$f":"((Quarterly!M130/Quarterly!M129)^4)-1","v":0.12753667010756309},{"$f":"((Quarterly!N130/Quarterly!N129)^4)-1","v":0.12776485084748135},{"$f":"((Quarterly!O130/Quarterly!O129)^4)-1","v":0.12661106852895365},{"$f":"((Quarterly!P130/Quarterly!P129)^4)-1","v":7.7329267261022627E-2},{"$f":"((Quarterly!Q130/Quarterly!Q129)^4)-1","v":0.21092349626591078},null,null,null,null,null,{"$f":"((Quarterly!W130/Quarterly!W129)^4)-1","v":3.8689635371052633E-2},{"$f":"((Quarterly!X130/Quarterly!X129)^4)-1","v":1.9077364096520943E-2},{"$f":"((Quarterly!Y130/Quarterly!Y129)^4)-1","v":4.6662478735975954E-2},"--",{"$f":"((Quarterly!AA130/Quarterly!AA129)^4)-1","v":0.19388879313413532},{"$f":"((Quarterly!AB130/Quarterly!AB129)^4)-1","v":0.28205453963557203},"--","--",{"$f":"(Quarterly!AE130-Quarterly!AE129)*100","v":-36.999999999999964},{"$f":"(Quarterly!AF130-Quarterly!AF129)*100","v":7.0000000000000062},{"$f":"(Quarterly!AG130-Quarterly!AG129)*100","v":6.0000000000000053},"--","--","--","--","--",{"$f":"((Quarterly!AM130/Quarterly!AM129)^4)-1","v":2.8824656674603544E-2},{"$f":"((Quarterly!AN130/Quarterly!AN129)^4)-1","v":4.4874746635138241E-2},"--","--",{"$f":"Quarterly!AQ130-Quarterly!AQ129","v":-0.56666666666666288},"--","--",{"$f":"Quarterly!AT130-Quarterly!AT129","v":2.36666666666666},{"$f":"Quarterly!AU130-Quarterly!AU129","v":-1.9666666666666757},"--",{"$f":"Quarterly!AW130-Quarterly!AW129","v":-0.89999999999999147},{"$f":"Quarterly!AX130-Quarterly!AX129","v":-1.2666666666666728},{"$f":"Quarterly!AY130-Quarterly!AY129","v":-6.5999999999999943},{"$f":"Quarterly!AZ130-Quarterly!AZ129","v":0},{"$f":"Quarterly!BA130-Quarterly!BA129","v":-3.6999999999999957},"--","--",{"$f":"((Quarterly!BD130/Quarterly!BD129)^4)-1","v":2.1344541601145073E-2},{"$f":"((Quarterly!BE130/Quarterly!BE129)^4)-1","v":3.6902383428849772E-2},{"$f":"((Quarterly!BF130/Quarterly!BF129)^4)-1","v":2.9489171495980848E-2},{"$f":"((Quarterly!BG130/Quarterly!BG129)^4)-1","v":1.5698738036390436E-2},{"$f":"((Quarterly!BH130/Quarterly!BH129)^4)-1","v":-8.1365831657244092E-3},{"$f":"((Quarterly!BI130/Quarterly!BI129)^4)-1","v":1.3587752213871429E-2},{"$f":"((Quarterly!BJ130/Quarterly!BJ129)^4)-1","v":0.2725112999448247},{"$f":"((Quarterly!BK130/Quarterly!BK129)^4)-1","v":0.30083388685335999},null,"--","--",null,null,null,null,null,{"$f":"((Quarterly!BT130/Quarterly!BT129)^4)-1","v":7.0808225343763631E-2},{"$f":"Quarterly!BU130-Quarterly!BU129","v":-0.12367000000000061},{"$f":"Quarterly!BV130-Quarterly!BV129","v":-0.15032000000000068},{"$f":"((Quarterly!BW130/Quarterly!BW129)^4)-1","v":0.13331289180104533},{"$f":"((Quarterly!BX130/Quarterly!BX129)^4)-1","v":0.19422152055737696},{"$f":"((Quarterly!BY130/Quarterly!BY129)^4)-1","v":0.18718370489734459},"--",{"$f":"((Quarterly!CA130/Quarterly!CA129)^4)-1","v":7.1639560489977328E-2},{"$f":"((Quarterly!CB130/Quarterly!CB129)^4)-1","v":1.2808348997352503E-2},{"$f":"((Quarterly!CC130/Quarterly!CC129)^4)-1","v":-1.8539851092179482E-2},"--","--",null,"--","--",null,{"$f":"((Quarterly!CJ130/Quarterly!CJ129)^4)-1","v":-0.12156529196628008},{"$f":"((Quarterly!CK130/Quarterly!CK129)^4)-1","v":8.2027285619295842E-2},{"$f":"((Quarterly!CL130/Quarterly!CL129)^4)-1","v":-7.4255753186422968E-3},{"$f":"((Quarterly!CM130/Quarterly!CM129)^4)-1","v":0.26865456907284946},{"$f":"((Quarterly!CN130/Quarterly!CN129)^4)-1","v":3.9209981470967215E-2},{"$f":"((Quarterly!CO130/Quarterly!CO129)^4)-1","v":-6.1960013953271997E-2},{"$f":"((Quarterly!CP130/Quarterly!CP129)^4)-1","v":5.109801212179943E-2},{"$f":"((Quarterly!CQ130/Quarterly!CQ129)^4)-1","v":1.0413864081061597E-2},{"$f":"((Quarterly!CR130/Quarterly!CR129)^4)-1","v":0.16112314813247508},{"$f":"Quarterly!CS130-Quarterly!CS129","v":-3.0333333333333456},"--",null,null,null,null,null,{"$f":"((Quarterly!CZ130/Quarterly!CZ129)^4)-1","v":4.4418759298582522E-2},{"$f":"((Quarterly!DA130/Quarterly!DA129)^4)-1","v":4.9231768456062142E-2},null,null,null,null,null,{"$f":"((Quarterly!DG130/Quarterly!DG129)^4)-1","v":3.6180575481438826E-2},{"$f":"((Quarterly!DH130-Quarterly!DH129)*60)","v":1.9999999999998863},{"$f":"Quarterly!DI130-Quarterly!DI129","v":0.13333333333332575},"--",{"$f":"(Quarterly!DK130-Quarterly!DK129)*100","v":-13.333333333333286},{"$f":"((Quarterly!DL130/Quarterly!DL129)^4)-1","v":1.9723235307661291E-2},null,null,null,{"$f":"((Quarterly!DP130/Quarterly!DP129)^4)-1","v":3.2853632713807812E-2},null,null,null,"--",{"$f":"Quarterly!DU130-Quarterly!DU129","v":-0.16666666666666519},"--","--","--","--","--","--","--","--",null,null,null,null,null,{"$f":"((Quarterly!EI130/Quarterly!EI129)^4)-1","v":6.7616699377014422E-2},{"$f":"((Quarterly!EJ130/Quarterly!EJ129)^4)-1","v":6.3066548885698737E-2},{"$f":"((Quarterly!EK130/Quarterly!EK129)^4)-1","v":5.8165085384989323E-2},null,null,null,null,null,{"$f":"((Quarterly!EQ130/Quarterly!EQ129)^4)-1","v":1.864751671707765E-2},{"$f":"((Quarterly!ER130/Quarterly!ER129)^4)-1","v":3.7921403508928586E-2},{"$f":"((Quarterly!ES130/Quarterly!ES129)^4)-1","v":3.2909396493943088E-2},null,null,null,null,null,{"$f":"(Quarterly!EY130-Quarterly!EY129)*100","v":47.333333333333449},{"$f":"(Quarterly!EZ130-Quarterly!EZ129)*100","v":48.666666666666544},{"$f":"(Quarterly!FA130-Quarterly!FA129)*100","v":-45.333333333333314},{"$f":"(Quarterly!FB130-Quarterly!FB129)*100","v":-55.999999999999872},-10.666666666666558,{"$f":"(Quarterly!FD130-Quarterly!FD129)*100","v":-11.000000000000121},{"$f":"(Quarterly!FE130-Quarterly!FE129)*100","v":71.666666666666586},{"$f":"(Quarterly!FF130-Quarterly!FF129)*100","v":52.333333333333343},{"$f":"(Quarterly!FG130-Quarterly!FG129)*100","v":24.666666666666615},{"$f":"(Quarterly!FH130-Quarterly!FH129)*100","v":3.3333333333331439},{"$f":"(Quarterly!FI130-Quarterly!FI129)*100","v":-14.333333333333265},-66.6666666666666,null,null,null,null,null,{"$f":"((Quarterly!FP130/Quarterly!FP129)^4)-1","v":-4.0486858738138176E-2},{"$f":"((Quarterly!FQ130/Quarterly!FQ129)^4)-1","v":0},"--","--",{"$f":"((Quarterly!FT130/Quarterly!FT129)^4)-1","v":-6.966378130405404E-2},{"$f":"((Quarterly!FU130/Quarterly!FU129)^4)-1","v":-0.16401071020062086},{"$f":"((Quarterly!FV130/Quarterly!FV129)^4)-1","v":0.46798602978587511},{"$f":"((Quarterly!FW130/Quarterly!FW129)^4)-1","v":0.16575897735962752},{"$f":"((Quarterly!FX130/Quarterly!FX129)^4)-1","v":0.29418865489324508},null,null,null,null,null,{"$f":"((Quarterly!GD130/Quarterly!GD129)^4)-1","v":-0.12137586768875253},{"$f":"((Quarterly!GE130/Quarterly!GE129)^4)-1","v":-0.19273066800308913},"--","--",{"$f":"((Quarterly!GH130/Quarterly!GH129)^4)-1","v":{"$error":"#DIV/0!"}},"--","--","--","--"]
["89'Q1",{"$f":"((Quarterly!B131/Quarterly!B130)^4)-1","v":8.7447980803372793E-2},{"$f":"((Quarterly!C131/Quarterly!C130)^4)-1","v":4.0964207719001999E-2},{"$f":"((Quarterly!D131/Quarterly!D130)^4)-1","v":2.270550867755583E-2},{"$f":"((Quarterly!E131/Quarterly!E130)^4)-1","v":1.8596119154765223E-2},{"$f":"((Quarterly!F131/Quarterly!F130)^4)-1","v":-1.7644946733560318E-2},{"$f":"((Quarterly!G131/Quarterly!G130)^4)-1","v":1.8216672636638842E-2},{"$f":"((Quarterly!H131/Quarterly!H130)^4)-1","v":2.2618522684959563E-2},{"$f":"((Quarterly!I131/Quarterly!I130)^4)-1","v":6.5008690567653016E-2},{"$f":"((Quarterly!J131/Quarterly!J130)^4)-1","v":9.2474423766897296E-2},{"$f":"((Quarterly!K131/Quarterly!K130)^4)-1","v":-2.6121773247956948E-2},{"$f":"((Quarterly!L131-Quarterly!L130))","v":28.762999999999998},{"$f":"((Quarterly!M131/Quarterly!M130)^4)-1","v":1.8703279093397418E-2},{"$f":"((Quarterly!N131/Quarterly!N130)^4)-1","v":0.12483461454411748},{"$f":"((Quarterly!O131/Quarterly!O130)^4)-1","v":-0.33703179403228456},{"$f":"((Quarterly!P131/Quarterly!P130)^4)-1","v":-1.7998469457501054E-2},{"$f":"((Quarterly!Q131/Quarterly!Q130)^4)-1","v":-0.45435437613058827},null,null,null,null,null,{"$f":"((Quarterly!W131/Quarterly!W130)^4)-1","v":4.7309201918901422E-3},{"$f":"((Quarterly!X131/Quarterly!X130)^4)-1","v":1.5720177749432018E-3},{"$f":"((Quarterly!Y131/Quarterly!Y130)^4)-1","v":8.0435635439174868E-2},"--",{"$f":"((Quarterly!AA131/Quarterly!AA130)^4)-1","v":-6.6557269429496024E-2},{"$f":"((Quarterly!AB131/Quarterly!AB130)^4)-1","v":-0.26023477728110089},"--","--",{"$f":"(Quarterly!AE131-Quarterly!AE130)*100","v":7.9999999999999627},{"$f":"(Quarterly!AF131-Quarterly!AF130)*100","v":-45.000000000000007},{"$f":"(Quarterly!AG131-Quarterly!AG130)*100","v":-28.000000000000004},"--","--","--","--","--",{"$f":"((Quarterly!AM131/Quarterly!AM130)^4)-1","v":1.7752068533409604E-2},{"$f":"((Quarterly!AN131/Quarterly!AN130)^4)-1","v":2.197510348513565E-2},"--","--",{"$f":"Quarterly!AQ131-Quarterly!AQ130","v":-2.2333333333333272},"--","--",{"$f":"Quarterly!AT131-Quarterly!AT130","v":-3.1333333333333258},{"$f":"Quarterly!AU131-Quarterly!AU130","v":-3.4333333333333371},"--",{"$f":"Quarterly!AW131-Quarterly!AW130","v":-2.2333333333333414},{"$f":"Quarterly!AX131-Quarterly!AX130","v":-2.6666666666666643},{"$f":"Quarterly!AY131-Quarterly!AY130","v":-1.9666666666666686},{"$f":"Quarterly!AZ131-Quarterly!AZ130","v":-2.5333333333333385},{"$f":"Quarterly!BA131-Quarterly!BA130","v":0.1666666666666643},"--","--",{"$f":"((Quarterly!BD131/Quarterly!BD130)^4)-1","v":1.6493477446645199E-2},{"$f":"((Quarterly!BE131/Quarterly!BE130)^4)-1","v":3.9033661725786928E-3},{"$f":"((Quarterly!BF131/Quarterly!BF130)^4)-1","v":1.5603372361646661E-2},{"$f":"((Quarterly!BG131/Quarterly!BG130)^4)-1","v":-5.4238873472532978E-3},{"$f":"((Quarterly!BH131/Quarterly!BH130)^4)-1","v":-2.4703819791878523E-2},{"$f":"((Quarterly!BI131/Quarterly!BI130)^4)-1","v":2.1111803941790352E-2},{"$f":"((Quarterly!BJ131/Quarterly!BJ130)^4)-1","v":-0.26013282115633884},{"$f":"((Quarterly!BK131/Quarterly!BK130)^4)-1","v":-0.87807782938323897},null,"--","--",null,null,null,null,null,{"$f":"((Quarterly!BT131/Quarterly!BT130)^4)-1","v":5.1606488670093098E-2},{"$f":"Quarterly!BU131-Quarterly!BU130","v":-1.0989999999999611E-2},{"$f":"Quarterly!BV131-Quarterly!BV130","v":-6.816999999999851E-2},{"$f":"((Quarterly!BW131/Quarterly!BW130)^4)-1","v":0.228826507938652},{"$f":"((Quarterly!BX131/Quarterly!BX130)^4)-1","v":-0.15053176800664148},{"$f":"((Quarterly!BY131/Quarterly!BY130)^4)-1","v":-0.35000060092000629},"--",{"$f":"((Quarterly!CA131/Quarterly!CA130)^4)-1","v":-0.1557220068576175},{"$f":"((Quarterly!CB131/Quarterly!CB130)^4)-1","v":0.10097349988706661},{"$f":"((Quarterly!CC131/Quarterly!CC130)^4)-1","v":4.2937874225182915E-2},"--","--",null,"--","--",null,{"$f":"((Quarterly!CJ131/Quarterly!CJ130)^4)-1","v":-0.17828235523371694},{"$f":"((Quarterly!CK131/Quarterly!CK130)^4)-1","v":0.12116856963540834},{"$f":"((Quarterly!CL131/Quarterly!CL130)^4)-1","v":0.49263467811794337},{"$f":"((Quarterly!CM131/Quarterly!CM130)^4)-1","v":-0.2882709344246458},{"$f":"((Quarterly!CN131/Quarterly!CN130)^4)-1","v":5.0211524394888185E-2},{"$f":"((Quarterly!CO131/Quarterly!CO130)^4)-1","v":-0.10597761552018903},{"$f":"((Quarterly!CP131/Quarterly!CP130)^4)-1","v":0.14283174391079001},{"$f":"((Quarterly!CQ131/Quarterly!CQ130)^4)-1","v":8.153515589012672E-3},{"$f":"((Quarterly!CR131/Quarterly!CR130)^4)-1","v":0.12872683067186608},{"$f":"Quarterly!CS131-Quarterly!CS130","v":2.8666666666666742},"--",null,null,null,null,null,{"$f":"((Quarterly!CZ131/Quarterly!CZ130)^4)-1","v":4.6222196185139452E-2},{"$f":"((Quarterly!DA131/Quarterly!DA130)^4)-1","v":4.3143802942009701E-2},null,null,null,null,null,{"$f":"((Quarterly!DG131/Quarterly!DG130)^4)-1","v":3.2557379236728856E-2},{"$f":"((Quarterly!DH131-Quarterly!DH130)*60)","v":-1.9999999999998863},{"$f":"Quarterly!DI131-Quarterly!DI130","v":0.26666666666667993},"--",{"$f":"(Quarterly!DK131-Quarterly!DK130)*100","v":-13.333333333333286},{"$f":"((Quarterly!DL131/Quarterly!DL130)^4)-1","v":1.325200170445906E-2},null,null,null,{"$f":"((Quarterly!DP131/Quarterly!DP130)^4)-1","v":3.0537567609244531E-2},null,null,null,"--",{"$f":"Quarterly!DU131-Quarterly!DU130","v":-0.26666666666666838},"--","--","--","--","--","--","--","--",null,null,null,null,null,{"$f":"((Quarterly!EI131/Quarterly!EI130)^4)-1","v":3.8723300900395552E-2},{"$f":"((Quarterly!EJ131/Quarterly!EJ130)^4)-1","v":3.2899766144218079E-2},{"$f":"((Quarterly!EK131/Quarterly!EK130)^4)-1","v":3.2422809501569283E-2},null,null,null,null,null,{"$f":"((Quarterly!EQ131/Quarterly!EQ130)^4)-1","v":9.2771346459534554E-2},{"$f":"((Quarterly!ER131/Quarterly!ER130)^4)-1","v":5.4985921919103342E-2},{"$f":"((Quarterly!ES131/Quarterly!ES130)^4)-1","v":5.1647854195216558E-2},null,null,null,null,null,{"$f":"(Quarterly!EY131-Quarterly!EY130)*100","v":79.3333333333333},{"$f":"(Quarterly!EZ131-Quarterly!EZ130)*100","v":97.333333333333456},{"$f":"(Quarterly!FA131-Quarterly!FA130)*100","v":17.666666666666586},{"$f":"(Quarterly!FB131-Quarterly!FB130)*100","v":12.999999999999901},-4.6666666666666856,{"$f":"(Quarterly!FD131-Quarterly!FD130)*100","v":41.000000000000192},{"$f":"(Quarterly!FE131-Quarterly!FE130)*100","v":81.333333333333258},{"$f":"(Quarterly!FF131-Quarterly!FF130)*100","v":76.333333333333542},{"$f":"(Quarterly!FG131-Quarterly!FG130)*100","v":70.666666666666515},{"$f":"(Quarterly!FH131-Quarterly!FH130)*100","v":51.333333333333542},{"$f":"(Quarterly!FI131-Quarterly!FI130)*100","v":24.999999999999822},-51.333333333333719,null,null,null,null,null,{"$f":"((Quarterly!FP131/Quarterly!FP130)^4)-1","v":-4.826807191104443E-2},{"$f":"((Quarterly!FQ131/Quarterly!FQ130)^4)-1","v":0},"--","--",{"$f":"((Quarterly!FT131/Quarterly!FT130)^4)-1","v":0.11789590048335374},{"$f":"((Quarterly!FU131/Quarterly!FU130)^4)-1","v":8.1076991034569446E-2},{"$f":"((Quarterly!FV131/Quarterly!FV130)^4)-1","v":0.28657608749070107},{"$f":"((Quarterly!FW131/Quarterly!FW130)^4)-1","v":-0.28439461646694253},{"$f":"((Quarterly!FX131/Quarterly!FX130)^4)-1","v":0.27643721323853288},null,null,null,null,null,{"$f":"((Quarterly!GD131/Quarterly!GD130)^4)-1","v":1.4775715604969335},{"$f":"((Quarterly!GE131/Quarterly!GE130)^4)-1","v":1.8127753591166726},"--","--",{"$f":"((Quarterly!GH131/Quarterly!GH130)^4)-1","v":{"$error":"#DIV/0!"}},"--","--","--","--"]
["89'Q2",{"$f":"((Quarterly!B132/Quarterly!B131)^4)-1","v":7.5177771489183698E-2},{"$f":"((Quarterly!C132/Quarterly!C131)^4)-1","v":3.182674448082623E-2},{"$f":"((Quarterly!D132/Quarterly!D131)^4)-1","v":4.0329277209385506E-2},{"$f":"((Quarterly!E132/Quarterly!E131)^4)-1","v":1.895213722050082E-2},{"$f":"((Quarterly!F132/Quarterly!F131)^4)-1","v":5.4392039883439658E-2},{"$f":"((Quarterly!G132/Quarterly!G131)^4)-1","v":6.1229947057710454E-3},{"$f":"((Quarterly!H132/Quarterly!H131)^4)-1","v":2.0067646721818821E-2},{"$f":"((Quarterly!I132/Quarterly!I131)^4)-1","v":5.5616697877215016E-2},{"$f":"((Quarterly!J132/Quarterly!J131)^4)-1","v":6.2299540078750937E-2},{"$f":"((Quarterly!K132/Quarterly!K131)^4)-1","v":-0.11300096471474164},{"$f":"((Quarterly!L132-Quarterly!L131))","v":-13.631},{"$f":"((Quarterly!M132/Quarterly!M131)^4)-1","v":1.9073798401042064E-2},{"$f":"((Quarterly!N132/Quarterly!N131)^4)-1","v":0.18690627480829747},{"$f":"((Quarterly!O132/Quarterly!O131)^4)-1","v":-0.53919543106981382},{"$f":"((Quarterly!P132/Quarterly!P131)^4)-1","v":6.7068263960311958E-2},{"$f":"((Quarterly!Q132/Quarterly!Q131)^4)-1","v":0.81473202230976716},null,null,null,null,null,{"$f":"((Quarterly!W132/Quarterly!W131)^4)-1","v":-5.0885905156733302E-2},{"$f":"((Quarterly!X132/Quarterly!X131)^4)-1","v":-3.4105373560198826E-2},{"$f":"((Quarterly!Y132/Quarterly!Y131)^4)-1","v":6.1982370427367206E-2},"--",{"$f":"((Quarterly!AA132/Quarterly!AA131)^4)-1","v":-0.11061038724580596},{"$f":"((Quarterly!AB132/Quarterly!AB131)^4)-1","v":8.2020425055866264E-2},"--","--",{"$f":"(Quarterly!AE132-Quarterly!AE131)*100","v":3.0000000000000249},{"$f":"(Quarterly!AF132-Quarterly!AF131)*100","v":12},{"$f":"(Quarterly!AG132-Quarterly!AG131)*100","v":16.000000000000004},"--","--","--","--","--",{"$f":"((Quarterly!AM132/Quarterly!AM131)^4)-1","v":-1.473901479042361E-2},{"$f":"((Quarterly!AN132/Quarterly!AN131)^4)-1","v":-2.883168611889475E-2},"--","--",{"$f":"Quarterly!AQ132-Quarterly!AQ131","v":-3.8333333333333357},"--","--",{"$f":"Quarterly!AT132-Quarterly!AT131","v":-2.2000000000000028},{"$f":"Quarterly!AU132-Quarterly!AU131","v":-9.9999999999994316E-2},"--",{"$f":"Quarterly!AW132-Quarterly!AW131","v":-1.3999999999999986},{"$f":"Quarterly!AX132-Quarterly!AX131","v":-5.7333333333333272},{"$f":"Quarterly!AY132-Quarterly!AY131","v":-10.533333333333339},{"$f":"Quarterly!AZ132-Quarterly!AZ131","v":-3.7000000000000028},{"$f":"Quarterly!BA132-Quarterly!BA131","v":-4.1999999999999957},"--","--",{"$f":"((Quarterly!BD132/Quarterly!BD131)^4)-1","v":-2.2740828218722031E-2},{"$f":"((Quarterly!BE132/Quarterly!BE131)^4)-1","v":1.7470022285480891E-2},{"$f":"((Quarterly!BF132/Quarterly!BF131)^4)-1","v":1.4761331591311988E-2},{"$f":"((Quarterly!BG132/Quarterly!BG131)^4)-1","v":1.5082666204505824E-2},{"$f":"((Quarterly!BH132/Quarterly!BH131)^4)-1","v":-4.4280282910611368E-2},{"$f":"((Quarterly!BI132/Quarterly!BI131)^4)-1","v":-2.712949571012091E-4},{"$f":"((Quarterly!BJ132/Quarterly!BJ131)^4)-1","v":-0.24253476758191284},{"$f":"((Quarterly!BK132/Quarterly!BK131)^4)-1","v":0.96928908651657864},null,"--","--",null,null,null,null,null,{"$f":"((Quarterly!BT132/Quarterly!BT131)^4)-1","v":5.2476622775619486E-2},{"$f":"Quarterly!BU132-Quarterly!BU131","v":0.1677300000000006},{"$f":"Quarterly!BV132-Quarterly!BV131","v":0.18740000000000023},{"$f":"((Quarterly!BW132/Quarterly!BW131)^4)-1","v":0.12549659763344057},{"$f":"((Quarterly!BX132/Quarterly!BX131)^4)-1","v":-0.31349448281990888},{"$f":"((Quarterly!BY132/Quarterly!BY131)^4)-1","v":1.5845197943992195E-2},"--",{"$f":"((Quarterly!CA132/Quarterly!CA131)^4)-1","v":6.1106706498911034E-2},{"$f":"((Quarterly!CB132/Quarterly!CB131)^4)-1","v":0.22750285763432054},{"$f":"((Quarterly!CC132/Quarterly!CC131)^4)-1","v":0.17051231982308712},"--","--",null,"--","--",null,{"$f":"((Quarterly!CJ132/Quarterly!CJ131)^4)-1","v":-4.1862841569352272E-3},{"$f":"((Quarterly!CK132/Quarterly!CK131)^4)-1","v":4.9366142723282103E-2},{"$f":"((Quarterly!CL132/Quarterly!CL131)^4)-1","v":-0.27833690249039955},{"$f":"((Quarterly!CM132/Quarterly!CM131)^4)-1","v":-0.16822707943868043},{"$f":"((Quarterly!CN132/Quarterly!CN131)^4)-1","v":-1.1641925471879033E-2},{"$f":"((Quarterly!CO132/Quarterly!CO131)^4)-1","v":-0.14649493960061366},{"$f":"((Quarterly!CP132/Quarterly!CP131)^4)-1","v":8.2511378816395142E-2},{"$f":"((Quarterly!CQ132/Quarterly!CQ131)^4)-1","v":8.7359850381600879E-3},{"$f":"((Quarterly!CR132/Quarterly!CR131)^4)-1","v":0.1630883389835438},{"$f":"Quarterly!CS132-Quarterly!CS131","v":-4.9333333333333513},"--",null,null,null,null,null,{"$f":"((Quarterly!CZ132/Quarterly!CZ131)^4)-1","v":6.6242220485478009E-2},{"$f":"((Quarterly!DA132/Quarterly!DA131)^4)-1","v":4.3767777621861903E-2},null,null,null,null,null,{"$f":"((Quarterly!DG132/Quarterly!DG131)^4)-1","v":4.7951962016943295E-3},{"$f":"((Quarterly!DH132-Quarterly!DH131)*60)","v":-6.0000000000000853},{"$f":"Quarterly!DI132-Quarterly!DI131","v":3.3333333333317228E-2},"--",{"$f":"(Quarterly!DK132-Quarterly!DK131)*100","v":3.3333333333333215},{"$f":"((Quarterly!DL132/Quarterly!DL131)^4)-1","v":-4.7173205919662786E-3},null,null,null,{"$f":"((Quarterly!DP132/Quarterly!DP131)^4)-1","v":1.8940495959002712E-2},null,null,null,"--",{"$f":"Quarterly!DU132-Quarterly!DU131","v":-9.9999999999998757E-2},"--","--","--","--","--","--","--","--",null,null,null,null,null,{"$f":"((Quarterly!EI132/Quarterly!EI131)^4)-1","v":2.3568981910523812E-2},{"$f":"((Quarterly!EJ132/Quarterly!EJ131)^4)-1","v":2.4412432209526047E-2},{"$f":"((Quarterly!EK132/Quarterly!EK131)^4)-1","v":2.5586331260691209E-2},null,null,null,null,null,{"$f":"((Quarterly!EQ132/Quarterly!EQ131)^4)-1","v":6.902570237983463E-2},{"$f":"((Quarterly!ER132/Quarterly!ER131)^4)-1","v":3.9337754539030545E-2},{"$f":"((Quarterly!ES132/Quarterly!ES131)^4)-1","v":3.5726221365548705E-2},null,null,null,null,null,{"$f":"(Quarterly!EY132-Quarterly!EY131)*100","v":38.000000000000078},{"$f":"(Quarterly!EZ132-Quarterly!EZ131)*100","v":28.333333333333321},{"$f":"(Quarterly!FA132-Quarterly!FA131)*100","v":-19.999999999999929},{"$f":"(Quarterly!FB132-Quarterly!FB131)*100","v":-27.666666666666551},-7.6666666666666217,{"$f":"(Quarterly!FD132-Quarterly!FD131)*100","v":-13.000000000000256},{"$f":"(Quarterly!FE132-Quarterly!FE131)*100","v":-13.000000000000078},{"$f":"(Quarterly!FF132-Quarterly!FF131)*100","v":-36.333333333333329},{"$f":"(Quarterly!FG132-Quarterly!FG131)*100","v":-44.999999999999929},{"$f":"(Quarterly!FH132-Quarterly!FH131)*100","v":-47.666666666666657},{"$f":"(Quarterly!FI132-Quarterly!FI131)*100","v":-43.333333333333179},-6.9999999999998508,null,null,null,null,null,{"$f":"((Quarterly!FP132/Quarterly!FP131)^4)-1","v":4.5942803966980694E-3},{"$f":"((Quarterly!FQ132/Quarterly!FQ131)^4)-1","v":0},"--","--",{"$f":"((Quarterly!FT132/Quarterly!FT131)^4)-1","v":0.19809475772383367},{"$f":"((Quarterly!FU132/Quarterly!FU131)^4)-1","v":0.19172482063770713},{"$f":"((Quarterly!FV132/Quarterly!FV131)^4)-1","v":0.17267635136563975},{"$f":"((Quarterly!FW132/Quarterly!FW131)^4)-1","v":1.0217843912584699},{"$f":"((Quarterly!FX132/Quarterly!FX131)^4)-1","v":0.54412333942824676},null,null,null,null,null,{"$f":"((Quarterly!GD132/Quarterly!GD131)^4)-1","v":0.4929865488717271},{"$f":"((Quarterly!GE132/Quarterly!GE131)^4)-1","v":0.32635663000183346},"--","--",{"$f":"((Quarterly!GH132/Quarterly!GH131)^4)-1","v":{"$error":"#DIV/0!"}},"--","--","--","--"]
["89'Q3",{"$f":"((Quarterly!B133/Quarterly!B132)^4)-1","v":6.0398217280618338E-2},{"$f":"((Quarterly!C133/Quarterly!C132)^4)-1","v":3.0196036653703739E-2},{"$f":"((Quarterly!D133/Quarterly!D132)^4)-1","v":4.9453741639650994E-2},{"$f":"((Quarterly!E133/Quarterly!E132)^4)-1","v":4.0298548486750629E-2},{"$f":"((Quarterly!F133/Quarterly!F132)^4)-1","v":9.3642576985822901E-2},{"$f":"((Quarterly!G133/Quarterly!G132)^4)-1","v":4.0727113835303363E-2},{"$f":"((Quarterly!H133/Quarterly!H132)^4)-1","v":3.4638671531189269E-2},{"$f":"((Quarterly!I133/Quarterly!I132)^4)-1","v":0.10630901328409736},{"$f":"((Quarterly!J133/Quarterly!J132)^4)-1","v":0.17456448164914584},{"$f":"((Quarterly!K133/Quarterly!K132)^4)-1","v":-4.2705015949436431E-2},{"$f":"((Quarterly!L133-Quarterly!L132))","v":-32.265000000000001},{"$f":"((Quarterly!M133/Quarterly!M132)^4)-1","v":-5.4353555217777627E-3},{"$f":"((Quarterly!N133/Quarterly!N132)^4)-1","v":4.1450288984725914E-2},{"$f":"((Quarterly!O133/Quarterly!O132)^4)-1","v":-0.24951608708692841},{"$f":"((Quarterly!P133/Quarterly!P132)^4)-1","v":3.3930362633177502E-2},{"$f":"((Quarterly!Q133/Quarterly!Q132)^4)-1","v":0.14151965001348543},null,null,null,null,null,{"$f":"((Quarterly!W133/Quarterly!W132)^4)-1","v":-6.0694176639757846E-2},{"$f":"((Quarterly!X133/Quarterly!X132)^4)-1","v":-4.8211908449999563E-2},{"$f":"((Quarterly!Y133/Quarterly!Y132)^4)-1","v":7.9141117300099539E-2},"--",{"$f":"((Quarterly!AA133/Quarterly!AA132)^4)-1","v":-0.15490396418528074},{"$f":"((Quarterly!AB133/Quarterly!AB132)^4)-1","v":7.962207542551214E-2},"--","--",{"$f":"(Quarterly!AE133-Quarterly!AE132)*100","v":8.0000000000000071},{"$f":"(Quarterly!AF133-Quarterly!AF132)*100","v":2.0000000000000018},{"$f":"(Quarterly!AG133-Quarterly!AG132)*100","v":1.0000000000000009},"--","--","--","--","--",{"$f":"((Quarterly!AM133/Quarterly!AM132)^4)-1","v":-2.4322019014436647E-2},{"$f":"((Quarterly!AN133/Quarterly!AN132)^4)-1","v":-2.985716758874124E-2},"--","--",{"$f":"Quarterly!AQ133-Quarterly!AQ132","v":-3.9333333333333371},"--","--",{"$f":"Quarterly!AT133-Quarterly!AT132","v":-3.5},{"$f":"Quarterly!AU133-Quarterly!AU132","v":1.0000000000000071},"--",{"$f":"Quarterly!AW133-Quarterly!AW132","v":-1.7666666666666657},{"$f":"Quarterly!AX133-Quarterly!AX132","v":-4.13333333333334},{"$f":"Quarterly!AY133-Quarterly!AY132","v":-13.633333333333326},{"$f":"Quarterly!AZ133-Quarterly!AZ132","v":-4.5},{"$f":"Quarterly!BA133-Quarterly!BA132","v":-4.6000000000000085},"--","--",{"$f":"((Quarterly!BD133/Quarterly!BD132)^4)-1","v":-1.3315040050716598E-2},{"$f":"((Quarterly!BE133/Quarterly!BE132)^4)-1","v":6.6041508632195933E-2},{"$f":"((Quarterly!BF133/Quarterly!BF132)^4)-1","v":3.5358020399562484E-2},{"$f":"((Quarterly!BG133/Quarterly!BG132)^4)-1","v":2.0584150566548276E-2},{"$f":"((Quarterly!BH133/Quarterly!BH132)^4)-1","v":5.8338722565391965E-3},{"$f":"((Quarterly!BI133/Quarterly!BI132)^4)-1","v":1.4513669752900915E-2},{"$f":"((Quarterly!BJ133/Quarterly!BJ132)^4)-1","v":-0.29610498579989952},{"$f":"((Quarterly!BK133/Quarterly!BK132)^4)-1","v":0.10801455270967897},null,"--","--",null,null,null,null,null,{"$f":"((Quarterly!BT133/Quarterly!BT132)^4)-1","v":5.2131742379596391E-2},{"$f":"Quarterly!BU133-Quarterly!BU132","v":6.2920000000000087E-2},{"$f":"Quarterly!BV133-Quarterly!BV132","v":7.7049999999999841E-2},{"$f":"((Quarterly!BW133/Quarterly!BW132)^4)-1","v":0.15622904726752473},{"$f":"((Quarterly!BX133/Quarterly!BX132)^4)-1","v":-2.8218630323056049E-2},{"$f":"((Quarterly!BY133/Quarterly!BY132)^4)-1","v":-0.1374240324037177},"--",{"$f":"((Quarterly!CA133/Quarterly!CA132)^4)-1","v":0.119444556770407},{"$f":"((Quarterly!CB133/Quarterly!CB132)^4)-1","v":-0.16337525647659612},{"$f":"((Quarterly!CC133/Quarterly!CC132)^4)-1","v":-0.12288765147720526},"--","--",null,"--","--",null,{"$f":"((Quarterly!CJ133/Quarterly!CJ132)^4)-1","v":0.38315331292396193},{"$f":"((Quarterly!CK133/Quarterly!CK132)^4)-1","v":4.9186172797246019E-2},{"$f":"((Quarterly!CL133/Quarterly!CL132)^4)-1","v":-9.5053814711328566E-2},{"$f":"((Quarterly!CM133/Quarterly!CM132)^4)-1","v":1.3375687815690984E-3},{"$f":"((Quarterly!CN133/Quarterly!CN132)^4)-1","v":2.7500356455140818E-2},{"$f":"((Quarterly!CO133/Quarterly!CO132)^4)-1","v":-7.4907468828251389E-3},{"$f":"((Quarterly!CP133/Quarterly!CP132)^4)-1","v":5.2571623068042639E-2},{"$f":"((Quarterly!CQ133/Quarterly!CQ132)^4)-1","v":1.0789377511011278E-2},{"$f":"((Quarterly!CR133/Quarterly!CR132)^4)-1","v":0.13304160334718662},{"$f":"Quarterly!CS133-Quarterly!CS132","v":1.5333333333333314},"--",null,null,null,null,null,{"$f":"((Quarterly!CZ133/Quarterly!CZ132)^4)-1","v":3.1643995664437652E-2},{"$f":"((Quarterly!DA133/Quarterly!DA132)^4)-1","v":3.9009553126786001E-2},null,null,null,null,null,{"$f":"((Quarterly!DG133/Quarterly!DG132)^4)-1","v":7.9919682707236817E-3},{"$f":"((Quarterly!DH133-Quarterly!DH132)*60)","v":0},{"$f":"Quarterly!DI133-Quarterly!DI132","v":6.6666666666677088E-2},"--",{"$f":"(Quarterly!DK133-Quarterly!DK132)*100","v":0},{"$f":"((Quarterly!DL133/Quarterly!DL132)^4)-1","v":-1.7770481609946431E-2},null,null,null,{"$f":"((Quarterly!DP133/Quarterly!DP132)^4)-1","v":1.0145623797156222E-2},null,null,null,"--",{"$f":"Quarterly!DU133-Quarterly!DU132","v":-0.20000000000000018},"--","--","--","--","--","--","--","--",null,null,null,null,null,{"$f":"((Quarterly!EI133/Quarterly!EI132)^4)-1","v":3.4392467035287755E-2},{"$f":"((Quarterly!EJ133/Quarterly!EJ132)^4)-1","v":4.3577795000240949E-2},{"$f":"((Quarterly!EK133/Quarterly!EK132)^4)-1","v":4.0043947535947311E-2},null,null,null,null,null,{"$f":"((Quarterly!EQ133/Quarterly!EQ132)^4)-1","v":-1.4109126450157161E-2},{"$f":"((Quarterly!ER133/Quarterly!ER132)^4)-1","v":3.6698557036660473E-2},{"$f":"((Quarterly!ES133/Quarterly!ES132)^4)-1","v":3.5409985301371849E-2},null,null,null,null,null,{"$f":"(Quarterly!EY133-Quarterly!EY132)*100","v":-69.666666666666714},{"$f":"(Quarterly!EZ133-Quarterly!EZ132)*100","v":-64.333333333333258},{"$f":"(Quarterly!FA133-Quarterly!FA132)*100","v":-51.999999999999957},{"$f":"(Quarterly!FB133-Quarterly!FB132)*100","v":-48.000000000000043},3.9999999999999147,{"$f":"(Quarterly!FD133-Quarterly!FD132)*100","v":-67.333333333333201},{"$f":"(Quarterly!FE133-Quarterly!FE132)*100","v":-56.666666666666465},{"$f":"(Quarterly!FF133-Quarterly!FF132)*100","v":-83.000000000000185},{"$f":"(Quarterly!FG133-Quarterly!FG132)*100","v":-87.999999999999901},{"$f":"(Quarterly!FH133-Quarterly!FH132)*100","v":-80.333333333333456},{"$f":"(Quarterly!FI133-Quarterly!FI132)*100","v":-66.6666666666666},16.333333333333584,null,null,null,null,null,{"$f":"((Quarterly!FP133/Quarterly!FP132)^4)-1","v":-3.5496138939829835E-2},{"$f":"((Quarterly!FQ133/Quarterly!FQ132)^4)-1","v":0},"--","--",{"$f":"((Quarterly!FT133/Quarterly!FT132)^4)-1","v":0.12145547496769549},{"$f":"((Quarterly!FU133/Quarterly!FU132)^4)-1","v":2.6556831695355276E-2},{"$f":"((Quarterly!FV133/Quarterly!FV132)^4)-1","v":-0.43996731854779225},{"$f":"((Quarterly!FW133/Quarterly!FW132)^4)-1","v":2.2947331263669937},{"$f":"((Quarterly!FX133/Quarterly!FX132)^4)-1","v":-0.20177423849589449},null,null,null,null,null,{"$f":"((Quarterly!GD133/Quarterly!GD132)^4)-1","v":-0.20016952065276439},{"$f":"((Quarterly!GE133/Quarterly!GE132)^4)-1","v":-0.27977055797803985},"--","--",{"$f":"((Quarterly!GH133/Quarterly!GH132)^4)-1","v":{"$error":"#DIV/0!"}},"--","--","--","--"]
["89'Q4",{"$f":"((Quarterly!B134/Quarterly!B133)^4)-1","v":3.683716005865878E-2},{"$f":"((Quarterly!C134/Quarterly!C133)^4)-1","v":8.4901974785103196E-3},{"$f":"((Quarterly!D134/Quarterly!D133)^4)-1","v":4.7251642881547262E-3},{"$f":"((Quarterly!E134/Quarterly!E133)^4)-1","v":1.7805054118404939E-2},{"$f":"((Quarterly!F134/Quarterly!F133)^4)-1","v":-0.11610954414261632},{"$f":"((Quarterly!G134/Quarterly!G133)^4)-1","v":4.610056579750732E-2},{"$f":"((Quarterly!H134/Quarterly!H133)^4)-1","v":2.2537694085980498E-2},{"$f":"((Quarterly!I134/Quarterly!I133)^4)-1","v":-3.9143108651327641E-2},{"$f":"((Quarterly!J134/Quarterly!J133)^4)-1","v":-9.5599817591652814E-2},{"$f":"((Quarterly!K134/Quarterly!K133)^4)-1","v":-8.1343407027893666E-2},{"$f":"((Quarterly!L134-Quarterly!L133))","v":5.5589999999999993},{"$f":"((Quarterly!M134/Quarterly!M133)^4)-1","v":7.4358643335084684E-2},{"$f":"((Quarterly!N134/Quarterly!N133)^4)-1","v":6.1928080366111082E-2},{"$f":"((Quarterly!O134/Quarterly!O133)^4)-1","v":0.15611868876317314},{"$f":"((Quarterly!P134/Quarterly!P133)^4)-1","v":2.1706271059809934E-2},{"$f":"((Quarterly!Q134/Quarterly!Q133)^4)-1","v":0.12686714797103682},null,null,null,null,null,{"$f":"((Quarterly!W134/Quarterly!W133)^4)-1","v":-2.4051816081294142E-2},{"$f":"((Quarterly!X134/Quarterly!X133)^4)-1","v":-1.2769189842678719E-2},{"$f":"((Quarterly!Y134/Quarterly!Y133)^4)-1","v":2.7421816267975796E-2},"--",{"$f":"((Quarterly!AA134/Quarterly!AA133)^4)-1","v":5.0757663868417069E-5},{"$f":"((Quarterly!AB134/Quarterly!AB133)^4)-1","v":-0.20987489198647946},"--","--",{"$f":"(Quarterly!AE134-Quarterly!AE133)*100","v":-12.000000000000011},{"$f":"(Quarterly!AF134-Quarterly!AF133)*100","v":31.000000000000007},{"$f":"(Quarterly!AG134-Quarterly!AG133)*100","v":26.999999999999989},"--","--","--","--","--",{"$f":"((Quarterly!AM134/Quarterly!AM133)^4)-1","v":1.7001867032653939E-2},{"$f":"((Quarterly!AN134/Quarterly!AN133)^4)-1","v":4.9273843623118818E-3},"--","--",{"$f":"Quarterly!AQ134-Quarterly!AQ133","v":1.3333333333333357},"--","--",{"$f":"Quarterly!AT134-Quarterly!AT133","v":0.3333333333333286},{"$f":"Quarterly!AU134-Quarterly!AU133","v":-2.2999999999999972},"--",{"$f":"Quarterly!AW134-Quarterly!AW133","v":-1.8000000000000043},{"$f":"Quarterly!AX134-Quarterly!AX133","v":4},{"$f":"Quarterly!AY134-Quarterly!AY133","v":-3.6333333333333329},{"$f":"Quarterly!AZ134-Quarterly!AZ133","v":1.9333333333333371},{"$f":"Quarterly!BA134-Quarterly!BA133","v":-1.5666666666666629},"--","--",{"$f":"((Quarterly!BD134/Quarterly!BD133)^4)-1","v":4.5825675859455295E-2},{"$f":"((Quarterly!BE134/Quarterly!BE133)^4)-1","v":3.620141095848961E-2},{"$f":"((Quarterly!BF134/Quarterly!BF133)^4)-1","v":5.6178821347134145E-2},{"$f":"((Quarterly!BG134/Quarterly!BG133)^4)-1","v":1.3806951629078412E-3},{"$f":"((Quarterly!BH134/Quarterly!BH133)^4)-1","v":1.977557140295727E-2},{"$f":"((Quarterly!BI134/Quarterly!BI133)^4)-1","v":5.461658332055852E-2},{"$f":"((Quarterly!BJ134/Quarterly!BJ133)^4)-1","v":-0.14384862024414358},{"$f":"((Quarterly!BK134/Quarterly!BK133)^4)-1","v":2.7589138774833364},null,"--","--",null,null,null,null,null,{"$f":"((Quarterly!BT134/Quarterly!BT133)^4)-1","v":5.8863400417484835E-2},{"$f":"Quarterly!BU134-Quarterly!BU133","v":-4.2670000000001096E-2},{"$f":"Quarterly!BV134-Quarterly!BV133","v":-3.7549999999999528E-2},{"$f":"((Quarterly!BW134/Quarterly!BW133)^4)-1","v":0.20437646077879879},{"$f":"((Quarterly!BX134/Quarterly!BX133)^4)-1","v":-2.5507639201565735E-2},{"$f":"((Quarterly!BY134/Quarterly!BY133)^4)-1","v":0.21957525672283129},"--",{"$f":"((Quarterly!CA134/Quarterly!CA133)^4)-1","v":-0.44939995785288567},{"$f":"((Quarterly!CB134/Quarterly!CB133)^4)-1","v":2.1839869057702632E-2},{"$f":"((Quarterly!CC134/Quarterly!CC133)^4)-1","v":4.3980809174199775E-2},"--","--",null,"--","--",null,{"$f":"((Quarterly!CJ134/Quarterly!CJ133)^4)-1","v":-0.19318151926532356},{"$f":"((Quarterly!CK134/Quarterly!CK133)^4)-1","v":6.4539652764071587E-2},{"$f":"((Quarterly!CL134/Quarterly!CL133)^4)-1","v":0.24290848298184198},{"$f":"((Quarterly!CM134/Quarterly!CM133)^4)-1","v":-4.7251155468507777E-2},{"$f":"((Quarterly!CN134/Quarterly!CN133)^4)-1","v":3.257154420480779E-2},{"$f":"((Quarterly!CO134/Quarterly!CO133)^4)-1","v":8.8171116294287311E-2},{"$f":"((Quarterly!CP134/Quarterly!CP133)^4)-1","v":5.8577985301032864E-2},{"$f":"((Quarterly!CQ134/Quarterly!CQ133)^4)-1","v":1.133594330865817E-2},{"$f":"((Quarterly!CR134/Quarterly!CR133)^4)-1","v":0.13330497529711471},{"$f":"Quarterly!CS134-Quarterly!CS133","v":-0.69999999999998863},"--",null,null,null,null,null,{"$f":"((Quarterly!CZ134/Quarterly!CZ133)^4)-1","v":4.1287738187626877E-2},{"$f":"((Quarterly!DA134/Quarterly!DA133)^4)-1","v":4.9263584461316956E-2},null,null,null,null,null,{"$f":"((Quarterly!DG134/Quarterly!DG133)^4)-1","v":1.7610143388308019E-2},{"$f":"((Quarterly!DH134-Quarterly!DH133)*60)","v":-2.0000000000003126},{"$f":"Quarterly!DI134-Quarterly!DI133","v":6.6666666666662877E-2},"--",{"$f":"(Quarterly!DK134-Quarterly!DK133)*100","v":13.333333333333375},{"$f":"((Quarterly!DL134/Quarterly!DL133)^4)-1","v":-1.5062863209570398E-2},null,null,null,{"$f":"((Quarterly!DP134/Quarterly!DP133)^4)-1","v":1.901587755012879E-2},null,null,null,"--",{"$f":"Quarterly!DU134-Quarterly!DU133","v":-0.30000000000000071},"--","--","--","--","--","--","--","--",null,null,null,null,null,{"$f":"((Quarterly!EI134/Quarterly!EI133)^4)-1","v":-2.0420674364813873E-2},{"$f":"((Quarterly!EJ134/Quarterly!EJ133)^4)-1","v":4.3795520496325846E-3},{"$f":"((Quarterly!EK134/Quarterly!EK133)^4)-1","v":1.8740637892169731E-2},null,null,null,null,null,{"$f":"((Quarterly!EQ134/Quarterly!EQ133)^4)-1","v":1.551052353907445E-2},{"$f":"((Quarterly!ER134/Quarterly!ER133)^4)-1","v":4.0839271269397015E-2},{"$f":"((Quarterly!ES134/Quarterly!ES133)^4)-1","v":3.509929803271894E-2},null,null,null,null,null,{"$f":"(Quarterly!EY134-Quarterly!EY133)*100","v":-16.000000000000014},{"$f":"(Quarterly!EZ134-Quarterly!EZ133)*100","v":-47.000000000000064},{"$f":"(Quarterly!FA134-Quarterly!FA133)*100","v":-7.6666666666666217},{"$f":"(Quarterly!FB134-Quarterly!FB133)*100","v":-7.3333333333332362},0.33333333333338544,{"$f":"(Quarterly!FD134-Quarterly!FD133)*100","v":-17.999999999999972},{"$f":"(Quarterly!FE134-Quarterly!FE133)*100","v":-19.000000000000039},{"$f":"(Quarterly!FF134-Quarterly!FF133)*100","v":-26.999999999999869},{"$f":"(Quarterly!FG134-Quarterly!FG133)*100","v":-22.666666666666568},{"$f":"(Quarterly!FH134-Quarterly!FH133)*100","v":-18.666666666666565},{"$f":"(Quarterly!FI134-Quarterly!FI133)*100","v":-20.000000000000107},6.999999999999762,null,null,null,null,null,{"$f":"((Quarterly!FP134/Quarterly!FP133)^4)-1","v":-4.6302716266899635E-2},{"$f":"((Quarterly!FQ134/Quarterly!FQ133)^4)-1","v":0.17119841679182257},"--","--",{"$f":"((Quarterly!FT134/Quarterly!FT133)^4)-1","v":5.6976584750575432E-2},{"$f":"((Quarterly!FU134/Quarterly!FU133)^4)-1","v":-6.7328126432993018E-2},{"$f":"((Quarterly!FV134/Quarterly!FV133)^4)-1","v":0.54390330183673719},{"$f":"((Quarterly!FW134/Quarterly!FW133)^4)-1","v":-0.1994372386910459},{"$f":"((Quarterly!FX134/Quarterly!FX133)^4)-1","v":8.3571781715451765E-2},null,null,null,null,null,{"$f":"((Quarterly!GD134/Quarterly!GD133)^4)-1","v":0.24389042053061694},{"$f":"((Quarterly!GE134/Quarterly!GE133)^4)-1","v":0.47474423442992553},"--","--",{"$f":"((Quarterly!GH134/Quarterly!GH133)^4)-1","v":{"$error":"#DIV/0!"}},"--","--","--","--"]
["90'Q1",{"$f":"((Quarterly!B135/Quarterly!B134)^4)-1","v":9.1387871052183378E-2},{"$f":"((Quarterly!C135/Quarterly!C134)^4)-1","v":4.4519535741707861E-2},{"$f":"((Quarterly!D135/Quarterly!D134)^4)-1","v":4.588754246965232E-2},{"$f":"((Quarterly!E135/Quarterly!E134)^4)-1","v":3.4808887243656716E-2},{"$f":"((Quarterly!F135/Quarterly!F134)^4)-1","v":0.179906262414391},{"$f":"((Quarterly!G135/Quarterly!G134)^4)-1","v":-5.2224423209032977E-3},{"$f":"((Quarterly!H135/Quarterly!H134)^4)-1","v":3.5683234591806112E-2},{"$f":"((Quarterly!I135/Quarterly!I134)^4)-1","v":5.1591905367416535E-2},{"$f":"((Quarterly!J135/Quarterly!J134)^4)-1","v":6.7137203449602278E-2},{"$f":"((Quarterly!K135/Quarterly!K134)^4)-1","v":4.1558087866737869E-2},{"$f":"((Quarterly!L135-Quarterly!L134))","v":-1.4770000000000003},{"$f":"((Quarterly!M135/Quarterly!M134)^4)-1","v":0.13302059523809628},{"$f":"((Quarterly!N135/Quarterly!N134)^4)-1","v":0.18536876665970237},{"$f":"((Quarterly!O135/Quarterly!O134)^4)-1","v":-0.15539826301953419},{"$f":"((Quarterly!P135/Quarterly!P134)^4)-1","v":6.4385801234703832E-2},{"$f":"((Quarterly!Q135/Quarterly!Q134)^4)-1","v":0.80421820795784837},null,null,null,null,null,{"$f":"((Quarterly!W135/Quarterly!W134)^4)-1","v":9.8038483094455842E-3},{"$f":"((Quarterly!X135/Quarterly!X134)^4)-1","v":0},{"$f":"((Quarterly!Y135/Quarterly!Y134)^4)-1","v":-1.2277456148896082E-2},"--",{"$f":"((Quarterly!AA135/Quarterly!AA134)^4)-1","v":0.17777653374980762},{"$f":"((Quarterly!AB135/Quarterly!AB134)^4)-1","v":0.23137105067165709},"--","--",{"$f":"(Quarterly!AE135-Quarterly!AE134)*100","v":10.999999999999988},{"$f":"(Quarterly!AF135-Quarterly!AF134)*100","v":-4.0000000000000036},{"$f":"(Quarterly!AG135-Quarterly!AG134)*100","v":14.000000000000012},"--","--","--","--","--",{"$f":"((Quarterly!AM135/Quarterly!AM134)^4)-1","v":2.76818087086943E-2},{"$f":"((Quarterly!AN135/Quarterly!AN134)^4)-1","v":4.3565041807821059E-2},"--","--",{"$f":"Quarterly!AQ135-Quarterly!AQ134","v":1.7333333333333414},"--","--",{"$f":"Quarterly!AT135-Quarterly!AT134","v":0.96666666666666856},{"$f":"Quarterly!AU135-Quarterly!AU134","v":-1.13333333333334},"--",{"$f":"Quarterly!AW135-Quarterly!AW134","v":-1.2666666666666657},{"$f":"Quarterly!AX135-Quarterly!AX134","v":1.6333333333333258},{"$f":"Quarterly!AY135-Quarterly!AY134","v":7.5333333333333314},{"$f":"Quarterly!AZ135-Quarterly!AZ134","v":2.4999999999999929},{"$f":"Quarterly!BA135-Quarterly!BA134","v":3.5},"--","--",{"$f":"((Quarterly!BD135/Quarterly!BD134)^4)-1","v":8.3892042568773251E-2},{"$f":"((Quarterly!BE135/Quarterly!BE134)^4)-1","v":-3.5210835783567762E-2},{"$f":"((Quarterly!BF135/Quarterly!BF134)^4)-1","v":8.3904634577840032E-2},{"$f":"((Quarterly!BG135/Quarterly!BG134)^4)-1","v":3.3971443429056336E-2},{"$f":"((Quarterly!BH135/Quarterly!BH134)^4)-1","v":1.7826034170950189E-2},{"$f":"((Quarterly!BI135/Quarterly!BI134)^4)-1","v":4.8341893622386722E-2},{"$f":"((Quarterly!BJ135/Quarterly!BJ134)^4)-1","v":0.11260278907986687},{"$f":"((Quarterly!BK135/Quarterly!BK134)^4)-1","v":-0.13771124923160982},null,"--","--",null,null,null,null,null,{"$f":"((Quarterly!BT135/Quarterly!BT134)^4)-1","v":4.1484397051854138E-2},{"$f":"Quarterly!BU135-Quarterly!BU134","v":-0.10243999999999964},{"$f":"Quarterly!BV135-Quarterly!BV134","v":-0.11518000000000228},{"$f":"((Quarterly!BW135/Quarterly!BW134)^4)-1","v":0.10087353669643062},{"$f":"((Quarterly!BX135/Quarterly!BX134)^4)-1","v":0.29155618538092587},{"$f":"((Quarterly!BY135/Quarterly!BY134)^4)-1","v":0.19927881554554072},"--",{"$f":"((Quarterly!CA135/Quarterly!CA134)^4)-1","v":0.56144967132944013},{"$f":"((Quarterly!CB135/Quarterly!CB134)^4)-1","v":0.23377349020988314},{"$f":"((Quarterly!CC135/Quarterly!CC134)^4)-1","v":0.15106339807872682},"--","--",null,"--","--",null,{"$f":"((Quarterly!CJ135/Quarterly!CJ134)^4)-1","v":-0.31068911299448698},{"$f":"((Quarterly!CK135/Quarterly!CK134)^4)-1","v":8.4903437016663696E-2},{"$f":"((Quarterly!CL135/Quarterly!CL134)^4)-1","v":0.12190690165467899},{"$f":"((Quarterly!CM135/Quarterly!CM134)^4)-1","v":0.32579076729050538},{"$f":"((Quarterly!CN135/Quarterly!CN134)^4)-1","v":3.4015538953623414E-2},{"$f":"((Quarterly!CO135/Quarterly!CO134)^4)-1","v":8.3552889652662055E-2},{"$f":"((Quarterly!CP135/Quarterly!CP134)^4)-1","v":4.2476753517419752E-2},{"$f":"((Quarterly!CQ135/Quarterly!CQ134)^4)-1","v":9.0041401974108037E-3},{"$f":"((Quarterly!CR135/Quarterly!CR134)^4)-1","v":0.16272779223069533},{"$f":"Quarterly!CS135-Quarterly!CS134","v":-0.5},"--",null,null,null,null,null,{"$f":"((Quarterly!CZ135/Quarterly!CZ134)^4)-1","v":7.065435075781612E-2},{"$f":"((Quarterly!DA135/Quarterly!DA134)^4)-1","v":5.1829725157057638E-2},null,null,null,null,null,{"$f":"((Quarterly!DG135/Quarterly!DG134)^4)-1","v":2.7193011050683946E-2},{"$f":"((Quarterly!DH135-Quarterly!DH134)*60)","v":4.2632564145606011E-13},{"$f":"Quarterly!DI135-Quarterly!DI134","v":0.20000000000000284},"--",{"$f":"(Quarterly!DK135-Quarterly!DK134)*100","v":-6.6666666666667318},{"$f":"((Quarterly!DL135/Quarterly!DL134)^4)-1","v":-7.7297196222434472E-3},null,null,null,{"$f":"((Quarterly!DP135/Quarterly!DP134)^4)-1","v":2.7111563083284551E-2},null,null,null,"--",{"$f":"Quarterly!DU135-Quarterly!DU134","v":0.29999999999999982},"--","--","--","--","--","--","--","--",null,null,null,null,null,{"$f":"((Quarterly!EI135/Quarterly!EI134)^4)-1","v":6.1918131763928352E-2},{"$f":"((Quarterly!EJ135/Quarterly!EJ134)^4)-1","v":4.3349925638292985E-2},{"$f":"((Quarterly!EK135/Quarterly!EK134)^4)-1","v":3.7700817439425993E-2},null,null,null,null,null,{"$f":"((Quarterly!EQ135/Quarterly!EQ134)^4)-1","v":6.0406237087083925E-2},{"$f":"((Quarterly!ER135/Quarterly!ER134)^4)-1","v":3.378910552154446E-2},{"$f":"((Quarterly!ES135/Quarterly!ES134)^4)-1","v":3.5931307194869477E-2},null,null,null,null,null,{"$f":"(Quarterly!EY135-Quarterly!EY134)*100","v":-46.333333333333293},{"$f":"(Quarterly!EZ135-Quarterly!EZ134)*100","v":-36.333333333333329},{"$f":"(Quarterly!FA135-Quarterly!FA134)*100","v":30.333333333333279},{"$f":"(Quarterly!FB135-Quarterly!FB134)*100","v":28.333333333333144},-2.000000000000135,{"$f":"(Quarterly!FD135-Quarterly!FD134)*100","v":30.333333333333279},{"$f":"(Quarterly!FE135-Quarterly!FE134)*100","v":10.666666666666735},{"$f":"(Quarterly!FF135-Quarterly!FF134)*100","v":29.999999999999982},{"$f":"(Quarterly!FG135-Quarterly!FG134)*100","v":51.000000000000071},{"$f":"(Quarterly!FH135-Quarterly!FH134)*100","v":53.666666666666707},{"$f":"(Quarterly!FI135-Quarterly!FI134)*100","v":51.66666666666675},21.666666666666767,null,null,null,null,null,{"$f":"((Quarterly!FP135/Quarterly!FP134)^4)-1","v":4.9496852989954654E-2},{"$f":"((Quarterly!FQ135/Quarterly!FQ134)^4)-1","v":1.2118649810064244},"--","--",{"$f":"((Quarterly!FT135/Quarterly!FT134)^4)-1","v":0.12584888234794289},{"$f":"((Quarterly!FU135/Quarterly!FU134)^4)-1","v":-5.3048146234465521E-2},{"$f":"((Quarterly!FV135/Quarterly!FV134)^4)-1","v":-7.3685101565949318E-2},{"$f":"((Quarterly!FW135/Quarterly!FW134)^4)-1","v":-0.31994052948704244},{"$f":"((Quarterly!FX135/Quarterly!FX134)^4)-1","v":0.33014052016535955},null,null,null,null,null,{"$f":"((Quarterly!GD135/Quarterly!GD134)^4)-1","v":0.30262692999571694},{"$f":"((Quarterly!GE135/Quarterly!GE134)^4)-1","v":0.14430131750467745},"--","--",{"$f":"((Quarterly!GH135/Quarterly!GH134)^4)-1","v":{"$error":"#DIV/0!"}},"--","--","--","--"]
["90'Q2",{"$f":"((Quarterly!B136/Quarterly!B135)^4)-1","v":5.8148945654806994E-2},{"$f":"((Quarterly!C136/Quarterly!C135)^4)-1","v":1.5557705884323703E-2},{"$f":"((Quarterly!D136/Quarterly!D135)^4)-1","v":1.8708752831089193E-3},{"$f":"((Quarterly!E136/Quarterly!E135)^4)-1","v":1.2570310522843631E-2},{"$f":"((Quarterly!F136/Quarterly!F135)^4)-1","v":-0.12587469657786732},{"$f":"((Quarterly!G136/Quarterly!G135)^4)-1","v":4.4456038823337263E-3},{"$f":"((Quarterly!H136/Quarterly!H135)^4)-1","v":3.124457830511207E-2},{"$f":"((Quarterly!I136/Quarterly!I135)^4)-1","v":-5.0887519635102407E-2},{"$f":"((Quarterly!J136/Quarterly!J135)^4)-1","v":-0.11553692549636085},{"$f":"((Quarterly!K136/Quarterly!K135)^4)-1","v":-0.14476698640842411},{"$f":"((Quarterly!L136-Quarterly!L135))","v":24.683},{"$f":"((Quarterly!M136/Quarterly!M135)^4)-1","v":-6.684870215604044E-3},{"$f":"((Quarterly!N136/Quarterly!N135)^4)-1","v":5.069158092165682E-2},{"$f":"((Quarterly!O136/Quarterly!O135)^4)-1","v":-0.33649983885104162},{"$f":"((Quarterly!P136/Quarterly!P135)^4)-1","v":9.740258485404496E-3},{"$f":"((Quarterly!Q136/Quarterly!Q135)^4)-1","v":0.13808435331128854},null,null,null,null,null,{"$f":"((Quarterly!W136/Quarterly!W135)^4)-1","v":4.8810159524284025E-3},{"$f":"((Quarterly!X136/Quarterly!X135)^4)-1","v":4.8357759942219136E-3},{"$f":"((Quarterly!Y136/Quarterly!Y135)^4)-1","v":2.4550886107796988E-2},{"$f":"Quarterly!Z136-Quarterly!Z135","v":0.15999999999999992},{"$f":"((Quarterly!AA136/Quarterly!AA135)^4)-1","v":0.22535268730358649},{"$f":"((Quarterly!AB136/Quarterly!AB135)^4)-1","v":0.22647625832657758},{"$f":"Quarterly!AC136-Quarterly!AC135","v":{"$error":"#VALUE!"}},"--",{"$f":"(Quarterly!AE136-Quarterly!AE135)*100","v":5.0000000000000266},{"$f":"(Quarterly!AF136-Quarterly!AF135)*100","v":15.999999999999993},{"$f":"(Quarterly!AG136-Quarterly!AG135)*100","v":15.999999999999993},"--","--","--","--","--",{"$f":"((Quarterly!AM136/Quarterly!AM135)^4)-1","v":3.1145818366847822E-2},{"$f":"((Quarterly!AN136/Quarterly!AN135)^4)-1","v":3.3575997722859574E-2},"--","--",{"$f":"Quarterly!AQ136-Quarterly!AQ135","v":0.83333333333332149},"--","--",{"$f":"Quarterly!AT136-Quarterly!AT135","v":-6.6666666666662877E-2},{"$f":"Quarterly!AU136-Quarterly!AU135","v":0.8333333333333357},{"$f":"Quarterly!AV136-Quarterly!AV135","v":-2.9000000000000057},{"$f":"Quarterly!AW136-Quarterly!AW135","v":-0.46666666666666146},{"$f":"Quarterly!AX136-Quarterly!AX135","v":1.1666666666666785},{"$f":"Quarterly!AY136-Quarterly!AY135","v":2.8999999999999986},{"$f":"Quarterly!AZ136-Quarterly!AZ135","v":1.2666666666666728},{"$f":"Quarterly!BA136-Quarterly!BA135","v":1.7999999999999972},"--","--",{"$f":"((Quarterly!BD136/Quarterly!BD135)^4)-1","v":2.4653397767144369E-2},{"$f":"((Quarterly!BE136/Quarterly!BE135)^4)-1","v":4.775880009937894E-2},{"$f":"((Quarterly!BF136/Quarterly!BF135)^4)-1","v":7.896696876478404E-2},{"$f":"((Quarterly!BG136/Quarterly!BG135)^4)-1","v":3.0883335629687148E-2},{"$f":"((Quarterly!BH136/Quarterly!BH135)^4)-1","v":4.0560812014693415E-2},{"$f":"((Quarterly!BI136/Quarterly!BI135)^4)-1","v":4.6618375265828238E-2},{"$f":"((Quarterly!BJ136/Quarterly!BJ135)^4)-1","v":0.18502696098640325},{"$f":"((Quarterly!BK136/Quarterly!BK135)^4)-1","v":0.75475246692818798},null,"--","--",null,null,null,null,null,{"$f":"((Quarterly!BT136/Quarterly!BT135)^4)-1","v":-8.2047904448240283E-3},{"$f":"Quarterly!BU136-Quarterly!BU135","v":-3.6239999999999384E-2},{"$f":"Quarterly!BV136-Quarterly!BV135","v":-7.2899999999975762E-3},{"$f":"((Quarterly!BW136/Quarterly!BW135)^4)-1","v":8.9545694664676434E-2},{"$f":"((Quarterly!BX136/Quarterly!BX135)^4)-1","v":-0.4771029361650001},{"$f":"((Quarterly!BY136/Quarterly!BY135)^4)-1","v":-0.65589119860184786},"--",{"$f":"((Quarterly!CA136/Quarterly!CA135)^4)-1","v":-0.21949561514771809},{"$f":"((Quarterly!CB136/Quarterly!CB135)^4)-1","v":-0.21418319092173088},{"$f":"((Quarterly!CC136/Quarterly!CC135)^4)-1","v":-0.15632808229150252},"--","--",null,"--","--",null,{"$f":"((Quarterly!CJ136/Quarterly!CJ135)^4)-1","v":-0.31988997328776214},{"$f":"((Quarterly!CK136/Quarterly!CK135)^4)-1","v":6.4380608166384468E-2},{"$f":"((Quarterly!CL136/Quarterly!CL135)^4)-1","v":0.22821176177870028},{"$f":"((Quarterly!CM136/Quarterly!CM135)^4)-1","v":-0.47570614421443824},{"$f":"((Quarterly!CN136/Quarterly!CN135)^4)-1","v":2.417956731729376E-2},{"$f":"((Quarterly!CO136/Quarterly!CO135)^4)-1","v":3.7058039919309449E-2},{"$f":"((Quarterly!CP136/Quarterly!CP135)^4)-1","v":1.0317581893563688E-2},{"$f":"((Quarterly!CQ136/Quarterly!CQ135)^4)-1","v":1.1959526178981994E-2},{"$f":"((Quarterly!CR136/Quarterly!CR135)^4)-1","v":0.13591597493738128},{"$f":"Quarterly!CS136-Quarterly!CS135","v":-0.3333333333333286},"--",null,null,null,null,null,{"$f":"((Quarterly!CZ136/Quarterly!CZ135)^4)-1","v":4.0164169908099678E-2},{"$f":"((Quarterly!DA136/Quarterly!DA135)^4)-1","v":5.3253547575928817E-2},null,null,null,null,null,{"$f":"((Quarterly!DG136/Quarterly!DG135)^4)-1","v":-1.0965238116580567E-2},{"$f":"((Quarterly!DH136-Quarterly!DH135)*60)","v":-6.0000000000000853},{"$f":"Quarterly!DI136-Quarterly!DI135","v":-0.20000000000000284},"--",{"$f":"(Quarterly!DK136-Quarterly!DK135)*100","v":3.3333333333333215},{"$f":"((Quarterly!DL136/Quarterly!DL135)^4)-1","v":-1.0415028073160415E-2},null,null,null,{"$f":"((Quarterly!DP136/Quarterly!DP135)^4)-1","v":1.3729783296820397E-2},null,null,null,"--",{"$f":"Quarterly!DU136-Quarterly!DU135","v":-9.9999999999999645E-2},{"$f":"((Quarterly!DV136/Quarterly!DV135)^4)-1","v":3.9074594927146489E-3},{"$f":"((Quarterly!DW136/Quarterly!DW135)^4)-1","v":5.3454144931903702E-2},{"$f":"((Quarterly!DX136/Quarterly!DX135)^4)-1","v":4.5586947806941058E-2},{"$f":"((Quarterly!DY136/Quarterly!DY135)^4)-1","v":9.6490850837642306E-2},{"$f":"((Quarterly!DZ136/Quarterly!DZ135)^4)-1","v":2.9764171967303854E-2},{"$f":"((Quarterly!EA136/Quarterly!EA135)^4)-1","v":3.029260959543234E-2},{"$f":"((Quarterly!EB136/Quarterly!EB135)^4)-1","v":2.8462499089148441E-2},{"$f":"((Quarterly!EC136/Quarterly!EC135)^4)-1","v":7.4031165525400677E-2},null,null,null,null,null,{"$f":"((Quarterly!EI136/Quarterly!EI135)^4)-1","v":-2.7743882444290824E-2},{"$f":"((Quarterly!EJ136/Quarterly!EJ135)^4)-1","v":-8.1335883056044E-4},{"$f":"((Quarterly!EK136/Quarterly!EK135)^4)-1","v":1.6670321192843174E-2},null,null,null,null,null,{"$f":"((Quarterly!EQ136/Quarterly!EQ135)^4)-1","v":-5.8097159353635019E-3},{"$f":"((Quarterly!ER136/Quarterly!ER135)^4)-1","v":3.460076522761435E-2},{"$f":"((Quarterly!ES136/Quarterly!ES135)^4)-1","v":2.7741453615189204E-2},null,null,null,null,null,{"$f":"(Quarterly!EY136-Quarterly!EY135)*100","v":-3.6666666666667069},{"$f":"(Quarterly!EZ136-Quarterly!EZ135)*100","v":-0.66666666666677088},{"$f":"(Quarterly!FA136-Quarterly!FA135)*100","v":20.333333333333314},{"$f":"(Quarterly!FB136-Quarterly!FB135)*100","v":21.333333333333471},1.0000000000001563,{"$f":"(Quarterly!FD136-Quarterly!FD135)*100","v":21.333333333333471},{"$f":"(Quarterly!FE136-Quarterly!FE135)*100","v":-1.3333333333333641},{"$f":"(Quarterly!FF136-Quarterly!FF135)*100","v":14.66666666666665},{"$f":"(Quarterly!FG136-Quarterly!FG135)*100","v":20.666666666666522},{"$f":"(Quarterly!FH136-Quarterly!FH135)*100","v":26.666666666666572},{"$f":"(Quarterly!FI136-Quarterly!FI135)*100","v":25.333333333333208},10.666666666666558,null,null,null,null,null,{"$f":"((Quarterly!FP136/Quarterly!FP135)^4)-1","v":-4.0732215248194259E-2},{"$f":"((Quarterly!FQ136/Quarterly!FQ135)^4)-1","v":0},"--","--",{"$f":"((Quarterly!FT136/Quarterly!FT135)^4)-1","v":0.10408222300740411},{"$f":"((Quarterly!FU136/Quarterly!FU135)^4)-1","v":1.675948027869989E-2},{"$f":"((Quarterly!FV136/Quarterly!FV135)^4)-1","v":0.42330559222139175},{"$f":"((Quarterly!FW136/Quarterly!FW135)^4)-1","v":0.57875014628446086},{"$f":"((Quarterly!FX136/Quarterly!FX135)^4)-1","v":-0.11564691866291921},null,null,null,null,null,{"$f":"((Quarterly!GD136/Quarterly!GD135)^4)-1","v":-0.53925280280968191},{"$f":"((Quarterly!GE136/Quarterly!GE135)^4)-1","v":-0.5729019092092501},{"$f":"((Quarterly!GF136/Quarterly!GF135)^4)-1","v":-0.32168770698876348},{"$f":"((Quarterly!GG136/Quarterly!GG135)^4)-1","v":-0.32168770698876348},{"$f":"((Quarterly!GH136/Quarterly!GH135)^4)-1","v":{"$error":"#DIV/0!"}},"--","--","--","--"]
["90'Q3",{"$f":"((Quarterly!B137/Quarterly!B136)^4)-1","v":3.7222938950042916E-2},{"$f":"((Quarterly!C137/Quarterly!C136)^4)-1","v":9.8814926084123123E-4},{"$f":"((Quarterly!D137/Quarterly!D136)^4)-1","v":8.7441688309175536E-3},{"$f":"((Quarterly!E137/Quarterly!E136)^4)-1","v":1.6234614293225258E-2},{"$f":"((Quarterly!F137/Quarterly!F136)^4)-1","v":-3.9915802081701091E-2},{"$f":"((Quarterly!G137/Quarterly!G136)^4)-1","v":6.4809102043921207E-3},{"$f":"((Quarterly!H137/Quarterly!H136)^4)-1","v":2.5697539518631407E-2},{"$f":"((Quarterly!I137/Quarterly!I136)^4)-1","v":2.7771909771754588E-2},{"$f":"((Quarterly!J137/Quarterly!J136)^4)-1","v":2.2723386419059466E-2},{"$f":"((Quarterly!K137/Quarterly!K136)^4)-1","v":-0.20897039961795871},{"$f":"((Quarterly!L137-Quarterly!L136))","v":-14.186999999999998},{"$f":"((Quarterly!M137/Quarterly!M136)^4)-1","v":-1.6049830430211243E-2},{"$f":"((Quarterly!N137/Quarterly!N136)^4)-1","v":3.0624495252035366E-2},{"$f":"((Quarterly!O137/Quarterly!O136)^4)-1","v":-0.32147801172199253},{"$f":"((Quarterly!P137/Quarterly!P136)^4)-1","v":-2.3282699163168497E-3},{"$f":"((Quarterly!Q137/Quarterly!Q136)^4)-1","v":-9.4683844871498946E-2},null,null,null,null,null,{"$f":"((Quarterly!W137/Quarterly!W136)^4)-1","v":-1.4518815403328555E-2},{"$f":"((Quarterly!X137/Quarterly!X136)^4)-1","v":-4.8125038038556722E-3},{"$f":"((Quarterly!Y137/Quarterly!Y136)^4)-1","v":-4.9444896721497766E-3},{"$f":"Quarterly!Z137-Quarterly!Z136","v":0},{"$f":"((Quarterly!AA137/Quarterly!AA136)^4)-1","v":6.9310898880609484E-2},{"$f":"((Quarterly!AB137/Quarterly!AB136)^4)-1","v":-0.36785171972876418},{"$f":"Quarterly!AC137-Quarterly!AC136","v":7},"--",{"$f":"(Quarterly!AE137-Quarterly!AE136)*100","v":21.999999999999975},{"$f":"(Quarterly!AF137-Quarterly!AF136)*100","v":0},{"$f":"(Quarterly!AG137-Quarterly!AG136)*100","v":-10.999999999999988},"--","--","--","--","--",{"$f":"((Quarterly!AM137/Quarterly!AM136)^4)-1","v":1.6705634437165884E-2},{"$f":"((Quarterly!AN137/Quarterly!AN136)^4)-1","v":1.2245947277437219E-2},"--","--",{"$f":"Quarterly!AQ137-Quarterly!AQ136","v":-3.8333333333333357},"--","--",{"$f":"Quarterly!AT137-Quarterly!AT136","v":-2.5000000000000071},{"$f":"Quarterly!AU137-Quarterly!AU136","v":-0.43333333333333712},{"$f":"Quarterly!AV137-Quarterly!AV136","v":-0.56666666666666288},{"$f":"Quarterly!AW137-Quarterly!AW136","v":-0.1666666666666714},{"$f":"Quarterly!AX137-Quarterly!AX136","v":-6.7666666666666728},{"$f":"Quarterly!AY137-Quarterly!AY136","v":6.8333333333333286},{"$f":"Quarterly!AZ137-Quarterly!AZ136","v":-5.1666666666666714},{"$f":"Quarterly!BA137-Quarterly!BA136","v":6.6666666666669983E-2},"--","--",{"$f":"((Quarterly!BD137/Quarterly!BD136)^4)-1","v":4.7479160210596172E-2},{"$f":"((Quarterly!BE137/Quarterly!BE136)^4)-1","v":-3.2460186932520285E-3},{"$f":"((Quarterly!BF137/Quarterly!BF136)^4)-1","v":5.2145998063929166E-2},{"$f":"((Quarterly!BG137/Quarterly!BG136)^4)-1","v":1.2026024926655499E-2},{"$f":"((Quarterly!BH137/Quarterly!BH136)^4)-1","v":-1.3881681515421573E-2},{"$f":"((Quarterly!BI137/Quarterly!BI136)^4)-1","v":3.9678802887307629E-2},{"$f":"((Quarterly!BJ137/Quarterly!BJ136)^4)-1","v":0.2637155805108522},{"$f":"((Quarterly!BK137/Quarterly!BK136)^4)-1","v":0},null,"--","--",null,null,null,null,null,{"$f":"((Quarterly!BT137/Quarterly!BT136)^4)-1","v":-2.2185215962190585E-2},{"$f":"Quarterly!BU137-Quarterly!BU136","v":-2.4280000000000967E-2},{"$f":"Quarterly!BV137-Quarterly!BV136","v":2.7399999999992986E-3},{"$f":"((Quarterly!BW137/Quarterly!BW136)^4)-1","v":0.13027983257186326},{"$f":"((Quarterly!BX137/Quarterly!BX136)^4)-1","v":-0.23985311164311274},{"$f":"((Quarterly!BY137/Quarterly!BY136)^4)-1","v":-0.20849946288443599},"--",{"$f":"((Quarterly!CA137/Quarterly!CA136)^4)-1","v":-2.1260875972006987E-2},{"$f":"((Quarterly!CB137/Quarterly!CB136)^4)-1","v":0.66443449867324977},{"$f":"((Quarterly!CC137/Quarterly!CC136)^4)-1","v":0.55946112896293876},"--","--",null,"--","--",null,{"$f":"((Quarterly!CJ137/Quarterly!CJ136)^4)-1","v":-0.12896627301640307},{"$f":"((Quarterly!CK137/Quarterly!CK136)^4)-1","v":5.1473738809460379E-2},{"$f":"((Quarterly!CL137/Quarterly!CL136)^4)-1","v":-0.1207415430484009},{"$f":"((Quarterly!CM137/Quarterly!CM136)^4)-1","v":-0.18167650404511504},{"$f":"((Quarterly!CN137/Quarterly!CN136)^4)-1","v":1.5390451952506101E-3},{"$f":"((Quarterly!CO137/Quarterly!CO136)^4)-1","v":3.3270733547298148E-2},{"$f":"((Quarterly!CP137/Quarterly!CP136)^4)-1","v":4.1767536572270503E-2},{"$f":"((Quarterly!CQ137/Quarterly!CQ136)^4)-1","v":1.3973690618737544E-2},{"$f":"((Quarterly!CR137/Quarterly!CR136)^4)-1","v":0.17840815482414829},{"$f":"Quarterly!CS137-Quarterly!CS136","v":-11.799999999999997},"--",null,null,null,null,null,{"$f":"((Quarterly!CZ137/Quarterly!CZ136)^4)-1","v":7.0900706950244752E-2},{"$f":"((Quarterly!DA137/Quarterly!DA136)^4)-1","v":6.081943603156148E-2},null,null,null,null,null,{"$f":"((Quarterly!DG137/Quarterly!DG136)^4)-1","v":-2.4998763915960009E-2},{"$f":"((Quarterly!DH137-Quarterly!DH136)*60)","v":-7.9999999999999716},{"$f":"Quarterly!DI137-Quarterly!DI136","v":-6.6666666666662877E-2},"--",{"$f":"(Quarterly!DK137-Quarterly!DK136)*100","v":36.666666666666714},{"$f":"((Quarterly!DL137/Quarterly!DL136)^4)-1","v":-3.371105077250669E-2},null,null,null,{"$f":"((Quarterly!DP137/Quarterly!DP136)^4)-1","v":-5.078539081694089E-3},null,null,null,"--",{"$f":"Quarterly!DU137-Quarterly!DU136","v":0.39999999999999947},{"$f":"((Quarterly!DV137/Quarterly!DV136)^4)-1","v":-4.4820488637796085E-2},{"$f":"((Quarterly!DW137/Quarterly!DW136)^4)-1","v":4.6358817455591783E-3},{"$f":"((Quarterly!DX137/Quarterly!DX136)^4)-1","v":-9.033180363286708E-3},{"$f":"((Quarterly!DY137/Quarterly!DY136)^4)-1","v":8.3434660568921348E-2},{"$f":"((Quarterly!DZ137/Quarterly!DZ136)^4)-1","v":-3.762106516456909E-2},{"$f":"((Quarterly!EA137/Quarterly!EA136)^4)-1","v":-3.7767192057858723E-2},{"$f":"((Quarterly!EB137/Quarterly!EB136)^4)-1","v":-3.7260647107808076E-2},{"$f":"((Quarterly!EC137/Quarterly!EC136)^4)-1","v":4.0442437816847532E-2},null,null,null,null,null,{"$f":"((Quarterly!EI137/Quarterly!EI136)^4)-1","v":-4.0991759009457174E-2},{"$f":"((Quarterly!EJ137/Quarterly!EJ136)^4)-1","v":-1.353330661946639E-2},{"$f":"((Quarterly!EK137/Quarterly!EK136)^4)-1","v":1.9266834010240874E-3},null,null,null,null,null,{"$f":"((Quarterly!EQ137/Quarterly!EQ136)^4)-1","v":7.6750599948019582E-2},{"$f":"((Quarterly!ER137/Quarterly!ER136)^4)-1","v":3.7564698567534194E-2},{"$f":"((Quarterly!ES137/Quarterly!ES136)^4)-1","v":3.6485560982119081E-2},null,null,null,null,null,{"$f":"(Quarterly!EY137-Quarterly!EY136)*100","v":0},{"$f":"(Quarterly!EZ137-Quarterly!EZ136)*100","v":-8.3333333333332149},{"$f":"(Quarterly!FA137-Quarterly!FA136)*100","v":0.66666666666677088},{"$f":"(Quarterly!FB137-Quarterly!FB136)*100","v":10.666666666666558},9.9999999999997868,{"$f":"(Quarterly!FD137-Quarterly!FD136)*100","v":-23.000000000000043},{"$f":"(Quarterly!FE137-Quarterly!FE136)*100","v":-27.000000000000046},{"$f":"(Quarterly!FF137-Quarterly!FF136)*100","v":-44.666666666666629},{"$f":"(Quarterly!FG137-Quarterly!FG136)*100","v":-47.000000000000064},{"$f":"(Quarterly!FH137-Quarterly!FH136)*100","v":-21.999999999999886},{"$f":"(Quarterly!FI137-Quarterly!FI136)*100","v":2.6666666666667282},47.333333333333357,null,null,null,null,null,{"$f":"((Quarterly!FP137/Quarterly!FP136)^4)-1","v":-5.759950857898255E-2},{"$f":"((Quarterly!FQ137/Quarterly!FQ136)^4)-1","v":8.4499603861143413E-5},"--","--",{"$f":"((Quarterly!FT137/Quarterly!FT136)^4)-1","v":-0.10436370856176447},{"$f":"((Quarterly!FU137/Quarterly!FU136)^4)-1","v":-0.19339051280838304},{"$f":"((Quarterly!FV137/Quarterly!FV136)^4)-1","v":-0.30008206644940583},{"$f":"((Quarterly!FW137/Quarterly!FW136)^4)-1","v":1.7565469468409218},{"$f":"((Quarterly!FX137/Quarterly!FX136)^4)-1","v":0.20345860523514481},null,null,null,null,null,{"$f":"((Quarterly!GD137/Quarterly!GD136)^4)-1","v":3.806988103697047},{"$f":"((Quarterly!GE137/Quarterly!GE136)^4)-1","v":6.3899721480884022},{"$f":"((Quarterly!GF137/Quarterly!GF136)^4)-1","v":0.89649891918959401},{"$f":"((Quarterly!GG137/Quarterly!GG136)^4)-1","v":0.89649891918959401},{"$f":"((Quarterly!GH137/Quarterly!GH136)^4)-1","v":{"$error":"#DIV/0!"}},"--","--","--","--"]
["90'Q4",{"$f":"((Quarterly!B138/Quarterly!B137)^4)-1","v":-4.0882498262418965E-3},{"$f":"((Quarterly!C138/Quarterly!C137)^4)-1","v":-3.3663758611704453E-2},{"$f":"((Quarterly!D138/Quarterly!D137)^4)-1","v":-1.3795938347512693E-2},{"$f":"((Quarterly!E138/Quarterly!E137)^4)-1","v":-2.9907403512229425E-2},{"$f":"((Quarterly!F138/Quarterly!F137)^4)-1","v":-0.10568956986589884},{"$f":"((Quarterly!G138/Quarterly!G137)^4)-1","v":-3.9542366595110789E-2},{"$f":"((Quarterly!H138/Quarterly!H137)^4)-1","v":-1.8499044190682712E-2},{"$f":"((Quarterly!I138/Quarterly!I137)^4)-1","v":-6.0422687857577095E-2},{"$f":"((Quarterly!J138/Quarterly!J137)^4)-1","v":-0.13223598224507616},{"$f":"((Quarterly!K138/Quarterly!K137)^4)-1","v":-0.20442982284976652},{"$f":"((Quarterly!L138-Quarterly!L137))","v":-39.54},{"$f":"((Quarterly!M138/Quarterly!M137)^4)-1","v":-0.10303507427223502},{"$f":"((Quarterly!N138/Quarterly!N137)^4)-1","v":3.5686359707372661E-2},{"$f":"((Quarterly!O138/Quarterly!O137)^4)-1","v":-0.79597965390743397},{"$f":"((Quarterly!P138/Quarterly!P137)^4)-1","v":3.7222359020506079E-2},{"$f":"((Quarterly!Q138/Quarterly!Q137)^4)-1","v":0.29650178605234245},null,null,null,null,null,{"$f":"((Quarterly!W138/Quarterly!W137)^4)-1","v":-8.9616577441474554E-2},{"$f":"((Quarterly!X138/Quarterly!X137)^4)-1","v":-7.8055795481653312E-2},{"$f":"((Quarterly!Y138/Quarterly!Y137)^4)-1","v":-3.3936901996174385E-3},{"$f":"Quarterly!Z138-Quarterly!Z137","v":0.15000000000000013},{"$f":"((Quarterly!AA138/Quarterly!AA137)^4)-1","v":3.1529751722615185E-2},{"$f":"((Quarterly!AB138/Quarterly!AB137)^4)-1","v":0.15895017658415567},{"$f":"Quarterly!AC138-Quarterly!AC137","v":36.199999999999996},"--",{"$f":"(Quarterly!AE138-Quarterly!AE137)*100","v":29.000000000000004},{"$f":"(Quarterly!AF138-Quarterly!AF137)*100","v":15.000000000000014},{"$f":"(Quarterly!AG138-Quarterly!AG137)*100","v":8.9999999999999858},"--","--","--","--","--",{"$f":"((Quarterly!AM138/Quarterly!AM137)^4)-1","v":-6.0683540844681971E-2},{"$f":"((Quarterly!AN138/Quarterly!AN137)^4)-1","v":-6.6600881284408553E-2},"--","--",{"$f":"Quarterly!AQ138-Quarterly!AQ137","v":-3.9666666666666615},"--","--",{"$f":"Quarterly!AT138-Quarterly!AT137","v":-5.1666666666666643},{"$f":"Quarterly!AU138-Quarterly!AU137","v":-1},{"$f":"Quarterly!AV138-Quarterly!AV137","v":-1.13333333333334},{"$f":"Quarterly!AW138-Quarterly!AW137","v":-0.56666666666666998},{"$f":"Quarterly!AX138-Quarterly!AX137","v":-5.0333333333333314},{"$f":"Quarterly!AY138-Quarterly!AY137","v":7.266666666666687},{"$f":"Quarterly!AZ138-Quarterly!AZ137","v":-5.2333333333333272},{"$f":"Quarterly!BA138-Quarterly!BA137","v":-0.5},"--","--",{"$f":"((Quarterly!BD138/Quarterly!BD137)^4)-1","v":-1.1324361405655625E-2},{"$f":"((Quarterly!BE138/Quarterly!BE137)^4)-1","v":6.0390555790072131E-2},{"$f":"((Quarterly!BF138/Quarterly!BF137)^4)-1","v":3.0441124303828948E-2},{"$f":"((Quarterly!BG138/Quarterly!BG137)^4)-1","v":-3.4432653793921797E-2},{"$f":"((Quarterly!BH138/Quarterly!BH137)^4)-1","v":-3.1247578188201341E-2},{"$f":"((Quarterly!BI138/Quarterly!BI137)^4)-1","v":6.7201268942333137E-2},{"$f":"((Quarterly!BJ138/Quarterly!BJ137)^4)-1","v":-0.21959589548853153},{"$f":"((Quarterly!BK138/Quarterly!BK137)^4)-1","v":0.5901677668044869},null,"--","--",null,null,null,null,null,{"$f":"((Quarterly!BT138/Quarterly!BT137)^4)-1","v":2.2757254737410637E-2},{"$f":"Quarterly!BU138-Quarterly!BU137","v":1.5540000000001442E-2},{"$f":"Quarterly!BV138-Quarterly!BV137","v":6.3659999999998718E-2},{"$f":"((Quarterly!BW138/Quarterly!BW137)^4)-1","v":0.13501192746887658},{"$f":"((Quarterly!BX138/Quarterly!BX137)^4)-1","v":-0.28022584015961971},{"$f":"((Quarterly!BY138/Quarterly!BY137)^4)-1","v":-0.41863000347315726},"--",{"$f":"((Quarterly!CA138/Quarterly!CA137)^4)-1","v":-0.20716212354977537},{"$f":"((Quarterly!CB138/Quarterly!CB137)^4)-1","v":0.47338146689668914},{"$f":"((Quarterly!CC138/Quarterly!CC137)^4)-1","v":0.43772759046072096},"--","--",null,"--","--",null,{"$f":"((Quarterly!CJ138/Quarterly!CJ137)^4)-1","v":-0.32012142623530926},{"$f":"((Quarterly!CK138/Quarterly!CK137)^4)-1","v":1.8085409175038647E-2},{"$f":"((Quarterly!CL138/Quarterly!CL137)^4)-1","v":-5.9668671482059343E-3},{"$f":"((Quarterly!CM138/Quarterly!CM137)^4)-1","v":-0.27942550908964514},{"$f":"((Quarterly!CN138/Quarterly!CN137)^4)-1","v":-3.1372674594023153E-2},{"$f":"((Quarterly!CO138/Quarterly!CO137)^4)-1","v":1.1493925875596389E-2},{"$f":"((Quarterly!CP138/Quarterly!CP137)^4)-1","v":1.4031705957047391E-2},{"$f":"((Quarterly!CQ138/Quarterly!CQ137)^4)-1","v":1.4490006057969795E-2},{"$f":"((Quarterly!CR138/Quarterly!CR137)^4)-1","v":0.10358381311111731},{"$f":"Quarterly!CS138-Quarterly!CS137","v":-14},"--",null,null,null,null,null,{"$f":"((Quarterly!CZ138/Quarterly!CZ137)^4)-1","v":6.9666304346897023E-2},{"$f":"((Quarterly!DA138/Quarterly!DA137)^4)-1","v":4.6706096830409161E-2},null,null,null,null,null,{"$f":"((Quarterly!DG138/Quarterly!DG137)^4)-1","v":-2.2037721955494582E-2},{"$f":"((Quarterly!DH138-Quarterly!DH137)*60)","v":-1.9999999999998863},{"$f":"Quarterly!DI138-Quarterly!DI137","v":-6.6666666666662877E-2},"--",{"$f":"(Quarterly!DK138-Quarterly!DK137)*100","v":43.333333333333357},{"$f":"((Quarterly!DL138/Quarterly!DL137)^4)-1","v":-4.1774685193967875E-2},null,null,null,{"$f":"((Quarterly!DP138/Quarterly!DP137)^4)-1","v":-1.4872191676095214E-2},null,null,null,"--",{"$f":"Quarterly!DU138-Quarterly!DU137","v":0.33333333333333393},{"$f":"((Quarterly!DV138/Quarterly!DV137)^4)-1","v":7.6687684467104944E-3},{"$f":"((Quarterly!DW138/Quarterly!DW137)^4)-1","v":2.5002906360540811E-2},{"$f":"((Quarterly!DX138/Quarterly!DX137)^4)-1","v":2.9220145557169674E-2},{"$f":"((Quarterly!DY138/Quarterly!DY137)^4)-1","v":1.9311854225311453E-2},{"$f":"((Quarterly!DZ138/Quarterly!DZ137)^4)-1","v":3.2535796317332277E-2},{"$f":"((Quarterly!EA138/Quarterly!EA137)^4)-1","v":3.1308793561183101E-2},{"$f":"((Quarterly!EB138/Quarterly!EB137)^4)-1","v":3.5565848233001685E-2},{"$f":"((Quarterly!EC138/Quarterly!EC137)^4)-1","v":1.4345762543171992E-2},null,null,null,null,null,{"$f":"((Quarterly!EI138/Quarterly!EI137)^4)-1","v":-6.8502251556972538E-2},{"$f":"((Quarterly!EJ138/Quarterly!EJ137)^4)-1","v":-3.9840157062276838E-2},{"$f":"((Quarterly!EK138/Quarterly!EK137)^4)-1","v":-2.8753858358085083E-2},null,null,null,null,null,{"$f":"((Quarterly!EQ138/Quarterly!EQ137)^4)-1","v":0.12198520371081778},{"$f":"((Quarterly!ER138/Quarterly!ER137)^4)-1","v":3.8293566877794838E-2},{"$f":"((Quarterly!ES138/Quarterly!ES137)^4)-1","v":3.7266514859374267E-2},null,null,null,null,null,{"$f":"(Quarterly!EY138-Quarterly!EY137)*100","v":0},{"$f":"(Quarterly!EZ138-Quarterly!EZ137)*100","v":-41.666666666666785},{"$f":"(Quarterly!FA138-Quarterly!FA137)*100","v":-11.000000000000121},{"$f":"(Quarterly!FB138-Quarterly!FB137)*100","v":17.999999999999972},29.000000000000092,{"$f":"(Quarterly!FD138-Quarterly!FD137)*100","v":-15.333333333333421},{"$f":"(Quarterly!FE138-Quarterly!FE137)*100","v":-48.666666666666728},{"$f":"(Quarterly!FF138-Quarterly!FF137)*100","v":-52.333333333333343},{"$f":"(Quarterly!FG138-Quarterly!FG137)*100","v":-50.3333333333333},{"$f":"(Quarterly!FH138-Quarterly!FH137)*100","v":-40.000000000000036},{"$f":"(Quarterly!FI138-Quarterly!FI137)*100","v":-30.666666666666664},21.666666666666679,null,null,null,null,null,{"$f":"((Quarterly!FP138/Quarterly!FP137)^4)-1","v":2.7680834654486119E-2},{"$f":"((Quarterly!FQ138/Quarterly!FQ137)^4)-1","v":0.22479243196734044},"--","--",{"$f":"((Quarterly!FT138/Quarterly!FT137)^4)-1","v":-7.464867371929218E-2},{"$f":"((Quarterly!FU138/Quarterly!FU137)^4)-1","v":-0.17372811891324524},{"$f":"((Quarterly!FV138/Quarterly!FV137)^4)-1","v":0.32288750963483248},{"$f":"((Quarterly!FW138/Quarterly!FW137)^4)-1","v":-0.27493325237356181},{"$f":"((Quarterly!FX138/Quarterly!FX137)^4)-1","v":0.35267023985709023},null,null,null,null,null,{"$f":"((Quarterly!GD138/Quarterly!GD137)^4)-1","v":1.0875636310823356},{"$f":"((Quarterly!GE138/Quarterly!GE137)^4)-1","v":1.2790003581041711},{"$f":"((Quarterly!GF138/Quarterly!GF137)^4)-1","v":1.0136940726159764},{"$f":"((Quarterly!GG138/Quarterly!GG137)^4)-1","v":1.0136940726159764},{"$f":"((Quarterly!GH138/Quarterly!GH137)^4)-1","v":{"$error":"#DIV/0!"}},"--","--","--","--"]
["91'Q1",{"$f":"((Quarterly!B139/Quarterly!B138)^4)-1","v":2.1106933196252786E-2},{"$f":"((Quarterly!C139/Quarterly!C138)^4)-1","v":-1.8638826425551147E-2},{"$f":"((Quarterly!D139/Quarterly!D138)^4)-1","v":-1.5287641210586345E-2},{"$f":"((Quarterly!E139/Quarterly!E138)^4)-1","v":-1.3718786254545923E-2},{"$f":"((Quarterly!F139/Quarterly!F138)^4)-1","v":-0.10568672875304463},{"$f":"((Quarterly!G139/Quarterly!G138)^4)-1","v":1.864221958197021E-3},{"$f":"((Quarterly!H139/Quarterly!H138)^4)-1","v":-9.9592032370265926E-3},{"$f":"((Quarterly!I139/Quarterly!I138)^4)-1","v":-7.8042639343220421E-2},{"$f":"((Quarterly!J139/Quarterly!J138)^4)-1","v":-0.17619008926875601},{"$f":"((Quarterly!K139/Quarterly!K138)^4)-1","v":-0.21820292935374863},{"$f":"((Quarterly!L139-Quarterly!L138))","v":-7.331999999999999},{"$f":"((Quarterly!M139/Quarterly!M138)^4)-1","v":-4.4814903208249102E-2},{"$f":"((Quarterly!N139/Quarterly!N138)^4)-1","v":2.4659530466736745E-2},{"$f":"((Quarterly!O139/Quarterly!O138)^4)-1","v":-0.65482040286323584},{"$f":"((Quarterly!P139/Quarterly!P138)^4)-1","v":1.9711518725119337E-2},{"$f":"((Quarterly!Q139/Quarterly!Q138)^4)-1","v":-0.40846642551346257},null,null,null,null,null,{"$f":"((Quarterly!W139/Quarterly!W138)^4)-1","v":-0.10554511558593782},{"$f":"((Quarterly!X139/Quarterly!X138)^4)-1","v":-8.7299169362663687E-2},{"$f":"((Quarterly!Y139/Quarterly!Y138)^4)-1","v":-2.2451832332271215E-2},{"$f":"Quarterly!Z139-Quarterly!Z138","v":-0.25},{"$f":"((Quarterly!AA139/Quarterly!AA138)^4)-1","v":0.26812114845194968},{"$f":"((Quarterly!AB139/Quarterly!AB138)^4)-1","v":0.8742361911012051},{"$f":"Quarterly!AC139-Quarterly!AC138","v":-4.3999999999999986},"--",{"$f":"(Quarterly!AE139-Quarterly!AE138)*100","v":28.000000000000025},{"$f":"(Quarterly!AF139-Quarterly!AF138)*100","v":-25},{"$f":"(Quarterly!AG139-Quarterly!AG138)*100","v":-25},"--","--","--","--","--",{"$f":"((Quarterly!AM139/Quarterly!AM138)^4)-1","v":-7.3288602294950489E-2},{"$f":"((Quarterly!AN139/Quarterly!AN138)^4)-1","v":-8.8322104456126427E-2},"--","--",{"$f":"Quarterly!AQ139-Quarterly!AQ138","v":-2},"--","--",{"$f":"Quarterly!AT139-Quarterly!AT138","v":-2.8999999999999986},{"$f":"Quarterly!AU139-Quarterly!AU138","v":0.53333333333333144},{"$f":"Quarterly!AV139-Quarterly!AV138","v":-0.26666666666666572},{"$f":"Quarterly!AW139-Quarterly!AW138","v":0.46666666666666856},{"$f":"Quarterly!AX139-Quarterly!AX138","v":-0.76666666666665861},{"$f":"Quarterly!AY139-Quarterly!AY138","v":-19.733333333333341},{"$f":"Quarterly!AZ139-Quarterly!AZ138","v":-2.7666666666666657},{"$f":"Quarterly!BA139-Quarterly!BA138","v":-3.6333333333333329},"--","--",{"$f":"((Quarterly!BD139/Quarterly!BD138)^4)-1","v":-1.0108151430143986E-2},{"$f":"((Quarterly!BE139/Quarterly!BE138)^4)-1","v":5.9657902605412705E-2},{"$f":"((Quarterly!BF139/Quarterly!BF138)^4)-1","v":2.8922151337601454E-2},{"$f":"((Quarterly!BG139/Quarterly!BG138)^4)-1","v":1.0468505054578747E-2},{"$f":"((Quarterly!BH139/Quarterly!BH138)^4)-1","v":7.5085600781132911E-3},{"$f":"((Quarterly!BI139/Quarterly!BI138)^4)-1","v":1.8310140297590261E-2},{"$f":"((Quarterly!BJ139/Quarterly!BJ138)^4)-1","v":-0.22934954634708837},{"$f":"((Quarterly!BK139/Quarterly!BK138)^4)-1","v":-0.55332687601730957},null,"--","--",null,null,null,null,null,{"$f":"((Quarterly!BT139/Quarterly!BT138)^4)-1","v":-3.7592959073247112E-2},{"$f":"Quarterly!BU139-Quarterly!BU138","v":-1.8830000000001235E-2},{"$f":"Quarterly!BV139-Quarterly!BV138","v":1.103000000000165E-2},{"$f":"((Quarterly!BW139/Quarterly!BW138)^4)-1","v":6.4563184708388732E-2},{"$f":"((Quarterly!BX139/Quarterly!BX138)^4)-1","v":-0.45792039427416364},{"$f":"((Quarterly!BY139/Quarterly!BY138)^4)-1","v":-0.23542486519252714},"--",{"$f":"((Quarterly!CA139/Quarterly!CA138)^4)-1","v":-0.24704833088123612},{"$f":"((Quarterly!CB139/Quarterly!CB138)^4)-1","v":-0.16576254555236836},{"$f":"((Quarterly!CC139/Quarterly!CC138)^4)-1","v":-5.2359304384125727E-2},"--","--",null,"--","--",null,{"$f":"((Quarterly!CJ139/Quarterly!CJ138)^4)-1","v":-8.7020942671131696E-2},{"$f":"((Quarterly!CK139/Quarterly!CK138)^4)-1","v":8.8234364202641746E-3},{"$f":"((Quarterly!CL139/Quarterly!CL138)^4)-1","v":0.29654236306405002},{"$f":"((Quarterly!CM139/Quarterly!CM138)^4)-1","v":-0.36868318360414087},{"$f":"((Quarterly!CN139/Quarterly!CN138)^4)-1","v":8.5937190958196297E-3},{"$f":"((Quarterly!CO139/Quarterly!CO138)^4)-1","v":5.6786451425321127E-2},{"$f":"((Quarterly!CP139/Quarterly!CP138)^4)-1","v":-2.0486344399087697E-2},{"$f":"((Quarterly!CQ139/Quarterly!CQ138)^4)-1","v":1.2615795135177521E-2},{"$f":"((Quarterly!CR139/Quarterly!CR138)^4)-1","v":7.9191753670303733E-2},{"$f":"Quarterly!CS139-Quarterly!CS138","v":9.8333333333333144},"--",null,null,null,null,null,{"$f":"((Quarterly!CZ139/Quarterly!CZ138)^4)-1","v":3.0239807023374032E-2},{"$f":"((Quarterly!DA139/Quarterly!DA138)^4)-1","v":5.9214248027432026E-2},null,null,null,null,null,{"$f":"((Quarterly!DG139/Quarterly!DG138)^4)-1","v":-3.3100566804835641E-2},{"$f":"((Quarterly!DH139-Quarterly!DH138)*60)","v":-4.000000000000199},{"$f":"Quarterly!DI139-Quarterly!DI138","v":-0.1666666666666714},"--",{"$f":"(Quarterly!DK139-Quarterly!DK138)*100","v":46.666666666666679},{"$f":"((Quarterly!DL139/Quarterly!DL138)^4)-1","v":-5.3766137728566865E-2},null,null,null,{"$f":"((Quarterly!DP139/Quarterly!DP138)^4)-1","v":-1.6760743725831806E-2},null,null,null,"--",{"$f":"Quarterly!DU139-Quarterly!DU138","v":0.5},{"$f":"((Quarterly!DV139/Quarterly!DV138)^4)-1","v":-2.2466363842915338E-2},{"$f":"((Quarterly!DW139/Quarterly!DW138)^4)-1","v":-0.13054239983765881},{"$f":"((Quarterly!DX139/Quarterly!DX138)^4)-1","v":-0.1157902861289386},{"$f":"((Quarterly!DY139/Quarterly!DY138)^4)-1","v":-0.22048545784980234},{"$f":"((Quarterly!DZ139/Quarterly!DZ138)^4)-1","v":-7.8811297389943635E-2},{"$f":"((Quarterly!EA139/Quarterly!EA138)^4)-1","v":-7.6909023460404624E-2},{"$f":"((Quarterly!EB139/Quarterly!EB138)^4)-1","v":-8.3484294208017618E-2},{"$f":"((Quarterly!EC139/Quarterly!EC138)^4)-1","v":-0.16732677067695167},null,null,null,null,null,{"$f":"((Quarterly!EI139/Quarterly!EI138)^4)-1","v":-5.3168779842602709E-2},{"$f":"((Quarterly!EJ139/Quarterly!EJ138)^4)-1","v":-2.4256110667958186E-2},{"$f":"((Quarterly!EK139/Quarterly!EK138)^4)-1","v":-1.1443927884389971E-2},null,null,null,null,null,{"$f":"((Quarterly!EQ139/Quarterly!EQ138)^4)-1","v":-7.7715591719826227E-2},{"$f":"((Quarterly!ER139/Quarterly!ER138)^4)-1","v":4.6503947088711639E-2},{"$f":"((Quarterly!ES139/Quarterly!ES138)^4)-1","v":4.3542951106205319E-2},null,null,null,null,null,{"$f":"(Quarterly!EY139-Quarterly!EY138)*100","v":-81.000000000000057},{"$f":"(Quarterly!EZ139-Quarterly!EZ138)*100","v":-131.66666666666654},{"$f":"(Quarterly!FA139-Quarterly!FA138)*100","v":-36.000000000000121},{"$f":"(Quarterly!FB139-Quarterly!FB138)*100","v":-39.333333333333265},-3.3333333333331439,{"$f":"(Quarterly!FD139-Quarterly!FD138)*100","v":-45.000000000000107},{"$f":"(Quarterly!FE139-Quarterly!FE138)*100","v":-96.666666666666586},{"$f":"(Quarterly!FF139-Quarterly!FF138)*100","v":-86.666666666666629},{"$f":"(Quarterly!FG139-Quarterly!FG138)*100","v":-56.333333333333258},{"$f":"(Quarterly!FH139-Quarterly!FH138)*100","v":-38.000000000000171},{"$f":"(Quarterly!FI139-Quarterly!FI138)*100","v":-38.000000000000078},{"$f":"+FI139-FF139","v":48.666666666666551},null,null,null,null,null,{"$f":"((Quarterly!FP139/Quarterly!FP138)^4)-1","v":-1.7904803598893015E-2},{"$f":"((Quarterly!FQ139/Quarterly!FQ138)^4)-1","v":0.22111791290318217},"--","--",{"$f":"((Quarterly!FT139/Quarterly!FT138)^4)-1","v":0.11224926981706984},{"$f":"((Quarterly!FU139/Quarterly!FU138)^4)-1","v":5.9263810618727319E-2},{"$f":"((Quarterly!FV139/Quarterly!FV138)^4)-1","v":-0.28718808408978513},{"$f":"((Quarterly!FW139/Quarterly!FW138)^4)-1","v":-0.46282391013469149},{"$f":"((Quarterly!FX139/Quarterly!FX138)^4)-1","v":-0.41489763864371176},null,null,null,null,null,{"$f":"((Quarterly!GD139/Quarterly!GD138)^4)-1","v":-0.78138331330807753},{"$f":"((Quarterly!GE139/Quarterly!GE138)^4)-1","v":-0.83352080532126838},{"$f":"((Quarterly!GF139/Quarterly!GF138)^4)-1","v":-0.47915904433392309},{"$f":"((Quarterly!GG139/Quarterly!GG138)^4)-1","v":-0.47915904433392309},{"$f":"((Quarterly!GH139/Quarterly!GH138)^4)-1","v":{"$error":"#DIV/0!"}},"--","--","--","--"]
["91'Q2",{"$f":"((Quarterly!B140/Quarterly!B139)^4)-1","v":5.9928788762772855E-2},{"$f":"((Quarterly!C140/Quarterly!C139)^4)-1","v":3.1405590369396386E-2},{"$f":"((Quarterly!D140/Quarterly!D139)^4)-1","v":3.3185298255564266E-2},{"$f":"((Quarterly!E140/Quarterly!E139)^4)-1","v":3.398999381490464E-2},{"$f":"((Quarterly!F140/Quarterly!F139)^4)-1","v":2.0305053714476884E-2},{"$f":"((Quarterly!G140/Quarterly!G139)^4)-1","v":2.3732265754450976E-2},{"$f":"((Quarterly!H140/Quarterly!H139)^4)-1","v":3.9048446491663835E-2},{"$f":"((Quarterly!I140/Quarterly!I139)^4)-1","v":-1.9897227882914814E-2},{"$f":"((Quarterly!J140/Quarterly!J139)^4)-1","v":-4.592625650975235E-2},{"$f":"((Quarterly!K140/Quarterly!K139)^4)-1","v":9.8020721197916494E-2},{"$f":"((Quarterly!L140-Quarterly!L139))","v":-3.7220000000000013},{"$f":"((Quarterly!M140/Quarterly!M139)^4)-1","v":7.3013931497809548E-2},{"$f":"((Quarterly!N140/Quarterly!N139)^4)-1","v":0.1540114342519836},{"$f":"((Quarterly!O140/Quarterly!O139)^4)-1","v":-0.75073858193004417},{"$f":"((Quarterly!P140/Quarterly!P139)^4)-1","v":1.4213322052811117E-2},{"$f":"((Quarterly!Q140/Quarterly!Q139)^4)-1","v":2.0873088609065076},null,null,null,null,null,{"$f":"((Quarterly!W140/Quarterly!W139)^4)-1","v":5.1513093738488891E-3},{"$f":"((Quarterly!X140/Quarterly!X139)^4)-1","v":1.0117963328496682E-2},{"$f":"((Quarterly!Y140/Quarterly!Y139)^4)-1","v":-4.5094342890253936E-2},{"$f":"Quarterly!Z140-Quarterly!Z139","v":0.33999999999999986},{"$f":"((Quarterly!AA140/Quarterly!AA139)^4)-1","v":0.10093712292616663},{"$f":"((Quarterly!AB140/Quarterly!AB139)^4)-1","v":3.07912496173397E-2},{"$f":"Quarterly!AC140-Quarterly!AC139","v":-5.2999999999999972},"--",{"$f":"(Quarterly!AE140-Quarterly!AE139)*100","v":1.9999999999999574},{"$f":"(Quarterly!AF140-Quarterly!AF139)*100","v":33.999999999999986},{"$f":"(Quarterly!AG140-Quarterly!AG139)*100","v":26},"--","--","--","--","--",{"$f":"((Quarterly!AM140/Quarterly!AM139)^4)-1","v":2.3377047162815412E-2},{"$f":"((Quarterly!AN140/Quarterly!AN139)^4)-1","v":2.1575572487789962E-2},"--","--",{"$f":"Quarterly!AQ140-Quarterly!AQ139","v":6.1000000000000014},"--","--",{"$f":"Quarterly!AT140-Quarterly!AT139","v":3.2333333333333272},{"$f":"Quarterly!AU140-Quarterly!AU139","v":-1.06666666666667},{"$f":"Quarterly!AV140-Quarterly!AV139","v":1},{"$f":"Quarterly!AW140-Quarterly!AW139","v":-3.0333333333333314},{"$f":"Quarterly!AX140-Quarterly!AX139","v":11.233333333333327},{"$f":"Quarterly!AY140-Quarterly!AY139","v":-6.9000000000000057},{"$f":"Quarterly!AZ140-Quarterly!AZ139","v":8.63333333333334},{"$f":"Quarterly!BA140-Quarterly!BA139","v":1.6999999999999957},"--","--",{"$f":"((Quarterly!BD140/Quarterly!BD139)^4)-1","v":4.4814865911199542E-2},{"$f":"((Quarterly!BE140/Quarterly!BE139)^4)-1","v":1.4312024760321007E-2},{"$f":"((Quarterly!BF140/Quarterly!BF139)^4)-1","v":7.5872398306475741E-2},{"$f":"((Quarterly!BG140/Quarterly!BG139)^4)-1","v":6.6280342087074784E-2},{"$f":"((Quarterly!BH140/Quarterly!BH139)^4)-1","v":5.6345853860828354E-2},{"$f":"((Quarterly!BI140/Quarterly!BI139)^4)-1","v":8.9297618343744389E-3},{"$f":"((Quarterly!BJ140/Quarterly!BJ139)^4)-1","v":0.48941301219122813},{"$f":"((Quarterly!BK140/Quarterly!BK139)^4)-1","v":1.8876152880635657},null,"--","--",null,null,null,null,null,{"$f":"((Quarterly!BT140/Quarterly!BT139)^4)-1","v":-1.4692910744981247E-2},{"$f":"Quarterly!BU140-Quarterly!BU139","v":-0.13791999999999938},{"$f":"Quarterly!BV140-Quarterly!BV139","v":-0.13241000000000014},{"$f":"((Quarterly!BW140/Quarterly!BW139)^4)-1","v":0.12016199617846612},{"$f":"((Quarterly!BX140/Quarterly!BX139)^4)-1","v":0.63064564625519259},{"$f":"((Quarterly!BY140/Quarterly!BY139)^4)-1","v":0.60683783154128967},"--",{"$f":"((Quarterly!CA140/Quarterly!CA139)^4)-1","v":2.3621356967746809E-2},{"$f":"((Quarterly!CB140/Quarterly!CB139)^4)-1","v":-5.9339284537712866E-2},{"$f":"((Quarterly!CC140/Quarterly!CC139)^4)-1","v":-4.0393478301277153E-3},"--","--",null,"--","--",null,{"$f":"((Quarterly!CJ140/Quarterly!CJ139)^4)-1","v":0.51060651656768341},{"$f":"((Quarterly!CK140/Quarterly!CK139)^4)-1","v":4.8339542044676165E-2},{"$f":"((Quarterly!CL140/Quarterly!CL139)^4)-1","v":-1.2661603739844929E-2},{"$f":"((Quarterly!CM140/Quarterly!CM139)^4)-1","v":1.0775356572564152},{"$f":"((Quarterly!CN140/Quarterly!CN139)^4)-1","v":2.7916596024887497E-2},{"$f":"((Quarterly!CO140/Quarterly!CO139)^4)-1","v":0.15629535701796371},{"$f":"((Quarterly!CP140/Quarterly!CP139)^4)-1","v":-5.5612247534519987E-4},{"$f":"((Quarterly!CQ140/Quarterly!CQ139)^4)-1","v":1.2576131147162606E-2},{"$f":"((Quarterly!CR140/Quarterly!CR139)^4)-1","v":0.13903492572893361},{"$f":"Quarterly!CS140-Quarterly!CS139","v":5.7666666666666799},"--",null,null,null,null,null,{"$f":"((Quarterly!CZ140/Quarterly!CZ139)^4)-1","v":2.3957011793624083E-2},{"$f":"((Quarterly!DA140/Quarterly!DA139)^4)-1","v":3.6666904852469706E-2},null,null,null,null,null,{"$f":"((Quarterly!DG140/Quarterly!DG139)^4)-1","v":-3.0234529031737845E-2},{"$f":"((Quarterly!DH140-Quarterly!DH139)*60)","v":-4.000000000000199},{"$f":"Quarterly!DI140-Quarterly!DI139","v":3.3333333333331439E-2},"--",{"$f":"(Quarterly!DK140-Quarterly!DK139)*100","v":23.33333333333325},{"$f":"((Quarterly!DL140/Quarterly!DL139)^4)-1","v":-3.61849607014324E-2},null,null,null,{"$f":"((Quarterly!DP140/Quarterly!DP139)^4)-1","v":-1.7170066676745921E-2},null,null,null,"--",{"$f":"Quarterly!DU140-Quarterly!DU139","v":0.33333333333333304},{"$f":"((Quarterly!DV140/Quarterly!DV139)^4)-1","v":-3.6080794721844778E-2},{"$f":"((Quarterly!DW140/Quarterly!DW139)^4)-1","v":1.4719163898382792E-2},{"$f":"((Quarterly!DX140/Quarterly!DX139)^4)-1","v":7.2916585685400825E-3},{"$f":"((Quarterly!DY140/Quarterly!DY139)^4)-1","v":5.6480449385859277E-2},{"$f":"((Quarterly!DZ140/Quarterly!DZ139)^4)-1","v":-8.002182645738154E-3},{"$f":"((Quarterly!EA140/Quarterly!EA139)^4)-1","v":-7.4982095397940762E-3},{"$f":"((Quarterly!EB140/Quarterly!EB139)^4)-1","v":-9.2449302777345421E-3},{"$f":"((Quarterly!EC140/Quarterly!EC139)^4)-1","v":3.4137607571207873E-2},null,null,null,null,null,{"$f":"((Quarterly!EI140/Quarterly!EI139)^4)-1","v":2.575699424357758E-2},{"$f":"((Quarterly!EJ140/Quarterly!EJ139)^4)-1","v":3.0117680293514804E-2},{"$f":"((Quarterly!EK140/Quarterly!EK139)^4)-1","v":3.2873846460577116E-2},null,null,null,null,null,{"$f":"((Quarterly!EQ140/Quarterly!EQ139)^4)-1","v":-3.913963609444282E-2},{"$f":"((Quarterly!ER140/Quarterly!ER139)^4)-1","v":2.3836238957014588E-2},{"$f":"((Quarterly!ES140/Quarterly!ES139)^4)-1","v":1.9214823301537898E-2},null,null,null,null,null,{"$f":"(Quarterly!EY140-Quarterly!EY139)*100","v":-52.333333333333343},{"$f":"(Quarterly!EZ140-Quarterly!EZ139)*100","v":-56.333333333333258},{"$f":"(Quarterly!FA140-Quarterly!FA139)*100","v":-2.3333333333333428},{"$f":"(Quarterly!FB140-Quarterly!FB139)*100","v":-28.333333333333321},{"$f":"+FB140-FA140","v":-25.999999999999979},{"$f":"(Quarterly!FD140-Quarterly!FD139)*100","v":2.3333333333333428},{"$f":"(Quarterly!FE140-Quarterly!FE139)*100","v":-46.333333333333385},{"$f":"(Quarterly!FF140-Quarterly!FF139)*100","v":-19.333333333333425},{"$f":"(Quarterly!FG140-Quarterly!FG139)*100","v":-13.666666666666671},{"$f":"(Quarterly!FH140-Quarterly!FH139)*100","v":13.333333333333464},{"$f":"(Quarterly!FI140-Quarterly!FI139)*100","v":11.333333333333506},30.666666666666931,null,null,null,null,null,{"$f":"((Quarterly!FP140/Quarterly!FP139)^4)-1","v":-2.3775121164196333E-2},{"$f":"((Quarterly!FQ140/Quarterly!FQ139)^4)-1","v":6.8817688220321527E-2},"--","--",{"$f":"((Quarterly!FT140/Quarterly!FT139)^4)-1","v":0.21509879118059483},{"$f":"((Quarterly!FU140/Quarterly!FU139)^4)-1","v":0.26728168473078528},{"$f":"((Quarterly!FV140/Quarterly!FV139)^4)-1","v":0.45978377521807223},{"$f":"((Quarterly!FW140/Quarterly!FW139)^4)-1","v":0.62958275409745412},{"$f":"((Quarterly!FX140/Quarterly!FX139)^4)-1","v":0.5458794076356015},null,null,null,null,null,{"$f":"((Quarterly!GD140/Quarterly!GD139)^4)-1","v":-0.17584107269615357},{"$f":"((Quarterly!GE140/Quarterly!GE139)^4)-1","v":-0.31681080464989575},{"$f":"((Quarterly!GF140/Quarterly!GF139)^4)-1","v":-0.29072630943655486},{"$f":"((Quarterly!GG140/Quarterly!GG139)^4)-1","v":-0.29072630943655486},{"$f":"((Quarterly!GH140/Quarterly!GH139)^4)-1","v":{"$error":"#DIV/0!"}},"--","--",{"$f":"((Quarterly!GK140/Quarterly!GK139)^4)-1","v":{"$error":"#VALUE!"}},"--"]
["91'Q3",{"$f":"((Quarterly!B141/Quarterly!B140)^4)-1","v":4.9606430461475393E-2},{"$f":"((Quarterly!C141/Quarterly!C140)^4)-1","v":1.9339156707272931E-2},{"$f":"((Quarterly!D141/Quarterly!D140)^4)-1","v":7.9928922753238485E-3},{"$f":"((Quarterly!E141/Quarterly!E140)^4)-1","v":1.9564522392796491E-2},{"$f":"((Quarterly!F141/Quarterly!F140)^4)-1","v":6.2907550471524631E-2},{"$f":"((Quarterly!G141/Quarterly!G140)^4)-1","v":6.7428871798964618E-3},{"$f":"((Quarterly!H141/Quarterly!H140)^4)-1","v":2.0157137199885211E-2},{"$f":"((Quarterly!I141/Quarterly!I140)^4)-1","v":-3.3725972801223691E-2},{"$f":"((Quarterly!J141/Quarterly!J140)^4)-1","v":-6.5771733744018679E-2},{"$f":"((Quarterly!K141/Quarterly!K140)^4)-1","v":0.17544845290335642},{"$f":"((Quarterly!L141-Quarterly!L140))","v":24.695},{"$f":"((Quarterly!M141/Quarterly!M140)^4)-1","v":0.11740528634249303},{"$f":"((Quarterly!N141/Quarterly!N140)^4)-1","v":9.8106268148198339E-2},{"$f":"((Quarterly!O141/Quarterly!O140)^4)-1","v":0.6729989686445581},{"$f":"((Quarterly!P141/Quarterly!P140)^4)-1","v":-1.4646426798801349E-2},{"$f":"((Quarterly!Q141/Quarterly!Q140)^4)-1","v":0.48209869542526906},null,null,null,null,null,{"$f":"((Quarterly!W141/Quarterly!W140)^4)-1","v":5.7690331618437174E-2},{"$f":"((Quarterly!X141/Quarterly!X140)^4)-1","v":4.2556350047089797E-2},{"$f":"((Quarterly!Y141/Quarterly!Y140)^4)-1","v":-4.847249492695882E-2},{"$f":"Quarterly!Z141-Quarterly!Z140","v":0.12000000000000011},{"$f":"((Quarterly!AA141/Quarterly!AA140)^4)-1","v":8.0266300856076445E-2},{"$f":"((Quarterly!AB141/Quarterly!AB140)^4)-1","v":-3.4782153118370074E-2},{"$f":"Quarterly!AC141-Quarterly!AC140","v":-10.5},"--",{"$f":"(Quarterly!AE141-Quarterly!AE140)*100","v":-8.9999999999999858},{"$f":"(Quarterly!AF141-Quarterly!AF140)*100","v":12.000000000000011},{"$f":"(Quarterly!AG141-Quarterly!AG140)*100","v":7.0000000000000062},"--","--","--","--","--",{"$f":"((Quarterly!AM141/Quarterly!AM140)^4)-1","v":5.6039598980236471E-2},{"$f":"((Quarterly!AN141/Quarterly!AN140)^4)-1","v":7.5324558872278624E-2},"--","--",{"$f":"Quarterly!AQ141-Quarterly!AQ140","v":6.9333333333333371},"--","--",{"$f":"Quarterly!AT141-Quarterly!AT140","v":5.4666666666666686},{"$f":"Quarterly!AU141-Quarterly!AU140","v":0.40000000000000568},{"$f":"Quarterly!AV141-Quarterly!AV140","v":2.4666666666666686},{"$f":"Quarterly!AW141-Quarterly!AW140","v":3.3333333333333357},{"$f":"Quarterly!AX141-Quarterly!AX140","v":7.6666666666666714},{"$f":"Quarterly!AY141-Quarterly!AY140","v":3.0333333333333314},{"$f":"Quarterly!AZ141-Quarterly!AZ140","v":11.033333333333324},{"$f":"Quarterly!BA141-Quarterly!BA140","v":2.8666666666666671},"--","--",{"$f":"((Quarterly!BD141/Quarterly!BD140)^4)-1","v":7.4205092191434341E-2},{"$f":"((Quarterly!BE141/Quarterly!BE140)^4)-1","v":-2.791813113720254E-2},{"$f":"((Quarterly!BF141/Quarterly!BF140)^4)-1","v":4.7866778471336024E-2},{"$f":"((Quarterly!BG141/Quarterly!BG140)^4)-1","v":2.906707041960277E-2},{"$f":"((Quarterly!BH141/Quarterly!BH140)^4)-1","v":2.2907312904887789E-2},{"$f":"((Quarterly!BI141/Quarterly!BI140)^4)-1","v":1.8237114291840939E-2},{"$f":"((Quarterly!BJ141/Quarterly!BJ140)^4)-1","v":0.25672024118162406},{"$f":"((Quarterly!BK141/Quarterly!BK140)^4)-1","v":0.37156667555571521},null,"--","--",null,null,null,null,null,{"$f":"((Quarterly!BT141/Quarterly!BT140)^4)-1","v":-5.1781269735342583E-2},{"$f":"Quarterly!BU141-Quarterly!BU140","v":-0.11054999999999993},{"$f":"Quarterly!BV141-Quarterly!BV140","v":-0.10834000000000188},{"$f":"((Quarterly!BW141/Quarterly!BW140)^4)-1","v":9.8798875428366628E-2},{"$f":"((Quarterly!BX141/Quarterly!BX140)^4)-1","v":0.12985284556109122},{"$f":"((Quarterly!BY141/Quarterly!BY140)^4)-1","v":2.8157378849015924E-2},"--",{"$f":"((Quarterly!CA141/Quarterly!CA140)^4)-1","v":0.16005464536238856},{"$f":"((Quarterly!CB141/Quarterly!CB140)^4)-1","v":-0.29016363427259606},{"$f":"((Quarterly!CC141/Quarterly!CC140)^4)-1","v":-0.20869290660982165},"--","--",null,"--","--",null,{"$f":"((Quarterly!CJ141/Quarterly!CJ140)^4)-1","v":-4.3402342287864104E-2},{"$f":"((Quarterly!CK141/Quarterly!CK140)^4)-1","v":4.0852194112067197E-2},{"$f":"((Quarterly!CL141/Quarterly!CL140)^4)-1","v":-5.9924925009497976E-3},{"$f":"((Quarterly!CM141/Quarterly!CM140)^4)-1","v":0.17648315637196088},{"$f":"((Quarterly!CN141/Quarterly!CN140)^4)-1","v":1.4608580879668764E-2},{"$f":"((Quarterly!CO141/Quarterly!CO140)^4)-1","v":0.12965979229768498},{"$f":"((Quarterly!CP141/Quarterly!CP140)^4)-1","v":-2.4072327420446737E-2},{"$f":"((Quarterly!CQ141/Quarterly!CQ140)^4)-1","v":1.4112718553356718E-2},{"$f":"((Quarterly!CR141/Quarterly!CR140)^4)-1","v":9.0728963136319507E-2},{"$f":"Quarterly!CS141-Quarterly!CS140","v":1.9000000000000057},"--",null,null,null,null,null,{"$f":"((Quarterly!CZ141/Quarterly!CZ140)^4)-1","v":3.0839678080572641E-2},{"$f":"((Quarterly!DA141/Quarterly!DA140)^4)-1","v":4.4107560267921286E-2},null,null,null,null,null,{"$f":"((Quarterly!DG141/Quarterly!DG140)^4)-1","v":6.5040436150518577E-3},{"$f":"((Quarterly!DH141-Quarterly!DH140)*60)","v":4.000000000000199},{"$f":"Quarterly!DI141-Quarterly!DI140","v":-0.16666666666665719},"--",{"$f":"(Quarterly!DK141-Quarterly!DK140)*100","v":3.3333333333334103},{"$f":"((Quarterly!DL141/Quarterly!DL140)^4)-1","v":-1.2207661824105376E-2},null,null,null,{"$f":"((Quarterly!DP141/Quarterly!DP140)^4)-1","v":0},null,null,null,"--",{"$f":"Quarterly!DU141-Quarterly!DU140","v":0.40000000000000124},{"$f":"((Quarterly!DV141/Quarterly!DV140)^4)-1","v":3.5147753493225409E-3},{"$f":"((Quarterly!DW141/Quarterly!DW140)^4)-1","v":5.5700103726520123E-2},{"$f":"((Quarterly!DX141/Quarterly!DX140)^4)-1","v":4.095885179392611E-2},{"$f":"((Quarterly!DY141/Quarterly!DY140)^4)-1","v":0.13860051273625507},{"$f":"((Quarterly!DZ141/Quarterly!DZ140)^4)-1","v":1.07664594037582E-2},{"$f":"((Quarterly!EA141/Quarterly!EA140)^4)-1","v":1.0715315675308368E-2},{"$f":"((Quarterly!EB141/Quarterly!EB140)^4)-1","v":1.0892721981729636E-2},{"$f":"((Quarterly!EC141/Quarterly!EC140)^4)-1","v":9.432993185588967E-2},null,null,null,null,null,{"$f":"((Quarterly!EI141/Quarterly!EI140)^4)-1","v":3.62237427024239E-2},{"$f":"((Quarterly!EJ141/Quarterly!EJ140)^4)-1","v":2.4963154277421573E-2},{"$f":"((Quarterly!EK141/Quarterly!EK140)^4)-1","v":2.1970205443276214E-2},null,null,null,null,null,{"$f":"((Quarterly!EQ141/Quarterly!EQ140)^4)-1","v":-5.719991057034246E-3},{"$f":"((Quarterly!ER141/Quarterly!ER140)^4)-1","v":2.47347248976586E-2},{"$f":"((Quarterly!ES141/Quarterly!ES140)^4)-1","v":1.5916917837190292E-2},null,null,null,null,null,{"$f":"(Quarterly!EY141-Quarterly!EY140)*100","v":-26.666666666666572},{"$f":"(Quarterly!EZ141-Quarterly!EZ140)*100","v":-22.000000000000064},{"$f":"(Quarterly!FA141-Quarterly!FA140)*100","v":-12.33333333333313},{"$f":"(Quarterly!FB141-Quarterly!FB140)*100","v":-23.666666666666814},-11.333333333333684,{"$f":"(Quarterly!FD141-Quarterly!FD140)*100","v":-25},{"$f":"(Quarterly!FE141-Quarterly!FE140)*100","v":-18.333333333333357},{"$f":"(Quarterly!FF141-Quarterly!FF140)*100","v":-35.666666666666643},{"$f":"(Quarterly!FG141-Quarterly!FG140)*100","v":-38.666666666666671},{"$f":"(Quarterly!FH141-Quarterly!FH140)*100","v":-28.666666666666707},{"$f":"(Quarterly!FI141-Quarterly!FI140)*100","v":-19.000000000000039},16.666666666666604,null,null,null,null,null,{"$f":"((Quarterly!FP141/Quarterly!FP140)^4)-1","v":-1.8207533296822676E-2},{"$f":"((Quarterly!FQ141/Quarterly!FQ140)^4)-1","v":4.0580525496171083E-2},"--","--",{"$f":"((Quarterly!FT141/Quarterly!FT140)^4)-1","v":2.7274692184422467E-2},{"$f":"((Quarterly!FU141/Quarterly!FU140)^4)-1","v":-7.2922230378287267E-3},{"$f":"((Quarterly!FV141/Quarterly!FV140)^4)-1","v":-0.25968540253808958},{"$f":"((Quarterly!FW141/Quarterly!FW140)^4)-1","v":2.8613430097413208},{"$f":"((Quarterly!FX141/Quarterly!FX140)^4)-1","v":-3.8104863355131191E-2},null,null,null,null,null,{"$f":"((Quarterly!GD141/Quarterly!GD140)^4)-1","v":0.18559705165814},{"$f":"((Quarterly!GE141/Quarterly!GE140)^4)-1","v":0.24051190007987899},{"$f":"((Quarterly!GF141/Quarterly!GF140)^4)-1","v":8.0848315846118179E-3},{"$f":"((Quarterly!GG141/Quarterly!GG140)^4)-1","v":8.0848315846118179E-3},{"$f":"((Quarterly!GH141/Quarterly!GH140)^4)-1","v":{"$error":"#DIV/0!"}},"--","--",{"$f":"((Quarterly!GK141/Quarterly!GK140)^4)-1","v":{"$error":"#VALUE!"}},"--"]
["91'Q4",{"$f":"((Quarterly!B142/Quarterly!B141)^4)-1","v":3.9733938575973182E-2},{"$f":"((Quarterly!C142/Quarterly!C141)^4)-1","v":1.7577494151868267E-2},{"$f":"((Quarterly!D142/Quarterly!D141)^4)-1","v":-1.4304347868374645E-3},{"$f":"((Quarterly!E142/Quarterly!E141)^4)-1","v":-1.1200362913503792E-3},{"$f":"((Quarterly!F142/Quarterly!F141)^4)-1","v":-6.3736771452886698E-2},{"$f":"((Quarterly!G142/Quarterly!G141)^4)-1","v":-3.3933339374793592E-2},{"$f":"((Quarterly!H142/Quarterly!H141)^4)-1","v":1.7138362568391852E-2},{"$f":"((Quarterly!I142/Quarterly!I141)^4)-1","v":-2.25608583585446E-3},{"$f":"((Quarterly!J142/Quarterly!J141)^4)-1","v":3.5567762605261732E-2},{"$f":"((Quarterly!K142/Quarterly!K141)^4)-1","v":9.0563070093500286E-2},{"$f":"((Quarterly!L142-Quarterly!L141))","v":33.814999999999998},{"$f":"((Quarterly!M142/Quarterly!M141)^4)-1","v":9.1333054102967548E-2},{"$f":"((Quarterly!N142/Quarterly!N141)^4)-1","v":9.3158346346164267E-2},{"$f":"((Quarterly!O142/Quarterly!O141)^4)-1","v":5.1773105679953524E-2},{"$f":"((Quarterly!P142/Quarterly!P141)^4)-1","v":-1.5125493647765054E-2},{"$f":"((Quarterly!Q142/Quarterly!Q141)^4)-1","v":0.29700499304007089},null,null,null,null,null,{"$f":"((Quarterly!W142/Quarterly!W141)^4)-1","v":0},{"$f":"((Quarterly!X142/Quarterly!X141)^4)-1","v":-9.9131824958581527E-3},{"$f":"((Quarterly!Y142/Quarterly!Y141)^4)-1","v":-9.5927033782826632E-3},{"$f":"Quarterly!Z142-Quarterly!Z141","v":0.22999999999999998},{"$f":"((Quarterly!AA142/Quarterly!AA141)^4)-1","v":5.3095609806068644E-2},{"$f":"((Quarterly!AB142/Quarterly!AB141)^4)-1","v":5.2585253509995766E-4},{"$f":"Quarterly!AC142-Quarterly!AC141","v":1.1999999999999993},"--",{"$f":"(Quarterly!AE142-Quarterly!AE141)*100","v":-20.999999999999996},{"$f":"(Quarterly!AF142-Quarterly!AF141)*100","v":23},{"$f":"(Quarterly!AG142-Quarterly!AG141)*100","v":9.0000000000000071},"--","--","--","--","--",{"$f":"((Quarterly!AM142/Quarterly!AM141)^4)-1","v":8.6079285377032022E-3},{"$f":"((Quarterly!AN142/Quarterly!AN141)^4)-1","v":1.7575518777046328E-2},"--","--",{"$f":"Quarterly!AQ142-Quarterly!AQ141","v":-3.0000000000000142},"--","--",{"$f":"Quarterly!AT142-Quarterly!AT141","v":-1.6999999999999957},{"$f":"Quarterly!AU142-Quarterly!AU141","v":0.46666666666666856},{"$f":"Quarterly!AV142-Quarterly!AV141","v":-1.5},{"$f":"Quarterly!AW142-Quarterly!AW141","v":-0.63333333333333997},{"$f":"Quarterly!AX142-Quarterly!AX141","v":-5.13333333333334},{"$f":"Quarterly!AY142-Quarterly!AY141","v":6.9333333333333371},{"$f":"Quarterly!AZ142-Quarterly!AZ141","v":-4.93333333333333},{"$f":"Quarterly!BA142-Quarterly!BA141","v":1.0000000000000071},"--","--",{"$f":"((Quarterly!BD142/Quarterly!BD141)^4)-1","v":2.724196934007117E-2},{"$f":"((Quarterly!BE142/Quarterly!BE141)^4)-1","v":4.1945716769666852E-3},{"$f":"((Quarterly!BF142/Quarterly!BF141)^4)-1","v":5.2421382988944831E-2},{"$f":"((Quarterly!BG142/Quarterly!BG141)^4)-1","v":2.3615084116100471E-2},{"$f":"((Quarterly!BH142/Quarterly!BH141)^4)-1","v":2.2273252540672805E-2},{"$f":"((Quarterly!BI142/Quarterly!BI141)^4)-1","v":2.8169615274454385E-2},{"$f":"((Quarterly!BJ142/Quarterly!BJ141)^4)-1","v":-7.6889056051137605E-2},{"$f":"((Quarterly!BK142/Quarterly!BK141)^4)-1","v":0.72220938545673308},null,"--","--",null,null,null,null,null,{"$f":"((Quarterly!BT142/Quarterly!BT141)^4)-1","v":-3.1875781912891532E-2},{"$f":"Quarterly!BU142-Quarterly!BU141","v":-0.20366000000000106},{"$f":"Quarterly!BV142-Quarterly!BV141","v":-0.22653999999999996},{"$f":"((Quarterly!BW142/Quarterly!BW141)^4)-1","v":3.7143212191803388E-2},{"$f":"((Quarterly!BX142/Quarterly!BX141)^4)-1","v":0.18274649645934438},{"$f":"((Quarterly!BY142/Quarterly!BY141)^4)-1","v":0.21622717300008709},"--",{"$f":"((Quarterly!CA142/Quarterly!CA141)^4)-1","v":-0.11907024557793255},{"$f":"((Quarterly!CB142/Quarterly!CB141)^4)-1","v":-0.22315445965613223},{"$f":"((Quarterly!CC142/Quarterly!CC141)^4)-1","v":-0.12097277573800203},"--","--",null,"--","--",null,{"$f":"((Quarterly!CJ142/Quarterly!CJ141)^4)-1","v":0.39749468765529117},{"$f":"((Quarterly!CK142/Quarterly!CK141)^4)-1","v":6.3797215090946269E-2},{"$f":"((Quarterly!CL142/Quarterly!CL141)^4)-1","v":0.57468165233877344},{"$f":"((Quarterly!CM142/Quarterly!CM141)^4)-1","v":0.16733531150093084},{"$f":"((Quarterly!CN142/Quarterly!CN141)^4)-1","v":3.4647522372188932E-2},{"$f":"((Quarterly!CO142/Quarterly!CO141)^4)-1","v":0.13084538038147309},{"$f":"((Quarterly!CP142/Quarterly!CP141)^4)-1","v":-1.9822842616913583E-2},{"$f":"((Quarterly!CQ142/Quarterly!CQ141)^4)-1","v":1.4211751481615797E-2},{"$f":"((Quarterly!CR142/Quarterly!CR141)^4)-1","v":0.10526138748002278},{"$f":"Quarterly!CS142-Quarterly!CS141","v":-10.76666666666668},"--",null,null,null,null,null,{"$f":"((Quarterly!CZ142/Quarterly!CZ141)^4)-1","v":3.3602224016604509E-2},{"$f":"((Quarterly!DA142/Quarterly!DA141)^4)-1","v":3.7856700679232302E-2},null,null,null,null,null,{"$f":"((Quarterly!DG142/Quarterly!DG141)^4)-1","v":3.2428023665505012E-3},{"$f":"((Quarterly!DH142-Quarterly!DH141)*60)","v":1.9999999999998863},{"$f":"Quarterly!DI142-Quarterly!DI141","v":-3.3333333333345649E-2},"--",{"$f":"(Quarterly!DK142-Quarterly!DK141)*100","v":23.333333333333339},{"$f":"((Quarterly!DL142/Quarterly!DL141)^4)-1","v":-1.3564146621994566E-2},null,null,null,{"$f":"((Quarterly!DP142/Quarterly!DP141)^4)-1","v":3.8165647712418149E-4},null,null,null,"--",{"$f":"Quarterly!DU142-Quarterly!DU141","v":0.4666666666666659},{"$f":"((Quarterly!DV142/Quarterly!DV141)^4)-1","v":2.5420253793415615E-3},{"$f":"((Quarterly!DW142/Quarterly!DW141)^4)-1","v":1.6771628873232469E-2},{"$f":"((Quarterly!DX142/Quarterly!DX141)^4)-1","v":2.1223888197238194E-2},{"$f":"((Quarterly!DY142/Quarterly!DY141)^4)-1","v":1.0067879392803736E-2},{"$f":"((Quarterly!DZ142/Quarterly!DZ141)^4)-1","v":2.496155244228726E-2},{"$f":"((Quarterly!EA142/Quarterly!EA141)^4)-1","v":2.3368665480628659E-2},{"$f":"((Quarterly!EB142/Quarterly!EB141)^4)-1","v":2.8901567993195876E-2},{"$f":"((Quarterly!EC142/Quarterly!EC141)^4)-1","v":5.529254733452893E-3},null,null,null,null,null,{"$f":"((Quarterly!EI142/Quarterly!EI141)^4)-1","v":1.6877528223481431E-2},{"$f":"((Quarterly!EJ142/Quarterly!EJ141)^4)-1","v":9.7906563518446177E-4},{"$f":"((Quarterly!EK142/Quarterly!EK141)^4)-1","v":5.3923826627093607E-3},null,null,null,null,null,{"$f":"((Quarterly!EQ142/Quarterly!EQ141)^4)-1","v":3.4487681760493327E-3},{"$f":"((Quarterly!ER142/Quarterly!ER141)^4)-1","v":3.3917084363190186E-2},{"$f":"((Quarterly!ES142/Quarterly!ES141)^4)-1","v":2.8672019470530552E-2},null,null,null,null,null,{"$f":"(Quarterly!EY142-Quarterly!EY141)*100","v":-80.333333333333371},{"$f":"(Quarterly!EZ142-Quarterly!EZ141)*100","v":-82.666666666666714},{"$f":"(Quarterly!FA142-Quarterly!FA141)*100","v":-33.999999999999986},{"$f":"(Quarterly!FB142-Quarterly!FB141)*100","v":-28.333333333333321},5.6666666666666643,{"$f":"(Quarterly!FD142-Quarterly!FD141)*100","v":-58.6666666666666},{"$f":"(Quarterly!FE142-Quarterly!FE141)*100","v":-83.6666666666666},{"$f":"(Quarterly!FF142-Quarterly!FF141)*100","v":-102.00000000000004},{"$f":"(Quarterly!FG142-Quarterly!FG141)*100","v":-101.00000000000007},{"$f":"(Quarterly!FH142-Quarterly!FH141)*100","v":-93.333333333333357},{"$f":"(Quarterly!FI142-Quarterly!FI141)*100","v":-59.333333333333371},42.666666666666671,null,null,null,null,null,{"$f":"((Quarterly!FP142/Quarterly!FP141)^4)-1","v":-3.0762045894584755E-2},{"$f":"((Quarterly!FQ142/Quarterly!FQ141)^4)-1","v":2.139884128491043E-2},"--","--",{"$f":"((Quarterly!FT142/Quarterly!FT141)^4)-1","v":-6.3846561696506265E-2},{"$f":"((Quarterly!FU142/Quarterly!FU141)^4)-1","v":-0.16073843851016423},{"$f":"((Quarterly!FV142/Quarterly!FV141)^4)-1","v":0.32990536774926693},{"$f":"((Quarterly!FW142/Quarterly!FW141)^4)-1","v":0.12290108249759646},{"$f":"((Quarterly!FX142/Quarterly!FX141)^4)-1","v":0.29398777743843896},null,null,null,null,null,{"$f":"((Quarterly!GD142/Quarterly!GD141)^4)-1","v":1.5170595019392108E-2},{"$f":"((Quarterly!GE142/Quarterly!GE141)^4)-1","v":0.14540996331626999},{"$f":"((Quarterly!GF142/Quarterly!GF141)^4)-1","v":0.19804401767362312},{"$f":"((Quarterly!GG142/Quarterly!GG141)^4)-1","v":0.19804401767362312},{"$f":"((Quarterly!GH142/Quarterly!GH141)^4)-1","v":{"$error":"#DIV/0!"}},"--","--",{"$f":"((Quarterly!GK142/Quarterly!GK141)^4)-1","v":{"$error":"#VALUE!"}},"--"]
["92'Q1",{"$f":"((Quarterly!B143/Quarterly!B142)^4)-1","v":6.6242922953863914E-2},{"$f":"((Quarterly!C143/Quarterly!C142)^4)-1","v":4.8093481200135457E-2},{"$f":"((Quarterly!D143/Quarterly!D142)^4)-1","v":6.7336126512419492E-2},{"$f":"((Quarterly!E143/Quarterly!E142)^4)-1","v":7.7310394500943014E-2},{"$f":"((Quarterly!F143/Quarterly!F142)^4)-1","v":0.166447657422506},{"$f":"((Quarterly!G143/Quarterly!G142)^4)-1","v":6.0868209139134599E-2},{"$f":"((Quarterly!H143/Quarterly!H142)^4)-1","v":7.5042212615644699E-2},{"$f":"((Quarterly!I143/Quarterly!I142)^4)-1","v":-1.5059690156482897E-2},{"$f":"((Quarterly!J143/Quarterly!J142)^4)-1","v":-3.0012911875466508E-2},{"$f":"((Quarterly!K143/Quarterly!K142)^4)-1","v":0.22073319821711879},{"$f":"((Quarterly!L143-Quarterly!L142))","v":-32.18},{"$f":"((Quarterly!M143/Quarterly!M142)^4)-1","v":2.937876486007851E-2},{"$f":"((Quarterly!N143/Quarterly!N142)^4)-1","v":7.4295006705935362E-2},{"$f":"((Quarterly!O143/Quarterly!O142)^4)-1","v":-0.6535271931629234},{"$f":"((Quarterly!P143/Quarterly!P142)^4)-1","v":3.1382826731450875E-2},{"$f":"((Quarterly!Q143/Quarterly!Q142)^4)-1","v":0.63004204852943135},null,null,null,null,null,{"$f":"((Quarterly!W143/Quarterly!W142)^4)-1","v":-2.0099861625448301E-2},{"$f":"((Quarterly!X143/Quarterly!X142)^4)-1","v":-2.6336002319198193E-2},{"$f":"((Quarterly!Y143/Quarterly!Y142)^4)-1","v":-5.6954086500246914E-2},{"$f":"Quarterly!Z143-Quarterly!Z142","v":-0.3600000000000001},{"$f":"((Quarterly!AA143/Quarterly!AA142)^4)-1","v":0.18140022841567638},{"$f":"((Quarterly!AB143/Quarterly!AB142)^4)-1","v":0.22693268921182241},{"$f":"Quarterly!AC143-Quarterly!AC142","v":-3.4000000000000021},{"$f":"Quarterly!AD143-Quarterly!AD142","v":13.799999999999999},{"$f":"(Quarterly!AE143-Quarterly!AE142)*100","v":-0.99999999999997868},{"$f":"(Quarterly!AF143-Quarterly!AF142)*100","v":-36.000000000000007},{"$f":"(Quarterly!AG143-Quarterly!AG142)*100","v":-37.000000000000014},"--","--","--","--","--",{"$f":"((Quarterly!AM143/Quarterly!AM142)^4)-1","v":-5.104489491748132E-3},{"$f":"((Quarterly!AN143/Quarterly!AN142)^4)-1","v":9.1888338365313516E-3},"--","--",{"$f":"Quarterly!AQ143-Quarterly!AQ142","v":1.7333333333333414},"--","--",{"$f":"Quarterly!AT143-Quarterly!AT142","v":0.23333333333332718},{"$f":"Quarterly!AU143-Quarterly!AU142","v":-1.0666666666666629},{"$f":"Quarterly!AV143-Quarterly!AV142","v":0.63333333333333286},{"$f":"Quarterly!AW143-Quarterly!AW142","v":3.43333333333333},{"$f":"Quarterly!AX143-Quarterly!AX142","v":3.3999999999999986},{"$f":"Quarterly!AY143-Quarterly!AY142","v":-2.3666666666666671},{"$f":"Quarterly!AZ143-Quarterly!AZ142","v":1.8000000000000043},{"$f":"Quarterly!BA143-Quarterly!BA142","v":-0.46666666666666856},"--","--",{"$f":"((Quarterly!BD143/Quarterly!BD142)^4)-1","v":5.7594255278252238E-2},{"$f":"((Quarterly!BE143/Quarterly!BE142)^4)-1","v":8.5508991245784038E-3},{"$f":"((Quarterly!BF143/Quarterly!BF142)^4)-1","v":0.10733000188328501},{"$f":"((Quarterly!BG143/Quarterly!BG142)^4)-1","v":8.0243631956091077E-2},{"$f":"((Quarterly!BH143/Quarterly!BH142)^4)-1","v":8.4097431892118157E-2},{"$f":"((Quarterly!BI143/Quarterly!BI142)^4)-1","v":2.5022234798447895E-2},{"$f":"((Quarterly!BJ143/Quarterly!BJ142)^4)-1","v":7.7156950222316611E-2},{"$f":"((Quarterly!BK143/Quarterly!BK142)^4)-1","v":-0.58813232375430236},null,"--","--",null,null,null,null,null,{"$f":"((Quarterly!BT143/Quarterly!BT142)^4)-1","v":-1.0226083491519322E-2},{"$f":"Quarterly!BU143-Quarterly!BU142","v":-0.27559999999999896},{"$f":"Quarterly!BV143-Quarterly!BV142","v":-0.3394200000000005},{"$f":"((Quarterly!BW143/Quarterly!BW142)^4)-1","v":0.11622359944335936},{"$f":"((Quarterly!BX143/Quarterly!BX142)^4)-1","v":0.69890443333266461},{"$f":"((Quarterly!BY143/Quarterly!BY142)^4)-1","v":0.40436108429066153},"--",{"$f":"((Quarterly!CA143/Quarterly!CA142)^4)-1","v":9.6576173551434108E-2},{"$f":"((Quarterly!CB143/Quarterly!CB142)^4)-1","v":7.9879280096978311E-2},{"$f":"((Quarterly!CC143/Quarterly!CC142)^4)-1","v":0.10554196905161572},"--","--",null,"--","--",null,{"$f":"((Quarterly!CJ143/Quarterly!CJ142)^4)-1","v":0.61516707841234108},{"$f":"((Quarterly!CK143/Quarterly!CK142)^4)-1","v":9.3667023926849335E-2},{"$f":"((Quarterly!CL143/Quarterly!CL142)^4)-1","v":0.33508353774633348},{"$f":"((Quarterly!CM143/Quarterly!CM142)^4)-1","v":0.65305726405276388},{"$f":"((Quarterly!CN143/Quarterly!CN142)^4)-1","v":8.8704547831103042E-2},{"$f":"((Quarterly!CO143/Quarterly!CO142)^4)-1","v":0.22352251719724792},{"$f":"((Quarterly!CP143/Quarterly!CP142)^4)-1","v":5.2617973965178866E-3},{"$f":"((Quarterly!CQ143/Quarterly!CQ142)^4)-1","v":1.181986398864332E-2},{"$f":"((Quarterly!CR143/Quarterly!CR142)^4)-1","v":5.5598315433466938E-2},{"$f":"Quarterly!CS143-Quarterly!CS142","v":-1.0999999999999943},"--",null,null,null,null,null,{"$f":"((Quarterly!CZ143/Quarterly!CZ142)^4)-1","v":2.7382280597424424E-2},{"$f":"((Quarterly!DA143/Quarterly!DA142)^4)-1","v":3.5602063812619766E-2},null,null,null,null,null,{"$f":"((Quarterly!DG143/Quarterly!DG142)^4)-1","v":-1.6171413713786942E-3},{"$f":"((Quarterly!DH143-Quarterly!DH142)*60)","v":-1.9999999999998863},{"$f":"Quarterly!DI143-Quarterly!DI142","v":0.23333333333333428},"--",{"$f":"(Quarterly!DK143-Quarterly!DK142)*100","v":26.666666666666661},{"$f":"((Quarterly!DL143/Quarterly!DL142)^4)-1","v":-3.1310390662005583E-2},null,null,null,{"$f":"((Quarterly!DP143/Quarterly!DP142)^4)-1","v":9.9736644395220786E-4},null,null,null,"--",{"$f":"Quarterly!DU143-Quarterly!DU142","v":0.69999999999999929},{"$f":"((Quarterly!DV143/Quarterly!DV142)^4)-1","v":-1.4543682655435375E-2},{"$f":"((Quarterly!DW143/Quarterly!DW142)^4)-1","v":-0.12329194212016992},{"$f":"((Quarterly!DX143/Quarterly!DX142)^4)-1","v":-0.10819083282240072},{"$f":"((Quarterly!DY143/Quarterly!DY142)^4)-1","v":-0.21435328328286596},{"$f":"((Quarterly!DZ143/Quarterly!DZ142)^4)-1","v":-7.0676280201657504E-2},{"$f":"((Quarterly!EA143/Quarterly!EA142)^4)-1","v":-6.9100848382239843E-2},{"$f":"((Quarterly!EB143/Quarterly!EB142)^4)-1","v":-7.4551467274838412E-2},{"$f":"((Quarterly!EC143/Quarterly!EC142)^4)-1","v":-0.16092671203904885},null,null,null,null,null,{"$f":"((Quarterly!EI143/Quarterly!EI142)^4)-1","v":4.2952923698944101E-2},{"$f":"((Quarterly!EJ143/Quarterly!EJ142)^4)-1","v":4.9280025743351885E-2},{"$f":"((Quarterly!EK143/Quarterly!EK142)^4)-1","v":4.9916567399216571E-2},null,null,null,null,null,{"$f":"((Quarterly!EQ143/Quarterly!EQ142)^4)-1","v":-1.142192746029369E-2},{"$f":"((Quarterly!ER143/Quarterly!ER142)^4)-1","v":2.1305530101736414E-2},{"$f":"((Quarterly!ES143/Quarterly!ES142)^4)-1","v":1.7854357737005389E-2},null,null,null,null,null,{"$f":"(Quarterly!EY143-Quarterly!EY142)*100","v":-109.66666666666667},{"$f":"(Quarterly!EZ143-Quarterly!EZ142)*100","v":-79.3333333333333},{"$f":"(Quarterly!FA143-Quarterly!FA142)*100","v":-16.666666666666785},{"$f":"(Quarterly!FB143-Quarterly!FB142)*100","v":-19.666666666666544},-2.9999999999997584,{"$f":"(Quarterly!FD143-Quarterly!FD142)*100","v":1.9999999999999574},{"$f":"(Quarterly!FE143-Quarterly!FE142)*100","v":-64.6666666666667},{"$f":"(Quarterly!FF143-Quarterly!FF142)*100","v":-50.999999999999979},{"$f":"(Quarterly!FG143-Quarterly!FG142)*100","v":-21.333333333333382},{"$f":"(Quarterly!FH143-Quarterly!FH142)*100","v":3.0000000000000249},{"$f":"(Quarterly!FI143-Quarterly!FI142)*100","v":-4.3333333333333002},46.666666666666679,null,null,null,null,null,{"$f":"((Quarterly!FP143/Quarterly!FP142)^4)-1","v":0.15854545887856464},{"$f":"((Quarterly!FQ143/Quarterly!FQ142)^4)-1","v":5.3385498835184508E-2},"--","--",{"$f":"((Quarterly!FT143/Quarterly!FT142)^4)-1","v":6.7601743167920558E-2},{"$f":"((Quarterly!FU143/Quarterly!FU142)^4)-1","v":3.2846910751618941E-2},{"$f":"((Quarterly!FV143/Quarterly!FV142)^4)-1","v":-4.3722434598711057E-2},{"$f":"((Quarterly!FW143/Quarterly!FW142)^4)-1","v":-0.42105430069409044},{"$f":"((Quarterly!FX143/Quarterly!FX142)^4)-1","v":-0.13103668703001869},null,null,null,null,null,{"$f":"((Quarterly!GD143/Quarterly!GD142)^4)-1","v":-0.42717105460875082},{"$f":"((Quarterly!GE143/Quarterly!GE142)^4)-1","v":-0.42132449809490002},{"$f":"((Quarterly!GF143/Quarterly!GF142)^4)-1","v":-0.25468073244143297},{"$f":"((Quarterly!GG143/Quarterly!GG142)^4)-1","v":-0.25468073244143297},{"$f":"((Quarterly!GH143/Quarterly!GH142)^4)-1","v":{"$error":"#DIV/0!"}},"--","--",{"$f":"((Quarterly!GK143/Quarterly!GK142)^4)-1","v":{"$error":"#VALUE!"}},"--"]
["92'Q2",{"$f":"((Quarterly!B144/Quarterly!B143)^4)-1","v":7.1751417917504501E-2},{"$f":"((Quarterly!C144/Quarterly!C143)^4)-1","v":4.4841238357899771E-2},{"$f":"((Quarterly!D144/Quarterly!D143)^4)-1","v":3.0275447650110365E-2},{"$f":"((Quarterly!E144/Quarterly!E143)^4)-1","v":2.7718482787497445E-2},{"$f":"((Quarterly!F144/Quarterly!F143)^4)-1","v":2.8208452551123697E-2},{"$f":"((Quarterly!G144/Quarterly!G143)^4)-1","v":1.6943423662668655E-2},{"$f":"((Quarterly!H144/Quarterly!H143)^4)-1","v":3.1509622601092913E-2},{"$f":"((Quarterly!I144/Quarterly!I143)^4)-1","v":0.13677966777877693},{"$f":"((Quarterly!J144/Quarterly!J143)^4)-1","v":0.26971940066525391},{"$f":"((Quarterly!K144/Quarterly!K143)^4)-1","v":0.16169064661299126},{"$f":"((Quarterly!L144-Quarterly!L143))","v":22.680999999999997},{"$f":"((Quarterly!M144/Quarterly!M143)^4)-1","v":6.7399585605712131E-2},{"$f":"((Quarterly!N144/Quarterly!N143)^4)-1","v":1.9397968261885001E-3},{"$f":"((Quarterly!O144/Quarterly!O143)^4)-1","v":3.8826189112219378},{"$f":"((Quarterly!P144/Quarterly!P143)^4)-1","v":-5.1447656721332891E-3},{"$f":"((Quarterly!Q144/Quarterly!Q143)^4)-1","v":8.5072640124297827E-2},null,null,null,null,null,{"$f":"((Quarterly!W144/Quarterly!W143)^4)-1","v":5.1870043258773757E-2},{"$f":"((Quarterly!X144/Quarterly!X143)^4)-1","v":4.7691890435201056E-2},{"$f":"((Quarterly!Y144/Quarterly!Y143)^4)-1","v":-4.9112721389512615E-2},{"$f":"Quarterly!Z144-Quarterly!Z143","v":-0.12999999999999989},{"$f":"((Quarterly!AA144/Quarterly!AA143)^4)-1","v":0.17163205310475149},{"$f":"((Quarterly!AB144/Quarterly!AB143)^4)-1","v":-3.2487307519276643E-3},{"$f":"Quarterly!AC144-Quarterly!AC143","v":-10.399999999999999},{"$f":"Quarterly!AD144-Quarterly!AD143","v":36.6},{"$f":"(Quarterly!AE144-Quarterly!AE143)*100","v":-16.000000000000014},{"$f":"(Quarterly!AF144-Quarterly!AF143)*100","v":-12.999999999999989},{"$f":"(Quarterly!AG144-Quarterly!AG143)*100","v":-2.0000000000000018},"--","--","--","--","--",{"$f":"((Quarterly!AM144/Quarterly!AM143)^4)-1","v":7.308928279591087E-2},{"$f":"((Quarterly!AN144/Quarterly!AN143)^4)-1","v":8.6851686226859126E-2},"--",{"$f":"(Quarterly!AP144-Quarterly!AP143)*100","v":-2.6666666666666616},{"$f":"Quarterly!AQ144-Quarterly!AQ143","v":2.4333333333333371},"--","--",{"$f":"Quarterly!AT144-Quarterly!AT143","v":4.3000000000000043},{"$f":"Quarterly!AU144-Quarterly!AU143","v":0.46666666666665435},{"$f":"Quarterly!AV144-Quarterly!AV143","v":3.6999999999999957},{"$f":"Quarterly!AW144-Quarterly!AW143","v":0.30000000000001137},{"$f":"Quarterly!AX144-Quarterly!AX143","v":2.8666666666666742},{"$f":"Quarterly!AY144-Quarterly!AY143","v":6.8666666666666671},{"$f":"Quarterly!AZ144-Quarterly!AZ143","v":2.5999999999999943},{"$f":"Quarterly!BA144-Quarterly!BA143","v":-3.3333333333338544E-2},"--",{"$f":"((Quarterly!BC144/Quarterly!BC143)^4)-1","v":0.34922907163812522},{"$f":"((Quarterly!BD144/Quarterly!BD143)^4)-1","v":8.5855778469604793E-2},{"$f":"((Quarterly!BE144/Quarterly!BE143)^4)-1","v":-3.2372861897003835E-2},{"$f":"((Quarterly!BF144/Quarterly!BF143)^4)-1","v":3.7656918283933694E-2},{"$f":"((Quarterly!BG144/Quarterly!BG143)^4)-1","v":3.4109160049618614E-2},{"$f":"((Quarterly!BH144/Quarterly!BH143)^4)-1","v":1.0175692488460397E-2},{"$f":"((Quarterly!BI144/Quarterly!BI143)^4)-1","v":3.4746750102743196E-3},{"$f":"((Quarterly!BJ144/Quarterly!BJ143)^4)-1","v":0.47282432606941383},{"$f":"((Quarterly!BK144/Quarterly!BK143)^4)-1","v":-0.31321039077820545},null,{"$f":"((Quarterly!BM144/Quarterly!BM143)^4)-1","v":3.6114807577420915E-2},{"$f":"((Quarterly!BN144/Quarterly!BN143)^4)-1","v":5.4634273335929295E-2},null,null,null,null,null,{"$f":"((Quarterly!BT144/Quarterly!BT143)^4)-1","v":-3.9913923813868823E-2},{"$f":"Quarterly!BU144-Quarterly!BU143","v":-0.18048000000000108},{"$f":"Quarterly!BV144-Quarterly!BV143","v":-0.19814999999999827},{"$f":"((Quarterly!BW144/Quarterly!BW143)^4)-1","v":0.10242940175103366},{"$f":"((Quarterly!BX144/Quarterly!BX143)^4)-1","v":-0.25573463214436087},{"$f":"((Quarterly!BY144/Quarterly!BY143)^4)-1","v":-0.15684698330731062},"--",{"$f":"((Quarterly!CA144/Quarterly!CA143)^4)-1","v":9.1122134612763528E-2},{"$f":"((Quarterly!CB144/Quarterly!CB143)^4)-1","v":0.17108164658294789},{"$f":"((Quarterly!CC144/Quarterly!CC143)^4)-1","v":0.15818619583029947},"--","--",null,"--","--",null,{"$f":"((Quarterly!CJ144/Quarterly!CJ143)^4)-1","v":-0.32048991910568059},{"$f":"((Quarterly!CK144/Quarterly!CK143)^4)-1","v":7.6956832549333942E-2},{"$f":"((Quarterly!CL144/Quarterly!CL143)^4)-1","v":0.24519385453872911},{"$f":"((Quarterly!CM144/Quarterly!CM143)^4)-1","v":-0.1525647676480304},{"$f":"((Quarterly!CN144/Quarterly!CN143)^4)-1","v":4.2454694766982382E-2},{"$f":"((Quarterly!CO144/Quarterly!CO143)^4)-1","v":0.15416953226798591},{"$f":"((Quarterly!CP144/Quarterly!CP143)^4)-1","v":-9.0810896000033114E-3},{"$f":"((Quarterly!CQ144/Quarterly!CQ143)^4)-1","v":1.3117872139318587E-2},{"$f":"((Quarterly!CR144/Quarterly!CR143)^4)-1","v":4.4107455579701416E-2},{"$f":"Quarterly!CS144-Quarterly!CS143","v":8.1666666666666714},"--",null,null,null,null,null,{"$f":"((Quarterly!CZ144/Quarterly!CZ143)^4)-1","v":3.1126084520851194E-2},{"$f":"((Quarterly!DA144/Quarterly!DA143)^4)-1","v":3.5288012065515906E-2},null,null,null,null,null,{"$f":"((Quarterly!DG144/Quarterly!DG143)^4)-1","v":3.111334286968015E-2},{"$f":"((Quarterly!DH144-Quarterly!DH143)*60)","v":9.9999999999998579},{"$f":"Quarterly!DI144-Quarterly!DI143","v":0.30000000000001137},"--",{"$f":"(Quarterly!DK144-Quarterly!DK143)*100","v":23.333333333333339},{"$f":"((Quarterly!DL144/Quarterly!DL143)^4)-1","v":1.5066060032877804E-3},null,null,null,{"$f":"((Quarterly!DP144/Quarterly!DP143)^4)-1","v":1.0401555548964936E-2},null,null,null,"--",{"$f":"Quarterly!DU144-Quarterly!DU143","v":0.46666666666666679},{"$f":"((Quarterly!DV144/Quarterly!DV143)^4)-1","v":1.9549764016902671E-2},{"$f":"((Quarterly!DW144/Quarterly!DW143)^4)-1","v":7.4559650071482908E-2},{"$f":"((Quarterly!DX144/Quarterly!DX143)^4)-1","v":6.6609239592120506E-2},{"$f":"((Quarterly!DY144/Quarterly!DY143)^4)-1","v":0.11903535749491989},{"$f":"((Quarterly!DZ144/Quarterly!DZ143)^4)-1","v":5.031342692099483E-2},{"$f":"((Quarterly!EA144/Quarterly!EA143)^4)-1","v":5.068634099095215E-2},{"$f":"((Quarterly!EB144/Quarterly!EB143)^4)-1","v":4.9393199851064384E-2},{"$f":"((Quarterly!EC144/Quarterly!EC143)^4)-1","v":9.5348125119002258E-2},null,null,null,null,null,{"$f":"((Quarterly!EI144/Quarterly!EI143)^4)-1","v":7.0964174806312119E-2},{"$f":"((Quarterly!EJ144/Quarterly!EJ143)^4)-1","v":4.0638101468147392E-2},{"$f":"((Quarterly!EK144/Quarterly!EK143)^4)-1","v":3.3407449487816709E-2},null,null,null,null,null,{"$f":"((Quarterly!EQ144/Quarterly!EQ143)^4)-1","v":4.4437736007548745E-2},{"$f":"((Quarterly!ER144/Quarterly!ER143)^4)-1","v":2.7309088859999608E-2},{"$f":"((Quarterly!ES144/Quarterly!ES143)^4)-1","v":1.9881668034762878E-2},null,null,null,null,null,{"$f":"(Quarterly!EY144-Quarterly!EY143)*100","v":0},{"$f":"(Quarterly!EZ144-Quarterly!EZ143)*100","v":-25.333333333333385},{"$f":"(Quarterly!FA144-Quarterly!FA143)*100","v":-0.33333333333338544},{"$f":"(Quarterly!FB144-Quarterly!FB143)*100","v":-7.3333333333332362},-6.9999999999998508,{"$f":"(Quarterly!FD144-Quarterly!FD143)*100","v":-3.3333333333331439},{"$f":"(Quarterly!FE144-Quarterly!FE143)*100","v":-21.333333333333336},{"$f":"(Quarterly!FF144-Quarterly!FF143)*100","v":-13.666666666666671},{"$f":"(Quarterly!FG144-Quarterly!FG143)*100","v":-7.9999999999999183},{"$f":"(Quarterly!FH144-Quarterly!FH143)*100","v":6.0000000000001386},{"$f":"(Quarterly!FI144-Quarterly!FI143)*100","v":7.3333333333334139},21.000000000000085,null,null,null,null,null,{"$f":"((Quarterly!FP144/Quarterly!FP143)^4)-1","v":5.7950362972718716E-2},{"$f":"((Quarterly!FQ144/Quarterly!FQ143)^4)-1","v":2.2294620187770064E-2},"--","--",{"$f":"((Quarterly!FT144/Quarterly!FT143)^4)-1","v":6.0550238632184561E-2},{"$f":"((Quarterly!FU144/Quarterly!FU143)^4)-1","v":1.5868820496308667E-2},{"$f":"((Quarterly!FV144/Quarterly!FV143)^4)-1","v":0.44971235965650713},{"$f":"((Quarterly!FW144/Quarterly!FW143)^4)-1","v":0.63774237512714338},{"$f":"((Quarterly!FX144/Quarterly!FX143)^4)-1","v":0.59763672079906138},null,null,null,null,null,{"$f":"((Quarterly!GD144/Quarterly!GD143)^4)-1","v":0.57543008557420428},{"$f":"((Quarterly!GE144/Quarterly!GE143)^4)-1","v":0.5392742011508922},{"$f":"((Quarterly!GF144/Quarterly!GF143)^4)-1","v":0.17733512594189738},{"$f":"((Quarterly!GG144/Quarterly!GG143)^4)-1","v":0.17733512594189738},{"$f":"((Quarterly!GH144/Quarterly!GH143)^4)-1","v":{"$error":"#DIV/0!"}},"--","--",{"$f":"((Quarterly!GK144/Quarterly!GK143)^4)-1","v":{"$error":"#VALUE!"}},"--"]
["92'Q3",{"$f":"((Quarterly!B145/Quarterly!B144)^4)-1","v":5.9344931641147847E-2},{"$f":"((Quarterly!C145/Quarterly!C144)^4)-1","v":3.9455080735877779E-2},{"$f":"((Quarterly!D145/Quarterly!D144)^4)-1","v":4.1748980832565064E-2},{"$f":"((Quarterly!E145/Quarterly!E144)^4)-1","v":4.4004452571257069E-2},{"$f":"((Quarterly!F145/Quarterly!F144)^4)-1","v":8.8038063093695218E-2},{"$f":"((Quarterly!G145/Quarterly!G144)^4)-1","v":2.4052508003160389E-2},{"$f":"((Quarterly!H145/Quarterly!H144)^4)-1","v":4.6937806229485624E-2},{"$f":"((Quarterly!I145/Quarterly!I144)^4)-1","v":6.3270630065923372E-2},{"$f":"((Quarterly!J145/Quarterly!J144)^4)-1","v":0.10655574283863167},{"$f":"((Quarterly!K145/Quarterly!K144)^4)-1","v":9.0988925077304383E-3},{"$f":"((Quarterly!L145-Quarterly!L144))","v":-2.0969999999999978},{"$f":"((Quarterly!M145/Quarterly!M144)^4)-1","v":6.4563180165483569E-2},{"$f":"((Quarterly!N145/Quarterly!N144)^4)-1","v":8.7583871979004524E-2},{"$f":"((Quarterly!O145/Quarterly!O144)^4)-1","v":-0.32100294740708613},{"$f":"((Quarterly!P145/Quarterly!P144)^4)-1","v":2.0778879655868554E-2},{"$f":"((Quarterly!Q145/Quarterly!Q144)^4)-1","v":0.16000263266251524},null,null,null,null,null,{"$f":"((Quarterly!W145/Quarterly!W144)^4)-1","v":1.0088192574456256E-2},{"$f":"((Quarterly!X145/Quarterly!X144)^4)-1","v":3.3126265643481645E-3},{"$f":"((Quarterly!Y145/Quarterly!Y144)^4)-1","v":-2.8135966167587401E-2},{"$f":"Quarterly!Z145-Quarterly!Z144","v":3.0000000000000027E-2},{"$f":"((Quarterly!AA145/Quarterly!AA144)^4)-1","v":-0.1875656822173789},{"$f":"((Quarterly!AB145/Quarterly!AB144)^4)-1","v":-0.10414155116088952},{"$f":"Quarterly!AC145-Quarterly!AC144","v":3.5},{"$f":"Quarterly!AD145-Quarterly!AD144","v":-18.100000000000001},{"$f":"(Quarterly!AE145-Quarterly!AE144)*100","v":-12.999999999999989},{"$f":"(Quarterly!AF145-Quarterly!AF144)*100","v":3.0000000000000027},{"$f":"(Quarterly!AG145-Quarterly!AG144)*100","v":4.0000000000000036},"--","--","--","--","--",{"$f":"((Quarterly!AM145/Quarterly!AM144)^4)-1","v":3.0995680889653432E-2},{"$f":"((Quarterly!AN145/Quarterly!AN144)^4)-1","v":4.4157119340640039E-2},"--",{"$f":"(Quarterly!AP145-Quarterly!AP144)*100","v":-0.66666666666668206},{"$f":"Quarterly!AQ145-Quarterly!AQ144","v":-1.6333333333333329},"--","--",{"$f":"Quarterly!AT145-Quarterly!AT144","v":-1.0666666666666629},{"$f":"Quarterly!AU145-Quarterly!AU144","v":0.53333333333334565},{"$f":"Quarterly!AV145-Quarterly!AV144","v":-3.36666666666666},{"$f":"Quarterly!AW145-Quarterly!AW144","v":0.56666666666666288},{"$f":"Quarterly!AX145-Quarterly!AX144","v":-3.4666666666666686},{"$f":"Quarterly!AY145-Quarterly!AY144","v":0.5},{"$f":"Quarterly!AZ145-Quarterly!AZ144","v":-2.8333333333333357},{"$f":"Quarterly!BA145-Quarterly!BA144","v":1.9333333333333371},"--",{"$f":"((Quarterly!BC145/Quarterly!BC144)^4)-1","v":3.4042986441522594E-2},{"$f":"((Quarterly!BD145/Quarterly!BD144)^4)-1","v":9.4634681497822948E-2},{"$f":"((Quarterly!BE145/Quarterly!BE144)^4)-1","v":-1.8438806365322802E-2},{"$f":"((Quarterly!BF145/Quarterly!BF144)^4)-1","v":4.7767840600678291E-2},{"$f":"((Quarterly!BG145/Quarterly!BG144)^4)-1","v":3.676252878794406E-2},{"$f":"((Quarterly!BH145/Quarterly!BH144)^4)-1","v":2.1501606933379547E-2},{"$f":"((Quarterly!BI145/Quarterly!BI144)^4)-1","v":1.0641775135947329E-2},{"$f":"((Quarterly!BJ145/Quarterly!BJ144)^4)-1","v":-0.23781643831936017},{"$f":"((Quarterly!BK145/Quarterly!BK144)^4)-1","v":9.4055488439997337E-2},null,{"$f":"((Quarterly!BM145/Quarterly!BM144)^4)-1","v":6.6325103219443848E-2},{"$f":"((Quarterly!BN145/Quarterly!BN144)^4)-1","v":6.9305621571815301E-2},null,null,null,null,null,{"$f":"((Quarterly!BT145/Quarterly!BT144)^4)-1","v":-3.1821040248640742E-2},{"$f":"Quarterly!BU145-Quarterly!BU144","v":-0.13813999999999993},{"$f":"Quarterly!BV145-Quarterly!BV144","v":-0.14022000000000112},{"$f":"((Quarterly!BW145/Quarterly!BW144)^4)-1","v":9.2895271739980911E-2},{"$f":"((Quarterly!BX145/Quarterly!BX144)^4)-1","v":0.11199474133220644},{"$f":"((Quarterly!BY145/Quarterly!BY144)^4)-1","v":0.14774006846276211},"--",{"$f":"((Quarterly!CA145/Quarterly!CA144)^4)-1","v":-1.5806902955731728E-2},{"$f":"((Quarterly!CB145/Quarterly!CB144)^4)-1","v":1.2974241866080538E-2},{"$f":"((Quarterly!CC145/Quarterly!CC144)^4)-1","v":1.453094225622209E-2},"--","--",null,"--","--",null,{"$f":"((Quarterly!CJ145/Quarterly!CJ144)^4)-1","v":0.61866318210927029},{"$f":"((Quarterly!CK145/Quarterly!CK144)^4)-1","v":4.5641449455634753E-2},{"$f":"((Quarterly!CL145/Quarterly!CL144)^4)-1","v":-0.21135607543585022},{"$f":"((Quarterly!CM145/Quarterly!CM144)^4)-1","v":8.7223000418586771E-2},{"$f":"((Quarterly!CN145/Quarterly!CN144)^4)-1","v":1.7638075765975758E-2},{"$f":"((Quarterly!CO145/Quarterly!CO144)^4)-1","v":0.10170785410734573},{"$f":"((Quarterly!CP145/Quarterly!CP144)^4)-1","v":9.2075729763254621E-3},{"$f":"((Quarterly!CQ145/Quarterly!CQ144)^4)-1","v":1.4688750792997807E-2},{"$f":"((Quarterly!CR145/Quarterly!CR144)^4)-1","v":4.4251791046665767E-2},{"$f":"Quarterly!CS145-Quarterly!CS144","v":-2.8333333333333428},"--",null,null,null,null,null,{"$f":"((Quarterly!CZ145/Quarterly!CZ144)^4)-1","v":3.0885763802971145E-2},{"$f":"((Quarterly!DA145/Quarterly!DA144)^4)-1","v":3.1254833344620758E-2},null,null,null,null,null,{"$f":"((Quarterly!DG145/Quarterly!DG144)^4)-1","v":8.0563540755824725E-3},{"$f":"((Quarterly!DH145-Quarterly!DH144)*60)","v":-1.9999999999998863},{"$f":"Quarterly!DI145-Quarterly!DI144","v":0},"--",{"$f":"(Quarterly!DK145-Quarterly!DK144)*100","v":3.3333333333332327},{"$f":"((Quarterly!DL145/Quarterly!DL144)^4)-1","v":-1.0180343503225497E-2},null,null,null,{"$f":"((Quarterly!DP145/Quarterly!DP144)^4)-1","v":9.7068130183826096E-3},null,null,null,"--",{"$f":"Quarterly!DU145-Quarterly!DU144","v":0},{"$f":"((Quarterly!DV145/Quarterly!DV144)^4)-1","v":6.7771753278227376E-3},{"$f":"((Quarterly!DW145/Quarterly!DW144)^4)-1","v":7.0131926621557872E-2},{"$f":"((Quarterly!DX145/Quarterly!DX144)^4)-1","v":5.5315964244858851E-2},{"$f":"((Quarterly!DY145/Quarterly!DY144)^4)-1","v":0.15422391689708648},{"$f":"((Quarterly!DZ145/Quarterly!DZ144)^4)-1","v":2.4731828560311975E-2},{"$f":"((Quarterly!EA145/Quarterly!EA144)^4)-1","v":2.4318839253045343E-2},{"$f":"((Quarterly!EB145/Quarterly!EB144)^4)-1","v":2.5752267606678148E-2},{"$f":"((Quarterly!EC145/Quarterly!EC144)^4)-1","v":0.1089498820257504},null,null,null,null,null,{"$f":"((Quarterly!EI145/Quarterly!EI144)^4)-1","v":3.8886733761565262E-2},{"$f":"((Quarterly!EJ145/Quarterly!EJ144)^4)-1","v":3.9474189391510928E-2},{"$f":"((Quarterly!EK145/Quarterly!EK144)^4)-1","v":4.0249034012955098E-2},null,null,null,null,null,{"$f":"((Quarterly!EQ145/Quarterly!EQ144)^4)-1","v":2.4112596458127245E-2},{"$f":"((Quarterly!ER145/Quarterly!ER144)^4)-1","v":9.9824532418943956E-3},{"$f":"((Quarterly!ES145/Quarterly!ES144)^4)-1","v":9.3348258936385431E-3},null,null,null,null,null,{"$f":"(Quarterly!EY145-Quarterly!EY144)*100","v":-49.333333333333314},{"$f":"(Quarterly!EZ145-Quarterly!EZ144)*100","v":-51.333333333333321},{"$f":"(Quarterly!FA145-Quarterly!FA144)*100","v":-29.666666666666597},{"$f":"(Quarterly!FB145-Quarterly!FB144)*100","v":-42.666666666666764},-13.000000000000167,{"$f":"(Quarterly!FD145-Quarterly!FD144)*100","v":-66.666666666666785},{"$f":"(Quarterly!FE145-Quarterly!FE144)*100","v":-59.666666666666622},{"$f":"(Quarterly!FF145-Quarterly!FF144)*100","v":-80.333333333333329},{"$f":"(Quarterly!FG145-Quarterly!FG144)*100","v":-105.99999999999996},{"$f":"(Quarterly!FH145-Quarterly!FH144)*100","v":-104.33333333333348},{"$f":"(Quarterly!FI145-Quarterly!FI144)*100","v":-76.000000000000071},4.3333333333332575,null,null,null,null,null,{"$f":"((Quarterly!FP145/Quarterly!FP144)^4)-1","v":2.6042579830037216E-2},{"$f":"((Quarterly!FQ145/Quarterly!FQ144)^4)-1","v":-2.7417789701173589E-2},"--","--",{"$f":"((Quarterly!FT145/Quarterly!FT144)^4)-1","v":-7.5118365438013868E-2},{"$f":"((Quarterly!FU145/Quarterly!FU144)^4)-1","v":-0.16874306261570637},{"$f":"((Quarterly!FV145/Quarterly!FV144)^4)-1","v":-0.26758338303364015},{"$f":"((Quarterly!FW145/Quarterly!FW144)^4)-1","v":2.6203633359705858},{"$f":"((Quarterly!FX145/Quarterly!FX144)^4)-1","v":-7.982780774241216E-2},null,null,null,null,null,{"$f":"((Quarterly!GD145/Quarterly!GD144)^4)-1","v":9.4627853863956668E-2},{"$f":"((Quarterly!GE145/Quarterly!GE144)^4)-1","v":1.8807209704527983E-2},{"$f":"((Quarterly!GF145/Quarterly!GF144)^4)-1","v":8.3581481894202003E-2},{"$f":"((Quarterly!GG145/Quarterly!GG144)^4)-1","v":8.3581481894202003E-2},{"$f":"((Quarterly!GH145/Quarterly!GH144)^4)-1","v":{"$error":"#DIV/0!"}},"--","--",{"$f":"((Quarterly!GK145/Quarterly!GK144)^4)-1","v":{"$error":"#VALUE!"}},"--"]
["92'Q4",{"$f":"((Quarterly!B146/Quarterly!B145)^4)-1","v":6.913658630361863E-2},{"$f":"((Quarterly!C146/Quarterly!C145)^4)-1","v":4.0687169300656523E-2},{"$f":"((Quarterly!D146/Quarterly!D145)^4)-1","v":3.965247964853158E-2},{"$f":"((Quarterly!E146/Quarterly!E145)^4)-1","v":4.8416990092695844E-2},{"$f":"((Quarterly!F146/Quarterly!F145)^4)-1","v":8.1867140000285499E-2},{"$f":"((Quarterly!G146/Quarterly!G145)^4)-1","v":4.0667079298666975E-2},{"$f":"((Quarterly!H146/Quarterly!H145)^4)-1","v":4.7939129610966358E-2},{"$f":"((Quarterly!I146/Quarterly!I145)^4)-1","v":0.10957598202201879},{"$f":"((Quarterly!J146/Quarterly!J145)^4)-1","v":0.18792723456454286},{"$f":"((Quarterly!K146/Quarterly!K145)^4)-1","v":0.14277674170756671},{"$f":"((Quarterly!L146-Quarterly!L145))","v":3.416999999999998},{"$f":"((Quarterly!M146/Quarterly!M145)^4)-1","v":9.9246137458614658E-2},{"$f":"((Quarterly!N146/Quarterly!N145)^4)-1","v":2.0321645563893709E-2},{"$f":"((Quarterly!O146/Quarterly!O145)^4)-1","v":3.3652377756436911},{"$f":"((Quarterly!P146/Quarterly!P145)^4)-1","v":-8.5897309024056678E-3},{"$f":"((Quarterly!Q146/Quarterly!Q145)^4)-1","v":-0.1465573768539653},null,null,null,null,null,{"$f":"((Quarterly!W146/Quarterly!W145)^4)-1","v":5.0219612535442604E-3},{"$f":"((Quarterly!X146/Quarterly!X145)^4)-1","v":1.8306161208250238E-2},{"$f":"((Quarterly!Y146/Quarterly!Y145)^4)-1","v":-1.0479199974086972E-2},{"$f":"Quarterly!Z146-Quarterly!Z145","v":2.0000000000000018E-2},{"$f":"((Quarterly!AA146/Quarterly!AA145)^4)-1","v":9.8544965190770828E-2},{"$f":"((Quarterly!AB146/Quarterly!AB145)^4)-1","v":0.15286415075143633},{"$f":"Quarterly!AC146-Quarterly!AC145","v":-3.5},{"$f":"Quarterly!AD146-Quarterly!AD145","v":-8.7000000000000011},{"$f":"(Quarterly!AE146-Quarterly!AE145)*100","v":-35.000000000000007},{"$f":"(Quarterly!AF146-Quarterly!AF145)*100","v":2.0000000000000018},{"$f":"(Quarterly!AG146-Quarterly!AG145)*100","v":4.0000000000000036},"--","--","--","--","--",{"$f":"((Quarterly!AM146/Quarterly!AM145)^4)-1","v":4.2854386954679136E-2},{"$f":"((Quarterly!AN146/Quarterly!AN145)^4)-1","v":3.492989641390154E-2},"--",{"$f":"(Quarterly!AP146-Quarterly!AP145)*100","v":-0.33333333333331883},{"$f":"Quarterly!AQ146-Quarterly!AQ145","v":0.36666666666667425},"--","--",{"$f":"Quarterly!AT146-Quarterly!AT145","v":-6.6666666666662877E-2},{"$f":"Quarterly!AU146-Quarterly!AU145","v":-1.5000000000000142},{"$f":"Quarterly!AV146-Quarterly!AV145","v":0.69999999999999574},{"$f":"Quarterly!AW146-Quarterly!AW145","v":-1.8333333333333357},{"$f":"Quarterly!AX146-Quarterly!AX145","v":1.3999999999999986},{"$f":"Quarterly!AY146-Quarterly!AY145","v":-8.3333333333333357},{"$f":"Quarterly!AZ146-Quarterly!AZ145","v":1.0333333333333385},{"$f":"Quarterly!BA146-Quarterly!BA145","v":-0.86666666666666714},"--",{"$f":"((Quarterly!BC146/Quarterly!BC145)^4)-1","v":8.3132950962719221E-2},{"$f":"((Quarterly!BD146/Quarterly!BD145)^4)-1","v":-6.4667365116388709E-4},{"$f":"((Quarterly!BE146/Quarterly!BE145)^4)-1","v":7.3142951083079666E-2},{"$f":"((Quarterly!BF146/Quarterly!BF145)^4)-1","v":2.9750128648057039E-2},{"$f":"((Quarterly!BG146/Quarterly!BG145)^4)-1","v":2.5396676269761276E-2},{"$f":"((Quarterly!BH146/Quarterly!BH145)^4)-1","v":-9.0968388583800852E-4},{"$f":"((Quarterly!BI146/Quarterly!BI145)^4)-1","v":4.2551552320486685E-3},{"$f":"((Quarterly!BJ146/Quarterly!BJ145)^4)-1","v":0.5534266864378441},{"$f":"((Quarterly!BK146/Quarterly!BK145)^4)-1","v":6.0589186005596041E-2},null,{"$f":"((Quarterly!BM146/Quarterly!BM145)^4)-1","v":8.3289106235213017E-2},{"$f":"((Quarterly!BN146/Quarterly!BN145)^4)-1","v":7.4316383192990276E-2},null,null,null,null,null,{"$f":"((Quarterly!BT146/Quarterly!BT145)^4)-1","v":-2.1343317041088383E-2},{"$f":"Quarterly!BU146-Quarterly!BU145","v":-7.3900000000000077E-2},{"$f":"Quarterly!BV146-Quarterly!BV145","v":-5.7660000000000267E-2},{"$f":"((Quarterly!BW146/Quarterly!BW145)^4)-1","v":9.2933020221391605E-2},{"$f":"((Quarterly!BX146/Quarterly!BX145)^4)-1","v":0.15970433234678505},{"$f":"((Quarterly!BY146/Quarterly!BY145)^4)-1","v":0.19320107944402665},"--",{"$f":"((Quarterly!CA146/Quarterly!CA145)^4)-1","v":0.16665048236509272},{"$f":"((Quarterly!CB146/Quarterly!CB145)^4)-1","v":-7.9381527335809499E-2},{"$f":"((Quarterly!CC146/Quarterly!CC145)^4)-1","v":-9.7356272849609571E-2},"--","--",null,"--","--",null,{"$f":"((Quarterly!CJ146/Quarterly!CJ145)^4)-1","v":-5.7273884635317129E-2},{"$f":"((Quarterly!CK146/Quarterly!CK145)^4)-1","v":5.5228493650150368E-2},{"$f":"((Quarterly!CL146/Quarterly!CL145)^4)-1","v":-0.21029345424641244},{"$f":"((Quarterly!CM146/Quarterly!CM145)^4)-1","v":0.29135269754543991},{"$f":"((Quarterly!CN146/Quarterly!CN145)^4)-1","v":1.3718379898473465E-2},{"$f":"((Quarterly!CO146/Quarterly!CO145)^4)-1","v":0.10566146600469462},{"$f":"((Quarterly!CP146/Quarterly!CP145)^4)-1","v":1.7260586644714193E-2},{"$f":"((Quarterly!CQ146/Quarterly!CQ145)^4)-1","v":1.4315386911869732E-2},{"$f":"((Quarterly!CR146/Quarterly!CR145)^4)-1","v":6.5474306848186892E-2},{"$f":"Quarterly!CS146-Quarterly!CS145","v":7.1000000000000085},"--",null,null,null,null,null,{"$f":"((Quarterly!CZ146/Quarterly!CZ145)^4)-1","v":3.550094292854844E-2},{"$f":"((Quarterly!DA146/Quarterly!DA145)^4)-1","v":3.6559321579802573E-2},null,null,null,null,null,{"$f":"((Quarterly!DG146/Quarterly!DG145)^4)-1","v":1.6128707083559179E-2},{"$f":"((Quarterly!DH146-Quarterly!DH145)*60)","v":-1.9999999999998863},{"$f":"Quarterly!DI146-Quarterly!DI145","v":-0.33333333333334281},"--",{"$f":"(Quarterly!DK146-Quarterly!DK145)*100","v":-26.666666666666572},{"$f":"((Quarterly!DL146/Quarterly!DL145)^4)-1","v":-6.7339161116255486E-3},null,null,null,{"$f":"((Quarterly!DP146/Quarterly!DP145)^4)-1","v":1.5219808278877478E-2},null,null,null,"--",{"$f":"Quarterly!DU146-Quarterly!DU145","v":0.43333333333333357},{"$f":"((Quarterly!DV146/Quarterly!DV145)^4)-1","v":4.4717391156589459E-2},{"$f":"((Quarterly!DW146/Quarterly!DW145)^4)-1","v":4.1628365793722866E-2},{"$f":"((Quarterly!DX146/Quarterly!DX145)^4)-1","v":4.6118085569665457E-2},{"$f":"((Quarterly!DY146/Quarterly!DY145)^4)-1","v":3.5689750243684149E-2},{"$f":"((Quarterly!DZ146/Quarterly!DZ145)^4)-1","v":4.9610085444174112E-2},{"$f":"((Quarterly!EA146/Quarterly!EA145)^4)-1","v":4.8134651676150053E-2},{"$f":"((Quarterly!EB146/Quarterly!EB145)^4)-1","v":5.3259161122197751E-2},{"$f":"((Quarterly!EC146/Quarterly!EC145)^4)-1","v":3.0289578839062692E-2},null,null,null,null,null,{"$f":"((Quarterly!EI146/Quarterly!EI145)^4)-1","v":6.6361772766259541E-2},{"$f":"((Quarterly!EJ146/Quarterly!EJ145)^4)-1","v":6.3047841885256473E-2},{"$f":"((Quarterly!EK146/Quarterly!EK145)^4)-1","v":5.5701721954528161E-2},null,null,null,null,null,{"$f":"((Quarterly!EQ146/Quarterly!EQ145)^4)-1","v":-1.1307419364580129E-3},{"$f":"((Quarterly!ER146/Quarterly!ER145)^4)-1","v":1.998938713197651E-2},{"$f":"((Quarterly!ES146/Quarterly!ES145)^4)-1","v":1.8691083338655323E-2},null,null,null,null,null,{"$f":"(Quarterly!EY146-Quarterly!EY145)*100","v":-0.66666666666668206},{"$f":"(Quarterly!EZ146-Quarterly!EZ145)*100","v":-21.999999999999975},{"$f":"(Quarterly!FA146-Quarterly!FA145)*100","v":4.333333333333389},{"$f":"(Quarterly!FB146-Quarterly!FB145)*100","v":16.666666666666607},12.333333333333218,{"$f":"(Quarterly!FD146-Quarterly!FD145)*100","v":19.666666666666544},{"$f":"(Quarterly!FE146-Quarterly!FE145)*100","v":-1.3333333333333197},{"$f":"(Quarterly!FF146-Quarterly!FF145)*100","v":14.666666666666739},{"$f":"(Quarterly!FG146-Quarterly!FG145)*100","v":29.666666666666597},{"$f":"(Quarterly!FH146-Quarterly!FH145)*100","v":29.999999999999982},{"$f":"(Quarterly!FI146-Quarterly!FI145)*100","v":12.666666666666604},-2.000000000000135,null,null,null,null,null,{"$f":"((Quarterly!FP146/Quarterly!FP145)^4)-1","v":0.21463319370944722},{"$f":"((Quarterly!FQ146/Quarterly!FQ145)^4)-1","v":0.14633342457569287},"--","--",{"$f":"((Quarterly!FT146/Quarterly!FT145)^4)-1","v":0.23458001500193237},{"$f":"((Quarterly!FU146/Quarterly!FU145)^4)-1","v":0.25331453073279686},{"$f":"((Quarterly!FV146/Quarterly!FV145)^4)-1","v":0.39203931309675255},{"$f":"((Quarterly!FW146/Quarterly!FW145)^4)-1","v":-0.34322231265765724},{"$f":"((Quarterly!FX146/Quarterly!FX145)^4)-1","v":0.18327542465406732},null,null,null,null,null,{"$f":"((Quarterly!GD146/Quarterly!GD145)^4)-1","v":-0.20242300800677082},{"$f":"((Quarterly!GE146/Quarterly!GE145)^4)-1","v":-0.16408273366258319},{"$f":"((Quarterly!GF146/Quarterly!GF145)^4)-1","v":6.1532432017374905E-3},{"$f":"((Quarterly!GG146/Quarterly!GG145)^4)-1","v":6.1532432017374905E-3},{"$f":"((Quarterly!GH146/Quarterly!GH145)^4)-1","v":{"$error":"#DIV/0!"}},"--","--",{"$f":"((Quarterly!GK146/Quarterly!GK145)^4)-1","v":{"$error":"#VALUE!"}},"--"]
["93'Q1",{"$f":"((Quarterly!B147/Quarterly!B146)^4)-1","v":3.0581903814452582E-2},{"$f":"((Quarterly!C147/Quarterly!C146)^4)-1","v":7.4782548770009338E-3},{"$f":"((Quarterly!D147/Quarterly!D146)^4)-1","v":-2.7972476307807081E-3},{"$f":"((Quarterly!E147/Quarterly!E146)^4)-1","v":1.530969844298169E-2},{"$f":"((Quarterly!F147/Quarterly!F146)^4)-1","v":3.942845133361117E-2},{"$f":"((Quarterly!G147/Quarterly!G146)^4)-1","v":4.0264674649557186E-3},{"$f":"((Quarterly!H147/Quarterly!H146)^4)-1","v":1.6944586969760644E-2},{"$f":"((Quarterly!I147/Quarterly!I146)^4)-1","v":3.9761497071968632E-2},{"$f":"((Quarterly!J147/Quarterly!J146)^4)-1","v":4.9277911235859451E-2},{"$f":"((Quarterly!K147/Quarterly!K146)^4)-1","v":1.8601875984801231E-2},{"$f":"((Quarterly!L147-Quarterly!L146))","v":19.343},{"$f":"((Quarterly!M147/Quarterly!M146)^4)-1","v":8.9455400281768016E-2},{"$f":"((Quarterly!N147/Quarterly!N146)^4)-1","v":9.1208924739956121E-3},{"$f":"((Quarterly!O147/Quarterly!O146)^4)-1","v":2.0563254245703568},{"$f":"((Quarterly!P147/Quarterly!P146)^4)-1","v":-4.4588772414926314E-2},{"$f":"((Quarterly!Q147/Quarterly!Q146)^4)-1","v":0.1271066344860301},null,null,null,null,null,{"$f":"((Quarterly!W147/Quarterly!W146)^4)-1","v":2.0175909501242151E-2},{"$f":"((Quarterly!X147/Quarterly!X146)^4)-1","v":1.6555939758905902E-2},{"$f":"((Quarterly!Y147/Quarterly!Y146)^4)-1","v":-2.2056838901396203E-2},{"$f":"Quarterly!Z147-Quarterly!Z146","v":-0.66000000000000014},{"$f":"((Quarterly!AA147/Quarterly!AA146)^4)-1","v":-2.2211260054347925E-2},{"$f":"((Quarterly!AB147/Quarterly!AB146)^4)-1","v":-8.8886997848384386E-2},{"$f":"Quarterly!AC147-Quarterly!AC146","v":10.399999999999999},{"$f":"Quarterly!AD147-Quarterly!AD146","v":34},{"$f":"(Quarterly!AE147-Quarterly!AE146)*100","v":-14.999999999999991},{"$f":"(Quarterly!AF147-Quarterly!AF146)*100","v":-66.000000000000014},{"$f":"(Quarterly!AG147-Quarterly!AG146)*100","v":-45.000000000000007},"--","--","--","--","--",{"$f":"((Quarterly!AM147/Quarterly!AM146)^4)-1","v":3.5790136146557794E-2},{"$f":"((Quarterly!AN147/Quarterly!AN146)^4)-1","v":4.3210204989712286E-2},"--",{"$f":"(Quarterly!AP147-Quarterly!AP146)*100","v":-0.66666666666668206},{"$f":"Quarterly!AQ147-Quarterly!AQ146","v":2.1333333333333258},"--","--",{"$f":"Quarterly!AT147-Quarterly!AT146","v":1.0999999999999943},{"$f":"Quarterly!AU147-Quarterly!AU146","v":-0.29999999999999716},{"$f":"Quarterly!AV147-Quarterly!AV146","v":0.40000000000000568},{"$f":"Quarterly!AW147-Quarterly!AW146","v":0.6666666666666714},{"$f":"Quarterly!AX147-Quarterly!AX146","v":2.4000000000000057},{"$f":"Quarterly!AY147-Quarterly!AY146","v":6.93333333333333},{"$f":"Quarterly!AZ147-Quarterly!AZ146","v":3.4999999999999929},{"$f":"Quarterly!BA147-Quarterly!BA146","v":1.7666666666666586},"--",{"$f":"((Quarterly!BC147/Quarterly!BC146)^4)-1","v":-5.9605910379205373E-2},{"$f":"((Quarterly!BD147/Quarterly!BD146)^4)-1","v":2.7889595968504377E-2},{"$f":"((Quarterly!BE147/Quarterly!BE146)^4)-1","v":-0.19231047676018276},{"$f":"((Quarterly!BF147/Quarterly!BF146)^4)-1","v":-3.6722884534549083E-2},{"$f":"((Quarterly!BG147/Quarterly!BG146)^4)-1","v":-3.0915144373079073E-2},{"$f":"((Quarterly!BH147/Quarterly!BH146)^4)-1","v":-5.6350715554120523E-2},{"$f":"((Quarterly!BI147/Quarterly!BI146)^4)-1","v":-6.0068022333422677E-3},{"$f":"((Quarterly!BJ147/Quarterly!BJ146)^4)-1","v":6.4701259239372311E-2},{"$f":"((Quarterly!BK147/Quarterly!BK146)^4)-1","v":-0.92786415454131066},null,{"$f":"((Quarterly!BM147/Quarterly!BM146)^4)-1","v":5.1278022474735119E-2},{"$f":"((Quarterly!BN147/Quarterly!BN146)^4)-1","v":5.2035359977647522E-2},null,null,null,null,null,{"$f":"((Quarterly!BT147/Quarterly!BT146)^4)-1","v":6.2127584322574148E-2},{"$f":"Quarterly!BU147-Quarterly!BU146","v":-5.5459999999998288E-2},{"$f":"Quarterly!BV147-Quarterly!BV146","v":-0.10860999999999876},{"$f":"((Quarterly!BW147/Quarterly!BW146)^4)-1","v":8.4479712127874862E-2},{"$f":"((Quarterly!BX147/Quarterly!BX146)^4)-1","v":-0.18339773442764651},{"$f":"((Quarterly!BY147/Quarterly!BY146)^4)-1","v":-5.1513293226966739E-2},"--",{"$f":"((Quarterly!CA147/Quarterly!CA146)^4)-1","v":-8.8095120014354933E-2},{"$f":"((Quarterly!CB147/Quarterly!CB146)^4)-1","v":-6.7753286461050499E-2},{"$f":"((Quarterly!CC147/Quarterly!CC146)^4)-1","v":-8.5496044178428154E-2},"--","--",null,"--","--",null,{"$f":"((Quarterly!CJ147/Quarterly!CJ146)^4)-1","v":-0.16483222557157817},{"$f":"((Quarterly!CK147/Quarterly!CK146)^4)-1","v":2.5072417797054269E-2},{"$f":"((Quarterly!CL147/Quarterly!CL146)^4)-1","v":0.11150901296259463},{"$f":"((Quarterly!CM147/Quarterly!CM146)^4)-1","v":-0.16383345320598519},{"$f":"((Quarterly!CN147/Quarterly!CN146)^4)-1","v":2.2682938632577754E-2},{"$f":"((Quarterly!CO147/Quarterly!CO146)^4)-1","v":2.2990837764537142E-2},{"$f":"((Quarterly!CP147/Quarterly!CP146)^4)-1","v":4.8470643561980165E-2},{"$f":"((Quarterly!CQ147/Quarterly!CQ146)^4)-1","v":1.2084008366181953E-2},{"$f":"((Quarterly!CR147/Quarterly!CR146)^4)-1","v":0.1015882190057289},{"$f":"Quarterly!CS147-Quarterly!CS146","v":4.0666666666666487},"--",null,null,null,null,null,{"$f":"((Quarterly!CZ147/Quarterly!CZ146)^4)-1","v":2.9420271933121578E-2},{"$f":"((Quarterly!DA147/Quarterly!DA146)^4)-1","v":3.5310711152373164E-2},null,null,null,null,null,{"$f":"((Quarterly!DG147/Quarterly!DG146)^4)-1","v":3.8877634292127317E-2},{"$f":"((Quarterly!DH147-Quarterly!DH146)*60)","v":1.99999999999946},{"$f":"Quarterly!DI147-Quarterly!DI146","v":-6.6666666666662877E-2},"--",{"$f":"(Quarterly!DK147-Quarterly!DK146)*100","v":-23.333333333333428},{"$f":"((Quarterly!DL147/Quarterly!DL146)^4)-1","v":9.0203685923895272E-3},null,null,null,{"$f":"((Quarterly!DP147/Quarterly!DP146)^4)-1","v":2.3688620730899945E-2},null,null,null,"--",{"$f":"Quarterly!DU147-Quarterly!DU146","v":-0.56666666666666643},{"$f":"((Quarterly!DV147/Quarterly!DV146)^4)-1","v":7.3586953341570061E-2},{"$f":"((Quarterly!DW147/Quarterly!DW146)^4)-1","v":-3.8018325953643073E-2},{"$f":"((Quarterly!DX147/Quarterly!DX146)^4)-1","v":-2.166352208840161E-2},{"$f":"((Quarterly!DY147/Quarterly!DY146)^4)-1","v":-0.13782913883249992},{"$f":"((Quarterly!DZ147/Quarterly!DZ146)^4)-1","v":1.9390170198692713E-2},{"$f":"((Quarterly!EA147/Quarterly!EA146)^4)-1","v":2.1385474617857891E-2},{"$f":"((Quarterly!EB147/Quarterly!EB146)^4)-1","v":1.4482851553795806E-2},{"$f":"((Quarterly!EC147/Quarterly!EC146)^4)-1","v":-7.8789927005595506E-2},null,null,null,null,null,{"$f":"((Quarterly!EI147/Quarterly!EI146)^4)-1","v":1.7307269576082307E-2},{"$f":"((Quarterly!EJ147/Quarterly!EJ146)^4)-1","v":2.2748734702222162E-2},{"$f":"((Quarterly!EK147/Quarterly!EK146)^4)-1","v":2.1274438435193721E-2},null,null,null,null,null,{"$f":"((Quarterly!EQ147/Quarterly!EQ146)^4)-1","v":1.8227956045876015E-2},{"$f":"((Quarterly!ER147/Quarterly!ER146)^4)-1","v":2.390332798505157E-2},{"$f":"((Quarterly!ES147/Quarterly!ES146)^4)-1","v":2.3817726986173682E-2},null,null,null,null,null,{"$f":"(Quarterly!EY147-Quarterly!EY146)*100","v":0},{"$f":"(Quarterly!EZ147-Quarterly!EZ146)*100","v":0.33333333333329662},{"$f":"(Quarterly!FA147-Quarterly!FA146)*100","v":-28.999999999999915},{"$f":"(Quarterly!FB147-Quarterly!FB146)*100","v":-46.666666666666501},-17.666666666666586,{"$f":"(Quarterly!FD147-Quarterly!FD146)*100","v":-47.333333333333186},{"$f":"(Quarterly!FE147-Quarterly!FE146)*100","v":-11.000000000000076},{"$f":"(Quarterly!FF147-Quarterly!FF146)*100","v":-15.666666666666718},{"$f":"(Quarterly!FG147-Quarterly!FG146)*100","v":-29.666666666666774},{"$f":"(Quarterly!FH147-Quarterly!FH146)*100","v":-42.333333333333286},{"$f":"(Quarterly!FI147-Quarterly!FI146)*100","v":-46.333333333333293},-30.666666666666575,null,null,null,null,null,{"$f":"((Quarterly!FP147/Quarterly!FP146)^4)-1","v":0},{"$f":"((Quarterly!FQ147/Quarterly!FQ146)^4)-1","v":8.2544208746494929E-2},"--","--",{"$f":"((Quarterly!FT147/Quarterly!FT146)^4)-1","v":0.14882061888703624},{"$f":"((Quarterly!FU147/Quarterly!FU146)^4)-1","v":0.110761701756807},{"$f":"((Quarterly!FV147/Quarterly!FV146)^4)-1","v":0.13039166979787353},{"$f":"((Quarterly!FW147/Quarterly!FW146)^4)-1","v":-0.44047360860513785},{"$f":"((Quarterly!FX147/Quarterly!FX146)^4)-1","v":-1.2108630336774562E-3},null,null,null,null,null,{"$f":"((Quarterly!GD147/Quarterly!GD146)^4)-1","v":-0.12175072499231288},{"$f":"((Quarterly!GE147/Quarterly!GE146)^4)-1","v":-0.19021605097005467},{"$f":"((Quarterly!GF147/Quarterly!GF146)^4)-1","v":-0.11947319047989013},{"$f":"((Quarterly!GG147/Quarterly!GG146)^4)-1","v":-0.11947319047989013},{"$f":"((Quarterly!GH147/Quarterly!GH146)^4)-1","v":{"$error":"#DIV/0!"}},"--","--",{"$f":"((Quarterly!GK147/Quarterly!GK146)^4)-1","v":{"$error":"#VALUE!"}},"--"]
["93'Q2",{"$f":"((Quarterly!B148/Quarterly!B147)^4)-1","v":4.9137472303925067E-2},{"$f":"((Quarterly!C148/Quarterly!C147)^4)-1","v":2.3999352077363145E-2},{"$f":"((Quarterly!D148/Quarterly!D147)^4)-1","v":3.1797490013075969E-2},{"$f":"((Quarterly!E148/Quarterly!E147)^4)-1","v":3.640345109222598E-2},{"$f":"((Quarterly!F148/Quarterly!F147)^4)-1","v":0.13635017656642567},{"$f":"((Quarterly!G148/Quarterly!G147)^4)-1","v":3.2213171852929046E-2},{"$f":"((Quarterly!H148/Quarterly!H147)^4)-1","v":2.8403193361295154E-2},{"$f":"((Quarterly!I148/Quarterly!I147)^4)-1","v":8.046488447473954E-2},{"$f":"((Quarterly!J148/Quarterly!J147)^4)-1","v":0.12282897394536563},{"$f":"((Quarterly!K148/Quarterly!K147)^4)-1","v":4.7270931107239234E-2},{"$f":"((Quarterly!L148-Quarterly!L147))","v":-14.954999999999998},{"$f":"((Quarterly!M148/Quarterly!M147)^4)-1","v":8.523809717171682E-2},{"$f":"((Quarterly!N148/Quarterly!N147)^4)-1","v":4.8810088474386282E-2},{"$f":"((Quarterly!O148/Quarterly!O147)^4)-1","v":0.58849121525889081},{"$f":"((Quarterly!P148/Quarterly!P147)^4)-1","v":4.474284974312015E-3},{"$f":"((Quarterly!Q148/Quarterly!Q147)^4)-1","v":-0.34861976847393572},null,null,null,null,null,{"$f":"((Quarterly!W148/Quarterly!W147)^4)-1","v":-4.9720226916325494E-3},{"$f":"((Quarterly!X148/Quarterly!X147)^4)-1","v":-8.1682235336814069E-3},{"$f":"((Quarterly!Y148/Quarterly!Y147)^4)-1","v":-3.5959605921806359E-2},{"$f":"Quarterly!Z148-Quarterly!Z147","v":6.0000000000000053E-2},{"$f":"((Quarterly!AA148/Quarterly!AA147)^4)-1","v":0.20281196529587553},{"$f":"((Quarterly!AB148/Quarterly!AB147)^4)-1","v":0.21568825532298197},{"$f":"Quarterly!AC148-Quarterly!AC147","v":3.4000000000000021},{"$f":"Quarterly!AD148-Quarterly!AD147","v":-19.900000000000002},{"$f":"(Quarterly!AE148-Quarterly!AE147)*100","v":-29.000000000000004},{"$f":"(Quarterly!AF148-Quarterly!AF147)*100","v":6.0000000000000053},{"$f":"(Quarterly!AG148-Quarterly!AG147)*100","v":2.0000000000000018},"--","--","--","--","--",{"$f":"((Quarterly!AM148/Quarterly!AM147)^4)-1","v":8.8655170843638942E-3},{"$f":"((Quarterly!AN148/Quarterly!AN147)^4)-1","v":1.4813085532686454E-2},"--",{"$f":"(Quarterly!AP148-Quarterly!AP147)*100","v":-0.66666666666665986},{"$f":"Quarterly!AQ148-Quarterly!AQ147","v":-4.5},{"$f":"Quarterly!AR148-Quarterly!AR147","v":-4.1666666666666643},"--",{"$f":"Quarterly!AT148-Quarterly!AT147","v":-3.1333333333333258},{"$f":"Quarterly!AU148-Quarterly!AU147","v":0.40000000000000568},{"$f":"Quarterly!AV148-Quarterly!AV147","v":-0.3333333333333357},{"$f":"Quarterly!AW148-Quarterly!AW147","v":1.5},{"$f":"Quarterly!AX148-Quarterly!AX147","v":-7},{"$f":"Quarterly!AY148-Quarterly!AY147","v":-0.56666666666666288},{"$f":"Quarterly!AZ148-Quarterly!AZ147","v":-7.3333333333333357},{"$f":"Quarterly!BA148-Quarterly!BA147","v":-0.6666666666666643},"--",{"$f":"((Quarterly!BC148/Quarterly!BC147)^4)-1","v":0.11584664973194347},{"$f":"((Quarterly!BD148/Quarterly!BD147)^4)-1","v":-6.6937029019809025E-3},{"$f":"((Quarterly!BE148/Quarterly!BE147)^4)-1","v":0.16221791249918716},{"$f":"((Quarterly!BF148/Quarterly!BF147)^4)-1","v":3.0691374393748916E-2},{"$f":"((Quarterly!BG148/Quarterly!BG147)^4)-1","v":-2.2908491308191392E-2},{"$f":"((Quarterly!BH148/Quarterly!BH147)^4)-1","v":1.6049311941328526E-3},{"$f":"((Quarterly!BI148/Quarterly!BI147)^4)-1","v":5.4864870464619742E-2},{"$f":"((Quarterly!BJ148/Quarterly!BJ147)^4)-1","v":0.50794122530243979},{"$f":"((Quarterly!BK148/Quarterly!BK147)^4)-1","v":0.38334181827640657},null,{"$f":"((Quarterly!BM148/Quarterly!BM147)^4)-1","v":9.7269968719278621E-2},{"$f":"((Quarterly!BN148/Quarterly!BN147)^4)-1","v":9.9088379925331704E-2},null,null,null,null,null,{"$f":"((Quarterly!BT148/Quarterly!BT147)^4)-1","v":5.0390004688452894E-2},{"$f":"Quarterly!BU148-Quarterly!BU147","v":-5.1210000000001088E-2},{"$f":"Quarterly!BV148-Quarterly!BV147","v":-5.926000000000009E-2},{"$f":"((Quarterly!BW148/Quarterly!BW147)^4)-1","v":9.1104465952799529E-2},{"$f":"((Quarterly!BX148/Quarterly!BX147)^4)-1","v":0.38184487554926427},{"$f":"((Quarterly!BY148/Quarterly!BY147)^4)-1","v":-4.0769314102280907E-2},"--",{"$f":"((Quarterly!CA148/Quarterly!CA147)^4)-1","v":0.43826267644301464},{"$f":"((Quarterly!CB148/Quarterly!CB147)^4)-1","v":-4.3830930070603902E-2},{"$f":"((Quarterly!CC148/Quarterly!CC147)^4)-1","v":-4.1560828885774281E-2},"--","--",null,"--","--",null,{"$f":"((Quarterly!CJ148/Quarterly!CJ147)^4)-1","v":0.45761092410814297},{"$f":"((Quarterly!CK148/Quarterly!CK147)^4)-1","v":5.0469478574229676E-2},{"$f":"((Quarterly!CL148/Quarterly!CL147)^4)-1","v":-0.24169217190914383},{"$f":"((Quarterly!CM148/Quarterly!CM147)^4)-1","v":0.30720036149818242},{"$f":"((Quarterly!CN148/Quarterly!CN147)^4)-1","v":7.05598094560278E-3},{"$f":"((Quarterly!CO148/Quarterly!CO147)^4)-1","v":3.4089802538314506E-2},{"$f":"((Quarterly!CP148/Quarterly!CP147)^4)-1","v":4.3849229365755082E-2},{"$f":"((Quarterly!CQ148/Quarterly!CQ147)^4)-1","v":1.1933303043430321E-2},{"$f":"((Quarterly!CR148/Quarterly!CR147)^4)-1","v":7.7459241583234251E-2},{"$f":"Quarterly!CS148-Quarterly!CS147","v":-4.7999999999999972},"--",null,null,null,null,null,{"$f":"((Quarterly!CZ148/Quarterly!CZ147)^4)-1","v":2.920547766678272E-2},{"$f":"((Quarterly!DA148/Quarterly!DA147)^4)-1","v":3.4092962690094764E-2},null,null,null,null,null,{"$f":"((Quarterly!DG148/Quarterly!DG147)^4)-1","v":3.6877290683670294E-2},{"$f":"((Quarterly!DH148-Quarterly!DH147)*60)","v":6.0000000000000853},{"$f":"Quarterly!DI148-Quarterly!DI147","v":0.13333333333332575},"--",{"$f":"(Quarterly!DK148-Quarterly!DK147)*100","v":-6.666666666666643},{"$f":"((Quarterly!DL148/Quarterly!DL147)^4)-1","v":-8.7820266617016918E-3},null,null,null,{"$f":"((Quarterly!DP148/Quarterly!DP147)^4)-1","v":2.178563995909566E-2},null,null,null,"--",{"$f":"Quarterly!DU148-Quarterly!DU147","v":-0.26666666666666572},{"$f":"((Quarterly!DV148/Quarterly!DV147)^4)-1","v":2.1483666155366787E-2},{"$f":"((Quarterly!DW148/Quarterly!DW147)^4)-1","v":7.9066314942233928E-2},{"$f":"((Quarterly!DX148/Quarterly!DX147)^4)-1","v":7.1003467386560937E-2},{"$f":"((Quarterly!DY148/Quarterly!DY147)^4)-1","v":0.12287408873644901},{"$f":"((Quarterly!DZ148/Quarterly!DZ147)^4)-1","v":5.4868700673776027E-2},{"$f":"((Quarterly!EA148/Quarterly!EA147)^4)-1","v":5.5882745552562785E-2},{"$f":"((Quarterly!EB148/Quarterly!EB147)^4)-1","v":5.2367264139759229E-2},{"$f":"((Quarterly!EC148/Quarterly!EC147)^4)-1","v":0.10014690104237101},null,null,null,null,null,{"$f":"((Quarterly!EI148/Quarterly!EI147)^4)-1","v":4.5488077949656036E-2},{"$f":"((Quarterly!EJ148/Quarterly!EJ147)^4)-1","v":4.3205110072690456E-2},{"$f":"((Quarterly!EK148/Quarterly!EK147)^4)-1","v":3.6436368514971118E-2},null,null,null,null,null,{"$f":"((Quarterly!EQ148/Quarterly!EQ147)^4)-1","v":3.8852647256908623E-2},{"$f":"((Quarterly!ER148/Quarterly!ER147)^4)-1","v":1.8776510466559815E-2},{"$f":"((Quarterly!ES148/Quarterly!ES147)^4)-1","v":1.436242727639514E-2},null,null,null,null,null,{"$f":"(Quarterly!EY148-Quarterly!EY147)*100","v":0},{"$f":"(Quarterly!EZ148-Quarterly!EZ147)*100","v":-3.9999999999999591},{"$f":"(Quarterly!FA148-Quarterly!FA147)*100","v":-32.666666666666799},{"$f":"(Quarterly!FB148-Quarterly!FB147)*100","v":-26.333333333333364},6.3333333333334352,{"$f":"(Quarterly!FD148-Quarterly!FD147)*100","v":-28.000000000000025},{"$f":"(Quarterly!FE148-Quarterly!FE147)*100","v":0.66666666666672647},{"$f":"(Quarterly!FF148-Quarterly!FF147)*100","v":-2.6666666666666394},{"$f":"(Quarterly!FG148-Quarterly!FG147)*100","v":-15.333333333333199},{"$f":"(Quarterly!FH148-Quarterly!FH147)*100","v":-29.999999999999982},{"$f":"(Quarterly!FI148-Quarterly!FI147)*100","v":-29.000000000000092},-26.333333333333453,null,null,null,null,null,{"$f":"((Quarterly!FP148/Quarterly!FP147)^4)-1","v":2.7328415052905619E-2},{"$f":"((Quarterly!FQ148/Quarterly!FQ147)^4)-1","v":-2.3518212632346436E-2},"--","--",{"$f":"((Quarterly!FT148/Quarterly!FT147)^4)-1","v":-1.3831489522001528E-2},{"$f":"((Quarterly!FU148/Quarterly!FU147)^4)-1","v":-0.12231877992053353},{"$f":"((Quarterly!FV148/Quarterly!FV147)^4)-1","v":0.46548934977607992},{"$f":"((Quarterly!FW148/Quarterly!FW147)^4)-1","v":1.070176099801107},{"$f":"((Quarterly!FX148/Quarterly!FX147)^4)-1","v":0.45194923867896364},null,null,null,null,null,{"$f":"((Quarterly!GD148/Quarterly!GD147)^4)-1","v":-1.3050396173117318E-2},{"$f":"((Quarterly!GE148/Quarterly!GE147)^4)-1","v":1.3239981689462388E-2},{"$f":"((Quarterly!GF148/Quarterly!GF147)^4)-1","v":2.4905254563432289E-2},{"$f":"((Quarterly!GG148/Quarterly!GG147)^4)-1","v":2.4905254563432289E-2},{"$f":"((Quarterly!GH148/Quarterly!GH147)^4)-1","v":{"$error":"#DIV/0!"}},"--","--",{"$f":"((Quarterly!GK148/Quarterly!GK147)^4)-1","v":{"$error":"#VALUE!"}},"--"]
["93'Q3",{"$f":"((Quarterly!B149/Quarterly!B148)^4)-1","v":4.4430249984050985E-2},{"$f":"((Quarterly!C149/Quarterly!C148)^4)-1","v":1.9649686715322856E-2},{"$f":"((Quarterly!D149/Quarterly!D148)^4)-1","v":3.4265004787962017E-2},{"$f":"((Quarterly!E149/Quarterly!E148)^4)-1","v":4.4835634362209609E-2},{"$f":"((Quarterly!F149/Quarterly!F148)^4)-1","v":4.5304410965312458E-2},{"$f":"((Quarterly!G149/Quarterly!G148)^4)-1","v":4.0139626609588364E-2},{"$f":"((Quarterly!H149/Quarterly!H148)^4)-1","v":4.6434364358110436E-2},{"$f":"((Quarterly!I149/Quarterly!I148)^4)-1","v":3.2922857603891353E-2},{"$f":"((Quarterly!J149/Quarterly!J148)^4)-1","v":3.2985524784576947E-2},{"$f":"((Quarterly!K149/Quarterly!K148)^4)-1","v":0.14610759420437525},{"$f":"((Quarterly!L149-Quarterly!L148))","v":-28.969000000000001},{"$f":"((Quarterly!M149/Quarterly!M148)^4)-1","v":5.3725980401330586E-2},{"$f":"((Quarterly!N149/Quarterly!N148)^4)-1","v":-1.0611263862926212E-2},{"$f":"((Quarterly!O149/Quarterly!O148)^4)-1","v":0.9451271344378458},{"$f":"((Quarterly!P149/Quarterly!P148)^4)-1","v":8.5132408048347319E-3},{"$f":"((Quarterly!Q149/Quarterly!Q148)^4)-1","v":0.15442376368291733},null,null,null,null,null,{"$f":"((Quarterly!W149/Quarterly!W148)^4)-1","v":-9.9378111382610879E-3},{"$f":"((Quarterly!X149/Quarterly!X148)^4)-1","v":-1.6410252954901505E-3},{"$f":"((Quarterly!Y149/Quarterly!Y148)^4)-1","v":-6.8512177530918317E-3},{"$f":"Quarterly!Z149-Quarterly!Z148","v":-4.0000000000000036E-2},{"$f":"((Quarterly!AA149/Quarterly!AA148)^4)-1","v":0.16696837958064381},{"$f":"((Quarterly!AB149/Quarterly!AB148)^4)-1","v":0.28847296993143567},{"$f":"Quarterly!AC149-Quarterly!AC148","v":-8.1999999999999993},{"$f":"Quarterly!AD149-Quarterly!AD148","v":1.5},{"$f":"(Quarterly!AE149-Quarterly!AE148)*100","v":-23},{"$f":"(Quarterly!AF149-Quarterly!AF148)*100","v":-4.0000000000000036},{"$f":"(Quarterly!AG149-Quarterly!AG148)*100","v":-4.0000000000000036},"--","--","--","--","--",{"$f":"((Quarterly!AM149/Quarterly!AM148)^4)-1","v":1.6404936796232006E-2},{"$f":"((Quarterly!AN149/Quarterly!AN148)^4)-1","v":1.0857567847686544E-2},"--",{"$f":"(Quarterly!AP149-Quarterly!AP148)*100","v":0},{"$f":"Quarterly!AQ149-Quarterly!AQ148","v":0.23333333333332718},{"$f":"Quarterly!AR149-Quarterly!AR148","v":-3.1666666666666643},"--",{"$f":"Quarterly!AT149-Quarterly!AT148","v":-0.53333333333333854},{"$f":"Quarterly!AU149-Quarterly!AU148","v":-1.8999999999999986},{"$f":"Quarterly!AV149-Quarterly!AV148","v":0.23333333333333428},{"$f":"Quarterly!AW149-Quarterly!AW148","v":3.3333333333338544E-2},{"$f":"Quarterly!AX149-Quarterly!AX148","v":0.63333333333332575},{"$f":"Quarterly!AY149-Quarterly!AY148","v":-0.96666666666666856},{"$f":"Quarterly!AZ149-Quarterly!AZ148","v":0.70000000000000995},{"$f":"Quarterly!BA149-Quarterly!BA148","v":-0.19999999999999574},"--",{"$f":"((Quarterly!BC149/Quarterly!BC148)^4)-1","v":0.13060357885389018},{"$f":"((Quarterly!BD149/Quarterly!BD148)^4)-1","v":-2.6432096997096588E-3},{"$f":"((Quarterly!BE149/Quarterly!BE148)^4)-1","v":3.2945029053824015E-2},{"$f":"((Quarterly!BF149/Quarterly!BF148)^4)-1","v":2.7081907319768117E-3},{"$f":"((Quarterly!BG149/Quarterly!BG148)^4)-1","v":8.0832519671945047E-3},{"$f":"((Quarterly!BH149/Quarterly!BH148)^4)-1","v":-1.2091174656802428E-2},{"$f":"((Quarterly!BI149/Quarterly!BI148)^4)-1","v":-5.3535024415293231E-3},{"$f":"((Quarterly!BJ149/Quarterly!BJ148)^4)-1","v":0.15446560313512125},{"$f":"((Quarterly!BK149/Quarterly!BK148)^4)-1","v":-0.19215407281549279},null,{"$f":"((Quarterly!BM149/Quarterly!BM148)^4)-1","v":7.5848233545825705E-2},{"$f":"((Quarterly!BN149/Quarterly!BN148)^4)-1","v":7.5558173887431579E-2},null,null,null,null,null,{"$f":"((Quarterly!BT149/Quarterly!BT148)^4)-1","v":9.9732282129938454E-2},{"$f":"Quarterly!BU149-Quarterly!BU148","v":5.3710000000000591E-2},{"$f":"Quarterly!BV149-Quarterly!BV148","v":8.0299999999999372E-2},{"$f":"((Quarterly!BW149/Quarterly!BW148)^4)-1","v":8.2762252675501635E-2},{"$f":"((Quarterly!BX149/Quarterly!BX148)^4)-1","v":0.10841343595019981},{"$f":"((Quarterly!BY149/Quarterly!BY148)^4)-1","v":0.42378947653490062},"--",{"$f":"((Quarterly!CA149/Quarterly!CA148)^4)-1","v":-0.1368408675265721},{"$f":"((Quarterly!CB149/Quarterly!CB148)^4)-1","v":-0.20712235316106842},{"$f":"((Quarterly!CC149/Quarterly!CC148)^4)-1","v":-0.18645827837367723},"--","--",null,"--","--",null,{"$f":"((Quarterly!CJ149/Quarterly!CJ148)^4)-1","v":9.6218187040981284E-2},{"$f":"((Quarterly!CK149/Quarterly!CK148)^4)-1","v":2.9056439949316282E-2},{"$f":"((Quarterly!CL149/Quarterly!CL148)^4)-1","v":-0.38081036150955527},{"$f":"((Quarterly!CM149/Quarterly!CM148)^4)-1","v":8.9637771867001614E-2},{"$f":"((Quarterly!CN149/Quarterly!CN148)^4)-1","v":2.3698702587786613E-3},{"$f":"((Quarterly!CO149/Quarterly!CO148)^4)-1","v":3.6999724064071149E-2},{"$f":"((Quarterly!CP149/Quarterly!CP148)^4)-1","v":6.8307455982711263E-2},{"$f":"((Quarterly!CQ149/Quarterly!CQ148)^4)-1","v":1.3577224740569882E-2},{"$f":"((Quarterly!CR149/Quarterly!CR148)^4)-1","v":0.11832358895460171},{"$f":"Quarterly!CS149-Quarterly!CS148","v":-5.0666666666666487},"--",null,null,null,null,null,{"$f":"((Quarterly!CZ149/Quarterly!CZ148)^4)-1","v":1.8634486305782128E-2},{"$f":"((Quarterly!DA149/Quarterly!DA148)^4)-1","v":2.3932459675401363E-2},null,null,null,null,null,{"$f":"((Quarterly!DG149/Quarterly!DG148)^4)-1","v":3.171840202661147E-2},{"$f":"((Quarterly!DH149-Quarterly!DH148)*60)","v":2.0000000000003126},{"$f":"Quarterly!DI149-Quarterly!DI148","v":0},"--",{"$f":"(Quarterly!DK149-Quarterly!DK148)*100","v":-26.666666666666661},{"$f":"((Quarterly!DL149/Quarterly!DL148)^4)-1","v":-2.4639094933296413E-3},null,null,null,{"$f":"((Quarterly!DP149/Quarterly!DP148)^4)-1","v":2.5423467138311784E-2},null,null,null,"--",{"$f":"Quarterly!DU149-Quarterly!DU148","v":-3.3333333333334991E-2},{"$f":"((Quarterly!DV149/Quarterly!DV148)^4)-1","v":5.5880890057313781E-2},{"$f":"((Quarterly!DW149/Quarterly!DW148)^4)-1","v":0.11966645928152331},{"$f":"((Quarterly!DX149/Quarterly!DX148)^4)-1","v":0.10414941644450915},{"$f":"((Quarterly!DY149/Quarterly!DY148)^4)-1","v":0.20772166632953315},{"$f":"((Quarterly!DZ149/Quarterly!DZ148)^4)-1","v":7.2119299394410641E-2},{"$f":"((Quarterly!EA149/Quarterly!EA148)^4)-1","v":7.2495661467247619E-2},{"$f":"((Quarterly!EB149/Quarterly!EB148)^4)-1","v":7.1189380997087603E-2},{"$f":"((Quarterly!EC149/Quarterly!EC148)^4)-1","v":0.16031160932699273},null,null,null,null,null,{"$f":"((Quarterly!EI149/Quarterly!EI148)^4)-1","v":2.8800486354257471E-2},{"$f":"((Quarterly!EJ149/Quarterly!EJ148)^4)-1","v":4.0681647099529483E-2},{"$f":"((Quarterly!EK149/Quarterly!EK148)^4)-1","v":3.9647750204439891E-2},null,null,null,null,null,{"$f":"((Quarterly!EQ149/Quarterly!EQ148)^4)-1","v":-2.1031505662143846E-2},{"$f":"((Quarterly!ER149/Quarterly!ER148)^4)-1","v":-2.9938714075795625E-2},{"$f":"((Quarterly!ES149/Quarterly!ES148)^4)-1","v":1.4311042762122694E-2},null,null,null,null,null,{"$f":"(Quarterly!EY149-Quarterly!EY148)*100","v":0},{"$f":"(Quarterly!EZ149-Quarterly!EZ148)*100","v":6.0000000000000053},{"$f":"(Quarterly!FA149-Quarterly!FA148)*100","v":-51.333333333333272},{"$f":"(Quarterly!FB149-Quarterly!FB148)*100","v":-51.666666666666842},-0.33333333333357018,{"$f":"(Quarterly!FD149-Quarterly!FD148)*100","v":-37.333333333333215},{"$f":"(Quarterly!FE149-Quarterly!FE148)*100","v":3.6666666666667069},{"$f":"(Quarterly!FF149-Quarterly!FF148)*100","v":4.3333333333333002},{"$f":"(Quarterly!FG149-Quarterly!FG148)*100","v":-2.0000000000000462},{"$f":"(Quarterly!FH149-Quarterly!FH148)*100","v":-23.333333333333339},{"$f":"(Quarterly!FI149-Quarterly!FI148)*100","v":-37.333333333333307},-41.666666666666607,null,null,null,null,null,{"$f":"((Quarterly!FP149/Quarterly!FP148)^4)-1","v":0.10996353692774985},{"$f":"((Quarterly!FQ149/Quarterly!FQ148)^4)-1","v":3.7208200570293615E-2},"--","--",{"$f":"((Quarterly!FT149/Quarterly!FT148)^4)-1","v":0.11185343638019596},{"$f":"((Quarterly!FU149/Quarterly!FU148)^4)-1","v":5.7798357926347244E-2},{"$f":"((Quarterly!FV149/Quarterly!FV148)^4)-1","v":-0.34393088200376987},{"$f":"((Quarterly!FW149/Quarterly!FW148)^4)-1","v":1.8314056903718852},{"$f":"((Quarterly!FX149/Quarterly!FX148)^4)-1","v":-0.15960741098683784},null,null,null,null,null,{"$f":"((Quarterly!GD149/Quarterly!GD148)^4)-1","v":-0.34207806532169616},{"$f":"((Quarterly!GE149/Quarterly!GE148)^4)-1","v":-0.33626177175585226},{"$f":"((Quarterly!GF149/Quarterly!GF148)^4)-1","v":-0.12595638762969352},{"$f":"((Quarterly!GG149/Quarterly!GG148)^4)-1","v":-7.3106694585207466E-2},{"$f":"((Quarterly!GH149/Quarterly!GH148)^4)-1","v":{"$error":"#DIV/0!"}},"--","--",{"$f":"((Quarterly!GK149/Quarterly!GK148)^4)-1","v":{"$error":"#VALUE!"}},"--"]
["93'Q4",{"$f":"((Quarterly!B150/Quarterly!B149)^4)-1","v":7.6626207395076973E-2},{"$f":"((Quarterly!C150/Quarterly!C149)^4)-1","v":5.447687442419058E-2},{"$f":"((Quarterly!D150/Quarterly!D149)^4)-1","v":4.6349153777315966E-2},{"$f":"((Quarterly!E150/Quarterly!E149)^4)-1","v":3.594436365091136E-2},{"$f":"((Quarterly!F150/Quarterly!F149)^4)-1","v":9.9820070762497881E-2},{"$f":"((Quarterly!G150/Quarterly!G149)^4)-1","v":2.8147388712256749E-2},{"$f":"((Quarterly!H150/Quarterly!H149)^4)-1","v":3.2386035855125561E-2},{"$f":"((Quarterly!I150/Quarterly!I149)^4)-1","v":0.15172684166424166},{"$f":"((Quarterly!J150/Quarterly!J149)^4)-1","v":0.26199819192651486},{"$f":"((Quarterly!K150/Quarterly!K149)^4)-1","v":0.21732693198739472},{"$f":"((Quarterly!L150-Quarterly!L149))","v":15.196000000000002},{"$f":"((Quarterly!M150/Quarterly!M149)^4)-1","v":0.17064125359162552},{"$f":"((Quarterly!N150/Quarterly!N149)^4)-1","v":0.13537292214250463},{"$f":"((Quarterly!O150/Quarterly!O149)^4)-1","v":0.5241000484271181},{"$f":"((Quarterly!P150/Quarterly!P149)^4)-1","v":8.6744725055882821E-3},{"$f":"((Quarterly!Q150/Quarterly!Q149)^4)-1","v":-0.36226284429075228},null,null,null,null,null,{"$f":"((Quarterly!W150/Quarterly!W149)^4)-1","v":5.0945336914062445E-2},{"$f":"((Quarterly!X150/Quarterly!X149)^4)-1","v":4.3399423929949998E-2},{"$f":"((Quarterly!Y150/Quarterly!Y149)^4)-1","v":-2.1232332983827984E-2},{"$f":"Quarterly!Z150-Quarterly!Z149","v":2.0000000000000018E-2},{"$f":"((Quarterly!AA150/Quarterly!AA149)^4)-1","v":0.24837028774736192},{"$f":"((Quarterly!AB150/Quarterly!AB149)^4)-1","v":0.22040044029771844},{"$f":"Quarterly!AC150-Quarterly!AC149","v":-0.40000000000000213},{"$f":"Quarterly!AD150-Quarterly!AD149","v":3.3999999999999986},{"$f":"(Quarterly!AE150-Quarterly!AE149)*100","v":-41.000000000000014},{"$f":"(Quarterly!AF150-Quarterly!AF149)*100","v":2.0000000000000018},{"$f":"(Quarterly!AG150-Quarterly!AG149)*100","v":2.0000000000000018},"--","--","--","--","--",{"$f":"((Quarterly!AM150/Quarterly!AM149)^4)-1","v":6.1643816203273527E-2},{"$f":"((Quarterly!AN150/Quarterly!AN149)^4)-1","v":7.2800740016392584E-2},"--",{"$f":"(Quarterly!AP150-Quarterly!AP149)*100","v":-1.0000000000000009},{"$f":"Quarterly!AQ150-Quarterly!AQ149","v":3.6999999999999957},{"$f":"Quarterly!AR150-Quarterly!AR149","v":7.1666666666666643},"--",{"$f":"Quarterly!AT150-Quarterly!AT149","v":2.86666666666666},{"$f":"Quarterly!AU150-Quarterly!AU149","v":2.8333333333333215},{"$f":"Quarterly!AV150-Quarterly!AV149","v":1.0666666666666629},{"$f":"Quarterly!AW150-Quarterly!AW149","v":0.39999999999999858},{"$f":"Quarterly!AX150-Quarterly!AX149","v":6.6666666666666643},{"$f":"Quarterly!AY150-Quarterly!AY149","v":1.3333333333333286},{"$f":"Quarterly!AZ150-Quarterly!AZ149","v":4.5},{"$f":"Quarterly!BA150-Quarterly!BA149","v":-0.3333333333333357},"--",{"$f":"((Quarterly!BC150/Quarterly!BC149)^4)-1","v":0.24490207858121549},{"$f":"((Quarterly!BD150/Quarterly!BD149)^4)-1","v":5.0815364499972482E-2},{"$f":"((Quarterly!BE150/Quarterly!BE149)^4)-1","v":3.6529562299605356E-2},{"$f":"((Quarterly!BF150/Quarterly!BF149)^4)-1","v":3.2475829675345569E-2},{"$f":"((Quarterly!BG150/Quarterly!BG149)^4)-1","v":2.0672972554257374E-2},{"$f":"((Quarterly!BH150/Quarterly!BH149)^4)-1","v":4.833356063983496E-3},{"$f":"((Quarterly!BI150/Quarterly!BI149)^4)-1","v":1.1574180690141711E-2},{"$f":"((Quarterly!BJ150/Quarterly!BJ149)^4)-1","v":0.5242685980533508},{"$f":"((Quarterly!BK150/Quarterly!BK149)^4)-1","v":0.11417552235013506},null,{"$f":"((Quarterly!BM150/Quarterly!BM149)^4)-1","v":8.1486848715875526E-2},{"$f":"((Quarterly!BN150/Quarterly!BN149)^4)-1","v":9.1363062700093423E-2},null,null,null,null,null,{"$f":"((Quarterly!BT150/Quarterly!BT149)^4)-1","v":0.10476999235837781},{"$f":"Quarterly!BU150-Quarterly!BU149","v":-3.2870000000000843E-2},{"$f":"Quarterly!BV150-Quarterly!BV149","v":-2.1799999999998931E-2},{"$f":"((Quarterly!BW150/Quarterly!BW149)^4)-1","v":9.0056492331641369E-2},{"$f":"((Quarterly!BX150/Quarterly!BX149)^4)-1","v":0.48373433589411308},{"$f":"((Quarterly!BY150/Quarterly!BY149)^4)-1","v":0.59112068105956217},"--",{"$f":"((Quarterly!CA150/Quarterly!CA149)^4)-1","v":0.29292459438138918},{"$f":"((Quarterly!CB150/Quarterly!CB149)^4)-1","v":-8.6348729482543018E-2},{"$f":"((Quarterly!CC150/Quarterly!CC149)^4)-1","v":-8.90512948911929E-2},"--","--",null,"--","--",null,{"$f":"((Quarterly!CJ150/Quarterly!CJ149)^4)-1","v":0.61803180281835934},{"$f":"((Quarterly!CK150/Quarterly!CK149)^4)-1","v":5.6252759789717333E-2},{"$f":"((Quarterly!CL150/Quarterly!CL149)^4)-1","v":-7.1582484949579528E-2},{"$f":"((Quarterly!CM150/Quarterly!CM149)^4)-1","v":0.50038632963570273},{"$f":"((Quarterly!CN150/Quarterly!CN149)^4)-1","v":2.6484644262258383E-2},{"$f":"((Quarterly!CO150/Quarterly!CO149)^4)-1","v":2.4143223110368428E-2},{"$f":"((Quarterly!CP150/Quarterly!CP149)^4)-1","v":0.10867907999541049},{"$f":"((Quarterly!CQ150/Quarterly!CQ149)^4)-1","v":1.323669657954718E-2},{"$f":"((Quarterly!CR150/Quarterly!CR149)^4)-1","v":0.13281300416814812},{"$f":"Quarterly!CS150-Quarterly!CS149","v":6.63333333333334},"--",null,null,null,null,null,{"$f":"((Quarterly!CZ150/Quarterly!CZ149)^4)-1","v":3.3571352126599452E-2},{"$f":"((Quarterly!DA150/Quarterly!DA149)^4)-1","v":3.1813696710110806E-2},null,null,null,null,null,{"$f":"((Quarterly!DG150/Quarterly!DG149)^4)-1","v":3.9450808806720694E-2},{"$f":"((Quarterly!DH150-Quarterly!DH149)*60)","v":1.9999999999998863},{"$f":"Quarterly!DI150-Quarterly!DI149","v":0},"--",{"$f":"(Quarterly!DK150-Quarterly!DK149)*100","v":-16.666666666666696},{"$f":"((Quarterly!DL150/Quarterly!DL149)^4)-1","v":1.1512283295264547E-2},null,null,null,{"$f":"((Quarterly!DP150/Quarterly!DP149)^4)-1","v":2.8233773843396204E-2},null,null,null,"--",{"$f":"Quarterly!DU150-Quarterly!DU149","v":-3.3333333333331439E-2},{"$f":"((Quarterly!DV150/Quarterly!DV149)^4)-1","v":5.140759486747859E-2},{"$f":"((Quarterly!DW150/Quarterly!DW149)^4)-1","v":3.9657400757075356E-2},{"$f":"((Quarterly!DX150/Quarterly!DX149)^4)-1","v":4.426163613419809E-2},{"$f":"((Quarterly!DY150/Quarterly!DY149)^4)-1","v":3.4001310606290636E-2},{"$f":"((Quarterly!DZ150/Quarterly!DZ149)^4)-1","v":4.7697744772029926E-2},{"$f":"((Quarterly!EA150/Quarterly!EA149)^4)-1","v":4.6141121985869393E-2},{"$f":"((Quarterly!EB150/Quarterly!EB149)^4)-1","v":5.155424964083144E-2},{"$f":"((Quarterly!EC150/Quarterly!EC149)^4)-1","v":2.8034261468012911E-2},null,null,null,null,null,{"$f":"((Quarterly!EI150/Quarterly!EI149)^4)-1","v":0.10209724284852495},{"$f":"((Quarterly!EJ150/Quarterly!EJ149)^4)-1","v":5.9097860782614697E-2},{"$f":"((Quarterly!EK150/Quarterly!EK149)^4)-1","v":4.6224119449846945E-2},null,null,null,null,null,{"$f":"((Quarterly!EQ150/Quarterly!EQ149)^4)-1","v":1.1221769130853598E-3},{"$f":"((Quarterly!ER150/Quarterly!ER149)^4)-1","v":-3.9311991754361619E-3},{"$f":"((Quarterly!ES150/Quarterly!ES149)^4)-1","v":1.6309551663645561E-2},null,null,null,null,null,{"$f":"(Quarterly!EY150-Quarterly!EY149)*100","v":0},{"$f":"(Quarterly!EZ150-Quarterly!EZ149)*100","v":-7.0000000000000284},{"$f":"(Quarterly!FA150-Quarterly!FA149)*100","v":-4.9999999999999822},{"$f":"(Quarterly!FB150-Quarterly!FB149)*100","v":-6.9999999999998508},-1.9999999999998685,{"$f":"(Quarterly!FD150-Quarterly!FD149)*100","v":-2.6666666666667282},{"$f":"(Quarterly!FE150-Quarterly!FE149)*100","v":5.6666666666666199},{"$f":"(Quarterly!FF150-Quarterly!FF149)*100","v":10.33333333333335},{"$f":"(Quarterly!FG150-Quarterly!FG149)*100","v":10.66666666666678},{"$f":"(Quarterly!FH150-Quarterly!FH149)*100","v":2.3333333333333428},{"$f":"(Quarterly!FI150-Quarterly!FI149)*100","v":-0.99999999999997868},-11.333333333333329,null,null,null,null,null,{"$f":"((Quarterly!FP150/Quarterly!FP149)^4)-1","v":6.5998680088652506E-2},{"$f":"((Quarterly!FQ150/Quarterly!FQ149)^4)-1","v":1.4635399980515995E-2},"--","--",{"$f":"((Quarterly!FT150/Quarterly!FT149)^4)-1","v":0.11449570765930295},{"$f":"((Quarterly!FU150/Quarterly!FU149)^4)-1","v":6.3217380062411177E-2},{"$f":"((Quarterly!FV150/Quarterly!FV149)^4)-1","v":0.46825755830833216},{"$f":"((Quarterly!FW150/Quarterly!FW149)^4)-1","v":-0.36859649163853869},{"$f":"((Quarterly!FX150/Quarterly!FX149)^4)-1","v":0.5364268141990276},null,null,null,null,null,{"$f":"((Quarterly!GD150/Quarterly!GD149)^4)-1","v":-0.26973198163580181},{"$f":"((Quarterly!GE150/Quarterly!GE149)^4)-1","v":-0.28302784410435144},{"$f":"((Quarterly!GF150/Quarterly!GF149)^4)-1","v":-0.25114775614059504},{"$f":"((Quarterly!GG150/Quarterly!GG149)^4)-1","v":0.34658275937593852},{"$f":"((Quarterly!GH150/Quarterly!GH149)^4)-1","v":{"$error":"#DIV/0!"}},"--","--",{"$f":"((Quarterly!GK150/Quarterly!GK149)^4)-1","v":{"$error":"#VALUE!"}},"--"]
["94'Q1",{"$f":"((Quarterly!B151/Quarterly!B150)^4)-1","v":6.0128422527212066E-2},{"$f":"((Quarterly!C151/Quarterly!C150)^4)-1","v":3.9798194817757482E-2},{"$f":"((Quarterly!D151/Quarterly!D150)^4)-1","v":2.210737348019487E-2},{"$f":"((Quarterly!E151/Quarterly!E150)^4)-1","v":4.6615146726425527E-2},{"$f":"((Quarterly!F151/Quarterly!F150)^4)-1","v":9.8698557449799162E-2},{"$f":"((Quarterly!G151/Quarterly!G150)^4)-1","v":5.4595331690065585E-2},{"$f":"((Quarterly!H151/Quarterly!H150)^4)-1","v":3.8626687174394103E-2},{"$f":"((Quarterly!I151/Quarterly!I150)^4)-1","v":4.5922930599271883E-2},{"$f":"((Quarterly!J151/Quarterly!J150)^4)-1","v":5.8293337641724952E-2},{"$f":"((Quarterly!K151/Quarterly!K150)^4)-1","v":8.8160564663305019E-2},{"$f":"((Quarterly!L151-Quarterly!L150))","v":37.412999999999997},{"$f":"((Quarterly!M151/Quarterly!M150)^4)-1","v":9.6499001294153119E-2},{"$f":"((Quarterly!N151/Quarterly!N150)^4)-1","v":3.9881454751659051E-2},{"$f":"((Quarterly!O151/Quarterly!O150)^4)-1","v":0.66144885930136743},{"$f":"((Quarterly!P151/Quarterly!P150)^4)-1","v":-4.8542246636432917E-2},{"$f":"((Quarterly!Q151/Quarterly!Q150)^4)-1","v":-0.21874971950188127},null,null,null,null,null,{"$f":"((Quarterly!W151/Quarterly!W150)^4)-1","v":1.9899887882285583E-2},{"$f":"((Quarterly!X151/Quarterly!X150)^4)-1","v":2.294988596894787E-2},{"$f":"((Quarterly!Y151/Quarterly!Y150)^4)-1","v":4.3354676705978257E-2},{"$f":"Quarterly!Z151-Quarterly!Z150","v":-0.51},{"$f":"((Quarterly!AA151/Quarterly!AA150)^4)-1","v":0.33292171929253067},{"$f":"((Quarterly!AB151/Quarterly!AB150)^4)-1","v":0.31717591326882655},{"$f":"Quarterly!AC151-Quarterly!AC150","v":12.099999999999998},{"$f":"Quarterly!AD151-Quarterly!AD150","v":9.1000000000000014},{"$f":"(Quarterly!AE151-Quarterly!AE150)*100","v":-11.999999999999989},{"$f":"(Quarterly!AF151-Quarterly!AF150)*100","v":-51},{"$f":"(Quarterly!AG151-Quarterly!AG150)*100","v":-38},"--","--","--","--","--",{"$f":"((Quarterly!AM151/Quarterly!AM150)^4)-1","v":5.0128561925698145E-2},{"$f":"((Quarterly!AN151/Quarterly!AN150)^4)-1","v":5.1069396107117804E-2},"--",{"$f":"(Quarterly!AP151-Quarterly!AP150)*100","v":-2.0000000000000018},{"$f":"Quarterly!AQ151-Quarterly!AQ150","v":2.2000000000000099},{"$f":"Quarterly!AR151-Quarterly!AR150","v":1.5},"--",{"$f":"Quarterly!AT151-Quarterly!AT150","v":1.9333333333333371},{"$f":"Quarterly!AU151-Quarterly!AU150","v":1.9666666666666828},{"$f":"Quarterly!AV151-Quarterly!AV150","v":1.6333333333333329},{"$f":"Quarterly!AW151-Quarterly!AW150","v":-1.9333333333333371},{"$f":"Quarterly!AX151-Quarterly!AX150","v":2.2666666666666728},{"$f":"Quarterly!AY151-Quarterly!AY150","v":9.3666666666666742},{"$f":"Quarterly!AZ151-Quarterly!AZ150","v":2.6666666666666643},{"$f":"Quarterly!BA151-Quarterly!BA150","v":4.56666666666667},"--",{"$f":"((Quarterly!BC151/Quarterly!BC150)^4)-1","v":-4.3260078394133927E-2},{"$f":"((Quarterly!BD151/Quarterly!BD150)^4)-1","v":2.5038693795935929E-2},{"$f":"((Quarterly!BE151/Quarterly!BE150)^4)-1","v":-0.12695136137158392},{"$f":"((Quarterly!BF151/Quarterly!BF150)^4)-1","v":-2.4960531609467318E-2},{"$f":"((Quarterly!BG151/Quarterly!BG150)^4)-1","v":1.4750540013085622E-2},{"$f":"((Quarterly!BH151/Quarterly!BH150)^4)-1","v":-3.6151448243588846E-2},{"$f":"((Quarterly!BI151/Quarterly!BI150)^4)-1","v":-3.9144114850831468E-2},{"$f":"((Quarterly!BJ151/Quarterly!BJ150)^4)-1","v":0.34739289892012448},{"$f":"((Quarterly!BK151/Quarterly!BK150)^4)-1","v":-0.98951423999999999},null,{"$f":"((Quarterly!BM151/Quarterly!BM150)^4)-1","v":8.0273795755221533E-2},{"$f":"((Quarterly!BN151/Quarterly!BN150)^4)-1","v":8.701143792163557E-2},null,null,null,null,null,{"$f":"((Quarterly!BT151/Quarterly!BT150)^4)-1","v":0.10898366119934022},{"$f":"Quarterly!BU151-Quarterly!BU150","v":1.6110000000001179E-2},{"$f":"Quarterly!BV151-Quarterly!BV150","v":4.2659999999999698E-2},{"$f":"((Quarterly!BW151/Quarterly!BW150)^4)-1","v":0.11167948107712622},{"$f":"((Quarterly!BX151/Quarterly!BX150)^4)-1","v":-0.11383260141508766},{"$f":"((Quarterly!BY151/Quarterly!BY150)^4)-1","v":-9.7553303092075661E-2},"--",{"$f":"((Quarterly!CA151/Quarterly!CA150)^4)-1","v":0.13224366356977835},{"$f":"((Quarterly!CB151/Quarterly!CB150)^4)-1","v":-0.12027017899150338},{"$f":"((Quarterly!CC151/Quarterly!CC150)^4)-1","v":-9.4187564832314608E-2},"--","--",null,"--","--",null,{"$f":"((Quarterly!CJ151/Quarterly!CJ150)^4)-1","v":-0.34962384804106328},{"$f":"((Quarterly!CK151/Quarterly!CK150)^4)-1","v":3.6533243716649011E-2},{"$f":"((Quarterly!CL151/Quarterly!CL150)^4)-1","v":-0.18667263059667849},{"$f":"((Quarterly!CM151/Quarterly!CM150)^4)-1","v":-0.17294853378963404},{"$f":"((Quarterly!CN151/Quarterly!CN150)^4)-1","v":2.8332714239322376E-2},{"$f":"((Quarterly!CO151/Quarterly!CO150)^4)-1","v":3.13823486518503E-2},{"$f":"((Quarterly!CP151/Quarterly!CP150)^4)-1","v":0.12011581856059594},{"$f":"((Quarterly!CQ151/Quarterly!CQ150)^4)-1","v":1.0918338326802779E-2},{"$f":"((Quarterly!CR151/Quarterly!CR150)^4)-1","v":0.13526605254154034},{"$f":"Quarterly!CS151-Quarterly!CS150","v":8.9666666666666544},"--",null,null,null,null,null,{"$f":"((Quarterly!CZ151/Quarterly!CZ150)^4)-1","v":2.0247862308117481E-2},{"$f":"((Quarterly!DA151/Quarterly!DA150)^4)-1","v":2.6251066053839756E-2},null,null,null,null,null,{"$f":"((Quarterly!DG151/Quarterly!DG150)^4)-1","v":3.4318267945409486E-2},{"$f":"((Quarterly!DH151-Quarterly!DH150)*60)","v":-1.9999999999998863},{"$f":"Quarterly!DI151-Quarterly!DI150","v":0.23333333333333428},"--",{"$f":"(Quarterly!DK151-Quarterly!DK150)*100","v":-6.666666666666643},{"$f":"((Quarterly!DL151/Quarterly!DL150)^4)-1","v":1.7657853926712486E-2},null,null,null,{"$f":"((Quarterly!DP151/Quarterly!DP150)^4)-1","v":3.0906865719143362E-2},null,null,null,"--",{"$f":"Quarterly!DU151-Quarterly!DU150","v":0.83333333333333215},{"$f":"((Quarterly!DV151/Quarterly!DV150)^4)-1","v":4.8872344090763686E-2},{"$f":"((Quarterly!DW151/Quarterly!DW150)^4)-1","v":-5.3891772451481135E-2},{"$f":"((Quarterly!DX151/Quarterly!DX150)^4)-1","v":-4.4203907612716531E-2},{"$f":"((Quarterly!DY151/Quarterly!DY150)^4)-1","v":-0.11470145621506744},{"$f":"((Quarterly!DZ151/Quarterly!DZ150)^4)-1","v":-1.9882360138608335E-2},{"$f":"((Quarterly!EA151/Quarterly!EA150)^4)-1","v":-1.8052968467965891E-2},{"$f":"((Quarterly!EB151/Quarterly!EB150)^4)-1","v":-2.4389096426595369E-2},{"$f":"((Quarterly!EC151/Quarterly!EC150)^4)-1","v":-7.8255572641168003E-2},null,null,null,null,null,{"$f":"((Quarterly!EI151/Quarterly!EI150)^4)-1","v":5.3844656002755453E-2},{"$f":"((Quarterly!EJ151/Quarterly!EJ150)^4)-1","v":4.7390628101833032E-2},{"$f":"((Quarterly!EK151/Quarterly!EK150)^4)-1","v":4.376512314066594E-2},null,null,null,null,null,{"$f":"((Quarterly!EQ151/Quarterly!EQ150)^4)-1","v":1.5792136898526321E-2},{"$f":"((Quarterly!ER151/Quarterly!ER150)^4)-1","v":2.9885865352530239E-2},{"$f":"((Quarterly!ES151/Quarterly!ES150)^4)-1","v":2.9586068734788862E-2},null,null,null,null,null,{"$f":"(Quarterly!EY151-Quarterly!EY150)*100","v":1.9999999999999574},{"$f":"(Quarterly!EZ151-Quarterly!EZ150)*100","v":22.333333333333361},{"$f":"(Quarterly!FA151-Quarterly!FA150)*100","v":31.666666666666643},{"$f":"(Quarterly!FB151-Quarterly!FB150)*100","v":29.3333333333333},-2.3333333333333428,{"$f":"(Quarterly!FD151-Quarterly!FD150)*100","v":24.333333333333318},{"$f":"(Quarterly!FE151-Quarterly!FE150)*100","v":18.333333333333357},{"$f":"(Quarterly!FF151-Quarterly!FF150)*100","v":38.333333333333329},{"$f":"(Quarterly!FG151-Quarterly!FG150)*100","v":45.666666666666522},{"$f":"(Quarterly!FH151-Quarterly!FH150)*100","v":50.3333333333333},{"$f":"(Quarterly!FI151-Quarterly!FI150)*100","v":46},7.6666666666666714,null,null,null,null,null,{"$f":"((Quarterly!FP151/Quarterly!FP150)^4)-1","v":5.0860463279121415E-2},{"$f":"((Quarterly!FQ151/Quarterly!FQ150)^4)-1","v":4.0815404441148644},{"$f":"((Quarterly!FR151/Quarterly!FR150)^4)-1","v":6.3255292491582793E-2},"--",{"$f":"((Quarterly!FT151/Quarterly!FT150)^4)-1","v":0.20164135545915252},{"$f":"((Quarterly!FU151/Quarterly!FU150)^4)-1","v":1.6414778489227233E-2},{"$f":"((Quarterly!FV151/Quarterly!FV150)^4)-1","v":-5.1594205084626088E-2},{"$f":"((Quarterly!FW151/Quarterly!FW150)^4)-1","v":-0.41323538218467815},{"$f":"((Quarterly!FX151/Quarterly!FX150)^4)-1","v":0.19882848836264455},null,null,null,null,null,{"$f":"((Quarterly!GD151/Quarterly!GD150)^4)-1","v":-0.34263470213472036},{"$f":"((Quarterly!GE151/Quarterly!GE150)^4)-1","v":-0.28270378657704276},{"$f":"((Quarterly!GF151/Quarterly!GF150)^4)-1","v":6.8649828784101752E-2},{"$f":"((Quarterly!GG151/Quarterly!GG150)^4)-1","v":-0.16686277233487989},{"$f":"((Quarterly!GH151/Quarterly!GH150)^4)-1","v":{"$error":"#DIV/0!"}},"--","--",{"$f":"((Quarterly!GK151/Quarterly!GK150)^4)-1","v":{"$error":"#VALUE!"}},"--"]
["94'Q2",{"$f":"((Quarterly!B152/Quarterly!B151)^4)-1","v":7.7007353463474759E-2},{"$f":"((Quarterly!C152/Quarterly!C151)^4)-1","v":5.5798946952088313E-2},{"$f":"((Quarterly!D152/Quarterly!D151)^4)-1","v":3.524409560250974E-2},{"$f":"((Quarterly!E152/Quarterly!E151)^4)-1","v":3.1417319647885744E-2},{"$f":"((Quarterly!F152/Quarterly!F151)^4)-1","v":4.3733860492215726E-2},{"$f":"((Quarterly!G152/Quarterly!G151)^4)-1","v":3.2061710720718173E-2},{"$f":"((Quarterly!H152/Quarterly!H151)^4)-1","v":2.9919410721061634E-2},{"$f":"((Quarterly!I152/Quarterly!I151)^4)-1","v":6.28009525140516E-2},{"$f":"((Quarterly!J152/Quarterly!J151)^4)-1","v":9.5252190447137286E-2},{"$f":"((Quarterly!K152/Quarterly!K151)^4)-1","v":0.1394838449693252},{"$f":"((Quarterly!L152-Quarterly!L151))","v":44.019999999999996},{"$f":"((Quarterly!M152/Quarterly!M151)^4)-1","v":0.15757979979116454},{"$f":"((Quarterly!N152/Quarterly!N151)^4)-1","v":0.14206391072219127},{"$f":"((Quarterly!O152/Quarterly!O151)^4)-1","v":0.27729662456123716},{"$f":"((Quarterly!P152/Quarterly!P151)^4)-1","v":2.3627232884160465E-2},{"$f":"((Quarterly!Q152/Quarterly!Q151)^4)-1","v":-0.37646245088015196},null,null,null,null,null,{"$f":"((Quarterly!W152/Quarterly!W151)^4)-1","v":6.0284883542277123E-2},{"$f":"((Quarterly!X152/Quarterly!X151)^4)-1","v":4.1020355685216225E-2},{"$f":"((Quarterly!Y152/Quarterly!Y151)^4)-1","v":0.1039061687229681},{"$f":"Quarterly!Z152-Quarterly!Z151","v":4.0000000000000036E-2},{"$f":"((Quarterly!AA152/Quarterly!AA151)^4)-1","v":0.1353905359005616},{"$f":"((Quarterly!AB152/Quarterly!AB151)^4)-1","v":0.14297261995035138},{"$f":"Quarterly!AC152-Quarterly!AC151","v":2.4000000000000057},{"$f":"Quarterly!AD152-Quarterly!AD151","v":11.8},{"$f":"(Quarterly!AE152-Quarterly!AE151)*100","v":-25},{"$f":"(Quarterly!AF152-Quarterly!AF151)*100","v":4.0000000000000036},{"$f":"(Quarterly!AG152-Quarterly!AG151)*100","v":5.0000000000000044},"--","--","--","--","--",{"$f":"((Quarterly!AM152/Quarterly!AM151)^4)-1","v":7.3966657338956576E-2},{"$f":"((Quarterly!AN152/Quarterly!AN151)^4)-1","v":9.9567993957390799E-2},"--",{"$f":"(Quarterly!AP152-Quarterly!AP151)*100","v":-0.33333333333334103},{"$f":"Quarterly!AQ152-Quarterly!AQ151","v":1.6666666666666572},{"$f":"Quarterly!AR152-Quarterly!AR151","v":4},"--",{"$f":"Quarterly!AT152-Quarterly!AT151","v":2.2000000000000028},{"$f":"Quarterly!AU152-Quarterly!AU151","v":0.26666666666665861},{"$f":"Quarterly!AV152-Quarterly!AV151","v":1.43333333333333},{"$f":"Quarterly!AW152-Quarterly!AW151","v":3.4333333333333371},{"$f":"Quarterly!AX152-Quarterly!AX151","v":0.26666666666666572},{"$f":"Quarterly!AY152-Quarterly!AY151","v":5.3999999999999986},{"$f":"Quarterly!AZ152-Quarterly!AZ151","v":0.93333333333333002},{"$f":"Quarterly!BA152-Quarterly!BA151","v":3.6333333333333258},"--",{"$f":"((Quarterly!BC152/Quarterly!BC151)^4)-1","v":0.27209124526402761},{"$f":"((Quarterly!BD152/Quarterly!BD151)^4)-1","v":4.3539455182810549E-2},{"$f":"((Quarterly!BE152/Quarterly!BE151)^4)-1","v":6.1122550146639476E-3},{"$f":"((Quarterly!BF152/Quarterly!BF151)^4)-1","v":3.2348223965786849E-2},{"$f":"((Quarterly!BG152/Quarterly!BG151)^4)-1","v":-2.3106361373770312E-4},{"$f":"((Quarterly!BH152/Quarterly!BH151)^4)-1","v":9.3169943462045879E-3},{"$f":"((Quarterly!BI152/Quarterly!BI151)^4)-1","v":3.2604069466861896E-2},{"$f":"((Quarterly!BJ152/Quarterly!BJ151)^4)-1","v":0.29434327169079588},{"$f":"((Quarterly!BK152/Quarterly!BK151)^4)-1","v":0.8526234567901243},null,{"$f":"((Quarterly!BM152/Quarterly!BM151)^4)-1","v":8.0022676621366973E-2},{"$f":"((Quarterly!BN152/Quarterly!BN151)^4)-1","v":7.9242313133139897E-2},null,null,null,null,null,{"$f":"((Quarterly!BT152/Quarterly!BT151)^4)-1","v":0.13289296017222529},{"$f":"Quarterly!BU152-Quarterly!BU151","v":5.8769999999999101E-2},{"$f":"Quarterly!BV152-Quarterly!BV151","v":6.293999999999933E-2},{"$f":"((Quarterly!BW152/Quarterly!BW151)^4)-1","v":7.0526953974632711E-2},{"$f":"((Quarterly!BX152/Quarterly!BX151)^4)-1","v":0.2359962898100636},{"$f":"((Quarterly!BY152/Quarterly!BY151)^4)-1","v":0.15192428449465289},"--",{"$f":"((Quarterly!CA152/Quarterly!CA151)^4)-1","v":-4.4457241589967222E-2},{"$f":"((Quarterly!CB152/Quarterly!CB151)^4)-1","v":-0.21091012652351582},{"$f":"((Quarterly!CC152/Quarterly!CC151)^4)-1","v":-0.20904150483029227},"--","--",null,"--","--",null,{"$f":"((Quarterly!CJ152/Quarterly!CJ151)^4)-1","v":-9.0335088444063016E-2},{"$f":"((Quarterly!CK152/Quarterly!CK151)^4)-1","v":7.6147306238408374E-2},{"$f":"((Quarterly!CL152/Quarterly!CL151)^4)-1","v":0.22804701112775527},{"$f":"((Quarterly!CM152/Quarterly!CM151)^4)-1","v":7.3469949541620672E-2},{"$f":"((Quarterly!CN152/Quarterly!CN151)^4)-1","v":4.3087694983380276E-2},{"$f":"((Quarterly!CO152/Quarterly!CO151)^4)-1","v":-2.2218359521559816E-2},{"$f":"((Quarterly!CP152/Quarterly!CP151)^4)-1","v":0.15059850317120582},{"$f":"((Quarterly!CQ152/Quarterly!CQ151)^4)-1","v":1.1575943211323159E-2},{"$f":"((Quarterly!CR152/Quarterly!CR151)^4)-1","v":0.18581962821712361},{"$f":"Quarterly!CS152-Quarterly!CS151","v":-0.80000000000001137},"--",null,null,null,null,null,{"$f":"((Quarterly!CZ152/Quarterly!CZ151)^4)-1","v":2.2916453191171415E-2},{"$f":"((Quarterly!DA152/Quarterly!DA151)^4)-1","v":2.7836528331264043E-2},null,null,null,null,null,{"$f":"((Quarterly!DG152/Quarterly!DG151)^4)-1","v":6.0908460264408992E-2},{"$f":"((Quarterly!DH152-Quarterly!DH151)*60)","v":7.9999999999999716},{"$f":"Quarterly!DI152-Quarterly!DI151","v":-6.6666666666662877E-2},"--",{"$f":"(Quarterly!DK152-Quarterly!DK151)*100","v":-36.666666666666629},{"$f":"((Quarterly!DL152/Quarterly!DL151)^4)-1","v":2.3196684313604221E-2},null,null,null,{"$f":"((Quarterly!DP152/Quarterly!DP151)^4)-1","v":3.7805507983042386E-2},null,null,null,"--",{"$f":"Quarterly!DU152-Quarterly!DU151","v":0.16666666666666607},{"$f":"((Quarterly!DV152/Quarterly!DV151)^4)-1","v":-1.3449143517082485E-3},{"$f":"((Quarterly!DW152/Quarterly!DW151)^4)-1","v":5.9460994823836266E-2},{"$f":"((Quarterly!DX152/Quarterly!DX151)^4)-1","v":3.417331143888469E-2},{"$f":"((Quarterly!DY152/Quarterly!DY151)^4)-1","v":9.5189665344628471E-2},{"$f":"((Quarterly!DZ152/Quarterly!DZ151)^4)-1","v":1.4973509204383229E-2},{"$f":"((Quarterly!EA152/Quarterly!EA151)^4)-1","v":0.17407814735472993},{"$f":"((Quarterly!EB152/Quarterly!EB151)^4)-1","v":-0.30919160565065817},{"$f":"((Quarterly!EC152/Quarterly!EC151)^4)-1","v":0.12664482968693047},null,null,null,null,null,{"$f":"((Quarterly!EI152/Quarterly!EI151)^4)-1","v":8.0573565543599512E-2},{"$f":"((Quarterly!EJ152/Quarterly!EJ151)^4)-1","v":5.0308762302783583E-2},{"$f":"((Quarterly!EK152/Quarterly!EK151)^4)-1","v":4.4300066604018085E-2},null,null,null,null,null,{"$f":"((Quarterly!EQ152/Quarterly!EQ151)^4)-1","v":2.2527981777325845E-2},{"$f":"((Quarterly!ER152/Quarterly!ER151)^4)-1","v":1.772046496272206E-2},{"$f":"((Quarterly!ES152/Quarterly!ES151)^4)-1","v":2.8345499253931816E-2},null,null,null,null,null,{"$f":"(Quarterly!EY152-Quarterly!EY151)*100","v":87.666666666666785},{"$f":"(Quarterly!EZ152-Quarterly!EZ151)*100","v":72.666666666666657},{"$f":"(Quarterly!FA152-Quarterly!FA151)*100","v":78.666666666666615},{"$f":"(Quarterly!FB152-Quarterly!FB151)*100","v":74.999999999999915},-3.6666666666666998,{"$f":"(Quarterly!FD152-Quarterly!FD151)*100","v":114.33333333333326},{"$f":"(Quarterly!FE152-Quarterly!FE151)*100","v":74.333333333333314},{"$f":"(Quarterly!FF152-Quarterly!FF151)*100","v":122.33333333333327},{"$f":"(Quarterly!FG152-Quarterly!FG151)*100","v":128.00000000000003},{"$f":"(Quarterly!FH152-Quarterly!FH151)*100","v":119.00000000000004},{"$f":"(Quarterly!FI152-Quarterly!FI151)*100","v":101.66666666666666},-20.666666666666615,null,null,null,null,null,{"$f":"((Quarterly!FP152/Quarterly!FP151)^4)-1","v":0.12831051448598685},{"$f":"((Quarterly!FQ152/Quarterly!FQ151)^4)-1","v":-1.1610907473142862E-2},{"$f":"((Quarterly!FR152/Quarterly!FR151)^4)-1","v":0.22744660333302735},"--",{"$f":"((Quarterly!FT152/Quarterly!FT151)^4)-1","v":5.3159796226968536E-2},{"$f":"((Quarterly!FU152/Quarterly!FU151)^4)-1","v":-6.3348774726532775E-2},{"$f":"((Quarterly!FV152/Quarterly!FV151)^4)-1","v":0.63606806241633573},{"$f":"((Quarterly!FW152/Quarterly!FW151)^4)-1","v":1.073172982357419},{"$f":"((Quarterly!FX152/Quarterly!FX151)^4)-1","v":0.28732668082494706},null,null,null,null,null,{"$f":"((Quarterly!GD152/Quarterly!GD151)^4)-1","v":1.0739110886070478},{"$f":"((Quarterly!GE152/Quarterly!GE151)^4)-1","v":0.7466124009066184},{"$f":"((Quarterly!GF152/Quarterly!GF151)^4)-1","v":0.18875830539161642},{"$f":"((Quarterly!GG152/Quarterly!GG151)^4)-1","v":-2.0282712020054494E-2},{"$f":"((Quarterly!GH152/Quarterly!GH151)^4)-1","v":{"$error":"#DIV/0!"}},"--",{"$f":"((Quarterly!GJ152/Quarterly!GJ151)^4)-1","v":-0.34300046285694663},{"$f":"((Quarterly!GK152/Quarterly!GK151)^4)-1","v":-0.54174457312504232},"--"]
["94'Q3",{"$f":"((Quarterly!B153/Quarterly!B152)^4)-1","v":4.6119173588846429E-2},{"$f":"((Quarterly!C153/Quarterly!C152)^4)-1","v":2.3797666292702857E-2},{"$f":"((Quarterly!D153/Quarterly!D152)^4)-1","v":4.141768555476788E-2},{"$f":"((Quarterly!E153/Quarterly!E152)^4)-1","v":3.1367155979913131E-2},{"$f":"((Quarterly!F153/Quarterly!F152)^4)-1","v":4.2793456669602881E-2},{"$f":"((Quarterly!G153/Quarterly!G152)^4)-1","v":3.4917043319778962E-2},{"$f":"((Quarterly!H153/Quarterly!H152)^4)-1","v":2.8941770837625169E-2},{"$f":"((Quarterly!I153/Quarterly!I152)^4)-1","v":6.9096278917821552E-2},{"$f":"((Quarterly!J153/Quarterly!J152)^4)-1","v":8.4986399233169418E-2},{"$f":"((Quarterly!K153/Quarterly!K152)^4)-1","v":-4.2677971057771269E-2},{"$f":"((Quarterly!L153-Quarterly!L152))","v":-37.067},{"$f":"((Quarterly!M153/Quarterly!M152)^4)-1","v":0.11731595067546663},{"$f":"((Quarterly!N153/Quarterly!N152)^4)-1","v":0.15833130921442296},{"$f":"((Quarterly!O153/Quarterly!O152)^4)-1","v":-0.1464774376939979},{"$f":"((Quarterly!P153/Quarterly!P152)^4)-1","v":6.8909784625473147E-2},{"$f":"((Quarterly!Q153/Quarterly!Q152)^4)-1","v":0.33613920180171108},null,null,null,null,null,{"$f":"((Quarterly!W153/Quarterly!W152)^4)-1","v":1.9511620374417005E-2},{"$f":"((Quarterly!X153/Quarterly!X152)^4)-1","v":1.2861571176857822E-2},{"$f":"((Quarterly!Y153/Quarterly!Y152)^4)-1","v":0.11220971955995918},{"$f":"Quarterly!Z153-Quarterly!Z152","v":-3.0000000000000027E-2},{"$f":"((Quarterly!AA153/Quarterly!AA152)^4)-1","v":0.21566879701346342},{"$f":"((Quarterly!AB153/Quarterly!AB152)^4)-1","v":0.16677661515155062},{"$f":"Quarterly!AC153-Quarterly!AC152","v":-4.8000000000000043},{"$f":"Quarterly!AD153-Quarterly!AD152","v":-18.8},{"$f":"(Quarterly!AE153-Quarterly!AE152)*100","v":-15.000000000000014},{"$f":"(Quarterly!AF153-Quarterly!AF152)*100","v":-3.0000000000000027},{"$f":"(Quarterly!AG153-Quarterly!AG152)*100","v":-3.0000000000000027},"--","--","--","--","--",{"$f":"((Quarterly!AM153/Quarterly!AM152)^4)-1","v":5.1971365004989112E-2},{"$f":"((Quarterly!AN153/Quarterly!AN152)^4)-1","v":6.5055483540893633E-2},"--",{"$f":"(Quarterly!AP153-Quarterly!AP152)*100","v":-0.33333333333334103},{"$f":"Quarterly!AQ153-Quarterly!AQ152","v":0.36666666666667425},{"$f":"Quarterly!AR153-Quarterly!AR152","v":-0.8333333333333357},"--",{"$f":"Quarterly!AT153-Quarterly!AT152","v":1.7333333333333272},{"$f":"Quarterly!AU153-Quarterly!AU152","v":1.6000000000000014},{"$f":"Quarterly!AV153-Quarterly!AV152","v":-1.6666666666666572},{"$f":"Quarterly!AW153-Quarterly!AW152","v":-1.9000000000000057},{"$f":"Quarterly!AX153-Quarterly!AX152","v":0.20000000000000284},{"$f":"Quarterly!AY153-Quarterly!AY152","v":8.7000000000000028},{"$f":"Quarterly!AZ153-Quarterly!AZ152","v":-0.26666666666665861},{"$f":"Quarterly!BA153-Quarterly!BA152","v":1.5},"--",{"$f":"((Quarterly!BC153/Quarterly!BC152)^4)-1","v":7.9995319875058257E-2},{"$f":"((Quarterly!BD153/Quarterly!BD152)^4)-1","v":1.1025523468323639E-2},{"$f":"((Quarterly!BE153/Quarterly!BE152)^4)-1","v":6.344406152307247E-3},{"$f":"((Quarterly!BF153/Quarterly!BF152)^4)-1","v":-1.4092446426838823E-4},{"$f":"((Quarterly!BG153/Quarterly!BG152)^4)-1","v":-2.1035153612340096E-2},{"$f":"((Quarterly!BH153/Quarterly!BH152)^4)-1","v":-2.9994527780082714E-2},{"$f":"((Quarterly!BI153/Quarterly!BI152)^4)-1","v":2.134228619109857E-2},{"$f":"((Quarterly!BJ153/Quarterly!BJ152)^4)-1","v":0.16251936521846044},{"$f":"((Quarterly!BK153/Quarterly!BK152)^4)-1","v":-0.36448192159516879},null,{"$f":"((Quarterly!BM153/Quarterly!BM152)^4)-1","v":8.5315016238820984E-2},{"$f":"((Quarterly!BN153/Quarterly!BN152)^4)-1","v":8.8366141115713281E-2},null,null,null,null,null,{"$f":"((Quarterly!BT153/Quarterly!BT152)^4)-1","v":0.17926310984616145},{"$f":"Quarterly!BU153-Quarterly!BU152","v":0.13385000000000069},{"$f":"Quarterly!BV153-Quarterly!BV152","v":0.15287999999999968},{"$f":"((Quarterly!BW153/Quarterly!BW152)^4)-1","v":7.0088589087564435E-2},{"$f":"((Quarterly!BX153/Quarterly!BX152)^4)-1","v":-3.3214460298346737E-2},{"$f":"((Quarterly!BY153/Quarterly!BY152)^4)-1","v":-2.0111892376214136E-2},"--",{"$f":"((Quarterly!CA153/Quarterly!CA152)^4)-1","v":-2.3947291947531979E-2},{"$f":"((Quarterly!CB153/Quarterly!CB152)^4)-1","v":0.13315300653810058},{"$f":"((Quarterly!CC153/Quarterly!CC152)^4)-1","v":4.1632266790685657E-2},"--","--",null,"--","--",null,{"$f":"((Quarterly!CJ153/Quarterly!CJ152)^4)-1","v":-8.3105208075642478E-2},{"$f":"((Quarterly!CK153/Quarterly!CK152)^4)-1","v":4.5353589482292067E-2},{"$f":"((Quarterly!CL153/Quarterly!CL152)^4)-1","v":-9.1607654385767123E-2},{"$f":"((Quarterly!CM153/Quarterly!CM152)^4)-1","v":-6.6357529598710996E-2},{"$f":"((Quarterly!CN153/Quarterly!CN152)^4)-1","v":2.400132122462173E-2},{"$f":"((Quarterly!CO153/Quarterly!CO152)^4)-1","v":-6.20508887153286E-2},{"$f":"((Quarterly!CP153/Quarterly!CP152)^4)-1","v":0.14657071144561717},{"$f":"((Quarterly!CQ153/Quarterly!CQ152)^4)-1","v":1.2827201205622307E-2},{"$f":"((Quarterly!CR153/Quarterly!CR152)^4)-1","v":0.21216520724015697},{"$f":"Quarterly!CS153-Quarterly!CS152","v":-1.4666666666666544},"--",null,null,null,null,null,{"$f":"((Quarterly!CZ153/Quarterly!CZ152)^4)-1","v":3.75718284471529E-2},{"$f":"((Quarterly!DA153/Quarterly!DA152)^4)-1","v":3.0264864432287153E-2},null,null,null,null,null,{"$f":"((Quarterly!DG153/Quarterly!DG152)^4)-1","v":4.7474122008703601E-2},{"$f":"((Quarterly!DH153-Quarterly!DH152)*60)","v":1.9999999999998863},{"$f":"Quarterly!DI153-Quarterly!DI152","v":3.3333333333331439E-2},"--",{"$f":"(Quarterly!DK153-Quarterly!DK152)*100","v":-20.000000000000018},{"$f":"((Quarterly!DL153/Quarterly!DL152)^4)-1","v":2.5142786497271974E-2},null,null,null,{"$f":"((Quarterly!DP153/Quarterly!DP152)^4)-1","v":3.5624088363290785E-2},null,null,null,"--",{"$f":"Quarterly!DU153-Quarterly!DU152","v":-0.16666666666666607},{"$f":"((Quarterly!DV153/Quarterly!DV152)^4)-1","v":9.8447305679076669E-2},{"$f":"((Quarterly!DW153/Quarterly!DW152)^4)-1","v":0.15789403107507782},{"$f":"((Quarterly!DX153/Quarterly!DX152)^4)-1","v":0.17614803182737071},{"$f":"((Quarterly!DY153/Quarterly!DY152)^4)-1","v":0.16082609691421168},{"$f":"((Quarterly!DZ153/Quarterly!DZ152)^4)-1","v":0.18123778546373792},{"$f":"((Quarterly!EA153/Quarterly!EA152)^4)-1","v":2.2251484463190918E-2},{"$f":"((Quarterly!EB153/Quarterly!EB152)^4)-1","v":0.73096932446451079},{"$f":"((Quarterly!EC153/Quarterly!EC152)^4)-1","v":0.11287152244778764},null,null,null,null,null,{"$f":"((Quarterly!EI153/Quarterly!EI152)^4)-1","v":1.7661480008814623E-2},{"$f":"((Quarterly!EJ153/Quarterly!EJ152)^4)-1","v":1.2782562169479705E-2},{"$f":"((Quarterly!EK153/Quarterly!EK152)^4)-1","v":1.8706832852445787E-2},null,null,null,null,null,{"$f":"((Quarterly!EQ153/Quarterly!EQ152)^4)-1","v":3.1467117054675198E-2},{"$f":"((Quarterly!ER153/Quarterly!ER152)^4)-1","v":1.7642309357208896E-2},{"$f":"((Quarterly!ES153/Quarterly!ES152)^4)-1","v":1.8026586981054527E-2},null,null,null,null,null,{"$f":"(Quarterly!EY153-Quarterly!EY152)*100","v":60.666666666666558},{"$f":"(Quarterly!EZ153-Quarterly!EZ152)*100","v":54.666666666666728},{"$f":"(Quarterly!FA153-Quarterly!FA152)*100","v":22.666666666666746},{"$f":"(Quarterly!FB153-Quarterly!FB152)*100","v":24.333333333333407},1.6666666666666607,{"$f":"(Quarterly!FD153-Quarterly!FD152)*100","v":14.66666666666665},{"$f":"(Quarterly!FE153-Quarterly!FE152)*100","v":48.999999999999979},{"$f":"(Quarterly!FF153-Quarterly!FF152)*100","v":46.666666666666586},{"$f":"(Quarterly!FG153-Quarterly!FG152)*100","v":41.6666666666667},{"$f":"(Quarterly!FH153-Quarterly!FH152)*100","v":28.999999999999915},{"$f":"(Quarterly!FI153-Quarterly!FI152)*100","v":25},-21.666666666666586,null,null,null,null,null,{"$f":"((Quarterly!FP153/Quarterly!FP152)^4)-1","v":-3.0978420562213227E-2},{"$f":"((Quarterly!FQ153/Quarterly!FQ152)^4)-1","v":-4.057162679019255E-2},{"$f":"((Quarterly!FR153/Quarterly!FR152)^4)-1","v":6.2573236823908696E-2},"--",{"$f":"((Quarterly!FT153/Quarterly!FT152)^4)-1","v":-5.2680624994790204E-2},{"$f":"((Quarterly!FU153/Quarterly!FU152)^4)-1","v":-0.12993014818936699},{"$f":"((Quarterly!FV153/Quarterly!FV152)^4)-1","v":-9.9901378155608511E-2},{"$f":"((Quarterly!FW153/Quarterly!FW152)^4)-1","v":2.1964471272486898},{"$f":"((Quarterly!FX153/Quarterly!FX152)^4)-1","v":0.10043716398383284},null,null,null,null,null,{"$f":"((Quarterly!GD153/Quarterly!GD152)^4)-1","v":0.17212131735728686},{"$f":"((Quarterly!GE153/Quarterly!GE152)^4)-1","v":0.19649324416947489},{"$f":"((Quarterly!GF153/Quarterly!GF152)^4)-1","v":0.38883538725719502},{"$f":"((Quarterly!GG153/Quarterly!GG152)^4)-1","v":5.9280047684703741E-2},{"$f":"((Quarterly!GH153/Quarterly!GH152)^4)-1","v":{"$error":"#DIV/0!"}},"--",{"$f":"((Quarterly!GJ153/Quarterly!GJ152)^4)-1","v":-0.45237751564200679},{"$f":"((Quarterly!GK153/Quarterly!GK152)^4)-1","v":-0.21792069063590314},"--"]
["94'Q4",{"$f":"((Quarterly!B154/Quarterly!B153)^4)-1","v":6.9420520595163016E-2},{"$f":"((Quarterly!C154/Quarterly!C153)^4)-1","v":4.619874699550186E-2},{"$f":"((Quarterly!D154/Quarterly!D153)^4)-1","v":3.3790906761807848E-2},{"$f":"((Quarterly!E154/Quarterly!E153)^4)-1","v":4.3734610036838761E-2},{"$f":"((Quarterly!F154/Quarterly!F153)^4)-1","v":0.14814580433144764},{"$f":"((Quarterly!G154/Quarterly!G153)^4)-1","v":4.3143554129499551E-2},{"$f":"((Quarterly!H154/Quarterly!H153)^4)-1","v":3.3453703002783497E-2},{"$f":"((Quarterly!I154/Quarterly!I153)^4)-1","v":0.16483945262156152},{"$f":"((Quarterly!J154/Quarterly!J153)^4)-1","v":0.25802082597795306},{"$f":"((Quarterly!K154/Quarterly!K153)^4)-1","v":-5.1271240413045982E-2},{"$f":"((Quarterly!L154-Quarterly!L153))","v":24.970999999999997},{"$f":"((Quarterly!M154/Quarterly!M153)^4)-1","v":0.11738287642730971},{"$f":"((Quarterly!N154/Quarterly!N153)^4)-1","v":9.5565564122632063E-2},{"$f":"((Quarterly!O154/Quarterly!O153)^4)-1","v":0.29801145429053322},{"$f":"((Quarterly!P154/Quarterly!P153)^4)-1","v":-3.5586716353552816E-2},{"$f":"((Quarterly!Q154/Quarterly!Q153)^4)-1","v":3.601552247240547E-2},null,null,null,null,null,{"$f":"((Quarterly!W154/Quarterly!W153)^4)-1","v":5.9097630731605344E-2},{"$f":"((Quarterly!X154/Quarterly!X153)^4)-1","v":4.5410525057111739E-2},{"$f":"((Quarterly!Y154/Quarterly!Y153)^4)-1","v":0.11231202591980449},{"$f":"Quarterly!Z154-Quarterly!Z153","v":2.0000000000000018E-2},{"$f":"((Quarterly!AA154/Quarterly!AA153)^4)-1","v":0.11384552436779383},{"$f":"((Quarterly!AB154/Quarterly!AB153)^4)-1","v":0.11802999368463629},{"$f":"Quarterly!AC154-Quarterly!AC153","v":-14.299999999999997},{"$f":"Quarterly!AD154-Quarterly!AD153","v":12.3},{"$f":"(Quarterly!AE154-Quarterly!AE153)*100","v":-16.999999999999993},{"$f":"(Quarterly!AF154-Quarterly!AF153)*100","v":2.0000000000000018},{"$f":"(Quarterly!AG154-Quarterly!AG153)*100","v":1.0000000000000009},"--","--","--","--","--",{"$f":"((Quarterly!AM154/Quarterly!AM153)^4)-1","v":8.5465337195411051E-2},{"$f":"((Quarterly!AN154/Quarterly!AN153)^4)-1","v":0.1060881800744693},"--",{"$f":"(Quarterly!AP154-Quarterly!AP153)*100","v":-1.3333333333333197},{"$f":"Quarterly!AQ154-Quarterly!AQ153","v":-0.26666666666667282},{"$f":"Quarterly!AR154-Quarterly!AR153","v":-2.8333333333333286},"--",{"$f":"Quarterly!AT154-Quarterly!AT153","v":-2.2666666666666586},{"$f":"Quarterly!AU154-Quarterly!AU153","v":-0.46666666666666856},{"$f":"Quarterly!AV154-Quarterly!AV153","v":1.36666666666666},{"$f":"Quarterly!AW154-Quarterly!AW153","v":1.2666666666666657},{"$f":"Quarterly!AX154-Quarterly!AX153","v":-2.1666666666666714},{"$f":"Quarterly!AY154-Quarterly!AY153","v":9.5333333333333314},{"$f":"Quarterly!AZ154-Quarterly!AZ153","v":0.46666666666665435},{"$f":"Quarterly!BA154-Quarterly!BA153","v":4.0666666666666842},"--",{"$f":"((Quarterly!BC154/Quarterly!BC153)^4)-1","v":0.16448051863155921},{"$f":"((Quarterly!BD154/Quarterly!BD153)^4)-1","v":4.0663991394888077E-2},{"$f":"((Quarterly!BE154/Quarterly!BE153)^4)-1","v":-1.2737423342015219E-2},{"$f":"((Quarterly!BF154/Quarterly!BF153)^4)-1","v":3.1296378933640234E-2},{"$f":"((Quarterly!BG154/Quarterly!BG153)^4)-1","v":4.7822912468859613E-2},{"$f":"((Quarterly!BH154/Quarterly!BH153)^4)-1","v":1.3450861847998263E-2},{"$f":"((Quarterly!BI154/Quarterly!BI153)^4)-1","v":-1.5727212002716873E-2},{"$f":"((Quarterly!BJ154/Quarterly!BJ153)^4)-1","v":0.28500756413200268},{"$f":"((Quarterly!BK154/Quarterly!BK153)^4)-1","v":0.3604889600000003},null,{"$f":"((Quarterly!BM154/Quarterly!BM153)^4)-1","v":8.6370648578605769E-2},{"$f":"((Quarterly!BN154/Quarterly!BN153)^4)-1","v":9.264450870851304E-2},null,null,null,null,null,{"$f":"((Quarterly!BT154/Quarterly!BT153)^4)-1","v":0.17364091344409704},{"$f":"Quarterly!BU154-Quarterly!BU153","v":0.11741999999999919},{"$f":"Quarterly!BV154-Quarterly!BV153","v":8.7820000000000675E-2},{"$f":"((Quarterly!BW154/Quarterly!BW153)^4)-1","v":5.8371831101566851E-2},{"$f":"((Quarterly!BX154/Quarterly!BX153)^4)-1","v":4.9482997245676508E-2},{"$f":"((Quarterly!BY154/Quarterly!BY153)^4)-1","v":8.758006377131311E-3},"--",{"$f":"((Quarterly!CA154/Quarterly!CA153)^4)-1","v":0.17128941523426433},{"$f":"((Quarterly!CB154/Quarterly!CB153)^4)-1","v":-0.25139640209609759},{"$f":"((Quarterly!CC154/Quarterly!CC153)^4)-1","v":-0.2423270441232882},"--","--",null,"--","--",null,{"$f":"((Quarterly!CJ154/Quarterly!CJ153)^4)-1","v":6.0478653480512179E-2},{"$f":"((Quarterly!CK154/Quarterly!CK153)^4)-1","v":7.4727608425038783E-2},{"$f":"((Quarterly!CL154/Quarterly!CL153)^4)-1","v":0.28629361882488391},{"$f":"((Quarterly!CM154/Quarterly!CM153)^4)-1","v":-9.7838221073811016E-2},{"$f":"((Quarterly!CN154/Quarterly!CN153)^4)-1","v":5.6699266024625938E-2},{"$f":"((Quarterly!CO154/Quarterly!CO153)^4)-1","v":-0.107414629829509},{"$f":"((Quarterly!CP154/Quarterly!CP153)^4)-1","v":0.17073296541286465},{"$f":"((Quarterly!CQ154/Quarterly!CQ153)^4)-1","v":1.2633082682078856E-2},{"$f":"((Quarterly!CR154/Quarterly!CR153)^4)-1","v":0.17739180160870194},{"$f":"Quarterly!CS154-Quarterly!CS153","v":2.3999999999999915},"--",null,null,null,null,null,{"$f":"((Quarterly!CZ154/Quarterly!CZ153)^4)-1","v":2.3485901131760967E-2},{"$f":"((Quarterly!DA154/Quarterly!DA153)^4)-1","v":2.5705630579372585E-2},null,null,null,null,null,{"$f":"((Quarterly!DG154/Quarterly!DG153)^4)-1","v":3.6181815017144459E-2},{"$f":"((Quarterly!DH154-Quarterly!DH153)*60)","v":-1.9999999999998863},{"$f":"Quarterly!DI154-Quarterly!DI153","v":0.1666666666666714},{"$f":"(Quarterly!DJ154-Quarterly!DJ153)*100","v":-40.000000000000036},{"$f":"(Quarterly!DK154-Quarterly!DK153)*100","v":-36.666666666666714},{"$f":"((Quarterly!DL154/Quarterly!DL153)^4)-1","v":2.562229182622433E-2},null,null,null,{"$f":"((Quarterly!DP154/Quarterly!DP153)^4)-1","v":3.2169619746755362E-2},null,null,null,"--",{"$f":"Quarterly!DU154-Quarterly!DU153","v":0.19999999999999929},{"$f":"((Quarterly!DV154/Quarterly!DV153)^4)-1","v":4.6592052801504913E-2},{"$f":"((Quarterly!DW154/Quarterly!DW153)^4)-1","v":3.2584121674130939E-2},{"$f":"((Quarterly!DX154/Quarterly!DX153)^4)-1","v":4.2289821664888816E-2},{"$f":"((Quarterly!DY154/Quarterly!DY153)^4)-1","v":-1.1538632792336356E-2},{"$f":"((Quarterly!DZ154/Quarterly!DZ153)^4)-1","v":6.0448000760600751E-2},{"$f":"((Quarterly!EA154/Quarterly!EA153)^4)-1","v":5.8647514819927915E-2},{"$f":"((Quarterly!EB154/Quarterly!EB153)^4)-1","v":6.4915511713995455E-2},{"$f":"((Quarterly!EC154/Quarterly!EC153)^4)-1","v":8.1123733507952878E-3},null,null,null,null,null,{"$f":"((Quarterly!EI154/Quarterly!EI153)^4)-1","v":6.1742420067499859E-2},{"$f":"((Quarterly!EJ154/Quarterly!EJ153)^4)-1","v":4.0039698559517944E-2},{"$f":"((Quarterly!EK154/Quarterly!EK153)^4)-1","v":3.654092455256297E-2},null,null,null,null,null,{"$f":"((Quarterly!EQ154/Quarterly!EQ153)^4)-1","v":1.5520774441891483E-2},{"$f":"((Quarterly!ER154/Quarterly!ER153)^4)-1","v":2.911559399294994E-3},{"$f":"((Quarterly!ES154/Quarterly!ES153)^4)-1","v":-9.8997641222131616E-4},null,null,null,null,null,{"$f":"(Quarterly!EY154-Quarterly!EY153)*100","v":62.999999999999986},{"$f":"(Quarterly!EZ154-Quarterly!EZ153)*100","v":67.999999999999972},{"$f":"(Quarterly!FA154-Quarterly!FA153)*100","v":39.66666666666665},{"$f":"(Quarterly!FB154-Quarterly!FB153)*100","v":36.666666666666536},-3.0000000000001137,{"$f":"(Quarterly!FD154-Quarterly!FD153)*100","v":51.333333333333364},{"$f":"(Quarterly!FE154-Quarterly!FE153)*100","v":80.333333333333371},{"$f":"(Quarterly!FF154-Quarterly!FF153)*100","v":99.666666666666799},{"$f":"(Quarterly!FG154-Quarterly!FG153)*100","v":92.333333333333286},{"$f":"(Quarterly!FH154-Quarterly!FH153)*100","v":67.666666666666771},{"$f":"(Quarterly!FI154-Quarterly!FI153)*100","v":50.3333333333333},-49.333333333333499,null,null,null,null,null,{"$f":"((Quarterly!FP154/Quarterly!FP153)^4)-1","v":-1.0264270651684559E-2},{"$f":"((Quarterly!FQ154/Quarterly!FQ153)^4)-1","v":-3.6099807660161298E-2},{"$f":"((Quarterly!FR154/Quarterly!FR153)^4)-1","v":0.28157097385057694},"--",{"$f":"((Quarterly!FT154/Quarterly!FT153)^4)-1","v":-2.0522172365052826E-3},{"$f":"((Quarterly!FU154/Quarterly!FU153)^4)-1","v":-2.7506565947305273E-2},{"$f":"((Quarterly!FV154/Quarterly!FV153)^4)-1","v":0.68186505910766271},{"$f":"((Quarterly!FW154/Quarterly!FW153)^4)-1","v":-0.41166187812921662},{"$f":"((Quarterly!FX154/Quarterly!FX153)^4)-1","v":0.55032358623083111},null,null,null,null,null,{"$f":"((Quarterly!GD154/Quarterly!GD153)^4)-1","v":-0.16965037763987512},{"$f":"((Quarterly!GE154/Quarterly!GE153)^4)-1","v":-6.0494180145484799E-2},{"$f":"((Quarterly!GF154/Quarterly!GF153)^4)-1","v":-0.28940056284812055},{"$f":"((Quarterly!GG154/Quarterly!GG153)^4)-1","v":9.5635900870263413E-3},{"$f":"((Quarterly!GH154/Quarterly!GH153)^4)-1","v":{"$error":"#DIV/0!"}},"--",{"$f":"((Quarterly!GJ154/Quarterly!GJ153)^4)-1","v":-6.1468444176816073E-2},{"$f":"((Quarterly!GK154/Quarterly!GK153)^4)-1","v":0.63002948608345033},"--"]
["95'Q1",{"$f":"((Quarterly!B155/Quarterly!B154)^4)-1","v":3.7228324694387194E-2},{"$f":"((Quarterly!C155/Quarterly!C154)^4)-1","v":1.3742454586221253E-2},{"$f":"((Quarterly!D155/Quarterly!D154)^4)-1","v":2.0620503358165454E-2},{"$f":"((Quarterly!E155/Quarterly!E154)^4)-1","v":1.062407679662658E-2},{"$f":"((Quarterly!F155/Quarterly!F154)^4)-1","v":-8.0336552863480404E-2},{"$f":"((Quarterly!G155/Quarterly!G154)^4)-1","v":1.4400954314855996E-2},{"$f":"((Quarterly!H155/Quarterly!H154)^4)-1","v":1.9435381218539938E-2},{"$f":"((Quarterly!I155/Quarterly!I154)^4)-1","v":0.15742984618650113},{"$f":"((Quarterly!J155/Quarterly!J154)^4)-1","v":0.24776281228388997},{"$f":"((Quarterly!K155/Quarterly!K154)^4)-1","v":-8.5951826413280585E-2},{"$f":"((Quarterly!L155-Quarterly!L154))","v":-14.175999999999988},{"$f":"((Quarterly!M155/Quarterly!M154)^4)-1","v":9.0693733766070928E-2},{"$f":"((Quarterly!N155/Quarterly!N154)^4)-1","v":7.9266017623190965E-2},{"$f":"((Quarterly!O155/Quarterly!O154)^4)-1","v":0.1785926579101933},{"$f":"((Quarterly!P155/Quarterly!P154)^4)-1","v":8.2234482857623803E-3},{"$f":"((Quarterly!Q155/Quarterly!Q154)^4)-1","v":-4.2353925237177847E-2},null,null,null,null,null,{"$f":"((Quarterly!W155/Quarterly!W154)^4)-1","v":-4.7421374698626284E-3},{"$f":"((Quarterly!X155/Quarterly!X154)^4)-1","v":1.5782202494551978E-3},{"$f":"((Quarterly!Y155/Quarterly!Y154)^4)-1","v":0.17979361888522361},{"$f":"Quarterly!Z155-Quarterly!Z154","v":-0.13},{"$f":"((Quarterly!AA155/Quarterly!AA154)^4)-1","v":0.1421996748749137},{"$f":"((Quarterly!AB155/Quarterly!AB154)^4)-1","v":-2.3499296901135169E-2},{"$f":"Quarterly!AC155-Quarterly!AC154","v":-0.30000000000000071},{"$f":"Quarterly!AD155-Quarterly!AD154","v":-13.400000000000002},{"$f":"(Quarterly!AE155-Quarterly!AE154)*100","v":4.0000000000000036},{"$f":"(Quarterly!AF155-Quarterly!AF154)*100","v":-13},{"$f":"(Quarterly!AG155-Quarterly!AG154)*100","v":-13},"--","--","--","--","--",{"$f":"((Quarterly!AM155/Quarterly!AM154)^4)-1","v":4.2007435315796426E-2},{"$f":"((Quarterly!AN155/Quarterly!AN154)^4)-1","v":4.4839562363355512E-2},"--",{"$f":"(Quarterly!AP155-Quarterly!AP154)*100","v":1.3333333333333641},{"$f":"Quarterly!AQ155-Quarterly!AQ154","v":-3.36666666666666},{"$f":"Quarterly!AR155-Quarterly!AR154","v":-4},"--",{"$f":"Quarterly!AT155-Quarterly!AT154","v":0.19999999999999574},{"$f":"Quarterly!AU155-Quarterly!AU154","v":0.56666666666667709},{"$f":"Quarterly!AV155-Quarterly!AV154","v":-0.76666666666666572},{"$f":"Quarterly!AW155-Quarterly!AW154","v":-0.23333333333333428},{"$f":"Quarterly!AX155-Quarterly!AX154","v":-5.0666666666666629},{"$f":"Quarterly!AY155-Quarterly!AY154","v":-3.0333333333333314},{"$f":"Quarterly!AZ155-Quarterly!AZ154","v":-4.5333333333333314},{"$f":"Quarterly!BA155-Quarterly!BA154","v":-4.7000000000000099},"--",{"$f":"((Quarterly!BC155/Quarterly!BC154)^4)-1","v":4.4912239844502766E-2},{"$f":"((Quarterly!BD155/Quarterly!BD154)^4)-1","v":3.3415865292491409E-2},{"$f":"((Quarterly!BE155/Quarterly!BE154)^4)-1","v":-6.755293016864572E-2},{"$f":"((Quarterly!BF155/Quarterly!BF154)^4)-1","v":2.5056356772494626E-2},{"$f":"((Quarterly!BG155/Quarterly!BG154)^4)-1","v":3.4449101133260385E-4},{"$f":"((Quarterly!BH155/Quarterly!BH154)^4)-1","v":7.8776983454731386E-4},{"$f":"((Quarterly!BI155/Quarterly!BI154)^4)-1","v":2.4684126386141259E-2},{"$f":"((Quarterly!BJ155/Quarterly!BJ154)^4)-1","v":0.18703200925413577},{"$f":"((Quarterly!BK155/Quarterly!BK154)^4)-1","v":-0.92771351852792694},null,{"$f":"((Quarterly!BM155/Quarterly!BM154)^4)-1","v":1.4942395783841267E-3},{"$f":"((Quarterly!BN155/Quarterly!BN154)^4)-1","v":9.9529347470750373E-4},null,null,null,null,null,{"$f":"((Quarterly!BT155/Quarterly!BT154)^4)-1","v":0.11261433225421591},{"$f":"Quarterly!BU155-Quarterly!BU154","v":0.17955000000000076},{"$f":"Quarterly!BV155-Quarterly!BV154","v":0.18902999999999892},{"$f":"((Quarterly!BW155/Quarterly!BW154)^4)-1","v":5.3300588231011359E-2},{"$f":"((Quarterly!BX155/Quarterly!BX154)^4)-1","v":-0.34548334769500988},{"$f":"((Quarterly!BY155/Quarterly!BY154)^4)-1","v":-0.31354267482860032},"--",{"$f":"((Quarterly!CA155/Quarterly!CA154)^4)-1","v":-0.20150406341511273},{"$f":"((Quarterly!CB155/Quarterly!CB154)^4)-1","v":3.4593867384250965E-2},{"$f":"((Quarterly!CC155/Quarterly!CC154)^4)-1","v":-1.513107378845735E-2},"--","--",null,"--","--",null,{"$f":"((Quarterly!CJ155/Quarterly!CJ154)^4)-1","v":-0.32912355203898502},{"$f":"((Quarterly!CK155/Quarterly!CK154)^4)-1","v":6.4939536127344599E-2},{"$f":"((Quarterly!CL155/Quarterly!CL154)^4)-1","v":0.50038188164039998},{"$f":"((Quarterly!CM155/Quarterly!CM154)^4)-1","v":-0.35138751253589129},{"$f":"((Quarterly!CN155/Quarterly!CN154)^4)-1","v":3.8756276410361057E-2},{"$f":"((Quarterly!CO155/Quarterly!CO154)^4)-1","v":-0.15234774014856622},{"$f":"((Quarterly!CP155/Quarterly!CP154)^4)-1","v":0.1660493038185793},{"$f":"((Quarterly!CQ155/Quarterly!CQ154)^4)-1","v":1.0854525194321951E-2},{"$f":"((Quarterly!CR155/Quarterly!CR154)^4)-1","v":0.21841382645366902},{"$f":"Quarterly!CS155-Quarterly!CS154","v":1.2000000000000028},"--",null,null,null,null,null,{"$f":"((Quarterly!CZ155/Quarterly!CZ154)^4)-1","v":2.970429469481628E-2},{"$f":"((Quarterly!DA155/Quarterly!DA154)^4)-1","v":3.4163069616163666E-2},null,null,null,null,null,{"$f":"((Quarterly!DG155/Quarterly!DG154)^4)-1","v":2.2299830744808569E-2},{"$f":"((Quarterly!DH155-Quarterly!DH154)*60)","v":-6.0000000000000853},{"$f":"Quarterly!DI155-Quarterly!DI154","v":6.6666666666662877E-2},{"$f":"(Quarterly!DJ155-Quarterly!DJ154)*100","v":-13.333333333333286},{"$f":"(Quarterly!DK155-Quarterly!DK154)*100","v":-16.666666666666696},{"$f":"((Quarterly!DL155/Quarterly!DL154)^4)-1","v":1.8990335981962536E-2},null,null,null,{"$f":"((Quarterly!DP155/Quarterly!DP154)^4)-1","v":3.002873209277146E-2},null,null,null,"--",{"$f":"Quarterly!DU155-Quarterly!DU154","v":-1.0999999999999979},{"$f":"((Quarterly!DV155/Quarterly!DV154)^4)-1","v":4.2139498185590485E-2},{"$f":"((Quarterly!DW155/Quarterly!DW154)^4)-1","v":-5.8767749640556644E-2},{"$f":"((Quarterly!DX155/Quarterly!DX154)^4)-1","v":-5.16698433269559E-2},{"$f":"((Quarterly!DY155/Quarterly!DY154)^4)-1","v":-0.10170043848705013},{"$f":"((Quarterly!DZ155/Quarterly!DZ154)^4)-1","v":-3.5079157047580134E-2},{"$f":"((Quarterly!EA155/Quarterly!EA154)^4)-1","v":-3.3414826058568381E-2},{"$f":"((Quarterly!EB155/Quarterly!EB154)^4)-1","v":-3.9184393827728203E-2},{"$f":"((Quarterly!EC155/Quarterly!EC154)^4)-1","v":-7.6857443957081828E-2},null,null,null,null,null,{"$f":"((Quarterly!EI155/Quarterly!EI154)^4)-1","v":7.8554254355469588E-3},{"$f":"((Quarterly!EJ155/Quarterly!EJ154)^4)-1","v":-7.0719129007756898E-4},{"$f":"((Quarterly!EK155/Quarterly!EK154)^4)-1","v":7.5506879005236005E-3},null,null,null,null,null,{"$f":"((Quarterly!EQ155/Quarterly!EQ154)^4)-1","v":6.752526748980614E-2},{"$f":"((Quarterly!ER155/Quarterly!ER154)^4)-1","v":3.1362488409074407E-2},{"$f":"((Quarterly!ES155/Quarterly!ES154)^4)-1","v":3.5124009107185161E-2},null,null,null,null,null,{"$f":"(Quarterly!EY155-Quarterly!EY154)*100","v":70.000000000000114},{"$f":"(Quarterly!EZ155-Quarterly!EZ154)*100","v":64.333333333333258},{"$f":"(Quarterly!FA155-Quarterly!FA154)*100","v":-29.000000000000092},{"$f":"(Quarterly!FB155-Quarterly!FB154)*100","v":-32.999999999999829},-3.9999999999997371,{"$f":"(Quarterly!FD155-Quarterly!FD154)*100","v":-28.666666666666529},{"$f":"(Quarterly!FE155-Quarterly!FE154)*100","v":45.6666666666667},{"$f":"(Quarterly!FF155-Quarterly!FF154)*100","v":12.999999999999989},{"$f":"(Quarterly!FG155-Quarterly!FG154)*100","v":-2.333333333333254},{"$f":"(Quarterly!FH155-Quarterly!FH154)*100","v":-24.000000000000021},{"$f":"(Quarterly!FI155-Quarterly!FI154)*100","v":-35.333333333333258},-48.333333333333243,null,null,null,null,null,{"$f":"((Quarterly!FP155/Quarterly!FP154)^4)-1","v":0.11910189916748304},{"$f":"((Quarterly!FQ155/Quarterly!FQ154)^4)-1","v":-3.4724745032065574E-2},{"$f":"((Quarterly!FR155/Quarterly!FR154)^4)-1","v":6.7695528082712917},"--",{"$f":"((Quarterly!FT155/Quarterly!FT154)^4)-1","v":0.13769167433491947},{"$f":"((Quarterly!FU155/Quarterly!FU154)^4)-1","v":-2.9064545671209974E-2},{"$f":"((Quarterly!FV155/Quarterly!FV154)^4)-1","v":-4.0625176699896848E-2},{"$f":"((Quarterly!FW155/Quarterly!FW154)^4)-1","v":-0.35863026868177594},{"$f":"((Quarterly!FX155/Quarterly!FX154)^4)-1","v":0.40168667640163025},null,null,null,null,null,{"$f":"((Quarterly!GD155/Quarterly!GD154)^4)-1","v":0.16826243991165546},{"$f":"((Quarterly!GE155/Quarterly!GE154)^4)-1","v":8.8245071598072933E-2},{"$f":"((Quarterly!GF155/Quarterly!GF154)^4)-1","v":0.33637066043377062},{"$f":"((Quarterly!GG155/Quarterly!GG154)^4)-1","v":-0.10492741843850217},{"$f":"((Quarterly!GH155/Quarterly!GH154)^4)-1","v":{"$error":"#DIV/0!"}},"--",{"$f":"((Quarterly!GJ155/Quarterly!GJ154)^4)-1","v":-0.48467986399776453},{"$f":"((Quarterly!GK155/Quarterly!GK154)^4)-1","v":8.8533354688436594E-2},"--"]
["95'Q2",{"$f":"((Quarterly!B156/Quarterly!B155)^4)-1","v":3.1986836915941286E-2},{"$f":"((Quarterly!C156/Quarterly!C155)^4)-1","v":1.4049598617218884E-2},{"$f":"((Quarterly!D156/Quarterly!D155)^4)-1","v":2.8698808715954982E-2},{"$f":"((Quarterly!E156/Quarterly!E155)^4)-1","v":3.6369669859388498E-2},{"$f":"((Quarterly!F156/Quarterly!F155)^4)-1","v":4.1303931048364051E-2},{"$f":"((Quarterly!G156/Quarterly!G155)^4)-1","v":1.9847993163208733E-2},{"$f":"((Quarterly!H156/Quarterly!H155)^4)-1","v":4.1702901277247406E-2},{"$f":"((Quarterly!I156/Quarterly!I155)^4)-1","v":3.9345497974453414E-2},{"$f":"((Quarterly!J156/Quarterly!J155)^4)-1","v":4.9068917850452864E-2},{"$f":"((Quarterly!K156/Quarterly!K155)^4)-1","v":-0.12241082990044816},{"$f":"((Quarterly!L156-Quarterly!L155))","v":-31.093000000000004},{"$f":"((Quarterly!M156/Quarterly!M155)^4)-1","v":3.8532052801702799E-2},{"$f":"((Quarterly!N156/Quarterly!N155)^4)-1","v":5.7266784138905624E-2},{"$f":"((Quarterly!O156/Quarterly!O155)^4)-1","v":-9.0429917948409044E-2},{"$f":"((Quarterly!P156/Quarterly!P155)^4)-1","v":2.1131244172653885E-2},{"$f":"((Quarterly!Q156/Quarterly!Q155)^4)-1","v":-0.18045374018329152},null,null,null,null,null,{"$f":"((Quarterly!W156/Quarterly!W155)^4)-1","v":-3.7510451157323765E-2},{"$f":"((Quarterly!X156/Quarterly!X155)^4)-1","v":-2.9621793607553681E-2},{"$f":"((Quarterly!Y156/Quarterly!Y155)^4)-1","v":0.12661822857055549},{"$f":"Quarterly!Z156-Quarterly!Z155","v":0},{"$f":"((Quarterly!AA156/Quarterly!AA155)^4)-1","v":0.21988520503648634},{"$f":"((Quarterly!AB156/Quarterly!AB155)^4)-1","v":0.26790957472521648},{"$f":"Quarterly!AC156-Quarterly!AC155","v":8.6999999999999993},{"$f":"Quarterly!AD156-Quarterly!AD155","v":-1},{"$f":"(Quarterly!AE156-Quarterly!AE155)*100","v":-7.0000000000000062},{"$f":"(Quarterly!AF156-Quarterly!AF155)*100","v":0},{"$f":"(Quarterly!AG156-Quarterly!AG155)*100","v":3.9999999999999982},"--","--","--","--","--",{"$f":"((Quarterly!AM156/Quarterly!AM155)^4)-1","v":1.3342403057565511E-2},{"$f":"((Quarterly!AN156/Quarterly!AN155)^4)-1","v":9.4938858811419724E-3},"--",{"$f":"(Quarterly!AP156-Quarterly!AP155)*100","v":1.9999999999999574},{"$f":"Quarterly!AQ156-Quarterly!AQ155","v":-6.8333333333333357},{"$f":"Quarterly!AR156-Quarterly!AR155","v":-11.5},"--",{"$f":"Quarterly!AT156-Quarterly!AT155","v":-4.1333333333333329},{"$f":"Quarterly!AU156-Quarterly!AU155","v":-2.2333333333333414},{"$f":"Quarterly!AV156-Quarterly!AV155","v":-3.3999999999999986},{"$f":"Quarterly!AW156-Quarterly!AW155","v":-2.8999999999999986},{"$f":"Quarterly!AX156-Quarterly!AX155","v":-9.5000000000000071},{"$f":"Quarterly!AY156-Quarterly!AY155","v":-12.300000000000011},{"$f":"Quarterly!AZ156-Quarterly!AZ155","v":-7.6666666666666643},{"$f":"Quarterly!BA156-Quarterly!BA155","v":-6.3000000000000114},"--",{"$f":"((Quarterly!BC156/Quarterly!BC155)^4)-1","v":0.10519270239003808},{"$f":"((Quarterly!BD156/Quarterly!BD155)^4)-1","v":3.7889584544362087E-2},{"$f":"((Quarterly!BE156/Quarterly!BE155)^4)-1","v":2.4392641150220218E-2},{"$f":"((Quarterly!BF156/Quarterly!BF155)^4)-1","v":3.2068921176749754E-2},{"$f":"((Quarterly!BG156/Quarterly!BG155)^4)-1","v":1.9485532133518557E-2},{"$f":"((Quarterly!BH156/Quarterly!BH155)^4)-1","v":1.1323424202522858E-3},{"$f":"((Quarterly!BI156/Quarterly!BI155)^4)-1","v":1.225949862247111E-2},{"$f":"((Quarterly!BJ156/Quarterly!BJ155)^4)-1","v":0.10727636120971051},{"$f":"((Quarterly!BK156/Quarterly!BK155)^4)-1","v":0},null,{"$f":"((Quarterly!BM156/Quarterly!BM155)^4)-1","v":6.3798210802085364E-2},{"$f":"((Quarterly!BN156/Quarterly!BN155)^4)-1","v":6.3666260465362834E-2},null,null,null,null,null,{"$f":"((Quarterly!BT156/Quarterly!BT155)^4)-1","v":0.1035709258394264},{"$f":"Quarterly!BU156-Quarterly!BU155","v":0.20035999999999987},{"$f":"Quarterly!BV156-Quarterly!BV155","v":0.22541000000000011},{"$f":"((Quarterly!BW156/Quarterly!BW155)^4)-1","v":6.415151708271094E-2},{"$f":"((Quarterly!BX156/Quarterly!BX155)^4)-1","v":-0.1062581006742056},{"$f":"((Quarterly!BY156/Quarterly!BY155)^4)-1","v":7.9906880610111086E-2},"--",{"$f":"((Quarterly!CA156/Quarterly!CA155)^4)-1","v":-2.4314420949863247E-2},{"$f":"((Quarterly!CB156/Quarterly!CB155)^4)-1","v":0.23780074914086824},{"$f":"((Quarterly!CC156/Quarterly!CC155)^4)-1","v":0.21108175315909694},"--","--",null,"--","--",null,{"$f":"((Quarterly!CJ156/Quarterly!CJ155)^4)-1","v":0.58252517119353953},{"$f":"((Quarterly!CK156/Quarterly!CK155)^4)-1","v":4.3065867589887841E-2},{"$f":"((Quarterly!CL156/Quarterly!CL155)^4)-1","v":-0.34544016240709419},{"$f":"((Quarterly!CM156/Quarterly!CM155)^4)-1","v":-9.0021996588951048E-2},{"$f":"((Quarterly!CN156/Quarterly!CN155)^4)-1","v":9.1165169625280207E-3},{"$f":"((Quarterly!CO156/Quarterly!CO155)^4)-1","v":-9.2315294056595443E-2},{"$f":"((Quarterly!CP156/Quarterly!CP155)^4)-1","v":0.14863434679168042},{"$f":"((Quarterly!CQ156/Quarterly!CQ155)^4)-1","v":1.1174824199615463E-2},{"$f":"((Quarterly!CR156/Quarterly!CR155)^4)-1","v":0.22181871222795668},{"$f":"Quarterly!CS156-Quarterly!CS155","v":-2.6666666666666572},"--",null,null,null,null,null,{"$f":"((Quarterly!CZ156/Quarterly!CZ155)^4)-1","v":3.3103128296020135E-2},{"$f":"((Quarterly!DA156/Quarterly!DA155)^4)-1","v":3.3016600552654207E-2},null,null,null,null,null,{"$f":"((Quarterly!DG156/Quarterly!DG155)^4)-1","v":2.9357778426231107E-3},{"$f":"((Quarterly!DH156-Quarterly!DH155)*60)","v":-7.9999999999999716},{"$f":"Quarterly!DI156-Quarterly!DI155","v":-0.13333333333332575},{"$f":"(Quarterly!DJ156-Quarterly!DJ155)*100","v":3.3333333333333215},{"$f":"(Quarterly!DK156-Quarterly!DK155)*100","v":20.000000000000107},{"$f":"((Quarterly!DL156/Quarterly!DL155)^4)-1","v":-4.6332940013116275E-4},null,null,null,{"$f":"((Quarterly!DP156/Quarterly!DP155)^4)-1","v":1.5282600106269584E-2},null,null,null,"--",{"$f":"Quarterly!DU156-Quarterly!DU155","v":0.29999999999999716},{"$f":"((Quarterly!DV156/Quarterly!DV155)^4)-1","v":1.1089024285995785E-2},{"$f":"((Quarterly!DW156/Quarterly!DW155)^4)-1","v":7.8521657814463408E-2},{"$f":"((Quarterly!DX156/Quarterly!DX155)^4)-1","v":7.9259935402868464E-2},{"$f":"((Quarterly!DY156/Quarterly!DY155)^4)-1","v":6.498847171092148E-2},{"$f":"((Quarterly!DZ156/Quarterly!DZ155)^4)-1","v":8.3815834858500082E-2},{"$f":"((Quarterly!EA156/Quarterly!EA155)^4)-1","v":8.4821073253147583E-2},{"$f":"((Quarterly!EB156/Quarterly!EB155)^4)-1","v":8.1330027305808406E-2},{"$f":"((Quarterly!EC156/Quarterly!EC155)^4)-1","v":7.6609949483407602E-2},null,null,null,null,null,{"$f":"((Quarterly!EI156/Quarterly!EI155)^4)-1","v":-7.9224241573968568E-3},{"$f":"((Quarterly!EJ156/Quarterly!EJ155)^4)-1","v":1.4184058956905332E-2},{"$f":"((Quarterly!EK156/Quarterly!EK155)^4)-1","v":2.4054279715733484E-2},null,null,null,null,null,{"$f":"((Quarterly!EQ156/Quarterly!EQ155)^4)-1","v":4.9502507783508509E-2},{"$f":"((Quarterly!ER156/Quarterly!ER155)^4)-1","v":2.6209022907494717E-2},{"$f":"((Quarterly!ES156/Quarterly!ES155)^4)-1","v":1.9786687349530263E-2},null,null,null,null,null,{"$f":"(Quarterly!EY156-Quarterly!EY155)*100","v":16.666666666666607},{"$f":"(Quarterly!EZ156-Quarterly!EZ155)*100","v":20.999999999999996},{"$f":"(Quarterly!FA156-Quarterly!FA155)*100","v":-61.999999999999922},{"$f":"(Quarterly!FB156-Quarterly!FB155)*100","v":-64.333333333333442},-2.3333333333335204,{"$f":"(Quarterly!FD156-Quarterly!FD155)*100","v":-86.333333333333414},{"$f":"(Quarterly!FE156-Quarterly!FE155)*100","v":-14.000000000000057},{"$f":"(Quarterly!FF156-Quarterly!FF155)*100","v":-75.666666666666686},{"$f":"(Quarterly!FG156-Quarterly!FG155)*100","v":-98.000000000000043},{"$f":"(Quarterly!FH156-Quarterly!FH155)*100","v":-99.3333333333334},{"$f":"(Quarterly!FI156-Quarterly!FI155)*100","v":-86.333333333333329},-10.666666666666643,null,null,null,null,null,{"$f":"((Quarterly!FP156/Quarterly!FP155)^4)-1","v":-9.7422581430345989E-2},{"$f":"((Quarterly!FQ156/Quarterly!FQ155)^4)-1","v":-4.1094634041779488E-2},{"$f":"((Quarterly!FR156/Quarterly!FR155)^4)-1","v":7.7348858333021742E-2},"--",{"$f":"((Quarterly!FT156/Quarterly!FT155)^4)-1","v":-0.133349971387144},{"$f":"((Quarterly!FU156/Quarterly!FU155)^4)-1","v":-0.20539162314274784},{"$f":"((Quarterly!FV156/Quarterly!FV155)^4)-1","v":0.16422266845646205},{"$f":"((Quarterly!FW156/Quarterly!FW155)^4)-1","v":0.74707397627918781},{"$f":"((Quarterly!FX156/Quarterly!FX155)^4)-1","v":8.4103875058255895E-2},null,null,null,null,null,{"$f":"((Quarterly!GD156/Quarterly!GD155)^4)-1","v":0.23296280776980516},{"$f":"((Quarterly!GE156/Quarterly!GE155)^4)-1","v":0.31982270110967526},{"$f":"((Quarterly!GF156/Quarterly!GF155)^4)-1","v":0.32501698439879911},{"$f":"((Quarterly!GG156/Quarterly!GG155)^4)-1","v":9.6136218277191654E-2},{"$f":"((Quarterly!GH156/Quarterly!GH155)^4)-1","v":{"$error":"#DIV/0!"}},"--",{"$f":"((Quarterly!GJ156/Quarterly!GJ155)^4)-1","v":0.67036572637375502},{"$f":"((Quarterly!GK156/Quarterly!GK155)^4)-1","v":-0.28640066347508841},"--"]
["95'Q3",{"$f":"((Quarterly!B157/Quarterly!B156)^4)-1","v":5.4523917168650238E-2},{"$f":"((Quarterly!C157/Quarterly!C156)^4)-1","v":3.4684035205873043E-2},{"$f":"((Quarterly!D157/Quarterly!D156)^4)-1","v":4.8823250493459369E-2},{"$f":"((Quarterly!E157/Quarterly!E156)^4)-1","v":3.7179823689430735E-2},{"$f":"((Quarterly!F157/Quarterly!F156)^4)-1","v":0.11770798569835539},{"$f":"((Quarterly!G157/Quarterly!G156)^4)-1","v":1.4278589034953493E-2},{"$f":"((Quarterly!H157/Quarterly!H156)^4)-1","v":3.7061778945592483E-2},{"$f":"((Quarterly!I157/Quarterly!I156)^4)-1","v":2.6784592934879115E-2},{"$f":"((Quarterly!J157/Quarterly!J156)^4)-1","v":1.3958208937790761E-2},{"$f":"((Quarterly!K157/Quarterly!K156)^4)-1","v":0.1295595755320782},{"$f":"((Quarterly!L157-Quarterly!L156))","v":-31.921000000000003},{"$f":"((Quarterly!M157/Quarterly!M156)^4)-1","v":1.3818439986460707E-2},{"$f":"((Quarterly!N157/Quarterly!N156)^4)-1","v":0.18468632678591179},{"$f":"((Quarterly!O157/Quarterly!O156)^4)-1","v":-0.75668359113087724},{"$f":"((Quarterly!P157/Quarterly!P156)^4)-1","v":-1.0902647697969114E-2},{"$f":"((Quarterly!Q157/Quarterly!Q156)^4)-1","v":5.8453290426906834E-2},null,null,null,null,null,{"$f":"((Quarterly!W157/Quarterly!W156)^4)-1","v":-2.379429467735561E-2},{"$f":"((Quarterly!X157/Quarterly!X156)^4)-1","v":-7.9191849614812515E-3},{"$f":"((Quarterly!Y157/Quarterly!Y156)^4)-1","v":0.10591652664648232},{"$f":"Quarterly!Z157-Quarterly!Z156","v":0.06},{"$f":"((Quarterly!AA157/Quarterly!AA156)^4)-1","v":6.7186701544786231E-2},{"$f":"((Quarterly!AB157/Quarterly!AB156)^4)-1","v":0.24818794157786273},{"$f":"Quarterly!AC157-Quarterly!AC156","v":1.8000000000000007},{"$f":"Quarterly!AD157-Quarterly!AD156","v":7.8000000000000007},{"$f":"(Quarterly!AE157-Quarterly!AE156)*100","v":-3.0000000000000027},{"$f":"(Quarterly!AF157-Quarterly!AF156)*100","v":6},{"$f":"(Quarterly!AG157-Quarterly!AG156)*100","v":3.0000000000000027},"--","--","--","--","--",{"$f":"((Quarterly!AM157/Quarterly!AM156)^4)-1","v":3.656847035256372E-2},{"$f":"((Quarterly!AN157/Quarterly!AN156)^4)-1","v":3.2685625902203697E-2},"--",{"$f":"(Quarterly!AP157-Quarterly!AP156)*100","v":-0.33333333333334103},{"$f":"Quarterly!AQ157-Quarterly!AQ156","v":0.60000000000000142},{"$f":"Quarterly!AR157-Quarterly!AR156","v":0},"--",{"$f":"Quarterly!AT157-Quarterly!AT156","v":0.3333333333333286},{"$f":"Quarterly!AU157-Quarterly!AU156","v":-1.7666666666666728},{"$f":"Quarterly!AV157-Quarterly!AV156","v":2.5},{"$f":"Quarterly!AW157-Quarterly!AW156","v":0.60000000000000142},{"$f":"Quarterly!AX157-Quarterly!AX156","v":2.9666666666666686},{"$f":"Quarterly!AY157-Quarterly!AY156","v":-17.93333333333333},{"$f":"Quarterly!AZ157-Quarterly!AZ156","v":0.36666666666666714},{"$f":"Quarterly!BA157-Quarterly!BA156","v":-3.6666666666666572},"--",{"$f":"((Quarterly!BC157/Quarterly!BC156)^4)-1","v":-7.023139536636247E-3},{"$f":"((Quarterly!BD157/Quarterly!BD156)^4)-1","v":1.9081844190506514E-2},{"$f":"((Quarterly!BE157/Quarterly!BE156)^4)-1","v":1.6909145218130917E-2},{"$f":"((Quarterly!BF157/Quarterly!BF156)^4)-1","v":2.175665708718677E-2},{"$f":"((Quarterly!BG157/Quarterly!BG156)^4)-1","v":-6.8534221762528436E-4},{"$f":"((Quarterly!BH157/Quarterly!BH156)^4)-1","v":2.6593110511601292E-3},{"$f":"((Quarterly!BI157/Quarterly!BI156)^4)-1","v":2.2492365560159877E-2},{"$f":"((Quarterly!BJ157/Quarterly!BJ156)^4)-1","v":0.15556700451568095},{"$f":"((Quarterly!BK157/Quarterly!BK156)^4)-1","v":3.1649312786339028},null,{"$f":"((Quarterly!BM157/Quarterly!BM156)^4)-1","v":5.9818936463253758E-2},{"$f":"((Quarterly!BN157/Quarterly!BN156)^4)-1","v":6.1507740288404111E-2},null,null,null,null,null,{"$f":"((Quarterly!BT157/Quarterly!BT156)^4)-1","v":0.10812076460897235},{"$f":"Quarterly!BU157-Quarterly!BU156","v":0.10838000000000036},{"$f":"Quarterly!BV157-Quarterly!BV156","v":0.12225000000000108},{"$f":"((Quarterly!BW157/Quarterly!BW156)^4)-1","v":4.2901954268081521E-2},{"$f":"((Quarterly!BX157/Quarterly!BX156)^4)-1","v":0.46106952236079479},{"$f":"((Quarterly!BY157/Quarterly!BY156)^4)-1","v":0.3858920070301215},"--",{"$f":"((Quarterly!CA157/Quarterly!CA156)^4)-1","v":8.2985638027500475E-2},{"$f":"((Quarterly!CB157/Quarterly!CB156)^4)-1","v":-0.18276081631520813},{"$f":"((Quarterly!CC157/Quarterly!CC156)^4)-1","v":-0.12875322660371158},"--","--",null,"--","--",null,{"$f":"((Quarterly!CJ157/Quarterly!CJ156)^4)-1","v":0.26909357754252672},{"$f":"((Quarterly!CK157/Quarterly!CK156)^4)-1","v":5.0145215725435621E-2},{"$f":"((Quarterly!CL157/Quarterly!CL156)^4)-1","v":-6.15205327086632E-3},{"$f":"((Quarterly!CM157/Quarterly!CM156)^4)-1","v":0.46601542083971559},{"$f":"((Quarterly!CN157/Quarterly!CN156)^4)-1","v":3.6242616580855369E-2},{"$f":"((Quarterly!CO157/Quarterly!CO156)^4)-1","v":5.0878805971824592E-2},{"$f":"((Quarterly!CP157/Quarterly!CP156)^4)-1","v":0.13698318451915714},{"$f":"((Quarterly!CQ157/Quarterly!CQ156)^4)-1","v":1.2736712250599913E-2},{"$f":"((Quarterly!CR157/Quarterly!CR156)^4)-1","v":0.22345436352274173},{"$f":"Quarterly!CS157-Quarterly!CS156","v":1.5},"--",null,null,null,null,null,{"$f":"((Quarterly!CZ157/Quarterly!CZ156)^4)-1","v":2.0315129388569497E-2},{"$f":"((Quarterly!DA157/Quarterly!DA156)^4)-1","v":2.6810411976134318E-2},null,null,null,null,null,{"$f":"((Quarterly!DG157/Quarterly!DG156)^4)-1","v":2.5142053394156205E-2},{"$f":"((Quarterly!DH157-Quarterly!DH156)*60)","v":1.9999999999998863},{"$f":"Quarterly!DI157-Quarterly!DI156","v":-3.3333333333345649E-2},{"$f":"(Quarterly!DJ157-Quarterly!DJ156)*100","v":3.3333333333334991},{"$f":"(Quarterly!DK157-Quarterly!DK156)*100","v":0},{"$f":"((Quarterly!DL157/Quarterly!DL156)^4)-1","v":-6.0883210268448673E-3},null,null,null,{"$f":"((Quarterly!DP157/Quarterly!DP156)^4)-1","v":1.7113699918670733E-2},null,null,null,"--",{"$f":"Quarterly!DU157-Quarterly!DU156","v":-0.19999999999999751},{"$f":"((Quarterly!DV157/Quarterly!DV156)^4)-1","v":-2.5415025550610038E-2},{"$f":"((Quarterly!DW157/Quarterly!DW156)^4)-1","v":3.2637110362694788E-2},{"$f":"((Quarterly!DX157/Quarterly!DX156)^4)-1","v":2.2300776364369224E-2},{"$f":"((Quarterly!DY157/Quarterly!DY156)^4)-1","v":0.12415090846110433},{"$f":"((Quarterly!DZ157/Quarterly!DZ156)^4)-1","v":-8.3716168642133937E-3},{"$f":"((Quarterly!EA157/Quarterly!EA156)^4)-1","v":-8.4707655787455982E-3},{"$f":"((Quarterly!EB157/Quarterly!EB156)^4)-1","v":-8.1259101700876801E-3},{"$f":"((Quarterly!EC157/Quarterly!EC156)^4)-1","v":5.9808618138605496E-2},null,null,null,null,null,{"$f":"((Quarterly!EI157/Quarterly!EI156)^4)-1","v":5.0121182891803784E-2},{"$f":"((Quarterly!EJ157/Quarterly!EJ156)^4)-1","v":4.5702156445697639E-2},{"$f":"((Quarterly!EK157/Quarterly!EK156)^4)-1","v":3.8245873124815866E-2},null,null,null,null,null,{"$f":"((Quarterly!EQ157/Quarterly!EQ156)^4)-1","v":8.5652616092040113E-3},{"$f":"((Quarterly!ER157/Quarterly!ER156)^4)-1","v":1.7303131530217675E-2},{"$f":"((Quarterly!ES157/Quarterly!ES156)^4)-1","v":1.3752253983518647E-2},null,null,null,null,null,{"$f":"(Quarterly!EY157-Quarterly!EY156)*100","v":-23.33333333333325},{"$f":"(Quarterly!EZ157-Quarterly!EZ156)*100","v":-22.333333333333272},{"$f":"(Quarterly!FA157-Quarterly!FA156)*100","v":-22.666666666666657},{"$f":"(Quarterly!FB157-Quarterly!FB156)*100","v":-17.999999999999972},4.6666666666666856,{"$f":"(Quarterly!FD157-Quarterly!FD156)*100","v":-24.666666666666703},{"$f":"(Quarterly!FE157-Quarterly!FE156)*100","v":-22.999999999999954},{"$f":"(Quarterly!FF157-Quarterly!FF156)*100","v":-31.666666666666643},{"$f":"(Quarterly!FG157-Quarterly!FG156)*100","v":-29.666666666666686},{"$f":"(Quarterly!FH157-Quarterly!FH156)*100","v":-31.666666666666643},{"$f":"(Quarterly!FI157-Quarterly!FI156)*100","v":-29.666666666666686},1.9999999999999574,null,null,null,null,null,{"$f":"((Quarterly!FP157/Quarterly!FP156)^4)-1","v":-4.5195757922892654E-2},{"$f":"((Quarterly!FQ157/Quarterly!FQ156)^4)-1","v":-1.8405666391947739E-2},{"$f":"((Quarterly!FR157/Quarterly!FR156)^4)-1","v":4.5854727819588437E-2},"--",{"$f":"((Quarterly!FT157/Quarterly!FT156)^4)-1","v":9.2919035945470796E-2},{"$f":"((Quarterly!FU157/Quarterly!FU156)^4)-1","v":0.12813849977920055},{"$f":"((Quarterly!FV157/Quarterly!FV156)^4)-1","v":-0.24757655269931678},{"$f":"((Quarterly!FW157/Quarterly!FW156)^4)-1","v":1.6247003564463114},{"$f":"((Quarterly!FX157/Quarterly!FX156)^4)-1","v":5.8649227364461209E-2},null,null,null,null,null,{"$f":"((Quarterly!GD157/Quarterly!GD156)^4)-1","v":-0.2743085754157043},{"$f":"((Quarterly!GE157/Quarterly!GE156)^4)-1","v":-0.35610927803053138},{"$f":"((Quarterly!GF157/Quarterly!GF156)^4)-1","v":-9.4536387817544476E-2},{"$f":"((Quarterly!GG157/Quarterly!GG156)^4)-1","v":-3.0685225711653996E-2},{"$f":"((Quarterly!GH157/Quarterly!GH156)^4)-1","v":{"$error":"#DIV/0!"}},"--",{"$f":"((Quarterly!GJ157/Quarterly!GJ156)^4)-1","v":-0.20314402542559384},{"$f":"((Quarterly!GK157/Quarterly!GK156)^4)-1","v":-0.21698713962559935},"--"]
["95'Q4",{"$f":"((Quarterly!B158/Quarterly!B157)^4)-1","v":4.9131125031419476E-2},{"$f":"((Quarterly!C158/Quarterly!C157)^4)-1","v":2.8700579845433172E-2},{"$f":"((Quarterly!D158/Quarterly!D157)^4)-1","v":2.5098112815565843E-2},{"$f":"((Quarterly!E158/Quarterly!E157)^4)-1","v":2.8405705837849515E-2},{"$f":"((Quarterly!F158/Quarterly!F157)^4)-1","v":7.1216327273851077E-2},{"$f":"((Quarterly!G158/Quarterly!G157)^4)-1","v":2.0750055479084484E-2},{"$f":"((Quarterly!H158/Quarterly!H157)^4)-1","v":2.6582381036675207E-2},{"$f":"((Quarterly!I158/Quarterly!I157)^4)-1","v":8.1745174120793074E-2},{"$f":"((Quarterly!J158/Quarterly!J157)^4)-1","v":0.11868898822577734},{"$f":"((Quarterly!K158/Quarterly!K157)^4)-1","v":9.3310391268364601E-2},{"$f":"((Quarterly!L158-Quarterly!L157))","v":5.7149999999999999},{"$f":"((Quarterly!M158/Quarterly!M157)^4)-1","v":5.2119247423666915E-2},{"$f":"((Quarterly!N158/Quarterly!N157)^4)-1","v":5.8392058577684702E-2},{"$f":"((Quarterly!O158/Quarterly!O157)^4)-1","v":-1.6401940096094414E-2},{"$f":"((Quarterly!P158/Quarterly!P157)^4)-1","v":-3.5475758269913005E-2},{"$f":"((Quarterly!Q158/Quarterly!Q157)^4)-1","v":-0.32468147535951608},null,null,null,null,null,{"$f":"((Quarterly!W158/Quarterly!W157)^4)-1","v":-9.6268854349069732E-3},{"$f":"((Quarterly!X158/Quarterly!X157)^4)-1","v":-1.4248733379449985E-2},{"$f":"((Quarterly!Y158/Quarterly!Y157)^4)-1","v":5.1629863225580941E-2},{"$f":"Quarterly!Z158-Quarterly!Z157","v":4.9999999999999989E-2},{"$f":"((Quarterly!AA158/Quarterly!AA157)^4)-1","v":6.2345655651864451E-2},{"$f":"((Quarterly!AB158/Quarterly!AB157)^4)-1","v":0.13530498116553358},{"$f":"Quarterly!AC158-Quarterly!AC157","v":-16},{"$f":"Quarterly!AD158-Quarterly!AD157","v":-17.8},{"$f":"(Quarterly!AE158-Quarterly!AE157)*100","v":-7.0000000000000062},{"$f":"(Quarterly!AF158-Quarterly!AF157)*100","v":4.9999999999999991},{"$f":"(Quarterly!AG158-Quarterly!AG157)*100","v":4.9999999999999991},"--","--","--","--","--",{"$f":"((Quarterly!AM158/Quarterly!AM157)^4)-1","v":3.5266059369056579E-2},{"$f":"((Quarterly!AN158/Quarterly!AN157)^4)-1","v":4.9310496370680967E-2},"--",{"$f":"(Quarterly!AP158-Quarterly!AP157)*100","v":-0.66666666666663765},{"$f":"Quarterly!AQ158-Quarterly!AQ157","v":-2.36666666666666},{"$f":"Quarterly!AR158-Quarterly!AR157","v":-0.5},"--",{"$f":"Quarterly!AT158-Quarterly!AT157","v":-0.66666666666665719},{"$f":"Quarterly!AU158-Quarterly!AU157","v":0.23333333333334139},{"$f":"Quarterly!AV158-Quarterly!AV157","v":-3.7666666666666728},{"$f":"Quarterly!AW158-Quarterly!AW157","v":-1.2333333333333343},{"$f":"Quarterly!AX158-Quarterly!AX157","v":-2.1999999999999957},{"$f":"Quarterly!AY158-Quarterly!AY157","v":-8.1999999999999886},{"$f":"Quarterly!AZ158-Quarterly!AZ157","v":-4.0999999999999943},{"$f":"Quarterly!BA158-Quarterly!BA157","v":-3.06666666666667},"--",{"$f":"((Quarterly!BC158/Quarterly!BC157)^4)-1","v":0.25692841465680938},{"$f":"((Quarterly!BD158/Quarterly!BD157)^4)-1","v":4.2399403216904608E-2},{"$f":"((Quarterly!BE158/Quarterly!BE157)^4)-1","v":-1.3751165050120639E-2},{"$f":"((Quarterly!BF158/Quarterly!BF157)^4)-1","v":3.3327016554408395E-2},{"$f":"((Quarterly!BG158/Quarterly!BG157)^4)-1","v":2.5843828349483289E-2},{"$f":"((Quarterly!BH158/Quarterly!BH157)^4)-1","v":1.2844257446396723E-2},{"$f":"((Quarterly!BI158/Quarterly!BI157)^4)-1","v":7.3177765619059087E-3},{"$f":"((Quarterly!BJ158/Quarterly!BJ157)^4)-1","v":-2.8401564181776973E-3},{"$f":"((Quarterly!BK158/Quarterly!BK157)^4)-1","v":1.44140625},null,{"$f":"((Quarterly!BM158/Quarterly!BM157)^4)-1","v":4.4616883389111628E-2},{"$f":"((Quarterly!BN158/Quarterly!BN157)^4)-1","v":4.9386157155595356E-2},null,null,null,null,null,{"$f":"((Quarterly!BT158/Quarterly!BT157)^4)-1","v":5.4016067937743717E-2},{"$f":"Quarterly!BU158-Quarterly!BU157","v":3.8439999999999586E-2},{"$f":"Quarterly!BV158-Quarterly!BV157","v":4.427000000000092E-2},{"$f":"((Quarterly!BW158/Quarterly!BW157)^4)-1","v":6.5978021913646545E-2},{"$f":"((Quarterly!BX158/Quarterly!BX157)^4)-1","v":5.6643710196404573E-3},{"$f":"((Quarterly!BY158/Quarterly!BY157)^4)-1","v":0.11105130268809726},"--",{"$f":"((Quarterly!CA158/Quarterly!CA157)^4)-1","v":9.8543783379575256E-2},{"$f":"((Quarterly!CB158/Quarterly!CB157)^4)-1","v":-6.4542708805300331E-2},{"$f":"((Quarterly!CC158/Quarterly!CC157)^4)-1","v":-6.5898636101972219E-2},"--","--",null,"--","--",null,{"$f":"((Quarterly!CJ158/Quarterly!CJ157)^4)-1","v":-0.13275293533128818},{"$f":"((Quarterly!CK158/Quarterly!CK157)^4)-1","v":4.8211921661574175E-2},{"$f":"((Quarterly!CL158/Quarterly!CL157)^4)-1","v":-0.10838803145218889},{"$f":"((Quarterly!CM158/Quarterly!CM157)^4)-1","v":7.4484045292382062E-2},{"$f":"((Quarterly!CN158/Quarterly!CN157)^4)-1","v":2.3341506929519973E-2},{"$f":"((Quarterly!CO158/Quarterly!CO157)^4)-1","v":8.2378414371473641E-2},{"$f":"((Quarterly!CP158/Quarterly!CP157)^4)-1","v":0.14467151698977165},{"$f":"((Quarterly!CQ158/Quarterly!CQ157)^4)-1","v":1.286274961297007E-2},{"$f":"((Quarterly!CR158/Quarterly!CR157)^4)-1","v":0.19930598021539403},{"$f":"Quarterly!CS158-Quarterly!CS157","v":-3.3666666666666742},"--",null,null,null,null,null,{"$f":"((Quarterly!CZ158/Quarterly!CZ157)^4)-1","v":2.1984448726456218E-2},{"$f":"((Quarterly!DA158/Quarterly!DA157)^4)-1","v":2.8313887291987694E-2},null,null,null,null,null,{"$f":"((Quarterly!DG158/Quarterly!DG157)^4)-1","v":2.0542249647794941E-2},{"$f":"((Quarterly!DH158-Quarterly!DH157)*60)","v":-1.9999999999998863},{"$f":"Quarterly!DI158-Quarterly!DI157","v":-9.9999999999994316E-2},{"$f":"(Quarterly!DJ158-Quarterly!DJ157)*100","v":-10.000000000000142},{"$f":"(Quarterly!DK158-Quarterly!DK157)*100","v":-10.000000000000053},{"$f":"((Quarterly!DL158/Quarterly!DL157)^4)-1","v":-3.7853506797753678E-3},null,null,null,{"$f":"((Quarterly!DP158/Quarterly!DP157)^4)-1","v":1.8579789339128405E-2},null,null,null,"--",{"$f":"Quarterly!DU158-Quarterly!DU157","v":-6.6666666666668206E-2},{"$f":"((Quarterly!DV158/Quarterly!DV157)^4)-1","v":8.9366837538899402E-2},{"$f":"((Quarterly!DW158/Quarterly!DW157)^4)-1","v":6.853806195886869E-2},{"$f":"((Quarterly!DX158/Quarterly!DX157)^4)-1","v":7.868675193028607E-2},{"$f":"((Quarterly!DY158/Quarterly!DY157)^4)-1","v":-8.9799626273119326E-3},{"$f":"((Quarterly!DZ158/Quarterly!DZ157)^4)-1","v":0.10846754466109965},{"$f":"((Quarterly!EA158/Quarterly!EA157)^4)-1","v":0.10824959799412182},{"$f":"((Quarterly!EB158/Quarterly!EB157)^4)-1","v":0.1090076731810381},{"$f":"((Quarterly!EC158/Quarterly!EC157)^4)-1","v":4.2783003043665779E-2},null,null,null,null,null,{"$f":"((Quarterly!EI158/Quarterly!EI157)^4)-1","v":4.7755853692806882E-2},{"$f":"((Quarterly!EJ158/Quarterly!EJ157)^4)-1","v":3.6098668325217798E-2},{"$f":"((Quarterly!EK158/Quarterly!EK157)^4)-1","v":2.9841949568534476E-2},null,null,null,null,null,{"$f":"((Quarterly!EQ158/Quarterly!EQ157)^4)-1","v":8.546959975949342E-3},{"$f":"((Quarterly!ER158/Quarterly!ER157)^4)-1","v":3.0781786405600808E-2},{"$f":"((Quarterly!ES158/Quarterly!ES157)^4)-1","v":2.8545027497823616E-2},null,null,null,null,null,{"$f":"(Quarterly!EY158-Quarterly!EY157)*100","v":-5.0000000000000711},{"$f":"(Quarterly!EZ158-Quarterly!EZ157)*100","v":-7.6666666666667993},{"$f":"(Quarterly!FA158-Quarterly!FA157)*100","v":-44.666666666666629},{"$f":"(Quarterly!FB158-Quarterly!FB157)*100","v":-41.333333333333222},3.3333333333334068,{"$f":"(Quarterly!FD158-Quarterly!FD157)*100","v":-35.000000000000057},{"$f":"(Quarterly!FE158-Quarterly!FE157)*100","v":-10.666666666666647},{"$f":"(Quarterly!FF158-Quarterly!FF157)*100","v":-21.000000000000085},{"$f":"(Quarterly!FG158-Quarterly!FG157)*100","v":-35.666666666666643},{"$f":"(Quarterly!FH158-Quarterly!FH157)*100","v":-39.666666666666558},{"$f":"(Quarterly!FI158-Quarterly!FI157)*100","v":-42.999999999999972},-21.999999999999886,null,null,null,null,null,{"$f":"((Quarterly!FP158/Quarterly!FP157)^4)-1","v":1.180666456171986E-3},{"$f":"((Quarterly!FQ158/Quarterly!FQ157)^4)-1","v":3.2541215741279661E-3},{"$f":"((Quarterly!FR158/Quarterly!FR157)^4)-1","v":0.98378891489393694},"--",{"$f":"((Quarterly!FT158/Quarterly!FT157)^4)-1","v":0.11196189210647289},{"$f":"((Quarterly!FU158/Quarterly!FU157)^4)-1","v":7.4347957916256924E-2},{"$f":"((Quarterly!FV158/Quarterly!FV157)^4)-1","v":0.4259451319582821},{"$f":"((Quarterly!FW158/Quarterly!FW157)^4)-1","v":-0.46520325064262902},{"$f":"((Quarterly!FX158/Quarterly!FX157)^4)-1","v":0.21805701155642021},null,null,null,null,null,{"$f":"((Quarterly!GD158/Quarterly!GD157)^4)-1","v":6.9712886711266187E-2},{"$f":"((Quarterly!GE158/Quarterly!GE157)^4)-1","v":0.19822879192986154},{"$f":"((Quarterly!GF158/Quarterly!GF157)^4)-1","v":-0.37601448735874887},{"$f":"((Quarterly!GG158/Quarterly!GG157)^4)-1","v":5.025852107683848E-2},{"$f":"((Quarterly!GH158/Quarterly!GH157)^4)-1","v":{"$error":"#DIV/0!"}},"--",{"$f":"((Quarterly!GJ158/Quarterly!GJ157)^4)-1","v":1.9837274468971278},{"$f":"((Quarterly!GK158/Quarterly!GK157)^4)-1","v":0.91646817382805468},"--"]
["96'Q1",{"$f":"((Quarterly!B159/Quarterly!B158)^4)-1","v":4.8902338540439905E-2},{"$f":"((Quarterly!C159/Quarterly!C158)^4)-1","v":2.6499343064665837E-2},{"$f":"((Quarterly!D159/Quarterly!D158)^4)-1","v":3.3215455187695087E-2},{"$f":"((Quarterly!E159/Quarterly!E158)^4)-1","v":3.7634735529522345E-2},{"$f":"((Quarterly!F159/Quarterly!F158)^4)-1","v":4.414719390745736E-2},{"$f":"((Quarterly!G159/Quarterly!G158)^4)-1","v":2.6148789377399506E-2},{"$f":"((Quarterly!H159/Quarterly!H158)^4)-1","v":4.094074083822008E-2},{"$f":"((Quarterly!I159/Quarterly!I158)^4)-1","v":0.10324321751093035},{"$f":"((Quarterly!J159/Quarterly!J158)^4)-1","v":0.18071592316123208},{"$f":"((Quarterly!K159/Quarterly!K158)^4)-1","v":0.10958913037643003},{"$f":"((Quarterly!L159-Quarterly!L158))","v":-13.077},{"$f":"((Quarterly!M159/Quarterly!M158)^4)-1","v":0.13651568376502388},{"$f":"((Quarterly!N159/Quarterly!N158)^4)-1","v":4.9109221891151078E-2},{"$f":"((Quarterly!O159/Quarterly!O158)^4)-1","v":1.5716037718775273},{"$f":"((Quarterly!P159/Quarterly!P158)^4)-1","v":8.3737094244651367E-3},{"$f":"((Quarterly!Q159/Quarterly!Q158)^4)-1","v":1.4746111657668814E-2},null,null,null,null,null,{"$f":"((Quarterly!W159/Quarterly!W158)^4)-1","v":-4.2876373564364911E-2},{"$f":"((Quarterly!X159/Quarterly!X158)^4)-1","v":-2.5315171871762909E-2},{"$f":"((Quarterly!Y159/Quarterly!Y158)^4)-1","v":7.6121563734916631E-2},{"$f":"Quarterly!Z159-Quarterly!Z158","v":0},{"$f":"((Quarterly!AA159/Quarterly!AA158)^4)-1","v":0.2019041545728566},{"$f":"((Quarterly!AB159/Quarterly!AB158)^4)-1","v":0.25001350708096837},{"$f":"Quarterly!AC159-Quarterly!AC158","v":3.6999999999999993},{"$f":"Quarterly!AD159-Quarterly!AD158","v":6.8},{"$f":"(Quarterly!AE159-Quarterly!AE158)*100","v":1.0000000000000009},{"$f":"(Quarterly!AF159-Quarterly!AF158)*100","v":0},{"$f":"(Quarterly!AG159-Quarterly!AG158)*100","v":5.0000000000000044},"--","--","--","--","--",{"$f":"((Quarterly!AM159/Quarterly!AM158)^4)-1","v":2.7950935803738641E-2},{"$f":"((Quarterly!AN159/Quarterly!AN158)^4)-1","v":2.3504149519178341E-2},"--",{"$f":"(Quarterly!AP159-Quarterly!AP158)*100","v":1.3333333333333197},{"$f":"Quarterly!AQ159-Quarterly!AQ158","v":-0.1666666666666714},{"$f":"Quarterly!AR159-Quarterly!AR158","v":0.3333333333333286},"--",{"$f":"Quarterly!AT159-Quarterly!AT158","v":-0.76666666666666572},{"$f":"Quarterly!AU159-Quarterly!AU158","v":-3.7666666666666728},{"$f":"Quarterly!AV159-Quarterly!AV158","v":0.23333333333334139},{"$f":"Quarterly!AW159-Quarterly!AW158","v":0.43333333333333712},{"$f":"Quarterly!AX159-Quarterly!AX158","v":-0.89999999999999858},{"$f":"Quarterly!AY159-Quarterly!AY158","v":-4.1000000000000085},{"$f":"Quarterly!AZ159-Quarterly!AZ158","v":-9.9999999999994316E-2},{"$f":"Quarterly!BA159-Quarterly!BA158","v":1.9000000000000057},"--",{"$f":"((Quarterly!BC159/Quarterly!BC158)^4)-1","v":-0.11154066890105585},{"$f":"((Quarterly!BD159/Quarterly!BD158)^4)-1","v":6.2099555605588108E-2},{"$f":"((Quarterly!BE159/Quarterly!BE158)^4)-1","v":-2.9636626218418671E-2},{"$f":"((Quarterly!BF159/Quarterly!BF158)^4)-1","v":4.6428743968693453E-2},{"$f":"((Quarterly!BG159/Quarterly!BG158)^4)-1","v":2.1518144729542499E-2},{"$f":"((Quarterly!BH159/Quarterly!BH158)^4)-1","v":1.5081054875223154E-2},{"$f":"((Quarterly!BI159/Quarterly!BI158)^4)-1","v":2.4373496927854843E-2},{"$f":"((Quarterly!BJ159/Quarterly!BJ158)^4)-1","v":0.13888081613279679},{"$f":"((Quarterly!BK159/Quarterly!BK158)^4)-1","v":0},null,{"$f":"((Quarterly!BM159/Quarterly!BM158)^4)-1","v":6.1137592481032677E-2},{"$f":"((Quarterly!BN159/Quarterly!BN158)^4)-1","v":6.5252429453176664E-2},null,null,null,null,null,{"$f":"((Quarterly!BT159/Quarterly!BT158)^4)-1","v":5.9152379268988753E-2},{"$f":"Quarterly!BU159-Quarterly!BU158","v":1.7089999999999606E-2},{"$f":"Quarterly!BV159-Quarterly!BV158","v":-1.676000000000144E-2},{"$f":"((Quarterly!BW159/Quarterly!BW158)^4)-1","v":5.3801753555146048E-2},{"$f":"((Quarterly!BX159/Quarterly!BX158)^4)-1","v":0.1280191419822414},{"$f":"((Quarterly!BY159/Quarterly!BY158)^4)-1","v":-2.5960599232706438E-2},"--",{"$f":"((Quarterly!CA159/Quarterly!CA158)^4)-1","v":-8.821161962146995E-5},{"$f":"((Quarterly!CB159/Quarterly!CB158)^4)-1","v":6.1963584920455173E-2},{"$f":"((Quarterly!CC159/Quarterly!CC158)^4)-1","v":3.374909678828053E-2},"--","--",null,"--","--",null,{"$f":"((Quarterly!CJ159/Quarterly!CJ158)^4)-1","v":0.28766946746448263},{"$f":"((Quarterly!CK159/Quarterly!CK158)^4)-1","v":7.5297480192418664E-2},{"$f":"((Quarterly!CL159/Quarterly!CL158)^4)-1","v":0.10648883187137881},{"$f":"((Quarterly!CM159/Quarterly!CM158)^4)-1","v":2.473745635139335E-2},{"$f":"((Quarterly!CN159/Quarterly!CN158)^4)-1","v":3.8818346598845643E-2},{"$f":"((Quarterly!CO159/Quarterly!CO158)^4)-1","v":0.13483652936616752},{"$f":"((Quarterly!CP159/Quarterly!CP158)^4)-1","v":0.12553760217666832},{"$f":"((Quarterly!CQ159/Quarterly!CQ158)^4)-1","v":9.9784259883117787E-3},{"$f":"((Quarterly!CR159/Quarterly!CR158)^4)-1","v":0.1716022310171299},{"$f":"Quarterly!CS159-Quarterly!CS158","v":0.70000000000000284},"--",null,null,null,null,null,{"$f":"((Quarterly!CZ159/Quarterly!CZ158)^4)-1","v":3.6044322986254151E-2},{"$f":"((Quarterly!DA159/Quarterly!DA158)^4)-1","v":2.7279617356050112E-2},null,null,null,null,null,{"$f":"((Quarterly!DG159/Quarterly!DG158)^4)-1","v":1.4495377220007377E-3},{"$f":"((Quarterly!DH159-Quarterly!DH158)*60)","v":-7.9999999999999716},{"$f":"Quarterly!DI159-Quarterly!DI158","v":3.3333333333331439E-2},{"$f":"(Quarterly!DJ159-Quarterly!DJ158)*100","v":-9.9999999999999645},{"$f":"(Quarterly!DK159-Quarterly!DK158)*100","v":-3.3333333333332327},{"$f":"((Quarterly!DL159/Quarterly!DL158)^4)-1","v":-2.0117993438880655E-3},null,null,null,{"$f":"((Quarterly!DP159/Quarterly!DP158)^4)-1","v":1.6973477735899412E-2},null,null,null,"--",{"$f":"Quarterly!DU159-Quarterly!DU158","v":-3.3333333333331439E-2},{"$f":"((Quarterly!DV159/Quarterly!DV158)^4)-1","v":1.2912618647084262E-2},{"$f":"((Quarterly!DW159/Quarterly!DW158)^4)-1","v":-9.1096067967126104E-2},{"$f":"((Quarterly!DX159/Quarterly!DX158)^4)-1","v":-8.8449479852147239E-2},{"$f":"((Quarterly!DY159/Quarterly!DY158)^4)-1","v":-0.10736550112247245},{"$f":"((Quarterly!DZ159/Quarterly!DZ158)^4)-1","v":-8.2394301021028959E-2},{"$f":"((Quarterly!EA159/Quarterly!EA158)^4)-1","v":-8.1204931215480891E-2},{"$f":"((Quarterly!EB159/Quarterly!EB158)^4)-1","v":-8.533563600247851E-2},{"$f":"((Quarterly!EC159/Quarterly!EC158)^4)-1","v":-9.7929155738598506E-2},null,null,null,null,null,{"$f":"((Quarterly!EI159/Quarterly!EI158)^4)-1","v":4.6250540249594296E-2},{"$f":"((Quarterly!EJ159/Quarterly!EJ158)^4)-1","v":4.1360970253130569E-2},{"$f":"((Quarterly!EK159/Quarterly!EK158)^4)-1","v":3.9255903266593783E-2},null,null,null,null,null,{"$f":"((Quarterly!EQ159/Quarterly!EQ158)^4)-1","v":2.6833342008990124E-2},{"$f":"((Quarterly!ER159/Quarterly!ER158)^4)-1","v":8.5216704047865743E-3},{"$f":"((Quarterly!ES159/Quarterly!ES158)^4)-1","v":5.815346928631504E-3},null,null,null,null,null,{"$f":"(Quarterly!EY159-Quarterly!EY158)*100","v":-38.333333333333286},{"$f":"(Quarterly!EZ159-Quarterly!EZ158)*100","v":-35.666666666666558},{"$f":"(Quarterly!FA159-Quarterly!FA158)*100","v":6.3333333333332575},{"$f":"(Quarterly!FB159-Quarterly!FB158)*100","v":6.9999999999999396},0.66666666666668206,{"$f":"(Quarterly!FD159-Quarterly!FD158)*100","v":-10.999999999999943},{"$f":"(Quarterly!FE159-Quarterly!FE158)*100","v":-33.000000000000099},{"$f":"(Quarterly!FF159-Quarterly!FF158)*100","v":-31.999999999999851},{"$f":"(Quarterly!FG159-Quarterly!FG158)*100","v":-23.333333333333339},{"$f":"(Quarterly!FH159-Quarterly!FH158)*100","v":-11.666666666666714},{"$f":"(Quarterly!FI159-Quarterly!FI158)*100","v":1.6666666666666607},33.666666666666515,null,null,null,null,null,{"$f":"((Quarterly!FP159/Quarterly!FP158)^4)-1","v":3.910058829013896E-2},{"$f":"((Quarterly!FQ159/Quarterly!FQ158)^4)-1","v":2.8826847951983758E-3},{"$f":"((Quarterly!FR159/Quarterly!FR158)^4)-1","v":8.2198889404108799E-2},"--",{"$f":"((Quarterly!FT159/Quarterly!FT158)^4)-1","v":8.0426363408125257E-2},{"$f":"((Quarterly!FU159/Quarterly!FU158)^4)-1","v":9.3951310571159574E-2},{"$f":"((Quarterly!FV159/Quarterly!FV158)^4)-1","v":-2.0395200444411121E-2},{"$f":"((Quarterly!FW159/Quarterly!FW158)^4)-1","v":-0.45622718820338226},{"$f":"((Quarterly!FX159/Quarterly!FX158)^4)-1","v":0.1530611098536494},null,null,null,null,null,{"$f":"((Quarterly!GD159/Quarterly!GD158)^4)-1","v":0.40566617710664143},{"$f":"((Quarterly!GE159/Quarterly!GE158)^4)-1","v":0.43400165100762167},{"$f":"((Quarterly!GF159/Quarterly!GF158)^4)-1","v":0.45654315197973805},{"$f":"((Quarterly!GG159/Quarterly!GG158)^4)-1","v":0.13469426279676022},{"$f":"((Quarterly!GH159/Quarterly!GH158)^4)-1","v":{"$error":"#DIV/0!"}},"--",{"$f":"((Quarterly!GJ159/Quarterly!GJ158)^4)-1","v":0.90325349162993929},{"$f":"((Quarterly!GK159/Quarterly!GK158)^4)-1","v":0.23449738656008634},"--"]
["96'Q2",{"$f":"((Quarterly!B160/Quarterly!B159)^4)-1","v":8.8104061163861047E-2},{"$f":"((Quarterly!C160/Quarterly!C159)^4)-1","v":7.1690434394273916E-2},{"$f":"((Quarterly!D160/Quarterly!D159)^4)-1","v":5.9317518750883647E-2},{"$f":"((Quarterly!E160/Quarterly!E159)^4)-1","v":4.4145148104282717E-2},{"$f":"((Quarterly!F160/Quarterly!F159)^4)-1","v":0.1335410604031253},{"$f":"((Quarterly!G160/Quarterly!G159)^4)-1","v":5.2403855397737953E-2},{"$f":"((Quarterly!H160/Quarterly!H159)^4)-1","v":3.2011972803046573E-2},{"$f":"((Quarterly!I160/Quarterly!I159)^4)-1","v":0.11257392801387556},{"$f":"((Quarterly!J160/Quarterly!J159)^4)-1","v":0.18531056067653617},{"$f":"((Quarterly!K160/Quarterly!K159)^4)-1","v":0.17953886260156993},{"$f":"((Quarterly!L160-Quarterly!L159))","v":27.613},{"$f":"((Quarterly!M160/Quarterly!M159)^4)-1","v":9.2567490350774939E-2},{"$f":"((Quarterly!N160/Quarterly!N159)^4)-1","v":6.6690013843121454E-2},{"$f":"((Quarterly!O160/Quarterly!O159)^4)-1","v":0.35141488207342397},{"$f":"((Quarterly!P160/Quarterly!P159)^4)-1","v":6.5637564668519666E-2},{"$f":"((Quarterly!Q160/Quarterly!Q159)^4)-1","v":-0.57768060975362667},null,null,null,null,null,{"$f":"((Quarterly!W160/Quarterly!W159)^4)-1","v":2.9700953078094949E-2},{"$f":"((Quarterly!X160/Quarterly!X159)^4)-1","v":2.9254471812669047E-2},{"$f":"((Quarterly!Y160/Quarterly!Y159)^4)-1","v":7.0206273795430318E-2},{"$f":"Quarterly!Z160-Quarterly!Z159","v":3.0000000000000027E-2},{"$f":"((Quarterly!AA160/Quarterly!AA159)^4)-1","v":1.5149736957553062E-2},{"$f":"((Quarterly!AB160/Quarterly!AB159)^4)-1","v":4.8319259033335893E-3},{"$f":"Quarterly!AC160-Quarterly!AC159","v":0.80000000000000071},{"$f":"Quarterly!AD160-Quarterly!AD159","v":10},{"$f":"(Quarterly!AE160-Quarterly!AE159)*100","v":-4.9999999999999822},{"$f":"(Quarterly!AF160-Quarterly!AF159)*100","v":3.0000000000000027},{"$f":"(Quarterly!AG160-Quarterly!AG159)*100","v":1.9999999999999907},"--","--","--","--","--",{"$f":"((Quarterly!AM160/Quarterly!AM159)^4)-1","v":8.8146227655854892E-2},{"$f":"((Quarterly!AN160/Quarterly!AN159)^4)-1","v":0.10246252309454107},"--",{"$f":"(Quarterly!AP160-Quarterly!AP159)*100","v":-3.6666666666666625},{"$f":"Quarterly!AQ160-Quarterly!AQ159","v":4.5666666666666629},{"$f":"Quarterly!AR160-Quarterly!AR159","v":6.1666666666666714},"--",{"$f":"Quarterly!AT160-Quarterly!AT159","v":1.1000000000000014},{"$f":"Quarterly!AU160-Quarterly!AU159","v":3.2000000000000028},{"$f":"Quarterly!AV160-Quarterly!AV159","v":0.26666666666665861},{"$f":"Quarterly!AW160-Quarterly!AW159","v":-1.2333333333333414},{"$f":"Quarterly!AX160-Quarterly!AX159","v":8.0333333333333314},{"$f":"Quarterly!AY160-Quarterly!AY159","v":6.8666666666666671},{"$f":"Quarterly!AZ160-Quarterly!AZ159","v":7.1666666666666572},{"$f":"Quarterly!BA160-Quarterly!BA159","v":1.7333333333333272},"--",{"$f":"((Quarterly!BC160/Quarterly!BC159)^4)-1","v":9.2032381352347148E-2},{"$f":"((Quarterly!BD160/Quarterly!BD159)^4)-1","v":3.1774563734301209E-2},{"$f":"((Quarterly!BE160/Quarterly!BE159)^4)-1","v":-1.5357140646176548E-2},{"$f":"((Quarterly!BF160/Quarterly!BF159)^4)-1","v":3.5847063769099963E-2},{"$f":"((Quarterly!BG160/Quarterly!BG159)^4)-1","v":4.1458396419286503E-2},{"$f":"((Quarterly!BH160/Quarterly!BH159)^4)-1","v":1.5633202923819312E-3},{"$f":"((Quarterly!BI160/Quarterly!BI159)^4)-1","v":-5.372082675116685E-3},{"$f":"((Quarterly!BJ160/Quarterly!BJ159)^4)-1","v":6.4892645497339974E-2},{"$f":"((Quarterly!BK160/Quarterly!BK159)^4)-1","v":0.57351936000000037},null,{"$f":"((Quarterly!BM160/Quarterly!BM159)^4)-1","v":8.0547489519769977E-2},{"$f":"((Quarterly!BN160/Quarterly!BN159)^4)-1","v":8.325431855166876E-2},null,null,null,null,null,{"$f":"((Quarterly!BT160/Quarterly!BT159)^4)-1","v":4.2684148689623891E-2},{"$f":"Quarterly!BU160-Quarterly!BU159","v":2.4340000000000472E-2},{"$f":"Quarterly!BV160-Quarterly!BV159","v":-5.4499999999997328E-3},{"$f":"((Quarterly!BW160/Quarterly!BW159)^4)-1","v":4.0431632795380645E-2},{"$f":"((Quarterly!BX160/Quarterly!BX159)^4)-1","v":9.9346973740368494E-2},{"$f":"((Quarterly!BY160/Quarterly!BY159)^4)-1","v":0.10269683930526474},"--",{"$f":"((Quarterly!CA160/Quarterly!CA159)^4)-1","v":2.2865116715852007E-2},{"$f":"((Quarterly!CB160/Quarterly!CB159)^4)-1","v":4.7600896100652434E-3},{"$f":"((Quarterly!CC160/Quarterly!CC159)^4)-1","v":-4.4070295679854432E-3},"--","--",null,"--","--",null,{"$f":"((Quarterly!CJ160/Quarterly!CJ159)^4)-1","v":-1.8136472324434827E-3},{"$f":"((Quarterly!CK160/Quarterly!CK159)^4)-1","v":8.2598687313581998E-2},{"$f":"((Quarterly!CL160/Quarterly!CL159)^4)-1","v":-2.9868637930299147E-2},{"$f":"((Quarterly!CM160/Quarterly!CM159)^4)-1","v":0.13512299977368536},{"$f":"((Quarterly!CN160/Quarterly!CN159)^4)-1","v":3.8742539499648787E-2},{"$f":"((Quarterly!CO160/Quarterly!CO159)^4)-1","v":0.11160148437629758},{"$f":"((Quarterly!CP160/Quarterly!CP159)^4)-1","v":0.10099643520628687},{"$f":"((Quarterly!CQ160/Quarterly!CQ159)^4)-1","v":1.1160415577136096E-2},{"$f":"((Quarterly!CR160/Quarterly!CR159)^4)-1","v":0.13353608172837861},{"$f":"Quarterly!CS160-Quarterly!CS159","v":1},"--",null,null,null,null,null,{"$f":"((Quarterly!CZ160/Quarterly!CZ159)^4)-1","v":3.4839957720641523E-2},{"$f":"((Quarterly!DA160/Quarterly!DA159)^4)-1","v":2.3781637027514124E-2},null,null,null,null,null,{"$f":"((Quarterly!DG160/Quarterly!DG159)^4)-1","v":5.3164335444276345E-2},{"$f":"((Quarterly!DH160-Quarterly!DH159)*60)","v":10.000000000000284},{"$f":"Quarterly!DI160-Quarterly!DI159","v":0.1666666666666714},{"$f":"(Quarterly!DJ160-Quarterly!DJ159)*100","v":-13.333333333333286},{"$f":"(Quarterly!DK160-Quarterly!DK159)*100","v":-3.3333333333334103},{"$f":"((Quarterly!DL160/Quarterly!DL159)^4)-1","v":1.7055251277962036E-3},null,null,null,{"$f":"((Quarterly!DP160/Quarterly!DP159)^4)-1","v":2.7030488613091652E-2},null,null,null,"--",{"$f":"Quarterly!DU160-Quarterly!DU159","v":0.36666666666666536},{"$f":"((Quarterly!DV160/Quarterly!DV159)^4)-1","v":4.1148245012582407E-2},{"$f":"((Quarterly!DW160/Quarterly!DW159)^4)-1","v":0.11979027610843263},{"$f":"((Quarterly!DX160/Quarterly!DX159)^4)-1","v":0.10979955023334753},{"$f":"((Quarterly!DY160/Quarterly!DY159)^4)-1","v":0.18152331271772093},{"$f":"((Quarterly!DZ160/Quarterly!DZ159)^4)-1","v":8.7923112891063582E-2},{"$f":"((Quarterly!EA160/Quarterly!EA159)^4)-1","v":8.896490279669278E-2},{"$f":"((Quarterly!EB160/Quarterly!EB159)^4)-1","v":8.5342706571214455E-2},{"$f":"((Quarterly!EC160/Quarterly!EC159)^4)-1","v":0.14606932038161413},null,null,null,null,null,{"$f":"((Quarterly!EI160/Quarterly!EI159)^4)-1","v":0.11328529817406596},{"$f":"((Quarterly!EJ160/Quarterly!EJ159)^4)-1","v":7.2659763704387315E-2},{"$f":"((Quarterly!EK160/Quarterly!EK159)^4)-1","v":5.6615166291589469E-2},null,null,null,null,null,{"$f":"((Quarterly!EQ160/Quarterly!EQ159)^4)-1","v":4.9453141765767983E-2},{"$f":"((Quarterly!ER160/Quarterly!ER159)^4)-1","v":1.0400574419099806E-2},{"$f":"((Quarterly!ES160/Quarterly!ES159)^4)-1","v":6.7771753278218494E-3},null,null,null,null,null,{"$f":"(Quarterly!EY160-Quarterly!EY159)*100","v":-8.3333333333333925},{"$f":"(Quarterly!EZ160-Quarterly!EZ159)*100","v":-12.000000000000011},{"$f":"(Quarterly!FA160-Quarterly!FA159)*100","v":56.00000000000005},{"$f":"(Quarterly!FB160-Quarterly!FB159)*100","v":58.666666666666686},2.6666666666666359,{"$f":"(Quarterly!FD160-Quarterly!FD159)*100","v":86.333333333333414},{"$f":"(Quarterly!FE160-Quarterly!FE159)*100","v":8.9999999999999858},{"$f":"(Quarterly!FF160-Quarterly!FF159)*100","v":53.999999999999915},{"$f":"(Quarterly!FG160-Quarterly!FG159)*100","v":85.333333333333343},{"$f":"(Quarterly!FH160-Quarterly!FH159)*100","v":92.000000000000085},{"$f":"(Quarterly!FI160-Quarterly!FI159)*100","v":80.999999999999957},27.000000000000043,null,null,null,null,null,{"$f":"((Quarterly!FP160/Quarterly!FP159)^4)-1","v":-1.2984953081023098E-2},{"$f":"((Quarterly!FQ160/Quarterly!FQ159)^4)-1","v":3.2170847784824819E-3},{"$f":"((Quarterly!FR160/Quarterly!FR159)^4)-1","v":-1.6925150471140182E-2},"--",{"$f":"((Quarterly!FT160/Quarterly!FT159)^4)-1","v":3.3509765627508958E-2},{"$f":"((Quarterly!FU160/Quarterly!FU159)^4)-1","v":4.2102186875700998E-2},{"$f":"((Quarterly!FV160/Quarterly!FV159)^4)-1","v":0.34949712965614288},{"$f":"((Quarterly!FW160/Quarterly!FW159)^4)-1","v":0.59885092961854069},{"$f":"((Quarterly!FX160/Quarterly!FX159)^4)-1","v":0.46405902306436908},null,null,null,null,null,{"$f":"((Quarterly!GD160/Quarterly!GD159)^4)-1","v":0.46670493972982086},{"$f":"((Quarterly!GE160/Quarterly!GE159)^4)-1","v":0.21758590434322511},{"$f":"((Quarterly!GF160/Quarterly!GF159)^4)-1","v":0.63284954651671965},{"$f":"((Quarterly!GG160/Quarterly!GG159)^4)-1","v":0.35782133539028416},{"$f":"((Quarterly!GH160/Quarterly!GH159)^4)-1","v":{"$error":"#DIV/0!"}},"--",{"$f":"((Quarterly!GJ160/Quarterly!GJ159)^4)-1","v":-8.3871635707066683E-2},{"$f":"((Quarterly!GK160/Quarterly!GK159)^4)-1","v":-0.44057946190488784},"--"]
["96'Q3",{"$f":"((Quarterly!B161/Quarterly!B160)^4)-1","v":4.9266753897117654E-2},{"$f":"((Quarterly!C161/Quarterly!C160)^4)-1","v":3.751742457886742E-2},{"$f":"((Quarterly!D161/Quarterly!D160)^4)-1","v":2.0486402828717276E-2},{"$f":"((Quarterly!E161/Quarterly!E160)^4)-1","v":2.4312815721423187E-2},{"$f":"((Quarterly!F161/Quarterly!F160)^4)-1","v":2.8789435457747592E-2},{"$f":"((Quarterly!G161/Quarterly!G160)^4)-1","v":2.8796408737846724E-2},{"$f":"((Quarterly!H161/Quarterly!H160)^4)-1","v":2.2266156648394375E-2},{"$f":"((Quarterly!I161/Quarterly!I160)^4)-1","v":0.13184606348674444},{"$f":"((Quarterly!J161/Quarterly!J160)^4)-1","v":0.18833178035967624},{"$f":"((Quarterly!K161/Quarterly!K160)^4)-1","v":-1.0369839638021516E-2},{"$f":"((Quarterly!L161-Quarterly!L160))","v":35.834000000000003},{"$f":"((Quarterly!M161/Quarterly!M160)^4)-1","v":0.1361309675072202},{"$f":"((Quarterly!N161/Quarterly!N160)^4)-1","v":3.2779100340688094E-2},{"$f":"((Quarterly!O161/Quarterly!O160)^4)-1","v":1.3790049299591032},{"$f":"((Quarterly!P161/Quarterly!P160)^4)-1","v":4.2243584116585797E-3},{"$f":"((Quarterly!Q161/Quarterly!Q160)^4)-1","v":-0.20871671750343956},null,null,null,null,null,{"$f":"((Quarterly!W161/Quarterly!W160)^4)-1","v":9.7560253669350949E-3},{"$f":"((Quarterly!X161/Quarterly!X160)^4)-1","v":-4.7799157653994895E-3},{"$f":"((Quarterly!Y161/Quarterly!Y160)^4)-1","v":7.5320869523164635E-2},{"$f":"Quarterly!Z161-Quarterly!Z160","v":-1.0000000000000009E-2},{"$f":"((Quarterly!AA161/Quarterly!AA160)^4)-1","v":-3.3907848954221498E-2},{"$f":"((Quarterly!AB161/Quarterly!AB160)^4)-1","v":3.52887639531132E-2},{"$f":"Quarterly!AC161-Quarterly!AC160","v":-7.0000000000000009},{"$f":"Quarterly!AD161-Quarterly!AD160","v":-6.3000000000000007},{"$f":"(Quarterly!AE161-Quarterly!AE160)*100","v":-2.0000000000000018},{"$f":"(Quarterly!AF161-Quarterly!AF160)*100","v":-1.0000000000000009},{"$f":"(Quarterly!AG161-Quarterly!AG160)*100","v":0},"--","--","--","--","--",{"$f":"((Quarterly!AM161/Quarterly!AM160)^4)-1","v":5.122422828579265E-2},{"$f":"((Quarterly!AN161/Quarterly!AN160)^4)-1","v":7.8262976941963602E-2},"--",{"$f":"(Quarterly!AP161-Quarterly!AP160)*100","v":-0.33333333333334103},{"$f":"Quarterly!AQ161-Quarterly!AQ160","v":0.13333333333333997},{"$f":"Quarterly!AR161-Quarterly!AR160","v":0.1666666666666643},"--",{"$f":"Quarterly!AT161-Quarterly!AT160","v":1.2333333333333272},{"$f":"Quarterly!AU161-Quarterly!AU160","v":0.63333333333333286},{"$f":"Quarterly!AV161-Quarterly!AV160","v":3.0333333333333456},{"$f":"Quarterly!AW161-Quarterly!AW160","v":2.6666666666677941E-2},{"$f":"Quarterly!AX161-Quarterly!AX160","v":-0.76666666666667282},{"$f":"Quarterly!AY161-Quarterly!AY160","v":0.40000000000000568},{"$f":"Quarterly!AZ161-Quarterly!AZ160","v":0.29999999999999716},{"$f":"Quarterly!BA161-Quarterly!BA160","v":0.20000000000000284},"--",{"$f":"((Quarterly!BC161/Quarterly!BC160)^4)-1","v":4.0229986846749721E-2},{"$f":"((Quarterly!BD161/Quarterly!BD160)^4)-1","v":5.4233008587327936E-2},{"$f":"((Quarterly!BE161/Quarterly!BE160)^4)-1","v":-2.5674843937541714E-2},{"$f":"((Quarterly!BF161/Quarterly!BF160)^4)-1","v":3.0814960851768936E-2},{"$f":"((Quarterly!BG161/Quarterly!BG160)^4)-1","v":1.5631293225515597E-2},{"$f":"((Quarterly!BH161/Quarterly!BH160)^4)-1","v":1.0239555958732272E-2},{"$f":"((Quarterly!BI161/Quarterly!BI160)^4)-1","v":1.4917687861911944E-2},{"$f":"((Quarterly!BJ161/Quarterly!BJ160)^4)-1","v":-8.3107402359321458E-3},{"$f":"((Quarterly!BK161/Quarterly!BK160)^4)-1","v":-0.13538467044981239},null,{"$f":"((Quarterly!BM161/Quarterly!BM160)^4)-1","v":3.1031342536488316E-2},{"$f":"((Quarterly!BN161/Quarterly!BN160)^4)-1","v":2.9190840698445131E-2},null,null,null,null,null,{"$f":"((Quarterly!BT161/Quarterly!BT160)^4)-1","v":4.3544399139046286E-2},{"$f":"Quarterly!BU161-Quarterly!BU160","v":4.673000000000016E-2},{"$f":"Quarterly!BV161-Quarterly!BV160","v":5.0830000000001263E-2},{"$f":"((Quarterly!BW161/Quarterly!BW160)^4)-1","v":5.0687768868613148E-2},{"$f":"((Quarterly!BX161/Quarterly!BX160)^4)-1","v":1.5241236186522844E-2},{"$f":"((Quarterly!BY161/Quarterly!BY160)^4)-1","v":-8.3693796032115131E-2},"--",{"$f":"((Quarterly!CA161/Quarterly!CA160)^4)-1","v":-5.0589850542118731E-2},{"$f":"((Quarterly!CB161/Quarterly!CB160)^4)-1","v":-7.4830945510691693E-2},{"$f":"((Quarterly!CC161/Quarterly!CC160)^4)-1","v":-0.10216167826870903},"--","--",null,"--","--",null,{"$f":"((Quarterly!CJ161/Quarterly!CJ160)^4)-1","v":0.33045739741793922},{"$f":"((Quarterly!CK161/Quarterly!CK160)^4)-1","v":4.6143630313724371E-2},{"$f":"((Quarterly!CL161/Quarterly!CL160)^4)-1","v":0.14331027634329496},{"$f":"((Quarterly!CM161/Quarterly!CM160)^4)-1","v":-8.9610188590782958E-3},{"$f":"((Quarterly!CN161/Quarterly!CN160)^4)-1","v":3.2312482317577551E-2},{"$f":"((Quarterly!CO161/Quarterly!CO160)^4)-1","v":0.10712925227327652},{"$f":"((Quarterly!CP161/Quarterly!CP160)^4)-1","v":9.8255034778681472E-2},{"$f":"((Quarterly!CQ161/Quarterly!CQ160)^4)-1","v":1.2844011516624176E-2},{"$f":"((Quarterly!CR161/Quarterly!CR160)^4)-1","v":0.11261328369700596},{"$f":"Quarterly!CS161-Quarterly!CS160","v":3.3999999999999915},"--",null,null,null,null,null,{"$f":"((Quarterly!CZ161/Quarterly!CZ160)^4)-1","v":2.3217350068174269E-2},{"$f":"((Quarterly!DA161/Quarterly!DA160)^4)-1","v":2.6110418201676255E-2},null,null,null,null,null,{"$f":"((Quarterly!DG161/Quarterly!DG160)^4)-1","v":3.6221674125411774E-2},{"$f":"((Quarterly!DH161-Quarterly!DH160)*60)","v":3.9999999999997726},{"$f":"Quarterly!DI161-Quarterly!DI160","v":0.13333333333333997},{"$f":"(Quarterly!DJ161-Quarterly!DJ160)*100","v":-26.66666666666675},{"$f":"(Quarterly!DK161-Quarterly!DK160)*100","v":-23.333333333333339},{"$f":"((Quarterly!DL161/Quarterly!DL160)^4)-1","v":6.0541206809432424E-3},null,null,null,{"$f":"((Quarterly!DP161/Quarterly!DP160)^4)-1","v":2.5085697556197495E-2},null,null,null,"--",{"$f":"Quarterly!DU161-Quarterly!DU160","v":-9.9999999999999645E-2},{"$f":"((Quarterly!DV161/Quarterly!DV160)^4)-1","v":3.0804590193594938E-2},{"$f":"((Quarterly!DW161/Quarterly!DW160)^4)-1","v":9.2988205521456369E-2},{"$f":"((Quarterly!DX161/Quarterly!DX160)^4)-1","v":8.1681328961266342E-2},{"$f":"((Quarterly!DY161/Quarterly!DY160)^4)-1","v":0.15965422644051697},{"$f":"((Quarterly!DZ161/Quarterly!DZ160)^4)-1","v":5.7491836801661922E-2},{"$f":"((Quarterly!EA161/Quarterly!EA160)^4)-1","v":5.7972071693201954E-2},{"$f":"((Quarterly!EB161/Quarterly!EB160)^4)-1","v":5.6300571584718018E-2},{"$f":"((Quarterly!EC161/Quarterly!EC160)^4)-1","v":0.12254572292792099},null,null,null,null,null,{"$f":"((Quarterly!EI161/Quarterly!EI160)^4)-1","v":5.2872517186336898E-2},{"$f":"((Quarterly!EJ161/Quarterly!EJ160)^4)-1","v":2.9807006630196531E-2},{"$f":"((Quarterly!EK161/Quarterly!EK160)^4)-1","v":2.8624100906560868E-2},null,null,null,null,null,{"$f":"((Quarterly!EQ161/Quarterly!EQ160)^4)-1","v":1.0471114959124339E-2},{"$f":"((Quarterly!ER161/Quarterly!ER160)^4)-1","v":8.4815169120180389E-3},{"$f":"((Quarterly!ES161/Quarterly!ES160)^4)-1","v":4.8291593985270165E-3},null,null,null,null,null,{"$f":"(Quarterly!EY161-Quarterly!EY160)*100","v":0},{"$f":"(Quarterly!EZ161-Quarterly!EZ160)*100","v":6.3333333333334352},{"$f":"(Quarterly!FA161-Quarterly!FA160)*100","v":-2.0000000000000462},{"$f":"(Quarterly!FB161-Quarterly!FB160)*100","v":-0.3333333333332078},1.6666666666668384,{"$f":"(Quarterly!FD161-Quarterly!FD160)*100","v":5.3333333333332789},{"$f":"(Quarterly!FE161-Quarterly!FE160)*100","v":7.6666666666667105},{"$f":"(Quarterly!FF161-Quarterly!FF160)*100","v":12.000000000000099},{"$f":"(Quarterly!FG161-Quarterly!FG160)*100","v":5.6666666666666643},{"$f":"(Quarterly!FH161-Quarterly!FH160)*100","v":5.33333333333319},{"$f":"(Quarterly!FI161-Quarterly!FI160)*100","v":6.0000000000000497},-6.0000000000000497,null,null,null,null,null,{"$f":"((Quarterly!FP161/Quarterly!FP160)^4)-1","v":1.6712182585443713E-2},{"$f":"((Quarterly!FQ161/Quarterly!FQ160)^4)-1","v":-4.6082964529041703E-3},{"$f":"((Quarterly!FR161/Quarterly!FR160)^4)-1","v":3.7048760552157889E-2},"--",{"$f":"((Quarterly!FT161/Quarterly!FT160)^4)-1","v":9.3210085638881779E-3},{"$f":"((Quarterly!FU161/Quarterly!FU160)^4)-1","v":-9.8068222990256304E-3},{"$f":"((Quarterly!FV161/Quarterly!FV160)^4)-1","v":-0.18682978185882937},{"$f":"((Quarterly!FW161/Quarterly!FW160)^4)-1","v":2.7974929069237819},{"$f":"((Quarterly!FX161/Quarterly!FX160)^4)-1","v":9.5909612962087998E-2},null,null,null,null,null,{"$f":"((Quarterly!GD161/Quarterly!GD160)^4)-1","v":0.12831733352826102},{"$f":"((Quarterly!GE161/Quarterly!GE160)^4)-1","v":0.31955291572640188},{"$f":"((Quarterly!GF161/Quarterly!GF160)^4)-1","v":-0.12112341823676964},{"$f":"((Quarterly!GG161/Quarterly!GG160)^4)-1","v":-0.10936859662219822},{"$f":"((Quarterly!GH161/Quarterly!GH160)^4)-1","v":{"$error":"#DIV/0!"}},"--",{"$f":"((Quarterly!GJ161/Quarterly!GJ160)^4)-1","v":-0.31033902696201365},{"$f":"((Quarterly!GK161/Quarterly!GK160)^4)-1","v":-2.8039058773856929E-2},"--"]
["96'Q4",{"$f":"((Quarterly!B162/Quarterly!B161)^4)-1","v":6.4262643523313567E-2},{"$f":"((Quarterly!C162/Quarterly!C161)^4)-1","v":4.2937199219135191E-2},{"$f":"((Quarterly!D162/Quarterly!D161)^4)-1","v":5.4918585740089787E-2},{"$f":"((Quarterly!E162/Quarterly!E161)^4)-1","v":3.1814382384607542E-2},{"$f":"((Quarterly!F162/Quarterly!F161)^4)-1","v":8.0306576540679631E-2},{"$f":"((Quarterly!G162/Quarterly!G161)^4)-1","v":3.2771684459391492E-2},{"$f":"((Quarterly!H162/Quarterly!H161)^4)-1","v":2.6226026754829546E-2},{"$f":"((Quarterly!I162/Quarterly!I161)^4)-1","v":0.10448450861951941},{"$f":"((Quarterly!J162/Quarterly!J161)^4)-1","v":0.1571209792122874},{"$f":"((Quarterly!K162/Quarterly!K161)^4)-1","v":-4.1101179752218941E-2},{"$f":"((Quarterly!L162-Quarterly!L161))","v":-27.315000000000005},{"$f":"((Quarterly!M162/Quarterly!M161)^4)-1","v":8.1243336488206364E-2},{"$f":"((Quarterly!N162/Quarterly!N161)^4)-1","v":0.27370814979004754},{"$f":"((Quarterly!O162/Quarterly!O161)^4)-1","v":-0.72873238754486724},{"$f":"((Quarterly!P162/Quarterly!P161)^4)-1","v":2.9609335942612169E-2},{"$f":"((Quarterly!Q162/Quarterly!Q161)^4)-1","v":-0.51692535389126681},null,null,null,null,null,{"$f":"((Quarterly!W162/Quarterly!W161)^4)-1","v":-9.6617649430612573E-3},{"$f":"((Quarterly!X162/Quarterly!X161)^4)-1","v":-1.5971248561528206E-3},{"$f":"((Quarterly!Y162/Quarterly!Y161)^4)-1","v":0.12144658632812555},{"$f":"Quarterly!Z162-Quarterly!Z161","v":1.0000000000000009E-2},{"$f":"((Quarterly!AA162/Quarterly!AA161)^4)-1","v":9.8657976286822713E-2},{"$f":"((Quarterly!AB162/Quarterly!AB161)^4)-1","v":0.13193822903285102},{"$f":"Quarterly!AC162-Quarterly!AC161","v":13.3},{"$f":"Quarterly!AD162-Quarterly!AD161","v":-14.1},{"$f":"(Quarterly!AE162-Quarterly!AE161)*100","v":-7.0000000000000062},{"$f":"(Quarterly!AF162-Quarterly!AF161)*100","v":1.0000000000000009},{"$f":"(Quarterly!AG162-Quarterly!AG161)*100","v":2.0000000000000018},"--","--","--","--","--",{"$f":"((Quarterly!AM162/Quarterly!AM161)^4)-1","v":5.6698532782185174E-2},{"$f":"((Quarterly!AN162/Quarterly!AN161)^4)-1","v":5.8996707749673138E-2},"--",{"$f":"(Quarterly!AP162-Quarterly!AP161)*100","v":-1.3333333333333197},{"$f":"Quarterly!AQ162-Quarterly!AQ161","v":2.0999999999999943},{"$f":"Quarterly!AR162-Quarterly!AR161","v":0.1666666666666643},"--",{"$f":"Quarterly!AT162-Quarterly!AT161","v":0.29999999999999716},{"$f":"Quarterly!AU162-Quarterly!AU161","v":1.8000000000000043},{"$f":"Quarterly!AV162-Quarterly!AV161","v":1.2666666666666586},{"$f":"Quarterly!AW162-Quarterly!AW161","v":6.6666666666606034E-3},{"$f":"Quarterly!AX162-Quarterly!AX161","v":3.4666666666666686},{"$f":"Quarterly!AY162-Quarterly!AY161","v":1.0666666666666629},{"$f":"Quarterly!AZ162-Quarterly!AZ161","v":3.8000000000000043},{"$f":"Quarterly!BA162-Quarterly!BA161","v":0.46666666666666856},"--",{"$f":"((Quarterly!BC162/Quarterly!BC161)^4)-1","v":0.11930961732642609},{"$f":"((Quarterly!BD162/Quarterly!BD161)^4)-1","v":3.1368141182824161E-2},{"$f":"((Quarterly!BE162/Quarterly!BE161)^4)-1","v":-9.4628122578397367E-3},{"$f":"((Quarterly!BF162/Quarterly!BF161)^4)-1","v":2.3088420565217094E-2},{"$f":"((Quarterly!BG162/Quarterly!BG161)^4)-1","v":5.0769461391748649E-3},{"$f":"((Quarterly!BH162/Quarterly!BH161)^4)-1","v":-9.7492224277018202E-3},{"$f":"((Quarterly!BI162/Quarterly!BI161)^4)-1","v":1.7941170793738026E-2},{"$f":"((Quarterly!BJ162/Quarterly!BJ161)^4)-1","v":0.13797020374107771},{"$f":"((Quarterly!BK162/Quarterly!BK161)^4)-1","v":0.1565837035531692},null,{"$f":"((Quarterly!BM162/Quarterly!BM161)^4)-1","v":7.5402199626970701E-2},{"$f":"((Quarterly!BN162/Quarterly!BN161)^4)-1","v":7.3602316790055022E-2},null,null,null,null,null,{"$f":"((Quarterly!BT162/Quarterly!BT161)^4)-1","v":9.0035401882094579E-2},{"$f":"Quarterly!BU162-Quarterly!BU161","v":5.7749999999998636E-2},{"$f":"Quarterly!BV162-Quarterly!BV161","v":6.0839999999998895E-2},{"$f":"((Quarterly!BW162/Quarterly!BW161)^4)-1","v":6.8441301249781761E-2},{"$f":"((Quarterly!BX162/Quarterly!BX161)^4)-1","v":-0.20645621887967913},{"$f":"((Quarterly!BY162/Quarterly!BY161)^4)-1","v":-6.7771421628710193E-2},"--",{"$f":"((Quarterly!CA162/Quarterly!CA161)^4)-1","v":1.7981902913499548E-2},{"$f":"((Quarterly!CB162/Quarterly!CB161)^4)-1","v":0.20957558993732084},{"$f":"((Quarterly!CC162/Quarterly!CC161)^4)-1","v":0.15865867701093461},"--","--",null,"--","--",null,{"$f":"((Quarterly!CJ162/Quarterly!CJ161)^4)-1","v":-0.11319410023788934},{"$f":"((Quarterly!CK162/Quarterly!CK161)^4)-1","v":5.5032543042623283E-2},{"$f":"((Quarterly!CL162/Quarterly!CL161)^4)-1","v":-0.12568807095847023},{"$f":"((Quarterly!CM162/Quarterly!CM161)^4)-1","v":-0.25955690046084623},{"$f":"((Quarterly!CN162/Quarterly!CN161)^4)-1","v":2.0996284126229448E-2},{"$f":"((Quarterly!CO162/Quarterly!CO161)^4)-1","v":0.12557654806553487},{"$f":"((Quarterly!CP162/Quarterly!CP161)^4)-1","v":7.8224957200366152E-2},{"$f":"((Quarterly!CQ162/Quarterly!CQ161)^4)-1","v":1.3186883362971136E-2},{"$f":"((Quarterly!CR162/Quarterly!CR161)^4)-1","v":0.13507063140878972},{"$f":"Quarterly!CS162-Quarterly!CS161","v":2.6333333333333542},"--",null,null,null,null,null,{"$f":"((Quarterly!CZ162/Quarterly!CZ161)^4)-1","v":3.5208672146697984E-2},{"$f":"((Quarterly!DA162/Quarterly!DA161)^4)-1","v":2.5941093732678944E-2},null,null,null,null,null,{"$f":"((Quarterly!DG162/Quarterly!DG161)^4)-1","v":3.4442501910047607E-2},{"$f":"((Quarterly!DH162-Quarterly!DH161)*60)","v":1.9999999999998863},{"$f":"Quarterly!DI162-Quarterly!DI161","v":0.16666666666665719},{"$f":"(Quarterly!DJ162-Quarterly!DJ161)*100","v":-6.666666666666643},{"$f":"(Quarterly!DK162-Quarterly!DK161)*100","v":6.666666666666643},{"$f":"((Quarterly!DL162/Quarterly!DL161)^4)-1","v":7.677135863794371E-3},null,null,null,{"$f":"((Quarterly!DP162/Quarterly!DP161)^4)-1","v":2.399197311861534E-2},null,null,null,"--",{"$f":"Quarterly!DU162-Quarterly!DU161","v":-0.46666666666666679},{"$f":"((Quarterly!DV162/Quarterly!DV161)^4)-1","v":-2.7360672607264602E-2},{"$f":"((Quarterly!DW162/Quarterly!DW161)^4)-1","v":-5.2371265045035864E-2},{"$f":"((Quarterly!DX162/Quarterly!DX161)^4)-1","v":-4.5239103571383943E-2},{"$f":"((Quarterly!DY162/Quarterly!DY161)^4)-1","v":-8.3147767987995058E-2},{"$f":"((Quarterly!DZ162/Quarterly!DZ161)^4)-1","v":-3.2525903646991039E-2},{"$f":"((Quarterly!EA162/Quarterly!EA161)^4)-1","v":-3.490381466961856E-2},{"$f":"((Quarterly!EB162/Quarterly!EB161)^4)-1","v":-2.660245113901194E-2},{"$f":"((Quarterly!EC162/Quarterly!EC161)^4)-1","v":-7.0406652979712159E-2},null,null,null,null,null,{"$f":"((Quarterly!EI162/Quarterly!EI161)^4)-1","v":5.2945685150211697E-2},{"$f":"((Quarterly!EJ162/Quarterly!EJ161)^4)-1","v":3.9261062750529652E-2},{"$f":"((Quarterly!EK162/Quarterly!EK161)^4)-1","v":3.6044528748241156E-2},null,null,null,null,null,{"$f":"((Quarterly!EQ162/Quarterly!EQ161)^4)-1","v":8.3485067778792388E-3},{"$f":"((Quarterly!ER162/Quarterly!ER161)^4)-1","v":0},{"$f":"((Quarterly!ES162/Quarterly!ES161)^4)-1","v":-1.9244642008764412E-3},null,null,null,null,null,{"$f":"(Quarterly!EY162-Quarterly!EY161)*100","v":0},{"$f":"(Quarterly!EZ162-Quarterly!EZ161)*100","v":-2.6666666666667282},{"$f":"(Quarterly!FA162-Quarterly!FA161)*100","v":-36.000000000000028},{"$f":"(Quarterly!FB162-Quarterly!FB161)*100","v":-37.666666666666785},-1.6666666666667567,{"$f":"(Quarterly!FD162-Quarterly!FD161)*100","v":-44.666666666666629},{"$f":"(Quarterly!FE162-Quarterly!FE161)*100","v":-12.000000000000011},{"$f":"(Quarterly!FF162-Quarterly!FF161)*100","v":-30.333333333333456},{"$f":"(Quarterly!FG162-Quarterly!FG161)*100","v":-37.999999999999986},{"$f":"(Quarterly!FH162-Quarterly!FH161)*100","v":-44.000000000000043},{"$f":"(Quarterly!FI162-Quarterly!FI161)*100","v":-43.666666666666657},-13.333333333333201,null,null,null,null,null,{"$f":"((Quarterly!FP162/Quarterly!FP161)^4)-1","v":-5.7296364469251349E-2},{"$f":"((Quarterly!FQ162/Quarterly!FQ161)^4)-1","v":-3.9281703304731019E-3},{"$f":"((Quarterly!FR162/Quarterly!FR161)^4)-1","v":0.15798841219336834},"--",{"$f":"((Quarterly!FT162/Quarterly!FT161)^4)-1","v":3.1769299187651923E-2},{"$f":"((Quarterly!FU162/Quarterly!FU161)^4)-1","v":2.2691740879423383E-2},{"$f":"((Quarterly!FV162/Quarterly!FV161)^4)-1","v":0.19660646065290255},{"$f":"((Quarterly!FW162/Quarterly!FW161)^4)-1","v":-0.3192792348758422},{"$f":"((Quarterly!FX162/Quarterly!FX161)^4)-1","v":0.1813376673920557},null,null,null,null,null,{"$f":"((Quarterly!GD162/Quarterly!GD161)^4)-1","v":0.46433744568657564},{"$f":"((Quarterly!GE162/Quarterly!GE161)^4)-1","v":0.6155873800859808},{"$f":"((Quarterly!GF162/Quarterly!GF161)^4)-1","v":3.9720672666083034E-2},{"$f":"((Quarterly!GG162/Quarterly!GG161)^4)-1","v":0.39067672287289734},{"$f":"((Quarterly!GH162/Quarterly!GH161)^4)-1","v":{"$error":"#DIV/0!"}},"--",{"$f":"((Quarterly!GJ162/Quarterly!GJ161)^4)-1","v":2.917775033798637},{"$f":"((Quarterly!GK162/Quarterly!GK161)^4)-1","v":0.53157305411627465},"--"]
["97'Q1",{"$f":"((Quarterly!B163/Quarterly!B162)^4)-1","v":5.6665208121555954E-2},{"$f":"((Quarterly!C163/Quarterly!C162)^4)-1","v":3.0837546537658023E-2},{"$f":"((Quarterly!D163/Quarterly!D162)^4)-1","v":2.8271567421366495E-2},{"$f":"((Quarterly!E163/Quarterly!E162)^4)-1","v":4.2872672338913453E-2},{"$f":"((Quarterly!F163/Quarterly!F162)^4)-1","v":0.11270307781510613},{"$f":"((Quarterly!G163/Quarterly!G162)^4)-1","v":2.455029613879911E-2},{"$f":"((Quarterly!H163/Quarterly!H162)^4)-1","v":4.1673891062834478E-2},{"$f":"((Quarterly!I163/Quarterly!I162)^4)-1","v":9.4088122824077081E-2},{"$f":"((Quarterly!J163/Quarterly!J162)^4)-1","v":0.13012188970490191},{"$f":"((Quarterly!K163/Quarterly!K162)^4)-1","v":1.3864611236551694E-2},{"$f":"((Quarterly!L163-Quarterly!L162))","v":13.238},{"$f":"((Quarterly!M163/Quarterly!M162)^4)-1","v":0.18209497113751216},{"$f":"((Quarterly!N163/Quarterly!N162)^4)-1","v":7.8215668530591032E-2},{"$f":"((Quarterly!O163/Quarterly!O162)^4)-1","v":1.7405669094712342},{"$f":"((Quarterly!P163/Quarterly!P162)^4)-1","v":-9.9532402751034699E-4},{"$f":"((Quarterly!Q163/Quarterly!Q162)^4)-1","v":-0.46955064286557013},null,null,null,null,null,{"$f":"((Quarterly!W163/Quarterly!W162)^4)-1","v":1.466072078237457E-2},{"$f":"((Quarterly!X163/Quarterly!X162)^4)-1","v":1.6083312457702892E-2},{"$f":"((Quarterly!Y163/Quarterly!Y162)^4)-1","v":9.0757795586167589E-2},{"$f":"Quarterly!Z163-Quarterly!Z162","v":-0.10000000000000003},{"$f":"((Quarterly!AA163/Quarterly!AA162)^4)-1","v":9.8326742613763507E-2},{"$f":"((Quarterly!AB163/Quarterly!AB162)^4)-1","v":0.20218510004571399},{"$f":"Quarterly!AC163-Quarterly!AC162","v":-5.3000000000000007},{"$f":"Quarterly!AD163-Quarterly!AD162","v":11.1},{"$f":"(Quarterly!AE163-Quarterly!AE162)*100","v":1.0000000000000009},{"$f":"(Quarterly!AF163-Quarterly!AF162)*100","v":-10.000000000000004},{"$f":"(Quarterly!AG163-Quarterly!AG162)*100","v":-2.0000000000000018},"--","--","--","--","--",{"$f":"((Quarterly!AM163/Quarterly!AM162)^4)-1","v":7.8007494220906359E-2},{"$f":"((Quarterly!AN163/Quarterly!AN162)^4)-1","v":9.1877877945657715E-2},"--",{"$f":"(Quarterly!AP163-Quarterly!AP162)*100","v":-1.6666666666666607},{"$f":"Quarterly!AQ163-Quarterly!AQ162","v":0.6666666666666643},{"$f":"Quarterly!AR163-Quarterly!AR162","v":0.3333333333333357},"--",{"$f":"Quarterly!AT163-Quarterly!AT162","v":1.4333333333333371},{"$f":"Quarterly!AU163-Quarterly!AU162","v":-0.8333333333333357},{"$f":"Quarterly!AV163-Quarterly!AV162","v":-0.69999999999999574},{"$f":"Quarterly!AW163-Quarterly!AW162","v":0.56666666666666288},{"$f":"Quarterly!AX163-Quarterly!AX162","v":0.56666666666666288},{"$f":"Quarterly!AY163-Quarterly!AY162","v":5.5999999999999943},{"$f":"Quarterly!AZ163-Quarterly!AZ162","v":0.43333333333333002},{"$f":"Quarterly!BA163-Quarterly!BA162","v":0.26666666666666572},"--",{"$f":"((Quarterly!BC163/Quarterly!BC162)^4)-1","v":0.11917399113414184},{"$f":"((Quarterly!BD163/Quarterly!BD162)^4)-1","v":5.474116190616618E-2},{"$f":"((Quarterly!BE163/Quarterly!BE162)^4)-1","v":-2.9629688765013262E-2},{"$f":"((Quarterly!BF163/Quarterly!BF162)^4)-1","v":4.7257913909423355E-2},{"$f":"((Quarterly!BG163/Quarterly!BG162)^4)-1","v":-2.6113091932845611E-3},{"$f":"((Quarterly!BH163/Quarterly!BH162)^4)-1","v":2.5420269553791064E-2},{"$f":"((Quarterly!BI163/Quarterly!BI162)^4)-1","v":4.9974517253767115E-2},{"$f":"((Quarterly!BJ163/Quarterly!BJ162)^4)-1","v":6.3380311467100769E-2},{"$f":"((Quarterly!BK163/Quarterly!BK162)^4)-1","v":-0.82921178675551865},null,{"$f":"((Quarterly!BM163/Quarterly!BM162)^4)-1","v":6.8843092480305401E-2},{"$f":"((Quarterly!BN163/Quarterly!BN162)^4)-1","v":6.6549060856130104E-2},null,null,null,null,null,{"$f":"((Quarterly!BT163/Quarterly!BT162)^4)-1","v":1.4680504033101949E-2},{"$f":"Quarterly!BU163-Quarterly!BU162","v":-4.8159999999999314E-2},{"$f":"Quarterly!BV163-Quarterly!BV162","v":-4.1229999999998768E-2},{"$f":"((Quarterly!BW163/Quarterly!BW162)^4)-1","v":4.6272174318075621E-2},{"$f":"((Quarterly!BX163/Quarterly!BX162)^4)-1","v":4.4963749534762343E-2},{"$f":"((Quarterly!BY163/Quarterly!BY162)^4)-1","v":8.0788364138199453E-2},"--",{"$f":"((Quarterly!CA163/Quarterly!CA162)^4)-1","v":4.3055396291596271E-2},{"$f":"((Quarterly!CB163/Quarterly!CB162)^4)-1","v":-0.16846888305027974},{"$f":"((Quarterly!CC163/Quarterly!CC162)^4)-1","v":-0.14028268254205845},"--","--",null,"--","--",null,{"$f":"((Quarterly!CJ163/Quarterly!CJ162)^4)-1","v":0.32210107841870617},{"$f":"((Quarterly!CK163/Quarterly!CK162)^4)-1","v":7.5315966973873216E-2},{"$f":"((Quarterly!CL163/Quarterly!CL162)^4)-1","v":2.5212985706527524E-2},{"$f":"((Quarterly!CM163/Quarterly!CM162)^4)-1","v":0.16065199933224061},{"$f":"((Quarterly!CN163/Quarterly!CN162)^4)-1","v":4.0788451165966411E-2},{"$f":"((Quarterly!CO163/Quarterly!CO162)^4)-1","v":9.846447661731017E-2},{"$f":"((Quarterly!CP163/Quarterly!CP162)^4)-1","v":6.2777544073913782E-2},{"$f":"((Quarterly!CQ163/Quarterly!CQ162)^4)-1","v":1.0784384644047851E-2},{"$f":"((Quarterly!CR163/Quarterly!CR162)^4)-1","v":0.10751470598623514},{"$f":"Quarterly!CS163-Quarterly!CS162","v":1.5},"--",null,null,null,null,null,{"$f":"((Quarterly!CZ163/Quarterly!CZ162)^4)-1","v":2.4593360557784827E-2},{"$f":"((Quarterly!DA163/Quarterly!DA162)^4)-1","v":2.3336710853592901E-2},null,null,null,null,null,{"$f":"((Quarterly!DG163/Quarterly!DG162)^4)-1","v":2.839724184696224E-2},{"$f":"((Quarterly!DH163-Quarterly!DH162)*60)","v":0},{"$f":"Quarterly!DI163-Quarterly!DI162","v":0},{"$f":"(Quarterly!DJ163-Quarterly!DJ162)*100","v":-10.000000000000142},{"$f":"(Quarterly!DK163-Quarterly!DK162)*100","v":-9.9999999999999645},{"$f":"((Quarterly!DL163/Quarterly!DL162)^4)-1","v":9.6043305508781707E-3},null,null,null,{"$f":"((Quarterly!DP163/Quarterly!DP162)^4)-1","v":2.5207480321614462E-2},null,null,null,"--",{"$f":"Quarterly!DU163-Quarterly!DU162","v":0},{"$f":"((Quarterly!DV163/Quarterly!DV162)^4)-1","v":1.5672454500182287E-2},{"$f":"((Quarterly!DW163/Quarterly!DW162)^4)-1","v":-8.9944512514180897E-2},{"$f":"((Quarterly!DX163/Quarterly!DX162)^4)-1","v":-8.3097102406832546E-2},{"$f":"((Quarterly!DY163/Quarterly!DY162)^4)-1","v":-0.1368637852148803},{"$f":"((Quarterly!DZ163/Quarterly!DZ162)^4)-1","v":-6.5132693121033092E-2},{"$f":"((Quarterly!EA163/Quarterly!EA162)^4)-1","v":-6.3413703784660158E-2},{"$f":"((Quarterly!EB163/Quarterly!EB162)^4)-1","v":-6.9381689889391418E-2},{"$f":"((Quarterly!EC163/Quarterly!EC162)^4)-1","v":-0.1073750739863536},null,null,null,null,null,{"$f":"((Quarterly!EI163/Quarterly!EI162)^4)-1","v":4.6342579426984054E-2},{"$f":"((Quarterly!EJ163/Quarterly!EJ162)^4)-1","v":3.7686947634726575E-2},{"$f":"((Quarterly!EK163/Quarterly!EK162)^4)-1","v":3.8190502565091711E-2},null,null,null,null,null,{"$f":"((Quarterly!EQ163/Quarterly!EQ162)^4)-1","v":2.0779213777155636E-3},{"$f":"((Quarterly!ER163/Quarterly!ER162)^4)-1","v":7.5205309361254802E-3},{"$f":"((Quarterly!ES163/Quarterly!ES162)^4)-1","v":6.7608113845381013E-3},null,null,null,null,null,{"$f":"(Quarterly!EY163-Quarterly!EY162)*100","v":1.6666666666667496},{"$f":"(Quarterly!EZ163-Quarterly!EZ162)*100","v":-0.33333333333329662},{"$f":"(Quarterly!FA163-Quarterly!FA162)*100","v":19.666666666666721},{"$f":"(Quarterly!FB163-Quarterly!FB162)*100","v":15.333333333333332},-4.333333333333389,{"$f":"(Quarterly!FD163-Quarterly!FD162)*100","v":7.6666666666666217},{"$f":"(Quarterly!FE163-Quarterly!FE162)*100","v":8.3333333333333037},{"$f":"(Quarterly!FF163-Quarterly!FF162)*100","v":16.666666666666785},{"$f":"(Quarterly!FG163-Quarterly!FG162)*100","v":24.666666666666615},{"$f":"(Quarterly!FH163-Quarterly!FH162)*100","v":25.333333333333385},{"$f":"(Quarterly!FI163-Quarterly!FI162)*100","v":21.999999999999975},5.33333333333319,null,null,null,null,null,{"$f":"((Quarterly!FP163/Quarterly!FP162)^4)-1","v":2.6322911035677965E-2},{"$f":"((Quarterly!FQ163/Quarterly!FQ162)^4)-1","v":-2.2072045650514127E-3},{"$f":"((Quarterly!FR163/Quarterly!FR162)^4)-1","v":1.0944464592177017E-2},"--",{"$f":"((Quarterly!FT163/Quarterly!FT162)^4)-1","v":0.13475826555935555},{"$f":"((Quarterly!FU163/Quarterly!FU162)^4)-1","v":0.21360270718709407},{"$f":"((Quarterly!FV163/Quarterly!FV162)^4)-1","v":0.12870785970190557},{"$f":"((Quarterly!FW163/Quarterly!FW162)^4)-1","v":-0.4126102383190996},{"$f":"((Quarterly!FX163/Quarterly!FX162)^4)-1","v":-2.793908484168639E-2},null,null,null,null,null,{"$f":"((Quarterly!GD163/Quarterly!GD162)^4)-1","v":-0.27132236404857923},{"$f":"((Quarterly!GE163/Quarterly!GE162)^4)-1","v":-0.34842516534881562},{"$f":"((Quarterly!GF163/Quarterly!GF162)^4)-1","v":2.3130797686630178E-3},{"$f":"((Quarterly!GG163/Quarterly!GG162)^4)-1","v":-0.14778644994021561},{"$f":"((Quarterly!GH163/Quarterly!GH162)^4)-1","v":{"$error":"#DIV/0!"}},"--",{"$f":"((Quarterly!GJ163/Quarterly!GJ162)^4)-1","v":-0.65120208406476909},{"$f":"((Quarterly!GK163/Quarterly!GK162)^4)-1","v":-3.2153221567940871E-2},"--"]
["97'Q2",{"$f":"((Quarterly!B164/Quarterly!B163)^4)-1","v":7.3286005506516094E-2},{"$f":"((Quarterly!C164/Quarterly!C163)^4)-1","v":6.1722452108475601E-2},{"$f":"((Quarterly!D164/Quarterly!D163)^4)-1","v":3.4714069303311668E-2},{"$f":"((Quarterly!E164/Quarterly!E163)^4)-1","v":1.8252253646924066E-2},{"$f":"((Quarterly!F164/Quarterly!F163)^4)-1","v":-1.2645967172207451E-2},{"$f":"((Quarterly!G164/Quarterly!G163)^4)-1","v":2.2290027180784655E-3},{"$f":"((Quarterly!H164/Quarterly!H163)^4)-1","v":2.7434347659130776E-2},{"$f":"((Quarterly!I164/Quarterly!I163)^4)-1","v":8.6679397076898645E-2},{"$f":"((Quarterly!J164/Quarterly!J163)^4)-1","v":0.11860802894297295},{"$f":"((Quarterly!K164/Quarterly!K163)^4)-1","v":5.1081725389988453E-2},{"$f":"((Quarterly!L164-Quarterly!L163))","v":61.479000000000006},{"$f":"((Quarterly!M164/Quarterly!M163)^4)-1","v":0.14118593080957975},{"$f":"((Quarterly!N164/Quarterly!N163)^4)-1","v":0.16977497525408625},{"$f":"((Quarterly!O164/Quarterly!O163)^4)-1","v":-7.274094579896806E-2},{"$f":"((Quarterly!P164/Quarterly!P163)^4)-1","v":4.2226785635632647E-2},{"$f":"((Quarterly!Q164/Quarterly!Q163)^4)-1","v":-0.47989116957476596},null,null,null,null,null,{"$f":"((Quarterly!W164/Quarterly!W163)^4)-1","v":-4.8338280126357658E-3},{"$f":"((Quarterly!X164/Quarterly!X163)^4)-1","v":-4.7685192256774478E-3},{"$f":"((Quarterly!Y164/Quarterly!Y163)^4)-1","v":0.10511451010777217},{"$f":"Quarterly!Z164-Quarterly!Z163","v":0.03},{"$f":"((Quarterly!AA164/Quarterly!AA163)^4)-1","v":0.14429158729984826},{"$f":"((Quarterly!AB164/Quarterly!AB163)^4)-1","v":0.12428437444615614},{"$f":"Quarterly!AC164-Quarterly!AC163","v":0.89999999999999858},{"$f":"Quarterly!AD164-Quarterly!AD163","v":-4},{"$f":"(Quarterly!AE164-Quarterly!AE163)*100","v":-5.0000000000000044},{"$f":"(Quarterly!AF164-Quarterly!AF163)*100","v":3},{"$f":"(Quarterly!AG164-Quarterly!AG163)*100","v":5.0000000000000044},"--","--","--","--","--",{"$f":"((Quarterly!AM164/Quarterly!AM163)^4)-1","v":5.9853721561529794E-2},{"$f":"((Quarterly!AN164/Quarterly!AN163)^4)-1","v":7.0786740291264527E-2},"--",{"$f":"(Quarterly!AP164-Quarterly!AP163)*100","v":0.33333333333331883},{"$f":"Quarterly!AQ164-Quarterly!AQ163","v":1.3333333333333428},{"$f":"Quarterly!AR164-Quarterly!AR163","v":6.6666666666666643},{"$f":"Quarterly!AS164-Quarterly!AS163","v":1.5},{"$f":"Quarterly!AT164-Quarterly!AT163","v":2.4333333333333371},{"$f":"Quarterly!AU164-Quarterly!AU163","v":-1.5666666666666629},{"$f":"Quarterly!AV164-Quarterly!AV163","v":0.69999999999999574},{"$f":"Quarterly!AW164-Quarterly!AW163","v":2.2333333333333343},{"$f":"Quarterly!AX164-Quarterly!AX163","v":1.7000000000000099},{"$f":"Quarterly!AY164-Quarterly!AY163","v":-4.3666666666666671},{"$f":"Quarterly!AZ164-Quarterly!AZ163","v":-1.2333333333333343},{"$f":"Quarterly!BA164-Quarterly!BA163","v":2.7000000000000028},"--",{"$f":"((Quarterly!BC164/Quarterly!BC163)^4)-1","v":0.11705614754373017},{"$f":"((Quarterly!BD164/Quarterly!BD163)^4)-1","v":4.8011987749336349E-2},{"$f":"((Quarterly!BE164/Quarterly!BE163)^4)-1","v":5.0049527199691468E-4},{"$f":"((Quarterly!BF164/Quarterly!BF163)^4)-1","v":3.704961822669528E-2},{"$f":"((Quarterly!BG164/Quarterly!BG163)^4)-1","v":5.3404616235814384E-2},{"$f":"((Quarterly!BH164/Quarterly!BH163)^4)-1","v":2.6545063054547402E-2},{"$f":"((Quarterly!BI164/Quarterly!BI163)^4)-1","v":-1.5427757862224056E-2},{"$f":"((Quarterly!BJ164/Quarterly!BJ163)^4)-1","v":6.9707030835668649E-2},{"$f":"((Quarterly!BK164/Quarterly!BK163)^4)-1","v":0.8526234567901243},null,{"$f":"((Quarterly!BM164/Quarterly!BM163)^4)-1","v":-9.0173106349573651E-3},{"$f":"((Quarterly!BN164/Quarterly!BN163)^4)-1","v":-1.2613765363728713E-2},null,null,null,null,null,{"$f":"((Quarterly!BT164/Quarterly!BT163)^4)-1","v":6.2167078707497936E-4},{"$f":"Quarterly!BU164-Quarterly!BU163","v":4.0200000000005787E-3},{"$f":"Quarterly!BV164-Quarterly!BV163","v":2.7129999999999654E-2},{"$f":"((Quarterly!BW164/Quarterly!BW163)^4)-1","v":6.1131033984329175E-2},{"$f":"((Quarterly!BX164/Quarterly!BX163)^4)-1","v":0.12658717826744015},{"$f":"((Quarterly!BY164/Quarterly!BY163)^4)-1","v":-2.4173685201898221E-2},"--",{"$f":"((Quarterly!CA164/Quarterly!CA163)^4)-1","v":-0.1716256252558267},{"$f":"((Quarterly!CB164/Quarterly!CB163)^4)-1","v":-0.36460862813721817},{"$f":"((Quarterly!CC164/Quarterly!CC163)^4)-1","v":-0.30765982571464345},"--","--",null,"--","--",null,{"$f":"((Quarterly!CJ164/Quarterly!CJ163)^4)-1","v":-0.24230959710107336},{"$f":"((Quarterly!CK164/Quarterly!CK163)^4)-1","v":4.7361380102645123E-2},{"$f":"((Quarterly!CL164/Quarterly!CL163)^4)-1","v":0.28022539953142078},{"$f":"((Quarterly!CM164/Quarterly!CM163)^4)-1","v":-7.941437945844676E-2},{"$f":"((Quarterly!CN164/Quarterly!CN163)^4)-1","v":3.4591453643386672E-2},{"$f":"((Quarterly!CO164/Quarterly!CO163)^4)-1","v":9.9418610937730412E-2},{"$f":"((Quarterly!CP164/Quarterly!CP163)^4)-1","v":5.5293759877079296E-2},{"$f":"((Quarterly!CQ164/Quarterly!CQ163)^4)-1","v":1.1245420855588328E-2},{"$f":"((Quarterly!CR164/Quarterly!CR163)^4)-1","v":2.041836592284807E-2},{"$f":"Quarterly!CS164-Quarterly!CS163","v":4},"--",null,null,null,null,null,{"$f":"((Quarterly!CZ164/Quarterly!CZ163)^4)-1","v":9.2194257012268022E-3},{"$f":"((Quarterly!DA164/Quarterly!DA163)^4)-1","v":2.5624327673118286E-2},null,null,null,null,null,{"$f":"((Quarterly!DG164/Quarterly!DG163)^4)-1","v":4.1078453607346521E-2},{"$f":"((Quarterly!DH164-Quarterly!DH163)*60)","v":3.9999999999997726},{"$f":"Quarterly!DI164-Quarterly!DI163","v":9.9999999999994316E-2},{"$f":"(Quarterly!DJ164-Quarterly!DJ163)*100","v":-36.666666666666536},{"$f":"(Quarterly!DK164-Quarterly!DK163)*100","v":-23.333333333333339},{"$f":"((Quarterly!DL164/Quarterly!DL163)^4)-1","v":1.1210761213677589E-2},null,null,null,{"$f":"((Quarterly!DP164/Quarterly!DP163)^4)-1","v":2.8782910370163117E-2},null,null,null,"--",{"$f":"Quarterly!DU164-Quarterly!DU163","v":0.16666666666666696},{"$f":"((Quarterly!DV164/Quarterly!DV163)^4)-1","v":3.7028770704373715E-2},{"$f":"((Quarterly!DW164/Quarterly!DW163)^4)-1","v":0.12064424945119878},{"$f":"((Quarterly!DX164/Quarterly!DX163)^4)-1","v":0.10965827754116964},{"$f":"((Quarterly!DY164/Quarterly!DY163)^4)-1","v":0.19491009237238943},{"$f":"((Quarterly!DZ164/Quarterly!DZ163)^4)-1","v":8.3538328606409529E-2},{"$f":"((Quarterly!EA164/Quarterly!EA163)^4)-1","v":8.4294927737012415E-2},{"$f":"((Quarterly!EB164/Quarterly!EB163)^4)-1","v":8.1662392481211876E-2},{"$f":"((Quarterly!EC164/Quarterly!EC163)^4)-1","v":0.14946138452808877},null,null,null,null,null,{"$f":"((Quarterly!EI164/Quarterly!EI163)^4)-1","v":8.0900438049426038E-2},{"$f":"((Quarterly!EJ164/Quarterly!EJ163)^4)-1","v":4.8042174483097E-2},{"$f":"((Quarterly!EK164/Quarterly!EK163)^4)-1","v":4.4826413971605694E-2},null,null,null,null,null,{"$f":"((Quarterly!EQ164/Quarterly!EQ163)^4)-1","v":-3.9856967774621999E-2},{"$f":"((Quarterly!ER164/Quarterly!ER163)^4)-1","v":-9.3534425966901313E-4},{"$f":"((Quarterly!ES164/Quarterly!ES163)^4)-1","v":-8.6278705162252667E-3},null,null,null,null,null,{"$f":"(Quarterly!EY164-Quarterly!EY163)*100","v":23.33333333333325},{"$f":"(Quarterly!EZ164-Quarterly!EZ163)*100","v":24.666666666666615},{"$f":"(Quarterly!FA164-Quarterly!FA163)*100","v":14.66666666666665},{"$f":"(Quarterly!FB164-Quarterly!FB163)*100","v":11.666666666666536},-3.0000000000001137,{"$f":"(Quarterly!FD164-Quarterly!FD163)*100","v":13.333333333333464},{"$f":"(Quarterly!FE164-Quarterly!FE163)*100","v":-1.3333333333332753},{"$f":"(Quarterly!FF164-Quarterly!FF163)*100","v":20.333333333333314},{"$f":"(Quarterly!FG164-Quarterly!FG163)*100","v":23.000000000000043},{"$f":"(Quarterly!FH164-Quarterly!FH163)*100","v":21.333333333333382},{"$f":"(Quarterly!FI164-Quarterly!FI163)*100","v":13.333333333333286},-7.0000000000000284,null,null,null,null,null,{"$f":"((Quarterly!FP164/Quarterly!FP163)^4)-1","v":8.2276012764017192E-2},{"$f":"((Quarterly!FQ164/Quarterly!FQ163)^4)-1","v":-5.6045395395554198E-4},{"$f":"((Quarterly!FR164/Quarterly!FR163)^4)-1","v":2.9488711087402697E-2},"--",{"$f":"((Quarterly!FT164/Quarterly!FT163)^4)-1","v":4.6539681715471071E-2},{"$f":"((Quarterly!FU164/Quarterly!FU163)^4)-1","v":5.6850749060975092E-2},{"$f":"((Quarterly!FV164/Quarterly!FV163)^4)-1","v":0.10725644480292251},{"$f":"((Quarterly!FW164/Quarterly!FW163)^4)-1","v":0.75444280148188292},{"$f":"((Quarterly!FX164/Quarterly!FX163)^4)-1","v":0.37708954545342199},null,null,null,null,null,{"$f":"((Quarterly!GD164/Quarterly!GD163)^4)-1","v":-0.41787416135476052},{"$f":"((Quarterly!GE164/Quarterly!GE163)^4)-1","v":-0.4714663227313739},{"$f":"((Quarterly!GF164/Quarterly!GF163)^4)-1","v":-8.0790814249971588E-2},{"$f":"((Quarterly!GG164/Quarterly!GG163)^4)-1","v":-0.21135256059690588},{"$f":"((Quarterly!GH164/Quarterly!GH163)^4)-1","v":{"$error":"#DIV/0!"}},"--",{"$f":"((Quarterly!GJ164/Quarterly!GJ163)^4)-1","v":-0.30529390208158746},{"$f":"((Quarterly!GK164/Quarterly!GK163)^4)-1","v":-0.10094596745411999},"--"]
["97'Q3",{"$f":"((Quarterly!B165/Quarterly!B164)^4)-1","v":6.7017453423190432E-2},{"$f":"((Quarterly!C165/Quarterly!C164)^4)-1","v":5.1913747265619703E-2},{"$f":"((Quarterly!D165/Quarterly!D164)^4)-1","v":6.4968859369032961E-2},{"$f":"((Quarterly!E165/Quarterly!E164)^4)-1","v":7.0216255081614776E-2},{"$f":"((Quarterly!F165/Quarterly!F164)^4)-1","v":0.19040991546627906},{"$f":"((Quarterly!G165/Quarterly!G164)^4)-1","v":6.5908222004412043E-2},{"$f":"((Quarterly!H165/Quarterly!H164)^4)-1","v":5.8744410585371387E-2},{"$f":"((Quarterly!I165/Quarterly!I164)^4)-1","v":0.18997249271810723},{"$f":"((Quarterly!J165/Quarterly!J164)^4)-1","v":0.28552472267752305},{"$f":"((Quarterly!K165/Quarterly!K164)^4)-1","v":1.8493831377605519E-2},{"$f":"((Quarterly!L165-Quarterly!L164))","v":-31.995000000000005},{"$f":"((Quarterly!M165/Quarterly!M164)^4)-1","v":0.15579854366833956},{"$f":"((Quarterly!N165/Quarterly!N164)^4)-1","v":9.5924308215709519E-2},{"$f":"((Quarterly!O165/Quarterly!O164)^4)-1","v":0.78071139733982875},{"$f":"((Quarterly!P165/Quarterly!P164)^4)-1","v":6.5183886301674043E-3},{"$f":"((Quarterly!Q165/Quarterly!Q164)^4)-1","v":-0.798136190723576},null,null,null,null,null,{"$f":"((Quarterly!W165/Quarterly!W164)^4)-1","v":1.9535442687463878E-2},{"$f":"((Quarterly!X165/Quarterly!X164)^4)-1","v":2.4129219095310406E-2},{"$f":"((Quarterly!Y165/Quarterly!Y164)^4)-1","v":6.9763119345971569E-2},{"$f":"Quarterly!Z165-Quarterly!Z164","v":5.0000000000000017E-2},{"$f":"((Quarterly!AA165/Quarterly!AA164)^4)-1","v":0.16821557490813288},{"$f":"((Quarterly!AB165/Quarterly!AB164)^4)-1","v":0.1564971674503306},{"$f":"Quarterly!AC165-Quarterly!AC164","v":-9.2999999999999989},{"$f":"Quarterly!AD165-Quarterly!AD164","v":8.9000000000000021},{"$f":"(Quarterly!AE165-Quarterly!AE164)*100","v":-1.0000000000000009},{"$f":"(Quarterly!AF165-Quarterly!AF164)*100","v":5.0000000000000018},{"$f":"(Quarterly!AG165-Quarterly!AG164)*100","v":2.0000000000000018},"--","--","--","--","--",{"$f":"((Quarterly!AM165/Quarterly!AM164)^4)-1","v":9.5227863027796733E-2},{"$f":"((Quarterly!AN165/Quarterly!AN164)^4)-1","v":0.10463644008758544},"--",{"$f":"(Quarterly!AP165-Quarterly!AP164)*100","v":-1.0000000000000009},{"$f":"Quarterly!AQ165-Quarterly!AQ164","v":1.0666666666666629},{"$f":"Quarterly!AR165-Quarterly!AR164","v":0.3333333333333357},{"$f":"Quarterly!AS165-Quarterly!AS164","v":0.6666666666666643},{"$f":"Quarterly!AT165-Quarterly!AT164","v":0.13333333333332575},{"$f":"Quarterly!AU165-Quarterly!AU164","v":-0.43333333333333712},{"$f":"Quarterly!AV165-Quarterly!AV164","v":0.96666666666666856},{"$f":"Quarterly!AW165-Quarterly!AW164","v":0.46666666666667567},{"$f":"Quarterly!AX165-Quarterly!AX164","v":-0.43333333333333712},{"$f":"Quarterly!AY165-Quarterly!AY164","v":3.13333333333334},{"$f":"Quarterly!AZ165-Quarterly!AZ164","v":4.2000000000000028},{"$f":"Quarterly!BA165-Quarterly!BA164","v":0.56666666666666288},"--",{"$f":"((Quarterly!BC165/Quarterly!BC164)^4)-1","v":0.33647868933576497},{"$f":"((Quarterly!BD165/Quarterly!BD164)^4)-1","v":5.5941368682111525E-2},{"$f":"((Quarterly!BE165/Quarterly!BE164)^4)-1","v":-1.7520636045450844E-2},{"$f":"((Quarterly!BF165/Quarterly!BF164)^4)-1","v":4.13517829807315E-2},{"$f":"((Quarterly!BG165/Quarterly!BG164)^4)-1","v":3.4494955323134402E-2},{"$f":"((Quarterly!BH165/Quarterly!BH164)^4)-1","v":2.3278433341668014E-2},{"$f":"((Quarterly!BI165/Quarterly!BI164)^4)-1","v":6.5381932792833997E-3},{"$f":"((Quarterly!BJ165/Quarterly!BJ164)^4)-1","v":0.269619489779233},{"$f":"((Quarterly!BK165/Quarterly!BK164)^4)-1","v":1.3497205382530946},null,{"$f":"((Quarterly!BM165/Quarterly!BM164)^4)-1","v":9.0814186746845493E-2},{"$f":"((Quarterly!BN165/Quarterly!BN164)^4)-1","v":8.9982771471201151E-2},null,null,null,null,null,{"$f":"((Quarterly!BT165/Quarterly!BT164)^4)-1","v":1.620306219024914E-2},{"$f":"Quarterly!BU165-Quarterly!BU164","v":8.3500000000000796E-3},{"$f":"Quarterly!BV165-Quarterly!BV164","v":-5.150000000000432E-3},{"$f":"((Quarterly!BW165/Quarterly!BW164)^4)-1","v":7.9310935065866284E-2},{"$f":"((Quarterly!BX165/Quarterly!BX164)^4)-1","v":-4.8765790482136806E-2},{"$f":"((Quarterly!BY165/Quarterly!BY164)^4)-1","v":0.14512270725107279},"--",{"$f":"((Quarterly!CA165/Quarterly!CA164)^4)-1","v":0.20486036513602723},{"$f":"((Quarterly!CB165/Quarterly!CB164)^4)-1","v":-0.11028222861264758},{"$f":"((Quarterly!CC165/Quarterly!CC164)^4)-1","v":-0.107758270302723},"--","--",null,"--","--",null,{"$f":"((Quarterly!CJ165/Quarterly!CJ164)^4)-1","v":0.31551694828900678},{"$f":"((Quarterly!CK165/Quarterly!CK164)^4)-1","v":6.6230323198871899E-2},{"$f":"((Quarterly!CL165/Quarterly!CL164)^4)-1","v":-0.25109707656916247},{"$f":"((Quarterly!CM165/Quarterly!CM164)^4)-1","v":0.11061337477977551},{"$f":"((Quarterly!CN165/Quarterly!CN164)^4)-1","v":4.8497533093260659E-2},{"$f":"((Quarterly!CO165/Quarterly!CO164)^4)-1","v":7.6533658763756618E-2},{"$f":"((Quarterly!CP165/Quarterly!CP164)^4)-1","v":5.2100352881221168E-2},{"$f":"((Quarterly!CQ165/Quarterly!CQ164)^4)-1","v":1.3061521403776366E-2},{"$f":"((Quarterly!CR165/Quarterly!CR164)^4)-1","v":8.6052609251943579E-2},{"$f":"Quarterly!CS165-Quarterly!CS164","v":2.7999999999999829},"--",null,null,null,null,null,{"$f":"((Quarterly!CZ165/Quarterly!CZ164)^4)-1","v":2.0150500625000456E-2},{"$f":"((Quarterly!DA165/Quarterly!DA164)^4)-1","v":1.7452979751322317E-2},null,null,null,null,null,{"$f":"((Quarterly!DG165/Quarterly!DG164)^4)-1","v":3.639811946876037E-2},{"$f":"((Quarterly!DH165-Quarterly!DH164)*60)","v":6.0000000000000853},{"$f":"Quarterly!DI165-Quarterly!DI164","v":6.6666666666677088E-2},{"$f":"(Quarterly!DJ165-Quarterly!DJ164)*100","v":-30.000000000000071},{"$f":"(Quarterly!DK165-Quarterly!DK164)*100","v":-13.333333333333375},{"$f":"((Quarterly!DL165/Quarterly!DL164)^4)-1","v":1.6065796861675974E-2},null,null,null,{"$f":"((Quarterly!DP165/Quarterly!DP164)^4)-1","v":2.3707813326591776E-2},null,null,null,"--",{"$f":"Quarterly!DU165-Quarterly!DU164","v":0},{"$f":"((Quarterly!DV165/Quarterly!DV164)^4)-1","v":5.4607261939408458E-2},{"$f":"((Quarterly!DW165/Quarterly!DW164)^4)-1","v":0.12382277233702932},{"$f":"((Quarterly!DX165/Quarterly!DX164)^4)-1","v":0.11058779903781502},{"$f":"((Quarterly!DY165/Quarterly!DY164)^4)-1","v":0.20445512322249959},{"$f":"((Quarterly!DZ165/Quarterly!DZ164)^4)-1","v":8.1228454628450297E-2},{"$f":"((Quarterly!EA165/Quarterly!EA164)^4)-1","v":8.1993048018285553E-2},{"$f":"((Quarterly!EB165/Quarterly!EB164)^4)-1","v":7.9331567619107091E-2},{"$f":"((Quarterly!EC165/Quarterly!EC164)^4)-1","v":0.158323430181045},null,null,null,null,null,{"$f":"((Quarterly!EI165/Quarterly!EI164)^4)-1","v":7.8447438267712055E-2},{"$f":"((Quarterly!EJ165/Quarterly!EJ164)^4)-1","v":6.5420602118584581E-2},{"$f":"((Quarterly!EK165/Quarterly!EK164)^4)-1","v":5.9719264754123147E-2},null,null,null,null,null,{"$f":"((Quarterly!EQ165/Quarterly!EQ164)^4)-1","v":0},{"$f":"((Quarterly!ER165/Quarterly!ER164)^4)-1","v":-2.8047195547130643E-3},{"$f":"((Quarterly!ES165/Quarterly!ES164)^4)-1","v":-3.8498511639942778E-3},null,null,null,null,null,{"$f":"(Quarterly!EY165-Quarterly!EY164)*100","v":0},{"$f":"(Quarterly!EZ165-Quarterly!EZ164)*100","v":0.99999999999988987},{"$f":"(Quarterly!FA165-Quarterly!FA164)*100","v":-40.333333333333421},{"$f":"(Quarterly!FB165-Quarterly!FB164)*100","v":-42.999999999999886},-2.6666666666664653,{"$f":"(Quarterly!FD165-Quarterly!FD164)*100","v":-45.333333333333492},{"$f":"(Quarterly!FE165-Quarterly!FE164)*100","v":0},{"$f":"(Quarterly!FF165-Quarterly!FF164)*100","v":-31.000000000000139},{"$f":"(Quarterly!FG165-Quarterly!FG164)*100","v":-37.000000000000014},{"$f":"(Quarterly!FH165-Quarterly!FH164)*100","v":-44.000000000000043},{"$f":"(Quarterly!FI165-Quarterly!FI164)*100","v":-45.333333333333314},-14.333333333333176,null,null,null,null,null,{"$f":"((Quarterly!FP165/Quarterly!FP164)^4)-1","v":-3.5538871568697727E-3},{"$f":"((Quarterly!FQ165/Quarterly!FQ164)^4)-1","v":-3.0400586028650478E-3},{"$f":"((Quarterly!FR165/Quarterly!FR164)^4)-1","v":-5.4216434345898401E-2},"--",{"$f":"((Quarterly!FT165/Quarterly!FT164)^4)-1","v":8.2305670503728612E-2},{"$f":"((Quarterly!FU165/Quarterly!FU164)^4)-1","v":5.7721575699102745E-2},{"$f":"((Quarterly!FV165/Quarterly!FV164)^4)-1","v":-0.16711710510009326},{"$f":"((Quarterly!FW165/Quarterly!FW164)^4)-1","v":1.6334107776263904},{"$f":"((Quarterly!FX165/Quarterly!FX164)^4)-1","v":0.13626821581222659},null,null,null,null,null,{"$f":"((Quarterly!GD165/Quarterly!GD164)^4)-1","v":-2.45529560600527E-2},{"$f":"((Quarterly!GE165/Quarterly!GE164)^4)-1","v":0.10429017211294123},{"$f":"((Quarterly!GF165/Quarterly!GF164)^4)-1","v":5.0409140989798651E-2},{"$f":"((Quarterly!GG165/Quarterly!GG164)^4)-1","v":-0.1122272975396662},{"$f":"((Quarterly!GH165/Quarterly!GH164)^4)-1","v":{"$error":"#DIV/0!"}},"--",{"$f":"((Quarterly!GJ165/Quarterly!GJ164)^4)-1","v":0.83307542459588357},{"$f":"((Quarterly!GK165/Quarterly!GK164)^4)-1","v":-0.13846570196970986},"--"]
["97'Q4",{"$f":"((Quarterly!B166/Quarterly!B165)^4)-1","v":4.5185422798327934E-2},{"$f":"((Quarterly!C166/Quarterly!C165)^4)-1","v":3.1400844820212326E-2},{"$f":"((Quarterly!D166/Quarterly!D165)^4)-1","v":2.6482014397719356E-2},{"$f":"((Quarterly!E166/Quarterly!E165)^4)-1","v":4.8357290147359899E-2},{"$f":"((Quarterly!F166/Quarterly!F165)^4)-1","v":0.10613812868315553},{"$f":"((Quarterly!G166/Quarterly!G165)^4)-1","v":2.841133010618857E-2},{"$f":"((Quarterly!H166/Quarterly!H165)^4)-1","v":4.8729142338366449E-2},{"$f":"((Quarterly!I166/Quarterly!I165)^4)-1","v":2.7457410290187889E-2},{"$f":"((Quarterly!J166/Quarterly!J165)^4)-1","v":1.5224176168682879E-2},{"$f":"((Quarterly!K166/Quarterly!K165)^4)-1","v":4.1980611045663974E-2},{"$f":"((Quarterly!L166-Quarterly!L165))","v":13.152000000000001},{"$f":"((Quarterly!M166/Quarterly!M165)^4)-1","v":8.923685558152461E-2},{"$f":"((Quarterly!N166/Quarterly!N165)^4)-1","v":-5.5665587246168657E-3},{"$f":"((Quarterly!O166/Quarterly!O165)^4)-1","v":1.0565111085996399},{"$f":"((Quarterly!P166/Quarterly!P165)^4)-1","v":5.9194059469476201E-3},{"$f":"((Quarterly!Q166/Quarterly!Q165)^4)-1","v":0.25887073383861536},null,null,null,null,null,{"$f":"((Quarterly!W166/Quarterly!W165)^4)-1","v":2.4344595339542252E-2},{"$f":"((Quarterly!X166/Quarterly!X165)^4)-1","v":2.3984543407004066E-2},{"$f":"((Quarterly!Y166/Quarterly!Y165)^4)-1","v":8.3954205285573069E-2},{"$f":"Quarterly!Z166-Quarterly!Z165","v":2.9999999999999971E-2},{"$f":"((Quarterly!AA166/Quarterly!AA165)^4)-1","v":1.0820582099303477E-2},{"$f":"((Quarterly!AB166/Quarterly!AB165)^4)-1","v":-3.4265059315446655E-2},{"$f":"Quarterly!AC166-Quarterly!AC165","v":-0.5},{"$f":"Quarterly!AD166-Quarterly!AD165","v":-0.30000000000000071},{"$f":"(Quarterly!AE166-Quarterly!AE165)*100","v":-2.0000000000000018},{"$f":"(Quarterly!AF166-Quarterly!AF165)*100","v":2.9999999999999973},{"$f":"(Quarterly!AG166-Quarterly!AG165)*100","v":2.0000000000000018},"--","--","--","--","--",{"$f":"((Quarterly!AM166/Quarterly!AM165)^4)-1","v":0.10431113810355019},{"$f":"((Quarterly!AN166/Quarterly!AN165)^4)-1","v":0.11636074911944494},"--",{"$f":"(Quarterly!AP166-Quarterly!AP165)*100","v":0.66666666666668206},{"$f":"Quarterly!AQ166-Quarterly!AQ165","v":-0.43333333333333712},{"$f":"Quarterly!AR166-Quarterly!AR165","v":-2.6666666666666643},{"$f":"Quarterly!AS166-Quarterly!AS165","v":-0.8333333333333357},{"$f":"Quarterly!AT166-Quarterly!AT165","v":1.4666666666666686},{"$f":"Quarterly!AU166-Quarterly!AU165","v":-0.19999999999999574},{"$f":"Quarterly!AV166-Quarterly!AV165","v":0.6666666666666643},{"$f":"Quarterly!AW166-Quarterly!AW165","v":-0.36666666666667425},{"$f":"Quarterly!AX166-Quarterly!AX165","v":-0.5},{"$f":"Quarterly!AY166-Quarterly!AY165","v":0.26666666666666572},{"$f":"Quarterly!AZ166-Quarterly!AZ165","v":-2.13333333333334},{"$f":"Quarterly!BA166-Quarterly!BA165","v":-0.23333333333333428},{"$f":"Quarterly!BB166-Quarterly!BB165","v":0.23333333333333428},{"$f":"((Quarterly!BC166/Quarterly!BC165)^4)-1","v":-7.4382124147376771E-2},{"$f":"((Quarterly!BD166/Quarterly!BD165)^4)-1","v":3.6700280407174546E-2},{"$f":"((Quarterly!BE166/Quarterly!BE165)^4)-1","v":2.3787483701684931E-2},{"$f":"((Quarterly!BF166/Quarterly!BF165)^4)-1","v":7.3179739121003173E-2},{"$f":"((Quarterly!BG166/Quarterly!BG165)^4)-1","v":1.6054803683708707E-2},{"$f":"((Quarterly!BH166/Quarterly!BH165)^4)-1","v":5.1105699399061066E-2},{"$f":"((Quarterly!BI166/Quarterly!BI165)^4)-1","v":5.6239616436697171E-2},{"$f":"((Quarterly!BJ166/Quarterly!BJ165)^4)-1","v":-8.6399409641297886E-3},{"$f":"((Quarterly!BK166/Quarterly!BK165)^4)-1","v":0.54774211337137935},null,{"$f":"((Quarterly!BM166/Quarterly!BM165)^4)-1","v":1.8525232333426178E-2},{"$f":"((Quarterly!BN166/Quarterly!BN165)^4)-1","v":2.2238007526174774E-2},null,null,null,null,null,{"$f":"((Quarterly!BT166/Quarterly!BT165)^4)-1","v":-7.2011145778746011E-2},{"$f":"Quarterly!BU166-Quarterly!BU165","v":-4.5010000000001327E-2},{"$f":"Quarterly!BV166-Quarterly!BV165","v":-9.3939999999999912E-2},{"$f":"((Quarterly!BW166/Quarterly!BW165)^4)-1","v":7.7809980403801049E-2},{"$f":"((Quarterly!BX166/Quarterly!BX165)^4)-1","v":0.22011894540082699},{"$f":"((Quarterly!BY166/Quarterly!BY165)^4)-1","v":3.7945596098325041E-2},"--",{"$f":"((Quarterly!CA166/Quarterly!CA165)^4)-1","v":7.6181199878298633E-2},{"$f":"((Quarterly!CB166/Quarterly!CB165)^4)-1","v":-0.26881043149191619},{"$f":"((Quarterly!CC166/Quarterly!CC165)^4)-1","v":-0.23308337211714958},"--","--",null,"--","--",null,{"$f":"((Quarterly!CJ166/Quarterly!CJ165)^4)-1","v":-4.869132772994611E-3},{"$f":"((Quarterly!CK166/Quarterly!CK165)^4)-1","v":7.7885707434667273E-2},{"$f":"((Quarterly!CL166/Quarterly!CL165)^4)-1","v":0.24238399691489487},{"$f":"((Quarterly!CM166/Quarterly!CM165)^4)-1","v":-9.2752996865813619E-3},{"$f":"((Quarterly!CN166/Quarterly!CN165)^4)-1","v":5.8528403399089823E-2},{"$f":"((Quarterly!CO166/Quarterly!CO165)^4)-1","v":0.12403793976783306},{"$f":"((Quarterly!CP166/Quarterly!CP165)^4)-1","v":6.5351081571551228E-2},{"$f":"((Quarterly!CQ166/Quarterly!CQ165)^4)-1","v":1.2984518632135567E-2},{"$f":"((Quarterly!CR166/Quarterly!CR165)^4)-1","v":8.5976853577377055E-2},{"$f":"Quarterly!CS166-Quarterly!CS165","v":-0.86666666666667425},"--",null,null,null,null,null,{"$f":"((Quarterly!CZ166/Quarterly!CZ165)^4)-1","v":2.1733793779635135E-2},{"$f":"((Quarterly!DA166/Quarterly!DA165)^4)-1","v":2.295345391078274E-2},null,null,null,null,null,{"$f":"((Quarterly!DG166/Quarterly!DG165)^4)-1","v":2.7660886229594395E-2},{"$f":"((Quarterly!DH166-Quarterly!DH165)*60)","v":-1.9999999999998863},{"$f":"Quarterly!DI166-Quarterly!DI165","v":0},{"$f":"(Quarterly!DJ166-Quarterly!DJ165)*100","v":-26.666666666666572},{"$f":"(Quarterly!DK166-Quarterly!DK165)*100","v":-19.999999999999929},{"$f":"((Quarterly!DL166/Quarterly!DL165)^4)-1","v":2.7113441405745453E-2},null,null,null,{"$f":"((Quarterly!DP166/Quarterly!DP165)^4)-1","v":3.2058545314263664E-2},null,null,null,"--",{"$f":"Quarterly!DU166-Quarterly!DU165","v":-0.49999999999999911},{"$f":"((Quarterly!DV166/Quarterly!DV165)^4)-1","v":2.5020813191769076E-2},{"$f":"((Quarterly!DW166/Quarterly!DW165)^4)-1","v":-1.0328132359957665E-2},{"$f":"((Quarterly!DX166/Quarterly!DX165)^4)-1","v":8.3637809318919398E-3},{"$f":"((Quarterly!DY166/Quarterly!DY165)^4)-1","v":-0.10274104095774461},{"$f":"((Quarterly!DZ166/Quarterly!DZ165)^4)-1","v":4.7755698850626693E-2},{"$f":"((Quarterly!EA166/Quarterly!EA165)^4)-1","v":4.6033429428147699E-2},{"$f":"((Quarterly!EB166/Quarterly!EB165)^4)-1","v":5.204428237945069E-2},{"$f":"((Quarterly!EC166/Quarterly!EC165)^4)-1","v":-5.6620122270668038E-2},null,null,null,null,null,{"$f":"((Quarterly!EI166/Quarterly!EI165)^4)-1","v":3.2580337840113494E-2},{"$f":"((Quarterly!EJ166/Quarterly!EJ165)^4)-1","v":3.6734038507822087E-2},{"$f":"((Quarterly!EK166/Quarterly!EK165)^4)-1","v":3.8605602152441909E-2},null,null,null,null,null,{"$f":"((Quarterly!EQ166/Quarterly!EQ165)^4)-1","v":9.4673896377976963E-3},{"$f":"((Quarterly!ER166/Quarterly!ER165)^4)-1","v":1.8744137315285236E-3},{"$f":"((Quarterly!ES166/Quarterly!ES165)^4)-1","v":-1.0570477805953549E-2},null,null,null,null,null,{"$f":"(Quarterly!EY166-Quarterly!EY165)*100","v":0},{"$f":"(Quarterly!EZ166-Quarterly!EZ165)*100","v":-2.6666666666665506},{"$f":"(Quarterly!FA166-Quarterly!FA165)*100","v":-29.333333333333123},{"$f":"(Quarterly!FB166-Quarterly!FB165)*100","v":-31.99999999999994},-2.6666666666668171,{"$f":"(Quarterly!FD166-Quarterly!FD165)*100","v":-26.999999999999957},{"$f":"(Quarterly!FE166-Quarterly!FE165)*100","v":4.3333333333333002},{"$f":"(Quarterly!FF166-Quarterly!FF165)*100","v":-5.6666666666665755},{"$f":"(Quarterly!FG166-Quarterly!FG165)*100","v":-16.999999999999993},{"$f":"(Quarterly!FH166-Quarterly!FH165)*100","v":-29.666666666666686},{"$f":"(Quarterly!FI166-Quarterly!FI165)*100","v":-33.666666666666686},-28.00000000000011,null,null,null,null,null,{"$f":"((Quarterly!FP166/Quarterly!FP165)^4)-1","v":7.0727768377276234E-2},{"$f":"((Quarterly!FQ166/Quarterly!FQ165)^4)-1","v":-2.8344301610334632E-3},{"$f":"((Quarterly!FR166/Quarterly!FR165)^4)-1","v":0.15109104834180331},"--",{"$f":"((Quarterly!FT166/Quarterly!FT165)^4)-1","v":0.16717128353104549},{"$f":"((Quarterly!FU166/Quarterly!FU165)^4)-1","v":3.8082242324060545E-2},{"$f":"((Quarterly!FV166/Quarterly!FV165)^4)-1","v":0.31933821195693057},{"$f":"((Quarterly!FW166/Quarterly!FW165)^4)-1","v":-0.25020706740478582},{"$f":"((Quarterly!FX166/Quarterly!FX165)^4)-1","v":0.17888885094248685},null,null,null,null,null,{"$f":"((Quarterly!GD166/Quarterly!GD165)^4)-1","v":2.7232485785801952E-2},{"$f":"((Quarterly!GE166/Quarterly!GE165)^4)-1","v":5.1394099261304449E-2},{"$f":"((Quarterly!GF166/Quarterly!GF165)^4)-1","v":-0.35455131974292853},{"$f":"((Quarterly!GG166/Quarterly!GG165)^4)-1","v":7.6922959272211378E-2},{"$f":"((Quarterly!GH166/Quarterly!GH165)^4)-1","v":{"$error":"#DIV/0!"}},"--",{"$f":"((Quarterly!GJ166/Quarterly!GJ165)^4)-1","v":0.87583503614628233},{"$f":"((Quarterly!GK166/Quarterly!GK165)^4)-1","v":0.48502521614725591},"--"]
["98'Q1",{"$f":"((Quarterly!B167/Quarterly!B166)^4)-1","v":4.696273884317903E-2},{"$f":"((Quarterly!C167/Quarterly!C166)^4)-1","v":4.0167967953431472E-2},{"$f":"((Quarterly!D167/Quarterly!D166)^4)-1","v":2.7504869583422575E-2},{"$f":"((Quarterly!E167/Quarterly!E166)^4)-1","v":4.1932203962818937E-2},{"$f":"((Quarterly!F167/Quarterly!F166)^4)-1","v":3.2670987976329391E-2},{"$f":"((Quarterly!G167/Quarterly!G166)^4)-1","v":2.9057413725615877E-2},{"$f":"((Quarterly!H167/Quarterly!H166)^4)-1","v":4.7483114868146048E-2},{"$f":"((Quarterly!I167/Quarterly!I166)^4)-1","v":0.13315731789834073},{"$f":"((Quarterly!J167/Quarterly!J166)^4)-1","v":0.17947953258030402},{"$f":"((Quarterly!K167/Quarterly!K166)^4)-1","v":7.354251676670942E-2},{"$f":"((Quarterly!L167-Quarterly!L166))","v":33.846999999999994},{"$f":"((Quarterly!M167/Quarterly!M166)^4)-1","v":0.15880107099475405},{"$f":"((Quarterly!N167/Quarterly!N166)^4)-1","v":1.8844129144394373E-2},{"$f":"((Quarterly!O167/Quarterly!O166)^4)-1","v":1.4192211059922508},{"$f":"((Quarterly!P167/Quarterly!P166)^4)-1","v":-2.2981507972563375E-2},{"$f":"((Quarterly!Q167/Quarterly!Q166)^4)-1","v":-0.99066616260738194},null,null,null,null,null,{"$f":"((Quarterly!W167/Quarterly!W166)^4)-1","v":-2.8467922220447583E-2},{"$f":"((Quarterly!X167/Quarterly!X166)^4)-1","v":-3.2675695902905311E-2},{"$f":"((Quarterly!Y167/Quarterly!Y166)^4)-1","v":0.10823618845785932},{"$f":"Quarterly!Z167-Quarterly!Z166","v":-9.9999999999999534E-3},{"$f":"((Quarterly!AA167/Quarterly!AA166)^4)-1","v":-0.45375392027114347},{"$f":"((Quarterly!AB167/Quarterly!AB166)^4)-1","v":-0.38375274670301773},{"$f":"Quarterly!AC167-Quarterly!AC166","v":-5},{"$f":"Quarterly!AD167-Quarterly!AD166","v":-3.9000000000000004},{"$f":"(Quarterly!AE167-Quarterly!AE166)*100","v":1.0000000000000009},{"$f":"(Quarterly!AF167-Quarterly!AF166)*100","v":-0.99999999999999534},{"$f":"(Quarterly!AG167-Quarterly!AG166)*100","v":-5.0000000000000044},"--","--","--","--","--",{"$f":"((Quarterly!AM167/Quarterly!AM166)^4)-1","v":4.5310965243208878E-2},{"$f":"((Quarterly!AN167/Quarterly!AN166)^4)-1","v":6.3184035752571477E-2},"--",{"$f":"(Quarterly!AP167-Quarterly!AP166)*100","v":1.3333333333333197},{"$f":"Quarterly!AQ167-Quarterly!AQ166","v":-2.3333333333333357},{"$f":"Quarterly!AR167-Quarterly!AR166","v":-4},{"$f":"Quarterly!AS167-Quarterly!AS166","v":-0.1666666666666643},{"$f":"Quarterly!AT167-Quarterly!AT166","v":-1.4666666666666615},{"$f":"Quarterly!AU167-Quarterly!AU166","v":-6.2333333333333414},{"$f":"Quarterly!AV167-Quarterly!AV166","v":-0.63333333333333286},{"$f":"Quarterly!AW167-Quarterly!AW166","v":1.1333333333333329},{"$f":"Quarterly!AX167-Quarterly!AX166","v":-2.9666666666666686},{"$f":"Quarterly!AY167-Quarterly!AY166","v":-7.06666666666667},{"$f":"Quarterly!AZ167-Quarterly!AZ166","v":-3.8333333333333286},{"$f":"Quarterly!BA167-Quarterly!BA166","v":-1.7333333333333272},{"$f":"Quarterly!BB167-Quarterly!BB166","v":-1.2333333333333343},{"$f":"((Quarterly!BC167/Quarterly!BC166)^4)-1","v":-2.4123016459767221E-3},{"$f":"((Quarterly!BD167/Quarterly!BD166)^4)-1","v":1.1520823454544971E-3},{"$f":"((Quarterly!BE167/Quarterly!BE166)^4)-1","v":1.074298413567254E-2},{"$f":"((Quarterly!BF167/Quarterly!BF166)^4)-1","v":6.9688406019520421E-2},{"$f":"((Quarterly!BG167/Quarterly!BG166)^4)-1","v":2.2760247470028361E-2},{"$f":"((Quarterly!BH167/Quarterly!BH166)^4)-1","v":6.3084451161138588E-2},{"$f":"((Quarterly!BI167/Quarterly!BI166)^4)-1","v":4.586914605742809E-2},{"$f":"((Quarterly!BJ167/Quarterly!BJ166)^4)-1","v":-0.47330026092728839},{"$f":"((Quarterly!BK167/Quarterly!BK166)^4)-1","v":-0.13095926512941747},null,{"$f":"((Quarterly!BM167/Quarterly!BM166)^4)-1","v":2.8097303801357221E-2},{"$f":"((Quarterly!BN167/Quarterly!BN166)^4)-1","v":2.3076079225696766E-2},null,null,null,null,null,{"$f":"((Quarterly!BT167/Quarterly!BT166)^4)-1","v":-5.48689371485096E-2},{"$f":"Quarterly!BU167-Quarterly!BU166","v":-0.14582999999999835},{"$f":"Quarterly!BV167-Quarterly!BV166","v":-0.22561999999999927},{"$f":"((Quarterly!BW167/Quarterly!BW166)^4)-1","v":6.9005666825080914E-2},{"$f":"((Quarterly!BX167/Quarterly!BX166)^4)-1","v":7.1464853835347508E-2},{"$f":"((Quarterly!BY167/Quarterly!BY166)^4)-1","v":0.39391411332770487},"--",{"$f":"((Quarterly!CA167/Quarterly!CA166)^4)-1","v":-0.18181591823709309},{"$f":"((Quarterly!CB167/Quarterly!CB166)^4)-1","v":-0.24344015305573985},{"$f":"((Quarterly!CC167/Quarterly!CC166)^4)-1","v":-0.17634049505040938},"--","--",null,"--","--",null,{"$f":"((Quarterly!CJ167/Quarterly!CJ166)^4)-1","v":0.20451869334279449},{"$f":"((Quarterly!CK167/Quarterly!CK166)^4)-1","v":9.2267530386062502E-2},{"$f":"((Quarterly!CL167/Quarterly!CL166)^4)-1","v":1.1709881216813063},{"$f":"((Quarterly!CM167/Quarterly!CM166)^4)-1","v":0.33221245194090687},{"$f":"((Quarterly!CN167/Quarterly!CN166)^4)-1","v":8.8029654726177853E-2},{"$f":"((Quarterly!CO167/Quarterly!CO166)^4)-1","v":0.12859493007744249},{"$f":"((Quarterly!CP167/Quarterly!CP166)^4)-1","v":3.1465992700224543E-2},{"$f":"((Quarterly!CQ167/Quarterly!CQ166)^4)-1","v":1.0552845184332416E-2},{"$f":"((Quarterly!CR167/Quarterly!CR166)^4)-1","v":2.8749436086571434E-2},{"$f":"Quarterly!CS167-Quarterly!CS166","v":2.8666666666666742},"--",null,null,null,null,null,{"$f":"((Quarterly!CZ167/Quarterly!CZ166)^4)-1","v":8.2729652531572384E-3},{"$f":"((Quarterly!DA167/Quarterly!DA166)^4)-1","v":2.4410728765934309E-2},null,null,null,null,null,{"$f":"((Quarterly!DG167/Quarterly!DG166)^4)-1","v":2.3314639275629823E-2},{"$f":"((Quarterly!DH167-Quarterly!DH166)*60)","v":0},{"$f":"Quarterly!DI167-Quarterly!DI166","v":-6.6666666666677088E-2},{"$f":"(Quarterly!DJ167-Quarterly!DJ166)*100","v":3.3333333333333215},{"$f":"(Quarterly!DK167-Quarterly!DK166)*100","v":-3.3333333333334103},{"$f":"((Quarterly!DL167/Quarterly!DL166)^4)-1","v":1.7278548400682769E-2},null,null,null,{"$f":"((Quarterly!DP167/Quarterly!DP166)^4)-1","v":2.4703130953684926E-2},null,null,null,"--",{"$f":"Quarterly!DU167-Quarterly!DU166","v":-0.5333333333333341},{"$f":"((Quarterly!DV167/Quarterly!DV166)^4)-1","v":2.681279443790352E-2},{"$f":"((Quarterly!DW167/Quarterly!DW166)^4)-1","v":-7.9008354287716687E-2},{"$f":"((Quarterly!DX167/Quarterly!DX166)^4)-1","v":-6.860627532903707E-2},{"$f":"((Quarterly!DY167/Quarterly!DY166)^4)-1","v":-0.14914113846460142},{"$f":"((Quarterly!DZ167/Quarterly!DZ166)^4)-1","v":-4.1501176094495662E-2},{"$f":"((Quarterly!EA167/Quarterly!EA166)^4)-1","v":-3.9773289246918808E-2},{"$f":"((Quarterly!EB167/Quarterly!EB166)^4)-1","v":-4.5778293373475942E-2},{"$f":"((Quarterly!EC167/Quarterly!EC166)^4)-1","v":-0.10546032420780871},null,null,null,null,null,{"$f":"((Quarterly!EI167/Quarterly!EI166)^4)-1","v":5.3740851688545144E-2},{"$f":"((Quarterly!EJ167/Quarterly!EJ166)^4)-1","v":3.0791566724874819E-2},{"$f":"((Quarterly!EK167/Quarterly!EK166)^4)-1","v":3.3567377334942305E-2},null,null,null,null,null,{"$f":"((Quarterly!EQ167/Quarterly!EQ166)^4)-1","v":-7.516874460826195E-2},{"$f":"((Quarterly!ER167/Quarterly!ER166)^4)-1","v":9.3940172649265019E-3},{"$f":"((Quarterly!ES167/Quarterly!ES166)^4)-1","v":-2.8988989274484345E-3},null,null,null,null,null,{"$f":"(Quarterly!EY167-Quarterly!EY166)*100","v":0},{"$f":"(Quarterly!EZ167-Quarterly!EZ166)*100","v":1.3333333333333641},{"$f":"(Quarterly!FA167-Quarterly!FA166)*100","v":-21.000000000000085},{"$f":"(Quarterly!FB167-Quarterly!FB166)*100","v":-18.333333333333357},2.6666666666667282,{"$f":"(Quarterly!FD167-Quarterly!FD166)*100","v":-14.66666666666665},{"$f":"(Quarterly!FE167-Quarterly!FE166)*100","v":-3.6666666666666181},{"$f":"(Quarterly!FF167-Quarterly!FF166)*100","v":-16.999999999999993},{"$f":"(Quarterly!FG167-Quarterly!FG166)*100","v":-28.666666666666707},{"$f":"(Quarterly!FH167-Quarterly!FH166)*100","v":-32.666666666666622},{"$f":"(Quarterly!FI167-Quarterly!FI166)*100","v":-32.000000000000028},-15.000000000000036,null,null,null,null,null,{"$f":"((Quarterly!FP167/Quarterly!FP166)^4)-1","v":6.2054438908420995E-2},{"$f":"((Quarterly!FQ167/Quarterly!FQ166)^4)-1","v":-1.6192738404033902E-3},{"$f":"((Quarterly!FR167/Quarterly!FR166)^4)-1","v":0.1804843528489104},"--",{"$f":"((Quarterly!FT167/Quarterly!FT166)^4)-1","v":0.24085344565405631},{"$f":"((Quarterly!FU167/Quarterly!FU166)^4)-1","v":0.10539040723124571},{"$f":"((Quarterly!FV167/Quarterly!FV166)^4)-1","v":-6.4515662650603378E-2},{"$f":"((Quarterly!FW167/Quarterly!FW166)^4)-1","v":-0.44157902654630821},{"$f":"((Quarterly!FX167/Quarterly!FX166)^4)-1","v":-0.10742605515555159},null,null,null,null,null,{"$f":"((Quarterly!GD167/Quarterly!GD166)^4)-1","v":-0.59074265396013503},{"$f":"((Quarterly!GE167/Quarterly!GE166)^4)-1","v":-0.67769989970666267},{"$f":"((Quarterly!GF167/Quarterly!GF166)^4)-1","v":-0.1055542175279065},{"$f":"((Quarterly!GG167/Quarterly!GG166)^4)-1","v":-0.27540917448088509},{"$f":"((Quarterly!GH167/Quarterly!GH166)^4)-1","v":{"$error":"#DIV/0!"}},"--",{"$f":"((Quarterly!GJ167/Quarterly!GJ166)^4)-1","v":-0.67160233717174189},{"$f":"((Quarterly!GK167/Quarterly!GK166)^4)-1","v":1.3111508493736101E-2},"--"]
["98'Q2",{"$f":"((Quarterly!B168/Quarterly!B167)^4)-1","v":4.809197807102894E-2},{"$f":"((Quarterly!C168/Quarterly!C167)^4)-1","v":3.9362349012646236E-2},{"$f":"((Quarterly!D168/Quarterly!D167)^4)-1","v":7.0751548037741641E-2},{"$f":"((Quarterly!E168/Quarterly!E167)^4)-1","v":7.253692205689366E-2},{"$f":"((Quarterly!F168/Quarterly!F167)^4)-1","v":0.21792189782105198},{"$f":"((Quarterly!G168/Quarterly!G167)^4)-1","v":4.9329590179041594E-2},{"$f":"((Quarterly!H168/Quarterly!H167)^4)-1","v":6.4339902081694822E-2},{"$f":"((Quarterly!I168/Quarterly!I167)^4)-1","v":0.13885351879123875},{"$f":"((Quarterly!J168/Quarterly!J167)^4)-1","v":0.19620155858539934},{"$f":"((Quarterly!K168/Quarterly!K167)^4)-1","v":0.12529766987911262},{"$f":"((Quarterly!L168-Quarterly!L167))","v":-78.246999999999986},{"$f":"((Quarterly!M168/Quarterly!M167)^4)-1","v":9.4837590541434036E-2},{"$f":"((Quarterly!N168/Quarterly!N167)^4)-1","v":-4.3421989739771738E-2},{"$f":"((Quarterly!O168/Quarterly!O167)^4)-1","v":1.0555597844033202},{"$f":"((Quarterly!P168/Quarterly!P167)^4)-1","v":8.3741373183009227E-2},{"$f":"((Quarterly!Q168/Quarterly!Q167)^4)-1","v":-0.97756466458424507},null,null,null,null,null,{"$f":"((Quarterly!W168/Quarterly!W167)^4)-1","v":-7.0518317967850686E-2},{"$f":"((Quarterly!X168/Quarterly!X167)^4)-1","v":-4.9873143490621885E-2},{"$f":"((Quarterly!Y168/Quarterly!Y167)^4)-1","v":7.5959832701043117E-2},{"$f":"Quarterly!Z168-Quarterly!Z167","v":3.999999999999998E-2},{"$f":"((Quarterly!AA168/Quarterly!AA167)^4)-1","v":-2.0808870776343635E-2},{"$f":"((Quarterly!AB168/Quarterly!AB167)^4)-1","v":-2.2054347747008096E-3},{"$f":"Quarterly!AC168-Quarterly!AC167","v":5.1999999999999993},{"$f":"Quarterly!AD168-Quarterly!AD167","v":6.4},{"$f":"(Quarterly!AE168-Quarterly!AE167)*100","v":-3.0000000000000027},{"$f":"(Quarterly!AF168-Quarterly!AF167)*100","v":3.9999999999999982},{"$f":"(Quarterly!AG168-Quarterly!AG167)*100","v":1.0000000000000009},"--","--","--","--","--",{"$f":"((Quarterly!AM168/Quarterly!AM167)^4)-1","v":2.696146639632202E-2},{"$f":"((Quarterly!AN168/Quarterly!AN167)^4)-1","v":1.8170844429278965E-2},"--",{"$f":"(Quarterly!AP168-Quarterly!AP167)*100","v":0.66666666666668206},{"$f":"Quarterly!AQ168-Quarterly!AQ167","v":-2.5333333333333314},{"$f":"Quarterly!AR168-Quarterly!AR167","v":1},{"$f":"Quarterly!AS168-Quarterly!AS167","v":0},{"$f":"Quarterly!AT168-Quarterly!AT167","v":-2.9666666666666686},{"$f":"Quarterly!AU168-Quarterly!AU167","v":-0.10000000000000142},{"$f":"Quarterly!AV168-Quarterly!AV167","v":-0.96666666666666856},{"$f":"Quarterly!AW168-Quarterly!AW167","v":-1.4333333333333371},{"$f":"Quarterly!AX168-Quarterly!AX167","v":-3.1999999999999957},{"$f":"Quarterly!AY168-Quarterly!AY167","v":-5.2666666666666657},{"$f":"Quarterly!AZ168-Quarterly!AZ167","v":-2.5333333333333314},{"$f":"Quarterly!BA168-Quarterly!BA167","v":-1.3333333333333357},{"$f":"Quarterly!BB168-Quarterly!BB167","v":0.39999999999999858},{"$f":"((Quarterly!BC168/Quarterly!BC167)^4)-1","v":-7.8230146440553261E-3},{"$f":"((Quarterly!BD168/Quarterly!BD167)^4)-1","v":-5.0196833178592914E-3},{"$f":"((Quarterly!BE168/Quarterly!BE167)^4)-1","v":6.5843729972988818E-2},{"$f":"((Quarterly!BF168/Quarterly!BF167)^4)-1","v":5.1755548642303584E-2},{"$f":"((Quarterly!BG168/Quarterly!BG167)^4)-1","v":2.5267301710178547E-2},{"$f":"((Quarterly!BH168/Quarterly!BH167)^4)-1","v":4.0099104153269893E-2},{"$f":"((Quarterly!BI168/Quarterly!BI167)^4)-1","v":2.5882060485360681E-2},{"$f":"((Quarterly!BJ168/Quarterly!BJ167)^4)-1","v":8.8406162523221532E-2},{"$f":"((Quarterly!BK168/Quarterly!BK167)^4)-1","v":0.7059558517284461},null,{"$f":"((Quarterly!BM168/Quarterly!BM167)^4)-1","v":9.3144608240510296E-2},{"$f":"((Quarterly!BN168/Quarterly!BN167)^4)-1","v":9.5683990959721132E-2},null,null,null,null,null,{"$f":"((Quarterly!BT168/Quarterly!BT167)^4)-1","v":1.6065715904532762E-2},{"$f":"Quarterly!BU168-Quarterly!BU167","v":2.023999999999937E-2},{"$f":"Quarterly!BV168-Quarterly!BV167","v":-2.3030000000002104E-2},{"$f":"((Quarterly!BW168/Quarterly!BW167)^4)-1","v":6.9528981820117908E-2},{"$f":"((Quarterly!BX168/Quarterly!BX167)^4)-1","v":3.5536699718548004E-2},{"$f":"((Quarterly!BY168/Quarterly!BY167)^4)-1","v":-0.12287329101845634},"--",{"$f":"((Quarterly!CA168/Quarterly!CA167)^4)-1","v":0.45018997939159489},{"$f":"((Quarterly!CB168/Quarterly!CB167)^4)-1","v":-8.4007127935415871E-2},{"$f":"((Quarterly!CC168/Quarterly!CC167)^4)-1","v":-0.12064335181958707},"--","--",null,"--","--",null,{"$f":"((Quarterly!CJ168/Quarterly!CJ167)^4)-1","v":0.16818134369605064},{"$f":"((Quarterly!CK168/Quarterly!CK167)^4)-1","v":7.0538839143552856E-2},{"$f":"((Quarterly!CL168/Quarterly!CL167)^4)-1","v":-0.17524482740409608},{"$f":"((Quarterly!CM168/Quarterly!CM167)^4)-1","v":3.5190494765563685E-2},{"$f":"((Quarterly!CN168/Quarterly!CN167)^4)-1","v":5.7058786240941739E-2},{"$f":"((Quarterly!CO168/Quarterly!CO167)^4)-1","v":0.13562268968732782},{"$f":"((Quarterly!CP168/Quarterly!CP167)^4)-1","v":0.12646598181075053},{"$f":"((Quarterly!CQ168/Quarterly!CQ167)^4)-1","v":1.0681554518069625E-2},{"$f":"((Quarterly!CR168/Quarterly!CR167)^4)-1","v":0.16784610336100658},{"$f":"Quarterly!CS168-Quarterly!CS167","v":-0.90000000000000568},"--",null,null,null,null,null,{"$f":"((Quarterly!CZ168/Quarterly!CZ167)^4)-1","v":1.3233897863133448E-2},{"$f":"((Quarterly!DA168/Quarterly!DA167)^4)-1","v":2.2684147619123074E-2},null,null,null,null,null,{"$f":"((Quarterly!DG168/Quarterly!DG167)^4)-1","v":1.3586761892096622E-2},{"$f":"((Quarterly!DH168-Quarterly!DH167)*60)","v":-5.9999999999996589},{"$f":"Quarterly!DI168-Quarterly!DI167","v":-9.9999999999994316E-2},{"$f":"(Quarterly!DJ168-Quarterly!DJ167)*100","v":-46.666666666666679},{"$f":"(Quarterly!DK168-Quarterly!DK167)*100","v":-23.333333333333339},{"$f":"((Quarterly!DL168/Quarterly!DL167)^4)-1","v":-1.0585210021053504E-3},null,null,null,{"$f":"((Quarterly!DP168/Quarterly!DP167)^4)-1","v":2.5464190949527232E-2},null,null,null,"--",{"$f":"Quarterly!DU168-Quarterly!DU167","v":-0.53333333333333233},{"$f":"((Quarterly!DV168/Quarterly!DV167)^4)-1","v":5.34854045052362E-2},{"$f":"((Quarterly!DW168/Quarterly!DW167)^4)-1","v":0.14096393094449899},{"$f":"((Quarterly!DX168/Quarterly!DX167)^4)-1","v":0.12395017905592498},{"$f":"((Quarterly!DY168/Quarterly!DY167)^4)-1","v":0.24574147400842228},{"$f":"((Quarterly!DZ168/Quarterly!DZ167)^4)-1","v":8.7789895960609154E-2},{"$f":"((Quarterly!EA168/Quarterly!EA167)^4)-1","v":8.8815544273050939E-2},{"$f":"((Quarterly!EB168/Quarterly!EB167)^4)-1","v":8.5244227336097378E-2},{"$f":"((Quarterly!EC168/Quarterly!EC167)^4)-1","v":0.18624232467783552},null,null,null,null,null,{"$f":"((Quarterly!EI168/Quarterly!EI167)^4)-1","v":6.2236980477976989E-2},{"$f":"((Quarterly!EJ168/Quarterly!EJ167)^4)-1","v":5.1957748312753571E-2},{"$f":"((Quarterly!EK168/Quarterly!EK167)^4)-1","v":4.5898878003575838E-2},null,null,null,null,null,{"$f":"((Quarterly!EQ168/Quarterly!EQ167)^4)-1","v":-3.195310987296085E-3},{"$f":"((Quarterly!ER168/Quarterly!ER167)^4)-1","v":1.9757135918800905E-2},{"$f":"((Quarterly!ES168/Quarterly!ES167)^4)-1","v":-7.7219716094347746E-3},null,null,null,null,null,{"$f":"(Quarterly!EY168-Quarterly!EY167)*100","v":0},{"$f":"(Quarterly!EZ168-Quarterly!EZ167)*100","v":-2.0000000000000462},{"$f":"(Quarterly!FA168-Quarterly!FA167)*100","v":-3.0000000000000249},{"$f":"(Quarterly!FB168-Quarterly!FB167)*100","v":-8.8817841970012523E-14},2.9999999999999361,{"$f":"(Quarterly!FD168-Quarterly!FD167)*100","v":4.0000000000000036},{"$f":"(Quarterly!FE168-Quarterly!FE167)*100","v":-7.6666666666667105},{"$f":"(Quarterly!FF168-Quarterly!FF167)*100","v":9.6666666666666679},{"$f":"(Quarterly!FG168-Quarterly!FG167)*100","v":10.999999999999943},{"$f":"(Quarterly!FH168-Quarterly!FH167)*100","v":7.9999999999999183},{"$f":"(Quarterly!FI168-Quarterly!FI167)*100","v":1.0000000000000675},-8.6666666666666003,null,null,null,null,null,{"$f":"((Quarterly!FP168/Quarterly!FP167)^4)-1","v":4.7045293072242922E-2},{"$f":"((Quarterly!FQ168/Quarterly!FQ167)^4)-1","v":0},{"$f":"((Quarterly!FR168/Quarterly!FR167)^4)-1","v":0.11692517736021535},"--",{"$f":"((Quarterly!FT168/Quarterly!FT167)^4)-1","v":1.7610497826909599E-2},{"$f":"((Quarterly!FU168/Quarterly!FU167)^4)-1","v":5.0784535216022109E-2},{"$f":"((Quarterly!FV168/Quarterly!FV167)^4)-1","v":0.15198034536121585},{"$f":"((Quarterly!FW168/Quarterly!FW167)^4)-1","v":0.66431814925204935},{"$f":"((Quarterly!FX168/Quarterly!FX167)^4)-1","v":0.28609605437738872},null,null,null,null,null,{"$f":"((Quarterly!GD168/Quarterly!GD167)^4)-1","v":-0.2840501327059477},{"$f":"((Quarterly!GE168/Quarterly!GE167)^4)-1","v":-0.19692947796327009},{"$f":"((Quarterly!GF168/Quarterly!GF167)^4)-1","v":-9.0214289560115457E-3},{"$f":"((Quarterly!GG168/Quarterly!GG167)^4)-1","v":-0.10572246426217669},{"$f":"((Quarterly!GH168/Quarterly!GH167)^4)-1","v":{"$error":"#DIV/0!"}},"--",{"$f":"((Quarterly!GJ168/Quarterly!GJ167)^4)-1","v":0.11071316578939538},{"$f":"((Quarterly!GK168/Quarterly!GK167)^4)-1","v":-0.14386100944284475},"--"]
["98'Q3",{"$f":"((Quarterly!B169/Quarterly!B168)^4)-1","v":6.9226398449533155E-2},{"$f":"((Quarterly!C169/Quarterly!C168)^4)-1","v":5.3363837437484074E-2},{"$f":"((Quarterly!D169/Quarterly!D168)^4)-1","v":4.6899301639972135E-2},{"$f":"((Quarterly!E169/Quarterly!E168)^4)-1","v":5.3683230297632889E-2},{"$f":"((Quarterly!F169/Quarterly!F168)^4)-1","v":0.11857908743106549},{"$f":"((Quarterly!G169/Quarterly!G168)^4)-1","v":2.9069965881445281E-2},{"$f":"((Quarterly!H169/Quarterly!H168)^4)-1","v":5.4465038992143278E-2},{"$f":"((Quarterly!I169/Quarterly!I168)^4)-1","v":6.1637674057793523E-2},{"$f":"((Quarterly!J169/Quarterly!J168)^4)-1","v":7.764969731097926E-2},{"$f":"((Quarterly!K169/Quarterly!K168)^4)-1","v":0.12559081801927463},{"$f":"((Quarterly!L169-Quarterly!L168))","v":17.725000000000001},{"$f":"((Quarterly!M169/Quarterly!M168)^4)-1","v":5.491024816155532E-2},{"$f":"((Quarterly!N169/Quarterly!N168)^4)-1","v":-1.8439592177808661E-2},{"$f":"((Quarterly!O169/Quarterly!O168)^4)-1","v":0.41297585550324545},{"$f":"((Quarterly!P169/Quarterly!P168)^4)-1","v":3.6877218560927183E-2},{"$f":"((Quarterly!Q169/Quarterly!Q168)^4)-1","v":36.716585952552748},null,null,null,null,null,{"$f":"((Quarterly!W169/Quarterly!W168)^4)-1","v":-4.8300154651576777E-2},{"$f":"((Quarterly!X169/Quarterly!X168)^4)-1","v":-3.8060635823984446E-2},{"$f":"((Quarterly!Y169/Quarterly!Y168)^4)-1","v":0.12965203947209525},{"$f":"Quarterly!Z169-Quarterly!Z168","v":2.0000000000000018E-2},{"$f":"((Quarterly!AA169/Quarterly!AA168)^4)-1","v":-3.7990278379611997E-2},{"$f":"((Quarterly!AB169/Quarterly!AB168)^4)-1","v":9.8276540288813052E-3},{"$f":"Quarterly!AC169-Quarterly!AC168","v":3.0999999999999996},{"$f":"Quarterly!AD169-Quarterly!AD168","v":-21.8},{"$f":"(Quarterly!AE169-Quarterly!AE168)*100","v":0},{"$f":"(Quarterly!AF169-Quarterly!AF168)*100","v":2.0000000000000018},{"$f":"(Quarterly!AG169-Quarterly!AG168)*100","v":3.0000000000000027},"--","--","--","--","--",{"$f":"((Quarterly!AM169/Quarterly!AM168)^4)-1","v":2.9892822327217683E-2},{"$f":"((Quarterly!AN169/Quarterly!AN168)^4)-1","v":3.1978270636350281E-2},"--",{"$f":"(Quarterly!AP169-Quarterly!AP168)*100","v":0.66666666666665986},{"$f":"Quarterly!AQ169-Quarterly!AQ168","v":-1.6000000000000014},{"$f":"Quarterly!AR169-Quarterly!AR168","v":-3.5},{"$f":"Quarterly!AS169-Quarterly!AS168","v":1.8333333333333357},{"$f":"Quarterly!AT169-Quarterly!AT168","v":-2.6000000000000014},{"$f":"Quarterly!AU169-Quarterly!AU168","v":-2.36666666666666},{"$f":"Quarterly!AV169-Quarterly!AV168","v":-1.1999999999999957},{"$f":"Quarterly!AW169-Quarterly!AW168","v":-0.66666666666665719},{"$f":"Quarterly!AX169-Quarterly!AX168","v":-1.63333333333334},{"$f":"Quarterly!AY169-Quarterly!AY168","v":-3.56666666666667},{"$f":"Quarterly!AZ169-Quarterly!AZ168","v":-1.4666666666666686},{"$f":"Quarterly!BA169-Quarterly!BA168","v":-1.1666666666666643},{"$f":"Quarterly!BB169-Quarterly!BB168","v":-3.43333333333333},{"$f":"((Quarterly!BC169/Quarterly!BC168)^4)-1","v":2.5155492149710357E-2},{"$f":"((Quarterly!BD169/Quarterly!BD168)^4)-1","v":5.0872920760192786E-2},{"$f":"((Quarterly!BE169/Quarterly!BE168)^4)-1","v":1.5413182343330556E-2},{"$f":"((Quarterly!BF169/Quarterly!BF168)^4)-1","v":6.6210224343720814E-2},{"$f":"((Quarterly!BG169/Quarterly!BG168)^4)-1","v":5.7659180509856967E-2},{"$f":"((Quarterly!BH169/Quarterly!BH168)^4)-1","v":4.7943590328814345E-2},{"$f":"((Quarterly!BI169/Quarterly!BI168)^4)-1","v":8.0149881127817846E-3},{"$f":"((Quarterly!BJ169/Quarterly!BJ168)^4)-1","v":0.13493859143093379},{"$f":"((Quarterly!BK169/Quarterly!BK168)^4)-1","v":0.2744293212890625},null,{"$f":"((Quarterly!BM169/Quarterly!BM168)^4)-1","v":2.1815914428151562E-3},{"$f":"((Quarterly!BN169/Quarterly!BN168)^4)-1","v":-2.0587097711615154E-3},null,null,null,null,null,{"$f":"((Quarterly!BT169/Quarterly!BT168)^4)-1","v":-4.725351615207285E-2},{"$f":"Quarterly!BU169-Quarterly!BU168","v":-1.4599999999999724E-2},{"$f":"Quarterly!BV169-Quarterly!BV168","v":-3.1179999999999097E-2},{"$f":"((Quarterly!BW169/Quarterly!BW168)^4)-1","v":6.9559496660411391E-2},{"$f":"((Quarterly!BX169/Quarterly!BX168)^4)-1","v":0.15875695828624514},{"$f":"((Quarterly!BY169/Quarterly!BY168)^4)-1","v":0.17268536798464762},"--",{"$f":"((Quarterly!CA169/Quarterly!CA168)^4)-1","v":-0.29566632346937205},{"$f":"((Quarterly!CB169/Quarterly!CB168)^4)-1","v":0.10157718488668444},{"$f":"((Quarterly!CC169/Quarterly!CC168)^4)-1","v":0.11011208446231247},"--","--",null,"--","--",null,{"$f":"((Quarterly!CJ169/Quarterly!CJ168)^4)-1","v":-0.1278932542072132},{"$f":"((Quarterly!CK169/Quarterly!CK168)^4)-1","v":5.8086267551656245E-2},{"$f":"((Quarterly!CL169/Quarterly!CL168)^4)-1","v":-0.11824915381765322},{"$f":"((Quarterly!CM169/Quarterly!CM168)^4)-1","v":0.13434235809534179},{"$f":"((Quarterly!CN169/Quarterly!CN168)^4)-1","v":4.1370207046675711E-2},{"$f":"((Quarterly!CO169/Quarterly!CO168)^4)-1","v":0.13177445543706745},{"$f":"((Quarterly!CP169/Quarterly!CP168)^4)-1","v":6.7230385687492511E-2},{"$f":"((Quarterly!CQ169/Quarterly!CQ168)^4)-1","v":1.2361172815491317E-2},{"$f":"((Quarterly!CR169/Quarterly!CR168)^4)-1","v":2.7136644544728306E-2},{"$f":"Quarterly!CS169-Quarterly!CS168","v":-3.4333333333333229},"--",null,null,null,null,null,{"$f":"((Quarterly!CZ169/Quarterly!CZ168)^4)-1","v":2.0666879645282021E-2},{"$f":"((Quarterly!DA169/Quarterly!DA168)^4)-1","v":2.4125776507529562E-2},null,null,null,null,null,{"$f":"((Quarterly!DG169/Quarterly!DG168)^4)-1","v":2.4472016280029818E-2},{"$f":"((Quarterly!DH169-Quarterly!DH168)*60)","v":1.9999999999998863},{"$f":"Quarterly!DI169-Quarterly!DI168","v":6.6666666666662877E-2},{"$f":"(Quarterly!DJ169-Quarterly!DJ168)*100","v":3.3333333333332327},{"$f":"(Quarterly!DK169-Quarterly!DK168)*100","v":13.333333333333375},{"$f":"((Quarterly!DL169/Quarterly!DL168)^4)-1","v":-2.4511808365616172E-2},null,null,null,{"$f":"((Quarterly!DP169/Quarterly!DP168)^4)-1","v":2.2843058429986574E-2},null,null,null,"--",{"$f":"Quarterly!DU169-Quarterly!DU168","v":0.19999999999999929},{"$f":"((Quarterly!DV169/Quarterly!DV168)^4)-1","v":2.648731430540896E-2},{"$f":"((Quarterly!DW169/Quarterly!DW168)^4)-1","v":0.10371455258926399},{"$f":"((Quarterly!DX169/Quarterly!DX168)^4)-1","v":9.2280036430860246E-2},{"$f":"((Quarterly!DY169/Quarterly!DY168)^4)-1","v":0.1660001720109856},{"$f":"((Quarterly!DZ169/Quarterly!DZ168)^4)-1","v":6.9213232377716816E-2},{"$f":"((Quarterly!EA169/Quarterly!EA168)^4)-1","v":6.9662236435297897E-2},{"$f":"((Quarterly!EB169/Quarterly!EB168)^4)-1","v":6.8097122629682927E-2},{"$f":"((Quarterly!EC169/Quarterly!EC168)^4)-1","v":0.13354743658857271},null,null,null,null,null,{"$f":"((Quarterly!EI169/Quarterly!EI168)^4)-1","v":6.765448198582491E-2},{"$f":"((Quarterly!EJ169/Quarterly!EJ168)^4)-1","v":6.0072873432297502E-2},{"$f":"((Quarterly!EK169/Quarterly!EK168)^4)-1","v":5.3862923475019198E-2},null,null,null,null,null,{"$f":"((Quarterly!EQ169/Quarterly!EQ168)^4)-1","v":-2.0123810670820363E-2},{"$f":"((Quarterly!ER169/Quarterly!ER168)^4)-1","v":1.119914425736046E-2},{"$f":"((Quarterly!ES169/Quarterly!ES168)^4)-1","v":-9.6957937367114777E-4},null,null,null,null,null,{"$f":"(Quarterly!EY169-Quarterly!EY168)*100","v":-0.3333333333332078},{"$f":"(Quarterly!EZ169-Quarterly!EZ168)*100","v":3.3333333333334103},{"$f":"(Quarterly!FA169-Quarterly!FA168)*100","v":-14.666666666666739},{"$f":"(Quarterly!FB169-Quarterly!FB168)*100","v":-12.666666666666693},2.0000000000000462,{"$f":"(Quarterly!FD169-Quarterly!FD168)*100","v":-23.000000000000043},{"$f":"(Quarterly!FE169-Quarterly!FE168)*100","v":-15.333333333333332},{"$f":"(Quarterly!FF169-Quarterly!FF168)*100","v":-31.666666666666643},{"$f":"(Quarterly!FG169-Quarterly!FG168)*100","v":-42.333333333333201},{"$f":"(Quarterly!FH169-Quarterly!FH168)*100","v":-46.999999999999886},{"$f":"(Quarterly!FI169-Quarterly!FI168)*100","v":-39.333333333333357},-7.666666666666714,null,null,null,null,null,{"$f":"((Quarterly!FP169/Quarterly!FP168)^4)-1","v":0.2004017418321753},{"$f":"((Quarterly!FQ169/Quarterly!FQ168)^4)-1","v":2.0864889736360581E-4},{"$f":"((Quarterly!FR169/Quarterly!FR168)^4)-1","v":0.44014287290481335},"--",{"$f":"((Quarterly!FT169/Quarterly!FT168)^4)-1","v":0.11271807065329331},{"$f":"((Quarterly!FU169/Quarterly!FU168)^4)-1","v":6.5381757392861672E-2},{"$f":"((Quarterly!FV169/Quarterly!FV168)^4)-1","v":-0.24133642544458445},{"$f":"((Quarterly!FW169/Quarterly!FW168)^4)-1","v":1.188621917065531},{"$f":"((Quarterly!FX169/Quarterly!FX168)^4)-1","v":-1.6128600500354917E-2},null,null,null,null,null,{"$f":"((Quarterly!GD169/Quarterly!GD168)^4)-1","v":-0.13538467044981184},{"$f":"((Quarterly!GE169/Quarterly!GE168)^4)-1","v":-0.24897486986247175},{"$f":"((Quarterly!GF169/Quarterly!GF168)^4)-1","v":-9.8325214493619639E-2},{"$f":"((Quarterly!GG169/Quarterly!GG168)^4)-1","v":-0.13936927492543016},{"$f":"((Quarterly!GH169/Quarterly!GH168)^4)-1","v":{"$error":"#DIV/0!"}},"--",{"$f":"((Quarterly!GJ169/Quarterly!GJ168)^4)-1","v":-0.37414111021991581},{"$f":"((Quarterly!GK169/Quarterly!GK168)^4)-1","v":-3.2809098256727398E-2},"--"]
["98'Q4",{"$f":"((Quarterly!B170/Quarterly!B169)^4)-1","v":8.0669027391191861E-2},{"$f":"((Quarterly!C170/Quarterly!C169)^4)-1","v":6.7295807249161399E-2},{"$f":"((Quarterly!D170/Quarterly!D169)^4)-1","v":6.6368781891426476E-2},{"$f":"((Quarterly!E170/Quarterly!E169)^4)-1","v":6.0033897727908014E-2},{"$f":"((Quarterly!F170/Quarterly!F169)^4)-1","v":0.25801943754187051},{"$f":"((Quarterly!G170/Quarterly!G169)^4)-1","v":5.5290954900846234E-2},{"$f":"((Quarterly!H170/Quarterly!H169)^4)-1","v":3.8996253873923026E-2},{"$f":"((Quarterly!I170/Quarterly!I169)^4)-1","v":0.12002141089374008},{"$f":"((Quarterly!J170/Quarterly!J169)^4)-1","v":0.16977583655688311},{"$f":"((Quarterly!K170/Quarterly!K169)^4)-1","v":9.9699397932947242E-2},{"$f":"((Quarterly!L170-Quarterly!L169))","v":3.688999999999993},{"$f":"((Quarterly!M170/Quarterly!M169)^4)-1","v":0.13555491141099885},{"$f":"((Quarterly!N170/Quarterly!N169)^4)-1","v":0.15649183659083898},{"$f":"((Quarterly!O170/Quarterly!O169)^4)-1","v":5.7090011298475574E-2},{"$f":"((Quarterly!P170/Quarterly!P169)^4)-1","v":3.7091222413939695E-2},{"$f":"((Quarterly!Q170/Quarterly!Q169)^4)-1","v":-0.19467108281378909},null,null,null,null,null,{"$f":"((Quarterly!W170/Quarterly!W169)^4)-1","v":9.9999222643818442E-3},{"$f":"((Quarterly!X170/Quarterly!X169)^4)-1","v":-3.2454334305367372E-3},{"$f":"((Quarterly!Y170/Quarterly!Y169)^4)-1","v":0.15442025387286029},{"$f":"Quarterly!Z170-Quarterly!Z169","v":7.999999999999996E-2},{"$f":"((Quarterly!AA170/Quarterly!AA169)^4)-1","v":-0.13464171702360139},{"$f":"((Quarterly!AB170/Quarterly!AB169)^4)-1","v":-0.12690352572890773},{"$f":"Quarterly!AC170-Quarterly!AC169","v":-11.899999999999999},{"$f":"Quarterly!AD170-Quarterly!AD169","v":7.7},{"$f":"(Quarterly!AE170-Quarterly!AE169)*100","v":2.0000000000000018},{"$f":"(Quarterly!AF170-Quarterly!AF169)*100","v":7.9999999999999964},{"$f":"(Quarterly!AG170-Quarterly!AG169)*100","v":3.0000000000000027},"--","--","--","--","--",{"$f":"((Quarterly!AM170/Quarterly!AM169)^4)-1","v":5.9190091393084066E-2},{"$f":"((Quarterly!AN170/Quarterly!AN169)^4)-1","v":8.3155767953058568E-2},"--",{"$f":"(Quarterly!AP170-Quarterly!AP169)*100","v":-1.3333333333333419},{"$f":"Quarterly!AQ170-Quarterly!AQ169","v":-1.1666666666666643},{"$f":"Quarterly!AR170-Quarterly!AR169","v":-5.3333333333333357},{"$f":"Quarterly!AS170-Quarterly!AS169","v":-0.5},{"$f":"Quarterly!AT170-Quarterly!AT169","v":-1.7000000000000028},{"$f":"Quarterly!AU170-Quarterly!AU169","v":0.1666666666666714},{"$f":"Quarterly!AV170-Quarterly!AV169","v":-0.39999999999999858},{"$f":"Quarterly!AW170-Quarterly!AW169","v":0.73333333333333428},{"$f":"Quarterly!AX170-Quarterly!AX169","v":-2.0333333333333314},{"$f":"Quarterly!AY170-Quarterly!AY169","v":-3.0333333333333314},{"$f":"Quarterly!AZ170-Quarterly!AZ169","v":-0.73333333333333428},{"$f":"Quarterly!BA170-Quarterly!BA169","v":-0.86666666666667425},{"$f":"Quarterly!BB170-Quarterly!BB169","v":-1.6999999999999957},{"$f":"((Quarterly!BC170/Quarterly!BC169)^4)-1","v":1.6459421401107344E-2},{"$f":"((Quarterly!BD170/Quarterly!BD169)^4)-1","v":3.7363560499025894E-2},{"$f":"((Quarterly!BE170/Quarterly!BE169)^4)-1","v":-1.7270349538622054E-2},{"$f":"((Quarterly!BF170/Quarterly!BF169)^4)-1","v":2.1977533365914681E-2},{"$f":"((Quarterly!BG170/Quarterly!BG169)^4)-1","v":3.2856537667817376E-2},{"$f":"((Quarterly!BH170/Quarterly!BH169)^4)-1","v":5.1626649598655039E-3},{"$f":"((Quarterly!BI170/Quarterly!BI169)^4)-1","v":-1.0471232171297529E-2},{"$f":"((Quarterly!BJ170/Quarterly!BJ169)^4)-1","v":-0.1908254579784151},{"$f":"((Quarterly!BK170/Quarterly!BK169)^4)-1","v":1.3285281545958489},null,{"$f":"((Quarterly!BM170/Quarterly!BM169)^4)-1","v":0.12346512391988251},{"$f":"((Quarterly!BN170/Quarterly!BN169)^4)-1","v":0.12740958140583136},null,null,null,null,null,{"$f":"((Quarterly!BT170/Quarterly!BT169)^4)-1","v":4.3195231272175949E-2},{"$f":"Quarterly!BU170-Quarterly!BU169","v":6.1439999999999273E-2},{"$f":"Quarterly!BV170-Quarterly!BV169","v":7.132000000000005E-2},{"$f":"((Quarterly!BW170/Quarterly!BW169)^4)-1","v":9.4116514296543663E-2},{"$f":"((Quarterly!BX170/Quarterly!BX169)^4)-1","v":0.24250454525922138},{"$f":"((Quarterly!BY170/Quarterly!BY169)^4)-1","v":0.26399316779228532},"--",{"$f":"((Quarterly!CA170/Quarterly!CA169)^4)-1","v":0.50406611449391736},{"$f":"((Quarterly!CB170/Quarterly!CB169)^4)-1","v":-0.10682939789789614},{"$f":"((Quarterly!CC170/Quarterly!CC169)^4)-1","v":-9.9548521286521363E-2},"--","--",null,"--","--",null,{"$f":"((Quarterly!CJ170/Quarterly!CJ169)^4)-1","v":0.44851588097887851},{"$f":"((Quarterly!CK170/Quarterly!CK169)^4)-1","v":5.0786934674308171E-2},{"$f":"((Quarterly!CL170/Quarterly!CL169)^4)-1","v":-0.30649795771444854},{"$f":"((Quarterly!CM170/Quarterly!CM169)^4)-1","v":0.29614200275702696},{"$f":"((Quarterly!CN170/Quarterly!CN169)^4)-1","v":3.2952948239458157E-2},{"$f":"((Quarterly!CO170/Quarterly!CO169)^4)-1","v":0.15960470360950119},{"$f":"((Quarterly!CP170/Quarterly!CP169)^4)-1","v":6.9106484553551617E-2},{"$f":"((Quarterly!CQ170/Quarterly!CQ169)^4)-1","v":1.240098421223701E-2},{"$f":"((Quarterly!CR170/Quarterly!CR169)^4)-1","v":7.6055200393567723E-2},{"$f":"Quarterly!CS170-Quarterly!CS169","v":-3.2999999999999972},"--",null,null,null,null,null,{"$f":"((Quarterly!CZ170/Quarterly!CZ169)^4)-1","v":1.8904234130364017E-2},{"$f":"((Quarterly!DA170/Quarterly!DA169)^4)-1","v":2.2421087193507327E-2},null,null,null,null,null,{"$f":"((Quarterly!DG170/Quarterly!DG169)^4)-1","v":2.705292076656618E-2},{"$f":"((Quarterly!DH170-Quarterly!DH169)*60)","v":0},{"$f":"Quarterly!DI170-Quarterly!DI169","v":0.10000000000000853},{"$f":"(Quarterly!DJ170-Quarterly!DJ169)*100","v":-29.999999999999893},{"$f":"(Quarterly!DK170-Quarterly!DK169)*100","v":-9.9999999999999645},{"$f":"((Quarterly!DL170/Quarterly!DL169)^4)-1","v":-8.8018282723457686E-3},null,null,null,{"$f":"((Quarterly!DP170/Quarterly!DP169)^4)-1","v":2.4418627827445638E-2},null,null,null,"--",{"$f":"Quarterly!DU170-Quarterly!DU169","v":-0.33333333333333393},{"$f":"((Quarterly!DV170/Quarterly!DV169)^4)-1","v":1.9239468135242133E-2},{"$f":"((Quarterly!DW170/Quarterly!DW169)^4)-1","v":-2.4146732435000318E-2},{"$f":"((Quarterly!DX170/Quarterly!DX169)^4)-1","v":-1.5067653033602801E-2},{"$f":"((Quarterly!DY170/Quarterly!DY169)^4)-1","v":-6.9400934622323884E-2},{"$f":"((Quarterly!DZ170/Quarterly!DZ169)^4)-1","v":3.3939904754143324E-3},{"$f":"((Quarterly!EA170/Quarterly!EA169)^4)-1","v":1.5015012372348036E-3},{"$f":"((Quarterly!EB170/Quarterly!EB169)^4)-1","v":8.114181728153147E-3},{"$f":"((Quarterly!EC170/Quarterly!EC169)^4)-1","v":-4.7007051074734463E-2},null,null,null,null,null,{"$f":"((Quarterly!EI170/Quarterly!EI169)^4)-1","v":0.11210207694851015},{"$f":"((Quarterly!EJ170/Quarterly!EJ169)^4)-1","v":8.1299567737045164E-2},{"$f":"((Quarterly!EK170/Quarterly!EK169)^4)-1","v":6.3843141421565663E-2},null,null,null,null,null,{"$f":"((Quarterly!EQ170/Quarterly!EQ169)^4)-1","v":-2.6548365667374285E-2},{"$f":"((Quarterly!ER170/Quarterly!ER169)^4)-1","v":2.5258960044570511E-2},{"$f":"((Quarterly!ES170/Quarterly!ES169)^4)-1","v":4.8596678869647914E-3},null,null,null,null,null,{"$f":"(Quarterly!EY170-Quarterly!EY169)*100","v":-57.666666666666885},{"$f":"(Quarterly!EZ170-Quarterly!EZ169)*100","v":-67.333333333333371},{"$f":"(Quarterly!FA170-Quarterly!FA169)*100","v":-15.666666666666629},{"$f":"(Quarterly!FB170-Quarterly!FB169)*100","v":12.333333333333396},28.000000000000025,{"$f":"(Quarterly!FD170-Quarterly!FD169)*100","v":-9.6666666666666679},{"$f":"(Quarterly!FE170-Quarterly!FE169)*100","v":-56.999999999999943},{"$f":"(Quarterly!FF170-Quarterly!FF169)*100","v":-70.3333333333334},{"$f":"(Quarterly!FG170-Quarterly!FG169)*100","v":-75.333333333333385},{"$f":"(Quarterly!FH170-Quarterly!FH169)*100","v":-72.666666666666742},{"$f":"(Quarterly!FI170-Quarterly!FI169)*100","v":-53.333333333333321},17.000000000000078,null,null,null,null,null,{"$f":"((Quarterly!FP170/Quarterly!FP169)^4)-1","v":7.7520485075551093E-2},{"$f":"((Quarterly!FQ170/Quarterly!FQ169)^4)-1","v":-1.4666585936014886E-2},{"$f":"((Quarterly!FR170/Quarterly!FR169)^4)-1","v":0.2352481098941106},"--",{"$f":"((Quarterly!FT170/Quarterly!FT169)^4)-1","v":-0.11880665116429501},{"$f":"((Quarterly!FU170/Quarterly!FU169)^4)-1","v":-0.18919588351881411},{"$f":"((Quarterly!FV170/Quarterly!FV169)^4)-1","v":0.47397720557148149},{"$f":"((Quarterly!FW170/Quarterly!FW169)^4)-1","v":-0.2448641067356645},{"$f":"((Quarterly!FX170/Quarterly!FX169)^4)-1","v":0.24202656848811044},null,null,null,null,null,{"$f":"((Quarterly!GD170/Quarterly!GD169)^4)-1","v":-0.31814591370174594},{"$f":"((Quarterly!GE170/Quarterly!GE169)^4)-1","v":-0.34678545139141881},{"$f":"((Quarterly!GF170/Quarterly!GF169)^4)-1","v":-0.34529279744871277},{"$f":"((Quarterly!GG170/Quarterly!GG169)^4)-1","v":-3.355620982954699E-2},{"$f":"((Quarterly!GH170/Quarterly!GH169)^4)-1","v":{"$error":"#DIV/0!"}},"--",{"$f":"((Quarterly!GJ170/Quarterly!GJ169)^4)-1","v":0.29791611293597953},{"$f":"((Quarterly!GK170/Quarterly!GK169)^4)-1","v":-2.4697312862643206E-2},"--"]
["99'Q1",{"$f":"((Quarterly!B171/Quarterly!B170)^4)-1","v":5.312071094922266E-2},{"$f":"((Quarterly!C171/Quarterly!C170)^4)-1","v":3.232462707625805E-2},{"$f":"((Quarterly!D171/Quarterly!D170)^4)-1","v":2.326790694700942E-2},{"$f":"((Quarterly!E171/Quarterly!E170)^4)-1","v":3.8601892105414093E-2},{"$f":"((Quarterly!F171/Quarterly!F170)^4)-1","v":8.6768732139752558E-3},{"$f":"((Quarterly!G171/Quarterly!G170)^4)-1","v":7.5671322948518416E-2},{"$f":"((Quarterly!H171/Quarterly!H170)^4)-1","v":8.7735077254524674E-2},{"$f":"((Quarterly!I171/Quarterly!I170)^4)-1","v":9.0512695457048542E-2},{"$f":"((Quarterly!J171/Quarterly!J170)^4)-1","v":0.12439658739513892},{"$f":"((Quarterly!K171/Quarterly!K170)^4)-1","v":0.50754992866807203},{"$f":"((Quarterly!L171-Quarterly!L170))","v":26.457999999999998},{"$f":"((Quarterly!M171/Quarterly!M170)^4)-1","v":5.9766774673736478E-2},{"$f":"((Quarterly!N171/Quarterly!N170)^4)-1","v":-9.3650880920738477E-2},{"$f":"((Quarterly!O171/Quarterly!O170)^4)-1","v":0.86621728595843628},{"$f":"((Quarterly!P171/Quarterly!P170)^4)-1","v":1.4588947892293147E-2},{"$f":"((Quarterly!Q171/Quarterly!Q170)^4)-1","v":27.457628304254392},null,null,null,null,null,{"$f":"((Quarterly!W171/Quarterly!W170)^4)-1","v":-9.9009138950850728E-3},{"$f":"((Quarterly!X171/Quarterly!X170)^4)-1","v":-9.7204625231929187E-3},{"$f":"((Quarterly!Y171/Quarterly!Y170)^4)-1","v":8.2781539032361628E-3},{"$f":"Quarterly!Z171-Quarterly!Z170","v":1.0000000000000009E-2},{"$f":"((Quarterly!AA171/Quarterly!AA170)^4)-1","v":0.27596967465865974},{"$f":"((Quarterly!AB171/Quarterly!AB170)^4)-1","v":0.3628851077808426},{"$f":"Quarterly!AC171-Quarterly!AC170","v":-13.100000000000001},{"$f":"Quarterly!AD171-Quarterly!AD170","v":3.7},{"$f":"(Quarterly!AE171-Quarterly!AE170)*100","v":3.0000000000000027},{"$f":"(Quarterly!AF171-Quarterly!AF170)*100","v":1.0000000000000009},{"$f":"(Quarterly!AG171-Quarterly!AG170)*100","v":-8.0000000000000071},"--","--","--","--","--",{"$f":"((Quarterly!AM171/Quarterly!AM170)^4)-1","v":4.5274881465589223E-2},{"$f":"((Quarterly!AN171/Quarterly!AN170)^4)-1","v":5.4885200610001794E-2},"--",{"$f":"(Quarterly!AP171-Quarterly!AP170)*100","v":-1.3333333333333197},{"$f":"Quarterly!AQ171-Quarterly!AQ170","v":3.6666666666666714},{"$f":"Quarterly!AR171-Quarterly!AR170","v":5.1666666666666643},{"$f":"Quarterly!AS171-Quarterly!AS170","v":-4.8333333333333357},{"$f":"Quarterly!AT171-Quarterly!AT170","v":2.1666666666666714},{"$f":"Quarterly!AU171-Quarterly!AU170","v":6.36666666666666},{"$f":"Quarterly!AV171-Quarterly!AV170","v":1.6666666666666572},{"$f":"Quarterly!AW171-Quarterly!AW170","v":-1.4666666666666686},{"$f":"Quarterly!AX171-Quarterly!AX170","v":5.7666666666666728},{"$f":"Quarterly!AY171-Quarterly!AY170","v":3.4333333333333371},{"$f":"Quarterly!AZ171-Quarterly!AZ170","v":5.6000000000000085},{"$f":"Quarterly!BA171-Quarterly!BA170","v":1.8000000000000043},{"$f":"Quarterly!BB171-Quarterly!BB170","v":4.1666666666666572},{"$f":"((Quarterly!BC171/Quarterly!BC170)^4)-1","v":2.1466325533758823E-3},{"$f":"((Quarterly!BD171/Quarterly!BD170)^4)-1","v":8.4109139509214392E-2},{"$f":"((Quarterly!BE171/Quarterly!BE170)^4)-1","v":1.1862819491250676E-3},{"$f":"((Quarterly!BF171/Quarterly!BF170)^4)-1","v":7.5046993859569255E-2},{"$f":"((Quarterly!BG171/Quarterly!BG170)^4)-1","v":4.5215984339557869E-2},{"$f":"((Quarterly!BH171/Quarterly!BH170)^4)-1","v":6.0292015368932583E-2},{"$f":"((Quarterly!BI171/Quarterly!BI170)^4)-1","v":2.8513392998884335E-2},{"$f":"((Quarterly!BJ171/Quarterly!BJ170)^4)-1","v":-0.10708017604384135},{"$f":"((Quarterly!BK171/Quarterly!BK170)^4)-1","v":9.8693767000375132E-2},null,{"$f":"((Quarterly!BM171/Quarterly!BM170)^4)-1","v":7.6510155567586891E-2},{"$f":"((Quarterly!BN171/Quarterly!BN170)^4)-1","v":8.5948083905808659E-2},null,null,null,null,null,{"$f":"((Quarterly!BT171/Quarterly!BT170)^4)-1","v":1.9307389384080054E-3},{"$f":"Quarterly!BU171-Quarterly!BU170","v":6.5530000000000754E-2},{"$f":"Quarterly!BV171-Quarterly!BV170","v":7.3249999999998039E-2},{"$f":"((Quarterly!BW171/Quarterly!BW170)^4)-1","v":6.4978565507928243E-2},{"$f":"((Quarterly!BX171/Quarterly!BX170)^4)-1","v":-2.9851492557027459E-2},{"$f":"((Quarterly!BY171/Quarterly!BY170)^4)-1","v":-1.2410165817891006E-2},"--",{"$f":"((Quarterly!CA171/Quarterly!CA170)^4)-1","v":-2.1028785624199409E-2},{"$f":"((Quarterly!CB171/Quarterly!CB170)^4)-1","v":1.9043053315684233E-2},{"$f":"((Quarterly!CC171/Quarterly!CC170)^4)-1","v":-2.8453580073378948E-2},"--","--",null,"--","--",null,{"$f":"((Quarterly!CJ171/Quarterly!CJ170)^4)-1","v":-0.30963822134678998},{"$f":"((Quarterly!CK171/Quarterly!CK170)^4)-1","v":4.5856106074547043E-2},{"$f":"((Quarterly!CL171/Quarterly!CL170)^4)-1","v":7.8424384959515203E-2},{"$f":"((Quarterly!CM171/Quarterly!CM170)^4)-1","v":-7.7760606168200574E-2},{"$f":"((Quarterly!CN171/Quarterly!CN170)^4)-1","v":3.6296459328012176E-2},{"$f":"((Quarterly!CO171/Quarterly!CO170)^4)-1","v":0.14824350844644818},{"$f":"((Quarterly!CP171/Quarterly!CP170)^4)-1","v":8.6344436055945994E-2},{"$f":"((Quarterly!CQ171/Quarterly!CQ170)^4)-1","v":1.0495417333283408E-2},{"$f":"((Quarterly!CR171/Quarterly!CR170)^4)-1","v":7.3546426034416745E-2},{"$f":"Quarterly!CS171-Quarterly!CS170","v":5.6999999999999886},"--",null,null,null,null,null,{"$f":"((Quarterly!CZ171/Quarterly!CZ170)^4)-1","v":1.4702632819067807E-2},{"$f":"((Quarterly!DA171/Quarterly!DA170)^4)-1","v":1.7652840787286905E-2},null,null,null,null,null,{"$f":"((Quarterly!DG171/Quarterly!DG170)^4)-1","v":1.2025921388270966E-2},{"$f":"((Quarterly!DH171-Quarterly!DH170)*60)","v":-6.0000000000000853},{"$f":"Quarterly!DI171-Quarterly!DI170","v":-3.3333333333331439E-2},{"$f":"(Quarterly!DJ171-Quarterly!DJ170)*100","v":0},{"$f":"(Quarterly!DK171-Quarterly!DK170)*100","v":-13.333333333333375},{"$f":"((Quarterly!DL171/Quarterly!DL170)^4)-1","v":-1.7885111702903744E-2},null,null,null,{"$f":"((Quarterly!DP171/Quarterly!DP170)^4)-1","v":2.4078496897646851E-2},null,null,null,"--",{"$f":"Quarterly!DU171-Quarterly!DU170","v":0.43333333333333357},{"$f":"((Quarterly!DV171/Quarterly!DV170)^4)-1","v":2.0136645716767987E-2},{"$f":"((Quarterly!DW171/Quarterly!DW170)^4)-1","v":-8.5585010609073753E-2},{"$f":"((Quarterly!DX171/Quarterly!DX170)^4)-1","v":-7.6579814550118641E-2},{"$f":"((Quarterly!DY171/Quarterly!DY170)^4)-1","v":-0.15016688272783063},{"$f":"((Quarterly!DZ171/Quarterly!DZ170)^4)-1","v":-5.172810130145733E-2},{"$f":"((Quarterly!EA171/Quarterly!EA170)^4)-1","v":-5.0276507086433053E-2},{"$f":"((Quarterly!EB171/Quarterly!EB170)^4)-1","v":-5.5326561221384241E-2},{"$f":"((Quarterly!EC171/Quarterly!EC170)^4)-1","v":-0.10842871339202198},null,null,null,null,null,{"$f":"((Quarterly!EI171/Quarterly!EI170)^4)-1","v":6.2178360376963893E-2},{"$f":"((Quarterly!EJ171/Quarterly!EJ170)^4)-1","v":5.0748496971552592E-2},{"$f":"((Quarterly!EK171/Quarterly!EK170)^4)-1","v":6.5970122226148398E-2},null,null,null,null,null,{"$f":"((Quarterly!EQ171/Quarterly!EQ170)^4)-1","v":-2.7783499716999116E-2},{"$f":"((Quarterly!ER171/Quarterly!ER170)^4)-1","v":2.5100464792783495E-2},{"$f":"((Quarterly!ES171/Quarterly!ES170)^4)-1","v":9.6934440967100244E-4},null,null,null,null,null,{"$f":"(Quarterly!EY171-Quarterly!EY170)*100","v":-16.999999999999904},{"$f":"(Quarterly!EZ171-Quarterly!EZ170)*100","v":-12.666666666666693},{"$f":"(Quarterly!FA171-Quarterly!FA170)*100","v":8.666666666666778},{"$f":"(Quarterly!FB171-Quarterly!FB170)*100","v":15.333333333333332},6.6666666666665542,{"$f":"(Quarterly!FD171-Quarterly!FD170)*100","v":11.333333333333329},{"$f":"(Quarterly!FE171-Quarterly!FE170)*100","v":15.333333333333332},{"$f":"(Quarterly!FF171-Quarterly!FF170)*100","v":27.333333333333432},{"$f":"(Quarterly!FG171-Quarterly!FG170)*100","v":47.000000000000064},{"$f":"(Quarterly!FH171-Quarterly!FH170)*100","v":49.333333333333314},{"$f":"(Quarterly!FI171-Quarterly!FI170)*100","v":31.333333333333346},3.9999999999999147,null,null,null,null,null,{"$f":"((Quarterly!FP171/Quarterly!FP170)^4)-1","v":-7.8950334535630606E-2},{"$f":"((Quarterly!FQ171/Quarterly!FQ170)^4)-1","v":4.1885322245027723E-4},{"$f":"((Quarterly!FR171/Quarterly!FR170)^4)-1","v":-2.2265739480963775E-2},"--",{"$f":"((Quarterly!FT171/Quarterly!FT170)^4)-1","v":4.1802757625694076E-2},{"$f":"((Quarterly!FU171/Quarterly!FU170)^4)-1","v":2.5229858268062344E-2},{"$f":"((Quarterly!FV171/Quarterly!FV170)^4)-1","v":0.14614719457751257},{"$f":"((Quarterly!FW171/Quarterly!FW170)^4)-1","v":-0.45064766128262956},{"$f":"((Quarterly!FX171/Quarterly!FX170)^4)-1","v":-4.4280424868007096E-2},null,null,null,null,null,{"$f":"((Quarterly!GD171/Quarterly!GD170)^4)-1","v":6.5953282943029157E-2},{"$f":"((Quarterly!GE171/Quarterly!GE170)^4)-1","v":3.9916494396271318E-2},{"$f":"((Quarterly!GF171/Quarterly!GF170)^4)-1","v":0.1242598919162663},{"$f":"((Quarterly!GG171/Quarterly!GG170)^4)-1","v":-0.13850461433220929},{"$f":"((Quarterly!GH171/Quarterly!GH170)^4)-1","v":{"$error":"#DIV/0!"}},"--",{"$f":"((Quarterly!GJ171/Quarterly!GJ170)^4)-1","v":-0.51095122724349928},{"$f":"((Quarterly!GK171/Quarterly!GK170)^4)-1","v":0.33821026606785121},"--"]
["99'Q2",{"$f":"((Quarterly!B172/Quarterly!B171)^4)-1","v":4.7351963504565608E-2},{"$f":"((Quarterly!C172/Quarterly!C171)^4)-1","v":3.3398680571889106E-2},{"$f":"((Quarterly!D172/Quarterly!D171)^4)-1","v":5.1282389218815672E-2},{"$f":"((Quarterly!E172/Quarterly!E171)^4)-1","v":6.0569270159210431E-2},{"$f":"((Quarterly!F172/Quarterly!F171)^4)-1","v":0.20554147448249815},{"$f":"((Quarterly!G172/Quarterly!G171)^4)-1","v":3.7592408761408347E-2},{"$f":"((Quarterly!H172/Quarterly!H171)^4)-1","v":4.0273540126624541E-2},{"$f":"((Quarterly!I172/Quarterly!I171)^4)-1","v":0.1093213232114103},{"$f":"((Quarterly!J172/Quarterly!J171)^4)-1","v":0.19362630697166905},{"$f":"((Quarterly!K172/Quarterly!K171)^4)-1","v":6.3766816009976246E-2},{"$f":"((Quarterly!L172-Quarterly!L171))","v":-52.241999999999997},{"$f":"((Quarterly!M172/Quarterly!M171)^4)-1","v":0.11996044913482695},{"$f":"((Quarterly!N172/Quarterly!N171)^4)-1","v":4.1371178338452053E-2},{"$f":"((Quarterly!O172/Quarterly!O171)^4)-1","v":0.41199034743011365},{"$f":"((Quarterly!P172/Quarterly!P171)^4)-1","v":2.2530643626040403E-2},{"$f":"((Quarterly!Q172/Quarterly!Q171)^4)-1","v":2.0561419352891814},null,null,null,null,null,{"$f":"((Quarterly!W172/Quarterly!W171)^4)-1","v":-9.925481539101999E-3},{"$f":"((Quarterly!X172/Quarterly!X171)^4)-1","v":-9.7441417373951289E-3},{"$f":"((Quarterly!Y172/Quarterly!Y171)^4)-1","v":3.056449273732631E-2},{"$f":"Quarterly!Z172-Quarterly!Z171","v":4.9999999999999989E-2},{"$f":"((Quarterly!AA172/Quarterly!AA171)^4)-1","v":0.12294925953459934},{"$f":"((Quarterly!AB172/Quarterly!AB171)^4)-1","v":-2.9826401712908401E-2},{"$f":"Quarterly!AC172-Quarterly!AC171","v":16.600000000000001},{"$f":"Quarterly!AD172-Quarterly!AD171","v":-1.3000000000000007},{"$f":"(Quarterly!AE172-Quarterly!AE171)*100","v":-5.0000000000000044},{"$f":"(Quarterly!AF172-Quarterly!AF171)*100","v":4.9999999999999991},{"$f":"(Quarterly!AG172-Quarterly!AG171)*100","v":-3.0000000000000027},"--","--","--","--","--",{"$f":"((Quarterly!AM172/Quarterly!AM171)^4)-1","v":4.0158329730847209E-2},{"$f":"((Quarterly!AN172/Quarterly!AN171)^4)-1","v":4.8600348176246033E-2},"--",{"$f":"(Quarterly!AP172-Quarterly!AP171)*100","v":-1.0000000000000231},{"$f":"Quarterly!AQ172-Quarterly!AQ171","v":2.5666666666666558},{"$f":"Quarterly!AR172-Quarterly!AR171","v":8.1666666666666714},{"$f":"Quarterly!AS172-Quarterly!AS171","v":1.1666666666666643},{"$f":"Quarterly!AT172-Quarterly!AT171","v":4.0999999999999943},{"$f":"Quarterly!AU172-Quarterly!AU171","v":0.3333333333333357},{"$f":"Quarterly!AV172-Quarterly!AV171","v":-0.33333333333332149},{"$f":"Quarterly!AW172-Quarterly!AW171","v":1.7333333333333343},{"$f":"Quarterly!AX172-Quarterly!AX171","v":2.6333333333333258},{"$f":"Quarterly!AY172-Quarterly!AY171","v":13.800000000000004},{"$f":"Quarterly!AZ172-Quarterly!AZ171","v":3.3333333333333286},{"$f":"Quarterly!BA172-Quarterly!BA171","v":3.3333333333331439E-2},{"$f":"Quarterly!BB172-Quarterly!BB171","v":-6.6666666666662877E-2},{"$f":"((Quarterly!BC172/Quarterly!BC171)^4)-1","v":5.5749177228323621E-2},{"$f":"((Quarterly!BD172/Quarterly!BD171)^4)-1","v":6.2997567017242684E-2},{"$f":"((Quarterly!BE172/Quarterly!BE171)^4)-1","v":-2.2815330644211818E-2},{"$f":"((Quarterly!BF172/Quarterly!BF171)^4)-1","v":1.4763045146685361E-2},{"$f":"((Quarterly!BG172/Quarterly!BG171)^4)-1","v":1.1877344341490792E-2},{"$f":"((Quarterly!BH172/Quarterly!BH171)^4)-1","v":-1.5437868440322466E-2},{"$f":"((Quarterly!BI172/Quarterly!BI171)^4)-1","v":2.8452214458745129E-3},{"$f":"((Quarterly!BJ172/Quarterly!BJ171)^4)-1","v":0.22930367930285644},{"$f":"((Quarterly!BK172/Quarterly!BK171)^4)-1","v":0.55271277854429091},null,{"$f":"((Quarterly!BM172/Quarterly!BM171)^4)-1","v":8.6009695156393562E-2},{"$f":"((Quarterly!BN172/Quarterly!BN171)^4)-1","v":8.8216894511187638E-2},null,null,null,null,null,{"$f":"((Quarterly!BT172/Quarterly!BT171)^4)-1","v":-5.7866708086329322E-4},{"$f":"Quarterly!BU172-Quarterly!BU171","v":0.15148999999999901},{"$f":"Quarterly!BV172-Quarterly!BV171","v":0.17908000000000257},{"$f":"((Quarterly!BW172/Quarterly!BW171)^4)-1","v":7.144479161390449E-2},{"$f":"((Quarterly!BX172/Quarterly!BX171)^4)-1","v":-0.28041895251174287},{"$f":"((Quarterly!BY172/Quarterly!BY171)^4)-1","v":-0.1299398127907947},"--",{"$f":"((Quarterly!CA172/Quarterly!CA171)^4)-1","v":0.1129146354773265},{"$f":"((Quarterly!CB172/Quarterly!CB171)^4)-1","v":0.2887588738667568},{"$f":"((Quarterly!CC172/Quarterly!CC171)^4)-1","v":0.17425885935240326},"--","--",null,"--","--",null,{"$f":"((Quarterly!CJ172/Quarterly!CJ171)^4)-1","v":0.24022379789593984},{"$f":"((Quarterly!CK172/Quarterly!CK171)^4)-1","v":3.6256603904203377E-2},{"$f":"((Quarterly!CL172/Quarterly!CL171)^4)-1","v":-0.60935477964517559},{"$f":"((Quarterly!CM172/Quarterly!CM171)^4)-1","v":-0.19608673710262414},{"$f":"((Quarterly!CN172/Quarterly!CN171)^4)-1","v":9.9219454188472778E-3},{"$f":"((Quarterly!CO172/Quarterly!CO171)^4)-1","v":0.12051913295235628},{"$f":"((Quarterly!CP172/Quarterly!CP171)^4)-1","v":7.7759987078536819E-2},{"$f":"((Quarterly!CQ172/Quarterly!CQ171)^4)-1","v":1.0540461405149193E-2},{"$f":"((Quarterly!CR172/Quarterly!CR171)^4)-1","v":2.9794559118138331E-2},{"$f":"Quarterly!CS172-Quarterly!CS171","v":0.33333333333334281},"--",null,null,null,null,null,{"$f":"((Quarterly!CZ172/Quarterly!CZ171)^4)-1","v":3.028538880692011E-2},{"$f":"((Quarterly!DA172/Quarterly!DA171)^4)-1","v":1.9114436121037581E-2},null,null,null,null,null,{"$f":"((Quarterly!DG172/Quarterly!DG171)^4)-1","v":2.67902121124588E-2},{"$f":"((Quarterly!DH172-Quarterly!DH171)*60)","v":0},{"$f":"Quarterly!DI172-Quarterly!DI171","v":-3.3333333333345649E-2},{"$f":"(Quarterly!DJ172-Quarterly!DJ171)*100","v":-16.666666666666696},{"$f":"(Quarterly!DK172-Quarterly!DK171)*100","v":-3.3333333333333215},{"$f":"((Quarterly!DL172/Quarterly!DL171)^4)-1","v":-1.6603786608858417E-2},null,null,null,{"$f":"((Quarterly!DP172/Quarterly!DP171)^4)-1","v":2.5589051596980328E-2},null,null,null,"--",{"$f":"Quarterly!DU172-Quarterly!DU171","v":-0.5},{"$f":"((Quarterly!DV172/Quarterly!DV171)^4)-1","v":3.1108522252972337E-2},{"$f":"((Quarterly!DW172/Quarterly!DW171)^4)-1","v":0.11860609625149632},{"$f":"((Quarterly!DX172/Quarterly!DX171)^4)-1","v":0.1074811513214875},{"$f":"((Quarterly!DY172/Quarterly!DY171)^4)-1","v":0.18578556472010876},{"$f":"((Quarterly!DZ172/Quarterly!DZ171)^4)-1","v":8.3605793135546946E-2},{"$f":"((Quarterly!EA172/Quarterly!EA171)^4)-1","v":8.4077922885764877E-2},{"$f":"((Quarterly!EB172/Quarterly!EB171)^4)-1","v":8.2432159999999977E-2},{"$f":"((Quarterly!EC172/Quarterly!EC171)^4)-1","v":0.14784279956654722},null,null,null,null,null,{"$f":"((Quarterly!EI172/Quarterly!EI171)^4)-1","v":6.5145717510855627E-2},{"$f":"((Quarterly!EJ172/Quarterly!EJ171)^4)-1","v":6.4099670801862629E-2},{"$f":"((Quarterly!EK172/Quarterly!EK171)^4)-1","v":4.9416356931095917E-2},null,null,null,null,null,{"$f":"((Quarterly!EQ172/Quarterly!EQ171)^4)-1","v":6.3446203099128962E-2},{"$f":"((Quarterly!ER172/Quarterly!ER171)^4)-1","v":1.8319207475292476E-3},{"$f":"((Quarterly!ES172/Quarterly!ES171)^4)-1","v":0},null,null,null,null,null,{"$f":"(Quarterly!EY172-Quarterly!EY171)*100","v":0},{"$f":"(Quarterly!EZ172-Quarterly!EZ171)*100","v":1.3333333333333641},{"$f":"(Quarterly!FA172-Quarterly!FA171)*100","v":51.333333333333272},{"$f":"(Quarterly!FB172-Quarterly!FB171)*100","v":33.6666666666666},-17.666666666666671,{"$f":"(Quarterly!FD172-Quarterly!FD171)*100","v":32.666666666666714},{"$f":"(Quarterly!FE172-Quarterly!FE171)*100","v":4.6666666666665968},{"$f":"(Quarterly!FF172-Quarterly!FF171)*100","v":21.66666666666659},{"$f":"(Quarterly!FG172-Quarterly!FG171)*100","v":43.333333333333357},{"$f":"(Quarterly!FH172-Quarterly!FH171)*100","v":55.999999999999957},{"$f":"(Quarterly!FI172-Quarterly!FI171)*100","v":55.666666666666572},33.999999999999986,null,null,null,null,null,{"$f":"((Quarterly!FP172/Quarterly!FP171)^4)-1","v":-9.8462442593696298E-2},{"$f":"((Quarterly!FQ172/Quarterly!FQ171)^4)-1","v":-8.0525185218283113E-5},{"$f":"((Quarterly!FR172/Quarterly!FR171)^4)-1","v":-0.1891849725569551},{"$f":"((Quarterly!FS172/Quarterly!FS171)^4)-1","v":-0.21442606236223616},{"$f":"((Quarterly!FT172/Quarterly!FT171)^4)-1","v":3.2882241477384389E-2},{"$f":"((Quarterly!FU172/Quarterly!FU171)^4)-1","v":9.6411401182354473E-2},{"$f":"((Quarterly!FV172/Quarterly!FV171)^4)-1","v":0.24584683630430026},{"$f":"((Quarterly!FW172/Quarterly!FW171)^4)-1","v":0.90794673574784124},{"$f":"((Quarterly!FX172/Quarterly!FX171)^4)-1","v":0.41636366064519792},null,null,null,null,null,{"$f":"((Quarterly!GD172/Quarterly!GD171)^4)-1","v":2.3571019519800052},{"$f":"((Quarterly!GE172/Quarterly!GE171)^4)-1","v":2.5078151694851423},{"$f":"((Quarterly!GF172/Quarterly!GF171)^4)-1","v":0.94180106697627552},{"$f":"((Quarterly!GG172/Quarterly!GG171)^4)-1","v":0.48368665613850559},{"$f":"((Quarterly!GH172/Quarterly!GH171)^4)-1","v":{"$error":"#DIV/0!"}},"--",{"$f":"((Quarterly!GJ172/Quarterly!GJ171)^4)-1","v":1.4847893332272091},{"$f":"((Quarterly!GK172/Quarterly!GK171)^4)-1","v":-0.26177195520912289},"--"]
["99'Q3",{"$f":"((Quarterly!B173/Quarterly!B172)^4)-1","v":6.6590042089037738E-2},{"$f":"((Quarterly!C173/Quarterly!C172)^4)-1","v":5.129920632685403E-2},{"$f":"((Quarterly!D173/Quarterly!D172)^4)-1","v":4.9372115351347778E-2},{"$f":"((Quarterly!E173/Quarterly!E172)^4)-1","v":4.6186165998598261E-2},{"$f":"((Quarterly!F173/Quarterly!F172)^4)-1","v":9.9521504608493627E-2},{"$f":"((Quarterly!G173/Quarterly!G172)^4)-1","v":1.868165572074787E-2},{"$f":"((Quarterly!H173/Quarterly!H172)^4)-1","v":4.5091534352625473E-2},{"$f":"((Quarterly!I173/Quarterly!I172)^4)-1","v":0.11700992112971531},{"$f":"((Quarterly!J173/Quarterly!J172)^4)-1","v":0.17908858635518521},{"$f":"((Quarterly!K173/Quarterly!K172)^4)-1","v":3.0404173866772188E-2},{"$f":"((Quarterly!L173-Quarterly!L172))","v":6.2310000000000016},{"$f":"((Quarterly!M173/Quarterly!M172)^4)-1","v":0.15755728622156284},{"$f":"((Quarterly!N173/Quarterly!N172)^4)-1","v":0.1227981289862361},{"$f":"((Quarterly!O173/Quarterly!O172)^4)-1","v":0.26918129246183886},{"$f":"((Quarterly!P173/Quarterly!P172)^4)-1","v":4.7882737404136178E-2},{"$f":"((Quarterly!Q173/Quarterly!Q172)^4)-1","v":0.68808593101577387},null,null,null,null,null,{"$f":"((Quarterly!W173/Quarterly!W172)^4)-1","v":-1.9825903016823854E-2},{"$f":"((Quarterly!X173/Quarterly!X172)^4)-1","v":-8.1449382689467997E-3},{"$f":"((Quarterly!Y173/Quarterly!Y172)^4)-1","v":9.1108056406299376E-2},{"$f":"Quarterly!Z173-Quarterly!Z172","v":4.0000000000000036E-2},{"$f":"((Quarterly!AA173/Quarterly!AA172)^4)-1","v":-1.4421832848732885E-2},{"$f":"((Quarterly!AB173/Quarterly!AB172)^4)-1","v":-0.14010356602899543},{"$f":"Quarterly!AC173-Quarterly!AC172","v":-1.8},{"$f":"Quarterly!AD173-Quarterly!AD172","v":-10},{"$f":"(Quarterly!AE173-Quarterly!AE172)*100","v":4.0000000000000036},{"$f":"(Quarterly!AF173-Quarterly!AF172)*100","v":4.0000000000000036},{"$f":"(Quarterly!AG173-Quarterly!AG172)*100","v":3.0000000000000027},"--","--","--","--","--",{"$f":"((Quarterly!AM173/Quarterly!AM172)^4)-1","v":3.6779707914771809E-2},{"$f":"((Quarterly!AN173/Quarterly!AN172)^4)-1","v":3.2420942440475331E-2},"--",{"$f":"(Quarterly!AP173-Quarterly!AP172)*100","v":-1.0000000000000009},{"$f":"Quarterly!AQ173-Quarterly!AQ172","v":1.0000000000000071},{"$f":"Quarterly!AR173-Quarterly!AR172","v":-1.8333333333333357},{"$f":"Quarterly!AS173-Quarterly!AS172","v":0},{"$f":"Quarterly!AT173-Quarterly!AT172","v":1.2000000000000028},{"$f":"Quarterly!AU173-Quarterly!AU172","v":2.3000000000000043},{"$f":"Quarterly!AV173-Quarterly!AV172","v":1.6999999999999957},{"$f":"Quarterly!AW173-Quarterly!AW172","v":-6.6666666666677088E-2},{"$f":"Quarterly!AX173-Quarterly!AX172","v":1.4666666666666686},{"$f":"Quarterly!AY173-Quarterly!AY172","v":9.6999999999999886},{"$f":"Quarterly!AZ173-Quarterly!AZ172","v":-0.3333333333333286},{"$f":"Quarterly!BA173-Quarterly!BA172","v":2.3333333333333286},{"$f":"Quarterly!BB173-Quarterly!BB172","v":1.5666666666666629},{"$f":"((Quarterly!BC173/Quarterly!BC172)^4)-1","v":0.2248991523880508},{"$f":"((Quarterly!BD173/Quarterly!BD172)^4)-1","v":2.4753022678354775E-2},{"$f":"((Quarterly!BE173/Quarterly!BE172)^4)-1","v":2.1049293423825999E-2},{"$f":"((Quarterly!BF173/Quarterly!BF172)^4)-1","v":3.5668616397938724E-2},{"$f":"((Quarterly!BG173/Quarterly!BG172)^4)-1","v":3.58417647809397E-2},{"$f":"((Quarterly!BH173/Quarterly!BH172)^4)-1","v":5.0555674287355856E-3},{"$f":"((Quarterly!BI173/Quarterly!BI172)^4)-1","v":-1.8031622912995093E-4},{"$f":"((Quarterly!BJ173/Quarterly!BJ172)^4)-1","v":-0.14914443898798235},{"$f":"((Quarterly!BK173/Quarterly!BK172)^4)-1","v":0.37736304012345734},null,{"$f":"((Quarterly!BM173/Quarterly!BM172)^4)-1","v":8.8933659958725153E-2},{"$f":"((Quarterly!BN173/Quarterly!BN172)^4)-1","v":9.5079004358012753E-2},null,null,null,null,null,{"$f":"((Quarterly!BT173/Quarterly!BT172)^4)-1","v":-1.5844523078290651E-2},{"$f":"Quarterly!BU173-Quarterly!BU172","v":0.12630000000000052},{"$f":"Quarterly!BV173-Quarterly!BV172","v":0.1276699999999984},{"$f":"((Quarterly!BW173/Quarterly!BW172)^4)-1","v":8.3901245779519851E-2},{"$f":"((Quarterly!BX173/Quarterly!BX172)^4)-1","v":0.20851142849032023},{"$f":"((Quarterly!BY173/Quarterly!BY172)^4)-1","v":-3.0403851304582452E-2},"--",{"$f":"((Quarterly!CA173/Quarterly!CA172)^4)-1","v":8.9332104125526168E-2},{"$f":"((Quarterly!CB173/Quarterly!CB172)^4)-1","v":0.13170393024013349},{"$f":"((Quarterly!CC173/Quarterly!CC172)^4)-1","v":7.7793621679127289E-2},"--","--",null,"--","--",null,{"$f":"((Quarterly!CJ173/Quarterly!CJ172)^4)-1","v":-0.15174222107473567},{"$f":"((Quarterly!CK173/Quarterly!CK172)^4)-1","v":5.5369587152259037E-2},{"$f":"((Quarterly!CL173/Quarterly!CL172)^4)-1","v":-0.32568334111074804},{"$f":"((Quarterly!CM173/Quarterly!CM172)^4)-1","v":6.5808728704338737E-2},{"$f":"((Quarterly!CN173/Quarterly!CN172)^4)-1","v":2.7099657575314628E-2},{"$f":"((Quarterly!CO173/Quarterly!CO172)^4)-1","v":0.11278828446904465},{"$f":"((Quarterly!CP173/Quarterly!CP172)^4)-1","v":9.5429981731494751E-2},{"$f":"((Quarterly!CQ173/Quarterly!CQ172)^4)-1","v":1.2645499670824956E-2},{"$f":"((Quarterly!CR173/Quarterly!CR172)^4)-1","v":0.1000915028409195},{"$f":"Quarterly!CS173-Quarterly!CS172","v":-0.33333333333334281},"--",null,null,null,null,null,{"$f":"((Quarterly!CZ173/Quarterly!CZ172)^4)-1","v":3.005782627715492E-2},{"$f":"((Quarterly!DA173/Quarterly!DA172)^4)-1","v":2.1324459815562857E-2},null,null,null,null,null,{"$f":"((Quarterly!DG173/Quarterly!DG172)^4)-1","v":2.1247598393775657E-2},{"$f":"((Quarterly!DH173-Quarterly!DH172)*60)","v":0},{"$f":"Quarterly!DI173-Quarterly!DI172","v":-6.6666666666662877E-2},{"$f":"(Quarterly!DJ173-Quarterly!DJ172)*100","v":-9.9999999999998757},{"$f":"(Quarterly!DK173-Quarterly!DK172)*100","v":-3.3333333333333215},{"$f":"((Quarterly!DL173/Quarterly!DL172)^4)-1","v":-7.3681473114568519E-3},null,null,null,{"$f":"((Quarterly!DP173/Quarterly!DP172)^4)-1","v":2.3392747241939293E-2},null,null,null,"--",{"$f":"Quarterly!DU173-Quarterly!DU172","v":-0.2333333333333325},{"$f":"((Quarterly!DV173/Quarterly!DV172)^4)-1","v":3.7681088597550039E-2},{"$f":"((Quarterly!DW173/Quarterly!DW172)^4)-1","v":0.11289485787859688},{"$f":"((Quarterly!DX173/Quarterly!DX172)^4)-1","v":0.1027969669165778},{"$f":"((Quarterly!DY173/Quarterly!DY172)^4)-1","v":0.16396838336684394},{"$f":"((Quarterly!DZ173/Quarterly!DZ172)^4)-1","v":8.3586220401593359E-2},{"$f":"((Quarterly!EA173/Quarterly!EA172)^4)-1","v":8.4720217538674314E-2},{"$f":"((Quarterly!EB173/Quarterly!EB172)^4)-1","v":8.0768479753964062E-2},{"$f":"((Quarterly!EC173/Quarterly!EC172)^4)-1","v":0.13916285641409165},null,null,null,null,null,{"$f":"((Quarterly!EI173/Quarterly!EI172)^4)-1","v":7.253893852900517E-2},{"$f":"((Quarterly!EJ173/Quarterly!EJ172)^4)-1","v":5.9782143656015529E-2},{"$f":"((Quarterly!EK173/Quarterly!EK172)^4)-1","v":5.4170940127648448E-2},null,null,null,null,null,{"$f":"((Quarterly!EQ173/Quarterly!EQ172)^4)-1","v":7.8233227532146676E-2},{"$f":"((Quarterly!ER173/Quarterly!ER172)^4)-1","v":7.3394187670281497E-3},{"$f":"((Quarterly!ES173/Quarterly!ES172)^4)-1","v":-6.7640776847263107E-3},null,null,null,null,null,{"$f":"(Quarterly!EY173-Quarterly!EY172)*100","v":35.33333333333335},{"$f":"(Quarterly!EZ173-Quarterly!EZ172)*100","v":34.666666666666671},{"$f":"(Quarterly!FA173-Quarterly!FA172)*100","v":39.333333333333357},{"$f":"(Quarterly!FB173-Quarterly!FB172)*100","v":36.000000000000028},-3.3333333333333286,{"$f":"(Quarterly!FD173-Quarterly!FD172)*100","v":58.999999999999986},{"$f":"(Quarterly!FE173-Quarterly!FE172)*100","v":19.666666666666632},{"$f":"(Quarterly!FF173-Quarterly!FF172)*100","v":28.000000000000025},{"$f":"(Quarterly!FG173-Quarterly!FG172)*100","v":34.666666666666579},{"$f":"(Quarterly!FH173-Quarterly!FH172)*100","v":33.000000000000099},{"$f":"(Quarterly!FI173-Quarterly!FI172)*100","v":34.333333333333371},6.3333333333333464,null,null,null,null,null,{"$f":"((Quarterly!FP173/Quarterly!FP172)^4)-1","v":3.7262541681739592E-2},{"$f":"((Quarterly!FQ173/Quarterly!FQ172)^4)-1","v":-5.6358551715895988E-4},{"$f":"((Quarterly!FR173/Quarterly!FR172)^4)-1","v":-3.2262144424667683E-2},{"$f":"((Quarterly!FS173/Quarterly!FS172)^4)-1","v":-2.9440930602474991E-2},{"$f":"((Quarterly!FT173/Quarterly!FT172)^4)-1","v":-1.7498771983017747E-2},{"$f":"((Quarterly!FU173/Quarterly!FU172)^4)-1","v":-3.7011491484656212E-2},{"$f":"((Quarterly!FV173/Quarterly!FV172)^4)-1","v":-3.2108093609598432E-2},{"$f":"((Quarterly!FW173/Quarterly!FW172)^4)-1","v":1.2458749381394791},{"$f":"((Quarterly!FX173/Quarterly!FX172)^4)-1","v":0.28749715217312621},null,null,null,null,null,{"$f":"((Quarterly!GD173/Quarterly!GD172)^4)-1","v":1.2951389589572035},{"$f":"((Quarterly!GE173/Quarterly!GE172)^4)-1","v":2.160493827160495},{"$f":"((Quarterly!GF173/Quarterly!GF172)^4)-1","v":0.34126646171119446},{"$f":"((Quarterly!GG173/Quarterly!GG172)^4)-1","v":0.39983233340027846},{"$f":"((Quarterly!GH173/Quarterly!GH172)^4)-1","v":{"$error":"#DIV/0!"}},"--",{"$f":"((Quarterly!GJ173/Quarterly!GJ172)^4)-1","v":0.71188439552519411},{"$f":"((Quarterly!GK173/Quarterly!GK172)^4)-1","v":-5.9561125108287927E-2},"--"]
["99'Q4",{"$f":"((Quarterly!B174/Quarterly!B173)^4)-1","v":9.1013142192603924E-2},{"$f":"((Quarterly!C174/Quarterly!C173)^4)-1","v":7.1261591970024796E-2},{"$f":"((Quarterly!D174/Quarterly!D173)^4)-1","v":5.1246044014831238E-2},{"$f":"((Quarterly!E174/Quarterly!E173)^4)-1","v":6.0050303477939382E-2},{"$f":"((Quarterly!F174/Quarterly!F173)^4)-1","v":4.8776282685776717E-2},{"$f":"((Quarterly!G174/Quarterly!G173)^4)-1","v":8.3997619885820329E-2},{"$f":"((Quarterly!H174/Quarterly!H173)^4)-1","v":5.431972062929713E-2},{"$f":"((Quarterly!I174/Quarterly!I173)^4)-1","v":1.4589764683955897E-2},{"$f":"((Quarterly!J174/Quarterly!J173)^4)-1","v":1.7239373452795359E-3},{"$f":"((Quarterly!K174/Quarterly!K173)^4)-1","v":2.9514054559848013E-2},{"$f":"((Quarterly!L174-Quarterly!L173))","v":56.007000000000005},{"$f":"((Quarterly!M174/Quarterly!M173)^4)-1","v":0.10217614989378188},{"$f":"((Quarterly!N174/Quarterly!N173)^4)-1","v":0.10480411564679915},{"$f":"((Quarterly!O174/Quarterly!O173)^4)-1","v":9.4389072080098613E-2},{"$f":"((Quarterly!P174/Quarterly!P173)^4)-1","v":6.0646657403044202E-2},{"$f":"((Quarterly!Q174/Quarterly!Q173)^4)-1","v":0.97378761175485895},null,null,null,null,null,{"$f":"((Quarterly!W174/Quarterly!W173)^4)-1","v":2.5331234816414971E-2},{"$f":"((Quarterly!X174/Quarterly!X173)^4)-1","v":2.6455785857654401E-2},{"$f":"((Quarterly!Y174/Quarterly!Y173)^4)-1","v":0.11072372230877692},{"$f":"Quarterly!Z174-Quarterly!Z173","v":6.9999999999999951E-2},{"$f":"((Quarterly!AA174/Quarterly!AA173)^4)-1","v":0.14452234280802667},{"$f":"((Quarterly!AB174/Quarterly!AB173)^4)-1","v":-1.2278680523954866E-2},{"$f":"Quarterly!AC174-Quarterly!AC173","v":10.5},{"$f":"Quarterly!AD174-Quarterly!AD173","v":-3.9},{"$f":"(Quarterly!AE174-Quarterly!AE173)*100","v":-4.0000000000000036},{"$f":"(Quarterly!AF174-Quarterly!AF173)*100","v":6.9999999999999947},{"$f":"(Quarterly!AG174-Quarterly!AG173)*100","v":2.0000000000000018},"--","--","--","--","--",{"$f":"((Quarterly!AM174/Quarterly!AM173)^4)-1","v":7.2417145310284869E-2},{"$f":"((Quarterly!AN174/Quarterly!AN173)^4)-1","v":8.4929876885998512E-2},"--",{"$f":"(Quarterly!AP174-Quarterly!AP173)*100","v":-0.66666666666665986},{"$f":"Quarterly!AQ174-Quarterly!AQ173","v":2.5666666666666771},{"$f":"Quarterly!AR174-Quarterly!AR173","v":1.6666666666666643},{"$f":"Quarterly!AS174-Quarterly!AS173","v":2.5},{"$f":"Quarterly!AT174-Quarterly!AT173","v":2.3333333333333357},{"$f":"Quarterly!AU174-Quarterly!AU173","v":1.4666666666666544},{"$f":"Quarterly!AV174-Quarterly!AV173","v":-1},{"$f":"Quarterly!AW174-Quarterly!AW173","v":3.9333333333333371},{"$f":"Quarterly!AX174-Quarterly!AX173","v":3.0333333333333314},{"$f":"Quarterly!AY174-Quarterly!AY173","v":7.4666666666666686},{"$f":"Quarterly!AZ174-Quarterly!AZ173","v":1.3999999999999915},{"$f":"Quarterly!BA174-Quarterly!BA173","v":2.8333333333333357},{"$f":"Quarterly!BB174-Quarterly!BB173","v":-0.6666666666666643},{"$f":"((Quarterly!BC174/Quarterly!BC173)^4)-1","v":3.7162803407803979E-2},{"$f":"((Quarterly!BD174/Quarterly!BD173)^4)-1","v":0.14027507441284381},{"$f":"((Quarterly!BE174/Quarterly!BE173)^4)-1","v":-4.3009374613040219E-2},{"$f":"((Quarterly!BF174/Quarterly!BF173)^4)-1","v":8.3550848240408815E-2},{"$f":"((Quarterly!BG174/Quarterly!BG173)^4)-1","v":6.6003649867774739E-2},{"$f":"((Quarterly!BH174/Quarterly!BH173)^4)-1","v":5.0656376613170018E-2},{"$f":"((Quarterly!BI174/Quarterly!BI173)^4)-1","v":1.6466253037495493E-2},{"$f":"((Quarterly!BJ174/Quarterly!BJ173)^4)-1","v":-1.8629938541711799E-2},{"$f":"((Quarterly!BK174/Quarterly!BK173)^4)-1","v":0.65727535472322351},null,{"$f":"((Quarterly!BM174/Quarterly!BM173)^4)-1","v":9.3135272335446606E-2},{"$f":"((Quarterly!BN174/Quarterly!BN173)^4)-1","v":9.0375026504822653E-2},null,null,null,null,null,{"$f":"((Quarterly!BT174/Quarterly!BT173)^4)-1","v":3.3792908393359022E-2},{"$f":"Quarterly!BU174-Quarterly!BU173","v":-9.6500000000006025E-3},{"$f":"Quarterly!BV174-Quarterly!BV173","v":-6.3649999999999096E-2},{"$f":"((Quarterly!BW174/Quarterly!BW173)^4)-1","v":6.1316218569695158E-2},{"$f":"((Quarterly!BX174/Quarterly!BX173)^4)-1","v":9.7283434968133964E-3},{"$f":"((Quarterly!BY174/Quarterly!BY173)^4)-1","v":8.4095041552492589E-2},"--",{"$f":"((Quarterly!CA174/Quarterly!CA173)^4)-1","v":4.7186815512592295E-2},{"$f":"((Quarterly!CB174/Quarterly!CB173)^4)-1","v":6.6510873685798666E-2},{"$f":"((Quarterly!CC174/Quarterly!CC173)^4)-1","v":-4.1388102349320111E-3},"--","--",null,"--","--",null,{"$f":"((Quarterly!CJ174/Quarterly!CJ173)^4)-1","v":-1.669475766823969E-2},{"$f":"((Quarterly!CK174/Quarterly!CK173)^4)-1","v":9.0907229486328012E-2},{"$f":"((Quarterly!CL174/Quarterly!CL173)^4)-1","v":9.9456113465605567E-2},{"$f":"((Quarterly!CM174/Quarterly!CM173)^4)-1","v":0.16130064043738979},{"$f":"((Quarterly!CN174/Quarterly!CN173)^4)-1","v":6.0128319381574702E-2},{"$f":"((Quarterly!CO174/Quarterly!CO173)^4)-1","v":2.8749642750955262E-2},{"$f":"((Quarterly!CP174/Quarterly!CP173)^4)-1","v":6.0861293832673802E-2},{"$f":"((Quarterly!CQ174/Quarterly!CQ173)^4)-1","v":1.2408300426951291E-2},{"$f":"((Quarterly!CR174/Quarterly!CR173)^4)-1","v":3.9273219319953867E-2},{"$f":"Quarterly!CS174-Quarterly!CS173","v":-0.63333333333332575},"--",null,null,null,null,null,{"$f":"((Quarterly!CZ174/Quarterly!CZ173)^4)-1","v":2.9833657798668423E-2},{"$f":"((Quarterly!DA174/Quarterly!DA173)^4)-1","v":2.2739284964514495E-2},null,null,null,null,null,{"$f":"((Quarterly!DG174/Quarterly!DG173)^4)-1","v":3.5858987457733971E-2},{"$f":"((Quarterly!DH174-Quarterly!DH173)*60)","v":1.9999999999998863},{"$f":"Quarterly!DI174-Quarterly!DI173","v":3.3333333333331439E-2},{"$f":"(Quarterly!DJ174-Quarterly!DJ173)*100","v":-26.666666666666838},{"$f":"(Quarterly!DK174-Quarterly!DK173)*100","v":-16.666666666666696},{"$f":"((Quarterly!DL174/Quarterly!DL173)^4)-1","v":-3.2345609745791926E-3},null,null,null,{"$f":"((Quarterly!DP174/Quarterly!DP173)^4)-1","v":2.7754689152866607E-2},null,null,null,"--",{"$f":"Quarterly!DU174-Quarterly!DU173","v":-6.666666666666643E-2},{"$f":"((Quarterly!DV174/Quarterly!DV173)^4)-1","v":2.5128455878093758E-2},{"$f":"((Quarterly!DW174/Quarterly!DW173)^4)-1","v":-1.5576062748671182E-2},{"$f":"((Quarterly!DX174/Quarterly!DX173)^4)-1","v":-3.0009927804010017E-3},{"$f":"((Quarterly!DY174/Quarterly!DY173)^4)-1","v":-7.9907190490169699E-2},{"$f":"((Quarterly!DZ174/Quarterly!DZ173)^4)-1","v":2.3279773042808483E-2},{"$f":"((Quarterly!EA174/Quarterly!EA173)^4)-1","v":2.1327353520947723E-2},{"$f":"((Quarterly!EB174/Quarterly!EB173)^4)-1","v":2.8154363122255832E-2},{"$f":"((Quarterly!EC174/Quarterly!EC173)^4)-1","v":-4.7092794172956531E-2},null,null,null,null,null,{"$f":"((Quarterly!EI174/Quarterly!EI173)^4)-1","v":6.3486155832985558E-2},{"$f":"((Quarterly!EJ174/Quarterly!EJ173)^4)-1","v":6.2018899595334576E-2},{"$f":"((Quarterly!EK174/Quarterly!EK173)^4)-1","v":6.5275844660388715E-2},null,null,null,null,null,{"$f":"((Quarterly!EQ174/Quarterly!EQ173)^4)-1","v":3.4057635484053828E-2},{"$f":"((Quarterly!ER174/Quarterly!ER173)^4)-1","v":2.5817022139235535E-2},{"$f":"((Quarterly!ES174/Quarterly!ES173)^4)-1","v":1.4635688060062657E-2},null,null,null,null,null,{"$f":"(Quarterly!EY174-Quarterly!EY173)*100","v":26.999999999999957},{"$f":"(Quarterly!EZ174-Quarterly!EZ173)*100","v":21.333333333333382},{"$f":"(Quarterly!FA174-Quarterly!FA173)*100","v":16.000000000000014},{"$f":"(Quarterly!FB174-Quarterly!FB173)*100","v":14.000000000000057},-1.9999999999999574,{"$f":"(Quarterly!FD174-Quarterly!FD173)*100","v":3.6666666666666181},{"$f":"(Quarterly!FE174-Quarterly!FE173)*100","v":39.333333333333357},{"$f":"(Quarterly!FF174-Quarterly!FF173)*100","v":44.666666666666629},{"$f":"(Quarterly!FG174-Quarterly!FG173)*100","v":31.00000000000005},{"$f":"(Quarterly!FH174-Quarterly!FH173)*100","v":29.000000000000004},{"$f":"(Quarterly!FI174-Quarterly!FI173)*100","v":25.666666666666771},-18.999999999999858,null,null,null,null,null,{"$f":"((Quarterly!FP174/Quarterly!FP173)^4)-1","v":-3.7232344076236101E-2},{"$f":"((Quarterly!FQ174/Quarterly!FQ173)^4)-1","v":4.6721725007348169E-4},{"$f":"((Quarterly!FR174/Quarterly!FR173)^4)-1","v":4.4746029063819748E-2},{"$f":"((Quarterly!FS174/Quarterly!FS173)^4)-1","v":-4.1040661941955991E-2},{"$f":"((Quarterly!FT174/Quarterly!FT173)^4)-1","v":-3.7690191074155499E-2},{"$f":"((Quarterly!FU174/Quarterly!FU173)^4)-1","v":-7.1531749457507732E-2},{"$f":"((Quarterly!FV174/Quarterly!FV173)^4)-1","v":0.34482362980510373},{"$f":"((Quarterly!FW174/Quarterly!FW173)^4)-1","v":-0.18592913632921226},{"$f":"((Quarterly!FX174/Quarterly!FX173)^4)-1","v":0.11171830119574433},null,null,null,null,null,{"$f":"((Quarterly!GD174/Quarterly!GD173)^4)-1","v":0.63071259396119217},{"$f":"((Quarterly!GE174/Quarterly!GE173)^4)-1","v":0.84271434604064699},{"$f":"((Quarterly!GF174/Quarterly!GF173)^4)-1","v":-0.13690055073907248},{"$f":"((Quarterly!GG174/Quarterly!GG173)^4)-1","v":0.35086482194909085},{"$f":"((Quarterly!GH174/Quarterly!GH173)^4)-1","v":{"$error":"#DIV/0!"}},"--",{"$f":"((Quarterly!GJ174/Quarterly!GJ173)^4)-1","v":5.8032648181924662E-2},{"$f":"((Quarterly!GK174/Quarterly!GK173)^4)-1","v":0.66972467582304485},"--"]
["00'Q1",{"$f":"((Quarterly!B175/Quarterly!B174)^4)-1","v":4.2959707188999774E-2},{"$f":"((Quarterly!C175/Quarterly!C174)^4)-1","v":1.1657540062965488E-2},{"$f":"((Quarterly!D175/Quarterly!D174)^4)-1","v":4.0553225963896322E-2},{"$f":"((Quarterly!E175/Quarterly!E174)^4)-1","v":6.2271293488931345E-2},{"$f":"((Quarterly!F175/Quarterly!F174)^4)-1","v":0.24259651089654488},{"$f":"((Quarterly!G175/Quarterly!G174)^4)-1","v":-3.4579874298486302E-2},{"$f":"((Quarterly!H175/Quarterly!H174)^4)-1","v":6.2845013823676243E-2},{"$f":"((Quarterly!I175/Quarterly!I174)^4)-1","v":0.15031735403077362},{"$f":"((Quarterly!J175/Quarterly!J174)^4)-1","v":0.18128331630836247},{"$f":"((Quarterly!K175/Quarterly!K174)^4)-1","v":2.0021912319084789E-2},{"$f":"((Quarterly!L175-Quarterly!L174))","v":-83.894000000000005},{"$f":"((Quarterly!M175/Quarterly!M174)^4)-1","v":0.17046422394157323},{"$f":"((Quarterly!N175/Quarterly!N174)^4)-1","v":6.2233086577796914E-2},{"$f":"((Quarterly!O175/Quarterly!O174)^4)-1","v":0.54247755867910441},{"$f":"((Quarterly!P175/Quarterly!P174)^4)-1","v":-3.2459374688951437E-2},{"$f":"((Quarterly!Q175/Quarterly!Q174)^4)-1","v":17.63201226482548},null,null,null,null,null,{"$f":"((Quarterly!W175/Quarterly!W174)^4)-1","v":-4.9782106236540002E-3},{"$f":"((Quarterly!X175/Quarterly!X174)^4)-1","v":0},{"$f":"((Quarterly!Y175/Quarterly!Y174)^4)-1","v":9.3360165701703801E-2},{"$f":"Quarterly!Z175-Quarterly!Z174","v":-7.999999999999996E-2},{"$f":"((Quarterly!AA175/Quarterly!AA174)^4)-1","v":-0.18516359159350704},{"$f":"((Quarterly!AB175/Quarterly!AB174)^4)-1","v":-0.19391460452335052},{"$f":"Quarterly!AC175-Quarterly!AC174","v":-1.1999999999999993},{"$f":"Quarterly!AD175-Quarterly!AD174","v":1.9},{"$f":"(Quarterly!AE175-Quarterly!AE174)*100","v":2.0000000000000018},{"$f":"(Quarterly!AF175-Quarterly!AF174)*100","v":-7.9999999999999964},{"$f":"(Quarterly!AG175-Quarterly!AG174)*100","v":-5.9999999999999947},{"$f":"((Quarterly!AH175/Quarterly!AH174)^4)-1","v":1.9230650287120588},"--","--","--","--",{"$f":"((Quarterly!AM175/Quarterly!AM174)^4)-1","v":4.0581089151855876E-2},{"$f":"((Quarterly!AN175/Quarterly!AN174)^4)-1","v":4.8593397063985577E-2},{"$f":"((Quarterly!AO175/Quarterly!AO174)^4)-1","v":6.7638263695460221E-2},{"$f":"(Quarterly!AP175-Quarterly!AP174)*100","v":0},{"$f":"Quarterly!AQ175-Quarterly!AQ174","v":-1.9000000000000057},{"$f":"Quarterly!AR175-Quarterly!AR174","v":-1.8333333333333286},{"$f":"Quarterly!AS175-Quarterly!AS174","v":0.3333333333333357},{"$f":"Quarterly!AT175-Quarterly!AT174","v":-1.3999999999999986},{"$f":"Quarterly!AU175-Quarterly!AU174","v":-1.1000000000000014},{"$f":"Quarterly!AV175-Quarterly!AV174","v":0.13333333333333286},{"$f":"Quarterly!AW175-Quarterly!AW174","v":-0.5},{"$f":"Quarterly!AX175-Quarterly!AX174","v":-3.1333333333333258},{"$f":"Quarterly!AY175-Quarterly!AY174","v":6.13333333333334},{"$f":"Quarterly!AZ175-Quarterly!AZ174","v":-1.36666666666666},{"$f":"Quarterly!BA175-Quarterly!BA174","v":-2},{"$f":"Quarterly!BB175-Quarterly!BB174","v":-0.56666666666666288},{"$f":"((Quarterly!BC175/Quarterly!BC174)^4)-1","v":-5.4722919655413427E-2},{"$f":"((Quarterly!BD175/Quarterly!BD174)^4)-1","v":8.1235940162252662E-2},{"$f":"((Quarterly!BE175/Quarterly!BE174)^4)-1","v":8.4642868142410066E-2},{"$f":"((Quarterly!BF175/Quarterly!BF174)^4)-1","v":0.15088953107645242},{"$f":"((Quarterly!BG175/Quarterly!BG174)^4)-1","v":-1.9329875656478035E-2},{"$f":"((Quarterly!BH175/Quarterly!BH174)^4)-1","v":0.10615998831500395},{"$f":"((Quarterly!BI175/Quarterly!BI174)^4)-1","v":0.17357827319416042},{"$f":"((Quarterly!BJ175/Quarterly!BJ174)^4)-1","v":-0.15402389078482659},{"$f":"((Quarterly!BK175/Quarterly!BK174)^4)-1","v":-0.44169353376531406},null,{"$f":"((Quarterly!BM175/Quarterly!BM174)^4)-1","v":9.7480267493246453E-2},{"$f":"((Quarterly!BN175/Quarterly!BN174)^4)-1","v":9.7011767834837448E-2},null,null,null,null,null,{"$f":"((Quarterly!BT175/Quarterly!BT174)^4)-1","v":0.11799752700306931},{"$f":"Quarterly!BU175-Quarterly!BU174","v":-4.8679999999999168E-2},{"$f":"Quarterly!BV175-Quarterly!BV174","v":-0.13561999999999941},{"$f":"((Quarterly!BW175/Quarterly!BW174)^4)-1","v":9.8594051808682082E-2},{"$f":"((Quarterly!BX175/Quarterly!BX174)^4)-1","v":1.0516645370663991E-2},{"$f":"((Quarterly!BY175/Quarterly!BY174)^4)-1","v":5.3810771156302284E-2},"--",{"$f":"((Quarterly!CA175/Quarterly!CA174)^4)-1","v":0.234385112780783},{"$f":"((Quarterly!CB175/Quarterly!CB174)^4)-1","v":0.41376193570247577},{"$f":"((Quarterly!CC175/Quarterly!CC174)^4)-1","v":0.26711706605316232},"--","--",null,"--","--",null,{"$f":"((Quarterly!CJ175/Quarterly!CJ174)^4)-1","v":3.2599703922581602E-2},{"$f":"((Quarterly!CK175/Quarterly!CK174)^4)-1","v":0.12964809881985051},{"$f":"((Quarterly!CL175/Quarterly!CL174)^4)-1","v":0.63322839905307027},{"$f":"((Quarterly!CM175/Quarterly!CM174)^4)-1","v":-0.15924276323675424},{"$f":"((Quarterly!CN175/Quarterly!CN174)^4)-1","v":8.1215222586310976E-2},{"$f":"((Quarterly!CO175/Quarterly!CO174)^4)-1","v":2.2071328100172538E-2},{"$f":"((Quarterly!CP175/Quarterly!CP174)^4)-1","v":6.7621766283939566E-2},{"$f":"((Quarterly!CQ175/Quarterly!CQ174)^4)-1","v":1.0428106169411366E-2},{"$f":"((Quarterly!CR175/Quarterly!CR174)^4)-1","v":5.7518237103733272E-2},{"$f":"Quarterly!CS175-Quarterly!CS174","v":4.86666666666666},"--",null,null,null,null,null,{"$f":"((Quarterly!CZ175/Quarterly!CZ174)^4)-1","v":4.0171811722761852E-2},{"$f":"((Quarterly!DA175/Quarterly!DA174)^4)-1","v":2.6416165075984654E-2},null,null,null,null,null,{"$f":"((Quarterly!DG175/Quarterly!DG174)^4)-1","v":2.0948552691971933E-2},{"$f":"((Quarterly!DH175-Quarterly!DH174)*60)","v":0},{"$f":"Quarterly!DI175-Quarterly!DI174","v":0.23333333333333428},{"$f":"(Quarterly!DJ175-Quarterly!DJ174)*100","v":0},{"$f":"(Quarterly!DK175-Quarterly!DK174)*100","v":-3.3333333333333215},{"$f":"((Quarterly!DL175/Quarterly!DL174)^4)-1","v":2.8583274074893694E-3},null,null,null,{"$f":"((Quarterly!DP175/Quarterly!DP174)^4)-1","v":2.3762187460402151E-2},null,null,null,"--",{"$f":"Quarterly!DU175-Quarterly!DU174","v":-6.6666666666668206E-2},{"$f":"((Quarterly!DV175/Quarterly!DV174)^4)-1","v":4.1774408523049811E-3},{"$f":"((Quarterly!DW175/Quarterly!DW174)^4)-1","v":-0.10008625481133171},{"$f":"((Quarterly!DX175/Quarterly!DX174)^4)-1","v":-8.7925930361265614E-2},{"$f":"((Quarterly!DY175/Quarterly!DY174)^4)-1","v":-0.17771905840505231},{"$f":"((Quarterly!DZ175/Quarterly!DZ174)^4)-1","v":-5.7713354209446899E-2},{"$f":"((Quarterly!EA175/Quarterly!EA174)^4)-1","v":-5.6578594041206909E-2},{"$f":"((Quarterly!EB175/Quarterly!EB174)^4)-1","v":-6.0530289655583713E-2},{"$f":"((Quarterly!EC175/Quarterly!EC174)^4)-1","v":-0.130875582824725},null,null,null,null,null,{"$f":"((Quarterly!EI175/Quarterly!EI174)^4)-1","v":2.812350534944863E-2},{"$f":"((Quarterly!EJ175/Quarterly!EJ174)^4)-1","v":1.9673768863578633E-2},{"$f":"((Quarterly!EK175/Quarterly!EK174)^4)-1","v":1.7451160007285749E-2},null,null,null,null,null,{"$f":"((Quarterly!EQ175/Quarterly!EQ174)^4)-1","v":5.4221553248074317E-2},{"$f":"((Quarterly!ER175/Quarterly!ER174)^4)-1","v":6.3672340184885989E-3},{"$f":"((Quarterly!ES175/Quarterly!ES174)^4)-1","v":1.1653190994719065E-2},null,null,null,null,null,{"$f":"(Quarterly!EY175-Quarterly!EY174)*100","v":31.333333333333435},{"$f":"(Quarterly!EZ175-Quarterly!EZ174)*100","v":36.999999999999922},{"$f":"(Quarterly!FA175-Quarterly!FA174)*100","v":22.666666666666657},{"$f":"(Quarterly!FB175-Quarterly!FB174)*100","v":8.9999999999998082},-13.666666666666849,{"$f":"(Quarterly!FD175-Quarterly!FD174)*100","v":42.666666666666671},{"$f":"(Quarterly!FE175-Quarterly!FE174)*100","v":47.666666666666742},{"$f":"(Quarterly!FF175-Quarterly!FF174)*100","v":58.000000000000007},{"$f":"(Quarterly!FG175-Quarterly!FG174)*100","v":58.666666666666686},{"$f":"(Quarterly!FH175-Quarterly!FH174)*100","v":52.333333333333258},{"$f":"(Quarterly!FI175-Quarterly!FI174)*100","v":33.999999999999901},-24.000000000000107,null,null,null,null,null,{"$f":"((Quarterly!FP175/Quarterly!FP174)^4)-1","v":-5.0277454559910173E-2},{"$f":"((Quarterly!FQ175/Quarterly!FQ174)^4)-1","v":1.2885611989399415E-4},{"$f":"((Quarterly!FR175/Quarterly!FR174)^4)-1","v":-2.9204758575996803E-2},{"$f":"((Quarterly!FS175/Quarterly!FS174)^4)-1","v":-0.18315674828656925},{"$f":"((Quarterly!FT175/Quarterly!FT174)^4)-1","v":3.1338266926510538E-2},{"$f":"((Quarterly!FU175/Quarterly!FU174)^4)-1","v":8.952436014969245E-2},{"$f":"((Quarterly!FV175/Quarterly!FV174)^4)-1","v":0.28764146414781977},{"$f":"((Quarterly!FW175/Quarterly!FW174)^4)-1","v":-0.38039576072853087},{"$f":"((Quarterly!FX175/Quarterly!FX174)^4)-1","v":0.32648997500040555},null,null,null,null,null,{"$f":"((Quarterly!GD175/Quarterly!GD174)^4)-1","v":0.89157176072612465},{"$f":"((Quarterly!GE175/Quarterly!GE174)^4)-1","v":0.58008137797332315},{"$f":"((Quarterly!GF175/Quarterly!GF174)^4)-1","v":0.87385720833885872},{"$f":"((Quarterly!GG175/Quarterly!GG174)^4)-1","v":0.66307458059009061},{"$f":"((Quarterly!GH175/Quarterly!GH174)^4)-1","v":{"$error":"#DIV/0!"}},"--",{"$f":"((Quarterly!GJ175/Quarterly!GJ174)^4)-1","v":-1.4182376526978513E-2},{"$f":"((Quarterly!GK175/Quarterly!GK174)^4)-1","v":2.4812716830300507E-2},"--"]
["00'Q2",{"$f":"((Quarterly!B176/Quarterly!B175)^4)-1","v":0.1023249280277061},{"$f":"((Quarterly!C176/Quarterly!C175)^4)-1","v":7.7718392469775299E-2},{"$f":"((Quarterly!D176/Quarterly!D175)^4)-1","v":4.731267416411411E-2},{"$f":"((Quarterly!E176/Quarterly!E175)^4)-1","v":3.8959887078730437E-2},{"$f":"((Quarterly!F176/Quarterly!F175)^4)-1","v":-7.2057079415502323E-2},{"$f":"((Quarterly!G176/Quarterly!G175)^4)-1","v":8.2089644235439296E-2},{"$f":"((Quarterly!H176/Quarterly!H175)^4)-1","v":4.9149609733879718E-2},{"$f":"((Quarterly!I176/Quarterly!I175)^4)-1","v":0.1326275925580529},{"$f":"((Quarterly!J176/Quarterly!J175)^4)-1","v":0.11192453417740267},{"$f":"((Quarterly!K176/Quarterly!K175)^4)-1","v":-2.0361609927358582E-2},{"$f":"((Quarterly!L176-Quarterly!L175))","v":85.097999999999999},{"$f":"((Quarterly!M176/Quarterly!M175)^4)-1","v":0.12922525784177874},{"$f":"((Quarterly!N176/Quarterly!N175)^4)-1","v":0.12197175456350884},{"$f":"((Quarterly!O176/Quarterly!O175)^4)-1","v":0.14909847951220301},{"$f":"((Quarterly!P176/Quarterly!P175)^4)-1","v":4.9633472167339265E-2},{"$f":"((Quarterly!Q176/Quarterly!Q175)^4)-1","v":-0.52347009758744401},null,null,null,null,null,{"$f":"((Quarterly!W176/Quarterly!W175)^4)-1","v":0},{"$f":"((Quarterly!X176/Quarterly!X175)^4)-1","v":9.7958452871373947E-3},{"$f":"((Quarterly!Y176/Quarterly!Y175)^4)-1","v":0.14292924169834076},{"$f":"Quarterly!Z176-Quarterly!Z175","v":7.999999999999996E-2},{"$f":"((Quarterly!AA176/Quarterly!AA175)^4)-1","v":-6.3785347466893128E-2},{"$f":"((Quarterly!AB176/Quarterly!AB175)^4)-1","v":-6.8819993956838243E-2},{"$f":"Quarterly!AC176-Quarterly!AC175","v":8.8999999999999986},{"$f":"Quarterly!AD176-Quarterly!AD175","v":7.1999999999999993},{"$f":"(Quarterly!AE176-Quarterly!AE175)*100","v":2.0000000000000018},{"$f":"(Quarterly!AF176-Quarterly!AF175)*100","v":7.9999999999999964},{"$f":"(Quarterly!AG176-Quarterly!AG175)*100","v":0},{"$f":"((Quarterly!AH176/Quarterly!AH175)^4)-1","v":0.56107249831852468},{"$f":"((Quarterly!AI176/Quarterly!AI175)^4)-1","v":0.56335992123305134},"--","--","--",{"$f":"((Quarterly!AM176/Quarterly!AM175)^4)-1","v":5.0921518284751333E-2},{"$f":"((Quarterly!AN176/Quarterly!AN175)^4)-1","v":5.3821454297270144E-2},{"$f":"((Quarterly!AO176/Quarterly!AO175)^4)-1","v":6.9913285038872619E-2},{"$f":"(Quarterly!AP176-Quarterly!AP175)*100","v":0.66666666666665986},{"$f":"Quarterly!AQ176-Quarterly!AQ175","v":-2.7000000000000028},{"$f":"Quarterly!AR176-Quarterly!AR175","v":-2.8333333333333357},{"$f":"Quarterly!AS176-Quarterly!AS175","v":0.6666666666666643},{"$f":"Quarterly!AT176-Quarterly!AT175","v":-0.23333333333333428},{"$f":"Quarterly!AU176-Quarterly!AU175","v":-0.56666666666666288},{"$f":"Quarterly!AV176-Quarterly!AV175","v":1.43333333333333},{"$f":"Quarterly!AW176-Quarterly!AW175","v":-1.7333333333333343},{"$f":"Quarterly!AX176-Quarterly!AX175","v":-6.1333333333333329},{"$f":"Quarterly!AY176-Quarterly!AY175","v":-7.6333333333333258},{"$f":"Quarterly!AZ176-Quarterly!AZ175","v":-2.8333333333333357},{"$f":"Quarterly!BA176-Quarterly!BA175","v":0.53333333333333854},{"$f":"Quarterly!BB176-Quarterly!BB175","v":1.5999999999999943},{"$f":"((Quarterly!BC176/Quarterly!BC175)^4)-1","v":0.24157095353911284},{"$f":"((Quarterly!BD176/Quarterly!BD175)^4)-1","v":5.5212880180109725E-2},{"$f":"((Quarterly!BE176/Quarterly!BE175)^4)-1","v":-9.0554237005903038E-2},{"$f":"((Quarterly!BF176/Quarterly!BF175)^4)-1","v":8.6107700763118356E-3},{"$f":"((Quarterly!BG176/Quarterly!BG175)^4)-1","v":8.2099751268956078E-2},{"$f":"((Quarterly!BH176/Quarterly!BH175)^4)-1","v":-2.2047429609927782E-2},{"$f":"((Quarterly!BI176/Quarterly!BI175)^4)-1","v":-6.7952556731304958E-2},{"$f":"((Quarterly!BJ176/Quarterly!BJ175)^4)-1","v":-5.0644220143789442E-2},{"$f":"((Quarterly!BK176/Quarterly!BK175)^4)-1","v":0.7911309656579304},null,{"$f":"((Quarterly!BM176/Quarterly!BM175)^4)-1","v":2.637136169836074E-3},{"$f":"((Quarterly!BN176/Quarterly!BN175)^4)-1","v":-1.463145423814538E-3},null,null,null,null,null,{"$f":"((Quarterly!BT176/Quarterly!BT175)^4)-1","v":0.10311569424262856},{"$f":"Quarterly!BU176-Quarterly!BU175","v":0.1639400000000002},{"$f":"Quarterly!BV176-Quarterly!BV175","v":0.13637999999999906},{"$f":"((Quarterly!BW176/Quarterly!BW175)^4)-1","v":6.9400232952607999E-2},{"$f":"((Quarterly!BX176/Quarterly!BX175)^4)-1","v":-0.16332412242593919},{"$f":"((Quarterly!BY176/Quarterly!BY175)^4)-1","v":-0.25391331441662446},{"$f":"((Quarterly!BZ176/Quarterly!BZ175)^4)-1","v":0.14625729060744486},{"$f":"((Quarterly!CA176/Quarterly!CA175)^4)-1","v":-0.19093884155789564},{"$f":"((Quarterly!CB176/Quarterly!CB175)^4)-1","v":-3.4604197226109079E-2},{"$f":"((Quarterly!CC176/Quarterly!CC175)^4)-1","v":-5.1916080788514174E-2},"--","--",null,"--","--",null,{"$f":"((Quarterly!CJ176/Quarterly!CJ175)^4)-1","v":-0.19400459531150738},{"$f":"((Quarterly!CK176/Quarterly!CK175)^4)-1","v":6.3009308735555658E-2},{"$f":"((Quarterly!CL176/Quarterly!CL175)^4)-1","v":5.3432697910549942E-2},{"$f":"((Quarterly!CM176/Quarterly!CM175)^4)-1","v":-0.12788059439152344},{"$f":"((Quarterly!CN176/Quarterly!CN175)^4)-1","v":4.2101339046466402E-2},{"$f":"((Quarterly!CO176/Quarterly!CO175)^4)-1","v":6.8932012849425739E-2},{"$f":"((Quarterly!CP176/Quarterly!CP175)^4)-1","v":0.10214469628605882},{"$f":"((Quarterly!CQ176/Quarterly!CQ175)^4)-1","v":9.9041012072442758E-3},{"$f":"((Quarterly!CR176/Quarterly!CR175)^4)-1","v":9.3846594672585937E-2},{"$f":"Quarterly!CS176-Quarterly!CS175","v":-1.36666666666666},"--",null,null,null,null,null,{"$f":"((Quarterly!CZ176/Quarterly!CZ175)^4)-1","v":3.1724690650540399E-2},{"$f":"((Quarterly!DA176/Quarterly!DA175)^4)-1","v":2.5485979243384582E-2},null,null,null,null,null,{"$f":"((Quarterly!DG176/Quarterly!DG175)^4)-1","v":1.2986842966904666E-2},{"$f":"((Quarterly!DH176-Quarterly!DH175)*60)","v":-4.000000000000199},{"$f":"Quarterly!DI176-Quarterly!DI175","v":-0.13333333333333997},{"$f":"(Quarterly!DJ176-Quarterly!DJ175)*100","v":-13.333333333333286},{"$f":"(Quarterly!DK176-Quarterly!DK175)*100","v":-9.9999999999999645},{"$f":"((Quarterly!DL176/Quarterly!DL175)^4)-1","v":1.5423767997901905E-4},null,null,null,{"$f":"((Quarterly!DP176/Quarterly!DP175)^4)-1","v":2.3942382176588284E-2},null,null,null,"--",{"$f":"Quarterly!DU176-Quarterly!DU175","v":-9.9999999999999645E-2},{"$f":"((Quarterly!DV176/Quarterly!DV175)^4)-1","v":-3.499104138254383E-3},{"$f":"((Quarterly!DW176/Quarterly!DW175)^4)-1","v":7.5137688279963477E-2},{"$f":"((Quarterly!DX176/Quarterly!DX175)^4)-1","v":6.2546696888287956E-2},{"$f":"((Quarterly!DY176/Quarterly!DY175)^4)-1","v":0.1524708283917362},{"$f":"((Quarterly!DZ176/Quarterly!DZ175)^4)-1","v":3.5845437357141519E-2},{"$f":"((Quarterly!EA176/Quarterly!EA175)^4)-1","v":3.6071657953447689E-2},{"$f":"((Quarterly!EB176/Quarterly!EB175)^4)-1","v":3.5282551827993114E-2},{"$f":"((Quarterly!EC176/Quarterly!EC175)^4)-1","v":0.10851887142482575},null,null,null,null,null,{"$f":"((Quarterly!EI176/Quarterly!EI175)^4)-1","v":7.4881015287175279E-2},{"$f":"((Quarterly!EJ176/Quarterly!EJ175)^4)-1","v":5.1662435924644035E-2},{"$f":"((Quarterly!EK176/Quarterly!EK175)^4)-1","v":6.1284124958715047E-2},null,null,null,null,null,{"$f":"((Quarterly!EQ176/Quarterly!EQ175)^4)-1","v":7.6137082658030986E-2},{"$f":"((Quarterly!ER176/Quarterly!ER175)^4)-1","v":1.3659449362751097E-2},{"$f":"((Quarterly!ES176/Quarterly!ES175)^4)-1","v":1.1619340749431828E-2},null,null,null,null,null,{"$f":"(Quarterly!EY176-Quarterly!EY175)*100","v":56.00000000000005},{"$f":"(Quarterly!EZ176-Quarterly!EZ175)*100","v":59.666666666666671},{"$f":"(Quarterly!FA176-Quarterly!FA175)*100","v":5.33333333333319},{"$f":"(Quarterly!FB176-Quarterly!FB175)*100","v":26.333333333333542},21.000000000000352,{"$f":"(Quarterly!FD176-Quarterly!FD175)*100","v":6.0000000000000497},{"$f":"(Quarterly!FE176-Quarterly!FE175)*100","v":19.333333333333336},{"$f":"(Quarterly!FF176-Quarterly!FF175)*100","v":2.9999999999999361},{"$f":"(Quarterly!FG176-Quarterly!FG175)*100","v":3.6666666666666181},{"$f":"(Quarterly!FH176-Quarterly!FH175)*100","v":-16.999999999999904},{"$f":"(Quarterly!FI176-Quarterly!FI175)*100","v":-30.333333333333279},-33.333333333333215,null,null,null,null,null,{"$f":"((Quarterly!FP176/Quarterly!FP175)^4)-1","v":7.639773676731143E-2},{"$f":"((Quarterly!FQ176/Quarterly!FQ175)^4)-1","v":-2.093578945920882E-4},{"$f":"((Quarterly!FR176/Quarterly!FR175)^4)-1","v":7.659454211595218E-2},{"$f":"((Quarterly!FS176/Quarterly!FS175)^4)-1","v":-0.19868698483386149},{"$f":"((Quarterly!FT176/Quarterly!FT175)^4)-1","v":8.7133626251731267E-2},{"$f":"((Quarterly!FU176/Quarterly!FU175)^4)-1","v":0.12326005570499965},{"$f":"((Quarterly!FV176/Quarterly!FV175)^4)-1","v":0.18394826752858062},{"$f":"((Quarterly!FW176/Quarterly!FW175)^4)-1","v":0.92820119732635198},{"$f":"((Quarterly!FX176/Quarterly!FX175)^4)-1","v":0.31899167187124733},null,null,null,null,null,{"$f":"((Quarterly!GD176/Quarterly!GD175)^4)-1","v":-3.2360562906940116E-3},{"$f":"((Quarterly!GE176/Quarterly!GE175)^4)-1","v":-2.3557248627072536E-2},{"$f":"((Quarterly!GF176/Quarterly!GF175)^4)-1","v":0.45894227687194511},{"$f":"((Quarterly!GG176/Quarterly!GG175)^4)-1","v":-3.0374027972616013E-2},{"$f":"((Quarterly!GH176/Quarterly!GH175)^4)-1","v":{"$error":"#DIV/0!"}},"--",{"$f":"((Quarterly!GJ176/Quarterly!GJ175)^4)-1","v":2.7985901436624077},{"$f":"((Quarterly!GK176/Quarterly!GK175)^4)-1","v":-0.18281184943850237},"--"]
["00'Q3",{"$f":"((Quarterly!B177/Quarterly!B176)^4)-1","v":3.1142350289069531E-2},{"$f":"((Quarterly!C177/Quarterly!C176)^4)-1","v":4.8197932579687741E-3},{"$f":"((Quarterly!D177/Quarterly!D176)^4)-1","v":1.8352988416393767E-2},{"$f":"((Quarterly!E177/Quarterly!E176)^4)-1","v":3.9461531809284134E-2},{"$f":"((Quarterly!F177/Quarterly!F176)^4)-1","v":6.9934330655954779E-2},{"$f":"((Quarterly!G177/Quarterly!G176)^4)-1","v":2.6539151474895606E-2},{"$f":"((Quarterly!H177/Quarterly!H176)^4)-1","v":3.7745105278445656E-2},{"$f":"((Quarterly!I177/Quarterly!I176)^4)-1","v":4.2850287949153021E-2},{"$f":"((Quarterly!J177/Quarterly!J176)^4)-1","v":-4.0563185581676819E-3},{"$f":"((Quarterly!K177/Quarterly!K176)^4)-1","v":-6.0768471611765684E-2},{"$f":"((Quarterly!L177-Quarterly!L176))","v":-40.010000000000005},{"$f":"((Quarterly!M177/Quarterly!M176)^4)-1","v":0.14557646099590626},{"$f":"((Quarterly!N177/Quarterly!N176)^4)-1","v":0.1017626626741337},{"$f":"((Quarterly!O177/Quarterly!O176)^4)-1","v":0.27036898833171974},{"$f":"((Quarterly!P177/Quarterly!P176)^4)-1","v":-8.2317543858185793E-3},{"$f":"((Quarterly!Q177/Quarterly!Q176)^4)-1","v":0.21597295794531934},null,null,null,null,null,{"$f":"((Quarterly!W177/Quarterly!W176)^4)-1","v":-4.9010176374089554E-2},{"$f":"((Quarterly!X177/Quarterly!X176)^4)-1","v":-4.3098774732184819E-2},{"$f":"((Quarterly!Y177/Quarterly!Y176)^4)-1","v":8.1924446758983027E-2},{"$f":"Quarterly!Z177-Quarterly!Z176","v":4.0000000000000036E-2},{"$f":"((Quarterly!AA177/Quarterly!AA176)^4)-1","v":-5.5430473018995619E-2},{"$f":"((Quarterly!AB177/Quarterly!AB176)^4)-1","v":1.107640485206729E-2},{"$f":"Quarterly!AC177-Quarterly!AC176","v":2.9000000000000021},{"$f":"Quarterly!AD177-Quarterly!AD176","v":-8.9},{"$f":"(Quarterly!AE177-Quarterly!AE176)*100","v":5.0000000000000044},{"$f":"(Quarterly!AF177-Quarterly!AF176)*100","v":4.0000000000000036},{"$f":"(Quarterly!AG177-Quarterly!AG176)*100","v":0.99999999999998979},{"$f":"((Quarterly!AH177/Quarterly!AH176)^4)-1","v":0.61884801033403969},{"$f":"((Quarterly!AI177/Quarterly!AI176)^4)-1","v":0.56400688853394954},"--","--","--",{"$f":"((Quarterly!AM177/Quarterly!AM176)^4)-1","v":-3.6795134658124118E-3},{"$f":"((Quarterly!AN177/Quarterly!AN176)^4)-1","v":-2.0662501247072917E-3},{"$f":"((Quarterly!AO177/Quarterly!AO176)^4)-1","v":5.4086188327757467E-2},{"$f":"(Quarterly!AP177-Quarterly!AP176)*100","v":1.6666666666666829},{"$f":"Quarterly!AQ177-Quarterly!AQ176","v":-2.3999999999999915},{"$f":"Quarterly!AR177-Quarterly!AR176","v":-2.5},{"$f":"Quarterly!AS177-Quarterly!AS176","v":1.3333333333333357},{"$f":"Quarterly!AT177-Quarterly!AT176","v":-1.6666666666666714},{"$f":"Quarterly!AU177-Quarterly!AU176","v":-2.5},{"$f":"Quarterly!AV177-Quarterly!AV176","v":-3.93333333333333},{"$f":"Quarterly!AW177-Quarterly!AW176","v":0.5},{"$f":"Quarterly!AX177-Quarterly!AX176","v":-2},{"$f":"Quarterly!AY177-Quarterly!AY176","v":-6.63333333333334},{"$f":"Quarterly!AZ177-Quarterly!AZ176","v":-4.3333333333333357},{"$f":"Quarterly!BA177-Quarterly!BA176","v":-2.7666666666666657},{"$f":"Quarterly!BB177-Quarterly!BB176","v":-1.2000000000000028},{"$f":"((Quarterly!BC177/Quarterly!BC176)^4)-1","v":-2.7922400297332839E-2},{"$f":"((Quarterly!BD177/Quarterly!BD176)^4)-1","v":9.9562972285094364E-3},{"$f":"((Quarterly!BE177/Quarterly!BE176)^4)-1","v":7.7067593984340599E-2},{"$f":"((Quarterly!BF177/Quarterly!BF176)^4)-1","v":8.0379632813967206E-2},{"$f":"((Quarterly!BG177/Quarterly!BG176)^4)-1","v":-1.5398463507743099E-3},{"$f":"((Quarterly!BH177/Quarterly!BH176)^4)-1","v":4.1283964626633418E-2},{"$f":"((Quarterly!BI177/Quarterly!BI176)^4)-1","v":8.2147043699729361E-2},{"$f":"((Quarterly!BJ177/Quarterly!BJ176)^4)-1","v":-0.17612212749897693},{"$f":"((Quarterly!BK177/Quarterly!BK176)^4)-1","v":0.30003232552038384},null,{"$f":"((Quarterly!BM177/Quarterly!BM176)^4)-1","v":3.5981562137454626E-2},{"$f":"((Quarterly!BN177/Quarterly!BN176)^4)-1","v":3.5064501443146989E-2},null,null,null,null,null,{"$f":"((Quarterly!BT177/Quarterly!BT176)^4)-1","v":0.10041363256634628},{"$f":"Quarterly!BU177-Quarterly!BU176","v":0.1760199999999994},{"$f":"Quarterly!BV177-Quarterly!BV176","v":0.146370000000001},{"$f":"((Quarterly!BW177/Quarterly!BW176)^4)-1","v":5.9056059254182447E-2},{"$f":"((Quarterly!BX177/Quarterly!BX176)^4)-1","v":-0.19339019388270784},{"$f":"((Quarterly!BY177/Quarterly!BY176)^4)-1","v":-4.0128626278945978E-2},{"$f":"((Quarterly!BZ177/Quarterly!BZ176)^4)-1","v":0.10461484923524322},{"$f":"((Quarterly!CA177/Quarterly!CA176)^4)-1","v":1.5399660750949451E-2},{"$f":"((Quarterly!CB177/Quarterly!CB176)^4)-1","v":0.14076382495026474},{"$f":"((Quarterly!CC177/Quarterly!CC176)^4)-1","v":0.12077027037497445},"--","--",null,"--","--",null,{"$f":"((Quarterly!CJ177/Quarterly!CJ176)^4)-1","v":0.27503132617767867},{"$f":"((Quarterly!CK177/Quarterly!CK176)^4)-1","v":7.1662247993565131E-2},{"$f":"((Quarterly!CL177/Quarterly!CL176)^4)-1","v":0.10843079829905378},{"$f":"((Quarterly!CM177/Quarterly!CM176)^4)-1","v":-0.14175943311036598},{"$f":"((Quarterly!CN177/Quarterly!CN176)^4)-1","v":4.7583579402327603E-2},{"$f":"((Quarterly!CO177/Quarterly!CO176)^4)-1","v":8.0799600864476906E-2},{"$f":"((Quarterly!CP177/Quarterly!CP176)^4)-1","v":0.16631170103065873},{"$f":"((Quarterly!CQ177/Quarterly!CQ176)^4)-1","v":1.0990356194778839E-2},{"$f":"((Quarterly!CR177/Quarterly!CR176)^4)-1","v":0.15175547606630402},{"$f":"Quarterly!CS177-Quarterly!CS176","v":-1.3000000000000114},"--",null,null,null,null,null,{"$f":"((Quarterly!CZ177/Quarterly!CZ176)^4)-1","v":3.7058687868136486E-2},{"$f":"((Quarterly!DA177/Quarterly!DA176)^4)-1","v":2.6829142731542799E-2},null,null,null,null,null,{"$f":"((Quarterly!DG177/Quarterly!DG176)^4)-1","v":3.8703389723615533E-3},{"$f":"((Quarterly!DH177-Quarterly!DH176)*60)","v":-3.9999999999997726},{"$f":"Quarterly!DI177-Quarterly!DI176","v":-0.26666666666665151},{"$f":"(Quarterly!DJ177-Quarterly!DJ176)*100","v":3.3333333333334103},{"$f":"(Quarterly!DK177-Quarterly!DK176)*100","v":6.666666666666643},{"$f":"((Quarterly!DL177/Quarterly!DL176)^4)-1","v":-2.6192112898471009E-3},null,null,null,{"$f":"((Quarterly!DP177/Quarterly!DP176)^4)-1","v":7.8494447407542189E-3},null,null,null,"--",{"$f":"Quarterly!DU177-Quarterly!DU176","v":-3.3333333333333215E-2},{"$f":"((Quarterly!DV177/Quarterly!DV176)^4)-1","v":-8.5027506072936632E-3},{"$f":"((Quarterly!DW177/Quarterly!DW176)^4)-1","v":6.3571376833273741E-2},{"$f":"((Quarterly!DX177/Quarterly!DX176)^4)-1","v":4.91003598086861E-2},{"$f":"((Quarterly!DY177/Quarterly!DY176)^4)-1","v":0.1462747628144494},{"$f":"((Quarterly!DZ177/Quarterly!DZ176)^4)-1","v":1.9583262247833799E-2},{"$f":"((Quarterly!EA177/Quarterly!EA176)^4)-1","v":1.985416061224754E-2},{"$f":"((Quarterly!EB177/Quarterly!EB176)^4)-1","v":1.8909122157832359E-2},{"$f":"((Quarterly!EC177/Quarterly!EC176)^4)-1","v":0.10162575278034458},null,null,null,null,null,{"$f":"((Quarterly!EI177/Quarterly!EI176)^4)-1","v":-4.5797648805793179E-3},{"$f":"((Quarterly!EJ177/Quarterly!EJ176)^4)-1","v":-7.5387310239038996E-4},{"$f":"((Quarterly!EK177/Quarterly!EK176)^4)-1","v":1.0622848571995247E-2},null,null,null,null,null,{"$f":"((Quarterly!EQ177/Quarterly!EQ176)^4)-1","v":5.3555137753741988E-2},{"$f":"((Quarterly!ER177/Quarterly!ER176)^4)-1","v":1.7266442115301039E-2},{"$f":"((Quarterly!ES177/Quarterly!ES176)^4)-1","v":1.1585686589235644E-2},null,null,null,null,null,{"$f":"(Quarterly!EY177-Quarterly!EY176)*100","v":25.333333333333208},{"$f":"(Quarterly!EZ177-Quarterly!EZ176)*100","v":24.666666666666615},{"$f":"(Quarterly!FA177-Quarterly!FA176)*100","v":-15.999999999999925},{"$f":"(Quarterly!FB177-Quarterly!FB176)*100","v":-27.333333333333343},-11.333333333333417,{"$f":"(Quarterly!FD177-Quarterly!FD176)*100","v":-29.000000000000092},{"$f":"(Quarterly!FE177-Quarterly!FE176)*100","v":30.333333333333279},{"$f":"(Quarterly!FF177-Quarterly!FF176)*100","v":-8.6666666666666003},{"$f":"(Quarterly!FG177-Quarterly!FG176)*100","v":-34.666666666666757},{"$f":"(Quarterly!FH177-Quarterly!FH176)*100","v":-36.000000000000121},{"$f":"(Quarterly!FI177-Quarterly!FI176)*100","v":-28.333333333333321},-19.666666666666721,null,null,null,null,null,{"$f":"((Quarterly!FP177/Quarterly!FP176)^4)-1","v":4.8719882806627091E-3},{"$f":"((Quarterly!FQ177/Quarterly!FQ176)^4)-1","v":4.6717209058511067E-4},{"$f":"((Quarterly!FR177/Quarterly!FR176)^4)-1","v":-9.1457734877783303E-2},{"$f":"((Quarterly!FS177/Quarterly!FS176)^4)-1","v":-0.12076585693624309},{"$f":"((Quarterly!FT177/Quarterly!FT176)^4)-1","v":4.6611041674061049E-2},{"$f":"((Quarterly!FU177/Quarterly!FU176)^4)-1","v":7.4578084056068361E-2},{"$f":"((Quarterly!FV177/Quarterly!FV176)^4)-1","v":-0.17614025806077471},{"$f":"((Quarterly!FW177/Quarterly!FW176)^4)-1","v":1.4527806720810914},{"$f":"((Quarterly!FX177/Quarterly!FX176)^4)-1","v":0.22061571297981364},null,null,null,null,null,{"$f":"((Quarterly!GD177/Quarterly!GD176)^4)-1","v":0.45702242053997111},{"$f":"((Quarterly!GE177/Quarterly!GE176)^4)-1","v":0.72451404042513134},{"$f":"((Quarterly!GF177/Quarterly!GF176)^4)-1","v":1.382490305586348E-2},{"$f":"((Quarterly!GG177/Quarterly!GG176)^4)-1","v":0.28296198009196849},{"$f":"((Quarterly!GH177/Quarterly!GH176)^4)-1","v":{"$error":"#DIV/0!"}},"--",{"$f":"((Quarterly!GJ177/Quarterly!GJ176)^4)-1","v":1.3729642088769767},{"$f":"((Quarterly!GK177/Quarterly!GK176)^4)-1","v":-5.7461157458316814E-2},"--"]
["00'Q4",{"$f":"((Quarterly!B178/Quarterly!B177)^4)-1","v":4.5093793047089159E-2},{"$f":"((Quarterly!C178/Quarterly!C177)^4)-1","v":2.2930572926055159E-2},{"$f":"((Quarterly!D178/Quarterly!D177)^4)-1","v":2.4302644808544382E-2},{"$f":"((Quarterly!E178/Quarterly!E177)^4)-1","v":3.6104630104408342E-2},{"$f":"((Quarterly!F178/Quarterly!F177)^4)-1","v":2.7834600651571062E-2},{"$f":"((Quarterly!G178/Quarterly!G177)^4)-1","v":3.9044474758380909E-2},{"$f":"((Quarterly!H178/Quarterly!H177)^4)-1","v":3.6491744996259623E-2},{"$f":"((Quarterly!I178/Quarterly!I177)^4)-1","v":1.0608428468106945E-2},{"$f":"((Quarterly!J178/Quarterly!J177)^4)-1","v":8.8443879852522223E-3},{"$f":"((Quarterly!K178/Quarterly!K177)^4)-1","v":4.1268591571037572E-3},{"$f":"((Quarterly!L178-Quarterly!L177))","v":-4.8369999999999962},{"$f":"((Quarterly!M178/Quarterly!M177)^4)-1","v":-2.172436706151859E-3},{"$f":"((Quarterly!N178/Quarterly!N177)^4)-1","v":-3.4409141249309605E-2},{"$f":"((Quarterly!O178/Quarterly!O177)^4)-1","v":8.5588424559861709E-2},{"$f":"((Quarterly!P178/Quarterly!P177)^4)-1","v":1.2446842212426423E-2},{"$f":"((Quarterly!Q178/Quarterly!Q177)^4)-1","v":-9.7193430362873423E-2},null,null,null,null,null,{"$f":"((Quarterly!W178/Quarterly!W177)^4)-1","v":-6.8938987611090186E-2},{"$f":"((Quarterly!X178/Quarterly!X177)^4)-1","v":-4.673775014491155E-2},{"$f":"((Quarterly!Y178/Quarterly!Y177)^4)-1","v":3.8889487565596736E-2},{"$f":"Quarterly!Z178-Quarterly!Z177","v":0.16000000000000003},{"$f":"((Quarterly!AA178/Quarterly!AA177)^4)-1","v":-0.16864878568839126},{"$f":"((Quarterly!AB178/Quarterly!AB177)^4)-1","v":-0.18733700581152002},{"$f":"Quarterly!AC178-Quarterly!AC177","v":-4.7000000000000028},{"$f":"Quarterly!AD178-Quarterly!AD177","v":-9.2000000000000011},{"$f":"(Quarterly!AE178-Quarterly!AE177)*100","v":9.0000000000000071},{"$f":"(Quarterly!AF178-Quarterly!AF177)*100","v":16.000000000000004},{"$f":"(Quarterly!AG178-Quarterly!AG177)*100","v":9.0000000000000071},{"$f":"((Quarterly!AH178/Quarterly!AH177)^4)-1","v":0.25794833564627995},{"$f":"((Quarterly!AI178/Quarterly!AI177)^4)-1","v":0.22156606914155264},"--","--","--",{"$f":"((Quarterly!AM178/Quarterly!AM177)^4)-1","v":-8.4758887350899759E-3},{"$f":"((Quarterly!AN178/Quarterly!AN177)^4)-1","v":-1.9382356707632886E-2},{"$f":"((Quarterly!AO178/Quarterly!AO177)^4)-1","v":4.6844414829932735E-2},{"$f":"(Quarterly!AP178-Quarterly!AP177)*100","v":0.99999999999997868},{"$f":"Quarterly!AQ178-Quarterly!AQ177","v":-3.6666666666666785},{"$f":"Quarterly!AR178-Quarterly!AR177","v":-7.3333333333333357},{"$f":"Quarterly!AS178-Quarterly!AS177","v":1.5},{"$f":"Quarterly!AT178-Quarterly!AT177","v":-4.6333333333333329},{"$f":"Quarterly!AU178-Quarterly!AU177","v":-2.1333333333333258},{"$f":"Quarterly!AV178-Quarterly!AV177","v":1.63333333333334},{"$f":"Quarterly!AW178-Quarterly!AW177","v":-4.1333333333333329},{"$f":"Quarterly!AX178-Quarterly!AX177","v":-3.7666666666666728},{"$f":"Quarterly!AY178-Quarterly!AY177","v":-1.43333333333333},{"$f":"Quarterly!AZ178-Quarterly!AZ177","v":-4.1999999999999957},{"$f":"Quarterly!BA178-Quarterly!BA177","v":-0.93333333333333712},{"$f":"Quarterly!BB178-Quarterly!BB177","v":-0.59999999999999432},{"$f":"((Quarterly!BC178/Quarterly!BC177)^4)-1","v":-0.12435803551625157},{"$f":"((Quarterly!BD178/Quarterly!BD177)^4)-1","v":2.4533961619007671E-2},{"$f":"((Quarterly!BE178/Quarterly!BE177)^4)-1","v":-8.6471934640364179E-3},{"$f":"((Quarterly!BF178/Quarterly!BF177)^4)-1","v":2.2391470615333642E-2},{"$f":"((Quarterly!BG178/Quarterly!BG177)^4)-1","v":4.0527171779699778E-2},{"$f":"((Quarterly!BH178/Quarterly!BH177)^4)-1","v":-5.080940466870465E-3},{"$f":"((Quarterly!BI178/Quarterly!BI177)^4)-1","v":-1.7490263645524751E-2},{"$f":"((Quarterly!BJ178/Quarterly!BJ177)^4)-1","v":-0.48466006077166135},{"$f":"((Quarterly!BK178/Quarterly!BK177)^4)-1","v":1.4725561753120568},null,{"$f":"((Quarterly!BM178/Quarterly!BM177)^4)-1","v":2.7136007940938178E-2},{"$f":"((Quarterly!BN178/Quarterly!BN177)^4)-1","v":2.9783298197120445E-2},null,null,null,null,null,{"$f":"((Quarterly!BT178/Quarterly!BT177)^4)-1","v":9.6124370044608387E-2},{"$f":"Quarterly!BU178-Quarterly!BU177","v":0.22958000000000034},{"$f":"Quarterly!BV178-Quarterly!BV177","v":0.25398999999999816},{"$f":"((Quarterly!BW178/Quarterly!BW177)^4)-1","v":6.0093897050070622E-2},{"$f":"((Quarterly!BX178/Quarterly!BX177)^4)-1","v":0.11168794047755681},{"$f":"((Quarterly!BY178/Quarterly!BY177)^4)-1","v":6.1399423408135423E-2},{"$f":"((Quarterly!BZ178/Quarterly!BZ177)^4)-1","v":0.10607756550555902},{"$f":"((Quarterly!CA178/Quarterly!CA177)^4)-1","v":-0.20951885888905053},{"$f":"((Quarterly!CB178/Quarterly!CB177)^4)-1","v":-6.5541956975140314E-2},{"$f":"((Quarterly!CC178/Quarterly!CC177)^4)-1","v":-7.4008609001123937E-2},"--","--",null,"--","--",null,{"$f":"((Quarterly!CJ178/Quarterly!CJ177)^4)-1","v":0.24489551724865066},{"$f":"((Quarterly!CK178/Quarterly!CK177)^4)-1","v":3.6147811180003542E-2},{"$f":"((Quarterly!CL178/Quarterly!CL177)^4)-1","v":-0.40930788942767937},{"$f":"((Quarterly!CM178/Quarterly!CM177)^4)-1","v":0.12301182830995461},{"$f":"((Quarterly!CN178/Quarterly!CN177)^4)-1","v":1.3566421609752188E-2},{"$f":"((Quarterly!CO178/Quarterly!CO177)^4)-1","v":9.4362571436312104E-2},{"$f":"((Quarterly!CP178/Quarterly!CP177)^4)-1","v":0.12872163971541761},{"$f":"((Quarterly!CQ178/Quarterly!CQ177)^4)-1","v":1.1274166264142016E-2},{"$f":"((Quarterly!CR178/Quarterly!CR177)^4)-1","v":0.12705610371764897},{"$f":"Quarterly!CS178-Quarterly!CS177","v":-3.5333333333333314},"--",null,null,null,null,null,{"$f":"((Quarterly!CZ178/Quarterly!CZ177)^4)-1","v":2.882277347125406E-2},{"$f":"((Quarterly!DA178/Quarterly!DA177)^4)-1","v":2.4409418301237995E-2},null,null,null,null,null,{"$f":"((Quarterly!DG178/Quarterly!DG177)^4)-1","v":-2.571519081238538E-3},{"$f":"((Quarterly!DH178-Quarterly!DH177)*60)","v":-6.0000000000000853},{"$f":"Quarterly!DI178-Quarterly!DI177","v":0},{"$f":"(Quarterly!DJ178-Quarterly!DJ177)*100","v":-10.000000000000142},{"$f":"(Quarterly!DK178-Quarterly!DK177)*100","v":-10.000000000000009},{"$f":"((Quarterly!DL178/Quarterly!DL177)^4)-1","v":-1.8314569011297244E-2},null,null,null,{"$f":"((Quarterly!DP178/Quarterly!DP177)^4)-1","v":8.2193737779712173E-3},null,null,null,"--",{"$f":"Quarterly!DU178-Quarterly!DU177","v":0.23333333333333339},{"$f":"((Quarterly!DV178/Quarterly!DV177)^4)-1","v":0},{"$f":"((Quarterly!DW178/Quarterly!DW177)^4)-1","v":-3.0322530890088628E-2},{"$f":"((Quarterly!DX178/Quarterly!DX177)^4)-1","v":-2.0923426714439919E-2},{"$f":"((Quarterly!DY178/Quarterly!DY177)^4)-1","v":-6.5437053884858654E-2},{"$f":"((Quarterly!DZ178/Quarterly!DZ177)^4)-1","v":-6.0322554581331289E-3},{"$f":"((Quarterly!EA178/Quarterly!EA177)^4)-1","v":-8.4471726698484018E-3},{"$f":"((Quarterly!EB178/Quarterly!EB177)^4)-1","v":0},{"$f":"((Quarterly!EC178/Quarterly!EC177)^4)-1","v":-5.3988660517625298E-2},null,null,null,null,null,{"$f":"((Quarterly!EI178/Quarterly!EI177)^4)-1","v":1.2332106604444171E-2},{"$f":"((Quarterly!EJ178/Quarterly!EJ177)^4)-1","v":2.6098565117165462E-2},{"$f":"((Quarterly!EK178/Quarterly!EK177)^4)-1","v":2.9354869371894798E-2},null,null,null,null,null,{"$f":"((Quarterly!EQ178/Quarterly!EQ177)^4)-1","v":5.3884114398096594E-2},{"$f":"((Quarterly!ER178/Quarterly!ER177)^4)-1","v":1.0832670349128604E-2},{"$f":"((Quarterly!ES178/Quarterly!ES177)^4)-1","v":6.72670302710765E-3},null,null,null,null,null,{"$f":"(Quarterly!EY178-Quarterly!EY177)*100","v":0},{"$f":"(Quarterly!EZ178-Quarterly!EZ177)*100","v":-4.6666666666665968},{"$f":"(Quarterly!FA178-Quarterly!FA177)*100","v":-20.333333333333314},{"$f":"(Quarterly!FB178-Quarterly!FB177)*100","v":-10.666666666666735},9.666666666666579,{"$f":"(Quarterly!FD178-Quarterly!FD177)*100","v":-38.666666666666586},{"$f":"(Quarterly!FE178-Quarterly!FE177)*100","v":0},{"$f":"(Quarterly!FF178-Quarterly!FF177)*100","v":-23.000000000000043},{"$f":"(Quarterly!FG178-Quarterly!FG177)*100","v":-50.333333333333208},{"$f":"(Quarterly!FH178-Quarterly!FH177)*100","v":-50.666666666666593},{"$f":"(Quarterly!FI178-Quarterly!FI177)*100","v":-32.666666666666622},-9.666666666666579,null,null,null,null,null,{"$f":"((Quarterly!FP178/Quarterly!FP177)^4)-1","v":0.12216089901043281},{"$f":"((Quarterly!FQ178/Quarterly!FQ177)^4)-1","v":-7.2451369075587913E-4},{"$f":"((Quarterly!FR178/Quarterly!FR177)^4)-1","v":6.7116072415803529E-2},{"$f":"((Quarterly!FS178/Quarterly!FS177)^4)-1","v":-0.14816669557225404},{"$f":"((Quarterly!FT178/Quarterly!FT177)^4)-1","v":0.11455589801641564},{"$f":"((Quarterly!FU178/Quarterly!FU177)^4)-1","v":0.13317351297490609},{"$f":"((Quarterly!FV178/Quarterly!FV177)^4)-1","v":0.26354697124985171},{"$f":"((Quarterly!FW178/Quarterly!FW177)^4)-1","v":-0.25453646299503363},{"$f":"((Quarterly!FX178/Quarterly!FX177)^4)-1","v":-7.9890122031162414E-2},null,null,null,null,null,{"$f":"((Quarterly!GD178/Quarterly!GD177)^4)-1","v":4.5883361848924276E-2},{"$f":"((Quarterly!GE178/Quarterly!GE177)^4)-1","v":-0.11824861429013211},{"$f":"((Quarterly!GF178/Quarterly!GF177)^4)-1","v":-0.28070457832936702},{"$f":"((Quarterly!GG178/Quarterly!GG177)^4)-1","v":0.27700891932656635},{"$f":"((Quarterly!GH178/Quarterly!GH177)^4)-1","v":{"$error":"#DIV/0!"}},"--",{"$f":"((Quarterly!GJ178/Quarterly!GJ177)^4)-1","v":3.219120978837875},{"$f":"((Quarterly!GK178/Quarterly!GK177)^4)-1","v":0.45544018724055824},"--"]
["01'Q1",{"$f":"((Quarterly!B179/Quarterly!B178)^4)-1","v":1.3758359467225478E-2},{"$f":"((Quarterly!C179/Quarterly!C178)^4)-1","v":-1.1325986322701764E-2},{"$f":"((Quarterly!D179/Quarterly!D178)^4)-1","v":2.1119884941294131E-2},{"$f":"((Quarterly!E179/Quarterly!E178)^4)-1","v":1.6990329003960136E-2},{"$f":"((Quarterly!F179/Quarterly!F178)^4)-1","v":6.7518937331585871E-2},{"$f":"((Quarterly!G179/Quarterly!G178)^4)-1","v":-2.3672755385011457E-2},{"$f":"((Quarterly!H179/Quarterly!H178)^4)-1","v":2.1080610978189807E-2},{"$f":"((Quarterly!I179/Quarterly!I178)^4)-1","v":-3.1880538973257821E-2},{"$f":"((Quarterly!J179/Quarterly!J178)^4)-1","v":7.0760180300739606E-3},{"$f":"((Quarterly!K179/Quarterly!K178)^4)-1","v":1.7296882696316684E-2},{"$f":"((Quarterly!L179-Quarterly!L178))","v":-101.759},{"$f":"((Quarterly!M179/Quarterly!M178)^4)-1","v":-6.4953164139567865E-2},{"$f":"((Quarterly!N179/Quarterly!N178)^4)-1","v":-6.0765509506561677E-2},{"$f":"((Quarterly!O179/Quarterly!O178)^4)-1","v":-7.5483769543409296E-2},{"$f":"((Quarterly!P179/Quarterly!P178)^4)-1","v":6.0814387081872701E-2},{"$f":"((Quarterly!Q179/Quarterly!Q178)^4)-1","v":-0.43362392440522624},null,null,null,null,null,{"$f":"((Quarterly!W179/Quarterly!W178)^4)-1","v":-9.4282524621501107E-2},{"$f":"((Quarterly!X179/Quarterly!X178)^4)-1","v":-8.6693715901658752E-2},{"$f":"((Quarterly!Y179/Quarterly!Y178)^4)-1","v":4.6407405413110281E-2},{"$f":"Quarterly!Z179-Quarterly!Z178","v":8.9999999999999969E-2},{"$f":"((Quarterly!AA179/Quarterly!AA178)^4)-1","v":0.33747357624494612},{"$f":"((Quarterly!AB179/Quarterly!AB178)^4)-1","v":0.2123084737933405},{"$f":"Quarterly!AC179-Quarterly!AC178","v":-1.5999999999999979},{"$f":"Quarterly!AD179-Quarterly!AD178","v":-16.899999999999999},{"$f":"(Quarterly!AE179-Quarterly!AE178)*100","v":7.9999999999999849},{"$f":"(Quarterly!AF179-Quarterly!AF178)*100","v":8.9999999999999964},{"$f":"(Quarterly!AG179-Quarterly!AG178)*100","v":4.9999999999999929},{"$f":"((Quarterly!AH179/Quarterly!AH178)^4)-1","v":0.25515605445721756},{"$f":"((Quarterly!AI179/Quarterly!AI178)^4)-1","v":0.23064672273330133},"--","--","--",{"$f":"((Quarterly!AM179/Quarterly!AM178)^4)-1","v":-5.1821572754462863E-2},{"$f":"((Quarterly!AN179/Quarterly!AN178)^4)-1","v":-5.5522217912476024E-2},{"$f":"((Quarterly!AO179/Quarterly!AO178)^4)-1","v":-8.0307881830812278E-3},{"$f":"(Quarterly!AP179-Quarterly!AP178)*100","v":1.0000000000000231},{"$f":"Quarterly!AQ179-Quarterly!AQ178","v":-4.5333333333333314},{"$f":"Quarterly!AR179-Quarterly!AR178","v":-2},{"$f":"Quarterly!AS179-Quarterly!AS178","v":2.5},{"$f":"Quarterly!AT179-Quarterly!AT178","v":-6},{"$f":"Quarterly!AU179-Quarterly!AU178","v":-1},{"$f":"Quarterly!AV179-Quarterly!AV178","v":-3.8000000000000114},{"$f":"Quarterly!AW179-Quarterly!AW178","v":0.19999999999999574},{"$f":"Quarterly!AX179-Quarterly!AX178","v":-6.6000000000000014},{"$f":"Quarterly!AY179-Quarterly!AY178","v":-1.8333333333333428},{"$f":"Quarterly!AZ179-Quarterly!AZ178","v":-7.3000000000000043},{"$f":"Quarterly!BA179-Quarterly!BA178","v":-2.1666666666666714},{"$f":"Quarterly!BB179-Quarterly!BB178","v":-7.2666666666666657},{"$f":"((Quarterly!BC179/Quarterly!BC178)^4)-1","v":-0.17850800202826478},{"$f":"((Quarterly!BD179/Quarterly!BD178)^4)-1","v":-3.5525554963106831E-2},{"$f":"((Quarterly!BE179/Quarterly!BE178)^4)-1","v":6.7397162875871386E-2},{"$f":"((Quarterly!BF179/Quarterly!BF178)^4)-1","v":9.5512951343944552E-2},{"$f":"((Quarterly!BG179/Quarterly!BG178)^4)-1","v":-1.6244111982783194E-2},{"$f":"((Quarterly!BH179/Quarterly!BH178)^4)-1","v":5.4244117631088384E-2},{"$f":"((Quarterly!BI179/Quarterly!BI178)^4)-1","v":0.11358470801292508},{"$f":"((Quarterly!BJ179/Quarterly!BJ178)^4)-1","v":0.33398352367235229},{"$f":"((Quarterly!BK179/Quarterly!BK178)^4)-1","v":0.53965112421717376},null,{"$f":"((Quarterly!BM179/Quarterly!BM178)^4)-1","v":2.7066435726500471E-2},{"$f":"((Quarterly!BN179/Quarterly!BN178)^4)-1","v":1.9915814401619159E-2},null,null,null,null,null,{"$f":"((Quarterly!BT179/Quarterly!BT178)^4)-1","v":5.3286248438967343E-2},{"$f":"Quarterly!BU179-Quarterly!BU178","v":0.10562999999999967},{"$f":"Quarterly!BV179-Quarterly!BV178","v":0.10009000000000157},{"$f":"((Quarterly!BW179/Quarterly!BW178)^4)-1","v":7.100103988671469E-2},{"$f":"((Quarterly!BX179/Quarterly!BX178)^4)-1","v":0.16764537372391097},{"$f":"((Quarterly!BY179/Quarterly!BY178)^4)-1","v":0.25841621058079212},{"$f":"((Quarterly!BZ179/Quarterly!BZ178)^4)-1","v":0.13150298498639756},{"$f":"((Quarterly!CA179/Quarterly!CA178)^4)-1","v":0.20468782715203848},{"$f":"((Quarterly!CB179/Quarterly!CB178)^4)-1","v":0.17422003291262178},{"$f":"((Quarterly!CC179/Quarterly!CC178)^4)-1","v":0.22959004422109586},"--","--",null,"--","--",null,{"$f":"((Quarterly!CJ179/Quarterly!CJ178)^4)-1","v":6.1453311271971289E-2},{"$f":"((Quarterly!CK179/Quarterly!CK178)^4)-1","v":7.3959826730752853E-2},{"$f":"((Quarterly!CL179/Quarterly!CL178)^4)-1","v":0.69712971261400858},{"$f":"((Quarterly!CM179/Quarterly!CM178)^4)-1","v":0.11343150945575786},{"$f":"((Quarterly!CN179/Quarterly!CN178)^4)-1","v":3.4544150563903475E-2},{"$f":"((Quarterly!CO179/Quarterly!CO178)^4)-1","v":0.17254837199757889},{"$f":"((Quarterly!CP179/Quarterly!CP178)^4)-1","v":0.11144662200002653},{"$f":"((Quarterly!CQ179/Quarterly!CQ178)^4)-1","v":9.7111818927970717E-3},{"$f":"((Quarterly!CR179/Quarterly!CR178)^4)-1","v":0.12978482796056001},{"$f":"Quarterly!CS179-Quarterly!CS178","v":-11.666666666666657},"--",null,null,null,null,null,{"$f":"((Quarterly!CZ179/Quarterly!CZ178)^4)-1","v":3.8815393015597E-2},{"$f":"((Quarterly!DA179/Quarterly!DA178)^4)-1","v":2.9463960477022155E-2},null,null,null,null,null,{"$f":"((Quarterly!DG179/Quarterly!DG178)^4)-1","v":-7.7046190263146963E-3},{"$f":"((Quarterly!DH179-Quarterly!DH178)*60)","v":-3.9999999999997726},{"$f":"Quarterly!DI179-Quarterly!DI178","v":0.26666666666667993},{"$f":"(Quarterly!DJ179-Quarterly!DJ178)*100","v":40.000000000000036},{"$f":"(Quarterly!DK179-Quarterly!DK178)*100","v":33.33333333333335},{"$f":"((Quarterly!DL179/Quarterly!DL178)^4)-1","v":-4.0456594862753437E-2},null,null,null,{"$f":"((Quarterly!DP179/Quarterly!DP178)^4)-1","v":5.5839602289906587E-3},null,null,null,"--",{"$f":"Quarterly!DU179-Quarterly!DU178","v":0.10000000000000053},{"$f":"((Quarterly!DV179/Quarterly!DV178)^4)-1","v":1.0105985791890593E-2},{"$f":"((Quarterly!DW179/Quarterly!DW178)^4)-1","v":-9.8744444208287097E-2},{"$f":"((Quarterly!DX179/Quarterly!DX178)^4)-1","v":-8.9609875542654427E-2},{"$f":"((Quarterly!DY179/Quarterly!DY178)^4)-1","v":-0.15789539274047482},{"$f":"((Quarterly!DZ179/Quarterly!DZ178)^4)-1","v":-6.6769094486257896E-2},{"$f":"((Quarterly!EA179/Quarterly!EA178)^4)-1","v":-6.5072270119630682E-2},{"$f":"((Quarterly!EB179/Quarterly!EB178)^4)-1","v":-7.0975198668958184E-2},{"$f":"((Quarterly!EC179/Quarterly!EC178)^4)-1","v":-0.12192739001144359},null,null,null,null,null,{"$f":"((Quarterly!EI179/Quarterly!EI178)^4)-1","v":-2.0024063580291962E-2},{"$f":"((Quarterly!EJ179/Quarterly!EJ178)^4)-1","v":2.2012326885034739E-4},{"$f":"((Quarterly!EK179/Quarterly!EK178)^4)-1","v":-1.1158815602230199E-4},null,null,null,null,null,{"$f":"((Quarterly!EQ179/Quarterly!EQ178)^4)-1","v":6.7559584360144642E-2},{"$f":"((Quarterly!ER179/Quarterly!ER178)^4)-1","v":1.8963237884092043E-2},{"$f":"((Quarterly!ES179/Quarterly!ES178)^4)-1","v":6.7154099246291565E-3},null,null,null,null,null,{"$f":"(Quarterly!EY179-Quarterly!EY178)*100","v":-87.666666666666686},{"$f":"(Quarterly!EZ179-Quarterly!EZ178)*100","v":-87.999999999999986},{"$f":"(Quarterly!FA179-Quarterly!FA178)*100","v":-32.666666666666622},{"$f":"(Quarterly!FB179-Quarterly!FB178)*100","v":-33.3333333333333},-0.66666666666667851,{"$f":"(Quarterly!FD179-Quarterly!FD178)*100","v":-63.333333333333286},{"$f":"(Quarterly!FE179-Quarterly!FE178)*100","v":-119.99999999999993},{"$f":"(Quarterly!FF179-Quarterly!FF178)*100","v":-130.33333333333329},{"$f":"(Quarterly!FG179-Quarterly!FG178)*100","v":-112.66666666666669},{"$f":"(Quarterly!FH179-Quarterly!FH178)*100","v":-75.3333333333333},{"$f":"(Quarterly!FI179-Quarterly!FI178)*100","v":-51.66666666666675},78.666666666666544,null,null,null,null,null,{"$f":"((Quarterly!FP179/Quarterly!FP178)^4)-1","v":5.6926891150179681E-3},{"$f":"((Quarterly!FQ179/Quarterly!FQ178)^4)-1","v":-1.2885456329758682E-4},{"$f":"((Quarterly!FR179/Quarterly!FR178)^4)-1","v":8.1829632934170782E-2},{"$f":"((Quarterly!FS179/Quarterly!FS178)^4)-1","v":0.26987875699090025},{"$f":"((Quarterly!FT179/Quarterly!FT178)^4)-1","v":2.193300238084106E-2},{"$f":"((Quarterly!FU179/Quarterly!FU178)^4)-1","v":-1.5768120336606573E-2},{"$f":"((Quarterly!FV179/Quarterly!FV178)^4)-1","v":-5.1332949281136964E-2},{"$f":"((Quarterly!FW179/Quarterly!FW178)^4)-1","v":-0.5461654722156869},{"$f":"((Quarterly!FX179/Quarterly!FX178)^4)-1","v":-0.19252844101958722},null,null,null,null,null,{"$f":"((Quarterly!GD179/Quarterly!GD178)^4)-1","v":-0.34134317630532718},{"$f":"((Quarterly!GE179/Quarterly!GE178)^4)-1","v":-0.42585777627178312},{"$f":"((Quarterly!GF179/Quarterly!GF178)^4)-1","v":0.1170160861584153},{"$f":"((Quarterly!GG179/Quarterly!GG178)^4)-1","v":-0.29781138458912693},{"$f":"((Quarterly!GH179/Quarterly!GH178)^4)-1","v":{"$error":"#DIV/0!"}},"--",{"$f":"((Quarterly!GJ179/Quarterly!GJ178)^4)-1","v":-0.14527320796661658},{"$f":"((Quarterly!GK179/Quarterly!GK178)^4)-1","v":0.18456560008000777},"--"]
["01'Q2",{"$f":"((Quarterly!B180/Quarterly!B179)^4)-1","v":5.0515318756796157E-2},{"$f":"((Quarterly!C180/Quarterly!C179)^4)-1","v":2.1372543497507168E-2},{"$f":"((Quarterly!D180/Quarterly!D179)^4)-1","v":1.3889878726448757E-2},{"$f":"((Quarterly!E180/Quarterly!E179)^4)-1","v":1.0312862848166349E-2},{"$f":"((Quarterly!F180/Quarterly!F179)^4)-1","v":-3.4245077941397195E-3},{"$f":"((Quarterly!G180/Quarterly!G179)^4)-1","v":1.8844846519823433E-2},{"$f":"((Quarterly!H180/Quarterly!H179)^4)-1","v":9.9618626781710073E-3},{"$f":"((Quarterly!I180/Quarterly!I179)^4)-1","v":-8.7776298257881913E-2},{"$f":"((Quarterly!J180/Quarterly!J179)^4)-1","v":-0.13650345731915126},{"$f":"((Quarterly!K180/Quarterly!K179)^4)-1","v":6.3419126128158698E-2},{"$f":"((Quarterly!L180-Quarterly!L179))","v":25.088000000000001},{"$f":"((Quarterly!M180/Quarterly!M179)^4)-1","v":-0.1130377267703282},{"$f":"((Quarterly!N180/Quarterly!N179)^4)-1","v":-0.12576318195635228},{"$f":"((Quarterly!O180/Quarterly!O179)^4)-1","v":-8.0095512468419172E-2},{"$f":"((Quarterly!P180/Quarterly!P179)^4)-1","v":8.1113436968220043E-2},{"$f":"((Quarterly!Q180/Quarterly!Q179)^4)-1","v":-0.74030492081615995},null,null,null,null,null,{"$f":"((Quarterly!W180/Quarterly!W179)^4)-1","v":-9.1656617922631356E-2},{"$f":"((Quarterly!X180/Quarterly!X179)^4)-1","v":-8.066548365771109E-2},{"$f":"((Quarterly!Y180/Quarterly!Y179)^4)-1","v":-4.2216668767149912E-2},{"$f":"Quarterly!Z180-Quarterly!Z179","v":0.13},{"$f":"((Quarterly!AA180/Quarterly!AA179)^4)-1","v":0.22108626314974478},{"$f":"((Quarterly!AB180/Quarterly!AB179)^4)-1","v":0.32912343990938431},{"$f":"Quarterly!AC180-Quarterly!AC179","v":11.5},{"$f":"Quarterly!AD180-Quarterly!AD179","v":-4.8000000000000007},{"$f":"(Quarterly!AE180-Quarterly!AE179)*100","v":6.0000000000000053},{"$f":"(Quarterly!AF180-Quarterly!AF179)*100","v":13},{"$f":"(Quarterly!AG180-Quarterly!AG179)*100","v":4.0000000000000036},{"$f":"((Quarterly!AH180/Quarterly!AH179)^4)-1","v":6.8351929012345547E-2},{"$f":"((Quarterly!AI180/Quarterly!AI179)^4)-1","v":2.3064023660666289E-2},{"$f":"((Quarterly!AJ180/Quarterly!AJ179)^4)-1","v":3.6009277782609539E-2},{"$f":"((Quarterly!AK180/Quarterly!AK179)^4)-1","v":3.8181889385423773E-2},{"$f":"((Quarterly!AL180/Quarterly!AL179)^4)-1","v":3.7033140516792074E-2},{"$f":"((Quarterly!AM180/Quarterly!AM179)^4)-1","v":-4.9201283896959214E-2},{"$f":"((Quarterly!AN180/Quarterly!AN179)^4)-1","v":-5.3915847526016192E-2},{"$f":"((Quarterly!AO180/Quarterly!AO179)^4)-1","v":-3.9588353441416424E-2},{"$f":"(Quarterly!AP180-Quarterly!AP179)*100","v":0.66666666666668206},{"$f":"Quarterly!AQ180-Quarterly!AQ179","v":-0.10000000000000142},{"$f":"Quarterly!AR180-Quarterly!AR179","v":4.1666666666666714},{"$f":"Quarterly!AS180-Quarterly!AS179","v":-3.8333333333333357},{"$f":"Quarterly!AT180-Quarterly!AT179","v":-3.6666666666666643},{"$f":"Quarterly!AU180-Quarterly!AU179","v":-1.9333333333333371},{"$f":"Quarterly!AV180-Quarterly!AV179","v":-1.43333333333333},{"$f":"Quarterly!AW180-Quarterly!AW179","v":-3.9666666666666544},{"$f":"Quarterly!AX180-Quarterly!AX179","v":6.1333333333333329},{"$f":"Quarterly!AY180-Quarterly!AY179","v":-11.400000000000006},{"$f":"Quarterly!AZ180-Quarterly!AZ179","v":3.7000000000000028},{"$f":"Quarterly!BA180-Quarterly!BA179","v":-2.6666666666666643},{"$f":"Quarterly!BB180-Quarterly!BB179","v":-2.0666666666666771},{"$f":"((Quarterly!BC180/Quarterly!BC179)^4)-1","v":-0.25565600851541059},{"$f":"((Quarterly!BD180/Quarterly!BD179)^4)-1","v":6.8471832970384838E-3},{"$f":"((Quarterly!BE180/Quarterly!BE179)^4)-1","v":2.2719578403332719E-2},{"$f":"((Quarterly!BF180/Quarterly!BF179)^4)-1","v":1.2226681315349763E-2},{"$f":"((Quarterly!BG180/Quarterly!BG179)^4)-1","v":6.9719575212984886E-2},{"$f":"((Quarterly!BH180/Quarterly!BH179)^4)-1","v":-1.6943025769426079E-2},{"$f":"((Quarterly!BI180/Quarterly!BI179)^4)-1","v":-5.3725320831019885E-2},{"$f":"((Quarterly!BJ180/Quarterly!BJ179)^4)-1","v":-3.148894778576028E-2},{"$f":"((Quarterly!BK180/Quarterly!BK179)^4)-1","v":0.73522104623254037},null,{"$f":"((Quarterly!BM180/Quarterly!BM179)^4)-1","v":4.1682277449667016E-2},{"$f":"((Quarterly!BN180/Quarterly!BN179)^4)-1","v":4.4266931789500141E-2},null,null,null,null,null,{"$f":"((Quarterly!BT180/Quarterly!BT179)^4)-1","v":5.6966148585968268E-2},{"$f":"Quarterly!BU180-Quarterly!BU179","v":0.21178000000000097},{"$f":"Quarterly!BV180-Quarterly!BV179","v":0.257439999999999},{"$f":"((Quarterly!BW180/Quarterly!BW179)^4)-1","v":6.5071841600053748E-2},{"$f":"((Quarterly!BX180/Quarterly!BX179)^4)-1","v":6.3776202656665282E-2},{"$f":"((Quarterly!BY180/Quarterly!BY179)^4)-1","v":-4.4703124861897869E-2},{"$f":"((Quarterly!BZ180/Quarterly!BZ179)^4)-1","v":8.1497352215339713E-2},{"$f":"((Quarterly!CA180/Quarterly!CA179)^4)-1","v":-0.10528246465852786},{"$f":"((Quarterly!CB180/Quarterly!CB179)^4)-1","v":4.2923668176690688E-2},{"$f":"((Quarterly!CC180/Quarterly!CC179)^4)-1","v":7.6543981277358508E-2},"--","--",null,"--","--",null,{"$f":"((Quarterly!CJ180/Quarterly!CJ179)^4)-1","v":-0.20951274556736876},{"$f":"((Quarterly!CK180/Quarterly!CK179)^4)-1","v":1.6497769439814514E-2},{"$f":"((Quarterly!CL180/Quarterly!CL179)^4)-1","v":-0.24121018954737028},{"$f":"((Quarterly!CM180/Quarterly!CM179)^4)-1","v":0.13109140539845598},{"$f":"((Quarterly!CN180/Quarterly!CN179)^4)-1","v":-3.5063684299341258E-3},{"$f":"((Quarterly!CO180/Quarterly!CO179)^4)-1","v":0.22777154381348974},{"$f":"((Quarterly!CP180/Quarterly!CP179)^4)-1","v":8.4675373081165795E-2},{"$f":"((Quarterly!CQ180/Quarterly!CQ179)^4)-1","v":9.6356702758779722E-3},{"$f":"((Quarterly!CR180/Quarterly!CR179)^4)-1","v":8.2410204961282707E-2},{"$f":"Quarterly!CS180-Quarterly!CS179","v":-1.2666666666666657},"--",null,null,null,null,null,{"$f":"((Quarterly!CZ180/Quarterly!CZ179)^4)-1","v":2.8342591426199659E-2},{"$f":"((Quarterly!DA180/Quarterly!DA179)^4)-1","v":2.4820867710066974E-2},null,null,null,null,null,{"$f":"((Quarterly!DG180/Quarterly!DG179)^4)-1","v":-2.9348769015094645E-2},{"$f":"((Quarterly!DH180-Quarterly!DH179)*60)","v":-6.0000000000000853},{"$f":"Quarterly!DI180-Quarterly!DI179","v":-0.40000000000000568},{"$f":"(Quarterly!DJ180-Quarterly!DJ179)*100","v":26.66666666666675},{"$f":"(Quarterly!DK180-Quarterly!DK179)*100","v":16.666666666666607},{"$f":"((Quarterly!DL180/Quarterly!DL179)^4)-1","v":-8.2825314591565835E-2},null,null,null,{"$f":"((Quarterly!DP180/Quarterly!DP179)^4)-1","v":-1.0305582165082816E-2},null,null,null,"--",{"$f":"Quarterly!DU180-Quarterly!DU179","v":-0.10000000000000053},{"$f":"((Quarterly!DV180/Quarterly!DV179)^4)-1","v":-3.1455257990193219E-2},{"$f":"((Quarterly!DW180/Quarterly!DW179)^4)-1","v":4.5939636261483896E-2},{"$f":"((Quarterly!DX180/Quarterly!DX179)^4)-1","v":8.6023900772611572E-3},{"$f":"((Quarterly!DY180/Quarterly!DY179)^4)-1","v":3.3512693692828277E-2},{"$f":"((Quarterly!DZ180/Quarterly!DZ179)^4)-1","v":8.803785094964045E-4},{"$f":"((Quarterly!EA180/Quarterly!EA179)^4)-1","v":-1.2331595167541787E-3},{"$f":"((Quarterly!EB180/Quarterly!EB179)^4)-1","v":6.1547748859791529E-3},{"$f":"((Quarterly!EC180/Quarterly!EC179)^4)-1","v":0.14770231860502725},null,null,null,null,null,{"$f":"((Quarterly!EI180/Quarterly!EI179)^4)-1","v":5.1375311049897121E-3},{"$f":"((Quarterly!EJ180/Quarterly!EJ179)^4)-1","v":1.8315526673329252E-2},{"$f":"((Quarterly!EK180/Quarterly!EK179)^4)-1","v":1.5724133160821774E-2},null,null,null,null,null,{"$f":"((Quarterly!EQ180/Quarterly!EQ179)^4)-1","v":-4.3781966853855936E-2},{"$f":"((Quarterly!ER180/Quarterly!ER179)^4)-1","v":1.7064844626250686E-2},{"$f":"((Quarterly!ES180/Quarterly!ES179)^4)-1","v":5.7443605328899583E-3},null,null,null,null,null,{"$f":"(Quarterly!EY180-Quarterly!EY179)*100","v":-128.33333333333331},{"$f":"(Quarterly!EZ180-Quarterly!EZ179)*100","v":-126.66666666666666},{"$f":"(Quarterly!FA180-Quarterly!FA179)*100","v":14.66666666666665},{"$f":"(Quarterly!FB180-Quarterly!FB179)*100","v":15.666666666666718},1.0000000000000675,{"$f":"(Quarterly!FD180-Quarterly!FD179)*100","v":11.999999999999922},{"$f":"(Quarterly!FE180-Quarterly!FE179)*100","v":-115.66666666666671},{"$f":"(Quarterly!FF180-Quarterly!FF179)*100","v":-81.666666666666686},{"$f":"(Quarterly!FG180-Quarterly!FG179)*100","v":-39.66666666666665},{"$f":"(Quarterly!FH180-Quarterly!FH179)*100","v":3.6666666666666181},{"$f":"(Quarterly!FI180-Quarterly!FI179)*100","v":21.999999999999975},103.66666666666666,null,null,null,null,null,{"$f":"((Quarterly!FP180/Quarterly!FP179)^4)-1","v":3.5277872969014634E-2},{"$f":"((Quarterly!FQ180/Quarterly!FQ179)^4)-1","v":-1.7717752137513809E-4},{"$f":"((Quarterly!FR180/Quarterly!FR179)^4)-1","v":-0.19271929616883388},{"$f":"((Quarterly!FS180/Quarterly!FS179)^4)-1","v":-0.19448131920411893},{"$f":"((Quarterly!FT180/Quarterly!FT179)^4)-1","v":9.1803072222738979E-2},{"$f":"((Quarterly!FU180/Quarterly!FU179)^4)-1","v":0.14646560225067207},{"$f":"((Quarterly!FV180/Quarterly!FV179)^4)-1","v":-9.4002112336977306E-2},{"$f":"((Quarterly!FW180/Quarterly!FW179)^4)-1","v":0.28517987419711233},{"$f":"((Quarterly!FX180/Quarterly!FX179)^4)-1","v":3.6919952079208951E-2},null,null,null,null,null,{"$f":"((Quarterly!GD180/Quarterly!GD179)^4)-1","v":-0.12258363728223853},{"$f":"((Quarterly!GE180/Quarterly!GE179)^4)-1","v":0.23464853957948395},{"$f":"((Quarterly!GF180/Quarterly!GF179)^4)-1","v":0.57182190435261293},{"$f":"((Quarterly!GG180/Quarterly!GG179)^4)-1","v":-1.3520932328682456E-2},{"$f":"((Quarterly!GH180/Quarterly!GH179)^4)-1","v":{"$error":"#DIV/0!"}},"--",{"$f":"((Quarterly!GJ180/Quarterly!GJ179)^4)-1","v":-0.75000897699076363},{"$f":"((Quarterly!GK180/Quarterly!GK179)^4)-1","v":-0.33721338142408808},"--"]
["01'Q3",{"$f":"((Quarterly!B181/Quarterly!B180)^4)-1","v":4.1441303167966126E-4},{"$f":"((Quarterly!C181/Quarterly!C180)^4)-1","v":-1.2590325829443971E-2},{"$f":"((Quarterly!D181/Quarterly!D180)^4)-1","v":-5.5093699692804199E-3},{"$f":"((Quarterly!E181/Quarterly!E180)^4)-1","v":1.4707438029314179E-2},{"$f":"((Quarterly!F181/Quarterly!F180)^4)-1","v":4.6608448024174409E-2},{"$f":"((Quarterly!G181/Quarterly!G180)^4)-1","v":1.8684941893435836E-2},{"$f":"((Quarterly!H181/Quarterly!H180)^4)-1","v":6.9833645764492136E-3},{"$f":"((Quarterly!I181/Quarterly!I180)^4)-1","v":-5.1286184602321261E-2},{"$f":"((Quarterly!J181/Quarterly!J180)^4)-1","v":-9.0713278971237821E-2},{"$f":"((Quarterly!K181/Quarterly!K180)^4)-1","v":2.5144748862306887E-2},{"$f":"((Quarterly!L181-Quarterly!L180))","v":-24.089999999999996},{"$f":"((Quarterly!M181/Quarterly!M180)^4)-1","v":-7.7806574774620163E-2},{"$f":"((Quarterly!N181/Quarterly!N180)^4)-1","v":-0.18073027496662408},{"$f":"((Quarterly!O181/Quarterly!O180)^4)-1","v":0.22287018626881316},{"$f":"((Quarterly!P181/Quarterly!P180)^4)-1","v":-2.8009312069997572E-3},{"$f":"((Quarterly!Q181/Quarterly!Q180)^4)-1","v":2.8771655167825334},null,null,null,null,null,{"$f":"((Quarterly!W181/Quarterly!W180)^4)-1","v":-9.3804478857472784E-2},{"$f":"((Quarterly!X181/Quarterly!X180)^4)-1","v":-8.5573142824790782E-2},{"$f":"((Quarterly!Y181/Quarterly!Y180)^4)-1","v":-7.9565905671158399E-2},{"$f":"Quarterly!Z181-Quarterly!Z180","v":0.10000000000000009},{"$f":"((Quarterly!AA181/Quarterly!AA180)^4)-1","v":-0.30326913845610426},{"$f":"((Quarterly!AB181/Quarterly!AB180)^4)-1","v":-7.0851578823382222E-2},{"$f":"Quarterly!AC181-Quarterly!AC180","v":-0.40000000000000213},{"$f":"Quarterly!AD181-Quarterly!AD180","v":-7.6000000000000014},{"$f":"(Quarterly!AE181-Quarterly!AE180)*100","v":7.0000000000000062},{"$f":"(Quarterly!AF181-Quarterly!AF180)*100","v":10.000000000000009},{"$f":"(Quarterly!AG181-Quarterly!AG180)*100","v":6.9999999999999947},{"$f":"((Quarterly!AH181/Quarterly!AH180)^4)-1","v":-3.8209862636579994E-2},{"$f":"((Quarterly!AI181/Quarterly!AI180)^4)-1","v":-4.2467371973861079E-3},{"$f":"((Quarterly!AJ181/Quarterly!AJ180)^4)-1","v":5.6505233211611605E-2},{"$f":"((Quarterly!AK181/Quarterly!AK180)^4)-1","v":4.2622849682700359E-2},{"$f":"((Quarterly!AL181/Quarterly!AL180)^4)-1","v":3.6693456808290392E-2},{"$f":"((Quarterly!AM181/Quarterly!AM180)^4)-1","v":-5.64738287465677E-2},{"$f":"((Quarterly!AN181/Quarterly!AN180)^4)-1","v":-6.4041715611012462E-2},{"$f":"((Quarterly!AO181/Quarterly!AO180)^4)-1","v":-5.9488993999515238E-2},{"$f":"(Quarterly!AP181-Quarterly!AP180)*100","v":-1.0000000000000453},{"$f":"Quarterly!AQ181-Quarterly!AQ180","v":2.9333333333333371},{"$f":"Quarterly!AR181-Quarterly!AR180","v":1.5},{"$f":"Quarterly!AS181-Quarterly!AS180","v":-2.3333333333333286},{"$f":"Quarterly!AT181-Quarterly!AT180","v":3.6666666666666643},{"$f":"Quarterly!AU181-Quarterly!AU180","v":3.1000000000000014},{"$f":"Quarterly!AV181-Quarterly!AV180","v":1.9333333333333371},{"$f":"Quarterly!AW181-Quarterly!AW180","v":-1.4000000000000057},{"$f":"Quarterly!AX181-Quarterly!AX180","v":5.5333333333333385},{"$f":"Quarterly!AY181-Quarterly!AY180","v":-8.1333333333333258},{"$f":"Quarterly!AZ181-Quarterly!AZ180","v":6.36666666666666},{"$f":"Quarterly!BA181-Quarterly!BA180","v":0.43333333333333712},{"$f":"Quarterly!BB181-Quarterly!BB180","v":-0.86666666666666003},{"$f":"((Quarterly!BC181/Quarterly!BC180)^4)-1","v":-0.18928105929327566},{"$f":"((Quarterly!BD181/Quarterly!BD180)^4)-1","v":-2.2760698158431292E-2},{"$f":"((Quarterly!BE181/Quarterly!BE180)^4)-1","v":2.8043556383094304E-2},{"$f":"((Quarterly!BF181/Quarterly!BF180)^4)-1","v":3.9988265246293508E-3},{"$f":"((Quarterly!BG181/Quarterly!BG180)^4)-1","v":2.1262040916261604E-2},{"$f":"((Quarterly!BH181/Quarterly!BH180)^4)-1","v":-6.7897331771769043E-3},{"$f":"((Quarterly!BI181/Quarterly!BI180)^4)-1","v":-1.6876721611557399E-2},{"$f":"((Quarterly!BJ181/Quarterly!BJ180)^4)-1","v":-0.52225739629069734},{"$f":"((Quarterly!BK181/Quarterly!BK180)^4)-1","v":0.4588358255509708},null,{"$f":"((Quarterly!BM181/Quarterly!BM180)^4)-1","v":-2.6795219038456941E-2},{"$f":"((Quarterly!BN181/Quarterly!BN180)^4)-1","v":-3.4107973037016848E-2},null,null,null,null,null,{"$f":"((Quarterly!BT181/Quarterly!BT180)^4)-1","v":7.6020741503777245E-3},{"$f":"Quarterly!BU181-Quarterly!BU180","v":-6.9230000000001013E-2},{"$f":"Quarterly!BV181-Quarterly!BV180","v":-0.13319999999999865},{"$f":"((Quarterly!BW181/Quarterly!BW180)^4)-1","v":6.8066391088122513E-2},{"$f":"((Quarterly!BX181/Quarterly!BX180)^4)-1","v":-7.2385426215287429E-2},{"$f":"((Quarterly!BY181/Quarterly!BY180)^4)-1","v":-0.13680501992592153},{"$f":"((Quarterly!BZ181/Quarterly!BZ180)^4)-1","v":6.7420938392130703E-2},{"$f":"((Quarterly!CA181/Quarterly!CA180)^4)-1","v":-0.146231918618558},{"$f":"((Quarterly!CB181/Quarterly!CB180)^4)-1","v":-0.10599738689597227},{"$f":"((Quarterly!CC181/Quarterly!CC180)^4)-1","v":3.3714640157925135E-2},"--","--",null,"--","--",null,{"$f":"((Quarterly!CJ181/Quarterly!CJ180)^4)-1","v":-0.11022401165537254},{"$f":"((Quarterly!CK181/Quarterly!CK180)^4)-1","v":-3.1969070973270064E-3},{"$f":"((Quarterly!CL181/Quarterly!CL180)^4)-1","v":4.2948284652155095},{"$f":"((Quarterly!CM181/Quarterly!CM180)^4)-1","v":-6.4187319529670495E-2},{"$f":"((Quarterly!CN181/Quarterly!CN180)^4)-1","v":9.7962495600391497E-2},{"$f":"((Quarterly!CO181/Quarterly!CO180)^4)-1","v":0.20412043729704998},{"$f":"((Quarterly!CP181/Quarterly!CP180)^4)-1","v":5.4432489230690662E-2},{"$f":"((Quarterly!CQ181/Quarterly!CQ180)^4)-1","v":1.0664385310220181E-2},{"$f":"((Quarterly!CR181/Quarterly!CR180)^4)-1","v":-1.3451690617549361E-2},{"$f":"Quarterly!CS181-Quarterly!CS180","v":-2.4333333333333371},"--",null,null,null,null,null,{"$f":"((Quarterly!CZ181/Quarterly!CZ180)^4)-1","v":1.1338826556812842E-2},{"$f":"((Quarterly!DA181/Quarterly!DA180)^4)-1","v":2.7599614499312697E-2},null,null,null,null,null,{"$f":"((Quarterly!DG181/Quarterly!DG180)^4)-1","v":-3.2105254563537522E-2},{"$f":"((Quarterly!DH181-Quarterly!DH180)*60)","v":-6.0000000000000853},{"$f":"Quarterly!DI181-Quarterly!DI180","v":-6.6666666666662877E-2},{"$f":"(Quarterly!DJ181-Quarterly!DJ180)*100","v":59.999999999999872},{"$f":"(Quarterly!DK181-Quarterly!DK180)*100","v":43.333333333333357},{"$f":"((Quarterly!DL181/Quarterly!DL180)^4)-1","v":-9.6130351262739278E-2},null,null,null,{"$f":"((Quarterly!DP181/Quarterly!DP180)^4)-1","v":-1.1880088531668442E-2},null,null,null,"--",{"$f":"Quarterly!DU181-Quarterly!DU180","v":0.89999999999999947},{"$f":"((Quarterly!DV181/Quarterly!DV180)^4)-1","v":-4.1363288642398355E-2},{"$f":"((Quarterly!DW181/Quarterly!DW180)^4)-1","v":1.79082785477922E-2},{"$f":"((Quarterly!DX181/Quarterly!DX180)^4)-1","v":-1.3302551896409276E-2},{"$f":"((Quarterly!DY181/Quarterly!DY180)^4)-1","v":1.1174636663914495E-2},{"$f":"((Quarterly!DZ181/Quarterly!DZ180)^4)-1","v":-2.0950823444824129E-2},{"$f":"((Quarterly!EA181/Quarterly!EA180)^4)-1","v":-1.8626941297132604E-2},{"$f":"((Quarterly!EB181/Quarterly!EB180)^4)-1","v":-2.6705623739035733E-2},{"$f":"((Quarterly!EC181/Quarterly!EC180)^4)-1","v":9.9621315183773707E-2},null,null,null,null,null,{"$f":"((Quarterly!EI181/Quarterly!EI180)^4)-1","v":-2.6171716267798462E-2},{"$f":"((Quarterly!EJ181/Quarterly!EJ180)^4)-1","v":-1.5943122463003112E-2},{"$f":"((Quarterly!EK181/Quarterly!EK180)^4)-1","v":-1.4333199109991979E-2},null,null,null,null,null,{"$f":"((Quarterly!EQ181/Quarterly!EQ180)^4)-1","v":-8.1549712009032715E-2},{"$f":"((Quarterly!ER181/Quarterly!ER180)^4)-1","v":1.429506041857076E-2},{"$f":"((Quarterly!ES181/Quarterly!ES180)^4)-1","v":1.1496887942440415E-2},null,null,null,null,null,{"$f":"(Quarterly!EY181-Quarterly!EY180)*100","v":-77.333333333333343},{"$f":"(Quarterly!EZ181-Quarterly!EZ180)*100","v":-83.000000000000057},{"$f":"(Quarterly!FA181-Quarterly!FA180)*100","v":-11.666666666666714},{"$f":"(Quarterly!FB181-Quarterly!FB180)*100","v":-8.6666666666666892},3.0000000000000249,{"$f":"(Quarterly!FD181-Quarterly!FD180)*100","v":-16.3333333333334},{"$f":"(Quarterly!FE181-Quarterly!FE180)*100","v":-49.000000000000021},{"$f":"(Quarterly!FF181-Quarterly!FF180)*100","v":-47.666666666666657},{"$f":"(Quarterly!FG181-Quarterly!FG180)*100","v":-55.000000000000028},{"$f":"(Quarterly!FH181-Quarterly!FH180)*100","v":-34.999999999999964},{"$f":"(Quarterly!FI181-Quarterly!FI180)*100","v":-28.999999999999915},18.666666666666742,null,null,null,null,null,{"$f":"((Quarterly!FP181/Quarterly!FP180)^4)-1","v":1.3215488382599005E-2},{"$f":"((Quarterly!FQ181/Quarterly!FQ180)^4)-1","v":-6.4433768106608724E-5},{"$f":"((Quarterly!FR181/Quarterly!FR180)^4)-1","v":2.3939243760696893E-2},{"$f":"((Quarterly!FS181/Quarterly!FS180)^4)-1","v":8.4188950855136113E-2},{"$f":"((Quarterly!FT181/Quarterly!FT180)^4)-1","v":-1.0979498653191144E-2},{"$f":"((Quarterly!FU181/Quarterly!FU180)^4)-1","v":-3.6537592340873615E-2},{"$f":"((Quarterly!FV181/Quarterly!FV180)^4)-1","v":-0.39499862466106761},{"$f":"((Quarterly!FW181/Quarterly!FW180)^4)-1","v":1.1722905948375977},{"$f":"((Quarterly!FX181/Quarterly!FX180)^4)-1","v":-6.0789513053520761E-2},null,null,null,null,null,{"$f":"((Quarterly!GD181/Quarterly!GD180)^4)-1","v":-0.17177605145370278},{"$f":"((Quarterly!GE181/Quarterly!GE180)^4)-1","v":-0.25910260969027621},{"$f":"((Quarterly!GF181/Quarterly!GF180)^4)-1","v":-0.33508793545781546},{"$f":"((Quarterly!GG181/Quarterly!GG180)^4)-1","v":-0.12132617264872658},{"$f":"((Quarterly!GH181/Quarterly!GH180)^4)-1","v":{"$error":"#DIV/0!"}},"--",{"$f":"((Quarterly!GJ181/Quarterly!GJ180)^4)-1","v":-0.84325981885360068},{"$f":"((Quarterly!GK181/Quarterly!GK180)^4)-1","v":-4.7077545717955971E-2},"--"]
["01'Q4",{"$f":"((Quarterly!B182/Quarterly!B181)^4)-1","v":2.3449284784697433E-2},{"$f":"((Quarterly!C182/Quarterly!C181)^4)-1","v":1.1147389419506437E-2},{"$f":"((Quarterly!D182/Quarterly!D181)^4)-1","v":3.0051400204359924E-2},{"$f":"((Quarterly!E182/Quarterly!E181)^4)-1","v":6.2528971627408669E-2},{"$f":"((Quarterly!F182/Quarterly!F181)^4)-1","v":0.37739898958145424},{"$f":"((Quarterly!G182/Quarterly!G181)^4)-1","v":3.4281603118526238E-2},{"$f":"((Quarterly!H182/Quarterly!H181)^4)-1","v":1.6236434967873636E-2},{"$f":"((Quarterly!I182/Quarterly!I181)^4)-1","v":-0.1109454611041778},{"$f":"((Quarterly!J182/Quarterly!J181)^4)-1","v":2.04536403453075E-2},{"$f":"((Quarterly!K182/Quarterly!K181)^4)-1","v":-2.541672099593506E-2},{"$f":"((Quarterly!L182-Quarterly!L181))","v":-60.499000000000002},{"$f":"((Quarterly!M182/Quarterly!M181)^4)-1","v":-5.4214117523891159E-2},{"$f":"((Quarterly!N182/Quarterly!N181)^4)-1","v":-0.11930969642585776},{"$f":"((Quarterly!O182/Quarterly!O181)^4)-1","v":0.10679558142242107},{"$f":"((Quarterly!P182/Quarterly!P181)^4)-1","v":5.953378277665955E-2},{"$f":"((Quarterly!Q182/Quarterly!Q181)^4)-1","v":-0.99492578676654264},null,null,null,null,null,{"$f":"((Quarterly!W182/Quarterly!W181)^4)-1","v":-5.9563205229398175E-2},{"$f":"((Quarterly!X182/Quarterly!X181)^4)-1","v":-6.4034194826202318E-2},{"$f":"((Quarterly!Y182/Quarterly!Y181)^4)-1","v":-9.5211021928374606E-2},{"$f":"Quarterly!Z182-Quarterly!Z181","v":0.32999999999999985},{"$f":"((Quarterly!AA182/Quarterly!AA181)^4)-1","v":-0.13072050111608957},{"$f":"((Quarterly!AB182/Quarterly!AB181)^4)-1","v":0.2544737567533637},{"$f":"Quarterly!AC182-Quarterly!AC181","v":-8.6999999999999993},{"$f":"Quarterly!AD182-Quarterly!AD181","v":-7.8999999999999986},{"$f":"(Quarterly!AE182-Quarterly!AE181)*100","v":6.999999999999984},{"$f":"(Quarterly!AF182-Quarterly!AF181)*100","v":32.999999999999986},{"$f":"(Quarterly!AG182-Quarterly!AG181)*100","v":13},{"$f":"((Quarterly!AH182/Quarterly!AH181)^4)-1","v":0.59939939601142322},{"$f":"((Quarterly!AI182/Quarterly!AI181)^4)-1","v":0.3864439212436086},{"$f":"((Quarterly!AJ182/Quarterly!AJ181)^4)-1","v":4.5418708269719277E-2},{"$f":"((Quarterly!AK182/Quarterly!AK181)^4)-1","v":3.7422880496400746E-2},{"$f":"((Quarterly!AL182/Quarterly!AL181)^4)-1","v":3.6359947304424045E-2},{"$f":"((Quarterly!AM182/Quarterly!AM181)^4)-1","v":-4.2308360206562923E-2},{"$f":"((Quarterly!AN182/Quarterly!AN181)^4)-1","v":-3.8803809512261034E-2},{"$f":"((Quarterly!AO182/Quarterly!AO181)^4)-1","v":-0.11192876048433631},{"$f":"(Quarterly!AP182-Quarterly!AP181)*100","v":-3.6666666666666403},{"$f":"Quarterly!AQ182-Quarterly!AQ181","v":-1.9333333333333371},{"$f":"Quarterly!AR182-Quarterly!AR181","v":-5.3333333333333357},{"$f":"Quarterly!AS182-Quarterly!AS181","v":-3},{"$f":"Quarterly!AT182-Quarterly!AT181","v":-2.9666666666666686},{"$f":"Quarterly!AU182-Quarterly!AU181","v":-1.7999999999999972},{"$f":"Quarterly!AV182-Quarterly!AV181","v":0.13333333333333286},{"$f":"Quarterly!AW182-Quarterly!AW181","v":0.39999999999999147},{"$f":"Quarterly!AX182-Quarterly!AX181","v":-5.1333333333333329},{"$f":"Quarterly!AY182-Quarterly!AY181","v":-4.3333333333333286},{"$f":"Quarterly!AZ182-Quarterly!AZ181","v":-4.2333333333333343},{"$f":"Quarterly!BA182-Quarterly!BA181","v":2.2999999999999901},{"$f":"Quarterly!BB182-Quarterly!BB181","v":-1.5333333333333243},{"$f":"((Quarterly!BC182/Quarterly!BC181)^4)-1","v":-0.14270025351248439},{"$f":"((Quarterly!BD182/Quarterly!BD181)^4)-1","v":6.5236493339198676E-2},{"$f":"((Quarterly!BE182/Quarterly!BE181)^4)-1","v":1.615838751626808E-2},{"$f":"((Quarterly!BF182/Quarterly!BF181)^4)-1","v":3.6705257344552544E-2},{"$f":"((Quarterly!BG182/Quarterly!BG181)^4)-1","v":5.1742265226184747E-2},{"$f":"((Quarterly!BH182/Quarterly!BH181)^4)-1","v":4.0969462438580129E-2},{"$f":"((Quarterly!BI182/Quarterly!BI181)^4)-1","v":-1.4322324706481204E-2},{"$f":"((Quarterly!BJ182/Quarterly!BJ181)^4)-1","v":-0.8697957938612616},{"$f":"((Quarterly!BK182/Quarterly!BK181)^4)-1","v":1.8324226147059921},null,{"$f":"((Quarterly!BM182/Quarterly!BM181)^4)-1","v":0.14194140679804979},{"$f":"((Quarterly!BN182/Quarterly!BN181)^4)-1","v":0.15359833275968215},null,null,null,null,null,{"$f":"((Quarterly!BT182/Quarterly!BT181)^4)-1","v":3.9733857809813422E-2},{"$f":"Quarterly!BU182-Quarterly!BU181","v":0.29574000000000034},{"$f":"Quarterly!BV182-Quarterly!BV181","v":0.39905999999999864},{"$f":"((Quarterly!BW182/Quarterly!BW181)^4)-1","v":5.6971173880046688E-2},{"$f":"((Quarterly!BX182/Quarterly!BX181)^4)-1","v":-7.2143896767584037E-2},{"$f":"((Quarterly!BY182/Quarterly!BY181)^4)-1","v":0.10340725312449539},{"$f":"((Quarterly!BZ182/Quarterly!BZ181)^4)-1","v":6.7605715033629554E-2},{"$f":"((Quarterly!CA182/Quarterly!CA181)^4)-1","v":0.7688763951296278},{"$f":"((Quarterly!CB182/Quarterly!CB181)^4)-1","v":-7.0717596081498302E-2},{"$f":"((Quarterly!CC182/Quarterly!CC181)^4)-1","v":0.12684867527033528},"--","--",null,"--","--",null,{"$f":"((Quarterly!CJ182/Quarterly!CJ181)^4)-1","v":0.29777890018640107},{"$f":"((Quarterly!CK182/Quarterly!CK181)^4)-1","v":1.1542989388483083E-2},{"$f":"((Quarterly!CL182/Quarterly!CL181)^4)-1","v":-0.89680272266366701},{"$f":"((Quarterly!CM182/Quarterly!CM181)^4)-1","v":-5.9257638036473659E-2},{"$f":"((Quarterly!CN182/Quarterly!CN181)^4)-1","v":-4.8558409848487472E-2},{"$f":"((Quarterly!CO182/Quarterly!CO181)^4)-1","v":0.26225491544823454},{"$f":"((Quarterly!CP182/Quarterly!CP181)^4)-1","v":0.10550330667377517},{"$f":"((Quarterly!CQ182/Quarterly!CQ181)^4)-1","v":1.0720742319870524E-2},{"$f":"((Quarterly!CR182/Quarterly!CR181)^4)-1","v":2.1021034166400776E-2},{"$f":"Quarterly!CS182-Quarterly!CS181","v":-3.4333333333333229},"--",null,null,null,null,null,{"$f":"((Quarterly!CZ182/Quarterly!CZ181)^4)-1","v":-2.9990606823152577E-3},{"$f":"((Quarterly!DA182/Quarterly!DA181)^4)-1","v":2.6682029442911315E-2},null,null,null,null,null,{"$f":"((Quarterly!DG182/Quarterly!DG181)^4)-1","v":-4.3821829334097728E-2},{"$f":"((Quarterly!DH182-Quarterly!DH181)*60)","v":-5.9999999999996589},{"$f":"Quarterly!DI182-Quarterly!DI181","v":0},{"$f":"(Quarterly!DJ182-Quarterly!DJ181)*100","v":123.3333333333336},{"$f":"(Quarterly!DK182-Quarterly!DK181)*100","v":66.6666666666667},{"$f":"((Quarterly!DL182/Quarterly!DL181)^4)-1","v":-9.6671532108869029E-2},null,null,null,{"$f":"((Quarterly!DP182/Quarterly!DP181)^4)-1","v":-2.375391262353943E-2},null,null,null,"--",{"$f":"Quarterly!DU182-Quarterly!DU181","v":0.7666666666666675},{"$f":"((Quarterly!DV182/Quarterly!DV181)^4)-1","v":-5.2963193082960713E-2},{"$f":"((Quarterly!DW182/Quarterly!DW181)^4)-1","v":-7.2766736232602769E-2},{"$f":"((Quarterly!DX182/Quarterly!DX181)^4)-1","v":-4.8845826782187296E-2},{"$f":"((Quarterly!DY182/Quarterly!DY181)^4)-1","v":-7.9625147498982751E-2},{"$f":"((Quarterly!DZ182/Quarterly!DZ181)^4)-1","v":-3.8871738461705441E-2},{"$f":"((Quarterly!EA182/Quarterly!EA181)^4)-1","v":-3.3785268134108426E-2},{"$f":"((Quarterly!EB182/Quarterly!EB181)^4)-1","v":-5.1445755371465784E-2},{"$f":"((Quarterly!EC182/Quarterly!EC181)^4)-1","v":-0.12937959681362454},null,null,null,null,null,{"$f":"((Quarterly!EI182/Quarterly!EI181)^4)-1","v":1.0454801030167049E-2},{"$f":"((Quarterly!EJ182/Quarterly!EJ181)^4)-1","v":3.2896936548807876E-2},{"$f":"((Quarterly!EK182/Quarterly!EK181)^4)-1","v":1.5719960913250342E-2},null,null,null,null,null,{"$f":"((Quarterly!EQ182/Quarterly!EQ181)^4)-1","v":-0.11376699756014641},{"$f":"((Quarterly!ER182/Quarterly!ER181)^4)-1","v":-1.1462462946010943E-2},{"$f":"((Quarterly!ES182/Quarterly!ES181)^4)-1","v":-2.0763804804364905E-2},null,null,null,null,null,{"$f":"(Quarterly!EY182-Quarterly!EY181)*100","v":-141},{"$f":"(Quarterly!EZ182-Quarterly!EZ181)*100","v":-136.33333333333331},{"$f":"(Quarterly!FA182-Quarterly!FA181)*100","v":-18.333333333333357},{"$f":"(Quarterly!FB182-Quarterly!FB181)*100","v":-2.6666666666667282},15.666666666666629,{"$f":"(Quarterly!FD182-Quarterly!FD181)*100","v":-18.333333333333179},{"$f":"(Quarterly!FE182-Quarterly!FE181)*100","v":-126.3333333333333},{"$f":"(Quarterly!FF182-Quarterly!FF181)*100","v":-105.99999999999996},{"$f":"(Quarterly!FG182-Quarterly!FG181)*100","v":-76.6666666666667},{"$f":"(Quarterly!FH182-Quarterly!FH181)*100","v":-39.333333333333357},{"$f":"(Quarterly!FI182-Quarterly!FI181)*100","v":-20.999999999999996},84.999999999999957,null,null,null,null,null,{"$f":"((Quarterly!FP182/Quarterly!FP181)^4)-1","v":9.283582150963765E-2},{"$f":"((Quarterly!FQ182/Quarterly!FQ181)^4)-1","v":-9.6651041344153477E-5},{"$f":"((Quarterly!FR182/Quarterly!FR181)^4)-1","v":-7.4996841787977608E-4},{"$f":"((Quarterly!FS182/Quarterly!FS181)^4)-1","v":1.5343834245464372E-2},{"$f":"((Quarterly!FT182/Quarterly!FT181)^4)-1","v":2.4553575606862887E-2},{"$f":"((Quarterly!FU182/Quarterly!FU181)^4)-1","v":3.3383890204150779E-2},{"$f":"((Quarterly!FV182/Quarterly!FV181)^4)-1","v":-5.027924622044555E-2},{"$f":"((Quarterly!FW182/Quarterly!FW181)^4)-1","v":-0.23214480689403483},{"$f":"((Quarterly!FX182/Quarterly!FX181)^4)-1","v":-8.4879999350291557E-2},null,null,null,null,null,{"$f":"((Quarterly!GD182/Quarterly!GD181)^4)-1","v":-0.65383914682034572},{"$f":"((Quarterly!GE182/Quarterly!GE181)^4)-1","v":-0.65801037530851203},{"$f":"((Quarterly!GF182/Quarterly!GF181)^4)-1","v":-0.53825184998850151},{"$f":"((Quarterly!GG182/Quarterly!GG181)^4)-1","v":-0.38401634712398591},{"$f":"((Quarterly!GH182/Quarterly!GH181)^4)-1","v":{"$error":"#DIV/0!"}},"--",{"$f":"((Quarterly!GJ182/Quarterly!GJ181)^4)-1","v":-0.10392353235770102},{"$f":"((Quarterly!GK182/Quarterly!GK181)^4)-1","v":0.17576174475191664},"--"]
["02'Q1",{"$f":"((Quarterly!B183/Quarterly!B182)^4)-1","v":5.0697648971729681E-2},{"$f":"((Quarterly!C183/Quarterly!C182)^4)-1","v":3.7343492203721462E-2},{"$f":"((Quarterly!D183/Quarterly!D182)^4)-1","v":7.9988429963466778E-3},{"$f":"((Quarterly!E183/Quarterly!E182)^4)-1","v":1.2039513371142174E-2},{"$f":"((Quarterly!F183/Quarterly!F182)^4)-1","v":-4.827268589774325E-2},{"$f":"((Quarterly!G183/Quarterly!G182)^4)-1","v":1.4845164862260507E-2},{"$f":"((Quarterly!H183/Quarterly!H182)^4)-1","v":2.4635951223783259E-2},{"$f":"((Quarterly!I183/Quarterly!I182)^4)-1","v":-7.880586847846649E-2},{"$f":"((Quarterly!J183/Quarterly!J182)^4)-1","v":-2.0720995262735076E-2},{"$f":"((Quarterly!K183/Quarterly!K182)^4)-1","v":0.1377159266430712},{"$f":"((Quarterly!L183-Quarterly!L182))","v":93.546999999999997},{"$f":"((Quarterly!M183/Quarterly!M182)^4)-1","v":0.11997576842654079},{"$f":"((Quarterly!N183/Quarterly!N182)^4)-1","v":8.4339961052861678E-2},{"$f":"((Quarterly!O183/Quarterly!O182)^4)-1","v":0.19928001497608383},{"$f":"((Quarterly!P183/Quarterly!P182)^4)-1","v":6.0441454693478835E-2},{"$f":"((Quarterly!Q183/Quarterly!Q182)^4)-1","v":1852.8452145808599},null,null,null,null,null,{"$f":"((Quarterly!W183/Quarterly!W182)^4)-1","v":2.84275123510771E-2},{"$f":"((Quarterly!X183/Quarterly!X182)^4)-1","v":9.0476691556662381E-3},{"$f":"((Quarterly!Y183/Quarterly!Y182)^4)-1","v":-7.4476113153687629E-2},{"$f":"Quarterly!Z183-Quarterly!Z182","v":-3.0000000000000027E-2},{"$f":"((Quarterly!AA183/Quarterly!AA182)^4)-1","v":0.48691378873645008},{"$f":"((Quarterly!AB183/Quarterly!AB182)^4)-1","v":0.80648524244438913},{"$f":"Quarterly!AC183-Quarterly!AC182","v":12.100000000000001},{"$f":"Quarterly!AD183-Quarterly!AD182","v":4.6000000000000014},{"$f":"(Quarterly!AE183-Quarterly!AE182)*100","v":6.0000000000000053},{"$f":"(Quarterly!AF183-Quarterly!AF182)*100","v":-3.0000000000000027},{"$f":"(Quarterly!AG183-Quarterly!AG182)*100","v":16.000000000000014},{"$f":"((Quarterly!AH183/Quarterly!AH182)^4)-1","v":0.33278821640936518},{"$f":"((Quarterly!AI183/Quarterly!AI182)^4)-1","v":0.43132712994654132},{"$f":"((Quarterly!AJ183/Quarterly!AJ182)^4)-1","v":3.9845713500727298E-2},{"$f":"((Quarterly!AK183/Quarterly!AK182)^4)-1","v":3.2386052096000206E-2},{"$f":"((Quarterly!AL183/Quarterly!AL182)^4)-1","v":3.1475959763755945E-2},{"$f":"((Quarterly!AM183/Quarterly!AM182)^4)-1","v":2.8606430586983311E-2},{"$f":"((Quarterly!AN183/Quarterly!AN182)^4)-1","v":4.0818520217883236E-2},{"$f":"((Quarterly!AO183/Quarterly!AO182)^4)-1","v":-5.2674916240787684E-2},{"$f":"(Quarterly!AP183-Quarterly!AP182)*100","v":-1.3333333333333419},{"$f":"Quarterly!AQ183-Quarterly!AQ182","v":6.7999999999999972},{"$f":"Quarterly!AR183-Quarterly!AR182","v":15.333333333333336},{"$f":"Quarterly!AS183-Quarterly!AS182","v":-2.6666666666666714},{"$f":"Quarterly!AT183-Quarterly!AT182","v":6.7666666666666728},{"$f":"Quarterly!AU183-Quarterly!AU182","v":3.1666666666666643},{"$f":"Quarterly!AV183-Quarterly!AV182","v":3.43333333333333},{"$f":"Quarterly!AW183-Quarterly!AW182","v":1.8333333333333428},{"$f":"Quarterly!AX183-Quarterly!AX182","v":13.43333333333333},{"$f":"Quarterly!AY183-Quarterly!AY182","v":12.933333333333337},{"$f":"Quarterly!AZ183-Quarterly!AZ182","v":9.8666666666666742},{"$f":"Quarterly!BA183-Quarterly!BA182","v":2.2000000000000099},{"$f":"Quarterly!BB183-Quarterly!BB182","v":7.93333333333333},{"$f":"((Quarterly!BC183/Quarterly!BC182)^4)-1","v":-0.16561787823805507},{"$f":"((Quarterly!BD183/Quarterly!BD182)^4)-1","v":8.1310012959947997E-2},{"$f":"((Quarterly!BE183/Quarterly!BE182)^4)-1","v":-7.7246633377719309E-2},{"$f":"((Quarterly!BF183/Quarterly!BF182)^4)-1","v":2.0694143567919543E-2},{"$f":"((Quarterly!BG183/Quarterly!BG182)^4)-1","v":9.3029727907688819E-2},{"$f":"((Quarterly!BH183/Quarterly!BH182)^4)-1","v":7.2798571510552801E-3},{"$f":"((Quarterly!BI183/Quarterly!BI182)^4)-1","v":-6.6123526362261154E-2},{"$f":"((Quarterly!BJ183/Quarterly!BJ182)^4)-1","v":3.4190778265907804},{"$f":"((Quarterly!BK183/Quarterly!BK182)^4)-1","v":-8.0765147268036408E-2},null,{"$f":"((Quarterly!BM183/Quarterly!BM182)^4)-1","v":-5.6013410992372337E-2},{"$f":"((Quarterly!BN183/Quarterly!BN182)^4)-1","v":-6.8844439175030581E-2},null,null,null,null,null,{"$f":"((Quarterly!BT183/Quarterly!BT182)^4)-1","v":2.137415522335373E-2},{"$f":"Quarterly!BU183-Quarterly!BU182","v":-0.22741000000000078},{"$f":"Quarterly!BV183-Quarterly!BV182","v":-0.32271000000000072},{"$f":"((Quarterly!BW183/Quarterly!BW182)^4)-1","v":8.1535903203687088E-2},{"$f":"((Quarterly!BX183/Quarterly!BX182)^4)-1","v":0.45058272170911673},{"$f":"((Quarterly!BY183/Quarterly!BY182)^4)-1","v":0.2165940306279639},{"$f":"((Quarterly!BZ183/Quarterly!BZ182)^4)-1","v":7.1029397291613616E-2},{"$f":"((Quarterly!CA183/Quarterly!CA182)^4)-1","v":-0.34436680474807646},{"$f":"((Quarterly!CB183/Quarterly!CB182)^4)-1","v":-0.21970621697680748},{"$f":"((Quarterly!CC183/Quarterly!CC182)^4)-1","v":-0.10384972365672995},"--","--",null,"--","--",null,{"$f":"((Quarterly!CJ183/Quarterly!CJ182)^4)-1","v":-3.2754908200264499E-2},{"$f":"((Quarterly!CK183/Quarterly!CK182)^4)-1","v":1.8403192262255841E-2},{"$f":"((Quarterly!CL183/Quarterly!CL182)^4)-1","v":6.6243526514657702},{"$f":"((Quarterly!CM183/Quarterly!CM182)^4)-1","v":0.41542009579854966},{"$f":"((Quarterly!CN183/Quarterly!CN182)^4)-1","v":0.10088860739628891},{"$f":"((Quarterly!CO183/Quarterly!CO182)^4)-1","v":0.25798646624676769},{"$f":"((Quarterly!CP183/Quarterly!CP182)^4)-1","v":6.5242751782896846E-2},{"$f":"((Quarterly!CQ183/Quarterly!CQ182)^4)-1","v":9.1721460566145385E-3},{"$f":"((Quarterly!CR183/Quarterly!CR182)^4)-1","v":3.1595771507785475E-2},{"$f":"Quarterly!CS183-Quarterly!CS182","v":7.9999999999999858},"--",null,null,null,null,null,{"$f":"((Quarterly!CZ183/Quarterly!CZ182)^4)-1","v":1.2831235194495916E-2},{"$f":"((Quarterly!DA183/Quarterly!DA182)^4)-1","v":2.2171710297493208E-2},null,null,null,null,null,{"$f":"((Quarterly!DG183/Quarterly!DG182)^4)-1","v":-9.2454390447784807E-3},{"$f":"((Quarterly!DH183-Quarterly!DH182)*60)","v":1.9999999999998863},{"$f":"Quarterly!DI183-Quarterly!DI182","v":-6.6666666666662877E-2},{"$f":"(Quarterly!DJ183-Quarterly!DJ182)*100","v":3.3333333333331439},{"$f":"(Quarterly!DK183-Quarterly!DK182)*100","v":20.000000000000018},{"$f":"((Quarterly!DL183/Quarterly!DL182)^4)-1","v":-7.864892402186896E-2},null,null,null,{"$f":"((Quarterly!DP183/Quarterly!DP182)^4)-1","v":-1.3476484264575928E-2},null,null,null,"--",{"$f":"Quarterly!DU183-Quarterly!DU182","v":0.63333333333333375},{"$f":"((Quarterly!DV183/Quarterly!DV182)^4)-1","v":-4.4440636513808141E-2},{"$f":"((Quarterly!DW183/Quarterly!DW182)^4)-1","v":-0.15280448133750324},{"$f":"((Quarterly!DX183/Quarterly!DX182)^4)-1","v":-0.13833870170657281},{"$f":"((Quarterly!DY183/Quarterly!DY182)^4)-1","v":-0.15892287843338515},{"$f":"((Quarterly!DZ183/Quarterly!DZ182)^4)-1","v":-0.13176863552716012},{"$f":"((Quarterly!EA183/Quarterly!EA182)^4)-1","v":-0.13781704965984076},{"$f":"((Quarterly!EB183/Quarterly!EB182)^4)-1","v":-0.11650405057020896},{"$f":"((Quarterly!EC183/Quarterly!EC182)^4)-1","v":-0.18818449724726694},null,null,null,null,null,{"$f":"((Quarterly!EI183/Quarterly!EI182)^4)-1","v":3.3556263708808043E-2},{"$f":"((Quarterly!EJ183/Quarterly!EJ182)^4)-1","v":2.8383459599927052E-2},{"$f":"((Quarterly!EK183/Quarterly!EK182)^4)-1","v":3.4950689461419548E-2},null,null,null,null,null,{"$f":"((Quarterly!EQ183/Quarterly!EQ182)^4)-1","v":-1.5366598678900334E-2},{"$f":"((Quarterly!ER183/Quarterly!ER182)^4)-1","v":-2.6616376510147921E-3},{"$f":"((Quarterly!ES183/Quarterly!ES182)^4)-1","v":-1.7763568394002505E-15},null,null,null,null,null,{"$f":"(Quarterly!EY183-Quarterly!EY182)*100","v":-40.666666666666629},{"$f":"(Quarterly!EZ183-Quarterly!EZ182)*100","v":-40.000000000000014},{"$f":"(Quarterly!FA183-Quarterly!FA182)*100","v":-30.000000000000071},{"$f":"(Quarterly!FB183-Quarterly!FB182)*100","v":3.3333333333333215},33.333333333333393,{"$f":"(Quarterly!FD183-Quarterly!FD182)*100","v":18.333333333333179},{"$f":"(Quarterly!FE183-Quarterly!FE182)*100","v":-18.333333333333357},{"$f":"(Quarterly!FF183-Quarterly!FF182)*100","v":7.6666666666666661},{"$f":"(Quarterly!FG183-Quarterly!FG182)*100","v":33.000000000000007},{"$f":"(Quarterly!FH183-Quarterly!FH182)*100","v":37.000000000000014},{"$f":"(Quarterly!FI183-Quarterly!FI182)*100","v":30.666666666666664},23,null,null,null,null,null,{"$f":"((Quarterly!FP183/Quarterly!FP182)^4)-1","v":3.511700006039975E-2},{"$f":"((Quarterly!FQ183/Quarterly!FQ182)^4)-1","v":1.6110453234996491E-4},{"$f":"((Quarterly!FR183/Quarterly!FR182)^4)-1","v":-5.4945447626675414E-2},{"$f":"((Quarterly!FS183/Quarterly!FS182)^4)-1","v":-7.8066510073842466E-2},{"$f":"((Quarterly!FT183/Quarterly!FT182)^4)-1","v":6.5272227526594895E-2},{"$f":"((Quarterly!FU183/Quarterly!FU182)^4)-1","v":0.1004809497363619},{"$f":"((Quarterly!FV183/Quarterly!FV182)^4)-1","v":1.2180935251342673E-2},{"$f":"((Quarterly!FW183/Quarterly!FW182)^4)-1","v":-0.41519920006708033},{"$f":"((Quarterly!FX183/Quarterly!FX182)^4)-1","v":-0.12464622549005178},null,null,null,null,null,{"$f":"((Quarterly!GD183/Quarterly!GD182)^4)-1","v":0.25838800062650846},{"$f":"((Quarterly!GE183/Quarterly!GE182)^4)-1","v":0.42281401764398274},{"$f":"((Quarterly!GF183/Quarterly!GF182)^4)-1","v":-8.3301450545768874E-2},{"$f":"((Quarterly!GG183/Quarterly!GG182)^4)-1","v":-0.23024930584973069},{"$f":"((Quarterly!GH183/Quarterly!GH182)^4)-1","v":{"$error":"#DIV/0!"}},"--",{"$f":"((Quarterly!GJ183/Quarterly!GJ182)^4)-1","v":-0.27385533546582475},{"$f":"((Quarterly!GK183/Quarterly!GK182)^4)-1","v":-3.8319284092954375E-2},"--"]
["02'Q2",{"$f":"((Quarterly!B184/Quarterly!B183)^4)-1","v":3.7550093094030013E-2},{"$f":"((Quarterly!C184/Quarterly!C183)^4)-1","v":2.2252438917444994E-2},{"$f":"((Quarterly!D184/Quarterly!D183)^4)-1","v":1.3260535493973657E-2},{"$f":"((Quarterly!E184/Quarterly!E183)^4)-1","v":2.0584165085388628E-2},{"$f":"((Quarterly!F184/Quarterly!F183)^4)-1","v":3.9740147734058651E-2},{"$f":"((Quarterly!G184/Quarterly!G183)^4)-1","v":2.01359110708621E-3},{"$f":"((Quarterly!H184/Quarterly!H183)^4)-1","v":2.3149622159838623E-2},{"$f":"((Quarterly!I184/Quarterly!I183)^4)-1","v":-5.2043624237450792E-2},{"$f":"((Quarterly!J184/Quarterly!J183)^4)-1","v":1.9866530277363958E-2},{"$f":"((Quarterly!K184/Quarterly!K183)^4)-1","v":0.10306737285732992},{"$f":"((Quarterly!L184-Quarterly!L183))","v":30.323},{"$f":"((Quarterly!M184/Quarterly!M183)^4)-1","v":0.13145666439003878},{"$f":"((Quarterly!N184/Quarterly!N183)^4)-1","v":0.11411354117696471},{"$f":"((Quarterly!O184/Quarterly!O183)^4)-1","v":0.16834444139397697},{"$f":"((Quarterly!P184/Quarterly!P183)^4)-1","v":3.8893004295857292E-2},{"$f":"((Quarterly!Q184/Quarterly!Q183)^4)-1","v":0.86571885303141061},null,null,null,null,null,{"$f":"((Quarterly!W184/Quarterly!W183)^4)-1","v":5.7047232644182877E-2},{"$f":"((Quarterly!X184/Quarterly!X183)^4)-1","v":5.1342278007522113E-2},{"$f":"((Quarterly!Y184/Quarterly!Y183)^4)-1","v":-8.3431581729243587E-2},{"$f":"Quarterly!Z184-Quarterly!Z183","v":0.19000000000000017},{"$f":"((Quarterly!AA184/Quarterly!AA183)^4)-1","v":0.53535483396752315},{"$f":"((Quarterly!AB184/Quarterly!AB183)^4)-1","v":0.14826342026852002},{"$f":"Quarterly!AC184-Quarterly!AC183","v":-0.19999999999999929},{"$f":"Quarterly!AD184-Quarterly!AD183","v":16.399999999999999},{"$f":"(Quarterly!AE184-Quarterly!AE183)*100","v":1.0000000000000009},{"$f":"(Quarterly!AF184-Quarterly!AF183)*100","v":19.000000000000018},{"$f":"(Quarterly!AG184-Quarterly!AG183)*100","v":0},{"$f":"((Quarterly!AH184/Quarterly!AH183)^4)-1","v":0.33845315020392897},{"$f":"((Quarterly!AI184/Quarterly!AI183)^4)-1","v":0.28671037923179243},{"$f":"((Quarterly!AJ184/Quarterly!AJ183)^4)-1","v":4.9495703020524306E-2},{"$f":"((Quarterly!AK184/Quarterly!AK183)^4)-1","v":4.144532699394099E-2},{"$f":"((Quarterly!AL184/Quarterly!AL183)^4)-1","v":4.0285982198899006E-2},{"$f":"((Quarterly!AM184/Quarterly!AM183)^4)-1","v":6.4153118119824271E-2},{"$f":"((Quarterly!AN184/Quarterly!AN183)^4)-1","v":6.6967031039117053E-2},{"$f":"((Quarterly!AO184/Quarterly!AO183)^4)-1","v":-1.0004085807766683E-2},{"$f":"(Quarterly!AP184-Quarterly!AP183)*100","v":-2.9999999999999583},{"$f":"Quarterly!AQ184-Quarterly!AQ183","v":2.8333333333333357},{"$f":"Quarterly!AR184-Quarterly!AR183","v":2},{"$f":"Quarterly!AS184-Quarterly!AS183","v":-0.3333333333333286},{"$f":"Quarterly!AT184-Quarterly!AT183","v":3.5999999999999943},{"$f":"Quarterly!AU184-Quarterly!AU183","v":2.6333333333333258},{"$f":"Quarterly!AV184-Quarterly!AV183","v":1.8666666666666671},{"$f":"Quarterly!AW184-Quarterly!AW183","v":3.2333333333333343},{"$f":"Quarterly!AX184-Quarterly!AX183","v":1.0666666666666629},{"$f":"Quarterly!AY184-Quarterly!AY183","v":17.166666666666664},{"$f":"Quarterly!AZ184-Quarterly!AZ183","v":4.0333333333333314},{"$f":"Quarterly!BA184-Quarterly!BA183","v":2.2666666666666728},{"$f":"Quarterly!BB184-Quarterly!BB183","v":2.8333333333333286},{"$f":"((Quarterly!BC184/Quarterly!BC183)^4)-1","v":0.11606732539818276},{"$f":"((Quarterly!BD184/Quarterly!BD183)^4)-1","v":5.8810805034991809E-2},{"$f":"((Quarterly!BE184/Quarterly!BE183)^4)-1","v":-5.5900890174591655E-3},{"$f":"((Quarterly!BF184/Quarterly!BF183)^4)-1","v":3.5606378798972216E-2},{"$f":"((Quarterly!BG184/Quarterly!BG183)^4)-1","v":2.8513815213446758E-3},{"$f":"((Quarterly!BH184/Quarterly!BH183)^4)-1","v":3.4796597809327867E-3},{"$f":"((Quarterly!BI184/Quarterly!BI183)^4)-1","v":3.2593637548567589E-2},{"$f":"((Quarterly!BJ184/Quarterly!BJ183)^4)-1","v":1.7339004323917009},{"$f":"((Quarterly!BK184/Quarterly!BK183)^4)-1","v":0.65807236119141144},null,{"$f":"((Quarterly!BM184/Quarterly!BM183)^4)-1","v":3.9565474019980895E-2},{"$f":"((Quarterly!BN184/Quarterly!BN183)^4)-1","v":4.0213222654681191E-2},null,null,null,null,null,{"$f":"((Quarterly!BT184/Quarterly!BT183)^4)-1","v":4.4815965077189546E-2},{"$f":"Quarterly!BU184-Quarterly!BU183","v":-6.0430000000000206E-2},{"$f":"Quarterly!BV184-Quarterly!BV183","v":-0.10395999999999717},{"$f":"((Quarterly!BW184/Quarterly!BW183)^4)-1","v":9.0250764439179454E-2},{"$f":"((Quarterly!BX184/Quarterly!BX183)^4)-1","v":-7.224496367315858E-2},{"$f":"((Quarterly!BY184/Quarterly!BY183)^4)-1","v":0},{"$f":"((Quarterly!BZ184/Quarterly!BZ183)^4)-1","v":0.12484058054992708},{"$f":"((Quarterly!CA184/Quarterly!CA183)^4)-1","v":-1.5978850116672327E-2},{"$f":"((Quarterly!CB184/Quarterly!CB183)^4)-1","v":0.1328970549578774},{"$f":"((Quarterly!CC184/Quarterly!CC183)^4)-1","v":0.11964587783499425},"--","--",null,"--","--",null,{"$f":"((Quarterly!CJ184/Quarterly!CJ183)^4)-1","v":0.18623411128880263},{"$f":"((Quarterly!CK184/Quarterly!CK183)^4)-1","v":3.6782490828423553E-2},{"$f":"((Quarterly!CL184/Quarterly!CL183)^4)-1","v":3.5769609815085035E-2},{"$f":"((Quarterly!CM184/Quarterly!CM183)^4)-1","v":-6.0832813365194638E-2},{"$f":"((Quarterly!CN184/Quarterly!CN183)^4)-1","v":2.0444182595546811E-2},{"$f":"((Quarterly!CO184/Quarterly!CO183)^4)-1","v":0.17044047310272159},{"$f":"((Quarterly!CP184/Quarterly!CP183)^4)-1","v":7.4076853106716412E-2},{"$f":"((Quarterly!CQ184/Quarterly!CQ183)^4)-1","v":8.9126175242857375E-3},{"$f":"((Quarterly!CR184/Quarterly!CR183)^4)-1","v":7.0347112506479625E-2},{"$f":"Quarterly!CS184-Quarterly!CS183","v":0.96666666666668277},"--",null,null,null,null,null,{"$f":"((Quarterly!CZ184/Quarterly!CZ183)^4)-1","v":3.1821730752178201E-2},{"$f":"((Quarterly!DA184/Quarterly!DA183)^4)-1","v":2.0616046821008371E-2},null,null,null,null,null,{"$f":"((Quarterly!DG184/Quarterly!DG183)^4)-1","v":-5.3032697217860747E-3},{"$f":"((Quarterly!DH184-Quarterly!DH183)*60)","v":3.9999999999997726},{"$f":"Quarterly!DI184-Quarterly!DI183","v":3.3333333333331439E-2},{"$f":"(Quarterly!DJ184-Quarterly!DJ183)*100","v":9.9999999999999645},{"$f":"(Quarterly!DK184-Quarterly!DK183)*100","v":13.333333333333286},{"$f":"((Quarterly!DL184/Quarterly!DL183)^4)-1","v":-4.3778428082370979E-2},null,null,null,{"$f":"((Quarterly!DP184/Quarterly!DP183)^4)-1","v":-3.7264858455562377E-3},null,null,null,"--",{"$f":"Quarterly!DU184-Quarterly!DU183","v":1.4333333333333318},{"$f":"((Quarterly!DV184/Quarterly!DV183)^4)-1","v":-1.7107488353064415E-2},{"$f":"((Quarterly!DW184/Quarterly!DW183)^4)-1","v":7.3233306087684635E-2},{"$f":"((Quarterly!DX184/Quarterly!DX183)^4)-1","v":2.6625816140021463E-2},{"$f":"((Quarterly!DY184/Quarterly!DY183)^4)-1","v":0.1255993077182318},{"$f":"((Quarterly!DZ184/Quarterly!DZ183)^4)-1","v":-2.9583043439644907E-3},{"$f":"((Quarterly!EA184/Quarterly!EA183)^4)-1","v":-1.6253007619925874E-2},{"$f":"((Quarterly!EB184/Quarterly!EB183)^4)-1","v":3.0669123556802402E-2},{"$f":"((Quarterly!EC184/Quarterly!EC183)^4)-1","v":0.19867073086005993},null,null,null,null,null,{"$f":"((Quarterly!EI184/Quarterly!EI183)^4)-1","v":1.8239041757763808E-2},{"$f":"((Quarterly!EJ184/Quarterly!EJ183)^4)-1","v":2.719730976777246E-3},{"$f":"((Quarterly!EK184/Quarterly!EK183)^4)-1","v":8.2850891662484827E-3},null,null,null,null,null,{"$f":"((Quarterly!EQ184/Quarterly!EQ183)^4)-1","v":6.1358142420309791E-2},{"$f":"((Quarterly!ER184/Quarterly!ER183)^4)-1","v":8.0222439487460662E-3},{"$f":"((Quarterly!ES184/Quarterly!ES183)^4)-1","v":-4.7726916413945997E-3},null,null,null,null,null,{"$f":"(Quarterly!EY184-Quarterly!EY183)*100","v":0},{"$f":"(Quarterly!EZ184-Quarterly!EZ183)*100","v":1.6666666666666829},{"$f":"(Quarterly!FA184-Quarterly!FA183)*100","v":9.0000000000001634},{"$f":"(Quarterly!FB184-Quarterly!FB183)*100","v":6.6666666666665542},-2.3333333333336093,{"$f":"(Quarterly!FD184-Quarterly!FD183)*100","v":-14.999999999999858},{"$f":"(Quarterly!FE184-Quarterly!FE183)*100","v":-0.66666666666665986},{"$f":"(Quarterly!FF184-Quarterly!FF183)*100","v":2.3333333333332984},{"$f":"(Quarterly!FG184-Quarterly!FG183)*100","v":2.0000000000000018},{"$f":"(Quarterly!FH184-Quarterly!FH183)*100","v":-1.6666666666665719},{"$f":"(Quarterly!FI184-Quarterly!FI183)*100","v":2.3333333333333428},4.4408920985006262E-14,null,null,null,null,null,{"$f":"((Quarterly!FP184/Quarterly!FP183)^4)-1","v":-9.6858359404616512E-2},{"$f":"((Quarterly!FQ184/Quarterly!FQ183)^4)-1","v":-3.2217273288392967E-5},{"$f":"((Quarterly!FR184/Quarterly!FR183)^4)-1","v":0.1724940236169854},{"$f":"((Quarterly!FS184/Quarterly!FS183)^4)-1","v":0.21036551151303406},{"$f":"((Quarterly!FT184/Quarterly!FT183)^4)-1","v":-6.4499384158719475E-2},{"$f":"((Quarterly!FU184/Quarterly!FU183)^4)-1","v":-0.14151725728416653},{"$f":"((Quarterly!FV184/Quarterly!FV183)^4)-1","v":0.4033302362483866},{"$f":"((Quarterly!FW184/Quarterly!FW183)^4)-1","v":1.4588282970006259},{"$f":"((Quarterly!FX184/Quarterly!FX183)^4)-1","v":0.55995634820876838},null,null,null,null,null,{"$f":"((Quarterly!GD184/Quarterly!GD183)^4)-1","v":1.1838420475450322},{"$f":"((Quarterly!GE184/Quarterly!GE183)^4)-1","v":0.97510438951780132},{"$f":"((Quarterly!GF184/Quarterly!GF183)^4)-1","v":1.0071206931649916},{"$f":"((Quarterly!GG184/Quarterly!GG183)^4)-1","v":0.48149692902668706},{"$f":"((Quarterly!GH184/Quarterly!GH183)^4)-1","v":{"$error":"#DIV/0!"}},"--",{"$f":"((Quarterly!GJ184/Quarterly!GJ183)^4)-1","v":2.5239106547443182},{"$f":"((Quarterly!GK184/Quarterly!GK183)^4)-1","v":-0.1242759234541515},"--"]
["02'Q3",{"$f":"((Quarterly!B185/Quarterly!B184)^4)-1","v":3.7952288954840485E-2},{"$f":"((Quarterly!C185/Quarterly!C184)^4)-1","v":1.961586363740242E-2},{"$f":"((Quarterly!D185/Quarterly!D184)^4)-1","v":1.737272094670983E-2},{"$f":"((Quarterly!E185/Quarterly!E184)^4)-1","v":2.8258699332984305E-2},{"$f":"((Quarterly!F185/Quarterly!F184)^4)-1","v":0.12254701397301249},{"$f":"((Quarterly!G185/Quarterly!G184)^4)-1","v":9.8138278040078575E-3},{"$f":"((Quarterly!H185/Quarterly!H184)^4)-1","v":1.5864071943049174E-2},{"$f":"((Quarterly!I185/Quarterly!I184)^4)-1","v":-2.3402571512668002E-2},{"$f":"((Quarterly!J185/Quarterly!J184)^4)-1","v":4.5422701755959416E-2},{"$f":"((Quarterly!K185/Quarterly!K184)^4)-1","v":1.1881870679841366E-2},{"$f":"((Quarterly!L185-Quarterly!L184))","v":5.9449999999999967},{"$f":"((Quarterly!M185/Quarterly!M184)^4)-1","v":6.0601680726874552E-2},{"$f":"((Quarterly!N185/Quarterly!N184)^4)-1","v":2.8826343642771146E-2},{"$f":"((Quarterly!O185/Quarterly!O184)^4)-1","v":0.12852903551276929},{"$f":"((Quarterly!P185/Quarterly!P184)^4)-1","v":3.1336767674992938E-2},{"$f":"((Quarterly!Q185/Quarterly!Q184)^4)-1","v":0.16520391877118334},null,null,null,null,null,{"$f":"((Quarterly!W185/Quarterly!W184)^4)-1","v":3.3469921873683139E-2},{"$f":"((Quarterly!X185/Quarterly!X184)^4)-1","v":2.1494977942107196E-2},{"$f":"((Quarterly!Y185/Quarterly!Y184)^4)-1","v":-7.8431055173046382E-2},{"$f":"Quarterly!Z185-Quarterly!Z184","v":0.1399999999999999},{"$f":"((Quarterly!AA185/Quarterly!AA184)^4)-1","v":0.46285652392032439},{"$f":"((Quarterly!AB185/Quarterly!AB184)^4)-1","v":0.12827173262817437},{"$f":"Quarterly!AC185-Quarterly!AC184","v":-7.7000000000000028},{"$f":"Quarterly!AD185-Quarterly!AD184","v":-7.3999999999999986},{"$f":"(Quarterly!AE185-Quarterly!AE184)*100","v":3.0000000000000027},{"$f":"(Quarterly!AF185-Quarterly!AF184)*100","v":13.999999999999989},{"$f":"(Quarterly!AG185-Quarterly!AG184)*100","v":1.0000000000000009},{"$f":"((Quarterly!AH185/Quarterly!AH184)^4)-1","v":0.29676627544130008},{"$f":"((Quarterly!AI185/Quarterly!AI184)^4)-1","v":0.23421378572958362},{"$f":"((Quarterly!AJ185/Quarterly!AJ184)^4)-1","v":3.8972320481222233E-2},{"$f":"((Quarterly!AK185/Quarterly!AK184)^4)-1","v":2.2636342165261336E-2},{"$f":"((Quarterly!AL185/Quarterly!AL184)^4)-1","v":1.7581996649910892E-2},{"$f":"((Quarterly!AM185/Quarterly!AM184)^4)-1","v":2.4718114718545348E-2},{"$f":"((Quarterly!AN185/Quarterly!AN184)^4)-1","v":3.2985144941493516E-2},{"$f":"((Quarterly!AO185/Quarterly!AO184)^4)-1","v":4.6670824088161478E-2},{"$f":"(Quarterly!AP185-Quarterly!AP184)*100","v":0.33333333333331883},{"$f":"Quarterly!AQ185-Quarterly!AQ184","v":-2.6999999999999957},{"$f":"Quarterly!AR185-Quarterly!AR184","v":-10.333333333333336},{"$f":"Quarterly!AS185-Quarterly!AS184","v":0.5},{"$f":"Quarterly!AT185-Quarterly!AT184","v":-1.5333333333333314},{"$f":"Quarterly!AU185-Quarterly!AU184","v":3.3333333333331439E-2},{"$f":"Quarterly!AV185-Quarterly!AV184","v":-0.89999999999999858},{"$f":"Quarterly!AW185-Quarterly!AW184","v":0.63333333333332575},{"$f":"Quarterly!AX185-Quarterly!AX184","v":-9.1666666666666572},{"$f":"Quarterly!AY185-Quarterly!AY184","v":1.1666666666666714},{"$f":"Quarterly!AZ185-Quarterly!AZ184","v":-4.8666666666666671},{"$f":"Quarterly!BA185-Quarterly!BA184","v":1.2666666666666657},{"$f":"Quarterly!BB185-Quarterly!BB184","v":-4.6666666666666643},{"$f":"((Quarterly!BC185/Quarterly!BC184)^4)-1","v":-2.7034756789719006E-2},{"$f":"((Quarterly!BD185/Quarterly!BD184)^4)-1","v":5.8703581087125478E-2},{"$f":"((Quarterly!BE185/Quarterly!BE184)^4)-1","v":-2.6924796178004695E-2},{"$f":"((Quarterly!BF185/Quarterly!BF184)^4)-1","v":1.9790270032763901E-2},{"$f":"((Quarterly!BG185/Quarterly!BG184)^4)-1","v":3.1392385668629341E-2},{"$f":"((Quarterly!BH185/Quarterly!BH184)^4)-1","v":-2.1154611707104864E-3},{"$f":"((Quarterly!BI185/Quarterly!BI184)^4)-1","v":-1.1237421869071285E-2},{"$f":"((Quarterly!BJ185/Quarterly!BJ184)^4)-1","v":0.99310431047669301},{"$f":"((Quarterly!BK185/Quarterly!BK184)^4)-1","v":0.3986758056640618},null,{"$f":"((Quarterly!BM185/Quarterly!BM184)^4)-1","v":4.8357969789818434E-2},{"$f":"((Quarterly!BN185/Quarterly!BN184)^4)-1","v":5.0682053980412922E-2},null,null,null,null,null,{"$f":"((Quarterly!BT185/Quarterly!BT184)^4)-1","v":5.731394140537982E-2},{"$f":"Quarterly!BU185-Quarterly!BU184","v":4.4310000000001182E-2},{"$f":"Quarterly!BV185-Quarterly!BV184","v":3.2499999999998863E-2},{"$f":"((Quarterly!BW185/Quarterly!BW184)^4)-1","v":5.5274847740278243E-2},{"$f":"((Quarterly!BX185/Quarterly!BX184)^4)-1","v":1.5065648210815574E-2},{"$f":"((Quarterly!BY185/Quarterly!BY184)^4)-1","v":7.4317015251738505E-2},{"$f":"((Quarterly!BZ185/Quarterly!BZ184)^4)-1","v":0.1437281078817052},{"$f":"((Quarterly!CA185/Quarterly!CA184)^4)-1","v":0.21145372464960044},{"$f":"((Quarterly!CB185/Quarterly!CB184)^4)-1","v":9.1553500424692125E-2},{"$f":"((Quarterly!CC185/Quarterly!CC184)^4)-1","v":3.1827543984199957E-2},"--","--",null,"--","--",null,{"$f":"((Quarterly!CJ185/Quarterly!CJ184)^4)-1","v":0.21461942377150334},{"$f":"((Quarterly!CK185/Quarterly!CK184)^4)-1","v":1.4992550336998534E-2},{"$f":"((Quarterly!CL185/Quarterly!CL184)^4)-1","v":-0.44445375877809412},{"$f":"((Quarterly!CM185/Quarterly!CM184)^4)-1","v":-3.0289721460620256E-2},{"$f":"((Quarterly!CN185/Quarterly!CN184)^4)-1","v":-5.1603153524658607E-3},{"$f":"((Quarterly!CO185/Quarterly!CO184)^4)-1","v":0.20201516925642027},{"$f":"((Quarterly!CP185/Quarterly!CP184)^4)-1","v":6.531726235171087E-2},{"$f":"((Quarterly!CQ185/Quarterly!CQ184)^4)-1","v":1.0232755683841965E-2},{"$f":"((Quarterly!CR185/Quarterly!CR184)^4)-1","v":6.3046359023155585E-2},{"$f":"Quarterly!CS185-Quarterly!CS184","v":-6.833333333333357},"--",null,null,null,null,null,{"$f":"((Quarterly!CZ185/Quarterly!CZ184)^4)-1","v":2.1720020688024144E-2},{"$f":"((Quarterly!DA185/Quarterly!DA184)^4)-1","v":2.1223173240516591E-2},null,null,null,null,null,{"$f":"((Quarterly!DG185/Quarterly!DG184)^4)-1","v":-1.5867453974562462E-2},{"$f":"((Quarterly!DH185-Quarterly!DH184)*60)","v":-1.9999999999998863},{"$f":"Quarterly!DI185-Quarterly!DI184","v":-6.6666666666662877E-2},{"$f":"(Quarterly!DJ185-Quarterly!DJ184)*100","v":3.3333333333333215},{"$f":"(Quarterly!DK185-Quarterly!DK184)*100","v":-9.9999999999999645},{"$f":"((Quarterly!DL185/Quarterly!DL184)^4)-1","v":-4.115084087614751E-2},null,null,null,{"$f":"((Quarterly!DP185/Quarterly!DP184)^4)-1","v":-2.3757469485393701E-3},null,null,null,"--",{"$f":"Quarterly!DU185-Quarterly!DU184","v":-0.66666666666666607},{"$f":"((Quarterly!DV185/Quarterly!DV184)^4)-1","v":-2.7343763469621751E-2},{"$f":"((Quarterly!DW185/Quarterly!DW184)^4)-1","v":2.8216432704638139E-2},{"$f":"((Quarterly!DX185/Quarterly!DX184)^4)-1","v":3.6465600334907311E-3},{"$f":"((Quarterly!DY185/Quarterly!DY184)^4)-1","v":6.7698291353922579E-2},{"$f":"((Quarterly!DZ185/Quarterly!DZ184)^4)-1","v":-1.6384419374139148E-2},{"$f":"((Quarterly!EA185/Quarterly!EA184)^4)-1","v":-3.1420589674563737E-2},{"$f":"((Quarterly!EB185/Quarterly!EB184)^4)-1","v":2.1298163982842233E-2},{"$f":"((Quarterly!EC185/Quarterly!EC184)^4)-1","v":9.0110986315716124E-2},null,null,null,null,null,{"$f":"((Quarterly!EI185/Quarterly!EI184)^4)-1","v":3.2176102273509644E-2},{"$f":"((Quarterly!EJ185/Quarterly!EJ184)^4)-1","v":4.3382418955760782E-2},{"$f":"((Quarterly!EK185/Quarterly!EK184)^4)-1","v":3.4390162143550507E-2},null,null,null,null,null,{"$f":"((Quarterly!EQ185/Quarterly!EQ184)^4)-1","v":2.572215985543358E-2},{"$f":"((Quarterly!ER185/Quarterly!ER184)^4)-1","v":-7.0764870330345397E-3},{"$f":"((Quarterly!ES185/Quarterly!ES184)^4)-1","v":-1.2388176926355632E-2},null,null,null,null,null,{"$f":"(Quarterly!EY185-Quarterly!EY184)*100","v":0},{"$f":"(Quarterly!EZ185-Quarterly!EZ184)*100","v":-1.0000000000000009},{"$f":"(Quarterly!FA185-Quarterly!FA184)*100","v":-36.333333333333329},{"$f":"(Quarterly!FB185-Quarterly!FB184)*100","v":-39.666666666666387},-3.3333333333330586,{"$f":"(Quarterly!FD185-Quarterly!FD184)*100","v":-52.666666666666728},{"$f":"(Quarterly!FE185-Quarterly!FE184)*100","v":-7.3333333333333472},{"$f":"(Quarterly!FF185-Quarterly!FF184)*100","v":-53},{"$f":"(Quarterly!FG185-Quarterly!FG184)*100","v":-99.333333333333314},{"$f":"(Quarterly!FH185-Quarterly!FH184)*100","v":-109.6666666666668},{"$f":"(Quarterly!FI185-Quarterly!FI184)*100","v":-83.999999999999986},-30.999999999999986,null,null,null,null,null,{"$f":"((Quarterly!FP185/Quarterly!FP184)^4)-1","v":2.388419500089034E-2},{"$f":"((Quarterly!FQ185/Quarterly!FQ184)^4)-1","v":-6.4434287073811269E-5},{"$f":"((Quarterly!FR185/Quarterly!FR184)^4)-1","v":0.18724953198021077},{"$f":"((Quarterly!FS185/Quarterly!FS184)^4)-1","v":0.3107302990958658},{"$f":"((Quarterly!FT185/Quarterly!FT184)^4)-1","v":-6.0908081092450383E-2},{"$f":"((Quarterly!FU185/Quarterly!FU184)^4)-1","v":-0.15441209190348426},{"$f":"((Quarterly!FV185/Quarterly!FV184)^4)-1","v":-0.18417732015699306},{"$f":"((Quarterly!FW185/Quarterly!FW184)^4)-1","v":1.2096183334182},{"$f":"((Quarterly!FX185/Quarterly!FX184)^4)-1","v":-1.7765176635125668E-2},null,null,null,null,null,{"$f":"((Quarterly!GD185/Quarterly!GD184)^4)-1","v":0.35252719748145722},{"$f":"((Quarterly!GE185/Quarterly!GE184)^4)-1","v":0.33500639724614611},{"$f":"((Quarterly!GF185/Quarterly!GF184)^4)-1","v":1.2791322320905074E-2},{"$f":"((Quarterly!GG185/Quarterly!GG184)^4)-1","v":0.14922967145968258},{"$f":"((Quarterly!GH185/Quarterly!GH184)^4)-1","v":{"$error":"#DIV/0!"}},"--",{"$f":"((Quarterly!GJ185/Quarterly!GJ184)^4)-1","v":-0.22413602063217508},{"$f":"((Quarterly!GK185/Quarterly!GK184)^4)-1","v":-3.1078210263580597E-2},"--"]
["02'Q4",{"$f":"((Quarterly!B186/Quarterly!B185)^4)-1","v":2.4421537314027741E-2},{"$f":"((Quarterly!C186/Quarterly!C185)^4)-1","v":2.5486338291356159E-3},{"$f":"((Quarterly!D186/Quarterly!D185)^4)-1","v":1.6256288702376498E-3},{"$f":"((Quarterly!E186/Quarterly!E185)^4)-1","v":2.1654015869725596E-2},{"$f":"((Quarterly!F186/Quarterly!F185)^4)-1","v":-5.4085773441254315E-2},{"$f":"((Quarterly!G186/Quarterly!G185)^4)-1","v":5.3261149780372996E-2},{"$f":"((Quarterly!H186/Quarterly!H185)^4)-1","v":2.7129127910346051E-2},{"$f":"((Quarterly!I186/Quarterly!I185)^4)-1","v":-4.7122530052092881E-2},{"$f":"((Quarterly!J186/Quarterly!J185)^4)-1","v":-4.4096355533997711E-2},{"$f":"((Quarterly!K186/Quarterly!K185)^4)-1","v":7.3991110936197924E-2},{"$f":"((Quarterly!L186-Quarterly!L185))","v":2.6780000000000044},{"$f":"((Quarterly!M186/Quarterly!M185)^4)-1","v":8.7276154545752549E-2},{"$f":"((Quarterly!N186/Quarterly!N185)^4)-1","v":-5.3059106607179829E-2},{"$f":"((Quarterly!O186/Quarterly!O185)^4)-1","v":0.41726999056372516},{"$f":"((Quarterly!P186/Quarterly!P185)^4)-1","v":2.883606375435499E-2},{"$f":"((Quarterly!Q186/Quarterly!Q185)^4)-1","v":0.58383164773175911},null,null,null,null,null,{"$f":"((Quarterly!W186/Quarterly!W185)^4)-1","v":-5.4532933624005242E-3},{"$f":"((Quarterly!X186/Quarterly!X185)^4)-1","v":-1.7663939165791787E-3},{"$f":"((Quarterly!Y186/Quarterly!Y185)^4)-1","v":-4.6078533715574466E-2},{"$f":"Quarterly!Z186-Quarterly!Z185","v":1.0000000000000009E-2},{"$f":"((Quarterly!AA186/Quarterly!AA185)^4)-1","v":0.57559395973420457},{"$f":"((Quarterly!AB186/Quarterly!AB185)^4)-1","v":0.38009415817898318},{"$f":"Quarterly!AC186-Quarterly!AC185","v":3.6000000000000014},{"$f":"Quarterly!AD186-Quarterly!AD185","v":-11.800000000000004},{"$f":"(Quarterly!AE186-Quarterly!AE185)*100","v":-4.0000000000000036},{"$f":"(Quarterly!AF186-Quarterly!AF185)*100","v":1.0000000000000009},{"$f":"(Quarterly!AG186-Quarterly!AG185)*100","v":-1.0000000000000009},{"$f":"((Quarterly!AH186/Quarterly!AH185)^4)-1","v":0.28770021196307094},{"$f":"((Quarterly!AI186/Quarterly!AI185)^4)-1","v":0.26869675865089149},{"$f":"((Quarterly!AJ186/Quarterly!AJ185)^4)-1","v":4.3498237019236274E-2},{"$f":"((Quarterly!AK186/Quarterly!AK185)^4)-1","v":2.7055970359375126E-2},{"$f":"((Quarterly!AL186/Quarterly!AL185)^4)-1","v":1.3107416690694595E-2},{"$f":"((Quarterly!AM186/Quarterly!AM185)^4)-1","v":-1.974079808011231E-3},{"$f":"((Quarterly!AN186/Quarterly!AN185)^4)-1","v":-3.2504100183691209E-3},{"$f":"((Quarterly!AO186/Quarterly!AO185)^4)-1","v":4.1003628962871019E-2},{"$f":"(Quarterly!AP186-Quarterly!AP185)*100","v":0.66666666666665986},{"$f":"Quarterly!AQ186-Quarterly!AQ185","v":-0.63333333333333997},{"$f":"Quarterly!AR186-Quarterly!AR185","v":-0.8333333333333357},{"$f":"Quarterly!AS186-Quarterly!AS185","v":2.1666666666666643},{"$f":"Quarterly!AT186-Quarterly!AT185","v":0.36666666666666003},{"$f":"Quarterly!AU186-Quarterly!AU185","v":-1.4666666666666615},{"$f":"Quarterly!AV186-Quarterly!AV185","v":-0.60000000000000142},{"$f":"Quarterly!AW186-Quarterly!AW185","v":-0.53333333333332433},{"$f":"Quarterly!AX186-Quarterly!AX185","v":1.7666666666666586},{"$f":"Quarterly!AY186-Quarterly!AY185","v":-7.13333333333334},{"$f":"Quarterly!AZ186-Quarterly!AZ185","v":-2.3666666666666671},{"$f":"Quarterly!BA186-Quarterly!BA185","v":-2.2333333333333343},{"$f":"Quarterly!BB186-Quarterly!BB185","v":2.1666666666666643},{"$f":"((Quarterly!BC186/Quarterly!BC185)^4)-1","v":-3.9626165144864722E-2},{"$f":"((Quarterly!BD186/Quarterly!BD185)^4)-1","v":3.8487806388627588E-2},{"$f":"((Quarterly!BE186/Quarterly!BE185)^4)-1","v":1.3415927498208191E-3},{"$f":"((Quarterly!BF186/Quarterly!BF185)^4)-1","v":9.6581625221097145E-3},{"$f":"((Quarterly!BG186/Quarterly!BG185)^4)-1","v":-7.0192991225613843E-3},{"$f":"((Quarterly!BH186/Quarterly!BH185)^4)-1","v":-1.3362301479052263E-2},{"$f":"((Quarterly!BI186/Quarterly!BI185)^4)-1","v":1.6819420892675074E-2},{"$f":"((Quarterly!BJ186/Quarterly!BJ185)^4)-1","v":1.1025157711838931},{"$f":"((Quarterly!BK186/Quarterly!BK185)^4)-1","v":2.3187442909737621E-2},null,{"$f":"((Quarterly!BM186/Quarterly!BM185)^4)-1","v":1.609267001996928E-2},{"$f":"((Quarterly!BN186/Quarterly!BN185)^4)-1","v":1.4978719841917121E-2},null,null,null,null,null,{"$f":"((Quarterly!BT186/Quarterly!BT185)^4)-1","v":0.137787846946547},{"$f":"Quarterly!BU186-Quarterly!BU185","v":-1.5850000000000364E-2},{"$f":"Quarterly!BV186-Quarterly!BV185","v":-6.530000000000058E-2},{"$f":"((Quarterly!BW186/Quarterly!BW185)^4)-1","v":8.2349581006134986E-2},{"$f":"((Quarterly!BX186/Quarterly!BX185)^4)-1","v":7.8403038488876975E-2},{"$f":"((Quarterly!BY186/Quarterly!BY185)^4)-1","v":0.18762671408628395},{"$f":"((Quarterly!BZ186/Quarterly!BZ185)^4)-1","v":0.12448444856712659},{"$f":"((Quarterly!CA186/Quarterly!CA185)^4)-1","v":-0.18128569837013597},{"$f":"((Quarterly!CB186/Quarterly!CB185)^4)-1","v":0.52295078849760945},{"$f":"((Quarterly!CC186/Quarterly!CC185)^4)-1","v":0.3596306355393637},"--","--",null,"--","--",null,{"$f":"((Quarterly!CJ186/Quarterly!CJ185)^4)-1","v":8.7680819375671071E-2},{"$f":"((Quarterly!CK186/Quarterly!CK185)^4)-1","v":3.0842518759954141E-2},{"$f":"((Quarterly!CL186/Quarterly!CL185)^4)-1","v":6.5919394697619094E-2},{"$f":"((Quarterly!CM186/Quarterly!CM185)^4)-1","v":0.17925311679230282},{"$f":"((Quarterly!CN186/Quarterly!CN185)^4)-1","v":1.9376244766420969E-2},{"$f":"((Quarterly!CO186/Quarterly!CO185)^4)-1","v":0.2179310737015534},{"$f":"((Quarterly!CP186/Quarterly!CP185)^4)-1","v":3.9690791098017764E-2},{"$f":"((Quarterly!CQ186/Quarterly!CQ185)^4)-1","v":1.0239260051810195E-2},{"$f":"((Quarterly!CR186/Quarterly!CR185)^4)-1","v":5.2745379614131283E-2},{"$f":"Quarterly!CS186-Quarterly!CS185","v":-3.4333333333333229},"--",null,null,null,null,null,{"$f":"((Quarterly!CZ186/Quarterly!CZ185)^4)-1","v":2.3857292671886521E-2},{"$f":"((Quarterly!DA186/Quarterly!DA185)^4)-1","v":1.8277207436556919E-2},null,null,null,null,null,{"$f":"((Quarterly!DG186/Quarterly!DG185)^4)-1","v":-1.0641741059774779E-2},{"$f":"((Quarterly!DH186-Quarterly!DH185)*60)","v":-4.000000000000199},{"$f":"Quarterly!DI186-Quarterly!DI185","v":-0.1666666666666714},{"$f":"(Quarterly!DJ186-Quarterly!DJ185)*100","v":9.9999999999999645},{"$f":"(Quarterly!DK186-Quarterly!DK185)*100","v":13.333333333333375},{"$f":"((Quarterly!DL186/Quarterly!DL185)^4)-1","v":-5.0141771472189345E-2},null,null,null,{"$f":"((Quarterly!DP186/Quarterly!DP185)^4)-1","v":1.0215416786631959E-3},null,null,null,"--",{"$f":"Quarterly!DU186-Quarterly!DU185","v":0.36666666666666714},{"$f":"((Quarterly!DV186/Quarterly!DV185)^4)-1","v":6.7219066485806334E-3},{"$f":"((Quarterly!DW186/Quarterly!DW185)^4)-1","v":-1.5793100213644329E-2},{"$f":"((Quarterly!DX186/Quarterly!DX185)^4)-1","v":1.3642799494153257E-2},{"$f":"((Quarterly!DY186/Quarterly!DY185)^4)-1","v":-3.0161208326940692E-2},{"$f":"((Quarterly!DZ186/Quarterly!DZ185)^4)-1","v":2.838369782505179E-2},{"$f":"((Quarterly!EA186/Quarterly!EA185)^4)-1","v":3.7022045094945888E-2},{"$f":"((Quarterly!EB186/Quarterly!EB185)^4)-1","v":7.6652476054490659E-3},{"$f":"((Quarterly!EC186/Quarterly!EC185)^4)-1","v":-8.3603112191095841E-2},null,null,null,null,null,{"$f":"((Quarterly!EI186/Quarterly!EI185)^4)-1","v":-1.0763004395169751E-2},{"$f":"((Quarterly!EJ186/Quarterly!EJ185)^4)-1","v":5.6926429996848604E-3},{"$f":"((Quarterly!EK186/Quarterly!EK185)^4)-1","v":1.8087130590813461E-2},null,null,null,null,null,{"$f":"((Quarterly!EQ186/Quarterly!EQ185)^4)-1","v":4.3214819756994149E-2},{"$f":"((Quarterly!ER186/Quarterly!ER185)^4)-1","v":8.8879007960196432E-4},{"$f":"((Quarterly!ES186/Quarterly!ES185)^4)-1","v":4.8105746068349831E-3},null,null,null,null,null,{"$f":"(Quarterly!EY186-Quarterly!EY185)*100","v":-29.999999999999982},{"$f":"(Quarterly!EZ186-Quarterly!EZ185)*100","v":-29.666666666666664},{"$f":"(Quarterly!FA186-Quarterly!FA185)*100","v":-7.0000000000000284},{"$f":"(Quarterly!FB186-Quarterly!FB185)*100","v":-2.6666666666667282},4.3333333333333002,{"$f":"(Quarterly!FD186-Quarterly!FD185)*100","v":-21.333333333333293},{"$f":"(Quarterly!FE186-Quarterly!FE185)*100","v":-31.000000000000007},{"$f":"(Quarterly!FF186-Quarterly!FF185)*100","v":-28.333333333333321},{"$f":"(Quarterly!FG186-Quarterly!FG185)*100","v":-34.000000000000007},{"$f":"(Quarterly!FH186-Quarterly!FH185)*100","v":-33.666666666666643},{"$f":"(Quarterly!FI186-Quarterly!FI185)*100","v":-25.333333333333385},2.9999999999999361,null,null,null,null,null,{"$f":"((Quarterly!FP186/Quarterly!FP185)^4)-1","v":1.5091807976704619E-2},{"$f":"((Quarterly!FQ186/Quarterly!FQ185)^4)-1","v":2.5777244198232907E-4},{"$f":"((Quarterly!FR186/Quarterly!FR185)^4)-1","v":0.11594531186975932},{"$f":"((Quarterly!FS186/Quarterly!FS185)^4)-1","v":6.9059260156780988E-2},{"$f":"((Quarterly!FT186/Quarterly!FT185)^4)-1","v":2.9875344284774785E-2},{"$f":"((Quarterly!FU186/Quarterly!FU185)^4)-1","v":-8.4272628192789689E-3},{"$f":"((Quarterly!FV186/Quarterly!FV185)^4)-1","v":9.9854297837263406E-2},{"$f":"((Quarterly!FW186/Quarterly!FW185)^4)-1","v":-5.6956636495433588E-2},{"$f":"((Quarterly!FX186/Quarterly!FX185)^4)-1","v":-3.0448296002961506E-2},null,null,null,null,null,{"$f":"((Quarterly!GD186/Quarterly!GD185)^4)-1","v":-2.1011349516394717E-2},{"$f":"((Quarterly!GE186/Quarterly!GE185)^4)-1","v":-2.8408665270219902E-2},{"$f":"((Quarterly!GF186/Quarterly!GF185)^4)-1","v":-0.20714007583811544},{"$f":"((Quarterly!GG186/Quarterly!GG185)^4)-1","v":0.29911271367559511},{"$f":"((Quarterly!GH186/Quarterly!GH185)^4)-1","v":{"$error":"#DIV/0!"}},"--",{"$f":"((Quarterly!GJ186/Quarterly!GJ185)^4)-1","v":2.3235051311169692},{"$f":"((Quarterly!GK186/Quarterly!GK185)^4)-1","v":0.34374126728460541},"--"]
["03'Q1",{"$f":"((Quarterly!B187/Quarterly!B186)^4)-1","v":4.6259100812041209E-2},{"$f":"((Quarterly!C187/Quarterly!C186)^4)-1","v":2.0881362165191764E-2},{"$f":"((Quarterly!D187/Quarterly!D186)^4)-1","v":2.0008897355023203E-2},{"$f":"((Quarterly!E187/Quarterly!E186)^4)-1","v":1.7731820520980213E-2},{"$f":"((Quarterly!F187/Quarterly!F186)^4)-1","v":1.2275276398346024E-2},{"$f":"((Quarterly!G187/Quarterly!G186)^4)-1","v":2.7734927433285872E-2},{"$f":"((Quarterly!H187/Quarterly!H186)^4)-1","v":1.500817867984261E-2},{"$f":"((Quarterly!I187/Quarterly!I186)^4)-1","v":9.5412173662676736E-3},{"$f":"((Quarterly!J187/Quarterly!J186)^4)-1","v":2.4443208597775268E-2},{"$f":"((Quarterly!K187/Quarterly!K186)^4)-1","v":7.5117645822025292E-2},{"$f":"((Quarterly!L187-Quarterly!L186))","v":1.2340000000000018},{"$f":"((Quarterly!M187/Quarterly!M186)^4)-1","v":-5.4363499720480379E-2},{"$f":"((Quarterly!N187/Quarterly!N186)^4)-1","v":-2.3539135453937265E-2},{"$f":"((Quarterly!O187/Quarterly!O186)^4)-1","v":-0.10869982639343811},{"$f":"((Quarterly!P187/Quarterly!P186)^4)-1","v":-1.2873497760074293E-2},{"$f":"((Quarterly!Q187/Quarterly!Q186)^4)-1","v":0.32770651409668017},null,null,null,null,null,{"$f":"((Quarterly!W187/Quarterly!W186)^4)-1","v":1.098890788360718E-2},{"$f":"((Quarterly!X187/Quarterly!X186)^4)-1","v":2.6790212112459688E-2},{"$f":"((Quarterly!Y187/Quarterly!Y186)^4)-1","v":-6.9555298579388802E-2},{"$f":"Quarterly!Z187-Quarterly!Z186","v":-0.39999999999999991},{"$f":"((Quarterly!AA187/Quarterly!AA186)^4)-1","v":-2.9241294965559717E-2},{"$f":"((Quarterly!AB187/Quarterly!AB186)^4)-1","v":-9.81967264054463E-2},{"$f":"Quarterly!AC187-Quarterly!AC186","v":-8.8999999999999986},{"$f":"Quarterly!AD187-Quarterly!AD186","v":27.6},{"$f":"(Quarterly!AE187-Quarterly!AE186)*100","v":-5.0000000000000044},{"$f":"(Quarterly!AF187-Quarterly!AF186)*100","v":-39.999999999999993},{"$f":"(Quarterly!AG187-Quarterly!AG186)*100","v":-21.000000000000007},{"$f":"((Quarterly!AH187/Quarterly!AH186)^4)-1","v":0.19954702180534434},{"$f":"((Quarterly!AI187/Quarterly!AI186)^4)-1","v":0.15834649044109206},{"$f":"((Quarterly!AJ187/Quarterly!AJ186)^4)-1","v":9.7491859532333081E-2},{"$f":"((Quarterly!AK187/Quarterly!AK186)^4)-1","v":5.4286469164084528E-2},{"$f":"((Quarterly!AL187/Quarterly!AL186)^4)-1","v":4.4046329485839975E-2},{"$f":"((Quarterly!AM187/Quarterly!AM186)^4)-1","v":2.2402016853350304E-2},{"$f":"((Quarterly!AN187/Quarterly!AN186)^4)-1","v":1.7553170695152831E-2},{"$f":"((Quarterly!AO187/Quarterly!AO186)^4)-1","v":4.2927403851007906E-2},{"$f":"(Quarterly!AP187-Quarterly!AP186)*100","v":0},{"$f":"Quarterly!AQ187-Quarterly!AQ186","v":-0.90000000000000568},{"$f":"Quarterly!AR187-Quarterly!AR186","v":1},{"$f":"Quarterly!AS187-Quarterly!AS186","v":-0.5},{"$f":"Quarterly!AT187-Quarterly!AT186","v":-2.1666666666666643},{"$f":"Quarterly!AU187-Quarterly!AU186","v":1.9666666666666615},{"$f":"Quarterly!AV187-Quarterly!AV186","v":2.6000000000000014},{"$f":"Quarterly!AW187-Quarterly!AW186","v":-0.26666666666667282},{"$f":"Quarterly!AX187-Quarterly!AX186","v":-1.1333333333333258},{"$f":"Quarterly!AY187-Quarterly!AY186","v":7.36666666666666},{"$f":"Quarterly!AZ187-Quarterly!AZ186","v":-1.06666666666667},{"$f":"Quarterly!BA187-Quarterly!BA186","v":-6.6666666666677088E-2},{"$f":"Quarterly!BB187-Quarterly!BB186","v":-2.4333333333333229},{"$f":"((Quarterly!BC187/Quarterly!BC186)^4)-1","v":7.6155080023133204E-2},{"$f":"((Quarterly!BD187/Quarterly!BD186)^4)-1","v":8.1275590653212548E-2},{"$f":"((Quarterly!BE187/Quarterly!BE186)^4)-1","v":-3.9138707597706435E-2},{"$f":"((Quarterly!BF187/Quarterly!BF186)^4)-1","v":2.644544211765476E-2},{"$f":"((Quarterly!BG187/Quarterly!BG186)^4)-1","v":4.1637586968933604E-2},{"$f":"((Quarterly!BH187/Quarterly!BH186)^4)-1","v":-1.4584795600519285E-2},{"$f":"((Quarterly!BI187/Quarterly!BI186)^4)-1","v":-1.4570606227683025E-2},{"$f":"((Quarterly!BJ187/Quarterly!BJ186)^4)-1","v":3.2934092458386299E-2},{"$f":"((Quarterly!BK187/Quarterly!BK186)^4)-1","v":-0.64585356101624325},null,{"$f":"((Quarterly!BM187/Quarterly!BM186)^4)-1","v":3.656710973691113E-2},{"$f":"((Quarterly!BN187/Quarterly!BN186)^4)-1","v":3.5568400046313453E-2},null,null,null,null,null,{"$f":"((Quarterly!BT187/Quarterly!BT186)^4)-1","v":-7.5369536153829797E-3},{"$f":"Quarterly!BU187-Quarterly!BU186","v":-6.4499999999991786E-3},{"$f":"Quarterly!BV187-Quarterly!BV186","v":-5.2099999999999369E-2},{"$f":"((Quarterly!BW187/Quarterly!BW186)^4)-1","v":9.4645023019715557E-2},{"$f":"((Quarterly!BX187/Quarterly!BX186)^4)-1","v":1.4727007391134306E-2},{"$f":"((Quarterly!BY187/Quarterly!BY186)^4)-1","v":-3.3953359348845136E-2},{"$f":"((Quarterly!BZ187/Quarterly!BZ186)^4)-1","v":0.10264907264613599},{"$f":"((Quarterly!CA187/Quarterly!CA186)^4)-1","v":-0.10049806897551983},{"$f":"((Quarterly!CB187/Quarterly!CB186)^4)-1","v":0.40636669328220654},{"$f":"((Quarterly!CC187/Quarterly!CC186)^4)-1","v":0.25820496472896681},"--","--",null,"--","--",null,{"$f":"((Quarterly!CJ187/Quarterly!CJ186)^4)-1","v":-0.17440704937924123},{"$f":"((Quarterly!CK187/Quarterly!CK186)^4)-1","v":2.5099696734414589E-2},{"$f":"((Quarterly!CL187/Quarterly!CL186)^4)-1","v":2.9001569897408208E-2},{"$f":"((Quarterly!CM187/Quarterly!CM186)^4)-1","v":5.0635344117191838E-2},{"$f":"((Quarterly!CN187/Quarterly!CN186)^4)-1","v":1.1621743298656284E-2},{"$f":"((Quarterly!CO187/Quarterly!CO186)^4)-1","v":0.1672064394606585},{"$f":"((Quarterly!CP187/Quarterly!CP186)^4)-1","v":5.7335884424094763E-2},{"$f":"((Quarterly!CQ187/Quarterly!CQ186)^4)-1","v":8.5782405112129201E-3},{"$f":"((Quarterly!CR187/Quarterly!CR186)^4)-1","v":4.3841760966670584E-2},{"$f":"Quarterly!CS187-Quarterly!CS186","v":-3.86666666666666},"--",null,null,null,null,null,{"$f":"((Quarterly!CZ187/Quarterly!CZ186)^4)-1","v":4.1777667906848004E-2},{"$f":"((Quarterly!DA187/Quarterly!DA186)^4)-1","v":1.3271450467430279E-2},null,null,null,null,null,{"$f":"((Quarterly!DG187/Quarterly!DG186)^4)-1","v":-1.7295451238508841E-2},{"$f":"((Quarterly!DH187-Quarterly!DH186)*60)","v":-1.9999999999998863},{"$f":"Quarterly!DI187-Quarterly!DI186","v":-6.6666666666662877E-2},{"$f":"(Quarterly!DJ187-Quarterly!DJ186)*100","v":36.666666666666714},{"$f":"(Quarterly!DK187-Quarterly!DK186)*100","v":0},{"$f":"((Quarterly!DL187/Quarterly!DL186)^4)-1","v":-5.1975300654418799E-2},null,null,null,{"$f":"((Quarterly!DP187/Quarterly!DP186)^4)-1","v":-5.4404177296073497E-3},null,null,null,"--",{"$f":"Quarterly!DU187-Quarterly!DU186","v":9.9999999999999645E-2},{"$f":"((Quarterly!DV187/Quarterly!DV186)^4)-1","v":-2.0324288685064973E-2},{"$f":"((Quarterly!DW187/Quarterly!DW186)^4)-1","v":-0.1337909172115852},{"$f":"((Quarterly!DX187/Quarterly!DX186)^4)-1","v":-0.12099590065704691},{"$f":"((Quarterly!DY187/Quarterly!DY186)^4)-1","v":-0.14760704793621249},{"$f":"((Quarterly!DZ187/Quarterly!DZ186)^4)-1","v":-0.11222989211318568},{"$f":"((Quarterly!EA187/Quarterly!EA186)^4)-1","v":-0.10853216471289251},{"$f":"((Quarterly!EB187/Quarterly!EB186)^4)-1","v":-0.12121077593840246},{"$f":"((Quarterly!EC187/Quarterly!EC186)^4)-1","v":-0.16458706681093416},null,null,null,null,null,{"$f":"((Quarterly!EI187/Quarterly!EI186)^4)-1","v":2.0134947143289006E-2},{"$f":"((Quarterly!EJ187/Quarterly!EJ186)^4)-1","v":1.8049553062799761E-2},{"$f":"((Quarterly!EK187/Quarterly!EK186)^4)-1","v":1.3907450537961052E-2},null,null,null,null,null,{"$f":"((Quarterly!EQ187/Quarterly!EQ186)^4)-1","v":0.15786730694750917},{"$f":"((Quarterly!ER187/Quarterly!ER186)^4)-1","v":8.8859263653540133E-4},{"$f":"((Quarterly!ES187/Quarterly!ES186)^4)-1","v":7.695972221512859E-3},null,null,null,null,null,{"$f":"(Quarterly!EY187-Quarterly!EY186)*100","v":-20.000000000000018},{"$f":"(Quarterly!EZ187-Quarterly!EZ186)*100","v":-19.333333333333336},{"$f":"(Quarterly!FA187-Quarterly!FA186)*100","v":-27.666666666666639},{"$f":"(Quarterly!FB187-Quarterly!FB186)*100","v":-48.000000000000043},-20.333333333333403,{"$f":"(Quarterly!FD187-Quarterly!FD186)*100","v":-24.00000000000011},{"$f":"(Quarterly!FE187-Quarterly!FE186)*100","v":-17.666666666666675},{"$f":"(Quarterly!FF187-Quarterly!FF186)*100","v":-23},{"$f":"(Quarterly!FG187-Quarterly!FG186)*100","v":-24.333333333333318},{"$f":"(Quarterly!FH187-Quarterly!FH186)*100","v":-10.000000000000009},{"$f":"(Quarterly!FI187-Quarterly!FI186)*100","v":-8.6666666666666892},14.333333333333311,null,null,null,null,null,{"$f":"((Quarterly!FP187/Quarterly!FP186)^4)-1","v":-0.14368150997276075},{"$f":"((Quarterly!FQ187/Quarterly!FQ186)^4)-1","v":1.1276204579413474E-4},{"$f":"((Quarterly!FR187/Quarterly!FR186)^4)-1","v":0.28242761961452456},{"$f":"((Quarterly!FS187/Quarterly!FS186)^4)-1","v":0.32450739857522937},{"$f":"((Quarterly!FT187/Quarterly!FT186)^4)-1","v":-8.1433796313322038E-2},{"$f":"((Quarterly!FU187/Quarterly!FU186)^4)-1","v":-0.17277917484590244},{"$f":"((Quarterly!FV187/Quarterly!FV186)^4)-1","v":0.14139463526038387},{"$f":"((Quarterly!FW187/Quarterly!FW186)^4)-1","v":-0.41759014386258386},{"$f":"((Quarterly!FX187/Quarterly!FX186)^4)-1","v":-8.1239154764327526E-2},null,null,null,null,null,{"$f":"((Quarterly!GD187/Quarterly!GD186)^4)-1","v":1.1491767559672841},{"$f":"((Quarterly!GE187/Quarterly!GE186)^4)-1","v":0.93159373795334854},{"$f":"((Quarterly!GF187/Quarterly!GF186)^4)-1","v":1.0712601823688366},{"$f":"((Quarterly!GG187/Quarterly!GG186)^4)-1","v":0.60197178597088952},{"$f":"((Quarterly!GH187/Quarterly!GH186)^4)-1","v":{"$error":"#DIV/0!"}},"--",{"$f":"((Quarterly!GJ187/Quarterly!GJ186)^4)-1","v":2.5710557057346426},{"$f":"((Quarterly!GK187/Quarterly!GK186)^4)-1","v":0.38401228228850881},"--"]
["03'Q2",{"$f":"((Quarterly!B188/Quarterly!B187)^4)-1","v":5.1018920567953208E-2},{"$f":"((Quarterly!C188/Quarterly!C187)^4)-1","v":3.7636995935228956E-2},{"$f":"((Quarterly!D188/Quarterly!D187)^4)-1","v":4.9280972343528573E-2},{"$f":"((Quarterly!E188/Quarterly!E187)^4)-1","v":4.5250978088217098E-2},{"$f":"((Quarterly!F188/Quarterly!F187)^4)-1","v":0.19669456469174595},{"$f":"((Quarterly!G188/Quarterly!G187)^4)-1","v":2.9483403885467885E-2},{"$f":"((Quarterly!H188/Quarterly!H187)^4)-1","v":2.2479213384802632E-2},{"$f":"((Quarterly!I188/Quarterly!I187)^4)-1","v":0.10022895760319939},{"$f":"((Quarterly!J188/Quarterly!J187)^4)-1","v":9.6487909874794831E-2},{"$f":"((Quarterly!K188/Quarterly!K187)^4)-1","v":6.4620399291763997E-2},{"$f":"((Quarterly!L188-Quarterly!L187))","v":-36.532000000000004},{"$f":"((Quarterly!M188/Quarterly!M187)^4)-1","v":6.460862214958607E-2},{"$f":"((Quarterly!N188/Quarterly!N187)^4)-1","v":-4.5982982057801713E-3},{"$f":"((Quarterly!O188/Quarterly!O187)^4)-1","v":0.20333077933317312},{"$f":"((Quarterly!P188/Quarterly!P187)^4)-1","v":6.4441710076411418E-2},{"$f":"((Quarterly!Q188/Quarterly!Q187)^4)-1","v":1.1097500363946158},null,null,null,null,null,{"$f":"((Quarterly!W188/Quarterly!W187)^4)-1","v":-1.6270847139887468E-2},{"$f":"((Quarterly!X188/Quarterly!X187)^4)-1","v":-2.6091222721478347E-2},{"$f":"((Quarterly!Y188/Quarterly!Y187)^4)-1","v":-7.2759861707389462E-2},{"$f":"Quarterly!Z188-Quarterly!Z187","v":-2.0000000000000018E-2},{"$f":"((Quarterly!AA188/Quarterly!AA187)^4)-1","v":1.1967257938983789E-2},{"$f":"((Quarterly!AB188/Quarterly!AB187)^4)-1","v":0.26155139314287457},{"$f":"Quarterly!AC188-Quarterly!AC187","v":2.3999999999999986},{"$f":"Quarterly!AD188-Quarterly!AD187","v":-1.1999999999999993},{"$f":"(Quarterly!AE188-Quarterly!AE187)*100","v":-7.9999999999999849},{"$f":"(Quarterly!AF188-Quarterly!AF187)*100","v":-2.0000000000000018},{"$f":"(Quarterly!AG188-Quarterly!AG187)*100","v":-2.0000000000000018},{"$f":"((Quarterly!AH188/Quarterly!AH187)^4)-1","v":0.3445404579194784},{"$f":"((Quarterly!AI188/Quarterly!AI187)^4)-1","v":0.30032185671123401},{"$f":"((Quarterly!AJ188/Quarterly!AJ187)^4)-1","v":5.1541998789276677E-2},{"$f":"((Quarterly!AK188/Quarterly!AK187)^4)-1","v":3.5473291233477422E-2},{"$f":"((Quarterly!AL188/Quarterly!AL187)^4)-1","v":2.1609160625428281E-2},{"$f":"((Quarterly!AM188/Quarterly!AM187)^4)-1","v":-2.7777004846950781E-2},{"$f":"((Quarterly!AN188/Quarterly!AN187)^4)-1","v":-1.5895900283574016E-2},{"$f":"((Quarterly!AO188/Quarterly!AO187)^4)-1","v":-1.0513008359258613E-3},{"$f":"(Quarterly!AP188-Quarterly!AP187)*100","v":0.66666666666663765},{"$f":"Quarterly!AQ188-Quarterly!AQ187","v":-0.76666666666665861},{"$f":"Quarterly!AR188-Quarterly!AR187","v":4.3333333333333357},{"$f":"Quarterly!AS188-Quarterly!AS187","v":1.5},{"$f":"Quarterly!AT188-Quarterly!AT187","v":-0.80000000000000426},{"$f":"Quarterly!AU188-Quarterly!AU187","v":-1.2666666666666586},{"$f":"Quarterly!AV188-Quarterly!AV187","v":-1.1999999999999957},{"$f":"Quarterly!AW188-Quarterly!AW187","v":0.43333333333333712},{"$f":"Quarterly!AX188-Quarterly!AX187","v":-1.0333333333333385},{"$f":"Quarterly!AY188-Quarterly!AY187","v":-7.1666666666666643},{"$f":"Quarterly!AZ188-Quarterly!AZ187","v":0.26666666666667282},{"$f":"Quarterly!BA188-Quarterly!BA187","v":-2.6333333333333258},{"$f":"Quarterly!BB188-Quarterly!BB187","v":2.1333333333333258},{"$f":"((Quarterly!BC188/Quarterly!BC187)^4)-1","v":8.0036808973302787E-3},{"$f":"((Quarterly!BD188/Quarterly!BD187)^4)-1","v":5.8510056817691947E-2},{"$f":"((Quarterly!BE188/Quarterly!BE187)^4)-1","v":1.9714326176715646E-2},{"$f":"((Quarterly!BF188/Quarterly!BF187)^4)-1","v":7.1554748765051857E-2},{"$f":"((Quarterly!BG188/Quarterly!BG187)^4)-1","v":5.4857383493852829E-2},{"$f":"((Quarterly!BH188/Quarterly!BH187)^4)-1","v":7.7952298518750629E-2},{"$f":"((Quarterly!BI188/Quarterly!BI187)^4)-1","v":1.5798122179530694E-2},{"$f":"((Quarterly!BJ188/Quarterly!BJ187)^4)-1","v":-3.4591018437996723E-2},{"$f":"((Quarterly!BK188/Quarterly!BK187)^4)-1","v":-5.7955344807796294E-2},null,{"$f":"((Quarterly!BM188/Quarterly!BM187)^4)-1","v":4.0850561240368011E-2},{"$f":"((Quarterly!BN188/Quarterly!BN187)^4)-1","v":3.4005889372714648E-2},null,null,null,null,null,{"$f":"((Quarterly!BT188/Quarterly!BT187)^4)-1","v":1.8629542388710618E-2},{"$f":"Quarterly!BU188-Quarterly!BU187","v":-9.4670000000000698E-2},{"$f":"Quarterly!BV188-Quarterly!BV187","v":-0.1683400000000006},{"$f":"((Quarterly!BW188/Quarterly!BW187)^4)-1","v":8.9023233162276449E-2},{"$f":"((Quarterly!BX188/Quarterly!BX187)^4)-1","v":4.1332217087368228E-2},{"$f":"((Quarterly!BY188/Quarterly!BY187)^4)-1","v":7.121184400193048E-2},{"$f":"((Quarterly!BZ188/Quarterly!BZ187)^4)-1","v":8.0107253387528221E-2},{"$f":"((Quarterly!CA188/Quarterly!CA187)^4)-1","v":7.2885580899273883E-2},{"$f":"((Quarterly!CB188/Quarterly!CB187)^4)-1","v":-0.28224225084042442},{"$f":"((Quarterly!CC188/Quarterly!CC187)^4)-1","v":-0.15035584389678325},"--","--",null,"--","--",null,{"$f":"((Quarterly!CJ188/Quarterly!CJ187)^4)-1","v":0.5676282920670388},{"$f":"((Quarterly!CK188/Quarterly!CK187)^4)-1","v":5.4371527818402932E-2},{"$f":"((Quarterly!CL188/Quarterly!CL187)^4)-1","v":0.32361880877573834},{"$f":"((Quarterly!CM188/Quarterly!CM187)^4)-1","v":3.9272091481172833E-2},{"$f":"((Quarterly!CN188/Quarterly!CN187)^4)-1","v":5.9243474281537756E-2},{"$f":"((Quarterly!CO188/Quarterly!CO187)^4)-1","v":0.173136938449999},{"$f":"((Quarterly!CP188/Quarterly!CP187)^4)-1","v":6.6999488663863405E-2},{"$f":"((Quarterly!CQ188/Quarterly!CQ187)^4)-1","v":8.8285517108346312E-3},{"$f":"((Quarterly!CR188/Quarterly!CR187)^4)-1","v":2.7064606866820551E-2},{"$f":"Quarterly!CS188-Quarterly!CS187","v":9.2999999999999972},{"$f":"Quarterly!CT188-Quarterly!CT187","v":14.366666666666674},null,null,null,null,null,{"$f":"((Quarterly!CZ188/Quarterly!CZ187)^4)-1","v":-6.5282219140274655E-3},{"$f":"((Quarterly!DA188/Quarterly!DA187)^4)-1","v":6.9456241996810331E-3},null,null,null,null,null,{"$f":"((Quarterly!DG188/Quarterly!DG187)^4)-1","v":-2.5310956619712055E-2},{"$f":"((Quarterly!DH188-Quarterly!DH187)*60)","v":-5.9999999999996589},{"$f":"Quarterly!DI188-Quarterly!DI187","v":6.6666666666662877E-2},{"$f":"(Quarterly!DJ188-Quarterly!DJ187)*100","v":13.333333333333286},{"$f":"(Quarterly!DK188-Quarterly!DK187)*100","v":26.666666666666572},{"$f":"((Quarterly!DL188/Quarterly!DL187)^4)-1","v":-6.2404040050724974E-2},null,null,null,{"$f":"((Quarterly!DP188/Quarterly!DP187)^4)-1","v":-7.1673062314395741E-3},null,null,null,"--",{"$f":"Quarterly!DU188-Quarterly!DU187","v":0.93333333333333357},{"$f":"((Quarterly!DV188/Quarterly!DV187)^4)-1","v":-2.5756656498139852E-2},{"$f":"((Quarterly!DW188/Quarterly!DW187)^4)-1","v":6.6608345306037764E-2},{"$f":"((Quarterly!DX188/Quarterly!DX187)^4)-1","v":2.2365788895557071E-2},{"$f":"((Quarterly!DY188/Quarterly!DY187)^4)-1","v":5.9960921418008573E-2},{"$f":"((Quarterly!DZ188/Quarterly!DZ187)^4)-1","v":1.0506870716606054E-2},{"$f":"((Quarterly!EA188/Quarterly!EA187)^4)-1","v":-1.200266474507683E-2},{"$f":"((Quarterly!EB188/Quarterly!EB187)^4)-1","v":6.7294354083594854E-2},{"$f":"((Quarterly!EC188/Quarterly!EC187)^4)-1","v":0.18274403047668053},null,null,null,null,null,{"$f":"((Quarterly!EI188/Quarterly!EI187)^4)-1","v":8.1082914188920441E-2},{"$f":"((Quarterly!EJ188/Quarterly!EJ187)^4)-1","v":6.7657732189162267E-2},{"$f":"((Quarterly!EK188/Quarterly!EK187)^4)-1","v":4.6806590040363361E-2},null,null,null,null,null,{"$f":"((Quarterly!EQ188/Quarterly!EQ187)^4)-1","v":-2.4879164422270894E-2},{"$f":"((Quarterly!ER188/Quarterly!ER187)^4)-1","v":-2.6616376510156803E-3},{"$f":"((Quarterly!ES188/Quarterly!ES187)^4)-1","v":-1.9134172948057637E-3},null,null,null,null,null,{"$f":"(Quarterly!EY188-Quarterly!EY187)*100","v":-1.0000000000000675},{"$f":"(Quarterly!EZ188-Quarterly!EZ187)*100","v":-0.33333333333331883},{"$f":"(Quarterly!FA188-Quarterly!FA187)*100","v":-69.333333333333428},{"$f":"(Quarterly!FB188-Quarterly!FB187)*100","v":-64.666666666666657},4.6666666666667709,{"$f":"(Quarterly!FD188-Quarterly!FD187)*100","v":-32.999999999999915},{"$f":"(Quarterly!FE188-Quarterly!FE187)*100","v":-11.666666666666647},{"$f":"(Quarterly!FF188-Quarterly!FF187)*100","v":-14.666666666666671},{"$f":"(Quarterly!FG188-Quarterly!FG187)*100","v":-22.333333333333361},{"$f":"(Quarterly!FH188-Quarterly!FH187)*100","v":-33.6666666666666},{"$f":"(Quarterly!FI188-Quarterly!FI187)*100","v":-30.000000000000028},-15.333333333333357,null,null,null,null,null,{"$f":"((Quarterly!FP188/Quarterly!FP187)^4)-1","v":-0.26453126392593629},{"$f":"((Quarterly!FQ188/Quarterly!FQ187)^4)-1","v":-2.5769874882453081E-4},{"$f":"((Quarterly!FR188/Quarterly!FR187)^4)-1","v":-0.13187532810988778},{"$f":"((Quarterly!FS188/Quarterly!FS187)^4)-1","v":0.25594507486811469},{"$f":"((Quarterly!FT188/Quarterly!FT187)^4)-1","v":-0.13010207688049313},{"$f":"((Quarterly!FU188/Quarterly!FU187)^4)-1","v":-0.17418162865110498},{"$f":"((Quarterly!FV188/Quarterly!FV187)^4)-1","v":7.1661142615087048E-2},{"$f":"((Quarterly!FW188/Quarterly!FW187)^4)-1","v":0.69482219248402943},{"$f":"((Quarterly!FX188/Quarterly!FX187)^4)-1","v":6.0695081917743421E-2},null,null,null,null,null,{"$f":"((Quarterly!GD188/Quarterly!GD187)^4)-1","v":-0.47549341365341424},{"$f":"((Quarterly!GE188/Quarterly!GE187)^4)-1","v":-0.52480697724232539},{"$f":"((Quarterly!GF188/Quarterly!GF187)^4)-1","v":-0.1417942598262466},{"$f":"((Quarterly!GG188/Quarterly!GG187)^4)-1","v":-0.31766226587960922},{"$f":"((Quarterly!GH188/Quarterly!GH187)^4)-1","v":{"$error":"#DIV/0!"}},"--",{"$f":"((Quarterly!GJ188/Quarterly!GJ187)^4)-1","v":-0.13103588038364822},{"$f":"((Quarterly!GK188/Quarterly!GK187)^4)-1","v":-0.33849960108316313},"--"]
["03'Q3",{"$f":"((Quarterly!B189/Quarterly!B188)^4)-1","v":9.2573577553584974E-2},{"$f":"((Quarterly!C189/Quarterly!C188)^4)-1","v":6.8692823997563268E-2},{"$f":"((Quarterly!D189/Quarterly!D188)^4)-1","v":6.6046863542390088E-2},{"$f":"((Quarterly!E189/Quarterly!E188)^4)-1","v":6.0299221541855186E-2},{"$f":"((Quarterly!F189/Quarterly!F188)^4)-1","v":0.1906866238930669},{"$f":"((Quarterly!G189/Quarterly!G188)^4)-1","v":7.6145350843116466E-2},{"$f":"((Quarterly!H189/Quarterly!H188)^4)-1","v":3.0315670679141871E-2},{"$f":"((Quarterly!I189/Quarterly!I188)^4)-1","v":8.2613197206227396E-2},{"$f":"((Quarterly!J189/Quarterly!J188)^4)-1","v":0.12265945604636475},{"$f":"((Quarterly!K189/Quarterly!K188)^4)-1","v":0.24991833816587361},{"$f":"((Quarterly!L189-Quarterly!L188))","v":7.774},{"$f":"((Quarterly!M189/Quarterly!M188)^4)-1","v":5.2343584874111837E-2},{"$f":"((Quarterly!N189/Quarterly!N188)^4)-1","v":0.11091734808324616},{"$f":"((Quarterly!O189/Quarterly!O188)^4)-1","v":-4.6130425911904194E-2},{"$f":"((Quarterly!P189/Quarterly!P188)^4)-1","v":2.4538146080610446E-5},{"$f":"((Quarterly!Q189/Quarterly!Q188)^4)-1","v":0.91156138594586911},null,null,null,null,null,{"$f":"((Quarterly!W189/Quarterly!W188)^4)-1","v":2.7680026467132191E-2},{"$f":"((Quarterly!X189/Quarterly!X188)^4)-1","v":2.67902121124588E-2},{"$f":"((Quarterly!Y189/Quarterly!Y188)^4)-1","v":-6.4335945215414747E-2},{"$f":"Quarterly!Z189-Quarterly!Z188","v":-6.0000000000000053E-2},{"$f":"((Quarterly!AA189/Quarterly!AA188)^4)-1","v":0.26174571536695179},{"$f":"((Quarterly!AB189/Quarterly!AB188)^4)-1","v":0.14303891161401472},{"$f":"Quarterly!AC189-Quarterly!AC188","v":-11.5},{"$f":"Quarterly!AD189-Quarterly!AD188","v":9.5},{"$f":"(Quarterly!AE189-Quarterly!AE188)*100","v":-8.0000000000000071},{"$f":"(Quarterly!AF189-Quarterly!AF188)*100","v":-6.0000000000000053},{"$f":"(Quarterly!AG189-Quarterly!AG188)*100","v":-2.0000000000000018},{"$f":"((Quarterly!AH189/Quarterly!AH188)^4)-1","v":0.32632358049753996},{"$f":"((Quarterly!AI189/Quarterly!AI188)^4)-1","v":0.18677257393568114},{"$f":"((Quarterly!AJ189/Quarterly!AJ188)^4)-1","v":6.0343165691338685E-2},{"$f":"((Quarterly!AK189/Quarterly!AK188)^4)-1","v":4.4094877868936733E-2},{"$f":"((Quarterly!AL189/Quarterly!AL188)^4)-1","v":3.8935443327462682E-2},{"$f":"((Quarterly!AM189/Quarterly!AM188)^4)-1","v":2.4541767239789847E-2},{"$f":"((Quarterly!AN189/Quarterly!AN188)^4)-1","v":2.7570884253349748E-2},{"$f":"((Quarterly!AO189/Quarterly!AO188)^4)-1","v":-3.2360430330000023E-2},{"$f":"(Quarterly!AP189-Quarterly!AP188)*100","v":-4.6666666666666412},{"$f":"Quarterly!AQ189-Quarterly!AQ188","v":4.1666666666666643},{"$f":"Quarterly!AR189-Quarterly!AR188","v":2.1666666666666643},{"$f":"Quarterly!AS189-Quarterly!AS188","v":-1.6666666666666643},{"$f":"Quarterly!AT189-Quarterly!AT188","v":3.3666666666666742},{"$f":"Quarterly!AU189-Quarterly!AU188","v":2.7333333333333343},{"$f":"Quarterly!AV189-Quarterly!AV188","v":2.86666666666666},{"$f":"Quarterly!AW189-Quarterly!AW188","v":0.6666666666666714},{"$f":"Quarterly!AX189-Quarterly!AX188","v":8.1666666666666643},{"$f":"Quarterly!AY189-Quarterly!AY188","v":-3.1666666666666643},{"$f":"Quarterly!AZ189-Quarterly!AZ188","v":6},{"$f":"Quarterly!BA189-Quarterly!BA188","v":2.5333333333333314},{"$f":"Quarterly!BB189-Quarterly!BB188","v":9.0333333333333314},{"$f":"((Quarterly!BC189/Quarterly!BC188)^4)-1","v":4.1159000805828461E-2},{"$f":"((Quarterly!BD189/Quarterly!BD188)^4)-1","v":0.1146561128134933},{"$f":"((Quarterly!BE189/Quarterly!BE188)^4)-1","v":-3.1985622741833697E-2},{"$f":"((Quarterly!BF189/Quarterly!BF188)^4)-1","v":6.1185471376323353E-2},{"$f":"((Quarterly!BG189/Quarterly!BG188)^4)-1","v":8.9958393448030582E-2},{"$f":"((Quarterly!BH189/Quarterly!BH188)^4)-1","v":3.0190076675877586E-2},{"$f":"((Quarterly!BI189/Quarterly!BI188)^4)-1","v":-2.6385892432817082E-2},{"$f":"((Quarterly!BJ189/Quarterly!BJ188)^4)-1","v":0.43072466999480996},{"$f":"((Quarterly!BK189/Quarterly!BK188)^4)-1","v":-0.16860325483238503},null,{"$f":"((Quarterly!BM189/Quarterly!BM188)^4)-1","v":0.11572750660682662},{"$f":"((Quarterly!BN189/Quarterly!BN188)^4)-1","v":0.11758866831499715},null,null,null,null,null,{"$f":"((Quarterly!BT189/Quarterly!BT188)^4)-1","v":5.3036644118314991E-2},{"$f":"Quarterly!BU189-Quarterly!BU188","v":-0.14095999999999975},{"$f":"Quarterly!BV189-Quarterly!BV188","v":-0.22435000000000116},{"$f":"((Quarterly!BW189/Quarterly!BW188)^4)-1","v":9.0579605451918122E-2},{"$f":"((Quarterly!BX189/Quarterly!BX188)^4)-1","v":0.34819471632932619},{"$f":"((Quarterly!BY189/Quarterly!BY188)^4)-1","v":0.23523745691302089},{"$f":"((Quarterly!BZ189/Quarterly!BZ188)^4)-1","v":0.10485858779296597},{"$f":"((Quarterly!CA189/Quarterly!CA188)^4)-1","v":0.2078602645992047},{"$f":"((Quarterly!CB189/Quarterly!CB188)^4)-1","v":0.10759967553285943},{"$f":"((Quarterly!CC189/Quarterly!CC188)^4)-1","v":6.9508152186830374E-2},"--","--",null,"--","--",null,{"$f":"((Quarterly!CJ189/Quarterly!CJ188)^4)-1","v":0.29917770259743492},{"$f":"((Quarterly!CK189/Quarterly!CK188)^4)-1","v":5.4510788638945096E-2},{"$f":"((Quarterly!CL189/Quarterly!CL188)^4)-1","v":0.27992560934619837},{"$f":"((Quarterly!CM189/Quarterly!CM188)^4)-1","v":0.3068372953192382},{"$f":"((Quarterly!CN189/Quarterly!CN188)^4)-1","v":6.7198933764778257E-2},{"$f":"((Quarterly!CO189/Quarterly!CO188)^4)-1","v":0.20334548894440352},{"$f":"((Quarterly!CP189/Quarterly!CP188)^4)-1","v":4.7854706477674203E-2},{"$f":"((Quarterly!CQ189/Quarterly!CQ188)^4)-1","v":9.9467095740073397E-3},{"$f":"((Quarterly!CR189/Quarterly!CR188)^4)-1","v":1.4911319110890719E-2},{"$f":"Quarterly!CS189-Quarterly!CS188","v":3.3333333333331439E-2},{"$f":"Quarterly!CT189-Quarterly!CT188","v":-4.13333333333334},null,null,null,null,null,{"$f":"((Quarterly!CZ189/Quarterly!CZ188)^4)-1","v":3.0197677820188451E-2},{"$f":"((Quarterly!DA189/Quarterly!DA188)^4)-1","v":1.6001073889715611E-2},null,null,null,null,null,{"$f":"((Quarterly!DG189/Quarterly!DG188)^4)-1","v":-1.3529509310303833E-3},{"$f":"((Quarterly!DH189-Quarterly!DH188)*60)","v":-2.0000000000003126},{"$f":"Quarterly!DI189-Quarterly!DI188","v":-0.29999999999999716},{"$f":"(Quarterly!DJ189-Quarterly!DJ188)*100","v":6.666666666666643},{"$f":"(Quarterly!DK189-Quarterly!DK188)*100","v":0},{"$f":"((Quarterly!DL189/Quarterly!DL188)^4)-1","v":-4.8034310223625032E-2},null,null,null,{"$f":"((Quarterly!DP189/Quarterly!DP188)^4)-1","v":1.0347657400870958E-3},null,null,null,"--",{"$f":"Quarterly!DU189-Quarterly!DU188","v":-0.33333333333333393},{"$f":"((Quarterly!DV189/Quarterly!DV188)^4)-1","v":1.8113822629685528E-2},{"$f":"((Quarterly!DW189/Quarterly!DW188)^4)-1","v":7.3168726596549716E-2},{"$f":"((Quarterly!DX189/Quarterly!DX188)^4)-1","v":3.1153143240985726E-2},{"$f":"((Quarterly!DY189/Quarterly!DY188)^4)-1","v":8.2432159999999088E-2},{"$f":"((Quarterly!DZ189/Quarterly!DZ188)^4)-1","v":1.4885950595659336E-2},{"$f":"((Quarterly!EA189/Quarterly!EA188)^4)-1","v":-1.3901673409939308E-2},{"$f":"((Quarterly!EB189/Quarterly!EB188)^4)-1","v":8.6661236947561893E-2},{"$f":"((Quarterly!EC189/Quarterly!EC188)^4)-1","v":0.17904108835487964},null,null,null,null,null,{"$f":"((Quarterly!EI189/Quarterly!EI188)^4)-1","v":0.11552641152701715},{"$f":"((Quarterly!EJ189/Quarterly!EJ188)^4)-1","v":7.1621801659058182E-2},{"$f":"((Quarterly!EK189/Quarterly!EK188)^4)-1","v":4.8070474934222451E-2},null,null,null,null,null,{"$f":"((Quarterly!EQ189/Quarterly!EQ188)^4)-1","v":2.6504883996570694E-2},{"$f":"((Quarterly!ER189/Quarterly!ER188)^4)-1","v":9.811499766002596E-3},{"$f":"((Quarterly!ES189/Quarterly!ES188)^4)-1","v":1.0578102506924258E-2},null,null,null,null,null,{"$f":"(Quarterly!EY189-Quarterly!EY188)*100","v":-23.999999999999932},{"$f":"(Quarterly!EZ189-Quarterly!EZ188)*100","v":-23.000000000000021},{"$f":"(Quarterly!FA189-Quarterly!FA188)*100","v":38.666666666666671},{"$f":"(Quarterly!FB189-Quarterly!FB188)*100","v":33.333333333333215},-5.3333333333334565,{"$f":"(Quarterly!FD189-Quarterly!FD188)*100","v":50.666666666666593},{"$f":"(Quarterly!FE189-Quarterly!FE188)*100","v":-10.999999999999998},{"$f":"(Quarterly!FF189-Quarterly!FF188)*100","v":7.0000000000000062},{"$f":"(Quarterly!FG189-Quarterly!FG188)*100","v":25.666666666666682},{"$f":"(Quarterly!FH189-Quarterly!FH188)*100","v":56.666666666666643},{"$f":"(Quarterly!FI189-Quarterly!FI188)*100","v":61.333333333333371},54.333333333333364,null,null,null,null,null,{"$f":"((Quarterly!FP189/Quarterly!FP188)^4)-1","v":-4.9498359193729247E-2},{"$f":"((Quarterly!FQ189/Quarterly!FQ188)^4)-1","v":4.8327174965834274E-5},{"$f":"((Quarterly!FR189/Quarterly!FR188)^4)-1","v":0.10878134994723099},{"$f":"((Quarterly!FS189/Quarterly!FS188)^4)-1","v":-3.5308152983873797E-2},{"$f":"((Quarterly!FT189/Quarterly!FT188)^4)-1","v":-3.3081490249143863E-3},{"$f":"((Quarterly!FU189/Quarterly!FU188)^4)-1","v":-7.6924060787011417E-3},{"$f":"((Quarterly!FV189/Quarterly!FV188)^4)-1","v":-0.11478597372003041},{"$f":"((Quarterly!FW189/Quarterly!FW188)^4)-1","v":0.94266433711161834},{"$f":"((Quarterly!FX189/Quarterly!FX188)^4)-1","v":3.2716244991883192E-2},null,null,null,null,null,{"$f":"((Quarterly!GD189/Quarterly!GD188)^4)-1","v":0.17221569644404422},{"$f":"((Quarterly!GE189/Quarterly!GE188)^4)-1","v":0.39673556712721592},{"$f":"((Quarterly!GF189/Quarterly!GF188)^4)-1","v":0.25101496365045861},{"$f":"((Quarterly!GG189/Quarterly!GG188)^4)-1","v":-1.7130224858803E-2},{"$f":"((Quarterly!GH189/Quarterly!GH188)^4)-1","v":{"$error":"#DIV/0!"}},"--",{"$f":"((Quarterly!GJ189/Quarterly!GJ188)^4)-1","v":-0.47062510251604905},{"$f":"((Quarterly!GK189/Quarterly!GK188)^4)-1","v":-0.19073183564131913},"--"]
["03'Q4",{"$f":"((Quarterly!B190/Quarterly!B189)^4)-1","v":6.7606455313776959E-2},{"$f":"((Quarterly!C190/Quarterly!C189)^4)-1","v":4.7595682912694226E-2},{"$f":"((Quarterly!D190/Quarterly!D189)^4)-1","v":3.5972610239414227E-2},{"$f":"((Quarterly!E190/Quarterly!E189)^4)-1","v":3.1417034342004602E-2},{"$f":"((Quarterly!F190/Quarterly!F189)^4)-1","v":5.2225942700699468E-2},{"$f":"((Quarterly!G190/Quarterly!G189)^4)-1","v":2.8054879342758854E-2},{"$f":"((Quarterly!H190/Quarterly!H189)^4)-1","v":2.8426328760903008E-2},{"$f":"((Quarterly!I190/Quarterly!I189)^4)-1","v":5.8479727260216663E-2},{"$f":"((Quarterly!J190/Quarterly!J189)^4)-1","v":7.882112262802532E-2},{"$f":"((Quarterly!K190/Quarterly!K189)^4)-1","v":0.12426263957405759},{"$f":"((Quarterly!L190-Quarterly!L189))","v":38.981000000000002},{"$f":"((Quarterly!M190/Quarterly!M189)^4)-1","v":0.15109160278516698},{"$f":"((Quarterly!N190/Quarterly!N189)^4)-1","v":0.18785905949598836},{"$f":"((Quarterly!O190/Quarterly!O189)^4)-1","v":8.5373382711090962E-2},{"$f":"((Quarterly!P190/Quarterly!P189)^4)-1","v":2.1952092853317673E-2},{"$f":"((Quarterly!Q190/Quarterly!Q189)^4)-1","v":-0.46620472758830944},null,null,null,null,null,{"$f":"((Quarterly!W190/Quarterly!W189)^4)-1","v":5.5542525221299544E-2},{"$f":"((Quarterly!X190/Quarterly!X189)^4)-1","v":4.2832006952722823E-2},{"$f":"((Quarterly!Y190/Quarterly!Y189)^4)-1","v":-0.11039075861291292},{"$f":"Quarterly!Z190-Quarterly!Z189","v":-4.0000000000000036E-2},{"$f":"((Quarterly!AA190/Quarterly!AA189)^4)-1","v":0.32831958831406705},{"$f":"((Quarterly!AB190/Quarterly!AB189)^4)-1","v":0.17240813262714116},{"$f":"Quarterly!AC190-Quarterly!AC189","v":-1.5},{"$f":"Quarterly!AD190-Quarterly!AD189","v":8.4},{"$f":"(Quarterly!AE190-Quarterly!AE189)*100","v":-5.0000000000000044},{"$f":"(Quarterly!AF190-Quarterly!AF189)*100","v":-4.0000000000000036},{"$f":"(Quarterly!AG190-Quarterly!AG189)*100","v":2.0000000000000018},{"$f":"((Quarterly!AH190/Quarterly!AH189)^4)-1","v":0.2339766305177855},{"$f":"((Quarterly!AI190/Quarterly!AI189)^4)-1","v":0.21647594599047415},{"$f":"((Quarterly!AJ190/Quarterly!AJ189)^4)-1","v":5.0132843835882124E-2},{"$f":"((Quarterly!AK190/Quarterly!AK189)^4)-1","v":2.600081108815977E-2},{"$f":"((Quarterly!AL190/Quarterly!AL189)^4)-1","v":2.1287173389227698E-2},{"$f":"((Quarterly!AM190/Quarterly!AM189)^4)-1","v":4.0949311474886896E-2},{"$f":"((Quarterly!AN190/Quarterly!AN189)^4)-1","v":4.9127115045509928E-2},{"$f":"((Quarterly!AO190/Quarterly!AO189)^4)-1","v":3.1707151452592619E-2},{"$f":"(Quarterly!AP190-Quarterly!AP189)*100","v":-0.66666666666668206},{"$f":"Quarterly!AQ190-Quarterly!AQ189","v":5.7000000000000028},{"$f":"Quarterly!AR190-Quarterly!AR189","v":6.1666666666666714},{"$f":"Quarterly!AS190-Quarterly!AS189","v":-4.1666666666666714},{"$f":"Quarterly!AT190-Quarterly!AT189","v":4.3999999999999986},{"$f":"Quarterly!AU190-Quarterly!AU189","v":3.5333333333333243},{"$f":"Quarterly!AV190-Quarterly!AV189","v":2.2999999999999972},{"$f":"Quarterly!AW190-Quarterly!AW189","v":2.7999999999999972},{"$f":"Quarterly!AX190-Quarterly!AX189","v":8.7000000000000028},{"$f":"Quarterly!AY190-Quarterly!AY189","v":8.8333333333333357},{"$f":"Quarterly!AZ190-Quarterly!AZ189","v":8.6333333333333186},{"$f":"Quarterly!BA190-Quarterly!BA189","v":4.13333333333334},{"$f":"Quarterly!BB190-Quarterly!BB189","v":-2.0333333333333314},{"$f":"((Quarterly!BC190/Quarterly!BC189)^4)-1","v":0.12663293158511779},{"$f":"((Quarterly!BD190/Quarterly!BD189)^4)-1","v":2.725664673458672E-2},{"$f":"((Quarterly!BE190/Quarterly!BE189)^4)-1","v":4.7201844268446536E-2},{"$f":"((Quarterly!BF190/Quarterly!BF189)^4)-1","v":5.5320897150897164E-2},{"$f":"((Quarterly!BG190/Quarterly!BG189)^4)-1","v":3.9409939171242581E-2},{"$f":"((Quarterly!BH190/Quarterly!BH189)^4)-1","v":3.8873434417339814E-2},{"$f":"((Quarterly!BI190/Quarterly!BI189)^4)-1","v":1.5312531841931376E-2},{"$f":"((Quarterly!BJ190/Quarterly!BJ189)^4)-1","v":0.25022622409434492},{"$f":"((Quarterly!BK190/Quarterly!BK189)^4)-1","v":-0.12015623262445008},null,{"$f":"((Quarterly!BM190/Quarterly!BM189)^4)-1","v":1.8847481341732086E-2},{"$f":"((Quarterly!BN190/Quarterly!BN189)^4)-1","v":1.438637943067711E-2},null,null,null,null,null,{"$f":"((Quarterly!BT190/Quarterly!BT189)^4)-1","v":0.17832405814133945},{"$f":"Quarterly!BU190-Quarterly!BU189","v":6.5599999999999881E-2},{"$f":"Quarterly!BV190-Quarterly!BV189","v":6.4630000000001075E-2},{"$f":"((Quarterly!BW190/Quarterly!BW189)^4)-1","v":8.9188763022149065E-2},{"$f":"((Quarterly!BX190/Quarterly!BX189)^4)-1","v":0.34674648904997629},{"$f":"((Quarterly!BY190/Quarterly!BY189)^4)-1","v":7.4246270503868006E-2},{"$f":"((Quarterly!BZ190/Quarterly!BZ189)^4)-1","v":0.15327070406989041},{"$f":"((Quarterly!CA190/Quarterly!CA189)^4)-1","v":-9.8440175618657699E-2},{"$f":"((Quarterly!CB190/Quarterly!CB189)^4)-1","v":-0.22473048354644787},{"$f":"((Quarterly!CC190/Quarterly!CC189)^4)-1","v":-0.2103333797662601},"--","--",null,"--","--",null,{"$f":"((Quarterly!CJ190/Quarterly!CJ189)^4)-1","v":-0.14944117034801907},{"$f":"((Quarterly!CK190/Quarterly!CK189)^4)-1","v":5.9524875543487177E-2},{"$f":"((Quarterly!CL190/Quarterly!CL189)^4)-1","v":-0.2409838606442708},{"$f":"((Quarterly!CM190/Quarterly!CM189)^4)-1","v":0.39617494072093695},{"$f":"((Quarterly!CN190/Quarterly!CN189)^4)-1","v":1.6187793111058557E-2},{"$f":"((Quarterly!CO190/Quarterly!CO189)^4)-1","v":6.2152834615036845E-2},{"$f":"((Quarterly!CP190/Quarterly!CP189)^4)-1","v":4.1619283838337795E-2},{"$f":"((Quarterly!CQ190/Quarterly!CQ189)^4)-1","v":1.0005106355569282E-2},{"$f":"((Quarterly!CR190/Quarterly!CR189)^4)-1","v":3.5687509149417984E-3},{"$f":"Quarterly!CS190-Quarterly!CS189","v":2.6666666666666572},{"$f":"Quarterly!CT190-Quarterly!CT189","v":11.100000000000009},null,null,null,null,null,{"$f":"((Quarterly!CZ190/Quarterly!CZ189)^4)-1","v":1.5268287142393477E-2},{"$f":"((Quarterly!DA190/Quarterly!DA189)^4)-1","v":1.0372460589514798E-2},null,null,null,null,null,{"$f":"((Quarterly!DG190/Quarterly!DG189)^4)-1","v":1.9092540145263959E-2},{"$f":"((Quarterly!DH190-Quarterly!DH189)*60)","v":3.9999999999997726},{"$f":"Quarterly!DI190-Quarterly!DI189","v":-0.10000000000000853},{"$f":"(Quarterly!DJ190-Quarterly!DJ189)*100","v":-26.666666666666572},{"$f":"(Quarterly!DK190-Quarterly!DK189)*100","v":-29.999999999999982},{"$f":"((Quarterly!DL190/Quarterly!DL189)^4)-1","v":-1.6133348306802686E-2},null,null,null,{"$f":"((Quarterly!DP190/Quarterly!DP189)^4)-1","v":9.4631338432895618E-3},null,null,null,"--",{"$f":"Quarterly!DU190-Quarterly!DU189","v":0.16666666666666785},{"$f":"((Quarterly!DV190/Quarterly!DV189)^4)-1","v":2.0175525977154107E-2},{"$f":"((Quarterly!DW190/Quarterly!DW189)^4)-1","v":-3.767501081353597E-3},{"$f":"((Quarterly!DX190/Quarterly!DX189)^4)-1","v":3.4990319857119756E-2},{"$f":"((Quarterly!DY190/Quarterly!DY189)^4)-1","v":5.7261468721847564E-4},{"$f":"((Quarterly!DZ190/Quarterly!DZ189)^4)-1","v":4.6550903153524059E-2},{"$f":"((Quarterly!EA190/Quarterly!EA189)^4)-1","v":3.9126587621008069E-2},{"$f":"((Quarterly!EB190/Quarterly!EB189)^4)-1","v":6.4125164781744459E-2},{"$f":"((Quarterly!EC190/Quarterly!EC189)^4)-1","v":-8.9371475413709156E-2},null,null,null,null,null,{"$f":"((Quarterly!EI190/Quarterly!EI189)^4)-1","v":7.2398049166471523E-2},{"$f":"((Quarterly!EJ190/Quarterly!EJ189)^4)-1","v":4.3276392151002652E-2},{"$f":"((Quarterly!EK190/Quarterly!EK189)^4)-1","v":3.847212146716017E-2},null,null,null,null,null,{"$f":"((Quarterly!EQ190/Quarterly!EQ189)^4)-1","v":3.4230932543362513E-2},{"$f":"((Quarterly!ER190/Quarterly!ER189)^4)-1","v":1.6950665398337561E-2},{"$f":"((Quarterly!ES190/Quarterly!ES189)^4)-1","v":1.1513433855640631E-2},null,null,null,null,null,{"$f":"(Quarterly!EY190-Quarterly!EY189)*100","v":0},{"$f":"(Quarterly!EZ190-Quarterly!EZ189)*100","v":-2.0000000000000018},{"$f":"(Quarterly!FA190-Quarterly!FA189)*100","v":-3.9999999999999147},{"$f":"(Quarterly!FB190-Quarterly!FB189)*100","v":-14.333333333333176},-10.333333333333261,{"$f":"(Quarterly!FD190-Quarterly!FD189)*100","v":-9.3333333333333712},{"$f":"(Quarterly!FE190-Quarterly!FE189)*100","v":-1.3333333333333419},{"$f":"(Quarterly!FF190-Quarterly!FF189)*100","v":7.6666666666666661},{"$f":"(Quarterly!FG190-Quarterly!FG189)*100","v":18.333333333333336},{"$f":"(Quarterly!FH190-Quarterly!FH189)*100","v":10.999999999999988},{"$f":"(Quarterly!FI190-Quarterly!FI189)*100","v":5.3333333333332789},-2.3333333333333872,null,null,null,null,null,{"$f":"((Quarterly!FP190/Quarterly!FP189)^4)-1","v":-0.17451710444716684},{"$f":"((Quarterly!FQ190/Quarterly!FQ189)^4)-1","v":-1.2886234665787644E-4},{"$f":"((Quarterly!FR190/Quarterly!FR189)^4)-1","v":0.18814219515830266},{"$f":"((Quarterly!FS190/Quarterly!FS189)^4)-1","v":0.24952381338876584},{"$f":"((Quarterly!FT190/Quarterly!FT189)^4)-1","v":-0.11054253372101308},{"$f":"((Quarterly!FU190/Quarterly!FU189)^4)-1","v":-0.20859732908296325},{"$f":"((Quarterly!FV190/Quarterly!FV189)^4)-1","v":0.25073944913779345},{"$f":"((Quarterly!FW190/Quarterly!FW189)^4)-1","v":0.18917134319027307},{"$f":"((Quarterly!FX190/Quarterly!FX189)^4)-1","v":0.21729636140013819},null,null,null,null,null,{"$f":"((Quarterly!GD190/Quarterly!GD189)^4)-1","v":0.13570864197941912},{"$f":"((Quarterly!GE190/Quarterly!GE189)^4)-1","v":0.13885717262539843},{"$f":"((Quarterly!GF190/Quarterly!GF189)^4)-1","v":-0.4111144052728406},{"$f":"((Quarterly!GG190/Quarterly!GG189)^4)-1","v":5.961587729048845E-2},{"$f":"((Quarterly!GH190/Quarterly!GH189)^4)-1","v":{"$error":"#DIV/0!"}},"--",{"$f":"((Quarterly!GJ190/Quarterly!GJ189)^4)-1","v":0.516323309920526},{"$f":"((Quarterly!GK190/Quarterly!GK189)^4)-1","v":0.35293785690691082},"--"]
["04'Q1",{"$f":"((Quarterly!B191/Quarterly!B190)^4)-1","v":5.9355742088504915E-2},{"$f":"((Quarterly!C191/Quarterly!C190)^4)-1","v":2.3201818891916748E-2},{"$f":"((Quarterly!D191/Quarterly!D190)^4)-1","v":2.0287782405623123E-2},{"$f":"((Quarterly!E191/Quarterly!E190)^4)-1","v":3.9481542062161923E-2},{"$f":"((Quarterly!F191/Quarterly!F190)^4)-1","v":6.8146930784338755E-2},{"$f":"((Quarterly!G191/Quarterly!G190)^4)-1","v":3.0475656276633289E-2},{"$f":"((Quarterly!H191/Quarterly!H190)^4)-1","v":3.7015602512745271E-2},{"$f":"((Quarterly!I191/Quarterly!I190)^4)-1","v":-4.369529490393731E-2},{"$f":"((Quarterly!J191/Quarterly!J190)^4)-1","v":-2.9699861194007804E-2},{"$f":"((Quarterly!K191/Quarterly!K190)^4)-1","v":4.7614512296498157E-2},{"$f":"((Quarterly!L191-Quarterly!L190))","v":9.8419999999999987},{"$f":"((Quarterly!M191/Quarterly!M190)^4)-1","v":0.12853407007797424},{"$f":"((Quarterly!N191/Quarterly!N190)^4)-1","v":0.1262246996119385},{"$f":"((Quarterly!O191/Quarterly!O190)^4)-1","v":0.13291059294012553},{"$f":"((Quarterly!P191/Quarterly!P190)^4)-1","v":1.0972525245982467E-2},{"$f":"((Quarterly!Q191/Quarterly!Q190)^4)-1","v":0.42254489577515431},null,null,null,null,null,{"$f":"((Quarterly!W191/Quarterly!W190)^4)-1","v":2.7117106917733835E-2},{"$f":"((Quarterly!X191/Quarterly!X190)^4)-1","v":2.9881488030779391E-2},{"$f":"((Quarterly!Y191/Quarterly!Y190)^4)-1","v":-4.6971793111903914E-2},{"$f":"Quarterly!Z191-Quarterly!Z190","v":-0.59},{"$f":"((Quarterly!AA191/Quarterly!AA190)^4)-1","v":0.72131815436128521},{"$f":"((Quarterly!AB191/Quarterly!AB190)^4)-1","v":0.53976193066008316},{"$f":"Quarterly!AC191-Quarterly!AC190","v":-9.9999999999999645E-2},{"$f":"Quarterly!AD191-Quarterly!AD190","v":25.7},{"$f":"(Quarterly!AE191-Quarterly!AE190)*100","v":-10.999999999999988},{"$f":"(Quarterly!AF191-Quarterly!AF190)*100","v":-59},{"$f":"(Quarterly!AG191-Quarterly!AG190)*100","v":-17.000000000000004},{"$f":"((Quarterly!AH191/Quarterly!AH190)^4)-1","v":0.32438411981592519},{"$f":"((Quarterly!AI191/Quarterly!AI190)^4)-1","v":0.23047859477864363},{"$f":"((Quarterly!AJ191/Quarterly!AJ190)^4)-1","v":0.11037209564912209},{"$f":"((Quarterly!AK191/Quarterly!AK190)^4)-1","v":4.7739931790900858E-2},{"$f":"((Quarterly!AL191/Quarterly!AL190)^4)-1","v":2.1174491009306129E-2},{"$f":"((Quarterly!AM191/Quarterly!AM190)^4)-1","v":2.6935848098121218E-2},{"$f":"((Quarterly!AN191/Quarterly!AN190)^4)-1","v":2.3988741193704755E-2},{"$f":"((Quarterly!AO191/Quarterly!AO190)^4)-1","v":4.7802127607965428E-2},{"$f":"(Quarterly!AP191-Quarterly!AP190)*100","v":-1.3333333333333197},{"$f":"Quarterly!AQ191-Quarterly!AQ190","v":2.5333333333333314},{"$f":"Quarterly!AR191-Quarterly!AR190","v":4.1666666666666643},{"$f":"Quarterly!AS191-Quarterly!AS190","v":0.1666666666666714},{"$f":"Quarterly!AT191-Quarterly!AT190","v":4.7666666666666728},{"$f":"Quarterly!AU191-Quarterly!AU190","v":-1.1333333333333258},{"$f":"Quarterly!AV191-Quarterly!AV190","v":-0.73333333333333428},{"$f":"Quarterly!AW191-Quarterly!AW190","v":1.2333333333333343},{"$f":"Quarterly!AX191-Quarterly!AX190","v":-1.0333333333333314},{"$f":"Quarterly!AY191-Quarterly!AY190","v":18.166666666666664},{"$f":"Quarterly!AZ191-Quarterly!AZ190","v":0.76666666666667993},{"$f":"Quarterly!BA191-Quarterly!BA190","v":6.9333333333333371},{"$f":"Quarterly!BB191-Quarterly!BB190","v":2.3333333333333357},{"$f":"((Quarterly!BC191/Quarterly!BC190)^4)-1","v":1.2909944396348072E-2},{"$f":"((Quarterly!BD191/Quarterly!BD190)^4)-1","v":2.9542961310958571E-2},{"$f":"((Quarterly!BE191/Quarterly!BE190)^4)-1","v":-0.11142799208463228},{"$f":"((Quarterly!BF191/Quarterly!BF190)^4)-1","v":-5.190372552490996E-3},{"$f":"((Quarterly!BG191/Quarterly!BG190)^4)-1","v":-6.5851929699356493E-4},{"$f":"((Quarterly!BH191/Quarterly!BH190)^4)-1","v":-3.8178722174793012E-2},{"$f":"((Quarterly!BI191/Quarterly!BI190)^4)-1","v":-4.5555294726054019E-3},{"$f":"((Quarterly!BJ191/Quarterly!BJ190)^4)-1","v":0.90503154900738902},{"$f":"((Quarterly!BK191/Quarterly!BK190)^4)-1","v":-0.92670076363259657},null,{"$f":"((Quarterly!BM191/Quarterly!BM190)^4)-1","v":7.5236318897528909E-2},{"$f":"((Quarterly!BN191/Quarterly!BN190)^4)-1","v":7.6316260547526937E-2},null,null,null,null,null,{"$f":"((Quarterly!BT191/Quarterly!BT190)^4)-1","v":0.18209769449786384},{"$f":"Quarterly!BU191-Quarterly!BU190","v":-2.9099999999999682E-2},{"$f":"Quarterly!BV191-Quarterly!BV190","v":-5.2189999999999515E-2},{"$f":"((Quarterly!BW191/Quarterly!BW190)^4)-1","v":0.11743121583092808},{"$f":"((Quarterly!BX191/Quarterly!BX190)^4)-1","v":-0.21137664978398574},{"$f":"((Quarterly!BY191/Quarterly!BY190)^4)-1","v":4.6068350245117573E-2},{"$f":"((Quarterly!BZ191/Quarterly!BZ190)^4)-1","v":0.16650900626691412},{"$f":"((Quarterly!CA191/Quarterly!CA190)^4)-1","v":-4.3459807212968604E-2},{"$f":"((Quarterly!CB191/Quarterly!CB190)^4)-1","v":-0.15223074461050379},{"$f":"((Quarterly!CC191/Quarterly!CC190)^4)-1","v":-0.13073324236878947},"--","--",null,"--","--",null,{"$f":"((Quarterly!CJ191/Quarterly!CJ190)^4)-1","v":0.30843922915687472},{"$f":"((Quarterly!CK191/Quarterly!CK190)^4)-1","v":4.9648420581249519E-2},{"$f":"((Quarterly!CL191/Quarterly!CL190)^4)-1","v":-0.11117956855425182},{"$f":"((Quarterly!CM191/Quarterly!CM190)^4)-1","v":-0.21970532308020041},{"$f":"((Quarterly!CN191/Quarterly!CN190)^4)-1","v":2.9484531407653503E-2},{"$f":"((Quarterly!CO191/Quarterly!CO190)^4)-1","v":9.8482757624337669E-2},{"$f":"((Quarterly!CP191/Quarterly!CP190)^4)-1","v":5.5252832429412813E-2},{"$f":"((Quarterly!CQ191/Quarterly!CQ190)^4)-1","v":7.9377147930776992E-3},{"$f":"((Quarterly!CR191/Quarterly!CR190)^4)-1","v":3.9417504783530566E-2},{"$f":"Quarterly!CS191-Quarterly!CS190","v":6.0333333333333456},{"$f":"Quarterly!CT191-Quarterly!CT190","v":1.8999999999999915},null,null,null,null,null,{"$f":"((Quarterly!CZ191/Quarterly!CZ190)^4)-1","v":3.4281577182199374E-2},{"$f":"((Quarterly!DA191/Quarterly!DA190)^4)-1","v":1.937659969440686E-2},null,null,null,null,null,{"$f":"((Quarterly!DG191/Quarterly!DG190)^4)-1","v":1.4907417151160507E-2},{"$f":"((Quarterly!DH191-Quarterly!DH190)*60)","v":2.0000000000003126},{"$f":"Quarterly!DI191-Quarterly!DI190","v":0},{"$f":"(Quarterly!DJ191-Quarterly!DJ190)*100","v":-13.333333333333286},{"$f":"(Quarterly!DK191-Quarterly!DK190)*100","v":-13.333333333333286},{"$f":"((Quarterly!DL191/Quarterly!DL190)^4)-1","v":-8.7256678576893565E-3},null,null,null,{"$f":"((Quarterly!DP191/Quarterly!DP190)^4)-1","v":1.1911882962128084E-2},null,null,null,"--",{"$f":"Quarterly!DU191-Quarterly!DU190","v":-3.3333333333334991E-2},{"$f":"((Quarterly!DV191/Quarterly!DV190)^4)-1","v":1.9972651780755912E-2},{"$f":"((Quarterly!DW191/Quarterly!DW190)^4)-1","v":-9.3430224104277815E-2},{"$f":"((Quarterly!DX191/Quarterly!DX190)^4)-1","v":-6.6616423474677999E-2},{"$f":"((Quarterly!DY191/Quarterly!DY190)^4)-1","v":-0.1227043732139983},{"$f":"((Quarterly!DZ191/Quarterly!DZ190)^4)-1","v":-4.772837409286379E-2},{"$f":"((Quarterly!EA191/Quarterly!EA190)^4)-1","v":-9.3740778345497988E-2},{"$f":"((Quarterly!EB191/Quarterly!EB190)^4)-1","v":6.637850980917448E-2},{"$f":"((Quarterly!EC191/Quarterly!EC190)^4)-1","v":-0.15522518570789778},null,null,null,null,null,{"$f":"((Quarterly!EI191/Quarterly!EI190)^4)-1","v":2.1867759769194084E-2},{"$f":"((Quarterly!EJ191/Quarterly!EJ190)^4)-1","v":3.0985567741320885E-2},{"$f":"((Quarterly!EK191/Quarterly!EK190)^4)-1","v":3.5234583380804763E-2},null,null,null,null,null,{"$f":"((Quarterly!EQ191/Quarterly!EQ190)^4)-1","v":8.7991502429756174E-2},{"$f":"((Quarterly!ER191/Quarterly!ER190)^4)-1","v":1.2416702803017765E-2},{"$f":"((Quarterly!ES191/Quarterly!ES190)^4)-1","v":5.7279089877757539E-3},null,null,null,null,null,{"$f":"(Quarterly!EY191-Quarterly!EY190)*100","v":0},{"$f":"(Quarterly!EZ191-Quarterly!EZ190)*100","v":0.66666666666665986},{"$f":"(Quarterly!FA191-Quarterly!FA190)*100","v":-20.000000000000107},{"$f":"(Quarterly!FB191-Quarterly!FB190)*100","v":-39.000000000000057},-18.99999999999995,{"$f":"(Quarterly!FD191-Quarterly!FD190)*100","v":-30.999999999999961},{"$f":"(Quarterly!FE191-Quarterly!FE190)*100","v":0},{"$f":"(Quarterly!FF191-Quarterly!FF190)*100","v":-7.6666666666666661},{"$f":"(Quarterly!FG191-Quarterly!FG190)*100","v":-16.999999999999993},{"$f":"(Quarterly!FH191-Quarterly!FH190)*100","v":-25.666666666666636},{"$f":"(Quarterly!FI191-Quarterly!FI190)*100","v":-26.666666666666572},-18.999999999999908,null,null,null,null,null,{"$f":"((Quarterly!FP191/Quarterly!FP190)^4)-1","v":6.5002452243760889E-3},{"$f":"((Quarterly!FQ191/Quarterly!FQ190)^4)-1","v":8.0547886684989578E-5},{"$f":"((Quarterly!FR191/Quarterly!FR190)^4)-1","v":-7.062629282065469E-2},{"$f":"((Quarterly!FS191/Quarterly!FS190)^4)-1","v":0.21951664580215025},{"$f":"((Quarterly!FT191/Quarterly!FT190)^4)-1","v":-7.5231391007803627E-2},{"$f":"((Quarterly!FU191/Quarterly!FU190)^4)-1","v":-0.11059803206725105},{"$f":"((Quarterly!FV191/Quarterly!FV190)^4)-1","v":0.27967972565695609},{"$f":"((Quarterly!FW191/Quarterly!FW190)^4)-1","v":-0.36175349308349791},{"$f":"((Quarterly!FX191/Quarterly!FX190)^4)-1","v":4.8376728035453898E-2},null,null,null,null,null,{"$f":"((Quarterly!GD191/Quarterly!GD190)^4)-1","v":0.632689123084472},{"$f":"((Quarterly!GE191/Quarterly!GE190)^4)-1","v":0.3919850998697354},{"$f":"((Quarterly!GF191/Quarterly!GF190)^4)-1","v":0.84772259595456045},{"$f":"((Quarterly!GG191/Quarterly!GG190)^4)-1","v":0.30781641398089499},{"$f":"((Quarterly!GH191/Quarterly!GH190)^4)-1","v":{"$error":"#DIV/0!"}},"--",{"$f":"((Quarterly!GJ191/Quarterly!GJ190)^4)-1","v":0.23654968002956034},{"$f":"((Quarterly!GK191/Quarterly!GK190)^4)-1","v":0.25819589800046994},"--"]
["04'Q2",{"$f":"((Quarterly!B192/Quarterly!B191)^4)-1","v":6.5965618834148421E-2},{"$f":"((Quarterly!C192/Quarterly!C191)^4)-1","v":2.9644639446657184E-2},{"$f":"((Quarterly!D192/Quarterly!D191)^4)-1","v":2.1779206931205497E-2},{"$f":"((Quarterly!E192/Quarterly!E191)^4)-1","v":2.6212686418536135E-2},{"$f":"((Quarterly!F192/Quarterly!F191)^4)-1","v":3.9501449710501069E-2},{"$f":"((Quarterly!G192/Quarterly!G191)^4)-1","v":1.2503632910637608E-2},{"$f":"((Quarterly!H192/Quarterly!H191)^4)-1","v":2.8415330333238176E-2},{"$f":"((Quarterly!I192/Quarterly!I191)^4)-1","v":9.19469783378426E-2},{"$f":"((Quarterly!J192/Quarterly!J191)^4)-1","v":0.11758892804435339},{"$f":"((Quarterly!K192/Quarterly!K191)^4)-1","v":0.13364043714489515},{"$f":"((Quarterly!L192-Quarterly!L191))","v":25.483000000000004},{"$f":"((Quarterly!M192/Quarterly!M191)^4)-1","v":0.17489454424853634},{"$f":"((Quarterly!N192/Quarterly!N191)^4)-1","v":5.2579897892790495E-2},{"$f":"((Quarterly!O192/Quarterly!O191)^4)-1","v":0.43455235448563956},{"$f":"((Quarterly!P192/Quarterly!P191)^4)-1","v":2.3086805911526564E-2},{"$f":"((Quarterly!Q192/Quarterly!Q191)^4)-1","v":-0.30852162930827576},null,null,null,null,null,{"$f":"((Quarterly!W192/Quarterly!W191)^4)-1","v":3.2386052096000206E-2},{"$f":"((Quarterly!X192/Quarterly!X191)^4)-1","v":2.4378507227106772E-2},{"$f":"((Quarterly!Y192/Quarterly!Y191)^4)-1","v":-3.5828899580209406E-2},{"$f":"Quarterly!Z192-Quarterly!Z191","v":-8.9999999999999969E-2},{"$f":"((Quarterly!AA192/Quarterly!AA191)^4)-1","v":0.17870577038257451},{"$f":"((Quarterly!AB192/Quarterly!AB191)^4)-1","v":3.1637493136391415E-2},{"$f":"Quarterly!AC192-Quarterly!AC191","v":-9.4},{"$f":"Quarterly!AD192-Quarterly!AD191","v":15.7},{"$f":"(Quarterly!AE192-Quarterly!AE191)*100","v":-13.000000000000011},{"$f":"(Quarterly!AF192-Quarterly!AF191)*100","v":-8.9999999999999964},{"$f":"(Quarterly!AG192-Quarterly!AG191)*100","v":-4.9999999999999929},{"$f":"((Quarterly!AH192/Quarterly!AH191)^4)-1","v":0.20310461643790045},{"$f":"((Quarterly!AI192/Quarterly!AI191)^4)-1","v":0.15171030147898068},{"$f":"((Quarterly!AJ192/Quarterly!AJ191)^4)-1","v":6.6166717935108421E-2},{"$f":"((Quarterly!AK192/Quarterly!AK191)^4)-1","v":3.8477727643261073E-2},{"$f":"((Quarterly!AL192/Quarterly!AL191)^4)-1","v":2.9580680077637478E-2},{"$f":"((Quarterly!AM192/Quarterly!AM191)^4)-1","v":2.323689025256237E-2},{"$f":"((Quarterly!AN192/Quarterly!AN191)^4)-1","v":3.2071973709496993E-2},{"$f":"((Quarterly!AO192/Quarterly!AO191)^4)-1","v":9.2899759877534738E-2},{"$f":"(Quarterly!AP192-Quarterly!AP191)*100","v":0},{"$f":"Quarterly!AQ192-Quarterly!AQ191","v":0.40000000000000568},{"$f":"Quarterly!AR192-Quarterly!AR191","v":0.6666666666666643},{"$f":"Quarterly!AS192-Quarterly!AS191","v":-0.5},{"$f":"Quarterly!AT192-Quarterly!AT191","v":3.1000000000000014},{"$f":"Quarterly!AU192-Quarterly!AU191","v":1.5666666666666629},{"$f":"Quarterly!AV192-Quarterly!AV191","v":-0.39999999999999147},{"$f":"Quarterly!AW192-Quarterly!AW191","v":0.13333333333333286},{"$f":"Quarterly!AX192-Quarterly!AX191","v":-3.0666666666666629},{"$f":"Quarterly!AY192-Quarterly!AY191","v":4},{"$f":"Quarterly!AZ192-Quarterly!AZ191","v":-2.0333333333333456},{"$f":"Quarterly!BA192-Quarterly!BA191","v":3.6666666666666501},{"$f":"Quarterly!BB192-Quarterly!BB191","v":-2.2333333333333343},{"$f":"((Quarterly!BC192/Quarterly!BC191)^4)-1","v":1.7771179585514441E-2},{"$f":"((Quarterly!BD192/Quarterly!BD191)^4)-1","v":7.0089964062068688E-2},{"$f":"((Quarterly!BE192/Quarterly!BE191)^4)-1","v":2.2695751006099885E-2},{"$f":"((Quarterly!BF192/Quarterly!BF191)^4)-1","v":7.8201098038897854E-2},{"$f":"((Quarterly!BG192/Quarterly!BG191)^4)-1","v":3.7857332884735584E-2},{"$f":"((Quarterly!BH192/Quarterly!BH191)^4)-1","v":4.5312441990658758E-2},{"$f":"((Quarterly!BI192/Quarterly!BI191)^4)-1","v":3.8886803312307094E-2},{"$f":"((Quarterly!BJ192/Quarterly!BJ191)^4)-1","v":0.50104325672204264},{"$f":"((Quarterly!BK192/Quarterly!BK191)^4)-1","v":-0.45458024740219116},null,{"$f":"((Quarterly!BM192/Quarterly!BM191)^4)-1","v":4.2808497618252783E-2},{"$f":"((Quarterly!BN192/Quarterly!BN191)^4)-1","v":4.462434250429248E-2},null,null,null,null,null,{"$f":"((Quarterly!BT192/Quarterly!BT191)^4)-1","v":3.0471034048513479E-2},{"$f":"Quarterly!BU192-Quarterly!BU191","v":-6.0880000000000933E-2},{"$f":"Quarterly!BV192-Quarterly!BV191","v":-8.1400000000002137E-2},{"$f":"((Quarterly!BW192/Quarterly!BW191)^4)-1","v":7.9560373472139734E-2},{"$f":"((Quarterly!BX192/Quarterly!BX191)^4)-1","v":4.0210206263550541E-2},{"$f":"((Quarterly!BY192/Quarterly!BY191)^4)-1","v":0.18242068700777647},{"$f":"((Quarterly!BZ192/Quarterly!BZ191)^4)-1","v":0.19670912487012115},{"$f":"((Quarterly!CA192/Quarterly!CA191)^4)-1","v":1.9181776947560403E-2},{"$f":"((Quarterly!CB192/Quarterly!CB191)^4)-1","v":0.54791626565327456},{"$f":"((Quarterly!CC192/Quarterly!CC191)^4)-1","v":0.30745661097345334},"--","--",null,"--","--",null,{"$f":"((Quarterly!CJ192/Quarterly!CJ191)^4)-1","v":7.8004923839787299E-3},{"$f":"((Quarterly!CK192/Quarterly!CK191)^4)-1","v":6.859217399886619E-2},{"$f":"((Quarterly!CL192/Quarterly!CL191)^4)-1","v":0.39320116030284891},{"$f":"((Quarterly!CM192/Quarterly!CM191)^4)-1","v":0.13565409810386875},{"$f":"((Quarterly!CN192/Quarterly!CN191)^4)-1","v":3.998396821554806E-2},{"$f":"((Quarterly!CO192/Quarterly!CO191)^4)-1","v":0.17987352028823378},{"$f":"((Quarterly!CP192/Quarterly!CP191)^4)-1","v":4.408438042194196E-2},{"$f":"((Quarterly!CQ192/Quarterly!CQ191)^4)-1","v":8.5919278206250116E-3},{"$f":"((Quarterly!CR192/Quarterly!CR191)^4)-1","v":2.1273587742643096E-2},{"$f":"Quarterly!CS192-Quarterly!CS191","v":-4.6666666666666714},{"$f":"Quarterly!CT192-Quarterly!CT191","v":4.7333333333333343},null,null,null,null,null,{"$f":"((Quarterly!CZ192/Quarterly!CZ191)^4)-1","v":3.1795179098389692E-2},{"$f":"((Quarterly!DA192/Quarterly!DA191)^4)-1","v":2.5540176471442022E-2},null,null,null,null,null,{"$f":"((Quarterly!DG192/Quarterly!DG191)^4)-1","v":2.7126301238465267E-2},{"$f":"((Quarterly!DH192-Quarterly!DH191)*60)","v":-2.0000000000003126},{"$f":"Quarterly!DI192-Quarterly!DI191","v":-3.3333333333331439E-2},{"$f":"(Quarterly!DJ192-Quarterly!DJ191)*100","v":-30.000000000000071},{"$f":"(Quarterly!DK192-Quarterly!DK191)*100","v":-10.000000000000142},{"$f":"((Quarterly!DL192/Quarterly!DL191)^4)-1","v":1.2471571164127004E-2},null,null,null,{"$f":"((Quarterly!DP192/Quarterly!DP191)^4)-1","v":2.2118127720975655E-2},null,null,null,"--",{"$f":"Quarterly!DU192-Quarterly!DU191","v":-0.19999999999999929},{"$f":"((Quarterly!DV192/Quarterly!DV191)^4)-1","v":2.5344481932392471E-2},{"$f":"((Quarterly!DW192/Quarterly!DW191)^4)-1","v":0.11948347083732713},{"$f":"((Quarterly!DX192/Quarterly!DX191)^4)-1","v":5.4262323846759886E-2},{"$f":"((Quarterly!DY192/Quarterly!DY191)^4)-1","v":6.6664461921307705E-2},{"$f":"((Quarterly!DZ192/Quarterly!DZ191)^4)-1","v":5.0316880948793496E-2},{"$f":"((Quarterly!EA192/Quarterly!EA191)^4)-1","v":3.6911105391405297E-2},{"$f":"((Quarterly!EB192/Quarterly!EB191)^4)-1","v":8.0806703726153506E-2},{"$f":"((Quarterly!EC192/Quarterly!EC191)^4)-1","v":0.29223544930740597},null,null,null,null,null,{"$f":"((Quarterly!EI192/Quarterly!EI191)^4)-1","v":5.8789832284028565E-2},{"$f":"((Quarterly!EJ192/Quarterly!EJ191)^4)-1","v":3.4417324257816961E-2},{"$f":"((Quarterly!EK192/Quarterly!EK191)^4)-1","v":3.1132451667688299E-2},null,null,null,null,null,{"$f":"((Quarterly!EQ192/Quarterly!EQ191)^4)-1","v":0.11939424851538716},{"$f":"((Quarterly!ER192/Quarterly!ER191)^4)-1","v":2.2184403140585784E-2},{"$f":"((Quarterly!ES192/Quarterly!ES191)^4)-1","v":2.5932140322160402E-2},null,null,null,null,null,{"$f":"(Quarterly!EY192-Quarterly!EY191)*100","v":0.33333333333329662},{"$f":"(Quarterly!EZ192-Quarterly!EZ191)*100","v":0.66666666666668206},{"$f":"(Quarterly!FA192-Quarterly!FA191)*100","v":47.000000000000064},{"$f":"(Quarterly!FB192-Quarterly!FB191)*100","v":39.000000000000057},-8.0000000000000071,{"$f":"(Quarterly!FD192-Quarterly!FD191)*100","v":52.000000000000043},{"$f":"(Quarterly!FE192-Quarterly!FE191)*100","v":16.000000000000004},{"$f":"(Quarterly!FF192-Quarterly!FF191)*100","v":55.333333333333321},{"$f":"(Quarterly!FG192-Quarterly!FG191)*100","v":75.999999999999972},{"$f":"(Quarterly!FH192-Quarterly!FH191)*100","v":72.999999999999957},{"$f":"(Quarterly!FI192-Quarterly!FI191)*100","v":58.000000000000007},2.6666666666666856,null,null,null,null,null,{"$f":"((Quarterly!FP192/Quarterly!FP191)^4)-1","v":0.13190138827224551},{"$f":"((Quarterly!FQ192/Quarterly!FQ191)^4)-1","v":-8.0541399245181999E-5},{"$f":"((Quarterly!FR192/Quarterly!FR191)^4)-1","v":0.15526431055268963},{"$f":"((Quarterly!FS192/Quarterly!FS191)^4)-1","v":-0.1414186726921336},{"$f":"((Quarterly!FT192/Quarterly!FT191)^4)-1","v":9.4397449846248094E-2},{"$f":"((Quarterly!FU192/Quarterly!FU191)^4)-1","v":0.13317522146046024},{"$f":"((Quarterly!FV192/Quarterly!FV191)^4)-1","v":0.39165447267123898},{"$f":"((Quarterly!FW192/Quarterly!FW191)^4)-1","v":1.0232717149527346},{"$f":"((Quarterly!FX192/Quarterly!FX191)^4)-1","v":0.36762620078599118},null,null,null,null,null,{"$f":"((Quarterly!GD192/Quarterly!GD191)^4)-1","v":0.39698028931790263},{"$f":"((Quarterly!GE192/Quarterly!GE191)^4)-1","v":0.52008780277082378},{"$f":"((Quarterly!GF192/Quarterly!GF191)^4)-1","v":0.78284002478907277},{"$f":"((Quarterly!GG192/Quarterly!GG191)^4)-1","v":0.3668913746433502},{"$f":"((Quarterly!GH192/Quarterly!GH191)^4)-1","v":{"$error":"#DIV/0!"}},"--",{"$f":"((Quarterly!GJ192/Quarterly!GJ191)^4)-1","v":0.34467064366699685},{"$f":"((Quarterly!GK192/Quarterly!GK191)^4)-1","v":-0.11633050228349973},"--"]
["04'Q3",{"$f":"((Quarterly!B193/Quarterly!B192)^4)-1","v":6.26088207848432E-2},{"$f":"((Quarterly!C193/Quarterly!C192)^4)-1","v":3.6856145372083482E-2},{"$f":"((Quarterly!D193/Quarterly!D192)^4)-1","v":4.0330619729036954E-2},{"$f":"((Quarterly!E193/Quarterly!E192)^4)-1","v":3.8810029093280685E-2},{"$f":"((Quarterly!F193/Quarterly!F192)^4)-1","v":8.0373521328011677E-2},{"$f":"((Quarterly!G193/Quarterly!G192)^4)-1","v":3.1279991615510649E-2},{"$f":"((Quarterly!H193/Quarterly!H192)^4)-1","v":3.3246137980514012E-2},{"$f":"((Quarterly!I193/Quarterly!I192)^4)-1","v":0.11319702348922678},{"$f":"((Quarterly!J193/Quarterly!J192)^4)-1","v":0.1313021626944415},{"$f":"((Quarterly!K193/Quarterly!K192)^4)-1","v":2.8507853988450682E-2},{"$f":"((Quarterly!L193-Quarterly!L192))","v":-10.801000000000002},{"$f":"((Quarterly!M193/Quarterly!M192)^4)-1","v":4.1018819532784745E-2},{"$f":"((Quarterly!N193/Quarterly!N192)^4)-1","v":2.3330731212032108E-2},{"$f":"((Quarterly!O193/Quarterly!O192)^4)-1","v":7.2477754518815107E-2},{"$f":"((Quarterly!P193/Quarterly!P192)^4)-1","v":1.5377992493721404E-2},{"$f":"((Quarterly!Q193/Quarterly!Q192)^4)-1","v":-0.25921935000546037},null,null,null,null,null,{"$f":"((Quarterly!W193/Quarterly!W192)^4)-1","v":3.7554623008480892E-2},{"$f":"((Quarterly!X193/Quarterly!X192)^4)-1","v":2.2485608112319255E-2},{"$f":"((Quarterly!Y193/Quarterly!Y192)^4)-1","v":8.0969587903605866E-2},{"$f":"Quarterly!Z193-Quarterly!Z192","v":-8.0000000000000071E-2},{"$f":"((Quarterly!AA193/Quarterly!AA192)^4)-1","v":0.17700728559219114},{"$f":"((Quarterly!AB193/Quarterly!AB192)^4)-1","v":0.16019012291444201},{"$f":"Quarterly!AC193-Quarterly!AC192","v":-2.0999999999999996},{"$f":"Quarterly!AD193-Quarterly!AD192","v":1.3999999999999986},{"$f":"(Quarterly!AE193-Quarterly!AE192)*100","v":-4.9999999999999929},{"$f":"(Quarterly!AF193-Quarterly!AF192)*100","v":-8.0000000000000071},{"$f":"(Quarterly!AG193-Quarterly!AG192)*100","v":-6.0000000000000053},{"$f":"((Quarterly!AH193/Quarterly!AH192)^4)-1","v":0.24445394514940677},{"$f":"((Quarterly!AI193/Quarterly!AI192)^4)-1","v":0.17126596488927714},{"$f":"((Quarterly!AJ193/Quarterly!AJ192)^4)-1","v":4.3050946780028854E-2},{"$f":"((Quarterly!AK193/Quarterly!AK192)^4)-1","v":3.8111160374816988E-2},{"$f":"((Quarterly!AL193/Quarterly!AL192)^4)-1","v":3.361052763486061E-2},{"$f":"((Quarterly!AM193/Quarterly!AM192)^4)-1","v":2.2837432458377549E-2},{"$f":"((Quarterly!AN193/Quarterly!AN192)^4)-1","v":3.8382684725078553E-2},{"$f":"((Quarterly!AO193/Quarterly!AO192)^4)-1","v":0.10166286492874921},{"$f":"(Quarterly!AP193-Quarterly!AP192)*100","v":0.66666666666665986},{"$f":"Quarterly!AQ193-Quarterly!AQ192","v":-2.2333333333333343},{"$f":"Quarterly!AR193-Quarterly!AR192","v":-6.6666666666666643},{"$f":"Quarterly!AS193-Quarterly!AS192","v":2.6666666666666643},{"$f":"Quarterly!AT193-Quarterly!AT192","v":-1.6333333333333329},{"$f":"Quarterly!AU193-Quarterly!AU192","v":-3.7333333333333272},{"$f":"Quarterly!AV193-Quarterly!AV192","v":0.10000000000000142},{"$f":"Quarterly!AW193-Quarterly!AW192","v":3.0666666666666629},{"$f":"Quarterly!AX193-Quarterly!AX192","v":-3.2999999999999972},{"$f":"Quarterly!AY193-Quarterly!AY192","v":-6.8333333333333286},{"$f":"Quarterly!AZ193-Quarterly!AZ192","v":-4.2333333333333272},{"$f":"Quarterly!BA193-Quarterly!BA192","v":-4.9999999999999929},{"$f":"Quarterly!BB193-Quarterly!BB192","v":-0.96666666666666856},{"$f":"((Quarterly!BC193/Quarterly!BC192)^4)-1","v":0.11879284091940945},{"$f":"((Quarterly!BD193/Quarterly!BD192)^4)-1","v":5.2317838319912324E-2},{"$f":"((Quarterly!BE193/Quarterly!BE192)^4)-1","v":4.961473834241148E-2},{"$f":"((Quarterly!BF193/Quarterly!BF192)^4)-1","v":7.1459052800824985E-2},{"$f":"((Quarterly!BG193/Quarterly!BG192)^4)-1","v":1.4173007484092226E-2},{"$f":"((Quarterly!BH193/Quarterly!BH192)^4)-1","v":4.5017405279178524E-2},{"$f":"((Quarterly!BI193/Quarterly!BI192)^4)-1","v":5.6495403724776461E-2},{"$f":"((Quarterly!BJ193/Quarterly!BJ192)^4)-1","v":0.17702927241571964},{"$f":"((Quarterly!BK193/Quarterly!BK192)^4)-1","v":-0.46673795505771509},null,{"$f":"((Quarterly!BM193/Quarterly!BM192)^4)-1","v":6.3166047569047867E-2},{"$f":"((Quarterly!BN193/Quarterly!BN192)^4)-1","v":6.2486217865169058E-2},null,null,null,null,null,{"$f":"((Quarterly!BT193/Quarterly!BT192)^4)-1","v":3.7901604898967101E-2},{"$f":"Quarterly!BU193-Quarterly!BU192","v":0.11842000000000041},{"$f":"Quarterly!BV193-Quarterly!BV192","v":0.12648000000000081},{"$f":"((Quarterly!BW193/Quarterly!BW192)^4)-1","v":0.10270339504166048},{"$f":"((Quarterly!BX193/Quarterly!BX192)^4)-1","v":8.4449352114771781E-2},{"$f":"((Quarterly!BY193/Quarterly!BY192)^4)-1","v":-1.9724201622003279E-2},{"$f":"((Quarterly!BZ193/Quarterly!BZ192)^4)-1","v":0.16323208908453579},{"$f":"((Quarterly!CA193/Quarterly!CA192)^4)-1","v":8.2919422279033705E-2},{"$f":"((Quarterly!CB193/Quarterly!CB192)^4)-1","v":-0.12584140369074492},{"$f":"((Quarterly!CC193/Quarterly!CC192)^4)-1","v":-0.12203100603889383},"--","--",null,"--","--",null,{"$f":"((Quarterly!CJ193/Quarterly!CJ192)^4)-1","v":-0.13655596523704872},{"$f":"((Quarterly!CK193/Quarterly!CK192)^4)-1","v":5.6944373293102757E-2},{"$f":"((Quarterly!CL193/Quarterly!CL192)^4)-1","v":-0.30109190250048534},{"$f":"((Quarterly!CM193/Quarterly!CM192)^4)-1","v":8.2889801494677728E-2},{"$f":"((Quarterly!CN193/Quarterly!CN192)^4)-1","v":2.1267240696709155E-2},{"$f":"((Quarterly!CO193/Quarterly!CO192)^4)-1","v":8.6127820753386208E-2},{"$f":"((Quarterly!CP193/Quarterly!CP192)^4)-1","v":5.0692319573284905E-2},{"$f":"((Quarterly!CQ193/Quarterly!CQ192)^4)-1","v":9.8381479653362192E-3},{"$f":"((Quarterly!CR193/Quarterly!CR192)^4)-1","v":5.8425515945585538E-2},{"$f":"Quarterly!CS193-Quarterly!CS192","v":2.2666666666666799},{"$f":"Quarterly!CT193-Quarterly!CT192","v":4.0666666666666771},null,null,null,null,null,{"$f":"((Quarterly!CZ193/Quarterly!CZ192)^4)-1","v":2.5754361040067675E-2},{"$f":"((Quarterly!DA193/Quarterly!DA192)^4)-1","v":1.7095091232657733E-2},null,null,null,null,null,{"$f":"((Quarterly!DG193/Quarterly!DG192)^4)-1","v":2.9667578212763113E-2},{"$f":"((Quarterly!DH193-Quarterly!DH192)*60)","v":4.000000000000199},{"$f":"Quarterly!DI193-Quarterly!DI192","v":-3.3333333333345649E-2},{"$f":"(Quarterly!DJ193-Quarterly!DJ192)*100","v":-13.333333333333464},{"$f":"(Quarterly!DK193-Quarterly!DK192)*100","v":-16.666666666666519},{"$f":"((Quarterly!DL193/Quarterly!DL192)^4)-1","v":1.5827385269446825E-3},null,null,null,{"$f":"((Quarterly!DP193/Quarterly!DP192)^4)-1","v":1.012647581925874E-2},null,null,null,"--",{"$f":"Quarterly!DU193-Quarterly!DU192","v":-0.89999999999999858},{"$f":"((Quarterly!DV193/Quarterly!DV192)^4)-1","v":3.4903199243962124E-2},{"$f":"((Quarterly!DW193/Quarterly!DW192)^4)-1","v":9.9556705479178609E-2},{"$f":"((Quarterly!DX193/Quarterly!DX192)^4)-1","v":7.8323821698393914E-2},{"$f":"((Quarterly!DY193/Quarterly!DY192)^4)-1","v":5.7659164239388216E-2},{"$f":"((Quarterly!DZ193/Quarterly!DZ192)^4)-1","v":8.5025387382874129E-2},{"$f":"((Quarterly!EA193/Quarterly!EA192)^4)-1","v":0.10656172955627996},{"$f":"((Quarterly!EB193/Quarterly!EB192)^4)-1","v":3.8419072316847602E-2},{"$f":"((Quarterly!EC193/Quarterly!EC192)^4)-1","v":0.15026227951346627},null,null,null,null,null,{"$f":"((Quarterly!EI193/Quarterly!EI192)^4)-1","v":5.2264550224615292E-2},{"$f":"((Quarterly!EJ193/Quarterly!EJ192)^4)-1","v":4.6239326793995783E-2},{"$f":"((Quarterly!EK193/Quarterly!EK192)^4)-1","v":3.9019969598461657E-2},null,null,null,null,null,{"$f":"((Quarterly!EQ193/Quarterly!EQ192)^4)-1","v":3.9777761255364252E-2},{"$f":"((Quarterly!ER193/Quarterly!ER192)^4)-1","v":1.4078094137788266E-2},{"$f":"((Quarterly!ES193/Quarterly!ES192)^4)-1","v":2.0956659169399927E-2},null,null,null,null,null,{"$f":"(Quarterly!EY193-Quarterly!EY192)*100","v":41.6666666666667},{"$f":"(Quarterly!EZ193-Quarterly!EZ192)*100","v":42.333333333333336},{"$f":"(Quarterly!FA193-Quarterly!FA192)*100","v":-28.333333333333321},{"$f":"(Quarterly!FB193-Quarterly!FB192)*100","v":-21.333333333333382},6.9999999999999396,{"$f":"(Quarterly!FD193-Quarterly!FD192)*100","v":-23.666666666666636},{"$f":"(Quarterly!FE193-Quarterly!FE192)*100","v":40.999999999999993},{"$f":"(Quarterly!FF193-Quarterly!FF192)*100","v":30.333333333333346},{"$f":"(Quarterly!FG193-Quarterly!FG192)*100","v":10.666666666666691},{"$f":"(Quarterly!FH193-Quarterly!FH192)*100","v":-21.666666666666679},{"$f":"(Quarterly!FI193-Quarterly!FI192)*100","v":-29.666666666666686},-60.000000000000028,null,null,null,null,null,{"$f":"((Quarterly!FP193/Quarterly!FP192)^4)-1","v":-0.14391079361641557},{"$f":"((Quarterly!FQ193/Quarterly!FQ192)^4)-1","v":-8.0543021007239979E-5},{"$f":"((Quarterly!FR193/Quarterly!FR192)^4)-1","v":1.9745155782981083E-2},{"$f":"((Quarterly!FS193/Quarterly!FS192)^4)-1","v":6.1823741278246302E-2},{"$f":"((Quarterly!FT193/Quarterly!FT192)^4)-1","v":-3.2261949407399459E-2},{"$f":"((Quarterly!FU193/Quarterly!FU192)^4)-1","v":-6.8309644828467353E-2},{"$f":"((Quarterly!FV193/Quarterly!FV192)^4)-1","v":-0.14401836009715718},{"$f":"((Quarterly!FW193/Quarterly!FW192)^4)-1","v":0.79003805530353954},{"$f":"((Quarterly!FX193/Quarterly!FX192)^4)-1","v":-4.6086327332972798E-2},null,null,null,null,null,{"$f":"((Quarterly!GD193/Quarterly!GD192)^4)-1","v":0.71442792645229991},{"$f":"((Quarterly!GE193/Quarterly!GE192)^4)-1","v":0.85840425752643257},{"$f":"((Quarterly!GF193/Quarterly!GF192)^4)-1","v":-6.1855613043753088E-2},{"$f":"((Quarterly!GG193/Quarterly!GG192)^4)-1","v":0.29146117868916055},{"$f":"((Quarterly!GH193/Quarterly!GH192)^4)-1","v":{"$error":"#DIV/0!"}},"--",{"$f":"((Quarterly!GJ193/Quarterly!GJ192)^4)-1","v":-0.32691663357474965},{"$f":"((Quarterly!GK193/Quarterly!GK192)^4)-1","v":-5.4488694321315867E-2},"--"]
["04'Q4",{"$f":"((Quarterly!B194/Quarterly!B193)^4)-1","v":6.4377654240564075E-2},{"$f":"((Quarterly!C194/Quarterly!C193)^4)-1","v":3.5025216621291877E-2},{"$f":"((Quarterly!D194/Quarterly!D193)^4)-1","v":3.3649630914023287E-2},{"$f":"((Quarterly!E194/Quarterly!E193)^4)-1","v":4.1660978898005352E-2},{"$f":"((Quarterly!F194/Quarterly!F193)^4)-1","v":5.7664660189373773E-2},{"$f":"((Quarterly!G194/Quarterly!G193)^4)-1","v":3.6654801214992094E-2},{"$f":"((Quarterly!H194/Quarterly!H193)^4)-1","v":4.0334496201811731E-2},{"$f":"((Quarterly!I194/Quarterly!I193)^4)-1","v":8.7691104826711497E-2},{"$f":"((Quarterly!J194/Quarterly!J193)^4)-1","v":0.11986204310549065},{"$f":"((Quarterly!K194/Quarterly!K193)^4)-1","v":5.6410755168433857E-2},{"$f":"((Quarterly!L194-Quarterly!L193))","v":5.1469999999999914},{"$f":"((Quarterly!M194/Quarterly!M193)^4)-1","v":9.771031637554306E-2},{"$f":"((Quarterly!N194/Quarterly!N193)^4)-1","v":0.1005282259948399},{"$f":"((Quarterly!O194/Quarterly!O193)^4)-1","v":9.2856220355130636E-2},{"$f":"((Quarterly!P194/Quarterly!P193)^4)-1","v":-1.7517876903474838E-2},{"$f":"((Quarterly!Q194/Quarterly!Q193)^4)-1","v":8.1961924752731008E-2},null,null,null,null,null,{"$f":"((Quarterly!W194/Quarterly!W193)^4)-1","v":5.3464302704370636E-2},{"$f":"((Quarterly!X194/Quarterly!X193)^4)-1","v":5.5711709789835862E-2},{"$f":"((Quarterly!Y194/Quarterly!Y193)^4)-1","v":7.0398309767965017E-2},{"$f":"Quarterly!Z194-Quarterly!Z193","v":2.0000000000000018E-2},{"$f":"((Quarterly!AA194/Quarterly!AA193)^4)-1","v":-2.0635515067862875E-2},{"$f":"((Quarterly!AB194/Quarterly!AB193)^4)-1","v":-0.1183964773399433},{"$f":"Quarterly!AC194-Quarterly!AC193","v":2.2999999999999998},{"$f":"Quarterly!AD194-Quarterly!AD193","v":-13.399999999999999},{"$f":"(Quarterly!AE194-Quarterly!AE193)*100","v":-5.0000000000000044},{"$f":"(Quarterly!AF194-Quarterly!AF193)*100","v":2.0000000000000018},{"$f":"(Quarterly!AG194-Quarterly!AG193)*100","v":4.0000000000000036},{"$f":"((Quarterly!AH194/Quarterly!AH193)^4)-1","v":0.27290586832686436},{"$f":"((Quarterly!AI194/Quarterly!AI193)^4)-1","v":0.1487372186076954},{"$f":"((Quarterly!AJ194/Quarterly!AJ193)^4)-1","v":4.6925443349802531E-2},{"$f":"((Quarterly!AK194/Quarterly!AK193)^4)-1","v":2.5050978966675519E-2},{"$f":"((Quarterly!AL194/Quarterly!AL193)^4)-1","v":2.0735443302192902E-2},{"$f":"((Quarterly!AM194/Quarterly!AM193)^4)-1","v":5.7025198485149531E-2},{"$f":"((Quarterly!AN194/Quarterly!AN193)^4)-1","v":6.204107254119573E-2},{"$f":"((Quarterly!AO194/Quarterly!AO193)^4)-1","v":7.192690757662068E-2},{"$f":"(Quarterly!AP194-Quarterly!AP193)*100","v":-1.6666666666666607},{"$f":"Quarterly!AQ194-Quarterly!AQ193","v":-2.0333333333333385},{"$f":"Quarterly!AR194-Quarterly!AR193","v":-5.8333333333333357},{"$f":"Quarterly!AS194-Quarterly!AS193","v":2.1666666666666643},{"$f":"Quarterly!AT194-Quarterly!AT193","v":-1.8666666666666742},{"$f":"Quarterly!AU194-Quarterly!AU193","v":1.4333333333333371},{"$f":"Quarterly!AV194-Quarterly!AV193","v":1.1666666666666643},{"$f":"Quarterly!AW194-Quarterly!AW193","v":-0.89999999999999858},{"$f":"Quarterly!AX194-Quarterly!AX193","v":0.73333333333332718},{"$f":"Quarterly!AY194-Quarterly!AY193","v":-3.3333333333333428},{"$f":"Quarterly!AZ194-Quarterly!AZ193","v":-2.7999999999999972},{"$f":"Quarterly!BA194-Quarterly!BA193","v":-5.2666666666666657},{"$f":"Quarterly!BB194-Quarterly!BB193","v":1.9666666666666686},{"$f":"((Quarterly!BC194/Quarterly!BC193)^4)-1","v":9.0439381337554359E-2},{"$f":"((Quarterly!BD194/Quarterly!BD193)^4)-1","v":8.5574395953676108E-2},{"$f":"((Quarterly!BE194/Quarterly!BE193)^4)-1","v":-5.7668931256700029E-2},{"$f":"((Quarterly!BF194/Quarterly!BF193)^4)-1","v":1.7952685929609746E-2},{"$f":"((Quarterly!BG194/Quarterly!BG193)^4)-1","v":1.3246872768766016E-2},{"$f":"((Quarterly!BH194/Quarterly!BH193)^4)-1","v":-2.5291723903454133E-2},{"$f":"((Quarterly!BI194/Quarterly!BI193)^4)-1","v":4.6415243373216786E-3},{"$f":"((Quarterly!BJ194/Quarterly!BJ193)^4)-1","v":4.9433809877254653E-2},{"$f":"((Quarterly!BK194/Quarterly!BK193)^4)-1","v":0.18138890636498606},null,{"$f":"((Quarterly!BM194/Quarterly!BM193)^4)-1","v":0.10496804573223528},{"$f":"((Quarterly!BN194/Quarterly!BN193)^4)-1","v":0.10809143092766327},null,null,null,null,null,{"$f":"((Quarterly!BT194/Quarterly!BT193)^4)-1","v":2.3311235198633096E-2},{"$f":"Quarterly!BU194-Quarterly!BU193","v":1.7899999999997362E-3},{"$f":"Quarterly!BV194-Quarterly!BV193","v":-3.7699999999997402E-2},{"$f":"((Quarterly!BW194/Quarterly!BW193)^4)-1","v":5.9458515141126655E-2},{"$f":"((Quarterly!BX194/Quarterly!BX193)^4)-1","v":-2.3396664440089698E-2},{"$f":"((Quarterly!BY194/Quarterly!BY193)^4)-1","v":3.1942730126178986E-2},{"$f":"((Quarterly!BZ194/Quarterly!BZ193)^4)-1","v":0.12738889347142601},{"$f":"((Quarterly!CA194/Quarterly!CA193)^4)-1","v":4.5930191420200384E-2},{"$f":"((Quarterly!CB194/Quarterly!CB193)^4)-1","v":0.39870647608534848},{"$f":"((Quarterly!CC194/Quarterly!CC193)^4)-1","v":0.26041384342063045},"--","--",null,"--","--",null,{"$f":"((Quarterly!CJ194/Quarterly!CJ193)^4)-1","v":0.31872014169168961},{"$f":"((Quarterly!CK194/Quarterly!CK193)^4)-1","v":8.6441819593139346E-2},{"$f":"((Quarterly!CL194/Quarterly!CL193)^4)-1","v":0.28088208293001715},{"$f":"((Quarterly!CM194/Quarterly!CM193)^4)-1","v":-7.0404008538870522E-2},{"$f":"((Quarterly!CN194/Quarterly!CN193)^4)-1","v":5.0862420618664528E-2},{"$f":"((Quarterly!CO194/Quarterly!CO193)^4)-1","v":8.0187536832617479E-2},{"$f":"((Quarterly!CP194/Quarterly!CP193)^4)-1","v":7.1416618492367911E-2},{"$f":"((Quarterly!CQ194/Quarterly!CQ193)^4)-1","v":1.0193612682265485E-2},{"$f":"((Quarterly!CR194/Quarterly!CR193)^4)-1","v":4.5893266763507246E-2},{"$f":"Quarterly!CS194-Quarterly!CS193","v":-1.7333333333333343},{"$f":"Quarterly!CT194-Quarterly!CT193","v":-4.3000000000000114},null,null,null,null,null,{"$f":"((Quarterly!CZ194/Quarterly!CZ193)^4)-1","v":4.3646919447971388E-2},{"$f":"((Quarterly!DA194/Quarterly!DA193)^4)-1","v":2.4580622215523373E-2},null,null,null,null,null,{"$f":"((Quarterly!DG194/Quarterly!DG193)^4)-1","v":1.5983699478931079E-2},{"$f":"((Quarterly!DH194-Quarterly!DH193)*60)","v":-3.9999999999997726},{"$f":"Quarterly!DI194-Quarterly!DI193","v":-3.3333333333317228E-2},{"$f":"(Quarterly!DJ194-Quarterly!DJ193)*100","v":1.7763568394002505E-13},{"$f":"(Quarterly!DK194-Quarterly!DK193)*100","v":0},{"$f":"((Quarterly!DL194/Quarterly!DL193)^4)-1","v":-7.4200857586491642E-3},null,null,null,{"$f":"((Quarterly!DP194/Quarterly!DP193)^4)-1","v":1.7716415118065765E-2},null,null,null,"--",{"$f":"Quarterly!DU194-Quarterly!DU193","v":0.33333333333333215},{"$f":"((Quarterly!DV194/Quarterly!DV193)^4)-1","v":1.3813994486882919E-2},{"$f":"((Quarterly!DW194/Quarterly!DW193)^4)-1","v":-1.9674755668987576E-2},{"$f":"((Quarterly!DX194/Quarterly!DX193)^4)-1","v":2.5369756260066101E-2},{"$f":"((Quarterly!DY194/Quarterly!DY193)^4)-1","v":-1.9369886696008587E-2},{"$f":"((Quarterly!DZ194/Quarterly!DZ193)^4)-1","v":3.9966292814489712E-2},{"$f":"((Quarterly!EA194/Quarterly!EA193)^4)-1","v":4.9566356449756155E-2},{"$f":"((Quarterly!EB194/Quarterly!EB193)^4)-1","v":1.8591600915316642E-2},{"$f":"((Quarterly!EC194/Quarterly!EC193)^4)-1","v":-0.11736932452667548},null,null,null,null,null,{"$f":"((Quarterly!EI194/Quarterly!EI193)^4)-1","v":4.6540366676172562E-2},{"$f":"((Quarterly!EJ194/Quarterly!EJ193)^4)-1","v":3.9594204961390878E-2},{"$f":"((Quarterly!EK194/Quarterly!EK193)^4)-1","v":3.8448215972447297E-2},null,null,null,null,null,{"$f":"((Quarterly!EQ194/Quarterly!EQ193)^4)-1","v":7.8968418136793783E-2},{"$f":"((Quarterly!ER194/Quarterly!ER193)^4)-1","v":3.2664796462491097E-2},{"$f":"((Quarterly!ES194/Quarterly!ES193)^4)-1","v":3.1392554057831257E-2},null,null,null,null,null,{"$f":"(Quarterly!EY194-Quarterly!EY193)*100","v":52.333333333333343},{"$f":"(Quarterly!EZ194-Quarterly!EZ193)*100","v":51.666666666666657},{"$f":"(Quarterly!FA194-Quarterly!FA193)*100","v":-15.666666666666806},{"$f":"(Quarterly!FB194-Quarterly!FB193)*100","v":-26.333333333333275},-10.666666666666469,{"$f":"(Quarterly!FD194-Quarterly!FD193)*100","v":-16.000000000000014},{"$f":"(Quarterly!FE194-Quarterly!FE193)*100","v":51.999999999999979},{"$f":"(Quarterly!FF194-Quarterly!FF193)*100","v":38.666666666666671},{"$f":"(Quarterly!FG194-Quarterly!FG193)*100","v":25.333333333333297},{"$f":"(Quarterly!FH194-Quarterly!FH193)*100","v":-1.3333333333332753},{"$f":"(Quarterly!FI194-Quarterly!FI193)*100","v":-13.000000000000078},-51.66666666666675,null,null,null,null,null,{"$f":"((Quarterly!FP194/Quarterly!FP193)^4)-1","v":-0.24045782965757534},{"$f":"((Quarterly!FQ194/Quarterly!FQ193)^4)-1","v":-1.1276113756686357E-4},{"$f":"((Quarterly!FR194/Quarterly!FR193)^4)-1","v":-4.2867956424143872E-2},{"$f":"((Quarterly!FS194/Quarterly!FS193)^4)-1","v":0.26613570341065951},{"$f":"((Quarterly!FT194/Quarterly!FT193)^4)-1","v":-0.13849992277281242},{"$f":"((Quarterly!FU194/Quarterly!FU193)^4)-1","v":-0.19882343879757902},{"$f":"((Quarterly!FV194/Quarterly!FV193)^4)-1","v":0.1762280261488498},{"$f":"((Quarterly!FW194/Quarterly!FW193)^4)-1","v":0.22336504512770494},{"$f":"((Quarterly!FX194/Quarterly!FX193)^4)-1","v":0.20914086772769469},null,null,null,null,null,{"$f":"((Quarterly!GD194/Quarterly!GD193)^4)-1","v":0.47147799945116842},{"$f":"((Quarterly!GE194/Quarterly!GE193)^4)-1","v":0.29659870861522419},{"$f":"((Quarterly!GF194/Quarterly!GF193)^4)-1","v":-0.13862800398602515},{"$f":"((Quarterly!GG194/Quarterly!GG193)^4)-1","v":0.72436682404874442},{"$f":"((Quarterly!GH194/Quarterly!GH193)^4)-1","v":{"$error":"#DIV/0!"}},"--",{"$f":"((Quarterly!GJ194/Quarterly!GJ193)^4)-1","v":1.8701834102955774},{"$f":"((Quarterly!GK194/Quarterly!GK193)^4)-1","v":0.21122911348258344},"--"]
["05'Q1",{"$f":"((Quarterly!B195/Quarterly!B194)^4)-1","v":8.254121994774688E-2},{"$f":"((Quarterly!C195/Quarterly!C194)^4)-1","v":4.3324893530639619E-2},{"$f":"((Quarterly!D195/Quarterly!D194)^4)-1","v":3.3518175124241711E-2},{"$f":"((Quarterly!E195/Quarterly!E194)^4)-1","v":3.09232330034519E-2},{"$f":"((Quarterly!F195/Quarterly!F194)^4)-1","v":4.3225525394778641E-2},{"$f":"((Quarterly!G195/Quarterly!G194)^4)-1","v":5.2424764669018575E-2},{"$f":"((Quarterly!H195/Quarterly!H194)^4)-1","v":2.1349356683869836E-2},{"$f":"((Quarterly!I195/Quarterly!I194)^4)-1","v":5.0359252469998284E-2},{"$f":"((Quarterly!J195/Quarterly!J194)^4)-1","v":4.9851427437045848E-2},{"$f":"((Quarterly!K195/Quarterly!K194)^4)-1","v":9.7798751243885818E-2},{"$f":"((Quarterly!L195-Quarterly!L194))","v":35.072000000000003},{"$f":"((Quarterly!M195/Quarterly!M194)^4)-1","v":4.8027074396530978E-2},{"$f":"((Quarterly!N195/Quarterly!N194)^4)-1","v":6.3226450635797571E-2},{"$f":"((Quarterly!O195/Quarterly!O194)^4)-1","v":2.211568707710887E-2},{"$f":"((Quarterly!P195/Quarterly!P194)^4)-1","v":8.3759271575021277E-3},{"$f":"((Quarterly!Q195/Quarterly!Q194)^4)-1","v":-0.54275737166037341},null,null,null,null,null,{"$f":"((Quarterly!W195/Quarterly!W194)^4)-1","v":5.2759265876355155E-2},{"$f":"((Quarterly!X195/Quarterly!X194)^4)-1","v":4.7957320880234855E-2},{"$f":"((Quarterly!Y195/Quarterly!Y194)^4)-1","v":0.16734503699789394},{"$f":"Quarterly!Z195-Quarterly!Z194","v":-0.27},{"$f":"((Quarterly!AA195/Quarterly!AA194)^4)-1","v":1.1998164342689019},{"$f":"((Quarterly!AB195/Quarterly!AB194)^4)-1","v":0.21498912606199116},{"$f":"Quarterly!AC195-Quarterly!AC194","v":1.7999999999999998},{"$f":"Quarterly!AD195-Quarterly!AD194","v":4.1000000000000014},{"$f":"(Quarterly!AE195-Quarterly!AE194)*100","v":-5.9999999999999947},{"$f":"(Quarterly!AF195-Quarterly!AF194)*100","v":-27},{"$f":"(Quarterly!AG195-Quarterly!AG194)*100","v":-12},{"$f":"((Quarterly!AH195/Quarterly!AH194)^4)-1","v":0.26086739692113126},{"$f":"((Quarterly!AI195/Quarterly!AI194)^4)-1","v":0.21935217394429674},{"$f":"((Quarterly!AJ195/Quarterly!AJ194)^4)-1","v":6.3640950362352511E-2},{"$f":"((Quarterly!AK195/Quarterly!AK194)^4)-1","v":3.7515491599950934E-2},{"$f":"((Quarterly!AL195/Quarterly!AL194)^4)-1","v":2.4792212387002799E-2},{"$f":"((Quarterly!AM195/Quarterly!AM194)^4)-1","v":5.7539683317135326E-2},{"$f":"((Quarterly!AN195/Quarterly!AN194)^4)-1","v":6.7702732088692708E-2},{"$f":"((Quarterly!AO195/Quarterly!AO194)^4)-1","v":8.7218289223483403E-2},{"$f":"(Quarterly!AP195-Quarterly!AP194)*100","v":0.33333333333331883},{"$f":"Quarterly!AQ195-Quarterly!AQ194","v":-0.73333333333332718},{"$f":"Quarterly!AR195-Quarterly!AR194","v":2.1666666666666714},{"$f":"Quarterly!AS195-Quarterly!AS194","v":0.6666666666666714},{"$f":"Quarterly!AT195-Quarterly!AT194","v":0.29999999999999716},{"$f":"Quarterly!AU195-Quarterly!AU194","v":-0.73333333333334139},{"$f":"Quarterly!AV195-Quarterly!AV194","v":0.63333333333333997},{"$f":"Quarterly!AW195-Quarterly!AW194","v":2.5666666666666629},{"$f":"Quarterly!AX195-Quarterly!AX194","v":-4.4333333333333371},{"$f":"Quarterly!AY195-Quarterly!AY194","v":-5.6666666666666572},{"$f":"Quarterly!AZ195-Quarterly!AZ194","v":0.1666666666666714},{"$f":"Quarterly!BA195-Quarterly!BA194","v":-2.2000000000000028},{"$f":"Quarterly!BB195-Quarterly!BB194","v":-1.0333333333333385},{"$f":"((Quarterly!BC195/Quarterly!BC194)^4)-1","v":0.18393845841716061},{"$f":"((Quarterly!BD195/Quarterly!BD194)^4)-1","v":8.3502949111187386E-2},{"$f":"((Quarterly!BE195/Quarterly!BE194)^4)-1","v":-6.4886649402117191E-2},{"$f":"((Quarterly!BF195/Quarterly!BF194)^4)-1","v":3.0905110943183045E-2},{"$f":"((Quarterly!BG195/Quarterly!BG194)^4)-1","v":4.4727140611709126E-2},{"$f":"((Quarterly!BH195/Quarterly!BH194)^4)-1","v":1.0641099901293138E-2},{"$f":"((Quarterly!BI195/Quarterly!BI194)^4)-1","v":-1.3223796629580842E-2},{"$f":"((Quarterly!BJ195/Quarterly!BJ194)^4)-1","v":1.3975711840096423},{"$f":"((Quarterly!BK195/Quarterly!BK194)^4)-1","v":-0.95936442558901858},null,{"$f":"((Quarterly!BM195/Quarterly!BM194)^4)-1","v":3.6315867186528905E-2},{"$f":"((Quarterly!BN195/Quarterly!BN194)^4)-1","v":3.4046950392144559E-2},null,null,null,null,null,{"$f":"((Quarterly!BT195/Quarterly!BT194)^4)-1","v":3.9247274918282837E-2},{"$f":"Quarterly!BU195-Quarterly!BU194","v":0.30135000000000112},{"$f":"Quarterly!BV195-Quarterly!BV194","v":0.38479999999999848},{"$f":"((Quarterly!BW195/Quarterly!BW194)^4)-1","v":6.2401128701286668E-2},{"$f":"((Quarterly!BX195/Quarterly!BX194)^4)-1","v":0.23462376544525254},{"$f":"((Quarterly!BY195/Quarterly!BY194)^4)-1","v":3.693416604558819E-2},{"$f":"((Quarterly!BZ195/Quarterly!BZ194)^4)-1","v":0.17682093819446876},{"$f":"((Quarterly!CA195/Quarterly!CA194)^4)-1","v":-0.13894668972259461},{"$f":"((Quarterly!CB195/Quarterly!CB194)^4)-1","v":-0.20188033523682802},{"$f":"((Quarterly!CC195/Quarterly!CC194)^4)-1","v":-0.17061787657076555},"--","--",null,"--","--",null,{"$f":"((Quarterly!CJ195/Quarterly!CJ194)^4)-1","v":0.13991249932347749},{"$f":"((Quarterly!CK195/Quarterly!CK194)^4)-1","v":1.4348626588801316E-2},{"$f":"((Quarterly!CL195/Quarterly!CL194)^4)-1","v":-0.81455373631115691},{"$f":"((Quarterly!CM195/Quarterly!CM194)^4)-1","v":0.25468640510104379},{"$f":"((Quarterly!CN195/Quarterly!CN194)^4)-1","v":-3.7935917089043869E-2},{"$f":"((Quarterly!CO195/Quarterly!CO194)^4)-1","v":1.5961162416101127E-2},{"$f":"((Quarterly!CP195/Quarterly!CP194)^4)-1","v":4.7094914587937575E-2},{"$f":"((Quarterly!CQ195/Quarterly!CQ194)^4)-1","v":8.7039359147671469E-3},{"$f":"((Quarterly!CR195/Quarterly!CR194)^4)-1","v":3.375937730882228E-2},{"$f":"Quarterly!CS195-Quarterly!CS194","v":0.19999999999998863},{"$f":"Quarterly!CT195-Quarterly!CT194","v":8.1000000000000085},null,null,null,null,null,{"$f":"((Quarterly!CZ195/Quarterly!CZ194)^4)-1","v":2.0355581765324704E-2},{"$f":"((Quarterly!DA195/Quarterly!DA194)^4)-1","v":2.511545128564574E-2},null,null,null,null,null,{"$f":"((Quarterly!DG195/Quarterly!DG194)^4)-1","v":2.3951035021644085E-2},{"$f":"((Quarterly!DH195-Quarterly!DH194)*60)","v":1.9999999999998863},{"$f":"Quarterly!DI195-Quarterly!DI194","v":-6.6666666666677088E-2},{"$f":"(Quarterly!DJ195-Quarterly!DJ194)*100","v":-19.999999999999929},{"$f":"(Quarterly!DK195-Quarterly!DK194)*100","v":-13.333333333333375},{"$f":"((Quarterly!DL195/Quarterly!DL194)^4)-1","v":-1.1781903868617105E-2},null,null,null,{"$f":"((Quarterly!DP195/Quarterly!DP194)^4)-1","v":1.3598180152534223E-2},null,null,null,"--",{"$f":"Quarterly!DU195-Quarterly!DU194","v":-0.26666666666666572},{"$f":"((Quarterly!DV195/Quarterly!DV194)^4)-1","v":5.0833644264089983E-2},{"$f":"((Quarterly!DW195/Quarterly!DW194)^4)-1","v":-5.6947994151556824E-2},{"$f":"((Quarterly!DX195/Quarterly!DX194)^4)-1","v":-2.4877464148007067E-2},{"$f":"((Quarterly!DY195/Quarterly!DY194)^4)-1","v":-0.11097481871430126},{"$f":"((Quarterly!DZ195/Quarterly!DZ194)^4)-1","v":3.4506994220964149E-3},{"$f":"((Quarterly!EA195/Quarterly!EA194)^4)-1","v":2.3994450777679255E-2},{"$f":"((Quarterly!EB195/Quarterly!EB194)^4)-1","v":-4.2007212203641453E-2},{"$f":"((Quarterly!EC195/Quarterly!EC194)^4)-1","v":-0.13012280803161747},null,null,null,null,null,{"$f":"((Quarterly!EI195/Quarterly!EI194)^4)-1","v":6.6859462991864183E-2},{"$f":"((Quarterly!EJ195/Quarterly!EJ194)^4)-1","v":5.4931653073190256E-2},{"$f":"((Quarterly!EK195/Quarterly!EK194)^4)-1","v":4.5362273672656661E-2},null,null,null,null,null,{"$f":"((Quarterly!EQ195/Quarterly!EQ194)^4)-1","v":4.1370787632259542E-2},{"$f":"((Quarterly!ER195/Quarterly!ER194)^4)-1","v":3.5061340640402117E-2},{"$f":"((Quarterly!ES195/Quarterly!ES194)^4)-1","v":2.6382565059671625E-2},null,null,null,null,null,{"$f":"(Quarterly!EY195-Quarterly!EY194)*100","v":49.6666666666667},{"$f":"(Quarterly!EZ195-Quarterly!EZ194)*100","v":51.999999999999979},{"$f":"(Quarterly!FA195-Quarterly!FA194)*100","v":-16.666666666666519},{"$f":"(Quarterly!FB195-Quarterly!FB194)*100","v":-22.000000000000153},-5.3333333333336341,{"$f":"(Quarterly!FD195-Quarterly!FD194)*100","v":2.3333333333333428},{"$f":"(Quarterly!FE195-Quarterly!FE194)*100","v":53.000000000000028},{"$f":"(Quarterly!FF195-Quarterly!FF194)*100","v":59.666666666666622},{"$f":"(Quarterly!FG195-Quarterly!FG194)*100","v":63.000000000000036},{"$f":"(Quarterly!FH195-Quarterly!FH194)*100","v":38.999999999999972},{"$f":"(Quarterly!FI195-Quarterly!FI194)*100","v":12.333333333333396},-47.333333333333229,null,null,null,null,null,{"$f":"((Quarterly!FP195/Quarterly!FP194)^4)-1","v":2.0136089106715271E-2},{"$f":"((Quarterly!FQ195/Quarterly!FQ194)^4)-1","v":0},{"$f":"((Quarterly!FR195/Quarterly!FR194)^4)-1","v":-4.8616866462127928E-2},{"$f":"((Quarterly!FS195/Quarterly!FS194)^4)-1","v":4.2925517041568773E-2},{"$f":"((Quarterly!FT195/Quarterly!FT194)^4)-1","v":-4.481388186657953E-2},{"$f":"((Quarterly!FU195/Quarterly!FU194)^4)-1","v":-2.6175085478442384E-2},{"$f":"((Quarterly!FV195/Quarterly!FV194)^4)-1","v":7.7135985729343437E-2},{"$f":"((Quarterly!FW195/Quarterly!FW194)^4)-1","v":-0.35003689513200587},{"$f":"((Quarterly!FX195/Quarterly!FX194)^4)-1","v":-0.19123936694270993},null,null,null,null,null,{"$f":"((Quarterly!GD195/Quarterly!GD194)^4)-1","v":0.1210636696213967},{"$f":"((Quarterly!GE195/Quarterly!GE194)^4)-1","v":0.36051938578463427},{"$f":"((Quarterly!GF195/Quarterly!GF194)^4)-1","v":0.30165857296997944},{"$f":"((Quarterly!GG195/Quarterly!GG194)^4)-1","v":-5.6016993554337535E-2},{"$f":"((Quarterly!GH195/Quarterly!GH194)^4)-1","v":{"$error":"#DIV/0!"}},"--",{"$f":"((Quarterly!GJ195/Quarterly!GJ194)^4)-1","v":-0.36923861331594421},{"$f":"((Quarterly!GK195/Quarterly!GK194)^4)-1","v":0.16775877958494934},"--"]
["05'Q2",{"$f":"((Quarterly!B196/Quarterly!B195)^4)-1","v":5.1004435049727403E-2},{"$f":"((Quarterly!C196/Quarterly!C195)^4)-1","v":2.1048900583181096E-2},{"$f":"((Quarterly!D196/Quarterly!D195)^4)-1","v":4.3493668978780597E-2},{"$f":"((Quarterly!E196/Quarterly!E195)^4)-1","v":4.4174476726539735E-2},{"$f":"((Quarterly!F196/Quarterly!F195)^4)-1","v":0.11833675740713034},{"$f":"((Quarterly!G196/Quarterly!G195)^4)-1","v":1.7457549938386885E-2},{"$f":"((Quarterly!H196/Quarterly!H195)^4)-1","v":3.9040033336442903E-2},{"$f":"((Quarterly!I196/Quarterly!I195)^4)-1","v":5.8732225364114043E-2},{"$f":"((Quarterly!J196/Quarterly!J195)^4)-1","v":8.6319662628024929E-2},{"$f":"((Quarterly!K196/Quarterly!K195)^4)-1","v":7.6293474599068656E-2},{"$f":"((Quarterly!L196-Quarterly!L195))","v":-78.271999999999991},{"$f":"((Quarterly!M196/Quarterly!M195)^4)-1","v":4.6651405121491907E-2},{"$f":"((Quarterly!N196/Quarterly!N195)^4)-1","v":7.5969633389452618E-2},{"$f":"((Quarterly!O196/Quarterly!O195)^4)-1","v":-3.1326683962920043E-3},{"$f":"((Quarterly!P196/Quarterly!P195)^4)-1","v":6.9131493371612507E-3},{"$f":"((Quarterly!Q196/Quarterly!Q195)^4)-1","v":-3.6570345294270279E-2},null,null,null,null,null,{"$f":"((Quarterly!W196/Quarterly!W195)^4)-1","v":0},{"$f":"((Quarterly!X196/Quarterly!X195)^4)-1","v":4.9989488151322981E-3},{"$f":"((Quarterly!Y196/Quarterly!Y195)^4)-1","v":0.15570120560957279},{"$f":"Quarterly!Z196-Quarterly!Z195","v":-1.0000000000000009E-2},{"$f":"((Quarterly!AA196/Quarterly!AA195)^4)-1","v":7.0686993812353549E-2},{"$f":"((Quarterly!AB196/Quarterly!AB195)^4)-1","v":0.11274513391224983},{"$f":"Quarterly!AC196-Quarterly!AC195","v":2},{"$f":"Quarterly!AD196-Quarterly!AD195","v":7.3999999999999986},{"$f":"(Quarterly!AE196-Quarterly!AE195)*100","v":-2.0000000000000018},{"$f":"(Quarterly!AF196-Quarterly!AF195)*100","v":-1.0000000000000009},{"$f":"(Quarterly!AG196-Quarterly!AG195)*100","v":-1.0000000000000009},{"$f":"((Quarterly!AH196/Quarterly!AH195)^4)-1","v":0.30090887889843354},{"$f":"((Quarterly!AI196/Quarterly!AI195)^4)-1","v":0.19986714338066291},{"$f":"((Quarterly!AJ196/Quarterly!AJ195)^4)-1","v":3.3055075032077941E-2},{"$f":"((Quarterly!AK196/Quarterly!AK195)^4)-1","v":2.4664823421395532E-2},{"$f":"((Quarterly!AL196/Quarterly!AL195)^4)-1","v":2.050164008262878E-2},{"$f":"((Quarterly!AM196/Quarterly!AM195)^4)-1","v":2.022714891482047E-2},{"$f":"((Quarterly!AN196/Quarterly!AN195)^4)-1","v":2.3842043031769178E-2},{"$f":"((Quarterly!AO196/Quarterly!AO195)^4)-1","v":4.6694595585715204E-2},{"$f":"(Quarterly!AP196-Quarterly!AP195)*100","v":-0.99999999999997868},{"$f":"Quarterly!AQ196-Quarterly!AQ195","v":-4.0333333333333314},{"$f":"Quarterly!AR196-Quarterly!AR195","v":-0.6666666666666714},{"$f":"Quarterly!AS196-Quarterly!AS195","v":0},{"$f":"Quarterly!AT196-Quarterly!AT195","v":-4.5666666666666629},{"$f":"Quarterly!AU196-Quarterly!AU195","v":-1.5333333333333314},{"$f":"Quarterly!AV196-Quarterly!AV195","v":-5.3000000000000043},{"$f":"Quarterly!AW196-Quarterly!AW195","v":-4.8333333333333286},{"$f":"Quarterly!AX196-Quarterly!AX195","v":-3.5333333333333385},{"$f":"Quarterly!AY196-Quarterly!AY195","v":-9.3333333333333357},{"$f":"Quarterly!AZ196-Quarterly!AZ195","v":-3.6666666666666714},{"$f":"Quarterly!BA196-Quarterly!BA195","v":-3.7000000000000028},{"$f":"Quarterly!BB196-Quarterly!BB195","v":-2.9666666666666615},{"$f":"((Quarterly!BC196/Quarterly!BC195)^4)-1","v":2.5328894794043544E-2},{"$f":"((Quarterly!BD196/Quarterly!BD195)^4)-1","v":5.6623991417843245E-2},{"$f":"((Quarterly!BE196/Quarterly!BE195)^4)-1","v":-1.1045350847222135E-2},{"$f":"((Quarterly!BF196/Quarterly!BF195)^4)-1","v":2.2310886524313345E-2},{"$f":"((Quarterly!BG196/Quarterly!BG195)^4)-1","v":-3.8843815671756321E-3},{"$f":"((Quarterly!BH196/Quarterly!BH195)^4)-1","v":-5.6611219837120474E-3},{"$f":"((Quarterly!BI196/Quarterly!BI195)^4)-1","v":2.628452895794009E-2},{"$f":"((Quarterly!BJ196/Quarterly!BJ195)^4)-1","v":0.33213997989350719},{"$f":"((Quarterly!BK196/Quarterly!BK195)^4)-1","v":-0.16979287616966066},null,{"$f":"((Quarterly!BM196/Quarterly!BM195)^4)-1","v":8.3615805131724619E-2},{"$f":"((Quarterly!BN196/Quarterly!BN195)^4)-1","v":8.421076956327167E-2},null,null,null,null,null,{"$f":"((Quarterly!BT196/Quarterly!BT195)^4)-1","v":-5.4266686907508133E-3},{"$f":"Quarterly!BU196-Quarterly!BU195","v":1.2789999999998969E-2},{"$f":"Quarterly!BV196-Quarterly!BV195","v":1.0699999999999932E-2},{"$f":"((Quarterly!BW196/Quarterly!BW195)^4)-1","v":0.10317625487137727},{"$f":"((Quarterly!BX196/Quarterly!BX195)^4)-1","v":-3.8685626862685507E-2},{"$f":"((Quarterly!BY196/Quarterly!BY195)^4)-1","v":6.3534396059374831E-2},{"$f":"((Quarterly!BZ196/Quarterly!BZ195)^4)-1","v":0.16918340936664533},{"$f":"((Quarterly!CA196/Quarterly!CA195)^4)-1","v":0.2140116071117435},{"$f":"((Quarterly!CB196/Quarterly!CB195)^4)-1","v":-0.14105170562883718},{"$f":"((Quarterly!CC196/Quarterly!CC195)^4)-1","v":-0.141532631049889},{"$f":"((Quarterly!CD196/Quarterly!CD195)^4)-1","v":5.5159648770837011E-2},{"$f":"((Quarterly!CE196/Quarterly!CE195)^4)-1","v":-3.0806408993179213E-2},null,"--","--",null,{"$f":"((Quarterly!CJ196/Quarterly!CJ195)^4)-1","v":-3.0806408993179213E-2},{"$f":"((Quarterly!CK196/Quarterly!CK195)^4)-1","v":6.3033106206324074E-2},{"$f":"((Quarterly!CL196/Quarterly!CL195)^4)-1","v":-0.51746647274362112},{"$f":"((Quarterly!CM196/Quarterly!CM195)^4)-1","v":-1.7868832539143398E-2},{"$f":"((Quarterly!CN196/Quarterly!CN195)^4)-1","v":3.1992503818399465E-2},{"$f":"((Quarterly!CO196/Quarterly!CO195)^4)-1","v":1.8996328905829252E-4},{"$f":"((Quarterly!CP196/Quarterly!CP195)^4)-1","v":5.1978033347292563E-2},{"$f":"((Quarterly!CQ196/Quarterly!CQ195)^4)-1","v":8.2667224210120072E-3},{"$f":"((Quarterly!CR196/Quarterly!CR195)^4)-1","v":3.4529201762272477E-2},{"$f":"Quarterly!CS196-Quarterly!CS195","v":-3.86666666666666},{"$f":"Quarterly!CT196-Quarterly!CT195","v":-1.9000000000000057},null,null,null,null,null,{"$f":"((Quarterly!CZ196/Quarterly!CZ195)^4)-1","v":2.7306964398373879E-2},{"$f":"((Quarterly!DA196/Quarterly!DA195)^4)-1","v":1.8845182812349037E-2},null,null,null,null,null,{"$f":"((Quarterly!DG196/Quarterly!DG195)^4)-1","v":3.0496739687728702E-2},{"$f":"((Quarterly!DH196-Quarterly!DH195)*60)","v":0},{"$f":"Quarterly!DI196-Quarterly!DI195","v":0.23333333333333428},{"$f":"(Quarterly!DJ196-Quarterly!DJ195)*100","v":-30.000000000000071},{"$f":"(Quarterly!DK196-Quarterly!DK195)*100","v":-19.999999999999929},{"$f":"((Quarterly!DL196/Quarterly!DL195)^4)-1","v":-6.1541147944833563E-3},null,null,null,{"$f":"((Quarterly!DP196/Quarterly!DP195)^4)-1","v":2.2238332591115739E-2},null,null,null,"--",{"$f":"Quarterly!DU196-Quarterly!DU195","v":-0.2666666666666675},{"$f":"((Quarterly!DV196/Quarterly!DV195)^4)-1","v":4.8292624285566799E-2},{"$f":"((Quarterly!DW196/Quarterly!DW195)^4)-1","v":0.13491786400590011},{"$f":"((Quarterly!DX196/Quarterly!DX195)^4)-1","v":7.9467496551772765E-2},{"$f":"((Quarterly!DY196/Quarterly!DY195)^4)-1","v":0.15034059878413752},{"$f":"((Quarterly!DZ196/Quarterly!DZ195)^4)-1","v":5.8508727224236834E-2},{"$f":"((Quarterly!EA196/Quarterly!EA195)^4)-1","v":6.7910650439983344E-2},{"$f":"((Quarterly!EB196/Quarterly!EB195)^4)-1","v":3.7058448385155041E-2},{"$f":"((Quarterly!EC196/Quarterly!EC195)^4)-1","v":0.27979342304400578},null,null,null,null,null,{"$f":"((Quarterly!EI196/Quarterly!EI195)^4)-1","v":4.251873733402145E-2},{"$f":"((Quarterly!EJ196/Quarterly!EJ195)^4)-1","v":5.2546807394524997E-2},{"$f":"((Quarterly!EK196/Quarterly!EK195)^4)-1","v":4.3328692020891069E-2},null,null,null,null,null,{"$f":"((Quarterly!EQ196/Quarterly!EQ195)^4)-1","v":6.6479680736410751E-2},{"$f":"((Quarterly!ER196/Quarterly!ER195)^4)-1","v":1.9876242484742068E-2},{"$f":"((Quarterly!ES196/Quarterly!ES195)^4)-1","v":2.3377154813722933E-2},null,null,null,null,null,{"$f":"(Quarterly!EY196-Quarterly!EY195)*100","v":47.333333333333357},{"$f":"(Quarterly!EZ196-Quarterly!EZ195)*100","v":47.333333333333357},{"$f":"(Quarterly!FA196-Quarterly!FA195)*100","v":-17.33333333333329},{"$f":"(Quarterly!FB196-Quarterly!FB195)*100","v":0.66666666666668206},17.999999999999972,{"$f":"(Quarterly!FD196-Quarterly!FD195)*100","v":-3.6666666666667069},{"$f":"(Quarterly!FE196-Quarterly!FE195)*100","v":32.666666666666664},{"$f":"(Quarterly!FF196-Quarterly!FF195)*100","v":27.333333333333343},{"$f":"(Quarterly!FG196-Quarterly!FG195)*100","v":19.999999999999972},{"$f":"(Quarterly!FH196-Quarterly!FH195)*100","v":-1.0000000000000231},{"$f":"(Quarterly!FI196-Quarterly!FI195)*100","v":-13.666666666666671},-41.000000000000014,null,null,null,null,null,{"$f":"((Quarterly!FP196/Quarterly!FP195)^4)-1","v":5.624401608744467E-2},{"$f":"((Quarterly!FQ196/Quarterly!FQ195)^4)-1","v":0},{"$f":"((Quarterly!FR196/Quarterly!FR195)^4)-1","v":-7.4924486395971601E-2},{"$f":"((Quarterly!FS196/Quarterly!FS195)^4)-1","v":-0.14642992263770871},{"$f":"((Quarterly!FT196/Quarterly!FT195)^4)-1","v":4.7909721555553508E-2},{"$f":"((Quarterly!FU196/Quarterly!FU195)^4)-1","v":0.11567028474326491},{"$f":"((Quarterly!FV196/Quarterly!FV195)^4)-1","v":0.21130584633433824},{"$f":"((Quarterly!FW196/Quarterly!FW195)^4)-1","v":0.69232470532818602},{"$f":"((Quarterly!FX196/Quarterly!FX195)^4)-1","v":0.58702720001771658},null,null,null,null,null,{"$f":"((Quarterly!GD196/Quarterly!GD195)^4)-1","v":0.29677512463183553},{"$f":"((Quarterly!GE196/Quarterly!GE195)^4)-1","v":0.37260072877680472},{"$f":"((Quarterly!GF196/Quarterly!GF195)^4)-1","v":0.60303394613972383},{"$f":"((Quarterly!GG196/Quarterly!GG195)^4)-1","v":0.43089649383008055},{"$f":"((Quarterly!GH196/Quarterly!GH195)^4)-1","v":{"$error":"#DIV/0!"}},"--",{"$f":"((Quarterly!GJ196/Quarterly!GJ195)^4)-1","v":0.3228444289503829},{"$f":"((Quarterly!GK196/Quarterly!GK195)^4)-1","v":-0.1114991887474801},"--"]
["05'Q3",{"$f":"((Quarterly!B197/Quarterly!B196)^4)-1","v":7.3261313515653237E-2},{"$f":"((Quarterly!C197/Quarterly!C196)^4)-1","v":3.4029024018480847E-2},{"$f":"((Quarterly!D197/Quarterly!D196)^4)-1","v":3.8237516968676388E-2},{"$f":"((Quarterly!E197/Quarterly!E196)^4)-1","v":3.1399424036529178E-2},{"$f":"((Quarterly!F197/Quarterly!F196)^4)-1","v":4.6002073752433148E-2},{"$f":"((Quarterly!G197/Quarterly!G196)^4)-1","v":8.8840037758166623E-3},{"$f":"((Quarterly!H197/Quarterly!H196)^4)-1","v":3.6259951310639416E-2},{"$f":"((Quarterly!I197/Quarterly!I196)^4)-1","v":7.5360735536975421E-2},{"$f":"((Quarterly!J197/Quarterly!J196)^4)-1","v":0.10855209363195595},{"$f":"((Quarterly!K197/Quarterly!K196)^4)-1","v":4.4692321508078114E-2},{"$f":"((Quarterly!L197-Quarterly!L196))","v":-14.829999999999998},{"$f":"((Quarterly!M197/Quarterly!M196)^4)-1","v":1.0659792026211257E-2},{"$f":"((Quarterly!N197/Quarterly!N196)^4)-1","v":4.5692422553571532E-3},{"$f":"((Quarterly!O197/Quarterly!O196)^4)-1","v":2.1575296102592123E-2},{"$f":"((Quarterly!P197/Quarterly!P196)^4)-1","v":3.1625407174561859E-2},{"$f":"((Quarterly!Q197/Quarterly!Q196)^4)-1","v":-2.7402365010444685E-2},null,null,null,null,null,{"$f":"((Quarterly!W197/Quarterly!W196)^4)-1","v":-3.5283210624818984E-2},{"$f":"((Quarterly!X197/Quarterly!X196)^4)-1","v":-3.4430040469483059E-2},{"$f":"((Quarterly!Y197/Quarterly!Y196)^4)-1","v":0.12038642501422192},{"$f":"Quarterly!Z197-Quarterly!Z196","v":-9.9999999999999811E-3},{"$f":"((Quarterly!AA197/Quarterly!AA196)^4)-1","v":0.1595382089812829},{"$f":"((Quarterly!AB197/Quarterly!AB196)^4)-1","v":8.1785528482466452E-2},{"$f":"Quarterly!AC197-Quarterly!AC196","v":8.3000000000000007},{"$f":"Quarterly!AD197-Quarterly!AD196","v":-1.7999999999999972},{"$f":"(Quarterly!AE197-Quarterly!AE196)*100","v":-2.0000000000000018},{"$f":"(Quarterly!AF197-Quarterly!AF196)*100","v":-0.99999999999999811},{"$f":"(Quarterly!AG197-Quarterly!AG196)*100","v":3.0000000000000027},{"$f":"((Quarterly!AH197/Quarterly!AH196)^4)-1","v":0.27908927454858246},{"$f":"((Quarterly!AI197/Quarterly!AI196)^4)-1","v":0.18830329943885227},{"$f":"((Quarterly!AJ197/Quarterly!AJ196)^4)-1","v":3.6938154758261454E-2},{"$f":"((Quarterly!AK197/Quarterly!AK196)^4)-1","v":2.8642691164055156E-2},{"$f":"((Quarterly!AL197/Quarterly!AL196)^4)-1","v":2.4513674029241983E-2},{"$f":"((Quarterly!AM197/Quarterly!AM196)^4)-1","v":-1.8873851766832539E-2},{"$f":"((Quarterly!AN197/Quarterly!AN196)^4)-1","v":-7.5147664477184239E-3},{"$f":"((Quarterly!AO197/Quarterly!AO196)^4)-1","v":2.1486915597976886E-3},{"$f":"(Quarterly!AP197-Quarterly!AP196)*100","v":-2.6666666666666838},{"$f":"Quarterly!AQ197-Quarterly!AQ196","v":2.1999999999999957},{"$f":"Quarterly!AR197-Quarterly!AR196","v":-0.1666666666666643},{"$f":"Quarterly!AS197-Quarterly!AS196","v":0.8333333333333286},{"$f":"Quarterly!AT197-Quarterly!AT196","v":1.6666666666666714},{"$f":"Quarterly!AU197-Quarterly!AU196","v":1.3666666666666671},{"$f":"Quarterly!AV197-Quarterly!AV196","v":-1.1000000000000014},{"$f":"Quarterly!AW197-Quarterly!AW196","v":-1},{"$f":"Quarterly!AX197-Quarterly!AX196","v":5.0000000000000071},{"$f":"Quarterly!AY197-Quarterly!AY196","v":3.1666666666666643},{"$f":"Quarterly!AZ197-Quarterly!AZ196","v":3.8000000000000043},{"$f":"Quarterly!BA197-Quarterly!BA196","v":1.5999999999999943},{"$f":"Quarterly!BB197-Quarterly!BB196","v":1.5},{"$f":"((Quarterly!BC197/Quarterly!BC196)^4)-1","v":6.9477838748174259E-2},{"$f":"((Quarterly!BD197/Quarterly!BD196)^4)-1","v":1.3616934338232634E-2},{"$f":"((Quarterly!BE197/Quarterly!BE196)^4)-1","v":2.247405086037757E-2},{"$f":"((Quarterly!BF197/Quarterly!BF196)^4)-1","v":5.0273444220149344E-2},{"$f":"((Quarterly!BG197/Quarterly!BG196)^4)-1","v":3.0159460501410829E-2},{"$f":"((Quarterly!BH197/Quarterly!BH196)^4)-1","v":-1.0422302946191397E-2},{"$f":"((Quarterly!BI197/Quarterly!BI196)^4)-1","v":1.9526593558790495E-2},{"$f":"((Quarterly!BJ197/Quarterly!BJ196)^4)-1","v":-4.4353368868122578E-2},{"$f":"((Quarterly!BK197/Quarterly!BK196)^4)-1","v":-0.1772975252081177},null,{"$f":"((Quarterly!BM197/Quarterly!BM196)^4)-1","v":7.2902200114656202E-2},{"$f":"((Quarterly!BN197/Quarterly!BN196)^4)-1","v":7.639966593764469E-2},null,null,null,null,null,{"$f":"((Quarterly!BT197/Quarterly!BT196)^4)-1","v":7.0356638208860955E-2},{"$f":"Quarterly!BU197-Quarterly!BU196","v":2.9880000000000351E-2},{"$f":"Quarterly!BV197-Quarterly!BV196","v":2.0839999999999748E-2},{"$f":"((Quarterly!BW197/Quarterly!BW196)^4)-1","v":0.13493393343869498},{"$f":"((Quarterly!BX197/Quarterly!BX196)^4)-1","v":9.8328442140989125E-2},{"$f":"((Quarterly!BY197/Quarterly!BY196)^4)-1","v":0.18075742901265435},{"$f":"((Quarterly!BZ197/Quarterly!BZ196)^4)-1","v":0.13237929978488938},{"$f":"((Quarterly!CA197/Quarterly!CA196)^4)-1","v":0.1437066562526621},{"$f":"((Quarterly!CB197/Quarterly!CB196)^4)-1","v":0.43700002018084638},{"$f":"((Quarterly!CC197/Quarterly!CC196)^4)-1","v":0.25113242930010227},{"$f":"((Quarterly!CD197/Quarterly!CD196)^4)-1","v":0.24842029011416122},{"$f":"((Quarterly!CE197/Quarterly!CE196)^4)-1","v":7.3128115553855011E-2},null,"--","--",null,{"$f":"((Quarterly!CJ197/Quarterly!CJ196)^4)-1","v":7.3128115553855011E-2},{"$f":"((Quarterly!CK197/Quarterly!CK196)^4)-1","v":7.000735096571109E-2},{"$f":"((Quarterly!CL197/Quarterly!CL196)^4)-1","v":-0.26879111223671348},{"$f":"((Quarterly!CM197/Quarterly!CM196)^4)-1","v":0.12316678219929811},{"$f":"((Quarterly!CN197/Quarterly!CN196)^4)-1","v":2.0650041556617316E-2},{"$f":"((Quarterly!CO197/Quarterly!CO196)^4)-1","v":4.8258750355052671E-2},{"$f":"((Quarterly!CP197/Quarterly!CP196)^4)-1","v":5.029966633132732E-2},{"$f":"((Quarterly!CQ197/Quarterly!CQ196)^4)-1","v":9.9702168637767485E-3},{"$f":"((Quarterly!CR197/Quarterly!CR196)^4)-1","v":3.0669251020368327E-2},{"$f":"Quarterly!CS197-Quarterly!CS196","v":-2.7000000000000028},{"$f":"Quarterly!CT197-Quarterly!CT196","v":-3.3999999999999915},null,null,null,null,null,{"$f":"((Quarterly!CZ197/Quarterly!CZ196)^4)-1","v":6.197561176578037E-2},{"$f":"((Quarterly!DA197/Quarterly!DA196)^4)-1","v":1.3371032927410376E-2},null,null,null,null,null,{"$f":"((Quarterly!DG197/Quarterly!DG196)^4)-1","v":2.7607252648650382E-2},{"$f":"((Quarterly!DH197-Quarterly!DH196)*60)","v":0},{"$f":"Quarterly!DI197-Quarterly!DI196","v":3.3333333333345649E-2},{"$f":"(Quarterly!DJ197-Quarterly!DJ196)*100","v":-3.3333333333333215},{"$f":"(Quarterly!DK197-Quarterly!DK196)*100","v":-13.333333333333375},{"$f":"((Quarterly!DL197/Quarterly!DL196)^4)-1","v":-1.202041023517797E-2},null,null,null,{"$f":"((Quarterly!DP197/Quarterly!DP196)^4)-1","v":2.2601954441584526E-2},null,null,null,"--",{"$f":"Quarterly!DU197-Quarterly!DU196","v":-0.23333333333333428},{"$f":"((Quarterly!DV197/Quarterly!DV196)^4)-1","v":1.8751067343467431E-2},{"$f":"((Quarterly!DW197/Quarterly!DW196)^4)-1","v":7.6727459131937792E-2},{"$f":"((Quarterly!DX197/Quarterly!DX196)^4)-1","v":4.1077082402675158E-2},{"$f":"((Quarterly!DY197/Quarterly!DY196)^4)-1","v":3.2503527217376815E-2},{"$f":"((Quarterly!DZ197/Quarterly!DZ196)^4)-1","v":4.3759056510906724E-2},{"$f":"((Quarterly!EA197/Quarterly!EA196)^4)-1","v":4.0993751791039257E-2},{"$f":"((Quarterly!EB197/Quarterly!EB196)^4)-1","v":5.0205885518282756E-2},{"$f":"((Quarterly!EC197/Quarterly!EC196)^4)-1","v":0.16402660566624161},null,null,null,null,null,{"$f":"((Quarterly!EI197/Quarterly!EI196)^4)-1","v":4.0392483555440561E-2},{"$f":"((Quarterly!EJ197/Quarterly!EJ196)^4)-1","v":3.8768261023954587E-2},{"$f":"((Quarterly!EK197/Quarterly!EK196)^4)-1","v":3.4622195724680616E-2},null,null,null,null,null,{"$f":"((Quarterly!EQ197/Quarterly!EQ196)^4)-1","v":0.11229252016765545},{"$f":"((Quarterly!ER197/Quarterly!ER196)^4)-1","v":1.8912006025794348E-2},{"$f":"((Quarterly!ES197/Quarterly!ES196)^4)-1","v":1.3896722869820799E-2},null,null,null,null,null,{"$f":"(Quarterly!EY197-Quarterly!EY196)*100","v":51.333333333333272},{"$f":"(Quarterly!EZ197-Quarterly!EZ196)*100","v":51.666666666666615},{"$f":"(Quarterly!FA197-Quarterly!FA196)*100","v":-5.3333333333334565},{"$f":"(Quarterly!FB197-Quarterly!FB196)*100","v":0.66666666666677088},6.0000000000002274,{"$f":"(Quarterly!FD197-Quarterly!FD196)*100","v":4.3333333333333002},{"$f":"(Quarterly!FE197-Quarterly!FE196)*100","v":49.666666666666657},{"$f":"(Quarterly!FF197-Quarterly!FF196)*100","v":45.000000000000014},{"$f":"(Quarterly!FG197-Quarterly!FG196)*100","v":31.000000000000007},{"$f":"(Quarterly!FH197-Quarterly!FH196)*100","v":16.333333333333311},{"$f":"(Quarterly!FI197-Quarterly!FI196)*100","v":5.3333333333333677},-39.666666666666643,null,null,null,null,null,{"$f":"((Quarterly!FP197/Quarterly!FP196)^4)-1","v":-0.12905135080362884},{"$f":"((Quarterly!FQ197/Quarterly!FQ196)^4)-1","v":-6.4355773650221937E-2},{"$f":"((Quarterly!FR197/Quarterly!FR196)^4)-1","v":-8.9657575291478109E-2},{"$f":"((Quarterly!FS197/Quarterly!FS196)^4)-1","v":-0.12347876364704036},{"$f":"((Quarterly!FT197/Quarterly!FT196)^4)-1","v":1.1796736776395145E-2},{"$f":"((Quarterly!FU197/Quarterly!FU196)^4)-1","v":4.9130975101681518E-2},{"$f":"((Quarterly!FV197/Quarterly!FV196)^4)-1","v":8.2879313581190273E-2},{"$f":"((Quarterly!FW197/Quarterly!FW196)^4)-1","v":0.75773710177626974},{"$f":"((Quarterly!FX197/Quarterly!FX196)^4)-1","v":-0.12423342394340064},null,null,null,null,null,{"$f":"((Quarterly!GD197/Quarterly!GD196)^4)-1","v":1.0000622201747658},{"$f":"((Quarterly!GE197/Quarterly!GE196)^4)-1","v":1.0098169820824934},{"$f":"((Quarterly!GF197/Quarterly!GF196)^4)-1","v":0.90451749473742415},{"$f":"((Quarterly!GG197/Quarterly!GG196)^4)-1","v":0.65570181459502175},{"$f":"((Quarterly!GH197/Quarterly!GH196)^4)-1","v":{"$error":"#DIV/0!"}},"--",{"$f":"((Quarterly!GJ197/Quarterly!GJ196)^4)-1","v":2.8091575830977114},{"$f":"((Quarterly!GK197/Quarterly!GK196)^4)-1","v":-0.1558925226714919},"--"]
["05'Q4",{"$f":"((Quarterly!B198/Quarterly!B197)^4)-1","v":5.4444625004233638E-2},{"$f":"((Quarterly!C198/Quarterly!C197)^4)-1","v":2.305774249008774E-2},{"$f":"((Quarterly!D198/Quarterly!D197)^4)-1","v":1.319063857392111E-3},{"$f":"((Quarterly!E198/Quarterly!E197)^4)-1","v":1.5164227342199466E-2},{"$f":"((Quarterly!F198/Quarterly!F197)^4)-1","v":-0.10249377737469889},{"$f":"((Quarterly!G198/Quarterly!G197)^4)-1","v":7.0002303254278253E-2},{"$f":"((Quarterly!H198/Quarterly!H197)^4)-1","v":2.1119773185197088E-2},{"$f":"((Quarterly!I198/Quarterly!I197)^4)-1","v":1.6136967554837955E-2},{"$f":"((Quarterly!J198/Quarterly!J197)^4)-1","v":9.9217995745664034E-3},{"$f":"((Quarterly!K198/Quarterly!K197)^4)-1","v":-9.1308020016124258E-3},{"$f":"((Quarterly!L198-Quarterly!L197))","v":76.580999999999989},{"$f":"((Quarterly!M198/Quarterly!M197)^4)-1","v":0.12633866372350733},{"$f":"((Quarterly!N198/Quarterly!N197)^4)-1","v":0.11774479850259745},{"$f":"((Quarterly!O198/Quarterly!O197)^4)-1","v":0.14170158419635892},{"$f":"((Quarterly!P198/Quarterly!P197)^4)-1","v":-1.4377452773993604E-2},{"$f":"((Quarterly!Q198/Quarterly!Q197)^4)-1","v":-0.23294644904756179},null,null,null,null,null,{"$f":"((Quarterly!W198/Quarterly!W197)^4)-1","v":4.1879194749137039E-2},{"$f":"((Quarterly!X198/Quarterly!X197)^4)-1","v":2.1963278367617134E-2},{"$f":"((Quarterly!Y198/Quarterly!Y197)^4)-1","v":0.12146679092855917},{"$f":"Quarterly!Z198-Quarterly!Z197","v":0.06},{"$f":"((Quarterly!AA198/Quarterly!AA197)^4)-1","v":0.23653440545935367},{"$f":"((Quarterly!AB198/Quarterly!AB197)^4)-1","v":0.18296828134223464},{"$f":"Quarterly!AC198-Quarterly!AC197","v":1.6999999999999993},{"$f":"Quarterly!AD198-Quarterly!AD197","v":-26.300000000000004},{"$f":"(Quarterly!AE198-Quarterly!AE197)*100","v":-1.0000000000000009},{"$f":"(Quarterly!AF198-Quarterly!AF197)*100","v":6},{"$f":"(Quarterly!AG198-Quarterly!AG197)*100","v":2.0000000000000018},{"$f":"((Quarterly!AH198/Quarterly!AH197)^4)-1","v":0.12712552210257999},{"$f":"((Quarterly!AI198/Quarterly!AI197)^4)-1","v":0.10983119599875812},{"$f":"((Quarterly!AJ198/Quarterly!AJ197)^4)-1","v":2.4290391639925524E-2},{"$f":"((Quarterly!AK198/Quarterly!AK197)^4)-1","v":2.8439060952666351E-2},{"$f":"((Quarterly!AL198/Quarterly!AL197)^4)-1","v":2.8467973547283254E-2},{"$f":"((Quarterly!AM198/Quarterly!AM197)^4)-1","v":3.8813547645256019E-2},{"$f":"((Quarterly!AN198/Quarterly!AN197)^4)-1","v":6.6505856564582633E-2},{"$f":"((Quarterly!AO198/Quarterly!AO197)^4)-1","v":8.1847890734948248E-2},{"$f":"(Quarterly!AP198-Quarterly!AP197)*100","v":0},{"$f":"Quarterly!AQ198-Quarterly!AQ197","v":2.3333333333333357},{"$f":"Quarterly!AR198-Quarterly!AR197","v":1.1666666666666643},{"$f":"Quarterly!AS198-Quarterly!AS197","v":-1},{"$f":"Quarterly!AT198-Quarterly!AT197","v":1.86666666666666},{"$f":"Quarterly!AU198-Quarterly!AU197","v":-6.6666666666677088E-2},{"$f":"Quarterly!AV198-Quarterly!AV197","v":1.2000000000000028},{"$f":"Quarterly!AW198-Quarterly!AW197","v":-0.6666666666666714},{"$f":"Quarterly!AX198-Quarterly!AX197","v":2.2666666666666657},{"$f":"Quarterly!AY198-Quarterly!AY197","v":10.666666666666671},{"$f":"Quarterly!AZ198-Quarterly!AZ197","v":3.1333333333333329},{"$f":"Quarterly!BA198-Quarterly!BA197","v":5.1000000000000085},{"$f":"Quarterly!BB198-Quarterly!BB197","v":-0.93333333333333712},{"$f":"((Quarterly!BC198/Quarterly!BC197)^4)-1","v":9.80511951190981E-2},{"$f":"((Quarterly!BD198/Quarterly!BD197)^4)-1","v":3.2948685568949809E-2},{"$f":"((Quarterly!BE198/Quarterly!BE197)^4)-1","v":-5.2539858760969449E-2},{"$f":"((Quarterly!BF198/Quarterly!BF197)^4)-1","v":2.4644785033442584E-2},{"$f":"((Quarterly!BG198/Quarterly!BG197)^4)-1","v":1.3173059305375823E-3},{"$f":"((Quarterly!BH198/Quarterly!BH197)^4)-1","v":-1.3292509393323604E-2},{"$f":"((Quarterly!BI198/Quarterly!BI197)^4)-1","v":2.3283247775826021E-2},{"$f":"((Quarterly!BJ198/Quarterly!BJ197)^4)-1","v":0.71856437855140354},{"$f":"((Quarterly!BK198/Quarterly!BK197)^4)-1","v":1.8561000000000005},null,{"$f":"((Quarterly!BM198/Quarterly!BM197)^4)-1","v":2.2052790064132077E-2},{"$f":"((Quarterly!BN198/Quarterly!BN197)^4)-1","v":1.5582843738915608E-2},null,null,null,null,null,{"$f":"((Quarterly!BT198/Quarterly!BT197)^4)-1","v":2.1087342193735203E-3},{"$f":"Quarterly!BU198-Quarterly!BU197","v":2.6859999999999218E-2},{"$f":"Quarterly!BV198-Quarterly!BV197","v":2.4190000000000822E-2},{"$f":"((Quarterly!BW198/Quarterly!BW197)^4)-1","v":5.1244014678039296E-2},{"$f":"((Quarterly!BX198/Quarterly!BX197)^4)-1","v":-5.8360024887958772E-2},{"$f":"((Quarterly!BY198/Quarterly!BY197)^4)-1","v":-0.10177625708053373},{"$f":"((Quarterly!BZ198/Quarterly!BZ197)^4)-1","v":0.14376598608422242},{"$f":"((Quarterly!CA198/Quarterly!CA197)^4)-1","v":-0.39624629801976718},{"$f":"((Quarterly!CB198/Quarterly!CB197)^4)-1","v":-6.3496280410266448E-2},{"$f":"((Quarterly!CC198/Quarterly!CC197)^4)-1","v":-4.5809574578090984E-2},{"$f":"((Quarterly!CD198/Quarterly!CD197)^4)-1","v":0.23066551123372636},{"$f":"((Quarterly!CE198/Quarterly!CE197)^4)-1","v":-9.802729350037287E-2},null,"--","--",null,{"$f":"((Quarterly!CJ198/Quarterly!CJ197)^4)-1","v":-9.802729350037287E-2},{"$f":"((Quarterly!CK198/Quarterly!CK197)^4)-1","v":6.9917510942790972E-2},{"$f":"((Quarterly!CL198/Quarterly!CL197)^4)-1","v":1.2464778338936999},{"$f":"((Quarterly!CM198/Quarterly!CM197)^4)-1","v":-4.869357082269965E-2},{"$f":"((Quarterly!CN198/Quarterly!CN197)^4)-1","v":3.3433324913439089E-2},{"$f":"((Quarterly!CO198/Quarterly!CO197)^4)-1","v":4.601280905712235E-2},{"$f":"((Quarterly!CP198/Quarterly!CP197)^4)-1","v":3.3083175379471141E-2},{"$f":"((Quarterly!CQ198/Quarterly!CQ197)^4)-1","v":1.0280782551279843E-2},{"$f":"((Quarterly!CR198/Quarterly!CR197)^4)-1","v":3.9852155391635335E-2},{"$f":"Quarterly!CS198-Quarterly!CS197","v":-5.0666666666666629},{"$f":"Quarterly!CT198-Quarterly!CT197","v":-3.1000000000000085},null,null,null,null,null,{"$f":"((Quarterly!CZ198/Quarterly!CZ197)^4)-1","v":3.7825786704225761E-2},{"$f":"((Quarterly!DA198/Quarterly!DA197)^4)-1","v":2.6785727386574809E-2},null,null,null,null,null,{"$f":"((Quarterly!DG198/Quarterly!DG197)^4)-1","v":2.6099770692739499E-2},{"$f":"((Quarterly!DH198-Quarterly!DH197)*60)","v":1.9999999999998863},{"$f":"Quarterly!DI198-Quarterly!DI197","v":-0.10000000000000853},{"$f":"(Quarterly!DJ198-Quarterly!DJ197)*100","v":-23.333333333333428},{"$f":"(Quarterly!DK198-Quarterly!DK197)*100","v":0},{"$f":"((Quarterly!DL198/Quarterly!DL197)^4)-1","v":-3.001029489891005E-3},null,null,null,{"$f":"((Quarterly!DP198/Quarterly!DP197)^4)-1","v":1.4163234937998315E-2},null,null,null,"--",{"$f":"Quarterly!DU198-Quarterly!DU197","v":-0.19999999999999929},{"$f":"((Quarterly!DV198/Quarterly!DV197)^4)-1","v":2.6880223040589346E-2},{"$f":"((Quarterly!DW198/Quarterly!DW197)^4)-1","v":-1.7807556768597577E-3},{"$f":"((Quarterly!DX198/Quarterly!DX197)^4)-1","v":2.2850003308321432E-2},{"$f":"((Quarterly!DY198/Quarterly!DY197)^4)-1","v":-2.9812960464744576E-2},{"$f":"((Quarterly!DZ198/Quarterly!DZ197)^4)-1","v":3.964092717255796E-2},{"$f":"((Quarterly!EA198/Quarterly!EA197)^4)-1","v":3.4076585766061873E-2},{"$f":"((Quarterly!EB198/Quarterly!EB197)^4)-1","v":5.2628349358354809E-2},{"$f":"((Quarterly!EC198/Quarterly!EC197)^4)-1","v":-5.6351231062222618E-2},null,null,null,null,null,{"$f":"((Quarterly!EI198/Quarterly!EI197)^4)-1","v":1.3507021305926736E-2},{"$f":"((Quarterly!EJ198/Quarterly!EJ197)^4)-1","v":1.4937891883585852E-2},{"$f":"((Quarterly!EK198/Quarterly!EK197)^4)-1","v":2.9194922483896324E-2},null,null,null,null,null,{"$f":"((Quarterly!EQ198/Quarterly!EQ197)^4)-1","v":0.1487950265472433},{"$f":"((Quarterly!ER198/Quarterly!ER197)^4)-1","v":-3.3941420397246569E-3},{"$f":"((Quarterly!ES198/Quarterly!ES197)^4)-1","v":-2.7526076125498067E-3},null,null,null,null,null,{"$f":"(Quarterly!EY198-Quarterly!EY197)*100","v":53.999999999999915},{"$f":"(Quarterly!EZ198-Quarterly!EZ197)*100","v":52.000000000000043},{"$f":"(Quarterly!FA198-Quarterly!FA197)*100","v":28.666666666666707},{"$f":"(Quarterly!FB198-Quarterly!FB197)*100","v":35.666666666666558},6.9999999999998508,{"$f":"(Quarterly!FD198-Quarterly!FD197)*100","v":46.000000000000085},{"$f":"(Quarterly!FE198-Quarterly!FE197)*100","v":46.666666666666679},{"$f":"(Quarterly!FF198-Quarterly!FF197)*100","v":49.999999999999957},{"$f":"(Quarterly!FG198-Quarterly!FG197)*100","v":41.000000000000014},{"$f":"(Quarterly!FH198-Quarterly!FH197)*100","v":35.333333333333442},{"$f":"(Quarterly!FI198-Quarterly!FI197)*100","v":27.666666666666551},-22.333333333333407,null,null,null,null,null,{"$f":"((Quarterly!FP198/Quarterly!FP197)^4)-1","v":-9.0515793612758633E-2},{"$f":"((Quarterly!FQ198/Quarterly!FQ197)^4)-1","v":-2.7716992626253378E-2},{"$f":"((Quarterly!FR198/Quarterly!FR197)^4)-1","v":-1.355689582345776E-3},{"$f":"((Quarterly!FS198/Quarterly!FS197)^4)-1","v":-9.4663570758879767E-2},{"$f":"((Quarterly!FT198/Quarterly!FT197)^4)-1","v":2.8291358128548438E-2},{"$f":"((Quarterly!FU198/Quarterly!FU197)^4)-1","v":5.7926111745865372E-2},{"$f":"((Quarterly!FV198/Quarterly!FV197)^4)-1","v":0.54013636195878312},{"$f":"((Quarterly!FW198/Quarterly!FW197)^4)-1","v":1.8427638743359065E-2},{"$f":"((Quarterly!FX198/Quarterly!FX197)^4)-1","v":0.37886274279094745},null,null,null,null,null,{"$f":"((Quarterly!GD198/Quarterly!GD197)^4)-1","v":-0.17964261173294105},{"$f":"((Quarterly!GE198/Quarterly!GE197)^4)-1","v":-0.26686239169678516},{"$f":"((Quarterly!GF198/Quarterly!GF197)^4)-1","v":-0.42308969599612845},{"$f":"((Quarterly!GG198/Quarterly!GG197)^4)-1","v":0.2363473529473803},{"$f":"((Quarterly!GH198/Quarterly!GH197)^4)-1","v":{"$error":"#DIV/0!"}},"--",{"$f":"((Quarterly!GJ198/Quarterly!GJ197)^4)-1","v":2.0802942045365693},{"$f":"((Quarterly!GK198/Quarterly!GK197)^4)-1","v":4.7774114915800414E-2},"--"]
["06'Q1",{"$f":"((Quarterly!B199/Quarterly!B198)^4)-1","v":8.2318735290606293E-2},{"$f":"((Quarterly!C199/Quarterly!C198)^4)-1","v":4.8928546142847251E-2},{"$f":"((Quarterly!D199/Quarterly!D198)^4)-1","v":5.4994968867726257E-2},{"$f":"((Quarterly!E199/Quarterly!E198)^4)-1","v":4.56044267642981E-2},{"$f":"((Quarterly!F199/Quarterly!F198)^4)-1","v":0.1741089724517344},{"$f":"((Quarterly!G199/Quarterly!G198)^4)-1","v":3.3496538543988708E-2},{"$f":"((Quarterly!H199/Quarterly!H198)^4)-1","v":2.6757041019721983E-2},{"$f":"((Quarterly!I199/Quarterly!I198)^4)-1","v":0.1558690108691605},{"$f":"((Quarterly!J199/Quarterly!J198)^4)-1","v":0.1562584125965385},{"$f":"((Quarterly!K199/Quarterly!K198)^4)-1","v":-3.677839109959169E-2},{"$f":"((Quarterly!L199-Quarterly!L198))","v":-16.162999999999997},{"$f":"((Quarterly!M199/Quarterly!M198)^4)-1","v":8.9128061238682443E-2},{"$f":"((Quarterly!N199/Quarterly!N198)^4)-1","v":0.15755208992869019},{"$f":"((Quarterly!O199/Quarterly!O198)^4)-1","v":-2.413056270870606E-2},{"$f":"((Quarterly!P199/Quarterly!P198)^4)-1","v":3.2599360366460051E-2},{"$f":"((Quarterly!Q199/Quarterly!Q198)^4)-1","v":-0.49794500981107248},null,null,null,null,null,{"$f":"((Quarterly!W199/Quarterly!W198)^4)-1","v":1.5394200799931923E-2},{"$f":"((Quarterly!X199/Quarterly!X198)^4)-1","v":2.1843344900203565E-2},{"$f":"((Quarterly!Y199/Quarterly!Y198)^4)-1","v":0.14146617145200091},{"$f":"Quarterly!Z199-Quarterly!Z198","v":-0.09},{"$f":"((Quarterly!AA199/Quarterly!AA198)^4)-1","v":0.10346725438345161},{"$f":"((Quarterly!AB199/Quarterly!AB198)^4)-1","v":0.18958767977740343},{"$f":"Quarterly!AC199-Quarterly!AC198","v":-10},{"$f":"Quarterly!AD199-Quarterly!AD198","v":-3.6000000000000005},{"$f":"(Quarterly!AE199-Quarterly!AE198)*100","v":-4.0000000000000036},{"$f":"(Quarterly!AF199-Quarterly!AF198)*100","v":-9},{"$f":"(Quarterly!AG199-Quarterly!AG198)*100","v":-21.000000000000007},{"$f":"((Quarterly!AH199/Quarterly!AH198)^4)-1","v":0.38363684150952682},{"$f":"((Quarterly!AI199/Quarterly!AI198)^4)-1","v":0.23955805750079739},{"$f":"((Quarterly!AJ199/Quarterly!AJ198)^4)-1","v":2.0089779639897554E-2},{"$f":"((Quarterly!AK199/Quarterly!AK198)^4)-1","v":2.41680945158389E-2},{"$f":"((Quarterly!AL199/Quarterly!AL198)^4)-1","v":2.8266811136492098E-2},{"$f":"((Quarterly!AM199/Quarterly!AM198)^4)-1","v":3.8431020210233813E-2},{"$f":"((Quarterly!AN199/Quarterly!AN198)^4)-1","v":3.8168483851133805E-2},{"$f":"((Quarterly!AO199/Quarterly!AO198)^4)-1","v":9.0669188786638211E-2},{"$f":"(Quarterly!AP199-Quarterly!AP198)*100","v":0},{"$f":"Quarterly!AQ199-Quarterly!AQ198","v":-1.3000000000000043},{"$f":"Quarterly!AR199-Quarterly!AR198","v":3.1666666666666714},{"$f":"Quarterly!AS199-Quarterly!AS198","v":3.3333333333333357},{"$f":"Quarterly!AT199-Quarterly!AT198","v":-1.2000000000000028},{"$f":"Quarterly!AU199-Quarterly!AU198","v":1.8000000000000114},{"$f":"Quarterly!AV199-Quarterly!AV198","v":2.1333333333333258},{"$f":"Quarterly!AW199-Quarterly!AW198","v":3.1666666666666714},{"$f":"Quarterly!AX199-Quarterly!AX198","v":-1.93333333333333},{"$f":"Quarterly!AY199-Quarterly!AY198","v":-9},{"$f":"Quarterly!AZ199-Quarterly!AZ198","v":-3.4000000000000057},{"$f":"Quarterly!BA199-Quarterly!BA198","v":-3.2333333333333343},{"$f":"Quarterly!BB199-Quarterly!BB198","v":0.63333333333333286},{"$f":"((Quarterly!BC199/Quarterly!BC198)^4)-1","v":0.24922491271337277},{"$f":"((Quarterly!BD199/Quarterly!BD198)^4)-1","v":3.345391735154557E-2},{"$f":"((Quarterly!BE199/Quarterly!BE198)^4)-1","v":4.4005185738640762E-2},{"$f":"((Quarterly!BF199/Quarterly!BF198)^4)-1","v":8.6419249463275616E-2},{"$f":"((Quarterly!BG199/Quarterly!BG198)^4)-1","v":2.4162658909600454E-2},{"$f":"((Quarterly!BH199/Quarterly!BH198)^4)-1","v":6.4365191374723407E-2},{"$f":"((Quarterly!BI199/Quarterly!BI198)^4)-1","v":6.0765245759153652E-2},{"$f":"((Quarterly!BJ199/Quarterly!BJ198)^4)-1","v":0.13219072152667},{"$f":"((Quarterly!BK199/Quarterly!BK198)^4)-1","v":-0.81723110185217607},null,{"$f":"((Quarterly!BM199/Quarterly!BM198)^4)-1","v":0.11571655395557778},{"$f":"((Quarterly!BN199/Quarterly!BN198)^4)-1","v":0.11623399415370761},null,null,null,null,null,{"$f":"((Quarterly!BT199/Quarterly!BT198)^4)-1","v":-4.2688620095053809E-3},{"$f":"Quarterly!BU199-Quarterly!BU198","v":-1.7099999999999227E-2},{"$f":"Quarterly!BV199-Quarterly!BV198","v":-6.1040000000001982E-2},{"$f":"((Quarterly!BW199/Quarterly!BW198)^4)-1","v":9.909075136552703E-2},{"$f":"((Quarterly!BX199/Quarterly!BX198)^4)-1","v":0.10370877984173177},{"$f":"((Quarterly!BY199/Quarterly!BY198)^4)-1","v":-2.254803903846947E-2},{"$f":"((Quarterly!BZ199/Quarterly!BZ198)^4)-1","v":0.10529034821082206},{"$f":"((Quarterly!CA199/Quarterly!CA198)^4)-1","v":0.27107186719591958},{"$f":"((Quarterly!CB199/Quarterly!CB198)^4)-1","v":-9.6893009528835505E-2},{"$f":"((Quarterly!CC199/Quarterly!CC198)^4)-1","v":-0.11986981649015793},{"$f":"((Quarterly!CD199/Quarterly!CD198)^4)-1","v":0.32977510813425059},{"$f":"((Quarterly!CE199/Quarterly!CE198)^4)-1","v":-0.3882143440088881},null,"--","--",null,{"$f":"((Quarterly!CJ199/Quarterly!CJ198)^4)-1","v":-0.3882143440088881},{"$f":"((Quarterly!CK199/Quarterly!CK198)^4)-1","v":0.12695290548710192},{"$f":"((Quarterly!CL199/Quarterly!CL198)^4)-1","v":3.4463920724321913},{"$f":"((Quarterly!CM199/Quarterly!CM198)^4)-1","v":4.0795114535135735E-2},{"$f":"((Quarterly!CN199/Quarterly!CN198)^4)-1","v":9.4519162451012217E-2},{"$f":"((Quarterly!CO199/Quarterly!CO198)^4)-1","v":3.2880723594163053E-2},{"$f":"((Quarterly!CP199/Quarterly!CP198)^4)-1","v":0.17167642746508571},{"$f":"((Quarterly!CQ199/Quarterly!CQ198)^4)-1","v":8.7814764082543295E-3},{"$f":"((Quarterly!CR199/Quarterly!CR198)^4)-1","v":0.31729350142540769},{"$f":"Quarterly!CS199-Quarterly!CS198","v":6.5},{"$f":"Quarterly!CT199-Quarterly!CT198","v":9.9000000000000057},null,null,null,null,null,{"$f":"((Quarterly!CZ199/Quarterly!CZ198)^4)-1","v":2.0993105027691472E-2},{"$f":"((Quarterly!DA199/Quarterly!DA198)^4)-1","v":2.5264713160058516E-2},null,null,null,null,null,{"$f":"((Quarterly!DG199/Quarterly!DG198)^4)-1","v":4.5706990287452731E-2},{"$f":"((Quarterly!DH199-Quarterly!DH198)*60)","v":3.9999999999997726},{"$f":"Quarterly!DI199-Quarterly!DI198","v":6.6666666666677088E-2},{"$f":"(Quarterly!DJ199-Quarterly!DJ198)*100","v":-33.333333333333215},{"$f":"(Quarterly!DK199-Quarterly!DK198)*100","v":-23.333333333333339},{"$f":"((Quarterly!DL199/Quarterly!DL198)^4)-1","v":5.743797104666104E-3},null,null,null,{"$f":"((Quarterly!DP199/Quarterly!DP198)^4)-1","v":2.3933219497654257E-2},null,null,null,"--",{"$f":"Quarterly!DU199-Quarterly!DU198","v":0.19999999999999929},{"$f":"((Quarterly!DV199/Quarterly!DV198)^4)-1","v":2.4006934465244711E-2},{"$f":"((Quarterly!DW199/Quarterly!DW198)^4)-1","v":-7.8548162172202396E-2},{"$f":"((Quarterly!DX199/Quarterly!DX198)^4)-1","v":-3.9107283824627692E-2},{"$f":"((Quarterly!DY199/Quarterly!DY198)^4)-1","v":-6.1579934235901135E-2},{"$f":"((Quarterly!DZ199/Quarterly!DZ198)^4)-1","v":-3.216476623680109E-2},{"$f":"((Quarterly!EA199/Quarterly!EA198)^4)-1","v":-1.5960774611862405E-2},{"$f":"((Quarterly!EB199/Quarterly!EB198)^4)-1","v":-6.8802966123402642E-2},{"$f":"((Quarterly!EC199/Quarterly!EC198)^4)-1","v":-0.16572180800613756},null,null,null,null,null,{"$f":"((Quarterly!EI199/Quarterly!EI198)^4)-1","v":6.5391570033832336E-2},{"$f":"((Quarterly!EJ199/Quarterly!EJ198)^4)-1","v":2.6625685202561034E-2},{"$f":"((Quarterly!EK199/Quarterly!EK198)^4)-1","v":1.9661187168066752E-2},null,null,null,null,null,{"$f":"((Quarterly!EQ199/Quarterly!EQ198)^4)-1","v":-3.6810755173021792E-2},{"$f":"((Quarterly!ER199/Quarterly!ER198)^4)-1","v":3.0095719581818559E-2},{"$f":"((Quarterly!ES199/Quarterly!ES198)^4)-1","v":2.4112064060063831E-2},null,null,null,null,null,{"$f":"(Quarterly!EY199-Quarterly!EY198)*100","v":46.333333333333385},{"$f":"(Quarterly!EZ199-Quarterly!EZ198)*100","v":47.6666666666667},{"$f":"(Quarterly!FA199-Quarterly!FA198)*100","v":1.0000000000000675},{"$f":"(Quarterly!FB199-Quarterly!FB198)*100","v":-2.9999999999998472},-3.9999999999999147,{"$f":"(Quarterly!FD199-Quarterly!FD198)*100","v":1.6666666666665719},{"$f":"(Quarterly!FE199-Quarterly!FE198)*100","v":56.666666666666686},{"$f":"(Quarterly!FF199-Quarterly!FF198)*100","v":34.666666666666671},{"$f":"(Quarterly!FG199-Quarterly!FG198)*100","v":23.666666666666725},{"$f":"(Quarterly!FH199-Quarterly!FH198)*100","v":15.666666666666629},{"$f":"(Quarterly!FI199-Quarterly!FI198)*100","v":8.0000000000000959},-26.666666666666575,null,null,null,null,null,{"$f":"((Quarterly!FP199/Quarterly!FP198)^4)-1","v":-6.3209320390233525E-2},{"$f":"((Quarterly!FQ199/Quarterly!FQ198)^4)-1","v":-1.5970099506730118E-2},{"$f":"((Quarterly!FR199/Quarterly!FR198)^4)-1","v":-4.3800792608446049E-2},{"$f":"((Quarterly!FS199/Quarterly!FS198)^4)-1","v":4.8166363245953248E-2},{"$f":"((Quarterly!FT199/Quarterly!FT198)^4)-1","v":-5.2301111771219211E-2},{"$f":"((Quarterly!FU199/Quarterly!FU198)^4)-1","v":-4.0008992236941765E-2},{"$f":"((Quarterly!FV199/Quarterly!FV198)^4)-1","v":-0.18924088571785158},{"$f":"((Quarterly!FW199/Quarterly!FW198)^4)-1","v":-0.37564554817320983},{"$f":"((Quarterly!FX199/Quarterly!FX198)^4)-1","v":0.1639019861734563},null,null,null,null,null,{"$f":"((Quarterly!GD199/Quarterly!GD198)^4)-1","v":0.23972464757025502},{"$f":"((Quarterly!GE199/Quarterly!GE198)^4)-1","v":0.38932313964893361},{"$f":"((Quarterly!GF199/Quarterly!GF198)^4)-1","v":0.1764672549284898},{"$f":"((Quarterly!GG199/Quarterly!GG198)^4)-1","v":-0.2685594113930756},{"$f":"((Quarterly!GH199/Quarterly!GH198)^4)-1","v":{"$error":"#DIV/0!"}},"--",{"$f":"((Quarterly!GJ199/Quarterly!GJ198)^4)-1","v":-0.85905693163040753},{"$f":"((Quarterly!GK199/Quarterly!GK198)^4)-1","v":0.23397100292794915},"--"]
["06'Q2",{"$f":"((Quarterly!B200/Quarterly!B199)^4)-1","v":4.4959111180143951E-2},{"$f":"((Quarterly!C200/Quarterly!C199)^4)-1","v":1.2006285073496104E-2},{"$f":"((Quarterly!D200/Quarterly!D199)^4)-1","v":1.0418667527437364E-2},{"$f":"((Quarterly!E200/Quarterly!E199)^4)-1","v":2.1481251217740471E-2},{"$f":"((Quarterly!F200/Quarterly!F199)^4)-1","v":-4.5543292238822142E-3},{"$f":"((Quarterly!G200/Quarterly!G199)^4)-1","v":1.3263762154813952E-2},{"$f":"((Quarterly!H200/Quarterly!H199)^4)-1","v":2.9295524337929812E-2},{"$f":"((Quarterly!I200/Quarterly!I199)^4)-1","v":5.0898422634545026E-2},{"$f":"((Quarterly!J200/Quarterly!J199)^4)-1","v":2.7934441659855036E-2},{"$f":"((Quarterly!K200/Quarterly!K199)^4)-1","v":-0.18646571664909639},{"$f":"((Quarterly!L200-Quarterly!L199))","v":5.8229999999999933},{"$f":"((Quarterly!M200/Quarterly!M199)^4)-1","v":4.9652323010420885E-2},{"$f":"((Quarterly!N200/Quarterly!N199)^4)-1","v":7.7033855072357493E-2},{"$f":"((Quarterly!O200/Quarterly!O199)^4)-1","v":6.1091788634404232E-4},{"$f":"((Quarterly!P200/Quarterly!P199)^4)-1","v":1.4978821745354587E-2},{"$f":"((Quarterly!Q200/Quarterly!Q199)^4)-1","v":2.9125626026826668E-2},null,null,null,null,null,{"$f":"((Quarterly!W200/Quarterly!W199)^4)-1","v":-1.0126500736886146E-2},{"$f":"((Quarterly!X200/Quarterly!X199)^4)-1","v":6.6472558995809283E-3},{"$f":"((Quarterly!Y200/Quarterly!Y199)^4)-1","v":0.17519876061490391},{"$f":"Quarterly!Z200-Quarterly!Z199","v":3.999999999999998E-2},{"$f":"((Quarterly!AA200/Quarterly!AA199)^4)-1","v":0.11992816344799073},{"$f":"((Quarterly!AB200/Quarterly!AB199)^4)-1","v":2.5312444341294871E-2},{"$f":"Quarterly!AC200-Quarterly!AC199","v":4},{"$f":"Quarterly!AD200-Quarterly!AD199","v":-1.7999999999999998},{"$f":"(Quarterly!AE200-Quarterly!AE199)*100","v":-1.0000000000000009},{"$f":"(Quarterly!AF200-Quarterly!AF199)*100","v":3.9999999999999982},{"$f":"(Quarterly!AG200-Quarterly!AG199)*100","v":2.0000000000000018},{"$f":"((Quarterly!AH200/Quarterly!AH199)^4)-1","v":0.15312297058228586},{"$f":"((Quarterly!AI200/Quarterly!AI199)^4)-1","v":0.13511152848139463},{"$f":"((Quarterly!AJ200/Quarterly!AJ199)^4)-1","v":3.2125964286968234E-2},{"$f":"((Quarterly!AK200/Quarterly!AK199)^4)-1","v":3.2125964286968234E-2},{"$f":"((Quarterly!AL200/Quarterly!AL199)^4)-1","v":3.2125964286968234E-2},{"$f":"((Quarterly!AM200/Quarterly!AM199)^4)-1","v":2.41467799407733E-2},{"$f":"((Quarterly!AN200/Quarterly!AN199)^4)-1","v":8.5490827708523121E-3},{"$f":"((Quarterly!AO200/Quarterly!AO199)^4)-1","v":0.1006718448658106},{"$f":"(Quarterly!AP200-Quarterly!AP199)*100","v":1.6666666666666829},{"$f":"Quarterly!AQ200-Quarterly!AQ199","v":-1.3999999999999986},{"$f":"Quarterly!AR200-Quarterly!AR199","v":-1.1666666666666714},{"$f":"Quarterly!AS200-Quarterly!AS199","v":-2.1666666666666643},{"$f":"Quarterly!AT200-Quarterly!AT199","v":-1.0333333333333243},{"$f":"Quarterly!AU200-Quarterly!AU199","v":-2.7666666666666657},{"$f":"Quarterly!AV200-Quarterly!AV199","v":0.1666666666666714},{"$f":"Quarterly!AW200-Quarterly!AW199","v":-0.6666666666666714},{"$f":"Quarterly!AX200-Quarterly!AX199","v":-3.7666666666666728},{"$f":"Quarterly!AY200-Quarterly!AY199","v":10.333333333333329},{"$f":"Quarterly!AZ200-Quarterly!AZ199","v":-2.6999999999999957},{"$f":"Quarterly!BA200-Quarterly!BA199","v":1.1666666666666714},{"$f":"Quarterly!BB200-Quarterly!BB199","v":-1.5333333333333314},{"$f":"((Quarterly!BC200/Quarterly!BC199)^4)-1","v":-1.5288369963388893E-2},{"$f":"((Quarterly!BD200/Quarterly!BD199)^4)-1","v":7.8096488221264249E-3},{"$f":"((Quarterly!BE200/Quarterly!BE199)^4)-1","v":-4.070953546107714E-2},{"$f":"((Quarterly!BF200/Quarterly!BF199)^4)-1","v":1.3069188729741832E-3},{"$f":"((Quarterly!BG200/Quarterly!BG199)^4)-1","v":-3.2459122661493423E-3},{"$f":"((Quarterly!BH200/Quarterly!BH199)^4)-1","v":-3.4755645855718442E-2},{"$f":"((Quarterly!BI200/Quarterly!BI199)^4)-1","v":4.6299089670505111E-3},{"$f":"((Quarterly!BJ200/Quarterly!BJ199)^4)-1","v":8.6239924945035629E-2},{"$f":"((Quarterly!BK200/Quarterly!BK199)^4)-1","v":1.3285281545958489},null,{"$f":"((Quarterly!BM200/Quarterly!BM199)^4)-1","v":1.4907688955530629E-2},{"$f":"((Quarterly!BN200/Quarterly!BN199)^4)-1","v":1.5867552790153505E-2},null,null,null,null,null,{"$f":"((Quarterly!BT200/Quarterly!BT199)^4)-1","v":7.3023189079855833E-2},{"$f":"Quarterly!BU200-Quarterly!BU199","v":9.1390000000000526E-2},{"$f":"Quarterly!BV200-Quarterly!BV199","v":0.13781000000000176},{"$f":"((Quarterly!BW200/Quarterly!BW199)^4)-1","v":7.6086829295487046E-2},{"$f":"((Quarterly!BX200/Quarterly!BX199)^4)-1","v":-0.41418688220251709},{"$f":"((Quarterly!BY200/Quarterly!BY199)^4)-1","v":-0.36785362283890033},{"$f":"((Quarterly!BZ200/Quarterly!BZ199)^4)-1","v":2.3407886180059734E-2},{"$f":"((Quarterly!CA200/Quarterly!CA199)^4)-1","v":-0.10680924421279081},{"$f":"((Quarterly!CB200/Quarterly!CB199)^4)-1","v":6.4469447078116415E-2},{"$f":"((Quarterly!CC200/Quarterly!CC199)^4)-1","v":2.1511392588536848E-2},{"$f":"((Quarterly!CD200/Quarterly!CD199)^4)-1","v":0.21924019053894828},{"$f":"((Quarterly!CE200/Quarterly!CE199)^4)-1","v":-7.8732353714965675E-2},null,{"$f":"((Quarterly!CG200/Quarterly!CG199)^4)-1","v":0.99085458737965348},{"$f":"((Quarterly!CH200/Quarterly!CH199)^4)-1","v":-0.15682113535743891},null,{"$f":"((Quarterly!CJ200/Quarterly!CJ199)^4)-1","v":-7.8732353714965675E-2},{"$f":"((Quarterly!CK200/Quarterly!CK199)^4)-1","v":4.3407763736292848E-2},{"$f":"((Quarterly!CL200/Quarterly!CL199)^4)-1","v":-0.38927961808946776},{"$f":"((Quarterly!CM200/Quarterly!CM199)^4)-1","v":-0.43530064832126036},{"$f":"((Quarterly!CN200/Quarterly!CN199)^4)-1","v":6.0253306479571833E-3},{"$f":"((Quarterly!CO200/Quarterly!CO199)^4)-1","v":-4.8152604380681252E-3},{"$f":"((Quarterly!CP200/Quarterly!CP199)^4)-1","v":4.1249628617242795E-2},{"$f":"((Quarterly!CQ200/Quarterly!CQ199)^4)-1","v":8.7802637200673495E-3},{"$f":"((Quarterly!CR200/Quarterly!CR199)^4)-1","v":5.7544747307915367E-2},{"$f":"Quarterly!CS200-Quarterly!CS199","v":-5.13333333333334},{"$f":"Quarterly!CT200-Quarterly!CT199","v":0.96666666666665435},null,null,null,null,null,{"$f":"((Quarterly!CZ200/Quarterly!CZ199)^4)-1","v":3.6587805173902588E-2},{"$f":"((Quarterly!DA200/Quarterly!DA199)^4)-1","v":3.3131730712976148E-2},null,null,null,null,null,{"$f":"((Quarterly!DG200/Quarterly!DG199)^4)-1","v":2.6934520493826941E-2},{"$f":"((Quarterly!DH200-Quarterly!DH199)*60)","v":2.0000000000003126},{"$f":"Quarterly!DI200-Quarterly!DI199","v":3.3333333333317228E-2},{"$f":"(Quarterly!DJ200-Quarterly!DJ199)*100","v":-10.000000000000142},{"$f":"(Quarterly!DK200-Quarterly!DK199)*100","v":-9.9999999999999645},{"$f":"((Quarterly!DL200/Quarterly!DL199)^4)-1","v":8.4468372444912454E-4},null,null,null,{"$f":"((Quarterly!DP200/Quarterly!DP199)^4)-1","v":1.5380059101357979E-2},null,null,null,"--",{"$f":"Quarterly!DU200-Quarterly!DU199","v":-0.7333333333333325},{"$f":"((Quarterly!DV200/Quarterly!DV199)^4)-1","v":3.3643265998535732E-2},{"$f":"((Quarterly!DW200/Quarterly!DW199)^4)-1","v":0.11746841258605634},{"$f":"((Quarterly!DX200/Quarterly!DX199)^4)-1","v":6.0375295710521248E-2},{"$f":"((Quarterly!DY200/Quarterly!DY199)^4)-1","v":0.10149410489800226},{"$f":"((Quarterly!DZ200/Quarterly!DZ199)^4)-1","v":4.8145288203125025E-2},{"$f":"((Quarterly!EA200/Quarterly!EA199)^4)-1","v":4.3516482885858965E-2},{"$f":"((Quarterly!EB200/Quarterly!EB199)^4)-1","v":5.9038308851195431E-2},{"$f":"((Quarterly!EC200/Quarterly!EC199)^4)-1","v":0.2647522893863643},null,null,null,null,null,{"$f":"((Quarterly!EI200/Quarterly!EI199)^4)-1","v":-2.6938399564487736E-2},{"$f":"((Quarterly!EJ200/Quarterly!EJ199)^4)-1","v":-2.1221605819551792E-2},{"$f":"((Quarterly!EK200/Quarterly!EK199)^4)-1","v":-2.4239802139288669E-3},null,null,null,null,null,{"$f":"((Quarterly!EQ200/Quarterly!EQ199)^4)-1","v":6.6301800681894507E-2},{"$f":"((Quarterly!ER200/Quarterly!ER199)^4)-1","v":2.1269063686576883E-2},{"$f":"((Quarterly!ES200/Quarterly!ES199)^4)-1","v":2.5828929142343693E-2},null,null,null,null,null,{"$f":"(Quarterly!EY200-Quarterly!EY199)*100","v":46.999999999999972},{"$f":"(Quarterly!EZ200-Quarterly!EZ199)*100","v":45.000000000000014},{"$f":"(Quarterly!FA200-Quarterly!FA199)*100","v":50.3333333333333},{"$f":"(Quarterly!FB200-Quarterly!FB199)*100","v":42.999999999999972},-7.3333333333333286,{"$f":"(Quarterly!FD200-Quarterly!FD199)*100","v":35.666666666666735},{"$f":"(Quarterly!FE200-Quarterly!FE199)*100","v":30.999999999999961},{"$f":"(Quarterly!FF200-Quarterly!FF199)*100","v":38.666666666666757},{"$f":"(Quarterly!FG200-Quarterly!FG199)*100","v":39.333333333333265},{"$f":"(Quarterly!FH200-Quarterly!FH199)*100","v":44.333333333333336},{"$f":"(Quarterly!FI200-Quarterly!FI199)*100","v":50},11.333333333333243,null,null,null,null,null,{"$f":"((Quarterly!FP200/Quarterly!FP199)^4)-1","v":-0.10592374709374208},{"$f":"((Quarterly!FQ200/Quarterly!FQ199)^4)-1","v":-1.9726826892037197E-2},{"$f":"((Quarterly!FR200/Quarterly!FR199)^4)-1","v":0.24026449088032975},{"$f":"((Quarterly!FS200/Quarterly!FS199)^4)-1","v":0.1903410837425048},{"$f":"((Quarterly!FT200/Quarterly!FT199)^4)-1","v":-5.9185495826996726E-2},{"$f":"((Quarterly!FU200/Quarterly!FU199)^4)-1","v":-0.12583008614710567},{"$f":"((Quarterly!FV200/Quarterly!FV199)^4)-1","v":8.9274494065532339E-2},{"$f":"((Quarterly!FW200/Quarterly!FW199)^4)-1","v":0.64700628779399505},{"$f":"((Quarterly!FX200/Quarterly!FX199)^4)-1","v":0.29812979598737877},null,null,null,null,null,{"$f":"((Quarterly!GD200/Quarterly!GD199)^4)-1","v":0.53674025315242746},{"$f":"((Quarterly!GE200/Quarterly!GE199)^4)-1","v":0.60742447794150278},{"$f":"((Quarterly!GF200/Quarterly!GF199)^4)-1","v":1.1935596057666293},{"$f":"((Quarterly!GG200/Quarterly!GG199)^4)-1","v":0.66683761284060239},{"$f":"((Quarterly!GH200/Quarterly!GH199)^4)-1","v":{"$error":"#DIV/0!"}},"--",{"$f":"((Quarterly!GJ200/Quarterly!GJ199)^4)-1","v":-0.48510267453426592},{"$f":"((Quarterly!GK200/Quarterly!GK199)^4)-1","v":-0.16724735807852487},"--"]
["06'Q3",{"$f":"((Quarterly!B201/Quarterly!B200)^4)-1","v":3.1883138619815954E-2},{"$f":"((Quarterly!C201/Quarterly!C200)^4)-1","v":3.582148332461621E-3},{"$f":"((Quarterly!D201/Quarterly!D200)^4)-1","v":3.8560229953730207E-3},{"$f":"((Quarterly!E201/Quarterly!E200)^4)-1","v":2.3514898357343883E-2},{"$f":"((Quarterly!F201/Quarterly!F200)^4)-1","v":5.6459280701958159E-2},{"$f":"((Quarterly!G201/Quarterly!G200)^4)-1","v":2.0187902466920926E-2},{"$f":"((Quarterly!H201/Quarterly!H200)^4)-1","v":1.8515831518243875E-2},{"$f":"((Quarterly!I201/Quarterly!I200)^4)-1","v":4.8594415204359365E-2},{"$f":"((Quarterly!J201/Quarterly!J200)^4)-1","v":4.0817378368827484E-2},{"$f":"((Quarterly!K201/Quarterly!K200)^4)-1","v":-0.20515565099022304},{"$f":"((Quarterly!L201-Quarterly!L200))","v":-2.4899999999999949},{"$f":"((Quarterly!M201/Quarterly!M200)^4)-1","v":3.1028287646859942E-2},{"$f":"((Quarterly!N201/Quarterly!N200)^4)-1","v":-7.9494770415349247E-3},{"$f":"((Quarterly!O201/Quarterly!O200)^4)-1","v":0.10720431436030209},{"$f":"((Quarterly!P201/Quarterly!P200)^4)-1","v":8.8332039422114317E-3},{"$f":"((Quarterly!Q201/Quarterly!Q200)^4)-1","v":-0.15777149122933332},null,null,null,null,null,{"$f":"((Quarterly!W201/Quarterly!W200)^4)-1","v":0},{"$f":"((Quarterly!X201/Quarterly!X200)^4)-1","v":-6.6033616647981352E-3},{"$f":"((Quarterly!Y201/Quarterly!Y200)^4)-1","v":0.16225413451826931},{"$f":"Quarterly!Z201-Quarterly!Z200","v":0.03},{"$f":"((Quarterly!AA201/Quarterly!AA200)^4)-1","v":5.077436658159229E-2},{"$f":"((Quarterly!AB201/Quarterly!AB200)^4)-1","v":8.0024498549286394E-2},{"$f":"Quarterly!AC201-Quarterly!AC200","v":5.8000000000000007},{"$f":"Quarterly!AD201-Quarterly!AD200","v":-3.5},{"$f":"(Quarterly!AE201-Quarterly!AE200)*100","v":4.0000000000000036},{"$f":"(Quarterly!AF201-Quarterly!AF200)*100","v":3},{"$f":"(Quarterly!AG201-Quarterly!AG200)*100","v":2.0000000000000018},{"$f":"((Quarterly!AH201/Quarterly!AH200)^4)-1","v":0.2330378079858344},{"$f":"((Quarterly!AI201/Quarterly!AI200)^4)-1","v":0.20753450951037222},{"$f":"((Quarterly!AJ201/Quarterly!AJ200)^4)-1","v":3.5906670859478185E-2},{"$f":"((Quarterly!AK201/Quarterly!AK200)^4)-1","v":3.5906670859478185E-2},{"$f":"((Quarterly!AL201/Quarterly!AL200)^4)-1","v":3.5906670859478185E-2},{"$f":"((Quarterly!AM201/Quarterly!AM200)^4)-1","v":1.3624750550408793E-2},{"$f":"((Quarterly!AN201/Quarterly!AN200)^4)-1","v":1.5424852245058851E-2},{"$f":"((Quarterly!AO201/Quarterly!AO200)^4)-1","v":8.3690119382514361E-2},{"$f":"(Quarterly!AP201-Quarterly!AP200)*100","v":2.0000000000000018},{"$f":"Quarterly!AQ201-Quarterly!AQ200","v":-0.6666666666666643},{"$f":"Quarterly!AR201-Quarterly!AR200","v":-5.1666666666666643},{"$f":"Quarterly!AS201-Quarterly!AS200","v":1.1666666666666643},{"$f":"Quarterly!AT201-Quarterly!AT200","v":-1.3666666666666671},{"$f":"Quarterly!AU201-Quarterly!AU200","v":-0.53333333333334565},{"$f":"Quarterly!AV201-Quarterly!AV200","v":-1.5},{"$f":"Quarterly!AW201-Quarterly!AW200","v":-0.5},{"$f":"Quarterly!AX201-Quarterly!AX200","v":9.9999999999994316E-2},{"$f":"Quarterly!AY201-Quarterly!AY200","v":-4.1666666666666714},{"$f":"Quarterly!AZ201-Quarterly!AZ200","v":0.60000000000000142},{"$f":"Quarterly!BA201-Quarterly!BA200","v":-2.3000000000000043},{"$f":"Quarterly!BB201-Quarterly!BB200","v":-2.7999999999999972},{"$f":"((Quarterly!BC201/Quarterly!BC200)^4)-1","v":0.10717412487767231},{"$f":"((Quarterly!BD201/Quarterly!BD200)^4)-1","v":5.5998360615609366E-2},{"$f":"((Quarterly!BE201/Quarterly!BE200)^4)-1","v":-3.6376168600235514E-2},{"$f":"((Quarterly!BF201/Quarterly!BF200)^4)-1","v":5.0151719974185216E-3},{"$f":"((Quarterly!BG201/Quarterly!BG200)^4)-1","v":-1.7581620314453539E-2},{"$f":"((Quarterly!BH201/Quarterly!BH200)^4)-1","v":-3.1317246650579444E-2},{"$f":"((Quarterly!BI201/Quarterly!BI200)^4)-1","v":2.2947909740791861E-2},{"$f":"((Quarterly!BJ201/Quarterly!BJ200)^4)-1","v":0.30334840300450039},{"$f":"((Quarterly!BK201/Quarterly!BK200)^4)-1","v":0.7059558517284461},null,{"$f":"((Quarterly!BM201/Quarterly!BM200)^4)-1","v":2.4189229175773486E-2},{"$f":"((Quarterly!BN201/Quarterly!BN200)^4)-1","v":2.1120140480128002E-2},null,null,null,null,null,{"$f":"((Quarterly!BT201/Quarterly!BT200)^4)-1","v":-5.3235680293878263E-3},{"$f":"Quarterly!BU201-Quarterly!BU200","v":0.10096999999999845},{"$f":"Quarterly!BV201-Quarterly!BV200","v":0.1548899999999982},{"$f":"((Quarterly!BW201/Quarterly!BW200)^4)-1","v":9.2870836535153822E-2},{"$f":"((Quarterly!BX201/Quarterly!BX200)^4)-1","v":-0.29074442736882011},{"$f":"((Quarterly!BY201/Quarterly!BY200)^4)-1","v":-0.37027748198147858},{"$f":"((Quarterly!BZ201/Quarterly!BZ200)^4)-1","v":-4.034736965072705E-2},{"$f":"((Quarterly!CA201/Quarterly!CA200)^4)-1","v":2.9408291885580029E-2},{"$f":"((Quarterly!CB201/Quarterly!CB200)^4)-1","v":-0.24344318345971649},{"$f":"((Quarterly!CC201/Quarterly!CC200)^4)-1","v":-0.18155188555543367},{"$f":"((Quarterly!CD201/Quarterly!CD200)^4)-1","v":2.3605773152546305E-3},{"$f":"((Quarterly!CE201/Quarterly!CE200)^4)-1","v":-0.28773464934484927},null,{"$f":"((Quarterly!CG201/Quarterly!CG200)^4)-1","v":0.30965680658219008},{"$f":"((Quarterly!CH201/Quarterly!CH200)^4)-1","v":-0.16674455503159946},null,{"$f":"((Quarterly!CJ201/Quarterly!CJ200)^4)-1","v":-0.28773464934484927},{"$f":"((Quarterly!CK201/Quarterly!CK200)^4)-1","v":3.9339733599323967E-2},{"$f":"((Quarterly!CL201/Quarterly!CL200)^4)-1","v":-0.34360835139639967},{"$f":"((Quarterly!CM201/Quarterly!CM200)^4)-1","v":-0.28184598266098848},{"$f":"((Quarterly!CN201/Quarterly!CN200)^4)-1","v":1.1460455623670152E-2},{"$f":"((Quarterly!CO201/Quarterly!CO200)^4)-1","v":1.386037228446968E-2},{"$f":"((Quarterly!CP201/Quarterly!CP200)^4)-1","v":2.5226922399918861E-2},{"$f":"((Quarterly!CQ201/Quarterly!CQ200)^4)-1","v":1.0299549467825964E-2},{"$f":"((Quarterly!CR201/Quarterly!CR200)^4)-1","v":2.9967023817933702E-2},{"$f":"Quarterly!CS201-Quarterly!CS200","v":0.23333333333333428},{"$f":"Quarterly!CT201-Quarterly!CT200","v":-2.2666666666666515},null,null,null,null,null,{"$f":"((Quarterly!CZ201/Quarterly!CZ200)^4)-1","v":3.8298926675664369E-2},{"$f":"((Quarterly!DA201/Quarterly!DA200)^4)-1","v":2.7548405068332782E-2},null,null,null,null,null,{"$f":"((Quarterly!DG201/Quarterly!DG200)^4)-1","v":1.0129707110987152E-2},{"$f":"((Quarterly!DH201-Quarterly!DH200)*60)","v":-2.0000000000003126},{"$f":"Quarterly!DI201-Quarterly!DI200","v":0},{"$f":"(Quarterly!DJ201-Quarterly!DJ200)*100","v":6.666666666666643},{"$f":"(Quarterly!DK201-Quarterly!DK200)*100","v":0},{"$f":"((Quarterly!DL201/Quarterly!DL200)^4)-1","v":-1.5851610700526431E-2},null,null,null,{"$f":"((Quarterly!DP201/Quarterly!DP200)^4)-1","v":1.2977745758510517E-2},null,null,null,"--",{"$f":"Quarterly!DU201-Quarterly!DU200","v":6.666666666666643E-2},{"$f":"((Quarterly!DV201/Quarterly!DV200)^4)-1","v":3.0122631298821645E-2},{"$f":"((Quarterly!DW201/Quarterly!DW200)^4)-1","v":8.9181256054070568E-2},{"$f":"((Quarterly!DX201/Quarterly!DX200)^4)-1","v":6.5904136876503649E-2},{"$f":"((Quarterly!DY201/Quarterly!DY200)^4)-1","v":0.10509910908149478},{"$f":"((Quarterly!DZ201/Quarterly!DZ200)^4)-1","v":5.4090110540899072E-2},{"$f":"((Quarterly!EA201/Quarterly!EA200)^4)-1","v":4.9235724380808588E-2},{"$f":"((Quarterly!EB201/Quarterly!EB200)^4)-1","v":6.5474437539704944E-2},{"$f":"((Quarterly!EC201/Quarterly!EC200)^4)-1","v":0.14439554368833063},null,null,null,null,null,{"$f":"((Quarterly!EI201/Quarterly!EI200)^4)-1","v":-1.4238151975353053E-2},{"$f":"((Quarterly!EJ201/Quarterly!EJ200)^4)-1","v":5.0868894748925531E-3},{"$f":"((Quarterly!EK201/Quarterly!EK200)^4)-1","v":1.3379702573856234E-2},null,null,null,null,null,{"$f":"((Quarterly!EQ201/Quarterly!EQ200)^4)-1","v":3.1811534391806839E-2},{"$f":"((Quarterly!ER201/Quarterly!ER200)^4)-1","v":-3.3542947405125201E-3},{"$f":"((Quarterly!ES201/Quarterly!ES200)^4)-1","v":3.6363598866115954E-3},null,null,null,null,null,{"$f":"(Quarterly!EY201-Quarterly!EY200)*100","v":35.000000000000057},{"$f":"(Quarterly!EZ201-Quarterly!EZ200)*100","v":33.999999999999986},{"$f":"(Quarterly!FA201-Quarterly!FA200)*100","v":-21.333333333333382},{"$f":"(Quarterly!FB201-Quarterly!FB200)*100","v":-14.333333333333353},7.0000000000000284,{"$f":"(Quarterly!FD201-Quarterly!FD200)*100","v":-3.6666666666667069},{"$f":"(Quarterly!FE201-Quarterly!FE200)*100","v":20.333333333333314},{"$f":"(Quarterly!FF201-Quarterly!FF200)*100","v":6.9999999999999396},{"$f":"(Quarterly!FG201-Quarterly!FG200)*100","v":-6.3333333333333464},{"$f":"(Quarterly!FH201-Quarterly!FH200)*100","v":-14.666666666666739},{"$f":"(Quarterly!FI201-Quarterly!FI200)*100","v":-17.333333333333467},-24.333333333333407,null,null,null,null,null,{"$f":"((Quarterly!FP201/Quarterly!FP200)^4)-1","v":-4.8607625051024783E-3},{"$f":"((Quarterly!FQ201/Quarterly!FQ200)^4)-1","v":-2.2494515464354214E-2},{"$f":"((Quarterly!FR201/Quarterly!FR200)^4)-1","v":-7.955442215292019E-2},{"$f":"((Quarterly!FS201/Quarterly!FS200)^4)-1","v":5.5438805898955446E-2},{"$f":"((Quarterly!FT201/Quarterly!FT200)^4)-1","v":-2.1140075550168835E-2},{"$f":"((Quarterly!FU201/Quarterly!FU200)^4)-1","v":-2.2648998151265309E-2},{"$f":"((Quarterly!FV201/Quarterly!FV200)^4)-1","v":-0.17468574456724495},{"$f":"((Quarterly!FW201/Quarterly!FW200)^4)-1","v":0.8390790431624997},{"$f":"((Quarterly!FX201/Quarterly!FX200)^4)-1","v":-1.6222159396568125E-2},null,null,null,null,null,{"$f":"((Quarterly!GD201/Quarterly!GD200)^4)-1","v":-4.9061139706756407E-3},{"$f":"((Quarterly!GE201/Quarterly!GE200)^4)-1","v":4.9949473027233182E-3},{"$f":"((Quarterly!GF201/Quarterly!GF200)^4)-1","v":-2.4529540099338165E-2},{"$f":"((Quarterly!GG201/Quarterly!GG200)^4)-1","v":0.11697394216740742},{"$f":"((Quarterly!GH201/Quarterly!GH200)^4)-1","v":{"$error":"#DIV/0!"}},"--",{"$f":"((Quarterly!GJ201/Quarterly!GJ200)^4)-1","v":-0.28209989372132183},{"$f":"((Quarterly!GK201/Quarterly!GK200)^4)-1","v":2.2077678928388744E-2},"--"]
["06'Q4",{"$f":"((Quarterly!B202/Quarterly!B201)^4)-1","v":4.6181938060968042E-2},{"$f":"((Quarterly!C202/Quarterly!C201)^4)-1","v":3.1678107827179502E-2},{"$f":"((Quarterly!D202/Quarterly!D201)^4)-1","v":4.2932227164311998E-2},{"$f":"((Quarterly!E202/Quarterly!E201)^4)-1","v":4.1436202499655073E-2},{"$f":"((Quarterly!F202/Quarterly!F201)^4)-1","v":5.4152770549039886E-2},{"$f":"((Quarterly!G202/Quarterly!G201)^4)-1","v":6.8470802242425854E-2},{"$f":"((Quarterly!H202/Quarterly!H201)^4)-1","v":2.9864616079386286E-2},{"$f":"((Quarterly!I202/Quarterly!I201)^4)-1","v":2.6251840369333035E-2},{"$f":"((Quarterly!J202/Quarterly!J201)^4)-1","v":3.6553581171237193E-2},{"$f":"((Quarterly!K202/Quarterly!K201)^4)-1","v":-0.17407797683319015},{"$f":"((Quarterly!L202-Quarterly!L201))","v":-40.525999999999996},{"$f":"((Quarterly!M202/Quarterly!M201)^4)-1","v":1.0692105290732945E-2},{"$f":"((Quarterly!N202/Quarterly!N201)^4)-1","v":0.19033389634109521},{"$f":"((Quarterly!O202/Quarterly!O201)^4)-1","v":-0.26380274334017362},{"$f":"((Quarterly!P202/Quarterly!P201)^4)-1","v":2.6256349379684352E-2},{"$f":"((Quarterly!Q202/Quarterly!Q201)^4)-1","v":-0.58963106764540663},null,null,null,null,null,{"$f":"((Quarterly!W202/Quarterly!W201)^4)-1","v":-5.0858129642880057E-3},{"$f":"((Quarterly!X202/Quarterly!X201)^4)-1","v":-1.4835926775172203E-2},{"$f":"((Quarterly!Y202/Quarterly!Y201)^4)-1","v":9.6107238144263363E-2},{"$f":"Quarterly!Z202-Quarterly!Z201","v":0.06},{"$f":"((Quarterly!AA202/Quarterly!AA201)^4)-1","v":-0.13555265329252042},{"$f":"((Quarterly!AB202/Quarterly!AB201)^4)-1","v":-0.13261186303717076},{"$f":"Quarterly!AC202-Quarterly!AC201","v":-4.0000000000000009},{"$f":"Quarterly!AD202-Quarterly!AD201","v":-13},{"$f":"(Quarterly!AE202-Quarterly!AE201)*100","v":4.0000000000000036},{"$f":"(Quarterly!AF202-Quarterly!AF201)*100","v":6},{"$f":"(Quarterly!AG202-Quarterly!AG201)*100","v":2.9999999999999973},{"$f":"((Quarterly!AH202/Quarterly!AH201)^4)-1","v":0.19073961486939206},{"$f":"((Quarterly!AI202/Quarterly!AI201)^4)-1","v":0.18729295045119332},{"$f":"((Quarterly!AJ202/Quarterly!AJ201)^4)-1","v":3.5587246755886426E-2},{"$f":"((Quarterly!AK202/Quarterly!AK201)^4)-1","v":3.1586914405627331E-2},{"$f":"((Quarterly!AL202/Quarterly!AL201)^4)-1","v":3.1586914405627331E-2},{"$f":"((Quarterly!AM202/Quarterly!AM201)^4)-1","v":9.9985924761312184E-3},{"$f":"((Quarterly!AN202/Quarterly!AN201)^4)-1","v":2.1322143729183729E-2},{"$f":"((Quarterly!AO202/Quarterly!AO201)^4)-1","v":4.4639095474227508E-2},{"$f":"(Quarterly!AP202-Quarterly!AP201)*100","v":1.0000000000000009},{"$f":"Quarterly!AQ202-Quarterly!AQ201","v":-1.9333333333333371},{"$f":"Quarterly!AR202-Quarterly!AR201","v":-4.1666666666666643},{"$f":"Quarterly!AS202-Quarterly!AS201","v":4.5},{"$f":"Quarterly!AT202-Quarterly!AT201","v":-1.5333333333333314},{"$f":"Quarterly!AU202-Quarterly!AU201","v":2.0333333333333456},{"$f":"Quarterly!AV202-Quarterly!AV201","v":0.5},{"$f":"Quarterly!AW202-Quarterly!AW201","v":-1.1666666666666643},{"$f":"Quarterly!AX202-Quarterly!AX201","v":-3.1999999999999886},{"$f":"Quarterly!AY202-Quarterly!AY201","v":-21.499999999999993},{"$f":"Quarterly!AZ202-Quarterly!AZ201","v":-3.5333333333333385},{"$f":"Quarterly!BA202-Quarterly!BA201","v":-0.16666666666665719},{"$f":"Quarterly!BB202-Quarterly!BB201","v":1.5999999999999943},{"$f":"((Quarterly!BC202/Quarterly!BC201)^4)-1","v":7.2419681991925389E-2},{"$f":"((Quarterly!BD202/Quarterly!BD201)^4)-1","v":6.4776299826828421E-2},{"$f":"((Quarterly!BE202/Quarterly!BE201)^4)-1","v":2.6521960897127439E-2},{"$f":"((Quarterly!BF202/Quarterly!BF201)^4)-1","v":7.0890418813561507E-2},{"$f":"((Quarterly!BG202/Quarterly!BG201)^4)-1","v":2.9945374623807641E-2},{"$f":"((Quarterly!BH202/Quarterly!BH201)^4)-1","v":8.8326909143449761E-2},{"$f":"((Quarterly!BI202/Quarterly!BI201)^4)-1","v":3.9804441283486369E-2},{"$f":"((Quarterly!BJ202/Quarterly!BJ201)^4)-1","v":-0.2370319580199588},{"$f":"((Quarterly!BK202/Quarterly!BK201)^4)-1","v":1.44140625},null,{"$f":"((Quarterly!BM202/Quarterly!BM201)^4)-1","v":1.3320182469817254E-2},{"$f":"((Quarterly!BN202/Quarterly!BN201)^4)-1","v":2.9029603998642628E-3},null,null,null,null,null,{"$f":"((Quarterly!BT202/Quarterly!BT201)^4)-1","v":9.0580902736712599E-2},{"$f":"Quarterly!BU202-Quarterly!BU201","v":8.2430000000000447E-2},{"$f":"Quarterly!BV202-Quarterly!BV201","v":0.1410499999999999},{"$f":"((Quarterly!BW202/Quarterly!BW201)^4)-1","v":0.12208466104045179},{"$f":"((Quarterly!BX202/Quarterly!BX201)^4)-1","v":-0.2765305496041891},{"$f":"((Quarterly!BY202/Quarterly!BY201)^4)-1","v":-0.27496324603372202},{"$f":"((Quarterly!BZ202/Quarterly!BZ201)^4)-1","v":-1.2930409356073702E-2},{"$f":"((Quarterly!CA202/Quarterly!CA201)^4)-1","v":-3.4175987776672523E-2},{"$f":"((Quarterly!CB202/Quarterly!CB201)^4)-1","v":-0.5865923388137706},{"$f":"((Quarterly!CC202/Quarterly!CC201)^4)-1","v":-0.48621044773951505},{"$f":"((Quarterly!CD202/Quarterly!CD201)^4)-1","v":-0.14253308952594745},{"$f":"((Quarterly!CE202/Quarterly!CE201)^4)-1","v":-9.4589920927500515E-2},null,{"$f":"((Quarterly!CG202/Quarterly!CG201)^4)-1","v":-0.11311886510639968},{"$f":"((Quarterly!CH202/Quarterly!CH201)^4)-1","v":-2.9363487876894023E-2},null,{"$f":"((Quarterly!CJ202/Quarterly!CJ201)^4)-1","v":-9.4589920927500515E-2},{"$f":"((Quarterly!CK202/Quarterly!CK201)^4)-1","v":5.5217691311379768E-2},{"$f":"((Quarterly!CL202/Quarterly!CL201)^4)-1","v":0.26987133164066002},{"$f":"((Quarterly!CM202/Quarterly!CM201)^4)-1","v":-0.34655196310200365},{"$f":"((Quarterly!CN202/Quarterly!CN201)^4)-1","v":5.3317253593569536E-2},{"$f":"((Quarterly!CO202/Quarterly!CO201)^4)-1","v":4.2965544235996189E-2},{"$f":"((Quarterly!CP202/Quarterly!CP201)^4)-1","v":4.559765162422047E-2},{"$f":"((Quarterly!CQ202/Quarterly!CQ201)^4)-1","v":1.0987125856817492E-2},{"$f":"((Quarterly!CR202/Quarterly!CR201)^4)-1","v":6.4091421909468815E-2},{"$f":"Quarterly!CS202-Quarterly!CS201","v":8.4333333333333229},{"$f":"Quarterly!CT202-Quarterly!CT201","v":2.4333333333333229},null,null,null,null,null,{"$f":"((Quarterly!CZ202/Quarterly!CZ201)^4)-1","v":-1.6306221866972725E-2},{"$f":"((Quarterly!DA202/Quarterly!DA201)^4)-1","v":2.0795405344308238E-2},null,null,null,null,null,{"$f":"((Quarterly!DG202/Quarterly!DG201)^4)-1","v":1.645795492195723E-2},{"$f":"((Quarterly!DH202-Quarterly!DH201)*60)","v":2.0000000000003126},{"$f":"Quarterly!DI202-Quarterly!DI201","v":0.16666666666665719},{"$f":"(Quarterly!DJ202-Quarterly!DJ201)*100","v":-23.333333333333428},{"$f":"(Quarterly!DK202-Quarterly!DK201)*100","v":-20.000000000000018},{"$f":"((Quarterly!DL202/Quarterly!DL201)^4)-1","v":-3.1730570398053937E-2},null,null,null,{"$f":"((Quarterly!DP202/Quarterly!DP201)^4)-1","v":1.0790811363041941E-2},null,null,null,"--",{"$f":"Quarterly!DU202-Quarterly!DU201","v":-0.23333333333333162},{"$f":"((Quarterly!DV202/Quarterly!DV201)^4)-1","v":1.1134200343533296E-2},{"$f":"((Quarterly!DW202/Quarterly!DW201)^4)-1","v":-1.4328235016598523E-2},{"$f":"((Quarterly!DX202/Quarterly!DX201)^4)-1","v":2.0250511703010288E-2},{"$f":"((Quarterly!DY202/Quarterly!DY201)^4)-1","v":-4.2552843816251018E-2},{"$f":"((Quarterly!DZ202/Quarterly!DZ201)^4)-1","v":4.0362817442964438E-2},{"$f":"((Quarterly!EA202/Quarterly!EA201)^4)-1","v":3.8466782849941428E-2},{"$f":"((Quarterly!EB202/Quarterly!EB201)^4)-1","v":4.4776852928660071E-2},{"$f":"((Quarterly!EC202/Quarterly!EC201)^4)-1","v":-8.951821595979903E-2},null,null,null,null,null,{"$f":"((Quarterly!EI202/Quarterly!EI201)^4)-1","v":1.47975793642241E-2},{"$f":"((Quarterly!EJ202/Quarterly!EJ201)^4)-1","v":3.6526541822912817E-2},{"$f":"((Quarterly!EK202/Quarterly!EK201)^4)-1","v":4.1521037569836494E-2},null,null,null,null,null,{"$f":"((Quarterly!EQ202/Quarterly!EQ201)^4)-1","v":-6.0179835570977169E-2},{"$f":"((Quarterly!ER202/Quarterly!ER201)^4)-1","v":2.0321112185304413E-2},{"$f":"((Quarterly!ES202/Quarterly!ES201)^4)-1","v":2.2869287612728773E-2},null,null,null,null,null,{"$f":"(Quarterly!EY202-Quarterly!EY201)*100","v":0},{"$f":"(Quarterly!EZ202-Quarterly!EZ201)*100","v":0},{"$f":"(Quarterly!FA202-Quarterly!FA201)*100","v":-29.3333333333333},{"$f":"(Quarterly!FB202-Quarterly!FB201)*100","v":-31.333333333333346},-2.0000000000000462,{"$f":"(Quarterly!FD202-Quarterly!FD201)*100","v":-31.333333333333258},{"$f":"(Quarterly!FE202-Quarterly!FE201)*100","v":-0.33333333333329662},{"$f":"(Quarterly!FF202-Quarterly!FF201)*100","v":-10.333333333333261},{"$f":"(Quarterly!FG202-Quarterly!FG201)*100","v":-19.333333333333336},{"$f":"(Quarterly!FH202-Quarterly!FH201)*100","v":-24.333333333333229},{"$f":"(Quarterly!FI202-Quarterly!FI201)*100","v":-26.666666666666572},-16.333333333333311,null,null,null,null,null,{"$f":"((Quarterly!FP202/Quarterly!FP201)^4)-1","v":6.5653224029180723E-2},{"$f":"((Quarterly!FQ202/Quarterly!FQ201)^4)-1","v":-5.0795339106999737E-2},{"$f":"((Quarterly!FR202/Quarterly!FR201)^4)-1","v":-2.3178113480717411E-2},{"$f":"((Quarterly!FS202/Quarterly!FS201)^4)-1","v":5.304795238115978E-2},{"$f":"((Quarterly!FT202/Quarterly!FT201)^4)-1","v":-2.3116719927999574E-2},{"$f":"((Quarterly!FU202/Quarterly!FU201)^4)-1","v":8.2942664281526746E-4},{"$f":"((Quarterly!FV202/Quarterly!FV201)^4)-1","v":1.0841137891020036E-3},{"$f":"((Quarterly!FW202/Quarterly!FW201)^4)-1","v":0.12492863350872985},{"$f":"((Quarterly!FX202/Quarterly!FX201)^4)-1","v":-4.4230356967702833E-2},null,null,null,null,null,{"$f":"((Quarterly!GD202/Quarterly!GD201)^4)-1","v":-0.4704029156767654},{"$f":"((Quarterly!GE202/Quarterly!GE201)^4)-1","v":-0.46001812562055111},{"$f":"((Quarterly!GF202/Quarterly!GF201)^4)-1","v":-0.68705267701449002},{"$f":"((Quarterly!GG202/Quarterly!GG201)^4)-1","v":-0.41159794060400412},{"$f":"((Quarterly!GH202/Quarterly!GH201)^4)-1","v":{"$error":"#DIV/0!"}},"--",{"$f":"((Quarterly!GJ202/Quarterly!GJ201)^4)-1","v":0.95407899038246735},{"$f":"((Quarterly!GK202/Quarterly!GK201)^4)-1","v":0.23888953765721466},"--"]
["07'Q1",{"$f":"((Quarterly!B203/Quarterly!B202)^4)-1","v":4.8299150169813343E-2},{"$f":"((Quarterly!C203/Quarterly!C202)^4)-1","v":2.4734585043069135E-3},{"$f":"((Quarterly!D203/Quarterly!D202)^4)-1","v":8.090024074446589E-3},{"$f":"((Quarterly!E203/Quarterly!E202)^4)-1","v":2.1189078659415994E-2},{"$f":"((Quarterly!F203/Quarterly!F202)^4)-1","v":4.5579944170657472E-2},{"$f":"((Quarterly!G203/Quarterly!G202)^4)-1","v":8.190736639391627E-3},{"$f":"((Quarterly!H203/Quarterly!H202)^4)-1","v":2.1004687782704146E-2},{"$f":"((Quarterly!I203/Quarterly!I202)^4)-1","v":7.0429020722776681E-2},{"$f":"((Quarterly!J203/Quarterly!J202)^4)-1","v":4.4896507612637526E-2},{"$f":"((Quarterly!K203/Quarterly!K202)^4)-1","v":-0.17038777560470031},{"$f":"((Quarterly!L203-Quarterly!L202))","v":-21.810000000000002},{"$f":"((Quarterly!M203/Quarterly!M202)^4)-1","v":6.5826728335956153E-2},{"$f":"((Quarterly!N203/Quarterly!N202)^4)-1","v":6.7106661577359228E-2},{"$f":"((Quarterly!O203/Quarterly!O202)^4)-1","v":6.3197126853592689E-2},{"$f":"((Quarterly!P203/Quarterly!P202)^4)-1","v":-8.750389233409428E-3},{"$f":"((Quarterly!Q203/Quarterly!Q202)^4)-1","v":0.69895334611081594},null,null,null,null,null,{"$f":"((Quarterly!W203/Quarterly!W202)^4)-1","v":2.0564880107092565E-2},{"$f":"((Quarterly!X203/Quarterly!X202)^4)-1","v":1.0020798604040815E-2},{"$f":"((Quarterly!Y203/Quarterly!Y202)^4)-1","v":0.11907347996649253},{"$f":"Quarterly!Z203-Quarterly!Z202","v":1.0000000000000009E-2},{"$f":"((Quarterly!AA203/Quarterly!AA202)^4)-1","v":-0.23459999102566009},{"$f":"((Quarterly!AB203/Quarterly!AB202)^4)-1","v":-0.29927329094201238},{"$f":"Quarterly!AC203-Quarterly!AC202","v":7.7},{"$f":"Quarterly!AD203-Quarterly!AD202","v":7.7},{"$f":"(Quarterly!AE203-Quarterly!AE202)*100","v":3.9999999999999925},{"$f":"(Quarterly!AF203-Quarterly!AF202)*100","v":1.0000000000000009},{"$f":"(Quarterly!AG203-Quarterly!AG202)*100","v":4.9999999999999991},{"$f":"((Quarterly!AH203/Quarterly!AH202)^4)-1","v":0.22895212216355132},{"$f":"((Quarterly!AI203/Quarterly!AI202)^4)-1","v":0.16628686033740014},{"$f":"((Quarterly!AJ203/Quarterly!AJ202)^4)-1","v":-1.1555006353593411E-2},{"$f":"((Quarterly!AK203/Quarterly!AK202)^4)-1","v":2.3436505870979119E-2},{"$f":"((Quarterly!AL203/Quarterly!AL202)^4)-1","v":3.928808336336842E-2},{"$f":"((Quarterly!AM203/Quarterly!AM202)^4)-1","v":3.7469547614310095E-2},{"$f":"((Quarterly!AN203/Quarterly!AN202)^4)-1","v":4.6747642825838209E-2},{"$f":"((Quarterly!AO203/Quarterly!AO202)^4)-1","v":3.5334178563596108E-2},{"$f":"(Quarterly!AP203-Quarterly!AP202)*100","v":-0.66666666666665986},{"$f":"Quarterly!AQ203-Quarterly!AQ202","v":-0.33333333333332149},{"$f":"Quarterly!AR203-Quarterly!AR202","v":2},{"$f":"Quarterly!AS203-Quarterly!AS202","v":0},{"$f":"Quarterly!AT203-Quarterly!AT202","v":0.8333333333333286},{"$f":"Quarterly!AU203-Quarterly!AU202","v":-2.3333333333333357},{"$f":"Quarterly!AV203-Quarterly!AV202","v":1.5},{"$f":"Quarterly!AW203-Quarterly!AW202","v":-2},{"$f":"Quarterly!AX203-Quarterly!AX202","v":0.39999999999999858},{"$f":"Quarterly!AY203-Quarterly!AY202","v":9.8333333333333286},{"$f":"Quarterly!AZ203-Quarterly!AZ202","v":0.13333333333333286},{"$f":"Quarterly!BA203-Quarterly!BA202","v":-1},{"$f":"Quarterly!BB203-Quarterly!BB202","v":-1.7000000000000028},{"$f":"((Quarterly!BC203/Quarterly!BC202)^4)-1","v":-6.9303449085193369E-2},{"$f":"((Quarterly!BD203/Quarterly!BD202)^4)-1","v":4.6308766138392077E-2},{"$f":"((Quarterly!BE203/Quarterly!BE202)^4)-1","v":3.3080825365000788E-2},{"$f":"((Quarterly!BF203/Quarterly!BF202)^4)-1","v":0.10220530219210278},{"$f":"((Quarterly!BG203/Quarterly!BG202)^4)-1","v":4.0070600719626093E-3},{"$f":"((Quarterly!BH203/Quarterly!BH202)^4)-1","v":6.019765913041053E-2},{"$f":"((Quarterly!BI203/Quarterly!BI202)^4)-1","v":9.7759666848190818E-2},{"$f":"((Quarterly!BJ203/Quarterly!BJ202)^4)-1","v":-0.15460285397805495},{"$f":"((Quarterly!BK203/Quarterly!BK202)^4)-1","v":0.14014938271604982},null,{"$f":"((Quarterly!BM203/Quarterly!BM202)^4)-1","v":4.9505224414528204E-2},{"$f":"((Quarterly!BN203/Quarterly!BN202)^4)-1","v":5.3730573461166831E-2},null,null,null,null,null,{"$f":"((Quarterly!BT203/Quarterly!BT202)^4)-1","v":3.1805940751467032E-2},{"$f":"Quarterly!BU203-Quarterly!BU202","v":4.1280000000000427E-2},{"$f":"Quarterly!BV203-Quarterly!BV202","v":7.6090000000000657E-2},{"$f":"((Quarterly!BW203/Quarterly!BW202)^4)-1","v":0.1135429011416389},{"$f":"((Quarterly!BX203/Quarterly!BX202)^4)-1","v":-0.24941729456242834},{"$f":"((Quarterly!BY203/Quarterly!BY202)^4)-1","v":6.6536331729461606E-2},{"$f":"((Quarterly!BZ203/Quarterly!BZ202)^4)-1","v":8.6750280802623259E-3},{"$f":"((Quarterly!CA203/Quarterly!CA202)^4)-1","v":8.2672093247331269E-3},{"$f":"((Quarterly!CB203/Quarterly!CB202)^4)-1","v":0.37611765342709003},{"$f":"((Quarterly!CC203/Quarterly!CC202)^4)-1","v":0.26660518122984422},{"$f":"((Quarterly!CD203/Quarterly!CD202)^4)-1","v":-1.461607581595481E-2},{"$f":"((Quarterly!CE203/Quarterly!CE202)^4)-1","v":-0.43382328193848985},null,{"$f":"((Quarterly!CG203/Quarterly!CG202)^4)-1","v":-0.37821843801648958},{"$f":"((Quarterly!CH203/Quarterly!CH202)^4)-1","v":-0.32149955338076175},null,{"$f":"((Quarterly!CJ203/Quarterly!CJ202)^4)-1","v":-0.43382328193848985},{"$f":"((Quarterly!CK203/Quarterly!CK202)^4)-1","v":8.019574596802248E-2},{"$f":"((Quarterly!CL203/Quarterly!CL202)^4)-1","v":0.30472943104796868},{"$f":"((Quarterly!CM203/Quarterly!CM202)^4)-1","v":-8.4617531704572424E-2},{"$f":"((Quarterly!CN203/Quarterly!CN202)^4)-1","v":2.6518037902110159E-2},{"$f":"((Quarterly!CO203/Quarterly!CO202)^4)-1","v":5.558631183795093E-2},{"$f":"((Quarterly!CP203/Quarterly!CP202)^4)-1","v":4.7537137162787735E-2},{"$f":"((Quarterly!CQ203/Quarterly!CQ202)^4)-1","v":9.4885281987657777E-3},{"$f":"((Quarterly!CR203/Quarterly!CR202)^4)-1","v":6.9468198222175648E-2},{"$f":"Quarterly!CS203-Quarterly!CS202","v":-0.26666666666665151},{"$f":"Quarterly!CT203-Quarterly!CT202","v":3.0666666666666771},null,null,null,null,null,{"$f":"((Quarterly!CZ203/Quarterly!CZ202)^4)-1","v":3.979629912025584E-2},{"$f":"((Quarterly!DA203/Quarterly!DA202)^4)-1","v":2.3642208229605721E-2},null,null,null,null,null,{"$f":"((Quarterly!DG203/Quarterly!DG202)^4)-1","v":1.512260517450259E-2},{"$f":"((Quarterly!DH203-Quarterly!DH202)*60)","v":-3.9999999999997726},{"$f":"Quarterly!DI203-Quarterly!DI202","v":0},{"$f":"(Quarterly!DJ203-Quarterly!DJ202)*100","v":13.333333333333641},{"$f":"(Quarterly!DK203-Quarterly!DK202)*100","v":6.666666666666643},{"$f":"((Quarterly!DL203/Quarterly!DL202)^4)-1","v":-1.4728888128195616E-2},null,null,null,{"$f":"((Quarterly!DP203/Quarterly!DP202)^4)-1","v":1.6037313460288694E-2},null,null,null,"--",{"$f":"Quarterly!DU203-Quarterly!DU202","v":0.73333333333333162},{"$f":"((Quarterly!DV203/Quarterly!DV202)^4)-1","v":1.5477185663452353E-2},{"$f":"((Quarterly!DW203/Quarterly!DW202)^4)-1","v":-8.8498936410453921E-2},{"$f":"((Quarterly!DX203/Quarterly!DX202)^4)-1","v":-5.8657828315702654E-2},{"$f":"((Quarterly!DY203/Quarterly!DY202)^4)-1","v":-9.9736197427093831E-2},{"$f":"((Quarterly!DZ203/Quarterly!DZ202)^4)-1","v":-4.5892260797629647E-2},{"$f":"((Quarterly!EA203/Quarterly!EA202)^4)-1","v":-2.2494791892355148E-2},{"$f":"((Quarterly!EB203/Quarterly!EB202)^4)-1","v":-9.8538706740130544E-2},{"$f":"((Quarterly!EC203/Quarterly!EC202)^4)-1","v":-0.15539446853336059},null,null,null,null,null,{"$f":"((Quarterly!EI203/Quarterly!EI202)^4)-1","v":-3.0165298655584483E-3},{"$f":"((Quarterly!EJ203/Quarterly!EJ202)^4)-1","v":1.488713759279503E-2},{"$f":"((Quarterly!EK203/Quarterly!EK202)^4)-1","v":2.0493824680855921E-2},null,null,null,null,null,{"$f":"((Quarterly!EQ203/Quarterly!EQ202)^4)-1","v":6.4033352175986602E-2},{"$f":"((Quarterly!ER203/Quarterly!ER202)^4)-1","v":3.0441803443101101E-2},{"$f":"((Quarterly!ES203/Quarterly!ES202)^4)-1","v":2.9175201733303791E-2},null,null,null,null,null,{"$f":"(Quarterly!EY203-Quarterly!EY202)*100","v":0},{"$f":"(Quarterly!EZ203-Quarterly!EZ202)*100","v":0.99999999999997868},{"$f":"(Quarterly!FA203-Quarterly!FA202)*100","v":-2.3333333333333428},{"$f":"(Quarterly!FB203-Quarterly!FB202)*100","v":1.6666666666666607},4.0000000000000036,{"$f":"(Quarterly!FD203-Quarterly!FD202)*100","v":-2.3333333333333428},{"$f":"(Quarterly!FE203-Quarterly!FE202)*100","v":8.0000000000000959},{"$f":"(Quarterly!FF203-Quarterly!FF202)*100","v":2.333333333333254},{"$f":"(Quarterly!FG203-Quarterly!FG202)*100","v":3.0000000000000249},{"$f":"(Quarterly!FH203-Quarterly!FH202)*100","v":4.6666666666666856},{"$f":"(Quarterly!FI203-Quarterly!FI202)*100","v":4.9999999999999822},{"$f":"+FI203-FF203","v":2.6666666666667282},null,null,null,null,null,{"$f":"((Quarterly!FP203/Quarterly!FP202)^4)-1","v":0.11960153451856148},{"$f":"((Quarterly!FQ203/Quarterly!FQ202)^4)-1","v":-5.1741911538827123E-2},{"$f":"((Quarterly!FR203/Quarterly!FR202)^4)-1","v":5.1445604396133549E-2},{"$f":"((Quarterly!FS203/Quarterly!FS202)^4)-1","v":6.4430156947129058E-2},{"$f":"((Quarterly!FT203/Quarterly!FT202)^4)-1","v":-1.0116787676675343E-2},{"$f":"((Quarterly!FU203/Quarterly!FU202)^4)-1","v":1.2591892575374741E-2},{"$f":"((Quarterly!FV203/Quarterly!FV202)^4)-1","v":0.10170711645560404},{"$f":"((Quarterly!FW203/Quarterly!FW202)^4)-1","v":-0.40424095445304731},{"$f":"((Quarterly!FX203/Quarterly!FX202)^4)-1","v":-8.7445344076398479E-2},null,null,null,null,null,{"$f":"((Quarterly!GD203/Quarterly!GD202)^4)-1","v":-0.12441943497918928},{"$f":"((Quarterly!GE203/Quarterly!GE202)^4)-1","v":-0.12240582867050442},{"$f":"((Quarterly!GF203/Quarterly!GF202)^4)-1","v":0.38985049561315632},{"$f":"((Quarterly!GG203/Quarterly!GG202)^4)-1","v":-1.7604747923862796E-2},{"$f":"((Quarterly!GH203/Quarterly!GH202)^4)-1","v":{"$error":"#DIV/0!"}},"--",{"$f":"((Quarterly!GJ203/Quarterly!GJ202)^4)-1","v":-4.4578762586248599E-2},{"$f":"((Quarterly!GK203/Quarterly!GK202)^4)-1","v":5.085339921482257E-2},"--"]
["07'Q2",{"$f":"((Quarterly!B204/Quarterly!B203)^4)-1","v":5.4207945740748498E-2},{"$f":"((Quarterly!C204/Quarterly!C203)^4)-1","v":3.0949575320084355E-2},{"$f":"((Quarterly!D204/Quarterly!D203)^4)-1","v":2.2557515132698658E-2},{"$f":"((Quarterly!E204/Quarterly!E203)^4)-1","v":1.365538788944809E-2},{"$f":"((Quarterly!F204/Quarterly!F203)^4)-1","v":5.9139184275460721E-2},{"$f":"((Quarterly!G204/Quarterly!G203)^4)-1","v":-7.8876947493139449E-3},{"$f":"((Quarterly!H204/Quarterly!H203)^4)-1","v":1.2782556919663568E-2},{"$f":"((Quarterly!I204/Quarterly!I203)^4)-1","v":8.0906260031244903E-2},{"$f":"((Quarterly!J204/Quarterly!J203)^4)-1","v":3.2833611844347077E-2},{"$f":"((Quarterly!K204/Quarterly!K203)^4)-1","v":-0.15073723846273446},{"$f":"((Quarterly!L204-Quarterly!L203))","v":29.817999999999998},{"$f":"((Quarterly!M204/Quarterly!M203)^4)-1","v":1.8255808387273254E-2},{"$f":"((Quarterly!N204/Quarterly!N203)^4)-1","v":7.2378668307807148E-2},{"$f":"((Quarterly!O204/Quarterly!O203)^4)-1","v":-8.6718040506190697E-2},{"$f":"((Quarterly!P204/Quarterly!P203)^4)-1","v":3.4132381452319116E-2},{"$f":"((Quarterly!Q204/Quarterly!Q203)^4)-1","v":0.92637615651665328},null,null,null,null,null,{"$f":"((Quarterly!W204/Quarterly!W203)^4)-1","v":2.5623301818357591E-2},{"$f":"((Quarterly!X204/Quarterly!X203)^4)-1","v":2.5129665531934187E-2},{"$f":"((Quarterly!Y204/Quarterly!Y203)^4)-1","v":0.14101480007484035},{"$f":"Quarterly!Z204-Quarterly!Z203","v":4.9999999999999989E-2},{"$f":"((Quarterly!AA204/Quarterly!AA203)^4)-1","v":0.24249274372451324},{"$f":"((Quarterly!AB204/Quarterly!AB203)^4)-1","v":0.30181849191875276},{"$f":"Quarterly!AC204-Quarterly!AC203","v":1},{"$f":"Quarterly!AD204-Quarterly!AD203","v":-13.899999999999999},{"$f":"(Quarterly!AE204-Quarterly!AE203)*100","v":4.0000000000000036},{"$f":"(Quarterly!AF204-Quarterly!AF203)*100","v":4.9999999999999991},{"$f":"(Quarterly!AG204-Quarterly!AG203)*100","v":1.0000000000000009},{"$f":"((Quarterly!AH204/Quarterly!AH203)^4)-1","v":0.24131259366801405},{"$f":"((Quarterly!AI204/Quarterly!AI203)^4)-1","v":0.19802240295134999},{"$f":"((Quarterly!AJ204/Quarterly!AJ203)^4)-1","v":4.3364881394815535E-2},{"$f":"((Quarterly!AK204/Quarterly!AK203)^4)-1","v":3.5101505781220954E-2},{"$f":"((Quarterly!AL204/Quarterly!AL203)^4)-1","v":3.1035527294562604E-2},{"$f":"((Quarterly!AM204/Quarterly!AM203)^4)-1","v":4.9655191079131411E-2},{"$f":"((Quarterly!AN204/Quarterly!AN203)^4)-1","v":6.345836900233115E-2},{"$f":"((Quarterly!AO204/Quarterly!AO203)^4)-1","v":5.684507113384063E-2},{"$f":"(Quarterly!AP204-Quarterly!AP203)*100","v":-1.6666666666666829},{"$f":"Quarterly!AQ204-Quarterly!AQ203","v":1.8666666666666529},{"$f":"Quarterly!AR204-Quarterly!AR203","v":6.1666666666666643},{"$f":"Quarterly!AS204-Quarterly!AS203","v":-3.6666666666666643},{"$f":"Quarterly!AT204-Quarterly!AT203","v":1.6333333333333329},{"$f":"Quarterly!AU204-Quarterly!AU203","v":3.3333333333333357},{"$f":"Quarterly!AV204-Quarterly!AV203","v":-1.1666666666666714},{"$f":"Quarterly!AW204-Quarterly!AW203","v":0.5},{"$f":"Quarterly!AX204-Quarterly!AX203","v":5.3999999999999986},{"$f":"Quarterly!AY204-Quarterly!AY203","v":11.500000000000007},{"$f":"Quarterly!AZ204-Quarterly!AZ203","v":4.6000000000000085},{"$f":"Quarterly!BA204-Quarterly!BA203","v":-2.8666666666666742},{"$f":"Quarterly!BB204-Quarterly!BB203","v":2.4000000000000057},{"$f":"((Quarterly!BC204/Quarterly!BC203)^4)-1","v":-3.048552149474193E-3},{"$f":"((Quarterly!BD204/Quarterly!BD203)^4)-1","v":6.3762660249480962E-2},{"$f":"((Quarterly!BE204/Quarterly!BE203)^4)-1","v":-6.5177469449616443E-2},{"$f":"((Quarterly!BF204/Quarterly!BF203)^4)-1","v":-2.9996541775679786E-3},{"$f":"((Quarterly!BG204/Quarterly!BG203)^4)-1","v":2.4541601922703826E-2},{"$f":"((Quarterly!BH204/Quarterly!BH203)^4)-1","v":-4.6511745519573156E-2},{"$f":"((Quarterly!BI204/Quarterly!BI203)^4)-1","v":-2.6886644126490444E-2},{"$f":"((Quarterly!BJ204/Quarterly!BJ203)^4)-1","v":0.12472328251751397},{"$f":"((Quarterly!BK204/Quarterly!BK203)^4)-1","v":0.81870904938815592},null,{"$f":"((Quarterly!BM204/Quarterly!BM203)^4)-1","v":3.7794565727196749E-2},{"$f":"((Quarterly!BN204/Quarterly!BN203)^4)-1","v":3.6134708841852436E-2},null,null,null,null,null,{"$f":"((Quarterly!BT204/Quarterly!BT203)^4)-1","v":3.2328659437710572E-2},{"$f":"Quarterly!BU204-Quarterly!BU203","v":8.9309999999999334E-2},{"$f":"Quarterly!BV204-Quarterly!BV203","v":0.14102000000000103},{"$f":"((Quarterly!BW204/Quarterly!BW203)^4)-1","v":0.16543065310171245},{"$f":"((Quarterly!BX204/Quarterly!BX203)^4)-1","v":-2.798607481491544E-2},{"$f":"((Quarterly!BY204/Quarterly!BY203)^4)-1","v":-0.32432539732618648},{"$f":"((Quarterly!BZ204/Quarterly!BZ203)^4)-1","v":-5.8981372860980485E-2},{"$f":"((Quarterly!CA204/Quarterly!CA203)^4)-1","v":-6.2486525379561675E-2},{"$f":"((Quarterly!CB204/Quarterly!CB203)^4)-1","v":0.14189325518871043},{"$f":"((Quarterly!CC204/Quarterly!CC203)^4)-1","v":9.6035246898027671E-2},{"$f":"((Quarterly!CD204/Quarterly!CD203)^4)-1","v":1.9813639722804366E-2},{"$f":"((Quarterly!CE204/Quarterly!CE203)^4)-1","v":-4.6199273815747288E-2},null,{"$f":"((Quarterly!CG204/Quarterly!CG203)^4)-1","v":0.83240982302034738},{"$f":"((Quarterly!CH204/Quarterly!CH203)^4)-1","v":-0.27454459974886924},null,{"$f":"((Quarterly!CJ204/Quarterly!CJ203)^4)-1","v":-4.6199273815747288E-2},{"$f":"((Quarterly!CK204/Quarterly!CK203)^4)-1","v":4.4042745039707176E-2},{"$f":"((Quarterly!CL204/Quarterly!CL203)^4)-1","v":-0.24915893798548527},{"$f":"((Quarterly!CM204/Quarterly!CM203)^4)-1","v":-0.21094167047610779},{"$f":"((Quarterly!CN204/Quarterly!CN203)^4)-1","v":7.8702571222992734E-3},{"$f":"((Quarterly!CO204/Quarterly!CO203)^4)-1","v":6.7914759469013264E-2},{"$f":"((Quarterly!CP204/Quarterly!CP203)^4)-1","v":6.0941399248766626E-2},{"$f":"((Quarterly!CQ204/Quarterly!CQ203)^4)-1","v":9.2473518474260885E-3},{"$f":"((Quarterly!CR204/Quarterly!CR203)^4)-1","v":6.8098527128371611E-2},{"$f":"Quarterly!CS204-Quarterly!CS203","v":-5.3000000000000114},{"$f":"Quarterly!CT204-Quarterly!CT203","v":-3.1666666666666714},null,null,null,null,null,{"$f":"((Quarterly!CZ204/Quarterly!CZ203)^4)-1","v":4.6077587188640079E-2},{"$f":"((Quarterly!DA204/Quarterly!DA203)^4)-1","v":1.9556527362752263E-2},null,null,null,null,null,{"$f":"((Quarterly!DG204/Quarterly!DG203)^4)-1","v":2.3932180566767158E-2},{"$f":"((Quarterly!DH204-Quarterly!DH203)*60)","v":3.9999999999997726},{"$f":"Quarterly!DI204-Quarterly!DI203","v":-0.3333333333333286},{"$f":"(Quarterly!DJ204-Quarterly!DJ203)*100","v":3.3333333333331439},{"$f":"(Quarterly!DK204-Quarterly!DK203)*100","v":0},{"$f":"((Quarterly!DL204/Quarterly!DL203)^4)-1","v":-1.7983450620262298E-2},null,null,null,{"$f":"((Quarterly!DP204/Quarterly!DP203)^4)-1","v":1.0406422802170079E-2},null,null,null,"--",{"$f":"Quarterly!DU204-Quarterly!DU203","v":-0.46666666666666679},{"$f":"((Quarterly!DV204/Quarterly!DV203)^4)-1","v":-1.4515170536710587E-2},{"$f":"((Quarterly!DW204/Quarterly!DW203)^4)-1","v":6.4041481789087973E-2},{"$f":"((Quarterly!DX204/Quarterly!DX203)^4)-1","v":2.0996659626196124E-2},{"$f":"((Quarterly!DY204/Quarterly!DY203)^4)-1","v":8.6088645157405663E-2},{"$f":"((Quarterly!DZ204/Quarterly!DZ203)^4)-1","v":2.0711967175695012E-3},{"$f":"((Quarterly!EA204/Quarterly!EA203)^4)-1","v":1.6539285923661051E-2},{"$f":"((Quarterly!EB204/Quarterly!EB203)^4)-1","v":-3.1554559430508111E-2},{"$f":"((Quarterly!EC204/Quarterly!EC203)^4)-1","v":0.17282569171388351},null,null,null,null,null,{"$f":"((Quarterly!EI204/Quarterly!EI203)^4)-1","v":3.1898854031516377E-2},{"$f":"((Quarterly!EJ204/Quarterly!EJ203)^4)-1","v":2.9293002593686168E-2},{"$f":"((Quarterly!EK204/Quarterly!EK203)^4)-1","v":2.6048592497221135E-2},null,null,null,null,null,{"$f":"((Quarterly!EQ204/Quarterly!EQ203)^4)-1","v":0.15549381375450366},{"$f":"((Quarterly!ER204/Quarterly!ER203)^4)-1","v":1.7541609728150664E-2},{"$f":"((Quarterly!ES204/Quarterly!ES203)^4)-1","v":1.259543640680838E-2},null,null,null,null,null,{"$f":"(Quarterly!EY204-Quarterly!EY203)*100","v":0},{"$f":"(Quarterly!EZ204-Quarterly!EZ203)*100","v":-0.66666666666668206},{"$f":"(Quarterly!FA204-Quarterly!FA203)*100","v":21.333333333333382},{"$f":"(Quarterly!FB204-Quarterly!FB203)*100","v":19.666666666666632},{"$f":"+FB204-FA204","v":-1.6666666666667496},{"$f":"(Quarterly!FD204-Quarterly!FD203)*100","v":14.333333333333353},{"$f":"(Quarterly!FE204-Quarterly!FE203)*100","v":-24.666666666666703},{"$f":"(Quarterly!FF204-Quarterly!FF203)*100","v":-7.6666666666666217},{"$f":"(Quarterly!FG204-Quarterly!FG203)*100","v":4.0000000000000036},{"$f":"(Quarterly!FH204-Quarterly!FH203)*100","v":11.666666666666536},{"$f":"(Quarterly!FI204-Quarterly!FI203)*100","v":16.666666666666696},24.333333333333318,null,null,null,null,null,{"$f":"((Quarterly!FP204/Quarterly!FP203)^4)-1","v":-0.22806860081832325},{"$f":"((Quarterly!FQ204/Quarterly!FQ203)^4)-1","v":-4.0512937302138341E-2},{"$f":"((Quarterly!FR204/Quarterly!FR203)^4)-1","v":-5.1023814722428007E-2},{"$f":"((Quarterly!FS204/Quarterly!FS203)^4)-1","v":0.12034076527109372},{"$f":"((Quarterly!FT204/Quarterly!FT203)^4)-1","v":-9.0158618269758461E-2},{"$f":"((Quarterly!FU204/Quarterly!FU203)^4)-1","v":-0.11754694043837499},{"$f":"((Quarterly!FV204/Quarterly!FV203)^4)-1","v":0.278109090629308},{"$f":"((Quarterly!FW204/Quarterly!FW203)^4)-1","v":0.32474323089293966},{"$f":"((Quarterly!FX204/Quarterly!FX203)^4)-1","v":0.32442291064603102},null,null,null,null,null,{"$f":"((Quarterly!GD204/Quarterly!GD203)^4)-1","v":0.5604511414911979},{"$f":"((Quarterly!GE204/Quarterly!GE203)^4)-1","v":0.98730885953828063},{"$f":"((Quarterly!GF204/Quarterly!GF203)^4)-1","v":1.6507873743328383},{"$f":"((Quarterly!GG204/Quarterly!GG203)^4)-1","v":0.48793736497604678},{"$f":"((Quarterly!GH204/Quarterly!GH203)^4)-1","v":{"$error":"#DIV/0!"}},"--",{"$f":"((Quarterly!GJ204/Quarterly!GJ203)^4)-1","v":0.28888372713236476},{"$f":"((Quarterly!GK204/Quarterly!GK203)^4)-1","v":-0.1126641473047042},"--"]
["07'Q3",{"$f":"((Quarterly!B205/Quarterly!B204)^4)-1","v":4.1501238166270271E-2},{"$f":"((Quarterly!C205/Quarterly!C204)^4)-1","v":2.7176143669265684E-2},{"$f":"((Quarterly!D205/Quarterly!D204)^4)-1","v":2.7430833871274096E-2},{"$f":"((Quarterly!E205/Quarterly!E204)^4)-1","v":1.7901859643750129E-2},{"$f":"((Quarterly!F205/Quarterly!F204)^4)-1","v":4.5260649538010123E-2},{"$f":"((Quarterly!G205/Quarterly!G204)^4)-1","v":5.4346483873166651E-3},{"$f":"((Quarterly!H205/Quarterly!H204)^4)-1","v":1.7287028589141551E-2},{"$f":"((Quarterly!I205/Quarterly!I204)^4)-1","v":6.3498389852626236E-2},{"$f":"((Quarterly!J205/Quarterly!J204)^4)-1","v":1.8457281183240637E-2},{"$f":"((Quarterly!K205/Quarterly!K204)^4)-1","v":-0.23155585424758396},{"$f":"((Quarterly!L205-Quarterly!L204))","v":0.75},{"$f":"((Quarterly!M205/Quarterly!M204)^4)-1","v":-1.1204991196885894E-3},{"$f":"((Quarterly!N205/Quarterly!N204)^4)-1","v":0.12940814177325755},{"$f":"((Quarterly!O205/Quarterly!O204)^4)-1","v":-0.2425653238023463},{"$f":"((Quarterly!P205/Quarterly!P204)^4)-1","v":2.9229730461224346E-2},{"$f":"((Quarterly!Q205/Quarterly!Q204)^4)-1","v":0.68221705156661794},null,null,null,null,null,{"$f":"((Quarterly!W205/Quarterly!W204)^4)-1","v":-1.5046753772162136E-2},{"$f":"((Quarterly!X205/Quarterly!X204)^4)-1","v":-4.9392784818462765E-3},{"$f":"((Quarterly!Y205/Quarterly!Y204)^4)-1","v":0.23748006474155514},{"$f":"Quarterly!Z205-Quarterly!Z204","v":4.9999999999999989E-2},{"$f":"((Quarterly!AA205/Quarterly!AA204)^4)-1","v":-0.15771365441225449},{"$f":"((Quarterly!AB205/Quarterly!AB204)^4)-1","v":-0.13989739628641507},{"$f":"Quarterly!AC205-Quarterly!AC204","v":-7},{"$f":"Quarterly!AD205-Quarterly!AD204","v":7.3999999999999986},{"$f":"(Quarterly!AE205-Quarterly!AE204)*100","v":16.000000000000004},{"$f":"(Quarterly!AF205-Quarterly!AF204)*100","v":4.9999999999999991},{"$f":"(Quarterly!AG205-Quarterly!AG204)*100","v":5.0000000000000044},{"$f":"((Quarterly!AH205/Quarterly!AH204)^4)-1","v":0.16855331981247157},{"$f":"((Quarterly!AI205/Quarterly!AI204)^4)-1","v":0.13724529842612077},{"$f":"((Quarterly!AJ205/Quarterly!AJ204)^4)-1","v":3.1065654436428725E-2},{"$f":"((Quarterly!AK205/Quarterly!AK204)^4)-1","v":3.0885763802972033E-2},{"$f":"((Quarterly!AL205/Quarterly!AL204)^4)-1","v":3.079659743969887E-2},{"$f":"((Quarterly!AM205/Quarterly!AM204)^4)-1","v":8.7255946294004794E-3},{"$f":"((Quarterly!AN205/Quarterly!AN204)^4)-1","v":1.0888881081572599E-2},{"$f":"((Quarterly!AO205/Quarterly!AO204)^4)-1","v":4.7500395369038717E-2},{"$f":"(Quarterly!AP205-Quarterly!AP204)*100","v":0.33333333333334103},{"$f":"Quarterly!AQ205-Quarterly!AQ204","v":-1.1333333333333258},{"$f":"Quarterly!AR205-Quarterly!AR204","v":-2.3333333333333357},{"$f":"Quarterly!AS205-Quarterly!AS204","v":2.6666666666666643},{"$f":"Quarterly!AT205-Quarterly!AT204","v":-1.3999999999999986},{"$f":"Quarterly!AU205-Quarterly!AU204","v":-1.3333333333333357},{"$f":"Quarterly!AV205-Quarterly!AV204","v":-3.3333333333333286},{"$f":"Quarterly!AW205-Quarterly!AW204","v":-1.1666666666666643},{"$f":"Quarterly!AX205-Quarterly!AX204","v":-2.0999999999999943},{"$f":"Quarterly!AY205-Quarterly!AY204","v":-8.3333333333333357},{"$f":"Quarterly!AZ205-Quarterly!AZ204","v":-1.4333333333333371},{"$f":"Quarterly!BA205-Quarterly!BA204","v":0.46666666666666856},{"$f":"Quarterly!BB205-Quarterly!BB204","v":-2.4333333333333371},{"$f":"((Quarterly!BC205/Quarterly!BC204)^4)-1","v":3.2721174366187933E-2},{"$f":"((Quarterly!BD205/Quarterly!BD204)^4)-1","v":8.5815371087638148E-2},{"$f":"((Quarterly!BE205/Quarterly!BE204)^4)-1","v":-7.1238482907178491E-2},{"$f":"((Quarterly!BF205/Quarterly!BF204)^4)-1","v":1.5449078626565749E-2},{"$f":"((Quarterly!BG205/Quarterly!BG204)^4)-1","v":4.8707276631939411E-2},{"$f":"((Quarterly!BH205/Quarterly!BH204)^4)-1","v":-1.0449785514232257E-2},{"$f":"((Quarterly!BI205/Quarterly!BI204)^4)-1","v":-3.1714382111254102E-2},{"$f":"((Quarterly!BJ205/Quarterly!BJ204)^4)-1","v":-0.42455089438634053},{"$f":"((Quarterly!BK205/Quarterly!BK204)^4)-1","v":0.68238514041304654},null,{"$f":"((Quarterly!BM205/Quarterly!BM204)^4)-1","v":3.0112686063791694E-2},{"$f":"((Quarterly!BN205/Quarterly!BN204)^4)-1","v":2.7529699555303155E-2},null,null,null,null,null,{"$f":"((Quarterly!BT205/Quarterly!BT204)^4)-1","v":0.13452678293061293},{"$f":"Quarterly!BU205-Quarterly!BU204","v":9.9920000000000897E-2},{"$f":"Quarterly!BV205-Quarterly!BV204","v":0.13637999999999906},{"$f":"((Quarterly!BW205/Quarterly!BW204)^4)-1","v":0.11192212976697524},{"$f":"((Quarterly!BX205/Quarterly!BX204)^4)-1","v":-0.37720944204832618},{"$f":"((Quarterly!BY205/Quarterly!BY204)^4)-1","v":-0.33720173879937243},{"$f":"((Quarterly!BZ205/Quarterly!BZ204)^4)-1","v":-0.11360852164610324},{"$f":"((Quarterly!CA205/Quarterly!CA204)^4)-1","v":-4.8976645700126498E-2},{"$f":"((Quarterly!CB205/Quarterly!CB204)^4)-1","v":-8.051803926410217E-2},{"$f":"((Quarterly!CC205/Quarterly!CC204)^4)-1","v":-1.2403778300480561E-2},{"$f":"((Quarterly!CD205/Quarterly!CD204)^4)-1","v":-8.9775257756981697E-2},{"$f":"((Quarterly!CE205/Quarterly!CE204)^4)-1","v":-0.45893960055262917},null,{"$f":"((Quarterly!CG205/Quarterly!CG204)^4)-1","v":0.10446682895010495},{"$f":"((Quarterly!CH205/Quarterly!CH204)^4)-1","v":-0.26467008909537559},null,{"$f":"((Quarterly!CJ205/Quarterly!CJ204)^4)-1","v":-0.45893960055262917},{"$f":"((Quarterly!CK205/Quarterly!CK204)^4)-1","v":3.3416140934518612E-2},{"$f":"((Quarterly!CL205/Quarterly!CL204)^4)-1","v":-0.305155676949458},{"$f":"((Quarterly!CM205/Quarterly!CM204)^4)-1","v":-0.48174860201614167},{"$f":"((Quarterly!CN205/Quarterly!CN204)^4)-1","v":1.0388027830769309E-2},{"$f":"((Quarterly!CO205/Quarterly!CO204)^4)-1","v":6.5263537638245328E-2},{"$f":"((Quarterly!CP205/Quarterly!CP204)^4)-1","v":7.1250384593783078E-2},{"$f":"((Quarterly!CQ205/Quarterly!CQ204)^4)-1","v":1.0393219028412615E-2},{"$f":"((Quarterly!CR205/Quarterly!CR204)^4)-1","v":8.1226526460714599E-2},{"$f":"Quarterly!CS205-Quarterly!CS204","v":-1.166666666666643},{"$f":"Quarterly!CT205-Quarterly!CT204","v":-1.0333333333333314},null,null,null,null,null,{"$f":"((Quarterly!CZ205/Quarterly!CZ204)^4)-1","v":2.5561937943896051E-2},{"$f":"((Quarterly!DA205/Quarterly!DA204)^4)-1","v":2.0782148738295092E-2},null,null,null,null,null,{"$f":"((Quarterly!DG205/Quarterly!DG204)^4)-1","v":0},{"$f":"((Quarterly!DH205-Quarterly!DH204)*60)","v":-4.000000000000199},{"$f":"Quarterly!DI205-Quarterly!DI204","v":-3.3333333333331439E-2},{"$f":"(Quarterly!DJ205-Quarterly!DJ204)*100","v":16.666666666666785},{"$f":"(Quarterly!DK205-Quarterly!DK204)*100","v":16.666666666666696},{"$f":"((Quarterly!DL205/Quarterly!DL204)^4)-1","v":-2.6348013881632881E-2},null,null,null,{"$f":"((Quarterly!DP205/Quarterly!DP204)^4)-1","v":2.3114249999787173E-3},null,null,null,"--",{"$f":"Quarterly!DU205-Quarterly!DU204","v":0.56666666666666643},{"$f":"((Quarterly!DV205/Quarterly!DV204)^4)-1","v":-3.9298503799064521E-2},{"$f":"((Quarterly!DW205/Quarterly!DW204)^4)-1","v":2.1939406067388756E-2},{"$f":"((Quarterly!DX205/Quarterly!DX204)^4)-1","v":-8.9464293500117753E-3},{"$f":"((Quarterly!DY205/Quarterly!DY204)^4)-1","v":4.3534222568700764E-2},{"$f":"((Quarterly!DZ205/Quarterly!DZ204)^4)-1","v":-2.4592137196683739E-2},{"$f":"((Quarterly!EA205/Quarterly!EA204)^4)-1","v":-4.0183737557203392E-2},{"$f":"((Quarterly!EB205/Quarterly!EB204)^4)-1","v":1.35302144325673E-2},{"$f":"((Quarterly!EC205/Quarterly!EC204)^4)-1","v":9.6265514814914299E-2},null,null,null,null,null,{"$f":"((Quarterly!EI205/Quarterly!EI204)^4)-1","v":5.5863833776215177E-3},{"$f":"((Quarterly!EJ205/Quarterly!EJ204)^4)-1","v":1.2711404163856965E-2},{"$f":"((Quarterly!EK205/Quarterly!EK204)^4)-1","v":1.7190435016925854E-2},null,null,null,null,null,{"$f":"((Quarterly!EQ205/Quarterly!EQ204)^4)-1","v":1.9426338997379222E-2},{"$f":"((Quarterly!ER205/Quarterly!ER204)^4)-1","v":2.165685754392177E-2},{"$f":"((Quarterly!ES205/Quarterly!ES204)^4)-1","v":1.1655149911981688E-2},null,null,null,null,null,{"$f":"(Quarterly!EY205-Quarterly!EY204)*100","v":-7.3333333333332362},{"$f":"(Quarterly!EZ205-Quarterly!EZ204)*100","v":-17.666666666666675},{"$f":"(Quarterly!FA205-Quarterly!FA204)*100","v":17.666666666666586},{"$f":"(Quarterly!FB205-Quarterly!FB204)*100","v":13.666666666666671},-3.9999999999999147,{"$f":"(Quarterly!FD205-Quarterly!FD204)*100","v":18.333333333333268},{"$f":"(Quarterly!FE205-Quarterly!FE204)*100","v":-43.333333333333357},{"$f":"(Quarterly!FF205-Quarterly!FF204)*100","v":-41.000000000000014},{"$f":"(Quarterly!FG205-Quarterly!FG204)*100","v":-42.666666666666671},{"$f":"(Quarterly!FH205-Quarterly!FH204)*100","v":-25.999999999999979},{"$f":"(Quarterly!FI205-Quarterly!FI204)*100","v":-11.666666666666714},29.3333333333333,null,null,null,null,null,{"$f":"((Quarterly!FP205/Quarterly!FP204)^4)-1","v":-0.1809465639479354},{"$f":"((Quarterly!FQ205/Quarterly!FQ204)^4)-1","v":-6.192350802030766E-2},{"$f":"((Quarterly!FR205/Quarterly!FR204)^4)-1","v":3.1622728820560164E-2},{"$f":"((Quarterly!FS205/Quarterly!FS204)^4)-1","v":8.2532901148522297E-2},{"$f":"((Quarterly!FT205/Quarterly!FT204)^4)-1","v":-6.9532856460250869E-2},{"$f":"((Quarterly!FU205/Quarterly!FU204)^4)-1","v":-0.11173675695438035},{"$f":"((Quarterly!FV205/Quarterly!FV204)^4)-1","v":-0.13764982508165813},{"$f":"((Quarterly!FW205/Quarterly!FW204)^4)-1","v":0.62169099504052405},{"$f":"((Quarterly!FX205/Quarterly!FX204)^4)-1","v":0.12580697470412594},null,null,null,null,null,{"$f":"((Quarterly!GD205/Quarterly!GD204)^4)-1","v":0.82362836831185837},{"$f":"((Quarterly!GE205/Quarterly!GE204)^4)-1","v":0.4265580531498252},{"$f":"((Quarterly!GF205/Quarterly!GF204)^4)-1","v":-0.16303335468275959},{"$f":"((Quarterly!GG205/Quarterly!GG204)^4)-1","v":0.12491840293405088},{"$f":"((Quarterly!GH205/Quarterly!GH204)^4)-1","v":{"$error":"#DIV/0!"}},"--",{"$f":"((Quarterly!GJ205/Quarterly!GJ204)^4)-1","v":-0.55717033839057595},{"$f":"((Quarterly!GK205/Quarterly!GK204)^4)-1","v":-0.10096717317297965},"--"]
["07'Q4",{"$f":"((Quarterly!B206/Quarterly!B205)^4)-1","v":3.2132334386632655E-2},{"$f":"((Quarterly!C206/Quarterly!C205)^4)-1","v":1.4353044652306135E-2},{"$f":"((Quarterly!D206/Quarterly!D205)^4)-1","v":2.2836222182427868E-2},{"$f":"((Quarterly!E206/Quarterly!E205)^4)-1","v":5.0280740654775613E-3},{"$f":"((Quarterly!F206/Quarterly!F205)^4)-1","v":1.5731442828944342E-2},{"$f":"((Quarterly!G206/Quarterly!G205)^4)-1","v":-3.1507975137778921E-3},{"$f":"((Quarterly!H206/Quarterly!H205)^4)-1","v":6.0876833693923604E-3},{"$f":"((Quarterly!I206/Quarterly!I205)^4)-1","v":6.9196266937294526E-2},{"$f":"((Quarterly!J206/Quarterly!J205)^4)-1","v":5.7707988038695257E-2},{"$f":"((Quarterly!K206/Quarterly!K205)^4)-1","v":-0.29303868024656576},{"$f":"((Quarterly!L206-Quarterly!L205))","v":-27.224999999999998},{"$f":"((Quarterly!M206/Quarterly!M205)^4)-1","v":-4.8792349590512041E-2},{"$f":"((Quarterly!N206/Quarterly!N205)^4)-1","v":0.12856974634861529},{"$f":"((Quarterly!O206/Quarterly!O205)^4)-1","v":-0.3854045007308371},{"$f":"((Quarterly!P206/Quarterly!P205)^4)-1","v":1.6165120388109466E-2},{"$f":"((Quarterly!Q206/Quarterly!Q205)^4)-1","v":0.36180102686487792},null,null,null,null,null,{"$f":"((Quarterly!W206/Quarterly!W205)^4)-1","v":-1.5103567663954043E-2},{"$f":"((Quarterly!X206/Quarterly!X205)^4)-1","v":3.3071488943812177E-3},{"$f":"((Quarterly!Y206/Quarterly!Y205)^4)-1","v":0.27467635361837384},{"$f":"Quarterly!Z206-Quarterly!Z205","v":0.11000000000000004},{"$f":"((Quarterly!AA206/Quarterly!AA205)^4)-1","v":9.117409854283709E-2},{"$f":"((Quarterly!AB206/Quarterly!AB205)^4)-1","v":-9.163633747268185E-2},{"$f":"Quarterly!AC206-Quarterly!AC205","v":0.29999999999999982},{"$f":"Quarterly!AD206-Quarterly!AD205","v":4.1000000000000005},{"$f":"(Quarterly!AE206-Quarterly!AE205)*100","v":32.000000000000007},{"$f":"(Quarterly!AF206-Quarterly!AF205)*100","v":11.000000000000004},{"$f":"(Quarterly!AG206-Quarterly!AG205)*100","v":7.9999999999999964},{"$f":"((Quarterly!AH206/Quarterly!AH205)^4)-1","v":0.11603839440160413},{"$f":"((Quarterly!AI206/Quarterly!AI205)^4)-1","v":5.7394914751642601E-2},{"$f":"((Quarterly!AJ206/Quarterly!AJ205)^4)-1","v":3.4729054960433547E-2},{"$f":"((Quarterly!AK206/Quarterly!AK205)^4)-1","v":3.4529211905295787E-2},{"$f":"((Quarterly!AL206/Quarterly!AL205)^4)-1","v":3.0561318071566923E-2},{"$f":"((Quarterly!AM206/Quarterly!AM205)^4)-1","v":6.6612305606597033E-3},{"$f":"((Quarterly!AN206/Quarterly!AN205)^4)-1","v":8.6229985055334968E-3},{"$f":"((Quarterly!AO206/Quarterly!AO205)^4)-1","v":6.1213668524359388E-2},{"$f":"(Quarterly!AP206-Quarterly!AP205)*100","v":-1.3333333333333197},{"$f":"Quarterly!AQ206-Quarterly!AQ205","v":-1.2333333333333414},{"$f":"Quarterly!AR206-Quarterly!AR205","v":-7.6666666666666643},{"$f":"Quarterly!AS206-Quarterly!AS205","v":1.5},{"$f":"Quarterly!AT206-Quarterly!AT205","v":-1.3666666666666742},{"$f":"Quarterly!AU206-Quarterly!AU205","v":0},{"$f":"Quarterly!AV206-Quarterly!AV205","v":-5.6666666666666714},{"$f":"Quarterly!AW206-Quarterly!AW205","v":0.3333333333333286},{"$f":"Quarterly!AX206-Quarterly!AX205","v":-4.0333333333333314},{"$f":"Quarterly!AY206-Quarterly!AY205","v":3.8333333333333357},{"$f":"Quarterly!AZ206-Quarterly!AZ205","v":-4.4666666666666686},{"$f":"Quarterly!BA206-Quarterly!BA205","v":3.3666666666666671},{"$f":"Quarterly!BB206-Quarterly!BB205","v":-1},{"$f":"((Quarterly!BC206/Quarterly!BC205)^4)-1","v":4.2846107356290908E-2},{"$f":"((Quarterly!BD206/Quarterly!BD205)^4)-1","v":0.12915372359570676},{"$f":"((Quarterly!BE206/Quarterly!BE205)^4)-1","v":-7.5035814204547746E-2},{"$f":"((Quarterly!BF206/Quarterly!BF205)^4)-1","v":4.3950016935713876E-2},{"$f":"((Quarterly!BG206/Quarterly!BG205)^4)-1","v":1.7302651749488307E-2},{"$f":"((Quarterly!BH206/Quarterly!BH205)^4)-1","v":-5.1084179625988657E-3},{"$f":"((Quarterly!BI206/Quarterly!BI205)^4)-1","v":2.6212928216215792E-2},{"$f":"((Quarterly!BJ206/Quarterly!BJ205)^4)-1","v":0.2429040397657658},{"$f":"((Quarterly!BK206/Quarterly!BK205)^4)-1","v":1.5874856366125796},null,{"$f":"((Quarterly!BM206/Quarterly!BM205)^4)-1","v":5.6852325462265485E-2},{"$f":"((Quarterly!BN206/Quarterly!BN205)^4)-1","v":5.5460338263245035E-2},null,null,null,null,null,{"$f":"((Quarterly!BT206/Quarterly!BT205)^4)-1","v":0.10687071162172646},{"$f":"Quarterly!BU206-Quarterly!BU205","v":0.13635000000000019},{"$f":"Quarterly!BV206-Quarterly!BV205","v":0.13911000000000229},{"$f":"((Quarterly!BW206/Quarterly!BW205)^4)-1","v":0.10947580997210338},{"$f":"((Quarterly!BX206/Quarterly!BX205)^4)-1","v":-0.33045074324992685},{"$f":"((Quarterly!BY206/Quarterly!BY205)^4)-1","v":-0.33176221560113484},{"$f":"((Quarterly!BZ206/Quarterly!BZ205)^4)-1","v":-0.13559273053845189},{"$f":"((Quarterly!CA206/Quarterly!CA205)^4)-1","v":1.279902886508566E-2},{"$f":"((Quarterly!CB206/Quarterly!CB205)^4)-1","v":1.5094037428909748},{"$f":"((Quarterly!CC206/Quarterly!CC205)^4)-1","v":0.97541419032537768},{"$f":"((Quarterly!CD206/Quarterly!CD205)^4)-1","v":-0.94474325205806953},{"$f":"((Quarterly!CE206/Quarterly!CE205)^4)-1","v":-0.91925955263284542},null,{"$f":"((Quarterly!CG206/Quarterly!CG205)^4)-1","v":-0.63729911654005023},{"$f":"((Quarterly!CH206/Quarterly!CH205)^4)-1","v":-0.36541513447514995},null,{"$f":"((Quarterly!CJ206/Quarterly!CJ205)^4)-1","v":-0.28785998285116965},{"$f":"((Quarterly!CK206/Quarterly!CK205)^4)-1","v":4.6208556160106218E-2},{"$f":"((Quarterly!CL206/Quarterly!CL205)^4)-1","v":9.8375848982867442E-2},{"$f":"((Quarterly!CM206/Quarterly!CM205)^4)-1","v":-0.45924305098335039},{"$f":"((Quarterly!CN206/Quarterly!CN205)^4)-1","v":3.3625888168866691E-3},{"$f":"((Quarterly!CO206/Quarterly!CO205)^4)-1","v":1.9838704555859454E-2},{"$f":"((Quarterly!CP206/Quarterly!CP205)^4)-1","v":7.3008282409707803E-2},{"$f":"((Quarterly!CQ206/Quarterly!CQ205)^4)-1","v":1.032183238401263E-2},{"$f":"((Quarterly!CR206/Quarterly!CR205)^4)-1","v":0.11042490379964542},{"$f":"Quarterly!CS206-Quarterly!CS205","v":-8.2333333333333485},{"$f":"Quarterly!CT206-Quarterly!CT205","v":-14.466666666666669},null,null,null,null,null,{"$f":"((Quarterly!CZ206/Quarterly!CZ205)^4)-1","v":4.9975866854386819E-2},{"$f":"((Quarterly!DA206/Quarterly!DA205)^4)-1","v":2.8455802218481763E-2},null,null,null,null,null,{"$f":"((Quarterly!DG206/Quarterly!DG205)^4)-1","v":9.9656658184996694E-3},{"$f":"((Quarterly!DH206-Quarterly!DH205)*60)","v":0},{"$f":"Quarterly!DI206-Quarterly!DI205","v":0},{"$f":"(Quarterly!DJ206-Quarterly!DJ205)*100","v":13.333333333333286},{"$f":"(Quarterly!DK206-Quarterly!DK205)*100","v":13.333333333333286},{"$f":"((Quarterly!DL206/Quarterly!DL205)^4)-1","v":-2.2928801002392585E-2},null,null,null,{"$f":"((Quarterly!DP206/Quarterly!DP205)^4)-1","v":7.1073132370955694E-3},null,null,null,"--",{"$f":"Quarterly!DU206-Quarterly!DU205","v":-0.26666666666666572},{"$f":"((Quarterly!DV206/Quarterly!DV205)^4)-1","v":-0.28636073451776656},{"$f":"((Quarterly!DW206/Quarterly!DW205)^4)-1","v":-0.32605941542228589},{"$f":"((Quarterly!DX206/Quarterly!DX205)^4)-1","v":-0.3185541301971726},{"$f":"((Quarterly!DY206/Quarterly!DY205)^4)-1","v":-0.34081229337554764},{"$f":"((Quarterly!DZ206/Quarterly!DZ205)^4)-1","v":-0.31151829289239019},{"$f":"((Quarterly!EA206/Quarterly!EA205)^4)-1","v":-0.31680186475285821},{"$f":"((Quarterly!EB206/Quarterly!EB205)^4)-1","v":-0.29891075534588663},{"$f":"((Quarterly!EC206/Quarterly!EC205)^4)-1","v":-0.34278598558762152},null,null,null,null,null,{"$f":"((Quarterly!EI206/Quarterly!EI205)^4)-1","v":-1.9094837970169642E-2},{"$f":"((Quarterly!EJ206/Quarterly!EJ205)^4)-1","v":-2.874129516248991E-3},{"$f":"((Quarterly!EK206/Quarterly!EK205)^4)-1","v":2.7418579230664708E-3},null,null,null,null,null,{"$f":"((Quarterly!EQ206/Quarterly!EQ205)^4)-1","v":8.961976256851556E-2},{"$f":"((Quarterly!ER206/Quarterly!ER205)^4)-1","v":2.4884750236966013E-2},{"$f":"((Quarterly!ES206/Quarterly!ES205)^4)-1","v":1.8823013220035101E-2},null,null,null,null,null,{"$f":"(Quarterly!EY206-Quarterly!EY205)*100","v":-65.333333333333428},{"$f":"(Quarterly!EZ206-Quarterly!EZ205)*100","v":-57.666666666666622},{"$f":"(Quarterly!FA206-Quarterly!FA205)*100","v":-22.333333333333183},{"$f":"(Quarterly!FB206-Quarterly!FB205)*100","v":-11.999999999999922},10.333333333333261,{"$f":"(Quarterly!FD206-Quarterly!FD205)*100","v":-32.000000000000028},{"$f":"(Quarterly!FE206-Quarterly!FE205)*100","v":-91.333333333333357},{"$f":"(Quarterly!FF206-Quarterly!FF205)*100","v":-90.333333333333371},{"$f":"(Quarterly!FG206-Quarterly!FG205)*100","v":-90.333333333333329},{"$f":"(Quarterly!FH206-Quarterly!FH205)*100","v":-71.666666666666629},{"$f":"(Quarterly!FI206-Quarterly!FI205)*100","v":-46.999999999999972},43.3333333333334,null,null,null,null,null,{"$f":"((Quarterly!FP206/Quarterly!FP205)^4)-1","v":-0.22138122275259786},{"$f":"((Quarterly!FQ206/Quarterly!FQ205)^4)-1","v":-6.5213875627580298E-2},{"$f":"((Quarterly!FR206/Quarterly!FR205)^4)-1","v":-4.0889627450922061E-2},{"$f":"((Quarterly!FS206/Quarterly!FS205)^4)-1","v":0.23241581790374344},{"$f":"((Quarterly!FT206/Quarterly!FT205)^4)-1","v":-0.12854397123299666},{"$f":"((Quarterly!FU206/Quarterly!FU205)^4)-1","v":-0.17961703010263907},{"$f":"((Quarterly!FV206/Quarterly!FV205)^4)-1","v":0.24446130302140046},{"$f":"((Quarterly!FW206/Quarterly!FW205)^4)-1","v":2.559939348519924E-2},{"$f":"((Quarterly!FX206/Quarterly!FX205)^4)-1","v":0.16639375170613024},null,null,null,null,null,{"$f":"((Quarterly!GD206/Quarterly!GD205)^4)-1","v":1.0965823242950337},{"$f":"((Quarterly!GE206/Quarterly!GE205)^4)-1","v":0.94888684914326893},{"$f":"((Quarterly!GF206/Quarterly!GF205)^4)-1","v":0.17283662823236368},{"$f":"((Quarterly!GG206/Quarterly!GG205)^4)-1","v":0.62536555673915184},{"$f":"((Quarterly!GH206/Quarterly!GH205)^4)-1","v":{"$error":"#DIV/0!"}},"--",{"$f":"((Quarterly!GJ206/Quarterly!GJ205)^4)-1","v":0.96867177057425002},{"$f":"((Quarterly!GK206/Quarterly!GK205)^4)-1","v":0.15510810698630406},"--"]
["08'Q1",{"$f":"((Quarterly!B207/Quarterly!B206)^4)-1","v":-4.5912216036296805E-3},{"$f":"((Quarterly!C207/Quarterly!C206)^4)-1","v":-2.702572592549235E-2},{"$f":"((Quarterly!D207/Quarterly!D206)^4)-1","v":-1.613827017796754E-2},{"$f":"((Quarterly!E207/Quarterly!E206)^4)-1","v":-8.2269908275380832E-3},{"$f":"((Quarterly!F207/Quarterly!F206)^4)-1","v":-0.10922949373003488},{"$f":"((Quarterly!G207/Quarterly!G206)^4)-1","v":-2.1682293715160617E-2},{"$f":"((Quarterly!H207/Quarterly!H206)^4)-1","v":1.6216834988748818E-2},{"$f":"((Quarterly!I207/Quarterly!I206)^4)-1","v":1.0717342379658046E-3},{"$f":"((Quarterly!J207/Quarterly!J206)^4)-1","v":-4.6087218587609335E-3},{"$f":"((Quarterly!K207/Quarterly!K206)^4)-1","v":-0.27937558245945582},{"$f":"((Quarterly!L207-Quarterly!L206))","v":-43.17},{"$f":"((Quarterly!M207/Quarterly!M206)^4)-1","v":3.8784018733967196E-2},{"$f":"((Quarterly!N207/Quarterly!N206)^4)-1","v":5.0428711785780678E-2},{"$f":"((Quarterly!O207/Quarterly!O206)^4)-1","v":7.1765231003200203E-3},{"$f":"((Quarterly!P207/Quarterly!P206)^4)-1","v":1.6673022030907925E-2},{"$f":"((Quarterly!Q207/Quarterly!Q206)^4)-1","v":2.0339124822661927},null,null,null,null,null,{"$f":"((Quarterly!W207/Quarterly!W206)^4)-1","v":-3.5106276634077616E-2},{"$f":"((Quarterly!X207/Quarterly!X206)^4)-1","v":-9.8642896215032083E-3},{"$f":"((Quarterly!Y207/Quarterly!Y206)^4)-1","v":0.17886045787048022},{"$f":"Quarterly!Z207-Quarterly!Z206","v":0.12},{"$f":"((Quarterly!AA207/Quarterly!AA206)^4)-1","v":-0.29563383004382326},{"$f":"((Quarterly!AB207/Quarterly!AB206)^4)-1","v":-0.11909414132201457},{"$f":"Quarterly!AC207-Quarterly!AC206","v":-4},{"$f":"Quarterly!AD207-Quarterly!AD206","v":-15.900000000000002},{"$f":"(Quarterly!AE207-Quarterly!AE206)*100","v":29.999999999999982},{"$f":"(Quarterly!AF207-Quarterly!AF206)*100","v":12},{"$f":"(Quarterly!AG207-Quarterly!AG206)*100","v":34},{"$f":"((Quarterly!AH207/Quarterly!AH206)^4)-1","v":2.6294711368332058E-2},{"$f":"((Quarterly!AI207/Quarterly!AI206)^4)-1","v":5.9330643928427573E-2},{"$f":"((Quarterly!AJ207/Quarterly!AJ206)^4)-1","v":1.9019914470980614E-2},{"$f":"((Quarterly!AK207/Quarterly!AK206)^4)-1","v":2.6551425316647226E-2},{"$f":"((Quarterly!AL207/Quarterly!AL206)^4)-1","v":3.4168743535397672E-2},{"$f":"((Quarterly!AM207/Quarterly!AM206)^4)-1","v":-1.6525697993756361E-2},{"$f":"((Quarterly!AN207/Quarterly!AN206)^4)-1","v":-2.6648944520346163E-2},{"$f":"((Quarterly!AO207/Quarterly!AO206)^4)-1","v":8.0979466150927992E-2},{"$f":"(Quarterly!AP207-Quarterly!AP206)*100","v":0.99999999999997868},{"$f":"Quarterly!AQ207-Quarterly!AQ206","v":-1.4666666666666686},{"$f":"Quarterly!AR207-Quarterly!AR206","v":2},{"$f":"Quarterly!AS207-Quarterly!AS206","v":-1.6666666666666643},{"$f":"Quarterly!AT207-Quarterly!AT206","v":-2.1999999999999886},{"$f":"Quarterly!AU207-Quarterly!AU206","v":1},{"$f":"Quarterly!AV207-Quarterly!AV206","v":0.6666666666666714},{"$f":"Quarterly!AW207-Quarterly!AW206","v":2.3333333333333357},{"$f":"Quarterly!AX207-Quarterly!AX206","v":-5.1000000000000085},{"$f":"Quarterly!AY207-Quarterly!AY206","v":12.166666666666657},{"$f":"Quarterly!AZ207-Quarterly!AZ206","v":-1.6000000000000085},{"$f":"Quarterly!BA207-Quarterly!BA206","v":-0.63333333333332575},{"$f":"Quarterly!BB207-Quarterly!BB206","v":-6.0666666666666629},{"$f":"((Quarterly!BC207/Quarterly!BC206)^4)-1","v":5.216225524624285E-2},{"$f":"((Quarterly!BD207/Quarterly!BD206)^4)-1","v":0.10485980273413453},{"$f":"((Quarterly!BE207/Quarterly!BE206)^4)-1","v":-8.0839259152835186E-2},{"$f":"((Quarterly!BF207/Quarterly!BF206)^4)-1","v":4.1350561532126573E-2},{"$f":"((Quarterly!BG207/Quarterly!BG206)^4)-1","v":-3.8082533147373421E-2},{"$f":"((Quarterly!BH207/Quarterly!BH206)^4)-1","v":-3.2243086842389523E-3},{"$f":"((Quarterly!BI207/Quarterly!BI206)^4)-1","v":8.257474777243301E-2},{"$f":"((Quarterly!BJ207/Quarterly!BJ206)^4)-1","v":-0.4036686144965036},{"$f":"((Quarterly!BK207/Quarterly!BK206)^4)-1","v":1.2945975280977562},null,{"$f":"((Quarterly!BM207/Quarterly!BM206)^4)-1","v":-3.2490625895584713E-2},{"$f":"((Quarterly!BN207/Quarterly!BN206)^4)-1","v":-3.1185666863733696E-2},null,null,null,null,null,{"$f":"((Quarterly!BT207/Quarterly!BT206)^4)-1","v":6.5592359842219006E-2},{"$f":"Quarterly!BU207-Quarterly!BU206","v":-0.13893000000000022},{"$f":"Quarterly!BV207-Quarterly!BV206","v":-0.17065000000000197},{"$f":"((Quarterly!BW207/Quarterly!BW206)^4)-1","v":0.10662878530160214},{"$f":"((Quarterly!BX207/Quarterly!BX206)^4)-1","v":-0.30661840418947106},{"$f":"((Quarterly!BY207/Quarterly!BY206)^4)-1","v":-0.44646849587476611},{"$f":"((Quarterly!BZ207/Quarterly!BZ206)^4)-1","v":-0.18339652728347378},{"$f":"((Quarterly!CA207/Quarterly!CA206)^4)-1","v":-0.19581882040971021},{"$f":"((Quarterly!CB207/Quarterly!CB206)^4)-1","v":0.1462733942325154},{"$f":"((Quarterly!CC207/Quarterly!CC206)^4)-1","v":0.15478337268168807},{"$f":"((Quarterly!CD207/Quarterly!CD206)^4)-1","v":10.764991540325939},{"$f":"((Quarterly!CE207/Quarterly!CE206)^4)-1","v":4.3677373118292611},null,{"$f":"((Quarterly!CG207/Quarterly!CG206)^4)-1","v":0.57744395821349159},{"$f":"((Quarterly!CH207/Quarterly!CH206)^4)-1","v":-0.14823217655570309},null,{"$f":"((Quarterly!CJ207/Quarterly!CJ206)^4)-1","v":-0.39142092640485959},{"$f":"((Quarterly!CK207/Quarterly!CK206)^4)-1","v":6.1589553053420287E-2},{"$f":"((Quarterly!CL207/Quarterly!CL206)^4)-1","v":2.3151418215108466},{"$f":"((Quarterly!CM207/Quarterly!CM206)^4)-1","v":-0.38838586450854173},{"$f":"((Quarterly!CN207/Quarterly!CN206)^4)-1","v":2.9425153888932298E-2},{"$f":"((Quarterly!CO207/Quarterly!CO206)^4)-1","v":5.9159276197318533E-2},{"$f":"((Quarterly!CP207/Quarterly!CP206)^4)-1","v":5.932438106566984E-2},{"$f":"((Quarterly!CQ207/Quarterly!CQ206)^4)-1","v":8.7222387792436074E-3},{"$f":"((Quarterly!CR207/Quarterly!CR206)^4)-1","v":8.654817623228106E-2},{"$f":"Quarterly!CS207-Quarterly!CS206","v":-4.6000000000000085},{"$f":"Quarterly!CT207-Quarterly!CT206","v":-14.666666666666671},null,null,null,null,null,{"$f":"((Quarterly!CZ207/Quarterly!CZ206)^4)-1","v":4.4036618459418531E-2},{"$f":"((Quarterly!DA207/Quarterly!DA206)^4)-1","v":2.6757341301223203E-2},null,null,null,null,null,{"$f":"((Quarterly!DG207/Quarterly!DG206)^4)-1","v":-6.1756801676823292E-3},{"$f":"((Quarterly!DH207-Quarterly!DH206)*60)","v":-3.9999999999997726},{"$f":"Quarterly!DI207-Quarterly!DI206","v":0.16666666666665719},{"$f":"(Quarterly!DJ207-Quarterly!DJ206)*100","v":56.666666666666643},{"$f":"(Quarterly!DK207-Quarterly!DK206)*100","v":20.000000000000018},{"$f":"((Quarterly!DL207/Quarterly!DL206)^4)-1","v":-1.8003029963843509E-2},null,null,null,{"$f":"((Quarterly!DP207/Quarterly!DP206)^4)-1","v":1.1090843803995831E-3},null,null,null,"--",{"$f":"Quarterly!DU207-Quarterly!DU206","v":0.33333333333333215},{"$f":"((Quarterly!DV207/Quarterly!DV206)^4)-1","v":0.33292354324955742},{"$f":"((Quarterly!DW207/Quarterly!DW206)^4)-1","v":0.2252018701310623},{"$f":"((Quarterly!DX207/Quarterly!DX206)^4)-1","v":0.32556179002590957},{"$f":"((Quarterly!DY207/Quarterly!DY206)^4)-1","v":0.23533097939758352},{"$f":"((Quarterly!DZ207/Quarterly!DZ206)^4)-1","v":0.35428894835485103},{"$f":"((Quarterly!EA207/Quarterly!EA206)^4)-1","v":0.38824744473187489},{"$f":"((Quarterly!EB207/Quarterly!EB206)^4)-1","v":0.27700745643851965},{"$f":"((Quarterly!EC207/Quarterly!EC206)^4)-1","v":1.7774125020676212E-2},null,null,null,null,null,{"$f":"((Quarterly!EI207/Quarterly!EI206)^4)-1","v":-7.4835164173298607E-2},{"$f":"((Quarterly!EJ207/Quarterly!EJ206)^4)-1","v":-4.4352959306933615E-2},{"$f":"((Quarterly!EK207/Quarterly!EK206)^4)-1","v":-1.7938997065688467E-2},null,null,null,null,null,{"$f":"((Quarterly!EQ207/Quarterly!EQ206)^4)-1","v":0.1531111334265931},{"$f":"((Quarterly!ER207/Quarterly!ER206)^4)-1","v":3.5588882917859666E-2},{"$f":"((Quarterly!ES207/Quarterly!ES206)^4)-1","v":2.955797132723692E-2},null,null,null,null,null,{"$f":"(Quarterly!EY207-Quarterly!EY206)*100","v":-130.99999999999997},{"$f":"(Quarterly!EZ207-Quarterly!EZ206)*100","v":-132.00000000000009},{"$f":"(Quarterly!FA207-Quarterly!FA206)*100","v":-7.3333333333335027},{"$f":"(Quarterly!FB207-Quarterly!FB206)*100","v":23.999999999999932},31.333333333333435,{"$f":"(Quarterly!FD207-Quarterly!FD206)*100","v":-34.666666666666671},{"$f":"(Quarterly!FE207-Quarterly!FE206)*100","v":-134.66666666666666},{"$f":"(Quarterly!FF207-Quarterly!FF206)*100","v":-151.99999999999994},{"$f":"(Quarterly!FG207-Quarterly!FG206)*100","v":-145.33333333333331},{"$f":"(Quarterly!FH207-Quarterly!FH206)*100","v":-104},{"$f":"(Quarterly!FI207-Quarterly!FI206)*100","v":-59.666666666666622},92.333333333333314,null,null,null,null,null,{"$f":"((Quarterly!FP207/Quarterly!FP206)^4)-1","v":9.372857536165502E-2},{"$f":"((Quarterly!FQ207/Quarterly!FQ206)^4)-1","v":-0.1382593966528225},{"$f":"((Quarterly!FR207/Quarterly!FR206)^4)-1","v":-1.7385369558089891E-2},{"$f":"((Quarterly!FS207/Quarterly!FS206)^4)-1","v":0.14858171730961489},{"$f":"((Quarterly!FT207/Quarterly!FT206)^4)-1","v":-7.5172842826401576E-2},{"$f":"((Quarterly!FU207/Quarterly!FU206)^4)-1","v":-7.0463342925114136E-2},{"$f":"((Quarterly!FV207/Quarterly!FV206)^4)-1","v":0.1295816908807883},{"$f":"((Quarterly!FW207/Quarterly!FW206)^4)-1","v":-0.51145833046129419},{"$f":"((Quarterly!FX207/Quarterly!FX206)^4)-1","v":-0.22762654921557013},null,null,null,null,null,{"$f":"((Quarterly!GD207/Quarterly!GD206)^4)-1","v":0.35137895564155541},{"$f":"((Quarterly!GE207/Quarterly!GE206)^4)-1","v":0.43549569781489028},{"$f":"((Quarterly!GF207/Quarterly!GF206)^4)-1","v":0.27886162490840727},{"$f":"((Quarterly!GG207/Quarterly!GG206)^4)-1","v":0.34465932281609479},{"$f":"((Quarterly!GH207/Quarterly!GH206)^4)-1","v":{"$error":"#DIV/0!"}},"--",{"$f":"((Quarterly!GJ207/Quarterly!GJ206)^4)-1","v":0.96432151291507506},{"$f":"((Quarterly!GK207/Quarterly!GK206)^4)-1","v":4.9016438571901189E-2},"--"]
["08'Q2",{"$f":"((Quarterly!B208/Quarterly!B207)^4)-1","v":3.999855313252354E-2},{"$f":"((Quarterly!C208/Quarterly!C207)^4)-1","v":2.0003184333662771E-2},{"$f":"((Quarterly!D208/Quarterly!D207)^4)-1","v":2.2587926910214495E-2},{"$f":"((Quarterly!E208/Quarterly!E207)^4)-1","v":6.7492818658654308E-3},{"$f":"((Quarterly!F208/Quarterly!F207)^4)-1","v":-1.2531618051282889E-2},{"$f":"((Quarterly!G208/Quarterly!G207)^4)-1","v":2.8326260690831662E-2},{"$f":"((Quarterly!H208/Quarterly!H207)^4)-1","v":2.9638228944965928E-3},{"$f":"((Quarterly!I208/Quarterly!I207)^4)-1","v":-2.2855348674232001E-2},{"$f":"((Quarterly!J208/Quarterly!J207)^4)-1","v":-5.4347816630818002E-2},{"$f":"((Quarterly!K208/Quarterly!K207)^4)-1","v":-0.1641737987095746},{"$f":"((Quarterly!L208-Quarterly!L207))","v":-6.1890000000000001},{"$f":"((Quarterly!M208/Quarterly!M207)^4)-1","v":-3.5486088513311698E-2},{"$f":"((Quarterly!N208/Quarterly!N207)^4)-1","v":0.12535764108745706},{"$f":"((Quarterly!O208/Quarterly!O207)^4)-1","v":-0.39359181697041401},{"$f":"((Quarterly!P208/Quarterly!P207)^4)-1","v":3.1521857101676432E-2},{"$f":"((Quarterly!Q208/Quarterly!Q207)^4)-1","v":12.256420907051767},null,null,null,null,null,{"$f":"((Quarterly!W208/Quarterly!W207)^4)-1","v":-7.4732453126641341E-2},{"$f":"((Quarterly!X208/Quarterly!X207)^4)-1","v":-4.8711813055188125E-2},{"$f":"((Quarterly!Y208/Quarterly!Y207)^4)-1","v":0.11274443598966921},{"$f":"Quarterly!Z208-Quarterly!Z207","v":8.9999999999999969E-2},{"$f":"((Quarterly!AA208/Quarterly!AA207)^4)-1","v":8.9709842336236356E-2},{"$f":"((Quarterly!AB208/Quarterly!AB207)^4)-1","v":-1.7888133484114332E-2},{"$f":"Quarterly!AC208-Quarterly!AC207","v":-7.5},{"$f":"Quarterly!AD208-Quarterly!AD207","v":7.5},{"$f":"(Quarterly!AE208-Quarterly!AE207)*100","v":30.000000000000004},{"$f":"(Quarterly!AF208-Quarterly!AF207)*100","v":8.9999999999999964},{"$f":"(Quarterly!AG208-Quarterly!AG207)*100","v":14.000000000000012},{"$f":"((Quarterly!AH208/Quarterly!AH207)^4)-1","v":5.52955593120803E-2},{"$f":"((Quarterly!AI208/Quarterly!AI207)^4)-1","v":3.7923973382812504E-2},{"$f":"((Quarterly!AJ208/Quarterly!AJ207)^4)-1","v":1.8929905658959356E-2},{"$f":"((Quarterly!AK208/Quarterly!AK207)^4)-1","v":3.0186561953550406E-2},{"$f":"((Quarterly!AL208/Quarterly!AL207)^4)-1","v":3.0073094349461815E-2},{"$f":"((Quarterly!AM208/Quarterly!AM207)^4)-1","v":-5.492574175777809E-2},{"$f":"((Quarterly!AN208/Quarterly!AN207)^4)-1","v":-7.506703894070621E-2},{"$f":"((Quarterly!AO208/Quarterly!AO207)^4)-1","v":3.8647911149351399E-2},{"$f":"(Quarterly!AP208-Quarterly!AP207)*100","v":-2.0000000000000018},{"$f":"Quarterly!AQ208-Quarterly!AQ207","v":0.39999999999999858},{"$f":"Quarterly!AR208-Quarterly!AR207","v":2.8333333333333357},{"$f":"Quarterly!AS208-Quarterly!AS207","v":-0.8333333333333357},{"$f":"Quarterly!AT208-Quarterly!AT207","v":-1.2000000000000028},{"$f":"Quarterly!AU208-Quarterly!AU207","v":1.5},{"$f":"Quarterly!AV208-Quarterly!AV207","v":-0.5},{"$f":"Quarterly!AW208-Quarterly!AW207","v":1.5},{"$f":"Quarterly!AX208-Quarterly!AX207","v":1.5666666666666629},{"$f":"Quarterly!AY208-Quarterly!AY207","v":9.3333333333333428},{"$f":"Quarterly!AZ208-Quarterly!AZ207","v":-0.3333333333333286},{"$f":"Quarterly!BA208-Quarterly!BA207","v":0.59999999999999432},{"$f":"Quarterly!BB208-Quarterly!BB207","v":2.9333333333333371},{"$f":"((Quarterly!BC208/Quarterly!BC207)^4)-1","v":7.9178687629746003E-2},{"$f":"((Quarterly!BD208/Quarterly!BD207)^4)-1","v":-2.0420307252954184E-2},{"$f":"((Quarterly!BE208/Quarterly!BE207)^4)-1","v":3.9740819019312257E-2},{"$f":"((Quarterly!BF208/Quarterly!BF207)^4)-1","v":3.3024969995614217E-3},{"$f":"((Quarterly!BG208/Quarterly!BG207)^4)-1","v":4.023204745882869E-2},{"$f":"((Quarterly!BH208/Quarterly!BH207)^4)-1","v":-4.7277179567576044E-2},{"$f":"((Quarterly!BI208/Quarterly!BI207)^4)-1","v":-3.5504547840686906E-2},{"$f":"((Quarterly!BJ208/Quarterly!BJ207)^4)-1","v":0.16606203807305064},{"$f":"((Quarterly!BK208/Quarterly!BK207)^4)-1","v":0.69266706705093384},null,{"$f":"((Quarterly!BM208/Quarterly!BM207)^4)-1","v":2.0319679755753883E-2},{"$f":"((Quarterly!BN208/Quarterly!BN207)^4)-1","v":1.6736857780295322E-2},null,null,null,null,null,{"$f":"((Quarterly!BT208/Quarterly!BT207)^4)-1","v":4.6887245521467058E-2},{"$f":"Quarterly!BU208-Quarterly!BU207","v":-0.37884000000000029},{"$f":"Quarterly!BV208-Quarterly!BV207","v":-0.48266999999999882},{"$f":"((Quarterly!BW208/Quarterly!BW207)^4)-1","v":0.12349270671985479},{"$f":"((Quarterly!BX208/Quarterly!BX207)^4)-1","v":-0.18592342687822583},{"$f":"((Quarterly!BY208/Quarterly!BY207)^4)-1","v":0.14806393420850528},{"$f":"((Quarterly!BZ208/Quarterly!BZ207)^4)-1","v":-0.18644021812135148},{"$f":"((Quarterly!CA208/Quarterly!CA207)^4)-1","v":-0.21384146892639366},{"$f":"((Quarterly!CB208/Quarterly!CB207)^4)-1","v":0.2401773984389084},{"$f":"((Quarterly!CC208/Quarterly!CC207)^4)-1","v":0.25505797151352194},{"$f":"((Quarterly!CD208/Quarterly!CD207)^4)-1","v":-0.22838534127812493},{"$f":"((Quarterly!CE208/Quarterly!CE207)^4)-1","v":-0.42687722759151547},null,{"$f":"((Quarterly!CG208/Quarterly!CG207)^4)-1","v":0.46513607249375788},{"$f":"((Quarterly!CH208/Quarterly!CH207)^4)-1","v":-3.4875738687806468E-2},null,{"$f":"((Quarterly!CJ208/Quarterly!CJ207)^4)-1","v":-0.42687722759151547},{"$f":"((Quarterly!CK208/Quarterly!CK207)^4)-1","v":0.11906046284810112},{"$f":"((Quarterly!CL208/Quarterly!CL207)^4)-1","v":5.3397992815828106},{"$f":"((Quarterly!CM208/Quarterly!CM207)^4)-1","v":-0.33666215944939282},{"$f":"((Quarterly!CN208/Quarterly!CN207)^4)-1","v":8.6672848453472673E-2},{"$f":"((Quarterly!CO208/Quarterly!CO207)^4)-1","v":9.5936070494866854E-2},{"$f":"((Quarterly!CP208/Quarterly!CP207)^4)-1","v":3.7942536058124476E-2},{"$f":"((Quarterly!CQ208/Quarterly!CQ207)^4)-1","v":8.2437834481006167E-3},{"$f":"((Quarterly!CR208/Quarterly!CR207)^4)-1","v":2.6159251612068335E-2},{"$f":"Quarterly!CS208-Quarterly!CS207","v":-13.29999999999999},{"$f":"Quarterly!CT208-Quarterly!CT207","v":-19.233333333333327},null,null,null,null,null,{"$f":"((Quarterly!CZ208/Quarterly!CZ207)^4)-1","v":5.306179122591792E-2},{"$f":"((Quarterly!DA208/Quarterly!DA207)^4)-1","v":1.7493256475436647E-2},null,null,null,null,null,{"$f":"((Quarterly!DG208/Quarterly!DG207)^4)-1","v":-1.602186064290978E-2},{"$f":"((Quarterly!DH208-Quarterly!DH207)*60)","v":0},{"$f":"Quarterly!DI208-Quarterly!DI207","v":-6.6666666666662877E-2},{"$f":"(Quarterly!DJ208-Quarterly!DJ207)*100","v":56.666666666666643},{"$f":"(Quarterly!DK208-Quarterly!DK207)*100","v":33.3333333333333},{"$f":"((Quarterly!DL208/Quarterly!DL207)^4)-1","v":-3.9611826864148991E-2},null,null,null,{"$f":"((Quarterly!DP208/Quarterly!DP207)^4)-1","v":-1.3462591251322209E-2},null,null,null,"--",{"$f":"Quarterly!DU208-Quarterly!DU207","v":-3.3333333333331439E-2},{"$f":"((Quarterly!DV208/Quarterly!DV207)^4)-1","v":-2.9905291342750884E-2},{"$f":"((Quarterly!DW208/Quarterly!DW207)^4)-1","v":4.99757814312769E-2},{"$f":"((Quarterly!DX208/Quarterly!DX207)^4)-1","v":3.3971399450412054E-3},{"$f":"((Quarterly!DY208/Quarterly!DY207)^4)-1","v":5.5729702211715582E-2},{"$f":"((Quarterly!DZ208/Quarterly!DZ207)^4)-1","v":-1.1949081740018963E-2},{"$f":"((Quarterly!EA208/Quarterly!EA207)^4)-1","v":0},{"$f":"((Quarterly!EB208/Quarterly!EB207)^4)-1","v":-4.0160221635449078E-2},{"$f":"((Quarterly!EC208/Quarterly!EC207)^4)-1","v":0.17018574636129857},null,null,null,null,null,{"$f":"((Quarterly!EI208/Quarterly!EI207)^4)-1","v":-1.9529199148421106E-2},{"$f":"((Quarterly!EJ208/Quarterly!EJ207)^4)-1","v":-2.4283504935788569E-2},{"$f":"((Quarterly!EK208/Quarterly!EK207)^4)-1","v":-1.4082880502363393E-2},null,null,null,null,null,{"$f":"((Quarterly!EQ208/Quarterly!EQ207)^4)-1","v":0.29125576733737213},{"$f":"((Quarterly!ER208/Quarterly!ER207)^4)-1","v":3.860324981412222E-2},{"$f":"((Quarterly!ES208/Quarterly!ES207)^4)-1","v":3.5647146369720994E-2},null,null,null,null,null,{"$f":"(Quarterly!EY208-Quarterly!EY207)*100","v":-113.33333333333337},{"$f":"(Quarterly!EZ208-Quarterly!EZ207)*100","v":-108.99999999999999},{"$f":"(Quarterly!FA208-Quarterly!FA207)*100","v":14.333333333333442},{"$f":"(Quarterly!FB208-Quarterly!FB207)*100","v":23.999999999999932},9.6666666666664902,{"$f":"(Quarterly!FD208-Quarterly!FD207)*100","v":21.000000000000085},{"$f":"(Quarterly!FE208-Quarterly!FE207)*100","v":-41.666666666666671},{"$f":"(Quarterly!FF208-Quarterly!FF207)*100","v":-2.6666666666666838},{"$f":"(Quarterly!FG208-Quarterly!FG207)*100","v":39.999999999999993},{"$f":"(Quarterly!FH208-Quarterly!FH207)*100","v":41.333333333333357},{"$f":"(Quarterly!FI208-Quarterly!FI207)*100","v":22.333333333333314},25,null,null,null,null,null,{"$f":"((Quarterly!FP208/Quarterly!FP207)^4)-1","v":2.4394844670120097E-2},{"$f":"((Quarterly!FQ208/Quarterly!FQ207)^4)-1","v":-0.10810836287411962},{"$f":"((Quarterly!FR208/Quarterly!FR207)^4)-1","v":-0.13199623357949297},{"$f":"((Quarterly!FS208/Quarterly!FS207)^4)-1","v":0.17614144055494174},{"$f":"((Quarterly!FT208/Quarterly!FT207)^4)-1","v":-6.6084520567068705E-2},{"$f":"((Quarterly!FU208/Quarterly!FU207)^4)-1","v":-6.6687521971231845E-2},{"$f":"((Quarterly!FV208/Quarterly!FV207)^4)-1","v":0.43173407102419481},{"$f":"((Quarterly!FW208/Quarterly!FW207)^4)-1","v":0.57817673840691763},{"$f":"((Quarterly!FX208/Quarterly!FX207)^4)-1","v":0.43410580058681969},null,null,null,null,null,{"$f":"((Quarterly!GD208/Quarterly!GD207)^4)-1","v":1.5650515931072362},{"$f":"((Quarterly!GE208/Quarterly!GE207)^4)-1","v":1.4596579757939478},{"$f":"((Quarterly!GF208/Quarterly!GF207)^4)-1","v":1.0820173402853874},{"$f":"((Quarterly!GG208/Quarterly!GG207)^4)-1","v":1.4255479261530768},{"$f":"((Quarterly!GH208/Quarterly!GH207)^4)-1","v":{"$error":"#DIV/0!"}},"--",{"$f":"((Quarterly!GJ208/Quarterly!GJ207)^4)-1","v":1.9643382636684166},{"$f":"((Quarterly!GK208/Quarterly!GK207)^4)-1","v":-0.12862329242603454},"--"]
["08'Q3",{"$f":"((Quarterly!B209/Quarterly!B208)^4)-1","v":8.128094800307073E-3},{"$f":"((Quarterly!C209/Quarterly!C208)^4)-1","v":-1.9033187821956066E-2},{"$f":"((Quarterly!D209/Quarterly!D208)^4)-1","v":-2.1750492217169182E-2},{"$f":"((Quarterly!E209/Quarterly!E208)^4)-1","v":-2.8609117716863475E-2},{"$f":"((Quarterly!F209/Quarterly!F208)^4)-1","v":-0.11698117327112134},{"$f":"((Quarterly!G209/Quarterly!G208)^4)-1","v":-5.1778611953632425E-2},{"$f":"((Quarterly!H209/Quarterly!H208)^4)-1","v":-4.4004551785118418E-3},{"$f":"((Quarterly!I209/Quarterly!I208)^4)-1","v":-0.10366748471317033},{"$f":"((Quarterly!J209/Quarterly!J208)^4)-1","v":-0.13085261432793294},{"$f":"((Quarterly!K209/Quarterly!K208)^4)-1","v":-0.18299481918687777},{"$f":"((Quarterly!L209-Quarterly!L208))","v":5.6890000000000001},{"$f":"((Quarterly!M209/Quarterly!M208)^4)-1","v":-7.852117185319385E-2},{"$f":"((Quarterly!N209/Quarterly!N208)^4)-1","v":-5.2342939983078263E-2},{"$f":"((Quarterly!O209/Quarterly!O208)^4)-1","v":-0.15992405811884114},{"$f":"((Quarterly!P209/Quarterly!P208)^4)-1","v":5.6528689616339056E-2},{"$f":"((Quarterly!Q209/Quarterly!Q208)^4)-1","v":-0.47733296611132181},null,null,null,null,null,{"$f":"((Quarterly!W209/Quarterly!W208)^4)-1","v":-0.12917274518068766},{"$f":"((Quarterly!X209/Quarterly!X208)^4)-1","v":-0.12135381204956464},{"$f":"((Quarterly!Y209/Quarterly!Y208)^4)-1","v":7.0768376845050884E-2},{"$f":"Quarterly!Z209-Quarterly!Z208","v":7.0000000000000062E-2},{"$f":"((Quarterly!AA209/Quarterly!AA208)^4)-1","v":-0.12625131729522499},{"$f":"((Quarterly!AB209/Quarterly!AB208)^4)-1","v":0.14489279050529169},{"$f":"Quarterly!AC209-Quarterly!AC208","v":5.6},{"$f":"Quarterly!AD209-Quarterly!AD208","v":0.70000000000000107},{"$f":"(Quarterly!AE209-Quarterly!AE208)*100","v":35.000000000000007},{"$f":"(Quarterly!AF209-Quarterly!AF208)*100","v":7.0000000000000062},{"$f":"(Quarterly!AG209-Quarterly!AG208)*100","v":11.999999999999989},{"$f":"((Quarterly!AH209/Quarterly!AH208)^4)-1","v":-2.5066917980248959E-2},{"$f":"((Quarterly!AI209/Quarterly!AI208)^4)-1","v":2.6368249760643225E-2},{"$f":"((Quarterly!AJ209/Quarterly!AJ208)^4)-1","v":2.2640612836881457E-2},{"$f":"((Quarterly!AK209/Quarterly!AK208)^4)-1","v":2.240809423106227E-2},{"$f":"((Quarterly!AL209/Quarterly!AL208)^4)-1","v":2.2324721673602443E-2},{"$f":"((Quarterly!AM209/Quarterly!AM208)^4)-1","v":-0.12148677181168621},{"$f":"((Quarterly!AN209/Quarterly!AN208)^4)-1","v":-0.13723584467893635},{"$f":"((Quarterly!AO209/Quarterly!AO208)^4)-1","v":4.2524608860683433E-2},{"$f":"(Quarterly!AP209-Quarterly!AP208)*100","v":2.6666666666666616},{"$f":"Quarterly!AQ209-Quarterly!AQ208","v":-1.1333333333333258},{"$f":"Quarterly!AR209-Quarterly!AR208","v":-7.8333333333333357},{"$f":"Quarterly!AS209-Quarterly!AS208","v":2.6666666666666643},{"$f":"Quarterly!AT209-Quarterly!AT208","v":1.5666666666666629},{"$f":"Quarterly!AU209-Quarterly!AU208","v":-4.1666666666666643},{"$f":"Quarterly!AV209-Quarterly!AV208","v":-1.5},{"$f":"Quarterly!AW209-Quarterly!AW208","v":-3.1666666666666643},{"$f":"Quarterly!AX209-Quarterly!AX208","v":-3.0666666666666629},{"$f":"Quarterly!AY209-Quarterly!AY208","v":-14.666666666666671},{"$f":"Quarterly!AZ209-Quarterly!AZ208","v":0.6666666666666714},{"$f":"Quarterly!BA209-Quarterly!BA208","v":-1.9000000000000057},{"$f":"Quarterly!BB209-Quarterly!BB208","v":-0.70000000000000284},{"$f":"((Quarterly!BC209/Quarterly!BC208)^4)-1","v":-0.13923352321573446},{"$f":"((Quarterly!BD209/Quarterly!BD208)^4)-1","v":-7.3795564749554066E-2},{"$f":"((Quarterly!BE209/Quarterly!BE208)^4)-1","v":0.13616245689344053},{"$f":"((Quarterly!BF209/Quarterly!BF208)^4)-1","v":3.4743366874918635E-2},{"$f":"((Quarterly!BG209/Quarterly!BG208)^4)-1","v":1.015954018729559E-2},{"$f":"((Quarterly!BH209/Quarterly!BH208)^4)-1","v":-2.6466888342024708E-2},{"$f":"((Quarterly!BI209/Quarterly!BI208)^4)-1","v":2.4349453952704714E-2},{"$f":"((Quarterly!BJ209/Quarterly!BJ208)^4)-1","v":0.22176190989328104},{"$f":"((Quarterly!BK209/Quarterly!BK208)^4)-1","v":0.44234285496767267},null,{"$f":"((Quarterly!BM209/Quarterly!BM208)^4)-1","v":-4.1939413161863337E-2},{"$f":"((Quarterly!BN209/Quarterly!BN208)^4)-1","v":-5.0113755713786623E-2},null,null,null,null,null,{"$f":"((Quarterly!BT209/Quarterly!BT208)^4)-1","v":0.11168830753361703},{"$f":"Quarterly!BU209-Quarterly!BU208","v":0.10915999999999926},{"$f":"Quarterly!BV209-Quarterly!BV208","v":0.23619000000000057},{"$f":"((Quarterly!BW209/Quarterly!BW208)^4)-1","v":0.1022763965100506},{"$f":"((Quarterly!BX209/Quarterly!BX208)^4)-1","v":-0.47000847244283039},{"$f":"((Quarterly!BY209/Quarterly!BY208)^4)-1","v":-0.5710201626022241},{"$f":"((Quarterly!BZ209/Quarterly!BZ208)^4)-1","v":-0.17245170981746216},{"$f":"((Quarterly!CA209/Quarterly!CA208)^4)-1","v":-0.28682890607131817},{"$f":"((Quarterly!CB209/Quarterly!CB208)^4)-1","v":0.85467762802701386},{"$f":"((Quarterly!CC209/Quarterly!CC208)^4)-1","v":0.78128915633640594},{"$f":"((Quarterly!CD209/Quarterly!CD208)^4)-1","v":-0.31434009643238747},{"$f":"((Quarterly!CE209/Quarterly!CE208)^4)-1","v":-0.3980880174375182},null,{"$f":"((Quarterly!CG209/Quarterly!CG208)^4)-1","v":-9.21253831781087E-2},{"$f":"((Quarterly!CH209/Quarterly!CH208)^4)-1","v":9.0434811137496185E-2},null,{"$f":"((Quarterly!CJ209/Quarterly!CJ208)^4)-1","v":-0.3980880174375182},{"$f":"((Quarterly!CK209/Quarterly!CK208)^4)-1","v":-5.6893876732089899E-2},{"$f":"((Quarterly!CL209/Quarterly!CL208)^4)-1","v":-0.72725880138440768},{"$f":"((Quarterly!CM209/Quarterly!CM208)^4)-1","v":-0.41114478724216907},{"$f":"((Quarterly!CN209/Quarterly!CN208)^4)-1","v":-8.8721581205408517E-2},{"$f":"((Quarterly!CO209/Quarterly!CO208)^4)-1","v":3.6551209663742812E-2},{"$f":"((Quarterly!CP209/Quarterly!CP208)^4)-1","v":2.1545868951837743E-3},{"$f":"((Quarterly!CQ209/Quarterly!CQ208)^4)-1","v":9.4793360720071274E-3},{"$f":"((Quarterly!CR209/Quarterly!CR208)^4)-1","v":-1.4559150532664877E-2},{"$f":"Quarterly!CS209-Quarterly!CS208","v":5.2333333333333272},{"$f":"Quarterly!CT209-Quarterly!CT208","v":-3.3333333333331439E-2},null,null,null,null,null,{"$f":"((Quarterly!CZ209/Quarterly!CZ208)^4)-1","v":6.3116378015581232E-2},{"$f":"((Quarterly!DA209/Quarterly!DA208)^4)-1","v":2.5995465144460939E-2},null,null,null,null,null,{"$f":"((Quarterly!DG209/Quarterly!DG208)^4)-1","v":-3.924694474257584E-2},{"$f":"((Quarterly!DH209-Quarterly!DH208)*60)","v":-6.0000000000000853},{"$f":"Quarterly!DI209-Quarterly!DI208","v":3.3333333333331439E-2},{"$f":"(Quarterly!DJ209-Quarterly!DJ208)*100","v":109.99999999999997},{"$f":"(Quarterly!DK209-Quarterly!DK208)*100","v":66.6666666666667},{"$f":"((Quarterly!DL209/Quarterly!DL208)^4)-1","v":-5.8098854130089084E-2},null,null,null,{"$f":"((Quarterly!DP209/Quarterly!DP208)^4)-1","v":-2.0467632903856892E-2},null,null,null,"--",{"$f":"Quarterly!DU209-Quarterly!DU208","v":1.0999999999999979},{"$f":"((Quarterly!DV209/Quarterly!DV208)^4)-1","v":-6.6537156177255308E-2},{"$f":"((Quarterly!DW209/Quarterly!DW208)^4)-1","v":-5.7012541311163289E-4},{"$f":"((Quarterly!DX209/Quarterly!DX208)^4)-1","v":-1.5368773849272821E-2},{"$f":"((Quarterly!DY209/Quarterly!DY208)^4)-1","v":2.7501871292993085E-2},{"$f":"((Quarterly!DZ209/Quarterly!DZ208)^4)-1","v":-2.8201161038158173E-2},{"$f":"((Quarterly!EA209/Quarterly!EA208)^4)-1","v":-7.7318421585654828E-3},{"$f":"((Quarterly!EB209/Quarterly!EB208)^4)-1","v":-7.646798664677279E-2},{"$f":"((Quarterly!EC209/Quarterly!EC208)^4)-1","v":3.4762587231971898E-2},null,null,null,null,null,{"$f":"((Quarterly!EI209/Quarterly!EI208)^4)-1","v":-6.4081089330679686E-2},{"$f":"((Quarterly!EJ209/Quarterly!EJ208)^4)-1","v":-4.3128808746015657E-2},{"$f":"((Quarterly!EK209/Quarterly!EK208)^4)-1","v":-2.5565886323468012E-2},null,null,null,null,null,{"$f":"((Quarterly!EQ209/Quarterly!EQ208)^4)-1","v":9.4320136597578319E-2},{"$f":"((Quarterly!ER209/Quarterly!ER208)^4)-1","v":4.6508689388070845E-2},{"$f":"((Quarterly!ES209/Quarterly!ES208)^4)-1","v":4.3409404167601862E-2},null,null,null,null,null,{"$f":"(Quarterly!EY209-Quarterly!EY208)*100","v":-8.0000000000000071},{"$f":"(Quarterly!EZ209-Quarterly!EZ208)*100","v":-14.666666666666629},{"$f":"(Quarterly!FA209-Quarterly!FA208)*100","v":5.3333333333332789},{"$f":"(Quarterly!FB209-Quarterly!FB208)*100","v":21.666666666666767},16.333333333333488,{"$f":"(Quarterly!FD209-Quarterly!FD208)*100","v":22.333333333333272},{"$f":"(Quarterly!FE209-Quarterly!FE208)*100","v":-13.333333333333353},{"$f":"(Quarterly!FF209-Quarterly!FF208)*100","v":5.0000000000000266},{"$f":"(Quarterly!FG209-Quarterly!FG208)*100","v":-6.666666666666643},{"$f":"(Quarterly!FH209-Quarterly!FH208)*100","v":-5.3333333333333233},{"$f":"(Quarterly!FI209-Quarterly!FI208)*100","v":-2.3333333333333428},-7.3333333333333695,null,null,null,null,null,{"$f":"((Quarterly!FP209/Quarterly!FP208)^4)-1","v":0.13159792176556251},{"$f":"((Quarterly!FQ209/Quarterly!FQ208)^4)-1","v":-6.7065274677555742E-2},{"$f":"((Quarterly!FR209/Quarterly!FR208)^4)-1","v":-3.6758839444653968E-2},{"$f":"((Quarterly!FS209/Quarterly!FS208)^4)-1","v":-0.14605339075478241},{"$f":"((Quarterly!FT209/Quarterly!FT208)^4)-1","v":8.6754980713993568E-2},{"$f":"((Quarterly!FU209/Quarterly!FU208)^4)-1","v":0.1589328353928563},{"$f":"((Quarterly!FV209/Quarterly!FV208)^4)-1","v":-3.9588565101950191E-2},{"$f":"((Quarterly!FW209/Quarterly!FW208)^4)-1","v":0.93554486674920101},{"$f":"((Quarterly!FX209/Quarterly!FX208)^4)-1","v":-4.757415781420915E-2},null,null,null,null,null,{"$f":"((Quarterly!GD209/Quarterly!GD208)^4)-1","v":-0.17944128058109921},{"$f":"((Quarterly!GE209/Quarterly!GE208)^4)-1","v":-0.21145509103039761},{"$f":"((Quarterly!GF209/Quarterly!GF208)^4)-1","v":9.1546159106964842E-2},{"$f":"((Quarterly!GG209/Quarterly!GG208)^4)-1","v":-4.6782403883503854E-2},{"$f":"((Quarterly!GH209/Quarterly!GH208)^4)-1","v":{"$error":"#DIV/0!"}},"--",{"$f":"((Quarterly!GJ209/Quarterly!GJ208)^4)-1","v":-0.63096881243229119},{"$f":"((Quarterly!GK209/Quarterly!GK208)^4)-1","v":-2.9835748200139567E-2},"--"]
["08'Q4",{"$f":"((Quarterly!B210/Quarterly!B209)^4)-1","v":-7.6661118328955058E-2},{"$f":"((Quarterly!C210/Quarterly!C209)^4)-1","v":-8.1878066656710269E-2},{"$f":"((Quarterly!D210/Quarterly!D209)^4)-1","v":-6.811707361230479E-2},{"$f":"((Quarterly!E210/Quarterly!E209)^4)-1","v":-4.7247969435242898E-2},{"$f":"((Quarterly!F210/Quarterly!F209)^4)-1","v":-0.25787553116201845},{"$f":"((Quarterly!G210/Quarterly!G209)^4)-1","v":-5.938469384850531E-2},{"$f":"((Quarterly!H210/Quarterly!H209)^4)-1","v":-4.6232030621182751E-3},{"$f":"((Quarterly!I210/Quarterly!I209)^4)-1","v":-0.21384177248536806},{"$f":"((Quarterly!J210/Quarterly!J209)^4)-1","v":-0.25707926902173661},{"$f":"((Quarterly!K210/Quarterly!K209)^4)-1","v":-0.33336763324426522},{"$f":"((Quarterly!L210-Quarterly!L209))","v":-46.64},{"$f":"((Quarterly!M210/Quarterly!M209)^4)-1","v":-0.15342891636766898},{"$f":"((Quarterly!N210/Quarterly!N209)^4)-1","v":-0.20202757740141619},{"$f":"((Quarterly!O210/Quarterly!O209)^4)-1","v":2.5782728838659841E-2},{"$f":"((Quarterly!P210/Quarterly!P209)^4)-1","v":2.6411403713218151E-2},{"$f":"((Quarterly!Q210/Quarterly!Q209)^4)-1","v":0.12053110842326165},null,null,null,null,null,{"$f":"((Quarterly!W210/Quarterly!W209)^4)-1","v":-0.20412669688198115},{"$f":"((Quarterly!X210/Quarterly!X209)^4)-1","v":-0.16664212355079677},{"$f":"((Quarterly!Y210/Quarterly!Y209)^4)-1","v":0.1514110542922098},{"$f":"Quarterly!Z210-Quarterly!Z209","v":0.14999999999999991},{"$f":"((Quarterly!AA210/Quarterly!AA209)^4)-1","v":-0.89824157078268696},{"$f":"((Quarterly!AB210/Quarterly!AB209)^4)-1","v":-0.68444722209551201},{"$f":"Quarterly!AC210-Quarterly!AC209","v":-9.9999999999999867E-2},{"$f":"Quarterly!AD210-Quarterly!AD209","v":8},{"$f":"(Quarterly!AE210-Quarterly!AE209)*100","v":68.000000000000014},{"$f":"(Quarterly!AF210-Quarterly!AF209)*100","v":14.999999999999991},{"$f":"(Quarterly!AG210-Quarterly!AG209)*100","v":11.000000000000011},{"$f":"((Quarterly!AH210/Quarterly!AH209)^4)-1","v":-0.3118895570489697},{"$f":"((Quarterly!AI210/Quarterly!AI209)^4)-1","v":-5.1227463013867602E-3},{"$f":"((Quarterly!AJ210/Quarterly!AJ209)^4)-1","v":1.4966999122605129E-2},{"$f":"((Quarterly!AK210/Quarterly!AK209)^4)-1","v":1.8543780829415102E-2},{"$f":"((Quarterly!AL210/Quarterly!AL209)^4)-1","v":1.8475262386707048E-2},{"$f":"((Quarterly!AM210/Quarterly!AM209)^4)-1","v":-0.15872198853263741},{"$f":"((Quarterly!AN210/Quarterly!AN209)^4)-1","v":-0.21532431638752436},{"$f":"((Quarterly!AO210/Quarterly!AO209)^4)-1","v":-0.10942457974201736},{"$f":"(Quarterly!AP210-Quarterly!AP209)*100","v":13.66666666666665},{"$f":"Quarterly!AQ210-Quarterly!AQ209","v":-11.833333333333336},{"$f":"Quarterly!AR210-Quarterly!AR209","v":-14},{"$f":"Quarterly!AS210-Quarterly!AS209","v":4},{"$f":"Quarterly!AT210-Quarterly!AT209","v":-14.733333333333334},{"$f":"Quarterly!AU210-Quarterly!AU209","v":-15.166666666666671},{"$f":"Quarterly!AV210-Quarterly!AV209","v":-7.1666666666666714},{"$f":"Quarterly!AW210-Quarterly!AW209","v":-5.8333333333333357},{"$f":"Quarterly!AX210-Quarterly!AX209","v":-17.166666666666664},{"$f":"Quarterly!AY210-Quarterly!AY209","v":-46.166666666666671},{"$f":"Quarterly!AZ210-Quarterly!AZ209","v":-19.366666666666667},{"$f":"Quarterly!BA210-Quarterly!BA209","v":-2.0333333333333314},{"$f":"Quarterly!BB210-Quarterly!BB209","v":-12.06666666666667},{"$f":"((Quarterly!BC210/Quarterly!BC209)^4)-1","v":-0.3666476276039401},{"$f":"((Quarterly!BD210/Quarterly!BD209)^4)-1","v":-0.14039300048993197},{"$f":"((Quarterly!BE210/Quarterly!BE209)^4)-1","v":0.27761277332534284},{"$f":"((Quarterly!BF210/Quarterly!BF209)^4)-1","v":4.4161043061742289E-2},{"$f":"((Quarterly!BG210/Quarterly!BG209)^4)-1","v":-2.4880117455391648E-2},{"$f":"((Quarterly!BH210/Quarterly!BH209)^4)-1","v":0.14556232938826219},{"$f":"((Quarterly!BI210/Quarterly!BI209)^4)-1","v":7.0772552076710848E-2},{"$f":"((Quarterly!BJ210/Quarterly!BJ209)^4)-1","v":-0.85984997035374877},{"$f":"((Quarterly!BK210/Quarterly!BK209)^4)-1","v":0.98854064941406117},null,{"$f":"((Quarterly!BM210/Quarterly!BM209)^4)-1","v":-0.28195194356774189},{"$f":"((Quarterly!BN210/Quarterly!BN209)^4)-1","v":-0.30834639108204487},null,null,null,null,null,{"$f":"((Quarterly!BT210/Quarterly!BT209)^4)-1","v":0.2056174800010262},{"$f":"Quarterly!BU210-Quarterly!BU209","v":-2.3889999999999745E-2},{"$f":"Quarterly!BV210-Quarterly!BV209","v":8.7170000000000414E-2},{"$f":"((Quarterly!BW210/Quarterly!BW209)^4)-1","v":0.14520611267735717},{"$f":"((Quarterly!BX210/Quarterly!BX209)^4)-1","v":-0.65057544751427243},{"$f":"((Quarterly!BY210/Quarterly!BY209)^4)-1","v":-0.69394563052010394},{"$f":"((Quarterly!BZ210/Quarterly!BZ209)^4)-1","v":-0.1903703440629172},{"$f":"((Quarterly!CA210/Quarterly!CA209)^4)-1","v":-0.60723345948143215},{"$f":"((Quarterly!CB210/Quarterly!CB209)^4)-1","v":-0.67909056198630968},{"$f":"((Quarterly!CC210/Quarterly!CC209)^4)-1","v":-0.45517627931416671},{"$f":"((Quarterly!CD210/Quarterly!CD209)^4)-1","v":-0.33358727084659479},{"$f":"((Quarterly!CE210/Quarterly!CE209)^4)-1","v":-0.44862812861843171},null,{"$f":"((Quarterly!CG210/Quarterly!CG209)^4)-1","v":-0.28270378657704276},{"$f":"((Quarterly!CH210/Quarterly!CH209)^4)-1","v":-0.21486826926208102},null,{"$f":"((Quarterly!CJ210/Quarterly!CJ209)^4)-1","v":-0.44862812861843171},{"$f":"((Quarterly!CK210/Quarterly!CK209)^4)-1","v":-4.6855074365628413E-2},{"$f":"((Quarterly!CL210/Quarterly!CL209)^4)-1","v":3.2650674678481852},{"$f":"((Quarterly!CM210/Quarterly!CM209)^4)-1","v":-0.5941130638720068},{"$f":"((Quarterly!CN210/Quarterly!CN209)^4)-1","v":2.6086312416537139E-2},{"$f":"((Quarterly!CO210/Quarterly!CO209)^4)-1","v":1.1134015868568437E-2},{"$f":"((Quarterly!CP210/Quarterly!CP209)^4)-1","v":-1.4001083711549733E-2},{"$f":"((Quarterly!CQ210/Quarterly!CQ209)^4)-1","v":9.6153998516723682E-3},{"$f":"((Quarterly!CR210/Quarterly!CR209)^4)-1","v":-2.4206714218397374E-2},{"$f":"Quarterly!CS210-Quarterly!CS209","v":-7.1666666666666643},{"$f":"Quarterly!CT210-Quarterly!CT209","v":-16.566666666666677},null,null,null,null,null,{"$f":"((Quarterly!CZ210/Quarterly!CZ209)^4)-1","v":-8.850840086056222E-2},{"$f":"((Quarterly!DA210/Quarterly!DA209)^4)-1","v":9.8284755262227907E-3},null,null,null,null,null,{"$f":"((Quarterly!DG210/Quarterly!DG209)^4)-1","v":-8.3982697966419662E-2},{"$f":"((Quarterly!DH210-Quarterly!DH209)*60)","v":-14.000000000000057},{"$f":"Quarterly!DI210-Quarterly!DI209","v":-0.1666666666666714},{"$f":"(Quarterly!DJ210-Quarterly!DJ209)*100","v":190.00000000000003},{"$f":"(Quarterly!DK210-Quarterly!DK209)*100","v":86.666666666666714},{"$f":"((Quarterly!DL210/Quarterly!DL209)^4)-1","v":-9.9124356726755236E-2},null,null,null,{"$f":"((Quarterly!DP210/Quarterly!DP209)^4)-1","v":-4.5988501649859681E-2},null,null,null,"--",{"$f":"Quarterly!DU210-Quarterly!DU209","v":0.36666666666666892},{"$f":"((Quarterly!DV210/Quarterly!DV209)^4)-1","v":-7.5610109709605133E-2},{"$f":"((Quarterly!DW210/Quarterly!DW209)^4)-1","v":-0.10456313126564964},{"$f":"((Quarterly!DX210/Quarterly!DX209)^4)-1","v":-8.8384913916464747E-2},{"$f":"((Quarterly!DY210/Quarterly!DY209)^4)-1","v":-0.11806798331111101},{"$f":"((Quarterly!DZ210/Quarterly!DZ209)^4)-1","v":-7.9034100680251185E-2},{"$f":"((Quarterly!EA210/Quarterly!EA209)^4)-1","v":-5.6889773944371447E-2},{"$f":"((Quarterly!EB210/Quarterly!EB209)^4)-1","v":-0.13197548790438596},{"$f":"((Quarterly!EC210/Quarterly!EC209)^4)-1","v":-0.1411813587089561},null,null,null,null,null,{"$f":"((Quarterly!EI210/Quarterly!EI209)^4)-1","v":-0.16232562741171519},{"$f":"((Quarterly!EJ210/Quarterly!EJ209)^4)-1","v":-9.0336208387092332E-2},{"$f":"((Quarterly!EK210/Quarterly!EK209)^4)-1","v":-5.1462135553845711E-2},null,null,null,null,null,{"$f":"((Quarterly!EQ210/Quarterly!EQ209)^4)-1","v":-0.37793378245565723},{"$f":"((Quarterly!ER210/Quarterly!ER209)^4)-1","v":5.9159476504012209E-2},{"$f":"((Quarterly!ES210/Quarterly!ES209)^4)-1","v":5.8160465038875619E-2},null,null,null,null,null,{"$f":"(Quarterly!EY210-Quarterly!EY209)*100","v":-94.333333333333428},{"$f":"(Quarterly!EZ210-Quarterly!EZ209)*100","v":-143.33333333333337},{"$f":"(Quarterly!FA210-Quarterly!FA209)*100","v":16.333333333333311},{"$f":"(Quarterly!FB210-Quarterly!FB209)*100","v":163.33333333333346},147.00000000000014,{"$f":"(Quarterly!FD210-Quarterly!FD209)*100","v":-44.333333333333428},{"$f":"(Quarterly!FE210-Quarterly!FE209)*100","v":-119.66666666666666},{"$f":"(Quarterly!FF210-Quarterly!FF209)*100","v":-112.99999999999999},{"$f":"(Quarterly!FG210-Quarterly!FG209)*100","v":-114.33333333333336},{"$f":"(Quarterly!FH210-Quarterly!FH209)*100","v":-92.666666666666714},{"$f":"(Quarterly!FI210-Quarterly!FI209)*100","v":-60.999999999999986},52,null,null,null,null,null,{"$f":"((Quarterly!FP210/Quarterly!FP209)^4)-1","v":0.83241267123854645},{"$f":"((Quarterly!FQ210/Quarterly!FQ209)^4)-1","v":1.0534374803488067E-3},{"$f":"((Quarterly!FR210/Quarterly!FR209)^4)-1","v":1.5593233049386703},{"$f":"((Quarterly!FS210/Quarterly!FS209)^4)-1","v":-0.40802799693079583},{"$f":"((Quarterly!FT210/Quarterly!FT209)^4)-1","v":0.50266756479931796},{"$f":"((Quarterly!FU210/Quarterly!FU209)^4)-1","v":0.51027996877280191},{"$f":"((Quarterly!FV210/Quarterly!FV209)^4)-1","v":-0.6623585903392385},{"$f":"((Quarterly!FW210/Quarterly!FW209)^4)-1","v":-0.31798363440178934},{"$f":"((Quarterly!FX210/Quarterly!FX209)^4)-1","v":-0.42156647623961419},null,null,null,null,null,{"$f":"((Quarterly!GD210/Quarterly!GD209)^4)-1","v":-0.94009319949553616},{"$f":"((Quarterly!GE210/Quarterly!GE209)^4)-1","v":-0.94787752503570588},{"$f":"((Quarterly!GF210/Quarterly!GF209)^4)-1","v":-0.88589146208145986},{"$f":"((Quarterly!GG210/Quarterly!GG209)^4)-1","v":-0.7821734225298631},{"$f":"((Quarterly!GH210/Quarterly!GH209)^4)-1","v":{"$error":"#DIV/0!"}},"--",{"$f":"((Quarterly!GJ210/Quarterly!GJ209)^4)-1","v":-0.73749796928616307},{"$f":"((Quarterly!GK210/Quarterly!GK209)^4)-1","v":-0.21208098434543299},"--"]
["09'Q1",{"$f":"((Quarterly!B211/Quarterly!B210)^4)-1","v":-4.4877832897510239E-2},{"$f":"((Quarterly!C211/Quarterly!C210)^4)-1","v":-5.4279591484211021E-2},{"$f":"((Quarterly!D211/Quarterly!D210)^4)-1","v":-3.3062977830647378E-2},{"$f":"((Quarterly!E211/Quarterly!E210)^4)-1","v":-1.3647715355558865E-2},{"$f":"((Quarterly!F211/Quarterly!F210)^4)-1","v":7.3039652866317972E-3},{"$f":"((Quarterly!G211/Quarterly!G210)^4)-1","v":2.9409492295724426E-3},{"$f":"((Quarterly!H211/Quarterly!H210)^4)-1","v":-2.2356344361025959E-2},{"$f":"((Quarterly!I211/Quarterly!I210)^4)-1","v":-0.25976929969129359},{"$f":"((Quarterly!J211/Quarterly!J210)^4)-1","v":-0.25621035829635264},{"$f":"((Quarterly!K211/Quarterly!K210)^4)-1","v":-0.33228106143140179},{"$f":"((Quarterly!L211-Quarterly!L210))","v":-77.120999999999995},{"$f":"((Quarterly!M211/Quarterly!M210)^4)-1","v":-0.33442919510685132},{"$f":"((Quarterly!N211/Quarterly!N210)^4)-1","v":-0.28425715006816121},{"$f":"((Quarterly!O211/Quarterly!O210)^4)-1","v":-0.4752857051067928},{"$f":"((Quarterly!P211/Quarterly!P210)^4)-1","v":6.1540474264214495E-3},{"$f":"((Quarterly!Q211/Quarterly!Q210)^4)-1","v":4.3851403773044035},null,null,null,null,null,{"$f":"((Quarterly!W211/Quarterly!W210)^4)-1","v":-0.22929300125886687},{"$f":"((Quarterly!X211/Quarterly!X210)^4)-1","v":-0.21542386484799203},{"$f":"((Quarterly!Y211/Quarterly!Y210)^4)-1","v":-0.10634238289500486},{"$f":"Quarterly!Z211-Quarterly!Z210","v":0.8},{"$f":"((Quarterly!AA211/Quarterly!AA210)^4)-1","v":4.8504426674839092},{"$f":"((Quarterly!AB211/Quarterly!AB210)^4)-1","v":1.9959911706335203},{"$f":"Quarterly!AC211-Quarterly!AC210","v":-7.3999999999999995},{"$f":"Quarterly!AD211-Quarterly!AD210","v":-50.300000000000004},{"$f":"(Quarterly!AE211-Quarterly!AE210)*100","v":77},{"$f":"(Quarterly!AF211-Quarterly!AF210)*100","v":80},{"$f":"(Quarterly!AG211-Quarterly!AG210)*100","v":68.999999999999972},{"$f":"((Quarterly!AH211/Quarterly!AH210)^4)-1","v":0.1399490563123067},{"$f":"((Quarterly!AI211/Quarterly!AI210)^4)-1","v":0.25418551942996226},{"$f":"((Quarterly!AJ211/Quarterly!AJ210)^4)-1","v":7.4349122482650909E-3},{"$f":"((Quarterly!AK211/Quarterly!AK210)^4)-1","v":7.352910232400367E-3},{"$f":"((Quarterly!AL211/Quarterly!AL210)^4)-1","v":1.1004023016777387E-2},{"$f":"((Quarterly!AM211/Quarterly!AM210)^4)-1","v":-0.2060652913293276},{"$f":"((Quarterly!AN211/Quarterly!AN210)^4)-1","v":-0.24306693902357668},{"$f":"((Quarterly!AO211/Quarterly!AO210)^4)-1","v":-0.16530680681637233},{"$f":"(Quarterly!AP211-Quarterly!AP210)*100","v":4.3333333333333446},{"$f":"Quarterly!AQ211-Quarterly!AQ210","v":-0.69999999999999574},{"$f":"Quarterly!AR211-Quarterly!AR210","v":5.5},{"$f":"Quarterly!AS211-Quarterly!AS210","v":-2.1666666666666643},{"$f":"Quarterly!AT211-Quarterly!AT210","v":-5.0333333333333279},{"$f":"Quarterly!AU211-Quarterly!AU210","v":-1.1666666666666643},{"$f":"Quarterly!AV211-Quarterly!AV210","v":-5.3333333333333286},{"$f":"Quarterly!AW211-Quarterly!AW210","v":-3.6666666666666643},{"$f":"Quarterly!AX211-Quarterly!AX210","v":6.7666666666666657},{"$f":"Quarterly!AY211-Quarterly!AY210","v":2.8333333333333357},{"$f":"Quarterly!AZ211-Quarterly!AZ210","v":2.9666666666666615},{"$f":"Quarterly!BA211-Quarterly!BA210","v":-4.3333333333333357},{"$f":"Quarterly!BB211-Quarterly!BB210","v":3.7333333333333343},{"$f":"((Quarterly!BC211/Quarterly!BC210)^4)-1","v":-0.48660569060816827},{"$f":"((Quarterly!BD211/Quarterly!BD210)^4)-1","v":-0.16275301540429965},{"$f":"((Quarterly!BE211/Quarterly!BE210)^4)-1","v":0.11876206483073704},{"$f":"((Quarterly!BF211/Quarterly!BF210)^4)-1","v":-9.5692379296065999E-2},{"$f":"((Quarterly!BG211/Quarterly!BG210)^4)-1","v":3.1208328282628539E-2},{"$f":"((Quarterly!BH211/Quarterly!BH210)^4)-1","v":-7.0679431587837738E-2},{"$f":"((Quarterly!BI211/Quarterly!BI210)^4)-1","v":-0.123057550300115},{"$f":"((Quarterly!BJ211/Quarterly!BJ210)^4)-1","v":0.26492104434600994},{"$f":"((Quarterly!BK211/Quarterly!BK210)^4)-1","v":10.51483644232319},null,{"$f":"((Quarterly!BM211/Quarterly!BM210)^4)-1","v":-8.4193389231582483E-2},{"$f":"((Quarterly!BN211/Quarterly!BN210)^4)-1","v":-9.1084182800624691E-2},null,null,null,null,null,{"$f":"((Quarterly!BT211/Quarterly!BT210)^4)-1","v":7.9342377284491894E-2},{"$f":"Quarterly!BU211-Quarterly!BU210","v":-9.9800000000000111E-2},{"$f":"Quarterly!BV211-Quarterly!BV210","v":6.9499999999997897E-3},{"$f":"((Quarterly!BW211/Quarterly!BW210)^4)-1","v":9.4030016077994327E-2},{"$f":"((Quarterly!BX211/Quarterly!BX210)^4)-1","v":-0.60482665710165873},{"$f":"((Quarterly!BY211/Quarterly!BY210)^4)-1","v":-0.49396167820974812},{"$f":"((Quarterly!BZ211/Quarterly!BZ210)^4)-1","v":-0.19483880939945319},{"$f":"((Quarterly!CA211/Quarterly!CA210)^4)-1","v":-0.32557412708694822},{"$f":"((Quarterly!CB211/Quarterly!CB210)^4)-1","v":-0.17053280982526409},{"$f":"((Quarterly!CC211/Quarterly!CC210)^4)-1","v":0.19107032261908485},{"$f":"((Quarterly!CD211/Quarterly!CD210)^4)-1","v":-0.38637039108472493},{"$f":"((Quarterly!CE211/Quarterly!CE210)^4)-1","v":-0.33403258087882592},null,{"$f":"((Quarterly!CG211/Quarterly!CG210)^4)-1","v":-0.29190941872025722},{"$f":"((Quarterly!CH211/Quarterly!CH210)^4)-1","v":-4.6349649690978767E-2},null,{"$f":"((Quarterly!CJ211/Quarterly!CJ210)^4)-1","v":-0.33403258087882592},{"$f":"((Quarterly!CK211/Quarterly!CK210)^4)-1","v":-0.10068325901628972},{"$f":"((Quarterly!CL211/Quarterly!CL210)^4)-1","v":3.6735811707571342E-2},{"$f":"((Quarterly!CM211/Quarterly!CM210)^4)-1","v":-0.66392021580423699},{"$f":"((Quarterly!CN211/Quarterly!CN210)^4)-1","v":-7.6833693630421473E-3},{"$f":"((Quarterly!CO211/Quarterly!CO210)^4)-1","v":0.23912415521312935},{"$f":"((Quarterly!CP211/Quarterly!CP210)^4)-1","v":-2.1804019867867619E-2},{"$f":"((Quarterly!CQ211/Quarterly!CQ210)^4)-1","v":8.1087492700966379E-3},{"$f":"((Quarterly!CR211/Quarterly!CR210)^4)-1","v":-0.22252714562909626},{"$f":"Quarterly!CS211-Quarterly!CS210","v":0.60000000000000853},{"$f":"Quarterly!CT211-Quarterly!CT210","v":-10.833333333333332},null,null,null,null,null,{"$f":"((Quarterly!CZ211/Quarterly!CZ210)^4)-1","v":-2.7232185497519046E-2},{"$f":"((Quarterly!DA211/Quarterly!DA210)^4)-1","v":1.6895105317730419E-2},null,null,null,null,null,{"$f":"((Quarterly!DG211/Quarterly!DG210)^4)-1","v":-0.10367578374864705},{"$f":"((Quarterly!DH211-Quarterly!DH210)*60)","v":-12.000000000000171},{"$f":"Quarterly!DI211-Quarterly!DI210","v":-0.19999999999998863},{"$f":"(Quarterly!DJ211-Quarterly!DJ210)*100","v":240.00000000000023},{"$f":"(Quarterly!DK211-Quarterly!DK210)*100","v":140.00000000000003},{"$f":"((Quarterly!DL211/Quarterly!DL210)^4)-1","v":-0.17936545049182195},null,null,null,{"$f":"((Quarterly!DP211/Quarterly!DP210)^4)-1","v":-6.4848226416303056E-2},null,null,null,"--",{"$f":"Quarterly!DU211-Quarterly!DU210","v":1.3333333333333339},{"$f":"((Quarterly!DV211/Quarterly!DV210)^4)-1","v":-0.12845861616607768},{"$f":"((Quarterly!DW211/Quarterly!DW210)^4)-1","v":-0.23366984210033215},{"$f":"((Quarterly!DX211/Quarterly!DX210)^4)-1","v":-0.20048054661931758},{"$f":"((Quarterly!DY211/Quarterly!DY210)^4)-1","v":-0.28034713547010082},{"$f":"((Quarterly!DZ211/Quarterly!DZ210)^4)-1","v":-0.17471125231559692},{"$f":"((Quarterly!EA211/Quarterly!EA210)^4)-1","v":-0.19366155722406331},{"$f":"((Quarterly!EB211/Quarterly!EB210)^4)-1","v":-0.12552113194608094},{"$f":"((Quarterly!EC211/Quarterly!EC210)^4)-1","v":-0.30757212277024837},null,null,null,null,null,{"$f":"((Quarterly!EI211/Quarterly!EI210)^4)-1","v":-0.13663746267726218},{"$f":"((Quarterly!EJ211/Quarterly!EJ210)^4)-1","v":-6.3260521008526083E-2},{"$f":"((Quarterly!EK211/Quarterly!EK210)^4)-1","v":-5.1892554176548811E-2},null,null,null,null,null,{"$f":"((Quarterly!EQ211/Quarterly!EQ210)^4)-1","v":-0.17772873923268961},{"$f":"((Quarterly!ER211/Quarterly!ER210)^4)-1","v":9.4135456460489042E-3},{"$f":"((Quarterly!ES211/Quarterly!ES210)^4)-1","v":1.7021272746322591E-3},null,null,null,null,null,{"$f":"(Quarterly!EY211-Quarterly!EY210)*100","v":-80.666666666666572},{"$f":"(Quarterly!EZ211-Quarterly!EZ210)*100","v":-32.333333333333329},{"$f":"(Quarterly!FA211-Quarterly!FA210)*100","v":-54.3333333333333},{"$f":"(Quarterly!FB211-Quarterly!FB210)*100","v":-62.66666666666687},-8.3333333333335702,{"$f":"(Quarterly!FD211-Quarterly!FD210)*100","v":-80.999999999999872},{"$f":"(Quarterly!FE211-Quarterly!FE210)*100","v":-8.3333333333333339},{"$f":"(Quarterly!FF211-Quarterly!FF210)*100","v":-42.666666666666671},{"$f":"(Quarterly!FG211-Quarterly!FG210)*100","v":-30.666666666666664},{"$f":"(Quarterly!FH211-Quarterly!FH210)*100","v":-41.666666666666629},{"$f":"(Quarterly!FI211-Quarterly!FI210)*100","v":-51.666666666666657},-8.9999999999999858,null,null,null,null,null,{"$f":"((Quarterly!FP211/Quarterly!FP210)^4)-1","v":0.11345651100532894},{"$f":"((Quarterly!FQ211/Quarterly!FQ210)^4)-1","v":-1.8507645277332507E-3},{"$f":"((Quarterly!FR211/Quarterly!FR210)^4)-1","v":0.46723214888304554},{"$f":"((Quarterly!FS211/Quarterly!FS210)^4)-1","v":-4.2816019558836182E-2},{"$f":"((Quarterly!FT211/Quarterly!FT210)^4)-1","v":0.10632288347460683},{"$f":"((Quarterly!FU211/Quarterly!FU210)^4)-1","v":7.2615630609051518E-2},{"$f":"((Quarterly!FV211/Quarterly!FV210)^4)-1","v":-0.67887162829062719},{"$f":"((Quarterly!FW211/Quarterly!FW210)^4)-1","v":-0.69725238658762034},{"$f":"((Quarterly!FX211/Quarterly!FX210)^4)-1","v":-0.62156742362915951},null,null,null,null,null,{"$f":"((Quarterly!GD211/Quarterly!GD210)^4)-1","v":-0.70657418635024716},{"$f":"((Quarterly!GE211/Quarterly!GE210)^4)-1","v":-0.56332626647172923},{"$f":"((Quarterly!GF211/Quarterly!GF210)^4)-1","v":-0.44650375092528916},{"$f":"((Quarterly!GG211/Quarterly!GG210)^4)-1","v":-0.70154123234265187},{"$f":"((Quarterly!GH211/Quarterly!GH210)^4)-1","v":{"$error":"#DIV/0!"}},"--",{"$f":"((Quarterly!GJ211/Quarterly!GJ210)^4)-1","v":-0.759949962283613},{"$f":"((Quarterly!GK211/Quarterly!GK210)^4)-1","v":0.17560089090346231},"--"]
["09'Q2",{"$f":"((Quarterly!B212/Quarterly!B211)^4)-1","v":-1.2033287718999586E-2},{"$f":"((Quarterly!C212/Quarterly!C211)^4)-1","v":-5.4039640311228654E-3},{"$f":"((Quarterly!D212/Quarterly!D211)^4)-1","v":5.0974962503986809E-3},{"$f":"((Quarterly!E212/Quarterly!E211)^4)-1","v":-1.7934112324320739E-2},{"$f":"((Quarterly!F212/Quarterly!F211)^4)-1","v":-2.3713713285681948E-2},{"$f":"((Quarterly!G212/Quarterly!G211)^4)-1","v":-2.8675001888272544E-2},{"$f":"((Quarterly!H212/Quarterly!H211)^4)-1","v":-1.3757027805638145E-2},{"$f":"((Quarterly!I212/Quarterly!I211)^4)-1","v":-0.1225556698408391},{"$f":"((Quarterly!J212/Quarterly!J211)^4)-1","v":-5.5832205754239861E-2},{"$f":"((Quarterly!K212/Quarterly!K211)^4)-1","v":-0.2189028120751465},{"$f":"((Quarterly!L212-Quarterly!L211))","v":-45.64100000000002},{"$f":"((Quarterly!M212/Quarterly!M211)^4)-1","v":-0.15331214372455082},{"$f":"((Quarterly!N212/Quarterly!N211)^4)-1","v":1.0540686162991753E-2},{"$f":"((Quarterly!O212/Quarterly!O211)^4)-1","v":-0.56593931055196944},{"$f":"((Quarterly!P212/Quarterly!P211)^4)-1","v":7.4979894806163738E-2},{"$f":"((Quarterly!Q212/Quarterly!Q211)^4)-1","v":1.7115242913769269},null,null,null,null,null,{"$f":"((Quarterly!W212/Quarterly!W211)^4)-1","v":-9.4326372557026361E-2},{"$f":"((Quarterly!X212/Quarterly!X211)^4)-1","v":-0.11931640301447088},{"$f":"((Quarterly!Y212/Quarterly!Y211)^4)-1","v":-0.15724443534250276},{"$f":"Quarterly!Z212-Quarterly!Z211","v":0.29999999999999982},{"$f":"((Quarterly!AA212/Quarterly!AA211)^4)-1","v":0.32617995451219639},{"$f":"((Quarterly!AB212/Quarterly!AB211)^4)-1","v":6.5229756480742473E-2},{"$f":"Quarterly!AC212-Quarterly!AC211","v":5.6},{"$f":"Quarterly!AD212-Quarterly!AD211","v":-5.7999999999999972},{"$f":"(Quarterly!AE212-Quarterly!AE211)*100","v":63.999999999999972},{"$f":"(Quarterly!AF212-Quarterly!AF211)*100","v":29.999999999999982},{"$f":"(Quarterly!AG212-Quarterly!AG211)*100","v":33.000000000000007},{"$f":"((Quarterly!AH212/Quarterly!AH211)^4)-1","v":0.13961090712830537},{"$f":"((Quarterly!AI212/Quarterly!AI211)^4)-1","v":0.12461996103331896},{"$f":"((Quarterly!AJ212/Quarterly!AJ211)^4)-1","v":3.7054152082209857E-3},{"$f":"((Quarterly!AK212/Quarterly!AK211)^4)-1","v":7.3394187670281497E-3},{"$f":"((Quarterly!AL212/Quarterly!AL211)^4)-1","v":1.097383421740572E-2},{"$f":"((Quarterly!AM212/Quarterly!AM211)^4)-1","v":-0.11517905869956224},{"$f":"((Quarterly!AN212/Quarterly!AN211)^4)-1","v":-0.11076147197152963},{"$f":"((Quarterly!AO212/Quarterly!AO211)^4)-1","v":-0.14570121623806709},{"$f":"(Quarterly!AP212-Quarterly!AP211)*100","v":-4.0000000000000036},{"$f":"Quarterly!AQ212-Quarterly!AQ211","v":6.8666666666666671},{"$f":"Quarterly!AR212-Quarterly!AR211","v":13.333333333333336},{"$f":"Quarterly!AS212-Quarterly!AS211","v":-7.1666666666666643},{"$f":"Quarterly!AT212-Quarterly!AT211","v":8.8666666666666636},{"$f":"Quarterly!AU212-Quarterly!AU211","v":9.1666666666666643},{"$f":"Quarterly!AV212-Quarterly!AV211","v":9.6666666666666643},{"$f":"Quarterly!AW212-Quarterly!AW211","v":-3.5},{"$f":"Quarterly!AX212-Quarterly!AX211","v":14.633333333333333},{"$f":"Quarterly!AY212-Quarterly!AY211","v":12.166666666666668},{"$f":"Quarterly!AZ212-Quarterly!AZ211","v":12.400000000000006},{"$f":"Quarterly!BA212-Quarterly!BA211","v":2.8333333333333357},{"$f":"Quarterly!BB212-Quarterly!BB211","v":3.5666666666666629},{"$f":"((Quarterly!BC212/Quarterly!BC211)^4)-1","v":-0.1057823469033371},{"$f":"((Quarterly!BD212/Quarterly!BD211)^4)-1","v":-2.7347847380775447E-2},{"$f":"((Quarterly!BE212/Quarterly!BE211)^4)-1","v":0.1325027257085909},{"$f":"((Quarterly!BF212/Quarterly!BF211)^4)-1","v":0.10119188991903583},{"$f":"((Quarterly!BG212/Quarterly!BG211)^4)-1","v":7.8649986352804291E-2},{"$f":"((Quarterly!BH212/Quarterly!BH211)^4)-1","v":7.798237752708137E-2},{"$f":"((Quarterly!BI212/Quarterly!BI211)^4)-1","v":2.0933268194663679E-2},{"$f":"((Quarterly!BJ212/Quarterly!BJ211)^4)-1","v":0.22536743783293978},{"$f":"((Quarterly!BK212/Quarterly!BK211)^4)-1","v":0.88305605997500924},null,{"$f":"((Quarterly!BM212/Quarterly!BM211)^4)-1","v":1.0413835640081359E-2},{"$f":"((Quarterly!BN212/Quarterly!BN211)^4)-1","v":1.3329788385770147E-2},null,null,null,null,null,{"$f":"((Quarterly!BT212/Quarterly!BT211)^4)-1","v":-0.1087118087083071},{"$f":"Quarterly!BU212-Quarterly!BU211","v":-0.34645999999999866},{"$f":"Quarterly!BV212-Quarterly!BV211","v":-0.34692000000000078},{"$f":"((Quarterly!BW212/Quarterly!BW211)^4)-1","v":0.12418173429218071},{"$f":"((Quarterly!BX212/Quarterly!BX211)^4)-1","v":6.7596929627198987E-2},{"$f":"((Quarterly!BY212/Quarterly!BY211)^4)-1","v":0.16252526524169109},{"$f":"((Quarterly!BZ212/Quarterly!BZ211)^4)-1","v":-0.11153168693694637},{"$f":"((Quarterly!CA212/Quarterly!CA211)^4)-1","v":0.14985414932591179},{"$f":"((Quarterly!CB212/Quarterly!CB211)^4)-1","v":0.1441700687651295},{"$f":"((Quarterly!CC212/Quarterly!CC211)^4)-1","v":0.32116119876680171},{"$f":"((Quarterly!CD212/Quarterly!CD211)^4)-1","v":-0.37090359864497302},{"$f":"((Quarterly!CE212/Quarterly!CE211)^4)-1","v":0.24518471558962118},null,{"$f":"((Quarterly!CG212/Quarterly!CG211)^4)-1","v":0.2075763681974887},{"$f":"((Quarterly!CH212/Quarterly!CH211)^4)-1","v":0.13226851956653607},null,{"$f":"((Quarterly!CJ212/Quarterly!CJ211)^4)-1","v":0.24518471558962118},{"$f":"((Quarterly!CK212/Quarterly!CK211)^4)-1","v":1.868850884395612E-2},{"$f":"((Quarterly!CL212/Quarterly!CL211)^4)-1","v":0.90326270601376657},{"$f":"((Quarterly!CM212/Quarterly!CM211)^4)-1","v":1.0363516095690342},{"$f":"((Quarterly!CN212/Quarterly!CN211)^4)-1","v":2.8788644972722377E-2},{"$f":"((Quarterly!CO212/Quarterly!CO211)^4)-1","v":0.14795516101301009},{"$f":"((Quarterly!CP212/Quarterly!CP211)^4)-1","v":-4.8065005856051779E-2},{"$f":"((Quarterly!CQ212/Quarterly!CQ211)^4)-1","v":7.764034455431057E-3},{"$f":"((Quarterly!CR212/Quarterly!CR211)^4)-1","v":-3.239643033636519E-2},{"$f":"Quarterly!CS212-Quarterly!CS211","v":9.93333333333333},{"$f":"Quarterly!CT212-Quarterly!CT211","v":18.433333333333326},null,null,null,null,null,{"$f":"((Quarterly!CZ212/Quarterly!CZ211)^4)-1","v":0},{"$f":"((Quarterly!DA212/Quarterly!DA211)^4)-1","v":2.0548547110970983E-2},null,null,null,null,null,{"$f":"((Quarterly!DG212/Quarterly!DG211)^4)-1","v":-8.3139796272017064E-2},{"$f":"((Quarterly!DH212-Quarterly!DH211)*60)","v":-7.9999999999995453},{"$f":"Quarterly!DI212-Quarterly!DI211","v":0},{"$f":"(Quarterly!DJ212-Quarterly!DJ211)*100","v":123.33333333333326},{"$f":"(Quarterly!DK212-Quarterly!DK211)*100","v":103.33333333333314},{"$f":"((Quarterly!DL212/Quarterly!DL211)^4)-1","v":-0.15493598693610022},null,null,null,{"$f":"((Quarterly!DP212/Quarterly!DP211)^4)-1","v":-5.4633124096429175E-2},null,null,null,"--",{"$f":"Quarterly!DU212-Quarterly!DU211","v":3.2666666666666657},{"$f":"((Quarterly!DV212/Quarterly!DV211)^4)-1","v":-0.11414967952262078},{"$f":"((Quarterly!DW212/Quarterly!DW211)^4)-1","v":-3.473401165845047E-2},{"$f":"((Quarterly!DX212/Quarterly!DX211)^4)-1","v":-9.0594264722429707E-2},{"$f":"((Quarterly!DY212/Quarterly!DY211)^4)-1","v":-3.2187951694520045E-3},{"$f":"((Quarterly!DZ212/Quarterly!DZ211)^4)-1","v":-0.11534320983083124},{"$f":"((Quarterly!EA212/Quarterly!EA211)^4)-1","v":-0.12492108562642401},{"$f":"((Quarterly!EB212/Quarterly!EB211)^4)-1","v":-9.1376991591821E-2},{"$f":"((Quarterly!EC212/Quarterly!EC211)^4)-1","v":0.11205574906720539},null,null,null,null,null,{"$f":"((Quarterly!EI212/Quarterly!EI211)^4)-1","v":-3.1397328605809349E-2},{"$f":"((Quarterly!EJ212/Quarterly!EJ211)^4)-1","v":4.5267032747919878E-3},{"$f":"((Quarterly!EK212/Quarterly!EK211)^4)-1","v":3.5798319007920298E-3},null,null,null,null,null,{"$f":"((Quarterly!EQ212/Quarterly!EQ211)^4)-1","v":4.3150697111129732E-2},{"$f":"((Quarterly!ER212/Quarterly!ER211)^4)-1","v":1.0963092606485869E-2},{"$f":"((Quarterly!ES212/Quarterly!ES211)^4)-1","v":-2.5480398992483444E-3},null,null,null,null,null,{"$f":"(Quarterly!EY212-Quarterly!EY211)*100","v":0},{"$f":"(Quarterly!EZ212-Quarterly!EZ211)*100","v":-0.33333333333333826},{"$f":"(Quarterly!FA212-Quarterly!FA211)*100","v":23.999999999999932},{"$f":"(Quarterly!FB212-Quarterly!FB211)*100","v":-22.999999999999865},-46.999999999999801,{"$f":"(Quarterly!FD212-Quarterly!FD211)*100","v":-3.3333333333333215},{"$f":"(Quarterly!FE212-Quarterly!FE211)*100","v":-4.0000000000000009},{"$f":"(Quarterly!FF212-Quarterly!FF211)*100","v":-4.666666666666675},{"$f":"(Quarterly!FG212-Quarterly!FG211)*100","v":10.666666666666668},{"$f":"(Quarterly!FH212-Quarterly!FH211)*100","v":47},{"$f":"(Quarterly!FI212-Quarterly!FI211)*100","v":57.666666666666714},62.333333333333385,null,null,null,null,null,{"$f":"((Quarterly!FP212/Quarterly!FP211)^4)-1","v":-0.22548640120426067},{"$f":"((Quarterly!FQ212/Quarterly!FQ211)^4)-1","v":-4.0507263141227323E-3},{"$f":"((Quarterly!FR212/Quarterly!FR211)^4)-1","v":-0.26551171377923088},{"$f":"((Quarterly!FS212/Quarterly!FS211)^4)-1","v":0.19355877945981748},{"$f":"((Quarterly!FT212/Quarterly!FT211)^4)-1","v":-0.13965860541249908},{"$f":"((Quarterly!FU212/Quarterly!FU211)^4)-1","v":-0.15173816847880006},{"$f":"((Quarterly!FV212/Quarterly!FV211)^4)-1","v":-4.1125843842477416E-2},{"$f":"((Quarterly!FW212/Quarterly!FW211)^4)-1","v":0.25697157136238546},{"$f":"((Quarterly!FX212/Quarterly!FX211)^4)-1","v":0.25560338608419908},null,null,null,null,null,{"$f":"((Quarterly!GD212/Quarterly!GD211)^4)-1","v":2.6904173490053993},{"$f":"((Quarterly!GE212/Quarterly!GE211)^4)-1","v":2.0452165132574329},{"$f":"((Quarterly!GF212/Quarterly!GF211)^4)-1","v":1.1346783151213504},{"$f":"((Quarterly!GG212/Quarterly!GG211)^4)-1","v":0.26411429388131968},{"$f":"((Quarterly!GH212/Quarterly!GH211)^4)-1","v":-3.9605333238452389E-2},{"$f":"((Quarterly!GI212/Quarterly!GI211)^4)-1","v":-3.5824876595061395E-2},{"$f":"((Quarterly!GJ212/Quarterly!GJ211)^4)-1","v":-0.47907016874250385},{"$f":"((Quarterly!GK212/Quarterly!GK211)^4)-1","v":-0.36036683428066862},"--"]
["09'Q3",{"$f":"((Quarterly!B213/Quarterly!B212)^4)-1","v":1.2253037137192058E-2},{"$f":"((Quarterly!C213/Quarterly!C212)^4)-1","v":1.3137635815516857E-2},{"$f":"((Quarterly!D213/Quarterly!D212)^4)-1","v":1.6410964463269728E-2},{"$f":"((Quarterly!E213/Quarterly!E212)^4)-1","v":2.4491728288071002E-2},{"$f":"((Quarterly!F213/Quarterly!F212)^4)-1","v":0.2057060041329215},{"$f":"((Quarterly!G213/Quarterly!G212)^4)-1","v":1.5116281377984375E-2},{"$f":"((Quarterly!H213/Quarterly!H212)^4)-1","v":1.9091394646761906E-3},{"$f":"((Quarterly!I213/Quarterly!I212)^4)-1","v":-5.0215821815062234E-2},{"$f":"((Quarterly!J213/Quarterly!J212)^4)-1","v":3.3466133776552276E-2},{"$f":"((Quarterly!K213/Quarterly!K212)^4)-1","v":0.21043412093513103},{"$f":"((Quarterly!L213-Quarterly!L212))","v":-15.994},{"$f":"((Quarterly!M213/Quarterly!M212)^4)-1","v":0.15821210926034612},{"$f":"((Quarterly!N213/Quarterly!N212)^4)-1","v":0.14777916802291502},{"$f":"((Quarterly!O213/Quarterly!O212)^4)-1","v":0.20283191701118031},{"$f":"((Quarterly!P213/Quarterly!P212)^4)-1","v":2.2142757025043425E-2},{"$f":"((Quarterly!Q213/Quarterly!Q212)^4)-1","v":1.8777526700714198E-2},null,null,null,null,null,{"$f":"((Quarterly!W213/Quarterly!W212)^4)-1","v":0.10415051261163688},{"$f":"((Quarterly!X213/Quarterly!X212)^4)-1","v":6.0927485832070749E-2},{"$f":"((Quarterly!Y213/Quarterly!Y212)^4)-1","v":-0.24660662350193652},{"$f":"Quarterly!Z213-Quarterly!Z212","v":0.18000000000000016},{"$f":"((Quarterly!AA213/Quarterly!AA212)^4)-1","v":0.66625373086538819},{"$f":"((Quarterly!AB213/Quarterly!AB212)^4)-1","v":0.52328778226047312},{"$f":"Quarterly!AC213-Quarterly!AC212","v":0},{"$f":"Quarterly!AD213-Quarterly!AD212","v":8.7999999999999972},{"$f":"(Quarterly!AE213-Quarterly!AE212)*100","v":66.000000000000014},{"$f":"(Quarterly!AF213-Quarterly!AF212)*100","v":18.000000000000014},{"$f":"(Quarterly!AG213-Quarterly!AG212)*100","v":15.000000000000036},{"$f":"((Quarterly!AH213/Quarterly!AH212)^4)-1","v":0.2618369937225391},{"$f":"((Quarterly!AI213/Quarterly!AI212)^4)-1","v":0.15227868240591125},{"$f":"((Quarterly!AJ213/Quarterly!AJ212)^4)-1","v":1.4869633506751523E-2},{"$f":"((Quarterly!AK213/Quarterly!AK212)^4)-1","v":1.4692132360427657E-2},{"$f":"((Quarterly!AL213/Quarterly!AL212)^4)-1","v":1.4611630189284464E-2},{"$f":"((Quarterly!AM213/Quarterly!AM212)^4)-1","v":5.6897857456832179E-2},{"$f":"((Quarterly!AN213/Quarterly!AN212)^4)-1","v":8.1537056016941944E-2},{"$f":"((Quarterly!AO213/Quarterly!AO212)^4)-1","v":-0.1268061392552513},{"$f":"(Quarterly!AP213-Quarterly!AP212)*100","v":-9.6666666666666465},{"$f":"Quarterly!AQ213-Quarterly!AQ212","v":10.266666666666666},{"$f":"Quarterly!AR213-Quarterly!AR212","v":6.6666666666666643},{"$f":"Quarterly!AS213-Quarterly!AS212","v":-6.1666666666666714},{"$f":"Quarterly!AT213-Quarterly!AT212","v":10.433333333333337},{"$f":"Quarterly!AU213-Quarterly!AU212","v":6.5},{"$f":"Quarterly!AV213-Quarterly!AV212","v":7},{"$f":"Quarterly!AW213-Quarterly!AW212","v":3.8333333333333286},{"$f":"Quarterly!AX213-Quarterly!AX212","v":12.666666666666664},{"$f":"Quarterly!AY213-Quarterly!AY212","v":19.333333333333329},{"$f":"Quarterly!AZ213-Quarterly!AZ212","v":14.700000000000003},{"$f":"Quarterly!BA213-Quarterly!BA212","v":7.1333333333333329},{"$f":"Quarterly!BB213-Quarterly!BB212","v":4.8999999999999986},{"$f":"((Quarterly!BC213/Quarterly!BC212)^4)-1","v":0.27734088343982743},{"$f":"((Quarterly!BD213/Quarterly!BD212)^4)-1","v":9.8986728267511426E-2},{"$f":"((Quarterly!BE213/Quarterly!BE212)^4)-1","v":-7.7304341902055818E-2},{"$f":"((Quarterly!BF213/Quarterly!BF212)^4)-1","v":2.6995653461760361E-2},{"$f":"((Quarterly!BG213/Quarterly!BG212)^4)-1","v":5.8715383591804615E-2},{"$f":"((Quarterly!BH213/Quarterly!BH212)^4)-1","v":-7.2166799883636168E-3},{"$f":"((Quarterly!BI213/Quarterly!BI212)^4)-1","v":-2.9976891622208734E-2},{"$f":"((Quarterly!BJ213/Quarterly!BJ212)^4)-1","v":0.65663405042884615},{"$f":"((Quarterly!BK213/Quarterly!BK212)^4)-1","v":0.40024492715413684},null,{"$f":"((Quarterly!BM213/Quarterly!BM212)^4)-1","v":8.2629557850263158E-2},{"$f":"((Quarterly!BN213/Quarterly!BN212)^4)-1","v":9.5079699893322545E-2},null,null,null,null,null,{"$f":"((Quarterly!BT213/Quarterly!BT212)^4)-1","v":-5.3280324844245275E-2},{"$f":"Quarterly!BU213-Quarterly!BU212","v":-0.13991000000000042},{"$f":"Quarterly!BV213-Quarterly!BV212","v":-8.2110000000000127E-2},{"$f":"((Quarterly!BW213/Quarterly!BW212)^4)-1","v":0.11430264554616043},{"$f":"((Quarterly!BX213/Quarterly!BX212)^4)-1","v":0.4697543339039969},{"$f":"((Quarterly!BY213/Quarterly!BY212)^4)-1","v":0.38394147876861773},{"$f":"((Quarterly!BZ213/Quarterly!BZ212)^4)-1","v":5.915488317676032E-2},{"$f":"((Quarterly!CA213/Quarterly!CA212)^4)-1","v":1.146680334830811},{"$f":"((Quarterly!CB213/Quarterly!CB212)^4)-1","v":-0.15010710323292376},{"$f":"((Quarterly!CC213/Quarterly!CC212)^4)-1","v":-2.6567041746707765E-2},{"$f":"((Quarterly!CD213/Quarterly!CD212)^4)-1","v":-0.34690790335906363},{"$f":"((Quarterly!CE213/Quarterly!CE212)^4)-1","v":0.45641319133040525},null,{"$f":"((Quarterly!CG213/Quarterly!CG212)^4)-1","v":1.2339185742219705E-2},{"$f":"((Quarterly!CH213/Quarterly!CH212)^4)-1","v":0.45970495619446683},null,{"$f":"((Quarterly!CJ213/Quarterly!CJ212)^4)-1","v":0.45641319133040525},{"$f":"((Quarterly!CK213/Quarterly!CK212)^4)-1","v":-1.6640973500216205E-2},{"$f":"((Quarterly!CL213/Quarterly!CL212)^4)-1","v":-0.62368936894672133},{"$f":"((Quarterly!CM213/Quarterly!CM212)^4)-1","v":0.93435552561982327},{"$f":"((Quarterly!CN213/Quarterly!CN212)^4)-1","v":-4.3127524296690756E-2},{"$f":"((Quarterly!CO213/Quarterly!CO212)^4)-1","v":0.13979034599226958},{"$f":"((Quarterly!CP213/Quarterly!CP212)^4)-1","v":-3.8018145513917245E-2},{"$f":"((Quarterly!CQ213/Quarterly!CQ212)^4)-1","v":9.1213813218860018E-3},{"$f":"((Quarterly!CR213/Quarterly!CR212)^4)-1","v":5.0512142841425911E-2},{"$f":"Quarterly!CS213-Quarterly!CS212","v":0.19999999999998863},{"$f":"Quarterly!CT213-Quarterly!CT212","v":3.4666666666666828},null,null,null,null,null,{"$f":"((Quarterly!CZ213/Quarterly!CZ212)^4)-1","v":5.7050468516860242E-2},{"$f":"((Quarterly!DA213/Quarterly!DA212)^4)-1","v":1.197319438214639E-2},null,null,null,null,null,{"$f":"((Quarterly!DG213/Quarterly!DG212)^4)-1","v":-2.540401761108968E-2},{"$f":"((Quarterly!DH213-Quarterly!DH212)*60)","v":1.9999999999998863},{"$f":"Quarterly!DI213-Quarterly!DI212","v":-0.36666666666667425},{"$f":"(Quarterly!DJ213-Quarterly!DJ212)*100","v":29.999999999999716},{"$f":"(Quarterly!DK213-Quarterly!DK212)*100","v":33.33333333333357},{"$f":"((Quarterly!DL213/Quarterly!DL212)^4)-1","v":-7.9811522110653454E-2},null,null,null,{"$f":"((Quarterly!DP213/Quarterly!DP212)^4)-1","v":-2.9330396199114595E-2},null,null,null,"--",{"$f":"Quarterly!DU213-Quarterly!DU212","v":1.8666666666666654},{"$f":"((Quarterly!DV213/Quarterly!DV212)^4)-1","v":-4.625634615158225E-2},{"$f":"((Quarterly!DW213/Quarterly!DW212)^4)-1","v":3.0800187031743365E-2},{"$f":"((Quarterly!DX213/Quarterly!DX212)^4)-1","v":-2.1696441845021952E-2},{"$f":"((Quarterly!DY213/Quarterly!DY212)^4)-1","v":-3.8647297810783243E-3},{"$f":"((Quarterly!DZ213/Quarterly!DZ212)^4)-1","v":-2.7091961045025093E-2},{"$f":"((Quarterly!EA213/Quarterly!EA212)^4)-1","v":-5.4619461917191026E-2},{"$f":"((Quarterly!EB213/Quarterly!EB212)^4)-1","v":4.2715828226144392E-2},{"$f":"((Quarterly!EC213/Quarterly!EC212)^4)-1","v":0.16047066610180849},null,null,null,null,null,{"$f":"((Quarterly!EI213/Quarterly!EI212)^4)-1","v":4.5526189625114233E-2},{"$f":"((Quarterly!EJ213/Quarterly!EJ212)^4)-1","v":3.1533052436047981E-2},{"$f":"((Quarterly!EK213/Quarterly!EK212)^4)-1","v":1.9510304222809527E-2},null,null,null,null,null,{"$f":"((Quarterly!EQ213/Quarterly!EQ212)^4)-1","v":6.0468700447602108E-2},{"$f":"((Quarterly!ER213/Quarterly!ER212)^4)-1","v":3.8944555248641155E-3},{"$f":"((Quarterly!ES213/Quarterly!ES212)^4)-1","v":-8.5043048238420127E-4},null,null,null,null,null,{"$f":"(Quarterly!EY213-Quarterly!EY212)*100","v":0},{"$f":"(Quarterly!EZ213-Quarterly!EZ212)*100","v":-2.3333333333333317},{"$f":"(Quarterly!FA213-Quarterly!FA212)*100","v":-24.666666666666615},{"$f":"(Quarterly!FB213-Quarterly!FB212)*100","v":-132.33333333333343},-107.66666666666681,{"$f":"(Quarterly!FD213-Quarterly!FD212)*100","v":12.666666666666604},{"$f":"(Quarterly!FE213-Quarterly!FE212)*100","v":-1.6666666666666692},{"$f":"(Quarterly!FF213-Quarterly!FF212)*100","v":-7.3333333333333419},{"$f":"(Quarterly!FG213-Quarterly!FG212)*100","v":2.0000000000000018},{"$f":"(Quarterly!FH213-Quarterly!FH212)*100","v":23.333333333333293},{"$f":"(Quarterly!FI213-Quarterly!FI212)*100","v":20.333333333333314},27.666666666666657,null,null,null,null,null,{"$f":"((Quarterly!FP213/Quarterly!FP212)^4)-1","v":-0.22066875677591979},{"$f":"((Quarterly!FQ213/Quarterly!FQ212)^4)-1","v":8.2026439453075639E-4},{"$f":"((Quarterly!FR213/Quarterly!FR212)^4)-1","v":-1.5910431276484949E-2},{"$f":"((Quarterly!FS213/Quarterly!FS212)^4)-1","v":0.21902893011498503},{"$f":"((Quarterly!FT213/Quarterly!FT212)^4)-1","v":-0.12277719631380901},{"$f":"((Quarterly!FU213/Quarterly!FU212)^4)-1","v":-0.19683694019407416},{"$f":"((Quarterly!FV213/Quarterly!FV212)^4)-1","v":0.5190518066211236},{"$f":"((Quarterly!FW213/Quarterly!FW212)^4)-1","v":0.78847049532900626},{"$f":"((Quarterly!FX213/Quarterly!FX212)^4)-1","v":0.48012384510267903},null,null,null,null,null,{"$f":"((Quarterly!GD213/Quarterly!GD212)^4)-1","v":0.72143182835617425},{"$f":"((Quarterly!GE213/Quarterly!GE212)^4)-1","v":0.82256801200940255},{"$f":"((Quarterly!GF213/Quarterly!GF212)^4)-1","v":0.5680711146152857},{"$f":"((Quarterly!GG213/Quarterly!GG212)^4)-1","v":0.56297676917255202},{"$f":"((Quarterly!GH213/Quarterly!GH212)^4)-1","v":-0.48999832006391075},{"$f":"((Quarterly!GI213/Quarterly!GI212)^4)-1","v":-0.5606727879087654},{"$f":"((Quarterly!GJ213/Quarterly!GJ212)^4)-1","v":-0.33595551743649332},{"$f":"((Quarterly!GK213/Quarterly!GK212)^4)-1","v":-0.28013517819405909},"--"]
["09'Q4",{"$f":"((Quarterly!B214/Quarterly!B213)^4)-1","v":5.1685667184689033E-2},{"$f":"((Quarterly!C214/Quarterly!C213)^4)-1","v":3.9288144800003755E-2},{"$f":"((Quarterly!D214/Quarterly!D213)^4)-1","v":-4.9886045075899776E-3},{"$f":"((Quarterly!E214/Quarterly!E213)^4)-1","v":-4.3239736686873087E-4},{"$f":"((Quarterly!F214/Quarterly!F213)^4)-1","v":-7.0402958631279433E-2},{"$f":"((Quarterly!G214/Quarterly!G213)^4)-1","v":2.0345197167017215E-2},{"$f":"((Quarterly!H214/Quarterly!H213)^4)-1","v":4.0406324127728599E-3},{"$f":"((Quarterly!I214/Quarterly!I213)^4)-1","v":-3.5831373312478321E-2},{"$f":"((Quarterly!J214/Quarterly!J213)^4)-1","v":7.3911612186595033E-2},{"$f":"((Quarterly!K214/Quarterly!K213)^4)-1","v":2.8559691368474915E-3},{"$f":"((Quarterly!L214-Quarterly!L213))","v":156.536},{"$f":"((Quarterly!M214/Quarterly!M213)^4)-1","v":0.18653073184600455},{"$f":"((Quarterly!N214/Quarterly!N213)^4)-1","v":0.24451570028984682},{"$f":"((Quarterly!O214/Quarterly!O213)^4)-1","v":-3.2898386563785187E-2},{"$f":"((Quarterly!P214/Quarterly!P213)^4)-1","v":-7.9134482802440953E-3},{"$f":"((Quarterly!Q214/Quarterly!Q213)^4)-1","v":-0.17074332819403781},null,null,null,null,null,{"$f":"((Quarterly!W214/Quarterly!W213)^4)-1","v":9.4947957436906316E-2},{"$f":"((Quarterly!X214/Quarterly!X213)^4)-1","v":8.0605796106292704E-2},{"$f":"((Quarterly!Y214/Quarterly!Y213)^4)-1","v":-0.20966267805770333},{"$f":"Quarterly!Z214-Quarterly!Z213","v":0.12999999999999989},{"$f":"((Quarterly!AA214/Quarterly!AA213)^4)-1","v":0.35781112868627729},{"$f":"((Quarterly!AB214/Quarterly!AB213)^4)-1","v":0.17726474596025166},{"$f":"Quarterly!AC214-Quarterly!AC213","v":-7.1},{"$f":"Quarterly!AD214-Quarterly!AD213","v":19},{"$f":"(Quarterly!AE214-Quarterly!AE213)*100","v":58.999999999999986},{"$f":"(Quarterly!AF214-Quarterly!AF213)*100","v":12.999999999999989},{"$f":"(Quarterly!AG214-Quarterly!AG213)*100","v":19.999999999999972},{"$f":"((Quarterly!AH214/Quarterly!AH213)^4)-1","v":7.8711059746393142E-2},{"$f":"((Quarterly!AI214/Quarterly!AI213)^4)-1","v":4.6617746403495808E-2},{"$f":"((Quarterly!AJ214/Quarterly!AJ213)^4)-1","v":1.8543780829415102E-2},{"$f":"((Quarterly!AK214/Quarterly!AK213)^4)-1","v":1.8322931903950623E-2},{"$f":"((Quarterly!AL214/Quarterly!AL213)^4)-1","v":1.8222766119082356E-2},{"$f":"((Quarterly!AM214/Quarterly!AM213)^4)-1","v":6.3963532777096432E-2},{"$f":"((Quarterly!AN214/Quarterly!AN213)^4)-1","v":7.1503759062207406E-2},{"$f":"((Quarterly!AO214/Quarterly!AO213)^4)-1","v":8.0681572130985035E-3},{"$f":"(Quarterly!AP214-Quarterly!AP213)*100","v":-3.6666666666666847},{"$f":"Quarterly!AQ214-Quarterly!AQ213","v":2.6333333333333258},{"$f":"Quarterly!AR214-Quarterly!AR213","v":-0.1666666666666643},{"$f":"Quarterly!AS214-Quarterly!AS213","v":-3.3333333333333286},{"$f":"Quarterly!AT214-Quarterly!AT213","v":4.8333333333333357},{"$f":"Quarterly!AU214-Quarterly!AU213","v":1.6666666666666714},{"$f":"Quarterly!AV214-Quarterly!AV213","v":2},{"$f":"Quarterly!AW214-Quarterly!AW213","v":5.8333333333333357},{"$f":"Quarterly!AX214-Quarterly!AX213","v":-0.46666666666666146},{"$f":"Quarterly!AY214-Quarterly!AY213","v":-0.6666666666666643},{"$f":"Quarterly!AZ214-Quarterly!AZ213","v":1.5333333333333385},{"$f":"Quarterly!BA214-Quarterly!BA213","v":3.3999999999999986},{"$f":"Quarterly!BB214-Quarterly!BB213","v":2.0000000000000071},{"$f":"((Quarterly!BC214/Quarterly!BC213)^4)-1","v":0.15333069635669316},{"$f":"((Quarterly!BD214/Quarterly!BD213)^4)-1","v":0.10589343156540942},{"$f":"((Quarterly!BE214/Quarterly!BE213)^4)-1","v":-4.282790169933659E-2},{"$f":"((Quarterly!BF214/Quarterly!BF213)^4)-1","v":2.4953862759102385E-2},{"$f":"((Quarterly!BG214/Quarterly!BG213)^4)-1","v":4.9003407932664222E-2},{"$f":"((Quarterly!BH214/Quarterly!BH213)^4)-1","v":-6.3578904890668753E-3},{"$f":"((Quarterly!BI214/Quarterly!BI213)^4)-1","v":-2.2904397040324875E-2},{"$f":"((Quarterly!BJ214/Quarterly!BJ213)^4)-1","v":1.3160196360822507},{"$f":"((Quarterly!BK214/Quarterly!BK213)^4)-1","v":0.25437837890633408},null,{"$f":"((Quarterly!BM214/Quarterly!BM213)^4)-1","v":2.7824611994887505E-2},{"$f":"((Quarterly!BN214/Quarterly!BN213)^4)-1","v":3.0663834483199981E-2},null,null,null,null,null,{"$f":"((Quarterly!BT214/Quarterly!BT213)^4)-1","v":-4.129399042814863E-2},{"$f":"Quarterly!BU214-Quarterly!BU213","v":-0.23991999999999969},{"$f":"Quarterly!BV214-Quarterly!BV213","v":-0.25804000000000116},{"$f":"((Quarterly!BW214/Quarterly!BW213)^4)-1","v":0.10147784413221639},{"$f":"((Quarterly!BX214/Quarterly!BX213)^4)-1","v":-0.13327813459665494},{"$f":"((Quarterly!BY214/Quarterly!BY213)^4)-1","v":0.11450205655239154},{"$f":"((Quarterly!BZ214/Quarterly!BZ213)^4)-1","v":6.3742487520973556E-2},{"$f":"((Quarterly!CA214/Quarterly!CA213)^4)-1","v":-0.30225738002517277},{"$f":"((Quarterly!CB214/Quarterly!CB213)^4)-1","v":3.1193587491331023},{"$f":"((Quarterly!CC214/Quarterly!CC213)^4)-1","v":1.4024840556365645},{"$f":"((Quarterly!CD214/Quarterly!CD213)^4)-1","v":-0.30857385290803729},{"$f":"((Quarterly!CE214/Quarterly!CE213)^4)-1","v":-0.27018310432506731},null,{"$f":"((Quarterly!CG214/Quarterly!CG213)^4)-1","v":-0.39022829893000621},{"$f":"((Quarterly!CH214/Quarterly!CH213)^4)-1","v":0.57098568291282414},null,{"$f":"((Quarterly!CJ214/Quarterly!CJ213)^4)-1","v":-0.27018310432506731},{"$f":"((Quarterly!CK214/Quarterly!CK213)^4)-1","v":2.2135323801498519E-2},{"$f":"((Quarterly!CL214/Quarterly!CL213)^4)-1","v":3.5355722622984365E-2},{"$f":"((Quarterly!CM214/Quarterly!CM213)^4)-1","v":-0.12393098653842105},{"$f":"((Quarterly!CN214/Quarterly!CN213)^4)-1","v":-5.2099983634678049E-3},{"$f":"((Quarterly!CO214/Quarterly!CO213)^4)-1","v":0.1768840799727831},{"$f":"((Quarterly!CP214/Quarterly!CP213)^4)-1","v":-3.8003354490193875E-2},{"$f":"((Quarterly!CQ214/Quarterly!CQ213)^4)-1","v":9.436614858867598E-3},{"$f":"((Quarterly!CR214/Quarterly!CR213)^4)-1","v":-0.10491992948073847},{"$f":"Quarterly!CS214-Quarterly!CS213","v":1.7666666666666799},{"$f":"Quarterly!CT214-Quarterly!CT213","v":-0.80000000000000426},null,null,null,null,null,{"$f":"((Quarterly!CZ214/Quarterly!CZ213)^4)-1","v":3.1687048369111848E-2},{"$f":"((Quarterly!DA214/Quarterly!DA213)^4)-1","v":2.0616633011497854E-2},null,null,null,null,null,{"$f":"((Quarterly!DG214/Quarterly!DG213)^4)-1","v":-1.4862095937418718E-2},{"$f":"((Quarterly!DH214-Quarterly!DH213)*60)","v":1.9999999999998863},{"$f":"Quarterly!DI214-Quarterly!DI213","v":-0.46666666666666856},{"$f":"(Quarterly!DJ214-Quarterly!DJ213)*100","v":50.000000000000355},{"$f":"(Quarterly!DK214-Quarterly!DK213)*100","v":29.999999999999716},{"$f":"((Quarterly!DL214/Quarterly!DL213)^4)-1","v":-4.0977307497700011E-2},null,null,null,{"$f":"((Quarterly!DP214/Quarterly!DP213)^4)-1","v":-1.5684934847497001E-2},null,null,null,"--",{"$f":"Quarterly!DU214-Quarterly!DU213","v":2.9000000000000021},{"$f":"((Quarterly!DV214/Quarterly!DV213)^4)-1","v":-2.882124471746017E-2},{"$f":"((Quarterly!DW214/Quarterly!DW213)^4)-1","v":-5.9884052442035207E-2},{"$f":"((Quarterly!DX214/Quarterly!DX213)^4)-1","v":-3.2365343893352549E-2},{"$f":"((Quarterly!DY214/Quarterly!DY213)^4)-1","v":-3.1265022460921554E-2},{"$f":"((Quarterly!DZ214/Quarterly!DZ213)^4)-1","v":-3.2703040667777405E-2},{"$f":"((Quarterly!EA214/Quarterly!EA213)^4)-1","v":-4.2093478515712102E-2},{"$f":"((Quarterly!EB214/Quarterly!EB213)^4)-1","v":-1.0029172775874007E-2},{"$f":"((Quarterly!EC214/Quarterly!EC213)^4)-1","v":-0.11885043704473042},null,null,null,null,null,{"$f":"((Quarterly!EI214/Quarterly!EI213)^4)-1","v":2.6845277960785729E-2},{"$f":"((Quarterly!EJ214/Quarterly!EJ213)^4)-1","v":2.8936019630697585E-2},{"$f":"((Quarterly!EK214/Quarterly!EK213)^4)-1","v":3.4233164683300732E-2},null,null,null,null,null,{"$f":"((Quarterly!EQ214/Quarterly!EQ213)^4)-1","v":7.1632853827851672E-2},{"$f":"((Quarterly!ER214/Quarterly!ER213)^4)-1","v":7.0113666807156694E-3},{"$f":"((Quarterly!ES214/Quarterly!ES213)^4)-1","v":8.5115432997118212E-4},null,null,null,null,null,{"$f":"(Quarterly!EY214-Quarterly!EY213)*100","v":0},{"$f":"(Quarterly!EZ214-Quarterly!EZ213)*100","v":-3.6666666666666652},{"$f":"(Quarterly!FA214-Quarterly!FA213)*100","v":-6.666666666666643},{"$f":"(Quarterly!FB214-Quarterly!FB213)*100","v":-33.3333333333333},-26.666666666666657,{"$f":"(Quarterly!FD214-Quarterly!FD213)*100","v":-23.666666666666636},{"$f":"(Quarterly!FE214-Quarterly!FE213)*100","v":-9.9999999999999982},{"$f":"(Quarterly!FF214-Quarterly!FF213)*100","v":-9.6666666666666679},{"$f":"(Quarterly!FG214-Quarterly!FG213)*100","v":-16.000000000000004},{"$f":"(Quarterly!FH214-Quarterly!FH213)*100","v":-16.666666666666607},{"$f":"(Quarterly!FI214-Quarterly!FI213)*100","v":-5.6666666666667531},3.9999999999999147,null,null,null,null,null,{"$f":"((Quarterly!FP214/Quarterly!FP213)^4)-1","v":-0.14237943102430273},{"$f":"((Quarterly!FQ214/Quarterly!FQ213)^4)-1","v":-2.0285452796163783E-3},{"$f":"((Quarterly!FR214/Quarterly!FR213)^4)-1","v":-5.6429916062420649E-2},{"$f":"((Quarterly!FS214/Quarterly!FS213)^4)-1","v":0.13439327284148006},{"$f":"((Quarterly!FT214/Quarterly!FT213)^4)-1","v":-9.5695456223845121E-2},{"$f":"((Quarterly!FU214/Quarterly!FU213)^4)-1","v":-0.12490157340781116},{"$f":"((Quarterly!FV214/Quarterly!FV213)^4)-1","v":0.44359165805184109},{"$f":"((Quarterly!FW214/Quarterly!FW213)^4)-1","v":0.22947244580258785},{"$f":"((Quarterly!FX214/Quarterly!FX213)^4)-1","v":0.68280211362945242},null,null,null,null,null,{"$f":"((Quarterly!GD214/Quarterly!GD213)^4)-1","v":0.54723093081934726},{"$f":"((Quarterly!GE214/Quarterly!GE213)^4)-1","v":0.43389142592976415},{"$f":"((Quarterly!GF214/Quarterly!GF213)^4)-1","v":5.7169393162335158E-2},{"$f":"((Quarterly!GG214/Quarterly!GG213)^4)-1","v":0.22682498455703004},{"$f":"((Quarterly!GH214/Quarterly!GH213)^4)-1","v":0.14014938271604871},{"$f":"((Quarterly!GI214/Quarterly!GI213)^4)-1","v":0.30654701614754076},{"$f":"((Quarterly!GJ214/Quarterly!GJ213)^4)-1","v":3.178510719987953},{"$f":"((Quarterly!GK214/Quarterly!GK213)^4)-1","v":0.18148439431921837},"--"]
["10'Q1",{"$f":"((Quarterly!B215/Quarterly!B214)^4)-1","v":3.182927330081986E-2},{"$f":"((Quarterly!C215/Quarterly!C214)^4)-1","v":1.7426567876270393E-2},{"$f":"((Quarterly!D215/Quarterly!D214)^4)-1","v":1.2707860907563706E-3},{"$f":"((Quarterly!E215/Quarterly!E214)^4)-1","v":2.1623160209748304E-2},{"$f":"((Quarterly!F215/Quarterly!F214)^4)-1","v":5.3652971641306557E-2},{"$f":"((Quarterly!G215/Quarterly!G214)^4)-1","v":3.3698063597852324E-2},{"$f":"((Quarterly!H215/Quarterly!H214)^4)-1","v":1.2834459142493371E-2},{"$f":"((Quarterly!I215/Quarterly!I214)^4)-1","v":4.2246627495816202E-2},{"$f":"((Quarterly!J215/Quarterly!J214)^4)-1","v":0.15135752817046644},{"$f":"((Quarterly!K215/Quarterly!K214)^4)-1","v":-0.12236793510861566},{"$f":"((Quarterly!L215-Quarterly!L214))","v":59.417000000000002},{"$f":"((Quarterly!M215/Quarterly!M214)^4)-1","v":0.10800302429408304},{"$f":"((Quarterly!N215/Quarterly!N214)^4)-1","v":6.1404486037579309E-2},{"$f":"((Quarterly!O215/Quarterly!O214)^4)-1","v":0.33278573894288188},{"$f":"((Quarterly!P215/Quarterly!P214)^4)-1","v":-2.8708241934562007E-2},{"$f":"((Quarterly!Q215/Quarterly!Q214)^4)-1","v":0.24588791289352763},null,null,null,null,null,{"$f":"((Quarterly!W215/Quarterly!W214)^4)-1","v":9.2747787419525496E-2},{"$f":"((Quarterly!X215/Quarterly!X214)^4)-1","v":0.1077453737681362},{"$f":"((Quarterly!Y215/Quarterly!Y214)^4)-1","v":-0.18268349930946892},{"$f":"Quarterly!Z215-Quarterly!Z214","v":-2.0999999999999996},{"$f":"((Quarterly!AA215/Quarterly!AA214)^4)-1","v":0.23961024121698737},{"$f":"((Quarterly!AB215/Quarterly!AB214)^4)-1","v":0.31251234490600455},{"$f":"Quarterly!AC215-Quarterly!AC214","v":1.3999999999999995},{"$f":"Quarterly!AD215-Quarterly!AD214","v":6.1000000000000014},{"$f":"(Quarterly!AE215-Quarterly!AE214)*100","v":-429},{"$f":"(Quarterly!AF215-Quarterly!AF214)*100","v":-209.99999999999997},{"$f":"(Quarterly!AG215-Quarterly!AG214)*100","v":-216},{"$f":"((Quarterly!AH215/Quarterly!AH214)^4)-1","v":0.13031340052219353},{"$f":"((Quarterly!AI215/Quarterly!AI214)^4)-1","v":6.3672245667260041E-2},{"$f":"((Quarterly!AJ215/Quarterly!AJ214)^4)-1","v":4.4727549959328927E-2},{"$f":"((Quarterly!AK215/Quarterly!AK214)^4)-1","v":2.5604557803283745E-2},{"$f":"((Quarterly!AL215/Quarterly!AL214)^4)-1","v":1.4492517521634607E-2},{"$f":"((Quarterly!AM215/Quarterly!AM214)^4)-1","v":8.0335362331054982E-2},{"$f":"((Quarterly!AN215/Quarterly!AN214)^4)-1","v":7.6537335628643843E-2},{"$f":"((Quarterly!AO215/Quarterly!AO214)^4)-1","v":3.467323427365776E-2},{"$f":"(Quarterly!AP215-Quarterly!AP214)*100","v":-2.3333333333333428},{"$f":"Quarterly!AQ215-Quarterly!AQ214","v":2.0333333333333456},{"$f":"Quarterly!AR215-Quarterly!AR214","v":6.5},{"$f":"Quarterly!AS215-Quarterly!AS214","v":-0.8333333333333357},{"$f":"Quarterly!AT215-Quarterly!AT214","v":2.6666666666666643},{"$f":"Quarterly!AU215-Quarterly!AU214","v":3.5},{"$f":"Quarterly!AV215-Quarterly!AV214","v":4},{"$f":"Quarterly!AW215-Quarterly!AW214","v":8},{"$f":"Quarterly!AX215-Quarterly!AX214","v":-1.7666666666666657},{"$f":"Quarterly!AY215-Quarterly!AY214","v":10.166666666666671},{"$f":"Quarterly!AZ215-Quarterly!AZ214","v":-1.6000000000000014},{"$f":"Quarterly!BA215-Quarterly!BA214","v":2.3666666666666742},{"$f":"Quarterly!BB215-Quarterly!BB214","v":1.0999999999999943},{"$f":"((Quarterly!BC215/Quarterly!BC214)^4)-1","v":4.1094578149373451E-2},{"$f":"((Quarterly!BD215/Quarterly!BD214)^4)-1","v":0.13675182406999298},{"$f":"((Quarterly!BE215/Quarterly!BE214)^4)-1","v":-0.1973964902980716},{"$f":"((Quarterly!BF215/Quarterly!BF214)^4)-1","v":-2.8058018038408683E-2},{"$f":"((Quarterly!BG215/Quarterly!BG214)^4)-1","v":2.0605467772765618E-2},{"$f":"((Quarterly!BH215/Quarterly!BH214)^4)-1","v":-3.4143297372976944E-2},{"$f":"((Quarterly!BI215/Quarterly!BI214)^4)-1","v":-4.7692765488745459E-2},{"$f":"((Quarterly!BJ215/Quarterly!BJ214)^4)-1","v":0.55338856039392703},{"$f":"((Quarterly!BK215/Quarterly!BK214)^4)-1","v":-0.9998526855393679},null,{"$f":"((Quarterly!BM215/Quarterly!BM214)^4)-1","v":6.0526827555081653E-2},{"$f":"((Quarterly!BN215/Quarterly!BN214)^4)-1","v":6.2651963634840602E-2},null,null,null,null,null,{"$f":"((Quarterly!BT215/Quarterly!BT214)^4)-1","v":-2.6866242928113016E-3},{"$f":"Quarterly!BU215-Quarterly!BU214","v":-0.22470000000000034},{"$f":"Quarterly!BV215-Quarterly!BV214","v":-0.23797000000000068},{"$f":"((Quarterly!BW215/Quarterly!BW214)^4)-1","v":0.13798778772315057},{"$f":"((Quarterly!BX215/Quarterly!BX214)^4)-1","v":0.40468947180975468},{"$f":"((Quarterly!BY215/Quarterly!BY214)^4)-1","v":0.23920145553470262},{"$f":"((Quarterly!BZ215/Quarterly!BZ214)^4)-1","v":3.716991788986368E-2},{"$f":"((Quarterly!CA215/Quarterly!CA214)^4)-1","v":1.0210351827659281E-2},{"$f":"((Quarterly!CB215/Quarterly!CB214)^4)-1","v":0.2898597970144603},{"$f":"((Quarterly!CC215/Quarterly!CC214)^4)-1","v":0.15664343362240563},{"$f":"((Quarterly!CD215/Quarterly!CD214)^4)-1","v":-0.12275814941186636},{"$f":"((Quarterly!CE215/Quarterly!CE214)^4)-1","v":-0.20020434224383088},null,{"$f":"((Quarterly!CG215/Quarterly!CG214)^4)-1","v":8.5769135283342068E-2},{"$f":"((Quarterly!CH215/Quarterly!CH214)^4)-1","v":-0.37863465268876229},null,{"$f":"((Quarterly!CJ215/Quarterly!CJ214)^4)-1","v":-0.20020434224383088},{"$f":"((Quarterly!CK215/Quarterly!CK214)^4)-1","v":3.3679283743412114E-2},{"$f":"((Quarterly!CL215/Quarterly!CL214)^4)-1","v":-0.20442052469153149},{"$f":"((Quarterly!CM215/Quarterly!CM214)^4)-1","v":0.37590924386498825},{"$f":"((Quarterly!CN215/Quarterly!CN214)^4)-1","v":3.6651719341422861E-3},{"$f":"((Quarterly!CO215/Quarterly!CO214)^4)-1","v":0.10796624996486281},{"$f":"((Quarterly!CP215/Quarterly!CP214)^4)-1","v":-2.7988822318221196E-2},{"$f":"((Quarterly!CQ215/Quarterly!CQ214)^4)-1","v":7.9436613184886706E-3},{"$f":"((Quarterly!CR215/Quarterly!CR214)^4)-1","v":-9.5833602078028823E-2},{"$f":"Quarterly!CS215-Quarterly!CS214","v":3.6999999999999886},{"$f":"Quarterly!CT215-Quarterly!CT214","v":0.76666666666665861},null,null,null,null,null,{"$f":"((Quarterly!CZ215/Quarterly!CZ214)^4)-1","v":6.3552272459670434E-3},{"$f":"((Quarterly!DA215/Quarterly!DA214)^4)-1","v":5.9827812066615138E-4},null,null,null,null,null,{"$f":"((Quarterly!DG215/Quarterly!DG214)^4)-1","v":1.0955050188068638E-2},{"$f":"((Quarterly!DH215-Quarterly!DH214)*60)","v":6.0000000000000853},{"$f":"Quarterly!DI215-Quarterly!DI214","v":0},{"$f":"(Quarterly!DJ215-Quarterly!DJ214)*100","v":-16.666666666666785},{"$f":"(Quarterly!DK215-Quarterly!DK214)*100","v":-9.9999999999997868},{"$f":"((Quarterly!DL215/Quarterly!DL214)^4)-1","v":-1.7953278404302497E-2},null,null,null,{"$f":"((Quarterly!DP215/Quarterly!DP214)^4)-1","v":-4.6598660805355907E-3},null,null,null,"--",{"$f":"Quarterly!DU215-Quarterly!DU214","v":0.49999999999999645},{"$f":"((Quarterly!DV215/Quarterly!DV214)^4)-1","v":-2.9554211612586756E-2},{"$f":"((Quarterly!DW215/Quarterly!DW214)^4)-1","v":-0.15096908792014263},{"$f":"((Quarterly!DX215/Quarterly!DX214)^4)-1","v":-0.10986889453306148},{"$f":"((Quarterly!DY215/Quarterly!DY214)^4)-1","v":-0.18197262333765352},{"$f":"((Quarterly!DZ215/Quarterly!DZ214)^4)-1","v":-8.6791639968490042E-2},{"$f":"((Quarterly!EA215/Quarterly!EA214)^4)-1","v":-0.10221651587923841},{"$f":"((Quarterly!EB215/Quarterly!EB214)^4)-1","v":-4.9515652854633219E-2},{"$f":"((Quarterly!EC215/Quarterly!EC214)^4)-1","v":-0.23903520609881479},null,null,null,null,null,{"$f":"((Quarterly!EI215/Quarterly!EI214)^4)-1","v":2.471306621851177E-2},{"$f":"((Quarterly!EJ215/Quarterly!EJ214)^4)-1","v":3.7222408296586407E-2},{"$f":"((Quarterly!EK215/Quarterly!EK214)^4)-1","v":3.5004438736014443E-2},null,null,null,null,null,{"$f":"((Quarterly!EQ215/Quarterly!EQ214)^4)-1","v":0.12204540794748109},{"$f":"((Quarterly!ER215/Quarterly!ER214)^4)-1","v":1.7959531926597716E-2},{"$f":"((Quarterly!ES215/Quarterly!ES214)^4)-1","v":8.5341952985855674E-3},null,null,null,null,null,{"$f":"(Quarterly!EY215-Quarterly!EY214)*100","v":0},{"$f":"(Quarterly!EZ215-Quarterly!EZ214)*100","v":1.3333333333333335},{"$f":"(Quarterly!FA215-Quarterly!FA214)*100","v":9.3333333333332824},{"$f":"(Quarterly!FB215-Quarterly!FB214)*100","v":-4.0000000000000924},-13.333333333333375,{"$f":"(Quarterly!FD215-Quarterly!FD214)*100","v":7.6666666666666217},{"$f":"(Quarterly!FE215-Quarterly!FE214)*100","v":4.9999999999999973},{"$f":"(Quarterly!FF215-Quarterly!FF214)*100","v":1.6666666666666774},{"$f":"(Quarterly!FG215-Quarterly!FG214)*100","v":4.3333333333333224},{"$f":"(Quarterly!FH215-Quarterly!FH214)*100","v":12.333333333333307},{"$f":"(Quarterly!FI215-Quarterly!FI214)*100","v":25.666666666666728},24.00000000000005,null,null,null,null,null,{"$f":"((Quarterly!FP215/Quarterly!FP214)^4)-1","v":-5.4171678856786309E-2},{"$f":"((Quarterly!FQ215/Quarterly!FQ214)^4)-1","v":5.8591318215395205E-5},{"$f":"((Quarterly!FR215/Quarterly!FR214)^4)-1","v":-8.7262527031073178E-2},{"$f":"((Quarterly!FS215/Quarterly!FS214)^4)-1","v":-0.2292146972928687},{"$f":"((Quarterly!FT215/Quarterly!FT214)^4)-1","v":4.6224359917486968E-2},{"$f":"((Quarterly!FU215/Quarterly!FU214)^4)-1","v":0.11502539034418535},{"$f":"((Quarterly!FV215/Quarterly!FV214)^4)-1","v":0.25664257706448423},{"$f":"((Quarterly!FW215/Quarterly!FW214)^4)-1","v":-0.42250744215173763},{"$f":"((Quarterly!FX215/Quarterly!FX214)^4)-1","v":8.6037127783010092E-2},null,null,null,null,null,{"$f":"((Quarterly!GD215/Quarterly!GD214)^4)-1","v":0.14156834117318629},{"$f":"((Quarterly!GE215/Quarterly!GE214)^4)-1","v":8.9696674650615593E-2},{"$f":"((Quarterly!GF215/Quarterly!GF214)^4)-1","v":0.15947690368414991},{"$f":"((Quarterly!GG215/Quarterly!GG214)^4)-1","v":0.17405176444453674},{"$f":"((Quarterly!GH215/Quarterly!GH214)^4)-1","v":-0.45180751965382027},{"$f":"((Quarterly!GI215/Quarterly!GI214)^4)-1","v":-0.69547621824239891},{"$f":"((Quarterly!GJ215/Quarterly!GJ214)^4)-1","v":0.10212027326457473},{"$f":"((Quarterly!GK215/Quarterly!GK214)^4)-1","v":0.26845960825145476},"--"]
["10'Q2",{"$f":"((Quarterly!B216/Quarterly!B215)^4)-1","v":5.7755859011682231E-2},{"$f":"((Quarterly!C216/Quarterly!C215)^4)-1","v":3.9204973120019471E-2},{"$f":"((Quarterly!D216/Quarterly!D215)^4)-1","v":2.8474341757989574E-2},{"$f":"((Quarterly!E216/Quarterly!E215)^4)-1","v":3.2947289762656595E-2},{"$f":"((Quarterly!F216/Quarterly!F215)^4)-1","v":0.12472555773462024},{"$f":"((Quarterly!G216/Quarterly!G215)^4)-1","v":1.9090793428542474E-2},{"$f":"((Quarterly!H216/Quarterly!H215)^4)-1","v":2.4039667619901728E-2},{"$f":"((Quarterly!I216/Quarterly!I215)^4)-1","v":0.11410859716918109},{"$f":"((Quarterly!J216/Quarterly!J215)^4)-1","v":0.11304436019163},{"$f":"((Quarterly!K216/Quarterly!K215)^4)-1","v":0.23242237565735491},{"$f":"((Quarterly!L216-Quarterly!L215))","v":38.915000000000006},{"$f":"((Quarterly!M216/Quarterly!M215)^4)-1","v":0.20458262851445097},{"$f":"((Quarterly!N216/Quarterly!N215)^4)-1","v":9.6771286406130086E-2},{"$f":"((Quarterly!O216/Quarterly!O215)^4)-1","v":0.74327768665996574},{"$f":"((Quarterly!P216/Quarterly!P215)^4)-1","v":2.8744447102867499E-2},{"$f":"((Quarterly!Q216/Quarterly!Q215)^4)-1","v":-3.9455263064014812E-2},null,null,null,null,null,{"$f":"((Quarterly!W216/Quarterly!W215)^4)-1","v":0.14144042222752184},{"$f":"((Quarterly!X216/Quarterly!X215)^4)-1","v":0.11300865014085626},{"$f":"((Quarterly!Y216/Quarterly!Y215)^4)-1","v":-8.278117524177353E-2},{"$f":"Quarterly!Z216-Quarterly!Z215","v":-0.09},{"$f":"((Quarterly!AA216/Quarterly!AA215)^4)-1","v":-3.6537450040183495E-2},{"$f":"((Quarterly!AB216/Quarterly!AB215)^4)-1","v":3.3200495073784086E-3},{"$f":"Quarterly!AC216-Quarterly!AC215","v":5.7},{"$f":"Quarterly!AD216-Quarterly!AD215","v":20.3},{"$f":"(Quarterly!AE216-Quarterly!AE215)*100","v":29.999999999999982},{"$f":"(Quarterly!AF216-Quarterly!AF215)*100","v":-9},{"$f":"(Quarterly!AG216-Quarterly!AG215)*100","v":7.9999999999999964},{"$f":"((Quarterly!AH216/Quarterly!AH215)^4)-1","v":0.22169935463378687},{"$f":"((Quarterly!AI216/Quarterly!AI215)^4)-1","v":0.14357892930880012},{"$f":"((Quarterly!AJ216/Quarterly!AJ215)^4)-1","v":2.1937026919478297E-2},{"$f":"((Quarterly!AK216/Quarterly!AK215)^4)-1","v":1.8123689503262153E-2},{"$f":"((Quarterly!AL216/Quarterly!AL215)^4)-1","v":1.8074554097404105E-2},{"$f":"((Quarterly!AM216/Quarterly!AM215)^4)-1","v":8.6068870526665897E-2},{"$f":"((Quarterly!AN216/Quarterly!AN215)^4)-1","v":0.1169863425442641},{"$f":"((Quarterly!AO216/Quarterly!AO215)^4)-1","v":5.71050400320956E-2},{"$f":"(Quarterly!AP216-Quarterly!AP215)*100","v":-0.99999999999997868},{"$f":"Quarterly!AQ216-Quarterly!AQ215","v":0.3333333333333286},{"$f":"Quarterly!AR216-Quarterly!AR215","v":-0.3333333333333357},{"$f":"Quarterly!AS216-Quarterly!AS215","v":-1.6666666666666643},{"$f":"Quarterly!AT216-Quarterly!AT215","v":2.6333333333333258},{"$f":"Quarterly!AU216-Quarterly!AU215","v":0.8333333333333286},{"$f":"Quarterly!AV216-Quarterly!AV215","v":0.5},{"$f":"Quarterly!AW216-Quarterly!AW215","v":-3},{"$f":"Quarterly!AX216-Quarterly!AX215","v":3.4666666666666544},{"$f":"Quarterly!AY216-Quarterly!AY215","v":0.16666666666665719},{"$f":"Quarterly!AZ216-Quarterly!AZ215","v":2.4333333333333158},{"$f":"Quarterly!BA216-Quarterly!BA215","v":-2.3000000000000114},{"$f":"Quarterly!BB216-Quarterly!BB215","v":6.1000000000000014},{"$f":"((Quarterly!BC216/Quarterly!BC215)^4)-1","v":0.23794301448949762},{"$f":"((Quarterly!BD216/Quarterly!BD215)^4)-1","v":0.15634278168583493},{"$f":"((Quarterly!BE216/Quarterly!BE215)^4)-1","v":-7.4510876184225694E-2},{"$f":"((Quarterly!BF216/Quarterly!BF215)^4)-1","v":4.7045166587317722E-2},{"$f":"((Quarterly!BG216/Quarterly!BG215)^4)-1","v":1.445894235785028E-2},{"$f":"((Quarterly!BH216/Quarterly!BH215)^4)-1","v":4.8381346663662228E-2},{"$f":"((Quarterly!BI216/Quarterly!BI215)^4)-1","v":3.213921746629822E-2},{"$f":"((Quarterly!BJ216/Quarterly!BJ215)^4)-1","v":4.6877110350906026E-2},{"$f":"((Quarterly!BK216/Quarterly!BK215)^4)-1","v":-0.81723110185217607},null,{"$f":"((Quarterly!BM216/Quarterly!BM215)^4)-1","v":6.8597294216838689E-2},{"$f":"((Quarterly!BN216/Quarterly!BN215)^4)-1","v":6.8312228673366171E-2},null,null,null,null,null,{"$f":"((Quarterly!BT216/Quarterly!BT215)^4)-1","v":2.5109137632706147},{"$f":"Quarterly!BU216-Quarterly!BU215","v":-0.30028000000000077},{"$f":"Quarterly!BV216-Quarterly!BV215","v":-0.34360999999999819},{"$f":"((Quarterly!BW216/Quarterly!BW215)^4)-1","v":0.11968619423205529},{"$f":"((Quarterly!BX216/Quarterly!BX215)^4)-1","v":-9.9607093904840349E-2},{"$f":"((Quarterly!BY216/Quarterly!BY215)^4)-1","v":-0.30877997343130581},{"$f":"((Quarterly!BZ216/Quarterly!BZ215)^4)-1","v":7.4684315318245265E-3},{"$f":"((Quarterly!CA216/Quarterly!CA215)^4)-1","v":0.2902989685229409},{"$f":"((Quarterly!CB216/Quarterly!CB215)^4)-1","v":-0.23128760879869348},{"$f":"((Quarterly!CC216/Quarterly!CC215)^4)-1","v":-0.17865680697468178},{"$f":"((Quarterly!CD216/Quarterly!CD215)^4)-1","v":-0.24085162096089441},{"$f":"((Quarterly!CE216/Quarterly!CE215)^4)-1","v":-0.19161207973443695},null,{"$f":"((Quarterly!CG216/Quarterly!CG215)^4)-1","v":0.66389451915038},{"$f":"((Quarterly!CH216/Quarterly!CH215)^4)-1","v":0.33115171778554719},null,{"$f":"((Quarterly!CJ216/Quarterly!CJ215)^4)-1","v":-0.19161207973443695},{"$f":"((Quarterly!CK216/Quarterly!CK215)^4)-1","v":5.9647553614804227E-2},{"$f":"((Quarterly!CL216/Quarterly!CL215)^4)-1","v":0.59367297517319417},{"$f":"((Quarterly!CM216/Quarterly!CM215)^4)-1","v":-0.25100964215986343},{"$f":"((Quarterly!CN216/Quarterly!CN215)^4)-1","v":5.3037996321298575E-2},{"$f":"((Quarterly!CO216/Quarterly!CO215)^4)-1","v":0.14052382610410108},{"$f":"((Quarterly!CP216/Quarterly!CP215)^4)-1","v":-1.7904084861564917E-2},{"$f":"((Quarterly!CQ216/Quarterly!CQ215)^4)-1","v":4.5727300847002716E-3},{"$f":"((Quarterly!CR216/Quarterly!CR215)^4)-1","v":-7.6857108307480493E-2},{"$f":"Quarterly!CS216-Quarterly!CS215","v":6.6666666666677088E-2},{"$f":"Quarterly!CT216-Quarterly!CT215","v":6.5},null,null,null,null,null,{"$f":"((Quarterly!CZ216/Quarterly!CZ215)^4)-1","v":-1.4100327786663591E-3},{"$f":"((Quarterly!DA216/Quarterly!DA215)^4)-1","v":5.0294915005619778E-3},null,null,null,null,null,{"$f":"((Quarterly!DG216/Quarterly!DG215)^4)-1","v":2.7480365486791225E-2},{"$f":"((Quarterly!DH216-Quarterly!DH215)*60)","v":7.9999999999999716},{"$f":"Quarterly!DI216-Quarterly!DI215","v":3.3333333333345649E-2},{"$f":"(Quarterly!DJ216-Quarterly!DJ215)*100","v":-23.333333333333428},{"$f":"(Quarterly!DK216-Quarterly!DK215)*100","v":-20.000000000000107},{"$f":"((Quarterly!DL216/Quarterly!DL215)^4)-1","v":2.2654010624264087E-2},null,null,null,{"$f":"((Quarterly!DP216/Quarterly!DP215)^4)-1","v":1.9658940193788554E-2},null,null,null,"--",{"$f":"Quarterly!DU216-Quarterly!DU215","v":3.100000000000005},{"$f":"((Quarterly!DV216/Quarterly!DV215)^4)-1","v":2.25294222102006E-2},{"$f":"((Quarterly!DW216/Quarterly!DW215)^4)-1","v":0.11951498941626615},{"$f":"((Quarterly!DX216/Quarterly!DX215)^4)-1","v":5.2329136161680889E-2},{"$f":"((Quarterly!DY216/Quarterly!DY215)^4)-1","v":0.13349406865239},{"$f":"((Quarterly!DZ216/Quarterly!DZ215)^4)-1","v":2.8941692932565655E-2},{"$f":"((Quarterly!EA216/Quarterly!EA215)^4)-1","v":5.5638798421464575E-3},{"$f":"((Quarterly!EB216/Quarterly!EB215)^4)-1","v":8.5037812968246751E-2},{"$f":"((Quarterly!EC216/Quarterly!EC215)^4)-1","v":0.29099046086221647},null,null,null,null,null,{"$f":"((Quarterly!EI216/Quarterly!EI215)^4)-1","v":9.4705714662897122E-2},{"$f":"((Quarterly!EJ216/Quarterly!EJ215)^4)-1","v":5.6744497010417616E-2},{"$f":"((Quarterly!EK216/Quarterly!EK215)^4)-1","v":4.4771252126514005E-2},null,null,null,null,null,{"$f":"((Quarterly!EQ216/Quarterly!EQ215)^4)-1","v":4.8458090026406886E-2},{"$f":"((Quarterly!ER216/Quarterly!ER215)^4)-1","v":1.4752735550377372E-2},{"$f":"((Quarterly!ES216/Quarterly!ES215)^4)-1","v":5.1031153084923897E-3},null,null,null,null,null,{"$f":"(Quarterly!EY216-Quarterly!EY215)*100","v":0},{"$f":"(Quarterly!EZ216-Quarterly!EZ215)*100","v":6.0000000000000027},{"$f":"(Quarterly!FA216-Quarterly!FA215)*100","v":-25},{"$f":"(Quarterly!FB216-Quarterly!FB215)*100","v":-10.999999999999943},14.000000000000057,{"$f":"(Quarterly!FD216-Quarterly!FD215)*100","v":-8.6666666666666892},{"$f":"(Quarterly!FE216-Quarterly!FE215)*100","v":4.0000000000000018},{"$f":"(Quarterly!FF216-Quarterly!FF215)*100","v":1.3333333333333364},{"$f":"(Quarterly!FG216-Quarterly!FG215)*100","v":-4.6666666666666519},{"$f":"(Quarterly!FH216-Quarterly!FH215)*100","v":-16.999999999999993},{"$f":"(Quarterly!FI216-Quarterly!FI215)*100","v":-22.6666666666667},{"$f":"+FI216-FF216","v":-24.000000000000036},null,null,null,null,null,{"$f":"((Quarterly!FP216/Quarterly!FP215)^4)-1","v":-5.1227796473150344E-2},{"$f":"((Quarterly!FQ216/Quarterly!FQ215)^4)-1","v":-1.9710435910977875E-3},{"$f":"((Quarterly!FR216/Quarterly!FR215)^4)-1","v":-6.520619499039626E-2},{"$f":"((Quarterly!FS216/Quarterly!FS215)^4)-1","v":-0.28298562815626449},{"$f":"((Quarterly!FT216/Quarterly!FT215)^4)-1","v":5.9201098641096017E-2},{"$f":"((Quarterly!FU216/Quarterly!FU215)^4)-1","v":0.15793703307979179},{"$f":"((Quarterly!FV216/Quarterly!FV215)^4)-1","v":0.31818839553713785},{"$f":"((Quarterly!FW216/Quarterly!FW215)^4)-1","v":1.1112953175639833},{"$f":"((Quarterly!FX216/Quarterly!FX215)^4)-1","v":0.48039907793641135},null,null,null,null,null,{"$f":"((Quarterly!GD216/Quarterly!GD215)^4)-1","v":-3.695327694293371E-2},{"$f":"((Quarterly!GE216/Quarterly!GE215)^4)-1","v":0.12393324472144118},{"$f":"((Quarterly!GF216/Quarterly!GF215)^4)-1","v":0.17105490885233832},{"$f":"((Quarterly!GG216/Quarterly!GG215)^4)-1","v":0.27271065685081441},{"$f":"((Quarterly!GH216/Quarterly!GH215)^4)-1","v":1.2037056981716661},{"$f":"((Quarterly!GI216/Quarterly!GI215)^4)-1","v":6.8924811159483275},{"$f":"((Quarterly!GJ216/Quarterly!GJ215)^4)-1","v":-0.44807712588316462},{"$f":"((Quarterly!GK216/Quarterly!GK215)^4)-1","v":8.6807058709968743E-2},"--"]
["10'Q3",{"$f":"((Quarterly!B217/Quarterly!B216)^4)-1","v":4.6199474319088329E-2},{"$f":"((Quarterly!C217/Quarterly!C216)^4)-1","v":2.727182613510637E-2},{"$f":"((Quarterly!D217/Quarterly!D216)^4)-1","v":8.2339221518501482E-3},{"$f":"((Quarterly!E217/Quarterly!E216)^4)-1","v":2.6136472888582896E-2},{"$f":"((Quarterly!F217/Quarterly!F216)^4)-1","v":6.6511085891665767E-2},{"$f":"((Quarterly!G217/Quarterly!G216)^4)-1","v":2.5434191170577103E-2},{"$f":"((Quarterly!H217/Quarterly!H216)^4)-1","v":2.0220086810668558E-2},{"$f":"((Quarterly!I217/Quarterly!I216)^4)-1","v":8.3247346125450816E-2},{"$f":"((Quarterly!J217/Quarterly!J216)^4)-1","v":0.12655716774544468},{"$f":"((Quarterly!K217/Quarterly!K216)^4)-1","v":-0.30740184367108558},{"$f":"((Quarterly!L217-Quarterly!L216))","v":67.467999999999989},{"$f":"((Quarterly!M217/Quarterly!M216)^4)-1","v":0.1486370561046062},{"$f":"((Quarterly!N217/Quarterly!N216)^4)-1","v":0.11802375340360705},{"$f":"((Quarterly!O217/Quarterly!O216)^4)-1","v":0.26812144099169299},{"$f":"((Quarterly!P217/Quarterly!P216)^4)-1","v":-3.4415506792107031E-3},{"$f":"((Quarterly!Q217/Quarterly!Q216)^4)-1","v":-5.6031108960252429E-2},null,null,null,null,null,{"$f":"((Quarterly!W217/Quarterly!W216)^4)-1","v":7.5603806599816137E-2},{"$f":"((Quarterly!X217/Quarterly!X216)^4)-1","v":8.2586806973233395E-2},{"$f":"((Quarterly!Y217/Quarterly!Y216)^4)-1","v":-3.4366657377335796E-2},{"$f":"Quarterly!Z217-Quarterly!Z216","v":3.999999999999998E-2},{"$f":"((Quarterly!AA217/Quarterly!AA216)^4)-1","v":0.18510803324858682},{"$f":"((Quarterly!AB217/Quarterly!AB216)^4)-1","v":0.38610062175911586},{"$f":"Quarterly!AC217-Quarterly!AC216","v":5.6},{"$f":"Quarterly!AD217-Quarterly!AD216","v":5.7000000000000011},{"$f":"(Quarterly!AE217-Quarterly!AE216)*100","v":30.000000000000004},{"$f":"(Quarterly!AF217-Quarterly!AF216)*100","v":3.9999999999999982},{"$f":"(Quarterly!AG217-Quarterly!AG216)*100","v":34},{"$f":"((Quarterly!AH217/Quarterly!AH216)^4)-1","v":0.23055173705311116},{"$f":"((Quarterly!AI217/Quarterly!AI216)^4)-1","v":0.21302306449527308},{"$f":"((Quarterly!AJ217/Quarterly!AJ216)^4)-1","v":2.5488026160910726E-2},{"$f":"((Quarterly!AK217/Quarterly!AK216)^4)-1","v":1.8041944902508433E-2},{"$f":"((Quarterly!AL217/Quarterly!AL216)^4)-1","v":1.4375331111685208E-2},{"$f":"((Quarterly!AM217/Quarterly!AM216)^4)-1","v":5.9911410563742162E-2},{"$f":"((Quarterly!AN217/Quarterly!AN216)^4)-1","v":5.3792726906428223E-2},{"$f":"((Quarterly!AO217/Quarterly!AO216)^4)-1","v":0.10339961133870013},{"$f":"(Quarterly!AP217-Quarterly!AP216)*100","v":1.3333333333333419},{"$f":"Quarterly!AQ217-Quarterly!AQ216","v":-0.70000000000000284},{"$f":"Quarterly!AR217-Quarterly!AR216","v":-7.1666666666666643},{"$f":"Quarterly!AS217-Quarterly!AS216","v":7.3333333333333286},{"$f":"Quarterly!AT217-Quarterly!AT216","v":2.1666666666666643},{"$f":"Quarterly!AU217-Quarterly!AU216","v":-4.1666666666666643},{"$f":"Quarterly!AV217-Quarterly!AV216","v":-1.8333333333333357},{"$f":"Quarterly!AW217-Quarterly!AW216","v":5.1666666666666643},{"$f":"Quarterly!AX217-Quarterly!AX216","v":-8.2999999999999901},{"$f":"Quarterly!AY217-Quarterly!AY216","v":-7.6666666666666643},{"$f":"Quarterly!AZ217-Quarterly!AZ216","v":-3.7333333333333272},{"$f":"Quarterly!BA217-Quarterly!BA216","v":-2.36666666666666},{"$f":"Quarterly!BB217-Quarterly!BB216","v":-4.6666666666666643},{"$f":"((Quarterly!BC217/Quarterly!BC216)^4)-1","v":0.11049790472783405},{"$f":"((Quarterly!BD217/Quarterly!BD216)^4)-1","v":6.6025690365999923E-2},{"$f":"((Quarterly!BE217/Quarterly!BE216)^4)-1","v":-5.7405121034417861E-2},{"$f":"((Quarterly!BF217/Quarterly!BF216)^4)-1","v":1.7987382868268176E-2},{"$f":"((Quarterly!BG217/Quarterly!BG216)^4)-1","v":2.0228750077125879E-2},{"$f":"((Quarterly!BH217/Quarterly!BH216)^4)-1","v":6.0988497552996179E-3},{"$f":"((Quarterly!BI217/Quarterly!BI216)^4)-1","v":-2.2227714433068479E-3},{"$f":"((Quarterly!BJ217/Quarterly!BJ216)^4)-1","v":0.24495743160600303},{"$f":"((Quarterly!BK217/Quarterly!BK216)^4)-1","v":1.3285281545958489},null,{"$f":"((Quarterly!BM217/Quarterly!BM216)^4)-1","v":1.9346948219631122E-2},{"$f":"((Quarterly!BN217/Quarterly!BN216)^4)-1","v":1.4450403352496366E-2},null,null,null,null,null,{"$f":"((Quarterly!BT217/Quarterly!BT216)^4)-1","v":-6.5628062479913263E-2},{"$f":"Quarterly!BU217-Quarterly!BU216","v":-0.20054000000000016},{"$f":"Quarterly!BV217-Quarterly!BV216","v":-0.19405000000000072},{"$f":"((Quarterly!BW217/Quarterly!BW216)^4)-1","v":9.0743621457561208E-2},{"$f":"((Quarterly!BX217/Quarterly!BX216)^4)-1","v":-0.14033876359126141},{"$f":"((Quarterly!BY217/Quarterly!BY216)^4)-1","v":-0.16052467538564263},{"$f":"((Quarterly!BZ217/Quarterly!BZ216)^4)-1","v":-4.3160650046535576E-2},{"$f":"((Quarterly!CA217/Quarterly!CA216)^4)-1","v":9.1686579771720789E-2},{"$f":"((Quarterly!CB217/Quarterly!CB216)^4)-1","v":-0.23549563944958141},{"$f":"((Quarterly!CC217/Quarterly!CC216)^4)-1","v":-0.17597637897445606},{"$f":"((Quarterly!CD217/Quarterly!CD216)^4)-1","v":-0.16807535489420222},{"$f":"((Quarterly!CE217/Quarterly!CE216)^4)-1","v":-0.41148646114593357},null,{"$f":"((Quarterly!CG217/Quarterly!CG216)^4)-1","v":0.12498648164293913},{"$f":"((Quarterly!CH217/Quarterly!CH216)^4)-1","v":-0.67881338135378555},null,{"$f":"((Quarterly!CJ217/Quarterly!CJ216)^4)-1","v":-0.41148646114593357},{"$f":"((Quarterly!CK217/Quarterly!CK216)^4)-1","v":4.2730425828269025E-2},{"$f":"((Quarterly!CL217/Quarterly!CL216)^4)-1","v":-1.3582145863420658E-2},{"$f":"((Quarterly!CM217/Quarterly!CM216)^4)-1","v":-0.4000074852903065},{"$f":"((Quarterly!CN217/Quarterly!CN216)^4)-1","v":2.0057671363594265E-2},{"$f":"((Quarterly!CO217/Quarterly!CO216)^4)-1","v":9.094034249112104E-2},{"$f":"((Quarterly!CP217/Quarterly!CP216)^4)-1","v":-1.0235988091476411E-2},{"$f":"((Quarterly!CQ217/Quarterly!CQ216)^4)-1","v":7.9188532313929638E-3},{"$f":"((Quarterly!CR217/Quarterly!CR216)^4)-1","v":-8.7107096104864667E-2},{"$f":"Quarterly!CS217-Quarterly!CS216","v":-5.63333333333334},{"$f":"Quarterly!CT217-Quarterly!CT216","v":-7.2999999999999901},null,null,null,null,null,{"$f":"((Quarterly!CZ217/Quarterly!CZ216)^4)-1","v":1.1777530541084325E-2},{"$f":"((Quarterly!DA217/Quarterly!DA216)^4)-1","v":9.7188004212800383E-3},null,null,null,null,null,{"$f":"((Quarterly!DG217/Quarterly!DG216)^4)-1","v":2.4538736821130058E-2},{"$f":"((Quarterly!DH217-Quarterly!DH216)*60)","v":6.0000000000000853},{"$f":"Quarterly!DI217-Quarterly!DI216","v":-0.26666666666666572},{"$f":"(Quarterly!DJ217-Quarterly!DJ216)*100","v":-13.333333333333286},{"$f":"(Quarterly!DK217-Quarterly!DK216)*100","v":-16.666666666666607},{"$f":"((Quarterly!DL217/Quarterly!DL216)^4)-1","v":1.3727912802932396E-2},null,null,null,{"$f":"((Quarterly!DP217/Quarterly!DP216)^4)-1","v":-7.9704069125130506E-4},null,null,null,"--",{"$f":"Quarterly!DU217-Quarterly!DU216","v":-2.0000000000000036},{"$f":"((Quarterly!DV217/Quarterly!DV216)^4)-1","v":4.9848416357395342E-2},{"$f":"((Quarterly!DW217/Quarterly!DW216)^4)-1","v":0.12789295273988532},{"$f":"((Quarterly!DX217/Quarterly!DX216)^4)-1","v":9.4263389907557782E-2},{"$f":"((Quarterly!DY217/Quarterly!DY216)^4)-1","v":0.1075495123182364},{"$f":"((Quarterly!DZ217/Quarterly!DZ216)^4)-1","v":9.021954248333719E-2},{"$f":"((Quarterly!EA217/Quarterly!EA216)^4)-1","v":8.2388804958496209E-2},{"$f":"((Quarterly!EB217/Quarterly!EB216)^4)-1","v":0.10829551083203626},{"$f":"((Quarterly!EC217/Quarterly!EC216)^4)-1","v":0.20620098176445811},null,null,null,null,null,{"$f":"((Quarterly!EI217/Quarterly!EI216)^4)-1","v":2.4900370837785735E-2},{"$f":"((Quarterly!EJ217/Quarterly!EJ216)^4)-1","v":1.3216144418279896E-2},{"$f":"((Quarterly!EK217/Quarterly!EK216)^4)-1","v":2.1003122049242595E-2},null,null,null,null,null,{"$f":"((Quarterly!EQ217/Quarterly!EQ216)^4)-1","v":8.7129636139826605E-3},{"$f":"((Quarterly!ER217/Quarterly!ER216)^4)-1","v":1.5476594010739753E-2},{"$f":"((Quarterly!ES217/Quarterly!ES216)^4)-1","v":6.7998055244233857E-3},null,null,null,null,null,{"$f":"(Quarterly!EY217-Quarterly!EY216)*100","v":0},{"$f":"(Quarterly!EZ217-Quarterly!EZ216)*100","v":-0.66666666666666818},{"$f":"(Quarterly!FA217-Quarterly!FA216)*100","v":-46.333333333333201},{"$f":"(Quarterly!FB217-Quarterly!FB216)*100","v":-40.000000000000036},6.3333333333331652,{"$f":"(Quarterly!FD217-Quarterly!FD216)*100","v":-46.333333333333293},{"$f":"(Quarterly!FE217-Quarterly!FE216)*100","v":0.99999999999999811},{"$f":"(Quarterly!FF217-Quarterly!FF216)*100","v":-11.000000000000004},{"$f":"(Quarterly!FG217-Quarterly!FG216)*100","v":-33.000000000000007},{"$f":"(Quarterly!FH217-Quarterly!FH216)*100","v":-70.666666666666671},{"$f":"(Quarterly!FI217-Quarterly!FI216)*100","v":-70.333333333333314},{"$f":"+FI217-FF217","v":-59.333333333333314},null,null,null,null,null,{"$f":"((Quarterly!FP217/Quarterly!FP216)^4)-1","v":4.2836769681782627E-2},{"$f":"((Quarterly!FQ217/Quarterly!FQ216)^4)-1","v":-3.2500494153387072E-2},{"$f":"((Quarterly!FR217/Quarterly!FR216)^4)-1","v":7.5461466278732292E-2},{"$f":"((Quarterly!FS217/Quarterly!FS216)^4)-1","v":6.5854680018429868E-2},{"$f":"((Quarterly!FT217/Quarterly!FT216)^4)-1","v":-4.5020965806776947E-2},{"$f":"((Quarterly!FU217/Quarterly!FU216)^4)-1","v":-8.7377004823309457E-2},{"$f":"((Quarterly!FV217/Quarterly!FV216)^4)-1","v":-0.21417172986185862},{"$f":"((Quarterly!FW217/Quarterly!FW216)^4)-1","v":0.95501445254002792},{"$f":"((Quarterly!FX217/Quarterly!FX216)^4)-1","v":2.1632945959416672E-2},null,null,null,null,null,{"$f":"((Quarterly!GD217/Quarterly!GD216)^4)-1","v":-8.5606809110294613E-2},{"$f":"((Quarterly!GE217/Quarterly!GE216)^4)-1","v":-8.336317234599333E-2},{"$f":"((Quarterly!GF217/Quarterly!GF216)^4)-1","v":-0.13379028094958179},{"$f":"((Quarterly!GG217/Quarterly!GG216)^4)-1","v":-0.10975739011609564},{"$f":"((Quarterly!GH217/Quarterly!GH216)^4)-1","v":1.2443213860125546},{"$f":"((Quarterly!GI217/Quarterly!GI216)^4)-1","v":1.1704155880187104},{"$f":"((Quarterly!GJ217/Quarterly!GJ216)^4)-1","v":-9.4688942169270707E-2},{"$f":"((Quarterly!GK217/Quarterly!GK216)^4)-1","v":-0.14368447908944848},"--"]
["10'Q4",{"$f":"((Quarterly!B218/Quarterly!B217)^4)-1","v":4.6630513092487558E-2},{"$f":"((Quarterly!C218/Quarterly!C217)^4)-1","v":2.5443703596724321E-2},{"$f":"((Quarterly!D218/Quarterly!D217)^4)-1","v":4.2460727876863169E-2},{"$f":"((Quarterly!E218/Quarterly!E217)^4)-1","v":4.1588201399332281E-2},{"$f":"((Quarterly!F218/Quarterly!F217)^4)-1","v":0.1289241103662333},{"$f":"((Quarterly!G218/Quarterly!G217)^4)-1","v":5.2080445395584762E-2},{"$f":"((Quarterly!H218/Quarterly!H217)^4)-1","v":2.4923161674098582E-2},{"$f":"((Quarterly!I218/Quarterly!I217)^4)-1","v":8.6091590237031168E-2},{"$f":"((Quarterly!J218/Quarterly!J217)^4)-1","v":8.8457158220970999E-2},{"$f":"((Quarterly!K218/Quarterly!K217)^4)-1","v":7.848175281111347E-2},{"$f":"((Quarterly!L218-Quarterly!L217))","v":-58.152000000000001},{"$f":"((Quarterly!M218/Quarterly!M217)^4)-1","v":2.6002918732493274E-2},{"$f":"((Quarterly!N218/Quarterly!N217)^4)-1","v":0.12844853301538062},{"$f":"((Quarterly!O218/Quarterly!O217)^4)-1","v":-0.28657316874314587},{"$f":"((Quarterly!P218/Quarterly!P217)^4)-1","v":-4.0621057177154363E-2},{"$f":"((Quarterly!Q218/Quarterly!Q217)^4)-1","v":-4.1443488528531858E-2},null,null,null,null,null,{"$f":"((Quarterly!W218/Quarterly!W217)^4)-1","v":3.3752319637345485E-2},{"$f":"((Quarterly!X218/Quarterly!X217)^4)-1","v":2.8879011349437489E-2},{"$f":"((Quarterly!Y218/Quarterly!Y217)^4)-1","v":1.2633686258700649E-3},{"$f":"Quarterly!Z218-Quarterly!Z217","v":0.03},{"$f":"((Quarterly!AA218/Quarterly!AA217)^4)-1","v":-1.2246969209603664E-2},{"$f":"((Quarterly!AB218/Quarterly!AB217)^4)-1","v":6.2699743322779389E-2},{"$f":"Quarterly!AC218-Quarterly!AC217","v":0},{"$f":"Quarterly!AD218-Quarterly!AD217","v":-17.799999999999997},{"$f":"(Quarterly!AE218-Quarterly!AE217)*100","v":35.000000000000007},{"$f":"(Quarterly!AF218-Quarterly!AF217)*100","v":3},{"$f":"(Quarterly!AG218-Quarterly!AG217)*100","v":14.000000000000012},{"$f":"((Quarterly!AH218/Quarterly!AH217)^4)-1","v":0.15101875900707595},{"$f":"((Quarterly!AI218/Quarterly!AI217)^4)-1","v":2.0399317629471669E-2},{"$f":"((Quarterly!AJ218/Quarterly!AJ217)^4)-1","v":1.8041944902508433E-2},{"$f":"((Quarterly!AK218/Quarterly!AK217)^4)-1","v":1.7960934370029547E-2},{"$f":"((Quarterly!AL218/Quarterly!AL217)^4)-1","v":2.1543212784271848E-2},{"$f":"((Quarterly!AM218/Quarterly!AM217)^4)-1","v":1.6225884359098552E-2},{"$f":"((Quarterly!AN218/Quarterly!AN217)^4)-1","v":1.7730042364119569E-2},{"$f":"((Quarterly!AO218/Quarterly!AO217)^4)-1","v":0.12522239336302543},{"$f":"(Quarterly!AP218-Quarterly!AP217)*100","v":-0.33333333333334103},{"$f":"Quarterly!AQ218-Quarterly!AQ217","v":0.70000000000000284},{"$f":"Quarterly!AR218-Quarterly!AR217","v":-4.5},{"$f":"Quarterly!AS218-Quarterly!AS217","v":1.5},{"$f":"Quarterly!AT218-Quarterly!AT217","v":-0.59999999999999432},{"$f":"Quarterly!AU218-Quarterly!AU217","v":1.8333333333333357},{"$f":"Quarterly!AV218-Quarterly!AV217","v":-3.5},{"$f":"Quarterly!AW218-Quarterly!AW217","v":-0.3333333333333286},{"$f":"Quarterly!AX218-Quarterly!AX217","v":3.5},{"$f":"Quarterly!AY218-Quarterly!AY217","v":7.8333333333333357},{"$f":"Quarterly!AZ218-Quarterly!AZ217","v":1.2000000000000028},{"$f":"Quarterly!BA218-Quarterly!BA217","v":0.96666666666666146},{"$f":"Quarterly!BB218-Quarterly!BB217","v":0.76666666666667282},{"$f":"((Quarterly!BC218/Quarterly!BC217)^4)-1","v":0.11493136277449301},{"$f":"((Quarterly!BD218/Quarterly!BD217)^4)-1","v":7.9517517660726122E-2},{"$f":"((Quarterly!BE218/Quarterly!BE217)^4)-1","v":-2.30815524184248E-2},{"$f":"((Quarterly!BF218/Quarterly!BF217)^4)-1","v":1.8104965235211212E-2},{"$f":"((Quarterly!BG218/Quarterly!BG217)^4)-1","v":1.644512143963861E-2},{"$f":"((Quarterly!BH218/Quarterly!BH217)^4)-1","v":-1.4258613310962898E-2},{"$f":"((Quarterly!BI218/Quarterly!BI217)^4)-1","v":1.6603135837969241E-3},{"$f":"((Quarterly!BJ218/Quarterly!BJ217)^4)-1","v":-0.20624016724616967},{"$f":"((Quarterly!BK218/Quarterly!BK217)^4)-1","v":0.7059558517284461},null,{"$f":"((Quarterly!BM218/Quarterly!BM217)^4)-1","v":0.11721447490239267},{"$f":"((Quarterly!BN218/Quarterly!BN217)^4)-1","v":0.12800816221736744},null,null,null,null,null,{"$f":"((Quarterly!BT218/Quarterly!BT217)^4)-1","v":-6.6562692786542033E-2},{"$f":"Quarterly!BU218-Quarterly!BU217","v":-0.17300000000000004},{"$f":"Quarterly!BV218-Quarterly!BV217","v":-0.17145999999999972},{"$f":"((Quarterly!BW218/Quarterly!BW217)^4)-1","v":8.03593537771643E-2},{"$f":"((Quarterly!BX218/Quarterly!BX217)^4)-1","v":-0.23378282300207764},{"$f":"((Quarterly!BY218/Quarterly!BY217)^4)-1","v":6.6644273922479069E-2},{"$f":"((Quarterly!BZ218/Quarterly!BZ217)^4)-1","v":-5.9487913052887365E-2},{"$f":"((Quarterly!CA218/Quarterly!CA217)^4)-1","v":0.17282524360641172},{"$f":"((Quarterly!CB218/Quarterly!CB217)^4)-1","v":2.2654026285806816E-2},{"$f":"((Quarterly!CC218/Quarterly!CC217)^4)-1","v":1.9393128096080403E-2},{"$f":"((Quarterly!CD218/Quarterly!CD217)^4)-1","v":-0.19215407281549313},{"$f":"((Quarterly!CE218/Quarterly!CE217)^4)-1","v":0.10356871799700995},null,{"$f":"((Quarterly!CG218/Quarterly!CG217)^4)-1","v":-0.29938022587951929},{"$f":"((Quarterly!CH218/Quarterly!CH217)^4)-1","v":0.65780094411858081},null,{"$f":"((Quarterly!CJ218/Quarterly!CJ217)^4)-1","v":0.10356871799700995},{"$f":"((Quarterly!CK218/Quarterly!CK217)^4)-1","v":5.6163136576847794E-2},{"$f":"((Quarterly!CL218/Quarterly!CL217)^4)-1","v":-0.12271869509349598},{"$f":"((Quarterly!CM218/Quarterly!CM217)^4)-1","v":8.6248344449380232E-2},{"$f":"((Quarterly!CN218/Quarterly!CN217)^4)-1","v":2.8126733103374768E-2},{"$f":"((Quarterly!CO218/Quarterly!CO217)^4)-1","v":0.10673973634856071},{"$f":"((Quarterly!CP218/Quarterly!CP217)^4)-1","v":8.1027153999584156E-2},{"$f":"((Quarterly!CQ218/Quarterly!CQ217)^4)-1","v":8.3792308367414137E-3},{"$f":"((Quarterly!CR218/Quarterly!CR217)^4)-1","v":-8.0948319593862506E-2},{"$f":"Quarterly!CS218-Quarterly!CS217","v":2.9666666666666686},{"$f":"Quarterly!CT218-Quarterly!CT217","v":1.5666666666666629},null,null,null,null,null,{"$f":"((Quarterly!CZ218/Quarterly!CZ217)^4)-1","v":3.2784480894508583E-2},{"$f":"((Quarterly!DA218/Quarterly!DA217)^4)-1","v":1.0507867462232756E-2},null,null,null,null,null,{"$f":"((Quarterly!DG218/Quarterly!DG217)^4)-1","v":2.5757027905974894E-2},{"$f":"((Quarterly!DH218-Quarterly!DH217)*60)","v":3.9999999999997726},{"$f":"Quarterly!DI218-Quarterly!DI217","v":-0.20000000000000284},{"$f":"(Quarterly!DJ218-Quarterly!DJ217)*100","v":13.333333333333286},{"$f":"(Quarterly!DK218-Quarterly!DK217)*100","v":3.3333333333334991},{"$f":"((Quarterly!DL218/Quarterly!DL217)^4)-1","v":7.5188726257204852E-3},null,null,null,{"$f":"((Quarterly!DP218/Quarterly!DP217)^4)-1","v":9.9640967091800814E-3},null,null,null,"--",{"$f":"Quarterly!DU218-Quarterly!DU217","v":0.1666666666666643},{"$f":"((Quarterly!DV218/Quarterly!DV217)^4)-1","v":3.40386092312428E-2},{"$f":"((Quarterly!DW218/Quarterly!DW217)^4)-1","v":4.495255905198059E-3},{"$f":"((Quarterly!DX218/Quarterly!DX217)^4)-1","v":5.4430602067518263E-2},{"$f":"((Quarterly!DY218/Quarterly!DY217)^4)-1","v":8.2610554137253045E-2},{"$f":"((Quarterly!DZ218/Quarterly!DZ217)^4)-1","v":4.5880177213317497E-2},{"$f":"((Quarterly!EA218/Quarterly!EA217)^4)-1","v":5.7266361227630291E-2},{"$f":"((Quarterly!EB218/Quarterly!EB217)^4)-1","v":2.0325553312047884E-2},{"$f":"((Quarterly!EC218/Quarterly!EC217)^4)-1","v":-9.8686329152115393E-2},null,null,null,null,null,{"$f":"((Quarterly!EI218/Quarterly!EI217)^4)-1","v":4.2436869048438464E-2},{"$f":"((Quarterly!EJ218/Quarterly!EJ217)^4)-1","v":2.4855747206752099E-2},{"$f":"((Quarterly!EK218/Quarterly!EK217)^4)-1","v":1.8232016901687187E-2},null,null,null,null,null,{"$f":"((Quarterly!EQ218/Quarterly!EQ217)^4)-1","v":7.4956661449224082E-2},{"$f":"((Quarterly!ER218/Quarterly!ER217)^4)-1","v":1.0000883872916866E-2},{"$f":"((Quarterly!ES218/Quarterly!ES217)^4)-1","v":-1.6916891964160463E-3},null,null,null,null,null,{"$f":"(Quarterly!EY218-Quarterly!EY217)*100","v":0},{"$f":"(Quarterly!EZ218-Quarterly!EZ217)*100","v":0},{"$f":"(Quarterly!FA218-Quarterly!FA217)*100","v":27.666666666666551},{"$f":"(Quarterly!FB218-Quarterly!FB217)*100","v":13.66666666666676},-13.99999999999979,{"$f":"(Quarterly!FD218-Quarterly!FD217)*100","v":-3.3333333333332327},{"$f":"(Quarterly!FE218-Quarterly!FE217)*100","v":-1.9999999999999962},{"$f":"(Quarterly!FF218-Quarterly!FF217)*100","v":-1.3333333333333364},{"$f":"(Quarterly!FG218-Quarterly!FG217)*100","v":-5.6666666666666643},{"$f":"(Quarterly!FH218-Quarterly!FH217)*100","v":-6.0000000000000053},{"$f":"(Quarterly!FI218-Quarterly!FI217)*100","v":7.6666666666666661},{"$f":"+FI218-FF218","v":9.0000000000000018},null,null,null,null,null,{"$f":"((Quarterly!FP218/Quarterly!FP217)^4)-1","v":-9.4895225382841786E-2},{"$f":"((Quarterly!FQ218/Quarterly!FQ217)^4)-1","v":-6.3784283931058616E-2},{"$f":"((Quarterly!FR218/Quarterly!FR217)^4)-1","v":-0.11939591152346762},{"$f":"((Quarterly!FS218/Quarterly!FS217)^4)-1","v":0.21767281954971618},{"$f":"((Quarterly!FT218/Quarterly!FT217)^4)-1","v":-0.11798802306564582},{"$f":"((Quarterly!FU218/Quarterly!FU217)^4)-1","v":-0.14562820220504702},{"$f":"((Quarterly!FV218/Quarterly!FV217)^4)-1","v":0.17762801185284172},{"$f":"((Quarterly!FW218/Quarterly!FW217)^4)-1","v":-0.1243859973183965},{"$f":"((Quarterly!FX218/Quarterly!FX217)^4)-1","v":0.18550967621784298},null,null,null,null,null,{"$f":"((Quarterly!GD218/Quarterly!GD217)^4)-1","v":0.55296195240821255},{"$f":"((Quarterly!GE218/Quarterly!GE217)^4)-1","v":0.60508359796635602},{"$f":"((Quarterly!GF218/Quarterly!GF217)^4)-1","v":0.26647577390509736},{"$f":"((Quarterly!GG218/Quarterly!GG217)^4)-1","v":0.31184127743642298},{"$f":"((Quarterly!GH218/Quarterly!GH217)^4)-1","v":3.8814802023194241},{"$f":"((Quarterly!GI218/Quarterly!GI217)^4)-1","v":3.2031890953481952},{"$f":"((Quarterly!GJ218/Quarterly!GJ217)^4)-1","v":-0.22460191119282602},{"$f":"((Quarterly!GK218/Quarterly!GK217)^4)-1","v":0.26093247338009329},{"$f":"((Quarterly!GL218/Quarterly!GL217)^4)-1","v":0.11795986829926552}]
["11'Q1",{"$f":"((Quarterly!B219/Quarterly!B218)^4)-1","v":2.1456214078081626E-3},{"$f":"((Quarterly!C219/Quarterly!C218)^4)-1","v":-1.5360216259717729E-2},{"$f":"((Quarterly!D219/Quarterly!D218)^4)-1","v":-6.1713032149732783E-3},{"$f":"((Quarterly!E219/Quarterly!E218)^4)-1","v":2.0218133154341844E-2},{"$f":"((Quarterly!F219/Quarterly!F218)^4)-1","v":5.1830974389297735E-2},{"$f":"((Quarterly!G219/Quarterly!G218)^4)-1","v":1.900042959206405E-2},{"$f":"((Quarterly!H219/Quarterly!H218)^4)-1","v":1.5633466597657408E-2},{"$f":"((Quarterly!I219/Quarterly!I218)^4)-1","v":-9.1255401907730516E-3},{"$f":"((Quarterly!J219/Quarterly!J218)^4)-1","v":7.3442990768072702E-2},{"$f":"((Quarterly!K219/Quarterly!K218)^4)-1","v":-7.7508609069332213E-3},{"$f":"((Quarterly!L219-Quarterly!L218))","v":-33.007999999999996},{"$f":"((Quarterly!M219/Quarterly!M218)^4)-1","v":3.1076693211853135E-2},{"$f":"((Quarterly!N219/Quarterly!N218)^4)-1","v":2.1020405820089572E-2},{"$f":"((Quarterly!O219/Quarterly!O218)^4)-1","v":7.2506325818462392E-2},{"$f":"((Quarterly!P219/Quarterly!P218)^4)-1","v":-7.5027562672260961E-2},{"$f":"((Quarterly!Q219/Quarterly!Q218)^4)-1","v":-0.19508069571922559},null,null,null,null,null,{"$f":"((Quarterly!W219/Quarterly!W218)^4)-1","v":5.051648903923911E-2},{"$f":"((Quarterly!X219/Quarterly!X218)^4)-1","v":2.8672019470529664E-2},{"$f":"((Quarterly!Y219/Quarterly!Y218)^4)-1","v":4.4059278859713613E-2},{"$f":"Quarterly!Z219-Quarterly!Z218","v":0.06},{"$f":"((Quarterly!AA219/Quarterly!AA218)^4)-1","v":-0.33363354061652684},{"$f":"((Quarterly!AB219/Quarterly!AB218)^4)-1","v":-0.39031276496488632},{"$f":"Quarterly!AC219-Quarterly!AC218","v":-0.29999999999999982},{"$f":"Quarterly!AD219-Quarterly!AD218","v":27},{"$f":"(Quarterly!AE219-Quarterly!AE218)*100","v":68.000000000000014},{"$f":"(Quarterly!AF219-Quarterly!AF218)*100","v":6},{"$f":"(Quarterly!AG219-Quarterly!AG218)*100","v":11.999999999999989},{"$f":"((Quarterly!AH219/Quarterly!AH218)^4)-1","v":0.17400166546072837},{"$f":"((Quarterly!AI219/Quarterly!AI218)^4)-1","v":6.8347998092166407E-2},{"$f":"((Quarterly!AJ219/Quarterly!AJ218)^4)-1","v":5.4607547505517218E-2},{"$f":"((Quarterly!AK219/Quarterly!AK218)^4)-1","v":2.5099631483037399E-2},{"$f":"((Quarterly!AL219/Quarterly!AL218)^4)-1","v":1.0671315078852661E-2},{"$f":"((Quarterly!AM219/Quarterly!AM218)^4)-1","v":2.0702341915256106E-2},{"$f":"((Quarterly!AN219/Quarterly!AN218)^4)-1","v":3.3699323897597111E-2},{"$f":"((Quarterly!AO219/Quarterly!AO218)^4)-1","v":0.10879057787672708},{"$f":"(Quarterly!AP219-Quarterly!AP218)*100","v":-2.0000000000000018},{"$f":"Quarterly!AQ219-Quarterly!AQ218","v":1.86666666666666},{"$f":"Quarterly!AR219-Quarterly!AR218","v":10.166666666666664},{"$f":"Quarterly!AS219-Quarterly!AS218","v":-1.5},{"$f":"Quarterly!AT219-Quarterly!AT218","v":2.6666666666666714},{"$f":"Quarterly!AU219-Quarterly!AU218","v":2.8333333333333286},{"$f":"Quarterly!AV219-Quarterly!AV218","v":3.8333333333333357},{"$f":"Quarterly!AW219-Quarterly!AW218","v":-1.8333333333333357},{"$f":"Quarterly!AX219-Quarterly!AX218","v":4.3000000000000043},{"$f":"Quarterly!AY219-Quarterly!AY218","v":11.833333333333329},{"$f":"Quarterly!AZ219-Quarterly!AZ218","v":3.9333333333333442},{"$f":"Quarterly!BA219-Quarterly!BA218","v":2.6666666666666643},{"$f":"Quarterly!BB219-Quarterly!BB218","v":5.0999999999999943},{"$f":"((Quarterly!BC219/Quarterly!BC218)^4)-1","v":4.4895961690486264E-2},{"$f":"((Quarterly!BD219/Quarterly!BD218)^4)-1","v":5.9004906380182298E-2},{"$f":"((Quarterly!BE219/Quarterly!BE218)^4)-1","v":-2.2385611218630141E-2},{"$f":"((Quarterly!BF219/Quarterly!BF218)^4)-1","v":7.3721675447888657E-2},{"$f":"((Quarterly!BG219/Quarterly!BG218)^4)-1","v":-3.2874254350481524E-2},{"$f":"((Quarterly!BH219/Quarterly!BH218)^4)-1","v":2.8801076379219248E-2},{"$f":"((Quarterly!BI219/Quarterly!BI218)^4)-1","v":0.11018808178576123},{"$f":"((Quarterly!BJ219/Quarterly!BJ218)^4)-1","v":-0.26505590515466149},{"$f":"((Quarterly!BK219/Quarterly!BK218)^4)-1","v":1.44140625},null,{"$f":"((Quarterly!BM219/Quarterly!BM218)^4)-1","v":9.4525390059396752E-2},{"$f":"((Quarterly!BN219/Quarterly!BN218)^4)-1","v":9.8894430988064386E-2},null,null,null,null,null,{"$f":"((Quarterly!BT219/Quarterly!BT218)^4)-1","v":-0.12823291700822892},{"$f":"Quarterly!BU219-Quarterly!BU218","v":-0.22433000000000014},{"$f":"Quarterly!BV219-Quarterly!BV218","v":-0.23849000000000053},{"$f":"((Quarterly!BW219/Quarterly!BW218)^4)-1","v":6.3310396654137291E-2},{"$f":"((Quarterly!BX219/Quarterly!BX218)^4)-1","v":0.32929511319466043},{"$f":"((Quarterly!BY219/Quarterly!BY218)^4)-1","v":-0.10738319334400004},{"$f":"((Quarterly!BZ219/Quarterly!BZ218)^4)-1","v":-3.9426568020888508E-2},{"$f":"((Quarterly!CA219/Quarterly!CA218)^4)-1","v":0.19809032239737667},{"$f":"((Quarterly!CB219/Quarterly!CB218)^4)-1","v":0.17943901195902945},{"$f":"((Quarterly!CC219/Quarterly!CC218)^4)-1","v":2.9150882379950893E-2},{"$f":"((Quarterly!CD219/Quarterly!CD218)^4)-1","v":-0.21902345786705968},{"$f":"((Quarterly!CE219/Quarterly!CE218)^4)-1","v":-0.11422248538171442},null,{"$f":"((Quarterly!CG219/Quarterly!CG218)^4)-1","v":-0.19882461882935054},{"$f":"((Quarterly!CH219/Quarterly!CH218)^4)-1","v":0.32739669951449257},null,{"$f":"((Quarterly!CJ219/Quarterly!CJ218)^4)-1","v":-0.11422248538171442},{"$f":"((Quarterly!CK219/Quarterly!CK218)^4)-1","v":0.1185615968897904},{"$f":"((Quarterly!CL219/Quarterly!CL218)^4)-1","v":0.77449496685233554},{"$f":"((Quarterly!CM219/Quarterly!CM218)^4)-1","v":-0.19339507419249169},{"$f":"((Quarterly!CN219/Quarterly!CN218)^4)-1","v":4.9905371658261144E-2},{"$f":"((Quarterly!CO219/Quarterly!CO218)^4)-1","v":9.9010509492516219E-2},{"$f":"((Quarterly!CP219/Quarterly!CP218)^4)-1","v":0.15907303346315316},{"$f":"((Quarterly!CQ219/Quarterly!CQ218)^4)-1","v":6.9198831413159745E-3},{"$f":"((Quarterly!CR219/Quarterly!CR218)^4)-1","v":-5.724891573128732E-2},{"$f":"Quarterly!CS219-Quarterly!CS218","v":1.7999999999999972},{"$f":"Quarterly!CT219-Quarterly!CT218","v":12.966666666666654},null,null,null,null,null,{"$f":"((Quarterly!CZ219/Quarterly!CZ218)^4)-1","v":4.3376956165845248E-2},{"$f":"((Quarterly!DA219/Quarterly!DA218)^4)-1","v":1.9032114594045968E-2},null,null,null,null,null,{"$f":"((Quarterly!DG219/Quarterly!DG218)^4)-1","v":6.6878215505230543E-3},{"$f":"((Quarterly!DH219-Quarterly!DH218)*60)","v":-3.9999999999997726},{"$f":"Quarterly!DI219-Quarterly!DI218","v":-0.26666666666666572},{"$f":"(Quarterly!DJ219-Quarterly!DJ218)*100","v":-66.66666666666643},{"$f":"(Quarterly!DK219-Quarterly!DK218)*100","v":-46.666666666666856},{"$f":"((Quarterly!DL219/Quarterly!DL218)^4)-1","v":2.4163883200941649E-2},null,null,null,{"$f":"((Quarterly!DP219/Quarterly!DP218)^4)-1","v":1.0494257948612029E-2},null,null,null,"--",{"$f":"Quarterly!DU219-Quarterly!DU218","v":0},{"$f":"((Quarterly!DV219/Quarterly!DV218)^4)-1","v":4.620432344904235E-2},{"$f":"((Quarterly!DW219/Quarterly!DW218)^4)-1","v":-8.0238997093164177E-2},{"$f":"((Quarterly!DX219/Quarterly!DX218)^4)-1","v":-4.366726881545191E-2},{"$f":"((Quarterly!DY219/Quarterly!DY218)^4)-1","v":-9.2325513978425477E-2},{"$f":"((Quarterly!DZ219/Quarterly!DZ218)^4)-1","v":-2.8191200454322218E-2},{"$f":"((Quarterly!EA219/Quarterly!EA218)^4)-1","v":-2.5705955563771421E-2},{"$f":"((Quarterly!EB219/Quarterly!EB218)^4)-1","v":-3.3876254712770448E-2},{"$f":"((Quarterly!EC219/Quarterly!EC218)^4)-1","v":-0.15964029477488462},null,null,null,null,null,{"$f":"((Quarterly!EI219/Quarterly!EI218)^4)-1","v":-2.5368660286812283E-2},{"$f":"((Quarterly!EJ219/Quarterly!EJ218)^4)-1","v":-1.5322163070644601E-2},{"$f":"((Quarterly!EK219/Quarterly!EK218)^4)-1","v":-8.8262207327395314E-3},null,null,null,null,null,{"$f":"((Quarterly!EQ219/Quarterly!EQ218)^4)-1","v":0.17897975312072423},{"$f":"((Quarterly!ER219/Quarterly!ER218)^4)-1","v":3.171594860566751E-2},{"$f":"((Quarterly!ES219/Quarterly!ES218)^4)-1","v":2.2197660691531063E-2},null,null,null,null,null,{"$f":"(Quarterly!EY219-Quarterly!EY218)*100","v":0},{"$f":"(Quarterly!EZ219-Quarterly!EZ218)*100","v":-3},{"$f":"(Quarterly!FA219-Quarterly!FA218)*100","v":27.333333333333343},{"$f":"(Quarterly!FB219-Quarterly!FB218)*100","v":17.666666666666586},-9.6666666666667567,{"$f":"(Quarterly!FD219-Quarterly!FD218)*100","v":43.666666666666657},{"$f":"(Quarterly!FE219-Quarterly!FE218)*100","v":-1.0000000000000009},{"$f":"(Quarterly!FF219-Quarterly!FF218)*100","v":1.6666666666666718},{"$f":"(Quarterly!FG219-Quarterly!FG218)*100","v":20.999999999999996},{"$f":"(Quarterly!FH219-Quarterly!FH218)*100","v":63.333333333333307},{"$f":"(Quarterly!FI219-Quarterly!FI218)*100","v":59.666666666666714},{"$f":"+FI219-FF219","v":58.000000000000043},null,null,null,null,null,{"$f":"((Quarterly!FP219/Quarterly!FP218)^4)-1","v":-0.10218724874465335},{"$f":"((Quarterly!FQ219/Quarterly!FQ218)^4)-1","v":-4.6107964939102186E-2},{"$f":"((Quarterly!FR219/Quarterly!FR218)^4)-1","v":-0.10116241108120927},{"$f":"((Quarterly!FS219/Quarterly!FS218)^4)-1","v":2.6850462621985205E-2},{"$f":"((Quarterly!FT219/Quarterly!FT218)^4)-1","v":-5.6542400986020702E-2},{"$f":"((Quarterly!FU219/Quarterly!FU218)^4)-1","v":-5.7871643075380952E-2},{"$f":"((Quarterly!FV219/Quarterly!FV218)^4)-1","v":0.36358539531077283},{"$f":"((Quarterly!FW219/Quarterly!FW218)^4)-1","v":-0.45710355242739242},{"$f":"((Quarterly!FX219/Quarterly!FX218)^4)-1","v":6.8580824236704752E-2},null,null,null,null,null,{"$f":"((Quarterly!GD219/Quarterly!GD218)^4)-1","v":0.49252339855099492},{"$f":"((Quarterly!GE219/Quarterly!GE218)^4)-1","v":1.1712029481175312},{"$f":"((Quarterly!GF219/Quarterly!GF218)^4)-1","v":0.66431370188306937},{"$f":"((Quarterly!GG219/Quarterly!GG218)^4)-1","v":0.7663180057284289},{"$f":"((Quarterly!GH219/Quarterly!GH218)^4)-1","v":0.43345695536694184},{"$f":"((Quarterly!GI219/Quarterly!GI218)^4)-1","v":-0.2636616467740075},{"$f":"((Quarterly!GJ219/Quarterly!GJ218)^4)-1","v":0.24795816591317466},{"$f":"((Quarterly!GK219/Quarterly!GK218)^4)-1","v":-6.8659141821669434E-2},{"$f":"((Quarterly!GL219/Quarterly!GL218)^4)-1","v":4.6737085475262452E-2}]
["11'Q2",{"$f":"((Quarterly!B220/Quarterly!B219)^4)-1","v":5.971195683804531E-2},{"$f":"((Quarterly!C220/Quarterly!C219)^4)-1","v":2.9417046092947485E-2},{"$f":"((Quarterly!D220/Quarterly!D219)^4)-1","v":1.8747533197624788E-2},{"$f":"((Quarterly!E220/Quarterly!E219)^4)-1","v":1.1961383778812396E-2},{"$f":"((Quarterly!F220/Quarterly!F219)^4)-1","v":-1.7546041554517999E-2},{"$f":"((Quarterly!G220/Quarterly!G219)^4)-1","v":3.6795751909135532E-4},{"$f":"((Quarterly!H220/Quarterly!H219)^4)-1","v":2.0800351568178277E-2},{"$f":"((Quarterly!I220/Quarterly!I219)^4)-1","v":8.8237746046101684E-2},{"$f":"((Quarterly!J220/Quarterly!J219)^4)-1","v":3.8620358741560779E-2},{"$f":"((Quarterly!K220/Quarterly!K219)^4)-1","v":5.3799392382410716E-2},{"$f":"((Quarterly!L220-Quarterly!L219))","v":32.453000000000003},{"$f":"((Quarterly!M220/Quarterly!M219)^4)-1","v":3.0313515275072422E-2},{"$f":"((Quarterly!N220/Quarterly!N219)^4)-1","v":6.2366707805296961E-2},{"$f":"((Quarterly!O220/Quarterly!O219)^4)-1","v":-9.0552307349182848E-2},{"$f":"((Quarterly!P220/Quarterly!P219)^4)-1","v":-4.2703940208962399E-3},{"$f":"((Quarterly!Q220/Quarterly!Q219)^4)-1","v":0.27245045530646439},null,null,null,null,null,{"$f":"((Quarterly!W220/Quarterly!W219)^4)-1","v":5.4532934314919235E-3},{"$f":"((Quarterly!X220/Quarterly!X219)^4)-1","v":1.5494150228960724E-2},{"$f":"((Quarterly!Y220/Quarterly!Y219)^4)-1","v":0.10204564110884107},{"$f":"Quarterly!Z220-Quarterly!Z219","v":1.0000000000000009E-2},{"$f":"((Quarterly!AA220/Quarterly!AA219)^4)-1","v":0.23408846853012633},{"$f":"((Quarterly!AB220/Quarterly!AB219)^4)-1","v":0.45889645243803079},{"$f":"Quarterly!AC220-Quarterly!AC219","v":-1.5999999999999996},{"$f":"Quarterly!AD220-Quarterly!AD219","v":4},{"$f":"(Quarterly!AE220-Quarterly!AE219)*100","v":77},{"$f":"(Quarterly!AF220-Quarterly!AF219)*100","v":1.0000000000000009},{"$f":"(Quarterly!AG220-Quarterly!AG219)*100","v":11.000000000000011},{"$f":"((Quarterly!AH220/Quarterly!AH219)^4)-1","v":0.16140980738546395},{"$f":"((Quarterly!AI220/Quarterly!AI219)^4)-1","v":8.9722761468103984E-2},{"$f":"((Quarterly!AJ220/Quarterly!AJ219)^4)-1","v":5.7539483515474554E-2},{"$f":"((Quarterly!AK220/Quarterly!AK219)^4)-1","v":3.2154656469906451E-2},{"$f":"((Quarterly!AL220/Quarterly!AL219)^4)-1","v":1.7785246868992743E-2},{"$f":"((Quarterly!AM220/Quarterly!AM219)^4)-1","v":2.013513280118806E-2},{"$f":"((Quarterly!AN220/Quarterly!AN219)^4)-1","v":3.8216670031354649E-3},{"$f":"((Quarterly!AO220/Quarterly!AO219)^4)-1","v":0.13483498842202746},{"$f":"(Quarterly!AP220-Quarterly!AP219)*100","v":1.2499999999999956},{"$f":"Quarterly!AQ220-Quarterly!AQ219","v":-2.9666666666666615},{"$f":"Quarterly!AR220-Quarterly!AR219","v":-3},{"$f":"Quarterly!AS220-Quarterly!AS219","v":0.6666666666666714},{"$f":"Quarterly!AT220-Quarterly!AT219","v":-1.3333333333333357},{"$f":"Quarterly!AU220-Quarterly!AU219","v":-3.3333333333333286},{"$f":"Quarterly!AV220-Quarterly!AV219","v":-1.8333333333333357},{"$f":"Quarterly!AW220-Quarterly!AW219","v":1.6666666666666643},{"$f":"Quarterly!AX220-Quarterly!AX219","v":-5.7000000000000028},{"$f":"Quarterly!AY220-Quarterly!AY219","v":-6.1666666666666572},{"$f":"Quarterly!AZ220-Quarterly!AZ219","v":-7.5000000000000071},{"$f":"Quarterly!BA220-Quarterly!BA219","v":-3.2999999999999901},{"$f":"Quarterly!BB220-Quarterly!BB219","v":-5.3666666666666671},{"$f":"((Quarterly!BC220/Quarterly!BC219)^4)-1","v":0.19737802318745579},{"$f":"((Quarterly!BD220/Quarterly!BD219)^4)-1","v":7.5855966270241826E-3},{"$f":"((Quarterly!BE220/Quarterly!BE219)^4)-1","v":-2.8517005801079298E-2},{"$f":"((Quarterly!BF220/Quarterly!BF219)^4)-1","v":-2.2104355019399669E-2},{"$f":"((Quarterly!BG220/Quarterly!BG219)^4)-1","v":1.3337699149700288E-2},{"$f":"((Quarterly!BH220/Quarterly!BH219)^4)-1","v":-6.5254833519663658E-2},{"$f":"((Quarterly!BI220/Quarterly!BI219)^4)-1","v":-3.4961670333129025E-2},{"$f":"((Quarterly!BJ220/Quarterly!BJ219)^4)-1","v":0.40562802464034964},{"$f":"((Quarterly!BK220/Quarterly!BK219)^4)-1","v":0.14014938271604982},null,{"$f":"((Quarterly!BM220/Quarterly!BM219)^4)-1","v":6.8437269221669261E-2},{"$f":"((Quarterly!BN220/Quarterly!BN219)^4)-1","v":6.5784664184477037E-2},null,null,null,null,null,{"$f":"((Quarterly!BT220/Quarterly!BT219)^4)-1","v":2.1490311041200583E-2},{"$f":"Quarterly!BU220-Quarterly!BU219","v":-0.10019999999999918},{"$f":"Quarterly!BV220-Quarterly!BV219","v":-6.4519999999999911E-2},{"$f":"((Quarterly!BW220/Quarterly!BW219)^4)-1","v":9.7051762805190123E-2},{"$f":"((Quarterly!BX220/Quarterly!BX219)^4)-1","v":2.8929134858795225E-2},{"$f":"((Quarterly!BY220/Quarterly!BY219)^4)-1","v":0.37512205943598032},{"$f":"((Quarterly!BZ220/Quarterly!BZ219)^4)-1","v":-3.9020784885995141E-2},{"$f":"((Quarterly!CA220/Quarterly!CA219)^4)-1","v":-0.15520430550766573},{"$f":"((Quarterly!CB220/Quarterly!CB219)^4)-1","v":0.53920738615351183},{"$f":"((Quarterly!CC220/Quarterly!CC219)^4)-1","v":0.32746887213626863},{"$f":"((Quarterly!CD220/Quarterly!CD219)^4)-1","v":-0.27265164738094938},{"$f":"((Quarterly!CE220/Quarterly!CE219)^4)-1","v":0.19010018089703706},null,{"$f":"((Quarterly!CG220/Quarterly!CG219)^4)-1","v":0.26407461058009551},{"$f":"((Quarterly!CH220/Quarterly!CH219)^4)-1","v":-0.14225074988435615},null,{"$f":"((Quarterly!CJ220/Quarterly!CJ219)^4)-1","v":0.22026515948342018},{"$f":"((Quarterly!CK220/Quarterly!CK219)^4)-1","v":4.7535396714848632E-2},{"$f":"((Quarterly!CL220/Quarterly!CL219)^4)-1","v":-9.8079449280922382E-2},{"$f":"((Quarterly!CM220/Quarterly!CM219)^4)-1","v":7.2280463055257815E-2},{"$f":"((Quarterly!CN220/Quarterly!CN219)^4)-1","v":4.5678264395010437E-4},{"$f":"((Quarterly!CO220/Quarterly!CO219)^4)-1","v":0.1670984583009163},{"$f":"((Quarterly!CP220/Quarterly!CP219)^4)-1","v":4.5708587370995257E-2},{"$f":"((Quarterly!CQ220/Quarterly!CQ219)^4)-1","v":7.8978478296902743E-3},{"$f":"((Quarterly!CR220/Quarterly!CR219)^4)-1","v":-1.6600222057677749E-3},{"$f":"Quarterly!CS220-Quarterly!CS219","v":-3.24166666666666},{"$f":"Quarterly!CT220-Quarterly!CT219","v":-4.4916666666666529},null,null,null,null,null,{"$f":"((Quarterly!CZ220/Quarterly!CZ219)^4)-1","v":5.0118873455888391E-2},{"$f":"((Quarterly!DA220/Quarterly!DA219)^4)-1","v":2.3462347331143052E-2},null,null,null,null,null,{"$f":"((Quarterly!DG220/Quarterly!DG219)^4)-1","v":5.1930770307502483E-2},{"$f":"((Quarterly!DH220-Quarterly!DH219)*60)","v":9.4999999999998863},{"$f":"Quarterly!DI220-Quarterly!DI219","v":-9.1666666666668561E-2},{"$f":"(Quarterly!DJ220-Quarterly!DJ219)*100","v":-5.8333333333335347},{"$f":"(Quarterly!DK220-Quarterly!DK219)*100","v":1.6666666666667496},{"$f":"((Quarterly!DL220/Quarterly!DL219)^4)-1","v":2.512603691973192E-2},null,null,null,{"$f":"((Quarterly!DP220/Quarterly!DP219)^4)-1","v":2.2974789095575598E-2},null,null,null,"--",{"$f":"Quarterly!DU220-Quarterly!DU219","v":0.35833333333333783},{"$f":"((Quarterly!DV220/Quarterly!DV219)^4)-1","v":5.4520585841013824E-2},{"$f":"((Quarterly!DW220/Quarterly!DW219)^4)-1","v":0.15140382228661386},{"$f":"((Quarterly!DX220/Quarterly!DX219)^4)-1","v":9.3841607122940873E-2},{"$f":"((Quarterly!DY220/Quarterly!DY219)^4)-1","v":0.19756550596877864},{"$f":"((Quarterly!DZ220/Quarterly!DZ219)^4)-1","v":6.3610876716415188E-2},{"$f":"((Quarterly!EA220/Quarterly!EA219)^4)-1","v":5.9204798645907664E-2},{"$f":"((Quarterly!EB220/Quarterly!EB219)^4)-1","v":7.3795202055953135E-2},{"$f":"((Quarterly!EC220/Quarterly!EC219)^4)-1","v":0.29580948021201792},null,null,null,null,null,{"$f":"((Quarterly!EI220/Quarterly!EI219)^4)-1","v":3.5530722784538948E-2},{"$f":"((Quarterly!EJ220/Quarterly!EJ219)^4)-1","v":2.0129614792699702E-2},{"$f":"((Quarterly!EK220/Quarterly!EK219)^4)-1","v":1.9445120845712038E-2},null,null,null,null,null,{"$f":"((Quarterly!EQ220/Quarterly!EQ219)^4)-1","v":0.17420558015998333},{"$f":"((Quarterly!ER220/Quarterly!ER219)^4)-1","v":3.8276893766576059E-2},{"$f":"((Quarterly!ES220/Quarterly!ES219)^4)-1","v":3.3033062527916934E-2},null,null,null,null,null,{"$f":"(Quarterly!EY220-Quarterly!EY219)*100","v":0},{"$f":"(Quarterly!EZ220-Quarterly!EZ219)*100","v":-6.916666666666667},{"$f":"(Quarterly!FA220-Quarterly!FA219)*100","v":-12.000000000000011},{"$f":"(Quarterly!FB220-Quarterly!FB219)*100","v":-26.249999999999929},-14.249999999999918,{"$f":"(Quarterly!FD220-Quarterly!FD219)*100","v":-21.500000000000075},{"$f":"(Quarterly!FE220-Quarterly!FE219)*100","v":-8.1666666666666661},{"$f":"(Quarterly!FF220-Quarterly!FF219)*100","v":-7.0833333333333357},{"$f":"(Quarterly!FG220-Quarterly!FG219)*100","v":-16.583333333333339},{"$f":"(Quarterly!FH220-Quarterly!FH219)*100","v":-33.749999999999972},{"$f":"(Quarterly!FI220-Quarterly!FI219)*100","v":-30.250000000000064},{"$f":"+FI220-FF220","v":-23.166666666666728},null,null,null,null,null,{"$f":"((Quarterly!FP220/Quarterly!FP219)^4)-1","v":-8.4628234611408559E-2},{"$f":"((Quarterly!FQ220/Quarterly!FQ219)^4)-1","v":-5.3825680635268824E-2},{"$f":"((Quarterly!FR220/Quarterly!FR219)^4)-1","v":-0.11205607118438843},{"$f":"((Quarterly!FS220/Quarterly!FS219)^4)-1","v":0.21611553690824126},{"$f":"((Quarterly!FT220/Quarterly!FT219)^4)-1","v":-0.10540432930505172},{"$f":"((Quarterly!FU220/Quarterly!FU219)^4)-1","v":-0.12994099715775209},{"$f":"((Quarterly!FV220/Quarterly!FV219)^4)-1","v":0.14246389640966006},{"$f":"((Quarterly!FW220/Quarterly!FW219)^4)-1","v":0.73258803270869599},{"$f":"((Quarterly!FX220/Quarterly!FX219)^4)-1","v":0.29798031068167852},null,null,null,null,null,{"$f":"((Quarterly!GD220/Quarterly!GD219)^4)-1","v":0.34522474177316309},{"$f":"((Quarterly!GE220/Quarterly!GE219)^4)-1","v":0.56309406904166703},{"$f":"((Quarterly!GF220/Quarterly!GF219)^4)-1","v":0.75848370877150595},{"$f":"((Quarterly!GG220/Quarterly!GG219)^4)-1","v":0.50330282377047264},{"$f":"((Quarterly!GH220/Quarterly!GH219)^4)-1","v":0.15012364087988717},{"$f":"((Quarterly!GI220/Quarterly!GI219)^4)-1","v":0.65533755083870981},{"$f":"((Quarterly!GJ220/Quarterly!GJ219)^4)-1","v":0.17552348180779487},{"$f":"((Quarterly!GK220/Quarterly!GK219)^4)-1","v":-1.0498227519544212E-3},{"$f":"((Quarterly!GL220/Quarterly!GL219)^4)-1","v":-7.8742088109701402E-2}]
["11'Q3",{"$f":"((Quarterly!B221/Quarterly!B220)^4)-1","v":3.3051723898887664E-2},{"$f":"((Quarterly!C221/Quarterly!C220)^4)-1","v":8.4576301485637106E-3},{"$f":"((Quarterly!D221/Quarterly!D220)^4)-1","v":2.9994278367571736E-2},{"$f":"((Quarterly!E221/Quarterly!E220)^4)-1","v":1.3607081546611832E-2},{"$f":"((Quarterly!F221/Quarterly!F220)^4)-1","v":4.2567098429249883E-2},{"$f":"((Quarterly!G221/Quarterly!G220)^4)-1","v":-9.7495703364350872E-3},{"$f":"((Quarterly!H221/Quarterly!H220)^4)-1","v":1.7355002450199386E-2},{"$f":"((Quarterly!I221/Quarterly!I220)^4)-1","v":0.19406528702197656},{"$f":"((Quarterly!J221/Quarterly!J220)^4)-1","v":0.1782267182210413},{"$f":"((Quarterly!K221/Quarterly!K220)^4)-1","v":8.0815162877822422E-2},{"$f":"((Quarterly!L221-Quarterly!L220))","v":-70.545999999999992},{"$f":"((Quarterly!M221/Quarterly!M220)^4)-1","v":3.2769515774577096E-2},{"$f":"((Quarterly!N221/Quarterly!N220)^4)-1","v":4.2798959532844627E-2},{"$f":"((Quarterly!O221/Quarterly!O220)^4)-1","v":-8.1114162267140744E-3},{"$f":"((Quarterly!P221/Quarterly!P220)^4)-1","v":-2.5005030516247362E-2},{"$f":"((Quarterly!Q221/Quarterly!Q220)^4)-1","v":-0.22719731052706116},null,null,null,null,null,{"$f":"((Quarterly!W221/Quarterly!W220)^4)-1","v":3.858966756780613E-2},{"$f":"((Quarterly!X221/Quarterly!X220)^4)-1","v":2.5226977025323949E-2},{"$f":"((Quarterly!Y221/Quarterly!Y220)^4)-1","v":9.6991209641028142E-2},{"$f":"Quarterly!Z221-Quarterly!Z220","v":4.9999999999999989E-2},{"$f":"((Quarterly!AA221/Quarterly!AA220)^4)-1","v":2.0507963130749207E-2},{"$f":"((Quarterly!AB221/Quarterly!AB220)^4)-1","v":0.21119594533071884},{"$f":"Quarterly!AC221-Quarterly!AC220","v":10.8},{"$f":"Quarterly!AD221-Quarterly!AD220","v":-3.8},{"$f":"(Quarterly!AE221-Quarterly!AE220)*100","v":63.999999999999972},{"$f":"(Quarterly!AF221-Quarterly!AF220)*100","v":4.9999999999999991},{"$f":"(Quarterly!AG221-Quarterly!AG220)*100","v":68.999999999999972},{"$f":"((Quarterly!AH221/Quarterly!AH220)^4)-1","v":0.1101601419111673},{"$f":"((Quarterly!AI221/Quarterly!AI220)^4)-1","v":7.7010765517955493E-2},{"$f":"((Quarterly!AJ221/Quarterly!AJ220)^4)-1","v":6.9625498753935755E-3},{"$f":"((Quarterly!AK221/Quarterly!AK220)^4)-1","v":1.408429029203373E-2},{"$f":"((Quarterly!AL221/Quarterly!AL220)^4)-1","v":1.7706520064447506E-2},{"$f":"((Quarterly!AM221/Quarterly!AM220)^4)-1","v":3.5054577763153016E-2},{"$f":"((Quarterly!AN221/Quarterly!AN220)^4)-1","v":3.3589903833268542E-2},{"$f":"((Quarterly!AO221/Quarterly!AO220)^4)-1","v":4.4979108685942126E-2},{"$f":"(Quarterly!AP221-Quarterly!AP220)*100","v":-0.24999999999999467},{"$f":"Quarterly!AQ221-Quarterly!AQ220","v":-3.7000000000000099},{"$f":"Quarterly!AR221-Quarterly!AR220","v":-9.3333333333333357},{"$f":"Quarterly!AS221-Quarterly!AS220","v":4.1666666666666643},{"$f":"Quarterly!AT221-Quarterly!AT220","v":-5.3333333333333357},{"$f":"Quarterly!AU221-Quarterly!AU220","v":-4.5833333333333357},{"$f":"Quarterly!AV221-Quarterly!AV220","v":0.8333333333333357},{"$f":"Quarterly!AW221-Quarterly!AW220","v":-0.6666666666666643},{"$f":"Quarterly!AX221-Quarterly!AX220","v":-5.8666666666666742},{"$f":"Quarterly!AY221-Quarterly!AY220","v":-19.833333333333336},{"$f":"Quarterly!AZ221-Quarterly!AZ220","v":-4.9333333333333371},{"$f":"Quarterly!BA221-Quarterly!BA220","v":-5.3000000000000043},{"$f":"Quarterly!BB221-Quarterly!BB220","v":3.3333333333331439E-2},{"$f":"((Quarterly!BC221/Quarterly!BC220)^4)-1","v":0.13104983899932954},{"$f":"((Quarterly!BD221/Quarterly!BD220)^4)-1","v":6.7996347618433983E-2},{"$f":"((Quarterly!BE221/Quarterly!BE220)^4)-1","v":-4.6437265676667838E-2},{"$f":"((Quarterly!BF221/Quarterly!BF220)^4)-1","v":2.5382749054473575E-2},{"$f":"((Quarterly!BG221/Quarterly!BG220)^4)-1","v":-7.2130505503114062E-3},{"$f":"((Quarterly!BH221/Quarterly!BH220)^4)-1","v":-6.8398418300363861E-4},{"$f":"((Quarterly!BI221/Quarterly!BI220)^4)-1","v":3.2802153092094777E-2},{"$f":"((Quarterly!BJ221/Quarterly!BJ220)^4)-1","v":-0.17785912683479954},{"$f":"((Quarterly!BK221/Quarterly!BK220)^4)-1","v":0.81870904938815592},null,{"$f":"((Quarterly!BM221/Quarterly!BM220)^4)-1","v":3.5001541239720879E-2},{"$f":"((Quarterly!BN221/Quarterly!BN220)^4)-1","v":3.0779057605121674E-2},null,null,null,null,null,{"$f":"((Quarterly!BT221/Quarterly!BT220)^4)-1","v":4.6088610646737305E-3},{"$f":"Quarterly!BU221-Quarterly!BU220","v":-0.12410000000000032},{"$f":"Quarterly!BV221-Quarterly!BV220","v":-9.9859999999999616E-2},{"$f":"((Quarterly!BW221/Quarterly!BW220)^4)-1","v":6.0401589910876741E-2},{"$f":"((Quarterly!BX221/Quarterly!BX220)^4)-1","v":0.24344263392711807},{"$f":"((Quarterly!BY221/Quarterly!BY220)^4)-1","v":8.0497703774645935E-2},{"$f":"((Quarterly!BZ221/Quarterly!BZ220)^4)-1","v":-1.5177392584882266E-2},{"$f":"((Quarterly!CA221/Quarterly!CA220)^4)-1","v":0.10852854133996281},{"$f":"((Quarterly!CB221/Quarterly!CB220)^4)-1","v":8.6575535351306687E-2},{"$f":"((Quarterly!CC221/Quarterly!CC220)^4)-1","v":4.9037817134329975E-2},{"$f":"((Quarterly!CD221/Quarterly!CD220)^4)-1","v":-0.1416835210776245},{"$f":"((Quarterly!CE221/Quarterly!CE220)^4)-1","v":-7.2194650424815099E-2},null,{"$f":"((Quarterly!CG221/Quarterly!CG220)^4)-1","v":-0.16561920656853224},{"$f":"((Quarterly!CH221/Quarterly!CH220)^4)-1","v":6.8743356323656801E-2},null,{"$f":"((Quarterly!CJ221/Quarterly!CJ220)^4)-1","v":-9.5130016795608507E-2},{"$f":"((Quarterly!CK221/Quarterly!CK220)^4)-1","v":3.581934170759582E-2},{"$f":"((Quarterly!CL221/Quarterly!CL220)^4)-1","v":5.0077431700687347E-2},{"$f":"((Quarterly!CM221/Quarterly!CM220)^4)-1","v":0},{"$f":"((Quarterly!CN221/Quarterly!CN220)^4)-1","v":1.4553159616718769E-2},{"$f":"((Quarterly!CO221/Quarterly!CO220)^4)-1","v":0.17382015325054856},{"$f":"((Quarterly!CP221/Quarterly!CP220)^4)-1","v":3.1304296356838845E-2},{"$f":"((Quarterly!CQ221/Quarterly!CQ220)^4)-1","v":6.607426350911938E-3},{"$f":"((Quarterly!CR221/Quarterly!CR220)^4)-1","v":7.623013193009065E-3},{"$f":"Quarterly!CS221-Quarterly!CS220","v":-10.158333333333339},{"$f":"Quarterly!CT221-Quarterly!CT220","v":-10.608333333333334},null,null,null,null,null,{"$f":"((Quarterly!CZ221/Quarterly!CZ220)^4)-1","v":2.2569440313618072E-2},{"$f":"((Quarterly!DA221/Quarterly!DA220)^4)-1","v":2.2978051906797914E-2},null,null,null,null,null,{"$f":"((Quarterly!DG221/Quarterly!DG220)^4)-1","v":1.8207684940088065E-2},{"$f":"((Quarterly!DH221-Quarterly!DH220)*60)","v":0.49999999999997158},{"$f":"Quarterly!DI221-Quarterly!DI220","v":2.5000000000005684E-2},{"$f":"(Quarterly!DJ221-Quarterly!DJ220)*100","v":15.833333333333321},{"$f":"(Quarterly!DK221-Quarterly!DK220)*100","v":-5.0000000000000711},{"$f":"((Quarterly!DL221/Quarterly!DL220)^4)-1","v":1.2742605496840698E-2},null,null,null,{"$f":"((Quarterly!DP221/Quarterly!DP220)^4)-1","v":1.0341045748160527E-2},null,null,null,"--",{"$f":"Quarterly!DU221-Quarterly!DU220","v":0.40833333333333499},{"$f":"((Quarterly!DV221/Quarterly!DV220)^4)-1","v":1.9012151873493588E-2},{"$f":"((Quarterly!DW221/Quarterly!DW220)^4)-1","v":9.2886685877597852E-2},{"$f":"((Quarterly!DX221/Quarterly!DX220)^4)-1","v":4.9698848882815838E-2},{"$f":"((Quarterly!DY221/Quarterly!DY220)^4)-1","v":8.8452258493505465E-2},{"$f":"((Quarterly!DZ221/Quarterly!DZ220)^4)-1","v":3.7747573585158678E-2},{"$f":"((Quarterly!EA221/Quarterly!EA220)^4)-1","v":3.4592028324203383E-2},{"$f":"((Quarterly!EB221/Quarterly!EB220)^4)-1","v":4.5006487670166129E-2},{"$f":"((Quarterly!EC221/Quarterly!EC220)^4)-1","v":0.19518571905946414},null,null,null,null,null,{"$f":"((Quarterly!EI221/Quarterly!EI220)^4)-1","v":4.6765311829967793E-2},{"$f":"((Quarterly!EJ221/Quarterly!EJ220)^4)-1","v":2.7187792863941684E-2},{"$f":"((Quarterly!EK221/Quarterly!EK220)^4)-1","v":1.7610778463067911E-2},null,null,null,null,null,{"$f":"((Quarterly!EQ221/Quarterly!EQ220)^4)-1","v":-1.7968346663258528E-3},{"$f":"((Quarterly!ER221/Quarterly!ER220)^4)-1","v":2.6754376295949012E-2},{"$f":"((Quarterly!ES221/Quarterly!ES220)^4)-1","v":1.5331426246248281E-2},null,null,null,null,null,{"$f":"(Quarterly!EY221-Quarterly!EY220)*100","v":0},{"$f":"(Quarterly!EZ221-Quarterly!EZ220)*100","v":-0.41666666666666796},{"$f":"(Quarterly!FA221-Quarterly!FA220)*100","v":-54.6666666666666},{"$f":"(Quarterly!FB221-Quarterly!FB220)*100","v":-36.416666666666671},18.249999999999929,{"$f":"(Quarterly!FD221-Quarterly!FD220)*100","v":-32.500000000000014},{"$f":"(Quarterly!FE221-Quarterly!FE220)*100","v":-2.1666666666666674},{"$f":"(Quarterly!FF221-Quarterly!FF220)*100","v":-6.9166666666666679},{"$f":"(Quarterly!FG221-Quarterly!FG220)*100","v":-24.416666666666664},{"$f":"(Quarterly!FH221-Quarterly!FH220)*100","v":-62.916666666666664},{"$f":"(Quarterly!FI221-Quarterly!FI220)*100","v":-73.083333333333343},-66.166666666666671,null,null,null,null,null,{"$f":"((Quarterly!FP221/Quarterly!FP220)^4)-1","v":6.5233803980172311E-2},{"$f":"((Quarterly!FQ221/Quarterly!FQ220)^4)-1","v":-4.3706691502656159E-2},{"$f":"((Quarterly!FR221/Quarterly!FR220)^4)-1","v":0.22716530461086815},{"$f":"((Quarterly!FS221/Quarterly!FS220)^4)-1","v":-6.7780416917793795E-2},{"$f":"((Quarterly!FT221/Quarterly!FT220)^4)-1","v":3.3985854321893827E-2},{"$f":"((Quarterly!FU221/Quarterly!FU220)^4)-1","v":2.0032442156946217E-2},{"$f":"((Quarterly!FV221/Quarterly!FV220)^4)-1","v":4.7712854275643535E-2},{"$f":"((Quarterly!FW221/Quarterly!FW220)^4)-1","v":0.47117375106236459},{"$f":"((Quarterly!FX221/Quarterly!FX220)^4)-1","v":2.7219746854458604E-2},null,null,null,null,null,{"$f":"((Quarterly!GD221/Quarterly!GD220)^4)-1","v":-0.3827987207103547},{"$f":"((Quarterly!GE221/Quarterly!GE220)^4)-1","v":-0.13013385228651175},{"$f":"((Quarterly!GF221/Quarterly!GF220)^4)-1","v":-0.15782247280034489},{"$f":"((Quarterly!GG221/Quarterly!GG220)^4)-1","v":-0.13891017557790231},{"$f":"((Quarterly!GH221/Quarterly!GH220)^4)-1","v":0.69031817988739563},{"$f":"((Quarterly!GI221/Quarterly!GI220)^4)-1","v":1.1178352437995622},{"$f":"((Quarterly!GJ221/Quarterly!GJ220)^4)-1","v":-0.25667317072618057},{"$f":"((Quarterly!GK221/Quarterly!GK220)^4)-1","v":-0.11959000182620949},{"$f":"((Quarterly!GL221/Quarterly!GL220)^4)-1","v":0.35881594060692668}]
["11'Q4",{"$f":"((Quarterly!B222/Quarterly!B221)^4)-1","v":5.1837398017181346E-2},{"$f":"((Quarterly!C222/Quarterly!C221)^4)-1","v":4.5797601862365589E-2},{"$f":"((Quarterly!D222/Quarterly!D221)^4)-1","v":1.7631145147367633E-2},{"$f":"((Quarterly!E222/Quarterly!E221)^4)-1","v":1.3502006673249189E-2},{"$f":"((Quarterly!F222/Quarterly!F221)^4)-1","v":0.11958804471563589},{"$f":"((Quarterly!G222/Quarterly!G221)^4)-1","v":4.6102620334231847E-3},{"$f":"((Quarterly!H222/Quarterly!H221)^4)-1","v":6.2060002399899616E-4},{"$f":"((Quarterly!I222/Quarterly!I221)^4)-1","v":9.517035661716422E-2},{"$f":"((Quarterly!J222/Quarterly!J221)^4)-1","v":8.3886498498134676E-2},{"$f":"((Quarterly!K222/Quarterly!K221)^4)-1","v":0.11671840620992446},{"$f":"((Quarterly!L222-Quarterly!L221))","v":93.843000000000004},{"$f":"((Quarterly!M222/Quarterly!M221)^4)-1","v":4.5458451284609902E-2},{"$f":"((Quarterly!N222/Quarterly!N221)^4)-1","v":4.0535094715655973E-2},{"$f":"((Quarterly!O222/Quarterly!O221)^4)-1","v":6.6354457608123418E-2},{"$f":"((Quarterly!P222/Quarterly!P221)^4)-1","v":-1.5596208326037475E-2},{"$f":"((Quarterly!Q222/Quarterly!Q221)^4)-1","v":-0.11030242386638978},null,null,null,null,null,{"$f":"((Quarterly!W222/Quarterly!W221)^4)-1","v":2.7190836464980661E-2},{"$f":"((Quarterly!X222/Quarterly!X221)^4)-1","v":2.2851198658921712E-2},{"$f":"((Quarterly!Y222/Quarterly!Y221)^4)-1","v":0.10888658474954505},{"$f":"Quarterly!Z222-Quarterly!Z221","v":4.9999999999999989E-2},{"$f":"((Quarterly!AA222/Quarterly!AA221)^4)-1","v":0.23232186451810022},{"$f":"((Quarterly!AB222/Quarterly!AB221)^4)-1","v":0.3411045819996974},{"$f":"Quarterly!AC222-Quarterly!AC221","v":-0.19999999999999929},{"$f":"Quarterly!AD222-Quarterly!AD221","v":-24.6},{"$f":"(Quarterly!AE222-Quarterly!AE221)*100","v":66.000000000000014},{"$f":"(Quarterly!AF222-Quarterly!AF221)*100","v":4.9999999999999991},{"$f":"(Quarterly!AG222-Quarterly!AG221)*100","v":33.000000000000007},{"$f":"((Quarterly!AH222/Quarterly!AH221)^4)-1","v":0.26246742903968601},{"$f":"((Quarterly!AI222/Quarterly!AI221)^4)-1","v":0.17601835201939275},{"$f":"((Quarterly!AJ222/Quarterly!AJ221)^4)-1","v":2.4485093451668494E-2},{"$f":"((Quarterly!AK222/Quarterly!AK221)^4)-1","v":1.7566554261175149E-2},{"$f":"((Quarterly!AL222/Quarterly!AL221)^4)-1","v":1.7628487143952265E-2},{"$f":"((Quarterly!AM222/Quarterly!AM221)^4)-1","v":3.8136949322665981E-2},{"$f":"((Quarterly!AN222/Quarterly!AN221)^4)-1","v":3.6303876912723076E-2},{"$f":"((Quarterly!AO222/Quarterly!AO221)^4)-1","v":5.0410398887758001E-2},{"$f":"(Quarterly!AP222-Quarterly!AP221)*100","v":0},{"$f":"Quarterly!AQ222-Quarterly!AQ221","v":-0.96666666666665435},{"$f":"Quarterly!AR222-Quarterly!AR221","v":2.6666666666666714},{"$f":"Quarterly!AS222-Quarterly!AS221","v":-1.1666666666666643},{"$f":"Quarterly!AT222-Quarterly!AT221","v":-0.90000000000000568},{"$f":"Quarterly!AU222-Quarterly!AU221","v":-0.4166666666666643},{"$f":"Quarterly!AV222-Quarterly!AV221","v":-3.6666666666666643},{"$f":"Quarterly!AW222-Quarterly!AW221","v":-5.3333333333333357},{"$f":"Quarterly!AX222-Quarterly!AX221","v":3.1666666666666714},{"$f":"Quarterly!AY222-Quarterly!AY221","v":-12.333333333333336},{"$f":"Quarterly!AZ222-Quarterly!AZ221","v":3.6000000000000085},{"$f":"Quarterly!BA222-Quarterly!BA221","v":0.53333333333333144},{"$f":"Quarterly!BB222-Quarterly!BB221","v":-0.6666666666666643},{"$f":"((Quarterly!BC222/Quarterly!BC221)^4)-1","v":0.11421735944595124},{"$f":"((Quarterly!BD222/Quarterly!BD221)^4)-1","v":3.9055654620012703E-3},{"$f":"((Quarterly!BE222/Quarterly!BE221)^4)-1","v":-5.2550886648436324E-2},{"$f":"((Quarterly!BF222/Quarterly!BF221)^4)-1","v":-5.1398943478619841E-2},{"$f":"((Quarterly!BG222/Quarterly!BG221)^4)-1","v":2.7993474140344254E-2},{"$f":"((Quarterly!BH222/Quarterly!BH221)^4)-1","v":-6.7990567082689246E-2},{"$f":"((Quarterly!BI222/Quarterly!BI221)^4)-1","v":-7.7213762510552675E-2},{"$f":"((Quarterly!BJ222/Quarterly!BJ221)^4)-1","v":4.0397800358103586E-2},{"$f":"((Quarterly!BK222/Quarterly!BK221)^4)-1","v":0.68238514041304654},null,{"$f":"((Quarterly!BM222/Quarterly!BM221)^4)-1","v":6.9168320098853098E-2},{"$f":"((Quarterly!BN222/Quarterly!BN221)^4)-1","v":7.3509972758373898E-2},null,null,null,null,null,{"$f":"((Quarterly!BT222/Quarterly!BT221)^4)-1","v":1.5849649997234483E-2},{"$f":"Quarterly!BU222-Quarterly!BU221","v":-9.5219999999999416E-2},{"$f":"Quarterly!BV222-Quarterly!BV221","v":-4.0300000000000225E-2},{"$f":"((Quarterly!BW222/Quarterly!BW221)^4)-1","v":5.6891378238281609E-2},{"$f":"((Quarterly!BX222/Quarterly!BX221)^4)-1","v":0.38330314165681889},{"$f":"((Quarterly!BY222/Quarterly!BY221)^4)-1","v":0.48748521082404239},{"$f":"((Quarterly!BZ222/Quarterly!BZ221)^4)-1","v":-5.3968228305835142E-2},{"$f":"((Quarterly!CA222/Quarterly!CA221)^4)-1","v":0.29649549826401822},{"$f":"((Quarterly!CB222/Quarterly!CB221)^4)-1","v":-0.21251295821111549},{"$f":"((Quarterly!CC222/Quarterly!CC221)^4)-1","v":-0.19324242627927479},{"$f":"((Quarterly!CD222/Quarterly!CD221)^4)-1","v":-0.18267904419818215},{"$f":"((Quarterly!CE222/Quarterly!CE221)^4)-1","v":0.44113994199420747},null,{"$f":"((Quarterly!CG222/Quarterly!CG221)^4)-1","v":-0.48593772736028973},{"$f":"((Quarterly!CH222/Quarterly!CH221)^4)-1","v":0.11791162058418192},null,{"$f":"((Quarterly!CJ222/Quarterly!CJ221)^4)-1","v":0.44113994199420747},{"$f":"((Quarterly!CK222/Quarterly!CK221)^4)-1","v":1.5412270762688696E-2},{"$f":"((Quarterly!CL222/Quarterly!CL221)^4)-1","v":-0.12905729500158913},{"$f":"((Quarterly!CM222/Quarterly!CM221)^4)-1","v":0.57953646639540413},{"$f":"((Quarterly!CN222/Quarterly!CN221)^4)-1","v":2.4210645141082843E-3},{"$f":"((Quarterly!CO222/Quarterly!CO221)^4)-1","v":8.5755112145888601E-2},{"$f":"((Quarterly!CP222/Quarterly!CP221)^4)-1","v":4.3501694360283505E-2},{"$f":"((Quarterly!CQ222/Quarterly!CQ221)^4)-1","v":8.0636249047278952E-3},{"$f":"((Quarterly!CR222/Quarterly!CR221)^4)-1","v":1.8611040091522479E-2},{"$f":"Quarterly!CS222-Quarterly!CS221","v":5.1333333333333329},{"$f":"Quarterly!CT222-Quarterly!CT221","v":3.2666666666666586},null,null,null,null,null,{"$f":"((Quarterly!CZ222/Quarterly!CZ221)^4)-1","v":1.8077377047624354E-2},{"$f":"((Quarterly!DA222/Quarterly!DA221)^4)-1","v":2.1506272097491896E-2},null,null,null,null,null,{"$f":"((Quarterly!DG222/Quarterly!DG221)^4)-1","v":2.7780719170207524E-2},{"$f":"((Quarterly!DH222-Quarterly!DH221)*60)","v":2.0000000000003126},{"$f":"Quarterly!DI222-Quarterly!DI221","v":-3.3333333333345649E-2},{"$f":"(Quarterly!DJ222-Quarterly!DJ221)*100","v":-63.333333333333286},{"$f":"(Quarterly!DK222-Quarterly!DK221)*100","v":-36.666666666666714},{"$f":"((Quarterly!DL222/Quarterly!DL221)^4)-1","v":8.3026040732641082E-3},null,null,null,{"$f":"((Quarterly!DP222/Quarterly!DP221)^4)-1","v":1.7505632679869043E-2},null,null,null,"--",{"$f":"Quarterly!DU222-Quarterly!DU221","v":-1.5},{"$f":"((Quarterly!DV222/Quarterly!DV221)^4)-1","v":3.4650333955575707E-2},{"$f":"((Quarterly!DW222/Quarterly!DW221)^4)-1","v":-3.112095923626601E-3},{"$f":"((Quarterly!DX222/Quarterly!DX221)^4)-1","v":3.2930054296172129E-2},{"$f":"((Quarterly!DY222/Quarterly!DY221)^4)-1","v":-1.8107272979640321E-2},{"$f":"((Quarterly!DZ222/Quarterly!DZ221)^4)-1","v":4.9555551774258966E-2},{"$f":"((Quarterly!EA222/Quarterly!EA221)^4)-1","v":6.1896249515182244E-2},{"$f":"((Quarterly!EB222/Quarterly!EB221)^4)-1","v":2.1748765103840606E-2},{"$f":"((Quarterly!EC222/Quarterly!EC221)^4)-1","v":-7.8528961497311811E-2},null,null,null,null,null,{"$f":"((Quarterly!EI222/Quarterly!EI221)^4)-1","v":8.8763022754455356E-2},{"$f":"((Quarterly!EJ222/Quarterly!EJ221)^4)-1","v":4.4475644446736462E-2},{"$f":"((Quarterly!EK222/Quarterly!EK221)^4)-1","v":2.6450382688540275E-2},null,null,null,null,null,{"$f":"((Quarterly!EQ222/Quarterly!EQ221)^4)-1","v":-5.8835349096390321E-2},{"$f":"((Quarterly!ER222/Quarterly!ER221)^4)-1","v":2.4104380182049745E-2},{"$f":"((Quarterly!ES222/Quarterly!ES221)^4)-1","v":1.7589359714700548E-2},null,null,null,null,null,{"$f":"(Quarterly!EY222-Quarterly!EY221)*100","v":0},{"$f":"(Quarterly!EZ222-Quarterly!EZ221)*100","v":-0.99999999999999811},{"$f":"(Quarterly!FA222-Quarterly!FA221)*100","v":-53.66666666666675},{"$f":"(Quarterly!FB222-Quarterly!FB221)*100","v":-21.000000000000085},32.666666666666664,{"$f":"(Quarterly!FD222-Quarterly!FD221)*100","v":-30.333333333333279},{"$f":"(Quarterly!FE222-Quarterly!FE221)*100","v":-0.99999999999999967},{"$f":"(Quarterly!FF222-Quarterly!FF221)*100","v":-2.0000000000000004},{"$f":"(Quarterly!FG222-Quarterly!FG221)*100","v":-1.9999999999999962},{"$f":"(Quarterly!FH222-Quarterly!FH221)*100","v":-19.999999999999986},{"$f":"(Quarterly!FI222-Quarterly!FI221)*100","v":-37.999999999999943},-35.999999999999943,null,null,null,null,null,{"$f":"((Quarterly!FP222/Quarterly!FP221)^4)-1","v":0.18681816425131181},{"$f":"((Quarterly!FQ222/Quarterly!FQ221)^4)-1","v":-3.566930573101168E-2},{"$f":"((Quarterly!FR222/Quarterly!FR221)^4)-1","v":0.49840235921561638},{"$f":"((Quarterly!FS222/Quarterly!FS221)^4)-1","v":-0.16854142870919786},{"$f":"((Quarterly!FT222/Quarterly!FT221)^4)-1","v":0.16441376129891028},{"$f":"((Quarterly!FU222/Quarterly!FU221)^4)-1","v":0.15830738646153653},{"$f":"((Quarterly!FV222/Quarterly!FV221)^4)-1","v":-2.0514459341436364E-2},{"$f":"((Quarterly!FW222/Quarterly!FW221)^4)-1","v":-5.3368957454747346E-2},{"$f":"((Quarterly!FX222/Quarterly!FX221)^4)-1","v":4.9265481495885721E-2},null,null,null,null,null,{"$f":"((Quarterly!GD222/Quarterly!GD221)^4)-1","v":0.20869863764906826},{"$f":"((Quarterly!GE222/Quarterly!GE221)^4)-1","v":-0.13207235125425631},{"$f":"((Quarterly!GF222/Quarterly!GF221)^4)-1","v":-0.2555126441684723},{"$f":"((Quarterly!GG222/Quarterly!GG221)^4)-1","v":6.5667036594552197E-3},{"$f":"((Quarterly!GH222/Quarterly!GH221)^4)-1","v":0.93617822594854117},{"$f":"((Quarterly!GI222/Quarterly!GI221)^4)-1","v":0.73703021698603366},{"$f":"((Quarterly!GJ222/Quarterly!GJ221)^4)-1","v":-0.46375976731884672},{"$f":"((Quarterly!GK222/Quarterly!GK221)^4)-1","v":0.40697594618527089},{"$f":"((Quarterly!GL222/Quarterly!GL221)^4)-1","v":8.1851038940947696E-2}]
["12'Q1",{"$f":"((Quarterly!B223/Quarterly!B222)^4)-1","v":4.8646467255006876E-2},{"$f":"((Quarterly!C223/Quarterly!C222)^4)-1","v":2.6803337602106847E-2},{"$f":"((Quarterly!D223/Quarterly!D222)^4)-1","v":3.3265078600496878E-2},{"$f":"((Quarterly!E223/Quarterly!E222)^4)-1","v":2.4361373827207711E-2},{"$f":"((Quarterly!F223/Quarterly!F222)^4)-1","v":0.11379334575751643},{"$f":"((Quarterly!G223/Quarterly!G222)^4)-1","v":2.0548392878324773E-2},{"$f":"((Quarterly!H223/Quarterly!H222)^4)-1","v":1.1858588172924511E-2},{"$f":"((Quarterly!I223/Quarterly!I222)^4)-1","v":0.12208504867180725},{"$f":"((Quarterly!J223/Quarterly!J222)^4)-1","v":0.10205436020744507},{"$f":"((Quarterly!K223/Quarterly!K222)^4)-1","v":0.27471141581001413},{"$f":"((Quarterly!L223-Quarterly!L222))","v":-24.801000000000002},{"$f":"((Quarterly!M223/Quarterly!M222)^4)-1","v":2.352888233753414E-2},{"$f":"((Quarterly!N223/Quarterly!N222)^4)-1","v":2.7066775794172715E-2},{"$f":"((Quarterly!O223/Quarterly!O222)^4)-1","v":8.8404744739920549E-3},{"$f":"((Quarterly!P223/Quarterly!P222)^4)-1","v":-1.9418603454107508E-2},{"$f":"((Quarterly!Q223/Quarterly!Q222)^4)-1","v":-0.26531077413148618},null,null,null,null,null,{"$f":"((Quarterly!W223/Quarterly!W222)^4)-1","v":3.7961906466978057E-2},{"$f":"((Quarterly!X223/Quarterly!X222)^4)-1","v":1.7443984862299589E-2},{"$f":"((Quarterly!Y223/Quarterly!Y222)^4)-1","v":0.15227809910156065},{"$f":"Quarterly!Z223-Quarterly!Z222","v":0.11000000000000004},{"$f":"((Quarterly!AA223/Quarterly!AA222)^4)-1","v":0.72592305544437474},{"$f":"((Quarterly!AB223/Quarterly!AB222)^4)-1","v":-3.6428857812353721E-2},{"$f":"Quarterly!AC223-Quarterly!AC222","v":-3},{"$f":"Quarterly!AD223-Quarterly!AD222","v":33.9},{"$f":"(Quarterly!AE223-Quarterly!AE222)*100","v":58.999999999999986},{"$f":"(Quarterly!AF223-Quarterly!AF222)*100","v":11.000000000000004},{"$f":"(Quarterly!AG223-Quarterly!AG222)*100","v":15.000000000000036},{"$f":"((Quarterly!AH223/Quarterly!AH222)^4)-1","v":0.1523484836919673},{"$f":"((Quarterly!AI223/Quarterly!AI222)^4)-1","v":6.3040339366443598E-2},{"$f":"((Quarterly!AJ223/Quarterly!AJ222)^4)-1","v":2.4336132103544239E-2},{"$f":"((Quarterly!AK223/Quarterly!AK222)^4)-1","v":2.1015044244281356E-2},{"$f":"((Quarterly!AL223/Quarterly!AL222)^4)-1","v":2.1088905787733037E-2},{"$f":"((Quarterly!AM223/Quarterly!AM222)^4)-1","v":3.8522360183420812E-2},{"$f":"((Quarterly!AN223/Quarterly!AN222)^4)-1","v":5.6485615686978186E-2},{"$f":"((Quarterly!AO223/Quarterly!AO222)^4)-1","v":6.9541433336585357E-2},{"$f":"(Quarterly!AP223-Quarterly!AP222)*100","v":-1.0000000000000009},{"$f":"Quarterly!AQ223-Quarterly!AQ222","v":1.5666666666666629},{"$f":"Quarterly!AR223-Quarterly!AR222","v":5.5},{"$f":"Quarterly!AS223-Quarterly!AS222","v":0.6666666666666643},{"$f":"Quarterly!AT223-Quarterly!AT222","v":0.80000000000000426},{"$f":"Quarterly!AU223-Quarterly!AU222","v":4.3333333333333286},{"$f":"Quarterly!AV223-Quarterly!AV222","v":2.5},{"$f":"Quarterly!AW223-Quarterly!AW222","v":3.5},{"$f":"Quarterly!AX223-Quarterly!AX222","v":1.2666666666666657},{"$f":"Quarterly!AY223-Quarterly!AY222","v":14.833333333333336},{"$f":"Quarterly!AZ223-Quarterly!AZ222","v":0.6666666666666643},{"$f":"Quarterly!BA223-Quarterly!BA222","v":-1.4666666666666686},{"$f":"Quarterly!BB223-Quarterly!BB222","v":4.1666666666666714},{"$f":"((Quarterly!BC223/Quarterly!BC222)^4)-1","v":0.1083004099813587},{"$f":"((Quarterly!BD223/Quarterly!BD222)^4)-1","v":3.2367176298784273E-2},{"$f":"((Quarterly!BE223/Quarterly!BE222)^4)-1","v":5.9944466436104626E-2},{"$f":"((Quarterly!BF223/Quarterly!BF222)^4)-1","v":9.5208026674486579E-2},{"$f":"((Quarterly!BG223/Quarterly!BG222)^4)-1","v":5.5913987429776491E-3},{"$f":"((Quarterly!BH223/Quarterly!BH222)^4)-1","v":7.0620265082546263E-2},{"$f":"((Quarterly!BI223/Quarterly!BI222)^4)-1","v":8.911316224617849E-2},{"$f":"((Quarterly!BJ223/Quarterly!BJ222)^4)-1","v":1.4897908109670368},{"$f":"((Quarterly!BK223/Quarterly!BK222)^4)-1","v":1.5874856366125796},null,{"$f":"((Quarterly!BM223/Quarterly!BM222)^4)-1","v":8.2908655306395795E-2},{"$f":"((Quarterly!BN223/Quarterly!BN222)^4)-1","v":8.4011999374123958E-2},null,null,null,null,null,{"$f":"((Quarterly!BT223/Quarterly!BT222)^4)-1","v":1.5022278828632496E-2},{"$f":"Quarterly!BU223-Quarterly!BU222","v":-0.21545000000000059},{"$f":"Quarterly!BV223-Quarterly!BV222","v":-0.24499999999999922},{"$f":"((Quarterly!BW223/Quarterly!BW222)^4)-1","v":4.4200470442281592E-2},{"$f":"((Quarterly!BX223/Quarterly!BX222)^4)-1","v":0.22993260988572972},{"$f":"((Quarterly!BY223/Quarterly!BY222)^4)-1","v":0.37287302913110731},{"$f":"((Quarterly!BZ223/Quarterly!BZ222)^4)-1","v":-2.5273368922805739E-2},{"$f":"((Quarterly!CA223/Quarterly!CA222)^4)-1","v":0.2917104367933121},{"$f":"((Quarterly!CB223/Quarterly!CB222)^4)-1","v":-0.26355874894417275},{"$f":"((Quarterly!CC223/Quarterly!CC222)^4)-1","v":-0.22976695406205128},{"$f":"((Quarterly!CD223/Quarterly!CD222)^4)-1","v":-0.18401451088025456},{"$f":"((Quarterly!CE223/Quarterly!CE222)^4)-1","v":0.31602735472502785},null,{"$f":"((Quarterly!CG223/Quarterly!CG222)^4)-1","v":-0.28991295746527612},{"$f":"((Quarterly!CH223/Quarterly!CH222)^4)-1","v":0.1245081724830075},null,{"$f":"((Quarterly!CJ223/Quarterly!CJ222)^4)-1","v":0.31602735472502785},{"$f":"((Quarterly!CK223/Quarterly!CK222)^4)-1","v":8.116502886797039E-2},{"$f":"((Quarterly!CL223/Quarterly!CL222)^4)-1","v":1.0235454982195078},{"$f":"((Quarterly!CM223/Quarterly!CM222)^4)-1","v":8.6844464679245226E-2},{"$f":"((Quarterly!CN223/Quarterly!CN222)^4)-1","v":6.6995896522335618E-2},{"$f":"((Quarterly!CO223/Quarterly!CO222)^4)-1","v":0.11220511005018707},{"$f":"((Quarterly!CP223/Quarterly!CP222)^4)-1","v":5.2849592606769358E-2},{"$f":"((Quarterly!CQ223/Quarterly!CQ222)^4)-1","v":6.7020938238806504E-3},{"$f":"((Quarterly!CR223/Quarterly!CR222)^4)-1","v":7.6569875721101965E-3},{"$f":"Quarterly!CS223-Quarterly!CS222","v":10.700000000000003},{"$f":"Quarterly!CT223-Quarterly!CT222","v":13.900000000000006},null,null,null,null,null,{"$f":"((Quarterly!CZ223/Quarterly!CZ222)^4)-1","v":2.2717886978449897E-2},{"$f":"((Quarterly!DA223/Quarterly!DA222)^4)-1","v":2.1194289740903649E-2},null,null,null,null,null,{"$f":"((Quarterly!DG223/Quarterly!DG222)^4)-1","v":4.3608394180725263E-2},{"$f":"((Quarterly!DH223-Quarterly!DH222)*60)","v":3.9999999999997726},{"$f":"Quarterly!DI223-Quarterly!DI222","v":-0.29999999999999005},{"$f":"(Quarterly!DJ223-Quarterly!DJ222)*100","v":-59.999999999999964},{"$f":"(Quarterly!DK223-Quarterly!DK222)*100","v":-36.666666666666536},{"$f":"((Quarterly!DL223/Quarterly!DL222)^4)-1","v":2.7895200363695194E-2},null,null,null,{"$f":"((Quarterly!DP223/Quarterly!DP222)^4)-1","v":2.371192222773133E-2},null,null,null,"--",{"$f":"Quarterly!DU223-Quarterly!DU222","v":-0.73333333333333428},{"$f":"((Quarterly!DV223/Quarterly!DV222)^4)-1","v":5.7389287203547301E-2},{"$f":"((Quarterly!DW223/Quarterly!DW222)^4)-1","v":-5.8807151166647031E-2},{"$f":"((Quarterly!DX223/Quarterly!DX222)^4)-1","v":-3.7683595270392778E-2},{"$f":"((Quarterly!DY223/Quarterly!DY222)^4)-1","v":-7.530827110804561E-2},{"$f":"((Quarterly!DZ223/Quarterly!DZ222)^4)-1","v":-2.5694184283108767E-2},{"$f":"((Quarterly!EA223/Quarterly!EA222)^4)-1","v":-4.277162287069558E-2},{"$f":"((Quarterly!EB223/Quarterly!EB222)^4)-1","v":1.4594825108091403E-2},{"$f":"((Quarterly!EC223/Quarterly!EC222)^4)-1","v":-0.10499830795199128},null,null,null,null,null,{"$f":"((Quarterly!EI223/Quarterly!EI222)^4)-1","v":5.8534365697757496E-2},{"$f":"((Quarterly!EJ223/Quarterly!EJ222)^4)-1","v":3.6612307260080135E-2},{"$f":"((Quarterly!EK223/Quarterly!EK222)^4)-1","v":1.9856416451288883E-2},null,null,null,null,null,{"$f":"((Quarterly!EQ223/Quarterly!EQ222)^4)-1","v":2.818619414123491E-2},{"$f":"((Quarterly!ER223/Quarterly!ER222)^4)-1","v":3.0775649422077E-2},{"$f":"((Quarterly!ES223/Quarterly!ES222)^4)-1","v":2.5087637954450681E-2},null,null,null,null,null,{"$f":"(Quarterly!EY223-Quarterly!EY222)*100","v":0},{"$f":"(Quarterly!EZ223-Quarterly!EZ222)*100","v":2.9999999999999987},{"$f":"(Quarterly!FA223-Quarterly!FA222)*100","v":-2.9999999999999361},{"$f":"(Quarterly!FB223-Quarterly!FB222)*100","v":-5.3333333333332789},-2.3333333333333428,{"$f":"(Quarterly!FD223-Quarterly!FD222)*100","v":-8.6666666666666448},{"$f":"(Quarterly!FE223-Quarterly!FE222)*100","v":5.333333333333333},{"$f":"(Quarterly!FF223-Quarterly!FF222)*100","v":4.3333333333333348},{"$f":"(Quarterly!FG223-Quarterly!FG222)*100","v":2.3333333333333317},{"$f":"(Quarterly!FH223-Quarterly!FH222)*100","v":-5.6666666666666865},{"$f":"(Quarterly!FI223-Quarterly!FI222)*100","v":-1.0000000000000231},-5.3333333333333579,null,null,null,null,null,{"$f":"((Quarterly!FP223/Quarterly!FP222)^4)-1","v":-8.1598673225693585E-2},{"$f":"((Quarterly!FQ223/Quarterly!FQ222)^4)-1","v":-3.0306318714639624E-2},{"$f":"((Quarterly!FR223/Quarterly!FR222)^4)-1","v":-0.18079728284193886},{"$f":"((Quarterly!FS223/Quarterly!FS222)^4)-1","v":-0.10342949281757441},{"$f":"((Quarterly!FT223/Quarterly!FT222)^4)-1","v":-2.9425846278061552E-2},{"$f":"((Quarterly!FU223/Quarterly!FU222)^4)-1","v":2.9968621715785737E-2},{"$f":"((Quarterly!FV223/Quarterly!FV222)^4)-1","v":0.14789306287902626},{"$f":"((Quarterly!FW223/Quarterly!FW222)^4)-1","v":-0.41567732779780109},{"$f":"((Quarterly!FX223/Quarterly!FX222)^4)-1","v":0.1166658675867478},null,null,null,null,null,{"$f":"((Quarterly!GD223/Quarterly!GD222)^4)-1","v":0.43175097695029385},{"$f":"((Quarterly!GE223/Quarterly!GE222)^4)-1","v":0.37629154282878652},{"$f":"((Quarterly!GF223/Quarterly!GF222)^4)-1","v":0.25537082242797693},{"$f":"((Quarterly!GG223/Quarterly!GG222)^4)-1","v":0.10435973125327713},{"$f":"((Quarterly!GH223/Quarterly!GH222)^4)-1","v":0.14337987124568108},{"$f":"((Quarterly!GI223/Quarterly!GI222)^4)-1","v":-0.34334280257915339},{"$f":"((Quarterly!GJ223/Quarterly!GJ222)^4)-1","v":-0.72812090550410691},{"$f":"((Quarterly!GK223/Quarterly!GK222)^4)-1","v":-0.27684247190031686},{"$f":"((Quarterly!GL223/Quarterly!GL222)^4)-1","v":-3.9191674264382748E-2}]
["12'Q2",{"$f":"((Quarterly!B224/Quarterly!B223)^4)-1","v":3.7571019914279358E-2},{"$f":"((Quarterly!C224/Quarterly!C223)^4)-1","v":1.8803532963730163E-2},{"$f":"((Quarterly!D224/Quarterly!D223)^4)-1","v":1.3685678832150439E-2},{"$f":"((Quarterly!E224/Quarterly!E223)^4)-1","v":6.8130896556284348E-3},{"$f":"((Quarterly!F224/Quarterly!F223)^4)-1","v":2.7633950322489387E-2},{"$f":"((Quarterly!G224/Quarterly!G223)^4)-1","v":3.5228806580251959E-3},{"$f":"((Quarterly!H224/Quarterly!H223)^4)-1","v":4.6082873028794324E-3},{"$f":"((Quarterly!I224/Quarterly!I223)^4)-1","v":7.535383141359886E-2},{"$f":"((Quarterly!J224/Quarterly!J223)^4)-1","v":6.7910661582047949E-2},{"$f":"((Quarterly!K224/Quarterly!K223)^4)-1","v":3.7051178850980859E-2},{"$f":"((Quarterly!L224-Quarterly!L223))","v":20.634},{"$f":"((Quarterly!M224/Quarterly!M223)^4)-1","v":1.9677146988662964E-2},{"$f":"((Quarterly!N224/Quarterly!N223)^4)-1","v":4.5551728165446947E-2},{"$f":"((Quarterly!O224/Quarterly!O223)^4)-1","v":-8.3752191851798941E-2},{"$f":"((Quarterly!P224/Quarterly!P223)^4)-1","v":-1.9208758259669945E-2},{"$f":"((Quarterly!Q224/Quarterly!Q223)^4)-1","v":-1.8218147631968384E-2},null,null,null,null,null,{"$f":"((Quarterly!W224/Quarterly!W223)^4)-1","v":0},{"$f":"((Quarterly!X224/Quarterly!X223)^4)-1","v":5.186935311183305E-3},{"$f":"((Quarterly!Y224/Quarterly!Y223)^4)-1","v":0.13486337803159554},{"$f":"Quarterly!Z224-Quarterly!Z223","v":0.12},{"$f":"((Quarterly!AA224/Quarterly!AA223)^4)-1","v":-0.15780033717819564},{"$f":"((Quarterly!AB224/Quarterly!AB223)^4)-1","v":-7.3301646542162979E-2},{"$f":"Quarterly!AC224-Quarterly!AC223","v":5.6999999999999993},{"$f":"Quarterly!AD224-Quarterly!AD223","v":6.7000000000000011},{"$f":"(Quarterly!AE224-Quarterly!AE223)*100","v":0.99999999999997868},{"$f":"(Quarterly!AF224-Quarterly!AF223)*100","v":12},{"$f":"(Quarterly!AG224-Quarterly!AG223)*100","v":19.999999999999972},{"$f":"((Quarterly!AH224/Quarterly!AH223)^4)-1","v":8.8094141887643307E-2},{"$f":"((Quarterly!AI224/Quarterly!AI223)^4)-1","v":0.10305091720053317},{"$f":"((Quarterly!AJ224/Quarterly!AJ223)^4)-1","v":2.4188972205084758E-2},{"$f":"((Quarterly!AK224/Quarterly!AK223)^4)-1","v":2.0905216921686565E-2},{"$f":"((Quarterly!AL224/Quarterly!AL223)^4)-1","v":1.7459212418057923E-2},{"$f":"((Quarterly!AM224/Quarterly!AM223)^4)-1","v":2.6474945226809155E-2},{"$f":"((Quarterly!AN224/Quarterly!AN223)^4)-1","v":1.3667753079106948E-2},{"$f":"((Quarterly!AO224/Quarterly!AO223)^4)-1","v":5.6123294708763538E-2},{"$f":"(Quarterly!AP224-Quarterly!AP223)*100","v":2.3333333333333428},{"$f":"Quarterly!AQ224-Quarterly!AQ223","v":-0.60000000000000853},{"$f":"Quarterly!AR224-Quarterly!AR223","v":-5.3333333333333357},{"$f":"Quarterly!AS224-Quarterly!AS223","v":-0.1666666666666643},{"$f":"Quarterly!AT224-Quarterly!AT223","v":2.3999999999999986},{"$f":"Quarterly!AU224-Quarterly!AU223","v":-2.8333333333333286},{"$f":"Quarterly!AV224-Quarterly!AV223","v":0.1666666666666643},{"$f":"Quarterly!AW224-Quarterly!AW223","v":-3.5},{"$f":"Quarterly!AX224-Quarterly!AX223","v":-0.29999999999999005},{"$f":"Quarterly!AY224-Quarterly!AY223","v":-10.833333333333336},{"$f":"Quarterly!AZ224-Quarterly!AZ223","v":-0.56666666666666998},{"$f":"Quarterly!BA224-Quarterly!BA223","v":-1.2666666666666586},{"$f":"Quarterly!BB224-Quarterly!BB223","v":-3.8333333333333428},{"$f":"((Quarterly!BC224/Quarterly!BC223)^4)-1","v":-6.7964650805726778E-2},{"$f":"((Quarterly!BD224/Quarterly!BD223)^4)-1","v":-1.3773003705984666E-3},{"$f":"((Quarterly!BE224/Quarterly!BE223)^4)-1","v":8.7203643485758153E-3},{"$f":"((Quarterly!BF224/Quarterly!BF223)^4)-1","v":2.2438877486001152E-2},{"$f":"((Quarterly!BG224/Quarterly!BG223)^4)-1","v":2.3491013210948042E-2},{"$f":"((Quarterly!BH224/Quarterly!BH223)^4)-1","v":1.3926211177829995E-2},{"$f":"((Quarterly!BI224/Quarterly!BI223)^4)-1","v":-1.0238335825197842E-3},{"$f":"((Quarterly!BJ224/Quarterly!BJ223)^4)-1","v":-5.3007185312712202E-2},{"$f":"((Quarterly!BK224/Quarterly!BK223)^4)-1","v":1.2945975280977562},null,{"$f":"((Quarterly!BM224/Quarterly!BM223)^4)-1","v":-6.6288640669875942E-3},{"$f":"((Quarterly!BN224/Quarterly!BN223)^4)-1","v":-1.3559460474271923E-2},null,null,null,null,null,{"$f":"((Quarterly!BT224/Quarterly!BT223)^4)-1","v":3.7643918422480827E-2},{"$f":"Quarterly!BU224-Quarterly!BU223","v":-0.10899999999999999},{"$f":"Quarterly!BV224-Quarterly!BV223","v":-0.14080000000000048},{"$f":"((Quarterly!BW224/Quarterly!BW223)^4)-1","v":-1.654159699779012E-2},{"$f":"((Quarterly!BX224/Quarterly!BX223)^4)-1","v":0.19361604743702499},{"$f":"((Quarterly!BY224/Quarterly!BY223)^4)-1","v":0.18840658075455496},{"$f":"((Quarterly!BZ224/Quarterly!BZ223)^4)-1","v":7.0566692330837233E-2},{"$f":"((Quarterly!CA224/Quarterly!CA223)^4)-1","v":-2.3192240745531389E-2},{"$f":"((Quarterly!CB224/Quarterly!CB223)^4)-1","v":-0.31685076209391061},{"$f":"((Quarterly!CC224/Quarterly!CC223)^4)-1","v":-0.22747366742946518},{"$f":"((Quarterly!CD224/Quarterly!CD223)^4)-1","v":-7.0611642935537788E-2},{"$f":"((Quarterly!CE224/Quarterly!CE223)^4)-1","v":0.11456984847645191},null,{"$f":"((Quarterly!CG224/Quarterly!CG223)^4)-1","v":0.17497268816254152},{"$f":"((Quarterly!CH224/Quarterly!CH223)^4)-1","v":1.1913494888108556E-2},null,{"$f":"((Quarterly!CJ224/Quarterly!CJ223)^4)-1","v":0.11456984847645191},{"$f":"((Quarterly!CK224/Quarterly!CK223)^4)-1","v":4.5169278366212096E-2},{"$f":"((Quarterly!CL224/Quarterly!CL223)^4)-1","v":0.43202300147553108},{"$f":"((Quarterly!CM224/Quarterly!CM223)^4)-1","v":0.27113728730502595},{"$f":"((Quarterly!CN224/Quarterly!CN223)^4)-1","v":3.1151350216157558E-2},{"$f":"((Quarterly!CO224/Quarterly!CO223)^4)-1","v":9.8003204458540383E-2},{"$f":"((Quarterly!CP224/Quarterly!CP223)^4)-1","v":6.2840233013250035E-2},{"$f":"((Quarterly!CQ224/Quarterly!CQ223)^4)-1","v":6.4985176302689851E-3},{"$f":"((Quarterly!CR224/Quarterly!CR223)^4)-1","v":3.0239332428581012E-3},{"$f":"Quarterly!CS224-Quarterly!CS223","v":0.79999999999999716},{"$f":"Quarterly!CT224-Quarterly!CT223","v":-1.6999999999999886},null,null,null,null,null,{"$f":"((Quarterly!CZ224/Quarterly!CZ223)^4)-1","v":8.4708428158233318E-3},{"$f":"((Quarterly!DA224/Quarterly!DA223)^4)-1","v":1.9800840346270165E-2},null,null,null,null,null,{"$f":"((Quarterly!DG224/Quarterly!DG223)^4)-1","v":9.0365732360928597E-3},{"$f":"((Quarterly!DH224-Quarterly!DH223)*60)","v":-3.9999999999997726},{"$f":"Quarterly!DI224-Quarterly!DI223","v":-3.3333333333345649E-2},{"$f":"(Quarterly!DJ224-Quarterly!DJ223)*100","v":-20.000000000000284},{"$f":"(Quarterly!DK224-Quarterly!DK223)*100","v":-6.6666666666668206},{"$f":"((Quarterly!DL224/Quarterly!DL223)^4)-1","v":2.0723233494722049E-2},null,null,null,{"$f":"((Quarterly!DP224/Quarterly!DP223)^4)-1","v":1.2470175353565649E-2},null,null,null,"--",{"$f":"Quarterly!DU224-Quarterly!DU223","v":-0.10000000000000142},{"$f":"((Quarterly!DV224/Quarterly!DV223)^4)-1","v":2.1539237638594111E-2},{"$f":"((Quarterly!DW224/Quarterly!DW223)^4)-1","v":0.11926493410688499},{"$f":"((Quarterly!DX224/Quarterly!DX223)^4)-1","v":5.0381832466531717E-2},{"$f":"((Quarterly!DY224/Quarterly!DY223)^4)-1","v":8.4746372932339664E-2},{"$f":"((Quarterly!DZ224/Quarterly!DZ223)^4)-1","v":3.9949314285073978E-2},{"$f":"((Quarterly!EA224/Quarterly!EA223)^4)-1","v":3.585582546527788E-2},{"$f":"((Quarterly!EB224/Quarterly!EB223)^4)-1","v":4.930636458839821E-2},{"$f":"((Quarterly!EC224/Quarterly!EC223)^4)-1","v":0.28957395625895188},null,null,null,null,null,{"$f":"((Quarterly!EI224/Quarterly!EI223)^4)-1","v":3.7429069070384458E-2},{"$f":"((Quarterly!EJ224/Quarterly!EJ223)^4)-1","v":1.0664474671603807E-2},{"$f":"((Quarterly!EK224/Quarterly!EK223)^4)-1","v":5.8899393599196603E-3},null,null,null,null,null,{"$f":"((Quarterly!EQ224/Quarterly!EQ223)^4)-1","v":-7.2350274452031016E-3},{"$f":"((Quarterly!ER224/Quarterly!ER223)^4)-1","v":2.0034625138008133E-2},{"$f":"((Quarterly!ES224/Quarterly!ES223)^4)-1","v":1.7403507602782531E-2},null,null,null,null,null,{"$f":"(Quarterly!EY224-Quarterly!EY223)*100","v":0},{"$f":"(Quarterly!EZ224-Quarterly!EZ223)*100","v":5.0000000000000018},{"$f":"(Quarterly!FA224-Quarterly!FA223)*100","v":-9.6666666666666679},{"$f":"(Quarterly!FB224-Quarterly!FB223)*100","v":-10.666666666666647},-0.99999999999997868,{"$f":"(Quarterly!FD224-Quarterly!FD223)*100","v":-12.333333333333352},{"$f":"(Quarterly!FE224-Quarterly!FE223)*100","v":2.0000000000000004},{"$f":"(Quarterly!FF224-Quarterly!FF223)*100","v":3},{"$f":"(Quarterly!FG224-Quarterly!FG223)*100","v":0.33333333333332993},{"$f":"(Quarterly!FH224-Quarterly!FH223)*100","v":-10.999999999999998},{"$f":"(Quarterly!FI224-Quarterly!FI223)*100","v":-21.333333333333336},-24.333333333333336,null,null,null,null,null,{"$f":"((Quarterly!FP224/Quarterly!FP223)^4)-1","v":3.6445829272556685E-2},{"$f":"((Quarterly!FQ224/Quarterly!FQ223)^4)-1","v":1.3251181177299731E-2},{"$f":"((Quarterly!FR224/Quarterly!FR223)^4)-1","v":0.18377752160963579},{"$f":"((Quarterly!FS224/Quarterly!FS223)^4)-1","v":-8.3537007996773105E-2},{"$f":"((Quarterly!FT224/Quarterly!FT223)^4)-1","v":7.3532436719025984E-2},{"$f":"((Quarterly!FU224/Quarterly!FU223)^4)-1","v":6.0209488699921598E-2},{"$f":"((Quarterly!FV224/Quarterly!FV223)^4)-1","v":2.67301514481455E-2},{"$f":"((Quarterly!FW224/Quarterly!FW223)^4)-1","v":0.49575206210948575},{"$f":"((Quarterly!FX224/Quarterly!FX223)^4)-1","v":0.11125378726038004},null,null,null,null,null,{"$f":"((Quarterly!GD224/Quarterly!GD223)^4)-1","v":-0.31871964282218812},{"$f":"((Quarterly!GE224/Quarterly!GE223)^4)-1","v":-0.29909783066959095},{"$f":"((Quarterly!GF224/Quarterly!GF223)^4)-1","v":0.2274073287275109},{"$f":"((Quarterly!GG224/Quarterly!GG223)^4)-1","v":-1.999437043451513E-2},{"$f":"((Quarterly!GH224/Quarterly!GH223)^4)-1","v":0.10308743817082555},{"$f":"((Quarterly!GI224/Quarterly!GI223)^4)-1","v":1.114230456389421},{"$f":"((Quarterly!GJ224/Quarterly!GJ223)^4)-1","v":-0.23640345269564078},{"$f":"((Quarterly!GK224/Quarterly!GK223)^4)-1","v":-2.7781025978990126E-2},{"$f":"((Quarterly!GL224/Quarterly!GL223)^4)-1","v":-0.15719922819771848}]
["12'Q3",{"$f":"((Quarterly!B225/Quarterly!B224)^4)-1","v":2.6582493854709677E-2},{"$f":"((Quarterly!C225/Quarterly!C224)^4)-1","v":4.796130544673094E-3},{"$f":"((Quarterly!D225/Quarterly!D224)^4)-1","v":6.7821849776283916E-3},{"$f":"((Quarterly!E225/Quarterly!E224)^4)-1","v":1.0609440322900676E-2},{"$f":"((Quarterly!F225/Quarterly!F224)^4)-1","v":6.7543887546160031E-2},{"$f":"((Quarterly!G225/Quarterly!G224)^4)-1","v":9.170746284512532E-3},{"$f":"((Quarterly!H225/Quarterly!H224)^4)-1","v":2.1834738590698066E-3},{"$f":"((Quarterly!I225/Quarterly!I224)^4)-1","v":-2.0672124521217472E-2},{"$f":"((Quarterly!J225/Quarterly!J224)^4)-1","v":-1.5184389777126439E-2},{"$f":"((Quarterly!K225/Quarterly!K224)^4)-1","v":0.10668342326232572},{"$f":"((Quarterly!L225-Quarterly!L224))","v":-6.0889999999999986},{"$f":"((Quarterly!M225/Quarterly!M224)^4)-1","v":6.3268132896980855E-3},{"$f":"((Quarterly!N225/Quarterly!N224)^4)-1","v":1.9898867332752923E-2},{"$f":"((Quarterly!O225/Quarterly!O224)^4)-1","v":-5.1003731141122111E-2},{"$f":"((Quarterly!P225/Quarterly!P224)^4)-1","v":-1.1507694985572692E-2},{"$f":"((Quarterly!Q225/Quarterly!Q224)^4)-1","v":-7.9011878415025993E-2},null,null,null,null,null,{"$f":"((Quarterly!W225/Quarterly!W224)^4)-1","v":-2.1024233364755451E-2},{"$f":"((Quarterly!X225/Quarterly!X224)^4)-1","v":-1.882300341152876E-2},{"$f":"((Quarterly!Y225/Quarterly!Y224)^4)-1","v":0.13047118140249814},{"$f":"Quarterly!Z225-Quarterly!Z224","v":8.9999999999999969E-2},{"$f":"((Quarterly!AA225/Quarterly!AA224)^4)-1","v":7.9219422341056722E-2},{"$f":"((Quarterly!AB225/Quarterly!AB224)^4)-1","v":1.1539160459971276E-2},{"$f":"Quarterly!AC225-Quarterly!AC224","v":-7.9},{"$f":"Quarterly!AD225-Quarterly!AD224","v":-21.8},{"$f":"(Quarterly!AE225-Quarterly!AE224)*100","v":-29.000000000000004},{"$f":"(Quarterly!AF225-Quarterly!AF224)*100","v":8.9999999999999964},{"$f":"(Quarterly!AG225-Quarterly!AG224)*100","v":43.000000000000014},{"$f":"((Quarterly!AH225/Quarterly!AH224)^4)-1","v":0.15765381488738783},{"$f":"((Quarterly!AI225/Quarterly!AI224)^4)-1","v":0.1215375451207259},{"$f":"((Quarterly!AJ225/Quarterly!AJ224)^4)-1","v":1.368671294360424E-2},{"$f":"((Quarterly!AK225/Quarterly!AK224)^4)-1","v":1.7308122827521366E-2},{"$f":"((Quarterly!AL225/Quarterly!AL224)^4)-1","v":1.7383339332758041E-2},{"$f":"((Quarterly!AM225/Quarterly!AM224)^4)-1","v":2.1659828870310704E-3},{"$f":"((Quarterly!AN225/Quarterly!AN224)^4)-1","v":-4.6908642612817353E-3},{"$f":"((Quarterly!AO225/Quarterly!AO224)^4)-1","v":6.8920815746395192E-2},{"$f":"(Quarterly!AP225-Quarterly!AP224)*100","v":1.6666666666666607},{"$f":"Quarterly!AQ225-Quarterly!AQ224","v":-1.9666666666666544},{"$f":"Quarterly!AR225-Quarterly!AR224","v":-3.8333333333333357},{"$f":"Quarterly!AS225-Quarterly!AS224","v":3.5},{"$f":"Quarterly!AT225-Quarterly!AT224","v":-4.1666666666666572},{"$f":"Quarterly!AU225-Quarterly!AU224","v":-6},{"$f":"Quarterly!AV225-Quarterly!AV224","v":-3.8333333333333357},{"$f":"Quarterly!AW225-Quarterly!AW224","v":4.6666666666666714},{"$f":"Quarterly!AX225-Quarterly!AX224","v":-6.2333333333333485},{"$f":"Quarterly!AY225-Quarterly!AY224","v":2},{"$f":"Quarterly!AZ225-Quarterly!AZ224","v":-6.5333333333333314},{"$f":"Quarterly!BA225-Quarterly!BA224","v":0.5},{"$f":"Quarterly!BB225-Quarterly!BB224","v":0.3333333333333357},{"$f":"((Quarterly!BC225/Quarterly!BC224)^4)-1","v":-0.18017573889055249},{"$f":"((Quarterly!BD225/Quarterly!BD224)^4)-1","v":-9.2807185856018659E-3},{"$f":"((Quarterly!BE225/Quarterly!BE224)^4)-1","v":0},{"$f":"((Quarterly!BF225/Quarterly!BF224)^4)-1","v":3.8820451982222171E-3},{"$f":"((Quarterly!BG225/Quarterly!BG224)^4)-1","v":-6.7451135855284283E-3},{"$f":"((Quarterly!BH225/Quarterly!BH224)^4)-1","v":-1.421149283046208E-2},{"$f":"((Quarterly!BI225/Quarterly!BI224)^4)-1","v":1.0721166259290316E-2},{"$f":"((Quarterly!BJ225/Quarterly!BJ224)^4)-1","v":1.2041955784563019E-3},{"$f":"((Quarterly!BK225/Quarterly!BK224)^4)-1","v":0.69266706705093384},null,{"$f":"((Quarterly!BM225/Quarterly!BM224)^4)-1","v":3.2791144635424763E-2},{"$f":"((Quarterly!BN225/Quarterly!BN224)^4)-1","v":3.2202461632949264E-2},null,null,null,null,null,{"$f":"((Quarterly!BT225/Quarterly!BT224)^4)-1","v":8.4540015177592132E-3},{"$f":"Quarterly!BU225-Quarterly!BU224","v":-6.9800000000004303E-3},{"$f":"Quarterly!BV225-Quarterly!BV224","v":2.789999999999182E-3},{"$f":"((Quarterly!BW225/Quarterly!BW224)^4)-1","v":2.6727659697675321E-2},{"$f":"((Quarterly!BX225/Quarterly!BX224)^4)-1","v":0.24096487039322989},{"$f":"((Quarterly!BY225/Quarterly!BY224)^4)-1","v":0.4975441594695591},{"$f":"((Quarterly!BZ225/Quarterly!BZ224)^4)-1","v":0.1007574796331514},{"$f":"((Quarterly!CA225/Quarterly!CA224)^4)-1","v":2.0502221164151235E-2},{"$f":"((Quarterly!CB225/Quarterly!CB224)^4)-1","v":-0.13904319741381621},{"$f":"((Quarterly!CC225/Quarterly!CC224)^4)-1","v":-0.11756862095475595},{"$f":"((Quarterly!CD225/Quarterly!CD224)^4)-1","v":-3.6442617212770423E-2},{"$f":"((Quarterly!CE225/Quarterly!CE224)^4)-1","v":0.17668072359091358},null,{"$f":"((Quarterly!CG225/Quarterly!CG224)^4)-1","v":-0.18689454867280708},{"$f":"((Quarterly!CH225/Quarterly!CH224)^4)-1","v":0.2201330726867905},null,{"$f":"((Quarterly!CJ225/Quarterly!CJ224)^4)-1","v":0.17668072359091358},{"$f":"((Quarterly!CK225/Quarterly!CK224)^4)-1","v":1.544494797129059E-2},{"$f":"((Quarterly!CL225/Quarterly!CL224)^4)-1","v":-0.11482004274119972},{"$f":"((Quarterly!CM225/Quarterly!CM224)^4)-1","v":0.28806102229884067},{"$f":"((Quarterly!CN225/Quarterly!CN224)^4)-1","v":-2.0265361037236085E-3},{"$f":"((Quarterly!CO225/Quarterly!CO224)^4)-1","v":9.1648991811271285E-2},{"$f":"((Quarterly!CP225/Quarterly!CP224)^4)-1","v":5.4844641856595988E-2},{"$f":"((Quarterly!CQ225/Quarterly!CQ224)^4)-1","v":7.627892144626669E-3},{"$f":"((Quarterly!CR225/Quarterly!CR224)^4)-1","v":6.1364515226782768E-3},{"$f":"Quarterly!CS225-Quarterly!CS224","v":-1.3333333333333428},{"$f":"Quarterly!CT225-Quarterly!CT224","v":-0.10000000000000853},null,null,null,null,null,{"$f":"((Quarterly!CZ225/Quarterly!CZ224)^4)-1","v":1.8181472852568437E-2},{"$f":"((Quarterly!DA225/Quarterly!DA224)^4)-1","v":1.8210975452964684E-2},null,null,null,null,null,{"$f":"((Quarterly!DG225/Quarterly!DG224)^4)-1","v":1.0309193190096488E-2},{"$f":"((Quarterly!DH225-Quarterly!DH224)*60)","v":-2.0000000000003126},{"$f":"Quarterly!DI225-Quarterly!DI224","v":-0.13333333333332575},{"$f":"(Quarterly!DJ225-Quarterly!DJ224)*100","v":3.3333333333336768},{"$f":"(Quarterly!DK225-Quarterly!DK224)*100","v":-16.666666666666607},{"$f":"((Quarterly!DL225/Quarterly!DL224)^4)-1","v":1.1113966957511101E-2},null,null,null,{"$f":"((Quarterly!DP225/Quarterly!DP224)^4)-1","v":1.253189931850196E-2},null,null,null,"--",{"$f":"Quarterly!DU225-Quarterly!DU224","v":-1.5666666666666664},{"$f":"((Quarterly!DV225/Quarterly!DV224)^4)-1","v":3.7971600818768048E-2},{"$f":"((Quarterly!DW225/Quarterly!DW224)^4)-1","v":0.1056102303608315},{"$f":"((Quarterly!DX225/Quarterly!DX224)^4)-1","v":7.0961766584316965E-2},{"$f":"((Quarterly!DY225/Quarterly!DY224)^4)-1","v":9.9270600167330469E-2},{"$f":"((Quarterly!DZ225/Quarterly!DZ224)^4)-1","v":6.2250636957780214E-2},{"$f":"((Quarterly!EA225/Quarterly!EA224)^4)-1","v":6.3092360268417691E-2},{"$f":"((Quarterly!EB225/Quarterly!EB224)^4)-1","v":6.0343902607454813E-2},{"$f":"((Quarterly!EC225/Quarterly!EC224)^4)-1","v":0.18381411347743093},null,null,null,null,null,{"$f":"((Quarterly!EI225/Quarterly!EI224)^4)-1","v":8.6390492882351122E-3},{"$f":"((Quarterly!EJ225/Quarterly!EJ224)^4)-1","v":2.1320718712969366E-3},{"$f":"((Quarterly!EK225/Quarterly!EK224)^4)-1","v":-1.4889912317676002E-3},null,null,null,null,null,{"$f":"((Quarterly!EQ225/Quarterly!EQ224)^4)-1","v":1.1946109510176717E-2},{"$f":"((Quarterly!ER225/Quarterly!ER224)^4)-1","v":2.6645469535338862E-2},{"$f":"((Quarterly!ES225/Quarterly!ES224)^4)-1","v":1.5668189608826877E-2},null,null,null,null,null,{"$f":"(Quarterly!EY225-Quarterly!EY224)*100","v":0},{"$f":"(Quarterly!EZ225-Quarterly!EZ224)*100","v":-1.0000000000000009},{"$f":"(Quarterly!FA225-Quarterly!FA224)*100","v":-34.333333333333329},{"$f":"(Quarterly!FB225-Quarterly!FB224)*100","v":-21.999999999999975},12.333333333333353,{"$f":"(Quarterly!FD225-Quarterly!FD224)*100","v":-24.666666666666657},{"$f":"(Quarterly!FE225-Quarterly!FE224)*100","v":1.6666666666666663},{"$f":"(Quarterly!FF225-Quarterly!FF224)*100","v":-0.3333333333333327},{"$f":"(Quarterly!FG225-Quarterly!FG224)*100","v":-2.9999999999999973},{"$f":"(Quarterly!FH225-Quarterly!FH224)*100","v":-12},{"$f":"(Quarterly!FI225-Quarterly!FI224)*100","v":-17.999999999999993},-17.666666666666661,null,null,null,null,null,{"$f":"((Quarterly!FP225/Quarterly!FP224)^4)-1","v":-5.8843186652940194E-2},{"$f":"((Quarterly!FQ225/Quarterly!FQ224)^4)-1","v":1.2526959473831756E-2},{"$f":"((Quarterly!FR225/Quarterly!FR224)^4)-1","v":-0.10664433856229616},{"$f":"((Quarterly!FS225/Quarterly!FS224)^4)-1","v":-9.3934067850037883E-2},{"$f":"((Quarterly!FT225/Quarterly!FT224)^4)-1","v":-2.3339976519538563E-3},{"$f":"((Quarterly!FU225/Quarterly!FU224)^4)-1","v":5.9439841870563281E-3},{"$f":"((Quarterly!FV225/Quarterly!FV224)^4)-1","v":-0.20828924525870107},{"$f":"((Quarterly!FW225/Quarterly!FW224)^4)-1","v":0.40403799888615111},{"$f":"((Quarterly!FX225/Quarterly!FX224)^4)-1","v":-0.14073559402418168},null,null,null,null,null,{"$f":"((Quarterly!GD225/Quarterly!GD224)^4)-1","v":-5.0779153345993144E-2},{"$f":"((Quarterly!GE225/Quarterly!GE224)^4)-1","v":4.4887027132256341E-2},{"$f":"((Quarterly!GF225/Quarterly!GF224)^4)-1","v":-8.7802994205143592E-2},{"$f":"((Quarterly!GG225/Quarterly!GG224)^4)-1","v":-9.7506942501268679E-3},{"$f":"((Quarterly!GH225/Quarterly!GH224)^4)-1","v":0.45356224012486801},{"$f":"((Quarterly!GI225/Quarterly!GI224)^4)-1","v":-0.19053647640588056},{"$f":"((Quarterly!GJ225/Quarterly!GJ224)^4)-1","v":1.3261346881085996},{"$f":"((Quarterly!GK225/Quarterly!GK224)^4)-1","v":-0.11700420939281786},{"$f":"((Quarterly!GL225/Quarterly!GL224)^4)-1","v":0.37521676504777046}]
["12'Q4",{"$f":"((Quarterly!B226/Quarterly!B225)^4)-1","v":1.7218844844089753E-2},{"$f":"((Quarterly!C226/Quarterly!C225)^4)-1","v":8.9804479677679794E-4},{"$f":"((Quarterly!D226/Quarterly!D225)^4)-1","v":1.6288384938538902E-2},{"$f":"((Quarterly!E226/Quarterly!E225)^4)-1","v":1.1213241157383758E-2},{"$f":"((Quarterly!F226/Quarterly!F225)^4)-1","v":8.1027278321530893E-2},{"$f":"((Quarterly!G226/Quarterly!G225)^4)-1","v":-3.036050941266133E-3},{"$f":"((Quarterly!H226/Quarterly!H225)^4)-1","v":5.2202299163088828E-3},{"$f":"((Quarterly!I226/Quarterly!I225)^4)-1","v":3.7197590716243401E-2},{"$f":"((Quarterly!J226/Quarterly!J225)^4)-1","v":6.9469154331055272E-2},{"$f":"((Quarterly!K226/Quarterly!K225)^4)-1","v":0.22278222014299143},{"$f":"((Quarterly!L226-Quarterly!L225))","v":-55.094000000000001},{"$f":"((Quarterly!M226/Quarterly!M225)^4)-1","v":-3.7578978696231724E-2},{"$f":"((Quarterly!N226/Quarterly!N225)^4)-1","v":-4.678580484871131E-3},{"$f":"((Quarterly!O226/Quarterly!O225)^4)-1","v":-0.17328202555832628},{"$f":"((Quarterly!P226/Quarterly!P225)^4)-1","v":-3.8319276805566682E-2},{"$f":"((Quarterly!Q226/Quarterly!Q225)^4)-1","v":-2.9038778390626629E-2},null,null,null,null,null,{"$f":"((Quarterly!W226/Quarterly!W225)^4)-1","v":5.3368794168890954E-3},{"$f":"((Quarterly!X226/Quarterly!X225)^4)-1","v":3.4677037266566124E-3},{"$f":"((Quarterly!Y226/Quarterly!Y225)^4)-1","v":0.10338941448706129},{"$f":"Quarterly!Z226-Quarterly!Z225","v":7.0000000000000062E-2},{"$f":"((Quarterly!AA226/Quarterly!AA225)^4)-1","v":-5.2723767226758977E-2},{"$f":"((Quarterly!AB226/Quarterly!AB225)^4)-1","v":-2.8145804504297933E-2},{"$f":"Quarterly!AC226-Quarterly!AC225","v":3.9000000000000004},{"$f":"Quarterly!AD226-Quarterly!AD225","v":4.5},{"$f":"(Quarterly!AE226-Quarterly!AE225)*100","v":-11.999999999999922},{"$f":"(Quarterly!AF226-Quarterly!AF225)*100","v":7.0000000000000062},{"$f":"(Quarterly!AG226-Quarterly!AG225)*100","v":-16.000000000000014},{"$f":"((Quarterly!AH226/Quarterly!AH225)^4)-1","v":0.16643649169202002},{"$f":"((Quarterly!AI226/Quarterly!AI225)^4)-1","v":9.8653449123500492E-2},{"$f":"((Quarterly!AJ226/Quarterly!AJ225)^4)-1","v":2.0512153063667382E-2},{"$f":"((Quarterly!AK226/Quarterly!AK225)^4)-1","v":1.376916061125999E-2},{"$f":"((Quarterly!AL226/Quarterly!AL225)^4)-1","v":1.3828662574440154E-2},{"$f":"((Quarterly!AM226/Quarterly!AM225)^4)-1","v":2.3579468060899833E-2},{"$f":"((Quarterly!AN226/Quarterly!AN225)^4)-1","v":2.0189620373039396E-2},{"$f":"((Quarterly!AO226/Quarterly!AO225)^4)-1","v":4.275441993447715E-2},{"$f":"(Quarterly!AP226-Quarterly!AP225)*100","v":-0.66666666666665986},{"$f":"Quarterly!AQ226-Quarterly!AQ225","v":-1.13333333333334},{"$f":"Quarterly!AR226-Quarterly!AR225","v":0.5},{"$f":"Quarterly!AS226-Quarterly!AS225","v":-3.1666666666666714},{"$f":"Quarterly!AT226-Quarterly!AT225","v":-1.9666666666666686},{"$f":"Quarterly!AU226-Quarterly!AU225","v":1.5},{"$f":"Quarterly!AV226-Quarterly!AV225","v":-0.6666666666666643},{"$f":"Quarterly!AW226-Quarterly!AW225","v":-4.8333333333333357},{"$f":"Quarterly!AX226-Quarterly!AX225","v":2.2666666666666728},{"$f":"Quarterly!AY226-Quarterly!AY225","v":3.8333333333333357},{"$f":"Quarterly!AZ226-Quarterly!AZ225","v":3.5666666666666629},{"$f":"Quarterly!BA226-Quarterly!BA225","v":1.7666666666666728},{"$f":"Quarterly!BB226-Quarterly!BB225","v":3.1666666666666785},{"$f":"((Quarterly!BC226/Quarterly!BC225)^4)-1","v":0.13370983356139599},{"$f":"((Quarterly!BD226/Quarterly!BD225)^4)-1","v":1.7707841483506792E-2},{"$f":"((Quarterly!BE226/Quarterly!BE225)^4)-1","v":2.5071119045309009E-2},{"$f":"((Quarterly!BF226/Quarterly!BF225)^4)-1","v":0.11186491528042519},{"$f":"((Quarterly!BG226/Quarterly!BG225)^4)-1","v":-1.7676896278362331E-2},{"$f":"((Quarterly!BH226/Quarterly!BH225)^4)-1","v":8.2894720711939707E-2},{"$f":"((Quarterly!BI226/Quarterly!BI225)^4)-1","v":0.13181093712985281},{"$f":"((Quarterly!BJ226/Quarterly!BJ225)^4)-1","v":1.4713655901481992E-2},{"$f":"((Quarterly!BK226/Quarterly!BK225)^4)-1","v":0.44234285496767267},null,{"$f":"((Quarterly!BM226/Quarterly!BM225)^4)-1","v":6.0056706109601343E-2},{"$f":"((Quarterly!BN226/Quarterly!BN225)^4)-1","v":6.1696472734506846E-2},null,null,null,null,null,{"$f":"((Quarterly!BT226/Quarterly!BT225)^4)-1","v":1.059363278666714E-2},{"$f":"Quarterly!BU226-Quarterly!BU225","v":-0.29578999999999844},{"$f":"Quarterly!BV226-Quarterly!BV225","v":-0.39828999999999937},{"$f":"((Quarterly!BW226/Quarterly!BW225)^4)-1","v":-8.4716955629406399E-2},{"$f":"((Quarterly!BX226/Quarterly!BX225)^4)-1","v":0.83325449352527392},{"$f":"((Quarterly!BY226/Quarterly!BY225)^4)-1","v":0.28917974241791744},{"$f":"((Quarterly!BZ226/Quarterly!BZ225)^4)-1","v":8.8102512791666809E-2},{"$f":"((Quarterly!CA226/Quarterly!CA225)^4)-1","v":0.18799954840453514},{"$f":"((Quarterly!CB226/Quarterly!CB225)^4)-1","v":-5.7448374796538193E-3},{"$f":"((Quarterly!CC226/Quarterly!CC225)^4)-1","v":-4.5438718027105862E-2},{"$f":"((Quarterly!CD226/Quarterly!CD225)^4)-1","v":0.17869359554130826},{"$f":"((Quarterly!CE226/Quarterly!CE225)^4)-1","v":7.2764385574057178E-2},null,{"$f":"((Quarterly!CG226/Quarterly!CG225)^4)-1","v":-0.47605263440874168},{"$f":"((Quarterly!CH226/Quarterly!CH225)^4)-1","v":0.13890840391100667},null,{"$f":"((Quarterly!CJ226/Quarterly!CJ225)^4)-1","v":7.2764385574057178E-2},{"$f":"((Quarterly!CK226/Quarterly!CK225)^4)-1","v":0.136174809510061},{"$f":"((Quarterly!CL226/Quarterly!CL225)^4)-1","v":2.1950503779013615},{"$f":"((Quarterly!CM226/Quarterly!CM225)^4)-1","v":0.41085835697266493},{"$f":"((Quarterly!CN226/Quarterly!CN225)^4)-1","v":0.10926664630508531},{"$f":"((Quarterly!CO226/Quarterly!CO225)^4)-1","v":0.10829173119180835},{"$f":"((Quarterly!CP226/Quarterly!CP225)^4)-1","v":6.5582629187775465E-2},{"$f":"((Quarterly!CQ226/Quarterly!CQ225)^4)-1","v":7.9885705013758024E-3},{"$f":"((Quarterly!CR226/Quarterly!CR225)^4)-1","v":1.7097288989131876E-2},{"$f":"Quarterly!CS226-Quarterly!CS225","v":4.4333333333333513},{"$f":"Quarterly!CT226-Quarterly!CT225","v":4.7000000000000028},null,null,null,null,null,{"$f":"((Quarterly!CZ226/Quarterly!CZ225)^4)-1","v":2.6864572593571001E-2},{"$f":"((Quarterly!DA226/Quarterly!DA225)^4)-1","v":1.8756508731693433E-2},null,null,null,null,null,{"$f":"((Quarterly!DG226/Quarterly!DG225)^4)-1","v":2.4550626565034372E-2},{"$f":"((Quarterly!DH226-Quarterly!DH225)*60)","v":2.0000000000003126},{"$f":"Quarterly!DI226-Quarterly!DI225","v":0.10000000000000853},{"$f":"(Quarterly!DJ226-Quarterly!DJ225)*100","v":-33.333333333333393},{"$f":"(Quarterly!DK226-Quarterly!DK225)*100","v":-23.333333333333339},{"$f":"((Quarterly!DL226/Quarterly!DL225)^4)-1","v":-7.8019417551467019E-4},null,null,null,{"$f":"((Quarterly!DP226/Quarterly!DP225)^4)-1","v":1.5260214487072377E-2},null,null,null,"--",{"$f":"Quarterly!DU226-Quarterly!DU225","v":0.5},{"$f":"((Quarterly!DV226/Quarterly!DV225)^4)-1","v":2.5528623471281264E-2},{"$f":"((Quarterly!DW226/Quarterly!DW225)^4)-1","v":-1.5210678684005607E-2},{"$f":"((Quarterly!DX226/Quarterly!DX225)^4)-1","v":2.720590462527106E-2},{"$f":"((Quarterly!DY226/Quarterly!DY225)^4)-1","v":-1.1271670946281676E-2},{"$f":"((Quarterly!DZ226/Quarterly!DZ225)^4)-1","v":3.9531476006388733E-2},{"$f":"((Quarterly!EA226/Quarterly!EA225)^4)-1","v":5.4791438678180038E-2},{"$f":"((Quarterly!EB226/Quarterly!EB225)^4)-1","v":5.5218827332588205E-3},{"$f":"((Quarterly!EC226/Quarterly!EC225)^4)-1","v":-0.10076945260927672},null,null,null,null,null,{"$f":"((Quarterly!EI226/Quarterly!EI225)^4)-1","v":1.5620855994931349E-2},{"$f":"((Quarterly!EJ226/Quarterly!EJ225)^4)-1","v":-1.1949351035817513E-2},{"$f":"((Quarterly!EK226/Quarterly!EK225)^4)-1","v":-1.817385606549371E-2},null,null,null,null,null,{"$f":"((Quarterly!EQ226/Quarterly!EQ225)^4)-1","v":-2.6324434561335597E-3},{"$f":"((Quarterly!ER226/Quarterly!ER225)^4)-1","v":6.5687216573089291E-3},{"$f":"((Quarterly!ES226/Quarterly!ES225)^4)-1","v":0},null,null,null,null,null,{"$f":"(Quarterly!EY226-Quarterly!EY225)*100","v":0},{"$f":"(Quarterly!EZ226-Quarterly!EZ225)*100","v":1.6666666666666663},{"$f":"(Quarterly!FA226-Quarterly!FA225)*100","v":8.3333333333333481},{"$f":"(Quarterly!FB226-Quarterly!FB225)*100","v":-30.000000000000071},{"$f":"+FB226-FA226","v":-38.333333333333421},{"$f":"(Quarterly!FD226-Quarterly!FD225)*100","v":-19.000000000000039},{"$f":"(Quarterly!FE226-Quarterly!FE225)*100","v":-1.6666666666666663},{"$f":"(Quarterly!FF226-Quarterly!FF225)*100","v":-1.0000000000000009},{"$f":"(Quarterly!FG226-Quarterly!FG225)*100","v":1.0000000000000009},{"$f":"(Quarterly!FH226-Quarterly!FH225)*100","v":2.6666666666666727},{"$f":"(Quarterly!FI226-Quarterly!FI225)*100","v":6.3333333333333464},{"$f":"+FI226-FF226","v":7.3333333333333472},null,null,null,null,null,{"$f":"((Quarterly!FP226/Quarterly!FP225)^4)-1","v":-1.4527039031345779E-2},{"$f":"((Quarterly!FQ226/Quarterly!FQ225)^4)-1","v":-6.5853316431011111E-2},{"$f":"((Quarterly!FR226/Quarterly!FR225)^4)-1","v":-6.3304163261025281E-2},{"$f":"((Quarterly!FS226/Quarterly!FS225)^4)-1","v":0.15297283126160144},{"$f":"((Quarterly!FT226/Quarterly!FT225)^4)-1","v":-5.4359555130469639E-2},{"$f":"((Quarterly!FU226/Quarterly!FU225)^4)-1","v":-4.5627618524021973E-2},{"$f":"((Quarterly!FV226/Quarterly!FV225)^4)-1","v":0.17478744714434291},{"$f":"((Quarterly!FW226/Quarterly!FW225)^4)-1","v":5.6145951375329739E-2},{"$f":"((Quarterly!FX226/Quarterly!FX225)^4)-1","v":2.2917517573161517E-2},null,null,null,null,null,{"$f":"((Quarterly!GD226/Quarterly!GD225)^4)-1","v":-0.16661775518922739},{"$f":"((Quarterly!GE226/Quarterly!GE225)^4)-1","v":1.7385041885260355E-2},{"$f":"((Quarterly!GF226/Quarterly!GF225)^4)-1","v":-0.15918760337869398},{"$f":"((Quarterly!GG226/Quarterly!GG225)^4)-1","v":8.0466173039787314E-2},{"$f":"((Quarterly!GH226/Quarterly!GH225)^4)-1","v":-9.9001906881067248E-2},{"$f":"((Quarterly!GI226/Quarterly!GI225)^4)-1","v":0.25287030255333631},{"$f":"((Quarterly!GJ226/Quarterly!GJ225)^4)-1","v":1.2359101095420697},{"$f":"((Quarterly!GK226/Quarterly!GK225)^4)-1","v":0.23210488930565454},{"$f":"((Quarterly!GL226/Quarterly!GL225)^4)-1","v":-2.1764409300644161E-2}]
["13'Q1",{"$f":"((Quarterly!B227/Quarterly!B226)^4)-1","v":4.4432131060632596E-2},{"$f":"((Quarterly!C227/Quarterly!C226)^4)-1","v":2.827791015420944E-2},{"$f":"((Quarterly!D227/Quarterly!D226)^4)-1","v":1.8269680515776265E-2},{"$f":"((Quarterly!E227/Quarterly!E226)^4)-1","v":1.890830143501665E-2},{"$f":"((Quarterly!F227/Quarterly!F226)^4)-1","v":9.9737696114768015E-2},{"$f":"((Quarterly!G227/Quarterly!G226)^4)-1","v":3.7425446639026916E-2},{"$f":"((Quarterly!H227/Quarterly!H226)^4)-1","v":-7.7083172707603786E-5},{"$f":"((Quarterly!I227/Quarterly!I226)^4)-1","v":5.2154033435825253E-2},{"$f":"((Quarterly!J227/Quarterly!J226)^4)-1","v":8.1093368680140498E-2},{"$f":"((Quarterly!K227/Quarterly!K226)^4)-1","v":0.14748799025272508},{"$f":"((Quarterly!L227-Quarterly!L226))","v":34.161999999999999},{"$f":"((Quarterly!M227/Quarterly!M226)^4)-1","v":1.2920691876919577E-2},{"$f":"((Quarterly!N227/Quarterly!N226)^4)-1","v":3.9926197305264921E-2},{"$f":"((Quarterly!O227/Quarterly!O226)^4)-1","v":-0.10527557932017384},{"$f":"((Quarterly!P227/Quarterly!P226)^4)-1","v":-4.2827535797327343E-2},{"$f":"((Quarterly!Q227/Quarterly!Q226)^4)-1","v":-0.70189252526686352},null,null,null,null,null,{"$f":"((Quarterly!W227/Quarterly!W226)^4)-1","v":1.6053191065414696E-2},{"$f":"((Quarterly!X227/Quarterly!X226)^4)-1","v":1.0421101793426146E-2},{"$f":"((Quarterly!Y227/Quarterly!Y226)^4)-1","v":8.8769127745037313E-2},{"$f":"Quarterly!Z227-Quarterly!Z226","v":0.14999999999999991},{"$f":"((Quarterly!AA227/Quarterly!AA226)^4)-1","v":3.7876091555957947E-2},{"$f":"((Quarterly!AB227/Quarterly!AB226)^4)-1","v":2.640038864702321E-2},{"$f":"Quarterly!AC227-Quarterly!AC226","v":-1.5},{"$f":"Quarterly!AD227-Quarterly!AD226","v":10.9},{"$f":"(Quarterly!AE227-Quarterly!AE226)*100","v":-25},{"$f":"(Quarterly!AF227-Quarterly!AF226)*100","v":14.999999999999991},{"$f":"(Quarterly!AG227-Quarterly!AG226)*100","v":-16.999999999999993},{"$f":"((Quarterly!AH227/Quarterly!AH226)^4)-1","v":0.10916973679838349},{"$f":"((Quarterly!AI227/Quarterly!AI226)^4)-1","v":3.8237884029076019E-2},{"$f":"((Quarterly!AJ227/Quarterly!AJ226)^4)-1","v":2.0407505945879922E-2},{"$f":"((Quarterly!AK227/Quarterly!AK226)^4)-1","v":2.4105677116540658E-2},{"$f":"((Quarterly!AL227/Quarterly!AL226)^4)-1","v":2.4209885994445068E-2},{"$f":"((Quarterly!AM227/Quarterly!AM226)^4)-1","v":3.0144945061546302E-2},{"$f":"((Quarterly!AN227/Quarterly!AN226)^4)-1","v":3.1356393283178186E-2},{"$f":"((Quarterly!AO227/Quarterly!AO226)^4)-1","v":4.65198047579789E-2},{"$f":"(Quarterly!AP227-Quarterly!AP226)*100","v":0},{"$f":"Quarterly!AQ227-Quarterly!AQ226","v":3.63333333333334},{"$f":"Quarterly!AR227-Quarterly!AR226","v":7.5},{"$f":"Quarterly!AS227-Quarterly!AS226","v":1.3333333333333357},{"$f":"Quarterly!AT227-Quarterly!AT226","v":2.7999999999999972},{"$f":"Quarterly!AU227-Quarterly!AU226","v":4.5},{"$f":"Quarterly!AV227-Quarterly!AV226","v":3.6666666666666643},{"$f":"Quarterly!AW227-Quarterly!AW226","v":4.6666666666666643},{"$f":"Quarterly!AX227-Quarterly!AX226","v":2.7666666666666657},{"$f":"Quarterly!AY227-Quarterly!AY226","v":3.1666666666666643},{"$f":"Quarterly!AZ227-Quarterly!AZ226","v":1.56666666666667},{"$f":"Quarterly!BA227-Quarterly!BA226","v":0.26666666666665861},{"$f":"Quarterly!BB227-Quarterly!BB226","v":-1.9666666666666828},{"$f":"((Quarterly!BC227/Quarterly!BC226)^4)-1","v":5.2700937842755646E-2},{"$f":"((Quarterly!BD227/Quarterly!BD226)^4)-1","v":4.4699614877687921E-3},{"$f":"((Quarterly!BE227/Quarterly!BE226)^4)-1","v":-5.0462882976160417E-2},{"$f":"((Quarterly!BF227/Quarterly!BF226)^4)-1","v":-8.9501320903716097E-2},{"$f":"((Quarterly!BG227/Quarterly!BG226)^4)-1","v":8.8319692458127541E-3},{"$f":"((Quarterly!BH227/Quarterly!BH226)^4)-1","v":-0.104349187267194},{"$f":"((Quarterly!BI227/Quarterly!BI226)^4)-1","v":-9.7454856971681658E-2},{"$f":"((Quarterly!BJ227/Quarterly!BJ226)^4)-1","v":0.29439775772891319},{"$f":"((Quarterly!BK227/Quarterly!BK226)^4)-1","v":0.98854064941406117},null,{"$f":"((Quarterly!BM227/Quarterly!BM226)^4)-1","v":6.6954140752177649E-2},{"$f":"((Quarterly!BN227/Quarterly!BN226)^4)-1","v":6.8319461137406945E-2},null,null,null,null,null,{"$f":"((Quarterly!BT227/Quarterly!BT226)^4)-1","v":1.780275331149217E-2},{"$f":"Quarterly!BU227-Quarterly!BU226","v":0.38133999999999979},{"$f":"Quarterly!BV227-Quarterly!BV226","v":0.60204000000000057},{"$f":"((Quarterly!BW227/Quarterly!BW226)^4)-1","v":-4.2549186716914322E-2},{"$f":"((Quarterly!BX227/Quarterly!BX226)^4)-1","v":0.21007572445596745},{"$f":"((Quarterly!BY227/Quarterly!BY226)^4)-1","v":0.1021379019132318},{"$f":"((Quarterly!BZ227/Quarterly!BZ226)^4)-1","v":0.11280323409719029},{"$f":"((Quarterly!CA227/Quarterly!CA226)^4)-1","v":0.17130661615238574},{"$f":"((Quarterly!CB227/Quarterly!CB226)^4)-1","v":-9.1645418657753774E-2},{"$f":"((Quarterly!CC227/Quarterly!CC226)^4)-1","v":-7.1108444978096097E-2},{"$f":"((Quarterly!CD227/Quarterly!CD226)^4)-1","v":8.3002048587859756E-2},{"$f":"((Quarterly!CE227/Quarterly!CE226)^4)-1","v":0.79525625728276306},null,{"$f":"((Quarterly!CG227/Quarterly!CG226)^4)-1","v":-0.20469569268733678},{"$f":"((Quarterly!CH227/Quarterly!CH226)^4)-1","v":2.4732600850615905E-2},null,{"$f":"((Quarterly!CJ227/Quarterly!CJ226)^4)-1","v":0.79525625728276306},{"$f":"((Quarterly!CK227/Quarterly!CK226)^4)-1","v":-0.1104054719339822},{"$f":"((Quarterly!CL227/Quarterly!CL226)^4)-1","v":-0.93616267087802763},{"$f":"((Quarterly!CM227/Quarterly!CM226)^4)-1","v":0.24478836506855939},{"$f":"((Quarterly!CN227/Quarterly!CN226)^4)-1","v":-0.15684844648073559},{"$f":"((Quarterly!CO227/Quarterly!CO226)^4)-1","v":8.5681865282295266E-2},{"$f":"((Quarterly!CP227/Quarterly!CP226)^4)-1","v":6.7010910437632853E-2},{"$f":"((Quarterly!CQ227/Quarterly!CQ226)^4)-1","v":6.1397051986569195E-3},{"$f":"((Quarterly!CR227/Quarterly!CR226)^4)-1","v":1.3773751960968195E-2},{"$f":"Quarterly!CS227-Quarterly!CS226","v":-2.7333333333333485},{"$f":"Quarterly!CT227-Quarterly!CT226","v":-7.6666666666666643},null,null,null,null,null,{"$f":"((Quarterly!CZ227/Quarterly!CZ226)^4)-1","v":1.6163725085139635E-2},{"$f":"((Quarterly!DA227/Quarterly!DA226)^4)-1","v":2.0721601058814265E-2},null,null,null,null,null,{"$f":"((Quarterly!DG227/Quarterly!DG226)^4)-1","v":2.8294074818615567E-2},{"$f":"((Quarterly!DH227-Quarterly!DH226)*60)","v":3.9999999999997726},{"$f":"Quarterly!DI227-Quarterly!DI226","v":-0.26666666666667282},{"$f":"(Quarterly!DJ227-Quarterly!DJ226)*100","v":-16.666666666666607},{"$f":"(Quarterly!DK227-Quarterly!DK226)*100","v":-6.666666666666643},{"$f":"((Quarterly!DL227/Quarterly!DL226)^4)-1","v":1.2322713608202474E-2},null,null,null,{"$f":"((Quarterly!DP227/Quarterly!DP226)^4)-1","v":1.946846220421028E-2},null,null,null,"--",{"$f":"Quarterly!DU227-Quarterly!DU226","v":-1.8333333333333321},{"$f":"((Quarterly!DV227/Quarterly!DV226)^4)-1","v":2.5267108229396706E-2},{"$f":"((Quarterly!DW227/Quarterly!DW226)^4)-1","v":-8.1734261495070792E-2},{"$f":"((Quarterly!DX227/Quarterly!DX226)^4)-1","v":-4.8628921076144471E-2},{"$f":"((Quarterly!DY227/Quarterly!DY226)^4)-1","v":-4.8674683636820371E-2},{"$f":"((Quarterly!DZ227/Quarterly!DZ226)^4)-1","v":-4.861471278518148E-2},{"$f":"((Quarterly!EA227/Quarterly!EA226)^4)-1","v":-5.7306377696636379E-2},{"$f":"((Quarterly!EB227/Quarterly!EB226)^4)-1","v":-2.8429180713168134E-2},{"$f":"((Quarterly!EC227/Quarterly!EC226)^4)-1","v":-0.15125705392553779},null,null,null,null,null,{"$f":"((Quarterly!EI227/Quarterly!EI226)^4)-1","v":7.6472046286704343E-2},{"$f":"((Quarterly!EJ227/Quarterly!EJ226)^4)-1","v":7.3902766560741462E-2},{"$f":"((Quarterly!EK227/Quarterly!EK226)^4)-1","v":5.0551479823311096E-2},null,null,null,null,null,{"$f":"((Quarterly!EQ227/Quarterly!EQ226)^4)-1","v":2.6629702366159469E-2},{"$f":"((Quarterly!ER227/Quarterly!ER226)^4)-1","v":1.6823257330346619E-2},{"$f":"((Quarterly!ES227/Quarterly!ES226)^4)-1","v":5.7288856083623774E-3},null,null,null,null,null,{"$f":"(Quarterly!EY227-Quarterly!EY226)*100","v":0},{"$f":"(Quarterly!EZ227-Quarterly!EZ226)*100","v":-1.6666666666666663},{"$f":"(Quarterly!FA227-Quarterly!FA226)*100","v":33.6666666666666},{"$f":"(Quarterly!FB227-Quarterly!FB226)*100","v":23.666666666666636},-9.9999999999999645,{"$f":"(Quarterly!FD227-Quarterly!FD226)*100","v":14.333333333333353},{"$f":"(Quarterly!FE227-Quarterly!FE226)*100","v":0},{"$f":"(Quarterly!FF227-Quarterly!FF226)*100","v":-2.0000000000000018},{"$f":"(Quarterly!FG227-Quarterly!FG226)*100","v":-0.33333333333333548},{"$f":"(Quarterly!FH227-Quarterly!FH226)*100","v":13.33333333333333},{"$f":"(Quarterly!FI227-Quarterly!FI226)*100","v":24.333333333333318},26.333333333333321,null,null,null,null,null,{"$f":"((Quarterly!FP227/Quarterly!FP226)^4)-1","v":7.2220372384511178E-2},{"$f":"((Quarterly!FQ227/Quarterly!FQ226)^4)-1","v":-1.2773854480631064E-2},{"$f":"((Quarterly!FR227/Quarterly!FR226)^4)-1","v":-9.0054414110481651E-2},{"$f":"((Quarterly!FS227/Quarterly!FS226)^4)-1","v":7.1071818404977671E-2},{"$f":"((Quarterly!FT227/Quarterly!FT226)^4)-1","v":2.3357952397165649E-2},{"$f":"((Quarterly!FU227/Quarterly!FU226)^4)-1","v":9.1460236200499478E-2},{"$f":"((Quarterly!FV227/Quarterly!FV226)^4)-1","v":4.9374587999482467E-2},{"$f":"((Quarterly!FW227/Quarterly!FW226)^4)-1","v":-0.48288567599535559},{"$f":"((Quarterly!FX227/Quarterly!FX226)^4)-1","v":-0.1140121712232719},null,null,null,null,null,{"$f":"((Quarterly!GD227/Quarterly!GD226)^4)-1","v":0.3120266737690871},{"$f":"((Quarterly!GE227/Quarterly!GE226)^4)-1","v":9.0355843674214231E-2},{"$f":"((Quarterly!GF227/Quarterly!GF226)^4)-1","v":6.8604688360669686E-2},{"$f":"((Quarterly!GG227/Quarterly!GG226)^4)-1","v":1.0994857370380418E-2},{"$f":"((Quarterly!GH227/Quarterly!GH226)^4)-1","v":-0.30986911720087384},{"$f":"((Quarterly!GI227/Quarterly!GI226)^4)-1","v":-0.66061398430971119},{"$f":"((Quarterly!GJ227/Quarterly!GJ226)^4)-1","v":-7.3161265383306695E-2},{"$f":"((Quarterly!GK227/Quarterly!GK226)^4)-1","v":-0.12407991590890177},{"$f":"((Quarterly!GL227/Quarterly!GL226)^4)-1","v":-0.13289435447312725}]
["13'Q2",{"$f":"((Quarterly!B228/Quarterly!B227)^4)-1","v":1.6108109393076386E-2},{"$f":"((Quarterly!C228/Quarterly!C227)^4)-1","v":7.6856809904937151E-3},{"$f":"((Quarterly!D228/Quarterly!D227)^4)-1","v":6.4448203679015048E-3},{"$f":"((Quarterly!E228/Quarterly!E227)^4)-1","v":8.2649582783798081E-3},{"$f":"((Quarterly!F228/Quarterly!F227)^4)-1","v":2.1134786084789692E-2},{"$f":"((Quarterly!G228/Quarterly!G227)^4)-1","v":8.7809953907185267E-3},{"$f":"((Quarterly!H228/Quarterly!H227)^4)-1","v":6.0069896813095269E-3},{"$f":"((Quarterly!I228/Quarterly!I227)^4)-1","v":2.4632082617842554E-2},{"$f":"((Quarterly!J228/Quarterly!J227)^4)-1","v":4.8699434173677947E-3},{"$f":"((Quarterly!K228/Quarterly!K227)^4)-1","v":0.11959438752171647},{"$f":"((Quarterly!L228-Quarterly!L227))","v":2.9590000000000032},{"$f":"((Quarterly!M228/Quarterly!M227)^4)-1","v":5.2685170488320221E-2},{"$f":"((Quarterly!N228/Quarterly!N227)^4)-1","v":4.979660815924114E-2},{"$f":"((Quarterly!O228/Quarterly!O227)^4)-1","v":6.6648886902138216E-2},{"$f":"((Quarterly!P228/Quarterly!P227)^4)-1","v":-1.9768601418987508E-2},{"$f":"((Quarterly!Q228/Quarterly!Q227)^4)-1","v":-0.79787903445422215},null,null,null,null,null,{"$f":"((Quarterly!W228/Quarterly!W227)^4)-1","v":-1.579955774616626E-2},{"$f":"((Quarterly!X228/Quarterly!X227)^4)-1","v":-1.724509191568524E-3},{"$f":"((Quarterly!Y228/Quarterly!Y227)^4)-1","v":5.9151459992125677E-2},{"$f":"Quarterly!Z228-Quarterly!Z227","v":0.8},{"$f":"((Quarterly!AA228/Quarterly!AA227)^4)-1","v":-4.9859973822504289E-2},{"$f":"((Quarterly!AB228/Quarterly!AB227)^4)-1","v":2.7918092098344394E-2},{"$f":"Quarterly!AC228-Quarterly!AC227","v":4.1999999999999993},{"$f":"Quarterly!AD228-Quarterly!AD227","v":-7.7},{"$f":"(Quarterly!AE228-Quarterly!AE227)*100","v":-16.000000000000014},{"$f":"(Quarterly!AF228-Quarterly!AF227)*100","v":80},{"$f":"(Quarterly!AG228-Quarterly!AG227)*100","v":-8.9999999999999858},{"$f":"((Quarterly!AH228/Quarterly!AH227)^4)-1","v":0.12997266756099579},{"$f":"((Quarterly!AI228/Quarterly!AI227)^4)-1","v":0.12768660128013765},{"$f":"((Quarterly!AJ228/Quarterly!AJ227)^4)-1","v":2.0303921134269709E-2},{"$f":"((Quarterly!AK228/Quarterly!AK227)^4)-1","v":2.0512153063667382E-2},{"$f":"((Quarterly!AL228/Quarterly!AL227)^4)-1","v":2.0600182318918581E-2},{"$f":"((Quarterly!AM228/Quarterly!AM227)^4)-1","v":1.4681575161556104E-2},{"$f":"((Quarterly!AN228/Quarterly!AN227)^4)-1","v":-4.8091539545609407E-3},{"$f":"((Quarterly!AO228/Quarterly!AO227)^4)-1","v":1.9393486683993988E-3},{"$f":"(Quarterly!AP228-Quarterly!AP227)*100","v":0.33333333333334103},{"$f":"Quarterly!AQ228-Quarterly!AQ227","v":-2.3666666666666742},{"$f":"Quarterly!AR228-Quarterly!AR227","v":-2},{"$f":"Quarterly!AS228-Quarterly!AS227","v":-2.3333333333333357},{"$f":"Quarterly!AT228-Quarterly!AT227","v":-3.9333333333333371},{"$f":"Quarterly!AU228-Quarterly!AU227","v":-0.1666666666666714},{"$f":"Quarterly!AV228-Quarterly!AV227","v":2.5},{"$f":"Quarterly!AW228-Quarterly!AW227","v":-2},{"$f":"Quarterly!AX228-Quarterly!AX227","v":-3.1666666666666643},{"$f":"Quarterly!AY228-Quarterly!AY227","v":-6.8333333333333357},{"$f":"Quarterly!AZ228-Quarterly!AZ227","v":-2.6333333333333329},{"$f":"Quarterly!BA228-Quarterly!BA227","v":-1.6000000000000014},{"$f":"Quarterly!BB228-Quarterly!BB227","v":-1.3999999999999915},{"$f":"((Quarterly!BC228/Quarterly!BC227)^4)-1","v":4.636820422073118E-2},{"$f":"((Quarterly!BD228/Quarterly!BD227)^4)-1","v":1.2695207094675087E-2},{"$f":"((Quarterly!BE228/Quarterly!BE227)^4)-1","v":1.7856496499136787E-2},{"$f":"((Quarterly!BF228/Quarterly!BF227)^4)-1","v":5.7734394341807826E-2},{"$f":"((Quarterly!BG228/Quarterly!BG227)^4)-1","v":-6.5046034086911897E-3},{"$f":"((Quarterly!BH228/Quarterly!BH227)^4)-1","v":6.3134670611674215E-2},{"$f":"((Quarterly!BI228/Quarterly!BI227)^4)-1","v":6.4681623218277196E-2},{"$f":"((Quarterly!BJ228/Quarterly!BJ227)^4)-1","v":-9.7754146599862146E-2},{"$f":"((Quarterly!BK228/Quarterly!BK227)^4)-1","v":10.51483644232319},null,{"$f":"((Quarterly!BM228/Quarterly!BM227)^4)-1","v":1.2233213320844705E-4},{"$f":"((Quarterly!BN228/Quarterly!BN227)^4)-1","v":2.0272177378566347E-3},null,null,null,null,null,{"$f":"((Quarterly!BT228/Quarterly!BT227)^4)-1","v":4.5495808230408219E-2},{"$f":"Quarterly!BU228-Quarterly!BU227","v":-6.5850000000001074E-2},{"$f":"Quarterly!BV228-Quarterly!BV227","v":-6.5400000000000347E-2},{"$f":"((Quarterly!BW228/Quarterly!BW227)^4)-1","v":-2.7055287227755187E-3},{"$f":"((Quarterly!BX228/Quarterly!BX227)^4)-1","v":-0.31622120993260661},{"$f":"((Quarterly!BY228/Quarterly!BY227)^4)-1","v":0.23103692273541943},{"$f":"((Quarterly!BZ228/Quarterly!BZ227)^4)-1","v":0.17329427006235609},{"$f":"((Quarterly!CA228/Quarterly!CA227)^4)-1","v":-7.6225203213183823E-3},{"$f":"((Quarterly!CB228/Quarterly!CB227)^4)-1","v":-0.2065123033834666},{"$f":"((Quarterly!CC228/Quarterly!CC227)^4)-1","v":-0.16877118404322111},{"$f":"((Quarterly!CD228/Quarterly!CD227)^4)-1","v":0.25872005658443831},{"$f":"((Quarterly!CE228/Quarterly!CE227)^4)-1","v":4.2774760782989807E-2},null,{"$f":"((Quarterly!CG228/Quarterly!CG227)^4)-1","v":0.77083445715977783},{"$f":"((Quarterly!CH228/Quarterly!CH227)^4)-1","v":0.14833337434700478},null,{"$f":"((Quarterly!CJ228/Quarterly!CJ227)^4)-1","v":4.2774760782989807E-2},{"$f":"((Quarterly!CK228/Quarterly!CK227)^4)-1","v":3.2896782136708547E-2},{"$f":"((Quarterly!CL228/Quarterly!CL227)^4)-1","v":0.36676991598819053},{"$f":"((Quarterly!CM228/Quarterly!CM227)^4)-1","v":-0.21440348213523874},{"$f":"((Quarterly!CN228/Quarterly!CN227)^4)-1","v":2.349541306468983E-2},{"$f":"((Quarterly!CO228/Quarterly!CO227)^4)-1","v":6.2738222681395062E-2},{"$f":"((Quarterly!CP228/Quarterly!CP227)^4)-1","v":5.2335220635170598E-2},{"$f":"((Quarterly!CQ228/Quarterly!CQ227)^4)-1","v":5.9987586651335523E-3},{"$f":"((Quarterly!CR228/Quarterly!CR227)^4)-1","v":4.4606949829373299E-3},{"$f":"Quarterly!CS228-Quarterly!CS227","v":5.0000000000000142},{"$f":"Quarterly!CT228-Quarterly!CT227","v":12.366666666666667},null,null,null,null,null,{"$f":"((Quarterly!CZ228/Quarterly!CZ227)^4)-1","v":-4.6468076632593114E-3},{"$f":"((Quarterly!DA228/Quarterly!DA227)^4)-1","v":9.3149942119179485E-3},null,null,null,null,null,{"$f":"((Quarterly!DG228/Quarterly!DG227)^4)-1","v":1.6531202949965129E-2},{"$f":"((Quarterly!DH228-Quarterly!DH227)*60)","v":-1.9999999999998863},{"$f":"Quarterly!DI228-Quarterly!DI227","v":-3.3333333333338544E-2},{"$f":"(Quarterly!DJ228-Quarterly!DJ227)*100","v":-23.333333333333428},{"$f":"(Quarterly!DK228-Quarterly!DK227)*100","v":-19.999999999999929},{"$f":"((Quarterly!DL228/Quarterly!DL227)^4)-1","v":3.339266908846561E-3},null,null,null,{"$f":"((Quarterly!DP228/Quarterly!DP227)^4)-1","v":1.733947035895822E-2},null,null,null,"--",{"$f":"Quarterly!DU228-Quarterly!DU227","v":0.1666666666666643},{"$f":"((Quarterly!DV228/Quarterly!DV227)^4)-1","v":2.1648107071971845E-2},{"$f":"((Quarterly!DW228/Quarterly!DW227)^4)-1","v":0.11992296354059118},{"$f":"((Quarterly!DX228/Quarterly!DX227)^4)-1","v":5.1858679703579602E-2},{"$f":"((Quarterly!DY228/Quarterly!DY227)^4)-1","v":8.6134757275363016E-2},{"$f":"((Quarterly!DZ228/Quarterly!DZ227)^4)-1","v":4.138407856446169E-2},{"$f":"((Quarterly!EA228/Quarterly!EA227)^4)-1","v":4.701691717824219E-2},{"$f":"((Quarterly!EB228/Quarterly!EB227)^4)-1","v":2.8631867619543394E-2},{"$f":"((Quarterly!EC228/Quarterly!EC227)^4)-1","v":0.28548871424867084},null,null,null,null,null,{"$f":"((Quarterly!EI228/Quarterly!EI227)^4)-1","v":4.6564376620888748E-2},{"$f":"((Quarterly!EJ228/Quarterly!EJ227)^4)-1","v":7.8290145501925368E-2},{"$f":"((Quarterly!EK228/Quarterly!EK227)^4)-1","v":6.1968649491353611E-2},null,null,null,null,null,{"$f":"((Quarterly!EQ228/Quarterly!EQ227)^4)-1","v":7.223150504309217E-3},{"$f":"((Quarterly!ER228/Quarterly!ER227)^4)-1","v":1.5287738257818928E-2},{"$f":"((Quarterly!ES228/Quarterly!ES227)^4)-1","v":1.2288642386703907E-2},null,null,null,null,null,{"$f":"(Quarterly!EY228-Quarterly!EY227)*100","v":0},{"$f":"(Quarterly!EZ228-Quarterly!EZ227)*100","v":-2.6666666666666687},{"$f":"(Quarterly!FA228-Quarterly!FA227)*100","v":8.6666666666666892},{"$f":"(Quarterly!FB228-Quarterly!FB227)*100","v":2.6666666666667282},{"$f":"+FB228-FA228","v":-5.9999999999999609},{"$f":"(Quarterly!FD228-Quarterly!FD227)*100","v":18.333333333333357},{"$f":"(Quarterly!FE228-Quarterly!FE227)*100","v":-3.6666666666666661},{"$f":"(Quarterly!FF228-Quarterly!FF227)*100","v":-2.6666666666666643},{"$f":"(Quarterly!FG228-Quarterly!FG227)*100","v":0.33333333333333548},{"$f":"(Quarterly!FH228-Quarterly!FH227)*100","v":8.9999999999999964},{"$f":"(Quarterly!FI228-Quarterly!FI227)*100","v":4.6666666666666856},{"$f":"+FI228-FF228","v":7.3333333333333499},null,null,null,null,null,{"$f":"((Quarterly!FP228/Quarterly!FP227)^4)-1","v":5.8609593551409267E-2},{"$f":"((Quarterly!FQ228/Quarterly!FQ227)^4)-1","v":-4.3681088849335303E-2},{"$f":"((Quarterly!FR228/Quarterly!FR227)^4)-1","v":-4.6862534075258089E-2},{"$f":"((Quarterly!FS228/Quarterly!FS227)^4)-1","v":-3.9694037451249664E-2},{"$f":"((Quarterly!FT228/Quarterly!FT227)^4)-1","v":4.2904965429745978E-2},{"$f":"((Quarterly!FU228/Quarterly!FU227)^4)-1","v":8.9101748131497516E-2},{"$f":"((Quarterly!FV228/Quarterly!FV227)^4)-1","v":9.4939026332825582E-2},{"$f":"((Quarterly!FW228/Quarterly!FW227)^4)-1","v":0.39325141498384553},{"$f":"((Quarterly!FX228/Quarterly!FX227)^4)-1","v":0.33468313744780809},null,null,null,null,null,{"$f":"((Quarterly!GD228/Quarterly!GD227)^4)-1","v":-5.4998195044873022E-3},{"$f":"((Quarterly!GE228/Quarterly!GE227)^4)-1","v":-0.30866716288966523},{"$f":"((Quarterly!GF228/Quarterly!GF227)^4)-1","v":2.0810662363310639E-2},{"$f":"((Quarterly!GG228/Quarterly!GG227)^4)-1","v":-0.14410004707440738},{"$f":"((Quarterly!GH228/Quarterly!GH227)^4)-1","v":-0.12954762564779543},{"$f":"((Quarterly!GI228/Quarterly!GI227)^4)-1","v":1.8545859989288838},{"$f":"((Quarterly!GJ228/Quarterly!GJ227)^4)-1","v":0.77569639904266374},{"$f":"((Quarterly!GK228/Quarterly!GK227)^4)-1","v":0.28030179671700961},{"$f":"((Quarterly!GL228/Quarterly!GL227)^4)-1","v":0.27878845376452288}]
["13'Q3",{"$f":"((Quarterly!B229/Quarterly!B228)^4)-1","v":5.1244466273762335E-2},{"$f":"((Quarterly!C229/Quarterly!C228)^4)-1","v":3.1226397251013838E-2},{"$f":"((Quarterly!D229/Quarterly!D228)^4)-1","v":1.4940210764020412E-2},{"$f":"((Quarterly!E229/Quarterly!E228)^4)-1","v":1.8831778689712086E-2},{"$f":"((Quarterly!F229/Quarterly!F228)^4)-1","v":4.0479698867979641E-2},{"$f":"((Quarterly!G229/Quarterly!G228)^4)-1","v":2.4159632685674337E-2},{"$f":"((Quarterly!H229/Quarterly!H228)^4)-1","v":1.3460465879070682E-2},{"$f":"((Quarterly!I229/Quarterly!I228)^4)-1","v":2.1132424169090447E-2},{"$f":"((Quarterly!J229/Quarterly!J228)^4)-1","v":-1.5865670088728967E-2},{"$f":"((Quarterly!K229/Quarterly!K228)^4)-1","v":6.0252390471793538E-2},{"$f":"((Quarterly!L229-Quarterly!L228))","v":56.430999999999997},{"$f":"((Quarterly!M229/Quarterly!M228)^4)-1","v":1.7344135605490418E-2},{"$f":"((Quarterly!N229/Quarterly!N228)^4)-1","v":3.111065050049211E-2},{"$f":"((Quarterly!O229/Quarterly!O228)^4)-1","v":-4.6646591331412468E-2},{"$f":"((Quarterly!P229/Quarterly!P228)^4)-1","v":-1.9774673831427281E-2},{"$f":"((Quarterly!Q229/Quarterly!Q228)^4)-1","v":2.19209567419305},null,null,null,null,null,{"$f":"((Quarterly!W229/Quarterly!W228)^4)-1","v":-1.586221047735481E-2},{"$f":"((Quarterly!X229/Quarterly!X228)^4)-1","v":-1.7252529950575468E-3},{"$f":"((Quarterly!Y229/Quarterly!Y228)^4)-1","v":5.965407505803122E-2},{"$f":"Quarterly!Z229-Quarterly!Z228","v":0.29999999999999982},{"$f":"((Quarterly!AA229/Quarterly!AA228)^4)-1","v":6.7888612258703684E-2},{"$f":"((Quarterly!AB229/Quarterly!AB228)^4)-1","v":9.4309252413906641E-3},{"$f":"Quarterly!AC229-Quarterly!AC228","v":5.5},{"$f":"Quarterly!AD229-Quarterly!AD228","v":16.600000000000001},{"$f":"(Quarterly!AE229-Quarterly!AE228)*100","v":-33.000000000000007},{"$f":"(Quarterly!AF229-Quarterly!AF228)*100","v":29.999999999999982},{"$f":"(Quarterly!AG229-Quarterly!AG228)*100","v":-78.000000000000028},{"$f":"((Quarterly!AH229/Quarterly!AH228)^4)-1","v":0.12117690797585645},{"$f":"((Quarterly!AI229/Quarterly!AI228)^4)-1","v":8.3721017519372998E-2},{"$f":"((Quarterly!AJ229/Quarterly!AJ228)^4)-1","v":2.0201382535304901E-2},{"$f":"((Quarterly!AK229/Quarterly!AK228)^4)-1","v":1.6984758415505619E-2},{"$f":"((Quarterly!AL229/Quarterly!AL228)^4)-1","v":1.3628423680700497E-2},{"$f":"((Quarterly!AM229/Quarterly!AM228)^4)-1","v":9.2032479806998246E-3},{"$f":"((Quarterly!AN229/Quarterly!AN228)^4)-1","v":-9.3072446929068908E-3},{"$f":"((Quarterly!AO229/Quarterly!AO228)^4)-1","v":3.0185963125463733E-2},{"$f":"(Quarterly!AP229-Quarterly!AP228)*100","v":0.33333333333331883},{"$f":"Quarterly!AQ229-Quarterly!AQ228","v":3.9666666666666757},{"$f":"Quarterly!AR229-Quarterly!AR228","v":-2.1666666666666643},{"$f":"Quarterly!AS229-Quarterly!AS228","v":-0.8333333333333286},{"$f":"Quarterly!AT229-Quarterly!AT228","v":4.7000000000000028},{"$f":"Quarterly!AU229-Quarterly!AU228","v":0.5},{"$f":"Quarterly!AV229-Quarterly!AV228","v":1.6666666666666714},{"$f":"Quarterly!AW229-Quarterly!AW228","v":-0.5},{"$f":"Quarterly!AX229-Quarterly!AX228","v":9.6666666666666643},{"$f":"Quarterly!AY229-Quarterly!AY228","v":2.5},{"$f":"Quarterly!AZ229-Quarterly!AZ228","v":11.5},{"$f":"Quarterly!BA229-Quarterly!BA228","v":2.4666666666666686},{"$f":"Quarterly!BB229-Quarterly!BB228","v":1.1999999999999957},{"$f":"((Quarterly!BC229/Quarterly!BC228)^4)-1","v":-0.10043604718643073},{"$f":"((Quarterly!BD229/Quarterly!BD228)^4)-1","v":-2.7410236846964975E-2},{"$f":"((Quarterly!BE229/Quarterly!BE228)^4)-1","v":3.6444646228701805E-2},{"$f":"((Quarterly!BF229/Quarterly!BF228)^4)-1","v":1.0910913071174866E-2},{"$f":"((Quarterly!BG229/Quarterly!BG228)^4)-1","v":1.6428189887284228E-2},{"$f":"((Quarterly!BH229/Quarterly!BH228)^4)-1","v":-1.0550268320968725E-2},{"$f":"((Quarterly!BI229/Quarterly!BI228)^4)-1","v":-5.4149680477233453E-3},{"$f":"((Quarterly!BJ229/Quarterly!BJ228)^4)-1","v":5.983049432685883E-2},{"$f":"((Quarterly!BK229/Quarterly!BK228)^4)-1","v":0.88305605997500924},null,{"$f":"((Quarterly!BM229/Quarterly!BM228)^4)-1","v":3.4811695593491621E-2},{"$f":"((Quarterly!BN229/Quarterly!BN228)^4)-1","v":3.4562299568776433E-2},null,null,null,null,null,{"$f":"((Quarterly!BT229/Quarterly!BT228)^4)-1","v":2.3235414040875924E-2},{"$f":"Quarterly!BU229-Quarterly!BU228","v":-5.0549999999999429E-2},{"$f":"Quarterly!BV229-Quarterly!BV228","v":-5.6290000000000617E-2},{"$f":"((Quarterly!BW229/Quarterly!BW228)^4)-1","v":-1.2646294916269452E-2},{"$f":"((Quarterly!BX229/Quarterly!BX228)^4)-1","v":8.0864482994353448E-2},{"$f":"((Quarterly!BY229/Quarterly!BY228)^4)-1","v":-4.4832888610850219E-2},{"$f":"((Quarterly!BZ229/Quarterly!BZ228)^4)-1","v":0.14476406702693279},{"$f":"((Quarterly!CA229/Quarterly!CA228)^4)-1","v":-1.8059656775489819E-3},{"$f":"((Quarterly!CB229/Quarterly!CB228)^4)-1","v":-7.6535685361630579E-2},{"$f":"((Quarterly!CC229/Quarterly!CC228)^4)-1","v":-9.827347562168498E-2},{"$f":"((Quarterly!CD229/Quarterly!CD228)^4)-1","v":0.41727438446779885},{"$f":"((Quarterly!CE229/Quarterly!CE228)^4)-1","v":-0.45458024740219116},null,{"$f":"((Quarterly!CG229/Quarterly!CG228)^4)-1","v":0.1028130224356798},{"$f":"((Quarterly!CH229/Quarterly!CH228)^4)-1","v":0.18700880720065971},null,{"$f":"((Quarterly!CJ229/Quarterly!CJ228)^4)-1","v":-0.45458024740219116},{"$f":"((Quarterly!CK229/Quarterly!CK228)^4)-1","v":3.4149361898888619E-2},{"$f":"((Quarterly!CL229/Quarterly!CL228)^4)-1","v":0.15023829475561246},{"$f":"((Quarterly!CM229/Quarterly!CM228)^4)-1","v":4.3261668968608058E-2},{"$f":"((Quarterly!CN229/Quarterly!CN228)^4)-1","v":2.3617669552788101E-2},{"$f":"((Quarterly!CO229/Quarterly!CO228)^4)-1","v":7.8180341483596649E-2},{"$f":"((Quarterly!CP229/Quarterly!CP228)^4)-1","v":5.8668767006193834E-2},{"$f":"((Quarterly!CQ229/Quarterly!CQ228)^4)-1","v":7.579424594156503E-3},{"$f":"((Quarterly!CR229/Quarterly!CR228)^4)-1","v":6.0578513880495954E-3},{"$f":"Quarterly!CS229-Quarterly!CS228","v":-0.10000000000000853},{"$f":"Quarterly!CT229-Quarterly!CT228","v":5.86666666666666},null,null,null,null,null,{"$f":"((Quarterly!CZ229/Quarterly!CZ228)^4)-1","v":2.1776414149420553E-2},{"$f":"((Quarterly!DA229/Quarterly!DA228)^4)-1","v":2.0572525730421454E-2},null,null,null,null,null,{"$f":"((Quarterly!DG229/Quarterly!DG228)^4)-1","v":1.1376090401228334E-2},{"$f":"((Quarterly!DH229-Quarterly!DH228)*60)","v":-4.000000000000199},{"$f":"Quarterly!DI229-Quarterly!DI228","v":-0.10000000000000853},{"$f":"(Quarterly!DJ229-Quarterly!DJ228)*100","v":-30.000000000000249},{"$f":"(Quarterly!DK229-Quarterly!DK228)*100","v":-26.66666666666675},{"$f":"((Quarterly!DL229/Quarterly!DL228)^4)-1","v":2.0008886589175656E-3},null,null,null,{"$f":"((Quarterly!DP229/Quarterly!DP228)^4)-1","v":1.6044621477083965E-2},null,null,null,"--",{"$f":"Quarterly!DU229-Quarterly!DU228","v":-0.56666666666666288},{"$f":"((Quarterly!DV229/Quarterly!DV228)^4)-1","v":1.3014275909900119E-2},{"$f":"((Quarterly!DW229/Quarterly!DW228)^4)-1","v":7.1223452835709855E-2},{"$f":"((Quarterly!DX229/Quarterly!DX228)^4)-1","v":2.6728565047477115E-2},{"$f":"((Quarterly!DY229/Quarterly!DY228)^4)-1","v":5.6878132488426658E-2},{"$f":"((Quarterly!DZ229/Quarterly!DZ228)^4)-1","v":1.7403507602781643E-2},{"$f":"((Quarterly!EA229/Quarterly!EA228)^4)-1","v":-7.7247998613991786E-3},{"$f":"((Quarterly!EB229/Quarterly!EB228)^4)-1","v":7.6719693632260944E-2},{"$f":"((Quarterly!EC229/Quarterly!EC228)^4)-1","v":0.17151186487776982},null,null,null,null,null,{"$f":"((Quarterly!EI229/Quarterly!EI228)^4)-1","v":3.4766104914487617E-2},{"$f":"((Quarterly!EJ229/Quarterly!EJ228)^4)-1","v":2.5023004472899846E-2},{"$f":"((Quarterly!EK229/Quarterly!EK228)^4)-1","v":2.0685967242352055E-2},null,null,null,null,null,{"$f":"((Quarterly!EQ229/Quarterly!EQ228)^4)-1","v":3.9279821812130411E-3},{"$f":"((Quarterly!ER229/Quarterly!ER228)^4)-1","v":1.0133831518897907E-2},{"$f":"((Quarterly!ES229/Quarterly!ES228)^4)-1","v":8.1549017376090216E-3},null,null,null,null,null,{"$f":"(Quarterly!EY229-Quarterly!EY228)*100","v":0},{"$f":"(Quarterly!EZ229-Quarterly!EZ228)*100","v":-3.3333333333333326},{"$f":"(Quarterly!FA229-Quarterly!FA228)*100","v":54.333333333333343},{"$f":"(Quarterly!FB229-Quarterly!FB228)*100","v":56.666666666666643},{"$f":"+FB229-FA229","v":2.3333333333333002},{"$f":"(Quarterly!FD229-Quarterly!FD228)*100","v":75.333333333333343},{"$f":"(Quarterly!FE229-Quarterly!FE228)*100","v":-1.6666666666666676},{"$f":"(Quarterly!FF229-Quarterly!FF228)*100","v":-0.33333333333333409},{"$f":"(Quarterly!FG229-Quarterly!FG228)*100","v":9.6666666666666679},{"$f":"(Quarterly!FH229-Quarterly!FH228)*100","v":59},{"$f":"(Quarterly!FI229-Quarterly!FI228)*100","v":71.333333333333357},{"$f":"+FI229-FF229","v":71.666666666666686},null,null,null,null,null,{"$f":"((Quarterly!FP229/Quarterly!FP228)^4)-1","v":6.0484278173137396E-2},{"$f":"((Quarterly!FQ229/Quarterly!FQ228)^4)-1","v":-1.8609996964499609E-2},{"$f":"((Quarterly!FR229/Quarterly!FR228)^4)-1","v":0.14142597901900511},{"$f":"((Quarterly!FS229/Quarterly!FS228)^4)-1","v":5.8477912531309517E-2},{"$f":"((Quarterly!FT229/Quarterly!FT228)^4)-1","v":4.4062749024948111E-2},{"$f":"((Quarterly!FU229/Quarterly!FU228)^4)-1","v":1.0061196831618879E-3},{"$f":"((Quarterly!FV229/Quarterly!FV228)^4)-1","v":-9.1565595862584948E-2},{"$f":"((Quarterly!FW229/Quarterly!FW228)^4)-1","v":0.56260693075096646},{"$f":"((Quarterly!FX229/Quarterly!FX228)^4)-1","v":-5.128472085943081E-2},null,null,null,null,null,{"$f":"((Quarterly!GD229/Quarterly!GD228)^4)-1","v":0.59228270504621805},{"$f":"((Quarterly!GE229/Quarterly!GE228)^4)-1","v":0.33861671863869858},{"$f":"((Quarterly!GF229/Quarterly!GF228)^4)-1","v":-1.3316506790153504E-2},{"$f":"((Quarterly!GG229/Quarterly!GG228)^4)-1","v":4.756237344651093E-2},{"$f":"((Quarterly!GH229/Quarterly!GH228)^4)-1","v":3.2622635261337241},{"$f":"((Quarterly!GI229/Quarterly!GI228)^4)-1","v":2.8942506031589459},{"$f":"((Quarterly!GJ229/Quarterly!GJ228)^4)-1","v":-0.38318953993011617},{"$f":"((Quarterly!GK229/Quarterly!GK228)^4)-1","v":-3.941202169724245E-2},{"$f":"((Quarterly!GL229/Quarterly!GL228)^4)-1","v":0.34461959168756007}]
["13'Q4",{"$f":"((Quarterly!B230/Quarterly!B229)^4)-1","v":6.118844628912834E-2},{"$f":"((Quarterly!C230/Quarterly!C229)^4)-1","v":3.9597517279002403E-2},{"$f":"((Quarterly!D230/Quarterly!D229)^4)-1","v":4.1275979524232786E-2},{"$f":"((Quarterly!E230/Quarterly!E229)^4)-1","v":3.4123632434215123E-2},{"$f":"((Quarterly!F230/Quarterly!F229)^4)-1","v":4.9385624059309796E-2},{"$f":"((Quarterly!G230/Quarterly!G229)^4)-1","v":3.565150679552298E-2},{"$f":"((Quarterly!H230/Quarterly!H229)^4)-1","v":3.1119291382179171E-2},{"$f":"((Quarterly!I230/Quarterly!I229)^4)-1","v":9.5319973365249444E-2},{"$f":"((Quarterly!J230/Quarterly!J229)^4)-1","v":0.11649261648418774},{"$f":"((Quarterly!K230/Quarterly!K229)^4)-1","v":-4.4857391950486991E-2},{"$f":"((Quarterly!L230-Quarterly!L229))","v":-5.4240000000000066},{"$f":"((Quarterly!M230/Quarterly!M229)^4)-1","v":1.5720370411886231E-2},{"$f":"((Quarterly!N230/Quarterly!N229)^4)-1","v":0.11833376489909408},{"$f":"((Quarterly!O230/Quarterly!O229)^4)-1","v":-0.38772206226661587},{"$f":"((Quarterly!P230/Quarterly!P229)^4)-1","v":-2.8449171261247019E-2},{"$f":"((Quarterly!Q230/Quarterly!Q229)^4)-1","v":-0.65748221241666494},null,null,null,null,null,{"$f":"((Quarterly!W230/Quarterly!W229)^4)-1","v":1.6117875612773114E-2},{"$f":"((Quarterly!X230/Quarterly!X229)^4)-1","v":2.0887023872720567E-2},{"$f":"((Quarterly!Y230/Quarterly!Y229)^4)-1","v":6.7599510312131406E-2},{"$f":"Quarterly!Z230-Quarterly!Z229","v":0.18000000000000016},{"$f":"((Quarterly!AA230/Quarterly!AA229)^4)-1","v":0.11045931845878343},{"$f":"((Quarterly!AB230/Quarterly!AB229)^4)-1","v":8.6579475392204008E-2},{"$f":"Quarterly!AC230-Quarterly!AC229","v":-17.399999999999999},{"$f":"Quarterly!AD230-Quarterly!AD229","v":-24.3},{"$f":"(Quarterly!AE230-Quarterly!AE229)*100","v":-10.000000000000053},{"$f":"(Quarterly!AF230-Quarterly!AF229)*100","v":18.000000000000014},{"$f":"(Quarterly!AG230-Quarterly!AG229)*100","v":-13.999999999999989},{"$f":"((Quarterly!AH230/Quarterly!AH229)^4)-1","v":0.15237368745980695},{"$f":"((Quarterly!AI230/Quarterly!AI229)^4)-1","v":0.12486557139241738},{"$f":"((Quarterly!AJ230/Quarterly!AJ229)^4)-1","v":1.6729039177798999E-2},{"$f":"((Quarterly!AK230/Quarterly!AK229)^4)-1","v":2.0321112185304413E-2},{"$f":"((Quarterly!AL230/Quarterly!AL229)^4)-1","v":2.3859198445855156E-2},{"$f":"((Quarterly!AM230/Quarterly!AM229)^4)-1","v":3.2212553545336808E-2},{"$f":"((Quarterly!AN230/Quarterly!AN229)^4)-1","v":2.1768773635652661E-2},{"$f":"((Quarterly!AO230/Quarterly!AO229)^4)-1","v":6.6766617680575902E-2},{"$f":"(Quarterly!AP230-Quarterly!AP229)*100","v":0},{"$f":"Quarterly!AQ230-Quarterly!AQ229","v":0.8333333333333357},{"$f":"Quarterly!AR230-Quarterly!AR229","v":5.3333333333333357},{"$f":"Quarterly!AS230-Quarterly!AS229","v":2.1666666666666643},{"$f":"Quarterly!AT230-Quarterly!AT229","v":0.79999999999999716},{"$f":"Quarterly!AU230-Quarterly!AU229","v":3.5},{"$f":"Quarterly!AV230-Quarterly!AV229","v":-1.6666666666666714},{"$f":"Quarterly!AW230-Quarterly!AW229","v":1.8333333333333357},{"$f":"Quarterly!AX230-Quarterly!AX229","v":2.2000000000000099},{"$f":"Quarterly!AY230-Quarterly!AY229","v":0.6666666666666714},{"$f":"Quarterly!AZ230-Quarterly!AZ229","v":-1.5666666666666629},{"$f":"Quarterly!BA230-Quarterly!BA229","v":1.5333333333333385},{"$f":"Quarterly!BB230-Quarterly!BB229","v":-0.56666666666666288},{"$f":"((Quarterly!BC230/Quarterly!BC229)^4)-1","v":1.6797851755585125E-2},{"$f":"((Quarterly!BD230/Quarterly!BD229)^4)-1","v":-9.1862468650037998E-3},{"$f":"((Quarterly!BE230/Quarterly!BE229)^4)-1","v":4.5117191188670525E-4},{"$f":"((Quarterly!BF230/Quarterly!BF229)^4)-1","v":2.4400917016707657E-2},{"$f":"((Quarterly!BG230/Quarterly!BG229)^4)-1","v":4.4140314941908843E-2},{"$f":"((Quarterly!BH230/Quarterly!BH229)^4)-1","v":9.0075030760057295E-3},{"$f":"((Quarterly!BI230/Quarterly!BI229)^4)-1","v":-1.8900599984116306E-2},{"$f":"((Quarterly!BJ230/Quarterly!BJ229)^4)-1","v":7.1511957495516754E-2},{"$f":"((Quarterly!BK230/Quarterly!BK229)^4)-1","v":0.40024492715413684},null,{"$f":"((Quarterly!BM230/Quarterly!BM229)^4)-1","v":3.3742230833498699E-2},{"$f":"((Quarterly!BN230/Quarterly!BN229)^4)-1","v":2.4454580855681973E-2},null,null,null,null,null,{"$f":"((Quarterly!BT230/Quarterly!BT229)^4)-1","v":1.2754655978169938E-2},{"$f":"Quarterly!BU230-Quarterly!BU229","v":1.1150000000000659E-2},{"$f":"Quarterly!BV230-Quarterly!BV229","v":3.3680000000000376E-2},{"$f":"((Quarterly!BW230/Quarterly!BW229)^4)-1","v":-9.1474829268602953E-3},{"$f":"((Quarterly!BX230/Quarterly!BX229)^4)-1","v":0.72308597870849867},{"$f":"((Quarterly!BY230/Quarterly!BY229)^4)-1","v":0.20080854626618816},{"$f":"((Quarterly!BZ230/Quarterly!BZ229)^4)-1","v":0.11870454280029286},{"$f":"((Quarterly!CA230/Quarterly!CA229)^4)-1","v":3.3472839161292844E-2},{"$f":"((Quarterly!CB230/Quarterly!CB229)^4)-1","v":-0.25187033914888224},{"$f":"((Quarterly!CC230/Quarterly!CC229)^4)-1","v":-0.22297886938312184},{"$f":"((Quarterly!CD230/Quarterly!CD229)^4)-1","v":0.2212275639492276},{"$f":"((Quarterly!CE230/Quarterly!CE229)^4)-1","v":0.763535818923186},null,{"$f":"((Quarterly!CG230/Quarterly!CG229)^4)-1","v":-0.31616077661024677},{"$f":"((Quarterly!CH230/Quarterly!CH229)^4)-1","v":-0.25639048273169007},null,{"$f":"((Quarterly!CJ230/Quarterly!CJ229)^4)-1","v":0.763535818923186},{"$f":"((Quarterly!CK230/Quarterly!CK229)^4)-1","v":2.9370545706332463E-2},{"$f":"((Quarterly!CL230/Quarterly!CL229)^4)-1","v":-0.36319407846672336},{"$f":"((Quarterly!CM230/Quarterly!CM229)^4)-1","v":0.38772884985672795},{"$f":"((Quarterly!CN230/Quarterly!CN229)^4)-1","v":8.6350019257843691E-3},{"$f":"((Quarterly!CO230/Quarterly!CO229)^4)-1","v":7.9293725047108854E-2},{"$f":"((Quarterly!CP230/Quarterly!CP229)^4)-1","v":6.4121193317043357E-2},{"$f":"((Quarterly!CQ230/Quarterly!CQ229)^4)-1","v":8.1875628263030631E-3},{"$f":"((Quarterly!CR230/Quarterly!CR229)^4)-1","v":1.8297143952934913E-2},{"$f":"Quarterly!CS230-Quarterly!CS229","v":-4.6333333333333258},{"$f":"Quarterly!CT230-Quarterly!CT229","v":-7.0333333333333314},null,null,null,null,null,{"$f":"((Quarterly!CZ230/Quarterly!CZ229)^4)-1","v":1.5625624987831488E-2},{"$f":"((Quarterly!DA230/Quarterly!DA229)^4)-1","v":1.7875244347051789E-2},null,null,null,null,null,{"$f":"((Quarterly!DG230/Quarterly!DG229)^4)-1","v":2.0233314420586845E-2},{"$f":"((Quarterly!DH230-Quarterly!DH229)*60)","v":-1.9999999999998863},{"$f":"Quarterly!DI230-Quarterly!DI229","v":-0.39999999999999147},{"$f":"(Quarterly!DJ230-Quarterly!DJ229)*100","v":-43.333333333333179},{"$f":"(Quarterly!DK230-Quarterly!DK229)*100","v":-33.3333333333333},{"$f":"((Quarterly!DL230/Quarterly!DL229)^4)-1","v":2.0585010554754257E-2},null,null,null,{"$f":"((Quarterly!DP230/Quarterly!DP229)^4)-1","v":1.807553064322609E-2},null,null,null,"--",{"$f":"Quarterly!DU230-Quarterly!DU229","v":0.36666666666666359},{"$f":"((Quarterly!DV230/Quarterly!DV229)^4)-1","v":0.16349950163431437},{"$f":"((Quarterly!DW230/Quarterly!DW229)^4)-1","v":9.5305471936015573E-2},{"$f":"((Quarterly!DX230/Quarterly!DX229)^4)-1","v":0.16773693436696613},{"$f":"((Quarterly!DY230/Quarterly!DY229)^4)-1","v":0.1956132170791991},{"$f":"((Quarterly!DZ230/Quarterly!DZ229)^4)-1","v":0.15896195178392869},{"$f":"((Quarterly!EA230/Quarterly!EA229)^4)-1","v":5.2561953532548555E-2},{"$f":"((Quarterly!EB230/Quarterly!EB229)^4)-1","v":0.42653710879555939},{"$f":"((Quarterly!EC230/Quarterly!EC229)^4)-1","v":-4.4089377453667589E-2},null,null,null,null,null,{"$f":"((Quarterly!EI230/Quarterly!EI229)^4)-1","v":5.805041968413871E-2},{"$f":"((Quarterly!EJ230/Quarterly!EJ229)^4)-1","v":6.8097947317160124E-2},{"$f":"((Quarterly!EK230/Quarterly!EK229)^4)-1","v":5.8844076465011774E-2},null,null,null,null,null,{"$f":"((Quarterly!EQ230/Quarterly!EQ229)^4)-1","v":-4.3674089753652834E-2},{"$f":"((Quarterly!ER230/Quarterly!ER229)^4)-1","v":1.2284202551013701E-2},{"$f":"((Quarterly!ES230/Quarterly!ES229)^4)-1","v":1.6326193378917164E-2},null,null,null,null,null,{"$f":"(Quarterly!EY230-Quarterly!EY229)*100","v":0},{"$f":"(Quarterly!EZ230-Quarterly!EZ229)*100","v":0.33333333333333409},{"$f":"(Quarterly!FA230-Quarterly!FA229)*100","v":8.6666666666666892},{"$f":"(Quarterly!FB230-Quarterly!FB229)*100","v":-4.6666666666666856},{"$f":"+FB230-FA230","v":-13.333333333333375},{"$f":"(Quarterly!FD230-Quarterly!FD229)*100","v":-13.666666666666671},{"$f":"(Quarterly!FE230-Quarterly!FE229)*100","v":3.0000000000000004},{"$f":"(Quarterly!FF230-Quarterly!FF229)*100","v":0},{"$f":"(Quarterly!FG230-Quarterly!FG229)*100","v":-4.0000000000000036},{"$f":"(Quarterly!FH230-Quarterly!FH229)*100","v":-6.666666666666643},{"$f":"(Quarterly!FI230-Quarterly!FI229)*100","v":3.6666666666666181},{"$f":"+FI230-FF230","v":3.6666666666666181},null,null,null,null,null,{"$f":"((Quarterly!FP230/Quarterly!FP229)^4)-1","v":4.398037740186278E-2},{"$f":"((Quarterly!FQ230/Quarterly!FQ229)^4)-1","v":-2.2768462310116089E-2},{"$f":"((Quarterly!FR230/Quarterly!FR229)^4)-1","v":3.4775557473576413E-2},{"$f":"((Quarterly!FS230/Quarterly!FS229)^4)-1","v":0.11303281566195844},{"$f":"((Quarterly!FT230/Quarterly!FT229)^4)-1","v":-2.1247084574165354E-2},{"$f":"((Quarterly!FU230/Quarterly!FU229)^4)-1","v":-3.8730785108690324E-2},{"$f":"((Quarterly!FV230/Quarterly!FV229)^4)-1","v":9.335591141847055E-2},{"$f":"((Quarterly!FW230/Quarterly!FW229)^4)-1","v":4.6578098687321878E-2},{"$f":"((Quarterly!FX230/Quarterly!FX229)^4)-1","v":1.8581595349546287E-2},null,null,null,null,null,{"$f":"((Quarterly!GD230/Quarterly!GD229)^4)-1","v":-0.28456394951837605},{"$f":"((Quarterly!GE230/Quarterly!GE229)^4)-1","v":-4.0159534683766096E-2},{"$f":"((Quarterly!GF230/Quarterly!GF229)^4)-1","v":-0.27009053834797825},{"$f":"((Quarterly!GG230/Quarterly!GG229)^4)-1","v":-5.2231910813813287E-2},{"$f":"((Quarterly!GH230/Quarterly!GH229)^4)-1","v":0.50162858261394572},{"$f":"((Quarterly!GI230/Quarterly!GI229)^4)-1","v":-0.23095238981592225},{"$f":"((Quarterly!GJ230/Quarterly!GJ229)^4)-1","v":0.38253380136769777},{"$f":"((Quarterly!GK230/Quarterly!GK229)^4)-1","v":4.5884702500838426E-2},{"$f":"((Quarterly!GL230/Quarterly!GL229)^4)-1","v":-2.4670235691838016E-2}]
["14'Q1",{"$f":"((Quarterly!B231/Quarterly!B230)^4)-1","v":7.4172969108561304E-3},{"$f":"((Quarterly!C231/Quarterly!C230)^4)-1","v":-9.1763485519787968E-3},{"$f":"((Quarterly!D231/Quarterly!D230)^4)-1","v":8.488404912644576E-3},{"$f":"((Quarterly!E231/Quarterly!E230)^4)-1","v":1.9334156478168607E-2},{"$f":"((Quarterly!F231/Quarterly!F230)^4)-1","v":5.5225795160822599E-2},{"$f":"((Quarterly!G231/Quarterly!G230)^4)-1","v":9.0348384970369011E-3},{"$f":"((Quarterly!H231/Quarterly!H230)^4)-1","v":1.7046648829578848E-2},{"$f":"((Quarterly!I231/Quarterly!I230)^4)-1","v":7.1706608671444849E-2},{"$f":"((Quarterly!J231/Quarterly!J230)^4)-1","v":3.5518393680484817E-2},{"$f":"((Quarterly!K231/Quarterly!K230)^4)-1","v":-2.8077357447858886E-2},{"$f":"((Quarterly!L231-Quarterly!L230))","v":-64.873999999999995},{"$f":"((Quarterly!M231/Quarterly!M230)^4)-1","v":4.9975927180165636E-2},{"$f":"((Quarterly!N231/Quarterly!N230)^4)-1","v":-2.4269478429969515E-2},{"$f":"((Quarterly!O231/Quarterly!O230)^4)-1","v":0.55458699310898973},{"$f":"((Quarterly!P231/Quarterly!P230)^4)-1","v":-5.9904843340420344E-3},{"$f":"((Quarterly!Q231/Quarterly!Q230)^4)-1","v":0.39325756379970001},null,null,null,null,null,{"$f":"((Quarterly!W231/Quarterly!W230)^4)-1","v":-1.0595933052459872E-2},{"$f":"((Quarterly!X231/Quarterly!X230)^4)-1","v":1.9034724739588782E-2},{"$f":"((Quarterly!Y231/Quarterly!Y230)^4)-1","v":0.14036991416027633},{"$f":"Quarterly!Z231-Quarterly!Z230","v":0.12999999999999989},{"$f":"((Quarterly!AA231/Quarterly!AA230)^4)-1","v":-0.17225381631831704},{"$f":"((Quarterly!AB231/Quarterly!AB230)^4)-1","v":-0.25827247471376835},{"$f":"Quarterly!AC231-Quarterly!AC230","v":7.7},{"$f":"Quarterly!AD231-Quarterly!AD230","v":14.1},{"$f":"(Quarterly!AE231-Quarterly!AE230)*100","v":-9.9999999999999645},{"$f":"(Quarterly!AF231-Quarterly!AF230)*100","v":12.999999999999989},{"$f":"(Quarterly!AG231-Quarterly!AG230)*100","v":-7.0000000000000062},{"$f":"((Quarterly!AH231/Quarterly!AH230)^4)-1","v":0.14276471460214935},{"$f":"((Quarterly!AI231/Quarterly!AI230)^4)-1","v":0.10719156528147433},{"$f":"((Quarterly!AJ231/Quarterly!AJ230)^4)-1","v":1.665936686958891E-2},{"$f":"((Quarterly!AK231/Quarterly!AK230)^4)-1","v":1.0071259240410635E-2},{"$f":"((Quarterly!AL231/Quarterly!AL230)^4)-1","v":1.0113699610502236E-2},{"$f":"((Quarterly!AM231/Quarterly!AM230)^4)-1","v":3.1639189718661198E-2},{"$f":"((Quarterly!AN231/Quarterly!AN230)^4)-1","v":-5.1751123188599202E-3},{"$f":"((Quarterly!AO231/Quarterly!AO230)^4)-1","v":5.4899697733702846E-2},{"$f":"(Quarterly!AP231-Quarterly!AP230)*100","v":1.0000000000000009},{"$f":"Quarterly!AQ231-Quarterly!AQ230","v":-1.7666666666666728},{"$f":"Quarterly!AR231-Quarterly!AR230","v":0.1666666666666643},{"$f":"Quarterly!AS231-Quarterly!AS230","v":-2.3333333333333357},{"$f":"Quarterly!AT231-Quarterly!AT230","v":-3.2666666666666657},{"$f":"Quarterly!AU231-Quarterly!AU230","v":-2.6666666666666643},{"$f":"Quarterly!AV231-Quarterly!AV230","v":-1.3333333333333286},{"$f":"Quarterly!AW231-Quarterly!AW230","v":-0.3333333333333357},{"$f":"Quarterly!AX231-Quarterly!AX230","v":-9.2666666666666728},{"$f":"Quarterly!AY231-Quarterly!AY230","v":6},{"$f":"Quarterly!AZ231-Quarterly!AZ230","v":-8.8000000000000043},{"$f":"Quarterly!BA231-Quarterly!BA230","v":1.7333333333333272},{"$f":"Quarterly!BB231-Quarterly!BB230","v":-0.60000000000000142},{"$f":"((Quarterly!BC231/Quarterly!BC230)^4)-1","v":6.5354172637163144E-2},{"$f":"((Quarterly!BD231/Quarterly!BD230)^4)-1","v":1.7308563374357266E-2},{"$f":"((Quarterly!BE231/Quarterly!BE230)^4)-1","v":9.3354932212709629E-2},{"$f":"((Quarterly!BF231/Quarterly!BF230)^4)-1","v":6.8138899960152211E-2},{"$f":"((Quarterly!BG231/Quarterly!BG230)^4)-1","v":-3.3707445838061401E-2},{"$f":"((Quarterly!BH231/Quarterly!BH230)^4)-1","v":4.0838039238791479E-2},{"$f":"((Quarterly!BI231/Quarterly!BI230)^4)-1","v":0.10536792641680037},{"$f":"((Quarterly!BJ231/Quarterly!BJ230)^4)-1","v":-0.16997678803442706},{"$f":"((Quarterly!BK231/Quarterly!BK230)^4)-1","v":0.25437837890633408},null,{"$f":"((Quarterly!BM231/Quarterly!BM230)^4)-1","v":2.8488939907225896E-2},{"$f":"((Quarterly!BN231/Quarterly!BN230)^4)-1","v":3.2129172977967357E-2},null,null,null,null,null,{"$f":"((Quarterly!BT231/Quarterly!BT230)^4)-1","v":1.6157171503416334E-2},{"$f":"Quarterly!BU231-Quarterly!BU230","v":-9.0710000000001401E-2},{"$f":"Quarterly!BV231-Quarterly!BV230","v":-0.10594999999999999},{"$f":"((Quarterly!BW231/Quarterly!BW230)^4)-1","v":-2.4576125520514691E-2},{"$f":"((Quarterly!BX231/Quarterly!BX230)^4)-1","v":-0.25147082727124259},{"$f":"((Quarterly!BY231/Quarterly!BY230)^4)-1","v":3.2800305035280752E-2},{"$f":"((Quarterly!BZ231/Quarterly!BZ230)^4)-1","v":7.2216222659238216E-2},{"$f":"((Quarterly!CA231/Quarterly!CA230)^4)-1","v":7.7738635287119662E-2},{"$f":"((Quarterly!CB231/Quarterly!CB230)^4)-1","v":-1.4385690404071116E-2},{"$f":"((Quarterly!CC231/Quarterly!CC230)^4)-1","v":-6.4841579982490072E-2},{"$f":"((Quarterly!CD231/Quarterly!CD230)^4)-1","v":0.12062514674359837},{"$f":"((Quarterly!CE231/Quarterly!CE230)^4)-1","v":-0.14468191152267496},null,{"$f":"((Quarterly!CG231/Quarterly!CG230)^4)-1","v":-0.17346432272600865},{"$f":"((Quarterly!CH231/Quarterly!CH230)^4)-1","v":-0.19893809330655254},null,{"$f":"((Quarterly!CJ231/Quarterly!CJ230)^4)-1","v":-0.14468191152267496},{"$f":"((Quarterly!CK231/Quarterly!CK230)^4)-1","v":7.1474844805594628E-2},{"$f":"((Quarterly!CL231/Quarterly!CL230)^4)-1","v":0.69285030025000083},{"$f":"((Quarterly!CM231/Quarterly!CM230)^4)-1","v":-0.24027920204085207},{"$f":"((Quarterly!CN231/Quarterly!CN230)^4)-1","v":4.3390727534452722E-2},{"$f":"((Quarterly!CO231/Quarterly!CO230)^4)-1","v":6.1129366945695596E-2},{"$f":"((Quarterly!CP231/Quarterly!CP230)^4)-1","v":6.765995330263852E-2},{"$f":"((Quarterly!CQ231/Quarterly!CQ230)^4)-1","v":6.8442740784200318E-3},{"$f":"((Quarterly!CR231/Quarterly!CR230)^4)-1","v":3.0730403542272411E-2},{"$f":"Quarterly!CS231-Quarterly!CS230","v":4},{"$f":"Quarterly!CT231-Quarterly!CT230","v":6.5666666666666629},null,null,null,null,null,{"$f":"((Quarterly!CZ231/Quarterly!CZ230)^4)-1","v":2.5711034530207399E-2},{"$f":"((Quarterly!DA231/Quarterly!DA230)^4)-1","v":1.6711003191289375E-2},null,null,null,null,null,{"$f":"((Quarterly!DG231/Quarterly!DG230)^4)-1","v":1.0028125930549026E-2},{"$f":"((Quarterly!DH231-Quarterly!DH230)*60)","v":-3.9999999999997726},{"$f":"Quarterly!DI231-Quarterly!DI230","v":6.6666666666669983E-2},{"$f":"(Quarterly!DJ231-Quarterly!DJ230)*100","v":-63.333333333333286},{"$f":"(Quarterly!DK231-Quarterly!DK230)*100","v":-26.666666666666661},{"$f":"((Quarterly!DL231/Quarterly!DL230)^4)-1","v":1.220580641837099E-2},null,null,null,{"$f":"((Quarterly!DP231/Quarterly!DP230)^4)-1","v":1.4611772902060283E-2},null,null,null,null,{"$f":"Quarterly!DU231-Quarterly!DU230","v":-1.2000000000000011},{"$f":"((Quarterly!DV231/Quarterly!DV230)^4)-1","v":1.0873799534880879E-2},{"$f":"((Quarterly!DW231/Quarterly!DW230)^4)-1","v":9.0612307261781488E-3},{"$f":"((Quarterly!DX231/Quarterly!DX230)^4)-1","v":1.0120991540185642E-2},{"$f":"((Quarterly!DY231/Quarterly!DY230)^4)-1","v":1.0925572513505566E-2},{"$f":"((Quarterly!DZ231/Quarterly!DZ230)^4)-1","v":9.8608989320663198E-3},{"$f":"((Quarterly!EA231/Quarterly!EA230)^4)-1","v":3.6741982207921797E-3},{"$f":"((Quarterly!EB231/Quarterly!EB230)^4)-1","v":2.279796729105521E-2},{"$f":"((Quarterly!EC231/Quarterly!EC230)^4)-1","v":6.7614761463234974E-3},null,null,null,null,null,{"$f":"((Quarterly!EI231/Quarterly!EI230)^4)-1","v":-2.2011408239733576E-2},{"$f":"((Quarterly!EJ231/Quarterly!EJ230)^4)-1","v":-2.3014494024160226E-2},{"$f":"((Quarterly!EK231/Quarterly!EK230)^4)-1","v":-1.7377338208539816E-2},null,null,null,null,null,{"$f":"((Quarterly!EQ231/Quarterly!EQ230)^4)-1","v":7.3252797266053271E-2},{"$f":"((Quarterly!ER231/Quarterly!ER230)^4)-1","v":3.7076885883879696E-2},{"$f":"((Quarterly!ES231/Quarterly!ES230)^4)-1","v":2.1176215548554866E-2},null,null,null,null,null,{"$f":"(Quarterly!EY231-Quarterly!EY230)*100","v":0},{"$f":"(Quarterly!EZ231-Quarterly!EZ230)*100","v":-1.3333333333333321},{"$f":"(Quarterly!FA231-Quarterly!FA230)*100","v":-15.333333333333332},{"$f":"(Quarterly!FB231-Quarterly!FB230)*100","v":-24.000000000000021},{"$f":"+FB231-FA231","v":-8.6666666666666892},{"$f":"(Quarterly!FD231-Quarterly!FD230)*100","v":5.3333333333332789},{"$f":"(Quarterly!FE231-Quarterly!FE230)*100","v":-1.666666666666667},{"$f":"(Quarterly!FF231-Quarterly!FF230)*100","v":0},{"$f":"(Quarterly!FG231-Quarterly!FG230)*100","v":4.6666666666666687},{"$f":"(Quarterly!FH231-Quarterly!FH230)*100","v":16.333333333333311},{"$f":"(Quarterly!FI231-Quarterly!FI230)*100","v":1.6666666666667052},{"$f":"+FI231-FF231","v":1.6666666666667052},null,null,null,null,null,{"$f":"((Quarterly!FP231/Quarterly!FP230)^4)-1","v":0.22119256080214211},{"$f":"((Quarterly!FQ231/Quarterly!FQ230)^4)-1","v":7.7950297409536962E-3},{"$f":"((Quarterly!FR231/Quarterly!FR230)^4)-1","v":6.7865617610654239E-2},{"$f":"((Quarterly!FS231/Quarterly!FS230)^4)-1","v":2.6305276773932906E-2},{"$f":"((Quarterly!FT231/Quarterly!FT230)^4)-1","v":6.0709916327847724E-2},{"$f":"((Quarterly!FU231/Quarterly!FU230)^4)-1","v":5.9872371992813367E-2},{"$f":"((Quarterly!FV231/Quarterly!FV230)^4)-1","v":-6.859335244521092E-3},{"$f":"((Quarterly!FW231/Quarterly!FW230)^4)-1","v":-0.49906963149414019},{"$f":"((Quarterly!FX231/Quarterly!FX230)^4)-1","v":-9.5003376989586386E-2},null,null,null,null,null,{"$f":"((Quarterly!GD231/Quarterly!GD230)^4)-1","v":5.8924319081887333E-2},{"$f":"((Quarterly!GE231/Quarterly!GE230)^4)-1","v":-3.7669706621954124E-2},{"$f":"((Quarterly!GF231/Quarterly!GF230)^4)-1","v":0.14437493628768827},{"$f":"((Quarterly!GG231/Quarterly!GG230)^4)-1","v":9.6870702532451114E-2},{"$f":"((Quarterly!GH231/Quarterly!GH230)^4)-1","v":-0.37980499541680035},{"$f":"((Quarterly!GI231/Quarterly!GI230)^4)-1","v":-0.601700976456917},{"$f":"((Quarterly!GJ231/Quarterly!GJ230)^4)-1","v":1.2625393752489673},{"$f":"((Quarterly!GK231/Quarterly!GK230)^4)-1","v":-0.13588430200818979},{"$f":"((Quarterly!GL231/Quarterly!GL230)^4)-1","v":-0.22007242125928983}]
["14'Q2",{"$f":"((Quarterly!B232/Quarterly!B231)^4)-1","v":6.976966797634776E-2},{"$f":"((Quarterly!C232/Quarterly!C231)^4)-1","v":4.6022983890219527E-2},{"$f":"((Quarterly!D232/Quarterly!D231)^4)-1","v":3.742058735668663E-2},{"$f":"((Quarterly!E232/Quarterly!E231)^4)-1","v":3.4692465173518539E-2},{"$f":"((Quarterly!F232/Quarterly!F231)^4)-1","v":0.13222769841242488},{"$f":"((Quarterly!G232/Quarterly!G231)^4)-1","v":2.9490741758720018E-2},{"$f":"((Quarterly!H232/Quarterly!H231)^4)-1","v":2.1203308993265502E-2},{"$f":"((Quarterly!I232/Quarterly!I231)^4)-1","v":9.4190098284987034E-2},{"$f":"((Quarterly!J232/Quarterly!J231)^4)-1","v":8.6514351364097797E-2},{"$f":"((Quarterly!K232/Quarterly!K231)^4)-1","v":0.13203032377819257},{"$f":"((Quarterly!L232-Quarterly!L231))","v":31.177000000000007},{"$f":"((Quarterly!M232/Quarterly!M231)^4)-1","v":0.10214412586646793},{"$f":"((Quarterly!N232/Quarterly!N231)^4)-1","v":9.1714776810543297E-2},{"$f":"((Quarterly!O232/Quarterly!O231)^4)-1","v":0.15596472438479703},{"$f":"((Quarterly!P232/Quarterly!P231)^4)-1","v":1.0606439480097762E-2},{"$f":"((Quarterly!Q232/Quarterly!Q231)^4)-1","v":0.12182848420055703},null,null,null,null,null,{"$f":"((Quarterly!W232/Quarterly!W231)^4)-1","v":4.3354200797234288E-2},{"$f":"((Quarterly!X232/Quarterly!X231)^4)-1","v":4.5210329452318065E-2},{"$f":"((Quarterly!Y232/Quarterly!Y231)^4)-1","v":0.13380306950134324},{"$f":"Quarterly!Z232-Quarterly!Z231","v":-0.33999999999999986},{"$f":"((Quarterly!AA232/Quarterly!AA231)^4)-1","v":0.22545451479085021},{"$f":"((Quarterly!AB232/Quarterly!AB231)^4)-1","v":0.44490266980866933},{"$f":"Quarterly!AC232-Quarterly!AC231","v":3},{"$f":"Quarterly!AD232-Quarterly!AD231","v":-5.6},{"$f":"(Quarterly!AE232-Quarterly!AE231)*100","v":-8.9999999999999858},{"$f":"(Quarterly!AF232-Quarterly!AF231)*100","v":-33.999999999999986},{"$f":"(Quarterly!AG232-Quarterly!AG231)*100","v":-7.0000000000000062},{"$f":"((Quarterly!AH232/Quarterly!AH231)^4)-1","v":0.18063936747381026},{"$f":"((Quarterly!AI232/Quarterly!AI231)^4)-1","v":7.3865864707790996E-2},{"$f":"((Quarterly!AJ232/Quarterly!AJ231)^4)-1","v":4.3563011221970926E-2},{"$f":"((Quarterly!AK232/Quarterly!AK231)^4)-1","v":3.3780821708847331E-2},{"$f":"((Quarterly!AL232/Quarterly!AL231)^4)-1","v":2.7071228641802225E-2},{"$f":"((Quarterly!AM232/Quarterly!AM231)^4)-1","v":5.972861657157158E-2},{"$f":"((Quarterly!AN232/Quarterly!AN231)^4)-1","v":4.5788818201795589E-2},{"$f":"((Quarterly!AO232/Quarterly!AO231)^4)-1","v":4.35273783035941E-2},{"$f":"(Quarterly!AP232-Quarterly!AP231)*100","v":0},{"$f":"Quarterly!AQ232-Quarterly!AQ231","v":1.5},{"$f":"Quarterly!AR232-Quarterly!AR231","v":-0.5},{"$f":"Quarterly!AS232-Quarterly!AS231","v":0.8333333333333357},{"$f":"Quarterly!AT232-Quarterly!AT231","v":1.5333333333333385},{"$f":"Quarterly!AU232-Quarterly!AU231","v":1.5},{"$f":"Quarterly!AV232-Quarterly!AV231","v":2.6666666666666643},{"$f":"Quarterly!AW232-Quarterly!AW231","v":3.3333333333333357},{"$f":"Quarterly!AX232-Quarterly!AX231","v":3.3666666666666671},{"$f":"Quarterly!AY232-Quarterly!AY231","v":-1.6666666666666714},{"$f":"Quarterly!AZ232-Quarterly!AZ231","v":5.93333333333333},{"$f":"Quarterly!BA232-Quarterly!BA231","v":-1.9333333333333371},{"$f":"Quarterly!BB232-Quarterly!BB231","v":4.6333333333333329},{"$f":"((Quarterly!BC232/Quarterly!BC231)^4)-1","v":-2.7643533191751835E-2},{"$f":"((Quarterly!BD232/Quarterly!BD231)^4)-1","v":1.1634107613094802E-2},{"$f":"((Quarterly!BE232/Quarterly!BE231)^4)-1","v":-4.4493789282634366E-2},{"$f":"((Quarterly!BF232/Quarterly!BF231)^4)-1","v":-2.4601681451338453E-2},{"$f":"((Quarterly!BG232/Quarterly!BG231)^4)-1","v":2.3570087285012864E-2},{"$f":"((Quarterly!BH232/Quarterly!BH231)^4)-1","v":-4.2420479500852815E-2},{"$f":"((Quarterly!BI232/Quarterly!BI231)^4)-1","v":-4.7064663016726849E-2},{"$f":"((Quarterly!BJ232/Quarterly!BJ231)^4)-1","v":0.27087606577169066},{"$f":"((Quarterly!BK232/Quarterly!BK231)^4)-1","v":-0.46326802820350066},null,{"$f":"((Quarterly!BM232/Quarterly!BM231)^4)-1","v":9.925081506739275E-2},{"$f":"((Quarterly!BN232/Quarterly!BN231)^4)-1","v":9.9429087258559035E-2},null,null,null,null,null,{"$f":"((Quarterly!BT232/Quarterly!BT231)^4)-1","v":6.7359304120134134E-2},{"$f":"Quarterly!BU232-Quarterly!BU231","v":-7.3729999999999407E-2},{"$f":"Quarterly!BV232-Quarterly!BV231","v":-8.2670000000000243E-2},{"$f":"((Quarterly!BW232/Quarterly!BW231)^4)-1","v":-8.9852613385364988E-3},{"$f":"((Quarterly!BX232/Quarterly!BX231)^4)-1","v":0.19732010549509771},{"$f":"((Quarterly!BY232/Quarterly!BY231)^4)-1","v":-1.1521723307305498E-2},{"$f":"((Quarterly!BZ232/Quarterly!BZ231)^4)-1","v":3.699977826269385E-2},{"$f":"((Quarterly!CA232/Quarterly!CA231)^4)-1","v":0.19963024626280168},{"$f":"((Quarterly!CB232/Quarterly!CB231)^4)-1","v":6.286344412627165E-2},{"$f":"((Quarterly!CC232/Quarterly!CC231)^4)-1","v":-6.1677413242563595E-2},{"$f":"((Quarterly!CD232/Quarterly!CD231)^4)-1","v":8.6907325757169307E-2},{"$f":"((Quarterly!CE232/Quarterly!CE231)^4)-1","v":-3.393441799245811E-2},null,{"$f":"((Quarterly!CG232/Quarterly!CG231)^4)-1","v":0.93511645158937418},{"$f":"((Quarterly!CH232/Quarterly!CH231)^4)-1","v":0.19207943840108266},null,{"$f":"((Quarterly!CJ232/Quarterly!CJ231)^4)-1","v":-3.393441799245811E-2},{"$f":"((Quarterly!CK232/Quarterly!CK231)^4)-1","v":6.4363507496987049E-2},{"$f":"((Quarterly!CL232/Quarterly!CL231)^4)-1","v":0.45204518390376891},{"$f":"((Quarterly!CM232/Quarterly!CM231)^4)-1","v":0.12828503582482265},{"$f":"((Quarterly!CN232/Quarterly!CN231)^4)-1","v":5.2562060144212719E-2},{"$f":"((Quarterly!CO232/Quarterly!CO231)^4)-1","v":6.3130806260115691E-2},{"$f":"((Quarterly!CP232/Quarterly!CP231)^4)-1","v":7.8687803943642276E-2},{"$f":"((Quarterly!CQ232/Quarterly!CQ231)^4)-1","v":6.6513327424444491E-3},{"$f":"((Quarterly!CR232/Quarterly!CR231)^4)-1","v":5.6116455749261274E-2},{"$f":"Quarterly!CS232-Quarterly!CS231","v":1.8999999999999915},{"$f":"Quarterly!CT232-Quarterly!CT231","v":2.9000000000000057},null,null,null,null,null,{"$f":"((Quarterly!CZ232/Quarterly!CZ231)^4)-1","v":1.8783417018103155E-2},{"$f":"((Quarterly!DA232/Quarterly!DA231)^4)-1","v":2.0566224778069131E-2},null,null,null,null,null,{"$f":"((Quarterly!DG232/Quarterly!DG231)^4)-1","v":4.8184234071526832E-2},{"$f":"((Quarterly!DH232-Quarterly!DH231)*60)","v":9.9999999999998579},{"$f":"Quarterly!DI232-Quarterly!DI231","v":-0.16666666666667851},{"$f":"(Quarterly!DJ232-Quarterly!DJ231)*100","v":-50},{"$f":"(Quarterly!DK232-Quarterly!DK231)*100","v":-46.666666666666679},{"$f":"((Quarterly!DL232/Quarterly!DL231)^4)-1","v":1.5506592110710482E-2},null,null,null,{"$f":"((Quarterly!DP232/Quarterly!DP231)^4)-1","v":2.4201137978910214E-2},null,null,null,null,{"$f":"Quarterly!DU232-Quarterly!DU231","v":-1.0333333333333332},{"$f":"((Quarterly!DV232/Quarterly!DV231)^4)-1","v":1.1425206880628647E-2},{"$f":"((Quarterly!DW232/Quarterly!DW231)^4)-1","v":1.8975013289659781E-2},{"$f":"((Quarterly!DX232/Quarterly!DX231)^4)-1","v":1.7158633857242256E-2},{"$f":"((Quarterly!DY232/Quarterly!DY231)^4)-1","v":2.4498675701120964E-2},{"$f":"((Quarterly!DZ232/Quarterly!DZ231)^4)-1","v":1.4819328025158063E-2},{"$f":"((Quarterly!EA232/Quarterly!EA231)^4)-1","v":8.3183786897125245E-3},{"$f":"((Quarterly!EB232/Quarterly!EB231)^4)-1","v":2.8351843692332457E-2},{"$f":"((Quarterly!EC232/Quarterly!EC231)^4)-1","v":2.296000704486123E-2},null,null,null,null,null,{"$f":"((Quarterly!EI232/Quarterly!EI231)^4)-1","v":5.8985329207019044E-2},{"$f":"((Quarterly!EJ232/Quarterly!EJ231)^4)-1","v":-8.7350269953430093E-3},{"$f":"((Quarterly!EK232/Quarterly!EK231)^4)-1","v":-9.7413181673506877E-3},null,null,null,null,null,{"$f":"((Quarterly!EQ232/Quarterly!EQ231)^4)-1","v":5.359959703114181E-2},{"$f":"((Quarterly!ER232/Quarterly!ER231)^4)-1","v":1.3570023032138723E-2},{"$f":"((Quarterly!ES232/Quarterly!ES231)^4)-1","v":9.6812525647613779E-3},null,null,null,null,null,{"$f":"(Quarterly!EY232-Quarterly!EY231)*100","v":0},{"$f":"(Quarterly!EZ232-Quarterly!EZ231)*100","v":1.9999999999999991},{"$f":"(Quarterly!FA232-Quarterly!FA231)*100","v":-22.333333333333361},{"$f":"(Quarterly!FB232-Quarterly!FB231)*100","v":-29.666666666666597},{"$f":"+FB232-FA232","v":-7.3333333333332362},{"$f":"(Quarterly!FD232-Quarterly!FD231)*100","v":-12.666666666666604},{"$f":"(Quarterly!FE232-Quarterly!FE231)*100","v":-1.3333333333333335},{"$f":"(Quarterly!FF232-Quarterly!FF231)*100","v":-1.9999999999999991},{"$f":"(Quarterly!FG232-Quarterly!FG231)*100","v":4.6666666666666634},{"$f":"(Quarterly!FH232-Quarterly!FH231)*100","v":5.3333333333333233},{"$f":"(Quarterly!FI232-Quarterly!FI231)*100","v":-14.000000000000057},{"$f":"+FI232-FF232","v":-12.000000000000057},null,null,null,null,null,{"$f":"((Quarterly!FP232/Quarterly!FP231)^4)-1","v":-4.5718859242068643E-2},{"$f":"((Quarterly!FQ232/Quarterly!FQ231)^4)-1","v":8.747108194783304E-2},{"$f":"((Quarterly!FR232/Quarterly!FR231)^4)-1","v":-7.006600138581176E-2},{"$f":"((Quarterly!FS232/Quarterly!FS231)^4)-1","v":3.2146875686305254E-3},{"$f":"((Quarterly!FT232/Quarterly!FT231)^4)-1","v":-2.0486866315834296E-2},{"$f":"((Quarterly!FU232/Quarterly!FU231)^4)-1","v":-2.7378003178751498E-2},{"$f":"((Quarterly!FV232/Quarterly!FV231)^4)-1","v":0.30744709937782755},{"$f":"((Quarterly!FW232/Quarterly!FW231)^4)-1","v":0.67000038583630972},{"$f":"((Quarterly!FX232/Quarterly!FX231)^4)-1","v":0.37460347163035612},null,null,null,null,null,{"$f":"((Quarterly!GD232/Quarterly!GD231)^4)-1","v":0.19976480197765611},{"$f":"((Quarterly!GE232/Quarterly!GE231)^4)-1","v":5.7919749283707134E-2},{"$f":"((Quarterly!GF232/Quarterly!GF231)^4)-1","v":0.35308306686967006},{"$f":"((Quarterly!GG232/Quarterly!GG231)^4)-1","v":-2.1429747906798746E-2},{"$f":"((Quarterly!GH232/Quarterly!GH231)^4)-1","v":-0.19708501382143817},{"$f":"((Quarterly!GI232/Quarterly!GI231)^4)-1","v":1.1416418799806478},{"$f":"((Quarterly!GJ232/Quarterly!GJ231)^4)-1","v":-0.12094236754285337},{"$f":"((Quarterly!GK232/Quarterly!GK231)^4)-1","v":0.27133566117649677},{"$f":"((Quarterly!GL232/Quarterly!GL231)^4)-1","v":0.33344441865561225}]
["14'Q3",{"$f":"((Quarterly!B233/Quarterly!B232)^4)-1","v":7.1426044012879775E-2},{"$f":"((Quarterly!C233/Quarterly!C232)^4)-1","v":5.2115688359968715E-2},{"$f":"((Quarterly!D233/Quarterly!D232)^4)-1","v":4.8273461821757513E-2},{"$f":"((Quarterly!E233/Quarterly!E232)^4)-1","v":3.9351888442875405E-2},{"$f":"((Quarterly!F233/Quarterly!F232)^4)-1","v":7.7149775844920665E-2},{"$f":"((Quarterly!G233/Quarterly!G232)^4)-1","v":2.9794185062543832E-2},{"$f":"((Quarterly!H233/Quarterly!H232)^4)-1","v":3.647883264156615E-2},{"$f":"((Quarterly!I233/Quarterly!I232)^4)-1","v":0.10470876484619662},{"$f":"((Quarterly!J233/Quarterly!J232)^4)-1","v":0.14133615267256139},{"$f":"((Quarterly!K233/Quarterly!K232)^4)-1","v":4.4702443299828865E-2},{"$f":"((Quarterly!L233-Quarterly!L232))","v":15.686999999999998},{"$f":"((Quarterly!M233/Quarterly!M232)^4)-1","v":-9.6853329168439251E-3},{"$f":"((Quarterly!N233/Quarterly!N232)^4)-1","v":6.2508076824165926E-3},{"$f":"((Quarterly!O233/Quarterly!O232)^4)-1","v":-8.6230826140221484E-2},{"$f":"((Quarterly!P233/Quarterly!P232)^4)-1","v":2.1104307940444045E-2},{"$f":"((Quarterly!Q233/Quarterly!Q232)^4)-1","v":0.13575225965508264},null,null,null,null,null,{"$f":"((Quarterly!W233/Quarterly!W232)^4)-1","v":1.5925367097812115E-2},{"$f":"((Quarterly!X233/Quarterly!X232)^4)-1","v":-1.6902594998678966E-3},{"$f":"((Quarterly!Y233/Quarterly!Y232)^4)-1","v":0.11843832003072219},{"$f":"Quarterly!Z233-Quarterly!Z232","v":-0.10000000000000009},{"$f":"((Quarterly!AA233/Quarterly!AA232)^4)-1","v":0.11948626929528827},{"$f":"((Quarterly!AB233/Quarterly!AB232)^4)-1","v":0.20099290092098365},{"$f":"Quarterly!AC233-Quarterly!AC232","v":-6.8},{"$f":"Quarterly!AD233-Quarterly!AD232","v":16.5},{"$f":"(Quarterly!AE233-Quarterly!AE232)*100","v":-22.000000000000021},{"$f":"(Quarterly!AF233-Quarterly!AF232)*100","v":-10.000000000000009},{"$f":"(Quarterly!AG233-Quarterly!AG232)*100","v":-48},{"$f":"((Quarterly!AH233/Quarterly!AH232)^4)-1","v":0.1373689770435611},{"$f":"((Quarterly!AI233/Quarterly!AI232)^4)-1","v":0.10684748745719896},{"$f":"((Quarterly!AJ233/Quarterly!AJ232)^4)-1","v":1.9720031184760289E-2},{"$f":"((Quarterly!AK233/Quarterly!AK232)^4)-1","v":2.6732027551980009E-2},{"$f":"((Quarterly!AL233/Quarterly!AL232)^4)-1","v":3.0288143234541876E-2},{"$f":"((Quarterly!AM233/Quarterly!AM232)^4)-1","v":1.6842068374757435E-2},{"$f":"((Quarterly!AN233/Quarterly!AN232)^4)-1","v":1.3853571025779221E-2},{"$f":"((Quarterly!AO233/Quarterly!AO232)^4)-1","v":3.2465598316478106E-2},{"$f":"(Quarterly!AP233-Quarterly!AP232)*100","v":0.33333333333334103},{"$f":"Quarterly!AQ233-Quarterly!AQ232","v":1},{"$f":"Quarterly!AR233-Quarterly!AR232","v":-2.3333333333333357},{"$f":"Quarterly!AS233-Quarterly!AS232","v":0.6666666666666643},{"$f":"Quarterly!AT233-Quarterly!AT232","v":3.5333333333333314},{"$f":"Quarterly!AU233-Quarterly!AU232","v":-2.1666666666666643},{"$f":"Quarterly!AV233-Quarterly!AV232","v":-2.8333333333333357},{"$f":"Quarterly!AW233-Quarterly!AW232","v":-2.3333333333333357},{"$f":"Quarterly!AX233-Quarterly!AX232","v":6.3999999999999986},{"$f":"Quarterly!AY233-Quarterly!AY232","v":0.8333333333333357},{"$f":"Quarterly!AZ233-Quarterly!AZ232","v":4.5333333333333385},{"$f":"Quarterly!BA233-Quarterly!BA232","v":-0.26666666666666572},{"$f":"Quarterly!BB233-Quarterly!BB232","v":0.76666666666667282},{"$f":"((Quarterly!BC233/Quarterly!BC232)^4)-1","v":0.12064606727757532},{"$f":"((Quarterly!BD233/Quarterly!BD232)^4)-1","v":2.9158530273600825E-3},{"$f":"((Quarterly!BE233/Quarterly!BE232)^4)-1","v":2.158729499956813E-2},{"$f":"((Quarterly!BF233/Quarterly!BF232)^4)-1","v":3.1889315940386131E-2},{"$f":"((Quarterly!BG233/Quarterly!BG232)^4)-1","v":4.4133487263736004E-2},{"$f":"((Quarterly!BH233/Quarterly!BH232)^4)-1","v":2.0892288872294218E-2},{"$f":"((Quarterly!BI233/Quarterly!BI232)^4)-1","v":-1.1719589640003525E-2},{"$f":"((Quarterly!BJ233/Quarterly!BJ232)^4)-1","v":0.27254829574318484},{"$f":"((Quarterly!BK233/Quarterly!BK232)^4)-1","v":-0.18379465018590513},null,{"$f":"((Quarterly!BM233/Quarterly!BM232)^4)-1","v":3.3647870171356287E-2},{"$f":"((Quarterly!BN233/Quarterly!BN232)^4)-1","v":2.7575153697535493E-2},null,null,null,null,null,{"$f":"((Quarterly!BT233/Quarterly!BT232)^4)-1","v":5.8419387116977584E-2},{"$f":"Quarterly!BU233-Quarterly!BU232","v":-5.6259999999999977E-2},{"$f":"Quarterly!BV233-Quarterly!BV232","v":-4.5159999999999201E-2},{"$f":"((Quarterly!BW233/Quarterly!BW232)^4)-1","v":-1.8405154771623522E-2},{"$f":"((Quarterly!BX233/Quarterly!BX232)^4)-1","v":0.16511188726035941},{"$f":"((Quarterly!BY233/Quarterly!BY232)^4)-1","v":7.6914331507695666E-2},{"$f":"((Quarterly!BZ233/Quarterly!BZ232)^4)-1","v":7.8514128906841396E-3},{"$f":"((Quarterly!CA233/Quarterly!CA232)^4)-1","v":2.6452096217011167E-3},{"$f":"((Quarterly!CB233/Quarterly!CB232)^4)-1","v":-0.17444919536578718},{"$f":"((Quarterly!CC233/Quarterly!CC232)^4)-1","v":-0.13720303864428629},{"$f":"((Quarterly!CD233/Quarterly!CD232)^4)-1","v":0.25496296628027215},{"$f":"((Quarterly!CE233/Quarterly!CE232)^4)-1","v":0.16010316454406337},null,{"$f":"((Quarterly!CG233/Quarterly!CG232)^4)-1","v":0.11707487457427046},{"$f":"((Quarterly!CH233/Quarterly!CH232)^4)-1","v":0.14658549114793962},null,{"$f":"((Quarterly!CJ233/Quarterly!CJ232)^4)-1","v":0.16010316454406337},{"$f":"((Quarterly!CK233/Quarterly!CK232)^4)-1","v":5.8693021063106254E-2},{"$f":"((Quarterly!CL233/Quarterly!CL232)^4)-1","v":0.10059312533645093},{"$f":"((Quarterly!CM233/Quarterly!CM232)^4)-1","v":0.14531187231403342},{"$f":"((Quarterly!CN233/Quarterly!CN232)^4)-1","v":4.2370396500647889E-2},{"$f":"((Quarterly!CO233/Quarterly!CO232)^4)-1","v":6.9775253977856888E-2},{"$f":"((Quarterly!CP233/Quarterly!CP232)^4)-1","v":7.0678078649623943E-2},{"$f":"((Quarterly!CQ233/Quarterly!CQ232)^4)-1","v":7.8358457383289615E-3},{"$f":"((Quarterly!CR233/Quarterly!CR232)^4)-1","v":3.6672355188904548E-2},{"$f":"Quarterly!CS233-Quarterly!CS232","v":0.13333333333333997},{"$f":"Quarterly!CT233-Quarterly!CT232","v":7.4666666666666544},null,null,null,null,null,{"$f":"((Quarterly!CZ233/Quarterly!CZ232)^4)-1","v":1.0367631003855182E-2},{"$f":"((Quarterly!DA233/Quarterly!DA232)^4)-1","v":1.5829176883079832E-2},null,null,null,null,null,{"$f":"((Quarterly!DG233/Quarterly!DG232)^4)-1","v":2.6105853920038946E-2},{"$f":"((Quarterly!DH233-Quarterly!DH232)*60)","v":1.9999999999998863},{"$f":"Quarterly!DI233-Quarterly!DI232","v":6.6666666666677088E-2},{"$f":"(Quarterly!DJ233-Quarterly!DJ232)*100","v":-13.333333333333286},{"$f":"(Quarterly!DK233-Quarterly!DK232)*100","v":-9.9999999999999645},{"$f":"((Quarterly!DL233/Quarterly!DL232)^4)-1","v":1.7001164908321487E-2},null,null,null,{"$f":"((Quarterly!DP233/Quarterly!DP232)^4)-1","v":2.1335479101064037E-2},null,null,null,null,{"$f":"Quarterly!DU233-Quarterly!DU232","v":-1.3333333333333339},{"$f":"((Quarterly!DV233/Quarterly!DV232)^4)-1","v":9.6071674126028128E-3},{"$f":"((Quarterly!DW233/Quarterly!DW232)^4)-1","v":9.7101269633379506E-3},{"$f":"((Quarterly!DX233/Quarterly!DX232)^4)-1","v":1.1325729697767351E-2},{"$f":"((Quarterly!DY233/Quarterly!DY232)^4)-1","v":1.5191047498588794E-2},{"$f":"((Quarterly!DZ233/Quarterly!DZ232)^4)-1","v":1.013977075685224E-2},{"$f":"((Quarterly!EA233/Quarterly!EA232)^4)-1","v":3.9555307804124418E-3},{"$f":"((Quarterly!EB233/Quarterly!EB232)^4)-1","v":2.2940936345237528E-2},{"$f":"((Quarterly!EC233/Quarterly!EC232)^4)-1","v":6.1192158082230552E-3},null,null,null,null,null,{"$f":"((Quarterly!EI233/Quarterly!EI232)^4)-1","v":7.025532106387522E-2},{"$f":"((Quarterly!EJ233/Quarterly!EJ232)^4)-1","v":5.3941212812841144E-2},{"$f":"((Quarterly!EK233/Quarterly!EK232)^4)-1","v":4.4122645833821084E-2},null,null,null,null,null,{"$f":"((Quarterly!EQ233/Quarterly!EQ232)^4)-1","v":-2.0336164888018371E-2},{"$f":"((Quarterly!ER233/Quarterly!ER232)^4)-1","v":1.638872097006927E-2},{"$f":"((Quarterly!ES233/Quarterly!ES232)^4)-1","v":1.0465846298009174E-2},null,null,null,null,null,{"$f":"(Quarterly!EY233-Quarterly!EY232)*100","v":0},{"$f":"(Quarterly!EZ233-Quarterly!EZ232)*100","v":-0.3333333333333327},{"$f":"(Quarterly!FA233-Quarterly!FA232)*100","v":-9.9999999999999645},{"$f":"(Quarterly!FB233-Quarterly!FB232)*100","v":-7.9999999999999183},{"$f":"+FB233-FA233","v":2.0000000000000462},{"$f":"(Quarterly!FD233-Quarterly!FD232)*100","v":-9.3333333333333712},{"$f":"(Quarterly!FE233-Quarterly!FE232)*100","v":-0.66666666666666641},{"$f":"(Quarterly!FF233-Quarterly!FF232)*100","v":0.66666666666666541},{"$f":"(Quarterly!FG233-Quarterly!FG232)*100","v":9.6666666666666625},{"$f":"(Quarterly!FH233-Quarterly!FH232)*100","v":4.3333333333333446},{"$f":"(Quarterly!FI233-Quarterly!FI232)*100","v":-12.666666666666648},{"$f":"+FI233-FF233","v":-13.333333333333314},null,null,null,null,null,{"$f":"((Quarterly!FP233/Quarterly!FP232)^4)-1","v":-4.8816115875655042E-3},{"$f":"((Quarterly!FQ233/Quarterly!FQ232)^4)-1","v":-4.2632236551472746E-2},{"$f":"((Quarterly!FR233/Quarterly!FR232)^4)-1","v":3.9438626771317153E-2},{"$f":"((Quarterly!FS233/Quarterly!FS232)^4)-1","v":-0.12992986840352005},{"$f":"((Quarterly!FT233/Quarterly!FT232)^4)-1","v":3.4884579971596885E-2},{"$f":"((Quarterly!FU233/Quarterly!FU232)^4)-1","v":8.0027184700092624E-2},{"$f":"((Quarterly!FV233/Quarterly!FV232)^4)-1","v":-2.1046036557324732E-2},{"$f":"((Quarterly!FW233/Quarterly!FW232)^4)-1","v":0.45694863129124008},{"$f":"((Quarterly!FX233/Quarterly!FX232)^4)-1","v":1.8427554436166727E-3},null,null,null,null,null,{"$f":"((Quarterly!GD233/Quarterly!GD232)^4)-1","v":-0.19866476781185538},{"$f":"((Quarterly!GE233/Quarterly!GE232)^4)-1","v":-0.25772859467887677},{"$f":"((Quarterly!GF233/Quarterly!GF232)^4)-1","v":-0.17066744520915567},{"$f":"((Quarterly!GG233/Quarterly!GG232)^4)-1","v":-9.7526052546202613E-2},{"$f":"((Quarterly!GH233/Quarterly!GH232)^4)-1","v":0.60077363355458457},{"$f":"((Quarterly!GI233/Quarterly!GI232)^4)-1","v":9.4021497442545954E-2},{"$f":"((Quarterly!GJ233/Quarterly!GJ232)^4)-1","v":-0.44860873904780629},{"$f":"((Quarterly!GK233/Quarterly!GK232)^4)-1","v":-0.10291173676642906},{"$f":"((Quarterly!GL233/Quarterly!GL232)^4)-1","v":2.4285296740358397E-2}]
["14'Q4",{"$f":"((Quarterly!B234/Quarterly!B233)^4)-1","v":2.605356931577818E-2},{"$f":"((Quarterly!C234/Quarterly!C233)^4)-1","v":2.0153377389950489E-2},{"$f":"((Quarterly!D234/Quarterly!D233)^4)-1","v":2.2963311773831263E-2},{"$f":"((Quarterly!E234/Quarterly!E233)^4)-1","v":5.0549608121621459E-2},{"$f":"((Quarterly!F234/Quarterly!F233)^4)-1","v":8.295052322983687E-2},{"$f":"((Quarterly!G234/Quarterly!G233)^4)-1","v":4.4951923747577949E-2},{"$f":"((Quarterly!H234/Quarterly!H233)^4)-1","v":4.7188383719356519E-2},{"$f":"((Quarterly!I234/Quarterly!I233)^4)-1","v":-2.2664292505807371E-2},{"$f":"((Quarterly!J234/Quarterly!J233)^4)-1","v":-4.1176889098942016E-2},{"$f":"((Quarterly!K234/Quarterly!K233)^4)-1","v":0.10897143807998799},{"$f":"((Quarterly!L234-Quarterly!L233))","v":-8.679000000000002},{"$f":"((Quarterly!M234/Quarterly!M233)^4)-1","v":0.10790408637112647},{"$f":"((Quarterly!N234/Quarterly!N233)^4)-1","v":4.923125900168257E-2},{"$f":"((Quarterly!O234/Quarterly!O233)^4)-1","v":0.44633085569030428},{"$f":"((Quarterly!P234/Quarterly!P233)^4)-1","v":-6.2586231386918545E-3},{"$f":"((Quarterly!Q234/Quarterly!Q233)^4)-1","v":-5.9699809253084046E-2},null,null,null,null,null,{"$f":"((Quarterly!W234/Quarterly!W233)^4)-1","v":1.5862215423712023E-2},{"$f":"((Quarterly!X234/Quarterly!X233)^4)-1","v":5.0858130165556403E-3},{"$f":"((Quarterly!Y234/Quarterly!Y233)^4)-1","v":9.6728594500387288E-2},{"$f":"Quarterly!Z234-Quarterly!Z233","v":-6.999999999999984E-2},{"$f":"((Quarterly!AA234/Quarterly!AA233)^4)-1","v":3.5470378891696797E-2},{"$f":"((Quarterly!AB234/Quarterly!AB233)^4)-1","v":0.1059403964315937},{"$f":"Quarterly!AC234-Quarterly!AC233","v":-5.8000000000000007},{"$f":"Quarterly!AD234-Quarterly!AD233","v":-19.5},{"$f":"(Quarterly!AE234-Quarterly!AE233)*100","v":-2.0000000000000018},{"$f":"(Quarterly!AF234-Quarterly!AF233)*100","v":-6.999999999999984},{"$f":"(Quarterly!AG234-Quarterly!AG233)*100","v":-2.0000000000000018},{"$f":"((Quarterly!AH234/Quarterly!AH233)^4)-1","v":0.10239017527444116},{"$f":"((Quarterly!AI234/Quarterly!AI233)^4)-1","v":8.9601352798212908E-2},{"$f":"((Quarterly!AJ234/Quarterly!AJ233)^4)-1","v":1.962329107495675E-2},{"$f":"((Quarterly!AK234/Quarterly!AK233)^4)-1","v":1.9866943051709107E-2},{"$f":"((Quarterly!AL234/Quarterly!AL233)^4)-1","v":1.996610641352925E-2},{"$f":"((Quarterly!AM234/Quarterly!AM233)^4)-1","v":2.7219360823806049E-2},{"$f":"((Quarterly!AN234/Quarterly!AN233)^4)-1","v":1.6450733474670853E-2},{"$f":"((Quarterly!AO234/Quarterly!AO233)^4)-1","v":2.1666298448769217E-2},{"$f":"(Quarterly!AP234-Quarterly!AP233)*100","v":2.3333333333333428},{"$f":"Quarterly!AQ234-Quarterly!AQ233","v":6.6666666666662877E-2},{"$f":"Quarterly!AR234-Quarterly!AR233","v":3.8333333333333357},{"$f":"Quarterly!AS234-Quarterly!AS233","v":1.8333333333333357},{"$f":"Quarterly!AT234-Quarterly!AT233","v":-1.5},{"$f":"Quarterly!AU234-Quarterly!AU233","v":-1},{"$f":"Quarterly!AV234-Quarterly!AV233","v":1.5},{"$f":"Quarterly!AW234-Quarterly!AW233","v":-0.8333333333333286},{"$f":"Quarterly!AX234-Quarterly!AX233","v":-0.16666666666665719},{"$f":"Quarterly!AY234-Quarterly!AY233","v":-13.5},{"$f":"Quarterly!AZ234-Quarterly!AZ233","v":-1.1333333333333471},{"$f":"Quarterly!BA234-Quarterly!BA233","v":3.7999999999999972},{"$f":"Quarterly!BB234-Quarterly!BB233","v":-0.26666666666667282},{"$f":"((Quarterly!BC234/Quarterly!BC233)^4)-1","v":-0.20731989081504076},{"$f":"((Quarterly!BD234/Quarterly!BD233)^4)-1","v":-2.1206729229521826E-2},{"$f":"((Quarterly!BE234/Quarterly!BE233)^4)-1","v":7.4272519301725959E-2},{"$f":"((Quarterly!BF234/Quarterly!BF233)^4)-1","v":5.1222676932191069E-2},{"$f":"((Quarterly!BG234/Quarterly!BG233)^4)-1","v":-1.8383114045631976E-2},{"$f":"((Quarterly!BH234/Quarterly!BH233)^4)-1","v":5.8452052568689794E-2},{"$f":"((Quarterly!BI234/Quarterly!BI233)^4)-1","v":7.0883792055197903E-2},{"$f":"((Quarterly!BJ234/Quarterly!BJ233)^4)-1","v":-1.6292837609240496E-2},{"$f":"((Quarterly!BK234/Quarterly!BK233)^4)-1","v":-0.13805014925238501},null,{"$f":"((Quarterly!BM234/Quarterly!BM233)^4)-1","v":2.4255379374268138E-2},{"$f":"((Quarterly!BN234/Quarterly!BN233)^4)-1","v":1.1737157303801871E-2},null,null,null,null,null,{"$f":"((Quarterly!BT234/Quarterly!BT233)^4)-1","v":3.8988957507327227E-2},{"$f":"Quarterly!BU234-Quarterly!BU233","v":-6.0079999999999245E-2},{"$f":"Quarterly!BV234-Quarterly!BV233","v":-5.0159999999999982E-2},{"$f":"((Quarterly!BW234/Quarterly!BW233)^4)-1","v":-1.6298152670403354E-2},{"$f":"((Quarterly!BX234/Quarterly!BX233)^4)-1","v":0.13832830698857856},{"$f":"((Quarterly!BY234/Quarterly!BY233)^4)-1","v":0.14108078214282238},{"$f":"((Quarterly!BZ234/Quarterly!BZ233)^4)-1","v":6.1041689210398875E-2},{"$f":"((Quarterly!CA234/Quarterly!CA233)^4)-1","v":-1.7568711308401985E-2},{"$f":"((Quarterly!CB234/Quarterly!CB233)^4)-1","v":-0.40997427083590954},{"$f":"((Quarterly!CC234/Quarterly!CC233)^4)-1","v":-0.35305154582221321},{"$f":"((Quarterly!CD234/Quarterly!CD233)^4)-1","v":0.1010184290117786},{"$f":"((Quarterly!CE234/Quarterly!CE233)^4)-1","v":0.32128251244806916},null,{"$f":"((Quarterly!CG234/Quarterly!CG233)^4)-1","v":-0.37839150365095331},{"$f":"((Quarterly!CH234/Quarterly!CH233)^4)-1","v":2.6393915050295647E-3},null,{"$f":"((Quarterly!CJ234/Quarterly!CJ233)^4)-1","v":0.32128251244806916},{"$f":"((Quarterly!CK234/Quarterly!CK233)^4)-1","v":6.1380599387395041E-2},{"$f":"((Quarterly!CL234/Quarterly!CL233)^4)-1","v":0.15235741170388972},{"$f":"((Quarterly!CM234/Quarterly!CM233)^4)-1","v":0.34268636588819779},{"$f":"((Quarterly!CN234/Quarterly!CN233)^4)-1","v":5.9401927346221628E-2},{"$f":"((Quarterly!CO234/Quarterly!CO233)^4)-1","v":5.1606672563455636E-2},{"$f":"((Quarterly!CP234/Quarterly!CP233)^4)-1","v":5.9503443658367683E-2},{"$f":"((Quarterly!CQ234/Quarterly!CQ233)^4)-1","v":8.2241045711561878E-3},{"$f":"((Quarterly!CR234/Quarterly!CR233)^4)-1","v":2.5480643136275294E-2},{"$f":"Quarterly!CS234-Quarterly!CS233","v":6.7999999999999829},{"$f":"Quarterly!CT234-Quarterly!CT233","v":1.8333333333333428},null,null,null,null,null,{"$f":"((Quarterly!CZ234/Quarterly!CZ233)^4)-1","v":-7.0135463454461533E-3},{"$f":"((Quarterly!DA234/Quarterly!DA233)^4)-1","v":1.5563111271121643E-2},null,null,null,null,null,{"$f":"((Quarterly!DG234/Quarterly!DG233)^4)-1","v":2.5936588449179565E-2},{"$f":"((Quarterly!DH234-Quarterly!DH233)*60)","v":1.9999999999998863},{"$f":"Quarterly!DI234-Quarterly!DI233","v":-3.3333333333331439E-2},{"$f":"(Quarterly!DJ234-Quarterly!DJ233)*100","v":-63.333333333333464},{"$f":"(Quarterly!DK234-Quarterly!DK233)*100","v":-40.000000000000036},{"$f":"((Quarterly!DL234/Quarterly!DL233)^4)-1","v":2.2138468448257065E-2},null,null,null,{"$f":"((Quarterly!DP234/Quarterly!DP233)^4)-1","v":2.2681456270206901E-2},null,null,null,null,{"$f":"Quarterly!DU234-Quarterly!DU233","v":-0.19999999999999929},{"$f":"((Quarterly!DV234/Quarterly!DV233)^4)-1","v":-3.2585753614205792E-2},{"$f":"((Quarterly!DW234/Quarterly!DW233)^4)-1","v":-1.7305572425568405E-2},{"$f":"((Quarterly!DX234/Quarterly!DX233)^4)-1","v":-3.2482908115865405E-2},{"$f":"((Quarterly!DY234/Quarterly!DY233)^4)-1","v":-8.1761152249754443E-2},{"$f":"((Quarterly!DZ234/Quarterly!DZ233)^4)-1","v":-1.6279189897586588E-2},{"$f":"((Quarterly!EA234/Quarterly!EA233)^4)-1","v":1.1658254730362749E-2},{"$f":"((Quarterly!EB234/Quarterly!EB233)^4)-1","v":-7.1501845847520062E-2},{"$f":"((Quarterly!EC234/Quarterly!EC233)^4)-1","v":1.6388338364880628E-2},null,null,null,null,null,{"$f":"((Quarterly!EI234/Quarterly!EI233)^4)-1","v":1.7664184367814473E-2},{"$f":"((Quarterly!EJ234/Quarterly!EJ233)^4)-1","v":2.2349367235937834E-2},{"$f":"((Quarterly!EK234/Quarterly!EK233)^4)-1","v":2.8840387540558954E-2},null,null,null,null,null,{"$f":"((Quarterly!EQ234/Quarterly!EQ233)^4)-1","v":-0.12324183364229502},{"$f":"((Quarterly!ER234/Quarterly!ER233)^4)-1","v":1.2756748832335685E-2},{"$f":"((Quarterly!ES234/Quarterly!ES233)^4)-1","v":5.6106464946226176E-3},null,null,null,null,null,{"$f":"(Quarterly!EY234-Quarterly!EY233)*100","v":0},{"$f":"(Quarterly!EZ234-Quarterly!EZ233)*100","v":0.99999999999999811},{"$f":"(Quarterly!FA234-Quarterly!FA233)*100","v":-24.000000000000064},{"$f":"(Quarterly!FB234-Quarterly!FB233)*100","v":-8.8817841970012523E-14},{"$f":"+FB234-FA234","v":23.999999999999975},{"$f":"(Quarterly!FD234-Quarterly!FD233)*100","v":-17.000000000000036},{"$f":"(Quarterly!FE234-Quarterly!FE233)*100","v":-0.33333333333333337},{"$f":"(Quarterly!FF234-Quarterly!FF233)*100","v":3.6666666666666665},{"$f":"(Quarterly!FG234-Quarterly!FG233)*100","v":2.3333333333333428},{"$f":"(Quarterly!FH234-Quarterly!FH233)*100","v":-9.6666666666666679},{"$f":"(Quarterly!FI234-Quarterly!FI233)*100","v":-21.666666666666679},{"$f":"+FI234-FF234","v":-25.333333333333346},null,null,null,null,null,{"$f":"((Quarterly!FP234/Quarterly!FP233)^4)-1","v":0.18174016199208043},{"$f":"((Quarterly!FQ234/Quarterly!FQ233)^4)-1","v":-1.1222985682946884E-2},{"$f":"((Quarterly!FR234/Quarterly!FR233)^4)-1","v":0.24807688901940561},{"$f":"((Quarterly!FS234/Quarterly!FS233)^4)-1","v":-0.2086444119923766},{"$f":"((Quarterly!FT234/Quarterly!FT233)^4)-1","v":0.19744733701661743},{"$f":"((Quarterly!FU234/Quarterly!FU233)^4)-1","v":0.26583670038661222},{"$f":"((Quarterly!FV234/Quarterly!FV233)^4)-1","v":-0.11074035234413238},{"$f":"((Quarterly!FW234/Quarterly!FW233)^4)-1","v":8.8813524921373954E-2},{"$f":"((Quarterly!FX234/Quarterly!FX233)^4)-1","v":4.2144244146609111E-2},null,null,null,null,null,{"$f":"((Quarterly!GD234/Quarterly!GD233)^4)-1","v":-0.68660312942475699},{"$f":"((Quarterly!GE234/Quarterly!GE233)^4)-1","v":-0.6829994724286208},{"$f":"((Quarterly!GF234/Quarterly!GF233)^4)-1","v":-0.53129197748675105},{"$f":"((Quarterly!GG234/Quarterly!GG233)^4)-1","v":-0.24325341628707364},{"$f":"((Quarterly!GH234/Quarterly!GH233)^4)-1","v":-0.3301221011599007},{"$f":"((Quarterly!GI234/Quarterly!GI233)^4)-1","v":-0.48059146844904232},{"$f":"((Quarterly!GJ234/Quarterly!GJ233)^4)-1","v":-9.756397120017446E-2},{"$f":"((Quarterly!GK234/Quarterly!GK233)^4)-1","v":-2.0329203951343855E-2},{"$f":"((Quarterly!GL234/Quarterly!GL233)^4)-1","v":-5.6511671036749367E-2}]
["15'Q1",{"$f":"((Quarterly!B235/Quarterly!B234)^4)-1","v":3.1668917148671261E-2},{"$f":"((Quarterly!C235/Quarterly!C234)^4)-1","v":3.2382572671806331E-2},{"$f":"((Quarterly!D235/Quarterly!D234)^4)-1","v":1.7647918601508827E-2},{"$f":"((Quarterly!E235/Quarterly!E234)^4)-1","v":3.6746827096467261E-2},{"$f":"((Quarterly!F235/Quarterly!F234)^4)-1","v":7.7561194352136154E-2},{"$f":"((Quarterly!G235/Quarterly!G234)^4)-1","v":2.438503208457421E-2},{"$f":"((Quarterly!H235/Quarterly!H234)^4)-1","v":3.4213178898363727E-2},{"$f":"((Quarterly!I235/Quarterly!I234)^4)-1","v":2.2451008023999908E-2},{"$f":"((Quarterly!J235/Quarterly!J234)^4)-1","v":3.4834756525342847E-2},{"$f":"((Quarterly!K235/Quarterly!K234)^4)-1","v":0.11397579180062301},{"$f":"((Quarterly!L235-Quarterly!L234))","v":55.311000000000007},{"$f":"((Quarterly!M235/Quarterly!M234)^4)-1","v":6.7278684070976036E-2},{"$f":"((Quarterly!N235/Quarterly!N234)^4)-1","v":-4.4644516298072645E-2},{"$f":"((Quarterly!O235/Quarterly!O234)^4)-1","v":0.73142733992064857},{"$f":"((Quarterly!P235/Quarterly!P234)^4)-1","v":1.5111754082281381E-2},{"$f":"((Quarterly!Q235/Quarterly!Q234)^4)-1","v":-0.35024237794498458},null,null,null,null,null,{"$f":"((Quarterly!W235/Quarterly!W234)^4)-1","v":-2.0778512513277003E-2},{"$f":"((Quarterly!X235/Quarterly!X234)^4)-1","v":-5.2990124488456414E-2},{"$f":"((Quarterly!Y235/Quarterly!Y234)^4)-1","v":0.13811390768927612},{"$f":"Quarterly!Z235-Quarterly!Z234","v":-9.000000000000008E-2},{"$f":"((Quarterly!AA235/Quarterly!AA234)^4)-1","v":-0.24541746647478824},{"$f":"((Quarterly!AB235/Quarterly!AB234)^4)-1","v":-0.18674489668509897},{"$f":"Quarterly!AC235-Quarterly!AC234","v":-9.9999999999999867E-2},{"$f":"Quarterly!AD235-Quarterly!AD234","v":0.20000000000000018},{"$f":"(Quarterly!AE235-Quarterly!AE234)*100","v":-29.999999999999982},{"$f":"(Quarterly!AF235-Quarterly!AF234)*100","v":-9.0000000000000071},{"$f":"(Quarterly!AG235-Quarterly!AG234)*100","v":2.0000000000000018},{"$f":"((Quarterly!AH235/Quarterly!AH234)^4)-1","v":0.13998856729890741},{"$f":"((Quarterly!AI235/Quarterly!AI234)^4)-1","v":0.18509142899482889},{"$f":"((Quarterly!AJ235/Quarterly!AJ234)^4)-1","v":2.2809673874473857E-2},{"$f":"((Quarterly!AK235/Quarterly!AK234)^4)-1","v":2.9762335748915403E-2},{"$f":"((Quarterly!AL235/Quarterly!AL234)^4)-1","v":2.9910694418582295E-2},{"$f":"((Quarterly!AM235/Quarterly!AM234)^4)-1","v":-3.297986269376163E-2},{"$f":"((Quarterly!AN235/Quarterly!AN234)^4)-1","v":-2.2566364257016414E-2},{"$f":"((Quarterly!AO235/Quarterly!AO234)^4)-1","v":1.2041265387691347E-2},{"$f":"(Quarterly!AP235-Quarterly!AP234)*100","v":4.6666666666666412},{"$f":"Quarterly!AQ235-Quarterly!AQ234","v":-3.3999999999999986},{"$f":"Quarterly!AR235-Quarterly!AR234","v":-4.5},{"$f":"Quarterly!AS235-Quarterly!AS234","v":-2.6666666666666643},{"$f":"Quarterly!AT235-Quarterly!AT234","v":-3.6333333333333329},{"$f":"Quarterly!AU235-Quarterly!AU234","v":-4.3333333333333357},{"$f":"Quarterly!AV235-Quarterly!AV234","v":-1.1666666666666643},{"$f":"Quarterly!AW235-Quarterly!AW234","v":1.8333333333333286},{"$f":"Quarterly!AX235-Quarterly!AX234","v":-10.800000000000011},{"$f":"Quarterly!AY235-Quarterly!AY234","v":-9.1666666666666643},{"$f":"Quarterly!AZ235-Quarterly!AZ234","v":-7.6333333333333258},{"$f":"Quarterly!BA235-Quarterly!BA234","v":-4.6333333333333329},{"$f":"Quarterly!BB235-Quarterly!BB234","v":-0.86666666666666714},{"$f":"((Quarterly!BC235/Quarterly!BC234)^4)-1","v":1.0717324766689851E-2},{"$f":"((Quarterly!BD235/Quarterly!BD234)^4)-1","v":-1.8536804032272425E-2},{"$f":"((Quarterly!BE235/Quarterly!BE234)^4)-1","v":1.874266606553987E-2},{"$f":"((Quarterly!BF235/Quarterly!BF234)^4)-1","v":3.3350721190775312E-2},{"$f":"((Quarterly!BG235/Quarterly!BG234)^4)-1","v":2.7091793352040705E-2},{"$f":"((Quarterly!BH235/Quarterly!BH234)^4)-1","v":6.0314813239564335E-2},{"$f":"((Quarterly!BI235/Quarterly!BI234)^4)-1","v":6.0804734613197908E-3},{"$f":"((Quarterly!BJ235/Quarterly!BJ234)^4)-1","v":-0.36993014931679069},{"$f":"((Quarterly!BK235/Quarterly!BK234)^4)-1","v":-0.18084939255485533},null,{"$f":"((Quarterly!BM235/Quarterly!BM234)^4)-1","v":-2.8492996955189032E-2},{"$f":"((Quarterly!BN235/Quarterly!BN234)^4)-1","v":-3.8058550245508305E-2},null,null,null,null,null,{"$f":"((Quarterly!BT235/Quarterly!BT234)^4)-1","v":2.4981040754625594E-2},{"$f":"Quarterly!BU235-Quarterly!BU234","v":4.313999999999929E-2},{"$f":"Quarterly!BV235-Quarterly!BV234","v":9.8459999999999326E-2},{"$f":"((Quarterly!BW235/Quarterly!BW234)^4)-1","v":-7.0689693038006318E-4},{"$f":"((Quarterly!BX235/Quarterly!BX234)^4)-1","v":-0.23677733308487048},{"$f":"((Quarterly!BY235/Quarterly!BY234)^4)-1","v":1.1068303563928961E-2},{"$f":"((Quarterly!BZ235/Quarterly!BZ234)^4)-1","v":7.8988779007340026E-2},{"$f":"((Quarterly!CA235/Quarterly!CA234)^4)-1","v":6.5366324334726889E-2},{"$f":"((Quarterly!CB235/Quarterly!CB234)^4)-1","v":-0.61065129174593458},{"$f":"((Quarterly!CC235/Quarterly!CC234)^4)-1","v":-0.46248524544393033},{"$f":"((Quarterly!CD235/Quarterly!CD234)^4)-1","v":-9.1749989237189911E-2},{"$f":"((Quarterly!CE235/Quarterly!CE234)^4)-1","v":0.4633460379943819},null,{"$f":"((Quarterly!CG235/Quarterly!CG234)^4)-1","v":-0.24011240943951939},{"$f":"((Quarterly!CH235/Quarterly!CH234)^4)-1","v":-7.8817349952062798E-3},null,{"$f":"((Quarterly!CJ235/Quarterly!CJ234)^4)-1","v":0.4633460379943819},{"$f":"((Quarterly!CK235/Quarterly!CK234)^4)-1","v":4.0815952211447737E-2},{"$f":"((Quarterly!CL235/Quarterly!CL234)^4)-1","v":0.13327846902134133},{"$f":"((Quarterly!CM235/Quarterly!CM234)^4)-1","v":-0.30003235875086331},{"$f":"((Quarterly!CN235/Quarterly!CN234)^4)-1","v":4.2763097898750324E-2},{"$f":"((Quarterly!CO235/Quarterly!CO234)^4)-1","v":8.8510842169286397E-2},{"$f":"((Quarterly!CP235/Quarterly!CP234)^4)-1","v":7.0982846706271419E-2},{"$f":"((Quarterly!CQ235/Quarterly!CQ234)^4)-1","v":6.584388082615078E-3},{"$f":"((Quarterly!CR235/Quarterly!CR234)^4)-1","v":2.5882853972889253E-2},{"$f":"Quarterly!CS235-Quarterly!CS234","v":5.7333333333333485},{"$f":"Quarterly!CT235-Quarterly!CT234","v":8.5999999999999943},null,null,null,null,null,{"$f":"((Quarterly!CZ235/Quarterly!CZ234)^4)-1","v":-2.5207089610711497E-2},{"$f":"((Quarterly!DA235/Quarterly!DA234)^4)-1","v":1.6004411955150344E-2},null,null,null,null,null,{"$f":"((Quarterly!DG235/Quarterly!DG234)^4)-1","v":1.343697770224872E-2},{"$f":"((Quarterly!DH235-Quarterly!DH234)*60)","v":-3.9999999999997726},{"$f":"Quarterly!DI235-Quarterly!DI234","v":-6.6666666666662877E-2},{"$f":"(Quarterly!DJ235-Quarterly!DJ234)*100","v":-29.999999999999716},{"$f":"(Quarterly!DK235-Quarterly!DK234)*100","v":-16.666666666666607},{"$f":"((Quarterly!DL235/Quarterly!DL234)^4)-1","v":1.1565934539419009E-2},null,null,null,{"$f":"((Quarterly!DP235/Quarterly!DP234)^4)-1","v":2.0001059048174286E-2},null,null,null,null,{"$f":"Quarterly!DU235-Quarterly!DU234","v":-0.46666666666666679},{"$f":"((Quarterly!DV235/Quarterly!DV234)^4)-1","v":2.765602428686087E-2},{"$f":"((Quarterly!DW235/Quarterly!DW234)^4)-1","v":-7.4328932148583382E-2},{"$f":"((Quarterly!DX235/Quarterly!DX234)^4)-1","v":-3.8204274602631316E-2},{"$f":"((Quarterly!DY235/Quarterly!DY234)^4)-1","v":-5.1958336814078576E-2},{"$f":"((Quarterly!DZ235/Quarterly!DZ234)^4)-1","v":-3.3840982666148323E-2},{"$f":"((Quarterly!EA235/Quarterly!EA234)^4)-1","v":-6.3016316838937492E-2},{"$f":"((Quarterly!EB235/Quarterly!EB234)^4)-1","v":2.9440434983526886E-2},{"$f":"((Quarterly!EC235/Quarterly!EC234)^4)-1","v":-0.14875534434041415},null,null,null,null,null,{"$f":"((Quarterly!EI235/Quarterly!EI234)^4)-1","v":4.565407951368905E-2},{"$f":"((Quarterly!EJ235/Quarterly!EJ234)^4)-1","v":3.5374235624865857E-2},{"$f":"((Quarterly!EK235/Quarterly!EK234)^4)-1","v":3.2890164323320814E-2},null,null,null,null,null,{"$f":"((Quarterly!EQ235/Quarterly!EQ234)^4)-1","v":-0.16613130244419017},{"$f":"((Quarterly!ER235/Quarterly!ER234)^4)-1","v":3.3458009722769688E-2},{"$f":"((Quarterly!ES235/Quarterly!ES234)^4)-1","v":2.6619499494080712E-2},null,null,null,null,null,{"$f":"(Quarterly!EY235-Quarterly!EY234)*100","v":0},{"$f":"(Quarterly!EZ235-Quarterly!EZ234)*100","v":1.0000000000000009},{"$f":"(Quarterly!FA235-Quarterly!FA234)*100","v":-30.666666666666622},{"$f":"(Quarterly!FB235-Quarterly!FB234)*100","v":-24.000000000000021},{"$f":"+FB235-FA235","v":6.6666666666666003},{"$f":"(Quarterly!FD235-Quarterly!FD234)*100","v":-23.666666666666636},{"$f":"(Quarterly!FE235-Quarterly!FE234)*100","v":0.33333333333333337},{"$f":"(Quarterly!FF235-Quarterly!FF234)*100","v":7.6666666666666687},{"$f":"(Quarterly!FG235-Quarterly!FG234)*100","v":6.3333333333333357},{"$f":"(Quarterly!FH235-Quarterly!FH234)*100","v":-15.000000000000014},{"$f":"(Quarterly!FI235-Quarterly!FI234)*100","v":-31.3333333333333},{"$f":"+FI235-FF235","v":-38.999999999999972},null,null,null,null,null,{"$f":"((Quarterly!FP235/Quarterly!FP234)^4)-1","v":0.42742893315785424},{"$f":"((Quarterly!FQ235/Quarterly!FQ234)^4)-1","v":5.9849260369535084E-2},{"$f":"((Quarterly!FR235/Quarterly!FR234)^4)-1","v":0.34934929795683067},{"$f":"((Quarterly!FS235/Quarterly!FS234)^4)-1","v":-0.33977449887423272},{"$f":"((Quarterly!FT235/Quarterly!FT234)^4)-1","v":0.2584137575508354},{"$f":"((Quarterly!FU235/Quarterly!FU234)^4)-1","v":0.37722818966220051},{"$f":"((Quarterly!FV235/Quarterly!FV234)^4)-1","v":-0.44130146780266299},{"$f":"((Quarterly!FW235/Quarterly!FW234)^4)-1","v":-0.43244502795811712},{"$f":"((Quarterly!FX235/Quarterly!FX234)^4)-1","v":-0.25350535636242522},null,null,null,null,null,{"$f":"((Quarterly!GD235/Quarterly!GD234)^4)-1","v":-0.80622207515401945},{"$f":"((Quarterly!GE235/Quarterly!GE234)^4)-1","v":-0.75200500689186556},{"$f":"((Quarterly!GF235/Quarterly!GF234)^4)-1","v":-0.60230157335421253},{"$f":"((Quarterly!GG235/Quarterly!GG234)^4)-1","v":-0.55886261294746897},{"$f":"((Quarterly!GH235/Quarterly!GH234)^4)-1","v":-0.16413996068434744},{"$f":"((Quarterly!GI235/Quarterly!GI234)^4)-1","v":-0.1036033277391466},{"$f":"((Quarterly!GJ235/Quarterly!GJ234)^4)-1","v":-0.71523470270803791},{"$f":"((Quarterly!GK235/Quarterly!GK234)^4)-1","v":0.1688291883655062},{"$f":"((Quarterly!GL235/Quarterly!GL234)^4)-1","v":-6.9878687181515797E-2}]
["15'Q2",{"$f":"((Quarterly!B236/Quarterly!B235)^4)-1","v":4.9801854716576388E-2},{"$f":"((Quarterly!C236/Quarterly!C235)^4)-1","v":2.741358753307277E-2},{"$f":"((Quarterly!D236/Quarterly!D235)^4)-1","v":3.4086938167008585E-2},{"$f":"((Quarterly!E236/Quarterly!E235)^4)-1","v":3.0000431736260547E-2},{"$f":"((Quarterly!F236/Quarterly!F235)^4)-1","v":8.6146098656715298E-2},{"$f":"((Quarterly!G236/Quarterly!G235)^4)-1","v":2.49666508657167E-2},{"$f":"((Quarterly!H236/Quarterly!H235)^4)-1","v":2.2663769313094217E-2},{"$f":"((Quarterly!I236/Quarterly!I235)^4)-1","v":2.9214385458122827E-2},{"$f":"((Quarterly!J236/Quarterly!J235)^4)-1","v":2.4647028430916817E-2},{"$f":"((Quarterly!K236/Quarterly!K235)^4)-1","v":0.11707489852594355},{"$f":"((Quarterly!L236-Quarterly!L235))","v":-26.657000000000011},{"$f":"((Quarterly!M236/Quarterly!M235)^4)-1","v":3.2803180326026027E-2},{"$f":"((Quarterly!N236/Quarterly!N235)^4)-1","v":3.7002254708269344E-2},{"$f":"((Quarterly!O236/Quarterly!O235)^4)-1","v":1.5898766588223756E-2},{"$f":"((Quarterly!P236/Quarterly!P235)^4)-1","v":3.4271221809789143E-2},{"$f":"((Quarterly!Q236/Quarterly!Q235)^4)-1","v":0.29430054558767749},null,null,null,null,null,{"$f":"((Quarterly!W236/Quarterly!W235)^4)-1","v":-5.252779192220447E-3},{"$f":"((Quarterly!X236/Quarterly!X235)^4)-1","v":-5.2056704271876808E-2},{"$f":"((Quarterly!Y236/Quarterly!Y235)^4)-1","v":0.12651403055579391},{"$f":"Quarterly!Z236-Quarterly!Z235","v":-0.67999999999999994},{"$f":"((Quarterly!AA236/Quarterly!AA235)^4)-1","v":0.16349077636867637},{"$f":"((Quarterly!AB236/Quarterly!AB235)^4)-1","v":1.1717359285186246E-2},{"$f":"Quarterly!AC236-Quarterly!AC235","v":6},{"$f":"Quarterly!AD236-Quarterly!AD235","v":-1.6000000000000005},{"$f":"(Quarterly!AE236-Quarterly!AE235)*100","v":-18.999999999999993},{"$f":"(Quarterly!AF236-Quarterly!AF235)*100","v":-68},{"$f":"(Quarterly!AG236-Quarterly!AG235)*100","v":-4.9999999999999822},{"$f":"((Quarterly!AH236/Quarterly!AH235)^4)-1","v":0.15937894015686283},{"$f":"((Quarterly!AI236/Quarterly!AI235)^4)-1","v":8.6620170281896502E-2},{"$f":"((Quarterly!AJ236/Quarterly!AJ235)^4)-1","v":-9.6037720002777327E-3},{"$f":"((Quarterly!AK236/Quarterly!AK235)^4)-1","v":0},{"$f":"((Quarterly!AL236/Quarterly!AL235)^4)-1","v":6.5412701099529791E-3},{"$f":"((Quarterly!AM236/Quarterly!AM235)^4)-1","v":-3.9659165711365185E-2},{"$f":"((Quarterly!AN236/Quarterly!AN235)^4)-1","v":-3.368088948248471E-3},{"$f":"((Quarterly!AO236/Quarterly!AO235)^4)-1","v":3.5426147179467016E-2},{"$f":"(Quarterly!AP236-Quarterly!AP235)*100","v":0},{"$f":"Quarterly!AQ236-Quarterly!AQ235","v":-0.56666666666666288},{"$f":"Quarterly!AR236-Quarterly!AR235","v":1},{"$f":"Quarterly!AS236-Quarterly!AS235","v":1.1666666666666643},{"$f":"Quarterly!AT236-Quarterly!AT235","v":0},{"$f":"Quarterly!AU236-Quarterly!AU235","v":1.8333333333333357},{"$f":"Quarterly!AV236-Quarterly!AV235","v":0.1666666666666643},{"$f":"Quarterly!AW236-Quarterly!AW235","v":-0.3333333333333286},{"$f":"Quarterly!AX236-Quarterly!AX235","v":2.7000000000000028},{"$f":"Quarterly!AY236-Quarterly!AY235","v":10.166666666666664},{"$f":"Quarterly!AZ236-Quarterly!AZ235","v":0.1666666666666714},{"$f":"Quarterly!BA236-Quarterly!BA235","v":-2.6999999999999886},{"$f":"Quarterly!BB236-Quarterly!BB235","v":0.76666666666666572},{"$f":"((Quarterly!BC236/Quarterly!BC235)^4)-1","v":-7.7467515849537705E-2},{"$f":"((Quarterly!BD236/Quarterly!BD235)^4)-1","v":-3.6782501153760361E-3},{"$f":"((Quarterly!BE236/Quarterly!BE235)^4)-1","v":3.8507310785089954E-2},{"$f":"((Quarterly!BF236/Quarterly!BF235)^4)-1","v":3.553306308701587E-2},{"$f":"((Quarterly!BG236/Quarterly!BG235)^4)-1","v":1.2536494603357484E-2},{"$f":"((Quarterly!BH236/Quarterly!BH235)^4)-1","v":1.196742238106574E-2},{"$f":"((Quarterly!BI236/Quarterly!BI235)^4)-1","v":2.2766246824081016E-2},{"$f":"((Quarterly!BJ236/Quarterly!BJ235)^4)-1","v":0.16328541052374401},{"$f":"((Quarterly!BK236/Quarterly!BK235)^4)-1","v":-0.85821040869817633},null,{"$f":"((Quarterly!BM236/Quarterly!BM235)^4)-1","v":6.9890905546211801E-2},{"$f":"((Quarterly!BN236/Quarterly!BN235)^4)-1","v":6.6958788236086031E-2},null,null,null,null,null,{"$f":"((Quarterly!BT236/Quarterly!BT235)^4)-1","v":6.3007254311290284E-2},{"$f":"Quarterly!BU236-Quarterly!BU235","v":-4.6720000000000539E-2},{"$f":"Quarterly!BV236-Quarterly!BV235","v":-3.344000000000058E-2},{"$f":"((Quarterly!BW236/Quarterly!BW235)^4)-1","v":-2.2172819930037169E-2},{"$f":"((Quarterly!BX236/Quarterly!BX235)^4)-1","v":0.87704701160176723},{"$f":"((Quarterly!BY236/Quarterly!BY235)^4)-1","v":0.80492681750052886},{"$f":"((Quarterly!BZ236/Quarterly!BZ235)^4)-1","v":4.4456072605297825E-2},{"$f":"((Quarterly!CA236/Quarterly!CA235)^4)-1","v":0.11065127855185586},{"$f":"((Quarterly!CB236/Quarterly!CB235)^4)-1","v":-1.2489641288987996E-2},{"$f":"((Quarterly!CC236/Quarterly!CC235)^4)-1","v":-4.6571368579496508E-2},{"$f":"((Quarterly!CD236/Quarterly!CD235)^4)-1","v":0.10801455270967897},{"$f":"((Quarterly!CE236/Quarterly!CE235)^4)-1","v":-0.17517647577692363},null,{"$f":"((Quarterly!CG236/Quarterly!CG235)^4)-1","v":0.87288813653468922},{"$f":"((Quarterly!CH236/Quarterly!CH235)^4)-1","v":0.19500625266281668},null,{"$f":"((Quarterly!CJ236/Quarterly!CJ235)^4)-1","v":-0.17517647577692363},{"$f":"((Quarterly!CK236/Quarterly!CK235)^4)-1","v":5.7428391029310299E-2},{"$f":"((Quarterly!CL236/Quarterly!CL235)^4)-1","v":0.18276722199083717},{"$f":"((Quarterly!CM236/Quarterly!CM235)^4)-1","v":0.53211589604976228},{"$f":"((Quarterly!CN236/Quarterly!CN235)^4)-1","v":3.8446394574760845E-2},{"$f":"((Quarterly!CO236/Quarterly!CO235)^4)-1","v":7.9260865437257966E-2},{"$f":"((Quarterly!CP236/Quarterly!CP235)^4)-1","v":7.7078893745488486E-2},{"$f":"((Quarterly!CQ236/Quarterly!CQ235)^4)-1","v":6.3225536248394665E-3},{"$f":"((Quarterly!CR236/Quarterly!CR235)^4)-1","v":6.4182814370845609E-2},{"$f":"Quarterly!CS236-Quarterly!CS235","v":-1.2666666666666515},{"$f":"Quarterly!CT236-Quarterly!CT235","v":-5.0999999999999943},null,null,null,null,null,{"$f":"((Quarterly!CZ236/Quarterly!CZ235)^4)-1","v":2.3534756155487502E-2},{"$f":"((Quarterly!DA236/Quarterly!DA235)^4)-1","v":2.3056098522672208E-2},null,null,null,null,null,{"$f":"((Quarterly!DG236/Quarterly!DG235)^4)-1","v":1.0947138446910643E-2},{"$f":"((Quarterly!DH236-Quarterly!DH235)*60)","v":-4.000000000000199},{"$f":"Quarterly!DI236-Quarterly!DI235","v":0},{"$f":"(Quarterly!DJ236-Quarterly!DJ235)*100","v":-40.000000000000213},{"$f":"(Quarterly!DK236-Quarterly!DK235)*100","v":-13.333333333333464},{"$f":"((Quarterly!DL236/Quarterly!DL235)^4)-1","v":7.8226485359005338E-3},null,null,null,{"$f":"((Quarterly!DP236/Quarterly!DP235)^4)-1","v":1.9939994209160927E-2},null,null,null,null,{"$f":"Quarterly!DU236-Quarterly!DU235","v":-1.0999999999999996},{"$f":"((Quarterly!DV236/Quarterly!DV235)^4)-1","v":1.5013987186625277E-2},{"$f":"((Quarterly!DW236/Quarterly!DW235)^4)-1","v":9.8857225715778929E-2},{"$f":"((Quarterly!DX236/Quarterly!DX235)^4)-1","v":5.3127168334034192E-2},{"$f":"((Quarterly!DY236/Quarterly!DY235)^4)-1","v":0.11369173063363691},{"$f":"((Quarterly!DZ236/Quarterly!DZ235)^4)-1","v":3.4658690100151768E-2},{"$f":"((Quarterly!EA236/Quarterly!EA235)^4)-1","v":1.017530972783276E-2},{"$f":"((Quarterly!EB236/Quarterly!EB235)^4)-1","v":8.6106845903685336E-2},{"$f":"((Quarterly!EC236/Quarterly!EC235)^4)-1","v":0.2065453205867358},null,null,null,null,null,{"$f":"((Quarterly!EI236/Quarterly!EI235)^4)-1","v":4.4596329145010438E-2},{"$f":"((Quarterly!EJ236/Quarterly!EJ235)^4)-1","v":3.9684449929932031E-2},{"$f":"((Quarterly!EK236/Quarterly!EK235)^4)-1","v":3.167737374285573E-2},null,null,null,null,null,{"$f":"((Quarterly!EQ236/Quarterly!EQ235)^4)-1","v":3.1696062650357959E-2},{"$f":"((Quarterly!ER236/Quarterly!ER235)^4)-1","v":1.9669239145310602E-2},{"$f":"((Quarterly!ES236/Quarterly!ES235)^4)-1","v":1.1955630956970609E-2},null,null,null,null,null,{"$f":"(Quarterly!EY236-Quarterly!EY235)*100","v":0},{"$f":"(Quarterly!EZ236-Quarterly!EZ235)*100","v":1.3333333333333335},{"$f":"(Quarterly!FA236-Quarterly!FA235)*100","v":32.666666666666664},{"$f":"(Quarterly!FB236-Quarterly!FB235)*100","v":33.3333333333333},{"$f":"+FB236-FA236","v":0.66666666666663588},{"$f":"(Quarterly!FD236-Quarterly!FD235)*100","v":10.000000000000009},{"$f":"(Quarterly!FE236-Quarterly!FE235)*100","v":-0.66666666666666674},{"$f":"(Quarterly!FF236-Quarterly!FF235)*100","v":2.6666666666666643},{"$f":"(Quarterly!FG236-Quarterly!FG235)*100","v":0.99999999999998979},{"$f":"(Quarterly!FH236-Quarterly!FH235)*100","v":7.0000000000000284},{"$f":"(Quarterly!FI236-Quarterly!FI235)*100","v":19.999999999999972},{"$f":"+FI236-FF236","v":17.333333333333307},null,null,null,null,null,{"$f":"((Quarterly!FP236/Quarterly!FP235)^4)-1","v":-3.8216328856682358E-2},{"$f":"((Quarterly!FQ236/Quarterly!FQ235)^4)-1","v":-2.0957341177473277E-2},{"$f":"((Quarterly!FR236/Quarterly!FR235)^4)-1","v":0.10190365224175557},{"$f":"((Quarterly!FS236/Quarterly!FS235)^4)-1","v":-6.5686221659072896E-2},{"$f":"((Quarterly!FT236/Quarterly!FT235)^4)-1","v":1.4323870124518079E-2},{"$f":"((Quarterly!FU236/Quarterly!FU235)^4)-1","v":2.0204125156867647E-2},{"$f":"((Quarterly!FV236/Quarterly!FV235)^4)-1","v":8.2706470116032715E-2},{"$f":"((Quarterly!FW236/Quarterly!FW235)^4)-1","v":0.20697005042402083},{"$f":"((Quarterly!FX236/Quarterly!FX235)^4)-1","v":0.3487940878120066},null,null,null,null,null,{"$f":"((Quarterly!GD236/Quarterly!GD235)^4)-1","v":1.0170388611530314},{"$f":"((Quarterly!GE236/Quarterly!GE235)^4)-1","v":0.71419729696330658},{"$f":"((Quarterly!GF236/Quarterly!GF235)^4)-1","v":0.86269765745239546},{"$f":"((Quarterly!GG236/Quarterly!GG235)^4)-1","v":-9.2153571270713552E-2},{"$f":"((Quarterly!GH236/Quarterly!GH235)^4)-1","v":0.47439809403180688},{"$f":"((Quarterly!GI236/Quarterly!GI235)^4)-1","v":1.7801515657467961},{"$f":"((Quarterly!GJ236/Quarterly!GJ235)^4)-1","v":-9.5982221031411741E-2},{"$f":"((Quarterly!GK236/Quarterly!GK235)^4)-1","v":-1.8405345437238041E-2},{"$f":"((Quarterly!GL236/Quarterly!GL235)^4)-1","v":0.14551936746504213}]
["15'Q3",{"$f":"((Quarterly!B237/Quarterly!B236)^4)-1","v":3.0060184630932074E-2},{"$f":"((Quarterly!C237/Quarterly!C236)^4)-1","v":1.6306404191438029E-2},{"$f":"((Quarterly!D237/Quarterly!D236)^4)-1","v":1.8614796118437082E-2},{"$f":"((Quarterly!E237/Quarterly!E236)^4)-1","v":2.7569532454001067E-2},{"$f":"((Quarterly!F237/Quarterly!F236)^4)-1","v":5.0130173374842935E-2},{"$f":"((Quarterly!G237/Quarterly!G236)^4)-1","v":4.0178162148166496E-2},{"$f":"((Quarterly!H237/Quarterly!H236)^4)-1","v":1.9890211935643887E-2},{"$f":"((Quarterly!I237/Quarterly!I236)^4)-1","v":1.4605724271526066E-2},{"$f":"((Quarterly!J237/Quarterly!J236)^4)-1","v":6.4782307083563806E-2},{"$f":"((Quarterly!K237/Quarterly!K236)^4)-1","v":0.10623745041214394},{"$f":"((Quarterly!L237-Quarterly!L236))","v":-9.3469999999999942},{"$f":"((Quarterly!M237/Quarterly!M236)^4)-1","v":1.7236079449332475E-2},{"$f":"((Quarterly!N237/Quarterly!N236)^4)-1","v":-3.9760609097166166E-2},{"$f":"((Quarterly!O237/Quarterly!O236)^4)-1","v":0.27631430681045721},{"$f":"((Quarterly!P237/Quarterly!P236)^4)-1","v":1.1670639916214753E-2},{"$f":"((Quarterly!Q237/Quarterly!Q236)^4)-1","v":0.3208284067904148},null,null,null,null,null,{"$f":"((Quarterly!W237/Quarterly!W236)^4)-1","v":5.2805165798346376E-3},{"$f":"((Quarterly!X237/Quarterly!X236)^4)-1","v":-5.1981696347347395E-3},{"$f":"((Quarterly!Y237/Quarterly!Y236)^4)-1","v":8.7653166332699817E-2},{"$f":"Quarterly!Z237-Quarterly!Z236","v":-0.12000000000000011},{"$f":"((Quarterly!AA237/Quarterly!AA236)^4)-1","v":-0.12664045117016531},{"$f":"((Quarterly!AB237/Quarterly!AB236)^4)-1","v":-1.9607119293477471E-2},{"$f":"Quarterly!AC237-Quarterly!AC236","v":-7.8},{"$f":"Quarterly!AD237-Quarterly!AD236","v":3.1000000000000005},{"$f":"(Quarterly!AE237-Quarterly!AE236)*100","v":-32.000000000000028},{"$f":"(Quarterly!AF237-Quarterly!AF236)*100","v":-12.000000000000011},{"$f":"(Quarterly!AG237-Quarterly!AG236)*100","v":-27.000000000000014},{"$f":"((Quarterly!AH237/Quarterly!AH236)^4)-1","v":0.16254667193069983},{"$f":"((Quarterly!AI237/Quarterly!AI236)^4)-1","v":0.11686023938015122},{"$f":"((Quarterly!AJ237/Quarterly!AJ236)^4)-1","v":1.9464149618643845E-2},{"$f":"((Quarterly!AK237/Quarterly!AK236)^4)-1","v":2.6228116722533557E-2},{"$f":"((Quarterly!AL237/Quarterly!AL236)^4)-1","v":2.6314384283024461E-2},{"$f":"((Quarterly!AM237/Quarterly!AM236)^4)-1","v":3.6927174921854711E-3},{"$f":"((Quarterly!AN237/Quarterly!AN236)^4)-1","v":1.1114958638792416E-2},{"$f":"((Quarterly!AO237/Quarterly!AO236)^4)-1","v":3.0522587246313959E-2},{"$f":"(Quarterly!AP237-Quarterly!AP236)*100","v":1.3333333333333197},{"$f":"Quarterly!AQ237-Quarterly!AQ236","v":-1.6333333333333329},{"$f":"Quarterly!AR237-Quarterly!AR236","v":-6.5},{"$f":"Quarterly!AS237-Quarterly!AS236","v":4.5},{"$f":"Quarterly!AT237-Quarterly!AT236","v":-0.36666666666666714},{"$f":"Quarterly!AU237-Quarterly!AU236","v":-3.3333333333333357},{"$f":"Quarterly!AV237-Quarterly!AV236","v":-2.8333333333333286},{"$f":"Quarterly!AW237-Quarterly!AW236","v":-2.5},{"$f":"Quarterly!AX237-Quarterly!AX236","v":-2.3333333333333286},{"$f":"Quarterly!AY237-Quarterly!AY236","v":-6.1666666666666643},{"$f":"Quarterly!AZ237-Quarterly!AZ236","v":-1.0333333333333456},{"$f":"Quarterly!BA237-Quarterly!BA236","v":6.6666666666662877E-2},{"$f":"Quarterly!BB237-Quarterly!BB236","v":1.0333333333333314},{"$f":"((Quarterly!BC237/Quarterly!BC236)^4)-1","v":4.7242006725605634E-2},{"$f":"((Quarterly!BD237/Quarterly!BD236)^4)-1","v":2.3370973774790249E-2},{"$f":"((Quarterly!BE237/Quarterly!BE236)^4)-1","v":-5.2759298819194944E-3},{"$f":"((Quarterly!BF237/Quarterly!BF236)^4)-1","v":1.1227467783550882E-2},{"$f":"((Quarterly!BG237/Quarterly!BG236)^4)-1","v":1.2949856527735726E-2},{"$f":"((Quarterly!BH237/Quarterly!BH236)^4)-1","v":-4.1587590618469283E-3},{"$f":"((Quarterly!BI237/Quarterly!BI236)^4)-1","v":-1.7198829492468537E-3},{"$f":"((Quarterly!BJ237/Quarterly!BJ236)^4)-1","v":1.3314620265509891E-3},{"$f":"((Quarterly!BK237/Quarterly!BK236)^4)-1","v":-0.37570492303002601},null,{"$f":"((Quarterly!BM237/Quarterly!BM236)^4)-1","v":4.2103684773653338E-2},{"$f":"((Quarterly!BN237/Quarterly!BN236)^4)-1","v":4.0906132154819863E-2},null,null,null,null,null,{"$f":"((Quarterly!BT237/Quarterly!BT236)^4)-1","v":6.8961825465312598E-2},{"$f":"Quarterly!BU237-Quarterly!BU236","v":3.469000000000122E-2},{"$f":"Quarterly!BV237-Quarterly!BV236","v":7.5800000000000978E-2},{"$f":"((Quarterly!BW237/Quarterly!BW236)^4)-1","v":-3.1291472468629289E-2},{"$f":"((Quarterly!BX237/Quarterly!BX236)^4)-1","v":1.8587943163453913E-2},{"$f":"((Quarterly!BY237/Quarterly!BY236)^4)-1","v":-0.34267005306144427},{"$f":"((Quarterly!BZ237/Quarterly!BZ236)^4)-1","v":2.3135895715955535E-2},{"$f":"((Quarterly!CA237/Quarterly!CA236)^4)-1","v":0.10601184397653252},{"$f":"((Quarterly!CB237/Quarterly!CB236)^4)-1","v":-0.13046211610941594},{"$f":"((Quarterly!CC237/Quarterly!CC236)^4)-1","v":-0.16141263701897002},{"$f":"((Quarterly!CD237/Quarterly!CD236)^4)-1","v":0.1607723229124991},{"$f":"((Quarterly!CE237/Quarterly!CE236)^4)-1","v":-2.1446942071678854E-2},null,{"$f":"((Quarterly!CG237/Quarterly!CG236)^4)-1","v":-1.7659610035055673E-2},{"$f":"((Quarterly!CH237/Quarterly!CH236)^4)-1","v":9.6759362315858688E-2},null,{"$f":"((Quarterly!CJ237/Quarterly!CJ236)^4)-1","v":-2.1446942071678854E-2},{"$f":"((Quarterly!CK237/Quarterly!CK236)^4)-1","v":2.8502583696848882E-2},{"$f":"((Quarterly!CL237/Quarterly!CL236)^4)-1","v":-0.10182089115176562},{"$f":"((Quarterly!CM237/Quarterly!CM236)^4)-1","v":0.22039351976529442},{"$f":"((Quarterly!CN237/Quarterly!CN236)^4)-1","v":1.8362282560458132E-2},{"$f":"((Quarterly!CO237/Quarterly!CO236)^4)-1","v":7.4490368340830448E-2},{"$f":"((Quarterly!CP237/Quarterly!CP236)^4)-1","v":7.0322060868454717E-2},{"$f":"((Quarterly!CQ237/Quarterly!CQ236)^4)-1","v":7.4699801659348086E-3},{"$f":"((Quarterly!CR237/Quarterly!CR236)^4)-1","v":5.5286453928890644E-2},{"$f":"Quarterly!CS237-Quarterly!CS236","v":-3.5000000000000142},{"$f":"Quarterly!CT237-Quarterly!CT236","v":2.0666666666666629},null,null,null,null,null,{"$f":"((Quarterly!CZ237/Quarterly!CZ236)^4)-1","v":1.496266198832541E-2},{"$f":"((Quarterly!DA237/Quarterly!DA236)^4)-1","v":1.9079943294288304E-2},null,null,null,null,null,{"$f":"((Quarterly!DG237/Quarterly!DG236)^4)-1","v":2.6844146189234808E-2},{"$f":"((Quarterly!DH237-Quarterly!DH236)*60)","v":4.000000000000199},{"$f":"Quarterly!DI237-Quarterly!DI236","v":-0.23333333333332718},{"$f":"(Quarterly!DJ237-Quarterly!DJ236)*100","v":-50},{"$f":"(Quarterly!DK237-Quarterly!DK236)*100","v":-29.999999999999893},{"$f":"((Quarterly!DL237/Quarterly!DL236)^4)-1","v":5.3084046217903857E-3},null,null,null,{"$f":"((Quarterly!DP237/Quarterly!DP236)^4)-1","v":1.8330911362036462E-2},null,null,null,null,{"$f":"Quarterly!DU237-Quarterly!DU236","v":0},{"$f":"((Quarterly!DV237/Quarterly!DV236)^4)-1","v":1.7281012343624003E-2},{"$f":"((Quarterly!DW237/Quarterly!DW236)^4)-1","v":7.6916085040054982E-2},{"$f":"((Quarterly!DX237/Quarterly!DX236)^4)-1","v":6.5642821193852452E-2},{"$f":"((Quarterly!DY237/Quarterly!DY236)^4)-1","v":0.11779105509041576},{"$f":"((Quarterly!DZ237/Quarterly!DZ236)^4)-1","v":4.938134945567918E-2},{"$f":"((Quarterly!EA237/Quarterly!EA236)^4)-1","v":5.4841492081725285E-2},{"$f":"((Quarterly!EB237/Quarterly!EB236)^4)-1","v":3.6173896810673067E-2},{"$f":"((Quarterly!EC237/Quarterly!EC236)^4)-1","v":0.1008094522018872},null,null,null,null,null,{"$f":"((Quarterly!EI237/Quarterly!EI236)^4)-1","v":2.7804461500704925E-2},{"$f":"((Quarterly!EJ237/Quarterly!EJ236)^4)-1","v":3.0626855187102509E-2},{"$f":"((Quarterly!EK237/Quarterly!EK236)^4)-1","v":2.5995914916843166E-2},null,null,null,null,null,{"$f":"((Quarterly!EQ237/Quarterly!EQ236)^4)-1","v":-2.8696452646768678E-2},{"$f":"((Quarterly!ER237/Quarterly!ER236)^4)-1","v":2.0277302872639513E-2},{"$f":"((Quarterly!ES237/Quarterly!ES236)^4)-1","v":7.9348946674784315E-3},null,null,null,null,null,{"$f":"(Quarterly!EY237-Quarterly!EY236)*100","v":0},{"$f":"(Quarterly!EZ237-Quarterly!EZ236)*100","v":1.333333333333335},{"$f":"(Quarterly!FA237-Quarterly!FA236)*100","v":18.999999999999993},{"$f":"(Quarterly!FB237-Quarterly!FB236)*100","v":41.000000000000014},{"$f":"+FB237-FA237","v":22.000000000000021},{"$f":"(Quarterly!FD237-Quarterly!FD236)*100","v":11.999999999999966},{"$f":"(Quarterly!FE237-Quarterly!FE236)*100","v":2},{"$f":"(Quarterly!FF237-Quarterly!FF236)*100","v":9.9999999999999929},{"$f":"(Quarterly!FG237-Quarterly!FG236)*100","v":8.0000000000000071},{"$f":"(Quarterly!FH237-Quarterly!FH236)*100","v":3.0000000000000027},{"$f":"(Quarterly!FI237-Quarterly!FI236)*100","v":5.3333333333333677},{"$f":"+FI237-FF237","v":-4.6666666666666252},null,null,null,null,null,{"$f":"((Quarterly!FP237/Quarterly!FP236)^4)-1","v":0.28658820463588608},{"$f":"((Quarterly!FQ237/Quarterly!FQ236)^4)-1","v":6.7118842619007024E-2},{"$f":"((Quarterly!FR237/Quarterly!FR236)^4)-1","v":0.32733621320507411},{"$f":"((Quarterly!FS237/Quarterly!FS236)^4)-1","v":1.7820713749707284E-2},{"$f":"((Quarterly!FT237/Quarterly!FT236)^4)-1","v":0.14853452296253766},{"$f":"((Quarterly!FU237/Quarterly!FU236)^4)-1","v":7.9156005891222847E-2},{"$f":"((Quarterly!FV237/Quarterly!FV236)^4)-1","v":-7.9640954410207576E-2},{"$f":"((Quarterly!FW237/Quarterly!FW236)^4)-1","v":0.59378677401508151},{"$f":"((Quarterly!FX237/Quarterly!FX236)^4)-1","v":-6.6179446107542117E-2},null,null,null,null,null,{"$f":"((Quarterly!GD237/Quarterly!GD236)^4)-1","v":-0.58543281928287128},{"$f":"((Quarterly!GE237/Quarterly!GE236)^4)-1","v":-0.56044315656660015},{"$f":"((Quarterly!GF237/Quarterly!GF236)^4)-1","v":-8.180881847131205E-2},{"$f":"((Quarterly!GG237/Quarterly!GG236)^4)-1","v":-0.27318148454612956},{"$f":"((Quarterly!GH237/Quarterly!GH236)^4)-1","v":0.56859566513182669},{"$f":"((Quarterly!GI237/Quarterly!GI236)^4)-1","v":-4.6584072498915052E-2},{"$f":"((Quarterly!GJ237/Quarterly!GJ236)^4)-1","v":-9.6968981147402822E-3},{"$f":"((Quarterly!GK237/Quarterly!GK236)^4)-1","v":-0.21358386723598388},{"$f":"((Quarterly!GL237/Quarterly!GL236)^4)-1","v":3.1698150778225243E-2}]
["15'Q4",{"$f":"((Quarterly!B238/Quarterly!B237)^4)-1","v":1.3129329507807874E-2},{"$f":"((Quarterly!C238/Quarterly!C237)^4)-1","v":4.8569579186246159E-3},{"$f":"((Quarterly!D238/Quarterly!D237)^4)-1","v":1.1747656558368957E-2},{"$f":"((Quarterly!E238/Quarterly!E237)^4)-1","v":2.6694941990503818E-2},{"$f":"((Quarterly!F238/Quarterly!F237)^4)-1","v":4.1824349174129694E-2},{"$f":"((Quarterly!G238/Quarterly!G237)^4)-1","v":2.1698387101532823E-2},{"$f":"((Quarterly!H238/Quarterly!H237)^4)-1","v":2.580099459346763E-2},{"$f":"((Quarterly!I238/Quarterly!I237)^4)-1","v":-5.0569725589403869E-2},{"$f":"((Quarterly!J238/Quarterly!J237)^4)-1","v":-3.9108622059070841E-3},{"$f":"((Quarterly!K238/Quarterly!K237)^4)-1","v":7.3483861040518628E-2},{"$f":"((Quarterly!L238-Quarterly!L237))","v":-28.004000000000005},{"$f":"((Quarterly!M238/Quarterly!M237)^4)-1","v":2.2359588768727789E-5},{"$f":"((Quarterly!N238/Quarterly!N237)^4)-1","v":-2.2778833245999386E-2},{"$f":"((Quarterly!O238/Quarterly!O237)^4)-1","v":9.0269086666962872E-2},{"$f":"((Quarterly!P238/Quarterly!P237)^4)-1","v":2.7546794294130983E-3},{"$f":"((Quarterly!Q238/Quarterly!Q237)^4)-1","v":-0.35342889853251458},null,null,null,null,null,{"$f":"((Quarterly!W238/Quarterly!W237)^4)-1","v":-1.0484837391901536E-2},{"$f":"((Quarterly!X238/Quarterly!X237)^4)-1","v":-3.6009146365402755E-2},{"$f":"((Quarterly!Y238/Quarterly!Y237)^4)-1","v":8.6347492914896407E-2},{"$f":"Quarterly!Z238-Quarterly!Z237","v":-5.9999999999999942E-2},{"$f":"((Quarterly!AA238/Quarterly!AA237)^4)-1","v":-0.38210050298903908},{"$f":"((Quarterly!AB238/Quarterly!AB237)^4)-1","v":-0.35709459121325204},{"$f":"Quarterly!AC238-Quarterly!AC237","v":-6},{"$f":"Quarterly!AD238-Quarterly!AD237","v":-4.2},{"$f":"(Quarterly!AE238-Quarterly!AE237)*100","v":-27},{"$f":"(Quarterly!AF238-Quarterly!AF237)*100","v":-5.9999999999999947},{"$f":"(Quarterly!AG238-Quarterly!AG237)*100","v":-4.9999999999999929},{"$f":"((Quarterly!AH238/Quarterly!AH237)^4)-1","v":0.11554143926862381},{"$f":"((Quarterly!AI238/Quarterly!AI237)^4)-1","v":0.11351401747093215},{"$f":"((Quarterly!AJ238/Quarterly!AJ237)^4)-1","v":1.6122206454884935E-2},{"$f":"((Quarterly!AK238/Quarterly!AK237)^4)-1","v":1.9495771082899127E-2},{"$f":"((Quarterly!AL238/Quarterly!AL237)^4)-1","v":2.2846895981929682E-2},{"$f":"((Quarterly!AM238/Quarterly!AM237)^4)-1","v":-3.6634358143028511E-2},{"$f":"((Quarterly!AN238/Quarterly!AN237)^4)-1","v":-6.3338837997575226E-3},{"$f":"((Quarterly!AO238/Quarterly!AO237)^4)-1","v":8.2038084659341592E-5},{"$f":"(Quarterly!AP238-Quarterly!AP237)*100","v":1.6666666666666829},{"$f":"Quarterly!AQ238-Quarterly!AQ237","v":-2.3666666666666671},{"$f":"Quarterly!AR238-Quarterly!AR237","v":-1.3333333333333357},{"$f":"Quarterly!AS238-Quarterly!AS237","v":0.5},{"$f":"Quarterly!AT238-Quarterly!AT237","v":-2.5},{"$f":"Quarterly!AU238-Quarterly!AU237","v":1.6666666666666643},{"$f":"Quarterly!AV238-Quarterly!AV237","v":-4.1666666666666714},{"$f":"Quarterly!AW238-Quarterly!AW237","v":-4.5},{"$f":"Quarterly!AX238-Quarterly!AX237","v":-2.5666666666666771},{"$f":"Quarterly!AY238-Quarterly!AY237","v":-4.3333333333333357},{"$f":"Quarterly!AZ238-Quarterly!AZ237","v":-3.1333333333333258},{"$f":"Quarterly!BA238-Quarterly!BA237","v":0.3333333333333357},{"$f":"Quarterly!BB238-Quarterly!BB237","v":-1.7000000000000028},{"$f":"((Quarterly!BC238/Quarterly!BC237)^4)-1","v":-9.8291042631804215E-2},{"$f":"((Quarterly!BD238/Quarterly!BD237)^4)-1","v":-1.574515764767892E-2},{"$f":"((Quarterly!BE238/Quarterly!BE237)^4)-1","v":0.10884292105066584},{"$f":"((Quarterly!BF238/Quarterly!BF237)^4)-1","v":4.4520550248088542E-2},{"$f":"((Quarterly!BG238/Quarterly!BG237)^4)-1","v":-2.5591710966559433E-2},{"$f":"((Quarterly!BH238/Quarterly!BH237)^4)-1","v":4.0561448969902658E-2},{"$f":"((Quarterly!BI238/Quarterly!BI237)^4)-1","v":7.1969139932140269E-2},{"$f":"((Quarterly!BJ238/Quarterly!BJ237)^4)-1","v":-0.41874041458687949},{"$f":"((Quarterly!BK238/Quarterly!BK237)^4)-1","v":-0.22752380371093706},null,{"$f":"((Quarterly!BM238/Quarterly!BM237)^4)-1","v":1.0093666851201055E-2},{"$f":"((Quarterly!BN238/Quarterly!BN237)^4)-1","v":1.8207420525304663E-3},null,null,null,null,null,{"$f":"((Quarterly!BT238/Quarterly!BT237)^4)-1","v":7.9035120009558035E-2},{"$f":"Quarterly!BU238-Quarterly!BU237","v":-9.9410000000000664E-2},{"$f":"Quarterly!BV238-Quarterly!BV237","v":-7.3150000000000048E-2},{"$f":"((Quarterly!BW238/Quarterly!BW237)^4)-1","v":-2.4112446192116055E-3},{"$f":"((Quarterly!BX238/Quarterly!BX237)^4)-1","v":-0.12046836066104094},{"$f":"((Quarterly!BY238/Quarterly!BY237)^4)-1","v":0.30184445692219652},{"$f":"((Quarterly!BZ238/Quarterly!BZ237)^4)-1","v":7.7092174276680359E-2},{"$f":"((Quarterly!CA238/Quarterly!CA237)^4)-1","v":-1.1448871409522221E-2},{"$f":"((Quarterly!CB238/Quarterly!CB237)^4)-1","v":0.13321349362225265},{"$f":"((Quarterly!CC238/Quarterly!CC237)^4)-1","v":4.4486150199224861E-2},{"$f":"((Quarterly!CD238/Quarterly!CD237)^4)-1","v":0.20986912905939348},{"$f":"((Quarterly!CE238/Quarterly!CE237)^4)-1","v":0.15501305879091642},null,{"$f":"((Quarterly!CG238/Quarterly!CG237)^4)-1","v":-0.4017636042145678},{"$f":"((Quarterly!CH238/Quarterly!CH237)^4)-1","v":-0.14223892528219895},null,{"$f":"((Quarterly!CJ238/Quarterly!CJ237)^4)-1","v":0.15501305879091642},{"$f":"((Quarterly!CK238/Quarterly!CK237)^4)-1","v":3.7287744241267573E-2},{"$f":"((Quarterly!CL238/Quarterly!CL237)^4)-1","v":7.7586129715767616E-2},{"$f":"((Quarterly!CM238/Quarterly!CM237)^4)-1","v":8.9424885335971371E-3},{"$f":"((Quarterly!CN238/Quarterly!CN237)^4)-1","v":2.9312542657883967E-2},{"$f":"((Quarterly!CO238/Quarterly!CO237)^4)-1","v":7.6105619247491374E-2},{"$f":"((Quarterly!CP238/Quarterly!CP237)^4)-1","v":1.6001583448941537E-2},{"$f":"((Quarterly!CQ238/Quarterly!CQ237)^4)-1","v":7.735632156808725E-3},{"$f":"((Quarterly!CR238/Quarterly!CR237)^4)-1","v":1.6209317275908131E-2},{"$f":"Quarterly!CS238-Quarterly!CS237","v":0.56666666666666288},{"$f":"Quarterly!CT238-Quarterly!CT237","v":-2.2999999999999972},null,null,null,null,null,{"$f":"((Quarterly!CZ238/Quarterly!CZ237)^4)-1","v":3.5776506923708151E-3},{"$f":"((Quarterly!DA238/Quarterly!DA237)^4)-1","v":2.2357135838498188E-2},null,null,null,null,null,{"$f":"((Quarterly!DG238/Quarterly!DG237)^4)-1","v":2.666520477116463E-2},{"$f":"((Quarterly!DH238-Quarterly!DH237)*60)","v":1.9999999999998863},{"$f":"Quarterly!DI238-Quarterly!DI237","v":3.3333333333331439E-2},{"$f":"(Quarterly!DJ238-Quarterly!DJ237)*100","v":-29.999999999999893},{"$f":"(Quarterly!DK238-Quarterly!DK237)*100","v":-10.000000000000053},{"$f":"((Quarterly!DL238/Quarterly!DL237)^4)-1","v":1.4044372660075854E-3},null,null,null,{"$f":"((Quarterly!DP238/Quarterly!DP237)^4)-1","v":1.9874288606148927E-2},null,null,null,null,{"$f":"Quarterly!DU238-Quarterly!DU237","v":-0.50000000000000178},{"$f":"((Quarterly!DV238/Quarterly!DV237)^4)-1","v":-1.3372109897868856E-2},{"$f":"((Quarterly!DW238/Quarterly!DW237)^4)-1","v":-4.3556042321834965E-2},{"$f":"((Quarterly!DX238/Quarterly!DX237)^4)-1","v":1.4584263144481469E-3},{"$f":"((Quarterly!DY238/Quarterly!DY237)^4)-1","v":-2.412272555392514E-2},{"$f":"((Quarterly!DZ238/Quarterly!DZ237)^4)-1","v":9.8642903612260469E-3},{"$f":"((Quarterly!EA238/Quarterly!EA237)^4)-1","v":1.7175495211777747E-2},{"$f":"((Quarterly!EB238/Quarterly!EB237)^4)-1","v":-2.5396812582968442E-3},{"$f":"((Quarterly!EC238/Quarterly!EC237)^4)-1","v":-0.13442553262292467},null,null,null,null,null,{"$f":"((Quarterly!EI238/Quarterly!EI237)^4)-1","v":-8.394790969962429E-3},{"$f":"((Quarterly!EJ238/Quarterly!EJ237)^4)-1","v":1.1142852609742793E-2},{"$f":"((Quarterly!EK238/Quarterly!EK237)^4)-1","v":1.3999295636949238E-2},null,null,null,null,null,{"$f":"((Quarterly!EQ238/Quarterly!EQ237)^4)-1","v":-0.12074337230377852},{"$f":"((Quarterly!ER238/Quarterly!ER237)^4)-1","v":-2.0698570037599451E-3},{"$f":"((Quarterly!ES238/Quarterly!ES237)^4)-1","v":-6.3016739677447253E-3},null,null,null,null,null,{"$f":"(Quarterly!EY238-Quarterly!EY237)*100","v":4.000000000000048},{"$f":"(Quarterly!EZ238-Quarterly!EZ237)*100","v":2.3333333333333317},{"$f":"(Quarterly!FA238-Quarterly!FA237)*100","v":-9.3333333333333268},{"$f":"(Quarterly!FB238-Quarterly!FB237)*100","v":17.666666666666764},{"$f":"+FB238-FA238","v":27.000000000000092},{"$f":"(Quarterly!FD238-Quarterly!FD237)*100","v":-4.9999999999999822},{"$f":"(Quarterly!FE238-Quarterly!FE237)*100","v":8.3333333333333339},{"$f":"(Quarterly!FF238-Quarterly!FF237)*100","v":11.333333333333345},{"$f":"(Quarterly!FG238-Quarterly!FG237)*100","v":14.000000000000002},{"$f":"(Quarterly!FH238-Quarterly!FH237)*100","v":3.3333333333333215},{"$f":"(Quarterly!FI238-Quarterly!FI237)*100","v":-3.0000000000000249},{"$f":"+FI238-FF238","v":-14.333333333333369},null,null,null,null,null,{"$f":"((Quarterly!FP238/Quarterly!FP237)^4)-1","v":8.270021583371534E-2},{"$f":"((Quarterly!FQ238/Quarterly!FQ237)^4)-1","v":5.3751273035870684E-2},{"$f":"((Quarterly!FR238/Quarterly!FR237)^4)-1","v":7.892656167743084E-2},{"$f":"((Quarterly!FS238/Quarterly!FS237)^4)-1","v":-6.0675042053778383E-2},{"$f":"((Quarterly!FT238/Quarterly!FT237)^4)-1","v":6.5597552644236501E-2},{"$f":"((Quarterly!FU238/Quarterly!FU237)^4)-1","v":5.9000127222997412E-2},{"$f":"((Quarterly!FV238/Quarterly!FV237)^4)-1","v":-0.22562119435932615},{"$f":"((Quarterly!FW238/Quarterly!FW237)^4)-1","v":-0.19356952532615967},{"$f":"((Quarterly!FX238/Quarterly!FX237)^4)-1","v":3.3888769678169783E-3},null,null,null,null,null,{"$f":"((Quarterly!GD238/Quarterly!GD237)^4)-1","v":-0.33285599319609127},{"$f":"((Quarterly!GE238/Quarterly!GE237)^4)-1","v":-0.43404454616046761},{"$f":"((Quarterly!GF238/Quarterly!GF237)^4)-1","v":-0.4980373958755705},{"$f":"((Quarterly!GG238/Quarterly!GG237)^4)-1","v":-0.26806638433328356},{"$f":"((Quarterly!GH238/Quarterly!GH237)^4)-1","v":2.2442712719671354E-2},{"$f":"((Quarterly!GI238/Quarterly!GI237)^4)-1","v":0.18545939133744271},{"$f":"((Quarterly!GJ238/Quarterly!GJ237)^4)-1","v":-0.55323348755533108},{"$f":"((Quarterly!GK238/Quarterly!GK237)^4)-1","v":7.1293667639841685E-2},{"$f":"((Quarterly!GL238/Quarterly!GL237)^4)-1","v":8.7327518750619504E-3}]
["16'Q1",{"$f":"((Quarterly!B239/Quarterly!B238)^4)-1","v":8.3291722861231765E-3},{"$f":"((Quarterly!C239/Quarterly!C238)^4)-1","v":5.8029045037675253E-3},{"$f":"((Quarterly!D239/Quarterly!D238)^4)-1","v":1.2335987503979462E-2},{"$f":"((Quarterly!E239/Quarterly!E238)^4)-1","v":1.8143230203689908E-2},{"$f":"((Quarterly!F239/Quarterly!F238)^4)-1","v":9.9902579255461976E-3},{"$f":"((Quarterly!G239/Quarterly!G238)^4)-1","v":2.6357013572516852E-2},{"$f":"((Quarterly!H239/Quarterly!H238)^4)-1","v":1.6872179862239101E-2},{"$f":"((Quarterly!I239/Quarterly!I238)^4)-1","v":-4.0005520383414428E-2},{"$f":"((Quarterly!J239/Quarterly!J238)^4)-1","v":-5.4967427988481754E-2},{"$f":"((Quarterly!K239/Quarterly!K238)^4)-1","v":0.13419047475219359},{"$f":"((Quarterly!L239-Quarterly!L238))","v":-27.606999999999999},{"$f":"((Quarterly!M239/Quarterly!M238)^4)-1","v":-1.7160869554665448E-3},{"$f":"((Quarterly!N239/Quarterly!N238)^4)-1","v":-2.5965789456792288E-2},{"$f":"((Quarterly!O239/Quarterly!O238)^4)-1","v":9.1839508343027454E-2},{"$f":"((Quarterly!P239/Quarterly!P238)^4)-1","v":1.80418116754959E-2},{"$f":"((Quarterly!Q239/Quarterly!Q238)^4)-1","v":1.406193229392831},null,null,null,null,null,{"$f":"((Quarterly!W239/Quarterly!W238)^4)-1","v":0},{"$f":"((Quarterly!X239/Quarterly!X238)^4)-1","v":-1.0484837391901536E-2},{"$f":"((Quarterly!Y239/Quarterly!Y238)^4)-1","v":0.10567068871741103},{"$f":"Quarterly!Z239-Quarterly!Z238","v":-4.0000000000000036E-2},{"$f":"((Quarterly!AA239/Quarterly!AA238)^4)-1","v":0.37790970782806421},{"$f":"((Quarterly!AB239/Quarterly!AB238)^4)-1","v":0.32296824553677217},{"$f":"Quarterly!AC239-Quarterly!AC238","v":-9.1},{"$f":"Quarterly!AD239-Quarterly!AD238","v":-15.7},{"$f":"(Quarterly!AE239-Quarterly!AE238)*100","v":-20.999999999999996},{"$f":"(Quarterly!AF239-Quarterly!AF238)*100","v":-4.0000000000000036},{"$f":"(Quarterly!AG239-Quarterly!AG238)*100","v":-7.0000000000000062},{"$f":"((Quarterly!AH239/Quarterly!AH238)^4)-1","v":0.1525219219049625},{"$f":"((Quarterly!AI239/Quarterly!AI238)^4)-1","v":0.16347677375728153},{"$f":"((Quarterly!AJ239/Quarterly!AJ238)^4)-1","v":1.9292048880334534E-2},{"$f":"((Quarterly!AK239/Quarterly!AK238)^4)-1","v":2.5930583838111865E-2},{"$f":"((Quarterly!AL239/Quarterly!AL238)^4)-1","v":2.5993771251111131E-2},{"$f":"((Quarterly!AM239/Quarterly!AM238)^4)-1","v":-1.3362569213515196E-2},{"$f":"((Quarterly!AN239/Quarterly!AN238)^4)-1","v":1.0145575927736017E-2},{"$f":"((Quarterly!AO239/Quarterly!AO238)^4)-1","v":-2.2824286908671443E-3},{"$f":"(Quarterly!AP239-Quarterly!AP238)*100","v":1.6666666666666607},{"$f":"Quarterly!AQ239-Quarterly!AQ238","v":1.2333333333333343},{"$f":"Quarterly!AR239-Quarterly!AR238","v":5.3333333333333357},{"$f":"Quarterly!AS239-Quarterly!AS238","v":-1.8333333333333357},{"$f":"Quarterly!AT239-Quarterly!AT238","v":-1.4666666666666686},{"$f":"Quarterly!AU239-Quarterly!AU238","v":-0.1666666666666643},{"$f":"Quarterly!AV239-Quarterly!AV238","v":2.6666666666666714},{"$f":"Quarterly!AW239-Quarterly!AW238","v":0.8333333333333286},{"$f":"Quarterly!AX239-Quarterly!AX238","v":3.5666666666666771},{"$f":"Quarterly!AY239-Quarterly!AY238","v":5.1666666666666643},{"$f":"Quarterly!AZ239-Quarterly!AZ238","v":2.1000000000000085},{"$f":"Quarterly!BA239-Quarterly!BA238","v":-0.30000000000000426},{"$f":"Quarterly!BB239-Quarterly!BB238","v":-3.0666666666666629},{"$f":"((Quarterly!BC239/Quarterly!BC238)^4)-1","v":-8.4495208097559837E-2},{"$f":"((Quarterly!BD239/Quarterly!BD238)^4)-1","v":1.2857371632128078E-2},{"$f":"((Quarterly!BE239/Quarterly!BE238)^4)-1","v":-0.11254874734643139},{"$f":"((Quarterly!BF239/Quarterly!BF238)^4)-1","v":-3.7944475260760613E-2},{"$f":"((Quarterly!BG239/Quarterly!BG238)^4)-1","v":-1.1753110380356202E-2},{"$f":"((Quarterly!BH239/Quarterly!BH238)^4)-1","v":-3.8683495141110358E-2},{"$f":"((Quarterly!BI239/Quarterly!BI238)^4)-1","v":-2.6511261964507704E-2},{"$f":"((Quarterly!BJ239/Quarterly!BJ238)^4)-1","v":0.57342058594758516},{"$f":"((Quarterly!BK239/Quarterly!BK238)^4)-1","v":-0.16627319006249075},null,{"$f":"((Quarterly!BM239/Quarterly!BM238)^4)-1","v":-3.6255573621933879E-3},{"$f":"((Quarterly!BN239/Quarterly!BN238)^4)-1","v":-9.4156171394315091E-3},null,null,null,null,null,{"$f":"((Quarterly!BT239/Quarterly!BT238)^4)-1","v":7.7911340745839608E-2},{"$f":"Quarterly!BU239-Quarterly!BU238","v":-4.089999999999705E-3},{"$f":"Quarterly!BV239-Quarterly!BV238","v":4.3169999999999931E-2},{"$f":"((Quarterly!BW239/Quarterly!BW238)^4)-1","v":1.1101188521041694E-2},{"$f":"((Quarterly!BX239/Quarterly!BX238)^4)-1","v":0.10723302392738643},{"$f":"((Quarterly!BY239/Quarterly!BY238)^4)-1","v":-0.15255169092760845},{"$f":"((Quarterly!BZ239/Quarterly!BZ238)^4)-1","v":7.1558699089390387E-2},{"$f":"((Quarterly!CA239/Quarterly!CA238)^4)-1","v":-8.38979928567547E-2},{"$f":"((Quarterly!CB239/Quarterly!CB238)^4)-1","v":0.52824311173137639},{"$f":"((Quarterly!CC239/Quarterly!CC238)^4)-1","v":0.27515869685521976},{"$f":"((Quarterly!CD239/Quarterly!CD238)^4)-1","v":0.19943366109931482},{"$f":"((Quarterly!CE239/Quarterly!CE238)^4)-1","v":0.1434307331732263},null,{"$f":"((Quarterly!CG239/Quarterly!CG238)^4)-1","v":-0.16469733356641414},{"$f":"((Quarterly!CH239/Quarterly!CH238)^4)-1","v":0.12606928745444224},null,{"$f":"((Quarterly!CJ239/Quarterly!CJ238)^4)-1","v":0.1434307331732263},{"$f":"((Quarterly!CK239/Quarterly!CK238)^4)-1","v":-4.5917559431878363E-3},{"$f":"((Quarterly!CL239/Quarterly!CL238)^4)-1","v":-0.21680186700357029},{"$f":"((Quarterly!CM239/Quarterly!CM238)^4)-1","v":0.21252357172850034},{"$f":"((Quarterly!CN239/Quarterly!CN238)^4)-1","v":2.0714731200717207E-3},{"$f":"((Quarterly!CO239/Quarterly!CO238)^4)-1","v":6.4501085379063516E-2},{"$f":"((Quarterly!CP239/Quarterly!CP238)^4)-1","v":-3.8012066601672334E-2},{"$f":"((Quarterly!CQ239/Quarterly!CQ238)^4)-1","v":6.222089543903575E-3},{"$f":"((Quarterly!CR239/Quarterly!CR238)^4)-1","v":-3.1566143046446227E-2},{"$f":"Quarterly!CS239-Quarterly!CS238","v":0.26666666666666572},{"$f":"Quarterly!CT239-Quarterly!CT238","v":-3.3333333333345649E-2},null,null,null,null,null,{"$f":"((Quarterly!CZ239/Quarterly!CZ238)^4)-1","v":1.1268559947770207E-3},{"$f":"((Quarterly!DA239/Quarterly!DA238)^4)-1","v":2.545649016253515E-2},null,null,null,null,null,{"$f":"((Quarterly!DG239/Quarterly!DG238)^4)-1","v":7.1727148474904912E-3},{"$f":"((Quarterly!DH239-Quarterly!DH238)*60)","v":-6.0000000000000853},{"$f":"Quarterly!DI239-Quarterly!DI238","v":0.30000000000000426},{"$f":"(Quarterly!DJ239-Quarterly!DJ238)*100","v":-3.3333333333333215},{"$f":"(Quarterly!DK239-Quarterly!DK238)*100","v":-6.666666666666643},{"$f":"((Quarterly!DL239/Quarterly!DL238)^4)-1","v":6.3836203099636446E-3},null,null,null,{"$f":"((Quarterly!DP239/Quarterly!DP238)^4)-1","v":1.7164026657182641E-2},null,null,null,null,{"$f":"Quarterly!DU239-Quarterly!DU238","v":0.2666666666666675},{"$f":"((Quarterly!DV239/Quarterly!DV238)^4)-1","v":1.2849044990383973E-3},{"$f":"((Quarterly!DW239/Quarterly!DW238)^4)-1","v":-9.6614282961702824E-2},{"$f":"((Quarterly!DX239/Quarterly!DX238)^4)-1","v":-5.4484684843651099E-2},{"$f":"((Quarterly!DY239/Quarterly!DY238)^4)-1","v":-6.0100879462947732E-2},{"$f":"((Quarterly!DZ239/Quarterly!DZ238)^4)-1","v":-5.2672912259573823E-2},{"$f":"((Quarterly!EA239/Quarterly!EA238)^4)-1","v":-3.8896543624372226E-2},{"$f":"((Quarterly!EB239/Quarterly!EB238)^4)-1","v":-8.0143107498884869E-2},{"$f":"((Quarterly!EC239/Quarterly!EC238)^4)-1","v":-0.18474030429971855},null,null,null,null,null,{"$f":"((Quarterly!EI239/Quarterly!EI238)^4)-1","v":4.574591611925527E-4},{"$f":"((Quarterly!EJ239/Quarterly!EJ238)^4)-1","v":1.512669792110799E-2},{"$f":"((Quarterly!EK239/Quarterly!EK238)^4)-1","v":1.5143562875285843E-2},null,null,null,null,null,{"$f":"((Quarterly!EQ239/Quarterly!EQ238)^4)-1","v":-7.4693345265730682E-2},null,null,null,null,null,null,null,{"$f":"(Quarterly!EY239-Quarterly!EY238)*100","v":20.99999999999995},{"$f":"(Quarterly!EZ239-Quarterly!EZ238)*100","v":20.000000000000004},{"$f":"(Quarterly!FA239-Quarterly!FA238)*100","v":-6.6666666666667318},{"$f":"(Quarterly!FB239-Quarterly!FB238)*100","v":-11.333333333333506},{"$f":"+FB239-FA239","v":-4.6666666666667744},{"$f":"(Quarterly!FD239-Quarterly!FD238)*100","v":-15.99999999999997},{"$f":"(Quarterly!FE239-Quarterly!FE238)*100","v":16.333333333333332},{"$f":"(Quarterly!FF239-Quarterly!FF238)*100","v":11.333333333333329},{"$f":"(Quarterly!FG239-Quarterly!FG238)*100","v":0.33333333333331883},{"$f":"(Quarterly!FH239-Quarterly!FH238)*100","v":-21.333333333333336},{"$f":"(Quarterly!FI239-Quarterly!FI238)*100","v":-27},-38.333333333333329,null,null,null,null,null,{"$f":"((Quarterly!FP239/Quarterly!FP238)^4)-1","v":0.1217039358890375},{"$f":"((Quarterly!FQ239/Quarterly!FQ238)^4)-1","v":9.9931601229021894E-2},{"$f":"((Quarterly!FR239/Quarterly!FR238)^4)-1","v":0.34420487062630767},{"$f":"((Quarterly!FS239/Quarterly!FS238)^4)-1","v":2.9177642897252332E-2},{"$f":"((Quarterly!FT239/Quarterly!FT238)^4)-1","v":8.8845703765735973E-2},{"$f":"((Quarterly!FU239/Quarterly!FU238)^4)-1","v":9.4548305639088337E-3},{"$f":"((Quarterly!FV239/Quarterly!FV238)^4)-1","v":-0.15564549946285677},{"$f":"((Quarterly!FW239/Quarterly!FW238)^4)-1","v":-0.52537795076897487},{"$f":"((Quarterly!FX239/Quarterly!FX238)^4)-1","v":-0.22185724878808299},null,null,null,null,null,{"$f":"((Quarterly!GD239/Quarterly!GD238)^4)-1","v":-0.6084815993546423},{"$f":"((Quarterly!GE239/Quarterly!GE238)^4)-1","v":-0.64223526682911936},{"$f":"((Quarterly!GF239/Quarterly!GF238)^4)-1","v":-0.39064542004833314},{"$f":"((Quarterly!GG239/Quarterly!GG238)^4)-1","v":-0.46802441142993156},{"$f":"((Quarterly!GH239/Quarterly!GH238)^4)-1","v":-0.35551415815866771},{"$f":"((Quarterly!GI239/Quarterly!GI238)^4)-1","v":-0.67378034555449506},{"$f":"((Quarterly!GJ239/Quarterly!GJ238)^4)-1","v":-0.37112938508633619},{"$f":"((Quarterly!GK239/Quarterly!GK238)^4)-1","v":-0.27191476847931828},{"$f":"((Quarterly!GL239/Quarterly!GL238)^4)-1","v":-0.23988403337637265}]
["16'Q2",{"$f":"((Quarterly!B240/Quarterly!B239)^4)-1","v":4.7276854632027465E-2},{"$f":"((Quarterly!C240/Quarterly!C239)^4)-1","v":2.2378326164085305E-2},{"$f":"((Quarterly!D240/Quarterly!D239)^4)-1","v":2.9368668083172622E-2},{"$f":"((Quarterly!E240/Quarterly!E239)^4)-1","v":3.8056588573097683E-2},{"$f":"((Quarterly!F240/Quarterly!F239)^4)-1","v":8.484922433497899E-2},{"$f":"((Quarterly!G240/Quarterly!G239)^4)-1","v":4.7266623252339324E-2},{"$f":"((Quarterly!H240/Quarterly!H239)^4)-1","v":2.7759141272746479E-2},{"$f":"((Quarterly!I240/Quarterly!I239)^4)-1","v":3.2989244020243058E-2},{"$f":"((Quarterly!J240/Quarterly!J239)^4)-1","v":4.0090739716744261E-2},{"$f":"((Quarterly!K240/Quarterly!K239)^4)-1","v":-4.7489709907312605E-2},{"$f":"((Quarterly!L240-Quarterly!L239))","v":-28.399000000000001},{"$f":"((Quarterly!M240/Quarterly!M239)^4)-1","v":3.8933827441323121E-3},{"$f":"((Quarterly!N240/Quarterly!N239)^4)-1","v":2.7770689349764011E-2},{"$f":"((Quarterly!O240/Quarterly!O239)^4)-1","v":-7.8441212145043182E-2},{"$f":"((Quarterly!P240/Quarterly!P239)^4)-1","v":-9.4113939956981252E-3},{"$f":"((Quarterly!Q240/Quarterly!Q239)^4)-1","v":-0.10318057327509733},null,null,null,null,null,{"$f":"((Quarterly!W240/Quarterly!W239)^4)-1","v":-1.5737397990884583E-2},{"$f":"((Quarterly!X240/Quarterly!X239)^4)-1","v":-7.0175167658431681E-3},{"$f":"((Quarterly!Y240/Quarterly!Y239)^4)-1","v":0.12465610963666496},{"$f":"Quarterly!Z240-Quarterly!Z239","v":-0.33999999999999997},{"$f":"((Quarterly!AA240/Quarterly!AA239)^4)-1","v":8.2692171646793433E-2},{"$f":"((Quarterly!AB240/Quarterly!AB239)^4)-1","v":-0.14240012912723921},{"$f":"Quarterly!AC240-Quarterly!AC239","v":-7.5000000000000018},{"$f":"Quarterly!AD240-Quarterly!AD239","v":9.7999999999999989},{"$f":"(Quarterly!AE240-Quarterly!AE239)*100","v":-16.999999999999993},{"$f":"(Quarterly!AF240-Quarterly!AF239)*100","v":-34},{"$f":"(Quarterly!AG240-Quarterly!AG239)*100","v":-3.0000000000000027},{"$f":"((Quarterly!AH240/Quarterly!AH239)^4)-1","v":0.17693843679644683},{"$f":"((Quarterly!AI240/Quarterly!AI239)^4)-1","v":0.11149061807889371},{"$f":"((Quarterly!AJ240/Quarterly!AJ239)^4)-1","v":1.5980506696433361E-2},{"$f":"((Quarterly!AK240/Quarterly!AK239)^4)-1","v":2.2516206910286218E-2},{"$f":"((Quarterly!AL240/Quarterly!AL239)^4)-1","v":2.9089013443174494E-2},{"$f":"((Quarterly!AM240/Quarterly!AM239)^4)-1","v":-6.8010685196601139E-3},{"$f":"((Quarterly!AN240/Quarterly!AN239)^4)-1","v":-9.0951310309800304E-3},{"$f":"((Quarterly!AO240/Quarterly!AO239)^4)-1","v":2.8295261890508128E-2},{"$f":"(Quarterly!AP240-Quarterly!AP239)*100","v":-0.99999999999997868},{"$f":"Quarterly!AQ240-Quarterly!AQ239","v":1.9333333333333371},{"$f":"Quarterly!AR240-Quarterly!AR239","v":2.5},{"$f":"Quarterly!AS240-Quarterly!AS239","v":-0.1666666666666643},{"$f":"Quarterly!AT240-Quarterly!AT239","v":2.1000000000000014},{"$f":"Quarterly!AU240-Quarterly!AU239","v":4.3333333333333357},{"$f":"Quarterly!AV240-Quarterly!AV239","v":0.8333333333333286},{"$f":"Quarterly!AW240-Quarterly!AW239","v":1.1666666666666714},{"$f":"Quarterly!AX240-Quarterly!AX239","v":2.3999999999999915},{"$f":"Quarterly!AY240-Quarterly!AY239","v":19.833333333333336},{"$f":"Quarterly!AZ240-Quarterly!AZ239","v":1.0666666666666629},{"$f":"Quarterly!BA240-Quarterly!BA239","v":2.8999999999999986},{"$f":"Quarterly!BB240-Quarterly!BB239","v":0.63333333333333997},{"$f":"((Quarterly!BC240/Quarterly!BC239)^4)-1","v":-9.0384696247898466E-2},{"$f":"((Quarterly!BD240/Quarterly!BD239)^4)-1","v":-7.9857332980564077E-3},{"$f":"((Quarterly!BE240/Quarterly!BE239)^4)-1","v":7.9937116833562749E-2},{"$f":"((Quarterly!BF240/Quarterly!BF239)^4)-1","v":4.7777084410377979E-2},{"$f":"((Quarterly!BG240/Quarterly!BG239)^4)-1","v":8.3328562755291546E-3},{"$f":"((Quarterly!BH240/Quarterly!BH239)^4)-1","v":2.375748458631266E-2},{"$f":"((Quarterly!BI240/Quarterly!BI239)^4)-1","v":3.9111452200527808E-2},{"$f":"((Quarterly!BJ240/Quarterly!BJ239)^4)-1","v":-9.7943401518804096E-2},{"$f":"((Quarterly!BK240/Quarterly!BK239)^4)-1","v":-0.86633442543160588},null,{"$f":"((Quarterly!BM240/Quarterly!BM239)^4)-1","v":6.0228067018934572E-2},{"$f":"((Quarterly!BN240/Quarterly!BN239)^4)-1","v":5.8882925013504117E-2},null,null,null,null,null,{"$f":"((Quarterly!BT240/Quarterly!BT239)^4)-1","v":8.2402060672858157E-2},{"$f":"Quarterly!BU240-Quarterly!BU239","v":1.2570000000000192E-2},{"$f":"Quarterly!BV240-Quarterly!BV239","v":1.6690000000000538E-2},{"$f":"((Quarterly!BW240/Quarterly!BW239)^4)-1","v":6.162925612525072E-3},{"$f":"((Quarterly!BX240/Quarterly!BX239)^4)-1","v":1.5113814550279603E-2},{"$f":"((Quarterly!BY240/Quarterly!BY239)^4)-1","v":3.5870896432356414E-2},{"$f":"((Quarterly!BZ240/Quarterly!BZ239)^4)-1","v":3.786849683171134E-2},{"$f":"((Quarterly!CA240/Quarterly!CA239)^4)-1","v":-1.6460711535225769E-2},{"$f":"((Quarterly!CB240/Quarterly!CB239)^4)-1","v":-4.7813342310769835E-2},{"$f":"((Quarterly!CC240/Quarterly!CC239)^4)-1","v":-4.9696924670390108E-2},{"$f":"((Quarterly!CD240/Quarterly!CD239)^4)-1","v":2.8068471547216811E-2},{"$f":"((Quarterly!CE240/Quarterly!CE239)^4)-1","v":0.30008463412645803},null,{"$f":"((Quarterly!CG240/Quarterly!CG239)^4)-1","v":0.6157119536427218},{"$f":"((Quarterly!CH240/Quarterly!CH239)^4)-1","v":9.2664281973978913E-2},null,{"$f":"((Quarterly!CJ240/Quarterly!CJ239)^4)-1","v":0.30008463412645803},{"$f":"((Quarterly!CK240/Quarterly!CK239)^4)-1","v":4.1011190950590359E-2},{"$f":"((Quarterly!CL240/Quarterly!CL239)^4)-1","v":-0.19979221612141551},{"$f":"((Quarterly!CM240/Quarterly!CM239)^4)-1","v":-0.14554347289136271},{"$f":"((Quarterly!CN240/Quarterly!CN239)^4)-1","v":1.9083105384036569E-2},{"$f":"((Quarterly!CO240/Quarterly!CO239)^4)-1","v":7.802841713874975E-2},{"$f":"((Quarterly!CP240/Quarterly!CP239)^4)-1","v":7.0324984305011995E-2},{"$f":"((Quarterly!CQ240/Quarterly!CQ239)^4)-1","v":6.2415043927370739E-3},{"$f":"((Quarterly!CR240/Quarterly!CR239)^4)-1","v":7.2245655409865384E-2},{"$f":"Quarterly!CS240-Quarterly!CS239","v":0.8333333333333286},{"$f":"Quarterly!CT240-Quarterly!CT239","v":-1.1333333333333258},null,null,null,null,null,{"$f":"((Quarterly!CZ240/Quarterly!CZ239)^4)-1","v":2.328204397885214E-2},{"$f":"((Quarterly!DA240/Quarterly!DA239)^4)-1","v":2.0741685212855021E-2},null,null,null,null,null,{"$f":"((Quarterly!DG240/Quarterly!DG239)^4)-1","v":5.9639017712558307E-3},{"$f":"((Quarterly!DH240-Quarterly!DH239)*60)","v":-1.9999999999998863},{"$f":"Quarterly!DI240-Quarterly!DI239","v":-0.16666666666665719},{"$f":"(Quarterly!DJ240-Quarterly!DJ239)*100","v":-16.666666666666785},{"$f":"(Quarterly!DK240-Quarterly!DK239)*100","v":-6.6666666666667318},{"$f":"((Quarterly!DL240/Quarterly!DL239)^4)-1","v":-8.4864770021595426E-3},null,null,null,{"$f":"((Quarterly!DP240/Quarterly!DP239)^4)-1","v":1.4288208055722729E-2},null,null,null,null,{"$f":"Quarterly!DU240-Quarterly!DU239","v":-0.63333333333333286},{"$f":"((Quarterly!DV240/Quarterly!DV239)^4)-1","v":-1.3321893569550491E-2},{"$f":"((Quarterly!DW240/Quarterly!DW239)^4)-1","v":6.6719315450685768E-2},{"$f":"((Quarterly!DX240/Quarterly!DX239)^4)-1","v":2.0848145194523049E-2},{"$f":"((Quarterly!DY240/Quarterly!DY239)^4)-1","v":7.2657037862896345E-2},{"$f":"((Quarterly!DZ240/Quarterly!DZ239)^4)-1","v":4.6218036992800027E-3},{"$f":"((Quarterly!EA240/Quarterly!EA239)^4)-1","v":2.9076471819020622E-3},{"$f":"((Quarterly!EB240/Quarterly!EB239)^4)-1","v":8.1416229788540129E-3},{"$f":"((Quarterly!EC240/Quarterly!EC239)^4)-1","v":0.17778211882540962},null,null,null,null,null,{"$f":"((Quarterly!EI240/Quarterly!EI239)^4)-1","v":2.6762192198861889E-2},{"$f":"((Quarterly!EJ240/Quarterly!EJ239)^4)-1","v":4.0244680554992751E-2},{"$f":"((Quarterly!EK240/Quarterly!EK239)^4)-1","v":3.6245718713763919E-2},null,null,null,null,null,{"$f":"((Quarterly!EQ240/Quarterly!EQ239)^4)-1","v":7.6071203486844263E-2},null,null,null,null,null,null,null,{"$f":"(Quarterly!EY240-Quarterly!EY239)*100","v":0},{"$f":"(Quarterly!EZ240-Quarterly!EZ239)*100","v":1.3333333333333308},{"$f":"(Quarterly!FA240-Quarterly!FA239)*100","v":-33.666666666666643},{"$f":"(Quarterly!FB240-Quarterly!FB239)*100","v":-63.999999999999879},{"$f":"+FB240-FA240","v":-30.333333333333236},{"$f":"(Quarterly!FD240-Quarterly!FD239)*100","v":-14.666666666666694},{"$f":"(Quarterly!FE240-Quarterly!FE239)*100","v":-3.0000000000000027},{"$f":"(Quarterly!FF240-Quarterly!FF239)*100","v":-1.0000000000000009},{"$f":"(Quarterly!FG240-Quarterly!FG239)*100","v":-6.3333333333333242},{"$f":"(Quarterly!FH240-Quarterly!FH239)*100","v":-12.999999999999989},{"$f":"(Quarterly!FI240-Quarterly!FI239)*100","v":-16.666666666666675},{"$f":"+FI240-FF240","v":-15.666666666666675},null,null,null,null,null,{"$f":"((Quarterly!FP240/Quarterly!FP239)^4)-1","v":-0.22728896086570871},{"$f":"((Quarterly!FQ240/Quarterly!FQ239)^4)-1","v":-7.0942790281305346E-3},{"$f":"((Quarterly!FR240/Quarterly!FR239)^4)-1","v":1.0460472499619122E-2},{"$f":"((Quarterly!FS240/Quarterly!FS239)^4)-1","v":0.10146767964101167},{"$f":"((Quarterly!FT240/Quarterly!FT239)^4)-1","v":-9.2147995315742248E-2},{"$f":"((Quarterly!FU240/Quarterly!FU239)^4)-1","v":-0.14783142543419692},{"$f":"((Quarterly!FV240/Quarterly!FV239)^4)-1","v":0.13912708806255769},{"$f":"((Quarterly!FW240/Quarterly!FW239)^4)-1","v":0.25147378644705065},{"$f":"((Quarterly!FX240/Quarterly!FX239)^4)-1","v":0.28058598070177809},null,null,null,null,null,{"$f":"((Quarterly!GD240/Quarterly!GD239)^4)-1","v":2.5058912971483567},{"$f":"((Quarterly!GE240/Quarterly!GE239)^4)-1","v":2.3311059903952573},{"$f":"((Quarterly!GF240/Quarterly!GF239)^4)-1","v":0.91045503201778999},{"$f":"((Quarterly!GG240/Quarterly!GG239)^4)-1","v":0.49501614460903598},{"$f":"((Quarterly!GH240/Quarterly!GH239)^4)-1","v":0.2310595352080782},{"$f":"((Quarterly!GI240/Quarterly!GI239)^4)-1","v":3.1396432620385228},{"$f":"((Quarterly!GJ240/Quarterly!GJ239)^4)-1","v":0.60538709553658054},{"$f":"((Quarterly!GK240/Quarterly!GK239)^4)-1","v":0.59566668160798342},{"$f":"((Quarterly!GL240/Quarterly!GL239)^4)-1","v":0.12112317159983554}]
["16'Q3",{"$f":"((Quarterly!B241/Quarterly!B240)^4)-1","v":4.1874120499616696E-2},{"$f":"((Quarterly!C241/Quarterly!C240)^4)-1","v":2.7802128274626803E-2},{"$f":"((Quarterly!D241/Quarterly!D240)^4)-1","v":2.6344620460594603E-2},{"$f":"((Quarterly!E241/Quarterly!E240)^4)-1","v":2.8154588247523149E-2},{"$f":"((Quarterly!F241/Quarterly!F240)^4)-1","v":9.3814878549795644E-2},{"$f":"((Quarterly!G241/Quarterly!G240)^4)-1","v":5.8270812060823296E-4},{"$f":"((Quarterly!H241/Quarterly!H240)^4)-1","v":2.6532049338631625E-2},{"$f":"((Quarterly!I241/Quarterly!I240)^4)-1","v":3.4299731149652013E-2},{"$f":"((Quarterly!J241/Quarterly!J240)^4)-1","v":8.5248621957412229E-3},{"$f":"((Quarterly!K241/Quarterly!K240)^4)-1","v":-4.5481224303517864E-2},{"$f":"((Quarterly!L241-Quarterly!L240))","v":5.3950000000000014},{"$f":"((Quarterly!M241/Quarterly!M240)^4)-1","v":2.6576855562894464E-2},{"$f":"((Quarterly!N241/Quarterly!N240)^4)-1","v":6.3524461828790901E-2},{"$f":"((Quarterly!O241/Quarterly!O240)^4)-1","v":-0.10150701658195238},{"$f":"((Quarterly!P241/Quarterly!P240)^4)-1","v":4.9866278361199168E-3},{"$f":"((Quarterly!Q241/Quarterly!Q240)^4)-1","v":-5.3968741177745305E-2},null,null,null,null,null,{"$f":"((Quarterly!W241/Quarterly!W240)^4)-1","v":-1.0553997379127322E-2},{"$f":"((Quarterly!X241/Quarterly!X240)^4)-1","v":5.2968323842519371E-3},{"$f":"((Quarterly!Y241/Quarterly!Y240)^4)-1","v":4.0292601109029436E-2},{"$f":"Quarterly!Z241-Quarterly!Z240","v":1.0000000000000009E-2},{"$f":"((Quarterly!AA241/Quarterly!AA240)^4)-1","v":0.10122796475671847},{"$f":"((Quarterly!AB241/Quarterly!AB240)^4)-1","v":0.25441573909355619},{"$f":"Quarterly!AC241-Quarterly!AC240","v":-11.399999999999999},{"$f":"Quarterly!AD241-Quarterly!AD240","v":5.8},{"$f":"(Quarterly!AE241-Quarterly!AE240)*100","v":-24.000000000000021},{"$f":"(Quarterly!AF241-Quarterly!AF240)*100","v":1.0000000000000009},{"$f":"(Quarterly!AG241-Quarterly!AG240)*100","v":-17.999999999999993},{"$f":"((Quarterly!AH241/Quarterly!AH240)^4)-1","v":0.17058228482511462},{"$f":"((Quarterly!AI241/Quarterly!AI240)^4)-1","v":0.12855123487274023},{"$f":"((Quarterly!AJ241/Quarterly!AJ240)^4)-1","v":1.912296479146991E-2},{"$f":"((Quarterly!AK241/Quarterly!AK240)^4)-1","v":1.9168784001677652E-2},{"$f":"((Quarterly!AL241/Quarterly!AL240)^4)-1","v":1.918410590237607E-2},{"$f":"((Quarterly!AM241/Quarterly!AM240)^4)-1","v":7.8376730684777129E-3},{"$f":"((Quarterly!AN241/Quarterly!AN240)^4)-1","v":1.5262701979812388E-3},{"$f":"((Quarterly!AO241/Quarterly!AO240)^4)-1","v":1.5339406130762567E-2},{"$f":"(Quarterly!AP241-Quarterly!AP240)*100","v":-1.0000000000000453},{"$f":"Quarterly!AQ241-Quarterly!AQ240","v":-0.60000000000000853},{"$f":"Quarterly!AR241-Quarterly!AR240","v":-2.3333333333333357},{"$f":"Quarterly!AS241-Quarterly!AS240","v":2.1666666666666643},{"$f":"Quarterly!AT241-Quarterly!AT240","v":-0.46666666666667567},{"$f":"Quarterly!AU241-Quarterly!AU240","v":-0.5},{"$f":"Quarterly!AV241-Quarterly!AV240","v":-1.3333333333333286},{"$f":"Quarterly!AW241-Quarterly!AW240","v":3},{"$f":"Quarterly!AX241-Quarterly!AX240","v":-2.4666666666666686},{"$f":"Quarterly!AY241-Quarterly!AY240","v":-7.3333333333333357},{"$f":"Quarterly!AZ241-Quarterly!AZ240","v":-1.2333333333333343},{"$f":"Quarterly!BA241-Quarterly!BA240","v":-1.8666666666666671},{"$f":"Quarterly!BB241-Quarterly!BB240","v":-0.66666666666667851},{"$f":"((Quarterly!BC241/Quarterly!BC240)^4)-1","v":9.9365848260322132E-2},{"$f":"((Quarterly!BD241/Quarterly!BD240)^4)-1","v":-5.4181949037642729E-3},{"$f":"((Quarterly!BE241/Quarterly!BE240)^4)-1","v":3.1216167866198408E-2},{"$f":"((Quarterly!BF241/Quarterly!BF240)^4)-1","v":2.5416282498167853E-2},{"$f":"((Quarterly!BG241/Quarterly!BG240)^4)-1","v":2.4872809799354023E-2},{"$f":"((Quarterly!BH241/Quarterly!BH240)^4)-1","v":7.3118802881599887E-3},{"$f":"((Quarterly!BI241/Quarterly!BI240)^4)-1","v":5.136012514095345E-4},{"$f":"((Quarterly!BJ241/Quarterly!BJ240)^4)-1","v":-4.6470430431595267E-2},{"$f":"((Quarterly!BK241/Quarterly!BK240)^4)-1","v":7.9170596486467293E-2},null,{"$f":"((Quarterly!BM241/Quarterly!BM240)^4)-1","v":3.758387688964393E-2},{"$f":"((Quarterly!BN241/Quarterly!BN240)^4)-1","v":3.7243368890660378E-2},null,null,null,null,null,{"$f":"((Quarterly!BT241/Quarterly!BT240)^4)-1","v":9.6748355830038379E-2},{"$f":"Quarterly!BU241-Quarterly!BU240","v":4.9699999999999633E-2},{"$f":"Quarterly!BV241-Quarterly!BV240","v":6.8309999999998539E-2},{"$f":"((Quarterly!BW241/Quarterly!BW240)^4)-1","v":-1.746314332320742E-2},{"$f":"((Quarterly!BX241/Quarterly!BX240)^4)-1","v":-2.7356599885061228E-2},{"$f":"((Quarterly!BY241/Quarterly!BY240)^4)-1","v":0.1316808056963823},{"$f":"((Quarterly!BZ241/Quarterly!BZ240)^4)-1","v":1.8519185486746581E-2},{"$f":"((Quarterly!CA241/Quarterly!CA240)^4)-1","v":6.5283766014235578E-2},{"$f":"((Quarterly!CB241/Quarterly!CB240)^4)-1","v":7.2570663372817812E-2},{"$f":"((Quarterly!CC241/Quarterly!CC240)^4)-1","v":5.6036054692316872E-2},{"$f":"((Quarterly!CD241/Quarterly!CD240)^4)-1","v":-2.730214214718063E-2},{"$f":"((Quarterly!CE241/Quarterly!CE240)^4)-1","v":0.20114296596852066},null,{"$f":"((Quarterly!CG241/Quarterly!CG240)^4)-1","v":-0.13115414462070518},{"$f":"((Quarterly!CH241/Quarterly!CH240)^4)-1","v":-6.8755184758242494E-2},null,{"$f":"((Quarterly!CJ241/Quarterly!CJ240)^4)-1","v":0.20114296596852066},{"$f":"((Quarterly!CK241/Quarterly!CK240)^4)-1","v":2.9972598727113109E-2},{"$f":"((Quarterly!CL241/Quarterly!CL240)^4)-1","v":-0.31614288992910555},{"$f":"((Quarterly!CM241/Quarterly!CM240)^4)-1","v":2.3115294094456118E-2},{"$f":"((Quarterly!CN241/Quarterly!CN240)^4)-1","v":6.997912845244203E-3},{"$f":"((Quarterly!CO241/Quarterly!CO240)^4)-1","v":9.3719540800837109E-2},{"$f":"((Quarterly!CP241/Quarterly!CP240)^4)-1","v":6.4793090891936744E-2},{"$f":"((Quarterly!CQ241/Quarterly!CQ240)^4)-1","v":7.3936150129738643E-3},{"$f":"((Quarterly!CR241/Quarterly!CR240)^4)-1","v":6.5431760906317971E-2},{"$f":"Quarterly!CS241-Quarterly!CS240","v":-2.0666666666666629},{"$f":"Quarterly!CT241-Quarterly!CT240","v":5.8333333333333428},null,null,null,null,null,{"$f":"((Quarterly!CZ241/Quarterly!CZ240)^4)-1","v":1.7836764529735483E-2},{"$f":"((Quarterly!DA241/Quarterly!DA240)^4)-1","v":2.0508610351442025E-2},null,null,null,null,null,{"$f":"((Quarterly!DG241/Quarterly!DG240)^4)-1","v":2.3979750755862783E-2},{"$f":"((Quarterly!DH241-Quarterly!DH240)*60)","v":1.9999999999998863},{"$f":"Quarterly!DI241-Quarterly!DI240","v":0.13333333333332575},{"$f":"(Quarterly!DJ241-Quarterly!DJ240)*100","v":3.3333333333333215},{"$f":"(Quarterly!DK241-Quarterly!DK240)*100","v":3.3333333333334103},{"$f":"((Quarterly!DL241/Quarterly!DL240)^4)-1","v":-7.5576605665750307E-4},null,null,null,{"$f":"((Quarterly!DP241/Quarterly!DP240)^4)-1","v":1.9696419161988166E-2},null,null,null,null,{"$f":"Quarterly!DU241-Quarterly!DU240","v":0.23333333333333428},{"$f":"((Quarterly!DV241/Quarterly!DV240)^4)-1","v":6.1791545836717976E-3},{"$f":"((Quarterly!DW241/Quarterly!DW240)^4)-1","v":5.8402378294481139E-2},{"$f":"((Quarterly!DX241/Quarterly!DX240)^4)-1","v":2.8497769680774665E-2},{"$f":"((Quarterly!DY241/Quarterly!DY240)^4)-1","v":2.0249751134746363E-2},{"$f":"((Quarterly!DZ241/Quarterly!DZ240)^4)-1","v":3.1200030436112414E-2},{"$f":"((Quarterly!EA241/Quarterly!EA240)^4)-1","v":2.3959004713844934E-2},{"$f":"((Quarterly!EB241/Quarterly!EB240)^4)-1","v":4.6140004016769876E-2},{"$f":"((Quarterly!EC241/Quarterly!EC240)^4)-1","v":0.12691234566834075},null,null,null,null,null,{"$f":"((Quarterly!EI241/Quarterly!EI240)^4)-1","v":3.3354551159271884E-2},{"$f":"((Quarterly!EJ241/Quarterly!EJ240)^4)-1","v":3.505543162055913E-2},{"$f":"((Quarterly!EK241/Quarterly!EK240)^4)-1","v":3.0756385085986881E-2},null,null,null,null,null,{"$f":"((Quarterly!EQ241/Quarterly!EQ240)^4)-1","v":3.7191786919487102E-2},null,null,null,null,null,null,null,{"$f":"(Quarterly!EY241-Quarterly!EY240)*100","v":0},{"$f":"(Quarterly!EZ241-Quarterly!EZ240)*100","v":2.3333333333333317},{"$f":"(Quarterly!FA241-Quarterly!FA240)*100","v":-25.333333333333343},{"$f":"(Quarterly!FB241-Quarterly!FB240)*100","v":-41.000000000000014},{"$f":"+FB241-FA241","v":-15.666666666666671},{"$f":"(Quarterly!FD241-Quarterly!FD240)*100","v":-14.66666666666665},{"$f":"(Quarterly!FE241-Quarterly!FE240)*100","v":3.9999999999999982},{"$f":"(Quarterly!FF241-Quarterly!FF240)*100","v":-1.0000000000000009},{"$f":"(Quarterly!FG241-Quarterly!FG240)*100","v":-4.6666666666666634},{"$f":"(Quarterly!FH241-Quarterly!FH240)*100","v":-11.66666666666667},{"$f":"(Quarterly!FI241-Quarterly!FI240)*100","v":-18.999999999999993},{"$f":"+FI241-FF241","v":-17.999999999999993},null,null,null,null,null,{"$f":"((Quarterly!FP241/Quarterly!FP240)^4)-1","v":5.285707280235763E-2},{"$f":"((Quarterly!FQ241/Quarterly!FQ240)^4)-1","v":8.4945644714972568E-2},{"$f":"((Quarterly!FR241/Quarterly!FR240)^4)-1","v":0.16103120502667934},{"$f":"((Quarterly!FS241/Quarterly!FS240)^4)-1","v":-4.7520752852929671E-2},{"$f":"((Quarterly!FT241/Quarterly!FT240)^4)-1","v":3.7641309052625971E-2},{"$f":"((Quarterly!FU241/Quarterly!FU240)^4)-1","v":3.5867335844935511E-2},{"$f":"((Quarterly!FV241/Quarterly!FV240)^4)-1","v":5.20183447591549E-3},{"$f":"((Quarterly!FW241/Quarterly!FW240)^4)-1","v":0.71200570165510046},{"$f":"((Quarterly!FX241/Quarterly!FX240)^4)-1","v":-5.692953669304468E-2},null,null,null,null,null,{"$f":"((Quarterly!GD241/Quarterly!GD240)^4)-1","v":-4.8143884278130877E-2},{"$f":"((Quarterly!GE241/Quarterly!GE240)^4)-1","v":2.3339860854209915E-2},{"$f":"((Quarterly!GF241/Quarterly!GF240)^4)-1","v":-5.4423931846884654E-2},{"$f":"((Quarterly!GG241/Quarterly!GG240)^4)-1","v":0.15970433234678616},{"$f":"((Quarterly!GH241/Quarterly!GH240)^4)-1","v":1.1187161906135898},{"$f":"((Quarterly!GI241/Quarterly!GI240)^4)-1","v":-0.11147197186336621},{"$f":"((Quarterly!GJ241/Quarterly!GJ240)^4)-1","v":1.4182376712009774},{"$f":"((Quarterly!GK241/Quarterly!GK240)^4)-1","v":-0.23639742077677628},{"$f":"((Quarterly!GL241/Quarterly!GL240)^4)-1","v":0.14790071754037037}]
["16'Q4",{"$f":"((Quarterly!B242/Quarterly!B241)^4)-1","v":3.8212825362096581E-2},{"$f":"((Quarterly!C242/Quarterly!C241)^4)-1","v":1.7583199087633616E-2},{"$f":"((Quarterly!D242/Quarterly!D241)^4)-1","v":6.9249926966230557E-3},{"$f":"((Quarterly!E242/Quarterly!E241)^4)-1","v":2.9235467087545874E-2},{"$f":"((Quarterly!F242/Quarterly!F241)^4)-1","v":9.2284810266119566E-2},{"$f":"((Quarterly!G242/Quarterly!G241)^4)-1","v":2.4528410644337528E-2},{"$f":"((Quarterly!H242/Quarterly!H241)^4)-1","v":2.0792977587377415E-2},{"$f":"((Quarterly!I242/Quarterly!I241)^4)-1","v":1.5674722151628462E-3},{"$f":"((Quarterly!J242/Quarterly!J241)^4)-1","v":7.5970139987400209E-3},{"$f":"((Quarterly!K242/Quarterly!K241)^4)-1","v":7.0894919243913668E-2},{"$f":"((Quarterly!L242-Quarterly!L241))","v":45.461999999999996},{"$f":"((Quarterly!M242/Quarterly!M241)^4)-1","v":8.0617016338429881E-2},{"$f":"((Quarterly!N242/Quarterly!N241)^4)-1","v":-3.8387277912778628E-2},{"$f":"((Quarterly!O242/Quarterly!O241)^4)-1","v":0.64437247333927039},{"$f":"((Quarterly!P242/Quarterly!P241)^4)-1","v":1.7225288481634848E-3},{"$f":"((Quarterly!Q242/Quarterly!Q241)^4)-1","v":0.22222635740190944},null,null,null,null,null,{"$f":"((Quarterly!W242/Quarterly!W241)^4)-1","v":1.0666572355814585E-2},{"$f":"((Quarterly!X242/Quarterly!X241)^4)-1","v":-1.7586278446505288E-3},{"$f":"((Quarterly!Y242/Quarterly!Y241)^4)-1","v":5.4024579661170247E-2},{"$f":"Quarterly!Z242-Quarterly!Z241","v":-1.0000000000000009E-2},{"$f":"((Quarterly!AA242/Quarterly!AA241)^4)-1","v":0.2439909014330639},{"$f":"((Quarterly!AB242/Quarterly!AB241)^4)-1","v":0.18982758927038179},{"$f":"Quarterly!AC242-Quarterly!AC241","v":-13.200000000000003},{"$f":"Quarterly!AD242-Quarterly!AD241","v":-4.4000000000000004},{"$f":"(Quarterly!AE242-Quarterly!AE241)*100","v":-13.999999999999968},{"$f":"(Quarterly!AF242-Quarterly!AF241)*100","v":-1.0000000000000009},{"$f":"(Quarterly!AG242-Quarterly!AG241)*100","v":-1.0000000000000009},{"$f":"((Quarterly!AH242/Quarterly!AH241)^4)-1","v":7.136441788655068E-2},{"$f":"((Quarterly!AI242/Quarterly!AI241)^4)-1","v":3.1511336793415001E-3},{"$f":"((Quarterly!AJ242/Quarterly!AJ241)^4)-1","v":1.5841276017290573E-2},{"$f":"((Quarterly!AK242/Quarterly!AK241)^4)-1","v":1.9077364096520943E-2},{"$f":"((Quarterly!AL242/Quarterly!AL241)^4)-1","v":1.9092540145263959E-2},{"$f":"((Quarterly!AM242/Quarterly!AM241)^4)-1","v":6.9551258771174407E-3},{"$f":"((Quarterly!AN242/Quarterly!AN241)^4)-1","v":1.7861601866773658E-2},{"$f":"((Quarterly!AO242/Quarterly!AO241)^4)-1","v":2.4924107064788981E-2},{"$f":"(Quarterly!AP242-Quarterly!AP241)*100","v":-1.9999999999999796},{"$f":"Quarterly!AQ242-Quarterly!AQ241","v":2.0333333333333314},{"$f":"Quarterly!AR242-Quarterly!AR241","v":0.1666666666666714},{"$f":"Quarterly!AS242-Quarterly!AS241","v":-2},{"$f":"Quarterly!AT242-Quarterly!AT241","v":3.5333333333333385},{"$f":"Quarterly!AU242-Quarterly!AU241","v":1.1666666666666643},{"$f":"Quarterly!AV242-Quarterly!AV241","v":1.6666666666666643},{"$f":"Quarterly!AW242-Quarterly!AW241","v":-1.5},{"$f":"Quarterly!AX242-Quarterly!AX241","v":1.43333333333333},{"$f":"Quarterly!AY242-Quarterly!AY241","v":4.5},{"$f":"Quarterly!AZ242-Quarterly!AZ241","v":4.0666666666666629},{"$f":"Quarterly!BA242-Quarterly!BA241","v":2.6333333333333329},{"$f":"Quarterly!BB242-Quarterly!BB241","v":2.9666666666666757},{"$f":"((Quarterly!BC242/Quarterly!BC241)^4)-1","v":-2.4149370155889249E-3},{"$f":"((Quarterly!BD242/Quarterly!BD241)^4)-1","v":1.9798180075623728E-2},{"$f":"((Quarterly!BE242/Quarterly!BE241)^4)-1","v":-6.1094236866150786E-2},{"$f":"((Quarterly!BF242/Quarterly!BF241)^4)-1","v":-4.5054118497144136E-2},{"$f":"((Quarterly!BG242/Quarterly!BG241)^4)-1","v":1.2547544261088506E-2},{"$f":"((Quarterly!BH242/Quarterly!BH241)^4)-1","v":-7.3322852898235591E-2},{"$f":"((Quarterly!BI242/Quarterly!BI241)^4)-1","v":-5.6873482807206832E-2},{"$f":"((Quarterly!BJ242/Quarterly!BJ241)^4)-1","v":-1.6079563282760834E-2},{"$f":"((Quarterly!BK242/Quarterly!BK241)^4)-1","v":-7.3362447739244385E-2},null,{"$f":"((Quarterly!BM242/Quarterly!BM241)^4)-1","v":6.2474626749647211E-2},{"$f":"((Quarterly!BN242/Quarterly!BN241)^4)-1","v":6.7999010235891832E-2},null,null,null,null,null,{"$f":"((Quarterly!BT242/Quarterly!BT241)^4)-1","v":5.4685061703974025E-2},{"$f":"Quarterly!BU242-Quarterly!BU241","v":7.1199999999999264E-2},{"$f":"Quarterly!BV242-Quarterly!BV241","v":0.12213000000000029},{"$f":"((Quarterly!BW242/Quarterly!BW241)^4)-1","v":1.9021964153248305E-2},{"$f":"((Quarterly!BX242/Quarterly!BX241)^4)-1","v":0.39006308646386367},{"$f":"((Quarterly!BY242/Quarterly!BY241)^4)-1","v":0.1887348777410176},{"$f":"((Quarterly!BZ242/Quarterly!BZ241)^4)-1","v":8.2150138920889404E-2},{"$f":"((Quarterly!CA242/Quarterly!CA241)^4)-1","v":6.9351153136049559E-2},{"$f":"((Quarterly!CB242/Quarterly!CB241)^4)-1","v":0.34862530569716021},{"$f":"((Quarterly!CC242/Quarterly!CC241)^4)-1","v":0.14637383871125986},{"$f":"((Quarterly!CD242/Quarterly!CD241)^4)-1","v":0.18998469745465663},{"$f":"((Quarterly!CE242/Quarterly!CE241)^4)-1","v":-0.12926893597160172},null,{"$f":"((Quarterly!CG242/Quarterly!CG241)^4)-1","v":-0.35567359074660876},{"$f":"((Quarterly!CH242/Quarterly!CH241)^4)-1","v":0.12979374577894842},null,{"$f":"((Quarterly!CJ242/Quarterly!CJ241)^4)-1","v":-0.12926893597160172},{"$f":"((Quarterly!CK242/Quarterly!CK241)^4)-1","v":-5.8218592645242762E-4},{"$f":"((Quarterly!CL242/Quarterly!CL241)^4)-1","v":-0.67527426236847288},{"$f":"((Quarterly!CM242/Quarterly!CM241)^4)-1","v":0.44506259999133069},{"$f":"((Quarterly!CN242/Quarterly!CN241)^4)-1","v":-1.8329578570567051E-2},{"$f":"((Quarterly!CO242/Quarterly!CO241)^4)-1","v":7.4925630550561451E-2},{"$f":"((Quarterly!CP242/Quarterly!CP241)^4)-1","v":7.04368701602196E-2},{"$f":"((Quarterly!CQ242/Quarterly!CQ241)^4)-1","v":7.6824852724670656E-3},{"$f":"((Quarterly!CR242/Quarterly!CR241)^4)-1","v":7.1211932952622181E-2},{"$f":"Quarterly!CS242-Quarterly!CS241","v":2.7333333333333343},{"$f":"Quarterly!CT242-Quarterly!CT241","v":7.1666666666666572},null,null,null,null,null,{"$f":"((Quarterly!CZ242/Quarterly!CZ241)^4)-1","v":3.0403292148365679E-2},{"$f":"((Quarterly!DA242/Quarterly!DA241)^4)-1","v":2.0491254319327856E-2},null,null,null,null,null,{"$f":"((Quarterly!DG242/Quarterly!DG241)^4)-1","v":1.4251556926435649E-2},{"$f":"((Quarterly!DH242-Quarterly!DH241)*60)","v":-1.9999999999998863},{"$f":"Quarterly!DI242-Quarterly!DI241","v":-0.13333333333332575},{"$f":"(Quarterly!DJ242-Quarterly!DJ241)*100","v":-36.666666666666536},{"$f":"(Quarterly!DK242-Quarterly!DK241)*100","v":-20.000000000000107},{"$f":"((Quarterly!DL242/Quarterly!DL241)^4)-1","v":-4.0983552667054335E-3},null,null,null,{"$f":"((Quarterly!DP242/Quarterly!DP241)^4)-1","v":1.4167730764140352E-2},null,null,null,null,{"$f":"Quarterly!DU242-Quarterly!DU241","v":-0.66666666666666785},{"$f":"((Quarterly!DV242/Quarterly!DV241)^4)-1","v":3.1228050955983688E-2},{"$f":"((Quarterly!DW242/Quarterly!DW241)^4)-1","v":6.8241282088561395E-3},{"$f":"((Quarterly!DX242/Quarterly!DX241)^4)-1","v":4.4380048671799344E-2},{"$f":"((Quarterly!DY242/Quarterly!DY241)^4)-1","v":2.7050772410808221E-3},{"$f":"((Quarterly!DZ242/Quarterly!DZ241)^4)-1","v":5.8219117226657735E-2},{"$f":"((Quarterly!EA242/Quarterly!EA241)^4)-1","v":8.020708017258471E-2},{"$f":"((Quarterly!EB242/Quarterly!EB241)^4)-1","v":1.4495435187606542E-2},{"$f":"((Quarterly!EC242/Quarterly!EC241)^4)-1","v":-7.0955461876353709E-2},null,null,null,null,null,{"$f":"((Quarterly!EI242/Quarterly!EI241)^4)-1","v":3.6860515458202459E-2},{"$f":"((Quarterly!EJ242/Quarterly!EJ241)^4)-1","v":4.1543931435399806E-2},{"$f":"((Quarterly!EK242/Quarterly!EK241)^4)-1","v":3.6014365695067774E-2},null,null,null,null,null,{"$f":"((Quarterly!EQ242/Quarterly!EQ241)^4)-1","v":0},null,null,null,null,null,null,null,{"$f":"(Quarterly!EY242-Quarterly!EY241)*100","v":4.6666666666666856},{"$f":"(Quarterly!EZ242-Quarterly!EZ241)*100","v":5.3333333333333339},{"$f":"(Quarterly!FA242-Quarterly!FA241)*100","v":47.333333333333357},{"$f":"(Quarterly!FB242-Quarterly!FB241)*100","v":38.333333333333286},{"$f":"+FB242-FA242","v":-9.0000000000000711},{"$f":"(Quarterly!FD242-Quarterly!FD241)*100","v":36.666666666666714},{"$f":"(Quarterly!FE242-Quarterly!FE241)*100","v":13.333333333333336},{"$f":"(Quarterly!FF242-Quarterly!FF241)*100","v":20.000000000000007},{"$f":"(Quarterly!FG242-Quarterly!FG241)*100","v":27.999999999999993},{"$f":"(Quarterly!FH242-Quarterly!FH241)*100","v":48.333333333333343},{"$f":"(Quarterly!FI242-Quarterly!FI241)*100","v":56.666666666666707},{"$f":"+FI242-FF242","v":36.6666666666667},null,null,null,null,null,{"$f":"((Quarterly!FP242/Quarterly!FP241)^4)-1","v":9.1440214065030334E-2},{"$f":"((Quarterly!FQ242/Quarterly!FQ241)^4)-1","v":0.10307033540006261},{"$f":"((Quarterly!FR242/Quarterly!FR241)^4)-1","v":0.2361061369715407},{"$f":"((Quarterly!FS242/Quarterly!FS241)^4)-1","v":-0.12821570431235441},{"$f":"((Quarterly!FT242/Quarterly!FT241)^4)-1","v":0.13666131957502969},{"$f":"((Quarterly!FU242/Quarterly!FU241)^4)-1","v":0.15878770610932724},{"$f":"((Quarterly!FV242/Quarterly!FV241)^4)-1","v":0.10884568829633978},{"$f":"((Quarterly!FW242/Quarterly!FW241)^4)-1","v":3.4488247453573262E-2},{"$f":"((Quarterly!FX242/Quarterly!FX241)^4)-1","v":8.3262720471427798E-2},null,null,null,null,null,{"$f":"((Quarterly!GD242/Quarterly!GD241)^4)-1","v":0.44069807660886418},{"$f":"((Quarterly!GE242/Quarterly!GE241)^4)-1","v":0.33106108905076104},{"$f":"((Quarterly!GF242/Quarterly!GF241)^4)-1","v":3.7313799010589621E-2},{"$f":"((Quarterly!GG242/Quarterly!GG241)^4)-1","v":0.14922967145968258},{"$f":"((Quarterly!GH242/Quarterly!GH241)^4)-1","v":-0.51078086384222132},{"$f":"((Quarterly!GI242/Quarterly!GI241)^4)-1","v":-0.5126869507201498},{"$f":"((Quarterly!GJ242/Quarterly!GJ241)^4)-1","v":0.67261323152793806},{"$f":"((Quarterly!GK242/Quarterly!GK241)^4)-1","v":0.31753585548064156},{"$f":"((Quarterly!GL242/Quarterly!GL241)^4)-1","v":-8.1981411171969443E-2}]
["17'Q1",{"$f":"((Quarterly!B243/Quarterly!B242)^4)-1","v":3.2584482603521314E-2},{"$f":"((Quarterly!C243/Quarterly!C242)^4)-1","v":1.2357301364702256E-2},{"$f":"((Quarterly!D243/Quarterly!D242)^4)-1","v":2.7343386351854182E-2},{"$f":"((Quarterly!E243/Quarterly!E242)^4)-1","v":1.9244976663898461E-2},{"$f":"((Quarterly!F243/Quarterly!F242)^4)-1","v":-1.2939747598615936E-3},{"$f":"((Quarterly!G243/Quarterly!G242)^4)-1","v":1.1046042012372359E-2},{"$f":"((Quarterly!H243/Quarterly!H242)^4)-1","v":2.5179974643830372E-2},{"$f":"((Quarterly!I243/Quarterly!I242)^4)-1","v":7.1552023270637033E-2},{"$f":"((Quarterly!J243/Quarterly!J242)^4)-1","v":5.2570879283703631E-2},{"$f":"((Quarterly!K243/Quarterly!K242)^4)-1","v":0.11111156696343505},{"$f":"((Quarterly!L243-Quarterly!L242))","v":-61.887},{"$f":"((Quarterly!M243/Quarterly!M242)^4)-1","v":4.2843843366410894E-2},{"$f":"((Quarterly!N243/Quarterly!N242)^4)-1","v":7.3318196831654303E-2},{"$f":"((Quarterly!O243/Quarterly!O242)^4)-1","v":-5.4992170510154592E-2},{"$f":"((Quarterly!P243/Quarterly!P242)^4)-1","v":-6.2681642515460823E-3},{"$f":"((Quarterly!Q243/Quarterly!Q242)^4)-1","v":-0.30118102687426218},null,null,null,null,null,{"$f":"((Quarterly!W243/Quarterly!W242)^4)-1","v":1.5989023619063181E-2},{"$f":"((Quarterly!X243/Quarterly!X242)^4)-1","v":3.5257788647937716E-3},{"$f":"((Quarterly!Y243/Quarterly!Y242)^4)-1","v":-9.9400399109603743E-3},{"$f":"Quarterly!Z243-Quarterly!Z242","v":-4.0000000000000036E-2},{"$f":"((Quarterly!AA243/Quarterly!AA242)^4)-1","v":5.275992482742442E-2},{"$f":"((Quarterly!AB243/Quarterly!AB242)^4)-1","v":-9.8260654885230614E-2},{"$f":"Quarterly!AC243-Quarterly!AC242","v":31.200000000000003},{"$f":"Quarterly!AD243-Quarterly!AD242","v":3},{"$f":"(Quarterly!AE243-Quarterly!AE242)*100","v":-16.000000000000014},{"$f":"(Quarterly!AF243-Quarterly!AF242)*100","v":-4.0000000000000036},{"$f":"(Quarterly!AG243-Quarterly!AG242)*100","v":-2.0000000000000018},{"$f":"((Quarterly!AH243/Quarterly!AH242)^4)-1","v":0.20174276183044326},{"$f":"((Quarterly!AI243/Quarterly!AI242)^4)-1","v":0.15479437659006612},{"$f":"((Quarterly!AJ243/Quarterly!AJ242)^4)-1","v":2.5335245701903153E-2},{"$f":"((Quarterly!AK243/Quarterly!AK242)^4)-1","v":3.1794030439839416E-2},{"$f":"((Quarterly!AL243/Quarterly!AL242)^4)-1","v":3.5042493982330836E-2},{"$f":"((Quarterly!AM243/Quarterly!AM242)^4)-1","v":1.5418986862039796E-2},{"$f":"((Quarterly!AN243/Quarterly!AN242)^4)-1","v":2.3195298179247592E-2},{"$f":"((Quarterly!AO243/Quarterly!AO242)^4)-1","v":4.579733129211383E-2},{"$f":"(Quarterly!AP243-Quarterly!AP242)*100","v":-0.99999999999997868},{"$f":"Quarterly!AQ243-Quarterly!AQ242","v":3.7666666666666728},{"$f":"Quarterly!AR243-Quarterly!AR242","v":6.8333333333333286},{"$f":"Quarterly!AS243-Quarterly!AS242","v":-1.5},{"$f":"Quarterly!AT243-Quarterly!AT242","v":3.7333333333333414},{"$f":"Quarterly!AU243-Quarterly!AU242","v":2.6666666666666643},{"$f":"Quarterly!AV243-Quarterly!AV242","v":1.5},{"$f":"Quarterly!AW243-Quarterly!AW242","v":1.8333333333333286},{"$f":"Quarterly!AX243-Quarterly!AX242","v":8.2000000000000099},{"$f":"Quarterly!AY243-Quarterly!AY242","v":11.000000000000007},{"$f":"Quarterly!AZ243-Quarterly!AZ242","v":3.9666666666666686},{"$f":"Quarterly!BA243-Quarterly!BA242","v":1.13333333333334},{"$f":"Quarterly!BB243-Quarterly!BB242","v":0.8333333333333357},{"$f":"((Quarterly!BC243/Quarterly!BC242)^4)-1","v":7.0572971585815436E-2},{"$f":"((Quarterly!BD243/Quarterly!BD242)^4)-1","v":1.8830803336038482E-3},{"$f":"((Quarterly!BE243/Quarterly!BE242)^4)-1","v":4.2537603622254228E-2},{"$f":"((Quarterly!BF243/Quarterly!BF242)^4)-1","v":4.9113924692697708E-2},{"$f":"((Quarterly!BG243/Quarterly!BG242)^4)-1","v":1.2641870906981989E-3},{"$f":"((Quarterly!BH243/Quarterly!BH242)^4)-1","v":1.6974414320388487E-2},{"$f":"((Quarterly!BI243/Quarterly!BI242)^4)-1","v":4.7760228870678434E-2},{"$f":"((Quarterly!BJ243/Quarterly!BJ242)^4)-1","v":0.35278266977774342},{"$f":"((Quarterly!BK243/Quarterly!BK242)^4)-1","v":-0.27397500087531967},null,{"$f":"((Quarterly!BM243/Quarterly!BM242)^4)-1","v":4.2252368795001383E-2},{"$f":"((Quarterly!BN243/Quarterly!BN242)^4)-1","v":4.0655190388966034E-2},null,null,null,null,null,{"$f":"((Quarterly!BT243/Quarterly!BT242)^4)-1","v":3.9608506136375121E-2},{"$f":"Quarterly!BU243-Quarterly!BU242","v":-2.8229999999998867E-2},{"$f":"Quarterly!BV243-Quarterly!BV242","v":-4.7659999999998703E-2},{"$f":"((Quarterly!BW243/Quarterly!BW242)^4)-1","v":5.7511275278707696E-3},{"$f":"((Quarterly!BX243/Quarterly!BX242)^4)-1","v":-3.3743321272816318E-2},{"$f":"((Quarterly!BY243/Quarterly!BY242)^4)-1","v":-2.8075719257157128E-2},{"$f":"((Quarterly!BZ243/Quarterly!BZ242)^4)-1","v":9.5485037769226677E-2},{"$f":"((Quarterly!CA243/Quarterly!CA242)^4)-1","v":-0.14429166463457255},{"$f":"((Quarterly!CB243/Quarterly!CB242)^4)-1","v":0.52944994230277032},{"$f":"((Quarterly!CC243/Quarterly!CC242)^4)-1","v":0.3209713204416007},{"$f":"((Quarterly!CD243/Quarterly!CD242)^4)-1","v":0.21797115415185742},{"$f":"((Quarterly!CE243/Quarterly!CE242)^4)-1","v":0.39535774617576602},null,{"$f":"((Quarterly!CG243/Quarterly!CG242)^4)-1","v":-0.20063616155456065},{"$f":"((Quarterly!CH243/Quarterly!CH242)^4)-1","v":5.3942683566489125E-2},null,{"$f":"((Quarterly!CJ243/Quarterly!CJ242)^4)-1","v":0.39535774617576602},{"$f":"((Quarterly!CK243/Quarterly!CK242)^4)-1","v":5.5931583937395057E-2},{"$f":"((Quarterly!CL243/Quarterly!CL242)^4)-1","v":0.38139948890391229},{"$f":"((Quarterly!CM243/Quarterly!CM242)^4)-1","v":2.2570655390512062E-2},{"$f":"((Quarterly!CN243/Quarterly!CN242)^4)-1","v":2.8737841042948409E-2},{"$f":"((Quarterly!CO243/Quarterly!CO242)^4)-1","v":5.8873615138413271E-2},{"$f":"((Quarterly!CP243/Quarterly!CP242)^4)-1","v":5.416565536339002E-2},{"$f":"((Quarterly!CQ243/Quarterly!CQ242)^4)-1","v":6.1753149535273E-3},{"$f":"((Quarterly!CR243/Quarterly!CR242)^4)-1","v":4.6839388292817308E-2},{"$f":"Quarterly!CS243-Quarterly!CS242","v":4.3999999999999915},{"$f":"Quarterly!CT243-Quarterly!CT242","v":9.7000000000000171},null,null,null,null,null,{"$f":"((Quarterly!CZ243/Quarterly!CZ242)^4)-1","v":3.1474720358644515E-2},{"$f":"((Quarterly!DA243/Quarterly!DA242)^4)-1","v":2.4739681499852395E-2},null,null,null,null,null,{"$f":"((Quarterly!DG243/Quarterly!DG242)^4)-1","v":2.1357894137992606E-2},{"$f":"((Quarterly!DH243-Quarterly!DH242)*60)","v":0},{"$f":"Quarterly!DI243-Quarterly!DI242","v":0.26666666666665861},{"$f":"(Quarterly!DJ243-Quarterly!DJ242)*100","v":-16.666666666666785},{"$f":"(Quarterly!DK243-Quarterly!DK242)*100","v":-3.3333333333332327},{"$f":"((Quarterly!DL243/Quarterly!DL242)^4)-1","v":1.380320603592522E-2},null,null,null,{"$f":"((Quarterly!DP243/Quarterly!DP242)^4)-1","v":1.5111256121807193E-2},null,null,null,null,{"$f":"Quarterly!DU243-Quarterly!DU242","v":-6.666666666666643E-2},{"$f":"((Quarterly!DV243/Quarterly!DV242)^4)-1","v":2.0300890438168073E-2},{"$f":"((Quarterly!DW243/Quarterly!DW242)^4)-1","v":-7.7974594268696795E-2},{"$f":"((Quarterly!DX243/Quarterly!DX242)^4)-1","v":-6.0786203000228078E-2},{"$f":"((Quarterly!DY243/Quarterly!DY242)^4)-1","v":-8.2137623888972611E-2},{"$f":"((Quarterly!DZ243/Quarterly!DZ242)^4)-1","v":-5.3852072188136924E-2},{"$f":"((Quarterly!EA243/Quarterly!EA242)^4)-1","v":-6.4010960523161242E-2},{"$f":"((Quarterly!EB243/Quarterly!EB242)^4)-1","v":-3.2581669958282267E-2},{"$f":"((Quarterly!EC243/Quarterly!EC242)^4)-1","v":-0.11541693709438661},null,null,null,null,null,{"$f":"((Quarterly!EI243/Quarterly!EI242)^4)-1","v":2.2099847839496256E-2},{"$f":"((Quarterly!EJ243/Quarterly!EJ242)^4)-1","v":2.109580040546577E-2},{"$f":"((Quarterly!EK243/Quarterly!EK242)^4)-1","v":2.0057694847338325E-2},null,null,null,null,null,{"$f":"((Quarterly!EQ243/Quarterly!EQ242)^4)-1","v":9.2877604058566599E-2},null,null,null,null,null,null,null,{"$f":"(Quarterly!EY243-Quarterly!EY242)*100","v":24.666666666666615},{"$f":"(Quarterly!EZ243-Quarterly!EZ242)*100","v":25.000000000000007},{"$f":"(Quarterly!FA243-Quarterly!FA242)*100","v":14.999999999999947},{"$f":"(Quarterly!FB243-Quarterly!FB242)*100","v":2.0000000000000462},{"$f":"+FB243-FA243","v":-12.999999999999901},{"$f":"(Quarterly!FD243-Quarterly!FD242)*100","v":35.999999999999901},{"$f":"(Quarterly!FE243-Quarterly!FE242)*100","v":15.999999999999998},{"$f":"(Quarterly!FF243-Quarterly!FF242)*100","v":13},{"$f":"(Quarterly!FG243-Quarterly!FG242)*100","v":23.333333333333339},{"$f":"(Quarterly!FH243-Quarterly!FH242)*100","v":33.333333333333329},{"$f":"(Quarterly!FI243-Quarterly!FI242)*100","v":31.3333333333333},{"$f":"+FI243-FF243","v":18.3333333333333},null,null,null,null,null,{"$f":"((Quarterly!FP243/Quarterly!FP242)^4)-1","v":-3.403606013512539E-2},{"$f":"((Quarterly!FQ243/Quarterly!FQ242)^4)-1","v":3.2361580019142799E-2},{"$f":"((Quarterly!FR243/Quarterly!FR242)^4)-1","v":0.11020295878740116},{"$f":"((Quarterly!FS243/Quarterly!FS242)^4)-1","v":-4.5566438550838972E-2},{"$f":"((Quarterly!FT243/Quarterly!FT242)^4)-1","v":2.2809943606440619E-2},{"$f":"((Quarterly!FU243/Quarterly!FU242)^4)-1","v":2.9306424100790984E-2},{"$f":"((Quarterly!FV243/Quarterly!FV242)^4)-1","v":0.14346528435125849},{"$f":"((Quarterly!FW243/Quarterly!FW242)^4)-1","v":-0.44948237566393079},{"$f":"((Quarterly!FX243/Quarterly!FX242)^4)-1","v":1.2707736762349375E-2},null,null,null,null,null,{"$f":"((Quarterly!GD243/Quarterly!GD242)^4)-1","v":0.23190732661895352},{"$f":"((Quarterly!GE243/Quarterly!GE242)^4)-1","v":0.41937101102793384},{"$f":"((Quarterly!GF243/Quarterly!GF242)^4)-1","v":0.17640994461724446},{"$f":"((Quarterly!GG243/Quarterly!GG242)^4)-1","v":0.17160997241528153},{"$f":"((Quarterly!GH243/Quarterly!GH242)^4)-1","v":-6.0553248839347207E-2},{"$f":"((Quarterly!GI243/Quarterly!GI242)^4)-1","v":0.14990461599623783},{"$f":"((Quarterly!GJ243/Quarterly!GJ242)^4)-1","v":-0.13525025426171333},{"$f":"((Quarterly!GK243/Quarterly!GK242)^4)-1","v":-1.5416358988761369E-2},{"$f":"((Quarterly!GL243/Quarterly!GL242)^4)-1","v":-9.9966237642586275E-2}]
["17'Q2",{"$f":"((Quarterly!B244/Quarterly!B243)^4)-1","v":4.0977510960525709E-2},{"$f":"((Quarterly!C244/Quarterly!C243)^4)-1","v":3.0598330367502369E-2},{"$f":"((Quarterly!D244/Quarterly!D243)^4)-1","v":2.9504274041703749E-2},{"$f":"((Quarterly!E244/Quarterly!E243)^4)-1","v":3.2677271668628549E-2},{"$f":"((Quarterly!F244/Quarterly!F243)^4)-1","v":7.6055854874500062E-2},{"$f":"((Quarterly!G244/Quarterly!G243)^4)-1","v":4.2224666433932967E-2},{"$f":"((Quarterly!H244/Quarterly!H243)^4)-1","v":2.2974385136759423E-2},{"$f":"((Quarterly!I244/Quarterly!I243)^4)-1","v":6.6929726554298297E-2},{"$f":"((Quarterly!J244/Quarterly!J243)^4)-1","v":6.6249777192736392E-2},{"$f":"((Quarterly!K244/Quarterly!K243)^4)-1","v":-7.3252140088496787E-2},{"$f":"((Quarterly!L244-Quarterly!L243))","v":4.3260000000000005},{"$f":"((Quarterly!M244/Quarterly!M243)^4)-1","v":1.4829028366919017E-2},{"$f":"((Quarterly!N244/Quarterly!N243)^4)-1","v":3.5332772468726459E-2},{"$f":"((Quarterly!O244/Quarterly!O243)^4)-1","v":-5.4063999457161227E-2},{"$f":"((Quarterly!P244/Quarterly!P243)^4)-1","v":-1.9277451967477655E-3},{"$f":"((Quarterly!Q244/Quarterly!Q243)^4)-1","v":-0.11387330112174499},null,null,null,null,null,{"$f":"((Quarterly!W244/Quarterly!W243)^4)-1","v":1.5925367097812115E-2},{"$f":"((Quarterly!X244/Quarterly!X243)^4)-1","v":4.1075291883451159E-2},{"$f":"((Quarterly!Y244/Quarterly!Y243)^4)-1","v":8.5944580450181274E-3},{"$f":"Quarterly!Z244-Quarterly!Z243","v":-0.13999999999999996},{"$f":"((Quarterly!AA244/Quarterly!AA243)^4)-1","v":-7.6736999390554339E-2},{"$f":"((Quarterly!AB244/Quarterly!AB243)^4)-1","v":2.6812054292832954E-3},{"$f":"Quarterly!AC244-Quarterly!AC243","v":10.1},{"$f":"Quarterly!AD244-Quarterly!AD243","v":-10.199999999999999},{"$f":"(Quarterly!AE244-Quarterly!AE243)*100","v":-12.999999999999989},{"$f":"(Quarterly!AF244-Quarterly!AF243)*100","v":-13.999999999999996},{"$f":"(Quarterly!AG244-Quarterly!AG243)*100","v":1.0000000000000009},{"$f":"((Quarterly!AH244/Quarterly!AH243)^4)-1","v":0.20855042736443852},{"$f":"((Quarterly!AI244/Quarterly!AI243)^4)-1","v":0.19030132887520446},{"$f":"((Quarterly!AJ244/Quarterly!AJ243)^4)-1","v":2.5175794715285971E-2},{"$f":"((Quarterly!AK244/Quarterly!AK243)^4)-1","v":2.2003106045466625E-2},{"$f":"((Quarterly!AL244/Quarterly!AL243)^4)-1","v":2.2003106045466625E-2},{"$f":"((Quarterly!AM244/Quarterly!AM243)^4)-1","v":5.5512492437502114E-2},{"$f":"((Quarterly!AN244/Quarterly!AN243)^4)-1","v":2.800902914841763E-2},{"$f":"((Quarterly!AO244/Quarterly!AO243)^4)-1","v":1.5049952460797211E-2},{"$f":"(Quarterly!AP244-Quarterly!AP243)*100","v":0.33333333333331883},{"$f":"Quarterly!AQ244-Quarterly!AQ243","v":-1.1333333333333329},{"$f":"Quarterly!AR244-Quarterly!AR243","v":1.6666666666666714},{"$f":"Quarterly!AS244-Quarterly!AS243","v":0.8333333333333357},{"$f":"Quarterly!AT244-Quarterly!AT243","v":-2.1666666666666785},{"$f":"Quarterly!AU244-Quarterly!AU243","v":2.6666666666666714},{"$f":"Quarterly!AV244-Quarterly!AV243","v":1.8333333333333357},{"$f":"Quarterly!AW244-Quarterly!AW243","v":0.8333333333333357},{"$f":"Quarterly!AX244-Quarterly!AX243","v":-3.1666666666666714},{"$f":"Quarterly!AY244-Quarterly!AY243","v":-7.8333333333333357},{"$f":"Quarterly!AZ244-Quarterly!AZ243","v":-1.2666666666666657},{"$f":"Quarterly!BA244-Quarterly!BA243","v":0.29999999999999005},{"$f":"Quarterly!BB244-Quarterly!BB243","v":0.36666666666665293},{"$f":"((Quarterly!BC244/Quarterly!BC243)^4)-1","v":3.4162826337299057E-2},{"$f":"((Quarterly!BD244/Quarterly!BD243)^4)-1","v":2.8512904425056496E-2},{"$f":"((Quarterly!BE244/Quarterly!BE243)^4)-1","v":-3.6317530076386273E-3},{"$f":"((Quarterly!BF244/Quarterly!BF243)^4)-1","v":1.7711239240549848E-2},{"$f":"((Quarterly!BG244/Quarterly!BG243)^4)-1","v":1.5394967754312816E-2},{"$f":"((Quarterly!BH244/Quarterly!BH243)^4)-1","v":2.092467146973509E-2},{"$f":"((Quarterly!BI244/Quarterly!BI243)^4)-1","v":2.3193624899549015E-3},{"$f":"((Quarterly!BJ244/Quarterly!BJ243)^4)-1","v":2.1116068577765379E-2},{"$f":"((Quarterly!BK244/Quarterly!BK243)^4)-1","v":-0.74826087480709869},null,{"$f":"((Quarterly!BM244/Quarterly!BM243)^4)-1","v":1.3676661932351841E-2},{"$f":"((Quarterly!BN244/Quarterly!BN243)^4)-1","v":1.5331494678309854E-2},null,null,null,null,null,{"$f":"((Quarterly!BT244/Quarterly!BT243)^4)-1","v":2.7482243623255576E-2},null,null,{"$f":"((Quarterly!BW244/Quarterly!BW243)^4)-1","v":1.2661330084209332E-3},{"$f":"((Quarterly!BX244/Quarterly!BX243)^4)-1","v":-0.21046319384569645},{"$f":"((Quarterly!BY244/Quarterly!BY243)^4)-1","v":-0.10950810632547836},{"$f":"((Quarterly!BZ244/Quarterly!BZ243)^4)-1","v":3.4790414519432877E-2},{"$f":"((Quarterly!CA244/Quarterly!CA243)^4)-1","v":-8.3074411633777379E-2},{"$f":"((Quarterly!CB244/Quarterly!CB243)^4)-1","v":-0.43673624645892628},{"$f":"((Quarterly!CC244/Quarterly!CC243)^4)-1","v":-0.37849310342961073},{"$f":"((Quarterly!CD244/Quarterly!CD243)^4)-1","v":9.9729110604417581E-2},{"$f":"((Quarterly!CE244/Quarterly!CE243)^4)-1","v":-7.7550524828084E-2},null,{"$f":"((Quarterly!CG244/Quarterly!CG243)^4)-1","v":0.56791792747772996},{"$f":"((Quarterly!CH244/Quarterly!CH243)^4)-1","v":-3.9726231447791083E-2},null,{"$f":"((Quarterly!CJ244/Quarterly!CJ243)^4)-1","v":-7.7550524828084E-2},{"$f":"((Quarterly!CK244/Quarterly!CK243)^4)-1","v":2.9657988659133494E-2},{"$f":"((Quarterly!CL244/Quarterly!CL243)^4)-1","v":-6.3123384590076159E-2},{"$f":"((Quarterly!CM244/Quarterly!CM243)^4)-1","v":-6.3606768185576423E-2},{"$f":"((Quarterly!CN244/Quarterly!CN243)^4)-1","v":3.2856793950366114E-2},{"$f":"((Quarterly!CO244/Quarterly!CO243)^4)-1","v":3.4040685162539885E-2},{"$f":"((Quarterly!CP244/Quarterly!CP243)^4)-1","v":4.9017393143309329E-2},{"$f":"((Quarterly!CQ244/Quarterly!CQ243)^4)-1","v":6.1988005449740147E-3},{"$f":"((Quarterly!CR244/Quarterly!CR243)^4)-1","v":4.7500878390226875E-2},{"$f":"Quarterly!CS244-Quarterly!CS243","v":-1.0666666666666629},{"$f":"Quarterly!CT244-Quarterly!CT243","v":0.56666666666666288},null,null,null,null,null,{"$f":"((Quarterly!CZ244/Quarterly!CZ243)^4)-1","v":-3.120462855469075E-3},{"$f":"((Quarterly!DA244/Quarterly!DA243)^4)-1","v":5.6048102639747466E-3},null,null,null,null,null,{"$f":"((Quarterly!DG244/Quarterly!DG243)^4)-1","v":2.7205308728833755E-2},{"$f":"((Quarterly!DH244-Quarterly!DH243)*60)","v":6.0000000000000853},{"$f":"Quarterly!DI244-Quarterly!DI243","v":-0.16666666666667851},{"$f":"(Quarterly!DJ244-Quarterly!DJ243)*100","v":-63.333333333333286},{"$f":"(Quarterly!DK244-Quarterly!DK243)*100","v":-30.000000000000071},{"$f":"((Quarterly!DL244/Quarterly!DL243)^4)-1","v":9.9507102738325415E-3},null,null,null,{"$f":"((Quarterly!DP244/Quarterly!DP243)^4)-1","v":1.3362039893369815E-2},null,null,null,null,{"$f":"Quarterly!DU244-Quarterly!DU243","v":-9.9999999999997868E-2},{"$f":"((Quarterly!DV244/Quarterly!DV243)^4)-1","v":6.9118928030889037E-3},{"$f":"((Quarterly!DW244/Quarterly!DW243)^4)-1","v":8.8012159334597939E-2},{"$f":"((Quarterly!DX244/Quarterly!DX243)^4)-1","v":3.7588894719222887E-2},{"$f":"((Quarterly!DY244/Quarterly!DY243)^4)-1","v":6.1516465366485917E-2},{"$f":"((Quarterly!DZ244/Quarterly!DZ243)^4)-1","v":3.0049701675373353E-2},{"$f":"((Quarterly!EA244/Quarterly!EA243)^4)-1","v":4.6838041371472183E-2},{"$f":"((Quarterly!EB244/Quarterly!EB243)^4)-1","v":-3.7500795793422581E-3},{"$f":"((Quarterly!EC244/Quarterly!EC243)^4)-1","v":0.20880044503765327},null,null,null,null,null,{"$f":"((Quarterly!EI244/Quarterly!EI243)^4)-1","v":3.5681465251158562E-2},{"$f":"((Quarterly!EJ244/Quarterly!EJ243)^4)-1","v":2.4934215587862241E-2},{"$f":"((Quarterly!EK244/Quarterly!EK243)^4)-1","v":2.280352051366763E-2},null,null,null,null,null,{"$f":"((Quarterly!EQ244/Quarterly!EQ243)^4)-1","v":4.0331109425167488E-2},null,null,null,null,null,null,null,{"$f":"(Quarterly!EY244-Quarterly!EY243)*100","v":25},{"$f":"(Quarterly!EZ244-Quarterly!EZ243)*100","v":25},{"$f":"(Quarterly!FA244-Quarterly!FA243)*100","v":-15.999999999999925},{"$f":"(Quarterly!FB244-Quarterly!FB243)*100","v":-16.333333333333311},{"$f":"+FB244-FA244","v":-0.33333333333338544},{"$f":"(Quarterly!FD244-Quarterly!FD243)*100","v":-18.666666666666654},{"$f":"(Quarterly!FE244-Quarterly!FE243)*100","v":30.000000000000004},{"$f":"(Quarterly!FF244-Quarterly!FF243)*100","v":23.333333333333339},{"$f":"(Quarterly!FG244-Quarterly!FG243)*100","v":5.3333333333333233},{"$f":"(Quarterly!FH244-Quarterly!FH243)*100","v":-13.333333333333353},{"$f":"(Quarterly!FI244-Quarterly!FI243)*100","v":-18.000000000000014},{"$f":"+FI244-FF244","v":-41.333333333333357},null,null,null,null,null,{"$f":"((Quarterly!FP244/Quarterly!FP243)^4)-1","v":6.8106536579977561E-2},{"$f":"((Quarterly!FQ244/Quarterly!FQ243)^4)-1","v":-1.4560970467161205E-2},{"$f":"((Quarterly!FR244/Quarterly!FR243)^4)-1","v":-0.30537462661388515},{"$f":"((Quarterly!FS244/Quarterly!FS243)^4)-1","v":0.13396927131916736},{"$f":"((Quarterly!FT244/Quarterly!FT243)^4)-1","v":-8.2878743203022465E-2},{"$f":"((Quarterly!FU244/Quarterly!FU243)^4)-1","v":-5.6331659134171042E-2},{"$f":"((Quarterly!FV244/Quarterly!FV243)^4)-1","v":0.15380596325461071},{"$f":"((Quarterly!FW244/Quarterly!FW243)^4)-1","v":0.58494449710326712},{"$f":"((Quarterly!FX244/Quarterly!FX243)^4)-1","v":0.24127887278443416},null,null,null,null,null,{"$f":"((Quarterly!GD244/Quarterly!GD243)^4)-1","v":-0.24590095204828988},{"$f":"((Quarterly!GE244/Quarterly!GE243)^4)-1","v":-0.26696179290478339},{"$f":"((Quarterly!GF244/Quarterly!GF243)^4)-1","v":0.10217879845144662},{"$f":"((Quarterly!GG244/Quarterly!GG243)^4)-1","v":-2.4696518711794901E-2},{"$f":"((Quarterly!GH244/Quarterly!GH243)^4)-1","v":0.56971577147113761},{"$f":"((Quarterly!GI244/Quarterly!GI243)^4)-1","v":1.7514147928723229},{"$f":"((Quarterly!GJ244/Quarterly!GJ243)^4)-1","v":0.10393007598917192},{"$f":"((Quarterly!GK244/Quarterly!GK243)^4)-1","v":0.20336574121421203},{"$f":"((Quarterly!GL244/Quarterly!GL243)^4)-1","v":0.39506666928592593}]
["17'Q3",{"$f":"((Quarterly!B245/Quarterly!B244)^4)-1","v":5.1990034697397158E-2},{"$f":"((Quarterly!C245/Quarterly!C244)^4)-1","v":2.988959770143218E-2},{"$f":"((Quarterly!D245/Quarterly!D244)^4)-1","v":2.2554370533575563E-2},{"$f":"((Quarterly!E245/Quarterly!E244)^4)-1","v":2.3546727774859555E-2},{"$f":"((Quarterly!F245/Quarterly!F244)^4)-1","v":8.2796525813809474E-2},{"$f":"((Quarterly!G245/Quarterly!G244)^4)-1","v":2.136469746694325E-2},{"$f":"((Quarterly!H245/Quarterly!H244)^4)-1","v":1.4957066218106663E-2},{"$f":"((Quarterly!I245/Quarterly!I244)^4)-1","v":3.9003492102495541E-2},{"$f":"((Quarterly!J245/Quarterly!J244)^4)-1","v":6.3654512606622582E-2},{"$f":"((Quarterly!K245/Quarterly!K244)^4)-1","v":-6.0177740906875221E-2},{"$f":"((Quarterly!L245-Quarterly!L244))","v":30.321999999999999},{"$f":"((Quarterly!M245/Quarterly!M244)^4)-1","v":-8.0307154001810765E-3},{"$f":"((Quarterly!N245/Quarterly!N244)^4)-1","v":2.3166298500582494E-2},{"$f":"((Quarterly!O245/Quarterly!O244)^4)-1","v":-0.11317728676311301},{"$f":"((Quarterly!P245/Quarterly!P244)^4)-1","v":-1.2138583541809744E-3},null,null,null,null,null,null,{"$f":"((Quarterly!W245/Quarterly!W244)^4)-1","v":-2.6023328373520505E-2},{"$f":"((Quarterly!X245/Quarterly!X244)^4)-1","v":-2.4157642566022153E-2},{"$f":"((Quarterly!Y245/Quarterly!Y244)^4)-1","v":3.1356790485624897E-2},{"$f":"Quarterly!Z245-Quarterly!Z244","v":-2.0000000000000018E-2},null,null,{"$f":"Quarterly!AC245-Quarterly!AC244","v":-9.9999999999999645E-2},{"$f":"Quarterly!AD245-Quarterly!AD244","v":3.1999999999999993},{"$f":"(Quarterly!AE245-Quarterly!AE244)*100","v":-14.000000000000012},{"$f":"(Quarterly!AF245-Quarterly!AF244)*100","v":-2.0000000000000018},{"$f":"(Quarterly!AG245-Quarterly!AG244)*100","v":-8.0000000000000018},null,null,null,null,null,{"$f":"((Quarterly!AM245/Quarterly!AM244)^4)-1","v":-1.5468873413097772E-2},{"$f":"((Quarterly!AN245/Quarterly!AN244)^4)-1","v":-2.0933502806014581E-2},{"$f":"((Quarterly!AO245/Quarterly!AO244)^4)-1","v":4.576798625880385E-2},{"$f":"(Quarterly!AP245-Quarterly!AP244)*100","v":0.66666666666665986},null,null,null,null,null,null,null,null,null,null,null,null,{"$f":"((Quarterly!BC245/Quarterly!BC244)^4)-1","v":0.11564550698586817},null,null,null,null,null,null,null,{"$f":"((Quarterly!BK245/Quarterly!BK244)^4)-1","v":-0.21533506543264569},null,{"$f":"((Quarterly!BM245/Quarterly!BM244)^4)-1","v":3.7981306979954166E-2},{"$f":"((Quarterly!BN245/Quarterly!BN244)^4)-1","v":3.9369038592980354E-2},null,null,null,null,null,{"$f":"((Quarterly!BT245/Quarterly!BT244)^4)-1","v":3.7466572052735847E-2},null,null,{"$f":"((Quarterly!BW245/Quarterly!BW244)^4)-1","v":2.435483781689185E-2},{"$f":"((Quarterly!BX245/Quarterly!BX244)^4)-1","v":-5.7020524739693768E-3},{"$f":"((Quarterly!BY245/Quarterly!BY244)^4)-1","v":6.2429284598699786E-2},{"$f":"((Quarterly!BZ245/Quarterly!BZ244)^4)-1","v":1.7373703344394142E-2},{"$f":"((Quarterly!CA245/Quarterly!CA244)^4)-1","v":7.4137998862187748E-2},{"$f":"((Quarterly!CB245/Quarterly!CB244)^4)-1","v":-6.2472031052421828E-3},{"$f":"((Quarterly!CC245/Quarterly!CC244)^4)-1","v":-2.4000443880913602E-2},{"$f":"((Quarterly!CD245/Quarterly!CD244)^4)-1","v":0.11866285774069785},{"$f":"((Quarterly!CE245/Quarterly!CE244)^4)-1","v":-1.0973833084372386E-2},null,{"$f":"((Quarterly!CG245/Quarterly!CG244)^4)-1","v":-9.2649993771533712E-2},{"$f":"((Quarterly!CH245/Quarterly!CH244)^4)-1","v":-0.11673967601083823},null,{"$f":"((Quarterly!CJ245/Quarterly!CJ244)^4)-1","v":-1.0973833084372386E-2},{"$f":"((Quarterly!CK245/Quarterly!CK244)^4)-1","v":2.8091405964648208E-2},{"$f":"((Quarterly!CL245/Quarterly!CL244)^4)-1","v":-0.32393688279095179},{"$f":"((Quarterly!CM245/Quarterly!CM244)^4)-1","v":0.1075159524013527},{"$f":"((Quarterly!CN245/Quarterly!CN244)^4)-1","v":5.581410971423173E-3},{"$f":"((Quarterly!CO245/Quarterly!CO244)^4)-1","v":2.767244197975538E-2},{"$f":"((Quarterly!CP245/Quarterly!CP244)^4)-1","v":4.1444841947486655E-2},{"$f":"((Quarterly!CQ245/Quarterly!CQ244)^4)-1","v":7.3430851112585849E-3},{"$f":"((Quarterly!CR245/Quarterly!CR244)^4)-1","v":4.1927958474228921E-2},{"$f":"Quarterly!CS245-Quarterly!CS244","v":-1.3000000000000114},{"$f":"Quarterly!CT245-Quarterly!CT244","v":1.9666666666666544},null,null,null,null,null,{"$f":"((Quarterly!CZ245/Quarterly!CZ244)^4)-1","v":2.0139570281424879E-2},{"$f":"((Quarterly!DA245/Quarterly!DA244)^4)-1","v":1.70063808330565E-2},null,null,null,null,null,{"$f":"((Quarterly!DG245/Quarterly!DG244)^4)-1","v":3.4939550371850814E-3},{"$f":"((Quarterly!DH245-Quarterly!DH244)*60)","v":-4.000000000000199},{"$f":"Quarterly!DI245-Quarterly!DI244","v":0.16666666666667851},{"$f":"(Quarterly!DJ245-Quarterly!DJ244)*100","v":-3.3333333333333215},{"$f":"(Quarterly!DK245-Quarterly!DK244)*100","v":-6.666666666666643},{"$f":"((Quarterly!DL245/Quarterly!DL244)^4)-1","v":9.7094522575318365E-3},null,null,null,{"$f":"((Quarterly!DP245/Quarterly!DP244)^4)-1","v":1.1761777511653193E-2},null,null,null,null,{"$f":"Quarterly!DU245-Quarterly!DU244","v":0.39999999999999858},{"$f":"((Quarterly!DV245/Quarterly!DV244)^4)-1","v":-1.5385482756928859E-3},{"$f":"((Quarterly!DW245/Quarterly!DW244)^4)-1","v":4.5196926198939336E-2},{"$f":"((Quarterly!DX245/Quarterly!DX244)^4)-1","v":1.9094763055884201E-2},{"$f":"((Quarterly!DY245/Quarterly!DY244)^4)-1","v":1.69592063337618E-2},{"$f":"((Quarterly!DZ245/Quarterly!DZ244)^4)-1","v":1.9781142635920013E-2},{"$f":"((Quarterly!EA245/Quarterly!EA244)^4)-1","v":1.8749489815086173E-2},{"$f":"((Quarterly!EB245/Quarterly!EB244)^4)-1","v":2.1925893326264267E-2},{"$f":"((Quarterly!EC245/Quarterly!EC244)^4)-1","v":0.11946541288786738},null,null,null,null,null,{"$f":"((Quarterly!EI245/Quarterly!EI244)^4)-1","v":3.4244766401085647E-2},{"$f":"((Quarterly!EJ245/Quarterly!EJ244)^4)-1","v":3.3755832983324296E-3},{"$f":"((Quarterly!EK245/Quarterly!EK244)^4)-1","v":-1.3796763209234286E-2},null,null,null,null,null,{"$f":"((Quarterly!EQ245/Quarterly!EQ244)^4)-1","v":1.4574237205721818E-2},null,null,null,null,null,null,null,{"$f":"(Quarterly!EY245-Quarterly!EY244)*100","v":20.6666666666667},{"$f":"(Quarterly!EZ245-Quarterly!EZ244)*100","v":20.333333333333304},{"$f":"(Quarterly!FA245-Quarterly!FA244)*100","v":-10.000000000000009},{"$f":"(Quarterly!FB245-Quarterly!FB244)*100","v":-10.666666666666735},{"$f":"+FB245-FA245","v":-0.66666666666672647},{"$f":"(Quarterly!FD245-Quarterly!FD244)*100","v":-9.9999999999999645},{"$f":"(Quarterly!FE245-Quarterly!FE244)*100","v":14.666666666666684},{"$f":"(Quarterly!FF245-Quarterly!FF244)*100","v":12.333333333333329},{"$f":"(Quarterly!FG245-Quarterly!FG244)*100","v":7.0000000000000062},{"$f":"(Quarterly!FH245-Quarterly!FH244)*100","v":0.66666666666668206},{"$f":"(Quarterly!FI245-Quarterly!FI244)*100","v":-2.0000000000000018},{"$f":"+FI245-FF245","v":-14.33333333333333},null,null,null,null,null,{"$f":"((Quarterly!FP245/Quarterly!FP244)^4)-1","v":-0.24693758521107068},{"$f":"((Quarterly!FQ245/Quarterly!FQ244)^4)-1","v":-0.1068300631326653},{"$f":"((Quarterly!FR245/Quarterly!FR244)^4)-1","v":-0.15072184777339881},{"$f":"((Quarterly!FS245/Quarterly!FS244)^4)-1","v":0.30326977373709973},{"$f":"((Quarterly!FT245/Quarterly!FT244)^4)-1","v":-0.12794729507430835},{"$f":"((Quarterly!FU245/Quarterly!FU244)^4)-1","v":-0.18792319580783556},{"$f":"((Quarterly!FV245/Quarterly!FV244)^4)-1","v":-0.22573037266212892},{"$f":"((Quarterly!FW245/Quarterly!FW244)^4)-1","v":0.48213265888400625},{"$f":"((Quarterly!FX245/Quarterly!FX244)^4)-1","v":-0.10009288502527236},null,null,null,null,null,{"$f":"((Quarterly!GD245/Quarterly!GD244)^4)-1","v":-6.3419646361749793E-3},{"$f":"((Quarterly!GE245/Quarterly!GE244)^4)-1","v":0.2114560208441183},{"$f":"((Quarterly!GF245/Quarterly!GF244)^4)-1","v":9.848912756808148E-2},{"$f":"((Quarterly!GG245/Quarterly!GG244)^4)-1","v":0.12116362301505013},{"$f":"((Quarterly!GH245/Quarterly!GH244)^4)-1","v":1.461067243839389},null,{"$f":"((Quarterly!GJ245/Quarterly!GJ244)^4)-1","v":-0.21032524935213603},{"$f":"((Quarterly!GK245/Quarterly!GK244)^4)-1","v":1.3253701541828811E-3},{"$f":"((Quarterly!GL245/Quarterly!GL244)^4)-1","v":-0.14690935238662528}]
["17'Q4"]

{"sheet":"Qtr YY","index":7,"n_rows":246,"n_cols":194,"rows_kept":246,"cut":false,"hidden":false,"merged":[]}
[]
[]
[]
[]
[]
[]
["Title:","Nominal Gross Domestic Product","Real Gross Domestic Product","Real Final Sales of Domestic Product","Real Personal Consumption Expenditures","Real PCE: Durable Goods","Real PCE: Nondurable Goods","Real PCE: Services","Real Private Nonres. Fixed Investment","Real Nonres. Invest.: Equip. & Software","Real Private Residential Fixed Investment","Real Change in Private Inventories","Real Imports of Goods & Services","Real Exports of Goods & Services","Net Exports of Goods & Services","Real Gov't Cons. & Invest.","Federal Government Surplus or Deficit [-], NIPA",null,null,null,null,null,"Capacity Utilization: Mfg (NAICS)","Capacity Utilization: Total Industry","Com'l & Industrial Loans, Commercial Banks","Commercial Net Loan Charge-offs","Corporate Profits After Tax","Corporate Profits Less Financial After Tax","Bank Willingness to Make Consumer Loans","Demand for Com'l & Ind'l Loans by Small Firms - Net","Nonperf'g Loans - Total","Commercial Net Loan Charge-offs","Total Loan Charge-offs","E-Commerce Sales","E-Commerce Sales as % of Total Retail Sales","ECI: Benefits: Private Industry Workers ","ECI: Compensation: Private Industry Workers","ECI: Wages & Salaries: Private Industry Workers ","Industrial Production Index","Industrial Production Index - Mfg.","Inventories: Total Business","Inventory to Sales Ratio: Total Business","ISM INDEX: PMI Manufacturing Composite Index","ISM INDEX Backlogs","ISM INDEX Customer Inventories","ISM INDEX Employment ","ISM INDEX Exports","ISM INDEX Imports","ISM INDEX Inventories","ISM INDEX New Orders","ISM INDEX Prices","ISM INDEX Production","ISM INDEX Supplier deliveries","ISM Non Mfg: Business Activity Index","Mfgs' New Orders: Nondefense Excluding Aircraft","Mfg.: Output Per Hour of All Persons","Mfg.: Unit Labor Cost","Nonfarm: Comp. Per Hour","Nonfarm: Output Per Hour of All Persons","Nonfarm: Real Comp. Per Hour","Nonfarm: Unit Labor Cost","Nonfinancial Corporate Business: Profits After Tax","Nonperf'g Total Loans","PMI Manufacturing Composit Index","Retail and Food Services Sales","Retail Sales: Total (Excl'g Food Svcs.)",null,null,null,null,null,"Consumer Loans at All Commercial Banks","Debt Service Payments as a % DPI","Household Financial Obligations as a percent of DPI","Household Credit Market Debt Outstanding","Housing Starts: Total: New Privately Owned ","New Private Housing Units Authorized by Building Permits - Thousands","S&P Case-Shiller 20-City Home Price Index","Autos & Light Trucks","Misery Index","Misery Index - Adjusted ","New Home Inventories - Thousands","New Homes Sold - Thousands","New Home IN/RS","Used Home Inventories - Thousands","Used Homes Sold - Thousands","Used Home IN/RS","New Homes Sales - Single Family - Thousands","Personal Income","Personal Saving","Privately Owned Housing Starts: 1-Unit Structures","Real Disposable Personal Income","Savings Deposits - Total","Total Consumer Credit Outstanding","Total Population: Incl'd Armed Forces Overseas - Thousands","Total Revolving Credit Outstanding","University of Michigan: Consumer Sentiment","Conference Board Consumer Confidence",null,null,null,null,null,"CPI Index - All Urban: All Items","CPI Index All Urban: Less Food & Energy",null,null,null,null,null,"Aggregate Weekly Hours Index: Total Private Industries","Average Weekly Hours: Production & Nonsuper.","Civilian Participation Rate","Total Unemployment Rate Plus (U6 Rate)","Civilian Unemployment Rate","Nonfarm Payrolls: Mfg.","Nonfarm Payrolls: Mfg. - Monthly Change","Nonfarm Payrolls: Mfg - Quarterly Change","Nonfarm Payrolls: Mfg - Annual Change","Total Nonfarm Payrolls: All Employees","Nonfarm Payrolls: All Employees - Monthly Change","Nonfarm Payrolls: All Employees - Quarterly Change","Nonfarm Payrolls: All Employees - Annual Change","Initial Unemployment Claims (Monthly Average)","Median Duration of Unemployment","Trucking Employment - Truck Transportation - SA","Trucking Employment - Truck Transportation - NSA","Trucking Employment - General Freight  - NSA","Trucking Employment - General Freight, local - NSA","Trucking Employment - General Freight, long - NSA","Trucking Employment - General Freight, long TL - NSA","Trucking Employment - General Freight, long LTL - NSA","Trucking Employment - Specialized Freight - NSA",null,null,null,null,null,"Freight Composite Index Class 8","Freight Composite Index Dry Van","Freight Composite Index Reefer Van",null,null,null,null,null,"Producer Price Index: All Commodities","PPI: Finished Goods Less Food & Energy","PPI Finished Goods: Capital Equipment",null,null,null,null,null,"Bank Prime Loan Rate","Effective Federal Funds Rate","Moody's Seasoned Aaa Corporate Bond Yield","Moody's Seasoned Baa Corporate Bond Yield","Yield Spread: Moody's Seasoned Corporate Bond Yield","Mortgage Rate, 30-Year Conventional ","Treasury Bill: Secondary Market Rate, 3-Month ","Treasury Constant Maturity Rate, 1-Year ","Treasury Constant Maturity Rate, 2-Year ","Treasury Constant Maturity Rate, 5-Year ","Treasury Constant Maturity Rate, 10-Year ","Treasury Yield, 10-Year Minus 1-Year",null,null,null,null,null,"Canada/U.S. Foreign Exchange Rate","China/U.S. Foreign Exchange Rate","Mexico/U.S. Foreign Exchange Rate","U.S./Euro Foreign Exchange Rate","Trade Weighted Exchange Index: Broad","Trade Weighted Exchange Index: Major Currencies","U.S. Imports from Canada, Customs Basis","U.S. Imports from China, Mainland, Customs Basis","U.S. Imports from Mexico, Customs Basis",null,null,null,null,null,"Spot Oil Price: West Texas Intermediate","Europe Brent Spot Price FOB ","EIA  Retail Gasoline Prices : All Grades","EIA Retail On-Highway Diesel Fuel Prices","U.S. Exports of Distillate Fuel Oil ","U.S. Exports of Distillate Fuel Oil, 0 to 15 ppm Sulfur ","Natural Gas Futures Contract 1 ","U.S. Product Supplied of Distillate Fuel Oil","U.S. Refiner Net Production of Distillate Fuel Oil, 0 to 15 ppm Sulfur"]
["ID","GDP001Q","GDP004Q","GDP007Q","GDP010Q","GDP014Q","GDP018Q","GDP022Q","GDP026Q","GDP029Q","GDP032Q","GDP035Q","GDP036Q","GDP039Q","GDP042Q","GDP043Q","GDP046Q",null,null,null,null,null,"BUS001Q","BUS002Q","BUS003Q","BUS004Q","BUS005Q","BUS006Q","BUS007Q","BUS008Q","BUS009Q","BUS010Q","BUS011Q","BUS012Q","BUS013Q","BUS014Q","BUS015Q","BUS016Q","BUS019Q","BUS020M","BUS021Q","BUS022Q","BUS023Q","BUS024Q","BUS025Q","BUS026Q","BUS027Q","BUS028Q","BUS029Q","BUS030Q","BUS031Q","BUS032Q","BUS033Q","BUS034Q","BUS035Q","BUS036Q","BUS037Q","BUS038Q","BUS039Q","BUS040Q","BUS041Q","BUS042Q","BUS043Q","BUS044Q","BUS045Q","BUS046Q",null,null,null,null,null,"CON001Q","CON002Q","CON003Q","CON004Q","CON005Q","CON006Q","CON007Q","CON008Q","CON009Q","CON010Q","CON011Q","CON012Q","CON035M","CON033Q","CON034Q","COM036M","CON013Q","CON014Q","CON018Q","CON022Q","CON023Q","CON027Q","CON028Q","CON029Q","CON030Q","CON031Q","CON032Q",null,null,null,null,null,"CPI001Q","CPI005Q",null,null,null,null,null,"EMP001Q","EMP002Q","EMP003Q","EMP004Q","EMP005Q","EMP006Q","EMP007Q","EMP009Q","EMP011Q","EMP013Q","EMP014Q","EMP016Q","EMP018Q","EMP020Q","EMP021Q","EMP022Q","EMP023Q","EMP024Q","EMP025Q","EMP026Q","EMP027Q","EMP028Q","EMP029Q",null,null,null,null,null,"FRE001Q","FRE004Q","FRE007Q",null,null,null,null,null,"PPI001Q","PPI004Q","PPI007Q",null,null,null,null,null,"RAT001Q","RAT002Q","RAT003Q","RAT004Q",null,"RAT005Q","RAT006Q","RAT007Q","RAT008Q","RAT009Q","RAT010Q","RAT011Q",null,null,null,null,null,"TRA001Q","TRA002Q","TRA003Q","TRA004Q","TRA005Q","TRA006Q","TRA007Q","TRA008Q","TRA009Q",null,null,null,null,null,"ENE001Q","ENE002Q","ENE003Q","ENE004Q","ENE005Q","ENE006Q","ENE007Q","ENE008W","ENE009W"]
["Frequency:","Quarterly","Quarterly","Quarterly","Monthly","Monthly","Monthly","Monthly","Quarterly","Quarterly","Quarterly","Quarterly","Quarterly","Quarterly","Quarterly","Quarterly","Quarterly",null,null,null,null,null,"Quarterly","Monthly","Monthly","Quarterly, End of Period","Quarterly","Quarterly","Quarterly, End of Period","Quarterly, End of Period","Quarterly, End of Period","Quarterly, End of Period","Quarterly, End of Period","Quarterly","Quarterly","Quarterly","Quarterly","Quarterly","Monthly","Monthly","Monthly, End of Period","Monthly","Monthly","Monthly","Monthly","Monthly","Monthly","Monthly","Monthly","Monthly","Monthly","Monthly","Monthly","Monthly","Monthly","Quarterly","Quarterly","Quarterly","Quarterly","Quarterly","Quarterly","Quarterly","Quarterly","Monthly","Monthly","Monthly",null,null,null,null,null,"Monthly","Quarterly","Quarterly","Quarterly, End of Period","Monthly","Monthly","Monthly","Monthly","Monthly ","Monthly ","Monthly","Monthly","Monthly","Monthly","Monthly ","Monthly","Monthly","Monthly","Monthly","Monthly","Monthly","Monthly","Monthly, End of Period","Monthly","Monthly, End of Period","Monthly","Monthly",null,null,null,null,null,"Monthly","Monthly",null,null,null,null,null,"Monthly","Monthly","Monthly","Monthly","Monthly","Monthly",null,null,null,"Monthly",null,null,null,"Weekly, End of Period","Monthly","Monthly","Monthly","Monthly","Monthly","Monthly","Monthly","Monthly","Monthly",null,null,null,null,null,"Quarterly","Quarterly","Quarterly",null,null,null,null,null,"Monthly","Monthly","Monthly",null,null,null,null,null,"Monthly","Monthly","Monthly","Monthly",null,"Monthly","Monthly","Monthly","Monthly","Monthly","Monthly",null,null,null,null,null,null,"Monthly","Monthly","Monthly","Monthly","Monthly","Monthly","Monthly","Monthly","Monthly",null,null,null,null,null,"Monthly","Monthly","Monthly","Monthly","Monthly","Monthly","Monthly","Weekly","Weekly"]
[null,"Y/Y % change","Y/Y % change","Y/Y % change","Y/Y % change","Y/Y % change","Y/Y % change","Y/Y % change","Y/Y % change","Y/Y % change","Y/Y % change","Y-Y $Bils","Y/Y % change","Y/Y % change","Y/Y % change","Y/Y % change","Y/Y % change",null,null,null,null,null,"Y/Y % change","Y/Y % change","Y/Y % change","PPT Chg. ","Y/Y % change","Y/Y % change","PPT Chg. ","PPT Chg. ","Y/Y Chg BP ","Y/Y Chg BP ","Y/Y Chg BP ","Y/Y % change","Percent","Y/Y % change","Y/Y % change","Y/Y % change","Y/Y % change","Y/Y % change","Y/Y % change","Y/Y Chg BP ","PPT Chg. ","PPT Chg. ","PPT Chg. ","PPT Chg. ","PPT Chg. ","PPT Chg. ","PPT Chg. ","PPT Chg. ","PPT Chg. ","PPT Chg. ","PPT Chg. ","PPT Chg. ","Y/Y % change","Y/Y % change","Y/Y % change","Y/Y % change","Y/Y % change","Y/Y % change","Y/Y % change","Y/Y % change","Y/Y % change","XXXXXXXX","Y/Y % change","Y/Y % change",null,null,null,null,null,"Y/Y % change","PPT Chg. ","PPT Chg. ","Y/Y % change","Y/Y % change","Y/Y % change","Y/Y % change","Y/Y % change","Y/Y % change","Y/Y % change","Y/Y % change","Y/Y % change","XXXXXXXX","Y/Y % change","Y/Y % change","XXXXXXXX","Y/Y % change","Y/Y % change","Y/Y % change","Y/Y % change","Y/Y % change","Y/Y % change","Y/Y % change","Y/Y % change","Y/Y % change","PPT Chg. ","PPT Chg. ",null,null,null,null,null,"Y/Y % change","Y/Y % change",null,null,null,null,null,"Y/Y % change","Chg. Minutes","PPT Chg. ","Y/Y Chg BP ","Y/Y Chg BP ","Y/Y % change","XXXXXXXX","XXXXXXXX","XXXXXXXX","Y/Y % change","XXXXXXXX","XXXXXXXX","XXXXXXXX","Y/Y % change","Chg. In Wk.","Y/Y % change","Y/Y % change","Y/Y % change","Y/Y % change","Y/Y % change","Y/Y % change","Y/Y % change","Y/Y % change",null,null,null,null,null,"Y/Y % change","Y/Y % change","Y/Y % change",null,null,null,null,null,"Y/Y % change","Y/Y % change","Y/Y % change",null,null,null,null,null,"Y/Y Chg BP ","Y/Y Chg BP ","Y/Y Chg BP ","Y/Y Chg BP ","XXXXXXXX","Y/Y Chg BP ","Y/Y Chg BP ","Y/Y Chg BP ","Y/Y Chg BP ","Y/Y Chg BP ","Y/Y Chg BP ","XXXXXXXX",null,null,null,null,null,"Y/Y % change","Y/Y % change","Y/Y % change","Y/Y % change","Y/Y % change","Y/Y % change","Y/Y % change","Y/Y % change","Y/Y % change",null,null,null,null,null,"Y/Y % change","Y/Y % change","Y/Y % change","Y/Y % change","Y/Y % change","Y/Y % change","Y/Y % change","Y/Y % change","Y/Y % change"]
["59'Q1","--","--","--","--","--","--","--","--","--","--","--","--","--","--","--","--",null,null,null,null,null,"--","--","--","--","--","--","--","--","--","--","--","--","--","--","--","--","--","--","--","--","--","--","--","--","--","--","--","--","--","--","--","--","--","--","--","--","--","--","--","--","--",null,"--","--",null,null,null,null,null,"--","--","--","--","--","--","--","--","--","--","--","--",null,"--","--",null,"--","--","--","--","--","--","--","--","--","--","--",null,null,null,null,null,"--","--",null,null,null,null,null,"--","--","--","--","--","--",null,null,null,"--",null,null,null,"--","--","--","--","--","--","--","--","--","--",null,null,null,null,null,"--","--","--",null,null,null,null,null,"--","--","--",null,null,null,null,null,"--","--","--","--","--","--","--","--","--","--","--",null,null,null,null,null,null,"--","--","--","--","--","--","--","--","--",null,null,null,null,null,"--","--","--","--","--","--","--","--","--"]
["59'Q2","--","--","--","--","--","--","--","--","--","--","--","--","--","--","--","--",null,null,null,null,null,"--","--","--","--","--","--","--","--","--","--","--","--","--","--","--","--","--","--","--","--","--","--","--","--","--","--","--","--","--","--","--","--","--","--","--","--","--","--","--","--","--",null,"--","--",null,null,null,null,null,"--","--","--","--","--","--","--","--","--","--","--","--",null,"--","--",null,"--","--","--","--","--","--","--","--","--","--","--",null,null,null,null,null,"--","--",null,null,null,null,null,"--","--","--","--","--","--",null,null,null,"--",null,null,null,"--","--","--","--","--","--","--","--","--","--",null,null,null,null,null,"--","--","--",null,null,null,null,null,"--","--","--",null,null,null,null,null,"--","--","--","--","--","--","--","--","--","--","--",null,null,null,null,null,null,"--","--","--","--","--","--","--","--","--",null,null,null,null,null,"--","--","--","--","--","--","--","--","--"]
["59'Q3","--","--","--","--","--","--","--","--","--","--","--","--","--","--","--","--",null,null,null,null,null,"--","--","--","--","--","--","--","--","--","--","--","--","--","--","--","--","--","--","--","--","--","--","--","--","--","--","--","--","--","--","--","--","--","--","--","--","--","--","--","--","--",null,"--","--",null,null,null,null,null,"--","--","--","--","--","--","--","--","--","--","--","--",null,"--","--",null,"--","--","--","--","--","--","--","--","--","--","--",null,null,null,null,null,"--","--",null,null,null,null,null,"--","--","--","--","--","--",null,null,null,"--",null,null,null,"--","--","--","--","--","--","--","--","--","--",null,null,null,null,null,"--","--","--",null,null,null,null,null,"--","--","--",null,null,null,null,null,"--","--","--","--","--","--","--","--","--","--","--",null,null,null,null,null,null,"--","--","--","--","--","--","--","--","--",null,null,null,null,null,"--","--","--","--","--","--","--","--","--"]
["59'Q4","--","--","--","--","--","--","--","--","--","--","--","--","--","--","--","--",null,null,null,null,null,"--","--","--","--","--","--","--","--","--","--","--","--","--","--","--","--","--","--","--","--","--","--","--","--","--","--","--","--","--","--","--","--","--","--","--","--","--","--","--","--","--",null,"--","--",null,null,null,null,null,"--","--","--","--","--","--","--","--","--","--","--","--",null,"--","--",null,"--","--","--","--","--","--","--","--","--","--","--",null,null,null,null,null,"--","--",null,null,null,null,null,"--","--","--","--","--","--",null,null,null,"--",null,null,null,null,"--","--","--","--","--","--","--","--","--",null,null,null,null,null,"--","--","--",null,null,null,null,null,"--","--","--",null,null,null,null,null,"--","--","--","--","--","--","--","--","--","--","--",null,null,null,null,null,null,"--","--","--","--","--","--","--","--","--",null,null,null,null,null,"--","--","--","--","--","--","--","--","--"]
["60'Q1",{"$f":"((Quarterly!B15/Quarterly!B11)-1)","v":6.3170294073333411E-2},{"$f":"((Quarterly!C15/Quarterly!C11)-1)","v":4.922783457394253E-2},{"$f":"((Quarterly!D15/Quarterly!D11)-1)","v":3.5930789523214379E-2},{"$f":"((Quarterly!E15/Quarterly!E11)-1)","v":3.6971539099198703E-2},{"$f":"((Quarterly!F15/Quarterly!F11)-1)","v":3.9581205311542522E-2},{"$f":"((Quarterly!G15/Quarterly!G11)-1)","v":2.095048690165946E-2},{"$f":"((Quarterly!H15/Quarterly!H11)-1)","v":4.6061996633031344E-2},{"$f":"((Quarterly!I15/Quarterly!I11)-1)","v":9.0187657548314704E-2},{"$f":"((Quarterly!J15/Quarterly!J11)-1)","v":0.15889120597275874},{"$f":"((Quarterly!K15/Quarterly!K11)-1)","v":1.433194637078139E-2},{"$f":"((Quarterly!L15-Quarterly!L11))","v":31.206999999999997},{"$f":"((Quarterly!M15/Quarterly!M11)-1)","v":7.0407144015776968E-2},{"$f":"((Quarterly!N15/Quarterly!N11)-1)","v":0.16733081534356686},{"$f":"((Quarterly!O15/Quarterly!O11)-1)","v":-0.20421521141510657},{"$f":"((Quarterly!P15/Quarterly!P11)-1)","v":-4.2872346123953298E-3},{"$f":"((Quarterly!Q15/Quarterly!Q11)-1)","v":-2.039832746478873},null,null,null,null,null,"--","--",{"$f":"((Quarterly!Y15/Quarterly!Y11)-1)","v":0.13139768954231323},"--",{"$f":"((Quarterly!AA15/Quarterly!AA11)-1)","v":5.2246734579088683E-2},{"$f":"((Quarterly!AB15/Quarterly!AB11)-1)","v":8.9094750528197597E-2},"--","--","--","--","--","--","--","--","--","--",{"$f":"((Quarterly!AM15/Quarterly!AM11)-1)","v":7.1341806953055809E-2},"--","--","--",{"$f":"Quarterly!AQ15-Quarterly!AQ11","v":-12.266666666666673},"--","--",{"$f":"Quarterly!AT15-Quarterly!AT11","v":-6.5333333333333314},"--","--",{"$f":"Quarterly!AW15-Quarterly!AW11","v":-1.2666666666666586},{"$f":"Quarterly!AX15-Quarterly!AX11","v":-13.199999999999982},{"$f":"Quarterly!AY15-Quarterly!AY11","v":-4.1999999999999957},{"$f":"Quarterly!AZ15-Quarterly!AZ11","v":-9.7666666666666657},{"$f":"Quarterly!BA15-Quarterly!BA11","v":-29.566666666666656},"--","--","--","--",{"$f":"((Quarterly!BF15/Quarterly!BF11)-1)","v":4.5898179899762637E-2},{"$f":"((Quarterly!BG15/Quarterly!BG11)-1)","v":3.1482558139534822E-2},{"$f":"((Quarterly!BH15/Quarterly!BH11)-1)","v":3.158203124999992E-2},{"$f":"((Quarterly!BI15/Quarterly!BI11)-1)","v":1.4019327616714428E-2},{"$f":"((Quarterly!BJ15/Quarterly!BJ11)-1)","v":2.4753064381768386E-2},"--",null,"--","--",null,null,null,null,null,{"$f":"((Quarterly!BT15/Quarterly!BT11)-1)","v":0.16625144083628096},"--","--",{"$f":"((Quarterly!BW15/Quarterly!BW11)-1)","v":0.15816609819941307},{"$f":"((Quarterly!BX15/Quarterly!BX11)-1)","v":-0.17637540453074441},"--","--","--","--","--","--","--",null,"--","--",null,"--",{"$f":"((Quarterly!CK15/Quarterly!CK11)-1)","v":5.7645169470036395E-2},{"$f":"((Quarterly!CL15/Quarterly!CL11)-1)","v":1.3215859030837107E-2},{"$f":"((Quarterly!CM15/Quarterly!CM11)-1)","v":-0.14947530074225734},{"$f":"((Quarterly!CN15/Quarterly!CN11)-1)","v":3.4026892221271643E-2},{"$f":"((Quarterly!CO15/Quarterly!CO11)-1)","v":7.7035592393953856E-2},{"$f":"((Quarterly!CP15/Quarterly!CP11)-1)","v":0.13981772948480153},{"$f":"((Quarterly!CQ15/Quarterly!CQ11)-1)","v":1.6478094925448605E-2},"--","--","--",null,null,null,null,null,{"$f":"((Quarterly!CZ15/Quarterly!CZ11)-1)","v":1.3911243964129572E-2},{"$f":"((Quarterly!DA15/Quarterly!DA11)-1)","v":2.1158129175946616E-2},null,null,null,null,null,"--","--",{"$f":"Quarterly!DI15-Quarterly!DI11","v":-0.29999999999999716},"--",{"$f":"(Quarterly!DK15-Quarterly!DK11)*100","v":-69.999999999999929},{"$f":"((Quarterly!DL15/Quarterly!DL11)-1)","v":3.9385524111786863E-2},null,null,null,{"$f":"((Quarterly!DP15/Quarterly!DP11)-1)","v":3.2000910338026323E-2},null,null,null,null,"--","--","--","--","--","--","--","--","--",null,null,null,null,null,"--","--","--",null,null,null,null,null,{"$f":"((Quarterly!EQ15/Quarterly!EQ11)-1)","v":-1.051524710830698E-3},"--",{"$f":"((Quarterly!ES15/Quarterly!ES11)-1)","v":1.1282051282051286E-2},null,null,null,null,null,{"$f":"(Quarterly!EY15-Quarterly!EY11)*100","v":100},{"$f":"(Quarterly!EZ15-Quarterly!EZ11)*100","v":136.33333333333337},{"$f":"(Quarterly!FA15-Quarterly!FA11)*100","v":42.333333333333378},{"$f":"(Quarterly!FB15-Quarterly!FB11)*100","v":43.99999999999995},"--","--",{"$f":"(Quarterly!FE15-Quarterly!FE11)*100","v":109.99999999999997},{"$f":"(Quarterly!FF15-Quarterly!FF11)*100","v":106.66666666666669},"--",{"$f":"(Quarterly!FH15-Quarterly!FH11)*100","v":65.333333333333286},{"$f":"(Quarterly!FI15-Quarterly!FI11)*100","v":49.66666666666675},null,null,null,null,null,null,"--","--","--","--","--","--","--","--","--",null,null,null,null,null,"--","--","--","--","--","--","--","--","--"]
["60'Q2",{"$f":"((Quarterly!B16/Quarterly!B12)-1)","v":3.5205182349339337E-2},{"$f":"((Quarterly!C16/Quarterly!C12)-1)","v":2.043252713748811E-2},{"$f":"((Quarterly!D16/Quarterly!D12)-1)","v":2.9254054289541864E-2},{"$f":"((Quarterly!E16/Quarterly!E12)-1)","v":3.4124306084684752E-2},{"$f":"((Quarterly!F16/Quarterly!F12)-1)","v":2.460932693490836E-2},{"$f":"((Quarterly!G16/Quarterly!G12)-1)","v":2.3635436150314382E-2},{"$f":"((Quarterly!H16/Quarterly!H12)-1)","v":4.0852987887750603E-2},{"$f":"((Quarterly!I16/Quarterly!I12)-1)","v":7.5136116152450416E-2},{"$f":"((Quarterly!J16/Quarterly!J12)-1)","v":0.13820628419161718},{"$f":"((Quarterly!K16/Quarterly!K12)-1)","v":-0.10049129075480123},{"$f":"((Quarterly!L16-Quarterly!L12))","v":-17.015000000000001},{"$f":"((Quarterly!M16/Quarterly!M12)-1)","v":2.8705913010904194E-2},{"$f":"((Quarterly!N16/Quarterly!N12)-1)","v":0.20155610704943316},{"$f":"((Quarterly!O16/Quarterly!O12)-1)","v":-0.43502384308550501},{"$f":"((Quarterly!P16/Quarterly!P12)-1)","v":-5.905670981453448E-3},{"$f":"((Quarterly!Q16/Quarterly!Q12)-1)","v":-1.7113289760348582},null,null,null,null,null,"--","--",{"$f":"((Quarterly!Y16/Quarterly!Y12)-1)","v":0.1262264356923406},"--",{"$f":"((Quarterly!AA16/Quarterly!AA12)-1)","v":-9.5460575647459134E-2},{"$f":"((Quarterly!AB16/Quarterly!AB12)-1)","v":-4.8315988363374696E-2},"--","--","--","--","--","--","--","--","--","--",{"$f":"((Quarterly!AM16/Quarterly!AM12)-1)","v":-3.8204971043920288E-4},"--","--","--",{"$f":"Quarterly!AQ16-Quarterly!AQ12","v":-22.400000000000013},"--","--",{"$f":"Quarterly!AT16-Quarterly!AT12","v":-22.13333333333334},"--","--",{"$f":"Quarterly!AW16-Quarterly!AW12","v":-20.299999999999997},{"$f":"Quarterly!AX16-Quarterly!AX12","v":-18},{"$f":"Quarterly!AY16-Quarterly!AY12","v":-9.3999999999999986},{"$f":"Quarterly!AZ16-Quarterly!AZ12","v":-22.999999999999993},{"$f":"Quarterly!BA16-Quarterly!BA12","v":-31.833333333333336},"--","--","--","--",{"$f":"((Quarterly!BF16/Quarterly!BF12)-1)","v":4.4086865515436946E-2},{"$f":"((Quarterly!BG16/Quarterly!BG12)-1)","v":5.6021604228913002E-3},{"$f":"((Quarterly!BH16/Quarterly!BH12)-1)","v":2.5362881316463692E-2},{"$f":"((Quarterly!BI16/Quarterly!BI12)-1)","v":3.8247882706492931E-2},{"$f":"((Quarterly!BJ16/Quarterly!BJ12)-1)","v":-0.15486597789177081},"--",null,"--","--",null,null,null,null,null,{"$f":"((Quarterly!BT16/Quarterly!BT12)-1)","v":0.14923152437340859},"--","--",{"$f":"((Quarterly!BW16/Quarterly!BW12)-1)","v":0.13558807916887838},{"$f":"((Quarterly!BX16/Quarterly!BX12)-1)","v":-0.1707688956654323},"--","--","--","--","--","--","--",null,"--","--",null,"--",{"$f":"((Quarterly!CK16/Quarterly!CK12)-1)","v":4.8344370860927244E-2},{"$f":"((Quarterly!CL16/Quarterly!CL12)-1)","v":-5.5986218776916563E-2},{"$f":"((Quarterly!CM16/Quarterly!CM12)-1)","v":-0.17225527312060573},{"$f":"((Quarterly!CN16/Quarterly!CN12)-1)","v":2.4101553811445964E-2},{"$f":"((Quarterly!CO16/Quarterly!CO12)-1)","v":7.2384137601528842E-2},{"$f":"((Quarterly!CP16/Quarterly!CP12)-1)","v":0.1364939338931479},{"$f":"((Quarterly!CQ16/Quarterly!CQ12)-1)","v":1.6107813915377189E-2},"--","--","--",null,null,null,null,null,{"$f":"((Quarterly!CZ16/Quarterly!CZ12)-1)","v":1.8248594054860678E-2},{"$f":"((Quarterly!DA16/Quarterly!DA12)-1)","v":1.7718715393134188E-2},null,null,null,null,null,"--","--",{"$f":"Quarterly!DI16-Quarterly!DI12","v":0.29999999999999005},"--",{"$f":"(Quarterly!DK16-Quarterly!DK12)*100","v":13.333333333333286},{"$f":"((Quarterly!DL16/Quarterly!DL12)-1)","v":5.7941670615602181E-3},null,null,null,{"$f":"((Quarterly!DP16/Quarterly!DP12)-1)","v":1.9209208461020921E-2},null,null,null,null,"--","--","--","--","--","--","--","--","--",null,null,null,null,null,"--","--","--",null,null,null,null,null,{"$f":"((Quarterly!EQ16/Quarterly!EQ12)-1)","v":-1.0493179433367361E-3},"--",{"$f":"((Quarterly!ES16/Quarterly!ES12)-1)","v":-2.2204460492503131E-16},null,null,null,null,null,{"$f":"(Quarterly!EY16-Quarterly!EY12)*100","v":75.666666666666686},{"$f":"(Quarterly!EZ16-Quarterly!EZ12)*100","v":61.333333333333329},{"$f":"(Quarterly!FA16-Quarterly!FA12)*100","v":9.9999999999998757},{"$f":"(Quarterly!FB16-Quarterly!FB12)*100","v":29.333333333333389},"--","--",{"$f":"(Quarterly!FE16-Quarterly!FE12)*100","v":-0.66666666666663765},{"$f":"(Quarterly!FF16-Quarterly!FF12)*100","v":-4.6666666666666856},"--",{"$f":"(Quarterly!FH16-Quarterly!FH12)*100","v":-2.333333333333254},{"$f":"(Quarterly!FI16-Quarterly!FI12)*100","v":0.33333333333329662},null,null,null,null,null,null,"--","--","--","--","--","--","--","--","--",null,null,null,null,null,"--","--","--","--","--","--","--","--","--"]
["60'Q3",{"$f":"((Quarterly!B17/Quarterly!B13)-1)","v":3.9634726844834933E-2},{"$f":"((Quarterly!C17/Quarterly!C13)-1)","v":2.4947266621734965E-2},{"$f":"((Quarterly!D17/Quarterly!D13)-1)","v":1.7597190978407617E-2},{"$f":"((Quarterly!E17/Quarterly!E13)-1)","v":1.9391327767304123E-2},{"$f":"((Quarterly!F17/Quarterly!F13)-1)","v":-2.7764365041043071E-3},{"$f":"((Quarterly!G17/Quarterly!G13)-1)","v":1.3754319398332937E-2},{"$f":"((Quarterly!H17/Quarterly!H13)-1)","v":2.4258637478888012E-2},{"$f":"((Quarterly!I17/Quarterly!I13)-1)","v":2.8632025450689547E-2},{"$f":"((Quarterly!J17/Quarterly!J13)-1)","v":5.7679856761022164E-2},{"$f":"((Quarterly!K17/Quarterly!K13)-1)","v":-0.11106053709603991},{"$f":"((Quarterly!L17-Quarterly!L13))","v":13.814999999999998},{"$f":"((Quarterly!M17/Quarterly!M13)-1)","v":-1.0851149657119752E-2},{"$f":"((Quarterly!N17/Quarterly!N13)-1)","v":0.13522738354516783},{"$f":"((Quarterly!O17/Quarterly!O13)-1)","v":-0.43665708600486408},{"$f":"((Quarterly!P17/Quarterly!P13)-1)","v":9.5879659002167106E-3},{"$f":"((Quarterly!Q17/Quarterly!Q13)-1)","v":-0.91068052930056709},null,null,null,null,null,"--","--",{"$f":"((Quarterly!Y17/Quarterly!Y13)-1)","v":8.8649639517953682E-2},"--",{"$f":"((Quarterly!AA17/Quarterly!AA13)-1)","v":-4.1421436070371853E-2},{"$f":"((Quarterly!AB17/Quarterly!AB13)-1)","v":2.2816502542318373E-2},"--","--","--","--","--","--","--","--","--","--",{"$f":"((Quarterly!AM17/Quarterly!AM13)-1)","v":2.5109938371465024E-2},"--","--","--",{"$f":"Quarterly!AQ17-Quarterly!AQ13","v":-9.3999999999999915},"--","--",{"$f":"Quarterly!AT17-Quarterly!AT13","v":-11.566666666666663},"--","--",{"$f":"Quarterly!AW17-Quarterly!AW13","v":-11.133333333333326},{"$f":"Quarterly!AX17-Quarterly!AX13","v":-2.5333333333333243},{"$f":"Quarterly!AY17-Quarterly!AY13","v":-11.399999999999999},{"$f":"Quarterly!AZ17-Quarterly!AZ13","v":-8.1999999999999957},{"$f":"Quarterly!BA17-Quarterly!BA13","v":-20.966666666666669},"--","--","--","--",{"$f":"((Quarterly!BF17/Quarterly!BF13)-1)","v":4.4213263979193673E-2},{"$f":"((Quarterly!BG17/Quarterly!BG13)-1)","v":1.0536012435949038E-2},{"$f":"((Quarterly!BH17/Quarterly!BH13)-1)","v":3.0211363195656427E-2},{"$f":"((Quarterly!BI17/Quarterly!BI13)-1)","v":3.3339356704011447E-2},{"$f":"((Quarterly!BJ17/Quarterly!BJ13)-1)","v":-6.7995653627549446E-2},"--",null,"--","--",null,null,null,null,null,{"$f":"((Quarterly!BT17/Quarterly!BT13)-1)","v":0.12218215925128351},"--","--",{"$f":"((Quarterly!BW17/Quarterly!BW13)-1)","v":0.11510424260096208},{"$f":"((Quarterly!BX17/Quarterly!BX13)-1)","v":-0.19459818463582024},"--","--","--","--","--","--","--",null,"--","--",null,"--",{"$f":"((Quarterly!CK17/Quarterly!CK13)-1)","v":4.8637972183359413E-2},{"$f":"((Quarterly!CL17/Quarterly!CL13)-1)","v":0.10315186246418295},{"$f":"((Quarterly!CM17/Quarterly!CM13)-1)","v":-0.2204618689581096},{"$f":"((Quarterly!CN17/Quarterly!CN13)-1)","v":2.7332315133002494E-2},{"$f":"((Quarterly!CO17/Quarterly!CO13)-1)","v":7.4004683840749319E-2},{"$f":"((Quarterly!CP17/Quarterly!CP13)-1)","v":0.11302168982494276},{"$f":"((Quarterly!CQ17/Quarterly!CQ13)-1)","v":1.5996421532938898E-2},"--","--","--",null,null,null,null,null,{"$f":"((Quarterly!CZ17/Quarterly!CZ13)-1)","v":1.3587577072390999E-2},{"$f":"((Quarterly!DA17/Quarterly!DA13)-1)","v":1.2127894156560126E-2},null,null,null,null,null,"--","--",{"$f":"Quarterly!DI17-Quarterly!DI13","v":0.26666666666667282},"--",{"$f":"(Quarterly!DK17-Quarterly!DK13)*100","v":26.66666666666675},{"$f":"((Quarterly!DL17/Quarterly!DL13)-1)","v":5.2084463638535361E-4},null,null,null,{"$f":"((Quarterly!DP17/Quarterly!DP13)-1)","v":1.3931965671437174E-2},null,null,null,null,"--","--","--","--","--","--","--","--","--",null,null,null,null,null,"--","--","--",null,null,null,null,null,{"$f":"((Quarterly!EQ17/Quarterly!EQ13)-1)","v":-1.0526315789473051E-3},"--",{"$f":"((Quarterly!ES17/Quarterly!ES13)-1)","v":-2.0304568527922395E-3},null,null,null,null,null,{"$f":"(Quarterly!EY17-Quarterly!EY13)*100","v":11.666666666666625},{"$f":"(Quarterly!EZ17-Quarterly!EZ13)*100","v":-63.999999999999972},{"$f":"(Quarterly!FA17-Quarterly!FA13)*100","v":-15.999999999999925},{"$f":"(Quarterly!FB17-Quarterly!FB13)*100","v":-1.3333333333332753},"--","--",{"$f":"(Quarterly!FE17-Quarterly!FE13)*100","v":-118.00000000000006},{"$f":"(Quarterly!FF17-Quarterly!FF13)*100","v":-152.99999999999989},"--",{"$f":"(Quarterly!FH17-Quarterly!FH13)*100","v":-101.00000000000003},{"$f":"(Quarterly!FI17-Quarterly!FI13)*100","v":-66.999999999999943},null,null,null,null,null,null,"--","--","--","--","--","--","--","--","--",null,null,null,null,null,"--","--","--","--","--","--","--","--","--"]
["60'Q4",{"$f":"((Quarterly!B18/Quarterly!B14)-1)","v":2.2181205391047287E-2},{"$f":"((Quarterly!C18/Quarterly!C14)-1)","v":8.5745035193565133E-3},{"$f":"((Quarterly!D18/Quarterly!D14)-1)","v":2.5920832023472729E-2},{"$f":"((Quarterly!E18/Quarterly!E14)-1)","v":1.9584633595179257E-2},{"$f":"((Quarterly!F18/Quarterly!F14)-1)","v":2.0915198377487787E-2},{"$f":"((Quarterly!G18/Quarterly!G14)-1)","v":8.215211609036821E-3},{"$f":"((Quarterly!H18/Quarterly!H14)-1)","v":2.5979335928669522E-2},{"$f":"((Quarterly!I18/Quarterly!I14)-1)","v":2.9065130704475139E-2},{"$f":"((Quarterly!J18/Quarterly!J14)-1)","v":6.4932759985800947E-2},{"$f":"((Quarterly!K18/Quarterly!K14)-1)","v":-8.5794655414908605E-2},{"$f":"((Quarterly!L18-Quarterly!L14))","v":-37.234999999999999},{"$f":"((Quarterly!M18/Quarterly!M14)-1)","v":-3.2938469052408492E-2},{"$f":"((Quarterly!N18/Quarterly!N14)-1)","v":0.19062994054643845},{"$f":"((Quarterly!O18/Quarterly!O14)-1)","v":-0.68105089888003079},{"$f":"((Quarterly!P18/Quarterly!P14)-1)","v":2.4627199284733559E-2},{"$f":"((Quarterly!Q18/Quarterly!Q14)-1)","v":-2.2353180247917104E-3},null,null,null,null,null,"--","--",{"$f":"((Quarterly!Y18/Quarterly!Y14)-1)","v":7.6546597446957687E-2},"--",{"$f":"((Quarterly!AA18/Quarterly!AA14)-1)","v":-5.4740259740259756E-2},{"$f":"((Quarterly!AB18/Quarterly!AB14)-1)","v":-4.3701316983138838E-2},"--","--","--","--","--","--","--","--","--","--",{"$f":"((Quarterly!AM18/Quarterly!AM14)-1)","v":-4.3637670432911113E-3},"--","--","--",{"$f":"Quarterly!AQ18-Quarterly!AQ14","v":-7.9666666666666686},"--","--",{"$f":"Quarterly!AT18-Quarterly!AT14","v":-7.8333333333333215},"--","--",{"$f":"Quarterly!AW18-Quarterly!AW14","v":-3.6333333333333329},{"$f":"Quarterly!AX18-Quarterly!AX14","v":-6.0333333333333243},{"$f":"Quarterly!AY18-Quarterly!AY14","v":-17.766666666666666},{"$f":"Quarterly!AZ18-Quarterly!AZ14","v":-6.5666666666666629},{"$f":"Quarterly!BA18-Quarterly!BA14","v":-17.533333333333331},"--","--","--","--",{"$f":"((Quarterly!BF18/Quarterly!BF14)-1)","v":3.8768675940236808E-2},{"$f":"((Quarterly!BG18/Quarterly!BG14)-1)","v":-5.7673452909523526E-5},{"$f":"((Quarterly!BH18/Quarterly!BH14)-1)","v":2.4481199520810071E-2},{"$f":"((Quarterly!BI18/Quarterly!BI14)-1)","v":3.8860103626942921E-2},{"$f":"((Quarterly!BJ18/Quarterly!BJ14)-1)","v":-8.4073493556252266E-2},"--",null,"--","--",null,null,null,null,null,{"$f":"((Quarterly!BT18/Quarterly!BT14)-1)","v":9.7341561998697035E-2},"--","--",{"$f":"((Quarterly!BW18/Quarterly!BW14)-1)","v":0.10483187341056799},{"$f":"((Quarterly!BX18/Quarterly!BX14)-1)","v":-0.18687099725526068},"--","--","--","--","--","--","--",null,"--","--",null,"--",{"$f":"((Quarterly!CK18/Quarterly!CK14)-1)","v":3.7743506493506551E-2},{"$f":"((Quarterly!CL18/Quarterly!CL14)-1)","v":2.1543985637342722E-2},{"$f":"((Quarterly!CM18/Quarterly!CM14)-1)","v":-0.25},{"$f":"((Quarterly!CN18/Quarterly!CN14)-1)","v":1.9651517305657062E-2},{"$f":"((Quarterly!CO18/Quarterly!CO14)-1)","v":8.4309671490925941E-2},{"$f":"((Quarterly!CP18/Quarterly!CP14)-1)","v":8.6920564383080823E-2},{"$f":"((Quarterly!CQ18/Quarterly!CQ14)-1)","v":1.6088133534302829E-2},"--","--","--",null,null,null,null,null,{"$f":"((Quarterly!CZ18/Quarterly!CZ14)-1)","v":1.3959822948587108E-2},{"$f":"((Quarterly!DA18/Quarterly!DA14)-1)","v":1.0952902519167473E-2},null,null,null,null,null,"--","--",{"$f":"Quarterly!DI18-Quarterly!DI14","v":0.29999999999999005},"--",{"$f":"(Quarterly!DK18-Quarterly!DK14)*100","v":66.666666666666515},{"$f":"((Quarterly!DL18/Quarterly!DL14)-1)","v":-1.6097847103039298E-2},null,null,null,{"$f":"((Quarterly!DP18/Quarterly!DP14)-1)","v":4.2253783295795877E-3},null,null,null,null,"--","--","--","--","--","--","--","--","--",null,null,null,null,null,"--","--","--",null,null,null,null,null,{"$f":"((Quarterly!EQ18/Quarterly!EQ14)-1)","v":5.285412262156397E-3},"--",{"$f":"((Quarterly!ES18/Quarterly!ES14)-1)","v":2.0366598778003286E-3},null,null,null,null,null,{"$f":"(Quarterly!EY18-Quarterly!EY14)*100","v":-50},{"$f":"(Quarterly!EZ18-Quarterly!EZ14)*100","v":-169.33333333333334},{"$f":"(Quarterly!FA18-Quarterly!FA14)*100","v":-25},{"$f":"(Quarterly!FB18-Quarterly!FB14)*100","v":-17.666666666666675},"--","--",{"$f":"(Quarterly!FE18-Quarterly!FE14)*100","v":-192.33333333333329},{"$f":"(Quarterly!FF18-Quarterly!FF14)*100","v":-192.33333333333334},"--",{"$f":"(Quarterly!FH18-Quarterly!FH14)*100","v":-107.99999999999996},{"$f":"(Quarterly!FI18-Quarterly!FI14)*100","v":-69.666666666666629},null,null,null,null,null,null,"--","--","--","--","--","--","--","--","--",null,null,null,null,null,"--","--","--","--","--","--","--","--","--"]
["61'Q1",{"$f":"((Quarterly!B19/Quarterly!B15)-1)","v":4.7888365998154381E-3},{"$f":"((Quarterly!C19/Quarterly!C15)-1)","v":-6.69545800057747E-3},{"$f":"((Quarterly!D19/Quarterly!D15)-1)","v":1.6460885358371646E-2},{"$f":"((Quarterly!E19/Quarterly!E15)-1)","v":9.5928373481133367E-3},{"$f":"((Quarterly!F19/Quarterly!F15)-1)","v":-6.5217391304347783E-2},{"$f":"((Quarterly!G19/Quarterly!G15)-1)","v":1.1654072208228561E-2},{"$f":"((Quarterly!H19/Quarterly!H15)-1)","v":1.3868885000021924E-2},{"$f":"((Quarterly!I19/Quarterly!I15)-1)","v":-1.9696839941765965E-2},{"$f":"((Quarterly!J19/Quarterly!J15)-1)","v":-2.1490071381781495E-2},{"$f":"((Quarterly!K19/Quarterly!K15)-1)","v":-0.1075660893345487},{"$f":"((Quarterly!L19-Quarterly!L15))","v":-51.917999999999999},{"$f":"((Quarterly!M19/Quarterly!M15)-1)","v":-7.2786728345828555E-2},{"$f":"((Quarterly!N19/Quarterly!N15)-1)","v":5.0888545871922819E-2},{"$f":"((Quarterly!O19/Quarterly!O15)-1)","v":-0.58681526566869513},{"$f":"((Quarterly!P19/Quarterly!P15)-1)","v":5.7634588467195158E-2},{"$f":"((Quarterly!Q19/Quarterly!Q15)-1)","v":-1.9894179894179893},null,null,null,null,null,"--","--",{"$f":"((Quarterly!Y19/Quarterly!Y15)-1)","v":5.5290649336078523E-2},"--",{"$f":"((Quarterly!AA19/Quarterly!AA15)-1)","v":-0.15296668052503415},{"$f":"((Quarterly!AB19/Quarterly!AB15)-1)","v":-0.11699397122903366},"--","--","--","--","--","--","--","--","--","--",{"$f":"((Quarterly!AM19/Quarterly!AM15)-1)","v":-7.5196231916805023E-2},"--","--","--",{"$f":"Quarterly!AQ19-Quarterly!AQ15","v":-8.3333333333333357},"--","--",{"$f":"Quarterly!AT19-Quarterly!AT15","v":-16.633333333333333},"--","--",{"$f":"Quarterly!AW19-Quarterly!AW15","v":-13.20000000000001},{"$f":"Quarterly!AX19-Quarterly!AX15","v":-6.3333333333333357},{"$f":"Quarterly!AY19-Quarterly!AY15","v":-10.79999999999999},{"$f":"Quarterly!AZ19-Quarterly!AZ15","v":-10.333333333333336},{"$f":"Quarterly!BA19-Quarterly!BA15","v":5.2333333333333343},"--","--","--","--",{"$f":"((Quarterly!BF19/Quarterly!BF15)-1)","v":2.5977301387137386E-2},{"$f":"((Quarterly!BG19/Quarterly!BG15)-1)","v":-1.023025110616349E-2},{"$f":"((Quarterly!BH19/Quarterly!BH15)-1)","v":1.062158017305026E-2},{"$f":"((Quarterly!BI19/Quarterly!BI15)-1)","v":3.6465324384787445E-2},{"$f":"((Quarterly!BJ19/Quarterly!BJ15)-1)","v":-0.22018348623853212},"--",null,"--","--",null,null,null,null,null,{"$f":"((Quarterly!BT19/Quarterly!BT15)-1)","v":9.8435947176920946E-2},"--","--",{"$f":"((Quarterly!BW19/Quarterly!BW15)-1)","v":9.8965824258612445E-2},{"$f":"((Quarterly!BX19/Quarterly!BX15)-1)","v":-8.6198428290766183E-2},{"$f":"((Quarterly!BY19/Quarterly!BY15)-1)","v":-6.5390749601275999E-2},"--","--",{"$f":"((Quarterly!CB19/Quarterly!CB15)-1)","v":0.27337344742776315},{"$f":"((Quarterly!CC19/Quarterly!CC15)-1)","v":0.29159319793536453},"--","--",null,"--","--",null,"--",{"$f":"((Quarterly!CK19/Quarterly!CK15)-1)","v":3.252617278030856E-2},{"$f":"((Quarterly!CL19/Quarterly!CL15)-1)","v":8.8695652173912842E-2},{"$f":"((Quarterly!CM19/Quarterly!CM15)-1)","v":-0.15648510382184777},{"$f":"((Quarterly!CN19/Quarterly!CN15)-1)","v":1.7405829001389206E-2},{"$f":"((Quarterly!CO19/Quarterly!CO15)-1)","v":9.891353553644211E-2},{"$f":"((Quarterly!CP19/Quarterly!CP15)-1)","v":7.2052568169691966E-2},{"$f":"((Quarterly!CQ19/Quarterly!CQ15)-1)","v":1.6292636389115156E-2},"--","--","--",null,null,null,null,null,{"$f":"((Quarterly!CZ19/Quarterly!CZ15)-1)","v":1.508107495180866E-2},{"$f":"((Quarterly!DA19/Quarterly!DA15)-1)","v":8.7241003271536499E-3},null,null,null,null,null,"--","--",{"$f":"Quarterly!DI19-Quarterly!DI15","v":0.73333333333333428},"--",{"$f":"(Quarterly!DK19-Quarterly!DK15)*100","v":166.6666666666666},{"$f":"((Quarterly!DL19/Quarterly!DL15)-1)","v":-5.710468839458005E-2},null,null,null,{"$f":"((Quarterly!DP19/Quarterly!DP15)-1)","v":-1.4358785873993085E-2},null,null,null,null,"--","--","--","--","--","--","--","--","--",null,null,null,null,null,{"$f":"((Quarterly!EI19/Quarterly!EI15)-1)","v":-3.5602509843346453E-2},{"$f":"((Quarterly!EJ19/Quarterly!EJ15)-1)","v":-9.906515784611214E-3},{"$f":"((Quarterly!EK19/Quarterly!EK15)-1)","v":6.5646748689229817E-4},null,null,null,null,null,{"$f":"((Quarterly!EQ19/Quarterly!EQ15)-1)","v":4.2105263157894424E-3},"--",{"$f":"((Quarterly!ES19/Quarterly!ES15)-1)","v":1.0141987829614951E-3},null,null,null,null,null,{"$f":"(Quarterly!EY19-Quarterly!EY15)*100","v":-50},{"$f":"(Quarterly!EZ19-Quarterly!EZ15)*100","v":-193.00000000000003},{"$f":"(Quarterly!FA19-Quarterly!FA15)*100","v":-28.33333333333341},{"$f":"(Quarterly!FB19-Quarterly!FB15)*100","v":-24.666666666666615},"--","--",{"$f":"(Quarterly!FE19-Quarterly!FE15)*100","v":-152.33333333333329},{"$f":"(Quarterly!FF19-Quarterly!FF15)*100","v":-169.66666666666669},"--",{"$f":"(Quarterly!FH19-Quarterly!FH15)*100","v":-99.666666666666657},{"$f":"(Quarterly!FI19-Quarterly!FI15)*100","v":-70.000000000000057},null,null,null,null,null,null,"--","--","--","--","--","--","--","--","--",null,null,null,null,null,"--","--","--","--","--","--","--","--","--"]
["61'Q2",{"$f":"((Quarterly!B20/Quarterly!B16)-1)","v":2.7147745427006154E-2},{"$f":"((Quarterly!C20/Quarterly!C16)-1)","v":1.5623001243849188E-2},{"$f":"((Quarterly!D20/Quarterly!D16)-1)","v":1.7355992813388843E-2},{"$f":"((Quarterly!E20/Quarterly!E16)-1)","v":1.1894110836271787E-2},{"$f":"((Quarterly!F20/Quarterly!F16)-1)","v":-6.7010928305512141E-2},{"$f":"((Quarterly!G20/Quarterly!G16)-1)","v":1.4152823920265734E-2},{"$f":"((Quarterly!H20/Quarterly!H16)-1)","v":1.6414651082591325E-2},{"$f":"((Quarterly!I20/Quarterly!I16)-1)","v":-1.232275489534107E-2},{"$f":"((Quarterly!J20/Quarterly!J16)-1)","v":-1.4427836659996141E-2},{"$f":"((Quarterly!K20/Quarterly!K16)-1)","v":-2.432969215491565E-2},{"$f":"((Quarterly!L20-Quarterly!L16))","v":-4.3049999999999997},{"$f":"((Quarterly!M20/Quarterly!M16)-1)","v":-6.8483716217285995E-2},{"$f":"((Quarterly!N20/Quarterly!N16)-1)","v":-2.560381079974694E-2},{"$f":"((Quarterly!O20/Quarterly!O16)-1)","v":-0.31314364582227405},{"$f":"((Quarterly!P20/Quarterly!P16)-1)","v":4.8758175316544028E-2},{"$f":"((Quarterly!Q20/Quarterly!Q16)-1)","v":-5.8874425727411941},null,null,null,null,null,"--","--",{"$f":"((Quarterly!Y20/Quarterly!Y16)-1)","v":3.2864629916539156E-2},"--",{"$f":"((Quarterly!AA20/Quarterly!AA16)-1)","v":-4.3393699783190964E-2},{"$f":"((Quarterly!AB20/Quarterly!AB16)-1)","v":2.070465145594369E-2},"--","--","--","--","--","--","--","--","--","--",{"$f":"((Quarterly!AM20/Quarterly!AM16)-1)","v":-1.7208431402740865E-2},"--","--","--",{"$f":"Quarterly!AQ20-Quarterly!AQ16","v":14.099999999999994},"--","--",{"$f":"Quarterly!AT20-Quarterly!AT16","v":13.466666666666669},"--","--",{"$f":"Quarterly!AW20-Quarterly!AW16","v":-1.5333333333333385},{"$f":"Quarterly!AX20-Quarterly!AX16","v":16.5},{"$f":"Quarterly!AY20-Quarterly!AY16","v":-4.3999999999999915},{"$f":"Quarterly!AZ20-Quarterly!AZ16","v":16.766666666666673},{"$f":"Quarterly!BA20-Quarterly!BA16","v":16.233333333333327},"--","--","--","--",{"$f":"((Quarterly!BF20/Quarterly!BF16)-1)","v":3.3579751910788103E-2},{"$f":"((Quarterly!BG20/Quarterly!BG16)-1)","v":3.2025826357740872E-2},{"$f":"((Quarterly!BH20/Quarterly!BH16)-1)","v":2.4659815666458584E-2},{"$f":"((Quarterly!BI20/Quarterly!BI16)-1)","v":1.4910972721691174E-3},{"$f":"((Quarterly!BJ20/Quarterly!BJ16)-1)","v":-5.9585381491771727E-2},"--",null,"--","--",null,null,null,null,null,{"$f":"((Quarterly!BT20/Quarterly!BT16)-1)","v":8.2986532840382932E-2},"--","--",{"$f":"((Quarterly!BW20/Quarterly!BW16)-1)","v":9.4557595993322252E-2},{"$f":"((Quarterly!BX20/Quarterly!BX16)-1)","v":-8.1428946677173375E-3},{"$f":"((Quarterly!BY20/Quarterly!BY16)-1)","v":2.4124256444150838E-2},"--","--",{"$f":"((Quarterly!CB20/Quarterly!CB16)-1)","v":0.11470137011341386},{"$f":"((Quarterly!CC20/Quarterly!CC16)-1)","v":0.19085331982305331},"--","--",null,"--","--",null,"--",{"$f":"((Quarterly!CK20/Quarterly!CK16)-1)","v":3.498104864181939E-2},{"$f":"((Quarterly!CL20/Quarterly!CL16)-1)","v":0.16605839416058377},{"$f":"((Quarterly!CM20/Quarterly!CM16)-1)","v":-7.611891538712845E-2},{"$f":"((Quarterly!CN20/Quarterly!CN16)-1)","v":2.6481949766518076E-2},{"$f":"((Quarterly!CO20/Quarterly!CO16)-1)","v":0.10670527957228781},{"$f":"((Quarterly!CP20/Quarterly!CP16)-1)","v":3.7580688252479844E-2},{"$f":"((Quarterly!CQ20/Quarterly!CQ16)-1)","v":1.6623726355856405E-2},"--","--","--",null,null,null,null,null,{"$f":"((Quarterly!CZ20/Quarterly!CZ16)-1)","v":8.6789900811541365E-3},{"$f":"((Quarterly!DA20/Quarterly!DA16)-1)","v":9.7932535364526618E-3},null,null,null,null,null,"--","--",{"$f":"Quarterly!DI20-Quarterly!DI16","v":-0.10000000000000142},"--",{"$f":"(Quarterly!DK20-Quarterly!DK16)*100","v":176.66666666666666},{"$f":"((Quarterly!DL20/Quarterly!DL16)-1)","v":-4.19102687653925E-2},null,null,null,{"$f":"((Quarterly!DP20/Quarterly!DP16)-1)","v":-1.3713699031974169E-2},null,null,null,null,"--","--","--","--","--","--","--","--","--",null,null,null,null,null,{"$f":"((Quarterly!EI20/Quarterly!EI16)-1)","v":1.9990123369539869E-3},{"$f":"((Quarterly!EJ20/Quarterly!EJ16)-1)","v":9.787087245152426E-3},{"$f":"((Quarterly!EK20/Quarterly!EK16)-1)","v":1.3786036767395871E-2},null,null,null,null,null,{"$f":"((Quarterly!EQ20/Quarterly!EQ16)-1)","v":-8.4033613445377853E-3},"--",{"$f":"((Quarterly!ES20/Quarterly!ES16)-1)","v":4.0691759918616288E-3},null,null,null,null,null,{"$f":"(Quarterly!EY20-Quarterly!EY16)*100","v":-50},{"$f":"(Quarterly!EZ20-Quarterly!EZ16)*100","v":-196.33333333333337},{"$f":"(Quarterly!FA20-Quarterly!FA16)*100","v":-16.999999999999993},{"$f":"(Quarterly!FB20-Quarterly!FB16)*100","v":-23.000000000000043},"--","--",{"$f":"(Quarterly!FE20-Quarterly!FE16)*100","v":-69.000000000000043},{"$f":"(Quarterly!FF20-Quarterly!FF16)*100","v":-93.333333333333272},"--",{"$f":"(Quarterly!FH20-Quarterly!FH16)*100","v":-68.3333333333334},{"$f":"(Quarterly!FI20-Quarterly!FI16)*100","v":-46.999999999999929},null,null,null,null,null,null,"--","--","--","--","--","--","--","--","--",null,null,null,null,null,"--","--","--","--","--","--","--","--","--"]
["61'Q3",{"$f":"((Quarterly!B21/Quarterly!B17)-1)","v":4.0687750452371052E-2},{"$f":"((Quarterly!C21/Quarterly!C17)-1)","v":2.9992718953196551E-2},{"$f":"((Quarterly!D21/Quarterly!D17)-1)","v":2.6466887678534778E-2},{"$f":"((Quarterly!E21/Quarterly!E17)-1)","v":2.0871862615587933E-2},{"$f":"((Quarterly!F21/Quarterly!F17)-1)","v":-3.6557317516039189E-2},{"$f":"((Quarterly!G21/Quarterly!G17)-1)","v":2.0886245154391192E-2},{"$f":"((Quarterly!H21/Quarterly!H17)-1)","v":2.5059442857800152E-2},{"$f":"((Quarterly!I21/Quarterly!I17)-1)","v":1.5206185567010255E-2},{"$f":"((Quarterly!J21/Quarterly!J17)-1)","v":2.996632207411043E-2},{"$f":"((Quarterly!K21/Quarterly!K17)-1)","v":6.041986687147971E-2},{"$f":"((Quarterly!L21-Quarterly!L17))","v":8.9740000000000002},{"$f":"((Quarterly!M21/Quarterly!M17)-1)","v":2.3310631703437723E-2},{"$f":"((Quarterly!N21/Quarterly!N17)-1)","v":-5.7841537095897344E-3},{"$f":"((Quarterly!O21/Quarterly!O17)-1)","v":0.19421394931599001},{"$f":"((Quarterly!P21/Quarterly!P17)-1)","v":4.5463012344904241E-2},{"$f":"((Quarterly!Q21/Quarterly!Q17)-1)","v":11.886243386243388},null,null,null,null,null,"--","--",{"$f":"((Quarterly!Y21/Quarterly!Y17)-1)","v":3.1319362591271771E-2},"--",{"$f":"((Quarterly!AA21/Quarterly!AA17)-1)","v":5.0114500016594121E-2},{"$f":"((Quarterly!AB21/Quarterly!AB17)-1)","v":6.5066230374728473E-2},"--","--","--","--","--","--","--","--","--","--",{"$f":"((Quarterly!AM21/Quarterly!AM17)-1)","v":3.1103625168608318E-2},"--","--","--",{"$f":"Quarterly!AQ21-Quarterly!AQ17","v":15.066666666666663},"--","--",{"$f":"Quarterly!AT21-Quarterly!AT17","v":15.866666666666667},"--","--",{"$f":"Quarterly!AW21-Quarterly!AW17","v":11.43333333333333},{"$f":"Quarterly!AX21-Quarterly!AX17","v":15.033333333333339},{"$f":"Quarterly!AY21-Quarterly!AY17","v":2.7000000000000028},{"$f":"Quarterly!AZ21-Quarterly!AZ17","v":17},{"$f":"Quarterly!BA21-Quarterly!BA17","v":13.199999999999996},"--","--","--","--",{"$f":"((Quarterly!BF21/Quarterly!BF17)-1)","v":3.4993773349937918E-2},{"$f":"((Quarterly!BG21/Quarterly!BG17)-1)","v":4.3242935278031025E-2},{"$f":"((Quarterly!BH21/Quarterly!BH17)-1)","v":2.2699894594187642E-2},{"$f":"((Quarterly!BI21/Quarterly!BI17)-1)","v":-7.8691964676050885E-3},{"$f":"((Quarterly!BJ21/Quarterly!BJ17)-1)","v":5.3719564145105592E-2},"--",null,"--","--",null,null,null,null,null,{"$f":"((Quarterly!BT21/Quarterly!BT17)-1)","v":6.2215128321631452E-2},"--","--",{"$f":"((Quarterly!BW21/Quarterly!BW17)-1)","v":9.0736745767143745E-2},{"$f":"((Quarterly!BX21/Quarterly!BX17)-1)","v":0.12039582188015396},{"$f":"((Quarterly!BY21/Quarterly!BY17)-1)","v":0.12193483372522662},"--","--",{"$f":"((Quarterly!CB21/Quarterly!CB17)-1)","v":0.15667896116501367},{"$f":"((Quarterly!CC21/Quarterly!CC17)-1)","v":0.18050161167661738},"--","--",null,"--","--",null,"--",{"$f":"((Quarterly!CK21/Quarterly!CK17)-1)","v":4.5361795636477797E-2},{"$f":"((Quarterly!CL21/Quarterly!CL17)-1)","v":0.20086580086580086},{"$f":"((Quarterly!CM21/Quarterly!CM17)-1)","v":4.340337581811915E-2},{"$f":"((Quarterly!CN21/Quarterly!CN17)-1)","v":3.8266175240809108E-2},{"$f":"((Quarterly!CO21/Quarterly!CO17)-1)","v":0.10641081552551235},{"$f":"((Quarterly!CP21/Quarterly!CP17)-1)","v":2.7335582682795456E-2},{"$f":"((Quarterly!CQ21/Quarterly!CQ17)-1)","v":1.6649043757621662E-2},"--","--","--",null,null,null,null,null,{"$f":"((Quarterly!CZ21/Quarterly!CZ17)-1)","v":1.2053621719049223E-2},{"$f":"((Quarterly!DA21/Quarterly!DA17)-1)","v":1.525054466230924E-2},null,null,null,null,null,"--","--",{"$f":"Quarterly!DI21-Quarterly!DI17","v":-0.36666666666666714},"--",{"$f":"(Quarterly!DK21-Quarterly!DK17)*100","v":123.33333333333326},{"$f":"((Quarterly!DL21/Quarterly!DL17)-1)","v":-1.9543196755091752E-2},null,null,null,{"$f":"((Quarterly!DP21/Quarterly!DP17)-1)","v":3.685435772071699E-5},null,null,null,null,"--","--","--","--","--","--","--","--","--",null,null,null,null,null,{"$f":"((Quarterly!EI21/Quarterly!EI17)-1)","v":3.2161369836000153E-2},{"$f":"((Quarterly!EJ21/Quarterly!EJ17)-1)","v":2.6462204269096734E-2},{"$f":"((Quarterly!EK21/Quarterly!EK17)-1)","v":2.5974370383514911E-2},null,null,null,null,null,{"$f":"((Quarterly!EQ21/Quarterly!EQ17)-1)","v":-4.2149631190727677E-3},"--",{"$f":"((Quarterly!ES21/Quarterly!ES17)-1)","v":4.0691759918618509E-3},null,null,null,null,null,{"$f":"(Quarterly!EY21-Quarterly!EY17)*100","v":-28.333333333333321},{"$f":"(Quarterly!EZ21-Quarterly!EZ17)*100","v":-125.33333333333336},{"$f":"(Quarterly!FA21-Quarterly!FA17)*100","v":12.333333333333307},{"$f":"(Quarterly!FB21-Quarterly!FB17)*100","v":0.33333333333329662},"--","--",{"$f":"(Quarterly!FE21-Quarterly!FE17)*100","v":-5.6666666666666643},{"$f":"(Quarterly!FF21-Quarterly!FF17)*100","v":-6.0000000000000053},"--",{"$f":"(Quarterly!FH21-Quarterly!FH17)*100","v":22.666666666666657},{"$f":"(Quarterly!FI21-Quarterly!FI17)*100","v":14.66666666666665},null,null,null,null,null,null,"--","--","--","--","--","--","--","--","--",null,null,null,null,null,"--","--","--","--","--","--","--","--","--"]
["61'Q4",{"$f":"((Quarterly!B22/Quarterly!B18)-1)","v":7.4965392200168957E-2},{"$f":"((Quarterly!C22/Quarterly!C18)-1)","v":6.3744847953785655E-2},{"$f":"((Quarterly!D22/Quarterly!D18)-1)","v":4.4367930707366554E-2},{"$f":"((Quarterly!E22/Quarterly!E18)-1)","v":4.0000000000000036E-2},{"$f":"((Quarterly!F22/Quarterly!F18)-1)","v":3.6131114973926071E-2},{"$f":"((Quarterly!G22/Quarterly!G18)-1)","v":3.4029053264317932E-2},{"$f":"((Quarterly!H22/Quarterly!H18)-1)","v":4.3623756957022586E-2},{"$f":"((Quarterly!I22/Quarterly!I18)-1)","v":4.848015155429275E-2},{"$f":"((Quarterly!J22/Quarterly!J18)-1)","v":8.0769587236184437E-2},{"$f":"((Quarterly!K22/Quarterly!K18)-1)","v":9.7435897435897534E-2},{"$f":"((Quarterly!L22-Quarterly!L18))","v":41.887},{"$f":"((Quarterly!M22/Quarterly!M18)-1)","v":9.9501806166646611E-2},{"$f":"((Quarterly!N22/Quarterly!N18)-1)","v":4.1518608565551673E-3},{"$f":"((Quarterly!O22/Quarterly!O18)-1)","v":1.1313499291641356},{"$f":"((Quarterly!P22/Quarterly!P18)-1)","v":6.1229577804959634E-2},{"$f":"((Quarterly!Q22/Quarterly!Q18)-1)","v":-0.41120162932790227},null,null,null,null,null,"--","--",{"$f":"((Quarterly!Y22/Quarterly!Y18)-1)","v":3.6697855361595977E-2},"--",{"$f":"((Quarterly!AA22/Quarterly!AA18)-1)","v":0.16407913718485934},{"$f":"((Quarterly!AB22/Quarterly!AB18)-1)","v":0.19057899901864572},"--","--","--","--","--","--","--","--","--","--",{"$f":"((Quarterly!AM22/Quarterly!AM18)-1)","v":9.3624895977907796E-2},"--","--","--",{"$f":"Quarterly!AQ22-Quarterly!AQ18","v":16.933333333333337},"--","--",{"$f":"Quarterly!AT22-Quarterly!AT18","v":16.133333333333333},"--","--",{"$f":"Quarterly!AW22-Quarterly!AW18","v":15.56666666666667},{"$f":"Quarterly!AX22-Quarterly!AX18","v":20.333333333333321},{"$f":"Quarterly!AY22-Quarterly!AY18","v":8.3999999999999986},{"$f":"Quarterly!AZ22-Quarterly!AZ18","v":15.466666666666661},{"$f":"Quarterly!BA22-Quarterly!BA18","v":15.033333333333331},"--","--","--","--",{"$f":"((Quarterly!BF22/Quarterly!BF18)-1)","v":3.8065716057036569E-2},{"$f":"((Quarterly!BG22/Quarterly!BG18)-1)","v":6.6011073941631082E-2},{"$f":"((Quarterly!BH22/Quarterly!BH18)-1)","v":3.0761396427830379E-2},{"$f":"((Quarterly!BI22/Quarterly!BI18)-1)","v":-2.6270530570126405E-2},{"$f":"((Quarterly!BJ22/Quarterly!BJ18)-1)","v":0.22265532157627055},"--",null,"--","--",null,null,null,null,null,{"$f":"((Quarterly!BT22/Quarterly!BT18)-1)","v":5.1667168851596612E-2},"--","--",{"$f":"((Quarterly!BW22/Quarterly!BW18)-1)","v":7.787723785166234E-2},{"$f":"((Quarterly!BX22/Quarterly!BX18)-1)","v":0.17158931082981699},{"$f":"((Quarterly!BY22/Quarterly!BY18)-1)","v":0.18401102687801507},"--","--",{"$f":"((Quarterly!CB22/Quarterly!CB18)-1)","v":-9.88516424113276E-2},{"$f":"((Quarterly!CC22/Quarterly!CC18)-1)","v":-6.6736809973313549E-2},"--","--",null,"--","--",null,"--",{"$f":"((Quarterly!CK22/Quarterly!CK18)-1)","v":6.2495111458740649E-2},{"$f":"((Quarterly!CL22/Quarterly!CL18)-1)","v":0.23725834797891054},{"$f":"((Quarterly!CM22/Quarterly!CM18)-1)","v":0.11209439528023601},{"$f":"((Quarterly!CN22/Quarterly!CN18)-1)","v":5.8716903961454348E-2},{"$f":"((Quarterly!CO22/Quarterly!CO18)-1)","v":0.10317796610169494},{"$f":"((Quarterly!CP22/Quarterly!CP18)-1)","v":3.1341576787615066E-2},{"$f":"((Quarterly!CQ22/Quarterly!CQ18)-1)","v":1.6423832802191729E-2},"--","--","--",null,null,null,null,null,{"$f":"((Quarterly!CZ22/Quarterly!CZ18)-1)","v":7.0517125587641338E-3},{"$f":"((Quarterly!DA22/Quarterly!DA18)-1)","v":1.300108342361872E-2},null,null,null,null,null,"--","--",{"$f":"Quarterly!DI22-Quarterly!DI18","v":-0.63333333333332575},"--",{"$f":"(Quarterly!DK22-Quarterly!DK18)*100","v":-6.6666666666665542},{"$f":"((Quarterly!DL22/Quarterly!DL18)-1)","v":9.2956502539192076E-3},null,null,null,{"$f":"((Quarterly!DP22/Quarterly!DP18)-1)","v":1.4124189063948078E-2},null,null,null,null,"--","--","--","--","--","--","--","--","--",null,null,null,null,null,{"$f":"((Quarterly!EI22/Quarterly!EI18)-1)","v":7.5289621770043613E-2},{"$f":"((Quarterly!EJ22/Quarterly!EJ18)-1)","v":5.6884924418598048E-2},{"$f":"((Quarterly!EK22/Quarterly!EK18)-1)","v":5.2568857686034809E-2},null,null,null,null,null,{"$f":"((Quarterly!EQ22/Quarterly!EQ18)-1)","v":-5.2576235541536009E-3},"--",{"$f":"((Quarterly!ES22/Quarterly!ES18)-1)","v":3.0487804878049918E-3},null,null,null,null,null,{"$f":"(Quarterly!EY22-Quarterly!EY18)*100","v":0},{"$f":"(Quarterly!EZ22-Quarterly!EZ18)*100","v":10.333333333333306},{"$f":"(Quarterly!FA22-Quarterly!FA18)*100","v":8.9999999999999858},{"$f":"(Quarterly!FB22-Quarterly!FB18)*100","v":1.6666666666666607},"--","--",{"$f":"(Quarterly!FE22-Quarterly!FE18)*100","v":15.333333333333288},{"$f":"(Quarterly!FF22-Quarterly!FF18)*100","v":10.666666666666602},"--",{"$f":"(Quarterly!FH22-Quarterly!FH18)*100","v":9.6666666666666679},{"$f":"(Quarterly!FI22-Quarterly!FI18)*100","v":8.6666666666666003},null,null,null,null,null,null,"--","--","--","--","--","--","--","--","--",null,null,null,null,null,"--","--","--","--","--","--","--","--","--"]
["62'Q1",{"$f":"((Quarterly!B23/Quarterly!B19)-1)","v":9.016776292291051E-2},{"$f":"((Quarterly!C23/Quarterly!C19)-1)","v":7.5590917691702009E-2},{"$f":"((Quarterly!D23/Quarterly!D19)-1)","v":5.5470148675942132E-2},{"$f":"((Quarterly!E23/Quarterly!E19)-1)","v":5.1361908783783772E-2},{"$f":"((Quarterly!F23/Quarterly!F19)-1)","v":0.12008934436999108},{"$f":"((Quarterly!G23/Quarterly!G19)-1)","v":3.6484961157957407E-2},{"$f":"((Quarterly!H23/Quarterly!H19)-1)","v":5.5146166801253171E-2},{"$f":"((Quarterly!I23/Quarterly!I19)-1)","v":8.5000436795667156E-2},{"$f":"((Quarterly!J23/Quarterly!J19)-1)","v":0.14582883712087935},{"$f":"((Quarterly!K23/Quarterly!K19)-1)","v":0.11287027579162401},{"$f":"((Quarterly!L23-Quarterly!L19))","v":43.582999999999998},{"$f":"((Quarterly!M23/Quarterly!M19)-1)","v":0.13851566397715342},{"$f":"((Quarterly!N23/Quarterly!N19)-1)","v":8.6058357735365743E-3},{"$f":"((Quarterly!O23/Quarterly!O19)-1)","v":1.5117945655419502},{"$f":"((Quarterly!P23/Quarterly!P19)-1)","v":6.5935436938393766E-2},{"$f":"((Quarterly!Q23/Quarterly!Q19)-1)","v":0.14887700534759363},null,null,null,null,null,"--","--",{"$f":"((Quarterly!Y23/Quarterly!Y19)-1)","v":4.6949369991089895E-2},"--",{"$f":"((Quarterly!AA23/Quarterly!AA19)-1)","v":0.2073063843214249},{"$f":"((Quarterly!AB23/Quarterly!AB19)-1)","v":0.30629351720408327},"--","--","--","--","--","--","--","--","--","--",{"$f":"((Quarterly!AM23/Quarterly!AM19)-1)","v":0.12702170887392206},"--","--","--",{"$f":"Quarterly!AQ23-Quarterly!AQ19","v":15.333333333333336},"--","--",{"$f":"Quarterly!AT23-Quarterly!AT19","v":20.766666666666666},"--","--",{"$f":"Quarterly!AW23-Quarterly!AW19","v":19.700000000000003},{"$f":"Quarterly!AX23-Quarterly!AX19","v":10.066666666666656},{"$f":"Quarterly!AY23-Quarterly!AY19","v":6.3333333333333357},{"$f":"Quarterly!AZ23-Quarterly!AZ19","v":15.366666666666681},{"$f":"Quarterly!BA23-Quarterly!BA19","v":15.966666666666669},"--","--","--","--",{"$f":"((Quarterly!BF23/Quarterly!BF19)-1)","v":4.5353982300885054E-2},{"$f":"((Quarterly!BG23/Quarterly!BG19)-1)","v":7.0045558086560433E-2},{"$f":"((Quarterly!BH23/Quarterly!BH19)-1)","v":3.6157218329649021E-2},{"$f":"((Quarterly!BI23/Quarterly!BI19)-1)","v":-2.3008849557522026E-2},{"$f":"((Quarterly!BJ23/Quarterly!BJ19)-1)","v":0.29431620749565668},"--",null,"--","--",null,null,null,null,null,{"$f":"((Quarterly!BT23/Quarterly!BT19)-1)","v":4.519143654979807E-2},"--","--",{"$f":"((Quarterly!BW23/Quarterly!BW19)-1)","v":6.4377414932070165E-2},{"$f":"((Quarterly!BX23/Quarterly!BX19)-1)","v":9.7016930932545042E-2},{"$f":"((Quarterly!BY23/Quarterly!BY19)-1)","v":0.1774744027303754},"--","--",{"$f":"((Quarterly!CB23/Quarterly!CB19)-1)","v":-0.21438720427190516},{"$f":"((Quarterly!CC23/Quarterly!CC19)-1)","v":-0.19879077808220103},"--","--",null,"--","--",null,"--",{"$f":"((Quarterly!CK23/Quarterly!CK19)-1)","v":6.749226006191944E-2},{"$f":"((Quarterly!CL23/Quarterly!CL19)-1)","v":0.13178913738019182},{"$f":"((Quarterly!CM23/Quarterly!CM19)-1)","v":3.4249018908312445E-2},{"$f":"((Quarterly!CN23/Quarterly!CN19)-1)","v":5.8520268818854193E-2},{"$f":"((Quarterly!CO23/Quarterly!CO19)-1)","v":0.10051493305870229},{"$f":"((Quarterly!CP23/Quarterly!CP19)-1)","v":3.6454977609369665E-2},{"$f":"((Quarterly!CQ23/Quarterly!CQ19)-1)","v":1.6062489384511602E-2},"--","--","--",null,null,null,null,null,{"$f":"((Quarterly!CZ23/Quarterly!CZ19)-1)","v":8.936550491510209E-3},{"$f":"((Quarterly!DA23/Quarterly!DA19)-1)","v":1.2972972972973063E-2},null,null,null,null,null,"--","--",{"$f":"Quarterly!DI23-Quarterly!DI19","v":-0.73333333333333428},"--",{"$f":"(Quarterly!DK23-Quarterly!DK19)*100","v":-116.6666666666667},{"$f":"((Quarterly!DL23/Quarterly!DL19)-1)","v":3.8636261413214523E-2},null,null,null,{"$f":"((Quarterly!DP23/Quarterly!DP19)-1)","v":2.767540288748993E-2},null,null,null,null,"--","--","--","--","--","--","--","--","--",null,null,null,null,null,{"$f":"((Quarterly!EI23/Quarterly!EI19)-1)","v":9.2812696598780331E-2},{"$f":"((Quarterly!EJ23/Quarterly!EJ19)-1)","v":6.9526128655901465E-2},{"$f":"((Quarterly!EK23/Quarterly!EK19)-1)","v":6.3099610372628456E-2},null,null,null,null,null,{"$f":"((Quarterly!EQ23/Quarterly!EQ19)-1)","v":-3.1446540880503138E-3},"--",{"$f":"((Quarterly!ES23/Quarterly!ES19)-1)","v":3.0395136778116338E-3},null,null,null,null,null,{"$f":"(Quarterly!EY23-Quarterly!EY19)*100","v":0},{"$f":"(Quarterly!EZ23-Quarterly!EZ19)*100","v":45.333333333333314},{"$f":"(Quarterly!FA23-Quarterly!FA19)*100","v":14.000000000000057},{"$f":"(Quarterly!FB23-Quarterly!FB19)*100","v":0},"--","--",{"$f":"(Quarterly!FE23-Quarterly!FE19)*100","v":37.333333333333307},{"$f":"(Quarterly!FF23-Quarterly!FF19)*100","v":33.3333333333333},"--",{"$f":"(Quarterly!FH23-Quarterly!FH19)*100","v":19.333333333333336},{"$f":"(Quarterly!FI23-Quarterly!FI19)*100","v":23},null,null,null,null,null,null,"--","--","--","--","--","--","--","--","--",null,null,null,null,null,"--","--","--","--","--","--","--","--","--"]
["62'Q2",{"$f":"((Quarterly!B24/Quarterly!B20)-1)","v":8.0996717076583735E-2},{"$f":"((Quarterly!C24/Quarterly!C20)-1)","v":6.7339722106712907E-2},{"$f":"((Quarterly!D24/Quarterly!D20)-1)","v":6.1403163170331343E-2},{"$f":"((Quarterly!E24/Quarterly!E20)-1)","v":4.8629531388152181E-2},{"$f":"((Quarterly!F24/Quarterly!F20)-1)","v":0.12678594413695476},{"$f":"((Quarterly!G24/Quarterly!G20)-1)","v":2.6862346851864061E-2},{"$f":"((Quarterly!H24/Quarterly!H20)-1)","v":5.5617052572282333E-2},{"$f":"((Quarterly!I24/Quarterly!I20)-1)","v":9.0070073491711033E-2},{"$f":"((Quarterly!J24/Quarterly!J20)-1)","v":0.15159070198105007},{"$f":"((Quarterly!K24/Quarterly!K20)-1)","v":0.14351145038167923},{"$f":"((Quarterly!L24-Quarterly!L20))","v":13.707999999999998},{"$f":"((Quarterly!M24/Quarterly!M20)-1)","v":0.14934860755836188},{"$f":"((Quarterly!N24/Quarterly!N20)-1)","v":0.12095634572050584},{"$f":"((Quarterly!O24/Quarterly!O20)-1)","v":0.37916376845196598},{"$f":"((Quarterly!P24/Quarterly!P20)-1)","v":6.8568386461736575E-2},{"$f":"((Quarterly!Q24/Quarterly!Q20)-1)","v":-0.11577628074573088},null,null,null,null,null,"--","--",{"$f":"((Quarterly!Y24/Quarterly!Y20)-1)","v":6.4071584273668325E-2},"--",{"$f":"((Quarterly!AA24/Quarterly!AA20)-1)","v":0.14541879145418779},{"$f":"((Quarterly!AB24/Quarterly!AB20)-1)","v":0.19979005217820855},"--","--","--","--","--","--","--","--","--","--",{"$f":"((Quarterly!AM24/Quarterly!AM20)-1)","v":9.4551512955701744E-2},"--","--","--",{"$f":"Quarterly!AQ24-Quarterly!AQ20","v":-5.4999999999999858},"--","--",{"$f":"Quarterly!AT24-Quarterly!AT20","v":-1.7000000000000028},"--","--",{"$f":"Quarterly!AW24-Quarterly!AW20","v":7.6333333333333329},{"$f":"Quarterly!AX24-Quarterly!AX20","v":-11.033333333333331},{"$f":"Quarterly!AY24-Quarterly!AY20","v":0.1666666666666643},{"$f":"Quarterly!AZ24-Quarterly!AZ20","v":-8.7000000000000099},{"$f":"Quarterly!BA24-Quarterly!BA20","v":-2.9333333333333371},"--","--","--","--",{"$f":"((Quarterly!BF24/Quarterly!BF20)-1)","v":3.7943993211298155E-2},{"$f":"((Quarterly!BG24/Quarterly!BG20)-1)","v":3.8561621082936481E-2},{"$f":"((Quarterly!BH24/Quarterly!BH20)-1)","v":2.450962284363345E-2},{"$f":"((Quarterly!BI24/Quarterly!BI20)-1)","v":-6.568575932736076E-4},{"$f":"((Quarterly!BJ24/Quarterly!BJ20)-1)","v":0.16358347347847824},"--",null,"--","--",null,null,null,null,null,{"$f":"((Quarterly!BT24/Quarterly!BT20)-1)","v":6.2590121344924698E-2},"--","--",{"$f":"((Quarterly!BW24/Quarterly!BW20)-1)","v":5.3504972240864035E-2},{"$f":"((Quarterly!BX24/Quarterly!BX20)-1)","v":0.16816737288135575},{"$f":"((Quarterly!BY24/Quarterly!BY20)-1)","v":0.13939980638915772},"--","--",{"$f":"((Quarterly!CB24/Quarterly!CB20)-1)","v":-0.13055515539145424},{"$f":"((Quarterly!CC24/Quarterly!CC20)-1)","v":-0.1608612133413343},"--","--",null,"--","--",null,"--",{"$f":"((Quarterly!CK24/Quarterly!CK20)-1)","v":6.9047074082551285E-2},{"$f":"((Quarterly!CL24/Quarterly!CL20)-1)","v":0.10641627543036014},{"$f":"((Quarterly!CM24/Quarterly!CM20)-1)","v":6.4356435643564414E-2},{"$f":"((Quarterly!CN24/Quarterly!CN20)-1)","v":5.3652933530816238E-2},{"$f":"((Quarterly!CO24/Quarterly!CO20)-1)","v":0.10205314009661848},{"$f":"((Quarterly!CP24/Quarterly!CP20)-1)","v":7.2068614942986997E-2},{"$f":"((Quarterly!CQ24/Quarterly!CQ20)-1)","v":1.5671477510683651E-2},"--","--","--",null,null,null,null,null,{"$f":"((Quarterly!CZ24/Quarterly!CZ20)-1)","v":1.3074086490110659E-2},{"$f":"((Quarterly!DA24/Quarterly!DA20)-1)","v":1.4008620689655027E-2},null,null,null,null,null,"--","--",{"$f":"Quarterly!DI24-Quarterly!DI20","v":-0.6666666666666714},"--",{"$f":"(Quarterly!DK24-Quarterly!DK20)*100","v":-146.6666666666666},{"$f":"((Quarterly!DL24/Quarterly!DL20)-1)","v":4.0614242925477217E-2},null,null,null,{"$f":"((Quarterly!DP24/Quarterly!DP20)-1)","v":3.3986417825365045E-2},null,null,null,null,"--","--","--","--","--","--","--","--","--",null,null,null,null,null,{"$f":"((Quarterly!EI24/Quarterly!EI20)-1)","v":8.8650908593695066E-2},{"$f":"((Quarterly!EJ24/Quarterly!EJ20)-1)","v":6.5016934891577893E-2},{"$f":"((Quarterly!EK24/Quarterly!EK20)-1)","v":5.7896506435020756E-2},null,null,null,null,null,{"$f":"((Quarterly!EQ24/Quarterly!EQ20)-1)","v":2.1186440677964935E-3},"--",{"$f":"((Quarterly!ES24/Quarterly!ES20)-1)","v":3.0395136778116338E-3},null,null,null,null,null,{"$f":"(Quarterly!EY24-Quarterly!EY20)*100","v":0},{"$f":"(Quarterly!EZ24-Quarterly!EZ20)*100","v":87.333333333333371},{"$f":"(Quarterly!FA24-Quarterly!FA20)*100","v":1.3333333333333641},{"$f":"(Quarterly!FB24-Quarterly!FB20)*100","v":-0.33333333333338544},"--","--",{"$f":"(Quarterly!FE24-Quarterly!FE20)*100","v":41.333333333333357},{"$f":"(Quarterly!FF24-Quarterly!FF20)*100","v":7.9999999999999183},"--",{"$f":"(Quarterly!FH24-Quarterly!FH20)*100","v":1.6666666666666607},{"$f":"(Quarterly!FI24-Quarterly!FI20)*100","v":8.3333333333333037},null,null,null,null,null,null,"--","--","--","--","--","--","--","--","--",null,null,null,null,null,"--","--","--","--","--","--","--","--","--"]
["62'Q3",{"$f":"((Quarterly!B25/Quarterly!B21)-1)","v":7.2764805676594824E-2},{"$f":"((Quarterly!C25/Quarterly!C21)-1)","v":5.983522411400588E-2},{"$f":"((Quarterly!D25/Quarterly!D21)-1)","v":6.0978597859786099E-2},{"$f":"((Quarterly!E25/Quarterly!E21)-1)","v":5.2018633540372727E-2},{"$f":"((Quarterly!F25/Quarterly!F21)-1)","v":0.10780248774971768},{"$f":"((Quarterly!G25/Quarterly!G21)-1)","v":3.4076401846214299E-2},{"$f":"((Quarterly!H25/Quarterly!H21)-1)","v":5.8240172716447436E-2},{"$f":"((Quarterly!I25/Quarterly!I21)-1)","v":9.2832360159092797E-2},{"$f":"((Quarterly!J25/Quarterly!J21)-1)","v":0.15709073360929526},{"$f":"((Quarterly!K25/Quarterly!K21)-1)","v":8.4017382906808269E-2},{"$f":"((Quarterly!L25-Quarterly!L21))","v":-0.89499999999999957},{"$f":"((Quarterly!M25/Quarterly!M21)-1)","v":9.1644548592015429E-2},{"$f":"((Quarterly!N25/Quarterly!N21)-1)","v":6.404385434367299E-2},{"$f":"((Quarterly!O25/Quarterly!O21)-1)","v":0.22661971830985972},{"$f":"((Quarterly!P25/Quarterly!P21)-1)","v":7.0626197382006151E-2},{"$f":"((Quarterly!Q25/Quarterly!Q21)-1)","v":-1.4370765756519521E-3},null,null,null,null,null,"--","--",{"$f":"((Quarterly!Y25/Quarterly!Y21)-1)","v":7.8237651034656297E-2},"--",{"$f":"((Quarterly!AA25/Quarterly!AA21)-1)","v":0.11858032299864107},{"$f":"((Quarterly!AB25/Quarterly!AB21)-1)","v":0.17807450296889304},"--","--","--","--","--","--","--","--","--","--",{"$f":"((Quarterly!AM25/Quarterly!AM21)-1)","v":7.2021657468749334E-2},"--","--","--",{"$f":"Quarterly!AQ25-Quarterly!AQ21","v":-10.466666666666669},"--","--",{"$f":"Quarterly!AT25-Quarterly!AT21","v":-8.5333333333333314},"--","--",{"$f":"Quarterly!AW25-Quarterly!AW21","v":-8.1999999999999957},{"$f":"Quarterly!AX25-Quarterly!AX21","v":-12.600000000000009},{"$f":"Quarterly!AY25-Quarterly!AY21","v":-4.0999999999999943},{"$f":"Quarterly!AZ25-Quarterly!AZ21","v":-13.300000000000004},{"$f":"Quarterly!BA25-Quarterly!BA21","v":-5.5999999999999943},"--","--","--","--",{"$f":"((Quarterly!BF25/Quarterly!BF21)-1)","v":3.7420286367464861E-2},{"$f":"((Quarterly!BG25/Quarterly!BG21)-1)","v":3.781879744415928E-2},{"$f":"((Quarterly!BH25/Quarterly!BH21)-1)","v":2.5103986454153793E-2},{"$f":"((Quarterly!BI25/Quarterly!BI21)-1)","v":-3.9658059398961498E-4},{"$f":"((Quarterly!BJ25/Quarterly!BJ21)-1)","v":0.1275373420145538},"--",null,"--","--",null,null,null,null,null,{"$f":"((Quarterly!BT25/Quarterly!BT21)-1)","v":8.5049951158050474E-2},"--","--",{"$f":"((Quarterly!BW25/Quarterly!BW21)-1)","v":5.4839676356008393E-2},{"$f":"((Quarterly!BX25/Quarterly!BX21)-1)","v":5.2747791952894918E-2},{"$f":"((Quarterly!BY25/Quarterly!BY21)-1)","v":8.1437125748503147E-2},"--","--",{"$f":"((Quarterly!CB25/Quarterly!CB21)-1)","v":-0.15095461014162315},{"$f":"((Quarterly!CC25/Quarterly!CC21)-1)","v":-0.16078866583681029},"--","--",null,"--","--",null,"--",{"$f":"((Quarterly!CK25/Quarterly!CK21)-1)","v":6.2387387387387472E-2},{"$f":"((Quarterly!CL25/Quarterly!CL21)-1)","v":7.209805335257613E-4},{"$f":"((Quarterly!CM25/Quarterly!CM21)-1)","v":-4.1928029052492488E-2},{"$f":"((Quarterly!CN25/Quarterly!CN21)-1)","v":4.5283018867924518E-2},{"$f":"((Quarterly!CO25/Quarterly!CO21)-1)","v":0.10622782814347653},{"$f":"((Quarterly!CP25/Quarterly!CP21)-1)","v":8.8549334629293375E-2},{"$f":"((Quarterly!CQ25/Quarterly!CQ21)-1)","v":1.5390692381842985E-2},"--","--","--",null,null,null,null,null,{"$f":"((Quarterly!CZ25/Quarterly!CZ21)-1)","v":1.2021371326803143E-2},{"$f":"((Quarterly!DA25/Quarterly!DA21)-1)","v":1.2875536480686733E-2},null,null,null,null,null,"--","--",{"$f":"Quarterly!DI25-Quarterly!DI21","v":-0.36666666666666003},"--",{"$f":"(Quarterly!DK25-Quarterly!DK21)*100","v":-119.99999999999993},{"$f":"((Quarterly!DL25/Quarterly!DL21)-1)","v":3.1082695455953102E-2},null,null,null,{"$f":"((Quarterly!DP25/Quarterly!DP21)-1)","v":2.9187575625426065E-2},null,null,null,null,"--","--","--","--","--","--","--","--","--",null,null,null,null,null,{"$f":"((Quarterly!EI25/Quarterly!EI21)-1)","v":6.9286273896080441E-2},{"$f":"((Quarterly!EJ25/Quarterly!EJ21)-1)","v":5.9297498195015175E-2},{"$f":"((Quarterly!EK25/Quarterly!EK21)-1)","v":5.6079178454015333E-2},null,null,null,null,null,{"$f":"((Quarterly!EQ25/Quarterly!EQ21)-1)","v":6.3492063492063266E-3},"--",{"$f":"((Quarterly!ES25/Quarterly!ES21)-1)","v":3.0395136778116338E-3},null,null,null,null,null,{"$f":"(Quarterly!EY25-Quarterly!EY21)*100","v":0},{"$f":"(Quarterly!EZ25-Quarterly!EZ21)*100","v":116.33333333333337},{"$f":"(Quarterly!FA25-Quarterly!FA21)*100","v":-9.9999999999999645},{"$f":"(Quarterly!FB25-Quarterly!FB21)*100","v":-5.9999999999999609},"--","--",{"$f":"(Quarterly!FE25-Quarterly!FE21)*100","v":53.666666666666664},{"$f":"(Quarterly!FF25-Quarterly!FF21)*100","v":16.999999999999993},"--",{"$f":"(Quarterly!FH25-Quarterly!FH21)*100","v":-16.333333333333311},{"$f":"(Quarterly!FI25-Quarterly!FI21)*100","v":1.0000000000000231},null,null,null,null,null,null,"--","--","--","--","--","--","--","--","--",null,null,null,null,null,"--","--","--","--","--","--","--","--","--"]
["62'Q4",{"$f":"((Quarterly!B26/Quarterly!B22)-1)","v":5.4172455056875179E-2},{"$f":"((Quarterly!C26/Quarterly!C22)-1)","v":4.2813031143323244E-2},{"$f":"((Quarterly!D26/Quarterly!D22)-1)","v":4.6095301317240045E-2},{"$f":"((Quarterly!E26/Quarterly!E22)-1)","v":4.5920438400649521E-2},{"$f":"((Quarterly!F26/Quarterly!F22)-1)","v":0.1031755542240862},{"$f":"((Quarterly!G26/Quarterly!G22)-1)","v":2.5933341945485022E-2},{"$f":"((Quarterly!H26/Quarterly!H22)-1)","v":5.299401186904551E-2},{"$f":"((Quarterly!I26/Quarterly!I22)-1)","v":5.666885676741118E-2},{"$f":"((Quarterly!J26/Quarterly!J22)-1)","v":9.2498846336340312E-2},{"$f":"((Quarterly!K26/Quarterly!K22)-1)","v":4.7663551401869064E-2},{"$f":"((Quarterly!L26-Quarterly!L22))","v":-6.7259999999999991},{"$f":"((Quarterly!M26/Quarterly!M22)-1)","v":7.9325163882098204E-2},{"$f":"((Quarterly!N26/Quarterly!N22)-1)","v":9.8711167399241351E-3},{"$f":"((Quarterly!O26/Quarterly!O22)-1)","v":0.43343462159339063},{"$f":"((Quarterly!P26/Quarterly!P22)-1)","v":5.5015343728893162E-2},{"$f":"((Quarterly!Q26/Quarterly!Q22)-1)","v":0.89899688689034951},null,null,null,null,null,"--","--",{"$f":"((Quarterly!Y26/Quarterly!Y22)-1)","v":8.9098553473449638E-2},"--",{"$f":"((Quarterly!AA26/Quarterly!AA22)-1)","v":6.9369449116284621E-2},{"$f":"((Quarterly!AB26/Quarterly!AB22)-1)","v":0.16512803604791726},"--","--","--","--","--","--","--","--","--","--",{"$f":"((Quarterly!AM26/Quarterly!AM22)-1)","v":4.4444589966406323E-2},"--","--","--",{"$f":"Quarterly!AQ26-Quarterly!AQ22","v":-7.7333333333333414},"--","--",{"$f":"Quarterly!AT26-Quarterly!AT22","v":-7.5333333333333385},"--","--",{"$f":"Quarterly!AW26-Quarterly!AW22","v":-6.5333333333333314},{"$f":"Quarterly!AX26-Quarterly!AX22","v":-11.899999999999984},{"$f":"Quarterly!AY26-Quarterly!AY22","v":-8.4666666666666615},{"$f":"Quarterly!AZ26-Quarterly!AZ22","v":-5.5},{"$f":"Quarterly!BA26-Quarterly!BA22","v":-4.6000000000000014},"--","--","--","--",{"$f":"((Quarterly!BF26/Quarterly!BF22)-1)","v":3.9297658862876395E-2},{"$f":"((Quarterly!BG26/Quarterly!BG22)-1)","v":3.6899770052752467E-2},{"$f":"((Quarterly!BH26/Quarterly!BH22)-1)","v":2.6037473468491612E-2},{"$f":"((Quarterly!BI26/Quarterly!BI22)-1)","v":2.4285777365657957E-3},{"$f":"((Quarterly!BJ26/Quarterly!BJ22)-1)","v":4.2455581042727619E-2},"--",null,"--","--",null,null,null,null,null,{"$f":"((Quarterly!BT26/Quarterly!BT22)-1)","v":9.5669360164717832E-2},"--","--",{"$f":"((Quarterly!BW26/Quarterly!BW22)-1)","v":6.9937121841262329E-2},{"$f":"((Quarterly!BX26/Quarterly!BX22)-1)","v":0.13301320528211291},{"$f":"((Quarterly!BY26/Quarterly!BY22)-1)","v":6.3154831199068839E-2},"--","--",{"$f":"((Quarterly!CB26/Quarterly!CB22)-1)","v":-1.0342377411734271E-2},{"$f":"((Quarterly!CC26/Quarterly!CC22)-1)","v":-4.7849984186803529E-2},"--","--",null,"--","--",null,"--",{"$f":"((Quarterly!CK26/Quarterly!CK22)-1)","v":5.5506478209658594E-2},{"$f":"((Quarterly!CL26/Quarterly!CL22)-1)","v":-4.5454545454545414E-2},{"$f":"((Quarterly!CM26/Quarterly!CM22)-1)","v":1.7241379310344751E-2},{"$f":"((Quarterly!CN26/Quarterly!CN22)-1)","v":3.4578632366067952E-2},{"$f":"((Quarterly!CO26/Quarterly!CO22)-1)","v":0.1096600729786823},{"$f":"((Quarterly!CP26/Quarterly!CP22)-1)","v":9.5286111636196713E-2},{"$f":"((Quarterly!CQ26/Quarterly!CQ22)-1)","v":1.5099499750145684E-2},"--","--","--",null,null,null,null,null,{"$f":"((Quarterly!CZ26/Quarterly!CZ22)-1)","v":1.3004334778259352E-2},{"$f":"((Quarterly!DA26/Quarterly!DA22)-1)","v":1.1764705882352899E-2},null,null,null,null,null,"--","--",{"$f":"Quarterly!DI26-Quarterly!DI22","v":-0.46666666666666856},"--",{"$f":"(Quarterly!DK26-Quarterly!DK22)*100","v":-66.6666666666666},{"$f":"((Quarterly!DL26/Quarterly!DL22)-1)","v":1.9863927719804719E-2},null,null,null,{"$f":"((Quarterly!DP26/Quarterly!DP22)-1)","v":2.4303017010284034E-2},null,null,null,null,"--","--","--","--","--","--","--","--","--",null,null,null,null,null,{"$f":"((Quarterly!EI26/Quarterly!EI22)-1)","v":4.3956115734975043E-2},{"$f":"((Quarterly!EJ26/Quarterly!EJ22)-1)","v":4.4348620121282378E-2},{"$f":"((Quarterly!EK26/Quarterly!EK22)-1)","v":4.443847300792636E-2},null,null,null,null,null,{"$f":"((Quarterly!EQ26/Quarterly!EQ22)-1)","v":4.2283298097252064E-3},"--",{"$f":"((Quarterly!ES26/Quarterly!ES22)-1)","v":3.0395136778116338E-3},null,null,null,null,null,{"$f":"(Quarterly!EY26-Quarterly!EY22)*100","v":0},{"$f":"(Quarterly!EZ26-Quarterly!EZ22)*100","v":52.333333333333343},{"$f":"(Quarterly!FA26-Quarterly!FA22)*100","v":-15.333333333333243},{"$f":"(Quarterly!FB26-Quarterly!FB22)*100","v":-15.666666666666718},"--","--",{"$f":"(Quarterly!FE26-Quarterly!FE22)*100","v":35.333333333333442},{"$f":"(Quarterly!FF26-Quarterly!FF22)*100","v":-10.333333333333306},"--",{"$f":"(Quarterly!FH26-Quarterly!FH22)*100","v":-24.333333333333318},{"$f":"(Quarterly!FI26-Quarterly!FI22)*100","v":-6.999999999999984},null,null,null,null,null,null,"--","--","--","--","--","--","--","--","--",null,null,null,null,null,"--","--","--","--","--","--","--","--","--"]
["63'Q1",{"$f":"((Quarterly!B27/Quarterly!B23)-1)","v":4.6209860612659082E-2},{"$f":"((Quarterly!C27/Quarterly!C23)-1)","v":3.5761412367052658E-2},{"$f":"((Quarterly!D27/Quarterly!D23)-1)","v":3.8318962238292453E-2},{"$f":"((Quarterly!E27/Quarterly!E23)-1)","v":4.1974192900537277E-2},{"$f":"((Quarterly!F27/Quarterly!F23)-1)","v":0.10146627565982413},{"$f":"((Quarterly!G27/Quarterly!G23)-1)","v":2.3061400980109559E-2},{"$f":"((Quarterly!H27/Quarterly!H23)-1)","v":4.8220497359951819E-2},{"$f":"((Quarterly!I27/Quarterly!I23)-1)","v":3.8405797101449091E-2},{"$f":"((Quarterly!J27/Quarterly!J23)-1)","v":5.9334309698465315E-2},{"$f":"((Quarterly!K27/Quarterly!K23)-1)","v":6.6085360256998626E-2},{"$f":"((Quarterly!L27-Quarterly!L23))","v":-4.8099999999999952},{"$f":"((Quarterly!M27/Quarterly!M23)-1)","v":2.3187288923139704E-2},{"$f":"((Quarterly!N27/Quarterly!N23)-1)","v":3.6034017606258351E-2},{"$f":"((Quarterly!O27/Quarterly!O23)-1)","v":-3.1344111586622758E-2},{"$f":"((Quarterly!P27/Quarterly!P23)-1)","v":2.1087735314798906E-2},{"$f":"((Quarterly!Q27/Quarterly!Q23)-1)","v":-0.36212995717743435},null,null,null,null,null,"--","--",{"$f":"((Quarterly!Y27/Quarterly!Y23)-1)","v":8.7228781261533328E-2},"--",{"$f":"((Quarterly!AA27/Quarterly!AA23)-1)","v":4.1700545940295042E-2},{"$f":"((Quarterly!AB27/Quarterly!AB23)-1)","v":0.10329124404885115},"--","--","--","--","--","--","--","--","--","--",{"$f":"((Quarterly!AM27/Quarterly!AM23)-1)","v":4.8097979324824403E-2},"--","--","--",{"$f":"Quarterly!AQ27-Quarterly!AQ23","v":-5.8666666666666671},"--","--",{"$f":"Quarterly!AT27-Quarterly!AT23","v":-7.7666666666666728},"--","--",{"$f":"Quarterly!AW27-Quarterly!AW23","v":-10.866666666666667},{"$f":"Quarterly!AX27-Quarterly!AX23","v":-0.8333333333333286},{"$f":"Quarterly!AY27-Quarterly!AY23","v":-6.9666666666666828},{"$f":"Quarterly!AZ27-Quarterly!AZ23","v":-9.1666666666666785},{"$f":"Quarterly!BA27-Quarterly!BA23","v":-4.6666666666666714},"--","--","--","--",{"$f":"((Quarterly!BF27/Quarterly!BF23)-1)","v":3.3156966490299755E-2},{"$f":"((Quarterly!BG27/Quarterly!BG23)-1)","v":2.3310271420968753E-2},{"$f":"((Quarterly!BH27/Quarterly!BH23)-1)","v":2.066608808852255E-2},{"$f":"((Quarterly!BI27/Quarterly!BI23)-1)","v":9.6765641569458438E-3},{"$f":"((Quarterly!BJ27/Quarterly!BJ23)-1)","v":3.3635038735905454E-2},"--",null,"--","--",null,null,null,null,null,{"$f":"((Quarterly!BT27/Quarterly!BT23)-1)","v":0.10064678690467299},"--","--",{"$f":"((Quarterly!BW27/Quarterly!BW23)-1)","v":8.8705427718250629E-2},{"$f":"((Quarterly!BX27/Quarterly!BX23)-1)","v":3.7236648701616692E-2},{"$f":"((Quarterly!BY27/Quarterly!BY23)-1)","v":7.7681159420289747E-2},"--","--",{"$f":"((Quarterly!CB27/Quarterly!CB23)-1)","v":7.182320663884445E-2},{"$f":"((Quarterly!CC27/Quarterly!CC23)-1)","v":5.3687229859292307E-2},"--","--",null,"--","--",null,"--",{"$f":"((Quarterly!CK27/Quarterly!CK23)-1)","v":5.1261600928074191E-2},{"$f":"((Quarterly!CL27/Quarterly!CL23)-1)","v":-3.105151729004918E-2},{"$f":"((Quarterly!CM27/Quarterly!CM23)-1)","v":-5.1741979993101039E-2},{"$f":"((Quarterly!CN27/Quarterly!CN23)-1)","v":3.358555111033823E-2},{"$f":"((Quarterly!CO27/Quarterly!CO23)-1)","v":0.11267078420363097},{"$f":"((Quarterly!CP27/Quarterly!CP23)-1)","v":0.10664561572928299},{"$f":"((Quarterly!CQ27/Quarterly!CQ23)-1)","v":1.4863106279568106E-2},"--","--","--",null,null,null,null,null,{"$f":"((Quarterly!CZ27/Quarterly!CZ23)-1)","v":1.2289636846767094E-2},{"$f":"((Quarterly!DA27/Quarterly!DA23)-1)","v":1.1739594450373536E-2},null,null,null,null,null,"--","--",{"$f":"Quarterly!DI27-Quarterly!DI23","v":-0.29999999999999716},"--",{"$f":"(Quarterly!DK27-Quarterly!DK23)*100","v":13.333333333333375},{"$f":"((Quarterly!DL27/Quarterly!DL23)-1)","v":1.0111727005023496E-2},null,null,null,{"$f":"((Quarterly!DP27/Quarterly!DP23)-1)","v":2.0041849607508766E-2},null,null,null,null,"--","--","--","--","--","--","--","--","--",null,null,null,null,null,{"$f":"((Quarterly!EI27/Quarterly!EI23)-1)","v":3.8180335141133614E-2},{"$f":"((Quarterly!EJ27/Quarterly!EJ23)-1)","v":3.915887529268347E-2},{"$f":"((Quarterly!EK27/Quarterly!EK23)-1)","v":3.8150367918152073E-2},null,null,null,null,null,{"$f":"((Quarterly!EQ27/Quarterly!EQ23)-1)","v":-5.2576235541536009E-3},"--",{"$f":"((Quarterly!ES27/Quarterly!ES23)-1)","v":0},null,null,null,null,null,{"$f":"(Quarterly!EY27-Quarterly!EY23)*100","v":0},{"$f":"(Quarterly!EZ27-Quarterly!EZ23)*100","v":51.000000000000021},{"$f":"(Quarterly!FA27-Quarterly!FA23)*100","v":-21.333333333333382},{"$f":"(Quarterly!FB27-Quarterly!FB23)*100","v":-16.999999999999993},"--","--",{"$f":"(Quarterly!FE27-Quarterly!FE23)*100","v":18.333333333333357},{"$f":"(Quarterly!FF27-Quarterly!FF23)*100","v":-17.999999999999972},"--",{"$f":"(Quarterly!FH27-Quarterly!FH23)*100","v":-19.666666666666632},{"$f":"(Quarterly!FI27-Quarterly!FI23)*100","v":-12.333333333333352},null,null,null,null,null,null,"--","--","--","--","--","--","--","--","--",null,null,null,null,null,"--","--","--","--","--","--","--","--","--"]
["63'Q2",{"$f":"((Quarterly!B28/Quarterly!B24)-1)","v":4.8549570181552593E-2},{"$f":"((Quarterly!C28/Quarterly!C24)-1)","v":3.8078622921772665E-2},{"$f":"((Quarterly!D28/Quarterly!D24)-1)","v":3.9086068459342593E-2},{"$f":"((Quarterly!E28/Quarterly!E24)-1)","v":3.9133022517607419E-2},{"$f":"((Quarterly!F28/Quarterly!F24)-1)","v":9.5613433858807273E-2},{"$f":"((Quarterly!G28/Quarterly!G24)-1)","v":2.2459005933771259E-2},{"$f":"((Quarterly!H28/Quarterly!H24)-1)","v":4.4201569221374193E-2},{"$f":"((Quarterly!I28/Quarterly!I24)-1)","v":4.2489808717466326E-2},{"$f":"((Quarterly!J28/Quarterly!J24)-1)","v":6.6271101301637048E-2},{"$f":"((Quarterly!K28/Quarterly!K24)-1)","v":0.10858923008455723},{"$f":"((Quarterly!L28-Quarterly!L24))","v":-2.0939999999999976},{"$f":"((Quarterly!M28/Quarterly!M24)-1)","v":2.4910347887167728E-2},{"$f":"((Quarterly!N28/Quarterly!N24)-1)","v":5.5945485519591109E-2},{"$f":"((Quarterly!O28/Quarterly!O24)-1)","v":-0.17926590081255245},{"$f":"((Quarterly!P28/Quarterly!P24)-1)","v":1.7094086021505417E-2},{"$f":"((Quarterly!Q28/Quarterly!Q24)-1)","v":-0.81024096385542166},null,null,null,null,null,"--","--",{"$f":"((Quarterly!Y28/Quarterly!Y24)-1)","v":8.4230264669478139E-2},"--",{"$f":"((Quarterly!AA28/Quarterly!AA24)-1)","v":9.9924343828202256E-2},{"$f":"((Quarterly!AB28/Quarterly!AB24)-1)","v":0.13136901698404535},"--","--","--","--","--","--","--","--","--","--",{"$f":"((Quarterly!AM28/Quarterly!AM24)-1)","v":6.5411208383922226E-2},"--","--","--",{"$f":"Quarterly!AQ28-Quarterly!AQ24","v":5.8333333333333286},"--","--",{"$f":"Quarterly!AT28-Quarterly!AT24","v":-0.23333333333332718},"--","--",{"$f":"Quarterly!AW28-Quarterly!AW24","v":2.5333333333333385},{"$f":"Quarterly!AX28-Quarterly!AX24","v":8.6666666666666643},{"$f":"Quarterly!AY28-Quarterly!AY24","v":7.8333333333333357},{"$f":"Quarterly!AZ28-Quarterly!AZ24","v":4.8333333333333286},{"$f":"Quarterly!BA28-Quarterly!BA24","v":11.666666666666671},"--","--","--","--",{"$f":"((Quarterly!BF28/Quarterly!BF24)-1)","v":3.1534688156972912E-2},{"$f":"((Quarterly!BG28/Quarterly!BG24)-1)","v":3.5397286563424446E-2},{"$f":"((Quarterly!BH28/Quarterly!BH24)-1)","v":2.0948637977969753E-2},{"$f":"((Quarterly!BI28/Quarterly!BI24)-1)","v":-3.7246395863459458E-3},{"$f":"((Quarterly!BJ28/Quarterly!BJ24)-1)","v":0.13949218749999992},"--",null,"--","--",null,null,null,null,null,{"$f":"((Quarterly!BT28/Quarterly!BT24)-1)","v":0.10749925770594015},"--","--",{"$f":"((Quarterly!BW28/Quarterly!BW24)-1)","v":0.10684503127171641},{"$f":"((Quarterly!BX28/Quarterly!BX24)-1)","v":0.11493992291997279},{"$f":"((Quarterly!BY28/Quarterly!BY24)-1)","v":0.12800906258850198},"--","--",{"$f":"((Quarterly!CB28/Quarterly!CB24)-1)","v":-1.0310498617496888E-2},{"$f":"((Quarterly!CC28/Quarterly!CC24)-1)","v":6.4838395722222053E-3},"--","--",null,"--","--",null,"--",{"$f":"((Quarterly!CK28/Quarterly!CK24)-1)","v":4.5032829003711194E-2},{"$f":"((Quarterly!CL28/Quarterly!CL24)-1)","v":-2.4045261669023987E-2},{"$f":"((Quarterly!CM28/Quarterly!CM24)-1)","v":5.4485049833886912E-2},{"$f":"((Quarterly!CN28/Quarterly!CN24)-1)","v":3.2331172184290713E-2},{"$f":"((Quarterly!CO28/Quarterly!CO24)-1)","v":0.11433789954337881},{"$f":"((Quarterly!CP28/Quarterly!CP24)-1)","v":0.10540517227575874},{"$f":"((Quarterly!CQ28/Quarterly!CQ24)-1)","v":1.45322645649546E-2},"--","--","--",null,null,null,null,null,{"$f":"((Quarterly!CZ28/Quarterly!CZ24)-1)","v":1.0368409441870785E-2},{"$f":"((Quarterly!DA28/Quarterly!DA24)-1)","v":1.1689691817215797E-2},null,null,null,null,null,"--","--",{"$f":"Quarterly!DI28-Quarterly!DI24","v":-9.9999999999994316E-2},"--",{"$f":"(Quarterly!DK28-Quarterly!DK24)*100","v":20.000000000000018},{"$f":"((Quarterly!DL28/Quarterly!DL24)-1)","v":6.7017506175490738E-3},null,null,null,{"$f":"((Quarterly!DP28/Quarterly!DP24)-1)","v":1.7863884510975314E-2},null,null,null,null,"--","--","--","--","--","--","--","--","--",null,null,null,null,null,{"$f":"((Quarterly!EI28/Quarterly!EI24)-1)","v":4.8923775532226266E-2},{"$f":"((Quarterly!EJ28/Quarterly!EJ24)-1)","v":4.2027507909657702E-2},{"$f":"((Quarterly!EK28/Quarterly!EK24)-1)","v":3.7904628152834352E-2},null,null,null,null,null,{"$f":"((Quarterly!EQ28/Quarterly!EQ24)-1)","v":-1.0570824524311906E-3},"--",{"$f":"((Quarterly!ES28/Quarterly!ES24)-1)","v":0},null,null,null,null,null,{"$f":"(Quarterly!EY28-Quarterly!EY24)*100","v":0},{"$f":"(Quarterly!EZ28-Quarterly!EZ24)*100","v":35.666666666666643},{"$f":"(Quarterly!FA28-Quarterly!FA24)*100","v":-7.6666666666667105},{"$f":"(Quarterly!FB28-Quarterly!FB24)*100","v":-16.000000000000014},"--","--",{"$f":"(Quarterly!FE28-Quarterly!FE24)*100","v":22.333333333333314},{"$f":"(Quarterly!FF28-Quarterly!FF24)*100","v":12.666666666666693},"--",{"$f":"(Quarterly!FH28-Quarterly!FH24)*100","v":12.333333333333396},{"$f":"(Quarterly!FI28-Quarterly!FI24)*100","v":8.9999999999999858},null,null,null,null,null,null,"--","--","--","--","--","--","--","--","--",null,null,null,null,null,"--","--","--","--","--","--","--","--","--"]
["63'Q3",{"$f":"((Quarterly!B29/Quarterly!B25)-1)","v":5.8048640446212607E-2},{"$f":"((Quarterly!C29/Quarterly!C25)-1)","v":4.8356556694557407E-2},{"$f":"((Quarterly!D29/Quarterly!D25)-1)","v":4.9783315148615781E-2},{"$f":"((Quarterly!E29/Quarterly!E25)-1)","v":4.487084870848701E-2},{"$f":"((Quarterly!F29/Quarterly!F25)-1)","v":0.10128161506181232},{"$f":"((Quarterly!G29/Quarterly!G25)-1)","v":2.3836657169990616E-2},{"$f":"((Quarterly!H29/Quarterly!H25)-1)","v":5.233109485335663E-2},{"$f":"((Quarterly!I29/Quarterly!I25)-1)","v":5.7999070775902162E-2},{"$f":"((Quarterly!J29/Quarterly!J25)-1)","v":8.8991985687377984E-2},{"$f":"((Quarterly!K29/Quarterly!K25)-1)","v":0.13006681514476615},{"$f":"((Quarterly!L29-Quarterly!L25))","v":-2.1810000000000009},{"$f":"((Quarterly!M29/Quarterly!M25)-1)","v":3.7762574747555844E-2},{"$f":"((Quarterly!N29/Quarterly!N25)-1)","v":5.8772578811556064E-2},{"$f":"((Quarterly!O29/Quarterly!O25)-1)","v":-5.1364488842959299E-2},{"$f":"((Quarterly!P29/Quarterly!P25)-1)","v":3.8293638281025499E-2},{"$f":"((Quarterly!Q29/Quarterly!Q25)-1)","v":-0.66344572368421051},null,null,null,null,null,"--","--",{"$f":"((Quarterly!Y29/Quarterly!Y25)-1)","v":7.7826432832598158E-2},"--",{"$f":"((Quarterly!AA29/Quarterly!AA25)-1)","v":9.5273076597067297E-2},{"$f":"((Quarterly!AB29/Quarterly!AB25)-1)","v":0.1197121291908021},"--","--","--","--","--","--","--","--","--","--",{"$f":"((Quarterly!AM29/Quarterly!AM25)-1)","v":6.1202966634842149E-2},"--","--","--",{"$f":"Quarterly!AQ29-Quarterly!AQ25","v":5.6666666666666714},"--","--",{"$f":"Quarterly!AT29-Quarterly!AT25","v":3.3333333333333215},"--","--",{"$f":"Quarterly!AW29-Quarterly!AW25","v":6.1666666666666643},{"$f":"Quarterly!AX29-Quarterly!AX25","v":7.5999999999999943},{"$f":"Quarterly!AY29-Quarterly!AY25","v":11.29999999999999},{"$f":"Quarterly!AZ29-Quarterly!AZ25","v":6.93333333333333},{"$f":"Quarterly!BA29-Quarterly!BA25","v":2.63333333333334},"--","--","--","--",{"$f":"((Quarterly!BF29/Quarterly!BF25)-1)","v":3.47947112038971E-2},{"$f":"((Quarterly!BG29/Quarterly!BG25)-1)","v":4.3807719630594377E-2},{"$f":"((Quarterly!BH29/Quarterly!BH25)-1)","v":2.0916370426227182E-2},{"$f":"((Quarterly!BI29/Quarterly!BI25)-1)","v":-8.5959885386819312E-3},{"$f":"((Quarterly!BJ29/Quarterly!BJ25)-1)","v":0.13632246376811596},"--",null,"--","--",null,null,null,null,null,{"$f":"((Quarterly!BT29/Quarterly!BT25)-1)","v":0.10085407138233982},"--","--",{"$f":"((Quarterly!BW29/Quarterly!BW25)-1)","v":0.12000000000000011},{"$f":"((Quarterly!BX29/Quarterly!BX25)-1)","v":0.16895828478210206},{"$f":"((Quarterly!BY29/Quarterly!BY25)-1)","v":0.11960132890365438},"--","--",{"$f":"((Quarterly!CB29/Quarterly!CB25)-1)","v":1.416881786598112E-2},{"$f":"((Quarterly!CC29/Quarterly!CC25)-1)","v":4.6165547014183073E-3},"--","--",null,"--","--",null,"--",{"$f":"((Quarterly!CK29/Quarterly!CK25)-1)","v":4.9890467104798386E-2},{"$f":"((Quarterly!CL29/Quarterly!CL25)-1)","v":-1.6570605187320009E-2},{"$f":"((Quarterly!CM29/Quarterly!CM25)-1)","v":0.10027567195037901},{"$f":"((Quarterly!CN29/Quarterly!CN25)-1)","v":3.8284271057775987E-2},{"$f":"((Quarterly!CO29/Quarterly!CO25)-1)","v":0.11152681275610199},{"$f":"((Quarterly!CP29/Quarterly!CP25)-1)","v":0.11341547915816541},{"$f":"((Quarterly!CQ29/Quarterly!CQ25)-1)","v":1.4477520851698511E-2},"--","--","--",null,null,null,null,null,{"$f":"((Quarterly!CZ29/Quarterly!CZ25)-1)","v":1.363836339639235E-2},{"$f":"((Quarterly!DA29/Quarterly!DA25)-1)","v":1.2711864406779405E-2},null,null,null,null,null,"--","--",{"$f":"Quarterly!DI29-Quarterly!DI25","v":-0.20000000000000284},"--",{"$f":"(Quarterly!DK29-Quarterly!DK25)*100","v":-6.6666666666667318},{"$f":"((Quarterly!DL29/Quarterly!DL25)-1)","v":7.6597935932369854E-3},null,null,null,{"$f":"((Quarterly!DP29/Quarterly!DP25)-1)","v":1.9216882210060904E-2},null,null,null,null,"--","--","--","--","--","--","--","--","--",null,null,null,null,null,{"$f":"((Quarterly!EI29/Quarterly!EI25)-1)","v":6.1694208055818045E-2},{"$f":"((Quarterly!EJ29/Quarterly!EJ25)-1)","v":5.059369505900202E-2},{"$f":"((Quarterly!EK29/Quarterly!EK25)-1)","v":4.5600082599154934E-2},null,null,null,null,null,{"$f":"((Quarterly!EQ29/Quarterly!EQ25)-1)","v":-2.1030494216612849E-3},"--",{"$f":"((Quarterly!ES29/Quarterly!ES25)-1)","v":1.0101010101009056E-3},null,null,null,null,null,{"$f":"(Quarterly!EY29-Quarterly!EY25)*100","v":0},{"$f":"(Quarterly!EZ29-Quarterly!EZ25)*100","v":48.333333333333293},{"$f":"(Quarterly!FA29-Quarterly!FA25)*100","v":-5.0000000000000711},{"$f":"(Quarterly!FB29-Quarterly!FB25)*100","v":-20.999999999999996},"--","--",{"$f":"(Quarterly!FE29-Quarterly!FE25)*100","v":45.333333333333314},{"$f":"(Quarterly!FF29-Quarterly!FF25)*100","v":34.333333333333329},"--",{"$f":"(Quarterly!FH29-Quarterly!FH25)*100","v":17.666666666666675},{"$f":"(Quarterly!FI29-Quarterly!FI25)*100","v":4.3333333333333002},null,null,null,null,null,null,"--","--","--","--","--","--","--","--","--",null,null,null,null,null,"--","--","--","--","--","--","--","--","--"]
["63'Q4",{"$f":"((Quarterly!B30/Quarterly!B26)-1)","v":6.8024503695778504E-2},{"$f":"((Quarterly!C30/Quarterly!C26)-1)","v":5.1757056517086175E-2},{"$f":"((Quarterly!D30/Quarterly!D26)-1)","v":5.1451805966979069E-2},{"$f":"((Quarterly!E30/Quarterly!E26)-1)","v":3.8858972493086785E-2},{"$f":"((Quarterly!F30/Quarterly!F26)-1)","v":7.1366500108624775E-2},{"$f":"((Quarterly!G30/Quarterly!G26)-1)","v":1.684137627097293E-2},{"$f":"((Quarterly!H30/Quarterly!H26)-1)","v":4.8381168668915064E-2},{"$f":"((Quarterly!I30/Quarterly!I26)-1)","v":9.2880460127467757E-2},{"$f":"((Quarterly!J30/Quarterly!J26)-1)","v":0.14877069979941049},{"$f":"((Quarterly!K30/Quarterly!K26)-1)","v":0.16636931311329173},{"$f":"((Quarterly!L30-Quarterly!L26))","v":1.875},{"$f":"((Quarterly!M30/Quarterly!M26)-1)","v":2.1870379052908895E-2},{"$f":"((Quarterly!N30/Quarterly!N26)-1)","v":0.13641141971893322},{"$f":"((Quarterly!O30/Quarterly!O26)-1)","v":-0.38955317809943313},{"$f":"((Quarterly!P30/Quarterly!P26)-1)","v":2.0889908719727623E-2},{"$f":"((Quarterly!Q30/Quarterly!Q26)-1)","v":-0.57358834244080148},null,null,null,null,null,"--","--",{"$f":"((Quarterly!Y30/Quarterly!Y26)-1)","v":8.7197965029780056E-2},"--",{"$f":"((Quarterly!AA30/Quarterly!AA26)-1)","v":9.6628221400585135E-2},{"$f":"((Quarterly!AB30/Quarterly!AB26)-1)","v":6.800924397490915E-2},"--","--","--","--","--","--","--","--","--","--",{"$f":"((Quarterly!AM30/Quarterly!AM26)-1)","v":7.0109220409545037E-2},"--","--","--",{"$f":"Quarterly!AQ30-Quarterly!AQ26","v":2.3333333333333357},"--","--",{"$f":"Quarterly!AT30-Quarterly!AT26","v":1.06666666666667},"--","--",{"$f":"Quarterly!AW30-Quarterly!AW26","v":-4.5},{"$f":"Quarterly!AX30-Quarterly!AX26","v":5.0666666666666629},{"$f":"Quarterly!AY30-Quarterly!AY26","v":23.06666666666667},{"$f":"Quarterly!AZ30-Quarterly!AZ26","v":4.6333333333333329},{"$f":"Quarterly!BA30-Quarterly!BA26","v":-0.60000000000000142},"--","--","--","--",{"$f":"((Quarterly!BF30/Quarterly!BF26)-1)","v":3.7237099184001865E-2},{"$f":"((Quarterly!BG30/Quarterly!BG26)-1)","v":3.5038743510135806E-2},{"$f":"((Quarterly!BH30/Quarterly!BH26)-1)","v":2.2969237628176487E-2},{"$f":"((Quarterly!BI30/Quarterly!BI26)-1)","v":2.1143511584882368E-3},{"$f":"((Quarterly!BJ30/Quarterly!BJ26)-1)","v":0.1528363107447881},"--",null,"--","--",null,null,null,null,null,{"$f":"((Quarterly!BT30/Quarterly!BT26)-1)","v":0.12942817634258019},"--","--",{"$f":"((Quarterly!BW30/Quarterly!BW26)-1)","v":0.12169429506015406},{"$f":"((Quarterly!BX30/Quarterly!BX26)-1)","v":3.6660309387582135E-2},{"$f":"((Quarterly!BY30/Quarterly!BY26)-1)","v":0.14809745414727615},"--","--",{"$f":"((Quarterly!CB30/Quarterly!CB26)-1)","v":1.8487246349082609E-2},{"$f":"((Quarterly!CC30/Quarterly!CC26)-1)","v":1.3978664939253926E-2},"--","--",null,"--","--",null,"--",{"$f":"((Quarterly!CK30/Quarterly!CK26)-1)","v":5.6074766355139971E-2},{"$f":"((Quarterly!CL30/Quarterly!CL26)-1)","v":0.10342261904761907},{"$f":"((Quarterly!CM30/Quarterly!CM26)-1)","v":-3.1290743155149903E-2},{"$f":"((Quarterly!CN30/Quarterly!CN26)-1)","v":4.5983026874115929E-2},{"$f":"((Quarterly!CO30/Quarterly!CO26)-1)","v":0.10297680858428504},{"$f":"((Quarterly!CP30/Quarterly!CP26)-1)","v":0.12082829341752888},{"$f":"((Quarterly!CQ30/Quarterly!CQ26)-1)","v":1.4345300190334642E-2},"--","--","--",null,null,null,null,null,{"$f":"((Quarterly!CZ30/Quarterly!CZ26)-1)","v":1.3934606100504565E-2},{"$f":"((Quarterly!DA30/Quarterly!DA26)-1)","v":1.5856236786469413E-2},null,null,null,null,null,"--","--",{"$f":"Quarterly!DI30-Quarterly!DI26","v":0.1666666666666643},"--",{"$f":"(Quarterly!DK30-Quarterly!DK26)*100","v":3.3333333333332327},{"$f":"((Quarterly!DL30/Quarterly!DL26)-1)","v":1.0339132113516003E-2},null,null,null,{"$f":"((Quarterly!DP30/Quarterly!DP26)-1)","v":2.2447583643122604E-2},null,null,null,null,"--","--","--","--","--","--","--","--","--",null,null,null,null,null,{"$f":"((Quarterly!EI30/Quarterly!EI26)-1)","v":7.3496525802186463E-2},{"$f":"((Quarterly!EJ30/Quarterly!EJ26)-1)","v":5.2150160605132223E-2},{"$f":"((Quarterly!EK30/Quarterly!EK26)-1)","v":4.4135239495953771E-2},null,null,null,null,null,{"$f":"((Quarterly!EQ30/Quarterly!EQ26)-1)","v":-1.0526315789473051E-3},"--",{"$f":"((Quarterly!ES30/Quarterly!ES26)-1)","v":5.050505050505194E-3},null,null,null,null,null,{"$f":"(Quarterly!EY30-Quarterly!EY26)*100","v":0},{"$f":"(Quarterly!EZ30-Quarterly!EZ26)*100","v":52.999999999999979},{"$f":"(Quarterly!FA30-Quarterly!FA26)*100","v":7.6666666666666217},{"$f":"(Quarterly!FB30-Quarterly!FB26)*100","v":-11.666666666666625},"--","--",{"$f":"(Quarterly!FE30-Quarterly!FE26)*100","v":68.333333333333272},{"$f":"(Quarterly!FF30-Quarterly!FF26)*100","v":73.333333333333385},"--",{"$f":"(Quarterly!FH30-Quarterly!FH26)*100","v":40.666666666666671},{"$f":"(Quarterly!FI30-Quarterly!FI26)*100","v":21.666666666666721},null,null,null,null,null,null,"--","--","--","--","--","--","--","--","--",null,null,null,null,null,"--","--","--","--","--","--","--","--","--"]
["64'Q1",{"$f":"((Quarterly!B31/Quarterly!B27)-1)","v":7.7841070599779405E-2},{"$f":"((Quarterly!C31/Quarterly!C27)-1)","v":6.2680262030971656E-2},{"$f":"((Quarterly!D31/Quarterly!D27)-1)","v":6.8347653771972716E-2},{"$f":"((Quarterly!E31/Quarterly!E27)-1)","v":5.2185226232351889E-2},{"$f":"((Quarterly!F31/Quarterly!F27)-1)","v":9.1267305644302299E-2},{"$f":"((Quarterly!G31/Quarterly!G27)-1)","v":2.8615259384489722E-2},{"$f":"((Quarterly!H31/Quarterly!H27)-1)","v":6.2010736234874075E-2},{"$f":"((Quarterly!I31/Quarterly!I27)-1)","v":0.1131270838179419},{"$f":"((Quarterly!J31/Quarterly!J27)-1)","v":0.18547136488837634},{"$f":"((Quarterly!K31/Quarterly!K27)-1)","v":0.19457597933706405},{"$f":"((Quarterly!L31-Quarterly!L27))","v":-11.538},{"$f":"((Quarterly!M31/Quarterly!M27)-1)","v":4.510212219219345E-2},{"$f":"((Quarterly!N31/Quarterly!N27)-1)","v":0.17849001180382218},{"$f":"((Quarterly!O31/Quarterly!O27)-1)","v":-0.56048271630190216},{"$f":"((Quarterly!P31/Quarterly!P27)-1)","v":3.8094902192458369E-2},{"$f":"((Quarterly!Q31/Quarterly!Q27)-1)","v":0.61062463514302379},null,null,null,null,null,"--","--",{"$f":"((Quarterly!Y31/Quarterly!Y27)-1)","v":9.9083682778310811E-2},"--",{"$f":"((Quarterly!AA31/Quarterly!AA27)-1)","v":0.19594669937555764},{"$f":"((Quarterly!AB31/Quarterly!AB27)-1)","v":0.15265009380863037},"--","--","--","--","--","--","--","--","--","--",{"$f":"((Quarterly!AM31/Quarterly!AM27)-1)","v":6.5069218381407889E-2},"--","--","--",{"$f":"Quarterly!AQ31-Quarterly!AQ27","v":3.3999999999999986},"--","--",{"$f":"Quarterly!AT31-Quarterly!AT27","v":1.4000000000000057},"--","--",{"$f":"Quarterly!AW31-Quarterly!AW27","v":1.8000000000000043},{"$f":"Quarterly!AX31-Quarterly!AX27","v":2},{"$f":"Quarterly!AY31-Quarterly!AY27","v":11},{"$f":"Quarterly!AZ31-Quarterly!AZ27","v":7.0666666666666629},{"$f":"Quarterly!BA31-Quarterly!BA27","v":3.7333333333333343},"--","--","--","--",{"$f":"((Quarterly!BF31/Quarterly!BF27)-1)","v":2.6288835780129638E-2},{"$f":"((Quarterly!BG31/Quarterly!BG27)-1)","v":4.0851882671104622E-2},{"$f":"((Quarterly!BH31/Quarterly!BH27)-1)","v":1.1213264601158679E-2},{"$f":"((Quarterly!BI31/Quarterly!BI27)-1)","v":-1.4003763511443723E-2},{"$f":"((Quarterly!BJ31/Quarterly!BJ27)-1)","v":0.25661385477347776},"--",null,"--","--",null,null,null,null,null,{"$f":"((Quarterly!BT31/Quarterly!BT27)-1)","v":0.13492152538935254},"--","--",{"$f":"((Quarterly!BW31/Quarterly!BW27)-1)","v":0.1128858771646768},{"$f":"((Quarterly!BX31/Quarterly!BX27)-1)","v":0.16674539442607483},{"$f":"((Quarterly!BY31/Quarterly!BY27)-1)","v":8.9564281871974183E-2},"--","--",{"$f":"((Quarterly!CB31/Quarterly!CB27)-1)","v":-5.9379705472815125E-3},{"$f":"((Quarterly!CC31/Quarterly!CC27)-1)","v":-2.2800089895204878E-2},"--","--",null,"--","--",null,{"$f":"((Quarterly!CJ31/Quarterly!CJ27)-1)","v":0.23963963963963963},{"$f":"((Quarterly!CK31/Quarterly!CK27)-1)","v":6.4142354645148059E-2},{"$f":"((Quarterly!CL31/Quarterly!CL27)-1)","v":0.10706482155863051},{"$f":"((Quarterly!CM31/Quarterly!CM27)-1)","v":0.13350309203346677},{"$f":"((Quarterly!CN31/Quarterly!CN27)-1)","v":5.7471425566229417E-2},{"$f":"((Quarterly!CO31/Quarterly!CO27)-1)","v":9.6215306980655946E-2},{"$f":"((Quarterly!CP31/Quarterly!CP27)-1)","v":0.12941101848234582},{"$f":"((Quarterly!CQ31/Quarterly!CQ27)-1)","v":1.4098152185656243E-2},"--","--","--",null,null,null,null,null,{"$f":"((Quarterly!CZ31/Quarterly!CZ27)-1)","v":1.4874767581756432E-2},{"$f":"((Quarterly!DA31/Quarterly!DA27)-1)","v":1.8987341772152E-2},null,null,null,null,null,"--","--",{"$f":"Quarterly!DI31-Quarterly!DI27","v":0.10000000000000853},"--",{"$f":"(Quarterly!DK31-Quarterly!DK27)*100","v":-30.000000000000071},{"$f":"((Quarterly!DL31/Quarterly!DL27)-1)","v":1.2347002207883984E-2},null,null,null,{"$f":"((Quarterly!DP31/Quarterly!DP27)-1)","v":2.6489909170678505E-2},null,null,null,null,"--","--","--","--","--","--","--","--","--",null,null,null,null,null,{"$f":"((Quarterly!EI31/Quarterly!EI27)-1)","v":8.7204838119289141E-2},{"$f":"((Quarterly!EJ31/Quarterly!EJ27)-1)","v":6.4085541522377998E-2},{"$f":"((Quarterly!EK31/Quarterly!EK27)-1)","v":5.5434881248492385E-2},null,null,null,null,null,{"$f":"((Quarterly!EQ31/Quarterly!EQ27)-1)","v":4.2283298097252064E-3},"--",{"$f":"((Quarterly!ES31/Quarterly!ES27)-1)","v":7.0707070707070052E-3},null,null,null,null,null,{"$f":"(Quarterly!EY31-Quarterly!EY27)*100","v":0},{"$f":"(Quarterly!EZ31-Quarterly!EZ27)*100","v":49.666666666666657},{"$f":"(Quarterly!FA31-Quarterly!FA27)*100","v":17.999999999999972},{"$f":"(Quarterly!FB31-Quarterly!FB27)*100","v":-6.3333333333333464},"--","--",{"$f":"(Quarterly!FE31-Quarterly!FE27)*100","v":62.333333333333307},{"$f":"(Quarterly!FF31-Quarterly!FF27)*100","v":79.999999999999986},"--",{"$f":"(Quarterly!FH31-Quarterly!FH27)*100","v":44.000000000000085},{"$f":"(Quarterly!FI31-Quarterly!FI27)*100","v":28.666666666666664},null,null,null,null,null,null,"--","--","--","--","--","--","--","--","--",null,null,null,null,null,"--","--","--","--","--","--","--","--","--"]
["64'Q2",{"$f":"((Quarterly!B32/Quarterly!B28)-1)","v":7.7428442552248455E-2},{"$f":"((Quarterly!C32/Quarterly!C28)-1)","v":6.1479509210444316E-2},{"$f":"((Quarterly!D32/Quarterly!D28)-1)","v":6.3068353938396271E-2},{"$f":"((Quarterly!E32/Quarterly!E28)-1)","v":6.0569901198033627E-2},{"$f":"((Quarterly!F32/Quarterly!F28)-1)","v":9.6340319049108558E-2},{"$f":"((Quarterly!G32/Quarterly!G28)-1)","v":4.4680187207488009E-2},{"$f":"((Quarterly!H32/Quarterly!H28)-1)","v":6.6391230503224152E-2},{"$f":"((Quarterly!I32/Quarterly!I28)-1)","v":0.10482779365318073},{"$f":"((Quarterly!J32/Quarterly!J28)-1)","v":0.16246940409472055},{"$f":"((Quarterly!K32/Quarterly!K28)-1)","v":5.8209554395824981E-2},{"$f":"((Quarterly!L32-Quarterly!L28))","v":-2.1880000000000024},{"$f":"((Quarterly!M32/Quarterly!M28)-1)","v":4.4050384521044039E-2},{"$f":"((Quarterly!N32/Quarterly!N28)-1)","v":7.2478381517810941E-2},{"$f":"((Quarterly!O32/Quarterly!O28)-1)","v":-0.19657244298784682},{"$f":"((Quarterly!P32/Quarterly!P28)-1)","v":4.6575694864753547E-2},{"$f":"((Quarterly!Q32/Quarterly!Q28)-1)","v":8.4817927170868348},null,null,null,null,null,"--","--",{"$f":"((Quarterly!Y32/Quarterly!Y28)-1)","v":0.10239828939705076},"--",{"$f":"((Quarterly!AA32/Quarterly!AA28)-1)","v":0.13314814814814824},{"$f":"((Quarterly!AB32/Quarterly!AB28)-1)","v":0.12262026612077781},"--","--","--","--","--","--","--","--","--","--",{"$f":"((Quarterly!AM32/Quarterly!AM28)-1)","v":6.2062231370954235E-2},"--","--","--",{"$f":"Quarterly!AQ32-Quarterly!AQ28","v":0.79999999999999716},"--","--",{"$f":"Quarterly!AT32-Quarterly!AT28","v":2.6999999999999957},"--","--",{"$f":"Quarterly!AW32-Quarterly!AW28","v":-0.29999999999999716},{"$f":"Quarterly!AX32-Quarterly!AX28","v":-0.40000000000000568},{"$f":"Quarterly!AY32-Quarterly!AY28","v":1.2666666666666586},{"$f":"Quarterly!AZ32-Quarterly!AZ28","v":0.56666666666666288},{"$f":"Quarterly!BA32-Quarterly!BA28","v":1.9333333333333371},"--","--","--","--",{"$f":"((Quarterly!BF32/Quarterly!BF28)-1)","v":3.238224637681153E-2},{"$f":"((Quarterly!BG32/Quarterly!BG28)-1)","v":3.7430814776676646E-2},{"$f":"((Quarterly!BH32/Quarterly!BH28)-1)","v":1.7516907700729334E-2},{"$f":"((Quarterly!BI32/Quarterly!BI28)-1)","v":-4.8381421534130498E-3},{"$f":"((Quarterly!BJ32/Quarterly!BJ28)-1)","v":0.16358712419869037},"--",null,"--","--",null,null,null,null,null,{"$f":"((Quarterly!BT32/Quarterly!BT28)-1)","v":0.14188005366136158},"--","--",{"$f":"((Quarterly!BW32/Quarterly!BW28)-1)","v":0.10725684089363252},{"$f":"((Quarterly!BX32/Quarterly!BX28)-1)","v":-9.2110614070760488E-2},{"$f":"((Quarterly!BY32/Quarterly!BY28)-1)","v":-3.5149384885764579E-2},"--","--",{"$f":"((Quarterly!CB32/Quarterly!CB28)-1)","v":-1.582567702116211E-2},{"$f":"((Quarterly!CC32/Quarterly!CC28)-1)","v":-4.4556425685394974E-2},"--","--",null,"--","--",null,{"$f":"((Quarterly!CJ32/Quarterly!CJ28)-1)","v":-3.2032615026208577E-2},{"$f":"((Quarterly!CK32/Quarterly!CK28)-1)","v":7.2935873796352801E-2},{"$f":"((Quarterly!CL32/Quarterly!CL28)-1)","v":0.21304347826086945},{"$f":"((Quarterly!CM32/Quarterly!CM28)-1)","v":-0.10869565217391308},{"$f":"((Quarterly!CN32/Quarterly!CN28)-1)","v":7.5851049048214492E-2},{"$f":"((Quarterly!CO32/Quarterly!CO28)-1)","v":9.2443861662022675E-2},{"$f":"((Quarterly!CP32/Quarterly!CP28)-1)","v":0.13157468052069921},{"$f":"((Quarterly!CQ32/Quarterly!CQ28)-1)","v":1.4071625811281185E-2},"--","--","--",null,null,null,null,null,{"$f":"((Quarterly!CZ32/Quarterly!CZ28)-1)","v":1.4628820960698841E-2},{"$f":"((Quarterly!DA32/Quarterly!DA28)-1)","v":1.5756302521008347E-2},null,null,null,null,null,"--","--",{"$f":"Quarterly!DI32-Quarterly!DI28","v":0.26666666666667282},"--",{"$f":"(Quarterly!DK32-Quarterly!DK28)*100","v":-53.333333333333499},{"$f":"((Quarterly!DL32/Quarterly!DL28)-1)","v":1.2140738686069019E-2},null,null,null,{"$f":"((Quarterly!DP32/Quarterly!DP28)-1)","v":2.5775077419430747E-2},null,null,null,null,"--","--","--","--","--","--","--","--","--",null,null,null,null,null,{"$f":"((Quarterly!EI32/Quarterly!EI28)-1)","v":6.2540176186297147E-2},{"$f":"((Quarterly!EJ32/Quarterly!EJ28)-1)","v":5.8814620037159759E-2},{"$f":"((Quarterly!EK32/Quarterly!EK28)-1)","v":5.8299071202018604E-2},null,null,null,null,null,{"$f":"((Quarterly!EQ32/Quarterly!EQ28)-1)","v":1.0582010582009804E-3},"--",{"$f":"((Quarterly!ES32/Quarterly!ES28)-1)","v":1.2121212121211977E-2},null,null,null,null,null,{"$f":"(Quarterly!EY32-Quarterly!EY28)*100","v":0},{"$f":"(Quarterly!EZ32-Quarterly!EZ28)*100","v":52.666666666666686},{"$f":"(Quarterly!FA32-Quarterly!FA28)*100","v":18.666666666666742},{"$f":"(Quarterly!FB32-Quarterly!FB28)*100","v":-0.33333333333329662},"--","--",{"$f":"(Quarterly!FE32-Quarterly!FE28)*100","v":53.666666666666664},{"$f":"(Quarterly!FF32-Quarterly!FF28)*100","v":71.666666666666686},"--",{"$f":"(Quarterly!FH32-Quarterly!FH28)*100","v":31.6666666666666},{"$f":"(Quarterly!FI32-Quarterly!FI28)*100","v":23.666666666666679},null,null,null,null,null,null,"--","--","--","--","--","--","--","--","--",null,null,null,null,null,"--","--","--","--","--","--","--","--","--"]
["64'Q3",{"$f":"((Quarterly!B33/Quarterly!B29)-1)","v":7.4185996030761592E-2},{"$f":"((Quarterly!C33/Quarterly!C29)-1)","v":5.5297425758773278E-2},{"$f":"((Quarterly!D33/Quarterly!D29)-1)","v":5.673781552030488E-2},{"$f":"((Quarterly!E33/Quarterly!E29)-1)","v":6.5545981070772807E-2},{"$f":"((Quarterly!F33/Quarterly!F29)-1)","v":0.11864057672502581},{"$f":"((Quarterly!G33/Quarterly!G29)-1)","v":5.5437034288717379E-2},{"$f":"((Quarterly!H33/Quarterly!H29)-1)","v":6.6936177524330898E-2},{"$f":"((Quarterly!I33/Quarterly!I29)-1)","v":0.11000512332577039},{"$f":"((Quarterly!J33/Quarterly!J29)-1)","v":0.16932832415721855},{"$f":"((Quarterly!K33/Quarterly!K29)-1)","v":2.1679148600709519E-2},{"$f":"((Quarterly!L33-Quarterly!L29))","v":-2.3999999999999986},{"$f":"((Quarterly!M33/Quarterly!M29)-1)","v":4.5527780318434186E-2},{"$f":"((Quarterly!N33/Quarterly!N29)-1)","v":0.12431400620376998},{"$f":"((Quarterly!O33/Quarterly!O29)-1)","v":-0.32749646963889456},{"$f":"((Quarterly!P33/Quarterly!P29)-1)","v":3.3380461337042533E-3},{"$f":"((Quarterly!Q33/Quarterly!Q29)-1)","v":3.1007941356139277},null,null,null,null,null,"--","--",{"$f":"((Quarterly!Y33/Quarterly!Y29)-1)","v":0.11312890000853693},"--",{"$f":"((Quarterly!AA33/Quarterly!AA29)-1)","v":0.13267122404230625},{"$f":"((Quarterly!AB33/Quarterly!AB29)-1)","v":0.11652072649094136},"--","--","--","--","--","--","--","--","--","--",{"$f":"((Quarterly!AM33/Quarterly!AM29)-1)","v":7.1924966098422916E-2},"--","--","--",{"$f":"Quarterly!AQ33-Quarterly!AQ29","v":7.3333333333333286},"--","--",{"$f":"Quarterly!AT33-Quarterly!AT29","v":4.4000000000000057},"--","--",{"$f":"Quarterly!AW33-Quarterly!AW29","v":6},{"$f":"Quarterly!AX33-Quarterly!AX29","v":6.4333333333333371},{"$f":"Quarterly!AY33-Quarterly!AY29","v":2.93333333333333},{"$f":"Quarterly!AZ33-Quarterly!AZ29","v":4.0333333333333456},{"$f":"Quarterly!BA33-Quarterly!BA29","v":19.366666666666667},"--","--","--","--",{"$f":"((Quarterly!BF33/Quarterly!BF29)-1)","v":3.5418067697825517E-2},{"$f":"((Quarterly!BG33/Quarterly!BG29)-1)","v":2.3442226255293352E-2},{"$f":"((Quarterly!BH33/Quarterly!BH29)-1)","v":2.4409545750312178E-2},{"$f":"((Quarterly!BI33/Quarterly!BI29)-1)","v":1.1694086260560344E-2},{"$f":"((Quarterly!BJ33/Quarterly!BJ29)-1)","v":0.16028962402019387},"--",null,"--","--",null,null,null,null,null,{"$f":"((Quarterly!BT33/Quarterly!BT29)-1)","v":0.16675901470796428},"--","--",{"$f":"((Quarterly!BW33/Quarterly!BW29)-1)","v":9.638798701298712E-2},{"$f":"((Quarterly!BX33/Quarterly!BX29)-1)","v":-8.5725677830940983E-2},{"$f":"((Quarterly!BY33/Quarterly!BY29)-1)","v":-4.1790306627101814E-2},"--","--",{"$f":"((Quarterly!CB33/Quarterly!CB29)-1)","v":-0.11512687615919037},{"$f":"((Quarterly!CC33/Quarterly!CC29)-1)","v":-0.10642482907740858},"--","--",null,"--","--",null,{"$f":"((Quarterly!CJ33/Quarterly!CJ29)-1)","v":-4.2739726027397285E-2},{"$f":"((Quarterly!CK33/Quarterly!CK29)-1)","v":7.6933432052231243E-2},{"$f":"((Quarterly!CL33/Quarterly!CL29)-1)","v":0.19340659340659316},{"$f":"((Quarterly!CM33/Quarterly!CM29)-1)","v":-8.6752270591919811E-2},{"$f":"((Quarterly!CN33/Quarterly!CN29)-1)","v":7.7854433511076682E-2},{"$f":"((Quarterly!CO33/Quarterly!CO29)-1)","v":9.3604744350056057E-2},{"$f":"((Quarterly!CP33/Quarterly!CP29)-1)","v":0.1303037931621025},{"$f":"((Quarterly!CQ33/Quarterly!CQ29)-1)","v":1.3890965507415087E-2},"--","--","--",null,null,null,null,null,{"$f":"((Quarterly!CZ33/Quarterly!CZ29)-1)","v":1.07421875E-2},{"$f":"((Quarterly!DA33/Quarterly!DA29)-1)","v":1.3598326359832713E-2},null,null,null,null,null,"--","--",{"$f":"Quarterly!DI33-Quarterly!DI29","v":0},"--",{"$f":"(Quarterly!DK33-Quarterly!DK29)*100","v":-50},{"$f":"((Quarterly!DL33/Quarterly!DL29)-1)","v":2.0100502512562901E-2},null,null,null,{"$f":"((Quarterly!DP33/Quarterly!DP29)-1)","v":3.017900117694583E-2},null,null,null,null,"--","--","--","--","--","--","--","--","--",null,null,null,null,null,{"$f":"((Quarterly!EI33/Quarterly!EI29)-1)","v":5.070983411401131E-2},{"$f":"((Quarterly!EJ33/Quarterly!EJ29)-1)","v":5.4751118408053356E-2},{"$f":"((Quarterly!EK33/Quarterly!EK29)-1)","v":5.6531835295536625E-2},null,null,null,null,null,{"$f":"((Quarterly!EQ33/Quarterly!EQ29)-1)","v":0},"--",{"$f":"((Quarterly!ES33/Quarterly!ES29)-1)","v":1.4127144298688332E-2},null,null,null,null,null,{"$f":"(Quarterly!EY33-Quarterly!EY29)*100","v":0},{"$f":"(Quarterly!EZ33-Quarterly!EZ29)*100","v":12.666666666666693},{"$f":"(Quarterly!FA33-Quarterly!FA29)*100","v":12.333333333333396},{"$f":"(Quarterly!FB33-Quarterly!FB29)*100","v":-1.3333333333333641},"--","--",{"$f":"(Quarterly!FE33-Quarterly!FE29)*100","v":20.333333333333357},{"$f":"(Quarterly!FF33-Quarterly!FF29)*100","v":24.000000000000021},"--",{"$f":"(Quarterly!FH33-Quarterly!FH29)*100","v":14.000000000000012},{"$f":"(Quarterly!FI33-Quarterly!FI29)*100","v":16.000000000000103},null,null,null,null,null,null,"--","--","--","--","--","--","--","--","--",null,null,null,null,null,{"$f":"((Quarterly!GD33/Quarterly!GD29)-1)","v":-1.6835016835016869E-2},"--","--","--","--","--","--","--","--"]
["64'Q4",{"$f":"((Quarterly!B34/Quarterly!B30)-1)","v":6.6556716144401618E-2},{"$f":"((Quarterly!C34/Quarterly!C30)-1)","v":5.1534734519551595E-2},{"$f":"((Quarterly!D34/Quarterly!D30)-1)","v":4.9985509231716962E-2},{"$f":"((Quarterly!E34/Quarterly!E30)-1)","v":5.9680582796301396E-2},{"$f":"((Quarterly!F34/Quarterly!F30)-1)","v":6.7423704755145808E-2},{"$f":"((Quarterly!G34/Quarterly!G30)-1)","v":5.8788929478050811E-2},{"$f":"((Quarterly!H34/Quarterly!H30)-1)","v":5.9564728922751664E-2},{"$f":"((Quarterly!I34/Quarterly!I30)-1)","v":0.10155749946660997},{"$f":"((Quarterly!J34/Quarterly!J30)-1)","v":0.14465806803455328},{"$f":"((Quarterly!K34/Quarterly!K30)-1)","v":-2.6768642447418722E-2},{"$f":"((Quarterly!L34-Quarterly!L30))","v":2.9390000000000001},{"$f":"((Quarterly!M34/Quarterly!M30)-1)","v":7.7336288620497351E-2},{"$f":"((Quarterly!N34/Quarterly!N30)-1)","v":0.10247734040913059},{"$f":"((Quarterly!O34/Quarterly!O30)-1)","v":-9.077590884427722E-2},{"$f":"((Quarterly!P34/Quarterly!P30)-1)","v":1.3029304859490942E-2},{"$f":"((Quarterly!Q34/Quarterly!Q30)-1)","v":1.1618966253737715},null,null,null,null,null,"--","--",{"$f":"((Quarterly!Y34/Quarterly!Y30)-1)","v":0.11492594754764252},"--",{"$f":"((Quarterly!AA34/Quarterly!AA30)-1)","v":9.5058373590982237E-2},{"$f":"((Quarterly!AB34/Quarterly!AB30)-1)","v":0.10070655773901516},"--","--","--","--","--","--","--","--","--","--",{"$f":"((Quarterly!AM34/Quarterly!AM30)-1)","v":7.0078980055778173E-2},"--","--","--",{"$f":"Quarterly!AQ34-Quarterly!AQ30","v":5.2333333333333343},"--","--",{"$f":"Quarterly!AT34-Quarterly!AT30","v":3.7000000000000028},"--","--",{"$f":"Quarterly!AW34-Quarterly!AW30","v":15.099999999999994},{"$f":"Quarterly!AX34-Quarterly!AX30","v":-0.76666666666666572},{"$f":"Quarterly!AY34-Quarterly!AY30","v":-0.20000000000000284},{"$f":"Quarterly!AZ34-Quarterly!AZ30","v":-0.23333333333332718},{"$f":"Quarterly!BA34-Quarterly!BA30","v":21.866666666666667},"--","--","--","--",{"$f":"((Quarterly!BF34/Quarterly!BF30)-1)","v":3.113573407202197E-2},{"$f":"((Quarterly!BG34/Quarterly!BG30)-1)","v":1.4292196007259506E-2},{"$f":"((Quarterly!BH34/Quarterly!BH30)-1)","v":1.8269616303191905E-2},{"$f":"((Quarterly!BI34/Quarterly!BI30)-1)","v":1.6615384615384698E-2},{"$f":"((Quarterly!BJ34/Quarterly!BJ30)-1)","v":0.11911617223642068},"--",null,"--","--",null,null,null,null,null,{"$f":"((Quarterly!BT34/Quarterly!BT30)-1)","v":0.15210428056943459},"--","--",{"$f":"((Quarterly!BW34/Quarterly!BW30)-1)","v":8.6694345591142863E-2},{"$f":"((Quarterly!BX34/Quarterly!BX30)-1)","v":-8.1357318070318985E-2},{"$f":"((Quarterly!BY34/Quarterly!BY30)-1)","v":-0.1301859799713877},"--","--",{"$f":"((Quarterly!CB34/Quarterly!CB30)-1)","v":-0.10449675876372722},{"$f":"((Quarterly!CC34/Quarterly!CC30)-1)","v":-0.10567675383570541},"--","--",null,"--","--",null,{"$f":"((Quarterly!CJ34/Quarterly!CJ30)-1)","v":6.6265060240964235E-3},{"$f":"((Quarterly!CK34/Quarterly!CK30)-1)","v":7.3966450931184813E-2},{"$f":"((Quarterly!CL34/Quarterly!CL30)-1)","v":0.18476062036412655},{"$f":"((Quarterly!CM34/Quarterly!CM30)-1)","v":-2.7927321668909766E-2},{"$f":"((Quarterly!CN34/Quarterly!CN30)-1)","v":7.2575083501237314E-2},{"$f":"((Quarterly!CO34/Quarterly!CO30)-1)","v":9.7128510905382326E-2},{"$f":"((Quarterly!CP34/Quarterly!CP30)-1)","v":0.12376694556214773},{"$f":"((Quarterly!CQ34/Quarterly!CQ30)-1)","v":1.3581771832540612E-2},"--","--","--",null,null,null,null,null,{"$f":"((Quarterly!CZ34/Quarterly!CZ30)-1)","v":1.2660967427767567E-2},{"$f":"((Quarterly!DA34/Quarterly!DA30)-1)","v":1.3527575442247697E-2},null,null,null,null,null,"--","--",{"$f":"Quarterly!DI34-Quarterly!DI30","v":-0.13333333333333286},"--",{"$f":"(Quarterly!DK34-Quarterly!DK30)*100","v":-60.000000000000057},{"$f":"((Quarterly!DL34/Quarterly!DL30)-1)","v":2.1061123967643924E-2},null,null,null,{"$f":"((Quarterly!DP34/Quarterly!DP30)-1)","v":3.2187505453783904E-2},null,null,null,null,"--","--","--","--","--","--","--","--","--",null,null,null,null,null,{"$f":"((Quarterly!EI34/Quarterly!EI30)-1)","v":3.9882350578669623E-2},{"$f":"((Quarterly!EJ34/Quarterly!EJ30)-1)","v":4.8947591543133218E-2},{"$f":"((Quarterly!EK34/Quarterly!EK30)-1)","v":5.3922632978200102E-2},null,null,null,null,null,{"$f":"((Quarterly!EQ34/Quarterly!EQ30)-1)","v":2.1074815595363283E-3},"--",{"$f":"((Quarterly!ES34/Quarterly!ES30)-1)","v":1.0050251256281229E-2},null,null,null,null,null,{"$f":"(Quarterly!EY34-Quarterly!EY30)*100","v":0},{"$f":"(Quarterly!EZ34-Quarterly!EZ30)*100","v":12.333333333333352},{"$f":"(Quarterly!FA34-Quarterly!FA30)*100","v":9.6666666666666679},{"$f":"(Quarterly!FB34-Quarterly!FB30)*100","v":-3.0000000000000249},"--","--",{"$f":"(Quarterly!FE34-Quarterly!FE30)*100","v":18.6666666666667},{"$f":"(Quarterly!FF34-Quarterly!FF30)*100","v":19.999999999999929},"--",{"$f":"(Quarterly!FH34-Quarterly!FH30)*100","v":5.9999999999999609},{"$f":"(Quarterly!FI34-Quarterly!FI30)*100","v":5.3333333333332789},null,null,null,null,null,null,"--","--","--","--","--","--","--","--","--",null,null,null,null,null,{"$f":"((Quarterly!GD34/Quarterly!GD30)-1)","v":-1.6835016835016869E-2},"--","--","--","--","--","--","--","--"]
["65'Q1",{"$f":"((Quarterly!B35/Quarterly!B31)-1)","v":7.1666649283542272E-2},{"$f":"((Quarterly!C35/Quarterly!C31)-1)","v":5.4658306622797248E-2},{"$f":"((Quarterly!D35/Quarterly!D31)-1)","v":4.4965092340996993E-2},{"$f":"((Quarterly!E35/Quarterly!E31)-1)","v":6.2374061183366969E-2},{"$f":"((Quarterly!F35/Quarterly!F31)-1)","v":0.12306040792427031},{"$f":"((Quarterly!G35/Quarterly!G31)-1)","v":5.0920712220362319E-2},{"$f":"((Quarterly!H35/Quarterly!H31)-1)","v":6.3709572537724135E-2},{"$f":"((Quarterly!I35/Quarterly!I31)-1)","v":0.14760378935636709},{"$f":"((Quarterly!J35/Quarterly!J31)-1)","v":0.21315463964524106},{"$f":"((Quarterly!K35/Quarterly!K31)-1)","v":-7.999999999999996E-2},{"$f":"((Quarterly!L35-Quarterly!L31))","v":27.452999999999999},{"$f":"((Quarterly!M35/Quarterly!M31)-1)","v":3.9531137394548388E-2},{"$f":"((Quarterly!N35/Quarterly!N31)-1)","v":-7.331600275250405E-2},{"$f":"((Quarterly!O35/Quarterly!O31)-1)","v":1.4132539091586001},{"$f":"((Quarterly!P35/Quarterly!P31)-1)","v":8.7792688302830157E-3},{"$f":"((Quarterly!Q35/Quarterly!Q31)-1)","v":-0.83562885103298301},null,null,null,null,null,"--","--",{"$f":"((Quarterly!Y35/Quarterly!Y31)-1)","v":0.14445965803043737},"--",{"$f":"((Quarterly!AA35/Quarterly!AA31)-1)","v":0.15351623505279588},{"$f":"((Quarterly!AB35/Quarterly!AB31)-1)","v":0.14523184601924766},"--","--","--","--","--","--","--","--","--","--",{"$f":"((Quarterly!AM35/Quarterly!AM31)-1)","v":9.5499513329680319E-2},"--","--","--",{"$f":"Quarterly!AQ35-Quarterly!AQ31","v":4.2666666666666657},"--","--",{"$f":"Quarterly!AT35-Quarterly!AT31","v":5.6333333333333258},"--","--",{"$f":"Quarterly!AW35-Quarterly!AW31","v":11.499999999999986},{"$f":"Quarterly!AX35-Quarterly!AX31","v":3.1333333333333329},{"$f":"Quarterly!AY35-Quarterly!AY31","v":6.4333333333333442},{"$f":"Quarterly!AZ35-Quarterly!AZ31","v":-2.6666666666666714},{"$f":"Quarterly!BA35-Quarterly!BA31","v":11.666666666666664},"--","--","--","--",{"$f":"((Quarterly!BF35/Quarterly!BF31)-1)","v":3.6039033045021096E-2},{"$f":"((Quarterly!BG35/Quarterly!BG31)-1)","v":2.0236340470182634E-2},{"$f":"((Quarterly!BH35/Quarterly!BH31)-1)","v":2.4157382103566549E-2},{"$f":"((Quarterly!BI35/Quarterly!BI31)-1)","v":1.5489769650703478E-2},{"$f":"((Quarterly!BJ35/Quarterly!BJ31)-1)","v":0.17232113857147091},"--",null,"--","--",null,null,null,null,null,{"$f":"((Quarterly!BT35/Quarterly!BT31)-1)","v":0.14965028051704099},"--","--",{"$f":"((Quarterly!BW35/Quarterly!BW31)-1)","v":8.5584497172956908E-2},{"$f":"((Quarterly!BX35/Quarterly!BX31)-1)","v":-0.1463562753036437},{"$f":"((Quarterly!BY35/Quarterly!BY31)-1)","v":-9.6519377931374883E-2},"--","--",{"$f":"((Quarterly!CB35/Quarterly!CB31)-1)","v":-0.12802377660602882},{"$f":"((Quarterly!CC35/Quarterly!CC31)-1)","v":-0.11937536868109622},"--","--",null,"--","--",null,{"$f":"((Quarterly!CJ35/Quarterly!CJ31)-1)","v":-4.1860465116279055E-2},{"$f":"((Quarterly!CK35/Quarterly!CK31)-1)","v":7.5507161838096915E-2},{"$f":"((Quarterly!CL35/Quarterly!CL31)-1)","v":8.7500000000000133E-2},{"$f":"((Quarterly!CM35/Quarterly!CM31)-1)","v":-0.13863928112965351},{"$f":"((Quarterly!CN35/Quarterly!CN31)-1)","v":6.4321048234155409E-2},{"$f":"((Quarterly!CO35/Quarterly!CO31)-1)","v":9.9278809268068313E-2},{"$f":"((Quarterly!CP35/Quarterly!CP31)-1)","v":0.12428926386371586},{"$f":"((Quarterly!CQ35/Quarterly!CQ31)-1)","v":1.3243726127498245E-2},"--","--","--",null,null,null,null,null,{"$f":"((Quarterly!CZ35/Quarterly!CZ31)-1)","v":1.1639185257031892E-2},{"$f":"((Quarterly!DA35/Quarterly!DA31)-1)","v":1.2422360248447228E-2},null,null,null,null,null,"--","--",{"$f":"Quarterly!DI35-Quarterly!DI31","v":-3.3333333333345649E-2},"--",{"$f":"(Quarterly!DK35-Quarterly!DK31)*100","v":-56.666666666666643},{"$f":"((Quarterly!DL35/Quarterly!DL31)-1)","v":3.5191733542253356E-2},null,null,null,{"$f":"((Quarterly!DP35/Quarterly!DP31)-1)","v":3.6098789390998975E-2},null,null,null,null,"--","--","--","--","--","--","--","--","--",null,null,null,null,null,{"$f":"((Quarterly!EI35/Quarterly!EI31)-1)","v":3.7764832616801192E-2},{"$f":"((Quarterly!EJ35/Quarterly!EJ31)-1)","v":5.0152325052811531E-2},{"$f":"((Quarterly!EK35/Quarterly!EK31)-1)","v":5.5932436743329594E-2},null,null,null,null,null,{"$f":"((Quarterly!EQ35/Quarterly!EQ31)-1)","v":6.3157894736840525E-3},"--",{"$f":"((Quarterly!ES35/Quarterly!ES31)-1)","v":1.3039117352056318E-2},null,null,null,null,null,{"$f":"(Quarterly!EY35-Quarterly!EY31)*100","v":0},{"$f":"(Quarterly!EZ35-Quarterly!EZ31)*100","v":50.999999999999979},{"$f":"(Quarterly!FA35-Quarterly!FA31)*100","v":4.333333333333389},{"$f":"(Quarterly!FB35-Quarterly!FB31)*100","v":-4.333333333333389},"--","--",{"$f":"(Quarterly!FE35-Quarterly!FE31)*100","v":36.000000000000028},{"$f":"(Quarterly!FF35-Quarterly!FF31)*100","v":18.3333333333334},"--",{"$f":"(Quarterly!FH35-Quarterly!FH31)*100","v":5.3333333333332789},{"$f":"(Quarterly!FI35-Quarterly!FI31)*100","v":2.3333333333333428},null,null,null,null,null,null,"--","--","--","--","--","--","--","--","--",null,null,null,null,null,{"$f":"((Quarterly!GD35/Quarterly!GD31)-1)","v":-1.6835016835016869E-2},"--","--","--","--","--","--","--","--"]
["65'Q2",{"$f":"((Quarterly!B36/Quarterly!B32)-1)","v":7.5815599398904476E-2},{"$f":"((Quarterly!C36/Quarterly!C32)-1)","v":5.6513027993354781E-2},{"$f":"((Quarterly!D36/Quarterly!D32)-1)","v":5.0901050452642371E-2},{"$f":"((Quarterly!E36/Quarterly!E32)-1)","v":5.5580558055805529E-2},{"$f":"((Quarterly!F36/Quarterly!F32)-1)","v":9.6148359486448065E-2},{"$f":"((Quarterly!G36/Quarterly!G32)-1)","v":4.1096708679290384E-2},{"$f":"((Quarterly!H36/Quarterly!H32)-1)","v":6.004146635365637E-2},{"$f":"((Quarterly!I36/Quarterly!I32)-1)","v":0.16253743533896015},{"$f":"((Quarterly!J36/Quarterly!J32)-1)","v":0.23753473461495189},{"$f":"((Quarterly!K36/Quarterly!K32)-1)","v":-2.4279210925645001E-2},{"$f":"((Quarterly!L36-Quarterly!L32))","v":15.46},{"$f":"((Quarterly!M36/Quarterly!M32)-1)","v":0.1366224433388612},{"$f":"((Quarterly!N36/Quarterly!N32)-1)","v":8.274352590765166E-2},{"$f":"((Quarterly!O36/Quarterly!O32)-1)","v":0.74538964901844063},{"$f":"((Quarterly!P36/Quarterly!P32)-1)","v":1.1850726970294767E-2},{"$f":"((Quarterly!Q36/Quarterly!Q32)-1)","v":-0.80344657804037423},null,null,null,null,null,"--","--",{"$f":"((Quarterly!Y36/Quarterly!Y32)-1)","v":0.17326523930470694},"--",{"$f":"((Quarterly!AA36/Quarterly!AA32)-1)","v":0.19772138304578246},{"$f":"((Quarterly!AB36/Quarterly!AB32)-1)","v":0.16583596725828653},"--","--","--","--","--","--","--","--","--","--",{"$f":"((Quarterly!AM36/Quarterly!AM32)-1)","v":9.5193185206603248E-2},"--","--","--",{"$f":"Quarterly!AQ36-Quarterly!AQ32","v":1.3333333333333286},"--","--",{"$f":"Quarterly!AT36-Quarterly!AT32","v":1.3666666666666671},"--","--",{"$f":"Quarterly!AW36-Quarterly!AW32","v":7.1333333333333329},{"$f":"Quarterly!AX36-Quarterly!AX32","v":-3.5999999999999943},{"$f":"Quarterly!AY36-Quarterly!AY32","v":9.0999999999999943},{"$f":"Quarterly!AZ36-Quarterly!AZ32","v":-0.39999999999999147},{"$f":"Quarterly!BA36-Quarterly!BA32","v":10.300000000000004},"--","--","--","--",{"$f":"((Quarterly!BF36/Quarterly!BF32)-1)","v":3.158587409519642E-2},{"$f":"((Quarterly!BG36/Quarterly!BG32)-1)","v":1.9380133502072017E-2},{"$f":"((Quarterly!BH36/Quarterly!BH32)-1)","v":1.4907241899935864E-2},{"$f":"((Quarterly!BI36/Quarterly!BI32)-1)","v":1.2021568107486891E-2},{"$f":"((Quarterly!BJ36/Quarterly!BJ32)-1)","v":0.21536104646024223},"--",null,"--","--",null,null,null,null,null,{"$f":"((Quarterly!BT36/Quarterly!BT32)-1)","v":0.14853052446221637},"--","--",{"$f":"((Quarterly!BW36/Quarterly!BW32)-1)","v":7.9005812030430445E-2},{"$f":"((Quarterly!BX36/Quarterly!BX32)-1)","v":-1.3661814109742432E-2},{"$f":"((Quarterly!BY36/Quarterly!BY32)-1)","v":-6.0629716367421316E-2},"--","--",{"$f":"((Quarterly!CB36/Quarterly!CB32)-1)","v":-5.258299744559336E-2},{"$f":"((Quarterly!CC36/Quarterly!CC32)-1)","v":-7.0240945115688791E-2},"--","--",null,"--","--",null,{"$f":"((Quarterly!CJ36/Quarterly!CJ32)-1)","v":3.0685920577617321E-2},{"$f":"((Quarterly!CK36/Quarterly!CK32)-1)","v":7.4533766151104519E-2},{"$f":"((Quarterly!CL36/Quarterly!CL32)-1)","v":5.9737156511374678E-4},{"$f":"((Quarterly!CM36/Quarterly!CM32)-1)","v":6.0091905266879131E-3},{"$f":"((Quarterly!CN36/Quarterly!CN32)-1)","v":4.8186080150848021E-2},{"$f":"((Quarterly!CO36/Quarterly!CO32)-1)","v":9.7524381095273949E-2},{"$f":"((Quarterly!CP36/Quarterly!CP32)-1)","v":0.12632607798872608},{"$f":"((Quarterly!CQ36/Quarterly!CQ32)-1)","v":1.2755110923848845E-2},"--","--","--",null,null,null,null,null,{"$f":"((Quarterly!CZ36/Quarterly!CZ32)-1)","v":1.6462233699160667E-2},{"$f":"((Quarterly!DA36/Quarterly!DA32)-1)","v":1.4477766287487093E-2},null,null,null,null,null,"--","--",{"$f":"Quarterly!DI36-Quarterly!DI32","v":-0.10000000000000142},"--",{"$f":"(Quarterly!DK36-Quarterly!DK32)*100","v":-53.333333333333321},{"$f":"((Quarterly!DL36/Quarterly!DL32)-1)","v":4.2436124462433611E-2},null,null,null,{"$f":"((Quarterly!DP36/Quarterly!DP32)-1)","v":4.1375866660544602E-2},null,null,null,null,"--","--","--","--","--","--","--","--","--",null,null,null,null,null,{"$f":"((Quarterly!EI36/Quarterly!EI32)-1)","v":5.398541499446563E-2},{"$f":"((Quarterly!EJ36/Quarterly!EJ32)-1)","v":5.4188723172895914E-2},{"$f":"((Quarterly!EK36/Quarterly!EK32)-1)","v":5.6389947894306403E-2},null,null,null,null,null,{"$f":"((Quarterly!EQ36/Quarterly!EQ32)-1)","v":2.0084566596194398E-2},"--",{"$f":"((Quarterly!ES36/Quarterly!ES32)-1)","v":1.1976047904191489E-2},null,null,null,null,null,{"$f":"(Quarterly!EY36-Quarterly!EY32)*100","v":0},{"$f":"(Quarterly!EZ36-Quarterly!EZ32)*100","v":58.666666666666686},{"$f":"(Quarterly!FA36-Quarterly!FA32)*100","v":3.6666666666667069},{"$f":"(Quarterly!FB36-Quarterly!FB32)*100","v":-3.0000000000000249},"--","--",{"$f":"(Quarterly!FE36-Quarterly!FE32)*100","v":39.666666666666693},{"$f":"(Quarterly!FF36-Quarterly!FF32)*100","v":16.000000000000057},"--",{"$f":"(Quarterly!FH36-Quarterly!FH32)*100","v":7.6666666666667105},{"$f":"(Quarterly!FI36-Quarterly!FI32)*100","v":0.66666666666668206},null,null,null,null,null,null,"--","--","--","--","--","--","--","--","--",null,null,null,null,null,{"$f":"((Quarterly!GD36/Quarterly!GD32)-1)","v":-1.6835016835016869E-2},"--","--","--","--","--","--","--","--"]
["65'Q3",{"$f":"((Quarterly!B37/Quarterly!B33)-1)","v":8.2818158592508295E-2},{"$f":"((Quarterly!C37/Quarterly!C33)-1)","v":6.3525024277502062E-2},{"$f":"((Quarterly!D37/Quarterly!D33)-1)","v":5.7616068834874579E-2},{"$f":"((Quarterly!E37/Quarterly!E33)-1)","v":5.4355031154712963E-2},{"$f":"((Quarterly!F37/Quarterly!F33)-1)","v":9.7403793039956055E-2},{"$f":"((Quarterly!G37/Quarterly!G33)-1)","v":3.6442465432388271E-2},{"$f":"((Quarterly!H37/Quarterly!H33)-1)","v":6.0397601020703462E-2},{"$f":"((Quarterly!I37/Quarterly!I33)-1)","v":0.16715020440458916},{"$f":"((Quarterly!J37/Quarterly!J33)-1)","v":0.24051467880631838},{"$f":"((Quarterly!K37/Quarterly!K33)-1)","v":-3.4722222222220989E-3},{"$f":"((Quarterly!L37-Quarterly!L33))","v":16.160999999999998},{"$f":"((Quarterly!M37/Quarterly!M33)-1)","v":0.11145729590051401},{"$f":"((Quarterly!N37/Quarterly!N33)-1)","v":2.8604778074217796E-2},{"$f":"((Quarterly!O37/Quarterly!O33)-1)","v":0.76727861771058214},{"$f":"((Quarterly!P37/Quarterly!P33)-1)","v":4.4015332345144209E-2},{"$f":"((Quarterly!Q37/Quarterly!Q33)-1)","v":0.39728884254431707},null,null,null,null,null,"--","--",{"$f":"((Quarterly!Y37/Quarterly!Y33)-1)","v":0.18818457517539744},"--",{"$f":"((Quarterly!AA37/Quarterly!AA33)-1)","v":0.18868998815705562},{"$f":"((Quarterly!AB37/Quarterly!AB33)-1)","v":0.16690067394094998},"--","--","--","--","--","--","--","--","--","--",{"$f":"((Quarterly!AM37/Quarterly!AM33)-1)","v":0.1004954683048136},"--","--","--",{"$f":"Quarterly!AQ37-Quarterly!AQ33","v":-4.1000000000000014},"--","--",{"$f":"Quarterly!AT37-Quarterly!AT33","v":-0.23333333333332718},"--","--",{"$f":"Quarterly!AW37-Quarterly!AW33","v":-0.43333333333333712},{"$f":"Quarterly!AX37-Quarterly!AX33","v":-8.3333333333333357},{"$f":"Quarterly!AY37-Quarterly!AY33","v":7.0666666666666842},{"$f":"Quarterly!AZ37-Quarterly!AZ33","v":-4.3666666666666814},{"$f":"Quarterly!BA37-Quarterly!BA33","v":-2.7333333333333414},"--","--","--","--",{"$f":"((Quarterly!BF37/Quarterly!BF33)-1)","v":2.9010608356787149E-2},{"$f":"((Quarterly!BG37/Quarterly!BG33)-1)","v":2.9924634254470339E-2},{"$f":"((Quarterly!BH37/Quarterly!BH33)-1)","v":1.1553449726184883E-2},{"$f":"((Quarterly!BI37/Quarterly!BI33)-1)","v":-9.2295521469698549E-4},{"$f":"((Quarterly!BJ37/Quarterly!BJ33)-1)","v":0.20830709337608067},"--",null,"--","--",null,null,null,null,null,{"$f":"((Quarterly!BT37/Quarterly!BT33)-1)","v":0.14524669486137043},"--","--",{"$f":"((Quarterly!BW37/Quarterly!BW33)-1)","v":7.6624097723486884E-2},{"$f":"((Quarterly!BX37/Quarterly!BX33)-1)","v":-3.1181857828172732E-2},{"$f":"((Quarterly!BY37/Quarterly!BY33)-1)","v":-4.1806451612903195E-2},"--","--",{"$f":"((Quarterly!CB37/Quarterly!CB33)-1)","v":1.662264368003763E-3},{"$f":"((Quarterly!CC37/Quarterly!CC33)-1)","v":-4.5250152034736812E-2},"--","--",null,"--","--",null,{"$f":"((Quarterly!CJ37/Quarterly!CJ33)-1)","v":5.1516886090441361E-3},{"$f":"((Quarterly!CK37/Quarterly!CK33)-1)","v":8.1999999999999851E-2},{"$f":"((Quarterly!CL37/Quarterly!CL33)-1)","v":0.1436464088397793},{"$f":"((Quarterly!CM37/Quarterly!CM33)-1)","v":1.2688614540466325E-2},{"$f":"((Quarterly!CN37/Quarterly!CN33)-1)","v":6.3190911525073723E-2},{"$f":"((Quarterly!CO37/Quarterly!CO33)-1)","v":9.438663344569842E-2},{"$f":"((Quarterly!CP37/Quarterly!CP33)-1)","v":0.12407660672837051},{"$f":"((Quarterly!CQ37/Quarterly!CQ33)-1)","v":1.2484472480724929E-2},"--","--","--",null,null,null,null,null,{"$f":"((Quarterly!CZ37/Quarterly!CZ33)-1)","v":1.7176596886741669E-2},{"$f":"((Quarterly!DA37/Quarterly!DA33)-1)","v":1.3415892672858698E-2},null,null,null,null,null,"--","--",{"$f":"Quarterly!DI37-Quarterly!DI33","v":0.26666666666666572},"--",{"$f":"(Quarterly!DK37-Quarterly!DK33)*100","v":-63.333333333333286},{"$f":"((Quarterly!DL37/Quarterly!DL33)-1)","v":4.7904316606829589E-2},null,null,null,{"$f":"((Quarterly!DP37/Quarterly!DP33)-1)","v":4.4027623838349461E-2},null,null,null,null,"--","--","--","--","--","--","--","--","--",null,null,null,null,null,{"$f":"((Quarterly!EI37/Quarterly!EI33)-1)","v":6.5554109921053483E-2},{"$f":"((Quarterly!EJ37/Quarterly!EJ33)-1)","v":5.9726882938911929E-2},{"$f":"((Quarterly!EK37/Quarterly!EK33)-1)","v":5.9503630782035577E-2},null,null,null,null,null,{"$f":"((Quarterly!EQ37/Quarterly!EQ33)-1)","v":2.4236037934667998E-2},"--",{"$f":"((Quarterly!ES37/Quarterly!ES33)-1)","v":9.9502487562190822E-3},null,null,null,null,null,{"$f":"(Quarterly!EY37-Quarterly!EY33)*100","v":0},{"$f":"(Quarterly!EZ37-Quarterly!EZ33)*100","v":61.666666666666629},{"$f":"(Quarterly!FA37-Quarterly!FA33)*100","v":8.6666666666666892},{"$f":"(Quarterly!FB37-Quarterly!FB33)*100","v":6.666666666666643},"--","--",{"$f":"(Quarterly!FE37-Quarterly!FE33)*100","v":37.000000000000014},{"$f":"(Quarterly!FF37-Quarterly!FF33)*100","v":31.6666666666666},"--",{"$f":"(Quarterly!FH37-Quarterly!FH33)*100","v":14.66666666666665},{"$f":"(Quarterly!FI37-Quarterly!FI33)*100","v":5.33333333333319},null,null,null,null,null,null,"--","--","--","--","--","--","--","--","--",null,null,null,null,null,{"$f":"((Quarterly!GD37/Quarterly!GD33)-1)","v":0},"--","--","--","--","--","--","--","--"]
["65'Q4",{"$f":"((Quarterly!B38/Quarterly!B34)-1)","v":0.106926451553784},{"$f":"((Quarterly!C38/Quarterly!C34)-1)","v":8.4760168656895285E-2},{"$f":"((Quarterly!D38/Quarterly!D34)-1)","v":8.2007911117297771E-2},{"$f":"((Quarterly!E38/Quarterly!E34)-1)","v":8.0997708443504512E-2},{"$f":"((Quarterly!F38/Quarterly!F34)-1)","v":0.179996200607903},{"$f":"((Quarterly!G38/Quarterly!G34)-1)","v":7.2863366568229226E-2},{"$f":"((Quarterly!H38/Quarterly!H34)-1)","v":7.7742836715071872E-2},{"$f":"((Quarterly!I38/Quarterly!I34)-1)","v":0.18929562915617537},{"$f":"((Quarterly!J38/Quarterly!J34)-1)","v":0.27149299852864095},{"$f":"((Quarterly!K38/Quarterly!K34)-1)","v":-6.6797642436149385E-3},{"$f":"((Quarterly!L38-Quarterly!L34))","v":9.8359999999999985},{"$f":"((Quarterly!M38/Quarterly!M34)-1)","v":0.13499275993788618},{"$f":"((Quarterly!N38/Quarterly!N34)-1)","v":7.1261389898870764E-2},{"$f":"((Quarterly!O38/Quarterly!O34)-1)","v":0.65172763621173457},{"$f":"((Quarterly!P38/Quarterly!P34)-1)","v":6.4269938113669545E-2},{"$f":"((Quarterly!Q38/Quarterly!Q34)-1)","v":0.89547520252914437},null,null,null,null,null,"--","--",{"$f":"((Quarterly!Y38/Quarterly!Y34)-1)","v":0.18926926088779306},"--",{"$f":"((Quarterly!AA38/Quarterly!AA34)-1)","v":0.26825513533385426},{"$f":"((Quarterly!AB38/Quarterly!AB34)-1)","v":0.22143989087480698},"--","--","--","--","--","--","--","--","--","--",{"$f":"((Quarterly!AM38/Quarterly!AM34)-1)","v":0.10599944808494244},"--","--","--",{"$f":"Quarterly!AQ38-Quarterly!AQ34","v":-1.36666666666666},"--","--",{"$f":"Quarterly!AT38-Quarterly!AT34","v":1.4333333333333371},"--","--",{"$f":"Quarterly!AW38-Quarterly!AW34","v":-12.333333333333336},{"$f":"Quarterly!AX38-Quarterly!AX34","v":0.93333333333333712},{"$f":"Quarterly!AY38-Quarterly!AY34","v":-0.23333333333333428},{"$f":"Quarterly!AZ38-Quarterly!AZ34","v":-0.53333333333333144},{"$f":"Quarterly!BA38-Quarterly!BA34","v":-3.8666666666666742},"--","--","--","--",{"$f":"((Quarterly!BF38/Quarterly!BF34)-1)","v":3.6643026004728352E-2},{"$f":"((Quarterly!BG38/Quarterly!BG34)-1)","v":5.8127687069758238E-2},{"$f":"((Quarterly!BH38/Quarterly!BH34)-1)","v":1.8369827600965616E-2},{"$f":"((Quarterly!BI38/Quarterly!BI34)-1)","v":-2.0408163265306145E-2},{"$f":"((Quarterly!BJ38/Quarterly!BJ34)-1)","v":0.29173532217500653},"--",null,"--","--",null,null,null,null,null,{"$f":"((Quarterly!BT38/Quarterly!BT34)-1)","v":0.14274364745042223},"--","--",{"$f":"((Quarterly!BW38/Quarterly!BW34)-1)","v":8.2052215045938182E-2},{"$f":"((Quarterly!BX38/Quarterly!BX34)-1)","v":1.6466399643969787E-2},{"$f":"((Quarterly!BY38/Quarterly!BY34)-1)","v":6.9078947368421018E-2},"--","--",{"$f":"((Quarterly!CB38/Quarterly!CB34)-1)","v":-5.5895013833834328E-2},{"$f":"((Quarterly!CC38/Quarterly!CC34)-1)","v":-9.8362602133123755E-2},"--","--",null,"--","--",null,{"$f":"((Quarterly!CJ38/Quarterly!CJ34)-1)","v":6.5230400957510648E-2},{"$f":"((Quarterly!CK38/Quarterly!CK34)-1)","v":8.922641741483206E-2},{"$f":"((Quarterly!CL38/Quarterly!CL34)-1)","v":2.6180990324416786E-2},{"$f":"((Quarterly!CM38/Quarterly!CM34)-1)","v":5.1921079958463068E-2},{"$f":"((Quarterly!CN38/Quarterly!CN34)-1)","v":7.2442572934264593E-2},{"$f":"((Quarterly!CO38/Quarterly!CO34)-1)","v":9.2677345537757194E-2},{"$f":"((Quarterly!CP38/Quarterly!CP34)-1)","v":0.12030788407798809},{"$f":"((Quarterly!CQ38/Quarterly!CQ34)-1)","v":1.2181145930024506E-2},"--","--","--",null,null,null,null,null,{"$f":"((Quarterly!CZ38/Quarterly!CZ34)-1)","v":1.7845693524257467E-2},{"$f":"((Quarterly!DA38/Quarterly!DA34)-1)","v":1.3347022587268942E-2},null,null,null,null,null,"--","--",{"$f":"Quarterly!DI38-Quarterly!DI34","v":0.3333333333333357},"--",{"$f":"(Quarterly!DK38-Quarterly!DK34)*100","v":-86.666666666666544},{"$f":"((Quarterly!DL38/Quarterly!DL34)-1)","v":5.7887842305533121E-2},null,null,null,{"$f":"((Quarterly!DP38/Quarterly!DP34)-1)","v":4.849181658325441E-2},null,null,null,null,"--","--","--","--","--","--","--","--","--",null,null,null,null,null,{"$f":"((Quarterly!EI38/Quarterly!EI34)-1)","v":8.7498453342001126E-2},{"$f":"((Quarterly!EJ38/Quarterly!EJ34)-1)","v":8.3371807370327788E-2},{"$f":"((Quarterly!EK38/Quarterly!EK34)-1)","v":8.2190603167374032E-2},null,null,null,null,null,{"$f":"((Quarterly!EQ38/Quarterly!EQ34)-1)","v":2.9442691903259766E-2},"--",{"$f":"((Quarterly!ES38/Quarterly!ES34)-1)","v":1.3930348258706537E-2},null,null,null,null,null,{"$f":"(Quarterly!EY38-Quarterly!EY34)*100","v":13.999999999999968},{"$f":"(Quarterly!EZ38-Quarterly!EZ34)*100","v":59.000000000000028},{"$f":"(Quarterly!FA38-Quarterly!FA34)*100","v":18.333333333333357},{"$f":"(Quarterly!FB38-Quarterly!FB34)*100","v":15.666666666666629},"--","--",{"$f":"(Quarterly!FE38-Quarterly!FE34)*100","v":48.333333333333343},{"$f":"(Quarterly!FF38-Quarterly!FF34)*100","v":53.333333333333414},"--",{"$f":"(Quarterly!FH38-Quarterly!FH34)*100","v":44.000000000000043},{"$f":"(Quarterly!FI38-Quarterly!FI34)*100","v":30.000000000000071},null,null,null,null,null,null,"--","--","--","--","--","--","--","--","--",null,null,null,null,null,{"$f":"((Quarterly!GD38/Quarterly!GD34)-1)","v":0},"--","--","--","--","--","--","--","--"]
["66'Q1",{"$f":"((Quarterly!B39/Quarterly!B35)-1)","v":0.10855782706382211},{"$f":"((Quarterly!C39/Quarterly!C35)-1)","v":8.4792324779034089E-2},{"$f":"((Quarterly!D39/Quarterly!D35)-1)","v":8.3011973141163153E-2},{"$f":"((Quarterly!E39/Quarterly!E35)-1)","v":7.2980429347357489E-2},{"$f":"((Quarterly!F39/Quarterly!F35)-1)","v":0.13077858880778637},{"$f":"((Quarterly!G39/Quarterly!G35)-1)","v":7.0435588507878011E-2},{"$f":"((Quarterly!H39/Quarterly!H35)-1)","v":6.9606882781391155E-2},{"$f":"((Quarterly!I39/Quarterly!I35)-1)","v":0.16497723823975718},{"$f":"((Quarterly!J39/Quarterly!J35)-1)","v":0.23058220968853838},{"$f":"((Quarterly!K39/Quarterly!K35)-1)","v":1.3709361535448439E-2},{"$f":"((Quarterly!L39-Quarterly!L35))","v":6.519999999999996},{"$f":"((Quarterly!M39/Quarterly!M35)-1)","v":0.20771567807842106},{"$f":"((Quarterly!N39/Quarterly!N35)-1)","v":0.17968498609747452},{"$f":"((Quarterly!O39/Quarterly!O35)-1)","v":0.3387457574822581},{"$f":"((Quarterly!P39/Quarterly!P35)-1)","v":8.5346333741701086E-2},{"$f":"((Quarterly!Q39/Quarterly!Q35)-1)","v":3.4829106945975745},null,null,null,null,null,"--","--",{"$f":"((Quarterly!Y39/Quarterly!Y35)-1)","v":0.17581758092687982},"--",{"$f":"((Quarterly!AA39/Quarterly!AA35)-1)","v":0.14480570654919456},{"$f":"((Quarterly!AB39/Quarterly!AB35)-1)","v":0.12287028976495473},"--","--","--","--","--","--","--","--","--","--",{"$f":"((Quarterly!AM39/Quarterly!AM35)-1)","v":9.6271401060489925E-2},"--","--","--",{"$f":"Quarterly!AQ39-Quarterly!AQ35","v":3.0000000000000071},"--","--",{"$f":"Quarterly!AT39-Quarterly!AT35","v":3.0333333333333456},"--","--",{"$f":"Quarterly!AW39-Quarterly!AW35","v":-10.566666666666663},{"$f":"Quarterly!AX39-Quarterly!AX35","v":0.89999999999999147},{"$f":"Quarterly!AY39-Quarterly!AY35","v":14.166666666666657},{"$f":"Quarterly!AZ39-Quarterly!AZ35","v":4.8666666666666814},{"$f":"Quarterly!BA39-Quarterly!BA35","v":12.966666666666669},"--","--","--","--",{"$f":"((Quarterly!BF39/Quarterly!BF35)-1)","v":5.0305041207321155E-2},{"$f":"((Quarterly!BG39/Quarterly!BG35)-1)","v":5.7203026666993173E-2},{"$f":"((Quarterly!BH39/Quarterly!BH35)-1)","v":2.5434890443528424E-2},{"$f":"((Quarterly!BI39/Quarterly!BI35)-1)","v":-6.5559440559439519E-3},{"$f":"((Quarterly!BJ39/Quarterly!BJ35)-1)","v":0.1536407828123818},"--",null,"--","--",null,null,null,null,null,{"$f":"((Quarterly!BT39/Quarterly!BT35)-1)","v":0.13613512637504388},"--","--",{"$f":"((Quarterly!BW39/Quarterly!BW35)-1)","v":8.3600427350427386E-2},{"$f":"((Quarterly!BX39/Quarterly!BX35)-1)","v":-1.778515532368985E-2},{"$f":"((Quarterly!BY39/Quarterly!BY35)-1)","v":1.5846994535519077E-2},"--","--",{"$f":"((Quarterly!CB39/Quarterly!CB35)-1)","v":3.6421962670280639E-2},{"$f":"((Quarterly!CC39/Quarterly!CC35)-1)","v":-5.2925729433463076E-2},"--","--",null,"--","--",null,{"$f":"((Quarterly!CJ39/Quarterly!CJ35)-1)","v":2.9733009708737823E-2},{"$f":"((Quarterly!CK39/Quarterly!CK35)-1)","v":9.0394118356032394E-2},{"$f":"((Quarterly!CL39/Quarterly!CL35)-1)","v":7.0780399274047223E-2},{"$f":"((Quarterly!CM39/Quarterly!CM35)-1)","v":8.941877794336861E-3},{"$f":"((Quarterly!CN39/Quarterly!CN35)-1)","v":7.0452194933522838E-2},{"$f":"((Quarterly!CO39/Quarterly!CO35)-1)","v":8.0402010050251382E-2},{"$f":"((Quarterly!CP39/Quarterly!CP35)-1)","v":0.10968674822810298},{"$f":"((Quarterly!CQ39/Quarterly!CQ35)-1)","v":1.1896800170988486E-2},"--","--","--",null,null,null,null,null,{"$f":"((Quarterly!CZ39/Quarterly!CZ35)-1)","v":2.4182379887077499E-2},{"$f":"((Quarterly!DA39/Quarterly!DA35)-1)","v":1.4314928425357643E-2},null,null,null,null,null,"--","--",{"$f":"Quarterly!DI39-Quarterly!DI35","v":0.20000000000000284},"--",{"$f":"(Quarterly!DK39-Quarterly!DK35)*100","v":-103.33333333333327},{"$f":"((Quarterly!DL39/Quarterly!DL35)-1)","v":6.0177135961054562E-2},null,null,null,{"$f":"((Quarterly!DP39/Quarterly!DP35)-1)","v":5.0895833565607118E-2},null,null,null,null,"--","--","--","--","--","--","--","--","--",null,null,null,null,null,{"$f":"((Quarterly!EI39/Quarterly!EI35)-1)","v":9.1901963156239219E-2},{"$f":"((Quarterly!EJ39/Quarterly!EJ35)-1)","v":8.2053402764755923E-2},{"$f":"((Quarterly!EK39/Quarterly!EK35)-1)","v":8.0267480238501276E-2},null,null,null,null,null,{"$f":"((Quarterly!EQ39/Quarterly!EQ35)-1)","v":3.8702928870293141E-2},"--",{"$f":"((Quarterly!ES39/Quarterly!ES35)-1)","v":1.3861386138613652E-2},null,null,null,null,null,{"$f":"(Quarterly!EY39-Quarterly!EY35)*100","v":61.666666666666629},{"$f":"(Quarterly!EZ39-Quarterly!EZ35)*100","v":58.33333333333335},{"$f":"(Quarterly!FA39-Quarterly!FA35)*100","v":39.333333333333357},{"$f":"(Quarterly!FB39-Quarterly!FB35)*100","v":38.000000000000078},"--","--",{"$f":"(Quarterly!FE39-Quarterly!FE35)*100","v":72.000000000000014},{"$f":"(Quarterly!FF39-Quarterly!FF35)*100","v":91.999999999999901},"--",{"$f":"(Quarterly!FH39-Quarterly!FH35)*100","v":78.666666666666615},{"$f":"(Quarterly!FI39-Quarterly!FI35)*100","v":56.666666666666728},null,null,null,null,null,null,"--","--","--","--","--","--","--","--","--",null,null,null,null,null,{"$f":"((Quarterly!GD39/Quarterly!GD35)-1)","v":0},"--","--","--","--","--","--","--","--"]
["66'Q2",{"$f":"((Quarterly!B40/Quarterly!B36)-1)","v":0.10211245970269078},{"$f":"((Quarterly!C40/Quarterly!C36)-1)","v":7.4544252428301983E-2},{"$f":"((Quarterly!D40/Quarterly!D36)-1)","v":6.9421421642661407E-2},{"$f":"((Quarterly!E40/Quarterly!E36)-1)","v":6.3909614154764371E-2},{"$f":"((Quarterly!F40/Quarterly!F36)-1)","v":8.3984036092313197E-2},{"$f":"((Quarterly!G40/Quarterly!G36)-1)","v":7.0342532560675242E-2},{"$f":"((Quarterly!H40/Quarterly!H36)-1)","v":5.8978699746979002E-2},{"$f":"((Quarterly!I40/Quarterly!I36)-1)","v":0.14221311475409837},{"$f":"((Quarterly!J40/Quarterly!J36)-1)","v":0.18788810438470338},{"$f":"((Quarterly!K40/Quarterly!K36)-1)","v":-7.4261275272161753E-2},{"$f":"((Quarterly!L40-Quarterly!L36))","v":17.218000000000004},{"$f":"((Quarterly!M40/Quarterly!M36)-1)","v":0.10709943340709582},{"$f":"((Quarterly!N40/Quarterly!N36)-1)","v":3.6733956680606195E-2},{"$f":"((Quarterly!O40/Quarterly!O36)-1)","v":0.60030187944298596},{"$f":"((Quarterly!P40/Quarterly!P36)-1)","v":9.2629752200874993E-2},{"$f":"((Quarterly!Q40/Quarterly!Q36)-1)","v":1.8171342685370742},null,null,null,null,null,"--","--",{"$f":"((Quarterly!Y40/Quarterly!Y36)-1)","v":0.1685055483559994},"--",{"$f":"((Quarterly!AA40/Quarterly!AA36)-1)","v":0.11091185528829284},{"$f":"((Quarterly!AB40/Quarterly!AB36)-1)","v":8.0255817590935141E-2},"--","--","--","--","--","--","--","--","--","--",{"$f":"((Quarterly!AM40/Quarterly!AM36)-1)","v":9.3804046618931158E-2},"--","--","--",{"$f":"Quarterly!AQ40-Quarterly!AQ36","v":-0.36666666666666003},"--","--",{"$f":"Quarterly!AT40-Quarterly!AT36","v":1.5666666666666629},"--","--",{"$f":"Quarterly!AW40-Quarterly!AW36","v":-6.06666666666667},{"$f":"Quarterly!AX40-Quarterly!AX36","v":-1.5},{"$f":"Quarterly!AY40-Quarterly!AY36","v":12.266666666666666},{"$f":"Quarterly!AZ40-Quarterly!AZ36","v":-2.1000000000000085},{"$f":"Quarterly!BA40-Quarterly!BA36","v":5.9666666666666544},"--","--","--","--",{"$f":"((Quarterly!BF40/Quarterly!BF36)-1)","v":5.9855411439506678E-2},{"$f":"((Quarterly!BG40/Quarterly!BG36)-1)","v":4.4571567672833545E-2},{"$f":"((Quarterly!BH40/Quarterly!BH36)-1)","v":3.2078246298006263E-2},{"$f":"((Quarterly!BI40/Quarterly!BI36)-1)","v":1.4586426762162708E-2},{"$f":"((Quarterly!BJ40/Quarterly!BJ36)-1)","v":0.11999127336193749},"--",null,"--","--",null,null,null,null,null,{"$f":"((Quarterly!BT40/Quarterly!BT36)-1)","v":0.1215405819344475},"--","--",{"$f":"((Quarterly!BW40/Quarterly!BW36)-1)","v":8.5220056930151111E-2},{"$f":"((Quarterly!BX40/Quarterly!BX36)-1)","v":-0.13465031789282478},{"$f":"((Quarterly!BY40/Quarterly!BY36)-1)","v":-0.11939058171745143},"--","--",{"$f":"((Quarterly!CB40/Quarterly!CB36)-1)","v":3.3241088546219766E-2},{"$f":"((Quarterly!CC40/Quarterly!CC36)-1)","v":-3.8989143978782281E-2},"--","--",null,"--","--",null,{"$f":"((Quarterly!CJ40/Quarterly!CJ36)-1)","v":-0.1371862230005837},{"$f":"((Quarterly!CK40/Quarterly!CK36)-1)","v":8.938514394029129E-2},{"$f":"((Quarterly!CL40/Quarterly!CL36)-1)","v":6.4477611940298551E-2},{"$f":"((Quarterly!CM40/Quarterly!CM36)-1)","v":-0.12719606465214328},{"$f":"((Quarterly!CN40/Quarterly!CN36)-1)","v":6.1237062592409908E-2},{"$f":"((Quarterly!CO40/Quarterly!CO36)-1)","v":4.6889952153109871E-2},{"$f":"((Quarterly!CP40/Quarterly!CP36)-1)","v":9.2152392879689904E-2},{"$f":"((Quarterly!CQ40/Quarterly!CQ36)-1)","v":1.1801940572544689E-2},"--","--","--",null,null,null,null,null,{"$f":"((Quarterly!CZ40/Quarterly!CZ36)-1)","v":2.6886842383825549E-2},{"$f":"((Quarterly!DA40/Quarterly!DA36)-1)","v":2.1406727828745975E-2},null,null,null,null,null,"--","--",{"$f":"Quarterly!DI40-Quarterly!DI36","v":0.1666666666666643},"--",{"$f":"(Quarterly!DK40-Quarterly!DK36)*100","v":-83.333333333333258},{"$f":"((Quarterly!DL40/Quarterly!DL36)-1)","v":6.9283504216465452E-2},null,null,null,{"$f":"((Quarterly!DP40/Quarterly!DP36)-1)","v":5.4100230929062354E-2},null,null,null,null,"--","--","--","--","--","--","--","--","--",null,null,null,null,null,{"$f":"((Quarterly!EI40/Quarterly!EI36)-1)","v":6.6003082897965637E-2},{"$f":"((Quarterly!EJ40/Quarterly!EJ36)-1)","v":6.7328334799636291E-2},{"$f":"((Quarterly!EK40/Quarterly!EK36)-1)","v":6.9982582690069295E-2},null,null,null,null,null,{"$f":"((Quarterly!EQ40/Quarterly!EQ36)-1)","v":3.3160621761658238E-2},"--",{"$f":"((Quarterly!ES40/Quarterly!ES36)-1)","v":1.9723865877712132E-2},null,null,null,null,null,{"$f":"(Quarterly!EY40-Quarterly!EY36)*100","v":100.66666666666669},{"$f":"(Quarterly!EZ40-Quarterly!EZ36)*100","v":83.6666666666666},{"$f":"(Quarterly!FA40-Quarterly!FA36)*100","v":55.999999999999957},{"$f":"(Quarterly!FB40-Quarterly!FB36)*100","v":67},"--","--",{"$f":"(Quarterly!FE40-Quarterly!FE36)*100","v":71.333333333333343},{"$f":"(Quarterly!FF40-Quarterly!FF36)*100","v":91.333333333333314},"--",{"$f":"(Quarterly!FH40-Quarterly!FH36)*100","v":74.666666666666529},{"$f":"(Quarterly!FI40-Quarterly!FI36)*100","v":57.333333333333329},null,null,null,null,null,null,"--","--","--","--","--","--","--","--","--",null,null,null,null,null,{"$f":"((Quarterly!GD40/Quarterly!GD36)-1)","v":0},"--","--","--","--","--","--","--","--"]
["66'Q3",{"$f":"((Quarterly!B41/Quarterly!B37)-1)","v":9.4128907041472587E-2},{"$f":"((Quarterly!C41/Quarterly!C37)-1)","v":6.0656709980050572E-2},{"$f":"((Quarterly!D41/Quarterly!D37)-1)","v":5.8788896755695541E-2},{"$f":"((Quarterly!E41/Quarterly!E37)-1)","v":5.7797895972169888E-2},{"$f":"((Quarterly!F41/Quarterly!F37)-1)","v":8.2550335570469979E-2},{"$f":"((Quarterly!G41/Quarterly!G37)-1)","v":6.212549462973449E-2},{"$f":"((Quarterly!H41/Quarterly!H37)-1)","v":5.3548848484786582E-2},{"$f":"((Quarterly!I41/Quarterly!I37)-1)","v":0.11666007570193782},{"$f":"((Quarterly!J41/Quarterly!J37)-1)","v":0.14964022658748899},{"$f":"((Quarterly!K41/Quarterly!K37)-1)","v":-0.10840108401084014},{"$f":"((Quarterly!L41-Quarterly!L37))","v":7.5220000000000056},{"$f":"((Quarterly!M41/Quarterly!M37)-1)","v":0.16441540985790137},{"$f":"((Quarterly!N41/Quarterly!N37)-1)","v":5.8256576523469272E-2},{"$f":"((Quarterly!O41/Quarterly!O37)-1)","v":0.65349492480564897},{"$f":"((Quarterly!P41/Quarterly!P37)-1)","v":8.646712817258484E-2},{"$f":"((Quarterly!Q41/Quarterly!Q37)-1)","v":-0.16631130063965893},null,null,null,null,null,"--","--",{"$f":"((Quarterly!Y41/Quarterly!Y37)-1)","v":0.17537745625461532},"--",{"$f":"((Quarterly!AA41/Quarterly!AA37)-1)","v":8.5988542524859657E-2},{"$f":"((Quarterly!AB41/Quarterly!AB37)-1)","v":4.7768018289014558E-2},"--","--","--","--","--","--","--","--","--","--",{"$f":"((Quarterly!AM41/Quarterly!AM37)-1)","v":8.7945500498002982E-2},"--","--","--",{"$f":"Quarterly!AQ41-Quarterly!AQ37","v":0.10000000000000142},"--","--",{"$f":"Quarterly!AT41-Quarterly!AT37","v":0.46666666666666856},"--","--",{"$f":"Quarterly!AW41-Quarterly!AW37","v":1},{"$f":"Quarterly!AX41-Quarterly!AX37","v":-3.7999999999999901},{"$f":"Quarterly!AY41-Quarterly!AY37","v":8.0999999999999801},{"$f":"Quarterly!AZ41-Quarterly!AZ37","v":-1.4999999999999858},{"$f":"Quarterly!BA41-Quarterly!BA37","v":9.3666666666666671},"--","--","--","--",{"$f":"((Quarterly!BF41/Quarterly!BF37)-1)","v":6.3749211024616059E-2},{"$f":"((Quarterly!BG41/Quarterly!BG37)-1)","v":2.7716000669584018E-2},{"$f":"((Quarterly!BH41/Quarterly!BH37)-1)","v":3.008960695132723E-2},{"$f":"((Quarterly!BI41/Quarterly!BI37)-1)","v":3.5060707372866373E-2},{"$f":"((Quarterly!BJ41/Quarterly!BJ37)-1)","v":8.3864395536708436E-2},"--",null,"--","--",null,null,null,null,null,{"$f":"((Quarterly!BT41/Quarterly!BT37)-1)","v":9.4705172270804772E-2},"--","--",{"$f":"((Quarterly!BW41/Quarterly!BW37)-1)","v":9.283135636926243E-2},{"$f":"((Quarterly!BX41/Quarterly!BX37)-1)","v":-0.2682871933378348},{"$f":"((Quarterly!BY41/Quarterly!BY37)-1)","v":-0.30433611634796665},"--","--",{"$f":"((Quarterly!CB41/Quarterly!CB37)-1)","v":0.15680016578771538},{"$f":"((Quarterly!CC41/Quarterly!CC37)-1)","v":5.8420953745018434E-2},"--","--",null,"--","--",null,{"$f":"((Quarterly!CJ41/Quarterly!CJ37)-1)","v":-0.33371298405466976},{"$f":"((Quarterly!CK41/Quarterly!CK37)-1)","v":8.5201016635859661E-2},{"$f":"((Quarterly!CL41/Quarterly!CL37)-1)","v":-1.6639828234031206E-2},{"$f":"((Quarterly!CM41/Quarterly!CM37)-1)","v":-0.26041313918049447},{"$f":"((Quarterly!CN41/Quarterly!CN37)-1)","v":4.5463812436289386E-2},{"$f":"((Quarterly!CO41/Quarterly!CO37)-1)","v":1.8615240391054E-2},{"$f":"((Quarterly!CP41/Quarterly!CP37)-1)","v":7.5729307460474349E-2},{"$f":"((Quarterly!CQ41/Quarterly!CQ37)-1)","v":1.1504612811690462E-2},"--","--","--",null,null,null,null,null,{"$f":"((Quarterly!CZ41/Quarterly!CZ37)-1)","v":3.2717678100263825E-2},{"$f":"((Quarterly!DA41/Quarterly!DA37)-1)","v":2.9531568228105876E-2},null,null,null,null,null,"--","--",{"$f":"Quarterly!DI41-Quarterly!DI37","v":0.3333333333333286},"--",{"$f":"(Quarterly!DK41-Quarterly!DK37)*100","v":-60.000000000000007},{"$f":"((Quarterly!DL41/Quarterly!DL37)-1)","v":6.6231101726988539E-2},null,null,null,{"$f":"((Quarterly!DP41/Quarterly!DP37)-1)","v":5.3195485651754915E-2},null,null,null,null,"--","--","--","--","--","--","--","--","--",null,null,null,null,null,{"$f":"((Quarterly!EI41/Quarterly!EI37)-1)","v":4.7130621554202223E-2},{"$f":"((Quarterly!EJ41/Quarterly!EJ37)-1)","v":5.4685567766794119E-2},{"$f":"((Quarterly!EK41/Quarterly!EK37)-1)","v":6.0467911091302451E-2},null,null,null,null,null,{"$f":"((Quarterly!EQ41/Quarterly!EQ37)-1)","v":3.6008230452674761E-2},"--",{"$f":"((Quarterly!ES41/Quarterly!ES37)-1)","v":2.8571428571428692E-2},null,null,null,null,null,{"$f":"(Quarterly!EY41-Quarterly!EY37)*100","v":137.6666666666666},{"$f":"(Quarterly!EZ41-Quarterly!EZ37)*100","v":133.66666666666669},{"$f":"(Quarterly!FA41-Quarterly!FA37)*100","v":82.333333333333229},{"$f":"(Quarterly!FB41-Quarterly!FB37)*100","v":97.666666666666742},"--","--",{"$f":"(Quarterly!FE41-Quarterly!FE37)*100","v":117.66666666666663},{"$f":"(Quarterly!FF41-Quarterly!FF37)*100","v":142.66666666666677},"--",{"$f":"(Quarterly!FH41-Quarterly!FH37)*100","v":119.00000000000004},{"$f":"(Quarterly!FI41-Quarterly!FI37)*100","v":89.333333333333357},null,null,null,null,null,null,"--","--","--","--","--","--","--","--","--",null,null,null,null,null,{"$f":"((Quarterly!GD41/Quarterly!GD37)-1)","v":5.7077625570778334E-3},"--","--","--","--","--","--","--","--"]
["66'Q4",{"$f":"((Quarterly!B42/Quarterly!B38)-1)","v":7.9885759225149622E-2},{"$f":"((Quarterly!C42/Quarterly!C38)-1)","v":4.5103058529284867E-2},{"$f":"((Quarterly!D42/Quarterly!D38)-1)","v":3.488537327640473E-2},{"$f":"((Quarterly!E42/Quarterly!E38)-1)","v":3.3102323685283208E-2},{"$f":"((Quarterly!F42/Quarterly!F38)-1)","v":3.8316026724623642E-2},{"$f":"((Quarterly!G42/Quarterly!G38)-1)","v":2.1284713705611358E-2},{"$f":"((Quarterly!H42/Quarterly!H38)-1)","v":3.8842277127144609E-2},{"$f":"((Quarterly!I42/Quarterly!I38)-1)","v":7.30144943271267E-2},{"$f":"((Quarterly!J42/Quarterly!J38)-1)","v":8.9583645112262689E-2},{"$f":"((Quarterly!K42/Quarterly!K38)-1)","v":-0.18473101265822789},{"$f":"((Quarterly!L42-Quarterly!L38))","v":31.479000000000003},{"$f":"((Quarterly!M42/Quarterly!M38)-1)","v":0.12274716266611252},{"$f":"((Quarterly!N42/Quarterly!N38)-1)","v":1.924451040206665E-2},{"$f":"((Quarterly!O42/Quarterly!O38)-1)","v":0.66702796444829904},{"$f":"((Quarterly!P42/Quarterly!P38)-1)","v":8.457144482869805E-2},{"$f":"((Quarterly!Q42/Quarterly!Q38)-1)","v":7.5054727405399868E-2},null,null,null,null,null,"--","--",{"$f":"((Quarterly!Y42/Quarterly!Y38)-1)","v":0.15393723429447781},"--",{"$f":"((Quarterly!AA42/Quarterly!AA38)-1)","v":8.8410602025472684E-3},{"$f":"((Quarterly!AB42/Quarterly!AB38)-1)","v":2.8822466743307684E-2},"--","--","--","--","--","--","--","--","--","--",{"$f":"((Quarterly!AM42/Quarterly!AM38)-1)","v":7.6562826429408259E-2},"--","--","--",{"$f":"Quarterly!AQ42-Quarterly!AQ38","v":-5.8333333333333357},"--","--",{"$f":"Quarterly!AT42-Quarterly!AT38","v":-2.8666666666666742},"--","--",{"$f":"Quarterly!AW42-Quarterly!AW38","v":8.3000000000000043},{"$f":"Quarterly!AX42-Quarterly!AX38","v":-13.20000000000001},{"$f":"Quarterly!AY42-Quarterly!AY38","v":1.1999999999999886},{"$f":"Quarterly!AZ42-Quarterly!AZ38","v":-6.8333333333333357},{"$f":"Quarterly!BA42-Quarterly!BA38","v":-2.8333333333333215},"--","--","--","--",{"$f":"((Quarterly!BF42/Quarterly!BF38)-1)","v":6.240281952938731E-2},{"$f":"((Quarterly!BG42/Quarterly!BG38)-1)","v":1.62525247780545E-2},{"$f":"((Quarterly!BH42/Quarterly!BH38)-1)","v":2.5822069800282454E-2},{"$f":"((Quarterly!BI42/Quarterly!BI38)-1)","v":4.5462570621469078E-2},{"$f":"((Quarterly!BJ42/Quarterly!BJ38)-1)","v":1.2755958375292309E-3},"--",null,"--","--",null,null,null,null,null,{"$f":"((Quarterly!BT42/Quarterly!BT38)-1)","v":6.5846997589427803E-2},"--","--",{"$f":"((Quarterly!BW42/Quarterly!BW38)-1)","v":9.1845313156788455E-2},{"$f":"((Quarterly!BX42/Quarterly!BX38)-1)","v":-0.38835376532399302},{"$f":"((Quarterly!BY42/Quarterly!BY38)-1)","v":-0.43128205128205122},"--","--",{"$f":"((Quarterly!CB42/Quarterly!CB38)-1)","v":0.23546433617896811},{"$f":"((Quarterly!CC42/Quarterly!CC38)-1)","v":0.12628734820525644},"--","--",null,"--","--",null,{"$f":"((Quarterly!CJ42/Quarterly!CJ38)-1)","v":-0.36067415730337082},{"$f":"((Quarterly!CK42/Quarterly!CK38)-1)","v":8.366736295376298E-2},{"$f":"((Quarterly!CL42/Quarterly!CL38)-1)","v":9.7060454797559759E-2},{"$f":"((Quarterly!CM42/Quarterly!CM38)-1)","v":-0.36097400460677853},{"$f":"((Quarterly!CN42/Quarterly!CN38)-1)","v":3.6748800902849599E-2},{"$f":"((Quarterly!CO42/Quarterly!CO38)-1)","v":-7.9842931937172956E-3},{"$f":"((Quarterly!CP42/Quarterly!CP38)-1)","v":6.2950505740579255E-2},{"$f":"((Quarterly!CQ42/Quarterly!CQ38)-1)","v":1.1293385522334054E-2},"--","--","--",null,null,null,null,null,{"$f":"((Quarterly!CZ42/Quarterly!CZ38)-1)","v":3.5695538057742837E-2},{"$f":"((Quarterly!DA42/Quarterly!DA38)-1)","v":3.4447821681864221E-2},null,null,null,null,null,"--","--",{"$f":"Quarterly!DI42-Quarterly!DI38","v":0.56666666666666998},"--",{"$f":"(Quarterly!DK42-Quarterly!DK38)*100","v":-39.999999999999993},{"$f":"((Quarterly!DL42/Quarterly!DL38)-1)","v":6.0105745228688834E-2},null,null,null,{"$f":"((Quarterly!DP42/Quarterly!DP38)-1)","v":4.8576619579006275E-2},null,null,null,null,"--","--","--","--","--","--","--","--","--",null,null,null,null,null,{"$f":"((Quarterly!EI42/Quarterly!EI38)-1)","v":1.9639289869510579E-2},{"$f":"((Quarterly!EJ42/Quarterly!EJ38)-1)","v":3.113141492895255E-2},{"$f":"((Quarterly!EK42/Quarterly!EK38)-1)","v":4.0637098212363831E-2},null,null,null,null,null,{"$f":"((Quarterly!EQ42/Quarterly!EQ38)-1)","v":2.1450459652706755E-2},"--",{"$f":"((Quarterly!ES42/Quarterly!ES38)-1)","v":3.5328753680078373E-2},null,null,null,null,null,{"$f":"(Quarterly!EY42-Quarterly!EY38)*100","v":136.00000000000003},{"$f":"(Quarterly!EZ42-Quarterly!EZ38)*100","v":139.66666666666657},{"$f":"(Quarterly!FA42-Quarterly!FA38)*100","v":76.999999999999957},{"$f":"(Quarterly!FB42-Quarterly!FB38)*100","v":117.00000000000009},"--","--",{"$f":"(Quarterly!FE42-Quarterly!FE38)*100","v":104.3333333333333},{"$f":"(Quarterly!FF42-Quarterly!FF38)*100","v":97.666666666666657},"--",{"$f":"(Quarterly!FH42-Quarterly!FH38)*100","v":70.333333333333314},{"$f":"(Quarterly!FI42-Quarterly!FI38)*100","v":52.999999999999936},null,null,null,null,null,null,"--","--","--","--","--","--","--","--","--",null,null,null,null,null,{"$f":"((Quarterly!GD42/Quarterly!GD38)-1)","v":1.7123287671233056E-2},"--","--","--","--","--","--","--","--"]
["67'Q1",{"$f":"((Quarterly!B43/Quarterly!B39)-1)","v":6.1101579274777773E-2},{"$f":"((Quarterly!C43/Quarterly!C39)-1)","v":2.9280864258497186E-2},{"$f":"((Quarterly!D43/Quarterly!D39)-1)","v":2.8369043313660525E-2},{"$f":"((Quarterly!E43/Quarterly!E39)-1)","v":2.4064923064561539E-2},{"$f":"((Quarterly!F43/Quarterly!F39)-1)","v":-2.7510950587873673E-2},{"$f":"((Quarterly!G43/Quarterly!G39)-1)","v":2.5297619047619291E-2},{"$f":"((Quarterly!H43/Quarterly!H39)-1)","v":2.7851542318446665E-2},{"$f":"((Quarterly!I43/Quarterly!I39)-1)","v":1.3129786901474594E-2},{"$f":"((Quarterly!J43/Quarterly!J39)-1)","v":2.2527606648841125E-3},{"$f":"((Quarterly!K43/Quarterly!K39)-1)","v":-0.22836166924265855},{"$f":"((Quarterly!L43-Quarterly!L39))","v":5.2180000000000035},{"$f":"((Quarterly!M43/Quarterly!M39)-1)","v":0.11162699082672067},{"$f":"((Quarterly!N43/Quarterly!N39)-1)","v":5.723218094964988E-2},{"$f":"((Quarterly!O43/Quarterly!O39)-1)","v":0.33568609374549907},{"$f":"((Quarterly!P43/Quarterly!P39)-1)","v":0.10925534729177344},{"$f":"((Quarterly!Q43/Quarterly!Q39)-1)","v":3.7375799311362528},null,null,null,null,null,"--","--",{"$f":"((Quarterly!Y43/Quarterly!Y39)-1)","v":0.12615281513343635},"--",{"$f":"((Quarterly!AA43/Quarterly!AA39)-1)","v":-5.913190828376258E-2},{"$f":"((Quarterly!AB43/Quarterly!AB39)-1)","v":-3.7308355616030964E-2},"--","--","--","--","--","--","--","--","--","--",{"$f":"((Quarterly!AM43/Quarterly!AM39)-1)","v":4.0819744558955762E-2},"--","--","--",{"$f":"Quarterly!AQ43-Quarterly!AQ39","v":-18.333333333333336},"--","--",{"$f":"Quarterly!AT43-Quarterly!AT39","v":-14.366666666666674},"--","--",{"$f":"Quarterly!AW43-Quarterly!AW39","v":-3.86666666666666},{"$f":"Quarterly!AX43-Quarterly!AX39","v":-20.099999999999987},{"$f":"Quarterly!AY43-Quarterly!AY39","v":-17.93333333333333},{"$f":"Quarterly!AZ43-Quarterly!AZ39","v":-15.033333333333346},{"$f":"Quarterly!BA43-Quarterly!BA39","v":-35.1},"--","--","--","--",{"$f":"((Quarterly!BF43/Quarterly!BF39)-1)","v":5.8493834709059334E-2},{"$f":"((Quarterly!BG43/Quarterly!BG39)-1)","v":1.0701132652352063E-2},{"$f":"((Quarterly!BH43/Quarterly!BH39)-1)","v":2.8990825688073318E-2},{"$f":"((Quarterly!BI43/Quarterly!BI39)-1)","v":4.7294324681038225E-2},{"$f":"((Quarterly!BJ43/Quarterly!BJ39)-1)","v":-6.8161474139248557E-2},"--",null,"--","--",null,null,null,null,null,{"$f":"((Quarterly!BT43/Quarterly!BT39)-1)","v":4.8689285766269519E-2},"--","--",{"$f":"((Quarterly!BW43/Quarterly!BW39)-1)","v":9.7650152000657409E-2},{"$f":"((Quarterly!BX43/Quarterly!BX39)-1)","v":-0.21632061805890879},{"$f":"((Quarterly!BY43/Quarterly!BY39)-1)","v":-0.23157611619150076},"--","--",{"$f":"((Quarterly!CB43/Quarterly!CB39)-1)","v":6.6887778875296178E-2},{"$f":"((Quarterly!CC43/Quarterly!CC39)-1)","v":4.4157727964766691E-2},"--","--",null,"--","--",null,{"$f":"((Quarterly!CJ43/Quarterly!CJ39)-1)","v":-0.25574543311726572},{"$f":"((Quarterly!CK43/Quarterly!CK39)-1)","v":7.881065546590027E-2},{"$f":"((Quarterly!CL43/Quarterly!CL39)-1)","v":0.21299435028248581},{"$f":"((Quarterly!CM43/Quarterly!CM39)-1)","v":-0.16949778434268836},{"$f":"((Quarterly!CN43/Quarterly!CN39)-1)","v":4.1894141338889579E-2},{"$f":"((Quarterly!CO43/Quarterly!CO39)-1)","v":-1.8733850129199259E-2},{"$f":"((Quarterly!CP43/Quarterly!CP39)-1)","v":4.7940648386706419E-2},{"$f":"((Quarterly!CQ43/Quarterly!CQ39)-1)","v":1.1254424605405378E-2},"--","--","--",null,null,null,null,null,{"$f":"((Quarterly!CZ43/Quarterly!CZ39)-1)","v":2.8708133971292238E-2},{"$f":"((Quarterly!DA43/Quarterly!DA39)-1)","v":3.5282258064516236E-2},null,null,null,null,null,"--","--",{"$f":"Quarterly!DI43-Quarterly!DI39","v":0.43333333333333712},"--",{"$f":"(Quarterly!DK43-Quarterly!DK39)*100","v":-3.3333333333333215},{"$f":"((Quarterly!DL43/Quarterly!DL39)-1)","v":4.0902162798325481E-2},null,null,null,{"$f":"((Quarterly!DP43/Quarterly!DP39)-1)","v":4.1635723227736676E-2},null,null,null,null,"--","--","--","--","--","--","--","--","--",null,null,null,null,null,{"$f":"((Quarterly!EI43/Quarterly!EI39)-1)","v":-8.5358379838765819E-3},{"$f":"((Quarterly!EJ43/Quarterly!EJ39)-1)","v":1.3538605410139182E-2},{"$f":"((Quarterly!EK43/Quarterly!EK39)-1)","v":2.8188504712790108E-2},null,null,null,null,null,{"$f":"((Quarterly!EQ43/Quarterly!EQ39)-1)","v":8.0563947633434108E-3},"--",{"$f":"((Quarterly!ES43/Quarterly!ES39)-1)","v":3.90625E-2},null,null,null,null,null,{"$f":"(Quarterly!EY43-Quarterly!EY39)*100","v":69.000000000000128},{"$f":"(Quarterly!EZ43-Quarterly!EZ39)*100","v":26.66666666666675},{"$f":"(Quarterly!FA43-Quarterly!FA39)*100","v":30.666666666666664},{"$f":"(Quarterly!FB43-Quarterly!FB39)*100","v":71.333333333333286},"--","--",{"$f":"(Quarterly!FE43-Quarterly!FE39)*100","v":-9.6666666666667567},{"$f":"(Quarterly!FF43-Quarterly!FF39)*100","v":-32.666666666666622},"--",{"$f":"(Quarterly!FH43-Quarterly!FH39)*100","v":-25.999999999999979},{"$f":"(Quarterly!FI43-Quarterly!FI39)*100","v":-18.666666666666742},null,null,null,null,null,null,"--","--","--","--","--","--","--","--","--",null,null,null,null,null,{"$f":"((Quarterly!GD43/Quarterly!GD39)-1)","v":2.3972602739726234E-2},"--","--","--","--","--","--","--","--"]
["67'Q2",{"$f":"((Quarterly!B44/Quarterly!B40)-1)","v":5.4394891674812484E-2},{"$f":"((Quarterly!C44/Quarterly!C40)-1)","v":2.5982573996284231E-2},{"$f":"((Quarterly!D44/Quarterly!D40)-1)","v":3.4108686229652241E-2},{"$f":"((Quarterly!E44/Quarterly!E40)-1)","v":3.5425182335497407E-2},{"$f":"((Quarterly!F44/Quarterly!F40)-1)","v":5.6427085000800625E-2},{"$f":"((Quarterly!G44/Quarterly!G40)-1)","v":2.3237737871884434E-2},{"$f":"((Quarterly!H44/Quarterly!H40)-1)","v":4.0056056110123306E-2},{"$f":"((Quarterly!I44/Quarterly!I40)-1)","v":-5.6384232918137434E-3},{"$f":"((Quarterly!J44/Quarterly!J40)-1)","v":-1.7412288431505218E-2},{"$f":"((Quarterly!K44/Quarterly!K40)-1)","v":-6.6778664426711543E-2},{"$f":"((Quarterly!L44-Quarterly!L40))","v":-24.860000000000003},{"$f":"((Quarterly!M44/Quarterly!M40)-1)","v":7.6036879012020053E-2},{"$f":"((Quarterly!N44/Quarterly!N40)-1)","v":3.8729044102867594E-3},{"$f":"((Quarterly!O44/Quarterly!O40)-1)","v":0.4037180150302726},{"$f":"((Quarterly!P44/Quarterly!P40)-1)","v":8.440608665527094E-2},{"$f":"((Quarterly!Q44/Quarterly!Q40)-1)","v":2.640583318513249},null,null,null,null,null,"--","--",{"$f":"((Quarterly!Y44/Quarterly!Y40)-1)","v":0.11030747381180683},"--",{"$f":"((Quarterly!AA44/Quarterly!AA40)-1)","v":-6.2780741156653441E-2},{"$f":"((Quarterly!AB44/Quarterly!AB40)-1)","v":-3.5296578130278755E-2},"--","--","--","--","--","--","--","--","--","--",{"$f":"((Quarterly!AM44/Quarterly!AM40)-1)","v":1.5372343735562621E-2},"--","--","--",{"$f":"Quarterly!AQ44-Quarterly!AQ40","v":-15.600000000000009},"--","--",{"$f":"Quarterly!AT44-Quarterly!AT40","v":-14.199999999999996},"--","--",{"$f":"Quarterly!AW44-Quarterly!AW40","v":-13.800000000000004},{"$f":"Quarterly!AX44-Quarterly!AX40","v":-9.0333333333333314},{"$f":"Quarterly!AY44-Quarterly!AY40","v":-25.966666666666654},{"$f":"Quarterly!AZ44-Quarterly!AZ40","v":-11.066666666666663},{"$f":"Quarterly!BA44-Quarterly!BA40","v":-39.233333333333327},"--","--","--","--",{"$f":"((Quarterly!BF44/Quarterly!BF40)-1)","v":5.8882535861169538E-2},{"$f":"((Quarterly!BG44/Quarterly!BG40)-1)","v":2.1043555265549685E-2},{"$f":"((Quarterly!BH44/Quarterly!BH40)-1)","v":3.2373504754962035E-2},{"$f":"((Quarterly!BI44/Quarterly!BI40)-1)","v":3.7060950413223104E-2},{"$f":"((Quarterly!BJ44/Quarterly!BJ40)-1)","v":-7.1813518602688253E-2},"--",null,"--","--",null,null,null,null,null,{"$f":"((Quarterly!BT44/Quarterly!BT40)-1)","v":3.9553951835228141E-2},"--","--",{"$f":"((Quarterly!BW44/Quarterly!BW40)-1)","v":0.10354707235381966},{"$f":"((Quarterly!BX44/Quarterly!BX40)-1)","v":-4.4082917869325611E-2},{"$f":"((Quarterly!BY44/Quarterly!BY40)-1)","v":3.1770997168920845E-2},"--","--",{"$f":"((Quarterly!CB44/Quarterly!CB40)-1)","v":-1.8793301967090281E-2},{"$f":"((Quarterly!CC44/Quarterly!CC40)-1)","v":-1.331542852104961E-2},"--","--",null,"--","--",null,{"$f":"((Quarterly!CJ44/Quarterly!CJ40)-1)","v":2.0297699594045149E-3},{"$f":"((Quarterly!CK44/Quarterly!CK40)-1)","v":7.2807351421891209E-2},{"$f":"((Quarterly!CL44/Quarterly!CL40)-1)","v":0.16376892877173299},{"$f":"((Quarterly!CM44/Quarterly!CM40)-1)","v":-7.2463768115942351E-3},{"$f":"((Quarterly!CN44/Quarterly!CN40)-1)","v":4.7288981771740346E-2},{"$f":"((Quarterly!CO44/Quarterly!CO40)-1)","v":5.6150430921912964E-3},{"$f":"((Quarterly!CP44/Quarterly!CP40)-1)","v":3.9876240016757381E-2},{"$f":"((Quarterly!CQ44/Quarterly!CQ40)-1)","v":1.1140958526817624E-2},"--","--","--",null,null,null,null,null,{"$f":"((Quarterly!CZ44/Quarterly!CZ40)-1)","v":2.5667456963199609E-2},{"$f":"((Quarterly!DA44/Quarterly!DA40)-1)","v":3.2934131736527039E-2},null,null,null,null,null,"--","--",{"$f":"Quarterly!DI44-Quarterly!DI40","v":0.39999999999999858},"--",{"$f":"(Quarterly!DK44-Quarterly!DK40)*100","v":0},{"$f":"((Quarterly!DL44/Quarterly!DL40)-1)","v":1.2236406619385409E-2},null,null,null,{"$f":"((Quarterly!DP44/Quarterly!DP40)-1)","v":2.9170174163559937E-2},null,null,null,null,"--","--","--","--","--","--","--","--","--",null,null,null,null,null,{"$f":"((Quarterly!EI44/Quarterly!EI40)-1)","v":6.9620495295605878E-3},{"$f":"((Quarterly!EJ44/Quarterly!EJ40)-1)","v":2.1001793619721543E-2},{"$f":"((Quarterly!EK44/Quarterly!EK40)-1)","v":2.8597651898224274E-2},null,null,null,null,null,{"$f":"((Quarterly!EQ44/Quarterly!EQ40)-1)","v":2.0060180541625616E-3},"--",{"$f":"((Quarterly!ES44/Quarterly!ES40)-1)","v":3.481624758220514E-2},null,null,null,null,null,{"$f":"(Quarterly!EY44-Quarterly!EY40)*100","v":-0.66666666666668206},{"$f":"(Quarterly!EZ44-Quarterly!EZ40)*100","v":-92.333333333333286},{"$f":"(Quarterly!FA44-Quarterly!FA40)*100","v":26.000000000000068},{"$f":"(Quarterly!FB44-Quarterly!FB40)*100","v":49.000000000000021},"--","--",{"$f":"(Quarterly!FE44-Quarterly!FE40)*100","v":-92.666666666666671},{"$f":"(Quarterly!FF44-Quarterly!FF40)*100","v":-68.666666666666657},"--",{"$f":"(Quarterly!FH44-Quarterly!FH40)*100","v":-13.999999999999879},{"$f":"(Quarterly!FI44-Quarterly!FI40)*100","v":3.9999999999999147},null,null,null,null,null,null,"--","--","--","--","--","--","--","--","--",null,null,null,null,null,{"$f":"((Quarterly!GD44/Quarterly!GD40)-1)","v":2.7397260273972712E-2},"--","--","--","--","--","--","--","--"]
["67'Q3",{"$f":"((Quarterly!B45/Quarterly!B41)-1)","v":5.5818849461134246E-2},{"$f":"((Quarterly!C45/Quarterly!C41)-1)","v":2.7519843959453505E-2},{"$f":"((Quarterly!D45/Quarterly!D41)-1)","v":3.1071094475277672E-2},{"$f":"((Quarterly!E45/Quarterly!E41)-1)","v":2.8964260242491546E-2},{"$f":"((Quarterly!F45/Quarterly!F41)-1)","v":1.4646621202727861E-2},{"$f":"((Quarterly!G45/Quarterly!G41)-1)","v":1.4982170418862184E-2},{"$f":"((Quarterly!H45/Quarterly!H41)-1)","v":3.7424276377254317E-2},{"$f":"((Quarterly!I45/Quarterly!I41)-1)","v":-2.0287362137002662E-2},{"$f":"((Quarterly!J45/Quarterly!J41)-1)","v":-3.9937305278949564E-2},{"$f":"((Quarterly!K45/Quarterly!K41)-1)","v":1.3026487190620939E-2},{"$f":"((Quarterly!L45-Quarterly!L41))","v":-10.561},{"$f":"((Quarterly!M45/Quarterly!M41)-1)","v":3.2268631416939142E-2},{"$f":"((Quarterly!N45/Quarterly!N41)-1)","v":1.7971535204990952E-2},{"$f":"((Quarterly!O45/Quarterly!O41)-1)","v":7.4424620691071031E-2},{"$f":"((Quarterly!P45/Quarterly!P41)-1)","v":6.749531725200697E-2},{"$f":"((Quarterly!Q45/Quarterly!Q41)-1)","v":1.4047314578005112},null,null,null,null,null,"--","--",{"$f":"((Quarterly!Y45/Quarterly!Y41)-1)","v":8.5266326738872689E-2},"--",{"$f":"((Quarterly!AA45/Quarterly!AA41)-1)","v":-3.5620401898343368E-2},{"$f":"((Quarterly!AB45/Quarterly!AB41)-1)","v":-3.7075923617035933E-3},"--","--","--","--","--","--","--","--","--","--",{"$f":"((Quarterly!AM45/Quarterly!AM41)-1)","v":6.7789150764703265E-3},"--","--","--",{"$f":"Quarterly!AQ45-Quarterly!AQ41","v":-6.9666666666666686},"--","--",{"$f":"Quarterly!AT45-Quarterly!AT41","v":-5.7000000000000099},"--","--",{"$f":"Quarterly!AW45-Quarterly!AW41","v":-14.36666666666666},{"$f":"Quarterly!AX45-Quarterly!AX41","v":2.0999999999999943},{"$f":"Quarterly!AY45-Quarterly!AY41","v":-8.7666666666666515},{"$f":"Quarterly!AZ45-Quarterly!AZ41","v":-2.5666666666666771},{"$f":"Quarterly!BA45-Quarterly!BA41","v":-29.200000000000003},"--","--","--","--",{"$f":"((Quarterly!BF45/Quarterly!BF41)-1)","v":5.8049841772151778E-2},{"$f":"((Quarterly!BG45/Quarterly!BG41)-1)","v":2.3664370811615765E-2},{"$f":"((Quarterly!BH45/Quarterly!BH41)-1)","v":3.0182710842381111E-2},{"$f":"((Quarterly!BI45/Quarterly!BI41)-1)","v":3.3618088316545558E-2},{"$f":"((Quarterly!BJ45/Quarterly!BJ41)-1)","v":-4.9266682695460196E-2},"--",null,"--","--",null,null,null,null,null,{"$f":"((Quarterly!BT45/Quarterly!BT41)-1)","v":4.7453601406302948E-2},"--","--",{"$f":"((Quarterly!BW45/Quarterly!BW41)-1)","v":0.10692936919930784},{"$f":"((Quarterly!BX45/Quarterly!BX41)-1)","v":0.28944940018455845},{"$f":"((Quarterly!BY45/Quarterly!BY41)-1)","v":0.42663569492837783},"--","--",{"$f":"((Quarterly!CB45/Quarterly!CB41)-1)","v":-7.5242520176840633E-2},{"$f":"((Quarterly!CC45/Quarterly!CC41)-1)","v":-5.2325535875767715E-2},"--","--",null,"--","--",null,{"$f":"((Quarterly!CJ45/Quarterly!CJ41)-1)","v":0.32478632478632474},{"$f":"((Quarterly!CK45/Quarterly!CK41)-1)","v":7.2390482780646304E-2},{"$f":"((Quarterly!CL45/Quarterly!CL41)-1)","v":0.19814410480349354},{"$f":"((Quarterly!CM45/Quarterly!CM41)-1)","v":0.23168498168498153},{"$f":"((Quarterly!CN45/Quarterly!CN41)-1)","v":4.4484720565293179E-2},{"$f":"((Quarterly!CO45/Quarterly!CO41)-1)","v":2.8530107809623839E-2},{"$f":"((Quarterly!CP45/Quarterly!CP41)-1)","v":4.1893916313720192E-2},{"$f":"((Quarterly!CQ45/Quarterly!CQ41)-1)","v":1.0892655673498286E-2},"--","--","--",null,null,null,null,null,{"$f":"((Quarterly!CZ45/Quarterly!CZ41)-1)","v":2.7082268778742868E-2},{"$f":"((Quarterly!DA45/Quarterly!DA41)-1)","v":3.4619188921859445E-2},null,null,null,null,null,"--","--",{"$f":"Quarterly!DI45-Quarterly!DI41","v":0.43333333333333712},"--",{"$f":"(Quarterly!DK45-Quarterly!DK41)*100","v":3.3333333333332327},{"$f":"((Quarterly!DL45/Quarterly!DL41)-1)","v":-8.4068151247940204E-4},null,null,null,{"$f":"((Quarterly!DP45/Quarterly!DP41)-1)","v":2.4507371337592732E-2},null,null,null,null,"--","--","--","--","--","--","--","--","--",null,null,null,null,null,{"$f":"((Quarterly!EI45/Quarterly!EI41)-1)","v":1.5891691478584269E-2},{"$f":"((Quarterly!EJ45/Quarterly!EJ41)-1)","v":2.2254678007676665E-2},{"$f":"((Quarterly!EK45/Quarterly!EK41)-1)","v":2.6727814197812449E-2},null,null,null,null,null,{"$f":"((Quarterly!EQ45/Quarterly!EQ41)-1)","v":-3.9721946375370631E-3},"--",{"$f":"((Quarterly!ES45/Quarterly!ES41)-1)","v":3.0651340996168397E-2},null,null,null,null,null,{"$f":"(Quarterly!EY45-Quarterly!EY41)*100","v":-37.6666666666666},{"$f":"(Quarterly!EZ45-Quarterly!EZ41)*100","v":-151.66666666666671},{"$f":"(Quarterly!FA45-Quarterly!FA41)*100","v":29.666666666666774},{"$f":"(Quarterly!FB45-Quarterly!FB41)*100","v":46.333333333333385},"--","--",{"$f":"(Quarterly!FE45-Quarterly!FE41)*100","v":-74.333333333333314},{"$f":"(Quarterly!FF45-Quarterly!FF41)*100","v":-38.333333333333371},"--",{"$f":"(Quarterly!FH45-Quarterly!FH41)*100","v":-7.6666666666667105},{"$f":"(Quarterly!FI45-Quarterly!FI41)*100","v":10.666666666666735},null,null,null,null,null,null,"--","--","--","--","--","--","--","--","--",null,null,null,null,null,{"$f":"((Quarterly!GD45/Quarterly!GD41)-1)","v":3.7457434733257688E-2},"--","--","--","--","--","--","--","--"]
["67'Q4",{"$f":"((Quarterly!B46/Quarterly!B42)-1)","v":5.7898052856513171E-2},{"$f":"((Quarterly!C46/Quarterly!C42)-1)","v":2.6986066303246625E-2},{"$f":"((Quarterly!D46/Quarterly!D42)-1)","v":3.7110765324305905E-2},{"$f":"((Quarterly!E46/Quarterly!E42)-1)","v":3.097624496882645E-2},{"$f":"((Quarterly!F46/Quarterly!F42)-1)","v":1.7598263431273686E-2},{"$f":"((Quarterly!G46/Quarterly!G42)-1)","v":2.2415541442067033E-2},{"$f":"((Quarterly!H46/Quarterly!H42)-1)","v":3.6485568339911678E-2},{"$f":"((Quarterly!I46/Quarterly!I42)-1)","v":-5.5651118081512241E-4},{"$f":"((Quarterly!J46/Quarterly!J42)-1)","v":-1.3102811802626735E-2},{"$f":"((Quarterly!K46/Quarterly!K42)-1)","v":0.1974769529354683},{"$f":"((Quarterly!L46-Quarterly!L42))","v":-28.207000000000001},{"$f":"((Quarterly!M46/Quarterly!M42)-1)","v":7.4605761765446754E-2},{"$f":"((Quarterly!N46/Quarterly!N42)-1)","v":1.358957593242982E-2},{"$f":"((Quarterly!O46/Quarterly!O42)-1)","v":0.27078456870394385},{"$f":"((Quarterly!P46/Quarterly!P42)-1)","v":5.7602766576652753E-2},{"$f":"((Quarterly!Q46/Quarterly!Q42)-1)","v":0.88364200523610958},null,null,null,null,null,"--","--",{"$f":"((Quarterly!Y46/Quarterly!Y42)-1)","v":8.27710008965028E-2},"--",{"$f":"((Quarterly!AA46/Quarterly!AA42)-1)","v":3.1498608242794157E-2},{"$f":"((Quarterly!AB46/Quarterly!AB42)-1)","v":-5.0921861281826297E-3},"--","--","--","--","--","--","--","--","--","--",{"$f":"((Quarterly!AM46/Quarterly!AM42)-1)","v":2.393526029423132E-2},"--","--","--",{"$f":"Quarterly!AQ46-Quarterly!AQ42","v":0.19999999999999574},"--","--",{"$f":"Quarterly!AT46-Quarterly!AT42","v":-2.5999999999999943},"--","--",{"$f":"Quarterly!AW46-Quarterly!AW42","v":-7.1000000000000085},{"$f":"Quarterly!AX46-Quarterly!AX42","v":8.3333333333333357},{"$f":"Quarterly!AY46-Quarterly!AY42","v":10.76666666666668},{"$f":"Quarterly!AZ46-Quarterly!AZ42","v":3.2333333333333343},{"$f":"Quarterly!BA46-Quarterly!BA42","v":-12.266666666666666},"--","--","--","--",{"$f":"((Quarterly!BF46/Quarterly!BF42)-1)","v":5.8054444336032685E-2},{"$f":"((Quarterly!BG46/Quarterly!BG42)-1)","v":2.0360526923965727E-2},{"$f":"((Quarterly!BH46/Quarterly!BH42)-1)","v":2.7384464110127738E-2},{"$f":"((Quarterly!BI46/Quarterly!BI42)-1)","v":3.6983872329646283E-2},{"$f":"((Quarterly!BJ46/Quarterly!BJ42)-1)","v":3.1648115864288728E-2},"--",null,"--","--",null,null,null,null,null,{"$f":"((Quarterly!BT46/Quarterly!BT42)-1)","v":6.7146168968631903E-2},"--","--",{"$f":"((Quarterly!BW46/Quarterly!BW42)-1)","v":0.10956689124157837},{"$f":"((Quarterly!BX46/Quarterly!BX42)-1)","v":0.55225483178239076},{"$f":"((Quarterly!BY46/Quarterly!BY42)-1)","v":0.75473399458972024},"--","--",{"$f":"((Quarterly!CB46/Quarterly!CB42)-1)","v":-5.2252708205776321E-2},{"$f":"((Quarterly!CC46/Quarterly!CC42)-1)","v":-2.4328336008152762E-2},"--","--",null,"--","--",null,{"$f":"((Quarterly!CJ46/Quarterly!CJ42)-1)","v":0.37785588752196841},{"$f":"((Quarterly!CK46/Quarterly!CK42)-1)","v":6.756967960406346E-2},{"$f":"((Quarterly!CL46/Quarterly!CL42)-1)","v":0.13801820020222433},{"$f":"((Quarterly!CM46/Quarterly!CM42)-1)","v":0.37538619979402665},{"$f":"((Quarterly!CN46/Quarterly!CN42)-1)","v":3.9947839891144143E-2},{"$f":"((Quarterly!CO46/Quarterly!CO42)-1)","v":4.1958041958042092E-2},{"$f":"((Quarterly!CP46/Quarterly!CP42)-1)","v":4.7344537931157005E-2},{"$f":"((Quarterly!CQ46/Quarterly!CQ42)-1)","v":1.0620135533801367E-2},"--","--","--",null,null,null,null,null,{"$f":"((Quarterly!CZ46/Quarterly!CZ42)-1)","v":2.9903699949315854E-2},{"$f":"((Quarterly!DA46/Quarterly!DA42)-1)","v":3.5259549461312822E-2},null,null,null,null,null,"--","--",{"$f":"Quarterly!DI46-Quarterly!DI42","v":0.39999999999999858},"--",{"$f":"(Quarterly!DK46-Quarterly!DK42)*100","v":19.999999999999929},{"$f":"((Quarterly!DL46/Quarterly!DL42)-1)","v":-2.3176045239639009E-3},null,null,null,{"$f":"((Quarterly!DP46/Quarterly!DP42)-1)","v":2.4375490201104189E-2},null,null,null,null,"--","--","--","--","--","--","--","--","--",null,null,null,null,null,{"$f":"((Quarterly!EI46/Quarterly!EI42)-1)","v":3.9306119179447707E-2},{"$f":"((Quarterly!EJ46/Quarterly!EJ42)-1)","v":3.0761933681139109E-2},{"$f":"((Quarterly!EK46/Quarterly!EK42)-1)","v":2.8064163463917824E-2},null,null,null,null,null,{"$f":"((Quarterly!EQ46/Quarterly!EQ42)-1)","v":5.0000000000001155E-3},"--",{"$f":"((Quarterly!ES46/Quarterly!ES42)-1)","v":3.0331753554502683E-2},null,null,null,null,null,{"$f":"(Quarterly!EY46-Quarterly!EY42)*100","v":-27.333333333333343},{"$f":"(Quarterly!EZ46-Quarterly!EZ42)*100","v":-138.99999999999997},{"$f":"(Quarterly!FA46-Quarterly!FA42)*100","v":64.333333333333442},{"$f":"(Quarterly!FB46-Quarterly!FB42)*100","v":58.6666666666666},"--","--",{"$f":"(Quarterly!FE46-Quarterly!FE42)*100","v":-45.6666666666667},{"$f":"(Quarterly!FF46-Quarterly!FF42)*100","v":12.333333333333307},"--",{"$f":"(Quarterly!FH46-Quarterly!FH42)*100","v":49.000000000000021},{"$f":"(Quarterly!FI46-Quarterly!FI42)*100","v":64.000000000000057},null,null,null,null,null,null,"--","--","--","--","--","--","--","--","--",null,null,null,null,null,{"$f":"((Quarterly!GD46/Quarterly!GD42)-1)","v":3.3670033670033517E-2},"--","--","--","--","--","--","--","--"]
["68'Q1",{"$f":"((Quarterly!B47/Quarterly!B43)-1)","v":7.693316911846404E-2},{"$f":"((Quarterly!C47/Quarterly!C43)-1)","v":3.8308863550497785E-2},{"$f":"((Quarterly!D47/Quarterly!D43)-1)","v":4.7310451646212393E-2},{"$f":"((Quarterly!E47/Quarterly!E43)-1)","v":4.9352687328364064E-2},{"$f":"((Quarterly!F47/Quarterly!F43)-1)","v":0.10169893322797319},{"$f":"((Quarterly!G47/Quarterly!G43)-1)","v":3.095395170866877E-2},{"$f":"((Quarterly!H47/Quarterly!H43)-1)","v":5.4610204002081497E-2},{"$f":"((Quarterly!I47/Quarterly!I43)-1)","v":4.5872975057855481E-2},{"$f":"((Quarterly!J47/Quarterly!J43)-1)","v":4.7851423201622056E-2},{"$f":"((Quarterly!K47/Quarterly!K43)-1)","v":0.24386579869804725},{"$f":"((Quarterly!L47-Quarterly!L43))","v":-27.132999999999999},{"$f":"((Quarterly!M47/Quarterly!M43)-1)","v":0.12043032527528141},{"$f":"((Quarterly!N47/Quarterly!N43)-1)","v":2.3703047062092253E-2},{"$f":"((Quarterly!O47/Quarterly!O43)-1)","v":0.43580009921704765},{"$f":"((Quarterly!P47/Quarterly!P43)-1)","v":3.3141261769599639E-2},{"$f":"((Quarterly!Q47/Quarterly!Q43)-1)","v":-0.12033431968021602},null,null,null,null,null,"--","--",{"$f":"((Quarterly!Y47/Quarterly!Y43)-1)","v":8.9171145541568686E-2},"--",{"$f":"((Quarterly!AA47/Quarterly!AA43)-1)","v":6.0878374575539906E-2},{"$f":"((Quarterly!AB47/Quarterly!AB43)-1)","v":-2.383104610074771E-2},"--","--","--","--","--","--","--","--","--","--",{"$f":"((Quarterly!AM47/Quarterly!AM43)-1)","v":4.4305231490858077E-2},"--","--","--",{"$f":"Quarterly!AQ47-Quarterly!AQ43","v":7.7999999999999901},"--","--",{"$f":"Quarterly!AT47-Quarterly!AT43","v":3.7999999999999972},"--","--",{"$f":"Quarterly!AW47-Quarterly!AW43","v":6.6999999999999957},{"$f":"Quarterly!AX47-Quarterly!AX43","v":11.93333333333333},{"$f":"Quarterly!AY47-Quarterly!AY43","v":13.899999999999999},{"$f":"Quarterly!AZ47-Quarterly!AZ43","v":6.6666666666666643},{"$f":"Quarterly!BA47-Quarterly!BA43","v":7.4666666666666686},"--","--","--","--",{"$f":"((Quarterly!BF47/Quarterly!BF43)-1)","v":7.2109367478578879E-2},{"$f":"((Quarterly!BG47/Quarterly!BG43)-1)","v":3.4398991635155474E-2},{"$f":"((Quarterly!BH47/Quarterly!BH43)-1)","v":3.341006354558429E-2},{"$f":"((Quarterly!BI47/Quarterly!BI43)-1)","v":3.6420919974795352E-2},{"$f":"((Quarterly!BJ47/Quarterly!BJ43)-1)","v":4.5945502682692707E-2},"--",null,"--","--",null,null,null,null,null,{"$f":"((Quarterly!BT47/Quarterly!BT43)-1)","v":8.3342239420609143E-2},"--","--",{"$f":"((Quarterly!BW47/Quarterly!BW43)-1)","v":0.11130656087428425},{"$f":"((Quarterly!BX47/Quarterly!BX43)-1)","v":0.34504004929143561},{"$f":"((Quarterly!BY47/Quarterly!BY43)-1)","v":0.36191809590479518},"--","--",{"$f":"((Quarterly!CB47/Quarterly!CB43)-1)","v":0.11472145587889249},{"$f":"((Quarterly!CC47/Quarterly!CC43)-1)","v":7.4476904323849125E-2},"--","--",null,"--","--",null,{"$f":"((Quarterly!CJ47/Quarterly!CJ43)-1)","v":0.20902612826603328},{"$f":"((Quarterly!CK47/Quarterly!CK43)-1)","v":7.9866803278688447E-2},{"$f":"((Quarterly!CL47/Quarterly!CL43)-1)","v":2.9343269678621553E-2},{"$f":"((Quarterly!CM47/Quarterly!CM43)-1)","v":0.22009782125389066},{"$f":"((Quarterly!CN47/Quarterly!CN43)-1)","v":4.2187115947534215E-2},{"$f":"((Quarterly!CO47/Quarterly!CO43)-1)","v":4.1474654377880338E-2},{"$f":"((Quarterly!CP47/Quarterly!CP43)-1)","v":5.2381535041104099E-2},{"$f":"((Quarterly!CQ47/Quarterly!CQ43)-1)","v":1.0307159761818507E-2},"--","--","--",null,null,null,null,null,{"$f":"((Quarterly!CZ47/Quarterly!CZ43)-1)","v":3.7411526794742134E-2},{"$f":"((Quarterly!DA47/Quarterly!DA43)-1)","v":4.1869522882181043E-2},null,null,null,null,null,{"$f":"((Quarterly!DG47/Quarterly!DG43)-1)","v":1.0520163646990044E-2},{"$f":"((Quarterly!DH47-Quarterly!DH43)*60)","v":-19.999999999999716},{"$f":"Quarterly!DI47-Quarterly!DI43","v":0.1666666666666643},"--",{"$f":"(Quarterly!DK47-Quarterly!DK43)*100","v":-10.000000000000053},{"$f":"((Quarterly!DL47/Quarterly!DL43)-1)","v":3.8924209004467247E-3},null,null,null,{"$f":"((Quarterly!DP47/Quarterly!DP43)-1)","v":2.5208158276678549E-2},null,null,null,null,"--","--","--","--","--","--","--","--","--",null,null,null,null,null,{"$f":"((Quarterly!EI47/Quarterly!EI43)-1)","v":5.8808301698817678E-2},{"$f":"((Quarterly!EJ47/Quarterly!EJ43)-1)","v":4.7741629579215239E-2},{"$f":"((Quarterly!EK47/Quarterly!EK43)-1)","v":4.2623054207443056E-2},null,null,null,null,null,{"$f":"((Quarterly!EQ47/Quarterly!EQ43)-1)","v":1.7982017982018039E-2},"--",{"$f":"((Quarterly!ES47/Quarterly!ES43)-1)","v":3.1015037593984829E-2},null,null,null,null,null,{"$f":"(Quarterly!EY47-Quarterly!EY43)*100","v":19.333333333333247},{"$f":"(Quarterly!EZ47-Quarterly!EZ43)*100","v":-3.6666666666667957},{"$f":"(Quarterly!FA47-Quarterly!FA43)*100","v":100.6666666666666},{"$f":"(Quarterly!FB47-Quarterly!FB43)*100","v":95.000000000000114},"--","--",{"$f":"(Quarterly!FE47-Quarterly!FE43)*100","v":53.666666666666707},{"$f":"(Quarterly!FF47-Quarterly!FF43)*100","v":87.000000000000014},"--",{"$f":"(Quarterly!FH47-Quarterly!FH43)*100","v":96.999999999999972},{"$f":"(Quarterly!FI47-Quarterly!FI43)*100","v":102.66666666666664},null,null,null,null,null,null,"--","--","--","--","--","--","--","--","--",null,null,null,null,null,{"$f":"((Quarterly!GD47/Quarterly!GD43)-1)","v":2.6755852842809347E-2},"--","--","--","--","--","--","--","--"]
["68'Q2",{"$f":"((Quarterly!B48/Quarterly!B44)-1)","v":0.10015651107210077},{"$f":"((Quarterly!C48/Quarterly!C44)-1)","v":5.4917388974107695E-2},{"$f":"((Quarterly!D48/Quarterly!D44)-1)","v":4.6640162789046258E-2},{"$f":"((Quarterly!E48/Quarterly!E44)-1)","v":5.1048842789689353E-2},{"$f":"((Quarterly!F48/Quarterly!F44)-1)","v":7.8793848018789303E-2},{"$f":"((Quarterly!G48/Quarterly!G44)-1)","v":3.5911674568457563E-2},{"$f":"((Quarterly!H48/Quarterly!H44)-1)","v":5.6500580107937681E-2},{"$f":"((Quarterly!I48/Quarterly!I44)-1)","v":3.5465745656992675E-2},{"$f":"((Quarterly!J48/Quarterly!J44)-1)","v":3.0039964322188251E-2},{"$f":"((Quarterly!K48/Quarterly!K44)-1)","v":0.14671467146714678},{"$f":"((Quarterly!L48-Quarterly!L44))","v":27.614000000000001},{"$f":"((Quarterly!M48/Quarterly!M44)-1)","v":0.14662475249545825},{"$f":"((Quarterly!N48/Quarterly!N44)-1)","v":5.3357362167934852E-2},{"$f":"((Quarterly!O48/Quarterly!O44)-1)","v":0.44949713889370568},{"$f":"((Quarterly!P48/Quarterly!P44)-1)","v":4.2683684624787777E-2},{"$f":"((Quarterly!Q48/Quarterly!Q44)-1)","v":-9.0469444580137726E-2},null,null,null,null,null,"--","--",{"$f":"((Quarterly!Y48/Quarterly!Y44)-1)","v":8.8980736116695436E-2},"--",{"$f":"((Quarterly!AA48/Quarterly!AA44)-1)","v":8.7617478563672524E-2},{"$f":"((Quarterly!AB48/Quarterly!AB44)-1)","v":4.4225798382389714E-2},"--","--","--","--","--","--","--","--","--","--",{"$f":"((Quarterly!AM48/Quarterly!AM44)-1)","v":6.271461867751249E-2},"--","--","--",{"$f":"Quarterly!AQ48-Quarterly!AQ44","v":10.900000000000006},"--","--",{"$f":"Quarterly!AT48-Quarterly!AT44","v":8.6999999999999957},"--","--",{"$f":"Quarterly!AW48-Quarterly!AW44","v":15.06666666666667},{"$f":"Quarterly!AX48-Quarterly!AX44","v":9.7333333333333343},{"$f":"Quarterly!AY48-Quarterly!AY44","v":13.433333333333323},{"$f":"Quarterly!AZ48-Quarterly!AZ44","v":10.666666666666671},{"$f":"Quarterly!BA48-Quarterly!BA44","v":13.500000000000007},"--","--","--","--",{"$f":"((Quarterly!BF48/Quarterly!BF44)-1)","v":7.2091701402046349E-2},{"$f":"((Quarterly!BG48/Quarterly!BG44)-1)","v":4.0032866207148299E-2},{"$f":"((Quarterly!BH48/Quarterly!BH44)-1)","v":2.9657208884324104E-2},{"$f":"((Quarterly!BI48/Quarterly!BI44)-1)","v":3.0797327024447041E-2},{"$f":"((Quarterly!BJ48/Quarterly!BJ44)-1)","v":6.5943803194590256E-2},"--",null,"--","--",null,null,null,null,null,{"$f":"((Quarterly!BT48/Quarterly!BT44)-1)","v":9.5963470144500462E-2},"--","--",{"$f":"((Quarterly!BW48/Quarterly!BW44)-1)","v":0.10630050828244419},{"$f":"((Quarterly!BX48/Quarterly!BX44)-1)","v":0.19873730441943471},{"$f":"((Quarterly!BY48/Quarterly!BY44)-1)","v":0.18384146341463414},"--","--",{"$f":"((Quarterly!CB48/Quarterly!CB44)-1)","v":0.20111425552126572},{"$f":"((Quarterly!CC48/Quarterly!CC44)-1)","v":0.12115184320897932},"--","--",null,"--","--",null,{"$f":"((Quarterly!CJ48/Quarterly!CJ44)-1)","v":-6.6171505739365366E-2},{"$f":"((Quarterly!CK48/Quarterly!CK44)-1)","v":9.8783578307146458E-2},{"$f":"((Quarterly!CL48/Quarterly!CL44)-1)","v":0.1040963855421686},{"$f":"((Quarterly!CM48/Quarterly!CM44)-1)","v":4.3795620437956151E-2},{"$f":"((Quarterly!CN48/Quarterly!CN44)-1)","v":5.1395186412868776E-2},{"$f":"((Quarterly!CO48/Quarterly!CO44)-1)","v":3.0645370731073873E-2},{"$f":"((Quarterly!CP48/Quarterly!CP44)-1)","v":6.8643284568351115E-2},{"$f":"((Quarterly!CQ48/Quarterly!CQ44)-1)","v":1.008055707722666E-2},"--","--","--",null,null,null,null,null,{"$f":"((Quarterly!CZ48/Quarterly!CZ44)-1)","v":4.1206030150753969E-2},{"$f":"((Quarterly!DA48/Quarterly!DA44)-1)","v":4.4444444444444509E-2},null,null,null,null,null,{"$f":"((Quarterly!DG48/Quarterly!DG44)-1)","v":2.7090694935217874E-2},{"$f":"((Quarterly!DH48-Quarterly!DH44)*60)","v":-5.9999999999996589},{"$f":"Quarterly!DI48-Quarterly!DI44","v":0.36666666666667425},"--",{"$f":"(Quarterly!DK48-Quarterly!DK44)*100","v":-26.666666666666707},{"$f":"((Quarterly!DL48/Quarterly!DL44)-1)","v":1.9188371137102367E-2},null,null,null,{"$f":"((Quarterly!DP48/Quarterly!DP44)-1)","v":3.1884411388160672E-2},null,null,null,null,"--","--","--","--","--","--","--","--","--",null,null,null,null,null,{"$f":"((Quarterly!EI48/Quarterly!EI44)-1)","v":6.6756060176166976E-2},{"$f":"((Quarterly!EJ48/Quarterly!EJ44)-1)","v":5.6837665330808695E-2},{"$f":"((Quarterly!EK48/Quarterly!EK44)-1)","v":5.4086822923808064E-2},null,null,null,null,null,{"$f":"((Quarterly!EQ48/Quarterly!EQ44)-1)","v":2.6026026026026106E-2},"--",{"$f":"((Quarterly!ES48/Quarterly!ES44)-1)","v":3.5514018691588545E-2},null,null,null,null,null,{"$f":"(Quarterly!EY48-Quarterly!EY44)*100","v":89.999999999999943},{"$f":"(Quarterly!EZ48-Quarterly!EZ44)*100","v":199.00000000000003},{"$f":"(Quarterly!FA48-Quarterly!FA44)*100","v":98.999999999999929},{"$f":"(Quarterly!FB48-Quarterly!FB44)*100","v":104.33333333333339},"--","--",{"$f":"(Quarterly!FE48-Quarterly!FE44)*100","v":185.99999999999994},{"$f":"(Quarterly!FF48-Quarterly!FF44)*100","v":169.66666666666654},"--",{"$f":"(Quarterly!FH48-Quarterly!FH44)*100","v":110.33333333333326},{"$f":"(Quarterly!FI48-Quarterly!FI44)*100","v":92.333333333333371},null,null,null,null,null,null,"--","--","--","--","--","--","--","--","--",null,null,null,null,null,{"$f":"((Quarterly!GD48/Quarterly!GD44)-1)","v":2.3333333333333206E-2},"--","--","--","--","--","--","--","--"]
["68'Q3",{"$f":"((Quarterly!B49/Quarterly!B45)-1)","v":9.8928704128943057E-2},{"$f":"((Quarterly!C49/Quarterly!C45)-1)","v":5.3421735888053767E-2},{"$f":"((Quarterly!D49/Quarterly!D45)-1)","v":5.5652199111073442E-2},{"$f":"((Quarterly!E49/Quarterly!E45)-1)","v":6.5347144672494029E-2},{"$f":"((Quarterly!F49/Quarterly!F45)-1)","v":0.13648514473382733},{"$f":"((Quarterly!G49/Quarterly!G45)-1)","v":5.3407094727458526E-2},{"$f":"((Quarterly!H49/Quarterly!H45)-1)","v":6.5576610611770336E-2},{"$f":"((Quarterly!I49/Quarterly!I45)-1)","v":5.1536276788019642E-2},{"$f":"((Quarterly!J49/Quarterly!J45)-1)","v":5.2345129770639653E-2},{"$f":"((Quarterly!K49/Quarterly!K45)-1)","v":0.11187312473210453},{"$f":"((Quarterly!L49-Quarterly!L45))","v":-5.0900000000000034},{"$f":"((Quarterly!M49/Quarterly!M45)-1)","v":0.19978441436767436},{"$f":"((Quarterly!N49/Quarterly!N45)-1)","v":0.14314931222938898},{"$f":"((Quarterly!O49/Quarterly!O45)-1)","v":0.35800275166246309},{"$f":"((Quarterly!P49/Quarterly!P45)-1)","v":3.4367733007258039E-2},{"$f":"((Quarterly!Q49/Quarterly!Q45)-1)","v":-0.46349375166179207},null,null,null,null,null,"--","--",{"$f":"((Quarterly!Y49/Quarterly!Y45)-1)","v":9.2178024168084294E-2},"--",{"$f":"((Quarterly!AA49/Quarterly!AA45)-1)","v":6.9774249021257839E-2},{"$f":"((Quarterly!AB49/Quarterly!AB45)-1)","v":3.7016301663099105E-2},"--","--","--","--","--","--","--","--","--","--",{"$f":"((Quarterly!AM49/Quarterly!AM45)-1)","v":6.3645594415655316E-2},"--","--","--",{"$f":"Quarterly!AQ49-Quarterly!AQ45","v":0.66666666666667851},"--","--",{"$f":"Quarterly!AT49-Quarterly!AT45","v":-3.2999999999999901},"--","--",{"$f":"Quarterly!AW49-Quarterly!AW45","v":8.6000000000000014},{"$f":"Quarterly!AX49-Quarterly!AX45","v":-2.4666666666666686},{"$f":"Quarterly!AY49-Quarterly!AY45","v":2.3999999999999915},{"$f":"Quarterly!AZ49-Quarterly!AZ45","v":0.80000000000000426},{"$f":"Quarterly!BA49-Quarterly!BA45","v":6.6333333333333329},"--","--","--","--",{"$f":"((Quarterly!BF49/Quarterly!BF45)-1)","v":7.505374334049919E-2},{"$f":"((Quarterly!BG49/Quarterly!BG45)-1)","v":3.5460186847907416E-2},{"$f":"((Quarterly!BH49/Quarterly!BH45)-1)","v":2.8962561371523643E-2},{"$f":"((Quarterly!BI49/Quarterly!BI45)-1)","v":3.8240131578947345E-2},{"$f":"((Quarterly!BJ49/Quarterly!BJ45)-1)","v":5.4003724394785735E-2},"--",null,"--","--",null,null,null,null,null,{"$f":"((Quarterly!BT49/Quarterly!BT45)-1)","v":0.10469913898117555},"--","--",{"$f":"((Quarterly!BW49/Quarterly!BW45)-1)","v":9.9761963974846379E-2},{"$f":"((Quarterly!BX49/Quarterly!BX45)-1)","v":8.8501908396946716E-2},{"$f":"((Quarterly!BY49/Quarterly!BY45)-1)","v":0.13025780189959302},"--","--",{"$f":"((Quarterly!CB49/Quarterly!CB45)-1)","v":0.23079281281520769},{"$f":"((Quarterly!CC49/Quarterly!CC45)-1)","v":0.14347752318850038},"--","--",null,"--","--",null,{"$f":"((Quarterly!CJ49/Quarterly!CJ45)-1)","v":-3.1612903225806455E-2},{"$f":"((Quarterly!CK49/Quarterly!CK45)-1)","v":0.10334044770933626},{"$f":"((Quarterly!CL49/Quarterly!CL45)-1)","v":-7.2437357630979471E-2},{"$f":"((Quarterly!CM49/Quarterly!CM45)-1)","v":1.6728624535315983E-2},{"$f":"((Quarterly!CN49/Quarterly!CN45)-1)","v":4.4083730533529542E-2},{"$f":"((Quarterly!CO49/Quarterly!CO45)-1)","v":1.8023776044995721E-2},{"$f":"((Quarterly!CP49/Quarterly!CP45)-1)","v":7.8927426889054297E-2},{"$f":"((Quarterly!CQ49/Quarterly!CQ45)-1)","v":9.9926935864436128E-3},"--","--","--",null,null,null,null,null,{"$f":"((Quarterly!CZ49/Quarterly!CZ45)-1)","v":4.4776119402984982E-2},{"$f":"((Quarterly!DA49/Quarterly!DA45)-1)","v":4.7801147227533702E-2},null,null,null,null,null,{"$f":"((Quarterly!DG49/Quarterly!DG45)-1)","v":2.985948477751732E-2},{"$f":"((Quarterly!DH49-Quarterly!DH45)*60)","v":-5.9999999999996589},{"$f":"Quarterly!DI49-Quarterly!DI45","v":-3.3333333333331439E-2},"--",{"$f":"(Quarterly!DK49-Quarterly!DK45)*100","v":-26.666666666666615},{"$f":"((Quarterly!DL49/Quarterly!DL45)-1)","v":2.4082418712487952E-2},null,null,null,{"$f":"((Quarterly!DP49/Quarterly!DP45)-1)","v":3.4042574662071834E-2},null,null,null,null,{"$f":"Quarterly!DU49-Quarterly!DU45","v":{"$error":"#DIV/0!"}},"--","--","--","--","--","--","--","--",null,null,null,null,null,{"$f":"((Quarterly!EI49/Quarterly!EI45)-1)","v":6.2505375395556007E-2},{"$f":"((Quarterly!EJ49/Quarterly!EJ45)-1)","v":6.0228521651153777E-2},{"$f":"((Quarterly!EK49/Quarterly!EK45)-1)","v":5.9440544114543359E-2},null,null,null,null,null,{"$f":"((Quarterly!EQ49/Quarterly!EQ45)-1)","v":2.5922233300099684E-2},"--",{"$f":"((Quarterly!ES49/Quarterly!ES45)-1)","v":3.7174721189591198E-2},null,null,null,null,null,{"$f":"(Quarterly!EY49-Quarterly!EY45)*100","v":98.333333333333343},{"$f":"(Quarterly!EZ49-Quarterly!EZ45)*100","v":205.00000000000011},{"$f":"(Quarterly!FA49-Quarterly!FA45)*100","v":46},{"$f":"(Quarterly!FB49-Quarterly!FB45)*100","v":53.333333333333229},"--","--",{"$f":"(Quarterly!FE49-Quarterly!FE45)*100","v":89.666666666666657},{"$f":"(Quarterly!FF49-Quarterly!FF45)*100","v":38.333333333333371},"--",{"$f":"(Quarterly!FH49-Quarterly!FH45)*100","v":21.333333333333293},{"$f":"(Quarterly!FI49-Quarterly!FI45)*100","v":21.333333333333293},null,null,null,null,null,null,"--","--","--","--","--","--","--","--","--",null,null,null,null,null,{"$f":"((Quarterly!GD49/Quarterly!GD45)-1)","v":7.6586433260392717E-3},"--","--","--","--","--","--","--","--"]
["68'Q4",{"$f":"((Quarterly!B50/Quarterly!B46)-1)","v":9.8423801603485517E-2},{"$f":"((Quarterly!C50/Quarterly!C46)-1)","v":4.9661083609979118E-2},{"$f":"((Quarterly!D50/Quarterly!D46)-1)","v":5.2705651899367378E-2},{"$f":"((Quarterly!E50/Quarterly!E46)-1)","v":6.3727178780571769E-2},{"$f":"((Quarterly!F50/Quarterly!F46)-1)","v":0.12692366295901292},{"$f":"((Quarterly!G50/Quarterly!G46)-1)","v":4.8885524873414354E-2},{"$f":"((Quarterly!H50/Quarterly!H46)-1)","v":6.60861737642231E-2},{"$f":"((Quarterly!I50/Quarterly!I46)-1)","v":5.887117185522639E-2},{"$f":"((Quarterly!J50/Quarterly!J46)-1)","v":5.7827902670123832E-2},{"$f":"((Quarterly!K50/Quarterly!K46)-1)","v":6.4424635332252844E-2},{"$f":"((Quarterly!L50-Quarterly!L46))","v":-9.0420000000000016},{"$f":"((Quarterly!M50/Quarterly!M46)-1)","v":0.1300771774027627},{"$f":"((Quarterly!N50/Quarterly!N46)-1)","v":9.7442888970172392E-2},{"$f":"((Quarterly!O50/Quarterly!O46)-1)","v":0.21376675648940924},{"$f":"((Quarterly!P50/Quarterly!P46)-1)","v":2.7252339925659896E-2},{"$f":"((Quarterly!Q50/Quarterly!Q46)-1)","v":-0.52146607639246367},null,null,null,null,null,"--","--",{"$f":"((Quarterly!Y50/Quarterly!Y46)-1)","v":0.11241999388635771},"--",{"$f":"((Quarterly!AA50/Quarterly!AA46)-1)","v":4.4499381953028383E-2},{"$f":"((Quarterly!AB50/Quarterly!AB46)-1)","v":1.8611815293777756E-2},"--","--","--","--","--","--","--","--","--","--",{"$f":"((Quarterly!AM50/Quarterly!AM46)-1)","v":5.1655704088533927E-2},"--","--","--",{"$f":"Quarterly!AQ50-Quarterly!AQ46","v":2.0333333333333314},"--","--",{"$f":"Quarterly!AT50-Quarterly!AT46","v":2.1333333333333329},"--","--",{"$f":"Quarterly!AW50-Quarterly!AW46","v":-4.0333333333333314},{"$f":"Quarterly!AX50-Quarterly!AX46","v":1.4333333333333371},{"$f":"Quarterly!AY50-Quarterly!AY46","v":-8.3333333333333286},{"$f":"Quarterly!AZ50-Quarterly!AZ46","v":2.1666666666666643},{"$f":"Quarterly!BA50-Quarterly!BA46","v":6.7333333333333272},"--","--","--","--",{"$f":"((Quarterly!BF50/Quarterly!BF46)-1)","v":8.1796385097749891E-2},{"$f":"((Quarterly!BG50/Quarterly!BG46)-1)","v":2.9965346198273846E-2},{"$f":"((Quarterly!BH50/Quarterly!BH46)-1)","v":3.3928315069148507E-2},{"$f":"((Quarterly!BI50/Quarterly!BI46)-1)","v":5.0280921749043195E-2},{"$f":"((Quarterly!BJ50/Quarterly!BJ46)-1)","v":2.2422981931626174E-2},"--",null,"--","--",null,null,null,null,null,{"$f":"((Quarterly!BT50/Quarterly!BT46)-1)","v":0.12212005115250379},"--","--",{"$f":"((Quarterly!BW50/Quarterly!BW46)-1)","v":0.10034349953159172},{"$f":"((Quarterly!BX50/Quarterly!BX46)-1)","v":9.453539312889081E-2},{"$f":"((Quarterly!BY50/Quarterly!BY46)-1)","v":9.0955806783144855E-2},"--","--",{"$f":"((Quarterly!CB50/Quarterly!CB46)-1)","v":0.16487577036462819},{"$f":"((Quarterly!CC50/Quarterly!CC46)-1)","v":8.1705285761457969E-2},"--","--",null,"--","--",null,{"$f":"((Quarterly!CJ50/Quarterly!CJ46)-1)","v":-5.4846938775510168E-2},{"$f":"((Quarterly!CK50/Quarterly!CK46)-1)","v":0.10779816513761475},{"$f":"((Quarterly!CL50/Quarterly!CL46)-1)","v":-6.2194580186583859E-2},{"$f":"((Quarterly!CM50/Quarterly!CM46)-1)","v":2.995132909022824E-2},{"$f":"((Quarterly!CN50/Quarterly!CN46)-1)","v":4.3668836479016093E-2},{"$f":"((Quarterly!CO50/Quarterly!CO46)-1)","v":1.6841838672913667E-2},{"$f":"((Quarterly!CP50/Quarterly!CP46)-1)","v":9.4932542825206356E-2},{"$f":"((Quarterly!CQ50/Quarterly!CQ46)-1)","v":9.8769186553622212E-3},"--","--","--",null,null,null,null,null,{"$f":"((Quarterly!CZ50/Quarterly!CZ46)-1)","v":4.6259842519684957E-2},{"$f":"((Quarterly!DA50/Quarterly!DA46)-1)","v":5.2034058656575066E-2},null,null,null,null,null,{"$f":"((Quarterly!DG50/Quarterly!DG46)-1)","v":2.9036004645760727E-2},{"$f":"((Quarterly!DH50-Quarterly!DH46)*60)","v":-13.999999999999631},{"$f":"Quarterly!DI50-Quarterly!DI46","v":-0.26666666666666572},"--",{"$f":"(Quarterly!DK50-Quarterly!DK46)*100","v":-50},{"$f":"((Quarterly!DL50/Quarterly!DL46)-1)","v":2.3025459951681926E-2},null,null,null,{"$f":"((Quarterly!DP50/Quarterly!DP46)-1)","v":3.5645655263526699E-2},null,null,null,null,{"$f":"Quarterly!DU50-Quarterly!DU46","v":-0.21666666666666679},"--","--","--","--","--","--","--","--",null,null,null,null,null,{"$f":"((Quarterly!EI50/Quarterly!EI46)-1)","v":5.1413293102126056E-2},{"$f":"((Quarterly!EJ50/Quarterly!EJ46)-1)","v":5.5788254737247467E-2},{"$f":"((Quarterly!EK50/Quarterly!EK46)-1)","v":5.6712762763306834E-2},null,null,null,null,null,{"$f":"((Quarterly!EQ50/Quarterly!EQ46)-1)","v":2.9850746268656803E-2},"--",{"$f":"((Quarterly!ES50/Quarterly!ES46)-1)","v":3.4038638454461534E-2},null,null,null,null,null,{"$f":"(Quarterly!EY50-Quarterly!EY46)*100","v":64.000000000000057},{"$f":"(Quarterly!EZ50-Quarterly!EZ46)*100","v":174.3333333333334},{"$f":"(Quarterly!FA50-Quarterly!FA46)*100","v":21.66666666666659},{"$f":"(Quarterly!FB50-Quarterly!FB46)*100","v":30.333333333333368},"--","--",{"$f":"(Quarterly!FE50-Quarterly!FE46)*100","v":83.3333333333334},{"$f":"(Quarterly!FF50-Quarterly!FF46)*100","v":27.333333333333343},"--",{"$f":"(Quarterly!FH50-Quarterly!FH46)*100","v":7.6666666666667105},{"$f":"(Quarterly!FI50-Quarterly!FI46)*100","v":12.666666666666693},null,null,null,null,null,null,"--","--","--","--","--","--","--","--","--",null,null,null,null,null,{"$f":"((Quarterly!GD50/Quarterly!GD46)-1)","v":0},"--","--","--","--","--","--","--","--"]
["69'Q1",{"$f":"((Quarterly!B51/Quarterly!B47)-1)","v":9.2504403847947891E-2},{"$f":"((Quarterly!C51/Quarterly!C47)-1)","v":4.4766311206341891E-2},{"$f":"((Quarterly!D51/Quarterly!D47)-1)","v":4.2014093780370798E-2},{"$f":"((Quarterly!E51/Quarterly!E47)-1)","v":5.065799312098096E-2},{"$f":"((Quarterly!F51/Quarterly!F47)-1)","v":8.0978338832305319E-2},{"$f":"((Quarterly!G51/Quarterly!G47)-1)","v":4.0058359782942476E-2},{"$f":"((Quarterly!H51/Quarterly!H47)-1)","v":5.3440870031329135E-2},{"$f":"((Quarterly!I51/Quarterly!I47)-1)","v":5.4875350346658802E-2},{"$f":"((Quarterly!J51/Quarterly!J47)-1)","v":5.2194596270257687E-2},{"$f":"((Quarterly!K51/Quarterly!K47)-1)","v":9.5813204508856664E-2},{"$f":"((Quarterly!L51-Quarterly!L47))","v":9.9980000000000011},{"$f":"((Quarterly!M51/Quarterly!M47)-1)","v":-3.3463917618937744E-2},{"$f":"((Quarterly!N51/Quarterly!N47)-1)","v":-6.1365472228504969E-2},{"$f":"((Quarterly!O51/Quarterly!O47)-1)","v":3.1396466770821307E-2},{"$f":"((Quarterly!P51/Quarterly!P47)-1)","v":1.183087874923161E-2},{"$f":"((Quarterly!Q51/Quarterly!Q47)-1)","v":-1.1321333726763056},null,null,null,null,null,"--","--",{"$f":"((Quarterly!Y51/Quarterly!Y47)-1)","v":0.13224968589465269},"--",{"$f":"((Quarterly!AA51/Quarterly!AA47)-1)","v":4.749946947725836E-2},{"$f":"((Quarterly!AB51/Quarterly!AB47)-1)","v":4.4128293627409665E-2},"--","--","--","--","--","--","--","--","--","--",{"$f":"((Quarterly!AM51/Quarterly!AM47)-1)","v":5.7025836303659316E-2},"--","--","--",{"$f":"Quarterly!AQ51-Quarterly!AQ47","v":1.2000000000000099},"--","--",{"$f":"Quarterly!AT51-Quarterly!AT47","v":2.7333333333333414},"--","--",{"$f":"Quarterly!AW51-Quarterly!AW47","v":-7.0333333333333314},{"$f":"Quarterly!AX51-Quarterly!AX47","v":-0.26666666666667282},{"$f":"Quarterly!AY51-Quarterly!AY47","v":1.9000000000000057},{"$f":"Quarterly!AZ51-Quarterly!AZ47","v":0.60000000000000853},{"$f":"Quarterly!BA51-Quarterly!BA47","v":8.5666666666666629},"--","--","--","--",{"$f":"((Quarterly!BF51/Quarterly!BF47)-1)","v":6.7798132183908066E-2},{"$f":"((Quarterly!BG51/Quarterly!BG47)-1)","v":1.522066643034381E-2},{"$f":"((Quarterly!BH51/Quarterly!BH47)-1)","v":1.8164990823385407E-2},{"$f":"((Quarterly!BI51/Quarterly!BI47)-1)","v":5.1799610894941672E-2},{"$f":"((Quarterly!BJ51/Quarterly!BJ47)-1)","v":2.4797276107701327E-2},"--",null,"--","--",null,null,null,null,null,{"$f":"((Quarterly!BT51/Quarterly!BT47)-1)","v":0.13007677500152126},"--","--",{"$f":"((Quarterly!BW51/Quarterly!BW47)-1)","v":9.4163607584279108E-2},{"$f":"((Quarterly!BX51/Quarterly!BX47)-1)","v":0.15322950068712782},{"$f":"((Quarterly!BY51/Quarterly!BY47)-1)","v":0.12875867386276019},"--","--",{"$f":"((Quarterly!CB51/Quarterly!CB47)-1)","v":0.10681289400173855},{"$f":"((Quarterly!CC51/Quarterly!CC47)-1)","v":5.6011445035223373E-2},"--","--",null,"--","--",null,{"$f":"((Quarterly!CJ51/Quarterly!CJ47)-1)","v":-3.208906352324814E-2},{"$f":"((Quarterly!CK51/Quarterly!CK47)-1)","v":9.7775036766450274E-2},{"$f":"((Quarterly!CL51/Quarterly!CL47)-1)","v":-0.11040723981900447},{"$f":"((Quarterly!CM51/Quarterly!CM47)-1)","v":-2.3688046647230232E-2},{"$f":"((Quarterly!CN51/Quarterly!CN47)-1)","v":2.8194078171565939E-2},{"$f":"((Quarterly!CO51/Quarterly!CO47)-1)","v":1.8710493046776078E-2},{"$f":"((Quarterly!CP51/Quarterly!CP47)-1)","v":0.10735214674298721},{"$f":"((Quarterly!CQ51/Quarterly!CQ47)-1)","v":9.8035292705374033E-3},{"$f":"((Quarterly!CR51/Quarterly!CR47)-1)","v":0.62936601115350732},"--","--",null,null,null,null,null,{"$f":"((Quarterly!CZ51/Quarterly!CZ47)-1)","v":4.8732943469785406E-2},{"$f":"((Quarterly!DA51/Quarterly!DA47)-1)","v":5.3271028037383372E-2},null,null,null,null,null,{"$f":"((Quarterly!DG51/Quarterly!DG47)-1)","v":3.6437246963562986E-2},{"$f":"((Quarterly!DH51-Quarterly!DH47)*60)","v":-6.0000000000000853},{"$f":"Quarterly!DI51-Quarterly!DI47","v":0.36666666666666714},"--",{"$f":"(Quarterly!DK51-Quarterly!DK47)*100","v":-33.3333333333333},{"$f":"((Quarterly!DL51/Quarterly!DL47)-1)","v":2.457487860268448E-2},null,null,null,{"$f":"((Quarterly!DP51/Quarterly!DP47)-1)","v":3.8387601520005976E-2},null,null,null,null,{"$f":"Quarterly!DU51-Quarterly!DU47","v":-0.13333333333333286},"--","--","--","--","--","--","--","--",null,null,null,null,null,{"$f":"((Quarterly!EI51/Quarterly!EI47)-1)","v":4.9041731810742561E-2},{"$f":"((Quarterly!EJ51/Quarterly!EJ47)-1)","v":4.9756438278149018E-2},{"$f":"((Quarterly!EK51/Quarterly!EK47)-1)","v":4.6906445949890685E-2},null,null,null,null,null,{"$f":"((Quarterly!EQ51/Quarterly!EQ47)-1)","v":3.0421982335623099E-2},"--",{"$f":"((Quarterly!ES51/Quarterly!ES47)-1)","v":3.0993618960802438E-2},null,null,null,null,null,{"$f":"(Quarterly!EY51-Quarterly!EY47)*100","v":106.33333333333326},{"$f":"(Quarterly!EZ51-Quarterly!EZ47)*100","v":178.00000000000003},{"$f":"(Quarterly!FA51-Quarterly!FA47)*100","v":57.333333333333414},{"$f":"(Quarterly!FB51-Quarterly!FB47)*100","v":54.666666666666686},"--","--",{"$f":"(Quarterly!FE51-Quarterly!FE47)*100","v":104.33333333333339},{"$f":"(Quarterly!FF51-Quarterly!FF47)*100","v":88.999999999999972},"--",{"$f":"(Quarterly!FH51-Quarterly!FH47)*100","v":70.333333333333314},{"$f":"(Quarterly!FI51-Quarterly!FI47)*100","v":56.666666666666728},null,null,null,null,null,null,"--","--","--","--","--","--","--","--","--",null,null,null,null,null,{"$f":"((Quarterly!GD51/Quarterly!GD47)-1)","v":1.9543973941368309E-2},"--","--","--","--","--","--","--","--"]
["69'Q2",{"$f":"((Quarterly!B52/Quarterly!B48)-1)","v":8.0171142276435736E-2},{"$f":"((Quarterly!C52/Quarterly!C48)-1)","v":3.0711437920376561E-2},{"$f":"((Quarterly!D52/Quarterly!D48)-1)","v":3.6772010441186831E-2},{"$f":"((Quarterly!E52/Quarterly!E48)-1)","v":4.1425783407592842E-2},{"$f":"((Quarterly!F52/Quarterly!F48)-1)","v":5.5551653908280096E-2},{"$f":"((Quarterly!G52/Quarterly!G48)-1)","v":2.9710731263274948E-2},{"$f":"((Quarterly!H52/Quarterly!H48)-1)","v":4.6116149429062059E-2},{"$f":"((Quarterly!I52/Quarterly!I48)-1)","v":7.965350724349074E-2},{"$f":"((Quarterly!J52/Quarterly!J48)-1)","v":8.5673748726639465E-2},{"$f":"((Quarterly!K52/Quarterly!K48)-1)","v":5.6907378335949721E-2},{"$f":"((Quarterly!L52-Quarterly!L48))","v":-19.238},{"$f":"((Quarterly!M52/Quarterly!M48)-1)","v":0.13984280424410733},{"$f":"((Quarterly!N52/Quarterly!N48)-1)","v":0.12674414183785987},{"$f":"((Quarterly!O52/Quarterly!O48)-1)","v":0.17075395519932979},{"$f":"((Quarterly!P52/Quarterly!P48)-1)","v":3.3737101114335033E-3},{"$f":"((Quarterly!Q52/Quarterly!Q48)-1)","v":-0.91981309415113599},null,null,null,null,null,"--","--",{"$f":"((Quarterly!Y52/Quarterly!Y48)-1)","v":0.14190393572422266},"--",{"$f":"((Quarterly!AA52/Quarterly!AA48)-1)","v":-1.2376493269528721E-2},{"$f":"((Quarterly!AB52/Quarterly!AB48)-1)","v":-4.3326892058067168E-2},"--","--","--","--","--","--","--","--","--","--",{"$f":"((Quarterly!AM52/Quarterly!AM48)-1)","v":4.7517231014428063E-2},"--","--","--",{"$f":"Quarterly!AQ52-Quarterly!AQ48","v":0.20000000000000284},"--","--",{"$f":"Quarterly!AT52-Quarterly!AT48","v":-0.19999999999999574},"--","--",{"$f":"Quarterly!AW52-Quarterly!AW48","v":-5.4000000000000057},{"$f":"Quarterly!AX52-Quarterly!AX48","v":-3.4333333333333371},{"$f":"Quarterly!AY52-Quarterly!AY48","v":9.3000000000000114},{"$f":"Quarterly!AZ52-Quarterly!AZ48","v":-2.2333333333333343},{"$f":"Quarterly!BA52-Quarterly!BA48","v":15.833333333333329},"--","--","--","--",{"$f":"((Quarterly!BF52/Quarterly!BF48)-1)","v":6.7685782451179621E-2},{"$f":"((Quarterly!BG52/Quarterly!BG48)-1)","v":-2.479810393258397E-3},{"$f":"((Quarterly!BH52/Quarterly!BH48)-1)","v":1.203241895261864E-2},{"$f":"((Quarterly!BI52/Quarterly!BI48)-1)","v":7.0384537950473058E-2},{"$f":"((Quarterly!BJ52/Quarterly!BJ48)-1)","v":-3.6422899394045416E-2},"--",null,"--","--",null,null,null,null,null,{"$f":"((Quarterly!BT52/Quarterly!BT48)-1)","v":0.13295137606480267},"--","--",{"$f":"((Quarterly!BW52/Quarterly!BW48)-1)","v":9.0897071461624845E-2},{"$f":"((Quarterly!BX52/Quarterly!BX48)-1)","v":6.1369361117471932E-2},{"$f":"((Quarterly!BY52/Quarterly!BY48)-1)","v":6.0520216327581977E-2},"--","--",{"$f":"((Quarterly!CB52/Quarterly!CB48)-1)","v":0.16238035053616118},{"$f":"((Quarterly!CC52/Quarterly!CC48)-1)","v":0.11340604717055203},"--","--",null,"--","--",null,{"$f":"((Quarterly!CJ52/Quarterly!CJ48)-1)","v":-1.8076644974692635E-2},{"$f":"((Quarterly!CK52/Quarterly!CK48)-1)","v":9.3823515844827066E-2},{"$f":"((Quarterly!CL52/Quarterly!CL48)-1)","v":-8.9917066783064103E-2},{"$f":"((Quarterly!CM52/Quarterly!CM48)-1)","v":-1.8648018648018683E-2},{"$f":"((Quarterly!CN52/Quarterly!CN48)-1)","v":2.243802655025906E-2},{"$f":"((Quarterly!CO52/Quarterly!CO48)-1)","v":1.1843265717525586E-2},{"$f":"((Quarterly!CP52/Quarterly!CP48)-1)","v":0.11003632464109581},{"$f":"((Quarterly!CQ52/Quarterly!CQ48)-1)","v":9.8052752846840008E-3},{"$f":"((Quarterly!CR52/Quarterly!CR48)-1)","v":0.67587353690666485},"--","--",null,null,null,null,null,{"$f":"((Quarterly!CZ52/Quarterly!CZ48)-1)","v":5.5019305019304854E-2},{"$f":"((Quarterly!DA52/Quarterly!DA48)-1)","v":5.9204440333024744E-2},null,null,null,null,null,{"$f":"((Quarterly!DG52/Quarterly!DG48)-1)","v":3.7270642201834958E-2},{"$f":"((Quarterly!DH52-Quarterly!DH48)*60)","v":-6.0000000000000853},{"$f":"Quarterly!DI52-Quarterly!DI48","v":0.1666666666666643},"--",{"$f":"(Quarterly!DK52-Quarterly!DK48)*100","v":-13.333333333333286},{"$f":"((Quarterly!DL52/Quarterly!DL48)-1)","v":2.2603530770499924E-2},null,null,null,{"$f":"((Quarterly!DP52/Quarterly!DP48)-1)","v":3.9012958367796946E-2},null,null,null,null,{"$f":"Quarterly!DU52-Quarterly!DU48","v":-0.26666666666666661},"--","--","--","--","--","--","--","--",null,null,null,null,null,{"$f":"((Quarterly!EI52/Quarterly!EI48)-1)","v":3.6199066478928454E-2},{"$f":"((Quarterly!EJ52/Quarterly!EJ48)-1)","v":3.6240186979391131E-2},{"$f":"((Quarterly!EK52/Quarterly!EK48)-1)","v":3.72685606977603E-2},null,null,null,null,null,{"$f":"((Quarterly!EQ52/Quarterly!EQ48)-1)","v":3.9024390243902252E-2},"--",{"$f":"((Quarterly!ES52/Quarterly!ES48)-1)","v":2.8880866425992968E-2},null,null,null,null,null,{"$f":"(Quarterly!EY52-Quarterly!EY48)*100","v":134.33333333333337},{"$f":"(Quarterly!EZ52-Quarterly!EZ48)*100","v":234.66666666666657},{"$f":"(Quarterly!FA52-Quarterly!FA48)*100","v":63.333333333333286},{"$f":"(Quarterly!FB52-Quarterly!FB48)*100","v":56.333333333333258},"--","--",{"$f":"(Quarterly!FE52-Quarterly!FE48)*100","v":67.666666666666671},{"$f":"(Quarterly!FF52-Quarterly!FF48)*100","v":63.000000000000078},"--",{"$f":"(Quarterly!FH52-Quarterly!FH48)*100","v":67.000000000000085},{"$f":"(Quarterly!FI52-Quarterly!FI48)*100","v":61.000000000000121},null,null,null,null,null,null,"--","--","--","--","--","--","--","--","--",null,null,null,null,null,{"$f":"((Quarterly!GD52/Quarterly!GD48)-1)","v":9.1205211726384405E-2},"--","--","--","--","--","--","--","--"]
["69'Q3",{"$f":"((Quarterly!B53/Quarterly!B49)-1)","v":8.3655432316162237E-2},{"$f":"((Quarterly!C53/Quarterly!C49)-1)","v":2.9745841352613711E-2},{"$f":"((Quarterly!D53/Quarterly!D49)-1)","v":2.7276226860510677E-2},{"$f":"((Quarterly!E53/Quarterly!E49)-1)","v":2.7253668763102867E-2},{"$f":"((Quarterly!F53/Quarterly!F49)-1)","v":7.1908602150536627E-3},{"$f":"((Quarterly!G53/Quarterly!G49)-1)","v":1.7347802279854552E-2},{"$f":"((Quarterly!H53/Quarterly!H49)-1)","v":3.3983110752768386E-2},{"$f":"((Quarterly!I53/Quarterly!I49)-1)","v":8.9230467023522886E-2},{"$f":"((Quarterly!J53/Quarterly!J49)-1)","v":9.6688411080922743E-2},{"$f":"((Quarterly!K53/Quarterly!K49)-1)","v":3.0069390902081716E-2},{"$f":"((Quarterly!L53-Quarterly!L49))","v":9.9410000000000025},{"$f":"((Quarterly!M53/Quarterly!M49)-1)","v":6.1290891381742485E-2},{"$f":"((Quarterly!N53/Quarterly!N49)-1)","v":3.8456245325355187E-2},{"$f":"((Quarterly!O53/Quarterly!O49)-1)","v":0.11499007978386588},{"$f":"((Quarterly!P53/Quarterly!P49)-1)","v":2.5589834954962143E-3},{"$f":"((Quarterly!Q53/Quarterly!Q49)-1)","v":-0.14461294479135689},null,null,null,null,null,"--","--",{"$f":"((Quarterly!Y53/Quarterly!Y49)-1)","v":0.13155194220322475},"--",{"$f":"((Quarterly!AA53/Quarterly!AA49)-1)","v":-4.983240987755666E-2},{"$f":"((Quarterly!AB53/Quarterly!AB49)-1)","v":-7.4629235606084698E-2},"--","--","--","--","--","--","--","--","--","--",{"$f":"((Quarterly!AM53/Quarterly!AM49)-1)","v":5.1927940769719738E-2},"--","--","--",{"$f":"Quarterly!AQ53-Quarterly!AQ49","v":1.1333333333333258},"--","--",{"$f":"Quarterly!AT53-Quarterly!AT49","v":3.2333333333333272},"--","--",{"$f":"Quarterly!AW53-Quarterly!AW49","v":-0.93333333333333712},{"$f":"Quarterly!AX53-Quarterly!AX49","v":-4},{"$f":"Quarterly!AY53-Quarterly!AY49","v":11.566666666666663},{"$f":"Quarterly!AZ53-Quarterly!AZ49","v":-3.1666666666666572},{"$f":"Quarterly!BA53-Quarterly!BA49","v":17.600000000000001},"--","--","--","--",{"$f":"((Quarterly!BF53/Quarterly!BF49)-1)","v":6.937923839332294E-2},{"$f":"((Quarterly!BG53/Quarterly!BG49)-1)","v":-1.5586240203718793E-3},{"$f":"((Quarterly!BH53/Quarterly!BH49)-1)","v":1.3350948088280967E-2},{"$f":"((Quarterly!BI53/Quarterly!BI49)-1)","v":7.1009900990099073E-2},{"$f":"((Quarterly!BJ53/Quarterly!BJ49)-1)","v":-8.386773109976875E-2},"--",null,"--","--",null,null,null,null,null,{"$f":"((Quarterly!BT53/Quarterly!BT49)-1)","v":0.11608290882902272},"--","--",{"$f":"((Quarterly!BW53/Quarterly!BW49)-1)","v":8.9161686318849798E-2},{"$f":"((Quarterly!BX53/Quarterly!BX49)-1)","v":-7.2320841551610782E-2},{"$f":"((Quarterly!BY53/Quarterly!BY49)-1)","v":-7.3709483793517383E-2},"--","--",{"$f":"((Quarterly!CB53/Quarterly!CB49)-1)","v":0.13472304541801838},{"$f":"((Quarterly!CC53/Quarterly!CC49)-1)","v":0.10516632615316635},"--","--",null,"--","--",null,{"$f":"((Quarterly!CJ53/Quarterly!CJ49)-1)","v":-0.16455696202531644},{"$f":"((Quarterly!CK53/Quarterly!CK49)-1)","v":9.5865760942912548E-2},{"$f":"((Quarterly!CL53/Quarterly!CL49)-1)","v":0.2062868369351667},{"$f":"((Quarterly!CM53/Quarterly!CM49)-1)","v":-0.13674588665447895},{"$f":"((Quarterly!CN53/Quarterly!CN49)-1)","v":4.1559725670046843E-2},{"$f":"((Quarterly!CO53/Quarterly!CO49)-1)","v":-1.7579105976897047E-3},{"$f":"((Quarterly!CP53/Quarterly!CP49)-1)","v":0.1039460278593507},{"$f":"((Quarterly!CQ53/Quarterly!CQ49)-1)","v":9.8639619445197724E-3},{"$f":"((Quarterly!CR53/Quarterly!CR49)-1)","v":0.70363584852205152},"--","--",null,null,null,null,null,{"$f":"((Quarterly!CZ53/Quarterly!CZ49)-1)","v":5.5238095238095086E-2},{"$f":"((Quarterly!DA53/Quarterly!DA49)-1)","v":5.9306569343065441E-2},null,null,null,null,null,{"$f":"((Quarterly!DG53/Quarterly!DG49)-1)","v":3.3541785105173583E-2},{"$f":"((Quarterly!DH53-Quarterly!DH49)*60)","v":-12.000000000000171},{"$f":"Quarterly!DI53-Quarterly!DI49","v":0.59999999999999432},"--",{"$f":"(Quarterly!DK53-Quarterly!DK49)*100","v":3.3333333333333215},{"$f":"((Quarterly!DL53/Quarterly!DL49)-1)","v":2.2968359168172858E-2},null,null,null,{"$f":"((Quarterly!DP53/Quarterly!DP49)-1)","v":3.7630526007611964E-2},null,null,null,null,{"$f":"Quarterly!DU53-Quarterly!DU49","v":6.6666666666667318E-2},"--","--","--","--","--","--","--","--",null,null,null,null,null,{"$f":"((Quarterly!EI53/Quarterly!EI49)-1)","v":3.2927506931680561E-2},{"$f":"((Quarterly!EJ53/Quarterly!EJ49)-1)","v":2.8501161363195804E-2},{"$f":"((Quarterly!EK53/Quarterly!EK49)-1)","v":2.8882626967644098E-2},null,null,null,null,null,{"$f":"((Quarterly!EQ53/Quarterly!EQ49)-1)","v":4.2759961127307955E-2},"--",{"$f":"((Quarterly!ES53/Quarterly!ES49)-1)","v":3.2258064516129004E-2},null,null,null,null,null,{"$f":"(Quarterly!EY53-Quarterly!EY49)*100","v":201.66666666666666},{"$f":"(Quarterly!EZ53-Quarterly!EZ49)*100","v":303.99999999999983},{"$f":"(Quarterly!FA53-Quarterly!FA49)*100","v":98.666666666666629},{"$f":"(Quarterly!FB53-Quarterly!FB49)*100","v":105.33333333333337},"--","--",{"$f":"(Quarterly!FE53-Quarterly!FE49)*100","v":182.66666666666671},{"$f":"(Quarterly!FF53-Quarterly!FF49)*100","v":214.33333333333326},"--",{"$f":"(Quarterly!FH53-Quarterly!FH49)*100","v":167.66666666666669},{"$f":"(Quarterly!FI53-Quarterly!FI49)*100","v":139.66666666666666},null,null,null,null,null,null,"--","--","--","--","--","--","--","--","--",null,null,null,null,null,{"$f":"((Quarterly!GD53/Quarterly!GD49)-1)","v":9.1205211726384405E-2},"--","--","--","--","--","--","--","--"]
["69'Q4",{"$f":"((Quarterly!B54/Quarterly!B50)-1)","v":7.2786196474901699E-2},{"$f":"((Quarterly!C54/Quarterly!C50)-1)","v":2.0707809402262356E-2},{"$f":"((Quarterly!D54/Quarterly!D50)-1)","v":2.1100909090121966E-2},{"$f":"((Quarterly!E54/Quarterly!E50)-1)","v":3.0764248704663322E-2},{"$f":"((Quarterly!F54/Quarterly!F50)-1)","v":9.3293672255272408E-3},{"$f":"((Quarterly!G54/Quarterly!G50)-1)","v":2.3938089431905896E-2},{"$f":"((Quarterly!H54/Quarterly!H50)-1)","v":3.6016795840607241E-2},{"$f":"((Quarterly!I54/Quarterly!I50)-1)","v":5.4785352328138526E-2},{"$f":"((Quarterly!J54/Quarterly!J50)-1)","v":5.045203683726629E-2},{"$f":"((Quarterly!K54/Quarterly!K50)-1)","v":-5.7099352874000808E-2},{"$f":"((Quarterly!L54-Quarterly!L50))","v":-2.9480000000000004},{"$f":"((Quarterly!M54/Quarterly!M50)-1)","v":5.8551559159133681E-2},{"$f":"((Quarterly!N54/Quarterly!N50)-1)","v":8.7930334450389891E-2},{"$f":"((Quarterly!O54/Quarterly!O50)-1)","v":-9.5689073741004327E-3},{"$f":"((Quarterly!P54/Quarterly!P50)-1)","v":-1.1441391290350711E-2},{"$f":"((Quarterly!Q54/Quarterly!Q50)-1)","v":0.34982788296041312},null,null,null,null,null,"--","--",{"$f":"((Quarterly!Y54/Quarterly!Y50)-1)","v":0.11510675899241218},"--",{"$f":"((Quarterly!AA54/Quarterly!AA50)-1)","v":-9.1074256188015679E-2},{"$f":"((Quarterly!AB54/Quarterly!AB50)-1)","v":-0.15634943137069579},"--","--","--","--","--","--","--","--","--","--",{"$f":"((Quarterly!AM54/Quarterly!AM50)-1)","v":2.9697406057003439E-2},"--","--","--",{"$f":"Quarterly!AQ54-Quarterly!AQ50","v":-3.3999999999999915},"--","--",{"$f":"Quarterly!AT54-Quarterly!AT50","v":-3.5000000000000071},"--","--",{"$f":"Quarterly!AW54-Quarterly!AW50","v":9.0666666666666771},{"$f":"Quarterly!AX54-Quarterly!AX50","v":-8.6666666666666714},{"$f":"Quarterly!AY54-Quarterly!AY50","v":10.733333333333334},{"$f":"Quarterly!AZ54-Quarterly!AZ50","v":-8.9333333333333371},{"$f":"Quarterly!BA54-Quarterly!BA50","v":8.36666666666666},"--","--","--","--",{"$f":"((Quarterly!BF54/Quarterly!BF50)-1)","v":6.8792089335947493E-2},{"$f":"((Quarterly!BG54/Quarterly!BG50)-1)","v":-4.0242776091832244E-3},{"$f":"((Quarterly!BH54/Quarterly!BH50)-1)","v":9.8738004875189578E-3},{"$f":"((Quarterly!BI54/Quarterly!BI50)-1)","v":7.3070512075047445E-2},{"$f":"((Quarterly!BJ54/Quarterly!BJ50)-1)","v":-0.14158879494840326},"--",null,"--","--",null,null,null,null,null,{"$f":"((Quarterly!BT54/Quarterly!BT50)-1)","v":9.0263903663077683E-2},"--","--",{"$f":"((Quarterly!BW54/Quarterly!BW50)-1)","v":9.0593762810204037E-2},{"$f":"((Quarterly!BX54/Quarterly!BX50)-1)","v":-0.17063408468506425},{"$f":"((Quarterly!BY54/Quarterly!BY50)-1)","v":-0.16109279321714554},"--","--",{"$f":"((Quarterly!CB54/Quarterly!CB50)-1)","v":0.17103962435653064},{"$f":"((Quarterly!CC54/Quarterly!CC50)-1)","v":0.1431323028873821},"--","--",null,"--","--",null,{"$f":"((Quarterly!CJ54/Quarterly!CJ50)-1)","v":-0.12685560053981115},{"$f":"((Quarterly!CK54/Quarterly!CK50)-1)","v":9.3255803709087592E-2},{"$f":"((Quarterly!CL54/Quarterly!CL50)-1)","v":0.18285172903837066},{"$f":"((Quarterly!CM54/Quarterly!CM50)-1)","v":-0.19338422391857513},{"$f":"((Quarterly!CN54/Quarterly!CN50)-1)","v":4.257297478008315E-2},{"$f":"((Quarterly!CO54/Quarterly!CO50)-1)","v":-1.5566625155666092E-2},{"$f":"((Quarterly!CP54/Quarterly!CP50)-1)","v":8.8645403764368025E-2},{"$f":"((Quarterly!CQ54/Quarterly!CQ50)-1)","v":1.0093037954786555E-2},{"$f":"((Quarterly!CR54/Quarterly!CR50)-1)","v":0.73440888918549185},"--","--",null,null,null,null,null,{"$f":"((Quarterly!CZ54/Quarterly!CZ50)-1)","v":5.8325493885230673E-2},{"$f":"((Quarterly!DA54/Quarterly!DA50)-1)","v":5.8453237410072134E-2},null,null,null,null,null,{"$f":"((Quarterly!DG54/Quarterly!DG50)-1)","v":2.7652370203160581E-2},{"$f":"((Quarterly!DH54-Quarterly!DH50)*60)","v":-6.0000000000000853},{"$f":"Quarterly!DI54-Quarterly!DI50","v":0.6666666666666714},"--",{"$f":"(Quarterly!DK54-Quarterly!DK50)*100","v":16.66666666666665},{"$f":"((Quarterly!DL54/Quarterly!DL50)-1)","v":9.3734672746099701E-3},null,null,null,{"$f":"((Quarterly!DP54/Quarterly!DP50)-1)","v":3.1389072775681148E-2},null,null,null,null,{"$f":"Quarterly!DU54-Quarterly!DU50","v":0.10000000000000053},"--","--","--","--","--","--","--","--",null,null,null,null,null,{"$f":"((Quarterly!EI54/Quarterly!EI50)-1)","v":6.3579936250282021E-3},{"$f":"((Quarterly!EJ54/Quarterly!EJ50)-1)","v":1.6433719036132555E-2},{"$f":"((Quarterly!EK54/Quarterly!EK50)-1)","v":2.3351710027167183E-2},null,null,null,null,null,{"$f":"((Quarterly!EQ54/Quarterly!EQ50)-1)","v":4.6376811594202927E-2},"--",{"$f":"((Quarterly!ES54/Quarterly!ES50)-1)","v":4.0035587188611998E-2},null,null,null,null,null,{"$f":"(Quarterly!EY54-Quarterly!EY50)*100","v":213.33333333333329},{"$f":"(Quarterly!EZ54-Quarterly!EZ50)*100","v":302.33333333333326},{"$f":"(Quarterly!FA54-Quarterly!FA50)*100","v":122.33333333333327},{"$f":"(Quarterly!FB54-Quarterly!FB50)*100","v":134.66666666666666},"--","--",{"$f":"(Quarterly!FE54-Quarterly!FE50)*100","v":176.66666666666674},{"$f":"(Quarterly!FF54-Quarterly!FF50)*100","v":206.33333333333326},"--",{"$f":"(Quarterly!FH54-Quarterly!FH50)*100","v":188.99999999999997},{"$f":"(Quarterly!FI54-Quarterly!FI50)*100","v":152.66666666666663},null,null,null,null,null,null,"--","--","--","--","--","--","--","--","--",null,null,null,null,null,{"$f":"((Quarterly!GD54/Quarterly!GD50)-1)","v":9.1205211726384405E-2},"--","--","--","--","--","--","--","--"]
["70'Q1",{"$f":"((Quarterly!B55/Quarterly!B51)-1)","v":5.8376422390973071E-2},{"$f":"((Quarterly!C55/Quarterly!C51)-1)","v":3.2984222777678873E-3},{"$f":"((Quarterly!D55/Quarterly!D51)-1)","v":1.3060140410329213E-2},{"$f":"((Quarterly!E55/Quarterly!E51)-1)","v":2.5655623954737861E-2},{"$f":"((Quarterly!F55/Quarterly!F51)-1)","v":-2.4550461150553926E-2},{"$f":"((Quarterly!G55/Quarterly!G51)-1)","v":2.1386557724017541E-2},{"$f":"((Quarterly!H55/Quarterly!H51)-1)","v":3.2153512784497407E-2},{"$f":"((Quarterly!I55/Quarterly!I51)-1)","v":2.1255768423996679E-2},{"$f":"((Quarterly!J55/Quarterly!J51)-1)","v":4.9450723570354516E-3},{"$f":"((Quarterly!K55/Quarterly!K51)-1)","v":-8.8170462894930246E-2},{"$f":"((Quarterly!L55-Quarterly!L51))","v":-36.304000000000002},{"$f":"((Quarterly!M55/Quarterly!M51)-1)","v":0.16496888834867485},{"$f":"((Quarterly!N55/Quarterly!N51)-1)","v":0.2456471301007237},{"$f":"((Quarterly!O55/Quarterly!O51)-1)","v":-5.7094584753418776E-3},{"$f":"((Quarterly!P55/Quarterly!P51)-1)","v":-1.8576810397715193E-2},{"$f":"((Quarterly!Q55/Quarterly!Q51)-1)","v":-10.937025457793657},null,null,null,null,null,"--","--",{"$f":"((Quarterly!Y55/Quarterly!Y51)-1)","v":7.7111075743503177E-2},"--",{"$f":"((Quarterly!AA55/Quarterly!AA51)-1)","v":-0.12329067765134893},{"$f":"((Quarterly!AB55/Quarterly!AB51)-1)","v":-0.19061210010319918},"--","--","--","--","--","--","--","--","--","--",{"$f":"((Quarterly!AM55/Quarterly!AM51)-1)","v":-1.4421675240025911E-2},"--","--","--",{"$f":"Quarterly!AQ55-Quarterly!AQ51","v":-8.6666666666666714},"--","--",{"$f":"Quarterly!AT55-Quarterly!AT51","v":-9.1333333333333471},"--","--",{"$f":"Quarterly!AW55-Quarterly!AW51","v":4.0333333333333385},{"$f":"Quarterly!AX55-Quarterly!AX51","v":-11.599999999999994},{"$f":"Quarterly!AY55-Quarterly!AY51","v":-4.4000000000000057},{"$f":"Quarterly!AZ55-Quarterly!AZ51","v":-11.233333333333334},{"$f":"Quarterly!BA55-Quarterly!BA51","v":-6.4333333333333371},"--","--","--","--",{"$f":"((Quarterly!BF55/Quarterly!BF51)-1)","v":7.341686990160623E-2},{"$f":"((Quarterly!BG55/Quarterly!BG51)-1)","v":-8.9911179975121769E-3},{"$f":"((Quarterly!BH55/Quarterly!BH51)-1)","v":1.0522747931656085E-2},{"$f":"((Quarterly!BI55/Quarterly!BI51)-1)","v":8.3159922928708996E-2},{"$f":"((Quarterly!BJ55/Quarterly!BJ51)-1)","v":-0.18050667774159002},"--",null,"--","--",null,null,null,null,null,{"$f":"((Quarterly!BT55/Quarterly!BT51)-1)","v":7.1682523558594946E-2},"--","--",{"$f":"((Quarterly!BW55/Quarterly!BW51)-1)","v":8.5659761765520814E-2},{"$f":"((Quarterly!BX55/Quarterly!BX51)-1)","v":-0.26335650446871894},{"$f":"((Quarterly!BY55/Quarterly!BY51)-1)","v":-0.24590163934426235},"--","--",{"$f":"((Quarterly!CB55/Quarterly!CB51)-1)","v":0.25638264768367724},{"$f":"((Quarterly!CC55/Quarterly!CC51)-1)","v":0.24948076636706951},"--","--",null,"--","--",null,{"$f":"((Quarterly!CJ55/Quarterly!CJ51)-1)","v":-0.17253044654939109},{"$f":"((Quarterly!CK55/Quarterly!CK51)-1)","v":9.131374243733803E-2},{"$f":"((Quarterly!CL55/Quarterly!CL51)-1)","v":0.33163784333672397},{"$f":"((Quarterly!CM55/Quarterly!CM51)-1)","v":-0.23030981709593124},{"$f":"((Quarterly!CN55/Quarterly!CN51)-1)","v":5.0661022604053585E-2},{"$f":"((Quarterly!CO55/Quarterly!CO51)-1)","v":-3.8098783817324455E-2},{"$f":"((Quarterly!CP55/Quarterly!CP51)-1)","v":7.3072396060948286E-2},{"$f":"((Quarterly!CQ55/Quarterly!CQ51)-1)","v":1.0482709885349051E-2},{"$f":"((Quarterly!CR55/Quarterly!CR51)-1)","v":0.71191173159198384},"--","--",null,null,null,null,null,{"$f":"((Quarterly!CZ55/Quarterly!CZ51)-1)","v":6.2267657992565173E-2},{"$f":"((Quarterly!DA55/Quarterly!DA51)-1)","v":6.0337178349600729E-2},null,null,null,null,null,{"$f":"((Quarterly!DG55/Quarterly!DG51)-1)","v":1.0602678571428381E-2},{"$f":"((Quarterly!DH55-Quarterly!DH51)*60)","v":-20.000000000000142},{"$f":"Quarterly!DI55-Quarterly!DI51","v":0.63333333333333286},"--",{"$f":"(Quarterly!DK55-Quarterly!DK51)*100","v":76.6666666666667},{"$f":"((Quarterly!DL55/Quarterly!DL51)-1)","v":-6.2531536077271577E-3},null,null,null,{"$f":"((Quarterly!DP55/Quarterly!DP51)-1)","v":2.3387532708581515E-2},null,null,null,null,{"$f":"Quarterly!DU55-Quarterly!DU51","v":0.13333333333333286},"--","--","--","--","--","--","--","--",null,null,null,null,null,{"$f":"((Quarterly!EI55/Quarterly!EI51)-1)","v":-1.8844933847246059E-2},{"$f":"((Quarterly!EJ55/Quarterly!EJ51)-1)","v":-2.0151753206809619E-4},{"$f":"((Quarterly!EK55/Quarterly!EK51)-1)","v":1.2460374969667232E-2},null,null,null,null,null,{"$f":"((Quarterly!EQ55/Quarterly!EQ51)-1)","v":4.6666666666666634E-2},"--",{"$f":"((Quarterly!ES55/Quarterly!ES51)-1)","v":4.5977011494252817E-2},null,null,null,null,null,{"$f":"(Quarterly!EY55-Quarterly!EY51)*100","v":140.00000000000003},{"$f":"(Quarterly!EZ55-Quarterly!EZ51)*100","v":200.6666666666666},{"$f":"(Quarterly!FA55-Quarterly!FA51)*100","v":119.33333333333334},{"$f":"(Quarterly!FB55-Quarterly!FB51)*100","v":138},"--","--",{"$f":"(Quarterly!FE55-Quarterly!FE51)*100","v":111.66666666666663},{"$f":"(Quarterly!FF55-Quarterly!FF51)*100","v":119.00000000000004},"--",{"$f":"(Quarterly!FH55-Quarterly!FH51)*100","v":140.00000000000003},{"$f":"(Quarterly!FI55-Quarterly!FI51)*100","v":119.00000000000004},null,null,null,null,null,null,"--","--","--","--","--","--","--","--","--",null,null,null,null,null,{"$f":"((Quarterly!GD55/Quarterly!GD51)-1)","v":7.0287539936102039E-2},"--","--","--","--","--","--","--","--"]
["70'Q2",{"$f":"((Quarterly!B56/Quarterly!B52)-1)","v":5.8089050299546807E-2},{"$f":"((Quarterly!C56/Quarterly!C52)-1)","v":1.860545556064519E-3},{"$f":"((Quarterly!D56/Quarterly!D52)-1)","v":6.0321992991920759E-3},{"$f":"((Quarterly!E56/Quarterly!E52)-1)","v":2.3866770383989877E-2},{"$f":"((Quarterly!F56/Quarterly!F52)-1)","v":-1.0578842315369097E-2},{"$f":"((Quarterly!G56/Quarterly!G52)-1)","v":1.8490779166564275E-2},{"$f":"((Quarterly!H56/Quarterly!H52)-1)","v":2.9491086827407864E-2},{"$f":"((Quarterly!I56/Quarterly!I52)-1)","v":3.6427352791994494E-3},{"$f":"((Quarterly!J56/Quarterly!J52)-1)","v":-2.6565637369269868E-2},{"$f":"((Quarterly!K56/Quarterly!K52)-1)","v":-0.13999257333828452},{"$f":"((Quarterly!L56-Quarterly!L52))","v":-15.747},{"$f":"((Quarterly!M56/Quarterly!M52)-1)","v":-7.7662245372086547E-3},{"$f":"((Quarterly!N56/Quarterly!N52)-1)","v":6.2232869932964396E-2},{"$f":"((Quarterly!O56/Quarterly!O52)-1)","v":-0.16674543062598168},{"$f":"((Quarterly!P56/Quarterly!P52)-1)","v":-2.6758665308297402E-2},{"$f":"((Quarterly!Q56/Quarterly!Q52)-1)","v":20.84058941728064},null,null,null,null,null,"--","--",{"$f":"((Quarterly!Y56/Quarterly!Y52)-1)","v":4.3461368491433339E-2},"--",{"$f":"((Quarterly!AA56/Quarterly!AA52)-1)","v":-9.8945533769063121E-2},{"$f":"((Quarterly!AB56/Quarterly!AB52)-1)","v":-0.10159588675213682},"--","--","--","--","--","--","--","--","--","--",{"$f":"((Quarterly!AM56/Quarterly!AM52)-1)","v":-2.4102686871939394E-2},"--","--","--",{"$f":"Quarterly!AQ56-Quarterly!AQ52","v":-8.0333333333333314},"--","--",{"$f":"Quarterly!AT56-Quarterly!AT52","v":-11.899999999999999},"--","--",{"$f":"Quarterly!AW56-Quarterly!AW52","v":-5.8999999999999915},{"$f":"Quarterly!AX56-Quarterly!AX52","v":-6.8333333333333357},{"$f":"Quarterly!AY56-Quarterly!AY52","v":-3.9333333333333371},{"$f":"Quarterly!AZ56-Quarterly!AZ52","v":-9.2999999999999972},{"$f":"Quarterly!BA56-Quarterly!BA52","v":-4.6000000000000014},"--","--","--","--",{"$f":"((Quarterly!BF56/Quarterly!BF52)-1)","v":7.3160638914177012E-2},{"$f":"((Quarterly!BG56/Quarterly!BG52)-1)","v":1.4255857441425768E-2},{"$f":"((Quarterly!BH56/Quarterly!BH52)-1)","v":1.2058769173905137E-2},{"$f":"((Quarterly!BI56/Quarterly!BI52)-1)","v":5.8082233006056416E-2},{"$f":"((Quarterly!BJ56/Quarterly!BJ52)-1)","v":-0.16077915001816201},"--",null,"--","--",null,null,null,null,null,{"$f":"((Quarterly!BT56/Quarterly!BT52)-1)","v":4.8852544920501506E-2},"--","--",{"$f":"((Quarterly!BW56/Quarterly!BW52)-1)","v":8.2808144467337197E-2},{"$f":"((Quarterly!BX56/Quarterly!BX52)-1)","v":-0.15016181229773462},{"$f":"((Quarterly!BY56/Quarterly!BY52)-1)","v":-5.9252064108790803E-2},"--","--",{"$f":"((Quarterly!CB56/Quarterly!CB52)-1)","v":0.20926222449239007},{"$f":"((Quarterly!CC56/Quarterly!CC52)-1)","v":0.24722139412319932},"--","--",null,"--","--",null,{"$f":"((Quarterly!CJ56/Quarterly!CJ52)-1)","v":2.7982326951399017E-2},{"$f":"((Quarterly!CK56/Quarterly!CK52)-1)","v":8.7546915194196995E-2},{"$f":"((Quarterly!CL56/Quarterly!CL52)-1)","v":0.35203836930455612},{"$f":"((Quarterly!CM56/Quarterly!CM52)-1)","v":-9.9366587490102853E-2},{"$f":"((Quarterly!CN56/Quarterly!CN52)-1)","v":5.1491744614146961E-2},{"$f":"((Quarterly!CO56/Quarterly!CO52)-1)","v":-6.3752957290499346E-2},{"$f":"((Quarterly!CP56/Quarterly!CP52)-1)","v":5.0684247822674555E-2},{"$f":"((Quarterly!CQ56/Quarterly!CQ52)-1)","v":1.1266904887816898E-2},{"$f":"((Quarterly!CR56/Quarterly!CR52)-1)","v":0.6045127121374172},"--","--",null,null,null,null,null,{"$f":"((Quarterly!CZ56/Quarterly!CZ52)-1)","v":6.038426349496806E-2},{"$f":"((Quarterly!DA56/Quarterly!DA52)-1)","v":6.2882096069869053E-2},null,null,null,null,null,{"$f":"((Quarterly!DG56/Quarterly!DG52)-1)","v":-1.2714206744057543E-2},{"$f":"((Quarterly!DH56-Quarterly!DH52)*60)","v":-37.999999999999972},{"$f":"Quarterly!DI56-Quarterly!DI52","v":0.40000000000000568},"--",{"$f":"(Quarterly!DK56-Quarterly!DK52)*100","v":133.33333333333331},{"$f":"((Quarterly!DL56/Quarterly!DL52)-1)","v":-2.8969918611738588E-2},null,null,null,{"$f":"((Quarterly!DP56/Quarterly!DP52)-1)","v":1.1675733050285464E-2},null,null,null,null,{"$f":"Quarterly!DU56-Quarterly!DU52","v":0.36666666666666714},"--","--","--","--","--","--","--","--",null,null,null,null,null,{"$f":"((Quarterly!EI56/Quarterly!EI52)-1)","v":-3.1043028108941995E-2},{"$f":"((Quarterly!EJ56/Quarterly!EJ52)-1)","v":-5.0665542633907545E-3},{"$f":"((Quarterly!EK56/Quarterly!EK52)-1)","v":7.8666548851449303E-3},null,null,null,null,null,{"$f":"((Quarterly!EQ56/Quarterly!EQ52)-1)","v":3.7558685446009488E-2},"--",{"$f":"((Quarterly!ES56/Quarterly!ES52)-1)","v":4.7368421052631726E-2},null,null,null,null,null,{"$f":"(Quarterly!EY56-Quarterly!EY52)*100","v":25.666666666666682},{"$f":"(Quarterly!EZ56-Quarterly!EZ52)*100","v":-44.666666666666629},{"$f":"(Quarterly!FA56-Quarterly!FA52)*100","v":125.33333333333339},{"$f":"(Quarterly!FB56-Quarterly!FB52)*100","v":139.00000000000006},"--","--",{"$f":"(Quarterly!FE56-Quarterly!FE52)*100","v":48.000000000000043},{"$f":"(Quarterly!FF56-Quarterly!FF52)*100","v":87.999999999999986},"--",{"$f":"(Quarterly!FH56-Quarterly!FH52)*100","v":124.33333333333331},{"$f":"(Quarterly!FI56-Quarterly!FI52)*100","v":135.99999999999994},null,null,null,null,null,null,"--","--","--","--","--","--","--","--","--",null,null,null,null,null,{"$f":"((Quarterly!GD56/Quarterly!GD52)-1)","v":0},"--","--","--","--","--","--","--","--"]
["70'Q3",{"$f":"((Quarterly!B57/Quarterly!B53)-1)","v":5.4693919474116726E-2},{"$f":"((Quarterly!C57/Quarterly!C53)-1)","v":4.4487676997928549E-3},{"$f":"((Quarterly!D57/Quarterly!D53)-1)","v":9.7960852559713096E-3},{"$f":"((Quarterly!E57/Quarterly!E53)-1)","v":2.7832512315270952E-2},{"$f":"((Quarterly!F57/Quarterly!F53)-1)","v":-4.1369186628410493E-3},{"$f":"((Quarterly!G57/Quarterly!G53)-1)","v":2.1993883792049029E-2},{"$f":"((Quarterly!H57/Quarterly!H53)-1)","v":3.3441660526632111E-2},{"$f":"((Quarterly!I57/Quarterly!I53)-1)","v":-1.5238954012623873E-2},{"$f":"((Quarterly!J57/Quarterly!J53)-1)","v":-4.8052472994331352E-2},{"$f":"((Quarterly!K57/Quarterly!K53)-1)","v":-8.7200598802395168E-2},{"$f":"((Quarterly!L57-Quarterly!L53))","v":-20.873000000000001},{"$f":"((Quarterly!M57/Quarterly!M53)-1)","v":2.9510544283617435E-3},{"$f":"((Quarterly!N57/Quarterly!N53)-1)","v":8.5075366460772628E-2},{"$f":"((Quarterly!O57/Quarterly!O53)-1)","v":-0.17692045583614135},{"$f":"((Quarterly!P57/Quarterly!P53)-1)","v":-2.4765880174038024E-2},{"$f":"((Quarterly!Q57/Quarterly!Q53)-1)","v":3.5780996523754345},null,null,null,null,null,"--","--",{"$f":"((Quarterly!Y57/Quarterly!Y53)-1)","v":5.0185698626603825E-2},"--",{"$f":"((Quarterly!AA57/Quarterly!AA53)-1)","v":-5.4173715848961468E-2},{"$f":"((Quarterly!AB57/Quarterly!AB53)-1)","v":-9.6417172861113953E-2},"--","--","--","--","--","--","--","--","--","--",{"$f":"((Quarterly!AM57/Quarterly!AM53)-1)","v":-3.9129786130945754E-2},"--","--","--",{"$f":"Quarterly!AQ57-Quarterly!AQ53","v":-7.0333333333333314},"--","--",{"$f":"Quarterly!AT57-Quarterly!AT53","v":-11.43333333333333},"--","--",{"$f":"Quarterly!AW57-Quarterly!AW53","v":-4.4000000000000057},{"$f":"Quarterly!AX57-Quarterly!AX53","v":-1.0666666666666629},{"$f":"Quarterly!AY57-Quarterly!AY53","v":-12.299999999999997},{"$f":"Quarterly!AZ57-Quarterly!AZ53","v":-3.6000000000000014},{"$f":"Quarterly!BA57-Quarterly!BA53","v":-20.833333333333329},"--","--","--","--",{"$f":"((Quarterly!BF57/Quarterly!BF53)-1)","v":7.1544715447154461E-2},{"$f":"((Quarterly!BG57/Quarterly!BG53)-1)","v":2.9220350908051529E-2},{"$f":"((Quarterly!BH57/Quarterly!BH53)-1)","v":1.3957269283271234E-2},{"$f":"((Quarterly!BI57/Quarterly!BI53)-1)","v":4.1156676404245029E-2},{"$f":"((Quarterly!BJ57/Quarterly!BJ53)-1)","v":-0.12018761458060512},"--",null,"--","--",null,null,null,null,null,{"$f":"((Quarterly!BT57/Quarterly!BT53)-1)","v":4.7494972999221119E-2},"--","--",{"$f":"((Quarterly!BW57/Quarterly!BW53)-1)","v":7.2223046121904222E-2},{"$f":"((Quarterly!BX57/Quarterly!BX53)-1)","v":5.1263879045594152E-2},{"$f":"((Quarterly!BY57/Quarterly!BY53)-1)","v":7.4131674442716289E-2},"--","--",{"$f":"((Quarterly!CB57/Quarterly!CB53)-1)","v":0.19388032527543642},{"$f":"((Quarterly!CC57/Quarterly!CC53)-1)","v":0.24876518628215916},"--","--",null,"--","--",null,{"$f":"((Quarterly!CJ57/Quarterly!CJ53)-1)","v":0.24401913875598091},{"$f":"((Quarterly!CK57/Quarterly!CK53)-1)","v":7.6354679802955738E-2},{"$f":"((Quarterly!CL57/Quarterly!CL53)-1)","v":0.23330618892508137},{"$f":"((Quarterly!CM57/Quarterly!CM53)-1)","v":6.6073697585768754E-2},{"$f":"((Quarterly!CN57/Quarterly!CN53)-1)","v":4.5789191973257592E-2},{"$f":"((Quarterly!CO57/Quarterly!CO53)-1)","v":-4.4654088050314455E-2},{"$f":"((Quarterly!CP57/Quarterly!CP53)-1)","v":4.5357201500380473E-2},{"$f":"((Quarterly!CQ57/Quarterly!CQ53)-1)","v":1.1900224104731016E-2},{"$f":"((Quarterly!CR57/Quarterly!CR53)-1)","v":0.51354227873923208},"--","--",null,null,null,null,null,{"$f":"((Quarterly!CZ57/Quarterly!CZ53)-1)","v":5.6859205776173427E-2},{"$f":"((Quarterly!DA57/Quarterly!DA53)-1)","v":6.2015503875969102E-2},null,null,null,null,null,{"$f":"((Quarterly!DG57/Quarterly!DG53)-1)","v":-2.2002200220021972E-2},{"$f":"((Quarterly!DH57-Quarterly!DH53)*60)","v":-34.000000000000199},{"$f":"Quarterly!DI57-Quarterly!DI53","v":6.6666666666662877E-2},"--",{"$f":"(Quarterly!DK57-Quarterly!DK53)*100","v":160.00000000000006},{"$f":"((Quarterly!DL57/Quarterly!DL53)-1)","v":-4.785022042156728E-2},null,null,null,{"$f":"((Quarterly!DP57/Quarterly!DP53)-1)","v":1.3261102646577871E-3},null,null,null,null,{"$f":"Quarterly!DU57-Quarterly!DU53","v":0.73333333333333339},"--","--","--","--","--","--","--","--",null,null,null,null,null,{"$f":"((Quarterly!EI57/Quarterly!EI53)-1)","v":-2.3304079369546149E-2},{"$f":"((Quarterly!EJ57/Quarterly!EJ53)-1)","v":1.3497146829133388E-3},{"$f":"((Quarterly!EK57/Quarterly!EK53)-1)","v":1.2573808079036297E-2},null,null,null,null,null,{"$f":"((Quarterly!EQ57/Quarterly!EQ53)-1)","v":3.5414725069897512E-2},"--",{"$f":"((Quarterly!ES57/Quarterly!ES53)-1)","v":4.600694444444442E-2},null,null,null,null,null,{"$f":"(Quarterly!EY57-Quarterly!EY53)*100","v":-55.666666666666757},{"$f":"(Quarterly!EZ57-Quarterly!EZ53)*100","v":-227.99999999999994},{"$f":"(Quarterly!FA57-Quarterly!FA53)*100","v":115.66666666666671},{"$f":"(Quarterly!FB57-Quarterly!FB53)*100","v":149.33333333333331},"--","--",{"$f":"(Quarterly!FE57-Quarterly!FE53)*100","v":-69.666666666666629},{"$f":"(Quarterly!FF57-Quarterly!FF53)*100","v":-71.666666666666586},"--",{"$f":"(Quarterly!FH57-Quarterly!FH53)*100","v":28.000000000000025},{"$f":"(Quarterly!FI57-Quarterly!FI53)*100","v":60.33333333333335},null,null,null,null,null,null,"--","--","--","--","--","--","--","--","--",null,null,null,null,null,{"$f":"((Quarterly!GD57/Quarterly!GD53)-1)","v":-1.1940298507462699E-2},"--","--","--","--","--","--","--","--"]
["70'Q4",{"$f":"((Quarterly!B58/Quarterly!B54)-1)","v":4.8735468286538186E-2},{"$f":"((Quarterly!C58/Quarterly!C54)-1)","v":-1.5243446622170698E-3},{"$f":"((Quarterly!D58/Quarterly!D54)-1)","v":7.5827197601208152E-3},{"$f":"((Quarterly!E58/Quarterly!E54)-1)","v":1.6930219569239346E-2},{"$f":"((Quarterly!F58/Quarterly!F54)-1)","v":-6.6711319490957988E-2},{"$f":"((Quarterly!G58/Quarterly!G54)-1)","v":2.7023742982818622E-2},{"$f":"((Quarterly!H58/Quarterly!H54)-1)","v":1.8991027160898621E-2},{"$f":"((Quarterly!I58/Quarterly!I54)-1)","v":-4.4008339376359396E-2},{"$f":"((Quarterly!J58/Quarterly!J54)-1)","v":-8.9122520373437042E-2},{"$f":"((Quarterly!K58/Quarterly!K54)-1)","v":8.8009689140088776E-2},{"$f":"((Quarterly!L58-Quarterly!L54))","v":-35.838000000000001},{"$f":"((Quarterly!M58/Quarterly!M54)-1)","v":2.981833017351021E-2},{"$f":"((Quarterly!N58/Quarterly!N54)-1)","v":5.8642989633871379E-2},{"$f":"((Quarterly!O58/Quarterly!O54)-1)","v":-4.3596691588520309E-2},{"$f":"((Quarterly!P58/Quarterly!P54)-1)","v":-1.1322103951948992E-2},{"$f":"((Quarterly!Q58/Quarterly!Q54)-1)","v":2.5607268090532354},null,null,null,null,null,"--","--",{"$f":"((Quarterly!Y58/Quarterly!Y54)-1)","v":4.8037694486754434E-2},"--",{"$f":"((Quarterly!AA58/Quarterly!AA54)-1)","v":-8.598778676349228E-2},{"$f":"((Quarterly!AB58/Quarterly!AB54)-1)","v":-8.0022404779686362E-2},"--","--","--","--","--","--","--","--","--","--",{"$f":"((Quarterly!AM58/Quarterly!AM54)-1)","v":-5.3971669207557249E-2},"--","--","--",{"$f":"Quarterly!AQ58-Quarterly!AQ54","v":-10.766666666666673},"--","--",{"$f":"Quarterly!AT58-Quarterly!AT54","v":-12.833333333333329},"--","--",{"$f":"Quarterly!AW58-Quarterly!AW54","v":-8.3000000000000043},{"$f":"Quarterly!AX58-Quarterly!AX54","v":-3.7666666666666657},{"$f":"Quarterly!AY58-Quarterly!AY54","v":-16.300000000000011},{"$f":"Quarterly!AZ58-Quarterly!AZ54","v":-8.4333333333333371},{"$f":"Quarterly!BA58-Quarterly!BA54","v":-27.79999999999999},"--","--","--","--",{"$f":"((Quarterly!BF58/Quarterly!BF54)-1)","v":6.1652576168447881E-2},{"$f":"((Quarterly!BG58/Quarterly!BG54)-1)","v":2.4706895409684071E-2},{"$f":"((Quarterly!BH58/Quarterly!BH54)-1)","v":5.3774939655963916E-3},{"$f":"((Quarterly!BI58/Quarterly!BI54)-1)","v":3.6088432916696833E-2},{"$f":"((Quarterly!BJ58/Quarterly!BJ54)-1)","v":-0.15738935104045826},"--",null,"--","--",null,null,null,null,null,{"$f":"((Quarterly!BT58/Quarterly!BT54)-1)","v":4.3580261193470582E-2},"--","--",{"$f":"((Quarterly!BW58/Quarterly!BW54)-1)","v":6.514196495691893E-2},{"$f":"((Quarterly!BX58/Quarterly!BX54)-1)","v":0.30048260096520196},{"$f":"((Quarterly!BY58/Quarterly!BY54)-1)","v":0.35682201010668169},"--","--",{"$f":"((Quarterly!CB58/Quarterly!CB54)-1)","v":0.21646129852820684},{"$f":"((Quarterly!CC58/Quarterly!CC54)-1)","v":0.30441271705897033},"--","--",null,"--","--",null,{"$f":"((Quarterly!CJ58/Quarterly!CJ54)-1)","v":0.31143740340030912},{"$f":"((Quarterly!CK58/Quarterly!CK54)-1)","v":6.7289870255460071E-2},{"$f":"((Quarterly!CL58/Quarterly!CL54)-1)","v":0.22587104525430535},{"$f":"((Quarterly!CM58/Quarterly!CM54)-1)","v":0.31455610635421372},{"$f":"((Quarterly!CN58/Quarterly!CN54)-1)","v":3.5032517310833455E-2},{"$f":"((Quarterly!CO58/Quarterly!CO54)-1)","v":-1.7330803289057561E-2},{"$f":"((Quarterly!CP58/Quarterly!CP54)-1)","v":3.6147931862715144E-2},{"$f":"((Quarterly!CQ58/Quarterly!CQ54)-1)","v":1.2405053753048678E-2},{"$f":"((Quarterly!CR58/Quarterly!CR54)-1)","v":0.41523899304520118},"--","--",null,null,null,null,null,{"$f":"((Quarterly!CZ58/Quarterly!CZ54)-1)","v":5.600000000000005E-2},{"$f":"((Quarterly!DA58/Quarterly!DA54)-1)","v":6.4570943075615839E-2},null,null,null,null,null,{"$f":"((Quarterly!DG58/Quarterly!DG54)-1)","v":-3.8989566172432877E-2},{"$f":"((Quarterly!DH58-Quarterly!DH54)*60)","v":-42.000000000000171},{"$f":"Quarterly!DI58-Quarterly!DI54","v":0.13333333333332575},"--",{"$f":"(Quarterly!DK58-Quarterly!DK54)*100","v":226.66666666666666},{"$f":"((Quarterly!DL58/Quarterly!DL54)-1)","v":-7.3049581571132949E-2},null,null,null,{"$f":"((Quarterly!DP58/Quarterly!DP54)-1)","v":-8.1003715207990101E-3},null,null,null,null,{"$f":"Quarterly!DU58-Quarterly!DU54","v":0.93333333333333357},"--","--","--","--","--","--","--","--",null,null,null,null,null,{"$f":"((Quarterly!EI58/Quarterly!EI54)-1)","v":-6.4284310609089568E-3},{"$f":"((Quarterly!EJ58/Quarterly!EJ54)-1)","v":3.9909797817947457E-3},{"$f":"((Quarterly!EK58/Quarterly!EK54)-1)","v":8.1639709882102007E-3},null,null,null,null,null,{"$f":"((Quarterly!EQ58/Quarterly!EQ54)-1)","v":2.7700831024930705E-2},"--",{"$f":"((Quarterly!ES58/Quarterly!ES54)-1)","v":5.1325919589392699E-2},null,null,null,null,null,{"$f":"(Quarterly!EY58-Quarterly!EY54)*100","v":-126.66666666666657},{"$f":"(Quarterly!EZ58-Quarterly!EZ54)*100","v":-337.3333333333332},{"$f":"(Quarterly!FA58-Quarterly!FA54)*100","v":44.000000000000043},{"$f":"(Quarterly!FB58-Quarterly!FB54)*100","v":90.333333333333243},"--","--",{"$f":"(Quarterly!FE58-Quarterly!FE54)*100","v":-200},{"$f":"(Quarterly!FF58-Quarterly!FF54)*100","v":-225.33333333333337},"--",{"$f":"(Quarterly!FH58-Quarterly!FH54)*100","v":-115.33333333333343},{"$f":"(Quarterly!FI58-Quarterly!FI54)*100","v":-44.333333333333428},null,null,null,null,null,null,"--","--","--","--","--","--","--","--","--",null,null,null,null,null,{"$f":"((Quarterly!GD58/Quarterly!GD54)-1)","v":1.2935323383084452E-2},"--","--","--","--","--","--","--","--"]
["71'Q1",{"$f":"((Quarterly!B59/Quarterly!B55)-1)","v":8.0001670577336315E-2},{"$f":"((Quarterly!C59/Quarterly!C55)-1)","v":2.7030799352129264E-2},{"$f":"((Quarterly!D59/Quarterly!D55)-1)","v":1.7388473925854964E-2},{"$f":"((Quarterly!E59/Quarterly!E55)-1)","v":3.0009714127116283E-2},{"$f":"((Quarterly!F59/Quarterly!F55)-1)","v":4.9452418202843074E-2},{"$f":"((Quarterly!G59/Quarterly!G55)-1)","v":2.245674907233397E-2},{"$f":"((Quarterly!H59/Quarterly!H55)-1)","v":3.2138188508578303E-2},{"$f":"((Quarterly!I59/Quarterly!I55)-1)","v":-2.9303026153635447E-2},{"$f":"((Quarterly!J59/Quarterly!J55)-1)","v":-7.397692816158119E-2},{"$f":"((Quarterly!K59/Quarterly!K55)-1)","v":0.14262691377921044},{"$f":"((Quarterly!L59-Quarterly!L55))","v":38.277000000000001},{"$f":"((Quarterly!M59/Quarterly!M55)-1)","v":2.1023696302092665E-2},{"$f":"((Quarterly!N59/Quarterly!N55)-1)","v":5.4385974608824439E-2},{"$f":"((Quarterly!O59/Quarterly!O55)-1)","v":-6.7398119122257016E-2},{"$f":"((Quarterly!P59/Quarterly!P55)-1)","v":-2.1041674335660621E-2},{"$f":"((Quarterly!Q59/Quarterly!Q55)-1)","v":1.0451256236235338},null,null,null,null,null,"--","--",{"$f":"((Quarterly!Y59/Quarterly!Y55)-1)","v":5.6787521344902059E-2},"--",{"$f":"((Quarterly!AA59/Quarterly!AA55)-1)","v":9.2064470162330991E-2},{"$f":"((Quarterly!AB59/Quarterly!AB55)-1)","v":0.17139157286582329},"--","--","--","--","--","--","--","--","--","--",{"$f":"((Quarterly!AM59/Quarterly!AM55)-1)","v":-1.1791847372420783E-2},"--","--","--",{"$f":"Quarterly!AQ59-Quarterly!AQ55","v":3.6333333333333258},"--","--",{"$f":"Quarterly!AT59-Quarterly!AT55","v":-0.79999999999999005},"--","--",{"$f":"Quarterly!AW59-Quarterly!AW55","v":-1.1999999999999957},{"$f":"Quarterly!AX59-Quarterly!AX55","v":12.533333333333324},{"$f":"Quarterly!AY59-Quarterly!AY55","v":-8.7333333333333343},{"$f":"Quarterly!AZ59-Quarterly!AZ55","v":7.8666666666666671},{"$f":"Quarterly!BA59-Quarterly!BA55","v":-11.966666666666661},"--","--","--","--",{"$f":"((Quarterly!BF59/Quarterly!BF55)-1)","v":6.4321529301159641E-2},{"$f":"((Quarterly!BG59/Quarterly!BG55)-1)","v":5.1705533901477585E-2},{"$f":"((Quarterly!BH59/Quarterly!BH55)-1)","v":1.547491995731054E-2},{"$f":"((Quarterly!BI59/Quarterly!BI55)-1)","v":1.2025046250177862E-2},{"$f":"((Quarterly!BJ59/Quarterly!BJ55)-1)","v":7.673841722013286E-2},"--",null,"--","--",null,null,null,null,null,{"$f":"((Quarterly!BT59/Quarterly!BT55)-1)","v":4.7164661625501036E-2},"--","--",{"$f":"((Quarterly!BW59/Quarterly!BW55)-1)","v":5.2024268541619234E-2},{"$f":"((Quarterly!BX59/Quarterly!BX55)-1)","v":0.47721757886222704},{"$f":"((Quarterly!BY59/Quarterly!BY55)-1)","v":0.5066425120772946},"--","--",{"$f":"((Quarterly!CB59/Quarterly!CB55)-1)","v":3.3958500817807602E-2},{"$f":"((Quarterly!CC59/Quarterly!CC55)-1)","v":0.11942702304834829},"--","--",null,"--","--",null,{"$f":"((Quarterly!CJ59/Quarterly!CJ55)-1)","v":0.56745707277187241},{"$f":"((Quarterly!CK59/Quarterly!CK55)-1)","v":7.2743832415950394E-2},{"$f":"((Quarterly!CL59/Quarterly!CL55)-1)","v":0.21313980137509558},{"$f":"((Quarterly!CM59/Quarterly!CM55)-1)","v":0.49903006789524706},{"$f":"((Quarterly!CN59/Quarterly!CN55)-1)","v":4.5548818608528219E-2},{"$f":"((Quarterly!CO59/Quarterly!CO55)-1)","v":3.1092762224229409E-2},{"$f":"((Quarterly!CP59/Quarterly!CP55)-1)","v":5.3501119773328609E-2},{"$f":"((Quarterly!CQ59/Quarterly!CQ55)-1)","v":1.3032402906474116E-2},{"$f":"((Quarterly!CR59/Quarterly!CR55)-1)","v":0.90281394961372863},"--","--",null,null,null,null,null,{"$f":"((Quarterly!CZ59/Quarterly!CZ55)-1)","v":4.8118985126859082E-2},{"$f":"((Quarterly!DA59/Quarterly!DA55)-1)","v":5.8577405857740628E-2},null,null,null,null,null,{"$f":"((Quarterly!DG59/Quarterly!DG55)-1)","v":-3.036996134732195E-2},{"$f":"((Quarterly!DH59-Quarterly!DH55)*60)","v":-31.999999999999886},{"$f":"Quarterly!DI59-Quarterly!DI55","v":-0.30000000000000426},"--",{"$f":"(Quarterly!DK59-Quarterly!DK55)*100","v":176.66666666666666},{"$f":"((Quarterly!DL59/Quarterly!DL55)-1)","v":-6.3378366125668717E-2},null,null,null,{"$f":"((Quarterly!DP59/Quarterly!DP55)-1)","v":-6.5488099022119606E-3},null,null,null,null,{"$f":"Quarterly!DU59-Quarterly!DU55","v":1.7333333333333334},"--","--","--","--","--","--","--","--",null,null,null,null,null,{"$f":"((Quarterly!EI59/Quarterly!EI55)-1)","v":3.4221749108826804E-2},{"$f":"((Quarterly!EJ59/Quarterly!EJ55)-1)","v":3.0207198012041969E-2},{"$f":"((Quarterly!EK59/Quarterly!EK55)-1)","v":2.7448884445996136E-2},null,null,null,null,null,{"$f":"((Quarterly!EQ59/Quarterly!EQ55)-1)","v":2.6387625113739821E-2},"--",{"$f":"((Quarterly!ES59/Quarterly!ES55)-1)","v":4.9873203719357662E-2},null,null,null,null,null,{"$f":"(Quarterly!EY59-Quarterly!EY55)*100","v":-259.33333333333326},{"$f":"(Quarterly!EZ59-Quarterly!EZ55)*100","v":-471.66666666666652},{"$f":"(Quarterly!FA59-Quarterly!FA55)*100","v":-67.666666666666586},{"$f":"(Quarterly!FB59-Quarterly!FB55)*100","v":-22.666666666666657},"--","--",{"$f":"(Quarterly!FE59-Quarterly!FE55)*100","v":-337},{"$f":"(Quarterly!FF59-Quarterly!FF55)*100","v":-350.33333333333337},"--",{"$f":"(Quarterly!FH59-Quarterly!FH55)*100","v":-225},{"$f":"(Quarterly!FI59-Quarterly!FI55)*100","v":-135.00000000000006},null,null,null,null,null,null,"--","--","--","--","--","--","--","--","--",null,null,null,null,null,{"$f":"((Quarterly!GD59/Quarterly!GD55)-1)","v":6.2686567164179197E-2},"--","--","--","--","--","--","--","--"]
["71'Q2",{"$f":"((Quarterly!B60/Quarterly!B56)-1)","v":8.3397968433151837E-2},{"$f":"((Quarterly!C60/Quarterly!C56)-1)","v":3.1067507789833471E-2},{"$f":"((Quarterly!D60/Quarterly!D56)-1)","v":2.6297946203969191E-2},{"$f":"((Quarterly!E60/Quarterly!E56)-1)","v":3.4706633974513901E-2},{"$f":"((Quarterly!F60/Quarterly!F56)-1)","v":6.1058435881917505E-2},{"$f":"((Quarterly!G60/Quarterly!G56)-1)","v":2.5436396952454476E-2},{"$f":"((Quarterly!H60/Quarterly!H56)-1)","v":3.7070795815377089E-2},{"$f":"((Quarterly!I60/Quarterly!I56)-1)","v":-9.648074979325405E-3},{"$f":"((Quarterly!J60/Quarterly!J56)-1)","v":-4.3663304835186656E-2},{"$f":"((Quarterly!K60/Quarterly!K56)-1)","v":0.34758203799654597},{"$f":"((Quarterly!L60-Quarterly!L56))","v":18.042000000000002},{"$f":"((Quarterly!M60/Quarterly!M56)-1)","v":7.6762946639382879E-2},{"$f":"((Quarterly!N60/Quarterly!N56)-1)","v":8.2167702586799507E-3},{"$f":"((Quarterly!O60/Quarterly!O56)-1)","v":0.27522302952267097},{"$f":"((Quarterly!P60/Quarterly!P56)-1)","v":-1.1958754640034153E-2},{"$f":"((Quarterly!Q60/Quarterly!Q56)-1)","v":0.60718228655544659},null,null,null,null,null,"--","--",{"$f":"((Quarterly!Y60/Quarterly!Y56)-1)","v":6.534322980797036E-2},"--",{"$f":"((Quarterly!AA60/Quarterly!AA56)-1)","v":0.14449301713799367},{"$f":"((Quarterly!AB60/Quarterly!AB56)-1)","v":0.11802742576833047},"--","--","--","--","--","--","--","--","--","--",{"$f":"((Quarterly!AM60/Quarterly!AM56)-1)","v":2.6753645932164893E-3},"--","--","--",{"$f":"Quarterly!AQ60-Quarterly!AQ56","v":6.3999999999999915},"--","--",{"$f":"Quarterly!AT60-Quarterly!AT56","v":5.8999999999999986},"--","--",{"$f":"Quarterly!AW60-Quarterly!AW56","v":13.199999999999996},{"$f":"Quarterly!AX60-Quarterly!AX56","v":10.100000000000001},{"$f":"Quarterly!AY60-Quarterly!AY56","v":-2.2333333333333485},{"$f":"Quarterly!AZ60-Quarterly!AZ56","v":10.666666666666664},{"$f":"Quarterly!BA60-Quarterly!BA56","v":-11.933333333333337},"--","--","--","--",{"$f":"((Quarterly!BF60/Quarterly!BF56)-1)","v":6.3083211228503133E-2},{"$f":"((Quarterly!BG60/Quarterly!BG56)-1)","v":3.941175194672808E-2},{"$f":"((Quarterly!BH60/Quarterly!BH56)-1)","v":1.9097618504146707E-2},{"$f":"((Quarterly!BI60/Quarterly!BI56)-1)","v":2.2753937497777876E-2},{"$f":"((Quarterly!BJ60/Quarterly!BJ56)-1)","v":0.13228372017529622},"--",null,"--","--",null,null,null,null,null,{"$f":"((Quarterly!BT60/Quarterly!BT56)-1)","v":7.1607491174031201E-2},"--","--",{"$f":"((Quarterly!BW60/Quarterly!BW56)-1)","v":4.4043988023616976E-2},{"$f":"((Quarterly!BX60/Quarterly!BX56)-1)","v":0.53871541000253864},{"$f":"((Quarterly!BY60/Quarterly!BY56)-1)","v":0.45069695405265886},"--","--",{"$f":"((Quarterly!CB60/Quarterly!CB56)-1)","v":-5.4728726155905072E-2},{"$f":"((Quarterly!CC60/Quarterly!CC56)-1)","v":1.4282485623457353E-2},"--","--",null,"--","--",null,{"$f":"((Quarterly!CJ60/Quarterly!CJ56)-1)","v":0.37965616045845274},{"$f":"((Quarterly!CK60/Quarterly!CK56)-1)","v":7.7629997285664665E-2},{"$f":"((Quarterly!CL60/Quarterly!CL56)-1)","v":0.19581411848173125},{"$f":"((Quarterly!CM60/Quarterly!CM56)-1)","v":0.51384615384615384},{"$f":"((Quarterly!CN60/Quarterly!CN56)-1)","v":4.843075715967049E-2},{"$f":"((Quarterly!CO60/Quarterly!CO56)-1)","v":9.9215321186328032E-2},{"$f":"((Quarterly!CP60/Quarterly!CP56)-1)","v":7.1247397978886795E-2},{"$f":"((Quarterly!CQ60/Quarterly!CQ56)-1)","v":1.2949670760037835E-2},{"$f":"((Quarterly!CR60/Quarterly!CR56)-1)","v":0.8344617114403885},"--","--",null,null,null,null,null,{"$f":"((Quarterly!CZ60/Quarterly!CZ56)-1)","v":4.3140638481449667E-2},{"$f":"((Quarterly!DA60/Quarterly!DA56)-1)","v":5.0123253903040288E-2},null,null,null,null,null,{"$f":"((Quarterly!DG60/Quarterly!DG56)-1)","v":-1.0638297872340385E-2},{"$f":"((Quarterly!DH60-Quarterly!DH56)*60)","v":-12.000000000000171},{"$f":"Quarterly!DI60-Quarterly!DI56","v":-0.3333333333333357},"--",{"$f":"(Quarterly!DK60-Quarterly!DK56)*100","v":113.33333333333346},{"$f":"((Quarterly!DL60/Quarterly!DL56)-1)","v":-4.8979064357715152E-2},null,null,null,{"$f":"((Quarterly!DP60/Quarterly!DP56)-1)","v":1.7330210772836807E-4},null,null,null,null,{"$f":"Quarterly!DU60-Quarterly!DU56","v":1.7333333333333325},"--","--","--","--","--","--","--","--",null,null,null,null,null,{"$f":"((Quarterly!EI60/Quarterly!EI56)-1)","v":6.3782201505256264E-2},{"$f":"((Quarterly!EJ60/Quarterly!EJ56)-1)","v":4.2950025894297195E-2},{"$f":"((Quarterly!EK60/Quarterly!EK56)-1)","v":3.2935104241928137E-2},null,null,null,null,null,{"$f":"((Quarterly!EQ60/Quarterly!EQ56)-1)","v":3.3484162895927705E-2},"--",{"$f":"((Quarterly!ES60/Quarterly!ES56)-1)","v":4.690117252931314E-2},null,null,null,null,null,{"$f":"(Quarterly!EY60-Quarterly!EY56)*100","v":-258.66666666666663},{"$f":"(Quarterly!EZ60-Quarterly!EZ56)*100","v":-331.66666666666663},{"$f":"(Quarterly!FA60-Quarterly!FA56)*100","v":-66.6666666666667},{"$f":"(Quarterly!FB60-Quarterly!FB56)*100","v":-36.999999999999922},"--","--",{"$f":"(Quarterly!FE60-Quarterly!FE56)*100","v":-242.66666666666669},{"$f":"(Quarterly!FF60-Quarterly!FF56)*100","v":-246},"--",{"$f":"(Quarterly!FH60-Quarterly!FH56)*100","v":-162},{"$f":"(Quarterly!FI60-Quarterly!FI56)*100","v":-146.66666666666677},null,null,null,null,null,null,"--","--","--","--","--","--","--","--","--",null,null,null,null,null,{"$f":"((Quarterly!GD60/Quarterly!GD56)-1)","v":6.2686567164179197E-2},"--","--","--","--","--","--","--","--"]
["71'Q3",{"$f":"((Quarterly!B61/Quarterly!B57)-1)","v":8.4387038212669241E-2},{"$f":"((Quarterly!C61/Quarterly!C57)-1)","v":3.0004332368552822E-2},{"$f":"((Quarterly!D61/Quarterly!D57)-1)","v":2.5976862551965629E-2},{"$f":"((Quarterly!E61/Quarterly!E57)-1)","v":3.3891342302557304E-2},{"$f":"((Quarterly!F61/Quarterly!F57)-1)","v":8.5427135678391775E-2},{"$f":"((Quarterly!G61/Quarterly!G57)-1)","v":1.6038684349116705E-2},{"$f":"((Quarterly!H61/Quarterly!H57)-1)","v":3.8381775531484807E-2},{"$f":"((Quarterly!I61/Quarterly!I57)-1)","v":-8.7446204560024388E-3},{"$f":"((Quarterly!J61/Quarterly!J57)-1)","v":-5.1770911073083292E-2},{"$f":"((Quarterly!K61/Quarterly!K57)-1)","v":0.34235342353423515},{"$f":"((Quarterly!L61-Quarterly!L57))","v":16.176999999999996},{"$f":"((Quarterly!M61/Quarterly!M57)-1)","v":0.10309737829192578},{"$f":"((Quarterly!N61/Quarterly!N57)-1)","v":5.3133811604900272E-2},{"$f":"((Quarterly!O61/Quarterly!O57)-1)","v":0.24736277215578006},{"$f":"((Quarterly!P61/Quarterly!P57)-1)","v":-1.654057490701899E-2},{"$f":"((Quarterly!Q61/Quarterly!Q57)-1)","v":0.30876509149813969},null,null,null,null,null,"--","--",{"$f":"((Quarterly!Y61/Quarterly!Y57)-1)","v":6.4422161275052403E-2},"--",{"$f":"((Quarterly!AA61/Quarterly!AA57)-1)","v":0.20223778352869548},{"$f":"((Quarterly!AB61/Quarterly!AB57)-1)","v":0.20625154294612513},"--","--","--","--","--","--","--","--","--","--",{"$f":"((Quarterly!AM61/Quarterly!AM57)-1)","v":9.3802595076457607E-3},"--","--","--",{"$f":"Quarterly!AQ61-Quarterly!AQ57","v":7.3999999999999986},"--","--",{"$f":"Quarterly!AT61-Quarterly!AT57","v":10.233333333333334},"--","--",{"$f":"Quarterly!AW61-Quarterly!AW57","v":4.5333333333333385},{"$f":"Quarterly!AX61-Quarterly!AX57","v":9.5666666666666629},{"$f":"Quarterly!AY61-Quarterly!AY57","v":-4.7666666666666657},{"$f":"Quarterly!AZ61-Quarterly!AZ57","v":7.4666666666666544},{"$f":"Quarterly!BA61-Quarterly!BA57","v":1.1999999999999957},"--","--","--","--",{"$f":"((Quarterly!BF61/Quarterly!BF57)-1)","v":6.0318664643399078E-2},{"$f":"((Quarterly!BG61/Quarterly!BG57)-1)","v":3.2812800410159992E-2},{"$f":"((Quarterly!BH61/Quarterly!BH57)-1)","v":1.6866084799346703E-2},{"$f":"((Quarterly!BI61/Quarterly!BI57)-1)","v":2.6601790026992589E-2},{"$f":"((Quarterly!BJ61/Quarterly!BJ57)-1)","v":0.22087516575108923},"--",null,"--","--",null,null,null,null,null,{"$f":"((Quarterly!BT61/Quarterly!BT57)-1)","v":8.8654440577879523E-2},"--","--",{"$f":"((Quarterly!BW61/Quarterly!BW57)-1)","v":5.0788381742738586E-2},{"$f":"((Quarterly!BX61/Quarterly!BX57)-1)","v":0.41168539325842701},{"$f":"((Quarterly!BY61/Quarterly!BY57)-1)","v":0.4645270270270272},"--","--",{"$f":"((Quarterly!CB61/Quarterly!CB57)-1)","v":-5.0591905927818814E-2},{"$f":"((Quarterly!CC61/Quarterly!CC57)-1)","v":3.9815501194981895E-3},"--","--",null,"--","--",null,{"$f":"((Quarterly!CJ61/Quarterly!CJ57)-1)","v":0.27564102564102577},{"$f":"((Quarterly!CK61/Quarterly!CK57)-1)","v":7.6086956521739024E-2},{"$f":"((Quarterly!CL61/Quarterly!CL57)-1)","v":0.10861670518322897},{"$f":"((Quarterly!CM61/Quarterly!CM57)-1)","v":0.38140643623361137},{"$f":"((Quarterly!CN61/Quarterly!CN57)-1)","v":3.7806726990043726E-2},{"$f":"((Quarterly!CO61/Quarterly!CO57)-1)","v":0.11942067149440438},{"$f":"((Quarterly!CP61/Quarterly!CP57)-1)","v":8.4510234660544636E-2},{"$f":"((Quarterly!CQ61/Quarterly!CQ57)-1)","v":1.2614326978812818E-2},{"$f":"((Quarterly!CR61/Quarterly!CR57)-1)","v":0.77091268678581915},"--","--",null,null,null,null,null,{"$f":"((Quarterly!CZ61/Quarterly!CZ57)-1)","v":4.2698548249359369E-2},{"$f":"((Quarterly!DA61/Quarterly!DA57)-1)","v":4.5417680454176823E-2},null,null,null,null,null,{"$f":"((Quarterly!DG61/Quarterly!DG57)-1)","v":-5.0618672665917464E-3},{"$f":"((Quarterly!DH61-Quarterly!DH57)*60)","v":-13.999999999999631},{"$f":"Quarterly!DI61-Quarterly!DI57","v":-0.16666666666665719},"--",{"$f":"(Quarterly!DK61-Quarterly!DK57)*100","v":86.666666666666714},{"$f":"((Quarterly!DL61/Quarterly!DL57)-1)","v":-3.6608682612281673E-2},null,null,null,{"$f":"((Quarterly!DP61/Quarterly!DP57)-1)","v":6.4245259094366514E-3},null,null,null,null,{"$f":"Quarterly!DU61-Quarterly!DU57","v":0.90000000000000036},"--","--","--","--","--","--","--","--",null,null,null,null,null,{"$f":"((Quarterly!EI61/Quarterly!EI57)-1)","v":6.4780328253069897E-2},{"$f":"((Quarterly!EJ61/Quarterly!EJ57)-1)","v":4.2114831121975893E-2},{"$f":"((Quarterly!EK61/Quarterly!EK57)-1)","v":3.1762882774095003E-2},null,null,null,null,null,{"$f":"((Quarterly!EQ61/Quarterly!EQ57)-1)","v":3.6003600360036137E-2},"--",{"$f":"((Quarterly!ES61/Quarterly!ES57)-1)","v":4.3983402489626622E-2},null,null,null,null,null,{"$f":"(Quarterly!EY61-Quarterly!EY57)*100","v":-197.33333333333326},{"$f":"(Quarterly!EZ61-Quarterly!EZ57)*100","v":-123.00000000000004},{"$f":"(Quarterly!FA61-Quarterly!FA57)*100","v":-66.333333333333314},{"$f":"(Quarterly!FB61-Quarterly!FB57)*100","v":-70.6666666666667},"--","--",{"$f":"(Quarterly!FE61-Quarterly!FE57)*100","v":-131.66666666666663},{"$f":"(Quarterly!FF61-Quarterly!FF57)*100","v":-118.66666666666674},"--",{"$f":"(Quarterly!FH61-Quarterly!FH57)*100","v":-97.000000000000057},{"$f":"(Quarterly!FI61-Quarterly!FI57)*100","v":-97.666666666666657},null,null,null,null,null,null,"--","--","--","--","--","--","--","--","--",null,null,null,null,null,{"$f":"((Quarterly!GD61/Quarterly!GD57)-1)","v":7.5528700906344337E-2},"--","--","--","--","--","--","--","--"]
["71'Q4",{"$f":"((Quarterly!B62/Quarterly!B58)-1)","v":9.356532797293915E-2},{"$f":"((Quarterly!C62/Quarterly!C58)-1)","v":4.3748450867737265E-2},{"$f":"((Quarterly!D62/Quarterly!D58)-1)","v":4.0073354515193005E-2},{"$f":"((Quarterly!E62/Quarterly!E58)-1)","v":5.3926953178635273E-2},{"$f":"((Quarterly!F62/Quarterly!F58)-1)","v":0.21221472656810669},{"$f":"((Quarterly!G62/Quarterly!G58)-1)","v":1.1168689808570553E-2},{"$f":"((Quarterly!H62/Quarterly!H58)-1)","v":6.2966611456906962E-2},{"$f":"((Quarterly!I62/Quarterly!I58)-1)","v":4.7456502157113611E-2},{"$f":"((Quarterly!J62/Quarterly!J58)-1)","v":2.8464676268370015E-2},{"$f":"((Quarterly!K62/Quarterly!K58)-1)","v":0.26233766233766231},{"$f":"((Quarterly!L62-Quarterly!L58))","v":12.885999999999999},{"$f":"((Quarterly!M62/Quarterly!M58)-1)","v":1.2622878870854448E-2},{"$f":"((Quarterly!N62/Quarterly!N58)-1)","v":-4.3903080687169416E-2},{"$f":"((Quarterly!O62/Quarterly!O58)-1)","v":0.17198208087340894},{"$f":"((Quarterly!P62/Quarterly!P58)-1)","v":-2.3755818350130964E-2},{"$f":"((Quarterly!Q62/Quarterly!Q58)-1)","v":0.20136526410026856},null,null,null,null,null,"--","--",{"$f":"((Quarterly!Y62/Quarterly!Y58)-1)","v":6.5100804029625925E-2},"--",{"$f":"((Quarterly!AA62/Quarterly!AA58)-1)","v":0.31140403675614947},{"$f":"((Quarterly!AB62/Quarterly!AB58)-1)","v":0.36863254454681993},"--","--","--","--","--","--","--","--","--","--",{"$f":"((Quarterly!AM62/Quarterly!AM58)-1)","v":5.5597104892836313E-2},"--","--","--",{"$f":"Quarterly!AQ62-Quarterly!AQ58","v":12.466666666666669},"--","--",{"$f":"Quarterly!AT62-Quarterly!AT58","v":11.766666666666666},"--","--",{"$f":"Quarterly!AW62-Quarterly!AW58","v":-3},{"$f":"Quarterly!AX62-Quarterly!AX58","v":13.700000000000003},{"$f":"Quarterly!AY62-Quarterly!AY58","v":-9.8999999999999986},{"$f":"Quarterly!AZ62-Quarterly!AZ58","v":17.133333333333347},{"$f":"Quarterly!BA62-Quarterly!BA58","v":13.599999999999994},"--","--","--","--",{"$f":"((Quarterly!BF62/Quarterly!BF58)-1)","v":5.7095635188941563E-2},{"$f":"((Quarterly!BG62/Quarterly!BG58)-1)","v":3.3462615815557095E-2},{"$f":"((Quarterly!BH62/Quarterly!BH58)-1)","v":2.0969457529250723E-2},{"$f":"((Quarterly!BI62/Quarterly!BI58)-1)","v":2.2837418500052165E-2},{"$f":"((Quarterly!BJ62/Quarterly!BJ58)-1)","v":0.37140764611102983},"--",null,"--","--",null,null,null,null,null,{"$f":"((Quarterly!BT62/Quarterly!BT58)-1)","v":0.11468941831711743},"--","--",{"$f":"((Quarterly!BW62/Quarterly!BW58)-1)","v":9.2103477293086211E-2},{"$f":"((Quarterly!BX62/Quarterly!BX58)-1)","v":0.29003906249999978},{"$f":"((Quarterly!BY62/Quarterly!BY58)-1)","v":0.2907097041175255},"--","--",{"$f":"((Quarterly!CB62/Quarterly!CB58)-1)","v":-0.17176303419148009},{"$f":"((Quarterly!CC62/Quarterly!CC58)-1)","v":-0.12205129775022094},"--","--",null,"--","--",null,{"$f":"((Quarterly!CJ62/Quarterly!CJ58)-1)","v":0.20565704183853861},{"$f":"((Quarterly!CK62/Quarterly!CK58)-1)","v":8.5812443370582692E-2},{"$f":"((Quarterly!CL62/Quarterly!CL58)-1)","v":7.9712512250898371E-2},{"$f":"((Quarterly!CM62/Quarterly!CM58)-1)","v":0.28179636612958503},{"$f":"((Quarterly!CN62/Quarterly!CN58)-1)","v":5.2590304872735638E-2},{"$f":"((Quarterly!CO62/Quarterly!CO58)-1)","v":0.12075180226570548},{"$f":"((Quarterly!CP62/Quarterly!CP58)-1)","v":0.10933354613961188},{"$f":"((Quarterly!CQ62/Quarterly!CQ58)-1)","v":1.2280559825256887E-2},{"$f":"((Quarterly!CR62/Quarterly!CR58)-1)","v":0.69005736657513395},"--","--",null,null,null,null,null,{"$f":"((Quarterly!CZ62/Quarterly!CZ58)-1)","v":3.5353535353535248E-2},{"$f":"((Quarterly!DA62/Quarterly!DA58)-1)","v":3.4317637669593282E-2},null,null,null,null,null,{"$f":"((Quarterly!DG62/Quarterly!DG58)-1)","v":2.0571428571428685E-2},{"$f":"((Quarterly!DH62-Quarterly!DH58)*60)","v":6.0000000000000853},{"$f":"Quarterly!DI62-Quarterly!DI58","v":-9.9999999999994316E-2},"--",{"$f":"(Quarterly!DK62-Quarterly!DK58)*100","v":10.000000000000053},{"$f":"((Quarterly!DL62/Quarterly!DL58)-1)","v":-2.3298256513804017E-4},null,null,null,{"$f":"((Quarterly!DP62/Quarterly!DP58)-1)","v":1.8316817653671214E-2},null,null,null,null,{"$f":"Quarterly!DU62-Quarterly!DU58","v":0.79999999999999982},"--","--","--","--","--","--","--","--",null,null,null,null,null,{"$f":"((Quarterly!EI62/Quarterly!EI58)-1)","v":7.1397922285168836E-2},{"$f":"((Quarterly!EJ62/Quarterly!EJ58)-1)","v":5.4872422576248692E-2},{"$f":"((Quarterly!EK62/Quarterly!EK58)-1)","v":4.4319944358599983E-2},null,null,null,null,null,{"$f":"((Quarterly!EQ62/Quarterly!EQ58)-1)","v":3.5040431266846195E-2},"--",{"$f":"((Quarterly!ES62/Quarterly!ES58)-1)","v":2.2782750203417246E-2},null,null,null,null,null,{"$f":"(Quarterly!EY62-Quarterly!EY58)*100","v":-159.33333333333337},{"$f":"(Quarterly!EZ62-Quarterly!EZ58)*100","v":-81.666666666666728},{"$f":"(Quarterly!FA62-Quarterly!FA58)*100","v":-60.666666666666643},{"$f":"(Quarterly!FB62-Quarterly!FB58)*100","v":-86.333333333333144},"--","--",{"$f":"(Quarterly!FE62-Quarterly!FE58)*100","v":-112.33333333333348},{"$f":"(Quarterly!FF62-Quarterly!FF58)*100","v":-91.999999999999901},"--",{"$f":"(Quarterly!FH62-Quarterly!FH58)*100","v":-71.333333333333201},{"$f":"(Quarterly!FI62-Quarterly!FI58)*100","v":-96.333333333333286},null,null,null,null,null,null,"--","--","--","--","--","--","--","--","--",null,null,null,null,null,{"$f":"((Quarterly!GD62/Quarterly!GD58)-1)","v":4.9115913555992208E-2},"--","--","--","--","--","--","--","--"]
["72'Q1",{"$f":"((Quarterly!B63/Quarterly!B59)-1)","v":8.4368067835459692E-2},{"$f":"((Quarterly!C63/Quarterly!C59)-1)","v":3.4769314337876667E-2},{"$f":"((Quarterly!D63/Quarterly!D59)-1)","v":4.2110891376443416E-2},{"$f":"((Quarterly!E63/Quarterly!E59)-1)","v":4.7795479807336116E-2},{"$f":"((Quarterly!F63/Quarterly!F59)-1)","v":0.11991184858698456},{"$f":"((Quarterly!G63/Quarterly!G59)-1)","v":1.0369043691379698E-2},{"$f":"((Quarterly!H63/Quarterly!H59)-1)","v":6.0062067296543065E-2},{"$f":"((Quarterly!I63/Quarterly!I59)-1)","v":7.1989467249729433E-2},{"$f":"((Quarterly!J63/Quarterly!J59)-1)","v":6.5594122884663708E-2},{"$f":"((Quarterly!K63/Quarterly!K59)-1)","v":0.27997179125528904},{"$f":"((Quarterly!L63-Quarterly!L59))","v":-29.798000000000002},{"$f":"((Quarterly!M63/Quarterly!M59)-1)","v":0.17446174646470203},{"$f":"((Quarterly!N63/Quarterly!N59)-1)","v":5.5769019075426307E-2},{"$f":"((Quarterly!O63/Quarterly!O59)-1)","v":0.53011858949187163},{"$f":"((Quarterly!P63/Quarterly!P59)-1)","v":-4.6884607323134375E-3},{"$f":"((Quarterly!Q63/Quarterly!Q59)-1)","v":3.7141224561556552E-3},null,null,null,null,null,"--","--",{"$f":"((Quarterly!Y63/Quarterly!Y59)-1)","v":6.3569017385707305E-2},"--",{"$f":"((Quarterly!AA63/Quarterly!AA59)-1)","v":0.22649527436874028},{"$f":"((Quarterly!AB63/Quarterly!AB59)-1)","v":0.21007517262491926},"--","--","--","--","--","--","--","--","--","--",{"$f":"((Quarterly!AM63/Quarterly!AM59)-1)","v":7.9512513182410149E-2},"--","--","--",{"$f":"Quarterly!AQ63-Quarterly!AQ59","v":8.7000000000000099},"--","--",{"$f":"Quarterly!AT63-Quarterly!AT59","v":9.8666666666666671},"--","--",{"$f":"Quarterly!AW63-Quarterly!AW59","v":1.6666666666666572},{"$f":"Quarterly!AX63-Quarterly!AX59","v":7.0000000000000142},{"$f":"Quarterly!AY63-Quarterly!AY59","v":10.200000000000003},{"$f":"Quarterly!AZ63-Quarterly!AZ59","v":10.63333333333334},{"$f":"Quarterly!BA63-Quarterly!BA59","v":11.966666666666669},"--","--","--","--",{"$f":"((Quarterly!BF63/Quarterly!BF59)-1)","v":6.3452337136547632E-2},{"$f":"((Quarterly!BG63/Quarterly!BG59)-1)","v":1.8383969513599441E-2},{"$f":"((Quarterly!BH63/Quarterly!BH59)-1)","v":2.743037309511287E-2},{"$f":"((Quarterly!BI63/Quarterly!BI59)-1)","v":4.4224143992125375E-2},{"$f":"((Quarterly!BJ63/Quarterly!BJ59)-1)","v":0.23496333729686869},"--",null,"--","--",null,null,null,null,null,{"$f":"((Quarterly!BT63/Quarterly!BT59)-1)","v":0.13668590155455096},"--","--",{"$f":"((Quarterly!BW63/Quarterly!BW59)-1)","v":6.8720187565688429E-2},{"$f":"((Quarterly!BX63/Quarterly!BX59)-1)","v":0.31739368497901088},{"$f":"((Quarterly!BY63/Quarterly!BY59)-1)","v":0.30501002004008004},"--","--",{"$f":"((Quarterly!CB63/Quarterly!CB59)-1)","v":-0.13717554250491726},{"$f":"((Quarterly!CC63/Quarterly!CC59)-1)","v":-0.10676828697406016},"--","--",null,"--","--",null,{"$f":"((Quarterly!CJ63/Quarterly!CJ59)-1)","v":6.8857589984350653E-2},{"$f":"((Quarterly!CK63/Quarterly!CK59)-1)","v":9.1878922111480188E-2},{"$f":"((Quarterly!CL63/Quarterly!CL59)-1)","v":-3.4634760705289924E-3},{"$f":"((Quarterly!CM63/Quarterly!CM59)-1)","v":0.28696214817211274},{"$f":"((Quarterly!CN63/Quarterly!CN59)-1)","v":3.6635946887368487E-2},{"$f":"((Quarterly!CO63/Quarterly!CO59)-1)","v":0.11524024024023993},{"$f":"((Quarterly!CP63/Quarterly!CP59)-1)","v":0.10503780197923462},{"$f":"((Quarterly!CQ63/Quarterly!CQ59)-1)","v":1.1614722196684246E-2},{"$f":"((Quarterly!CR63/Quarterly!CR59)-1)","v":0.12542224475218333},"--","--",null,null,null,null,null,{"$f":"((Quarterly!CZ63/Quarterly!CZ59)-1)","v":3.5058430717863187E-2},{"$f":"((Quarterly!DA63/Quarterly!DA59)-1)","v":3.3201581027667793E-2},null,null,null,null,null,{"$f":"((Quarterly!DG63/Quarterly!DG59)-1)","v":3.3599088838268898E-2},{"$f":"((Quarterly!DH63-Quarterly!DH59)*60)","v":9.9999999999998579},{"$f":"Quarterly!DI63-Quarterly!DI59","v":0.13333333333333997},"--",{"$f":"(Quarterly!DK63-Quarterly!DK59)*100","v":-16.666666666666696},{"$f":"((Quarterly!DL63/Quarterly!DL59)-1)","v":8.5382381413359187E-3},null,null,null,{"$f":"((Quarterly!DP63/Quarterly!DP59)-1)","v":2.593033486879559E-2},null,null,null,null,{"$f":"Quarterly!DU63-Quarterly!DU59","v":0.16666666666666607},"--","--","--","--","--","--","--","--",null,null,null,null,null,{"$f":"((Quarterly!EI63/Quarterly!EI59)-1)","v":6.8187636354856807E-2},{"$f":"((Quarterly!EJ63/Quarterly!EJ59)-1)","v":4.8685655562847208E-2},{"$f":"((Quarterly!EK63/Quarterly!EK59)-1)","v":4.0979420557057944E-2},null,null,null,null,null,{"$f":"((Quarterly!EQ63/Quarterly!EQ59)-1)","v":3.9007092198581672E-2},"--",{"$f":"((Quarterly!ES63/Quarterly!ES59)-1)","v":2.5764895330112836E-2},null,null,null,null,null,{"$f":"(Quarterly!EY63-Quarterly!EY59)*100","v":-97.666666666666657},{"$f":"(Quarterly!EZ63-Quarterly!EZ59)*100","v":-31.666666666666643},{"$f":"(Quarterly!FA63-Quarterly!FA59)*100","v":1.6666666666666607},{"$f":"(Quarterly!FB63-Quarterly!FB59)*100","v":-29.666666666666686},"--","--",{"$f":"(Quarterly!FE63-Quarterly!FE59)*100","v":-40.333333333333286},{"$f":"(Quarterly!FF63-Quarterly!FF59)*100","v":35.666666666666735},"--",{"$f":"(Quarterly!FH63-Quarterly!FH59)*100","v":23.333333333333428},{"$f":"(Quarterly!FI63-Quarterly!FI59)*100","v":1.6666666666667496},null,null,null,null,null,null,{"$f":"((Quarterly!FP63/Quarterly!FP59)-1)","v":-5.4863337409525315E-3},"--","--","--","--","--","--","--","--",null,null,null,null,null,{"$f":"((Quarterly!GD63/Quarterly!GD59)-1)","v":0},"--","--","--","--","--","--","--","--"]
["72'Q2",{"$f":"((Quarterly!B64/Quarterly!B60)-1)","v":9.5541917704240698E-2},{"$f":"((Quarterly!C64/Quarterly!C60)-1)","v":5.2723831525617992E-2},{"$f":"((Quarterly!D64/Quarterly!D60)-1)","v":5.1816140498079033E-2},{"$f":"((Quarterly!E64/Quarterly!E60)-1)","v":5.8073559842467093E-2},{"$f":"((Quarterly!F64/Quarterly!F60)-1)","v":0.12250459471449404},{"$f":"((Quarterly!G64/Quarterly!G60)-1)","v":3.5315416989960324E-2},{"$f":"((Quarterly!H64/Quarterly!H60)-1)","v":6.365089016213199E-2},{"$f":"((Quarterly!I64/Quarterly!I60)-1)","v":7.4874744850621733E-2},{"$f":"((Quarterly!J64/Quarterly!J60)-1)","v":7.5469529860985318E-2},{"$f":"((Quarterly!K64/Quarterly!K60)-1)","v":0.18647869272669015},{"$f":"((Quarterly!L64-Quarterly!L60))","v":4.455999999999996},{"$f":"((Quarterly!M64/Quarterly!M60)-1)","v":5.3280560763375062E-2},{"$f":"((Quarterly!N64/Quarterly!N60)-1)","v":2.6854448260289709E-2},{"$f":"((Quarterly!O64/Quarterly!O60)-1)","v":0.11377159135985004},{"$f":"((Quarterly!P64/Quarterly!P60)-1)","v":3.5915463959257377E-3},{"$f":"((Quarterly!Q64/Quarterly!Q60)-1)","v":-1.9424885988512886E-2},null,null,null,null,null,"--","--",{"$f":"((Quarterly!Y64/Quarterly!Y60)-1)","v":8.3555432701828636E-2},"--",{"$f":"((Quarterly!AA64/Quarterly!AA60)-1)","v":0.19363507301243921},{"$f":"((Quarterly!AB64/Quarterly!AB60)-1)","v":0.20907428951304641},"--","--","--","--","--","--","--","--","--","--",{"$f":"((Quarterly!AM64/Quarterly!AM60)-1)","v":9.0251682772636288E-2},"--","--","--",{"$f":"Quarterly!AQ64-Quarterly!AQ60","v":5.5999999999999943},"--","--",{"$f":"Quarterly!AT64-Quarterly!AT60","v":8.4000000000000057},"--","--",{"$f":"Quarterly!AW64-Quarterly!AW60","v":-4.8666666666666671},{"$f":"Quarterly!AX64-Quarterly!AX60","v":5.8333333333333357},{"$f":"Quarterly!AY64-Quarterly!AY60","v":-1.8333333333333144},{"$f":"Quarterly!AZ64-Quarterly!AZ60","v":6.0333333333333314},{"$f":"Quarterly!BA64-Quarterly!BA60","v":7.5333333333333456},"--","--","--","--",{"$f":"((Quarterly!BF64/Quarterly!BF60)-1)","v":6.0428001450852475E-2},{"$f":"((Quarterly!BG64/Quarterly!BG60)-1)","v":3.5684474123539145E-2},{"$f":"((Quarterly!BH64/Quarterly!BH60)-1)","v":2.7251007913991376E-2},{"$f":"((Quarterly!BI64/Quarterly!BI60)-1)","v":2.3846768867104684E-2},{"$f":"((Quarterly!BJ64/Quarterly!BJ60)-1)","v":0.20599197247706424},"--",null,"--","--",null,null,null,null,null,{"$f":"((Quarterly!BT64/Quarterly!BT60)-1)","v":0.14897686160345325},"--","--",{"$f":"((Quarterly!BW64/Quarterly!BW60)-1)","v":8.1959743775294136E-2},{"$f":"((Quarterly!BX64/Quarterly!BX60)-1)","v":0.10938788978716385},{"$f":"((Quarterly!BY64/Quarterly!BY60)-1)","v":0.13683274021352321},"--","--",{"$f":"((Quarterly!CB64/Quarterly!CB60)-1)","v":-0.12601862831996657},{"$f":"((Quarterly!CC64/Quarterly!CC60)-1)","v":-9.9494510071719722E-2},"--","--",null,"--","--",null,{"$f":"((Quarterly!CJ64/Quarterly!CJ60)-1)","v":6.3343717549324996E-2},{"$f":"((Quarterly!CK64/Quarterly!CK60)-1)","v":8.3228383289553953E-2},{"$f":"((Quarterly!CL64/Quarterly!CL60)-1)","v":-0.10768318006526256},{"$f":"((Quarterly!CM64/Quarterly!CM60)-1)","v":9.9593495934959364E-2},{"$f":"((Quarterly!CN64/Quarterly!CN60)-1)","v":3.2161499747422884E-2},{"$f":"((Quarterly!CO64/Quarterly!CO60)-1)","v":9.9455535390199579E-2},{"$f":"((Quarterly!CP64/Quarterly!CP60)-1)","v":0.11864585859411303},{"$f":"((Quarterly!CQ64/Quarterly!CQ60)-1)","v":1.1047191401557077E-2},{"$f":"((Quarterly!CR64/Quarterly!CR60)-1)","v":0.1291579472721065},"--","--",null,null,null,null,null,{"$f":"((Quarterly!CZ64/Quarterly!CZ60)-1)","v":3.2258064516129004E-2},{"$f":"((Quarterly!DA64/Quarterly!DA60)-1)","v":3.0516431924882514E-2},null,null,null,null,null,{"$f":"((Quarterly!DG64/Quarterly!DG60)-1)","v":3.7917374080362221E-2},{"$f":"((Quarterly!DH64-Quarterly!DH60)*60)","v":6.0000000000000853},{"$f":"Quarterly!DI64-Quarterly!DI60","v":0.36666666666666003},"--",{"$f":"(Quarterly!DK64-Quarterly!DK60)*100","v":-20.000000000000107},{"$f":"((Quarterly!DL64/Quarterly!DL60)-1)","v":2.403276842738733E-2},null,null,null,{"$f":"((Quarterly!DP64/Quarterly!DP60)-1)","v":3.2092798906044218E-2},null,null,null,null,{"$f":"Quarterly!DU64-Quarterly!DU60","v":-6.6666666666665542E-2},"--","--","--","--","--","--","--","--",null,null,null,null,null,{"$f":"((Quarterly!EI64/Quarterly!EI60)-1)","v":7.4122794276379134E-2},{"$f":"((Quarterly!EJ64/Quarterly!EJ60)-1)","v":6.3207573261069516E-2},{"$f":"((Quarterly!EK64/Quarterly!EK60)-1)","v":5.5811412829952944E-2},null,null,null,null,null,{"$f":"((Quarterly!EQ64/Quarterly!EQ60)-1)","v":3.7653239929947402E-2},"--",{"$f":"((Quarterly!ES64/Quarterly!ES60)-1)","v":2.6399999999999979E-2},null,null,null,null,null,{"$f":"(Quarterly!EY64-Quarterly!EY60)*100","v":-41.000000000000099},{"$f":"(Quarterly!EZ64-Quarterly!EZ60)*100","v":-26.333333333333364},{"$f":"(Quarterly!FA64-Quarterly!FA60)*100","v":-19.666666666666721},{"$f":"(Quarterly!FB64-Quarterly!FB60)*100","v":-38.333333333333464},"--",{"$f":"(Quarterly!FD64-Quarterly!FD60)*100","v":-7.9999999999999183},{"$f":"(Quarterly!FE64-Quarterly!FE60)*100","v":-48},{"$f":"(Quarterly!FF64-Quarterly!FF60)*100","v":-15.000000000000036},"--",{"$f":"(Quarterly!FH64-Quarterly!FH60)*100","v":-17.666666666666675},{"$f":"(Quarterly!FI64-Quarterly!FI60)*100","v":-10.333333333333261},null,null,null,null,null,null,{"$f":"((Quarterly!FP64/Quarterly!FP60)-1)","v":-2.4228857359186118E-2},"--","--","--","--","--","--","--","--",null,null,null,null,null,{"$f":"((Quarterly!GD64/Quarterly!GD60)-1)","v":0},"--","--","--","--","--","--","--","--"]
["72'Q3",{"$f":"((Quarterly!B65/Quarterly!B61)-1)","v":9.6181267172351648E-2},{"$f":"((Quarterly!C65/Quarterly!C61)-1)","v":5.418381820222673E-2},{"$f":"((Quarterly!D65/Quarterly!D61)-1)","v":5.1886142631828447E-2},{"$f":"((Quarterly!E65/Quarterly!E61)-1)","v":6.589185788550056E-2},{"$f":"((Quarterly!F65/Quarterly!F61)-1)","v":0.12148148148148152},{"$f":"((Quarterly!G65/Quarterly!G61)-1)","v":5.1738761662425636E-2},{"$f":"((Quarterly!H65/Quarterly!H61)-1)","v":6.7886175110984937E-2},{"$f":"((Quarterly!I65/Quarterly!I61)-1)","v":8.5815897649069495E-2},{"$f":"((Quarterly!J65/Quarterly!J61)-1)","v":9.7232384679529993E-2},{"$f":"((Quarterly!K65/Quarterly!K61)-1)","v":0.13408674404398302},{"$f":"((Quarterly!L65-Quarterly!L61))","v":9.0549999999999997},{"$f":"((Quarterly!M65/Quarterly!M61)-1)","v":5.1949398589796747E-2},{"$f":"((Quarterly!N65/Quarterly!N61)-1)","v":4.5551953126969691E-2},{"$f":"((Quarterly!O65/Quarterly!O61)-1)","v":6.7545142772854172E-2},{"$f":"((Quarterly!P65/Quarterly!P61)-1)","v":-1.6122028388955933E-2},{"$f":"((Quarterly!Q65/Quarterly!Q61)-1)","v":-0.21373868647017868},null,null,null,null,null,"--","--",{"$f":"((Quarterly!Y65/Quarterly!Y61)-1)","v":8.9162548931898122E-2},"--",{"$f":"((Quarterly!AA65/Quarterly!AA61)-1)","v":0.16840772396327952},{"$f":"((Quarterly!AB65/Quarterly!AB61)-1)","v":0.19992128463476044},"--","--","--","--","--","--","--","--","--","--",{"$f":"((Quarterly!AM65/Quarterly!AM61)-1)","v":0.10083361590779472},"--","--","--",{"$f":"Quarterly!AQ65-Quarterly!AQ61","v":7.9333333333333371},"--","--",{"$f":"Quarterly!AT65-Quarterly!AT61","v":5.6333333333333329},"--","--",{"$f":"Quarterly!AW65-Quarterly!AW61","v":3},{"$f":"Quarterly!AX65-Quarterly!AX61","v":7.3000000000000114},{"$f":"Quarterly!AY65-Quarterly!AY61","v":3.7333333333333343},{"$f":"Quarterly!AZ65-Quarterly!AZ61","v":8.3666666666666814},{"$f":"Quarterly!BA65-Quarterly!BA61","v":14.700000000000003},"--","--","--","--",{"$f":"((Quarterly!BF65/Quarterly!BF61)-1)","v":5.996422182468697E-2},{"$f":"((Quarterly!BG65/Quarterly!BG61)-1)","v":3.2101267917347576E-2},{"$f":"((Quarterly!BH65/Quarterly!BH61)-1)","v":2.8784362727597212E-2},{"$f":"((Quarterly!BI65/Quarterly!BI61)-1)","v":2.7019546791212656E-2},{"$f":"((Quarterly!BJ65/Quarterly!BJ61)-1)","v":0.1802726365953673},"--",null,"--","--",null,null,null,null,null,{"$f":"((Quarterly!BT65/Quarterly!BT61)-1)","v":0.16204764157032092},"--","--",{"$f":"((Quarterly!BW65/Quarterly!BW61)-1)","v":8.4610119517716909E-2},{"$f":"((Quarterly!BX65/Quarterly!BX61)-1)","v":0.13260108245781588},{"$f":"((Quarterly!BY65/Quarterly!BY61)-1)","v":0.12885154061624648},"--","--",{"$f":"((Quarterly!CB65/Quarterly!CB61)-1)","v":-0.1656523492691212},{"$f":"((Quarterly!CC65/Quarterly!CC61)-1)","v":-0.13998013581756741},"--","--",null,"--","--",null,{"$f":"((Quarterly!CJ65/Quarterly!CJ61)-1)","v":0.11608040201005032},{"$f":"((Quarterly!CK65/Quarterly!CK61)-1)","v":9.4311536416799679E-2},{"$f":"((Quarterly!CL65/Quarterly!CL61)-1)","v":-5.0625372245384215E-2},{"$f":"((Quarterly!CM65/Quarterly!CM61)-1)","v":0.16019557089444936},{"$f":"((Quarterly!CN65/Quarterly!CN61)-1)","v":4.6413816205754355E-2},{"$f":"((Quarterly!CO65/Quarterly!CO61)-1)","v":9.7624088449776325E-2},{"$f":"((Quarterly!CP65/Quarterly!CP61)-1)","v":0.12465810716805548},{"$f":"((Quarterly!CQ65/Quarterly!CQ61)-1)","v":1.0571533024616109E-2},{"$f":"((Quarterly!CR65/Quarterly!CR61)-1)","v":0.13328645585589305},"--","--",null,null,null,null,null,{"$f":"((Quarterly!CZ65/Quarterly!CZ61)-1)","v":3.0303030303030054E-2},{"$f":"((Quarterly!DA65/Quarterly!DA61)-1)","v":2.9480217222652927E-2},null,null,null,null,null,{"$f":"((Quarterly!DG65/Quarterly!DG61)-1)","v":4.1831543244771119E-2},{"$f":"((Quarterly!DH65-Quarterly!DH61)*60)","v":7.9999999999999716},{"$f":"Quarterly!DI65-Quarterly!DI61","v":0.3333333333333357},"--",{"$f":"(Quarterly!DK65-Quarterly!DK61)*100","v":-46.666666666666771},{"$f":"((Quarterly!DL65/Quarterly!DL61)-1)","v":3.2610176087167764E-2},null,null,null,{"$f":"((Quarterly!DP65/Quarterly!DP61)-1)","v":3.6429897994419091E-2},null,null,null,null,{"$f":"Quarterly!DU65-Quarterly!DU61","v":-0.23333333333333428},"--","--","--","--","--","--","--","--",null,null,null,null,null,{"$f":"((Quarterly!EI65/Quarterly!EI61)-1)","v":6.7469917780088151E-2},{"$f":"((Quarterly!EJ65/Quarterly!EJ61)-1)","v":6.4682758858533917E-2},{"$f":"((Quarterly!EK65/Quarterly!EK61)-1)","v":6.021639001186041E-2},null,null,null,null,null,{"$f":"((Quarterly!EQ65/Quarterly!EQ61)-1)","v":4.517810599478711E-2},"--",{"$f":"((Quarterly!ES65/Quarterly!ES61)-1)","v":2.3847376788553198E-2},null,null,null,null,null,{"$f":"(Quarterly!EY65-Quarterly!EY61)*100","v":-62.999999999999986},{"$f":"(Quarterly!EZ65-Quarterly!EZ61)*100","v":-73.333333333333343},{"$f":"(Quarterly!FA65-Quarterly!FA61)*100","v":-35.000000000000057},{"$f":"(Quarterly!FB65-Quarterly!FB61)*100","v":-53.333333333333321},"--",{"$f":"(Quarterly!FD65-Quarterly!FD61)*100","v":-25.666666666666771},{"$f":"(Quarterly!FE65-Quarterly!FE61)*100","v":-79.000000000000085},{"$f":"(Quarterly!FF65-Quarterly!FF61)*100","v":-59.666666666666671},"--",{"$f":"(Quarterly!FH65-Quarterly!FH61)*100","v":-43.333333333333357},{"$f":"(Quarterly!FI65-Quarterly!FI61)*100","v":-19.333333333333336},null,null,null,null,null,null,{"$f":"((Quarterly!FP65/Quarterly!FP61)-1)","v":-3.2126800774456066E-2},"--","--","--","--","--","--","--","--",null,null,null,null,null,{"$f":"((Quarterly!GD65/Quarterly!GD61)-1)","v":0},"--","--","--","--","--","--","--","--"]
["72'Q4",{"$f":"((Quarterly!B66/Quarterly!B62)-1)","v":0.11598503667522619},{"$f":"((Quarterly!C66/Quarterly!C62)-1)","v":6.8568804139625295E-2},{"$f":"((Quarterly!D66/Quarterly!D62)-1)","v":6.3621448959898963E-2},{"$f":"((Quarterly!E66/Quarterly!E62)-1)","v":7.3087320457284166E-2},{"$f":"((Quarterly!F66/Quarterly!F62)-1)","v":0.13255579894618474},{"$f":"((Quarterly!G66/Quarterly!G62)-1)","v":6.4353076077036331E-2},{"$f":"((Quarterly!H66/Quarterly!H62)-1)","v":7.198964548389819E-2},{"$f":"((Quarterly!I66/Quarterly!I62)-1)","v":0.11500859961980647},{"$f":"((Quarterly!J66/Quarterly!J62)-1)","v":0.14063577489113688},{"$f":"((Quarterly!K66/Quarterly!K62)-1)","v":0.13080540858318646},{"$f":"((Quarterly!L66-Quarterly!L62))","v":19.279999999999998},{"$f":"((Quarterly!M66/Quarterly!M62)-1)","v":0.1792657995773228},{"$f":"((Quarterly!N66/Quarterly!N62)-1)","v":0.18952072246589347},{"$f":"((Quarterly!O66/Quarterly!O62)-1)","v":0.15568043742405857},{"$f":"((Quarterly!P66/Quarterly!P62)-1)","v":-1.7812143045426998E-3},{"$f":"((Quarterly!Q66/Quarterly!Q62)-1)","v":7.7332935894330879E-2},null,null,null,null,null,"--","--",{"$f":"((Quarterly!Y66/Quarterly!Y62)-1)","v":0.11594972150155369},"--",{"$f":"((Quarterly!AA66/Quarterly!AA62)-1)","v":0.22656548812019039},{"$f":"((Quarterly!AB66/Quarterly!AB62)-1)","v":0.17685874432812354},"--","--","--","--","--","--","--","--","--","--",{"$f":"((Quarterly!AM66/Quarterly!AM62)-1)","v":0.11345514287897562},"--","--","--",{"$f":"Quarterly!AQ66-Quarterly!AQ62","v":14.166666666666671},"--","--",{"$f":"Quarterly!AT66-Quarterly!AT62","v":11.933333333333337},"--","--",{"$f":"Quarterly!AW66-Quarterly!AW62","v":20.5},{"$f":"Quarterly!AX66-Quarterly!AX62","v":11.800000000000004},{"$f":"Quarterly!AY66-Quarterly!AY62","v":17.93333333333333},{"$f":"Quarterly!AZ66-Quarterly!AZ62","v":10.20000000000001},{"$f":"Quarterly!BA66-Quarterly!BA62","v":24.366666666666667},"--","--","--","--",{"$f":"((Quarterly!BF66/Quarterly!BF62)-1)","v":7.2489517447231977E-2},{"$f":"((Quarterly!BG66/Quarterly!BG62)-1)","v":4.8933552947063363E-2},{"$f":"((Quarterly!BH66/Quarterly!BH62)-1)","v":3.7952076201815732E-2},{"$f":"((Quarterly!BI66/Quarterly!BI62)-1)","v":2.2532042541587138E-2},{"$f":"((Quarterly!BJ66/Quarterly!BJ62)-1)","v":0.25685172922051569},"--",null,"--","--",null,null,null,null,null,{"$f":"((Quarterly!BT66/Quarterly!BT62)-1)","v":0.16659615829903429},"--","--",{"$f":"((Quarterly!BW66/Quarterly!BW62)-1)","v":6.0573672698349679E-2},{"$f":"((Quarterly!BX66/Quarterly!BX62)-1)","v":0.10098410295230886},{"$f":"((Quarterly!BY66/Quarterly!BY62)-1)","v":0.12327669124719454},"--","--",{"$f":"((Quarterly!CB66/Quarterly!CB62)-1)","v":-8.1289888056579995E-2},{"$f":"((Quarterly!CC66/Quarterly!CC62)-1)","v":-8.5623952927246116E-2},"--","--",null,"--","--",null,{"$f":"((Quarterly!CJ66/Quarterly!CJ62)-1)","v":0.14858260019550351},{"$f":"((Quarterly!CK66/Quarterly!CK62)-1)","v":0.12200549355029389},{"$f":"((Quarterly!CL66/Quarterly!CL62)-1)","v":0.13252647503782145},{"$f":"((Quarterly!CM66/Quarterly!CM62)-1)","v":5.1618079700454844E-2},{"$f":"((Quarterly!CN66/Quarterly!CN62)-1)","v":7.5394817928458924E-2},{"$f":"((Quarterly!CO66/Quarterly!CO62)-1)","v":9.9471628761773623E-2},{"$f":"((Quarterly!CP66/Quarterly!CP62)-1)","v":0.12835040658266661},{"$f":"((Quarterly!CQ66/Quarterly!CQ62)-1)","v":1.0095262451250031E-2},{"$f":"((Quarterly!CR66/Quarterly!CR62)-1)","v":0.13297110775071586},"--","--",null,null,null,null,null,{"$f":"((Quarterly!CZ66/Quarterly!CZ62)-1)","v":3.3333333333333437E-2},{"$f":"((Quarterly!DA66/Quarterly!DA62)-1)","v":2.9320987654320785E-2},null,null,null,null,null,{"$f":"((Quarterly!DG66/Quarterly!DG62)-1)","v":4.8712206047032414E-2},{"$f":"((Quarterly!DH66-Quarterly!DH62)*60)","v":1.9999999999998863},{"$f":"Quarterly!DI66-Quarterly!DI62","v":6.6666666666662877E-2},"--",{"$f":"(Quarterly!DK66-Quarterly!DK62)*100","v":-56.666666666666728},{"$f":"((Quarterly!DL66/Quarterly!DL62)-1)","v":4.975336932458152E-2},null,null,null,{"$f":"((Quarterly!DP66/Quarterly!DP62)-1)","v":4.3201172563498424E-2},null,null,null,null,{"$f":"Quarterly!DU66-Quarterly!DU62","v":-0.5333333333333341},"--","--","--","--","--","--","--","--",null,null,null,null,null,{"$f":"((Quarterly!EI66/Quarterly!EI62)-1)","v":8.710096775629439E-2},{"$f":"((Quarterly!EJ66/Quarterly!EJ62)-1)","v":7.5163759928244867E-2},{"$f":"((Quarterly!EK66/Quarterly!EK62)-1)","v":7.0791684596359428E-2},null,null,null,null,null,{"$f":"((Quarterly!EQ66/Quarterly!EQ62)-1)","v":5.46875E-2},"--",{"$f":"((Quarterly!ES66/Quarterly!ES62)-1)","v":2.3866348448687402E-2},null,null,null,null,null,{"$f":"(Quarterly!EY66-Quarterly!EY62)*100","v":11.666666666666625},{"$f":"(Quarterly!EZ66-Quarterly!EZ62)*100","v":39.333333333333357},{"$f":"(Quarterly!FA66-Quarterly!FA62)*100","v":-16.333333333333311},{"$f":"(Quarterly!FB66-Quarterly!FB62)*100","v":-42.000000000000085},"--",{"$f":"(Quarterly!FD66-Quarterly!FD62)*100","v":-12.333333333333396},{"$f":"(Quarterly!FE66-Quarterly!FE62)*100","v":63.333333333333371},{"$f":"(Quarterly!FF66-Quarterly!FF62)*100","v":71},"--",{"$f":"(Quarterly!FH66-Quarterly!FH62)*100","v":35.333333333333258},{"$f":"(Quarterly!FI66-Quarterly!FI62)*100","v":48.333333333333428},null,null,null,null,null,null,{"$f":"((Quarterly!FP66/Quarterly!FP62)-1)","v":-1.363077229961096E-2},"--","--","--","--","--","--","--","--",null,null,null,null,null,{"$f":"((Quarterly!GD66/Quarterly!GD62)-1)","v":0},"--","--","--","--","--","--","--","--"]
["73'Q1",{"$f":"((Quarterly!B67/Quarterly!B63)-1)","v":0.11904049823027441},{"$f":"((Quarterly!C67/Quarterly!C63)-1)","v":7.5576379188059706E-2},{"$f":"((Quarterly!D67/Quarterly!D63)-1)","v":7.0968288909746047E-2},{"$f":"((Quarterly!E67/Quarterly!E63)-1)","v":7.843641507007848E-2},{"$f":"((Quarterly!F67/Quarterly!F63)-1)","v":0.17768260215302711},{"$f":"((Quarterly!G67/Quarterly!G63)-1)","v":6.7243550869990898E-2},{"$f":"((Quarterly!H67/Quarterly!H63)-1)","v":7.4884506400681339E-2},{"$f":"((Quarterly!I67/Quarterly!I63)-1)","v":0.12588823581015895},{"$f":"((Quarterly!J67/Quarterly!J63)-1)","v":0.15923938078766353},{"$f":"((Quarterly!K67/Quarterly!K63)-1)","v":9.6143250688705217E-2},{"$f":"((Quarterly!L67-Quarterly!L63))","v":16.093},{"$f":"((Quarterly!M67/Quarterly!M63)-1)","v":7.643655274192418E-2},{"$f":"((Quarterly!N67/Quarterly!N63)-1)","v":0.1518360740387672},{"$f":"((Quarterly!O67/Quarterly!O63)-1)","v":-7.945388287224775E-2},{"$f":"((Quarterly!P67/Quarterly!P63)-1)","v":1.5734468771031462E-3},{"$f":"((Quarterly!Q67/Quarterly!Q63)-1)","v":-0.12316349543473981},null,null,null,null,null,{"$f":"((Quarterly!W67/Quarterly!W63)-1)","v":7.4754901960784492E-2},"--",{"$f":"((Quarterly!Y67/Quarterly!Y63)-1)","v":0.1805607061678689},"--",{"$f":"((Quarterly!AA67/Quarterly!AA63)-1)","v":0.32016906997139039},{"$f":"((Quarterly!AB67/Quarterly!AB63)-1)","v":0.17723120168657758},"--","--","--","--","--","--","--","--","--","--",{"$f":"((Quarterly!AM67/Quarterly!AM63)-1)","v":9.8584029897129E-2},{"$f":"((Quarterly!AN67/Quarterly!AN63)-1)","v":0.10989595718048006},"--","--",{"$f":"Quarterly!AQ67-Quarterly!AQ63","v":10.433333333333323},"--","--",{"$f":"Quarterly!AT67-Quarterly!AT63","v":10.999999999999993},"--","--",{"$f":"Quarterly!AW67-Quarterly!AW63","v":11.633333333333333},{"$f":"Quarterly!AX67-Quarterly!AX63","v":5.4000000000000057},{"$f":"Quarterly!AY67-Quarterly!AY63","v":11.133333333333326},{"$f":"Quarterly!AZ67-Quarterly!AZ63","v":3.5},{"$f":"Quarterly!BA67-Quarterly!BA63","v":30.499999999999986},"--","--","--","--",{"$f":"((Quarterly!BF67/Quarterly!BF63)-1)","v":7.1987263791790657E-2},{"$f":"((Quarterly!BG67/Quarterly!BG63)-1)","v":5.7528219256944402E-2},{"$f":"((Quarterly!BH67/Quarterly!BH63)-1)","v":2.9635258358662542E-2},{"$f":"((Quarterly!BI67/Quarterly!BI63)-1)","v":1.3701858335577688E-2},{"$f":"((Quarterly!BJ67/Quarterly!BJ63)-1)","v":0.35933644916053176},"--",null,"--","--",null,null,null,null,null,{"$f":"((Quarterly!BT67/Quarterly!BT63)-1)","v":0.17578603747525912},"--","--",{"$f":"((Quarterly!BW67/Quarterly!BW63)-1)","v":7.9229392036714863E-2},{"$f":"((Quarterly!BX67/Quarterly!BX63)-1)","v":-1.1499030202272054E-2},{"$f":"((Quarterly!BY67/Quarterly!BY63)-1)","v":7.2174447174448986E-3},"--","--",{"$f":"((Quarterly!CB67/Quarterly!CB63)-1)","v":-2.4485087186110532E-2},{"$f":"((Quarterly!CC67/Quarterly!CC63)-1)","v":-6.088816770830352E-2},"--","--",null,"--","--",null,{"$f":"((Quarterly!CJ67/Quarterly!CJ63)-1)","v":9.4680331869204437E-2},{"$f":"((Quarterly!CK67/Quarterly!CK63)-1)","v":0.10886101626153688},{"$f":"((Quarterly!CL67/Quarterly!CL63)-1)","v":0.1213270142180094},{"$f":"((Quarterly!CM67/Quarterly!CM63)-1)","v":7.7928607340371769E-3},{"$f":"((Quarterly!CN67/Quarterly!CN63)-1)","v":7.8061911170928644E-2},{"$f":"((Quarterly!CO67/Quarterly!CO63)-1)","v":8.751262201279042E-2},{"$f":"((Quarterly!CP67/Quarterly!CP63)-1)","v":0.1507731760000588},{"$f":"((Quarterly!CQ67/Quarterly!CQ63)-1)","v":9.8359348841658978E-3},{"$f":"((Quarterly!CR67/Quarterly!CR63)-1)","v":0.16875570715487842},"--","--",null,null,null,null,null,{"$f":"((Quarterly!CZ67/Quarterly!CZ63)-1)","v":4.1129032258064413E-2},{"$f":"((Quarterly!DA67/Quarterly!DA63)-1)","v":2.8309104820199105E-2},null,null,null,null,null,{"$f":"((Quarterly!DG67/Quarterly!DG63)-1)","v":4.9586776859504189E-2},{"$f":"((Quarterly!DH67-Quarterly!DH63)*60)","v":0},{"$f":"Quarterly!DI67-Quarterly!DI63","v":0.13333333333333286},"--",{"$f":"(Quarterly!DK67-Quarterly!DK63)*100","v":-83.3333333333333},{"$f":"((Quarterly!DL67/Quarterly!DL63)-1)","v":5.928087385536851E-2},null,null,null,{"$f":"((Quarterly!DP67/Quarterly!DP63)-1)","v":4.5316957283459081E-2},null,null,null,null,{"$f":"Quarterly!DU67-Quarterly!DU63","v":-1},"--","--","--","--","--","--","--","--",null,null,null,null,null,{"$f":"((Quarterly!EI67/Quarterly!EI63)-1)","v":8.7732616154918563E-2},{"$f":"((Quarterly!EJ67/Quarterly!EJ63)-1)","v":7.8052422684768974E-2},{"$f":"((Quarterly!EK67/Quarterly!EK63)-1)","v":7.2802086286831047E-2},null,null,null,null,null,{"$f":"((Quarterly!EQ67/Quarterly!EQ63)-1)","v":8.703071672354934E-2},"--",{"$f":"((Quarterly!ES67/Quarterly!ES63)-1)","v":1.9623233908948157E-2},null,null,null,null,null,{"$f":"(Quarterly!EY67-Quarterly!EY63)*100","v":121.33333333333329},{"$f":"(Quarterly!EZ67-Quarterly!EZ63)*100","v":299.66666666666657},{"$f":"(Quarterly!FA67-Quarterly!FA63)*100","v":-1.3333333333334529},{"$f":"(Quarterly!FB67-Quarterly!FB63)*100","v":-26.666666666666838},"--",{"$f":"(Quarterly!FD67-Quarterly!FD63)*100","v":8.9999999999999858},{"$f":"(Quarterly!FE67-Quarterly!FE63)*100","v":226.33333333333331},{"$f":"(Quarterly!FF67-Quarterly!FF63)*100","v":190.33333333333326},"--",{"$f":"(Quarterly!FH67-Quarterly!FH63)*100","v":86.333333333333144},{"$f":"(Quarterly!FI67-Quarterly!FI63)*100","v":56.999999999999851},null,null,null,null,null,null,{"$f":"((Quarterly!FP67/Quarterly!FP63)-1)","v":-5.8156923997210175E-3},"--","--","--","--","--","--","--","--",null,null,null,null,null,{"$f":"((Quarterly!GD67/Quarterly!GD63)-1)","v":0},"--","--","--","--","--","--","--","--"]
["73'Q2",{"$f":"((Quarterly!B68/Quarterly!B64)-1)","v":0.11610931863238338},{"$f":"((Quarterly!C68/Quarterly!C64)-1)","v":6.3151317689269737E-2},{"$f":"((Quarterly!D68/Quarterly!D64)-1)","v":5.8936002699359058E-2},{"$f":"((Quarterly!E68/Quarterly!E64)-1)","v":5.7788152167055795E-2},{"$f":"((Quarterly!F68/Quarterly!F64)-1)","v":0.13527551942186111},{"$f":"((Quarterly!G68/Quarterly!G64)-1)","v":3.0363590943156105E-2},{"$f":"((Quarterly!H68/Quarterly!H64)-1)","v":6.3805719515555026E-2},{"$f":"((Quarterly!I68/Quarterly!I64)-1)","v":0.14902891670263263},{"$f":"((Quarterly!J68/Quarterly!J64)-1)","v":0.18924148824372211},{"$f":"((Quarterly!K68/Quarterly!K64)-1)","v":2.0523899540912716E-2},{"$f":"((Quarterly!L68-Quarterly!L64))","v":15.207999999999998},{"$f":"((Quarterly!M68/Quarterly!M64)-1)","v":8.3922610910251549E-2},{"$f":"((Quarterly!N68/Quarterly!N64)-1)","v":0.24356679689897098},{"$f":"((Quarterly!O68/Quarterly!O64)-1)","v":-0.25299488441365059},{"$f":"((Quarterly!P68/Quarterly!P64)-1)","v":-9.3389570605476591E-3},{"$f":"((Quarterly!Q68/Quarterly!Q64)-1)","v":-0.2070092821420928},null,null,null,null,null,{"$f":"((Quarterly!W68/Quarterly!W64)-1)","v":5.9250302297460644E-2},"--",{"$f":"((Quarterly!Y68/Quarterly!Y64)-1)","v":0.22474925283750391},"--",{"$f":"((Quarterly!AA68/Quarterly!AA64)-1)","v":0.34316460176991148},{"$f":"((Quarterly!AB68/Quarterly!AB64)-1)","v":0.113979381443299},"--","--","--","--","--","--","--","--","--","--",{"$f":"((Quarterly!AM68/Quarterly!AM64)-1)","v":8.6846477733426575E-2},{"$f":"((Quarterly!AN68/Quarterly!AN64)-1)","v":9.7616209354417949E-2},"--","--",{"$f":"Quarterly!AQ68-Quarterly!AQ64","v":6.06666666666667},"--","--",{"$f":"Quarterly!AT68-Quarterly!AT64","v":5.5666666666666629},"--","--",{"$f":"Quarterly!AW68-Quarterly!AW64","v":8.63333333333334},{"$f":"Quarterly!AX68-Quarterly!AX64","v":-0.53333333333333144},{"$f":"Quarterly!AY68-Quarterly!AY64","v":16.73333333333332},{"$f":"Quarterly!AZ68-Quarterly!AZ64","v":-1},{"$f":"Quarterly!BA68-Quarterly!BA64","v":30.033333333333324},"--","--","--","--",{"$f":"((Quarterly!BF68/Quarterly!BF64)-1)","v":7.4291968805582087E-2},{"$f":"((Quarterly!BG68/Quarterly!BG64)-1)","v":3.7336288535160023E-2},{"$f":"((Quarterly!BH68/Quarterly!BH64)-1)","v":1.7225089032633312E-2},{"$f":"((Quarterly!BI68/Quarterly!BI64)-1)","v":3.5616066275082403E-2},{"$f":"((Quarterly!BJ68/Quarterly!BJ64)-1)","v":0.37000277348547872},"--",null,"--","--",null,null,null,null,null,{"$f":"((Quarterly!BT68/Quarterly!BT64)-1)","v":0.18116106380661323},"--","--",{"$f":"((Quarterly!BW68/Quarterly!BW64)-1)","v":7.3843791027768946E-2},{"$f":"((Quarterly!BX68/Quarterly!BX64)-1)","v":-4.5657346817370659E-2},{"$f":"((Quarterly!BY68/Quarterly!BY64)-1)","v":-7.8102989513225807E-2},"--","--",{"$f":"((Quarterly!CB68/Quarterly!CB64)-1)","v":0.18092629255148607},{"$f":"((Quarterly!CC68/Quarterly!CC64)-1)","v":8.3489293737957659E-2},"--","--",null,"--","--",null,{"$f":"((Quarterly!CJ68/Quarterly!CJ64)-1)","v":-3.759765625E-2},{"$f":"((Quarterly!CK68/Quarterly!CK64)-1)","v":0.11872176454956174},{"$f":"((Quarterly!CL68/Quarterly!CL64)-1)","v":0.2832446808510638},{"$f":"((Quarterly!CM68/Quarterly!CM64)-1)","v":-6.4695009242144108E-2},{"$f":"((Quarterly!CN68/Quarterly!CN64)-1)","v":7.5668866009280578E-2},{"$f":"((Quarterly!CO68/Quarterly!CO64)-1)","v":7.3511609992296778E-2},{"$f":"((Quarterly!CP68/Quarterly!CP64)-1)","v":0.15485076441429135},{"$f":"((Quarterly!CQ68/Quarterly!CQ64)-1)","v":9.6825608918071904E-3},{"$f":"((Quarterly!CR68/Quarterly!CR64)-1)","v":0.17151442307692299},"--","--",null,null,null,null,null,{"$f":"((Quarterly!CZ68/Quarterly!CZ64)-1)","v":5.6089743589743613E-2},{"$f":"((Quarterly!DA68/Quarterly!DA64)-1)","v":3.1131359149582538E-2},null,null,null,null,null,{"$f":"((Quarterly!DG68/Quarterly!DG64)-1)","v":4.743729552889886E-2},{"$f":"((Quarterly!DH68-Quarterly!DH64)*60)","v":1.9999999999998863},{"$f":"Quarterly!DI68-Quarterly!DI64","v":0.36666666666667425},"--",{"$f":"(Quarterly!DK68-Quarterly!DK64)*100","v":-76.666666666666657},{"$f":"((Quarterly!DL68/Quarterly!DL64)-1)","v":5.5904153475763385E-2},null,null,null,{"$f":"((Quarterly!DP68/Quarterly!DP64)-1)","v":4.3550070329869905E-2},null,null,null,null,{"$f":"Quarterly!DU68-Quarterly!DU64","v":-1.2666666666666675},"--","--","--","--","--","--","--","--",null,null,null,null,null,{"$f":"((Quarterly!EI68/Quarterly!EI64)-1)","v":6.5799186057088344E-2},{"$f":"((Quarterly!EJ68/Quarterly!EJ64)-1)","v":5.6202442835716626E-2},{"$f":"((Quarterly!EK68/Quarterly!EK64)-1)","v":5.5213178504682991E-2},null,null,null,null,null,{"$f":"((Quarterly!EQ68/Quarterly!EQ64)-1)","v":0.12742616033755261},"--",{"$f":"((Quarterly!ES68/Quarterly!ES64)-1)","v":2.9618082618862118E-2},null,null,null,null,null,{"$f":"(Quarterly!EY68-Quarterly!EY64)*100","v":203.33333333333331},{"$f":"(Quarterly!EZ68-Quarterly!EZ64)*100","v":351.66666666666674},{"$f":"(Quarterly!FA68-Quarterly!FA64)*100","v":3.0000000000001137},{"$f":"(Quarterly!FB68-Quarterly!FB64)*100","v":-12.999999999999901},"--",{"$f":"(Quarterly!FD68-Quarterly!FD64)*100","v":29.666666666666686},{"$f":"(Quarterly!FE68-Quarterly!FE64)*100","v":283.33333333333343},{"$f":"(Quarterly!FF68-Quarterly!FF64)*100","v":217.33333333333329},"--",{"$f":"(Quarterly!FH68-Quarterly!FH64)*100","v":74.333333333333314},{"$f":"(Quarterly!FI68-Quarterly!FI64)*100","v":66.3333333333334},null,null,null,null,null,null,{"$f":"((Quarterly!FP68/Quarterly!FP64)-1)","v":1.2077865119260567E-2},"--","--","--","--","--","--","--","--",null,null,null,null,null,{"$f":"((Quarterly!GD68/Quarterly!GD64)-1)","v":0},"--","--","--","--","--","--","--","--"]
["73'Q3",{"$f":"((Quarterly!B69/Quarterly!B65)-1)","v":0.1105054191524899},{"$f":"((Quarterly!C69/Quarterly!C65)-1)","v":4.7718416679443987E-2},{"$f":"((Quarterly!D69/Quarterly!D65)-1)","v":5.0824029605868182E-2},{"$f":"((Quarterly!E69/Quarterly!E65)-1)","v":4.5447485321984393E-2},{"$f":"((Quarterly!F69/Quarterly!F65)-1)","v":9.692866578599757E-2},{"$f":"((Quarterly!G69/Quarterly!G65)-1)","v":2.1124551971326122E-2},{"$f":"((Quarterly!H69/Quarterly!H65)-1)","v":5.2258851124685091E-2},{"$f":"((Quarterly!I69/Quarterly!I65)-1)","v":0.14990003828321075},{"$f":"((Quarterly!J69/Quarterly!J65)-1)","v":0.18254836908171734},{"$f":"((Quarterly!K69/Quarterly!K65)-1)","v":-2.50471316994344E-2},{"$f":"((Quarterly!L69-Quarterly!L65))","v":-16.648999999999997},{"$f":"((Quarterly!M69/Quarterly!M65)-1)","v":3.2487551197294406E-2},{"$f":"((Quarterly!N69/Quarterly!N65)-1)","v":0.17666150648398649},{"$f":"((Quarterly!O69/Quarterly!O65)-1)","v":-0.31174005158437745},{"$f":"((Quarterly!P69/Quarterly!P65)-1)","v":-2.0499611507882598E-3},{"$f":"((Quarterly!Q69/Quarterly!Q65)-1)","v":-0.10000983864620216},null,null,null,null,null,{"$f":"((Quarterly!W69/Quarterly!W65)-1)","v":5.1682692307692291E-2},"--",{"$f":"((Quarterly!Y69/Quarterly!Y65)-1)","v":0.24958837264601841},"--",{"$f":"((Quarterly!AA69/Quarterly!AA65)-1)","v":0.30795177458683298},{"$f":"((Quarterly!AB69/Quarterly!AB65)-1)","v":0.10780776446817741},"--","--","--","--","--","--","--","--","--","--",{"$f":"((Quarterly!AM69/Quarterly!AM65)-1)","v":8.2361251572958594E-2},{"$f":"((Quarterly!AN69/Quarterly!AN65)-1)","v":9.1310632342625597E-2},"--","--",{"$f":"Quarterly!AQ69-Quarterly!AQ65","v":-0.96666666666666856},"--","--",{"$f":"Quarterly!AT69-Quarterly!AT65","v":-0.13333333333333286},"--","--",{"$f":"Quarterly!AW69-Quarterly!AW65","v":9.7999999999999901},{"$f":"Quarterly!AX69-Quarterly!AX65","v":-10.266666666666673},{"$f":"Quarterly!AY69-Quarterly!AY65","v":13.099999999999994},{"$f":"Quarterly!AZ69-Quarterly!AZ65","v":-9.7333333333333343},{"$f":"Quarterly!BA69-Quarterly!BA65","v":23.966666666666661},"--","--","--","--",{"$f":"((Quarterly!BF69/Quarterly!BF65)-1)","v":7.8512117734422571E-2},{"$f":"((Quarterly!BG69/Quarterly!BG65)-1)","v":2.1743922723902243E-2},{"$f":"((Quarterly!BH69/Quarterly!BH65)-1)","v":9.4853887418844263E-3},{"$f":"((Quarterly!BI69/Quarterly!BI65)-1)","v":5.5514383884659457E-2},{"$f":"((Quarterly!BJ69/Quarterly!BJ65)-1)","v":0.29180438701923084},"--",null,"--","--",null,null,null,null,null,{"$f":"((Quarterly!BT69/Quarterly!BT65)-1)","v":0.17070824365296655},"--","--",{"$f":"((Quarterly!BW69/Quarterly!BW65)-1)","v":6.788834951456324E-2},{"$f":"((Quarterly!BX69/Quarterly!BX65)-1)","v":-0.14996486296556566},{"$f":"((Quarterly!BY69/Quarterly!BY65)-1)","v":-0.22171945701357465},"--","--",{"$f":"((Quarterly!CB69/Quarterly!CB65)-1)","v":0.35335989679594548},{"$f":"((Quarterly!CC69/Quarterly!CC65)-1)","v":0.2001922143988768},"--","--",null,"--","--",null,{"$f":"((Quarterly!CJ69/Quarterly!CJ65)-1)","v":-0.2219720846465556},{"$f":"((Quarterly!CK69/Quarterly!CK65)-1)","v":0.11740510428812012},{"$f":"((Quarterly!CL69/Quarterly!CL65)-1)","v":0.24560853199498123},{"$f":"((Quarterly!CM69/Quarterly!CM65)-1)","v":-0.18120971740208236},{"$f":"((Quarterly!CN69/Quarterly!CN65)-1)","v":5.9996798747954605E-2},{"$f":"((Quarterly!CO69/Quarterly!CO65)-1)","v":4.8328332618945424E-2},{"$f":"((Quarterly!CP69/Quarterly!CP65)-1)","v":0.15776409969868221},{"$f":"((Quarterly!CQ69/Quarterly!CQ65)-1)","v":9.5851004920277649E-3},{"$f":"((Quarterly!CR69/Quarterly!CR65)-1)","v":0.17760567030063235},"--","--",null,null,null,null,null,{"$f":"((Quarterly!CZ69/Quarterly!CZ65)-1)","v":6.8362480127186265E-2},{"$f":"((Quarterly!DA69/Quarterly!DA65)-1)","v":3.3911077618688834E-2},null,null,null,null,null,{"$f":"((Quarterly!DG69/Quarterly!DG65)-1)","v":4.6663049376017396E-2},{"$f":"((Quarterly!DH69-Quarterly!DH65)*60)","v":1.9999999999998863},{"$f":"Quarterly!DI69-Quarterly!DI65","v":0.33333333333332149},"--",{"$f":"(Quarterly!DK69-Quarterly!DK65)*100","v":-76.666666666666657},{"$f":"((Quarterly!DL69/Quarterly!DL65)-1)","v":5.2100016958414264E-2},null,null,null,{"$f":"((Quarterly!DP69/Quarterly!DP65)-1)","v":4.1619204984939984E-2},null,null,null,null,{"$f":"Quarterly!DU69-Quarterly!DU65","v":-0.7333333333333325},"--","--","--","--","--","--","--","--",null,null,null,null,null,{"$f":"((Quarterly!EI69/Quarterly!EI65)-1)","v":4.2844209873782235E-2},{"$f":"((Quarterly!EJ69/Quarterly!EJ65)-1)","v":3.8863611674368359E-2},{"$f":"((Quarterly!EK69/Quarterly!EK65)-1)","v":4.0331217645505735E-2},null,null,null,null,null,{"$f":"((Quarterly!EQ69/Quarterly!EQ65)-1)","v":0.15627597672485471},"--",{"$f":"((Quarterly!ES69/Quarterly!ES65)-1)","v":3.493788819875765E-2},null,null,null,null,null,{"$f":"(Quarterly!EY69-Quarterly!EY65)*100","v":379.00000000000011},{"$f":"(Quarterly!EZ69-Quarterly!EZ65)*100","v":582.00000000000011},{"$f":"(Quarterly!FA69-Quarterly!FA65)*100","v":37.999999999999901},{"$f":"(Quarterly!FB69-Quarterly!FB65)*100","v":29.666666666666686},"--",{"$f":"(Quarterly!FD69-Quarterly!FD65)*100","v":105.00000000000007},{"$f":"(Quarterly!FE69-Quarterly!FE65)*100","v":410.33333333333326},{"$f":"(Quarterly!FF69-Quarterly!FF65)*100","v":335.33333333333343},"--",{"$f":"(Quarterly!FH69-Quarterly!FH65)*100","v":125.66666666666677},{"$f":"(Quarterly!FI69-Quarterly!FI65)*100","v":91.6666666666667},null,null,null,null,null,null,{"$f":"((Quarterly!FP69/Quarterly!FP65)-1)","v":2.1122940259035605E-2},"--","--","--","--","--","--","--","--",null,null,null,null,null,{"$f":"((Quarterly!GD69/Quarterly!GD65)-1)","v":0.14044943820224698},"--","--","--","--","--","--","--","--"]
["73'Q4",{"$f":"((Quarterly!B70/Quarterly!B66)-1)","v":0.11039298870965442},{"$f":"((Quarterly!C70/Quarterly!C66)-1)","v":4.021365677272315E-2},{"$f":"((Quarterly!D70/Quarterly!D66)-1)","v":2.8266176826364342E-2},{"$f":"((Quarterly!E70/Quarterly!E66)-1)","v":1.8453880474701867E-2},{"$f":"((Quarterly!F70/Quarterly!F66)-1)","v":1.7407213800313626E-2},{"$f":"((Quarterly!G70/Quarterly!G66)-1)","v":-1.7588989292701696E-3},{"$f":"((Quarterly!H70/Quarterly!H66)-1)","v":2.8029968842708142E-2},{"$f":"((Quarterly!I70/Quarterly!I66)-1)","v":0.10558148975035508},{"$f":"((Quarterly!J70/Quarterly!J66)-1)","v":0.11257923187989238},{"$f":"((Quarterly!K70/Quarterly!K66)-1)","v":-0.10371718221991155},{"$f":"((Quarterly!L70-Quarterly!L66))","v":44.08},{"$f":"((Quarterly!M70/Quarterly!M66)-1)","v":-4.6380469464022411E-3},{"$f":"((Quarterly!N70/Quarterly!N66)-1)","v":0.18420626512266991},{"$f":"((Quarterly!O70/Quarterly!O66)-1)","v":-0.45168002803697371},{"$f":"((Quarterly!P70/Quarterly!P66)-1)","v":-3.045579473427984E-3},{"$f":"((Quarterly!Q70/Quarterly!Q66)-1)","v":-0.422961195268728},null,null,null,null,null,{"$f":"((Quarterly!W70/Quarterly!W66)-1)","v":3.1542056074766345E-2},"--",{"$f":"((Quarterly!Y70/Quarterly!Y66)-1)","v":0.21972563055149652},"--",{"$f":"((Quarterly!AA70/Quarterly!AA66)-1)","v":0.26464351643965478},{"$f":"((Quarterly!AB70/Quarterly!AB66)-1)","v":6.3793863793863759E-2},"--","--","--","--","--","--","--","--","--","--",{"$f":"((Quarterly!AM70/Quarterly!AM66)-1)","v":6.1393412111885315E-2},{"$f":"((Quarterly!AN70/Quarterly!AN66)-1)","v":7.0966680639499069E-2},"--","--",{"$f":"Quarterly!AQ70-Quarterly!AQ66","v":-3.1666666666666714},"--","--",{"$f":"Quarterly!AT70-Quarterly!AT66","v":-1.5666666666666771},"--","--",{"$f":"Quarterly!AW70-Quarterly!AW66","v":1.7333333333333343},{"$f":"Quarterly!AX70-Quarterly!AX66","v":-8.6999999999999957},{"$f":"Quarterly!AY70-Quarterly!AY66","v":20.066666666666663},{"$f":"Quarterly!AZ70-Quarterly!AZ66","v":-11.666666666666679},{"$f":"Quarterly!BA70-Quarterly!BA66","v":16.700000000000003},"--","--","--","--",{"$f":"((Quarterly!BF70/Quarterly!BF66)-1)","v":8.0047710555960494E-2},{"$f":"((Quarterly!BG70/Quarterly!BG66)-1)","v":6.8376068376068133E-3},{"$f":"((Quarterly!BH70/Quarterly!BH66)-1)","v":-3.8715227989675194E-3},{"$f":"((Quarterly!BI70/Quarterly!BI66)-1)","v":7.2640597393072603E-2},{"$f":"((Quarterly!BJ70/Quarterly!BJ66)-1)","v":0.24411509764263983},"--",null,"--","--",null,null,null,null,null,{"$f":"((Quarterly!BT70/Quarterly!BT66)-1)","v":0.15584091193381466},"--","--",{"$f":"((Quarterly!BW70/Quarterly!BW66)-1)","v":6.229346832595084E-2},{"$f":"((Quarterly!BX70/Quarterly!BX66)-1)","v":-0.32246974697469755},{"$f":"((Quarterly!BY70/Quarterly!BY66)-1)","v":-0.41472812901384326},"--","--",{"$f":"((Quarterly!CB70/Quarterly!CB66)-1)","v":0.51546389467933995},{"$f":"((Quarterly!CC70/Quarterly!CC66)-1)","v":0.32629121021131779},"--","--",null,"--","--",null,{"$f":"((Quarterly!CJ70/Quarterly!CJ66)-1)","v":-0.30595744680851067},{"$f":"((Quarterly!CK70/Quarterly!CK66)-1)","v":0.10458630306786487},{"$f":"((Quarterly!CL70/Quarterly!CL66)-1)","v":0.18514560512957523},{"$f":"((Quarterly!CM70/Quarterly!CM66)-1)","v":-0.29959308240081384},{"$f":"((Quarterly!CN70/Quarterly!CN66)-1)","v":3.0748045638823829E-2},{"$f":"((Quarterly!CO70/Quarterly!CO66)-1)","v":2.1834517342248061E-2},{"$f":"((Quarterly!CP70/Quarterly!CP66)-1)","v":0.15097082184385213},{"$f":"((Quarterly!CQ70/Quarterly!CQ66)-1)","v":9.3962237877320831E-3},{"$f":"((Quarterly!CR70/Quarterly!CR66)-1)","v":0.20308401162893852},"--","--",null,null,null,null,null,{"$f":"((Quarterly!CZ70/Quarterly!CZ66)-1)","v":8.4185680566483123E-2},{"$f":"((Quarterly!DA70/Quarterly!DA66)-1)","v":4.5727136431784166E-2},null,null,null,null,null,{"$f":"((Quarterly!DG70/Quarterly!DG66)-1)","v":3.6305392418579885E-2},{"$f":"((Quarterly!DH70-Quarterly!DH66)*60)","v":-7.9999999999999716},{"$f":"Quarterly!DI70-Quarterly!DI66","v":0.73333333333333428},"--",{"$f":"(Quarterly!DK70-Quarterly!DK66)*100","v":-59.999999999999964},{"$f":"((Quarterly!DL70/Quarterly!DL66)-1)","v":4.1420008879680337E-2},null,null,null,{"$f":"((Quarterly!DP70/Quarterly!DP66)-1)","v":3.8428704815259396E-2},null,null,null,null,{"$f":"Quarterly!DU70-Quarterly!DU66","v":-0.7333333333333325},"--","--","--","--","--","--","--","--",null,null,null,null,null,{"$f":"((Quarterly!EI70/Quarterly!EI66)-1)","v":2.4420624829363913E-2},{"$f":"((Quarterly!EJ70/Quarterly!EJ66)-1)","v":2.33036640433264E-2},{"$f":"((Quarterly!EK70/Quarterly!EK66)-1)","v":2.7318272191739323E-2},null,null,null,null,null,{"$f":"((Quarterly!EQ70/Quarterly!EQ66)-1)","v":0.1539094650205759},"--",{"$f":"((Quarterly!ES70/Quarterly!ES66)-1)","v":4.8174048174048023E-2},null,null,null,null,null,{"$f":"(Quarterly!EY70-Quarterly!EY66)*100","v":405.66666666666657},{"$f":"(Quarterly!EZ70-Quarterly!EZ66)*100","v":485.33333333333326},{"$f":"(Quarterly!FA70-Quarterly!FA66)*100","v":51.333333333333272},{"$f":"(Quarterly!FB70-Quarterly!FB66)*100","v":44.333333333333243},"--",{"$f":"(Quarterly!FD70-Quarterly!FD66)*100","v":120.00000000000011},{"$f":"(Quarterly!FE70-Quarterly!FE66)*100","v":263.66666666666669},{"$f":"(Quarterly!FF70-Quarterly!FF66)*100","v":197.66666666666674},"--",{"$f":"(Quarterly!FH70-Quarterly!FH66)*100","v":67.666666666666586},{"$f":"(Quarterly!FI70-Quarterly!FI66)*100","v":37.999999999999901},null,null,null,null,null,null,{"$f":"((Quarterly!FP70/Quarterly!FP66)-1)","v":1.1021605042299987E-2},"--","--","--","--","--","--","--","--",null,null,null,null,null,{"$f":"((Quarterly!GD70/Quarterly!GD66)-1)","v":0.21067415730337058},"--","--","--","--","--","--","--","--"]
["74'Q1",{"$f":"((Quarterly!B71/Quarterly!B67)-1)","v":8.2549178665584977E-2},{"$f":"((Quarterly!C71/Quarterly!C67)-1)","v":6.7878424726912634E-3},{"$f":"((Quarterly!D71/Quarterly!D67)-1)","v":6.0193645617827585E-3},{"$f":"((Quarterly!E71/Quarterly!E67)-1)","v":-8.4952903302730753E-3},{"$f":"((Quarterly!F71/Quarterly!F67)-1)","v":-6.590328287792413E-2},{"$f":"((Quarterly!G71/Quarterly!G67)-1)","v":-2.1045960180955947E-2},{"$f":"((Quarterly!H71/Quarterly!H67)-1)","v":2.8675735453220774E-3},{"$f":"((Quarterly!I71/Quarterly!I67)-1)","v":5.9996883278790492E-2},{"$f":"((Quarterly!J71/Quarterly!J67)-1)","v":3.9098331048488033E-2},{"$f":"((Quarterly!K71/Quarterly!K67)-1)","v":-0.19653179190751446},{"$f":"((Quarterly!L71-Quarterly!L67))","v":1.5480000000000018},{"$f":"((Quarterly!M71/Quarterly!M67)-1)","v":-8.0866991643454011E-2},{"$f":"((Quarterly!N71/Quarterly!N67)-1)","v":0.11745384479436538},{"$f":"((Quarterly!O71/Quarterly!O67)-1)","v":-0.59392249790911666},{"$f":"((Quarterly!P71/Quarterly!P67)-1)","v":7.5125995829825598E-3},{"$f":"((Quarterly!Q71/Quarterly!Q67)-1)","v":-0.11846376666833136},null,null,null,null,null,{"$f":"((Quarterly!W71/Quarterly!W67)-1)","v":-1.1402508551881407E-2},"--",{"$f":"((Quarterly!Y71/Quarterly!Y67)-1)","v":0.1791250741388144},"--",{"$f":"((Quarterly!AA71/Quarterly!AA67)-1)","v":0.17085388828993664},{"$f":"((Quarterly!AB71/Quarterly!AB67)-1)","v":-3.8299904489016212E-2},"--","--","--","--","--","--","--","--","--","--",{"$f":"((Quarterly!AM71/Quarterly!AM67)-1)","v":2.303636060318115E-2},{"$f":"((Quarterly!AN71/Quarterly!AN67)-1)","v":2.7948497798560457E-2},"--","--",{"$f":"Quarterly!AQ71-Quarterly!AQ67","v":-9.5999999999999872},"--","--",{"$f":"Quarterly!AT71-Quarterly!AT67","v":-9.9999999999999929},"--","--",{"$f":"Quarterly!AW71-Quarterly!AW67","v":-2.1999999999999957},{"$f":"Quarterly!AX71-Quarterly!AX67","v":-13.966666666666683},{"$f":"Quarterly!AY71-Quarterly!AY67","v":7.4000000000000057},{"$f":"Quarterly!AZ71-Quarterly!AZ67","v":-15.300000000000018},{"$f":"Quarterly!BA71-Quarterly!BA67","v":4.3666666666666742},"--","--","--","--",{"$f":"((Quarterly!BF71/Quarterly!BF67)-1)","v":7.6386646865112873E-2},{"$f":"((Quarterly!BG71/Quarterly!BG67)-1)","v":-1.7186740546320634E-2},{"$f":"((Quarterly!BH71/Quarterly!BH67)-1)","v":-2.0720976440533501E-2},{"$f":"((Quarterly!BI71/Quarterly!BI67)-1)","v":9.5181163030121807E-2},{"$f":"((Quarterly!BJ71/Quarterly!BJ67)-1)","v":0.13795800315787932},"--",null,"--","--",null,null,null,null,null,{"$f":"((Quarterly!BT71/Quarterly!BT67)-1)","v":0.13020065640783751},"--","--",{"$f":"((Quarterly!BW71/Quarterly!BW67)-1)","v":6.2501460314493329E-2},{"$f":"((Quarterly!BX71/Quarterly!BX67)-1)","v":-0.33314646110721802},{"$f":"((Quarterly!BY71/Quarterly!BY67)-1)","v":-0.37017838085073951},"--","--",{"$f":"((Quarterly!CB71/Quarterly!CB67)-1)","v":0.66345109725308671},{"$f":"((Quarterly!CC71/Quarterly!CC67)-1)","v":0.4913452844726387},"--","--",null,"--","--",null,{"$f":"((Quarterly!CJ71/Quarterly!CJ67)-1)","v":-0.27151136870263037},{"$f":"((Quarterly!CK71/Quarterly!CK67)-1)","v":0.10161895179731073},{"$f":"((Quarterly!CL71/Quarterly!CL67)-1)","v":0.21865314173006478},{"$f":"((Quarterly!CM71/Quarterly!CM67)-1)","v":-0.30805687203791465},{"$f":"((Quarterly!CN71/Quarterly!CN67)-1)","v":6.6583437369953646E-3},{"$f":"((Quarterly!CO71/Quarterly!CO67)-1)","v":1.5371917878881813E-2},{"$f":"((Quarterly!CP71/Quarterly!CP67)-1)","v":0.12117297137908811},{"$f":"((Quarterly!CQ71/Quarterly!CQ67)-1)","v":9.2490988523097339E-3},{"$f":"((Quarterly!CR71/Quarterly!CR67)-1)","v":0.19227252183601173},"--","--",null,null,null,null,null,{"$f":"((Quarterly!CZ71/Quarterly!CZ67)-1)","v":9.9147947327652863E-2},{"$f":"((Quarterly!DA71/Quarterly!DA67)-1)","v":5.4315476190476053E-2},null,null,null,null,null,{"$f":"((Quarterly!DG71/Quarterly!DG67)-1)","v":1.6797900262467191E-2},{"$f":"((Quarterly!DH71-Quarterly!DH67)*60)","v":-17.999999999999829},{"$f":"Quarterly!DI71-Quarterly!DI67","v":0.89999999999999858},"--",{"$f":"(Quarterly!DK71-Quarterly!DK67)*100","v":20.000000000000018},{"$f":"((Quarterly!DL71/Quarterly!DL67)-1)","v":1.877525870349217E-2},null,null,null,{"$f":"((Quarterly!DP71/Quarterly!DP67)-1)","v":2.9531903318225972E-2},null,null,null,null,{"$f":"Quarterly!DU71-Quarterly!DU67","v":-0.5},"--","--","--","--","--","--","--","--",null,null,null,null,null,{"$f":"((Quarterly!EI71/Quarterly!EI67)-1)","v":-2.6649186473472364E-2},{"$f":"((Quarterly!EJ71/Quarterly!EJ67)-1)","v":-1.1364276067375223E-2},{"$f":"((Quarterly!EK71/Quarterly!EK67)-1)","v":-1.0698116683249825E-3},null,null,null,null,null,{"$f":"((Quarterly!EQ71/Quarterly!EQ67)-1)","v":0.17425431711145989},"--",{"$f":"((Quarterly!ES71/Quarterly!ES67)-1)","v":6.8514241724403346E-2},null,null,null,null,null,{"$f":"(Quarterly!EY71-Quarterly!EY67)*100","v":315.66666666666674},{"$f":"(Quarterly!EZ71-Quarterly!EZ67)*100","v":278.66666666666663},{"$f":"(Quarterly!FA71-Quarterly!FA67)*100","v":67.666666666666586},{"$f":"(Quarterly!FB71-Quarterly!FB67)*100","v":57.666666666666529},"--",{"$f":"(Quarterly!FD71-Quarterly!FD67)*100","v":102.33333333333343},{"$f":"(Quarterly!FE71-Quarterly!FE67)*100","v":191.66666666666669},{"$f":"(Quarterly!FF71-Quarterly!FF67)*100","v":104.33333333333348},"--",{"$f":"(Quarterly!FH71-Quarterly!FH67)*100","v":44.666666666666721},{"$f":"(Quarterly!FI71-Quarterly!FI67)*100","v":45.000000000000107},null,null,null,null,null,null,{"$f":"((Quarterly!FP71/Quarterly!FP67)-1)","v":-1.7214868297900643E-2},"--","--","--",{"$f":"((Quarterly!FT71/Quarterly!FT67)-1)","v":2.3641216014478328E-3},{"$f":"((Quarterly!FU71/Quarterly!FU67)-1)","v":-3.650126436840595E-3},"--","--","--",null,null,null,null,null,{"$f":"((Quarterly!GD71/Quarterly!GD67)-1)","v":1.839887640449438},"--","--","--","--","--","--","--","--"]
["74'Q2",{"$f":"((Quarterly!B72/Quarterly!B68)-1)","v":8.226961861462545E-2},{"$f":"((Quarterly!C72/Quarterly!C68)-1)","v":-1.8816488970695433E-3},{"$f":"((Quarterly!D72/Quarterly!D68)-1)","v":2.3609794255388117E-3},{"$f":"((Quarterly!E72/Quarterly!E68)-1)","v":-4.6221745094531252E-3},{"$f":"((Quarterly!F72/Quarterly!F68)-1)","v":-4.9681718718918022E-2},{"$f":"((Quarterly!G72/Quarterly!G68)-1)","v":-1.9241789728895675E-2},{"$f":"((Quarterly!H72/Quarterly!H68)-1)","v":6.3457577746690585E-3},{"$f":"((Quarterly!I72/Quarterly!I68)-1)","v":2.0208090748600638E-2},{"$f":"((Quarterly!J72/Quarterly!J68)-1)","v":-2.9600881623506048E-2},{"$f":"((Quarterly!K72/Quarterly!K68)-1)","v":-0.19079121460703885},{"$f":"((Quarterly!L72-Quarterly!L68))","v":-16.226999999999997},{"$f":"((Quarterly!M72/Quarterly!M68)-1)","v":-3.4475804515465835E-3},{"$f":"((Quarterly!N72/Quarterly!N68)-1)","v":0.11789355078810915},{"$f":"((Quarterly!O72/Quarterly!O68)-1)","v":-0.42975612575127164},{"$f":"((Quarterly!P72/Quarterly!P68)-1)","v":1.9030189691167321E-2},{"$f":"((Quarterly!Q72/Quarterly!Q68)-1)","v":-7.0943044342470118E-2},null,null,null,null,null,{"$f":"((Quarterly!W72/Quarterly!W68)-1)","v":-1.9406392694063745E-2},"--",{"$f":"((Quarterly!Y72/Quarterly!Y68)-1)","v":0.18297850417938544},"--",{"$f":"((Quarterly!AA72/Quarterly!AA68)-1)","v":0.16012903089784003},{"$f":"((Quarterly!AB72/Quarterly!AB68)-1)","v":-5.2725747143456458E-2},"--","--","--","--","--","--","--","--","--","--",{"$f":"((Quarterly!AM72/Quarterly!AM68)-1)","v":1.5420077323407444E-2},{"$f":"((Quarterly!AN72/Quarterly!AN68)-1)","v":1.7183049859197164E-2},"--","--",{"$f":"Quarterly!AQ72-Quarterly!AQ68","v":-9.0666666666666558},"--","--",{"$f":"Quarterly!AT72-Quarterly!AT68","v":-9.2000000000000028},"--","--",{"$f":"Quarterly!AW72-Quarterly!AW68","v":-1.0666666666666771},{"$f":"Quarterly!AX72-Quarterly!AX68","v":-10.166666666666664},{"$f":"Quarterly!AY72-Quarterly!AY68","v":3.0666666666666629},{"$f":"Quarterly!AZ72-Quarterly!AZ68","v":-10.333333333333336},{"$f":"Quarterly!BA72-Quarterly!BA68","v":-9.7333333333333343},"--","--","--","--",{"$f":"((Quarterly!BF72/Quarterly!BF68)-1)","v":8.9340295466123099E-2},{"$f":"((Quarterly!BG72/Quarterly!BG68)-1)","v":-2.0686440184138455E-2},{"$f":"((Quarterly!BH72/Quarterly!BH68)-1)","v":-1.4561303229494227E-2},{"$f":"((Quarterly!BI72/Quarterly!BI68)-1)","v":0.11238607304439063},{"$f":"((Quarterly!BJ72/Quarterly!BJ68)-1)","v":0.17280023136432665},"--",null,"--","--",null,null,null,null,null,{"$f":"((Quarterly!BT72/Quarterly!BT68)-1)","v":9.9552606684429445E-2},"--","--",{"$f":"((Quarterly!BW72/Quarterly!BW68)-1)","v":4.9181084198385294E-2},{"$f":"((Quarterly!BX72/Quarterly!BX68)-1)","v":-0.29156926912887648},{"$f":"((Quarterly!BY72/Quarterly!BY68)-1)","v":-0.40950764006791174},"--","--",{"$f":"((Quarterly!CB72/Quarterly!CB68)-1)","v":0.49356990221120789},{"$f":"((Quarterly!CC72/Quarterly!CC68)-1)","v":0.38511791811564478},"--","--",null,"--","--",null,{"$f":"((Quarterly!CJ72/Quarterly!CJ68)-1)","v":-0.15372907153729076},{"$f":"((Quarterly!CK72/Quarterly!CK68)-1)","v":9.599738701823135E-2},{"$f":"((Quarterly!CL72/Quarterly!CL68)-1)","v":4.9481865284974225E-2},{"$f":"((Quarterly!CM72/Quarterly!CM68)-1)","v":-0.18351214003387917},{"$f":"((Quarterly!CN72/Quarterly!CN68)-1)","v":-1.0658465686480989E-2},{"$f":"((Quarterly!CO72/Quarterly!CO68)-1)","v":1.445412608918506E-2},{"$f":"((Quarterly!CP72/Quarterly!CP68)-1)","v":9.926879023805979E-2},{"$f":"((Quarterly!CQ72/Quarterly!CQ68)-1)","v":9.1643389529305619E-3},{"$f":"((Quarterly!CR72/Quarterly!CR68)-1)","v":0.18562535370684774},"--","--",null,null,null,null,null,{"$f":"((Quarterly!CZ72/Quarterly!CZ68)-1)","v":0.10546282245826988},{"$f":"((Quarterly!DA72/Quarterly!DA68)-1)","v":7.0692194403534581E-2},null,null,null,null,null,{"$f":"((Quarterly!DG72/Quarterly!DG68)-1)","v":7.2878709005721465E-3},{"$f":"((Quarterly!DH72-Quarterly!DH68)*60)","v":-25.999999999999801},{"$f":"Quarterly!DI72-Quarterly!DI68","v":0.39999999999999147},"--",{"$f":"(Quarterly!DK72-Quarterly!DK68)*100","v":26.666666666666661},{"$f":"((Quarterly!DL72/Quarterly!DL68)-1)","v":6.8222621184916843E-3},null,null,null,{"$f":"((Quarterly!DP72/Quarterly!DP68)-1)","v":2.4101257456910608E-2},null,null,null,null,{"$f":"Quarterly!DU72-Quarterly!DU68","v":0},"--","--","--","--","--","--","--","--",null,null,null,null,null,{"$f":"((Quarterly!EI72/Quarterly!EI68)-1)","v":-3.5169553768098827E-2},{"$f":"((Quarterly!EJ72/Quarterly!EJ68)-1)","v":-1.4470129701572354E-2},{"$f":"((Quarterly!EK72/Quarterly!EK68)-1)","v":-2.0555619516429147E-3},null,null,null,null,null,{"$f":"((Quarterly!EQ72/Quarterly!EQ68)-1)","v":0.15868263473053901},"--",{"$f":"((Quarterly!ES72/Quarterly!ES68)-1)","v":0.10370931112793325},null,null,null,null,null,{"$f":"(Quarterly!EY72-Quarterly!EY68)*100","v":390.00000000000011},{"$f":"(Quarterly!EZ72-Quarterly!EZ68)*100","v":343.33333333333326},{"$f":"(Quarterly!FA72-Quarterly!FA68)*100","v":105.6666666666664},{"$f":"(Quarterly!FB72-Quarterly!FB68)*100","v":97.000000000000057},"--",{"$f":"(Quarterly!FD72-Quarterly!FD68)*100","v":124.00000000000003},{"$f":"(Quarterly!FE72-Quarterly!FE68)*100","v":154.99999999999997},{"$f":"(Quarterly!FF72-Quarterly!FF68)*100","v":167.33333333333337},"--",{"$f":"(Quarterly!FH72-Quarterly!FH68)*100","v":134.66666666666686},{"$f":"(Quarterly!FI72-Quarterly!FI68)*100","v":73.666666666666544},null,null,null,null,null,null,{"$f":"((Quarterly!FP72/Quarterly!FP68)-1)","v":-3.4534484482816152E-2},"--","--","--",{"$f":"((Quarterly!FT72/Quarterly!FT68)-1)","v":1.511323008624621E-2},{"$f":"((Quarterly!FU72/Quarterly!FU68)-1)","v":5.5867789594787887E-4},"--","--","--",null,null,null,null,null,{"$f":"((Quarterly!GD72/Quarterly!GD68)-1)","v":1.839887640449438},"--","--","--",{"$f":"((Quarterly!GH72/Quarterly!GH68)-1)","v":{"$error":"#DIV/0!"}},"--","--","--","--"]
["74'Q3",{"$f":"((Quarterly!B73/Quarterly!B69)-1)","v":8.8099843194625826E-2},{"$f":"((Quarterly!C73/Quarterly!C69)-1)","v":-6.1449370696433636E-3},{"$f":"((Quarterly!D73/Quarterly!D69)-1)","v":-1.6778147518436981E-3},{"$f":"((Quarterly!E73/Quarterly!E69)-1)","v":-4.0708385333096953E-3},{"$f":"((Quarterly!F73/Quarterly!F69)-1)","v":-3.557629585026878E-2},{"$f":"((Quarterly!G73/Quarterly!G69)-1)","v":-2.1718623170918883E-2},{"$f":"((Quarterly!H73/Quarterly!H69)-1)","v":6.9536141483090841E-3},{"$f":"((Quarterly!I73/Quarterly!I69)-1)","v":-5.5117818962011622E-3},{"$f":"((Quarterly!J73/Quarterly!J69)-1)","v":-7.7995933824007269E-2},{"$f":"((Quarterly!K73/Quarterly!K69)-1)","v":-0.18342541436464077},{"$f":"((Quarterly!L73-Quarterly!L69))","v":-13.894},{"$f":"((Quarterly!M73/Quarterly!M69)-1)","v":6.9494968116592393E-3},{"$f":"((Quarterly!N73/Quarterly!N69)-1)","v":5.4092602535360301E-2},{"$f":"((Quarterly!O73/Quarterly!O69)-1)","v":-0.18548198213269929},{"$f":"((Quarterly!P73/Quarterly!P69)-1)","v":3.3482507896013036E-2},{"$f":"((Quarterly!Q73/Quarterly!Q69)-1)","v":-1.1642525280131211E-2},null,null,null,null,null,{"$f":"((Quarterly!W73/Quarterly!W69)-1)","v":-2.9714285714285693E-2},"--",{"$f":"((Quarterly!Y73/Quarterly!Y69)-1)","v":0.18321424832773103},"--",{"$f":"((Quarterly!AA73/Quarterly!AA69)-1)","v":0.19362422710842764},{"$f":"((Quarterly!AB73/Quarterly!AB69)-1)","v":-0.20697332891183873},"--","--","--","--","--","--","--","--","--","--",{"$f":"((Quarterly!AM73/Quarterly!AM69)-1)","v":2.5199445084396199E-3},{"$f":"((Quarterly!AN73/Quarterly!AN69)-1)","v":5.0373831033139194E-3},"--","--",{"$f":"Quarterly!AQ73-Quarterly!AQ69","v":-10.033333333333346},"--","--",{"$f":"Quarterly!AT73-Quarterly!AT69","v":-7.6666666666666714},"--","--",{"$f":"Quarterly!AW73-Quarterly!AW69","v":-7.2666666666666586},{"$f":"Quarterly!AX73-Quarterly!AX69","v":-8.1000000000000014},{"$f":"Quarterly!AY73-Quarterly!AY69","v":3.2333333333333343},{"$f":"Quarterly!AZ73-Quarterly!AZ69","v":-6.5666666666666842},{"$f":"Quarterly!BA73-Quarterly!BA69","v":-24.899999999999991},"--","--","--","--",{"$f":"((Quarterly!BF73/Quarterly!BF69)-1)","v":0.10252879318978469},{"$f":"((Quarterly!BG73/Quarterly!BG69)-1)","v":-2.1595010199278231E-2},{"$f":"((Quarterly!BH73/Quarterly!BH69)-1)","v":-1.0757000644560644E-2},{"$f":"((Quarterly!BI73/Quarterly!BI69)-1)","v":0.12692283142911864},{"$f":"((Quarterly!BJ73/Quarterly!BJ69)-1)","v":0.26720553601023456},"--",null,"--","--",null,null,null,null,null,{"$f":"((Quarterly!BT73/Quarterly!BT69)-1)","v":7.4168541855367032E-2},"--","--",{"$f":"((Quarterly!BW73/Quarterly!BW69)-1)","v":5.0321612837238794E-2},{"$f":"((Quarterly!BX73/Quarterly!BX69)-1)","v":-0.40343915343915338},{"$f":"((Quarterly!BY73/Quarterly!BY69)-1)","v":-0.48255813953488369},"--","--",{"$f":"((Quarterly!CB73/Quarterly!CB69)-1)","v":0.46902413197952475},{"$f":"((Quarterly!CC73/Quarterly!CC69)-1)","v":0.40282751273479467},"--","--",null,"--","--",null,{"$f":"((Quarterly!CJ73/Quarterly!CJ69)-1)","v":-0.11053240740740733},{"$f":"((Quarterly!CK73/Quarterly!CK69)-1)","v":0.10135938088751062},{"$f":"((Quarterly!CL73/Quarterly!CL69)-1)","v":2.5182573659028096E-2},{"$f":"((Quarterly!CM73/Quarterly!CM69)-1)","v":-0.21798365122615804},{"$f":"((Quarterly!CN73/Quarterly!CN69)-1)","v":-1.399293641938526E-2},{"$f":"((Quarterly!CO73/Quarterly!CO69)-1)","v":1.8501482162935901E-2},{"$f":"((Quarterly!CP73/Quarterly!CP69)-1)","v":8.1952904236343382E-2},{"$f":"((Quarterly!CQ73/Quarterly!CQ69)-1)","v":9.1970642317182882E-3},{"$f":"((Quarterly!CR73/Quarterly!CR69)-1)","v":0.20654515250223948},"--","--",null,null,null,null,null,{"$f":"((Quarterly!CZ73/Quarterly!CZ69)-1)","v":0.11458333333333326},{"$f":"((Quarterly!DA73/Quarterly!DA69)-1)","v":9.6209912536443287E-2},null,null,null,null,null,{"$f":"((Quarterly!DG73/Quarterly!DG69)-1)","v":1.5552099533433505E-3},{"$f":"((Quarterly!DH73-Quarterly!DH69)*60)","v":-23.999999999999915},{"$f":"Quarterly!DI73-Quarterly!DI69","v":0.53333333333334565},"--",{"$f":"(Quarterly!DK73-Quarterly!DK69)*100","v":83.3333333333333},{"$f":"((Quarterly!DL73/Quarterly!DL69)-1)","v":-2.1133319005658402E-3},null,null,null,{"$f":"((Quarterly!DP73/Quarterly!DP69)-1)","v":1.9502664759047939E-2},null,null,null,null,{"$f":"Quarterly!DU73-Quarterly!DU69","v":0.16666666666666607},"--","--","--","--","--","--","--","--",null,null,null,null,null,{"$f":"((Quarterly!EI73/Quarterly!EI69)-1)","v":-3.8902211969592537E-2},{"$f":"((Quarterly!EJ73/Quarterly!EJ69)-1)","v":-1.4947020149726375E-2},{"$f":"((Quarterly!EK73/Quarterly!EK69)-1)","v":-2.6258266692406051E-3},null,null,null,null,null,{"$f":"((Quarterly!EQ73/Quarterly!EQ69)-1)","v":0.19194823867721067},"--",{"$f":"((Quarterly!ES73/Quarterly!ES69)-1)","v":0.16954238559639934},null,null,null,null,null,{"$f":"(Quarterly!EY73-Quarterly!EY69)*100","v":285.99999999999994},{"$f":"(Quarterly!EZ73-Quarterly!EZ69)*100","v":152.99999999999977},{"$f":"(Quarterly!FA73-Quarterly!FA69)*100","v":140.00000000000003},{"$f":"(Quarterly!FB73-Quarterly!FB69)*100","v":134.33333333333337},"--",{"$f":"(Quarterly!FD73-Quarterly!FD69)*100","v":115.33333333333324},{"$f":"(Quarterly!FE73-Quarterly!FE69)*100","v":-13.333333333333286},{"$f":"(Quarterly!FF73-Quarterly!FF69)*100","v":50.333333333333208},"--",{"$f":"(Quarterly!FH73-Quarterly!FH69)*100","v":112.3333333333334},{"$f":"(Quarterly!FI73-Quarterly!FI69)*100","v":75.666666666666501},null,null,null,null,null,null,{"$f":"((Quarterly!FP73/Quarterly!FP69)-1)","v":-2.294385230932694E-2},"--","--","--",{"$f":"((Quarterly!FT73/Quarterly!FT69)-1)","v":5.9078590201146808E-2},{"$f":"((Quarterly!FU73/Quarterly!FU69)-1)","v":5.3768101145083902E-2},"--","--","--",null,null,null,null,null,{"$f":"((Quarterly!GD73/Quarterly!GD69)-1)","v":1.4901477832512318},"--","--","--",{"$f":"((Quarterly!GH73/Quarterly!GH69)-1)","v":{"$error":"#DIV/0!"}},"--","--","--","--"]
["74'Q4",{"$f":"((Quarterly!B74/Quarterly!B70)-1)","v":8.3792574923820196E-2},{"$f":"((Quarterly!C74/Quarterly!C70)-1)","v":-1.9264619543398198E-2},{"$f":"((Quarterly!D74/Quarterly!D70)-1)","v":-1.7074810617445868E-2},{"$f":"((Quarterly!E74/Quarterly!E70)-1)","v":-1.5794963492773095E-2},{"$f":"((Quarterly!F74/Quarterly!F70)-1)","v":-0.10645840826183062},{"$f":"((Quarterly!G74/Quarterly!G70)-1)","v":-3.5372111974979692E-2},{"$f":"((Quarterly!H74/Quarterly!H70)-1)","v":1.4457450550018347E-3},{"$f":"((Quarterly!I74/Quarterly!I70)-1)","v":-3.8845645469231971E-2},{"$f":"((Quarterly!J74/Quarterly!J70)-1)","v":-0.13865450622364983},{"$f":"((Quarterly!K74/Quarterly!K70)-1)","v":-0.25609048723897909},{"$f":"((Quarterly!L74-Quarterly!L70))","v":-15.061999999999998},{"$f":"((Quarterly!M74/Quarterly!M70)-1)","v":-1.0433583525851886E-2},{"$f":"((Quarterly!N74/Quarterly!N70)-1)","v":3.1031586349696383E-2},{"$f":"((Quarterly!O74/Quarterly!O70)-1)","v":-0.2224263971557543},{"$f":"((Quarterly!P74/Quarterly!P70)-1)","v":3.1162635633289693E-2},{"$f":"((Quarterly!Q74/Quarterly!Q70)-1)","v":0.59603224549731793},null,null,null,null,null,{"$f":"((Quarterly!W74/Quarterly!W70)-1)","v":-8.7202718006795021E-2},"--",{"$f":"((Quarterly!Y74/Quarterly!Y70)-1)","v":0.18861541152074901},"--",{"$f":"((Quarterly!AA74/Quarterly!AA70)-1)","v":7.5254712049630523E-3},{"$f":"((Quarterly!AB74/Quarterly!AB70)-1)","v":-0.20171033306485997},"--","--","--","--","--","--","--","--","--","--",{"$f":"((Quarterly!AM74/Quarterly!AM70)-1)","v":-5.1464242240232938E-2},{"$f":"((Quarterly!AN74/Quarterly!AN70)-1)","v":-5.752372813826212E-2},"--","--",{"$f":"Quarterly!AQ74-Quarterly!AQ70","v":-28.800000000000004},"--","--",{"$f":"Quarterly!AT74-Quarterly!AT70","v":-20.299999999999997},"--","--",{"$f":"Quarterly!AW74-Quarterly!AW70","v":-19.466666666666676},{"$f":"Quarterly!AX74-Quarterly!AX70","v":-30.70000000000001},{"$f":"Quarterly!AY74-Quarterly!AY70","v":-24.433333333333337},{"$f":"Quarterly!AZ74-Quarterly!AZ70","v":80.933333333333309},{"$f":"Quarterly!BA74-Quarterly!BA70","v":-58.6},"--","--","--","--",{"$f":"((Quarterly!BF74/Quarterly!BF70)-1)","v":0.11055892999570527},{"$f":"((Quarterly!BG74/Quarterly!BG70)-1)","v":-6.4950448138350048E-3},{"$f":"((Quarterly!BH74/Quarterly!BH70)-1)","v":-8.8239527853749555E-3},{"$f":"((Quarterly!BI74/Quarterly!BI70)-1)","v":0.11785181501740438},{"$f":"((Quarterly!BJ74/Quarterly!BJ70)-1)","v":4.2581967213114691E-2},"--",null,"--","--",null,null,null,null,null,{"$f":"((Quarterly!BT74/Quarterly!BT70)-1)","v":4.7863307972199287E-2},"--","--",{"$f":"((Quarterly!BW74/Quarterly!BW70)-1)","v":3.0643987027599628E-2},{"$f":"((Quarterly!BX74/Quarterly!BX70)-1)","v":-0.37669981733306268},{"$f":"((Quarterly!BY74/Quarterly!BY70)-1)","v":-0.39624481833699099},"--","--",{"$f":"((Quarterly!CB74/Quarterly!CB70)-1)","v":0.41425189106112748},{"$f":"((Quarterly!CC74/Quarterly!CC70)-1)","v":0.40826632051051104},"--","--",null,"--","--",null,{"$f":"((Quarterly!CJ74/Quarterly!CJ70)-1)","v":-0.19374616799509503},{"$f":"((Quarterly!CK74/Quarterly!CK70)-1)","v":9.0784121195118361E-2},{"$f":"((Quarterly!CL74/Quarterly!CL70)-1)","v":2.7727682596934144E-2},{"$f":"((Quarterly!CM74/Quarterly!CM70)-1)","v":-0.15105301379811176},{"$f":"((Quarterly!CN74/Quarterly!CN70)-1)","v":-2.5964003883398479E-2},{"$f":"((Quarterly!CO74/Quarterly!CO70)-1)","v":3.1591861772824803E-2},{"$f":"((Quarterly!CP74/Quarterly!CP70)-1)","v":5.4397012936977518E-2},{"$f":"((Quarterly!CQ74/Quarterly!CQ70)-1)","v":9.3495157502656578E-3},{"$f":"((Quarterly!CR74/Quarterly!CR70)-1)","v":0.19046860339547167},"--","--",null,null,null,null,null,{"$f":"((Quarterly!CZ74/Quarterly!CZ70)-1)","v":0.12046444121915822},{"$f":"((Quarterly!DA74/Quarterly!DA70)-1)","v":0.10967741935483866},null,null,null,null,null,{"$f":"((Quarterly!DG74/Quarterly!DG70)-1)","v":-2.4729520865533261E-2},{"$f":"((Quarterly!DH74-Quarterly!DH70)*60)","v":-36.000000000000085},{"$f":"Quarterly!DI74-Quarterly!DI70","v":0.1666666666666714},"--",{"$f":"(Quarterly!DK74-Quarterly!DK70)*100","v":183.3333333333334},{"$f":"((Quarterly!DL74/Quarterly!DL70)-1)","v":-3.8387068123279078E-2},null,null,null,{"$f":"((Quarterly!DP74/Quarterly!DP70)-1)","v":4.2559932863204253E-3},null,null,null,null,{"$f":"Quarterly!DU74-Quarterly!DU70","v":0.36666666666666536},"--","--","--","--","--","--","--","--",null,null,null,null,null,{"$f":"((Quarterly!EI74/Quarterly!EI70)-1)","v":-6.7716280721892508E-2},{"$f":"((Quarterly!EJ74/Quarterly!EJ70)-1)","v":-3.2696831636090606E-2},{"$f":"((Quarterly!EK74/Quarterly!EK70)-1)","v":-1.4058493539108374E-2},null,null,null,null,null,{"$f":"((Quarterly!EQ74/Quarterly!EQ70)-1)","v":0.22396576319543526},"--",{"$f":"((Quarterly!ES74/Quarterly!ES70)-1)","v":0.22090437361008175},null,null,null,null,null,{"$f":"(Quarterly!EY74-Quarterly!EY70)*100","v":118.99999999999994},{"$f":"(Quarterly!EZ74-Quarterly!EZ70)*100","v":-65.000000000000028},{"$f":"(Quarterly!FA74-Quarterly!FA70)*100","v":136.6666666666668},{"$f":"(Quarterly!FB74-Quarterly!FB70)*100","v":213.33333333333346},"--",{"$f":"(Quarterly!FD74-Quarterly!FD70)*100","v":116.6666666666666},{"$f":"(Quarterly!FE74-Quarterly!FE70)*100","v":-14.000000000000057},{"$f":"(Quarterly!FF74-Quarterly!FF70)*100","v":25.99999999999989},"--",{"$f":"(Quarterly!FH74-Quarterly!FH70)*100","v":82.333333333333329},{"$f":"(Quarterly!FI74-Quarterly!FI70)*100","v":91.6666666666666},null,null,null,null,null,null,{"$f":"((Quarterly!FP74/Quarterly!FP70)-1)","v":-1.3668489131884232E-2},"--","--","--",{"$f":"((Quarterly!FT74/Quarterly!FT70)-1)","v":3.5606024002739156E-2},{"$f":"((Quarterly!FU74/Quarterly!FU70)-1)","v":2.3754460089825402E-2},"--","--","--",null,null,null,null,null,{"$f":"((Quarterly!GD74/Quarterly!GD70)-1)","v":1.5893271461716942},"--","--","--",{"$f":"((Quarterly!GH74/Quarterly!GH70)-1)","v":{"$error":"#DIV/0!"}},"--","--","--","--"]
["75'Q1",{"$f":"((Quarterly!B75/Quarterly!B71)-1)","v":8.356382145968233E-2},{"$f":"((Quarterly!C75/Quarterly!C71)-1)","v":-2.2997867463758648E-2},{"$f":"((Quarterly!D75/Quarterly!D71)-1)","v":-8.9613217134860701E-3},{"$f":"((Quarterly!E75/Quarterly!E71)-1)","v":1.1724739199709955E-3},{"$f":"((Quarterly!F75/Quarterly!F71)-1)","v":-6.5502183406113801E-2},{"$f":"((Quarterly!G75/Quarterly!G71)-1)","v":-2.0382194043845114E-2},{"$f":"((Quarterly!H75/Quarterly!H71)-1)","v":1.6917568622018209E-2},{"$f":"((Quarterly!I75/Quarterly!I71)-1)","v":-9.276683328432811E-2},{"$f":"((Quarterly!J75/Quarterly!J71)-1)","v":-0.22509138689438923},{"$f":"((Quarterly!K75/Quarterly!K71)-1)","v":-0.24835783547075374},{"$f":"((Quarterly!L75-Quarterly!L71))","v":-48.608000000000004},{"$f":"((Quarterly!M75/Quarterly!M71)-1)","v":-7.8480781459283167E-2},{"$f":"((Quarterly!N75/Quarterly!N71)-1)","v":2.5197020487044641E-2},{"$f":"((Quarterly!O75/Quarterly!O71)-1)","v":-0.81655911025676198},{"$f":"((Quarterly!P75/Quarterly!P71)-1)","v":2.3403473498110783E-2},{"$f":"((Quarterly!Q75/Quarterly!Q71)-1)","v":1.1284063225879555},null,null,null,null,null,{"$f":"((Quarterly!W75/Quarterly!W71)-1)","v":-0.15224913494809689},"--",{"$f":"((Quarterly!Y75/Quarterly!Y71)-1)","v":0.14795290643750825},"--",{"$f":"((Quarterly!AA75/Quarterly!AA71)-1)","v":-0.17010491461735933},{"$f":"((Quarterly!AB75/Quarterly!AB71)-1)","v":-8.1860164862449181E-2},"--","--","--","--","--","--","--","--","--","--",{"$f":"((Quarterly!AM75/Quarterly!AM71)-1)","v":-0.10637810627813815},{"$f":"((Quarterly!AN75/Quarterly!AN71)-1)","v":-0.12844006392510188},"--","--",{"$f":"Quarterly!AQ75-Quarterly!AQ71","v":-28.600000000000009},"--","--",{"$f":"Quarterly!AT75-Quarterly!AT71","v":-23.000000000000004},"--","--",{"$f":"Quarterly!AW75-Quarterly!AW71","v":-27.266666666666673},{"$f":"Quarterly!AX75-Quarterly!AX71","v":-19.966666666666661},{"$f":"Quarterly!AY75-Quarterly!AY71","v":-45.766666666666659},{"$f":"Quarterly!AZ75-Quarterly!AZ71","v":-17.79999999999999},{"$f":"Quarterly!BA75-Quarterly!BA71","v":-72.266666666666666},"--","--","--","--",{"$f":"((Quarterly!BF75/Quarterly!BF71)-1)","v":0.11871625674865016},{"$f":"((Quarterly!BG75/Quarterly!BG71)-1)","v":3.4222864038297995E-3},{"$f":"((Quarterly!BH75/Quarterly!BH71)-1)","v":6.6376811594202056E-3},{"$f":"((Quarterly!BI75/Quarterly!BI71)-1)","v":0.11489826242532675},{"$f":"((Quarterly!BJ75/Quarterly!BJ71)-1)","v":-0.16080968929923745},"--",null,"--","--",null,null,null,null,null,{"$f":"((Quarterly!BT75/Quarterly!BT71)-1)","v":2.2905174397140682E-2},"--","--",{"$f":"((Quarterly!BW75/Quarterly!BW71)-1)","v":5.3810968905308565E-2},{"$f":"((Quarterly!BX75/Quarterly!BX71)-1)","v":-0.38440521227406466},{"$f":"((Quarterly!BY75/Quarterly!BY71)-1)","v":-0.47615589445654805},"--","--",{"$f":"((Quarterly!CB75/Quarterly!CB71)-1)","v":0.28970544870027548},{"$f":"((Quarterly!CC75/Quarterly!CC71)-1)","v":0.35152532883677101},"--","--",null,"--","--",null,{"$f":"((Quarterly!CJ75/Quarterly!CJ71)-1)","v":-0.1952264381884945},{"$f":"((Quarterly!CK75/Quarterly!CK71)-1)","v":9.260489316948961E-2},{"$f":"((Quarterly!CL75/Quarterly!CL71)-1)","v":-1.8497109826588476E-3},{"$f":"((Quarterly!CM75/Quarterly!CM71)-1)","v":-0.20656092285508287},{"$f":"((Quarterly!CN75/Quarterly!CN71)-1)","v":-1.1237566543773281E-2},{"$f":"((Quarterly!CO75/Quarterly!CO71)-1)","v":4.9888234098760531E-2},{"$f":"((Quarterly!CP75/Quarterly!CP71)-1)","v":3.5509183436393865E-2},{"$f":"((Quarterly!CQ75/Quarterly!CQ71)-1)","v":9.3505022551025885E-3},{"$f":"((Quarterly!CR75/Quarterly!CR71)-1)","v":0.16585856092529561},"--","--",null,null,null,null,null,{"$f":"((Quarterly!CZ75/Quarterly!CZ71)-1)","v":0.11134601832276259},{"$f":"((Quarterly!DA75/Quarterly!DA71)-1)","v":0.11573747353563868},null,null,null,null,null,{"$f":"((Quarterly!DG75/Quarterly!DG71)-1)","v":-5.4723799690242658E-2},{"$f":"((Quarterly!DH75-Quarterly!DH71)*60)","v":-42.000000000000171},{"$f":"Quarterly!DI75-Quarterly!DI71","v":-0.13333333333332575},"--",{"$f":"(Quarterly!DK75-Quarterly!DK71)*100","v":313.3333333333332},{"$f":"((Quarterly!DL75/Quarterly!DL71)-1)","v":-8.9193275816063289E-2},null,null,null,{"$f":"((Quarterly!DP75/Quarterly!DP71)-1)","v":-1.6147178398834061E-2},null,null,null,null,{"$f":"Quarterly!DU75-Quarterly!DU71","v":1.9000000000000004},"--","--","--","--","--","--","--","--",null,null,null,null,null,{"$f":"((Quarterly!EI75/Quarterly!EI71)-1)","v":-8.0578732438793099E-2},{"$f":"((Quarterly!EJ75/Quarterly!EJ71)-1)","v":-3.0621008879077594E-2},{"$f":"((Quarterly!EK75/Quarterly!EK71)-1)","v":-9.8610263919814978E-3},null,null,null,null,null,{"$f":"((Quarterly!EQ75/Quarterly!EQ71)-1)","v":0.14639037433155067},{"$f":"((Quarterly!ER75/Quarterly!ER71)-1)","v":0.17177097203728375},{"$f":"((Quarterly!ES75/Quarterly!ES71)-1)","v":0.22550432276657073},null,null,null,null,null,{"$f":"(Quarterly!EY75-Quarterly!EY71)*100","v":-28.333333333333321},{"$f":"(Quarterly!EZ75-Quarterly!EZ71)*100","v":-301.99999999999989},{"$f":"(Quarterly!FA75-Quarterly!FA71)*100","v":80.999999999999957},{"$f":"(Quarterly!FB75-Quarterly!FB71)*100","v":210.33333333333354},"--",{"$f":"(Quarterly!FD75-Quarterly!FD71)*100","v":67.666666666666586},{"$f":"(Quarterly!FE75-Quarterly!FE71)*100","v":-186.66666666666671},{"$f":"(Quarterly!FF75-Quarterly!FF71)*100","v":-104.66666666666669},"--",{"$f":"(Quarterly!FH75-Quarterly!FH71)*100","v":24.666666666666703},{"$f":"(Quarterly!FI75-Quarterly!FI71)*100","v":48.666666666666636},null,null,null,null,null,null,{"$f":"((Quarterly!FP75/Quarterly!FP71)-1)","v":1.8910921397231384E-2},"--","--","--",{"$f":"((Quarterly!FT75/Quarterly!FT71)-1)","v":-1.0390817124261931E-2},{"$f":"((Quarterly!FU75/Quarterly!FU71)-1)","v":-4.0693600106565198E-2},"--","--","--",null,null,null,null,null,{"$f":"((Quarterly!GD75/Quarterly!GD71)-1)","v":0.10385756676557878},"--","--","--",{"$f":"((Quarterly!GH75/Quarterly!GH71)-1)","v":{"$error":"#DIV/0!"}},"--","--","--","--"]
["75'Q2",{"$f":"((Quarterly!B76/Quarterly!B72)-1)","v":7.9667844246587904E-2},{"$f":"((Quarterly!C76/Quarterly!C72)-1)","v":-1.8051963953149008E-2},{"$f":"((Quarterly!D76/Quarterly!D72)-1)","v":-2.274605124863438E-5},{"$f":"((Quarterly!E76/Quarterly!E72)-1)","v":1.4350340034153142E-2},{"$f":"((Quarterly!F76/Quarterly!F72)-1)","v":-5.243602490972854E-2},{"$f":"((Quarterly!G76/Quarterly!G72)-1)","v":8.0005393622042398E-3},{"$f":"((Quarterly!H76/Quarterly!H72)-1)","v":2.3182430880743787E-2},{"$f":"((Quarterly!I76/Quarterly!I72)-1)","v":-0.113029711719009},{"$f":"((Quarterly!J76/Quarterly!J72)-1)","v":-0.25009939214784782},{"$f":"((Quarterly!K76/Quarterly!K72)-1)","v":-0.19784172661870503},{"$f":"((Quarterly!L76-Quarterly!L72))","v":-72.00200000000001},{"$f":"((Quarterly!M76/Quarterly!M72)-1)","v":-0.19487915815441537},{"$f":"((Quarterly!N76/Quarterly!N72)-1)","v":-5.0808178159693407E-2},{"$f":"((Quarterly!O76/Quarterly!O72)-1)","v":-1.1871548011147708},{"$f":"((Quarterly!P76/Quarterly!P72)-1)","v":1.0056935799977129E-2},{"$f":"((Quarterly!Q76/Quarterly!Q72)-1)","v":2.4975699947173799},null,null,null,null,null,{"$f":"((Quarterly!W76/Quarterly!W72)-1)","v":-0.16414435389988369},"--",{"$f":"((Quarterly!Y76/Quarterly!Y72)-1)","v":4.7665609220430616E-2},"--",{"$f":"((Quarterly!AA76/Quarterly!AA72)-1)","v":-0.14550526574042943},{"$f":"((Quarterly!AB76/Quarterly!AB72)-1)","v":7.0119449256861532E-2},"--","--","--","--","--","--","--","--","--","--",{"$f":"((Quarterly!AM76/Quarterly!AM72)-1)","v":-0.11889559598707722},{"$f":"((Quarterly!AN76/Quarterly!AN72)-1)","v":-0.14270675034054847},"--","--",{"$f":"Quarterly!AQ76-Quarterly!AQ72","v":-15.5},"--","--",{"$f":"Quarterly!AT76-Quarterly!AT72","v":-11.5},"--","--",{"$f":"Quarterly!AW76-Quarterly!AW72","v":-30.366666666666664},{"$f":"Quarterly!AX76-Quarterly!AX72","v":-5.0666666666666629},{"$f":"Quarterly!AY76-Quarterly!AY72","v":-47.466666666666654},{"$f":"Quarterly!AZ76-Quarterly!AZ72","v":-2.4666666666666686},{"$f":"Quarterly!BA76-Quarterly!BA72","v":-53.466666666666669},"--","--","--","--",{"$f":"((Quarterly!BF76/Quarterly!BF72)-1)","v":0.11346232536388601},{"$f":"((Quarterly!BG76/Quarterly!BG72)-1)","v":2.2848982506247895E-2},{"$f":"((Quarterly!BH76/Quarterly!BH72)-1)","v":1.6502080886298121E-2},{"$f":"((Quarterly!BI76/Quarterly!BI72)-1)","v":8.859416445623336E-2},{"$f":"((Quarterly!BJ76/Quarterly!BJ72)-1)","v":-0.13383885087232605},"--",null,"--","--",null,null,null,null,null,{"$f":"((Quarterly!BT76/Quarterly!BT72)-1)","v":-1.2362488283755857E-3},"--","--",{"$f":"((Quarterly!BW76/Quarterly!BW72)-1)","v":6.9038300866276936E-2},{"$f":"((Quarterly!BX76/Quarterly!BX72)-1)","v":-0.2932248130224373},{"$f":"((Quarterly!BY76/Quarterly!BY72)-1)","v":-0.21621621621621623},"--","--",{"$f":"((Quarterly!CB76/Quarterly!CB72)-1)","v":0.16927265701575411},{"$f":"((Quarterly!CC76/Quarterly!CC72)-1)","v":0.26989324001707726},"--","--",null,"--","--",null,{"$f":"((Quarterly!CJ76/Quarterly!CJ72)-1)","v":6.5947242206234602E-3},{"$f":"((Quarterly!CK76/Quarterly!CK72)-1)","v":9.5229064506515471E-2},{"$f":"((Quarterly!CL76/Quarterly!CL72)-1)","v":0.35892372253764515},{"$f":"((Quarterly!CM76/Quarterly!CM72)-1)","v":-0.1203319502074689},{"$f":"((Quarterly!CN76/Quarterly!CN72)-1)","v":4.4447283256685344E-2},{"$f":"((Quarterly!CO76/Quarterly!CO72)-1)","v":8.9227970897332254E-2},{"$f":"((Quarterly!CP76/Quarterly!CP72)-1)","v":1.0491327910095549E-2},{"$f":"((Quarterly!CQ76/Quarterly!CQ72)-1)","v":9.4979393031098258E-3},{"$f":"((Quarterly!CR76/Quarterly!CR72)-1)","v":0.12737093329983673},"--","--",null,null,null,null,null,{"$f":"((Quarterly!CZ76/Quarterly!CZ72)-1)","v":9.5401509951956065E-2},{"$f":"((Quarterly!DA76/Quarterly!DA72)-1)","v":0.10453920220082513},null,null,null,null,null,{"$f":"((Quarterly!DG76/Quarterly!DG72)-1)","v":-6.4082687338501088E-2},{"$f":"((Quarterly!DH76-Quarterly!DH72)*60)","v":-36.000000000000085},{"$f":"Quarterly!DI76-Quarterly!DI72","v":0.1666666666666714},"--",{"$f":"(Quarterly!DK76-Quarterly!DK72)*100","v":366.66666666666669},{"$f":"((Quarterly!DL76/Quarterly!DL72)-1)","v":-0.10493937232524952},null,null,null,{"$f":"((Quarterly!DP76/Quarterly!DP72)-1)","v":-2.5164415724469258E-2},null,null,null,null,{"$f":"Quarterly!DU76-Quarterly!DU72","v":4.0000000000000009},"--","--","--","--","--","--","--","--",null,null,null,null,null,{"$f":"((Quarterly!EI76/Quarterly!EI72)-1)","v":-7.6497069702909593E-2},{"$f":"((Quarterly!EJ76/Quarterly!EJ72)-1)","v":-2.4041872230394667E-2},{"$f":"((Quarterly!EK76/Quarterly!EK72)-1)","v":-5.7467465730473011E-3},null,null,null,null,null,{"$f":"((Quarterly!EQ76/Quarterly!EQ72)-1)","v":0.12015503875968991},{"$f":"((Quarterly!ER76/Quarterly!ER72)-1)","v":0.13810741687979555},{"$f":"((Quarterly!ES76/Quarterly!ES72)-1)","v":0.18861454046639237},null,null,null,null,null,{"$f":"(Quarterly!EY76-Quarterly!EY72)*100","v":-361.33333333333343},{"$f":"(Quarterly!EZ76-Quarterly!EZ72)*100","v":-582.99999999999989},{"$f":"(Quarterly!FA76-Quarterly!FA72)*100","v":51.000000000000156},{"$f":"(Quarterly!FB76-Quarterly!FB72)*100","v":156.66666666666663},"--",{"$f":"(Quarterly!FD76-Quarterly!FD72)*100","v":-0.66666666666677088},{"$f":"(Quarterly!FE76-Quarterly!FE72)*100","v":-276.00000000000006},{"$f":"(Quarterly!FF76-Quarterly!FF72)*100","v":-216.33333333333331},"--",{"$f":"(Quarterly!FH76-Quarterly!FH72)*100","v":-32.666666666666885},{"$f":"(Quarterly!FI76-Quarterly!FI72)*100","v":50.666666666666593},null,null,null,null,null,null,{"$f":"((Quarterly!FP76/Quarterly!FP72)-1)","v":5.8591996685426251E-2},"--","--","--",{"$f":"((Quarterly!FT76/Quarterly!FT72)-1)","v":2.9598046201370076E-2},{"$f":"((Quarterly!FU76/Quarterly!FU72)-1)","v":3.7211030584485272E-3},"--","--","--",null,null,null,null,null,{"$f":"((Quarterly!GD76/Quarterly!GD72)-1)","v":0.10385756676557878},"--","--","--",{"$f":"((Quarterly!GH76/Quarterly!GH72)-1)","v":{"$error":"#DIV/0!"}},"--","--","--","--"]
["75'Q3",{"$f":"((Quarterly!B77/Quarterly!B73)-1)","v":9.6211068724750382E-2},{"$f":"((Quarterly!C77/Quarterly!C73)-1)","v":7.934662023890926E-3},{"$f":"((Quarterly!D77/Quarterly!D73)-1)","v":1.2028409030832243E-2},{"$f":"((Quarterly!E77/Quarterly!E73)-1)","v":2.4584539189068222E-2},{"$f":"((Quarterly!F77/Quarterly!F73)-1)","v":9.3652445369429849E-4},{"$f":"((Quarterly!G77/Quarterly!G73)-1)","v":1.5675105958334212E-2},{"$f":"((Quarterly!H77/Quarterly!H73)-1)","v":3.0668057215431643E-2},{"$f":"((Quarterly!I77/Quarterly!I73)-1)","v":-9.4331200714179442E-2},{"$f":"((Quarterly!J77/Quarterly!J73)-1)","v":-0.20884834183972933},{"$f":"((Quarterly!K77/Quarterly!K73)-1)","v":-0.11299052774018958},{"$f":"((Quarterly!L77-Quarterly!L73))","v":-17.795999999999999},{"$f":"((Quarterly!M77/Quarterly!M73)-1)","v":-0.11243191641002515},{"$f":"((Quarterly!N77/Quarterly!N73)-1)","v":-1.3608774938080104E-2},{"$f":"((Quarterly!O77/Quarterly!O73)-1)","v":-0.63446094439994316},{"$f":"((Quarterly!P77/Quarterly!P73)-1)","v":2.4795389873793816E-2},{"$f":"((Quarterly!Q77/Quarterly!Q73)-1)","v":1.4804225196327838},null,null,null,null,null,{"$f":"((Quarterly!W77/Quarterly!W73)-1)","v":-0.13191990577149593},"--",{"$f":"((Quarterly!Y77/Quarterly!Y73)-1)","v":-1.6050660922735993E-2},"--",{"$f":"((Quarterly!AA77/Quarterly!AA73)-1)","v":-3.9922601693738735E-2},{"$f":"((Quarterly!AB77/Quarterly!AB73)-1)","v":0.38222819593787349},"--","--","--","--","--","--","--","--","--","--",{"$f":"((Quarterly!AM77/Quarterly!AM73)-1)","v":-9.3478842415911756E-2},{"$f":"((Quarterly!AN77/Quarterly!AN73)-1)","v":-0.11101562932336184},"--","--",{"$f":"Quarterly!AQ77-Quarterly!AQ73","v":-0.29999999999999005},"--","--",{"$f":"Quarterly!AT77-Quarterly!AT73","v":1.0333333333333314},"--","--",{"$f":"Quarterly!AW77-Quarterly!AW73","v":-26.566666666666663},{"$f":"Quarterly!AX77-Quarterly!AX73","v":11.699999999999996},{"$f":"Quarterly!AY77-Quarterly!AY73","v":-20.700000000000003},{"$f":"Quarterly!AZ77-Quarterly!AZ73","v":10.433333333333337},{"$f":"Quarterly!BA77-Quarterly!BA73","v":-26.56666666666667},"--","--","--","--",{"$f":"((Quarterly!BF77/Quarterly!BF73)-1)","v":0.10043147496309746},{"$f":"((Quarterly!BG77/Quarterly!BG73)-1)","v":4.554657899484793E-2},{"$f":"((Quarterly!BH77/Quarterly!BH73)-1)","v":1.2539094173520393E-2},{"$f":"((Quarterly!BI77/Quarterly!BI73)-1)","v":5.2504885163263459E-2},{"$f":"((Quarterly!BJ77/Quarterly!BJ73)-1)","v":-1.2585182295849262E-2},"--",null,"--","--",null,null,null,null,null,{"$f":"((Quarterly!BT77/Quarterly!BT73)-1)","v":-5.7747831319095999E-3},"--","--",{"$f":"((Quarterly!BW77/Quarterly!BW73)-1)","v":7.9266841228278873E-2},{"$f":"((Quarterly!BX77/Quarterly!BX73)-1)","v":3.9356984478935653E-2},{"$f":"((Quarterly!BY77/Quarterly!BY73)-1)","v":0.11562160202972094},"--","--",{"$f":"((Quarterly!CB77/Quarterly!CB73)-1)","v":3.5415101257108006E-3},{"$f":"((Quarterly!CC77/Quarterly!CC73)-1)","v":9.7166006837767105E-2},"--","--",null,"--","--",null,{"$f":"((Quarterly!CJ77/Quarterly!CJ73)-1)","v":0.10019518542615469},{"$f":"((Quarterly!CK77/Quarterly!CK73)-1)","v":9.2741723248592089E-2},{"$f":"((Quarterly!CL77/Quarterly!CL73)-1)","v":0.13338246131171694},{"$f":"((Quarterly!CM77/Quarterly!CM73)-1)","v":0.102981029810298},{"$f":"((Quarterly!CN77/Quarterly!CN73)-1)","v":2.8246905177181203E-2},{"$f":"((Quarterly!CO77/Quarterly!CO73)-1)","v":0.12665596146126035},{"$f":"((Quarterly!CP77/Quarterly!CP73)-1)","v":-3.36119876616503E-3},{"$f":"((Quarterly!CQ77/Quarterly!CQ73)-1)","v":9.9962313631563049E-3},{"$f":"((Quarterly!CR77/Quarterly!CR73)-1)","v":9.2850372341655385E-2},"--","--",null,null,null,null,null,{"$f":"((Quarterly!CZ77/Quarterly!CZ73)-1)","v":8.6782376502002823E-2},{"$f":"((Quarterly!DA77/Quarterly!DA73)-1)","v":8.1781914893616969E-2},null,null,null,null,null,{"$f":"((Quarterly!DG77/Quarterly!DG73)-1)","v":-4.9171842650103437E-2},{"$f":"((Quarterly!DH77-Quarterly!DH73)*60)","v":-26.000000000000227},{"$f":"Quarterly!DI77-Quarterly!DI73","v":-6.6666666666662877E-2},"--",{"$f":"(Quarterly!DK77-Quarterly!DK73)*100","v":283.33333333333337},{"$f":"((Quarterly!DL77/Quarterly!DL73)-1)","v":-9.5337233927994647E-2},null,null,null,{"$f":"((Quarterly!DP77/Quarterly!DP73)-1)","v":-1.9973289805609307E-2},null,null,null,null,{"$f":"Quarterly!DU77-Quarterly!DU73","v":3.6666666666666652},"--","--","--","--","--","--","--","--",null,null,null,null,null,{"$f":"((Quarterly!EI77/Quarterly!EI73)-1)","v":-3.3448243639100261E-2},{"$f":"((Quarterly!EJ77/Quarterly!EJ73)-1)","v":-1.1073860991694939E-3},{"$f":"((Quarterly!EK77/Quarterly!EK73)-1)","v":1.1124746716264067E-2},null,null,null,null,null,{"$f":"((Quarterly!EQ77/Quarterly!EQ73)-1)","v":6.8154402895054034E-2},{"$f":"((Quarterly!ER77/Quarterly!ER73)-1)","v":9.2289010321797038E-2},{"$f":"((Quarterly!ES77/Quarterly!ES73)-1)","v":0.12764592687620269},null,null,null,null,null,{"$f":"(Quarterly!EY77-Quarterly!EY73)*100","v":-442.66666666666669},{"$f":"(Quarterly!EZ77-Quarterly!EZ73)*100","v":-592.99999999999989},{"$f":"(Quarterly!FA77-Quarterly!FA73)*100","v":-7.3333333333334139},{"$f":"(Quarterly!FB77-Quarterly!FB73)*100","v":77.333333333333343},"--",{"$f":"(Quarterly!FD77-Quarterly!FD73)*100","v":-62.333333333333307},{"$f":"(Quarterly!FE77-Quarterly!FE73)*100","v":-185.99999999999986},{"$f":"(Quarterly!FF77-Quarterly!FF73)*100","v":-148.99999999999994},"--",{"$f":"(Quarterly!FH77-Quarterly!FH73)*100","v":-25.333333333333563},{"$f":"(Quarterly!FI77-Quarterly!FI73)*100","v":33.333333333333485},null,null,null,null,null,null,{"$f":"((Quarterly!FP77/Quarterly!FP73)-1)","v":5.0975327941276349E-2},"--","--","--",{"$f":"((Quarterly!FT77/Quarterly!FT73)-1)","v":5.0875929436668965E-2},{"$f":"((Quarterly!FU77/Quarterly!FU73)-1)","v":1.8751993466145533E-2},"--","--","--",null,null,null,null,null,{"$f":"((Quarterly!GD77/Quarterly!GD73)-1)","v":0.10385756676557878},"--","--","--",{"$f":"((Quarterly!GH77/Quarterly!GH73)-1)","v":{"$error":"#DIV/0!"}},"--","--","--","--"]
["75'Q4",{"$f":"((Quarterly!B78/Quarterly!B74)-1)","v":0.10159862358422056},{"$f":"((Quarterly!C78/Quarterly!C74)-1)","v":2.5625489297886217E-2},{"$f":"((Quarterly!D78/Quarterly!D74)-1)","v":3.9236954260311041E-2},{"$f":"((Quarterly!E78/Quarterly!E74)-1)","v":5.0870552611657738E-2},{"$f":"((Quarterly!F78/Quarterly!F74)-1)","v":0.13840492208613675},{"$f":"((Quarterly!G78/Quarterly!G74)-1)","v":3.1600337922688793E-2},{"$f":"((Quarterly!H78/Quarterly!H74)-1)","v":5.2150650519755981E-2},{"$f":"((Quarterly!I78/Quarterly!I74)-1)","v":-5.8828023531209306E-2},{"$f":"((Quarterly!J78/Quarterly!J74)-1)","v":-0.14259375432132504},{"$f":"((Quarterly!K78/Quarterly!K74)-1)","v":6.6666666666666652E-2},{"$f":"((Quarterly!L78-Quarterly!L74))","v":-45.989000000000004},{"$f":"((Quarterly!M78/Quarterly!M74)-1)","v":-5.5683236581934858E-2},{"$f":"((Quarterly!N78/Quarterly!N74)-1)","v":1.5622868575412507E-2},{"$f":"((Quarterly!O78/Quarterly!O74)-1)","v":-0.53907012586694036},{"$f":"((Quarterly!P78/Quarterly!P74)-1)","v":2.9783167852262427E-2},{"$f":"((Quarterly!Q78/Quarterly!Q74)-1)","v":0.70211048105448937},null,null,null,null,null,{"$f":"((Quarterly!W78/Quarterly!W74)-1)","v":-6.575682382133996E-2},"--",{"$f":"((Quarterly!Y78/Quarterly!Y74)-1)","v":-3.8919025907716009E-2},"--",{"$f":"((Quarterly!AA78/Quarterly!AA74)-1)","v":0.16096601143394151},{"$f":"((Quarterly!AB78/Quarterly!AB74)-1)","v":0.48648327843556216},"--","--","--","--","--","--","--","--","--","--",{"$f":"((Quarterly!AM78/Quarterly!AM74)-1)","v":-3.5202344945933328E-2},{"$f":"((Quarterly!AN78/Quarterly!AN74)-1)","v":-4.4605599732621126E-2},"--","--",{"$f":"Quarterly!AQ78-Quarterly!AQ74","v":17.800000000000004},"--","--",{"$f":"Quarterly!AT78-Quarterly!AT74","v":10.400000000000006},"--","--",{"$f":"Quarterly!AW78-Quarterly!AW74","v":-4.93333333333333},{"$f":"Quarterly!AX78-Quarterly!AX74","v":30.666666666666664},{"$f":"Quarterly!AY78-Quarterly!AY74","v":-0.29999999999998295},{"$f":"Quarterly!AZ78-Quarterly!AZ74","v":-78.166666666666657},{"$f":"Quarterly!BA78-Quarterly!BA74","v":10.100000000000009},"--","--","--","--",{"$f":"((Quarterly!BF78/Quarterly!BF74)-1)","v":8.8337660902712667E-2},{"$f":"((Quarterly!BG78/Quarterly!BG74)-1)","v":3.7357178340784891E-2},{"$f":"((Quarterly!BH78/Quarterly!BH74)-1)","v":1.3506252087660098E-2},{"$f":"((Quarterly!BI78/Quarterly!BI74)-1)","v":4.9154804270462371E-2},{"$f":"((Quarterly!BJ78/Quarterly!BJ74)-1)","v":0.18185987394682712},"--",null,"--","--",null,null,null,null,null,{"$f":"((Quarterly!BT78/Quarterly!BT74)-1)","v":1.2564863018362571E-2},"--","--",{"$f":"((Quarterly!BW78/Quarterly!BW74)-1)","v":9.4507235208493912E-2},{"$f":"((Quarterly!BX78/Quarterly!BX74)-1)","v":0.31064799739498539},{"$f":"((Quarterly!BY78/Quarterly!BY74)-1)","v":0.33158319870759279},"--","--",{"$f":"((Quarterly!CB78/Quarterly!CB74)-1)","v":-0.15879808220955227},{"$f":"((Quarterly!CC78/Quarterly!CC74)-1)","v":-7.6116963954272254E-2},"--","--",null,"--","--",null,{"$f":"((Quarterly!CJ78/Quarterly!CJ74)-1)","v":0.48897338403041823},{"$f":"((Quarterly!CK78/Quarterly!CK74)-1)","v":9.5676551529024545E-2},{"$f":"((Quarterly!CL78/Quarterly!CL74)-1)","v":1.886378591796456E-2},{"$f":"((Quarterly!CM78/Quarterly!CM74)-1)","v":0.325491873396065},{"$f":"((Quarterly!CN78/Quarterly!CN74)-1)","v":3.747529475908129E-2},{"$f":"((Quarterly!CO78/Quarterly!CO74)-1)","v":0.14390485629335981},{"$f":"((Quarterly!CP78/Quarterly!CP74)-1)","v":1.375572960209781E-2},{"$f":"((Quarterly!CQ78/Quarterly!CQ74)-1)","v":9.988227217802681E-3},{"$f":"((Quarterly!CR78/Quarterly!CR74)-1)","v":9.0758805976068224E-2},"--","--",null,null,null,null,null,{"$f":"((Quarterly!CZ78/Quarterly!CZ74)-1)","v":7.3834196891191528E-2},{"$f":"((Quarterly!DA78/Quarterly!DA74)-1)","v":6.9121447028423599E-2},null,null,null,null,null,{"$f":"((Quarterly!DG78/Quarterly!DG74)-1)","v":-1.6904384574749076E-2},{"$f":"((Quarterly!DH78-Quarterly!DH74)*60)","v":-1.9999999999998863},{"$f":"Quarterly!DI78-Quarterly!DI74","v":-0.13333333333333997},"--",{"$f":"(Quarterly!DK78-Quarterly!DK74)*100","v":170.00000000000003},{"$f":"((Quarterly!DL78/Quarterly!DL74)-1)","v":-5.5140946540067182E-2},null,null,null,{"$f":"((Quarterly!DP78/Quarterly!DP74)-1)","v":-5.6022886670902272E-3},null,null,null,null,{"$f":"Quarterly!DU78-Quarterly!DU74","v":3.5666666666666673},"--","--","--","--","--","--","--","--",null,null,null,null,null,{"$f":"((Quarterly!EI78/Quarterly!EI74)-1)","v":1.2321911618641934E-2},{"$f":"((Quarterly!EJ78/Quarterly!EJ74)-1)","v":2.9966603602936237E-2},{"$f":"((Quarterly!EK78/Quarterly!EK74)-1)","v":3.2464489753050385E-2},null,null,null,null,null,{"$f":"((Quarterly!EQ78/Quarterly!EQ74)-1)","v":4.3123543123543051E-2},{"$f":"((Quarterly!ER78/Quarterly!ER74)-1)","v":6.3953488372092915E-2},{"$f":"((Quarterly!ES78/Quarterly!ES74)-1)","v":8.6824529447480314E-2},null,null,null,null,null,{"$f":"(Quarterly!EY78-Quarterly!EY74)*100","v":-341.99999999999989},{"$f":"(Quarterly!EZ78-Quarterly!EZ74)*100","v":-393.33333333333326},{"$f":"(Quarterly!FA78-Quarterly!FA74)*100","v":-20.6666666666667},{"$f":"(Quarterly!FB78-Quarterly!FB74)*100","v":0.99999999999997868},"--",{"$f":"(Quarterly!FD78-Quarterly!FD74)*100","v":-64.000000000000057},{"$f":"(Quarterly!FE78-Quarterly!FE74)*100","v":-173.33333333333317},{"$f":"(Quarterly!FF78-Quarterly!FF74)*100","v":-99.333333333333314},"--",{"$f":"(Quarterly!FH78-Quarterly!FH74)*100","v":19.000000000000128},{"$f":"(Quarterly!FI78-Quarterly!FI74)*100","v":39.333333333333528},null,null,null,null,null,null,{"$f":"((Quarterly!FP78/Quarterly!FP74)-1)","v":3.1873183262353555E-2},"--","--","--",{"$f":"((Quarterly!FT78/Quarterly!FT74)-1)","v":6.4181297967355722E-2},{"$f":"((Quarterly!FU78/Quarterly!FU74)-1)","v":3.2075465551168358E-2},"--","--","--",null,null,null,null,null,{"$f":"((Quarterly!GD78/Quarterly!GD74)-1)","v":0},"--","--","--",{"$f":"((Quarterly!GH78/Quarterly!GH74)-1)","v":{"$error":"#DIV/0!"}},"--","--","--","--"]
["76'Q1",{"$f":"((Quarterly!B79/Quarterly!B75)-1)","v":0.12655096807575905},{"$f":"((Quarterly!C79/Quarterly!C75)-1)","v":6.1611610817233098E-2},{"$f":"((Quarterly!D79/Quarterly!D75)-1)","v":4.6127023763640418E-2},{"$f":"((Quarterly!E79/Quarterly!E75)-1)","v":6.2969191039577321E-2},{"$f":"((Quarterly!F79/Quarterly!F75)-1)","v":0.17036369778178151},{"$f":"((Quarterly!G79/Quarterly!G75)-1)","v":5.050021649461045E-2},{"$f":"((Quarterly!H79/Quarterly!H75)-1)","v":5.949683745177281E-2},{"$f":"((Quarterly!I79/Quarterly!I75)-1)","v":1.9526818992059658E-2},{"$f":"((Quarterly!J79/Quarterly!J75)-1)","v":-1.4099125401367818E-4},{"$f":"((Quarterly!K79/Quarterly!K75)-1)","v":0.25551394090719914},{"$f":"((Quarterly!L79-Quarterly!L75))","v":53.262},{"$f":"((Quarterly!M79/Quarterly!M75)-1)","v":0.11541242581180322},{"$f":"((Quarterly!N79/Quarterly!N75)-1)","v":1.5276424263175326E-3},{"$f":"((Quarterly!O79/Quarterly!O75)-1)","v":4.646407185628731},{"$f":"((Quarterly!P79/Quarterly!P75)-1)","v":2.0605566266921116E-2},{"$f":"((Quarterly!Q79/Quarterly!Q75)-1)","v":7.478339566392056E-2},null,null,null,null,null,{"$f":"((Quarterly!W79/Quarterly!W75)-1)","v":5.3061224489795888E-2},"--",{"$f":"((Quarterly!Y79/Quarterly!Y75)-1)","v":-4.5442752985730972E-2},"--",{"$f":"((Quarterly!AA79/Quarterly!AA75)-1)","v":0.42250664036670504},{"$f":"((Quarterly!AB79/Quarterly!AB75)-1)","v":0.4669271748830417},"--","--","--","--","--","--","--","--","--","--",{"$f":"((Quarterly!AM79/Quarterly!AM75)-1)","v":6.4823402562184107E-2},{"$f":"((Quarterly!AN79/Quarterly!AN75)-1)","v":7.8225700203397031E-2},"--","--",{"$f":"Quarterly!AQ79-Quarterly!AQ75","v":27.333333333333336},"--","--",{"$f":"Quarterly!AT79-Quarterly!AT75","v":23.233333333333338},"--","--",{"$f":"Quarterly!AW79-Quarterly!AW75","v":14.033333333333331},{"$f":"Quarterly!AX79-Quarterly!AX75","v":28.1},{"$f":"Quarterly!AY79-Quarterly!AY75","v":24.033333333333324},{"$f":"Quarterly!AZ79-Quarterly!AZ75","v":28.566666666666663},{"$f":"Quarterly!BA79-Quarterly!BA75","v":38.033333333333331},"--","--","--","--",{"$f":"((Quarterly!BF79/Quarterly!BF75)-1)","v":7.6518848195613609E-2},{"$f":"((Quarterly!BG79/Quarterly!BG75)-1)","v":4.4357700496806318E-2},{"$f":"((Quarterly!BH79/Quarterly!BH75)-1)","v":1.2309597166633157E-2},{"$f":"((Quarterly!BI79/Quarterly!BI75)-1)","v":3.0762117173475545E-2},{"$f":"((Quarterly!BJ79/Quarterly!BJ75)-1)","v":0.52093023255813953},"--",null,"--","--",null,null,null,null,null,{"$f":"((Quarterly!BT79/Quarterly!BT75)-1)","v":3.8627132784467166E-2},"--","--",{"$f":"((Quarterly!BW79/Quarterly!BW75)-1)","v":0.10129170927150932},{"$f":"((Quarterly!BX79/Quarterly!BX75)-1)","v":0.47695459201092527},{"$f":"((Quarterly!BY79/Quarterly!BY75)-1)","v":0.64001848428835473},"--","--",{"$f":"((Quarterly!CB79/Quarterly!CB75)-1)","v":-0.27467585102763759},{"$f":"((Quarterly!CC79/Quarterly!CC75)-1)","v":-0.22640256045607399},"--","--",null,"--","--",null,{"$f":"((Quarterly!CJ79/Quarterly!CJ75)-1)","v":0.39771863117870709},{"$f":"((Quarterly!CK79/Quarterly!CK75)-1)","v":0.10410861745782451},{"$f":"((Quarterly!CL79/Quarterly!CL75)-1)","v":4.470697243456101E-2},{"$f":"((Quarterly!CM79/Quarterly!CM75)-1)","v":0.55565651976374375},{"$f":"((Quarterly!CN79/Quarterly!CN75)-1)","v":5.1246171042414801E-2},{"$f":"((Quarterly!CO79/Quarterly!CO75)-1)","v":0.16684409174489478},{"$f":"((Quarterly!CP79/Quarterly!CP75)-1)","v":3.8293652486701246E-2},{"$f":"((Quarterly!CQ79/Quarterly!CQ75)-1)","v":1.012253678738495E-2},{"$f":"((Quarterly!CR79/Quarterly!CR75)-1)","v":8.6269735648176082E-2},"--","--",null,null,null,null,null,{"$f":"((Quarterly!CZ79/Quarterly!CZ75)-1)","v":6.3411540900443875E-2},{"$f":"((Quarterly!DA79/Quarterly!DA75)-1)","v":6.6413662239089177E-2},null,null,null,null,null,{"$f":"((Quarterly!DG79/Quarterly!DG75)-1)","v":3.5499726925177555E-2},{"$f":"((Quarterly!DH79-Quarterly!DH75)*60)","v":17.999999999999829},{"$f":"Quarterly!DI79-Quarterly!DI75","v":9.9999999999980105E-2},"--",{"$f":"(Quarterly!DK79-Quarterly!DK75)*100","v":-53.333333333333144},{"$f":"((Quarterly!DL79/Quarterly!DL75)-1)","v":1.8359016425460339E-2},null,null,null,{"$f":"((Quarterly!DP79/Quarterly!DP75)-1)","v":2.3853767353215094E-2},null,null,null,null,{"$f":"Quarterly!DU79-Quarterly!DU75","v":1.7666666666666666},"--","--","--","--","--","--","--","--",null,null,null,null,null,{"$f":"((Quarterly!EI79/Quarterly!EI75)-1)","v":8.6213705924496509E-2},{"$f":"((Quarterly!EJ79/Quarterly!EJ75)-1)","v":6.8109645000693497E-2},{"$f":"((Quarterly!EK79/Quarterly!EK75)-1)","v":5.956856320754178E-2},null,null,null,null,null,{"$f":"((Quarterly!EQ79/Quarterly!EQ75)-1)","v":4.8396501457726115E-2},{"$f":"((Quarterly!ER79/Quarterly!ER75)-1)","v":5.5681818181818388E-2},{"$f":"((Quarterly!ES79/Quarterly!ES75)-1)","v":7.1134626690182001E-2},null,null,null,null,null,{"$f":"(Quarterly!EY79-Quarterly!EY75)*100","v":-214.66666666666674},{"$f":"(Quarterly!EZ79-Quarterly!EZ75)*100","v":-147.66666666666666},{"$f":"(Quarterly!FA79-Quarterly!FA75)*100","v":-14.999999999999858},{"$f":"(Quarterly!FB79-Quarterly!FB75)*100","v":-39.000000000000057},"--",{"$f":"(Quarterly!FD79-Quarterly!FD75)*100","v":-28.333333333333499},{"$f":"(Quarterly!FE79-Quarterly!FE75)*100","v":-83.3333333333333},{"$f":"(Quarterly!FF79-Quarterly!FF75)*100","v":-33.000000000000099},"--",{"$f":"(Quarterly!FH79-Quarterly!FH75)*100","v":19.333333333333247},{"$f":"(Quarterly!FI79-Quarterly!FI75)*100","v":21.333333333333382},null,null,null,null,null,null,{"$f":"((Quarterly!FP79/Quarterly!FP75)-1)","v":-3.2713556097073715E-3},"--","--","--",{"$f":"((Quarterly!FT79/Quarterly!FT75)-1)","v":8.4115442617696656E-2},{"$f":"((Quarterly!FU79/Quarterly!FU75)-1)","v":6.3033039922401057E-2},"--","--","--",null,null,null,null,null,{"$f":"((Quarterly!GD79/Quarterly!GD75)-1)","v":5.4062126642771657E-2},"--","--","--",{"$f":"((Quarterly!GH79/Quarterly!GH75)-1)","v":{"$error":"#DIV/0!"}},"--","--","--","--"]
["76'Q2",{"$f":"((Quarterly!B80/Quarterly!B76)-1)","v":0.12103971872343711},{"$f":"((Quarterly!C80/Quarterly!C76)-1)","v":6.1454805914625599E-2},{"$f":"((Quarterly!D80/Quarterly!D76)-1)","v":3.9169776134929002E-2},{"$f":"((Quarterly!E80/Quarterly!E76)-1)","v":5.5142063913993677E-2},{"$f":"((Quarterly!F80/Quarterly!F76)-1)","v":0.15325564698735339},{"$f":"((Quarterly!G80/Quarterly!G76)-1)","v":4.3519942924664878E-2},{"$f":"((Quarterly!H80/Quarterly!H76)-1)","v":5.2067615738141892E-2},{"$f":"((Quarterly!I80/Quarterly!I76)-1)","v":5.8486571748785909E-2},{"$f":"((Quarterly!J80/Quarterly!J76)-1)","v":6.9188426695157457E-2},{"$f":"((Quarterly!K80/Quarterly!K76)-1)","v":0.26538931920097819},{"$f":"((Quarterly!L80-Quarterly!L76))","v":84.78},{"$f":"((Quarterly!M80/Quarterly!M76)-1)","v":0.26494631892661791},{"$f":"((Quarterly!N80/Quarterly!N76)-1)","v":4.1940209429765174E-2},{"$f":"((Quarterly!O80/Quarterly!O76)-1)","v":-7.5248409367808327},{"$f":"((Quarterly!P80/Quarterly!P76)-1)","v":1.7135054841178166E-2},{"$f":"((Quarterly!Q80/Quarterly!Q76)-1)","v":-0.42475343231282758},null,null,null,null,null,{"$f":"((Quarterly!W80/Quarterly!W76)-1)","v":8.7743732590529255E-2},"--",{"$f":"((Quarterly!Y80/Quarterly!Y76)-1)","v":-4.1411667573575839E-2},"--",{"$f":"((Quarterly!AA80/Quarterly!AA76)-1)","v":0.39040600608264753},{"$f":"((Quarterly!AB80/Quarterly!AB76)-1)","v":0.31428327977407733},"--","--","--","--","--","--","--","--","--","--",{"$f":"((Quarterly!AM80/Quarterly!AM76)-1)","v":9.3015906711503504E-2},{"$f":"((Quarterly!AN80/Quarterly!AN76)-1)","v":0.11530064632507675},"--","--",{"$f":"Quarterly!AQ80-Quarterly!AQ76","v":17.933333333333337},"--","--",{"$f":"Quarterly!AT80-Quarterly!AT76","v":15.233333333333334},"--","--",{"$f":"Quarterly!AW80-Quarterly!AW76","v":23.000000000000004},{"$f":"Quarterly!AX80-Quarterly!AX76","v":14.466666666666654},{"$f":"Quarterly!AY80-Quarterly!AY76","v":34},{"$f":"Quarterly!AZ80-Quarterly!AZ76","v":12},{"$f":"Quarterly!BA80-Quarterly!BA76","v":34.966666666666669},"--","--","--","--",{"$f":"((Quarterly!BF80/Quarterly!BF76)-1)","v":7.3813523729525432E-2},{"$f":"((Quarterly!BG80/Quarterly!BG76)-1)","v":3.7095210393639722E-2},{"$f":"((Quarterly!BH80/Quarterly!BH76)-1)","v":1.2910312557953718E-2},{"$f":"((Quarterly!BI80/Quarterly!BI76)-1)","v":3.5439679445527394E-2},{"$f":"((Quarterly!BJ80/Quarterly!BJ76)-1)","v":0.43471886120996439},"--",null,"--","--",null,null,null,null,null,{"$f":"((Quarterly!BT80/Quarterly!BT76)-1)","v":7.2224192438911983E-2},"--","--",{"$f":"((Quarterly!BW80/Quarterly!BW76)-1)","v":0.11245938052733329},{"$f":"((Quarterly!BX80/Quarterly!BX76)-1)","v":0.35356364768129489},{"$f":"((Quarterly!BY80/Quarterly!BY76)-1)","v":0.28906823184152608},"--","--",{"$f":"((Quarterly!CB80/Quarterly!CB76)-1)","v":-0.26226647437746842},{"$f":"((Quarterly!CC80/Quarterly!CC76)-1)","v":-0.23310736128981735},"--","--",null,"--","--",null,{"$f":"((Quarterly!CJ80/Quarterly!CJ76)-1)","v":5.5390113162596677E-2},{"$f":"((Quarterly!CK80/Quarterly!CK76)-1)","v":9.6373620937020732E-2},{"$f":"((Quarterly!CL80/Quarterly!CL76)-1)","v":-0.192552225249773},{"$f":"((Quarterly!CM80/Quarterly!CM76)-1)","v":0.29559748427672972},{"$f":"((Quarterly!CN80/Quarterly!CN76)-1)","v":9.8337396749810235E-3},{"$f":"((Quarterly!CO80/Quarterly!CO76)-1)","v":0.16161053901103983},{"$f":"((Quarterly!CP80/Quarterly!CP76)-1)","v":7.0130500308749344E-2},{"$f":"((Quarterly!CQ80/Quarterly!CQ76)-1)","v":9.9436475092942178E-3},{"$f":"((Quarterly!CR80/Quarterly!CR76)-1)","v":0.10141256576911184},"--","--",null,null,null,null,null,{"$f":"((Quarterly!CZ80/Quarterly!CZ76)-1)","v":6.0150375939849621E-2},{"$f":"((Quarterly!DA80/Quarterly!DA76)-1)","v":6.4134495641344991E-2},null,null,null,null,null,{"$f":"((Quarterly!DG80/Quarterly!DG76)-1)","v":5.080066261733851E-2},{"$f":"((Quarterly!DH80-Quarterly!DH76)*60)","v":11.999999999999744},{"$f":"Quarterly!DI80-Quarterly!DI76","v":0.19999999999999574},"--",{"$f":"(Quarterly!DK80-Quarterly!DK76)*100","v":-129.99999999999997},{"$f":"((Quarterly!DL80/Quarterly!DL76)-1)","v":4.7415081183384666E-2},null,null,null,{"$f":"((Quarterly!DP80/Quarterly!DP76)-1)","v":3.6475845368547422E-2},null,null,null,null,{"$f":"Quarterly!DU80-Quarterly!DU76","v":-0.86666666666666714},"--","--","--","--","--","--","--","--",null,null,null,null,null,{"$f":"((Quarterly!EI80/Quarterly!EI76)-1)","v":0.10034714580324966},{"$f":"((Quarterly!EJ80/Quarterly!EJ76)-1)","v":7.3057974272013881E-2},{"$f":"((Quarterly!EK80/Quarterly!EK76)-1)","v":6.2266982843135921E-2},null,null,null,null,null,{"$f":"((Quarterly!EQ80/Quarterly!EQ76)-1)","v":5.3056516724336866E-2},{"$f":"((Quarterly!ER80/Quarterly!ER76)-1)","v":5.3370786516853785E-2},{"$f":"((Quarterly!ES80/Quarterly!ES76)-1)","v":6.5204847085977846E-2},null,null,null,null,null,{"$f":"(Quarterly!EY80-Quarterly!EY76)*100","v":-42.333333333333378},{"$f":"(Quarterly!EZ80-Quarterly!EZ76)*100","v":-22.333333333333449},{"$f":"(Quarterly!FA80-Quarterly!FA76)*100","v":-33.999999999999986},{"$f":"(Quarterly!FB80-Quarterly!FB76)*100","v":-73.333333333333428},"--",{"$f":"(Quarterly!FD80-Quarterly!FD76)*100","v":-8.9999999999999858},{"$f":"(Quarterly!FE80-Quarterly!FE76)*100","v":-23.666666666666636},{"$f":"(Quarterly!FF80-Quarterly!FF76)*100","v":-24.666666666666615},"--",{"$f":"(Quarterly!FH80-Quarterly!FH76)*100","v":-25.666666666666593},{"$f":"(Quarterly!FI80-Quarterly!FI76)*100","v":-27.666666666666551},null,null,null,null,null,null,{"$f":"((Quarterly!FP80/Quarterly!FP76)-1)","v":-4.1943900848010363E-2},"--","--","--",{"$f":"((Quarterly!FT80/Quarterly!FT76)-1)","v":8.5053003605177313E-2},{"$f":"((Quarterly!FU80/Quarterly!FU76)-1)","v":6.7044144461160249E-2},"--","--","--",null,null,null,null,null,{"$f":"((Quarterly!GD80/Quarterly!GD76)-1)","v":9.0501792114695112E-2},"--","--","--",{"$f":"((Quarterly!GH80/Quarterly!GH76)-1)","v":{"$error":"#DIV/0!"}},"--","--","--","--"]
["76'Q3",{"$f":"((Quarterly!B81/Quarterly!B77)-1)","v":0.1030964889964594},{"$f":"((Quarterly!C81/Quarterly!C77)-1)","v":4.9507715503701366E-2},{"$f":"((Quarterly!D81/Quarterly!D77)-1)","v":3.649729895389453E-2},{"$f":"((Quarterly!E81/Quarterly!E77)-1)","v":5.1338050726536855E-2},{"$f":"((Quarterly!F81/Quarterly!F77)-1)","v":9.7775236511072006E-2},{"$f":"((Quarterly!G81/Quarterly!G77)-1)","v":4.133180252583224E-2},{"$f":"((Quarterly!H81/Quarterly!H77)-1)","v":5.1656092492194716E-2},{"$f":"((Quarterly!I81/Quarterly!I77)-1)","v":7.0231641202562756E-2},{"$f":"((Quarterly!J81/Quarterly!J77)-1)","v":8.5587713987924197E-2},{"$f":"((Quarterly!K81/Quarterly!K77)-1)","v":0.16475972540045758},{"$f":"((Quarterly!L81-Quarterly!L77))","v":52.251000000000005},{"$f":"((Quarterly!M81/Quarterly!M77)-1)","v":0.21550809624139911},{"$f":"((Quarterly!N81/Quarterly!N77)-1)","v":9.058800805717282E-2},{"$f":"((Quarterly!O81/Quarterly!O77)-1)","v":1.9961791313142707},{"$f":"((Quarterly!P81/Quarterly!P77)-1)","v":-3.7662735241041911E-3},{"$f":"((Quarterly!Q81/Quarterly!Q77)-1)","v":-0.11384361552696709},null,null,null,null,null,{"$f":"((Quarterly!W81/Quarterly!W77)-1)","v":6.7842605156037905E-2},"--",{"$f":"((Quarterly!Y81/Quarterly!Y77)-1)","v":-1.6910774858154731E-2},"--",{"$f":"((Quarterly!AA81/Quarterly!AA77)-1)","v":0.20137012300378676},{"$f":"((Quarterly!AB81/Quarterly!AB77)-1)","v":0.18692871188711457},"--","--","--","--","--","--","--","--","--","--",{"$f":"((Quarterly!AM81/Quarterly!AM77)-1)","v":8.0872952276756616E-2},{"$f":"((Quarterly!AN81/Quarterly!AN77)-1)","v":9.5258972185934487E-2},"--","--",{"$f":"Quarterly!AQ81-Quarterly!AQ77","v":3.6666666666666643},"--","--",{"$f":"Quarterly!AT81-Quarterly!AT77","v":4.63333333333334},"--","--",{"$f":"Quarterly!AW81-Quarterly!AW77","v":21.833333333333336},{"$f":"Quarterly!AX81-Quarterly!AX77","v":-2.6999999999999957},{"$f":"Quarterly!AY81-Quarterly!AY77","v":10.900000000000006},{"$f":"Quarterly!AZ81-Quarterly!AZ77","v":-5.4666666666666544},{"$f":"Quarterly!BA81-Quarterly!BA77","v":18.06666666666667},"--","--","--","--",{"$f":"((Quarterly!BF81/Quarterly!BF77)-1)","v":7.7438992931950779E-2},{"$f":"((Quarterly!BG81/Quarterly!BG77)-1)","v":2.732240437158473E-2},{"$f":"((Quarterly!BH81/Quarterly!BH77)-1)","v":2.042042042042036E-2},{"$f":"((Quarterly!BI81/Quarterly!BI77)-1)","v":4.8782456612404212E-2},{"$f":"((Quarterly!BJ81/Quarterly!BJ77)-1)","v":0.18859287315990647},"--",null,"--","--",null,null,null,null,null,{"$f":"((Quarterly!BT81/Quarterly!BT77)-1)","v":9.6611225800148803E-2},"--","--",{"$f":"((Quarterly!BW81/Quarterly!BW77)-1)","v":0.11370654048201478},{"$f":"((Quarterly!BX81/Quarterly!BX77)-1)","v":0.24560000000000004},{"$f":"((Quarterly!BY81/Quarterly!BY77)-1)","v":0.31091617933723192},"--","--",{"$f":"((Quarterly!CB81/Quarterly!CB77)-1)","v":-0.22322486266935804},{"$f":"((Quarterly!CC81/Quarterly!CC77)-1)","v":-0.18814277208961705},"--","--",null,"--","--",null,{"$f":"((Quarterly!CJ81/Quarterly!CJ77)-1)","v":0.18746303962152577},{"$f":"((Quarterly!CK81/Quarterly!CK77)-1)","v":9.3733442512403009E-2},{"$f":"((Quarterly!CL81/Quarterly!CL77)-1)","v":-3.8144776766363298E-2},{"$f":"((Quarterly!CM81/Quarterly!CM77)-1)","v":0.23868023868023869},{"$f":"((Quarterly!CN81/Quarterly!CN77)-1)","v":3.2286624467336766E-2},{"$f":"((Quarterly!CO81/Quarterly!CO77)-1)","v":0.14519864600035626},{"$f":"((Quarterly!CP81/Quarterly!CP77)-1)","v":9.2858774906757091E-2},{"$f":"((Quarterly!CQ81/Quarterly!CQ77)-1)","v":9.477905702008016E-3},{"$f":"((Quarterly!CR81/Quarterly!CR77)-1)","v":0.12445732525696984},"--","--",null,null,null,null,null,{"$f":"((Quarterly!CZ81/Quarterly!CZ77)-1)","v":5.5896805896805901E-2},{"$f":"((Quarterly!DA81/Quarterly!DA77)-1)","v":6.7609096496619614E-2},null,null,null,null,null,{"$f":"((Quarterly!DG81/Quarterly!DG77)-1)","v":4.1371801850843992E-2},{"$f":"((Quarterly!DH81-Quarterly!DH77)*60)","v":0},{"$f":"Quarterly!DI81-Quarterly!DI77","v":0.46666666666665435},"--",{"$f":"(Quarterly!DK81-Quarterly!DK77)*100","v":-73.333333333333343},{"$f":"((Quarterly!DL81/Quarterly!DL77)-1)","v":4.7196762290203642E-2},null,null,null,{"$f":"((Quarterly!DP81/Quarterly!DP77)-1)","v":3.4561374667970268E-2},null,null,null,null,{"$f":"Quarterly!DU81-Quarterly!DU77","v":-1.1999999999999975},"--","--","--","--","--","--","--","--",null,null,null,null,null,{"$f":"((Quarterly!EI81/Quarterly!EI77)-1)","v":7.328532354597983E-2},{"$f":"((Quarterly!EJ81/Quarterly!EJ77)-1)","v":6.16257094594439E-2},{"$f":"((Quarterly!EK81/Quarterly!EK77)-1)","v":5.627904142143203E-2},null,null,null,null,null,{"$f":"((Quarterly!EQ81/Quarterly!EQ77)-1)","v":4.3478260869565188E-2},{"$f":"((Quarterly!ER81/Quarterly!ER77)-1)","v":5.8921623123957767E-2},{"$f":"((Quarterly!ES81/Quarterly!ES77)-1)","v":6.6552901023890776E-2},null,null,null,null,null,{"$f":"(Quarterly!EY81-Quarterly!EY77)*100","v":-47.666666666666742},{"$f":"(Quarterly!EZ81-Quarterly!EZ77)*100","v":-87.6666666666666},{"$f":"(Quarterly!FA81-Quarterly!FA77)*100","v":-44.999999999999929},{"$f":"(Quarterly!FB81-Quarterly!FB77)*100","v":-96.333333333333471},"--",{"$f":"(Quarterly!FD81-Quarterly!FD77)*100","v":-1.6666666666665719},{"$f":"(Quarterly!FE81-Quarterly!FE77)*100","v":-118.00000000000006},{"$f":"(Quarterly!FF81-Quarterly!FF77)*100","v":-150.66666666666677},"--",{"$f":"(Quarterly!FH81-Quarterly!FH77)*100","v":-89.666666666666558},{"$f":"(Quarterly!FI81-Quarterly!FI77)*100","v":-56.666666666666728},null,null,null,null,null,null,{"$f":"((Quarterly!FP81/Quarterly!FP77)-1)","v":-5.1704067774687834E-2},"--","--","--",{"$f":"((Quarterly!FT81/Quarterly!FT77)-1)","v":4.1175472694930493E-2},{"$f":"((Quarterly!FU81/Quarterly!FU77)-1)","v":1.7052366988920653E-2},"--","--","--",null,null,null,null,null,{"$f":"((Quarterly!GD81/Quarterly!GD77)-1)","v":0.14217443249701311},"--","--","--",{"$f":"((Quarterly!GH81/Quarterly!GH77)-1)","v":{"$error":"#DIV/0!"}},"--","--","--","--"]
["76'Q4",{"$f":"((Quarterly!B82/Quarterly!B78)-1)","v":9.7711775575397342E-2},{"$f":"((Quarterly!C82/Quarterly!C78)-1)","v":4.33193810622583E-2},{"$f":"((Quarterly!D82/Quarterly!D78)-1)","v":3.8319227607386486E-2},{"$f":"((Quarterly!E82/Quarterly!E78)-1)","v":5.3882725832012701E-2},{"$f":"((Quarterly!F82/Quarterly!F78)-1)","v":8.3543792302253062E-2},{"$f":"((Quarterly!G82/Quarterly!G78)-1)","v":5.4868196808392833E-2},{"$f":"((Quarterly!H82/Quarterly!H78)-1)","v":5.0829312478753552E-2},{"$f":"((Quarterly!I82/Quarterly!I78)-1)","v":7.8050166409611155E-2},{"$f":"((Quarterly!J82/Quarterly!J78)-1)","v":9.7961874886993483E-2},{"$f":"((Quarterly!K82/Quarterly!K78)-1)","v":0.25840643274853803},{"$f":"((Quarterly!L82-Quarterly!L78))","v":16.835000000000001},{"$f":"((Quarterly!M82/Quarterly!M78)-1)","v":0.19210770172217839},{"$f":"((Quarterly!N82/Quarterly!N78)-1)","v":4.2711477403733156E-2},{"$f":"((Quarterly!O82/Quarterly!O78)-1)","v":2.4236513597859992},{"$f":"((Quarterly!P82/Quarterly!P78)-1)","v":-1.2589756978511502E-2},{"$f":"((Quarterly!Q82/Quarterly!Q78)-1)","v":-8.4433707295010541E-2},null,null,null,null,null,{"$f":"((Quarterly!W82/Quarterly!W78)-1)","v":5.312084993359889E-2},"--",{"$f":"((Quarterly!Y82/Quarterly!Y78)-1)","v":5.2760047217772499E-3},"--",{"$f":"((Quarterly!AA82/Quarterly!AA78)-1)","v":0.12229857919811105},{"$f":"((Quarterly!AB82/Quarterly!AB78)-1)","v":9.678997065458228E-2},"--","--","--","--","--","--","--","--","--","--",{"$f":"((Quarterly!AM82/Quarterly!AM78)-1)","v":7.663910127822704E-2},{"$f":"((Quarterly!AN82/Quarterly!AN78)-1)","v":8.2242430644912545E-2},"--","--",{"$f":"Quarterly!AQ82-Quarterly!AQ78","v":-1.0333333333333314},"--","--",{"$f":"Quarterly!AT82-Quarterly!AT78","v":1.6666666666666643},"--","--",{"$f":"Quarterly!AW82-Quarterly!AW78","v":8.1000000000000014},{"$f":"Quarterly!AX82-Quarterly!AX78","v":-5.9666666666666686},{"$f":"Quarterly!AY82-Quarterly!AY78","v":0.70000000000000284},{"$f":"Quarterly!AZ82-Quarterly!AZ78","v":-4.8666666666666671},{"$f":"Quarterly!BA82-Quarterly!BA78","v":5.5666666666666629},"--","--","--","--",{"$f":"((Quarterly!BF82/Quarterly!BF78)-1)","v":8.274111675126905E-2},{"$f":"((Quarterly!BG82/Quarterly!BG78)-1)","v":2.9652332152092731E-2},{"$f":"((Quarterly!BH82/Quarterly!BH78)-1)","v":2.9346439881352993E-2},{"$f":"((Quarterly!BI82/Quarterly!BI78)-1)","v":5.1542293830824759E-2},{"$f":"((Quarterly!BJ82/Quarterly!BJ78)-1)","v":0.11721140627078808},"--",null,"--","--",null,null,null,null,null,{"$f":"((Quarterly!BT82/Quarterly!BT78)-1)","v":0.10776471330173032},"--","--",{"$f":"((Quarterly!BW82/Quarterly!BW78)-1)","v":0.1172674111595704},{"$f":"((Quarterly!BX82/Quarterly!BX78)-1)","v":0.26062111801242227},{"$f":"((Quarterly!BY82/Quarterly!BY78)-1)","v":0.35486806187443132},"--","--",{"$f":"((Quarterly!CB82/Quarterly!CB78)-1)","v":-0.17407473452746303},{"$f":"((Quarterly!CC82/Quarterly!CC78)-1)","v":-0.14439141690004109},"--","--",null,"--","--",null,{"$f":"((Quarterly!CJ82/Quarterly!CJ78)-1)","v":0.12870275791624097},{"$f":"((Quarterly!CK82/Quarterly!CK78)-1)","v":9.1265463252035994E-2},{"$f":"((Quarterly!CL82/Quarterly!CL78)-1)","v":-7.7933261571582313E-2},{"$f":"((Quarterly!CM82/Quarterly!CM78)-1)","v":0.20974507905776063},{"$f":"((Quarterly!CN82/Quarterly!CN78)-1)","v":3.0529712685678723E-2},{"$f":"((Quarterly!CO82/Quarterly!CO78)-1)","v":0.16106394039161342},{"$f":"((Quarterly!CP82/Quarterly!CP78)-1)","v":0.10473896950336758},{"$f":"((Quarterly!CQ82/Quarterly!CQ78)-1)","v":9.5265335873742085E-3},{"$f":"((Quarterly!CR82/Quarterly!CR78)-1)","v":0.13479816857723881},"--","--",null,null,null,null,null,{"$f":"((Quarterly!CZ82/Quarterly!CZ78)-1)","v":5.1869722557298159E-2},{"$f":"((Quarterly!DA82/Quarterly!DA78)-1)","v":6.4048338368579927E-2},null,null,null,null,null,{"$f":"((Quarterly!DG82/Quarterly!DG78)-1)","v":2.8479312197743356E-2},{"$f":"((Quarterly!DH82-Quarterly!DH78)*60)","v":-14.000000000000057},{"$f":"Quarterly!DI82-Quarterly!DI78","v":0.63333333333333997},"--",{"$f":"(Quarterly!DK82-Quarterly!DK78)*100","v":-53.333333333333414},{"$f":"((Quarterly!DL82/Quarterly!DL78)-1)","v":3.5191303837807109E-2},null,null,null,{"$f":"((Quarterly!DP82/Quarterly!DP78)-1)","v":3.1543563732405078E-2},null,null,null,null,{"$f":"Quarterly!DU82-Quarterly!DU78","v":-1},"--","--","--","--","--","--","--","--",null,null,null,null,null,{"$f":"((Quarterly!EI82/Quarterly!EI78)-1)","v":7.5061977811041736E-2},{"$f":"((Quarterly!EJ82/Quarterly!EJ78)-1)","v":5.7982065558029872E-2},{"$f":"((Quarterly!EK82/Quarterly!EK78)-1)","v":5.0595951002631034E-2},null,null,null,null,null,{"$f":"((Quarterly!EQ82/Quarterly!EQ78)-1)","v":4.134078212290504E-2},{"$f":"((Quarterly!ER82/Quarterly!ER78)-1)","v":5.7923497267759583E-2},{"$f":"((Quarterly!ES82/Quarterly!ES78)-1)","v":6.4245810055866048E-2},null,null,null,null,null,{"$f":"(Quarterly!EY82-Quarterly!EY78)*100","v":-104.33333333333339},{"$f":"(Quarterly!EZ82-Quarterly!EZ78)*100","v":-54},{"$f":"(Quarterly!FA82-Quarterly!FA78)*100","v":-62.666666666666693},{"$f":"(Quarterly!FB82-Quarterly!FB78)*100","v":-136.66666666666671},"--",{"$f":"(Quarterly!FD82-Quarterly!FD78)*100","v":-31.333333333333258},{"$f":"(Quarterly!FE82-Quarterly!FE78)*100","v":-95.333333333333485},{"$f":"(Quarterly!FF82-Quarterly!FF78)*100","v":-145.33333333333331},"--",{"$f":"(Quarterly!FH82-Quarterly!FH78)*100","v":-138.66666666666677},{"$f":"(Quarterly!FI82-Quarterly!FI78)*100","v":-87.3333333333334},null,null,null,null,null,null,{"$f":"((Quarterly!FP82/Quarterly!FP78)-1)","v":-2.4894362737069464E-2},"--","--","--",{"$f":"((Quarterly!FT82/Quarterly!FT78)-1)","v":4.729817953427129E-2},{"$f":"((Quarterly!FU82/Quarterly!FU78)-1)","v":1.2918194344265332E-2},"--","--","--",null,null,null,null,null,{"$f":"((Quarterly!GD82/Quarterly!GD78)-1)","v":0.24551971326164845},"--","--","--",{"$f":"((Quarterly!GH82/Quarterly!GH78)-1)","v":{"$error":"#DIV/0!"}},"--","--","--","--"]
["77'Q1",{"$f":"((Quarterly!B83/Quarterly!B79)-1)","v":9.2093270024976581E-2},{"$f":"((Quarterly!C83/Quarterly!C79)-1)","v":3.2150815517253628E-2},{"$f":"((Quarterly!D83/Quarterly!D79)-1)","v":3.3758265041375024E-2},{"$f":"((Quarterly!E83/Quarterly!E79)-1)","v":4.5057769993502639E-2},{"$f":"((Quarterly!F83/Quarterly!F79)-1)","v":6.975177987300385E-2},{"$f":"((Quarterly!G83/Quarterly!G79)-1)","v":3.3234266872030682E-2},{"$f":"((Quarterly!H83/Quarterly!H79)-1)","v":4.7898070618755506E-2},{"$f":"((Quarterly!I83/Quarterly!I79)-1)","v":9.389652706031959E-2},{"$f":"((Quarterly!J83/Quarterly!J79)-1)","v":0.10456686219629252},{"$f":"((Quarterly!K83/Quarterly!K79)-1)","v":0.175671196552867},{"$f":"((Quarterly!L83-Quarterly!L79))","v":-5.3369999999999997},{"$f":"((Quarterly!M83/Quarterly!M79)-1)","v":0.17492670117442666},{"$f":"((Quarterly!N83/Quarterly!N79)-1)","v":3.3113553113552907E-2},{"$f":"((Quarterly!O83/Quarterly!O79)-1)","v":1.1756986054403766},{"$f":"((Quarterly!P83/Quarterly!P79)-1)","v":-6.1200566603076823E-3},{"$f":"((Quarterly!Q83/Quarterly!Q79)-1)","v":-0.10610976274208728},null,null,null,null,null,{"$f":"((Quarterly!W83/Quarterly!W79)-1)","v":4.2635658914728536E-2},{"$f":"((Quarterly!X83/Quarterly!X79)-1)","v":3.7568594343604822E-2},{"$f":"((Quarterly!Y83/Quarterly!Y79)-1)","v":3.3395555369342578E-2},"--",{"$f":"((Quarterly!AA83/Quarterly!AA79)-1)","v":0.13410176008067687},{"$f":"((Quarterly!AB83/Quarterly!AB79)-1)","v":6.2926878727267654E-2},"--","--","--","--","--","--","--","--","--","--",{"$f":"((Quarterly!AM83/Quarterly!AM79)-1)","v":6.6214245745328526E-2},{"$f":"((Quarterly!AN83/Quarterly!AN79)-1)","v":7.3363038198425379E-2},"--","--",{"$f":"Quarterly!AQ83-Quarterly!AQ79","v":-3.5},"--","--",{"$f":"Quarterly!AT83-Quarterly!AT79","v":-3.2000000000000028},"--","--",{"$f":"Quarterly!AW83-Quarterly!AW79","v":5.9333333333333371},{"$f":"Quarterly!AX83-Quarterly!AX79","v":-5.5333333333333385},{"$f":"Quarterly!AY83-Quarterly!AY79","v":6.13333333333334},{"$f":"Quarterly!AZ83-Quarterly!AZ79","v":-7.8333333333333357},{"$f":"Quarterly!BA83-Quarterly!BA79","v":1.0666666666666629},"--","--","--","--",{"$f":"((Quarterly!BF83/Quarterly!BF79)-1)","v":8.2486551105797945E-2},{"$f":"((Quarterly!BG83/Quarterly!BG79)-1)","v":2.0859289462755282E-2},{"$f":"((Quarterly!BH83/Quarterly!BH79)-1)","v":2.2143842532675428E-2},{"$f":"((Quarterly!BI83/Quarterly!BI79)-1)","v":6.0400559411035282E-2},{"$f":"((Quarterly!BJ83/Quarterly!BJ79)-1)","v":9.9423938553445668E-2},"--",null,"--","--",null,null,null,null,null,{"$f":"((Quarterly!BT83/Quarterly!BT79)-1)","v":0.12458086368284715},"--","--",{"$f":"((Quarterly!BW83/Quarterly!BW79)-1)","v":0.12521080056845113},{"$f":"((Quarterly!BX83/Quarterly!BX79)-1)","v":0.27901063337956544},{"$f":"((Quarterly!BY83/Quarterly!BY79)-1)","v":0.3203719357565511},"--",{"$f":"((Quarterly!CA83/Quarterly!CA79)-1)","v":0.11632721720452355},{"$f":"((Quarterly!CB83/Quarterly!CB79)-1)","v":-4.7802579047626859E-2},{"$f":"((Quarterly!CC83/Quarterly!CC79)-1)","v":-4.2905522916978911E-2},"--","--",null,"--","--",null,{"$f":"((Quarterly!CJ83/Quarterly!CJ79)-1)","v":0.37976060935799794},{"$f":"((Quarterly!CK83/Quarterly!CK79)-1)","v":8.7432320822244725E-2},{"$f":"((Quarterly!CL83/Quarterly!CL79)-1)","v":-0.13348115299334806},{"$f":"((Quarterly!CM83/Quarterly!CM79)-1)","v":0.19421728971962615},{"$f":"((Quarterly!CN83/Quarterly!CN79)-1)","v":1.8319061726391084E-2},{"$f":"((Quarterly!CO83/Quarterly!CO79)-1)","v":0.15177904951480503},{"$f":"((Quarterly!CP83/Quarterly!CP79)-1)","v":0.10642012721556848},{"$f":"((Quarterly!CQ83/Quarterly!CQ79)-1)","v":9.6697226590971574E-3},{"$f":"((Quarterly!CR83/Quarterly!CR79)-1)","v":1.1397124168447532},"--","--",null,null,null,null,null,{"$f":"((Quarterly!CZ83/Quarterly!CZ79)-1)","v":5.903398926654746E-2},{"$f":"((Quarterly!DA83/Quarterly!DA79)-1)","v":6.168446026097274E-2},null,null,null,null,null,{"$f":"((Quarterly!DG83/Quarterly!DG79)-1)","v":2.1624472573839704E-2},{"$f":"((Quarterly!DH83-Quarterly!DH79)*60)","v":-21.999999999999602},{"$f":"Quarterly!DI83-Quarterly!DI79","v":0.53333333333334565},"--",{"$f":"(Quarterly!DK83-Quarterly!DK79)*100","v":-23.333333333333428},{"$f":"((Quarterly!DL83/Quarterly!DL79)-1)","v":2.7732494581998779E-2},null,null,null,{"$f":"((Quarterly!DP83/Quarterly!DP79)-1)","v":2.8340920244360523E-2},null,null,null,null,{"$f":"Quarterly!DU83-Quarterly!DU79","v":-1.333333333333333},"--","--","--","--","--","--","--","--",null,null,null,null,null,{"$f":"((Quarterly!EI83/Quarterly!EI79)-1)","v":5.5125592039642513E-2},{"$f":"((Quarterly!EJ83/Quarterly!EJ79)-1)","v":4.4271173975707123E-2},{"$f":"((Quarterly!EK83/Quarterly!EK79)-1)","v":4.034994486456589E-2},null,null,null,null,null,{"$f":"((Quarterly!EQ83/Quarterly!EQ79)-1)","v":5.8954393770856317E-2},{"$f":"((Quarterly!ER83/Quarterly!ER79)-1)","v":5.5974165769644646E-2},{"$f":"((Quarterly!ES83/Quarterly!ES79)-1)","v":5.9275521405049325E-2},null,null,null,null,null,{"$f":"(Quarterly!EY83-Quarterly!EY79)*100","v":-58.3333333333333},{"$f":"(Quarterly!EZ83-Quarterly!EZ79)*100","v":-16.666666666666696},{"$f":"(Quarterly!FA83-Quarterly!FA79)*100","v":-52.333333333333343},{"$f":"(Quarterly!FB83-Quarterly!FB79)*100","v":-114.99999999999986},"--",{"$f":"(Quarterly!FD83-Quarterly!FD79)*100","v":-16.999999999999815},{"$f":"(Quarterly!FE83-Quarterly!FE79)*100","v":-28.666666666666707},{"$f":"(Quarterly!FF83-Quarterly!FF79)*100","v":-55.666666666666757},"--",{"$f":"(Quarterly!FH83-Quarterly!FH79)*100","v":-68.666666666666572},{"$f":"(Quarterly!FI83-Quarterly!FI79)*100","v":-40.000000000000128},null,null,null,null,null,null,{"$f":"((Quarterly!FP83/Quarterly!FP79)-1)","v":3.4696406443618155E-2},"--","--","--",{"$f":"((Quarterly!FT83/Quarterly!FT79)-1)","v":5.0131856115271489E-2},{"$f":"((Quarterly!FU83/Quarterly!FU79)-1)","v":1.5703208414420855E-2},"--","--","--",null,null,null,null,null,{"$f":"((Quarterly!GD83/Quarterly!GD79)-1)","v":0.1816378577500708},"--","--","--",{"$f":"((Quarterly!GH83/Quarterly!GH79)-1)","v":{"$error":"#DIV/0!"}},"--","--","--","--"]
["77'Q2",{"$f":"((Quarterly!B84/Quarterly!B80)-1)","v":0.1094384106359696},{"$f":"((Quarterly!C84/Quarterly!C80)-1)","v":4.4516206757426069E-2},{"$f":"((Quarterly!D84/Quarterly!D80)-1)","v":4.6533003892357927E-2},{"$f":"((Quarterly!E84/Quarterly!E80)-1)","v":4.1231630510846884E-2},{"$f":"((Quarterly!F84/Quarterly!F80)-1)","v":9.0077578775979328E-2},{"$f":"((Quarterly!G84/Quarterly!G80)-1)","v":1.751949578036549E-2},{"$f":"((Quarterly!H84/Quarterly!H80)-1)","v":4.708591893943348E-2},{"$f":"((Quarterly!I84/Quarterly!I80)-1)","v":0.10941176470588254},{"$f":"((Quarterly!J84/Quarterly!J80)-1)","v":0.13248068476492536},{"$f":"((Quarterly!K84/Quarterly!K80)-1)","v":0.27319587628865993},{"$f":"((Quarterly!L84-Quarterly!L80))","v":-8.384999999999998},{"$f":"((Quarterly!M84/Quarterly!M80)-1)","v":0.13653467064074043},{"$f":"((Quarterly!N84/Quarterly!N80)-1)","v":5.0383848602969517E-2},{"$f":"((Quarterly!O84/Quarterly!O80)-1)","v":0.61708749144173081},{"$f":"((Quarterly!P84/Quarterly!P80)-1)","v":1.3856498573783016E-2},{"$f":"((Quarterly!Q84/Quarterly!Q80)-1)","v":-0.12915337455528875},null,null,null,null,null,{"$f":"((Quarterly!W84/Quarterly!W80)-1)","v":6.0179257362356076E-2},{"$f":"((Quarterly!X84/Quarterly!X80)-1)","v":5.5369127516778693E-2},{"$f":"((Quarterly!Y84/Quarterly!Y80)-1)","v":7.5922305018167213E-2},"--",{"$f":"((Quarterly!AA84/Quarterly!AA80)-1)","v":0.16853408386933943},{"$f":"((Quarterly!AB84/Quarterly!AB80)-1)","v":0.20889868575821291},"--","--","--","--","--","--","--","--","--","--",{"$f":"((Quarterly!AM84/Quarterly!AM80)-1)","v":8.5454825009582125E-2},{"$f":"((Quarterly!AN84/Quarterly!AN80)-1)","v":9.279449101421644E-2},"--","--",{"$f":"Quarterly!AQ84-Quarterly!AQ80","v":-1.4000000000000199},"--","--",{"$f":"Quarterly!AT84-Quarterly!AT80","v":-2.3000000000000043},"--","--",{"$f":"Quarterly!AW84-Quarterly!AW80","v":1.5333333333333314},{"$f":"Quarterly!AX84-Quarterly!AX80","v":-1.7333333333333272},{"$f":"Quarterly!AY84-Quarterly!AY80","v":-2.5333333333333314},{"$f":"Quarterly!AZ84-Quarterly!AZ80","v":-0.13333333333333286},{"$f":"Quarterly!BA84-Quarterly!BA80","v":-3.6333333333333258},"--","--","--","--",{"$f":"((Quarterly!BF84/Quarterly!BF80)-1)","v":8.4091131319057322E-2},{"$f":"((Quarterly!BG84/Quarterly!BG80)-1)","v":1.5481554886599636E-2},{"$f":"((Quarterly!BH84/Quarterly!BH80)-1)","v":1.5083657258746053E-2},{"$f":"((Quarterly!BI84/Quarterly!BI80)-1)","v":6.7538240292848828E-2},{"$f":"((Quarterly!BJ84/Quarterly!BJ80)-1)","v":0.14609729236325397},"--",null,"--","--",null,null,null,null,null,{"$f":"((Quarterly!BT84/Quarterly!BT80)-1)","v":0.14845612776500916},"--","--",{"$f":"((Quarterly!BW84/Quarterly!BW80)-1)","v":0.1193751155481606},{"$f":"((Quarterly!BX84/Quarterly!BX80)-1)","v":0.32352264888480109},{"$f":"((Quarterly!BY84/Quarterly!BY80)-1)","v":0.44564598747865691},"--",{"$f":"((Quarterly!CA84/Quarterly!CA80)-1)","v":0.14736072296079628},{"$f":"((Quarterly!CB84/Quarterly!CB80)-1)","v":2.5680320801155343E-2},{"$f":"((Quarterly!CC84/Quarterly!CC80)-1)","v":2.4074500628010753E-3},"--","--",null,"--","--",null,{"$f":"((Quarterly!CJ84/Quarterly!CJ80)-1)","v":0.36060948081264121},{"$f":"((Quarterly!CK84/Quarterly!CK80)-1)","v":0.1021388926492488},{"$f":"((Quarterly!CL84/Quarterly!CL80)-1)","v":-3.7120359955005622E-2},{"$f":"((Quarterly!CM84/Quarterly!CM80)-1)","v":0.29733009708737845},{"$f":"((Quarterly!CN84/Quarterly!CN80)-1)","v":2.5669183253260064E-2},{"$f":"((Quarterly!CO84/Quarterly!CO80)-1)","v":0.13177861193195439},{"$f":"((Quarterly!CP84/Quarterly!CP80)-1)","v":0.12890421061183255},{"$f":"((Quarterly!CQ84/Quarterly!CQ80)-1)","v":9.9758985964837343E-3},{"$f":"((Quarterly!CR84/Quarterly!CR80)-1)","v":1.2015677793688861},"--","--",null,null,null,null,null,{"$f":"((Quarterly!CZ84/Quarterly!CZ80)-1)","v":6.79669030732859E-2},{"$f":"((Quarterly!DA84/Quarterly!DA80)-1)","v":6.4365125804564105E-2},null,null,null,null,null,{"$f":"((Quarterly!DG84/Quarterly!DG80)-1)","v":3.8885969521807562E-2},{"$f":"((Quarterly!DH84-Quarterly!DH80)*60)","v":-3.9999999999997726},{"$f":"Quarterly!DI84-Quarterly!DI80","v":0.70000000000000995},"--",{"$f":"(Quarterly!DK84-Quarterly!DK80)*100","v":-43.333333333333442},{"$f":"((Quarterly!DL84/Quarterly!DL80)-1)","v":3.3247741321921209E-2},null,null,null,{"$f":"((Quarterly!DP84/Quarterly!DP80)-1)","v":3.4990482353485008E-2},null,null,null,null,{"$f":"Quarterly!DU84-Quarterly!DU80","v":-0.96666666666666679},"--","--","--","--","--","--","--","--",null,null,null,null,null,{"$f":"((Quarterly!EI84/Quarterly!EI80)-1)","v":8.3700636734940881E-2},{"$f":"((Quarterly!EJ84/Quarterly!EJ80)-1)","v":5.286379006604025E-2},{"$f":"((Quarterly!EK84/Quarterly!EK80)-1)","v":4.1986320116186526E-2},null,null,null,null,null,{"$f":"((Quarterly!EQ84/Quarterly!EQ80)-1)","v":6.8455640744797375E-2},{"$f":"((Quarterly!ER84/Quarterly!ER80)-1)","v":5.8666666666666645E-2},{"$f":"((Quarterly!ES84/Quarterly!ES80)-1)","v":6.1755146262188365E-2},null,null,null,null,null,{"$f":"(Quarterly!EY84-Quarterly!EY80)*100","v":-42.999999999999972},{"$f":"(Quarterly!EZ84-Quarterly!EZ80)*100","v":-4.0000000000000036},{"$f":"(Quarterly!FA84-Quarterly!FA80)*100","v":-51.999999999999957},{"$f":"(Quarterly!FB84-Quarterly!FB80)*100","v":-90.000000000000028},"--",{"$f":"(Quarterly!FD84-Quarterly!FD80)*100","v":2.6666666666667282},{"$f":"(Quarterly!FE84-Quarterly!FE80)*100","v":-31.666666666666732},{"$f":"(Quarterly!FF84-Quarterly!FF80)*100","v":-58.6666666666666},{"$f":"(Quarterly!FG84-Quarterly!FG80)*100","v":-94.666666666666629},{"$f":"(Quarterly!FH84-Quarterly!FH80)*100","v":-65.333333333333243},{"$f":"(Quarterly!FI84-Quarterly!FI80)*100","v":-40.333333333333329},null,null,null,null,null,null,{"$f":"((Quarterly!FP84/Quarterly!FP80)-1)","v":7.5032341526520163E-2},"--","--","--",{"$f":"((Quarterly!FT84/Quarterly!FT80)-1)","v":3.6757578530780322E-2},{"$f":"((Quarterly!FU84/Quarterly!FU80)-1)","v":3.8936922186039169E-4},"--","--","--",null,null,null,null,null,{"$f":"((Quarterly!GD84/Quarterly!GD80)-1)","v":0.14215283483977004},"--","--","--",{"$f":"((Quarterly!GH84/Quarterly!GH80)-1)","v":{"$error":"#DIV/0!"}},"--","--","--","--"]
["77'Q3",{"$f":"((Quarterly!B85/Quarterly!B81)-1)","v":0.12265908489817523},{"$f":"((Quarterly!C85/Quarterly!C81)-1)","v":5.7617585007160299E-2},{"$f":"((Quarterly!D85/Quarterly!D81)-1)","v":5.0895693396437514E-2},{"$f":"((Quarterly!E85/Quarterly!E81)-1)","v":4.0106359406159919E-2},{"$f":"((Quarterly!F85/Quarterly!F81)-1)","v":9.3707088403806926E-2},{"$f":"((Quarterly!G85/Quarterly!G81)-1)","v":1.4778220676787468E-2},{"$f":"((Quarterly!H85/Quarterly!H81)-1)","v":4.6186553308162237E-2},{"$f":"((Quarterly!I85/Quarterly!I81)-1)","v":0.10729910200322368},{"$f":"((Quarterly!J85/Quarterly!J81)-1)","v":0.1217405577621482},{"$f":"((Quarterly!K85/Quarterly!K81)-1)","v":0.29011132940406026},{"$f":"((Quarterly!L85-Quarterly!L81))","v":29.609000000000002},{"$f":"((Quarterly!M85/Quarterly!M81)-1)","v":7.6759669203099623E-2},{"$f":"((Quarterly!N85/Quarterly!N81)-1)","v":2.8629982506108487E-2},{"$f":"((Quarterly!O85/Quarterly!O81)-1)","v":0.32648200588864196},{"$f":"((Quarterly!P85/Quarterly!P81)-1)","v":2.1205909189541794E-2},{"$f":"((Quarterly!Q85/Quarterly!Q81)-1)","v":-8.0110705749150801E-2},null,null,null,null,null,{"$f":"((Quarterly!W85/Quarterly!W81)-1)","v":5.5908513341804245E-2},{"$f":"((Quarterly!X85/Quarterly!X81)-1)","v":5.1688203418090772E-2},{"$f":"((Quarterly!Y85/Quarterly!Y81)-1)","v":9.5462520255118255E-2},"--",{"$f":"((Quarterly!AA85/Quarterly!AA81)-1)","v":0.19790412855079453},{"$f":"((Quarterly!AB85/Quarterly!AB81)-1)","v":0.30075098994128635},"--","--","--","--","--","--","--","--","--","--",{"$f":"((Quarterly!AM85/Quarterly!AM81)-1)","v":8.3193194327056963E-2},{"$f":"((Quarterly!AN85/Quarterly!AN81)-1)","v":9.0808705917887034E-2},"--","--",{"$f":"Quarterly!AQ85-Quarterly!AQ81","v":0.8333333333333357},"--","--",{"$f":"Quarterly!AT85-Quarterly!AT81","v":-0.96666666666666856},"--","--",{"$f":"Quarterly!AW85-Quarterly!AW81","v":-1.8666666666666671},{"$f":"Quarterly!AX85-Quarterly!AX81","v":1.2333333333333272},{"$f":"Quarterly!AY85-Quarterly!AY81","v":-7.7666666666666657},{"$f":"Quarterly!AZ85-Quarterly!AZ81","v":2.1999999999999957},{"$f":"Quarterly!BA85-Quarterly!BA81","v":2.2333333333333272},"--","--","--","--",{"$f":"((Quarterly!BF85/Quarterly!BF81)-1)","v":8.245546830109185E-2},{"$f":"((Quarterly!BG85/Quarterly!BG81)-1)","v":2.3721537887271493E-2},{"$f":"((Quarterly!BH85/Quarterly!BH81)-1)","v":1.56814933153957E-2},{"$f":"((Quarterly!BI85/Quarterly!BI81)-1)","v":5.7365693468110157E-2},{"$f":"((Quarterly!BJ85/Quarterly!BJ81)-1)","v":0.17339028943998591},"--",null,"--","--",null,null,null,null,null,{"$f":"((Quarterly!BT85/Quarterly!BT81)-1)","v":0.16855467675625002},"--","--",{"$f":"((Quarterly!BW85/Quarterly!BW81)-1)","v":0.12209919884778087},{"$f":"((Quarterly!BX85/Quarterly!BX81)-1)","v":0.29030186255619772},{"$f":"((Quarterly!BY85/Quarterly!BY81)-1)","v":0.27410161090458485},"--",{"$f":"((Quarterly!CA85/Quarterly!CA81)-1)","v":0.10643545279383426},{"$f":"((Quarterly!CB85/Quarterly!CB81)-1)","v":1.1319152013648193E-2},{"$f":"((Quarterly!CC85/Quarterly!CC81)-1)","v":-2.3084622448063086E-2},"--","--",null,"--","--",null,{"$f":"((Quarterly!CJ85/Quarterly!CJ81)-1)","v":0.19770916334661348},{"$f":"((Quarterly!CK85/Quarterly!CK81)-1)","v":0.10650900603338198},{"$f":"((Quarterly!CL85/Quarterly!CL81)-1)","v":4.3938711131140229E-2},{"$f":"((Quarterly!CM85/Quarterly!CM81)-1)","v":0.23746103712099753},{"$f":"((Quarterly!CN85/Quarterly!CN81)-1)","v":3.3761632613801051E-2},{"$f":"((Quarterly!CO85/Quarterly!CO81)-1)","v":0.12344430616054769},{"$f":"((Quarterly!CP85/Quarterly!CP81)-1)","v":0.14562221729603197},{"$f":"((Quarterly!CQ85/Quarterly!CQ81)-1)","v":1.0198439609719001E-2},{"$f":"((Quarterly!CR85/Quarterly!CR81)-1)","v":1.1728492353487128},"--","--",null,null,null,null,null,{"$f":"((Quarterly!CZ85/Quarterly!CZ81)-1)","v":6.5735892961023668E-2},{"$f":"((Quarterly!DA85/Quarterly!DA81)-1)","v":6.2176165803108807E-2},null,null,null,null,null,{"$f":"((Quarterly!DG85/Quarterly!DG81)-1)","v":4.2864610559330885E-2},{"$f":"((Quarterly!DH85-Quarterly!DH81)*60)","v":-7.9999999999999716},{"$f":"Quarterly!DI85-Quarterly!DI81","v":0.5},"--",{"$f":"(Quarterly!DK85-Quarterly!DK81)*100","v":-83.3333333333334},{"$f":"((Quarterly!DL85/Quarterly!DL81)-1)","v":3.9480913138202123E-2},null,null,null,{"$f":"((Quarterly!DP85/Quarterly!DP81)-1)","v":4.3066282517155052E-2},null,null,null,null,{"$f":"Quarterly!DU85-Quarterly!DU81","v":-0.86666666666666714},"--","--","--","--","--","--","--","--",null,null,null,null,null,{"$f":"((Quarterly!EI85/Quarterly!EI81)-1)","v":9.890742589468049E-2},{"$f":"((Quarterly!EJ85/Quarterly!EJ81)-1)","v":5.9674074772311236E-2},{"$f":"((Quarterly!EK85/Quarterly!EK81)-1)","v":4.5988424860495147E-2},null,null,null,null,null,{"$f":"((Quarterly!EQ85/Quarterly!EQ81)-1)","v":5.7359307359307277E-2},{"$f":"((Quarterly!ER85/Quarterly!ER81)-1)","v":5.9842519685039397E-2},{"$f":"((Quarterly!ES85/Quarterly!ES81)-1)","v":6.4533333333333331E-2},null,null,null,null,null,{"$f":"(Quarterly!EY85-Quarterly!EY81)*100","v":-18.333333333333268},{"$f":"(Quarterly!EZ85-Quarterly!EZ81)*100","v":53.666666666666707},{"$f":"(Quarterly!FA85-Quarterly!FA81)*100","v":-51.666666666666487},{"$f":"(Quarterly!FB85-Quarterly!FB81)*100","v":-78.999999999999915},"--",{"$f":"(Quarterly!FD85-Quarterly!FD81)*100","v":-4.3333333333333002},{"$f":"(Quarterly!FE85-Quarterly!FE81)*100","v":34.666666666666579},{"$f":"(Quarterly!FF85-Quarterly!FF81)*100","v":26.66666666666675},{"$f":"(Quarterly!FG85-Quarterly!FG81)*100","v":-10.333333333333261},{"$f":"(Quarterly!FH85-Quarterly!FH81)*100","v":-33.999999999999986},{"$f":"(Quarterly!FI85-Quarterly!FI81)*100","v":-37.333333333333307},null,null,null,null,null,null,{"$f":"((Quarterly!FP85/Quarterly!FP81)-1)","v":9.4384014730452881E-2},"--","--","--",{"$f":"((Quarterly!FT85/Quarterly!FT81)-1)","v":3.317874869304438E-2},{"$f":"((Quarterly!FU85/Quarterly!FU81)-1)","v":7.6566338613304197E-5},"--","--","--",null,null,null,null,null,{"$f":"((Quarterly!GD85/Quarterly!GD81)-1)","v":0.14016736401673624},"--","--","--",{"$f":"((Quarterly!GH85/Quarterly!GH81)-1)","v":{"$error":"#DIV/0!"}},"--","--","--","--"]
["77'Q4",{"$f":"((Quarterly!B86/Quarterly!B82)-1)","v":0.11881007814124223},{"$f":"((Quarterly!C86/Quarterly!C82)-1)","v":4.9848738639697743E-2},{"$f":"((Quarterly!D86/Quarterly!D82)-1)","v":4.4907738671874364E-2},{"$f":"((Quarterly!E86/Quarterly!E82)-1)","v":4.2187286397812773E-2},{"$f":"((Quarterly!F86/Quarterly!F82)-1)","v":9.9338057057616558E-2},{"$f":"((Quarterly!G86/Quarterly!G82)-1)","v":2.5786823331934716E-2},{"$f":"((Quarterly!H86/Quarterly!H82)-1)","v":4.404316815524334E-2},{"$f":"((Quarterly!I86/Quarterly!I82)-1)","v":0.11942321448740634},{"$f":"((Quarterly!J86/Quarterly!J82)-1)","v":0.13720766428794029},{"$f":"((Quarterly!K86/Quarterly!K82)-1)","v":0.12924774905605574},{"$f":"((Quarterly!L86-Quarterly!L82))","v":23.127000000000002},{"$f":"((Quarterly!M86/Quarterly!M82)-1)","v":5.7049745829581111E-2},{"$f":"((Quarterly!N86/Quarterly!N82)-1)","v":-1.4394641457855406E-2},{"$f":"((Quarterly!O86/Quarterly!O82)-1)","v":0.38206856138294709},{"$f":"((Quarterly!P86/Quarterly!P82)-1)","v":1.8646787538448839E-2},{"$f":"((Quarterly!Q86/Quarterly!Q82)-1)","v":-8.4497030013133023E-2},null,null,null,null,null,{"$f":"((Quarterly!W86/Quarterly!W82)-1)","v":4.9180327868852514E-2},{"$f":"((Quarterly!X86/Quarterly!X82)-1)","v":3.8350515463917656E-2},{"$f":"((Quarterly!Y86/Quarterly!Y82)-1)","v":0.10385495224140695},"--",{"$f":"((Quarterly!AA86/Quarterly!AA82)-1)","v":0.20390836895844466},{"$f":"((Quarterly!AB86/Quarterly!AB82)-1)","v":0.24341344885014071},"--","--","--","--","--","--","--","--","--","--",{"$f":"((Quarterly!AM86/Quarterly!AM82)-1)","v":7.0933277409589657E-2},{"$f":"((Quarterly!AN86/Quarterly!AN82)-1)","v":8.5250657688393572E-2},"--","--",{"$f":"Quarterly!AQ86-Quarterly!AQ82","v":3.1666666666666643},"--","--",{"$f":"Quarterly!AT86-Quarterly!AT82","v":4.3666666666666671},"--","--",{"$f":"Quarterly!AW86-Quarterly!AW82","v":-0.13333333333332575},{"$f":"Quarterly!AX86-Quarterly!AX82","v":1.8000000000000043},{"$f":"Quarterly!AY86-Quarterly!AY82","v":-6.3000000000000114},{"$f":"Quarterly!AZ86-Quarterly!AZ82","v":3.4333333333333371},{"$f":"Quarterly!BA86-Quarterly!BA82","v":5.8333333333333286},"--","--","--","--",{"$f":"((Quarterly!BF86/Quarterly!BF82)-1)","v":7.8199718706047916E-2},{"$f":"((Quarterly!BG86/Quarterly!BG82)-1)","v":7.3298234517142902E-3},{"$f":"((Quarterly!BH86/Quarterly!BH82)-1)","v":1.1526414700355092E-2},{"$f":"((Quarterly!BI86/Quarterly!BI82)-1)","v":7.0386330989642421E-2},{"$f":"((Quarterly!BJ86/Quarterly!BJ82)-1)","v":0.20120474753890139},"--",null,"--","--",null,null,null,null,null,{"$f":"((Quarterly!BT86/Quarterly!BT82)-1)","v":0.18507175610389437},"--","--",{"$f":"((Quarterly!BW86/Quarterly!BW82)-1)","v":0.11449927354840961},{"$f":"((Quarterly!BX86/Quarterly!BX82)-1)","v":0.22703981080015789},{"$f":"((Quarterly!BY86/Quarterly!BY82)-1)","v":0.18267293485560776},"--",{"$f":"((Quarterly!CA86/Quarterly!CA82)-1)","v":9.9547055863110412E-2},{"$f":"((Quarterly!CB86/Quarterly!CB82)-1)","v":2.3601217347857029E-2},{"$f":"((Quarterly!CC86/Quarterly!CC82)-1)","v":-2.5243318057108E-2},"--","--",null,"--","--",null,{"$f":"((Quarterly!CJ86/Quarterly!CJ82)-1)","v":0.12352941176470589},{"$f":"((Quarterly!CK86/Quarterly!CK82)-1)","v":0.11961969498160863},{"$f":"((Quarterly!CL86/Quarterly!CL82)-1)","v":0.15736633201027295},{"$f":"((Quarterly!CM86/Quarterly!CM82)-1)","v":0.20458789010402767},{"$f":"((Quarterly!CN86/Quarterly!CN82)-1)","v":4.7481693372961153E-2},{"$f":"((Quarterly!CO86/Quarterly!CO82)-1)","v":9.6933064696664406E-2},{"$f":"((Quarterly!CP86/Quarterly!CP82)-1)","v":0.15739260130362731},{"$f":"((Quarterly!CQ86/Quarterly!CQ82)-1)","v":1.0406955843554444E-2},{"$f":"((Quarterly!CR86/Quarterly!CR82)-1)","v":1.2199335627999739},"--","--",null,null,null,null,null,{"$f":"((Quarterly!CZ86/Quarterly!CZ82)-1)","v":6.594036697247696E-2},{"$f":"((Quarterly!DA86/Quarterly!DA82)-1)","v":6.1896649630891698E-2},null,null,null,null,null,{"$f":"((Quarterly!DG86/Quarterly!DG82)-1)","v":5.4336468129571491E-2},{"$f":"((Quarterly!DH86-Quarterly!DH82)*60)","v":0},{"$f":"Quarterly!DI86-Quarterly!DI82","v":0.86666666666665293},"--",{"$f":"(Quarterly!DK86-Quarterly!DK82)*100","v":-109.99999999999997},{"$f":"((Quarterly!DL86/Quarterly!DL82)-1)","v":4.4514532852367283E-2},null,null,null,{"$f":"((Quarterly!DP86/Quarterly!DP82)-1)","v":4.8983748285464923E-2},null,null,null,null,{"$f":"Quarterly!DU86-Quarterly!DU82","v":-1.1333333333333337},"--","--","--","--","--","--","--","--",null,null,null,null,null,{"$f":"((Quarterly!EI86/Quarterly!EI82)-1)","v":7.241018399624144E-2},{"$f":"((Quarterly!EJ86/Quarterly!EJ82)-1)","v":5.0110473771266761E-2},{"$f":"((Quarterly!EK86/Quarterly!EK82)-1)","v":4.2433184179492711E-2},null,null,null,null,null,{"$f":"((Quarterly!EQ86/Quarterly!EQ82)-1)","v":6.0085836909871126E-2},{"$f":"((Quarterly!ER86/Quarterly!ER82)-1)","v":6.4049586776859568E-2},{"$f":"((Quarterly!ES86/Quarterly!ES82)-1)","v":7.244094488188968E-2},null,null,null,null,null,{"$f":"(Quarterly!EY86-Quarterly!EY82)*100","v":113.33333333333337},{"$f":"(Quarterly!EZ86-Quarterly!EZ82)*100","v":163.99999999999997},{"$f":"(Quarterly!FA86-Quarterly!FA82)*100","v":-8.0000000000001847},{"$f":"(Quarterly!FB86-Quarterly!FB82)*100","v":-26.999999999999957},"--",{"$f":"(Quarterly!FD86-Quarterly!FD82)*100","v":8.9999999999999858},{"$f":"(Quarterly!FE86-Quarterly!FE82)*100","v":143.66666666666666},{"$f":"(Quarterly!FF86-Quarterly!FF82)*100","v":173.33333333333334},{"$f":"(Quarterly!FG86-Quarterly!FG82)*100","v":142.00000000000009},{"$f":"(Quarterly!FH86-Quarterly!FH82)*100","v":92.333333333333371},{"$f":"(Quarterly!FI86-Quarterly!FI82)*100","v":40.666666666666629},null,null,null,null,null,null,{"$f":"((Quarterly!FP86/Quarterly!FP82)-1)","v":0.11038328462494529},"--","--","--",{"$f":"((Quarterly!FT86/Quarterly!FT82)-1)","v":-1.7063076049447234E-3},{"$f":"((Quarterly!FU86/Quarterly!FU82)-1)","v":-2.8626997945375598E-2},"--","--","--",null,null,null,null,null,{"$f":"((Quarterly!GD86/Quarterly!GD82)-1)","v":6.8345323741007213E-2},"--","--","--",{"$f":"((Quarterly!GH86/Quarterly!GH82)-1)","v":{"$error":"#DIV/0!"}},"--","--","--","--"]
["78'Q1",{"$f":"((Quarterly!B87/Quarterly!B83)-1)","v":0.10848196316850811},{"$f":"((Quarterly!C87/Quarterly!C83)-1)","v":4.1384959200987836E-2},{"$f":"((Quarterly!D87/Quarterly!D83)-1)","v":3.6525762989034982E-2},{"$f":"((Quarterly!E87/Quarterly!E83)-1)","v":3.6357247121154845E-2},{"$f":"((Quarterly!F87/Quarterly!F83)-1)","v":3.2377012321251453E-2},{"$f":"((Quarterly!G87/Quarterly!G83)-1)","v":3.0842553906233583E-2},{"$f":"((Quarterly!H87/Quarterly!H83)-1)","v":3.9074580079967447E-2},{"$f":"((Quarterly!I87/Quarterly!I83)-1)","v":8.9505612263431233E-2},{"$f":"((Quarterly!J87/Quarterly!J83)-1)","v":9.2393019260187836E-2},{"$f":"((Quarterly!K87/Quarterly!K83)-1)","v":0.10149422046800116},{"$f":"((Quarterly!L87-Quarterly!L83))","v":18.913},{"$f":"((Quarterly!M87/Quarterly!M83)-1)","v":7.6983184522142256E-2},{"$f":"((Quarterly!N87/Quarterly!N83)-1)","v":2.5295557276836522E-2},{"$f":"((Quarterly!O87/Quarterly!O83)-1)","v":0.25018583283574736},{"$f":"((Quarterly!P87/Quarterly!P83)-1)","v":1.1060560928924268E-2},{"$f":"((Quarterly!Q87/Quarterly!Q83)-1)","v":8.2701871528114479E-2},null,null,null,null,null,{"$f":"((Quarterly!W87/Quarterly!W83)-1)","v":2.2304832713754719E-2},{"$f":"((Quarterly!X87/Quarterly!X83)-1)","v":1.2611879576891694E-2},{"$f":"((Quarterly!Y87/Quarterly!Y83)-1)","v":0.12235099850023112},"--",{"$f":"((Quarterly!AA87/Quarterly!AA83)-1)","v":0.15066656477731377},{"$f":"((Quarterly!AB87/Quarterly!AB83)-1)","v":0.19185209594339137},"--","--","--","--","--","--","--","--","--","--",{"$f":"((Quarterly!AM87/Quarterly!AM83)-1)","v":4.6046765153950453E-2},{"$f":"((Quarterly!AN87/Quarterly!AN83)-1)","v":5.8752071109724913E-2},"--","--",{"$f":"Quarterly!AQ87-Quarterly!AQ83","v":3.3333333333338544E-2},"--","--",{"$f":"Quarterly!AT87-Quarterly!AT83","v":1.7000000000000028},"--","--",{"$f":"Quarterly!AW87-Quarterly!AW83","v":-2},{"$f":"Quarterly!AX87-Quarterly!AX83","v":-1.36666666666666},{"$f":"Quarterly!AY87-Quarterly!AY83","v":-6.0999999999999943},{"$f":"Quarterly!AZ87-Quarterly!AZ83","v":-0.29999999999999005},{"$f":"Quarterly!BA87-Quarterly!BA83","v":2.63333333333334},"--","--","--","--",{"$f":"((Quarterly!BF87/Quarterly!BF83)-1)","v":9.3824774526044541E-2},{"$f":"((Quarterly!BG87/Quarterly!BG83)-1)","v":1.9046210174005207E-3},{"$f":"((Quarterly!BH87/Quarterly!BH83)-1)","v":2.916376791428954E-2},{"$f":"((Quarterly!BI87/Quarterly!BI83)-1)","v":9.1748370079131947E-2},{"$f":"((Quarterly!BJ87/Quarterly!BJ83)-1)","v":0.12504042952325523},"--",null,"--","--",null,null,null,null,null,{"$f":"((Quarterly!BT87/Quarterly!BT83)-1)","v":0.19221824689444422},"--","--",{"$f":"((Quarterly!BW87/Quarterly!BW83)-1)","v":9.8681440816395183E-2},{"$f":"((Quarterly!BX87/Quarterly!BX83)-1)","v":-8.1330200614494474E-3},{"$f":"((Quarterly!BY87/Quarterly!BY83)-1)","v":0.12569355527102011},"--",{"$f":"((Quarterly!CA87/Quarterly!CA83)-1)","v":-2.5941209198813153E-2},{"$f":"((Quarterly!CB87/Quarterly!CB83)-1)","v":-4.4229625250957305E-2},{"$f":"((Quarterly!CC87/Quarterly!CC83)-1)","v":-7.5563547032560741E-2},"--","--",null,"--","--",null,{"$f":"((Quarterly!CJ87/Quarterly!CJ83)-1)","v":-5.362776025236593E-2},{"$f":"((Quarterly!CK87/Quarterly!CK83)-1)","v":0.12335703284879451},{"$f":"((Quarterly!CL87/Quarterly!CL83)-1)","v":0.30552712384851577},{"$f":"((Quarterly!CM87/Quarterly!CM83)-1)","v":-4.108584005869409E-2},{"$f":"((Quarterly!CN87/Quarterly!CN83)-1)","v":5.5243818845546855E-2},{"$f":"((Quarterly!CO87/Quarterly!CO83)-1)","v":7.1865773745229289E-2},{"$f":"((Quarterly!CP87/Quarterly!CP83)-1)","v":0.16334811465669663},{"$f":"((Quarterly!CQ87/Quarterly!CQ83)-1)","v":1.044182077635103E-2},{"$f":"((Quarterly!CR87/Quarterly!CR83)-1)","v":0.20693506724473343},"--","--",null,null,null,null,null,{"$f":"((Quarterly!CZ87/Quarterly!CZ83)-1)","v":6.475225225225234E-2},{"$f":"((Quarterly!DA87/Quarterly!DA83)-1)","v":6.3128491620111804E-2},null,null,null,null,null,{"$f":"((Quarterly!DG87/Quarterly!DG83)-1)","v":4.2849767681982343E-2},{"$f":"((Quarterly!DH87-Quarterly!DH83)*60)","v":-15.999999999999943},{"$f":"Quarterly!DI87-Quarterly!DI83","v":0.93333333333333712},"--",{"$f":"(Quarterly!DK87-Quarterly!DK83)*100","v":-116.6666666666667},{"$f":"((Quarterly!DL87/Quarterly!DL83)-1)","v":4.3741952339186874E-2},null,null,null,{"$f":"((Quarterly!DP87/Quarterly!DP83)-1)","v":4.909265194120227E-2},null,null,null,null,{"$f":"Quarterly!DU87-Quarterly!DU83","v":-0.83333333333333393},"--","--","--","--","--","--","--","--",null,null,null,null,null,{"$f":"((Quarterly!EI87/Quarterly!EI83)-1)","v":5.462350265062943E-2},{"$f":"((Quarterly!EJ87/Quarterly!EJ83)-1)","v":3.8178302582927204E-2},{"$f":"((Quarterly!EK87/Quarterly!EK83)-1)","v":3.5377767105016167E-2},null,null,null,null,null,{"$f":"((Quarterly!EQ87/Quarterly!EQ83)-1)","v":6.3025210084033834E-2},{"$f":"((Quarterly!ER87/Quarterly!ER83)-1)","v":6.3200815494393492E-2},{"$f":"((Quarterly!ES87/Quarterly!ES83)-1)","v":7.51295336787563E-2},null,null,null,null,null,{"$f":"(Quarterly!EY87-Quarterly!EY83)*100","v":172.66666666666666},{"$f":"(Quarterly!EZ87-Quarterly!EZ83)*100","v":209.66666666666666},{"$f":"(Quarterly!FA87-Quarterly!FA83)*100","v":41.666666666666785},{"$f":"(Quarterly!FB87-Quarterly!FB83)*100","v":8.9999999999998082},"--",{"$f":"(Quarterly!FD87-Quarterly!FD83)*100","v":43.333333333333357},{"$f":"(Quarterly!FE87-Quarterly!FE83)*100","v":176.33333333333337},{"$f":"(Quarterly!FF87-Quarterly!FF83)*100","v":189.00000000000006},{"$f":"(Quarterly!FG87-Quarterly!FG83)*100","v":152.00000000000006},{"$f":"(Quarterly!FH87-Quarterly!FH83)*100","v":104},{"$f":"(Quarterly!FI87-Quarterly!FI83)*100","v":65.666666666666714},null,null,null,null,null,null,{"$f":"((Quarterly!FP87/Quarterly!FP83)-1)","v":8.1081081081081141E-2},"--","--","--",{"$f":"((Quarterly!FT87/Quarterly!FT83)-1)","v":-2.8973436730185931E-2},{"$f":"((Quarterly!FU87/Quarterly!FU83)-1)","v":-6.1365512896738417E-2},"--","--","--",null,null,null,null,null,{"$f":"((Quarterly!GD87/Quarterly!GD83)-1)","v":6.8345323741007213E-2},"--","--","--",{"$f":"((Quarterly!GH87/Quarterly!GH83)-1)","v":{"$error":"#DIV/0!"}},"--","--","--","--"]
["78'Q2",{"$f":"((Quarterly!B88/Quarterly!B84)-1)","v":0.13416304033900195},{"$f":"((Quarterly!C88/Quarterly!C84)-1)","v":6.1049789302410673E-2},{"$f":"((Quarterly!D88/Quarterly!D84)-1)","v":6.0290662923345062E-2},{"$f":"((Quarterly!E88/Quarterly!E84)-1)","v":5.2664121726974544E-2},{"$f":"((Quarterly!F88/Quarterly!F84)-1)","v":8.3776303650661132E-2},{"$f":"((Quarterly!G88/Quarterly!G84)-1)","v":3.8866141732283532E-2},{"$f":"((Quarterly!H88/Quarterly!H84)-1)","v":5.5539162454460778E-2},{"$f":"((Quarterly!I88/Quarterly!I84)-1)","v":0.14231177094379666},{"$f":"((Quarterly!J88/Quarterly!J84)-1)","v":0.17735109200499699},{"$f":"((Quarterly!K88/Quarterly!K84)-1)","v":3.618421052631593E-2},{"$f":"((Quarterly!L88-Quarterly!L84))","v":3.5219999999999985},{"$f":"((Quarterly!M88/Quarterly!M84)-1)","v":7.0521501676175991E-2},{"$f":"((Quarterly!N88/Quarterly!N84)-1)","v":0.10242845305628134},{"$f":"((Quarterly!O88/Quarterly!O84)-1)","v":-4.5084806651099707E-2},{"$f":"((Quarterly!P88/Quarterly!P84)-1)","v":2.7797196206671648E-2},{"$f":"((Quarterly!Q88/Quarterly!Q84)-1)","v":-0.11215798598025162},null,null,null,null,null,{"$f":"((Quarterly!W88/Quarterly!W84)-1)","v":2.1739130434782483E-2},{"$f":"((Quarterly!X88/Quarterly!X84)-1)","v":1.9872813990461147E-2},{"$f":"((Quarterly!Y88/Quarterly!Y84)-1)","v":0.14809009895778402},"--",{"$f":"((Quarterly!AA88/Quarterly!AA84)-1)","v":0.20516797895108874},{"$f":"((Quarterly!AB88/Quarterly!AB84)-1)","v":0.17300767663147565},"--","--","--","--","--","--","--","--","--","--",{"$f":"((Quarterly!AM88/Quarterly!AM84)-1)","v":5.5375875488490989E-2},{"$f":"((Quarterly!AN88/Quarterly!AN84)-1)","v":5.8929696425287892E-2},"--","--",{"$f":"Quarterly!AQ88-Quarterly!AQ84","v":1.6666666666666785},"--","--",{"$f":"Quarterly!AT88-Quarterly!AT84","v":2.9333333333333371},"--","--",{"$f":"Quarterly!AW88-Quarterly!AW84","v":0.30000000000001137},{"$f":"Quarterly!AX88-Quarterly!AX84","v":1.5999999999999943},{"$f":"Quarterly!AY88-Quarterly!AY84","v":5.4666666666666686},{"$f":"Quarterly!AZ88-Quarterly!AZ84","v":-0.13333333333332575},{"$f":"Quarterly!BA88-Quarterly!BA84","v":4.0999999999999943},"--","--","--","--",{"$f":"((Quarterly!BF88/Quarterly!BF84)-1)","v":8.3836926129701617E-2},{"$f":"((Quarterly!BG88/Quarterly!BG84)-1)","v":1.7178840382243044E-2},{"$f":"((Quarterly!BH88/Quarterly!BH84)-1)","v":1.5469996531390917E-2},{"$f":"((Quarterly!BI88/Quarterly!BI84)-1)","v":6.5518761634172584E-2},{"$f":"((Quarterly!BJ88/Quarterly!BJ84)-1)","v":0.22121128174939853},"--",null,"--","--",null,null,null,null,null,{"$f":"((Quarterly!BT88/Quarterly!BT84)-1)","v":0.19598811113918857},"--","--",{"$f":"((Quarterly!BW88/Quarterly!BW84)-1)","v":9.8303797050225405E-2},{"$f":"((Quarterly!BX88/Quarterly!BX84)-1)","v":0.10180681028492011},{"$f":"((Quarterly!BY88/Quarterly!BY84)-1)","v":0.12145669291338579},"--",{"$f":"((Quarterly!CA88/Quarterly!CA84)-1)","v":8.0265883584875519E-2},{"$f":"((Quarterly!CB88/Quarterly!CB84)-1)","v":-6.485847928802746E-2},{"$f":"((Quarterly!CC88/Quarterly!CC84)-1)","v":-8.9667097213492419E-2},"--","--",null,"--","--",null,{"$f":"((Quarterly!CJ88/Quarterly!CJ84)-1)","v":5.9726254666113698E-2},{"$f":"((Quarterly!CK88/Quarterly!CK84)-1)","v":0.12628712972629952},{"$f":"((Quarterly!CL88/Quarterly!CL84)-1)","v":0.1135514018691588},{"$f":"((Quarterly!CM88/Quarterly!CM84)-1)","v":4.1861552853133865E-2},{"$f":"((Quarterly!CN88/Quarterly!CN84)-1)","v":5.2572742158962127E-2},{"$f":"((Quarterly!CO88/Quarterly!CO84)-1)","v":5.6241620210288668E-2},{"$f":"((Quarterly!CP88/Quarterly!CP84)-1)","v":0.16941433219231583},{"$f":"((Quarterly!CQ88/Quarterly!CQ84)-1)","v":1.0547477292677687E-2},{"$f":"((Quarterly!CR88/Quarterly!CR84)-1)","v":0.20736830281927454},"--","--",null,null,null,null,null,{"$f":"((Quarterly!CZ88/Quarterly!CZ84)-1)","v":7.028223574986181E-2},{"$f":"((Quarterly!DA88/Quarterly!DA84)-1)","v":6.7619571192963246E-2},null,null,null,null,null,{"$f":"((Quarterly!DG88/Quarterly!DG84)-1)","v":5.0075872534142585E-2},{"$f":"((Quarterly!DH88-Quarterly!DH84)*60)","v":-9.9999999999998579},{"$f":"Quarterly!DI88-Quarterly!DI84","v":0.89999999999998437},"--",{"$f":"(Quarterly!DK88-Quarterly!DK84)*100","v":-113.33333333333329},{"$f":"((Quarterly!DL88/Quarterly!DL84)-1)","v":4.0793034258048921E-2},null,null,null,{"$f":"((Quarterly!DP88/Quarterly!DP84)-1)","v":5.4066892402133915E-2},null,null,null,null,{"$f":"Quarterly!DU88-Quarterly!DU84","v":-1.1999999999999993},"--","--","--","--","--","--","--","--",null,null,null,null,null,{"$f":"((Quarterly!EI88/Quarterly!EI84)-1)","v":6.7900319158138212E-2},{"$f":"((Quarterly!EJ88/Quarterly!EJ84)-1)","v":5.4714553445610603E-2},{"$f":"((Quarterly!EK88/Quarterly!EK84)-1)","v":5.2732632919003652E-2},null,null,null,null,null,{"$f":"((Quarterly!EQ88/Quarterly!EQ84)-1)","v":6.8682726806765571E-2},{"$f":"((Quarterly!ER88/Quarterly!ER84)-1)","v":7.5062972292191166E-2},{"$f":"((Quarterly!ES88/Quarterly!ES84)-1)","v":7.8571428571428736E-2},null,null,null,null,null,{"$f":"(Quarterly!EY88-Quarterly!EY84)*100","v":182.99999999999991},{"$f":"(Quarterly!EZ88-Quarterly!EZ84)*100","v":212.66666666666677},{"$f":"(Quarterly!FA88-Quarterly!FA84)*100","v":65.666666666666629},{"$f":"(Quarterly!FB88-Quarterly!FB84)*100","v":47.333333333333449},"--",{"$f":"(Quarterly!FD88-Quarterly!FD84)*100","v":73.999999999999844},{"$f":"(Quarterly!FE88-Quarterly!FE84)*100","v":163.66666666666669},{"$f":"(Quarterly!FF88-Quarterly!FF84)*100","v":209.3333333333332},{"$f":"(Quarterly!FG88-Quarterly!FG84)*100","v":188.33333333333337},{"$f":"(Quarterly!FH88-Quarterly!FH84)*100","v":134.33333333333329},{"$f":"(Quarterly!FI88-Quarterly!FI84)*100","v":95.000000000000014},null,null,null,null,null,null,{"$f":"((Quarterly!FP88/Quarterly!FP84)-1)","v":7.1030464247260561E-2},"--","--","--",{"$f":"((Quarterly!FT88/Quarterly!FT84)-1)","v":-3.4218566477154044E-2},{"$f":"((Quarterly!FU88/Quarterly!FU84)-1)","v":-6.7599125757227818E-2},"--","--","--",null,null,null,null,null,{"$f":"((Quarterly!GD88/Quarterly!GD84)-1)","v":6.8345323741007213E-2},"--","--","--",{"$f":"((Quarterly!GH88/Quarterly!GH84)-1)","v":{"$error":"#DIV/0!"}},"--","--","--","--"]
["78'Q3",{"$f":"((Quarterly!B89/Quarterly!B85)-1)","v":0.13026794830537503},{"$f":"((Quarterly!C89/Quarterly!C85)-1)","v":5.2800408668858267E-2},{"$f":"((Quarterly!D89/Quarterly!D85)-1)","v":5.885906554134257E-2},{"$f":"((Quarterly!E89/Quarterly!E85)-1)","v":4.7108010225820118E-2},{"$f":"((Quarterly!F89/Quarterly!F85)-1)","v":5.3641007879470237E-2},{"$f":"((Quarterly!G89/Quarterly!G85)-1)","v":4.1766782975700689E-2},{"$f":"((Quarterly!H89/Quarterly!H85)-1)","v":4.8728953340556602E-2},{"$f":"((Quarterly!I89/Quarterly!I85)-1)","v":0.15800235669231322},{"$f":"((Quarterly!J89/Quarterly!J85)-1)","v":0.20358989957874196},{"$f":"((Quarterly!K89/Quarterly!K85)-1)","v":5.4060913705583857E-2},{"$f":"((Quarterly!L89-Quarterly!L85))","v":-28.546000000000006},{"$f":"((Quarterly!M89/Quarterly!M85)-1)","v":9.9833671525184187E-2},{"$f":"((Quarterly!N89/Quarterly!N85)-1)","v":0.10595279508343625},{"$f":"((Quarterly!O89/Quarterly!O85)-1)","v":7.5213481875246568E-2},{"$f":"((Quarterly!P89/Quarterly!P85)-1)","v":3.3668471697789526E-2},{"$f":"((Quarterly!Q89/Quarterly!Q85)-1)","v":-0.27406252564207756},null,null,null,null,null,{"$f":"((Quarterly!W89/Quarterly!W85)-1)","v":1.9253910950661979E-2},{"$f":"((Quarterly!X89/Quarterly!X85)-1)","v":1.743955608402703E-2},{"$f":"((Quarterly!Y89/Quarterly!Y85)-1)","v":0.15788934621910466},"--",{"$f":"((Quarterly!AA89/Quarterly!AA85)-1)","v":0.19608754356768299},{"$f":"((Quarterly!AB89/Quarterly!AB85)-1)","v":0.11128528839559393},"--","--","--","--","--","--","--","--","--","--",{"$f":"((Quarterly!AM89/Quarterly!AM85)-1)","v":5.2948226880943583E-2},{"$f":"((Quarterly!AN89/Quarterly!AN85)-1)","v":5.795763786748287E-2},"--","--",{"$f":"Quarterly!AQ89-Quarterly!AQ85","v":5.5},"--","--",{"$f":"Quarterly!AT89-Quarterly!AT85","v":4.2666666666666657},"--","--",{"$f":"Quarterly!AW89-Quarterly!AW85","v":6.93333333333333},{"$f":"Quarterly!AX89-Quarterly!AX85","v":4.2000000000000099},{"$f":"Quarterly!AY89-Quarterly!AY85","v":16.799999999999997},{"$f":"Quarterly!AZ89-Quarterly!AZ85","v":8.5333333333333314},{"$f":"Quarterly!BA89-Quarterly!BA85","v":3.8333333333333357},"--","--","--","--",{"$f":"((Quarterly!BF89/Quarterly!BF85)-1)","v":7.9270990002654029E-2},{"$f":"((Quarterly!BG89/Quarterly!BG85)-1)","v":7.2013272319557675E-3},{"$f":"((Quarterly!BH89/Quarterly!BH85)-1)","v":7.036715095823487E-3},{"$f":"((Quarterly!BI89/Quarterly!BI85)-1)","v":7.1553355655844975E-2},{"$f":"((Quarterly!BJ89/Quarterly!BJ85)-1)","v":0.19595298194753386},"--",null,"--","--",null,null,null,null,null,{"$f":"((Quarterly!BT89/Quarterly!BT85)-1)","v":0.2084446852699231},"--","--",{"$f":"((Quarterly!BW89/Quarterly!BW85)-1)","v":9.2608339884801216E-2},{"$f":"((Quarterly!BX89/Quarterly!BX85)-1)","v":5.1435208229633211E-3},{"$f":"((Quarterly!BY89/Quarterly!BY85)-1)","v":1.6922777669714062E-2},"--",{"$f":"((Quarterly!CA89/Quarterly!CA85)-1)","v":4.3860871180458894E-2},{"$f":"((Quarterly!CB89/Quarterly!CB85)-1)","v":4.3220669907766185E-2},{"$f":"((Quarterly!CC89/Quarterly!CC85)-1)","v":-1.3281665183804137E-3},"--","--",null,"--","--",null,{"$f":"((Quarterly!CJ89/Quarterly!CJ85)-1)","v":-1.995841995841996E-2},{"$f":"((Quarterly!CK89/Quarterly!CK85)-1)","v":0.12676364649459715},{"$f":"((Quarterly!CL89/Quarterly!CL85)-1)","v":7.8998489099935121E-2},{"$f":"((Quarterly!CM89/Quarterly!CM85)-1)","v":-2.1525074421799961E-2},{"$f":"((Quarterly!CN89/Quarterly!CN85)-1)","v":4.4157898409695528E-2},{"$f":"((Quarterly!CO89/Quarterly!CO85)-1)","v":2.7279651042027231E-2},{"$f":"((Quarterly!CP89/Quarterly!CP85)-1)","v":0.17790862102790417},{"$f":"((Quarterly!CQ89/Quarterly!CQ85)-1)","v":1.067154531778014E-2},{"$f":"((Quarterly!CR89/Quarterly!CR85)-1)","v":0.22685612310178782},"--","--",null,null,null,null,null,{"$f":"((Quarterly!CZ89/Quarterly!CZ85)-1)","v":8.0240174672489228E-2},{"$f":"((Quarterly!DA89/Quarterly!DA85)-1)","v":7.5338753387533819E-2},null,null,null,null,null,{"$f":"((Quarterly!DG89/Quarterly!DG85)-1)","v":5.2631578947368363E-2},{"$f":"((Quarterly!DH89-Quarterly!DH85)*60)","v":-4.000000000000199},{"$f":"Quarterly!DI89-Quarterly!DI85","v":1},"--",{"$f":"(Quarterly!DK89-Quarterly!DK85)*100","v":-86.666666666666544},{"$f":"((Quarterly!DL89/Quarterly!DL85)-1)","v":3.929359018753753E-2},null,null,null,{"$f":"((Quarterly!DP89/Quarterly!DP85)-1)","v":5.1563088814233549E-2},null,null,null,null,{"$f":"Quarterly!DU89-Quarterly!DU85","v":-1.2000000000000002},"--","--","--","--","--","--","--","--",null,null,null,null,null,{"$f":"((Quarterly!EI89/Quarterly!EI85)-1)","v":6.6611147048080577E-2},{"$f":"((Quarterly!EJ89/Quarterly!EJ85)-1)","v":5.2770425959842271E-2},{"$f":"((Quarterly!EK89/Quarterly!EK85)-1)","v":4.9743000328484666E-2},null,null,null,null,null,{"$f":"((Quarterly!EQ89/Quarterly!EQ85)-1)","v":8.393039918116707E-2},{"$f":"((Quarterly!ER89/Quarterly!ER85)-1)","v":8.2714214957899879E-2},{"$f":"((Quarterly!ES89/Quarterly!ES85)-1)","v":8.2665330661322756E-2},null,null,null,null,null,{"$f":"(Quarterly!EY89-Quarterly!EY85)*100","v":223.66666666666654},{"$f":"(Quarterly!EZ89-Quarterly!EZ85)*100","v":227.99999999999994},{"$f":"(Quarterly!FA89-Quarterly!FA85)*100","v":80.666666666666401},{"$f":"(Quarterly!FB89-Quarterly!FB85)*100","v":67},"--",{"$f":"(Quarterly!FD89-Quarterly!FD85)*100","v":83.6666666666666},{"$f":"(Quarterly!FE89-Quarterly!FE85)*100","v":181.66666666666663},{"$f":"(Quarterly!FF89-Quarterly!FF85)*100","v":216.66666666666669},{"$f":"(Quarterly!FG89-Quarterly!FG85)*100","v":194.66666666666663},{"$f":"(Quarterly!FH89-Quarterly!FH85)*100","v":146.3333333333332},{"$f":"(Quarterly!FI89-Quarterly!FI85)*100","v":113.33333333333337},null,null,null,null,null,null,{"$f":"((Quarterly!FP89/Quarterly!FP85)-1)","v":6.9138495092693653E-2},"--","--","--",{"$f":"((Quarterly!FT89/Quarterly!FT85)-1)","v":-6.8035689021417545E-2},{"$f":"((Quarterly!FU89/Quarterly!FU85)-1)","v":-0.10742940982854532},"--","--","--",null,null,null,null,null,{"$f":"((Quarterly!GD89/Quarterly!GD85)-1)","v":2.1788990825688082E-2},"--","--","--",{"$f":"((Quarterly!GH89/Quarterly!GH85)-1)","v":{"$error":"#DIV/0!"}},"--","--","--","--"]
["78'Q4",{"$f":"((Quarterly!B90/Quarterly!B86)-1)","v":0.14452929751982291},{"$f":"((Quarterly!C90/Quarterly!C86)-1)","v":6.6808812841276266E-2},{"$f":"((Quarterly!D90/Quarterly!D86)-1)","v":6.3881919538508969E-2},{"$f":"((Quarterly!E90/Quarterly!E86)-1)","v":3.9823705336061721E-2},{"$f":"((Quarterly!F90/Quarterly!F86)-1)","v":4.0156044608404828E-2},{"$f":"((Quarterly!G90/Quarterly!G86)-1)","v":3.3013561332815078E-2},{"$f":"((Quarterly!H90/Quarterly!H86)-1)","v":4.2680343042016622E-2},{"$f":"((Quarterly!I90/Quarterly!I86)-1)","v":0.16009148084619818},{"$f":"((Quarterly!J90/Quarterly!J86)-1)","v":0.20150336313347328},{"$f":"((Quarterly!K90/Quarterly!K86)-1)","v":6.5072016460905324E-2},{"$f":"((Quarterly!L90-Quarterly!L86))","v":16.869},{"$f":"((Quarterly!M90/Quarterly!M86)-1)","v":9.9322348083316081E-2},{"$f":"((Quarterly!N90/Quarterly!N86)-1)","v":0.18798646607806679},{"$f":"((Quarterly!O90/Quarterly!O86)-1)","v":-0.1883259133630133},{"$f":"((Quarterly!P90/Quarterly!P86)-1)","v":4.527688976653943E-2},{"$f":"((Quarterly!Q90/Quarterly!Q86)-1)","v":-0.35295588544956824},null,null,null,null,null,{"$f":"((Quarterly!W90/Quarterly!W86)-1)","v":3.125E-2},{"$f":"((Quarterly!X90/Quarterly!X86)-1)","v":2.9785544082605142E-2},{"$f":"((Quarterly!Y90/Quarterly!Y86)-1)","v":0.15947352446722718},"--",{"$f":"((Quarterly!AA90/Quarterly!AA86)-1)","v":0.26048589918808784},{"$f":"((Quarterly!AB90/Quarterly!AB86)-1)","v":0.21127863573153793},"--","--","--","--","--","--","--","--","--","--",{"$f":"((Quarterly!AM90/Quarterly!AM86)-1)","v":6.5069394165654604E-2},{"$f":"((Quarterly!AN90/Quarterly!AN86)-1)","v":7.0629122643268927E-2},"--","--",{"$f":"Quarterly!AQ90-Quarterly!AQ86","v":3.1666666666666714},"--","--",{"$f":"Quarterly!AT90-Quarterly!AT86","v":2.5333333333333314},"--","--",{"$f":"Quarterly!AW90-Quarterly!AW86","v":7.2999999999999972},{"$f":"Quarterly!AX90-Quarterly!AX86","v":1.1999999999999957},{"$f":"Quarterly!AY90-Quarterly!AY86","v":20.566666666666663},{"$f":"Quarterly!AZ90-Quarterly!AZ86","v":1.0999999999999943},{"$f":"Quarterly!BA90-Quarterly!BA86","v":8.56666666666667},"--","--","--","--",{"$f":"((Quarterly!BF90/Quarterly!BF86)-1)","v":8.5790068701626199E-2},{"$f":"((Quarterly!BG90/Quarterly!BG86)-1)","v":2.674201710159374E-2},{"$f":"((Quarterly!BH90/Quarterly!BH86)-1)","v":8.2710595488764138E-3},{"$f":"((Quarterly!BI90/Quarterly!BI86)-1)","v":5.7517540142204782E-2},{"$f":"((Quarterly!BJ90/Quarterly!BJ86)-1)","v":0.24356633593020671},"--",null,"--","--",null,null,null,null,null,{"$f":"((Quarterly!BT90/Quarterly!BT86)-1)","v":0.20228523613632876},"--","--",{"$f":"((Quarterly!BW90/Quarterly!BW86)-1)","v":8.4799271219450967E-2},{"$f":"((Quarterly!BX90/Quarterly!BX86)-1)","v":-1.7185994217796319E-2},{"$f":"((Quarterly!BY90/Quarterly!BY86)-1)","v":2.1010789324247492E-2},"--",{"$f":"((Quarterly!CA90/Quarterly!CA86)-1)","v":3.5449469058952632E-2},{"$f":"((Quarterly!CB90/Quarterly!CB86)-1)","v":0.11833114550580004},{"$f":"((Quarterly!CC90/Quarterly!CC86)-1)","v":5.7591524405496752E-2},"--","--",null,"--","--",null,{"$f":"((Quarterly!CJ90/Quarterly!CJ86)-1)","v":-3.2219089810712198E-3},{"$f":"((Quarterly!CK90/Quarterly!CK86)-1)","v":0.11973102785782896},{"$f":"((Quarterly!CL90/Quarterly!CL86)-1)","v":3.2681057090982568E-2},{"$f":"((Quarterly!CM90/Quarterly!CM86)-1)","v":-3.2550930026572167E-2},{"$f":"((Quarterly!CN90/Quarterly!CN86)-1)","v":3.2450935645824019E-2},{"$f":"((Quarterly!CO90/Quarterly!CO86)-1)","v":-4.0136054421768819E-3},{"$f":"((Quarterly!CP90/Quarterly!CP86)-1)","v":0.17152848553187172},{"$f":"((Quarterly!CQ90/Quarterly!CQ86)-1)","v":1.0706812439319924E-2},{"$f":"((Quarterly!CR90/Quarterly!CR86)-1)","v":0.21926223778431408},"--","--",null,null,null,null,null,{"$f":"((Quarterly!CZ90/Quarterly!CZ86)-1)","v":8.9295320064550987E-2},{"$f":"((Quarterly!DA90/Quarterly!DA86)-1)","v":8.4491978609625873E-2},null,null,null,null,null,{"$f":"((Quarterly!DG90/Quarterly!DG86)-1)","v":5.004955401387523E-2},{"$f":"((Quarterly!DH90-Quarterly!DH86)*60)","v":-9.9999999999998579},{"$f":"Quarterly!DI90-Quarterly!DI86","v":0.83333333333334281},"--",{"$f":"(Quarterly!DK90-Quarterly!DK86)*100","v":-76.666666666666742},{"$f":"((Quarterly!DL90/Quarterly!DL86)-1)","v":4.3883122988464196E-2},null,null,null,{"$f":"((Quarterly!DP90/Quarterly!DP86)-1)","v":5.0096087171867199E-2},null,null,null,null,{"$f":"Quarterly!DU90-Quarterly!DU86","v":-1.2333333333333325},"--","--","--","--","--","--","--","--",null,null,null,null,null,{"$f":"((Quarterly!EI90/Quarterly!EI86)-1)","v":8.7949349469860438E-2},{"$f":"((Quarterly!EJ90/Quarterly!EJ86)-1)","v":6.3262354324953529E-2},{"$f":"((Quarterly!EK90/Quarterly!EK86)-1)","v":5.6410567183257099E-2},null,null,null,null,null,{"$f":"((Quarterly!EQ90/Quarterly!EQ86)-1)","v":9.6153846153846034E-2},{"$f":"((Quarterly!ER90/Quarterly!ER86)-1)","v":7.8640776699028914E-2},{"$f":"((Quarterly!ES90/Quarterly!ES86)-1)","v":7.8316201664219376E-2},null,null,null,null,null,{"$f":"(Quarterly!EY90-Quarterly!EY86)*100","v":313.66666666666674},{"$f":"(Quarterly!EZ90-Quarterly!EZ86)*100","v":307.00000000000011},{"$f":"(Quarterly!FA90-Quarterly!FA86)*100","v":92.333333333333556},{"$f":"(Quarterly!FB90-Quarterly!FB86)*100","v":84.333333333333371},"--",{"$f":"(Quarterly!FD90-Quarterly!FD86)*100","v":117.33333333333337},{"$f":"(Quarterly!FE90-Quarterly!FE86)*100","v":246.00000000000009},{"$f":"(Quarterly!FF90-Quarterly!FF86)*100","v":285.66666666666663},{"$f":"(Quarterly!FG90-Quarterly!FG86)*100","v":218.66666666666666},{"$f":"(Quarterly!FH90-Quarterly!FH86)*100","v":146.33333333333337},{"$f":"(Quarterly!FI90-Quarterly!FI86)*100","v":122.33333333333336},null,null,null,null,null,null,{"$f":"((Quarterly!FP90/Quarterly!FP86)-1)","v":6.9641506579942725E-2},"--","--","--",{"$f":"((Quarterly!FT90/Quarterly!FT86)-1)","v":-6.2268628035468176E-2},{"$f":"((Quarterly!FU90/Quarterly!FU86)-1)","v":-9.8824221631126696E-2},"--","--","--",null,null,null,null,null,{"$f":"((Quarterly!GD90/Quarterly!GD86)-1)","v":0},"--","--","--",{"$f":"((Quarterly!GH90/Quarterly!GH86)-1)","v":{"$error":"#DIV/0!"}},"--","--","--","--"]
["79'Q1",{"$f":"((Quarterly!B91/Quarterly!B87)-1)","v":0.14618044739682556},{"$f":"((Quarterly!C91/Quarterly!C87)-1)","v":6.5222006114097342E-2},{"$f":"((Quarterly!D91/Quarterly!D87)-1)","v":6.6068916942099598E-2},{"$f":"((Quarterly!E91/Quarterly!E87)-1)","v":3.9072484937009211E-2},{"$f":"((Quarterly!F91/Quarterly!F87)-1)","v":5.5797543340012634E-2},{"$f":"((Quarterly!G91/Quarterly!G87)-1)","v":3.31581734490205E-2},{"$f":"((Quarterly!H91/Quarterly!H87)-1)","v":4.0015616313438196E-2},{"$f":"((Quarterly!I91/Quarterly!I87)-1)","v":0.17650785183209461},{"$f":"((Quarterly!J91/Quarterly!J87)-1)","v":0.22612312161515402},{"$f":"((Quarterly!K91/Quarterly!K87)-1)","v":3.5577169183516943E-2},{"$f":"((Quarterly!L91-Quarterly!L87))","v":-4.8810000000000002},{"$f":"((Quarterly!M91/Quarterly!M87)-1)","v":2.7383438350856659E-2},{"$f":"((Quarterly!N91/Quarterly!N87)-1)","v":0.16159889340119538},{"$f":"((Quarterly!O91/Quarterly!O87)-1)","v":-0.34146246369183364},{"$f":"((Quarterly!P91/Quarterly!P87)-1)","v":3.5034874357851464E-2},{"$f":"((Quarterly!Q91/Quarterly!Q87)-1)","v":-0.49316120117199991},null,null,null,null,null,{"$f":"((Quarterly!W91/Quarterly!W87)-1)","v":3.3939393939393936E-2},{"$f":"((Quarterly!X91/Quarterly!X87)-1)","v":3.776617115307368E-2},{"$f":"((Quarterly!Y91/Quarterly!Y87)-1)","v":0.15902359773996366},"--",{"$f":"((Quarterly!AA91/Quarterly!AA87)-1)","v":0.23351948561596281},{"$f":"((Quarterly!AB91/Quarterly!AB87)-1)","v":0.16110068246969633},"--","--","--","--","--","--","--","--","--","--",{"$f":"((Quarterly!AM91/Quarterly!AM87)-1)","v":7.2821189787770857E-2},{"$f":"((Quarterly!AN91/Quarterly!AN87)-1)","v":7.3470626183834264E-2},"--","--",{"$f":"Quarterly!AQ91-Quarterly!AQ87","v":2.0333333333333314},"--","--",{"$f":"Quarterly!AT91-Quarterly!AT87","v":2.2999999999999972},"--","--",{"$f":"Quarterly!AW91-Quarterly!AW87","v":1.93333333333333},{"$f":"Quarterly!AX91-Quarterly!AX87","v":-0.26666666666666572},{"$f":"Quarterly!AY91-Quarterly!AY87","v":14.066666666666663},{"$f":"Quarterly!AZ91-Quarterly!AZ87","v":1.9666666666666615},{"$f":"Quarterly!BA91-Quarterly!BA87","v":6.3999999999999986},"--","--","--","--",{"$f":"((Quarterly!BF91/Quarterly!BF87)-1)","v":8.1990660889318834E-2},{"$f":"((Quarterly!BG91/Quarterly!BG87)-1)","v":1.6924439850872774E-2},{"$f":"((Quarterly!BH91/Quarterly!BH87)-1)","v":-2.6904253305573E-3},{"$f":"((Quarterly!BI91/Quarterly!BI87)-1)","v":6.398012445011747E-2},{"$f":"((Quarterly!BJ91/Quarterly!BJ87)-1)","v":0.25860822709948761},"--",null,"--","--",null,null,null,null,null,{"$f":"((Quarterly!BT91/Quarterly!BT87)-1)","v":0.1738315097841554},"--","--",{"$f":"((Quarterly!BW91/Quarterly!BW87)-1)","v":7.7648176815903858E-2},{"$f":"((Quarterly!BX91/Quarterly!BX87)-1)","v":-8.946793002915443E-2},{"$f":"((Quarterly!BY91/Quarterly!BY87)-1)","v":-0.11412322274881503},"--",{"$f":"((Quarterly!CA91/Quarterly!CA87)-1)","v":5.4834947759240471E-2},{"$f":"((Quarterly!CB91/Quarterly!CB87)-1)","v":0.22155898256762274},{"$f":"((Quarterly!CC91/Quarterly!CC87)-1)","v":0.14565014587581437},"--","--",null,"--","--",null,{"$f":"((Quarterly!CJ91/Quarterly!CJ87)-1)","v":-5.4166666666666696E-2},{"$f":"((Quarterly!CK91/Quarterly!CK87)-1)","v":0.12646959396010948},{"$f":"((Quarterly!CL91/Quarterly!CL87)-1)","v":8.5064680517444202E-2},{"$f":"((Quarterly!CM91/Quarterly!CM87)-1)","v":-0.11145116041826075},{"$f":"((Quarterly!CN91/Quarterly!CN87)-1)","v":3.6059308271585433E-2},{"$f":"((Quarterly!CO91/Quarterly!CO87)-1)","v":-5.7776284850520665E-2},{"$f":"((Quarterly!CP91/Quarterly!CP87)-1)","v":0.17760080203704165},{"$f":"((Quarterly!CQ91/Quarterly!CQ87)-1)","v":1.0911448071734275E-2},{"$f":"((Quarterly!CR91/Quarterly!CR87)-1)","v":0.23780121835073409},{"$f":"Quarterly!CS91-Quarterly!CS87","v":-10.799999999999997},"--",null,null,null,null,null,{"$f":"((Quarterly!CZ91/Quarterly!CZ87)-1)","v":9.7831835007932355E-2},{"$f":"((Quarterly!DA91/Quarterly!DA87)-1)","v":9.0383604834471942E-2},null,null,null,null,null,{"$f":"((Quarterly!DG91/Quarterly!DG87)-1)","v":5.8415841584158468E-2},{"$f":"((Quarterly!DH91-Quarterly!DH87)*60)","v":7.9999999999999716},{"$f":"Quarterly!DI91-Quarterly!DI87","v":0.96666666666665435},"--",{"$f":"(Quarterly!DK91-Quarterly!DK87)*100","v":-46.666666666666586},{"$f":"((Quarterly!DL91/Quarterly!DL87)-1)","v":4.1461801147842925E-2},null,null,null,{"$f":"((Quarterly!DP91/Quarterly!DP87)-1)","v":4.8391397781995638E-2},null,null,null,null,{"$f":"Quarterly!DU91-Quarterly!DU87","v":-0.56666666666666465},"--","--","--","--","--","--","--","--",null,null,null,null,null,{"$f":"((Quarterly!EI91/Quarterly!EI87)-1)","v":8.3766677640153997E-2},{"$f":"((Quarterly!EJ91/Quarterly!EJ87)-1)","v":6.3026121659843781E-2},{"$f":"((Quarterly!EK91/Quarterly!EK87)-1)","v":5.494754324816542E-2},null,null,null,null,null,{"$f":"((Quarterly!EQ91/Quarterly!EQ87)-1)","v":0.10918972332015797},{"$f":"((Quarterly!ER91/Quarterly!ER87)-1)","v":9.1083413231064281E-2},{"$f":"((Quarterly!ES91/Quarterly!ES87)-1)","v":8.6265060240963809E-2},null,null,null,null,null,{"$f":"(Quarterly!EY91-Quarterly!EY87)*100","v":377.33333333333337},{"$f":"(Quarterly!EZ91-Quarterly!EZ87)*100","v":331.66666666666674},{"$f":"(Quarterly!FA91-Quarterly!FA87)*100","v":84.333333333333016},{"$f":"(Quarterly!FB91-Quarterly!FB87)*100","v":96.000000000000085},"--",{"$f":"(Quarterly!FD91-Quarterly!FD87)*100","v":128.33333333333331},{"$f":"(Quarterly!FE91-Quarterly!FE87)*100","v":299.00000000000011},{"$f":"(Quarterly!FF91-Quarterly!FF87)*100","v":298.99999999999994},{"$f":"(Quarterly!FG91-Quarterly!FG87)*100","v":224.33333333333323},{"$f":"(Quarterly!FH91-Quarterly!FH87)*100","v":135.66666666666657},{"$f":"(Quarterly!FI91-Quarterly!FI87)*100","v":109.66666666666676},null,null,null,null,null,null,{"$f":"((Quarterly!FP91/Quarterly!FP87)-1)","v":6.5688622754491055E-2},"--","--","--",{"$f":"((Quarterly!FT91/Quarterly!FT87)-1)","v":-2.9032267057455763E-2},{"$f":"((Quarterly!FU91/Quarterly!FU87)-1)","v":-5.8053923714911027E-2},"--","--","--",null,null,null,null,null,{"$f":"((Quarterly!GD91/Quarterly!GD87)-1)","v":4.4893378226711578E-2},"--","--","--",{"$f":"((Quarterly!GH91/Quarterly!GH87)-1)","v":{"$error":"#DIV/0!"}},"--","--","--","--"]
["79'Q2",{"$f":"((Quarterly!B92/Quarterly!B88)-1)","v":0.11099465325779789},{"$f":"((Quarterly!C92/Quarterly!C88)-1)","v":2.6597064726075148E-2},{"$f":"((Quarterly!D92/Quarterly!D88)-1)","v":2.6096644783541789E-2},{"$f":"((Quarterly!E92/Quarterly!E88)-1)","v":1.6753070970707773E-2},{"$f":"((Quarterly!F92/Quarterly!F88)-1)","v":-3.9683826509931075E-2},{"$f":"((Quarterly!G92/Quarterly!G88)-1)","v":2.328401649284495E-2},{"$f":"((Quarterly!H92/Quarterly!H88)-1)","v":1.9543372930182157E-2},{"$f":"((Quarterly!I92/Quarterly!I88)-1)","v":9.0883772744151825E-2},{"$f":"((Quarterly!J92/Quarterly!J88)-1)","v":7.3758776693100936E-2},{"$f":"((Quarterly!K92/Quarterly!K88)-1)","v":-3.0036630036630041E-2},{"$f":"((Quarterly!L92-Quarterly!L88))","v":1.7989999999999995},{"$f":"((Quarterly!M92/Quarterly!M88)-1)","v":2.9674198197824575E-2},{"$f":"((Quarterly!N92/Quarterly!N88)-1)","v":5.4739695754959516E-2},{"$f":"((Quarterly!O92/Quarterly!O88)-1)","v":-7.517332186811454E-2},{"$f":"((Quarterly!P92/Quarterly!P88)-1)","v":1.8612621319864964E-2},{"$f":"((Quarterly!Q92/Quarterly!Q88)-1)","v":-0.33376347737498946},null,null,null,null,null,{"$f":"((Quarterly!W92/Quarterly!W88)-1)","v":-2.3640661938533203E-3},{"$f":"((Quarterly!X92/Quarterly!X88)-1)","v":-2.7279812938427739E-3},{"$f":"((Quarterly!Y92/Quarterly!Y88)-1)","v":0.17416776533752332},"--",{"$f":"((Quarterly!AA92/Quarterly!AA88)-1)","v":0.15177533752593231},{"$f":"((Quarterly!AB92/Quarterly!AB88)-1)","v":5.2916895263474206E-2},"--","--","--","--","--","--","--","--","--","--",{"$f":"((Quarterly!AM92/Quarterly!AM88)-1)","v":2.9222299213893077E-2},{"$f":"((Quarterly!AN92/Quarterly!AN88)-1)","v":3.4487936481052195E-2},"--","--",{"$f":"Quarterly!AQ92-Quarterly!AQ88","v":-5.0333333333333314},"--","--",{"$f":"Quarterly!AT92-Quarterly!AT88","v":-4.2666666666666728},"--","--",{"$f":"Quarterly!AW92-Quarterly!AW88","v":-1.0333333333333456},{"$f":"Quarterly!AX92-Quarterly!AX88","v":-10.366666666666667},{"$f":"Quarterly!AY92-Quarterly!AY88","v":6.36666666666666},{"$f":"Quarterly!AZ92-Quarterly!AZ88","v":-8.8333333333333357},{"$f":"Quarterly!BA92-Quarterly!BA88","v":8.3666666666666742},"--","--","--","--",{"$f":"((Quarterly!BF92/Quarterly!BF88)-1)","v":9.3787708567386385E-2},{"$f":"((Quarterly!BG92/Quarterly!BG88)-1)","v":-5.3761494460936587E-3},{"$f":"((Quarterly!BH92/Quarterly!BH88)-1)","v":3.0058751195518596E-3},{"$f":"((Quarterly!BI92/Quarterly!BI88)-1)","v":9.9694273958117918E-2},{"$f":"((Quarterly!BJ92/Quarterly!BJ88)-1)","v":0.10414200344517144},"--",null,"--","--",null,null,null,null,null,{"$f":"((Quarterly!BT92/Quarterly!BT88)-1)","v":0.17020367981730367},"--","--",{"$f":"((Quarterly!BW92/Quarterly!BW88)-1)","v":6.5715273913893535E-2},{"$f":"((Quarterly!BX92/Quarterly!BX88)-1)","v":-0.1269315673289183},{"$f":"((Quarterly!BY92/Quarterly!BY88)-1)","v":-0.13621204142531163},"--",{"$f":"((Quarterly!CA92/Quarterly!CA88)-1)","v":-0.14375724370456222},{"$f":"((Quarterly!CB92/Quarterly!CB88)-1)","v":0.26301502188552162},{"$f":"((Quarterly!CC92/Quarterly!CC88)-1)","v":0.18670073004894738},"--","--",null,"--","--",null,{"$f":"((Quarterly!CJ92/Quarterly!CJ88)-1)","v":-0.14872798434442269},{"$f":"((Quarterly!CK92/Quarterly!CK88)-1)","v":0.11229052310153054},{"$f":"((Quarterly!CL92/Quarterly!CL88)-1)","v":0.10155266470835089},{"$f":"((Quarterly!CM92/Quarterly!CM88)-1)","v":-0.12906846240179581},{"$f":"((Quarterly!CN92/Quarterly!CN88)-1)","v":1.7097724790952951E-2},{"$f":"((Quarterly!CO92/Quarterly!CO88)-1)","v":-8.3845537145911364E-2},{"$f":"((Quarterly!CP92/Quarterly!CP88)-1)","v":0.16195767079660905},{"$f":"((Quarterly!CQ92/Quarterly!CQ88)-1)","v":1.1052500502590989E-2},{"$f":"((Quarterly!CR92/Quarterly!CR88)-1)","v":0.22897687100604536},{"$f":"Quarterly!CS92-Quarterly!CS88","v":-14.866666666666674},"--",null,null,null,null,null,{"$f":"((Quarterly!CZ92/Quarterly!CZ88)-1)","v":0.10754912099276104},{"$f":"((Quarterly!DA92/Quarterly!DA88)-1)","v":9.3717816683831057E-2},null,null,null,null,null,{"$f":"((Quarterly!DG92/Quarterly!DG88)-1)","v":3.1310211946050215E-2},{"$f":"((Quarterly!DH92-Quarterly!DH88)*60)","v":-20.000000000000142},{"$f":"Quarterly!DI92-Quarterly!DI88","v":0.30000000000001137},"--",{"$f":"(Quarterly!DK92-Quarterly!DK88)*100","v":-30.000000000000071},{"$f":"((Quarterly!DL92/Quarterly!DL88)-1)","v":3.4896266294062617E-2},null,null,null,{"$f":"((Quarterly!DP92/Quarterly!DP88)-1)","v":3.7342608320526383E-2},null,null,null,null,{"$f":"Quarterly!DU92-Quarterly!DU88","v":-0.39999999999999947},"--","--","--","--","--","--","--","--",null,null,null,null,null,{"$f":"((Quarterly!EI92/Quarterly!EI88)-1)","v":2.4941517378045841E-2},{"$f":"((Quarterly!EJ92/Quarterly!EJ88)-1)","v":2.3816806512154232E-2},{"$f":"((Quarterly!EK92/Quarterly!EK88)-1)","v":2.5208120418878988E-2},null,null,null,null,null,{"$f":"((Quarterly!EQ92/Quarterly!EQ88)-1)","v":0.11462829736211044},{"$f":"((Quarterly!ER92/Quarterly!ER88)-1)","v":8.9034676663542811E-2},{"$f":"((Quarterly!ES92/Quarterly!ES88)-1)","v":9.0350047303689562E-2},null,null,null,null,null,{"$f":"(Quarterly!EY92-Quarterly!EY88)*100","v":341.6666666666668},{"$f":"(Quarterly!EZ92-Quarterly!EZ88)*100","v":289.66666666666657},{"$f":"(Quarterly!FA92-Quarterly!FA88)*100","v":72.000000000000057},{"$f":"(Quarterly!FB92-Quarterly!FB88)*100","v":92.333333333333201},"--",{"$f":"(Quarterly!FD92-Quarterly!FD88)*100","v":119.33333333333334},{"$f":"(Quarterly!FE92-Quarterly!FE88)*100","v":290.00000000000006},{"$f":"(Quarterly!FF92-Quarterly!FF88)*100","v":214.99999999999994},{"$f":"(Quarterly!FG92-Quarterly!FG88)*100","v":159.66666666666666},{"$f":"(Quarterly!FH92-Quarterly!FH88)*100","v":94.000000000000128},{"$f":"(Quarterly!FI92-Quarterly!FI88)*100","v":79.3333333333333},null,null,null,null,null,null,{"$f":"((Quarterly!FP92/Quarterly!FP88)-1)","v":2.7290736524644643E-2},"--","--","--",{"$f":"((Quarterly!FT92/Quarterly!FT88)-1)","v":-7.1794565697904655E-3},{"$f":"((Quarterly!FU92/Quarterly!FU88)-1)","v":-3.3447392363062378E-2},"--","--","--",null,null,null,null,null,{"$f":"((Quarterly!GD92/Quarterly!GD88)-1)","v":0.19079685746352415},"--","--","--",{"$f":"((Quarterly!GH92/Quarterly!GH88)-1)","v":{"$error":"#DIV/0!"}},"--","--","--","--"]
["79'Q3",{"$f":"((Quarterly!B93/Quarterly!B89)-1)","v":0.11318764783026647},{"$f":"((Quarterly!C93/Quarterly!C89)-1)","v":2.3955075965417238E-2},{"$f":"((Quarterly!D93/Quarterly!D89)-1)","v":3.1314324037404084E-2},{"$f":"((Quarterly!E93/Quarterly!E89)-1)","v":2.2481625594465982E-2},{"$f":"((Quarterly!F93/Quarterly!F89)-1)","v":6.163454821876968E-4},{"$f":"((Quarterly!G93/Quarterly!G89)-1)","v":2.7296430004011052E-2},{"$f":"((Quarterly!H93/Quarterly!H89)-1)","v":2.2567619006574891E-2},{"$f":"((Quarterly!I93/Quarterly!I89)-1)","v":8.6223924819681219E-2},{"$f":"((Quarterly!J93/Quarterly!J89)-1)","v":6.124270817655475E-2},{"$f":"((Quarterly!K93/Quarterly!K89)-1)","v":-5.4659282446424262E-2},{"$f":"((Quarterly!L93-Quarterly!L89))","v":-30.034999999999997},{"$f":"((Quarterly!M93/Quarterly!M89)-1)","v":8.9817141511905341E-4},{"$f":"((Quarterly!N93/Quarterly!N89)-1)","v":8.0863056090385133E-2},{"$f":"((Quarterly!O93/Quarterly!O89)-1)","v":-0.33003734287066711},{"$f":"((Quarterly!P93/Quarterly!P89)-1)","v":1.1939364727738155E-2},{"$f":"((Quarterly!Q93/Quarterly!Q89)-1)","v":-0.15515617346746546},null,null,null,null,null,{"$f":"((Quarterly!W93/Quarterly!W89)-1)","v":-1.4167650531286879E-2},{"$f":"((Quarterly!X93/Quarterly!X89)-1)","v":-1.2465913517724969E-2},{"$f":"((Quarterly!Y93/Quarterly!Y89)-1)","v":0.18653804497282978},"--",{"$f":"((Quarterly!AA93/Quarterly!AA89)-1)","v":0.13538346835801929},{"$f":"((Quarterly!AB93/Quarterly!AB89)-1)","v":4.3577923877176072E-3},"--","--","--","--","--","--","--","--","--","--",{"$f":"((Quarterly!AM93/Quarterly!AM89)-1)","v":1.7204355839352203E-2},{"$f":"((Quarterly!AN93/Quarterly!AN89)-1)","v":2.0176904979005483E-2},"--","--",{"$f":"Quarterly!AQ93-Quarterly!AQ89","v":-10.866666666666667},"--","--",{"$f":"Quarterly!AT93-Quarterly!AT89","v":-6.7666666666666657},"--","--",{"$f":"Quarterly!AW93-Quarterly!AW89","v":-3.3666666666666671},{"$f":"Quarterly!AX93-Quarterly!AX89","v":-13.966666666666676},{"$f":"Quarterly!AY93-Quarterly!AY89","v":2.8333333333333286},{"$f":"Quarterly!AZ93-Quarterly!AZ89","v":-16.100000000000001},{"$f":"Quarterly!BA93-Quarterly!BA89","v":-6.3333333333333357},"--","--","--","--",{"$f":"((Quarterly!BF93/Quarterly!BF89)-1)","v":0.10238544142962547},{"$f":"((Quarterly!BG93/Quarterly!BG89)-1)","v":-6.4801071570793622E-3},{"$f":"((Quarterly!BH93/Quarterly!BH89)-1)","v":2.4524915395893743E-3},{"$f":"((Quarterly!BI93/Quarterly!BI89)-1)","v":0.10954871725199822},{"$f":"((Quarterly!BJ93/Quarterly!BJ89)-1)","v":8.156114822270677E-2},"--",null,"--","--",null,null,null,null,null,{"$f":"((Quarterly!BT93/Quarterly!BT89)-1)","v":0.14687918515385268},"--","--",{"$f":"((Quarterly!BW93/Quarterly!BW89)-1)","v":6.5492885358081621E-2},{"$f":"((Quarterly!BX93/Quarterly!BX89)-1)","v":-0.11356883459887746},{"$f":"((Quarterly!BY93/Quarterly!BY89)-1)","v":-8.8944146901300702E-2},"--",{"$f":"((Quarterly!CA93/Quarterly!CA89)-1)","v":-7.3247770091420694E-2},{"$f":"((Quarterly!CB93/Quarterly!CB89)-1)","v":0.25129979349993969},{"$f":"((Quarterly!CC93/Quarterly!CC89)-1)","v":0.18685730881550566},"--","--",null,"--","--",null,{"$f":"((Quarterly!CJ93/Quarterly!CJ89)-1)","v":-7.8913873568095094E-2},{"$f":"((Quarterly!CK93/Quarterly!CK89)-1)","v":0.11550484802458461},{"$f":"((Quarterly!CL93/Quarterly!CL89)-1)","v":3.0806161232246554E-2},{"$f":"((Quarterly!CM93/Quarterly!CM89)-1)","v":-0.1567985022232623},{"$f":"((Quarterly!CN93/Quarterly!CN89)-1)","v":1.4614150775262846E-2},{"$f":"((Quarterly!CO93/Quarterly!CO89)-1)","v":-7.9396104333760098E-2},{"$f":"((Quarterly!CP93/Quarterly!CP89)-1)","v":0.14744542594082},{"$f":"((Quarterly!CQ93/Quarterly!CQ89)-1)","v":1.1151287394736586E-2},{"$f":"((Quarterly!CR93/Quarterly!CR89)-1)","v":0.2034927395994901},{"$f":"Quarterly!CS93-Quarterly!CS89","v":-16.533333333333331},"--",null,null,null,null,null,{"$f":"((Quarterly!CZ93/Quarterly!CZ89)-1)","v":0.11723092470944918},{"$f":"((Quarterly!DA93/Quarterly!DA89)-1)","v":9.828629032258096E-2},null,null,null,null,null,{"$f":"((Quarterly!DG93/Quarterly!DG89)-1)","v":2.6190476190476097E-2},{"$f":"((Quarterly!DH93-Quarterly!DH89)*60)","v":-13.999999999999631},{"$f":"Quarterly!DI93-Quarterly!DI89","v":0.43333333333333712},"--",{"$f":"(Quarterly!DK93-Quarterly!DK89)*100","v":-16.666666666666696},{"$f":"((Quarterly!DL93/Quarterly!DL89)-1)","v":2.3743971942130848E-2},null,null,null,{"$f":"((Quarterly!DP93/Quarterly!DP89)-1)","v":3.2530956447480719E-2},null,null,null,null,{"$f":"Quarterly!DU93-Quarterly!DU89","v":-0.33333333333333393},"--","--","--","--","--","--","--","--",null,null,null,null,null,{"$f":"((Quarterly!EI93/Quarterly!EI89)-1)","v":1.638283866217205E-2},{"$f":"((Quarterly!EJ93/Quarterly!EJ89)-1)","v":2.10105675796326E-2},{"$f":"((Quarterly!EK93/Quarterly!EK89)-1)","v":2.3310720301098931E-2},null,null,null,null,null,{"$f":"((Quarterly!EQ93/Quarterly!EQ89)-1)","v":0.13172804532577898},{"$f":"((Quarterly!ER93/Quarterly!ER89)-1)","v":8.4172003659652495E-2},{"$f":"((Quarterly!ES93/Quarterly!ES89)-1)","v":8.422026839426211E-2},null,null,null,null,null,{"$f":"(Quarterly!EY93-Quarterly!EY89)*100","v":297.66666666666686},{"$f":"(Quarterly!EZ93-Quarterly!EZ89)*100","v":284.66666666666674},{"$f":"(Quarterly!FA93-Quarterly!FA89)*100","v":53.666666666666707},{"$f":"(Quarterly!FB93-Quarterly!FB89)*100","v":89.333333333333258},"--",{"$f":"(Quarterly!FD93-Quarterly!FD89)*100","v":139.66666666666683},{"$f":"(Quarterly!FE93-Quarterly!FE89)*100","v":235.99999999999994},{"$f":"(Quarterly!FF93-Quarterly!FF89)*100","v":170.66666666666669},{"$f":"(Quarterly!FG93-Quarterly!FG89)*100","v":107.6666666666668},{"$f":"(Quarterly!FH93-Quarterly!FH89)*100","v":69.000000000000128},{"$f":"(Quarterly!FI93-Quarterly!FI89)*100","v":61.333333333333151},null,null,null,null,null,null,{"$f":"((Quarterly!FP93/Quarterly!FP89)-1)","v":1.9933554817275878E-2},"--","--","--",{"$f":"((Quarterly!FT93/Quarterly!FT89)-1)","v":2.0489306689821518E-2},{"$f":"((Quarterly!FU93/Quarterly!FU89)-1)","v":-1.9155303495026477E-3},"--","--","--",null,null,null,null,null,{"$f":"((Quarterly!GD93/Quarterly!GD89)-1)","v":0.72278338945005616},"--","--","--",{"$f":"((Quarterly!GH93/Quarterly!GH89)-1)","v":{"$error":"#DIV/0!"}},"--","--","--","--"]
["79'Q4",{"$f":"((Quarterly!B94/Quarterly!B90)-1)","v":0.10013298906315016},{"$f":"((Quarterly!C94/Quarterly!C90)-1)","v":1.3019042136427572E-2},{"$f":"((Quarterly!D94/Quarterly!D90)-1)","v":2.246381779325124E-2},{"$f":"((Quarterly!E94/Quarterly!E90)-1)","v":1.7080431930568185E-2},{"$f":"((Quarterly!F94/Quarterly!F90)-1)","v":-3.2816958825927278E-2},{"$f":"((Quarterly!G94/Quarterly!G90)-1)","v":1.9563194265687311E-2},{"$f":"((Quarterly!H94/Quarterly!H90)-1)","v":2.0828413783384292E-2},{"$f":"((Quarterly!I94/Quarterly!I90)-1)","v":5.5054648769315762E-2},{"$f":"((Quarterly!J94/Quarterly!J90)-1)","v":1.32231488714043E-2},{"$f":"((Quarterly!K94/Quarterly!K90)-1)","v":-8.790147307413676E-2},{"$f":"((Quarterly!L94-Quarterly!L90))","v":-44.198},{"$f":"((Quarterly!M94/Quarterly!M90)-1)","v":8.92834604724424E-3},{"$f":"((Quarterly!N94/Quarterly!N90)-1)","v":0.10500308643861644},{"$f":"((Quarterly!O94/Quarterly!O90)-1)","v":-0.44726913924197598},{"$f":"((Quarterly!P94/Quarterly!P90)-1)","v":9.4003348133788744E-3},{"$f":"((Quarterly!Q94/Quarterly!Q90)-1)","v":0.10603071290552224},null,null,null,null,null,{"$f":"((Quarterly!W94/Quarterly!W90)-1)","v":-3.379953379953371E-2},{"$f":"((Quarterly!X94/Quarterly!X90)-1)","v":-2.5067489394523745E-2},{"$f":"((Quarterly!Y94/Quarterly!Y90)-1)","v":0.18009817690682528},"--",{"$f":"((Quarterly!AA94/Quarterly!AA90)-1)","v":4.8940731462181697E-2},{"$f":"((Quarterly!AB94/Quarterly!AB90)-1)","v":-5.9964833199393386E-2},"--","--","--","--","--","--","--","--","--","--",{"$f":"((Quarterly!AM94/Quarterly!AM90)-1)","v":2.6265710177899582E-3},{"$f":"((Quarterly!AN94/Quarterly!AN90)-1)","v":-1.8296617294951689E-3},"--","--",{"$f":"Quarterly!AQ94-Quarterly!AQ90","v":-13},"--","--",{"$f":"Quarterly!AT94-Quarterly!AT90","v":-9.7333333333333343},"--","--",{"$f":"Quarterly!AW94-Quarterly!AW90","v":-10.966666666666669},{"$f":"Quarterly!AX94-Quarterly!AX90","v":-14.166666666666664},{"$f":"Quarterly!AY94-Quarterly!AY90","v":1.2666666666666941},{"$f":"Quarterly!AZ94-Quarterly!AZ90","v":-11.29999999999999},{"$f":"Quarterly!BA94-Quarterly!BA90","v":-18.933333333333344},"--","--","--","--",{"$f":"((Quarterly!BF94/Quarterly!BF90)-1)","v":0.10480156982099231},{"$f":"((Quarterly!BG94/Quarterly!BG90)-1)","v":-1.3598345174925752E-2},{"$f":"((Quarterly!BH94/Quarterly!BH90)-1)","v":-6.5516488316230692E-4},{"$f":"((Quarterly!BI94/Quarterly!BI90)-1)","v":0.11999910946857528},{"$f":"((Quarterly!BJ94/Quarterly!BJ90)-1)","v":1.2037867463876362E-2},"--",null,"--","--",null,null,null,null,null,{"$f":"((Quarterly!BT94/Quarterly!BT90)-1)","v":0.12237085153882221},"--","--",{"$f":"((Quarterly!BW94/Quarterly!BW90)-1)","v":7.9357725107504384E-2},{"$f":"((Quarterly!BX94/Quarterly!BX90)-1)","v":-0.23141036117012581},{"$f":"((Quarterly!BY94/Quarterly!BY90)-1)","v":-0.25639599555061177},"--",{"$f":"((Quarterly!CA94/Quarterly!CA90)-1)","v":-0.14691126091280804},{"$f":"((Quarterly!CB94/Quarterly!CB90)-1)","v":0.254687412897874},{"$f":"((Quarterly!CC94/Quarterly!CC90)-1)","v":0.20166935723644053},"--","--",null,"--","--",null,{"$f":"((Quarterly!CJ94/Quarterly!CJ90)-1)","v":-0.26222222222222225},{"$f":"((Quarterly!CK94/Quarterly!CK90)-1)","v":0.11605641535980249},{"$f":"((Quarterly!CL94/Quarterly!CL90)-1)","v":4.8642312951748368E-2},{"$f":"((Quarterly!CM94/Quarterly!CM90)-1)","v":-0.29228656443121992},{"$f":"((Quarterly!CN94/Quarterly!CN90)-1)","v":1.1036942074473366E-2},{"$f":"((Quarterly!CO94/Quarterly!CO90)-1)","v":-0.11577078068437952},{"$f":"((Quarterly!CP94/Quarterly!CP90)-1)","v":0.14387450309488403},{"$f":"((Quarterly!CQ94/Quarterly!CQ90)-1)","v":1.1415266296549209E-2},{"$f":"((Quarterly!CR94/Quarterly!CR90)-1)","v":0.18875502305129266},{"$f":"Quarterly!CS94-Quarterly!CS90","v":-11.333333333333336},"--",null,null,null,null,null,{"$f":"((Quarterly!CZ94/Quarterly!CZ90)-1)","v":0.12641975308641973},{"$f":"((Quarterly!DA94/Quarterly!DA90)-1)","v":0.1070019723865876},null,null,null,null,null,{"$f":"((Quarterly!DG94/Quarterly!DG90)-1)","v":2.0292590844738001E-2},{"$f":"((Quarterly!DH94-Quarterly!DH90)*60)","v":-9.9999999999998579},{"$f":"Quarterly!DI94-Quarterly!DI90","v":0.30000000000000426},"--",{"$f":"(Quarterly!DK94-Quarterly!DK90)*100","v":6.666666666666643},{"$f":"((Quarterly!DL94/Quarterly!DL90)-1)","v":4.4515268563907195E-3},null,null,null,{"$f":"((Quarterly!DP94/Quarterly!DP90)-1)","v":2.5330354919288478E-2},null,null,null,null,{"$f":"Quarterly!DU94-Quarterly!DU90","v":-0.16666666666666696},"--","--","--","--","--","--","--","--",null,null,null,null,null,{"$f":"((Quarterly!EI94/Quarterly!EI90)-1)","v":-5.316828194468437E-3},{"$f":"((Quarterly!EJ94/Quarterly!EJ90)-1)","v":8.0772534266260188E-3},{"$f":"((Quarterly!EK94/Quarterly!EK90)-1)","v":1.5127387932275527E-2},null,null,null,null,null,{"$f":"((Quarterly!EQ94/Quarterly!EQ90)-1)","v":0.1454293628808867},{"$f":"((Quarterly!ER94/Quarterly!ER90)-1)","v":9.4059405940594365E-2},{"$f":"((Quarterly!ES94/Quarterly!ES90)-1)","v":8.7607807535179161E-2},null,null,null,null,null,{"$f":"(Quarterly!EY94-Quarterly!EY90)*100","v":426.99999999999994},{"$f":"(Quarterly!EZ94-Quarterly!EZ90)*100","v":399.33333333333326},{"$f":"(Quarterly!FA94-Quarterly!FA90)*100","v":151.66666666666674},{"$f":"(Quarterly!FB94-Quarterly!FB90)*100","v":203.00000000000011},"--",{"$f":"(Quarterly!FD94-Quarterly!FD90)*100","v":234.99999999999977},{"$f":"(Quarterly!FE94-Quarterly!FE90)*100","v":327.33333333333337},{"$f":"(Quarterly!FF94-Quarterly!FF90)*100","v":245.33333333333348},{"$f":"(Quarterly!FG94-Quarterly!FG90)*100","v":223.33333333333326},{"$f":"(Quarterly!FH94-Quarterly!FH90)*100","v":181.66666666666683},{"$f":"(Quarterly!FI94-Quarterly!FI90)*100","v":162.66666666666669},null,null,null,null,null,null,{"$f":"((Quarterly!FP94/Quarterly!FP90)-1)","v":-2.9979919110785236E-3},"--","--","--",{"$f":"((Quarterly!FT94/Quarterly!FT90)-1)","v":4.8156814406020931E-2},{"$f":"((Quarterly!FU94/Quarterly!FU90)-1)","v":3.1503429734236699E-2},"--","--","--",null,null,null,null,null,{"$f":"((Quarterly!GD94/Quarterly!GD90)-1)","v":1.0763187429854097},"--","--","--",{"$f":"((Quarterly!GH94/Quarterly!GH90)-1)","v":{"$error":"#DIV/0!"}},"--","--","--","--"]
["80'Q1",{"$f":"((Quarterly!B95/Quarterly!B91)-1)","v":0.104666104429886},{"$f":"((Quarterly!C95/Quarterly!C91)-1)","v":1.4280642258936993E-2},{"$f":"((Quarterly!D95/Quarterly!D91)-1)","v":2.0987884197207984E-2},{"$f":"((Quarterly!E95/Quarterly!E91)-1)","v":1.0392348821447461E-2},{"$f":"((Quarterly!F95/Quarterly!F91)-1)","v":-3.663517471842892E-2},{"$f":"((Quarterly!G95/Quarterly!G91)-1)","v":1.4588179631747078E-2},{"$f":"((Quarterly!H95/Quarterly!H91)-1)","v":1.3064877432985567E-2},{"$f":"((Quarterly!I95/Quarterly!I91)-1)","v":4.2480233513759069E-2},{"$f":"((Quarterly!J95/Quarterly!J91)-1)","v":-3.9499782487706359E-4},{"$f":"((Quarterly!K95/Quarterly!K91)-1)","v":-0.13816114681166591},{"$f":"((Quarterly!L95-Quarterly!L91))","v":-28.946000000000002},{"$f":"((Quarterly!M95/Quarterly!M91)-1)","v":1.2448458370563076E-2},{"$f":"((Quarterly!N95/Quarterly!N91)-1)","v":0.134897880045312},{"$f":"((Quarterly!O95/Quarterly!O91)-1)","v":-0.58112548473994252},{"$f":"((Quarterly!P95/Quarterly!P91)-1)","v":3.4016188642422174E-2},{"$f":"((Quarterly!Q95/Quarterly!Q91)-1)","v":0.60341302097796179},null,null,null,null,null,{"$f":"((Quarterly!W95/Quarterly!W91)-1)","v":-3.282532239155922E-2},{"$f":"((Quarterly!X95/Quarterly!X91)-1)","v":-2.3228803716608626E-2},{"$f":"((Quarterly!Y95/Quarterly!Y91)-1)","v":0.17139588441655396},"--",{"$f":"((Quarterly!AA95/Quarterly!AA91)-1)","v":3.5739107452255059E-2},{"$f":"((Quarterly!AB95/Quarterly!AB91)-1)","v":-0.11989923801884905},"--","--","--","--","--","--","--","--","--","--",{"$f":"((Quarterly!AM95/Quarterly!AM91)-1)","v":2.4522441334200451E-3},{"$f":"((Quarterly!AN95/Quarterly!AN91)-1)","v":-3.3348426223211991E-3},"--","--",{"$f":"Quarterly!AQ95-Quarterly!AQ91","v":-11.466666666666669},"--","--",{"$f":"Quarterly!AT95-Quarterly!AT91","v":-9.5333333333333243},"--","--",{"$f":"Quarterly!AW95-Quarterly!AW91","v":-7.93333333333333},{"$f":"Quarterly!AX95-Quarterly!AX91","v":-10.033333333333339},{"$f":"Quarterly!AY95-Quarterly!AY91","v":-2.8333333333333428},{"$f":"Quarterly!AZ95-Quarterly!AZ91","v":-9},{"$f":"Quarterly!BA95-Quarterly!BA91","v":-23.300000000000004},"--","--","--","--",{"$f":"((Quarterly!BF95/Quarterly!BF91)-1)","v":0.10318818040435462},{"$f":"((Quarterly!BG95/Quarterly!BG91)-1)","v":1.8149149712431978E-5},{"$f":"((Quarterly!BH95/Quarterly!BH91)-1)","v":-1.0546721433703277E-2},{"$f":"((Quarterly!BI95/Quarterly!BI91)-1)","v":0.10317052270779792},{"$f":"((Quarterly!BJ95/Quarterly!BJ91)-1)","v":4.1115200877124281E-3},"--",null,"--","--",null,null,null,null,null,{"$f":"((Quarterly!BT95/Quarterly!BT91)-1)","v":0.11436146702607264},"--","--",{"$f":"((Quarterly!BW95/Quarterly!BW91)-1)","v":9.4738938116030624E-2},{"$f":"((Quarterly!BX95/Quarterly!BX91)-1)","v":-0.25195117070242146},{"$f":"((Quarterly!BY95/Quarterly!BY91)-1)","v":-0.25807832227690986},"--",{"$f":"((Quarterly!CA95/Quarterly!CA91)-1)","v":-0.12278603822115908},{"$f":"((Quarterly!CB95/Quarterly!CB91)-1)","v":0.31055496589423459},{"$f":"((Quarterly!CC95/Quarterly!CC91)-1)","v":0.26135080346050521},"--","--",null,"--","--",null,{"$f":"((Quarterly!CJ95/Quarterly!CJ91)-1)","v":-0.29207048458149776},{"$f":"((Quarterly!CK95/Quarterly!CK91)-1)","v":0.11577192397465841},{"$f":"((Quarterly!CL95/Quarterly!CL91)-1)","v":2.7817919075144415E-2},{"$f":"((Quarterly!CM95/Quarterly!CM91)-1)","v":-0.31630309988518934},{"$f":"((Quarterly!CN95/Quarterly!CN91)-1)","v":3.8347415923656314E-3},{"$f":"((Quarterly!CO95/Quarterly!CO91)-1)","v":-0.12449197860962569},{"$f":"((Quarterly!CP95/Quarterly!CP91)-1)","v":0.12326493502848535},{"$f":"((Quarterly!CQ95/Quarterly!CQ91)-1)","v":1.1608964030510815E-2},{"$f":"((Quarterly!CR95/Quarterly!CR91)-1)","v":0.17604787289641455},{"$f":"Quarterly!CS95-Quarterly!CS91","v":-8},"--",null,null,null,null,null,{"$f":"((Quarterly!CZ95/Quarterly!CZ91)-1)","v":0.14210019267822727},{"$f":"((Quarterly!DA95/Quarterly!DA91)-1)","v":0.12192771084337339},null,null,null,null,null,{"$f":"((Quarterly!DG95/Quarterly!DG91)-1)","v":7.4836295603366576E-3},{"$f":"((Quarterly!DH95-Quarterly!DH91)*60)","v":-20.000000000000142},{"$f":"Quarterly!DI95-Quarterly!DI91","v":0.1666666666666714},"--",{"$f":"(Quarterly!DK95-Quarterly!DK91)*100","v":43.333333333333272},{"$f":"((Quarterly!DL95/Quarterly!DL91)-1)","v":-9.1330472103005045E-3},null,null,null,{"$f":"((Quarterly!DP95/Quarterly!DP91)-1)","v":1.9951822371177208E-2},null,null,null,null,{"$f":"Quarterly!DU95-Quarterly!DU91","v":-0.20000000000000107},"--","--","--","--","--","--","--","--",null,null,null,null,null,{"$f":"((Quarterly!EI95/Quarterly!EI91)-1)","v":-7.9632249248422493E-3},{"$f":"((Quarterly!EJ95/Quarterly!EJ91)-1)","v":5.5122785460601786E-3},{"$f":"((Quarterly!EK95/Quarterly!EK91)-1)","v":1.3394729086182222E-2},null,null,null,null,null,{"$f":"((Quarterly!EQ95/Quarterly!EQ91)-1)","v":0.15634743875278412},{"$f":"((Quarterly!ER95/Quarterly!ER91)-1)","v":0.10808435852372589},{"$f":"((Quarterly!ES95/Quarterly!ES91)-1)","v":9.6273291925465854E-2},null,null,null,null,null,{"$f":"(Quarterly!EY95-Quarterly!EY91)*100","v":464.66666666666646},{"$f":"(Quarterly!EZ95-Quarterly!EZ91)*100","v":497.33333333333326},{"$f":"(Quarterly!FA95-Quarterly!FA91)*100","v":285.00000000000011},{"$f":"(Quarterly!FB95-Quarterly!FB91)*100","v":332.33333333333326},"--",{"$f":"(Quarterly!FD95-Quarterly!FD91)*100","v":332.33333333333343},{"$f":"(Quarterly!FE95-Quarterly!FE91)*100","v":396.99999999999989},{"$f":"(Quarterly!FF95-Quarterly!FF91)*100","v":363.33333333333326},{"$f":"(Quarterly!FG95-Quarterly!FG91)*100","v":347.66666666666686},{"$f":"(Quarterly!FH95-Quarterly!FH91)*100","v":309.33333333333354},{"$f":"(Quarterly!FI95-Quarterly!FI91)*100","v":287.99999999999989},null,null,null,null,null,null,{"$f":"((Quarterly!FP95/Quarterly!FP91)-1)","v":-1.8767207956397303E-2},"--","--","--",{"$f":"((Quarterly!FT95/Quarterly!FT91)-1)","v":4.5252476142987996E-2},{"$f":"((Quarterly!FU95/Quarterly!FU91)-1)","v":1.8335189010270092E-2},"--","--","--",null,null,null,null,null,{"$f":"((Quarterly!GD95/Quarterly!GD91)-1)","v":1.3093447905477982},"--","--","--",{"$f":"((Quarterly!GH95/Quarterly!GH91)-1)","v":{"$error":"#DIV/0!"}},"--","--","--","--"]
["80'Q2",{"$f":"((Quarterly!B96/Quarterly!B92)-1)","v":7.8596360658251152E-2},{"$f":"((Quarterly!C96/Quarterly!C92)-1)","v":-7.4918892466065978E-3},{"$f":"((Quarterly!D96/Quarterly!D92)-1)","v":9.2091782308911796E-4},{"$f":"((Quarterly!E96/Quarterly!E92)-1)","v":-1.1754954411875573E-2},{"$f":"((Quarterly!F96/Quarterly!F92)-1)","v":-0.12063652863956775},{"$f":"((Quarterly!G96/Quarterly!G92)-1)","v":2.7850201469539204E-3},{"$f":"((Quarterly!H96/Quarterly!H92)-1)","v":-7.8181578655099893E-3},{"$f":"((Quarterly!I96/Quarterly!I92)-1)","v":-4.7371854877598096E-3},{"$f":"((Quarterly!J96/Quarterly!J92)-1)","v":-7.6582867294930024E-2},{"$f":"((Quarterly!K96/Quarterly!K92)-1)","v":-0.28449144008056393},{"$f":"((Quarterly!L96-Quarterly!L92))","v":-36.731999999999999},{"$f":"((Quarterly!M96/Quarterly!M92)-1)","v":-6.6069490915224738E-2},{"$f":"((Quarterly!N96/Quarterly!N92)-1)","v":0.15326308737095351},{"$f":"((Quarterly!O96/Quarterly!O92)-1)","v":-1.1124024813679489},{"$f":"((Quarterly!P96/Quarterly!P92)-1)","v":2.71191387372407E-2},{"$f":"((Quarterly!Q96/Quarterly!Q92)-1)","v":1.2275345328508078},null,null,null,null,null,{"$f":"((Quarterly!W96/Quarterly!W92)-1)","v":-7.9383886255924185E-2},{"$f":"((Quarterly!X96/Quarterly!X92)-1)","v":-6.0961313012895646E-2},{"$f":"((Quarterly!Y96/Quarterly!Y92)-1)","v":0.1153908754805073},"--",{"$f":"((Quarterly!AA96/Quarterly!AA92)-1)","v":-0.13984751109245996},{"$f":"((Quarterly!AB96/Quarterly!AB92)-1)","v":-0.19470256187581414},"--","--","--","--","--","--","--","--","--","--",{"$f":"((Quarterly!AM96/Quarterly!AM92)-1)","v":-3.7824980922472662E-2},{"$f":"((Quarterly!AN96/Quarterly!AN92)-1)","v":-5.2292541046703889E-2},"--","--",{"$f":"Quarterly!AQ96-Quarterly!AQ92","v":-22.06666666666667},"--","--",{"$f":"Quarterly!AT96-Quarterly!AT92","v":-15.633333333333326},"--","--",{"$f":"Quarterly!AW96-Quarterly!AW92","v":-14.033333333333331},{"$f":"Quarterly!AX96-Quarterly!AX92","v":-24.93333333333333},{"$f":"Quarterly!AY96-Quarterly!AY92","v":-16.73333333333332},{"$f":"Quarterly!AZ96-Quarterly!AZ92","v":-20.100000000000001},{"$f":"Quarterly!BA96-Quarterly!BA92","v":-33.866666666666674},"--","--","--","--",{"$f":"((Quarterly!BF96/Quarterly!BF92)-1)","v":0.10720127819834913},{"$f":"((Quarterly!BG96/Quarterly!BG92)-1)","v":-8.0987133055490101E-3},{"$f":"((Quarterly!BH96/Quarterly!BH92)-1)","v":-4.4816782454705217E-3},{"$f":"((Quarterly!BI96/Quarterly!BI92)-1)","v":0.11626254180601991},{"$f":"((Quarterly!BJ96/Quarterly!BJ92)-1)","v":-0.16538476354344567},"--",null,"--","--",null,null,null,null,null,{"$f":"((Quarterly!BT96/Quarterly!BT92)-1)","v":4.2887153801106637E-2},"--","--",{"$f":"((Quarterly!BW96/Quarterly!BW92)-1)","v":0.11216469824605957},{"$f":"((Quarterly!BX96/Quarterly!BX92)-1)","v":-0.42676539642405642},{"$f":"((Quarterly!BY96/Quarterly!BY92)-1)","v":-0.43365169680959148},"--",{"$f":"((Quarterly!CA96/Quarterly!CA92)-1)","v":-0.26933773041616416},{"$f":"((Quarterly!CB96/Quarterly!CB92)-1)","v":0.32255449394015079},{"$f":"((Quarterly!CC96/Quarterly!CC92)-1)","v":0.31552727746881692},"--","--",null,"--","--",null,{"$f":"((Quarterly!CJ96/Quarterly!CJ92)-1)","v":-0.36045977011494246},{"$f":"((Quarterly!CK96/Quarterly!CK92)-1)","v":0.10633047911628202},{"$f":"((Quarterly!CL96/Quarterly!CL92)-1)","v":0.17733333333333312},{"$f":"((Quarterly!CM96/Quarterly!CM92)-1)","v":-0.46572164948453609},{"$f":"((Quarterly!CN96/Quarterly!CN92)-1)","v":-2.1619554666588714E-3},{"$f":"((Quarterly!CO96/Quarterly!CO92)-1)","v":-0.15452490337635816},{"$f":"((Quarterly!CP96/Quarterly!CP92)-1)","v":7.4242093000579823E-2},{"$f":"((Quarterly!CQ96/Quarterly!CQ92)-1)","v":1.1753742693789926E-2},{"$f":"((Quarterly!CR96/Quarterly!CR92)-1)","v":0.11293480332820183},{"$f":"Quarterly!CS96-Quarterly!CS92","v":-12.266666666666652},"--",null,null,null,null,null,{"$f":"((Quarterly!CZ96/Quarterly!CZ92)-1)","v":0.14425770308123265},{"$f":"((Quarterly!DA96/Quarterly!DA92)-1)","v":0.13276836158192107},null,null,null,null,null,{"$f":"((Quarterly!DG96/Quarterly!DG92)-1)","v":-1.3545072396076607E-2},{"$f":"((Quarterly!DH96-Quarterly!DH92)*60)","v":-23.999999999999915},{"$f":"Quarterly!DI96-Quarterly!DI92","v":0.36666666666665293},"--",{"$f":"(Quarterly!DK96-Quarterly!DK92)*100","v":163.33333333333337},{"$f":"((Quarterly!DL96/Quarterly!DL92)-1)","v":-3.9701257861635142E-2},null,null,null,{"$f":"((Quarterly!DP96/Quarterly!DP92)-1)","v":7.6118194847725196E-3},null,null,null,null,{"$f":"Quarterly!DU96-Quarterly!DU92","v":0.43333333333333179},"--","--","--","--","--","--","--","--",null,null,null,null,null,{"$f":"((Quarterly!EI96/Quarterly!EI92)-1)","v":-5.4935749768298847E-2},{"$f":"((Quarterly!EJ96/Quarterly!EJ92)-1)","v":-2.3800892403120444E-2},{"$f":"((Quarterly!EK96/Quarterly!EK92)-1)","v":-7.9394526443352653E-3},null,null,null,null,null,{"$f":"((Quarterly!EQ96/Quarterly!EQ92)-1)","v":0.13941480206540446},{"$f":"((Quarterly!ER96/Quarterly!ER92)-1)","v":0.10929432013769347},{"$f":"((Quarterly!ES96/Quarterly!ES92)-1)","v":0.10238611713665957},null,null,null,null,null,{"$f":"(Quarterly!EY96-Quarterly!EY92)*100","v":460.66666666666674},{"$f":"(Quarterly!EZ96-Quarterly!EZ92)*100","v":250.66666666666677},{"$f":"(Quarterly!FA96-Quarterly!FA92)*100","v":181.33333333333326},{"$f":"(Quarterly!FB96-Quarterly!FB92)*100","v":296.33333333333348},"--",{"$f":"(Quarterly!FD96-Quarterly!FD92)*100","v":368.99999999999994},{"$f":"(Quarterly!FE96-Quarterly!FE92)*100","v":24.000000000000021},{"$f":"(Quarterly!FF96-Quarterly!FF92)*100","v":34.666666666666757},{"$f":"(Quarterly!FG96-Quarterly!FG92)*100","v":63.333333333333286},{"$f":"(Quarterly!FH96-Quarterly!FH92)*100","v":121.99999999999989},{"$f":"(Quarterly!FI96-Quarterly!FI92)*100","v":136.33333333333331},null,null,null,null,null,null,{"$f":"((Quarterly!FP96/Quarterly!FP92)-1)","v":1.0764448537877058E-2},"--","--","--",{"$f":"((Quarterly!FT96/Quarterly!FT92)-1)","v":2.7533329325297284E-2},{"$f":"((Quarterly!FU96/Quarterly!FU92)-1)","v":-2.0216750418644569E-3},"--","--","--",null,null,null,null,null,{"$f":"((Quarterly!GD96/Quarterly!GD92)-1)","v":1.233741753063148},"--","--","--",{"$f":"((Quarterly!GH96/Quarterly!GH92)-1)","v":{"$error":"#DIV/0!"}},"--","--","--","--"]
["80'Q3",{"$f":"((Quarterly!B97/Quarterly!B93)-1)","v":7.1021888953964663E-2},{"$f":"((Quarterly!C97/Quarterly!C93)-1)","v":-1.6060847099157116E-2},{"$f":"((Quarterly!D97/Quarterly!D93)-1)","v":-3.5334540121645386E-4},{"$f":"((Quarterly!E97/Quarterly!E93)-1)","v":-1.0844422335530401E-2},{"$f":"((Quarterly!F97/Quarterly!F93)-1)","v":-0.10656208935611022},{"$f":"((Quarterly!G97/Quarterly!G93)-1)","v":-1.124538763397831E-2},{"$f":"((Quarterly!H97/Quarterly!H93)-1)","v":-1.6998668422956165E-3},{"$f":"((Quarterly!I97/Quarterly!I93)-1)","v":-2.6863944453628608E-2},{"$f":"((Quarterly!J97/Quarterly!J93)-1)","v":-0.10769144498908212},{"$f":"((Quarterly!K97/Quarterly!K93)-1)","v":-0.26362710137544576},{"$f":"((Quarterly!L97-Quarterly!L93))","v":-70.926999999999992},{"$f":"((Quarterly!M97/Quarterly!M93)-1)","v":-0.11981490240192261},{"$f":"((Quarterly!N97/Quarterly!N93)-1)","v":0.11082826513185173},{"$f":"((Quarterly!O97/Quarterly!O93)-1)","v":-1.6597582037996554},{"$f":"((Quarterly!P97/Quarterly!P93)-1)","v":1.0585338495517904E-2},{"$f":"((Quarterly!Q97/Quarterly!Q93)-1)","v":1.2375685679882267},null,null,null,null,null,{"$f":"((Quarterly!W97/Quarterly!W93)-1)","v":-9.7005988023951994E-2},{"$f":"((Quarterly!X97/Quarterly!X93)-1)","v":-7.3372781065088821E-2},{"$f":"((Quarterly!Y97/Quarterly!Y93)-1)","v":7.5552563193487243E-2},"--",{"$f":"((Quarterly!AA97/Quarterly!AA93)-1)","v":-0.11560089528495587},{"$f":"((Quarterly!AB97/Quarterly!AB93)-1)","v":-0.1757749799357945},"--","--","--","--","--","--","--","--","--","--",{"$f":"((Quarterly!AM97/Quarterly!AM93)-1)","v":-5.0614943525083889E-2},{"$f":"((Quarterly!AN97/Quarterly!AN93)-1)","v":-7.075418998266203E-2},"--","--",{"$f":"Quarterly!AQ97-Quarterly!AQ93","v":-6.6000000000000014},"--","--",{"$f":"Quarterly!AT97-Quarterly!AT93","v":-10.100000000000001},"--","--",{"$f":"Quarterly!AW97-Quarterly!AW93","v":-15.033333333333339},{"$f":"Quarterly!AX97-Quarterly!AX93","v":-0.43333333333333002},{"$f":"Quarterly!AY97-Quarterly!AY93","v":-23.133333333333326},{"$f":"Quarterly!AZ97-Quarterly!AZ93","v":-3.2000000000000028},{"$f":"Quarterly!BA97-Quarterly!BA93","v":-14.466666666666661},"--","--","--","--",{"$f":"((Quarterly!BF97/Quarterly!BF93)-1)","v":0.10890095181439619},{"$f":"((Quarterly!BG97/Quarterly!BG93)-1)","v":-3.6984404605742149E-3},{"$f":"((Quarterly!BH97/Quarterly!BH93)-1)","v":-6.4237487357510226E-4},{"$f":"((Quarterly!BI97/Quarterly!BI93)-1)","v":0.11301810167139448},{"$f":"((Quarterly!BJ97/Quarterly!BJ93)-1)","v":-9.1337669865395821E-2},"--",null,"--","--",null,null,null,null,null,{"$f":"((Quarterly!BT97/Quarterly!BT93)-1)","v":-9.6857641362944058E-3},"--","--",{"$f":"((Quarterly!BW97/Quarterly!BW93)-1)","v":0.11528549180666769},{"$f":"((Quarterly!BX97/Quarterly!BX93)-1)","v":-0.22234636871508384},{"$f":"((Quarterly!BY97/Quarterly!BY93)-1)","v":-0.13709846735250897},"--",{"$f":"((Quarterly!CA97/Quarterly!CA93)-1)","v":-0.21123751920122891},{"$f":"((Quarterly!CB97/Quarterly!CB93)-1)","v":0.17138625680354846},{"$f":"((Quarterly!CC97/Quarterly!CC93)-1)","v":0.19702182029038928},"--","--",null,"--","--",null,{"$f":"((Quarterly!CJ97/Quarterly!CJ93)-1)","v":-0.12897282358360196},{"$f":"((Quarterly!CK97/Quarterly!CK93)-1)","v":0.11013125188011563},{"$f":"((Quarterly!CL97/Quarterly!CL93)-1)","v":0.26974577915777198},{"$f":"((Quarterly!CM97/Quarterly!CM93)-1)","v":-0.20399666944213157},{"$f":"((Quarterly!CN97/Quarterly!CN93)-1)","v":5.2403536506819837E-3},{"$f":"((Quarterly!CO97/Quarterly!CO93)-1)","v":-9.4809283256460875E-2},{"$f":"((Quarterly!CP97/Quarterly!CP93)-1)","v":3.5300145856145493E-2},{"$f":"((Quarterly!CQ97/Quarterly!CQ93)-1)","v":1.1788778467725081E-2},{"$f":"((Quarterly!CR97/Quarterly!CR93)-1)","v":6.1107661473967401E-2},{"$f":"Quarterly!CS97-Quarterly!CS93","v":3.8999999999999915},"--",null,null,null,null,null,{"$f":"((Quarterly!CZ97/Quarterly!CZ93)-1)","v":0.12935323383084585},{"$f":"((Quarterly!DA97/Quarterly!DA93)-1)","v":0.12069756769160134},null,null,null,null,null,{"$f":"((Quarterly!DG97/Quarterly!DG93)-1)","v":-2.64501160092806E-2},{"$f":"((Quarterly!DH97-Quarterly!DH93)*60)","v":-34.000000000000199},{"$f":"Quarterly!DI97-Quarterly!DI93","v":3.3333333333331439E-2},"--",{"$f":"(Quarterly!DK97-Quarterly!DK93)*100","v":179.99999999999997},{"$f":"((Quarterly!DL97/Quarterly!DL93)-1)","v":-5.556792682300149E-2},null,null,null,{"$f":"((Quarterly!DP97/Quarterly!DP93)-1)","v":-2.5587345894394486E-3},null,null,null,null,{"$f":"Quarterly!DU97-Quarterly!DU93","v":2},"--","--","--","--","--","--","--","--",null,null,null,null,null,{"$f":"((Quarterly!EI97/Quarterly!EI93)-1)","v":-6.6104924316026215E-2},{"$f":"((Quarterly!EJ97/Quarterly!EJ93)-1)","v":-3.1783535528118634E-2},{"$f":"((Quarterly!EK97/Quarterly!EK93)-1)","v":-1.4886245837308243E-2},null,null,null,null,null,{"$f":"((Quarterly!EQ97/Quarterly!EQ93)-1)","v":0.14100959532749258},{"$f":"((Quarterly!ER97/Quarterly!ER93)-1)","v":0.11772151898734196},{"$f":"((Quarterly!ES97/Quarterly!ES93)-1)","v":0.11267605633802802},null,null,null,null,null,{"$f":"(Quarterly!EY97-Quarterly!EY93)*100","v":-50.666666666666771},{"$f":"(Quarterly!EZ97-Quarterly!EZ93)*100","v":-111.00000000000011},{"$f":"(Quarterly!FA97-Quarterly!FA93)*100","v":228.66666666666688},{"$f":"(Quarterly!FB97-Quarterly!FB93)*100","v":277.33333333333337},"--",{"$f":"(Quarterly!FD97-Quarterly!FD93)*100","v":148.99999999999983},{"$f":"(Quarterly!FE97-Quarterly!FE93)*100","v":-51.99999999999978},{"$f":"(Quarterly!FF97-Quarterly!FF93)*100","v":-1.6666666666667496},{"$f":"(Quarterly!FG97-Quarterly!FG93)*100","v":82.333333333333229},{"$f":"(Quarterly!FH97-Quarterly!FH93)*100","v":153.99999999999991},{"$f":"(Quarterly!FI97-Quarterly!FI93)*100","v":185.00000000000014},null,null,null,null,null,null,{"$f":"((Quarterly!FP97/Quarterly!FP93)-1)","v":-6.7432424709983341E-3},"--","--","--",{"$f":"((Quarterly!FT97/Quarterly!FT93)-1)","v":2.0343229219964565E-2},{"$f":"((Quarterly!FU97/Quarterly!FU93)-1)","v":-1.2716989399104039E-2},"--","--","--",null,null,null,null,null,{"$f":"((Quarterly!GD97/Quarterly!GD93)-1)","v":0.47882736156351813},"--","--","--",{"$f":"((Quarterly!GH97/Quarterly!GH93)-1)","v":{"$error":"#DIV/0!"}},"--","--","--","--"]
["80'Q4",{"$f":"((Quarterly!B98/Quarterly!B94)-1)","v":9.624620748121826E-2},{"$f":"((Quarterly!C98/Quarterly!C94)-1)","v":-4.1359964845566477E-4},{"$f":"((Quarterly!D98/Quarterly!D94)-1)","v":4.4790560059211337E-3},{"$f":"((Quarterly!E98/Quarterly!E94)-1)","v":-3.9689430208622589E-4},{"$f":"((Quarterly!F98/Quarterly!F94)-1)","v":-5.500526870389888E-2},{"$f":"((Quarterly!G98/Quarterly!G94)-1)","v":-1.2584723543920373E-2},{"$f":"((Quarterly!H98/Quarterly!H94)-1)","v":9.686610405794438E-3},{"$f":"((Quarterly!I98/Quarterly!I94)-1)","v":-9.0404484502090154E-3},{"$f":"((Quarterly!J98/Quarterly!J94)-1)","v":-8.7009964353997549E-2},{"$f":"((Quarterly!K98/Quarterly!K94)-1)","v":-0.15965051628276417},{"$f":"((Quarterly!L98-Quarterly!L94))","v":-27.977},{"$f":"((Quarterly!M98/Quarterly!M94)-1)","v":-9.2413889729816123E-2},{"$f":"((Quarterly!N98/Quarterly!N94)-1)","v":3.8774996612269463E-2},{"$f":"((Quarterly!O98/Quarterly!O94)-1)","v":-1.3377612097028244},{"$f":"((Quarterly!P98/Quarterly!P94)-1)","v":4.0139397282255018E-3},{"$f":"((Quarterly!Q98/Quarterly!Q94)-1)","v":0.72385891353120746},null,null,null,null,null,{"$f":"((Quarterly!W98/Quarterly!W94)-1)","v":-5.5488540410132736E-2},{"$f":"((Quarterly!X98/Quarterly!X94)-1)","v":-4.1534810126582333E-2},{"$f":"((Quarterly!Y98/Quarterly!Y94)-1)","v":0.10353366794120133},"--",{"$f":"((Quarterly!AA98/Quarterly!AA94)-1)","v":-7.0219574821583697E-2},{"$f":"((Quarterly!AB98/Quarterly!AB94)-1)","v":-7.5977193986103142E-2},"--","--","--","--","--","--","--","--","--","--",{"$f":"((Quarterly!AM98/Quarterly!AM94)-1)","v":-1.7337983075553565E-2},{"$f":"((Quarterly!AN98/Quarterly!AN94)-1)","v":-2.6639089797754201E-2},"--","--",{"$f":"Quarterly!AQ98-Quarterly!AQ94","v":8.2999999999999901},"--","--",{"$f":"Quarterly!AT98-Quarterly!AT94","v":3.2999999999999972},"--","--",{"$f":"Quarterly!AW98-Quarterly!AW94","v":1.2333333333333343},{"$f":"Quarterly!AX98-Quarterly!AX94","v":14.033333333333331},{"$f":"Quarterly!AY98-Quarterly!AY94","v":-10.90000000000002},{"$f":"Quarterly!AZ98-Quarterly!AZ94","v":11.633333333333326},{"$f":"Quarterly!BA98-Quarterly!BA94","v":2.5000000000000142},"--","--","--","--",{"$f":"((Quarterly!BF98/Quarterly!BF94)-1)","v":0.11120777149485273},{"$f":"((Quarterly!BG98/Quarterly!BG94)-1)","v":8.3152500957348607E-3},{"$f":"((Quarterly!BH98/Quarterly!BH94)-1)","v":2.8545673076922906E-3},{"$f":"((Quarterly!BI98/Quarterly!BI94)-1)","v":0.10203351422267271},{"$f":"((Quarterly!BJ98/Quarterly!BJ94)-1)","v":-1.2761180803087857E-2},"--",null,"--","--",null,null,null,null,null,{"$f":"((Quarterly!BT98/Quarterly!BT94)-1)","v":-2.6583411041892879E-2},"--","--",{"$f":"((Quarterly!BW98/Quarterly!BW94)-1)","v":0.11864838761603247},{"$f":"((Quarterly!BX98/Quarterly!BX94)-1)","v":-3.9974484371677721E-2},{"$f":"((Quarterly!BY98/Quarterly!BY94)-1)","v":-3.2410870107204559E-3},"--",{"$f":"((Quarterly!CA98/Quarterly!CA94)-1)","v":-0.14819420695372809},{"$f":"((Quarterly!CB98/Quarterly!CB94)-1)","v":7.164864784533953E-2},{"$f":"((Quarterly!CC98/Quarterly!CC94)-1)","v":0.10255246645568783},"--","--",null,"--","--",null,{"$f":"((Quarterly!CJ98/Quarterly!CJ94)-1)","v":-9.3647316538882808E-2},{"$f":"((Quarterly!CK98/Quarterly!CK94)-1)","v":0.1276942471481719},{"$f":"((Quarterly!CL98/Quarterly!CL94)-1)","v":0.3355067064083459},{"$f":"((Quarterly!CM98/Quarterly!CM94)-1)","v":-5.012936610608032E-2},{"$f":"((Quarterly!CN98/Quarterly!CN94)-1)","v":2.055762840319475E-2},{"$f":"((Quarterly!CO98/Quarterly!CO94)-1)","v":-4.6346361810597925E-2},{"$f":"((Quarterly!CP98/Quarterly!CP94)-1)","v":1.2803042255192354E-2},{"$f":"((Quarterly!CQ98/Quarterly!CQ94)-1)","v":1.1410309539856556E-2},{"$f":"((Quarterly!CR98/Quarterly!CR94)-1)","v":1.9174558052325041E-2},{"$f":"Quarterly!CS98-Quarterly!CS94","v":9.93333333333333},"--",null,null,null,null,null,{"$f":"((Quarterly!CZ98/Quarterly!CZ94)-1)","v":0.12538360368259549},{"$f":"((Quarterly!DA98/Quarterly!DA94)-1)","v":0.12160356347438772},null,null,null,null,null,{"$f":"((Quarterly!DG98/Quarterly!DG94)-1)","v":-1.4338575393154307E-2},{"$f":"((Quarterly!DH98-Quarterly!DH94)*60)","v":-18.000000000000256},{"$f":"Quarterly!DI98-Quarterly!DI94","v":-6.6666666666677088E-2},"--",{"$f":"(Quarterly!DK98-Quarterly!DK94)*100","v":143.33333333333337},{"$f":"((Quarterly!DL98/Quarterly!DL94)-1)","v":-3.8679082600448389E-2},null,null,null,{"$f":"((Quarterly!DP98/Quarterly!DP94)-1)","v":1.6597296591114308E-3},null,null,null,null,{"$f":"Quarterly!DU98-Quarterly!DU94","v":2.0666666666666664},"--","--","--","--","--","--","--","--",null,null,null,null,null,{"$f":"((Quarterly!EI98/Quarterly!EI94)-1)","v":-3.24373621672287E-2},{"$f":"((Quarterly!EJ98/Quarterly!EJ94)-1)","v":-1.4176039977987664E-2},{"$f":"((Quarterly!EK98/Quarterly!EK94)-1)","v":-3.5476849713791392E-3},null,null,null,null,null,{"$f":"((Quarterly!EQ98/Quarterly!EQ94)-1)","v":0.1277710600564288},{"$f":"((Quarterly!ER98/Quarterly!ER94)-1)","v":0.11106540518305219},{"$f":"((Quarterly!ES98/Quarterly!ES94)-1)","v":0.11769616026711183},null,null,null,null,null,{"$f":"(Quarterly!EY98-Quarterly!EY94)*100","v":165.33333333333343},{"$f":"(Quarterly!EZ98-Quarterly!EZ94)*100","v":227.66666666666674},{"$f":"(Quarterly!FA98-Quarterly!FA94)*100","v":228.66666666666652},{"$f":"(Quarterly!FB98-Quarterly!FB94)*100","v":285.33333333333337},"--",{"$f":"(Quarterly!FD98-Quarterly!FD94)*100","v":180.66666666666686},{"$f":"(Quarterly!FE98-Quarterly!FE94)*100","v":177.00000000000014},{"$f":"(Quarterly!FF98-Quarterly!FF94)*100","v":157.00000000000003},{"$f":"(Quarterly!FG98-Quarterly!FG94)*100","v":166.3333333333334},{"$f":"(Quarterly!FH98-Quarterly!FH94)*100","v":198.66666666666646},{"$f":"(Quarterly!FI98-Quarterly!FI94)*100","v":197.66666666666649},null,null,null,null,null,null,{"$f":"((Quarterly!FP98/Quarterly!FP94)-1)","v":7.7160931604778327E-3},"--","--","--",{"$f":"((Quarterly!FT98/Quarterly!FT94)-1)","v":1.97807680999873E-2},{"$f":"((Quarterly!FU98/Quarterly!FU94)-1)","v":-1.3920832620063939E-2},"--","--","--",null,null,null,null,null,{"$f":"((Quarterly!GD98/Quarterly!GD94)-1)","v":0.17837837837837855},"--","--","--",{"$f":"((Quarterly!GH98/Quarterly!GH94)-1)","v":{"$error":"#DIV/0!"}},"--","--","--","--"]
["81'Q1",{"$f":"((Quarterly!B99/Quarterly!B95)-1)","v":0.11989030664149736},{"$f":"((Quarterly!C99/Quarterly!C95)-1)","v":1.6983217551439722E-2},{"$f":"((Quarterly!D99/Quarterly!D95)-1)","v":7.7389484554488686E-3},{"$f":"((Quarterly!E99/Quarterly!E95)-1)","v":6.4097786390400202E-3},{"$f":"((Quarterly!F99/Quarterly!F95)-1)","v":-1.2633291936105517E-2},{"$f":"((Quarterly!G99/Quarterly!G95)-1)","v":-3.3808728092332707E-3},{"$f":"((Quarterly!H99/Quarterly!H95)-1)","v":1.222620246184869E-2},{"$f":"((Quarterly!I99/Quarterly!I95)-1)","v":4.8931658783191168E-4},{"$f":"((Quarterly!J99/Quarterly!J95)-1)","v":-9.2265330259426293E-2},{"$f":"((Quarterly!K99/Quarterly!K95)-1)","v":-0.10582162317178079},{"$f":"((Quarterly!L99-Quarterly!L95))","v":46.768000000000001},{"$f":"((Quarterly!M99/Quarterly!M95)-1)","v":-5.4206761719755914E-2},{"$f":"((Quarterly!N99/Quarterly!N95)-1)","v":2.9651292619865766E-2},{"$f":"((Quarterly!O99/Quarterly!O95)-1)","v":-1.1555830388692585},{"$f":"((Quarterly!P99/Quarterly!P95)-1)","v":1.5837541144585465E-3},{"$f":"((Quarterly!Q99/Quarterly!Q95)-1)","v":0.13080168776371304},null,null,null,null,null,{"$f":"((Quarterly!W99/Quarterly!W95)-1)","v":-5.8181818181818112E-2},{"$f":"((Quarterly!X99/Quarterly!X95)-1)","v":-4.4391597304795916E-2},{"$f":"((Quarterly!Y99/Quarterly!Y95)-1)","v":9.6923985736618645E-2},"--",{"$f":"((Quarterly!AA99/Quarterly!AA95)-1)","v":-5.3975124754272019E-2},{"$f":"((Quarterly!AB99/Quarterly!AB95)-1)","v":9.1035955856176631E-2},"--","--","--","--","--","--","--","--","--","--",{"$f":"((Quarterly!AM99/Quarterly!AM95)-1)","v":-1.8984180781133952E-2},{"$f":"((Quarterly!AN99/Quarterly!AN95)-1)","v":-2.6698486142764821E-2},"--","--",{"$f":"Quarterly!AQ99-Quarterly!AQ95","v":2.5333333333333314},"--","--",{"$f":"Quarterly!AT99-Quarterly!AT95","v":1.3333333333333215},"--","--",{"$f":"Quarterly!AW99-Quarterly!AW95","v":-0.86666666666666003},{"$f":"Quarterly!AX99-Quarterly!AX95","v":2.5},{"$f":"Quarterly!AY99-Quarterly!AY95","v":-10.566666666666663},{"$f":"Quarterly!AZ99-Quarterly!AZ95","v":2.4333333333333371},{"$f":"Quarterly!BA99-Quarterly!BA95","v":6.56666666666667},"--","--","--","--",{"$f":"((Quarterly!BF99/Quarterly!BF95)-1)","v":0.10872629872418416},{"$f":"((Quarterly!BG99/Quarterly!BG95)-1)","v":2.0508166969146924E-2},{"$f":"((Quarterly!BH99/Quarterly!BH95)-1)","v":4.3431201961938726E-3},{"$f":"((Quarterly!BI99/Quarterly!BI95)-1)","v":8.6433897778468216E-2},{"$f":"((Quarterly!BJ99/Quarterly!BJ95)-1)","v":1.1452118186899618E-2},"--",null,"--","--",null,null,null,null,null,{"$f":"((Quarterly!BT99/Quarterly!BT95)-1)","v":-3.4927989826129879E-2},{"$f":"Quarterly!BU99-Quarterly!BU95","v":-0.31087999999999916},{"$f":"Quarterly!BV99-Quarterly!BV95","v":-0.25554000000000165},{"$f":"((Quarterly!BW99/Quarterly!BW95)-1)","v":0.12621800701572039},{"$f":"((Quarterly!BX99/Quarterly!BX95)-1)","v":9.6575708935259463E-2},{"$f":"((Quarterly!BY99/Quarterly!BY95)-1)","v":3.9226997404095743E-2},"--",{"$f":"((Quarterly!CA99/Quarterly!CA95)-1)","v":-9.1103166233699406E-2},{"$f":"((Quarterly!CB99/Quarterly!CB95)-1)","v":-8.8158062477826205E-2},{"$f":"((Quarterly!CC99/Quarterly!CC95)-1)","v":-4.0717242464194725E-2},"--","--",null,"--","--",null,{"$f":"((Quarterly!CJ99/Quarterly!CJ95)-1)","v":-4.4803982576228862E-2},{"$f":"((Quarterly!CK99/Quarterly!CK95)-1)","v":0.12243739166816092},{"$f":"((Quarterly!CL99/Quarterly!CL95)-1)","v":0.19033391915641484},{"$f":"((Quarterly!CM99/Quarterly!CM95)-1)","v":9.2779177162048754E-2},{"$f":"((Quarterly!CN99/Quarterly!CN95)-1)","v":1.4350765834138191E-2},{"$f":"((Quarterly!CO99/Quarterly!CO95)-1)","v":-8.0299698672530395E-2},{"$f":"((Quarterly!CP99/Quarterly!CP95)-1)","v":7.8815113754453492E-3},{"$f":"((Quarterly!CQ99/Quarterly!CQ95)-1)","v":1.0700692397743516E-2},{"$f":"((Quarterly!CR99/Quarterly!CR95)-1)","v":3.4359145280154157E-2},{"$f":"Quarterly!CS99-Quarterly!CS95","v":4.7999999999999972},"--",null,null,null,null,null,{"$f":"((Quarterly!CZ99/Quarterly!CZ95)-1)","v":0.11261071277941781},{"$f":"((Quarterly!DA99/Quarterly!DA95)-1)","v":0.10695876288659822},null,null,null,null,null,{"$f":"((Quarterly!DG99/Quarterly!DG95)-1)","v":-4.6425255338903293E-3},{"$f":"((Quarterly!DH99-Quarterly!DH95)*60)","v":-4.000000000000199},{"$f":"Quarterly!DI99-Quarterly!DI95","v":6.6666666666662877E-2},"--",{"$f":"(Quarterly!DK99-Quarterly!DK95)*100","v":113.33333333333337},{"$f":"((Quarterly!DL99/Quarterly!DL95)-1)","v":-3.1515298520392143E-2},null,null,null,{"$f":"((Quarterly!DP99/Quarterly!DP95)-1)","v":2.4717799015687714E-3},null,null,null,null,{"$f":"Quarterly!DU99-Quarterly!DU95","v":1.5},"--","--","--","--","--","--","--","--",null,null,null,null,null,{"$f":"((Quarterly!EI99/Quarterly!EI95)-1)","v":-1.3261245439817326E-3},{"$f":"((Quarterly!EJ99/Quarterly!EJ95)-1)","v":4.0386436594550545E-3},{"$f":"((Quarterly!EK99/Quarterly!EK95)-1)","v":9.0623857467624358E-3},null,null,null,null,null,{"$f":"((Quarterly!EQ99/Quarterly!EQ95)-1)","v":0.11055469953775043},{"$f":"((Quarterly!ER99/Quarterly!ER95)-1)","v":9.4369547977795509E-2},{"$f":"((Quarterly!ES99/Quarterly!ES95)-1)","v":0.11250505868069616},null,null,null,null,null,{"$f":"(Quarterly!EY99-Quarterly!EY95)*100","v":281.66666666666697},{"$f":"(Quarterly!EZ99-Quarterly!EZ95)*100","v":152.33333333333297},{"$f":"(Quarterly!FA99-Quarterly!FA95)*100","v":102.00000000000014},{"$f":"(Quarterly!FB99-Quarterly!FB95)*100","v":176.66666666666657},"--",{"$f":"(Quarterly!FD99-Quarterly!FD95)*100","v":140.99999999999983},{"$f":"(Quarterly!FE99-Quarterly!FE95)*100","v":103.66666666666671},{"$f":"(Quarterly!FF99-Quarterly!FF95)*100","v":18.666666666666742},{"$f":"(Quarterly!FG99-Quarterly!FG95)*100","v":31.666666666666643},{"$f":"(Quarterly!FH99-Quarterly!FH95)*100","v":92.666666666666586},{"$f":"(Quarterly!FI99-Quarterly!FI95)*100","v":97.333333333333272},null,null,null,null,null,null,{"$f":"((Quarterly!FP99/Quarterly!FP95)-1)","v":2.5224760923094669E-2},"--","--","--",{"$f":"((Quarterly!FT99/Quarterly!FT95)-1)","v":3.8403009099449381E-2},{"$f":"((Quarterly!FU99/Quarterly!FU95)-1)","v":1.6455935967585322E-2},"--","--","--",null,null,null,null,null,{"$f":"((Quarterly!GD99/Quarterly!GD95)-1)","v":6.0465116279069697E-2},"--","--","--",{"$f":"((Quarterly!GH99/Quarterly!GH95)-1)","v":{"$error":"#DIV/0!"}},"--","--","--","--"]
["81'Q2",{"$f":"((Quarterly!B100/Quarterly!B96)-1)","v":0.13118611912120914},{"$f":"((Quarterly!C100/Quarterly!C96)-1)","v":3.0455787946584323E-2},{"$f":"((Quarterly!D100/Quarterly!D96)-1)","v":3.0175720663343952E-2},{"$f":"((Quarterly!E100/Quarterly!E96)-1)","v":2.938111577074598E-2},{"$f":"((Quarterly!F100/Quarterly!F96)-1)","v":6.3649018384294154E-2},{"$f":"((Quarterly!G100/Quarterly!G96)-1)","v":1.4792491481022019E-2},{"$f":"((Quarterly!H100/Quarterly!H96)-1)","v":3.2745638975202107E-2},{"$f":"((Quarterly!I100/Quarterly!I96)-1)","v":7.0255942541184169E-2},{"$f":"((Quarterly!J100/Quarterly!J96)-1)","v":1.2367535137849162E-2},{"$f":"((Quarterly!K100/Quarterly!K96)-1)","v":6.0168895144264711E-2},{"$f":"((Quarterly!L100-Quarterly!L96))","v":3.0709999999999997},{"$f":"((Quarterly!M100/Quarterly!M96)-1)","v":2.1339227949104922E-2},{"$f":"((Quarterly!N100/Quarterly!N96)-1)","v":1.610258333179293E-2},{"$f":"((Quarterly!O100/Quarterly!O96)-1)","v":-0.23497479643272301},{"$f":"((Quarterly!P100/Quarterly!P96)-1)","v":1.2110163742453661E-3},{"$f":"((Quarterly!Q100/Quarterly!Q96)-1)","v":-0.13541714338016564},null,null,null,null,null,{"$f":"((Quarterly!W100/Quarterly!W96)-1)","v":-1.2870012870014325E-3},{"$f":"((Quarterly!X100/Quarterly!X96)-1)","v":-1.2484394506865337E-3},{"$f":"((Quarterly!Y100/Quarterly!Y96)-1)","v":0.12158845916549388},"--",{"$f":"((Quarterly!AA100/Quarterly!AA96)-1)","v":3.0807687669250461E-2},{"$f":"((Quarterly!AB100/Quarterly!AB96)-1)","v":0.21855309577729498},"--","--","--","--","--","--","--","--","--","--",{"$f":"((Quarterly!AM100/Quarterly!AM96)-1)","v":2.7296780260043452E-2},{"$f":"((Quarterly!AN100/Quarterly!AN96)-1)","v":3.3495108279847585E-2},"--","--",{"$f":"Quarterly!AQ100-Quarterly!AQ96","v":19.56666666666667},"--","--",{"$f":"Quarterly!AT100-Quarterly!AT96","v":12.666666666666671},"--","--",{"$f":"Quarterly!AW100-Quarterly!AW96","v":8.8666666666666671},{"$f":"Quarterly!AX100-Quarterly!AX96","v":26.000000000000007},{"$f":"Quarterly!AY100-Quarterly!AY96","v":-1.5000000000000142},{"$f":"Quarterly!AZ100-Quarterly!AZ96","v":23.466666666666669},{"$f":"Quarterly!BA100-Quarterly!BA96","v":16.733333333333341},"--","--","--","--",{"$f":"((Quarterly!BF100/Quarterly!BF96)-1)","v":9.9673595602130183E-2},{"$f":"((Quarterly!BG100/Quarterly!BG96)-1)","v":1.8806649297273381E-2},{"$f":"((Quarterly!BH100/Quarterly!BH96)-1)","v":1.7514812331522744E-3},{"$f":"((Quarterly!BI100/Quarterly!BI96)-1)","v":7.9360323583386405E-2},{"$f":"((Quarterly!BJ100/Quarterly!BJ96)-1)","v":0.13641748334589776},"--",null,"--","--",null,null,null,null,null,{"$f":"((Quarterly!BT100/Quarterly!BT96)-1)","v":-8.097440433485481E-3},{"$f":"Quarterly!BU100-Quarterly!BU96","v":-0.24907000000000146},{"$f":"Quarterly!BV100-Quarterly!BV96","v":-0.2230799999999995},{"$f":"((Quarterly!BW100/Quarterly!BW96)-1)","v":0.13956202897815229},{"$f":"((Quarterly!BX100/Quarterly!BX96)-1)","v":0.1168872085696282},{"$f":"((Quarterly!BY100/Quarterly!BY96)-1)","v":0.19806243272335844},"--",{"$f":"((Quarterly!CA100/Quarterly!CA96)-1)","v":2.9101687493684469E-2},{"$f":"((Quarterly!CB100/Quarterly!CB96)-1)","v":-0.2061256022930732},{"$f":"((Quarterly!CC100/Quarterly!CC96)-1)","v":-0.16504607910102786},"--","--",null,"--","--",null,{"$f":"((Quarterly!CJ100/Quarterly!CJ96)-1)","v":-2.8037383177570097E-2},{"$f":"((Quarterly!CK100/Quarterly!CK96)-1)","v":0.13057028492090472},{"$f":"((Quarterly!CL100/Quarterly!CL96)-1)","v":0.10564633554441039},{"$f":"((Quarterly!CM100/Quarterly!CM96)-1)","v":0.13796430294259543},{"$f":"((Quarterly!CN100/Quarterly!CN96)-1)","v":2.9050658098368265E-2},{"$f":"((Quarterly!CO100/Quarterly!CO96)-1)","v":-5.0888390546834472E-2},{"$f":"((Quarterly!CP100/Quarterly!CP96)-1)","v":3.4855245226888876E-2},{"$f":"((Quarterly!CQ100/Quarterly!CQ96)-1)","v":1.0127098384650868E-2},{"$f":"((Quarterly!CR100/Quarterly!CR96)-1)","v":7.3627825674022152E-2},{"$f":"Quarterly!CS100-Quarterly!CS96","v":19.566666666666649},"--",null,null,null,null,null,{"$f":"((Quarterly!CZ100/Quarterly!CZ96)-1)","v":9.8735210118318983E-2},{"$f":"((Quarterly!DA100/Quarterly!DA96)-1)","v":9.4763092269326554E-2},null,null,null,null,null,{"$f":"((Quarterly!DG100/Quarterly!DG96)-1)","v":1.8465909090909172E-2},{"$f":"((Quarterly!DH100-Quarterly!DH96)*60)","v":9.9999999999998579},{"$f":"Quarterly!DI100-Quarterly!DI96","v":0.26666666666667282},"--",{"$f":"(Quarterly!DK100-Quarterly!DK96)*100","v":6.666666666666643},{"$f":"((Quarterly!DL100/Quarterly!DL96)-1)","v":1.3703749844273805E-3},null,null,null,{"$f":"((Quarterly!DP100/Quarterly!DP96)-1)","v":9.9422186845905536E-3},null,null,null,null,{"$f":"Quarterly!DU100-Quarterly!DU96","v":1},"--","--","--","--","--","--","--","--",null,null,null,null,null,{"$f":"((Quarterly!EI100/Quarterly!EI96)-1)","v":4.1162467549415327E-2},{"$f":"((Quarterly!EJ100/Quarterly!EJ96)-1)","v":3.2242115979530972E-2},{"$f":"((Quarterly!EK100/Quarterly!EK96)-1)","v":2.9258656513065917E-2},null,null,null,null,null,{"$f":"((Quarterly!EQ100/Quarterly!EQ96)-1)","v":0.11329305135951673},{"$f":"((Quarterly!ER100/Quarterly!ER96)-1)","v":9.4259115593483545E-2},{"$f":"((Quarterly!ES100/Quarterly!ES96)-1)","v":0.107044470680834},null,null,null,null,null,{"$f":"(Quarterly!EY100-Quarterly!EY96)*100","v":260.66666666666657},{"$f":"(Quarterly!EZ100-Quarterly!EZ96)*100","v":509.33333333333337},{"$f":"(Quarterly!FA100-Quarterly!FA96)*100","v":278.00000000000011},{"$f":"(Quarterly!FB100-Quarterly!FB96)*100","v":241.3333333333334},"--",{"$f":"(Quarterly!FD100-Quarterly!FD96)*100","v":179.33333333333312},{"$f":"(Quarterly!FE100-Quarterly!FE96)*100","v":528.99999999999989},{"$f":"(Quarterly!FF100-Quarterly!FF96)*100","v":484.3333333333332},{"$f":"(Quarterly!FG100-Quarterly!FG96)*100","v":447.99999999999989},{"$f":"(Quarterly!FH100-Quarterly!FH96)*100","v":385.66666666666657},{"$f":"(Quarterly!FI100-Quarterly!FI96)*100","v":327.33333333333337},null,null,null,null,null,null,{"$f":"((Quarterly!FP100/Quarterly!FP96)-1)","v":2.4004783871518942E-2},"--","--","--",{"$f":"((Quarterly!FT100/Quarterly!FT96)-1)","v":9.825312340584258E-2},{"$f":"((Quarterly!FU100/Quarterly!FU96)-1)","v":8.6609143846696046E-2},"--","--","--",null,null,null,null,null,{"$f":"((Quarterly!GD100/Quarterly!GD96)-1)","v":-5.485232067510537E-2},"--","--","--",{"$f":"((Quarterly!GH100/Quarterly!GH96)-1)","v":{"$error":"#DIV/0!"}},"--","--","--","--"]
["81'Q3",{"$f":"((Quarterly!B101/Quarterly!B97)-1)","v":0.14026322671958891},{"$f":"((Quarterly!C101/Quarterly!C97)-1)","v":4.3861935937502983E-2},{"$f":"((Quarterly!D101/Quarterly!D97)-1)","v":1.7741341750437956E-2},{"$f":"((Quarterly!E101/Quarterly!E97)-1)","v":2.2504966179687669E-2},{"$f":"((Quarterly!F101/Quarterly!F97)-1)","v":4.9455347704187025E-2},{"$f":"((Quarterly!G101/Quarterly!G97)-1)","v":1.9528087669068883E-2},{"$f":"((Quarterly!H101/Quarterly!H97)-1)","v":2.1479283642610536E-2},{"$f":"((Quarterly!I101/Quarterly!I97)-1)","v":8.748832073388213E-2},{"$f":"((Quarterly!J101/Quarterly!J97)-1)","v":3.6489825064797365E-2},{"$f":"((Quarterly!K101/Quarterly!K97)-1)","v":-3.8395019024559107E-2},{"$f":"((Quarterly!L101-Quarterly!L97))","v":115.93899999999999},{"$f":"((Quarterly!M101/Quarterly!M97)-1)","v":8.7931334959916452E-2},{"$f":"((Quarterly!N101/Quarterly!N97)-1)","v":-3.3924677689101124E-3},{"$f":"((Quarterly!O101/Quarterly!O97)-1)","v":-0.93868990956687359},{"$f":"((Quarterly!P101/Quarterly!P97)-1)","v":1.2322897366620511E-2},{"$f":"((Quarterly!Q101/Quarterly!Q97)-1)","v":-0.17699758834432866},null,null,null,null,null,{"$f":"((Quarterly!W101/Quarterly!W97)-1)","v":1.8567639257294211E-2},{"$f":"((Quarterly!X101/Quarterly!X97)-1)","v":2.341421881651784E-2},{"$f":"((Quarterly!Y101/Quarterly!Y97)-1)","v":0.15120177870316587},"--",{"$f":"((Quarterly!AA101/Quarterly!AA97)-1)","v":5.8458739006306271E-3},{"$f":"((Quarterly!AB101/Quarterly!AB97)-1)","v":0.30608425761102742},"--","--","--","--","--","--","--","--","--","--",{"$f":"((Quarterly!AM101/Quarterly!AM97)-1)","v":5.3956149215810711E-2},{"$f":"((Quarterly!AN101/Quarterly!AN97)-1)","v":5.5255556578092113E-2},"--","--",{"$f":"Quarterly!AQ101-Quarterly!AQ97","v":2.3000000000000043},"--","--",{"$f":"Quarterly!AT101-Quarterly!AT97","v":4.3000000000000043},"--","--",{"$f":"Quarterly!AW101-Quarterly!AW97","v":7.06666666666667},{"$f":"Quarterly!AX101-Quarterly!AX97","v":-2.3666666666666671},{"$f":"Quarterly!AY101-Quarterly!AY97","v":1.3333333333333428},{"$f":"Quarterly!AZ101-Quarterly!AZ97","v":1.2666666666666657},{"$f":"Quarterly!BA101-Quarterly!BA97","v":7.6000000000000014},"--","--","--","--",{"$f":"((Quarterly!BF101/Quarterly!BF97)-1)","v":9.6395641240570207E-2},{"$f":"((Quarterly!BG101/Quarterly!BG97)-1)","v":2.3973667367651164E-2},{"$f":"((Quarterly!BH101/Quarterly!BH97)-1)","v":2.5711511371873108E-3},{"$f":"((Quarterly!BI101/Quarterly!BI97)-1)","v":7.0720035204165921E-2},{"$f":"((Quarterly!BJ101/Quarterly!BJ97)-1)","v":9.1162962122930402E-2},"--",null,"--","--",null,null,null,null,null,{"$f":"((Quarterly!BT101/Quarterly!BT97)-1)","v":1.5700686373794293E-2},{"$f":"Quarterly!BU101-Quarterly!BU97","v":-0.10625000000000107},{"$f":"Quarterly!BV101-Quarterly!BV97","v":-9.1029999999999944E-2},{"$f":"((Quarterly!BW101/Quarterly!BW97)-1)","v":0.1517349611981611},{"$f":"((Quarterly!BX101/Quarterly!BX97)-1)","v":-0.30747126436781613},{"$f":"((Quarterly!BY101/Quarterly!BY97)-1)","v":-0.35012165450121657},"--",{"$f":"((Quarterly!CA101/Quarterly!CA97)-1)","v":2.0174664516325436E-2},{"$f":"((Quarterly!CB101/Quarterly!CB97)-1)","v":-0.11409289671184009},{"$f":"((Quarterly!CC101/Quarterly!CC97)-1)","v":-9.7703444265200057E-2},"--","--",null,"--","--",null,{"$f":"((Quarterly!CJ101/Quarterly!CJ97)-1)","v":-0.39344262295081978},{"$f":"((Quarterly!CK101/Quarterly!CK97)-1)","v":0.13286364219804048},{"$f":"((Quarterly!CL101/Quarterly!CL97)-1)","v":0.22558459422283361},{"$f":"((Quarterly!CM101/Quarterly!CM97)-1)","v":-0.32217573221757323},{"$f":"((Quarterly!CN101/Quarterly!CN97)-1)","v":3.745231091825163E-2},{"$f":"((Quarterly!CO101/Quarterly!CO97)-1)","v":-0.14097379488838579},{"$f":"((Quarterly!CP101/Quarterly!CP97)-1)","v":5.4323417056610035E-2},{"$f":"((Quarterly!CQ101/Quarterly!CQ97)-1)","v":9.797255306237318E-3},{"$f":"((Quarterly!CR101/Quarterly!CR97)-1)","v":9.6291224816863918E-2},{"$f":"Quarterly!CS101-Quarterly!CS97","v":7.0333333333333314},"--",null,null,null,null,null,{"$f":"((Quarterly!CZ101/Quarterly!CZ97)-1)","v":0.10853023628354008},{"$f":"((Quarterly!DA101/Quarterly!DA97)-1)","v":0.11506961506961511},null,null,null,null,null,{"$f":"((Quarterly!DG101/Quarterly!DG97)-1)","v":2.4785510009532885E-2},{"$f":"((Quarterly!DH101-Quarterly!DH97)*60)","v":6.0000000000000853},{"$f":"Quarterly!DI101-Quarterly!DI97","v":0},"--",{"$f":"(Quarterly!DK101-Quarterly!DK97)*100","v":-26.666666666666572},{"$f":"((Quarterly!DL101/Quarterly!DL97)-1)","v":2.0132402285299777E-2},null,null,null,{"$f":"((Quarterly!DP101/Quarterly!DP97)-1)","v":1.66688877043355E-2},null,null,null,null,{"$f":"Quarterly!DU101-Quarterly!DU97","v":-0.36666666666666536},"--","--","--","--","--","--","--","--",null,null,null,null,null,{"$f":"((Quarterly!EI101/Quarterly!EI97)-1)","v":5.4405741344910163E-2},{"$f":"((Quarterly!EJ101/Quarterly!EJ97)-1)","v":3.9089482238209738E-2},{"$f":"((Quarterly!EK101/Quarterly!EK97)-1)","v":3.5682754520165227E-2},null,null,null,null,null,{"$f":"((Quarterly!EQ101/Quarterly!EQ97)-1)","v":8.5191956124314405E-2},{"$f":"((Quarterly!ER101/Quarterly!ER97)-1)","v":7.9652699131747662E-2},{"$f":"((Quarterly!ES101/Quarterly!ES97)-1)","v":9.8964326812428283E-2},null,null,null,null,null,{"$f":"(Quarterly!EY101-Quarterly!EY97)*100","v":871.33333333333348},{"$f":"(Quarterly!EZ101-Quarterly!EZ97)*100","v":773.99999999999989},{"$f":"(Quarterly!FA101-Quarterly!FA97)*100","v":334.33333333333337},{"$f":"(Quarterly!FB101-Quarterly!FB97)*100","v":331.0000000000004},"--",{"$f":"(Quarterly!FD101-Quarterly!FD97)*100","v":477.66666666666657},{"$f":"(Quarterly!FE101-Quarterly!FE97)*100","v":589.99999999999989},{"$f":"(Quarterly!FF101-Quarterly!FF97)*100","v":618.33333333333303},{"$f":"(Quarterly!FG101-Quarterly!FG97)*100","v":565.33333333333337},{"$f":"(Quarterly!FH101-Quarterly!FH97)*100","v":476.33333333333354},{"$f":"(Quarterly!FI101-Quarterly!FI97)*100","v":389.33333333333326},null,null,null,null,null,null,{"$f":"((Quarterly!FP101/Quarterly!FP97)-1)","v":4.5595765491053708E-2},"--","--","--",{"$f":"((Quarterly!FT101/Quarterly!FT97)-1)","v":0.17177845175501338},{"$f":"((Quarterly!FU101/Quarterly!FU97)-1)","v":0.17505158596519266},"--","--","--",null,null,null,null,null,{"$f":"((Quarterly!GD101/Quarterly!GD97)-1)","v":-4.8458149779735726E-2},"--","--","--",{"$f":"((Quarterly!GH101/Quarterly!GH97)-1)","v":{"$error":"#DIV/0!"}},"--","--","--","--"]
["81'Q4",{"$f":"((Quarterly!B102/Quarterly!B98)-1)","v":9.68794314395236E-2},{"$f":"((Quarterly!C102/Quarterly!C98)-1)","v":1.2911955729910218E-2},{"$f":"((Quarterly!D102/Quarterly!D98)-1)","v":3.1476153228242598E-3},{"$f":"((Quarterly!E102/Quarterly!E98)-1)","v":1.5385760726605024E-3},{"$f":"((Quarterly!F102/Quarterly!F98)-1)","v":-5.4727921498661902E-2},{"$f":"((Quarterly!G102/Quarterly!G98)-1)","v":1.9452038628719581E-2},{"$f":"((Quarterly!H102/Quarterly!H98)-1)","v":-1.0230825450843195E-3},{"$f":"((Quarterly!I102/Quarterly!I98)-1)","v":8.914954385381102E-2},{"$f":"((Quarterly!J102/Quarterly!J98)-1)","v":3.6116141658491197E-2},{"$f":"((Quarterly!K102/Quarterly!K98)-1)","v":-0.21392564587271579},{"$f":"((Quarterly!L102-Quarterly!L98))","v":47.059000000000005},{"$f":"((Quarterly!M102/Quarterly!M98)-1)","v":6.213577245185431E-2},{"$f":"((Quarterly!N102/Quarterly!N98)-1)","v":7.2919439859431279E-3},{"$f":"((Quarterly!O102/Quarterly!O98)-1)","v":-1.5390175656769789},{"$f":"((Quarterly!P102/Quarterly!P98)-1)","v":2.37588679047398E-2},{"$f":"((Quarterly!Q102/Quarterly!Q98)-1)","v":0.20851290804352463},null,null,null,null,null,{"$f":"((Quarterly!W102/Quarterly!W98)-1)","v":-5.2362707535121289E-2},{"$f":"((Quarterly!X102/Quarterly!X98)-1)","v":-3.6731324803962018E-2},{"$f":"((Quarterly!Y102/Quarterly!Y98)-1)","v":0.12796318435049936},"--",{"$f":"((Quarterly!AA102/Quarterly!AA98)-1)","v":-4.2865772868260321E-2},{"$f":"((Quarterly!AB102/Quarterly!AB98)-1)","v":0.17909191460352147},"--","--","--","--","--","--","--","--","--","--",{"$f":"((Quarterly!AM102/Quarterly!AM98)-1)","v":-7.7812886001805692E-3},{"$f":"((Quarterly!AN102/Quarterly!AN98)-1)","v":-1.9482461673671736E-2},"--","--",{"$f":"Quarterly!AQ102-Quarterly!AQ98","v":-17.600000000000001},"--","--",{"$f":"Quarterly!AT102-Quarterly!AT98","v":-16.399999999999999},"--","--",{"$f":"Quarterly!AW102-Quarterly!AW98","v":-3.0333333333333456},{"$f":"Quarterly!AX102-Quarterly!AX98","v":-22.699999999999996},{"$f":"Quarterly!AY102-Quarterly!AY98","v":-18.633333333333326},{"$f":"Quarterly!AZ102-Quarterly!AZ98","v":-23.966666666666661},{"$f":"Quarterly!BA102-Quarterly!BA98","v":-8},"--","--","--","--",{"$f":"((Quarterly!BF102/Quarterly!BF98)-1)","v":8.3278966597077453E-2},{"$f":"((Quarterly!BG102/Quarterly!BG98)-1)","v":6.8722307622737233E-4},{"$f":"((Quarterly!BH102/Quarterly!BH98)-1)","v":-3.3094994892747254E-3},{"$f":"((Quarterly!BI102/Quarterly!BI98)-1)","v":8.2539682539682468E-2},{"$f":"((Quarterly!BJ102/Quarterly!BJ98)-1)","v":-3.3851309568929455E-2},"--",null,"--","--",null,null,null,null,null,{"$f":"((Quarterly!BT102/Quarterly!BT98)-1)","v":1.9188111185582279E-2},{"$f":"Quarterly!BU102-Quarterly!BU98","v":0.17157000000000089},{"$f":"Quarterly!BV102-Quarterly!BV98","v":0.30054999999999943},{"$f":"((Quarterly!BW102/Quarterly!BW98)-1)","v":0.15587639250296781},{"$f":"((Quarterly!BX102/Quarterly!BX98)-1)","v":-0.41971207087486151},{"$f":"((Quarterly!BY102/Quarterly!BY98)-1)","v":-0.4309654827413707},"--",{"$f":"((Quarterly!CA102/Quarterly!CA98)-1)","v":-0.1680759170265832},{"$f":"((Quarterly!CB102/Quarterly!CB98)-1)","v":-0.1062424827498536},{"$f":"((Quarterly!CC102/Quarterly!CC98)-1)","v":-6.1111291939195622E-2},"--","--",null,"--","--",null,{"$f":"((Quarterly!CJ102/Quarterly!CJ98)-1)","v":-0.27794561933534745},{"$f":"((Quarterly!CK102/Quarterly!CK98)-1)","v":9.7284327625695166E-2},{"$f":"((Quarterly!CL102/Quarterly!CL98)-1)","v":0.20937369228623237},{"$f":"((Quarterly!CM102/Quarterly!CM98)-1)","v":-0.44705481784133461},{"$f":"((Quarterly!CN102/Quarterly!CN98)-1)","v":1.947945303295362E-2},{"$f":"((Quarterly!CO102/Quarterly!CO98)-1)","v":-0.16523570387169939},{"$f":"((Quarterly!CP102/Quarterly!CP98)-1)","v":5.8958045873111598E-2},{"$f":"((Quarterly!CQ102/Quarterly!CQ98)-1)","v":9.6878426615030211E-3},{"$f":"((Quarterly!CR102/Quarterly!CR98)-1)","v":0.11320221305914924},{"$f":"Quarterly!CS102-Quarterly!CS98","v":-6.36666666666666},"--",null,null,null,null,null,{"$f":"((Quarterly!CZ102/Quarterly!CZ98)-1)","v":9.5831710167510353E-2},{"$f":"((Quarterly!DA102/Quarterly!DA98)-1)","v":0.10246227164416211},null,null,null,null,null,{"$f":"((Quarterly!DG102/Quarterly!DG98)-1)","v":-9.3852651337411608E-4},{"$f":"((Quarterly!DH102-Quarterly!DH98)*60)","v":-14.000000000000057},{"$f":"Quarterly!DI102-Quarterly!DI98","v":6.6666666666662877E-2},"--",{"$f":"(Quarterly!DK102-Quarterly!DK98)*100","v":83.333333333333485},{"$f":"((Quarterly!DL102/Quarterly!DL98)-1)","v":-9.8480635729276678E-3},null,null,null,{"$f":"((Quarterly!DP102/Quarterly!DP98)-1)","v":4.6366034491627239E-3},null,null,null,null,{"$f":"Quarterly!DU102-Quarterly!DU98","v":-0.69999999999999929},"--","--","--","--","--","--","--","--",null,null,null,null,null,{"$f":"((Quarterly!EI102/Quarterly!EI98)-1)","v":1.1314351137561296E-3},{"$f":"((Quarterly!EJ102/Quarterly!EJ98)-1)","v":5.6300677805209975E-3},{"$f":"((Quarterly!EK102/Quarterly!EK98)-1)","v":1.1161292378155663E-2},null,null,null,null,null,{"$f":"((Quarterly!EQ102/Quarterly!EQ98)-1)","v":5.9685489635453948E-2},{"$f":"((Quarterly!ER102/Quarterly!ER98)-1)","v":7.774898185857082E-2},{"$f":"((Quarterly!ES102/Quarterly!ES98)-1)","v":9.2233009708737823E-2},null,null,null,null,null,{"$f":"(Quarterly!EY102-Quarterly!EY98)*100","v":27.999999999999758},{"$f":"(Quarterly!EZ102-Quarterly!EZ98)*100","v":-226.66666666666674},{"$f":"(Quarterly!FA102-Quarterly!FA98)*100","v":178.66666666666671},{"$f":"(Quarterly!FB102-Quarterly!FB98)*100","v":201.3333333333332},"--",{"$f":"(Quarterly!FD102-Quarterly!FD98)*100","v":347.00000000000006},{"$f":"(Quarterly!FE102-Quarterly!FE98)*100","v":-186.33333333333351},{"$f":"(Quarterly!FF102-Quarterly!FF98)*100","v":-29.333333333333478},{"$f":"(Quarterly!FG102-Quarterly!FG98)*100","v":67.666666666666771},{"$f":"(Quarterly!FH102-Quarterly!FH98)*100","v":148.33333333333343},{"$f":"(Quarterly!FI102-Quarterly!FI98)*100","v":166.3333333333334},null,null,null,null,null,null,{"$f":"((Quarterly!FP102/Quarterly!FP98)-1)","v":6.4465276018355055E-3},"--","--","--",{"$f":"((Quarterly!FT102/Quarterly!FT98)-1)","v":0.13138137796747196},{"$f":"((Quarterly!FU102/Quarterly!FU98)-1)","v":0.1154445331506786},"--","--","--",null,null,null,null,null,{"$f":"((Quarterly!GD102/Quarterly!GD98)-1)","v":-2.752293577981646E-2},"--","--","--","--","--","--","--","--"]
["82'Q1",{"$f":"((Quarterly!B103/Quarterly!B99)-1)","v":4.5344544780811402E-2},{"$f":"((Quarterly!C103/Quarterly!C99)-1)","v":-2.4225382422360386E-2},{"$f":"((Quarterly!D103/Quarterly!D99)-1)","v":-5.5709167845160446E-3},{"$f":"((Quarterly!E103/Quarterly!E99)-1)","v":2.9129329284849348E-3},{"$f":"((Quarterly!F103/Quarterly!F99)-1)","v":-5.1353226925746065E-2},{"$f":"((Quarterly!G103/Quarterly!G99)-1)","v":1.2399594478670783E-2},{"$f":"((Quarterly!H103/Quarterly!H99)-1)","v":3.7349524253627031E-3},{"$f":"((Quarterly!I103/Quarterly!I99)-1)","v":3.9425062493207097E-2},{"$f":"((Quarterly!J103/Quarterly!J99)-1)","v":-4.1003835914642406E-2},{"$f":"((Quarterly!K103/Quarterly!K99)-1)","v":-0.24631173829377806},{"$f":"((Quarterly!L103-Quarterly!L99))","v":-91.234999999999999},{"$f":"((Quarterly!M103/Quarterly!M99)-1)","v":-1.0560262222281014E-2},{"$f":"((Quarterly!N103/Quarterly!N99)-1)","v":-5.423194707191914E-2},{"$f":"((Quarterly!O103/Quarterly!O99)-1)","v":-3.806495571201447},{"$f":"((Quarterly!P103/Quarterly!P99)-1)","v":9.5084506894704823E-3},{"$f":"((Quarterly!Q103/Quarterly!Q99)-1)","v":0.85431053686789937},null,null,null,null,null,{"$f":"((Quarterly!W103/Quarterly!W99)-1)","v":-7.4646074646074645E-2},{"$f":"((Quarterly!X103/Quarterly!X99)-1)","v":-5.806719203649946E-2},{"$f":"((Quarterly!Y103/Quarterly!Y99)-1)","v":0.1484860300277937},"--",{"$f":"((Quarterly!AA103/Quarterly!AA99)-1)","v":-0.15909567719312268},{"$f":"((Quarterly!AB103/Quarterly!AB99)-1)","v":1.8761909734005044E-2},"--","--","--","--","--","--","--","--","--","--",{"$f":"((Quarterly!AM103/Quarterly!AM99)-1)","v":-3.0509361071341945E-2},{"$f":"((Quarterly!AN103/Quarterly!AN99)-1)","v":-4.6108464545768335E-2},"--","--",{"$f":"Quarterly!AQ103-Quarterly!AQ99","v":-11.43333333333333},"--","--",{"$f":"Quarterly!AT103-Quarterly!AT99","v":-13.333333333333329},"--","--",{"$f":"Quarterly!AW103-Quarterly!AW99","v":-9.9000000000000057},{"$f":"Quarterly!AX103-Quarterly!AX99","v":-10.366666666666667},{"$f":"Quarterly!AY103-Quarterly!AY99","v":-30.1},{"$f":"Quarterly!AZ103-Quarterly!AZ99","v":-12.800000000000004},{"$f":"Quarterly!BA103-Quarterly!BA99","v":-9.8666666666666671},"--","--","--","--",{"$f":"((Quarterly!BF103/Quarterly!BF99)-1)","v":8.28379795924854E-2},{"$f":"((Quarterly!BG103/Quarterly!BG99)-1)","v":-2.3012626711719664E-2},{"$f":"((Quarterly!BH103/Quarterly!BH99)-1)","v":1.177256977600738E-2},{"$f":"((Quarterly!BI103/Quarterly!BI99)-1)","v":0.10833467388778661},{"$f":"((Quarterly!BJ103/Quarterly!BJ99)-1)","v":-0.16456111039712129},"--",null,"--","--",null,null,null,null,null,{"$f":"((Quarterly!BT103/Quarterly!BT99)-1)","v":2.0187993799868131E-2},{"$f":"Quarterly!BU103-Quarterly!BU99","v":0.19246000000000052},{"$f":"Quarterly!BV103-Quarterly!BV99","v":0.33597000000000143},{"$f":"((Quarterly!BW103/Quarterly!BW99)-1)","v":0.15887408432831518},{"$f":"((Quarterly!BX103/Quarterly!BX99)-1)","v":-0.35594047328616729},{"$f":"((Quarterly!BY103/Quarterly!BY99)-1)","v":-0.30807660283097416},"--",{"$f":"((Quarterly!CA103/Quarterly!CA99)-1)","v":-0.11545971644452013},{"$f":"((Quarterly!CB103/Quarterly!CB99)-1)","v":-0.12199179589580933},{"$f":"((Quarterly!CC103/Quarterly!CC99)-1)","v":-5.443694071016314E-2},"--","--",null,"--","--",null,{"$f":"((Quarterly!CJ103/Quarterly!CJ99)-1)","v":-0.27882736156351795},{"$f":"((Quarterly!CK103/Quarterly!CK99)-1)","v":8.4320668814398703E-2},{"$f":"((Quarterly!CL103/Quarterly!CL99)-1)","v":0.238151483832866},{"$f":"((Quarterly!CM103/Quarterly!CM99)-1)","v":-0.34421820975797157},{"$f":"((Quarterly!CN103/Quarterly!CN99)-1)","v":2.3469774967959989E-2},{"$f":"((Quarterly!CO103/Quarterly!CO99)-1)","v":-8.2617550695120889E-2},{"$f":"((Quarterly!CP103/Quarterly!CP99)-1)","v":5.9656696854751168E-2},{"$f":"((Quarterly!CQ103/Quarterly!CQ99)-1)","v":9.7608958837771542E-3},{"$f":"((Quarterly!CR103/Quarterly!CR99)-1)","v":9.9683264830700669E-2},{"$f":"Quarterly!CS103-Quarterly!CS99","v":-1.7666666666666657},"--",null,null,null,null,null,{"$f":"((Quarterly!CZ103/Quarterly!CZ99)-1)","v":7.5815011372251995E-2},{"$f":"((Quarterly!DA103/Quarterly!DA99)-1)","v":9.0415211486224001E-2},null,null,null,null,null,{"$f":"((Quarterly!DG103/Quarterly!DG99)-1)","v":-2.6119402985074536E-2},{"$f":"((Quarterly!DH103-Quarterly!DH99)*60)","v":-36.000000000000085},{"$f":"Quarterly!DI103-Quarterly!DI99","v":-0.19999999999998863},"--",{"$f":"(Quarterly!DK103-Quarterly!DK99)*100","v":140.00000000000003},{"$f":"((Quarterly!DL103/Quarterly!DL99)-1)","v":-3.6029267070967208E-2},null,null,null,{"$f":"((Quarterly!DP103/Quarterly!DP99)-1)","v":-6.5519915713073695E-3},null,null,null,null,{"$f":"Quarterly!DU103-Quarterly!DU99","v":0.23333333333333339},"--","--","--","--","--","--","--","--",null,null,null,null,null,{"$f":"((Quarterly!EI103/Quarterly!EI99)-1)","v":-5.436935720998215E-2},{"$f":"((Quarterly!EJ103/Quarterly!EJ99)-1)","v":-2.3903231271110825E-2},{"$f":"((Quarterly!EK103/Quarterly!EK99)-1)","v":-1.070408639124798E-2},null,null,null,null,null,{"$f":"((Quarterly!EQ103/Quarterly!EQ99)-1)","v":3.7460978147762614E-2},{"$f":"((Quarterly!ER103/Quarterly!ER99)-1)","v":6.84782608695651E-2},{"$f":"((Quarterly!ES103/Quarterly!ES99)-1)","v":7.4936340487450126E-2},null,null,null,null,null,{"$f":"(Quarterly!EY103-Quarterly!EY99)*100","v":-294.33333333333348},{"$f":"(Quarterly!EZ103-Quarterly!EZ99)*100","v":-234.33333333333303},{"$f":"(Quarterly!FA103-Quarterly!FA99)*100","v":184.66666666666657},{"$f":"(Quarterly!FB103-Quarterly!FB99)*100","v":178.66666666666706},"--",{"$f":"(Quarterly!FD103-Quarterly!FD99)*100","v":224.3333333333334},{"$f":"(Quarterly!FE103-Quarterly!FE99)*100","v":-157.6666666666668},{"$f":"(Quarterly!FF103-Quarterly!FF99)*100","v":21.333333333333471},{"$f":"(Quarterly!FG103-Quarterly!FG99)*100","v":94.333333333333158},{"$f":"(Quarterly!FH103-Quarterly!FH99)*100","v":119.33333333333334},{"$f":"(Quarterly!FI103-Quarterly!FI99)*100","v":133.3333333333332},null,null,null,null,null,null,{"$f":"((Quarterly!FP103/Quarterly!FP99)-1)","v":1.2958360097187871E-2},{"$f":"((Quarterly!FQ103/Quarterly!FQ99)-1)","v":0.13299835289702466},"--","--",{"$f":"((Quarterly!FT103/Quarterly!FT99)-1)","v":0.15065303113669382},{"$f":"((Quarterly!FU103/Quarterly!FU99)-1)","v":0.119755147732445},"--","--","--",null,null,null,null,null,{"$f":"((Quarterly!GD103/Quarterly!GD99)-1)","v":-0.17640350877192978},"--","--","--",{"$f":"((Quarterly!GH103/Quarterly!GH99)-1)","v":{"$error":"#DIV/0!"}},"--","--","--","--"]
["82'Q2",{"$f":"((Quarterly!B104/Quarterly!B100)-1)","v":5.1789390862928109E-2},{"$f":"((Quarterly!C104/Quarterly!C100)-1)","v":-1.1692554228467045E-2},{"$f":"((Quarterly!D104/Quarterly!D100)-1)","v":-8.2192200267451332E-3},{"$f":"((Quarterly!E104/Quarterly!E100)-1)","v":6.8146465519369759E-3},{"$f":"((Quarterly!F104/Quarterly!F100)-1)","v":-9.3415767859559296E-3},{"$f":"((Quarterly!G104/Quarterly!G100)-1)","v":6.1723602484471396E-3},{"$f":"((Quarterly!H104/Quarterly!H100)-1)","v":8.4364235792753206E-3},{"$f":"((Quarterly!I104/Quarterly!I100)-1)","v":-1.3661420468163543E-2},{"$f":"((Quarterly!J104/Quarterly!J100)-1)","v":-0.12189826817931282},{"$f":"((Quarterly!K104/Quarterly!K100)-1)","v":-0.24493859940258877},{"$f":"((Quarterly!L104-Quarterly!L100))","v":-21.233000000000001},{"$f":"((Quarterly!M104/Quarterly!M100)-1)","v":-2.819656035219964E-2},{"$f":"((Quarterly!N104/Quarterly!N100)-1)","v":-5.3711716628334627E-2},{"$f":"((Quarterly!O104/Quarterly!O100)-1)","v":-1.6869403615475498},{"$f":"((Quarterly!P104/Quarterly!P100)-1)","v":1.2911302826505322E-2},{"$f":"((Quarterly!Q104/Quarterly!Q100)-1)","v":0.84370368409908947},null,null,null,null,null,{"$f":"((Quarterly!W104/Quarterly!W100)-1)","v":-8.376288659793818E-2},{"$f":"((Quarterly!X104/Quarterly!X100)-1)","v":-7.1250000000000036E-2},{"$f":"((Quarterly!Y104/Quarterly!Y100)-1)","v":0.16157320848205803},"--",{"$f":"((Quarterly!AA104/Quarterly!AA100)-1)","v":-9.7776028759532396E-2},{"$f":"((Quarterly!AB104/Quarterly!AB100)-1)","v":6.0520244002655099E-2},"--","--","--","--","--","--","--","--","--","--",{"$f":"((Quarterly!AM104/Quarterly!AM100)-1)","v":-4.5495892731906129E-2},{"$f":"((Quarterly!AN104/Quarterly!AN100)-1)","v":-5.7237855901692503E-2},"--","--",{"$f":"Quarterly!AQ104-Quarterly!AQ100","v":-14.733333333333341},"--","--",{"$f":"Quarterly!AT104-Quarterly!AT100","v":-18.666666666666675},"--","--",{"$f":"Quarterly!AW104-Quarterly!AW100","v":-17.600000000000005},{"$f":"Quarterly!AX104-Quarterly!AX100","v":-12.933333333333337},{"$f":"Quarterly!AY104-Quarterly!AY100","v":-30.166666666666664},{"$f":"Quarterly!AZ104-Quarterly!AZ100","v":-16.666666666666664},{"$f":"Quarterly!BA104-Quarterly!BA100","v":-7.9333333333333371},"--","--","--","--",{"$f":"((Quarterly!BF104/Quarterly!BF100)-1)","v":7.3611197900393721E-2},{"$f":"((Quarterly!BG104/Quarterly!BG100)-1)","v":-8.5904154735534366E-3},{"$f":"((Quarterly!BH104/Quarterly!BH100)-1)","v":1.1255446734691033E-2},{"$f":"((Quarterly!BI104/Quarterly!BI100)-1)","v":8.2945870922970233E-2},{"$f":"((Quarterly!BJ104/Quarterly!BJ100)-1)","v":-0.13607749167411254},"--",null,"--","--",null,null,null,null,null,{"$f":"((Quarterly!BT104/Quarterly!BT100)-1)","v":2.3344175453956062E-2},{"$f":"Quarterly!BU104-Quarterly!BU100","v":0.10770000000000124},{"$f":"Quarterly!BV104-Quarterly!BV100","v":0.2011800000000008},{"$f":"((Quarterly!BW104/Quarterly!BW100)-1)","v":0.16604689483177082},{"$f":"((Quarterly!BX104/Quarterly!BX100)-1)","v":-0.19774330042313126},{"$f":"((Quarterly!BY104/Quarterly!BY100)-1)","v":-0.17520215633423175},"--",{"$f":"((Quarterly!CA104/Quarterly!CA100)-1)","v":-2.2649167021241534E-2},{"$f":"((Quarterly!CB104/Quarterly!CB100)-1)","v":-5.4198684221596238E-2},{"$f":"((Quarterly!CC104/Quarterly!CC100)-1)","v":2.1690249922198035E-2},"--","--",null,"--","--",null,{"$f":"((Quarterly!CJ104/Quarterly!CJ100)-1)","v":-0.19156804733727817},{"$f":"((Quarterly!CK104/Quarterly!CK100)-1)","v":8.1183125824699998E-2},{"$f":"((Quarterly!CL104/Quarterly!CL100)-1)","v":0.25431665203394815},{"$f":"((Quarterly!CM104/Quarterly!CM100)-1)","v":-0.23569309029249685},{"$f":"((Quarterly!CN104/Quarterly!CN100)-1)","v":2.9612707324758736E-2},{"$f":"((Quarterly!CO104/Quarterly!CO100)-1)","v":-6.2340966921119567E-2},{"$f":"((Quarterly!CP104/Quarterly!CP100)-1)","v":5.3502915495501346E-2},{"$f":"((Quarterly!CQ104/Quarterly!CQ100)-1)","v":9.7380865610920964E-3},{"$f":"((Quarterly!CR104/Quarterly!CR100)-1)","v":8.6128620752212282E-2},{"$f":"Quarterly!CS104-Quarterly!CS100","v":-7.6999999999999886},"--",null,null,null,null,null,{"$f":"((Quarterly!CZ104/Quarterly!CZ100)-1)","v":6.9067953954697225E-2},{"$f":"((Quarterly!DA104/Quarterly!DA100)-1)","v":8.6560364464692841E-2},null,null,null,null,null,{"$f":"((Quarterly!DG104/Quarterly!DG100)-1)","v":-3.3472803347280422E-2},{"$f":"((Quarterly!DH104-Quarterly!DH100)*60)","v":-28.000000000000114},{"$f":"Quarterly!DI104-Quarterly!DI100","v":-6.6666666666662877E-2},"--",{"$f":"(Quarterly!DK104-Quarterly!DK100)*100","v":203.3333333333336},{"$f":"((Quarterly!DL104/Quarterly!DL100)-1)","v":-6.3359755447339405E-2},null,null,null,{"$f":"((Quarterly!DP104/Quarterly!DP100)-1)","v":-1.4387045456203951E-2},null,null,null,null,{"$f":"Quarterly!DU104-Quarterly!DU100","v":1.7333333333333352},"--","--","--","--","--","--","--","--",null,null,null,null,null,{"$f":"((Quarterly!EI104/Quarterly!EI100)-1)","v":-4.8683350972376305E-2},{"$f":"((Quarterly!EJ104/Quarterly!EJ100)-1)","v":-1.9300452733743034E-2},{"$f":"((Quarterly!EK104/Quarterly!EK100)-1)","v":-6.1964533855501935E-3},null,null,null,null,null,{"$f":"((Quarterly!EQ104/Quarterly!EQ100)-1)","v":1.5603799185888612E-2},{"$f":"((Quarterly!ER104/Quarterly!ER100)-1)","v":5.7426444523218656E-2},{"$f":"((Quarterly!ES104/Quarterly!ES100)-1)","v":6.1144685389264319E-2},null,null,null,null,null,{"$f":"(Quarterly!EY104-Quarterly!EY100)*100","v":-242.99999999999997},{"$f":"(Quarterly!EZ104-Quarterly!EZ100)*100","v":-326.66666666666674},{"$f":"(Quarterly!FA104-Quarterly!FA100)*100","v":52.666666666666551},{"$f":"(Quarterly!FB104-Quarterly!FB100)*100","v":100.99999999999997},"--",{"$f":"(Quarterly!FD104-Quarterly!FD100)*100","v":53.000000000000114},{"$f":"(Quarterly!FE104-Quarterly!FE100)*100","v":-248.66666666666663},{"$f":"(Quarterly!FF104-Quarterly!FF100)*100","v":-132.99999999999983},{"$f":"(Quarterly!FG104-Quarterly!FG100)*100","v":-55.666666666666664},{"$f":"(Quarterly!FH104-Quarterly!FH100)*100","v":-12.999999999999901},{"$f":"(Quarterly!FI104-Quarterly!FI100)*100","v":17.999999999999972},null,null,null,null,null,null,{"$f":"((Quarterly!FP104/Quarterly!FP100)-1)","v":3.8458329857345319E-2},{"$f":"((Quarterly!FQ104/Quarterly!FQ100)-1)","v":8.0857669544969646E-2},"--","--",{"$f":"((Quarterly!FT104/Quarterly!FT100)-1)","v":0.14011192771896708},{"$f":"((Quarterly!FU104/Quarterly!FU100)-1)","v":9.1910347433374007E-2},"--","--","--",null,null,null,null,null,{"$f":"((Quarterly!GD104/Quarterly!GD100)-1)","v":-6.7410714285714435E-2},"--","--","--",{"$f":"((Quarterly!GH104/Quarterly!GH100)-1)","v":{"$error":"#DIV/0!"}},"--","--","--","--"]
["82'Q3",{"$f":"((Quarterly!B105/Quarterly!B101)-1)","v":3.2463173865594941E-2},{"$f":"((Quarterly!C105/Quarterly!C101)-1)","v":-2.6423795914605974E-2},{"$f":"((Quarterly!D105/Quarterly!D101)-1)","v":-1.5158588094449699E-2},{"$f":"((Quarterly!E105/Quarterly!E101)-1)","v":1.0525280346252108E-2},{"$f":"((Quarterly!F105/Quarterly!F101)-1)","v":-3.078877063898755E-2},{"$f":"((Quarterly!G105/Quarterly!G101)-1)","v":8.2310105744274331E-3},{"$f":"((Quarterly!H105/Quarterly!H101)-1)","v":1.5038671319144381E-2},{"$f":"((Quarterly!I105/Quarterly!I101)-1)","v":-6.3761097659402743E-2},{"$f":"((Quarterly!J105/Quarterly!J101)-1)","v":-0.19572515069236529},{"$f":"((Quarterly!K105/Quarterly!K101)-1)","v":-0.18453237410071943},{"$f":"((Quarterly!L105-Quarterly!L101))","v":-56.478999999999999},{"$f":"((Quarterly!M105/Quarterly!M101)-1)","v":2.8631462036080357E-2},{"$f":"((Quarterly!N105/Quarterly!N101)-1)","v":-7.6000892160142719E-2},{"$f":"((Quarterly!O105/Quarterly!O101)-1)","v":-19.091217855410182},{"$f":"((Quarterly!P105/Quarterly!P101)-1)","v":2.3208044222007951E-2},{"$f":"((Quarterly!Q105/Quarterly!Q101)-1)","v":1.129006478174003},null,null,null,null,null,{"$f":"((Quarterly!W105/Quarterly!W101)-1)","v":-8.723958333333337E-2},{"$f":"((Quarterly!X105/Quarterly!X101)-1)","v":-8.9434276206323049E-2},{"$f":"((Quarterly!Y105/Quarterly!Y101)-1)","v":0.15344915566446571},"--",{"$f":"((Quarterly!AA105/Quarterly!AA101)-1)","v":-0.14050446029402586},{"$f":"((Quarterly!AB105/Quarterly!AB101)-1)","v":-3.8552041470091392E-2},"--","--","--","--","--","--","--","--","--","--",{"$f":"((Quarterly!AM105/Quarterly!AM101)-1)","v":-6.7370793938317464E-2},{"$f":"((Quarterly!AN105/Quarterly!AN101)-1)","v":-6.4634873658802827E-2},"--","--",{"$f":"Quarterly!AQ105-Quarterly!AQ101","v":-7.3333333333333428},"--","--",{"$f":"Quarterly!AT105-Quarterly!AT101","v":-13.56666666666667},"--","--",{"$f":"Quarterly!AW105-Quarterly!AW101","v":-12.966666666666665},{"$f":"Quarterly!AX105-Quarterly!AX101","v":-5.2666666666666586},{"$f":"Quarterly!AY105-Quarterly!AY101","v":-25.70000000000001},{"$f":"Quarterly!AZ105-Quarterly!AZ101","v":-6.1999999999999957},{"$f":"Quarterly!BA105-Quarterly!BA101","v":-1.13333333333334},"--","--","--","--",{"$f":"((Quarterly!BF105/Quarterly!BF101)-1)","v":6.7125382262996913E-2},{"$f":"((Quarterly!BG105/Quarterly!BG101)-1)","v":-1.5036788342024376E-2},{"$f":"((Quarterly!BH105/Quarterly!BH101)-1)","v":8.1165509432932215E-3},{"$f":"((Quarterly!BI105/Quarterly!BI101)-1)","v":8.3447496403863175E-2},{"$f":"((Quarterly!BJ105/Quarterly!BJ101)-1)","v":-0.19026956804157191},"--",null,"--","--",null,null,null,null,null,{"$f":"((Quarterly!BT105/Quarterly!BT101)-1)","v":2.3283324399124616E-2},{"$f":"Quarterly!BU105-Quarterly!BU101","v":0.10609999999999964},{"$f":"Quarterly!BV105-Quarterly!BV101","v":0.24268000000000001},{"$f":"((Quarterly!BW105/Quarterly!BW101)-1)","v":0.16859972318487615},{"$f":"((Quarterly!BX105/Quarterly!BX101)-1)","v":0.16044260027662527},{"$f":"((Quarterly!BY105/Quarterly!BY101)-1)","v":0.12766754024709837},"--",{"$f":"((Quarterly!CA105/Quarterly!CA101)-1)","v":-9.5567619161247785E-2},{"$f":"((Quarterly!CB105/Quarterly!CB101)-1)","v":-0.13868345027932028},{"$f":"((Quarterly!CC105/Quarterly!CC101)-1)","v":-3.3343511059828579E-2},"--","--",null,"--","--",null,{"$f":"((Quarterly!CJ105/Quarterly!CJ101)-1)","v":0.10113339145597222},{"$f":"((Quarterly!CK105/Quarterly!CK101)-1)","v":5.7394281973487171E-2},{"$f":"((Quarterly!CL105/Quarterly!CL101)-1)","v":6.9210624766180118E-2},{"$f":"((Quarterly!CM105/Quarterly!CM101)-1)","v":1.9547325102880597E-2},{"$f":"((Quarterly!CN105/Quarterly!CN101)-1)","v":1.4372736715043688E-2},{"$f":"((Quarterly!CO105/Quarterly!CO101)-1)","v":-2.7586856228226875E-2},{"$f":"((Quarterly!CP105/Quarterly!CP101)-1)","v":4.5693855868129019E-2},{"$f":"((Quarterly!CQ105/Quarterly!CQ101)-1)","v":9.5776646658893849E-3},{"$f":"((Quarterly!CR105/Quarterly!CR101)-1)","v":8.8202725795583747E-2},{"$f":"Quarterly!CS105-Quarterly!CS101","v":-8.0999999999999943},"--",null,null,null,null,null,{"$f":"((Quarterly!CZ105/Quarterly!CZ101)-1)","v":5.8164739884393191E-2},{"$f":"((Quarterly!DA105/Quarterly!DA101)-1)","v":6.8674256334924744E-2},null,null,null,null,null,{"$f":"((Quarterly!DG105/Quarterly!DG101)-1)","v":-4.232558139534881E-2},{"$f":"((Quarterly!DH105-Quarterly!DH101)*60)","v":-22.000000000000028},{"$f":"Quarterly!DI105-Quarterly!DI101","v":0.36666666666666714},"--",{"$f":"(Quarterly!DK105-Quarterly!DK101)*100","v":249.99999999999991},{"$f":"((Quarterly!DL105/Quarterly!DL101)-1)","v":-8.4149702195750575E-2},null,null,null,{"$f":"((Quarterly!DP105/Quarterly!DP101)-1)","v":-2.3950744045993622E-2},null,null,null,null,{"$f":"Quarterly!DU105-Quarterly!DU101","v":1.8666666666666663},"--","--","--","--","--","--","--","--",null,null,null,null,null,{"$f":"((Quarterly!EI105/Quarterly!EI101)-1)","v":-6.5767523247661108E-2},{"$f":"((Quarterly!EJ105/Quarterly!EJ101)-1)","v":-2.6121192328228404E-2},{"$f":"((Quarterly!EK105/Quarterly!EK101)-1)","v":-9.6612342559315723E-3},null,null,null,null,null,{"$f":"((Quarterly!EQ105/Quarterly!EQ101)-1)","v":1.3140161725067268E-2},{"$f":"((Quarterly!ER105/Quarterly!ER101)-1)","v":5.4195804195804165E-2},{"$f":"((Quarterly!ES105/Quarterly!ES101)-1)","v":5.4101221640488806E-2},null,null,null,null,null,{"$f":"(Quarterly!EY105-Quarterly!EY101)*100","v":-560.66666666666652},{"$f":"(Quarterly!EZ105-Quarterly!EZ101)*100","v":-656.99999999999966},{"$f":"(Quarterly!FA105-Quarterly!FA101)*100","v":-116.66666666666697},{"$f":"(Quarterly!FB105-Quarterly!FB101)*100","v":-22.666666666666657},"--",{"$f":"(Quarterly!FD105-Quarterly!FD101)*100","v":-125.33333333333303},{"$f":"(Quarterly!FE105-Quarterly!FE101)*100","v":-573.66666666666652},{"$f":"(Quarterly!FF105-Quarterly!FF101)*100","v":-447.99999999999949},{"$f":"(Quarterly!FG105-Quarterly!FG101)*100","v":-339.66666666666686},{"$f":"(Quarterly!FH105-Quarterly!FH101)*100","v":-232.00000000000003},{"$f":"(Quarterly!FI105-Quarterly!FI101)*100","v":-173.00000000000006},null,null,null,null,null,null,{"$f":"((Quarterly!FP105/Quarterly!FP101)-1)","v":3.1722012820865286E-2},{"$f":"((Quarterly!FQ105/Quarterly!FQ101)-1)","v":9.6010678297488328E-2},"--","--",{"$f":"((Quarterly!FT105/Quarterly!FT101)-1)","v":0.15140441847177},{"$f":"((Quarterly!FU105/Quarterly!FU101)-1)","v":8.2356312957814648E-2},"--","--","--",null,null,null,null,null,{"$f":"((Quarterly!GD105/Quarterly!GD101)-1)","v":-3.9444444444444282E-2},"--","--","--",{"$f":"((Quarterly!GH105/Quarterly!GH101)-1)","v":{"$error":"#DIV/0!"}},"--","--","--","--"]
["82'Q4",{"$f":"((Quarterly!B106/Quarterly!B102)-1)","v":3.7847613061041452E-2},{"$f":"((Quarterly!C106/Quarterly!C102)-1)","v":-1.3970725241897464E-2},{"$f":"((Quarterly!D106/Quarterly!D102)-1)","v":4.5230521107981758E-3},{"$f":"((Quarterly!E106/Quarterly!E102)-1)","v":3.6745211724770188E-2},{"$f":"((Quarterly!F106/Quarterly!F102)-1)","v":9.1869957061293528E-2},{"$f":"((Quarterly!G106/Quarterly!G102)-1)","v":1.470134279981461E-2},{"$f":"((Quarterly!H106/Quarterly!H102)-1)","v":4.1537216814089728E-2},{"$f":"((Quarterly!I106/Quarterly!I102)-1)","v":-0.1003106064463567},{"$f":"((Quarterly!J106/Quarterly!J102)-1)","v":-0.23211047811409447},{"$f":"((Quarterly!K106/Quarterly!K102)-1)","v":-2.52505010020041E-2},{"$f":"((Quarterly!L106-Quarterly!L102))","v":-89.51},{"$f":"((Quarterly!M106/Quarterly!M102)-1)","v":-3.9294668486921647E-2},{"$f":"((Quarterly!N106/Quarterly!N102)-1)","v":-0.12237848181224709},{"$f":"((Quarterly!O106/Quarterly!O102)-1)","v":4.4935832732516223},{"$f":"((Quarterly!P106/Quarterly!P102)-1)","v":2.7974232606582605E-2},{"$f":"((Quarterly!Q106/Quarterly!Q102)-1)","v":0.85526013805765944},null,null,null,null,null,{"$f":"((Quarterly!W106/Quarterly!W102)-1)","v":-7.9514824797843775E-2},{"$f":"((Quarterly!X106/Quarterly!X102)-1)","v":-8.2262210796915092E-2},{"$f":"((Quarterly!Y106/Quarterly!Y102)-1)","v":0.13441777238795094},"--",{"$f":"((Quarterly!AA106/Quarterly!AA102)-1)","v":-0.15150390096688815},{"$f":"((Quarterly!AB106/Quarterly!AB102)-1)","v":-2.9587369762475002E-2},"--","--","--","--","--","--","--","--","--","--",{"$f":"((Quarterly!AM106/Quarterly!AM102)-1)","v":-6.4076146999687111E-2},{"$f":"((Quarterly!AN106/Quarterly!AN102)-1)","v":-6.0215899414640006E-2},"--","--",{"$f":"Quarterly!AQ106-Quarterly!AQ102","v":2.5},"--","--",{"$f":"Quarterly!AT106-Quarterly!AT102","v":-3.8666666666666636},"--","--",{"$f":"Quarterly!AW106-Quarterly!AW102","v":-9.1999999999999886},{"$f":"Quarterly!AX106-Quarterly!AX102","v":5.7666666666666657},{"$f":"Quarterly!AY106-Quarterly!AY102","v":-17.733333333333341},{"$f":"Quarterly!AZ106-Quarterly!AZ102","v":5.2666666666666657},{"$f":"Quarterly!BA106-Quarterly!BA102","v":7.5333333333333314},"--","--","--","--",{"$f":"((Quarterly!BF106/Quarterly!BF102)-1)","v":6.5705079948206624E-2},{"$f":"((Quarterly!BG106/Quarterly!BG102)-1)","v":5.8373845625576681E-3},{"$f":"((Quarterly!BH106/Quarterly!BH102)-1)","v":1.3049657019485572E-2},{"$f":"((Quarterly!BI106/Quarterly!BI102)-1)","v":5.951746201013064E-2},{"$f":"((Quarterly!BJ106/Quarterly!BJ102)-1)","v":-0.22361701834799241},"--",null,"--","--",null,null,null,null,null,{"$f":"((Quarterly!BT106/Quarterly!BT102)-1)","v":2.7293215600621812E-2},{"$f":"Quarterly!BU106-Quarterly!BU102","v":-3.5199999999999676E-3},{"$f":"Quarterly!BV106-Quarterly!BV102","v":9.7680000000000433E-2},{"$f":"((Quarterly!BW106/Quarterly!BW102)-1)","v":0.16683957174869279},{"$f":"((Quarterly!BX106/Quarterly!BX102)-1)","v":0.46870229007633579},{"$f":"((Quarterly!BY106/Quarterly!BY102)-1)","v":0.63912087912087912},"--",{"$f":"((Quarterly!CA106/Quarterly!CA102)-1)","v":0.20356829482304795},{"$f":"((Quarterly!CB106/Quarterly!CB102)-1)","v":-0.15202233811923238},{"$f":"((Quarterly!CC106/Quarterly!CC102)-1)","v":-4.2649396777446724E-2},"--","--",null,"--","--",null,{"$f":"((Quarterly!CJ106/Quarterly!CJ102)-1)","v":0.30125523012552313},{"$f":"((Quarterly!CK106/Quarterly!CK102)-1)","v":6.0220157042043754E-2},{"$f":"((Quarterly!CL106/Quarterly!CL102)-1)","v":-0.10126874279123432},{"$f":"((Quarterly!CM106/Quarterly!CM102)-1)","v":0.51724137931034475},{"$f":"((Quarterly!CN106/Quarterly!CN102)-1)","v":1.6935975289445571E-2},{"$f":"((Quarterly!CO106/Quarterly!CO102)-1)","v":8.4901998835629877E-2},{"$f":"((Quarterly!CP106/Quarterly!CP102)-1)","v":4.3164636763842079E-2},{"$f":"((Quarterly!CQ106/Quarterly!CQ102)-1)","v":9.4114826731670487E-3},{"$f":"((Quarterly!CR106/Quarterly!CR102)-1)","v":8.2944806947180982E-2},{"$f":"Quarterly!CS106-Quarterly!CS102","v":6.7666666666666657},"--",null,null,null,null,null,{"$f":"((Quarterly!CZ106/Quarterly!CZ102)-1)","v":4.4436544614290918E-2},{"$f":"((Quarterly!DA106/Quarterly!DA102)-1)","v":5.1873198847262048E-2},null,null,null,null,null,{"$f":"((Quarterly!DG106/Quarterly!DG102)-1)","v":-4.6500704556129646E-2},{"$f":"((Quarterly!DH106-Quarterly!DH102)*60)","v":-23.999999999999915},{"$f":"Quarterly!DI106-Quarterly!DI102","v":0.36666666666668135},"--",{"$f":"(Quarterly!DK106-Quarterly!DK102)*100","v":243.33333333333317},{"$f":"((Quarterly!DL106/Quarterly!DL102)-1)","v":-8.936918004275507E-2},null,null,null,{"$f":"((Quarterly!DP106/Quarterly!DP102)-1)","v":-2.55481926829626E-2},null,null,null,null,{"$f":"Quarterly!DU106-Quarterly!DU102","v":3.0999999999999996},"--","--","--","--","--","--","--","--",null,null,null,null,null,{"$f":"((Quarterly!EI106/Quarterly!EI102)-1)","v":-4.6595983924091589E-2},{"$f":"((Quarterly!EJ106/Quarterly!EJ102)-1)","v":-1.1643963331551266E-3},{"$f":"((Quarterly!EK106/Quarterly!EK102)-1)","v":9.9107803184403931E-3},null,null,null,null,null,{"$f":"((Quarterly!EQ106/Quarterly!EQ102)-1)","v":1.5177065767284947E-2},{"$f":"((Quarterly!ER106/Quarterly!ER102)-1)","v":4.8093438680865352E-2},{"$f":"((Quarterly!ES106/Quarterly!ES102)-1)","v":4.0341880341880243E-2},null,null,null,null,null,{"$f":"(Quarterly!EY106-Quarterly!EY102)*100","v":-505.66666666666669},{"$f":"(Quarterly!EZ106-Quarterly!EZ102)*100","v":-429.99999999999989},{"$f":"(Quarterly!FA106-Quarterly!FA102)*100","v":-274.00000000000023},{"$f":"(Quarterly!FB106-Quarterly!FB102)*100","v":-229.33333333333331},"--",{"$f":"(Quarterly!FD106-Quarterly!FD102)*100","v":-371.33333333333366},{"$f":"(Quarterly!FE106-Quarterly!FE102)*100","v":-384.33333333333326},{"$f":"(Quarterly!FF106-Quarterly!FF102)*100","v":-441.66666666666663},{"$f":"(Quarterly!FG106-Quarterly!FG102)*100","v":-401.99999999999994},{"$f":"(Quarterly!FH106-Quarterly!FH102)*100","v":-366.33333333333337},{"$f":"(Quarterly!FI106-Quarterly!FI102)*100","v":-342},null,null,null,null,null,null,{"$f":"((Quarterly!FP106/Quarterly!FP102)-1)","v":3.3452673976280822E-2},{"$f":"((Quarterly!FQ106/Quarterly!FQ102)-1)","v":0.13254437869822477},"--","--",{"$f":"((Quarterly!FT106/Quarterly!FT102)-1)","v":0.19978424558704266},{"$f":"((Quarterly!FU106/Quarterly!FU102)-1)","v":0.13131291261892186},"--","--","--",null,null,null,null,null,{"$f":"((Quarterly!GD106/Quarterly!GD102)-1)","v":-4.1981132075471717E-2},"--","--","--",{"$f":"((Quarterly!GH106/Quarterly!GH102)-1)","v":{"$error":"#DIV/0!"}},"--","--","--","--"]
["83'Q1",{"$f":"((Quarterly!B107/Quarterly!B103)-1)","v":6.3080039183715186E-2},{"$f":"((Quarterly!C107/Quarterly!C103)-1)","v":1.5938599280645782E-2},{"$f":"((Quarterly!D107/Quarterly!D103)-1)","v":1.9414223895557914E-2},{"$f":"((Quarterly!E107/Quarterly!E103)-1)","v":3.9899574174810049E-2},{"$f":"((Quarterly!F107/Quarterly!F103)-1)","v":6.8580833942940567E-2},{"$f":"((Quarterly!G107/Quarterly!G103)-1)","v":1.6099214296718234E-2},{"$f":"((Quarterly!H107/Quarterly!H103)-1)","v":4.7452466941481308E-2},{"$f":"((Quarterly!I107/Quarterly!I103)-1)","v":-8.9870605149653615E-2},{"$f":"((Quarterly!J107/Quarterly!J103)-1)","v":-0.18000319437974288},{"$f":"((Quarterly!K107/Quarterly!K103)-1)","v":0.21106382978723404},{"$f":"((Quarterly!L107-Quarterly!L103))","v":-23.41},{"$f":"((Quarterly!M107/Quarterly!M103)-1)","v":1.1541235874008127E-2},{"$f":"((Quarterly!N107/Quarterly!N103)-1)","v":-6.7773992755965407E-2},{"$f":"((Quarterly!O107/Quarterly!O103)-1)","v":2.3347899975722162},{"$f":"((Quarterly!P107/Quarterly!P103)-1)","v":3.8898252163811931E-2},{"$f":"((Quarterly!Q107/Quarterly!Q103)-1)","v":0.55389536280634322},null,null,null,null,null,{"$f":"((Quarterly!W107/Quarterly!W103)-1)","v":-3.0598052851182223E-2},{"$f":"((Quarterly!X107/Quarterly!X103)-1)","v":-4.7996477322765352E-2},{"$f":"((Quarterly!Y107/Quarterly!Y103)-1)","v":9.3385681856371416E-2},"--",{"$f":"((Quarterly!AA107/Quarterly!AA103)-1)","v":-3.6247208097704764E-2},{"$f":"((Quarterly!AB107/Quarterly!AB103)-1)","v":0.15567128517529216},"--","--","--","--","--","--","--","--","--","--",{"$f":"((Quarterly!AM107/Quarterly!AM103)-1)","v":-3.3494854255615714E-2},{"$f":"((Quarterly!AN107/Quarterly!AN103)-1)","v":-1.4448452136907375E-2},"--","--",{"$f":"Quarterly!AQ107-Quarterly!AQ103","v":13.666666666666671},"--","--",{"$f":"Quarterly!AT107-Quarterly!AT103","v":9.0333333333333314},"--","--",{"$f":"Quarterly!AW107-Quarterly!AW103","v":6.3000000000000043},{"$f":"Quarterly!AX107-Quarterly!AX103","v":17.599999999999994},{"$f":"Quarterly!AY107-Quarterly!AY103","v":3.6000000000000085},{"$f":"Quarterly!AZ107-Quarterly!AZ103","v":17.733333333333341},{"$f":"Quarterly!BA107-Quarterly!BA103","v":10.033333333333324},"--","--","--","--",{"$f":"((Quarterly!BF107/Quarterly!BF103)-1)","v":5.0432995743431741E-2},{"$f":"((Quarterly!BG107/Quarterly!BG103)-1)","v":2.6612785787097692E-2},{"$f":"((Quarterly!BH107/Quarterly!BH103)-1)","v":4.8807453248662647E-3},{"$f":"((Quarterly!BI107/Quarterly!BI103)-1)","v":2.3222809960005142E-2},{"$f":"((Quarterly!BJ107/Quarterly!BJ103)-1)","v":-0.13840367353531624},"--",null,"--","--",null,null,null,null,null,{"$f":"((Quarterly!BT107/Quarterly!BT103)-1)","v":3.0386838021080331E-2},{"$f":"Quarterly!BU107-Quarterly!BU103","v":-0.11129999999999995},{"$f":"Quarterly!BV107-Quarterly!BV103","v":-5.0940000000000651E-2},{"$f":"((Quarterly!BW107/Quarterly!BW103)-1)","v":0.16503578645589645},{"$f":"((Quarterly!BX107/Quarterly!BX103)-1)","v":0.85265151515151505},{"$f":"((Quarterly!BY107/Quarterly!BY103)-1)","v":0.75371038908945032},"--",{"$f":"((Quarterly!CA107/Quarterly!CA103)-1)","v":2.2522954858112065E-2},{"$f":"((Quarterly!CB107/Quarterly!CB103)-1)","v":-0.14968497425172556},{"$f":"((Quarterly!CC107/Quarterly!CC103)-1)","v":-6.1245751175254326E-2},"--","--",null,"--","--",null,{"$f":"((Quarterly!CJ107/Quarterly!CJ103)-1)","v":0.57181571815718146},{"$f":"((Quarterly!CK107/Quarterly!CK103)-1)","v":6.1410401217895316E-2},{"$f":"((Quarterly!CL107/Quarterly!CL103)-1)","v":-6.7851180538993638E-2},{"$f":"((Quarterly!CM107/Quarterly!CM103)-1)","v":0.80785002929115413},{"$f":"((Quarterly!CN107/Quarterly!CN103)-1)","v":2.4414643189433871E-2},{"$f":"((Quarterly!CO107/Quarterly!CO103)-1)","v":0.70135135135135163},{"$f":"((Quarterly!CP107/Quarterly!CP103)-1)","v":4.5498528530660165E-2},{"$f":"((Quarterly!CQ107/Quarterly!CQ103)-1)","v":9.3206905496152626E-3},{"$f":"((Quarterly!CR107/Quarterly!CR103)-1)","v":9.080081306548049E-2},{"$f":"Quarterly!CS107-Quarterly!CS103","v":8.7666666666666657},"--",null,null,null,null,null,{"$f":"((Quarterly!CZ107/Quarterly!CZ103)-1)","v":3.5940803382663811E-2},{"$f":"((Quarterly!DA107/Quarterly!DA103)-1)","v":4.5551601423487575E-2},null,null,null,null,null,{"$f":"((Quarterly!DG107/Quarterly!DG103)-1)","v":-2.298850574712652E-2},{"$f":"((Quarterly!DH107-Quarterly!DH103)*60)","v":-1.9999999999998863},{"$f":"Quarterly!DI107-Quarterly!DI103","v":3.3333333333317228E-2},"--",{"$f":"(Quarterly!DK107-Quarterly!DK103)*100","v":153.33333333333331},{"$f":"((Quarterly!DL107/Quarterly!DL103)-1)","v":-6.9833905539575136E-2},null,null,null,{"$f":"((Quarterly!DP107/Quarterly!DP103)-1)","v":-1.6791807365564293E-2},null,null,null,null,{"$f":"Quarterly!DU107-Quarterly!DU103","v":2.9999999999999982},"--","--","--","--","--","--","--","--",null,null,null,null,null,{"$f":"((Quarterly!EI107/Quarterly!EI103)-1)","v":8.5932216342106127E-3},{"$f":"((Quarterly!EJ107/Quarterly!EJ103)-1)","v":2.9045389975782765E-2},{"$f":"((Quarterly!EK107/Quarterly!EK103)-1)","v":3.0984123224599536E-2},null,null,null,null,null,{"$f":"((Quarterly!EQ107/Quarterly!EQ103)-1)","v":6.6867268472083907E-3},{"$f":"((Quarterly!ER107/Quarterly!ER103)-1)","v":3.9335367921329301E-2},{"$f":"((Quarterly!ES107/Quarterly!ES103)-1)","v":3.5871404399323126E-2},null,null,null,null,null,{"$f":"(Quarterly!EY107-Quarterly!EY103)*100","v":-538.99999999999989},{"$f":"(Quarterly!EZ107-Quarterly!EZ103)*100","v":-557.33333333333337},{"$f":"(Quarterly!FA107-Quarterly!FA103)*100","v":-316.66666666666663},{"$f":"(Quarterly!FB107-Quarterly!FB103)*100","v":-320.00000000000011},"--",{"$f":"(Quarterly!FD107-Quarterly!FD103)*100","v":-435.66666666666657},{"$f":"(Quarterly!FE107-Quarterly!FE103)*100","v":-470.66666666666652},{"$f":"(Quarterly!FF107-Quarterly!FF103)*100","v":-547.33333333333348},{"$f":"(Quarterly!FG107-Quarterly!FG103)*100","v":-498.33333333333326},{"$f":"(Quarterly!FH107-Quarterly!FH103)*100","v":-426.66666666666674},{"$f":"(Quarterly!FI107-Quarterly!FI103)*100","v":-372.99999999999989},null,null,null,null,null,null,{"$f":"((Quarterly!FP107/Quarterly!FP103)-1)","v":1.5329050756802687E-2},{"$f":"((Quarterly!FQ107/Quarterly!FQ103)-1)","v":8.0655846306724177E-2},"--","--",{"$f":"((Quarterly!FT107/Quarterly!FT103)-1)","v":0.15107387173924547},{"$f":"((Quarterly!FU107/Quarterly!FU103)-1)","v":6.444514770618448E-2},"--","--","--",null,null,null,null,null,{"$f":"((Quarterly!GD107/Quarterly!GD103)-1)","v":-5.2508254340185245E-2},"--","--","--",{"$f":"((Quarterly!GH107/Quarterly!GH103)-1)","v":{"$error":"#DIV/0!"}},"--","--","--","--"]
["83'Q2",{"$f":"((Quarterly!B108/Quarterly!B104)-1)","v":7.5815579652392051E-2},{"$f":"((Quarterly!C108/Quarterly!C104)-1)","v":3.3491816823539855E-2},{"$f":"((Quarterly!D108/Quarterly!D104)-1)","v":3.4678333301491948E-2},{"$f":"((Quarterly!E108/Quarterly!E104)-1)","v":5.6600534615101727E-2},{"$f":"((Quarterly!F108/Quarterly!F104)-1)","v":0.14231049562682219},{"$f":"((Quarterly!G108/Quarterly!G104)-1)","v":2.9842972336895146E-2},{"$f":"((Quarterly!H108/Quarterly!H104)-1)","v":6.0606199712648356E-2},{"$f":"((Quarterly!I108/Quarterly!I104)-1)","v":-4.6735784869593289E-2},{"$f":"((Quarterly!J108/Quarterly!J104)-1)","v":-6.8815783974095712E-2},{"$f":"((Quarterly!K108/Quarterly!K104)-1)","v":0.39912087912087912},{"$f":"((Quarterly!L108-Quarterly!L104))","v":-2.5019999999999998},{"$f":"((Quarterly!M108/Quarterly!M104)-1)","v":0.10740562694021882},{"$f":"((Quarterly!N108/Quarterly!N104)-1)","v":-7.054132212112818E-2},{"$f":"((Quarterly!O108/Quarterly!O104)-1)","v":16.043285784554953},{"$f":"((Quarterly!P108/Quarterly!P104)-1)","v":4.2570959685704457E-2},{"$f":"((Quarterly!Q108/Quarterly!Q104)-1)","v":0.44149291225551779},null,null,null,null,null,{"$f":"((Quarterly!W108/Quarterly!W104)-1)","v":7.0323488045007654E-3},{"$f":"((Quarterly!X108/Quarterly!X104)-1)","v":-9.8698968147151733E-3},{"$f":"((Quarterly!Y108/Quarterly!Y104)-1)","v":4.4477533316247042E-2},"--",{"$f":"((Quarterly!AA108/Quarterly!AA104)-1)","v":6.9564294808317939E-2},{"$f":"((Quarterly!AB108/Quarterly!AB104)-1)","v":0.16501260661981654},"--","--","--","--","--","--","--","--","--","--",{"$f":"((Quarterly!AM108/Quarterly!AM104)-1)","v":2.3940674743450074E-4},{"$f":"((Quarterly!AN108/Quarterly!AN104)-1)","v":1.9509284175331265E-2},"--","--",{"$f":"Quarterly!AQ108-Quarterly!AQ104","v":18.733333333333341},"--","--",{"$f":"Quarterly!AT108-Quarterly!AT104","v":18.333333333333339},"--","--",{"$f":"Quarterly!AW108-Quarterly!AW104","v":15.900000000000009},{"$f":"Quarterly!AX108-Quarterly!AX104","v":20.833333333333329},{"$f":"Quarterly!AY108-Quarterly!AY104","v":20.233333333333334},{"$f":"Quarterly!AZ108-Quarterly!AZ104","v":21.666666666666664},{"$f":"Quarterly!BA108-Quarterly!BA104","v":11.966666666666654},"--","--","--","--",{"$f":"((Quarterly!BF108/Quarterly!BF104)-1)","v":5.1772306617775321E-2},{"$f":"((Quarterly!BG108/Quarterly!BG104)-1)","v":4.806539509536778E-2},{"$f":"((Quarterly!BH108/Quarterly!BH104)-1)","v":4.6060540569745623E-3},{"$f":"((Quarterly!BI108/Quarterly!BI104)-1)","v":3.508434661412041E-3},{"$f":"((Quarterly!BJ108/Quarterly!BJ104)-1)","v":1.8412743185325375E-3},"--",null,"--","--",null,null,null,null,null,{"$f":"((Quarterly!BT108/Quarterly!BT104)-1)","v":4.1068092397432254E-2},{"$f":"Quarterly!BU108-Quarterly!BU104","v":-0.14688000000000123},{"$f":"Quarterly!BV108-Quarterly!BV104","v":-0.10663000000000089},{"$f":"((Quarterly!BW108/Quarterly!BW104)-1)","v":0.15483328877515956},{"$f":"((Quarterly!BX108/Quarterly!BX104)-1)","v":0.75140646976089998},{"$f":"((Quarterly!BY108/Quarterly!BY104)-1)","v":0.81699346405228757},"--",{"$f":"((Quarterly!CA108/Quarterly!CA104)-1)","v":0.21084357523190733},{"$f":"((Quarterly!CB108/Quarterly!CB104)-1)","v":-0.17750749023788603},{"$f":"((Quarterly!CC108/Quarterly!CC104)-1)","v":-0.10505780901159323},"--","--",null,"--","--",null,{"$f":"((Quarterly!CJ108/Quarterly!CJ104)-1)","v":0.78682525160109806},{"$f":"((Quarterly!CK108/Quarterly!CK104)-1)","v":6.2846647413511647E-2},{"$f":"((Quarterly!CL108/Quarterly!CL104)-1)","v":-0.17615492300513313},{"$f":"((Quarterly!CM108/Quarterly!CM104)-1)","v":0.8058790904048807},{"$f":"((Quarterly!CN108/Quarterly!CN104)-1)","v":2.5784059372196078E-2},{"$f":"((Quarterly!CO108/Quarterly!CO104)-1)","v":0.96355882923047109},{"$f":"((Quarterly!CP108/Quarterly!CP104)-1)","v":5.4470729682881247E-2},{"$f":"((Quarterly!CQ108/Quarterly!CQ104)-1)","v":9.1667793042162771E-3},{"$f":"((Quarterly!CR108/Quarterly!CR104)-1)","v":0.10064298417620487},{"$f":"Quarterly!CS108-Quarterly!CS104","v":25.299999999999983},"--",null,null,null,null,null,{"$f":"((Quarterly!CZ108/Quarterly!CZ104)-1)","v":3.2997568600208416E-2},{"$f":"((Quarterly!DA108/Quarterly!DA104)-1)","v":3.6687631027253254E-2},null,null,null,null,null,{"$f":"((Quarterly!DG108/Quarterly!DG104)-1)","v":-2.4050024050022989E-3},{"$f":"((Quarterly!DH108-Quarterly!DH104)*60)","v":4.000000000000199},{"$f":"Quarterly!DI108-Quarterly!DI104","v":-6.6666666666662877E-2},"--",{"$f":"(Quarterly!DK108-Quarterly!DK104)*100","v":69.999999999999744},{"$f":"((Quarterly!DL108/Quarterly!DL104)-1)","v":-3.9126392288571288E-2},null,null,null,{"$f":"((Quarterly!DP108/Quarterly!DP104)-1)","v":-4.0426028142734882E-3},null,null,null,null,{"$f":"Quarterly!DU108-Quarterly!DU104","v":2.7999999999999989},"--","--","--","--","--","--","--","--",null,null,null,null,null,{"$f":"((Quarterly!EI108/Quarterly!EI104)-1)","v":5.2281239598271467E-2},{"$f":"((Quarterly!EJ108/Quarterly!EJ104)-1)","v":5.4867772837897233E-2},{"$f":"((Quarterly!EK108/Quarterly!EK104)-1)","v":4.932868466866358E-2},null,null,null,null,null,{"$f":"((Quarterly!EQ108/Quarterly!EQ104)-1)","v":9.352037408149716E-3},{"$f":"((Quarterly!ER108/Quarterly!ER104)-1)","v":3.1847133757961776E-2},{"$f":"((Quarterly!ES108/Quarterly!ES104)-1)","v":2.9815745393634741E-2},null,null,null,null,null,{"$f":"(Quarterly!EY108-Quarterly!EY104)*100","v":-600},{"$f":"(Quarterly!EZ108-Quarterly!EZ104)*100","v":-571.00000000000011},{"$f":"(Quarterly!FA108-Quarterly!FA104)*100","v":-293.99999999999994},{"$f":"(Quarterly!FB108-Quarterly!FB104)*100","v":-353.00000000000011},"--",{"$f":"(Quarterly!FD108-Quarterly!FD104)*100","v":-399.66666666666646},{"$f":"(Quarterly!FE108-Quarterly!FE104)*100","v":-402.33333333333337},{"$f":"(Quarterly!FF108-Quarterly!FF104)*100","v":-461.66666666666652},{"$f":"(Quarterly!FG108-Quarterly!FG104)*100","v":-440.33333333333309},{"$f":"(Quarterly!FH108-Quarterly!FH104)*100","v":-383.33333333333337},{"$f":"(Quarterly!FI108-Quarterly!FI104)*100","v":-338.66666666666652},null,null,null,null,null,null,{"$f":"((Quarterly!FP108/Quarterly!FP104)-1)","v":-1.0818337617823359E-2},{"$f":"((Quarterly!FQ108/Quarterly!FQ104)-1)","v":7.3246921115938113E-2},"--","--",{"$f":"((Quarterly!FT108/Quarterly!FT104)-1)","v":0.1383440333112107},{"$f":"((Quarterly!FU108/Quarterly!FU104)-1)","v":4.5773068246347748E-2},"--","--","--",null,null,null,null,null,{"$f":"((Quarterly!GD108/Quarterly!GD104)-1)","v":-0.12292963140258495},"--","--","--",{"$f":"((Quarterly!GH108/Quarterly!GH104)-1)","v":{"$error":"#DIV/0!"}},"--","--","--","--"]
["83'Q3",{"$f":"((Quarterly!B109/Quarterly!B105)-1)","v":9.6577976354530026E-2},{"$f":"((Quarterly!C109/Quarterly!C105)-1)","v":5.7535610778812307E-2},{"$f":"((Quarterly!D109/Quarterly!D105)-1)","v":6.0381709467591804E-2},{"$f":"((Quarterly!E109/Quarterly!E105)-1)","v":6.6898666407086749E-2},{"$f":"((Quarterly!F109/Quarterly!F105)-1)","v":0.17668323542702247},{"$f":"((Quarterly!G109/Quarterly!G105)-1)","v":4.1068787337443791E-2},{"$f":"((Quarterly!H109/Quarterly!H105)-1)","v":6.8493989894995E-2},{"$f":"((Quarterly!I109/Quarterly!I105)-1)","v":2.327586206896548E-2},{"$f":"((Quarterly!J109/Quarterly!J105)-1)","v":9.7813522354027516E-2},{"$f":"((Quarterly!K109/Quarterly!K105)-1)","v":0.54344949272165866},{"$f":"((Quarterly!L109-Quarterly!L105))","v":-9.4890000000000008},{"$f":"((Quarterly!M109/Quarterly!M105)-1)","v":0.14073510746813334},{"$f":"((Quarterly!N109/Quarterly!N105)-1)","v":-1.2796307950492913E-2},{"$f":"((Quarterly!O109/Quarterly!O105)-1)","v":1.5736469452341364},{"$f":"((Quarterly!P109/Quarterly!P105)-1)","v":5.3050405871012174E-2},{"$f":"((Quarterly!Q109/Quarterly!Q105)-1)","v":0.23612817362817351},null,null,null,null,null,{"$f":"((Quarterly!W109/Quarterly!W105)-1)","v":5.8487874465050105E-2},{"$f":"((Quarterly!X109/Quarterly!X105)-1)","v":4.1571493832800455E-2},{"$f":"((Quarterly!Y109/Quarterly!Y105)-1)","v":3.5289116635076168E-2},"--",{"$f":"((Quarterly!AA109/Quarterly!AA105)-1)","v":0.16269294043644456},{"$f":"((Quarterly!AB109/Quarterly!AB105)-1)","v":0.22962846290384142},"--","--","--","--","--","--","--","--","--","--",{"$f":"((Quarterly!AM109/Quarterly!AM105)-1)","v":4.9034441408560836E-2},{"$f":"((Quarterly!AN109/Quarterly!AN105)-1)","v":6.7222973287958565E-2},"--","--",{"$f":"Quarterly!AQ109-Quarterly!AQ105","v":24.56666666666667},"--","--",{"$f":"Quarterly!AT109-Quarterly!AT105","v":24.866666666666667},"--","--",{"$f":"Quarterly!AW109-Quarterly!AW105","v":17.999999999999996},{"$f":"Quarterly!AX109-Quarterly!AX105","v":28.033333333333317},{"$f":"Quarterly!AY109-Quarterly!AY105","v":26.466666666666676},{"$f":"Quarterly!AZ109-Quarterly!AZ105","v":28.966666666666669},{"$f":"Quarterly!BA109-Quarterly!BA105","v":14.266666666666673},"--","--","--","--",{"$f":"((Quarterly!BF109/Quarterly!BF105)-1)","v":4.1438601518842155E-2},{"$f":"((Quarterly!BG109/Quarterly!BG105)-1)","v":5.3613518511803182E-2},{"$f":"((Quarterly!BH109/Quarterly!BH105)-1)","v":2.3544694324915127E-3},{"$f":"((Quarterly!BI109/Quarterly!BI105)-1)","v":-1.1585452591316381E-2},{"$f":"((Quarterly!BJ109/Quarterly!BJ105)-1)","v":0.12812655425243458},"--",null,"--","--",null,null,null,null,null,{"$f":"((Quarterly!BT109/Quarterly!BT105)-1)","v":7.4734494435582777E-2},{"$f":"Quarterly!BU109-Quarterly!BU105","v":-4.2899999999999494E-2},{"$f":"Quarterly!BV109-Quarterly!BV105","v":-4.468999999999923E-2},{"$f":"((Quarterly!BW109/Quarterly!BW105)-1)","v":0.15023366416629158},{"$f":"((Quarterly!BX109/Quarterly!BX105)-1)","v":0.61054827175208581},{"$f":"((Quarterly!BY109/Quarterly!BY105)-1)","v":0.69090305444887123},"--",{"$f":"((Quarterly!CA109/Quarterly!CA105)-1)","v":0.22152232702328334},{"$f":"((Quarterly!CB109/Quarterly!CB105)-1)","v":-0.24350472416682079},{"$f":"((Quarterly!CC109/Quarterly!CC105)-1)","v":-0.18548773043772826},"--","--",null,"--","--",null,{"$f":"((Quarterly!CJ109/Quarterly!CJ105)-1)","v":0.41409342834521001},{"$f":"((Quarterly!CK109/Quarterly!CK105)-1)","v":6.8339841889703878E-2},{"$f":"((Quarterly!CL109/Quarterly!CL105)-1)","v":-0.17459762071378571},{"$f":"((Quarterly!CM109/Quarterly!CM105)-1)","v":0.65438950554994957},{"$f":"((Quarterly!CN109/Quarterly!CN105)-1)","v":3.5713297357133023E-2},{"$f":"((Quarterly!CO109/Quarterly!CO105)-1)","v":0.99816034082106864},{"$f":"((Quarterly!CP109/Quarterly!CP105)-1)","v":7.9696868218133154E-2},{"$f":"((Quarterly!CQ109/Quarterly!CQ105)-1)","v":9.079447315538669E-3},{"$f":"((Quarterly!CR109/Quarterly!CR105)-1)","v":0.12035743127539078},{"$f":"Quarterly!CS109-Quarterly!CS105","v":24.5},"--",null,null,null,null,null,{"$f":"((Quarterly!CZ109/Quarterly!CZ105)-1)","v":2.5264595425059655E-2},{"$f":"((Quarterly!DA109/Quarterly!DA105)-1)","v":3.2302405498281672E-2},null,null,null,null,null,{"$f":"((Quarterly!DG109/Quarterly!DG105)-1)","v":2.2826614861583217E-2},{"$f":"((Quarterly!DH109-Quarterly!DH105)*60)","v":9.9999999999998579},{"$f":"Quarterly!DI109-Quarterly!DI105","v":0.1666666666666714},"--",{"$f":"(Quarterly!DK109-Quarterly!DK105)*100","v":-53.333333333333499},{"$f":"((Quarterly!DL109/Quarterly!DL105)-1)","v":-1.5530361857432062E-3},null,null,null,{"$f":"((Quarterly!DP109/Quarterly!DP105)-1)","v":1.398893568446935E-2},null,null,null,null,{"$f":"Quarterly!DU109-Quarterly!DU105","v":0.66666666666666607},"--","--","--","--","--","--","--","--",null,null,null,null,null,{"$f":"((Quarterly!EI109/Quarterly!EI105)-1)","v":0.10198852117413271},{"$f":"((Quarterly!EJ109/Quarterly!EJ105)-1)","v":8.1011394693208061E-2},{"$f":"((Quarterly!EK109/Quarterly!EK105)-1)","v":6.6951326702682668E-2},null,null,null,null,null,{"$f":"((Quarterly!EQ109/Quarterly!EQ105)-1)","v":1.4632524110409051E-2},{"$f":"((Quarterly!ER109/Quarterly!ER105)-1)","v":2.8524046434494243E-2},{"$f":"((Quarterly!ES109/Quarterly!ES105)-1)","v":2.3841059602648818E-2},null,null,null,null,null,{"$f":"(Quarterly!EY109-Quarterly!EY105)*100","v":-392.00000000000017},{"$f":"(Quarterly!EZ109-Quarterly!EZ105)*100","v":-154.66666666666686},{"$f":"(Quarterly!FA109-Quarterly!FA105)*100","v":-140.99999999999983},{"$f":"(Quarterly!FB109-Quarterly!FB105)*100","v":-272.33333333333383},"--",{"$f":"(Quarterly!FD109-Quarterly!FD105)*100","v":-252.00000000000014},{"$f":"(Quarterly!FE109-Quarterly!FE105)*100","v":-17.666666666666764},{"$f":"(Quarterly!FF109-Quarterly!FF105)*100","v":-154.33333333333366},{"$f":"(Quarterly!FG109-Quarterly!FG105)*100","v":-178.33333333333331},{"$f":"(Quarterly!FH109-Quarterly!FH105)*100","v":-168.33333333333337},{"$f":"(Quarterly!FI109-Quarterly!FI105)*100","v":-148.99999999999983},null,null,null,null,null,null,{"$f":"((Quarterly!FP109/Quarterly!FP105)-1)","v":-1.3680000000000136E-2},{"$f":"((Quarterly!FQ109/Quarterly!FQ105)-1)","v":2.3619616116914655E-2},"--","--",{"$f":"((Quarterly!FT109/Quarterly!FT105)-1)","v":0.11566487964996597},{"$f":"((Quarterly!FU109/Quarterly!FU105)-1)","v":3.2762362007003443E-2},"--","--","--",null,null,null,null,null,{"$f":"((Quarterly!GD109/Quarterly!GD105)-1)","v":-8.7333718912666392E-2},"--","--","--",{"$f":"((Quarterly!GH109/Quarterly!GH105)-1)","v":{"$error":"#DIV/0!"}},"--","--","--","--"]
["83'Q4",{"$f":"((Quarterly!B110/Quarterly!B106)-1)","v":0.11394737382659259},{"$f":"((Quarterly!C110/Quarterly!C106)-1)","v":7.8292157493276004E-2},{"$f":"((Quarterly!D110/Quarterly!D106)-1)","v":5.8984355874857286E-2},{"$f":"((Quarterly!E110/Quarterly!E106)-1)","v":6.4289469910616237E-2},{"$f":"((Quarterly!F110/Quarterly!F106)-1)","v":0.18081244598098567},{"$f":"((Quarterly!G110/Quarterly!G106)-1)","v":4.3046735369053124E-2},{"$f":"((Quarterly!H110/Quarterly!H106)-1)","v":6.3116048739173758E-2},{"$f":"((Quarterly!I110/Quarterly!I106)-1)","v":0.10425038202501535},{"$f":"((Quarterly!J110/Quarterly!J106)-1)","v":0.28706200583579955},{"$f":"((Quarterly!K110/Quarterly!K106)-1)","v":0.49958881578947367},{"$f":"((Quarterly!L110-Quarterly!L106))","v":87.87},{"$f":"((Quarterly!M110/Quarterly!M106)-1)","v":0.24558427033072716},{"$f":"((Quarterly!N110/Quarterly!N106)-1)","v":5.5424386248102753E-2},{"$f":"((Quarterly!O110/Quarterly!O106)-1)","v":1.9029870334400751},{"$f":"((Quarterly!P110/Quarterly!P106)-1)","v":1.9136576190089238E-2},{"$f":"((Quarterly!Q110/Quarterly!Q106)-1)","v":-7.2658498869989319E-2},null,null,null,null,null,{"$f":"((Quarterly!W110/Quarterly!W106)-1)","v":0.1171303074670571},{"$f":"((Quarterly!X110/Quarterly!X106)-1)","v":9.0102707749766475E-2},{"$f":"((Quarterly!Y110/Quarterly!Y106)-1)","v":4.4965410405414463E-2},"--",{"$f":"((Quarterly!AA110/Quarterly!AA106)-1)","v":0.23155683906537128},{"$f":"((Quarterly!AB110/Quarterly!AB106)-1)","v":0.32314585701865828},"--","--","--","--","--","--","--","--","--","--",{"$f":"((Quarterly!AM110/Quarterly!AM106)-1)","v":9.7197311869114955E-2},{"$f":"((Quarterly!AN110/Quarterly!AN106)-1)","v":0.1253186249248146},"--","--",{"$f":"Quarterly!AQ110-Quarterly!AQ106","v":26.300000000000004},"--","--",{"$f":"Quarterly!AT110-Quarterly!AT106","v":27.533333333333342},"--","--",{"$f":"Quarterly!AW110-Quarterly!AW106","v":21.966666666666661},{"$f":"Quarterly!AX110-Quarterly!AX106","v":28.033333333333339},{"$f":"Quarterly!AY110-Quarterly!AY106","v":30.466666666666661},{"$f":"Quarterly!AZ110-Quarterly!AZ106","v":30.766666666666673},{"$f":"Quarterly!BA110-Quarterly!BA106","v":16.800000000000004},"--","--","--","--",{"$f":"((Quarterly!BF110/Quarterly!BF106)-1)","v":3.7947500777033794E-2},{"$f":"((Quarterly!BG110/Quarterly!BG106)-1)","v":4.9177087825212018E-2},{"$f":"((Quarterly!BH110/Quarterly!BH106)-1)","v":7.1489269865243621E-4},{"$f":"((Quarterly!BI110/Quarterly!BI106)-1)","v":-1.0693841605334375E-2},{"$f":"((Quarterly!BJ110/Quarterly!BJ106)-1)","v":0.26877936353160181},"--",null,"--","--",null,null,null,null,null,{"$f":"((Quarterly!BT110/Quarterly!BT106)-1)","v":0.12156862884875275},{"$f":"Quarterly!BU110-Quarterly!BU106","v":5.3350000000000009E-2},{"$f":"Quarterly!BV110-Quarterly!BV106","v":6.0400000000004894E-3},{"$f":"((Quarterly!BW110/Quarterly!BW106)-1)","v":0.14716289987019215},{"$f":"((Quarterly!BX110/Quarterly!BX106)-1)","v":0.34823284823284806},{"$f":"((Quarterly!BY110/Quarterly!BY106)-1)","v":0.34379190131402515},"--",{"$f":"((Quarterly!CA110/Quarterly!CA106)-1)","v":0.22357229647630605},{"$f":"((Quarterly!CB110/Quarterly!CB106)-1)","v":-0.22130114727133332},{"$f":"((Quarterly!CC110/Quarterly!CC106)-1)","v":-0.21425689341788123},"--","--",null,"--","--",null,{"$f":"((Quarterly!CJ110/Quarterly!CJ106)-1)","v":0.31768488745980705},{"$f":"((Quarterly!CK110/Quarterly!CK106)-1)","v":8.1490595886799078E-2},{"$f":"((Quarterly!CL110/Quarterly!CL106)-1)","v":-1.3988706365502868E-2},{"$f":"((Quarterly!CM110/Quarterly!CM106)-1)","v":0.2816558441558441},{"$f":"((Quarterly!CN110/Quarterly!CN106)-1)","v":5.3288426968613578E-2},{"$f":"((Quarterly!CO110/Quarterly!CO106)-1)","v":0.83901261067883026},{"$f":"((Quarterly!CP110/Quarterly!CP106)-1)","v":0.11125915625802274},{"$f":"((Quarterly!CQ110/Quarterly!CQ106)-1)","v":8.9431720147818972E-3},{"$f":"((Quarterly!CR110/Quarterly!CR106)-1)","v":0.16968496419322454},{"$f":"Quarterly!CS110-Quarterly!CS106","v":19.066666666666649},"--",null,null,null,null,null,{"$f":"((Quarterly!CZ110/Quarterly!CZ106)-1)","v":3.2334921715452491E-2},{"$f":"((Quarterly!DA110/Quarterly!DA106)-1)","v":4.2123287671232967E-2},null,null,null,null,null,{"$f":"((Quarterly!DG110/Quarterly!DG106)-1)","v":6.2068965517241281E-2},{"$f":"((Quarterly!DH110-Quarterly!DH106)*60)","v":30},{"$f":"Quarterly!DI110-Quarterly!DI106","v":-6.6666666666677088E-2},"--",{"$f":"(Quarterly!DK110-Quarterly!DK106)*100","v":-213.33333333333329},{"$f":"((Quarterly!DL110/Quarterly!DL106)-1)","v":4.2415199442952467E-2},null,null,null,{"$f":"((Quarterly!DP110/Quarterly!DP106)-1)","v":3.4369394050844937E-2},null,null,null,null,{"$f":"Quarterly!DU110-Quarterly!DU106","v":-0.83333333333333215},"--","--","--","--","--","--","--","--",null,null,null,null,null,{"$f":"((Quarterly!EI110/Quarterly!EI106)-1)","v":0.13970407364898785},{"$f":"((Quarterly!EJ110/Quarterly!EJ106)-1)","v":9.042786527513047E-2},{"$f":"((Quarterly!EK110/Quarterly!EK106)-1)","v":7.2610635250880406E-2},null,null,null,null,null,{"$f":"((Quarterly!EQ110/Quarterly!EQ106)-1)","v":1.8604651162790864E-2},{"$f":"((Quarterly!ER110/Quarterly!ER106)-1)","v":2.0976728941330736E-2},{"$f":"((Quarterly!ES110/Quarterly!ES106)-1)","v":2.1031876437725971E-2},null,null,null,null,null,{"$f":"(Quarterly!EY110-Quarterly!EY106)*100","v":-95.666666666666515},{"$f":"(Quarterly!EZ110-Quarterly!EZ106)*100","v":14.333333333333265},{"$f":"(Quarterly!FA110-Quarterly!FA106)*100","v":53.333333333333677},{"$f":"(Quarterly!FB110-Quarterly!FB106)*100","v":-78.333333333333314},"--",{"$f":"(Quarterly!FD110-Quarterly!FD106)*100","v":-55.333333333333101},{"$f":"(Quarterly!FE110-Quarterly!FE106)*100","v":89.333333333333172},{"$f":"(Quarterly!FF110-Quarterly!FF106)*100","v":82.333333333333229},{"$f":"(Quarterly!FG110-Quarterly!FG106)*100","v":80.666666666666487},{"$f":"(Quarterly!FH110-Quarterly!FH106)*100","v":94.333333333333158},{"$f":"(Quarterly!FI110-Quarterly!FI106)*100","v":101.99999999999996},null,null,null,null,null,null,{"$f":"((Quarterly!FP110/Quarterly!FP106)-1)","v":5.6295333982896434E-3},{"$f":"((Quarterly!FQ110/Quarterly!FQ106)-1)","v":3.2022112111098622E-3},"--","--",{"$f":"((Quarterly!FT110/Quarterly!FT106)-1)","v":0.10861484449327974},{"$f":"((Quarterly!FU110/Quarterly!FU106)-1)","v":2.1229533409015122E-2},"--","--","--",null,null,null,null,null,{"$f":"((Quarterly!GD110/Quarterly!GD106)-1)","v":-0.11875923190546533},"--","--","--",{"$f":"((Quarterly!GH110/Quarterly!GH106)-1)","v":{"$error":"#DIV/0!"}},"--","--","--","--"]
["84'Q1",{"$f":"((Quarterly!B111/Quarterly!B107)-1)","v":0.12425664184424368},{"$f":"((Quarterly!C111/Quarterly!C107)-1)","v":8.5498181486506342E-2},{"$f":"((Quarterly!D111/Quarterly!D107)-1)","v":5.5044445536979847E-2},{"$f":"((Quarterly!E111/Quarterly!E107)-1)","v":6.2985230070062403E-2},{"$f":"((Quarterly!F111/Quarterly!F107)-1)","v":0.21320383364709916},{"$f":"((Quarterly!G111/Quarterly!G107)-1)","v":4.2320521567735359E-2},{"$f":"((Quarterly!H111/Quarterly!H107)-1)","v":5.8682887791793981E-2},{"$f":"((Quarterly!I111/Quarterly!I107)-1)","v":0.15636039865582907},{"$f":"((Quarterly!J111/Quarterly!J107)-1)","v":0.38399269575995953},{"$f":"((Quarterly!K111/Quarterly!K107)-1)","v":0.31728742094167228},{"$f":"((Quarterly!L111-Quarterly!L107))","v":150.398},{"$f":"((Quarterly!M111/Quarterly!M107)-1)","v":0.31560098248950164},{"$f":"((Quarterly!N111/Quarterly!N107)-1)","v":6.0345798436379328E-2},{"$f":"((Quarterly!O111/Quarterly!O107)-1)","v":2.4056979227334518},{"$f":"((Quarterly!P111/Quarterly!P107)-1)","v":2.128360910031013E-2},{"$f":"((Quarterly!Q111/Quarterly!Q107)-1)","v":-0.13141567691371026},null,null,null,null,null,{"$f":"((Quarterly!W111/Quarterly!W107)-1)","v":0.12338593974175027},{"$f":"((Quarterly!X111/Quarterly!X107)-1)","v":0.10777058279370944},{"$f":"((Quarterly!Y111/Quarterly!Y107)-1)","v":7.606722024408441E-2},"--",{"$f":"((Quarterly!AA111/Quarterly!AA107)-1)","v":0.26144894663527318},{"$f":"((Quarterly!AB111/Quarterly!AB107)-1)","v":0.28995138931230002},"--","--","--","--","--","--","--","--","--","--",{"$f":"((Quarterly!AM111/Quarterly!AM107)-1)","v":0.1165775097513968},{"$f":"((Quarterly!AN111/Quarterly!AN107)-1)","v":0.13476570874899485},"--","--",{"$f":"Quarterly!AQ111-Quarterly!AQ107","v":8.7999999999999901},"--","--",{"$f":"Quarterly!AT111-Quarterly!AT107","v":11.633333333333333},"--","--",{"$f":"Quarterly!AW111-Quarterly!AW107","v":12.500000000000007},{"$f":"Quarterly!AX111-Quarterly!AX107","v":5.9333333333333513},{"$f":"Quarterly!AY111-Quarterly!AY107","v":22.93333333333333},{"$f":"Quarterly!AZ111-Quarterly!AZ107","v":5.0333333333333314},{"$f":"Quarterly!BA111-Quarterly!BA107","v":14.666666666666679},"--","--","--","--",{"$f":"((Quarterly!BF111/Quarterly!BF107)-1)","v":3.9460078808372767E-2},{"$f":"((Quarterly!BG111/Quarterly!BG107)-1)","v":3.7058051703961148E-2},{"$f":"((Quarterly!BH111/Quarterly!BH107)-1)","v":-5.6754907353987472E-3},{"$f":"((Quarterly!BI111/Quarterly!BI107)-1)","v":2.3010969612911047E-3},{"$f":"((Quarterly!BJ111/Quarterly!BJ107)-1)","v":0.39700224073131762},"--",null,"--","--",null,null,null,null,null,{"$f":"((Quarterly!BT111/Quarterly!BT107)-1)","v":0.15894992711267109},{"$f":"Quarterly!BU111-Quarterly!BU107","v":0.12973999999999997},{"$f":"Quarterly!BV111-Quarterly!BV107","v":3.0509999999999593E-2},{"$f":"((Quarterly!BW111/Quarterly!BW107)-1)","v":0.13958952800847624},{"$f":"((Quarterly!BX111/Quarterly!BX107)-1)","v":0.18994070742179514},{"$f":"((Quarterly!BY111/Quarterly!BY107)-1)","v":0.26440988106129937},"--",{"$f":"((Quarterly!CA111/Quarterly!CA107)-1)","v":0.31707393385688798},{"$f":"((Quarterly!CB111/Quarterly!CB107)-1)","v":-0.10519081435696953},{"$f":"((Quarterly!CC111/Quarterly!CC107)-1)","v":-0.1516931714954185},"--","--",null,"--","--",null,{"$f":"((Quarterly!CJ111/Quarterly!CJ107)-1)","v":0.16551724137931045},{"$f":"((Quarterly!CK111/Quarterly!CK107)-1)","v":9.9116293057579297E-2},{"$f":"((Quarterly!CL111/Quarterly!CL107)-1)","v":0.12907765127286686},{"$f":"((Quarterly!CM111/Quarterly!CM107)-1)","v":0.18697342838626052},{"$f":"((Quarterly!CN111/Quarterly!CN107)-1)","v":6.5625490825406141E-2},{"$f":"((Quarterly!CO111/Quarterly!CO107)-1)","v":0.17610348349029836},{"$f":"((Quarterly!CP111/Quarterly!CP107)-1)","v":0.14466907922362604},{"$f":"((Quarterly!CQ111/Quarterly!CQ107)-1)","v":8.8220008909092318E-3},{"$f":"((Quarterly!CR111/Quarterly!CR107)-1)","v":0.20819216023567333},{"$f":"Quarterly!CS111-Quarterly!CS107","v":24.233333333333334},"--",null,null,null,null,null,{"$f":"((Quarterly!CZ111/Quarterly!CZ107)-1)","v":4.6258503401360729E-2},{"$f":"((Quarterly!DA111/Quarterly!DA107)-1)","v":5.0034036759700307E-2},null,null,null,null,null,{"$f":"((Quarterly!DG111/Quarterly!DG107)-1)","v":7.254901960784288E-2},{"$f":"((Quarterly!DH111-Quarterly!DH107)*60)","v":30},{"$f":"Quarterly!DI111-Quarterly!DI107","v":0.23333333333334139},"--",{"$f":"(Quarterly!DK111-Quarterly!DK107)*100","v":-250},{"$f":"((Quarterly!DL111/Quarterly!DL107)-1)","v":6.06919117353657E-2},null,null,null,{"$f":"((Quarterly!DP111/Quarterly!DP107)-1)","v":4.5898704499234055E-2},null,null,null,null,{"$f":"Quarterly!DU111-Quarterly!DU107","v":-1.8666666666666654},"--","--","--","--","--","--","--","--",null,null,null,null,null,{"$f":"((Quarterly!EI111/Quarterly!EI107)-1)","v":0.14228775935473137},{"$f":"((Quarterly!EJ111/Quarterly!EJ107)-1)","v":8.6092844585332617E-2},{"$f":"((Quarterly!EK111/Quarterly!EK107)-1)","v":7.0362588076480659E-2},null,null,null,null,null,{"$f":"((Quarterly!EQ111/Quarterly!EQ107)-1)","v":2.9558286283626556E-2},{"$f":"((Quarterly!ER111/Quarterly!ER107)-1)","v":2.5774877650897254E-2},{"$f":"((Quarterly!ES111/Quarterly!ES107)-1)","v":2.3195034302515571E-2},null,null,null,null,null,{"$f":"(Quarterly!EY111-Quarterly!EY107)*100","v":18.99999999999995},{"$f":"(Quarterly!EZ111-Quarterly!EZ107)*100","v":103.33333333333331},{"$f":"(Quarterly!FA111-Quarterly!FA107)*100","v":43.99999999999995},{"$f":"(Quarterly!FB111-Quarterly!FB107)*100","v":-8.9999999999999858},"--",{"$f":"(Quarterly!FD111-Quarterly!FD107)*100","v":29.999999999999893},{"$f":"(Quarterly!FE111-Quarterly!FE107)*100","v":106.33333333333326},{"$f":"(Quarterly!FF111-Quarterly!FF107)*100","v":131.66666666666663},{"$f":"(Quarterly!FG111-Quarterly!FG107)*100","v":137.00000000000011},{"$f":"(Quarterly!FH111-Quarterly!FH107)*100","v":151.99999999999977},{"$f":"(Quarterly!FI111-Quarterly!FI107)*100","v":138.00000000000009},null,null,null,null,null,null,{"$f":"((Quarterly!FP111/Quarterly!FP107)-1)","v":2.2646427892578869E-2},{"$f":"((Quarterly!FQ111/Quarterly!FQ107)-1)","v":5.1749680715198032E-2},"--","--",{"$f":"((Quarterly!FT111/Quarterly!FT107)-1)","v":0.12788671821689079},{"$f":"((Quarterly!FU111/Quarterly!FU107)-1)","v":5.4735380447118009E-2},"--","--","--",null,null,null,null,null,{"$f":"((Quarterly!GD111/Quarterly!GD107)-1)","v":1.839028776978413E-2},"--","--","--",{"$f":"((Quarterly!GH111/Quarterly!GH107)-1)","v":{"$error":"#DIV/0!"}},"--","--","--","--"]
["84'Q2",{"$f":"((Quarterly!B112/Quarterly!B108)-1)","v":0.12030545972425144},{"$f":"((Quarterly!C112/Quarterly!C108)-1)","v":7.9919747775325289E-2},{"$f":"((Quarterly!D112/Quarterly!D108)-1)","v":5.9082796153665962E-2},{"$f":"((Quarterly!E112/Quarterly!E108)-1)","v":5.7212486944412166E-2},{"$f":"((Quarterly!F112/Quarterly!F108)-1)","v":0.15700271175626113},{"$f":"((Quarterly!G112/Quarterly!G108)-1)","v":5.2711435796572115E-2},{"$f":"((Quarterly!H112/Quarterly!H108)-1)","v":5.0162471772427164E-2},{"$f":"((Quarterly!I112/Quarterly!I108)-1)","v":0.19338941286430433},{"$f":"((Quarterly!J112/Quarterly!J108)-1)","v":0.43036834762622278},{"$f":"((Quarterly!K112/Quarterly!K108)-1)","v":0.19981149858623937},{"$f":"((Quarterly!L112-Quarterly!L108))","v":99.483999999999995},{"$f":"((Quarterly!M112/Quarterly!M108)-1)","v":0.27285837263543611},{"$f":"((Quarterly!N112/Quarterly!N108)-1)","v":8.3432562839608648E-2},{"$f":"((Quarterly!O112/Quarterly!O108)-1)","v":1.1979855118473841},{"$f":"((Quarterly!P112/Quarterly!P108)-1)","v":3.3734728103082645E-2},{"$f":"((Quarterly!Q112/Quarterly!Q108)-1)","v":-5.8863948694457213E-2},null,null,null,null,null,{"$f":"((Quarterly!W112/Quarterly!W108)-1)","v":0.10474860335195535},{"$f":"((Quarterly!X112/Quarterly!X108)-1)","v":9.6964204802900023E-2},{"$f":"((Quarterly!Y112/Quarterly!Y108)-1)","v":0.13362020656231},"--",{"$f":"((Quarterly!AA112/Quarterly!AA108)-1)","v":0.13091183634780501},{"$f":"((Quarterly!AB112/Quarterly!AB108)-1)","v":0.2040695205496974},"--","--","--","--","--","--","--","--","--","--",{"$f":"((Quarterly!AM112/Quarterly!AM108)-1)","v":0.10944815406699027},{"$f":"((Quarterly!AN112/Quarterly!AN108)-1)","v":0.11913442082440895},"--","--",{"$f":"Quarterly!AQ112-Quarterly!AQ108","v":3.2999999999999901},"--","--",{"$f":"Quarterly!AT112-Quarterly!AT108","v":6.4666666666666615},"--","--",{"$f":"Quarterly!AW112-Quarterly!AW108","v":8.9999999999999858},{"$f":"Quarterly!AX112-Quarterly!AX108","v":-0.19999999999999574},{"$f":"Quarterly!AY112-Quarterly!AY108","v":7.0000000000000071},{"$f":"Quarterly!AZ112-Quarterly!AZ108","v":0.33333333333332149},{"$f":"Quarterly!BA112-Quarterly!BA108","v":7.3000000000000114},"--","--","--","--",{"$f":"((Quarterly!BF112/Quarterly!BF108)-1)","v":3.9207548213939791E-2},{"$f":"((Quarterly!BG112/Quarterly!BG108)-1)","v":2.0018718801996682E-2},{"$f":"((Quarterly!BH112/Quarterly!BH108)-1)","v":-3.2941619383116683E-3},{"$f":"((Quarterly!BI112/Quarterly!BI108)-1)","v":1.8821839080459757E-2},{"$f":"((Quarterly!BJ112/Quarterly!BJ108)-1)","v":0.21995244947756998},"--",null,"--","--",null,null,null,null,null,{"$f":"((Quarterly!BT112/Quarterly!BT108)-1)","v":0.1929074809903546},{"$f":"Quarterly!BU112-Quarterly!BU108","v":0.23384000000000071},{"$f":"Quarterly!BV112-Quarterly!BV108","v":0.12648000000000081},{"$f":"((Quarterly!BW112/Quarterly!BW108)-1)","v":0.11521480305585863},{"$f":"((Quarterly!BX112/Quarterly!BX108)-1)","v":9.7771531820919577E-2},{"$f":"((Quarterly!BY112/Quarterly!BY108)-1)","v":6.5347721822542004E-2},"--",{"$f":"((Quarterly!CA112/Quarterly!CA108)-1)","v":0.19083441657217159},{"$f":"((Quarterly!CB112/Quarterly!CB108)-1)","v":-0.11906201619273693},{"$f":"((Quarterly!CC112/Quarterly!CC108)-1)","v":-0.16998083177949197},"--","--",null,"--","--",null,{"$f":"((Quarterly!CJ112/Quarterly!CJ108)-1)","v":-3.5330261136712782E-2},{"$f":"((Quarterly!CK112/Quarterly!CK108)-1)","v":0.10888151163055104},{"$f":"((Quarterly!CL112/Quarterly!CL108)-1)","v":0.30572075899178719},{"$f":"((Quarterly!CM112/Quarterly!CM108)-1)","v":1.6584766584766486E-2},{"$f":"((Quarterly!CN112/Quarterly!CN108)-1)","v":7.5753671734088979E-2},{"$f":"((Quarterly!CO112/Quarterly!CO108)-1)","v":3.7561697926949522E-2},{"$f":"((Quarterly!CP112/Quarterly!CP108)-1)","v":0.17649992146029003},{"$f":"((Quarterly!CQ112/Quarterly!CQ108)-1)","v":8.7928403396306809E-3},{"$f":"((Quarterly!CR112/Quarterly!CR108)-1)","v":0.25662042996662349},{"$f":"Quarterly!CS112-Quarterly!CS108","v":5.0333333333333456},"--",null,null,null,null,null,{"$f":"((Quarterly!CZ112/Quarterly!CZ108)-1)","v":4.4048419636852909E-2},{"$f":"((Quarterly!DA112/Quarterly!DA108)-1)","v":5.2578361981799882E-2},null,null,null,null,null,{"$f":"((Quarterly!DG112/Quarterly!DG108)-1)","v":6.7502410800385659E-2},{"$f":"((Quarterly!DH112-Quarterly!DH108)*60)","v":15.999999999999943},{"$f":"Quarterly!DI112-Quarterly!DI108","v":0.53333333333333144},"--",{"$f":"(Quarterly!DK112-Quarterly!DK108)*100","v":-269.99999999999994},{"$f":"((Quarterly!DL112/Quarterly!DL108)-1)","v":6.1533600584529502E-2},null,null,null,{"$f":"((Quarterly!DP112/Quarterly!DP108)-1)","v":4.9585363768487767E-2},null,null,null,null,{"$f":"Quarterly!DU112-Quarterly!DU108","v":-3.2333333333333343},"--","--","--","--","--","--","--","--",null,null,null,null,null,{"$f":"((Quarterly!EI112/Quarterly!EI108)-1)","v":0.12715848517900419},{"$f":"((Quarterly!EJ112/Quarterly!EJ108)-1)","v":7.4772966683618769E-2},{"$f":"((Quarterly!EK112/Quarterly!EK108)-1)","v":6.2429598284219567E-2},null,null,null,null,null,{"$f":"((Quarterly!EQ112/Quarterly!EQ108)-1)","v":3.275976174718731E-2},{"$f":"((Quarterly!ER112/Quarterly!ER108)-1)","v":2.6965562053281378E-2},{"$f":"((Quarterly!ES112/Quarterly!ES108)-1)","v":2.6675341574495803E-2},null,null,null,null,null,{"$f":"(Quarterly!EY112-Quarterly!EY108)*100","v":180.66666666666666},{"$f":"(Quarterly!EZ112-Quarterly!EZ108)*100","v":175.33333333333337},{"$f":"(Quarterly!FA112-Quarterly!FA108)*100","v":164.33333333333326},{"$f":"(Quarterly!FB112-Quarterly!FB108)*100","v":145.00000000000011},"--",{"$f":"(Quarterly!FD112-Quarterly!FD108)*100","v":124.33333333333323},{"$f":"(Quarterly!FE112-Quarterly!FE108)*100","v":140.00000000000003},{"$f":"(Quarterly!FF112-Quarterly!FF108)*100","v":236.66666666666654},{"$f":"(Quarterly!FG112-Quarterly!FG108)*100","v":260.99999999999994},{"$f":"(Quarterly!FH112-Quarterly!FH108)*100","v":277.99999999999994},{"$f":"(Quarterly!FI112-Quarterly!FI108)*100","v":265.66666666666663},null,null,null,null,null,null,{"$f":"((Quarterly!FP112/Quarterly!FP108)-1)","v":4.9810503519220228E-2},{"$f":"((Quarterly!FQ112/Quarterly!FQ108)-1)","v":8.6832156836506247E-2},"--","--",{"$f":"((Quarterly!FT112/Quarterly!FT108)-1)","v":0.11815017423412977},{"$f":"((Quarterly!FU112/Quarterly!FU108)-1)","v":4.7388420610484872E-2},"--","--","--",null,null,null,null,null,{"$f":"((Quarterly!GD112/Quarterly!GD108)-1)","v":-5.5124986355202799E-3},"--","--","--",{"$f":"((Quarterly!GH112/Quarterly!GH108)-1)","v":{"$error":"#DIV/0!"}},"--","--","--","--"]
["84'Q3",{"$f":"((Quarterly!B113/Quarterly!B109)-1)","v":0.10701340670489623},{"$f":"((Quarterly!C113/Quarterly!C109)-1)","v":6.960196337562774E-2},{"$f":"((Quarterly!D113/Quarterly!D109)-1)","v":4.9618933425500389E-2},{"$f":"((Quarterly!E113/Quarterly!E109)-1)","v":4.6965169590109657E-2},{"$f":"((Quarterly!F113/Quarterly!F109)-1)","v":0.11451612903225827},{"$f":"((Quarterly!G113/Quarterly!G109)-1)","v":3.7732715832979657E-2},{"$f":"((Quarterly!H113/Quarterly!H109)-1)","v":4.4543737369099112E-2},{"$f":"((Quarterly!I113/Quarterly!I109)-1)","v":0.18020490800880484},{"$f":"((Quarterly!J113/Quarterly!J109)-1)","v":0.37013410419676518},{"$f":"((Quarterly!K113/Quarterly!K109)-1)","v":8.1166047442126521E-2},{"$f":"((Quarterly!L113-Quarterly!L109))","v":97.983000000000004},{"$f":"((Quarterly!M113/Quarterly!M109)-1)","v":0.21144075413140873},{"$f":"((Quarterly!N113/Quarterly!N109)-1)","v":9.0918617445522765E-2},{"$f":"((Quarterly!O113/Quarterly!O109)-1)","v":0.6429070143078961},{"$f":"((Quarterly!P113/Quarterly!P109)-1)","v":2.5457621376114847E-2},{"$f":"((Quarterly!Q113/Quarterly!Q109)-1)","v":-0.1011590081944963},null,null,null,null,null,{"$f":"((Quarterly!W113/Quarterly!W109)-1)","v":6.7385444743935263E-2},{"$f":"((Quarterly!X113/Quarterly!X109)-1)","v":6.315789473684208E-2},{"$f":"((Quarterly!Y113/Quarterly!Y109)-1)","v":0.14526718762077118},"--",{"$f":"((Quarterly!AA113/Quarterly!AA109)-1)","v":1.940333446042608E-2},{"$f":"((Quarterly!AB113/Quarterly!AB109)-1)","v":0.19478164906195805},"--","--","--","--","--","--","--","--","--","--",{"$f":"((Quarterly!AM113/Quarterly!AM109)-1)","v":8.0450488982314328E-2},{"$f":"((Quarterly!AN113/Quarterly!AN109)-1)","v":8.8350714333019331E-2},"--","--",{"$f":"Quarterly!AQ113-Quarterly!AQ109","v":-10.033333333333331},"--","--",{"$f":"Quarterly!AT113-Quarterly!AT109","v":-4.1666666666666714},"--","--",{"$f":"Quarterly!AW113-Quarterly!AW109","v":1.6666666666666643},{"$f":"Quarterly!AX113-Quarterly!AX109","v":-16.66666666666665},{"$f":"Quarterly!AY113-Quarterly!AY109","v":-9.06666666666667},{"$f":"Quarterly!AZ113-Quarterly!AZ109","v":-14.833333333333336},{"$f":"Quarterly!BA113-Quarterly!BA109","v":-4.2333333333333272},"--","--","--","--",{"$f":"((Quarterly!BF113/Quarterly!BF109)-1)","v":4.8127459343441314E-2},{"$f":"((Quarterly!BG113/Quarterly!BG109)-1)","v":1.7053569892103049E-2},{"$f":"((Quarterly!BH113/Quarterly!BH109)-1)","v":7.1143150278092371E-3},{"$f":"((Quarterly!BI113/Quarterly!BI109)-1)","v":3.0590379941153767E-2},{"$f":"((Quarterly!BJ113/Quarterly!BJ109)-1)","v":3.7125791082983639E-2},"--",null,"--","--",null,null,null,null,null,{"$f":"((Quarterly!BT113/Quarterly!BT109)-1)","v":0.19910130404027715},{"$f":"Quarterly!BU113-Quarterly!BU109","v":0.33567000000000036},{"$f":"Quarterly!BV113-Quarterly!BV109","v":0.29300999999999888},{"$f":"((Quarterly!BW113/Quarterly!BW109)-1)","v":0.10022349936143038},{"$f":"((Quarterly!BX113/Quarterly!BX109)-1)","v":-7.1970397779833495E-2},{"$f":"((Quarterly!BY113/Quarterly!BY109)-1)","v":-8.5411348910269025E-2},"--",{"$f":"((Quarterly!CA113/Quarterly!CA109)-1)","v":0.13726072518156518},{"$f":"((Quarterly!CB113/Quarterly!CB109)-1)","v":-1.3785286086270943E-2},{"$f":"((Quarterly!CC113/Quarterly!CC109)-1)","v":-8.2238934282191423E-2},"--","--",null,"--","--",null,{"$f":"((Quarterly!CJ113/Quarterly!CJ109)-1)","v":3.4714445688689644E-2},{"$f":"((Quarterly!CK113/Quarterly!CK109)-1)","v":0.11232336290286615},{"$f":"((Quarterly!CL113/Quarterly!CL109)-1)","v":0.39070227497527199},{"$f":"((Quarterly!CM113/Quarterly!CM109)-1)","v":-8.1732235437633416E-2},{"$f":"((Quarterly!CN113/Quarterly!CN109)-1)","v":7.430762448063466E-2},{"$f":"((Quarterly!CO113/Quarterly!CO109)-1)","v":5.8147986625978199E-4},{"$f":"((Quarterly!CP113/Quarterly!CP109)-1)","v":0.19211719874901068},{"$f":"((Quarterly!CQ113/Quarterly!CQ109)-1)","v":8.7390495359689346E-3},{"$f":"((Quarterly!CR113/Quarterly!CR109)-1)","v":0.27389705797902453},{"$f":"Quarterly!CS113-Quarterly!CS109","v":7.6666666666666714},"--",null,null,null,null,null,{"$f":"((Quarterly!CZ113/Quarterly!CZ109)-1)","v":4.2957042957043168E-2},{"$f":"((Quarterly!DA113/Quarterly!DA109)-1)","v":5.259653794940089E-2},null,null,null,null,null,{"$f":"((Quarterly!DG113/Quarterly!DG109)-1)","v":5.9829059829059617E-2},{"$f":"((Quarterly!DH113-Quarterly!DH109)*60)","v":7.9999999999999716},{"$f":"Quarterly!DI113-Quarterly!DI109","v":0.23333333333333428},"--",{"$f":"(Quarterly!DK113-Quarterly!DK109)*100","v":-193.33333333333317},{"$f":"((Quarterly!DL113/Quarterly!DL109)-1)","v":5.1213252449836766E-2},null,null,null,{"$f":"((Quarterly!DP113/Quarterly!DP109)-1)","v":4.9117243459802395E-2},null,null,null,null,{"$f":"Quarterly!DU113-Quarterly!DU109","v":-2.1000000000000005},"--","--","--","--","--","--","--","--",null,null,null,null,null,{"$f":"((Quarterly!EI113/Quarterly!EI109)-1)","v":9.785095886986972E-2},{"$f":"((Quarterly!EJ113/Quarterly!EJ109)-1)","v":5.5476183928293343E-2},{"$f":"((Quarterly!EK113/Quarterly!EK109)-1)","v":4.9237910152654107E-2},null,null,null,null,null,{"$f":"((Quarterly!EQ113/Quarterly!EQ109)-1)","v":2.0648967551622377E-2},{"$f":"((Quarterly!ER113/Quarterly!ER109)-1)","v":2.4830699774266218E-2},{"$f":"((Quarterly!ES113/Quarterly!ES109)-1)","v":2.5226390685640476E-2},null,null,null,null,null,{"$f":"(Quarterly!EY113-Quarterly!EY109)*100","v":219.33333333333334},{"$f":"(Quarterly!EZ113-Quarterly!EZ109)*100","v":193.00000000000014},{"$f":"(Quarterly!FA113-Quarterly!FA109)*100","v":64.666666666666657},{"$f":"(Quarterly!FB113-Quarterly!FB109)*100","v":118.33333333333354},"--",{"$f":"(Quarterly!FD113-Quarterly!FD109)*100","v":84.333333333333371},{"$f":"(Quarterly!FE113-Quarterly!FE109)*100","v":117.99999999999997},{"$f":"(Quarterly!FF113-Quarterly!FF109)*100","v":151.33333333333354},{"$f":"(Quarterly!FG113-Quarterly!FG109)*100","v":165.3333333333336},{"$f":"(Quarterly!FH113-Quarterly!FH109)*100","v":140.33333333333326},{"$f":"(Quarterly!FI113-Quarterly!FI109)*100","v":123.99999999999984},null,null,null,null,null,null,{"$f":"((Quarterly!FP113/Quarterly!FP109)-1)","v":6.5725795549787636E-2},{"$f":"((Quarterly!FQ113/Quarterly!FQ109)-1)","v":0.20958174140357921},"--","--",{"$f":"((Quarterly!FT113/Quarterly!FT109)-1)","v":0.14009877015426264},{"$f":"((Quarterly!FU113/Quarterly!FU109)-1)","v":7.3460380489620114E-2},"--","--","--",null,null,null,null,null,{"$f":"((Quarterly!GD113/Quarterly!GD109)-1)","v":-7.7809463455851491E-2},"--","--","--",{"$f":"((Quarterly!GH113/Quarterly!GH109)-1)","v":{"$error":"#DIV/0!"}},"--","--","--","--"]
["84'Q4",{"$f":"((Quarterly!B114/Quarterly!B110)-1)","v":9.2590568108866789E-2},{"$f":"((Quarterly!C114/Quarterly!C110)-1)","v":5.6349442240072101E-2},{"$f":"((Quarterly!D114/Quarterly!D110)-1)","v":5.0602729369167099E-2},{"$f":"((Quarterly!E114/Quarterly!E110)-1)","v":4.4350130243420383E-2},{"$f":"((Quarterly!F114/Quarterly!F110)-1)","v":9.661835748792269E-2},{"$f":"((Quarterly!G114/Quarterly!G110)-1)","v":3.3121878303984831E-2},{"$f":"((Quarterly!H114/Quarterly!H110)-1)","v":4.3942035433139015E-2},{"$f":"((Quarterly!I114/Quarterly!I110)-1)","v":0.13907539336784369},{"$f":"((Quarterly!J114/Quarterly!J110)-1)","v":0.25679409877259318},{"$f":"((Quarterly!K114/Quarterly!K110)-1)","v":3.8387715930902067E-2},{"$f":"((Quarterly!L114-Quarterly!L110))","v":29.448999999999998},{"$f":"((Quarterly!M114/Quarterly!M110)-1)","v":0.18862919632670949},{"$f":"((Quarterly!N114/Quarterly!N110)-1)","v":9.1083147862808911E-2},{"$f":"((Quarterly!O114/Quarterly!O110)-1)","v":0.49773051953923275},{"$f":"((Quarterly!P114/Quarterly!P110)-1)","v":6.2836830638688168E-2},{"$f":"((Quarterly!Q114/Quarterly!Q110)-1)","v":5.2954274925091305E-2},null,null,null,null,null,{"$f":"((Quarterly!W114/Quarterly!W110)-1)","v":3.5386631716906924E-2},{"$f":"((Quarterly!X114/Quarterly!X110)-1)","v":3.0835117773019283E-2},{"$f":"((Quarterly!Y114/Quarterly!Y110)-1)","v":0.14753221816790352},"--",{"$f":"((Quarterly!AA114/Quarterly!AA110)-1)","v":-1.1673823227864588E-4},{"$f":"((Quarterly!AB114/Quarterly!AB110)-1)","v":0.15251223378592593},"--","--","--","--","--","--","--","--","--","--",{"$f":"((Quarterly!AM114/Quarterly!AM110)-1)","v":5.3315857081806417E-2},{"$f":"((Quarterly!AN114/Quarterly!AN110)-1)","v":6.2155214425783978E-2},"--","--",{"$f":"Quarterly!AQ114-Quarterly!AQ110","v":-16.200000000000003},"--","--",{"$f":"Quarterly!AT114-Quarterly!AT110","v":-12.333333333333343},"--","--",{"$f":"Quarterly!AW114-Quarterly!AW110","v":-9.3666666666666529},{"$f":"Quarterly!AX114-Quarterly!AX110","v":-18.600000000000009},{"$f":"Quarterly!AY114-Quarterly!AY110","v":-17.133333333333326},{"$f":"Quarterly!AZ114-Quarterly!AZ110","v":-19.600000000000009},{"$f":"Quarterly!BA114-Quarterly!BA110","v":-15.400000000000013},"--","--","--","--",{"$f":"((Quarterly!BF114/Quarterly!BF110)-1)","v":4.5026406054336388E-2},{"$f":"((Quarterly!BG114/Quarterly!BG110)-1)","v":1.2775503913140307E-2},{"$f":"((Quarterly!BH114/Quarterly!BH110)-1)","v":5.0950262838658222E-3},{"$f":"((Quarterly!BI114/Quarterly!BI110)-1)","v":3.1856043746423479E-2},{"$f":"((Quarterly!BJ114/Quarterly!BJ110)-1)","v":1.8654239822260665E-2},"--",null,"--","--",null,null,null,null,null,{"$f":"((Quarterly!BT114/Quarterly!BT110)-1)","v":0.19015192323276642},{"$f":"Quarterly!BU114-Quarterly!BU110","v":0.44276999999999944},{"$f":"Quarterly!BV114-Quarterly!BV110","v":0.49326999999999899},{"$f":"((Quarterly!BW114/Quarterly!BW110)-1)","v":9.5771394912653296E-2},{"$f":"((Quarterly!BX114/Quarterly!BX110)-1)","v":-5.724749421742481E-2},{"$f":"((Quarterly!BY114/Quarterly!BY110)-1)","v":-5.0289363400518816E-2},"--",{"$f":"((Quarterly!CA114/Quarterly!CA110)-1)","v":6.9811320754716855E-2},{"$f":"((Quarterly!CB114/Quarterly!CB110)-1)","v":-2.6601225239043291E-2},{"$f":"((Quarterly!CC114/Quarterly!CC110)-1)","v":-6.6308108621190631E-2},"--","--",null,"--","--",null,{"$f":"((Quarterly!CJ114/Quarterly!CJ110)-1)","v":-8.1991215226939973E-2},{"$f":"((Quarterly!CK114/Quarterly!CK110)-1)","v":9.9231761098289351E-2},{"$f":"((Quarterly!CL114/Quarterly!CL110)-1)","v":0.24482623975009754},{"$f":"((Quarterly!CM114/Quarterly!CM110)-1)","v":1.2349588347055018E-2},{"$f":"((Quarterly!CN114/Quarterly!CN110)-1)","v":6.0296348608495531E-2},{"$f":"((Quarterly!CO114/Quarterly!CO110)-1)","v":1.4541387024608721E-2},{"$f":"((Quarterly!CP114/Quarterly!CP110)-1)","v":0.18691423346397129},{"$f":"((Quarterly!CQ114/Quarterly!CQ110)-1)","v":8.8355406823401594E-3},{"$f":"((Quarterly!CR114/Quarterly!CR110)-1)","v":0.27634534876268946},{"$f":"Quarterly!CS114-Quarterly!CS110","v":3.4333333333333371},"--",null,null,null,null,null,{"$f":"((Quarterly!CZ114/Quarterly!CZ110)-1)","v":4.1543026706231556E-2},{"$f":"((Quarterly!DA114/Quarterly!DA110)-1)","v":4.9622083470259648E-2},null,null,null,null,null,{"$f":"((Quarterly!DG114/Quarterly!DG110)-1)","v":4.3135435992579074E-2},{"$f":"((Quarterly!DH114-Quarterly!DH110)*60)","v":-7.9999999999999716},{"$f":"Quarterly!DI114-Quarterly!DI110","v":0.43333333333333712},"--",{"$f":"(Quarterly!DK114-Quarterly!DK110)*100","v":-123.33333333333326},{"$f":"((Quarterly!DL114/Quarterly!DL110)-1)","v":3.1795713495047284E-2},null,null,null,{"$f":"((Quarterly!DP114/Quarterly!DP110)-1)","v":4.3901660280970534E-2},null,null,null,null,{"$f":"Quarterly!DU114-Quarterly!DU110","v":-1.9000000000000012},"--","--","--","--","--","--","--","--",null,null,null,null,null,{"$f":"((Quarterly!EI114/Quarterly!EI110)-1)","v":7.1661629364153878E-2},{"$f":"((Quarterly!EJ114/Quarterly!EJ110)-1)","v":4.4931371670948517E-2},{"$f":"((Quarterly!EK114/Quarterly!EK110)-1)","v":4.2912817197311659E-2},null,null,null,null,null,{"$f":"((Quarterly!EQ114/Quarterly!EQ110)-1)","v":1.3046314416177429E-2},{"$f":"((Quarterly!ER114/Quarterly!ER110)-1)","v":2.2150882825040297E-2},{"$f":"((Quarterly!ES114/Quarterly!ES110)-1)","v":2.0276794335371884E-2},null,null,null,null,null,{"$f":"(Quarterly!EY114-Quarterly!EY110)*100","v":80.333333333333456},{"$f":"(Quarterly!EZ114-Quarterly!EZ110)*100","v":-16.333333333333222},{"$f":"(Quarterly!FA114-Quarterly!FA110)*100","v":-6.0000000000000497},{"$f":"(Quarterly!FB114-Quarterly!FB110)*100","v":0},"--",{"$f":"(Quarterly!FD114-Quarterly!FD110)*100","v":18.333333333333357},{"$f":"(Quarterly!FE114-Quarterly!FE110)*100","v":0.33333333333356308},{"$f":"(Quarterly!FF114-Quarterly!FF110)*100","v":6.3333333333332575},{"$f":"(Quarterly!FG114-Quarterly!FG110)*100","v":12.000000000000099},{"$f":"(Quarterly!FH114-Quarterly!FH110)*100","v":7.6666666666667993},{"$f":"(Quarterly!FI114-Quarterly!FI110)*100","v":5.6666666666668419},null,null,null,null,null,null,{"$f":"((Quarterly!FP114/Quarterly!FP110)-1)","v":6.4673269458499272E-2},{"$f":"((Quarterly!FQ114/Quarterly!FQ110)-1)","v":0.36459243330421365},"--","--",{"$f":"((Quarterly!FT114/Quarterly!FT110)-1)","v":0.16501838453040274},{"$f":"((Quarterly!FU114/Quarterly!FU110)-1)","v":9.903907967184078E-2},"--","--","--",null,null,null,null,null,{"$f":"((Quarterly!GD114/Quarterly!GD110)-1)","v":-8.0433567996424093E-2},"--","--","--",{"$f":"((Quarterly!GH114/Quarterly!GH110)-1)","v":{"$error":"#DIV/0!"}},"--","--","--","--"]
["85'Q1",{"$f":"((Quarterly!B115/Quarterly!B111)-1)","v":8.2866017817538218E-2},{"$f":"((Quarterly!C115/Quarterly!C111)-1)","v":4.6067296613994557E-2},{"$f":"((Quarterly!D115/Quarterly!D111)-1)","v":6.0755100999933642E-2},{"$f":"((Quarterly!E115/Quarterly!E111)-1)","v":5.3174196708900334E-2},{"$f":"((Quarterly!F115/Quarterly!F111)-1)","v":9.3457943925234099E-2},{"$f":"((Quarterly!G115/Quarterly!G111)-1)","v":3.6802007382220836E-2},{"$f":"((Quarterly!H115/Quarterly!H111)-1)","v":5.5802645016302277E-2},{"$f":"((Quarterly!I115/Quarterly!I111)-1)","v":0.11641538958297093},{"$f":"((Quarterly!J115/Quarterly!J111)-1)","v":0.19916415723322745},{"$f":"((Quarterly!K115/Quarterly!K111)-1)","v":6.9351827153907308E-3},{"$f":"((Quarterly!L115-Quarterly!L111))","v":-78.361000000000004},{"$f":"((Quarterly!M115/Quarterly!M111)-1)","v":7.5894452407623936E-2},{"$f":"((Quarterly!N115/Quarterly!N111)-1)","v":7.1512420901996832E-2},{"$f":"((Quarterly!O115/Quarterly!O111)-1)","v":8.7065881917031573E-2},{"$f":"((Quarterly!P115/Quarterly!P111)-1)","v":6.3174894125512138E-2},{"$f":"((Quarterly!Q115/Quarterly!Q111)-1)","v":-6.6517576506060938E-2},null,null,null,null,null,{"$f":"((Quarterly!W115/Quarterly!W111)-1)","v":0},{"$f":"((Quarterly!X115/Quarterly!X111)-1)","v":1.2526096033405043E-3},{"$f":"((Quarterly!Y115/Quarterly!Y111)-1)","v":0.12487823120816133},"--",{"$f":"((Quarterly!AA115/Quarterly!AA111)-1)","v":-8.8283005961106165E-2},{"$f":"((Quarterly!AB115/Quarterly!AB111)-1)","v":7.0770526460528282E-2},"--","--","--","--","--","--","--","--","--","--",{"$f":"((Quarterly!AM115/Quarterly!AM111)-1)","v":2.659568673447521E-2},{"$f":"((Quarterly!AN115/Quarterly!AN111)-1)","v":2.9721197625115048E-2},"--","--",{"$f":"Quarterly!AQ115-Quarterly!AQ111","v":-10.899999999999991},"--","--",{"$f":"Quarterly!AT115-Quarterly!AT111","v":-10.43333333333333},"--","--",{"$f":"Quarterly!AW115-Quarterly!AW111","v":-7.8000000000000114},{"$f":"Quarterly!AX115-Quarterly!AX111","v":-12.26666666666668},{"$f":"Quarterly!AY115-Quarterly!AY111","v":-23.499999999999993},{"$f":"Quarterly!AZ115-Quarterly!AZ111","v":-8.3666666666666671},{"$f":"Quarterly!BA115-Quarterly!BA111","v":-15.233333333333341},"--","--","--","--",{"$f":"((Quarterly!BF115/Quarterly!BF111)-1)","v":4.5516870547116506E-2},{"$f":"((Quarterly!BG115/Quarterly!BG111)-1)","v":1.2806045684584877E-2},{"$f":"((Quarterly!BH115/Quarterly!BH111)-1)","v":1.0187833972040705E-2},{"$f":"((Quarterly!BI115/Quarterly!BI111)-1)","v":3.2298644526213005E-2},{"$f":"((Quarterly!BJ115/Quarterly!BJ111)-1)","v":-0.13524998721946724},"--",null,"--","--",null,null,null,null,null,{"$f":"((Quarterly!BT115/Quarterly!BT111)-1)","v":0.19906796392752657},{"$f":"Quarterly!BU115-Quarterly!BU111","v":0.7319899999999997},{"$f":"Quarterly!BV115-Quarterly!BV111","v":0.92925000000000146},{"$f":"((Quarterly!BW115/Quarterly!BW111)-1)","v":8.0743478815052505E-2},{"$f":"((Quarterly!BX115/Quarterly!BX111)-1)","v":-0.11632302405498285},{"$f":"((Quarterly!BY115/Quarterly!BY111)-1)","v":-8.6649782923299612E-2},"--",{"$f":"((Quarterly!CA115/Quarterly!CA111)-1)","v":8.6732391020311272E-2},{"$f":"((Quarterly!CB115/Quarterly!CB111)-1)","v":-0.12953715416805922},{"$f":"((Quarterly!CC115/Quarterly!CC111)-1)","v":-0.11453715881239579},"--","--",null,"--","--",null,{"$f":"((Quarterly!CJ115/Quarterly!CJ111)-1)","v":-1.4792899408283988E-2},{"$f":"((Quarterly!CK115/Quarterly!CK111)-1)","v":8.8073413805078937E-2},{"$f":"((Quarterly!CL115/Quarterly!CL111)-1)","v":-0.10106503512349885},{"$f":"((Quarterly!CM115/Quarterly!CM111)-1)","v":-0.12858312858312859},{"$f":"((Quarterly!CN115/Quarterly!CN111)-1)","v":3.6629989682595676E-2},{"$f":"((Quarterly!CO115/Quarterly!CO111)-1)","v":6.1601543656536473E-2},{"$f":"((Quarterly!CP115/Quarterly!CP111)-1)","v":0.18344774842546729},{"$f":"((Quarterly!CQ115/Quarterly!CQ111)-1)","v":8.7958029230652546E-3},{"$f":"((Quarterly!CR115/Quarterly!CR111)-1)","v":0.3016244948543596},{"$f":"Quarterly!CS115-Quarterly!CS111","v":-5.0333333333333456},"--",null,null,null,null,null,{"$f":"((Quarterly!CZ115/Quarterly!CZ111)-1)","v":3.6410923276982921E-2},{"$f":"((Quarterly!DA115/Quarterly!DA111)-1)","v":4.6677471636952905E-2},null,null,null,null,null,{"$f":"((Quarterly!DG115/Quarterly!DG111)-1)","v":3.2449725776965366E-2},{"$f":"((Quarterly!DH115-Quarterly!DH111)*60)","v":-17.999999999999829},{"$f":"Quarterly!DI115-Quarterly!DI111","v":0.73333333333333428},"--",{"$f":"(Quarterly!DK115-Quarterly!DK111)*100","v":-63.333333333333371},{"$f":"((Quarterly!DL115/Quarterly!DL111)-1)","v":1.4107290647806803E-2},null,null,null,{"$f":"((Quarterly!DP115/Quarterly!DP111)-1)","v":3.7445927750880958E-2},null,null,null,null,{"$f":"Quarterly!DU115-Quarterly!DU111","v":-1.5666666666666664},"--","--","--","--","--","--","--","--",null,null,null,null,null,{"$f":"((Quarterly!EI115/Quarterly!EI111)-1)","v":4.9907552499315333E-2},{"$f":"((Quarterly!EJ115/Quarterly!EJ111)-1)","v":4.8440606767355066E-2},{"$f":"((Quarterly!EK115/Quarterly!EK111)-1)","v":4.8637392399345503E-2},null,null,null,null,null,{"$f":"((Quarterly!EQ115/Quarterly!EQ111)-1)","v":-6.4516129032266001E-4},{"$f":"((Quarterly!ER115/Quarterly!ER111)-1)","v":2.3536895674300062E-2},{"$f":"((Quarterly!ES115/Quarterly!ES111)-1)","v":2.2669220945082946E-2},null,null,null,null,null,{"$f":"(Quarterly!EY115-Quarterly!EY111)*100","v":-53.333333333333321},{"$f":"(Quarterly!EZ115-Quarterly!EZ111)*100","v":-120.99999999999991},{"$f":"(Quarterly!FA115-Quarterly!FA111)*100","v":-2.6666666666665506},{"$f":"(Quarterly!FB115-Quarterly!FB111)*100","v":-35.000000000000142},"--",{"$f":"(Quarterly!FD115-Quarterly!FD111)*100","v":-27.333333333333343},{"$f":"(Quarterly!FE115-Quarterly!FE111)*100","v":-98.666666666666629},{"$f":"(Quarterly!FF115-Quarterly!FF111)*100","v":-78.666666666666714},{"$f":"(Quarterly!FG115-Quarterly!FG111)*100","v":-64.333333333333258},{"$f":"(Quarterly!FH115-Quarterly!FH111)*100","v":-44.999999999999751},{"$f":"(Quarterly!FI115-Quarterly!FI111)*100","v":-35.999999999999943},null,null,null,null,null,null,{"$f":"((Quarterly!FP115/Quarterly!FP111)-1)","v":7.8755210960941069E-2},{"$f":"((Quarterly!FQ115/Quarterly!FQ111)-1)","v":0.37685383071044631},"--","--",{"$f":"((Quarterly!FT115/Quarterly!FT111)-1)","v":0.20581952587456054},{"$f":"((Quarterly!FU115/Quarterly!FU111)-1)","v":0.15128180689831305},"--","--","--",null,null,null,null,null,{"$f":"((Quarterly!GD115/Quarterly!GD111)-1)","v":-0.1042650889664003},"--","--","--",{"$f":"((Quarterly!GH115/Quarterly!GH111)-1)","v":{"$error":"#DIV/0!"}},"--","--","--","--"]
["85'Q2",{"$f":"((Quarterly!B116/Quarterly!B112)-1)","v":7.1555915317559116E-2},{"$f":"((Quarterly!C116/Quarterly!C112)-1)","v":3.7423290086305849E-2},{"$f":"((Quarterly!D116/Quarterly!D112)-1)","v":5.0051549928951555E-2},{"$f":"((Quarterly!E116/Quarterly!E112)-1)","v":4.8100987925356886E-2},{"$f":"((Quarterly!F116/Quarterly!F112)-1)","v":8.1377313618033131E-2},{"$f":"((Quarterly!G116/Quarterly!G112)-1)","v":2.2544885140304949E-2},{"$f":"((Quarterly!H116/Quarterly!H112)-1)","v":5.5137551685557451E-2},{"$f":"((Quarterly!I116/Quarterly!I112)-1)","v":8.2045805150112727E-2},{"$f":"((Quarterly!J116/Quarterly!J112)-1)","v":0.13555071135771923},{"$f":"((Quarterly!K116/Quarterly!K112)-1)","v":-3.6658811207122E-3},{"$f":"((Quarterly!L116-Quarterly!L112))","v":-63.942999999999998},{"$f":"((Quarterly!M116/Quarterly!M112)-1)","v":8.3378613240230104E-2},{"$f":"((Quarterly!N116/Quarterly!N112)-1)","v":4.3264117290920057E-2},{"$f":"((Quarterly!O116/Quarterly!O112)-1)","v":0.17994826544814746},{"$f":"((Quarterly!P116/Quarterly!P112)-1)","v":6.408145487940331E-2},{"$f":"((Quarterly!Q116/Quarterly!Q112)-1)","v":0.14872443311077488},null,null,null,null,null,{"$f":"((Quarterly!W116/Quarterly!W112)-1)","v":-1.7699115044247704E-2},{"$f":"((Quarterly!X116/Quarterly!X112)-1)","v":-1.6109045848822889E-2},{"$f":"((Quarterly!Y116/Quarterly!Y112)-1)","v":8.0373267581834718E-2},"--",{"$f":"((Quarterly!AA116/Quarterly!AA112)-1)","v":-8.5394200172503654E-2},{"$f":"((Quarterly!AB116/Quarterly!AB112)-1)","v":8.166942155783774E-2},"--","--","--","--","--","--","--","--","--","--",{"$f":"((Quarterly!AM116/Quarterly!AM112)-1)","v":1.1594394642084449E-2},{"$f":"((Quarterly!AN116/Quarterly!AN112)-1)","v":1.5876560476865142E-2},"--","--",{"$f":"Quarterly!AQ116-Quarterly!AQ112","v":-11.533333333333317},"--","--",{"$f":"Quarterly!AT116-Quarterly!AT112","v":-12.200000000000003},"--","--",{"$f":"Quarterly!AW116-Quarterly!AW112","v":-13.333333333333329},{"$f":"Quarterly!AX116-Quarterly!AX112","v":-10.466666666666669},{"$f":"Quarterly!AY116-Quarterly!AY112","v":-21.06666666666667},{"$f":"Quarterly!AZ116-Quarterly!AZ112","v":-9.9666666666666544},{"$f":"Quarterly!BA116-Quarterly!BA112","v":-14.033333333333339},"--","--","--","--",{"$f":"((Quarterly!BF116/Quarterly!BF112)-1)","v":4.5183449597955283E-2},{"$f":"((Quarterly!BG116/Quarterly!BG112)-1)","v":9.9573499175884539E-3},{"$f":"((Quarterly!BH116/Quarterly!BH112)-1)","v":1.0576157779006667E-2},{"$f":"((Quarterly!BI116/Quarterly!BI112)-1)","v":3.487989470220465E-2},{"$f":"((Quarterly!BJ116/Quarterly!BJ112)-1)","v":-0.15757622381208825},"--",null,"--","--",null,null,null,null,null,{"$f":"((Quarterly!BT116/Quarterly!BT112)-1)","v":0.18007255676108858},{"$f":"Quarterly!BU116-Quarterly!BU112","v":0.69230999999999909},{"$f":"Quarterly!BV116-Quarterly!BV112","v":0.91801000000000066},{"$f":"((Quarterly!BW116/Quarterly!BW112)-1)","v":9.2279975979181916E-2},{"$f":"((Quarterly!BX116/Quarterly!BX112)-1)","v":-5.3218727139721977E-2},{"$f":"((Quarterly!BY116/Quarterly!BY112)-1)","v":-4.539486025135997E-2},"--",{"$f":"((Quarterly!CA116/Quarterly!CA112)-1)","v":5.1954386046403567E-2},{"$f":"((Quarterly!CB116/Quarterly!CB112)-1)","v":-7.8675767726676948E-2},{"$f":"((Quarterly!CC116/Quarterly!CC112)-1)","v":-6.0130567253296574E-2},"--","--",null,"--","--",null,{"$f":"((Quarterly!CJ116/Quarterly!CJ112)-1)","v":7.2186836518046693E-2},{"$f":"((Quarterly!CK116/Quarterly!CK112)-1)","v":7.2404777772081985E-2},{"$f":"((Quarterly!CL116/Quarterly!CL112)-1)","v":-3.1775295521093261E-2},{"$f":"((Quarterly!CM116/Quarterly!CM112)-1)","v":-4.5619335347432011E-2},{"$f":"((Quarterly!CN116/Quarterly!CN112)-1)","v":3.9237314843996174E-2},{"$f":"((Quarterly!CO116/Quarterly!CO112)-1)","v":8.0871509442938194E-2},{"$f":"((Quarterly!CP116/Quarterly!CP112)-1)","v":0.17718348662738936},{"$f":"((Quarterly!CQ116/Quarterly!CQ112)-1)","v":8.8306082554605592E-3},{"$f":"((Quarterly!CR116/Quarterly!CR112)-1)","v":0.27904102268013387},{"$f":"Quarterly!CS116-Quarterly!CS112","v":-2.2666666666666657},"--",null,null,null,null,null,{"$f":"((Quarterly!CZ116/Quarterly!CZ112)-1)","v":3.6070853462157881E-2},{"$f":"((Quarterly!DA116/Quarterly!DA112)-1)","v":4.4828690361831347E-2},null,null,null,null,null,{"$f":"((Quarterly!DG116/Quarterly!DG112)-1)","v":2.8455284552845406E-2},{"$f":"((Quarterly!DH116-Quarterly!DH112)*60)","v":-14.000000000000057},{"$f":"Quarterly!DI116-Quarterly!DI112","v":0.29999999999999716},"--",{"$f":"(Quarterly!DK116-Quarterly!DK112)*100","v":-13.333333333333375},{"$f":"((Quarterly!DL116/Quarterly!DL112)-1)","v":-3.6275695284159193E-3},null,null,null,{"$f":"((Quarterly!DP116/Quarterly!DP112)-1)","v":3.3431195129811409E-2},null,null,null,null,{"$f":"Quarterly!DU116-Quarterly!DU112","v":-1.4666666666666659},"--","--","--","--","--","--","--","--",null,null,null,null,null,{"$f":"((Quarterly!EI116/Quarterly!EI112)-1)","v":3.6783399957112772E-2},{"$f":"((Quarterly!EJ116/Quarterly!EJ112)-1)","v":4.5180541016373921E-2},{"$f":"((Quarterly!EK116/Quarterly!EK112)-1)","v":4.7103136445954874E-2},null,null,null,null,null,{"$f":"((Quarterly!EQ116/Quarterly!EQ112)-1)","v":-6.4082024991990449E-3},{"$f":"((Quarterly!ER116/Quarterly!ER112)-1)","v":2.3726668775703841E-2},{"$f":"((Quarterly!ES116/Quarterly!ES112)-1)","v":2.0595690747782225E-2},null,null,null,null,null,{"$f":"(Quarterly!EY116-Quarterly!EY112)*100","v":-210.99999999999994},{"$f":"(Quarterly!EZ116-Quarterly!EZ112)*100","v":-263.33333333333337},{"$f":"(Quarterly!FA116-Quarterly!FA112)*100","v":-158.3333333333332},{"$f":"(Quarterly!FB116-Quarterly!FB112)*100","v":-167.99999999999997},"--",{"$f":"(Quarterly!FD116-Quarterly!FD112)*100","v":-122.66666666666666},{"$f":"(Quarterly!FE116-Quarterly!FE112)*100","v":-233.66666666666669},{"$f":"(Quarterly!FF116-Quarterly!FF112)*100","v":-308},{"$f":"(Quarterly!FG116-Quarterly!FG112)*100","v":-296.66666666666669},{"$f":"(Quarterly!FH116-Quarterly!FH112)*100","v":-268.99999999999977},{"$f":"(Quarterly!FI116-Quarterly!FI112)*100","v":-238.66666666666686},null,null,null,null,null,null,{"$f":"((Quarterly!FP116/Quarterly!FP112)-1)","v":5.9566787003610067E-2},{"$f":"((Quarterly!FQ116/Quarterly!FQ112)-1)","v":0.31945577393686619},"--","--",{"$f":"((Quarterly!FT116/Quarterly!FT112)-1)","v":0.17225256665737398},{"$f":"((Quarterly!FU116/Quarterly!FU112)-1)","v":0.10572938179264435},"--","--","--",null,null,null,null,null,{"$f":"((Quarterly!GD116/Quarterly!GD112)-1)","v":-8.2695790571318706E-2},"--","--","--",{"$f":"((Quarterly!GH116/Quarterly!GH112)-1)","v":{"$error":"#DIV/0!"}},"--","--","--","--"]
["85'Q3",{"$f":"((Quarterly!B117/Quarterly!B113)-1)","v":7.5154536722563892E-2},{"$f":"((Quarterly!C117/Quarterly!C113)-1)","v":4.3298576230328178E-2},{"$f":"((Quarterly!D117/Quarterly!D113)-1)","v":5.7121786371834293E-2},{"$f":"((Quarterly!E117/Quarterly!E113)-1)","v":6.0087145969498934E-2},{"$f":"((Quarterly!F117/Quarterly!F113)-1)","v":0.15023085934808056},{"$f":"((Quarterly!G117/Quarterly!G113)-1)","v":3.0155399879094213E-2},{"$f":"((Quarterly!H117/Quarterly!H113)-1)","v":6.3294755401543501E-2},{"$f":"((Quarterly!I117/Quarterly!I113)-1)","v":3.7901814497559139E-2},{"$f":"((Quarterly!J117/Quarterly!J113)-1)","v":5.222831242213144E-2},{"$f":"((Quarterly!K117/Quarterly!K113)-1)","v":1.8503832936822562E-2},{"$f":"((Quarterly!L117-Quarterly!L113))","v":-72.271000000000001},{"$f":"((Quarterly!M117/Quarterly!M113)-1)","v":4.5859808011239123E-2},{"$f":"((Quarterly!N117/Quarterly!N113)-1)","v":5.8835772149465893E-3},{"$f":"((Quarterly!O117/Quarterly!O113)-1)","v":0.1408899178586156},{"$f":"((Quarterly!P117/Quarterly!P113)-1)","v":8.0161716462642252E-2},{"$f":"((Quarterly!Q117/Quarterly!Q113)-1)","v":3.6344091525684075E-3},null,null,null,null,null,{"$f":"((Quarterly!W117/Quarterly!W113)-1)","v":-2.5252525252525304E-2},{"$f":"((Quarterly!X117/Quarterly!X113)-1)","v":-2.5577557755775526E-2},{"$f":"((Quarterly!Y117/Quarterly!Y113)-1)","v":6.9036784524785233E-2},"--",{"$f":"((Quarterly!AA117/Quarterly!AA113)-1)","v":-1.8365524455897675E-2},{"$f":"((Quarterly!AB117/Quarterly!AB113)-1)","v":9.9285808537309395E-2},"--","--","--","--","--","--","--","--","--","--",{"$f":"((Quarterly!AM117/Quarterly!AM113)-1)","v":2.9609379853907658E-3},{"$f":"((Quarterly!AN117/Quarterly!AN113)-1)","v":7.4477203049259089E-3},"--","--",{"$f":"Quarterly!AQ117-Quarterly!AQ113","v":-4.5333333333333314},"--","--",{"$f":"Quarterly!AT117-Quarterly!AT113","v":-8.9666666666666544},"--","--",{"$f":"Quarterly!AW117-Quarterly!AW113","v":-7.7999999999999901},{"$f":"Quarterly!AX117-Quarterly!AX113","v":1.1999999999999957},{"$f":"Quarterly!AY117-Quarterly!AY113","v":-13.166666666666679},{"$f":"Quarterly!AZ117-Quarterly!AZ113","v":-4.36666666666666},{"$f":"Quarterly!BA117-Quarterly!BA113","v":-8.4333333333333371},"--","--","--","--",{"$f":"((Quarterly!BF117/Quarterly!BF113)-1)","v":4.5996324494617991E-2},{"$f":"((Quarterly!BG117/Quarterly!BG113)-1)","v":1.8527291800616075E-2},{"$f":"((Quarterly!BH117/Quarterly!BH113)-1)","v":1.2640242349503561E-2},{"$f":"((Quarterly!BI117/Quarterly!BI113)-1)","v":2.6951543080575568E-2},{"$f":"((Quarterly!BJ117/Quarterly!BJ113)-1)","v":-5.9766474004292136E-2},"--",null,"--","--",null,null,null,null,null,{"$f":"((Quarterly!BT117/Quarterly!BT113)-1)","v":0.17375895407547692},{"$f":"Quarterly!BU117-Quarterly!BU113","v":0.87378},{"$f":"Quarterly!BV117-Quarterly!BV113","v":1.1890800000000006},{"$f":"((Quarterly!BW117/Quarterly!BW113)-1)","v":8.6312719463710552E-2},{"$f":"((Quarterly!BX117/Quarterly!BX113)-1)","v":1.7344497607655551E-2},{"$f":"((Quarterly!BY117/Quarterly!BY113)-1)","v":0.16380420781451255},"--",{"$f":"((Quarterly!CA117/Quarterly!CA113)-1)","v":0.20276333594473361},{"$f":"((Quarterly!CB117/Quarterly!CB113)-1)","v":-0.10029538944597538},{"$f":"((Quarterly!CC117/Quarterly!CC113)-1)","v":-7.9120772738546896E-2},"--","--",null,"--","--",null,{"$f":"((Quarterly!CJ117/Quarterly!CJ113)-1)","v":0.17424242424242431},{"$f":"((Quarterly!CK117/Quarterly!CK113)-1)","v":6.2137439761148494E-2},{"$f":"((Quarterly!CL117/Quarterly!CL113)-1)","v":-0.2834789676894941},{"$f":"((Quarterly!CM117/Quarterly!CM113)-1)","v":5.5131185652607106E-2},{"$f":"((Quarterly!CN117/Quarterly!CN113)-1)","v":2.1743996617462402E-2},{"$f":"((Quarterly!CO117/Quarterly!CO113)-1)","v":0.14794905322291618},{"$f":"((Quarterly!CP117/Quarterly!CP113)-1)","v":0.16444385546115914},{"$f":"((Quarterly!CQ117/Quarterly!CQ113)-1)","v":8.9987134629827548E-3},{"$f":"((Quarterly!CR117/Quarterly!CR113)-1)","v":0.25668065807083051},{"$f":"Quarterly!CS117-Quarterly!CS113","v":-6.0333333333333456},"--",null,null,null,null,null,{"$f":"((Quarterly!CZ117/Quarterly!CZ113)-1)","v":3.3524904214559559E-2},{"$f":"((Quarterly!DA117/Quarterly!DA113)-1)","v":4.1113219481341057E-2},null,null,null,null,null,{"$f":"((Quarterly!DG117/Quarterly!DG113)-1)","v":2.2849462365591711E-2},{"$f":"((Quarterly!DH117-Quarterly!DH113)*60)","v":-15.999999999999943},{"$f":"Quarterly!DI117-Quarterly!DI113","v":0.26666666666666572},"--",{"$f":"(Quarterly!DK117-Quarterly!DK113)*100","v":-23.333333333333339},{"$f":"((Quarterly!DL117/Quarterly!DL113)-1)","v":-1.5092664521140775E-2},null,null,null,{"$f":"((Quarterly!DP117/Quarterly!DP113)-1)","v":2.9336886769295356E-2},null,null,null,null,{"$f":"Quarterly!DU117-Quarterly!DU113","v":-0.5},"--","--","--","--","--","--","--","--",null,null,null,null,null,{"$f":"((Quarterly!EI117/Quarterly!EI113)-1)","v":4.1176010802008278E-2},{"$f":"((Quarterly!EJ117/Quarterly!EJ113)-1)","v":5.7992527867885446E-2},{"$f":"((Quarterly!EK117/Quarterly!EK113)-1)","v":5.754318240226719E-2},null,null,null,null,null,{"$f":"((Quarterly!EQ117/Quarterly!EQ113)-1)","v":-1.0918432883750717E-2},{"$f":"((Quarterly!ER117/Quarterly!ER113)-1)","v":2.2026431718061623E-2},{"$f":"((Quarterly!ES117/Quarterly!ES113)-1)","v":1.8296529968454323E-2},null,null,null,null,null,{"$f":"(Quarterly!EY117-Quarterly!EY113)*100","v":-349},{"$f":"(Quarterly!EZ117-Quarterly!EZ113)*100","v":-348.99999999999994},{"$f":"(Quarterly!FA117-Quarterly!FA113)*100","v":-195.99999999999991},{"$f":"(Quarterly!FB117-Quarterly!FB113)*100","v":-224.0000000000002},"--",{"$f":"(Quarterly!FD117-Quarterly!FD113)*100","v":-236.00000000000028},{"$f":"(Quarterly!FE117-Quarterly!FE113)*100","v":-321.33333333333337},{"$f":"(Quarterly!FF117-Quarterly!FF113)*100","v":-381.66666666666674},{"$f":"(Quarterly!FG117-Quarterly!FG113)*100","v":-360.66666666666691},{"$f":"(Quarterly!FH117-Quarterly!FH113)*100","v":-305.33333333333326},{"$f":"(Quarterly!FI117-Quarterly!FI113)*100","v":-252.99999999999994},null,null,null,null,null,null,{"$f":"((Quarterly!FP117/Quarterly!FP113)-1)","v":3.5161601298899114E-2},{"$f":"((Quarterly!FQ117/Quarterly!FQ113)-1)","v":0.2139146336394997},"--","--",{"$f":"((Quarterly!FT117/Quarterly!FT113)-1)","v":9.2105305877731247E-2},{"$f":"((Quarterly!FU117/Quarterly!FU113)-1)","v":-2.847200012954465E-3},"--","--","--",null,null,null,null,null,{"$f":"((Quarterly!GD117/Quarterly!GD113)-1)","v":-4.5125010021417111E-2},"--","--","--",{"$f":"((Quarterly!GH117/Quarterly!GH113)-1)","v":{"$error":"#DIV/0!"}},"--","--","--","--"]
["85'Q4",{"$f":"((Quarterly!B118/Quarterly!B114)-1)","v":7.3656707025691492E-2},{"$f":"((Quarterly!C118/Quarterly!C114)-1)","v":4.2807488731437804E-2},{"$f":"((Quarterly!D118/Quarterly!D114)-1)","v":4.656825111320706E-2},{"$f":"((Quarterly!E118/Quarterly!E114)-1)","v":4.8938869417507025E-2},{"$f":"((Quarterly!F118/Quarterly!F114)-1)","v":7.5724202376184602E-2},{"$f":"((Quarterly!G118/Quarterly!G114)-1)","v":3.1407146007940145E-2},{"$f":"((Quarterly!H118/Quarterly!H114)-1)","v":5.3245638851769472E-2},{"$f":"((Quarterly!I118/Quarterly!I114)-1)","v":3.2396679340367607E-2},{"$f":"((Quarterly!J118/Quarterly!J114)-1)","v":4.1817571487980931E-2},{"$f":"((Quarterly!K118/Quarterly!K114)-1)","v":4.1457618167414889E-2},{"$f":"((Quarterly!L118-Quarterly!L114))","v":-17.926000000000002},{"$f":"((Quarterly!M118/Quarterly!M114)-1)","v":5.5907829358772476E-2},{"$f":"((Quarterly!N118/Quarterly!N114)-1)","v":1.5372102693387069E-2},{"$f":"((Quarterly!O118/Quarterly!O114)-1)","v":0.14948142424205813},{"$f":"((Quarterly!P118/Quarterly!P114)-1)","v":6.3398928692497858E-2},{"$f":"((Quarterly!Q118/Quarterly!Q114)-1)","v":-1.8301863808015573E-2},null,null,null,null,null,{"$f":"((Quarterly!W118/Quarterly!W114)-1)","v":-2.1518987341772156E-2},{"$f":"((Quarterly!X118/Quarterly!X114)-1)","v":-1.7864561695056125E-2},{"$f":"((Quarterly!Y118/Quarterly!Y114)-1)","v":5.5547627873220762E-2},"--",{"$f":"((Quarterly!AA118/Quarterly!AA114)-1)","v":-1.3573672962806982E-2},{"$f":"((Quarterly!AB118/Quarterly!AB114)-1)","v":-3.3568953900496856E-3},"--","--","--","--","--","--","--","--","--","--",{"$f":"((Quarterly!AM118/Quarterly!AM114)-1)","v":8.4030730833151157E-3},{"$f":"((Quarterly!AN118/Quarterly!AN114)-1)","v":7.9730601943521773E-3},"--","--",{"$f":"Quarterly!AQ118-Quarterly!AQ114","v":0.63333333333334707},"--","--",{"$f":"Quarterly!AT118-Quarterly!AT114","v":-2.7999999999999972},"--","--",{"$f":"Quarterly!AW118-Quarterly!AW114","v":-0.76666666666667282},{"$f":"Quarterly!AX118-Quarterly!AX114","v":2.5666666666666629},{"$f":"Quarterly!AY118-Quarterly!AY114","v":-5.5333333333333314},{"$f":"Quarterly!AZ118-Quarterly!AZ114","v":1.5333333333333314},{"$f":"Quarterly!BA118-Quarterly!BA114","v":0.53333333333334565},"--","--","--","--",{"$f":"((Quarterly!BF118/Quarterly!BF114)-1)","v":5.7674273210378102E-2},{"$f":"((Quarterly!BG118/Quarterly!BG114)-1)","v":2.2320296251204796E-2},{"$f":"((Quarterly!BH118/Quarterly!BH114)-1)","v":2.278457247076493E-2},{"$f":"((Quarterly!BI118/Quarterly!BI114)-1)","v":3.4569879221099331E-2},{"$f":"((Quarterly!BJ118/Quarterly!BJ114)-1)","v":-9.4752436540215812E-2},"--",null,"--","--",null,null,null,null,null,{"$f":"((Quarterly!BT118/Quarterly!BT114)-1)","v":0.15874549983010655},{"$f":"Quarterly!BU118-Quarterly!BU114","v":0.8360000000000003},{"$f":"Quarterly!BV118-Quarterly!BV114","v":1.1203300000000009},{"$f":"((Quarterly!BW118/Quarterly!BW114)-1)","v":7.5935579242200291E-2},{"$f":"((Quarterly!BX118/Quarterly!BX114)-1)","v":0.11919852790840335},{"$f":"((Quarterly!BY118/Quarterly!BY114)-1)","v":9.8760243748686749E-2},"--",{"$f":"((Quarterly!CA118/Quarterly!CA114)-1)","v":1.1951174231876083E-2},{"$f":"((Quarterly!CB118/Quarterly!CB114)-1)","v":-7.9250051373742525E-2},{"$f":"((Quarterly!CC118/Quarterly!CC114)-1)","v":-6.6071217343618316E-2},"--","--",null,"--","--",null,{"$f":"((Quarterly!CJ118/Quarterly!CJ114)-1)","v":0.1212121212121211},{"$f":"((Quarterly!CK118/Quarterly!CK114)-1)","v":6.4171439273709385E-2},{"$f":"((Quarterly!CL118/Quarterly!CL114)-1)","v":-0.17377666248431634},{"$f":"((Quarterly!CM118/Quarterly!CM114)-1)","v":3.9411948701908006E-2},{"$f":"((Quarterly!CN118/Quarterly!CN114)-1)","v":2.5057200476105601E-2},{"$f":"((Quarterly!CO118/Quarterly!CO114)-1)","v":0.16696227409999498},{"$f":"((Quarterly!CP118/Quarterly!CP114)-1)","v":0.16343974949803886},{"$f":"((Quarterly!CQ118/Quarterly!CQ114)-1)","v":9.0603569325222733E-3},{"$f":"((Quarterly!CR118/Quarterly!CR114)-1)","v":0.24594594961367866},{"$f":"Quarterly!CS118-Quarterly!CS114","v":-3.8999999999999773},"--",null,null,null,null,null,{"$f":"((Quarterly!CZ118/Quarterly!CZ114)-1)","v":3.5137701804368593E-2},{"$f":"((Quarterly!DA118/Quarterly!DA114)-1)","v":4.25798371947399E-2},null,null,null,null,null,{"$f":"((Quarterly!DG118/Quarterly!DG114)-1)","v":2.3121387283236983E-2},{"$f":"((Quarterly!DH118-Quarterly!DH114)*60)","v":-9.9999999999998579},{"$f":"Quarterly!DI118-Quarterly!DI114","v":0.46666666666666856},"--",{"$f":"(Quarterly!DK118-Quarterly!DK114)*100","v":-26.666666666666661},{"$f":"((Quarterly!DL118/Quarterly!DL114)-1)","v":-1.7849545900153641E-2},null,null,null,{"$f":"((Quarterly!DP118/Quarterly!DP114)-1)","v":2.6303716164551183E-2},null,null,null,null,{"$f":"Quarterly!DU118-Quarterly!DU114","v":-0.2666666666666675},"--","--","--","--","--","--","--","--",null,null,null,null,null,{"$f":"((Quarterly!EI118/Quarterly!EI114)-1)","v":4.4358848713190069E-2},{"$f":"((Quarterly!EJ118/Quarterly!EJ114)-1)","v":5.7037443328645354E-2},{"$f":"((Quarterly!EK118/Quarterly!EK114)-1)","v":5.6049378347425183E-2},null,null,null,null,null,{"$f":"((Quarterly!EQ118/Quarterly!EQ114)-1)","v":-2.2537025112686626E-3},{"$f":"((Quarterly!ER118/Quarterly!ER114)-1)","v":2.7324120603015034E-2},{"$f":"((Quarterly!ES118/Quarterly!ES114)-1)","v":2.6498422712933678E-2},null,null,null,null,null,{"$f":"(Quarterly!EY118-Quarterly!EY114)*100","v":-230.33333333333346},{"$f":"(Quarterly!EZ118-Quarterly!EZ114)*100","v":-116.3333333333334},{"$f":"(Quarterly!FA118-Quarterly!FA114)*100","v":-177.33333333333351},{"$f":"(Quarterly!FB118-Quarterly!FB114)*100","v":-163.00000000000009},"--",{"$f":"(Quarterly!FD118-Quarterly!FD114)*100","v":-192.33333333333337},{"$f":"(Quarterly!FE118-Quarterly!FE114)*100","v":-163.66666666666677},{"$f":"(Quarterly!FF118-Quarterly!FF114)*100","v":-216.33333333333314},{"$f":"(Quarterly!FG118-Quarterly!FG114)*100","v":-228.00000000000011},{"$f":"(Quarterly!FH118-Quarterly!FH114)*100","v":-225.33333333333337},{"$f":"(Quarterly!FI118-Quarterly!FI114)*100","v":-198.33333333333343},null,null,null,null,null,null,{"$f":"((Quarterly!FP118/Quarterly!FP114)-1)","v":4.6209459288657495E-2},{"$f":"((Quarterly!FQ118/Quarterly!FQ114)-1)","v":0.16912072489104446},"--","--",{"$f":"((Quarterly!FT118/Quarterly!FT114)-1)","v":1.3610520309176755E-2},{"$f":"((Quarterly!FU118/Quarterly!FU114)-1)","v":-8.9967212401758423E-2},"--","--","--",null,null,null,null,null,{"$f":"((Quarterly!GD118/Quarterly!GD114)-1)","v":6.4246828367277464E-2},"--","--","--",{"$f":"((Quarterly!GH118/Quarterly!GH114)-1)","v":{"$error":"#DIV/0!"}},"--","--","--","--"]
["86'Q1",{"$f":"((Quarterly!B119/Quarterly!B115)-1)","v":6.5927151458221589E-2},{"$f":"((Quarterly!C119/Quarterly!C115)-1)","v":4.2112873006320939E-2},{"$f":"((Quarterly!D119/Quarterly!D115)-1)","v":3.9033495088937054E-2},{"$f":"((Quarterly!E119/Quarterly!E115)-1)","v":4.0171681079138155E-2},{"$f":"((Quarterly!F119/Quarterly!F115)-1)","v":6.082889856474738E-2},{"$f":"((Quarterly!G119/Quarterly!G115)-1)","v":3.8143841742515949E-2},{"$f":"((Quarterly!H119/Quarterly!H115)-1)","v":3.8898471655882227E-2},{"$f":"((Quarterly!I119/Quarterly!I115)-1)","v":1.0834742368959649E-2},{"$f":"((Quarterly!J119/Quarterly!J115)-1)","v":5.2909491369448336E-3},{"$f":"((Quarterly!K119/Quarterly!K115)-1)","v":8.9271523178807932E-2},{"$f":"((Quarterly!L119-Quarterly!L115))","v":18.700000000000003},{"$f":"((Quarterly!M119/Quarterly!M115)-1)","v":7.8743345691889344E-2},{"$f":"((Quarterly!N119/Quarterly!N115)-1)","v":4.4620079818452174E-2},{"$f":"((Quarterly!O119/Quarterly!O115)-1)","v":0.16449158041701284},{"$f":"((Quarterly!P119/Quarterly!P115)-1)","v":5.9530290321707868E-2},{"$f":"((Quarterly!Q119/Quarterly!Q115)-1)","v":0.20056615017878432},null,null,null,null,null,{"$f":"((Quarterly!W119/Quarterly!W115)-1)","v":-5.1085568326946218E-3},{"$f":"((Quarterly!X119/Quarterly!X115)-1)","v":-1.2510425354462007E-2},{"$f":"((Quarterly!Y119/Quarterly!Y115)-1)","v":5.4241962383194675E-2},"--",{"$f":"((Quarterly!AA119/Quarterly!AA115)-1)","v":-0.1526967930029155},{"$f":"((Quarterly!AB119/Quarterly!AB115)-1)","v":-6.0507074809184713E-2},"--","--","--","--","--","--","--","--","--","--",{"$f":"((Quarterly!AM119/Quarterly!AM115)-1)","v":1.1085682349570414E-2},{"$f":"((Quarterly!AN119/Quarterly!AN115)-1)","v":2.0399347189987482E-2},"--","--",{"$f":"Quarterly!AQ119-Quarterly!AQ115","v":1.7333333333333272},"--","--",{"$f":"Quarterly!AT119-Quarterly!AT115","v":-0.76666666666666572},"--","--",{"$f":"Quarterly!AW119-Quarterly!AW115","v":-0.46666666666666146},{"$f":"Quarterly!AX119-Quarterly!AX115","v":5.2000000000000028},{"$f":"Quarterly!AY119-Quarterly!AY115","v":2.8333333333333215},{"$f":"Quarterly!AZ119-Quarterly!AZ115","v":0.73333333333332718},{"$f":"Quarterly!BA119-Quarterly!BA115","v":1.56666666666667},"--","--","--","--",{"$f":"((Quarterly!BF119/Quarterly!BF115)-1)","v":5.947850236576846E-2},{"$f":"((Quarterly!BG119/Quarterly!BG115)-1)","v":3.2648513597920203E-2},{"$f":"((Quarterly!BH119/Quarterly!BH115)-1)","v":2.8478687736265051E-2},{"$f":"((Quarterly!BI119/Quarterly!BI115)-1)","v":2.5971849865951802E-2},{"$f":"((Quarterly!BJ119/Quarterly!BJ115)-1)","v":-0.31122573398461473},"--",null,"--","--",null,null,null,null,null,{"$f":"((Quarterly!BT119/Quarterly!BT115)-1)","v":0.12654028224849068},{"$f":"Quarterly!BU119-Quarterly!BU115","v":0.51888999999999896},{"$f":"Quarterly!BV119-Quarterly!BV115","v":0.69491999999999976},{"$f":"((Quarterly!BW119/Quarterly!BW115)-1)","v":7.06941765758764E-2},{"$f":"((Quarterly!BX119/Quarterly!BX115)-1)","v":0.10752479097802858},{"$f":"((Quarterly!BY119/Quarterly!BY115)-1)","v":6.8330362448009607E-2},"--",{"$f":"((Quarterly!CA119/Quarterly!CA115)-1)","v":-2.0526384820530708E-2},{"$f":"((Quarterly!CB119/Quarterly!CB115)-1)","v":-6.7337948145558268E-2},{"$f":"((Quarterly!CC119/Quarterly!CC115)-1)","v":-5.4728981798927268E-2},"--","--",null,"--","--",null,{"$f":"((Quarterly!CJ119/Quarterly!CJ115)-1)","v":0.17167167167167174},{"$f":"((Quarterly!CK119/Quarterly!CK115)-1)","v":6.1532807180439519E-2},{"$f":"((Quarterly!CL119/Quarterly!CL115)-1)","v":5.6213763549281648E-2},{"$f":"((Quarterly!CM119/Quarterly!CM115)-1)","v":0.12562656641604009},{"$f":"((Quarterly!CN119/Quarterly!CN115)-1)","v":4.0299697705903137E-2},{"$f":"((Quarterly!CO119/Quarterly!CO115)-1)","v":0.11828054709865032},{"$f":"((Quarterly!CP119/Quarterly!CP115)-1)","v":0.14489743052274928},{"$f":"((Quarterly!CQ119/Quarterly!CQ115)-1)","v":9.191893400972484E-3},{"$f":"((Quarterly!CR119/Quarterly!CR115)-1)","v":0.22120837230694557},{"$f":"Quarterly!CS119-Quarterly!CS115","v":1.0666666666666913},"--",null,null,null,null,null,{"$f":"((Quarterly!CZ119/Quarterly!CZ115)-1)","v":3.1053952321204559E-2},{"$f":"((Quarterly!DA119/Quarterly!DA115)-1)","v":4.2427996283679326E-2},null,null,null,null,null,{"$f":"((Quarterly!DG119/Quarterly!DG115)-1)","v":2.3904382470119723E-2},{"$f":"((Quarterly!DH119-Quarterly!DH115)*60)","v":0},{"$f":"Quarterly!DI119-Quarterly!DI115","v":0.23333333333333428},"--",{"$f":"(Quarterly!DK119-Quarterly!DK115)*100","v":-19.999999999999929},{"$f":"((Quarterly!DL119/Quarterly!DL115)-1)","v":-1.7453722595244137E-2},null,null,null,{"$f":"((Quarterly!DP119/Quarterly!DP115)-1)","v":2.3461149482418842E-2},null,null,null,null,{"$f":"Quarterly!DU119-Quarterly!DU115","v":-0.19999999999999929},"--","--","--","--","--","--","--","--",null,null,null,null,null,{"$f":"((Quarterly!EI119/Quarterly!EI115)-1)","v":4.8775494301055433E-2},{"$f":"((Quarterly!EJ119/Quarterly!EJ115)-1)","v":4.6101758163444639E-2},{"$f":"((Quarterly!EK119/Quarterly!EK115)-1)","v":4.3897663971122158E-2},null,null,null,null,null,{"$f":"((Quarterly!EQ119/Quarterly!EQ115)-1)","v":-1.484828921885073E-2},{"$f":"((Quarterly!ER119/Quarterly!ER115)-1)","v":2.050963331261646E-2},{"$f":"((Quarterly!ES119/Quarterly!ES115)-1)","v":1.8420231033406509E-2},null,null,null,null,null,{"$f":"(Quarterly!EY119-Quarterly!EY115)*100","v":-117},{"$f":"(Quarterly!EZ119-Quarterly!EZ115)*100","v":-64.999999999999943},{"$f":"(Quarterly!FA119-Quarterly!FA115)*100","v":-268.33333333333354},{"$f":"(Quarterly!FB119-Quarterly!FB115)*100","v":-237.66666666666669},"--",{"$f":"(Quarterly!FD119-Quarterly!FD115)*100","v":-250},{"$f":"(Quarterly!FE119-Quarterly!FE115)*100","v":-128.6666666666668},{"$f":"(Quarterly!FF119-Quarterly!FF115)*100","v":-193.33333333333317},{"$f":"(Quarterly!FG119-Quarterly!FG115)*100","v":-249.6666666666668},{"$f":"(Quarterly!FH119-Quarterly!FH115)*100","v":-303.33333333333331},{"$f":"(Quarterly!FI119-Quarterly!FI115)*100","v":-302.66666666666674},null,null,null,null,null,null,{"$f":"((Quarterly!FP119/Quarterly!FP115)-1)","v":3.6798188396879095E-2},{"$f":"((Quarterly!FQ119/Quarterly!FQ115)-1)","v":0.13416039510818423},"--","--",{"$f":"((Quarterly!FT119/Quarterly!FT115)-1)","v":-6.26709892989884E-2},{"$f":"((Quarterly!FU119/Quarterly!FU115)-1)","v":-0.18108208634946055},{"$f":"((Quarterly!FV119/Quarterly!FV115)-1)","v":1.8898771756900912E-2},{"$f":"((Quarterly!FW119/Quarterly!FW115)-1)","v":0.42763233767731523},{"$f":"((Quarterly!FX119/Quarterly!FX115)-1)","v":-8.8605627234570328E-3},null,null,null,null,null,{"$f":"((Quarterly!GD119/Quarterly!GD115)-1)","v":-0.37147258163894015},"--","--","--",{"$f":"((Quarterly!GH119/Quarterly!GH115)-1)","v":{"$error":"#DIV/0!"}},"--","--","--","--"]
["86'Q2",{"$f":"((Quarterly!B120/Quarterly!B116)-1)","v":5.8793709499832314E-2},{"$f":"((Quarterly!C120/Quarterly!C116)-1)","v":3.739953472625368E-2},{"$f":"((Quarterly!D120/Quarterly!D116)-1)","v":3.8723375711702257E-2},{"$f":"((Quarterly!E120/Quarterly!E116)-1)","v":4.2018390900902647E-2},{"$f":"((Quarterly!F120/Quarterly!F116)-1)","v":8.5389175750621549E-2},{"$f":"((Quarterly!G120/Quarterly!G116)-1)","v":3.9275397626422626E-2},{"$f":"((Quarterly!H120/Quarterly!H116)-1)","v":3.8741752801734419E-2},{"$f":"((Quarterly!I120/Quarterly!I116)-1)","v":-2.366643270749258E-2},{"$f":"((Quarterly!J120/Quarterly!J116)-1)","v":-5.9334131375160082E-2},{"$f":"((Quarterly!K120/Quarterly!K116)-1)","v":0.14086727989487513},{"$f":"((Quarterly!L120-Quarterly!L116))","v":-9.02},{"$f":"((Quarterly!M120/Quarterly!M116)-1)","v":7.1997823098278957E-2},{"$f":"((Quarterly!N120/Quarterly!N116)-1)","v":5.8223672171944685E-2},{"$f":"((Quarterly!O120/Quarterly!O116)-1)","v":0.10131589929058249},{"$f":"((Quarterly!P120/Quarterly!P116)-1)","v":5.6515209205906025E-2},{"$f":"((Quarterly!Q120/Quarterly!Q116)-1)","v":3.2409902130109414E-2},null,null,null,null,null,{"$f":"((Quarterly!W120/Quarterly!W116)-1)","v":-1.2870012870014325E-3},{"$f":"((Quarterly!X120/Quarterly!X116)-1)","v":-1.4273719563391962E-2},{"$f":"((Quarterly!Y120/Quarterly!Y116)-1)","v":5.8698801735896033E-2},"--",{"$f":"((Quarterly!AA120/Quarterly!AA116)-1)","v":-0.17396863961127174},{"$f":"((Quarterly!AB120/Quarterly!AB116)-1)","v":-0.13484496717853223},"--","--","--","--","--","--","--","--","--","--",{"$f":"((Quarterly!AM120/Quarterly!AM116)-1)","v":4.4856284916940936E-3},{"$f":"((Quarterly!AN120/Quarterly!AN116)-1)","v":1.6642049391381253E-2},"--","--",{"$f":"Quarterly!AQ120-Quarterly!AQ116","v":3.4999999999999858},"--","--",{"$f":"Quarterly!AT120-Quarterly!AT116","v":0.93333333333333002},"--","--",{"$f":"Quarterly!AW120-Quarterly!AW116","v":3.13333333333334},{"$f":"Quarterly!AX120-Quarterly!AX116","v":6.4333333333333371},{"$f":"Quarterly!AY120-Quarterly!AY116","v":2.7999999999999972},{"$f":"Quarterly!AZ120-Quarterly!AZ116","v":2.36666666666666},{"$f":"Quarterly!BA120-Quarterly!BA116","v":3.2000000000000099},"--","--","--","--",{"$f":"((Quarterly!BF120/Quarterly!BF116)-1)","v":6.0960387211820066E-2},{"$f":"((Quarterly!BG120/Quarterly!BG116)-1)","v":3.7098103874690924E-2},{"$f":"((Quarterly!BH120/Quarterly!BH116)-1)","v":4.4318075634402598E-2},{"$f":"((Quarterly!BI120/Quarterly!BI116)-1)","v":2.2999470058293392E-2},{"$f":"((Quarterly!BJ120/Quarterly!BJ116)-1)","v":-0.29947948374528177},"--",null,"--","--",null,null,null,null,null,{"$f":"((Quarterly!BT120/Quarterly!BT116)-1)","v":0.10891862560507137},{"$f":"Quarterly!BU120-Quarterly!BU116","v":0.49806000000000061},{"$f":"Quarterly!BV120-Quarterly!BV116","v":0.70398999999999745},{"$f":"((Quarterly!BW120/Quarterly!BW116)-1)","v":6.1012692594855089E-2},{"$f":"((Quarterly!BX120/Quarterly!BX116)-1)","v":8.8275062777670499E-2},{"$f":"((Quarterly!BY120/Quarterly!BY116)-1)","v":6.9954804480251598E-2},"--",{"$f":"((Quarterly!CA120/Quarterly!CA116)-1)","v":4.3272839669713514E-2},{"$f":"((Quarterly!CB120/Quarterly!CB116)-1)","v":-0.18904516324471976},{"$f":"((Quarterly!CC120/Quarterly!CC116)-1)","v":-0.13456019726050994},"--","--",null,"--","--",null,{"$f":"((Quarterly!CJ120/Quarterly!CJ116)-1)","v":0.17524752475247518},{"$f":"((Quarterly!CK120/Quarterly!CK116)-1)","v":6.1407114926814277E-2},{"$f":"((Quarterly!CL120/Quarterly!CL116)-1)","v":-3.0129928315412058E-2},{"$f":"((Quarterly!CM120/Quarterly!CM116)-1)","v":0.15416270971826518},{"$f":"((Quarterly!CN120/Quarterly!CN116)-1)","v":3.4225928733889299E-2},{"$f":"((Quarterly!CO120/Quarterly!CO116)-1)","v":0.12178161172483604},{"$f":"((Quarterly!CP120/Quarterly!CP116)-1)","v":0.12550193609279514},{"$f":"((Quarterly!CQ120/Quarterly!CQ116)-1)","v":9.2125380122198841E-3},{"$f":"((Quarterly!CR120/Quarterly!CR116)-1)","v":0.19911504159520321},{"$f":"Quarterly!CS120-Quarterly!CS116","v":2.4666666666666686},"--",null,null,null,null,null,{"$f":"((Quarterly!CZ120/Quarterly!CZ116)-1)","v":1.6785825303077484E-2},{"$f":"((Quarterly!DA120/Quarterly!DA116)-1)","v":4.0147103892123948E-2},null,null,null,null,null,{"$f":"((Quarterly!DG120/Quarterly!DG116)-1)","v":1.4931927975406323E-2},{"$f":"((Quarterly!DH120-Quarterly!DH116)*60)","v":-9.9999999999998579},{"$f":"Quarterly!DI120-Quarterly!DI116","v":0.46666666666666856},"--",{"$f":"(Quarterly!DK120-Quarterly!DK116)*100","v":-13.333333333333286},{"$f":"((Quarterly!DL120/Quarterly!DL116)-1)","v":-1.5328603435399435E-2},null,null,null,{"$f":"((Quarterly!DP120/Quarterly!DP116)-1)","v":1.9584594137986633E-2},null,null,null,null,{"$f":"Quarterly!DU120-Quarterly!DU116","v":3.3333333333333215E-2},"--","--","--","--","--","--","--","--",null,null,null,null,null,{"$f":"((Quarterly!EI120/Quarterly!EI116)-1)","v":4.4811035088693441E-2},{"$f":"((Quarterly!EJ120/Quarterly!EJ116)-1)","v":3.9503050219688696E-2},{"$f":"((Quarterly!EK120/Quarterly!EK116)-1)","v":3.7148220144650468E-2},null,null,null,null,null,{"$f":"((Quarterly!EQ120/Quarterly!EQ116)-1)","v":-3.4182521767171958E-2},{"$f":"((Quarterly!ER120/Quarterly!ER116)-1)","v":2.2249690976514191E-2},{"$f":"((Quarterly!ES120/Quarterly!ES116)-1)","v":1.8627755355479669E-2},null,null,null,null,null,{"$f":"(Quarterly!EY120-Quarterly!EY116)*100","v":-158.66666666666677},{"$f":"(Quarterly!EZ120-Quarterly!EZ116)*100","v":-100.33333333333339},{"$f":"(Quarterly!FA120-Quarterly!FA116)*100","v":-262.66666666666686},{"$f":"(Quarterly!FB120-Quarterly!FB116)*100","v":-274.66666666666697},"--",{"$f":"(Quarterly!FD120-Quarterly!FD116)*100","v":-252.33333333333334},{"$f":"(Quarterly!FE120-Quarterly!FE116)*100","v":-131.99999999999994},{"$f":"(Quarterly!FF120-Quarterly!FF116)*100","v":-186.00000000000003},{"$f":"(Quarterly!FG120-Quarterly!FG116)*100","v":-240.66666666666671},{"$f":"(Quarterly!FH120-Quarterly!FH116)*100","v":-291.33333333333348},{"$f":"(Quarterly!FI120-Quarterly!FI116)*100","v":-321},null,null,null,null,null,null,{"$f":"((Quarterly!FP120/Quarterly!FP116)-1)","v":1.0829885616938428E-2},{"$f":"((Quarterly!FQ120/Quarterly!FQ116)-1)","v":0.12298055500472405},"--","--",{"$f":"((Quarterly!FT120/Quarterly!FT116)-1)","v":-8.569056018054344E-2},{"$f":"((Quarterly!FU120/Quarterly!FU116)-1)","v":-0.19860658287277411},{"$f":"((Quarterly!FV120/Quarterly!FV116)-1)","v":-4.6663790231407432E-2},{"$f":"((Quarterly!FW120/Quarterly!FW116)-1)","v":3.505554956315371E-2},{"$f":"((Quarterly!FX120/Quarterly!FX116)-1)","v":-0.13284243895587966},null,null,null,null,null,{"$f":"((Quarterly!GD120/Quarterly!GD116)-1)","v":-0.50030512976989627},"--","--","--",{"$f":"((Quarterly!GH120/Quarterly!GH116)-1)","v":{"$error":"#DIV/0!"}},"--","--","--","--"]
["86'Q3",{"$f":"((Quarterly!B121/Quarterly!B117)-1)","v":5.1214193538697828E-2},{"$f":"((Quarterly!C121/Quarterly!C117)-1)","v":3.179004169194366E-2},{"$f":"((Quarterly!D121/Quarterly!D117)-1)","v":3.6870588115343716E-2},{"$f":"((Quarterly!E121/Quarterly!E117)-1)","v":4.0897694109909954E-2},{"$f":"((Quarterly!F121/Quarterly!F117)-1)","v":0.10709364328081028},{"$f":"((Quarterly!G121/Quarterly!G117)-1)","v":3.2949014463737214E-2},{"$f":"((Quarterly!H121/Quarterly!H117)-1)","v":3.7038939895879697E-2},{"$f":"((Quarterly!I121/Quarterly!I117)-1)","v":-2.3783112215467805E-2},{"$f":"((Quarterly!J121/Quarterly!J117)-1)","v":-6.0010524560754619E-2},{"$f":"((Quarterly!K121/Quarterly!K117)-1)","v":0.14404360238774983},{"$f":"((Quarterly!L121-Quarterly!L117))","v":-33.195999999999998},{"$f":"((Quarterly!M121/Quarterly!M117)-1)","v":0.11242466471758683},{"$f":"((Quarterly!N121/Quarterly!N117)-1)","v":9.8414492130819653E-2},{"$f":"((Quarterly!O121/Quarterly!O117)-1)","v":0.14178809898424904},{"$f":"((Quarterly!P121/Quarterly!P117)-1)","v":5.5795412858257398E-2},{"$f":"((Quarterly!Q121/Quarterly!Q117)-1)","v":0.1727080305000892},null,null,null,null,null,{"$f":"((Quarterly!W121/Quarterly!W117)-1)","v":7.7720207253886286E-3},{"$f":"((Quarterly!X121/Quarterly!X117)-1)","v":-5.5038103302285091E-3},{"$f":"((Quarterly!Y121/Quarterly!Y117)-1)","v":5.0584561906288572E-2},"--",{"$f":"((Quarterly!AA121/Quarterly!AA117)-1)","v":-0.19840824262083734},{"$f":"((Quarterly!AB121/Quarterly!AB117)-1)","v":-0.21884166697925644},"--","--","--","--","--","--","--","--","--","--",{"$f":"((Quarterly!AM121/Quarterly!AM117)-1)","v":9.628857427895543E-3},{"$f":"((Quarterly!AN121/Quarterly!AN117)-1)","v":2.2481916733118279E-2},"--","--",{"$f":"Quarterly!AQ121-Quarterly!AQ117","v":2.5},"--","--",{"$f":"Quarterly!AT121-Quarterly!AT117","v":0.73333333333332718},"--","--",{"$f":"Quarterly!AW121-Quarterly!AW117","v":2.5666666666666629},{"$f":"Quarterly!AX121-Quarterly!AX117","v":2.6666666666666572},{"$f":"Quarterly!AY121-Quarterly!AY117","v":8.0000000000000071},{"$f":"Quarterly!AZ121-Quarterly!AZ117","v":3.3999999999999986},{"$f":"Quarterly!BA121-Quarterly!BA117","v":2.8333333333333215},"--","--","--","--",{"$f":"((Quarterly!BF121/Quarterly!BF117)-1)","v":5.8255107675317497E-2},{"$f":"((Quarterly!BG121/Quarterly!BG117)-1)","v":2.8954931308869059E-2},{"$f":"((Quarterly!BH121/Quarterly!BH117)-1)","v":4.235829825536741E-2},{"$f":"((Quarterly!BI121/Quarterly!BI117)-1)","v":2.8480343275012698E-2},{"$f":"((Quarterly!BJ121/Quarterly!BJ117)-1)","v":-0.32908687852757157},"--",null,"--","--",null,null,null,null,null,{"$f":"((Quarterly!BT121/Quarterly!BT117)-1)","v":9.2545121861719926E-2},{"$f":"Quarterly!BU121-Quarterly!BU117","v":0.31004000000000076},{"$f":"Quarterly!BV121-Quarterly!BV117","v":0.42866000000000071},{"$f":"((Quarterly!BW121/Quarterly!BW117)-1)","v":4.5748098281607863E-2},{"$f":"((Quarterly!BX121/Quarterly!BX117)-1)","v":3.3901626494219128E-2},{"$f":"((Quarterly!BY121/Quarterly!BY117)-1)","v":-4.224312857406376E-2},"--",{"$f":"((Quarterly!CA121/Quarterly!CA117)-1)","v":5.9963682299068122E-2},{"$f":"((Quarterly!CB121/Quarterly!CB117)-1)","v":-0.18174203024354185},{"$f":"((Quarterly!CC121/Quarterly!CC117)-1)","v":-0.13347284869497344},"--","--",null,"--","--",null,{"$f":"((Quarterly!CJ121/Quarterly!CJ117)-1)","v":-4.0552995391705093E-2},{"$f":"((Quarterly!CK121/Quarterly!CK117)-1)","v":6.1360399196324966E-2},{"$f":"((Quarterly!CL121/Quarterly!CL117)-1)","v":0.10989790130459443},{"$f":"((Quarterly!CM121/Quarterly!CM117)-1)","v":9.6632042807680119E-2},{"$f":"((Quarterly!CN121/Quarterly!CN117)-1)","v":4.5045428820067901E-2},{"$f":"((Quarterly!CO121/Quarterly!CO117)-1)","v":0.12575936550793121},{"$f":"((Quarterly!CP121/Quarterly!CP117)-1)","v":0.1143159537919054},{"$f":"((Quarterly!CQ121/Quarterly!CQ117)-1)","v":9.1195640485277618E-3},{"$f":"((Quarterly!CR121/Quarterly!CR117)-1)","v":0.17592343084983519},{"$f":"Quarterly!CS121-Quarterly!CS117","v":2},"--",null,null,null,null,null,{"$f":"((Quarterly!CZ121/Quarterly!CZ117)-1)","v":1.6682113067655102E-2},{"$f":"((Quarterly!DA121/Quarterly!DA117)-1)","v":4.0704738760631853E-2},null,null,null,null,null,{"$f":"((Quarterly!DG121/Quarterly!DG117)-1)","v":1.5330705212439621E-2},{"$f":"((Quarterly!DH121-Quarterly!DH117)*60)","v":-9.9999999999998579},{"$f":"Quarterly!DI121-Quarterly!DI117","v":0.63333333333332575},"--",{"$f":"(Quarterly!DK121-Quarterly!DK117)*100","v":-23.333333333333428},{"$f":"((Quarterly!DL121/Quarterly!DL117)-1)","v":-1.4384976525821491E-2},null,null,null,{"$f":"((Quarterly!DP121/Quarterly!DP117)-1)","v":1.8593971437915746E-2},null,null,null,null,{"$f":"Quarterly!DU121-Quarterly!DU117","v":0.16666666666666696},"--","--","--","--","--","--","--","--",null,null,null,null,null,{"$f":"((Quarterly!EI121/Quarterly!EI117)-1)","v":4.0808848782657225E-2},{"$f":"((Quarterly!EJ121/Quarterly!EJ117)-1)","v":3.2113292852872899E-2},{"$f":"((Quarterly!EK121/Quarterly!EK117)-1)","v":3.0416077994345203E-2},null,null,null,null,null,{"$f":"((Quarterly!EQ121/Quarterly!EQ117)-1)","v":-3.214285714285714E-2},{"$f":"((Quarterly!ER121/Quarterly!ER117)-1)","v":2.2783251231527135E-2},{"$f":"((Quarterly!ES121/Quarterly!ES117)-1)","v":1.9826517967781898E-2},null,null,null,null,null,{"$f":"(Quarterly!EY121-Quarterly!EY117)*100","v":-164.66666666666657},{"$f":"(Quarterly!EZ121-Quarterly!EZ117)*100","v":-169.33333333333343},{"$f":"(Quarterly!FA121-Quarterly!FA117)*100","v":-220.00000000000011},{"$f":"(Quarterly!FB121-Quarterly!FB117)*100","v":-228.99999999999991},"--",{"$f":"(Quarterly!FD121-Quarterly!FD117)*100","v":-189.66666666666646},{"$f":"(Quarterly!FE121-Quarterly!FE117)*100","v":-158.33333333333331},{"$f":"(Quarterly!FF121-Quarterly!FF117)*100","v":-200.33333333333337},{"$f":"(Quarterly!FG121-Quarterly!FG117)*100","v":-244.66666666666663},{"$f":"(Quarterly!FH121-Quarterly!FH117)*100","v":-284.66666666666669},{"$f":"(Quarterly!FI121-Quarterly!FI117)*100","v":-303},null,null,null,null,null,null,{"$f":"((Quarterly!FP121/Quarterly!FP117)-1)","v":1.8674639741201648E-2},{"$f":"((Quarterly!FQ121/Quarterly!FQ117)-1)","v":0.26351227974071056},"--","--",{"$f":"((Quarterly!FT121/Quarterly!FT117)-1)","v":-9.049820165005229E-2},{"$f":"((Quarterly!FU121/Quarterly!FU117)-1)","v":-0.19227941988063602},{"$f":"((Quarterly!FV121/Quarterly!FV117)-1)","v":1.4425894293231156E-2},{"$f":"((Quarterly!FW121/Quarterly!FW117)-1)","v":0.23883587786259541},{"$f":"((Quarterly!FX121/Quarterly!FX117)-1)","v":-7.5380776181051323E-2},null,null,null,null,null,{"$f":"((Quarterly!GD121/Quarterly!GD117)-1)","v":-0.5012773919614264},"--","--","--",{"$f":"((Quarterly!GH121/Quarterly!GH117)-1)","v":{"$error":"#DIV/0!"}},"--","--","--","--"]
["86'Q4",{"$f":"((Quarterly!B122/Quarterly!B118)-1)","v":4.8570828668984989E-2},{"$f":"((Quarterly!C122/Quarterly!C118)-1)","v":2.9409705438771638E-2},{"$f":"((Quarterly!D122/Quarterly!D118)-1)","v":3.8873770573753186E-2},{"$f":"((Quarterly!E122/Quarterly!E118)-1)","v":4.4872189082262093E-2},{"$f":"((Quarterly!F122/Quarterly!F118)-1)","v":0.12837774951137049},{"$f":"((Quarterly!G122/Quarterly!G118)-1)","v":3.2144384569327E-2},{"$f":"((Quarterly!H122/Quarterly!H118)-1)","v":4.140561450858371E-2},{"$f":"((Quarterly!I122/Quarterly!I118)-1)","v":-3.1859487023033983E-2},{"$f":"((Quarterly!J122/Quarterly!J118)-1)","v":-7.33840544963551E-2},{"$f":"((Quarterly!K122/Quarterly!K118)-1)","v":0.11561866125760645},{"$f":"((Quarterly!L122-Quarterly!L118))","v":-50.745999999999995},{"$f":"((Quarterly!M122/Quarterly!M118)-1)","v":7.8717256586700923E-2},{"$f":"((Quarterly!N122/Quarterly!N118)-1)","v":0.10624866390734033},{"$f":"((Quarterly!O122/Quarterly!O118)-1)","v":2.2577951440860389E-2},{"$f":"((Quarterly!P122/Quarterly!P118)-1)","v":4.620758806834413E-2},{"$f":"((Quarterly!Q122/Quarterly!Q118)-1)","v":-3.1617767497729155E-2},null,null,null,null,null,{"$f":"((Quarterly!W122/Quarterly!W118)-1)","v":1.5523932729624823E-2},{"$f":"((Quarterly!X122/Quarterly!X118)-1)","v":8.4602368866337763E-4},{"$f":"((Quarterly!Y122/Quarterly!Y118)-1)","v":6.1397838052742904E-2},"--",{"$f":"((Quarterly!AA122/Quarterly!AA118)-1)","v":-0.18312106007976314},{"$f":"((Quarterly!AB122/Quarterly!AB118)-1)","v":-0.21516490989459369},"--","--","--","--","--","--","--","--","--","--",{"$f":"((Quarterly!AM122/Quarterly!AM118)-1)","v":1.5108344897238668E-2},{"$f":"((Quarterly!AN122/Quarterly!AN118)-1)","v":2.8555778221406758E-2},"--","--",{"$f":"Quarterly!AQ122-Quarterly!AQ118","v":-0.23333333333334139},"--","--",{"$f":"Quarterly!AT122-Quarterly!AT118","v":-0.63333333333333286},"--","--",{"$f":"Quarterly!AW122-Quarterly!AW118","v":-2.5},{"$f":"Quarterly!AX122-Quarterly!AX118","v":0.50000000000000711},{"$f":"Quarterly!AY122-Quarterly!AY118","v":10.066666666666663},{"$f":"Quarterly!AZ122-Quarterly!AZ118","v":-1.5999999999999943},{"$f":"Quarterly!BA122-Quarterly!BA118","v":2.7666666666666586},"--","--","--","--",{"$f":"((Quarterly!BF122/Quarterly!BF118)-1)","v":5.2189547312940343E-2},{"$f":"((Quarterly!BG122/Quarterly!BG118)-1)","v":2.1998379066805684E-2},{"$f":"((Quarterly!BH122/Quarterly!BH118)-1)","v":3.9610840861709518E-2},{"$f":"((Quarterly!BI122/Quarterly!BI118)-1)","v":2.9558043957353064E-2},{"$f":"((Quarterly!BJ122/Quarterly!BJ118)-1)","v":-0.24809449487066804},"--",null,"--","--",null,null,null,null,null,{"$f":"((Quarterly!BT122/Quarterly!BT118)-1)","v":8.2291642422316569E-2},{"$f":"Quarterly!BU122-Quarterly!BU118","v":0.33178999999999981},{"$f":"Quarterly!BV122-Quarterly!BV118","v":0.46620000000000061},{"$f":"((Quarterly!BW122/Quarterly!BW118)-1)","v":4.7370808380281293E-2},{"$f":"((Quarterly!BX122/Quarterly!BX118)-1)","v":-6.1563755937157572E-2},{"$f":"((Quarterly!BY122/Quarterly!BY118)-1)","v":-1.3386880856759431E-3},"--",{"$f":"((Quarterly!CA122/Quarterly!CA118)-1)","v":7.4208269314559816E-2},{"$f":"((Quarterly!CB122/Quarterly!CB118)-1)","v":-0.22445506183478481},{"$f":"((Quarterly!CC122/Quarterly!CC118)-1)","v":-0.1620722684691438},"--","--",null,"--","--",null,{"$f":"((Quarterly!CJ122/Quarterly!CJ118)-1)","v":2.4182076813655806E-2},{"$f":"((Quarterly!CK122/Quarterly!CK118)-1)","v":5.4030771510879205E-2},{"$f":"((Quarterly!CL122/Quarterly!CL118)-1)","v":-5.6188306757782747E-2},{"$f":"((Quarterly!CM122/Quarterly!CM118)-1)","v":4.3033403551008043E-2},{"$f":"((Quarterly!CN122/Quarterly!CN118)-1)","v":3.5009505932182661E-2},{"$f":"((Quarterly!CO122/Quarterly!CO118)-1)","v":0.14677127834373982},{"$f":"((Quarterly!CP122/Quarterly!CP118)-1)","v":0.10087441966926725},{"$f":"((Quarterly!CQ122/Quarterly!CQ118)-1)","v":9.0040771865600444E-3},{"$f":"((Quarterly!CR122/Quarterly!CR118)-1)","v":0.1434710521464635},{"$f":"Quarterly!CS122-Quarterly!CS118","v":0.96666666666666856},"--",null,null,null,null,null,{"$f":"((Quarterly!CZ122/Quarterly!CZ118)-1)","v":1.3455657492354778E-2},{"$f":"((Quarterly!DA122/Quarterly!DA118)-1)","v":3.8738738738738787E-2},null,null,null,null,null,{"$f":"((Quarterly!DG122/Quarterly!DG118)-1)","v":1.3472403302911662E-2},{"$f":"((Quarterly!DH122-Quarterly!DH118)*60)","v":-12.000000000000171},{"$f":"Quarterly!DI122-Quarterly!DI118","v":0.40000000000000568},"--",{"$f":"(Quarterly!DK122-Quarterly!DK118)*100","v":-20.000000000000107},{"$f":"((Quarterly!DL122/Quarterly!DL118)-1)","v":-1.2637010810199856E-2},null,null,null,{"$f":"((Quarterly!DP122/Quarterly!DP118)-1)","v":1.914428143753133E-2},null,null,null,null,{"$f":"Quarterly!DU122-Quarterly!DU118","v":0.10000000000000053},"--","--","--","--","--","--","--","--",null,null,null,null,null,{"$f":"((Quarterly!EI122/Quarterly!EI118)-1)","v":3.177035788971927E-2},{"$f":"((Quarterly!EJ122/Quarterly!EJ118)-1)","v":2.8627560648684103E-2},{"$f":"((Quarterly!EK122/Quarterly!EK118)-1)","v":2.8646099425089888E-2},null,null,null,null,null,{"$f":"((Quarterly!EQ122/Quarterly!EQ118)-1)","v":-3.4527266860277517E-2},{"$f":"((Quarterly!ER122/Quarterly!ER118)-1)","v":2.6903087740751896E-2},{"$f":"((Quarterly!ES122/Quarterly!ES118)-1)","v":2.120467117393976E-2},null,null,null,null,null,{"$f":"(Quarterly!EY122-Quarterly!EY118)*100","v":-200},{"$f":"(Quarterly!EZ122-Quarterly!EZ118)*100","v":-183.66666666666669},{"$f":"(Quarterly!FA122-Quarterly!FA118)*100","v":-189.99999999999986},{"$f":"(Quarterly!FB122-Quarterly!FB118)*100","v":-188.33333333333329},"--",{"$f":"(Quarterly!FD122-Quarterly!FD118)*100","v":-206.66666666666646},{"$f":"(Quarterly!FE122-Quarterly!FE118)*100","v":-181.33333333333343},{"$f":"(Quarterly!FF122-Quarterly!FF118)*100","v":-205.66666666666674},{"$f":"(Quarterly!FG122-Quarterly!FG118)*100","v":-225.33333333333329},{"$f":"(Quarterly!FH122-Quarterly!FH118)*100","v":-247.99999999999994},{"$f":"(Quarterly!FI122-Quarterly!FI118)*100","v":-249.66666666666671},null,null,null,null,null,null,{"$f":"((Quarterly!FP122/Quarterly!FP118)-1)","v":3.9142725976755166E-3},{"$f":"((Quarterly!FQ122/Quarterly!FQ118)-1)","v":0.17819571833240322},"--","--",{"$f":"((Quarterly!FT122/Quarterly!FT118)-1)","v":-4.6590038471045814E-2},{"$f":"((Quarterly!FU122/Quarterly!FU118)-1)","v":-0.13456304890096249},{"$f":"((Quarterly!FV122/Quarterly!FV118)-1)","v":-2.5455592439536767E-2},{"$f":"((Quarterly!FW122/Quarterly!FW118)-1)","v":0.25080922020598329},{"$f":"((Quarterly!FX122/Quarterly!FX118)-1)","v":-0.15564140029222795},null,null,null,null,null,{"$f":"((Quarterly!GD122/Quarterly!GD118)-1)","v":-0.47321846561390279},"--","--","--",{"$f":"((Quarterly!GH122/Quarterly!GH118)-1)","v":{"$error":"#DIV/0!"}},"--","--","--","--"]
["87'Q1",{"$f":"((Quarterly!B123/Quarterly!B119)-1)","v":4.8686946787047214E-2},{"$f":"((Quarterly!C123/Quarterly!C119)-1)","v":2.7088007118091451E-2},{"$f":"((Quarterly!D123/Quarterly!D119)-1)","v":2.7604949207563623E-2},{"$f":"((Quarterly!E123/Quarterly!E119)-1)","v":3.6242047279305689E-2},{"$f":"((Quarterly!F123/Quarterly!F119)-1)","v":4.0223769420206112E-2},{"$f":"((Quarterly!G123/Quarterly!G119)-1)","v":2.0558821541996286E-2},{"$f":"((Quarterly!H123/Quarterly!H119)-1)","v":4.1963034518252007E-2},{"$f":"((Quarterly!I123/Quarterly!I119)-1)","v":-4.5295477055133704E-2},{"$f":"((Quarterly!J123/Quarterly!J119)-1)","v":-9.5868611127567505E-2},{"$f":"((Quarterly!K123/Quarterly!K119)-1)","v":6.7363813229571967E-2},{"$f":"((Quarterly!L123-Quarterly!L119))","v":2.904999999999994},{"$f":"((Quarterly!M123/Quarterly!M119)-1)","v":7.3267004767077593E-2},{"$f":"((Quarterly!N123/Quarterly!N119)-1)","v":7.328279347576383E-2},{"$f":"((Quarterly!O123/Quarterly!O119)-1)","v":7.3231413518260347E-2},{"$f":"((Quarterly!P123/Quarterly!P119)-1)","v":4.4113794006922502E-2},{"$f":"((Quarterly!Q123/Quarterly!Q119)-1)","v":-3.3406964334466882E-2},null,null,null,null,null,{"$f":"((Quarterly!W123/Quarterly!W119)-1)","v":1.5404364569961304E-2},{"$f":"((Quarterly!X123/Quarterly!X119)-1)","v":7.6013513513515374E-3},{"$f":"((Quarterly!Y123/Quarterly!Y119)-1)","v":9.1340417142713459E-2},"--",{"$f":"((Quarterly!AA123/Quarterly!AA119)-1)","v":7.9493991144845122E-2},{"$f":"((Quarterly!AB123/Quarterly!AB119)-1)","v":-0.11519930290966884},"--","--","--","--","--","--","--","--","--","--",{"$f":"((Quarterly!AM123/Quarterly!AM119)-1)","v":2.2366163939625983E-2},{"$f":"((Quarterly!AN123/Quarterly!AN119)-1)","v":3.0934319933929366E-2},"--","--",{"$f":"Quarterly!AQ123-Quarterly!AQ119","v":3.1000000000000014},"--","--",{"$f":"Quarterly!AT123-Quarterly!AT119","v":3.5666666666666629},"--","--",{"$f":"Quarterly!AW123-Quarterly!AW119","v":2.0666666666666629},{"$f":"Quarterly!AX123-Quarterly!AX119","v":2.8333333333333286},{"$f":"Quarterly!AY123-Quarterly!AY119","v":13.06666666666667},{"$f":"Quarterly!AZ123-Quarterly!AZ119","v":4.3666666666666671},{"$f":"Quarterly!BA123-Quarterly!BA119","v":1.3999999999999986},"--","--","--","--",{"$f":"((Quarterly!BF123/Quarterly!BF119)-1)","v":4.2134899638358148E-2},{"$f":"((Quarterly!BG123/Quarterly!BG119)-1)","v":5.1658465612791638E-3},{"$f":"((Quarterly!BH123/Quarterly!BH119)-1)","v":2.3118384310669482E-2},{"$f":"((Quarterly!BI123/Quarterly!BI119)-1)","v":3.6791234243463755E-2},{"$f":"((Quarterly!BJ123/Quarterly!BJ119)-1)","v":0.18467497076399852},"--",null,"--","--",null,null,null,null,null,{"$f":"((Quarterly!BT123/Quarterly!BT119)-1)","v":6.9817855458268241E-2},{"$f":"Quarterly!BU123-Quarterly!BU119","v":0.17543000000000042},{"$f":"Quarterly!BV123-Quarterly!BV119","v":0.30629000000000062},{"$f":"((Quarterly!BW123/Quarterly!BW119)-1)","v":3.9991706191846221E-2},{"$f":"((Quarterly!BX123/Quarterly!BX119)-1)","v":-7.2331460674157411E-2},{"$f":"((Quarterly!BY123/Quarterly!BY119)-1)","v":-5.7656655543196211E-2},"--",{"$f":"((Quarterly!CA123/Quarterly!CA119)-1)","v":-6.2601825607606076E-2},{"$f":"((Quarterly!CB123/Quarterly!CB119)-1)","v":-0.14806444300608423},{"$f":"((Quarterly!CC123/Quarterly!CC119)-1)","v":-0.11981140789052347},"--","--",null,"--","--",null,{"$f":"((Quarterly!CJ123/Quarterly!CJ119)-1)","v":-7.9880392994446825E-2},{"$f":"((Quarterly!CK123/Quarterly!CK119)-1)","v":5.2663228675037033E-2},{"$f":"((Quarterly!CL123/Quarterly!CL119)-1)","v":8.233890214797368E-3},{"$f":"((Quarterly!CM123/Quarterly!CM119)-1)","v":3.2841636515446693E-2},{"$f":"((Quarterly!CN123/Quarterly!CN119)-1)","v":3.0722240049440686E-2},{"$f":"((Quarterly!CO123/Quarterly!CO119)-1)","v":0.1685493701747256},{"$f":"((Quarterly!CP123/Quarterly!CP119)-1)","v":6.9539035738006572E-2},{"$f":"((Quarterly!CQ123/Quarterly!CQ119)-1)","v":8.9510866694284541E-3},{"$f":"((Quarterly!CR123/Quarterly!CR119)-1)","v":0.10508545347026743},{"$f":"Quarterly!CS123-Quarterly!CS119","v":-5.0666666666666629},"--",null,null,null,null,null,{"$f":"((Quarterly!CZ123/Quarterly!CZ119)-1)","v":2.0383328262853606E-2},{"$f":"((Quarterly!DA123/Quarterly!DA119)-1)","v":3.5947712418300748E-2},null,null,null,null,null,{"$f":"((Quarterly!DG123/Quarterly!DG119)-1)","v":1.9022913964548138E-2},{"$f":"((Quarterly!DH123-Quarterly!DH119)*60)","v":-6.0000000000000853},{"$f":"Quarterly!DI123-Quarterly!DI119","v":0.46666666666666856},"--",{"$f":"(Quarterly!DK123-Quarterly!DK119)*100","v":-43.333333333333535},{"$f":"((Quarterly!DL123/Quarterly!DL119)-1)","v":-9.4765257772828626E-3},null,null,null,{"$f":"((Quarterly!DP123/Quarterly!DP119)-1)","v":2.1085292232976949E-2},null,null,null,null,{"$f":"Quarterly!DU123-Quarterly!DU119","v":-0.10000000000000053},"--","--","--","--","--","--","--","--",null,null,null,null,null,{"$f":"((Quarterly!EI123/Quarterly!EI119)-1)","v":1.7105624180922208E-2},{"$f":"((Quarterly!EJ123/Quarterly!EJ119)-1)","v":2.5030480852244352E-2},{"$f":"((Quarterly!EK123/Quarterly!EK119)-1)","v":2.977329254977934E-2},null,null,null,null,null,{"$f":"((Quarterly!EQ123/Quarterly!EQ119)-1)","v":-8.1913499344692386E-3},{"$f":"((Quarterly!ER123/Quarterly!ER119)-1)","v":2.6796589524969772E-2},{"$f":"((Quarterly!ES123/Quarterly!ES119)-1)","v":2.2378908645003026E-2},null,null,null,null,null,{"$f":"(Quarterly!EY123-Quarterly!EY119)*100","v":-186.66666666666671},{"$f":"(Quarterly!EZ123-Quarterly!EZ119)*100","v":-160.66666666666674},{"$f":"(Quarterly!FA123-Quarterly!FA119)*100","v":-120.66666666666652},{"$f":"(Quarterly!FB123-Quarterly!FB119)*100","v":-135.66666666666657},"--",{"$f":"(Quarterly!FD123-Quarterly!FD119)*100","v":-144.99999999999994},{"$f":"(Quarterly!FE123-Quarterly!FE119)*100","v":-135.99999999999994},{"$f":"(Quarterly!FF123-Quarterly!FF119)*100","v":-153.3333333333334},{"$f":"(Quarterly!FG123-Quarterly!FG119)*100","v":-142.33333333333329},{"$f":"(Quarterly!FH123-Quarterly!FH119)*100","v":-142.00000000000009},{"$f":"(Quarterly!FI123-Quarterly!FI119)*100","v":-136.33333333333343},null,null,null,null,null,null,{"$f":"((Quarterly!FP123/Quarterly!FP119)-1)","v":-4.7053796116043878E-2},{"$f":"((Quarterly!FQ123/Quarterly!FQ119)-1)","v":0.16063411751288226},"--","--",{"$f":"((Quarterly!FT123/Quarterly!FT119)-1)","v":-5.030913471003895E-2},{"$f":"((Quarterly!FU123/Quarterly!FU119)-1)","v":-0.13671044055300818},{"$f":"((Quarterly!FV123/Quarterly!FV119)-1)","v":4.7558086322851967E-3},{"$f":"((Quarterly!FW123/Quarterly!FW119)-1)","v":0.2669844090798934},{"$f":"((Quarterly!FX123/Quarterly!FX119)-1)","v":5.2182290733106429E-2},null,null,null,null,null,{"$f":"((Quarterly!GD123/Quarterly!GD119)-1)","v":7.2189001078325488E-2},"--","--","--",{"$f":"((Quarterly!GH123/Quarterly!GH119)-1)","v":{"$error":"#DIV/0!"}},"--","--","--","--"]
["87'Q2",{"$f":"((Quarterly!B124/Quarterly!B120)-1)","v":5.8441203491798932E-2},{"$f":"((Quarterly!C124/Quarterly!C120)-1)","v":3.3871140379672537E-2},{"$f":"((Quarterly!D124/Quarterly!D120)-1)","v":3.3625493565458742E-2},{"$f":"((Quarterly!E124/Quarterly!E120)-1)","v":3.8997326471948091E-2},{"$f":"((Quarterly!F124/Quarterly!F120)-1)","v":4.5928405720494281E-2},{"$f":"((Quarterly!G124/Quarterly!G120)-1)","v":1.9272307151349199E-2},{"$f":"((Quarterly!H124/Quarterly!H120)-1)","v":4.5972896862894519E-2},{"$f":"((Quarterly!I124/Quarterly!I120)-1)","v":-5.8859209669087642E-3},{"$f":"((Quarterly!J124/Quarterly!J120)-1)","v":-2.3544867777604006E-2},{"$f":"((Quarterly!K124/Quarterly!K120)-1)","v":1.5664593411656158E-2},{"$f":"((Quarterly!L124-Quarterly!L120))","v":4.3889999999999993},{"$f":"((Quarterly!M124/Quarterly!M120)-1)","v":5.5107515732087498E-2},{"$f":"((Quarterly!N124/Quarterly!N120)-1)","v":0.10539382186924895},{"$f":"((Quarterly!O124/Quarterly!O120)-1)","v":-4.7738134933866916E-2},{"$f":"((Quarterly!P124/Quarterly!P120)-1)","v":3.2575376859269145E-2},{"$f":"((Quarterly!Q124/Quarterly!Q120)-1)","v":-0.36852365699806389},null,null,null,null,null,{"$f":"((Quarterly!W124/Quarterly!W120)-1)","v":2.8350515463917647E-2},{"$f":"((Quarterly!X124/Quarterly!X120)-1)","v":2.8109028960817461E-2},{"$f":"((Quarterly!Y124/Quarterly!Y120)-1)","v":8.4281188357663961E-2},"--",{"$f":"((Quarterly!AA124/Quarterly!AA120)-1)","v":0.27494082057831348},{"$f":"((Quarterly!AB124/Quarterly!AB120)-1)","v":4.4775306153028716E-2},"--","--","--","--","--","--","--","--","--","--",{"$f":"((Quarterly!AM124/Quarterly!AM120)-1)","v":4.6654174254487479E-2},{"$f":"((Quarterly!AN124/Quarterly!AN120)-1)","v":5.0776058822413761E-2},"--","--",{"$f":"Quarterly!AQ124-Quarterly!AQ120","v":5.5},"--","--",{"$f":"Quarterly!AT124-Quarterly!AT120","v":7.56666666666667},"--","--",{"$f":"Quarterly!AW124-Quarterly!AW120","v":4},{"$f":"Quarterly!AX124-Quarterly!AX120","v":4.5333333333333243},{"$f":"Quarterly!AY124-Quarterly!AY120","v":20.733333333333327},{"$f":"Quarterly!AZ124-Quarterly!AZ120","v":6.3000000000000043},{"$f":"Quarterly!BA124-Quarterly!BA120","v":4.2666666666666586},"--","--","--","--",{"$f":"((Quarterly!BF124/Quarterly!BF120)-1)","v":3.8369189396849857E-2},{"$f":"((Quarterly!BG124/Quarterly!BG120)-1)","v":4.6559164206223524E-3},{"$f":"((Quarterly!BH124/Quarterly!BH120)-1)","v":3.4767936804160904E-3},{"$f":"((Quarterly!BI124/Quarterly!BI120)-1)","v":3.3568172399502716E-2},{"$f":"((Quarterly!BJ124/Quarterly!BJ120)-1)","v":0.36134225563256339},"--",null,"--","--",null,null,null,null,null,{"$f":"((Quarterly!BT124/Quarterly!BT120)-1)","v":5.5168811599082934E-2},{"$f":"Quarterly!BU124-Quarterly!BU120","v":0.24845000000000006},{"$f":"Quarterly!BV124-Quarterly!BV120","v":0.40742000000000189},{"$f":"((Quarterly!BW124/Quarterly!BW120)-1)","v":5.351236893787692E-2},{"$f":"((Quarterly!BX124/Quarterly!BX120)-1)","v":-0.14164004259850904},{"$f":"((Quarterly!BY124/Quarterly!BY120)-1)","v":-0.15096418732782368},"--",{"$f":"((Quarterly!CA124/Quarterly!CA120)-1)","v":-5.2122571634147574E-2},{"$f":"((Quarterly!CB124/Quarterly!CB120)-1)","v":0.12669753209461909},{"$f":"((Quarterly!CC124/Quarterly!CC120)-1)","v":3.5396158951990886E-2},"--","--",null,"--","--",null,{"$f":"((Quarterly!CJ124/Quarterly!CJ120)-1)","v":-0.14785172704296545},{"$f":"((Quarterly!CK124/Quarterly!CK120)-1)","v":5.688164294721676E-2},{"$f":"((Quarterly!CL124/Quarterly!CL120)-1)","v":-0.2739346344843514},{"$f":"((Quarterly!CM124/Quarterly!CM120)-1)","v":-6.3631376851343902E-2},{"$f":"((Quarterly!CN124/Quarterly!CN120)-1)","v":7.2895530090664185E-3},{"$f":"((Quarterly!CO124/Quarterly!CO120)-1)","v":0.14273383553044572},{"$f":"((Quarterly!CP124/Quarterly!CP120)-1)","v":5.4510036744211732E-2},{"$f":"((Quarterly!CQ124/Quarterly!CQ120)-1)","v":8.9605784491082474E-3},{"$f":"((Quarterly!CR124/Quarterly!CR120)-1)","v":0.10644496049233987},{"$f":"Quarterly!CS124-Quarterly!CS120","v":-4.9666666666666686},"--",null,null,null,null,null,{"$f":"((Quarterly!CZ124/Quarterly!CZ120)-1)","v":3.6991745643534024E-2},{"$f":"((Quarterly!DA124/Quarterly!DA120)-1)","v":3.97760754272245E-2},null,null,null,null,null,{"$f":"((Quarterly!DG124/Quarterly!DG120)-1)","v":2.8126352228472484E-2},{"$f":"((Quarterly!DH124-Quarterly!DH120)*60)","v":0},{"$f":"Quarterly!DI124-Quarterly!DI120","v":0.30000000000001137},"--",{"$f":"(Quarterly!DK124-Quarterly!DK120)*100","v":-90.000000000000028},{"$f":"((Quarterly!DL124/Quarterly!DL120)-1)","v":-2.5597754982081833E-3},null,null,null,{"$f":"((Quarterly!DP124/Quarterly!DP120)-1)","v":2.5557430275001236E-2},null,null,null,null,{"$f":"Quarterly!DU124-Quarterly!DU120","v":-9.9999999999999645E-2},"--","--","--","--","--","--","--","--",null,null,null,null,null,{"$f":"((Quarterly!EI124/Quarterly!EI120)-1)","v":2.2696047086238291E-2},{"$f":"((Quarterly!EJ124/Quarterly!EJ120)-1)","v":3.3844960414170844E-2},{"$f":"((Quarterly!EK124/Quarterly!EK120)-1)","v":3.7977211249731635E-2},null,null,null,null,null,{"$f":"((Quarterly!EQ124/Quarterly!EQ120)-1)","v":2.6711185308848195E-2},{"$f":"((Quarterly!ER124/Quarterly!ER120)-1)","v":2.4788391777509133E-2},{"$f":"((Quarterly!ES124/Quarterly!ES120)-1)","v":2.0115818348064529E-2},null,null,null,null,null,{"$f":"(Quarterly!EY124-Quarterly!EY120)*100","v":-56.333333333333258},{"$f":"(Quarterly!EZ124-Quarterly!EZ120)*100","v":-26.999999999999957},{"$f":"(Quarterly!FA124-Quarterly!FA120)*100","v":16.3333333333334},{"$f":"(Quarterly!FB124-Quarterly!FB120)*100","v":8.3333333333333925},"--",{"$f":"(Quarterly!FD124-Quarterly!FD120)*100","v":7.0000000000000284},{"$f":"(Quarterly!FE124-Quarterly!FE120)*100","v":-48.333333333333428},{"$f":"(Quarterly!FF124-Quarterly!FF120)*100","v":16.000000000000014},{"$f":"(Quarterly!FG124-Quarterly!FG120)*100","v":46.666666666666679},{"$f":"(Quarterly!FH124-Quarterly!FH120)*100","v":54.666666666666686},{"$f":"(Quarterly!FI124-Quarterly!FI120)*100","v":74.000000000000114},null,null,null,null,null,null,{"$f":"((Quarterly!FP124/Quarterly!FP120)-1)","v":-3.7197544239797709E-2},{"$f":"((Quarterly!FQ124/Quarterly!FQ120)-1)","v":0.16276799069303616},"--","--",{"$f":"((Quarterly!FT124/Quarterly!FT120)-1)","v":-3.7110695208058098E-2},{"$f":"((Quarterly!FU124/Quarterly!FU120)-1)","v":-0.12426573763482307},{"$f":"((Quarterly!FV124/Quarterly!FV120)-1)","v":2.1535006559612269E-2},{"$f":"((Quarterly!FW124/Quarterly!FW120)-1)","v":0.58326385994164265},{"$f":"((Quarterly!FX124/Quarterly!FX120)-1)","v":0.2040721888014807},null,null,null,null,null,{"$f":"((Quarterly!GD124/Quarterly!GD120)-1)","v":0.39109195402298846},"--","--","--",{"$f":"((Quarterly!GH124/Quarterly!GH120)-1)","v":{"$error":"#DIV/0!"}},"--","--","--","--"]
["87'Q3",{"$f":"((Quarterly!B125/Quarterly!B121)-1)","v":6.0801878593228276E-2},{"$f":"((Quarterly!C125/Quarterly!C121)-1)","v":3.2851578548228177E-2},{"$f":"((Quarterly!D125/Quarterly!D121)-1)","v":3.139751030125626E-2},{"$f":"((Quarterly!E125/Quarterly!E121)-1)","v":3.234086242299794E-2},{"$f":"((Quarterly!F125/Quarterly!F121)-1)","v":3.571718483643016E-3},{"$f":"((Quarterly!G125/Quarterly!G121)-1)","v":1.7995889518271913E-2},{"$f":"((Quarterly!H125/Quarterly!H121)-1)","v":4.1071969542296527E-2},{"$f":"((Quarterly!I125/Quarterly!I121)-1)","v":3.3612108540520547E-2},{"$f":"((Quarterly!J125/Quarterly!J121)-1)","v":5.0290940418077135E-2},{"$f":"((Quarterly!K125/Quarterly!K121)-1)","v":-2.9491833030853565E-3},{"$f":"((Quarterly!L125-Quarterly!L121))","v":8.456999999999999},{"$f":"((Quarterly!M125/Quarterly!M121)-1)","v":4.663352958364464E-2},{"$f":"((Quarterly!N125/Quarterly!N121)-1)","v":0.12750044073928279},{"$f":"((Quarterly!O125/Quarterly!O121)-1)","v":-0.11641427667137394},{"$f":"((Quarterly!P125/Quarterly!P121)-1)","v":1.1886579064176006E-2},{"$f":"((Quarterly!Q125/Quarterly!Q121)-1)","v":-0.33311442327347374},null,null,null,null,null,{"$f":"((Quarterly!W125/Quarterly!W121)-1)","v":3.7275064267352276E-2},{"$f":"((Quarterly!X125/Quarterly!X121)-1)","v":4.0868454661557863E-2},{"$f":"((Quarterly!Y125/Quarterly!Y121)-1)","v":7.9606073836899327E-2},"--",{"$f":"((Quarterly!AA125/Quarterly!AA121)-1)","v":0.37579361733863359},{"$f":"((Quarterly!AB125/Quarterly!AB121)-1)","v":0.19317259626696881},"--","--","--","--","--","--","--","--","--","--",{"$f":"((Quarterly!AM125/Quarterly!AM121)-1)","v":6.2377799723022598E-2},{"$f":"((Quarterly!AN125/Quarterly!AN121)-1)","v":6.4065542987605362E-2},"--","--",{"$f":"Quarterly!AQ125-Quarterly!AQ121","v":7.9333333333333371},"--","--",{"$f":"Quarterly!AT125-Quarterly!AT121","v":7.7333333333333272},"--","--",{"$f":"Quarterly!AW125-Quarterly!AW121","v":1.7333333333333272},{"$f":"Quarterly!AX125-Quarterly!AX121","v":7.3000000000000114},{"$f":"Quarterly!AY125-Quarterly!AY121","v":23.699999999999996},{"$f":"Quarterly!AZ125-Quarterly!AZ121","v":10.133333333333326},{"$f":"Quarterly!BA125-Quarterly!BA121","v":10.133333333333333},"--","--","--","--",{"$f":"((Quarterly!BF125/Quarterly!BF121)-1)","v":3.6406327822972928E-2},{"$f":"((Quarterly!BG125/Quarterly!BG121)-1)","v":4.8433968356409451E-5},{"$f":"((Quarterly!BH125/Quarterly!BH121)-1)","v":-2.6033068346328347E-3},{"$f":"((Quarterly!BI125/Quarterly!BI121)-1)","v":3.6344405106432998E-2},{"$f":"((Quarterly!BJ125/Quarterly!BJ121)-1)","v":0.50038584859518509},"--",null,"--","--",null,null,null,null,null,{"$f":"((Quarterly!BT125/Quarterly!BT121)-1)","v":3.9821365223646765E-2},{"$f":"Quarterly!BU125-Quarterly!BU121","v":1.9119999999999138E-2},{"$f":"Quarterly!BV125-Quarterly!BV121","v":8.3639999999999048E-2},{"$f":"((Quarterly!BW125/Quarterly!BW121)-1)","v":8.3393471832829968E-2},{"$f":"((Quarterly!BX125/Quarterly!BX121)-1)","v":-7.6004548900682423E-2},{"$f":"((Quarterly!BY125/Quarterly!BY121)-1)","v":-0.12538520801232667},"--",{"$f":"((Quarterly!CA125/Quarterly!CA121)-1)","v":-0.10658820900525112},{"$f":"((Quarterly!CB125/Quarterly!CB121)-1)","v":0.17693913334908196},{"$f":"((Quarterly!CC125/Quarterly!CC121)-1)","v":6.2996134346943178E-2},"--","--",null,"--","--",null,{"$f":"((Quarterly!CJ125/Quarterly!CJ121)-1)","v":-4.851104707012488E-2},{"$f":"((Quarterly!CK125/Quarterly!CK121)-1)","v":6.1883431984215864E-2},{"$f":"((Quarterly!CL125/Quarterly!CL121)-1)","v":-9.1222690686086572E-2},{"$f":"((Quarterly!CM125/Quarterly!CM121)-1)","v":1.4351320321470684E-3},{"$f":"((Quarterly!CN125/Quarterly!CN121)-1)","v":1.8413160576502996E-2},{"$f":"((Quarterly!CO125/Quarterly!CO121)-1)","v":8.2743114109049998E-2},{"$f":"((Quarterly!CP125/Quarterly!CP121)-1)","v":5.0007067419010953E-2},{"$f":"((Quarterly!CQ125/Quarterly!CQ121)-1)","v":8.9485768219959017E-3},{"$f":"((Quarterly!CR125/Quarterly!CR121)-1)","v":0.12925000567395473},{"$f":"Quarterly!CS125-Quarterly!CS121","v":-0.9333333333333087},"--",null,null,null,null,null,{"$f":"((Quarterly!CZ125/Quarterly!CZ121)-1)","v":4.162868429048916E-2},{"$f":"((Quarterly!DA125/Quarterly!DA121)-1)","v":3.9696438995913574E-2},null,null,null,null,null,{"$f":"((Quarterly!DG125/Quarterly!DG121)-1)","v":3.45125107851596E-2},{"$f":"((Quarterly!DH125-Quarterly!DH121)*60)","v":7.9999999999999716},{"$f":"Quarterly!DI125-Quarterly!DI121","v":0.23333333333334849},"--",{"$f":"(Quarterly!DK125-Quarterly!DK121)*100","v":-96.666666666666586},{"$f":"((Quarterly!DL125/Quarterly!DL121)-1)","v":8.1929730965626391E-3},null,null,null,{"$f":"((Quarterly!DP125/Quarterly!DP121)-1)","v":2.7816611704582606E-2},null,null,null,null,{"$f":"Quarterly!DU125-Quarterly!DU121","v":-0.83333333333333304},"--","--","--","--","--","--","--","--",null,null,null,null,null,{"$f":"((Quarterly!EI125/Quarterly!EI121)-1)","v":2.3839004018085141E-2},{"$f":"((Quarterly!EJ125/Quarterly!EJ121)-1)","v":3.3172209924793084E-2},{"$f":"((Quarterly!EK125/Quarterly!EK121)-1)","v":3.7053132151490864E-2},null,null,null,null,null,{"$f":"((Quarterly!EQ125/Quarterly!EQ121)-1)","v":4.3274069104327406E-2},{"$f":"((Quarterly!ER125/Quarterly!ER121)-1)","v":2.5888019265502438E-2},{"$f":"((Quarterly!ES125/Quarterly!ES121)-1)","v":1.974483596597798E-2},null,null,null,null,null,{"$f":"(Quarterly!EY125-Quarterly!EY121)*100","v":54.6666666666666},{"$f":"(Quarterly!EZ125-Quarterly!EZ121)*100","v":63.666666666666671},{"$f":"(Quarterly!FA125-Quarterly!FA121)*100","v":92.666666666666586},{"$f":"(Quarterly!FB125-Quarterly!FB121)*100","v":72.666666666666657},"--",{"$f":"(Quarterly!FD125-Quarterly!FD121)*100","v":25.999999999999979},{"$f":"(Quarterly!FE125-Quarterly!FE121)*100","v":52.000000000000043},{"$f":"(Quarterly!FF125-Quarterly!FF121)*100","v":113.66666666666686},{"$f":"(Quarterly!FG125-Quarterly!FG121)*100","v":139.33333333333334},{"$f":"(Quarterly!FH125-Quarterly!FH121)*100","v":149.66666666666652},{"$f":"(Quarterly!FI125-Quarterly!FI121)*100","v":157.00000000000011},null,null,null,null,null,null,{"$f":"((Quarterly!FP125/Quarterly!FP121)-1)","v":-4.5566087667805566E-2},{"$f":"((Quarterly!FQ125/Quarterly!FQ121)-1)","v":1.109164152681652E-2},"--","--",{"$f":"((Quarterly!FT125/Quarterly!FT121)-1)","v":3.3792912586241286E-3},{"$f":"((Quarterly!FU125/Quarterly!FU121)-1)","v":-7.3206214494035637E-2},{"$f":"((Quarterly!FV125/Quarterly!FV121)-1)","v":1.3126843657816911E-2},{"$f":"((Quarterly!FW125/Quarterly!FW121)-1)","v":0.31533543865054292},{"$f":"((Quarterly!FX125/Quarterly!FX121)-1)","v":0.16533271288971618},null,null,null,null,null,{"$f":"((Quarterly!GD125/Quarterly!GD121)-1)","v":0.47077922077922096},"--","--","--",{"$f":"((Quarterly!GH125/Quarterly!GH121)-1)","v":{"$error":"#DIV/0!"}},"--","--","--","--"]
["87'Q4",{"$f":"((Quarterly!B126/Quarterly!B122)-1)","v":7.5657322702979313E-2},{"$f":"((Quarterly!C126/Quarterly!C122)-1)","v":4.4491369049493468E-2},{"$f":"((Quarterly!D126/Quarterly!D122)-1)","v":2.9538187168666408E-2},{"$f":"((Quarterly!E126/Quarterly!E122)-1)","v":2.7936906536922379E-2},{"$f":"((Quarterly!F126/Quarterly!F122)-1)","v":-7.8084187951938944E-3},{"$f":"((Quarterly!G126/Quarterly!G122)-1)","v":1.1005403255212709E-2},{"$f":"((Quarterly!H126/Quarterly!H122)-1)","v":3.8346331074162299E-2},{"$f":"((Quarterly!I126/Quarterly!I122)-1)","v":2.2441308213473565E-2},{"$f":"((Quarterly!J126/Quarterly!J122)-1)","v":2.4860648014350506E-2},{"$f":"((Quarterly!K126/Quarterly!K122)-1)","v":3.8636363636364024E-3},{"$f":"((Quarterly!L126-Quarterly!L122))","v":93.295000000000002},{"$f":"((Quarterly!M126/Quarterly!M122)-1)","v":6.2511914927020795E-2},{"$f":"((Quarterly!N126/Quarterly!N122)-1)","v":0.12751710666315885},{"$f":"((Quarterly!O126/Quarterly!O122)-1)","v":-8.0886053845284245E-2},{"$f":"((Quarterly!P126/Quarterly!P122)-1)","v":3.0176476987501255E-2},{"$f":"((Quarterly!Q126/Quarterly!Q122)-1)","v":-0.16424481929686974},null,null,null,null,null,{"$f":"((Quarterly!W126/Quarterly!W122)-1)","v":5.2229299363057313E-2},{"$f":"((Quarterly!X126/Quarterly!X122)-1)","v":5.3677092138630478E-2},{"$f":"((Quarterly!Y126/Quarterly!Y122)-1)","v":6.9654480293632748E-2},"--",{"$f":"((Quarterly!AA126/Quarterly!AA122)-1)","v":0.39171601360715624},{"$f":"((Quarterly!AB126/Quarterly!AB122)-1)","v":0.30709440001631005},"--","--","--","--","--","--","--","--","--","--",{"$f":"((Quarterly!AM126/Quarterly!AM122)-1)","v":7.6058859079558561E-2},{"$f":"((Quarterly!AN126/Quarterly!AN122)-1)","v":8.1225769690559835E-2},"--","--",{"$f":"Quarterly!AQ126-Quarterly!AQ122","v":9.1999999999999957},"--","--",{"$f":"Quarterly!AT126-Quarterly!AT122","v":12.333333333333336},"--","--",{"$f":"Quarterly!AW126-Quarterly!AW122","v":7.9666666666666615},{"$f":"Quarterly!AX126-Quarterly!AX122","v":6.3999999999999986},{"$f":"Quarterly!AY126-Quarterly!AY122","v":22.166666666666671},{"$f":"Quarterly!AZ126-Quarterly!AZ122","v":9.43333333333333},{"$f":"Quarterly!BA126-Quarterly!BA122","v":11.233333333333341},"--","--","--","--",{"$f":"((Quarterly!BF126/Quarterly!BF122)-1)","v":3.5228576110109877E-2},{"$f":"((Quarterly!BG126/Quarterly!BG122)-1)","v":1.1134667982974245E-2},{"$f":"((Quarterly!BH126/Quarterly!BH122)-1)","v":-5.1962465946926439E-3},{"$f":"((Quarterly!BI126/Quarterly!BI122)-1)","v":2.3806424552725636E-2},{"$f":"((Quarterly!BJ126/Quarterly!BJ122)-1)","v":0.40277707802218843},"--",null,"--","--",null,null,null,null,null,{"$f":"((Quarterly!BT126/Quarterly!BT122)-1)","v":3.9271677926399517E-2},{"$f":"Quarterly!BU126-Quarterly!BU122","v":-0.25723999999999947},{"$f":"Quarterly!BV126-Quarterly!BV122","v":-0.29911000000000243},{"$f":"((Quarterly!BW126/Quarterly!BW122)-1)","v":0.10090067472148134},{"$f":"((Quarterly!BX126/Quarterly!BX122)-1)","v":-0.11018103951722791},{"$f":"((Quarterly!BY126/Quarterly!BY122)-1)","v":-0.1863270777479894},"--",{"$f":"((Quarterly!CA126/Quarterly!CA122)-1)","v":-7.0170569775633629E-2},{"$f":"((Quarterly!CB126/Quarterly!CB122)-1)","v":0.25178430880295277},{"$f":"((Quarterly!CC126/Quarterly!CC122)-1)","v":0.1048741976451677},"--","--",null,"--","--",null,{"$f":"((Quarterly!CJ126/Quarterly!CJ122)-1)","v":-0.13425925925925919},{"$f":"((Quarterly!CK126/Quarterly!CK122)-1)","v":7.5261446524299114E-2},{"$f":"((Quarterly!CL126/Quarterly!CL122)-1)","v":0.12644140520246738},{"$f":"((Quarterly!CM126/Quarterly!CM122)-1)","v":-6.6358915175995237E-2},{"$f":"((Quarterly!CN126/Quarterly!CN122)-1)","v":3.0198045701065546E-2},{"$f":"((Quarterly!CO126/Quarterly!CO122)-1)","v":1.4364007593939077E-2},{"$f":"((Quarterly!CP126/Quarterly!CP122)-1)","v":4.5817805674225554E-2},{"$f":"((Quarterly!CQ126/Quarterly!CQ122)-1)","v":9.0189836283289804E-3},{"$f":"((Quarterly!CR126/Quarterly!CR122)-1)","v":0.13575677159807964},{"$f":"Quarterly!CS126-Quarterly!CS122","v":-5.6333333333333542},"--",null,null,null,null,null,{"$f":"((Quarterly!CZ126/Quarterly!CZ122)-1)","v":4.4055522027760752E-2},{"$f":"((Quarterly!DA126/Quarterly!DA122)-1)","v":4.1630529054639931E-2},null,null,null,null,null,{"$f":"((Quarterly!DG126/Quarterly!DG122)-1)","v":3.6449399656946824E-2},{"$f":"((Quarterly!DH126-Quarterly!DH122)*60)","v":5.9999999999996589},{"$f":"Quarterly!DI126-Quarterly!DI122","v":0.3333333333333286},"--",{"$f":"(Quarterly!DK126-Quarterly!DK122)*100","v":-100},{"$f":"((Quarterly!DL126/Quarterly!DL122)-1)","v":1.6899689091498526E-2},null,null,null,{"$f":"((Quarterly!DP126/Quarterly!DP122)-1)","v":3.0687486085127613E-2},null,null,null,null,{"$f":"Quarterly!DU126-Quarterly!DU122","v":-0.89999999999999947},"--","--","--","--","--","--","--","--",null,null,null,null,null,{"$f":"((Quarterly!EI126/Quarterly!EI122)-1)","v":3.5848645610756513E-2},{"$f":"((Quarterly!EJ126/Quarterly!EJ122)-1)","v":3.4488789360333616E-2},{"$f":"((Quarterly!EK126/Quarterly!EK122)-1)","v":3.792661586295365E-2},null,null,null,null,null,{"$f":"((Quarterly!EQ126/Quarterly!EQ122)-1)","v":4.4451871657753994E-2},{"$f":"((Quarterly!ER126/Quarterly!ER122)-1)","v":1.9648704971718001E-2},{"$f":"((Quarterly!ES126/Quarterly!ES122)-1)","v":1.2037315678603777E-2},null,null,null,null,null,{"$f":"(Quarterly!EY126-Quarterly!EY122)*100","v":136.66666666666671},{"$f":"(Quarterly!EZ126-Quarterly!EZ122)*100","v":65.000000000000028},{"$f":"(Quarterly!FA126-Quarterly!FA122)*100","v":153.66666666666652},{"$f":"(Quarterly!FB126-Quarterly!FB122)*100","v":128.66666666666671},"--",{"$f":"(Quarterly!FD126-Quarterly!FD122)*100","v":119.33333333333316},{"$f":"(Quarterly!FE126-Quarterly!FE122)*100","v":51.000000000000071},{"$f":"(Quarterly!FF126-Quarterly!FF122)*100","v":144.33333333333326},{"$f":"(Quarterly!FG126-Quarterly!FG122)*100","v":170.66666666666669},{"$f":"(Quarterly!FH126-Quarterly!FH122)*100","v":187.3333333333334},{"$f":"(Quarterly!FI126-Quarterly!FI122)*100","v":186.00000000000003},null,null,null,null,null,null,{"$f":"((Quarterly!FP126/Quarterly!FP122)-1)","v":-5.319020915064121E-2},{"$f":"((Quarterly!FQ126/Quarterly!FQ122)-1)","v":5.0945166912441664E-4},"--","--",{"$f":"((Quarterly!FT126/Quarterly!FT122)-1)","v":-3.8321909406984767E-2},{"$f":"((Quarterly!FU126/Quarterly!FU122)-1)","v":-0.12573335935534014},{"$f":"((Quarterly!FV126/Quarterly!FV122)-1)","v":0.12516292730400935},{"$f":"((Quarterly!FW126/Quarterly!FW122)-1)","v":0.17487452948557092},{"$f":"((Quarterly!FX126/Quarterly!FX122)-1)","v":0.27109162024416267},null,null,null,null,null,{"$f":"((Quarterly!GD126/Quarterly!GD122)-1)","v":0.21402405982442829},"--","--","--",{"$f":"((Quarterly!GH126/Quarterly!GH122)-1)","v":{"$error":"#DIV/0!"}},"--","--","--","--"]
["88'Q1",{"$f":"((Quarterly!B127/Quarterly!B123)-1)","v":7.4824053134232793E-2},{"$f":"((Quarterly!C127/Quarterly!C123)-1)","v":4.307198342957097E-2},{"$f":"((Quarterly!D127/Quarterly!D123)-1)","v":4.5989194936329136E-2},{"$f":"((Quarterly!E127/Quarterly!E123)-1)","v":4.6037661828167931E-2},{"$f":"((Quarterly!F127/Quarterly!F123)-1)","v":0.10466475711696988},{"$f":"((Quarterly!G127/Quarterly!G123)-1)","v":2.057504179564007E-2},{"$f":"((Quarterly!H127/Quarterly!H123)-1)","v":4.9804332876377311E-2},{"$f":"((Quarterly!I127/Quarterly!I123)-1)","v":5.5582451529611943E-2},{"$f":"((Quarterly!J127/Quarterly!J123)-1)","v":7.4529561996484306E-2},{"$f":"((Quarterly!K127/Quarterly!K123)-1)","v":-1.5493278651173337E-2},{"$f":"((Quarterly!L127-Quarterly!L123))","v":-21.533999999999995},{"$f":"((Quarterly!M127/Quarterly!M123)-1)","v":6.388821737658934E-2},{"$f":"((Quarterly!N127/Quarterly!N123)-1)","v":0.18930306357951143},{"$f":"((Quarterly!O127/Quarterly!O123)-1)","v":-0.21883817775586645},{"$f":"((Quarterly!P127/Quarterly!P123)-1)","v":1.6784455753761973E-2},{"$f":"((Quarterly!Q127/Quarterly!Q123)-1)","v":-0.15872127359096155},null,null,null,null,null,{"$f":"((Quarterly!W127/Quarterly!W123)-1)","v":4.8040455120101244E-2},{"$f":"((Quarterly!X127/Quarterly!X123)-1)","v":5.1550712489522033E-2},{"$f":"((Quarterly!Y127/Quarterly!Y123)-1)","v":3.8169983132613217E-2},"--",{"$f":"((Quarterly!AA127/Quarterly!AA123)-1)","v":0.36463191693814889},{"$f":"((Quarterly!AB127/Quarterly!AB123)-1)","v":0.28008264702190733},"--","--","--","--","--","--","--","--","--","--",{"$f":"((Quarterly!AM127/Quarterly!AM123)-1)","v":7.1934892395082661E-2},{"$f":"((Quarterly!AN127/Quarterly!AN123)-1)","v":7.3945487181464431E-2},"--","--",{"$f":"Quarterly!AQ127-Quarterly!AQ123","v":1.9333333333333371},"--","--",{"$f":"Quarterly!AT127-Quarterly!AT123","v":3.9000000000000057},"--","--",{"$f":"Quarterly!AW127-Quarterly!AW123","v":0.40000000000000568},{"$f":"Quarterly!AX127-Quarterly!AX123","v":-0.53333333333333144},{"$f":"Quarterly!AY127-Quarterly!AY123","v":16.033333333333339},{"$f":"Quarterly!AZ127-Quarterly!AZ123","v":0},{"$f":"Quarterly!BA127-Quarterly!BA123","v":8.6333333333333329},"--","--",{"$f":"((Quarterly!BD127/Quarterly!BD123)-1)","v":2.8036197564276E-2},{"$f":"((Quarterly!BE127/Quarterly!BE123)-1)","v":3.4706228911145498E-3},{"$f":"((Quarterly!BF127/Quarterly!BF123)-1)","v":4.8070428767729378E-2},{"$f":"((Quarterly!BG127/Quarterly!BG123)-1)","v":1.9597638525216787E-2},{"$f":"((Quarterly!BH127/Quarterly!BH123)-1)","v":1.216121866074249E-2},{"$f":"((Quarterly!BI127/Quarterly!BI123)-1)","v":2.7924560725179459E-2},{"$f":"((Quarterly!BJ127/Quarterly!BJ123)-1)","v":0.38280202861800383},"--",null,"--","--",null,null,null,null,null,{"$f":"((Quarterly!BT127/Quarterly!BT123)-1)","v":5.5241744624695777E-2},{"$f":"Quarterly!BU127-Quarterly!BU123","v":-0.17356000000000016},{"$f":"Quarterly!BV127-Quarterly!BV123","v":-0.24125000000000085},{"$f":"((Quarterly!BW127/Quarterly!BW123)-1)","v":0.12891267507351856},{"$f":"((Quarterly!BX127/Quarterly!BX123)-1)","v":-0.19076457229371691},{"$f":"((Quarterly!BY127/Quarterly!BY123)-1)","v":-0.172339169781625},"--",{"$f":"((Quarterly!CA127/Quarterly!CA123)-1)","v":0.13780296176372553},{"$f":"((Quarterly!CB127/Quarterly!CB123)-1)","v":0.11869648978468139},{"$f":"((Quarterly!CC127/Quarterly!CC123)-1)","v":2.983076936744955E-2},"--","--",null,"--","--",null,{"$f":"((Quarterly!CJ127/Quarterly!CJ123)-1)","v":-0.11002785515320335},{"$f":"((Quarterly!CK127/Quarterly!CK123)-1)","v":7.8582927969255589E-2},{"$f":"((Quarterly!CL127/Quarterly!CL123)-1)","v":-1.5504793466682654E-2},{"$f":"((Quarterly!CM127/Quarterly!CM123)-1)","v":-0.14551333872271621},{"$f":"((Quarterly!CN127/Quarterly!CN123)-1)","v":3.6655674192283882E-2},{"$f":"((Quarterly!CO127/Quarterly!CO123)-1)","v":-2.0898532582238061E-2},{"$f":"((Quarterly!CP127/Quarterly!CP123)-1)","v":6.7635242252481298E-2},{"$f":"((Quarterly!CQ127/Quarterly!CQ123)-1)","v":9.0907462596085953E-3},{"$f":"((Quarterly!CR127/Quarterly!CR123)-1)","v":0.16766494715840485},{"$f":"Quarterly!CS127-Quarterly!CS123","v":1.8666666666666458},"--",null,null,null,null,null,{"$f":"((Quarterly!CZ127/Quarterly!CZ123)-1)","v":3.9654144305307115E-2},{"$f":"((Quarterly!DA127/Quarterly!DA123)-1)","v":4.3303699455118805E-2},null,null,null,null,null,{"$f":"((Quarterly!DG127/Quarterly!DG123)-1)","v":2.9274501484938265E-2},{"$f":"((Quarterly!DH127-Quarterly!DH123)*60)","v":-9.9999999999998579},{"$f":"Quarterly!DI127-Quarterly!DI123","v":0.3333333333333286},"--",{"$f":"(Quarterly!DK127-Quarterly!DK123)*100","v":-89.999999999999858},{"$f":"((Quarterly!DL127/Quarterly!DL123)-1)","v":1.8791332355015289E-2},null,null,null,{"$f":"((Quarterly!DP127/Quarterly!DP123)-1)","v":3.2018549223482351E-2},null,null,null,null,{"$f":"Quarterly!DU127-Quarterly!DU123","v":-0.40000000000000036},"--","--","--","--","--","--","--","--",null,null,null,null,null,{"$f":"((Quarterly!EI127/Quarterly!EI123)-1)","v":3.7632343475796137E-2},{"$f":"((Quarterly!EJ127/Quarterly!EJ123)-1)","v":3.8941535264070071E-2},{"$f":"((Quarterly!EK127/Quarterly!EK123)-1)","v":4.0965740594158584E-2},null,null,null,null,null,{"$f":"((Quarterly!EQ127/Quarterly!EQ123)-1)","v":3.8321770730095794E-2},{"$f":"((Quarterly!ER127/Quarterly!ER123)-1)","v":2.5800711743771965E-2},{"$f":"((Quarterly!ES127/Quarterly!ES123)-1)","v":1.6491754122938573E-2},null,null,null,null,null,{"$f":"(Quarterly!EY127-Quarterly!EY123)*100","v":108.6666666666666},{"$f":"(Quarterly!EZ127-Quarterly!EZ123)*100","v":44.333333333333428},{"$f":"(Quarterly!FA127-Quarterly!FA123)*100","v":118.99999999999994},{"$f":"(Quarterly!FB127-Quarterly!FB123)*100","v":109.3333333333332},"--",{"$f":"(Quarterly!FD127-Quarterly!FD123)*100","v":97.666666666666657},{"$f":"(Quarterly!FE127-Quarterly!FE123)*100","v":18.666666666666654},{"$f":"(Quarterly!FF127-Quarterly!FF123)*100","v":85.666666666666742},{"$f":"(Quarterly!FG127-Quarterly!FG123)*100","v":100.99999999999989},{"$f":"(Quarterly!FH127-Quarterly!FH123)*100","v":116.6666666666667},{"$f":"(Quarterly!FI127-Quarterly!FI123)*100","v":122.33333333333336},null,null,null,null,null,null,{"$f":"((Quarterly!FP127/Quarterly!FP123)-1)","v":-5.2590931738913826E-2},{"$f":"((Quarterly!FQ127/Quarterly!FQ123)-1)","v":0},"--","--",{"$f":"((Quarterly!FT127/Quarterly!FT123)-1)","v":-2.0226821062772848E-2},{"$f":"((Quarterly!FU127/Quarterly!FU123)-1)","v":-0.10677135597960119},{"$f":"((Quarterly!FV127/Quarterly!FV123)-1)","v":0.14575790420404489},{"$f":"((Quarterly!FW127/Quarterly!FW123)-1)","v":0.1561463912267278},{"$f":"((Quarterly!FX127/Quarterly!FX123)-1)","v":0.21907540299397366},null,null,null,null,null,{"$f":"((Quarterly!GD127/Quarterly!GD123)-1)","v":-8.3109331285314614E-2},"--","--","--",{"$f":"((Quarterly!GH127/Quarterly!GH123)-1)","v":{"$error":"#DIV/0!"}},"--","--","--","--"]
["88'Q2",{"$f":"((Quarterly!B128/Quarterly!B124)-1)","v":8.0110190711981666E-2},{"$f":"((Quarterly!C128/Quarterly!C124)-1)","v":4.512221217582324E-2},{"$f":"((Quarterly!D128/Quarterly!D124)-1)","v":4.4434717695971182E-2},{"$f":"((Quarterly!E128/Quarterly!E124)-1)","v":3.9313560469750541E-2},{"$f":"((Quarterly!F128/Quarterly!F124)-1)","v":6.1515568408344601E-2},{"$f":"((Quarterly!G128/Quarterly!G124)-1)","v":2.0895620461937714E-2},{"$f":"((Quarterly!H128/Quarterly!H124)-1)","v":4.3995976968334238E-2},{"$f":"((Quarterly!I128/Quarterly!I124)-1)","v":5.7874398318681797E-2},{"$f":"((Quarterly!J128/Quarterly!J124)-1)","v":7.2988845041118244E-2},{"$f":"((Quarterly!K128/Quarterly!K124)-1)","v":-1.2247675209798081E-2},{"$f":"((Quarterly!L128-Quarterly!L124))","v":3.2800000000000011},{"$f":"((Quarterly!M128/Quarterly!M124)-1)","v":2.6064327439403234E-2},{"$f":"((Quarterly!N128/Quarterly!N124)-1)","v":0.1744144989720211},{"$f":"((Quarterly!O128/Quarterly!O124)-1)","v":-0.32613205294851044},{"$f":"((Quarterly!P128/Quarterly!P124)-1)","v":1.1228324287849922E-2},{"$f":"((Quarterly!Q128/Quarterly!Q124)-1)","v":0.10029458930577251},null,null,null,null,null,{"$f":"((Quarterly!W128/Quarterly!W124)-1)","v":5.0125313283208017E-2},{"$f":"((Quarterly!X128/Quarterly!X124)-1)","v":4.6810273405136771E-2},{"$f":"((Quarterly!Y128/Quarterly!Y124)-1)","v":5.7086123655810672E-2},"--",{"$f":"((Quarterly!AA128/Quarterly!AA124)-1)","v":0.2574482831890641},{"$f":"((Quarterly!AB128/Quarterly!AB124)-1)","v":0.18401609776873795},"--","--","--","--","--","--","--","--","--","--",{"$f":"((Quarterly!AM128/Quarterly!AM124)-1)","v":6.2395003423771023E-2},{"$f":"((Quarterly!AN128/Quarterly!AN124)-1)","v":6.8508077204707751E-2},"--","--",{"$f":"Quarterly!AQ128-Quarterly!AQ124","v":0.1666666666666714},"--","--",{"$f":"Quarterly!AT128-Quarterly!AT124","v":-1.1666666666666643},"--","--",{"$f":"Quarterly!AW128-Quarterly!AW124","v":1.5333333333333314},{"$f":"Quarterly!AX128-Quarterly!AX124","v":-1.8333333333333286},{"$f":"Quarterly!AY128-Quarterly!AY124","v":12.466666666666669},{"$f":"Quarterly!AZ128-Quarterly!AZ124","v":-0.39999999999999858},{"$f":"Quarterly!BA128-Quarterly!BA124","v":5.8333333333333357},"--","--",{"$f":"((Quarterly!BD128/Quarterly!BD124)-1)","v":1.1575950287840087E-2},{"$f":"((Quarterly!BE128/Quarterly!BE124)-1)","v":2.2272318380352818E-2},{"$f":"((Quarterly!BF128/Quarterly!BF124)-1)","v":5.2837256624890028E-2},{"$f":"((Quarterly!BG128/Quarterly!BG124)-1)","v":1.508178720793163E-2},{"$f":"((Quarterly!BH128/Quarterly!BH124)-1)","v":1.6916119992357315E-2},{"$f":"((Quarterly!BI128/Quarterly!BI124)-1)","v":3.7174934127620629E-2},{"$f":"((Quarterly!BJ128/Quarterly!BJ124)-1)","v":0.26198360956614031},"--",null,"--","--",null,null,null,null,null,{"$f":"((Quarterly!BT128/Quarterly!BT124)-1)","v":7.7871463100720906E-2},{"$f":"Quarterly!BU128-Quarterly!BU124","v":-0.33126999999999995},{"$f":"Quarterly!BV128-Quarterly!BV124","v":-0.51906999999999925},{"$f":"((Quarterly!BW128/Quarterly!BW124)-1)","v":0.13391100531927802},{"$f":"((Quarterly!BX128/Quarterly!BX124)-1)","v":-7.5268817204301008E-2},{"$f":"((Quarterly!BY128/Quarterly!BY124)-1)","v":-5.7322085226043651E-2},"--",{"$f":"((Quarterly!CA128/Quarterly!CA124)-1)","v":3.4404232993235473E-2},{"$f":"((Quarterly!CB128/Quarterly!CB124)-1)","v":-5.208940869645684E-2},{"$f":"((Quarterly!CC128/Quarterly!CC124)-1)","v":-7.5186620027630102E-2},"--","--",null,"--","--",null,{"$f":"((Quarterly!CJ128/Quarterly!CJ124)-1)","v":3.8062283737024138E-2},{"$f":"((Quarterly!CK128/Quarterly!CK124)-1)","v":8.0956236417096372E-2},{"$f":"((Quarterly!CL128/Quarterly!CL124)-1)","v":0.40019087004930798},{"$f":"((Quarterly!CM128/Quarterly!CM124)-1)","v":-6.3268892794376086E-2},{"$f":"((Quarterly!CN128/Quarterly!CN124)-1)","v":5.7614941692235355E-2},{"$f":"((Quarterly!CO128/Quarterly!CO124)-1)","v":-2.2419831078761332E-2},{"$f":"((Quarterly!CP128/Quarterly!CP124)-1)","v":7.6517686166467591E-2},{"$f":"((Quarterly!CQ128/Quarterly!CQ124)-1)","v":9.0446222447109204E-3},{"$f":"((Quarterly!CR128/Quarterly!CR124)-1)","v":0.15853184653082164},{"$f":"Quarterly!CS128-Quarterly!CS124","v":1.7666666666666657},"--",null,null,null,null,null,{"$f":"((Quarterly!CZ128/Quarterly!CZ124)-1)","v":3.9799528301886822E-2},{"$f":"((Quarterly!DA128/Quarterly!DA124)-1)","v":4.3355058090110532E-2},null,null,null,null,null,{"$f":"((Quarterly!DG128/Quarterly!DG124)-1)","v":3.0723905723905709E-2},{"$f":"((Quarterly!DH128-Quarterly!DH124)*60)","v":-7.9999999999999716},{"$f":"Quarterly!DI128-Quarterly!DI124","v":0.23333333333332007},"--",{"$f":"(Quarterly!DK128-Quarterly!DK124)*100","v":-80.000000000000071},{"$f":"((Quarterly!DL128/Quarterly!DL124)-1)","v":2.049273819481412E-2},null,null,null,{"$f":"((Quarterly!DP128/Quarterly!DP124)-1)","v":3.2402582505817179E-2},null,null,null,null,{"$f":"Quarterly!DU128-Quarterly!DU124","v":-0.86666666666666625},"--","--","--","--","--","--","--","--",null,null,null,null,null,{"$f":"((Quarterly!EI128/Quarterly!EI124)-1)","v":3.7753688164501975E-2},{"$f":"((Quarterly!EJ128/Quarterly!EJ124)-1)","v":3.3791255033854828E-2},{"$f":"((Quarterly!EK128/Quarterly!EK124)-1)","v":3.5849828134151718E-2},null,null,null,null,null,{"$f":"((Quarterly!EQ128/Quarterly!EQ124)-1)","v":3.9024390243902474E-2},{"$f":"((Quarterly!ER128/Quarterly!ER124)-1)","v":2.8613569321534138E-2},{"$f":"((Quarterly!ES128/Quarterly!ES124)-1)","v":1.9719151478936325E-2},null,null,null,null,null,{"$f":"(Quarterly!EY128-Quarterly!EY124)*100","v":73.333333333333258},{"$f":"(Quarterly!EZ128-Quarterly!EZ124)*100","v":50.666666666666686},{"$f":"(Quarterly!FA128-Quarterly!FA124)*100","v":64.333333333333442},{"$f":"(Quarterly!FB128-Quarterly!FB124)*100","v":62.333333333333307},"--",{"$f":"(Quarterly!FD128-Quarterly!FD124)*100","v":5.0000000000000711},{"$f":"(Quarterly!FE128-Quarterly!FE124)*100","v":55.333333333333371},{"$f":"(Quarterly!FF128-Quarterly!FF124)*100","v":53.333333333333321},{"$f":"(Quarterly!FG128-Quarterly!FG124)*100","v":42.333333333333201},{"$f":"(Quarterly!FH128-Quarterly!FH124)*100","v":46.999999999999972},{"$f":"(Quarterly!FI128-Quarterly!FI124)*100","v":56.666666666666821},null,null,null,null,null,null,{"$f":"((Quarterly!FP128/Quarterly!FP124)-1)","v":-7.7219304826206536E-2},{"$f":"((Quarterly!FQ128/Quarterly!FQ124)-1)","v":0},"--","--",{"$f":"((Quarterly!FT128/Quarterly!FT124)-1)","v":-5.1579912736571254E-3},{"$f":"((Quarterly!FU128/Quarterly!FU124)-1)","v":-8.432465218023677E-2},{"$f":"((Quarterly!FV128/Quarterly!FV124)-1)","v":0.20945309345417029},{"$f":"((Quarterly!FW128/Quarterly!FW124)-1)","v":0.2425459093003357},{"$f":"((Quarterly!FX128/Quarterly!FX124)-1)","v":0.12734435049961568},null,null,null,null,null,{"$f":"((Quarterly!GD128/Quarterly!GD124)-1)","v":-0.1075707498450732},"--","--","--",{"$f":"((Quarterly!GH128/Quarterly!GH124)-1)","v":{"$error":"#DIV/0!"}},"--","--","--","--"]
["88'Q3",{"$f":"((Quarterly!B129/Quarterly!B125)-1)","v":8.1415420316542697E-2},{"$f":"((Quarterly!C129/Quarterly!C125)-1)","v":4.1706979683220124E-2},{"$f":"((Quarterly!D129/Quarterly!D125)-1)","v":3.7688451731434203E-2},{"$f":"((Quarterly!E129/Quarterly!E125)-1)","v":3.6166469035688209E-2},{"$f":"((Quarterly!F129/Quarterly!F125)-1)","v":6.0934508884036287E-3},{"$f":"((Quarterly!G129/Quarterly!G125)-1)","v":2.7099336878734226E-2},{"$f":"((Quarterly!H129/Quarterly!H125)-1)","v":4.2815155658183945E-2},{"$f":"((Quarterly!I129/Quarterly!I125)-1)","v":3.5729205602339054E-2},{"$f":"((Quarterly!J129/Quarterly!J125)-1)","v":2.685622213358374E-2},{"$f":"((Quarterly!K129/Quarterly!K125)-1)","v":-8.4186575654152662E-3},{"$f":"((Quarterly!L129-Quarterly!L125))","v":23.378999999999998},{"$f":"((Quarterly!M129/Quarterly!M125)-1)","v":3.0246755530328517E-2},{"$f":"((Quarterly!N129/Quarterly!N125)-1)","v":0.14782424304734465},{"$f":"((Quarterly!O129/Quarterly!O125)-1)","v":-0.27226085902282537},{"$f":"((Quarterly!P129/Quarterly!P125)-1)","v":9.6063909123531577E-3},{"$f":"((Quarterly!Q129/Quarterly!Q125)-1)","v":-1.3943326702970604E-2},null,null,null,null,null,{"$f":"((Quarterly!W129/Quarterly!W125)-1)","v":3.9653035935563796E-2},{"$f":"((Quarterly!X129/Quarterly!X125)-1)","v":3.6400817995910106E-2},{"$f":"((Quarterly!Y129/Quarterly!Y125)-1)","v":6.8937906969498419E-2},"--",{"$f":"((Quarterly!AA129/Quarterly!AA125)-1)","v":0.1649053010662469},{"$f":"((Quarterly!AB129/Quarterly!AB125)-1)","v":8.2905057610966004E-2},"--","--","--","--","--","--","--","--","--","--",{"$f":"((Quarterly!AM129/Quarterly!AM125)-1)","v":4.6744393395446338E-2},{"$f":"((Quarterly!AN129/Quarterly!AN125)-1)","v":5.1755072920837586E-2},"--","--",{"$f":"Quarterly!AQ129-Quarterly!AQ125","v":-2.7000000000000099},"--","--",{"$f":"Quarterly!AT129-Quarterly!AT125","v":0.13333333333333997},"--","--",{"$f":"Quarterly!AW129-Quarterly!AW125","v":3.4000000000000057},{"$f":"Quarterly!AX129-Quarterly!AX125","v":-3.4666666666666686},{"$f":"Quarterly!AY129-Quarterly!AY125","v":1},{"$f":"Quarterly!AZ129-Quarterly!AZ125","v":-6.1333333333333258},{"$f":"Quarterly!BA129-Quarterly!BA125","v":-3.2333333333333272},"--","--",{"$f":"((Quarterly!BD129/Quarterly!BD125)-1)","v":4.1215018752827071E-4},{"$f":"((Quarterly!BE129/Quarterly!BE125)-1)","v":3.6989629886753139E-2},{"$f":"((Quarterly!BF129/Quarterly!BF125)-1)","v":5.4441850885623921E-2},{"$f":"((Quarterly!BG129/Quarterly!BG125)-1)","v":1.7838980998660103E-2},{"$f":"((Quarterly!BH129/Quarterly!BH125)-1)","v":1.7137545995085324E-2},{"$f":"((Quarterly!BI129/Quarterly!BI125)-1)","v":3.5962860585441847E-2},{"$f":"((Quarterly!BJ129/Quarterly!BJ125)-1)","v":0.1636084408481413},"--",null,"--","--",null,null,null,null,null,{"$f":"((Quarterly!BT129/Quarterly!BT125)-1)","v":8.7052050014417848E-2},{"$f":"Quarterly!BU129-Quarterly!BU125","v":-0.24591999999999992},{"$f":"Quarterly!BV129-Quarterly!BV125","v":-0.41817999999999955},{"$f":"((Quarterly!BW129/Quarterly!BW125)-1)","v":0.12643759468524718},{"$f":"((Quarterly!BX129/Quarterly!BX125)-1)","v":-8.6769230769230821E-2},{"$f":"((Quarterly!BY129/Quarterly!BY125)-1)","v":-4.536445716802473E-2},"--",{"$f":"((Quarterly!CA129/Quarterly!CA125)-1)","v":-5.8672724998957926E-2},{"$f":"((Quarterly!CB129/Quarterly!CB125)-1)","v":-5.4484418713840577E-2},{"$f":"((Quarterly!CC129/Quarterly!CC125)-1)","v":-6.4545141747397561E-2},"--","--",null,"--","--",null,{"$f":"((Quarterly!CJ129/Quarterly!CJ125)-1)","v":4.4926804644119134E-2},{"$f":"((Quarterly!CK129/Quarterly!CK125)-1)","v":8.4423464818674132E-2},{"$f":"((Quarterly!CL129/Quarterly!CL125)-1)","v":0.28384647827920717},{"$f":"((Quarterly!CM129/Quarterly!CM125)-1)","v":-7.8819145887073727E-2},{"$f":"((Quarterly!CN129/Quarterly!CN125)-1)","v":4.8717171659414138E-2},{"$f":"((Quarterly!CO129/Quarterly!CO125)-1)","v":-1.820510158169808E-2},{"$f":"((Quarterly!CP129/Quarterly!CP125)-1)","v":7.1673269939860784E-2},{"$f":"((Quarterly!CQ129/Quarterly!CQ125)-1)","v":9.1709771356538461E-3},{"$f":"((Quarterly!CR129/Quarterly!CR125)-1)","v":0.13969025099977417},{"$f":"Quarterly!CS129-Quarterly!CS125","v":2.1333333333333258},"--",null,null,null,null,null,{"$f":"((Quarterly!CZ129/Quarterly!CZ125)-1)","v":4.1423570595099157E-2},{"$f":"((Quarterly!DA129/Quarterly!DA125)-1)","v":4.5199326221224023E-2},null,null,null,null,null,{"$f":"((Quarterly!DG129/Quarterly!DG125)-1)","v":2.7939949958298627E-2},{"$f":"((Quarterly!DH129-Quarterly!DH125)*60)","v":-11.999999999999744},{"$f":"Quarterly!DI129-Quarterly!DI125","v":0.36666666666666003},"--",{"$f":"(Quarterly!DK129-Quarterly!DK125)*100","v":-53.333333333333414},{"$f":"((Quarterly!DL129/Quarterly!DL125)-1)","v":1.5440148164946876E-2},null,null,null,{"$f":"((Quarterly!DP129/Quarterly!DP125)-1)","v":3.2260478798350922E-2},null,null,null,null,{"$f":"Quarterly!DU129-Quarterly!DU125","v":-0.40000000000000036},"--","--","--","--","--","--","--","--",null,null,null,null,null,{"$f":"((Quarterly!EI129/Quarterly!EI125)-1)","v":2.8147321930000579E-2},{"$f":"((Quarterly!EJ129/Quarterly!EJ125)-1)","v":2.5992361131819353E-2},{"$f":"((Quarterly!EK129/Quarterly!EK125)-1)","v":3.163982703209034E-2},null,null,null,null,null,{"$f":"((Quarterly!EQ129/Quarterly!EQ125)-1)","v":4.1800643086816747E-2},{"$f":"((Quarterly!ER129/Quarterly!ER125)-1)","v":3.5798122065727966E-2},{"$f":"((Quarterly!ES129/Quarterly!ES125)-1)","v":2.621388144176362E-2},null,null,null,null,null,{"$f":"(Quarterly!EY129-Quarterly!EY125)*100","v":130.99999999999989},{"$f":"(Quarterly!EZ129-Quarterly!EZ125)*100","v":113.99999999999997},{"$f":"(Quarterly!FA129-Quarterly!FA125)*100","v":20.6666666666667},{"$f":"(Quarterly!FB129-Quarterly!FB125)*100","v":16.666666666666607},"--",{"$f":"(Quarterly!FD129-Quarterly!FD125)*100","v":0.33333333333338544},{"$f":"(Quarterly!FE129-Quarterly!FE125)*100","v":96.666666666666686},{"$f":"(Quarterly!FF129-Quarterly!FF125)*100","v":87.66666666666643},{"$f":"(Quarterly!FG129-Quarterly!FG125)*100","v":61.333333333333329},{"$f":"(Quarterly!FH129-Quarterly!FH125)*100","v":34.000000000000163},{"$f":"(Quarterly!FI129-Quarterly!FI125)*100","v":22.333333333333272},null,null,null,null,null,null,{"$f":"((Quarterly!FP129/Quarterly!FP125)-1)","v":-7.796430732002424E-2},{"$f":"((Quarterly!FQ129/Quarterly!FQ125)-1)","v":0},"--","--",{"$f":"((Quarterly!FT129/Quarterly!FT125)-1)","v":2.4207905874432223E-2},{"$f":"((Quarterly!FU129/Quarterly!FU125)-1)","v":-4.80985739092471E-2},{"$f":"((Quarterly!FV129/Quarterly!FV125)-1)","v":0.15381302470034486},{"$f":"((Quarterly!FW129/Quarterly!FW125)-1)","v":0.38127305732857097},{"$f":"((Quarterly!FX129/Quarterly!FX125)-1)","v":0.12728107654833676},null,null,null,null,null,{"$f":"((Quarterly!GD129/Quarterly!GD125)-1)","v":-0.25616875153299012},"--","--","--",{"$f":"((Quarterly!GH129/Quarterly!GH125)-1)","v":{"$error":"#DIV/0!"}},"--","--","--","--"]
["88'Q4",{"$f":"((Quarterly!B130/Quarterly!B126)-1)","v":7.7656505404495979E-2},{"$f":"((Quarterly!C130/Quarterly!C126)-1)","v":3.8366695861064226E-2},{"$f":"((Quarterly!D130/Quarterly!D126)-1)","v":4.6382970332893292E-2},{"$f":"((Quarterly!E130/Quarterly!E126)-1)","v":4.5843194136957033E-2},{"$f":"((Quarterly!F130/Quarterly!F126)-1)","v":6.0825227921412095E-2},{"$f":"((Quarterly!G130/Quarterly!G126)-1)","v":3.6542181710875754E-2},{"$f":"((Quarterly!H130/Quarterly!H126)-1)","v":4.7764479796014836E-2},{"$f":"((Quarterly!I130/Quarterly!I126)-1)","v":5.1470588235293713E-2},{"$f":"((Quarterly!J130/Quarterly!J126)-1)","v":5.555953240835132E-2},{"$f":"((Quarterly!K130/Quarterly!K126)-1)","v":-4.5279601539506276E-3},{"$f":"((Quarterly!L130-Quarterly!L126))","v":-55.035000000000004},{"$f":"((Quarterly!M130/Quarterly!M126)-1)","v":3.7775278256070965E-2},{"$f":"((Quarterly!N130/Quarterly!N126)-1)","v":0.14032968462524864},{"$f":"((Quarterly!O130/Quarterly!O126)-1)","v":-0.23975033108512112},{"$f":"((Quarterly!P130/Quarterly!P126)-1)","v":1.6246286051225578E-2},{"$f":"((Quarterly!Q130/Quarterly!Q126)-1)","v":-2.7279138940848213E-2},null,null,null,null,null,{"$f":"((Quarterly!W130/Quarterly!W126)-1)","v":2.5423728813559476E-2},{"$f":"((Quarterly!X130/Quarterly!X126)-1)","v":2.1259526674689111E-2},{"$f":"((Quarterly!Y130/Quarterly!Y126)-1)","v":6.7449530521847434E-2},"--",{"$f":"((Quarterly!AA130/Quarterly!AA126)-1)","v":0.16930939113981913},{"$f":"((Quarterly!AB130/Quarterly!AB126)-1)","v":0.11648755303219382},"--","--","--","--","--","--","--","--","--","--",{"$f":"((Quarterly!AM130/Quarterly!AM126)-1)","v":2.910891695155593E-2},{"$f":"((Quarterly!AN130/Quarterly!AN126)-1)","v":3.3596541836374394E-2},"--","--",{"$f":"Quarterly!AQ130-Quarterly!AQ126","v":-4.5},"--","--",{"$f":"Quarterly!AT130-Quarterly!AT126","v":-2.13333333333334},"--","--",{"$f":"Quarterly!AW130-Quarterly!AW126","v":-0.66666666666665719},{"$f":"Quarterly!AX130-Quarterly!AX126","v":-3.8333333333333357},{"$f":"Quarterly!AY130-Quarterly!AY126","v":-8.4333333333333371},{"$f":"Quarterly!AZ130-Quarterly!AZ126","v":-5.4666666666666615},{"$f":"Quarterly!BA130-Quarterly!BA126","v":-9.9666666666666686},"--","--",{"$f":"((Quarterly!BD130/Quarterly!BD126)-1)","v":-4.9153132488177764E-4},{"$f":"((Quarterly!BE130/Quarterly!BE126)-1)","v":5.2420278629327077E-2},{"$f":"((Quarterly!BF130/Quarterly!BF126)-1)","v":4.9450549450549497E-2},{"$f":"((Quarterly!BG130/Quarterly!BG126)-1)","v":1.3076812266914262E-2},{"$f":"((Quarterly!BH130/Quarterly!BH126)-1)","v":1.0751052284598606E-2},{"$f":"((Quarterly!BI130/Quarterly!BI126)-1)","v":3.5910548547049448E-2},{"$f":"((Quarterly!BJ130/Quarterly!BJ126)-1)","v":0.22548181563503422},"--",null,"--","--",null,null,null,null,null,{"$f":"((Quarterly!BT130/Quarterly!BT126)-1)","v":8.5399198163836454E-2},{"$f":"Quarterly!BU130-Quarterly!BU126","v":-0.2357900000000015},{"$f":"Quarterly!BV130-Quarterly!BV126","v":-0.39078999999999908},{"$f":"((Quarterly!BW130/Quarterly!BW126)-1)","v":0.12406998819847104},{"$f":"((Quarterly!BX130/Quarterly!BX126)-1)","v":1.8157952308028857E-2},{"$f":"((Quarterly!BY130/Quarterly!BY126)-1)","v":6.4956460343610356E-2},"--",{"$f":"((Quarterly!CA130/Quarterly!CA126)-1)","v":5.4986683809348902E-2},{"$f":"((Quarterly!CB130/Quarterly!CB126)-1)","v":-5.8537857616826394E-2},{"$f":"((Quarterly!CC130/Quarterly!CC126)-1)","v":-6.6285955998516166E-2},"--","--",null,"--","--",null,{"$f":"((Quarterly!CJ130/Quarterly!CJ126)-1)","v":7.1657754010695074E-2},{"$f":"((Quarterly!CK130/Quarterly!CK126)-1)","v":8.0038249668993311E-2},{"$f":"((Quarterly!CL130/Quarterly!CL126)-1)","v":8.4989882156886187E-2},{"$f":"((Quarterly!CM130/Quarterly!CM126)-1)","v":5.4079110012360765E-2},{"$f":"((Quarterly!CN130/Quarterly!CN126)-1)","v":4.487490548790829E-2},{"$f":"((Quarterly!CO130/Quarterly!CO126)-1)","v":-1.4160604562469259E-2},{"$f":"((Quarterly!CP130/Quarterly!CP126)-1)","v":6.6011608052632953E-2},{"$f":"((Quarterly!CQ130/Quarterly!CQ126)-1)","v":9.2202152432498963E-3},{"$f":"((Quarterly!CR130/Quarterly!CR126)-1)","v":0.14779225037907762},{"$f":"Quarterly!CS130-Quarterly!CS126","v":6.6000000000000085},"--",null,null,null,null,null,{"$f":"((Quarterly!CZ130/Quarterly!CZ126)-1)","v":4.3063583815028839E-2},{"$f":"((Quarterly!DA130/Quarterly!DA126)-1)","v":4.5795170691091069E-2},null,null,null,null,null,{"$f":"((Quarterly!DG130/Quarterly!DG126)-1)","v":2.8961522548613949E-2},{"$f":"((Quarterly!DH130-Quarterly!DH126)*60)","v":-7.9999999999995453},{"$f":"Quarterly!DI130-Quarterly!DI126","v":0.39999999999999147},"--",{"$f":"(Quarterly!DK130-Quarterly!DK126)*100","v":-50},{"$f":"((Quarterly!DL130/Quarterly!DL126)-1)","v":1.2773619942603176E-2},null,null,null,{"$f":"((Quarterly!DP130/Quarterly!DP126)-1)","v":3.1037617837844866E-2},null,null,null,null,{"$f":"Quarterly!DU130-Quarterly!DU126","v":-0.43333333333333268},"--","--","--","--","--","--","--","--",null,null,null,null,null,{"$f":"((Quarterly!EI130/Quarterly!EI126)-1)","v":3.0432397031319836E-2},{"$f":"((Quarterly!EJ130/Quarterly!EJ126)-1)","v":3.5042370216608054E-2},{"$f":"((Quarterly!EK130/Quarterly!EK126)-1)","v":3.8294350268793798E-2},null,null,null,null,null,{"$f":"((Quarterly!EQ130/Quarterly!EQ126)-1)","v":4.1599999999999859E-2},{"$f":"((Quarterly!ER130/Quarterly!ER126)-1)","v":4.0291970802919685E-2},{"$f":"((Quarterly!ES130/Quarterly!ES126)-1)","v":3.2708890871245622E-2},null,null,null,null,null,{"$f":"(Quarterly!EY130-Quarterly!EY126)*100","v":131.66666666666663},{"$f":"(Quarterly!EZ130-Quarterly!EZ126)*100","v":155.3333333333332},{"$f":"(Quarterly!FA130-Quarterly!FA126)*100","v":-70.333333333333314},{"$f":"(Quarterly!FB130-Quarterly!FB126)*100","v":-86.666666666666714},"--",{"$f":"(Quarterly!FD130-Quarterly!FD126)*100","v":-46.000000000000085},{"$f":"(Quarterly!FE130-Quarterly!FE126)*100","v":186.33333333333331},{"$f":"(Quarterly!FF130-Quarterly!FF126)*100","v":128.66666666666663},{"$f":"(Quarterly!FG130-Quarterly!FG126)*100","v":71.999999999999972},{"$f":"(Quarterly!FH130-Quarterly!FH126)*100","v":16.999999999999815},{"$f":"(Quarterly!FI130-Quarterly!FI126)*100","v":-16.666666666666607},null,null,null,null,null,null,{"$f":"((Quarterly!FP130/Quarterly!FP126)-1)","v":-7.9717328859401637E-2},{"$f":"((Quarterly!FQ130/Quarterly!FQ126)-1)","v":0},"--","--",{"$f":"((Quarterly!FT130/Quarterly!FT126)-1)","v":3.4116414449685939E-2},{"$f":"((Quarterly!FU130/Quarterly!FU126)-1)","v":-3.624591218262907E-2},{"$f":"((Quarterly!FV130/Quarterly!FV126)-1)","v":7.7969819131025631E-2},{"$f":"((Quarterly!FW130/Quarterly!FW126)-1)","v":0.63596315578694429},{"$f":"((Quarterly!FX130/Quarterly!FX126)-1)","v":0.12308610432479816},null,null,null,null,null,{"$f":"((Quarterly!GD130/Quarterly!GD126)-1)","v":-0.21367994429466708},"--","--","--",{"$f":"((Quarterly!GH130/Quarterly!GH126)-1)","v":{"$error":"#DIV/0!"}},"--","--","--","--"]
["89'Q1",{"$f":"((Quarterly!B131/Quarterly!B127)-1)","v":8.5792581053566241E-2},{"$f":"((Quarterly!C131/Quarterly!C127)-1)","v":4.2975545739678545E-2},{"$f":"((Quarterly!D131/Quarterly!D127)-1)","v":3.6793818264369227E-2},{"$f":"((Quarterly!E131/Quarterly!E127)-1)","v":3.2328839049637237E-2},{"$f":"((Quarterly!F131/Quarterly!F127)-1)","v":8.3873528244475803E-3},{"$f":"((Quarterly!G131/Quarterly!G127)-1)","v":3.0118723238613976E-2},{"$f":"((Quarterly!H131/Quarterly!H127)-1)","v":3.5719674962701342E-2},{"$f":"((Quarterly!I131/Quarterly!I127)-1)","v":5.9666288110421961E-2},{"$f":"((Quarterly!J131/Quarterly!J127)-1)","v":7.7872795306095366E-2},{"$f":"((Quarterly!K131/Quarterly!K127)-1)","v":1.0877111779680648E-2},{"$f":"((Quarterly!L131-Quarterly!L127))","v":39.643000000000001},{"$f":"((Quarterly!M131/Quarterly!M127)-1)","v":4.7499590990892848E-2},{"$f":"((Quarterly!N131/Quarterly!N127)-1)","v":0.11254306120412916},{"$f":"((Quarterly!O131/Quarterly!O127)-1)","v":-0.17574072955062681},{"$f":"((Quarterly!P131/Quarterly!P127)-1)","v":1.8524567687123072E-2},{"$f":"((Quarterly!Q131/Quarterly!Q127)-1)","v":-0.16787532505585467},null,null,null,null,null,{"$f":"((Quarterly!W131/Quarterly!W127)-1)","v":2.2919179734619988E-2},{"$f":"((Quarterly!X131/Quarterly!X127)-1)","v":1.5145476285372439E-2},{"$f":"((Quarterly!Y131/Quarterly!Y127)-1)","v":7.8072843047900076E-2},{"$f":"Quarterly!Z131-Quarterly!Z127","v":-0.21999999999999997},{"$f":"((Quarterly!AA131/Quarterly!AA127)-1)","v":9.0236540302877977E-2},{"$f":"((Quarterly!AB131/Quarterly!AB127)-1)","v":1.4104478737688719E-3},"--","--",{"$f":"(Quarterly!AE131-Quarterly!AE127)*100","v":-40.000000000000036},{"$f":"(Quarterly!AF131-Quarterly!AF127)*100","v":-21.999999999999996},{"$f":"(Quarterly!AG131-Quarterly!AG127)*100","v":-15.000000000000002},"--","--","--","--","--",{"$f":"((Quarterly!AM131/Quarterly!AM127)-1)","v":2.4232576550808238E-2},{"$f":"((Quarterly!AN131/Quarterly!AN127)-1)","v":3.1611075273474176E-2},"--","--",{"$f":"Quarterly!AQ131-Quarterly!AQ127","v":-2.6666666666666643},"--","--",{"$f":"Quarterly!AT131-Quarterly!AT127","v":-0.76666666666666572},{"$f":"Quarterly!AU131-Quarterly!AU127","v":-7.7666666666666657},"--",{"$f":"Quarterly!AW131-Quarterly!AW127","v":1.0999999999999943},{"$f":"Quarterly!AX131-Quarterly!AX127","v":-2.8666666666666671},{"$f":"Quarterly!AY131-Quarterly!AY127","v":-9.3666666666666742},{"$f":"Quarterly!AZ131-Quarterly!AZ127","v":-3.13333333333334},{"$f":"Quarterly!BA131-Quarterly!BA127","v":-6.6999999999999957},"--","--",{"$f":"((Quarterly!BD131/Quarterly!BD127)-1)","v":7.835959030891404E-3},{"$f":"((Quarterly!BE131/Quarterly!BE127)-1)","v":3.077530716596022E-2},{"$f":"((Quarterly!BF131/Quarterly!BF127)-1)","v":3.5376991622408482E-2},{"$f":"((Quarterly!BG131/Quarterly!BG127)-1)","v":8.2307152427740782E-3},{"$f":"((Quarterly!BH131/Quarterly!BH127)-1)","v":-6.3461803770082925E-3},{"$f":"((Quarterly!BI131/Quarterly!BI127)-1)","v":2.6915200401220307E-2},{"$f":"((Quarterly!BJ131/Quarterly!BJ127)-1)","v":3.6256704805192275E-2},{"$f":"((Quarterly!BK131/Quarterly!BK127)-1)","v":-0.25287356321839083},null,"--","--",null,null,null,null,null,{"$f":"((Quarterly!BT131/Quarterly!BT127)-1)","v":7.407253548675663E-2},{"$f":"Quarterly!BU131-Quarterly!BU127","v":-0.19566999999999979},{"$f":"Quarterly!BV131-Quarterly!BV127","v":-0.36618999999999957},{"$f":"((Quarterly!BW131/Quarterly!BW127)-1)","v":0.14564971439609264},{"$f":"((Quarterly!BX131/Quarterly!BX127)-1)","v":4.4901777362020612E-2},{"$f":"((Quarterly!BY131/Quarterly!BY127)-1)","v":-3.4228666508200667E-2},"--",{"$f":"((Quarterly!CA131/Quarterly!CA127)-1)","v":-7.832182464950832E-2},{"$f":"((Quarterly!CB131/Quarterly!CB127)-1)","v":2.1564668870591053E-2},{"$f":"((Quarterly!CC131/Quarterly!CC127)-1)","v":-1.0366381460579333E-2},"--","--",null,"--","--",null,{"$f":"((Quarterly!CJ131/Quarterly!CJ127)-1)","v":-4.6948356807511304E-3},{"$f":"((Quarterly!CK131/Quarterly!CK127)-1)","v":9.1218412204184363E-2},{"$f":"((Quarterly!CL131/Quarterly!CL127)-1)","v":0.21122866073575386},{"$f":"((Quarterly!CM131/Quarterly!CM127)-1)","v":-1.1983601387574927E-2},{"$f":"((Quarterly!CN131/Quarterly!CN127)-1)","v":4.2550469940492608E-2},{"$f":"((Quarterly!CO131/Quarterly!CO127)-1)","v":-3.5905813829598232E-2},{"$f":"((Quarterly!CP131/Quarterly!CP127)-1)","v":8.2597035120093087E-2},{"$f":"((Quarterly!CQ131/Quarterly!CQ127)-1)","v":9.2040999957672121E-3},{"$f":"((Quarterly!CR131/Quarterly!CR127)-1)","v":0.13268071167570739},{"$f":"Quarterly!CS131-Quarterly!CS127","v":3.5333333333333456},"--",null,null,null,null,null,{"$f":"((Quarterly!CZ131/Quarterly!CZ127)-1)","v":4.6745053054201291E-2},{"$f":"((Quarterly!DA131/Quarterly!DA127)-1)","v":4.6728971962616939E-2},null,null,null,null,null,{"$f":"((Quarterly!DG131/Quarterly!DG127)-1)","v":3.3388293487222054E-2},{"$f":"((Quarterly!DH131-Quarterly!DH127)*60)","v":-1.9999999999998863},{"$f":"Quarterly!DI131-Quarterly!DI127","v":0.56666666666667709},"--",{"$f":"(Quarterly!DK131-Quarterly!DK127)*100","v":-50},{"$f":"((Quarterly!DL131/Quarterly!DL127)-1)","v":1.3375236171128124E-2},null,null,null,{"$f":"((Quarterly!DP131/Quarterly!DP127)-1)","v":3.1226796732980011E-2},null,null,null,null,{"$f":"Quarterly!DU131-Quarterly!DU127","v":-0.83333333333333393},"--","--","--","--","--","--","--","--",null,null,null,null,null,{"$f":"((Quarterly!EI131/Quarterly!EI127)-1)","v":4.1464399210739078E-2},{"$f":"((Quarterly!EJ131/Quarterly!EJ127)-1)","v":3.6343246309973543E-2},{"$f":"((Quarterly!EK131/Quarterly!EK127)-1)","v":3.7318059987251573E-2},null,null,null,null,null,{"$f":"((Quarterly!EQ131/Quarterly!EQ127)-1)","v":5.8860960865415368E-2},{"$f":"((Quarterly!ER131/Quarterly!ER127)-1)","v":4.3943336224342433E-2},{"$f":"((Quarterly!ES131/Quarterly!ES127)-1)","v":3.7463126843657824E-2},null,null,null,null,null,{"$f":"(Quarterly!EY131-Quarterly!EY127)*100","v":239.00000000000006},{"$f":"(Quarterly!EZ131-Quarterly!EZ127)*100","v":277.99999999999994},{"$f":"(Quarterly!FA131-Quarterly!FA127)*100","v":12.999999999999901},{"$f":"(Quarterly!FB131-Quarterly!FB127)*100","v":-10.999999999999943},"--",{"$f":"(Quarterly!FD131-Quarterly!FD127)*100","v":72.000000000000057},{"$f":"(Quarterly!FE131-Quarterly!FE127)*100","v":281.66666666666663},{"$f":"(Quarterly!FF131-Quarterly!FF127)*100","v":251.00000000000006},{"$f":"(Quarterly!FG131-Quarterly!FG127)*100","v":204.99999999999989},{"$f":"(Quarterly!FH131-Quarterly!FH127)*100","v":140.33333333333343},{"$f":"(Quarterly!FI131-Quarterly!FI127)*100","v":78.999999999999915},null,null,null,null,null,null,{"$f":"((Quarterly!FP131/Quarterly!FP127)-1)","v":-5.9717583949091546E-2},{"$f":"((Quarterly!FQ131/Quarterly!FQ127)-1)","v":0},"--","--",{"$f":"((Quarterly!FT131/Quarterly!FT127)-1)","v":6.9164857109021982E-2},{"$f":"((Quarterly!FU131/Quarterly!FU127)-1)","v":1.6912744499458565E-2},{"$f":"((Quarterly!FV131/Quarterly!FV127)-1)","v":0.12203749735827785},{"$f":"((Quarterly!FW131/Quarterly!FW127)-1)","v":0.24320300005514794},{"$f":"((Quarterly!FX131/Quarterly!FX127)-1)","v":0.11809813271847536},null,null,null,null,null,{"$f":"((Quarterly!GD131/Quarterly!GD127)-1)","v":0.10195046069163571},{"$f":"((Quarterly!GE131/Quarterly!GE127)-1)","v":0.11755983901715727},"--","--",{"$f":"((Quarterly!GH131/Quarterly!GH127)-1)","v":{"$error":"#DIV/0!"}},"--","--","--","--"]
["89'Q2",{"$f":"((Quarterly!B132/Quarterly!B128)-1)","v":8.0788339282528598E-2},{"$f":"((Quarterly!C132/Quarterly!C128)-1)","v":3.7469036666031519E-2},{"$f":"((Quarterly!D132/Quarterly!D128)-1)","v":3.4238801345231495E-2},{"$f":"((Quarterly!E132/Quarterly!E128)-1)","v":2.9617081479551111E-2},{"$f":"((Quarterly!F132/Quarterly!F128)-1)","v":2.1476936098180133E-2},{"$f":"((Quarterly!G132/Quarterly!G128)-1)","v":2.3557429279438491E-2},{"$f":"((Quarterly!H132/Quarterly!H128)-1)","v":3.2738411688351787E-2},{"$f":"((Quarterly!I132/Quarterly!I128)-1)","v":5.0606682047338092E-2},{"$f":"((Quarterly!J132/Quarterly!J128)-1)","v":5.8695426823013763E-2},{"$f":"((Quarterly!K132/Quarterly!K128)-1)","v":-2.6636050516647636E-2},{"$f":"((Quarterly!L132-Quarterly!L128))","v":18.815999999999999},{"$f":"((Quarterly!M132/Quarterly!M128)-1)","v":6.4702447815539355E-2},{"$f":"((Quarterly!N132/Quarterly!N128)-1)","v":0.12955947077885632},{"$f":"((Quarterly!O132/Quarterly!O128)-1)","v":-0.2036468420804014},{"$f":"((Quarterly!P132/Quarterly!P128)-1)","v":3.150372158953374E-2},{"$f":"((Quarterly!Q132/Quarterly!Q128)-1)","v":1.5839486356340471E-2},null,null,null,null,null,{"$f":"((Quarterly!W132/Quarterly!W128)-1)","v":-1.1933174224343368E-3},{"$f":"((Quarterly!X132/Quarterly!X128)-1)","v":-7.9145231499799795E-4},{"$f":"((Quarterly!Y132/Quarterly!Y128)-1)","v":6.7037125041299106E-2},{"$f":"Quarterly!Z132-Quarterly!Z128","v":-0.34000000000000008},{"$f":"((Quarterly!AA132/Quarterly!AA128)-1)","v":-7.9219154217846643E-3},{"$f":"((Quarterly!AB132/Quarterly!AB128)-1)","v":-5.9170077266137433E-3},"--","--",{"$f":"(Quarterly!AE132-Quarterly!AE128)*100","v":-17.999999999999972},{"$f":"(Quarterly!AF132-Quarterly!AF128)*100","v":-34.000000000000007},{"$f":"(Quarterly!AG132-Quarterly!AG128)*100","v":-12},"--","--","--","--","--",{"$f":"((Quarterly!AM132/Quarterly!AM128)-1)","v":1.1613291833932671E-2},{"$f":"((Quarterly!AN132/Quarterly!AN128)-1)","v":1.1950661219617187E-2},"--","--",{"$f":"Quarterly!AQ132-Quarterly!AQ128","v":-7.2666666666666657},"--","--",{"$f":"Quarterly!AT132-Quarterly!AT128","v":-1.6999999999999957},{"$f":"Quarterly!AU132-Quarterly!AU128","v":-7.63333333333334},"--",{"$f":"Quarterly!AW132-Quarterly!AW128","v":-3.5333333333333314},{"$f":"Quarterly!AX132-Quarterly!AX128","v":-9.8333333333333286},{"$f":"Quarterly!AY132-Quarterly!AY128","v":-22.833333333333336},{"$f":"Quarterly!AZ132-Quarterly!AZ128","v":-7.9000000000000057},{"$f":"Quarterly!BA132-Quarterly!BA128","v":-11.099999999999994},"--","--",{"$f":"((Quarterly!BD132/Quarterly!BD128)-1)","v":9.8615277150027048E-4},{"$f":"((Quarterly!BE132/Quarterly!BE128)-1)","v":2.8190666016411736E-2},{"$f":"((Quarterly!BF132/Quarterly!BF128)-1)","v":2.7080450681953083E-2},{"$f":"((Quarterly!BG132/Quarterly!BG128)-1)","v":9.25822821055311E-3},{"$f":"((Quarterly!BH132/Quarterly!BH128)-1)","v":-1.8764170205303632E-2},{"$f":"((Quarterly!BI132/Quarterly!BI128)-1)","v":1.7672723256199285E-2},{"$f":"((Quarterly!BJ132/Quarterly!BJ128)-1)","v":-6.6633786073804213E-2},{"$f":"((Quarterly!BK132/Quarterly!BK128)-1)","v":-0.3063063063063064},null,"--","--",null,null,null,null,null,{"$f":"((Quarterly!BT132/Quarterly!BT128)-1)","v":6.1255893163344899E-2},{"$f":"Quarterly!BU132-Quarterly!BU128","v":-1.1789999999999523E-2},{"$f":"Quarterly!BV132-Quarterly!BV128","v":-0.11533000000000015},{"$f":"((Quarterly!BW132/Quarterly!BW128)-1)","v":0.14499536781676925},{"$f":"((Quarterly!BX132/Quarterly!BX128)-1)","v":-9.0563506261180704E-2},{"$f":"((Quarterly!BY132/Quarterly!BY128)-1)","v":-6.4020192748967419E-2},"--",{"$f":"((Quarterly!CA132/Quarterly!CA128)-1)","v":-3.511611844945195E-2},{"$f":"((Quarterly!CB132/Quarterly!CB128)-1)","v":0.10022091950781564},{"$f":"((Quarterly!CC132/Quarterly!CC128)-1)","v":5.9022079736976263E-2},"--","--",null,"--","--",null,{"$f":"((Quarterly!CJ132/Quarterly!CJ128)-1)","v":-9.2380952380952341E-2},{"$f":"((Quarterly!CK132/Quarterly!CK128)-1)","v":8.5103363451440206E-2},{"$f":"((Quarterly!CL132/Quarterly!CL128)-1)","v":5.4867658752697945E-2},{"$f":"((Quarterly!CM132/Quarterly!CM128)-1)","v":-6.4415259537210723E-2},{"$f":"((Quarterly!CN132/Quarterly!CN128)-1)","v":2.8933649680441764E-2},{"$f":"((Quarterly!CO132/Quarterly!CO128)-1)","v":-8.3623081515821873E-2},{"$f":"((Quarterly!CP132/Quarterly!CP128)-1)","v":8.3655926119504231E-2},{"$f":"((Quarterly!CQ132/Quarterly!CQ128)-1)","v":9.3750723910930311E-3},{"$f":"((Quarterly!CR132/Quarterly!CR128)-1)","v":0.14270202913981667},{"$f":"Quarterly!CS132-Quarterly!CS128","v":-2.63333333333334},"--",null,null,null,null,null,{"$f":"((Quarterly!CZ132/Quarterly!CZ128)-1)","v":5.1601927984122442E-2},{"$f":"((Quarterly!DA132/Quarterly!DA128)-1)","v":4.5355784899511198E-2},null,null,null,null,null,{"$f":"((Quarterly!DG132/Quarterly!DG128)-1)","v":2.4908125765618516E-2},{"$f":"((Quarterly!DH132-Quarterly!DH128)*60)","v":-7.9999999999999716},{"$f":"Quarterly!DI132-Quarterly!DI128","v":0.63333333333332575},"--",{"$f":"(Quarterly!DK132-Quarterly!DK128)*100","v":-23.33333333333325},{"$f":"((Quarterly!DL132/Quarterly!DL128)-1)","v":7.9356208785068549E-3},null,null,null,{"$f":"((Quarterly!DP132/Quarterly!DP128)-1)","v":2.7652475898126028E-2},null,null,null,null,{"$f":"Quarterly!DU132-Quarterly!DU128","v":-0.5},"--","--","--","--","--","--","--","--",null,null,null,null,null,{"$f":"((Quarterly!EI132/Quarterly!EI128)-1)","v":3.3380765180524241E-2},{"$f":"((Quarterly!EJ132/Quarterly!EJ128)-1)","v":3.2678783810492495E-2},{"$f":"((Quarterly!EK132/Quarterly!EK128)-1)","v":3.4779848070715547E-2},null,null,null,null,null,{"$f":"((Quarterly!EQ132/Quarterly!EQ128)-1)","v":5.915492957746471E-2},{"$f":"((Quarterly!ER132/Quarterly!ER128)-1)","v":4.5597935187840166E-2},{"$f":"((Quarterly!ES132/Quarterly!ES128)-1)","v":3.9554644008203743E-2},null,null,null,null,null,{"$f":"(Quarterly!EY132-Quarterly!EY128)*100","v":257.6666666666668},{"$f":"(Quarterly!EZ132-Quarterly!EZ128)*100","v":257},{"$f":"(Quarterly!FA132-Quarterly!FA128)*100","v":-32.333333333333414},{"$f":"(Quarterly!FB132-Quarterly!FB128)*100","v":-61.333333333333151},"--",{"$f":"(Quarterly!FD132-Quarterly!FD128)*100","v":29.999999999999893},{"$f":"(Quarterly!FE132-Quarterly!FE128)*100","v":219.99999999999983},{"$f":"(Quarterly!FF132-Quarterly!FF128)*100","v":162.66666666666677},{"$f":"(Quarterly!FG132-Quarterly!FG128)*100","v":108.66666666666669},{"$f":"(Quarterly!FH132-Quarterly!FH128)*100","v":41.3333333333334},{"$f":"(Quarterly!FI132-Quarterly!FI128)*100","v":-13.666666666666849},null,null,null,null,null,null,{"$f":"((Quarterly!FP132/Quarterly!FP128)-1)","v":-2.9889978862934208E-2},{"$f":"((Quarterly!FQ132/Quarterly!FQ128)-1)","v":0},"--","--",{"$f":"((Quarterly!FT132/Quarterly!FT128)-1)","v":0.11350209791772614},{"$f":"((Quarterly!FU132/Quarterly!FU128)-1)","v":7.4289349165085561E-2},{"$f":"((Quarterly!FV132/Quarterly!FV128)-1)","v":7.5980710377445915E-2},{"$f":"((Quarterly!FW132/Quarterly!FW128)-1)","v":0.42393261998093035},{"$f":"((Quarterly!FX132/Quarterly!FX128)-1)","v":0.21625445309969837},null,null,null,null,null,{"$f":"((Quarterly!GD132/Quarterly!GD128)-1)","v":0.17811469243678002},{"$f":"((Quarterly!GE132/Quarterly!GE128)-1)","v":0.16862745098039245},"--","--",{"$f":"((Quarterly!GH132/Quarterly!GH128)-1)","v":{"$error":"#DIV/0!"}},"--","--","--","--"]
["89'Q3",{"$f":"((Quarterly!B133/Quarterly!B129)-1)","v":7.7756597526627891E-2},{"$f":"((Quarterly!C133/Quarterly!C129)-1)","v":3.9215220205683909E-2},{"$f":"((Quarterly!D133/Quarterly!D129)-1)","v":4.0948417260907588E-2},{"$f":"((Quarterly!E133/Quarterly!E129)-1)","v":3.1046384997323484E-2},{"$f":"((Quarterly!F133/Quarterly!F129)-1)","v":5.8394747420608351E-2},{"$f":"((Quarterly!G133/Quarterly!G129)-1)","v":2.6735916899720102E-2},{"$f":"((Quarterly!H133/Quarterly!H129)-1)","v":2.9801218699679666E-2},{"$f":"((Quarterly!I133/Quarterly!I129)-1)","v":7.075531779391131E-2},{"$f":"((Quarterly!J133/Quarterly!J129)-1)","v":9.8685353906616147E-2},{"$f":"((Quarterly!K133/Quarterly!K129)-1)","v":-3.78614043139055E-2},{"$f":"((Quarterly!L133-Quarterly!L129))","v":-9.1199999999999992},{"$f":"((Quarterly!M133/Quarterly!M129)-1)","v":3.8733786065897835E-2},{"$f":"((Quarterly!N133/Quarterly!N129)-1)","v":0.11902695904173854},{"$f":"((Quarterly!O133/Quarterly!O129)-1)","v":-0.28709572381623094},{"$f":"((Quarterly!P133/Quarterly!P129)-1)","v":3.9407937250814262E-2},{"$f":"((Quarterly!Q133/Quarterly!Q129)-1)","v":8.1635217629979273E-2},null,null,null,null,null,{"$f":"((Quarterly!W133/Quarterly!W129)-1)","v":-1.7878426698450522E-2},{"$f":"((Quarterly!X133/Quarterly!X129)-1)","v":-1.5785319652722896E-2},{"$f":"((Quarterly!Y133/Quarterly!Y129)-1)","v":6.6965251585053176E-2},{"$f":"Quarterly!Z133-Quarterly!Z129","v":-0.24},{"$f":"((Quarterly!AA133/Quarterly!AA129)-1)","v":-4.3329421761825748E-2},{"$f":"((Quarterly!AB133/Quarterly!AB129)-1)","v":2.5951679259096805E-2},"--","--",{"$f":"(Quarterly!AE133-Quarterly!AE129)*100","v":-17.999999999999972},{"$f":"(Quarterly!AF133-Quarterly!AF129)*100","v":-24},{"$f":"(Quarterly!AG133-Quarterly!AG129)*100","v":-4.9999999999999929},"--","--","--","--","--",{"$f":"((Quarterly!AM133/Quarterly!AM129)-1)","v":1.6368340738934783E-3},{"$f":"((Quarterly!AN133/Quarterly!AN129)-1)","v":1.5178247544134216E-3},"--","--",{"$f":"Quarterly!AQ133-Quarterly!AQ129","v":-10.566666666666663},"--","--",{"$f":"Quarterly!AT133-Quarterly!AT129","v":-6.4666666666666686},{"$f":"Quarterly!AU133-Quarterly!AU129","v":-4.5},"--",{"$f":"Quarterly!AW133-Quarterly!AW129","v":-6.2999999999999972},{"$f":"Quarterly!AX133-Quarterly!AX129","v":-13.800000000000004},{"$f":"Quarterly!AY133-Quarterly!AY129","v":-32.733333333333327},{"$f":"Quarterly!AZ133-Quarterly!AZ129","v":-10.733333333333341},{"$f":"Quarterly!BA133-Quarterly!BA129","v":-12.333333333333336},"--","--",{"$f":"((Quarterly!BD133/Quarterly!BD129)-1)","v":2.6778725332676778E-4},{"$f":"((Quarterly!BE133/Quarterly!BE129)-1)","v":3.0816544279169023E-2},{"$f":"((Quarterly!BF133/Quarterly!BF129)-1)","v":2.3764568005729458E-2},{"$f":"((Quarterly!BG133/Quarterly!BG129)-1)","v":1.1435731506153957E-2},{"$f":"((Quarterly!BH133/Quarterly!BH129)-1)","v":-1.8000425601161663E-2},{"$f":"((Quarterly!BI133/Quarterly!BI129)-1)","v":1.2205467830656014E-2},{"$f":"((Quarterly!BJ133/Quarterly!BJ129)-1)","v":-0.15827253031849975},{"$f":"((Quarterly!BK133/Quarterly!BK129)-1)","v":-0.23300970873786409},null,"--","--",null,null,null,null,null,{"$f":"((Quarterly!BT133/Quarterly!BT129)-1)","v":5.6724762065136547E-2},{"$f":"Quarterly!BU133-Quarterly!BU129","v":9.5990000000000464E-2},{"$f":"Quarterly!BV133-Quarterly!BV129","v":4.5960000000000889E-2},{"$f":"((Quarterly!BW133/Quarterly!BW129)-1)","v":0.16026479669265781},{"$f":"((Quarterly!BX133/Quarterly!BX129)-1)","v":-9.2991913746630739E-2},{"$f":"((Quarterly!BY133/Quarterly!BY129)-1)","v":-9.3194925028835085E-2},"--",{"$f":"((Quarterly!CA133/Quarterly!CA129)-1)","v":1.8178597524522333E-2},{"$f":"((Quarterly!CB133/Quarterly!CB129)-1)","v":3.4461516264256753E-2},{"$f":"((Quarterly!CC133/Quarterly!CC129)-1)","v":1.2489623261867422E-2},"--","--",null,"--","--",null,{"$f":"((Quarterly!CJ133/Quarterly!CJ129)-1)","v":-1.4492753623188692E-3},{"$f":"((Quarterly!CK133/Quarterly!CK129)-1)","v":7.503395900222265E-2},{"$f":"((Quarterly!CL133/Quarterly!CL129)-1)","v":-8.21287779237867E-3},{"$f":"((Quarterly!CM133/Quarterly!CM129)-1)","v":-6.8761667703795881E-2},{"$f":"((Quarterly!CN133/Quarterly!CN129)-1)","v":2.6051350275616558E-2},{"$f":"((Quarterly!CO133/Quarterly!CO129)-1)","v":-8.1926181831000755E-2},{"$f":"((Quarterly!CP133/Quarterly!CP129)-1)","v":8.1626724992539978E-2},{"$f":"((Quarterly!CQ133/Quarterly!CQ129)-1)","v":9.5225797682558788E-3},{"$f":"((Quarterly!CR133/Quarterly!CR129)-1)","v":0.14638744877156995},{"$f":"Quarterly!CS133-Quarterly!CS129","v":-3.5666666666666913},"--",null,null,null,null,null,{"$f":"((Quarterly!CZ133/Quarterly!CZ129)-1)","v":4.705882352941182E-2},{"$f":"((Quarterly!DA133/Quarterly!DA129)-1)","v":4.3781896320171709E-2},null,null,null,null,null,{"$f":"((Quarterly!DG133/Quarterly!DG129)-1)","v":2.0283975659229014E-2},{"$f":"((Quarterly!DH133-Quarterly!DH129)*60)","v":-6.0000000000000853},{"$f":"Quarterly!DI133-Quarterly!DI129","v":0.5},"--",{"$f":"(Quarterly!DK133-Quarterly!DK129)*100","v":-23.33333333333325},{"$f":"((Quarterly!DL133/Quarterly!DL129)-1)","v":2.5125160521859424E-3},null,null,null,{"$f":"((Quarterly!DP133/Quarterly!DP129)-1)","v":2.3078256757821602E-2},null,null,null,null,{"$f":"Quarterly!DU133-Quarterly!DU129","v":-0.7333333333333325},"--","--","--","--","--","--","--","--",null,null,null,null,null,{"$f":"((Quarterly!EI133/Quarterly!EI129)-1)","v":4.0948933314147062E-2},{"$f":"((Quarterly!EJ133/Quarterly!EJ129)-1)","v":4.0889375003547723E-2},{"$f":"((Quarterly!EK133/Quarterly!EK129)-1)","v":3.8983698078704165E-2},null,null,null,null,null,{"$f":"((Quarterly!EQ133/Quarterly!EQ129)-1)","v":4.0740740740740966E-2},{"$f":"((Quarterly!ER133/Quarterly!ER129)-1)","v":4.2209631728045149E-2},{"$f":"((Quarterly!ES133/Quarterly!ES129)-1)","v":3.8896952104499283E-2},null,null,null,null,null,{"$f":"(Quarterly!EY133-Quarterly!EY129)*100","v":95.000000000000114},{"$f":"(Quarterly!EZ133-Quarterly!EZ129)*100","v":110.00000000000006},{"$f":"(Quarterly!FA133-Quarterly!FA129)*100","v":-99.666666666666615},{"$f":"(Quarterly!FB133-Quarterly!FB129)*100","v":-118.66666666666657},"--",{"$f":"(Quarterly!FD133-Quarterly!FD129)*100","v":-50.333333333333385},{"$f":"(Quarterly!FE133-Quarterly!FE129)*100","v":83.3333333333333},{"$f":"(Quarterly!FF133-Quarterly!FF129)*100","v":9.3333333333333712},{"$f":"(Quarterly!FG133-Quarterly!FG129)*100","v":-37.666666666666693},{"$f":"(Quarterly!FH133-Quarterly!FH129)*100","v":-73.333333333333428},{"$f":"(Quarterly!FI133-Quarterly!FI129)*100","v":-99.333333333333229},null,null,null,null,null,null,{"$f":"((Quarterly!FP133/Quarterly!FP129)-1)","v":-3.0126575357445451E-2},{"$f":"((Quarterly!FQ133/Quarterly!FQ129)-1)","v":0},"--","--",{"$f":"((Quarterly!FT133/Quarterly!FT129)-1)","v":8.7248016174886978E-2},{"$f":"((Quarterly!FU133/Quarterly!FU129)-1)","v":2.542542171845108E-2},{"$f":"((Quarterly!FV133/Quarterly!FV129)-1)","v":5.5327448702244153E-2},{"$f":"((Quarterly!FW133/Quarterly!FW129)-1)","v":0.53535696116669484},{"$f":"((Quarterly!FX133/Quarterly!FX129)-1)","v":0.19454136483590423},null,null,null,null,null,{"$f":"((Quarterly!GD133/Quarterly!GD129)-1)","v":0.26975752379696205},{"$f":"((Quarterly!GE133/Quarterly!GE129)-1)","v":0.21358771521637965},"--","--",{"$f":"((Quarterly!GH133/Quarterly!GH129)-1)","v":{"$error":"#DIV/0!"}},"--","--","--","--"]
["89'Q4",{"$f":"((Quarterly!B134/Quarterly!B130)-1)","v":6.4797634753588573E-2},{"$f":"((Quarterly!C134/Quarterly!C130)-1)","v":2.7799810703937444E-2},{"$f":"((Quarterly!D134/Quarterly!D130)-1)","v":2.9160238588845866E-2},{"$f":"((Quarterly!E134/Quarterly!E130)-1)","v":2.3869484287747822E-2},{"$f":"((Quarterly!F134/Quarterly!F130)-1)","v":3.1346324643433121E-4},{"$f":"((Quarterly!G134/Quarterly!G130)-1)","v":2.7662232906827677E-2},{"$f":"((Quarterly!H134/Quarterly!H130)-1)","v":2.4949966075408669E-2},{"$f":"((Quarterly!I134/Quarterly!I130)-1)","v":4.5559231187973781E-2},{"$f":"((Quarterly!J134/Quarterly!J130)-1)","v":5.3716896852098461E-2},{"$f":"((Quarterly!K134/Quarterly!K130)-1)","v":-6.6408915169433702E-2},{"$f":"((Quarterly!L134-Quarterly!L130))","v":-11.574000000000002},{"$f":"((Quarterly!M134/Quarterly!M130)-1)","v":2.6263562557751641E-2},{"$f":"((Quarterly!N134/Quarterly!N130)-1)","v":0.10232507605388963},{"$f":"((Quarterly!O134/Quarterly!O130)-1)","v":-0.28247287801722898},{"$f":"((Quarterly!P134/Quarterly!P130)-1)","v":2.5723791674385543E-2},{"$f":"((Quarterly!Q134/Quarterly!Q130)-1)","v":6.2355381540537325E-2},null,null,null,null,null,{"$f":"((Quarterly!W134/Quarterly!W130)-1)","v":-3.3057851239669422E-2},{"$f":"((Quarterly!X134/Quarterly!X130)-1)","v":-2.3566378633150031E-2},{"$f":"((Quarterly!Y134/Quarterly!Y130)-1)","v":6.2027610570428937E-2},{"$f":"Quarterly!Z134-Quarterly!Z130","v":0},{"$f":"((Quarterly!AA134/Quarterly!AA130)-1)","v":-8.4776928288009201E-2},{"$f":"((Quarterly!AB134/Quarterly!AB130)-1)","v":-9.097830756388825E-2},"--","--",{"$f":"(Quarterly!AE134-Quarterly!AE130)*100","v":6.999999999999984},{"$f":"(Quarterly!AF134-Quarterly!AF130)*100","v":0},{"$f":"(Quarterly!AG134-Quarterly!AG130)*100","v":15.999999999999993},"--","--","--","--","--",{"$f":"((Quarterly!AM134/Quarterly!AM130)-1)","v":-1.2532400586028336E-3},{"$f":"((Quarterly!AN134/Quarterly!AN130)-1)","v":-8.1949959149987261E-3},"--","--",{"$f":"Quarterly!AQ134-Quarterly!AQ130","v":-8.6666666666666643},"--","--",{"$f":"Quarterly!AT134-Quarterly!AT130","v":-8.5},{"$f":"Quarterly!AU134-Quarterly!AU130","v":-4.8333333333333215},"--",{"$f":"Quarterly!AW134-Quarterly!AW130","v":-7.2000000000000099},{"$f":"Quarterly!AX134-Quarterly!AX130","v":-8.5333333333333314},{"$f":"Quarterly!AY134-Quarterly!AY130","v":-29.766666666666666},{"$f":"Quarterly!AZ134-Quarterly!AZ130","v":-8.8000000000000043},{"$f":"Quarterly!BA134-Quarterly!BA130","v":-10.200000000000003},"--","--",{"$f":"((Quarterly!BD134/Quarterly!BD130)-1)","v":6.2086347150791532E-3},{"$f":"((Quarterly!BE134/Quarterly!BE130)-1)","v":3.0642285524733692E-2},{"$f":"((Quarterly!BF134/Quarterly!BF130)-1)","v":3.0336328183913963E-2},{"$f":"((Quarterly!BG134/Quarterly!BG130)-1)","v":7.8522450785225573E-3},{"$f":"((Quarterly!BH134/Quarterly!BH130)-1)","v":-1.1163514123726848E-2},{"$f":"((Quarterly!BI134/Quarterly!BI130)-1)","v":2.229677208198666E-2},{"$f":"((Quarterly!BJ134/Quarterly!BJ130)-1)","v":-0.23766873970563229},{"$f":"((Quarterly!BK134/Quarterly!BK130)-1)","v":0},null,"--","--",null,null,null,null,null,{"$f":"((Quarterly!BT134/Quarterly!BT130)-1)","v":5.3765422783377259E-2},{"$f":"Quarterly!BU134-Quarterly!BU130","v":0.17698999999999998},{"$f":"Quarterly!BV134-Quarterly!BV130","v":0.15873000000000204},{"$f":"((Quarterly!BW134/Quarterly!BW130)-1)","v":0.17804050455714293},{"$f":"((Quarterly!BX134/Quarterly!BX130)-1)","v":-0.1379458530296519},{"$f":"((Quarterly!BY134/Quarterly!BY130)-1)","v":-8.7071823204419863E-2},"--",{"$f":"((Quarterly!CA134/Quarterly!CA130)-1)","v":-0.13797305825770922},{"$f":"((Quarterly!CB134/Quarterly!CB130)-1)","v":3.6759996372145887E-2},{"$f":"((Quarterly!CC134/Quarterly!CC130)-1)","v":2.8242480524551583E-2},"--","--",null,"--","--",null,{"$f":"((Quarterly!CJ134/Quarterly!CJ130)-1)","v":-2.2455089820359264E-2},{"$f":"((Quarterly!CK134/Quarterly!CK130)-1)","v":7.0663730542501746E-2},{"$f":"((Quarterly!CL134/Quarterly!CL130)-1)","v":4.9149753154141385E-2},{"$f":"((Quarterly!CM134/Quarterly!CM130)-1)","v":-0.13309879800644975},{"$f":"((Quarterly!CN134/Quarterly!CN130)-1)","v":2.4408815254429506E-2},{"$f":"((Quarterly!CO134/Quarterly!CO130)-1)","v":-4.7211376580578057E-2},{"$f":"((Quarterly!CP134/Quarterly!CP130)-1)","v":8.3545917434480144E-2},{"$f":"((Quarterly!CQ134/Quarterly!CQ130)-1)","v":9.7528174580041593E-3},{"$f":"((Quarterly!CR134/Quarterly!CR130)-1)","v":0.13945860002341792},{"$f":"Quarterly!CS134-Quarterly!CS130","v":-1.2333333333333343},"--",null,null,null,null,null,{"$f":"((Quarterly!CZ134/Quarterly!CZ130)-1)","v":4.6273205874203471E-2},{"$f":"((Quarterly!DA134/Quarterly!DA130)-1)","v":4.3789808917197304E-2},null,null,null,null,null,{"$f":"((Quarterly!DG134/Quarterly!DG130)-1)","v":1.5681544028950611E-2},{"$f":"((Quarterly!DH134-Quarterly!DH130)*60)","v":-10.000000000000284},{"$f":"Quarterly!DI134-Quarterly!DI130","v":0.43333333333333712},"--",{"$f":"(Quarterly!DK134-Quarterly!DK130)*100","v":3.3333333333334103},{"$f":"((Quarterly!DL134/Quarterly!DL130)-1)","v":-6.1488313516316895E-3},null,null,null,{"$f":"((Quarterly!DP134/Quarterly!DP130)-1)","v":1.9634207736734632E-2},null,null,null,null,{"$f":"Quarterly!DU134-Quarterly!DU130","v":-0.86666666666666803},"--","--","--","--","--","--","--","--",null,null,null,null,null,{"$f":"((Quarterly!EI134/Quarterly!EI130)-1)","v":1.87919097752689E-2},{"$f":"((Quarterly!EJ134/Quarterly!EJ130)-1)","v":2.6216345788735662E-2},{"$f":"((Quarterly!EK134/Quarterly!EK130)-1)","v":2.9168023603432403E-2},null,null,null,null,null,{"$f":"((Quarterly!EQ134/Quarterly!EQ130)-1)","v":3.9938556067588227E-2},{"$f":"((Quarterly!ER134/Quarterly!ER130)-1)","v":4.294134156609597E-2},{"$f":"((Quarterly!ES134/Quarterly!ES130)-1)","v":3.9447163835300891E-2},null,null,null,null,null,{"$f":"(Quarterly!EY134-Quarterly!EY130)*100","v":31.666666666666643},{"$f":"(Quarterly!EZ134-Quarterly!EZ130)*100","v":14.333333333333442},{"$f":"(Quarterly!FA134-Quarterly!FA130)*100","v":-61.999999999999922},{"$f":"(Quarterly!FB134-Quarterly!FB130)*100","v":-69.999999999999929},"--",{"$f":"(Quarterly!FD134-Quarterly!FD130)*100","v":-57.333333333333236},{"$f":"(Quarterly!FE134-Quarterly!FE130)*100","v":-7.333333333333325},{"$f":"(Quarterly!FF134-Quarterly!FF130)*100","v":-69.999999999999844},{"$f":"(Quarterly!FG134-Quarterly!FG130)*100","v":-84.999999999999872},{"$f":"(Quarterly!FH134-Quarterly!FH130)*100","v":-95.333333333333144},{"$f":"(Quarterly!FI134-Quarterly!FI130)*100","v":-105.00000000000007},null,null,null,null,null,null,{"$f":"((Quarterly!FP134/Quarterly!FP130)-1)","v":-3.1599591194100163E-2},{"$f":"((Quarterly!FQ134/Quarterly!FQ130)-1)","v":4.0297654142323669E-2},"--","--",{"$f":"((Quarterly!FT134/Quarterly!FT130)-1)","v":0.12249646853964058},{"$f":"((Quarterly!FU134/Quarterly!FU130)-1)","v":5.38677669638985E-2},{"$f":"((Quarterly!FV134/Quarterly!FV130)-1)","v":6.8714686229838673E-2},{"$f":"((Quarterly!FW134/Quarterly!FW130)-1)","v":0.39767441860465103},{"$f":"((Quarterly!FX134/Quarterly!FX130)-1)","v":0.14265787682037812},null,null,null,null,null,{"$f":"((Quarterly!GD134/Quarterly!GD130)-1)","v":0.38505029404418645},{"$f":"((Quarterly!GE134/Quarterly!GE130)-1)","v":0.41089837997054501},"--","--",{"$f":"((Quarterly!GH134/Quarterly!GH130)-1)","v":{"$error":"#DIV/0!"}},"--","--","--","--"]
["90'Q1",{"$f":"((Quarterly!B135/Quarterly!B131)-1)","v":6.5760783825600466E-2},{"$f":"((Quarterly!C135/Quarterly!C131)-1)","v":2.8676280460457004E-2},{"$f":"((Quarterly!D135/Quarterly!D131)-1)","v":3.4943396165307616E-2},{"$f":"((Quarterly!E135/Quarterly!E131)-1)","v":2.7919565493814691E-2},{"$f":"((Quarterly!F135/Quarterly!F131)-1)","v":4.7202980688497265E-2},{"$f":"((Quarterly!G135/Quarterly!G131)-1)","v":2.1696345630028535E-2},{"$f":"((Quarterly!H135/Quarterly!H131)-1)","v":2.820802277850154E-2},{"$f":"((Quarterly!I135/Quarterly!I131)-1)","v":4.2250618301731047E-2},{"$f":"((Quarterly!J135/Quarterly!J131)-1)","v":4.7553446066395999E-2},{"$f":"((Quarterly!K135/Quarterly!K131)-1)","v":-5.0595238095238138E-2},{"$f":"((Quarterly!L135-Quarterly!L131))","v":-41.814},{"$f":"((Quarterly!M135/Quarterly!M131)-1)","v":5.3917060021287266E-2},{"$f":"((Quarterly!N135/Quarterly!N131)-1)","v":0.11686553359989604},{"$f":"((Quarterly!O135/Quarterly!O131)-1)","v":-0.23769610478471348},{"$f":"((Quarterly!P135/Quarterly!P131)-1)","v":4.6591386254452472E-2},{"$f":"((Quarterly!Q135/Quarterly!Q131)-1)","v":0.43256527065589756},null,null,null,null,null,{"$f":"((Quarterly!W135/Quarterly!W131)-1)","v":-3.1839622641509524E-2},{"$f":"((Quarterly!X135/Quarterly!X131)-1)","v":-2.3949744797801098E-2},{"$f":"((Quarterly!Y135/Quarterly!Y131)-1)","v":3.8472078879689731E-2},{"$f":"Quarterly!Z135-Quarterly!Z131","v":0.41000000000000003},{"$f":"((Quarterly!AA135/Quarterly!AA131)-1)","v":-3.0002166079199699E-2},{"$f":"((Quarterly!AB135/Quarterly!AB131)-1)","v":3.2518886185781248E-2},"--","--",{"$f":"(Quarterly!AE135-Quarterly!AE131)*100","v":10.000000000000009},{"$f":"(Quarterly!AF135-Quarterly!AF131)*100","v":41},{"$f":"(Quarterly!AG135-Quarterly!AG131)*100","v":58.000000000000007},"--","--","--","--","--",{"$f":"((Quarterly!AM135/Quarterly!AM131)-1)","v":1.1739759656990145E-3},{"$f":"((Quarterly!AN135/Quarterly!AN131)-1)","v":-2.9978456609401904E-3},"--","--",{"$f":"Quarterly!AQ135-Quarterly!AQ131","v":-4.6999999999999957},"--","--",{"$f":"Quarterly!AT135-Quarterly!AT131","v":-4.4000000000000057},{"$f":"Quarterly!AU135-Quarterly!AU131","v":-2.5333333333333243},"--",{"$f":"Quarterly!AW135-Quarterly!AW131","v":-6.2333333333333343},{"$f":"Quarterly!AX135-Quarterly!AX131","v":-4.2333333333333414},{"$f":"Quarterly!AY135-Quarterly!AY131","v":-20.266666666666666},{"$f":"Quarterly!AZ135-Quarterly!AZ131","v":-3.7666666666666728},{"$f":"Quarterly!BA135-Quarterly!BA131","v":-6.8666666666666671},"--","--",{"$f":"((Quarterly!BD135/Quarterly!BD131)-1)","v":2.2488419076382993E-2},{"$f":"((Quarterly!BE135/Quarterly!BE131)-1)","v":2.0453180340092469E-2},{"$f":"((Quarterly!BF135/Quarterly!BF131)-1)","v":4.7238855622089071E-2},{"$f":"((Quarterly!BG135/Quarterly!BG131)-1)","v":1.768763447664834E-2},{"$f":"((Quarterly!BH135/Quarterly!BH131)-1)","v":-5.5536622616025877E-4},{"$f":"((Quarterly!BI135/Quarterly!BI131)-1)","v":2.9045080243647714E-2},{"$f":"((Quarterly!BJ135/Quarterly!BJ131)-1)","v":-0.15580976457576234},{"$f":"((Quarterly!BK135/Quarterly!BK131)-1)","v":0.63076923076923075},null,"--","--",null,null,null,null,null,{"$f":"((Quarterly!BT135/Quarterly!BT131)-1)","v":5.1220500315799722E-2},{"$f":"Quarterly!BU135-Quarterly!BU131","v":8.5539999999999949E-2},{"$f":"Quarterly!BV135-Quarterly!BV131","v":0.11171999999999827},{"$f":"((Quarterly!BW135/Quarterly!BW131)-1)","v":0.14609848448353913},{"$f":"((Quarterly!BX135/Quarterly!BX131)-1)","v":-4.2748433303491429E-2},{"$f":"((Quarterly!BY135/Quarterly!BY131)-1)","v":6.3992124046271304E-2},"--",{"$f":"((Quarterly!CA135/Quarterly!CA131)-1)","v":5.2671010511500249E-3},{"$f":"((Quarterly!CB135/Quarterly!CB131)-1)","v":6.6701421072754119E-2},{"$f":"((Quarterly!CC135/Quarterly!CC131)-1)","v":5.3915382936047918E-2},"--","--",null,"--","--",null,{"$f":"((Quarterly!CJ135/Quarterly!CJ131)-1)","v":-6.4465408805031488E-2},{"$f":"((Quarterly!CK135/Quarterly!CK131)-1)","v":6.1898808648330528E-2},{"$f":"((Quarterly!CL135/Quarterly!CL131)-1)","v":-2.3126550868486362E-2},{"$f":"((Quarterly!CM135/Quarterly!CM131)-1)","v":1.2767315671880164E-2},{"$f":"((Quarterly!CN135/Quarterly!CN131)-1)","v":2.0436250740154094E-2},{"$f":"((Quarterly!CO135/Quarterly!CO131)-1)","v":-2.947027186325224E-4},{"$f":"((Quarterly!CP135/Quarterly!CP131)-1)","v":5.8932655164535275E-2},{"$f":"((Quarterly!CQ135/Quarterly!CQ131)-1)","v":9.9657436019546797E-3},{"$f":"((Quarterly!CR135/Quarterly!CR131)-1)","v":0.14794439462519215},{"$f":"Quarterly!CS135-Quarterly!CS131","v":-4.6000000000000085},"--",null,null,null,null,null,{"$f":"((Quarterly!CZ135/Quarterly!CZ131)-1)","v":5.2328767123287712E-2},{"$f":"((Quarterly!DA135/Quarterly!DA131)-1)","v":4.5955882352941124E-2},null,null,null,null,null,{"$f":"((Quarterly!DG135/Quarterly!DG131)-1)","v":1.4359792580773689E-2},{"$f":"((Quarterly!DH135-Quarterly!DH131)*60)","v":-7.9999999999999716},{"$f":"Quarterly!DI135-Quarterly!DI131","v":0.36666666666666003},"--",{"$f":"(Quarterly!DK135-Quarterly!DK131)*100","v":9.9999999999999645},{"$f":"((Quarterly!DL135/Quarterly!DL131)-1)","v":-1.133426862585829E-2},null,null,null,{"$f":"((Quarterly!DP135/Quarterly!DP131)-1)","v":1.8785710073771167E-2},null,null,null,null,{"$f":"Quarterly!DU135-Quarterly!DU131","v":-0.29999999999999982},"--","--","--","--","--","--","--","--",null,null,null,null,null,{"$f":"((Quarterly!EI135/Quarterly!EI131)-1)","v":2.4432335341333156E-2},{"$f":"((Quarterly!EJ135/Quarterly!EJ131)-1)","v":2.8802191023389767E-2},{"$f":"((Quarterly!EK135/Quarterly!EK131)-1)","v":3.048085162181513E-2},null,null,null,null,null,{"$f":"((Quarterly!EQ135/Quarterly!EQ131)-1)","v":3.2151442307692291E-2},{"$f":"((Quarterly!ER135/Quarterly!ER131)-1)","v":3.766269731376326E-2},{"$f":"((Quarterly!ES135/Quarterly!ES131)-1)","v":3.5541654819448265E-2},null,null,null,null,null,{"$f":"(Quarterly!EY135-Quarterly!EY131)*100","v":-93.999999999999943},{"$f":"(Quarterly!EZ135-Quarterly!EZ131)*100","v":-119.33333333333334},{"$f":"(Quarterly!FA135-Quarterly!FA131)*100","v":-49.333333333333229},{"$f":"(Quarterly!FB135-Quarterly!FB131)*100","v":-54.666666666666686},"--",{"$f":"(Quarterly!FD135-Quarterly!FD131)*100","v":-68.000000000000142},{"$f":"(Quarterly!FE135-Quarterly!FE131)*100","v":-77.999999999999844},{"$f":"(Quarterly!FF135-Quarterly!FF131)*100","v":-116.3333333333334},{"$f":"(Quarterly!FG135-Quarterly!FG131)*100","v":-104.66666666666633},{"$f":"(Quarterly!FH135-Quarterly!FH131)*100","v":-92.999999999999972},{"$f":"(Quarterly!FI135-Quarterly!FI131)*100","v":-78.333333333333144},null,null,null,null,null,null,{"$f":"((Quarterly!FP135/Quarterly!FP131)-1)","v":-7.6346551820573039E-3},{"$f":"((Quarterly!FQ135/Quarterly!FQ131)-1)","v":0.2686659162780729},"--","--",{"$f":"((Quarterly!FT135/Quarterly!FT131)-1)","v":0.12448759223864636},{"$f":"((Quarterly!FU135/Quarterly!FU131)-1)","v":1.9539227458782671E-2},{"$f":"((Quarterly!FV135/Quarterly!FV131)-1)","v":-1.5552476153318451E-2},{"$f":"((Quarterly!FW135/Quarterly!FW131)-1)","v":0.37998491771281517},{"$f":"((Quarterly!FX135/Quarterly!FX131)-1)","v":0.15449148570535853},null,null,null,null,null,{"$f":"((Quarterly!GD135/Quarterly!GD131)-1)","v":0.17940782567777913},{"$f":"((Quarterly!GE135/Quarterly!GE131)-1)","v":0.12680060652009084},"--","--",{"$f":"((Quarterly!GH135/Quarterly!GH131)-1)","v":{"$error":"#DIV/0!"}},"--","--","--","--"]
["90'Q2",{"$f":"((Quarterly!B136/Quarterly!B132)-1)","v":6.1515566777159192E-2},{"$f":"((Quarterly!C136/Quarterly!C132)-1)","v":2.4597241306144602E-2},{"$f":"((Quarterly!D136/Quarterly!D132)-1)","v":2.5243041799994259E-2},{"$f":"((Quarterly!E136/Quarterly!E132)-1)","v":2.6306273729886032E-2},{"$f":"((Quarterly!F136/Quarterly!F132)-1)","v":-7.5090626618323775E-4},{"$f":"((Quarterly!G136/Quarterly!G132)-1)","v":2.1270240528218354E-2},{"$f":"((Quarterly!H136/Quarterly!H132)-1)","v":3.1013054888189506E-2},{"$f":"((Quarterly!I136/Quarterly!I132)-1)","v":1.490412964356147E-2},{"$f":"((Quarterly!J136/Quarterly!J132)-1)","v":6.5499607169039464E-4},{"$f":"((Quarterly!K136/Quarterly!K132)-1)","v":-5.9212078320358463E-2},{"$f":"((Quarterly!L136-Quarterly!L132))","v":-3.5},{"$f":"((Quarterly!M136/Quarterly!M132)-1)","v":4.7193139521159777E-2},{"$f":"((Quarterly!N136/Quarterly!N132)-1)","v":8.3342037081335585E-2},{"$f":"((Quarterly!O136/Quarterly!O132)-1)","v":-0.1649563016569775},{"$f":"((Quarterly!P136/Quarterly!P132)-1)","v":3.2241993874867036E-2},{"$f":"((Quarterly!Q136/Quarterly!Q132)-1)","v":0.27483772287428021},null,null,null,null,null,{"$f":"((Quarterly!W136/Quarterly!W132)-1)","v":-1.7921146953404965E-2},{"$f":"((Quarterly!X136/Quarterly!X132)-1)","v":-1.425742574257427E-2},{"$f":"((Quarterly!Y136/Quarterly!Y132)-1)","v":2.9197874832090687E-2},{"$f":"Quarterly!Z136-Quarterly!Z132","v":0.44999999999999996},{"$f":"((Quarterly!AA136/Quarterly!AA132)-1)","v":5.0903958926442394E-2},{"$f":"((Quarterly!AB136/Quarterly!AB132)-1)","v":6.5378494441018731E-2},"--","--",{"$f":"(Quarterly!AE136-Quarterly!AE132)*100","v":12.000000000000011},{"$f":"(Quarterly!AF136-Quarterly!AF132)*100","v":44.999999999999993},{"$f":"(Quarterly!AG136-Quarterly!AG132)*100","v":57.999999999999993},"--","--","--","--","--",{"$f":"((Quarterly!AM136/Quarterly!AM132)-1)","v":1.2632244131621784E-2},{"$f":"((Quarterly!AN136/Quarterly!AN132)-1)","v":1.2646986157760054E-2},"--","--",{"$f":"Quarterly!AQ136-Quarterly!AQ132","v":-3.3333333333338544E-2},"--","--",{"$f":"Quarterly!AT136-Quarterly!AT132","v":-2.2666666666666657},{"$f":"Quarterly!AU136-Quarterly!AU132","v":-1.5999999999999943},"--",{"$f":"Quarterly!AW136-Quarterly!AW132","v":-5.2999999999999972},{"$f":"Quarterly!AX136-Quarterly!AX132","v":2.6666666666666643},{"$f":"Quarterly!AY136-Quarterly!AY132","v":-6.8333333333333286},{"$f":"Quarterly!AZ136-Quarterly!AZ132","v":1.2000000000000028},{"$f":"Quarterly!BA136-Quarterly!BA132","v":-0.86666666666667425},"--","--",{"$f":"((Quarterly!BD136/Quarterly!BD132)-1)","v":3.466606461146915E-2},{"$f":"((Quarterly!BE136/Quarterly!BE132)-1)","v":2.7964240418226316E-2},{"$f":"((Quarterly!BF136/Quarterly!BF132)-1)","v":6.342485672739695E-2},{"$f":"((Quarterly!BG136/Quarterly!BG132)-1)","v":2.162502955315615E-2},{"$f":"((Quarterly!BH136/Quarterly!BH132)-1)","v":2.0922959085976967E-2},{"$f":"((Quarterly!BI136/Quarterly!BI132)-1)","v":4.0904650784175489E-2},{"$f":"((Quarterly!BJ136/Quarterly!BJ132)-1)","v":-5.5870198496036916E-2},{"$f":"((Quarterly!BK136/Quarterly!BK132)-1)","v":0.58441558441558428},null,"--","--",null,null,null,null,null,{"$f":"((Quarterly!BT136/Quarterly!BT132)-1)","v":3.5729172168301071E-2},{"$f":"Quarterly!BU136-Quarterly!BU132","v":-0.11843000000000004},{"$f":"Quarterly!BV136-Quarterly!BV132","v":-8.2969999999999544E-2},{"$f":"((Quarterly!BW136/Quarterly!BW132)-1)","v":0.13683452362578508},{"$f":"((Quarterly!BX136/Quarterly!BX132)-1)","v":-0.10572903860339322},{"$f":"((Quarterly!BY136/Quarterly!BY132)-1)","v":-0.18828144152978665},"--",{"$f":"((Quarterly!CA136/Quarterly!CA132)-1)","v":-6.9030309808746249E-2},{"$f":"((Quarterly!CB136/Quarterly!CB132)-1)","v":-4.5847979474667455E-2},{"$f":"((Quarterly!CC136/Quarterly!CC132)-1)","v":-2.8919698193734078E-2},"--","--",null,"--","--",null,{"$f":"((Quarterly!CJ136/Quarterly!CJ132)-1)","v":-0.14952780692549839},{"$f":"((Quarterly!CK136/Quarterly!CK132)-1)","v":6.5677042462289892E-2},{"$f":"((Quarterly!CL136/Quarterly!CL132)-1)","v":0.11576566874865368},{"$f":"((Quarterly!CM136/Quarterly!CM132)-1)","v":-9.7593582887700592E-2},{"$f":"((Quarterly!CN136/Quarterly!CN132)-1)","v":2.9559206689743212E-2},{"$f":"((Quarterly!CO136/Quarterly!CO132)-1)","v":4.9593745209259632E-2},{"$f":"((Quarterly!CP136/Quarterly!CP132)-1)","v":4.0817777170600644E-2},{"$f":"((Quarterly!CQ136/Quarterly!CQ132)-1)","v":1.0771646229923881E-2},{"$f":"((Quarterly!CR136/Quarterly!CR132)-1)","v":0.14118020088002781},{"$f":"Quarterly!CS136-Quarterly!CS132","v":0},"--",null,null,null,null,null,{"$f":"((Quarterly!CZ136/Quarterly!CZ132)-1)","v":4.5834456726880468E-2},{"$f":"((Quarterly!DA136/Quarterly!DA132)-1)","v":4.8324240062353807E-2},null,null,null,null,null,{"$f":"((Quarterly!DG136/Quarterly!DG132)-1)","v":1.0358565737051961E-2},{"$f":"((Quarterly!DH136-Quarterly!DH132)*60)","v":-7.9999999999999716},{"$f":"Quarterly!DI136-Quarterly!DI132","v":0.13333333333333997},"--",{"$f":"(Quarterly!DK136-Quarterly!DK132)*100","v":9.9999999999999645},{"$f":"((Quarterly!DL136/Quarterly!DL132)-1)","v":-1.2752273231315114E-2},null,null,null,{"$f":"((Quarterly!DP136/Quarterly!DP132)-1)","v":1.7480724558889049E-2},null,null,null,null,{"$f":"Quarterly!DU136-Quarterly!DU132","v":-0.30000000000000071},"--","--","--","--","--","--","--","--",null,null,null,null,null,{"$f":"((Quarterly!EI136/Quarterly!EI132)-1)","v":1.1344623731246006E-2},{"$f":"((Quarterly!EJ136/Quarterly!EJ132)-1)","v":2.2409379806413554E-2},{"$f":"((Quarterly!EK136/Quarterly!EK132)-1)","v":2.8233872707882135E-2},null,null,null,null,null,{"$f":"((Quarterly!EQ136/Quarterly!EQ132)-1)","v":1.3593380614657091E-2},{"$f":"((Quarterly!ER136/Quarterly!ER132)-1)","v":3.6478332419089377E-2},{"$f":"((Quarterly!ES136/Quarterly!ES132)-1)","v":3.354002254791455E-2},null,null,null,null,null,{"$f":"(Quarterly!EY136-Quarterly!EY132)*100","v":-135.66666666666674},{"$f":"(Quarterly!EZ136-Quarterly!EZ132)*100","v":-148.33333333333343},{"$f":"(Quarterly!FA136-Quarterly!FA132)*100","v":-8.9999999999999858},{"$f":"(Quarterly!FB136-Quarterly!FB132)*100","v":-5.6666666666666643},"--",{"$f":"(Quarterly!FD136-Quarterly!FD132)*100","v":-33.666666666666423},{"$f":"(Quarterly!FE136-Quarterly!FE132)*100","v":-66.33333333333313},{"$f":"(Quarterly!FF136-Quarterly!FF132)*100","v":-65.333333333333428},{"$f":"(Quarterly!FG136-Quarterly!FG132)*100","v":-38.999999999999879},{"$f":"(Quarterly!FH136-Quarterly!FH132)*100","v":-18.666666666666742},{"$f":"(Quarterly!FI136-Quarterly!FI132)*100","v":-9.6666666666667567},null,null,null,null,null,null,{"$f":"((Quarterly!FP136/Quarterly!FP132)-1)","v":-1.9022877734014898E-2},{"$f":"((Quarterly!FQ136/Quarterly!FQ132)-1)","v":0.2686659162780729},"--","--",{"$f":"((Quarterly!FT136/Quarterly!FT132)-1)","v":0.10174789666356232},{"$f":"((Quarterly!FU136/Quarterly!FU132)-1)","v":-2.0138934037440936E-2},{"$f":"((Quarterly!FV136/Quarterly!FV132)-1)","v":3.3290813028451272E-2},{"$f":"((Quarterly!FW136/Quarterly!FW132)-1)","v":0.29723596592388679},{"$f":"((Quarterly!FX136/Quarterly!FX132)-1)","v":4.3305210639907887E-3},null,null,null,null,null,{"$f":"((Quarterly!GD136/Quarterly!GD132)-1)","v":-0.1209456915041669},{"$f":"((Quarterly!GE136/Quarterly!GE132)-1)","v":-0.15118332744613217},"--","--",{"$f":"((Quarterly!GH136/Quarterly!GH132)-1)","v":{"$error":"#DIV/0!"}},"--","--","--","--"]
["90'Q3",{"$f":"((Quarterly!B137/Quarterly!B133)-1)","v":5.5667492361100912E-2},{"$f":"((Quarterly!C137/Quarterly!C133)-1)","v":1.7256438964692977E-2},{"$f":"((Quarterly!D137/Quarterly!D133)-1)","v":1.5152444406222765E-2},{"$f":"((Quarterly!E137/Quarterly!E133)-1)","v":2.0319017526271521E-2},{"$f":"((Quarterly!F137/Quarterly!F133)-1)","v":-3.2764470552488878E-2},{"$f":"((Quarterly!G137/Quarterly!G133)-1)","v":1.2763043207570268E-2},{"$f":"((Quarterly!H137/Quarterly!H133)-1)","v":2.8778349800204106E-2},{"$f":"((Quarterly!I137/Quarterly!I133)-1)","v":-3.6083189595351728E-3},{"$f":"((Quarterly!J137/Quarterly!J133)-1)","v":-3.3382399060508661E-2},{"$f":"((Quarterly!K137/Quarterly!K133)-1)","v":-0.1030288576198426},{"$f":"((Quarterly!L137-Quarterly!L133))","v":14.578000000000001},{"$f":"((Quarterly!M137/Quarterly!M133)-1)","v":4.4387849228037402E-2},{"$f":"((Quarterly!N137/Quarterly!N133)-1)","v":8.0515681906108805E-2},{"$f":"((Quarterly!O137/Quarterly!O133)-1)","v":-0.18573674371176063},{"$f":"((Quarterly!P137/Quarterly!P133)-1)","v":2.3070630445452656E-2},{"$f":"((Quarterly!Q137/Quarterly!Q133)-1)","v":0.20305124128653551},null,null,null,null,null,{"$f":"((Quarterly!W137/Quarterly!W133)-1)","v":-6.0679611650485965E-3},{"$f":"((Quarterly!X137/Quarterly!X133)-1)","v":-3.2076984763433902E-3},{"$f":"((Quarterly!Y137/Quarterly!Y133)-1)","v":8.5354028683044536E-3},{"$f":"Quarterly!Z137-Quarterly!Z133","v":0.42999999999999994},{"$f":"((Quarterly!AA137/Quarterly!AA133)-1)","v":0.11458324521406649},{"$f":"((Quarterly!AB137/Quarterly!AB133)-1)","v":-6.8054046221835751E-2},"--","--",{"$f":"(Quarterly!AE137-Quarterly!AE133)*100","v":25.999999999999979},{"$f":"(Quarterly!AF137-Quarterly!AF133)*100","v":42.999999999999993},{"$f":"(Quarterly!AG137-Quarterly!AG133)*100","v":46.000000000000007},"--","--","--","--","--",{"$f":"((Quarterly!AM137/Quarterly!AM133)-1)","v":2.3113778926323159E-2},{"$f":"((Quarterly!AN137/Quarterly!AN133)-1)","v":2.345951116346634E-2},"--","--",{"$f":"Quarterly!AQ137-Quarterly!AQ133","v":6.6666666666662877E-2},"--","--",{"$f":"Quarterly!AT137-Quarterly!AT133","v":-1.2666666666666728},{"$f":"Quarterly!AU137-Quarterly!AU133","v":-3.0333333333333385},"--",{"$f":"Quarterly!AW137-Quarterly!AW133","v":-3.7000000000000028},{"$f":"Quarterly!AX137-Quarterly!AX133","v":3.3333333333331439E-2},{"$f":"Quarterly!AY137-Quarterly!AY133","v":13.633333333333326},{"$f":"Quarterly!AZ137-Quarterly!AZ133","v":0.53333333333333144},{"$f":"Quarterly!BA137-Quarterly!BA133","v":3.8000000000000043},"--","--",{"$f":"((Quarterly!BD137/Quarterly!BD133)-1)","v":5.0248151732943613E-2},{"$f":"((Quarterly!BE137/Quarterly!BE133)-1)","v":1.0837798343886984E-2},{"$f":"((Quarterly!BF137/Quarterly!BF133)-1)","v":6.7709658271856155E-2},{"$f":"((Quarterly!BG137/Quarterly!BG133)-1)","v":1.9476548166036833E-2},{"$f":"((Quarterly!BH137/Quarterly!BH133)-1)","v":1.5882930311412524E-2},{"$f":"((Quarterly!BI137/Quarterly!BI133)-1)","v":4.7300402844242528E-2},{"$f":"((Quarterly!BJ137/Quarterly!BJ133)-1)","v":9.2866388077363915E-2},{"$f":"((Quarterly!BK137/Quarterly!BK133)-1)","v":0.54430379746835422},null,"--","--",null,null,null,null,null,{"$f":"((Quarterly!BT137/Quarterly!BT133)-1)","v":1.6934140436539291E-2},{"$f":"Quarterly!BU137-Quarterly!BU133","v":-0.20563000000000109},{"$f":"Quarterly!BV137-Quarterly!BV133","v":-0.15728000000000009},{"$f":"((Quarterly!BW137/Quarterly!BW133)-1)","v":0.13040164174728819},{"$f":"((Quarterly!BX137/Quarterly!BX133)-1)","v":-0.15898959881129271},{"$f":"((Quarterly!BY137/Quarterly!BY133)-1)","v":-0.20554566268125152},"--",{"$f":"((Quarterly!CA137/Quarterly!CA133)-1)","v":-9.9773834377174686E-2},{"$f":"((Quarterly!CB137/Quarterly!CB133)-1)","v":0.13318697825751435},{"$f":"((Quarterly!CC137/Quarterly!CC133)-1)","v":0.12133396435728261},"--","--",null,"--","--",null,{"$f":"((Quarterly!CJ137/Quarterly!CJ133)-1)","v":-0.24238026124818579},{"$f":"((Quarterly!CK137/Quarterly!CK133)-1)","v":6.6257448488764581E-2},{"$f":"((Quarterly!CL137/Quarterly!CL133)-1)","v":0.10776195208126316},{"$f":"((Quarterly!CM137/Quarterly!CM133)-1)","v":-0.14199799532241897},{"$f":"((Quarterly!CN137/Quarterly!CN133)-1)","v":2.2993331030634723E-2},{"$f":"((Quarterly!CO137/Quarterly!CO133)-1)","v":6.020811734439202E-2},{"$f":"((Quarterly!CP137/Quarterly!CP133)-1)","v":3.8136574685723179E-2},{"$f":"((Quarterly!CQ137/Quarterly!CQ133)-1)","v":1.1566771819137678E-2},{"$f":"((Quarterly!CR137/Quarterly!CR133)-1)","v":0.15243568800486429},{"$f":"Quarterly!CS137-Quarterly!CS133","v":-13.333333333333314},"--",null,null,null,null,null,{"$f":"((Quarterly!CZ137/Quarterly!CZ133)-1)","v":5.5644729802033055E-2},{"$f":"((Quarterly!DA137/Quarterly!DA133)-1)","v":5.3782810087493527E-2},null,null,null,null,null,{"$f":"((Quarterly!DG137/Quarterly!DG133)-1)","v":1.9880715705766772E-3},{"$f":"((Quarterly!DH137-Quarterly!DH133)*60)","v":-15.999999999999943},{"$f":"Quarterly!DI137-Quarterly!DI133","v":0},"--",{"$f":"(Quarterly!DK137-Quarterly!DK133)*100","v":46.666666666666679},{"$f":"((Quarterly!DL137/Quarterly!DL133)-1)","v":-1.6782385920617759E-2},null,null,null,{"$f":"((Quarterly!DP137/Quarterly!DP133)-1)","v":1.3625187184559406E-2},null,null,null,null,{"$f":"Quarterly!DU137-Quarterly!DU133","v":0.29999999999999893},"--","--","--","--","--","--","--","--",null,null,null,null,null,{"$f":"((Quarterly!EI137/Quarterly!EI133)-1)","v":-7.6076275278007532E-3},{"$f":"((Quarterly!EJ137/Quarterly!EJ133)-1)","v":8.1246276915918347E-3},{"$f":"((Quarterly!EK137/Quarterly!EK133)-1)","v":1.868044546040859E-2},null,null,null,null,null,{"$f":"((Quarterly!EQ137/Quarterly!EQ133)-1)","v":3.6180308422300911E-2},{"$f":"((Quarterly!ER137/Quarterly!ER133)-1)","v":3.6694754009241715E-2},{"$f":"((Quarterly!ES137/Quarterly!ES133)-1)","v":3.3808326348141904E-2},null,null,null,null,null,{"$f":"(Quarterly!EY137-Quarterly!EY133)*100","v":-66.000000000000014},{"$f":"(Quarterly!EZ137-Quarterly!EZ133)*100","v":-92.333333333333371},{"$f":"(Quarterly!FA137-Quarterly!FA133)*100","v":43.666666666666742},{"$f":"(Quarterly!FB137-Quarterly!FB133)*100","v":52.999999999999936},"--",{"$f":"(Quarterly!FD137-Quarterly!FD133)*100","v":10.666666666666735},{"$f":"(Quarterly!FE137-Quarterly!FE133)*100","v":-36.666666666666714},{"$f":"(Quarterly!FF137-Quarterly!FF133)*100","v":-26.999999999999869},{"$f":"(Quarterly!FG137-Quarterly!FG133)*100","v":1.9999999999999574},{"$f":"(Quarterly!FH137-Quarterly!FH133)*100","v":39.666666666666828},{"$f":"(Quarterly!FI137-Quarterly!FI133)*100","v":59.666666666666579},null,null,null,null,null,null,{"$f":"((Quarterly!FP137/Quarterly!FP133)-1)","v":-2.4692054006821285E-2},{"$f":"((Quarterly!FQ137/Quarterly!FQ133)-1)","v":0.2686927158707193},"--","--",{"$f":"((Quarterly!FT137/Quarterly!FT133)-1)","v":4.152486343007511E-2},{"$f":"((Quarterly!FU137/Quarterly!FU133)-1)","v":-7.7461321080349532E-2},{"$f":"((Quarterly!FV137/Quarterly!FV133)-1)","v":9.2524048879877752E-2},{"$f":"((Quarterly!FW137/Quarterly!FW133)-1)","v":0.24066710846034889},{"$f":"((Quarterly!FX137/Quarterly!FX133)-1)","v":0.11289198606271778},null,null,null,null,null,{"$f":"((Quarterly!GD137/Quarterly!GD133)-1)","v":0.37636772853185585},{"$f":"((Quarterly!GE137/Quarterly!GE133)-1)","v":0.51917177914110457},"--","--",{"$f":"((Quarterly!GH137/Quarterly!GH133)-1)","v":{"$error":"#DIV/0!"}},"--","--","--","--"]
["90'Q4",{"$f":"((Quarterly!B138/Quarterly!B134)-1)","v":4.5092482897378661E-2},{"$f":"((Quarterly!C138/Quarterly!C134)-1)","v":6.4555384436335572E-3},{"$f":"((Quarterly!D138/Quarterly!D134)-1)","v":1.0441422279426904E-2},{"$f":"((Quarterly!E138/Quarterly!E134)-1)","v":8.1452964032366904E-3},{"$f":"((Quarterly!F138/Quarterly!F134)-1)","v":-2.9926359220765475E-2},{"$f":"((Quarterly!G138/Quarterly!G134)-1)","v":-8.6339571534105319E-3},{"$f":"((Quarterly!H138/Quarterly!H134)-1)","v":1.8297473471908798E-2},{"$f":"((Quarterly!I138/Quarterly!I134)-1)","v":-9.171372501902364E-3},{"$f":"((Quarterly!J138/Quarterly!J134)-1)","v":-4.3323847985772934E-2},{"$f":"((Quarterly!K138/Quarterly!K134)-1)","v":-0.13471376370280153},{"$f":"((Quarterly!L138-Quarterly!L134))","v":-30.521000000000001},{"$f":"((Quarterly!M138/Quarterly!M134)-1)","v":-1.6832562017869979E-3},{"$f":"((Quarterly!N138/Quarterly!N134)-1)","v":7.3777655121659347E-2},{"$f":"((Quarterly!O138/Quarterly!O134)-1)","v":-0.47224470144743458},{"$f":"((Quarterly!P138/Quarterly!P134)-1)","v":2.693290610338317E-2},{"$f":"((Quarterly!Q138/Quarterly!Q134)-1)","v":0.24597470578111169},null,null,null,null,null,{"$f":"((Quarterly!W138/Quarterly!W134)-1)","v":-2.3199023199023228E-2},{"$f":"((Quarterly!X138/Quarterly!X134)-1)","v":-2.0112630732099679E-2},{"$f":"((Quarterly!Y138/Quarterly!Y134)-1)","v":8.8656626951122419E-4},{"$f":"Quarterly!Z138-Quarterly!Z134","v":0.27},{"$f":"((Quarterly!AA138/Quarterly!AA134)-1)","v":0.1232526171090198},{"$f":"((Quarterly!AB138/Quarterly!AB134)-1)","v":2.5611667793692838E-2},"--","--",{"$f":"(Quarterly!AE138-Quarterly!AE134)*100","v":67},{"$f":"(Quarterly!AF138-Quarterly!AF134)*100","v":27},{"$f":"(Quarterly!AG138-Quarterly!AG134)*100","v":28.000000000000004},"--","--","--","--","--",{"$f":"((Quarterly!AM138/Quarterly!AM134)-1)","v":2.9897138797323475E-3},{"$f":"((Quarterly!AN138/Quarterly!AN134)-1)","v":4.7403476665617283E-3},"--","--",{"$f":"Quarterly!AQ138-Quarterly!AQ134","v":-5.2333333333333343},"--","--",{"$f":"Quarterly!AT138-Quarterly!AT134","v":-6.7666666666666657},{"$f":"Quarterly!AU138-Quarterly!AU134","v":-1.7333333333333414},"--",{"$f":"Quarterly!AW138-Quarterly!AW134","v":-2.4666666666666686},{"$f":"Quarterly!AX138-Quarterly!AX134","v":-9},{"$f":"Quarterly!AY138-Quarterly!AY134","v":24.533333333333346},{"$f":"Quarterly!AZ138-Quarterly!AZ134","v":-6.6333333333333329},{"$f":"Quarterly!BA138-Quarterly!BA134","v":4.8666666666666671},"--","--",{"$f":"((Quarterly!BD138/Quarterly!BD134)-1)","v":3.5596464790453197E-2},{"$f":"((Quarterly!BE138/Quarterly!BE134)-1)","v":1.6686112005149578E-2},{"$f":"((Quarterly!BF138/Quarterly!BF134)-1)","v":6.1144685389264097E-2},{"$f":"((Quarterly!BG138/Quarterly!BG134)-1)","v":1.0236553745826216E-2},{"$f":"((Quarterly!BH138/Quarterly!BH134)-1)","v":2.93020777836972E-3},{"$f":"((Quarterly!BI138/Quarterly!BI134)-1)","v":5.0410863881329648E-2},{"$f":"((Quarterly!BJ138/Quarterly!BJ134)-1)","v":6.784769637694521E-2},{"$f":"((Quarterly!BK138/Quarterly!BK134)-1)","v":0.24545454545454537},null,"--","--",null,null,null,null,null,{"$f":"((Quarterly!BT138/Quarterly!BT134)-1)","v":8.1519293212859445E-3},{"$f":"Quarterly!BU138-Quarterly!BU134","v":-0.14741999999999855},{"$f":"Quarterly!BV138-Quarterly!BV134","v":-5.6070000000001841E-2},{"$f":"((Quarterly!BW138/Quarterly!BW134)-1)","v":0.11376180758268539},{"$f":"((Quarterly!BX138/Quarterly!BX134)-1)","v":-0.22033898305084731},{"$f":"((Quarterly!BY138/Quarterly!BY134)-1)","v":-0.33986928104575165},"--",{"$f":"((Quarterly!CA138/Quarterly!CA134)-1)","v":-1.3859786422963594E-2},{"$f":"((Quarterly!CB138/Quarterly!CB134)-1)","v":0.2417514193928636},{"$f":"((Quarterly!CC138/Quarterly!CC134)-1)","v":0.21473347502185125},"--","--",null,"--","--",null,{"$f":"((Quarterly!CJ138/Quarterly!CJ134)-1)","v":-0.2741194486983155},{"$f":"((Quarterly!CK138/Quarterly!CK134)-1)","v":5.4429798211824476E-2},{"$f":"((Quarterly!CL138/Quarterly!CL134)-1)","v":4.7579211544494404E-2},{"$f":"((Quarterly!CM138/Quarterly!CM134)-1)","v":-0.19986472776462627},{"$f":"((Quarterly!CN138/Quarterly!CN134)-1)","v":6.7738891612501018E-3},{"$f":"((Quarterly!CO138/Quarterly!CO134)-1)","v":4.1016579570660516E-2},{"$f":"((Quarterly!CP138/Quarterly!CP134)-1)","v":2.7038351115009407E-2},{"$f":"((Quarterly!CQ138/Quarterly!CQ134)-1)","v":1.2354546760523055E-2},{"$f":"((Quarterly!CR138/Quarterly!CR134)-1)","v":0.14480450670988687},{"$f":"Quarterly!CS138-Quarterly!CS134","v":-26.633333333333326},"--",null,null,null,null,null,{"$f":"((Quarterly!CZ138/Quarterly!CZ134)-1)","v":6.27648305084747E-2},{"$f":"((Quarterly!DA138/Quarterly!DA134)-1)","v":5.3140096618357724E-2},null,null,null,null,null,{"$f":"((Quarterly!DG138/Quarterly!DG134)-1)","v":-7.9176563737134442E-3},{"$f":"((Quarterly!DH138-Quarterly!DH134)*60)","v":-15.999999999999517},{"$f":"Quarterly!DI138-Quarterly!DI134","v":-0.13333333333332575},"--",{"$f":"(Quarterly!DK138-Quarterly!DK134)*100","v":76.666666666666657},{"$f":"((Quarterly!DL138/Quarterly!DL134)-1)","v":-2.3517572956654464E-2},null,null,null,{"$f":"((Quarterly!DP138/Quarterly!DP134)-1)","v":5.0908064941517228E-3},null,null,null,null,{"$f":"Quarterly!DU138-Quarterly!DU134","v":0.93333333333333357},"--","--","--","--","--","--","--","--",null,null,null,null,null,{"$f":"((Quarterly!EI138/Quarterly!EI134)-1)","v":-2.0016040095159671E-2},{"$f":"((Quarterly!EJ138/Quarterly!EJ134)-1)","v":-3.159571186799881E-3},{"$f":"((Quarterly!EK138/Quarterly!EK134)-1)","v":6.5941185389530865E-3},null,null,null,null,null,{"$f":"((Quarterly!EQ138/Quarterly!EQ134)-1)","v":6.2333825701624823E-2},{"$f":"((Quarterly!ER138/Quarterly!ER134)-1)","v":3.6060279870828937E-2},{"$f":"((Quarterly!ES138/Quarterly!ES134)-1)","v":3.4349030470913977E-2},null,null,null,null,null,{"$f":"(Quarterly!EY138-Quarterly!EY134)*100","v":-50},{"$f":"(Quarterly!EZ138-Quarterly!EZ134)*100","v":-87.000000000000099},{"$f":"(Quarterly!FA138-Quarterly!FA134)*100","v":40.333333333333243},{"$f":"(Quarterly!FB138-Quarterly!FB134)*100","v":78.333333333333144},"--",{"$f":"(Quarterly!FD138-Quarterly!FD134)*100","v":13.333333333333286},{"$f":"(Quarterly!FE138-Quarterly!FE134)*100","v":-66.3333333333334},{"$f":"(Quarterly!FF138-Quarterly!FF134)*100","v":-52.333333333333343},{"$f":"(Quarterly!FG138-Quarterly!FG134)*100","v":-25.666666666666771},{"$f":"(Quarterly!FH138-Quarterly!FH134)*100","v":18.333333333333357},{"$f":"(Quarterly!FI138-Quarterly!FI134)*100","v":49.000000000000021},null,null,null,null,null,null,{"$f":"((Quarterly!FP138/Quarterly!FP134)-1)","v":-6.3036595453375144E-3},{"$f":"((Quarterly!FQ138/Quarterly!FQ134)-1)","v":0.28296394253475654},"--","--",{"$f":"((Quarterly!FT138/Quarterly!FT134)-1)","v":7.4649904259236344E-3},{"$f":"((Quarterly!FU138/Quarterly!FU134)-1)","v":-0.10497924372824197},{"$f":"((Quarterly!FV138/Quarterly!FV134)-1)","v":5.1130675723989771E-2},{"$f":"((Quarterly!FW138/Quarterly!FW134)-1)","v":0.21032197798989993},{"$f":"((Quarterly!FX138/Quarterly!FX134)-1)","v":0.17635005522292624},null,null,null,null,null,{"$f":"((Quarterly!GD138/Quarterly!GD134)-1)","v":0.56656666502729536},{"$f":"((Quarterly!GE138/Quarterly!GE134)-1)","v":0.69380654140570641},"--","--",{"$f":"((Quarterly!GH138/Quarterly!GH134)-1)","v":{"$error":"#DIV/0!"}},"--","--","--","--"]
["91'Q1",{"$f":"((Quarterly!B139/Quarterly!B135)-1)","v":2.7845288486267217E-2},{"$f":"((Quarterly!C139/Quarterly!C135)-1)","v":-9.1163321776182027E-3},{"$f":"((Quarterly!D139/Quarterly!D135)-1)","v":-4.6696633935138232E-3},{"$f":"((Quarterly!E139/Quarterly!E135)-1)","v":-3.8877500530147824E-3},{"$f":"((Quarterly!F139/Quarterly!F135)-1)","v":-9.4861065871564176E-2},{"$f":"((Quarterly!G139/Quarterly!G135)-1)","v":-6.8730640612721938E-3},{"$f":"((Quarterly!H139/Quarterly!H135)-1)","v":6.8880868573470977E-3},{"$f":"((Quarterly!I139/Quarterly!I135)-1)","v":-4.1229978247973031E-2},{"$f":"((Quarterly!J139/Quarterly!J135)-1)","v":-0.10325980684098723},{"$f":"((Quarterly!K139/Quarterly!K135)-1)","v":-0.19459850494333253},{"$f":"((Quarterly!L139-Quarterly!L135))","v":-36.375999999999998},{"$f":"((Quarterly!M139/Quarterly!M135)-1)","v":-4.3399092444677323E-2},{"$f":"((Quarterly!N139/Quarterly!N135)-1)","v":3.5370741798465222E-2},{"$f":"((Quarterly!O139/Quarterly!O135)-1)","v":-0.57803066730779462},{"$f":"((Quarterly!P139/Quarterly!P135)-1)","v":1.5983449710081254E-2},{"$f":"((Quarterly!Q139/Quarterly!Q135)-1)","v":-5.7173435475694201E-2},null,null,null,null,null,{"$f":"((Quarterly!W139/Quarterly!W135)-1)","v":-5.2375152253349544E-2},{"$f":"((Quarterly!X139/Quarterly!X135)-1)","v":-4.2236524537409448E-2},{"$f":"((Quarterly!Y139/Quarterly!Y135)-1)","v":-1.7009445533844314E-3},{"$f":"Quarterly!Z139-Quarterly!Z135","v":6.0000000000000053E-2},{"$f":"((Quarterly!AA139/Quarterly!AA135)-1)","v":0.14419988875219758},{"$f":"((Quarterly!AB139/Quarterly!AB135)-1)","v":0.13917854785117423},{"$f":"Quarterly!AC139-Quarterly!AC135","v":{"$error":"#VALUE!"}},"--",{"$f":"(Quarterly!AE139-Quarterly!AE135)*100","v":84.000000000000028},{"$f":"(Quarterly!AF139-Quarterly!AF135)*100","v":6.0000000000000053},{"$f":"(Quarterly!AG139-Quarterly!AG135)*100","v":-11.000000000000011},"--","--","--","--","--",{"$f":"((Quarterly!AM139/Quarterly!AM135)-1)","v":-2.2609894870759817E-2},{"$f":"((Quarterly!AN139/Quarterly!AN135)-1)","v":-2.8630823332168043E-2},"--","--",{"$f":"Quarterly!AQ139-Quarterly!AQ135","v":-8.9666666666666757},"--","--",{"$f":"Quarterly!AT139-Quarterly!AT135","v":-10.633333333333333},{"$f":"Quarterly!AU139-Quarterly!AU135","v":-6.6666666666669983E-2},{"$f":"Quarterly!AV139-Quarterly!AV135","v":-4.8666666666666742},{"$f":"Quarterly!AW139-Quarterly!AW135","v":-0.73333333333333428},{"$f":"Quarterly!AX139-Quarterly!AX135","v":-11.399999999999984},{"$f":"Quarterly!AY139-Quarterly!AY135","v":-2.7333333333333272},{"$f":"Quarterly!AZ139-Quarterly!AZ135","v":-11.899999999999991},{"$f":"Quarterly!BA139-Quarterly!BA135","v":-2.2666666666666657},"--","--",{"$f":"((Quarterly!BD139/Quarterly!BD135)-1)","v":1.2374014569404235E-2},{"$f":"((Quarterly!BE139/Quarterly!BE135)-1)","v":4.0807006505170662E-2},{"$f":"((Quarterly!BF139/Quarterly!BF135)-1)","v":4.7423863589785675E-2},{"$f":"((Quarterly!BG139/Quarterly!BG135)-1)","v":4.4461026645523649E-3},{"$f":"((Quarterly!BH139/Quarterly!BH135)-1)","v":3.7886920172236493E-4},{"$f":"((Quarterly!BI139/Quarterly!BI135)-1)","v":4.2805916629314211E-2},{"$f":"((Quarterly!BJ139/Quarterly!BJ135)-1)","v":-2.5821279908963102E-2},{"$f":"((Quarterly!BK139/Quarterly!BK135)-1)","v":5.6603773584905648E-2},null,"--","--",null,null,null,null,null,{"$f":"((Quarterly!BT139/Quarterly!BT135)-1)","v":-1.155503961436577E-2},{"$f":"Quarterly!BU139-Quarterly!BU135","v":-6.3810000000000144E-2},{"$f":"Quarterly!BV139-Quarterly!BV135","v":7.014000000000209E-2},{"$f":"((Quarterly!BW139/Quarterly!BW135)-1)","v":0.10446211656312787},{"$f":"((Quarterly!BX139/Quarterly!BX135)-1)","v":-0.37245732990413849},{"$f":"((Quarterly!BY139/Quarterly!BY135)-1)","v":-0.41013185287994447},"--",{"$f":"((Quarterly!CA139/Quarterly!CA135)-1)","v":-0.17823347410736468},{"$f":"((Quarterly!CB139/Quarterly!CB135)-1)","v":0.12602550490100461},{"$f":"((Quarterly!CC139/Quarterly!CC135)-1)","v":0.15708993098953283},"--","--",null,"--","--",null,{"$f":"((Quarterly!CJ139/Quarterly!CJ135)-1)","v":-0.22128851540616246},{"$f":"((Quarterly!CK139/Quarterly!CK135)-1)","v":3.5437024314909804E-2},{"$f":"((Quarterly!CL139/Quarterly!CL135)-1)","v":8.6161349319243907E-2},{"$f":"((Quarterly!CM139/Quarterly!CM135)-1)","v":-0.33532934131736536},{"$f":"((Quarterly!CN139/Quarterly!CN135)-1)","v":5.2798862472025476E-4},{"$f":"((Quarterly!CO139/Quarterly!CO135)-1)","v":3.4527231188739016E-2},{"$f":"((Quarterly!CP139/Quarterly!CP135)-1)","v":1.11665396506615E-2},{"$f":"((Quarterly!CQ139/Quarterly!CQ135)-1)","v":1.3259245168774747E-2},{"$f":"((Quarterly!CR139/Quarterly!CR135)-1)","v":0.12366401159475027},{"$f":"Quarterly!CS139-Quarterly!CS135","v":-16.300000000000011},"--",null,null,null,null,null,{"$f":"((Quarterly!CZ139/Quarterly!CZ135)-1)","v":5.259047123145022E-2},{"$f":"((Quarterly!DA139/Quarterly!DA135)-1)","v":5.4983680642731736E-2},null,null,null,null,null,{"$f":"((Quarterly!DG139/Quarterly!DG135)-1)","v":-2.2807707432166757E-2},{"$f":"((Quarterly!DH139-Quarterly!DH135)*60)","v":-20.000000000000142},{"$f":"Quarterly!DI139-Quarterly!DI135","v":-0.5},"--",{"$f":"(Quarterly!DK139-Quarterly!DK135)*100","v":130.00000000000006},{"$f":"((Quarterly!DL139/Quarterly!DL135)-1)","v":-3.5046118226969014E-2},null,null,null,{"$f":"((Quarterly!DP139/Quarterly!DP135)-1)","v":-5.8184521089604813E-3},null,null,null,null,{"$f":"Quarterly!DU139-Quarterly!DU135","v":1.1333333333333337},{"$f":"((Quarterly!DV139/Quarterly!DV135)-1)","v":-1.4158611923975051E-2},{"$f":"((Quarterly!DW139/Quarterly!DW135)-1)","v":-1.4516274456766842E-2},{"$f":"((Quarterly!DX139/Quarterly!DX135)-1)","v":-1.4581510644502749E-2},{"$f":"((Quarterly!DY139/Quarterly!DY135)-1)","v":-1.4322691975841351E-2},{"$f":"((Quarterly!DZ139/Quarterly!DZ135)-1)","v":-1.4663884007030004E-2},{"$f":"((Quarterly!EA139/Quarterly!EA135)-1)","v":-1.435960781286183E-2},{"$f":"((Quarterly!EB139/Quarterly!EB135)-1)","v":-1.5413891531874335E-2},{"$f":"((Quarterly!EC139/Quarterly!EC135)-1)","v":-1.4347357065803701E-2},null,null,null,null,null,{"$f":"((Quarterly!EI139/Quarterly!EI135)-1)","v":-4.7720685411656527E-2},{"$f":"((Quarterly!EJ139/Quarterly!EJ135)-1)","v":-1.9715567095690112E-2},{"$f":"((Quarterly!EK139/Quarterly!EK135)-1)","v":-5.5414733581585773E-3},null,null,null,null,null,{"$f":"((Quarterly!EQ139/Quarterly!EQ135)-1)","v":2.5909752547307097E-2},{"$f":"((Quarterly!ER139/Quarterly!ER135)-1)","v":3.9231385108086325E-2},{"$f":"((Quarterly!ES139/Quarterly!ES135)-1)","v":3.6243822075782584E-2},null,null,null,null,null,{"$f":"(Quarterly!EY139-Quarterly!EY135)*100","v":-84.666666666666757},{"$f":"(Quarterly!EZ139-Quarterly!EZ135)*100","v":-182.33333333333331},{"$f":"(Quarterly!FA139-Quarterly!FA135)*100","v":-26.000000000000156},{"$f":"(Quarterly!FB139-Quarterly!FB135)*100","v":10.666666666666735},"--",{"$f":"(Quarterly!FD139-Quarterly!FD135)*100","v":-62.000000000000099},{"$f":"(Quarterly!FE139-Quarterly!FE135)*100","v":-173.66666666666671},{"$f":"(Quarterly!FF139-Quarterly!FF135)*100","v":-168.99999999999994},{"$f":"(Quarterly!FG139-Quarterly!FG135)*100","v":-133.00000000000009},{"$f":"(Quarterly!FH139-Quarterly!FH135)*100","v":-73.333333333333513},{"$f":"(Quarterly!FI139-Quarterly!FI135)*100","v":-40.666666666666806},null,null,null,null,null,null,{"$f":"((Quarterly!FP139/Quarterly!FP135)-1)","v":-2.2657460898971138E-2},{"$f":"((Quarterly!FQ139/Quarterly!FQ135)-1)","v":0.10589577304125553},"--","--",{"$f":"((Quarterly!FT139/Quarterly!FT135)-1)","v":4.4087104241914421E-3},{"$f":"((Quarterly!FU139/Quarterly!FU135)-1)","v":-7.9545837175097556E-2},{"$f":"((Quarterly!FV139/Quarterly!FV135)-1)","v":-1.5511185819906292E-2},{"$f":"((Quarterly!FW139/Quarterly!FW135)-1)","v":0.14102028351923912},{"$f":"((Quarterly!FX139/Quarterly!FX135)-1)","v":-4.1989742757006177E-2},null,null,null,null,null,{"$f":"((Quarterly!GD139/Quarterly!GD135)-1)","v":2.6854082587810524E-3},{"$f":"((Quarterly!GE139/Quarterly!GE135)-1)","v":4.6089150546677837E-2},{"$f":"((Quarterly!GF139/Quarterly!GF135)-1)","v":7.7755447189000293E-2},{"$f":"((Quarterly!GG139/Quarterly!GG135)-1)","v":7.7755447189000293E-2},{"$f":"((Quarterly!GH139/Quarterly!GH135)-1)","v":{"$error":"#DIV/0!"}},"--","--","--","--"]
["91'Q2",{"$f":"((Quarterly!B140/Quarterly!B136)-1)","v":2.8277233953702963E-2},{"$f":"((Quarterly!C140/Quarterly!C136)-1)","v":-5.2730393609158321E-3},{"$f":"((Quarterly!D140/Quarterly!D136)-1)","v":3.0183019535237054E-3},{"$f":"((Quarterly!E140/Quarterly!E136)-1)","v":1.3388531665639025E-3},{"$f":"((Quarterly!F140/Quarterly!F136)-1)","v":-5.9184784016998671E-2},{"$f":"((Quarterly!G140/Quarterly!G136)-1)","v":-2.1396795098748145E-3},{"$f":"((Quarterly!H140/Quarterly!H136)-1)","v":8.7875929864000835E-3},{"$f":"((Quarterly!I140/Quarterly!I136)-1)","v":-3.3497615899346855E-2},{"$f":"((Quarterly!J140/Quarterly!J136)-1)","v":-8.6113640158923532E-2},{"$f":"((Quarterly!K140/Quarterly!K136)-1)","v":-0.14267803410230695},{"$f":"((Quarterly!L140-Quarterly!L136))","v":-64.781000000000006},{"$f":"((Quarterly!M140/Quarterly!M136)-1)","v":-2.4762559274276619E-2},{"$f":"((Quarterly!N140/Quarterly!N136)-1)","v":5.9935902918267558E-2},{"$f":"((Quarterly!O140/Quarterly!O136)-1)","v":-0.66964232859358497},{"$f":"((Quarterly!P140/Quarterly!P136)-1)","v":1.710676544952916E-2},{"$f":"((Quarterly!Q140/Quarterly!Q136)-1)","v":0.20999400102131371},null,null,null,null,null,{"$f":"((Quarterly!W140/Quarterly!W136)-1)","v":-5.2311435523114347E-2},{"$f":"((Quarterly!X140/Quarterly!X136)-1)","v":-4.0980313378867095E-2},{"$f":"((Quarterly!Y140/Quarterly!Y136)-1)","v":-1.9116580499163094E-2},{"$f":"Quarterly!Z140-Quarterly!Z136","v":0.24},{"$f":"((Quarterly!AA140/Quarterly!AA136)-1)","v":0.11397963987743798},{"$f":"((Quarterly!AB140/Quarterly!AB136)-1)","v":9.0736113180997391E-2},{"$f":"Quarterly!AC140-Quarterly!AC136","v":33.5},"--",{"$f":"(Quarterly!AE140-Quarterly!AE136)*100","v":80.999999999999957},{"$f":"(Quarterly!AF140-Quarterly!AF136)*100","v":24},{"$f":"(Quarterly!AG140-Quarterly!AG136)*100","v":-1.0000000000000009},"--","--","--","--","--",{"$f":"((Quarterly!AM140/Quarterly!AM136)-1)","v":-2.4456061419736774E-2},{"$f":"((Quarterly!AN140/Quarterly!AN136)-1)","v":-3.1462725212601517E-2},"--","--",{"$f":"Quarterly!AQ140-Quarterly!AQ136","v":-3.6999999999999957},"--","--",{"$f":"Quarterly!AT140-Quarterly!AT136","v":-7.3333333333333428},{"$f":"Quarterly!AU140-Quarterly!AU136","v":-1.9666666666666757},{"$f":"Quarterly!AV140-Quarterly!AV136","v":-0.96666666666666856},{"$f":"Quarterly!AW140-Quarterly!AW136","v":-3.3000000000000043},{"$f":"Quarterly!AX140-Quarterly!AX136","v":-1.3333333333333357},{"$f":"Quarterly!AY140-Quarterly!AY136","v":-12.533333333333331},{"$f":"Quarterly!AZ140-Quarterly!AZ136","v":-4.5333333333333243},{"$f":"Quarterly!BA140-Quarterly!BA136","v":-2.3666666666666671},"--","--",{"$f":"((Quarterly!BD140/Quarterly!BD136)-1)","v":1.7317648925829543E-2},{"$f":"((Quarterly!BE140/Quarterly!BE136)-1)","v":3.2399466361730633E-2},{"$f":"((Quarterly!BF140/Quarterly!BF136)-1)","v":4.6672028956364464E-2},{"$f":"((Quarterly!BG140/Quarterly!BG136)-1)","v":1.2959563077587832E-2},{"$f":"((Quarterly!BH140/Quarterly!BH136)-1)","v":4.151349188486142E-3},{"$f":"((Quarterly!BI140/Quarterly!BI136)-1)","v":3.3288583605959099E-2},{"$f":"((Quarterly!BJ140/Quarterly!BJ136)-1)","v":3.1478943478541632E-2},{"$f":"((Quarterly!BK140/Quarterly!BK136)-1)","v":0.19672131147540983},null,"--","--",null,null,null,null,null,{"$f":"((Quarterly!BT140/Quarterly!BT136)-1)","v":-1.3175571409610565E-2},{"$f":"Quarterly!BU140-Quarterly!BU136","v":-0.16549000000000014},{"$f":"Quarterly!BV140-Quarterly!BV136","v":-5.4980000000000473E-2},{"$f":"((Quarterly!BW140/Quarterly!BW136)-1)","v":0.11214053564816728},{"$f":"((Quarterly!BX140/Quarterly!BX136)-1)","v":-0.1660709375859224},{"$f":"((Quarterly!BY140/Quarterly!BY136)-1)","v":-0.13289036544850508},"--",{"$f":"((Quarterly!CA140/Quarterly!CA136)-1)","v":-0.12059395948965601},{"$f":"((Quarterly!CB140/Quarterly!CB136)-1)","v":0.17781247723621685},{"$f":"((Quarterly!CC140/Quarterly!CC136)-1)","v":0.20610262094774456},"--","--",null,"--","--",null,{"$f":"((Quarterly!CJ140/Quarterly!CJ136)-1)","v":-4.9352251696483829E-2},{"$f":"((Quarterly!CK140/Quarterly!CK136)-1)","v":3.1513564741898259E-2},{"$f":"((Quarterly!CL140/Quarterly!CL136)-1)","v":2.8472155197374782E-2},{"$f":"((Quarterly!CM140/Quarterly!CM136)-1)","v":-6.2222222222222179E-2},{"$f":"((Quarterly!CN140/Quarterly!CN136)-1)","v":1.4394246458599991E-3},{"$f":"((Quarterly!CO140/Quarterly!CO136)-1)","v":6.3061418242897682E-2},{"$f":"((Quarterly!CP140/Quarterly!CP136)-1)","v":8.4347790636480902E-3},{"$f":"((Quarterly!CQ140/Quarterly!CQ136)-1)","v":1.3413559140933895E-2},{"$f":"((Quarterly!CR140/Quarterly!CR136)-1)","v":0.12443454612503513},{"$f":"Quarterly!CS140-Quarterly!CS136","v":-10.200000000000003},"--",null,null,null,null,null,{"$f":"((Quarterly!CZ140/Quarterly!CZ136)-1)","v":4.8466099510183103E-2},{"$f":"((Quarterly!DA140/Quarterly!DA136)-1)","v":5.0805452292441267E-2},null,null,null,null,null,{"$f":"((Quarterly!DG140/Quarterly!DG136)-1)","v":-2.7602523659306155E-2},{"$f":"((Quarterly!DH140-Quarterly!DH136)*60)","v":-18.000000000000256},{"$f":"Quarterly!DI140-Quarterly!DI136","v":-0.26666666666666572},"--",{"$f":"(Quarterly!DK140-Quarterly!DK136)*100","v":150},{"$f":"((Quarterly!DL140/Quarterly!DL136)-1)","v":-4.1390542513759399E-2},null,null,null,{"$f":"((Quarterly!DP140/Quarterly!DP136)-1)","v":-1.348262074702411E-2},null,null,null,null,{"$f":"Quarterly!DU140-Quarterly!DU136","v":1.5666666666666664},{"$f":"((Quarterly!DV140/Quarterly!DV136)-1)","v":-2.4125915426411293E-2},{"$f":"((Quarterly!DW140/Quarterly!DW136)-1)","v":-2.3702868670087751E-2},{"$f":"((Quarterly!DX140/Quarterly!DX136)-1)","v":-2.3731048121291898E-2},{"$f":"((Quarterly!DY140/Quarterly!DY136)-1)","v":-2.3440134907251275E-2},{"$f":"((Quarterly!DZ140/Quarterly!DZ136)-1)","v":-2.3825100861410875E-2},{"$f":"((Quarterly!EA140/Quarterly!EA136)-1)","v":-2.3524904214559439E-2},{"$f":"((Quarterly!EB140/Quarterly!EB136)-1)","v":-2.4565381708238743E-2},{"$f":"((Quarterly!EC140/Quarterly!EC136)-1)","v":-2.3630391014093477E-2},null,null,null,null,null,{"$f":"((Quarterly!EI140/Quarterly!EI136)-1)","v":-3.4882253850093692E-2},{"$f":"((Quarterly!EJ140/Quarterly!EJ136)-1)","v":-1.2215603503220596E-2},{"$f":"((Quarterly!EK140/Quarterly!EK136)-1)","v":-1.6025581474551354E-3},null,null,null,null,null,{"$f":"((Quarterly!EQ140/Quarterly!EQ136)-1)","v":1.7201166180758065E-2},{"$f":"((Quarterly!ER140/Quarterly!ER136)-1)","v":3.6517597247949229E-2},{"$f":"((Quarterly!ES140/Quarterly!ES136)-1)","v":3.4087810199072699E-2},null,null,null,null,null,{"$f":"(Quarterly!EY140-Quarterly!EY136)*100","v":-133.3333333333334},{"$f":"(Quarterly!EZ140-Quarterly!EZ136)*100","v":-237.9999999999998},{"$f":"(Quarterly!FA140-Quarterly!FA136)*100","v":-48.666666666666814},{"$f":"(Quarterly!FB140-Quarterly!FB136)*100","v":-39.000000000000057},"--",{"$f":"(Quarterly!FD140-Quarterly!FD136)*100","v":-81.000000000000227},{"$f":"(Quarterly!FE140-Quarterly!FE136)*100","v":-218.66666666666674},{"$f":"(Quarterly!FF140-Quarterly!FF136)*100","v":-203.00000000000003},{"$f":"(Quarterly!FG140-Quarterly!FG136)*100","v":-167.33333333333329},{"$f":"(Quarterly!FH140-Quarterly!FH136)*100","v":-86.666666666666629},{"$f":"(Quarterly!FI140-Quarterly!FI136)*100","v":-54.666666666666508},null,null,null,null,null,null,{"$f":"((Quarterly!FP140/Quarterly!FP136)-1)","v":-1.8366649581411321E-2},{"$f":"((Quarterly!FQ140/Quarterly!FQ136)-1)","v":0.12444988980192506},"--","--",{"$f":"((Quarterly!FT140/Quarterly!FT136)-1)","v":2.8757497233367069E-2},{"$f":"((Quarterly!FU140/Quarterly!FU136)-1)","v":-2.7441132090279097E-2},{"$f":"((Quarterly!FV140/Quarterly!FV136)-1)","v":-9.263005117382761E-3},{"$f":"((Quarterly!FW140/Quarterly!FW136)-1)","v":0.15009606836626399},{"$f":"((Quarterly!FX140/Quarterly!FX136)-1)","v":0.10155868439780624},null,null,null,null,null,{"$f":"((Quarterly!GD140/Quarterly!GD136)-1)","v":0.15958279009126475},{"$f":"((Quarterly!GE140/Quarterly!GE136)-1)","v":0.17644610903037883},{"$f":"((Quarterly!GF140/Quarterly!GF136)-1)","v":8.9848842417719066E-2},{"$f":"((Quarterly!GG140/Quarterly!GG136)-1)","v":8.9848842417719066E-2},{"$f":"((Quarterly!GH140/Quarterly!GH136)-1)","v":{"$error":"#DIV/0!"}},"--","--","--","--"]
["91'Q3",{"$f":"((Quarterly!B141/Quarterly!B137)-1)","v":3.1332759709588043E-2},{"$f":"((Quarterly!C141/Quarterly!C137)-1)","v":-7.4499565613983521E-4},{"$f":"((Quarterly!D141/Quarterly!D137)-1)","v":2.8314967395206558E-3},{"$f":"((Quarterly!E141/Quarterly!E137)-1)","v":2.1581219075692548E-3},{"$f":"((Quarterly!F141/Quarterly!F137)-1)","v":-3.4947643979057363E-2},{"$f":"((Quarterly!G141/Quarterly!G137)-1)","v":-2.0747525665456568E-3},{"$f":"((Quarterly!H141/Quarterly!H137)-1)","v":7.4225594466235112E-3},{"$f":"((Quarterly!I141/Quarterly!I137)-1)","v":-4.8291780249517413E-2},{"$f":"((Quarterly!J141/Quarterly!J137)-1)","v":-0.10655895670329885},{"$f":"((Quarterly!K141/Quarterly!K137)-1)","v":-5.3443233182664196E-2},{"$f":"((Quarterly!L141-Quarterly!L137))","v":-25.899000000000001},{"$f":"((Quarterly!M141/Quarterly!M137)-1)","v":6.7456697575118962E-3},{"$f":"((Quarterly!N141/Quarterly!N137)-1)","v":7.6875708961270384E-2},{"$f":"((Quarterly!O141/Quarterly!O137)-1)","v":-0.58603146442641452},{"$f":"((Quarterly!P141/Quarterly!P137)-1)","v":1.3952593705769178E-2},{"$f":"((Quarterly!Q141/Quarterly!Q137)-1)","v":0.36868160632690694},null,null,null,null,null,{"$f":"((Quarterly!W141/Quarterly!W137)-1)","v":-3.5409035409035505E-2},{"$f":"((Quarterly!X141/Quarterly!X137)-1)","v":-2.9766693483507689E-2},{"$f":"((Quarterly!Y141/Quarterly!Y137)-1)","v":-3.0024191785793741E-2},{"$f":"Quarterly!Z141-Quarterly!Z137","v":0.3600000000000001},{"$f":"((Quarterly!AA141/Quarterly!AA137)-1)","v":0.11682200431099909},{"$f":"((Quarterly!AB141/Quarterly!AB137)-1)","v":0.21247079950091896},{"$f":"Quarterly!AC141-Quarterly!AC137","v":16},"--",{"$f":"(Quarterly!AE141-Quarterly!AE137)*100","v":50},{"$f":"(Quarterly!AF141-Quarterly!AF137)*100","v":36.000000000000007},{"$f":"(Quarterly!AG141-Quarterly!AG137)*100","v":16.999999999999993},"--","--","--","--","--",{"$f":"((Quarterly!AM141/Quarterly!AM137)-1)","v":-1.5154560622857138E-2},{"$f":"((Quarterly!AN141/Quarterly!AN137)-1)","v":-1.6714309662306248E-2},"--","--",{"$f":"Quarterly!AQ141-Quarterly!AQ137","v":7.0666666666666771},"--","--",{"$f":"Quarterly!AT141-Quarterly!AT137","v":0.63333333333333286},{"$f":"Quarterly!AU141-Quarterly!AU137","v":-1.1333333333333329},{"$f":"Quarterly!AV141-Quarterly!AV137","v":2.0666666666666629},{"$f":"Quarterly!AW141-Quarterly!AW137","v":0.20000000000000284},{"$f":"Quarterly!AX141-Quarterly!AX137","v":13.100000000000009},{"$f":"Quarterly!AY141-Quarterly!AY137","v":-16.333333333333329},{"$f":"Quarterly!AZ141-Quarterly!AZ137","v":11.666666666666671},{"$f":"Quarterly!BA141-Quarterly!BA137","v":0.43333333333333002},"--","--",{"$f":"((Quarterly!BD141/Quarterly!BD137)-1)","v":2.3745563638502665E-2},{"$f":"((Quarterly!BE141/Quarterly!BE137)-1)","v":2.5950688672047528E-2},{"$f":"((Quarterly!BF141/Quarterly!BF137)-1)","v":4.5606162887662283E-2},{"$f":"((Quarterly!BG141/Quarterly!BG137)-1)","v":1.7197089723277825E-2},{"$f":"((Quarterly!BH141/Quarterly!BH137)-1)","v":1.3388543823326549E-2},{"$f":"((Quarterly!BI141/Quarterly!BI137)-1)","v":2.7919404179520546E-2},{"$f":"((Quarterly!BJ141/Quarterly!BJ137)-1)","v":3.0048524306143021E-2},{"$f":"((Quarterly!BK141/Quarterly!BK137)-1)","v":0.29508196721311486},null,"--","--",null,null,null,null,null,{"$f":"((Quarterly!BT141/Quarterly!BT137)-1)","v":-2.0729043164906535E-2},{"$f":"Quarterly!BU141-Quarterly!BU137","v":-0.2517599999999991},{"$f":"Quarterly!BV141-Quarterly!BV137","v":-0.16606000000000165},{"$f":"((Quarterly!BW141/Quarterly!BW137)-1)","v":0.10431437953612344},{"$f":"((Quarterly!BX141/Quarterly!BX137)-1)","v":-7.9210836277974206E-2},{"$f":"((Quarterly!BY141/Quarterly!BY137)-1)","v":-7.4287544028178054E-2},"--",{"$f":"((Quarterly!CA141/Quarterly!CA137)-1)","v":-8.2423422552903691E-2},{"$f":"((Quarterly!CB141/Quarterly!CB137)-1)","v":-4.819269248739555E-2},{"$f":"((Quarterly!CC141/Quarterly!CC137)-1)","v":1.7951032983846815E-2},"--","--",null,"--","--",null,{"$f":"((Quarterly!CJ141/Quarterly!CJ137)-1)","v":-2.6819923371647514E-2},{"$f":"((Quarterly!CK141/Quarterly!CK137)-1)","v":2.8898659430779849E-2},{"$f":"((Quarterly!CL141/Quarterly!CL137)-1)","v":6.0500348848798957E-2},{"$f":"((Quarterly!CM141/Quarterly!CM137)-1)","v":2.6869158878504606E-2},{"$f":"((Quarterly!CN141/Quarterly!CN137)-1)","v":4.6906166888298628E-3},{"$f":"((Quarterly!CO141/Quarterly!CO137)-1)","v":8.7030531309985282E-2},{"$f":"((Quarterly!CP141/Quarterly!CP137)-1)","v":-7.8907051092208524E-3},{"$f":"((Quarterly!CQ141/Quarterly!CQ137)-1)","v":1.3448295138436039E-2},{"$f":"((Quarterly!CR141/Quarterly!CR137)-1)","v":0.10290843088719792},{"$f":"Quarterly!CS141-Quarterly!CS137","v":3.5},"--",null,null,null,null,null,{"$f":"((Quarterly!CZ141/Quarterly!CZ137)-1)","v":3.8520020273694833E-2},{"$f":"((Quarterly!DA141/Quarterly!DA137)-1)","v":4.6642246642246699E-2},null,null,null,null,null,{"$f":"((Quarterly!DG141/Quarterly!DG137)-1)","v":-1.9841269841269882E-2},{"$f":"((Quarterly!DH141-Quarterly!DH137)*60)","v":-6.0000000000000853},{"$f":"Quarterly!DI141-Quarterly!DI137","v":-0.36666666666666003},"--",{"$f":"(Quarterly!DK141-Quarterly!DK137)*100","v":116.6666666666667},{"$f":"((Quarterly!DL141/Quarterly!DL137)-1)","v":-3.6101355688984538E-2},null,null,null,{"$f":"((Quarterly!DP141/Quarterly!DP137)-1)","v":-1.2226113178181564E-2},null,null,null,null,{"$f":"Quarterly!DU141-Quarterly!DU137","v":1.5666666666666682},{"$f":"((Quarterly!DV141/Quarterly!DV137)-1)","v":-1.2007885775733418E-2},{"$f":"((Quarterly!DW141/Quarterly!DW137)-1)","v":-1.1526608984235964E-2},{"$f":"((Quarterly!DX141/Quarterly!DX137)-1)","v":-1.1644712392121059E-2},{"$f":"((Quarterly!DY141/Quarterly!DY137)-1)","v":-1.1239669421487575E-2},{"$f":"((Quarterly!DZ141/Quarterly!DZ137)-1)","v":-1.1779600374305033E-2},{"$f":"((Quarterly!EA141/Quarterly!EA137)-1)","v":-1.1450676982591723E-2},{"$f":"((Quarterly!EB141/Quarterly!EB137)-1)","v":-1.2590614269362921E-2},{"$f":"((Quarterly!EC141/Quarterly!EC137)-1)","v":-1.1226523974399272E-2},null,null,null,null,null,{"$f":"((Quarterly!EI141/Quarterly!EI137)-1)","v":-1.6015853707847305E-2},{"$f":"((Quarterly!EJ141/Quarterly!EJ137)-1)","v":-2.7165353894293975E-3},{"$f":"((Quarterly!EK141/Quarterly!EK137)-1)","v":3.353644417634305E-3},null,null,null,null,null,{"$f":"((Quarterly!EQ141/Quarterly!EQ137)-1)","v":-2.8620492272466436E-3},{"$f":"((Quarterly!ER141/Quarterly!ER137)-1)","v":3.3298374410068332E-2},{"$f":"((Quarterly!ES141/Quarterly!ES137)-1)","v":2.8918918918918957E-2},null,null,null,null,null,{"$f":"(Quarterly!EY141-Quarterly!EY137)*100","v":-159.99999999999997},{"$f":"(Quarterly!EZ141-Quarterly!EZ137)*100","v":-251.66666666666666},{"$f":"(Quarterly!FA141-Quarterly!FA137)*100","v":-61.666666666666714},{"$f":"(Quarterly!FB141-Quarterly!FB137)*100","v":-73.333333333333428},"--",{"$f":"(Quarterly!FD141-Quarterly!FD137)*100","v":-83.000000000000185},{"$f":"(Quarterly!FE141-Quarterly!FE137)*100","v":-210.00000000000006},{"$f":"(Quarterly!FF141-Quarterly!FF137)*100","v":-194.00000000000003},{"$f":"(Quarterly!FG141-Quarterly!FG137)*100","v":-158.99999999999989},{"$f":"(Quarterly!FH141-Quarterly!FH137)*100","v":-93.333333333333442},{"$f":"(Quarterly!FI141-Quarterly!FI137)*100","v":-76.333333333333272},null,null,null,null,null,null,{"$f":"((Quarterly!FP141/Quarterly!FP137)-1)","v":-8.2656570619344949E-3},{"$f":"((Quarterly!FQ141/Quarterly!FQ137)-1)","v":0.13566399098718462},"--","--",{"$f":"((Quarterly!FT141/Quarterly!FT137)-1)","v":6.4637451840477755E-2},{"$f":"((Quarterly!FU141/Quarterly!FU137)-1)","v":2.4366630957749047E-2},{"$f":"((Quarterly!FV141/Quarterly!FV137)-1)","v":4.7330263097897785E-3},{"$f":"((Quarterly!FW141/Quarterly!FW137)-1)","v":0.25120181607762859},{"$f":"((Quarterly!FX141/Quarterly!FX137)-1)","v":4.1553977537670317E-2},null,null,null,null,null,{"$f":"((Quarterly!GD141/Quarterly!GD137)-1)","v":-0.18281990968439854},{"$f":"((Quarterly!GE141/Quarterly!GE137)-1)","v":-0.24697122665320559},{"$f":"((Quarterly!GF141/Quarterly!GF137)-1)","v":-6.9422843567876313E-2},{"$f":"((Quarterly!GG141/Quarterly!GG137)-1)","v":-6.9422843567876313E-2},{"$f":"((Quarterly!GH141/Quarterly!GH137)-1)","v":{"$error":"#DIV/0!"}},"--","--","--","--"]
["91'Q4",{"$f":"((Quarterly!B142/Quarterly!B138)-1)","v":4.2495416158365495E-2},{"$f":"((Quarterly!C142/Quarterly!C138)-1)","v":1.224616084468555E-2},{"$f":"((Quarterly!D142/Quarterly!D138)-1)","v":5.9603200134583645E-3},{"$f":"((Quarterly!E142/Quarterly!E138)-1)","v":9.5115181302265484E-3},{"$f":"((Quarterly!F142/Quarterly!F138)-1)","v":-2.3823624421233758E-2},{"$f":"((Quarterly!G142/Quarterly!G138)-1)","v":-6.2097337576672018E-4},{"$f":"((Quarterly!H142/Quarterly!H138)-1)","v":1.6445269016544639E-2},{"$f":"((Quarterly!I142/Quarterly!I138)-1)","v":-3.3892481810832709E-2},{"$f":"((Quarterly!J142/Quarterly!J138)-1)","v":-6.6186559488363494E-2},{"$f":"((Quarterly!K142/Quarterly!K138)-1)","v":2.421171171171177E-2},{"$f":"((Quarterly!L142-Quarterly!L138))","v":47.455999999999996},{"$f":"((Quarterly!M142/Quarterly!M138)-1)","v":5.7341388014407801E-2},{"$f":"((Quarterly!N142/Quarterly!N138)-1)","v":9.1513936909096483E-2},{"$f":"((Quarterly!O142/Quarterly!O138)-1)","v":-0.37622282608695745},{"$f":"((Quarterly!P142/Quarterly!P138)-1)","v":9.0972030341274213E-4},{"$f":"((Quarterly!Q142/Quarterly!Q138)-1)","v":0.36881439247795811},null,null,null,null,null,{"$f":"((Quarterly!W142/Quarterly!W138)-1)","v":-1.2499999999999956E-2},{"$f":"((Quarterly!X142/Quarterly!X138)-1)","v":-1.2315270935960632E-2},{"$f":"((Quarterly!Y142/Quarterly!Y138)-1)","v":-3.1536064933567975E-2},{"$f":"Quarterly!Z142-Quarterly!Z138","v":0.43999999999999995},{"$f":"((Quarterly!AA142/Quarterly!AA138)-1)","v":0.12261404929113406},{"$f":"((Quarterly!AB142/Quarterly!AB138)-1)","v":0.16872457274722974},{"$f":"Quarterly!AC142-Quarterly!AC138","v":-18.999999999999996},"--",{"$f":"(Quarterly!AE142-Quarterly!AE138)*100","v":0},{"$f":"(Quarterly!AF142-Quarterly!AF138)*100","v":43.999999999999993},{"$f":"(Quarterly!AG142-Quarterly!AG138)*100","v":17.000000000000014},"--","--","--","--","--",{"$f":"((Quarterly!AM142/Quarterly!AM138)-1)","v":2.5261035035752943E-3},{"$f":"((Quarterly!AN142/Quarterly!AN138)-1)","v":4.7419489142510596E-3},"--","--",{"$f":"Quarterly!AQ142-Quarterly!AQ138","v":8.0333333333333243},"--","--",{"$f":"Quarterly!AT142-Quarterly!AT138","v":4.1000000000000014},{"$f":"Quarterly!AU142-Quarterly!AU138","v":0.3333333333333357},{"$f":"Quarterly!AV142-Quarterly!AV138","v":1.7000000000000028},{"$f":"Quarterly!AW142-Quarterly!AW138","v":0.13333333333333286},{"$f":"Quarterly!AX142-Quarterly!AX138","v":13},{"$f":"Quarterly!AY142-Quarterly!AY138","v":-16.666666666666679},{"$f":"Quarterly!AZ142-Quarterly!AZ138","v":11.966666666666669},{"$f":"Quarterly!BA142-Quarterly!BA138","v":1.9333333333333371},"--","--",{"$f":"((Quarterly!BD142/Quarterly!BD138)-1)","v":3.3586345223581171E-2},{"$f":"((Quarterly!BE142/Quarterly!BE138)-1)","v":1.2079182454022952E-2},{"$f":"((Quarterly!BF142/Quarterly!BF138)-1)","v":5.1138043156961466E-2},{"$f":"((Quarterly!BG142/Quarterly!BG138)-1)","v":3.2151945875488863E-2},{"$f":"((Quarterly!BH142/Quarterly!BH138)-1)","v":2.710428128754816E-2},{"$f":"((Quarterly!BI142/Quarterly!BI138)-1)","v":1.8388936159404734E-2},{"$f":"((Quarterly!BJ142/Quarterly!BJ138)-1)","v":7.421514976958532E-2},{"$f":"((Quarterly!BK142/Quarterly!BK138)-1)","v":0.32116788321167866},null,"--","--",null,null,null,null,null,{"$f":"((Quarterly!BT142/Quarterly!BT138)-1)","v":-3.4077009010369697E-2},{"$f":"Quarterly!BU142-Quarterly!BU138","v":-0.4709600000000016},{"$f":"Quarterly!BV142-Quarterly!BV138","v":-0.45626000000000033},{"$f":"((Quarterly!BW142/Quarterly!BW138)-1)","v":7.9698015764102959E-2},{"$f":"((Quarterly!BX142/Quarterly!BX138)-1)","v":4.2519181585677579E-2},{"$f":"((Quarterly!BY142/Quarterly!BY138)-1)","v":0.11331133113311331},"--",{"$f":"((Quarterly!CA142/Quarterly!CA138)-1)","v":-5.7933541549331724E-2},{"$f":"((Quarterly!CB142/Quarterly!CB138)-1)","v":-0.18893828185428074},{"$f":"((Quarterly!CC142/Quarterly!CC138)-1)","v":-9.9863614723176286E-2},"--","--",null,"--","--",null,{"$f":"((Quarterly!CJ142/Quarterly!CJ138)-1)","v":0.16526019690576654},{"$f":"((Quarterly!CK142/Quarterly!CK138)-1)","v":4.0258469293365184E-2},{"$f":"((Quarterly!CL142/Quarterly!CL138)-1)","v":0.1897584348173289},{"$f":"((Quarterly!CM142/Quarterly!CM138)-1)","v":0.15849535080304311},{"$f":"((Quarterly!CN142/Quarterly!CN138)-1)","v":2.1389226322624078E-2},{"$f":"((Quarterly!CO142/Quarterly!CO138)-1)","v":0.11776814734561225},{"$f":"((Quarterly!CP142/Quarterly!CP138)-1)","v":-1.6277105026952787E-2},{"$f":"((Quarterly!CQ142/Quarterly!CQ138)-1)","v":1.3378795775759178E-2},{"$f":"((Quarterly!CR142/Quarterly!CR138)-1)","v":0.10332732910026277},{"$f":"Quarterly!CS142-Quarterly!CS138","v":6.7333333333333201},"--",null,null,null,null,null,{"$f":"((Quarterly!CZ142/Quarterly!CZ138)-1)","v":2.9653625716421494E-2},{"$f":"((Quarterly!DA142/Quarterly!DA138)-1)","v":4.4422984065668469E-2},null,null,null,null,null,{"$f":"((Quarterly!DG142/Quarterly!DG138)-1)","v":-1.3567438148443856E-2},{"$f":"((Quarterly!DH142-Quarterly!DH138)*60)","v":-2.0000000000003126},{"$f":"Quarterly!DI142-Quarterly!DI138","v":-0.33333333333334281},"--",{"$f":"(Quarterly!DK142-Quarterly!DK138)*100","v":96.666666666666686},{"$f":"((Quarterly!DL142/Quarterly!DL138)-1)","v":-2.908396946564884E-2},null,null,null,{"$f":"((Quarterly!DP142/Quarterly!DP138)-1)","v":-8.4244121829021301E-3},null,null,null,null,{"$f":"Quarterly!DU142-Quarterly!DU138","v":1.7000000000000002},{"$f":"((Quarterly!DV142/Quarterly!DV138)-1)","v":-1.3266948899886666E-2},{"$f":"((Quarterly!DW142/Quarterly!DW138)-1)","v":-1.3517095149748193E-2},{"$f":"((Quarterly!DX142/Quarterly!DX138)-1)","v":-1.3570022958346972E-2},{"$f":"((Quarterly!DY142/Quarterly!DY138)-1)","v":-1.348906070077327E-2},{"$f":"((Quarterly!DZ142/Quarterly!DZ138)-1)","v":-1.3596898378201216E-2},{"$f":"((Quarterly!EA142/Quarterly!EA138)-1)","v":-1.3358925143954092E-2},{"$f":"((Quarterly!EB142/Quarterly!EB138)-1)","v":-1.4183055975794279E-2},{"$f":"((Quarterly!EC142/Quarterly!EC138)-1)","v":-1.3382122320961809E-2},null,null,null,null,null,{"$f":"((Quarterly!EI142/Quarterly!EI138)-1)","v":5.7957852293626377E-3},{"$f":"((Quarterly!EJ142/Quarterly!EJ138)-1)","v":7.7179219264895682E-3},{"$f":"((Quarterly!EK142/Quarterly!EK138)-1)","v":1.2058469030903574E-2},null,null,null,null,null,{"$f":"((Quarterly!EQ142/Quarterly!EQ138)-1)","v":-3.0311457174638345E-2},{"$f":"((Quarterly!ER142/Quarterly!ER138)-1)","v":3.220779220779213E-2},{"$f":"((Quarterly!ES142/Quarterly!ES138)-1)","v":2.6780931976432942E-2},null,null,null,null,null,{"$f":"(Quarterly!EY142-Quarterly!EY138)*100","v":-240.33333333333334},{"$f":"(Quarterly!EZ142-Quarterly!EZ138)*100","v":-292.66666666666657},{"$f":"(Quarterly!FA142-Quarterly!FA138)*100","v":-84.666666666666572},{"$f":"(Quarterly!FB142-Quarterly!FB138)*100","v":-119.66666666666671},"--",{"$f":"(Quarterly!FD142-Quarterly!FD138)*100","v":-126.33333333333337},{"$f":"(Quarterly!FE142-Quarterly!FE138)*100","v":-244.99999999999994},{"$f":"(Quarterly!FF142-Quarterly!FF138)*100","v":-243.66666666666674},{"$f":"(Quarterly!FG142-Quarterly!FG138)*100","v":-209.66666666666666},{"$f":"(Quarterly!FH142-Quarterly!FH138)*100","v":-146.66666666666677},{"$f":"(Quarterly!FI142-Quarterly!FI138)*100","v":-104.99999999999999},null,null,null,null,null,null,{"$f":"((Quarterly!FP142/Quarterly!FP138)-1)","v":-2.267638785234527E-2},{"$f":"((Quarterly!FQ142/Quarterly!FQ138)-1)","v":8.5258190823600533E-2},"--","--",{"$f":"((Quarterly!FT142/Quarterly!FT138)-1)","v":6.7730960556499076E-2},{"$f":"((Quarterly!FU142/Quarterly!FU138)-1)","v":2.8369085529697413E-2},{"$f":"((Quarterly!FV142/Quarterly!FV138)-1)","v":6.0628993924345398E-3},{"$f":"((Quarterly!FW142/Quarterly!FW138)-1)","v":0.39578409145723792},{"$f":"((Quarterly!FX142/Quarterly!FX138)-1)","v":3.0069057531471266E-2},null,null,null,null,null,{"$f":"((Quarterly!GD142/Quarterly!GD138)-1)","v":-0.31759436578448919},{"$f":"((Quarterly!GE142/Quarterly!GE138)-1)","v":-0.36596138044371396},{"$f":"((Quarterly!GF142/Quarterly!GF138)-1)","v":-0.18271748409265376},{"$f":"((Quarterly!GG142/Quarterly!GG138)-1)","v":-0.18271748409265376},{"$f":"((Quarterly!GH142/Quarterly!GH138)-1)","v":{"$error":"#DIV/0!"}},"--","--","--","--"]
["92'Q1",{"$f":"((Quarterly!B143/Quarterly!B139)-1)","v":5.3829588659833449E-2},{"$f":"((Quarterly!C143/Quarterly!C139)-1)","v":2.9032106699585114E-2},{"$f":"((Quarterly!D143/Quarterly!D139)-1)","v":2.6428744189994857E-2},{"$f":"((Quarterly!E143/Quarterly!E139)-1)","v":3.2039455009934548E-2},{"$f":"((Quarterly!F143/Quarterly!F139)-1)","v":4.3211072664360195E-2},{"$f":"((Quarterly!G143/Quarterly!G139)-1)","v":1.3779191558693338E-2},{"$f":"((Quarterly!H143/Quarterly!H139)-1)","v":3.7593172705800759E-2},{"$f":"((Quarterly!I143/Quarterly!I139)-1)","v":-1.7799319377126976E-2},{"$f":"((Quarterly!J143/Quarterly!J139)-1)","v":-2.7264298483031579E-2},{"$f":"((Quarterly!K143/Quarterly!K139)-1)","v":0.1449101796407184},{"$f":"((Quarterly!L143-Quarterly!L139))","v":22.607999999999997},{"$f":"((Quarterly!M143/Quarterly!M139)-1)","v":7.7301213667783975E-2},{"$f":"((Quarterly!N143/Quarterly!N139)-1)","v":0.10449887706738958},{"$f":"((Quarterly!O143/Quarterly!O139)-1)","v":-0.37563940238034799},{"$f":"((Quarterly!P143/Quarterly!P139)-1)","v":3.7615360286564758E-3},{"$f":"((Quarterly!Q143/Quarterly!Q139)-1)","v":0.76359725828001612},null,null,null,null,null,{"$f":"((Quarterly!W143/Quarterly!W139)-1)","v":1.0282776349614275E-2},{"$f":"((Quarterly!X143/Quarterly!X139)-1)","v":3.7799244015119804E-3},{"$f":"((Quarterly!Y143/Quarterly!Y139)-1)","v":-4.0196961657038011E-2},{"$f":"Quarterly!Z143-Quarterly!Z139","v":0.32999999999999985},{"$f":"((Quarterly!AA143/Quarterly!AA139)-1)","v":0.10290866638515617},{"$f":"((Quarterly!AB143/Quarterly!AB139)-1)","v":5.126275885916276E-2},{"$f":"Quarterly!AC143-Quarterly!AC139","v":-18},"--",{"$f":"(Quarterly!AE143-Quarterly!AE139)*100","v":-29.000000000000004},{"$f":"(Quarterly!AF143-Quarterly!AF139)*100","v":32.999999999999986},{"$f":"(Quarterly!AG143-Quarterly!AG139)*100","v":5.0000000000000044},"--","--","--","--","--",{"$f":"((Quarterly!AM143/Quarterly!AM139)-1)","v":2.0478669048421549E-2},{"$f":"((Quarterly!AN143/Quarterly!AN139)-1)","v":3.0593235903759952E-2},"--","--",{"$f":"Quarterly!AQ143-Quarterly!AQ139","v":11.766666666666666},"--","--",{"$f":"Quarterly!AT143-Quarterly!AT139","v":7.2333333333333272},{"$f":"Quarterly!AU143-Quarterly!AU139","v":-1.2666666666666586},{"$f":"Quarterly!AV143-Quarterly!AV139","v":2.6000000000000014},{"$f":"Quarterly!AW143-Quarterly!AW139","v":3.0999999999999943},{"$f":"Quarterly!AX143-Quarterly!AX139","v":17.166666666666657},{"$f":"Quarterly!AY143-Quarterly!AY139","v":0.69999999999999574},{"$f":"Quarterly!AZ143-Quarterly!AZ139","v":16.533333333333339},{"$f":"Quarterly!BA143-Quarterly!BA139","v":5.1000000000000014},"--","--",{"$f":"((Quarterly!BD143/Quarterly!BD139)-1)","v":5.0823065549531643E-2},{"$f":"((Quarterly!BE143/Quarterly!BE139)-1)","v":-3.5102088574268109E-4},{"$f":"((Quarterly!BF143/Quarterly!BF139)-1)","v":7.0615167879783947E-2},{"$f":"((Quarterly!BG143/Quarterly!BG139)-1)","v":4.9526403764006632E-2},{"$f":"((Quarterly!BH143/Quarterly!BH139)-1)","v":4.6090919419792264E-2},{"$f":"((Quarterly!BI143/Quarterly!BI139)-1)","v":2.0062957484734856E-2},{"$f":"((Quarterly!BJ143/Quarterly!BJ139)-1)","v":0.16801026720871803},{"$f":"((Quarterly!BK143/Quarterly!BK139)-1)","v":0.29464285714285698},null,"--","--",null,null,null,null,null,{"$f":"((Quarterly!BT143/Quarterly!BT139)-1)","v":-2.7282326855326056E-2},{"$f":"Quarterly!BU143-Quarterly!BU139","v":-0.72772999999999932},{"$f":"Quarterly!BV143-Quarterly!BV139","v":-0.80671000000000248},{"$f":"((Quarterly!BW143/Quarterly!BW139)-1)","v":9.2564895896364519E-2},{"$f":"((Quarterly!BX143/Quarterly!BX139)-1)","v":0.3871087928464978},{"$f":"((Quarterly!BY143/Quarterly!BY139)-1)","v":0.29607843137254908},"--",{"$f":"((Quarterly!CA143/Quarterly!CA139)-1)","v":3.4902575095501431E-2},{"$f":"((Quarterly!CB143/Quarterly!CB139)-1)","v":-0.13488212726528059},{"$f":"((Quarterly!CC143/Quarterly!CC139)-1)","v":-6.4505583188647186E-2},"--","--",null,"--","--",null,{"$f":"((Quarterly!CJ143/Quarterly!CJ139)-1)","v":0.34388489208633088},{"$f":"((Quarterly!CK143/Quarterly!CK139)-1)","v":6.1472504247093829E-2},{"$f":"((Quarterly!CL143/Quarterly!CL139)-1)","v":0.19850327408793245},{"$f":"((Quarterly!CM143/Quarterly!CM139)-1)","v":0.47368421052631571},{"$f":"((Quarterly!CN143/Quarterly!CN139)-1)","v":4.1093456918487092E-2},{"$f":"((Quarterly!CO143/Quarterly!CO139)-1)","v":0.15946571682992006},{"$f":"((Quarterly!CP143/Quarterly!CP139)-1)","v":-9.8751737574344078E-3},{"$f":"((Quarterly!CQ143/Quarterly!CQ139)-1)","v":1.3179604334237593E-2},{"$f":"((Quarterly!CR143/Quarterly!CR139)-1)","v":9.7246977613463015E-2},{"$f":"Quarterly!CS143-Quarterly!CS139","v":-4.1999999999999886},"--",null,null,null,null,null,{"$f":"((Quarterly!CZ143/Quarterly!CZ139)-1)","v":2.8938906752411508E-2},{"$f":"((Quarterly!DA143/Quarterly!DA139)-1)","v":3.8553069966682507E-2},null,null,null,null,null,{"$f":"((Quarterly!DG143/Quarterly!DG139)-1)","v":-5.6338028169014009E-3},{"$f":"((Quarterly!DH143-Quarterly!DH139)*60)","v":0},{"$f":"Quarterly!DI143-Quarterly!DI139","v":6.6666666666662877E-2},"--",{"$f":"(Quarterly!DK143-Quarterly!DK139)*100","v":76.666666666666657},{"$f":"((Quarterly!DL143/Quarterly!DL139)-1)","v":-2.3374160716704506E-2},null,null,null,{"$f":"((Quarterly!DP143/Quarterly!DP139)-1)","v":-3.9772518354188602E-3},null,null,null,null,{"$f":"Quarterly!DU143-Quarterly!DU139","v":1.8999999999999995},{"$f":"((Quarterly!DV143/Quarterly!DV139)-1)","v":-1.127368673542839E-2},{"$f":"((Quarterly!DW143/Quarterly!DW139)-1)","v":-1.1466910643489037E-2},{"$f":"((Quarterly!DX143/Quarterly!DX139)-1)","v":-1.1457320424470563E-2},{"$f":"((Quarterly!DY143/Quarterly!DY139)-1)","v":-1.1554621848739233E-2},{"$f":"((Quarterly!DZ143/Quarterly!DZ139)-1)","v":-1.1426341898444936E-2},{"$f":"((Quarterly!EA143/Quarterly!EA139)-1)","v":-1.1279078875225057E-2},{"$f":"((Quarterly!EB143/Quarterly!EB139)-1)","v":-1.1789717819868595E-2},{"$f":"((Quarterly!EC143/Quarterly!EC139)-1)","v":-1.1491736893947668E-2},null,null,null,null,null,{"$f":"((Quarterly!EI143/Quarterly!EI139)-1)","v":3.0404734355589103E-2},{"$f":"((Quarterly!EJ143/Quarterly!EJ139)-1)","v":2.6190225772153131E-2},{"$f":"((Quarterly!EK143/Quarterly!EK139)-1)","v":2.7410438025074813E-2},null,null,null,null,null,{"$f":"((Quarterly!EQ143/Quarterly!EQ139)-1)","v":-1.3337116912599312E-2},{"$f":"((Quarterly!ER143/Quarterly!ER139)-1)","v":2.5937339496661549E-2},{"$f":"((Quarterly!ES143/Quarterly!ES139)-1)","v":2.0402755696873331E-2},null,null,null,null,null,{"$f":"(Quarterly!EY143-Quarterly!EY139)*100","v":-268.99999999999994},{"$f":"(Quarterly!EZ143-Quarterly!EZ139)*100","v":-240.33333333333334},{"$f":"(Quarterly!FA143-Quarterly!FA139)*100","v":-65.333333333333243},{"$f":"(Quarterly!FB143-Quarterly!FB139)*100","v":-100},"--",{"$f":"(Quarterly!FD143-Quarterly!FD139)*100","v":-79.3333333333333},{"$f":"(Quarterly!FE143-Quarterly!FE139)*100","v":-213.00000000000003},{"$f":"(Quarterly!FF143-Quarterly!FF139)*100","v":-208.00000000000009},{"$f":"(Quarterly!FG143-Quarterly!FG139)*100","v":-174.6666666666668},{"$f":"(Quarterly!FH143-Quarterly!FH139)*100","v":-105.66666666666657},{"$f":"(Quarterly!FI143-Quarterly!FI139)*100","v":-71.333333333333201},null,null,null,null,null,null,{"$f":"((Quarterly!FP143/Quarterly!FP139)-1)","v":1.8540411176148242E-2},{"$f":"((Quarterly!FQ143/Quarterly!FQ139)-1)","v":4.5900825183373906E-2},"--","--",{"$f":"((Quarterly!FT143/Quarterly!FT139)-1)","v":5.6850658148223765E-2},{"$f":"((Quarterly!FU143/Quarterly!FU139)-1)","v":2.1896631368307773E-2},{"$f":"((Quarterly!FV143/Quarterly!FV139)-1)","v":8.2747994114217294E-2},{"$f":"((Quarterly!FW143/Quarterly!FW139)-1)","v":0.42216024340770786},{"$f":"((Quarterly!FX143/Quarterly!FX139)-1)","v":0.13712639132154369},null,null,null,null,null,{"$f":"((Quarterly!GD143/Quarterly!GD139)-1)","v":-0.13178353891830685},{"$f":"((Quarterly!GE143/Quarterly!GE139)-1)","v":-0.13426595915742068},{"$f":"((Quarterly!GF143/Quarterly!GF139)-1)","v":-0.10611528003737969},{"$f":"((Quarterly!GG143/Quarterly!GG139)-1)","v":-0.10611528003737969},{"$f":"((Quarterly!GH143/Quarterly!GH139)-1)","v":{"$error":"#DIV/0!"}},"--","--",{"$f":"((Quarterly!GK143/Quarterly!GK139)-1)","v":{"$error":"#VALUE!"}},"--"]
["92'Q2",{"$f":"((Quarterly!B144/Quarterly!B140)-1)","v":5.6756025608388105E-2},{"$f":"((Quarterly!C144/Quarterly!C140)-1)","v":3.2367042048646821E-2},{"$f":"((Quarterly!D144/Quarterly!D140)-1)","v":2.5705274269521627E-2},{"$f":"((Quarterly!E144/Quarterly!E140)-1)","v":3.0470962861314899E-2},{"$f":"((Quarterly!F144/Quarterly!F140)-1)","v":4.522543862065187E-2},{"$f":"((Quarterly!G144/Quarterly!G140)-1)","v":1.2094286066888671E-2},{"$f":"((Quarterly!H144/Quarterly!H140)-1)","v":3.5705963884148595E-2},{"$f":"((Quarterly!I144/Quarterly!I140)-1)","v":1.929853654491942E-2},{"$f":"((Quarterly!J144/Quarterly!J140)-1)","v":4.4783507903962239E-2},{"$f":"((Quarterly!K144/Quarterly!K140)-1)","v":0.16115823340157953},{"$f":"((Quarterly!L144-Quarterly!L140))","v":49.010999999999996},{"$f":"((Quarterly!M144/Quarterly!M140)-1)","v":7.5889245617546175E-2},{"$f":"((Quarterly!N144/Quarterly!N140)-1)","v":6.6161896979450852E-2},{"$f":"((Quarterly!O144/Quarterly!O140)-1)","v":0.31351467584130477},{"$f":"((Quarterly!P144/Quarterly!P140)-1)","v":-1.0627820455787473E-3},{"$f":"((Quarterly!Q144/Quarterly!Q140)-1)","v":0.35790409617425456},null,null,null,null,null,{"$f":"((Quarterly!W144/Quarterly!W140)-1)","v":2.182284980744531E-2},{"$f":"((Quarterly!X144/Quarterly!X140)-1)","v":1.2987012987013102E-2},{"$f":"((Quarterly!Y144/Quarterly!Y140)-1)","v":-4.1208305857717176E-2},{"$f":"Quarterly!Z144-Quarterly!Z140","v":-0.1399999999999999},{"$f":"((Quarterly!AA144/Quarterly!AA140)-1)","v":0.12020299996535844},{"$f":"((Quarterly!AB144/Quarterly!AB140)-1)","v":4.2474158667213269E-2},{"$f":"Quarterly!AC144-Quarterly!AC140","v":-23.1},"--",{"$f":"(Quarterly!AE144-Quarterly!AE140)*100","v":-46.999999999999972},{"$f":"(Quarterly!AF144-Quarterly!AF140)*100","v":-13.999999999999989},{"$f":"(Quarterly!AG144-Quarterly!AG140)*100","v":-23},"--","--","--","--","--",{"$f":"((Quarterly!AM144/Quarterly!AM140)-1)","v":3.2651969014276361E-2},{"$f":"((Quarterly!AN144/Quarterly!AN140)-1)","v":4.6675922043778018E-2},"--","--",{"$f":"Quarterly!AQ144-Quarterly!AQ140","v":8.1000000000000014},"--","--",{"$f":"Quarterly!AT144-Quarterly!AT140","v":8.3000000000000043},{"$f":"Quarterly!AU144-Quarterly!AU140","v":0.26666666666666572},{"$f":"Quarterly!AV144-Quarterly!AV140","v":5.2999999999999972},{"$f":"Quarterly!AW144-Quarterly!AW140","v":6.4333333333333371},{"$f":"Quarterly!AX144-Quarterly!AX140","v":8.8000000000000043},{"$f":"Quarterly!AY144-Quarterly!AY140","v":14.466666666666669},{"$f":"Quarterly!AZ144-Quarterly!AZ140","v":10.499999999999993},{"$f":"Quarterly!BA144-Quarterly!BA140","v":3.3666666666666671},"--","--",{"$f":"((Quarterly!BD144/Quarterly!BD140)-1)","v":6.0993682240074953E-2},{"$f":"((Quarterly!BE144/Quarterly!BE140)-1)","v":-1.2057557591597545E-2},{"$f":"((Quarterly!BF144/Quarterly!BF140)-1)","v":6.0978655549364991E-2},{"$f":"((Quarterly!BG144/Quarterly!BG140)-1)","v":4.151880226023108E-2},{"$f":"((Quarterly!BH144/Quarterly!BH140)-1)","v":3.4468159290713007E-2},{"$f":"((Quarterly!BI144/Quarterly!BI140)-1)","v":1.8681332542856088E-2},{"$f":"((Quarterly!BJ144/Quarterly!BJ140)-1)","v":0.16474434782608682},{"$f":"((Quarterly!BK144/Quarterly!BK140)-1)","v":-9.5890410958904049E-2},null,"--","--",null,null,null,null,null,{"$f":"((Quarterly!BT144/Quarterly!BT140)-1)","v":-3.3567675413113007E-2},{"$f":"Quarterly!BU144-Quarterly!BU140","v":-0.77029000000000103},{"$f":"Quarterly!BV144-Quarterly!BV140","v":-0.87245000000000061},{"$f":"((Quarterly!BW144/Quarterly!BW140)-1)","v":8.8215057263768326E-2},{"$f":"((Quarterly!BX144/Quarterly!BX140)-1)","v":0.14012528849324113},{"$f":"((Quarterly!BY144/Quarterly!BY140)-1)","v":0.10309996516893083},"--",{"$f":"((Quarterly!CA144/Quarterly!CA140)-1)","v":5.1557377049180397E-2},{"$f":"((Quarterly!CB144/Quarterly!CB140)-1)","v":-8.617333535168703E-2},{"$f":"((Quarterly!CC144/Quarterly!CC140)-1)","v":-2.8539267209290009E-2},"--","--",null,"--","--",null,{"$f":"((Quarterly!CJ144/Quarterly!CJ140)-1)","v":0.10058403634003898},{"$f":"((Quarterly!CK144/Quarterly!CK140)-1)","v":6.8643457224252913E-2},{"$f":"((Quarterly!CL144/Quarterly!CL140)-1)","v":0.27008258258258278},{"$f":"((Quarterly!CM144/Quarterly!CM140)-1)","v":0.17772511848341233},{"$f":"((Quarterly!CN144/Quarterly!CN140)-1)","v":4.4755208468463703E-2},{"$f":"((Quarterly!CO144/Quarterly!CO140)-1)","v":0.15893243568165416},{"$f":"((Quarterly!CP144/Quarterly!CP140)-1)","v":-1.1993330651685952E-2},{"$f":"((Quarterly!CQ144/Quarterly!CQ140)-1)","v":1.3315093118668075E-2},{"$f":"((Quarterly!CR144/Quarterly!CR140)-1)","v":7.3634434880352595E-2},{"$f":"Quarterly!CS144-Quarterly!CS140","v":-1.7999999999999972},"--",null,null,null,null,null,{"$f":"((Quarterly!CZ144/Quarterly!CZ140)-1)","v":3.0735185640521356E-2},{"$f":"((Quarterly!DA144/Quarterly!DA140)-1)","v":3.820754716981134E-2},null,null,null,null,null,{"$f":"((Quarterly!DG144/Quarterly!DG140)-1)","v":9.7323600973235891E-3},{"$f":"((Quarterly!DH144-Quarterly!DH140)*60)","v":14.000000000000057},{"$f":"Quarterly!DI144-Quarterly!DI140","v":0.33333333333334281},"--",{"$f":"(Quarterly!DK144-Quarterly!DK140)*100","v":76.666666666666742},{"$f":"((Quarterly!DL144/Quarterly!DL140)-1)","v":-1.3962934755013867E-2},null,null,null,{"$f":"((Quarterly!DP144/Quarterly!DP140)-1)","v":2.9358724218793153E-3},null,null,null,null,{"$f":"Quarterly!DU144-Quarterly!DU140","v":2.0333333333333332},{"$f":"((Quarterly!DV144/Quarterly!DV140)-1)","v":2.6931340212423827E-3},{"$f":"((Quarterly!DW144/Quarterly!DW140)-1)","v":2.7955028866606391E-3},{"$f":"((Quarterly!DX144/Quarterly!DX140)-1)","v":2.7852802160701629E-3},{"$f":"((Quarterly!DY144/Quarterly!DY140)-1)","v":2.7629079606286133E-3},{"$f":"((Quarterly!DZ144/Quarterly!DZ140)-1)","v":2.7925160569672869E-3},{"$f":"((Quarterly!EA144/Quarterly!EA140)-1)","v":2.9035548928824095E-3},{"$f":"((Quarterly!EB144/Quarterly!EB140)-1)","v":2.5184037194885267E-3},{"$f":"((Quarterly!EC144/Quarterly!EC140)-1)","v":2.8217929238116835E-3},null,null,null,null,null,{"$f":"((Quarterly!EI144/Quarterly!EI140)-1)","v":4.1574789405469437E-2},{"$f":"((Quarterly!EJ144/Quarterly!EJ140)-1)","v":2.8800328411348053E-2},{"$f":"((Quarterly!EK144/Quarterly!EK140)-1)","v":2.7543107456108773E-2},null,null,null,null,null,{"$f":"((Quarterly!EQ144/Quarterly!EQ140)-1)","v":7.4519919747779717E-3},{"$f":"((Quarterly!ER144/Quarterly!ER140)-1)","v":2.6806229257084757E-2},{"$f":"((Quarterly!ES144/Quarterly!ES140)-1)","v":2.0569620253164667E-2},null,null,null,null,null,{"$f":"(Quarterly!EY144-Quarterly!EY140)*100","v":-216.6666666666666},{"$f":"(Quarterly!EZ144-Quarterly!EZ140)*100","v":-209.33333333333346},{"$f":"(Quarterly!FA144-Quarterly!FA140)*100","v":-63.333333333333286},{"$f":"(Quarterly!FB144-Quarterly!FB140)*100","v":-78.999999999999915},"--",{"$f":"(Quarterly!FD144-Quarterly!FD140)*100","v":-84.999999999999787},{"$f":"(Quarterly!FE144-Quarterly!FE140)*100","v":-188},{"$f":"(Quarterly!FF144-Quarterly!FF140)*100","v":-202.33333333333334},{"$f":"(Quarterly!FG144-Quarterly!FG140)*100","v":-169.00000000000003},{"$f":"(Quarterly!FH144-Quarterly!FH140)*100","v":-112.9999999999999},{"$f":"(Quarterly!FI144-Quarterly!FI140)*100","v":-75.3333333333333},null,null,null,null,null,null,{"$f":"((Quarterly!FP144/Quarterly!FP140)-1)","v":3.9219099005018299E-2},{"$f":"((Quarterly!FQ144/Quarterly!FQ140)-1)","v":3.432879749015294E-2},"--","--",{"$f":"((Quarterly!FT144/Quarterly!FT140)-1)","v":2.151214986037786E-2},{"$f":"((Quarterly!FU144/Quarterly!FU140)-1)","v":-3.3063207530560468E-2},{"$f":"((Quarterly!FV144/Quarterly!FV140)-1)","v":8.0875605135761086E-2},{"$f":"((Quarterly!FW144/Quarterly!FW140)-1)","v":0.42393716494202716},{"$f":"((Quarterly!FX144/Quarterly!FX140)-1)","v":0.14652715319035736},null,null,null,null,null,{"$f":"((Quarterly!GD144/Quarterly!GD140)-1)","v":2.0880850653731242E-2},{"$f":"((Quarterly!GE144/Quarterly!GE140)-1)","v":6.0665015917934051E-2},{"$f":"((Quarterly!GF144/Quarterly!GF140)-1)","v":1.4619199661388249E-2},{"$f":"((Quarterly!GG144/Quarterly!GG140)-1)","v":1.4619199661388249E-2},{"$f":"((Quarterly!GH144/Quarterly!GH140)-1)","v":{"$error":"#DIV/0!"}},"--","--",{"$f":"((Quarterly!GK144/Quarterly!GK140)-1)","v":{"$error":"#VALUE!"}},"--"]
["92'Q3",{"$f":"((Quarterly!B145/Quarterly!B141)-1)","v":5.9198752095586782E-2},{"$f":"((Quarterly!C145/Quarterly!C141)-1)","v":3.7423033240016057E-2},{"$f":"((Quarterly!D145/Quarterly!D141)-1)","v":3.4186804857686104E-2},{"$f":"((Quarterly!E145/Quarterly!E141)-1)","v":3.6591557679850117E-2},{"$f":"((Quarterly!F145/Quarterly!F141)-1)","v":5.134951851349534E-2},{"$f":"((Quarterly!G145/Quarterly!G141)-1)","v":1.6416922058121175E-2},{"$f":"((Quarterly!H145/Quarterly!H141)-1)","v":4.2437268825419983E-2},{"$f":"((Quarterly!I145/Quarterly!I141)-1)","v":4.3968220781936296E-2},{"$f":"((Quarterly!J145/Quarterly!J141)-1)","v":8.9949513467043385E-2},{"$f":"((Quarterly!K145/Quarterly!K141)-1)","v":0.11769662921348312},{"$f":"((Quarterly!L145-Quarterly!L141))","v":22.219000000000001},{"$f":"((Quarterly!M145/Quarterly!M141)-1)","v":6.2937542237776256E-2},{"$f":"((Quarterly!N145/Quarterly!N141)-1)","v":6.3598593799935932E-2},{"$f":"((Quarterly!O145/Quarterly!O141)-1)","v":4.8402344488563065E-2},{"$f":"((Quarterly!P145/Quarterly!P141)-1)","v":7.7970648382585939E-3},{"$f":"((Quarterly!Q145/Quarterly!Q141)-1)","v":0.27721661888563753},null,null,null,null,null,{"$f":"((Quarterly!W145/Quarterly!W141)-1)","v":1.0126582278481067E-2},{"$f":"((Quarterly!X145/Quarterly!X141)-1)","v":3.3167495854065088E-3},{"$f":"((Quarterly!Y145/Quarterly!Y141)-1)","v":-3.6125914517577185E-2},{"$f":"Quarterly!Z145-Quarterly!Z141","v":-0.22999999999999998},{"$f":"((Quarterly!AA145/Quarterly!AA141)-1)","v":4.318441297197384E-2},{"$f":"((Quarterly!AB145/Quarterly!AB141)-1)","v":2.3219506565449244E-2},{"$f":"Quarterly!AC145-Quarterly!AC141","v":-9.1000000000000014},"--",{"$f":"(Quarterly!AE145-Quarterly!AE141)*100","v":-50.999999999999979},{"$f":"(Quarterly!AF145-Quarterly!AF141)*100","v":-23},{"$f":"(Quarterly!AG145-Quarterly!AG141)*100","v":-26},"--","--","--","--","--",{"$f":"((Quarterly!AM145/Quarterly!AM141)-1)","v":2.6474436437454729E-2},{"$f":"((Quarterly!AN145/Quarterly!AN141)-1)","v":3.9007795541966095E-2},"--","--",{"$f":"Quarterly!AQ145-Quarterly!AQ141","v":-0.46666666666666856},"--","--",{"$f":"Quarterly!AT145-Quarterly!AT141","v":1.7666666666666728},{"$f":"Quarterly!AU145-Quarterly!AU141","v":0.40000000000000568},{"$f":"Quarterly!AV145-Quarterly!AV141","v":-0.53333333333333144},{"$f":"Quarterly!AW145-Quarterly!AW141","v":3.6666666666666643},{"$f":"Quarterly!AX145-Quarterly!AX141","v":-2.3333333333333357},{"$f":"Quarterly!AY145-Quarterly!AY141","v":11.933333333333337},{"$f":"Quarterly!AZ145-Quarterly!AZ141","v":-3.3666666666666671},{"$f":"Quarterly!BA145-Quarterly!BA141","v":2.4333333333333371},"--","--",{"$f":"((Quarterly!BD145/Quarterly!BD141)-1)","v":6.6002681478643854E-2},{"$f":"((Quarterly!BE145/Quarterly!BE141)-1)","v":-9.657817744160857E-3},{"$f":"((Quarterly!BF145/Quarterly!BF141)-1)","v":6.0953610694415516E-2},{"$f":"((Quarterly!BG145/Quarterly!BG141)-1)","v":4.3460509005126324E-2},{"$f":"((Quarterly!BH145/Quarterly!BH141)-1)","v":3.4112577697431812E-2},{"$f":"((Quarterly!BI145/Quarterly!BI141)-1)","v":1.6776332312019582E-2},{"$f":"((Quarterly!BJ145/Quarterly!BJ141)-1)","v":2.7864468696000788E-2},{"$f":"((Quarterly!BK145/Quarterly!BK141)-1)","v":-0.14556962025316456},null,"--","--",null,null,null,null,null,{"$f":"((Quarterly!BT145/Quarterly!BT141)-1)","v":-2.8521429297359013E-2},{"$f":"Quarterly!BU145-Quarterly!BU141","v":-0.79788000000000103},{"$f":"Quarterly!BV145-Quarterly!BV141","v":-0.90432999999999986},{"$f":"((Quarterly!BW145/Quarterly!BW141)-1)","v":8.6750418215781222E-2},{"$f":"((Quarterly!BX145/Quarterly!BX141)-1)","v":0.13559322033898313},{"$f":"((Quarterly!BY145/Quarterly!BY141)-1)","v":0.13386371497751659},"--",{"$f":"((Quarterly!CA145/Quarterly!CA141)-1)","v":9.2144060657119997E-3},{"$f":"((Quarterly!CB145/Quarterly!CB141)-1)","v":-1.2107358640567334E-3},{"$f":"((Quarterly!CC145/Quarterly!CC141)-1)","v":3.3725692181311828E-2},"--","--",null,"--","--",null,{"$f":"((Quarterly!CJ145/Quarterly!CJ141)-1)","v":0.25524934383202091},{"$f":"((Quarterly!CK145/Quarterly!CK141)-1)","v":6.9870624496927602E-2},{"$f":"((Quarterly!CL145/Quarterly!CL141)-1)","v":0.1986842105263158},{"$f":"((Quarterly!CM145/Quarterly!CM141)-1)","v":0.1547212741751991},{"$f":"((Quarterly!CN145/Quarterly!CN141)-1)","v":4.5534213995812145E-2},{"$f":"((Quarterly!CO145/Quarterly!CO141)-1)","v":0.15169587525821271},{"$f":"((Quarterly!CP145/Quarterly!CP141)-1)","v":-3.675997079776061E-3},{"$f":"((Quarterly!CQ145/Quarterly!CQ141)-1)","v":1.3458957272275862E-2},{"$f":"((Quarterly!CR145/Quarterly!CR141)-1)","v":6.2009809152536954E-2},{"$f":"Quarterly!CS145-Quarterly!CS141","v":-6.5333333333333456},"--",null,null,null,null,null,{"$f":"((Quarterly!CZ145/Quarterly!CZ141)-1)","v":3.0746705710102518E-2},{"$f":"((Quarterly!DA145/Quarterly!DA141)-1)","v":3.4997666822211837E-2},null,null,null,null,null,{"$f":"((Quarterly!DG145/Quarterly!DG141)-1)","v":1.0121457489878694E-2},{"$f":"((Quarterly!DH145-Quarterly!DH141)*60)","v":7.9999999999999716},{"$f":"Quarterly!DI145-Quarterly!DI141","v":0.5},"--",{"$f":"(Quarterly!DK145-Quarterly!DK141)*100","v":76.666666666666572},{"$f":"((Quarterly!DL145/Quarterly!DL141)-1)","v":-1.345739471106755E-2},null,null,null,{"$f":"((Quarterly!DP145/Quarterly!DP141)-1)","v":5.3608907326141431E-3},null,null,null,null,{"$f":"Quarterly!DU145-Quarterly!DU141","v":1.633333333333332},{"$f":"((Quarterly!DV145/Quarterly!DV141)-1)","v":3.5070746160357213E-3},{"$f":"((Quarterly!DW145/Quarterly!DW141)-1)","v":6.2052219790760255E-3},{"$f":"((Quarterly!DX145/Quarterly!DX141)-1)","v":6.225193231668813E-3},{"$f":"((Quarterly!DY145/Quarterly!DY141)-1)","v":6.1852223336675838E-3},{"$f":"((Quarterly!DZ145/Quarterly!DZ141)-1)","v":6.2385116693590703E-3},{"$f":"((Quarterly!EA145/Quarterly!EA141)-1)","v":6.2612506848243044E-3},{"$f":"((Quarterly!EB145/Quarterly!EB141)-1)","v":6.1823802163831765E-3},{"$f":"((Quarterly!EC145/Quarterly!EC141)-1)","v":6.1544991511035541E-3},null,null,null,null,null,{"$f":"((Quarterly!EI145/Quarterly!EI141)-1)","v":4.224333114610257E-2},{"$f":"((Quarterly!EJ145/Quarterly!EJ141)-1)","v":3.2422494358602005E-2},{"$f":"((Quarterly!EK145/Quarterly!EK141)-1)","v":3.2107234191837142E-2},null,null,null,null,null,{"$f":"((Quarterly!EQ145/Quarterly!EQ141)-1)","v":1.4925373134328401E-2},{"$f":"((Quarterly!ER145/Quarterly!ER141)-1)","v":2.3090586145648295E-2},{"$f":"((Quarterly!ES145/Quarterly!ES141)-1)","v":1.891252955082745E-2},null,null,null,null,null,{"$f":"(Quarterly!EY145-Quarterly!EY141)*100","v":-239.33333333333334},{"$f":"(Quarterly!EZ145-Quarterly!EZ141)*100","v":-238.66666666666671},{"$f":"(Quarterly!FA145-Quarterly!FA141)*100","v":-80.666666666666757},{"$f":"(Quarterly!FB145-Quarterly!FB141)*100","v":-97.999999999999858},"--",{"$f":"(Quarterly!FD145-Quarterly!FD141)*100","v":-126.66666666666657},{"$f":"(Quarterly!FE145-Quarterly!FE141)*100","v":-229.33333333333326},{"$f":"(Quarterly!FF145-Quarterly!FF141)*100","v":-247.00000000000003},{"$f":"(Quarterly!FG145-Quarterly!FG141)*100","v":-236.33333333333331},{"$f":"(Quarterly!FH145-Quarterly!FH141)*100","v":-188.66666666666669},{"$f":"(Quarterly!FI145-Quarterly!FI141)*100","v":-132.33333333333331},null,null,null,null,null,null,{"$f":"((Quarterly!FP145/Quarterly!FP141)-1)","v":5.0735829812035504E-2},{"$f":"((Quarterly!FQ145/Quarterly!FQ141)-1)","v":1.7000750215454552E-2},"--","--",{"$f":"((Quarterly!FT145/Quarterly!FT141)-1)","v":-4.9533814908425677E-3},{"$f":"((Quarterly!FU145/Quarterly!FU141)-1)","v":-7.5032336297493729E-2},{"$f":"((Quarterly!FV145/Quarterly!FV141)-1)","v":7.7981193385009195E-2},{"$f":"((Quarterly!FW145/Quarterly!FW141)-1)","v":0.40118109535922009},{"$f":"((Quarterly!FX145/Quarterly!FX141)-1)","v":0.13388677121440828},null,null,null,null,null,{"$f":"((Quarterly!GD145/Quarterly!GD141)-1)","v":7.0807357808044813E-4},{"$f":"((Quarterly!GE145/Quarterly!GE141)-1)","v":9.7201273671860822E-3},{"$f":"((Quarterly!GF145/Quarterly!GF141)-1)","v":3.3104372899410484E-2},{"$f":"((Quarterly!GG145/Quarterly!GG141)-1)","v":3.3104372899410484E-2},{"$f":"((Quarterly!GH145/Quarterly!GH141)-1)","v":{"$error":"#DIV/0!"}},"--","--",{"$f":"((Quarterly!GK145/Quarterly!GK141)-1)","v":{"$error":"#VALUE!"}},"--"]
["92'Q4",{"$f":"((Quarterly!B146/Quarterly!B142)-1)","v":6.6608900105999069E-2},{"$f":"((Quarterly!C146/Quarterly!C142)-1)","v":4.3263619227269734E-2},{"$f":"((Quarterly!D146/Quarterly!D142)-1)","v":4.4663592563888521E-2},{"$f":"((Quarterly!E146/Quarterly!E142)-1)","v":4.9211047091994864E-2},{"$f":"((Quarterly!F146/Quarterly!F142)-1)","v":9.0036676502220025E-2},{"$f":"((Quarterly!G146/Quarterly!G142)-1)","v":3.5495145631067704E-2},{"$f":"((Quarterly!H146/Quarterly!H142)-1)","v":5.0240919667459805E-2},{"$f":"((Quarterly!I146/Quarterly!I142)-1)","v":7.2066606698324653E-2},{"$f":"((Quarterly!J146/Quarterly!J142)-1)","v":0.12800028938054697},{"$f":"((Quarterly!K146/Quarterly!K142)-1)","v":0.1308411214953269},{"$f":"((Quarterly!L146-Quarterly!L142))","v":-8.1789999999999985},{"$f":"((Quarterly!M146/Quarterly!M142)-1)","v":6.4859123194781265E-2},{"$f":"((Quarterly!N146/Quarterly!N142)-1)","v":4.5421098588745989E-2},{"$f":"((Quarterly!O146/Quarterly!O142)-1)","v":0.49640601176214694},{"$f":"((Quarterly!P146/Quarterly!P142)-1)","v":9.4648900876650455E-3},{"$f":"((Quarterly!Q146/Quarterly!Q142)-1)","v":0.1503307548029913},null,null,null,null,null,{"$f":"((Quarterly!W146/Quarterly!W142)-1)","v":1.13924050632912E-2},{"$f":"((Quarterly!X146/Quarterly!X142)-1)","v":1.0390689941812026E-2},{"$f":"((Quarterly!Y146/Quarterly!Y142)-1)","v":-3.6341673745304948E-2},{"$f":"Quarterly!Z146-Quarterly!Z142","v":-0.43999999999999995},{"$f":"((Quarterly!AA146/Quarterly!AA142)-1)","v":5.4262109772009737E-2},{"$f":"((Quarterly!AB146/Quarterly!AB142)-1)","v":6.0123021889434192E-2},{"$f":"Quarterly!AC146-Quarterly!AC142","v":-13.8},{"$f":"Quarterly!AD146-Quarterly!AD142","v":23.599999999999998},{"$f":"(Quarterly!AE146-Quarterly!AE142)*100","v":-64.999999999999986},{"$f":"(Quarterly!AF146-Quarterly!AF142)*100","v":-43.999999999999993},{"$f":"(Quarterly!AG146-Quarterly!AG142)*100","v":-31.000000000000007},"--","--","--","--","--",{"$f":"((Quarterly!AM146/Quarterly!AM142)-1)","v":3.5078914569439235E-2},{"$f":"((Quarterly!AN146/Quarterly!AN142)-1)","v":4.3409716609521087E-2},"--","--",{"$f":"Quarterly!AQ146-Quarterly!AQ142","v":2.9000000000000199},"--","--",{"$f":"Quarterly!AT146-Quarterly!AT142","v":3.4000000000000057},{"$f":"Quarterly!AU146-Quarterly!AU142","v":-1.5666666666666771},{"$f":"Quarterly!AV146-Quarterly!AV142","v":1.6666666666666643},{"$f":"Quarterly!AW146-Quarterly!AW142","v":2.4666666666666686},{"$f":"Quarterly!AX146-Quarterly!AX142","v":4.2000000000000028},{"$f":"Quarterly!AY146-Quarterly!AY142","v":-3.3333333333333357},{"$f":"Quarterly!AZ146-Quarterly!AZ142","v":2.6000000000000014},{"$f":"Quarterly!BA146-Quarterly!BA142","v":0.56666666666666288},"--","--",{"$f":"((Quarterly!BD146/Quarterly!BD142)-1)","v":5.8692591606103184E-2},{"$f":"((Quarterly!BE146/Quarterly!BE142)-1)","v":6.9205505161087366E-3},{"$f":"((Quarterly!BF146/Quarterly!BF142)-1)","v":5.5193100862392042E-2},{"$f":"((Quarterly!BG146/Quarterly!BG142)-1)","v":4.3914246196403717E-2},{"$f":"((Quarterly!BH146/Quarterly!BH142)-1)","v":2.8199192197813083E-2},{"$f":"((Quarterly!BI146/Quarterly!BI142)-1)","v":1.0811687097055822E-2},{"$f":"((Quarterly!BJ146/Quarterly!BJ142)-1)","v":0.17069851930798241},{"$f":"((Quarterly!BK146/Quarterly!BK142)-1)","v":-0.24309392265193364},null,"--","--",null,null,null,null,null,{"$f":"((Quarterly!BT146/Quarterly!BT142)-1)","v":-2.5889901560652295E-2},{"$f":"Quarterly!BU146-Quarterly!BU142","v":-0.66812000000000005},{"$f":"Quarterly!BV146-Quarterly!BV142","v":-0.73545000000000016},{"$f":"((Quarterly!BW146/Quarterly!BW142)-1)","v":0.10107910320580293},{"$f":"((Quarterly!BX146/Quarterly!BX142)-1)","v":0.13002146580803431},{"$f":"((Quarterly!BY146/Quarterly!BY142)-1)","v":0.12845849802371534},"--",{"$f":"((Quarterly!CA146/Quarterly!CA142)-1)","v":8.2638115166173032E-2},{"$f":"((Quarterly!CB146/Quarterly!CB142)-1)","v":4.210173160577324E-2},{"$f":"((Quarterly!CC146/Quarterly!CC142)-1)","v":4.059999867076769E-2},"--","--",null,"--","--",null,{"$f":"((Quarterly!CJ146/Quarterly!CJ142)-1)","v":0.13759806879903436},{"$f":"((Quarterly!CK146/Quarterly!CK142)-1)","v":6.7709675756482346E-2},{"$f":"((Quarterly!CL146/Quarterly!CL142)-1)","v":8.7255642251866661E-3},{"$f":"((Quarterly!CM146/Quarterly!CM142)-1)","v":0.18423932871214888},{"$f":"((Quarterly!CN146/Quarterly!CN142)-1)","v":4.020628598085807E-2},{"$f":"((Quarterly!CO146/Quarterly!CO142)-1)","v":0.14522955639559321},{"$f":"((Quarterly!CP146/Quarterly!CP142)-1)","v":5.6167614714641712E-3},{"$f":"((Quarterly!CQ146/Quarterly!CQ142)-1)","v":1.3484845907105969E-2},{"$f":"((Quarterly!CR146/Quarterly!CR142)-1)","v":5.2320483171532706E-2},{"$f":"Quarterly!CS146-Quarterly!CS142","v":11.333333333333343},"--",null,null,null,null,null,{"$f":"((Quarterly!CZ146/Quarterly!CZ142)-1)","v":3.1219748305905126E-2},{"$f":"((Quarterly!DA146/Quarterly!DA142)-1)","v":3.4674063800277599E-2},null,null,null,null,null,{"$f":"((Quarterly!DG146/Quarterly!DG142)-1)","v":1.3349514563106846E-2},{"$f":"((Quarterly!DH146-Quarterly!DH142)*60)","v":4.000000000000199},{"$f":"Quarterly!DI146-Quarterly!DI142","v":0.20000000000000284},"--",{"$f":"(Quarterly!DK146-Quarterly!DK142)*100","v":26.666666666666661},{"$f":"((Quarterly!DL146/Quarterly!DL142)-1)","v":-1.175406871609419E-2},null,null,null,{"$f":"((Quarterly!DP146/Quarterly!DP142)-1)","v":9.0683340667185863E-3},null,null,null,null,{"$f":"Quarterly!DU146-Quarterly!DU142","v":1.5999999999999996},{"$f":"((Quarterly!DV146/Quarterly!DV142)-1)","v":1.3898540653231484E-2},{"$f":"((Quarterly!DW146/Quarterly!DW142)-1)","v":1.229924174577568E-2},{"$f":"((Quarterly!DX146/Quarterly!DX142)-1)","v":1.2302065583309041E-2},{"$f":"((Quarterly!DY146/Quarterly!DY142)-1)","v":1.2506253126563394E-2},{"$f":"((Quarterly!DZ146/Quarterly!DZ142)-1)","v":1.223427812223199E-2},{"$f":"((Quarterly!EA146/Quarterly!EA142)-1)","v":1.2294763053459112E-2},{"$f":"((Quarterly!EB146/Quarterly!EB142)-1)","v":1.2085171686169405E-2},{"$f":"((Quarterly!EC146/Quarterly!EC142)-1)","v":1.2292041962488121E-2},null,null,null,null,null,{"$f":"((Quarterly!EI146/Quarterly!EI142)-1)","v":5.4697956192680142E-2},{"$f":"((Quarterly!EJ146/Quarterly!EJ142)-1)","v":4.8067881871411977E-2},{"$f":"((Quarterly!EK146/Quarterly!EK142)-1)","v":4.4783323604490999E-2},null,null,null,null,null,{"$f":"((Quarterly!EQ146/Quarterly!EQ142)-1)","v":1.3765414396329057E-2},{"$f":"((Quarterly!ER146/Quarterly!ER142)-1)","v":1.9627579265223849E-2},{"$f":"((Quarterly!ES146/Quarterly!ES142)-1)","v":1.6431924882629234E-2},null,null,null,null,null,{"$f":"(Quarterly!EY146-Quarterly!EY142)*100","v":-159.66666666666666},{"$f":"(Quarterly!EZ146-Quarterly!EZ142)*100","v":-177.99999999999997},{"$f":"(Quarterly!FA146-Quarterly!FA142)*100","v":-42.333333333333378},{"$f":"(Quarterly!FB146-Quarterly!FB142)*100","v":-52.999999999999936},"--",{"$f":"(Quarterly!FD146-Quarterly!FD142)*100","v":-48.333333333333428},{"$f":"(Quarterly!FE146-Quarterly!FE142)*100","v":-146.99999999999997},{"$f":"(Quarterly!FF146-Quarterly!FF142)*100","v":-130.33333333333323},{"$f":"(Quarterly!FG146-Quarterly!FG142)*100","v":-105.66666666666666},{"$f":"(Quarterly!FH146-Quarterly!FH142)*100","v":-65.333333333333329},{"$f":"(Quarterly!FI146-Quarterly!FI142)*100","v":-60.33333333333335},null,null,null,null,null,null,{"$f":"((Quarterly!FP146/Quarterly!FP142)-1)","v":0.11172462406015038},{"$f":"((Quarterly!FQ146/Quarterly!FQ142)-1)","v":4.6767359676334941E-2},"--","--",{"$f":"((Quarterly!FT146/Quarterly!FT142)-1)","v":6.6317359715083013E-2},{"$f":"((Quarterly!FU146/Quarterly!FU142)-1)","v":2.2509227358898487E-2},{"$f":"((Quarterly!FV146/Quarterly!FV142)-1)","v":9.0357397930076022E-2},{"$f":"((Quarterly!FW146/Quarterly!FW142)-1)","v":0.22535941387890501},{"$f":"((Quarterly!FX146/Quarterly!FX142)-1)","v":0.10881375853012076},null,null,null,null,null,{"$f":"((Quarterly!GD146/Quarterly!GD142)-1)","v":-5.7859224045391788E-2},{"$f":"((Quarterly!GE146/Quarterly!GE142)-1)","v":-6.6742264701117882E-2},{"$f":"((Quarterly!GF146/Quarterly!GF142)-1)","v":-1.1009684309078338E-2},{"$f":"((Quarterly!GG146/Quarterly!GG142)-1)","v":-1.1009684309078338E-2},{"$f":"((Quarterly!GH146/Quarterly!GH142)-1)","v":{"$error":"#DIV/0!"}},"--","--",{"$f":"((Quarterly!GK146/Quarterly!GK142)-1)","v":{"$error":"#VALUE!"}},"--"]
["93'Q1",{"$f":"((Quarterly!B147/Quarterly!B143)-1)","v":5.7576497485110734E-2},{"$f":"((Quarterly!C147/Quarterly!C143)-1)","v":3.3006319227881331E-2},{"$f":"((Quarterly!D147/Quarterly!D143)-1)","v":2.706285855812518E-2},{"$f":"((Quarterly!E147/Quarterly!E143)-1)","v":3.3777976415580779E-2},{"$f":"((Quarterly!F147/Quarterly!F143)-1)","v":5.9067027543384665E-2},{"$f":"((Quarterly!G147/Quarterly!G143)-1)","v":2.1336843555324281E-2},{"$f":"((Quarterly!H147/Quarterly!H143)-1)","v":3.5754617688830148E-2},{"$f":"((Quarterly!I147/Quarterly!I143)-1)","v":8.6682625677208192E-2},{"$f":"((Quarterly!J147/Quarterly!J143)-1)","v":0.1503774378085585},{"$f":"((Quarterly!K147/Quarterly!K143)-1)","v":8.080543933054396E-2},{"$f":"((Quarterly!L147-Quarterly!L143))","v":43.344000000000001},{"$f":"((Quarterly!M147/Quarterly!M143)-1)","v":8.0067054310529739E-2},{"$f":"((Quarterly!N147/Quarterly!N143)-1)","v":2.9191452923206684E-2},{"$f":"((Quarterly!O147/Quarterly!O143)-1)","v":1.5788854639844208},{"$f":"((Quarterly!P147/Quarterly!P143)-1)","v":-9.6611195587332777E-3},{"$f":"((Quarterly!Q147/Quarterly!Q143)-1)","v":4.8972929691109224E-2},null,null,null,null,null,{"$f":"((Quarterly!W147/Quarterly!W143)-1)","v":2.1628498727735312E-2},{"$f":"((Quarterly!X147/Quarterly!X143)-1)","v":2.1338912133891164E-2},{"$f":"((Quarterly!Y147/Quarterly!Y143)-1)","v":-2.7547779590232468E-2},{"$f":"Quarterly!Z147-Quarterly!Z143","v":-0.74},{"$f":"((Quarterly!AA147/Quarterly!AA143)-1)","v":5.5660298442152811E-3},{"$f":"((Quarterly!AB147/Quarterly!AB143)-1)","v":-1.5888872307312951E-2},{"$f":"Quarterly!AC147-Quarterly!AC143","v":0},{"$f":"Quarterly!AD147-Quarterly!AD143","v":43.800000000000004},{"$f":"(Quarterly!AE147-Quarterly!AE143)*100","v":-79},{"$f":"(Quarterly!AF147-Quarterly!AF143)*100","v":-74},{"$f":"(Quarterly!AG147-Quarterly!AG143)*100","v":-39},"--","--","--","--","--",{"$f":"((Quarterly!AM147/Quarterly!AM143)-1)","v":4.5555369439985505E-2},{"$f":"((Quarterly!AN147/Quarterly!AN143)-1)","v":5.2094437009708727E-2},{"$f":"((Quarterly!AO147/Quarterly!AO143)-1)","v":3.6344441527899951E-2},{"$f":"(Quarterly!AP147-Quarterly!AP143)*100","v":-4.3333333333333446},{"$f":"Quarterly!AQ147-Quarterly!AQ143","v":3.3000000000000043},"--","--",{"$f":"Quarterly!AT147-Quarterly!AT143","v":4.2666666666666728},{"$f":"Quarterly!AU147-Quarterly!AU143","v":-0.80000000000001137},{"$f":"Quarterly!AV147-Quarterly!AV143","v":1.4333333333333371},{"$f":"Quarterly!AW147-Quarterly!AW143","v":-0.29999999999999005},{"$f":"Quarterly!AX147-Quarterly!AX143","v":3.2000000000000099},{"$f":"Quarterly!AY147-Quarterly!AY143","v":5.9666666666666615},{"$f":"Quarterly!AZ147-Quarterly!AZ143","v":4.2999999999999901},{"$f":"Quarterly!BA147-Quarterly!BA143","v":2.7999999999999901},"--",{"$f":"((Quarterly!BC147/Quarterly!BC143)-1)","v":9.1827391676758019E-2},{"$f":"((Quarterly!BD147/Quarterly!BD143)-1)","v":5.1179108117741956E-2},{"$f":"((Quarterly!BE147/Quarterly!BE143)-1)","v":-4.7462983554749205E-2},{"$f":"((Quarterly!BF147/Quarterly!BF143)-1)","v":1.9061717564925029E-2},{"$f":"((Quarterly!BG147/Quarterly!BG143)-1)","v":1.5955878015690539E-2},{"$f":"((Quarterly!BH147/Quarterly!BH143)-1)","v":-6.8546051361266791E-3},{"$f":"((Quarterly!BI147/Quarterly!BI143)-1)","v":3.073567321039139E-3},{"$f":"((Quarterly!BJ147/Quarterly!BJ143)-1)","v":0.16729940454650127},{"$f":"((Quarterly!BK147/Quarterly!BK143)-1)","v":-0.51034482758620692},null,{"$f":"((Quarterly!BM147/Quarterly!BM143)-1)","v":5.9107073909244301E-2},{"$f":"((Quarterly!BN147/Quarterly!BN143)-1)","v":6.2530894710825402E-2},null,null,null,null,null,{"$f":"((Quarterly!BT147/Quarterly!BT143)-1)","v":-8.5559370119863143E-3},{"$f":"Quarterly!BU147-Quarterly!BU143","v":-0.44797999999999938},{"$f":"Quarterly!BV147-Quarterly!BV143","v":-0.50463999999999842},{"$f":"((Quarterly!BW147/Quarterly!BW143)-1)","v":9.3165906161830625E-2},{"$f":"((Quarterly!BX147/Quarterly!BX143)-1)","v":-5.9092130002685983E-2},{"$f":"((Quarterly!BY147/Quarterly!BY143)-1)","v":2.2995461422087748E-2},"--",{"$f":"((Quarterly!CA147/Quarterly!CA143)-1)","v":3.3858246806702574E-2},{"$f":"((Quarterly!CB147/Quarterly!CB143)-1)","v":4.4978943540190386E-3},{"$f":"((Quarterly!CC147/Quarterly!CC143)-1)","v":-7.6007906716920592E-3},"--","--",null,"--","--",null,{"$f":"((Quarterly!CJ147/Quarterly!CJ143)-1)","v":-3.5331905781584627E-2},{"$f":"((Quarterly!CK147/Quarterly!CK143)-1)","v":5.05592136353612E-2},{"$f":"((Quarterly!CL147/Quarterly!CL143)-1)","v":-3.6450202934748543E-2},{"$f":"((Quarterly!CM147/Quarterly!CM143)-1)","v":-1.2870012870012104E-3},{"$f":"((Quarterly!CN147/Quarterly!CN143)-1)","v":2.4064278473135303E-2},{"$f":"((Quarterly!CO147/Quarterly!CO143)-1)","v":9.5109363479970233E-2},{"$f":"((Quarterly!CP147/Quarterly!CP143)-1)","v":1.6252852507930182E-2},{"$f":"((Quarterly!CQ147/Quarterly!CQ143)-1)","v":1.3550984191605719E-2},{"$f":"((Quarterly!CR147/Quarterly!CR143)-1)","v":6.3599617492230198E-2},{"$f":"Quarterly!CS147-Quarterly!CS143","v":16.499999999999986},"--",null,null,null,null,null,{"$f":"((Quarterly!CZ147/Quarterly!CZ143)-1)","v":3.173076923076934E-2},{"$f":"((Quarterly!DA147/Quarterly!DA143)-1)","v":3.4601283226397772E-2},null,null,null,null,null,{"$f":"((Quarterly!DG147/Quarterly!DG143)-1)","v":2.3472278429785609E-2},{"$f":"((Quarterly!DH147-Quarterly!DH143)*60)","v":7.9999999999995453},{"$f":"Quarterly!DI147-Quarterly!DI143","v":-9.9999999999994316E-2},"--",{"$f":"(Quarterly!DK147-Quarterly!DK143)*100","v":-23.333333333333428},{"$f":"((Quarterly!DL147/Quarterly!DL143)-1)","v":-1.6246309908266587E-3},null,null,null,{"$f":"((Quarterly!DP147/Quarterly!DP143)-1)","v":1.4738908133317796E-2},null,null,null,null,{"$f":"Quarterly!DU147-Quarterly!DU143","v":0.33333333333333393},{"$f":"((Quarterly!DV147/Quarterly!DV143)-1)","v":3.5844250363901153E-2},{"$f":"((Quarterly!DW147/Quarterly!DW143)-1)","v":3.6064663417042286E-2},{"$f":"((Quarterly!DX147/Quarterly!DX143)-1)","v":3.6010606449405458E-2},{"$f":"((Quarterly!DY147/Quarterly!DY143)-1)","v":3.6308891250442787E-2},{"$f":"((Quarterly!DZ147/Quarterly!DZ143)-1)","v":3.5915651781686986E-2},{"$f":"((Quarterly!EA147/Quarterly!EA143)-1)","v":3.6045314109165894E-2},{"$f":"((Quarterly!EB147/Quarterly!EB143)-1)","v":3.5595540778407875E-2},{"$f":"((Quarterly!EC147/Quarterly!EC143)-1)","v":3.6204605845881144E-2},null,null,null,null,null,{"$f":"((Quarterly!EI147/Quarterly!EI143)-1)","v":4.8153683589544194E-2},{"$f":"((Quarterly!EJ147/Quarterly!EJ143)-1)","v":4.137895893279242E-2},{"$f":"((Quarterly!EK147/Quarterly!EK143)-1)","v":3.7583723217518905E-2},null,null,null,null,null,{"$f":"((Quarterly!EQ147/Quarterly!EQ143)-1)","v":2.1282714984181883E-2},{"$f":"((Quarterly!ER147/Quarterly!ER143)-1)","v":2.0275344180225474E-2},{"$f":"((Quarterly!ES147/Quarterly!ES143)-1)","v":1.791742404570229E-2},null,null,null,null,null,{"$f":"(Quarterly!EY147-Quarterly!EY143)*100","v":-50},{"$f":"(Quarterly!EZ147-Quarterly!EZ143)*100","v":-98.333333333333385},{"$f":"(Quarterly!FA147-Quarterly!FA143)*100","v":-54.666666666666508},{"$f":"(Quarterly!FB147-Quarterly!FB143)*100","v":-79.999999999999886},"--",{"$f":"(Quarterly!FD147-Quarterly!FD143)*100","v":-97.666666666666572},{"$f":"(Quarterly!FE147-Quarterly!FE143)*100","v":-93.333333333333357},{"$f":"(Quarterly!FF147-Quarterly!FF143)*100","v":-94.999999999999972},{"$f":"(Quarterly!FG147-Quarterly!FG143)*100","v":-114.00000000000006},{"$f":"(Quarterly!FH147-Quarterly!FH143)*100","v":-110.66666666666664},{"$f":"(Quarterly!FI147-Quarterly!FI143)*100","v":-102.33333333333334},null,null,null,null,null,null,{"$f":"((Quarterly!FP147/Quarterly!FP143)-1)","v":7.156607405729809E-2},{"$f":"((Quarterly!FQ147/Quarterly!FQ143)-1)","v":5.3937235564484265E-2},"--","--",{"$f":"((Quarterly!FT147/Quarterly!FT143)-1)","v":8.6043489446476107E-2},{"$f":"((Quarterly!FU147/Quarterly!FU143)-1)","v":4.127027649725723E-2},{"$f":"((Quarterly!FV147/Quarterly!FV143)-1)","v":0.13692055881058329},{"$f":"((Quarterly!FW147/Quarterly!FW143)-1)","v":0.21495216021869612},{"$f":"((Quarterly!FX147/Quarterly!FX143)-1)","v":0.14809202027228463},null,null,null,null,null,{"$f":"((Quarterly!GD147/Quarterly!GD143)-1)","v":4.8368616805626763E-2},{"$f":"((Quarterly!GE147/Quarterly!GE143)-1)","v":1.5044576523030928E-2},{"$f":"((Quarterly!GF147/Quarterly!GF143)-1)","v":3.1079370477432144E-2},{"$f":"((Quarterly!GG147/Quarterly!GG143)-1)","v":3.1079370477432144E-2},{"$f":"((Quarterly!GH147/Quarterly!GH143)-1)","v":{"$error":"#DIV/0!"}},"--","--",{"$f":"((Quarterly!GK147/Quarterly!GK143)-1)","v":{"$error":"#VALUE!"}},"--"]
["93'Q2",{"$f":"((Quarterly!B148/Quarterly!B144)-1)","v":5.1953090885062503E-2},{"$f":"((Quarterly!C148/Quarterly!C144)-1)","v":2.7815877734645333E-2},{"$f":"((Quarterly!D148/Quarterly!D144)-1)","v":2.744197268441817E-2},{"$f":"((Quarterly!E148/Quarterly!E144)-1)","v":3.5955132911068111E-2},{"$f":"((Quarterly!F148/Quarterly!F144)-1)","v":8.587841576853128E-2},{"$f":"((Quarterly!G148/Quarterly!G144)-1)","v":2.514937202780132E-2},{"$f":"((Quarterly!H148/Quarterly!H144)-1)","v":3.4973932186428192E-2},{"$f":"((Quarterly!I148/Quarterly!I144)-1)","v":7.2966872063937593E-2},{"$f":"((Quarterly!J148/Quarterly!J144)-1)","v":0.11555713744583063},{"$f":"((Quarterly!K148/Quarterly!K144)-1)","v":5.3148614609571876E-2},{"$f":"((Quarterly!L148-Quarterly!L144))","v":5.708000000000002},{"$f":"((Quarterly!M148/Quarterly!M144)-1)","v":8.455159946553481E-2},{"$f":"((Quarterly!N148/Quarterly!N144)-1)","v":4.1022169199247616E-2},{"$f":"((Quarterly!O148/Quarterly!O144)-1)","v":0.9476685492892416},{"$f":"((Quarterly!P148/Quarterly!P144)-1)","v":-7.2759047911079566E-3},{"$f":"((Quarterly!Q148/Quarterly!Q144)-1)","v":-7.6667290272354749E-2},null,null,null,null,null,{"$f":"((Quarterly!W148/Quarterly!W144)-1)","v":7.5376884422111434E-3},{"$f":"((Quarterly!X148/Quarterly!X144)-1)","v":7.4441687344912744E-3},{"$f":"((Quarterly!Y148/Quarterly!Y144)-1)","v":-2.4202230922846124E-2},{"$f":"Quarterly!Z148-Quarterly!Z144","v":-0.55000000000000004},{"$f":"((Quarterly!AA148/Quarterly!AA144)-1)","v":1.219040786222525E-2},{"$f":"((Quarterly!AB148/Quarterly!AB144)-1)","v":3.4196344749387375E-2},{"$f":"Quarterly!AC148-Quarterly!AC144","v":13.8},{"$f":"Quarterly!AD148-Quarterly!AD144","v":-12.7},{"$f":"(Quarterly!AE148-Quarterly!AE144)*100","v":-92},{"$f":"(Quarterly!AF148-Quarterly!AF144)*100","v":-55.000000000000007},{"$f":"(Quarterly!AG148-Quarterly!AG144)*100","v":-35},"--","--","--","--","--",{"$f":"((Quarterly!AM148/Quarterly!AM144)-1)","v":2.9547508259461397E-2},{"$f":"((Quarterly!AN148/Quarterly!AN144)-1)","v":3.4209845900667224E-2},{"$f":"((Quarterly!AO148/Quarterly!AO144)-1)","v":3.7649783329532172E-2},{"$f":"(Quarterly!AP148-Quarterly!AP144)*100","v":-2.3333333333333428},{"$f":"Quarterly!AQ148-Quarterly!AQ144","v":-3.6333333333333329},"--","--",{"$f":"Quarterly!AT148-Quarterly!AT144","v":-3.1666666666666572},{"$f":"Quarterly!AU148-Quarterly!AU144","v":-0.86666666666666003},{"$f":"Quarterly!AV148-Quarterly!AV144","v":-2.5999999999999943},{"$f":"Quarterly!AW148-Quarterly!AW144","v":0.89999999999999858},{"$f":"Quarterly!AX148-Quarterly!AX144","v":-6.6666666666666643},{"$f":"Quarterly!AY148-Quarterly!AY144","v":-1.4666666666666686},{"$f":"Quarterly!AZ148-Quarterly!AZ144","v":-5.63333333333334},{"$f":"Quarterly!BA148-Quarterly!BA144","v":2.1666666666666643},"--",{"$f":"((Quarterly!BC148/Quarterly!BC144)-1)","v":4.1198878221231583E-2},{"$f":"((Quarterly!BD148/Quarterly!BD144)-1)","v":2.8026905829596327E-2},{"$f":"((Quarterly!BE148/Quarterly!BE144)-1)","v":-2.8126905450325257E-3},{"$f":"((Quarterly!BF148/Quarterly!BF144)-1)","v":1.7347215934812033E-2},{"$f":"((Quarterly!BG148/Quarterly!BG144)-1)","v":1.6524574821228377E-3},{"$f":"((Quarterly!BH148/Quarterly!BH144)-1)","v":-8.9679081301009544E-3},{"$f":"((Quarterly!BI148/Quarterly!BI144)-1)","v":1.5676465489487201E-2},{"$f":"((Quarterly!BJ148/Quarterly!BJ144)-1)","v":0.17419609154761351},{"$f":"((Quarterly!BK148/Quarterly!BK144)-1)","v":-0.41666666666666663},null,{"$f":"((Quarterly!BM148/Quarterly!BM144)-1)","v":7.4400673549873675E-2},{"$f":"((Quarterly!BN148/Quarterly!BN144)-1)","v":7.3554880313614568E-2},null,null,null,null,null,{"$f":"((Quarterly!BT148/Quarterly!BT144)-1)","v":1.3977501299707207E-2},{"$f":"Quarterly!BU148-Quarterly!BU144","v":-0.31870999999999938},{"$f":"Quarterly!BV148-Quarterly!BV144","v":-0.36575000000000024},{"$f":"((Quarterly!BW148/Quarterly!BW144)-1)","v":9.0347582221466771E-2},{"$f":"((Quarterly!BX148/Quarterly!BX144)-1)","v":9.8322729901677119E-2},{"$f":"((Quarterly!BY148/Quarterly!BY144)-1)","v":5.652036627723378E-2},"--",{"$f":"((Quarterly!CA148/Quarterly!CA144)-1)","v":0.1077766518564709},{"$f":"((Quarterly!CB148/Quarterly!CB144)-1)","v":-4.5148334821154545E-2},{"$f":"((Quarterly!CC148/Quarterly!CC144)-1)","v":-5.3473119119212487E-2},"--","--",null,"--","--",null,{"$f":"((Quarterly!CJ148/Quarterly!CJ144)-1)","v":0.16745283018867907},{"$f":"((Quarterly!CK148/Quarterly!CK144)-1)","v":4.4039239457179136E-2},{"$f":"((Quarterly!CL148/Quarterly!CL144)-1)","v":-0.14881040342840268},{"$f":"((Quarterly!CM148/Quarterly!CM144)-1)","v":0.11301140174379598},{"$f":"((Quarterly!CN148/Quarterly!CN144)-1)","v":1.5257772921426493E-2},{"$f":"((Quarterly!CO148/Quarterly!CO144)-1)","v":6.5441612329579124E-2},{"$f":"((Quarterly!CP148/Quarterly!CP144)-1)","v":2.9560073565088718E-2},{"$f":"((Quarterly!CQ148/Quarterly!CQ144)-1)","v":1.3254585324360857E-2},{"$f":"((Quarterly!CR148/Quarterly!CR144)-1)","v":7.1993336707591116E-2},{"$f":"Quarterly!CS148-Quarterly!CS144","v":3.5333333333333172},"--",null,null,null,null,null,{"$f":"((Quarterly!CZ148/Quarterly!CZ144)-1)","v":3.1249999999999778E-2},{"$f":"((Quarterly!DA148/Quarterly!DA144)-1)","v":3.4302589731940003E-2},null,null,null,null,null,{"$f":"((Quarterly!DG148/Quarterly!DG144)-1)","v":2.4899598393574252E-2},{"$f":"((Quarterly!DH148-Quarterly!DH144)*60)","v":3.9999999999997726},{"$f":"Quarterly!DI148-Quarterly!DI144","v":-0.26666666666667993},"--",{"$f":"(Quarterly!DK148-Quarterly!DK144)*100","v":-53.333333333333414},{"$f":"((Quarterly!DL148/Quarterly!DL144)-1)","v":-4.1986849401886017E-3},null,null,null,{"$f":"((Quarterly!DP148/Quarterly!DP144)-1)","v":1.7585148818656027E-2},null,null,null,null,{"$f":"Quarterly!DU148-Quarterly!DU144","v":-0.39999999999999858},{"$f":"((Quarterly!DV148/Quarterly!DV144)-1)","v":3.6335103814582492E-2},{"$f":"((Quarterly!DW148/Quarterly!DW144)-1)","v":3.714926368098892E-2},{"$f":"((Quarterly!DX148/Quarterly!DX144)-1)","v":3.7076003703392146E-2},{"$f":"((Quarterly!DY148/Quarterly!DY144)-1)","v":3.7196486998450018E-2},{"$f":"((Quarterly!DZ148/Quarterly!DZ144)-1)","v":3.7037037037036979E-2},{"$f":"((Quarterly!EA148/Quarterly!EA144)-1)","v":3.7323943661971892E-2},{"$f":"((Quarterly!EB148/Quarterly!EB144)-1)","v":3.632850241545893E-2},{"$f":"((Quarterly!EC148/Quarterly!EC144)-1)","v":3.7337662337662447E-2},null,null,null,null,null,{"$f":"((Quarterly!EI148/Quarterly!EI144)-1)","v":4.1863924152220289E-2},{"$f":"((Quarterly!EJ148/Quarterly!EJ144)-1)","v":4.2020574750647022E-2},{"$f":"((Quarterly!EK148/Quarterly!EK144)-1)","v":3.8343178912425335E-2},null,null,null,null,null,{"$f":"((Quarterly!EQ148/Quarterly!EQ144)-1)","v":1.9914651493598834E-2},{"$f":"((Quarterly!ER148/Quarterly!ER144)-1)","v":1.8150174042764533E-2},{"$f":"((Quarterly!ES148/Quarterly!ES144)-1)","v":1.6537467700258324E-2},null,null,null,null,null,{"$f":"(Quarterly!EY148-Quarterly!EY144)*100","v":-50},{"$f":"(Quarterly!EZ148-Quarterly!EZ144)*100","v":-76.999999999999957},{"$f":"(Quarterly!FA148-Quarterly!FA144)*100","v":-86.999999999999915},{"$f":"(Quarterly!FB148-Quarterly!FB144)*100","v":-99.000000000000028},"--",{"$f":"(Quarterly!FD148-Quarterly!FD144)*100","v":-122.33333333333346},{"$f":"(Quarterly!FE148-Quarterly!FE144)*100","v":-71.333333333333286},{"$f":"(Quarterly!FF148-Quarterly!FF144)*100","v":-83.999999999999943},{"$f":"(Quarterly!FG148-Quarterly!FG144)*100","v":-121.33333333333334},{"$f":"(Quarterly!FH148-Quarterly!FH144)*100","v":-146.66666666666677},{"$f":"(Quarterly!FI148-Quarterly!FI144)*100","v":-138.66666666666686},null,null,null,null,null,null,{"$f":"((Quarterly!FP148/Quarterly!FP144)-1)","v":6.3726448011165671E-2},{"$f":"((Quarterly!FQ148/Quarterly!FQ144)-1)","v":4.192573846815173E-2},"--","--",{"$f":"((Quarterly!FT148/Quarterly!FT144)-1)","v":6.6478704045977555E-2},{"$f":"((Quarterly!FU148/Quarterly!FU144)-1)","v":3.894939802544517E-3},{"$f":"((Quarterly!FV148/Quarterly!FV144)-1)","v":0.14000124629033861},{"$f":"((Quarterly!FW148/Quarterly!FW144)-1)","v":0.28824837585584961},{"$f":"((Quarterly!FX148/Quarterly!FX144)-1)","v":0.12097273169222622},null,null,null,null,null,{"$f":"((Quarterly!GD148/Quarterly!GD144)-1)","v":-6.7308600018880282E-2},{"$f":"((Quarterly!GE148/Quarterly!GE144)-1)","v":-8.5709521427380309E-2},{"$f":"((Quarterly!GF148/Quarterly!GF144)-1)","v":-4.0489305732648306E-3},{"$f":"((Quarterly!GG148/Quarterly!GG144)-1)","v":-4.0489305732648306E-3},{"$f":"((Quarterly!GH148/Quarterly!GH144)-1)","v":{"$error":"#DIV/0!"}},"--","--",{"$f":"((Quarterly!GK148/Quarterly!GK144)-1)","v":{"$error":"#VALUE!"}},"--"]
["93'Q3",{"$f":"((Quarterly!B149/Quarterly!B145)-1)","v":4.823072723374966E-2},{"$f":"((Quarterly!C149/Quarterly!C145)-1)","v":2.2884595726842871E-2},{"$f":"((Quarterly!D149/Quarterly!D145)-1)","v":2.5591682031599783E-2},{"$f":"((Quarterly!E149/Quarterly!E145)-1)","v":3.6161264715320884E-2},{"$f":"((Quarterly!F149/Quarterly!F145)-1)","v":7.5055472418597224E-2},{"$f":"((Quarterly!G149/Quarterly!G145)-1)","v":2.9151956847831118E-2},{"$f":"((Quarterly!H149/Quarterly!H145)-1)","v":3.4849487545226765E-2},{"$f":"((Quarterly!I149/Quarterly!I145)-1)","v":6.5227404722327798E-2},{"$f":"((Quarterly!J149/Quarterly!J145)-1)","v":9.6533878180020016E-2},{"$f":"((Quarterly!K149/Quarterly!K145)-1)","v":8.7207841166122346E-2},{"$f":"((Quarterly!L149-Quarterly!L145))","v":-21.164000000000001},{"$f":"((Quarterly!M149/Quarterly!M145)-1)","v":8.1780829337618322E-2},{"$f":"((Quarterly!N149/Quarterly!N145)-1)","v":1.6684093652983734E-2},{"$f":"((Quarterly!O149/Quarterly!O145)-1)","v":1.5338743612864461},{"$f":"((Quarterly!P149/Quarterly!P145)-1)","v":-1.0271570628950677E-2},{"$f":"((Quarterly!Q149/Quarterly!Q145)-1)","v":-7.7779457686649289E-2},null,null,null,null,null,{"$f":"((Quarterly!W149/Quarterly!W145)-1)","v":2.5062656641603454E-3},{"$f":"((Quarterly!X149/Quarterly!X145)-1)","v":6.1983471074380514E-3},{"$f":"((Quarterly!Y149/Quarterly!Y145)-1)","v":-1.8902832447003304E-2},{"$f":"Quarterly!Z149-Quarterly!Z145","v":-0.62000000000000011},{"$f":"((Quarterly!AA149/Quarterly!AA145)-1)","v":0.10810247390107652},{"$f":"((Quarterly!AB149/Quarterly!AB145)-1)","v":0.13256197932821401},{"$f":"Quarterly!AC149-Quarterly!AC145","v":2.1000000000000014},{"$f":"Quarterly!AD149-Quarterly!AD145","v":6.9},{"$f":"(Quarterly!AE149-Quarterly!AE145)*100","v":-102},{"$f":"(Quarterly!AF149-Quarterly!AF145)*100","v":-62.000000000000014},{"$f":"(Quarterly!AG149-Quarterly!AG145)*100","v":-43.000000000000007},"--","--","--","--","--",{"$f":"((Quarterly!AM149/Quarterly!AM145)-1)","v":2.5885453545770432E-2},{"$f":"((Quarterly!AN149/Quarterly!AN145)-1)","v":2.5863779340935533E-2},{"$f":"((Quarterly!AO149/Quarterly!AO145)-1)","v":3.0906402490070262E-2},{"$f":"(Quarterly!AP149-Quarterly!AP145)*100","v":-1.6666666666666607},{"$f":"Quarterly!AQ149-Quarterly!AQ145","v":-1.7666666666666728},"--","--",{"$f":"Quarterly!AT149-Quarterly!AT145","v":-2.6333333333333329},{"$f":"Quarterly!AU149-Quarterly!AU145","v":-3.3000000000000043},{"$f":"Quarterly!AV149-Quarterly!AV145","v":1},{"$f":"Quarterly!AW149-Quarterly!AW145","v":0.36666666666667425},{"$f":"Quarterly!AX149-Quarterly!AX145","v":-2.56666666666667},{"$f":"Quarterly!AY149-Quarterly!AY145","v":-2.9333333333333371},{"$f":"Quarterly!AZ149-Quarterly!AZ145","v":-2.0999999999999943},{"$f":"Quarterly!BA149-Quarterly!BA145","v":3.3333333333331439E-2},"--",{"$f":"((Quarterly!BC149/Quarterly!BC145)-1)","v":6.469847539156981E-2},{"$f":"((Quarterly!BD149/Quarterly!BD145)-1)","v":4.3840735949403076E-3},{"$f":"((Quarterly!BE149/Quarterly!BE145)-1)","v":9.9891315087443644E-3},{"$f":"((Quarterly!BF149/Quarterly!BF145)-1)","v":6.2284108603438693E-3},{"$f":"((Quarterly!BG149/Quarterly!BG145)-1)","v":-5.3475935828877219E-3},{"$f":"((Quarterly!BH149/Quarterly!BH145)-1)","v":-1.7218051414682023E-2},{"$f":"((Quarterly!BI149/Quarterly!BI145)-1)","v":1.1633651138665213E-2},{"$f":"((Quarterly!BJ149/Quarterly!BJ145)-1)","v":0.30262972858950921},{"$f":"((Quarterly!BK149/Quarterly!BK145)-1)","v":-0.45925925925925926},null,{"$f":"((Quarterly!BM149/Quarterly!BM145)-1)","v":7.6791494304363273E-2},{"$f":"((Quarterly!BN149/Quarterly!BN145)-1)","v":7.51208005844195E-2},null,null,null,null,null,{"$f":"((Quarterly!BT149/Quarterly!BT145)-1)","v":4.6793824956543828E-2},{"$f":"Quarterly!BU149-Quarterly!BU145","v":-0.12685999999999886},{"$f":"Quarterly!BV149-Quarterly!BV145","v":-0.14522999999999975},{"$f":"((Quarterly!BW149/Quarterly!BW145)-1)","v":8.7811397661421431E-2},{"$f":"((Quarterly!BX149/Quarterly!BX145)-1)","v":9.7437341593917148E-2},{"$f":"((Quarterly!BY149/Quarterly!BY145)-1)","v":0.11500915192190342},"--",{"$f":"((Quarterly!CA149/Quarterly!CA145)-1)","v":7.2024834350706834E-2},{"$f":"((Quarterly!CB149/Quarterly!CB145)-1)","v":-0.10187279273566285},{"$f":"((Quarterly!CC149/Quarterly!CC145)-1)","v":-0.10430203920304415},"--","--",null,"--","--",null,{"$f":"((Quarterly!CJ149/Quarterly!CJ145)-1)","v":5.9069524307370669E-2},{"$f":"((Quarterly!CK149/Quarterly!CK145)-1)","v":3.9874486200822012E-2},{"$f":"((Quarterly!CL149/Quarterly!CL145)-1)","v":-0.19876117296534423},{"$f":"((Quarterly!CM149/Quarterly!CM145)-1)","v":0.11362889983579638},{"$f":"((Quarterly!CN149/Quarterly!CN145)-1)","v":1.142803453630159E-2},{"$f":"((Quarterly!CO149/Quarterly!CO145)-1)","v":4.9440217548528897E-2},{"$f":"((Quarterly!CP149/Quarterly!CP145)-1)","v":4.4312874044932782E-2},{"$f":"((Quarterly!CQ149/Quarterly!CQ145)-1)","v":1.2976982508157597E-2},{"$f":"((Quarterly!CR149/Quarterly!CR145)-1)","v":9.0517527124648334E-2},{"$f":"Quarterly!CS149-Quarterly!CS145","v":1.3000000000000114},"--",null,null,null,null,null,{"$f":"((Quarterly!CZ149/Quarterly!CZ145)-1)","v":2.8172348484848619E-2},{"$f":"((Quarterly!DA149/Quarterly!DA145)-1)","v":3.2461677186654603E-2},null,null,null,null,null,{"$f":"((Quarterly!DG149/Quarterly!DG145)-1)","v":3.0861723446893752E-2},{"$f":"((Quarterly!DH149-Quarterly!DH145)*60)","v":7.9999999999999716},{"$f":"Quarterly!DI149-Quarterly!DI145","v":-0.26666666666667993},"--",{"$f":"(Quarterly!DK149-Quarterly!DK145)*100","v":-83.3333333333333},{"$f":"((Quarterly!DL149/Quarterly!DL145)-1)","v":-2.2635665071580879E-3},null,null,null,{"$f":"((Quarterly!DP149/Quarterly!DP145)-1)","v":2.1522063865216934E-2},null,null,null,null,{"$f":"Quarterly!DU149-Quarterly!DU145","v":-0.43333333333333357},{"$f":"((Quarterly!DV149/Quarterly!DV145)-1)","v":4.8746685948421353E-2},{"$f":"((Quarterly!DW149/Quarterly!DW145)-1)","v":4.8948340582732452E-2},{"$f":"((Quarterly!DX149/Quarterly!DX145)-1)","v":4.887061949842253E-2},{"$f":"((Quarterly!DY149/Quarterly!DY145)-1)","v":4.9011463698288793E-2},{"$f":"((Quarterly!DZ149/Quarterly!DZ145)-1)","v":4.8823692222529802E-2},{"$f":"((Quarterly!EA149/Quarterly!EA145)-1)","v":4.9311659018433485E-2},{"$f":"((Quarterly!EB149/Quarterly!EB145)-1)","v":4.7619047619047672E-2},{"$f":"((Quarterly!EC149/Quarterly!EC145)-1)","v":4.9145749841805531E-2},null,null,null,null,null,{"$f":"((Quarterly!EI149/Quarterly!EI145)-1)","v":3.9325876916987079E-2},{"$f":"((Quarterly!EJ149/Quarterly!EJ145)-1)","v":4.2323046925207164E-2},{"$f":"((Quarterly!EK149/Quarterly!EK145)-1)","v":3.8193100831040994E-2},null,null,null,null,null,{"$f":"((Quarterly!EQ149/Quarterly!EQ145)-1)","v":8.4841628959275717E-3},{"$f":"((Quarterly!ER149/Quarterly!ER145)-1)","v":7.9365079365079083E-3},{"$f":"((Quarterly!ES149/Quarterly!ES145)-1)","v":1.7788089713843824E-2},null,null,null,null,null,{"$f":"(Quarterly!EY149-Quarterly!EY145)*100","v":-0.66666666666668206},{"$f":"(Quarterly!EZ149-Quarterly!EZ145)*100","v":-19.666666666666632},{"$f":"(Quarterly!FA149-Quarterly!FA145)*100","v":-108.6666666666666},{"$f":"(Quarterly!FB149-Quarterly!FB145)*100","v":-108.0000000000001},"--",{"$f":"(Quarterly!FD149-Quarterly!FD145)*100","v":-92.999999999999886},{"$f":"(Quarterly!FE149-Quarterly!FE145)*100","v":-7.9999999999999627},{"$f":"(Quarterly!FF149-Quarterly!FF145)*100","v":0.66666666666668206},{"$f":"(Quarterly!FG149-Quarterly!FG145)*100","v":-17.333333333333421},{"$f":"(Quarterly!FH149-Quarterly!FH145)*100","v":-65.666666666666629},{"$f":"(Quarterly!FI149-Quarterly!FI145)*100","v":-100.00000000000009},null,null,null,null,null,null,{"$f":"((Quarterly!FP149/Quarterly!FP145)-1)","v":8.4840248502329629E-2},{"$f":"((Quarterly!FQ149/Quarterly!FQ145)-1)","v":5.8818867395399543E-2},"--","--",{"$f":"((Quarterly!FT149/Quarterly!FT145)-1)","v":0.11671547487581435},{"$f":"((Quarterly!FU149/Quarterly!FU145)-1)","v":6.6240480024089887E-2},{"$f":"((Quarterly!FV149/Quarterly!FV145)-1)","v":0.10905523910563231},{"$f":"((Quarterly!FW149/Quarterly!FW145)-1)","v":0.21146839653180627},{"$f":"((Quarterly!FX149/Quarterly!FX145)-1)","v":9.5842969146595847E-2},null,null,null,null,null,{"$f":"((Quarterly!GD149/Quarterly!GD145)-1)","v":-0.17876974665825784},{"$f":"((Quarterly!GE149/Quarterly!GE145)-1)","v":-0.17858921161825703},{"$f":"((Quarterly!GF149/Quarterly!GF145)-1)","v":-5.6143688020171223E-2},{"$f":"((Quarterly!GG149/Quarterly!GG145)-1)","v":-4.2188504602840071E-2},{"$f":"((Quarterly!GH149/Quarterly!GH145)-1)","v":{"$error":"#DIV/0!"}},"--","--",{"$f":"((Quarterly!GK149/Quarterly!GK145)-1)","v":{"$error":"#VALUE!"}},"--"]
["93'Q4",{"$f":"((Quarterly!B150/Quarterly!B146)-1)","v":5.0061716570215964E-2},{"$f":"((Quarterly!C150/Quarterly!C146)-1)","v":2.6256340277730494E-2},{"$f":"((Quarterly!D150/Quarterly!D146)-1)","v":2.723923394863359E-2},{"$f":"((Quarterly!E150/Quarterly!E146)-1)","v":3.306571414264492E-2},{"$f":"((Quarterly!F150/Quarterly!F146)-1)","v":7.9487957903258355E-2},{"$f":"((Quarterly!G150/Quarterly!G146)-1)","v":2.6042604260426039E-2},{"$f":"((Quarterly!H150/Quarterly!H146)-1)","v":3.0988224724874724E-2},{"$f":"((Quarterly!I150/Quarterly!I146)-1)","v":7.5202934748672678E-2},{"$f":"((Quarterly!J150/Quarterly!J146)-1)","v":0.11324121706060675},{"$f":"((Quarterly!K150/Quarterly!K146)-1)","v":0.10452114730189588},{"$f":"((Quarterly!L150-Quarterly!L146))","v":-9.384999999999998},{"$f":"((Quarterly!M150/Quarterly!M146)-1)","v":9.8933720918516377E-2},{"$f":"((Quarterly!N150/Quarterly!N146)-1)","v":4.4206487318437571E-2},{"$f":"((Quarterly!O150/Quarterly!O146)-1)","v":0.94776460802661555},{"$f":"((Quarterly!P150/Quarterly!P146)-1)","v":-5.9906958661549714E-3},{"$f":"((Quarterly!Q150/Quarterly!Q146)-1)","v":-0.14256414600059286},null,null,null,null,null,{"$f":"((Quarterly!W150/Quarterly!W146)-1)","v":1.3767209011263937E-2},{"$f":"((Quarterly!X150/Quarterly!X146)-1)","v":1.2340600575894811E-2},{"$f":"((Quarterly!Y150/Quarterly!Y146)-1)","v":-2.1579161988392159E-2},{"$f":"Quarterly!Z150-Quarterly!Z146","v":-0.62000000000000011},{"$f":"((Quarterly!AA150/Quarterly!AA146)-1)","v":0.14409298004479765},{"$f":"((Quarterly!AB150/Quarterly!AB146)-1)","v":0.14879631365387302},{"$f":"Quarterly!AC150-Quarterly!AC146","v":5.1999999999999993},{"$f":"Quarterly!AD150-Quarterly!AD146","v":19},{"$f":"(Quarterly!AE150-Quarterly!AE146)*100","v":-108},{"$f":"(Quarterly!AF150-Quarterly!AF146)*100","v":-62.000000000000014},{"$f":"(Quarterly!AG150-Quarterly!AG146)*100","v":-45.000000000000007},"--","--","--","--","--",{"$f":"((Quarterly!AM150/Quarterly!AM146)-1)","v":3.0475480130480737E-2},{"$f":"((Quarterly!AN150/Quarterly!AN146)-1)","v":3.5122453297833811E-2},{"$f":"((Quarterly!AO150/Quarterly!AO146)-1)","v":3.3670884349976671E-2},{"$f":"(Quarterly!AP150-Quarterly!AP146)*100","v":-2.3333333333333428},{"$f":"Quarterly!AQ150-Quarterly!AQ146","v":1.5666666666666487},"--","--",{"$f":"Quarterly!AT150-Quarterly!AT146","v":0.29999999999999005},{"$f":"Quarterly!AU150-Quarterly!AU146","v":1.0333333333333314},{"$f":"Quarterly!AV150-Quarterly!AV146","v":1.3666666666666671},{"$f":"Quarterly!AW150-Quarterly!AW146","v":2.6000000000000085},{"$f":"Quarterly!AX150-Quarterly!AX146","v":2.6999999999999957},{"$f":"Quarterly!AY150-Quarterly!AY146","v":6.7333333333333272},{"$f":"Quarterly!AZ150-Quarterly!AZ146","v":1.3666666666666671},{"$f":"Quarterly!BA150-Quarterly!BA146","v":0.56666666666666288},"--",{"$f":"((Quarterly!BC150/Quarterly!BC146)-1)","v":0.1024019890778316},{"$f":"((Quarterly!BD150/Quarterly!BD146)-1)","v":1.7071899653170908E-2},{"$f":"((Quarterly!BE150/Quarterly!BE146)-1)","v":1.2619888944975788E-3},{"$f":"((Quarterly!BF150/Quarterly!BF146)-1)","v":6.8936109729229589E-3},{"$f":"((Quarterly!BG150/Quarterly!BG146)-1)","v":-6.4950962743205443E-3},{"$f":"((Quarterly!BH150/Quarterly!BH146)-1)","v":-1.5808761886512368E-2},{"$f":"((Quarterly!BI150/Quarterly!BI146)-1)","v":1.3471834982358377E-2},{"$f":"((Quarterly!BJ150/Quarterly!BJ146)-1)","v":0.29647357903958138},{"$f":"((Quarterly!BK150/Quarterly!BK146)-1)","v":-0.45255474452554745},null,{"$f":"((Quarterly!BM150/Quarterly!BM146)-1)","v":7.6343352742660242E-2},{"$f":"((Quarterly!BN150/Quarterly!BN146)-1)","v":7.9360516635472056E-2},null,null,null,null,null,{"$f":"((Quarterly!BT150/Quarterly!BT146)-1)","v":7.9000206771726811E-2},{"$f":"Quarterly!BU150-Quarterly!BU146","v":-8.5829999999999629E-2},{"$f":"Quarterly!BV150-Quarterly!BV146","v":-0.10936999999999841},{"$f":"((Quarterly!BW150/Quarterly!BW146)-1)","v":8.7094928106445257E-2},{"$f":"((Quarterly!BX150/Quarterly!BX146)-1)","v":0.16716417910447778},{"$f":"((Quarterly!BY150/Quarterly!BY146)-1)","v":0.19819030939871563},"--",{"$f":"((Quarterly!CA150/Quarterly!CA146)-1)","v":9.9924698795180511E-2},{"$f":"((Quarterly!CB150/Quarterly!CB146)-1)","v":-0.10357688387102471},{"$f":"((Quarterly!CC150/Quarterly!CC146)-1)","v":-0.10224884181086114},"--","--",null,"--","--",null,{"$f":"((Quarterly!CJ150/Quarterly!CJ146)-1)","v":0.21220159151193618},{"$f":"((Quarterly!CK150/Quarterly!CK146)-1)","v":4.0126735063367613E-2},{"$f":"((Quarterly!CL150/Quarterly!CL146)-1)","v":-0.16568244198619309},{"$f":"((Quarterly!CM150/Quarterly!CM146)-1)","v":0.15619223659889103},{"$f":"((Quarterly!CN150/Quarterly!CN146)-1)","v":1.4597460968301501E-2},{"$f":"((Quarterly!CO150/Quarterly!CO146)-1)","v":2.9537888619308061E-2},{"$f":"((Quarterly!CP150/Quarterly!CP146)-1)","v":6.7023637994235719E-2},{"$f":"((Quarterly!CQ150/Quarterly!CQ146)-1)","v":1.2707558291936705E-2},{"$f":"((Quarterly!CR150/Quarterly!CR146)-1)","v":0.10735395518920066},{"$f":"Quarterly!CS150-Quarterly!CS146","v":0.83333333333334281},"--",null,null,null,null,null,{"$f":"((Quarterly!CZ150/Quarterly!CZ146)-1)","v":2.7693029805210045E-2},{"$f":"((Quarterly!DA150/Quarterly!DA146)-1)","v":3.1277926720285842E-2},null,null,null,null,null,{"$f":"((Quarterly!DG150/Quarterly!DG146)-1)","v":3.6726546906187485E-2},{"$f":"((Quarterly!DH150-Quarterly!DH146)*60)","v":11.999999999999744},{"$f":"Quarterly!DI150-Quarterly!DI146","v":6.6666666666662877E-2},"--",{"$f":"(Quarterly!DK150-Quarterly!DK146)*100","v":-73.333333333333428},{"$f":"((Quarterly!DL150/Quarterly!DL146)-1)","v":2.2872827081428238E-3},null,null,null,{"$f":"((Quarterly!DP150/Quarterly!DP146)-1)","v":2.4780131981800624E-2},null,null,null,null,{"$f":"Quarterly!DU150-Quarterly!DU146","v":-0.89999999999999858},{"$f":"((Quarterly!DV150/Quarterly!DV146)-1)","v":5.0421670590338641E-2},{"$f":"((Quarterly!DW150/Quarterly!DW146)-1)","v":4.8451784134473819E-2},{"$f":"((Quarterly!DX150/Quarterly!DX146)-1)","v":4.8404975982264009E-2},{"$f":"((Quarterly!DY150/Quarterly!DY146)-1)","v":4.8583662714097642E-2},{"$f":"((Quarterly!DZ150/Quarterly!DZ146)-1)","v":4.8345638501503752E-2},{"$f":"((Quarterly!EA150/Quarterly!EA146)-1)","v":4.8812360673379906E-2},{"$f":"((Quarterly!EB150/Quarterly!EB146)-1)","v":4.7194844579226514E-2},{"$f":"((Quarterly!EC150/Quarterly!EC146)-1)","v":4.8571129488119036E-2},null,null,null,null,null,{"$f":"((Quarterly!EI150/Quarterly!EI146)-1)","v":4.792590744519809E-2},{"$f":"((Quarterly!EJ150/Quarterly!EJ146)-1)","v":4.1353451424185117E-2},{"$f":"((Quarterly!EK150/Quarterly!EK146)-1)","v":3.5855110471549656E-2},null,null,null,null,null,{"$f":"((Quarterly!EQ150/Quarterly!EQ146)-1)","v":9.0523338048089652E-3},{"$f":"((Quarterly!ER150/Quarterly!ER146)-1)","v":1.9743336623889718E-3},{"$f":"((Quarterly!ES150/Quarterly!ES146)-1)","v":1.719271234282771E-2},null,null,null,null,null,{"$f":"(Quarterly!EY150-Quarterly!EY146)*100","v":0},{"$f":"(Quarterly!EZ150-Quarterly!EZ146)*100","v":-4.6666666666666856},{"$f":"(Quarterly!FA150-Quarterly!FA146)*100","v":-117.99999999999997},{"$f":"(Quarterly!FB150-Quarterly!FB146)*100","v":-131.66666666666654},"--",{"$f":"(Quarterly!FD150-Quarterly!FD146)*100","v":-115.33333333333316},{"$f":"(Quarterly!FE150-Quarterly!FE146)*100","v":-1.0000000000000231},{"$f":"(Quarterly!FF150-Quarterly!FF146)*100","v":-3.6666666666667069},{"$f":"(Quarterly!FG150-Quarterly!FG146)*100","v":-36.333333333333243},{"$f":"(Quarterly!FH150-Quarterly!FH146)*100","v":-93.333333333333272},{"$f":"(Quarterly!FI150-Quarterly!FI146)*100","v":-113.66666666666667},null,null,null,null,null,null,{"$f":"((Quarterly!FP150/Quarterly!FP146)-1)","v":5.0010567473317113E-2},{"$f":"((Quarterly!FQ150/Quarterly!FQ146)-1)","v":2.7002344955987967E-2},"--","--",{"$f":"((Quarterly!FT150/Quarterly!FT146)-1)","v":8.8509750967676437E-2},{"$f":"((Quarterly!FU150/Quarterly!FU146)-1)","v":2.3282777367898522E-2},{"$f":"((Quarterly!FV150/Quarterly!FV146)-1)","v":0.12393414157700522},{"$f":"((Quarterly!FW150/Quarterly!FW146)-1)","v":0.199593874270243},{"$f":"((Quarterly!FX150/Quarterly!FX146)-1)","v":0.16978172929240487},null,null,null,null,null,{"$f":"((Quarterly!GD150/Quarterly!GD146)-1)","v":-0.1966730146328759},{"$f":"((Quarterly!GE150/Quarterly!GE146)-1)","v":-0.20951223745877456},{"$f":"((Quarterly!GF150/Quarterly!GF146)-1)","v":-0.12332446816378584},{"$f":"((Quarterly!GG150/Quarterly!GG146)-1)","v":3.0201729447647541E-2},{"$f":"((Quarterly!GH150/Quarterly!GH146)-1)","v":{"$error":"#DIV/0!"}},"--","--",{"$f":"((Quarterly!GK150/Quarterly!GK146)-1)","v":{"$error":"#VALUE!"}},"--"]
["94'Q1",{"$f":"((Quarterly!B151/Quarterly!B147)-1)","v":5.7508377811979594E-2},{"$f":"((Quarterly!C151/Quarterly!C147)-1)","v":3.4389724603979266E-2},{"$f":"((Quarterly!D151/Quarterly!D147)-1)","v":3.3593718961398622E-2},{"$f":"((Quarterly!E151/Quarterly!E147)-1)","v":4.0938492492392786E-2},{"$f":"((Quarterly!F151/Quarterly!F147)-1)","v":9.455802766085375E-2},{"$f":"((Quarterly!G151/Quarterly!G147)-1)","v":3.8724953916705607E-2},{"$f":"((Quarterly!H151/Quarterly!H147)-1)","v":3.6440206568343347E-2},{"$f":"((Quarterly!I151/Quarterly!I147)-1)","v":7.6792270531400586E-2},{"$f":"((Quarterly!J151/Quarterly!J147)-1)","v":0.11562480106387896},{"$f":"((Quarterly!K151/Quarterly!K147)-1)","v":0.12291313815630289},{"$f":"((Quarterly!L151-Quarterly!L147))","v":8.6850000000000023},{"$f":"((Quarterly!M151/Quarterly!M147)-1)","v":0.10070565087787209},{"$f":"((Quarterly!N151/Quarterly!N147)-1)","v":5.2074624689498528E-2},{"$f":"((Quarterly!O151/Quarterly!O147)-1)","v":0.67246992215145074},{"$f":"((Quarterly!P151/Quarterly!P147)-1)","v":-7.0205934727382013E-3},{"$f":"((Quarterly!Q151/Quarterly!Q147)-1)","v":-0.21763766396956064},null,null,null,null,null,{"$f":"((Quarterly!W151/Quarterly!W147)-1)","v":1.3698630136986356E-2},{"$f":"((Quarterly!X151/Quarterly!X147)-1)","v":1.3928717738631802E-2},{"$f":"((Quarterly!Y151/Quarterly!Y147)-1)","v":-5.6133575114036827E-3},{"$f":"Quarterly!Z151-Quarterly!Z147","v":-0.47},{"$f":"((Quarterly!AA151/Quarterly!AA147)-1)","v":0.23623553803624442},{"$f":"((Quarterly!AB151/Quarterly!AB147)-1)","v":0.25968198164183631},{"$f":"Quarterly!AC151-Quarterly!AC147","v":6.8999999999999986},{"$f":"Quarterly!AD151-Quarterly!AD147","v":-5.9000000000000021},{"$f":"(Quarterly!AE151-Quarterly!AE147)*100","v":-105},{"$f":"(Quarterly!AF151-Quarterly!AF147)*100","v":-47},{"$f":"(Quarterly!AG151-Quarterly!AG147)*100","v":-38},"--","--","--","--","--",{"$f":"((Quarterly!AM151/Quarterly!AM147)-1)","v":3.4023329344773146E-2},{"$f":"((Quarterly!AN151/Quarterly!AN147)-1)","v":3.7066534803467777E-2},{"$f":"((Quarterly!AO151/Quarterly!AO147)-1)","v":3.1988760244486159E-2},{"$f":"(Quarterly!AP151-Quarterly!AP147)*100","v":-3.6666666666666625},{"$f":"Quarterly!AQ151-Quarterly!AQ147","v":1.6333333333333329},{"$f":"Quarterly!AR151-Quarterly!AR147","v":1.3333333333333357},"--",{"$f":"Quarterly!AT151-Quarterly!AT147","v":1.1333333333333329},{"$f":"Quarterly!AU151-Quarterly!AU147","v":3.3000000000000114},{"$f":"Quarterly!AV151-Quarterly!AV147","v":2.5999999999999943},{"$f":"Quarterly!AW151-Quarterly!AW147","v":0},{"$f":"Quarterly!AX151-Quarterly!AX147","v":2.5666666666666629},{"$f":"Quarterly!AY151-Quarterly!AY147","v":9.1666666666666714},{"$f":"Quarterly!AZ151-Quarterly!AZ147","v":0.53333333333333854},{"$f":"Quarterly!BA151-Quarterly!BA147","v":3.3666666666666742},"--",{"$f":"((Quarterly!BC151/Quarterly!BC147)-1)","v":0.10716153582571386},{"$f":"((Quarterly!BD151/Quarterly!BD147)-1)","v":1.6365940283057601E-2},{"$f":"((Quarterly!BE151/Quarterly!BE147)-1)","v":2.0930613582370805E-2},{"$f":"((Quarterly!BF151/Quarterly!BF147)-1)","v":9.9533715925395061E-3},{"$f":"((Quarterly!BG151/Quarterly!BG147)-1)","v":5.007692977617717E-3},{"$f":"((Quarterly!BH151/Quarterly!BH147)-1)","v":-1.0583746476135025E-2},{"$f":"((Quarterly!BI151/Quarterly!BI147)-1)","v":4.9174656518731208E-3},{"$f":"((Quarterly!BJ151/Quarterly!BJ147)-1)","v":0.37508736725813363},{"$f":"((Quarterly!BK151/Quarterly!BK147)-1)","v":-0.6619718309859155},null,{"$f":"((Quarterly!BM151/Quarterly!BM147)-1)","v":8.3689578952215848E-2},{"$f":"((Quarterly!BN151/Quarterly!BN147)-1)","v":8.8221924876918267E-2},null,null,null,null,null,{"$f":"((Quarterly!BT151/Quarterly!BT147)-1)","v":9.0708362339038784E-2},{"$f":"Quarterly!BU151-Quarterly!BU147","v":-1.4260000000000161E-2},{"$f":"Quarterly!BV151-Quarterly!BV147","v":4.1900000000000048E-2},{"$f":"((Quarterly!BW151/Quarterly!BW147)-1)","v":9.3848080372932463E-2},{"$f":"((Quarterly!BX151/Quarterly!BX147)-1)","v":0.19126463031687124},{"$f":"((Quarterly!BY151/Quarterly!BY147)-1)","v":0.18337769890564926},"--",{"$f":"((Quarterly!CA151/Quarterly!CA147)-1)","v":0.16107572177129348},{"$f":"((Quarterly!CB151/Quarterly!CB147)-1)","v":-0.11647740523878281},{"$f":"((Quarterly!CC151/Quarterly!CC147)-1)","v":-0.10438956175412084},"--","--",null,"--","--",null,{"$f":"((Quarterly!CJ151/Quarterly!CJ147)-1)","v":0.13873473917869039},{"$f":"((Quarterly!CK151/Quarterly!CK147)-1)","v":4.3021909805732506E-2},{"$f":"((Quarterly!CL151/Quarterly!CL147)-1)","v":-0.22835155933576345},{"$f":"((Quarterly!CM151/Quarterly!CM147)-1)","v":0.15302835051546393},{"$f":"((Quarterly!CN151/Quarterly!CN147)-1)","v":1.5995844216943444E-2},{"$f":"((Quarterly!CO151/Quarterly!CO147)-1)","v":3.1642728904847317E-2},{"$f":"((Quarterly!CP151/Quarterly!CP147)-1)","v":8.4802567507492377E-2},{"$f":"((Quarterly!CQ151/Quarterly!CQ147)-1)","v":1.2415835210814352E-2},{"$f":"((Quarterly!CR151/Quarterly!CR147)-1)","v":0.11572214573180517},{"$f":"Quarterly!CS151-Quarterly!CS147","v":5.7333333333333485},"--",null,null,null,null,null,{"$f":"((Quarterly!CZ151/Quarterly!CZ147)-1)","v":2.5396085740913454E-2},{"$f":"((Quarterly!DA151/Quarterly!DA147)-1)","v":2.901439645625703E-2},null,null,null,null,null,{"$f":"((Quarterly!DG151/Quarterly!DG147)-1)","v":3.5587188612099752E-2},{"$f":"((Quarterly!DH151-Quarterly!DH147)*60)","v":8.0000000000003979},{"$f":"Quarterly!DI151-Quarterly!DI147","v":0.36666666666666003},"--",{"$f":"(Quarterly!DK151-Quarterly!DK147)*100","v":-56.666666666666643},{"$f":"((Quarterly!DL151/Quarterly!DL147)-1)","v":4.4253934234286252E-3},null,null,null,{"$f":"((Quarterly!DP151/Quarterly!DP147)-1)","v":2.6581860184508477E-2},null,null,null,null,{"$f":"Quarterly!DU151-Quarterly!DU147","v":0.5},{"$f":"((Quarterly!DV151/Quarterly!DV147)-1)","v":4.4323438140406513E-2},{"$f":"((Quarterly!DW151/Quarterly!DW147)-1)","v":4.4099693297203757E-2},{"$f":"((Quarterly!DX151/Quarterly!DX147)-1)","v":4.2313408190224555E-2},{"$f":"((Quarterly!DY151/Quarterly!DY147)-1)","v":5.5546060502478234E-2},{"$f":"((Quarterly!DZ151/Quarterly!DZ147)-1)","v":3.8099384967071215E-2},{"$f":"((Quarterly!EA151/Quarterly!EA147)-1)","v":3.853800275271424E-2},{"$f":"((Quarterly!EB151/Quarterly!EB147)-1)","v":3.7016052880075589E-2},{"$f":"((Quarterly!EC151/Quarterly!EC147)-1)","v":4.8723154183139439E-2},null,null,null,null,null,{"$f":"((Quarterly!EI151/Quarterly!EI147)-1)","v":5.7211040374165023E-2},{"$f":"((Quarterly!EJ151/Quarterly!EJ147)-1)","v":4.7570099423807966E-2},{"$f":"((Quarterly!EK151/Quarterly!EK147)-1)","v":4.1511555456338778E-2},null,null,null,null,null,{"$f":"((Quarterly!EQ151/Quarterly!EQ147)-1)","v":8.44832441565746E-3},{"$f":"((Quarterly!ER151/Quarterly!ER147)-1)","v":3.4347399411187585E-3},{"$f":"((Quarterly!ES151/Quarterly!ES147)-1)","v":1.8622448979591866E-2},null,null,null,null,null,{"$f":"(Quarterly!EY151-Quarterly!EY147)*100","v":1.9999999999999574},{"$f":"(Quarterly!EZ151-Quarterly!EZ147)*100","v":17.333333333333378},{"$f":"(Quarterly!FA151-Quarterly!FA147)*100","v":-57.333333333333414},{"$f":"(Quarterly!FB151-Quarterly!FB147)*100","v":-55.666666666666757},"--",{"$f":"(Quarterly!FD151-Quarterly!FD147)*100","v":-43.666666666666657},{"$f":"(Quarterly!FE151-Quarterly!FE147)*100","v":28.33333333333341},{"$f":"(Quarterly!FF151-Quarterly!FF147)*100","v":50.333333333333343},{"$f":"(Quarterly!FG151-Quarterly!FG147)*100","v":39.000000000000057},{"$f":"(Quarterly!FH151-Quarterly!FH147)*100","v":-0.66666666666668206},{"$f":"(Quarterly!FI151-Quarterly!FI147)*100","v":-21.333333333333382},null,null,null,null,null,null,{"$f":"((Quarterly!FP151/Quarterly!FP147)-1)","v":6.3114234386558055E-2},{"$f":"((Quarterly!FQ151/Quarterly!FQ147)-1)","v":0.511676534296029},"--","--",{"$f":"((Quarterly!FT151/Quarterly!FT147)-1)","v":0.10081156880355779},{"$f":"((Quarterly!FU151/Quarterly!FU147)-1)","v":8.2508733637220999E-4},{"$f":"((Quarterly!FV151/Quarterly!FV147)-1)","v":7.5677727826309216E-2},{"$f":"((Quarterly!FW151/Quarterly!FW147)-1)","v":0.21393399856518625},{"$f":"((Quarterly!FX151/Quarterly!FX147)-1)","v":0.2244065522688421},null,null,null,null,null,{"$f":"((Quarterly!GD151/Quarterly!GD147)-1)","v":-0.25279529213955443},{"$f":"((Quarterly!GE151/Quarterly!GE147)-1)","v":-0.23311985361390664},{"$f":"((Quarterly!GF151/Quarterly!GF147)-1)","v":-7.9842660118982001E-2},{"$f":"((Quarterly!GG151/Quarterly!GG147)-1)","v":1.6051599662843197E-2},{"$f":"((Quarterly!GH151/Quarterly!GH147)-1)","v":{"$error":"#DIV/0!"}},"--","--",{"$f":"((Quarterly!GK151/Quarterly!GK147)-1)","v":{"$error":"#VALUE!"}},"--"]
["94'Q2",{"$f":"((Quarterly!B152/Quarterly!B148)-1)","v":6.4462543454266719E-2},{"$f":"((Quarterly!C152/Quarterly!C148)-1)","v":4.2328429661018685E-2},{"$f":"((Quarterly!D152/Quarterly!D148)-1)","v":3.4455791263618529E-2},{"$f":"((Quarterly!E152/Quarterly!E148)-1)","v":3.9684240017139327E-2},{"$f":"((Quarterly!F152/Quarterly!F148)-1)","v":7.1539506891865612E-2},{"$f":"((Quarterly!G152/Quarterly!G148)-1)","v":3.8686847661244972E-2},{"$f":"((Quarterly!H152/Quarterly!H148)-1)","v":3.6822012206373822E-2},{"$f":"((Quarterly!I152/Quarterly!I148)-1)","v":7.2364056784367081E-2},{"$f":"((Quarterly!J152/Quarterly!J148)-1)","v":0.10871083119098635},{"$f":"((Quarterly!K152/Quarterly!K148)-1)","v":0.14685481942119094},{"$f":"((Quarterly!L152-Quarterly!L148))","v":67.66},{"$f":"((Quarterly!M152/Quarterly!M148)-1)","v":0.11860736177793885},{"$f":"((Quarterly!N152/Quarterly!N148)-1)","v":7.4719017211228422E-2},{"$f":"((Quarterly!O152/Quarterly!O148)-1)","v":0.58374425641600691},{"$f":"((Quarterly!P152/Quarterly!P148)-1)","v":-2.3206257610438596E-3},{"$f":"((Quarterly!Q152/Quarterly!Q148)-1)","v":-0.22613546493767933},null,null,null,null,null,{"$f":"((Quarterly!W152/Quarterly!W148)-1)","v":2.9925187032418865E-2},{"$f":"((Quarterly!X152/Quarterly!X148)-1)","v":2.6272577996715896E-2},{"$f":"((Quarterly!Y152/Quarterly!Y148)-1)","v":2.8642618595618785E-2},{"$f":"Quarterly!Z152-Quarterly!Z148","v":-0.49},{"$f":"((Quarterly!AA152/Quarterly!AA148)-1)","v":0.21853527684679097},{"$f":"((Quarterly!AB152/Quarterly!AB148)-1)","v":0.24040731516821623},{"$f":"Quarterly!AC152-Quarterly!AC148","v":5.9000000000000021},{"$f":"Quarterly!AD152-Quarterly!AD148","v":25.8},{"$f":"(Quarterly!AE152-Quarterly!AE148)*100","v":-101},{"$f":"(Quarterly!AF152-Quarterly!AF148)*100","v":-49},{"$f":"(Quarterly!AG152-Quarterly!AG148)*100","v":-35},"--","--","--","--","--",{"$f":"((Quarterly!AM152/Quarterly!AM148)-1)","v":5.0315361492884625E-2},{"$f":"((Quarterly!AN152/Quarterly!AN148)-1)","v":5.8072989961534871E-2},{"$f":"((Quarterly!AO152/Quarterly!AO148)-1)","v":3.9476493521046985E-2},{"$f":"(Quarterly!AP152-Quarterly!AP148)*100","v":-3.3333333333333437},{"$f":"Quarterly!AQ152-Quarterly!AQ148","v":7.7999999999999901},{"$f":"Quarterly!AR152-Quarterly!AR148","v":9.5},"--",{"$f":"Quarterly!AT152-Quarterly!AT148","v":6.4666666666666615},{"$f":"Quarterly!AU152-Quarterly!AU148","v":3.1666666666666643},{"$f":"Quarterly!AV152-Quarterly!AV148","v":4.36666666666666},{"$f":"Quarterly!AW152-Quarterly!AW148","v":1.9333333333333371},{"$f":"Quarterly!AX152-Quarterly!AX148","v":9.8333333333333286},{"$f":"Quarterly!AY152-Quarterly!AY148","v":15.133333333333333},{"$f":"Quarterly!AZ152-Quarterly!AZ148","v":8.8000000000000043},{"$f":"Quarterly!BA152-Quarterly!BA148","v":7.6666666666666643},"--",{"$f":"((Quarterly!BC152/Quarterly!BC148)-1)","v":0.14403530474912052},{"$f":"((Quarterly!BD152/Quarterly!BD148)-1)","v":2.8979029980156223E-2},{"$f":"((Quarterly!BE152/Quarterly!BE148)-1)","v":-1.5227425144976103E-2},{"$f":"((Quarterly!BF152/Quarterly!BF148)-1)","v":1.0359005393090426E-2},{"$f":"((Quarterly!BG152/Quarterly!BG148)-1)","v":1.0788951179631079E-2},{"$f":"((Quarterly!BH152/Quarterly!BH148)-1)","v":-8.6846676140848178E-3},{"$f":"((Quarterly!BI152/Quarterly!BI148)-1)","v":-4.2670437920599991E-4},{"$f":"((Quarterly!BJ152/Quarterly!BJ148)-1)","v":0.32356890710994013},{"$f":"((Quarterly!BK152/Quarterly!BK148)-1)","v":-0.63636363636363635},null,{"$f":"((Quarterly!BM152/Quarterly!BM148)-1)","v":7.9405787646322112E-2},{"$f":"((Quarterly!BN152/Quarterly!BN148)-1)","v":8.3275843023316476E-2},null,null,null,null,null,{"$f":"((Quarterly!BT152/Quarterly!BT148)-1)","v":0.11152239484972148},{"$f":"Quarterly!BU152-Quarterly!BU148","v":9.5720000000000027E-2},{"$f":"Quarterly!BV152-Quarterly!BV148","v":0.16409999999999947},{"$f":"((Quarterly!BW152/Quarterly!BW148)-1)","v":8.8653886323744269E-2},{"$f":"((Quarterly!BX152/Quarterly!BX148)-1)","v":0.15850447604002116},{"$f":"((Quarterly!BY152/Quarterly!BY148)-1)","v":0.23879258816497329},"--",{"$f":"((Quarterly!CA152/Quarterly!CA148)-1)","v":4.8246745631523424E-2},{"$f":"((Quarterly!CB152/Quarterly!CB148)-1)","v":-0.15789624257915946},{"$f":"((Quarterly!CC152/Quarterly!CC148)-1)","v":-0.14637636435033641},"--","--",null,"--","--",null,{"$f":"((Quarterly!CJ152/Quarterly!CJ148)-1)","v":1.2121212121212199E-2},{"$f":"((Quarterly!CK152/Quarterly!CK148)-1)","v":4.9338246620140414E-2},{"$f":"((Quarterly!CL152/Quarterly!CL148)-1)","v":-0.12951388888888893},{"$f":"((Quarterly!CM152/Quarterly!CM148)-1)","v":9.7619764989454572E-2},{"$f":"((Quarterly!CN152/Quarterly!CN148)-1)","v":2.496428781089155E-2},{"$f":"((Quarterly!CO152/Quarterly!CO148)-1)","v":1.7302770668743861E-2},{"$f":"((Quarterly!CP152/Quarterly!CP148)-1)","v":0.1115326185983041},{"$f":"((Quarterly!CQ152/Quarterly!CQ148)-1)","v":1.2326440812418182E-2},{"$f":"((Quarterly!CR152/Quarterly!CR148)-1)","v":0.14277439080757315},{"$f":"Quarterly!CS152-Quarterly!CS148","v":9.7333333333333343},"--",null,null,null,null,null,{"$f":"((Quarterly!CZ152/Quarterly!CZ148)-1)","v":2.3826046726810102E-2},{"$f":"((Quarterly!DA152/Quarterly!DA148)-1)","v":2.7454425653415049E-2},null,null,null,null,null,{"$f":"((Quarterly!DG152/Quarterly!DG148)-1)","v":4.1536050156739668E-2},{"$f":"((Quarterly!DH152-Quarterly!DH148)*60)","v":10.000000000000284},{"$f":"Quarterly!DI152-Quarterly!DI148","v":0.1666666666666714},"--",{"$f":"(Quarterly!DK152-Quarterly!DK148)*100","v":-86.666666666666629},{"$f":"((Quarterly!DL152/Quarterly!DL148)-1)","v":1.2430389817024601E-2},null,null,null,{"$f":"((Quarterly!DP152/Quarterly!DP148)-1)","v":3.0582183209651559E-2},null,null,null,null,{"$f":"Quarterly!DU152-Quarterly!DU148","v":0.93333333333333179},{"$f":"((Quarterly!DV152/Quarterly!DV148)-1)","v":3.843913803145016E-2},{"$f":"((Quarterly!DW152/Quarterly!DW148)-1)","v":3.9324529624868543E-2},{"$f":"((Quarterly!DX152/Quarterly!DX148)-1)","v":3.3234589944405979E-2},{"$f":"((Quarterly!DY152/Quarterly!DY148)-1)","v":4.897891416237754E-2},{"$f":"((Quarterly!DZ152/Quarterly!DZ148)-1)","v":2.8141783029001166E-2},{"$f":"((Quarterly!EA152/Quarterly!EA148)-1)","v":6.6455457494153825E-2},{"$f":"((Quarterly!EB152/Quarterly!EB148)-1)","v":-6.6567219839641867E-2},{"$f":"((Quarterly!EC152/Quarterly!EC148)-1)","v":5.4981742305685977E-2},null,null,null,null,null,{"$f":"((Quarterly!EI152/Quarterly!EI148)-1)","v":6.5971278798093058E-2},{"$f":"((Quarterly!EJ152/Quarterly!EJ148)-1)","v":4.9348907433082623E-2},{"$f":"((Quarterly!EK152/Quarterly!EK148)-1)","v":4.3481510527770384E-2},null,null,null,null,null,{"$f":"((Quarterly!EQ152/Quarterly!EQ148)-1)","v":4.4630404463041895E-3},{"$f":"((Quarterly!ER152/Quarterly!ER148)-1)","v":3.1746031746031633E-3},{"$f":"((Quarterly!ES152/Quarterly!ES148)-1)","v":2.2114895780376287E-2},null,null,null,null,null,{"$f":"(Quarterly!EY152-Quarterly!EY148)*100","v":89.666666666666742},{"$f":"(Quarterly!EZ152-Quarterly!EZ148)*100","v":94},{"$f":"(Quarterly!FA152-Quarterly!FA148)*100","v":54},{"$f":"(Quarterly!FB152-Quarterly!FB148)*100","v":45.666666666666522},"--",{"$f":"(Quarterly!FD152-Quarterly!FD148)*100","v":98.666666666666629},{"$f":"(Quarterly!FE152-Quarterly!FE148)*100","v":102},{"$f":"(Quarterly!FF152-Quarterly!FF148)*100","v":175.33333333333326},{"$f":"(Quarterly!FG152-Quarterly!FG148)*100","v":182.33333333333329},{"$f":"(Quarterly!FH152-Quarterly!FH148)*100","v":148.33333333333334},{"$f":"(Quarterly!FI152-Quarterly!FI148)*100","v":109.33333333333337},null,null,null,null,null,null,{"$f":"((Quarterly!FP152/Quarterly!FP148)-1)","v":8.8327910150099331E-2},{"$f":"((Quarterly!FQ152/Quarterly!FQ148)-1)","v":0.51626398912247673},"--","--",{"$f":"((Quarterly!FT152/Quarterly!FT148)-1)","v":0.11904814149309595},{"$f":"((Quarterly!FU152/Quarterly!FU148)-1)","v":1.7228356298807368E-2},{"$f":"((Quarterly!FV152/Quarterly!FV148)-1)","v":0.10569883399553825},{"$f":"((Quarterly!FW152/Quarterly!FW148)-1)","v":0.21437309699869522},{"$f":"((Quarterly!FX152/Quarterly!FX148)-1)","v":0.18811910464531767},null,null,null,null,null,{"$f":"((Quarterly!GD152/Quarterly!GD148)-1)","v":-0.10037112010796223},{"$f":"((Quarterly!GE152/Quarterly!GE148)-1)","v":-0.12128396863031177},{"$f":"((Quarterly!GF152/Quarterly!GF148)-1)","v":-4.5085350751523867E-2},{"$f":"((Quarterly!GG152/Quarterly!GG148)-1)","v":4.6621178641670369E-3},{"$f":"((Quarterly!GH152/Quarterly!GH148)-1)","v":{"$error":"#DIV/0!"}},"--","--",{"$f":"((Quarterly!GK152/Quarterly!GK148)-1)","v":{"$error":"#VALUE!"}},"--"]
["94'Q3",{"$f":"((Quarterly!B153/Quarterly!B149)-1)","v":6.4892612085764467E-2},{"$f":"((Quarterly!C153/Quarterly!C149)-1)","v":4.3386875773972822E-2},{"$f":"((Quarterly!D153/Quarterly!D149)-1)","v":3.6239671651660643E-2},{"$f":"((Quarterly!E153/Quarterly!E149)-1)","v":3.6317402360305229E-2},{"$f":"((Quarterly!F153/Quarterly!F149)-1)","v":7.0895432836537209E-2},{"$f":"((Quarterly!G153/Quarterly!G149)-1)","v":3.7380563284896251E-2},{"$f":"((Quarterly!H153/Quarterly!H149)-1)","v":3.2461604927616294E-2},{"$f":"((Quarterly!I153/Quarterly!I149)-1)","v":8.1631885692799333E-2},{"$f":"((Quarterly!J153/Quarterly!J149)-1)","v":0.12240813273025042},{"$f":"((Quarterly!K153/Quarterly!K149)-1)","v":9.6393897364771108E-2},{"$f":"((Quarterly!L153-Quarterly!L149))","v":59.561999999999998},{"$f":"((Quarterly!M153/Quarterly!M149)-1)","v":0.13511470766354972},{"$f":"((Quarterly!N153/Quarterly!N149)-1)","v":0.1179217150900036},{"$f":"((Quarterly!O153/Quarterly!O149)-1)","v":0.28899670233209229},{"$f":"((Quarterly!P153/Quarterly!P149)-1)","v":1.229211922691964E-2},{"$f":"((Quarterly!Q153/Quarterly!Q149)-1)","v":-0.19733087838881658},null,null,null,null,null,{"$f":"((Quarterly!W153/Quarterly!W149)-1)","v":3.7500000000000089E-2},{"$f":"((Quarterly!X153/Quarterly!X149)-1)","v":2.9979466119096632E-2},{"$f":"((Quarterly!Y153/Quarterly!Y149)-1)","v":5.8175268117447887E-2},{"$f":"Quarterly!Z153-Quarterly!Z149","v":-0.48},{"$f":"((Quarterly!AA153/Quarterly!AA149)-1)","v":0.23105413691639742},{"$f":"((Quarterly!AB153/Quarterly!AB149)-1)","v":0.21001964093059278},{"$f":"Quarterly!AC153-Quarterly!AC149","v":9.2999999999999972},{"$f":"Quarterly!AD153-Quarterly!AD149","v":5.5},{"$f":"(Quarterly!AE153-Quarterly!AE149)*100","v":-93.000000000000014},{"$f":"(Quarterly!AF153-Quarterly!AF149)*100","v":-48},{"$f":"(Quarterly!AG153-Quarterly!AG149)*100","v":-34},"--","--","--","--","--",{"$f":"((Quarterly!AM153/Quarterly!AM149)-1)","v":5.9385453923382681E-2},{"$f":"((Quarterly!AN153/Quarterly!AN149)-1)","v":7.1978794837122217E-2},{"$f":"((Quarterly!AO153/Quarterly!AO149)-1)","v":5.8414613672003179E-2},{"$f":"(Quarterly!AP153-Quarterly!AP149)*100","v":-3.6666666666666847},{"$f":"Quarterly!AQ153-Quarterly!AQ149","v":7.9333333333333371},{"$f":"Quarterly!AR153-Quarterly!AR149","v":11.833333333333329},"--",{"$f":"Quarterly!AT153-Quarterly!AT149","v":8.7333333333333272},{"$f":"Quarterly!AU153-Quarterly!AU149","v":6.6666666666666643},{"$f":"Quarterly!AV153-Quarterly!AV149","v":2.4666666666666686},{"$f":"Quarterly!AW153-Quarterly!AW149","v":0},{"$f":"Quarterly!AX153-Quarterly!AX149","v":9.4000000000000057},{"$f":"Quarterly!AY153-Quarterly!AY149","v":24.800000000000004},{"$f":"Quarterly!AZ153-Quarterly!AZ149","v":7.8333333333333357},{"$f":"Quarterly!BA153-Quarterly!BA149","v":9.36666666666666},"--",{"$f":"((Quarterly!BC153/Quarterly!BC149)-1)","v":0.13101224357828989},{"$f":"((Quarterly!BD153/Quarterly!BD149)-1)","v":3.2486583184257567E-2},{"$f":"((Quarterly!BE153/Quarterly!BE149)-1)","v":-2.162960644094658E-2},{"$f":"((Quarterly!BF153/Quarterly!BF149)-1)","v":9.6405257821809975E-3},{"$f":"((Quarterly!BG153/Quarterly!BG149)-1)","v":3.4093889325990112E-3},{"$f":"((Quarterly!BH153/Quarterly!BH149)-1)","v":-1.3206788581732076E-2},{"$f":"((Quarterly!BI153/Quarterly!BI149)-1)","v":6.2138340210464715E-3},{"$f":"((Quarterly!BJ153/Quarterly!BJ149)-1)","v":0.32587125710303955},{"$f":"((Quarterly!BK153/Quarterly!BK149)-1)","v":-0.65753424657534243},null,{"$f":"((Quarterly!BM153/Quarterly!BM149)-1)","v":8.1772513994451845E-2},{"$f":"((Quarterly!BN153/Quarterly!BN149)-1)","v":8.6486508612220847E-2},null,null,null,null,null,{"$f":"((Quarterly!BT153/Quarterly!BT149)-1)","v":0.13109518091117578},{"$f":"Quarterly!BU153-Quarterly!BU149","v":0.17586000000000013},{"$f":"Quarterly!BV153-Quarterly!BV149","v":0.23667999999999978},{"$f":"((Quarterly!BW153/Quarterly!BW149)-1)","v":8.545415091398656E-2},{"$f":"((Quarterly!BX153/Quarterly!BX149)-1)","v":0.11957916345907105},{"$f":"((Quarterly!BY153/Quarterly!BY149)-1)","v":0.12831737346101235},"--",{"$f":"((Quarterly!CA153/Quarterly!CA149)-1)","v":8.0958754106339015E-2},{"$f":"((Quarterly!CB153/Quarterly!CB149)-1)","v":-7.9261717888646666E-2},{"$f":"((Quarterly!CC153/Quarterly!CC149)-1)","v":-9.1970244654858702E-2},"--","--",null,"--","--",null,{"$f":"((Quarterly!CJ153/Quarterly!CJ149)-1)","v":-3.2082922013820458E-2},{"$f":"((Quarterly!CK153/Quarterly!CK149)-1)","v":5.3468386595846074E-2},{"$f":"((Quarterly!CL153/Quarterly!CL149)-1)","v":-4.1980624327233818E-2},{"$f":"((Quarterly!CM153/Quarterly!CM149)-1)","v":5.603066941905066E-2},{"$f":"((Quarterly!CN153/Quarterly!CN149)-1)","v":3.0449854057780668E-2},{"$f":"((Quarterly!CO153/Quarterly!CO149)-1)","v":-7.9115668761715607E-3},{"$f":"((Quarterly!CP153/Quarterly!CP149)-1)","v":0.13135358646122852},{"$f":"((Quarterly!CQ153/Quarterly!CQ149)-1)","v":1.2139114326943812E-2},{"$f":"((Quarterly!CR153/Quarterly!CR149)-1)","v":0.16602827458170966},{"$f":"Quarterly!CS153-Quarterly!CS149","v":13.333333333333329},"--",null,null,null,null,null,{"$f":"((Quarterly!CZ153/Quarterly!CZ149)-1)","v":2.855169237854005E-2},{"$f":"((Quarterly!DA153/Quarterly!DA149)-1)","v":2.9039301310043619E-2},null,null,null,null,null,{"$f":"((Quarterly!DG153/Quarterly!DG149)-1)","v":4.5489891135303218E-2},{"$f":"((Quarterly!DH153-Quarterly!DH149)*60)","v":9.9999999999998579},{"$f":"Quarterly!DI153-Quarterly!DI149","v":0.20000000000000284},"--",{"$f":"(Quarterly!DK153-Quarterly!DK149)*100","v":-79.999999999999986},{"$f":"((Quarterly!DL153/Quarterly!DL149)-1)","v":1.9363569424267091E-2},null,null,null,{"$f":"((Quarterly!DP153/Quarterly!DP149)-1)","v":3.3135662039020852E-2},null,null,null,null,{"$f":"Quarterly!DU153-Quarterly!DU149","v":0.80000000000000071},{"$f":"((Quarterly!DV153/Quarterly!DV149)-1)","v":4.8750359092214923E-2},{"$f":"((Quarterly!DW153/Quarterly!DW149)-1)","v":4.8084296628702949E-2},{"$f":"((Quarterly!DX153/Quarterly!DX149)-1)","v":4.9681326946676707E-2},{"$f":"((Quarterly!DY153/Quarterly!DY149)-1)","v":3.8644282546721476E-2},{"$f":"((Quarterly!DZ153/Quarterly!DZ149)-1)","v":5.3359370876655987E-2},{"$f":"((Quarterly!EA153/Quarterly!EA149)-1)","v":5.3739530057075102E-2},{"$f":"((Quarterly!EB153/Quarterly!EB149)-1)","v":5.2419354838709742E-2},{"$f":"((Quarterly!EC153/Quarterly!EC149)-1)","v":4.4028950542822631E-2},null,null,null,null,null,{"$f":"((Quarterly!EI153/Quarterly!EI149)-1)","v":6.3074123828921635E-2},{"$f":"((Quarterly!EJ153/Quarterly!EJ149)-1)","v":4.2244218146180401E-2},{"$f":"((Quarterly!EK153/Quarterly!EK149)-1)","v":3.8186813644838447E-2},null,null,null,null,null,{"$f":"((Quarterly!EQ153/Quarterly!EQ149)-1)","v":1.7666853617498424E-2},{"$f":"((Quarterly!ER153/Quarterly!ER149)-1)","v":1.5255905511810885E-2},{"$f":"((Quarterly!ES153/Quarterly!ES149)-1)","v":2.3049645390070816E-2},null,null,null,null,null,{"$f":"(Quarterly!EY153-Quarterly!EY149)*100","v":150.33333333333329},{"$f":"(Quarterly!EZ153-Quarterly!EZ149)*100","v":142.66666666666671},{"$f":"(Quarterly!FA153-Quarterly!FA149)*100","v":128.00000000000003},{"$f":"(Quarterly!FB153-Quarterly!FB149)*100","v":121.66666666666677},"--",{"$f":"(Quarterly!FD153-Quarterly!FD149)*100","v":150.66666666666652},{"$f":"(Quarterly!FE153-Quarterly!FE149)*100","v":147.33333333333326},{"$f":"(Quarterly!FF153-Quarterly!FF149)*100","v":217.66666666666654},{"$f":"(Quarterly!FG153-Quarterly!FG149)*100","v":226.00000000000003},{"$f":"(Quarterly!FH153-Quarterly!FH149)*100","v":200.6666666666666},{"$f":"(Quarterly!FI153-Quarterly!FI149)*100","v":171.66666666666669},null,null,null,null,null,null,{"$f":"((Quarterly!FP153/Quarterly!FP149)-1)","v":5.2000511312795927E-2},{"$f":"((Quarterly!FQ153/Quarterly!FQ149)-1)","v":0.48700173310225336},"--","--",{"$f":"((Quarterly!FT153/Quarterly!FT149)-1)","v":7.5130022686450859E-2},{"$f":"((Quarterly!FU153/Quarterly!FU149)-1)","v":-3.1262155600630059E-2},{"$f":"((Quarterly!FV153/Quarterly!FV149)-1)","v":0.1966633135308522},{"$f":"((Quarterly!FW153/Quarterly!FW149)-1)","v":0.25175257515901572},{"$f":"((Quarterly!FX153/Quarterly!FX149)-1)","v":0.27095665064185082},null,null,null,null,null,{"$f":"((Quarterly!GD153/Quarterly!GD149)-1)","v":3.935267564479572E-2},{"$f":"((Quarterly!GE153/Quarterly!GE149)-1)","v":1.8185492018589544E-2},{"$f":"((Quarterly!GF153/Quarterly!GF149)-1)","v":7.2121421396283081E-2},{"$f":"((Quarterly!GG153/Quarterly!GG149)-1)","v":3.8760169517740417E-2},{"$f":"((Quarterly!GH153/Quarterly!GH149)-1)","v":{"$error":"#DIV/0!"}},"--","--",{"$f":"((Quarterly!GK153/Quarterly!GK149)-1)","v":{"$error":"#VALUE!"}},"--"]
["94'Q4",{"$f":"((Quarterly!B154/Quarterly!B150)-1)","v":6.3106333653924374E-2},{"$f":"((Quarterly!C154/Quarterly!C150)-1)","v":4.1333053089814387E-2},{"$f":"((Quarterly!D154/Quarterly!D150)-1)","v":3.3116350704688324E-2},{"$f":"((Quarterly!E154/Quarterly!E150)-1)","v":3.8260195178698497E-2},{"$f":"((Quarterly!F154/Quarterly!F150)-1)","v":8.2470119521912411E-2},{"$f":"((Quarterly!G154/Quarterly!G150)-1)","v":4.1142756886367593E-2},{"$f":"((Quarterly!H154/Quarterly!H150)-1)","v":3.2728437792825193E-2},{"$f":"((Quarterly!I154/Quarterly!I150)-1)","v":8.4697470146274156E-2},{"$f":"((Quarterly!J154/Quarterly!J150)-1)","v":0.12152272858419244},{"$f":"((Quarterly!K154/Quarterly!K150)-1)","v":3.0149647887323994E-2},{"$f":"((Quarterly!L154-Quarterly!L150))","v":69.336999999999989},{"$f":"((Quarterly!M154/Quarterly!M150)-1)","v":0.12197788721724367},{"$f":"((Quarterly!N154/Quarterly!N150)-1)","v":0.1079913052298298},{"$f":"((Quarterly!O154/Quarterly!O150)-1)","v":0.23827774693598625},{"$f":"((Quarterly!P154/Quarterly!P150)-1)","v":9.99577768394877E-4},{"$f":"((Quarterly!Q154/Quarterly!Q150)-1)","v":-9.3813283658968571E-2},null,null,null,null,null,{"$f":"((Quarterly!W154/Quarterly!W150)-1)","v":3.9506172839506304E-2},{"$f":"((Quarterly!X154/Quarterly!X150)-1)","v":3.0475416497358854E-2},{"$f":"((Quarterly!Y154/Quarterly!Y150)-1)","v":9.255764806579192E-2},{"$f":"Quarterly!Z154-Quarterly!Z150","v":-0.48},{"$f":"((Quarterly!AA154/Quarterly!AA150)-1)","v":0.19645821804095176},{"$f":"((Quarterly!AB154/Quarterly!AB150)-1)","v":0.18380506703584176},{"$f":"Quarterly!AC154-Quarterly!AC150","v":-4.5999999999999979},{"$f":"Quarterly!AD154-Quarterly!AD150","v":14.400000000000002},{"$f":"(Quarterly!AE154-Quarterly!AE150)*100","v":-69},{"$f":"(Quarterly!AF154-Quarterly!AF150)*100","v":-48},{"$f":"(Quarterly!AG154-Quarterly!AG150)*100","v":-35},"--","--","--","--","--",{"$f":"((Quarterly!AM154/Quarterly!AM150)-1)","v":6.5278806063203687E-2},{"$f":"((Quarterly!AN154/Quarterly!AN150)-1)","v":8.0199237195599515E-2},{"$f":"((Quarterly!AO154/Quarterly!AO150)-1)","v":7.0565418006300007E-2},{"$f":"(Quarterly!AP154-Quarterly!AP150)*100","v":-4.0000000000000036},{"$f":"Quarterly!AQ154-Quarterly!AQ150","v":3.9666666666666686},{"$f":"Quarterly!AR154-Quarterly!AR150","v":1.8333333333333357},"--",{"$f":"Quarterly!AT154-Quarterly!AT150","v":3.6000000000000085},{"$f":"Quarterly!AU154-Quarterly!AU150","v":3.3666666666666742},{"$f":"Quarterly!AV154-Quarterly!AV150","v":2.7666666666666657},{"$f":"Quarterly!AW154-Quarterly!AW150","v":0.86666666666666003},{"$f":"Quarterly!AX154-Quarterly!AX150","v":0.56666666666666998},{"$f":"Quarterly!AY154-Quarterly!AY150","v":33.000000000000007},{"$f":"Quarterly!AZ154-Quarterly!AZ150","v":3.7999999999999901},{"$f":"Quarterly!BA154-Quarterly!BA150","v":13.76666666666668},"--",{"$f":"((Quarterly!BC154/Quarterly!BC150)-1)","v":0.11228624131070419},{"$f":"((Quarterly!BD154/Quarterly!BD150)-1)","v":2.9983921409261871E-2},{"$f":"((Quarterly!BE154/Quarterly!BE150)-1)","v":-3.3468422175253476E-2},{"$f":"((Quarterly!BF154/Quarterly!BF150)-1)","v":9.3520609824957468E-3},{"$f":"((Quarterly!BG154/Quarterly!BG150)-1)","v":1.0016525092047646E-2},{"$f":"((Quarterly!BH154/Quarterly!BH150)-1)","v":-1.1097860741317578E-2},{"$f":"((Quarterly!BI154/Quarterly!BI150)-1)","v":-6.4516129032277103E-4},{"$f":"((Quarterly!BJ154/Quarterly!BJ150)-1)","v":0.27046411079657129},{"$f":"((Quarterly!BK154/Quarterly!BK150)-1)","v":-0.6399999999999999},null,{"$f":"((Quarterly!BM154/Quarterly!BM150)-1)","v":8.2991723752019464E-2},{"$f":"((Quarterly!BN154/Quarterly!BN150)-1)","v":8.6805298304982959E-2},null,null,null,null,null,{"$f":"((Quarterly!BT154/Quarterly!BT150)-1)","v":0.14832546268359992},{"$f":"Quarterly!BU154-Quarterly!BU150","v":0.32615000000000016},{"$f":"Quarterly!BV154-Quarterly!BV150","v":0.34629999999999939},{"$f":"((Quarterly!BW154/Quarterly!BW150)-1)","v":7.7478964953054508E-2},{"$f":"((Quarterly!BX154/Quarterly!BX150)-1)","v":2.6737967914438387E-2},{"$f":"((Quarterly!BY154/Quarterly!BY150)-1)","v":6.8209500609015539E-3},"--",{"$f":"((Quarterly!CA154/Quarterly!CA150)-1)","v":5.4585700919650426E-2},{"$f":"((Quarterly!CB154/Quarterly!CB150)-1)","v":-0.12400008837107279},{"$f":"((Quarterly!CC154/Quarterly!CC150)-1)","v":-0.13284437420293016},"--","--",null,"--","--",null,{"$f":"((Quarterly!CJ154/Quarterly!CJ150)-1)","v":-0.12910284463894961},{"$f":"((Quarterly!CK154/Quarterly!CK150)-1)","v":5.8045013316003979E-2},{"$f":"((Quarterly!CL154/Quarterly!CL150)-1)","v":3.9377928421892028E-2},{"$f":"((Quarterly!CM154/Quarterly!CM150)-1)","v":-7.0077271516120532E-2},{"$f":"((Quarterly!CN154/Quarterly!CN150)-1)","v":3.7950396844671941E-2},{"$f":"((Quarterly!CO154/Quarterly!CO150)-1)","v":-4.1432603513002375E-2},{"$f":"((Quarterly!CP154/Quarterly!CP150)-1)","v":0.14686251089874802},{"$f":"((Quarterly!CQ154/Quarterly!CQ150)-1)","v":1.1988340631064798E-2},{"$f":"((Quarterly!CR154/Quarterly!CR150)-1)","v":0.17733424635243455},{"$f":"Quarterly!CS154-Quarterly!CS150","v":9.0999999999999801},"--",null,null,null,null,null,{"$f":"((Quarterly!CZ154/Quarterly!CZ150)-1)","v":2.6033340945421424E-2},{"$f":"((Quarterly!DA154/Quarterly!DA150)-1)","v":2.751299826689757E-2},null,null,null,null,null,{"$f":"((Quarterly!DG154/Quarterly!DG150)-1)","v":4.4666923373122946E-2},{"$f":"((Quarterly!DH154-Quarterly!DH150)*60)","v":6.0000000000000853},{"$f":"Quarterly!DI154-Quarterly!DI150","v":0.36666666666667425},"--",{"$f":"(Quarterly!DK154-Quarterly!DK150)*100","v":-100},{"$f":"((Quarterly!DL154/Quarterly!DL150)-1)","v":2.2900005953207625E-2},null,null,null,{"$f":"((Quarterly!DP154/Quarterly!DP150)-1)","v":3.4122898378217581E-2},null,null,null,null,{"$f":"Quarterly!DU154-Quarterly!DU150","v":1.0333333333333314},{"$f":"((Quarterly!DV154/Quarterly!DV150)-1)","v":4.754744815455747E-2},{"$f":"((Quarterly!DW154/Quarterly!DW150)-1)","v":4.6297077602452719E-2},{"$f":"((Quarterly!DX154/Quarterly!DX150)-1)","v":4.9185463659147555E-2},{"$f":"((Quarterly!DY154/Quarterly!DY150)-1)","v":2.701429244542175E-2},{"$f":"((Quarterly!DZ154/Quarterly!DZ150)-1)","v":5.6549637435442834E-2},{"$f":"((Quarterly!EA154/Quarterly!EA150)-1)","v":5.687481676927586E-2},{"$f":"((Quarterly!EB154/Quarterly!EB150)-1)","v":5.574660633484152E-2},{"$f":"((Quarterly!EC154/Quarterly!EC150)-1)","v":3.8933812518718192E-2},null,null,null,null,null,{"$f":"((Quarterly!EI154/Quarterly!EI150)-1)","v":5.3206087096796972E-2},{"$f":"((Quarterly!EJ154/Quarterly!EJ150)-1)","v":3.7523520849686021E-2},{"$f":"((Quarterly!EK154/Quarterly!EK150)-1)","v":3.5776229207420629E-2},null,null,null,null,null,{"$f":"((Quarterly!EQ154/Quarterly!EQ150)-1)","v":2.1306419960751333E-2},{"$f":"((Quarterly!ER154/Quarterly!ER150)-1)","v":1.6995073891625578E-2},{"$f":"((Quarterly!ES154/Quarterly!ES150)-1)","v":1.8668012108980836E-2},null,null,null,null,null,{"$f":"(Quarterly!EY154-Quarterly!EY150)*100","v":213.33333333333329},{"$f":"(Quarterly!EZ154-Quarterly!EZ150)*100","v":217.66666666666671},{"$f":"(Quarterly!FA154-Quarterly!FA150)*100","v":172.66666666666666},{"$f":"(Quarterly!FB154-Quarterly!FB150)*100","v":165.33333333333314},"--",{"$f":"(Quarterly!FD154-Quarterly!FD150)*100","v":204.6666666666666},{"$f":"(Quarterly!FE154-Quarterly!FE150)*100","v":222.00000000000003},{"$f":"(Quarterly!FF154-Quarterly!FF150)*100","v":307},{"$f":"(Quarterly!FG154-Quarterly!FG150)*100","v":307.66666666666652},{"$f":"(Quarterly!FH154-Quarterly!FH150)*100","v":266},{"$f":"(Quarterly!FI154-Quarterly!FI150)*100","v":222.99999999999994},null,null,null,null,null,null,{"$f":"((Quarterly!FP154/Quarterly!FP150)-1)","v":3.2658195999496931E-2},{"$f":"((Quarterly!FQ154/Quarterly!FQ150)-1)","v":0.46805385837793811},{"$f":"((Quarterly!FR154/Quarterly!FR150)-1)","v":0.15461029172858631},"--",{"$f":"((Quarterly!FT154/Quarterly!FT150)-1)","v":4.5847455016021499E-2},{"$f":"((Quarterly!FU154/Quarterly!FU150)-1)","v":-5.262391226816221E-2},{"$f":"((Quarterly!FV154/Quarterly!FV150)-1)","v":0.23799588942838201},{"$f":"((Quarterly!FW154/Quarterly!FW150)-1)","v":0.22983965768561632},{"$f":"((Quarterly!FX154/Quarterly!FX150)-1)","v":0.27382086157317098},null,null,null,null,null,{"$f":"((Quarterly!GD154/Quarterly!GD150)-1)","v":7.3266604530534352E-2},{"$f":"((Quarterly!GE154/Quarterly!GE150)-1)","v":8.9371980676328455E-2},{"$f":"((Quarterly!GF154/Quarterly!GF150)-1)","v":5.8159546466896028E-2},{"$f":"((Quarterly!GG154/Quarterly!GG150)-1)","v":-3.3414121457861823E-2},{"$f":"((Quarterly!GH154/Quarterly!GH150)-1)","v":{"$error":"#DIV/0!"}},"--","--",{"$f":"((Quarterly!GK154/Quarterly!GK150)-1)","v":{"$error":"#VALUE!"}},"--"]
["95'Q1",{"$f":"((Quarterly!B155/Quarterly!B151)-1)","v":5.7318127046678047E-2},{"$f":"((Quarterly!C155/Quarterly!C151)-1)","v":3.4747289641240853E-2},{"$f":"((Quarterly!D155/Quarterly!D151)-1)","v":3.2740424319856354E-2},{"$f":"((Quarterly!E155/Quarterly!E151)-1)","v":2.9216785674350154E-2},{"$f":"((Quarterly!F155/Quarterly!F151)-1)","v":3.5388911779517418E-2},{"$f":"((Quarterly!G155/Quarterly!G151)-1)","v":3.1077318174604462E-2},{"$f":"((Quarterly!H155/Quarterly!H151)-1)","v":2.7924440972483699E-2},{"$f":"((Quarterly!I155/Quarterly!I151)-1)","v":0.11251884286842295},{"$f":"((Quarterly!J155/Quarterly!J151)-1)","v":0.16866375043219883},{"$f":"((Quarterly!K155/Quarterly!K151)-1)","v":-1.3790131437190323E-2},{"$f":"((Quarterly!L155-Quarterly!L151))","v":17.748000000000005},{"$f":"((Quarterly!M155/Quarterly!M151)-1)","v":0.120489889175734},{"$f":"((Quarterly!N155/Quarterly!N151)-1)","v":0.11833655219062411},{"$f":"((Quarterly!O155/Quarterly!O151)-1)","v":0.13641578274279631},{"$f":"((Quarterly!P155/Quarterly!P151)-1)","v":1.5607069600663159E-2},{"$f":"((Quarterly!Q155/Quarterly!Q151)-1)","v":-4.6498450176747474E-2},null,null,null,null,null,{"$f":"((Quarterly!W155/Quarterly!W151)-1)","v":3.3169533169532972E-2},{"$f":"((Quarterly!X155/Quarterly!X151)-1)","v":2.5050505050504768E-2},{"$f":"((Quarterly!Y155/Quarterly!Y151)-1)","v":0.12664704110910896},{"$f":"Quarterly!Z155-Quarterly!Z151","v":-9.9999999999999978E-2},{"$f":"((Quarterly!AA155/Quarterly!AA151)-1)","v":0.15114991019157409},{"$f":"((Quarterly!AB155/Quarterly!AB151)-1)","v":9.8467948780943226E-2},{"$f":"Quarterly!AC155-Quarterly!AC151","v":-16.999999999999996},{"$f":"Quarterly!AD155-Quarterly!AD151","v":-8.1000000000000014},{"$f":"(Quarterly!AE155-Quarterly!AE151)*100","v":-53},{"$f":"(Quarterly!AF155-Quarterly!AF151)*100","v":-9.9999999999999982},{"$f":"(Quarterly!AG155-Quarterly!AG151)*100","v":-9.9999999999999982},"--","--","--","--","--",{"$f":"((Quarterly!AM155/Quarterly!AM151)-1)","v":6.3213233514523015E-2},{"$f":"((Quarterly!AN155/Quarterly!AN151)-1)","v":7.8595044592177699E-2},{"$f":"((Quarterly!AO155/Quarterly!AO151)-1)","v":8.8658057551991964E-2},{"$f":"(Quarterly!AP155-Quarterly!AP151)*100","v":-0.66666666666663765},{"$f":"Quarterly!AQ155-Quarterly!AQ151","v":-1.6000000000000014},{"$f":"Quarterly!AR155-Quarterly!AR151","v":-3.6666666666666643},"--",{"$f":"Quarterly!AT155-Quarterly!AT151","v":1.8666666666666671},{"$f":"Quarterly!AU155-Quarterly!AU151","v":1.9666666666666686},{"$f":"Quarterly!AV155-Quarterly!AV151","v":0.36666666666666714},{"$f":"Quarterly!AW155-Quarterly!AW151","v":2.5666666666666629},{"$f":"Quarterly!AX155-Quarterly!AX151","v":-6.7666666666666657},{"$f":"Quarterly!AY155-Quarterly!AY151","v":20.6},{"$f":"Quarterly!AZ155-Quarterly!AZ151","v":-3.4000000000000057},{"$f":"Quarterly!BA155-Quarterly!BA151","v":4.5},"--",{"$f":"((Quarterly!BC155/Quarterly!BC151)-1)","v":0.13707220928149066},{"$f":"((Quarterly!BD155/Quarterly!BD151)-1)","v":3.2081899276533044E-2},{"$f":"((Quarterly!BE155/Quarterly!BE151)-1)","v":-1.743229689067205E-2},{"$f":"((Quarterly!BF155/Quarterly!BF151)-1)","v":2.2054514782917645E-2},{"$f":"((Quarterly!BG155/Quarterly!BG151)-1)","v":6.4125709498981109E-3},{"$f":"((Quarterly!BH155/Quarterly!BH151)-1)","v":-1.7562173779551715E-3},{"$f":"((Quarterly!BI155/Quarterly!BI151)-1)","v":1.5553151203678617E-2},{"$f":"((Quarterly!BJ155/Quarterly!BJ151)-1)","v":0.2308480592891371},{"$f":"((Quarterly!BK155/Quarterly!BK151)-1)","v":-0.41666666666666663},null,{"$f":"((Quarterly!BM155/Quarterly!BM151)-1)","v":6.2683142319398533E-2},{"$f":"((Quarterly!BN155/Quarterly!BN151)-1)","v":6.4636195877481484E-2},null,null,null,null,null,{"$f":"((Quarterly!BT155/Quarterly!BT151)-1)","v":0.14926417877828957},{"$f":"Quarterly!BU155-Quarterly!BU151","v":0.48958999999999975},{"$f":"Quarterly!BV155-Quarterly!BV151","v":0.49266999999999861},{"$f":"((Quarterly!BW155/Quarterly!BW151)-1)","v":6.3045821317253559E-2},{"$f":"((Quarterly!BX155/Quarterly!BX151)-1)","v":-4.8166786484543533E-2},{"$f":"((Quarterly!BY155/Quarterly!BY151)-1)","v":-5.9735066233441714E-2},"--",{"$f":"((Quarterly!CA155/Quarterly!CA151)-1)","v":-3.3581841913147392E-2},{"$f":"((Quarterly!CB155/Quarterly!CB151)-1)","v":-8.775979517782273E-2},{"$f":"((Quarterly!CC155/Quarterly!CC151)-1)","v":-0.11451321297206574},"--","--",null,"--","--",null,{"$f":"((Quarterly!CJ155/Quarterly!CJ151)-1)","v":-0.12231968810916172},{"$f":"((Quarterly!CK155/Quarterly!CK151)-1)","v":6.52206415107357E-2},{"$f":"((Quarterly!CL155/Quarterly!CL151)-1)","v":0.21131639722863738},{"$f":"((Quarterly!CM155/Quarterly!CM151)-1)","v":-0.12489522212908633},{"$f":"((Quarterly!CN155/Quarterly!CN151)-1)","v":4.057072020143071E-2},{"$f":"((Quarterly!CO155/Quarterly!CO151)-1)","v":-8.73123776375897E-2},{"$f":"((Quarterly!CP155/Quarterly!CP151)-1)","v":0.15844348764854077},{"$f":"((Quarterly!CQ155/Quarterly!CQ151)-1)","v":1.1972370084207151E-2},{"$f":"((Quarterly!CR155/Quarterly!CR151)-1)","v":0.19832347943385376},{"$f":"Quarterly!CS155-Quarterly!CS151","v":1.3333333333333286},"--",null,null,null,null,null,{"$f":"((Quarterly!CZ155/Quarterly!CZ151)-1)","v":2.8402635764598783E-2},{"$f":"((Quarterly!DA155/Quarterly!DA151)-1)","v":2.9487731381833582E-2},null,null,null,null,null,{"$f":"((Quarterly!DG155/Quarterly!DG151)-1)","v":4.1618938526155169E-2},{"$f":"((Quarterly!DH155-Quarterly!DH151)*60)","v":1.9999999999998863},{"$f":"Quarterly!DI155-Quarterly!DI151","v":0.20000000000000284},"--",{"$f":"(Quarterly!DK155-Quarterly!DK151)*100","v":-110.00000000000006},{"$f":"((Quarterly!DL155/Quarterly!DL151)-1)","v":2.3234678152289856E-2},null,null,null,{"$f":"((Quarterly!DP155/Quarterly!DP151)-1)","v":3.3902609733120315E-2},null,null,null,null,{"$f":"Quarterly!DU155-Quarterly!DU151","v":-0.89999999999999858},{"$f":"((Quarterly!DV155/Quarterly!DV151)-1)","v":4.5862300964341518E-2},{"$f":"((Quarterly!DW155/Quarterly!DW151)-1)","v":4.4946383755418706E-2},{"$f":"((Quarterly!DX155/Quarterly!DX151)-1)","v":4.7130579428888542E-2},{"$f":"((Quarterly!DY155/Quarterly!DY151)-1)","v":3.0764248704662878E-2},{"$f":"((Quarterly!DZ155/Quarterly!DZ151)-1)","v":5.2430136842657404E-2},{"$f":"((Quarterly!EA155/Quarterly!EA151)-1)","v":5.2716831099985262E-2},{"$f":"((Quarterly!EB155/Quarterly!EB151)-1)","v":5.1720997996721918E-2},{"$f":"((Quarterly!EC155/Quarterly!EC151)-1)","v":3.9327559857361027E-2},null,null,null,null,null,{"$f":"((Quarterly!EI155/Quarterly!EI151)-1)","v":4.1522773754775866E-2},{"$f":"((Quarterly!EJ155/Quarterly!EJ151)-1)","v":2.5401552525927684E-2},{"$f":"((Quarterly!EK155/Quarterly!EK151)-1)","v":2.6672597402007225E-2},null,null,null,null,null,{"$f":"((Quarterly!EQ155/Quarterly!EQ151)-1)","v":3.4068695895001389E-2},{"$f":"((Quarterly!ER155/Quarterly!ER151)-1)","v":1.7359413202933993E-2},{"$f":"((Quarterly!ES155/Quarterly!ES151)-1)","v":2.0035061357375428E-2},null,null,null,null,null,{"$f":"(Quarterly!EY155-Quarterly!EY151)*100","v":281.33333333333343},{"$f":"(Quarterly!EZ155-Quarterly!EZ151)*100","v":259.66666666666663},{"$f":"(Quarterly!FA155-Quarterly!FA151)*100","v":111.99999999999991},{"$f":"(Quarterly!FB155-Quarterly!FB151)*100","v":103.00000000000003},"--",{"$f":"(Quarterly!FD155-Quarterly!FD151)*100","v":151.66666666666674},{"$f":"(Quarterly!FE155-Quarterly!FE151)*100","v":249.33333333333337},{"$f":"(Quarterly!FF155-Quarterly!FF151)*100","v":281.66666666666663},{"$f":"(Quarterly!FG155-Quarterly!FG151)*100","v":259.66666666666674},{"$f":"(Quarterly!FH155-Quarterly!FH151)*100","v":191.66666666666669},{"$f":"(Quarterly!FI155-Quarterly!FI151)*100","v":141.66666666666669},null,null,null,null,null,null,{"$f":"((Quarterly!FP155/Quarterly!FP151)-1)","v":4.9029596680002951E-2},{"$f":"((Quarterly!FQ155/Quarterly!FQ151)-1)","v":-3.0816670424020587E-2},{"$f":"((Quarterly!FR155/Quarterly!FR151)-1)","v":0.89834455844401107},"--",{"$f":"((Quarterly!FT155/Quarterly!FT151)-1)","v":3.1646174943792404E-2},{"$f":"((Quarterly!FU155/Quarterly!FU151)-1)","v":-6.3404070583282568E-2},{"$f":"((Quarterly!FV155/Quarterly!FV151)-1)","v":0.2415600571690153},{"$f":"((Quarterly!FW155/Quarterly!FW151)-1)","v":0.25750473453050926},{"$f":"((Quarterly!FX155/Quarterly!FX151)-1)","v":0.32459109104244166},null,null,null,null,null,{"$f":"((Quarterly!GD155/Quarterly!GD151)-1)","v":0.23919891989198927},{"$f":"((Quarterly!GE155/Quarterly!GE151)-1)","v":0.2090193271295635},{"$f":"((Quarterly!GF155/Quarterly!GF151)-1)","v":0.11898440092930596},{"$f":"((Quarterly!GG155/Quarterly!GG151)-1)","v":-1.5930267508265761E-2},{"$f":"((Quarterly!GH155/Quarterly!GH151)-1)","v":{"$error":"#DIV/0!"}},"--",{"$f":"((Quarterly!GJ155/Quarterly!GJ151)-1)","v":-0.35413302011452064},{"$f":"((Quarterly!GK155/Quarterly!GK151)-1)","v":-0.10700525394045524},"--"]
["95'Q2",{"$f":"((Quarterly!B156/Quarterly!B152)-1)","v":4.609120384514287E-2},{"$f":"((Quarterly!C156/Quarterly!C152)-1)","v":2.4362781569869041E-2},{"$f":"((Quarterly!D156/Quarterly!D152)-1)","v":3.110417539307142E-2},{"$f":"((Quarterly!E156/Quarterly!E152)-1)","v":3.0450013473457327E-2},{"$f":"((Quarterly!F156/Quarterly!F152)-1)","v":3.4785759579672115E-2},{"$f":"((Quarterly!G156/Quarterly!G152)-1)","v":2.8013169195533871E-2},{"$f":"((Quarterly!H156/Quarterly!H152)-1)","v":3.0852076332435363E-2},{"$f":"((Quarterly!I156/Quarterly!I152)-1)","v":0.10632920341469454},{"$f":"((Quarterly!J156/Quarterly!J152)-1)","v":0.15614430876313645},{"$f":"((Quarterly!K156/Quarterly!K152)-1)","v":-7.6120959332638183E-2},{"$f":"((Quarterly!L156-Quarterly!L152))","v":-57.364999999999995},{"$f":"((Quarterly!M156/Quarterly!M152)-1)","v":9.0498778240039268E-2},{"$f":"((Quarterly!N156/Quarterly!N152)-1)","v":9.6973319607561059E-2},{"$f":"((Quarterly!O156/Quarterly!O152)-1)","v":4.3934756841863098E-2},{"$f":"((Quarterly!P156/Quarterly!P152)-1)","v":1.498739455382081E-2},{"$f":"((Quarterly!Q156/Quarterly!Q152)-1)","v":2.0937411581876786E-2},null,null,null,null,null,{"$f":"((Quarterly!W156/Quarterly!W152)-1)","v":8.4745762711864181E-3},{"$f":"((Quarterly!X156/Quarterly!X152)-1)","v":7.2000000000000952E-3},{"$f":"((Quarterly!Y156/Quarterly!Y152)-1)","v":0.13239784405620592},{"$f":"Quarterly!Z156-Quarterly!Z152","v":-0.14000000000000001},{"$f":"((Quarterly!AA156/Quarterly!AA152)-1)","v":0.17199378196770643},{"$f":"((Quarterly!AB156/Quarterly!AB152)-1)","v":0.1273285431873481},{"$f":"Quarterly!AC156-Quarterly!AC152","v":-10.700000000000003},{"$f":"Quarterly!AD156-Quarterly!AD152","v":-20.900000000000002},{"$f":"(Quarterly!AE156-Quarterly!AE152)*100","v":-35.000000000000007},{"$f":"(Quarterly!AF156-Quarterly!AF152)*100","v":-14.000000000000002},{"$f":"(Quarterly!AG156-Quarterly!AG152)*100","v":-11.000000000000004},"--","--","--","--","--",{"$f":"((Quarterly!AM156/Quarterly!AM152)-1)","v":4.7880425843264129E-2},{"$f":"((Quarterly!AN156/Quarterly!AN152)-1)","v":5.5793104883091527E-2},{"$f":"((Quarterly!AO156/Quarterly!AO152)-1)","v":9.4864907496615469E-2},{"$f":"(Quarterly!AP156-Quarterly!AP152)*100","v":1.6666666666666607},{"$f":"Quarterly!AQ156-Quarterly!AQ152","v":-10.099999999999994},{"$f":"Quarterly!AR156-Quarterly!AR152","v":-19.166666666666664},"--",{"$f":"Quarterly!AT156-Quarterly!AT152","v":-4.4666666666666686},{"$f":"Quarterly!AU156-Quarterly!AU152","v":-0.53333333333333144},{"$f":"Quarterly!AV156-Quarterly!AV152","v":-4.4666666666666615},{"$f":"Quarterly!AW156-Quarterly!AW152","v":-3.7666666666666728},{"$f":"Quarterly!AX156-Quarterly!AX152","v":-16.533333333333339},{"$f":"Quarterly!AY156-Quarterly!AY152","v":2.8999999999999915},{"$f":"Quarterly!AZ156-Quarterly!AZ152","v":-12},{"$f":"Quarterly!BA156-Quarterly!BA152","v":-5.4333333333333371},"--",{"$f":"((Quarterly!BC156/Quarterly!BC152)-1)","v":9.7786741924598797E-2},{"$f":"((Quarterly!BD156/Quarterly!BD152)-1)","v":3.0682094582855424E-2},{"$f":"((Quarterly!BE156/Quarterly!BE152)-1)","v":-1.2999238873532826E-2},{"$f":"((Quarterly!BF156/Quarterly!BF152)-1)","v":2.1985378314101967E-2},{"$f":"((Quarterly!BG156/Quarterly!BG152)-1)","v":1.1338195999133438E-2},{"$f":"((Quarterly!BH156/Quarterly!BH152)-1)","v":-3.786115127306533E-3},{"$f":"((Quarterly!BI156/Quarterly!BI152)-1)","v":1.0513605483662314E-2},{"$f":"((Quarterly!BJ156/Quarterly!BJ152)-1)","v":0.18373934998904717},{"$f":"((Quarterly!BK156/Quarterly!BK152)-1)","v":-0.5},null,{"$f":"((Quarterly!BM156/Quarterly!BM152)-1)","v":5.866946408970275E-2},{"$f":"((Quarterly!BN156/Quarterly!BN152)-1)","v":6.0773916489977875E-2},null,null,null,null,null,{"$f":"((Quarterly!BT156/Quarterly!BT152)-1)","v":0.14175445144753773},{"$f":"Quarterly!BU156-Quarterly!BU152","v":0.63118000000000052},{"$f":"Quarterly!BV156-Quarterly!BV152","v":0.65513999999999939},{"$f":"((Quarterly!BW156/Quarterly!BW152)-1)","v":6.1459553422358759E-2},{"$f":"((Quarterly!BX156/Quarterly!BX152)-1)","v":-0.12227272727272742},{"$f":"((Quarterly!BY156/Quarterly!BY152)-1)","v":-7.4788902291918036E-2},"--",{"$f":"((Quarterly!CA156/Quarterly!CA152)-1)","v":-2.8528595721829419E-2},{"$f":"((Quarterly!CB156/Quarterly!CB152)-1)","v":2.0916626228749013E-2},{"$f":"((Quarterly!CC156/Quarterly!CC152)-1)","v":-1.499819428234983E-2},"--","--",null,"--","--",null,{"$f":"((Quarterly!CJ156/Quarterly!CJ152)-1)","v":7.9840319361277334E-3},{"$f":"((Quarterly!CK156/Quarterly!CK152)-1)","v":5.6938155621549136E-2},{"$f":"((Quarterly!CL156/Quarterly!CL152)-1)","v":3.5001994415636339E-2},{"$f":"((Quarterly!CM156/Quarterly!CM152)-1)","v":-0.16030743892396371},{"$f":"((Quarterly!CN156/Quarterly!CN152)-1)","v":3.1992936066630229E-2},{"$f":"((Quarterly!CO156/Quarterly!CO152)-1)","v":-0.1041290675417007},{"$f":"((Quarterly!CP156/Quarterly!CP152)-1)","v":0.15794878376339083},{"$f":"((Quarterly!CQ156/Quarterly!CQ152)-1)","v":1.1872036111886031E-2},{"$f":"((Quarterly!CR156/Quarterly!CR152)-1)","v":0.20731640851996835},{"$f":"Quarterly!CS156-Quarterly!CS152","v":-0.53333333333331723},"--",null,null,null,null,null,{"$f":"((Quarterly!CZ156/Quarterly!CZ152)-1)","v":3.0953456845910443E-2},{"$f":"((Quarterly!DA156/Quarterly!DA152)-1)","v":3.0782385634887E-2},null,null,null,null,null,{"$f":"((Quarterly!DG156/Quarterly!DG152)-1)","v":2.7088036117381753E-2},{"$f":"((Quarterly!DH156-Quarterly!DH152)*60)","v":-14.000000000000057},{"$f":"Quarterly!DI156-Quarterly!DI152","v":0.13333333333333997},"--",{"$f":"(Quarterly!DK156-Quarterly!DK152)*100","v":-53.333333333333321},{"$f":"((Quarterly!DL156/Quarterly!DL152)-1)","v":1.7267458992240359E-2},null,null,null,{"$f":"((Quarterly!DP156/Quarterly!DP152)-1)","v":2.8246818794931183E-2},null,null,null,null,{"$f":"Quarterly!DU156-Quarterly!DU152","v":-0.7666666666666675},{"$f":"((Quarterly!DV156/Quarterly!DV152)-1)","v":4.9102636006729927E-2},{"$f":"((Quarterly!DW156/Quarterly!DW152)-1)","v":4.9614887277225073E-2},{"$f":"((Quarterly!DX156/Quarterly!DX152)-1)","v":5.836147985232909E-2},{"$f":"((Quarterly!DY156/Quarterly!DY152)-1)","v":2.3583412472301557E-2},{"$f":"((Quarterly!DZ156/Quarterly!DZ152)-1)","v":6.9839114082741238E-2},{"$f":"((Quarterly!EA156/Quarterly!EA152)-1)","v":3.2112038477861038E-2},{"$f":"((Quarterly!EB156/Quarterly!EB152)-1)","v":0.17638833399920117},{"$f":"((Quarterly!EC156/Quarterly!EC152)-1)","v":2.7590981012658E-2},null,null,null,null,null,{"$f":"((Quarterly!EI156/Quarterly!EI152)-1)","v":1.9510244581705249E-2},{"$f":"((Quarterly!EJ156/Quarterly!EJ152)-1)","v":1.6468485817482392E-2},{"$f":"((Quarterly!EK156/Quarterly!EK152)-1)","v":2.1659995600736615E-2},null,null,null,null,null,{"$f":"((Quarterly!EQ156/Quarterly!EQ152)-1)","v":4.0821993890585828E-2},{"$f":"((Quarterly!ER156/Quarterly!ER152)-1)","v":1.9474196689386547E-2},{"$f":"((Quarterly!ES156/Quarterly!ES152)-1)","v":1.7905993533946507E-2},null,null,null,null,null,{"$f":"(Quarterly!EY156-Quarterly!EY152)*100","v":210.33333333333326},{"$f":"(Quarterly!EZ156-Quarterly!EZ152)*100","v":207.99999999999997},{"$f":"(Quarterly!FA156-Quarterly!FA152)*100","v":-28.666666666666618},{"$f":"(Quarterly!FB156-Quarterly!FB152)*100","v":-36.333333333333329},"--",{"$f":"(Quarterly!FD156-Quarterly!FD152)*100","v":-48.999999999999929},{"$f":"(Quarterly!FE156-Quarterly!FE152)*100","v":161},{"$f":"(Quarterly!FF156-Quarterly!FF152)*100","v":83.666666666666686},{"$f":"(Quarterly!FG156-Quarterly!FG152)*100","v":33.666666666666686},{"$f":"(Quarterly!FH156-Quarterly!FH152)*100","v":-26.66666666666675},{"$f":"(Quarterly!FI156-Quarterly!FI152)*100","v":-46.333333333333293},null,null,null,null,null,null,{"$f":"((Quarterly!FP156/Quarterly!FP152)-1)","v":-7.9085692240923322E-3},{"$f":"((Quarterly!FQ156/Quarterly!FQ152)-1)","v":-3.8126662221302565E-2},{"$f":"((Quarterly!FR156/Quarterly!FR152)-1)","v":0.83744132040305774},"--",{"$f":"((Quarterly!FT156/Quarterly!FT152)-1)","v":-1.7419494931962598E-2},{"$f":"((Quarterly!FU156/Quarterly!FU152)-1)","v":-0.10113167990538252},{"$f":"((Quarterly!FV156/Quarterly!FV152)-1)","v":0.14031911212181125},{"$f":"((Quarterly!FW156/Quarterly!FW152)-1)","v":0.20483775282911165},{"$f":"((Quarterly!FX156/Quarterly!FX152)-1)","v":0.26889989464340536},null,null,null,null,null,{"$f":"((Quarterly!GD156/Quarterly!GD152)-1)","v":8.8130508156759824E-2},{"$f":"((Quarterly!GE156/Quarterly!GE152)-1)","v":0.12723121627231215},{"$f":"((Quarterly!GF156/Quarterly!GF152)-1)","v":0.14975684180413862},{"$f":"((Quarterly!GG156/Quarterly!GG152)-1)","v":1.2084592145015227E-2},{"$f":"((Quarterly!GH156/Quarterly!GH152)-1)","v":{"$error":"#DIV/0!"}},"--",{"$f":"((Quarterly!GJ156/Quarterly!GJ152)-1)","v":-0.1844422700587085},{"$f":"((Quarterly!GK156/Quarterly!GK152)-1)","v":-2.4478501489995086E-3},"--"]
["95'Q3",{"$f":"((Quarterly!B157/Quarterly!B153)-1)","v":4.8186032720573424E-2},{"$f":"((Quarterly!C157/Quarterly!C153)-1)","v":2.7075084598006782E-2},{"$f":"((Quarterly!D157/Quarterly!D153)-1)","v":3.2932363751837501E-2},{"$f":"((Quarterly!E157/Quarterly!E153)-1)","v":3.1898829747074142E-2},{"$f":"((Quarterly!F157/Quarterly!F153)-1)","v":5.2889894892539369E-2},{"$f":"((Quarterly!G157/Quarterly!G153)-1)","v":2.2849195310947978E-2},{"$f":"((Quarterly!H157/Quarterly!H153)-1)","v":3.2879856115237915E-2},{"$f":"((Quarterly!I157/Quarterly!I153)-1)","v":9.5216575123409752E-2},{"$f":"((Quarterly!J157/Quarterly!J153)-1)","v":0.1367395907808191},{"$f":"((Quarterly!K157/Quarterly!K153)-1)","v":-3.7107316044697525E-2},{"$f":"((Quarterly!L157-Quarterly!L153))","v":-52.218999999999994},{"$f":"((Quarterly!M157/Quarterly!M153)-1)","v":6.4317566474753285E-2},{"$f":"((Quarterly!N157/Quarterly!N153)-1)","v":0.10316051788913128},{"$f":"((Quarterly!O157/Quarterly!O153)-1)","v":-0.23719688952284612},{"$f":"((Quarterly!P157/Quarterly!P153)-1)","v":-4.5140260853419045E-3},{"$f":"((Quarterly!Q157/Quarterly!Q153)-1)","v":-3.6827406880786118E-2},null,null,null,null,null,{"$f":"((Quarterly!W157/Quarterly!W153)-1)","v":-2.4096385542169418E-3},{"$f":"((Quarterly!X157/Quarterly!X153)-1)","v":1.9936204146728809E-3},{"$f":"((Quarterly!Y157/Quarterly!Y153)-1)","v":0.13079257815007139},{"$f":"Quarterly!Z157-Quarterly!Z153","v":-4.9999999999999989E-2},{"$f":"((Quarterly!AA157/Quarterly!AA153)-1)","v":0.13444015702155698},{"$f":"((Quarterly!AB157/Quarterly!AB153)-1)","v":0.14649870830570855},{"$f":"Quarterly!AC157-Quarterly!AC153","v":-4.0999999999999979},{"$f":"Quarterly!AD157-Quarterly!AD153","v":5.6999999999999993},{"$f":"(Quarterly!AE157-Quarterly!AE153)*100","v":-23},{"$f":"(Quarterly!AF157-Quarterly!AF153)*100","v":-4.9999999999999991},{"$f":"(Quarterly!AG157-Quarterly!AG153)*100","v":-4.9999999999999991},"--","--","--","--","--",{"$f":"((Quarterly!AM157/Quarterly!AM153)-1)","v":4.4023434236704739E-2},{"$f":"((Quarterly!AN157/Quarterly!AN153)-1)","v":4.7677932225257846E-2},{"$f":"((Quarterly!AO157/Quarterly!AO153)-1)","v":8.2964228336688706E-2},{"$f":"(Quarterly!AP157-Quarterly!AP153)*100","v":1.6666666666666607},{"$f":"Quarterly!AQ157-Quarterly!AQ153","v":-9.8666666666666671},{"$f":"Quarterly!AR157-Quarterly!AR153","v":-18.333333333333329},"--",{"$f":"Quarterly!AT157-Quarterly!AT153","v":-5.8666666666666671},{"$f":"Quarterly!AU157-Quarterly!AU153","v":-3.9000000000000057},{"$f":"Quarterly!AV157-Quarterly!AV153","v":-0.30000000000000426},{"$f":"Quarterly!AW157-Quarterly!AW153","v":-1.2666666666666657},{"$f":"Quarterly!AX157-Quarterly!AX153","v":-13.766666666666673},{"$f":"Quarterly!AY157-Quarterly!AY153","v":-23.733333333333341},{"$f":"Quarterly!AZ157-Quarterly!AZ153","v":-11.366666666666674},{"$f":"Quarterly!BA157-Quarterly!BA153","v":-10.599999999999994},"--",{"$f":"((Quarterly!BC157/Quarterly!BC153)-1)","v":7.4972353662481561E-2},{"$f":"((Quarterly!BD157/Quarterly!BD153)-1)","v":3.272922586457816E-2},{"$f":"((Quarterly!BE157/Quarterly!BE153)-1)","v":-1.041895810418958E-2},{"$f":"((Quarterly!BF157/Quarterly!BF153)-1)","v":2.753554251889434E-2},{"$f":"((Quarterly!BG157/Quarterly!BG153)-1)","v":1.6553406516814695E-2},{"$f":"((Quarterly!BH157/Quarterly!BH153)-1)","v":4.4941045743562835E-3},{"$f":"((Quarterly!BI157/Quarterly!BI153)-1)","v":1.0797956880967741E-2},{"$f":"((Quarterly!BJ157/Quarterly!BJ153)-1)","v":0.18196555067840148},{"$f":"((Quarterly!BK157/Quarterly!BK153)-1)","v":-0.19999999999999996},null,{"$f":"((Quarterly!BM157/Quarterly!BM153)-1)","v":5.2396396641675391E-2},{"$f":"((Quarterly!BN157/Quarterly!BN153)-1)","v":5.4168095150188611E-2},null,null,null,null,null,{"$f":"((Quarterly!BT157/Quarterly!BT153)-1)","v":0.12413069987765968},{"$f":"Quarterly!BU157-Quarterly!BU153","v":0.60571000000000019},{"$f":"Quarterly!BV157-Quarterly!BV153","v":0.62451000000000079},{"$f":"((Quarterly!BW157/Quarterly!BW153)-1)","v":5.4652501879471682E-2},{"$f":"((Quarterly!BX157/Quarterly!BX153)-1)","v":-2.6816410726564266E-2},{"$f":"((Quarterly!BY157/Quarterly!BY153)-1)","v":8.9718719689622084E-3},"--",{"$f":"((Quarterly!CA157/Quarterly!CA153)-1)","v":-2.9489892395661021E-3},{"$f":"((Quarterly!CB157/Quarterly!CB153)-1)","v":-5.9182400262991153E-2},{"$f":"((Quarterly!CC157/Quarterly!CC153)-1)","v":-5.8015587895667298E-2},"--","--",null,"--","--",null,{"$f":"((Quarterly!CJ157/Quarterly!CJ153)-1)","v":9.3319734829168777E-2},{"$f":"((Quarterly!CK157/Quarterly!CK153)-1)","v":5.8147260981479043E-2},{"$f":"((Quarterly!CL157/Quarterly!CL153)-1)","v":5.8529111338100348E-2},{"$f":"((Quarterly!CM157/Quarterly!CM153)-1)","v":-6.0039095224797556E-2},{"$f":"((Quarterly!CN157/Quarterly!CN153)-1)","v":3.5063413060290927E-2},{"$f":"((Quarterly!CO157/Quarterly!CO153)-1)","v":-7.8301703298230052E-2},{"$f":"((Quarterly!CP157/Quarterly!CP153)-1)","v":0.1555204886434205},{"$f":"((Quarterly!CQ157/Quarterly!CQ153)-1)","v":1.1849434450192486E-2},{"$f":"((Quarterly!CR157/Quarterly!CR153)-1)","v":0.21011764381635878},{"$f":"Quarterly!CS157-Quarterly!CS153","v":2.4333333333333371},"--",null,null,null,null,null,{"$f":"((Quarterly!CZ157/Quarterly!CZ153)-1)","v":2.6639802999776085E-2},{"$f":"((Quarterly!DA157/Quarterly!DA153)-1)","v":2.991725015913449E-2},null,null,null,null,null,{"$f":"((Quarterly!DG157/Quarterly!DG153)-1)","v":2.1569356638155401E-2},{"$f":"((Quarterly!DH157-Quarterly!DH153)*60)","v":-14.000000000000057},{"$f":"Quarterly!DI157-Quarterly!DI153","v":6.6666666666662877E-2},{"$f":"(Quarterly!DJ157-Quarterly!DJ153)*100","v":-46.666666666666501},{"$f":"(Quarterly!DK157-Quarterly!DK153)*100","v":-33.3333333333333},{"$f":"((Quarterly!DL157/Quarterly!DL153)-1)","v":9.4295419936745173E-3},null,null,null,{"$f":"((Quarterly!DP157/Quarterly!DP153)-1)","v":2.362106521026619E-2},null,null,null,null,{"$f":"Quarterly!DU157-Quarterly!DU153","v":-0.79999999999999893},{"$f":"((Quarterly!DV157/Quarterly!DV153)-1)","v":1.818829265620292E-2},{"$f":"((Quarterly!DW157/Quarterly!DW153)-1)","v":1.9998916047910376E-2},{"$f":"((Quarterly!DX157/Quarterly!DX153)-1)","v":2.1911298838437121E-2},{"$f":"((Quarterly!DY157/Quarterly!DY153)-1)","v":1.5401036901494525E-2},{"$f":"((Quarterly!DZ157/Quarterly!DZ153)-1)","v":2.4050506062731625E-2},{"$f":"((Quarterly!EA157/Quarterly!EA153)-1)","v":2.4268429938097968E-2},{"$f":"((Quarterly!EB157/Quarterly!EB153)-1)","v":2.3510971786833812E-2},{"$f":"((Quarterly!EC157/Quarterly!EC153)-1)","v":1.5116502984787283E-2},null,null,null,null,null,{"$f":"((Quarterly!EI157/Quarterly!EI153)-1)","v":2.7544442966983995E-2},{"$f":"((Quarterly!EJ157/Quarterly!EJ153)-1)","v":2.4629523963362043E-2},{"$f":"((Quarterly!EK157/Quarterly!EK153)-1)","v":2.6524069446309584E-2},null,null,null,null,null,{"$f":"((Quarterly!EQ157/Quarterly!EQ153)-1)","v":3.4995866629925709E-2},{"$f":"((Quarterly!ER157/Quarterly!ER153)-1)","v":1.9389238972370215E-2},{"$f":"((Quarterly!ES157/Quarterly!ES153)-1)","v":1.6835850458034374E-2},null,null,null,null,null,{"$f":"(Quarterly!EY157-Quarterly!EY153)*100","v":126.33333333333346},{"$f":"(Quarterly!EZ157-Quarterly!EZ153)*100","v":130.99999999999997},{"$f":"(Quarterly!FA157-Quarterly!FA153)*100","v":-74.000000000000028},{"$f":"(Quarterly!FB157-Quarterly!FB153)*100","v":-78.666666666666714},"--",{"$f":"(Quarterly!FD157-Quarterly!FD153)*100","v":-88.333333333333286},{"$f":"(Quarterly!FE157-Quarterly!FE153)*100","v":89.000000000000057},{"$f":"(Quarterly!FF157-Quarterly!FF153)*100","v":5.3333333333334565},{"$f":"(Quarterly!FG157-Quarterly!FG153)*100","v":-37.666666666666693},{"$f":"(Quarterly!FH157-Quarterly!FH153)*100","v":-87.333333333333314},{"$f":"(Quarterly!FI157-Quarterly!FI153)*100","v":-100.99999999999997},null,null,null,null,null,null,{"$f":"((Quarterly!FP157/Quarterly!FP153)-1)","v":-1.1567717319983517E-2},{"$f":"((Quarterly!FQ157/Quarterly!FQ153)-1)","v":-3.2618544246451164E-2},{"$f":"((Quarterly!FR157/Quarterly!FR153)-1)","v":0.83017071279217003},"--",{"$f":"((Quarterly!FT157/Quarterly!FT153)-1)","v":1.8335856413721929E-2},{"$f":"((Quarterly!FU157/Quarterly!FU153)-1)","v":-4.0824340529883596E-2},{"$f":"((Quarterly!FV157/Quarterly!FV153)-1)","v":9.0358866017643535E-2},{"$f":"((Quarterly!FW157/Quarterly!FW153)-1)","v":0.14691601928743636},{"$f":"((Quarterly!FX157/Quarterly!FX153)-1)","v":0.2566781681813024},null,null,null,null,null,{"$f":"((Quarterly!GD157/Quarterly!GD153)-1)","v":-3.4781041629122211E-2},{"$f":"((Quarterly!GE157/Quarterly!GE153)-1)","v":-3.4530660845405681E-2},{"$f":"((Quarterly!GF157/Quarterly!GF153)-1)","v":3.3144480067928583E-2},{"$f":"((Quarterly!GG157/Quarterly!GG153)-1)","v":-1.0125074449076954E-2},{"$f":"((Quarterly!GH157/Quarterly!GH153)-1)","v":{"$error":"#DIV/0!"}},"--",{"$f":"((Quarterly!GJ157/Quarterly!GJ153)-1)","v":-0.10426540284360197},{"$f":"((Quarterly!GK157/Quarterly!GK153)-1)","v":-2.1502942507922729E-3},"--"]
["95'Q4",{"$f":"((Quarterly!B158/Quarterly!B154)-1)","v":4.317863281483536E-2},{"$f":"((Quarterly!C158/Quarterly!C154)-1)","v":2.2753304197018043E-2},{"$f":"((Quarterly!D158/Quarterly!D154)-1)","v":3.075408934399082E-2},{"$f":"((Quarterly!E158/Quarterly!E154)-1)","v":2.8089013383131078E-2},{"$f":"((Quarterly!F158/Quarterly!F154)-1)","v":3.4791833553443396E-2},{"$f":"((Quarterly!G158/Quarterly!G154)-1)","v":1.7314983850583054E-2},{"$f":"((Quarterly!H158/Quarterly!H154)-1)","v":3.1158682058275211E-2},{"$f":"((Quarterly!I158/Quarterly!I154)-1)","v":7.5139286252070558E-2},{"$f":"((Quarterly!J158/Quarterly!J154)-1)","v":0.10386603104708003},{"$f":"((Quarterly!K158/Quarterly!K154)-1)","v":-2.349925229651828E-3},{"$f":"((Quarterly!L158-Quarterly!L154))","v":-71.474999999999994},{"$f":"((Quarterly!M158/Quarterly!M154)-1)","v":4.8424035400978171E-2},{"$f":"((Quarterly!N158/Quarterly!N154)-1)","v":9.3681233045451062E-2},{"$f":"((Quarterly!O158/Quarterly!O154)-1)","v":-0.28829955081172765},{"$f":"((Quarterly!P158/Quarterly!P154)-1)","v":-4.4853940526569103E-3},{"$f":"((Quarterly!Q158/Quarterly!Q154)-1)","v":-0.13455451519339712},null,null,null,null,null,{"$f":"((Quarterly!W158/Quarterly!W154)-1)","v":-1.9002375296912177E-2},{"$f":"((Quarterly!X158/Quarterly!X154)-1)","v":-1.2618296529968598E-2},{"$f":"((Quarterly!Y158/Quarterly!Y154)-1)","v":0.11504403506668881},{"$f":"Quarterly!Z158-Quarterly!Z154","v":-2.0000000000000018E-2},{"$f":"((Quarterly!AA158/Quarterly!AA154)-1)","v":0.12109344130458033},{"$f":"((Quarterly!AB158/Quarterly!AB154)-1)","v":0.15090199252082126},{"$f":"Quarterly!AC158-Quarterly!AC154","v":-5.8000000000000007},{"$f":"Quarterly!AD158-Quarterly!AD154","v":-24.400000000000002},{"$f":"(Quarterly!AE158-Quarterly!AE154)*100","v":-13.000000000000011},{"$f":"(Quarterly!AF158-Quarterly!AF154)*100","v":-2.0000000000000018},{"$f":"(Quarterly!AG158-Quarterly!AG154)*100","v":-1.0000000000000009},"--","--","--","--","--",{"$f":"((Quarterly!AM158/Quarterly!AM154)-1)","v":3.1737583788282064E-2},{"$f":"((Quarterly!AN158/Quarterly!AN154)-1)","v":3.3966249139396831E-2},{"$f":"((Quarterly!AO158/Quarterly!AO154)-1)","v":7.1427691317507591E-2},{"$f":"(Quarterly!AP158-Quarterly!AP154)*100","v":2.3333333333333428},{"$f":"Quarterly!AQ158-Quarterly!AQ154","v":-11.966666666666654},{"$f":"Quarterly!AR158-Quarterly!AR154","v":-16},"--",{"$f":"Quarterly!AT158-Quarterly!AT154","v":-4.2666666666666657},{"$f":"Quarterly!AU158-Quarterly!AU154","v":-3.1999999999999957},{"$f":"Quarterly!AV158-Quarterly!AV154","v":-5.4333333333333371},{"$f":"Quarterly!AW158-Quarterly!AW154","v":-3.7666666666666657},{"$f":"Quarterly!AX158-Quarterly!AX154","v":-13.799999999999997},{"$f":"Quarterly!AY158-Quarterly!AY154","v":-41.466666666666661},{"$f":"Quarterly!AZ158-Quarterly!AZ154","v":-15.933333333333323},{"$f":"Quarterly!BA158-Quarterly!BA154","v":-17.733333333333348},"--",{"$f":"((Quarterly!BC158/Quarterly!BC154)-1)","v":9.5700536618218868E-2},{"$f":"((Quarterly!BD158/Quarterly!BD154)-1)","v":3.3159501835523297E-2},{"$f":"((Quarterly!BE158/Quarterly!BE154)-1)","v":-1.0673086568361856E-2},{"$f":"((Quarterly!BF158/Quarterly!BF154)-1)","v":2.8040977588196236E-2},{"$f":"((Quarterly!BG158/Quarterly!BG154)-1)","v":1.1180159880591845E-2},{"$f":"((Quarterly!BH158/Quarterly!BH154)-1)","v":4.3437599980311603E-3},{"$f":"((Quarterly!BI158/Quarterly!BI154)-1)","v":1.6663215464633341E-2},{"$f":"((Quarterly!BJ158/Quarterly!BJ154)-1)","v":0.10935256800208548},{"$f":"((Quarterly!BK158/Quarterly!BK154)-1)","v":-7.4074074074074181E-2},null,{"$f":"((Quarterly!BM158/Quarterly!BM154)-1)","v":4.2135299647316771E-2},{"$f":"((Quarterly!BN158/Quarterly!BN154)-1)","v":4.3575750429290405E-2},null,null,null,null,null,{"$f":"((Quarterly!BT158/Quarterly!BT154)-1)","v":9.432118344378404E-2},{"$f":"Quarterly!BU158-Quarterly!BU154","v":0.52673000000000059},{"$f":"Quarterly!BV158-Quarterly!BV154","v":0.58096000000000103},{"$f":"((Quarterly!BW158/Quarterly!BW154)-1)","v":5.654228178976517E-2},{"$f":"((Quarterly!BX158/Quarterly!BX154)-1)","v":-3.7137681159420288E-2},{"$f":"((Quarterly!BY158/Quarterly!BY154)-1)","v":3.3631744495523863E-2},"--",{"$f":"((Quarterly!CA158/Quarterly!CA154)-1)","v":-1.8804232575249435E-2},{"$f":"((Quarterly!CB158/Quarterly!CB154)-1)","v":-5.2855047178241854E-3},{"$f":"((Quarterly!CC158/Quarterly!CC154)-1)","v":-7.4057129943089217E-3},"--","--",null,"--","--",null,{"$f":"((Quarterly!CJ158/Quarterly!CJ154)-1)","v":3.9698492462311386E-2},{"$f":"((Quarterly!CK158/Quarterly!CK154)-1)","v":5.1559338206665029E-2},{"$f":"((Quarterly!CL158/Quarterly!CL154)-1)","v":-3.414540571647795E-2},{"$f":"((Quarterly!CM158/Quarterly!CM154)-1)","v":-1.8051575931232078E-2},{"$f":"((Quarterly!CN158/Quarterly!CN154)-1)","v":2.6796201921502005E-2},{"$f":"((Quarterly!CO158/Quarterly!CO154)-1)","v":-3.2789228438295237E-2},{"$f":"((Quarterly!CP158/Quarterly!CP154)-1)","v":0.14903539685935407},{"$f":"((Quarterly!CQ158/Quarterly!CQ154)-1)","v":1.190680187081683E-2},{"$f":"((Quarterly!CR158/Quarterly!CR154)-1)","v":0.21570958571015852},{"$f":"Quarterly!CS158-Quarterly!CS154","v":-3.3333333333333286},"--",null,null,null,null,null,{"$f":"((Quarterly!CZ158/Quarterly!CZ154)-1)","v":2.6263075895837984E-2},{"$f":"((Quarterly!DA158/Quarterly!DA154)-1)","v":3.0571368332279025E-2},null,null,null,null,null,{"$f":"((Quarterly!DG158/Quarterly!DG154)-1)","v":1.7692591227423504E-2},{"$f":"((Quarterly!DH158-Quarterly!DH154)*60)","v":-14.000000000000057},{"$f":"Quarterly!DI158-Quarterly!DI154","v":-0.20000000000000284},{"$f":"(Quarterly!DJ158-Quarterly!DJ154)*100","v":-16.666666666666607},{"$f":"(Quarterly!DK158-Quarterly!DK154)*100","v":-6.666666666666643},{"$f":"((Quarterly!DL158/Quarterly!DL154)-1)","v":2.1145750480144887E-3},null,null,null,{"$f":"((Quarterly!DP158/Quarterly!DP154)-1)","v":2.0234981310266908E-2},null,null,null,null,{"$f":"Quarterly!DU158-Quarterly!DU154","v":-1.0666666666666664},{"$f":"((Quarterly!DV158/Quarterly!DV154)-1)","v":2.8436018957346043E-2},{"$f":"((Quarterly!DW158/Quarterly!DW154)-1)","v":2.8764214091776319E-2},{"$f":"((Quarterly!DX158/Quarterly!DX154)-1)","v":3.0718124813377212E-2},{"$f":"((Quarterly!DY158/Quarterly!DY154)-1)","v":1.6057501146964359E-2},{"$f":"((Quarterly!DZ158/Quarterly!DZ154)-1)","v":3.5451538043746567E-2},{"$f":"((Quarterly!EA158/Quarterly!EA154)-1)","v":3.6061026352288472E-2},{"$f":"((Quarterly!EB158/Quarterly!EB154)-1)","v":3.3944796845534198E-2},{"$f":"((Quarterly!EC158/Quarterly!EC154)-1)","v":2.3734025175362827E-2},null,null,null,null,null,{"$f":"((Quarterly!EI158/Quarterly!EI154)-1)","v":2.4143579206262755E-2},{"$f":"((Quarterly!EJ158/Quarterly!EJ154)-1)","v":2.36574825233824E-2},{"$f":"((Quarterly!EK158/Quarterly!EK154)-1)","v":2.4861475143014955E-2},null,null,null,null,null,{"$f":"((Quarterly!EQ158/Quarterly!EQ154)-1)","v":3.3214383749656795E-2},{"$f":"((Quarterly!ER158/Quarterly!ER154)-1)","v":2.639864373940437E-2},{"$f":"((Quarterly!ES158/Quarterly!ES154)-1)","v":2.4269440316988744E-2},null,null,null,null,null,{"$f":"(Quarterly!EY158-Quarterly!EY154)*100","v":58.333333333333393},{"$f":"(Quarterly!EZ158-Quarterly!EZ154)*100","v":55.333333333333186},{"$f":"(Quarterly!FA158-Quarterly!FA154)*100","v":-158.33333333333331},{"$f":"(Quarterly!FB158-Quarterly!FB154)*100","v":-156.66666666666646},"--",{"$f":"(Quarterly!FD158-Quarterly!FD154)*100","v":-174.66666666666671},{"$f":"(Quarterly!FE158-Quarterly!FE154)*100","v":-1.9999999999999574},{"$f":"(Quarterly!FF158-Quarterly!FF154)*100","v":-115.33333333333343},{"$f":"(Quarterly!FG158-Quarterly!FG154)*100","v":-165.66666666666663},{"$f":"(Quarterly!FH158-Quarterly!FH154)*100","v":-194.66666666666663},{"$f":"(Quarterly!FI158-Quarterly!FI154)*100","v":-194.33333333333326},null,null,null,null,null,null,{"$f":"((Quarterly!FP158/Quarterly!FP154)-1)","v":-8.7225592671100749E-3},{"$f":"((Quarterly!FQ158/Quarterly!FQ154)-1)","v":-2.2892201879677221E-2},{"$f":"((Quarterly!FR158/Quarterly!FR154)-1)","v":1.041407943903677},"--",{"$f":"((Quarterly!FT158/Quarterly!FT154)-1)","v":4.6252617360492687E-2},{"$f":"((Quarterly!FU158/Quarterly!FU154)-1)","v":-1.6639587912353759E-2},{"$f":"((Quarterly!FV158/Quarterly!FV154)-1)","v":4.6278680442007003E-2},{"$f":"((Quarterly!FW158/Quarterly!FW154)-1)","v":0.11988147581724329},{"$f":"((Quarterly!FX158/Quarterly!FX154)-1)","v":0.18313795231009333},null,null,null,null,null,{"$f":"((Quarterly!GD158/Quarterly!GD154)-1)","v":2.8317915801397087E-2},{"$f":"((Quarterly!GE158/Quarterly!GE154)-1)","v":2.600282201169124E-2},{"$f":"((Quarterly!GF158/Quarterly!GF154)-1)","v":1.1161604081943999E-4},{"$f":"((Quarterly!GG158/Quarterly!GG154)-1)","v":-2.9708853238263888E-4},{"$f":"((Quarterly!GH158/Quarterly!GH154)-1)","v":{"$error":"#DIV/0!"}},"--",{"$f":"((Quarterly!GJ158/Quarterly!GJ154)-1)","v":0.19607087827426817},{"$f":"((Quarterly!GK158/Quarterly!GK154)-1)","v":3.90625E-2},"--"]
["96'Q1",{"$f":"((Quarterly!B159/Quarterly!B155)-1)","v":4.6101571098072114E-2},{"$f":"((Quarterly!C159/Quarterly!C155)-1)","v":2.595580119041796E-2},{"$f":"((Quarterly!D159/Quarterly!D155)-1)","v":3.3919479652782636E-2},{"$f":"((Quarterly!E159/Quarterly!E155)-1)","v":3.4890578922861959E-2},{"$f":"((Quarterly!F159/Quarterly!F155)-1)","v":6.8159709939865643E-2},{"$f":"((Quarterly!G159/Quarterly!G155)-1)","v":2.0247673686420109E-2},{"$f":"((Quarterly!H159/Quarterly!H155)-1)","v":3.655435057745926E-2},{"$f":"((Quarterly!I159/Quarterly!I155)-1)","v":6.2328612446366227E-2},{"$f":"((Quarterly!J159/Quarterly!J155)-1)","v":8.8728808201973708E-2},{"$f":"((Quarterly!K159/Quarterly!K155)-1)","v":4.7192484159930048E-2},{"$f":"((Quarterly!L159-Quarterly!L155))","v":-70.376000000000005},{"$f":"((Quarterly!M159/Quarterly!M155)-1)","v":5.9266219194650471E-2},{"$f":"((Quarterly!N159/Quarterly!N155)-1)","v":8.5959953796340027E-2},{"$f":"((Quarterly!O159/Quarterly!O155)-1)","v":-0.13501750088952424},{"$f":"((Quarterly!P159/Quarterly!P155)-1)","v":-4.4483043581331483E-3},{"$f":"((Quarterly!Q159/Quarterly!Q155)-1)","v":-0.12193269340511859},null,null,null,null,null,{"$f":"((Quarterly!W159/Quarterly!W155)-1)","v":-2.8537455410225787E-2},{"$f":"((Quarterly!X159/Quarterly!X155)-1)","v":-1.9314150571541067E-2},{"$f":"((Quarterly!Y159/Quarterly!Y155)-1)","v":8.9697216565242321E-2},{"$f":"Quarterly!Z159-Quarterly!Z155","v":0.10999999999999999},{"$f":"((Quarterly!AA159/Quarterly!AA155)-1)","v":0.13546502869964638},{"$f":"((Quarterly!AB159/Quarterly!AB155)-1)","v":0.22419014305012586},{"$f":"Quarterly!AC159-Quarterly!AC155","v":-1.8000000000000007},{"$f":"Quarterly!AD159-Quarterly!AD155","v":-4.1999999999999993},{"$f":"(Quarterly!AE159-Quarterly!AE155)*100","v":-16.000000000000014},{"$f":"(Quarterly!AF159-Quarterly!AF155)*100","v":10.999999999999998},{"$f":"(Quarterly!AG159-Quarterly!AG155)*100","v":17.000000000000004},"--","--","--","--","--",{"$f":"((Quarterly!AM159/Quarterly!AM155)-1)","v":2.8240352087977039E-2},{"$f":"((Quarterly!AN159/Quarterly!AN155)-1)","v":2.8646996801115154E-2},{"$f":"((Quarterly!AO159/Quarterly!AO155)-1)","v":4.9915917509758989E-2},{"$f":"(Quarterly!AP159-Quarterly!AP155)*100","v":2.3333333333332984},{"$f":"Quarterly!AQ159-Quarterly!AQ155","v":-8.7666666666666657},{"$f":"Quarterly!AR159-Quarterly!AR155","v":-11.666666666666671},"--",{"$f":"Quarterly!AT159-Quarterly!AT155","v":-5.2333333333333272},{"$f":"Quarterly!AU159-Quarterly!AU155","v":-7.5333333333333456},{"$f":"Quarterly!AV159-Quarterly!AV155","v":-4.43333333333333},{"$f":"Quarterly!AW159-Quarterly!AW155","v":-3.0999999999999943},{"$f":"Quarterly!AX159-Quarterly!AX155","v":-9.6333333333333329},{"$f":"Quarterly!AY159-Quarterly!AY155","v":-42.533333333333339},{"$f":"Quarterly!AZ159-Quarterly!AZ155","v":-11.499999999999986},{"$f":"Quarterly!BA159-Quarterly!BA155","v":-11.133333333333333},"--",{"$f":"((Quarterly!BC159/Quarterly!BC155)-1)","v":5.2158840214308055E-2},{"$f":"((Quarterly!BD159/Quarterly!BD155)-1)","v":4.0255210548702625E-2},{"$f":"((Quarterly!BE159/Quarterly!BE155)-1)","v":-7.6560298891414913E-4},{"$f":"((Quarterly!BF159/Quarterly!BF155)-1)","v":3.3358236183261614E-2},{"$f":"((Quarterly!BG159/Quarterly!BG155)-1)","v":1.6488957134451532E-2},{"$f":"((Quarterly!BH159/Quarterly!BH155)-1)","v":7.9107305430476949E-3},{"$f":"((Quarterly!BI159/Quarterly!BI155)-1)","v":1.6586157217399533E-2},{"$f":"((Quarterly!BJ159/Quarterly!BJ155)-1)","v":9.7927226466493877E-2},{"$f":"((Quarterly!BK159/Quarterly!BK155)-1)","v":0.78571428571428559},null,{"$f":"((Quarterly!BM159/Quarterly!BM155)-1)","v":5.7316276682950251E-2},{"$f":"((Quarterly!BN159/Quarterly!BN155)-1)","v":5.9934683021085178E-2},null,null,null,null,null,{"$f":"((Quarterly!BT159/Quarterly!BT155)-1)","v":8.0931704585975206E-2},{"$f":"Quarterly!BU159-Quarterly!BU155","v":0.36426999999999943},{"$f":"Quarterly!BV159-Quarterly!BV155","v":0.37517000000000067},{"$f":"((Quarterly!BW159/Quarterly!BW155)-1)","v":5.666793630611644E-2},{"$f":"((Quarterly!BX159/Quarterly!BX155)-1)","v":0.10322255790533741},{"$f":"((Quarterly!BY159/Quarterly!BY155)-1)","v":0.12812333864965453},"--",{"$f":"((Quarterly!CA159/Quarterly!CA155)-1)","v":3.7953530960283866E-2},{"$f":"((Quarterly!CB159/Quarterly!CB155)-1)","v":1.2289025776475171E-3},{"$f":"((Quarterly!CC159/Quarterly!CC155)-1)","v":4.6873826708011546E-3},"--","--",null,"--","--",null,{"$f":"((Quarterly!CJ159/Quarterly!CJ155)-1)","v":0.22376457523597981},{"$f":"((Quarterly!CK159/Quarterly!CK155)-1)","v":5.4107015611841502E-2},{"$f":"((Quarterly!CL159/Quarterly!CL155)-1)","v":-0.10494843573966561},{"$f":"((Quarterly!CM159/Quarterly!CM155)-1)","v":0.10089399744572147},{"$f":"((Quarterly!CN159/Quarterly!CN155)-1)","v":2.6811540458355099E-2},{"$f":"((Quarterly!CO159/Quarterly!CO155)-1)","v":4.0399225383584092E-2},{"$f":"((Quarterly!CP159/Quarterly!CP155)-1)","v":0.13892252240932845},{"$f":"((Quarterly!CQ159/Quarterly!CQ155)-1)","v":1.1687477774189547E-2},{"$f":"((Quarterly!CR159/Quarterly!CR155)-1)","v":0.203860552371669},{"$f":"Quarterly!CS159-Quarterly!CS155","v":-3.8333333333333286},"--",null,null,null,null,null,{"$f":"((Quarterly!CZ159/Quarterly!CZ155)-1)","v":2.7839151568714193E-2},{"$f":"((Quarterly!DA159/Quarterly!DA155)-1)","v":2.8852184821241966E-2},null,null,null,null,null,{"$f":"((Quarterly!DG159/Quarterly!DG155)-1)","v":1.2463343108504388E-2},{"$f":"((Quarterly!DH159-Quarterly!DH155)*60)","v":-15.999999999999943},{"$f":"Quarterly!DI159-Quarterly!DI155","v":-0.23333333333333428},{"$f":"(Quarterly!DJ159-Quarterly!DJ155)*100","v":-13.333333333333286},{"$f":"(Quarterly!DK159-Quarterly!DK155)*100","v":6.6666666666668206},{"$f":"((Quarterly!DL159/Quarterly!DL155)-1)","v":-3.0893994979724893E-3},null,null,null,{"$f":"((Quarterly!DP159/Quarterly!DP155)-1)","v":1.6986720823086054E-2},null,null,null,null,{"$f":"Quarterly!DU159-Quarterly!DU155","v":0},{"$f":"((Quarterly!DV159/Quarterly!DV155)-1)","v":2.1148279189449948E-2},{"$f":"((Quarterly!DW159/Quarterly!DW155)-1)","v":1.9814410480349487E-2},{"$f":"((Quarterly!DX159/Quarterly!DX155)-1)","v":2.0575664737698007E-2},{"$f":"((Quarterly!DY159/Quarterly!DY155)-1)","v":1.4451775054979743E-2},{"$f":"((Quarterly!DZ159/Quarterly!DZ155)-1)","v":2.2517809993523485E-2},{"$f":"((Quarterly!EA159/Quarterly!EA155)-1)","v":2.3010211218352117E-2},{"$f":"((Quarterly!EB159/Quarterly!EB155)-1)","v":2.1298701298701372E-2},{"$f":"((Quarterly!EC159/Quarterly!EC155)-1)","v":1.7841388099205879E-2},null,null,null,null,null,{"$f":"((Quarterly!EI159/Quarterly!EI155)-1)","v":3.3761159644273286E-2},{"$f":"((Quarterly!EJ159/Quarterly!EJ155)-1)","v":3.4264930200174959E-2},{"$f":"((Quarterly!EK159/Quarterly!EK155)-1)","v":3.283053056782026E-2},null,null,null,null,null,{"$f":"((Quarterly!EQ159/Quarterly!EQ155)-1)","v":2.3224412638401137E-2},{"$f":"((Quarterly!ER159/Quarterly!ER155)-1)","v":2.0668108627733828E-2},{"$f":"((Quarterly!ES159/Quarterly!ES155)-1)","v":1.6940829855143891E-2},null,null,null,null,null,{"$f":"(Quarterly!EY159-Quarterly!EY155)*100","v":-50},{"$f":"(Quarterly!EZ159-Quarterly!EZ155)*100","v":-44.666666666666629},{"$f":"(Quarterly!FA159-Quarterly!FA155)*100","v":-122.99999999999996},{"$f":"(Quarterly!FB159-Quarterly!FB155)*100","v":-116.6666666666667},"--",{"$f":"(Quarterly!FD159-Quarterly!FD155)*100","v":-157.00000000000011},{"$f":"(Quarterly!FE159-Quarterly!FE155)*100","v":-80.666666666666757},{"$f":"(Quarterly!FF159-Quarterly!FF155)*100","v":-160.33333333333326},{"$f":"(Quarterly!FG159-Quarterly!FG155)*100","v":-186.66666666666671},{"$f":"(Quarterly!FH159-Quarterly!FH155)*100","v":-182.33333333333331},{"$f":"(Quarterly!FI159-Quarterly!FI155)*100","v":-157.33333333333331},null,null,null,null,null,null,{"$f":"((Quarterly!FP159/Quarterly!FP155)-1)","v":-2.6934192448003214E-2},{"$f":"((Quarterly!FQ159/Quarterly!FQ155)-1)","v":-1.3511062749365199E-2},{"$f":"((Quarterly!FR159/Quarterly!FR155)-1)","v":0.24711805210163895},"--",{"$f":"((Quarterly!FT159/Quarterly!FT155)-1)","v":3.2830859831572079E-2},{"$f":"((Quarterly!FU159/Quarterly!FU155)-1)","v":1.3128724630375288E-2},{"$f":"((Quarterly!FV159/Quarterly!FV155)-1)","v":5.1751215887597901E-2},{"$f":"((Quarterly!FW159/Quarterly!FW155)-1)","v":7.4606141522029379E-2},{"$f":"((Quarterly!FX159/Quarterly!FX155)-1)","v":0.12677118078719163},null,null,null,null,null,{"$f":"((Quarterly!GD159/Quarterly!GD155)-1)","v":7.6992918104231034E-2},{"$f":"((Quarterly!GE159/Quarterly!GE155)-1)","v":9.9269784882573431E-2},{"$f":"((Quarterly!GF159/Quarterly!GF155)-1)","v":2.1874536556429014E-2},{"$f":"((Quarterly!GG159/Quarterly!GG155)-1)","v":6.0781918142944535E-2},{"$f":"((Quarterly!GH159/Quarterly!GH155)-1)","v":{"$error":"#DIV/0!"}},"--",{"$f":"((Quarterly!GJ159/Quarterly!GJ155)-1)","v":0.65810411457149365},{"$f":"((Quarterly!GK159/Quarterly!GK155)-1)","v":7.2269072367130871E-2},"--"]
["96'Q2",{"$f":"((Quarterly!B160/Quarterly!B156)-1)","v":6.0041633557631036E-2},{"$f":"((Quarterly!C160/Quarterly!C156)-1)","v":4.0234350070074365E-2},{"$f":"((Quarterly!D160/Quarterly!D156)-1)","v":4.1528593227797117E-2},{"$f":"((Quarterly!E160/Quarterly!E156)-1)","v":3.6826236770858944E-2},{"$f":"((Quarterly!F160/Quarterly!F156)-1)","v":9.1066269806530764E-2},{"$f":"((Quarterly!G160/Quarterly!G156)-1)","v":2.8294136485790711E-2},{"$f":"((Quarterly!H160/Quarterly!H156)-1)","v":3.4135136524137355E-2},{"$f":"((Quarterly!I160/Quarterly!I156)-1)","v":8.0565540378624734E-2},{"$f":"((Quarterly!J160/Quarterly!J156)-1)","v":0.12247518376045319},{"$f":"((Quarterly!K160/Quarterly!K156)-1)","v":0.1275395033860045},{"$f":"((Quarterly!L160-Quarterly!L156))","v":-11.670000000000002},{"$f":"((Quarterly!M160/Quarterly!M156)-1)","v":7.278381996482941E-2},{"$f":"((Quarterly!N160/Quarterly!N156)-1)","v":8.8371649764831917E-2},{"$f":"((Quarterly!O160/Quarterly!O156)-1)","v":-4.5017412155464731E-2},{"$f":"((Quarterly!P160/Quarterly!P156)-1)","v":6.2266270071462682E-3},{"$f":"((Quarterly!Q160/Quarterly!Q156)-1)","v":-0.25604837875735753},null,null,null,null,null,{"$f":"((Quarterly!W160/Quarterly!W156)-1)","v":-1.200480192076836E-2},{"$f":"((Quarterly!X160/Quarterly!X156)-1)","v":-4.7656870532167828E-3},{"$f":"((Quarterly!Y160/Quarterly!Y156)-1)","v":7.5792522393782757E-2},{"$f":"Quarterly!Z160-Quarterly!Z156","v":0.14000000000000001},{"$f":"((Quarterly!AA160/Quarterly!AA156)-1)","v":8.4492488843440183E-2},{"$f":"((Quarterly!AB160/Quarterly!AB156)-1)","v":0.15504835051807131},{"$f":"Quarterly!AC160-Quarterly!AC156","v":-9.6999999999999993},{"$f":"Quarterly!AD160-Quarterly!AD156","v":6.8000000000000007},{"$f":"(Quarterly!AE160-Quarterly!AE156)*100","v":-13.999999999999989},{"$f":"(Quarterly!AF160-Quarterly!AF156)*100","v":14.000000000000002},{"$f":"(Quarterly!AG160-Quarterly!AG156)*100","v":14.999999999999996},"--","--","--","--","--",{"$f":"((Quarterly!AM160/Quarterly!AM156)-1)","v":4.67124851545484E-2},{"$f":"((Quarterly!AN160/Quarterly!AN156)-1)","v":5.15535599923993E-2},{"$f":"((Quarterly!AO160/Quarterly!AO156)-1)","v":2.9216551427729387E-2},{"$f":"(Quarterly!AP160-Quarterly!AP156)*100","v":-3.3333333333333215},{"$f":"Quarterly!AQ160-Quarterly!AQ156","v":2.6333333333333329},{"$f":"Quarterly!AR160-Quarterly!AR156","v":6},"--",{"$f":"Quarterly!AT160-Quarterly!AT156","v":0},{"$f":"Quarterly!AU160-Quarterly!AU156","v":-2.1000000000000014},{"$f":"Quarterly!AV160-Quarterly!AV156","v":-0.76666666666667282},{"$f":"Quarterly!AW160-Quarterly!AW156","v":-1.4333333333333371},{"$f":"Quarterly!AX160-Quarterly!AX156","v":7.9000000000000057},{"$f":"Quarterly!AY160-Quarterly!AY156","v":-23.36666666666666},{"$f":"Quarterly!AZ160-Quarterly!AZ156","v":3.3333333333333357},{"$f":"Quarterly!BA160-Quarterly!BA156","v":-3.0999999999999943},"--",{"$f":"((Quarterly!BC160/Quarterly!BC156)-1)","v":4.9012553528889891E-2},{"$f":"((Quarterly!BD160/Quarterly!BD156)-1)","v":3.8719573865551915E-2},{"$f":"((Quarterly!BE160/Quarterly!BE156)-1)","v":-1.0603324065994291E-2},{"$f":"((Quarterly!BF160/Quarterly!BF156)-1)","v":3.4302656301173906E-2},{"$f":"((Quarterly!BG160/Quarterly!BG156)-1)","v":2.1922307912025207E-2},{"$f":"((Quarterly!BH160/Quarterly!BH156)-1)","v":8.0191870118686559E-3},{"$f":"((Quarterly!BI160/Quarterly!BI156)-1)","v":1.2130209653474333E-2},{"$f":"((Quarterly!BJ160/Quarterly!BJ156)-1)","v":8.7266493951730695E-2},{"$f":"((Quarterly!BK160/Quarterly!BK156)-1)","v":1},null,{"$f":"((Quarterly!BM160/Quarterly!BM156)-1)","v":6.1453732929974247E-2},{"$f":"((Quarterly!BN160/Quarterly!BN156)-1)","v":6.4781175804822233E-2},null,null,null,null,null,{"$f":"((Quarterly!BT160/Quarterly!BT156)-1)","v":6.5703483785053418E-2},{"$f":"Quarterly!BU160-Quarterly!BU156","v":0.18825000000000003},{"$f":"Quarterly!BV160-Quarterly!BV156","v":0.14431000000000083},{"$f":"((Quarterly!BW160/Quarterly!BW156)-1)","v":5.0729799001753673E-2},{"$f":"((Quarterly!BX160/Quarterly!BX156)-1)","v":0.16183324702226831},{"$f":"((Quarterly!BY160/Quarterly!BY156)-1)","v":0.13402868318122563},"--",{"$f":"((Quarterly!CA160/Quarterly!CA156)-1)","v":5.0279844300619603E-2},{"$f":"((Quarterly!CB160/Quarterly!CB156)-1)","v":-4.9644075075283567E-2},{"$f":"((Quarterly!CC160/Quarterly!CC156)-1)","v":-4.3339068592092356E-2},"--","--",null,"--","--",null,{"$f":"((Quarterly!CJ160/Quarterly!CJ156)-1)","v":9.0594059405940675E-2},{"$f":"((Quarterly!CK160/Quarterly!CK156)-1)","v":6.3955941818414797E-2},{"$f":"((Quarterly!CL160/Quarterly!CL156)-1)","v":-1.2428943058098163E-2},{"$f":"((Quarterly!CM160/Quarterly!CM156)-1)","v":0.16345210853220005},{"$f":"((Quarterly!CN160/Quarterly!CN156)-1)","v":3.426634230267589E-2},{"$f":"((Quarterly!CO160/Quarterly!CO156)-1)","v":9.4469202124412233E-2},{"$f":"((Quarterly!CP160/Quarterly!CP156)-1)","v":0.12692550953166104},{"$f":"((Quarterly!CQ160/Quarterly!CQ156)-1)","v":1.168387377306157E-2},{"$f":"((Quarterly!CR160/Quarterly!CR156)-1)","v":0.18149891749965463},{"$f":"Quarterly!CS160-Quarterly!CS156","v":-0.1666666666666714},"--",null,null,null,null,null,{"$f":"((Quarterly!CZ160/Quarterly!CZ156)-1)","v":2.8270874424720649E-2},{"$f":"((Quarterly!DA160/Quarterly!DA156)-1)","v":2.6545002073828261E-2},null,null,null,null,null,{"$f":"((Quarterly!DG160/Quarterly!DG156)-1)","v":2.490842490842482E-2},{"$f":"((Quarterly!DH160-Quarterly!DH156)*60)","v":2.0000000000003126},{"$f":"Quarterly!DI160-Quarterly!DI156","v":6.6666666666662877E-2},{"$f":"(Quarterly!DJ160-Quarterly!DJ156)*100","v":-29.999999999999893},{"$f":"(Quarterly!DK160-Quarterly!DK156)*100","v":-16.666666666666696},{"$f":"((Quarterly!DL160/Quarterly!DL156)-1)","v":-2.5490498995829336E-3},null,null,null,{"$f":"((Quarterly!DP160/Quarterly!DP156)-1)","v":1.9915942713564894E-2},null,null,null,null,{"$f":"Quarterly!DU160-Quarterly!DU156","v":6.6666666666668206E-2},{"$f":"((Quarterly!DV160/Quarterly!DV156)-1)","v":2.8654673759054949E-2},{"$f":"((Quarterly!DW160/Quarterly!DW156)-1)","v":2.9433032486140487E-2},{"$f":"((Quarterly!DX160/Quarterly!DX156)-1)","v":2.7720053436247394E-2},{"$f":"((Quarterly!DY160/Quarterly!DY156)-1)","v":4.1131900417504363E-2},{"$f":"((Quarterly!DZ160/Quarterly!DZ156)-1)","v":2.3485181387627563E-2},{"$f":"((Quarterly!EA160/Quarterly!EA156)-1)","v":2.3985745614035325E-2},{"$f":"((Quarterly!EB160/Quarterly!EB156)-1)","v":2.2244863304465623E-2},{"$f":"((Quarterly!EC160/Quarterly!EC156)-1)","v":3.3875469156000815E-2},null,null,null,null,null,{"$f":"((Quarterly!EI160/Quarterly!EI156)-1)","v":6.398479343690866E-2},{"$f":"((Quarterly!EJ160/Quarterly!EJ156)-1)","v":4.8861396555814673E-2},{"$f":"((Quarterly!EK160/Quarterly!EK156)-1)","v":4.0944399737336212E-2},null,null,null,null,null,{"$f":"((Quarterly!EQ160/Quarterly!EQ156)-1)","v":2.321237993596581E-2},{"$f":"((Quarterly!ER160/Quarterly!ER156)-1)","v":1.6714422158548237E-2},{"$f":"((Quarterly!ES160/Quarterly!ES156)-1)","v":1.3681895919863241E-2},null,null,null,null,null,{"$f":"(Quarterly!EY160-Quarterly!EY156)*100","v":-75},{"$f":"(Quarterly!EZ160-Quarterly!EZ156)*100","v":-77.666666666666643},{"$f":"(Quarterly!FA160-Quarterly!FA156)*100","v":-4.9999999999999822},{"$f":"(Quarterly!FB160-Quarterly!FB156)*100","v":6.3333333333334352},"--",{"$f":"(Quarterly!FD160-Quarterly!FD156)*100","v":15.666666666666718},{"$f":"(Quarterly!FE160-Quarterly!FE156)*100","v":-57.666666666666714},{"$f":"(Quarterly!FF160-Quarterly!FF156)*100","v":-30.666666666666664},{"$f":"(Quarterly!FG160-Quarterly!FG156)*100","v":-3.3333333333333215},{"$f":"(Quarterly!FH160-Quarterly!FH156)*100","v":9.0000000000001634},{"$f":"(Quarterly!FI160-Quarterly!FI156)*100","v":9.9999999999999645},null,null,null,null,null,null,{"$f":"((Quarterly!FP160/Quarterly!FP156)-1)","v":-4.933650901667197E-3},{"$f":"((Quarterly!FQ160/Quarterly!FQ156)-1)","v":-2.3068004796871211E-3},{"$f":"((Quarterly!FR160/Quarterly!FR156)-1)","v":0.21889170951854009},"--",{"$f":"((Quarterly!FT160/Quarterly!FT156)-1)","v":7.9311769527493858E-2},{"$f":"((Quarterly!FU160/Quarterly!FU156)-1)","v":8.4186314258711148E-2},{"$f":"((Quarterly!FV160/Quarterly!FV156)-1)","v":9.1307151643897466E-2},{"$f":"((Quarterly!FW160/Quarterly!FW156)-1)","v":5.1050269883592403E-2},{"$f":"((Quarterly!FX160/Quarterly!FX156)-1)","v":0.21466817471576971},null,null,null,null,null,{"$f":"((Quarterly!GD160/Quarterly!GD156)-1)","v":0.12476305359296891},{"$f":"((Quarterly!GE160/Quarterly!GE156)-1)","v":7.7333824341741852E-2},{"$f":"((Quarterly!GF160/Quarterly!GF156)-1)","v":7.6660446471767285E-2},{"$f":"((Quarterly!GG160/Quarterly!GG156)-1)","v":0.11910447761194032},{"$f":"((Quarterly!GH160/Quarterly!GH156)-1)","v":{"$error":"#DIV/0!"}},"--",{"$f":"((Quarterly!GJ160/Quarterly!GJ156)-1)","v":0.42691461707658518},{"$f":"((Quarterly!GK160/Quarterly!GK156)-1)","v":8.9619118745332127E-3},"--"]
["96'Q3",{"$f":"((Quarterly!B161/Quarterly!B157)-1)","v":5.871798867739586E-2},{"$f":"((Quarterly!C161/Quarterly!C157)-1)","v":4.0945767032508851E-2},{"$f":"((Quarterly!D161/Quarterly!D157)-1)","v":3.442123238918815E-2},{"$f":"((Quarterly!E161/Quarterly!E157)-1)","v":3.359551246875192E-2},{"$f":"((Quarterly!F161/Quarterly!F157)-1)","v":6.8687341691322068E-2},{"$f":"((Quarterly!G161/Quarterly!G157)-1)","v":3.1954156954157042E-2},{"$f":"((Quarterly!H161/Quarterly!H157)-1)","v":3.0426770020793192E-2},{"$f":"((Quarterly!I161/Quarterly!I157)-1)","v":0.10720520552293311},{"$f":"((Quarterly!J161/Quarterly!J157)-1)","v":0.16790135488412061},{"$f":"((Quarterly!K161/Quarterly!K157)-1)","v":9.0869279614626652E-2},{"$f":"((Quarterly!L161-Quarterly!L157))","v":56.085000000000008},{"$f":"((Quarterly!M161/Quarterly!M157)-1)","v":0.10377173238392867},{"$f":"((Quarterly!N161/Quarterly!N157)-1)","v":5.166697653025154E-2},{"$f":"((Quarterly!O161/Quarterly!O157)-1)","v":0.68869586198576327},{"$f":"((Quarterly!P161/Quarterly!P157)-1)","v":1.0052001493965568E-2},{"$f":"((Quarterly!Q161/Quarterly!Q157)-1)","v":-0.3082331159748305},null,null,null,null,null,{"$f":"((Quarterly!W161/Quarterly!W157)-1)","v":-3.6231884057971175E-3},{"$f":"((Quarterly!X161/Quarterly!X157)-1)","v":-3.9793076004775996E-3},{"$f":"((Quarterly!Y161/Quarterly!Y157)-1)","v":6.8273494137888191E-2},{"$f":"Quarterly!Z161-Quarterly!Z157","v":7.0000000000000007E-2},{"$f":"((Quarterly!AA161/Quarterly!AA157)-1)","v":5.7842681209600455E-2},{"$f":"((Quarterly!AB161/Quarterly!AB157)-1)","v":0.10228917824881867},{"$f":"Quarterly!AC161-Quarterly!AC157","v":-18.5},{"$f":"Quarterly!AD161-Quarterly!AD157","v":-7.3000000000000007},{"$f":"(Quarterly!AE161-Quarterly!AE157)*100","v":-12.999999999999989},{"$f":"(Quarterly!AF161-Quarterly!AF157)*100","v":7.0000000000000009},{"$f":"(Quarterly!AG161-Quarterly!AG157)*100","v":11.999999999999995},"--","--","--","--","--",{"$f":"((Quarterly!AM161/Quarterly!AM157)-1)","v":5.0392824334322128E-2},{"$f":"((Quarterly!AN161/Quarterly!AN157)-1)","v":6.2968851374056278E-2},{"$f":"((Quarterly!AO161/Quarterly!AO157)-1)","v":2.3686423505399512E-2},{"$f":"(Quarterly!AP161-Quarterly!AP157)*100","v":-3.3333333333333215},{"$f":"Quarterly!AQ161-Quarterly!AQ157","v":2.1666666666666714},{"$f":"Quarterly!AR161-Quarterly!AR157","v":6.1666666666666643},"--",{"$f":"Quarterly!AT161-Quarterly!AT157","v":0.90000000000000568},{"$f":"Quarterly!AU161-Quarterly!AU157","v":0.30000000000000426},{"$f":"Quarterly!AV161-Quarterly!AV157","v":-0.23333333333332718},{"$f":"Quarterly!AW161-Quarterly!AW157","v":-2.0066666666666606},{"$f":"Quarterly!AX161-Quarterly!AX157","v":4.1666666666666643},{"$f":"Quarterly!AY161-Quarterly!AY157","v":-5.0333333333333243},{"$f":"Quarterly!AZ161-Quarterly!AZ157","v":3.2666666666666657},{"$f":"Quarterly!BA161-Quarterly!BA157","v":0.76666666666666572},"--",{"$f":"((Quarterly!BC161/Quarterly!BC157)-1)","v":6.1275761923090588E-2},{"$f":"((Quarterly!BD161/Quarterly!BD157)-1)","v":4.7563123899001747E-2},{"$f":"((Quarterly!BE161/Quarterly!BE157)-1)","v":-2.1128041387115104E-2},{"$f":"((Quarterly!BF161/Quarterly!BF157)-1)","v":3.6587456708843336E-2},{"$f":"((Quarterly!BG161/Quarterly!BG157)-1)","v":2.6068449320077791E-2},{"$f":"((Quarterly!BH161/Quarterly!BH157)-1)","v":9.9190009710050653E-3},{"$f":"((Quarterly!BI161/Quarterly!BI157)-1)","v":1.025050112227377E-2},{"$f":"((Quarterly!BJ161/Quarterly!BJ157)-1)","v":4.6480460921843658E-2},{"$f":"((Quarterly!BK161/Quarterly!BK157)-1)","v":0.35000000000000009},null,{"$f":"((Quarterly!BM161/Quarterly!BM157)-1)","v":5.4171126626201049E-2},{"$f":"((Quarterly!BN161/Quarterly!BN157)-1)","v":5.6582836271626302E-2},null,null,null,null,null,{"$f":"((Quarterly!BT161/Quarterly!BT157)-1)","v":4.9826050286350787E-2},{"$f":"Quarterly!BU161-Quarterly!BU157","v":0.12659999999999982},{"$f":"Quarterly!BV161-Quarterly!BV157","v":7.289000000000101E-2},{"$f":"((Quarterly!BW161/Quarterly!BW157)-1)","v":5.2685396048194777E-2},{"$f":"((Quarterly!BX161/Quarterly!BX157)-1)","v":6.07630711257654E-2},{"$f":"((Quarterly!BY161/Quarterly!BY157)-1)","v":2.2590723383801858E-2},"--",{"$f":"((Quarterly!CA161/Quarterly!CA157)-1)","v":1.6278702219412633E-2},{"$f":"((Quarterly!CB161/Quarterly!CB157)-1)","v":-1.9710692117012818E-2},{"$f":"((Quarterly!CC161/Quarterly!CC157)-1)","v":-3.6121535270393745E-2},"--","--",null,"--","--",null,{"$f":"((Quarterly!CJ161/Quarterly!CJ157)-1)","v":0.10354477611940305},{"$f":"((Quarterly!CK161/Quarterly!CK157)-1)","v":6.2940937465371327E-2},{"$f":"((Quarterly!CL161/Quarterly!CL157)-1)","v":2.277332818681832E-2},{"$f":"((Quarterly!CM161/Quarterly!CM157)-1)","v":5.4961378490790302E-2},{"$f":"((Quarterly!CN161/Quarterly!CN157)-1)","v":3.3284284738552605E-2},{"$f":"((Quarterly!CO161/Quarterly!CO157)-1)","v":0.10883000211027727},{"$f":"((Quarterly!CP161/Quarterly!CP157)-1)","v":0.11720404680362129},{"$f":"((Quarterly!CQ161/Quarterly!CQ157)-1)","v":1.1710669637949866E-2},{"$f":"((Quarterly!CR161/Quarterly!CR157)-1)","v":0.15377850751175104},{"$f":"Quarterly!CS161-Quarterly!CS157","v":1.7333333333333201},"--",null,null,null,null,null,{"$f":"((Quarterly!CZ161/Quarterly!CZ157)-1)","v":2.9001308329698938E-2},{"$f":"((Quarterly!DA161/Quarterly!DA157)-1)","v":2.6370004120312984E-2},null,null,null,null,null,{"$f":"((Quarterly!DG161/Quarterly!DG157)-1)","v":2.7666545322169833E-2},{"$f":"((Quarterly!DH161-Quarterly!DH157)*60)","v":4.000000000000199},{"$f":"Quarterly!DI161-Quarterly!DI157","v":0.23333333333334849},{"$f":"(Quarterly!DJ161-Quarterly!DJ157)*100","v":-60.000000000000142},{"$f":"(Quarterly!DK161-Quarterly!DK157)*100","v":-40.000000000000036},{"$f":"((Quarterly!DL161/Quarterly!DL157)-1)","v":4.835122328594732E-4},null,null,null,{"$f":"((Quarterly!DP161/Quarterly!DP157)-1)","v":2.1908585774153444E-2},null,null,null,null,{"$f":"Quarterly!DU161-Quarterly!DU157","v":0.16666666666666607},{"$f":"((Quarterly!DV161/Quarterly!DV157)-1)","v":4.3178822200102385E-2},{"$f":"((Quarterly!DW161/Quarterly!DW157)-1)","v":4.4155154091392257E-2},{"$f":"((Quarterly!DX161/Quarterly!DX157)-1)","v":4.2329409159685749E-2},{"$f":"((Quarterly!DY161/Quarterly!DY157)-1)","v":4.9256645141912969E-2},{"$f":"((Quarterly!DZ161/Quarterly!DZ157)-1)","v":4.0072414130540857E-2},{"$f":"((Quarterly!EA161/Quarterly!EA157)-1)","v":4.0725224915871383E-2},{"$f":"((Quarterly!EB161/Quarterly!EB157)-1)","v":3.8454994044580415E-2},{"$f":"((Quarterly!EC161/Quarterly!EC157)-1)","v":4.8847576591103392E-2},null,null,null,null,null,{"$f":"((Quarterly!EI161/Quarterly!EI157)-1)","v":6.4681024053017344E-2},{"$f":"((Quarterly!EJ161/Quarterly!EJ157)-1)","v":4.4852680344066531E-2},{"$f":"((Quarterly!EK161/Quarterly!EK157)-1)","v":3.8524277801271545E-2},null,null,null,null,null,{"$f":"((Quarterly!EQ161/Quarterly!EQ157)-1)","v":2.3695420660276856E-2},{"$f":"((Quarterly!ER161/Quarterly!ER157)-1)","v":1.4503090822634235E-2},{"$f":"((Quarterly!ES161/Quarterly!ES157)-1)","v":1.1443876308741219E-2},null,null,null,null,null,{"$f":"(Quarterly!EY161-Quarterly!EY157)*100","v":-51.66666666666675},{"$f":"(Quarterly!EZ161-Quarterly!EZ157)*100","v":-48.999999999999929},{"$f":"(Quarterly!FA161-Quarterly!FA157)*100","v":15.666666666666629},{"$f":"(Quarterly!FB161-Quarterly!FB157)*100","v":24.000000000000199},"--",{"$f":"(Quarterly!FD161-Quarterly!FD157)*100","v":45.6666666666667},{"$f":"(Quarterly!FE161-Quarterly!FE157)*100","v":-27.000000000000046},{"$f":"(Quarterly!FF161-Quarterly!FF157)*100","v":13.000000000000078},{"$f":"(Quarterly!FG161-Quarterly!FG157)*100","v":32.000000000000028},{"$f":"(Quarterly!FH161-Quarterly!FH157)*100","v":46},{"$f":"(Quarterly!FI161-Quarterly!FI157)*100","v":45.6666666666667},null,null,null,null,null,null,{"$f":"((Quarterly!FP161/Quarterly!FP157)-1)","v":1.0817987362623738E-2},{"$f":"((Quarterly!FQ161/Quarterly!FQ157)-1)","v":1.1807840406026227E-3},{"$f":"((Quarterly!FR161/Quarterly!FR157)-1)","v":0.21631783902077961},"--",{"$f":"((Quarterly!FT161/Quarterly!FT157)-1)","v":5.8052563058103912E-2},{"$f":"((Quarterly!FU161/Quarterly!FU157)-1)","v":4.9405408483189195E-2},{"$f":"((Quarterly!FV161/Quarterly!FV157)-1)","v":0.11269666713215098},{"$f":"((Quarterly!FW161/Quarterly!FW157)-1)","v":0.1527305373487291},{"$f":"((Quarterly!FX161/Quarterly!FX157)-1)","v":0.2252178508817162},null,null,null,null,null,{"$f":"((Quarterly!GD161/Quarterly!GD157)-1)","v":0.25597460791635518},{"$f":"((Quarterly!GE161/Quarterly!GE157)-1)","v":0.28900308324768731},{"$f":"((Quarterly!GF161/Quarterly!GF157)-1)","v":6.8668433209108537E-2},{"$f":"((Quarterly!GG161/Quarterly!GG157)-1)","v":9.5667870036100888E-2},{"$f":"((Quarterly!GH161/Quarterly!GH157)-1)","v":{"$error":"#DIV/0!"}},"--",{"$f":"((Quarterly!GJ161/Quarterly!GJ157)-1)","v":0.37629629629629635},{"$f":"((Quarterly!GK161/Quarterly!GK157)-1)","v":6.4988091187478725E-2},"--"]
["96'Q4",{"$f":"((Quarterly!B162/Quarterly!B158)-1)","v":6.2514960908356398E-2},{"$f":"((Quarterly!C162/Quarterly!C158)-1)","v":4.4528746807536823E-2},{"$f":"((Quarterly!D162/Quarterly!D158)-1)","v":4.1863452524149025E-2},{"$f":"((Quarterly!E162/Quarterly!E158)-1)","v":3.4450919548929093E-2},{"$f":"((Quarterly!F162/Quarterly!F158)-1)","v":7.094735961168297E-2},{"$f":"((Quarterly!G162/Quarterly!G158)-1)","v":3.4979225045898454E-2},{"$f":"((Quarterly!H162/Quarterly!H158)-1)","v":3.0337336185023434E-2},{"$f":"((Quarterly!I162/Quarterly!I158)-1)","v":0.11297852474323045},{"$f":"((Quarterly!J162/Quarterly!J158)-1)","v":0.17780532473982924},{"$f":"((Quarterly!K162/Quarterly!K158)-1)","v":5.5674518201284773E-2},{"$f":"((Quarterly!L162-Quarterly!L158))","v":23.055},{"$f":"((Quarterly!M162/Quarterly!M158)-1)","v":0.11133217259814021},{"$f":"((Quarterly!N162/Quarterly!N158)-1)","v":0.1014989198072076},{"$f":"((Quarterly!O162/Quarterly!O158)-1)","v":0.22376072103503253},{"$f":"((Quarterly!P162/Quarterly!P158)-1)","v":2.6676365919940048E-2},{"$f":"((Quarterly!Q162/Quarterly!Q158)-1)","v":-0.36381098905053677},null,null,null,null,null,{"$f":"((Quarterly!W162/Quarterly!W158)-1)","v":-3.63196125907983E-3},{"$f":"((Quarterly!X162/Quarterly!X158)-1)","v":-7.9872204472852815E-4},{"$f":"((Quarterly!Y162/Quarterly!Y158)-1)","v":8.5578850266337048E-2},{"$f":"Quarterly!Z162-Quarterly!Z158","v":3.0000000000000027E-2},{"$f":"((Quarterly!AA162/Quarterly!AA158)-1)","v":6.6768670037753663E-2},{"$f":"((Quarterly!AB162/Quarterly!AB158)-1)","v":0.10147105697810321},{"$f":"Quarterly!AC162-Quarterly!AC158","v":10.8},{"$f":"Quarterly!AD162-Quarterly!AD158","v":-3.6},{"$f":"(Quarterly!AE162-Quarterly!AE158)*100","v":-12.999999999999989},{"$f":"(Quarterly!AF162-Quarterly!AF158)*100","v":3.0000000000000027},{"$f":"(Quarterly!AG162-Quarterly!AG158)*100","v":8.9999999999999964},"--","--","--","--","--",{"$f":"((Quarterly!AM162/Quarterly!AM158)-1)","v":5.5787530268490038E-2},{"$f":"((Quarterly!AN162/Quarterly!AN158)-1)","v":6.5413478168299566E-2},{"$f":"((Quarterly!AO162/Quarterly!AO158)-1)","v":1.9315816835442368E-2},{"$f":"(Quarterly!AP162-Quarterly!AP158)*100","v":-4.0000000000000036},{"$f":"Quarterly!AQ162-Quarterly!AQ158","v":6.6333333333333258},{"$f":"Quarterly!AR162-Quarterly!AR158","v":6.8333333333333286},"--",{"$f":"Quarterly!AT162-Quarterly!AT158","v":1.86666666666666},{"$f":"Quarterly!AU162-Quarterly!AU158","v":1.8666666666666671},{"$f":"Quarterly!AV162-Quarterly!AV158","v":4.8000000000000043},{"$f":"Quarterly!AW162-Quarterly!AW158","v":-0.76666666666666572},{"$f":"Quarterly!AX162-Quarterly!AX158","v":9.8333333333333286},{"$f":"Quarterly!AY162-Quarterly!AY158","v":4.2333333333333272},{"$f":"Quarterly!AZ162-Quarterly!AZ158","v":11.166666666666664},{"$f":"Quarterly!BA162-Quarterly!BA158","v":4.3000000000000043},"--",{"$f":"((Quarterly!BC162/Quarterly!BC158)-1)","v":3.0951342348415789E-2},{"$f":"((Quarterly!BD162/Quarterly!BD158)-1)","v":4.4780580138476189E-2},{"$f":"((Quarterly!BE162/Quarterly!BE158)-1)","v":-2.0065702755865611E-2},{"$f":"((Quarterly!BF162/Quarterly!BF158)-1)","v":3.4010135020235976E-2},{"$f":"((Quarterly!BG162/Quarterly!BG158)-1)","v":2.0835698875894204E-2},{"$f":"((Quarterly!BH162/Quarterly!BH158)-1)","v":4.2392090077065792E-3},{"$f":"((Quarterly!BI162/Quarterly!BI158)-1)","v":1.2903612292577638E-2},{"$f":"((Quarterly!BJ162/Quarterly!BJ158)-1)","v":8.1614875302773449E-2},{"$f":"((Quarterly!BK162/Quarterly!BK158)-1)","v":0.12000000000000011},null,{"$f":"((Quarterly!BM162/Quarterly!BM158)-1)","v":6.1853460684651917E-2},{"$f":"((Quarterly!BN162/Quarterly!BN158)-1)","v":6.262634466028838E-2},null,null,null,null,null,{"$f":"((Quarterly!BT162/Quarterly!BT158)-1)","v":5.8682387220321264E-2},{"$f":"Quarterly!BU162-Quarterly!BU158","v":0.14590999999999887},{"$f":"Quarterly!BV162-Quarterly!BV158","v":8.9459999999998985E-2},{"$f":"((Quarterly!BW162/Quarterly!BW158)-1)","v":5.3293010399533269E-2},{"$f":"((Quarterly!BX162/Quarterly!BX158)-1)","v":-2.3518344308559591E-4},{"$f":"((Quarterly!BY162/Quarterly!BY158)-1)","v":-2.1301498127340723E-2},"--",{"$f":"((Quarterly!CA162/Quarterly!CA158)-1)","v":-2.8890261115033233E-3},{"$f":"((Quarterly!CB162/Quarterly!CB158)-1)","v":4.5337494659844157E-2},{"$f":"((Quarterly!CC162/Quarterly!CC158)-1)","v":1.7214764731116938E-2},"--","--",null,"--","--",null,{"$f":"((Quarterly!CJ162/Quarterly!CJ158)-1)","v":0.109714838086032},{"$f":"((Quarterly!CK162/Quarterly!CK158)-1)","v":6.4665849651899698E-2},{"$f":"((Quarterly!CL162/Quarterly!CL158)-1)","v":1.7775571002979218E-2},{"$f":"((Quarterly!CM162/Quarterly!CM158)-1)","v":-3.8809454333236015E-2},{"$f":"((Quarterly!CN162/Quarterly!CN158)-1)","v":3.2691773048999062E-2},{"$f":"((Quarterly!CO162/Quarterly!CO158)-1)","v":0.11973163090382455},{"$f":"((Quarterly!CP162/Quarterly!CP158)-1)","v":0.10062564058920875},{"$f":"((Quarterly!CQ162/Quarterly!CQ158)-1)","v":1.1791601192358669E-2},{"$f":"((Quarterly!CR162/Quarterly!CR158)-1)","v":0.13800892116623054},{"$f":"Quarterly!CS162-Quarterly!CS158","v":7.7333333333333485},"--",null,null,null,null,null,{"$f":"((Quarterly!CZ162/Quarterly!CZ158)-1)","v":3.2314031663413401E-2},{"$f":"((Quarterly!DA162/Quarterly!DA158)-1)","v":2.5777414075286442E-2},null,null,null,null,null,{"$f":"((Quarterly!DG162/Quarterly!DG158)-1)","v":3.1148134733792077E-2},{"$f":"((Quarterly!DH162-Quarterly!DH158)*60)","v":7.9999999999999716},{"$f":"Quarterly!DI162-Quarterly!DI158","v":0.5},{"$f":"(Quarterly!DJ162-Quarterly!DJ158)*100","v":-56.666666666666643},{"$f":"(Quarterly!DK162-Quarterly!DK158)*100","v":-23.333333333333339},{"$f":"((Quarterly!DL162/Quarterly!DL158)-1)","v":3.3490785194361106E-3},null,null,null,{"$f":"((Quarterly!DP162/Quarterly!DP158)-1)","v":2.3263357110018701E-2},null,null,null,null,{"$f":"Quarterly!DU162-Quarterly!DU158","v":-0.2333333333333325},{"$f":"((Quarterly!DV162/Quarterly!DV158)-1)","v":1.4035549703752537E-2},{"$f":"((Quarterly!DW162/Quarterly!DW158)-1)","v":1.3274451906242879E-2},{"$f":"((Quarterly!DX162/Quarterly!DX158)-1)","v":1.1008509867825422E-2},{"$f":"((Quarterly!DY162/Quarterly!DY158)-1)","v":2.9048765803732612E-2},{"$f":"((Quarterly!DZ162/Quarterly!DZ158)-1)","v":5.293023699394217E-3},{"$f":"((Quarterly!EA162/Quarterly!EA158)-1)","v":5.3547523427042165E-3},{"$f":"((Quarterly!EB162/Quarterly!EB158)-1)","v":5.1401094345882026E-3},{"$f":"((Quarterly!EC162/Quarterly!EC158)-1)","v":1.914773793880209E-2},null,null,null,null,null,{"$f":"((Quarterly!EI162/Quarterly!EI158)-1)","v":6.5996998825662345E-2},{"$f":"((Quarterly!EJ162/Quarterly!EJ158)-1)","v":4.564904780137069E-2},{"$f":"((Quarterly!EK162/Quarterly!EK158)-1)","v":4.0084476272326253E-2},null,null,null,null,null,{"$f":"((Quarterly!EQ162/Quarterly!EQ158)-1)","v":2.36450584484591E-2},{"$f":"((Quarterly!ER162/Quarterly!ER158)-1)","v":6.8428504011324165E-3},{"$f":"((Quarterly!ES162/Quarterly!ES158)-1)","v":3.8684719535784229E-3},null,null,null,null,null,{"$f":"(Quarterly!EY162-Quarterly!EY158)*100","v":-46.666666666666679},{"$f":"(Quarterly!EZ162-Quarterly!EZ158)*100","v":-43.999999999999858},{"$f":"(Quarterly!FA162-Quarterly!FA158)*100","v":24.333333333333229},{"$f":"(Quarterly!FB162-Quarterly!FB158)*100","v":27.666666666666639},"--",{"$f":"(Quarterly!FD162-Quarterly!FD158)*100","v":36.000000000000121},{"$f":"(Quarterly!FE162-Quarterly!FE158)*100","v":-28.33333333333341},{"$f":"(Quarterly!FF162-Quarterly!FF158)*100","v":3.6666666666667069},{"$f":"(Quarterly!FG162-Quarterly!FG158)*100","v":29.666666666666686},{"$f":"(Quarterly!FH162-Quarterly!FH158)*100","v":41.666666666666515},{"$f":"(Quarterly!FI162-Quarterly!FI158)*100","v":45.000000000000014},null,null,null,null,null,null,{"$f":"((Quarterly!FP162/Quarterly!FP158)-1)","v":-4.2767604768342293E-3},{"$f":"((Quarterly!FQ162/Quarterly!FQ158)-1)","v":-6.1590884549089786E-4},{"$f":"((Quarterly!FR162/Quarterly!FR158)-1)","v":6.3161558000162543E-2},"--",{"$f":"((Quarterly!FT162/Quarterly!FT158)-1)","v":3.8437631330157762E-2},{"$f":"((Quarterly!FU162/Quarterly!FU158)-1)","v":3.65571332471053E-2},{"$f":"((Quarterly!FV162/Quarterly!FV158)-1)","v":6.4973789512077662E-2},{"$f":"((Quarterly!FW162/Quarterly!FW158)-1)","v":0.22439869582287786},{"$f":"((Quarterly!FX162/Quarterly!FX158)-1)","v":0.21587778766219823},null,null,null,null,null,{"$f":"((Quarterly!GD162/Quarterly!GD158)-1)","v":0.35854598861758769},{"$f":"((Quarterly!GE162/Quarterly!GE158)-1)","v":0.38899803536345789},{"$f":"((Quarterly!GF162/Quarterly!GF158)-1)","v":0.21416727782915101},{"$f":"((Quarterly!GG162/Quarterly!GG158)-1)","v":0.17533432392273385},{"$f":"((Quarterly!GH162/Quarterly!GH158)-1)","v":{"$error":"#DIV/0!"}},"--",{"$f":"((Quarterly!GJ162/Quarterly!GJ158)-1)","v":0.47326892109500784},{"$f":"((Quarterly!GK162/Quarterly!GK158)-1)","v":6.9404279930596058E-3},"--"]
["97'Q1",{"$f":"((Quarterly!B163/Quarterly!B159)-1)","v":6.4475432229430307E-2},{"$f":"((Quarterly!C163/Quarterly!C159)-1)","v":4.5630601976617058E-2},{"$f":"((Quarterly!D163/Quarterly!D159)-1)","v":4.0614892915573186E-2},{"$f":"((Quarterly!E163/Quarterly!E159)-1)","v":3.5753921833288294E-2},{"$f":"((Quarterly!F163/Quarterly!F159)-1)","v":8.8109282831418945E-2},{"$f":"((Quarterly!G163/Quarterly!G159)-1)","v":3.4575927145051644E-2},{"$f":"((Quarterly!H163/Quarterly!H159)-1)","v":3.0518708810046924E-2},{"$f":"((Quarterly!I163/Quarterly!I159)-1)","v":0.11066233411278792},{"$f":"((Quarterly!J163/Quarterly!J159)-1)","v":0.16498002815127055},{"$f":"((Quarterly!K163/Quarterly!K159)-1)","v":3.2130189860212655E-2},{"$f":"((Quarterly!L163-Quarterly!L159))","v":49.37},{"$f":"((Quarterly!M163/Quarterly!M159)-1)","v":0.12231074606950654},{"$f":"((Quarterly!N163/Quarterly!N159)-1)","v":0.10906068197735963},{"$f":"((Quarterly!O163/Quarterly!O159)-1)","v":0.24338492739204454},{"$f":"((Quarterly!P163/Quarterly!P159)-1)","v":2.4283239628694719E-2},{"$f":"((Quarterly!Q163/Quarterly!Q159)-1)","v":-0.45904916430982168},null,null,null,null,null,{"$f":"((Quarterly!W163/Quarterly!W159)-1)","v":1.1015911872704898E-2},{"$f":"((Quarterly!X163/Quarterly!X159)-1)","v":9.6463022508037621E-3},{"$f":"((Quarterly!Y163/Quarterly!Y159)-1)","v":8.925138668266519E-2},{"$f":"Quarterly!Z163-Quarterly!Z159","v":-7.0000000000000007E-2},{"$f":"((Quarterly!AA163/Quarterly!AA159)-1)","v":4.3003300787476384E-2},{"$f":"((Quarterly!AB163/Quarterly!AB159)-1)","v":9.0780206630066251E-2},{"$f":"Quarterly!AC163-Quarterly!AC159","v":1.8000000000000007},{"$f":"Quarterly!AD163-Quarterly!AD159","v":0.69999999999999929},{"$f":"(Quarterly!AE163-Quarterly!AE159)*100","v":-12.999999999999989},{"$f":"(Quarterly!AF163-Quarterly!AF159)*100","v":-7.0000000000000009},{"$f":"(Quarterly!AG163-Quarterly!AG159)*100","v":1.9999999999999907},"--","--","--","--","--",{"$f":"((Quarterly!AM163/Quarterly!AM159)-1)","v":6.8412294125595352E-2},{"$f":"((Quarterly!AN163/Quarterly!AN159)-1)","v":8.2777696499762188E-2},{"$f":"((Quarterly!AO163/Quarterly!AO159)-1)","v":1.9394733272774634E-2},{"$f":"(Quarterly!AP163-Quarterly!AP159)*100","v":-6.999999999999984},{"$f":"Quarterly!AQ163-Quarterly!AQ159","v":7.4666666666666615},{"$f":"Quarterly!AR163-Quarterly!AR159","v":6.8333333333333357},"--",{"$f":"Quarterly!AT163-Quarterly!AT159","v":4.0666666666666629},{"$f":"Quarterly!AU163-Quarterly!AU159","v":4.8000000000000043},{"$f":"Quarterly!AV163-Quarterly!AV159","v":3.8666666666666671},{"$f":"Quarterly!AW163-Quarterly!AW159","v":-0.63333333333333997},{"$f":"Quarterly!AX163-Quarterly!AX159","v":11.29999999999999},{"$f":"Quarterly!AY163-Quarterly!AY159","v":13.93333333333333},{"$f":"Quarterly!AZ163-Quarterly!AZ159","v":11.699999999999989},{"$f":"Quarterly!BA163-Quarterly!BA159","v":2.6666666666666643},"--",{"$f":"((Quarterly!BC163/Quarterly!BC159)-1)","v":9.2202540607513095E-2},{"$f":"((Quarterly!BD163/Quarterly!BD159)-1)","v":4.2966258320930262E-2},{"$f":"((Quarterly!BE163/Quarterly!BE159)-1)","v":-2.0063951290774096E-2},{"$f":"((Quarterly!BF163/Quarterly!BF159)-1)","v":3.4214906602552331E-2},{"$f":"((Quarterly!BG163/Quarterly!BG159)-1)","v":1.4753218884120178E-2},{"$f":"((Quarterly!BH163/Quarterly!BH159)-1)","v":6.7866951480011206E-3},{"$f":"((Quarterly!BI163/Quarterly!BI159)-1)","v":1.9173742690755002E-2},{"$f":"((Quarterly!BJ163/Quarterly!BJ159)-1)","v":6.3225137178892332E-2},{"$f":"((Quarterly!BK163/Quarterly!BK159)-1)","v":-0.28000000000000003},null,{"$f":"((Quarterly!BM163/Quarterly!BM159)-1)","v":6.3775908174794393E-2},{"$f":"((Quarterly!BN163/Quarterly!BN159)-1)","v":6.2949555896557152E-2},null,null,null,null,null,{"$f":"((Quarterly!BT163/Quarterly!BT159)-1)","v":4.7389957336237076E-2},{"$f":"Quarterly!BU163-Quarterly!BU159","v":8.0659999999999954E-2},{"$f":"Quarterly!BV163-Quarterly!BV159","v":6.4990000000001658E-2},{"$f":"((Quarterly!BW163/Quarterly!BW159)-1)","v":5.1406461919074387E-2},{"$f":"((Quarterly!BX163/Quarterly!BX159)-1)","v":-1.9169329073482455E-2},{"$f":"((Quarterly!BY163/Quarterly!BY159)-1)","v":4.4769085768143757E-3},"--",{"$f":"((Quarterly!CA163/Quarterly!CA159)-1)","v":7.6968881635532949E-3},{"$f":"((Quarterly!CB163/Quarterly!CB159)-1)","v":-1.6671224283742792E-2},{"$f":"((Quarterly!CC163/Quarterly!CC159)-1)","v":-2.8600695429668366E-2},"--","--",null,"--","--",null,{"$f":"((Quarterly!CJ163/Quarterly!CJ159)-1)","v":0.11705989110707815},{"$f":"((Quarterly!CK163/Quarterly!CK159)-1)","v":6.4670425622353145E-2},{"$f":"((Quarterly!CL163/Quarterly!CL159)-1)","v":-1.4523625096823922E-3},{"$f":"((Quarterly!CM163/Quarterly!CM159)-1)","v":-8.4106728538281272E-3},{"$f":"((Quarterly!CN163/Quarterly!CN159)-1)","v":3.3181046625013533E-2},{"$f":"((Quarterly!CO163/Quarterly!CO159)-1)","v":0.11064975229804408},{"$f":"((Quarterly!CP163/Quarterly!CP159)-1)","v":8.4951229461150968E-2},{"$f":"((Quarterly!CQ163/Quarterly!CQ159)-1)","v":1.1993392207276132E-2},{"$f":"((Quarterly!CR163/Quarterly!CR159)-1)","v":0.12211661911515792},{"$f":"Quarterly!CS163-Quarterly!CS159","v":8.5333333333333456},"--",null,null,null,null,null,{"$f":"((Quarterly!CZ163/Quarterly!CZ159)-1)","v":2.9449699054170386E-2},{"$f":"((Quarterly!DA163/Quarterly!DA159)-1)","v":2.4791709002235374E-2},null,null,null,null,null,{"$f":"((Quarterly!DG163/Quarterly!DG159)-1)","v":3.8015930485155724E-2},{"$f":"((Quarterly!DH163-Quarterly!DH159)*60)","v":15.999999999999943},{"$f":"Quarterly!DI163-Quarterly!DI159","v":0.46666666666666856},{"$f":"(Quarterly!DJ163-Quarterly!DJ159)*100","v":-56.666666666666821},{"$f":"(Quarterly!DK163-Quarterly!DK159)*100","v":-30.000000000000071},{"$f":"((Quarterly!DL163/Quarterly!DL159)-1)","v":6.2560526825490292E-3},null,null,null,{"$f":"((Quarterly!DP163/Quarterly!DP159)-1)","v":2.5328330206378924E-2},null,null,null,null,{"$f":"Quarterly!DU163-Quarterly!DU159","v":-0.20000000000000195},{"$f":"((Quarterly!DV163/Quarterly!DV159)-1)","v":1.4725568942436595E-2},{"$f":"((Quarterly!DW163/Quarterly!DW159)-1)","v":1.3595247016003675E-2},{"$f":"((Quarterly!DX163/Quarterly!DX159)-1)","v":1.2489345143238406E-2},{"$f":"((Quarterly!DY163/Quarterly!DY159)-1)","v":2.0439764633013446E-2},{"$f":"((Quarterly!DZ163/Quarterly!DZ159)-1)","v":9.9878197320342199E-3},{"$f":"((Quarterly!EA163/Quarterly!EA159)-1)","v":1.0186641143091535E-2},{"$f":"((Quarterly!EB163/Quarterly!EB159)-1)","v":9.4947439810104672E-3},{"$f":"((Quarterly!EC163/Quarterly!EC159)-1)","v":1.6469228546662995E-2},null,null,null,null,null,{"$f":"((Quarterly!EI163/Quarterly!EI159)-1)","v":6.6020442123086109E-2},{"$f":"((Quarterly!EJ163/Quarterly!EJ159)-1)","v":4.4725537220490663E-2},{"$f":"((Quarterly!EK163/Quarterly!EK159)-1)","v":3.9817811205535625E-2},null,null,null,null,null,{"$f":"((Quarterly!EQ163/Quarterly!EQ159)-1)","v":1.7418844022169422E-2},{"$f":"((Quarterly!ER163/Quarterly!ER159)-1)","v":6.5928890981867827E-3},{"$f":"((Quarterly!ES163/Quarterly!ES159)-1)","v":4.1042974408496136E-3},null,null,null,null,null,{"$f":"(Quarterly!EY163-Quarterly!EY159)*100","v":-6.666666666666643},{"$f":"(Quarterly!EZ163-Quarterly!EZ159)*100","v":-8.6666666666666003},{"$f":"(Quarterly!FA163-Quarterly!FA159)*100","v":37.666666666666693},{"$f":"(Quarterly!FB163-Quarterly!FB159)*100","v":36.000000000000028},"--",{"$f":"(Quarterly!FD163-Quarterly!FD159)*100","v":54.666666666666686},{"$f":"(Quarterly!FE163-Quarterly!FE159)*100","v":12.999999999999989},{"$f":"(Quarterly!FF163-Quarterly!FF159)*100","v":52.333333333333343},{"$f":"(Quarterly!FG163-Quarterly!FG159)*100","v":77.666666666666643},{"$f":"(Quarterly!FH163-Quarterly!FH159)*100","v":78.666666666666615},{"$f":"(Quarterly!FI163-Quarterly!FI159)*100","v":65.333333333333329},null,null,null,null,null,null,{"$f":"((Quarterly!FP163/Quarterly!FP159)-1)","v":-7.3520461572166296E-3},{"$f":"((Quarterly!FQ163/Quarterly!FQ159)-1)","v":-1.886362637231076E-3},{"$f":"((Quarterly!FR163/Quarterly!FR159)-1)","v":4.5211834927837424E-2},"--",{"$f":"((Quarterly!FT163/Quarterly!FT159)-1)","v":5.1253520937126096E-2},{"$f":"((Quarterly!FU163/Quarterly!FU159)-1)","v":6.3807090275758593E-2},{"$f":"((Quarterly!FV163/Quarterly!FV159)-1)","v":0.10337103908928169},{"$f":"((Quarterly!FW163/Quarterly!FW159)-1)","v":0.24824570122254253},{"$f":"((Quarterly!FX163/Quarterly!FX159)-1)","v":0.16506515574027669},null,null,null,null,null,{"$f":"((Quarterly!GD163/Quarterly!GD159)-1)","v":0.15275670207384939},{"$f":"((Quarterly!GE163/Quarterly!GE159)-1)","v":0.1403949730700178},{"$f":"((Quarterly!GF163/Quarterly!GF159)-1)","v":0.10585588854219563},{"$f":"((Quarterly!GG163/Quarterly!GG159)-1)","v":9.4154909300316669E-2},{"$f":"((Quarterly!GH163/Quarterly!GH159)-1)","v":{"$error":"#DIV/0!"}},"--",{"$f":"((Quarterly!GJ163/Quarterly!GJ159)-1)","v":-3.6057033177954501E-2},{"$f":"((Quarterly!GK163/Quarterly!GK159)-1)","v":-5.2491998171010579E-2},"--"]
["97'Q2",{"$f":"((Quarterly!B164/Quarterly!B160)-1)","v":6.0832707418624343E-2},{"$f":"((Quarterly!C164/Quarterly!C160)-1)","v":4.3190676297244046E-2},{"$f":"((Quarterly!D164/Quarterly!D160)-1)","v":3.4519275544514061E-2},{"$f":"((Quarterly!E164/Quarterly!E160)-1)","v":2.9272128423488919E-2},{"$f":"((Quarterly!F164/Quarterly!F160)-1)","v":5.1190500070206424E-2},{"$f":"((Quarterly!G164/Quarterly!G160)-1)","v":2.2017901393383665E-2},{"$f":"((Quarterly!H164/Quarterly!H160)-1)","v":2.9374052675589457E-2},{"$f":"((Quarterly!I164/Quarterly!I160)-1)","v":0.10414264171028109},{"$f":"((Quarterly!J164/Quarterly!J160)-1)","v":0.14823273676401927},{"$f":"((Quarterly!K164/Quarterly!K160)-1)","v":2.8028028028026508E-3},{"$f":"((Quarterly!L164-Quarterly!L160))","v":83.236000000000004},{"$f":"((Quarterly!M164/Quarterly!M160)-1)","v":0.13459314426324243},{"$f":"((Quarterly!N164/Quarterly!N160)-1)","v":0.13493589908677439},{"$f":"((Quarterly!O164/Quarterly!O160)-1)","v":0.13164105476097632},{"$f":"((Quarterly!P164/Quarterly!P160)-1)","v":1.8610722937483892E-2},{"$f":"((Quarterly!Q164/Quarterly!Q160)-1)","v":-0.43013616373007446},null,null,null,null,null,{"$f":"((Quarterly!W164/Quarterly!W160)-1)","v":2.430133657351119E-3},{"$f":"((Quarterly!X164/Quarterly!X160)-1)","v":1.1971268954509284E-3},{"$f":"((Quarterly!Y164/Quarterly!Y160)-1)","v":9.8027124633009777E-2},{"$f":"Quarterly!Z164-Quarterly!Z160","v":-7.0000000000000034E-2},{"$f":"((Quarterly!AA164/Quarterly!AA160)-1)","v":7.4700206930699009E-2},{"$f":"((Quarterly!AB164/Quarterly!AB160)-1)","v":0.12184520496701734},{"$f":"Quarterly!AC164-Quarterly!AC160","v":1.8999999999999986},{"$f":"Quarterly!AD164-Quarterly!AD160","v":-13.3},{"$f":"(Quarterly!AE164-Quarterly!AE160)*100","v":-13.000000000000011},{"$f":"(Quarterly!AF164-Quarterly!AF160)*100","v":-7.0000000000000036},{"$f":"(Quarterly!AG164-Quarterly!AG160)*100","v":5.0000000000000044},"--","--","--","--","--",{"$f":"((Quarterly!AM164/Quarterly!AM160)-1)","v":6.1398681617584661E-2},{"$f":"((Quarterly!AN164/Quarterly!AN160)-1)","v":7.4914914539753186E-2},{"$f":"((Quarterly!AO164/Quarterly!AO160)-1)","v":2.6465716858018018E-2},{"$f":"(Quarterly!AP164-Quarterly!AP160)*100","v":-3.0000000000000027},{"$f":"Quarterly!AQ164-Quarterly!AQ160","v":4.2333333333333414},{"$f":"Quarterly!AR164-Quarterly!AR160","v":7.3333333333333286},"--",{"$f":"Quarterly!AT164-Quarterly!AT160","v":5.3999999999999986},{"$f":"Quarterly!AU164-Quarterly!AU160","v":3.3333333333338544E-2},{"$f":"Quarterly!AV164-Quarterly!AV160","v":4.3000000000000043},{"$f":"Quarterly!AW164-Quarterly!AW160","v":2.8333333333333357},{"$f":"Quarterly!AX164-Quarterly!AX160","v":4.9666666666666686},{"$f":"Quarterly!AY164-Quarterly!AY160","v":2.6999999999999957},{"$f":"Quarterly!AZ164-Quarterly!AZ160","v":3.2999999999999972},{"$f":"Quarterly!BA164-Quarterly!BA160","v":3.63333333333334},"--",{"$f":"((Quarterly!BC164/Quarterly!BC160)-1)","v":9.8406398380426641E-2},{"$f":"((Quarterly!BD164/Quarterly!BD160)-1)","v":4.7045650021908081E-2},{"$f":"((Quarterly!BE164/Quarterly!BE160)-1)","v":-1.614209970361713E-2},{"$f":"((Quarterly!BF164/Quarterly!BF160)-1)","v":3.4514940919620596E-2},{"$f":"((Quarterly!BG164/Quarterly!BG160)-1)","v":1.7650758158060054E-2},{"$f":"((Quarterly!BH164/Quarterly!BH160)-1)","v":1.3006820649853035E-2},{"$f":"((Quarterly!BI164/Quarterly!BI160)-1)","v":1.6587960312917538E-2},{"$f":"((Quarterly!BJ164/Quarterly!BJ160)-1)","v":6.4424816812082453E-2},{"$f":"((Quarterly!BK164/Quarterly!BK160)-1)","v":-0.25000000000000011},null,{"$f":"((Quarterly!BM164/Quarterly!BM160)-1)","v":4.1011921045676525E-2},{"$f":"((Quarterly!BN164/Quarterly!BN160)-1)","v":3.8608361482602049E-2},null,null,null,null,null,{"$f":"((Quarterly!BT164/Quarterly!BT160)-1)","v":3.6663216011042055E-2},{"$f":"Quarterly!BU164-Quarterly!BU160","v":6.034000000000006E-2},{"$f":"Quarterly!BV164-Quarterly!BV160","v":9.7570000000001045E-2},{"$f":"((Quarterly!BW164/Quarterly!BW160)-1)","v":5.6597330101449961E-2},{"$f":"((Quarterly!BX164/Quarterly!BX160)-1)","v":-1.3149097392467168E-2},{"$f":"((Quarterly!BY164/Quarterly!BY160)-1)","v":-2.5753046677397196E-2},"--",{"$f":"((Quarterly!CA164/Quarterly!CA160)-1)","v":-4.4057017543859711E-2},{"$f":"((Quarterly!CB164/Quarterly!CB160)-1)","v":-0.12311330082597782},{"$f":"((Quarterly!CC164/Quarterly!CC160)-1)","v":-0.11293138055070862},"--","--",null,"--","--",null,{"$f":"((Quarterly!CJ164/Quarterly!CJ160)-1)","v":4.2669087607807521E-2},{"$f":"((Quarterly!CK164/Quarterly!CK160)-1)","v":5.5899186665328005E-2},{"$f":"((Quarterly!CL164/Quarterly!CL160)-1)","v":7.0243902439024453E-2},{"$f":"((Quarterly!CM164/Quarterly!CM160)-1)","v":-5.9005338578252298E-2},{"$f":"((Quarterly!CN164/Quarterly!CN160)-1)","v":3.2147280963389813E-2},{"$f":"((Quarterly!CO164/Quarterly!CO160)-1)","v":0.10759405415957835},{"$f":"((Quarterly!CP164/Quarterly!CP160)-1)","v":7.3512437898947347E-2},{"$f":"((Quarterly!CQ164/Quarterly!CQ160)-1)","v":1.2014660362892116E-2},{"$f":"((Quarterly!CR164/Quarterly!CR160)-1)","v":9.3008964745114886E-2},{"$f":"Quarterly!CS164-Quarterly!CS160","v":11.533333333333346},"--",null,null,null,null,null,{"$f":"((Quarterly!CZ164/Quarterly!CZ160)-1)","v":2.3017902813299296E-2},{"$f":"((Quarterly!DA164/Quarterly!DA160)-1)","v":2.5252525252525304E-2},null,null,null,null,null,{"$f":"((Quarterly!DG164/Quarterly!DG160)-1)","v":3.5025017869907193E-2},{"$f":"((Quarterly!DH164-Quarterly!DH160)*60)","v":9.9999999999994316},{"$f":"Quarterly!DI164-Quarterly!DI160","v":0.39999999999999147},{"$f":"(Quarterly!DJ164-Quarterly!DJ160)*100","v":-80.000000000000071},{"$f":"(Quarterly!DK164-Quarterly!DK160)*100","v":-50},{"$f":"((Quarterly!DL164/Quarterly!DL160)-1)","v":8.6347092077752041E-3},null,null,null,{"$f":"((Quarterly!DP164/Quarterly!DP160)-1)","v":2.576542996322817E-2},null,null,null,null,{"$f":"Quarterly!DU164-Quarterly!DU160","v":-0.40000000000000036},{"$f":"((Quarterly!DV164/Quarterly!DV160)-1)","v":1.372034404802136E-2},{"$f":"((Quarterly!DW164/Quarterly!DW160)-1)","v":1.3788438524376945E-2},{"$f":"((Quarterly!DX164/Quarterly!DX160)-1)","v":1.2457122224228234E-2},{"$f":"((Quarterly!DY164/Quarterly!DY160)-1)","v":2.3317986038912553E-2},{"$f":"((Quarterly!DZ164/Quarterly!DZ160)-1)","v":8.9686098654711E-3},{"$f":"((Quarterly!EA164/Quarterly!EA160)-1)","v":9.1018605273724962E-3},{"$f":"((Quarterly!EB164/Quarterly!EB160)-1)","v":8.6378737541528139E-3},{"$f":"((Quarterly!EC164/Quarterly!EC160)-1)","v":1.7220515684631676E-2},null,null,null,null,null,{"$f":"((Quarterly!EI164/Quarterly!EI160)-1)","v":5.8181921563193795E-2},{"$f":"((Quarterly!EJ164/Quarterly!EJ160)-1)","v":3.8679124106578477E-2},{"$f":"((Quarterly!EK164/Quarterly!EK160)-1)","v":3.6905261204214224E-2},null,null,null,null,null,{"$f":"((Quarterly!EQ164/Quarterly!EQ160)-1)","v":-4.9543676662320291E-3},{"$f":"((Quarterly!ER164/Quarterly!ER160)-1)","v":3.7576326914043889E-3},{"$f":"((Quarterly!ES164/Quarterly!ES160)-1)","v":2.410219329960217E-4},null,null,null,null,null,{"$f":"(Quarterly!EY164-Quarterly!EY160)*100","v":25},{"$f":"(Quarterly!EZ164-Quarterly!EZ160)*100","v":28.000000000000025},{"$f":"(Quarterly!FA164-Quarterly!FA160)*100","v":-3.6666666666667069},{"$f":"(Quarterly!FB164-Quarterly!FB160)*100","v":-11.000000000000121},"--",{"$f":"(Quarterly!FD164-Quarterly!FD160)*100","v":-18.333333333333268},{"$f":"(Quarterly!FE164-Quarterly!FE160)*100","v":2.6666666666667282},{"$f":"(Quarterly!FF164-Quarterly!FF160)*100","v":18.666666666666742},{"$f":"(Quarterly!FG164-Quarterly!FG160)*100","v":15.333333333333332},{"$f":"(Quarterly!FH164-Quarterly!FH160)*100","v":7.9999999999999183},{"$f":"(Quarterly!FI164-Quarterly!FI160)*100","v":-2.3333333333333428},null,null,null,null,null,null,{"$f":"((Quarterly!FP164/Quarterly!FP160)-1)","v":1.5778032874972814E-2},{"$f":"((Quarterly!FQ164/Quarterly!FQ160)-1)","v":-2.8272727998781555E-3},{"$f":"((Quarterly!FR164/Quarterly!FR160)-1)","v":5.7336122112945587E-2},"--",{"$f":"((Quarterly!FT164/Quarterly!FT160)-1)","v":5.4551374938025754E-2},{"$f":"((Quarterly!FU164/Quarterly!FU160)-1)","v":6.7551213711114722E-2},{"$f":"((Quarterly!FV164/Quarterly!FV160)-1)","v":5.0124143410467781E-2},{"$f":"((Quarterly!FW164/Quarterly!FW160)-1)","v":0.27756465783937623},{"$f":"((Quarterly!FX164/Quarterly!FX160)-1)","v":0.14736371856699959},null,null,null,null,null,{"$f":"((Quarterly!GD164/Quarterly!GD160)-1)","v":-8.5031407997548603E-2},{"$f":"((Quarterly!GE164/Quarterly!GE160)-1)","v":-7.434626559562485E-2},{"$f":"((Quarterly!GF164/Quarterly!GF160)-1)","v":-4.2110128256153012E-2},{"$f":"((Quarterly!GG164/Quarterly!GG160)-1)","v":-4.4811949853294286E-2},{"$f":"((Quarterly!GH164/Quarterly!GH160)-1)","v":{"$error":"#DIV/0!"}},"--",{"$f":"((Quarterly!GJ164/Quarterly!GJ160)-1)","v":-0.10047645739910327},{"$f":"((Quarterly!GK164/Quarterly!GK160)-1)","v":6.6828804060484304E-2},"--"]
["97'Q3",{"$f":"((Quarterly!B165/Quarterly!B161)-1)","v":6.52911131857008E-2},{"$f":"((Quarterly!C165/Quarterly!C161)-1)","v":4.6790758214766637E-2},{"$f":"((Quarterly!D165/Quarterly!D161)-1)","v":4.5613082949467421E-2},{"$f":"((Quarterly!E165/Quarterly!E161)-1)","v":4.0614676734308519E-2},{"$f":"((Quarterly!F165/Quarterly!F161)-1)","v":9.0244582536647577E-2},{"$f":"((Quarterly!G165/Quarterly!G161)-1)","v":3.1112605042016517E-2},{"$f":"((Quarterly!H165/Quarterly!H161)-1)","v":3.8436640940900046E-2},{"$f":"((Quarterly!I165/Quarterly!I161)-1)","v":0.11805346520461568},{"$f":"((Quarterly!J165/Quarterly!J161)-1)","v":0.17102348510161236},{"$f":"((Quarterly!K165/Quarterly!K161)-1)","v":1.0036130068245663E-2},{"$f":"((Quarterly!L165-Quarterly!L161))","v":15.406999999999996},{"$f":"((Quarterly!M165/Quarterly!M161)-1)","v":0.13947182563451554},{"$f":"((Quarterly!N165/Quarterly!N161)-1)","v":0.15189956202470056},{"$f":"((Quarterly!O165/Quarterly!O161)-1)","v":5.2587586443391121E-2},{"$f":"((Quarterly!P165/Quarterly!P161)-1)","v":1.9191948807466552E-2},{"$f":"((Quarterly!Q165/Quarterly!Q161)-1)","v":-0.59500215170397275},null,null,null,null,null,{"$f":"((Quarterly!W165/Quarterly!W161)-1)","v":4.8484848484848797E-3},{"$f":"((Quarterly!X165/Quarterly!X161)-1)","v":8.3899320815024048E-3},{"$f":"((Quarterly!Y165/Quarterly!Y161)-1)","v":9.6605589857648999E-2},{"$f":"Quarterly!Z165-Quarterly!Z161","v":-1.0000000000000009E-2},{"$f":"((Quarterly!AA165/Quarterly!AA161)-1)","v":0.12697282024752288},{"$f":"((Quarterly!AB165/Quarterly!AB161)-1)","v":0.15333030624815702},{"$f":"Quarterly!AC165-Quarterly!AC161","v":-0.39999999999999947},{"$f":"Quarterly!AD165-Quarterly!AD161","v":1.9000000000000021},{"$f":"(Quarterly!AE165-Quarterly!AE161)*100","v":-12.000000000000011},{"$f":"(Quarterly!AF165-Quarterly!AF161)*100","v":-1.0000000000000009},{"$f":"(Quarterly!AG165-Quarterly!AG161)*100","v":7.0000000000000062},"--","--","--","--","--",{"$f":"((Quarterly!AM165/Quarterly!AM161)-1)","v":7.2335847376766793E-2},{"$f":"((Quarterly!AN165/Quarterly!AN161)-1)","v":8.1428365639956368E-2},{"$f":"((Quarterly!AO165/Quarterly!AO161)-1)","v":3.0295157070682199E-2},{"$f":"(Quarterly!AP165-Quarterly!AP161)*100","v":-3.6666666666666625},{"$f":"Quarterly!AQ165-Quarterly!AQ161","v":5.1666666666666643},{"$f":"Quarterly!AR165-Quarterly!AR161","v":7.5},"--",{"$f":"Quarterly!AT165-Quarterly!AT161","v":4.2999999999999972},{"$f":"Quarterly!AU165-Quarterly!AU161","v":-1.0333333333333314},{"$f":"Quarterly!AV165-Quarterly!AV161","v":2.2333333333333272},{"$f":"Quarterly!AW165-Quarterly!AW161","v":3.2733333333333334},{"$f":"Quarterly!AX165-Quarterly!AX161","v":5.3000000000000043},{"$f":"Quarterly!AY165-Quarterly!AY161","v":5.43333333333333},{"$f":"Quarterly!AZ165-Quarterly!AZ161","v":7.2000000000000028},{"$f":"Quarterly!BA165-Quarterly!BA161","v":4},"--",{"$f":"((Quarterly!BC165/Quarterly!BC161)-1)","v":0.16942189632775251},{"$f":"((Quarterly!BD165/Quarterly!BD161)-1)","v":4.7469570787956439E-2},{"$f":"((Quarterly!BE165/Quarterly!BE161)-1)","v":-1.409003168966827E-2},{"$f":"((Quarterly!BF165/Quarterly!BF161)-1)","v":3.714852795236534E-2},{"$f":"((Quarterly!BG165/Quarterly!BG161)-1)","v":2.2343491153091311E-2},{"$f":"((Quarterly!BH165/Quarterly!BH161)-1)","v":1.6259766813523813E-2},{"$f":"((Quarterly!BI165/Quarterly!BI161)-1)","v":1.4483110957976386E-2},{"$f":"((Quarterly!BJ165/Quarterly!BJ161)-1)","v":0.13224258237483677},{"$f":"((Quarterly!BK165/Quarterly!BK161)-1)","v":-3.703703703703709E-2},null,{"$f":"((Quarterly!BM165/Quarterly!BM161)-1)","v":5.5784860936639591E-2},{"$f":"((Quarterly!BN165/Quarterly!BN161)-1)","v":5.3616940673480107E-2},null,null,null,null,null,{"$f":"((Quarterly!BT165/Quarterly!BT161)-1)","v":2.9805200439180002E-2},{"$f":"Quarterly!BU165-Quarterly!BU161","v":2.195999999999998E-2},{"$f":"Quarterly!BV165-Quarterly!BV161","v":4.158999999999935E-2},{"$f":"((Quarterly!BW165/Quarterly!BW161)-1)","v":6.3721002188705578E-2},{"$f":"((Quarterly!BX165/Quarterly!BX161)-1)","v":-2.9085257548845389E-2},{"$f":"((Quarterly!BY165/Quarterly!BY161)-1)","v":3.0082256169212673E-2},"--",{"$f":"((Quarterly!CA165/Quarterly!CA161)-1)","v":1.4618324002488414E-2},{"$f":"((Quarterly!CB165/Quarterly!CB161)-1)","v":-0.13163707167249439},{"$f":"((Quarterly!CC165/Quarterly!CC161)-1)","v":-0.11431698869053974},"--","--",null,"--","--",null,{"$f":"((Quarterly!CJ165/Quarterly!CJ161)-1)","v":3.9729501267962819E-2},{"$f":"((Quarterly!CK165/Quarterly!CK161)-1)","v":6.0931597158445205E-2},{"$f":"((Quarterly!CL165/Quarterly!CL161)-1)","v":-3.717331823756953E-2},{"$f":"((Quarterly!CM165/Quarterly!CM161)-1)","v":-3.1822021965643543E-2},{"$f":"((Quarterly!CN165/Quarterly!CN161)-1)","v":3.6169325501747895E-2},{"$f":"((Quarterly!CO165/Quarterly!CO161)-1)","v":9.98613414534677E-2},{"$f":"((Quarterly!CP165/Quarterly!CP161)-1)","v":6.2051487281993056E-2},{"$f":"((Quarterly!CQ165/Quarterly!CQ161)-1)","v":1.2068988933570557E-2},{"$f":"((Quarterly!CR165/Quarterly!CR161)-1)","v":8.6426573334385193E-2},{"$f":"Quarterly!CS165-Quarterly!CS161","v":10.933333333333337},"--",null,null,null,null,null,{"$f":"((Quarterly!CZ165/Quarterly!CZ161)-1)","v":2.2250476795931506E-2},{"$f":"((Quarterly!DA165/Quarterly!DA161)-1)","v":2.3083099156965048E-2},null,null,null,null,null,{"$f":"((Quarterly!DG165/Quarterly!DG161)-1)","v":3.5069075451646947E-2},{"$f":"((Quarterly!DH165-Quarterly!DH161)*60)","v":11.999999999999744},{"$f":"Quarterly!DI165-Quarterly!DI161","v":0.3333333333333286},{"$f":"(Quarterly!DJ165-Quarterly!DJ161)*100","v":-83.3333333333334},{"$f":"(Quarterly!DK165-Quarterly!DK161)*100","v":-40.000000000000036},{"$f":"((Quarterly!DL165/Quarterly!DL161)-1)","v":1.1134738063019567E-2},null,null,null,{"$f":"((Quarterly!DP165/Quarterly!DP161)-1)","v":2.5420556601497779E-2},null,null,null,null,{"$f":"Quarterly!DU165-Quarterly!DU161","v":-0.30000000000000071},{"$f":"((Quarterly!DV165/Quarterly!DV161)-1)","v":1.9522384980400043E-2},{"$f":"((Quarterly!DW165/Quarterly!DW161)-1)","v":2.0864078163961075E-2},{"$f":"((Quarterly!DX165/Quarterly!DX161)-1)","v":1.9154510692536375E-2},{"$f":"((Quarterly!DY165/Quarterly!DY161)-1)","v":3.3061399742378761E-2},{"$f":"((Quarterly!DZ165/Quarterly!DZ161)-1)","v":1.4583431340264408E-2},{"$f":"((Quarterly!EA165/Quarterly!EA161)-1)","v":1.4781575821565252E-2},{"$f":"((Quarterly!EB165/Quarterly!EB161)-1)","v":1.409143044404404E-2},{"$f":"((Quarterly!EC165/Quarterly!EC161)-1)","v":2.5230602278893066E-2},null,null,null,null,null,{"$f":"((Quarterly!EI165/Quarterly!EI161)-1)","v":6.4550175745917704E-2},{"$f":"((Quarterly!EJ165/Quarterly!EJ161)-1)","v":4.7545064638123025E-2},{"$f":"((Quarterly!EK165/Quarterly!EK161)-1)","v":4.4654336725979293E-2},null,null,null,null,null,{"$f":"((Quarterly!EQ165/Quarterly!EQ161)-1)","v":-7.5422626788035352E-3},{"$f":"((Quarterly!ER165/Quarterly!ER161)-1)","v":9.374267635342548E-4},{"$f":"((Quarterly!ES165/Quarterly!ES161)-1)","v":-1.925854597977894E-3},null,null,null,null,null,{"$f":"(Quarterly!EY165-Quarterly!EY161)*100","v":25},{"$f":"(Quarterly!EZ165-Quarterly!EZ161)*100","v":22.66666666666648},{"$f":"(Quarterly!FA165-Quarterly!FA161)*100","v":-42.000000000000085},{"$f":"(Quarterly!FB165-Quarterly!FB161)*100","v":-53.666666666666799},"--",{"$f":"(Quarterly!FD165-Quarterly!FD161)*100","v":-69.000000000000043},{"$f":"(Quarterly!FE165-Quarterly!FE161)*100","v":-4.9999999999999822},{"$f":"(Quarterly!FF165-Quarterly!FF161)*100","v":-24.333333333333496},{"$f":"(Quarterly!FG165-Quarterly!FG161)*100","v":-27.333333333333343},{"$f":"(Quarterly!FH165-Quarterly!FH161)*100","v":-41.333333333333314},{"$f":"(Quarterly!FI165-Quarterly!FI161)*100","v":-53.666666666666707},null,null,null,null,null,null,{"$f":"((Quarterly!FP165/Quarterly!FP161)-1)","v":1.0677887772723826E-2},{"$f":"((Quarterly!FQ165/Quarterly!FQ161)-1)","v":-2.4347436722649274E-3},{"$f":"((Quarterly!FR165/Quarterly!FR161)-1)","v":3.326380405974505E-2},"--",{"$f":"((Quarterly!FT165/Quarterly!FT161)-1)","v":7.3119032572121601E-2},{"$f":"((Quarterly!FU165/Quarterly!FU161)-1)","v":8.5304433250583012E-2},{"$f":"((Quarterly!FV165/Quarterly!FV161)-1)","v":5.6431307439896328E-2},{"$f":"((Quarterly!FW165/Quarterly!FW161)-1)","v":0.16583824581621087},{"$f":"((Quarterly!FX165/Quarterly!FX161)-1)","v":0.157784265761856},null,null,null,null,null,{"$f":"((Quarterly!GD165/Quarterly!GD161)-1)","v":-0.11773450275011133},{"$f":"((Quarterly!GE165/Quarterly!GE161)-1)","v":-0.11465476000637853},{"$f":"((Quarterly!GF165/Quarterly!GF161)-1)","v":1.5513743585662265E-3},{"$f":"((Quarterly!GG165/Quarterly!GG161)-1)","v":-4.5579352004392892E-2},{"$f":"((Quarterly!GH165/Quarterly!GH161)-1)","v":{"$error":"#DIV/0!"}},"--",{"$f":"((Quarterly!GJ165/Quarterly!GJ161)-1)","v":0.14854682454251877},{"$f":"((Quarterly!GK165/Quarterly!GK161)-1)","v":3.514376996805102E-2},"--"]
["97'Q4",{"$f":"((Quarterly!B166/Quarterly!B162)-1)","v":6.0484769179196762E-2},{"$f":"((Quarterly!C166/Quarterly!C162)-1)","v":4.3883927611148676E-2},{"$f":"((Quarterly!D166/Quarterly!D162)-1)","v":3.8494279750234783E-2},{"$f":"((Quarterly!E166/Quarterly!E162)-1)","v":4.4760831711563975E-2},{"$f":"((Quarterly!F166/Quarterly!F162)-1)","v":9.6704241311270422E-2},{"$f":"((Quarterly!G166/Quarterly!G162)-1)","v":3.0022540245675078E-2},{"$f":"((Quarterly!H166/Quarterly!H162)-1)","v":4.40831371336452E-2},{"$f":"((Quarterly!I166/Quarterly!I162)-1)","v":9.8028523489933184E-2},{"$f":"((Quarterly!J166/Quarterly!J162)-1)","v":0.13334308966344799},{"$f":"((Quarterly!K166/Quarterly!K162)-1)","v":3.123732251521294E-2},{"$f":"((Quarterly!L166-Quarterly!L162))","v":55.874000000000002},{"$f":"((Quarterly!M166/Quarterly!M162)-1)","v":0.14157201120786089},{"$f":"((Quarterly!N166/Quarterly!N162)-1)","v":8.2782084418276725E-2},{"$f":"((Quarterly!O166/Quarterly!O162)-1)","v":0.74659222522495616},{"$f":"((Quarterly!P166/Quarterly!P162)-1)","v":1.3278115372117316E-2},{"$f":"((Quarterly!Q166/Quarterly!Q162)-1)","v":-0.48543002807220992},null,null,null,null,null,{"$f":"((Quarterly!W166/Quarterly!W162)-1)","v":1.3365735115431487E-2},{"$f":"((Quarterly!X166/Quarterly!X162)-1)","v":1.4788169464428513E-2},{"$f":"((Quarterly!Y166/Quarterly!Y162)-1)","v":8.7322914767656634E-2},{"$f":"Quarterly!Z166-Quarterly!Z162","v":9.9999999999999534E-3},{"$f":"((Quarterly!AA166/Quarterly!AA162)-1)","v":0.10373885902414171},{"$f":"((Quarterly!AB166/Quarterly!AB162)-1)","v":0.10844081363494462},{"$f":"Quarterly!AC166-Quarterly!AC162","v":-14.200000000000001},{"$f":"Quarterly!AD166-Quarterly!AD162","v":15.700000000000001},{"$f":"(Quarterly!AE166-Quarterly!AE162)*100","v":-7.0000000000000062},{"$f":"(Quarterly!AF166-Quarterly!AF162)*100","v":0.99999999999999534},{"$f":"(Quarterly!AG166-Quarterly!AG162)*100","v":7.0000000000000062},"--","--","--","--","--",{"$f":"((Quarterly!AM166/Quarterly!AM162)-1)","v":8.4216248208180744E-2},{"$f":"((Quarterly!AN166/Quarterly!AN162)-1)","v":9.5784729517770062E-2},{"$f":"((Quarterly!AO166/Quarterly!AO162)-1)","v":3.6610746762339774E-2},{"$f":"(Quarterly!AP166-Quarterly!AP162)*100","v":-1.6666666666666607},{"$f":"Quarterly!AQ166-Quarterly!AQ162","v":2.6333333333333329},{"$f":"Quarterly!AR166-Quarterly!AR162","v":4.6666666666666714},"--",{"$f":"Quarterly!AT166-Quarterly!AT162","v":5.4666666666666686},{"$f":"Quarterly!AU166-Quarterly!AU162","v":-3.0333333333333314},{"$f":"Quarterly!AV166-Quarterly!AV162","v":1.6333333333333329},{"$f":"Quarterly!AW166-Quarterly!AW162","v":2.8999999999999986},{"$f":"Quarterly!AX166-Quarterly!AX162","v":1.3333333333333357},{"$f":"Quarterly!AY166-Quarterly!AY162","v":4.6333333333333329},{"$f":"Quarterly!AZ166-Quarterly!AZ162","v":1.2666666666666586},{"$f":"Quarterly!BA166-Quarterly!BA162","v":3.2999999999999972},"--",{"$f":"((Quarterly!BC166/Quarterly!BC162)-1)","v":0.11517133057665796},{"$f":"((Quarterly!BD166/Quarterly!BD162)-1)","v":4.8820799694869965E-2},{"$f":"((Quarterly!BE166/Quarterly!BE162)-1)","v":-5.9184454768383965E-3},{"$f":"((Quarterly!BF166/Quarterly!BF162)-1)","v":4.9616814130184483E-2},{"$f":"((Quarterly!BG166/Quarterly!BG162)-1)","v":2.5123741727378635E-2},{"$f":"((Quarterly!BH166/Quarterly!BH162)-1)","v":3.1525651192582327E-2},{"$f":"((Quarterly!BI166/Quarterly!BI162)-1)","v":2.3893449409760681E-2},{"$f":"((Quarterly!BJ166/Quarterly!BJ162)-1)","v":9.3867239895822241E-2},{"$f":"((Quarterly!BK166/Quarterly!BK162)-1)","v":3.5714285714285587E-2},null,{"$f":"((Quarterly!BM166/Quarterly!BM162)-1)","v":4.1539267930462032E-2},{"$f":"((Quarterly!BN166/Quarterly!BN162)-1)","v":4.0782283482228232E-2},null,null,null,null,null,{"$f":"((Quarterly!BT166/Quarterly!BT162)-1)","v":-1.080794415894426E-2},{"$f":"Quarterly!BU166-Quarterly!BU162","v":-8.0799999999999983E-2},{"$f":"Quarterly!BV166-Quarterly!BV162","v":-0.11318999999999946},{"$f":"((Quarterly!BW166/Quarterly!BW162)-1)","v":6.6045195907971754E-2},{"$f":"((Quarterly!BX166/Quarterly!BX162)-1)","v":8.1157374735356447E-2},{"$f":"((Quarterly!BY166/Quarterly!BY162)-1)","v":5.8120066969624462E-2},"--",{"$f":"((Quarterly!CA166/Quarterly!CA162)-1)","v":2.8819144936191199E-2},{"$f":"((Quarterly!CB166/Quarterly!CB162)-1)","v":-0.23431433258013168},{"$f":"((Quarterly!CC166/Quarterly!CC162)-1)","v":-0.20112933615490736},"--","--",null,"--","--",null,{"$f":"((Quarterly!CJ166/Quarterly!CJ162)-1)","v":7.0121951219512146E-2},{"$f":"((Quarterly!CK166/Quarterly!CK162)-1)","v":6.663074624672416E-2},{"$f":"((Quarterly!CL166/Quarterly!CL162)-1)","v":5.1224509708264199E-2},{"$f":"((Quarterly!CM166/Quarterly!CM162)-1)","v":4.1287188828172283E-2},{"$f":"((Quarterly!CN166/Quarterly!CN162)-1)","v":4.5563273988683983E-2},{"$f":"((Quarterly!CO166/Quarterly!CO162)-1)","v":9.9485284413356023E-2},{"$f":"((Quarterly!CP166/Quarterly!CP162)-1)","v":5.8867001622748605E-2},{"$f":"((Quarterly!CQ166/Quarterly!CQ162)-1)","v":1.2018449784883867E-2},{"$f":"((Quarterly!CR166/Quarterly!CR162)-1)","v":7.4483622102139657E-2},{"$f":"Quarterly!CS166-Quarterly!CS162","v":7.4333333333333087},"--",null,null,null,null,null,{"$f":"((Quarterly!CZ166/Quarterly!CZ162)-1)","v":1.8907563025210017E-2},{"$f":"((Quarterly!DA166/Quarterly!DA162)-1)","v":2.2337455125648109E-2},null,null,null,null,null,{"$f":"((Quarterly!DG166/Quarterly!DG162)-1)","v":3.3368458025992087E-2},{"$f":"((Quarterly!DH166-Quarterly!DH162)*60)","v":7.9999999999999716},{"$f":"Quarterly!DI166-Quarterly!DI162","v":0.1666666666666714},{"$f":"(Quarterly!DJ166-Quarterly!DJ162)*100","v":-103.33333333333331},{"$f":"(Quarterly!DK166-Quarterly!DK162)*100","v":-66.6666666666666},{"$f":"((Quarterly!DL166/Quarterly!DL162)-1)","v":1.5975612109050852E-2},null,null,null,{"$f":"((Quarterly!DP166/Quarterly!DP162)-1)","v":2.7434074702933131E-2},null,null,null,null,{"$f":"Quarterly!DU166-Quarterly!DU162","v":-0.33333333333333304},{"$f":"((Quarterly!DV166/Quarterly!DV162)-1)","v":3.2980159966760292E-2},{"$f":"((Quarterly!DW166/Quarterly!DW162)-1)","v":3.2003507233669071E-2},{"$f":"((Quarterly!DX166/Quarterly!DX162)-1)","v":3.3167377055052016E-2},{"$f":"((Quarterly!DY166/Quarterly!DY162)-1)","v":2.7497440397835193E-2},{"$f":"((Quarterly!DZ166/Quarterly!DZ162)-1)","v":3.5006166397875127E-2},{"$f":"((Quarterly!EA166/Quarterly!EA162)-1)","v":3.541944074567227E-2},{"$f":"((Quarterly!EB166/Quarterly!EB162)-1)","v":3.3982184097657298E-2},{"$f":"((Quarterly!EC166/Quarterly!EC162)-1)","v":2.9010867563087128E-2},null,null,null,null,null,{"$f":"((Quarterly!EI166/Quarterly!EI162)-1)","v":5.9364966109225481E-2},{"$f":"((Quarterly!EJ166/Quarterly!EJ162)-1)","v":4.6907691344575619E-2},{"$f":"((Quarterly!EK166/Quarterly!EK162)-1)","v":4.5299328285846929E-2},null,null,null,null,null,{"$f":"((Quarterly!EQ166/Quarterly!EQ162)-1)","v":-7.2670646249674009E-3},{"$f":"((Quarterly!ER166/Quarterly!ER162)-1)","v":1.4061401453011602E-3},{"$f":"((Quarterly!ES166/Quarterly!ES162)-1)","v":-4.0944123314065051E-3},null,null,null,null,null,{"$f":"(Quarterly!EY166-Quarterly!EY162)*100","v":25},{"$f":"(Quarterly!EZ166-Quarterly!EZ162)*100","v":22.666666666666657},{"$f":"(Quarterly!FA166-Quarterly!FA162)*100","v":-35.333333333333172},{"$f":"(Quarterly!FB166-Quarterly!FB162)*100","v":-47.999999999999957},"--",{"$f":"(Quarterly!FD166-Quarterly!FD162)*100","v":-51.333333333333364},{"$f":"(Quarterly!FE166-Quarterly!FE162)*100","v":11.333333333333329},{"$f":"(Quarterly!FF166-Quarterly!FF162)*100","v":0.33333333333338544},{"$f":"(Quarterly!FG166-Quarterly!FG162)*100","v":-6.3333333333333464},{"$f":"(Quarterly!FH166-Quarterly!FH162)*100","v":-26.999999999999957},{"$f":"(Quarterly!FI166-Quarterly!FI162)*100","v":-43.666666666666742},null,null,null,null,null,null,{"$f":"((Quarterly!FP166/Quarterly!FP162)-1)","v":4.3370936288909201E-2},{"$f":"((Quarterly!FQ166/Quarterly!FQ162)-1)","v":-2.16101135331348E-3},{"$f":"((Quarterly!FR166/Quarterly!FR162)-1)","v":3.1721739721892739E-2},"--",{"$f":"((Quarterly!FT166/Quarterly!FT162)-1)","v":0.10671525335488141},{"$f":"((Quarterly!FU166/Quarterly!FU162)-1)","v":8.9364780641310482E-2},{"$f":"((Quarterly!FV166/Quarterly!FV162)-1)","v":8.2536285867135906E-2},{"$f":"((Quarterly!FW166/Quarterly!FW162)-1)","v":0.19434936878280729},{"$f":"((Quarterly!FX166/Quarterly!FX162)-1)","v":0.15718380074880667},null,null,null,null,null,{"$f":"((Quarterly!GD166/Quarterly!GD162)-1)","v":-0.19256756756756754},{"$f":"((Quarterly!GE166/Quarterly!GE162)-1)","v":-0.20480905233380475},{"$f":"((Quarterly!GF166/Quarterly!GF162)-1)","v":-0.11098417700741892},{"$f":"((Quarterly!GG166/Quarterly!GG162)-1)","v":-0.10467762326169416},{"$f":"((Quarterly!GH166/Quarterly!GH162)-1)","v":{"$error":"#DIV/0!"}},"--",{"$f":"((Quarterly!GJ166/Quarterly!GJ162)-1)","v":-4.4595037709039276E-2},{"$f":"((Quarterly!GK166/Quarterly!GK162)-1)","v":2.718744016848551E-2},"--"]
["98'Q1",{"$f":"((Quarterly!B167/Quarterly!B163)-1)","v":5.8041956377364645E-2},{"$f":"((Quarterly!C167/Quarterly!C163)-1)","v":4.6238079096504681E-2},{"$f":"((Quarterly!D167/Quarterly!D163)-1)","v":3.8300645581210935E-2},{"$f":"((Quarterly!E167/Quarterly!E163)-1)","v":4.4525209232284091E-2},{"$f":"((Quarterly!F167/Quarterly!F163)-1)","v":7.6428517081336134E-2},{"$f":"((Quarterly!G167/Quarterly!G163)-1)","v":3.1153473943764665E-2},{"$f":"((Quarterly!H167/Quarterly!H163)-1)","v":4.5535767690223938E-2},{"$f":"((Quarterly!I167/Quarterly!I163)-1)","v":0.10770240341235326},{"$f":"((Quarterly!J167/Quarterly!J163)-1)","v":0.1455200141553139},{"$f":"((Quarterly!K167/Quarterly!K163)-1)","v":4.6088538508186838E-2},{"$f":"((Quarterly!L167-Quarterly!L163))","v":76.483000000000004},{"$f":"((Quarterly!M167/Quarterly!M163)-1)","v":0.13590612632352483},{"$f":"((Quarterly!N167/Quarterly!N163)-1)","v":6.7558268286627809E-2},{"$f":"((Quarterly!O167/Quarterly!O163)-1)","v":0.69297408752384948},{"$f":"((Quarterly!P167/Quarterly!P163)-1)","v":7.6564255095410427E-3},{"$f":"((Quarterly!Q167/Quarterly!Q163)-1)","v":-0.81258751688195474},null,null,null,null,null,{"$f":"((Quarterly!W167/Quarterly!W163)-1)","v":2.421307506053294E-3},{"$f":"((Quarterly!X167/Quarterly!X163)-1)","v":2.3885350318471055E-3},{"$f":"((Quarterly!Y167/Quarterly!Y163)-1)","v":9.1652820415295322E-2},{"$f":"Quarterly!Z167-Quarterly!Z163","v":0.10000000000000003},{"$f":"((Quarterly!AA167/Quarterly!AA163)-1)","v":-7.310502725206891E-2},{"$f":"((Quarterly!AB167/Quarterly!AB163)-1)","v":-6.2095925928407181E-2},{"$f":"Quarterly!AC167-Quarterly!AC163","v":-13.9},{"$f":"Quarterly!AD167-Quarterly!AD163","v":0.70000000000000107},{"$f":"(Quarterly!AE167-Quarterly!AE163)*100","v":-7.0000000000000062},{"$f":"(Quarterly!AF167-Quarterly!AF163)*100","v":10.000000000000004},{"$f":"(Quarterly!AG167-Quarterly!AG163)*100","v":4.0000000000000036},"--","--","--","--","--",{"$f":"((Quarterly!AM167/Quarterly!AM163)-1)","v":7.5899839959794102E-2},{"$f":"((Quarterly!AN167/Quarterly!AN163)-1)","v":8.851354831953917E-2},{"$f":"((Quarterly!AO167/Quarterly!AO163)-1)","v":4.4458201063441782E-2},{"$f":"(Quarterly!AP167-Quarterly!AP163)*100","v":1.3333333333333197},{"$f":"Quarterly!AQ167-Quarterly!AQ163","v":-0.36666666666666714},{"$f":"Quarterly!AR167-Quarterly!AR163","v":0.3333333333333357},{"$f":"Quarterly!AS167-Quarterly!AS163","v":1.1666666666666643},{"$f":"Quarterly!AT167-Quarterly!AT163","v":2.56666666666667},{"$f":"Quarterly!AU167-Quarterly!AU163","v":-8.4333333333333371},{"$f":"Quarterly!AV167-Quarterly!AV163","v":1.6999999999999957},{"$f":"Quarterly!AW167-Quarterly!AW163","v":3.4666666666666686},{"$f":"Quarterly!AX167-Quarterly!AX163","v":-2.1999999999999957},{"$f":"Quarterly!AY167-Quarterly!AY163","v":-8.0333333333333314},{"$f":"Quarterly!AZ167-Quarterly!AZ163","v":-3},{"$f":"Quarterly!BA167-Quarterly!BA163","v":1.3000000000000043},"--",{"$f":"((Quarterly!BC167/Quarterly!BC163)-1)","v":8.3564990837582176E-2},{"$f":"((Quarterly!BD167/Quarterly!BD163)-1)","v":3.5237109522017418E-2},{"$f":"((Quarterly!BE167/Quarterly!BE163)-1)","v":4.2638366189546861E-3},{"$f":"((Quarterly!BF167/Quarterly!BF163)-1)","v":5.5192482767590034E-2},{"$f":"((Quarterly!BG167/Quarterly!BG163)-1)","v":3.1581729899689881E-2},{"$f":"((Quarterly!BH167/Quarterly!BH163)-1)","v":4.0870018549726828E-2},{"$f":"((Quarterly!BI167/Quarterly!BI163)-1)","v":2.2891129833253476E-2},{"$f":"((Quarterly!BJ167/Quarterly!BJ163)-1)","v":-8.233696504936916E-2},{"$f":"((Quarterly!BK167/Quarterly!BK163)-1)","v":0.5555555555555558},null,{"$f":"((Quarterly!BM167/Quarterly!BM163)-1)","v":3.1467894393017559E-2},{"$f":"((Quarterly!BN167/Quarterly!BN163)-1)","v":3.0010528862817409E-2},null,null,null,null,null,{"$f":"((Quarterly!BT167/Quarterly!BT163)-1)","v":-2.8212518609242121E-2},{"$f":"Quarterly!BU167-Quarterly!BU163","v":-0.17846999999999902},{"$f":"Quarterly!BV167-Quarterly!BV163","v":-0.29757999999999996},{"$f":"((Quarterly!BW167/Quarterly!BW163)-1)","v":7.1789382294616066E-2},{"$f":"((Quarterly!BX167/Quarterly!BX163)-1)","v":8.7947882736156391E-2},{"$f":"((Quarterly!BY167/Quarterly!BY163)-1)","v":0.1276096645554774},"--",{"$f":"((Quarterly!CA167/Quarterly!CA163)-1)","v":-3.1777991770988279E-2},{"$f":"((Quarterly!CB167/Quarterly!CB163)-1)","v":-0.25218923378617597},{"$f":"((Quarterly!CC167/Quarterly!CC163)-1)","v":-0.20964085421428558},"--","--",null,"--","--",null,{"$f":"((Quarterly!CJ167/Quarterly!CJ163)-1)","v":4.5491470349309449E-2},{"$f":"((Quarterly!CK167/Quarterly!CK163)-1)","v":7.0809783785083846E-2},{"$f":"((Quarterly!CL167/Quarterly!CL163)-1)","v":0.26810821293513043},{"$f":"((Quarterly!CM167/Quarterly!CM163)-1)","v":7.7800526469727904E-2},{"$f":"((Quarterly!CN167/Quarterly!CN163)-1)","v":5.7230995097482307E-2},{"$f":"((Quarterly!CO167/Quarterly!CO163)-1)","v":0.10694856258862973},{"$f":"((Quarterly!CP167/Quarterly!CP163)-1)","v":5.0980239101836577E-2},{"$f":"((Quarterly!CQ167/Quarterly!CQ163)-1)","v":1.1960489269311703E-2},{"$f":"((Quarterly!CR167/Quarterly!CR163)-1)","v":5.4847862646173251E-2},{"$f":"Quarterly!CS167-Quarterly!CS163","v":8.7999999999999829},"--",null,null,null,null,null,{"$f":"((Quarterly!CZ167/Quarterly!CZ163)-1)","v":1.482564209647097E-2},{"$f":"((Quarterly!DA167/Quarterly!DA163)-1)","v":2.2605591909577782E-2},null,null,null,null,null,{"$f":"((Quarterly!DG167/Quarterly!DG163)-1)","v":3.2089291942797304E-2},{"$f":"((Quarterly!DH167-Quarterly!DH163)*60)","v":7.9999999999999716},{"$f":"Quarterly!DI167-Quarterly!DI163","v":9.9999999999994316E-2},{"$f":"(Quarterly!DJ167-Quarterly!DJ163)*100","v":-89.999999999999858},{"$f":"(Quarterly!DK167-Quarterly!DK163)*100","v":-60.000000000000057},{"$f":"((Quarterly!DL167/Quarterly!DL163)-1)","v":1.7900794949281096E-2},null,null,null,{"$f":"((Quarterly!DP167/Quarterly!DP163)-1)","v":2.7307690200568668E-2},null,null,null,null,{"$f":"Quarterly!DU167-Quarterly!DU163","v":-0.86666666666666625},{"$f":"((Quarterly!DV167/Quarterly!DV163)-1)","v":3.5801127838998248E-2},{"$f":"((Quarterly!DW167/Quarterly!DW163)-1)","v":3.5090035380471951E-2},{"$f":"((Quarterly!DX167/Quarterly!DX163)-1)","v":3.7225475841873967E-2},{"$f":"((Quarterly!DY167/Quarterly!DY163)-1)","v":2.3823975720789203E-2},{"$f":"((Quarterly!DZ167/Quarterly!DZ163)-1)","v":4.1485769416304885E-2},{"$f":"((Quarterly!EA167/Quarterly!EA163)-1)","v":4.1892257715213876E-2},{"$f":"((Quarterly!EB167/Quarterly!EB163)-1)","v":4.0476990258649703E-2},{"$f":"((Quarterly!EC167/Quarterly!EC163)-1)","v":2.9562251279135809E-2},null,null,null,null,null,{"$f":"((Quarterly!EI167/Quarterly!EI163)-1)","v":6.1232608464173444E-2},{"$f":"((Quarterly!EJ167/Quarterly!EJ163)-1)","v":4.5164177643175263E-2},{"$f":"((Quarterly!EK167/Quarterly!EK163)-1)","v":4.4133684654866778E-2},null,null,null,null,null,{"$f":"((Quarterly!EQ167/Quarterly!EQ163)-1)","v":-2.6977950713359178E-2},{"$f":"((Quarterly!ER167/Quarterly!ER163)-1)","v":1.8713450292398015E-3},{"$f":"((Quarterly!ES167/Quarterly!ES163)-1)","v":-6.4919451791296545E-3},null,null,null,null,null,{"$f":"(Quarterly!EY167-Quarterly!EY163)*100","v":23.33333333333325},{"$f":"(Quarterly!EZ167-Quarterly!EZ163)*100","v":24.333333333333318},{"$f":"(Quarterly!FA167-Quarterly!FA163)*100","v":-75.999999999999972},{"$f":"(Quarterly!FB167-Quarterly!FB163)*100","v":-81.666666666666643},"--",{"$f":"(Quarterly!FD167-Quarterly!FD163)*100","v":-73.666666666666629},{"$f":"(Quarterly!FE167-Quarterly!FE163)*100","v":-0.66666666666659324},{"$f":"(Quarterly!FF167-Quarterly!FF163)*100","v":-33.333333333333393},{"$f":"(Quarterly!FG167-Quarterly!FG163)*100","v":-59.666666666666671},{"$f":"(Quarterly!FH167-Quarterly!FH163)*100","v":-84.999999999999972},{"$f":"(Quarterly!FI167-Quarterly!FI163)*100","v":-97.666666666666742},null,null,null,null,null,null,{"$f":"((Quarterly!FP167/Quarterly!FP163)-1)","v":5.2335990190067294E-2},{"$f":"((Quarterly!FQ167/Quarterly!FQ163)-1)","v":-2.0140543354220108E-3},{"$f":"((Quarterly!FR167/Quarterly!FR163)-1)","v":7.2496332787844731E-2},"--",{"$f":"((Quarterly!FT167/Quarterly!FT163)-1)","v":0.13172309792050196},{"$f":"((Quarterly!FU167/Quarterly!FU163)-1)","v":6.4224172259751189E-2},{"$f":"((Quarterly!FV167/Quarterly!FV163)-1)","v":3.2895071923863428E-2},{"$f":"((Quarterly!FW167/Quarterly!FW163)-1)","v":0.17934323889605519},{"$f":"((Quarterly!FX167/Quarterly!FX163)-1)","v":0.13276553360808618},null,null,null,null,null,{"$f":"((Quarterly!GD167/Quarterly!GD163)-1)","v":-0.30100921456779306},{"$f":"((Quarterly!GE167/Quarterly!GE163)-1)","v":-0.33312342569269526},{"$f":"((Quarterly!GF167/Quarterly!GF163)-1)","v":-0.13593354243494016},{"$f":"((Quarterly!GG167/Quarterly!GG163)-1)","v":-0.14026315789473665},{"$f":"((Quarterly!GH167/Quarterly!GH163)-1)","v":{"$error":"#DIV/0!"}},"--",{"$f":"((Quarterly!GJ167/Quarterly!GJ163)-1)","v":-5.8882093585549633E-2},{"$f":"((Quarterly!GK167/Quarterly!GK163)-1)","v":3.8992375253354083E-2},"--"]
["98'Q2",{"$f":"((Quarterly!B168/Quarterly!B164)-1)","v":5.17774914229987E-2},{"$f":"((Quarterly!C168/Quarterly!C164)-1)","v":4.0685533245631289E-2},{"$f":"((Quarterly!D168/Quarterly!D164)-1)","v":4.7225510673432947E-2},{"$f":"((Quarterly!E168/Quarterly!E164)-1)","v":5.8176576576576711E-2},{"$f":"((Quarterly!F168/Quarterly!F164)-1)","v":0.13441465509016326},{"$f":"((Quarterly!G168/Quarterly!G164)-1)","v":4.306061609804579E-2},{"$f":"((Quarterly!H168/Quarterly!H164)-1)","v":5.4800824374998003E-2},{"$f":"((Quarterly!I168/Quarterly!I164)-1)","v":0.12076537853833558},{"$f":"((Quarterly!J168/Quarterly!J164)-1)","v":0.16488831634235357},{"$f":"((Quarterly!K168/Quarterly!K164)-1)","v":6.4084647634258474E-2},{"$f":"((Quarterly!L168-Quarterly!L164))","v":-63.243000000000002},{"$f":"((Quarterly!M168/Quarterly!M164)-1)","v":0.12419270996455611},{"$f":"((Quarterly!N168/Quarterly!N164)-1)","v":1.5187134322451445E-2},{"$f":"((Quarterly!O168/Quarterly!O164)-1)","v":1.0657728644792024},{"$f":"((Quarterly!P168/Quarterly!P164)-1)","v":1.7544319889354121E-2},{"$f":"((Quarterly!Q168/Quarterly!Q164)-1)","v":-0.91459012234862525},null,null,null,null,null,{"$f":"((Quarterly!W168/Quarterly!W164)-1)","v":-1.4545454545454528E-2},{"$f":"((Quarterly!X168/Quarterly!X164)-1)","v":-9.1669988043044937E-3},{"$f":"((Quarterly!Y168/Quarterly!Y164)-1)","v":8.4380590663722721E-2},{"$f":"Quarterly!Z168-Quarterly!Z164","v":0.11000000000000001},{"$f":"((Quarterly!AA168/Quarterly!AA164)-1)","v":-0.10851668774469958},{"$f":"((Quarterly!AB168/Quarterly!AB164)-1)","v":-8.9668308425018162E-2},{"$f":"Quarterly!AC168-Quarterly!AC164","v":-9.6},{"$f":"Quarterly!AD168-Quarterly!AD164","v":11.100000000000001},{"$f":"(Quarterly!AE168-Quarterly!AE164)*100","v":-5.0000000000000044},{"$f":"(Quarterly!AF168-Quarterly!AF164)*100","v":11.000000000000002},{"$f":"(Quarterly!AG168-Quarterly!AG164)*100","v":0},"--","--","--","--","--",{"$f":"((Quarterly!AM168/Quarterly!AM164)-1)","v":6.7453333284613448E-2},{"$f":"((Quarterly!AN168/Quarterly!AN164)-1)","v":7.4888105127842053E-2},{"$f":"((Quarterly!AO168/Quarterly!AO164)-1)","v":4.1870583260596561E-2},{"$f":"(Quarterly!AP168-Quarterly!AP164)*100","v":1.6666666666666829},{"$f":"Quarterly!AQ168-Quarterly!AQ164","v":-4.2333333333333414},{"$f":"Quarterly!AR168-Quarterly!AR164","v":-5.3333333333333286},{"$f":"Quarterly!AS168-Quarterly!AS164","v":-0.3333333333333357},{"$f":"Quarterly!AT168-Quarterly!AT164","v":-2.8333333333333357},{"$f":"Quarterly!AU168-Quarterly!AU164","v":-6.9666666666666757},{"$f":"Quarterly!AV168-Quarterly!AV164","v":3.3333333333331439E-2},{"$f":"Quarterly!AW168-Quarterly!AW164","v":-0.20000000000000284},{"$f":"Quarterly!AX168-Quarterly!AX164","v":-7.1000000000000014},{"$f":"Quarterly!AY168-Quarterly!AY164","v":-8.93333333333333},{"$f":"Quarterly!AZ168-Quarterly!AZ164","v":-4.2999999999999972},{"$f":"Quarterly!BA168-Quarterly!BA164","v":-2.7333333333333343},"--",{"$f":"((Quarterly!BC168/Quarterly!BC164)-1)","v":5.1921910997938525E-2},{"$f":"((Quarterly!BD168/Quarterly!BD164)-1)","v":2.1884686918784979E-2},{"$f":"((Quarterly!BE168/Quarterly!BE164)-1)","v":2.027414395163385E-2},{"$f":"((Quarterly!BF168/Quarterly!BF164)-1)","v":5.8913554789444822E-2},{"$f":"((Quarterly!BG168/Quarterly!BG164)-1)","v":2.4623032766623698E-2},{"$f":"((Quarterly!BH168/Quarterly!BH164)-1)","v":4.4288931982703561E-2},{"$f":"((Quarterly!BI168/Quarterly!BI164)-1)","v":3.3455722782033348E-2},{"$f":"((Quarterly!BJ168/Quarterly!BJ164)-1)","v":-7.835266131430263E-2},{"$f":"((Quarterly!BK168/Quarterly!BK164)-1)","v":0.52380952380952395},null,{"$f":"((Quarterly!BM168/Quarterly!BM164)-1)","v":5.7081815239435674E-2},{"$f":"((Quarterly!BN168/Quarterly!BN164)-1)","v":5.7161226411071464E-2},null,null,null,null,null,{"$f":"((Quarterly!BT168/Quarterly!BT164)-1)","v":-2.4484277195233162E-2},{"$f":"Quarterly!BU168-Quarterly!BU164","v":-0.16225000000000023},{"$f":"Quarterly!BV168-Quarterly!BV164","v":-0.34774000000000171},{"$f":"((Quarterly!BW168/Quarterly!BW164)-1)","v":7.3903692632960372E-2},{"$f":"((Quarterly!BX168/Quarterly!BX164)-1)","v":6.5266485998193291E-2},{"$f":"((Quarterly!BY168/Quarterly!BY164)-1)","v":9.7946660372905558E-2},"--",{"$f":"((Quarterly!CA168/Quarterly!CA164)-1)","v":0.11371613406437109},{"$f":"((Quarterly!CB168/Quarterly!CB164)-1)","v":-0.18058405874239514},{"$f":"((Quarterly!CC168/Quarterly!CC164)-1)","v":-0.16095382336885222},"--","--",null,"--","--",null,{"$f":"((Quarterly!CJ168/Quarterly!CJ164)-1)","v":0.1649978232477145},{"$f":"((Quarterly!CK168/Quarterly!CK164)-1)","v":7.6685337162528233E-2},{"$f":"((Quarterly!CL168/Quarterly!CL164)-1)","v":0.1360984503190521},{"$f":"((Quarterly!CM168/Quarterly!CM164)-1)","v":0.10988354732756056},{"$f":"((Quarterly!CN168/Quarterly!CN164)-1)","v":6.2924580618328063E-2},{"$f":"((Quarterly!CO168/Quarterly!CO164)-1)","v":0.11595115195769856},{"$f":"((Quarterly!CP168/Quarterly!CP164)-1)","v":6.8269251500987504E-2},{"$f":"((Quarterly!CQ168/Quarterly!CQ164)-1)","v":1.1819393498782915E-2},{"$f":"((Quarterly!CR168/Quarterly!CR164)-1)","v":9.1042490819352562E-2},{"$f":"Quarterly!CS168-Quarterly!CS164","v":3.8999999999999773},"--",null,null,null,null,null,{"$f":"((Quarterly!CZ168/Quarterly!CZ164)-1)","v":1.5833333333333366E-2},{"$f":"((Quarterly!DA168/Quarterly!DA164)-1)","v":2.1871921182265996E-2},null,null,null,null,null,{"$f":"((Quarterly!DG168/Quarterly!DG164)-1)","v":2.5207182320441834E-2},{"$f":"((Quarterly!DH168-Quarterly!DH164)*60)","v":-1.99999999999946},{"$f":"Quarterly!DI168-Quarterly!DI164","v":-9.9999999999994316E-2},{"$f":"(Quarterly!DJ168-Quarterly!DJ164)*100","v":-100},{"$f":"(Quarterly!DK168-Quarterly!DK164)*100","v":-60.000000000000057},{"$f":"((Quarterly!DL168/Quarterly!DL164)-1)","v":1.4799032592421879E-2},null,null,null,{"$f":"((Quarterly!DP168/Quarterly!DP164)-1)","v":2.6478195946809668E-2},null,null,null,null,{"$f":"Quarterly!DU168-Quarterly!DU164","v":-1.5666666666666655},{"$f":"((Quarterly!DV168/Quarterly!DV164)-1)","v":3.9886185947553221E-2},{"$f":"((Quarterly!DW168/Quarterly!DW164)-1)","v":3.9750564565797397E-2},{"$f":"((Quarterly!DX168/Quarterly!DX164)-1)","v":4.0549215406562089E-2},{"$f":"((Quarterly!DY168/Quarterly!DY164)-1)","v":3.4542815674891258E-2},{"$f":"((Quarterly!DZ168/Quarterly!DZ164)-1)","v":4.2505910165484773E-2},{"$f":"((Quarterly!EA168/Quarterly!EA164)-1)","v":4.297652208515701E-2},{"$f":"((Quarterly!EB168/Quarterly!EB164)-1)","v":4.1337285902503185E-2},{"$f":"((Quarterly!EC168/Quarterly!EC164)-1)","v":3.770131771595886E-2},null,null,null,null,null,{"$f":"((Quarterly!EI168/Quarterly!EI164)-1)","v":5.6621679168877392E-2},{"$f":"((Quarterly!EJ168/Quarterly!EJ164)-1)","v":4.6139018269516496E-2},{"$f":"((Quarterly!EK168/Quarterly!EK164)-1)","v":4.44015198265999E-2},null,null,null,null,null,{"$f":"((Quarterly!EQ168/Quarterly!EQ164)-1)","v":-1.7819706498951815E-2},{"$f":"((Quarterly!ER168/Quarterly!ER164)-1)","v":7.019185774450154E-3},{"$f":"((Quarterly!ES168/Quarterly!ES164)-1)","v":-6.26506024096396E-3},null,null,null,null,null,{"$f":"(Quarterly!EY168-Quarterly!EY164)*100","v":0},{"$f":"(Quarterly!EZ168-Quarterly!EZ164)*100","v":-2.3333333333333428},{"$f":"(Quarterly!FA168-Quarterly!FA164)*100","v":-93.666666666666657},{"$f":"(Quarterly!FB168-Quarterly!FB164)*100","v":-93.333333333333272},"--",{"$f":"(Quarterly!FD168-Quarterly!FD164)*100","v":-83.000000000000099},{"$f":"(Quarterly!FE168-Quarterly!FE164)*100","v":-7.0000000000000284},{"$f":"(Quarterly!FF168-Quarterly!FF164)*100","v":-44.000000000000043},{"$f":"(Quarterly!FG168-Quarterly!FG164)*100","v":-71.666666666666771},{"$f":"(Quarterly!FH168-Quarterly!FH164)*100","v":-98.333333333333428},{"$f":"(Quarterly!FI168-Quarterly!FI164)*100","v":-109.99999999999997},null,null,null,null,null,null,{"$f":"((Quarterly!FP168/Quarterly!FP164)-1)","v":4.3665392291230676E-2},{"$f":"((Quarterly!FQ168/Quarterly!FQ164)-1)","v":-1.8741740418887209E-3},{"$f":"((Quarterly!FR168/Quarterly!FR164)-1)","v":9.4577304140676999E-2},"--",{"$f":"((Quarterly!FT168/Quarterly!FT164)-1)","v":0.12381972207439951},{"$f":"((Quarterly!FU168/Quarterly!FU164)-1)","v":6.2693739980505425E-2},{"$f":"((Quarterly!FV168/Quarterly!FV164)-1)","v":4.3170791681246712E-2},{"$f":"((Quarterly!FW168/Quarterly!FW164)-1)","v":0.16389688382133172},{"$f":"((Quarterly!FX168/Quarterly!FX164)-1)","v":0.11357079527703107},null,null,null,null,null,{"$f":"((Quarterly!GD168/Quarterly!GD164)-1)","v":-0.26389819156061634},{"$f":"((Quarterly!GE168/Quarterly!GE164)-1)","v":-0.25960118168389945},{"$f":"((Quarterly!GF168/Quarterly!GF164)-1)","v":-0.11954001420702043},{"$f":"((Quarterly!GG168/Quarterly!GG164)-1)","v":-0.11281764870148003},{"$f":"((Quarterly!GH168/Quarterly!GH164)-1)","v":{"$error":"#DIV/0!"}},"--",{"$f":"((Quarterly!GJ168/Quarterly!GJ164)-1)","v":5.8264527184919812E-2},{"$f":"((Quarterly!GK168/Quarterly!GK164)-1)","v":2.6365348399246757E-2},"--"]
["98'Q3",{"$f":"((Quarterly!B169/Quarterly!B165)-1)","v":5.2321418134609443E-2},{"$f":"((Quarterly!C169/Quarterly!C165)-1)","v":4.1044000937431324E-2},{"$f":"((Quarterly!D169/Quarterly!D165)-1)","v":4.2754838063187028E-2},{"$f":"((Quarterly!E169/Quarterly!E165)-1)","v":5.406592783651254E-2},{"$f":"((Quarterly!F169/Quarterly!F165)-1)","v":0.1169001991267653},{"$f":"((Quarterly!G169/Quarterly!G165)-1)","v":3.3929246697701254E-2},{"$f":"((Quarterly!H169/Quarterly!H165)-1)","v":5.3733347036000634E-2},{"$f":"((Quarterly!I169/Quarterly!I165)-1)","v":8.9242445609671428E-2},{"$f":"((Quarterly!J169/Quarterly!J165)-1)","v":0.11463733023570422},{"$f":"((Quarterly!K169/Quarterly!K165)-1)","v":9.1017488076311714E-2},{"$f":"((Quarterly!L169-Quarterly!L165))","v":-13.522999999999996},{"$f":"((Quarterly!M169/Quarterly!M165)-1)","v":9.8813804401296501E-2},{"$f":"((Quarterly!N169/Quarterly!N165)-1)","v":-1.2401950956405172E-2},{"$f":"((Quarterly!O169/Quarterly!O165)-1)","v":0.94970034682394888},{"$f":"((Quarterly!P169/Quarterly!P165)-1)","v":2.5131878710229261E-2},{"$f":"((Quarterly!Q169/Quarterly!Q165)-1)","v":-1.315774151759072},null,null,null,null,null,{"$f":"((Quarterly!W169/Quarterly!W165)-1)","v":-3.1363088057901223E-2},{"$f":"((Quarterly!X169/Quarterly!X165)-1)","v":-2.4564183835182218E-2},{"$f":"((Quarterly!Y169/Quarterly!Y165)-1)","v":9.9248806853467819E-2},{"$f":"Quarterly!Z169-Quarterly!Z165","v":8.0000000000000016E-2},{"$f":"((Quarterly!AA169/Quarterly!AA165)-1)","v":-0.15076607449937685},{"$f":"((Quarterly!AB169/Quarterly!AB165)-1)","v":-0.12001486951529783},{"$f":"Quarterly!AC169-Quarterly!AC165","v":2.7999999999999989},{"$f":"Quarterly!AD169-Quarterly!AD165","v":-19.600000000000001},{"$f":"(Quarterly!AE169-Quarterly!AE165)*100","v":-4.0000000000000036},{"$f":"(Quarterly!AF169-Quarterly!AF165)*100","v":8.0000000000000018},{"$f":"(Quarterly!AG169-Quarterly!AG165)*100","v":1.0000000000000009},"--","--","--","--","--",{"$f":"((Quarterly!AM169/Quarterly!AM165)-1)","v":5.1164739985331442E-2},{"$f":"((Quarterly!AN169/Quarterly!AN165)-1)","v":5.6759239652597326E-2},{"$f":"((Quarterly!AO169/Quarterly!AO165)-1)","v":3.6268480700371919E-2},{"$f":"(Quarterly!AP169-Quarterly!AP165)*100","v":3.3333333333333437},{"$f":"Quarterly!AQ169-Quarterly!AQ165","v":-6.9000000000000057},{"$f":"Quarterly!AR169-Quarterly!AR165","v":-9.1666666666666643},{"$f":"Quarterly!AS169-Quarterly!AS165","v":0.8333333333333357},{"$f":"Quarterly!AT169-Quarterly!AT165","v":-5.5666666666666629},{"$f":"Quarterly!AU169-Quarterly!AU165","v":-8.8999999999999986},{"$f":"Quarterly!AV169-Quarterly!AV165","v":-2.1333333333333329},{"$f":"Quarterly!AW169-Quarterly!AW165","v":-1.3333333333333357},{"$f":"Quarterly!AX169-Quarterly!AX165","v":-8.3000000000000043},{"$f":"Quarterly!AY169-Quarterly!AY165","v":-15.63333333333334},{"$f":"Quarterly!AZ169-Quarterly!AZ165","v":-9.9666666666666686},{"$f":"Quarterly!BA169-Quarterly!BA165","v":-4.4666666666666615},{"$f":"Quarterly!BB169-Quarterly!BB165","v":-4.0333333333333314},{"$f":"((Quarterly!BC169/Quarterly!BC165)-1)","v":-1.5557334897149055E-2},{"$f":"((Quarterly!BD169/Quarterly!BD165)-1)","v":2.0656228976821067E-2},{"$f":"((Quarterly!BE169/Quarterly!BE165)-1)","v":2.8718904430856895E-2},{"$f":"((Quarterly!BF169/Quarterly!BF165)-1)","v":6.5177176027812367E-2},{"$f":"((Quarterly!BG169/Quarterly!BG165)-1)","v":3.0311282987009358E-2},{"$f":"((Quarterly!BH169/Quarterly!BH165)-1)","v":5.0525735910517122E-2},{"$f":"((Quarterly!BI169/Quarterly!BI165)-1)","v":3.383458646616555E-2},{"$f":"((Quarterly!BJ169/Quarterly!BJ165)-1)","v":-0.10383192389006335},{"$f":"((Quarterly!BK169/Quarterly!BK165)-1)","v":0.30769230769230771},null,{"$f":"((Quarterly!BM169/Quarterly!BM165)-1)","v":3.4921746406930243E-2},{"$f":"((Quarterly!BN169/Quarterly!BN165)-1)","v":3.4100065811650371E-2},null,null,null,null,null,{"$f":"((Quarterly!BT169/Quarterly!BT165)-1)","v":-4.0083432535804708E-2},{"$f":"Quarterly!BU169-Quarterly!BU165","v":-0.18520000000000003},{"$f":"Quarterly!BV169-Quarterly!BV165","v":-0.37377000000000038},{"$f":"((Quarterly!BW169/Quarterly!BW165)-1)","v":7.1469784608341858E-2},{"$f":"((Quarterly!BX169/Quarterly!BX165)-1)","v":0.11914017836725344},{"$f":"((Quarterly!BY169/Quarterly!BY165)-1)","v":0.10449463837554185},"--",{"$f":"((Quarterly!CA169/Quarterly!CA165)-1)","v":-2.6165973286621402E-2},{"$f":"((Quarterly!CB169/Quarterly!CB165)-1)","v":-0.13563917479777177},{"$f":"((Quarterly!CC169/Quarterly!CC165)-1)","v":-0.11385062085275455},"--","--",null,"--","--",null,{"$f":"((Quarterly!CJ169/Quarterly!CJ165)-1)","v":5.1219512195121997E-2},{"$f":"((Quarterly!CK169/Quarterly!CK165)-1)","v":7.4623443590235539E-2},{"$f":"((Quarterly!CL169/Quarterly!CL165)-1)","v":0.18343949044585983},{"$f":"((Quarterly!CM169/Quarterly!CM165)-1)","v":0.11576497963932519},{"$f":"((Quarterly!CN169/Quarterly!CN165)-1)","v":6.1113608631430116E-2},{"$f":"((Quarterly!CO169/Quarterly!CO165)-1)","v":0.12999950561131168},{"$f":"((Quarterly!CP169/Quarterly!CP165)-1)","v":7.208935034894659E-2},{"$f":"((Quarterly!CQ169/Quarterly!CQ165)-1)","v":1.1644475675306465E-2},{"$f":"((Quarterly!CR169/Quarterly!CR165)-1)","v":7.593492410344771E-2},{"$f":"Quarterly!CS169-Quarterly!CS165","v":-2.3333333333333286},"--",null,null,null,null,null,{"$f":"((Quarterly!CZ169/Quarterly!CZ165)-1)","v":1.5961857379767741E-2},{"$f":"((Quarterly!DA169/Quarterly!DA165)-1)","v":2.3543260741612615E-2},null,null,null,null,null,{"$f":"((Quarterly!DG169/Quarterly!DG165)-1)","v":2.2245037645448607E-2},{"$f":"((Quarterly!DH169-Quarterly!DH165)*60)","v":-5.9999999999996589},{"$f":"Quarterly!DI169-Quarterly!DI165","v":-0.10000000000000853},{"$f":"(Quarterly!DJ169-Quarterly!DJ165)*100","v":-66.6666666666667},{"$f":"(Quarterly!DK169-Quarterly!DK165)*100","v":-33.3333333333333},{"$f":"((Quarterly!DL169/Quarterly!DL165)-1)","v":4.5119106794633268E-3},null,null,null,{"$f":"((Quarterly!DP169/Quarterly!DP165)-1)","v":2.6261353465595549E-2},null,null,null,null,{"$f":"Quarterly!DU169-Quarterly!DU165","v":-1.3666666666666663},{"$f":"((Quarterly!DV169/Quarterly!DV165)-1)","v":3.2883919763235792E-2},{"$f":"((Quarterly!DW169/Quarterly!DW165)-1)","v":3.5068042470465244E-2},{"$f":"((Quarterly!DX169/Quarterly!DX165)-1)","v":3.6234149730762555E-2},{"$f":"((Quarterly!DY169/Quarterly!DY165)-1)","v":2.6184538653366562E-2},{"$f":"((Quarterly!DZ169/Quarterly!DZ165)-1)","v":3.9597533268419527E-2},{"$f":"((Quarterly!EA169/Quarterly!EA165)-1)","v":3.999219664455711E-2},{"$f":"((Quarterly!EB169/Quarterly!EB165)-1)","v":3.8616900953304167E-2},{"$f":"((Quarterly!EC169/Quarterly!EC165)-1)","v":3.2107259416071177E-2},null,null,null,null,null,{"$f":"((Quarterly!EI169/Quarterly!EI165)-1)","v":5.3968067672548026E-2},{"$f":"((Quarterly!EJ169/Quarterly!EJ165)-1)","v":4.4823803225203296E-2},{"$f":"((Quarterly!EK169/Quarterly!EK165)-1)","v":4.2955597230661446E-2},null,null,null,null,null,{"$f":"((Quarterly!EQ169/Quarterly!EQ165)-1)","v":-2.2798742138364747E-2},{"$f":"((Quarterly!ER169/Quarterly!ER165)-1)","v":1.0536174198080062E-2},{"$f":"((Quarterly!ES169/Quarterly!ES165)-1)","v":-5.547515677761572E-3},null,null,null,null,null,{"$f":"(Quarterly!EY169-Quarterly!EY165)*100","v":-0.3333333333332078},{"$f":"(Quarterly!EZ169-Quarterly!EZ165)*100","v":1.7763568394002505E-13},{"$f":"(Quarterly!FA169-Quarterly!FA165)*100","v":-67.999999999999972},{"$f":"(Quarterly!FB169-Quarterly!FB165)*100","v":-63.000000000000078},"--",{"$f":"(Quarterly!FD169-Quarterly!FD165)*100","v":-60.666666666666643},{"$f":"(Quarterly!FE169-Quarterly!FE165)*100","v":-22.333333333333361},{"$f":"(Quarterly!FF169-Quarterly!FF165)*100","v":-44.666666666666544},{"$f":"(Quarterly!FG169-Quarterly!FG165)*100","v":-76.999999999999957},{"$f":"(Quarterly!FH169-Quarterly!FH165)*100","v":-101.33333333333327},{"$f":"(Quarterly!FI169-Quarterly!FI165)*100","v":-104},null,null,null,null,null,null,{"$f":"((Quarterly!FP169/Quarterly!FP165)-1)","v":9.3401039661147545E-2},{"$f":"((Quarterly!FQ169/Quarterly!FQ165)-1)","v":-1.0620391151010544E-3},{"$f":"((Quarterly!FR169/Quarterly!FR165)-1)","v":0.21590569597022702},"--",{"$f":"((Quarterly!FT169/Quarterly!FT165)-1)","v":0.13163260271312582},{"$f":"((Quarterly!FU169/Quarterly!FU165)-1)","v":6.4612584320297373E-2},{"$f":"((Quarterly!FV169/Quarterly!FV165)-1)","v":1.9111590702094894E-2},{"$f":"((Quarterly!FW169/Quarterly!FW165)-1)","v":0.11129034010058581},{"$f":"((Quarterly!FX169/Quarterly!FX165)-1)","v":7.4192712947943829E-2},null,null,null,null,null,{"$f":"((Quarterly!GD169/Quarterly!GD165)-1)","v":-0.28576242628475146},{"$f":"((Quarterly!GE169/Quarterly!GE165)-1)","v":-0.32762968299711814},{"$f":"((Quarterly!GF169/Quarterly!GF165)-1)","v":-0.15251409961077111},{"$f":"((Quarterly!GG169/Quarterly!GG165)-1)","v":-0.11967779056386674},{"$f":"((Quarterly!GH169/Quarterly!GH165)-1)","v":{"$error":"#DIV/0!"}},"--",{"$f":"((Quarterly!GJ169/Quarterly!GJ165)-1)","v":-0.19105636631409839},{"$f":"((Quarterly!GK169/Quarterly!GK165)-1)","v":5.6481481481481577E-2},"--"]
["98'Q4",{"$f":"((Quarterly!B170/Quarterly!B166)-1)","v":6.1141378556993864E-2},{"$f":"((Quarterly!C170/Quarterly!C166)-1)","v":4.9985776510216517E-2},{"$f":"((Quarterly!D170/Quarterly!D166)-1)","v":5.2740262655418313E-2},{"$f":"((Quarterly!E170/Quarterly!E166)-1)","v":5.6988795518207125E-2},{"$f":"((Quarterly!F170/Quarterly!F166)-1)","v":0.15341040668364903},{"$f":"((Quarterly!G170/Quarterly!G166)-1)","v":4.0619982389806797E-2},{"$f":"((Quarterly!H170/Quarterly!H166)-1)","v":5.127995937825891E-2},{"$f":"((Quarterly!I170/Quarterly!I166)-1)","v":0.11298722797366612},{"$f":"((Quarterly!J170/Quarterly!J166)-1)","v":0.15483186188289744},{"$f":"((Quarterly!K170/Quarterly!K166)-1)","v":0.10582218725413073},{"$f":"((Quarterly!L170-Quarterly!L166))","v":-22.986000000000004},{"$f":"((Quarterly!M170/Quarterly!M166)-1)","v":0.1103133455033336},{"$f":"((Quarterly!N170/Quarterly!N166)-1)","v":2.5585651212166827E-2},{"$f":"((Quarterly!O170/Quarterly!O166)-1)","v":0.65087083921355404},{"$f":"((Quarterly!P170/Quarterly!P166)-1)","v":3.2983018452946933E-2},{"$f":"((Quarterly!Q170/Quarterly!Q166)-1)","v":-1.2824064531200614},null,null,null,null,null,{"$f":"((Quarterly!W170/Quarterly!W166)-1)","v":-3.477218225419676E-2},{"$f":"((Quarterly!X170/Quarterly!X166)-1)","v":-3.1114612051988844E-2},{"$f":"((Quarterly!Y170/Quarterly!Y166)-1)","v":0.11669418254959019},{"$f":"Quarterly!Z170-Quarterly!Z166","v":0.13},{"$f":"((Quarterly!AA170/Quarterly!AA166)-1)","v":-0.18312086209325251},{"$f":"((Quarterly!AB170/Quarterly!AB166)-1)","v":-0.14192271361506803},{"$f":"Quarterly!AC170-Quarterly!AC166","v":-8.6},{"$f":"Quarterly!AD170-Quarterly!AD166","v":-11.600000000000001},{"$f":"(Quarterly!AE170-Quarterly!AE166)*100","v":0},{"$f":"(Quarterly!AF170-Quarterly!AF166)*100","v":13},{"$f":"(Quarterly!AG170-Quarterly!AG166)*100","v":2.0000000000000018},"--","--","--","--","--",{"$f":"((Quarterly!AM170/Quarterly!AM166)-1)","v":4.0258801047468706E-2},{"$f":"((Quarterly!AN170/Quarterly!AN166)-1)","v":4.8811989371281062E-2},{"$f":"((Quarterly!AO170/Quarterly!AO166)-1)","v":3.331737051389827E-2},{"$f":"(Quarterly!AP170-Quarterly!AP166)*100","v":1.3333333333333197},{"$f":"Quarterly!AQ170-Quarterly!AQ166","v":-7.6333333333333329},{"$f":"Quarterly!AR170-Quarterly!AR166","v":-11.833333333333336},{"$f":"Quarterly!AS170-Quarterly!AS166","v":1.1666666666666714},{"$f":"Quarterly!AT170-Quarterly!AT166","v":-8.7333333333333343},{"$f":"Quarterly!AU170-Quarterly!AU166","v":-8.5333333333333314},{"$f":"Quarterly!AV170-Quarterly!AV166","v":-3.1999999999999957},{"$f":"Quarterly!AW170-Quarterly!AW166","v":-0.23333333333332718},{"$f":"Quarterly!AX170-Quarterly!AX166","v":-9.8333333333333357},{"$f":"Quarterly!AY170-Quarterly!AY166","v":-18.933333333333337},{"$f":"Quarterly!AZ170-Quarterly!AZ166","v":-8.5666666666666629},{"$f":"Quarterly!BA170-Quarterly!BA166","v":-5.1000000000000014},{"$f":"Quarterly!BB170-Quarterly!BB166","v":-5.9666666666666615},{"$f":"((Quarterly!BC170/Quarterly!BC166)-1)","v":7.7551020408161975E-3},{"$f":"((Quarterly!BD170/Quarterly!BD166)-1)","v":2.0819443602642762E-2},{"$f":"((Quarterly!BE170/Quarterly!BE166)-1)","v":1.8246161852719212E-2},{"$f":"((Quarterly!BF170/Quarterly!BF166)-1)","v":5.2238221330868084E-2},{"$f":"((Quarterly!BG170/Quarterly!BG166)-1)","v":3.4544492818489037E-2},{"$f":"((Quarterly!BH170/Quarterly!BH166)-1)","v":3.8853209381542131E-2},{"$f":"((Quarterly!BI170/Quarterly!BI166)-1)","v":1.710912409602372E-2},{"$f":"((Quarterly!BJ170/Quarterly!BJ166)-1)","v":-0.14819111181736322},{"$f":"((Quarterly!BK170/Quarterly!BK166)-1)","v":0.44827586206896552},null,{"$f":"((Quarterly!BM170/Quarterly!BM166)-1)","v":6.0606937043116149E-2},{"$f":"((Quarterly!BN170/Quarterly!BN166)-1)","v":5.9729416929400925E-2},null,null,null,null,null,{"$f":"((Quarterly!BT170/Quarterly!BT166)-1)","v":-1.1585300294167267E-2},{"$f":"Quarterly!BU170-Quarterly!BU166","v":-7.8749999999999432E-2},{"$f":"Quarterly!BV170-Quarterly!BV166","v":-0.20851000000000042},{"$f":"((Quarterly!BW170/Quarterly!BW166)-1)","v":7.5499645492134171E-2},{"$f":"((Quarterly!BX170/Quarterly!BX166)-1)","v":0.12423846823324625},{"$f":"((Quarterly!BY170/Quarterly!BY166)-1)","v":0.16026220614828213},"--",{"$f":"((Quarterly!CA170/Quarterly!CA166)-1)","v":5.8839969042909779E-2},{"$f":"((Quarterly!CB170/Quarterly!CB166)-1)","v":-9.1298628002295268E-2},{"$f":"((Quarterly!CC170/Quarterly!CC166)-1)","v":-7.7566688815646656E-2},"--","--",null,"--","--",null,{"$f":"((Quarterly!CJ170/Quarterly!CJ166)-1)","v":0.1546601546601547},{"$f":"((Quarterly!CK170/Quarterly!CK166)-1)","v":6.7804627154915087E-2},{"$f":"((Quarterly!CL170/Quarterly!CL166)-1)","v":2.2925561537033401E-2},{"$f":"((Quarterly!CM170/Quarterly!CM166)-1)","v":0.19329446064139932},{"$f":"((Quarterly!CN170/Quarterly!CN166)-1)","v":5.4645223924697062E-2},{"$f":"((Quarterly!CO170/Quarterly!CO166)-1)","v":0.13883420559850235},{"$f":"((Quarterly!CP170/Quarterly!CP166)-1)","v":7.3032892913322156E-2},{"$f":"((Quarterly!CQ170/Quarterly!CQ166)-1)","v":1.1498753572080078E-2},{"$f":"((Quarterly!CR170/Quarterly!CR166)-1)","v":7.346898234983712E-2},{"$f":"Quarterly!CS170-Quarterly!CS166","v":-4.7666666666666515},"--",null,null,null,null,null,{"$f":"((Quarterly!CZ170/Quarterly!CZ166)-1)","v":1.525773195876301E-2},{"$f":"((Quarterly!DA170/Quarterly!DA166)-1)","v":2.3410066328521495E-2},null,null,null,null,null,{"$f":"((Quarterly!DG170/Quarterly!DG166)-1)","v":2.2093813732155132E-2},{"$f":"((Quarterly!DH170-Quarterly!DH166)*60)","v":-3.9999999999997726},{"$f":"Quarterly!DI170-Quarterly!DI166","v":0},{"$f":"(Quarterly!DJ170-Quarterly!DJ166)*100","v":-70.000000000000014},{"$f":"(Quarterly!DK170-Quarterly!DK166)*100","v":-23.333333333333339},{"$f":"((Quarterly!DL170/Quarterly!DL166)-1)","v":-4.3868811364110583E-3},null,null,null,{"$f":"((Quarterly!DP170/Quarterly!DP166)-1)","v":2.4356807511737077E-2},null,null,null,null,{"$f":"Quarterly!DU170-Quarterly!DU166","v":-1.2000000000000011},{"$f":"((Quarterly!DV170/Quarterly!DV166)-1)","v":3.1424405450248827E-2},{"$f":"((Quarterly!DW170/Quarterly!DW166)-1)","v":3.1435853865760643E-2},{"$f":"((Quarterly!DX170/Quarterly!DX166)-1)","v":3.0161206448257927E-2},{"$f":"((Quarterly!DY170/Quarterly!DY166)-1)","v":3.5587188612099752E-2},{"$f":"((Quarterly!DZ170/Quarterly!DZ166)-1)","v":2.8414298808432603E-2},{"$f":"((Quarterly!EA170/Quarterly!EA166)-1)","v":2.8742283950617287E-2},{"$f":"((Quarterly!EB170/Quarterly!EB166)-1)","v":2.7600510529674827E-2},{"$f":"((Quarterly!EC170/Quarterly!EC166)-1)","v":3.4726572988454274E-2},null,null,null,null,null,{"$f":"((Quarterly!EI170/Quarterly!EI166)-1)","v":7.3699258896518849E-2},{"$f":"((Quarterly!EJ170/Quarterly!EJ166)-1)","v":5.5875532162782182E-2},{"$f":"((Quarterly!EK170/Quarterly!EK166)-1)","v":4.9234478841419627E-2},null,null,null,null,null,{"$f":"((Quarterly!EQ170/Quarterly!EQ166)-1)","v":-3.1633986928104707E-2},{"$f":"((Quarterly!ER170/Quarterly!ER166)-1)","v":1.6381933068102095E-2},{"$f":"((Quarterly!ES170/Quarterly!ES166)-1)","v":-1.6928657799275548E-3},null,null,null,null,null,{"$f":"(Quarterly!EY170-Quarterly!EY166)*100","v":-58.000000000000099},{"$f":"(Quarterly!EZ170-Quarterly!EZ166)*100","v":-64.666666666666657},{"$f":"(Quarterly!FA170-Quarterly!FA166)*100","v":-54.333333333333478},{"$f":"(Quarterly!FB170-Quarterly!FB166)*100","v":-18.666666666666742},"--",{"$f":"(Quarterly!FD170-Quarterly!FD166)*100","v":-43.333333333333357},{"$f":"(Quarterly!FE170-Quarterly!FE166)*100","v":-83.6666666666666},{"$f":"(Quarterly!FF170-Quarterly!FF166)*100","v":-109.33333333333337},{"$f":"(Quarterly!FG170-Quarterly!FG166)*100","v":-135.33333333333334},{"$f":"(Quarterly!FH170-Quarterly!FH166)*100","v":-144.33333333333334},{"$f":"(Quarterly!FI170-Quarterly!FI166)*100","v":-123.66666666666663},null,null,null,null,null,null,{"$f":"((Quarterly!FP170/Quarterly!FP166)-1)","v":9.513106842055441E-2},{"$f":"((Quarterly!FQ170/Quarterly!FQ166)-1)","v":-4.0386134762155912E-3},{"$f":"((Quarterly!FR170/Quarterly!FR166)-1)","v":0.23754506685345822},"--",{"$f":"((Quarterly!FT170/Quarterly!FT166)-1)","v":5.484732355682187E-2},{"$f":"((Quarterly!FU170/Quarterly!FU166)-1)","v":8.3536098756065158E-4},{"$f":"((Quarterly!FV170/Quarterly!FV166)-1)","v":4.7744518906136735E-2},{"$f":"((Quarterly!FW170/Quarterly!FW166)-1)","v":0.11326481179924452},{"$f":"((Quarterly!FX170/Quarterly!FX166)-1)","v":8.8295186475561671E-2},null,null,null,null,null,{"$f":"((Quarterly!GD170/Quarterly!GD166)-1)","v":-0.35531380753138075},{"$f":"((Quarterly!GE170/Quarterly!GE166)-1)","v":-0.40305940946282459},{"$f":"((Quarterly!GF170/Quarterly!GF166)-1)","v":-0.14949115991905826},{"$f":"((Quarterly!GG170/Quarterly!GG166)-1)","v":-0.1431798926856821},{"$f":"((Quarterly!GH170/Quarterly!GH166)-1)","v":{"$error":"#DIV/0!"}},"--",{"$f":"((Quarterly!GJ170/Quarterly!GJ166)-1)","v":-0.26221256149182015},{"$f":"((Quarterly!GK170/Quarterly!GK166)-1)","v":-4.8928238583410999E-2},"--"]
["99'Q1",{"$f":"((Quarterly!B171/Quarterly!B167)-1)","v":6.2698290567139603E-2},{"$f":"((Quarterly!C171/Quarterly!C167)-1)","v":4.8000811924765241E-2},{"$f":"((Quarterly!D171/Quarterly!D167)-1)","v":5.1653324965572844E-2},{"$f":"((Quarterly!E171/Quarterly!E167)-1)","v":5.6143172019906595E-2},{"$f":"((Quarterly!F171/Quarterly!F167)-1)","v":0.14665135182894473},{"$f":"((Quarterly!G171/Quarterly!G167)-1)","v":5.220935165781726E-2},{"$f":"((Quarterly!H171/Quarterly!H167)-1)","v":6.1237068393378502E-2},{"$f":"((Quarterly!I171/Quarterly!I167)-1)","v":0.10236473143759861},{"$f":"((Quarterly!J171/Quarterly!J167)-1)","v":0.14110612118289745},{"$f":"((Quarterly!K171/Quarterly!K167)-1)","v":0.20378357487922694},{"$f":"((Quarterly!L171-Quarterly!L167))","v":-30.375},{"$f":"((Quarterly!M171/Quarterly!M167)-1)","v":8.5790188174231785E-2},{"$f":"((Quarterly!N171/Quarterly!N167)-1)","v":-3.9781207778335492E-3},{"$f":"((Quarterly!O171/Quarterly!O167)-1)","v":0.5471583214418807},{"$f":"((Quarterly!P171/Quarterly!P167)-1)","v":4.2773576891315335E-2},{"$f":"((Quarterly!Q171/Quarterly!Q167)-1)","v":-3.0985012600026529},null,null,null,null,null,{"$f":"((Quarterly!W171/Quarterly!W167)-1)","v":-3.0193236714975868E-2},{"$f":"((Quarterly!X171/Quarterly!X167)-1)","v":-2.5416997617156545E-2},{"$f":"((Quarterly!Y171/Quarterly!Y167)-1)","v":9.0614484247784732E-2},{"$f":"Quarterly!Z171-Quarterly!Z167","v":0.14999999999999997},{"$f":"((Quarterly!AA171/Quarterly!AA167)-1)","v":9.8824146272025182E-3},{"$f":"((Quarterly!AB171/Quarterly!AB167)-1)","v":4.6411414897226555E-2},{"$f":"Quarterly!AC171-Quarterly!AC167","v":-16.7},{"$f":"Quarterly!AD171-Quarterly!AD167","v":-4},{"$f":"(Quarterly!AE171-Quarterly!AE167)*100","v":2.0000000000000018},{"$f":"(Quarterly!AF171-Quarterly!AF167)*100","v":14.999999999999996},{"$f":"(Quarterly!AG171-Quarterly!AG167)*100","v":-1.0000000000000009},"--","--","--","--","--",{"$f":"((Quarterly!AM171/Quarterly!AM167)-1)","v":4.0249823586596678E-2},{"$f":"((Quarterly!AN171/Quarterly!AN167)-1)","v":4.6759308106229192E-2},{"$f":"((Quarterly!AO171/Quarterly!AO167)-1)","v":2.7320671837729016E-2},{"$f":"(Quarterly!AP171-Quarterly!AP167)*100","v":-1.3333333333333197},{"$f":"Quarterly!AQ171-Quarterly!AQ167","v":-1.6333333333333258},{"$f":"Quarterly!AR171-Quarterly!AR167","v":-2.6666666666666714},{"$f":"Quarterly!AS171-Quarterly!AS167","v":-3.5},{"$f":"Quarterly!AT171-Quarterly!AT167","v":-5.1000000000000014},{"$f":"Quarterly!AU171-Quarterly!AU167","v":4.06666666666667},{"$f":"Quarterly!AV171-Quarterly!AV167","v":-0.90000000000000568},{"$f":"Quarterly!AW171-Quarterly!AW167","v":-2.8333333333333286},{"$f":"Quarterly!AX171-Quarterly!AX167","v":-1.0999999999999943},{"$f":"Quarterly!AY171-Quarterly!AY167","v":-8.43333333333333},{"$f":"Quarterly!AZ171-Quarterly!AZ167","v":0.86666666666667425},{"$f":"Quarterly!BA171-Quarterly!BA167","v":-1.56666666666667},{"$f":"Quarterly!BB171-Quarterly!BB167","v":-0.56666666666666998},{"$f":"((Quarterly!BC171/Quarterly!BC167)-1)","v":8.9044838793177483E-3},{"$f":"((Quarterly!BD171/Quarterly!BD167)-1)","v":4.1339089600848311E-2},{"$f":"((Quarterly!BE171/Quarterly!BE167)-1)","v":1.583066893659435E-2},{"$f":"((Quarterly!BF171/Quarterly!BF167)-1)","v":5.3553545842513151E-2},{"$f":"((Quarterly!BG171/Quarterly!BG167)-1)","v":4.0176945796863039E-2},{"$f":"((Quarterly!BH171/Quarterly!BH167)-1)","v":3.8170339654288732E-2},{"$f":"((Quarterly!BI171/Quarterly!BI167)-1)","v":1.2862985217848344E-2},{"$f":"((Quarterly!BJ171/Quarterly!BJ167)-1)","v":-2.8026313335115738E-2},{"$f":"((Quarterly!BK171/Quarterly!BK167)-1)","v":0.53571428571428559},null,{"$f":"((Quarterly!BM171/Quarterly!BM167)-1)","v":7.2878249979894116E-2},{"$f":"((Quarterly!BN171/Quarterly!BN167)-1)","v":7.5648245736562147E-2},null,null,null,null,null,{"$f":"((Quarterly!BT171/Quarterly!BT167)-1)","v":2.9415219845707608E-3},{"$f":"Quarterly!BU171-Quarterly!BU167","v":0.13260999999999967},{"$f":"Quarterly!BV171-Quarterly!BV167","v":9.0359999999996887E-2},{"$f":"((Quarterly!BW171/Quarterly!BW167)-1)","v":7.4485320176185477E-2},{"$f":"((Quarterly!BX171/Quarterly!BX167)-1)","v":9.6663815226689431E-2},{"$f":"((Quarterly!BY171/Quarterly!BY167)-1)","v":6.4489286457249939E-2},"--",{"$f":"((Quarterly!CA171/Quarterly!CA167)-1)","v":0.10741410488245906},{"$f":"((Quarterly!CB171/Quarterly!CB167)-1)","v":-2.1054543820809402E-2},{"$f":"((Quarterly!CC171/Quarterly!CC167)-1)","v":-3.868894153945146E-2},"--","--",null,"--","--",null,{"$f":"((Quarterly!CJ171/Quarterly!CJ167)-1)","v":4.6620046620047262E-3},{"$f":"((Quarterly!CK171/Quarterly!CK167)-1)","v":5.6276278434614024E-2},{"$f":"((Quarterly!CL171/Quarterly!CL167)-1)","v":-0.14122954580211056},{"$f":"((Quarterly!CM171/Quarterly!CM167)-1)","v":8.8466757123473627E-2},{"$f":"((Quarterly!CN171/Quarterly!CN167)-1)","v":4.1878822945941474E-2},{"$f":"((Quarterly!CO171/Quarterly!CO167)-1)","v":0.14375888011552873},{"$f":"((Quarterly!CP171/Quarterly!CP167)-1)","v":8.7029155856647167E-2},{"$f":"((Quarterly!CQ171/Quarterly!CQ167)-1)","v":1.1484382864509923E-2},{"$f":"((Quarterly!CR171/Quarterly!CR167)-1)","v":8.4968939017699308E-2},{"$f":"Quarterly!CS171-Quarterly!CS167","v":-1.9333333333333371},"--",null,null,null,null,null,{"$f":"((Quarterly!CZ171/Quarterly!CZ167)-1)","v":1.6872427983539051E-2},{"$f":"((Quarterly!DA171/Quarterly!DA167)-1)","v":2.1718053131665638E-2},null,null,null,null,null,{"$f":"((Quarterly!DG171/Quarterly!DG167)-1)","v":1.926326461642458E-2},{"$f":"((Quarterly!DH171-Quarterly!DH167)*60)","v":-9.9999999999998579},{"$f":"Quarterly!DI171-Quarterly!DI167","v":3.3333333333345649E-2},{"$f":"(Quarterly!DJ171-Quarterly!DJ167)*100","v":-73.333333333333343},{"$f":"(Quarterly!DK171-Quarterly!DK167)*100","v":-33.3333333333333},{"$f":"((Quarterly!DL171/Quarterly!DL167)-1)","v":-1.3104400279863038E-2},null,null,null,{"$f":"((Quarterly!DP171/Quarterly!DP167)-1)","v":2.4200666078270983E-2},null,null,null,null,{"$f":"Quarterly!DU171-Quarterly!DU167","v":-0.23333333333333339},{"$f":"((Quarterly!DV171/Quarterly!DV167)-1)","v":2.9743769042505308E-2},{"$f":"((Quarterly!DW171/Quarterly!DW167)-1)","v":2.9589572226615291E-2},{"$f":"((Quarterly!DX171/Quarterly!DX167)-1)","v":2.7949324205102988E-2},{"$f":"((Quarterly!DY171/Quarterly!DY167)-1)","v":3.5274937009041052E-2},{"$f":"((Quarterly!DZ171/Quarterly!DZ167)-1)","v":2.5660027790643802E-2},{"$f":"((Quarterly!EA171/Quarterly!EA167)-1)","v":2.5917505683663578E-2},{"$f":"((Quarterly!EB171/Quarterly!EB167)-1)","v":2.5020177562550483E-2},{"$f":"((Quarterly!EC171/Quarterly!EC167)-1)","v":3.3867108411559155E-2},null,null,null,null,null,{"$f":"((Quarterly!EI171/Quarterly!EI167)-1)","v":7.5842164975047144E-2},{"$f":"((Quarterly!EJ171/Quarterly!EJ167)-1)","v":6.0949484801037901E-2},{"$f":"((Quarterly!EK171/Quarterly!EK167)-1)","v":5.7363009826949529E-2},null,null,null,null,null,{"$f":"((Quarterly!EQ171/Quarterly!EQ167)-1)","v":-1.946147693948308E-2},{"$f":"((Quarterly!ER171/Quarterly!ER167)-1)","v":2.0312864814382214E-2},{"$f":"((Quarterly!ES171/Quarterly!ES167)-1)","v":-7.2604065827686082E-4},null,null,null,null,null,{"$f":"(Quarterly!EY171-Quarterly!EY167)*100","v":-75},{"$f":"(Quarterly!EZ171-Quarterly!EZ167)*100","v":-78.666666666666714},{"$f":"(Quarterly!FA171-Quarterly!FA167)*100","v":-24.666666666666615},{"$f":"(Quarterly!FB171-Quarterly!FB167)*100","v":14.999999999999947},"--",{"$f":"(Quarterly!FD171-Quarterly!FD167)*100","v":-17.333333333333378},{"$f":"(Quarterly!FE171-Quarterly!FE167)*100","v":-64.666666666666657},{"$f":"(Quarterly!FF171-Quarterly!FF167)*100","v":-64.999999999999943},{"$f":"(Quarterly!FG171-Quarterly!FG167)*100","v":-59.666666666666579},{"$f":"(Quarterly!FH171-Quarterly!FH167)*100","v":-62.3333333333334},{"$f":"(Quarterly!FI171-Quarterly!FI167)*100","v":-60.333333333333258},null,null,null,null,null,null,{"$f":"((Quarterly!FP171/Quarterly!FP167)-1)","v":5.681791698711236E-2},{"$f":"((Quarterly!FQ171/Quarterly!FQ167)-1)","v":-3.5307050978566901E-3},{"$f":"((Quarterly!FR171/Quarterly!FR167)-1)","v":0.18059563433396297},"--",{"$f":"((Quarterly!FT171/Quarterly!FT167)-1)","v":9.7313914270549251E-3},{"$f":"((Quarterly!FU171/Quarterly!FU167)-1)","v":-1.7824651016124515E-2},{"$f":"((Quarterly!FV171/Quarterly!FV167)-1)","v":0.10231664764695658},{"$f":"((Quarterly!FW171/Quarterly!FW167)-1)","v":0.10871722852763854},{"$f":"((Quarterly!FX171/Quarterly!FX167)-1)","v":0.10705265377351303},null,null,null,null,null,{"$f":"((Quarterly!GD171/Quarterly!GD167)-1)","v":-0.18100020924879667},{"$f":"((Quarterly!GE171/Quarterly!GE167)-1)","v":-0.19995278564683661},{"$f":"((Quarterly!GF171/Quarterly!GF167)-1)","v":-9.94517094211812E-2},{"$f":"((Quarterly!GG171/Quarterly!GG167)-1)","v":-0.10529537802265088},{"$f":"((Quarterly!GH171/Quarterly!GH167)-1)","v":{"$error":"#DIV/0!"}},"--",{"$f":"((Quarterly!GJ171/Quarterly!GJ167)-1)","v":-0.18497808674625971},{"$f":"((Quarterly!GK171/Quarterly!GK167)-1)","v":1.9600557361820536E-2},"--"]
["99'Q2",{"$f":"((Quarterly!B172/Quarterly!B168)-1)","v":6.2510659009745506E-2},{"$f":"((Quarterly!C172/Quarterly!C168)-1)","v":4.6494257830823171E-2},{"$f":"((Quarterly!D172/Quarterly!D168)-1)","v":4.683990374703062E-2},{"$f":"((Quarterly!E172/Quarterly!E168)-1)","v":5.3184581783838114E-2},{"$f":"((Quarterly!F172/Quarterly!F168)-1)","v":0.14372619158360633},{"$f":"((Quarterly!G172/Quarterly!G168)-1)","v":4.9254580559316086E-2},{"$f":"((Quarterly!H172/Quarterly!H168)-1)","v":5.5186468394414323E-2},{"$f":"((Quarterly!I172/Quarterly!I168)-1)","v":9.5147669770992316E-2},{"$f":"((Quarterly!J172/Quarterly!J168)-1)","v":0.14049146498919285},{"$f":"((Quarterly!K172/Quarterly!K168)-1)","v":0.18697936210131316},{"$f":"((Quarterly!L172-Quarterly!L168))","v":-4.3700000000000045},{"$f":"((Quarterly!M172/Quarterly!M168)-1)","v":9.1966108342444786E-2},{"$f":"((Quarterly!N172/Quarterly!N168)-1)","v":1.7396334583273054E-2},{"$f":"((Quarterly!O172/Quarterly!O168)-1)","v":0.40851073520090697},{"$f":"((Quarterly!P172/Quarterly!P168)-1)","v":2.7726813772664949E-2},{"$f":"((Quarterly!Q172/Quarterly!Q168)-1)","v":-8.1691798035183929},null,null,null,null,null,{"$f":"((Quarterly!W172/Quarterly!W168)-1)","v":-1.4760147601476037E-2},{"$f":"((Quarterly!X172/Quarterly!X168)-1)","v":-1.5285599356395951E-2},{"$f":"((Quarterly!Y172/Quarterly!Y168)-1)","v":7.8924463208612572E-2},{"$f":"Quarterly!Z172-Quarterly!Z168","v":0.15999999999999998},{"$f":"((Quarterly!AA172/Quarterly!AA168)-1)","v":4.5066617800572972E-2},{"$f":"((Quarterly!AB172/Quarterly!AB168)-1)","v":3.9093308270542471E-2},{"$f":"Quarterly!AC172-Quarterly!AC168","v":-5.3},{"$f":"Quarterly!AD172-Quarterly!AD168","v":-11.700000000000001},{"$f":"(Quarterly!AE172-Quarterly!AE168)*100","v":0},{"$f":"(Quarterly!AF172-Quarterly!AF168)*100","v":15.999999999999998},{"$f":"(Quarterly!AG172-Quarterly!AG168)*100","v":-5.0000000000000044},"--","--","--","--","--",{"$f":"((Quarterly!AM172/Quarterly!AM168)-1)","v":4.357574494369354E-2},{"$f":"((Quarterly!AN172/Quarterly!AN168)-1)","v":5.4494130367624516E-2},{"$f":"((Quarterly!AO172/Quarterly!AO168)-1)","v":3.1948987086689362E-2},{"$f":"(Quarterly!AP172-Quarterly!AP168)*100","v":-3.0000000000000249},{"$f":"Quarterly!AQ172-Quarterly!AQ168","v":3.4666666666666615},{"$f":"Quarterly!AR172-Quarterly!AR168","v":4.5},{"$f":"Quarterly!AS172-Quarterly!AS168","v":-2.3333333333333357},{"$f":"Quarterly!AT172-Quarterly!AT168","v":1.9666666666666615},{"$f":"Quarterly!AU172-Quarterly!AU168","v":4.5000000000000071},{"$f":"Quarterly!AV172-Quarterly!AV168","v":-0.26666666666665861},{"$f":"Quarterly!AW172-Quarterly!AW168","v":0.33333333333334281},{"$f":"Quarterly!AX172-Quarterly!AX168","v":4.7333333333333272},{"$f":"Quarterly!AY172-Quarterly!AY168","v":10.63333333333334},{"$f":"Quarterly!AZ172-Quarterly!AZ168","v":6.7333333333333343},{"$f":"Quarterly!BA172-Quarterly!BA168","v":-0.20000000000000284},{"$f":"Quarterly!BB172-Quarterly!BB168","v":-1.0333333333333314},{"$f":"((Quarterly!BC172/Quarterly!BC168)-1)","v":2.4691073404647712E-2},{"$f":"((Quarterly!BD172/Quarterly!BD168)-1)","v":5.8696839167627246E-2},{"$f":"((Quarterly!BE172/Quarterly!BE168)-1)","v":-5.9869227625664045E-3},{"$f":"((Quarterly!BF172/Quarterly!BF168)-1)","v":4.4164853721988084E-2},{"$f":"((Quarterly!BG172/Quarterly!BG168)-1)","v":3.6764016029807944E-2},{"$f":"((Quarterly!BH172/Quarterly!BH168)-1)","v":2.4025374855824566E-2},{"$f":"((Quarterly!BI172/Quarterly!BI168)-1)","v":7.1283442490834847E-3},{"$f":"((Quarterly!BJ172/Quarterly!BJ168)-1)","v":2.0088450054329687E-3},{"$f":"((Quarterly!BK172/Quarterly!BK168)-1)","v":0.5},null,{"$f":"((Quarterly!BM172/Quarterly!BM168)-1)","v":7.1123289826106939E-2},{"$f":"((Quarterly!BN172/Quarterly!BN168)-1)","v":7.3810905322341025E-2},null,null,null,null,null,{"$f":"((Quarterly!BT172/Quarterly!BT168)-1)","v":-1.1913013240734127E-3},{"$f":"Quarterly!BU172-Quarterly!BU168","v":0.26385999999999932},{"$f":"Quarterly!BV172-Quarterly!BV168","v":0.29247000000000156},{"$f":"((Quarterly!BW172/Quarterly!BW168)-1)","v":7.4966169275818784E-2},{"$f":"((Quarterly!BX172/Quarterly!BX168)-1)","v":1.2719949120203466E-3},{"$f":"((Quarterly!BY172/Quarterly!BY168)-1)","v":6.2338779019776247E-2},"--",{"$f":"((Quarterly!CA172/Quarterly!CA168)-1)","v":3.6499958803658306E-2},{"$f":"((Quarterly!CB172/Quarterly!CB168)-1)","v":6.6174739091030776E-2},{"$f":"((Quarterly!CC172/Quarterly!CC168)-1)","v":3.3388529917284915E-2},"--","--",null,"--","--",null,{"$f":"((Quarterly!CJ172/Quarterly!CJ168)-1)","v":1.9805680119581393E-2},{"$f":"((Quarterly!CK172/Quarterly!CK168)-1)","v":4.7716413032917959E-2},{"$f":"((Quarterly!CL172/Quarterly!CL168)-1)","v":-0.28757121078392045},{"$f":"((Quarterly!CM172/Quarterly!CM168)-1)","v":2.1791767554479424E-2},{"$f":"((Quarterly!CN172/Quarterly!CN168)-1)","v":3.0064400423901461E-2},{"$f":"((Quarterly!CO172/Quarterly!CO168)-1)","v":0.13993682310469313},{"$f":"((Quarterly!CP172/Quarterly!CP168)-1)","v":7.5083475097312835E-2},{"$f":"((Quarterly!CQ172/Quarterly!CQ168)-1)","v":1.1449079718980348E-2},{"$f":"((Quarterly!CR172/Quarterly!CR168)-1)","v":5.1377187091368182E-2},{"$f":"Quarterly!CS172-Quarterly!CS168","v":-0.69999999999998863},"--",null,null,null,null,null,{"$f":"((Quarterly!CZ172/Quarterly!CZ168)-1)","v":2.1123872026250989E-2},{"$f":"((Quarterly!DA172/Quarterly!DA168)-1)","v":2.0825298881604448E-2},null,null,null,null,null,{"$f":"((Quarterly!DG172/Quarterly!DG168)-1)","v":2.2566520714045302E-2},{"$f":"((Quarterly!DH172-Quarterly!DH168)*60)","v":-4.000000000000199},{"$f":"Quarterly!DI172-Quarterly!DI168","v":9.9999999999994316E-2},{"$f":"(Quarterly!DJ172-Quarterly!DJ168)*100","v":-43.333333333333357},{"$f":"(Quarterly!DK172-Quarterly!DK168)*100","v":-13.333333333333286},{"$f":"((Quarterly!DL172/Quarterly!DL168)-1)","v":-1.6966464279634552E-2},null,null,null,{"$f":"((Quarterly!DP172/Quarterly!DP168)-1)","v":2.4231841354969363E-2},null,null,null,null,{"$f":"Quarterly!DU172-Quarterly!DU168","v":-0.20000000000000107},{"$f":"((Quarterly!DV172/Quarterly!DV168)-1)","v":2.4231518229102411E-2},{"$f":"((Quarterly!DW172/Quarterly!DW168)-1)","v":2.4508231112866374E-2},{"$f":"((Quarterly!DX172/Quarterly!DX168)-1)","v":2.4162868012475691E-2},{"$f":"((Quarterly!DY172/Quarterly!DY168)-1)","v":2.2586980920314303E-2},{"$f":"((Quarterly!DZ172/Quarterly!DZ168)-1)","v":2.4672320740169562E-2},{"$f":"((Quarterly!EA172/Quarterly!EA168)-1)","v":2.479969477298738E-2},{"$f":"((Quarterly!EB172/Quarterly!EB168)-1)","v":2.4355527439506641E-2},{"$f":"((Quarterly!EC172/Quarterly!EC168)-1)","v":2.5396825396825307E-2},null,null,null,null,null,{"$f":"((Quarterly!EI172/Quarterly!EI168)-1)","v":7.6577907965720948E-2},{"$f":"((Quarterly!EJ172/Quarterly!EJ168)-1)","v":6.3997749210687571E-2},{"$f":"((Quarterly!EK172/Quarterly!EK168)-1)","v":5.8250899364275854E-2},null,null,null,null,null,{"$f":"((Quarterly!EQ172/Quarterly!EQ168)-1)","v":-3.4685165421558528E-3},{"$f":"((Quarterly!ER172/Quarterly!ER168)-1)","v":1.5799256505576009E-2},{"$f":"((Quarterly!ES172/Quarterly!ES168)-1)","v":1.2124151309407249E-3},null,null,null,null,null,{"$f":"(Quarterly!EY172-Quarterly!EY168)*100","v":-75},{"$f":"(Quarterly!EZ172-Quarterly!EZ168)*100","v":-75.3333333333333},{"$f":"(Quarterly!FA172-Quarterly!FA168)*100","v":29.666666666666686},{"$f":"(Quarterly!FB172-Quarterly!FB168)*100","v":48.666666666666636},"--",{"$f":"(Quarterly!FD172-Quarterly!FD168)*100","v":11.333333333333329},{"$f":"(Quarterly!FE172-Quarterly!FE168)*100","v":-52.333333333333343},{"$f":"(Quarterly!FF172-Quarterly!FF168)*100","v":-53.000000000000028},{"$f":"(Quarterly!FG172-Quarterly!FG168)*100","v":-27.333333333333165},{"$f":"(Quarterly!FH172-Quarterly!FH168)*100","v":-14.333333333333353},{"$f":"(Quarterly!FI172-Quarterly!FI168)*100","v":-5.6666666666667531},null,null,null,null,null,null,{"$f":"((Quarterly!FP172/Quarterly!FP168)-1)","v":1.8016357562492757E-2},{"$f":"((Quarterly!FQ172/Quarterly!FQ168)-1)","v":-3.5507659222766552E-3},{"$f":"((Quarterly!FR172/Quarterly!FR168)-1)","v":8.9746794070712843E-2},"--",{"$f":"((Quarterly!FT172/Quarterly!FT168)-1)","v":1.3498630548589574E-2},{"$f":"((Quarterly!FU172/Quarterly!FU168)-1)","v":-7.3320561675215279E-3},{"$f":"((Quarterly!FV172/Quarterly!FV168)-1)","v":0.12411634448229525},{"$f":"((Quarterly!FW172/Quarterly!FW168)-1)","v":0.14723733095556568},{"$f":"((Quarterly!FX172/Quarterly!FX168)-1)","v":0.13407981262190316},null,null,null,null,null,{"$f":"((Quarterly!GD172/Quarterly!GD168)-1)","v":0.20518653321201108},{"$f":"((Quarterly!GE172/Quarterly!GE168)-1)","v":0.15660847880299245},{"$f":"((Quarterly!GF172/Quarterly!GF168)-1)","v":6.5472203616878666E-2},{"$f":"((Quarterly!GG172/Quarterly!GG168)-1)","v":1.5423355366698033E-2},{"$f":"((Quarterly!GH172/Quarterly!GH168)-1)","v":{"$error":"#DIV/0!"}},"--",{"$f":"((Quarterly!GJ172/Quarterly!GJ168)-1)","v":-3.2386279994112144E-3},{"$f":"((Quarterly!GK172/Quarterly!GK168)-1)","v":-1.7479478512795632E-2},"--"]
["99'Q3",{"$f":"((Quarterly!B173/Quarterly!B169)-1)","v":6.1855103158894975E-2},{"$f":"((Quarterly!C173/Quarterly!C169)-1)","v":4.5981088868811248E-2},{"$f":"((Quarterly!D173/Quarterly!D169)-1)","v":4.7457525302172954E-2},{"$f":"((Quarterly!E173/Quarterly!E169)-1)","v":5.1306183363136526E-2},{"$f":"((Quarterly!F173/Quarterly!F169)-1)","v":0.13882324909569888},{"$f":"((Quarterly!G173/Quarterly!G169)-1)","v":4.6596479140485147E-2},{"$f":"((Quarterly!H173/Quarterly!H169)-1)","v":5.2833631191481878E-2},{"$f":"((Quarterly!I173/Quarterly!I169)-1)","v":0.10915658155017871},{"$f":"((Quarterly!J173/Quarterly!J169)-1)","v":0.16643151641274101},{"$f":"((Quarterly!K173/Quarterly!K169)-1)","v":0.16104735883424404},{"$f":"((Quarterly!L173-Quarterly!L169))","v":-15.864000000000004},{"$f":"((Quarterly!M173/Quarterly!M169)-1)","v":0.11761160993198971},{"$f":"((Quarterly!N173/Quarterly!N169)-1)","v":5.2171007363944977E-2},{"$f":"((Quarterly!O173/Quarterly!O169)-1)","v":0.37122079766624894},{"$f":"((Quarterly!P173/Quarterly!P169)-1)","v":3.0443124737441929E-2},{"$f":"((Quarterly!Q173/Quarterly!Q169)-1)","v":2.2975016133493136},null,null,null,null,null,{"$f":"((Quarterly!W173/Quarterly!W169)-1)","v":-7.4719800747197196E-3},{"$f":"((Quarterly!X173/Quarterly!X169)-1)","v":-7.7173030056865155E-3},{"$f":"((Quarterly!Y173/Quarterly!Y169)-1)","v":6.9601019507891326E-2},{"$f":"Quarterly!Z173-Quarterly!Z169","v":0.18},{"$f":"((Quarterly!AA173/Quarterly!AA169)-1)","v":5.1409456529196484E-2},{"$f":"((Quarterly!AB173/Quarterly!AB169)-1)","v":-1.8305583826917493E-3},{"$f":"Quarterly!AC173-Quarterly!AC169","v":-10.199999999999999},{"$f":"Quarterly!AD173-Quarterly!AD169","v":0.1},{"$f":"(Quarterly!AE173-Quarterly!AE169)*100","v":4.0000000000000036},{"$f":"(Quarterly!AF173-Quarterly!AF169)*100","v":18},{"$f":"(Quarterly!AG173-Quarterly!AG169)*100","v":-5.0000000000000044},"--","--","--","--","--",{"$f":"((Quarterly!AM173/Quarterly!AM169)-1)","v":4.5315982940575816E-2},{"$f":"((Quarterly!AN173/Quarterly!AN169)-1)","v":5.4607194703261586E-2},{"$f":"((Quarterly!AO173/Quarterly!AO169)-1)","v":3.7821549711383851E-2},{"$f":"(Quarterly!AP173-Quarterly!AP169)*100","v":-4.6666666666666856},{"$f":"Quarterly!AQ173-Quarterly!AQ169","v":6.06666666666667},{"$f":"Quarterly!AR173-Quarterly!AR169","v":6.1666666666666643},{"$f":"Quarterly!AS173-Quarterly!AS169","v":-4.1666666666666714},{"$f":"Quarterly!AT173-Quarterly!AT169","v":5.7666666666666657},{"$f":"Quarterly!AU173-Quarterly!AU169","v":9.1666666666666714},{"$f":"Quarterly!AV173-Quarterly!AV169","v":2.6333333333333329},{"$f":"Quarterly!AW173-Quarterly!AW169","v":0.93333333333332291},{"$f":"Quarterly!AX173-Quarterly!AX169","v":7.8333333333333357},{"$f":"Quarterly!AY173-Quarterly!AY169","v":23.9},{"$f":"Quarterly!AZ173-Quarterly!AZ169","v":7.8666666666666742},{"$f":"Quarterly!BA173-Quarterly!BA169","v":3.2999999999999901},{"$f":"Quarterly!BB173-Quarterly!BB169","v":3.9666666666666615},{"$f":"((Quarterly!BC173/Quarterly!BC169)-1)","v":7.1323424120055989E-2},{"$f":"((Quarterly!BD173/Quarterly!BD169)-1)","v":5.2056025765860436E-2},{"$f":"((Quarterly!BE173/Quarterly!BE169)-1)","v":-4.6104523942800402E-3},{"$f":"((Quarterly!BF173/Quarterly!BF169)-1)","v":3.6605632326740745E-2},{"$f":"((Quarterly!BG173/Quarterly!BG169)-1)","v":3.1375555085641826E-2},{"$f":"((Quarterly!BH173/Quarterly!BH169)-1)","v":1.3383340363196883E-2},{"$f":"((Quarterly!BI173/Quarterly!BI169)-1)","v":5.0750495610307755E-3},{"$f":"((Quarterly!BJ173/Quarterly!BJ169)-1)","v":-6.7621125888354894E-2},{"$f":"((Quarterly!BK173/Quarterly!BK169)-1)","v":0.52941176470588225},null,{"$f":"((Quarterly!BM173/Quarterly!BM169)-1)","v":9.3586682332529092E-2},{"$f":"((Quarterly!BN173/Quarterly!BN169)-1)","v":9.9038548105191637E-2},null,null,null,null,null,{"$f":"((Quarterly!BT173/Quarterly!BT169)-1)","v":6.9407245534474082E-3},{"$f":"Quarterly!BU173-Quarterly!BU169","v":0.40475999999999956},{"$f":"Quarterly!BV173-Quarterly!BV169","v":0.45131999999999906},{"$f":"((Quarterly!BW173/Quarterly!BW169)-1)","v":7.8551751454167595E-2},{"$f":"((Quarterly!BX173/Quarterly!BX169)-1)","v":1.1851246424192885E-2},{"$f":"((Quarterly!BY173/Quarterly!BY169)-1)","v":1.3013840115678521E-2},"--",{"$f":"((Quarterly!CA173/Quarterly!CA169)-1)","v":0.15588532883642481},{"$f":"((Quarterly!CB173/Quarterly!CB169)-1)","v":7.3390782245957409E-2},{"$f":"((Quarterly!CC173/Quarterly!CC169)-1)","v":2.578378922144231E-2},"--","--",null,"--","--",null,{"$f":"((Quarterly!CJ173/Quarterly!CJ169)-1)","v":1.2761020881670637E-2},{"$f":"((Quarterly!CK173/Quarterly!CK169)-1)","v":4.7043250704299044E-2},{"$f":"((Quarterly!CL173/Quarterly!CL169)-1)","v":-0.33377494410863628},{"$f":"((Quarterly!CM173/Quarterly!CM169)-1)","v":5.9958289885295724E-3},{"$f":"((Quarterly!CN173/Quarterly!CN169)-1)","v":2.6517214804772538E-2},{"$f":"((Quarterly!CO173/Quarterly!CO169)-1)","v":0.13512567540962106},{"$f":"((Quarterly!CP173/Quarterly!CP169)-1)","v":8.2115946035768106E-2},{"$f":"((Quarterly!CQ173/Quarterly!CQ169)-1)","v":1.152008991289688E-2},{"$f":"((Quarterly!CR173/Quarterly!CR169)-1)","v":6.9568726787475388E-2},{"$f":"Quarterly!CS173-Quarterly!CS169","v":2.3999999999999915},"--",null,null,null,null,null,{"$f":"((Quarterly!CZ173/Quarterly!CZ169)-1)","v":2.3464599061415958E-2},{"$f":"((Quarterly!DA173/Quarterly!DA169)-1)","v":2.0126509488211708E-2},null,null,null,null,null,{"$f":"((Quarterly!DG173/Quarterly!DG169)-1)","v":2.1760964178105136E-2},{"$f":"((Quarterly!DH173-Quarterly!DH169)*60)","v":-6.0000000000000853},{"$f":"Quarterly!DI173-Quarterly!DI169","v":-3.3333333333331439E-2},{"$f":"(Quarterly!DJ173-Quarterly!DJ169)*100","v":-56.666666666666465},{"$f":"(Quarterly!DK173-Quarterly!DK169)*100","v":-29.999999999999982},{"$f":"((Quarterly!DL173/Quarterly!DL169)-1)","v":-1.2675573826652964E-2},null,null,null,{"$f":"((Quarterly!DP173/Quarterly!DP169)-1)","v":2.4369422421765652E-2},null,null,null,null,{"$f":"Quarterly!DU173-Quarterly!DU169","v":-0.63333333333333286},{"$f":"((Quarterly!DV173/Quarterly!DV169)-1)","v":2.7012465407880937E-2},{"$f":"((Quarterly!DW173/Quarterly!DW169)-1)","v":2.66319921019047E-2},{"$f":"((Quarterly!DX173/Quarterly!DX169)-1)","v":2.6619283894327328E-2},{"$f":"((Quarterly!DY173/Quarterly!DY169)-1)","v":2.2141217766977084E-2},{"$f":"((Quarterly!DZ173/Quarterly!DZ169)-1)","v":2.8098657508585534E-2},{"$f":"((Quarterly!EA173/Quarterly!EA169)-1)","v":2.8387419496029409E-2},{"$f":"((Quarterly!EB173/Quarterly!EB169)-1)","v":2.7380211574362212E-2},{"$f":"((Quarterly!EC173/Quarterly!EC169)-1)","v":2.666438765917456E-2},null,null,null,null,null,{"$f":"((Quarterly!EI173/Quarterly!EI169)-1)","v":7.78071213022693E-2},{"$f":"((Quarterly!EJ173/Quarterly!EJ169)-1)","v":6.392479015895236E-2},{"$f":"((Quarterly!EK173/Quarterly!EK169)-1)","v":5.8328215676604511E-2},null,null,null,null,null,{"$f":"((Quarterly!EQ173/Quarterly!EQ169)-1)","v":2.0648967551622377E-2},{"$f":"((Quarterly!ER173/Quarterly!ER169)-1)","v":1.4828544949026856E-2},{"$f":"((Quarterly!ES173/Quarterly!ES169)-1)","v":-2.4254183846716959E-4},null,null,null,null,null,{"$f":"(Quarterly!EY173-Quarterly!EY169)*100","v":-39.333333333333442},{"$f":"(Quarterly!EZ173-Quarterly!EZ169)*100","v":-44.000000000000043},{"$f":"(Quarterly!FA173-Quarterly!FA169)*100","v":83.666666666666771},{"$f":"(Quarterly!FB173-Quarterly!FB169)*100","v":97.333333333333357},"--",{"$f":"(Quarterly!FD173-Quarterly!FD169)*100","v":93.333333333333357},{"$f":"(Quarterly!FE173-Quarterly!FE169)*100","v":-17.333333333333378},{"$f":"(Quarterly!FF173-Quarterly!FF169)*100","v":6.666666666666643},{"$f":"(Quarterly!FG173-Quarterly!FG169)*100","v":49.666666666666615},{"$f":"(Quarterly!FH173-Quarterly!FH169)*100","v":65.666666666666629},{"$f":"(Quarterly!FI173-Quarterly!FI169)*100","v":67.999999999999972},null,null,null,null,null,null,{"$f":"((Quarterly!FP173/Quarterly!FP169)-1)","v":-1.8488763673981445E-2},{"$f":"((Quarterly!FQ173/Quarterly!FQ169)-1)","v":-3.7431546007101746E-3},{"$f":"((Quarterly!FR173/Quarterly!FR169)-1)","v":-1.3348824475067911E-2},"--",{"$f":"((Quarterly!FT173/Quarterly!FT169)-1)","v":-1.7550679975976924E-2},{"$f":"((Quarterly!FU173/Quarterly!FU169)-1)","v":-3.2094495719576455E-2},{"$f":"((Quarterly!FV173/Quarterly!FV169)-1)","v":0.19469121111300014},{"$f":"((Quarterly!FW173/Quarterly!FW169)-1)","v":0.15466759199073365},{"$f":"((Quarterly!FX173/Quarterly!FX169)-1)","v":0.2129575582231471},null,null,null,null,null,{"$f":"((Quarterly!GD173/Quarterly!GD169)-1)","v":0.53833451285680556},{"$f":"((Quarterly!GE173/Quarterly!GE169)-1)","v":0.65657648004286107},{"$f":"((Quarterly!GF173/Quarterly!GF169)-1)","v":0.17668010122785605},{"$f":"((Quarterly!GG173/Quarterly!GG169)-1)","v":0.14673202614379122},{"$f":"((Quarterly!GH173/Quarterly!GH169)-1)","v":{"$error":"#DIV/0!"}},"--",{"$f":"((Quarterly!GJ173/Quarterly!GJ169)-1)","v":0.28186031115524668},{"$f":"((Quarterly!GK173/Quarterly!GK169)-1)","v":-2.4345116369656306E-2},"--"]
["99'Q4",{"$f":"((Quarterly!B174/Quarterly!B170)-1)","v":6.4387040045466026E-2},{"$f":"((Quarterly!C174/Quarterly!C170)-1)","v":4.6951384141926678E-2},{"$f":"((Quarterly!D174/Quarterly!D170)-1)","v":4.3723974079195038E-2},{"$f":"((Quarterly!E174/Quarterly!E170)-1)","v":5.1310251008140462E-2},{"$f":"((Quarterly!F174/Quarterly!F170)-1)","v":8.8191179209726744E-2},{"$f":"((Quarterly!G174/Quarterly!G170)-1)","v":5.364254244492983E-2},{"$f":"((Quarterly!H174/Quarterly!H170)-1)","v":5.6694231045422594E-2},{"$f":"((Quarterly!I174/Quarterly!I170)-1)","v":8.2078825116282061E-2},{"$f":"((Quarterly!J174/Quarterly!J170)-1)","v":0.12207166877863296},{"$f":"((Quarterly!K174/Quarterly!K170)-1)","v":0.14206154393454273},{"$f":"((Quarterly!L174-Quarterly!L170))","v":36.454000000000008},{"$f":"((Quarterly!M174/Quarterly!M170)-1)","v":0.10930666388148969},{"$f":"((Quarterly!N174/Quarterly!N170)-1)","v":4.0212357001605081E-2},{"$f":"((Quarterly!O174/Quarterly!O170)-1)","v":0.38315973056667518},{"$f":"((Quarterly!P174/Quarterly!P170)-1)","v":3.6245048051282147E-2},{"$f":"((Quarterly!Q174/Quarterly!Q170)-1)","v":3.1258819522164369},null,null,null,null,null,{"$f":"((Quarterly!W174/Quarterly!W170)-1)","v":-3.7267080745341241E-3},{"$f":"((Quarterly!X174/Quarterly!X170)-1)","v":-4.065040650408358E-4},{"$f":"((Quarterly!Y174/Quarterly!Y170)-1)","v":5.9332595452135983E-2},{"$f":"Quarterly!Z174-Quarterly!Z170","v":0.16999999999999998},{"$f":"((Quarterly!AA174/Quarterly!AA170)-1)","v":0.12753221446708696},{"$f":"((Quarterly!AB174/Quarterly!AB170)-1)","v":2.9431180345038666E-2},{"$f":"Quarterly!AC174-Quarterly!AC170","v":12.2},{"$f":"Quarterly!AD174-Quarterly!AD170","v":-11.5},{"$f":"(Quarterly!AE174-Quarterly!AE170)*100","v":-2.0000000000000018},{"$f":"(Quarterly!AF174-Quarterly!AF170)*100","v":17},{"$f":"(Quarterly!AG174-Quarterly!AG170)*100","v":-6.0000000000000053},"--","--","--","--","--",{"$f":"((Quarterly!AM174/Quarterly!AM170)-1)","v":4.8564259598895099E-2},{"$f":"((Quarterly!AN174/Quarterly!AN170)-1)","v":5.5038766968177333E-2},{"$f":"((Quarterly!AO174/Quarterly!AO170)-1)","v":4.7511668964782316E-2},{"$f":"(Quarterly!AP174-Quarterly!AP170)*100","v":-4.0000000000000036},{"$f":"Quarterly!AQ174-Quarterly!AQ170","v":9.8000000000000114},{"$f":"Quarterly!AR174-Quarterly!AR170","v":13.166666666666664},{"$f":"Quarterly!AS174-Quarterly!AS170","v":-1.1666666666666714},{"$f":"Quarterly!AT174-Quarterly!AT170","v":9.8000000000000043},{"$f":"Quarterly!AU174-Quarterly!AU170","v":10.466666666666654},{"$f":"Quarterly!AV174-Quarterly!AV170","v":2.0333333333333314},{"$f":"Quarterly!AW174-Quarterly!AW170","v":4.1333333333333258},{"$f":"Quarterly!AX174-Quarterly!AX170","v":12.899999999999999},{"$f":"Quarterly!AY174-Quarterly!AY170","v":34.4},{"$f":"Quarterly!AZ174-Quarterly!AZ170","v":10},{"$f":"Quarterly!BA174-Quarterly!BA170","v":7},{"$f":"Quarterly!BB174-Quarterly!BB170","v":4.9999999999999929},{"$f":"((Quarterly!BC174/Quarterly!BC170)-1)","v":7.6737459996919499E-2},{"$f":"((Quarterly!BD174/Quarterly!BD170)-1)","v":7.7230221166691315E-2},{"$f":"((Quarterly!BE174/Quarterly!BE170)-1)","v":-1.1193114445761987E-2},{"$f":"((Quarterly!BF174/Quarterly!BF170)-1)","v":5.187843411706905E-2},{"$f":"((Quarterly!BG174/Quarterly!BG170)-1)","v":3.9552688848685014E-2},{"$f":"((Quarterly!BH174/Quarterly!BH170)-1)","v":2.4660154382129873E-2},{"$f":"((Quarterly!BI174/Quarterly!BI170)-1)","v":1.1846484104357957E-2},{"$f":"((Quarterly!BJ174/Quarterly!BJ170)-1)","v":-2.1546765497814091E-2},{"$f":"((Quarterly!BK174/Quarterly!BK170)-1)","v":0.40476190476190466},null,{"$f":"((Quarterly!BM174/Quarterly!BM170)-1)","v":8.6129953709700446E-2},{"$f":"((Quarterly!BN174/Quarterly!BN170)-1)","v":8.989953919688598E-2},null,null,null,null,null,{"$f":"((Quarterly!BT174/Quarterly!BT170)-1)","v":4.6641251995351851E-3},{"$f":"Quarterly!BU174-Quarterly!BU170","v":0.33366999999999969},{"$f":"Quarterly!BV174-Quarterly!BV170","v":0.31634999999999991},{"$f":"((Quarterly!BW174/Quarterly!BW170)-1)","v":7.0375833844627422E-2},{"$f":"((Quarterly!BX174/Quarterly!BX170)-1)","v":-3.9287787884652481E-2},{"$f":"((Quarterly!BY174/Quarterly!BY170)-1)","v":-2.5131502045587339E-2},"--",{"$f":"((Quarterly!CA174/Quarterly!CA170)-1)","v":5.5854465717824375E-2},{"$f":"((Quarterly!CB174/Quarterly!CB170)-1)","v":0.12205870229331706},{"$f":"((Quarterly!CC174/Quarterly!CC170)-1)","v":5.1938752633442276E-2},"--","--",null,"--","--",null,{"$f":"((Quarterly!CJ174/Quarterly!CJ170)-1)","v":-8.0719069439548763E-2},{"$f":"((Quarterly!CK174/Quarterly!CK170)-1)","v":5.689759722694121E-2},{"$f":"((Quarterly!CL174/Quarterly!CL170)-1)","v":-0.25242718446601931},{"$f":"((Quarterly!CM174/Quarterly!CM170)-1)","v":-2.1255802589787431E-2},{"$f":"((Quarterly!CN174/Quarterly!CN170)-1)","v":3.3203125000000222E-2},{"$f":"((Quarterly!CO174/Quarterly!CO170)-1)","v":0.10165061028311206},{"$f":"((Quarterly!CP174/Quarterly!CP170)-1)","v":8.0023504099025589E-2},{"$f":"((Quarterly!CQ174/Quarterly!CQ170)-1)","v":1.1521917370155954E-2},{"$f":"((Quarterly!CR174/Quarterly!CR170)-1)","v":6.0309109120297633E-2},{"$f":"Quarterly!CS174-Quarterly!CS170","v":5.0666666666666629},"--",null,null,null,null,null,{"$f":"((Quarterly!CZ174/Quarterly!CZ170)-1)","v":2.6198212835093493E-2},{"$f":"((Quarterly!DA174/Quarterly!DA170)-1)","v":2.020587113991601E-2},null,null,null,null,null,{"$f":"((Quarterly!DG174/Quarterly!DG170)-1)","v":2.3944130362487437E-2},{"$f":"((Quarterly!DH174-Quarterly!DH170)*60)","v":-4.000000000000199},{"$f":"Quarterly!DI174-Quarterly!DI170","v":-0.10000000000000853},{"$f":"(Quarterly!DJ174-Quarterly!DJ170)*100","v":-53.333333333333414},{"$f":"(Quarterly!DK174-Quarterly!DK170)*100","v":-36.666666666666714},{"$f":"((Quarterly!DL174/Quarterly!DL170)-1)","v":-1.1292106969824078E-2},null,null,null,{"$f":"((Quarterly!DP174/Quarterly!DP170)-1)","v":2.5202381170628785E-2},null,null,null,null,{"$f":"Quarterly!DU174-Quarterly!DU170","v":-0.36666666666666536},{"$f":"((Quarterly!DV174/Quarterly!DV170)-1)","v":2.8492736667641738E-2},{"$f":"((Quarterly!DW174/Quarterly!DW170)-1)","v":2.88787673224149E-2},{"$f":"((Quarterly!DX174/Quarterly!DX170)-1)","v":2.9749284872959691E-2},{"$f":"((Quarterly!DY174/Quarterly!DY170)-1)","v":1.9243986254295464E-2},{"$f":"((Quarterly!DZ174/Quarterly!DZ170)-1)","v":3.3155080213903787E-2},{"$f":"((Quarterly!EA174/Quarterly!EA170)-1)","v":3.3439589974373574E-2},{"$f":"((Quarterly!EB174/Quarterly!EB170)-1)","v":3.2448377581120846E-2},{"$f":"((Quarterly!EC174/Quarterly!EC170)-1)","v":2.6641294005709026E-2},null,null,null,null,null,{"$f":"((Quarterly!EI174/Quarterly!EI170)-1)","v":6.5829768763575602E-2},{"$f":"((Quarterly!EJ174/Quarterly!EJ170)-1)","v":5.9150028864807691E-2},{"$f":"((Quarterly!EK174/Quarterly!EK170)-1)","v":5.8684354907844405E-2},null,null,null,null,null,{"$f":"((Quarterly!EQ174/Quarterly!EQ170)-1)","v":3.6177105831533662E-2},{"$f":"((Quarterly!ER174/Quarterly!ER170)-1)","v":1.4966612940363833E-2},{"$f":"((Quarterly!ES174/Quarterly!ES170)-1)","v":2.1802325581397053E-3},null,null,null,null,null,{"$f":"(Quarterly!EY174-Quarterly!EY170)*100","v":45.3333333333334},{"$f":"(Quarterly!EZ174-Quarterly!EZ170)*100","v":44.666666666666721},{"$f":"(Quarterly!FA174-Quarterly!FA170)*100","v":115.33333333333343},{"$f":"(Quarterly!FB174-Quarterly!FB170)*100","v":99.000000000000028},"--",{"$f":"(Quarterly!FD174-Quarterly!FD170)*100","v":106.66666666666664},{"$f":"(Quarterly!FE174-Quarterly!FE170)*100","v":78.999999999999915},{"$f":"(Quarterly!FF174-Quarterly!FF170)*100","v":121.66666666666669},{"$f":"(Quarterly!FG174-Quarterly!FG170)*100","v":156.00000000000006},{"$f":"(Quarterly!FH174-Quarterly!FH170)*100","v":167.33333333333337},{"$f":"(Quarterly!FI174-Quarterly!FI170)*100","v":147.00000000000006},null,null,null,null,null,null,{"$f":"((Quarterly!FP174/Quarterly!FP170)-1)","v":-4.5734407742660133E-2},{"$f":"((Quarterly!FQ174/Quarterly!FQ170)-1)","v":6.0402035951589994E-5},{"$f":"((Quarterly!FR174/Quarterly!FR170)-1)","v":-5.3811271000779093E-2},"--",{"$f":"((Quarterly!FT174/Quarterly!FT170)-1)","v":4.3176195518399574E-3},{"$f":"((Quarterly!FU174/Quarterly!FU170)-1)","v":1.2573974034462143E-3},{"$f":"((Quarterly!FV174/Quarterly!FV170)-1)","v":0.16761404336259589},{"$f":"((Quarterly!FW174/Quarterly!FW170)-1)","v":0.17656588322262357},{"$f":"((Quarterly!FX174/Quarterly!FX170)-1)","v":0.17980864004615715},null,null,null,null,null,{"$f":"((Quarterly!GD174/Quarterly!GD170)-1)","v":0.91303219106957401},{"$f":"((Quarterly!GE174/Quarterly!GE170)-1)","v":1.1469010727056017},{"$f":"((Quarterly!GF174/Quarterly!GF170)-1)","v":0.26084540307735038},{"$f":"((Quarterly!GG174/Quarterly!GG170)-1)","v":0.24686882003955191},{"$f":"((Quarterly!GH174/Quarterly!GH170)-1)","v":{"$error":"#DIV/0!"}},"--",{"$f":"((Quarterly!GJ174/Quarterly!GJ170)-1)","v":0.21801829741045142},{"$f":"((Quarterly!GK174/Quarterly!GK170)-1)","v":0.11602155805977477},"--"]
["00'Q1",{"$f":"((Quarterly!B175/Quarterly!B171)-1)","v":6.1810271360437374E-2},{"$f":"((Quarterly!C175/Quarterly!C171)-1)","v":4.1671600781310936E-2},{"$f":"((Quarterly!D175/Quarterly!D171)-1)","v":4.8104042034289307E-2},{"$f":"((Quarterly!E175/Quarterly!E171)-1)","v":5.7249487007844602E-2},{"$f":"((Quarterly!F175/Quarterly!F171)-1)","v":0.14643574297188744},{"$f":"((Quarterly!G175/Quarterly!G171)-1)","v":2.5539723257250735E-2},{"$f":"((Quarterly!H175/Quarterly!H171)-1)","v":5.0596713310710362E-2},{"$f":"((Quarterly!I175/Quarterly!I171)-1)","v":9.6618668743043035E-2},{"$f":"((Quarterly!J175/Quarterly!J171)-1)","v":0.13600236328667448},{"$f":"((Quarterly!K175/Quarterly!K171)-1)","v":3.5795350569380213E-2},{"$f":"((Quarterly!L175-Quarterly!L171))","v":-73.897999999999996},{"$f":"((Quarterly!M175/Quarterly!M171)-1)","v":0.13720453505835151},{"$f":"((Quarterly!N175/Quarterly!N171)-1)","v":8.2313524857581921E-2},{"$f":"((Quarterly!O175/Quarterly!O171)-1)","v":0.31882295576978392},{"$f":"((Quarterly!P175/Quarterly!P171)-1)","v":2.4017170186237946E-2},{"$f":"((Quarterly!Q175/Quarterly!Q171)-1)","v":2.7113512830236379},null,null,null,null,null,{"$f":"((Quarterly!W175/Quarterly!W171)-1)","v":-2.4906600249066102E-3},{"$f":"((Quarterly!X175/Quarterly!X171)-1)","v":2.0374898125510299E-3},{"$f":"((Quarterly!Y175/Quarterly!Y171)-1)","v":8.1005884509320003E-2},{"$f":"Quarterly!Z175-Quarterly!Z171","v":8.0000000000000016E-2},{"$f":"((Quarterly!AA175/Quarterly!AA171)-1)","v":7.9441697460380656E-3},{"$f":"((Quarterly!AB175/Quarterly!AB171)-1)","v":-9.7228645690227489E-2},{"$f":"Quarterly!AC175-Quarterly!AC171","v":24.1},{"$f":"Quarterly!AD175-Quarterly!AD171","v":-13.3},{"$f":"(Quarterly!AE175-Quarterly!AE171)*100","v":-3.0000000000000027},{"$f":"(Quarterly!AF175-Quarterly!AF171)*100","v":8.0000000000000018},{"$f":"(Quarterly!AG175-Quarterly!AG171)*100","v":-3.9999999999999925},"--","--","--","--","--",{"$f":"((Quarterly!AM175/Quarterly!AM171)-1)","v":4.7385131359946708E-2},{"$f":"((Quarterly!AN175/Quarterly!AN171)-1)","v":5.3462056125746393E-2},{"$f":"((Quarterly!AO175/Quarterly!AO171)-1)","v":5.7609223088121109E-2},{"$f":"(Quarterly!AP175-Quarterly!AP171)*100","v":-2.6666666666666838},{"$f":"Quarterly!AQ175-Quarterly!AQ171","v":4.2333333333333343},{"$f":"Quarterly!AR175-Quarterly!AR171","v":6.1666666666666714},{"$f":"Quarterly!AS175-Quarterly!AS171","v":4},{"$f":"Quarterly!AT175-Quarterly!AT171","v":6.2333333333333343},{"$f":"Quarterly!AU175-Quarterly!AU171","v":2.9999999999999929},{"$f":"Quarterly!AV175-Quarterly!AV171","v":0.50000000000000711},{"$f":"Quarterly!AW175-Quarterly!AW171","v":5.0999999999999943},{"$f":"Quarterly!AX175-Quarterly!AX171","v":4},{"$f":"Quarterly!AY175-Quarterly!AY171","v":37.1},{"$f":"Quarterly!AZ175-Quarterly!AZ171","v":3.0333333333333314},{"$f":"Quarterly!BA175-Quarterly!BA171","v":3.1999999999999957},{"$f":"Quarterly!BB175-Quarterly!BB171","v":0.26666666666667282},{"$f":"((Quarterly!BC175/Quarterly!BC171)-1)","v":6.1125586539941601E-2},{"$f":"((Quarterly!BD175/Quarterly!BD171)-1)","v":7.6515768648900417E-2},{"$f":"((Quarterly!BE175/Quarterly!BE171)-1)","v":8.7985529905882931E-3},{"$f":"((Quarterly!BF175/Quarterly!BF171)-1)","v":6.9958907915710133E-2},{"$f":"((Quarterly!BG175/Quarterly!BG171)-1)","v":2.3118014677281362E-2},{"$f":"((Quarterly!BH175/Quarterly!BH171)-1)","v":3.5566426191250944E-2},{"$f":"((Quarterly!BI175/Quarterly!BI171)-1)","v":4.5779572317964368E-2},{"$f":"((Quarterly!BJ175/Quarterly!BJ171)-1)","v":-3.4668491941390767E-2},{"$f":"((Quarterly!BK175/Quarterly!BK171)-1)","v":0.18604651162790709},null,{"$f":"((Quarterly!BM175/Quarterly!BM171)-1)","v":9.1381124357144961E-2},{"$f":"((Quarterly!BN175/Quarterly!BN171)-1)","v":9.2664981473201458E-2},null,null,null,null,null,{"$f":"((Quarterly!BT175/Quarterly!BT171)-1)","v":3.2575176315598586E-2},{"$f":"Quarterly!BU175-Quarterly!BU171","v":0.21945999999999977},{"$f":"Quarterly!BV175-Quarterly!BV171","v":0.10748000000000246},{"$f":"((Quarterly!BW175/Quarterly!BW171)-1)","v":7.8724119689275618E-2},{"$f":"((Quarterly!BX175/Quarterly!BX171)-1)","v":-2.9446177847113897E-2},{"$f":"((Quarterly!BY175/Quarterly!BY171)-1)","v":-9.1850693765879177E-3},"--",{"$f":"((Quarterly!CA175/Quarterly!CA171)-1)","v":0.11885613977792286},{"$f":"((Quarterly!CB175/Quarterly!CB171)-1)","v":0.21775947186086975},{"$f":"((Quarterly!CC175/Quarterly!CC171)-1)","v":0.1241616112894115},"--","--",null,"--","--",null,{"$f":"((Quarterly!CJ175/Quarterly!CJ171)-1)","v":1.662799690641914E-2},{"$f":"((Quarterly!CK175/Quarterly!CK171)-1)","v":7.745891879018818E-2},{"$f":"((Quarterly!CL175/Quarterly!CL171)-1)","v":-0.17068827352862603},{"$f":"((Quarterly!CM175/Quarterly!CM171)-1)","v":-4.3630017452006897E-2},{"$f":"((Quarterly!CN175/Quarterly!CN171)-1)","v":4.4221775297211607E-2},{"$f":"((Quarterly!CO175/Quarterly!CO171)-1)","v":7.0053965991243361E-2},{"$f":"((Quarterly!CP175/Quarterly!CP171)-1)","v":7.5339690338017018E-2},{"$f":"((Quarterly!CQ175/Quarterly!CQ171)-1)","v":1.1505072064078359E-2},{"$f":"((Quarterly!CR175/Quarterly!CR171)-1)","v":5.632911760085868E-2},{"$f":"Quarterly!CS175-Quarterly!CS171","v":4.2333333333333343},"--",null,null,null,null,null,{"$f":"((Quarterly!CZ175/Quarterly!CZ171)-1)","v":3.2577903682719622E-2},{"$f":"((Quarterly!DA175/Quarterly!DA171)-1)","v":2.2395141393053875E-2},null,null,null,null,null,{"$f":"((Quarterly!DG175/Quarterly!DG171)-1)","v":2.6193633952254602E-2},{"$f":"((Quarterly!DH175-Quarterly!DH171)*60)","v":1.9999999999998863},{"$f":"Quarterly!DI175-Quarterly!DI171","v":0.16666666666665719},{"$f":"(Quarterly!DJ175-Quarterly!DJ171)*100","v":-53.333333333333414},{"$f":"(Quarterly!DK175-Quarterly!DK171)*100","v":-26.666666666666661},{"$f":"((Quarterly!DL175/Quarterly!DL171)-1)","v":-6.1122820463691552E-3},null,null,null,{"$f":"((Quarterly!DP175/Quarterly!DP171)-1)","v":2.5123207856144303E-2},null,null,null,null,{"$f":"Quarterly!DU175-Quarterly!DU171","v":-0.86666666666666714},{"$f":"((Quarterly!DV175/Quarterly!DV171)-1)","v":2.4446438532243597E-2},{"$f":"((Quarterly!DW175/Quarterly!DW171)-1)","v":2.4775165374228969E-2},{"$f":"((Quarterly!DX175/Quarterly!DX171)-1)","v":2.6571457997184966E-2},{"$f":"((Quarterly!DY175/Quarterly!DY171)-1)","v":1.0880458124552517E-2},{"$f":"((Quarterly!DZ175/Quarterly!DZ171)-1)","v":3.1520953757225634E-2},{"$f":"((Quarterly!EA175/Quarterly!EA171)-1)","v":3.1720906673420313E-2},{"$f":"((Quarterly!EB175/Quarterly!EB171)-1)","v":3.1023622047244181E-2},{"$f":"((Quarterly!EC175/Quarterly!EC171)-1)","v":2.0117500445077319E-2},null,null,null,null,null,{"$f":"((Quarterly!EI175/Quarterly!EI171)-1)","v":5.7182111131001356E-2},{"$f":"((Quarterly!EJ175/Quarterly!EJ171)-1)","v":5.1230855757302241E-2},{"$f":"((Quarterly!EK175/Quarterly!EK171)-1)","v":4.6426260611374781E-2},null,null,null,null,null,{"$f":"((Quarterly!EQ175/Quarterly!EQ171)-1)","v":5.736813485590031E-2},{"$f":"((Quarterly!ER175/Quarterly!ER171)-1)","v":1.0297482837528626E-2},{"$f":"((Quarterly!ES175/Quarterly!ES171)-1)","v":4.8437878420923841E-3},null,null,null,null,null,{"$f":"(Quarterly!EY175-Quarterly!EY171)*100","v":93.666666666666742},{"$f":"(Quarterly!EZ175-Quarterly!EZ171)*100","v":94.333333333333343},{"$f":"(Quarterly!FA175-Quarterly!FA171)*100","v":129.33333333333331},{"$f":"(Quarterly!FB175-Quarterly!FB171)*100","v":92.666666666666501},"--",{"$f":"(Quarterly!FD175-Quarterly!FD171)*100","v":138},{"$f":"(Quarterly!FE175-Quarterly!FE171)*100","v":111.33333333333333},{"$f":"(Quarterly!FF175-Quarterly!FF171)*100","v":152.33333333333326},{"$f":"(Quarterly!FG175-Quarterly!FG171)*100","v":167.66666666666669},{"$f":"(Quarterly!FH175-Quarterly!FH171)*100","v":170.33333333333331},{"$f":"(Quarterly!FI175-Quarterly!FI171)*100","v":149.66666666666663},null,null,null,null,null,null,{"$f":"((Quarterly!FP175/Quarterly!FP171)-1)","v":-3.8392837453414819E-2},{"$f":"((Quarterly!FQ175/Quarterly!FQ171)-1)","v":-1.2079142541865373E-5},{"$f":"((Quarterly!FR175/Quarterly!FR171)-1)","v":-5.5494542288890281E-2},{"$f":"((Quarterly!FS175/Quarterly!FS171)-1)","v":-0.12090261282660331},{"$f":"((Quarterly!FT175/Quarterly!FT171)-1)","v":1.7860719722344598E-3},{"$f":"((Quarterly!FU175/Quarterly!FU171)-1)","v":1.6598963270460398E-2},{"$f":"((Quarterly!FV175/Quarterly!FV171)-1)","v":0.20209267054072022},{"$f":"((Quarterly!FW175/Quarterly!FW171)-1)","v":0.21250098958047858},{"$f":"((Quarterly!FX175/Quarterly!FX171)-1)","v":0.28057478157975768},null,null,null,null,null,{"$f":"((Quarterly!GD175/Quarterly!GD171)-1)","v":1.2079713847726112},{"$f":"((Quarterly!GE175/Quarterly!GE171)-1)","v":1.3835939805252284},{"$f":"((Quarterly!GF175/Quarterly!GF171)-1)","v":0.43261430522996003},{"$f":"((Quarterly!GG175/Quarterly!GG171)-1)","v":0.4697228874444066},{"$f":"((Quarterly!GH175/Quarterly!GH171)-1)","v":{"$error":"#DIV/0!"}},"--",{"$f":"((Quarterly!GJ175/Quarterly!GJ171)-1)","v":0.45132579269423334},{"$f":"((Quarterly!GK175/Quarterly!GK171)-1)","v":4.4005102040816313E-2},"--"]
["00'Q2",{"$f":"((Quarterly!B176/Quarterly!B172)-1)","v":7.5477097689077288E-2},{"$f":"((Quarterly!C176/Quarterly!C172)-1)","v":5.2664972709772773E-2},{"$f":"((Quarterly!D176/Quarterly!D172)-1)","v":4.7113209534974443E-2},{"$f":"((Quarterly!E176/Quarterly!E172)-1)","v":5.1822406939546095E-2},{"$f":"((Quarterly!F176/Quarterly!F172)-1)","v":7.3827432568389639E-2},{"$f":"((Quarterly!G176/Quarterly!G172)-1)","v":3.636228711365086E-2},{"$f":"((Quarterly!H176/Quarterly!H172)-1)","v":5.2830616084518889E-2},{"$f":"((Quarterly!I176/Quarterly!I172)-1)","v":0.10233368597090209},{"$f":"((Quarterly!J176/Quarterly!J172)-1)","v":0.11604310217859481},{"$f":"((Quarterly!K176/Quarterly!K172)-1)","v":1.4679290614232121E-2},{"$f":"((Quarterly!L176-Quarterly!L172))","v":63.442},{"$f":"((Quarterly!M176/Quarterly!M172)-1)","v":0.13954913904616495},{"$f":"((Quarterly!N176/Quarterly!N172)-1)","v":0.1026741107169189},{"$f":"((Quarterly!O176/Quarterly!O172)-1)","v":0.25261578009932362},{"$f":"((Quarterly!P176/Quarterly!P172)-1)","v":3.0736306017472792E-2},{"$f":"((Quarterly!Q176/Quarterly!Q172)-1)","v":1.332175464873564},null,null,null,null,null,{"$f":"((Quarterly!W176/Quarterly!W172)-1)","v":0},{"$f":"((Quarterly!X176/Quarterly!X172)-1)","v":6.9444444444446418E-3},{"$f":"((Quarterly!Y176/Quarterly!Y172)-1)","v":0.10933853765148727},{"$f":"Quarterly!Z176-Quarterly!Z172","v":0.10999999999999999},{"$f":"((Quarterly!AA176/Quarterly!AA172)-1)","v":-3.6858042945885239E-2},{"$f":"((Quarterly!AB176/Quarterly!AB172)-1)","v":-0.10643979777831281},{"$f":"Quarterly!AC176-Quarterly!AC172","v":16.399999999999999},{"$f":"Quarterly!AD176-Quarterly!AD172","v":-4.8},{"$f":"(Quarterly!AE176-Quarterly!AE172)*100","v":4.0000000000000036},{"$f":"(Quarterly!AF176-Quarterly!AF172)*100","v":10.999999999999998},{"$f":"(Quarterly!AG176-Quarterly!AG172)*100","v":-0.99999999999998979},"--","--","--","--","--",{"$f":"((Quarterly!AM176/Quarterly!AM172)-1)","v":5.0084172783270819E-2},{"$f":"((Quarterly!AN176/Quarterly!AN172)-1)","v":5.4770943026706043E-2},{"$f":"((Quarterly!AO176/Quarterly!AO172)-1)","v":6.3289679998904891E-2},{"$f":"(Quarterly!AP176-Quarterly!AP172)*100","v":-1.0000000000000009},{"$f":"Quarterly!AQ176-Quarterly!AQ172","v":-1.0333333333333243},{"$f":"Quarterly!AR176-Quarterly!AR172","v":-4.8333333333333357},{"$f":"Quarterly!AS176-Quarterly!AS172","v":3.5},{"$f":"Quarterly!AT176-Quarterly!AT172","v":1.9000000000000057},{"$f":"Quarterly!AU176-Quarterly!AU172","v":2.0999999999999943},{"$f":"Quarterly!AV176-Quarterly!AV172","v":2.2666666666666586},{"$f":"Quarterly!AW176-Quarterly!AW172","v":1.6333333333333258},{"$f":"Quarterly!AX176-Quarterly!AX172","v":-4.7666666666666586},{"$f":"Quarterly!AY176-Quarterly!AY172","v":15.666666666666671},{"$f":"Quarterly!AZ176-Quarterly!AZ172","v":-3.1333333333333329},{"$f":"Quarterly!BA176-Quarterly!BA172","v":3.7000000000000028},{"$f":"Quarterly!BB176-Quarterly!BB172","v":1.93333333333333},{"$f":"((Quarterly!BC176/Quarterly!BC172)-1)","v":0.1050183364456545},{"$f":"((Quarterly!BD176/Quarterly!BD172)-1)","v":7.4539411478180995E-2},{"$f":"((Quarterly!BE176/Quarterly!BE172)-1)","v":-9.1578103480172146E-3},{"$f":"((Quarterly!BF176/Quarterly!BF172)-1)","v":6.8333479033715117E-2},{"$f":"((Quarterly!BG176/Quarterly!BG172)-1)","v":4.04245417172997E-2},{"$f":"((Quarterly!BH176/Quarterly!BH172)-1)","v":3.3824042891094086E-2},{"$f":"((Quarterly!BI176/Quarterly!BI172)-1)","v":2.6812582415724595E-2},{"$f":"((Quarterly!BJ176/Quarterly!BJ172)-1)","v":-9.506176964645352E-2},{"$f":"((Quarterly!BK176/Quarterly!BK172)-1)","v":0.22916666666666674},null,{"$f":"((Quarterly!BM176/Quarterly!BM172)-1)","v":6.9803364156574288E-2},{"$f":"((Quarterly!BN176/Quarterly!BN172)-1)","v":6.9422170595051291E-2},null,null,null,null,null,{"$f":"((Quarterly!BT176/Quarterly!BT172)-1)","v":5.8375534668869244E-2},{"$f":"Quarterly!BU176-Quarterly!BU172","v":0.23191000000000095},{"$f":"Quarterly!BV176-Quarterly!BV172","v":6.477999999999895E-2},{"$f":"((Quarterly!BW176/Quarterly!BW172)-1)","v":7.8209138714281368E-2},{"$f":"((Quarterly!BX176/Quarterly!BX172)-1)","v":7.8340038111370802E-3},{"$f":"((Quarterly!BY176/Quarterly!BY172)-1)","v":-4.6539862403884968E-2},"--",{"$f":"((Quarterly!CA176/Quarterly!CA172)-1)","v":3.3127980922098343E-2},{"$f":"((Quarterly!CB176/Quarterly!CB172)-1)","v":0.13290880107692971},{"$f":"((Quarterly!CC176/Quarterly!CC172)-1)","v":6.5612936892625706E-2},"--","--",null,"--","--",null,{"$f":"((Quarterly!CJ176/Quarterly!CJ172)-1)","v":-8.7211432759252361E-2},{"$f":"((Quarterly!CK176/Quarterly!CK172)-1)","v":8.4346693530371164E-2},{"$f":"((Quarterly!CL176/Quarterly!CL172)-1)","v":6.2732289672260411E-2},{"$f":"((Quarterly!CM176/Quarterly!CM172)-1)","v":-2.3959978936282211E-2},{"$f":"((Quarterly!CN176/Quarterly!CN172)-1)","v":5.2442267209040994E-2},{"$f":"((Quarterly!CO176/Quarterly!CO172)-1)","v":5.7519496456989172E-2},{"$f":"((Quarterly!CP176/Quarterly!CP172)-1)","v":8.137124138717744E-2},{"$f":"((Quarterly!CQ176/Quarterly!CQ172)-1)","v":1.1345792537154509E-2},{"$f":"((Quarterly!CR176/Quarterly!CR172)-1)","v":7.2384943531004442E-2},{"$f":"Quarterly!CS176-Quarterly!CS172","v":2.5333333333333314},"--",null,null,null,null,null,{"$f":"((Quarterly!CZ176/Quarterly!CZ172)-1)","v":3.2938341032335616E-2},{"$f":"((Quarterly!DA176/Quarterly!DA172)-1)","v":2.3989421987155257E-2},null,null,null,null,null,{"$f":"((Quarterly!DG176/Quarterly!DG172)-1)","v":2.2727272727272707E-2},{"$f":"((Quarterly!DH176-Quarterly!DH172)*60)","v":-2.0000000000003126},{"$f":"Quarterly!DI176-Quarterly!DI172","v":6.6666666666662877E-2},{"$f":"(Quarterly!DJ176-Quarterly!DJ172)*100","v":-50},{"$f":"(Quarterly!DK176-Quarterly!DK172)*100","v":-33.3333333333333},{"$f":"((Quarterly!DL176/Quarterly!DL172)-1)","v":-1.9048718540752851E-3},null,null,null,{"$f":"((Quarterly!DP176/Quarterly!DP172)-1)","v":2.4711479506701828E-2},null,null,null,null,{"$f":"Quarterly!DU176-Quarterly!DU172","v":-0.46666666666666679},{"$f":"((Quarterly!DV176/Quarterly!DV172)-1)","v":1.5740072202166111E-2},{"$f":"((Quarterly!DW176/Quarterly!DW172)-1)","v":1.4671163575042057E-2},{"$f":"((Quarterly!DX176/Quarterly!DX172)-1)","v":1.5996251924235372E-2},{"$f":"((Quarterly!DY176/Quarterly!DY172)-1)","v":3.7042118260390833E-3},{"$f":"((Quarterly!DZ176/Quarterly!DZ172)-1)","v":1.9961935112645435E-2},{"$f":"((Quarterly!EA176/Quarterly!EA172)-1)","v":2.0104244229337542E-2},{"$f":"((Quarterly!EB176/Quarterly!EB172)-1)","v":1.9607843137254832E-2},{"$f":"((Quarterly!EC176/Quarterly!EC172)-1)","v":1.1265909872721247E-2},null,null,null,null,null,{"$f":"((Quarterly!EI176/Quarterly!EI172)-1)","v":5.9589503401852761E-2},{"$f":"((Quarterly!EJ176/Quarterly!EJ172)-1)","v":4.8145593964703526E-2},{"$f":"((Quarterly!EK176/Quarterly!EK172)-1)","v":4.9372284563135693E-2},null,null,null,null,null,{"$f":"((Quarterly!EQ176/Quarterly!EQ172)-1)","v":6.0508701472556936E-2},{"$f":"((Quarterly!ER176/Quarterly!ER172)-1)","v":1.3266239707228067E-2},{"$f":"((Quarterly!ES176/Quarterly!ES172)-1)","v":7.7500605473481698E-3},null,null,null,null,null,{"$f":"(Quarterly!EY176-Quarterly!EY172)*100","v":149.6666666666668},{"$f":"(Quarterly!EZ176-Quarterly!EZ172)*100","v":152.66666666666663},{"$f":"(Quarterly!FA176-Quarterly!FA172)*100","v":83.333333333333215},{"$f":"(Quarterly!FB176-Quarterly!FB172)*100","v":85.333333333333442},"--",{"$f":"(Quarterly!FD176-Quarterly!FD172)*100","v":111.33333333333333},{"$f":"(Quarterly!FE176-Quarterly!FE172)*100","v":126.00000000000007},{"$f":"(Quarterly!FF176-Quarterly!FF172)*100","v":133.6666666666666},{"$f":"(Quarterly!FG176-Quarterly!FG172)*100","v":127.99999999999994},{"$f":"(Quarterly!FH176-Quarterly!FH172)*100","v":97.333333333333456},{"$f":"(Quarterly!FI176-Quarterly!FI172)*100","v":63.666666666666757},null,null,null,null,null,null,{"$f":"((Quarterly!FP176/Quarterly!FP172)-1)","v":5.182519745626557E-3},{"$f":"((Quarterly!FQ176/Quarterly!FQ172)-1)","v":-4.4291080984026898E-5},{"$f":"((Quarterly!FR176/Quarterly!FR172)-1)","v":1.3881194756620419E-2},{"$f":"((Quarterly!FS176/Quarterly!FS172)-1)","v":-0.11653210546234383},{"$f":"((Quarterly!FT176/Quarterly!FT172)-1)","v":1.4689155697809708E-2},{"$f":"((Quarterly!FU176/Quarterly!FU172)-1)","v":2.2766172548932095E-2},{"$f":"((Quarterly!FV176/Quarterly!FV172)-1)","v":0.18687495967481782},{"$f":"((Quarterly!FW176/Quarterly!FW172)-1)","v":0.21570618775713224},{"$f":"((Quarterly!FX176/Quarterly!FX172)-1)","v":0.25797428763525732},null,null,null,null,null,{"$f":"((Quarterly!GD176/Quarterly!GD172)-1)","v":0.62986032465081143},{"$f":"((Quarterly!GE176/Quarterly!GE172)-1)","v":0.73134971970677021},{"$f":"((Quarterly!GF176/Quarterly!GF172)-1)","v":0.33379052190933378},{"$f":"((Quarterly!GG176/Quarterly!GG172)-1)","v":0.32145071295722261},{"$f":"((Quarterly!GH176/Quarterly!GH172)-1)","v":{"$error":"#DIV/0!"}},"--",{"$f":"((Quarterly!GJ176/Quarterly!GJ172)-1)","v":0.61379412199084316},{"$f":"((Quarterly!GK176/Quarterly!GK172)-1)","v":7.0866915667387342E-2},"--"]
["00'Q3",{"$f":"((Quarterly!B177/Quarterly!B173)-1)","v":6.6427759496225258E-2},{"$f":"((Quarterly!C177/Quarterly!C173)-1)","v":4.0831993527654875E-2},{"$f":"((Quarterly!D177/Quarterly!D173)-1)","v":3.9287835313262853E-2},{"$f":"((Quarterly!E177/Quarterly!E173)-1)","v":5.0128101833497363E-2},{"$f":"((Quarterly!F177/Quarterly!F173)-1)","v":6.6529428277346536E-2},{"$f":"((Quarterly!G177/Quarterly!G173)-1)","v":3.8355000738661493E-2},{"$f":"((Quarterly!H177/Quarterly!H173)-1)","v":5.0975511093132475E-2},{"$f":"((Quarterly!I177/Quarterly!I173)-1)","v":8.3563364077004376E-2},{"$f":"((Quarterly!J177/Quarterly!J173)-1)","v":6.9924306525148028E-2},{"$f":"((Quarterly!K177/Quarterly!K173)-1)","v":-8.5517284657560255E-3},{"$f":"((Quarterly!L177-Quarterly!L173))","v":17.200999999999993},{"$f":"((Quarterly!M177/Quarterly!M173)-1)","v":0.13658901525194489},{"$f":"((Quarterly!N177/Quarterly!N173)-1)","v":9.7472813234734224E-2},{"$f":"((Quarterly!O177/Quarterly!O173)-1)","v":0.25290872579658386},{"$f":"((Quarterly!P177/Quarterly!P173)-1)","v":1.6651139801938886E-2},{"$f":"((Quarterly!Q177/Quarterly!Q173)-1)","v":1.1485405949452026},null,null,null,null,null,{"$f":"((Quarterly!W177/Quarterly!W173)-1)","v":-7.5282308657466102E-3},{"$f":"((Quarterly!X177/Quarterly!X173)-1)","v":-2.0466639377815232E-3},{"$f":"((Quarterly!Y177/Quarterly!Y173)-1)","v":0.10699687078570763},{"$f":"Quarterly!Z177-Quarterly!Z173","v":0.10999999999999999},{"$f":"((Quarterly!AA177/Quarterly!AA173)-1)","v":-4.7037049486978177E-2},{"$f":"((Quarterly!AB177/Quarterly!AB173)-1)","v":-6.9517360590281574E-2},{"$f":"Quarterly!AC177-Quarterly!AC173","v":21.1},{"$f":"Quarterly!AD177-Quarterly!AD173","v":-3.7},{"$f":"(Quarterly!AE177-Quarterly!AE173)*100","v":5.0000000000000044},{"$f":"(Quarterly!AF177-Quarterly!AF173)*100","v":10.999999999999998},{"$f":"(Quarterly!AG177-Quarterly!AG173)*100","v":-3.0000000000000027},"--","--","--","--","--",{"$f":"((Quarterly!AM177/Quarterly!AM173)-1)","v":3.9686142952754411E-2},{"$f":"((Quarterly!AN177/Quarterly!AN173)-1)","v":4.584995860258001E-2},{"$f":"((Quarterly!AO177/Quarterly!AO173)-1)","v":6.6174925727151557E-2},{"$f":"(Quarterly!AP177-Quarterly!AP173)*100","v":1.6666666666666829},{"$f":"Quarterly!AQ177-Quarterly!AQ173","v":-4.4333333333333229},{"$f":"Quarterly!AR177-Quarterly!AR173","v":-5.5},{"$f":"Quarterly!AS177-Quarterly!AS173","v":4.8333333333333357},{"$f":"Quarterly!AT177-Quarterly!AT173","v":-0.96666666666666856},{"$f":"Quarterly!AU177-Quarterly!AU173","v":-2.7000000000000099},{"$f":"Quarterly!AV177-Quarterly!AV173","v":-3.3666666666666671},{"$f":"Quarterly!AW177-Quarterly!AW173","v":2.2000000000000028},{"$f":"Quarterly!AX177-Quarterly!AX173","v":-8.2333333333333272},{"$f":"Quarterly!AY177-Quarterly!AY173","v":-0.66666666666665719},{"$f":"Quarterly!AZ177-Quarterly!AZ173","v":-7.13333333333334},{"$f":"Quarterly!BA177-Quarterly!BA173","v":-1.3999999999999915},{"$f":"Quarterly!BB177-Quarterly!BB173","v":-0.8333333333333357},{"$f":"((Quarterly!BC177/Quarterly!BC173)-1)","v":4.2964760983120964E-2},{"$f":"((Quarterly!BD177/Quarterly!BD173)-1)","v":7.0639327922540129E-2},{"$f":"((Quarterly!BE177/Quarterly!BE173)-1)","v":4.161469090611547E-3},{"$f":"((Quarterly!BF177/Quarterly!BF173)-1)","v":7.9681677691441077E-2},{"$f":"((Quarterly!BG177/Quarterly!BG173)-1)","v":3.0908019170147849E-2},{"$f":"((Quarterly!BH177/Quarterly!BH173)-1)","v":4.3017042578322728E-2},{"$f":"((Quarterly!BI177/Quarterly!BI173)-1)","v":4.7327074152136328E-2},{"$f":"((Quarterly!BJ177/Quarterly!BJ173)-1)","v":-0.10232178607687414},{"$f":"((Quarterly!BK177/Quarterly!BK173)-1)","v":0.21153846153846145},null,{"$f":"((Quarterly!BM177/Quarterly!BM173)-1)","v":5.6553785013978564E-2},{"$f":"((Quarterly!BN177/Quarterly!BN173)-1)","v":5.4458941469243127E-2},null,null,null,null,null,{"$f":"((Quarterly!BT177/Quarterly!BT173)-1)","v":8.833564727776344E-2},{"$f":"Quarterly!BU177-Quarterly!BU173","v":0.28162999999999982},{"$f":"Quarterly!BV177-Quarterly!BV173","v":8.3480000000001553E-2},{"$f":"((Quarterly!BW177/Quarterly!BW173)-1)","v":7.1976628794365061E-2},{"$f":"((Quarterly!BX177/Quarterly!BX173)-1)","v":-8.9054927302100184E-2},{"$f":"((Quarterly!BY177/Quarterly!BY173)-1)","v":-4.8939641109298493E-2},"--",{"$f":"((Quarterly!CA177/Quarterly!CA173)-1)","v":1.5133831310302215E-2},{"$f":"((Quarterly!CB177/Quarterly!CB173)-1)","v":0.13516941091564116},{"$f":"((Quarterly!CC177/Quarterly!CC173)-1)","v":7.6080428520177046E-2},"--","--",null,"--","--",null,{"$f":"((Quarterly!CJ177/Quarterly!CJ173)-1)","v":1.0691103474608665E-2},{"$f":"((Quarterly!CK177/Quarterly!CK173)-1)","v":8.8507683030794482E-2},{"$f":"((Quarterly!CL177/Quarterly!CL173)-1)","v":0.20333084762614972},{"$f":"((Quarterly!CM177/Quarterly!CM173)-1)","v":-7.5408136823011174E-2},{"$f":"((Quarterly!CN177/Quarterly!CN173)-1)","v":5.765080912381948E-2},{"$f":"((Quarterly!CO177/Quarterly!CO173)-1)","v":4.9836191944498065E-2},{"$f":"((Quarterly!CP177/Quarterly!CP173)-1)","v":9.8455120955891262E-2},{"$f":"((Quarterly!CQ177/Quarterly!CQ173)-1)","v":1.0932284215546151E-2},{"$f":"((Quarterly!CR177/Quarterly!CR173)-1)","v":8.4759785866365123E-2},{"$f":"Quarterly!CS177-Quarterly!CS173","v":1.5666666666666629},"--",null,null,null,null,null,{"$f":"((Quarterly!CZ177/Quarterly!CZ173)-1)","v":3.4688995215311103E-2},{"$f":"((Quarterly!DA177/Quarterly!DA173)-1)","v":2.5366403607666399E-2},null,null,null,null,null,{"$f":"((Quarterly!DG177/Quarterly!DG173)-1)","v":1.8348623853211121E-2},{"$f":"((Quarterly!DH177-Quarterly!DH173)*60)","v":-6.0000000000000853},{"$f":"Quarterly!DI177-Quarterly!DI173","v":-0.13333333333332575},{"$f":"(Quarterly!DJ177-Quarterly!DJ173)*100","v":-36.666666666666714},{"$f":"(Quarterly!DK177-Quarterly!DK173)*100","v":-23.333333333333339},{"$f":"((Quarterly!DL177/Quarterly!DL173)-1)","v":-7.1323926285749017E-4},null,null,null,{"$f":"((Quarterly!DP177/Quarterly!DP173)-1)","v":2.0798287986583786E-2},null,null,null,null,{"$f":"Quarterly!DU177-Quarterly!DU173","v":-0.2666666666666675},{"$f":"((Quarterly!DV177/Quarterly!DV173)-1)","v":4.2445631438381426E-3},{"$f":"((Quarterly!DW177/Quarterly!DW173)-1)","v":3.2367772956489738E-3},{"$f":"((Quarterly!DX177/Quarterly!DX173)-1)","v":3.3962510613285701E-3},{"$f":"((Quarterly!DY177/Quarterly!DY173)-1)","v":-1.3208294809141652E-4},{"$f":"((Quarterly!DZ177/Quarterly!DZ173)-1)","v":4.5551169146673676E-3},{"$f":"((Quarterly!EA177/Quarterly!EA173)-1)","v":4.4993007843374677E-3},{"$f":"((Quarterly!EB177/Quarterly!EB173)-1)","v":4.6941247728649049E-3},{"$f":"((Quarterly!EC177/Quarterly!EC173)-1)","v":2.8302672105218196E-3},null,null,null,null,null,{"$f":"((Quarterly!EI177/Quarterly!EI173)-1)","v":4.0006363384720078E-2},{"$f":"((Quarterly!EJ177/Quarterly!EJ173)-1)","v":3.2846023986915718E-2},{"$f":"((Quarterly!EK177/Quarterly!EK173)-1)","v":3.8362768865640273E-2},null,null,null,null,null,{"$f":"((Quarterly!EQ177/Quarterly!EQ173)-1)","v":5.438780872306892E-2},{"$f":"((Quarterly!ER177/Quarterly!ER173)-1)","v":1.5753424657534154E-2},{"$f":"((Quarterly!ES177/Quarterly!ES173)-1)","v":1.2372634643377012E-2},null,null,null,null,null,{"$f":"(Quarterly!EY177-Quarterly!EY173)*100","v":139.66666666666666},{"$f":"(Quarterly!EZ177-Quarterly!EZ173)*100","v":142.66666666666657},{"$f":"(Quarterly!FA177-Quarterly!FA173)*100","v":27.999999999999936},{"$f":"(Quarterly!FB177-Quarterly!FB173)*100","v":22.000000000000064},"--",{"$f":"(Quarterly!FD177-Quarterly!FD173)*100","v":23.33333333333325},{"$f":"(Quarterly!FE177-Quarterly!FE173)*100","v":136.66666666666671},{"$f":"(Quarterly!FF177-Quarterly!FF173)*100","v":96.999999999999972},{"$f":"(Quarterly!FG177-Quarterly!FG173)*100","v":58.6666666666666},{"$f":"(Quarterly!FH177-Quarterly!FH173)*100","v":28.333333333333233},{"$f":"(Quarterly!FI177-Quarterly!FI173)*100","v":1.0000000000000675},null,null,null,null,null,null,{"$f":"((Quarterly!FP177/Quarterly!FP173)-1)","v":-2.7582804476040668E-3},{"$f":"((Quarterly!FQ177/Quarterly!FQ173)-1)","v":2.134325593383668E-4},{"$f":"((Quarterly!FR177/Quarterly!FR173)-1)","v":-1.992237389315199E-3},{"$f":"((Quarterly!FS177/Quarterly!FS173)-1)","v":-0.13809100152516529},{"$f":"((Quarterly!FT177/Quarterly!FT173)-1)","v":3.0851415341498933E-2},{"$f":"((Quarterly!FU177/Quarterly!FU173)-1)","v":5.1188434734745547E-2},{"$f":"((Quarterly!FV177/Quarterly!FV173)-1)","v":0.1400176444999166},{"$f":"((Quarterly!FW177/Quarterly!FW173)-1)","v":0.24278760687378309},{"$f":"((Quarterly!FX177/Quarterly!FX173)-1)","v":0.24130908583683497},null,null,null,null,null,{"$f":"((Quarterly!GD177/Quarterly!GD173)-1)","v":0.45483821499769994},{"$f":"((Quarterly!GE177/Quarterly!GE173)-1)","v":0.48803363518758069},{"$f":"((Quarterly!GF177/Quarterly!GF173)-1)","v":0.24365408103658859},{"$f":"((Quarterly!GG177/Quarterly!GG173)-1)","v":0.29296095753775986},{"$f":"((Quarterly!GH177/Quarterly!GH173)-1)","v":{"$error":"#DIV/0!"}},"--",{"$f":"((Quarterly!GJ177/Quarterly!GJ173)-1)","v":0.75106520335700466},{"$f":"((Quarterly!GK177/Quarterly!GK173)-1)","v":7.1464217985826917E-2},"--"]
["00'Q4",{"$f":"((Quarterly!B178/Quarterly!B174)-1)","v":5.5025029465245234E-2},{"$f":"((Quarterly!C178/Quarterly!C174)-1)","v":2.8888443843452905E-2},{"$f":"((Quarterly!D178/Quarterly!D174)-1)","v":3.2563630119473164E-2},{"$f":"((Quarterly!E178/Quarterly!E174)-1)","v":4.4146808725170406E-2},{"$f":"((Quarterly!F178/Quarterly!F174)-1)","v":6.1165048543689426E-2},{"$f":"((Quarterly!G178/Quarterly!G174)-1)","v":2.7418333182517518E-2},{"$f":"((Quarterly!H178/Quarterly!H174)-1)","v":4.6504200854910582E-2},{"$f":"((Quarterly!I178/Quarterly!I174)-1)","v":8.2498797634235954E-2},{"$f":"((Quarterly!J178/Quarterly!J174)-1)","v":7.1820567428016791E-2},{"$f":"((Quarterly!K178/Quarterly!K174)-1)","v":-1.472120510787811E-2},{"$f":"((Quarterly!L178-Quarterly!L174))","v":-43.643000000000008},{"$f":"((Quarterly!M178/Quarterly!M174)-1)","v":0.10867582129457976},{"$f":"((Quarterly!N178/Quarterly!N174)-1)","v":6.1135236636008949E-2},{"$f":"((Quarterly!O178/Quarterly!O174)-1)","v":0.25038224402061138},{"$f":"((Quarterly!P178/Quarterly!P174)-1)","v":4.8987997920484361E-3},{"$f":"((Quarterly!Q178/Quarterly!Q174)-1)","v":0.76692101756082587},null,null,null,null,null,{"$f":"((Quarterly!W178/Quarterly!W174)-1)","v":-3.117206982543641E-2},{"$f":"((Quarterly!X178/Quarterly!X174)-1)","v":-2.0333468889792483E-2},{"$f":"((Quarterly!Y178/Quarterly!Y174)-1)","v":8.8647348896953471E-2},{"$f":"Quarterly!Z178-Quarterly!Z174","v":0.20000000000000007},{"$f":"((Quarterly!AA178/Quarterly!AA174)-1)","v":-0.12023621309648302},{"$f":"((Quarterly!AB178/Quarterly!AB174)-1)","v":-0.11380909476836776},{"$f":"Quarterly!AC178-Quarterly!AC174","v":5.8999999999999986},{"$f":"Quarterly!AD178-Quarterly!AD174","v":-9},{"$f":"(Quarterly!AE178-Quarterly!AE174)*100","v":18.000000000000014},{"$f":"(Quarterly!AF178-Quarterly!AF174)*100","v":20.000000000000007},{"$f":"(Quarterly!AG178-Quarterly!AG174)*100","v":4.0000000000000036},{"$f":"((Quarterly!AH178/Quarterly!AH174)-1)","v":0.74595323741007191},"--","--","--","--",{"$f":"((Quarterly!AM178/Quarterly!AM174)-1)","v":1.949978473572167E-2},{"$f":"((Quarterly!AN178/Quarterly!AN174)-1)","v":1.9750417993084968E-2},{"$f":"((Quarterly!AO178/Quarterly!AO174)-1)","v":5.9577538723152523E-2},{"$f":"(Quarterly!AP178-Quarterly!AP174)*100","v":3.3333333333333215},{"$f":"Quarterly!AQ178-Quarterly!AQ174","v":-10.666666666666679},{"$f":"Quarterly!AR178-Quarterly!AR174","v":-14.5},{"$f":"Quarterly!AS178-Quarterly!AS174","v":3.8333333333333357},{"$f":"Quarterly!AT178-Quarterly!AT174","v":-7.9333333333333371},{"$f":"Quarterly!AU178-Quarterly!AU174","v":-6.2999999999999901},{"$f":"Quarterly!AV178-Quarterly!AV174","v":-0.73333333333332718},{"$f":"Quarterly!AW178-Quarterly!AW174","v":-5.8666666666666671},{"$f":"Quarterly!AX178-Quarterly!AX174","v":-15.033333333333331},{"$f":"Quarterly!AY178-Quarterly!AY174","v":-9.5666666666666558},{"$f":"Quarterly!AZ178-Quarterly!AZ174","v":-12.733333333333327},{"$f":"Quarterly!BA178-Quarterly!BA174","v":-5.1666666666666643},{"$f":"Quarterly!BB178-Quarterly!BB174","v":-0.76666666666666572},{"$f":"((Quarterly!BC178/Quarterly!BC174)-1)","v":-2.5430328845943428E-4},{"$f":"((Quarterly!BD178/Quarterly!BD174)-1)","v":4.2371129759001258E-2},{"$f":"((Quarterly!BE178/Quarterly!BE174)-1)","v":1.3056557741411901E-2},{"$f":"((Quarterly!BF178/Quarterly!BF174)-1)","v":6.4112908933905199E-2},{"$f":"((Quarterly!BG178/Quarterly!BG174)-1)","v":2.4692603568951421E-2},{"$f":"((Quarterly!BH178/Quarterly!BH174)-1)","v":2.8899999999999926E-2},{"$f":"((Quarterly!BI178/Quarterly!BI174)-1)","v":3.8468446220506047E-2},{"$f":"((Quarterly!BJ178/Quarterly!BJ174)-1)","v":-0.23583712535272139},{"$f":"((Quarterly!BK178/Quarterly!BK174)-1)","v":0.33898305084745783},null,{"$f":"((Quarterly!BM178/Quarterly!BM174)-1)","v":4.0231789742199098E-2},{"$f":"((Quarterly!BN178/Quarterly!BN174)-1)","v":3.9494416187527692E-2},null,null,null,null,null,{"$f":"((Quarterly!BT178/Quarterly!BT174)-1)","v":0.10438226924235838},{"$f":"Quarterly!BU178-Quarterly!BU174","v":0.52086000000000077},{"$f":"Quarterly!BV178-Quarterly!BV174","v":0.40111999999999881},{"$f":"((Quarterly!BW178/Quarterly!BW174)-1)","v":7.1667845614719727E-2},{"$f":"((Quarterly!BX178/Quarterly!BX174)-1)","v":-6.6881547139403752E-2},{"$f":"((Quarterly!BY178/Quarterly!BY174)-1)","v":-5.3956834532374098E-2},"--",{"$f":"((Quarterly!CA178/Quarterly!CA174)-1)","v":-5.3784324282747376E-2},{"$f":"((Quarterly!CB178/Quarterly!CB174)-1)","v":9.8270477373754161E-2},{"$f":"((Quarterly!CC178/Quarterly!CC174)-1)","v":5.6687981734661053E-2},"--","--",null,"--","--",null,{"$f":"((Quarterly!CJ178/Quarterly!CJ174)-1)","v":7.2085889570552064E-2},{"$f":"((Quarterly!CK178/Quarterly!CK174)-1)","v":7.4583016280574288E-2},{"$f":"((Quarterly!CL178/Quarterly!CL174)-1)","v":3.0222114334263805E-2},{"$f":"((Quarterly!CM178/Quarterly!CM174)-1)","v":-8.3125312031952059E-2},{"$f":"((Quarterly!CN178/Quarterly!CN174)-1)","v":4.5841209829867502E-2},{"$f":"((Quarterly!CO178/Quarterly!CO174)-1)","v":6.6189555865975302E-2},{"$f":"((Quarterly!CP178/Quarterly!CP174)-1)","v":0.11561508917179109},{"$f":"((Quarterly!CQ178/Quarterly!CQ174)-1)","v":1.0649045032624649E-2},{"$f":"((Quarterly!CR178/Quarterly!CR174)-1)","v":0.1069742700115115},{"$f":"Quarterly!CS178-Quarterly!CS174","v":-1.3333333333333428},"--",null,null,null,null,null,{"$f":"((Quarterly!CZ178/Quarterly!CZ174)-1)","v":3.4434989115377013E-2},{"$f":"((Quarterly!DA178/Quarterly!DA174)-1)","v":2.5784753363228718E-2},null,null,null,null,null,{"$f":"((Quarterly!DG178/Quarterly!DG174)-1)","v":8.7690808704126155E-3},{"$f":"((Quarterly!DH178-Quarterly!DH174)*60)","v":-14.000000000000057},{"$f":"Quarterly!DI178-Quarterly!DI174","v":-0.1666666666666714},{"$f":"(Quarterly!DJ178-Quarterly!DJ174)*100","v":-20.000000000000018},{"$f":"(Quarterly!DK178-Quarterly!DK174)*100","v":-16.66666666666665},{"$f":"((Quarterly!DL178/Quarterly!DL174)-1)","v":-4.5144113902072514E-3},null,null,null,{"$f":"((Quarterly!DP178/Quarterly!DP174)-1)","v":1.5912551219562143E-2},null,null,null,null,{"$f":"Quarterly!DU178-Quarterly!DU174","v":3.3333333333332327E-2},{"$f":"((Quarterly!DV178/Quarterly!DV174)-1)","v":-1.9669644761477478E-3},{"$f":"((Quarterly!DW178/Quarterly!DW174)-1)","v":-5.4158425167194491E-4},{"$f":"((Quarterly!DX178/Quarterly!DX174)-1)","v":-1.1438282296805102E-3},{"$f":"((Quarterly!DY178/Quarterly!DY174)-1)","v":3.7761294672959966E-3},{"$f":"((Quarterly!DZ178/Quarterly!DZ174)-1)","v":-2.7173913043476716E-3},{"$f":"((Quarterly!EA178/Quarterly!EA174)-1)","v":-2.9031087456151683E-3},{"$f":"((Quarterly!EB178/Quarterly!EB174)-1)","v":-2.2556390977443996E-3},{"$f":"((Quarterly!EC178/Quarterly!EC174)-1)","v":1.0110371556153464E-3},null,null,null,null,null,{"$f":"((Quarterly!EI178/Quarterly!EI174)-1)","v":2.7268069373307169E-2},{"$f":"((Quarterly!EJ178/Quarterly!EJ174)-1)","v":2.3999608765092217E-2},{"$f":"((Quarterly!EK178/Quarterly!EK174)-1)","v":2.9496486564905E-2},null,null,null,null,null,{"$f":"((Quarterly!EQ178/Quarterly!EQ174)-1)","v":5.9405940594059459E-2},{"$f":"((Quarterly!ER178/Quarterly!ER174)-1)","v":1.2023593466424787E-2},{"$f":"((Quarterly!ES178/Quarterly!ES174)-1)","v":1.0394005317863275E-2},null,null,null,null,null,{"$f":"(Quarterly!EY178-Quarterly!EY174)*100","v":112.66666666666669},{"$f":"(Quarterly!EZ178-Quarterly!EZ174)*100","v":116.6666666666666},{"$f":"(Quarterly!FA178-Quarterly!FA174)*100","v":-8.3333333333333925},{"$f":"(Quarterly!FB178-Quarterly!FB174)*100","v":-2.6666666666667282},"--",{"$f":"(Quarterly!FD178-Quarterly!FD174)*100","v":-18.99999999999995},{"$f":"(Quarterly!FE178-Quarterly!FE174)*100","v":97.333333333333357},{"$f":"(Quarterly!FF178-Quarterly!FF174)*100","v":29.3333333333333},{"$f":"(Quarterly!FG178-Quarterly!FG174)*100","v":-22.666666666666657},{"$f":"(Quarterly!FH178-Quarterly!FH174)*100","v":-51.333333333333364},{"$f":"(Quarterly!FI178-Quarterly!FI174)*100","v":-57.333333333333329},null,null,null,null,null,null,{"$f":"((Quarterly!FP178/Quarterly!FP174)-1)","v":3.617676356062649E-2},{"$f":"((Quarterly!FQ178/Quarterly!FQ174)-1)","v":-8.4557742872193309E-5},{"$f":"((Quarterly!FR178/Quarterly!FR174)-1)","v":3.3077161275791855E-3},{"$f":"((Quarterly!FS178/Quarterly!FS174)-1)","v":-0.16324171590033398},{"$f":"((Quarterly!FT178/Quarterly!FT174)-1)","v":6.9406469256720671E-2},{"$f":"((Quarterly!FU178/Quarterly!FU174)-1)","v":0.10487440598365416},{"$f":"((Quarterly!FV178/Quarterly!FV174)-1)","v":0.12238818930188744},{"$f":"((Quarterly!FW178/Quarterly!FW174)-1)","v":0.21573231974404794},{"$f":"((Quarterly!FX178/Quarterly!FX174)-1)","v":0.18397128292903253},null,null,null,null,null,{"$f":"((Quarterly!GD178/Quarterly!GD174)-1)","v":0.30194056181300044},{"$f":"((Quarterly!GE178/Quarterly!GE174)-1)","v":0.23761276891047878},{"$f":"((Quarterly!GF178/Quarterly!GF174)-1)","v":0.18825927660395014},{"$f":"((Quarterly!GG178/Quarterly!GG174)-1)","v":0.27491408934707917},{"$f":"((Quarterly!GH178/Quarterly!GH174)-1)","v":{"$error":"#DIV/0!"}},"--",{"$f":"((Quarterly!GJ178/Quarterly!GJ174)-1)","v":1.4744748567791208},{"$f":"((Quarterly!GK178/Quarterly!GK174)-1)","v":3.5297216612520943E-2},"--"]
["01'Q1",{"$f":"((Quarterly!B179/Quarterly!B175)-1)","v":4.7561412181858387E-2},{"$f":"((Quarterly!C179/Quarterly!C175)-1)","v":2.2994240274065492E-2},{"$f":"((Quarterly!D179/Quarterly!D175)-1)","v":2.7708461558097364E-2},{"$f":"((Quarterly!E179/Quarterly!E175)-1)","v":3.2837290913154016E-2},{"$f":"((Quarterly!F179/Quarterly!F175)-1)","v":2.1631562814730776E-2},{"$f":"((Quarterly!G179/Quarterly!G175)-1)","v":3.0308009713169382E-2},{"$f":"((Quarterly!H179/Quarterly!H175)-1)","v":3.6068568386925071E-2},{"$f":"((Quarterly!I179/Quarterly!I175)-1)","v":3.682447931576327E-2},{"$f":"((Quarterly!J179/Quarterly!J175)-1)","v":2.9909662107346691E-2},{"$f":"((Quarterly!K179/Quarterly!K175)-1)","v":-1.5379918389106906E-2},{"$f":"((Quarterly!L179-Quarterly!L175))","v":-61.508000000000003},{"$f":"((Quarterly!M179/Quarterly!M175)-1)","v":4.8149862182327086E-2},{"$f":"((Quarterly!N179/Quarterly!N175)-1)","v":2.8985578571440351E-2},{"$f":"((Quarterly!O179/Quarterly!O175)-1)","v":0.10018753285165727},{"$f":"((Quarterly!P179/Quarterly!P175)-1)","v":2.8288255253365646E-2},{"$f":"((Quarterly!Q179/Quarterly!Q175)-1)","v":-0.26221737822357705},null,null,null,null,null,{"$f":"((Quarterly!W179/Quarterly!W175)-1)","v":-5.3682896379525613E-2},{"$f":"((Quarterly!X179/Quarterly!X175)-1)","v":-4.2293615290768583E-2},{"$f":"((Quarterly!Y179/Quarterly!Y175)-1)","v":7.6766681374084378E-2},{"$f":"Quarterly!Z179-Quarterly!Z175","v":0.37},{"$f":"((Quarterly!AA179/Quarterly!AA175)-1)","v":-4.205375234162978E-3},{"$f":"((Quarterly!AB179/Quarterly!AB175)-1)","v":-1.8624276210946533E-2},{"$f":"Quarterly!AC179-Quarterly!AC175","v":5.5},{"$f":"Quarterly!AD179-Quarterly!AD175","v":-27.8},{"$f":"(Quarterly!AE179-Quarterly!AE175)*100","v":24},{"$f":"(Quarterly!AF179-Quarterly!AF175)*100","v":37},{"$f":"(Quarterly!AG179-Quarterly!AG175)*100","v":14.999999999999991},{"$f":"((Quarterly!AH179/Quarterly!AH175)-1)","v":0.41334250343878964},{"$f":"((Quarterly!AI179/Quarterly!AI175)-1)","v":0.38464040015744172},"--","--","--",{"$f":"((Quarterly!AM179/Quarterly!AM175)-1)","v":-3.9281339149980221E-3},{"$f":"((Quarterly!AN179/Quarterly!AN175)-1)","v":-6.5636454456551308E-3},{"$f":"((Quarterly!AO179/Quarterly!AO175)-1)","v":4.0282419453053775E-2},{"$f":"(Quarterly!AP179-Quarterly!AP175)*100","v":4.3333333333333446},{"$f":"Quarterly!AQ179-Quarterly!AQ175","v":-13.300000000000004},{"$f":"Quarterly!AR179-Quarterly!AR175","v":-14.666666666666671},{"$f":"Quarterly!AS179-Quarterly!AS175","v":6},{"$f":"Quarterly!AT179-Quarterly!AT175","v":-12.533333333333339},{"$f":"Quarterly!AU179-Quarterly!AU175","v":-6.1999999999999886},{"$f":"Quarterly!AV179-Quarterly!AV175","v":-4.6666666666666714},{"$f":"Quarterly!AW179-Quarterly!AW175","v":-5.1666666666666714},{"$f":"Quarterly!AX179-Quarterly!AX175","v":-18.500000000000007},{"$f":"Quarterly!AY179-Quarterly!AY175","v":-17.533333333333339},{"$f":"Quarterly!AZ179-Quarterly!AZ175","v":-18.666666666666671},{"$f":"Quarterly!BA179-Quarterly!BA175","v":-5.3333333333333357},{"$f":"Quarterly!BB179-Quarterly!BB175","v":-7.4666666666666686},{"$f":"((Quarterly!BC179/Quarterly!BC175)-1)","v":-3.4726028133294728E-2},{"$f":"((Quarterly!BD179/Quarterly!BD175)-1)","v":1.3012810118371965E-2},{"$f":"((Quarterly!BE179/Quarterly!BE175)-1)","v":9.005449867298676E-3},{"$f":"((Quarterly!BF179/Quarterly!BF175)-1)","v":5.1074938155179161E-2},{"$f":"((Quarterly!BG179/Quarterly!BG175)-1)","v":2.5497725227794144E-2},{"$f":"((Quarterly!BH179/Quarterly!BH175)-1)","v":1.6609064020195019E-2},{"$f":"((Quarterly!BI179/Quarterly!BI175)-1)","v":2.4934482275163594E-2},{"$f":"((Quarterly!BJ179/Quarterly!BJ175)-1)","v":-0.14368406404071465},{"$f":"((Quarterly!BK179/Quarterly!BK175)-1)","v":0.72549019607843146},null,{"$f":"((Quarterly!BM179/Quarterly!BM175)-1)","v":2.3129426915647233E-2},{"$f":"((Quarterly!BN179/Quarterly!BN175)-1)","v":2.0728922309419806E-2},null,null,null,null,null,{"$f":"((Quarterly!BT179/Quarterly!BT175)-1)","v":8.8042396316004856E-2},{"$f":"Quarterly!BU179-Quarterly!BU175","v":0.6751699999999996},{"$f":"Quarterly!BV179-Quarterly!BV175","v":0.63682999999999979},{"$f":"((Quarterly!BW179/Quarterly!BW175)-1)","v":6.4874341329373086E-2},{"$f":"((Quarterly!BX179/Quarterly!BX175)-1)","v":-3.2549728752260365E-2},{"$f":"((Quarterly!BY179/Quarterly!BY175)-1)","v":-1.104536489151875E-2},{"$f":"((Quarterly!BZ179/Quarterly!BZ175)-1)","v":0.12197600472038284},{"$f":"((Quarterly!CA179/Quarterly!CA175)-1)","v":-5.9527501596278398E-2},{"$f":"((Quarterly!CB179/Quarterly!CB175)-1)","v":4.8461794824015803E-2},{"$f":"((Quarterly!CC179/Quarterly!CC175)-1)","v":4.8775823676308727E-2},"--","--",null,"--","--",null,{"$f":"((Quarterly!CJ179/Quarterly!CJ175)-1)","v":7.9497907949790836E-2},{"$f":"((Quarterly!CK179/Quarterly!CK175)-1)","v":6.1087473061833153E-2},{"$f":"((Quarterly!CL179/Quarterly!CL175)-1)","v":4.0154605969508372E-2},{"$f":"((Quarterly!CM179/Quarterly!CM175)-1)","v":-1.6423357664233529E-2},{"$f":"((Quarterly!CN179/Quarterly!CN175)-1)","v":3.436774666560316E-2},{"$f":"((Quarterly!CO179/Quarterly!CO175)-1)","v":0.10343515082310395},{"$f":"((Quarterly!CP179/Quarterly!CP175)-1)","v":0.12689169273340384},{"$f":"((Quarterly!CQ179/Quarterly!CQ175)-1)","v":1.0469727054500222E-2},{"$f":"((Quarterly!CR179/Quarterly!CR175)-1)","v":0.12541965229556928},{"$f":"Quarterly!CS179-Quarterly!CS175","v":-17.86666666666666},"--",null,null,null,null,null,{"$f":"((Quarterly!CZ179/Quarterly!CZ175)-1)","v":3.4097589653145244E-2},{"$f":"((Quarterly!DA179/Quarterly!DA175)-1)","v":2.6545387042880897E-2},null,null,null,null,null,{"$f":"((Quarterly!DG179/Quarterly!DG175)-1)","v":1.615508885298711E-3},{"$f":"((Quarterly!DH179-Quarterly!DH175)*60)","v":-17.999999999999829},{"$f":"Quarterly!DI179-Quarterly!DI175","v":-0.13333333333332575},{"$f":"(Quarterly!DJ179-Quarterly!DJ175)*100","v":20.000000000000018},{"$f":"(Quarterly!DK179-Quarterly!DK175)*100","v":20.000000000000018},{"$f":"((Quarterly!DL179/Quarterly!DL175)-1)","v":-1.5442154575774469E-2},null,null,null,{"$f":"((Quarterly!DP179/Quarterly!DP175)-1)","v":1.1372496234987484E-2},null,null,null,null,{"$f":"Quarterly!DU179-Quarterly!DU175","v":0.20000000000000107},{"$f":"((Quarterly!DV179/Quarterly!DV175)-1)","v":-4.9714732132311035E-4},{"$f":"((Quarterly!DW179/Quarterly!DW175)-1)","v":-1.6923337282093165E-4},{"$f":"((Quarterly!DX179/Quarterly!DX175)-1)","v":-1.6051901147043912E-3},{"$f":"((Quarterly!DY179/Quarterly!DY175)-1)","v":9.7719869706840434E-3},{"$f":"((Quarterly!DZ179/Quarterly!DZ175)-1)","v":-5.1221434200157123E-3},{"$f":"((Quarterly!EA179/Quarterly!EA175)-1)","v":-5.1549555078246323E-3},{"$f":"((Quarterly!EB179/Quarterly!EB175)-1)","v":-5.0404765541470775E-3},{"$f":"((Quarterly!EC179/Quarterly!EC175)-1)","v":3.5776614310645272E-3},null,null,null,null,null,{"$f":"((Quarterly!EI179/Quarterly!EI175)-1)","v":1.5024020566323015E-2},{"$f":"((Quarterly!EJ179/Quarterly!EJ175)-1)","v":1.908022867143977E-2},{"$f":"((Quarterly!EK179/Quarterly!EK175)-1)","v":2.5024768642954109E-2},null,null,null,null,null,{"$f":"((Quarterly!EQ179/Quarterly!EQ175)-1)","v":6.2741064541012914E-2},{"$f":"((Quarterly!ER179/Quarterly!ER175)-1)","v":1.5175537938844963E-2},{"$f":"((Quarterly!ES179/Quarterly!ES175)-1)","v":9.1588334538446059E-3},null,null,null,null,null,{"$f":"(Quarterly!EY179-Quarterly!EY175)*100","v":-6.3333333333334352},{"$f":"(Quarterly!EZ179-Quarterly!EZ175)*100","v":-8.3333333333333037},{"$f":"(Quarterly!FA179-Quarterly!FA175)*100","v":-63.666666666666671},{"$f":"(Quarterly!FB179-Quarterly!FB175)*100","v":-44.999999999999844},"--",{"$f":"(Quarterly!FD179-Quarterly!FD175)*100","v":-124.99999999999991},{"$f":"(Quarterly!FE179-Quarterly!FE175)*100","v":-70.333333333333314},{"$f":"(Quarterly!FF179-Quarterly!FF175)*100","v":-159},{"$f":"(Quarterly!FG179-Quarterly!FG175)*100","v":-194.00000000000003},{"$f":"(Quarterly!FH179-Quarterly!FH175)*100","v":-178.99999999999991},{"$f":"(Quarterly!FI179-Quarterly!FI175)*100","v":-142.99999999999997},null,null,null,null,null,null,{"$f":"((Quarterly!FP179/Quarterly!FP175)-1)","v":5.1116818786405505E-2},{"$f":"((Quarterly!FQ179/Quarterly!FQ175)-1)","v":-1.4897789087575664E-4},{"$f":"((Quarterly!FR179/Quarterly!FR175)-1)","v":3.0841658217706458E-2},{"$f":"((Quarterly!FS179/Quarterly!FS175)-1)","v":-6.5657930289111044E-2},{"$f":"((Quarterly!FT179/Quarterly!FT175)-1)","v":6.6959980125751439E-2},{"$f":"((Quarterly!FU179/Quarterly!FU175)-1)","v":7.7154584441122331E-2},{"$f":"((Quarterly!FV179/Quarterly!FV175)-1)","v":3.9855046781967607E-2},{"$f":"((Quarterly!FW179/Quarterly!FW175)-1)","v":0.12469237491587415},{"$f":"((Quarterly!FX179/Quarterly!FX175)-1)","v":4.5796019113319097E-2},null,null,null,null,null,{"$f":"((Quarterly!GD179/Quarterly!GD175)-1)","v":1.1571395510290294E-4},{"$f":"((Quarterly!GE179/Quarterly!GE175)-1)","v":-3.9118593711314542E-2},{"$f":"((Quarterly!GF179/Quarterly!GF175)-1)","v":4.4099642117159332E-2},{"$f":"((Quarterly!GG179/Quarterly!GG175)-1)","v":2.7700186219739242E-2},{"$f":"((Quarterly!GH179/Quarterly!GH175)-1)","v":{"$error":"#DIV/0!"}},"--",{"$f":"((Quarterly!GJ179/Quarterly!GJ175)-1)","v":1.387760316851923},{"$f":"((Quarterly!GK179/Quarterly!GK175)-1)","v":7.3479361200802895E-2},"--"]
["01'Q2",{"$f":"((Quarterly!B180/Quarterly!B176)-1)","v":3.5029391905696761E-2},{"$f":"((Quarterly!C180/Quarterly!C176)-1)","v":9.3526082526704801E-3},{"$f":"((Quarterly!D180/Quarterly!D176)-1)","v":1.9409178122925308E-2},{"$f":"((Quarterly!E180/Quarterly!E176)-1)","v":2.5642917455710901E-2},{"$f":"((Quarterly!F180/Quarterly!F176)-1)","v":4.0019630588025379E-2},{"$f":"((Quarterly!G180/Quarterly!G176)-1)","v":1.4911746804625592E-2},{"$f":"((Quarterly!H180/Quarterly!H176)-1)","v":2.6255237002372533E-2},{"$f":"((Quarterly!I180/Quarterly!I176)-1)","v":-1.7779948149391323E-2},{"$f":"((Quarterly!J180/Quarterly!J176)-1)","v":-3.3180380141884624E-2},{"$f":"((Quarterly!K180/Quarterly!K176)-1)","v":5.0284525046460082E-3},{"$f":"((Quarterly!L180-Quarterly!L176))","v":-121.518},{"$f":"((Quarterly!M180/Quarterly!M176)-1)","v":-1.3255935803936691E-2},{"$f":"((Quarterly!N180/Quarterly!N176)-1)","v":-3.3234641301618906E-2},{"$f":"((Quarterly!O180/Quarterly!O176)-1)","v":4.0670134362455368E-2},{"$f":"((Quarterly!P180/Quarterly!P176)-1)","v":3.591297769862023E-2},{"$f":"((Quarterly!Q180/Quarterly!Q176)-1)","v":-0.36609845249888973},null,null,null,null,null,{"$f":"((Quarterly!W180/Quarterly!W176)-1)","v":-7.6154806491885108E-2},{"$f":"((Quarterly!X180/Quarterly!X176)-1)","v":-6.4503042596348981E-2},{"$f":"((Quarterly!Y180/Quarterly!Y176)-1)","v":3.0228574165779509E-2},{"$f":"Quarterly!Z180-Quarterly!Z176","v":0.42000000000000004},{"$f":"((Quarterly!AA180/Quarterly!AA176)-1)","v":6.4173660815650901E-2},{"$f":"((Quarterly!AB180/Quarterly!AB176)-1)","v":7.2675173821927119E-2},{"$f":"Quarterly!AC180-Quarterly!AC176","v":8.1000000000000014},{"$f":"Quarterly!AD180-Quarterly!AD176","v":-39.799999999999997},{"$f":"(Quarterly!AE180-Quarterly!AE176)*100","v":28.000000000000004},{"$f":"(Quarterly!AF180-Quarterly!AF176)*100","v":42.000000000000007},{"$f":"(Quarterly!AG180-Quarterly!AG176)*100","v":18.999999999999993},{"$f":"((Quarterly!AH180/Quarterly!AH176)-1)","v":0.28549453930164592},{"$f":"((Quarterly!AI180/Quarterly!AI176)-1)","v":0.24536873549294325},"--","--","--",{"$f":"((Quarterly!AM180/Quarterly!AM176)-1)","v":-2.85504550219009E-2},{"$f":"((Quarterly!AN180/Quarterly!AN176)-1)","v":-3.2990519678281816E-2},{"$f":"((Quarterly!AO180/Quarterly!AO176)-1)","v":1.2577956065690676E-2},{"$f":"(Quarterly!AP180-Quarterly!AP176)*100","v":4.3333333333333668},{"$f":"Quarterly!AQ180-Quarterly!AQ176","v":-10.700000000000003},{"$f":"Quarterly!AR180-Quarterly!AR176","v":-7.6666666666666643},{"$f":"Quarterly!AS180-Quarterly!AS176","v":1.5},{"$f":"Quarterly!AT180-Quarterly!AT176","v":-15.966666666666669},{"$f":"Quarterly!AU180-Quarterly!AU176","v":-7.5666666666666629},{"$f":"Quarterly!AV180-Quarterly!AV176","v":-7.5333333333333314},{"$f":"Quarterly!AW180-Quarterly!AW176","v":-7.3999999999999915},{"$f":"Quarterly!AX180-Quarterly!AX176","v":-6.2333333333333414},{"$f":"Quarterly!AY180-Quarterly!AY176","v":-21.300000000000018},{"$f":"Quarterly!AZ180-Quarterly!AZ176","v":-12.133333333333333},{"$f":"Quarterly!BA180-Quarterly!BA176","v":-8.5333333333333385},{"$f":"Quarterly!BB180-Quarterly!BB176","v":-11.13333333333334},{"$f":"((Quarterly!BC180/Quarterly!BC176)-1)","v":-0.15062175822945256},{"$f":"((Quarterly!BD180/Quarterly!BD176)-1)","v":1.1999200053329773E-3},{"$f":"((Quarterly!BE180/Quarterly!BE176)-1)","v":3.9054801199132738E-2},{"$f":"((Quarterly!BF180/Quarterly!BF176)-1)","v":5.2015711090502625E-2},{"$f":"((Quarterly!BG180/Quarterly!BG176)-1)","v":2.2551906661199661E-2},{"$f":"((Quarterly!BH180/Quarterly!BH176)-1)","v":1.7933018107336718E-2},{"$f":"((Quarterly!BI180/Quarterly!BI176)-1)","v":2.8823568151384205E-2},{"$f":"((Quarterly!BJ180/Quarterly!BJ176)-1)","v":-0.1393968688740298},{"$f":"((Quarterly!BK180/Quarterly!BK176)-1)","v":0.71186440677966112},null,{"$f":"((Quarterly!BM180/Quarterly!BM176)-1)","v":3.2947974044630124E-2},{"$f":"((Quarterly!BN180/Quarterly!BN176)-1)","v":3.2220018589771193E-2},null,null,null,null,null,{"$f":"((Quarterly!BT180/Quarterly!BT176)-1)","v":7.6479644483754106E-2},{"$f":"Quarterly!BU180-Quarterly!BU176","v":0.72301000000000037},{"$f":"Quarterly!BV180-Quarterly!BV176","v":0.75788999999999973},{"$f":"((Quarterly!BW180/Quarterly!BW176)-1)","v":6.3795183780892106E-2},{"$f":"((Quarterly!BX180/Quarterly!BX176)-1)","v":2.7310924369747802E-2},{"$f":"((Quarterly!BY180/Quarterly!BY176)-1)","v":5.1994906621392056E-2},{"$f":"((Quarterly!BZ180/Quarterly!BZ176)-1)","v":0.10578172025978128},{"$f":"((Quarterly!CA180/Quarterly!CA176)-1)","v":-3.5566583953680508E-2},{"$f":"((Quarterly!CB180/Quarterly!CB176)-1)","v":6.8905690233580508E-2},{"$f":"((Quarterly!CC180/Quarterly!CC176)-1)","v":8.262715646596952E-2},"--","--",null,"--","--",null,{"$f":"((Quarterly!CJ180/Quarterly!CJ176)-1)","v":7.4267362505018086E-2},{"$f":"((Quarterly!CK180/Quarterly!CK176)-1)","v":4.9285153425743689E-2},{"$f":"((Quarterly!CL180/Quarterly!CL176)-1)","v":-4.1754980924120333E-2},{"$f":"((Quarterly!CM180/Quarterly!CM176)-1)","v":4.963582411653622E-2},{"$f":"((Quarterly!CN180/Quarterly!CN176)-1)","v":2.2859806969985463E-2},{"$f":"((Quarterly!CO180/Quarterly!CO176)-1)","v":0.14232237777944157},{"$f":"((Quarterly!CP180/Quarterly!CP176)-1)","v":0.12239951031824026},{"$f":"((Quarterly!CQ180/Quarterly!CQ176)-1)","v":1.0402575042334217E-2},{"$f":"((Quarterly!CR180/Quarterly!CR176)-1)","v":0.12246642509928951},{"$f":"Quarterly!CS180-Quarterly!CS176","v":-17.766666666666666},"--",null,null,null,null,null,{"$f":"((Quarterly!CZ180/Quarterly!CZ176)-1)","v":3.3249076414544332E-2},{"$f":"((Quarterly!DA180/Quarterly!DA176)-1)","v":2.6378896882493841E-2},null,null,null,null,null,{"$f":"((Quarterly!DG180/Quarterly!DG176)-1)","v":-9.0177133655393593E-3},{"$f":"((Quarterly!DH180-Quarterly!DH176)*60)","v":-19.999999999999716},{"$f":"Quarterly!DI180-Quarterly!DI176","v":-0.39999999999999147},{"$f":"(Quarterly!DJ180-Quarterly!DJ176)*100","v":60.000000000000057},{"$f":"(Quarterly!DK180-Quarterly!DK176)*100","v":46.666666666666586},{"$f":"((Quarterly!DL180/Quarterly!DL176)-1)","v":-3.6531528926416534E-2},null,null,null,{"$f":"((Quarterly!DP180/Quarterly!DP176)-1)","v":2.8074214893976102E-3},null,null,null,null,{"$f":"Quarterly!DU180-Quarterly!DU176","v":0.20000000000000018},{"$f":"((Quarterly!DV180/Quarterly!DV176)-1)","v":-7.5822196948157616E-3},{"$f":"((Quarterly!DW180/Quarterly!DW176)-1)","v":-7.0277072105223715E-3},{"$f":"((Quarterly!DX180/Quarterly!DX176)-1)","v":-1.4525691699604715E-2},{"$f":"((Quarterly!DY180/Quarterly!DY176)-1)","v":-1.7359212684527003E-2},{"$f":"((Quarterly!DZ180/Quarterly!DZ176)-1)","v":-1.3626106578718988E-2},{"$f":"((Quarterly!EA180/Quarterly!EA176)-1)","v":-1.4233576642335932E-2},{"$f":"((Quarterly!EB180/Quarterly!EB176)-1)","v":-1.2113870381586733E-2},{"$f":"((Quarterly!EC180/Quarterly!EC176)-1)","v":1.2330980525554924E-2},null,null,null,null,null,{"$f":"((Quarterly!EI180/Quarterly!EI176)-1)","v":-1.8573933549695942E-3},{"$f":"((Quarterly!EJ180/Quarterly!EJ176)-1)","v":1.0903911216805895E-2},{"$f":"((Quarterly!EK180/Quarterly!EK176)-1)","v":1.384224981208293E-2},null,null,null,null,null,{"$f":"((Quarterly!EQ180/Quarterly!EQ176)-1)","v":3.1810148952284845E-2},{"$f":"((Quarterly!ER180/Quarterly!ER176)-1)","v":1.6027088036117298E-2},{"$f":"((Quarterly!ES180/Quarterly!ES176)-1)","v":7.6904590242730109E-3},null,null,null,null,null,{"$f":"(Quarterly!EY180-Quarterly!EY176)*100","v":-190.6666666666668},{"$f":"(Quarterly!EZ180-Quarterly!EZ176)*100","v":-194.66666666666663},{"$f":"(Quarterly!FA180-Quarterly!FA176)*100","v":-54.333333333333215},{"$f":"(Quarterly!FB180-Quarterly!FB176)*100","v":-55.666666666666664},"--",{"$f":"(Quarterly!FD180-Quarterly!FD176)*100","v":-119.00000000000004},{"$f":"(Quarterly!FE180-Quarterly!FE176)*100","v":-205.33333333333337},{"$f":"(Quarterly!FF180-Quarterly!FF176)*100","v":-243.6666666666666},{"$f":"(Quarterly!FG180-Quarterly!FG176)*100","v":-237.33333333333331},{"$f":"(Quarterly!FH180-Quarterly!FH176)*100","v":-158.3333333333334},{"$f":"(Quarterly!FI180-Quarterly!FI176)*100","v":-90.666666666666714},null,null,null,null,null,null,{"$f":"((Quarterly!FP180/Quarterly!FP176)-1)","v":4.0931195965417944E-2},{"$f":"((Quarterly!FQ180/Quarterly!FQ176)-1)","v":-1.4093240881674074E-4},{"$f":"((Quarterly!FR180/Quarterly!FR176)-1)","v":-4.0742815976947067E-2},{"$f":"((Quarterly!FS180/Quarterly!FS176)-1)","v":-6.4434369756898535E-2},{"$f":"((Quarterly!FT180/Quarterly!FT176)-1)","v":6.8103838442069575E-2},{"$f":"((Quarterly!FU180/Quarterly!FU176)-1)","v":8.2675259272300128E-2},{"$f":"((Quarterly!FV180/Quarterly!FV176)-1)","v":-2.7428769459714619E-2},{"$f":"((Quarterly!FW180/Quarterly!FW176)-1)","v":1.6217437261320411E-2},{"$f":"((Quarterly!FX180/Quarterly!FX176)-1)","v":-1.5257280205989598E-2},null,null,null,null,null,{"$f":"((Quarterly!GD180/Quarterly!GD176)-1)","v":-3.1268094962362269E-2},{"$f":"((Quarterly!GE180/Quarterly!GE176)-1)","v":1.8929016189290104E-2},{"$f":"((Quarterly!GF180/Quarterly!GF176)-1)","v":6.3734521616179096E-2},{"$f":"((Quarterly!GG180/Quarterly!GG176)-1)","v":3.2136992728125868E-2},{"$f":"((Quarterly!GH180/Quarterly!GH176)-1)","v":{"$error":"#DIV/0!"}},"--",{"$f":"((Quarterly!GJ180/Quarterly!GJ176)-1)","v":0.20938958543058495},{"$f":"((Quarterly!GK180/Quarterly!GK176)-1)","v":1.8724185406149507E-2},"--"]
["01'Q3",{"$f":"((Quarterly!B181/Quarterly!B177)-1)","v":2.7230750440866647E-2},{"$f":"((Quarterly!C181/Quarterly!C177)-1)","v":4.9517452701037801E-3},{"$f":"((Quarterly!D181/Quarterly!D177)-1)","v":1.3384197568943934E-2},{"$f":"((Quarterly!E181/Quarterly!E177)-1)","v":1.9481363005301677E-2},{"$f":"((Quarterly!F181/Quarterly!F177)-1)","v":3.430426390594854E-2},{"$f":"((Quarterly!G181/Quarterly!G177)-1)","v":1.2964840207010608E-2},{"$f":"((Quarterly!H181/Quarterly!H177)-1)","v":1.8563916719960272E-2},{"$f":"((Quarterly!I181/Quarterly!I177)-1)","v":-4.0738287023019626E-2},{"$f":"((Quarterly!J181/Quarterly!J177)-1)","v":-5.4934363499554051E-2},{"$f":"((Quarterly!K181/Quarterly!K177)-1)","v":2.7262628883923723E-2},{"$f":"((Quarterly!L181-Quarterly!L177))","v":-105.59799999999998},{"$f":"((Quarterly!M181/Quarterly!M177)-1)","v":-6.5339245142599478E-2},{"$f":"((Quarterly!N181/Quarterly!N177)-1)","v":-0.10224921354537786},{"$f":"((Quarterly!O181/Quarterly!O177)-1)","v":3.0803084766231281E-2},{"$f":"((Quarterly!P181/Quarterly!P177)-1)","v":3.732821369428807E-2},{"$f":"((Quarterly!Q181/Quarterly!Q177)-1)","v":-1.8470702286301708},null,null,null,null,null,{"$f":"((Quarterly!W181/Quarterly!W177)-1)","v":-8.7231352718078248E-2},{"$f":"((Quarterly!X181/Quarterly!X177)-1)","v":-7.5061525840853127E-2},{"$f":"((Quarterly!Y181/Quarterly!Y177)-1)","v":-1.0575791867808437E-2},{"$f":"Quarterly!Z181-Quarterly!Z177","v":0.48000000000000009},{"$f":"((Quarterly!AA181/Quarterly!AA177)-1)","v":-1.3787994796043423E-2},{"$f":"((Quarterly!AB181/Quarterly!AB177)-1)","v":5.025197956528249E-2},{"$f":"Quarterly!AC181-Quarterly!AC177","v":4.7999999999999972},{"$f":"Quarterly!AD181-Quarterly!AD177","v":-38.5},{"$f":"(Quarterly!AE181-Quarterly!AE177)*100","v":30.000000000000004},{"$f":"(Quarterly!AF181-Quarterly!AF177)*100","v":48.000000000000007},{"$f":"(Quarterly!AG181-Quarterly!AG177)*100","v":25},{"$f":"((Quarterly!AH181/Quarterly!AH177)-1)","v":0.12859675439792717},{"$f":"((Quarterly!AI181/Quarterly!AI177)-1)","v":0.1124390560363504},"--","--","--",{"$f":"((Quarterly!AM181/Quarterly!AM177)-1)","v":-4.1683486617803744E-2},{"$f":"((Quarterly!AN181/Quarterly!AN177)-1)","v":-4.8367145536340916E-2},{"$f":"((Quarterly!AO181/Quarterly!AO177)-1)","v":-1.587467395358122E-2},{"$f":"(Quarterly!AP181-Quarterly!AP177)*100","v":1.6666666666666385},{"$f":"Quarterly!AQ181-Quarterly!AQ177","v":-5.3666666666666742},{"$f":"Quarterly!AR181-Quarterly!AR177","v":-3.6666666666666643},{"$f":"Quarterly!AS181-Quarterly!AS177","v":-2.1666666666666643},{"$f":"Quarterly!AT181-Quarterly!AT177","v":-10.633333333333333},{"$f":"Quarterly!AU181-Quarterly!AU177","v":-1.9666666666666615},{"$f":"Quarterly!AV181-Quarterly!AV177","v":-1.6666666666666643},{"$f":"Quarterly!AW181-Quarterly!AW177","v":-9.2999999999999972},{"$f":"Quarterly!AX181-Quarterly!AX177","v":1.2999999999999972},{"$f":"Quarterly!AY181-Quarterly!AY177","v":-22.800000000000004},{"$f":"Quarterly!AZ181-Quarterly!AZ177","v":-1.4333333333333371},{"$f":"Quarterly!BA181-Quarterly!BA177","v":-5.3333333333333357},{"$f":"Quarterly!BB181-Quarterly!BB177","v":-10.799999999999997},{"$f":"((Quarterly!BC181/Quarterly!BC177)-1)","v":-0.18830386573231561},{"$f":"((Quarterly!BD181/Quarterly!BD177)-1)","v":-7.0088175446529899E-3},{"$f":"((Quarterly!BE181/Quarterly!BE177)-1)","v":2.7023999837082036E-2},{"$f":"((Quarterly!BF181/Quarterly!BF177)-1)","v":3.2907497826232479E-2},{"$f":"((Quarterly!BG181/Quarterly!BG177)-1)","v":2.8340584213797371E-2},{"$f":"((Quarterly!BH181/Quarterly!BH177)-1)","v":5.9750428714719916E-3},{"$f":"((Quarterly!BI181/Quarterly!BI177)-1)","v":4.4338262198404532E-3},{"$f":"((Quarterly!BJ181/Quarterly!BJ177)-1)","v":-0.2490073178379788},{"$f":"((Quarterly!BK181/Quarterly!BK177)-1)","v":0.76190476190476208},null,{"$f":"((Quarterly!BM181/Quarterly!BM177)-1)","v":1.693103180157074E-2},{"$f":"((Quarterly!BN181/Quarterly!BN177)-1)","v":1.4524569479920313E-2},null,null,null,null,null,{"$f":"((Quarterly!BT181/Quarterly!BT177)-1)","v":5.3026000818151786E-2},{"$f":"Quarterly!BU181-Quarterly!BU177","v":0.47775999999999996},{"$f":"Quarterly!BV181-Quarterly!BV177","v":0.47832000000000008},{"$f":"((Quarterly!BW181/Quarterly!BW177)-1)","v":6.6050663412794197E-2},{"$f":"((Quarterly!BX181/Quarterly!BX177)-1)","v":6.3843937042784349E-2},{"$f":"((Quarterly!BY181/Quarterly!BY177)-1)","v":2.4442538593481888E-2},{"$f":"((Quarterly!BZ181/Quarterly!BZ177)-1)","v":9.6353522867737684E-2},{"$f":"((Quarterly!CA181/Quarterly!CA177)-1)","v":-7.6476449622504439E-2},{"$f":"((Quarterly!CB181/Quarterly!CB177)-1)","v":5.715517127194758E-3},{"$f":"((Quarterly!CC181/Quarterly!CC177)-1)","v":6.0962253134992705E-2},"--","--",null,"--","--",null,{"$f":"((Quarterly!CJ181/Quarterly!CJ177)-1)","v":-1.813373630525128E-2},{"$f":"((Quarterly!CK181/Quarterly!CK177)-1)","v":3.0460595687455072E-2},{"$f":"((Quarterly!CL181/Quarterly!CL177)-1)","v":0.41664945259243957},{"$f":"((Quarterly!CM181/Quarterly!CM177)-1)","v":7.2589686098654793E-2},{"$f":"((Quarterly!CN181/Quarterly!CN177)-1)","v":3.494154111447223E-2},{"$f":"((Quarterly!CO181/Quarterly!CO177)-1)","v":0.17359938321462653},{"$f":"((Quarterly!CP181/Quarterly!CP177)-1)","v":9.4456500563715906E-2},{"$f":"((Quarterly!CQ181/Quarterly!CQ177)-1)","v":1.0321119850938087E-2},{"$f":"((Quarterly!CR181/Quarterly!CR177)-1)","v":7.9848618717555553E-2},{"$f":"Quarterly!CS181-Quarterly!CS177","v":-18.899999999999991},"--",null,null,null,null,null,{"$f":"((Quarterly!CZ181/Quarterly!CZ177)-1)","v":2.6782273603082718E-2},{"$f":"((Quarterly!DA181/Quarterly!DA177)-1)","v":2.6571376214037157E-2},null,null,null,null,null,{"$f":"((Quarterly!DG181/Quarterly!DG177)-1)","v":-1.8018018018018056E-2},{"$f":"((Quarterly!DH181-Quarterly!DH177)*60)","v":-22.000000000000028},{"$f":"Quarterly!DI181-Quarterly!DI177","v":-0.20000000000000284},{"$f":"(Quarterly!DJ181-Quarterly!DJ177)*100","v":116.66666666666652},{"$f":"(Quarterly!DK181-Quarterly!DK177)*100","v":83.3333333333333},{"$f":"((Quarterly!DL181/Quarterly!DL177)-1)","v":-5.9954860240359675E-2},null,null,null,{"$f":"((Quarterly!DP181/Quarterly!DP177)-1)","v":-2.1367306006028208E-3},null,null,null,null,{"$f":"Quarterly!DU181-Quarterly!DU177","v":1.1333333333333329},{"$f":"((Quarterly!DV181/Quarterly!DV177)-1)","v":-1.5909198841240535E-2},{"$f":"((Quarterly!DW181/Quarterly!DW177)-1)","v":-1.7861735206789353E-2},{"$f":"((Quarterly!DX181/Quarterly!DX177)-1)","v":-2.951897415869309E-2},{"$f":"((Quarterly!DY181/Quarterly!DY177)-1)","v":-4.7688243064729297E-2},{"$f":"((Quarterly!DZ181/Quarterly!DZ177)-1)","v":-2.3579201934703753E-2},{"$f":"((Quarterly!EA181/Quarterly!EA177)-1)","v":-2.366684825373766E-2},{"$f":"((Quarterly!EB181/Quarterly!EB177)-1)","v":-2.3360964581763288E-2},{"$f":"((Quarterly!EC181/Quarterly!EC177)-1)","v":1.1870175147339568E-2},null,null,null,null,null,{"$f":"((Quarterly!EI181/Quarterly!EI177)-1)","v":-7.3147382763422142E-3},{"$f":"((Quarterly!EJ181/Quarterly!EJ177)-1)","v":7.0402027839062686E-3},{"$f":"((Quarterly!EK181/Quarterly!EK177)-1)","v":7.524555603278138E-3},null,null,null,null,null,{"$f":"((Quarterly!EQ181/Quarterly!EQ177)-1)","v":-2.9902815848492637E-3},{"$f":"((Quarterly!ER181/Quarterly!ER177)-1)","v":1.5284333558102992E-2},{"$f":"((Quarterly!ES181/Quarterly!ES177)-1)","v":7.6683441169422828E-3},null,null,null,null,null,{"$f":"(Quarterly!EY181-Quarterly!EY177)*100","v":-293.33333333333337},{"$f":"(Quarterly!EZ181-Quarterly!EZ177)*100","v":-302.33333333333331},{"$f":"(Quarterly!FA181-Quarterly!FA177)*100","v":-50},{"$f":"(Quarterly!FB181-Quarterly!FB177)*100","v":-37.000000000000014},"--",{"$f":"(Quarterly!FD181-Quarterly!FD177)*100","v":-106.33333333333334},{"$f":"(Quarterly!FE181-Quarterly!FE177)*100","v":-284.66666666666669},{"$f":"(Quarterly!FF181-Quarterly!FF177)*100","v":-282.66666666666669},{"$f":"(Quarterly!FG181-Quarterly!FG177)*100","v":-257.66666666666657},{"$f":"(Quarterly!FH181-Quarterly!FH177)*100","v":-157.33333333333323},{"$f":"(Quarterly!FI181-Quarterly!FI177)*100","v":-91.333333333333314},null,null,null,null,null,null,{"$f":"((Quarterly!FP181/Quarterly!FP177)-1)","v":4.3085225995052934E-2},{"$f":"((Quarterly!FQ181/Quarterly!FQ177)-1)","v":-2.7377956718677154E-4},{"$f":"((Quarterly!FR181/Quarterly!FR177)-1)","v":-1.1635077763241908E-2},{"$f":"((Quarterly!FS181/Quarterly!FS177)-1)","v":-1.4119295141192922E-2},{"$f":"((Quarterly!FT181/Quarterly!FT177)-1)","v":5.3097232063324284E-2},{"$f":"((Quarterly!FU181/Quarterly!FU177)-1)","v":5.3531223703160657E-2},{"$f":"((Quarterly!FV181/Quarterly!FV177)-1)","v":-9.9679396880984594E-2},{"$f":"((Quarterly!FW181/Quarterly!FW177)-1)","v":-1.4171329707343916E-2},{"$f":"((Quarterly!FX181/Quarterly!FX177)-1)","v":-7.7707296243440305E-2},null,null,null,null,null,{"$f":"((Quarterly!GD181/Quarterly!GD177)-1)","v":-0.1588489511963741},{"$f":"((Quarterly!GE181/Quarterly!GE177)-1)","v":-0.1750706368180831},{"$f":"((Quarterly!GF181/Quarterly!GF177)-1)","v":-4.2731940604417096E-2},{"$f":"((Quarterly!GG181/Quarterly!GG177)-1)","v":-6.1053559620894871E-2},{"$f":"((Quarterly!GH181/Quarterly!GH177)-1)","v":{"$error":"#DIV/0!"}},"--",{"$f":"((Quarterly!GJ181/Quarterly!GJ177)-1)","v":-0.3868898392567468},{"$f":"((Quarterly!GK181/Quarterly!GK177)-1)","v":2.1518397764322295E-2},"--"]
["01'Q4",{"$f":"((Quarterly!B182/Quarterly!B178)-1)","v":2.187029860245393E-2},{"$f":"((Quarterly!C182/Quarterly!C178)-1)","v":2.0451383187356509E-3},{"$f":"((Quarterly!D182/Quarterly!D178)-1)","v":1.4803084096733476E-2},{"$f":"((Quarterly!E182/Quarterly!E178)-1)","v":2.5920203434567801E-2},{"$f":"((Quarterly!F182/Quarterly!F178)-1)","v":0.11283928026837464},{"$f":"((Quarterly!G182/Quarterly!G178)-1)","v":1.1802008102871353E-2},{"$f":"((Quarterly!H182/Quarterly!H178)-1)","v":1.3550787577173207E-2},{"$f":"((Quarterly!I182/Quarterly!I178)-1)","v":-7.0983381778976562E-2},{"$f":"((Quarterly!J182/Quarterly!J178)-1)","v":-5.2227187955889098E-2},{"$f":"((Quarterly!K182/Quarterly!K178)-1)","v":1.9621728855623077E-2},{"$f":"((Quarterly!L182-Quarterly!L178))","v":-161.26},{"$f":"((Quarterly!M182/Quarterly!M178)-1)","v":-7.7771922493533707E-2},{"$f":"((Quarterly!N182/Quarterly!N178)-1)","v":-0.1226693305877995},{"$f":"((Quarterly!O182/Quarterly!O178)-1)","v":3.580084921559723E-2},{"$f":"((Quarterly!P182/Quarterly!P178)-1)","v":4.9184424653193615E-2},{"$f":"((Quarterly!Q182/Quarterly!Q178)-1)","v":-1.2319331993939353},null,null,null,null,null,{"$f":"((Quarterly!W182/Quarterly!W178)-1)","v":-8.4942084942084994E-2},{"$f":"((Quarterly!X182/Quarterly!X178)-1)","v":-7.9286010792860018E-2},{"$f":"((Quarterly!Y182/Quarterly!Y178)-1)","v":-4.4178006490821931E-2},{"$f":"Quarterly!Z182-Quarterly!Z178","v":0.64999999999999991},{"$f":"((Quarterly!AA182/Quarterly!AA178)-1)","v":-2.7271166662682367E-3},{"$f":"((Quarterly!AB182/Quarterly!AB178)-1)","v":0.170661357480697},{"$f":"Quarterly!AC182-Quarterly!AC178","v":0.80000000000000071},{"$f":"Quarterly!AD182-Quarterly!AD178","v":-37.200000000000003},{"$f":"(Quarterly!AE182-Quarterly!AE178)*100","v":27.999999999999979},{"$f":"(Quarterly!AF182-Quarterly!AF178)*100","v":64.999999999999986},{"$f":"(Quarterly!AG182-Quarterly!AG178)*100","v":28.999999999999993},{"$f":"((Quarterly!AH182/Quarterly!AH178)-1)","v":0.19842904970383723},{"$f":"((Quarterly!AI182/Quarterly!AI178)-1)","v":0.14821327759186764},"--","--","--",{"$f":"((Quarterly!AM182/Quarterly!AM178)-1)","v":-4.9965064143068894E-2},{"$f":"((Quarterly!AN182/Quarterly!AN178)-1)","v":-5.3114400219775648E-2},{"$f":"((Quarterly!AO182/Quarterly!AO178)-1)","v":-5.5522046963446869E-2},{"$f":"(Quarterly!AP182-Quarterly!AP178)*100","v":-2.9999999999999805},{"$f":"Quarterly!AQ182-Quarterly!AQ178","v":-3.6333333333333329},{"$f":"Quarterly!AR182-Quarterly!AR178","v":-1.6666666666666643},{"$f":"Quarterly!AS182-Quarterly!AS178","v":-6.6666666666666643},{"$f":"Quarterly!AT182-Quarterly!AT178","v":-8.9666666666666686},{"$f":"Quarterly!AU182-Quarterly!AU178","v":-1.6333333333333329},{"$f":"Quarterly!AV182-Quarterly!AV178","v":-3.1666666666666714},{"$f":"Quarterly!AW182-Quarterly!AW178","v":-4.7666666666666728},{"$f":"Quarterly!AX182-Quarterly!AX178","v":-6.6666666666662877E-2},{"$f":"Quarterly!AY182-Quarterly!AY178","v":-25.700000000000003},{"$f":"Quarterly!AZ182-Quarterly!AZ178","v":-1.4666666666666757},{"$f":"Quarterly!BA182-Quarterly!BA178","v":-2.1000000000000085},{"$f":"Quarterly!BB182-Quarterly!BB178","v":-11.733333333333327},{"$f":"((Quarterly!BC182/Quarterly!BC178)-1)","v":-0.19258835312634137},{"$f":"((Quarterly!BD182/Quarterly!BD178)-1)","v":2.7099196277495796E-3},{"$f":"((Quarterly!BE182/Quarterly!BE178)-1)","v":3.3389117923180667E-2},{"$f":"((Quarterly!BF182/Quarterly!BF178)-1)","v":3.6503924437940594E-2},{"$f":"((Quarterly!BG182/Quarterly!BG178)-1)","v":3.1100390139441103E-2},{"$f":"((Quarterly!BH182/Quarterly!BH178)-1)","v":1.7418818371291778E-2},{"$f":"((Quarterly!BI182/Quarterly!BI178)-1)","v":5.2425064585517323E-3},{"$f":"((Quarterly!BJ182/Quarterly!BJ178)-1)","v":-0.46756265619867021},{"$f":"((Quarterly!BK182/Quarterly!BK178)-1)","v":0.82278481012658222},null,{"$f":"((Quarterly!BM182/Quarterly!BM178)-1)","v":4.4228318481545514E-2},{"$f":"((Quarterly!BN182/Quarterly!BN178)-1)","v":4.3733836815827765E-2},null,null,null,null,null,{"$f":"((Quarterly!BT182/Quarterly!BT178)-1)","v":3.9213268194538742E-2},{"$f":"Quarterly!BU182-Quarterly!BU178","v":0.54391999999999996},{"$f":"Quarterly!BV182-Quarterly!BV178","v":0.62339000000000055},{"$f":"((Quarterly!BW182/Quarterly!BW178)-1)","v":6.5264727192719585E-2},{"$f":"((Quarterly!BX182/Quarterly!BX178)-1)","v":1.6839378238342029E-2},{"$f":"((Quarterly!BY182/Quarterly!BY178)-1)","v":3.4431770173215082E-2},{"$f":"((Quarterly!BZ182/Quarterly!BZ178)-1)","v":8.6693183872717405E-2},{"$f":"((Quarterly!CA182/Quarterly!CA178)-1)","v":0.12953441583514524},{"$f":"((Quarterly!CB182/Quarterly!CB178)-1)","v":4.320037983015057E-3},{"$f":"((Quarterly!CC182/Quarterly!CC178)-1)","v":0.11433198203849093},"--","--",null,"--","--",null,{"$f":"((Quarterly!CJ182/Quarterly!CJ178)-1)","v":-7.8683834048641765E-3},{"$f":"((Quarterly!CK182/Quarterly!CK178)-1)","v":2.4287910573230986E-2},{"$f":"((Quarterly!CL182/Quarterly!CL178)-1)","v":-8.4118755890669195E-2},{"$f":"((Quarterly!CM182/Quarterly!CM178)-1)","v":2.6136673019330203E-2},{"$f":"((Quarterly!CN182/Quarterly!CN178)-1)","v":1.8704673575666853E-2},{"$f":"((Quarterly!CO182/Quarterly!CO178)-1)","v":0.21623173839692766},{"$f":"((Quarterly!CP182/Quarterly!CP178)-1)","v":8.8784184500442676E-2},{"$f":"((Quarterly!CQ182/Quarterly!CQ178)-1)","v":1.018286587875572E-2},{"$f":"((Quarterly!CR182/Quarterly!CR178)-1)","v":5.3501517567044354E-2},{"$f":"Quarterly!CS182-Quarterly!CS178","v":-18.799999999999983},"--",null,null,null,null,null,{"$f":"((Quarterly!CZ182/Quarterly!CZ178)-1)","v":1.8748804285440901E-2},{"$f":"((Quarterly!DA182/Quarterly!DA178)-1)","v":2.714025500910755E-2},null,null,null,null,null,{"$f":"((Quarterly!DG182/Quarterly!DG178)-1)","v":-2.8332260141661347E-2},{"$f":"((Quarterly!DH182-Quarterly!DH178)*60)","v":-21.999999999999602},{"$f":"Quarterly!DI182-Quarterly!DI178","v":-0.19999999999998863},{"$f":"(Quarterly!DJ182-Quarterly!DJ178)*100","v":250.00000000000026},{"$f":"(Quarterly!DK182-Quarterly!DK178)*100","v":160},{"$f":"((Quarterly!DL182/Quarterly!DL178)-1)","v":-7.9302325581395383E-2},null,null,null,{"$f":"((Quarterly!DP182/Quarterly!DP178)-1)","v":-1.0143808731118753E-2},null,null,null,null,{"$f":"Quarterly!DU182-Quarterly!DU178","v":1.666666666666667},{"$f":"((Quarterly!DV182/Quarterly!DV178)-1)","v":-2.920643966376979E-2},{"$f":"((Quarterly!DW182/Quarterly!DW178)-1)","v":-2.8790199081163759E-2},{"$f":"((Quarterly!DX182/Quarterly!DX178)-1)","v":-3.6513545347467646E-2},{"$f":"((Quarterly!DY182/Quarterly!DY178)-1)","v":-5.1323391105736915E-2},{"$f":"((Quarterly!DZ182/Quarterly!DZ178)-1)","v":-3.1746031746032077E-2},{"$f":"((Quarterly!EA182/Quarterly!EA178)-1)","v":-2.9964818633992363E-2},{"$f":"((Quarterly!EB182/Quarterly!EB178)-1)","v":-3.6171816126601364E-2},{"$f":"((Quarterly!EC182/Quarterly!EC178)-1)","v":-8.9218079286255136E-3},null,null,null,null,null,{"$f":"((Quarterly!EI182/Quarterly!EI178)-1)","v":-7.7752766020096065E-3},{"$f":"((Quarterly!EJ182/Quarterly!EJ178)-1)","v":8.7040997126608399E-3},{"$f":"((Quarterly!EK182/Quarterly!EK178)-1)","v":4.171417729168736E-3},null,null,null,null,null,{"$f":"((Quarterly!EQ182/Quarterly!EQ178)-1)","v":-4.5253320216428916E-2},{"$f":"((Quarterly!ER182/Quarterly!ER178)-1)","v":9.6390943734587786E-3},{"$f":"((Quarterly!ES182/Quarterly!ES178)-1)","v":7.1770334928245028E-4},null,null,null,null,null,{"$f":"(Quarterly!EY182-Quarterly!EY178)*100","v":-434.33333333333337},{"$f":"(Quarterly!EZ182-Quarterly!EZ178)*100","v":-434},{"$f":"(Quarterly!FA182-Quarterly!FA178)*100","v":-48.000000000000043},{"$f":"(Quarterly!FB182-Quarterly!FB178)*100","v":-29.000000000000004},"--",{"$f":"(Quarterly!FD182-Quarterly!FD178)*100","v":-85.999999999999943},{"$f":"(Quarterly!FE182-Quarterly!FE178)*100","v":-410.99999999999994},{"$f":"(Quarterly!FF182-Quarterly!FF178)*100","v":-365.66666666666657},{"$f":"(Quarterly!FG182-Quarterly!FG178)*100","v":-284.00000000000006},{"$f":"(Quarterly!FH182-Quarterly!FH178)*100","v":-146},{"$f":"(Quarterly!FI182-Quarterly!FI178)*100","v":-79.666666666666686},null,null,null,null,null,null,{"$f":"((Quarterly!FP182/Quarterly!FP178)-1)","v":3.6202752894909374E-2},{"$f":"((Quarterly!FQ182/Quarterly!FQ178)-1)","v":-1.1678009100790643E-4},{"$f":"((Quarterly!FR182/Quarterly!FR178)-1)","v":-2.773880837810927E-2},{"$f":"((Quarterly!FS182/Quarterly!FS178)-1)","v":3.0122793553338356E-2},{"$f":"((Quarterly!FT182/Quarterly!FT178)-1)","v":3.1161467727215619E-2},{"$f":"((Quarterly!FU182/Quarterly!FU178)-1)","v":2.9529343793060381E-2},{"$f":"((Quarterly!FV182/Quarterly!FV178)-1)","v":-0.16170220638318977},{"$f":"((Quarterly!FW182/Quarterly!FW178)-1)","v":-6.850394566599971E-3},{"$f":"((Quarterly!FX182/Quarterly!FX178)-1)","v":-7.8960276051183054E-2},null,null,null,null,null,{"$f":"((Quarterly!GD182/Quarterly!GD178)-1)","v":-0.36199708150927667},{"$f":"((Quarterly!GE182/Quarterly!GE178)-1)","v":-0.34899629920376807},{"$f":"((Quarterly!GF182/Quarterly!GF178)-1)","v":-0.14314361887098626},{"$f":"((Quarterly!GG182/Quarterly!GG178)-1)","v":-0.2174994816504251},{"$f":"((Quarterly!GH182/Quarterly!GH178)-1)","v":{"$error":"#DIV/0!"}},"--",{"$f":"((Quarterly!GJ182/Quarterly!GJ178)-1)","v":-0.58378350568503357},{"$f":"((Quarterly!GK182/Quarterly!GK178)-1)","v":-3.1549486896785717E-2},"--"]
["02'Q1",{"$f":"((Quarterly!B183/Quarterly!B179)-1)","v":3.1054457785554712E-2},{"$f":"((Quarterly!C183/Quarterly!C179)-1)","v":1.4155737872829421E-2},{"$f":"((Quarterly!D183/Quarterly!D179)-1)","v":1.1527288443291761E-2},{"$f":"((Quarterly!E183/Quarterly!E179)-1)","v":2.4669345823600475E-2},{"$f":"((Quarterly!F183/Quarterly!F179)-1)","v":8.1350992242081199E-2},{"$f":"((Quarterly!G183/Quarterly!G179)-1)","v":2.1637043469015182E-2},{"$f":"((Quarterly!H183/Quarterly!H179)-1)","v":1.4431918359245177E-2},{"$f":"((Quarterly!I183/Quarterly!I179)-1)","v":-8.2451486891363168E-2},{"$f":"((Quarterly!J183/Quarterly!J179)-1)","v":-5.8836028510286797E-2},{"$f":"((Quarterly!K183/Quarterly!K179)-1)","v":4.8541473526481527E-2},{"$f":"((Quarterly!L183-Quarterly!L179))","v":34.046000000000006},{"$f":"((Quarterly!M183/Quarterly!M179)-1)","v":-3.5211416629538972E-2},{"$f":"((Quarterly!N183/Quarterly!N179)-1)","v":-9.0586976761982574E-2},{"$f":"((Quarterly!O183/Quarterly!O179)-1)","v":0.10542116844916016},{"$f":"((Quarterly!P183/Quarterly!P179)-1)","v":4.9092201534008506E-2},{"$f":"((Quarterly!Q183/Quarterly!Q179)-1)","v":-2.7543048395783645},null,null,null,null,null,{"$f":"((Quarterly!W183/Quarterly!W179)-1)","v":-5.5408970976253302E-2},{"$f":"((Quarterly!X183/Quarterly!X179)-1)","v":-5.6050955414012615E-2},{"$f":"((Quarterly!Y183/Quarterly!Y179)-1)","v":-7.3066183770742921E-2},{"$f":"Quarterly!Z183-Quarterly!Z179","v":0.52999999999999992},{"$f":"((Quarterly!AA183/Quarterly!AA179)-1)","v":2.4033477943717241E-2},{"$f":"((Quarterly!AB183/Quarterly!AB179)-1)","v":0.29341115509453242},{"$f":"Quarterly!AC183-Quarterly!AC179","v":14.5},{"$f":"Quarterly!AD183-Quarterly!AD179","v":-15.7},{"$f":"(Quarterly!AE183-Quarterly!AE179)*100","v":26},{"$f":"(Quarterly!AF183-Quarterly!AF179)*100","v":52.999999999999993},{"$f":"(Quarterly!AG183-Quarterly!AG179)*100","v":40.000000000000014},{"$f":"((Quarterly!AH183/Quarterly!AH179)-1)","v":0.21654501216545019},{"$f":"((Quarterly!AI183/Quarterly!AI179)-1)","v":0.19240541753905482},{"$f":"((Quarterly!AJ183/Quarterly!AJ179)-1)","v":4.4416243654822329E-2},{"$f":"((Quarterly!AK183/Quarterly!AK179)-1)","v":3.7647058823529367E-2},{"$f":"((Quarterly!AL183/Quarterly!AL179)-1)","v":3.5388127853881457E-2},{"$f":"((Quarterly!AM183/Quarterly!AM179)-1)","v":-3.042955806562686E-2},{"$f":"((Quarterly!AN183/Quarterly!AN179)-1)","v":-2.9840081214650538E-2},{"$f":"((Quarterly!AO183/Quarterly!AO179)-1)","v":-6.6332943097325292E-2},{"$f":"(Quarterly!AP183-Quarterly!AP179)*100","v":-5.3333333333333455},{"$f":"Quarterly!AQ183-Quarterly!AQ179","v":7.6999999999999957},{"$f":"Quarterly!AR183-Quarterly!AR179","v":15.666666666666671},{"$f":"Quarterly!AS183-Quarterly!AS179","v":-11.833333333333336},{"$f":"Quarterly!AT183-Quarterly!AT179","v":3.8000000000000043},{"$f":"Quarterly!AU183-Quarterly!AU179","v":2.5333333333333314},{"$f":"Quarterly!AV183-Quarterly!AV179","v":4.06666666666667},{"$f":"Quarterly!AW183-Quarterly!AW179","v":-3.1333333333333258},{"$f":"Quarterly!AX183-Quarterly!AX179","v":19.966666666666669},{"$f":"Quarterly!AY183-Quarterly!AY179","v":-10.933333333333323},{"$f":"Quarterly!AZ183-Quarterly!AZ179","v":15.700000000000003},{"$f":"Quarterly!BA183-Quarterly!BA179","v":2.2666666666666728},{"$f":"Quarterly!BB183-Quarterly!BB179","v":3.4666666666666686},{"$f":"((Quarterly!BC183/Quarterly!BC179)-1)","v":-0.18943952441121947},{"$f":"((Quarterly!BD183/Quarterly!BD179)-1)","v":3.1787319754025045E-2},{"$f":"((Quarterly!BE183/Quarterly!BE179)-1)","v":-3.5539670906663545E-3},{"$f":"((Quarterly!BF183/Quarterly!BF179)-1)","v":1.8334546967647913E-2},{"$f":"((Quarterly!BG183/Quarterly!BG179)-1)","v":5.8612721048924232E-2},{"$f":"((Quarterly!BH183/Quarterly!BH179)-1)","v":5.8935118083385252E-3},{"$f":"((Quarterly!BI183/Quarterly!BI179)-1)","v":-3.8028094912400556E-2},{"$f":"((Quarterly!BJ183/Quarterly!BJ179)-1)","v":-0.28168687099283007},{"$f":"((Quarterly!BK183/Quarterly!BK179)-1)","v":0.60227272727272707},null,{"$f":"((Quarterly!BM183/Quarterly!BM179)-1)","v":2.2438721479579371E-2},{"$f":"((Quarterly!BN183/Quarterly!BN179)-1)","v":2.0244452324122975E-2},null,null,null,null,null,{"$f":"((Quarterly!BT183/Quarterly!BT179)-1)","v":3.1250792992650211E-2},{"$f":"Quarterly!BU183-Quarterly!BU179","v":0.21087999999999951},{"$f":"Quarterly!BV183-Quarterly!BV179","v":0.20058999999999827},{"$f":"((Quarterly!BW183/Quarterly!BW179)-1)","v":6.7874728950425123E-2},{"$f":"((Quarterly!BX183/Quarterly!BX179)-1)","v":7.352024922118372E-2},{"$f":"((Quarterly!BY183/Quarterly!BY179)-1)","v":2.5727961707219693E-2},{"$f":"((Quarterly!BZ183/Quarterly!BZ179)-1)","v":7.1873082654045239E-2},{"$f":"((Quarterly!CA183/Quarterly!CA179)-1)","v":-2.9833954065797474E-2},{"$f":"((Quarterly!CB183/Quarterly!CB179)-1)","v":-9.3225511482872059E-2},{"$f":"((Quarterly!CC183/Quarterly!CC179)-1)","v":2.9602815418814821E-2},"--","--",null,"--","--",null,{"$f":"((Quarterly!CJ183/Quarterly!CJ179)-1)","v":-3.0655391120507414E-2},{"$f":"((Quarterly!CK183/Quarterly!CK179)-1)","v":1.0776126620417825E-2},{"$f":"((Quarterly!CL183/Quarterly!CL179)-1)","v":0.33340214698596182},{"$f":"((Quarterly!CM183/Quarterly!CM179)-1)","v":8.9583885502252825E-2},{"$f":"((Quarterly!CN183/Quarterly!CN179)-1)","v":3.4658156070043633E-2},{"$f":"((Quarterly!CO183/Quarterly!CO179)-1)","v":0.23780614004829226},{"$f":"((Quarterly!CP183/Quarterly!CP179)-1)","v":7.7287940256099752E-2},{"$f":"((Quarterly!CQ183/Quarterly!CQ179)-1)","v":1.0048016968420059E-2},{"$f":"((Quarterly!CR183/Quarterly!CR179)-1)","v":2.9825447629881374E-2},{"$f":"Quarterly!CS183-Quarterly!CS179","v":0.86666666666666003},"--",null,null,null,null,null,{"$f":"((Quarterly!CZ183/Quarterly!CZ179)-1)","v":1.231760469964005E-2},{"$f":"((Quarterly!DA183/Quarterly!DA179)-1)","v":2.5316455696202445E-2},null,null,null,null,null,{"$f":"((Quarterly!DG183/Quarterly!DG179)-1)","v":-2.8709677419354707E-2},{"$f":"((Quarterly!DH183-Quarterly!DH179)*60)","v":-15.999999999999943},{"$f":"Quarterly!DI183-Quarterly!DI179","v":-0.53333333333333144},{"$f":"(Quarterly!DJ183-Quarterly!DJ179)*100","v":213.33333333333337},{"$f":"(Quarterly!DK183-Quarterly!DK179)*100","v":146.66666666666669},{"$f":"((Quarterly!DL183/Quarterly!DL179)-1)","v":-8.860387703152528E-2},null,null,null,{"$f":"((Quarterly!DP183/Quarterly!DP179)-1)","v":-1.4868105515587593E-2},null,null,null,null,{"$f":"Quarterly!DU183-Quarterly!DU179","v":2.2000000000000002},{"$f":"((Quarterly!DV183/Quarterly!DV179)-1)","v":-4.2586451918522061E-2},{"$f":"((Quarterly!DW183/Quarterly!DW179)-1)","v":-4.3693780829867634E-2},{"$f":"((Quarterly!DX183/Quarterly!DX179)-1)","v":-4.9673421537430928E-2},{"$f":"((Quarterly!DY183/Quarterly!DY179)-1)","v":-5.1612903225806361E-2},{"$f":"((Quarterly!DZ183/Quarterly!DZ179)-1)","v":-4.9064906490648985E-2},{"$f":"((Quarterly!EA183/Quarterly!EA179)-1)","v":-4.9410893837517844E-2},{"$f":"((Quarterly!EB183/Quarterly!EB179)-1)","v":-4.8203868590727672E-2},{"$f":"((Quarterly!EC183/Quarterly!EC179)-1)","v":-2.8171463351012838E-2},null,null,null,null,null,{"$f":"((Quarterly!EI183/Quarterly!EI179)-1)","v":5.5177053321033842E-3},{"$f":"((Quarterly!EJ183/Quarterly!EJ179)-1)","v":1.573088878254425E-2},{"$f":"((Quarterly!EK183/Quarterly!EK179)-1)","v":1.2861087163888785E-2},null,null,null,null,null,{"$f":"((Quarterly!EQ183/Quarterly!EQ179)-1)","v":-6.4360029034599475E-2},{"$f":"((Quarterly!ER183/Quarterly!ER179)-1)","v":4.2391789379740974E-3},{"$f":"((Quarterly!ES183/Quarterly!ES179)-1)","v":-9.5533795080049444E-4},null,null,null,null,null,{"$f":"(Quarterly!EY183-Quarterly!EY179)*100","v":-387.33333333333331},{"$f":"(Quarterly!EZ183-Quarterly!EZ179)*100","v":-386.00000000000006},{"$f":"(Quarterly!FA183-Quarterly!FA179)*100","v":-45.333333333333492},{"$f":"(Quarterly!FB183-Quarterly!FB179)*100","v":7.6666666666666217},"--",{"$f":"(Quarterly!FD183-Quarterly!FD179)*100","v":-4.3333333333334778},{"$f":"(Quarterly!FE183-Quarterly!FE179)*100","v":-309.33333333333337},{"$f":"(Quarterly!FF183-Quarterly!FF179)*100","v":-227.66666666666663},{"$f":"(Quarterly!FG183-Quarterly!FG179)*100","v":-138.33333333333337},{"$f":"(Quarterly!FH183-Quarterly!FH179)*100","v":-33.666666666666686},{"$f":"(Quarterly!FI183-Quarterly!FI179)*100","v":2.6666666666667282},null,null,null,null,null,null,{"$f":"((Quarterly!FP183/Quarterly!FP179)-1)","v":4.3700229082578756E-2},{"$f":"((Quarterly!FQ183/Quarterly!FQ179)-1)","v":-4.429732363619987E-5},{"$f":"((Quarterly!FR183/Quarterly!FR179)-1)","v":-6.0044156183585273E-2},{"$f":"((Quarterly!FS183/Quarterly!FS179)-1)","v":-4.912521688837479E-2},{"$f":"((Quarterly!FT183/Quarterly!FT179)-1)","v":4.1924430039240956E-2},{"$f":"((Quarterly!FU183/Quarterly!FU179)-1)","v":5.866853314592646E-2},{"$f":"((Quarterly!FV183/Quarterly!FV179)-1)","v":-0.14801017704167108},{"$f":"((Quarterly!FW183/Quarterly!FW179)-1)","v":5.8137925182979E-2},{"$f":"((Quarterly!FX183/Quarterly!FX179)-1)","v":-6.0184820958478658E-2},null,null,null,null,null,{"$f":"((Quarterly!GD183/Quarterly!GD179)-1)","v":-0.24991322457480036},{"$f":"((Quarterly!GE183/Quarterly!GE179)-1)","v":-0.18320020613244004},{"$f":"((Quarterly!GF183/Quarterly!GF179)-1)","v":-0.18445146014206781},{"$f":"((Quarterly!GG183/Quarterly!GG179)-1)","v":-0.19932049830124587},{"$f":"((Quarterly!GH183/Quarterly!GH179)-1)","v":{"$error":"#DIV/0!"}},"--",{"$f":"((Quarterly!GJ183/Quarterly!GJ179)-1)","v":-0.6004066563219006},{"$f":"((Quarterly!GK183/Quarterly!GK179)-1)","v":-8.0725144297211449E-2},"--"]
["02'Q2",{"$f":"((Quarterly!B184/Quarterly!B180)-1)","v":2.7858366458665129E-2},{"$f":"((Quarterly!C184/Quarterly!C180)-1)","v":1.4374086912011474E-2},{"$f":"((Quarterly!D184/Quarterly!D180)-1)","v":1.1370282711771651E-2},{"$f":"((Quarterly!E184/Quarterly!E180)-1)","v":2.7263789754697898E-2},{"$f":"((Quarterly!F184/Quarterly!F180)-1)","v":9.2874608553901616E-2},{"$f":"((Quarterly!G184/Quarterly!G180)-1)","v":1.7391304347826209E-2},{"$f":"((Quarterly!H184/Quarterly!H180)-1)","v":1.7727357435706415E-2},{"$f":"((Quarterly!I184/Quarterly!I180)-1)","v":-7.3595223188262726E-2},{"$f":"((Quarterly!J184/Quarterly!J180)-1)","v":-1.8848713183585053E-2},{"$f":"((Quarterly!K184/Quarterly!K180)-1)","v":5.8181113651335048E-2},{"$f":"((Quarterly!L184-Quarterly!L180))","v":39.280999999999999},{"$f":"((Quarterly!M184/Quarterly!M180)-1)","v":2.5333979250500294E-2},{"$f":"((Quarterly!N184/Quarterly!N180)-1)","v":-3.3757225624132414E-2},{"$f":"((Quarterly!O184/Quarterly!O180)-1)","v":0.17350465512394408},{"$f":"((Quarterly!P184/Quarterly!P180)-1)","v":3.8696212145721498E-2},{"$f":"((Quarterly!Q184/Quarterly!Q180)-1)","v":-3.8721074357896548},null,null,null,null,null,{"$f":"((Quarterly!W184/Quarterly!W180)-1)","v":-1.8918918918918948E-2},{"$f":"((Quarterly!X184/Quarterly!X180)-1)","v":-2.3850823937554111E-2},{"$f":"((Quarterly!Y184/Quarterly!Y180)-1)","v":-8.3203113168587195E-2},{"$f":"Quarterly!Z184-Quarterly!Z180","v":0.59000000000000008},{"$f":"((Quarterly!AA184/Quarterly!AA180)-1)","v":8.437565475469655E-2},{"$f":"((Quarterly!AB184/Quarterly!AB180)-1)","v":0.24696899566922492},{"$f":"Quarterly!AC184-Quarterly!AC180","v":2.8000000000000007},{"$f":"Quarterly!AD184-Quarterly!AD180","v":5.5},{"$f":"(Quarterly!AE184-Quarterly!AE180)*100","v":20.999999999999996},{"$f":"(Quarterly!AF184-Quarterly!AF180)*100","v":59.000000000000007},{"$f":"(Quarterly!AG184-Quarterly!AG180)*100","v":36.000000000000007},{"$f":"((Quarterly!AH184/Quarterly!AH180)-1)","v":0.28706473614933592},{"$f":"((Quarterly!AI184/Quarterly!AI180)-1)","v":0.26275308548210519},{"$f":"((Quarterly!AJ184/Quarterly!AJ180)-1)","v":4.7798742138364769E-2},{"$f":"((Quarterly!AK184/Quarterly!AK180)-1)","v":3.8461538461538325E-2},{"$f":"((Quarterly!AL184/Quarterly!AL180)-1)","v":3.6199095022624306E-2},{"$f":"((Quarterly!AM184/Quarterly!AM180)-1)","v":-2.7403417245431827E-3},{"$f":"((Quarterly!AN184/Quarterly!AN180)-1)","v":-2.3337139082146852E-4},{"$f":"((Quarterly!AO184/Quarterly!AO180)-1)","v":-5.9224428819715236E-2},{"$f":"(Quarterly!AP184-Quarterly!AP180)*100","v":-8.9999999999999858},{"$f":"Quarterly!AQ184-Quarterly!AQ180","v":10.633333333333333},{"$f":"Quarterly!AR184-Quarterly!AR180","v":13.5},{"$f":"Quarterly!AS184-Quarterly!AS180","v":-8.3333333333333286},{"$f":"Quarterly!AT184-Quarterly!AT180","v":11.066666666666663},{"$f":"Quarterly!AU184-Quarterly!AU180","v":7.0999999999999943},{"$f":"Quarterly!AV184-Quarterly!AV180","v":7.3666666666666671},{"$f":"Quarterly!AW184-Quarterly!AW180","v":4.0666666666666629},{"$f":"Quarterly!AX184-Quarterly!AX180","v":14.899999999999999},{"$f":"Quarterly!AY184-Quarterly!AY180","v":17.633333333333347},{"$f":"Quarterly!AZ184-Quarterly!AZ180","v":16.033333333333331},{"$f":"Quarterly!BA184-Quarterly!BA180","v":7.2000000000000099},{"$f":"Quarterly!BB184-Quarterly!BB180","v":8.3666666666666742},{"$f":"((Quarterly!BC184/Quarterly!BC180)-1)","v":-0.1030575065321091},{"$f":"((Quarterly!BD184/Quarterly!BD180)-1)","v":4.4849856847992475E-2},{"$f":"((Quarterly!BE184/Quarterly!BE180)-1)","v":-1.0522322498203063E-2},{"$f":"((Quarterly!BF184/Quarterly!BF180)-1)","v":2.4164484430501121E-2},{"$f":"((Quarterly!BG184/Quarterly!BG180)-1)","v":4.1666666666666519E-2},{"$f":"((Quarterly!BH184/Quarterly!BH180)-1)","v":1.1077575134857298E-2},{"$f":"((Quarterly!BI184/Quarterly!BI180)-1)","v":-1.6803226219434197E-2},{"$f":"((Quarterly!BJ184/Quarterly!BJ180)-1)","v":-6.8927858212681103E-2},{"$f":"((Quarterly!BK184/Quarterly!BK180)-1)","v":0.58415841584158423},null,{"$f":"((Quarterly!BM184/Quarterly!BM180)-1)","v":2.1918900542632791E-2},{"$f":"((Quarterly!BN184/Quarterly!BN180)-1)","v":1.9252893496553236E-2},null,null,null,null,null,{"$f":"((Quarterly!BT184/Quarterly!BT180)-1)","v":2.827428690828282E-2},{"$f":"Quarterly!BU184-Quarterly!BU180","v":-6.1330000000001661E-2},{"$f":"Quarterly!BV184-Quarterly!BV180","v":-0.1608099999999979},{"$f":"((Quarterly!BW184/Quarterly!BW180)-1)","v":7.4130833368510674E-2},{"$f":"((Quarterly!BX184/Quarterly!BX180)-1)","v":3.7423312883435589E-2},{"$f":"((Quarterly!BY184/Quarterly!BY180)-1)","v":3.7522695178535459E-2},{"$f":"((Quarterly!BZ184/Quarterly!BZ180)-1)","v":8.245473298189343E-2},{"$f":"((Quarterly!CA184/Quarterly!CA180)-1)","v":-6.4821093781164407E-3},{"$f":"((Quarterly!CB184/Quarterly!CB180)-1)","v":-7.4271202086414245E-2},{"$f":"((Quarterly!CC184/Quarterly!CC180)-1)","v":3.9757229028633212E-2},"--","--",null,"--","--",null,{"$f":"((Quarterly!CJ184/Quarterly!CJ180)-1)","v":7.2869955156950716E-2},{"$f":"((Quarterly!CK184/Quarterly!CK180)-1)","v":1.5781460118472035E-2},{"$f":"((Quarterly!CL184/Quarterly!CL180)-1)","v":0.44127405441274004},{"$f":"((Quarterly!CM184/Quarterly!CM180)-1)","v":4.0092521202775622E-2},{"$f":"((Quarterly!CN184/Quarterly!CN180)-1)","v":4.0819852306018367E-2},{"$f":"((Quarterly!CO184/Quarterly!CO180)-1)","v":0.22309608074452725},{"$f":"((Quarterly!CP184/Quarterly!CP180)-1)","v":7.4646658252291775E-2},{"$f":"((Quarterly!CQ184/Quarterly!CQ180)-1)","v":9.8671313694258522E-3},{"$f":"((Quarterly!CR184/Quarterly!CR180)-1)","v":2.6944114392208895E-2},{"$f":"Quarterly!CS184-Quarterly!CS180","v":3.1000000000000085},"--",null,null,null,null,null,{"$f":"((Quarterly!CZ184/Quarterly!CZ180)-1)","v":1.3172751223183843E-2},{"$f":"((Quarterly!DA184/Quarterly!DA180)-1)","v":2.4263120057512522E-2},null,null,null,null,null,{"$f":"((Quarterly!DG184/Quarterly!DG180)-1)","v":-2.2749431264218356E-2},{"$f":"((Quarterly!DH184-Quarterly!DH180)*60)","v":-6.0000000000000853},{"$f":"Quarterly!DI184-Quarterly!DI180","v":-9.9999999999994316E-2},{"$f":"(Quarterly!DJ184-Quarterly!DJ180)*100","v":196.6666666666666},{"$f":"(Quarterly!DK184-Quarterly!DK180)*100","v":143.33333333333337},{"$f":"((Quarterly!DL184/Quarterly!DL180)-1)","v":-7.9054784105006104E-2},null,null,null,{"$f":"((Quarterly!DP184/Quarterly!DP180)-1)","v":-1.3234979418688009E-2},null,null,null,null,{"$f":"Quarterly!DU184-Quarterly!DU180","v":3.7333333333333325},{"$f":"((Quarterly!DV184/Quarterly!DV180)-1)","v":-3.9060261675102681E-2},{"$f":"((Quarterly!DW184/Quarterly!DW180)-1)","v":-3.7515242808980886E-2},{"$f":"((Quarterly!DX184/Quarterly!DX180)-1)","v":-4.5456064708045085E-2},{"$f":"((Quarterly!DY184/Quarterly!DY180)-1)","v":-3.1158714703018675E-2},{"$f":"((Quarterly!DZ184/Quarterly!DZ180)-1)","v":-4.9978002639683106E-2},{"$f":"((Quarterly!EA184/Quarterly!EA180)-1)","v":-5.3005059854374759E-2},{"$f":"((Quarterly!EB184/Quarterly!EB180)-1)","v":-4.2458614347026469E-2},{"$f":"((Quarterly!EC184/Quarterly!EC180)-1)","v":-1.7557123655914109E-2},null,null,null,null,null,{"$f":"((Quarterly!EI184/Quarterly!EI180)-1)","v":8.7784265888228852E-3},{"$f":"((Quarterly!EJ184/Quarterly!EJ180)-1)","v":1.1819298569168968E-2},{"$f":"((Quarterly!EK184/Quarterly!EK180)-1)","v":1.1001453093736346E-2},null,null,null,null,null,{"$f":"((Quarterly!EQ184/Quarterly!EQ180)-1)","v":-3.9637876192806454E-2},{"$f":"((Quarterly!ER184/Quarterly!ER180)-1)","v":1.9995556542991011E-3},{"$f":"((Quarterly!ES184/Quarterly!ES180)-1)","v":-3.5773908895778694E-3},null,null,null,null,null,{"$f":"(Quarterly!EY184-Quarterly!EY180)*100","v":-259},{"$f":"(Quarterly!EZ184-Quarterly!EZ180)*100","v":-257.66666666666669},{"$f":"(Quarterly!FA184-Quarterly!FA180)*100","v":-50.999999999999979},{"$f":"(Quarterly!FB184-Quarterly!FB180)*100","v":-1.3333333333335418},"--",{"$f":"(Quarterly!FD184-Quarterly!FD180)*100","v":-31.333333333333258},{"$f":"(Quarterly!FE184-Quarterly!FE180)*100","v":-194.33333333333334},{"$f":"(Quarterly!FF184-Quarterly!FF180)*100","v":-143.66666666666666},{"$f":"(Quarterly!FG184-Quarterly!FG180)*100","v":-96.666666666666728},{"$f":"(Quarterly!FH184-Quarterly!FH180)*100","v":-38.999999999999879},{"$f":"(Quarterly!FI184-Quarterly!FI180)*100","v":-16.999999999999904},null,null,null,null,null,null,{"$f":"((Quarterly!FP184/Quarterly!FP180)-1)","v":8.6732707531254061E-3},{"$f":"((Quarterly!FQ184/Quarterly!FQ180)-1)","v":-8.0544156320083715E-6},{"$f":"((Quarterly!FR184/Quarterly!FR180)-1)","v":3.1879462471701148E-2},{"$f":"((Quarterly!FS184/Quarterly!FS180)-1)","v":5.2770146520146444E-2},{"$f":"((Quarterly!FT184/Quarterly!FT180)-1)","v":2.4464045139462876E-3},{"$f":"((Quarterly!FU184/Quarterly!FU180)-1)","v":-1.5189569309459139E-2},{"$f":"((Quarterly!FV184/Quarterly!FV180)-1)","v":-4.9520878383807476E-2},{"$f":"((Quarterly!FW184/Quarterly!FW180)-1)","v":0.24446690629076162},{"$f":"((Quarterly!FX184/Quarterly!FX180)-1)","v":4.0840682357244917E-2},null,null,null,null,null,{"$f":"((Quarterly!GD184/Quarterly!GD180)-1)","v":-5.7860131500299006E-2},{"$f":"((Quarterly!GE184/Quarterly!GE180)-1)","v":-8.1398191151307753E-2},{"$f":"((Quarterly!GF184/Quarterly!GF180)-1)","v":-0.13305339053028009},{"$f":"((Quarterly!GG184/Quarterly!GG180)-1)","v":-0.11363636363636365},{"$f":"((Quarterly!GH184/Quarterly!GH180)-1)","v":{"$error":"#DIV/0!"}},"--",{"$f":"((Quarterly!GJ184/Quarterly!GJ180)-1)","v":-0.22572833900870215},{"$f":"((Quarterly!GK184/Quarterly!GK180)-1)","v":-1.4415713127308716E-2},"--"]
["02'Q3",{"$f":"((Quarterly!B185/Quarterly!B181)-1)","v":3.7367500648057606E-2},{"$f":"((Quarterly!C185/Quarterly!C181)-1)","v":2.2546220213153667E-2},{"$f":"((Quarterly!D185/Quarterly!D181)-1)","v":1.7138367786412534E-2},{"$f":"((Quarterly!E185/Quarterly!E181)-1)","v":3.0676483353707429E-2},{"$f":"((Quarterly!F185/Quarterly!F181)-1)","v":0.11218084655187033},{"$f":"((Quarterly!G185/Quarterly!G181)-1)","v":1.5169071947750856E-2},{"$f":"((Quarterly!H185/Quarterly!H181)-1)","v":1.9963839521891069E-2},{"$f":"((Quarterly!I185/Quarterly!I181)-1)","v":-6.6862004028833133E-2},{"$f":"((Quarterly!J185/Quarterly!J181)-1)","v":1.5976697972784004E-2},{"$f":"((Quarterly!K185/Quarterly!K181)-1)","v":5.4741810216684339E-2},{"$f":"((Quarterly!L185-Quarterly!L181))","v":69.316000000000003},{"$f":"((Quarterly!M185/Quarterly!M181)-1)","v":6.1812716765786702E-2},{"$f":"((Quarterly!N185/Quarterly!N181)-1)","v":2.2857306253590393E-2},{"$f":"((Quarterly!O185/Quarterly!O181)-1)","v":0.15018556230883551},{"$f":"((Quarterly!P185/Quarterly!P181)-1)","v":4.7473891768391452E-2},{"$f":"((Quarterly!Q185/Quarterly!Q181)-1)","v":1.1265352207875998},null,null,null,null,null,{"$f":"((Quarterly!W185/Quarterly!W181)-1)","v":1.3850415512465464E-2},{"$f":"((Quarterly!X185/Quarterly!X181)-1)","v":3.5476718403546492E-3},{"$f":"((Quarterly!Y185/Quarterly!Y181)-1)","v":-8.2920652233272052E-2},{"$f":"Quarterly!Z185-Quarterly!Z181","v":0.62999999999999989},{"$f":"((Quarterly!AA185/Quarterly!AA181)-1)","v":0.30531079579882858},{"$f":"((Quarterly!AB185/Quarterly!AB181)-1)","v":0.30899446148898413},{"$f":"Quarterly!AC185-Quarterly!AC181","v":-4.5},{"$f":"Quarterly!AD185-Quarterly!AD181","v":5.7000000000000028},{"$f":"(Quarterly!AE185-Quarterly!AE181)*100","v":16.999999999999993},{"$f":"(Quarterly!AF185-Quarterly!AF181)*100","v":62.999999999999986},{"$f":"(Quarterly!AG185-Quarterly!AG181)*100","v":30.000000000000014},{"$f":"((Quarterly!AH185/Quarterly!AH181)-1)","v":0.38690188496858391},{"$f":"((Quarterly!AI185/Quarterly!AI181)-1)","v":0.33237999108677063},{"$f":"((Quarterly!AJ185/Quarterly!AJ181)-1)","v":4.3424317617865915E-2},{"$f":"((Quarterly!AK185/Quarterly!AK181)-1)","v":3.3448673587081812E-2},{"$f":"((Quarterly!AL185/Quarterly!AL181)-1)","v":3.1390134529147851E-2},{"$f":"((Quarterly!AM185/Quarterly!AM181)-1)","v":1.805412212769153E-2},{"$f":"((Quarterly!AN185/Quarterly!AN181)-1)","v":2.472665258651574E-2},{"$f":"((Quarterly!AO185/Quarterly!AO181)-1)","v":-3.3732014316254388E-2},{"$f":"(Quarterly!AP185-Quarterly!AP181)*100","v":-7.6666666666666217},{"$f":"Quarterly!AQ185-Quarterly!AQ181","v":5},{"$f":"Quarterly!AR185-Quarterly!AR181","v":1.6666666666666643},{"$f":"Quarterly!AS185-Quarterly!AS181","v":-5.5},{"$f":"Quarterly!AT185-Quarterly!AT181","v":5.8666666666666671},{"$f":"Quarterly!AU185-Quarterly!AU181","v":4.0333333333333243},{"$f":"Quarterly!AV185-Quarterly!AV181","v":4.5333333333333314},{"$f":"Quarterly!AW185-Quarterly!AW181","v":6.0999999999999943},{"$f":"Quarterly!AX185-Quarterly!AX181","v":0.20000000000000284},{"$f":"Quarterly!AY185-Quarterly!AY181","v":26.933333333333344},{"$f":"Quarterly!AZ185-Quarterly!AZ181","v":4.8000000000000043},{"$f":"Quarterly!BA185-Quarterly!BA181","v":8.0333333333333385},{"$f":"Quarterly!BB185-Quarterly!BB181","v":4.56666666666667},{"$f":"((Quarterly!BC185/Quarterly!BC181)-1)","v":-6.1203738789945783E-2},{"$f":"((Quarterly!BD185/Quarterly!BD181)-1)","v":6.5975570556091379E-2},{"$f":"((Quarterly!BE185/Quarterly!BE181)-1)","v":-2.4022684235051495E-2},{"$f":"((Quarterly!BF185/Quarterly!BF181)-1)","v":2.8168102052710031E-2},{"$f":"((Quarterly!BG185/Quarterly!BG181)-1)","v":4.4240299770337277E-2},{"$f":"((Quarterly!BH185/Quarterly!BH181)-1)","v":1.2265071349693901E-2},{"$f":"((Quarterly!BI185/Quarterly!BI181)-1)","v":-1.5396318597724279E-2},{"$f":"((Quarterly!BJ185/Quarterly!BJ181)-1)","v":0.33066074913676635},{"$f":"((Quarterly!BK185/Quarterly!BK181)-1)","v":0.56756756756756732},null,{"$f":"((Quarterly!BM185/Quarterly!BM181)-1)","v":4.1100783714040023E-2},{"$f":"((Quarterly!BN185/Quarterly!BN181)-1)","v":4.0920678970375324E-2},null,null,null,null,null,{"$f":"((Quarterly!BT185/Quarterly!BT181)-1)","v":4.0729110318238337E-2},{"$f":"Quarterly!BU185-Quarterly!BU181","v":5.2210000000000534E-2},{"$f":"Quarterly!BV185-Quarterly!BV181","v":4.8899999999996169E-3},{"$f":"((Quarterly!BW185/Quarterly!BW181)-1)","v":7.0900244626786124E-2},{"$f":"((Quarterly!BX185/Quarterly!BX181)-1)","v":6.1054386330485322E-2},{"$f":"((Quarterly!BY185/Quarterly!BY181)-1)","v":9.5856006697362828E-2},{"$f":"((Quarterly!BZ185/Quarterly!BZ181)-1)","v":0.10130221545746676},{"$f":"((Quarterly!CA185/Quarterly!CA181)-1)","v":8.4344849050731474E-2},{"$f":"((Quarterly!CB185/Quarterly!CB181)-1)","v":-2.6893589053757716E-2},{"$f":"((Quarterly!CC185/Quarterly!CC181)-1)","v":3.9282372023818013E-2},"--","--",null,"--","--",null,{"$f":"((Quarterly!CJ185/Quarterly!CJ181)-1)","v":0.15967679876875707},{"$f":"((Quarterly!CK185/Quarterly!CK181)-1)","v":2.0384026456968574E-2},{"$f":"((Quarterly!CL185/Quarterly!CL181)-1)","v":-0.17971711869349671},{"$f":"((Quarterly!CM185/Quarterly!CM181)-1)","v":4.9385941991115789E-2},{"$f":"((Quarterly!CN185/Quarterly!CN181)-1)","v":1.5469692617064323E-2},{"$f":"((Quarterly!CO185/Quarterly!CO181)-1)","v":0.22256111867110895},{"$f":"((Quarterly!CP185/Quarterly!CP181)-1)","v":7.7409346909409704E-2},{"$f":"((Quarterly!CQ185/Quarterly!CQ181)-1)","v":9.7592918122797467E-3},{"$f":"((Quarterly!CR185/Quarterly!CR181)-1)","v":4.6297703615237662E-2},{"$f":"Quarterly!CS185-Quarterly!CS181","v":-1.3000000000000114},"--",null,null,null,null,null,{"$f":"((Quarterly!CZ185/Quarterly!CZ181)-1)","v":1.5762807280915725E-2},{"$f":"((Quarterly!DA185/Quarterly!DA181)-1)","v":2.2670474830417842E-2},null,null,null,null,null,{"$f":"((Quarterly!DG185/Quarterly!DG181)-1)","v":-1.8676277850589784E-2},{"$f":"((Quarterly!DH185-Quarterly!DH181)*60)","v":-1.9999999999998863},{"$f":"Quarterly!DI185-Quarterly!DI181","v":-9.9999999999994316E-2},{"$f":"(Quarterly!DJ185-Quarterly!DJ181)*100","v":140.00000000000003},{"$f":"(Quarterly!DK185-Quarterly!DK181)*100","v":90.000000000000028},{"$f":"((Quarterly!DL185/Quarterly!DL181)-1)","v":-6.535880650920356E-2},null,null,null,{"$f":"((Quarterly!DP185/Quarterly!DP181)-1)","v":-1.0870663097823252E-2},null,null,null,null,{"$f":"Quarterly!DU185-Quarterly!DU181","v":2.166666666666667},{"$f":"((Quarterly!DV185/Quarterly!DV181)-1)","v":-3.5566065051635842E-2},{"$f":"((Quarterly!DW185/Quarterly!DW181)-1)","v":-3.5087719298245501E-2},{"$f":"((Quarterly!DX185/Quarterly!DX181)-1)","v":-4.1383010832019784E-2},{"$f":"((Quarterly!DY185/Quarterly!DY181)-1)","v":-1.7894298793175167E-2},{"$f":"((Quarterly!DZ185/Quarterly!DZ181)-1)","v":-4.8872180451127734E-2},{"$f":"((Quarterly!EA185/Quarterly!EA181)-1)","v":-5.6106633601983869E-2},{"$f":"((Quarterly!EB185/Quarterly!EB181)-1)","v":-3.0864197530864113E-2},{"$f":"((Quarterly!EC185/Quarterly!EC181)-1)","v":-1.9688269073010689E-2},null,null,null,null,null,{"$f":"((Quarterly!EI185/Quarterly!EI181)-1)","v":2.356078787677518E-2},{"$f":"((Quarterly!EJ185/Quarterly!EJ181)-1)","v":2.673599324637288E-2},{"$f":"((Quarterly!EK185/Quarterly!EK181)-1)","v":2.3270238316525527E-2},null,null,null,null,null,{"$f":"((Quarterly!EQ185/Quarterly!EQ181)-1)","v":-1.274681329667593E-2},{"$f":"((Quarterly!ER185/Quarterly!ER181)-1)","v":-3.3207881337170564E-3},{"$f":"((Quarterly!ES185/Quarterly!ES181)-1)","v":-9.512485136741855E-3},null,null,null,null,null,{"$f":"(Quarterly!EY185-Quarterly!EY181)*100","v":-181.66666666666663},{"$f":"(Quarterly!EZ185-Quarterly!EZ181)*100","v":-175.66666666666666},{"$f":"(Quarterly!FA185-Quarterly!FA181)*100","v":-75.6666666666666},{"$f":"(Quarterly!FB185-Quarterly!FB181)*100","v":-32.333333333333236},"--",{"$f":"(Quarterly!FD185-Quarterly!FD181)*100","v":-67.666666666666586},{"$f":"(Quarterly!FE185-Quarterly!FE181)*100","v":-152.66666666666666},{"$f":"(Quarterly!FF185-Quarterly!FF181)*100","v":-149},{"$f":"(Quarterly!FG185-Quarterly!FG181)*100","v":-141},{"$f":"(Quarterly!FH185-Quarterly!FH181)*100","v":-113.66666666666671},{"$f":"(Quarterly!FI185-Quarterly!FI181)*100","v":-71.999999999999972},null,null,null,null,null,null,{"$f":"((Quarterly!FP185/Quarterly!FP181)-1)","v":1.1318070107360079E-2},{"$f":"((Quarterly!FQ185/Quarterly!FQ181)-1)","v":-8.0545453811087242E-6},{"$f":"((Quarterly!FR185/Quarterly!FR181)-1)","v":7.0769330645190198E-2},{"$f":"((Quarterly!FS185/Quarterly!FS181)-1)","v":0.10391504318887179},{"$f":"((Quarterly!FT185/Quarterly!FT181)-1)","v":-1.0452001317709736E-2},{"$f":"((Quarterly!FU185/Quarterly!FU181)-1)","v":-4.6800870007867146E-2},{"$f":"((Quarterly!FV185/Quarterly!FV181)-1)","v":2.4241656037836012E-2},{"$f":"((Quarterly!FW185/Quarterly!FW181)-1)","v":0.24977889863884473},{"$f":"((Quarterly!FX185/Quarterly!FX181)-1)","v":5.2561201085582487E-2},null,null,null,null,null,{"$f":"((Quarterly!GD185/Quarterly!GD181)-1)","v":6.5037593984962561E-2},{"$f":"((Quarterly!GE185/Quarterly!GE181)-1)","v":6.4286655249637725E-2},{"$f":"((Quarterly!GF185/Quarterly!GF181)-1)","v":-3.6878024845551804E-2},{"$f":"((Quarterly!GG185/Quarterly!GG181)-1)","v":-5.2112676056337959E-2},{"$f":"((Quarterly!GH185/Quarterly!GH181)-1)","v":{"$error":"#DIV/0!"}},"--",{"$f":"((Quarterly!GJ185/Quarterly!GJ181)-1)","v":0.15490078171978361},{"$f":"((Quarterly!GK185/Quarterly!GK181)-1)","v":-1.0304577785883673E-2},"--"]
["02'Q4",{"$f":"((Quarterly!B186/Quarterly!B182)-1)","v":3.7613781556046E-2},{"$f":"((Quarterly!C186/Quarterly!C182)-1)","v":2.0365330320829766E-2},{"$f":"((Quarterly!D186/Quarterly!D182)-1)","v":1.0047201460331889E-2},{"$f":"((Quarterly!E186/Quarterly!E182)-1)","v":2.0617788480394195E-2},{"$f":"((Quarterly!F186/Quarterly!F182)-1)","v":1.2449594800924002E-2},{"$f":"((Quarterly!G186/Quarterly!G182)-1)","v":1.9794568245125488E-2},{"$f":"((Quarterly!H186/Quarterly!H182)-1)","v":2.2686083205466057E-2},{"$f":"((Quarterly!I186/Quarterly!I182)-1)","v":-5.054794820335029E-2},{"$f":"((Quarterly!J186/Quarterly!J182)-1)","v":-4.8582691593856975E-4},{"$f":"((Quarterly!K186/Quarterly!K182)-1)","v":8.0666265650483293E-2},{"$f":"((Quarterly!L186-Quarterly!L182))","v":132.49299999999999},{"$f":"((Quarterly!M186/Quarterly!M182)-1)","v":9.947328524985255E-2},{"$f":"((Quarterly!N186/Quarterly!N182)-1)","v":4.1573605559247717E-2},{"$f":"((Quarterly!O186/Quarterly!O182)-1)","v":0.22352882555184594},{"$f":"((Quarterly!P186/Quarterly!P182)-1)","v":3.9802960605417104E-2},{"$f":"((Quarterly!Q186/Quarterly!Q182)-1)","v":7.9383561643835616},null,null,null,null,null,{"$f":"((Quarterly!W186/Quarterly!W182)-1)","v":2.8129395218002839E-2},{"$f":"((Quarterly!X186/Quarterly!X182)-1)","v":1.9837691614066566E-2},{"$f":"((Quarterly!Y186/Quarterly!Y182)-1)","v":-7.0716462582216533E-2},{"$f":"Quarterly!Z186-Quarterly!Z182","v":0.31000000000000005},{"$f":"((Quarterly!AA186/Quarterly!AA182)-1)","v":0.51455534298750605},{"$f":"((Quarterly!AB186/Quarterly!AB182)-1)","v":0.34060116752680125},{"$f":"Quarterly!AC186-Quarterly!AC182","v":7.8000000000000007},{"$f":"Quarterly!AD186-Quarterly!AD182","v":1.7999999999999972},{"$f":"(Quarterly!AE186-Quarterly!AE182)*100","v":6.0000000000000053},{"$f":"(Quarterly!AF186-Quarterly!AF182)*100","v":31.000000000000007},{"$f":"(Quarterly!AG186-Quarterly!AG182)*100","v":16.000000000000014},{"$f":"((Quarterly!AH186/Quarterly!AH182)-1)","v":0.31374234447190297},{"$f":"((Quarterly!AI186/Quarterly!AI182)-1)","v":0.30314272145080401},{"$f":"((Quarterly!AJ186/Quarterly!AJ182)-1)","v":4.2944785276073594E-2},{"$f":"((Quarterly!AK186/Quarterly!AK182)-1)","v":3.0857142857142916E-2},{"$f":"((Quarterly!AL186/Quarterly!AL182)-1)","v":2.5555555555555554E-2},{"$f":"((Quarterly!AM186/Quarterly!AM182)-1)","v":2.8608000257980715E-2},{"$f":"((Quarterly!AN186/Quarterly!AN182)-1)","v":3.40738086443102E-2},{"$f":"((Quarterly!AO186/Quarterly!AO182)-1)","v":5.4227322709898829E-3},{"$f":"(Quarterly!AP186-Quarterly!AP182)*100","v":-3.3333333333333215},{"$f":"Quarterly!AQ186-Quarterly!AQ182","v":6.2999999999999972},{"$f":"Quarterly!AR186-Quarterly!AR182","v":6.1666666666666643},{"$f":"Quarterly!AS186-Quarterly!AS182","v":-0.3333333333333357},{"$f":"Quarterly!AT186-Quarterly!AT182","v":9.1999999999999957},{"$f":"Quarterly!AU186-Quarterly!AU182","v":4.36666666666666},{"$f":"Quarterly!AV186-Quarterly!AV182","v":3.7999999999999972},{"$f":"Quarterly!AW186-Quarterly!AW182","v":5.1666666666666785},{"$f":"Quarterly!AX186-Quarterly!AX182","v":7.0999999999999943},{"$f":"Quarterly!AY186-Quarterly!AY182","v":24.133333333333333},{"$f":"Quarterly!AZ186-Quarterly!AZ182","v":6.6666666666666714},{"$f":"Quarterly!BA186-Quarterly!BA182","v":3.5000000000000142},{"$f":"Quarterly!BB186-Quarterly!BB182","v":8.2666666666666586},{"$f":"((Quarterly!BC186/Quarterly!BC182)-1)","v":-3.4175412343053657E-2},{"$f":"((Quarterly!BD186/Quarterly!BD182)-1)","v":5.9219806731441116E-2},{"$f":"((Quarterly!BE186/Quarterly!BE182)-1)","v":-2.7600031599320674E-2},{"$f":"((Quarterly!BF186/Quarterly!BF182)-1)","v":2.1395384654876004E-2},{"$f":"((Quarterly!BG186/Quarterly!BG182)-1)","v":2.9338744330389188E-2},{"$f":"((Quarterly!BH186/Quarterly!BH182)-1)","v":-1.2100112509818572E-3},{"$f":"((Quarterly!BI186/Quarterly!BI182)-1)","v":-7.7098432224348423E-3},{"$f":"((Quarterly!BJ186/Quarterly!BJ182)-1)","v":1.6674476726023122},{"$f":"((Quarterly!BK186/Quarterly!BK182)-1)","v":0.2152777777777779},null,{"$f":"((Quarterly!BM186/Quarterly!BM182)-1)","v":1.1148979348905241E-2},{"$f":"((Quarterly!BN186/Quarterly!BN182)-1)","v":8.133892663190645E-3},null,null,null,null,null,{"$f":"((Quarterly!BT186/Quarterly!BT182)-1)","v":6.444316700249586E-2},{"$f":"Quarterly!BU186-Quarterly!BU182","v":-0.25938000000000017},{"$f":"Quarterly!BV186-Quarterly!BV182","v":-0.4594699999999996},{"$f":"((Quarterly!BW186/Quarterly!BW182)-1)","v":7.727137568973208E-2},{"$f":"((Quarterly!BX186/Quarterly!BX182)-1)","v":0.10169851380042472},{"$f":"((Quarterly!BY186/Quarterly!BY182)-1)","v":0.1161935879109659},{"$f":"((Quarterly!BZ186/Quarterly!BZ182)-1)","v":0.11568643762304864},{"$f":"((Quarterly!CA186/Quarterly!CA182)-1)","v":-0.1056116298735178},{"$f":"((Quarterly!CB186/Quarterly!CB182)-1)","v":0.10101915028634068},{"$f":"((Quarterly!CC186/Quarterly!CC182)-1)","v":8.9237028663490703E-2},"--","--",null,"--","--",null,{"$f":"((Quarterly!CJ186/Quarterly!CJ182)-1)","v":0.1095890410958904},{"$f":"((Quarterly!CK186/Quarterly!CK182)-1)","v":2.5216639063054602E-2},{"$f":"((Quarterly!CL186/Quarterly!CL182)-1)","v":0.4705428350913301},{"$f":"((Quarterly!CM186/Quarterly!CM182)-1)","v":0.11037410453701257},{"$f":"((Quarterly!CN186/Quarterly!CN182)-1)","v":3.3130208409080986E-2},{"$f":"((Quarterly!CO186/Quarterly!CO182)-1)","v":0.21168432547295102},{"$f":"((Quarterly!CP186/Quarterly!CP182)-1)","v":6.1003402731977685E-2},{"$f":"((Quarterly!CQ186/Quarterly!CQ182)-1)","v":9.6390142594546813E-3},{"$f":"((Quarterly!CR186/Quarterly!CR182)-1)","v":5.4332116262497676E-2},{"$f":"Quarterly!CS186-Quarterly!CS182","v":-1.3000000000000114},"--",null,null,null,null,null,{"$f":"((Quarterly!CZ186/Quarterly!CZ182)-1)","v":2.2535211267605604E-2},{"$f":"((Quarterly!DA186/Quarterly!DA182)-1)","v":2.0571023231069407E-2},null,null,null,null,null,{"$f":"((Quarterly!DG186/Quarterly!DG182)-1)","v":-1.0271703114645425E-2},{"$f":"((Quarterly!DH186-Quarterly!DH182)*60)","v":-4.2632564145606011E-13},{"$f":"Quarterly!DI186-Quarterly!DI182","v":-0.26666666666666572},{"$f":"(Quarterly!DJ186-Quarterly!DJ182)*100","v":26.666666666666394},{"$f":"(Quarterly!DK186-Quarterly!DK182)*100","v":36.666666666666714},{"$f":"((Quarterly!DL186/Quarterly!DL182)-1)","v":-5.3548875978782551E-2},null,null,null,{"$f":"((Quarterly!DP186/Quarterly!DP182)-1)","v":-4.6539158179790263E-3},null,null,null,null,{"$f":"Quarterly!DU186-Quarterly!DU182","v":1.7666666666666666},{"$f":"((Quarterly!DV186/Quarterly!DV182)-1)","v":-2.0717150963702191E-2},{"$f":"((Quarterly!DW186/Quarterly!DW182)-1)","v":-2.0595298740994195E-2},{"$f":"((Quarterly!DX186/Quarterly!DX182)-1)","v":-2.601195327356709E-2},{"$f":"((Quarterly!DY186/Quarterly!DY182)-1)","v":-4.9568049851295148E-3},{"$f":"((Quarterly!DZ186/Quarterly!DZ182)-1)","v":-3.2652878902934557E-2},{"$f":"((Quarterly!EA186/Quarterly!EA182)-1)","v":-3.9269634817408861E-2},{"$f":"((Quarterly!EB186/Quarterly!EB182)-1)","v":-1.6106333072712919E-2},{"$f":"((Quarterly!EC186/Quarterly!EC182)-1)","v":-7.0488322717621177E-3},null,null,null,null,null,{"$f":"((Quarterly!EI186/Quarterly!EI182)-1)","v":1.8144699001824138E-2},{"$f":"((Quarterly!EJ186/Quarterly!EJ182)-1)","v":1.990767008396177E-2},{"$f":"((Quarterly!EK186/Quarterly!EK182)-1)","v":2.3865909445629052E-2},null,null,null,null,null,{"$f":"((Quarterly!EQ186/Quarterly!EQ182)-1)","v":2.8335909325089892E-2},{"$f":"((Quarterly!ER186/Quarterly!ER182)-1)","v":-2.2202486678501998E-4},{"$f":"((Quarterly!ES186/Quarterly!ES182)-1)","v":-3.1078173559648814E-3},null,null,null,null,null,{"$f":"(Quarterly!EY186-Quarterly!EY182)*100","v":-70.666666666666615},{"$f":"(Quarterly!EZ186-Quarterly!EZ182)*100","v":-69},{"$f":"(Quarterly!FA186-Quarterly!FA182)*100","v":-64.333333333333258},{"$f":"(Quarterly!FB186-Quarterly!FB182)*100","v":-32.333333333333236},"--",{"$f":"(Quarterly!FD186-Quarterly!FD182)*100","v":-70.6666666666667},{"$f":"(Quarterly!FE186-Quarterly!FE182)*100","v":-57.333333333333371},{"$f":"(Quarterly!FF186-Quarterly!FF182)*100","v":-71.333333333333357},{"$f":"(Quarterly!FG186-Quarterly!FG182)*100","v":-98.333333333333314},{"$f":"(Quarterly!FH186-Quarterly!FH182)*100","v":-108},{"$f":"(Quarterly!FI186-Quarterly!FI182)*100","v":-76.333333333333371},null,null,null,null,null,null,{"$f":"((Quarterly!FP186/Quarterly!FP182)-1)","v":-7.1689122229954272E-3},{"$f":"((Quarterly!FQ186/Quarterly!FQ182)-1)","v":8.0547400131303348E-5},{"$f":"((Quarterly!FR186/Quarterly!FR182)-1)","v":0.10074851649441774},{"$f":"((Quarterly!FS186/Quarterly!FS182)-1)","v":0.1182343080648165},{"$f":"((Quarterly!FT186/Quarterly!FT182)-1)","v":-9.1695113028246178E-3},{"$f":"((Quarterly!FU186/Quarterly!FU182)-1)","v":-5.6592423050913832E-2},{"$f":"((Quarterly!FV186/Quarterly!FV182)-1)","v":6.2520313133217931E-2},{"$f":"((Quarterly!FW186/Quarterly!FW182)-1)","v":0.31566787962887788},{"$f":"((Quarterly!FX186/Quarterly!FX182)-1)","v":6.7875416922295928E-2},null,null,null,null,null,{"$f":"((Quarterly!GD186/Quarterly!GD182)-1)","v":0.38114687142623782},{"$f":"((Quarterly!GE186/Quarterly!GE182)-1)","v":0.38173987941429788},{"$f":"((Quarterly!GF186/Quarterly!GF182)-1)","v":0.10250131897566317},{"$f":"((Quarterly!GG186/Quarterly!GG182)-1)","v":0.14228934817170114},{"$f":"((Quarterly!GH186/Quarterly!GH182)-1)","v":{"$error":"#DIV/0!"}},"--",{"$f":"((Quarterly!GJ186/Quarterly!GJ182)-1)","v":0.60271940667490731},{"$f":"((Quarterly!GK186/Quarterly!GK182)-1)","v":2.3294509151414289E-2},"--"]
["03'Q1",{"$f":"((Quarterly!B187/Quarterly!B183)-1)","v":3.6516222104593155E-2},{"$f":"((Quarterly!C187/Quarterly!C183)-1)","v":1.6292840153427024E-2},{"$f":"((Quarterly!D187/Quarterly!D183)-1)","v":1.304246655485497E-2},{"$f":"((Quarterly!E187/Quarterly!E183)-1)","v":2.2049910455231414E-2},{"$f":"((Quarterly!F187/Quarterly!F183)-1)","v":2.8181854215386881E-2},{"$f":"((Quarterly!G187/Quarterly!G183)-1)","v":2.3017414833830463E-2},{"$f":"((Quarterly!H187/Quarterly!H183)-1)","v":2.0275208766164399E-2},{"$f":"((Quarterly!I187/Quarterly!I183)-1)","v":-2.8559377211234582E-2},{"$f":"((Quarterly!J187/Quarterly!J183)-1)","v":1.084441942209069E-2},{"$f":"((Quarterly!K187/Quarterly!K183)-1)","v":6.5484491265782374E-2},{"$f":"((Quarterly!L187-Quarterly!L183))","v":40.180000000000007},{"$f":"((Quarterly!M187/Quarterly!M183)-1)","v":5.3934403975099965E-2},{"$f":"((Quarterly!N187/Quarterly!N183)-1)","v":1.4640773805610685E-2},{"$f":"((Quarterly!O187/Quarterly!O183)-1)","v":0.13603066408324582},{"$f":"((Quarterly!P187/Quarterly!P183)-1)","v":2.1345261732987231E-2},{"$f":"((Quarterly!Q187/Quarterly!Q183)-1)","v":0.46222703688921829},null,null,null,null,null,{"$f":"((Quarterly!W187/Quarterly!W183)-1)","v":2.3743016759776525E-2},{"$f":"((Quarterly!X187/Quarterly!X183)-1)","v":2.4291497975708509E-2},{"$f":"((Quarterly!Y187/Quarterly!Y183)-1)","v":-6.9483716750078139E-2},{"$f":"Quarterly!Z187-Quarterly!Z183","v":-5.9999999999999831E-2},{"$f":"((Quarterly!AA187/Quarterly!AA183)-1)","v":0.36141811056716122},{"$f":"((Quarterly!AB187/Quarterly!AB183)-1)","v":0.12685734710442254},{"$f":"Quarterly!AC187-Quarterly!AC183","v":-13.2},{"$f":"Quarterly!AD187-Quarterly!AD183","v":24.799999999999997},{"$f":"(Quarterly!AE187-Quarterly!AE183)*100","v":-5.0000000000000044},{"$f":"(Quarterly!AF187-Quarterly!AF183)*100","v":-5.9999999999999831},{"$f":"(Quarterly!AG187-Quarterly!AG183)*100","v":-21.000000000000007},{"$f":"((Quarterly!AH187/Quarterly!AH183)-1)","v":0.27960000000000007},{"$f":"((Quarterly!AI187/Quarterly!AI183)-1)","v":0.23599546896784118},{"$f":"((Quarterly!AJ187/Quarterly!AJ183)-1)","v":5.7108140947752073E-2},{"$f":"((Quarterly!AK187/Quarterly!AK183)-1)","v":3.6281179138321962E-2},{"$f":"((Quarterly!AL187/Quarterly!AL183)-1)","v":2.8665931642778419E-2},{"$f":"((Quarterly!AM187/Quarterly!AM183)-1)","v":2.7053373539087655E-2},{"$f":"((Quarterly!AN187/Quarterly!AN183)-1)","v":2.8246082174601561E-2},{"$f":"((Quarterly!AO187/Quarterly!AO183)-1)","v":2.9881983553361691E-2},{"$f":"(Quarterly!AP187-Quarterly!AP183)*100","v":-1.9999999999999796},{"$f":"Quarterly!AQ187-Quarterly!AQ183","v":-1.4000000000000057},{"$f":"Quarterly!AR187-Quarterly!AR183","v":-8.1666666666666714},{"$f":"Quarterly!AS187-Quarterly!AS183","v":1.8333333333333357},{"$f":"Quarterly!AT187-Quarterly!AT183","v":0.26666666666665861},{"$f":"Quarterly!AU187-Quarterly!AU183","v":3.1666666666666572},{"$f":"Quarterly!AV187-Quarterly!AV183","v":2.9666666666666686},{"$f":"Quarterly!AW187-Quarterly!AW183","v":3.0666666666666629},{"$f":"Quarterly!AX187-Quarterly!AX183","v":-7.4666666666666615},{"$f":"Quarterly!AY187-Quarterly!AY183","v":18.566666666666656},{"$f":"Quarterly!AZ187-Quarterly!AZ183","v":-4.2666666666666728},{"$f":"Quarterly!BA187-Quarterly!BA183","v":1.2333333333333272},{"$f":"Quarterly!BB187-Quarterly!BB183","v":-2.0999999999999943},{"$f":"((Quarterly!BC187/Quarterly!BC183)-1)","v":2.9261492397917754E-2},{"$f":"((Quarterly!BD187/Quarterly!BD183)-1)","v":5.9211376858435916E-2},{"$f":"((Quarterly!BE187/Quarterly!BE183)-1)","v":-1.7712310962892719E-2},{"$f":"((Quarterly!BF187/Quarterly!BF183)-1)","v":2.283116684117803E-2},{"$f":"((Quarterly!BG187/Quarterly!BG183)-1)","v":1.7019985057900699E-2},{"$f":"((Quarterly!BH187/Quarterly!BH183)-1)","v":-6.6747894262860763E-3},{"$f":"((Quarterly!BI187/Quarterly!BI183)-1)","v":5.7098478467747515E-3},{"$f":"((Quarterly!BJ187/Quarterly!BJ183)-1)","v":0.85473193171840567},{"$f":"((Quarterly!BK187/Quarterly!BK183)-1)","v":-4.2553191489361541E-2},null,{"$f":"((Quarterly!BM187/Quarterly!BM183)-1)","v":3.5077928153443461E-2},{"$f":"((Quarterly!BN187/Quarterly!BN183)-1)","v":3.5278876118026714E-2},null,null,null,null,null,{"$f":"((Quarterly!BT187/Quarterly!BT183)-1)","v":5.6829308025334146E-2},{"$f":"Quarterly!BU187-Quarterly!BU183","v":-3.8419999999998566E-2},{"$f":"Quarterly!BV187-Quarterly!BV183","v":-0.18885999999999825},{"$f":"((Quarterly!BW187/Quarterly!BW183)-1)","v":8.0520999746833244E-2},{"$f":"((Quarterly!BX187/Quarterly!BX183)-1)","v":7.5449796865931784E-3},{"$f":"((Quarterly!BY187/Quarterly!BY183)-1)","v":5.3665175967334333E-2},{"$f":"((Quarterly!BZ187/Quarterly!BZ183)-1)","v":0.12383132989887402},{"$f":"((Quarterly!CA187/Quarterly!CA183)-1)","v":-3.2031031311232749E-2},{"$f":"((Quarterly!CB187/Quarterly!CB183)-1)","v":0.2757188693344752},{"$f":"((Quarterly!CC187/Quarterly!CC183)-1)","v":0.18567328494488233},"--","--",null,"--","--",null,{"$f":"((Quarterly!CJ187/Quarterly!CJ183)-1)","v":6.6521264994547469E-2},{"$f":"((Quarterly!CK187/Quarterly!CK183)-1)","v":2.6897825798948949E-2},{"$f":"((Quarterly!CL187/Quarterly!CL183)-1)","v":-0.10868555503947974},{"$f":"((Quarterly!CM187/Quarterly!CM183)-1)","v":3.0649477012892223E-2},{"$f":"((Quarterly!CN187/Quarterly!CN183)-1)","v":1.1518324607329822E-2},{"$f":"((Quarterly!CO187/Quarterly!CO183)-1)","v":0.18920688886411785},{"$f":"((Quarterly!CP187/Quarterly!CP183)-1)","v":5.9029048543887352E-2},{"$f":"((Quarterly!CQ187/Quarterly!CQ183)-1)","v":9.4904363904979583E-3},{"$f":"((Quarterly!CR187/Quarterly!CR183)-1)","v":5.7447255707634204E-2},{"$f":"Quarterly!CS187-Quarterly!CS183","v":-13.166666666666657},"--",null,null,null,null,null,{"$f":"((Quarterly!CZ187/Quarterly!CZ183)-1)","v":2.9764133283414429E-2},{"$f":"((Quarterly!DA187/Quarterly!DA183)-1)","v":1.8342151675484919E-2},null,null,null,null,null,{"$f":"((Quarterly!DG187/Quarterly!DG183)-1)","v":-1.2288276320159608E-2},{"$f":"((Quarterly!DH187-Quarterly!DH183)*60)","v":-4.000000000000199},{"$f":"Quarterly!DI187-Quarterly!DI183","v":-0.26666666666666572},{"$f":"(Quarterly!DJ187-Quarterly!DJ183)*100","v":59.999999999999964},{"$f":"(Quarterly!DK187-Quarterly!DK183)*100","v":16.666666666666696},{"$f":"((Quarterly!DL187/Quarterly!DL183)-1)","v":-4.6771941132237593E-2},null,null,null,{"$f":"((Quarterly!DP187/Quarterly!DP183)-1)","v":-2.6330949188659858E-3},null,null,null,null,{"$f":"Quarterly!DU187-Quarterly!DU183","v":1.2333333333333325},{"$f":"((Quarterly!DV187/Quarterly!DV183)-1)","v":-1.4596012072633613E-2},{"$f":"((Quarterly!DW187/Quarterly!DW183)-1)","v":-1.5145768540291815E-2},{"$f":"((Quarterly!DX187/Quarterly!DX183)-1)","v":-2.1147610320033872E-2},{"$f":"((Quarterly!DY187/Quarterly!DY183)-1)","v":-1.6267376515823884E-3},{"$f":"((Quarterly!DZ187/Quarterly!DZ183)-1)","v":-2.725590004627465E-2},{"$f":"((Quarterly!EA187/Quarterly!EA183)-1)","v":-3.1213497728747375E-2},{"$f":"((Quarterly!EB187/Quarterly!EB183)-1)","v":-1.7419354838709489E-2},{"$f":"((Quarterly!EC187/Quarterly!EC183)-1)","v":8.9469446184153867E-5},null,null,null,null,null,{"$f":"((Quarterly!EI187/Quarterly!EI183)-1)","v":1.4823183388294137E-2},{"$f":"((Quarterly!EJ187/Quarterly!EJ183)-1)","v":1.7335774133875326E-2},{"$f":"((Quarterly!EK187/Quarterly!EK183)-1)","v":1.862128536288421E-2},null,null,null,null,null,{"$f":"((Quarterly!EQ187/Quarterly!EQ183)-1)","v":7.0855960693043674E-2},{"$f":"((Quarterly!ER187/Quarterly!ER183)-1)","v":6.6651855143318173E-4},{"$f":"((Quarterly!ES187/Quarterly!ES183)-1)","v":-1.1953143676783906E-3},null,null,null,null,null,{"$f":"(Quarterly!EY187-Quarterly!EY183)*100","v":-50},{"$f":"(Quarterly!EZ187-Quarterly!EZ183)*100","v":-48.333333333333314},{"$f":"(Quarterly!FA187-Quarterly!FA183)*100","v":-61.999999999999829},{"$f":"(Quarterly!FB187-Quarterly!FB183)*100","v":-83.6666666666666},"--",{"$f":"(Quarterly!FD187-Quarterly!FD183)*100","v":-112.99999999999999},{"$f":"(Quarterly!FE187-Quarterly!FE183)*100","v":-56.666666666666686},{"$f":"(Quarterly!FF187-Quarterly!FF183)*100","v":-102.00000000000003},{"$f":"(Quarterly!FG187-Quarterly!FG183)*100","v":-155.66666666666663},{"$f":"(Quarterly!FH187-Quarterly!FH183)*100","v":-155.00000000000003},{"$f":"(Quarterly!FI187-Quarterly!FI183)*100","v":-115.66666666666671},null,null,null,null,null,null,{"$f":"((Quarterly!FP187/Quarterly!FP183)-1)","v":-5.313767297963945E-2},{"$f":"((Quarterly!FQ187/Quarterly!FQ183)-1)","v":6.846253287218218E-5},{"$f":"((Quarterly!FR187/Quarterly!FR183)-1)","v":0.18804284993012033},{"$f":"((Quarterly!FS187/Quarterly!FS183)-1)","v":0.22425394411708788},{"$f":"((Quarterly!FT187/Quarterly!FT183)-1)","v":-4.5201284247326501E-2},{"$f":"((Quarterly!FU187/Quarterly!FU183)-1)","v":-0.12156608980351302},{"$f":"((Quarterly!FV187/Quarterly!FV183)-1)","v":9.4918162962014607E-2},{"$f":"((Quarterly!FW187/Quarterly!FW183)-1)","v":0.31432104392450766},{"$f":"((Quarterly!FX187/Quarterly!FX183)-1)","v":8.08745878837831E-2},null,null,null,null,null,{"$f":"((Quarterly!GD187/Quarterly!GD183)-1)","v":0.57889865802869034},{"$f":"((Quarterly!GE187/Quarterly!GE183)-1)","v":0.49148264984227108},{"$f":"((Quarterly!GF187/Quarterly!GF183)-1)","v":0.35170258948445321},{"$f":"((Quarterly!GG187/Quarterly!GG183)-1)","v":0.37199434229137185},{"$f":"((Quarterly!GH187/Quarterly!GH183)-1)","v":{"$error":"#DIV/0!"}},"--",{"$f":"((Quarterly!GJ187/Quarterly!GJ183)-1)","v":1.3867166577396892},{"$f":"((Quarterly!GK187/Quarterly!GK183)-1)","v":0.12079943402900595},"--"]
["03'Q2",{"$f":"((Quarterly!B188/Quarterly!B184)-1)","v":3.9863821328549598E-2},{"$f":"((Quarterly!C188/Quarterly!C184)-1)","v":2.0095164803356047E-2},{"$f":"((Quarterly!D188/Quarterly!D184)-1)","v":2.1928047058633382E-2},{"$f":"((Quarterly!E188/Quarterly!E184)-1)","v":2.8170274349916813E-2},{"$f":"((Quarterly!F188/Quarterly!F184)-1)","v":6.496310252786941E-2},{"$f":"((Quarterly!G188/Quarterly!G184)-1)","v":2.9957871742861464E-2},{"$f":"((Quarterly!H188/Quarterly!H184)-1)","v":2.01080363478221E-2},{"$f":"((Quarterly!I188/Quarterly!I184)-1)","v":8.3004018363956877E-3},{"$f":"((Quarterly!J188/Quarterly!J184)-1)","v":2.9317709253751323E-2},{"$f":"((Quarterly!K188/Quarterly!K184)-1)","v":5.6076354304597009E-2},{"$f":"((Quarterly!L188-Quarterly!L184))","v":-26.675000000000001},{"$f":"((Quarterly!M188/Quarterly!M184)-1)","v":3.8010137952717571E-2},{"$f":"((Quarterly!N188/Quarterly!N184)-1)","v":-1.353985811730285E-2},{"$f":"((Quarterly!O188/Quarterly!O184)-1)","v":0.1444414694981897},{"$f":"((Quarterly!P188/Quarterly!P184)-1)","v":2.7567462340672089E-2},{"$f":"((Quarterly!Q188/Quarterly!Q184)-1)","v":0.50785996540039124},null,null,null,null,null,{"$f":"((Quarterly!W188/Quarterly!W184)-1)","v":5.5096418732782926E-3},{"$f":"((Quarterly!X188/Quarterly!X184)-1)","v":4.8867170146600358E-3},{"$f":"((Quarterly!Y188/Quarterly!Y184)-1)","v":-6.6786933784378055E-2},{"$f":"Quarterly!Z188-Quarterly!Z184","v":-0.27},{"$f":"((Quarterly!AA188/Quarterly!AA184)-1)","v":0.22667905156276591},{"$f":"((Quarterly!AB188/Quarterly!AB184)-1)","v":0.15367848901114711},{"$f":"Quarterly!AC188-Quarterly!AC184","v":-10.600000000000001},{"$f":"Quarterly!AD188-Quarterly!AD184","v":7.1999999999999993},{"$f":"(Quarterly!AE188-Quarterly!AE184)*100","v":-13.999999999999989},{"$f":"(Quarterly!AF188-Quarterly!AF184)*100","v":-27},{"$f":"(Quarterly!AG188-Quarterly!AG184)*100","v":-23.000000000000011},{"$f":"((Quarterly!AH188/Quarterly!AH184)-1)","v":0.28105243584975836},{"$f":"((Quarterly!AI188/Quarterly!AI184)-1)","v":0.23925132881389755},{"$f":"((Quarterly!AJ188/Quarterly!AJ184)-1)","v":5.7623049219687861E-2},{"$f":"((Quarterly!AK188/Quarterly!AK184)-1)","v":3.4792368125701634E-2},{"$f":"((Quarterly!AL188/Quarterly!AL184)-1)","v":2.4017467248908408E-2},{"$f":"((Quarterly!AM188/Quarterly!AM184)-1)","v":4.115000764890242E-3},{"$f":"((Quarterly!AN188/Quarterly!AN184)-1)","v":7.6728877652525451E-3},{"$f":"((Quarterly!AO188/Quarterly!AO184)-1)","v":3.2202500141139012E-2},{"$f":"(Quarterly!AP188-Quarterly!AP184)*100","v":1.6666666666666163},{"$f":"Quarterly!AQ188-Quarterly!AQ184","v":-5},{"$f":"Quarterly!AR188-Quarterly!AR184","v":-5.8333333333333357},{"$f":"Quarterly!AS188-Quarterly!AS184","v":3.6666666666666643},{"$f":"Quarterly!AT188-Quarterly!AT184","v":-4.13333333333334},{"$f":"Quarterly!AU188-Quarterly!AU184","v":-0.73333333333332718},{"$f":"Quarterly!AV188-Quarterly!AV184","v":-9.9999999999994316E-2},{"$f":"Quarterly!AW188-Quarterly!AW184","v":0.26666666666666572},{"$f":"Quarterly!AX188-Quarterly!AX184","v":-9.5666666666666629},{"$f":"Quarterly!AY188-Quarterly!AY184","v":-5.7666666666666728},{"$f":"Quarterly!AZ188-Quarterly!AZ184","v":-8.0333333333333314},{"$f":"Quarterly!BA188-Quarterly!BA184","v":-3.6666666666666714},{"$f":"Quarterly!BB188-Quarterly!BB184","v":-2.7999999999999972},{"$f":"((Quarterly!BC188/Quarterly!BC184)-1)","v":3.3874297626126371E-3},{"$f":"((Quarterly!BD188/Quarterly!BD184)-1)","v":5.9136153346163178E-2},{"$f":"((Quarterly!BE188/Quarterly!BE184)-1)","v":-1.1522085679117056E-2},{"$f":"((Quarterly!BF188/Quarterly!BF184)-1)","v":3.1594136857294952E-2},{"$f":"((Quarterly!BG188/Quarterly!BG184)-1)","v":2.9956255468066573E-2},{"$f":"((Quarterly!BH188/Quarterly!BH184)-1)","v":1.126319243757079E-2},{"$f":"((Quarterly!BI188/Quarterly!BI184)-1)","v":1.5951040072919032E-3},{"$f":"((Quarterly!BJ188/Quarterly!BJ184)-1)","v":0.4297605482757465},{"$f":"((Quarterly!BK188/Quarterly!BK184)-1)","v":-0.16874999999999996},null,{"$f":"((Quarterly!BM188/Quarterly!BM184)-1)","v":3.5397664926876571E-2},{"$f":"((Quarterly!BN188/Quarterly!BN184)-1)","v":3.3730935819022978E-2},null,null,null,null,null,{"$f":"((Quarterly!BT188/Quarterly!BT184)-1)","v":5.0144266245486957E-2},{"$f":"Quarterly!BU188-Quarterly!BU184","v":-7.2659999999999059E-2},{"$f":"Quarterly!BV188-Quarterly!BV184","v":-0.25324000000000169},{"$f":"((Quarterly!BW188/Quarterly!BW184)-1)","v":8.0216727153431311E-2},{"$f":"((Quarterly!BX188/Quarterly!BX184)-1)","v":3.7058939483540332E-2},{"$f":"((Quarterly!BY188/Quarterly!BY184)-1)","v":7.1942446043165464E-2},{"$f":"((Quarterly!BZ188/Quarterly!BZ184)-1)","v":0.11248742787570798},{"$f":"((Quarterly!CA188/Quarterly!CA184)-1)","v":-1.0880693794792506E-2},{"$f":"((Quarterly!CB188/Quarterly!CB184)-1)","v":0.1381561248235561},{"$f":"((Quarterly!CC188/Quarterly!CC184)-1)","v":0.10663431259707945},"--","--",null,"--","--",null,{"$f":"((Quarterly!CJ188/Quarterly!CJ184)-1)","v":0.14350400557297105},{"$f":"((Quarterly!CK188/Quarterly!CK184)-1)","v":3.1225724570290936E-2},{"$f":"((Quarterly!CL188/Quarterly!CL184)-1)","v":-5.2332719459791011E-2},{"$f":"((Quarterly!CM188/Quarterly!CM184)-1)","v":5.7079318013343316E-2},{"$f":"((Quarterly!CN188/Quarterly!CN184)-1)","v":2.0999173594581144E-2},{"$f":"((Quarterly!CO188/Quarterly!CO184)-1)","v":0.18989122280570148},{"$f":"((Quarterly!CP188/Quarterly!CP184)-1)","v":5.7280168500107642E-2},{"$f":"((Quarterly!CQ188/Quarterly!CQ184)-1)","v":9.4694072436156684E-3},{"$f":"((Quarterly!CR188/Quarterly!CR184)-1)","v":4.6590997862610228E-2},{"$f":"Quarterly!CS188-Quarterly!CS184","v":-4.8333333333333428},"--",null,null,null,null,null,{"$f":"((Quarterly!CZ188/Quarterly!CZ184)-1)","v":2.0059435364041756E-2},{"$f":"((Quarterly!DA188/Quarterly!DA184)-1)","v":1.4914897350412293E-2},null,null,null,null,null,{"$f":"((Quarterly!DG188/Quarterly!DG184)-1)","v":-1.7292983039574494E-2},{"$f":"((Quarterly!DH188-Quarterly!DH184)*60)","v":-13.999999999999631},{"$f":"Quarterly!DI188-Quarterly!DI184","v":-0.23333333333333428},{"$f":"(Quarterly!DJ188-Quarterly!DJ184)*100","v":63.333333333333286},{"$f":"(Quarterly!DK188-Quarterly!DK184)*100","v":29.999999999999982},{"$f":"((Quarterly!DL188/Quarterly!DL184)-1)","v":-5.1448063093401775E-2},null,null,null,{"$f":"((Quarterly!DP188/Quarterly!DP184)-1)","v":-3.4953616296038437E-3},null,null,null,null,{"$f":"Quarterly!DU188-Quarterly!DU184","v":0.73333333333333428},{"$f":"((Quarterly!DV188/Quarterly!DV184)-1)","v":-1.6771019677996435E-2},{"$f":"((Quarterly!DW188/Quarterly!DW184)-1)","v":-1.6669150891836737E-2},{"$f":"((Quarterly!DX188/Quarterly!DX184)-1)","v":-2.2164641619104364E-2},{"$f":"((Quarterly!DY188/Quarterly!DY184)-1)","v":-1.6511127063890796E-2},{"$f":"((Quarterly!DZ188/Quarterly!DZ184)-1)","v":-2.3988144855052518E-2},{"$f":"((Quarterly!EA188/Quarterly!EA184)-1)","v":-3.0168762624617096E-2},{"$f":"((Quarterly!EB188/Quarterly!EB184)-1)","v":-8.8042260284937335E-3},{"$f":"((Quarterly!EC188/Quarterly!EC184)-1)","v":-3.2492518170159634E-3},null,null,null,null,null,{"$f":"((Quarterly!EI188/Quarterly!EI184)-1)","v":3.0131564512684061E-2},{"$f":"((Quarterly!EJ188/Quarterly!EJ184)-1)","v":3.3421371675352862E-2},{"$f":"((Quarterly!EK188/Quarterly!EK184)-1)","v":2.8214023724470572E-2},null,null,null,null,null,{"$f":"((Quarterly!EQ188/Quarterly!EQ184)-1)","v":4.8407643312101678E-2},{"$f":"((Quarterly!ER188/Quarterly!ER184)-1)","v":-1.995565410199629E-3},{"$f":"((Quarterly!ES188/Quarterly!ES184)-1)","v":-4.7869794159904888E-4},null,null,null,null,null,{"$f":"(Quarterly!EY188-Quarterly!EY184)*100","v":-51.000000000000071},{"$f":"(Quarterly!EZ188-Quarterly!EZ184)*100","v":-50.333333333333321},{"$f":"(Quarterly!FA188-Quarterly!FA184)*100","v":-140.33333333333343},{"$f":"(Quarterly!FB188-Quarterly!FB184)*100","v":-154.9999999999998},"--",{"$f":"(Quarterly!FD188-Quarterly!FD184)*100","v":-131.00000000000006},{"$f":"(Quarterly!FE188-Quarterly!FE184)*100","v":-67.666666666666671},{"$f":"(Quarterly!FF188-Quarterly!FF184)*100","v":-119},{"$f":"(Quarterly!FG188-Quarterly!FG184)*100","v":-180},{"$f":"(Quarterly!FH188-Quarterly!FH184)*100","v":-187.00000000000006},{"$f":"(Quarterly!FI188-Quarterly!FI184)*100","v":-148.00000000000009},null,null,null,null,null,null,{"$f":"((Quarterly!FP188/Quarterly!FP184)-1)","v":-0.10052535649190519},{"$f":"((Quarterly!FQ188/Quarterly!FQ184)-1)","v":1.2081720759171688E-5},{"$f":"((Quarterly!FR188/Quarterly!FR184)-1)","v":0.10204662838980538},{"$f":"((Quarterly!FS188/Quarterly!FS184)-1)","v":0.23562031097096869},{"$f":"((Quarterly!FT188/Quarterly!FT184)-1)","v":-6.2399392108589247E-2},{"$f":"((Quarterly!FU188/Quarterly!FU184)-1)","v":-0.13004390497951868},{"$f":"((Quarterly!FV188/Quarterly!FV184)-1)","v":2.3542924350598904E-2},{"$f":"((Quarterly!FW188/Quarterly!FW184)-1)","v":0.19756872710360351},{"$f":"((Quarterly!FX188/Quarterly!FX184)-1)","v":-1.848976264076907E-2},null,null,null,null,null,{"$f":"((Quarterly!GD188/Quarterly!GD184)-1)","v":0.10531658418982359},{"$f":"((Quarterly!GE188/Quarterly!GE184)-1)","v":4.4571580627993601E-2},{"$f":"((Quarterly!GF188/Quarterly!GF184)-1)","v":9.3038923025100528E-2},{"$f":"((Quarterly!GG188/Quarterly!GG184)-1)","v":0.1302564102564101},{"$f":"((Quarterly!GH188/Quarterly!GH184)-1)","v":{"$error":"#DIV/0!"}},"--",{"$f":"((Quarterly!GJ188/Quarterly!GJ184)-1)","v":0.68188037529319767},{"$f":"((Quarterly!GK188/Quarterly!GK184)-1)","v":4.4885272876862503E-2},"--"]
["03'Q3",{"$f":"((Quarterly!B189/Quarterly!B185)-1)","v":5.3282319734327732E-2},{"$f":"((Quarterly!C189/Quarterly!C185)-1)","v":3.2154633198538729E-2},{"$f":"((Quarterly!D189/Quarterly!D185)-1)","v":3.393769896990162E-2},{"$f":"((Quarterly!E189/Quarterly!E185)-1)","v":3.6087791346811171E-2},{"$f":"((Quarterly!F189/Quarterly!F185)-1)","v":8.0768790756206466E-2},{"$f":"((Quarterly!G189/Quarterly!G185)-1)","v":4.6470201653349807E-2},{"$f":"((Quarterly!H189/Quarterly!H185)-1)","v":2.3716834335546499E-2},{"$f":"((Quarterly!I189/Quarterly!I185)-1)","v":3.4616440833495243E-2},{"$f":"((Quarterly!J189/Quarterly!J185)-1)","v":4.7824316636112973E-2},{"$f":"((Quarterly!K189/Quarterly!K185)-1)","v":0.11335400325091172},{"$f":"((Quarterly!L189-Quarterly!L185))","v":-24.845999999999997},{"$f":"((Quarterly!M189/Quarterly!M185)-1)","v":3.5983663149595779E-2},{"$f":"((Quarterly!N189/Quarterly!N185)-1)","v":5.5749831420506268E-3},{"$f":"((Quarterly!O189/Quarterly!O185)-1)","v":9.7331006772888973E-2},{"$f":"((Quarterly!P189/Quarterly!P185)-1)","v":1.9677609383319083E-2},{"$f":"((Quarterly!Q189/Quarterly!Q185)-1)","v":0.70650509282669938},null,null,null,null,null,{"$f":"((Quarterly!W189/Quarterly!W185)-1)","v":4.098360655737654E-3},{"$f":"((Quarterly!X189/Quarterly!X185)-1)","v":6.1864781263807345E-3},{"$f":"((Quarterly!Y189/Quarterly!Y185)-1)","v":-6.3238918313425652E-2},{"$f":"Quarterly!Z189-Quarterly!Z185","v":-0.47},{"$f":"((Quarterly!AA189/Quarterly!AA185)-1)","v":0.18215241880759314},{"$f":"((Quarterly!AB189/Quarterly!AB185)-1)","v":0.15743502908457896},{"$f":"Quarterly!AC189-Quarterly!AC185","v":-14.399999999999999},{"$f":"Quarterly!AD189-Quarterly!AD185","v":24.099999999999998},{"$f":"(Quarterly!AE189-Quarterly!AE185)*100","v":-25},{"$f":"(Quarterly!AF189-Quarterly!AF185)*100","v":-47},{"$f":"(Quarterly!AG189-Quarterly!AG185)*100","v":-26.000000000000011},{"$f":"((Quarterly!AH189/Quarterly!AH185)-1)","v":0.2882906429691583},{"$f":"((Quarterly!AI189/Quarterly!AI185)-1)","v":0.22716700641655962},{"$f":"((Quarterly!AJ189/Quarterly!AJ185)-1)","v":6.3020214030915733E-2},{"$f":"((Quarterly!AK189/Quarterly!AK185)-1)","v":4.0178571428571619E-2},{"$f":"((Quarterly!AL189/Quarterly!AL185)-1)","v":2.934782608695663E-2},{"$f":"((Quarterly!AM189/Quarterly!AM185)-1)","v":4.0717975232362758E-3},{"$f":"((Quarterly!AN189/Quarterly!AN185)-1)","v":6.3498871154927805E-3},{"$f":"((Quarterly!AO189/Quarterly!AO185)-1)","v":1.2140450632436517E-2},{"$f":"(Quarterly!AP189-Quarterly!AP185)*100","v":-3.3333333333333437},{"$f":"Quarterly!AQ189-Quarterly!AQ185","v":1.86666666666666},{"$f":"Quarterly!AR189-Quarterly!AR185","v":6.6666666666666643},{"$f":"Quarterly!AS189-Quarterly!AS185","v":1.5},{"$f":"Quarterly!AT189-Quarterly!AT185","v":0.76666666666666572},{"$f":"Quarterly!AU189-Quarterly!AU185","v":1.9666666666666757},{"$f":"Quarterly!AV189-Quarterly!AV185","v":3.6666666666666643},{"$f":"Quarterly!AW189-Quarterly!AW185","v":0.30000000000001137},{"$f":"Quarterly!AX189-Quarterly!AX185","v":7.7666666666666586},{"$f":"Quarterly!AY189-Quarterly!AY185","v":-10.100000000000009},{"$f":"Quarterly!AZ189-Quarterly!AZ185","v":2.8333333333333357},{"$f":"Quarterly!BA189-Quarterly!BA185","v":-2.4000000000000057},{"$f":"Quarterly!BB189-Quarterly!BB185","v":10.899999999999999},{"$f":"((Quarterly!BC189/Quarterly!BC185)-1)","v":2.0524860577602277E-2},{"$f":"((Quarterly!BD189/Quarterly!BD185)-1)","v":7.2860912174896209E-2},{"$f":"((Quarterly!BE189/Quarterly!BE185)-1)","v":-1.2809833401056459E-2},{"$f":"((Quarterly!BF189/Quarterly!BF185)-1)","v":4.1907041189066518E-2},{"$f":"((Quarterly!BG189/Quarterly!BG185)-1)","v":4.4275957865493654E-2},{"$f":"((Quarterly!BH189/Quarterly!BH185)-1)","v":1.9350328860268773E-2},{"$f":"((Quarterly!BI189/Quarterly!BI185)-1)","v":-2.2634035931533569E-3},{"$f":"((Quarterly!BJ189/Quarterly!BJ185)-1)","v":0.31604220947492023},{"$f":"((Quarterly!BK189/Quarterly!BK185)-1)","v":-0.27011494252873558},null,{"$f":"((Quarterly!BM189/Quarterly!BM185)-1)","v":5.1645374396259935E-2},{"$f":"((Quarterly!BN189/Quarterly!BN185)-1)","v":4.9808735268303428E-2},null,null,null,null,null,{"$f":"((Quarterly!BT189/Quarterly!BT185)-1)","v":4.908057802233956E-2},{"$f":"Quarterly!BU189-Quarterly!BU185","v":-0.25792999999999999},{"$f":"Quarterly!BV189-Quarterly!BV185","v":-0.51009000000000171},{"$f":"((Quarterly!BW189/Quarterly!BW185)-1)","v":8.9140340910048632E-2},{"$f":"((Quarterly!BX189/Quarterly!BX185)-1)","v":0.11331500392772997},{"$f":"((Quarterly!BY189/Quarterly!BY185)-1)","v":0.11000763941940406},{"$f":"((Quarterly!BZ189/Quarterly!BZ185)-1)","v":0.10291257166257162},{"$f":"((Quarterly!CA189/Quarterly!CA185)-1)","v":-1.1615001913509282E-2},{"$f":"((Quarterly!CB189/Quarterly!CB185)-1)","v":0.14231607437386851},{"$f":"((Quarterly!CC189/Quarterly!CC185)-1)","v":0.1166019386207171},"--","--",null,"--","--",null,{"$f":"((Quarterly!CJ189/Quarterly!CJ185)-1)","v":0.16290643662906423},{"$f":"((Quarterly!CK189/Quarterly!CK185)-1)","v":4.1119980815278012E-2},{"$f":"((Quarterly!CL189/Quarterly!CL185)-1)","v":0.16754066305217319},{"$f":"((Quarterly!CM189/Quarterly!CM185)-1)","v":0.13894422310756971},{"$f":"((Quarterly!CN189/Quarterly!CN185)-1)","v":3.9078744501180873E-2},{"$f":"((Quarterly!CO189/Quarterly!CO185)-1)","v":0.19022031166039755},{"$f":"((Quarterly!CP189/Quarterly!CP185)-1)","v":5.292057480270751E-2},{"$f":"((Quarterly!CQ189/Quarterly!CQ185)-1)","v":9.3979421627752302E-3},{"$f":"((Quarterly!CR189/Quarterly!CR185)-1)","v":3.4536857313816283E-2},{"$f":"Quarterly!CS189-Quarterly!CS185","v":2.0333333333333456},"--",null,null,null,null,null,{"$f":"((Quarterly!CZ189/Quarterly!CZ185)-1)","v":2.2168852761869529E-2},{"$f":"((Quarterly!DA189/Quarterly!DA185)-1)","v":1.3614941525571522E-2},null,null,null,null,null,{"$f":"((Quarterly!DG189/Quarterly!DG185)-1)","v":-1.368948247078472E-2},{"$f":"((Quarterly!DH189-Quarterly!DH185)*60)","v":-14.000000000000057},{"$f":"Quarterly!DI189-Quarterly!DI185","v":-0.46666666666666856},{"$f":"(Quarterly!DJ189-Quarterly!DJ185)*100","v":66.6666666666666},{"$f":"(Quarterly!DK189-Quarterly!DK185)*100","v":39.999999999999943},{"$f":"((Quarterly!DL189/Quarterly!DL185)-1)","v":-5.3155052035305017E-2},null,null,null,{"$f":"((Quarterly!DP189/Quarterly!DP185)-1)","v":-2.6447800058716497E-3},null,null,null,null,{"$f":"Quarterly!DU189-Quarterly!DU185","v":1.0666666666666664},{"$f":"((Quarterly!DV189/Quarterly!DV185)-1)","v":-5.4791093319987993E-3},{"$f":"((Quarterly!DW189/Quarterly!DW185)-1)","v":-6.0934994449240998E-3},{"$f":"((Quarterly!DX189/Quarterly!DX185)-1)","v":-1.5532622004547747E-2},{"$f":"((Quarterly!DY189/Quarterly!DY185)-1)","v":-1.3135593220339081E-2},{"$f":"((Quarterly!DZ189/Quarterly!DZ185)-1)","v":-1.6321785631248753E-2},{"$f":"((Quarterly!EA189/Quarterly!EA185)-1)","v":-2.5812807881773536E-2},{"$f":"((Quarterly!EB189/Quarterly!EB185)-1)","v":6.6878980891720285E-3},{"$f":"((Quarterly!EC189/Quarterly!EC185)-1)","v":1.6485355648535593E-2},null,null,null,null,null,{"$f":"((Quarterly!EI189/Quarterly!EI185)-1)","v":5.0326224511615614E-2},{"$f":"((Quarterly!EJ189/Quarterly!EJ185)-1)","v":4.0343948328961599E-2},{"$f":"((Quarterly!EK189/Quarterly!EK185)-1)","v":3.1596949424815834E-2},null,null,null,null,null,{"$f":"((Quarterly!EQ189/Quarterly!EQ185)-1)","v":4.8607594936708853E-2},{"$f":"((Quarterly!ER189/Quarterly!ER185)-1)","v":2.2212350066637132E-3},{"$f":"((Quarterly!ES189/Quarterly!ES185)-1)","v":5.2821128451381316E-3},null,null,null,null,null,{"$f":"(Quarterly!EY189-Quarterly!EY185)*100","v":-75},{"$f":"(Quarterly!EZ189-Quarterly!EZ185)*100","v":-72.333333333333343},{"$f":"(Quarterly!FA189-Quarterly!FA185)*100","v":-65.333333333333428},{"$f":"(Quarterly!FB189-Quarterly!FB185)*100","v":-82.000000000000199},"--",{"$f":"(Quarterly!FD189-Quarterly!FD185)*100","v":-27.666666666666728},{"$f":"(Quarterly!FE189-Quarterly!FE185)*100","v":-71.333333333333329},{"$f":"(Quarterly!FF189-Quarterly!FF185)*100","v":-58.999999999999986},{"$f":"(Quarterly!FG189-Quarterly!FG185)*100","v":-55.000000000000007},{"$f":"(Quarterly!FH189-Quarterly!FH185)*100","v":-20.666666666666611},{"$f":"(Quarterly!FI189-Quarterly!FI185)*100","v":-2.6666666666667282},null,null,null,null,null,null,{"$f":"((Quarterly!FP189/Quarterly!FP185)-1)","v":-0.11709407175289377},{"$f":"((Quarterly!FQ189/Quarterly!FQ185)-1)","v":4.0273051287620376E-5},{"$f":"((Quarterly!FR189/Quarterly!FR185)-1)","v":8.3367858021011543E-2},{"$f":"((Quarterly!FS189/Quarterly!FS185)-1)","v":0.14446853194228026},{"$f":"((Quarterly!FT189/Quarterly!FT185)-1)","v":-4.8341608918814671E-2},{"$f":"((Quarterly!FU189/Quarterly!FU185)-1)","v":-9.4540097072421059E-2},{"$f":"((Quarterly!FV189/Quarterly!FV185)-1)","v":4.4646102916721553E-2},{"$f":"((Quarterly!FW189/Quarterly!FW185)-1)","v":0.15963301737887736},{"$f":"((Quarterly!FX189/Quarterly!FX185)-1)","v":-6.1147300460993037E-3},null,null,null,null,null,{"$f":"((Quarterly!GD189/Quarterly!GD185)-1)","v":6.6478409224614676E-2},{"$f":"((Quarterly!GE189/Quarterly!GE185)-1)","v":5.6442629038247372E-2},{"$f":"((Quarterly!GF189/Quarterly!GF185)-1)","v":0.15231512035847028},{"$f":"((Quarterly!GG189/Quarterly!GG185)-1)","v":8.6924219910846867E-2},{"$f":"((Quarterly!GH189/Quarterly!GH185)-1)","v":{"$error":"#DIV/0!"}},"--",{"$f":"((Quarterly!GJ189/Quarterly!GJ185)-1)","v":0.52858481724461082},{"$f":"((Quarterly!GK189/Quarterly!GK185)-1)","v":-1.1056850640376314E-3},"--"]
["03'Q4",{"$f":"((Quarterly!B190/Quarterly!B186)-1)","v":6.4211424630447267E-2},{"$f":"((Quarterly!C190/Quarterly!C186)-1)","v":4.3558570122097962E-2},{"$f":"((Quarterly!D190/Quarterly!D186)-1)","v":4.2689696238554786E-2},{"$f":"((Quarterly!E190/Quarterly!E186)-1)","v":3.8554207607856217E-2},{"$f":"((Quarterly!F190/Quarterly!F186)-1)","v":0.10993387726692694},{"$f":"((Quarterly!G190/Quarterly!G186)-1)","v":4.0152278197927327E-2},{"$f":"((Quarterly!H190/Quarterly!H186)-1)","v":2.403990420273705E-2},{"$f":"((Quarterly!I190/Quarterly!I186)-1)","v":6.2161967944832863E-2},{"$f":"((Quarterly!J190/Quarterly!J186)-1)","v":7.9996389783085986E-2},{"$f":"((Quarterly!K190/Quarterly!K186)-1)","v":0.12615987146013263},{"$f":"((Quarterly!L190-Quarterly!L186))","v":11.457000000000001},{"$f":"((Quarterly!M190/Quarterly!M186)-1)","v":5.0861333561114108E-2},{"$f":"((Quarterly!N190/Quarterly!N186)-1)","v":6.4204205854670793E-2},{"$f":"((Quarterly!O190/Quarterly!O186)-1)","v":2.6524442773678825E-2},{"$f":"((Quarterly!P190/Quarterly!P186)-1)","v":1.7967639980811967E-2},{"$f":"((Quarterly!Q190/Quarterly!Q186)-1)","v":0.30024147590070527},null,null,null,null,null,{"$f":"((Quarterly!W190/Quarterly!W186)-1)","v":1.9151846785225857E-2},{"$f":"((Quarterly!X190/Quarterly!X186)-1)","v":1.7241379310344973E-2},{"$f":"((Quarterly!Y190/Quarterly!Y186)-1)","v":-7.9443380252828155E-2},{"$f":"Quarterly!Z190-Quarterly!Z186","v":-0.52},{"$f":"((Quarterly!AA190/Quarterly!AA186)-1)","v":0.13276035949456677},{"$f":"((Quarterly!AB190/Quarterly!AB186)-1)","v":0.1111921075678739},{"$f":"Quarterly!AC190-Quarterly!AC186","v":-19.5},{"$f":"Quarterly!AD190-Quarterly!AD186","v":44.300000000000004},{"$f":"(Quarterly!AE190-Quarterly!AE186)*100","v":-26},{"$f":"(Quarterly!AF190-Quarterly!AF186)*100","v":-52},{"$f":"(Quarterly!AG190-Quarterly!AG186)*100","v":-23.000000000000011},{"$f":"((Quarterly!AH190/Quarterly!AH186)-1)","v":0.27463809601701161},{"$f":"((Quarterly!AI190/Quarterly!AI186)-1)","v":0.21433942239399428},{"$f":"((Quarterly!AJ190/Quarterly!AJ186)-1)","v":6.4705882352941169E-2},{"$f":"((Quarterly!AK190/Quarterly!AK186)-1)","v":3.9911308203991025E-2},{"$f":"((Quarterly!AL190/Quarterly!AL186)-1)","v":3.1419284940411796E-2},{"$f":"((Quarterly!AM190/Quarterly!AM186)-1)","v":1.4697777484854679E-2},{"$f":"((Quarterly!AN190/Quarterly!AN186)-1)","v":1.9317578190451989E-2},{"$f":"((Quarterly!AO190/Quarterly!AO186)-1)","v":9.8731634596251894E-3},{"$f":"(Quarterly!AP190-Quarterly!AP186)*100","v":-4.6666666666666856},{"$f":"Quarterly!AQ190-Quarterly!AQ186","v":8.2000000000000028},{"$f":"Quarterly!AR190-Quarterly!AR186","v":13.666666666666671},{"$f":"Quarterly!AS190-Quarterly!AS186","v":-4.8333333333333357},{"$f":"Quarterly!AT190-Quarterly!AT186","v":4.8000000000000043},{"$f":"Quarterly!AU190-Quarterly!AU186","v":6.9666666666666615},{"$f":"Quarterly!AV190-Quarterly!AV186","v":6.5666666666666629},{"$f":"Quarterly!AW190-Quarterly!AW186","v":3.6333333333333329},{"$f":"Quarterly!AX190-Quarterly!AX186","v":14.700000000000003},{"$f":"Quarterly!AY190-Quarterly!AY186","v":5.8666666666666671},{"$f":"Quarterly!AZ190-Quarterly!AZ186","v":13.833333333333321},{"$f":"Quarterly!BA190-Quarterly!BA186","v":3.9666666666666686},{"$f":"Quarterly!BB190-Quarterly!BB186","v":6.7000000000000028},{"$f":"((Quarterly!BC190/Quarterly!BC186)-1)","v":6.2084618834690186E-2},{"$f":"((Quarterly!BD190/Quarterly!BD186)-1)","v":6.9948347750326878E-2},{"$f":"((Quarterly!BE190/Quarterly!BE186)-1)","v":-1.6958963370670155E-3},{"$f":"((Quarterly!BF190/Quarterly!BF186)-1)","v":5.3492667847853115E-2},{"$f":"((Quarterly!BG190/Quarterly!BG186)-1)","v":5.6274496161784704E-2},{"$f":"((Quarterly!BH190/Quarterly!BH186)-1)","v":3.2582359192348642E-2},{"$f":"((Quarterly!BI190/Quarterly!BI186)-1)","v":-2.6332614514364971E-3},{"$f":"((Quarterly!BJ190/Quarterly!BJ186)-1)","v":0.15566551502020265},{"$f":"((Quarterly!BK190/Quarterly!BK186)-1)","v":-0.29714285714285715},null,{"$f":"((Quarterly!BM190/Quarterly!BM186)-1)","v":5.2357451127406973E-2},{"$f":"((Quarterly!BN190/Quarterly!BN186)-1)","v":4.9655534944375024E-2},null,null,null,null,null,{"$f":"((Quarterly!BT190/Quarterly!BT186)-1)","v":5.8302227992170774E-2},{"$f":"Quarterly!BU190-Quarterly!BU186","v":-0.17647999999999975},{"$f":"Quarterly!BV190-Quarterly!BV186","v":-0.38016000000000005},{"$f":"((Quarterly!BW190/Quarterly!BW186)-1)","v":9.0856801905363271E-2},{"$f":"((Quarterly!BX190/Quarterly!BX186)-1)","v":0.17691269994218528},{"$f":"((Quarterly!BY190/Quarterly!BY186)-1)","v":8.2510062202707513E-2},{"$f":"((Quarterly!BZ190/Quarterly!BZ186)-1)","v":0.10990431216602436},{"$f":"((Quarterly!CA190/Quarterly!CA186)-1)","v":1.2492204944579699E-2},{"$f":"((Quarterly!CB190/Quarterly!CB186)-1)","v":-3.5109573180876819E-2},{"$f":"((Quarterly!CC190/Quarterly!CC186)-1)","v":-2.5225662348097311E-2},"--","--",null,"--","--",null,{"$f":"((Quarterly!CJ190/Quarterly!CJ186)-1)","v":9.3567251461988299E-2},{"$f":"((Quarterly!CK190/Quarterly!CK186)-1)","v":4.8287699636156534E-2},{"$f":"((Quarterly!CL190/Quarterly!CL186)-1)","v":7.2515745276417132E-2},{"$f":"((Quarterly!CM190/Quarterly!CM186)-1)","v":0.1880525686977299},{"$f":"((Quarterly!CN190/Quarterly!CN186)-1)","v":3.8265270211298219E-2},{"$f":"((Quarterly!CO190/Quarterly!CO186)-1)","v":0.1501869420662274},{"$f":"((Quarterly!CP190/Quarterly!CP186)-1)","v":5.340849362075395E-2},{"$f":"((Quarterly!CQ190/Quarterly!CQ186)-1)","v":9.3394474044983244E-3},{"$f":"((Quarterly!CR190/Quarterly!CR186)-1)","v":2.2237748573868288E-2},{"$f":"Quarterly!CS190-Quarterly!CS186","v":8.1333333333333258},"--",null,null,null,null,null,{"$f":"((Quarterly!CZ190/Quarterly!CZ186)-1)","v":2.0018365472910915E-2},{"$f":"((Quarterly!DA190/Quarterly!DA186)-1)","v":1.1642050390964442E-2},null,null,null,null,null,{"$f":"((Quarterly!DG190/Quarterly!DG186)-1)","v":-6.3608972212922943E-3},{"$f":"((Quarterly!DH190-Quarterly!DH186)*60)","v":-6.0000000000000853},{"$f":"Quarterly!DI190-Quarterly!DI186","v":-0.40000000000000568},{"$f":"(Quarterly!DJ190-Quarterly!DJ186)*100","v":30.000000000000071},{"$f":"(Quarterly!DK190-Quarterly!DK186)*100","v":-3.3333333333334103},{"$f":"((Quarterly!DL190/Quarterly!DL186)-1)","v":-4.4791388666488796E-2},null,null,null,{"$f":"((Quarterly!DP190/Quarterly!DP186)-1)","v":-5.4872835394259578E-4},null,null,null,null,{"$f":"Quarterly!DU190-Quarterly!DU186","v":0.86666666666666714},{"$f":"((Quarterly!DV190/Quarterly!DV186)-1)","v":-2.1729899842644063E-3},{"$f":"((Quarterly!DW190/Quarterly!DW186)-1)","v":-3.0712834992816518E-3},{"$f":"((Quarterly!DX190/Quarterly!DX186)-1)","v":-1.0389791506868362E-2},{"$f":"((Quarterly!DY190/Quarterly!DY186)-1)","v":-5.4084827782523437E-3},{"$f":"((Quarterly!DZ190/Quarterly!DZ186)-1)","v":-1.2005910602142733E-2},{"$f":"((Quarterly!EA190/Quarterly!EA186)-1)","v":-2.5318927362665944E-2},{"$f":"((Quarterly!EB190/Quarterly!EB186)-1)","v":2.0502225047679401E-2},{"$f":"((Quarterly!EC190/Quarterly!EC186)-1)","v":1.4881970578173087E-2},null,null,null,null,null,{"$f":"((Quarterly!EI190/Quarterly!EI186)-1)","v":7.1736756061306917E-2},{"$f":"((Quarterly!EJ190/Quarterly!EJ186)-1)","v":4.9930306584883066E-2},{"$f":"((Quarterly!EK190/Quarterly!EK186)-1)","v":3.6722496818573758E-2},null,null,null,null,null,{"$f":"((Quarterly!EQ190/Quarterly!EQ186)-1)","v":4.6342685370741821E-2},{"$f":"((Quarterly!ER190/Quarterly!ER186)-1)","v":6.218076837663844E-3},{"$f":"((Quarterly!ES190/Quarterly!ES186)-1)","v":6.9544364508393741E-3},null,null,null,null,null,{"$f":"(Quarterly!EY190-Quarterly!EY186)*100","v":-45.000000000000014},{"$f":"(Quarterly!EZ190-Quarterly!EZ186)*100","v":-44.666666666666679},{"$f":"(Quarterly!FA190-Quarterly!FA186)*100","v":-62.333333333333307},{"$f":"(Quarterly!FB190-Quarterly!FB186)*100","v":-93.666666666666657},"--",{"$f":"(Quarterly!FD190-Quarterly!FD186)*100","v":-15.666666666666806},{"$f":"(Quarterly!FE190-Quarterly!FE186)*100","v":-41.666666666666664},{"$f":"(Quarterly!FF190-Quarterly!FF186)*100","v":-23},{"$f":"(Quarterly!FG190-Quarterly!FG186)*100","v":-2.6666666666666616},{"$f":"(Quarterly!FH190-Quarterly!FH186)*100","v":24.000000000000021},{"$f":"(Quarterly!FI190-Quarterly!FI186)*100","v":27.999999999999936},null,null,null,null,null,null,{"$f":"((Quarterly!FP190/Quarterly!FP186)-1)","v":-0.16157325801176547},{"$f":"((Quarterly!FQ190/Quarterly!FQ186)-1)","v":-5.637863893925843E-5},{"$f":"((Quarterly!FR190/Quarterly!FR186)-1)","v":0.1004804289122514},{"$f":"((Quarterly!FS190/Quarterly!FS186)-1)","v":0.1899796795362938},{"$f":"((Quarterly!FT190/Quarterly!FT186)-1)","v":-8.2584206638317337E-2},{"$f":"((Quarterly!FU190/Quarterly!FU186)-1)","v":-0.14417009771264322},{"$f":"((Quarterly!FV190/Quarterly!FV186)-1)","v":7.8765655417486924E-2},{"$f":"((Quarterly!FW190/Quarterly!FW186)-1)","v":0.22884969256317045},{"$f":"((Quarterly!FX190/Quarterly!FX186)-1)","v":5.2065045582068148E-2},null,null,null,null,null,{"$f":"((Quarterly!GD190/Quarterly!GD186)-1)","v":0.10681334279630916},{"$f":"((Quarterly!GE190/Quarterly!GE186)-1)","v":9.9239496322154341E-2},{"$f":"((Quarterly!GF190/Quarterly!GF186)-1)","v":6.9744042798596029E-2},{"$f":"((Quarterly!GG190/Quarterly!GG186)-1)","v":3.2938993273022632E-2},{"$f":"((Quarterly!GH190/Quarterly!GH186)-1)","v":{"$error":"#DIV/0!"}},"--",{"$f":"((Quarterly!GJ190/Quarterly!GJ186)-1)","v":0.25628567021440696},{"$f":"((Quarterly!GK190/Quarterly!GK186)-1)","v":5.9905862216513839E-4},"--"]
["04'Q1",{"$f":"((Quarterly!B191/Quarterly!B187)-1)","v":6.7526245142731867E-2},{"$f":"((Quarterly!C191/Quarterly!C187)-1)","v":4.415106580230832E-2},{"$f":"((Quarterly!D191/Quarterly!D187)-1)","v":4.276096050873357E-2},{"$f":"((Quarterly!E191/Quarterly!E187)-1)","v":4.4058964637286424E-2},{"$f":"((Quarterly!F191/Quarterly!F187)-1)","v":0.12494217424826526},{"$f":"((Quarterly!G191/Quarterly!G187)-1)","v":4.0845046541989394E-2},{"$f":"((Quarterly!H191/Quarterly!H187)-1)","v":2.9546146816936014E-2},{"$f":"((Quarterly!I191/Quarterly!I187)-1)","v":4.787337649162593E-2},{"$f":"((Quarterly!J191/Quarterly!J187)-1)","v":6.5434744212864659E-2},{"$f":"((Quarterly!K191/Quarterly!K187)-1)","v":0.11888751290862021},{"$f":"((Quarterly!L191-Quarterly!L187))","v":20.064999999999998},{"$f":"((Quarterly!M191/Quarterly!M187)-1)","v":9.8355741069575453E-2},{"$f":"((Quarterly!N191/Quarterly!N187)-1)","v":0.10285272962564296},{"$f":"((Quarterly!O191/Quarterly!O187)-1)","v":8.9964131705154493E-2},{"$f":"((Quarterly!P191/Quarterly!P187)-1)","v":2.4060483284224388E-2},{"$f":"((Quarterly!Q191/Quarterly!Q187)-1)","v":0.32286336450728559},null,null,null,null,null,{"$f":"((Quarterly!W191/Quarterly!W187)-1)","v":2.3192360163710735E-2},{"$f":"((Quarterly!X191/Quarterly!X187)-1)","v":1.8006148440931069E-2},{"$f":"((Quarterly!Y191/Quarterly!Y187)-1)","v":-7.3907638140637055E-2},{"$f":"Quarterly!Z191-Quarterly!Z187","v":-0.71000000000000008},{"$f":"((Quarterly!AA191/Quarterly!AA187)-1)","v":0.30715023864082713},{"$f":"((Quarterly!AB191/Quarterly!AB187)-1)","v":0.27020726004911233},{"$f":"Quarterly!AC191-Quarterly!AC187","v":-10.700000000000001},{"$f":"Quarterly!AD191-Quarterly!AD187","v":42.400000000000006},{"$f":"(Quarterly!AE191-Quarterly!AE187)*100","v":-31.999999999999986},{"$f":"(Quarterly!AF191-Quarterly!AF187)*100","v":-71.000000000000014},{"$f":"(Quarterly!AG191-Quarterly!AG187)*100","v":-19.000000000000007},{"$f":"((Quarterly!AH191/Quarterly!AH187)-1)","v":0.30658018130665843},{"$f":"((Quarterly!AI191/Quarterly!AI187)-1)","v":0.23281806089739221},{"$f":"((Quarterly!AJ191/Quarterly!AJ187)-1)","v":6.7816091954023161E-2},{"$f":"((Quarterly!AK191/Quarterly!AK187)-1)","v":3.8293216630197024E-2},{"$f":"((Quarterly!AL191/Quarterly!AL187)-1)","v":2.5723472668810254E-2},{"$f":"((Quarterly!AM191/Quarterly!AM187)-1)","v":1.5820828365889605E-2},{"$f":"((Quarterly!AN191/Quarterly!AN187)-1)","v":2.0925452189182403E-2},{"$f":"((Quarterly!AO191/Quarterly!AO187)-1)","v":1.1051157119788435E-2},{"$f":"(Quarterly!AP191-Quarterly!AP187)*100","v":-6.0000000000000053},{"$f":"Quarterly!AQ191-Quarterly!AQ187","v":11.63333333333334},{"$f":"Quarterly!AR191-Quarterly!AR187","v":16.833333333333336},{"$f":"Quarterly!AS191-Quarterly!AS187","v":-4.1666666666666643},{"$f":"Quarterly!AT191-Quarterly!AT187","v":11.733333333333341},{"$f":"Quarterly!AU191-Quarterly!AU187","v":3.8666666666666742},{"$f":"Quarterly!AV191-Quarterly!AV187","v":3.2333333333333272},{"$f":"Quarterly!AW191-Quarterly!AW187","v":5.13333333333334},{"$f":"Quarterly!AX191-Quarterly!AX187","v":14.799999999999997},{"$f":"Quarterly!AY191-Quarterly!AY187","v":16.666666666666671},{"$f":"Quarterly!AZ191-Quarterly!AZ187","v":15.666666666666671},{"$f":"Quarterly!BA191-Quarterly!BA187","v":10.966666666666683},{"$f":"Quarterly!BB191-Quarterly!BB187","v":11.466666666666661},{"$f":"((Quarterly!BC191/Quarterly!BC187)-1)","v":4.612387325776135E-2},{"$f":"((Quarterly!BD191/Quarterly!BD187)-1)","v":5.6914439155376417E-2},{"$f":"((Quarterly!BE191/Quarterly!BE187)-1)","v":-2.1026719318939513E-2},{"$f":"((Quarterly!BF191/Quarterly!BF187)-1)","v":4.527976829542335E-2},{"$f":"((Quarterly!BG191/Quarterly!BG187)-1)","v":4.5384633043318523E-2},{"$f":"((Quarterly!BH191/Quarterly!BH187)-1)","v":2.6345261586048663E-2},{"$f":"((Quarterly!BI191/Quarterly!BI187)-1)","v":-1.0876303796902853E-4},{"$f":"((Quarterly!BJ191/Quarterly!BJ187)-1)","v":0.34675793888208006},{"$f":"((Quarterly!BK191/Quarterly!BK187)-1)","v":-0.52592592592592591},null,{"$f":"((Quarterly!BM191/Quarterly!BM187)-1)","v":6.2037631722923869E-2},{"$f":"((Quarterly!BN191/Quarterly!BN187)-1)","v":5.9832121826292051E-2},null,null,null,null,null,{"$f":"((Quarterly!BT191/Quarterly!BT187)-1)","v":0.10559092880009091},{"$f":"Quarterly!BU191-Quarterly!BU187","v":-0.19913000000000025},{"$f":"Quarterly!BV191-Quarterly!BV187","v":-0.3802500000000002},{"$f":"((Quarterly!BW191/Quarterly!BW187)-1)","v":9.6489853166209727E-2},{"$f":"((Quarterly!BX191/Quarterly!BX187)-1)","v":0.10503072196620589},{"$f":"((Quarterly!BY191/Quarterly!BY187)-1)","v":0.10426277911053705},{"$f":"((Quarterly!BZ191/Quarterly!BZ187)-1)","v":0.12563667232597631},{"$f":"((Quarterly!CA191/Quarterly!CA187)-1)","v":2.8174832686110651E-2},{"$f":"((Quarterly!CB191/Quarterly!CB187)-1)","v":-0.14979673174198138},{"$f":"((Quarterly!CC191/Quarterly!CC187)-1)","v":-0.11130137847220034},"--","--",null,"--","--",null,{"$f":"((Quarterly!CJ191/Quarterly!CJ187)-1)","v":0.22699386503067487},{"$f":"((Quarterly!CK191/Quarterly!CK187)-1)","v":5.4508118878587641E-2},{"$f":"((Quarterly!CL191/Quarterly!CL187)-1)","v":3.3958659023797022E-2},{"$f":"((Quarterly!CM191/Quarterly!CM187)-1)","v":0.10290299740382358},{"$f":"((Quarterly!CN191/Quarterly!CN187)-1)","v":4.2818542302698326E-2},{"$f":"((Quarterly!CO191/Quarterly!CO187)-1)","v":0.13286934514394177},{"$f":"((Quarterly!CP191/Quarterly!CP187)-1)","v":5.2889281210964034E-2},{"$f":"((Quarterly!CQ191/Quarterly!CQ187)-1)","v":9.179156939652211E-3},{"$f":"((Quarterly!CR191/Quarterly!CR187)-1)","v":2.1152850454977612E-2},{"$f":"Quarterly!CS191-Quarterly!CS187","v":18.033333333333331},{"$f":"Quarterly!CT191-Quarterly!CT187","v":23.233333333333334},null,null,null,null,null,{"$f":"((Quarterly!CZ191/Quarterly!CZ187)-1)","v":1.8178512997636842E-2},{"$f":"((Quarterly!DA191/Quarterly!DA187)-1)","v":1.3162452372705191E-2},null,null,null,null,null,{"$f":"((Quarterly!DG191/Quarterly!DG187)-1)","v":1.6812373907195699E-3},{"$f":"((Quarterly!DH191-Quarterly!DH187)*60)","v":-1.9999999999998863},{"$f":"Quarterly!DI191-Quarterly!DI187","v":-0.33333333333334281},{"$f":"(Quarterly!DJ191-Quarterly!DJ187)*100","v":-19.999999999999929},{"$f":"(Quarterly!DK191-Quarterly!DK187)*100","v":-16.666666666666696},{"$f":"((Quarterly!DL191/Quarterly!DL187)-1)","v":-3.4078615218175234E-2},null,null,null,{"$f":"((Quarterly!DP191/Quarterly!DP187)-1)","v":3.7824479082806395E-3},null,null,null,null,{"$f":"Quarterly!DU191-Quarterly!DU187","v":0.7333333333333325},{"$f":"((Quarterly!DV191/Quarterly!DV187)-1)","v":7.9333199437638946E-3},{"$f":"((Quarterly!DW191/Quarterly!DW187)-1)","v":8.3440308087292525E-3},{"$f":"((Quarterly!DX191/Quarterly!DX187)-1)","v":4.5729511738443751E-3},{"$f":"((Quarterly!DY191/Quarterly!DY187)-1)","v":1.7775144423046729E-3},{"$f":"((Quarterly!DZ191/Quarterly!DZ187)-1)","v":5.4707197564338728E-3},{"$f":"((Quarterly!EA191/Quarterly!EA187)-1)","v":-2.1300823899792487E-2},{"$f":"((Quarterly!EB191/Quarterly!EB187)-1)","v":7.1076822061720168E-2},{"$f":"((Quarterly!EC191/Quarterly!EC187)-1)","v":1.7713365539452797E-2},null,null,null,null,null,{"$f":"((Quarterly!EI191/Quarterly!EI187)-1)","v":7.2191582457647785E-2},{"$f":"((Quarterly!EJ191/Quarterly!EJ187)-1)","v":5.3249808950239119E-2},{"$f":"((Quarterly!EK191/Quarterly!EK187)-1)","v":4.2131773158622821E-2},null,null,null,null,null,{"$f":"((Quarterly!EQ191/Quarterly!EQ187)-1)","v":3.0185945423810701E-2},{"$f":"((Quarterly!ER191/Quarterly!ER187)-1)","v":9.1030195381882617E-3},{"$f":"((Quarterly!ES191/Quarterly!ES187)-1)","v":6.4624222115843288E-3},null,null,null,null,null,{"$f":"(Quarterly!EY191-Quarterly!EY187)*100","v":-25},{"$f":"(Quarterly!EZ191-Quarterly!EZ187)*100","v":-24.666666666666682},{"$f":"(Quarterly!FA191-Quarterly!FA187)*100","v":-54.666666666666771},{"$f":"(Quarterly!FB191-Quarterly!FB187)*100","v":-84.666666666666671},"--",{"$f":"(Quarterly!FD191-Quarterly!FD187)*100","v":-22.666666666666657},{"$f":"(Quarterly!FE191-Quarterly!FE187)*100","v":-23.999999999999989},{"$f":"(Quarterly!FF191-Quarterly!FF187)*100","v":-7.6666666666666661},{"$f":"(Quarterly!FG191-Quarterly!FG187)*100","v":4.6666666666666634},{"$f":"(Quarterly!FH191-Quarterly!FH187)*100","v":8.3333333333333925},{"$f":"(Quarterly!FI191-Quarterly!FI187)*100","v":10.000000000000053},null,null,null,null,null,null,{"$f":"((Quarterly!FP191/Quarterly!FP187)-1)","v":-0.12700900741787358},{"$f":"((Quarterly!FQ191/Quarterly!FQ187)-1)","v":-6.4430913952695512E-5},{"$f":"((Quarterly!FR191/Quarterly!FR187)-1)","v":1.5363863970214497E-2},{"$f":"((Quarterly!FS191/Quarterly!FS187)-1)","v":0.1656626506024097},{"$f":"((Quarterly!FT191/Quarterly!FT187)-1)","v":-8.1039453268682893E-2},{"$f":"((Quarterly!FU191/Quarterly!FU187)-1)","v":-0.12852162852468918},{"$f":"((Quarterly!FV191/Quarterly!FV187)-1)","v":0.11005239198263816},{"$f":"((Quarterly!FW191/Quarterly!FW187)-1)","v":0.25729936968381439},{"$f":"((Quarterly!FX191/Quarterly!FX187)-1)","v":8.7354897516018104E-2},null,null,null,null,null,{"$f":"((Quarterly!GD191/Quarterly!GD187)-1)","v":3.3313794450957612E-2},{"$f":"((Quarterly!GE191/Quarterly!GE187)-1)","v":1.2796108291032171E-2},{"$f":"((Quarterly!GF191/Quarterly!GF187)-1)","v":3.9633834509563259E-2},{"$f":"((Quarterly!GG191/Quarterly!GG187)-1)","v":-1.8144329896906952E-2},{"$f":"((Quarterly!GH191/Quarterly!GH187)-1)","v":{"$error":"#DIV/0!"}},"--",{"$f":"((Quarterly!GJ191/Quarterly!GJ187)-1)","v":-3.6299371633752187E-2},{"$f":"((Quarterly!GK191/Quarterly!GK187)-1)","v":-2.2960391352374931E-2},"--"]
["04'Q2",{"$f":"((Quarterly!B192/Quarterly!B188)-1)","v":7.1301533869690514E-2},{"$f":"((Quarterly!C192/Quarterly!C188)-1)","v":4.2134599302057651E-2},{"$f":"((Quarterly!D192/Quarterly!D188)-1)","v":3.5860038691866825E-2},{"$f":"((Quarterly!E192/Quarterly!E188)-1)","v":3.9271998032427202E-2},{"$f":"((Quarterly!F192/Quarterly!F188)-1)","v":8.6027053923555918E-2},{"$f":"((Quarterly!G192/Quarterly!G188)-1)","v":3.6526452221044003E-2},{"$f":"((Quarterly!H192/Quarterly!H188)-1)","v":3.1037190778033352E-2},{"$f":"((Quarterly!I192/Quarterly!I188)-1)","v":4.5895817333313049E-2},{"$f":"((Quarterly!J192/Quarterly!J188)-1)","v":7.0524019261801518E-2},{"$f":"((Quarterly!K192/Quarterly!K188)-1)","v":0.13659715171790143},{"$f":"((Quarterly!L192-Quarterly!L188))","v":82.08},{"$f":"((Quarterly!M192/Quarterly!M188)-1)","v":0.12575854310994505},{"$f":"((Quarterly!N192/Quarterly!N188)-1)","v":0.11836018076066512},{"$f":"((Quarterly!O192/Quarterly!O188)-1)","v":0.13892480267937368},{"$f":"((Quarterly!P192/Quarterly!P188)-1)","v":1.3965685161883457E-2},{"$f":"((Quarterly!Q192/Quarterly!Q188)-1)","v":9.2581070655284314E-4},null,null,null,null,null,{"$f":"((Quarterly!W192/Quarterly!W188)-1)","v":3.5616438356164348E-2},{"$f":"((Quarterly!X192/Quarterly!X188)-1)","v":3.0946065428824276E-2},{"$f":"((Quarterly!Y192/Quarterly!Y188)-1)","v":-6.4820939497404972E-2},{"$f":"Quarterly!Z192-Quarterly!Z188","v":-0.78},{"$f":"((Quarterly!AA192/Quarterly!AA188)-1)","v":0.35795457829723532},{"$f":"((Quarterly!AB192/Quarterly!AB188)-1)","v":0.20789764118296272},{"$f":"Quarterly!AC192-Quarterly!AC188","v":-22.5},{"$f":"Quarterly!AD192-Quarterly!AD188","v":59.3},{"$f":"(Quarterly!AE192-Quarterly!AE188)*100","v":-37.000000000000014},{"$f":"(Quarterly!AF192-Quarterly!AF188)*100","v":-78},{"$f":"(Quarterly!AG192-Quarterly!AG188)*100","v":-21.999999999999996},{"$f":"((Quarterly!AH192/Quarterly!AH188)-1)","v":0.27077436679004285},{"$f":"((Quarterly!AI192/Quarterly!AI188)-1)","v":0.19597495575460999},{"$f":"((Quarterly!AJ192/Quarterly!AJ188)-1)","v":7.1509648127128456E-2},{"$f":"((Quarterly!AK192/Quarterly!AK188)-1)","v":3.9045553145336198E-2},{"$f":"((Quarterly!AL192/Quarterly!AL188)-1)","v":2.7718550106609952E-2},{"$f":"((Quarterly!AM192/Quarterly!AM188)-1)","v":2.8891758306255566E-2},{"$f":"((Quarterly!AN192/Quarterly!AN188)-1)","v":3.3144973442395864E-2},{"$f":"((Quarterly!AO192/Quarterly!AO188)-1)","v":3.402828043504047E-2},{"$f":"(Quarterly!AP192-Quarterly!AP188)*100","v":-6.666666666666643},{"$f":"Quarterly!AQ192-Quarterly!AQ188","v":12.800000000000004},{"$f":"Quarterly!AR192-Quarterly!AR188","v":13.166666666666664},{"$f":"Quarterly!AS192-Quarterly!AS188","v":-6.1666666666666643},{"$f":"Quarterly!AT192-Quarterly!AT188","v":15.633333333333347},{"$f":"Quarterly!AU192-Quarterly!AU188","v":6.6999999999999957},{"$f":"Quarterly!AV192-Quarterly!AV188","v":4.0333333333333314},{"$f":"Quarterly!AW192-Quarterly!AW188","v":4.8333333333333357},{"$f":"Quarterly!AX192-Quarterly!AX188","v":12.766666666666673},{"$f":"Quarterly!AY192-Quarterly!AY188","v":27.833333333333336},{"$f":"Quarterly!AZ192-Quarterly!AZ188","v":13.366666666666653},{"$f":"Quarterly!BA192-Quarterly!BA188","v":17.266666666666659},{"$f":"Quarterly!BB192-Quarterly!BB188","v":7.1000000000000014},{"$f":"((Quarterly!BC192/Quarterly!BC188)-1)","v":4.8648936595240277E-2},{"$f":"((Quarterly!BD192/Quarterly!BD188)-1)","v":5.9793268594394933E-2},{"$f":"((Quarterly!BE192/Quarterly!BE188)-1)","v":-2.0311925856367097E-2},{"$f":"((Quarterly!BF192/Quarterly!BF188)-1)","v":4.6896856364573303E-2},{"$f":"((Quarterly!BG192/Quarterly!BG188)-1)","v":4.1147089803268644E-2},{"$f":"((Quarterly!BH192/Quarterly!BH188)-1)","v":1.8486145858412462E-2},{"$f":"((Quarterly!BI192/Quarterly!BI188)-1)","v":5.525221008840342E-3},{"$f":"((Quarterly!BJ192/Quarterly!BJ188)-1)","v":0.50386901884260538},{"$f":"((Quarterly!BK192/Quarterly!BK188)-1)","v":-0.5864661654135338},null,{"$f":"((Quarterly!BM192/Quarterly!BM188)-1)","v":6.2536727598968334E-2},{"$f":"((Quarterly!BN192/Quarterly!BN188)-1)","v":6.2542623217588744E-2},null,null,null,null,null,{"$f":"((Quarterly!BT192/Quarterly!BT188)-1)","v":0.10879011880855405},{"$f":"Quarterly!BU192-Quarterly!BU188","v":-0.16534000000000049},{"$f":"Quarterly!BV192-Quarterly!BV188","v":-0.29331000000000174},{"$f":"((Quarterly!BW192/Quarterly!BW188)-1)","v":9.4100117209929168E-2},{"$f":"((Quarterly!BX192/Quarterly!BX188)-1)","v":0.10473294050560722},{"$f":"((Quarterly!BY192/Quarterly!BY188)-1)","v":0.13187012515871577},{"$f":"((Quarterly!BZ192/Quarterly!BZ188)-1)","v":0.15485820327369648},{"$f":"((Quarterly!CA192/Quarterly!CA188)-1)","v":1.5059568508859034E-2},{"$f":"((Quarterly!CB192/Quarterly!CB188)-1)","v":3.030347253227017E-2},{"$f":"((Quarterly!CC192/Quarterly!CC188)-1)","v":-1.018949391720958E-2},"--","--",null,"--","--",null,{"$f":"((Quarterly!CJ192/Quarterly!CJ188)-1)","v":9.8690222357599833E-2},{"$f":"((Quarterly!CK192/Quarterly!CK188)-1)","v":5.8045897743307817E-2},{"$f":"((Quarterly!CL192/Quarterly!CL188)-1)","v":4.7287449392712677E-2},{"$f":"((Quarterly!CM192/Quarterly!CM188)-1)","v":0.12762973352033669},{"$f":"((Quarterly!CN192/Quarterly!CN188)-1)","v":3.804565894154277E-2},{"$f":"((Quarterly!CO192/Quarterly!CO188)-1)","v":0.13449219233757037},{"$f":"((Quarterly!CP192/Quarterly!CP188)-1)","v":4.7190156656338411E-2},{"$f":"((Quarterly!CQ192/Quarterly!CQ188)-1)","v":9.1199752024844205E-3},{"$f":"((Quarterly!CR192/Quarterly!CR188)-1)","v":1.9710375339994757E-2},{"$f":"Quarterly!CS192-Quarterly!CS188","v":4.0666666666666629},{"$f":"Quarterly!CT192-Quarterly!CT188","v":13.599999999999994},null,null,null,null,null,{"$f":"((Quarterly!CZ192/Quarterly!CZ188)-1)","v":2.7858703568827137E-2},{"$f":"((Quarterly!DA192/Quarterly!DA188)-1)","v":1.7807745504841099E-2},null,null,null,null,null,{"$f":"((Quarterly!DG192/Quarterly!DG188)-1)","v":1.4890016920473759E-2},{"$f":"((Quarterly!DH192-Quarterly!DH188)*60)","v":1.99999999999946},{"$f":"Quarterly!DI192-Quarterly!DI188","v":-0.43333333333333712},{"$f":"(Quarterly!DJ192-Quarterly!DJ188)*100","v":-63.333333333333286},{"$f":"(Quarterly!DK192-Quarterly!DK188)*100","v":-53.333333333333414},{"$f":"((Quarterly!DL192/Quarterly!DL188)-1)","v":-1.5346205822396319E-2},null,null,null,{"$f":"((Quarterly!DP192/Quarterly!DP188)-1)","v":1.1104056040022847E-2},null,null,null,null,{"$f":"Quarterly!DU192-Quarterly!DU188","v":-0.40000000000000036},{"$f":"((Quarterly!DV192/Quarterly!DV188)-1)","v":2.0898087079574523E-2},{"$f":"((Quarterly!DW192/Quarterly!DW188)-1)","v":2.0614910441351109E-2},{"$f":"((Quarterly!DX192/Quarterly!DX188)-1)","v":1.2318269712812357E-2},{"$f":"((Quarterly!DY192/Quarterly!DY188)-1)","v":3.3576642335766405E-3},{"$f":"((Quarterly!DZ192/Quarterly!DZ188)-1)","v":1.5230594040614776E-2},{"$f":"((Quarterly!EA192/Quarterly!EA188)-1)","v":-9.4060736361193387E-3},{"$f":"((Quarterly!EB192/Quarterly!EB188)-1)","v":7.4450904392764805E-2},{"$f":"((Quarterly!EC192/Quarterly!EC188)-1)","v":4.0490692287895813E-2},null,null,null,null,null,{"$f":"((Quarterly!EI192/Quarterly!EI188)-1)","v":6.6620884520046442E-2},{"$f":"((Quarterly!EJ192/Quarterly!EJ188)-1)","v":4.4954361415610267E-2},{"$f":"((Quarterly!EK192/Quarterly!EK188)-1)","v":3.8208640350475775E-2},null,null,null,null,null,{"$f":"((Quarterly!EQ192/Quarterly!EQ188)-1)","v":6.6342648845686636E-2},{"$f":"((Quarterly!ER192/Quarterly!ER188)-1)","v":1.5329926682959405E-2},{"$f":"((Quarterly!ES192/Quarterly!ES188)-1)","v":1.340996168582409E-2},null,null,null,null,null,{"$f":"(Quarterly!EY192-Quarterly!EY188)*100","v":-23.666666666666636},{"$f":"(Quarterly!EZ192-Quarterly!EZ188)*100","v":-23.666666666666679},{"$f":"(Quarterly!FA192-Quarterly!FA188)*100","v":61.666666666666714},{"$f":"(Quarterly!FB192-Quarterly!FB188)*100","v":19.000000000000039},"--",{"$f":"(Quarterly!FD192-Quarterly!FD188)*100","v":62.333333333333307},{"$f":"(Quarterly!FE192-Quarterly!FE188)*100","v":3.6666666666666625},{"$f":"(Quarterly!FF192-Quarterly!FF188)*100","v":62.333333333333329},{"$f":"(Quarterly!FG192-Quarterly!FG188)*100","v":103},{"$f":"(Quarterly!FH192-Quarterly!FH188)*100","v":114.99999999999994},{"$f":"(Quarterly!FI192-Quarterly!FI188)*100","v":98.000000000000085},null,null,null,null,null,null,{"$f":"((Quarterly!FP192/Quarterly!FP188)-1)","v":-2.7653944262998498E-2},{"$f":"((Quarterly!FQ192/Quarterly!FQ188)-1)","v":-2.0135957988332009E-5},{"$f":"((Quarterly!FR192/Quarterly!FR188)-1)","v":9.055234923096056E-2},{"$f":"((Quarterly!FS192/Quarterly!FS188)-1)","v":5.9926082365364453E-2},{"$f":"((Quarterly!FT192/Quarterly!FT188)-1)","v":-2.6751907852207601E-2},{"$f":"((Quarterly!FU192/Quarterly!FU188)-1)","v":-5.6787070249257776E-2},{"$f":"((Quarterly!FV192/Quarterly!FV188)-1)","v":0.18498256626077692},{"$f":"((Quarterly!FW192/Quarterly!FW188)-1)","v":0.31422951041118496},{"$f":"((Quarterly!FX192/Quarterly!FX188)-1)","v":0.15868538537627708},null,null,null,null,null,{"$f":"((Quarterly!GD192/Quarterly!GD188)-1)","v":0.32005510274365778},{"$f":"((Quarterly!GE192/Quarterly!GE188)-1)","v":0.35447713667048797},{"$f":"((Quarterly!GF192/Quarterly!GF188)-1)","v":0.24813236559939655},{"$f":"((Quarterly!GG192/Quarterly!GG188)-1)","v":0.1681034482758621},{"$f":"((Quarterly!GH192/Quarterly!GH188)-1)","v":{"$error":"#DIV/0!"}},"--",{"$f":"((Quarterly!GJ192/Quarterly!GJ188)-1)","v":7.4844558080074286E-2},{"$f":"((Quarterly!GK192/Quarterly!GK188)-1)","v":5.0393700787401574E-2},"--"]
["04'Q3",{"$f":"((Quarterly!B193/Quarterly!B189)-1)","v":6.3879419227489631E-2},{"$f":"((Quarterly!C193/Quarterly!C189)-1)","v":3.4284980575974622E-2},{"$f":"((Quarterly!D193/Quarterly!D189)-1)","v":2.9555707016739152E-2},{"$f":"((Quarterly!E193/Quarterly!E189)-1)","v":3.3965739684244323E-2},{"$f":"((Quarterly!F193/Quarterly!F189)-1)","v":5.994848452771584E-2},{"$f":"((Quarterly!G193/Quarterly!G189)-1)","v":2.5549918193987775E-2},{"$f":"((Quarterly!H193/Quarterly!H189)-1)","v":3.1769539993096174E-2},{"$f":"((Quarterly!I193/Quarterly!I189)-1)","v":5.3205470158065982E-2},{"$f":"((Quarterly!J193/Quarterly!J189)-1)","v":7.2578434338550268E-2},{"$f":"((Quarterly!K193/Quarterly!K189)-1)","v":8.2525303404744399E-2},{"$f":"((Quarterly!L193-Quarterly!L189))","v":63.505000000000003},{"$f":"((Quarterly!M193/Quarterly!M189)-1)","v":0.12271753873876423},{"$f":"((Quarterly!N193/Quarterly!N189)-1)","v":9.5633398566004724E-2},{"$f":"((Quarterly!O193/Quarterly!O189)-1)","v":0.17278897579421737},{"$f":"((Quarterly!P193/Quarterly!P189)-1)","v":1.7835350121498283E-2},{"$f":"((Quarterly!Q193/Quarterly!Q189)-1)","v":-0.21027255044310345},null,null,null,null,null,{"$f":"((Quarterly!W193/Quarterly!W189)-1)","v":3.809523809523796E-2},{"$f":"((Quarterly!X193/Quarterly!X189)-1)","v":2.9863855950812646E-2},{"$f":"((Quarterly!Y193/Quarterly!Y189)-1)","v":-3.0454585850346549E-2},{"$f":"Quarterly!Z193-Quarterly!Z189","v":-0.8},{"$f":"((Quarterly!AA193/Quarterly!AA189)-1)","v":0.33455682843889845},{"$f":"((Quarterly!AB193/Quarterly!AB189)-1)","v":0.21240346914087982},{"$f":"Quarterly!AC193-Quarterly!AC189","v":-13.1},{"$f":"Quarterly!AD193-Quarterly!AD189","v":51.2},{"$f":"(Quarterly!AE193-Quarterly!AE189)*100","v":-34},{"$f":"(Quarterly!AF193-Quarterly!AF189)*100","v":-80},{"$f":"(Quarterly!AG193-Quarterly!AG189)*100","v":-26},{"$f":"((Quarterly!AH193/Quarterly!AH189)-1)","v":0.25069317643876388},{"$f":"((Quarterly!AI193/Quarterly!AI189)-1)","v":0.19204895401755118},{"$f":"((Quarterly!AJ193/Quarterly!AJ189)-1)","v":6.7114093959731447E-2},{"$f":"((Quarterly!AK193/Quarterly!AK189)-1)","v":3.7553648068669565E-2},{"$f":"((Quarterly!AL193/Quarterly!AL189)-1)","v":2.6399155227032844E-2},{"$f":"((Quarterly!AM193/Quarterly!AM189)-1)","v":2.8463598362565401E-2},{"$f":"((Quarterly!AN193/Quarterly!AN189)-1)","v":3.5851928413660028E-2},{"$f":"((Quarterly!AO193/Quarterly!AO189)-1)","v":6.8110512458288586E-2},{"$f":"(Quarterly!AP193-Quarterly!AP189)*100","v":-1.3333333333333419},{"$f":"Quarterly!AQ193-Quarterly!AQ189","v":6.4000000000000057},{"$f":"Quarterly!AR193-Quarterly!AR189","v":4.3333333333333357},{"$f":"Quarterly!AS193-Quarterly!AS189","v":-1.8333333333333357},{"$f":"Quarterly!AT193-Quarterly!AT189","v":10.63333333333334},{"$f":"Quarterly!AU193-Quarterly!AU189","v":0.23333333333333428},{"$f":"Quarterly!AV193-Quarterly!AV189","v":1.2666666666666728},{"$f":"Quarterly!AW193-Quarterly!AW189","v":7.2333333333333272},{"$f":"Quarterly!AX193-Quarterly!AX189","v":1.3000000000000114},{"$f":"Quarterly!AY193-Quarterly!AY189","v":24.166666666666671},{"$f":"Quarterly!AZ193-Quarterly!AZ189","v":3.1333333333333258},{"$f":"Quarterly!BA193-Quarterly!BA189","v":9.7333333333333343},{"$f":"Quarterly!BB193-Quarterly!BB189","v":-2.8999999999999986},{"$f":"((Quarterly!BC193/Quarterly!BC189)-1)","v":6.7673038892551052E-2},{"$f":"((Quarterly!BD193/Quarterly!BD189)-1)","v":4.4654463689702384E-2},{"$f":"((Quarterly!BE193/Quarterly!BE189)-1)","v":-2.881280935181918E-4},{"$f":"((Quarterly!BF193/Quarterly!BF189)-1)","v":4.9421521573558058E-2},{"$f":"((Quarterly!BG193/Quarterly!BG189)-1)","v":2.2557224408357834E-2},{"$f":"((Quarterly!BH193/Quarterly!BH189)-1)","v":2.2131249740243497E-2},{"$f":"((Quarterly!BI193/Quarterly!BI189)-1)","v":2.627359879592972E-2},{"$f":"((Quarterly!BJ193/Quarterly!BJ189)-1)","v":0.43224663985876277},{"$f":"((Quarterly!BK193/Quarterly!BK189)-1)","v":-0.62992125984251968},null,{"$f":"((Quarterly!BM193/Quarterly!BM189)-1)","v":4.9795460522080282E-2},{"$f":"((Quarterly!BN193/Quarterly!BN189)-1)","v":4.9196152744872323E-2},null,null,null,null,null,{"$f":"((Quarterly!BT193/Quarterly!BT189)-1)","v":0.10478437099467564},{"$f":"Quarterly!BU193-Quarterly!BU189","v":9.4039999999999679E-2},{"$f":"Quarterly!BV193-Quarterly!BV189","v":5.7520000000000238E-2},{"$f":"((Quarterly!BW193/Quarterly!BW189)-1)","v":9.7128254183480367E-2},{"$f":"((Quarterly!BX193/Quarterly!BX189)-1)","v":4.6216263891338816E-2},{"$f":"((Quarterly!BY193/Quarterly!BY189)-1)","v":6.8306951135581606E-2},{"$f":"((Quarterly!BZ193/Quarterly!BZ189)-1)","v":0.16981876406841012},{"$f":"((Quarterly!CA193/Quarterly!CA189)-1)","v":-1.2274214469633837E-2},{"$f":"((Quarterly!CB193/Quarterly!CB189)-1)","v":-2.8893151738179634E-2},{"$f":"((Quarterly!CC193/Quarterly!CC189)-1)","v":-5.7837468223253419E-2},"--","--",null,"--","--",null,{"$f":"((Quarterly!CJ193/Quarterly!CJ189)-1)","v":-7.9885877318116583E-3},{"$f":"((Quarterly!CK193/Quarterly!CK189)-1)","v":5.86558059022253E-2},{"$f":"((Quarterly!CL193/Quarterly!CL189)-1)","v":-9.9725943970767172E-2},{"$f":"((Quarterly!CM193/Quarterly!CM189)-1)","v":7.5863576738084637E-2},{"$f":"((Quarterly!CN193/Quarterly!CN189)-1)","v":2.669148751527195E-2},{"$f":"((Quarterly!CO193/Quarterly!CO189)-1)","v":0.10579382994732889},{"$f":"((Quarterly!CP193/Quarterly!CP189)-1)","v":4.789839121374162E-2},{"$f":"((Quarterly!CQ193/Quarterly!CQ189)-1)","v":9.0928559240415208E-3},{"$f":"((Quarterly!CR193/Quarterly!CR189)-1)","v":3.0468900688144673E-2},{"$f":"Quarterly!CS193-Quarterly!CS189","v":6.3000000000000114},{"$f":"Quarterly!CT193-Quarterly!CT189","v":21.800000000000011},null,null,null,null,null,{"$f":"((Quarterly!CZ193/Quarterly!CZ189)-1)","v":2.6748599313211718E-2},{"$f":"((Quarterly!DA193/Quarterly!DA189)-1)","v":1.8081625624246644E-2},null,null,null,null,null,{"$f":"((Quarterly!DG193/Quarterly!DG189)-1)","v":2.2681110358835577E-2},{"$f":"((Quarterly!DH193-Quarterly!DH189)*60)","v":7.9999999999999716},{"$f":"Quarterly!DI193-Quarterly!DI189","v":-0.16666666666668561},{"$f":"(Quarterly!DJ193-Quarterly!DJ189)*100","v":-83.3333333333334},{"$f":"(Quarterly!DK193-Quarterly!DK189)*100","v":-69.999999999999929},{"$f":"((Quarterly!DL193/Quarterly!DL189)-1)","v":-2.7594202898549858E-3},null,null,null,{"$f":"((Quarterly!DP193/Quarterly!DP189)-1)","v":1.3392068680425639E-2},null,null,null,null,{"$f":"Quarterly!DU193-Quarterly!DU189","v":-0.96666666666666501},{"$f":"((Quarterly!DV193/Quarterly!DV189)-1)","v":2.5081130034464438E-2},{"$f":"((Quarterly!DW193/Quarterly!DW189)-1)","v":2.6831810961080116E-2},{"$f":"((Quarterly!DX193/Quarterly!DX189)-1)","v":2.3702071710316019E-2},{"$f":"((Quarterly!DY193/Quarterly!DY189)-1)","v":-2.4330900243307862E-3},{"$f":"((Quarterly!DZ193/Quarterly!DZ189)-1)","v":3.2334310295925484E-2},{"$f":"((Quarterly!EA193/Quarterly!EA189)-1)","v":1.9552319309600996E-2},{"$f":"((Quarterly!EB193/Quarterly!EB189)-1)","v":6.2322049984182115E-2},{"$f":"((Quarterly!EC193/Quarterly!EC189)-1)","v":3.4082489503580948E-2},null,null,null,null,null,{"$f":"((Quarterly!EI193/Quarterly!EI189)-1)","v":5.1166117127414035E-2},{"$f":"((Quarterly!EJ193/Quarterly!EJ189)-1)","v":3.8710921374136342E-2},{"$f":"((Quarterly!EK193/Quarterly!EK189)-1)","v":3.596000939200672E-2},null,null,null,null,null,{"$f":"((Quarterly!EQ193/Quarterly!EQ189)-1)","v":6.9773056494446983E-2},{"$f":"((Quarterly!ER193/Quarterly!ER189)-1)","v":1.6400709219857923E-2},{"$f":"((Quarterly!ES193/Quarterly!ES189)-1)","v":1.6001910675901287E-2},null,null,null,null,null,{"$f":"(Quarterly!EY193-Quarterly!EY189)*100","v":41.999999999999993},{"$f":"(Quarterly!EZ193-Quarterly!EZ189)*100","v":41.666666666666671},{"$f":"(Quarterly!FA193-Quarterly!FA189)*100","v":-5.3333333333332789},{"$f":"(Quarterly!FB193-Quarterly!FB189)*100","v":-35.666666666666558},"--",{"$f":"(Quarterly!FD193-Quarterly!FD189)*100","v":-11.999999999999922},{"$f":"(Quarterly!FE193-Quarterly!FE189)*100","v":55.66666666666665},{"$f":"(Quarterly!FF193-Quarterly!FF189)*100","v":85.666666666666671},{"$f":"(Quarterly!FG193-Quarterly!FG189)*100","v":88.000000000000014},{"$f":"(Quarterly!FH193-Quarterly!FH189)*100","v":36.666666666666629},{"$f":"(Quarterly!FI193-Quarterly!FI189)*100","v":7.0000000000000284},null,null,null,null,null,null,{"$f":"((Quarterly!FP193/Quarterly!FP189)-1)","v":-5.275484089043414E-2},{"$f":"((Quarterly!FQ193/Quarterly!FQ189)-1)","v":-5.2352858264770319E-5},{"$f":"((Quarterly!FR193/Quarterly!FR189)-1)","v":6.7967292625295439E-2},{"$f":"((Quarterly!FS193/Quarterly!FS189)-1)","v":8.565424571580782E-2},{"$f":"((Quarterly!FT193/Quarterly!FT189)-1)","v":-3.3898428509051226E-2},{"$f":"((Quarterly!FU193/Quarterly!FU189)-1)","v":-7.1533867418561048E-2},{"$f":"((Quarterly!FV193/Quarterly!FV189)-1)","v":0.17507612287017915},{"$f":"((Quarterly!FW193/Quarterly!FW189)-1)","v":0.28761888870348762},{"$f":"((Quarterly!FX193/Quarterly!FX189)-1)","v":0.13591947496840873},null,null,null,null,null,{"$f":"((Quarterly!GD193/Quarterly!GD189)-1)","v":0.45167696381288591},{"$f":"((Quarterly!GE193/Quarterly!GE189)-1)","v":0.45471587580550699},{"$f":"((Quarterly!GF193/Quarterly!GF189)-1)","v":0.16148188340266478},{"$f":"((Quarterly!GG193/Quarterly!GG189)-1)","v":0.25062656641603986},{"$f":"((Quarterly!GH193/Quarterly!GH189)-1)","v":{"$error":"#DIV/0!"}},"--",{"$f":"((Quarterly!GJ193/Quarterly!GJ189)-1)","v":0.14135840316097847},{"$f":"((Quarterly!GK193/Quarterly!GK189)-1)","v":9.2057928235402819E-2},"--"]
["04'Q4",{"$f":"((Quarterly!B194/Quarterly!B190)-1)","v":6.3074123028119322E-2},{"$f":"((Quarterly!C194/Quarterly!C190)-1)","v":3.1168234074054446E-2},{"$f":"((Quarterly!D194/Quarterly!D190)-1)","v":2.8978073427366802E-2},{"$f":"((Quarterly!E194/Quarterly!E190)-1)","v":3.6523547346298368E-2},{"$f":"((Quarterly!F194/Quarterly!F190)-1)","v":6.1315496098104605E-2},{"$f":"((Quarterly!G194/Quarterly!G190)-1)","v":2.7687964680201738E-2},{"$f":"((Quarterly!H194/Quarterly!H190)-1)","v":3.474337780382486E-2},{"$f":"((Quarterly!I194/Quarterly!I190)-1)","v":6.0397912656308117E-2},{"$f":"((Quarterly!J194/Quarterly!J190)-1)","v":8.2636915705610159E-2},{"$f":"((Quarterly!K194/Quarterly!K190)-1)","v":6.5808833364543462E-2},{"$f":"((Quarterly!L194-Quarterly!L190))","v":29.670999999999992},{"$f":"((Quarterly!M194/Quarterly!M190)-1)","v":0.10946848939090037},{"$f":"((Quarterly!N194/Quarterly!N190)-1)","v":7.4915512460903333E-2},{"$f":"((Quarterly!O194/Quarterly!O190)-1)","v":0.17480514645296341},{"$f":"((Quarterly!P194/Quarterly!P190)-1)","v":7.8619743654988472E-3},{"$f":"((Quarterly!Q194/Quarterly!Q190)-1)","v":-5.7705736401860053E-2},null,null,null,null,null,{"$f":"((Quarterly!W194/Quarterly!W190)-1)","v":3.7583892617449655E-2},{"$f":"((Quarterly!X194/Quarterly!X190)-1)","v":3.302911777488049E-2},{"$f":"((Quarterly!Y194/Quarterly!Y190)-1)","v":1.5440986009116253E-2},{"$f":"Quarterly!Z194-Quarterly!Z190","v":-0.74},{"$f":"((Quarterly!AA194/Quarterly!AA190)-1)","v":0.23665203139069835},{"$f":"((Quarterly!AB194/Quarterly!AB190)-1)","v":0.12900481470234393},{"$f":"Quarterly!AC194-Quarterly!AC190","v":-9.3000000000000007},{"$f":"Quarterly!AD194-Quarterly!AD190","v":29.4},{"$f":"(Quarterly!AE194-Quarterly!AE190)*100","v":-34},{"$f":"(Quarterly!AF194-Quarterly!AF190)*100","v":-74},{"$f":"(Quarterly!AG194-Quarterly!AG190)*100","v":-24},{"$f":"((Quarterly!AH194/Quarterly!AH190)-1)","v":0.26044273339749768},{"$f":"((Quarterly!AI194/Quarterly!AI190)-1)","v":0.17509609378442903},{"$f":"((Quarterly!AJ194/Quarterly!AJ190)-1)","v":6.6298342541436517E-2},{"$f":"((Quarterly!AK194/Quarterly!AK190)-1)","v":3.7313432835820892E-2},{"$f":"((Quarterly!AL194/Quarterly!AL190)-1)","v":2.6260504201680579E-2},{"$f":"((Quarterly!AM194/Quarterly!AM190)-1)","v":3.2411573440310537E-2},{"$f":"((Quarterly!AN194/Quarterly!AN190)-1)","v":3.902495666613981E-2},{"$f":"((Quarterly!AO194/Quarterly!AO190)-1)","v":7.837142780638473E-2},{"$f":"(Quarterly!AP194-Quarterly!AP190)*100","v":-2.3333333333333206},{"$f":"Quarterly!AQ194-Quarterly!AQ190","v":-1.3333333333333357},{"$f":"Quarterly!AR194-Quarterly!AR190","v":-7.6666666666666714},{"$f":"Quarterly!AS194-Quarterly!AS190","v":4.5},{"$f":"Quarterly!AT194-Quarterly!AT190","v":4.3666666666666671},{"$f":"Quarterly!AU194-Quarterly!AU190","v":-1.8666666666666529},{"$f":"Quarterly!AV194-Quarterly!AV190","v":0.13333333333333997},{"$f":"Quarterly!AW194-Quarterly!AW190","v":3.5333333333333314},{"$f":"Quarterly!AX194-Quarterly!AX190","v":-6.6666666666666643},{"$f":"Quarterly!AY194-Quarterly!AY190","v":11.999999999999993},{"$f":"Quarterly!AZ194-Quarterly!AZ190","v":-8.2999999999999901},{"$f":"Quarterly!BA194-Quarterly!BA190","v":0.3333333333333286},{"$f":"Quarterly!BB194-Quarterly!BB190","v":1.1000000000000014},{"$f":"((Quarterly!BC194/Quarterly!BC190)-1)","v":5.8992897818158641E-2},{"$f":"((Quarterly!BD194/Quarterly!BD190)-1)","v":5.9175245739545135E-2},{"$f":"((Quarterly!BE194/Quarterly!BE190)-1)","v":-2.6315789473684292E-2},{"$f":"((Quarterly!BF194/Quarterly!BF190)-1)","v":4.0005725327417085E-2},{"$f":"((Quarterly!BG194/Quarterly!BG190)-1)","v":1.6060862214708482E-2},{"$f":"((Quarterly!BH194/Quarterly!BH190)-1)","v":5.9691661692360398E-3},{"$f":"((Quarterly!BI194/Quarterly!BI190)-1)","v":2.3566353028096954E-2},{"$f":"((Quarterly!BJ194/Quarterly!BJ190)-1)","v":0.37091151388628485},{"$f":"((Quarterly!BK194/Quarterly!BK190)-1)","v":-0.60162601626016254},null,{"$f":"((Quarterly!BM194/Quarterly!BM190)-1)","v":7.1309179494253083E-2},{"$f":"((Quarterly!BN194/Quarterly!BN190)-1)","v":7.2629498187001262E-2},null,null,null,null,null,{"$f":"((Quarterly!BT194/Quarterly!BT190)-1)","v":6.6505921687785019E-2},{"$f":"Quarterly!BU194-Quarterly!BU190","v":3.0229999999999535E-2},{"$f":"Quarterly!BV194-Quarterly!BV190","v":-4.480999999999824E-2},{"$f":"((Quarterly!BW194/Quarterly!BW190)-1)","v":8.956363636363629E-2},{"$f":"((Quarterly!BX194/Quarterly!BX190)-1)","v":-3.4550515801539339E-2},{"$f":"((Quarterly!BY194/Quarterly!BY190)-1)","v":5.7630556025012769E-2},{"$f":"((Quarterly!BZ194/Quarterly!BZ190)-1)","v":0.16319949839890735},{"$f":"((Quarterly!CA194/Quarterly!CA190)-1)","v":2.5093379957084938E-2},{"$f":"((Quarterly!CB194/Quarterly!CB190)-1)","v":0.12547405076166562},{"$f":"((Quarterly!CC194/Quarterly!CC190)-1)","v":5.899320892470028E-2},"--","--",null,"--","--",null,{"$f":"((Quarterly!CJ194/Quarterly!CJ190)-1)","v":0.10695187165775399},{"$f":"((Quarterly!CK194/Quarterly!CK190)-1)","v":6.5316399961473426E-2},{"$f":"((Quarterly!CL194/Quarterly!CL190)-1)","v":2.6099013131066107E-2},{"$f":"((Quarterly!CM194/Quarterly!CM190)-1)","v":-2.8157683024939595E-2},{"$f":"((Quarterly!CN194/Quarterly!CN190)-1)","v":3.5339857162710597E-2},{"$f":"((Quarterly!CO194/Quarterly!CO190)-1)","v":0.11045815994832875},{"$f":"((Quarterly!CP194/Quarterly!CP190)-1)","v":5.5313552143985589E-2},{"$f":"((Quarterly!CQ194/Quarterly!CQ190)-1)","v":9.139936645308433E-3},{"$f":"((Quarterly!CR194/Quarterly!CR190)-1)","v":4.1165931080431761E-2},{"$f":"Quarterly!CS194-Quarterly!CS190","v":1.9000000000000199},{"$f":"Quarterly!CT194-Quarterly!CT190","v":6.3999999999999915},null,null,null,null,null,{"$f":"((Quarterly!CZ194/Quarterly!CZ190)-1)","v":3.3849477853799215E-2},{"$f":"((Quarterly!DA194/Quarterly!DA190)-1)","v":2.164204740638942E-2},null,null,null,null,null,{"$f":"((Quarterly!DG194/Quarterly!DG190)-1)","v":2.1900269541778927E-2},{"$f":"((Quarterly!DH194-Quarterly!DH190)*60)","v":4.2632564145606011E-13},{"$f":"Quarterly!DI194-Quarterly!DI190","v":-9.9999999999994316E-2},{"$f":"(Quarterly!DJ194-Quarterly!DJ190)*100","v":-56.666666666666643},{"$f":"(Quarterly!DK194-Quarterly!DK190)*100","v":-39.999999999999943},{"$f":"((Quarterly!DL194/Quarterly!DL190)-1)","v":-5.5878928987196375E-4},null,null,null,{"$f":"((Quarterly!DP194/Quarterly!DP190)-1)","v":1.5457099080694592E-2},null,null,null,null,{"$f":"Quarterly!DU194-Quarterly!DU190","v":-0.80000000000000071},{"$f":"((Quarterly!DV194/Quarterly!DV190)-1)","v":2.3479349186482867E-2},{"$f":"((Quarterly!DW194/Quarterly!DW190)-1)","v":2.2708074534161238E-2},{"$f":"((Quarterly!DX194/Quarterly!DX190)-1)","v":2.1314825253664127E-2},{"$f":"((Quarterly!DY194/Quarterly!DY190)-1)","v":-7.4413279908412955E-3},{"$f":"((Quarterly!DZ194/Quarterly!DZ190)-1)","v":3.0706674144699964E-2},{"$f":"((Quarterly!EA194/Quarterly!EA190)-1)","v":2.2103505843071858E-2},{"$f":"((Quarterly!EB194/Quarterly!EB190)-1)","v":5.0770907958262113E-2},{"$f":"((Quarterly!EC194/Quarterly!EC190)-1)","v":2.6040788808360027E-2},null,null,null,null,null,{"$f":"((Quarterly!EI194/Quarterly!EI190)-1)","v":4.4771569141572654E-2},{"$f":"((Quarterly!EJ194/Quarterly!EJ190)-1)","v":3.7793187417608509E-2},{"$f":"((Quarterly!EK194/Quarterly!EK190)-1)","v":3.5954047423986113E-2},null,null,null,null,null,{"$f":"((Quarterly!EQ194/Quarterly!EQ190)-1)","v":8.1158726358630418E-2},{"$f":"((Quarterly!ER194/Quarterly!ER190)-1)","v":2.0304568527918843E-2},{"$f":"((Quarterly!ES194/Quarterly!ES190)-1)","v":2.0957370802572095E-2},null,null,null,null,null,{"$f":"(Quarterly!EY194-Quarterly!EY190)*100","v":94.333333333333343},{"$f":"(Quarterly!EZ194-Quarterly!EZ190)*100","v":95.333333333333343},{"$f":"(Quarterly!FA194-Quarterly!FA190)*100","v":-17.000000000000171},{"$f":"(Quarterly!FB194-Quarterly!FB190)*100","v":-47.666666666666657},"--",{"$f":"(Quarterly!FD194-Quarterly!FD190)*100","v":-18.666666666666565},{"$f":"(Quarterly!FE194-Quarterly!FE190)*100","v":108.99999999999999},{"$f":"(Quarterly!FF194-Quarterly!FF190)*100","v":116.66666666666667},{"$f":"(Quarterly!FG194-Quarterly!FG190)*100","v":94.999999999999972},{"$f":"(Quarterly!FH194-Quarterly!FH190)*100","v":24.333333333333364},{"$f":"(Quarterly!FI194-Quarterly!FI190)*100","v":-11.333333333333329},null,null,null,null,null,null,{"$f":"((Quarterly!FP194/Quarterly!FP190)-1)","v":-7.2266268142556767E-2},{"$f":"((Quarterly!FQ194/Quarterly!FQ190)-1)","v":-4.8327272287873591E-5},{"$f":"((Quarterly!FR194/Quarterly!FR190)-1)","v":1.1774690668691745E-2},{"$f":"((Quarterly!FS194/Quarterly!FS190)-1)","v":8.9244723139801696E-2},{"$f":"((Quarterly!FT194/Quarterly!FT190)-1)","v":-4.1581203581720239E-2},{"$f":"((Quarterly!FU194/Quarterly!FU190)-1)","v":-6.8680389960236954E-2},{"$f":"((Quarterly!FV194/Quarterly!FV190)-1)","v":0.15717001211221659},{"$f":"((Quarterly!FW194/Quarterly!FW190)-1)","v":0.29677684441197938},{"$f":"((Quarterly!FX194/Quarterly!FX190)-1)","v":0.13401210253055429},null,null,null,null,null,{"$f":"((Quarterly!GD194/Quarterly!GD190)-1)","v":0.54878700438174666},{"$f":"((Quarterly!GE194/Quarterly!GE190)-1)","v":0.50266530565952139},{"$f":"((Quarterly!GF194/Quarterly!GF190)-1)","v":0.27732788878438219},{"$f":"((Quarterly!GG194/Quarterly!GG190)-1)","v":0.41253087805973454},{"$f":"((Quarterly!GH194/Quarterly!GH190)-1)","v":{"$error":"#DIV/0!"}},"--",{"$f":"((Quarterly!GJ194/Quarterly!GJ190)-1)","v":0.33875621585118765},{"$f":"((Quarterly!GK194/Quarterly!GK190)-1)","v":6.226479644201155E-2},"--"]
["05'Q1",{"$f":"((Quarterly!B195/Quarterly!B191)-1)","v":6.884369836416071E-2},{"$f":"((Quarterly!C195/Quarterly!C191)-1)","v":3.6201203409338856E-2},{"$f":"((Quarterly!D195/Quarterly!D191)-1)","v":3.2297744662961314E-2},{"$f":"((Quarterly!E195/Quarterly!E191)-1)","v":3.4383439663164594E-2},{"$f":"((Quarterly!F195/Quarterly!F191)-1)","v":5.5070079846475606E-2},{"$f":"((Quarterly!G195/Quarterly!G191)-1)","v":3.3117221606828728E-2},{"$f":"((Quarterly!H195/Quarterly!H191)-1)","v":3.0813061582292356E-2},{"$f":"((Quarterly!I195/Quarterly!I191)-1)","v":8.5561062442678359E-2},{"$f":"((Quarterly!J195/Quarterly!J191)-1)","v":0.10417591285051442},{"$f":"((Quarterly!K195/Quarterly!K191)-1)","v":7.8349700258001143E-2},{"$f":"((Quarterly!L195-Quarterly!L191))","v":54.900999999999996},{"$f":"((Quarterly!M195/Quarterly!M191)-1)","v":8.9129268087843494E-2},{"$f":"((Quarterly!N195/Quarterly!N191)-1)","v":5.9557455021713501E-2},{"$f":"((Quarterly!O195/Quarterly!O191)-1)","v":0.1449642969124374},{"$f":"((Quarterly!P195/Quarterly!P191)-1)","v":7.2141978965150066E-3},{"$f":"((Quarterly!Q195/Quarterly!Q191)-1)","v":-0.29049292581171782},null,null,null,null,null,{"$f":"((Quarterly!W195/Quarterly!W191)-1)","v":4.4000000000000039E-2},{"$f":"((Quarterly!X195/Quarterly!X191)-1)","v":3.7532355478861135E-2},{"$f":"((Quarterly!Y195/Quarterly!Y191)-1)","v":6.8262689600403048E-2},{"$f":"Quarterly!Z195-Quarterly!Z191","v":-0.42000000000000004},{"$f":"((Quarterly!AA195/Quarterly!AA191)-1)","v":0.3148579557739668},{"$f":"((Quarterly!AB195/Quarterly!AB191)-1)","v":6.4082981472964873E-2},{"$f":"Quarterly!AC195-Quarterly!AC191","v":-7.4},{"$f":"Quarterly!AD195-Quarterly!AD191","v":7.8000000000000007},{"$f":"(Quarterly!AE195-Quarterly!AE191)*100","v":-29.000000000000004},{"$f":"(Quarterly!AF195-Quarterly!AF191)*100","v":-42.000000000000007},{"$f":"(Quarterly!AG195-Quarterly!AG191)*100","v":-18.999999999999993},{"$f":"((Quarterly!AH195/Quarterly!AH191)-1)","v":0.245050541300317},{"$f":"((Quarterly!AI195/Quarterly!AI191)-1)","v":0.17243063021927374},{"$f":"((Quarterly!AJ195/Quarterly!AJ191)-1)","v":5.4897739504843779E-2},{"$f":"((Quarterly!AK195/Quarterly!AK191)-1)","v":3.4773445732349861E-2},{"$f":"((Quarterly!AL195/Quarterly!AL191)-1)","v":2.7168234064785635E-2},{"$f":"((Quarterly!AM195/Quarterly!AM191)-1)","v":4.0018833705357304E-2},{"$f":"((Quarterly!AN195/Quarterly!AN191)-1)","v":4.9940702825368666E-2},{"$f":"((Quarterly!AO195/Quarterly!AO191)-1)","v":8.8372953361556039E-2},{"$f":"(Quarterly!AP195-Quarterly!AP191)*100","v":-0.66666666666668206},{"$f":"Quarterly!AQ195-Quarterly!AQ191","v":-4.5999999999999943},{"$f":"Quarterly!AR195-Quarterly!AR191","v":-9.6666666666666643},{"$f":"Quarterly!AS195-Quarterly!AS191","v":5},{"$f":"Quarterly!AT195-Quarterly!AT191","v":-0.10000000000000853},{"$f":"Quarterly!AU195-Quarterly!AU191","v":-1.4666666666666686},{"$f":"Quarterly!AV195-Quarterly!AV191","v":1.5000000000000142},{"$f":"Quarterly!AW195-Quarterly!AW191","v":4.86666666666666},{"$f":"Quarterly!AX195-Quarterly!AX191","v":-10.06666666666667},{"$f":"Quarterly!AY195-Quarterly!AY191","v":-11.833333333333329},{"$f":"Quarterly!AZ195-Quarterly!AZ191","v":-8.8999999999999986},{"$f":"Quarterly!BA195-Quarterly!BA191","v":-8.8000000000000114},{"$f":"Quarterly!BB195-Quarterly!BB191","v":-2.2666666666666728},{"$f":"((Quarterly!BC195/Quarterly!BC191)-1)","v":0.1011148527986121},{"$f":"((Quarterly!BD195/Quarterly!BD191)-1)","v":7.2788793551441744E-2},{"$f":"((Quarterly!BE195/Quarterly!BE191)-1)","v":-1.3808999947613754E-2},{"$f":"((Quarterly!BF195/Quarterly!BF191)-1)","v":4.9313857803150674E-2},{"$f":"((Quarterly!BG195/Quarterly!BG191)-1)","v":2.7405683165707906E-2},{"$f":"((Quarterly!BH195/Quarterly!BH191)-1)","v":1.849831124967527E-2},{"$f":"((Quarterly!BI195/Quarterly!BI191)-1)","v":2.133075174311716E-2},{"$f":"((Quarterly!BJ195/Quarterly!BJ191)-1)","v":0.45203390890486128},{"$f":"((Quarterly!BK195/Quarterly!BK191)-1)","v":-0.65625},null,{"$f":"((Quarterly!BM195/Quarterly!BM191)-1)","v":6.1480161307697401E-2},{"$f":"((Quarterly!BN195/Quarterly!BN191)-1)","v":6.193962287343302E-2},null,null,null,null,null,{"$f":"((Quarterly!BT195/Quarterly!BT191)-1)","v":3.2713019390719245E-2},{"$f":"Quarterly!BU195-Quarterly!BU191","v":0.36068000000000033},{"$f":"Quarterly!BV195-Quarterly!BV191","v":0.39217999999999975},{"$f":"((Quarterly!BW195/Quarterly!BW191)-1)","v":7.5894113711487465E-2},{"$f":"((Quarterly!BX195/Quarterly!BX191)-1)","v":7.9930495221546494E-2},{"$f":"((Quarterly!BY195/Quarterly!BY191)-1)","v":5.5314171122994527E-2},{"$f":"((Quarterly!BZ195/Quarterly!BZ191)-1)","v":0.16576168929110113},{"$f":"((Quarterly!CA195/Quarterly!CA191)-1)","v":-1.5067502410797129E-3},{"$f":"((Quarterly!CB195/Quarterly!CB191)-1)","v":0.10862092978692561},{"$f":"((Quarterly!CC195/Quarterly!CC191)-1)","v":4.6630953827600408E-2},"--","--",null,"--","--",null,{"$f":"((Quarterly!CJ195/Quarterly!CJ191)-1)","v":6.944444444444442E-2},{"$f":"((Quarterly!CK195/Quarterly!CK191)-1)","v":5.62444987442694E-2},{"$f":"((Quarterly!CL195/Quarterly!CL191)-1)","v":-0.30650986980260397},{"$f":"((Quarterly!CM195/Quarterly!CM191)-1)","v":9.4371923817675896E-2},{"$f":"((Quarterly!CN195/Quarterly!CN191)-1)","v":1.7955931245204892E-2},{"$f":"((Quarterly!CO195/Quarterly!CO191)-1)","v":8.8988178348692326E-2},{"$f":"((Quarterly!CP195/Quarterly!CP191)-1)","v":5.3268015652891743E-2},{"$f":"((Quarterly!CQ195/Quarterly!CQ191)-1)","v":9.3316657564919137E-3},{"$f":"((Quarterly!CR195/Quarterly!CR191)-1)","v":3.97461181900709E-2},{"$f":"Quarterly!CS195-Quarterly!CS191","v":-3.9333333333333371},{"$f":"Quarterly!CT195-Quarterly!CT191","v":12.600000000000009},null,null,null,null,null,{"$f":"((Quarterly!CZ195/Quarterly!CZ191)-1)","v":3.035172290662369E-2},{"$f":"((Quarterly!DA195/Quarterly!DA191)-1)","v":2.3076923076922995E-2},null,null,null,null,null,{"$f":"((Quarterly!DG195/Quarterly!DG191)-1)","v":2.4169184290030232E-2},{"$f":"((Quarterly!DH195-Quarterly!DH191)*60)","v":0},{"$f":"Quarterly!DI195-Quarterly!DI191","v":-0.1666666666666714},{"$f":"(Quarterly!DJ195-Quarterly!DJ191)*100","v":-63.333333333333286},{"$f":"(Quarterly!DK195-Quarterly!DK191)*100","v":-40.000000000000036},{"$f":"((Quarterly!DL195/Quarterly!DL191)-1)","v":-1.3300354676124559E-3},null,null,null,{"$f":"((Quarterly!DP195/Quarterly!DP191)-1)","v":1.5879886241251251E-2},null,null,null,null,{"$f":"Quarterly!DU195-Quarterly!DU191","v":-1.0333333333333314},{"$f":"((Quarterly!DV195/Quarterly!DV191)-1)","v":3.1134801235428888E-2},{"$f":"((Quarterly!DW195/Quarterly!DW191)-1)","v":3.2845321451304699E-2},{"$f":"((Quarterly!DX195/Quarterly!DX191)-1)","v":3.2545969389583762E-2},{"$f":"((Quarterly!DY195/Quarterly!DY191)-1)","v":-4.1401744787814554E-3},{"$f":"((Quarterly!DZ195/Quarterly!DZ191)-1)","v":4.4284632853898387E-2},{"$f":"((Quarterly!EA195/Quarterly!EA191)-1)","v":5.3795085894189354E-2},{"$f":"((Quarterly!EB195/Quarterly!EB191)-1)","v":2.2988505747126409E-2},{"$f":"((Quarterly!EC195/Quarterly!EC191)-1)","v":3.3579465541490938E-2},null,null,null,null,null,{"$f":"((Quarterly!EI195/Quarterly!EI191)-1)","v":5.6086460894333223E-2},{"$f":"((Quarterly!EJ195/Quarterly!EJ191)-1)","v":4.3767451538806679E-2},{"$f":"((Quarterly!EK195/Quarterly!EK191)-1)","v":3.8478487194150146E-2},null,null,null,null,null,{"$f":"((Quarterly!EQ195/Quarterly!EQ191)-1)","v":6.9385841537740189E-2},{"$f":"((Quarterly!ER195/Quarterly!ER191)-1)","v":2.5962596259625936E-2},{"$f":"((Quarterly!ES195/Quarterly!ES191)-1)","v":2.6159334126040656E-2},null,null,null,null,null,{"$f":"(Quarterly!EY195-Quarterly!EY191)*100","v":144.00000000000003},{"$f":"(Quarterly!EZ195-Quarterly!EZ191)*100","v":146.66666666666666},{"$f":"(Quarterly!FA195-Quarterly!FA191)*100","v":-13.666666666666583},{"$f":"(Quarterly!FB195-Quarterly!FB191)*100","v":-30.666666666666753},"--",{"$f":"(Quarterly!FD195-Quarterly!FD191)*100","v":14.666666666666739},{"$f":"(Quarterly!FE195-Quarterly!FE191)*100","v":162},{"$f":"(Quarterly!FF195-Quarterly!FF191)*100","v":183.99999999999997},{"$f":"(Quarterly!FG195-Quarterly!FG191)*100","v":175},{"$f":"(Quarterly!FH195-Quarterly!FH191)*100","v":88.999999999999972},{"$f":"(Quarterly!FI195-Quarterly!FI191)*100","v":27.666666666666639},null,null,null,null,null,null,{"$f":"((Quarterly!FP195/Quarterly!FP191)-1)","v":-6.9139923627443478E-2},{"$f":"((Quarterly!FQ195/Quarterly!FQ191)-1)","v":-6.8462257160284423E-5},{"$f":"((Quarterly!FR195/Quarterly!FR191)-1)","v":1.7712427815790743E-2},{"$f":"((Quarterly!FS195/Quarterly!FS191)-1)","v":4.747063054423406E-2},{"$f":"((Quarterly!FT195/Quarterly!FT191)-1)","v":-3.3795505912074142E-2},{"$f":"((Quarterly!FU195/Quarterly!FU191)-1)","v":-4.732570673039771E-2},{"$f":"((Quarterly!FV195/Quarterly!FV191)-1)","v":0.10838204510446725},{"$f":"((Quarterly!FW195/Quarterly!FW191)-1)","v":0.30268769696753006},{"$f":"((Quarterly!FX195/Quarterly!FX191)-1)","v":6.2779937376211237E-2},null,null,null,null,null,{"$f":"((Quarterly!GD195/Quarterly!GD191)-1)","v":0.40985156471589312},{"$f":"((Quarterly!GE195/Quarterly!GE191)-1)","v":0.49410044899237748},{"$f":"((Quarterly!GF195/Quarterly!GF191)-1)","v":0.17021988292586943},{"$f":"((Quarterly!GG195/Quarterly!GG191)-1)","v":0.30197396052078962},{"$f":"((Quarterly!GH195/Quarterly!GH191)-1)","v":{"$error":"#DIV/0!"}},"--",{"$f":"((Quarterly!GJ195/Quarterly!GJ191)-1)","v":0.13139663503522137},{"$f":"((Quarterly!GK195/Quarterly!GK191)-1)","v":4.2639101994670137E-2},"--"]
["05'Q2",{"$f":"((Quarterly!B196/Quarterly!B192)-1)","v":6.5073401263139097E-2},{"$f":"((Quarterly!C196/Quarterly!C192)-1)","v":3.4031781274626027E-2},{"$f":"((Quarterly!D196/Quarterly!D192)-1)","v":3.7739070273685504E-2},{"$f":"((Quarterly!E196/Quarterly!E192)-1)","v":3.8880231846911029E-2},{"$f":"((Quarterly!F196/Quarterly!F192)-1)","v":7.452910232479204E-2},{"$f":"((Quarterly!G196/Quarterly!G192)-1)","v":3.4378603095210902E-2},{"$f":"((Quarterly!H196/Quarterly!H192)-1)","v":3.3465177391011069E-2},{"$f":"((Quarterly!I196/Quarterly!I192)-1)","v":7.7210065272486528E-2},{"$f":"((Quarterly!J196/Quarterly!J192)-1)","v":9.6370032808924977E-2},{"$f":"((Quarterly!K196/Quarterly!K192)-1)","v":6.444558879877782E-2},{"$f":"((Quarterly!L196-Quarterly!L192))","v":-48.854000000000006},{"$f":"((Quarterly!M196/Quarterly!M192)-1)","v":5.8108546806752592E-2},{"$f":"((Quarterly!N196/Quarterly!N192)-1)","v":6.5395228122708815E-2},{"$f":"((Quarterly!O196/Quarterly!O192)-1)","v":4.5375180414182648E-2},{"$f":"((Quarterly!P196/Quarterly!P192)-1)","v":3.2096964934626993E-3},{"$f":"((Quarterly!Q196/Quarterly!Q192)-1)","v":-0.22915495969486455},null,null,null,null,null,{"$f":"((Quarterly!W196/Quarterly!W192)-1)","v":3.5714285714285809E-2},{"$f":"((Quarterly!X196/Quarterly!X192)-1)","v":3.2590051457975999E-2},{"$f":"((Quarterly!Y196/Quarterly!Y192)-1)","v":0.11776607533679373},{"$f":"Quarterly!Z196-Quarterly!Z192","v":-0.34000000000000008},{"$f":"((Quarterly!AA196/Quarterly!AA192)-1)","v":0.28363963350395327},{"$f":"((Quarterly!AB196/Quarterly!AB192)-1)","v":8.4407827833098414E-2},{"$f":"Quarterly!AC196-Quarterly!AC192","v":4},{"$f":"Quarterly!AD196-Quarterly!AD192","v":-0.5},{"$f":"(Quarterly!AE196-Quarterly!AE192)*100","v":-17.999999999999993},{"$f":"(Quarterly!AF196-Quarterly!AF192)*100","v":-34.000000000000007},{"$f":"(Quarterly!AG196-Quarterly!AG192)*100","v":-15.000000000000002},{"$f":"((Quarterly!AH196/Quarterly!AH192)-1)","v":0.26961736150770998},{"$f":"((Quarterly!AI196/Quarterly!AI192)-1)","v":0.18449882275391771},{"$f":"((Quarterly!AJ196/Quarterly!AJ192)-1)","v":4.66101694915253E-2},{"$f":"((Quarterly!AK196/Quarterly!AK192)-1)","v":3.1315240083507279E-2},{"$f":"((Quarterly!AL196/Quarterly!AL192)-1)","v":2.4896265560165887E-2},{"$f":"((Quarterly!AM196/Quarterly!AM192)-1)","v":3.92532127850449E-2},{"$f":"((Quarterly!AN196/Quarterly!AN192)-1)","v":4.784130970203293E-2},{"$f":"((Quarterly!AO196/Quarterly!AO192)-1)","v":7.6682498404024857E-2},{"$f":"(Quarterly!AP196-Quarterly!AP192)*100","v":-1.6666666666666607},{"$f":"Quarterly!AQ196-Quarterly!AQ192","v":-9.0333333333333314},{"$f":"Quarterly!AR196-Quarterly!AR192","v":-11},{"$f":"Quarterly!AS196-Quarterly!AS192","v":5.5},{"$f":"Quarterly!AT196-Quarterly!AT192","v":-7.7666666666666728},{"$f":"Quarterly!AU196-Quarterly!AU192","v":-4.5666666666666629},{"$f":"Quarterly!AV196-Quarterly!AV192","v":-3.3999999999999986},{"$f":"Quarterly!AW196-Quarterly!AW192","v":-0.10000000000000142},{"$f":"Quarterly!AX196-Quarterly!AX192","v":-10.533333333333346},{"$f":"Quarterly!AY196-Quarterly!AY192","v":-25.166666666666664},{"$f":"Quarterly!AZ196-Quarterly!AZ192","v":-10.533333333333324},{"$f":"Quarterly!BA196-Quarterly!BA192","v":-16.166666666666664},{"$f":"Quarterly!BB196-Quarterly!BB192","v":-3},{"$f":"((Quarterly!BC196/Quarterly!BC192)-1)","v":0.10315333621193257},{"$f":"((Quarterly!BD196/Quarterly!BD192)-1)","v":6.9397765464619843E-2},{"$f":"((Quarterly!BE196/Quarterly!BE192)-1)","v":-2.2045800254214321E-2},{"$f":"((Quarterly!BF196/Quarterly!BF192)-1)","v":3.5443037974683511E-2},{"$f":"((Quarterly!BG196/Quarterly!BG192)-1)","v":1.6915780083980536E-2},{"$f":"((Quarterly!BH196/Quarterly!BH192)-1)","v":5.8480734246688648E-3},{"$f":"((Quarterly!BI196/Quarterly!BI192)-1)","v":1.8219234167259346E-2},{"$f":"((Quarterly!BJ196/Quarterly!BJ192)-1)","v":0.40934046665315837},{"$f":"((Quarterly!BK196/Quarterly!BK192)-1)","v":-0.61818181818181817},null,{"$f":"((Quarterly!BM196/Quarterly!BM192)-1)","v":7.1715653576283733E-2},{"$f":"((Quarterly!BN196/Quarterly!BN192)-1)","v":7.1860382736299133E-2},null,null,null,null,null,{"$f":"((Quarterly!BT196/Quarterly!BT192)-1)","v":2.3599128645130918E-2},{"$f":"Quarterly!BU196-Quarterly!BU192","v":0.43435000000000024},{"$f":"Quarterly!BV196-Quarterly!BV192","v":0.48428000000000182},{"$f":"((Quarterly!BW196/Quarterly!BW192)-1)","v":8.1730373043376492E-2},{"$f":"((Quarterly!BX196/Quarterly!BX192)-1)","v":5.8843771507226528E-2},{"$f":"((Quarterly!BY196/Quarterly!BY192)-1)","v":2.7724358974358987E-2},{"$f":"((Quarterly!BZ196/Quarterly!BZ192)-1)","v":0.15899960857831519},{"$f":"((Quarterly!CA196/Quarterly!CA192)-1)","v":4.3128786515506334E-2},{"$f":"((Quarterly!CB196/Quarterly!CB192)-1)","v":-4.3162995290041195E-2},{"$f":"((Quarterly!CC196/Quarterly!CC192)-1)","v":-5.7855100381001057E-2},"--","--",null,"--","--",null,{"$f":"((Quarterly!CJ196/Quarterly!CJ192)-1)","v":5.9051843637371704E-2},{"$f":"((Quarterly!CK196/Quarterly!CK192)-1)","v":5.4868102629925364E-2},{"$f":"((Quarterly!CL196/Quarterly!CL192)-1)","v":-0.46799134065254377},{"$f":"((Quarterly!CM196/Quarterly!CM192)-1)","v":5.5348258706467757E-2},{"$f":"((Quarterly!CN196/Quarterly!CN192)-1)","v":1.5994721741825035E-2},{"$f":"((Quarterly!CO196/Quarterly!CO192)-1)","v":4.4924530361519999E-2},{"$f":"((Quarterly!CP196/Quarterly!CP192)-1)","v":5.5253167438198414E-2},{"$f":"((Quarterly!CQ196/Quarterly!CQ192)-1)","v":9.2502949377644139E-3},{"$f":"((Quarterly!CR196/Quarterly!CR192)-1)","v":4.3103664405035103E-2},{"$f":"Quarterly!CS196-Quarterly!CS192","v":-3.1333333333333258},{"$f":"Quarterly!CT196-Quarterly!CT192","v":5.9666666666666686},null,null,null,null,null,{"$f":"((Quarterly!CZ196/Quarterly!CZ192)-1)","v":2.9229406554472925E-2},{"$f":"((Quarterly!DA196/Quarterly!DA192)-1)","v":2.1403091557669285E-2},null,null,null,null,null,{"$f":"((Quarterly!DG196/Quarterly!DG192)-1)","v":2.5008336112037455E-2},{"$f":"((Quarterly!DH196-Quarterly!DH192)*60)","v":2.0000000000003126},{"$f":"Quarterly!DI196-Quarterly!DI192","v":9.9999999999994316E-2},{"$f":"(Quarterly!DJ196-Quarterly!DJ192)*100","v":-63.333333333333286},{"$f":"(Quarterly!DK196-Quarterly!DK192)*100","v":-49.999999999999822},{"$f":"((Quarterly!DL196/Quarterly!DL192)-1)","v":-5.9550117471910413E-3},null,null,null,{"$f":"((Quarterly!DP196/Quarterly!DP192)-1)","v":1.5909752731600335E-2},null,null,null,null,{"$f":"Quarterly!DU196-Quarterly!DU192","v":-1.0999999999999996},{"$f":"((Quarterly!DV196/Quarterly!DV192)-1)","v":3.6856435643564334E-2},{"$f":"((Quarterly!DW196/Quarterly!DW192)-1)","v":3.6387039283150457E-2},{"$f":"((Quarterly!DX196/Quarterly!DX192)-1)","v":3.8662893526706821E-2},{"$f":"((Quarterly!DY196/Quarterly!DY192)-1)","v":1.4840680925360061E-2},{"$f":"((Quarterly!DZ196/Quarterly!DZ192)-1)","v":4.6314903958499132E-2},{"$f":"((Quarterly!EA196/Quarterly!EA192)-1)","v":6.1584373304395035E-2},{"$f":"((Quarterly!EB196/Quarterly!EB192)-1)","v":1.2475574928603406E-2},{"$f":"((Quarterly!EC196/Quarterly!EC192)-1)","v":3.108252947481227E-2},null,null,null,null,null,{"$f":"((Quarterly!EI196/Quarterly!EI192)-1)","v":5.2005479245285313E-2},{"$f":"((Quarterly!EJ196/Quarterly!EJ192)-1)","v":4.8311036593907675E-2},{"$f":"((Quarterly!EK196/Quarterly!EK192)-1)","v":4.1535742277502452E-2},null,null,null,null,null,{"$f":"((Quarterly!EQ196/Quarterly!EQ192)-1)","v":5.6517775752050969E-2},{"$f":"((Quarterly!ER196/Quarterly!ER192)-1)","v":2.5382932166301941E-2},{"$f":"((Quarterly!ES196/Quarterly!ES192)-1)","v":2.5519848771266229E-2},null,null,null,null,null,{"$f":"(Quarterly!EY196-Quarterly!EY192)*100","v":191.00000000000011},{"$f":"(Quarterly!EZ196-Quarterly!EZ192)*100","v":193.33333333333334},{"$f":"(Quarterly!FA196-Quarterly!FA192)*100","v":-77.999999999999943},{"$f":"(Quarterly!FB196-Quarterly!FB192)*100","v":-69.000000000000128},"--",{"$f":"(Quarterly!FD196-Quarterly!FD192)*100","v":-41.000000000000014},{"$f":"(Quarterly!FE196-Quarterly!FE192)*100","v":178.66666666666666},{"$f":"(Quarterly!FF196-Quarterly!FF192)*100","v":155.99999999999997},{"$f":"(Quarterly!FG196-Quarterly!FG192)*100","v":119},{"$f":"(Quarterly!FH196-Quarterly!FH192)*100","v":14.999999999999991},{"$f":"(Quarterly!FI196-Quarterly!FI192)*100","v":-44.000000000000043},null,null,null,null,null,null,{"$f":"((Quarterly!FP196/Quarterly!FP192)-1)","v":-8.5100644813298487E-2},{"$f":"((Quarterly!FQ196/Quarterly!FQ192)-1)","v":-4.8327272287873591E-5},{"$f":"((Quarterly!FR196/Quarterly!FR192)-1)","v":-3.7282125993926662E-2},{"$f":"((Quarterly!FS196/Quarterly!FS192)-1)","v":4.5938840459388341E-2},{"$f":"((Quarterly!FT196/Quarterly!FT192)-1)","v":-4.4223710713253483E-2},{"$f":"((Quarterly!FU196/Quarterly!FU192)-1)","v":-5.1026367449759746E-2},{"$f":"((Quarterly!FV196/Quarterly!FV192)-1)","v":7.0582352896612743E-2},{"$f":"((Quarterly!FW196/Quarterly!FW192)-1)","v":0.24579815287892637},{"$f":"((Quarterly!FX196/Quarterly!FX192)-1)","v":0.10305606501231157},null,null,null,null,null,{"$f":"((Quarterly!GD196/Quarterly!GD192)-1)","v":0.38385946604052501},{"$f":"((Quarterly!GE196/Quarterly!GE192)-1)","v":0.45646041000564219},{"$f":"((Quarterly!GF196/Quarterly!GF192)-1)","v":0.13952815168620636},{"$f":"((Quarterly!GG196/Quarterly!GG192)-1)","v":0.31695474849485317},{"$f":"((Quarterly!GH196/Quarterly!GH192)-1)","v":{"$error":"#DIV/0!"}},"--",{"$f":"((Quarterly!GJ196/Quarterly!GJ192)-1)","v":0.12677731524030911},{"$f":"((Quarterly!GK196/Quarterly!GK192)-1)","v":4.4061302681992265E-2},"--"]
["05'Q3",{"$f":"((Quarterly!B197/Quarterly!B193)-1)","v":6.7732724739451244E-2},{"$f":"((Quarterly!C197/Quarterly!C193)-1)","v":3.332620433136757E-2},{"$f":"((Quarterly!D197/Quarterly!D193)-1)","v":3.7216703823679032E-2},{"$f":"((Quarterly!E197/Quarterly!E193)-1)","v":3.7022478190781527E-2},{"$f":"((Quarterly!F197/Quarterly!F193)-1)","v":6.5878828229027908E-2},{"$f":"((Quarterly!G197/Quarterly!G193)-1)","v":2.8716461203770915E-2},{"$f":"((Quarterly!H197/Quarterly!H193)-1)","v":3.4217967535831395E-2},{"$f":"((Quarterly!I197/Quarterly!I193)-1)","v":6.7937747447993413E-2},{"$f":"((Quarterly!J197/Quarterly!J193)-1)","v":9.0816073319216706E-2},{"$f":"((Quarterly!K197/Quarterly!K193)-1)","v":6.8608597764828305E-2},{"$f":"((Quarterly!L197-Quarterly!L193))","v":-52.883000000000003},{"$f":"((Quarterly!M197/Quarterly!M193)-1)","v":5.0308364681105111E-2},{"$f":"((Quarterly!N197/Quarterly!N193)-1)","v":6.0478119692161769E-2},{"$f":"((Quarterly!O197/Quarterly!O193)-1)","v":3.2744063254460443E-2},{"$f":"((Quarterly!P197/Quarterly!P193)-1)","v":7.1990141328424073E-3},{"$f":"((Quarterly!Q197/Quarterly!Q193)-1)","v":-0.1748593604687001},null,null,null,null,null,{"$f":"((Quarterly!W197/Quarterly!W193)-1)","v":1.7038007863695803E-2},{"$f":"((Quarterly!X197/Quarterly!X193)-1)","v":1.7910447761193993E-2},{"$f":"((Quarterly!Y197/Quarterly!Y193)-1)","v":0.12781928137436771},{"$f":"Quarterly!Z197-Quarterly!Z193","v":-0.26999999999999996},{"$f":"((Quarterly!AA197/Quarterly!AA193)-1)","v":0.27884996546749652},{"$f":"((Quarterly!AB197/Quarterly!AB193)-1)","v":6.5603515937810553E-2},{"$f":"Quarterly!AC197-Quarterly!AC193","v":14.4},{"$f":"Quarterly!AD197-Quarterly!AD193","v":-3.6999999999999957},{"$f":"(Quarterly!AE197-Quarterly!AE193)*100","v":-15.000000000000002},{"$f":"(Quarterly!AF197-Quarterly!AF193)*100","v":-26.999999999999996},{"$f":"(Quarterly!AG197-Quarterly!AG193)*100","v":-5.9999999999999947},{"$f":"((Quarterly!AH197/Quarterly!AH193)-1)","v":0.27836054936736243},{"$f":"((Quarterly!AI197/Quarterly!AI193)-1)","v":0.18878297913022801},{"$f":"((Quarterly!AJ197/Quarterly!AJ193)-1)","v":4.507337526205446E-2},{"$f":"((Quarterly!AK197/Quarterly!AK193)-1)","v":2.8955532574974185E-2},{"$f":"((Quarterly!AL197/Quarterly!AL193)-1)","v":2.2633744855967031E-2},{"$f":"((Quarterly!AM197/Quarterly!AM193)-1)","v":2.8492040449125344E-2},{"$f":"((Quarterly!AN197/Quarterly!AN193)-1)","v":3.6065398991117714E-2},{"$f":"((Quarterly!AO197/Quarterly!AO193)-1)","v":5.1498159740358762E-2},{"$f":"(Quarterly!AP197-Quarterly!AP193)*100","v":-5.0000000000000044},{"$f":"Quarterly!AQ197-Quarterly!AQ193","v":-4.6000000000000014},{"$f":"Quarterly!AR197-Quarterly!AR193","v":-4.5},{"$f":"Quarterly!AS197-Quarterly!AS193","v":3.6666666666666643},{"$f":"Quarterly!AT197-Quarterly!AT193","v":-4.4666666666666686},{"$f":"Quarterly!AU197-Quarterly!AU193","v":0.53333333333333144},{"$f":"Quarterly!AV197-Quarterly!AV193","v":-4.6000000000000014},{"$f":"Quarterly!AW197-Quarterly!AW193","v":-4.1666666666666643},{"$f":"Quarterly!AX197-Quarterly!AX193","v":-2.2333333333333414},{"$f":"Quarterly!AY197-Quarterly!AY193","v":-15.166666666666671},{"$f":"Quarterly!AZ197-Quarterly!AZ193","v":-2.4999999999999929},{"$f":"Quarterly!BA197-Quarterly!BA193","v":-9.5666666666666771},{"$f":"Quarterly!BB197-Quarterly!BB193","v":-0.53333333333333144},{"$f":"((Quarterly!BC197/Quarterly!BC193)-1)","v":9.0790659768099635E-2},{"$f":"((Quarterly!BD197/Quarterly!BD193)-1)","v":5.9426918678953333E-2},{"$f":"((Quarterly!BE197/Quarterly!BE193)-1)","v":-2.8429969840763403E-2},{"$f":"((Quarterly!BF197/Quarterly!BF193)-1)","v":3.0286273832152322E-2},{"$f":"((Quarterly!BG197/Quarterly!BG193)-1)","v":2.0899728997289868E-2},{"$f":"((Quarterly!BH197/Quarterly!BH193)-1)","v":-7.7662797080528811E-3},{"$f":"((Quarterly!BI197/Quarterly!BI193)-1)","v":9.1925439435480705E-3},{"$f":"((Quarterly!BJ197/Quarterly!BJ193)-1)","v":0.33780692418339031},{"$f":"((Quarterly!BK197/Quarterly!BK193)-1)","v":-0.57446808510638292},null,{"$f":"((Quarterly!BM197/Quarterly!BM193)-1)","v":7.4160884080807898E-2},{"$f":"((Quarterly!BN197/Quarterly!BN193)-1)","v":7.5352332435541403E-2},null,null,null,null,null,{"$f":"((Quarterly!BT197/Quarterly!BT193)-1)","v":3.1508921077264773E-2},{"$f":"Quarterly!BU197-Quarterly!BU193","v":0.34581000000000017},{"$f":"Quarterly!BV197-Quarterly!BV193","v":0.37864000000000075},{"$f":"((Quarterly!BW197/Quarterly!BW193)-1)","v":8.9549564547554139E-2},{"$f":"((Quarterly!BX197/Quarterly!BX193)-1)","v":6.221547799696503E-2},{"$f":"((Quarterly!BY197/Quarterly!BY193)-1)","v":7.6662908680947162E-2},{"$f":"((Quarterly!BZ197/Quarterly!BZ193)-1)","v":0.15123683323084269},{"$f":"((Quarterly!CA197/Quarterly!CA193)-1)","v":5.7468786138497485E-2},{"$f":"((Quarterly!CB197/Quarterly!CB193)-1)","v":8.3439333411385208E-2},{"$f":"((Quarterly!CC197/Quarterly!CC193)-1)","v":2.9375261787592422E-2},"--","--",null,"--","--",null,{"$f":"((Quarterly!CJ197/Quarterly!CJ193)-1)","v":0.11820534943917171},{"$f":"((Quarterly!CK197/Quarterly!CK193)-1)","v":5.8112433779582862E-2},{"$f":"((Quarterly!CL197/Quarterly!CL193)-1)","v":-0.46194824961948255},{"$f":"((Quarterly!CM197/Quarterly!CM193)-1)","v":6.502743344848616E-2},{"$f":"((Quarterly!CN197/Quarterly!CN193)-1)","v":1.5841183763035449E-2},{"$f":"((Quarterly!CO197/Quarterly!CO193)-1)","v":3.5694844078077548E-2},{"$f":"((Quarterly!CP197/Quarterly!CP193)-1)","v":5.5154564200741385E-2},{"$f":"((Quarterly!CQ197/Quarterly!CQ193)-1)","v":9.283291323981091E-3},{"$f":"((Quarterly!CR197/Quarterly!CR193)-1)","v":3.6196749732733124E-2},{"$f":"Quarterly!CS197-Quarterly!CS193","v":-8.1000000000000085},{"$f":"Quarterly!CT197-Quarterly!CT193","v":-1.5},null,null,null,null,null,{"$f":"((Quarterly!CZ197/Quarterly!CZ193)-1)","v":3.8197500440063425E-2},{"$f":"((Quarterly!DA197/Quarterly!DA193)-1)","v":2.0466847090662821E-2},null,null,null,null,null,{"$f":"((Quarterly!DG197/Quarterly!DG193)-1)","v":2.4495200264812889E-2},{"$f":"((Quarterly!DH197-Quarterly!DH193)*60)","v":-1.9999999999998863},{"$f":"Quarterly!DI197-Quarterly!DI193","v":0.16666666666668561},{"$f":"(Quarterly!DJ197-Quarterly!DJ193)*100","v":-53.333333333333144},{"$f":"(Quarterly!DK197-Quarterly!DK193)*100","v":-46.666666666666679},{"$f":"((Quarterly!DL197/Quarterly!DL193)-1)","v":-9.3475329023856579E-3},null,null,null,{"$f":"((Quarterly!DP197/Quarterly!DP193)-1)","v":1.9032055184119656E-2},null,null,null,null,{"$f":"Quarterly!DU197-Quarterly!DU193","v":-0.43333333333333535},{"$f":"((Quarterly!DV197/Quarterly!DV193)-1)","v":3.2786885245901676E-2},{"$f":"((Quarterly!DW197/Quarterly!DW193)-1)","v":3.0965215499528798E-2},{"$f":"((Quarterly!DX197/Quarterly!DX193)-1)","v":2.9575118022771241E-2},{"$f":"((Quarterly!DY197/Quarterly!DY193)-1)","v":8.7517934002869779E-3},{"$f":"((Quarterly!DZ197/Quarterly!DZ193)-1)","v":3.6221265683670678E-2},{"$f":"((Quarterly!EA197/Quarterly!EA193)-1)","v":4.5496627430234193E-2},{"$f":"((Quarterly!EB197/Quarterly!EB193)-1)","v":1.5336509827277967E-2},{"$f":"((Quarterly!EC197/Quarterly!EC193)-1)","v":3.4153331741103354E-2},null,null,null,null,null,{"$f":"((Quarterly!EI197/Quarterly!EI193)-1)","v":4.9025555755299655E-2},{"$f":"((Quarterly!EJ197/Quarterly!EJ193)-1)","v":4.6434539254769813E-2},{"$f":"((Quarterly!EK197/Quarterly!EK193)-1)","v":4.0431883105050304E-2},null,null,null,null,null,{"$f":"((Quarterly!EQ197/Quarterly!EQ193)-1)","v":7.4475287745429997E-2},{"$f":"((Quarterly!ER197/Quarterly!ER193)-1)","v":2.6602703881378531E-2},{"$f":"((Quarterly!ES197/Quarterly!ES193)-1)","v":2.3742360131640883E-2},null,null,null,null,null,{"$f":"(Quarterly!EY197-Quarterly!EY193)*100","v":200.66666666666669},{"$f":"(Quarterly!EZ197-Quarterly!EZ193)*100","v":202.66666666666663},{"$f":"(Quarterly!FA197-Quarterly!FA193)*100","v":-55.000000000000071},{"$f":"(Quarterly!FB197-Quarterly!FB193)*100","v":-46.999999999999972},"--",{"$f":"(Quarterly!FD197-Quarterly!FD193)*100","v":-13.000000000000078},{"$f":"(Quarterly!FE197-Quarterly!FE193)*100","v":187.33333333333334},{"$f":"(Quarterly!FF197-Quarterly!FF193)*100","v":170.66666666666666},{"$f":"(Quarterly!FG197-Quarterly!FG193)*100","v":139.33333333333331},{"$f":"(Quarterly!FH197-Quarterly!FH193)*100","v":52.999999999999979},{"$f":"(Quarterly!FI197-Quarterly!FI193)*100","v":-8.9999999999999858},null,null,null,null,null,null,{"$f":"((Quarterly!FP197/Quarterly!FP193)-1)","v":-8.1156169551143242E-2},{"$f":"((Quarterly!FQ197/Quarterly!FQ193)-1)","v":-1.6520205233948815E-2},{"$f":"((Quarterly!FR197/Quarterly!FR193)-1)","v":-6.4212331259589028E-2},{"$f":"((Quarterly!FS197/Quarterly!FS193)-1)","v":-3.0260898012594017E-3},{"$f":"((Quarterly!FT197/Quarterly!FT193)-1)","v":-3.3526130204131088E-2},{"$f":"((Quarterly!FU197/Quarterly!FU193)-1)","v":-2.2439436428847603E-2},{"$f":"((Quarterly!FV197/Quarterly!FV193)-1)","v":0.13540024163987474},{"$f":"((Quarterly!FW197/Quarterly!FW193)-1)","v":0.24013965999529763},{"$f":"((Quarterly!FX197/Quarterly!FX193)-1)","v":7.9735573287672779E-2},null,null,null,null,null,{"$f":"((Quarterly!GD197/Quarterly!GD193)-1)","v":0.43821249430004605},{"$f":"((Quarterly!GE197/Quarterly!GE193)-1)","v":0.48526095360824728},{"$f":"((Quarterly!GF197/Quarterly!GF193)-1)","v":0.36020347252861318},{"$f":"((Quarterly!GG197/Quarterly!GG193)-1)","v":0.40134815084714903},{"$f":"((Quarterly!GH197/Quarterly!GH193)-1)","v":{"$error":"#DIV/0!"}},"--",{"$f":"((Quarterly!GJ197/Quarterly!GJ193)-1)","v":0.73791333412916327},{"$f":"((Quarterly!GK197/Quarterly!GK193)-1)","v":1.4866120449362308E-2},"--"]
["05'Q4",{"$f":"((Quarterly!B198/Quarterly!B194)-1)","v":6.5232874306757616E-2},{"$f":"((Quarterly!C198/Quarterly!C194)-1)","v":3.0326207695047014E-2},{"$f":"((Quarterly!D198/Quarterly!D194)-1)","v":2.9009264631038256E-2},{"$f":"((Quarterly!E198/Quarterly!E194)-1)","v":3.0363931675799094E-2},{"$f":"((Quarterly!F198/Quarterly!F194)-1)","v":2.301076680672276E-2},{"$f":"((Quarterly!G198/Quarterly!G194)-1)","v":3.689152932157902E-2},{"$f":"((Quarterly!H198/Quarterly!H194)-1)","v":2.940909309495443E-2},{"$f":"((Quarterly!I198/Quarterly!I194)-1)","v":4.9923378150795061E-2},{"$f":"((Quarterly!J198/Quarterly!J194)-1)","v":6.2997722857620619E-2},{"$f":"((Quarterly!K198/Quarterly!K194)-1)","v":5.1633815846561459E-2},{"$f":"((Quarterly!L198-Quarterly!L194))","v":18.551000000000002},{"$f":"((Quarterly!M198/Quarterly!M194)-1)","v":5.7090417264708648E-2},{"$f":"((Quarterly!N198/Quarterly!N194)-1)","v":6.4601516131986614E-2},{"$f":"((Quarterly!O198/Quarterly!O194)-1)","v":4.4095204078320016E-2},{"$f":"((Quarterly!P198/Quarterly!P194)-1)","v":8.0029085947050937E-3},{"$f":"((Quarterly!Q198/Quarterly!Q194)-1)","v":-0.24285091107852563},null,null,null,null,null,{"$f":"((Quarterly!W198/Quarterly!W194)-1)","v":1.4230271668822958E-2},{"$f":"((Quarterly!X198/Quarterly!X194)-1)","v":9.6760622633571547E-3},{"$f":"((Quarterly!Y198/Quarterly!Y194)-1)","v":0.14103710112209344},{"$f":"Quarterly!Z198-Quarterly!Z194","v":-0.22999999999999998},{"$f":"((Quarterly!AA198/Quarterly!AA194)-1)","v":0.3556109228827391},{"$f":"((Quarterly!AB198/Quarterly!AB194)-1)","v":0.14688689588902704},{"$f":"Quarterly!AC198-Quarterly!AC194","v":13.8},{"$f":"Quarterly!AD198-Quarterly!AD194","v":-16.600000000000001},{"$f":"(Quarterly!AE198-Quarterly!AE194)*100","v":-10.999999999999998},{"$f":"(Quarterly!AF198-Quarterly!AF194)*100","v":-23},{"$f":"(Quarterly!AG198-Quarterly!AG194)*100","v":-7.9999999999999964},{"$f":"((Quarterly!AH198/Quarterly!AH194)-1)","v":0.24007330482590095},{"$f":"((Quarterly!AI198/Quarterly!AI194)-1)","v":0.17858697503159848},{"$f":"((Quarterly!AJ198/Quarterly!AJ194)-1)","v":3.9378238341968963E-2},{"$f":"((Quarterly!AK198/Quarterly!AK194)-1)","v":2.9804727646454365E-2},{"$f":"((Quarterly!AL198/Quarterly!AL194)-1)","v":2.4564994882292579E-2},{"$f":"((Quarterly!AM198/Quarterly!AM194)-1)","v":2.4033115163749619E-2},{"$f":"((Quarterly!AN198/Quarterly!AN194)-1)","v":3.7152582355586494E-2},{"$f":"((Quarterly!AO198/Quarterly!AO194)-1)","v":5.3922738181476415E-2},{"$f":"(Quarterly!AP198-Quarterly!AP194)*100","v":-3.3333333333333437},{"$f":"Quarterly!AQ198-Quarterly!AQ194","v":-0.23333333333332718},{"$f":"Quarterly!AR198-Quarterly!AR194","v":2.5},{"$f":"Quarterly!AS198-Quarterly!AS194","v":0.5},{"$f":"Quarterly!AT198-Quarterly!AT194","v":-0.73333333333333428},{"$f":"Quarterly!AU198-Quarterly!AU194","v":-0.96666666666668277},{"$f":"Quarterly!AV198-Quarterly!AV194","v":-4.5666666666666629},{"$f":"Quarterly!AW198-Quarterly!AW194","v":-3.9333333333333371},{"$f":"Quarterly!AX198-Quarterly!AX194","v":-0.70000000000000284},{"$f":"Quarterly!AY198-Quarterly!AY194","v":-1.1666666666666572},{"$f":"Quarterly!AZ198-Quarterly!AZ194","v":3.4333333333333371},{"$f":"Quarterly!BA198-Quarterly!BA194","v":0.79999999999999716},{"$f":"Quarterly!BB198-Quarterly!BB194","v":-3.4333333333333371},{"$f":"((Quarterly!BC198/Quarterly!BC194)-1)","v":9.2689263488610951E-2},{"$f":"((Quarterly!BD198/Quarterly!BD194)-1)","v":4.6347142292316512E-2},{"$f":"((Quarterly!BE198/Quarterly!BE194)-1)","v":-2.7110605000052246E-2},{"$f":"((Quarterly!BF198/Quarterly!BF194)-1)","v":3.1975410588127584E-2},{"$f":"((Quarterly!BG198/Quarterly!BG194)-1)","v":1.7881452989606084E-2},{"$f":"((Quarterly!BH198/Quarterly!BH194)-1)","v":-4.7265361242402326E-3},{"$f":"((Quarterly!BI198/Quarterly!BI194)-1)","v":1.3841858885220937E-2},{"$f":"((Quarterly!BJ198/Quarterly!BJ194)-1)","v":0.51337351022995459},{"$f":"((Quarterly!BK198/Quarterly!BK194)-1)","v":-0.46938775510204078},null,{"$f":"((Quarterly!BM198/Quarterly!BM194)-1)","v":5.3416788828804629E-2},{"$f":"((Quarterly!BN198/Quarterly!BN194)-1)","v":5.2169531054468088E-2},null,null,null,null,null,{"$f":"((Quarterly!BT198/Quarterly!BT194)-1)","v":2.6123809011372678E-2},{"$f":"Quarterly!BU198-Quarterly!BU194","v":0.37087999999999965},{"$f":"Quarterly!BV198-Quarterly!BV194","v":0.44052999999999898},{"$f":"((Quarterly!BW198/Quarterly!BW194)-1)","v":8.7431443224421201E-2},{"$f":"((Quarterly!BX198/Quarterly!BX194)-1)","v":5.257801899592951E-2},{"$f":"((Quarterly!BY198/Quarterly!BY194)-1)","v":3.9948865452221316E-2},{"$f":"((Quarterly!BZ198/Quarterly!BZ194)-1)","v":0.15539512946385581},{"$f":"((Quarterly!CA198/Quarterly!CA194)-1)","v":-7.8263397616048058E-2},{"$f":"((Quarterly!CB198/Quarterly!CB194)-1)","v":-1.9945271217770011E-2},{"$f":"((Quarterly!CC198/Quarterly!CC194)-1)","v":-3.9816586754740091E-2},"--","--",null,"--","--",null,{"$f":"((Quarterly!CJ198/Quarterly!CJ194)-1)","v":1.6908212560386549E-2},{"$f":"((Quarterly!CK198/Quarterly!CK194)-1)","v":5.406592271130406E-2},{"$f":"((Quarterly!CL198/Quarterly!CL194)-1)","v":-0.38081233606231624},{"$f":"((Quarterly!CM198/Quarterly!CM194)-1)","v":7.1192052980132425E-2},{"$f":"((Quarterly!CN198/Quarterly!CN194)-1)","v":1.1602667565895119E-2},{"$f":"((Quarterly!CO198/Quarterly!CO194)-1)","v":2.7404052443384952E-2},{"$f":"((Quarterly!CP198/Quarterly!CP194)-1)","v":4.5587323929196399E-2},{"$f":"((Quarterly!CQ198/Quarterly!CQ194)-1)","v":9.3050634487599204E-3},{"$f":"((Quarterly!CR198/Quarterly!CR194)-1)","v":3.4697221819848245E-2},{"$f":"Quarterly!CS198-Quarterly!CS194","v":-11.433333333333337},{"$f":"Quarterly!CT198-Quarterly!CT194","v":-0.29999999999999716},null,null,null,null,null,{"$f":"((Quarterly!CZ198/Quarterly!CZ194)-1)","v":3.6746778126088397E-2},{"$f":"((Quarterly!DA198/Quarterly!DA194)-1)","v":2.1015467383994402E-2},null,null,null,null,null,{"$f":"((Quarterly!DG198/Quarterly!DG194)-1)","v":2.703593801516635E-2},{"$f":"((Quarterly!DH198-Quarterly!DH194)*60)","v":3.9999999999997726},{"$f":"Quarterly!DI198-Quarterly!DI194","v":9.9999999999994316E-2},{"$f":"(Quarterly!DJ198-Quarterly!DJ194)*100","v":-76.666666666666742},{"$f":"(Quarterly!DK198-Quarterly!DK194)*100","v":-46.666666666666679},{"$f":"((Quarterly!DL198/Quarterly!DL194)-1)","v":-8.24675022131105E-3},null,null,null,{"$f":"((Quarterly!DP198/Quarterly!DP194)-1)","v":1.8141444928115646E-2},null,null,null,null,{"$f":"Quarterly!DU198-Quarterly!DU194","v":-0.96666666666666679},{"$f":"((Quarterly!DV198/Quarterly!DV194)-1)","v":3.6098610839366163E-2},{"$f":"((Quarterly!DW198/Quarterly!DW194)-1)","v":3.5637936060635811E-2},{"$f":"((Quarterly!DX198/Quarterly!DX194)-1)","v":2.8942012487495283E-2},{"$f":"((Quarterly!DY198/Quarterly!DY194)-1)","v":6.0553633217992342E-3},{"$f":"((Quarterly!DZ198/Quarterly!DZ194)-1)","v":3.6140207681494507E-2},{"$f":"((Quarterly!EA198/Quarterly!EA194)-1)","v":4.1617666274663456E-2},{"$f":"((Quarterly!EB198/Quarterly!EB194)-1)","v":2.3714243367422672E-2},{"$f":"((Quarterly!EC198/Quarterly!EC194)-1)","v":5.1581108829568789E-2},null,null,null,null,null,{"$f":"((Quarterly!EI198/Quarterly!EI194)-1)","v":4.064778142076908E-2},{"$f":"((Quarterly!EJ198/Quarterly!EJ194)-1)","v":4.0173942524052153E-2},{"$f":"((Quarterly!EK198/Quarterly!EK194)-1)","v":3.8106355506698497E-2},null,null,null,null,null,{"$f":"((Quarterly!EQ198/Quarterly!EQ194)-1)","v":9.145261293179785E-2},{"$f":"((Quarterly!ER198/Quarterly!ER194)-1)","v":1.752109020116821E-2},{"$f":"((Quarterly!ES198/Quarterly!ES194)-1)","v":1.5162118031257332E-2},null,null,null,null,null,{"$f":"(Quarterly!EY198-Quarterly!EY194)*100","v":202.33333333333326},{"$f":"(Quarterly!EZ198-Quarterly!EZ194)*100","v":203.00000000000003},{"$f":"(Quarterly!FA198-Quarterly!FA194)*100","v":-10.666666666666558},{"$f":"(Quarterly!FB198-Quarterly!FB194)*100","v":14.999999999999858},"--",{"$f":"(Quarterly!FD198-Quarterly!FD194)*100","v":49.000000000000021},{"$f":"(Quarterly!FE198-Quarterly!FE194)*100","v":182.00000000000003},{"$f":"(Quarterly!FF198-Quarterly!FF194)*100","v":181.99999999999994},{"$f":"(Quarterly!FG198-Quarterly!FG194)*100","v":155.00000000000003},{"$f":"(Quarterly!FH198-Quarterly!FH194)*100","v":89.6666666666667},{"$f":"(Quarterly!FI198-Quarterly!FI194)*100","v":31.666666666666643},null,null,null,null,null,null,{"$f":"((Quarterly!FP198/Quarterly!FP194)-1)","v":-3.8824878501610649E-2},{"$f":"((Quarterly!FQ198/Quarterly!FQ194)-1)","v":-2.3379447834229738E-2},{"$f":"((Quarterly!FR198/Quarterly!FR194)-1)","v":-5.4226672435461754E-2},{"$f":"((Quarterly!FS198/Quarterly!FS194)-1)","v":-8.3217681829863888E-2},{"$f":"((Quarterly!FT198/Quarterly!FT194)-1)","v":1.0195275285372007E-2},{"$f":"((Quarterly!FU198/Quarterly!FU194)-1)","v":4.7913531585745295E-2},{"$f":"((Quarterly!FV198/Quarterly!FV194)-1)","v":0.21455138938678209},{"$f":"((Quarterly!FW198/Quarterly!FW194)-1)","v":0.18457925828915056},{"$f":"((Quarterly!FX198/Quarterly!FX194)-1)","v":0.11577967029743652},null,null,null,null,null,{"$f":"((Quarterly!GD198/Quarterly!GD194)-1)","v":0.24275462324040831},{"$f":"((Quarterly!GE198/Quarterly!GE194)-1)","v":0.28794626009510149},{"$f":"((Quarterly!GF198/Quarterly!GF194)-1)","v":0.23050466954023019},{"$f":"((Quarterly!GG198/Quarterly!GG194)-1)","v":0.28950715421303697},{"$f":"((Quarterly!GH198/Quarterly!GH194)-1)","v":{"$error":"#DIV/0!"}},"--",{"$f":"((Quarterly!GJ198/Quarterly!GJ194)-1)","v":0.76888155179529516},{"$f":"((Quarterly!GK198/Quarterly!GK194)-1)","v":-2.1256038647343045E-2},"--"]
["06'Q1",{"$f":"((Quarterly!B199/Quarterly!B195)-1)","v":6.517813822970675E-2},{"$f":"((Quarterly!C199/Quarterly!C195)-1)","v":3.1706889264626614E-2},{"$f":"((Quarterly!D199/Quarterly!D195)-1)","v":3.4313879325067242E-2},{"$f":"((Quarterly!E199/Quarterly!E195)-1)","v":3.4012810157434625E-2},{"$f":"((Quarterly!F199/Quarterly!F195)-1)","v":5.3689749252955554E-2},{"$f":"((Quarterly!G199/Quarterly!G195)-1)","v":3.2197537093391793E-2},{"$f":"((Quarterly!H199/Quarterly!H195)-1)","v":3.0768985457947151E-2},{"$f":"((Quarterly!I199/Quarterly!I195)-1)","v":7.5351127478463731E-2},{"$f":"((Quarterly!J199/Quarterly!J195)-1)","v":8.896544711895138E-2},{"$f":"((Quarterly!K199/Quarterly!K195)-1)","v":1.7806953936621239E-2},{"$f":"((Quarterly!L199-Quarterly!L195))","v":-32.683999999999997},{"$f":"((Quarterly!M199/Quarterly!M195)-1)","v":6.7305499589758178E-2},{"$f":"((Quarterly!N199/Quarterly!N195)-1)","v":8.746621441794189E-2},{"$f":"((Quarterly!O199/Quarterly!O195)-1)","v":3.2079178760622717E-2},{"$f":"((Quarterly!P199/Quarterly!P195)-1)","v":1.4002745469140931E-2},{"$f":"((Quarterly!Q199/Quarterly!Q195)-1)","v":-0.22494495415775861},null,null,null,null,null,{"$f":"((Quarterly!W199/Quarterly!W195)-1)","v":5.1085568326947328E-3},{"$f":"((Quarterly!X199/Quarterly!X195)-1)","v":3.3264033264033266E-3},{"$f":"((Quarterly!Y199/Quarterly!Y195)-1)","v":0.13465992641641433},{"$f":"Quarterly!Z199-Quarterly!Z195","v":-4.9999999999999989E-2},{"$f":"((Quarterly!AA199/Quarterly!AA195)-1)","v":0.14084938190815355},{"$f":"((Quarterly!AB199/Quarterly!AB195)-1)","v":0.14084490515522585},{"$f":"Quarterly!AC199-Quarterly!AC195","v":2},{"$f":"Quarterly!AD199-Quarterly!AD195","v":-24.3},{"$f":"(Quarterly!AE199-Quarterly!AE195)*100","v":-9.0000000000000071},{"$f":"(Quarterly!AF199-Quarterly!AF195)*100","v":-4.9999999999999991},{"$f":"(Quarterly!AG199-Quarterly!AG195)*100","v":-17.000000000000004},{"$f":"((Quarterly!AH199/Quarterly!AH195)-1)","v":0.26921598770176791},{"$f":"((Quarterly!AI199/Quarterly!AI195)-1)","v":0.18343951486459376},{"$f":"((Quarterly!AJ199/Quarterly!AJ195)-1)","v":2.857142857142847E-2},{"$f":"((Quarterly!AK199/Quarterly!AK195)-1)","v":2.6476578411405161E-2},{"$f":"((Quarterly!AL199/Quarterly!AL195)-1)","v":2.5432349949135347E-2},{"$f":"((Quarterly!AM199/Quarterly!AM195)-1)","v":1.9375628365675635E-2},{"$f":"((Quarterly!AN199/Quarterly!AN195)-1)","v":2.990466350754839E-2},{"$f":"((Quarterly!AO199/Quarterly!AO195)-1)","v":5.4758048934434145E-2},{"$f":"(Quarterly!AP199-Quarterly!AP195)*100","v":-3.6666666666666625},{"$f":"Quarterly!AQ199-Quarterly!AQ195","v":-0.80000000000000426},{"$f":"Quarterly!AR199-Quarterly!AR195","v":3.5},{"$f":"Quarterly!AS199-Quarterly!AS195","v":3.1666666666666643},{"$f":"Quarterly!AT199-Quarterly!AT195","v":-2.2333333333333343},{"$f":"Quarterly!AU199-Quarterly!AU195","v":1.56666666666667},{"$f":"Quarterly!AV199-Quarterly!AV195","v":-3.0666666666666771},{"$f":"Quarterly!AW199-Quarterly!AW195","v":-3.3333333333333286},{"$f":"Quarterly!AX199-Quarterly!AX195","v":1.8000000000000043},{"$f":"Quarterly!AY199-Quarterly!AY195","v":-4.5},{"$f":"Quarterly!AZ199-Quarterly!AZ195","v":-0.13333333333333997},{"$f":"Quarterly!BA199-Quarterly!BA195","v":-0.23333333333333428},{"$f":"Quarterly!BB199-Quarterly!BB195","v":-1.7666666666666657},{"$f":"((Quarterly!BC199/Quarterly!BC195)-1)","v":0.10745108487888522},{"$f":"((Quarterly!BD199/Quarterly!BD195)-1)","v":3.4048828797795361E-2},{"$f":"((Quarterly!BE199/Quarterly!BE195)-1)","v":5.3119721227901096E-5},{"$f":"((Quarterly!BF199/Quarterly!BF195)-1)","v":4.5596303125498006E-2},{"$f":"((Quarterly!BG199/Quarterly!BG195)-1)","v":1.2835036121916721E-2},{"$f":"((Quarterly!BH199/Quarterly!BH195)-1)","v":8.2444773225855972E-3},{"$f":"((Quarterly!BI199/Quarterly!BI195)-1)","v":3.2334334462265968E-2},{"$f":"((Quarterly!BJ199/Quarterly!BJ195)-1)","v":0.25453605751737274},{"$f":"((Quarterly!BK199/Quarterly!BK195)-1)","v":-0.22727272727272718},null,{"$f":"((Quarterly!BM199/Quarterly!BM195)-1)","v":7.30393979281172E-2},{"$f":"((Quarterly!BN199/Quarterly!BN195)-1)","v":7.248065639162693E-2},null,null,null,null,null,{"$f":"((Quarterly!BT199/Quarterly!BT195)-1)","v":1.5209242881017104E-2},{"$f":"Quarterly!BU199-Quarterly!BU195","v":5.242999999999931E-2},{"$f":"Quarterly!BV199-Quarterly!BV195","v":-5.3100000000014802E-3},{"$f":"((Quarterly!BW199/Quarterly!BW195)-1)","v":9.6700758961041133E-2},{"$f":"((Quarterly!BX199/Quarterly!BX195)-1)","v":2.3491552695092732E-2},{"$f":"((Quarterly!BY199/Quarterly!BY195)-1)","v":2.4703087885985742E-2},{"$f":"((Quarterly!BZ199/Quarterly!BZ195)-1)","v":0.13742306341607669},{"$f":"((Quarterly!CA199/Quarterly!CA195)-1)","v":1.5995654010985572E-2},{"$f":"((Quarterly!CB199/Quarterly!CB195)-1)","v":1.0806734187763123E-2},{"$f":"((Quarterly!CC199/Quarterly!CC195)-1)","v":-2.5454185414149788E-2},{"$f":"((Quarterly!CD199/Quarterly!CD195)-1)","v":0.21171171171171177},{"$f":"((Quarterly!CE199/Quarterly!CE195)-1)","v":-0.12961038961038951},null,"--","--",null,{"$f":"((Quarterly!CJ199/Quarterly!CJ195)-1)","v":-0.12961038961038951},{"$f":"((Quarterly!CK199/Quarterly!CK195)-1)","v":8.2174767777452251E-2},{"$f":"((Quarterly!CL199/Quarterly!CL195)-1)","v":0.37015503875968991},{"$f":"((Quarterly!CM199/Quarterly!CM195)-1)","v":2.2291748142354351E-2},{"$f":"((Quarterly!CN199/Quarterly!CN195)-1)","v":4.4755841167836818E-2},{"$f":"((Quarterly!CO199/Quarterly!CO195)-1)","v":3.1655127218850554E-2},{"$f":"((Quarterly!CP199/Quarterly!CP195)-1)","v":7.5389322422728E-2},{"$f":"((Quarterly!CQ199/Quarterly!CQ195)-1)","v":9.3244595653931839E-3},{"$f":"((Quarterly!CR199/Quarterly!CR195)-1)","v":9.933246818542818E-2},{"$f":"Quarterly!CS199-Quarterly!CS195","v":-5.1333333333333258},{"$f":"Quarterly!CT199-Quarterly!CT195","v":1.5},null,null,null,null,null,{"$f":"((Quarterly!CZ199/Quarterly!CZ195)-1)","v":3.6908681337723293E-2},{"$f":"((Quarterly!DA199/Quarterly!DA195)-1)","v":2.1052631578947212E-2},null,null,null,null,null,{"$f":"((Quarterly!DG199/Quarterly!DG195)-1)","v":3.2448377581120846E-2},{"$f":"((Quarterly!DH199-Quarterly!DH195)*60)","v":5.9999999999996589},{"$f":"Quarterly!DI199-Quarterly!DI195","v":0.23333333333334849},{"$f":"(Quarterly!DJ199-Quarterly!DJ195)*100","v":-90.000000000000028},{"$f":"(Quarterly!DK199-Quarterly!DK195)*100","v":-56.666666666666643},{"$f":"((Quarterly!DL199/Quarterly!DL195)-1)","v":-3.878595294282583E-3},null,null,null,{"$f":"((Quarterly!DP199/Quarterly!DP195)-1)","v":2.0726920936946946E-2},null,null,null,null,{"$f":"Quarterly!DU199-Quarterly!DU195","v":-0.50000000000000178},{"$f":"((Quarterly!DV199/Quarterly!DV195)-1)","v":2.9421711193777789E-2},{"$f":"((Quarterly!DW199/Quarterly!DW195)-1)","v":2.9656107481819349E-2},{"$f":"((Quarterly!DX199/Quarterly!DX195)-1)","v":2.5167494011872238E-2},{"$f":"((Quarterly!DY199/Quarterly!DY195)-1)","v":1.9747587230883434E-2},{"$f":"((Quarterly!DZ199/Quarterly!DZ195)-1)","v":2.6821312069590597E-2},{"$f":"((Quarterly!EA199/Quarterly!EA195)-1)","v":3.1304799636292735E-2},{"$f":"((Quarterly!EB199/Quarterly!EB195)-1)","v":1.6479400749063622E-2},{"$f":"((Quarterly!EC199/Quarterly!EC195)-1)","v":4.0653172308215746E-2},null,null,null,null,null,{"$f":"((Quarterly!EI199/Quarterly!EI195)-1)","v":4.0289639509782926E-2},{"$f":"((Quarterly!EJ199/Quarterly!EJ195)-1)","v":3.3125118165096668E-2},{"$f":"((Quarterly!EK199/Quarterly!EK195)-1)","v":3.1665996052018919E-2},null,null,null,null,null,{"$f":"((Quarterly!EQ199/Quarterly!EQ195)-1)","v":7.0363875493204775E-2},{"$f":"((Quarterly!ER199/Quarterly!ER195)-1)","v":1.6298520265922933E-2},{"$f":"((Quarterly!ES199/Quarterly!ES195)-1)","v":1.4600231749710257E-2},null,null,null,null,null,{"$f":"(Quarterly!EY199-Quarterly!EY195)*100","v":198.99999999999994},{"$f":"(Quarterly!EZ199-Quarterly!EZ195)*100","v":198.66666666666671},{"$f":"(Quarterly!FA199-Quarterly!FA195)*100","v":7.0000000000000284},{"$f":"(Quarterly!FB199-Quarterly!FB195)*100","v":34.000000000000163},"--",{"$f":"(Quarterly!FD199-Quarterly!FD195)*100","v":48.33333333333325},{"$f":"(Quarterly!FE199-Quarterly!FE195)*100","v":185.66666666666669},{"$f":"(Quarterly!FF199-Quarterly!FF195)*100","v":156.99999999999997},{"$f":"(Quarterly!FG199-Quarterly!FG195)*100","v":115.66666666666671},{"$f":"(Quarterly!FH199-Quarterly!FH195)*100","v":66.333333333333357},{"$f":"(Quarterly!FI199-Quarterly!FI195)*100","v":27.333333333333343},null,null,null,null,null,null,{"$f":"((Quarterly!FP199/Quarterly!FP195)-1)","v":-5.9088809801950637E-2},{"$f":"((Quarterly!FQ199/Quarterly!FQ195)-1)","v":-2.7302201010894533E-2},{"$f":"((Quarterly!FR199/Quarterly!FR195)-1)","v":-5.3032018882319121E-2},{"$f":"((Quarterly!FS199/Quarterly!FS195)-1)","v":-8.2068106101065519E-2},{"$f":"((Quarterly!FT199/Quarterly!FT195)-1)","v":8.2098247604809327E-3},{"$f":"((Quarterly!FU199/Quarterly!FU195)-1)","v":4.4171942494669381E-2},{"$f":"((Quarterly!FV199/Quarterly!FV195)-1)","v":0.13128289644625601},{"$f":"((Quarterly!FW199/Quarterly!FW195)-1)","v":0.1727346333831945},{"$f":"((Quarterly!FX199/Quarterly!FX195)-1)","v":0.22208818571273903},null,null,null,null,null,{"$f":"((Quarterly!GD199/Quarterly!GD195)-1)","v":0.27440987124463523},{"$f":"((Quarterly!GE199/Quarterly!GE195)-1)","v":0.29470962331399808},{"$f":"((Quarterly!GF199/Quarterly!GF195)-1)","v":0.19978645951558249},{"$f":"((Quarterly!GG199/Quarterly!GG195)-1)","v":0.20983870967741924},{"$f":"((Quarterly!GH199/Quarterly!GH195)-1)","v":{"$error":"#DIV/0!"}},"--",{"$f":"((Quarterly!GJ199/Quarterly!GJ195)-1)","v":0.21616754142224992},{"$f":"((Quarterly!GK199/Quarterly!GK195)-1)","v":-7.6678801022384002E-3},"--"]
["06'Q2",{"$f":"((Quarterly!B200/Quarterly!B196)-1)","v":6.364311065375472E-2},{"$f":"((Quarterly!C200/Quarterly!C196)-1)","v":2.9415012458815948E-2},{"$f":"((Quarterly!D200/Quarterly!D196)-1)","v":2.6018610093024863E-2},{"$f":"((Quarterly!E200/Quarterly!E196)-1)","v":2.8348338666096762E-2},{"$f":"((Quarterly!F200/Quarterly!F196)-1)","v":2.3467357316572679E-2},{"$f":"((Quarterly!G200/Quarterly!G196)-1)","v":3.1132253202712956E-2},{"$f":"((Quarterly!H200/Quarterly!H196)-1)","v":2.8343704265243241E-2},{"$f":"((Quarterly!I200/Quarterly!I196)-1)","v":7.3356391649068042E-2},{"$f":"((Quarterly!J200/Quarterly!J196)-1)","v":7.402908938687891E-2},{"$f":"((Quarterly!K200/Quarterly!K196)-1)","v":-5.0977078828926881E-2},{"$f":"((Quarterly!L200-Quarterly!L196))","v":51.410999999999994},{"$f":"((Quarterly!M200/Quarterly!M196)-1)","v":6.8069712534114979E-2},{"$f":"((Quarterly!N200/Quarterly!N196)-1)","v":8.7735012924304412E-2},{"$f":"((Quarterly!O200/Quarterly!O196)-1)","v":3.3046771983349155E-2},{"$f":"((Quarterly!P200/Quarterly!P196)-1)","v":1.6027289671089351E-2},{"$f":"((Quarterly!Q200/Quarterly!Q196)-1)","v":-0.21205728662666923},null,null,null,null,null,{"$f":"((Quarterly!W200/Quarterly!W196)-1)","v":2.5542784163474774E-3},{"$f":"((Quarterly!X200/Quarterly!X196)-1)","v":3.737541528239241E-3},{"$f":"((Quarterly!Y200/Quarterly!Y196)-1)","v":0.13941558759910455},{"$f":"Quarterly!Z200-Quarterly!Z196","v":0},{"$f":"((Quarterly!AA200/Quarterly!AA196)-1)","v":0.15374603419360344},{"$f":"((Quarterly!AB200/Quarterly!AB196)-1)","v":0.11774243301293263},{"$f":"Quarterly!AC200-Quarterly!AC196","v":4},{"$f":"Quarterly!AD200-Quarterly!AD196","v":-33.5},{"$f":"(Quarterly!AE200-Quarterly!AE196)*100","v":-8.0000000000000071},{"$f":"(Quarterly!AF200-Quarterly!AF196)*100","v":0},{"$f":"(Quarterly!AG200-Quarterly!AG196)*100","v":-14.000000000000002},{"$f":"((Quarterly!AH200/Quarterly!AH196)-1)","v":0.23152354819846166},{"$f":"((Quarterly!AI200/Quarterly!AI196)-1)","v":0.1671385386242128},{"$f":"((Quarterly!AJ200/Quarterly!AJ196)-1)","v":2.8340080971659853E-2},{"$f":"((Quarterly!AK200/Quarterly!AK196)-1)","v":2.8340080971659853E-2},{"$f":"((Quarterly!AL200/Quarterly!AL196)-1)","v":2.8340080971659853E-2},{"$f":"((Quarterly!AM200/Quarterly!AM196)-1)","v":2.0353310812343928E-2},{"$f":"((Quarterly!AN200/Quarterly!AN196)-1)","v":2.6037052728883125E-2},{"$f":"((Quarterly!AO200/Quarterly!AO196)-1)","v":6.8100988762940906E-2},{"$f":"(Quarterly!AP200-Quarterly!AP196)*100","v":-1.0000000000000009},{"$f":"Quarterly!AQ200-Quarterly!AQ196","v":1.8333333333333286},{"$f":"Quarterly!AR200-Quarterly!AR196","v":3},{"$f":"Quarterly!AS200-Quarterly!AS196","v":1},{"$f":"Quarterly!AT200-Quarterly!AT196","v":1.3000000000000043},{"$f":"Quarterly!AU200-Quarterly!AU196","v":0.3333333333333357},{"$f":"Quarterly!AV200-Quarterly!AV196","v":2.3999999999999986},{"$f":"Quarterly!AW200-Quarterly!AW196","v":0.8333333333333286},{"$f":"Quarterly!AX200-Quarterly!AX196","v":1.56666666666667},{"$f":"Quarterly!AY200-Quarterly!AY196","v":15.166666666666664},{"$f":"Quarterly!AZ200-Quarterly!AZ196","v":0.8333333333333357},{"$f":"Quarterly!BA200-Quarterly!BA196","v":4.63333333333334},{"$f":"Quarterly!BB200-Quarterly!BB196","v":-0.3333333333333357},{"$f":"((Quarterly!BC200/Quarterly!BC196)-1)","v":9.6316677123566175E-2},{"$f":"((Quarterly!BD200/Quarterly!BD196)-1)","v":2.1893315212774933E-2},{"$f":"((Quarterly!BE200/Quarterly!BE196)-1)","v":-7.5320137216883243E-3},{"$f":"((Quarterly!BF200/Quarterly!BF196)-1)","v":4.0183826858643634E-2},{"$f":"((Quarterly!BG200/Quarterly!BG196)-1)","v":1.2997293567676982E-2},{"$f":"((Quarterly!BH200/Quarterly!BH196)-1)","v":7.8679010074989009E-4},{"$f":"((Quarterly!BI200/Quarterly!BI196)-1)","v":2.6845140468758411E-2},{"$f":"((Quarterly!BJ200/Quarterly!BJ196)-1)","v":0.19213962329358902},{"$f":"((Quarterly!BK200/Quarterly!BK196)-1)","v":0},null,{"$f":"((Quarterly!BM200/Quarterly!BM196)-1)","v":5.5609939610719694E-2},{"$f":"((Quarterly!BN200/Quarterly!BN196)-1)","v":5.5164839000298782E-2},null,null,null,null,null,{"$f":"((Quarterly!BT200/Quarterly!BT196)-1)","v":3.4662329940220671E-2},{"$f":"Quarterly!BU200-Quarterly!BU196","v":0.13103000000000087},{"$f":"Quarterly!BV200-Quarterly!BV196","v":0.12180000000000035},{"$f":"((Quarterly!BW200/Quarterly!BW196)-1)","v":8.9905255265489759E-2},{"$f":"((Quarterly!BX200/Quarterly!BX196)-1)","v":-9.5710107247318876E-2},{"$f":"((Quarterly!BY200/Quarterly!BY196)-1)","v":-0.10026508654295962},{"$f":"((Quarterly!BZ200/Quarterly!BZ196)-1)","v":0.10017952683126263},{"$f":"((Quarterly!CA200/Quarterly!CA196)-1)","v":-5.903776116542081E-2},{"$f":"((Quarterly!CB200/Quarterly!CB196)-1)","v":6.649708157063805E-2},{"$f":"((Quarterly!CC200/Quarterly!CC196)-1)","v":1.7846098535302168E-2},{"$f":"((Quarterly!CD200/Quarterly!CD196)-1)","v":0.25629629629629647},{"$f":"((Quarterly!CE200/Quarterly!CE196)-1)","v":-0.14057591623036647},null,"--","--",null,{"$f":"((Quarterly!CJ200/Quarterly!CJ196)-1)","v":-0.14057591623036647},{"$f":"((Quarterly!CK200/Quarterly!CK196)-1)","v":7.7145129552231184E-2},{"$f":"((Quarterly!CL200/Quarterly!CL196)-1)","v":0.45327713995058838},{"$f":"((Quarterly!CM200/Quarterly!CM196)-1)","v":-0.10980161068552341},{"$f":"((Quarterly!CN200/Quarterly!CN196)-1)","v":3.8120820337226524E-2},{"$f":"((Quarterly!CO200/Quarterly!CO196)-1)","v":3.036202704756108E-2},{"$f":"((Quarterly!CP200/Quarterly!CP196)-1)","v":7.2636983871525507E-2},{"$f":"((Quarterly!CQ200/Quarterly!CQ196)-1)","v":9.4529550347750568E-3},{"$f":"((Quarterly!CR200/Quarterly!CR196)-1)","v":0.10539642179423692},{"$f":"Quarterly!CS200-Quarterly!CS196","v":-6.4000000000000057},{"$f":"Quarterly!CT200-Quarterly!CT196","v":4.36666666666666},null,null,null,null,null,{"$f":"((Quarterly!CZ200/Quarterly!CZ196)-1)","v":3.9242685025817625E-2},{"$f":"((Quarterly!DA200/Quarterly!DA196)-1)","v":2.4613337768169208E-2},null,null,null,null,null,{"$f":"((Quarterly!DG200/Quarterly!DG196)-1)","v":3.1554977228367198E-2},{"$f":"((Quarterly!DH200-Quarterly!DH196)*60)","v":7.9999999999999716},{"$f":"Quarterly!DI200-Quarterly!DI196","v":3.3333333333331439E-2},{"$f":"(Quarterly!DJ200-Quarterly!DJ196)*100","v":-70.000000000000114},{"$f":"(Quarterly!DK200-Quarterly!DK196)*100","v":-46.666666666666679},{"$f":"((Quarterly!DL200/Quarterly!DL196)-1)","v":-2.1295017901855617E-3},null,null,null,{"$f":"((Quarterly!DP200/Quarterly!DP196)-1)","v":1.9010563362728661E-2},null,null,null,null,{"$f":"Quarterly!DU200-Quarterly!DU196","v":-0.96666666666666679},{"$f":"((Quarterly!DV200/Quarterly!DV196)-1)","v":2.5806297596027594E-2},{"$f":"((Quarterly!DW200/Quarterly!DW196)-1)","v":2.5675320642957855E-2},{"$f":"((Quarterly!DX200/Quarterly!DX196)-1)","v":2.0604161700098711E-2},{"$f":"((Quarterly!DY200/Quarterly!DY196)-1)","v":8.7455197132615403E-3},{"$f":"((Quarterly!DZ200/Quarterly!DZ196)-1)","v":2.4298731463283652E-2},{"$f":"((Quarterly!EA200/Quarterly!EA196)-1)","v":2.5364170713007894E-2},{"$f":"((Quarterly!EB200/Quarterly!EB196)-1)","v":2.1823040380047454E-2},{"$f":"((Quarterly!EC200/Quarterly!EC196)-1)","v":3.7581960658883862E-2},null,null,null,null,null,{"$f":"((Quarterly!EI200/Quarterly!EI196)-1)","v":2.2511943611585927E-2},{"$f":"((Quarterly!EJ200/Quarterly!EJ196)-1)","v":1.4527116712941712E-2},{"$f":"((Quarterly!EK200/Quarterly!EK196)-1)","v":2.0164786768037013E-2},null,null,null,null,null,{"$f":"((Quarterly!EQ200/Quarterly!EQ196)-1)","v":7.031924072476281E-2},{"$f":"((Quarterly!ER200/Quarterly!ER196)-1)","v":1.6645326504481472E-2},{"$f":"((Quarterly!ES200/Quarterly!ES196)-1)","v":1.520737327188959E-2},null,null,null,null,null,{"$f":"(Quarterly!EY200-Quarterly!EY196)*100","v":198.66666666666654},{"$f":"(Quarterly!EZ200-Quarterly!EZ196)*100","v":196.33333333333337},{"$f":"(Quarterly!FA200-Quarterly!FA196)*100","v":74.666666666666615},{"$f":"(Quarterly!FB200-Quarterly!FB196)*100","v":76.333333333333456},"--",{"$f":"(Quarterly!FD200-Quarterly!FD196)*100","v":87.666666666666686},{"$f":"(Quarterly!FE200-Quarterly!FE196)*100","v":184},{"$f":"(Quarterly!FF200-Quarterly!FF196)*100","v":168.3333333333334},{"$f":"(Quarterly!FG200-Quarterly!FG196)*100","v":135},{"$f":"(Quarterly!FH200-Quarterly!FH196)*100","v":111.66666666666671},{"$f":"(Quarterly!FI200-Quarterly!FI196)*100","v":91.000000000000014},null,null,null,null,null,null,{"$f":"((Quarterly!FP200/Quarterly!FP196)-1)","v":-9.7491692571551103E-2},{"$f":"((Quarterly!FQ200/Quarterly!FQ196)-1)","v":-3.2135161803499956E-2},{"$f":"((Quarterly!FR200/Quarterly!FR196)-1)","v":1.8989188105092314E-2},{"$f":"((Quarterly!FS200/Quarterly!FS196)-1)","v":-2.4871014684481052E-3},{"$f":"((Quarterly!FT200/Quarterly!FT196)-1)","v":-1.860021407980883E-2},{"$f":"((Quarterly!FU200/Quarterly!FU196)-1)","v":-1.7603024767556263E-2},{"$f":"((Quarterly!FV200/Quarterly!FV196)-1)","v":0.10164610043604472},{"$f":"((Quarterly!FW200/Quarterly!FW196)-1)","v":0.16480343220164184},{"$f":"((Quarterly!FX200/Quarterly!FX196)-1)","v":0.1622136791001243},null,null,null,null,null,{"$f":"((Quarterly!GD200/Quarterly!GD196)-1)","v":0.32966756739772496},{"$f":"((Quarterly!GE200/Quarterly!GE196)-1)","v":0.34684917355371936},{"$f":"((Quarterly!GF200/Quarterly!GF196)-1)","v":0.29764421963374454},{"$f":"((Quarterly!GG200/Quarterly!GG196)-1)","v":0.25689426338298182},{"$f":"((Quarterly!GH200/Quarterly!GH196)-1)","v":{"$error":"#DIV/0!"}},"--",{"$f":"((Quarterly!GJ200/Quarterly!GJ196)-1)","v":-3.9391613088954891E-2},{"$f":"((Quarterly!GK200/Quarterly!GK196)-1)","v":-2.361388113282803E-2},"--"]
["06'Q3",{"$f":"((Quarterly!B201/Quarterly!B197)-1)","v":5.3239629561896651E-2},{"$f":"((Quarterly!C201/Quarterly!C197)-1)","v":2.1752119071154041E-2},{"$f":"((Quarterly!D201/Quarterly!D197)-1)","v":1.7416826399852647E-2},{"$f":"((Quarterly!E201/Quarterly!E197)-1)","v":2.6377379093536213E-2},{"$f":"((Quarterly!F201/Quarterly!F197)-1)","v":2.601580311689955E-2},{"$f":"((Quarterly!G201/Quarterly!G197)-1)","v":3.4008490373920841E-2},{"$f":"((Quarterly!H201/Quarterly!H197)-1)","v":2.391300944936936E-2},{"$f":"((Quarterly!I201/Quarterly!I197)-1)","v":6.6614020405414642E-2},{"$f":"((Quarterly!J201/Quarterly!J197)-1)","v":5.7232855584025133E-2},{"$f":"((Quarterly!K201/Quarterly!K197)-1)","v":-0.11366045985796269},{"$f":"((Quarterly!L201-Quarterly!L197))","v":63.750999999999998},{"$f":"((Quarterly!M201/Quarterly!M197)-1)","v":7.3410892642961745E-2},{"$f":"((Quarterly!N201/Quarterly!N197)-1)","v":8.4330282306947169E-2},{"$f":"((Quarterly!O201/Quarterly!O197)-1)","v":5.4045435198841529E-2},{"$f":"((Quarterly!P201/Quarterly!P197)-1)","v":1.0368289703868827E-2},{"$f":"((Quarterly!Q201/Quarterly!Q197)-1)","v":-0.23990333707945466},null,null,null,null,null,{"$f":"((Quarterly!W201/Quarterly!W197)-1)","v":1.1597938144330078E-2},{"$f":"((Quarterly!X201/Quarterly!X197)-1)","v":1.0892333472978688E-2},{"$f":"((Quarterly!Y201/Quarterly!Y197)-1)","v":0.14991429234287779},{"$f":"Quarterly!Z201-Quarterly!Z197","v":3.999999999999998E-2},{"$f":"((Quarterly!AA201/Quarterly!AA197)-1)","v":0.12568355778395079},{"$f":"((Quarterly!AB201/Quarterly!AB197)-1)","v":0.11728726408445111},{"$f":"Quarterly!AC201-Quarterly!AC197","v":1.5},{"$f":"Quarterly!AD201-Quarterly!AD197","v":-35.200000000000003},{"$f":"(Quarterly!AE201-Quarterly!AE197)*100","v":-2.0000000000000018},{"$f":"(Quarterly!AF201-Quarterly!AF197)*100","v":3.9999999999999982},{"$f":"(Quarterly!AG201-Quarterly!AG197)*100","v":-15.000000000000002},{"$f":"((Quarterly!AH201/Quarterly!AH197)-1)","v":0.22028593181625911},{"$f":"((Quarterly!AI201/Quarterly!AI197)-1)","v":0.17183231896585016},{"$f":"((Quarterly!AJ201/Quarterly!AJ197)-1)","v":2.8084252758274753E-2},{"$f":"((Quarterly!AK201/Quarterly!AK197)-1)","v":3.015075376884413E-2},{"$f":"((Quarterly!AL201/Quarterly!AL197)-1)","v":3.1187122736418438E-2},{"$f":"((Quarterly!AM201/Quarterly!AM197)-1)","v":2.8699827603895001E-2},{"$f":"((Quarterly!AN201/Quarterly!AN197)-1)","v":3.1915125193440197E-2},{"$f":"((Quarterly!AO201/Quarterly!AO197)-1)","v":8.919478820827953E-2},{"$f":"(Quarterly!AP201-Quarterly!AP197)*100","v":3.6666666666666847},{"$f":"Quarterly!AQ201-Quarterly!AQ197","v":-1.0333333333333314},{"$f":"Quarterly!AR201-Quarterly!AR197","v":-2},{"$f":"Quarterly!AS201-Quarterly!AS197","v":1.3333333333333357},{"$f":"Quarterly!AT201-Quarterly!AT197","v":-1.7333333333333343},{"$f":"Quarterly!AU201-Quarterly!AU197","v":-1.5666666666666771},{"$f":"Quarterly!AV201-Quarterly!AV197","v":2},{"$f":"Quarterly!AW201-Quarterly!AW197","v":1.3333333333333286},{"$f":"Quarterly!AX201-Quarterly!AX197","v":-3.3333333333333428},{"$f":"Quarterly!AY201-Quarterly!AY197","v":7.8333333333333286},{"$f":"Quarterly!AZ201-Quarterly!AZ197","v":-2.3666666666666671},{"$f":"Quarterly!BA201-Quarterly!BA197","v":0.73333333333334139},{"$f":"Quarterly!BB201-Quarterly!BB197","v":-4.6333333333333329},{"$f":"((Quarterly!BC201/Quarterly!BC197)-1)","v":0.10585212060836247},{"$f":"((Quarterly!BD201/Quarterly!BD197)-1)","v":3.2411669470810534E-2},{"$f":"((Quarterly!BE201/Quarterly!BE197)-1)","v":-2.2131816207397015E-2},{"$f":"((Quarterly!BF201/Quarterly!BF197)-1)","v":2.8792181944227169E-2},{"$f":"((Quarterly!BG201/Quarterly!BG197)-1)","v":1.051200917411732E-3},{"$f":"((Quarterly!BH201/Quarterly!BH197)-1)","v":-4.5384694191168418E-3},{"$f":"((Quarterly!BI201/Quarterly!BI197)-1)","v":2.7705527415941011E-2},{"$f":"((Quarterly!BJ201/Quarterly!BJ197)-1)","v":0.28830271092549542},{"$f":"((Quarterly!BK201/Quarterly!BK197)-1)","v":0.19999999999999996},null,{"$f":"((Quarterly!BM201/Quarterly!BM197)-1)","v":4.3418392871139133E-2},{"$f":"((Quarterly!BN201/Quarterly!BN197)-1)","v":4.1348588928806551E-2},null,null,null,null,null,{"$f":"((Quarterly!BT201/Quarterly!BT197)-1)","v":1.5867269253600824E-2},{"$f":"Quarterly!BU201-Quarterly!BU197","v":0.20211999999999897},{"$f":"Quarterly!BV201-Quarterly!BV197","v":0.2558499999999988},{"$f":"((Quarterly!BW201/Quarterly!BW197)-1)","v":7.9663229208210451E-2},{"$f":"((Quarterly!BX201/Quarterly!BX197)-1)","v":-0.1893650793650794},{"$f":"((Quarterly!BY201/Quarterly!BY197)-1)","v":-0.23111443530291709},{"$f":"((Quarterly!BZ201/Quarterly!BZ197)-1)","v":5.5587145687946871E-2},{"$f":"((Quarterly!CA201/Quarterly!CA197)-1)","v":-8.3483160645771215E-2},{"$f":"((Quarterly!CB201/Quarterly!CB197)-1)","v":-9.153988472007546E-2},{"$f":"((Quarterly!CC201/Quarterly!CC197)-1)","v":-8.4614383310194108E-2},{"$f":"((Quarterly!CD201/Quarterly!CD197)-1)","v":0.18920812894183592},{"$f":"((Quarterly!CE201/Quarterly!CE197)-1)","v":-0.22427983539094642},null,"--","--",null,{"$f":"((Quarterly!CJ201/Quarterly!CJ197)-1)","v":-0.22427983539094642},{"$f":"((Quarterly!CK201/Quarterly!CK197)-1)","v":6.9342713204619821E-2},{"$f":"((Quarterly!CL201/Quarterly!CL197)-1)","v":0.41458431557441466},{"$f":"((Quarterly!CM201/Quarterly!CM197)-1)","v":-0.20396870826178204},{"$f":"((Quarterly!CN201/Quarterly!CN197)-1)","v":3.5776167277402404E-2},{"$f":"((Quarterly!CO201/Quarterly!CO197)-1)","v":2.1803198678480351E-2},{"$f":"((Quarterly!CP201/Quarterly!CP197)-1)","v":6.6177371324757761E-2},{"$f":"((Quarterly!CQ201/Quarterly!CQ197)-1)","v":9.5352359577347556E-3},{"$f":"((Quarterly!CR201/Quarterly!CR197)-1)","v":0.10520808837798112},{"$f":"Quarterly!CS201-Quarterly!CS197","v":-3.4666666666666686},{"$f":"Quarterly!CT201-Quarterly!CT197","v":5.5},null,null,null,null,null,{"$f":"((Quarterly!CZ201/Quarterly!CZ197)-1)","v":3.3401152933197675E-2},{"$f":"((Quarterly!DA201/Quarterly!DA197)-1)","v":2.8178352395159978E-2},null,null,null,null,null,{"$f":"((Quarterly!DG201/Quarterly!DG197)-1)","v":2.7140549273020786E-2},{"$f":"((Quarterly!DH201-Quarterly!DH197)*60)","v":5.9999999999996589},{"$f":"Quarterly!DI201-Quarterly!DI197","v":0},{"$f":"(Quarterly!DJ201-Quarterly!DJ197)*100","v":-60.000000000000142},{"$f":"(Quarterly!DK201-Quarterly!DK197)*100","v":-33.3333333333333},{"$f":"((Quarterly!DL201/Quarterly!DL197)-1)","v":-3.0983006290489223E-3},null,null,null,{"$f":"((Quarterly!DP201/Quarterly!DP197)-1)","v":1.6604452640502032E-2},null,null,null,null,{"$f":"Quarterly!DU201-Quarterly!DU197","v":-0.66666666666666607},{"$f":"((Quarterly!DV201/Quarterly!DV197)-1)","v":2.8656971770744333E-2},{"$f":"((Quarterly!DW201/Quarterly!DW197)-1)","v":2.8628370457209895E-2},{"$f":"((Quarterly!DX201/Quarterly!DX197)-1)","v":2.6635198921105996E-2},{"$f":"((Quarterly!DY201/Quarterly!DY197)-1)","v":2.6027592092163321E-2},{"$f":"((Quarterly!DZ201/Quarterly!DZ197)-1)","v":2.6823986919439546E-2},{"$f":"((Quarterly!EA201/Quarterly!EA197)-1)","v":2.7387729285262674E-2},{"$f":"((Quarterly!EB201/Quarterly!EB197)-1)","v":2.5516937967444031E-2},{"$f":"((Quarterly!EC201/Quarterly!EC197)-1)","v":3.3179368745188453E-2},null,null,null,null,null,{"$f":"((Quarterly!EI201/Quarterly!EI197)-1)","v":8.8162970372949179E-3},{"$f":"((Quarterly!EJ201/Quarterly!EJ197)-1)","v":6.2013453131117835E-3},{"$f":"((Quarterly!EK201/Quarterly!EK197)-1)","v":1.4887565203758557E-2},null,null,null,null,null,{"$f":"((Quarterly!EQ201/Quarterly!EQ197)-1)","v":5.0409577819785945E-2},{"$f":"((Quarterly!ER201/Quarterly!ER197)-1)","v":1.104502973661825E-2},{"$f":"((Quarterly!ES201/Quarterly!ES197)-1)","v":1.2629161882893314E-2},null,null,null,null,null,{"$f":"(Quarterly!EY201-Quarterly!EY197)*100","v":182.33333333333331},{"$f":"(Quarterly!EZ201-Quarterly!EZ197)*100","v":178.66666666666674},{"$f":"(Quarterly!FA201-Quarterly!FA197)*100","v":58.666666666666686},{"$f":"(Quarterly!FB201-Quarterly!FB197)*100","v":61.333333333333329},"--",{"$f":"(Quarterly!FD201-Quarterly!FD197)*100","v":79.666666666666686},{"$f":"(Quarterly!FE201-Quarterly!FE197)*100","v":154.66666666666663},{"$f":"(Quarterly!FF201-Quarterly!FF197)*100","v":130.33333333333331},{"$f":"(Quarterly!FG201-Quarterly!FG197)*100","v":97.666666666666657},{"$f":"(Quarterly!FH201-Quarterly!FH197)*100","v":80.666666666666657},{"$f":"(Quarterly!FI201-Quarterly!FI197)*100","v":68.333333333333172},null,null,null,null,null,null,{"$f":"((Quarterly!FP201/Quarterly!FP197)-1)","v":-6.6908929512607629E-2},{"$f":"((Quarterly!FQ201/Quarterly!FQ197)-1)","v":-2.1486486486486656E-2},{"$f":"((Quarterly!FR201/Quarterly!FR197)-1)","v":2.1804731150682821E-2},{"$f":"((Quarterly!FS201/Quarterly!FS197)-1)","v":4.4927536231883947E-2},{"$f":"((Quarterly!FT201/Quarterly!FT197)-1)","v":-2.6686432172259966E-2},{"$f":"((Quarterly!FU201/Quarterly!FU197)-1)","v":-3.4855745089598766E-2},{"$f":"((Quarterly!FV201/Quarterly!FV197)-1)","v":2.9323584702789285E-2},{"$f":"((Quarterly!FW201/Quarterly!FW197)-1)","v":0.1780514565932958},{"$f":"((Quarterly!FX201/Quarterly!FX197)-1)","v":0.19650123209427539},null,null,null,null,null,{"$f":"((Quarterly!GD201/Quarterly!GD197)-1)","v":0.11673007820756687},{"$f":"((Quarterly!GE201/Quarterly!GE197)-1)","v":0.13258500081340507},{"$f":"((Quarterly!GF201/Quarterly!GF197)-1)","v":9.7773961712141588E-2},{"$f":"((Quarterly!GG201/Quarterly!GG197)-1)","v":0.13910556422256892},{"$f":"((Quarterly!GH201/Quarterly!GH197)-1)","v":{"$error":"#DIV/0!"}},"--",{"$f":"((Quarterly!GJ201/Quarterly!GJ197)-1)","v":-0.36707078339114607},{"$f":"((Quarterly!GK201/Quarterly!GK197)-1)","v":2.4219725343320953E-2},"--"]
["06'Q4",{"$f":"((Quarterly!B202/Quarterly!B198)-1)","v":5.117022748127309E-2},{"$f":"((Quarterly!C202/Quarterly!C198)-1)","v":2.3897692396210202E-2},{"$f":"((Quarterly!D202/Quarterly!D198)-1)","v":2.7826513929962937E-2},{"$f":"((Quarterly!E202/Quarterly!E198)-1)","v":3.2954431283150898E-2},{"$f":"((Quarterly!F202/Quarterly!F198)-1)","v":6.8121289908551486E-2},{"$f":"((Quarterly!G202/Quarterly!G198)-1)","v":3.3638295906108562E-2},{"$f":"((Quarterly!H202/Quarterly!H198)-1)","v":2.6098195238169364E-2},{"$f":"((Quarterly!I202/Quarterly!I198)-1)","v":6.9258502742283845E-2},{"$f":"((Quarterly!J202/Quarterly!J198)-1)","v":6.4134818745972044E-2},{"$f":"((Quarterly!K202/Quarterly!K198)-1)","v":-0.1531025923412902},{"$f":"((Quarterly!L202-Quarterly!L198))","v":-53.355999999999995},{"$f":"((Quarterly!M202/Quarterly!M198)-1)","v":4.4728562472687861E-2},{"$f":"((Quarterly!N202/Quarterly!N198)-1)","v":0.10152186544515018},{"$f":"((Quarterly!O202/Quarterly!O198)-1)","v":-5.5461359042140002E-2},{"$f":"((Quarterly!P202/Quarterly!P198)-1)","v":2.0624558634374512E-2},{"$f":"((Quarterly!Q202/Quarterly!Q198)-1)","v":-0.34993613860698869},null,null,null,null,null,{"$f":"((Quarterly!W202/Quarterly!W198)-1)","v":0},{"$f":"((Quarterly!X202/Quarterly!X198)-1)","v":1.6666666666664831E-3},{"$f":"((Quarterly!Y202/Quarterly!Y198)-1)","v":0.14335772097419675},{"$f":"Quarterly!Z202-Quarterly!Z198","v":3.999999999999998E-2},{"$f":"((Quarterly!AA202/Quarterly!AA198)-1)","v":2.9317621710404085E-2},{"$f":"((Quarterly!AB202/Quarterly!AB198)-1)","v":3.3891447471478875E-2},{"$f":"Quarterly!AC202-Quarterly!AC198","v":-4.2},{"$f":"Quarterly!AD202-Quarterly!AD198","v":-21.9},{"$f":"(Quarterly!AE202-Quarterly!AE198)*100","v":3.0000000000000027},{"$f":"(Quarterly!AF202-Quarterly!AF198)*100","v":3.9999999999999982},{"$f":"(Quarterly!AG202-Quarterly!AG198)*100","v":-14.000000000000007},{"$f":"((Quarterly!AH202/Quarterly!AH198)-1)","v":0.23715106732348112},{"$f":"((Quarterly!AI202/Quarterly!AI198)-1)","v":0.19176523339527951},{"$f":"((Quarterly!AJ202/Quarterly!AJ198)-1)","v":3.0907278165503538E-2},{"$f":"((Quarterly!AK202/Quarterly!AK198)-1)","v":3.093812375249505E-2},{"$f":"((Quarterly!AL202/Quarterly!AL198)-1)","v":3.1968031968031996E-2},{"$f":"((Quarterly!AM202/Quarterly!AM198)-1)","v":2.1490796348029306E-2},{"$f":"((Quarterly!AN202/Quarterly!AN198)-1)","v":2.0807504215961004E-2},{"$f":"((Quarterly!AO202/Quarterly!AO198)-1)","v":7.9706144014734415E-2},{"$f":"(Quarterly!AP202-Quarterly!AP198)*100","v":4.6666666666666856},{"$f":"Quarterly!AQ202-Quarterly!AQ198","v":-5.3000000000000043},{"$f":"Quarterly!AR202-Quarterly!AR198","v":-7.3333333333333286},{"$f":"Quarterly!AS202-Quarterly!AS198","v":6.8333333333333357},{"$f":"Quarterly!AT202-Quarterly!AT198","v":-5.1333333333333258},{"$f":"Quarterly!AU202-Quarterly!AU198","v":0.53333333333334565},{"$f":"Quarterly!AV202-Quarterly!AV198","v":1.2999999999999972},{"$f":"Quarterly!AW202-Quarterly!AW198","v":0.8333333333333357},{"$f":"Quarterly!AX202-Quarterly!AX198","v":-8.7999999999999972},{"$f":"Quarterly!AY202-Quarterly!AY198","v":-24.333333333333336},{"$f":"Quarterly!AZ202-Quarterly!AZ198","v":-9.0333333333333385},{"$f":"Quarterly!BA202-Quarterly!BA198","v":-4.5333333333333243},{"$f":"Quarterly!BB202-Quarterly!BB198","v":-2.1000000000000014},{"$f":"((Quarterly!BC202/Quarterly!BC198)-1)","v":9.9341446826392898E-2},{"$f":"((Quarterly!BD202/Quarterly!BD198)-1)","v":4.0274162398186153E-2},{"$f":"((Quarterly!BE202/Quarterly!BE198)-1)","v":-2.3409647351916307E-3},{"$f":"((Quarterly!BF202/Quarterly!BF198)-1)","v":4.0208935318959638E-2},{"$f":"((Quarterly!BG202/Quarterly!BG198)-1)","v":8.1308579859673547E-3},{"$f":"((Quarterly!BH202/Quarterly!BH198)-1)","v":2.0157477077422881E-2},{"$f":"((Quarterly!BI202/Quarterly!BI198)-1)","v":3.1828794589104925E-2},{"$f":"((Quarterly!BJ202/Quarterly!BJ198)-1)","v":5.1606001731597573E-2},{"$f":"((Quarterly!BK202/Quarterly!BK198)-1)","v":0.15384615384615374},null,{"$f":"((Quarterly!BM202/Quarterly!BM198)-1)","v":4.1182426059875876E-2},{"$f":"((Quarterly!BN202/Quarterly!BN198)-1)","v":3.8082864524332294E-2},null,null,null,null,null,{"$f":"((Quarterly!BT202/Quarterly!BT198)-1)","v":3.7582714512549575E-2},{"$f":"Quarterly!BU202-Quarterly!BU198","v":0.2576900000000002},{"$f":"Quarterly!BV202-Quarterly!BV198","v":0.37270999999999788},{"$f":"((Quarterly!BW202/Quarterly!BW198)-1)","v":9.7409796863111131E-2},{"$f":"((Quarterly!BX202/Quarterly!BX198)-1)","v":-0.2410570415726716},{"$f":"((Quarterly!BY202/Quarterly!BY198)-1)","v":-0.27120467117393987},{"$f":"((Quarterly!BZ202/Quarterly!BZ198)-1)","v":1.7411733342219682E-2},{"$f":"((Quarterly!CA202/Quarterly!CA198)-1)","v":3.074205690014109E-2},{"$f":"((Quarterly!CB202/Quarterly!CB198)-1)","v":-0.25950331534335491},{"$f":"((Quarterly!CC202/Quarterly!CC198)-1)","v":-0.21586355803134782},{"$f":"((Quarterly!CD202/Quarterly!CD198)-1)","v":8.6493679308050631E-2},{"$f":"((Quarterly!CE202/Quarterly!CE198)-1)","v":-0.22354183161784114},null,"--","--",null,{"$f":"((Quarterly!CJ202/Quarterly!CJ198)-1)","v":-0.22354183161784114},{"$f":"((Quarterly!CK202/Quarterly!CK198)-1)","v":6.5650655556917181E-2},{"$f":"((Quarterly!CL202/Quarterly!CL198)-1)","v":0.22657252888318347},{"$f":"((Quarterly!CM202/Quarterly!CM198)-1)","v":-0.27530911901081923},{"$f":"((Quarterly!CN202/Quarterly!CN198)-1)","v":4.0722868950875624E-2},{"$f":"((Quarterly!CO202/Quarterly!CO198)-1)","v":2.1058200076102818E-2},{"$f":"((Quarterly!CP202/Quarterly!CP198)-1)","v":6.9391649118633048E-2},{"$f":"((Quarterly!CQ202/Quarterly!CQ198)-1)","v":9.7116452260519459E-3},{"$f":"((Quarterly!CR202/Quarterly!CR198)-1)","v":0.11159322476845346},{"$f":"Quarterly!CS202-Quarterly!CS198","v":10.033333333333317},{"$f":"Quarterly!CT202-Quarterly!CT198","v":11.033333333333331},null,null,null,null,null,{"$f":"((Quarterly!CZ202/Quarterly!CZ198)-1)","v":1.9653955988577332E-2},{"$f":"((Quarterly!DA202/Quarterly!DA198)-1)","v":2.6675448707393468E-2},null,null,null,null,null,{"$f":"((Quarterly!DG202/Quarterly!DG198)-1)","v":2.4719101123595433E-2},{"$f":"((Quarterly!DH202-Quarterly!DH198)*60)","v":6.0000000000000853},{"$f":"Quarterly!DI202-Quarterly!DI198","v":0.26666666666666572},{"$f":"(Quarterly!DJ202-Quarterly!DJ198)*100","v":-60.000000000000142},{"$f":"(Quarterly!DK202-Quarterly!DK198)*100","v":-53.333333333333321},{"$f":"((Quarterly!DL202/Quarterly!DL198)-1)","v":-1.0358921356760309E-2},null,null,null,{"$f":"((Quarterly!DP202/Quarterly!DP198)-1)","v":1.575826135496361E-2},null,null,null,null,{"$f":"Quarterly!DU202-Quarterly!DU198","v":-0.6999999999999984},{"$f":"((Quarterly!DV202/Quarterly!DV198)-1)","v":2.4690775186479108E-2},{"$f":"((Quarterly!DW202/Quarterly!DW198)-1)","v":2.5380591588280765E-2},{"$f":"((Quarterly!DX202/Quarterly!DX198)-1)","v":2.5982298511465718E-2},{"$f":"((Quarterly!DY202/Quarterly!DY198)-1)","v":2.2642591000286538E-2},{"$f":"((Quarterly!DZ202/Quarterly!DZ198)-1)","v":2.7002188183807396E-2},{"$f":"((Quarterly!EA202/Quarterly!EA198)-1)","v":2.8476447343661837E-2},{"$f":"((Quarterly!EB202/Quarterly!EB198)-1)","v":2.3599247140581925E-2},{"$f":"((Quarterly!EC202/Quarterly!EC198)-1)","v":2.3978754979301797E-2},null,null,null,null,null,{"$f":"((Quarterly!EI202/Quarterly!EI198)-1)","v":9.1372900715431804E-3},{"$f":"((Quarterly!EJ202/Quarterly!EJ198)-1)","v":1.150989081313103E-2},{"$f":"((Quarterly!EK202/Quarterly!EK198)-1)","v":1.7912703367880534E-2},null,null,null,null,null,{"$f":"((Quarterly!EQ202/Quarterly!EQ198)-1)","v":-1.0144045445322769E-3},{"$f":"((Quarterly!ER202/Quarterly!ER198)-1)","v":1.7006802721088343E-2},{"$f":"((Quarterly!ES202/Quarterly!ES198)-1)","v":1.9071691176470784E-2},null,null,null,null,null,{"$f":"(Quarterly!EY202-Quarterly!EY198)*100","v":128.3333333333334},{"$f":"(Quarterly!EZ202-Quarterly!EZ198)*100","v":126.6666666666667},{"$f":"(Quarterly!FA202-Quarterly!FA198)*100","v":0.66666666666668206},{"$f":"(Quarterly!FB202-Quarterly!FB198)*100","v":-5.6666666666665755},"--",{"$f":"(Quarterly!FD202-Quarterly!FD198)*100","v":2.3333333333333428},{"$f":"(Quarterly!FE202-Quarterly!FE198)*100","v":107.66666666666667},{"$f":"(Quarterly!FF202-Quarterly!FF198)*100","v":70.000000000000114},{"$f":"(Quarterly!FG202-Quarterly!FG198)*100","v":37.333333333333307},{"$f":"(Quarterly!FH202-Quarterly!FH198)*100","v":20.999999999999996},{"$f":"(Quarterly!FI202-Quarterly!FI198)*100","v":14.000000000000057},null,null,null,null,null,null,{"$f":"((Quarterly!FP202/Quarterly!FP198)-1)","v":-2.9201227133280439E-2},{"$f":"((Quarterly!FQ202/Quarterly!FQ198)-1)","v":-2.7345457544640794E-2},{"$f":"((Quarterly!FR202/Quarterly!FR198)-1)","v":1.6176264645930472E-2},{"$f":"((Quarterly!FS202/Quarterly!FS198)-1)","v":8.5164835164835306E-2},{"$f":"((Quarterly!FT202/Quarterly!FT198)-1)","v":-3.9086267350235349E-2},{"$f":"((Quarterly!FU202/Quarterly!FU198)-1)","v":-4.8150223540463055E-2},{"$f":"((Quarterly!FV202/Quarterly!FV198)-1)","v":-7.5770614586226026E-2},{"$f":"((Quarterly!FW202/Quarterly!FW198)-1)","v":0.20771082546994557},{"$f":"((Quarterly!FX202/Quarterly!FX198)-1)","v":9.1744968354360967E-2},null,null,null,null,null,{"$f":"((Quarterly!GD202/Quarterly!GD198)-1)","v":9.9944475291513513E-4},{"$f":"((Quarterly!GE202/Quarterly!GE198)-1)","v":4.9226441631504914E-2},{"$f":"((Quarterly!GF202/Quarterly!GF198)-1)","v":-5.7885557071860716E-2},{"$f":"((Quarterly!GG202/Quarterly!GG198)-1)","v":-5.3877450376032643E-2},{"$f":"((Quarterly!GH202/Quarterly!GH198)-1)","v":{"$error":"#DIV/0!"}},"--",{"$f":"((Quarterly!GJ202/Quarterly!GJ198)-1)","v":-0.43513765748950062},{"$f":"((Quarterly!GK202/Quarterly!GK198)-1)","v":6.8032247449819172E-2},"--"]
["07'Q1",{"$f":"((Quarterly!B203/Quarterly!B199)-1)","v":4.2810909945589781E-2},{"$f":"((Quarterly!C203/Quarterly!C199)-1)","v":1.2367766274976821E-2},{"$f":"((Quarterly!D203/Quarterly!D199)-1)","v":1.6206687778789863E-2},{"$f":"((Quarterly!E203/Quarterly!E199)-1)","v":2.6870907950951928E-2},{"$f":"((Quarterly!F203/Quarterly!F199)-1)","v":3.7606732221571848E-2},{"$f":"((Quarterly!G203/Quarterly!G199)-1)","v":2.7252035500970218E-2},{"$f":"((Quarterly!H203/Quarterly!H199)-1)","v":2.4658000443452011E-2},{"$f":"((Quarterly!I203/Quarterly!I199)-1)","v":4.8926424039697602E-2},{"$f":"((Quarterly!J203/Quarterly!J199)-1)","v":3.7531394090944525E-2},{"$f":"((Quarterly!K203/Quarterly!K199)-1)","v":-0.18413550284114055},{"$f":"((Quarterly!L203-Quarterly!L199))","v":-59.003},{"$f":"((Quarterly!M203/Quarterly!M199)-1)","v":3.9095306483871939E-2},{"$f":"((Quarterly!N203/Quarterly!N199)-1)","v":7.9344155751452039E-2},{"$f":"((Quarterly!O203/Quarterly!O199)-1)","v":-3.5004587092809292E-2},{"$f":"((Quarterly!P203/Quarterly!P199)-1)","v":1.0249882950598144E-2},{"$f":"((Quarterly!Q203/Quarterly!Q199)-1)","v":-0.11831477213222219},null,null,null,null,null,{"$f":"((Quarterly!W203/Quarterly!W199)-1)","v":1.2706480304955914E-3},{"$f":"((Quarterly!X203/Quarterly!X199)-1)","v":-1.243265644426117E-3},{"$f":"((Quarterly!Y203/Quarterly!Y199)-1)","v":0.13770854120304121},{"$f":"Quarterly!Z203-Quarterly!Z199","v":0.13999999999999999},{"$f":"((Quarterly!AA203/Quarterly!AA199)-1)","v":-6.0640869275973008E-2},{"$f":"((Quarterly!AB203/Quarterly!AB199)-1)","v":-9.4240294709306283E-2},{"$f":"Quarterly!AC203-Quarterly!AC199","v":13.5},{"$f":"Quarterly!AD203-Quarterly!AD199","v":-10.6},{"$f":"(Quarterly!AE203-Quarterly!AE199)*100","v":10.999999999999998},{"$f":"(Quarterly!AF203-Quarterly!AF199)*100","v":13.999999999999998},{"$f":"(Quarterly!AG203-Quarterly!AG199)*100","v":12},{"$f":"((Quarterly!AH203/Quarterly!AH199)-1)","v":0.20102195306585924},{"$f":"((Quarterly!AI203/Quarterly!AI199)-1)","v":0.17374928140615031},{"$f":"((Quarterly!AJ203/Quarterly!AJ199)-1)","v":2.2817460317460236E-2},{"$f":"((Quarterly!AK203/Quarterly!AK199)-1)","v":3.0753968253968367E-2},{"$f":"((Quarterly!AL203/Quarterly!AL199)-1)","v":3.4722222222222321E-2},{"$f":"((Quarterly!AM203/Quarterly!AM199)-1)","v":2.1254267252992731E-2},{"$f":"((Quarterly!AN203/Quarterly!AN199)-1)","v":2.2909923260615361E-2},{"$f":"((Quarterly!AO203/Quarterly!AO199)-1)","v":6.5742903251673868E-2},{"$f":"(Quarterly!AP203-Quarterly!AP199)*100","v":4.0000000000000258},{"$f":"Quarterly!AQ203-Quarterly!AQ199","v":-4.3333333333333215},{"$f":"Quarterly!AR203-Quarterly!AR199","v":-8.5},{"$f":"Quarterly!AS203-Quarterly!AS199","v":3.5},{"$f":"Quarterly!AT203-Quarterly!AT199","v":-3.0999999999999943},{"$f":"Quarterly!AU203-Quarterly!AU199","v":-3.6000000000000014},{"$f":"Quarterly!AV203-Quarterly!AV199","v":0.6666666666666714},{"$f":"Quarterly!AW203-Quarterly!AW199","v":-4.3333333333333357},{"$f":"Quarterly!AX203-Quarterly!AX199","v":-6.4666666666666686},{"$f":"Quarterly!AY203-Quarterly!AY199","v":-5.5000000000000071},{"$f":"Quarterly!AZ203-Quarterly!AZ199","v":-5.5},{"$f":"Quarterly!BA203-Quarterly!BA199","v":-2.2999999999999901},{"$f":"Quarterly!BB203-Quarterly!BB199","v":-4.4333333333333371},{"$f":"((Quarterly!BC203/Quarterly!BC199)-1)","v":2.1349707369885396E-2},{"$f":"((Quarterly!BD203/Quarterly!BD199)-1)","v":4.3494102582787741E-2},{"$f":"((Quarterly!BE203/Quarterly!BE199)-1)","v":-4.9611184294394706E-3},{"$f":"((Quarterly!BF203/Quarterly!BF199)-1)","v":4.3967168858312311E-2},{"$f":"((Quarterly!BG203/Quarterly!BG199)-1)","v":3.1338039314994237E-3},{"$f":"((Quarterly!BH203/Quarterly!BH199)-1)","v":1.915739831803509E-2},{"$f":"((Quarterly!BI203/Quarterly!BI199)-1)","v":4.0709790570514715E-2},{"$f":"((Quarterly!BJ203/Quarterly!BJ199)-1)","v":-2.2451412491579892E-2},{"$f":"((Quarterly!BK203/Quarterly!BK199)-1)","v":0.82352941176470584},null,{"$f":"((Quarterly!BM203/Quarterly!BM199)-1)","v":2.5379218125685332E-2},{"$f":"((Quarterly!BN203/Quarterly!BN199)-1)","v":2.3235517236727343E-2},null,null,null,null,null,{"$f":"((Quarterly!BT203/Quarterly!BT199)-1)","v":4.6855434629410553E-2},{"$f":"Quarterly!BU203-Quarterly!BU199","v":0.31606999999999985},{"$f":"Quarterly!BV203-Quarterly!BV199","v":0.50984000000000052},{"$f":"((Quarterly!BW203/Quarterly!BW199)-1)","v":0.10099965529127886},{"$f":"((Quarterly!BX203/Quarterly!BX199)-1)","v":-0.31080018864958348},{"$f":"((Quarterly!BY203/Quarterly!BY199)-1)","v":-0.25513830938031212},{"$f":"((Quarterly!BZ203/Quarterly!BZ199)-1)","v":-5.5900419253145373E-3},{"$f":"((Quarterly!CA203/Quarterly!CA199)-1)","v":-2.7249683143219183E-2},{"$f":"((Quarterly!CB203/Quarterly!CB199)-1)","v":-0.1772797081742179},{"$f":"((Quarterly!CC203/Quarterly!CC199)-1)","v":-0.14115414493085898},{"$f":"((Quarterly!CD203/Quarterly!CD199)-1)","v":8.0545229244115557E-3},{"$f":"((Quarterly!CE203/Quarterly!CE199)-1)","v":-0.23843628767532088},null,{"$f":"((Quarterly!CG203/Quarterly!CG199)-1)","v":9.5027624309392378E-2},{"$f":"((Quarterly!CH203/Quarterly!CH199)-1)","v":-0.175242718446602},null,{"$f":"((Quarterly!CJ203/Quarterly!CJ199)-1)","v":-0.23843628767532088},{"$f":"((Quarterly!CK203/Quarterly!CK199)-1)","v":5.4420959680800074E-2},{"$f":"((Quarterly!CL203/Quarterly!CL199)-1)","v":-9.7241867043847185E-2},{"$f":"((Quarterly!CM203/Quarterly!CM199)-1)","v":-0.29820198928844688},{"$f":"((Quarterly!CN203/Quarterly!CN199)-1)","v":2.4167291573721661E-2},{"$f":"((Quarterly!CO203/Quarterly!CO199)-1)","v":2.6623950508174898E-2},{"$f":"((Quarterly!CP203/Quarterly!CP199)-1)","v":3.9865626043777525E-2},{"$f":"((Quarterly!CQ203/Quarterly!CQ199)-1)","v":9.888524678225652E-3},{"$f":"((Quarterly!CR203/Quarterly!CR199)-1)","v":5.5157335329883095E-2},{"$f":"Quarterly!CS203-Quarterly!CS199","v":3.2666666666666657},{"$f":"Quarterly!CT203-Quarterly!CT199","v":4.2000000000000028},null,null,null,null,null,{"$f":"((Quarterly!CZ203/Quarterly!CZ199)-1)","v":2.4316510695187032E-2},{"$f":"((Quarterly!DA203/Quarterly!DA199)-1)","v":2.6269023073147046E-2},null,null,null,null,null,{"$f":"((Quarterly!DG203/Quarterly!DG199)-1)","v":1.7142857142857348E-2},{"$f":"((Quarterly!DH203-Quarterly!DH199)*60)","v":-1.99999999999946},{"$f":"Quarterly!DI203-Quarterly!DI199","v":0.19999999999998863},{"$f":"(Quarterly!DJ203-Quarterly!DJ199)*100","v":-13.333333333333286},{"$f":"(Quarterly!DK203-Quarterly!DK199)*100","v":-23.333333333333339},{"$f":"((Quarterly!DL203/Quarterly!DL199)-1)","v":-1.543405343278681E-2},null,null,null,{"$f":"((Quarterly!DP203/Quarterly!DP199)-1)","v":1.3794356541638297E-2},null,null,null,null,{"$f":"Quarterly!DU203-Quarterly!DU199","v":-0.16666666666666607},{"$f":"((Quarterly!DV203/Quarterly!DV199)-1)","v":2.2550215881358859E-2},{"$f":"((Quarterly!DW203/Quarterly!DW199)-1)","v":2.2601034284619903E-2},{"$f":"((Quarterly!DX203/Quarterly!DX199)-1)","v":2.0723283218203825E-2},{"$f":"((Quarterly!DY203/Quarterly!DY199)-1)","v":1.2085032032615128E-2},{"$f":"((Quarterly!DZ203/Quarterly!DZ199)-1)","v":2.3340981291916751E-2},{"$f":"((Quarterly!EA203/Quarterly!EA199)-1)","v":2.6764909629070077E-2},{"$f":"((Quarterly!EB203/Quarterly!EB199)-1)","v":1.5327929255711137E-2},{"$f":"((Quarterly!EC203/Quarterly!EC199)-1)","v":2.7133050016345139E-2},null,null,null,null,null,{"$f":"((Quarterly!EI203/Quarterly!EI199)-1)","v":-7.4670573035759968E-3},{"$f":"((Quarterly!EJ203/Quarterly!EJ199)-1)","v":8.6059816280823487E-3},{"$f":"((Quarterly!EK203/Quarterly!EK199)-1)","v":1.8120442198101383E-2},null,null,null,null,null,{"$f":"((Quarterly!EQ203/Quarterly!EQ199)-1)","v":2.4165472045873493E-2},{"$f":"((Quarterly!ER203/Quarterly!ER199)-1)","v":1.7092213547161839E-2},{"$f":"((Quarterly!ES203/Quarterly!ES199)-1)","v":2.0328917313841899E-2},null,null,null,null,null,{"$f":"(Quarterly!EY203-Quarterly!EY199)*100","v":82.000000000000028},{"$f":"(Quarterly!EZ203-Quarterly!EZ199)*100","v":79.999999999999986},{"$f":"(Quarterly!FA203-Quarterly!FA199)*100","v":-2.6666666666667282},{"$f":"(Quarterly!FB203-Quarterly!FB199)*100","v":-1.0000000000000675},"--",{"$f":"(Quarterly!FD203-Quarterly!FD199)*100","v":-1.6666666666665719},{"$f":"(Quarterly!FE203-Quarterly!FE199)*100","v":59.000000000000071},{"$f":"(Quarterly!FF203-Quarterly!FF199)*100","v":37.666666666666693},{"$f":"(Quarterly!FG203-Quarterly!FG199)*100","v":16.666666666666607},{"$f":"(Quarterly!FH203-Quarterly!FH199)*100","v":10.000000000000053},{"$f":"(Quarterly!FI203-Quarterly!FI199)*100","v":10.999999999999943},null,null,null,null,null,null,{"$f":"((Quarterly!FP203/Quarterly!FP199)-1)","v":1.5043021308540405E-2},{"$f":"((Quarterly!FQ203/Quarterly!FQ199)-1)","v":-3.6308153497076612E-2},{"$f":"((Quarterly!FR203/Quarterly!FR199)-1)","v":4.0587618840812079E-2},{"$f":"((Quarterly!FS203/Quarterly!FS199)-1)","v":8.9350030475979336E-2},{"$f":"((Quarterly!FT203/Quarterly!FT199)-1)","v":-2.8567124273617295E-2},{"$f":"((Quarterly!FU203/Quarterly!FU199)-1)","v":-3.5371181437711119E-2},{"$f":"((Quarterly!FV203/Quarterly!FV199)-1)","v":-2.1314126120829391E-3},{"$f":"((Quarterly!FW203/Quarterly!FW199)-1)","v":0.19363849733864713},{"$f":"((Quarterly!FX203/Quarterly!FX199)-1)","v":2.732254267960843E-2},null,null,null,null,null,{"$f":"((Quarterly!GD203/Quarterly!GD199)-1)","v":-8.2351083982319606E-2},{"$f":"((Quarterly!GE203/Quarterly!GE199)-1)","v":-6.4611896793695167E-2},{"$f":"((Quarterly!GF203/Quarterly!GF199)-1)","v":-1.7798207566340429E-2},{"$f":"((Quarterly!GG203/Quarterly!GG199)-1)","v":1.8530862551659588E-2},{"$f":"((Quarterly!GH203/Quarterly!GH199)-1)","v":{"$error":"#DIV/0!"}},"--",{"$f":"((Quarterly!GJ203/Quarterly!GJ199)-1)","v":-8.8555108948593086E-2},{"$f":"((Quarterly!GK203/Quarterly!GK199)-1)","v":2.5991258195441791E-2},"--"]
["07'Q2",{"$f":"((Quarterly!B204/Quarterly!B200)-1)","v":4.5110745856061341E-2},{"$f":"((Quarterly!C204/Quarterly!C200)-1)","v":1.7072384169940502E-2},{"$f":"((Quarterly!D204/Quarterly!D200)-1)","v":1.9245129019627161E-2},{"$f":"((Quarterly!E204/Quarterly!E200)-1)","v":2.489844325090651E-2},{"$f":"((Quarterly!F204/Quarterly!F200)-1)","v":5.3820515985680606E-2},{"$f":"((Quarterly!G204/Quarterly!G200)-1)","v":2.1848688317422482E-2},{"$f":"((Quarterly!H204/Quarterly!H200)-1)","v":2.0523400464834918E-2},{"$f":"((Quarterly!I204/Quarterly!I200)-1)","v":5.6335436253558413E-2},{"$f":"((Quarterly!J204/Quarterly!J200)-1)","v":3.8765418146359698E-2},{"$f":"((Quarterly!K204/Quarterly!K200)-1)","v":-0.17532165537002298},{"$f":"((Quarterly!L204-Quarterly!L200))","v":-35.007999999999996},{"$f":"((Quarterly!M204/Quarterly!M200)-1)","v":3.1236412493520493E-2},{"$f":"((Quarterly!N204/Quarterly!N200)-1)","v":7.817596749825162E-2},{"$f":"((Quarterly!O204/Quarterly!O200)-1)","v":-5.6786171494788484E-2},{"$f":"((Quarterly!P204/Quarterly!P200)-1)","v":1.4982601998099421E-2},{"$f":"((Quarterly!Q204/Quarterly!Q200)-1)","v":3.129221624542522E-2},null,null,null,null,null,{"$f":"((Quarterly!W204/Quarterly!W200)-1)","v":1.0191082802547768E-2},{"$f":"((Quarterly!X204/Quarterly!X200)-1)","v":3.3098882912698802E-3},{"$f":"((Quarterly!Y204/Quarterly!Y200)-1)","v":0.12934337034293408},{"$f":"Quarterly!Z204-Quarterly!Z200","v":0.15},{"$f":"((Quarterly!AA204/Quarterly!AA200)-1)","v":-3.5932183903916282E-2},{"$f":"((Quarterly!AB204/Quarterly!AB200)-1)","v":-3.8528206006185561E-2},{"$f":"Quarterly!AC204-Quarterly!AC200","v":10.5},{"$f":"Quarterly!AD204-Quarterly!AD200","v":-22.7},{"$f":"(Quarterly!AE204-Quarterly!AE200)*100","v":16.000000000000004},{"$f":"(Quarterly!AF204-Quarterly!AF200)*100","v":15},{"$f":"(Quarterly!AG204-Quarterly!AG200)*100","v":10.999999999999998},{"$f":"((Quarterly!AH204/Quarterly!AH200)-1)","v":0.22335451822631303},{"$f":"((Quarterly!AI204/Quarterly!AI200)-1)","v":0.18968487603598327},{"$f":"((Quarterly!AJ204/Quarterly!AJ200)-1)","v":2.5590551181102539E-2},{"$f":"((Quarterly!AK204/Quarterly!AK200)-1)","v":3.1496062992125928E-2},{"$f":"((Quarterly!AL204/Quarterly!AL200)-1)","v":3.4448818897637734E-2},{"$f":"((Quarterly!AM204/Quarterly!AM200)-1)","v":2.755481285389827E-2},{"$f":"((Quarterly!AN204/Quarterly!AN200)-1)","v":3.6557158821508118E-2},{"$f":"((Quarterly!AO204/Quarterly!AO200)-1)","v":5.497171681536317E-2},{"$f":"(Quarterly!AP204-Quarterly!AP200)*100","v":0.66666666666665986},{"$f":"Quarterly!AQ204-Quarterly!AQ200","v":-1.06666666666667},{"$f":"Quarterly!AR204-Quarterly!AR200","v":-1.1666666666666643},{"$f":"Quarterly!AS204-Quarterly!AS200","v":2},{"$f":"Quarterly!AT204-Quarterly!AT200","v":-0.43333333333333712},{"$f":"Quarterly!AU204-Quarterly!AU200","v":2.5},{"$f":"Quarterly!AV204-Quarterly!AV200","v":-0.6666666666666714},{"$f":"Quarterly!AW204-Quarterly!AW200","v":-3.1666666666666643},{"$f":"Quarterly!AX204-Quarterly!AX200","v":2.7000000000000028},{"$f":"Quarterly!AY204-Quarterly!AY200","v":-4.3333333333333286},{"$f":"Quarterly!AZ204-Quarterly!AZ200","v":1.8000000000000043},{"$f":"Quarterly!BA204-Quarterly!BA200","v":-6.3333333333333357},{"$f":"Quarterly!BB204-Quarterly!BB200","v":-0.5},{"$f":"((Quarterly!BC204/Quarterly!BC200)-1)","v":2.4508825907530118E-2},{"$f":"((Quarterly!BD204/Quarterly!BD200)-1)","v":5.7685514203187793E-2},{"$f":"((Quarterly!BE204/Quarterly!BE200)-1)","v":-1.1367661739606572E-2},{"$f":"((Quarterly!BF204/Quarterly!BF200)-1)","v":4.2842840664243598E-2},{"$f":"((Quarterly!BG204/Quarterly!BG200)-1)","v":1.0053222945002993E-2},{"$f":"((Quarterly!BH204/Quarterly!BH200)-1)","v":1.6039941598684937E-2},{"$f":"((Quarterly!BI204/Quarterly!BI200)-1)","v":3.2449867067867455E-2},{"$f":"((Quarterly!BJ204/Quarterly!BJ200)-1)","v":-1.3905960823967667E-2},{"$f":"((Quarterly!BK204/Quarterly!BK200)-1)","v":0.71428571428571419},null,{"$f":"((Quarterly!BM204/Quarterly!BM200)-1)","v":3.1111720632646112E-2},{"$f":"((Quarterly!BN204/Quarterly!BN200)-1)","v":2.8301311438468257E-2},null,null,null,null,null,{"$f":"((Quarterly!BT204/Quarterly!BT200)-1)","v":3.6785539248144428E-2},{"$f":"Quarterly!BU204-Quarterly!BU200","v":0.31398999999999866},{"$f":"Quarterly!BV204-Quarterly!BV200","v":0.51304999999999978},{"$f":"((Quarterly!BW204/Quarterly!BW200)-1)","v":0.12317379734883338},{"$f":"((Quarterly!BX204/Quarterly!BX200)-1)","v":-0.21778975741239892},{"$f":"((Quarterly!BY204/Quarterly!BY200)-1)","v":-0.24263431542461},{"$f":"((Quarterly!BZ204/Quarterly!BZ200)-1)","v":-2.6237983682042221E-2},{"$f":"((Quarterly!CA204/Quarterly!CA200)-1)","v":-1.5400285190466656E-2},{"$f":"((Quarterly!CB204/Quarterly!CB200)-1)","v":-0.16271119251647448},{"$f":"((Quarterly!CC204/Quarterly!CC200)-1)","v":-0.1259011466112957},{"$f":"((Quarterly!CD204/Quarterly!CD200)-1)","v":-3.5966981132075526E-2},{"$f":"((Quarterly!CE204/Quarterly!CE200)-1)","v":-0.23180018275967096},null,{"$f":"((Quarterly!CG204/Quarterly!CG200)-1)","v":7.255813953488377E-2},{"$f":"((Quarterly!CH204/Quarterly!CH200)-1)","v":-0.20567375886524819},null,{"$f":"((Quarterly!CJ204/Quarterly!CJ200)-1)","v":-0.23180018275967096},{"$f":"((Quarterly!CK204/Quarterly!CK200)-1)","v":5.458134397072345E-2},{"$f":"((Quarterly!CL204/Quarterly!CL200)-1)","v":-4.9399999999999888E-2},{"$f":"((Quarterly!CM204/Quarterly!CM200)-1)","v":-0.23698146513680496},{"$f":"((Quarterly!CN204/Quarterly!CN200)-1)","v":2.4636518156715637E-2},{"$f":"((Quarterly!CO204/Quarterly!CO200)-1)","v":4.4887688606638276E-2},{"$f":"((Quarterly!CP204/Quarterly!CP200)-1)","v":4.4747538463617342E-2},{"$f":"((Quarterly!CQ204/Quarterly!CQ200)-1)","v":1.0005404705220267E-2},{"$f":"((Quarterly!CR204/Quarterly!CR200)-1)","v":5.77800293367563E-2},{"$f":"Quarterly!CS204-Quarterly!CS200","v":3.0999999999999943},{"$f":"Quarterly!CT204-Quarterly!CT200","v":6.6666666666677088E-2},null,null,null,null,null,{"$f":"((Quarterly!CZ204/Quarterly!CZ200)-1)","v":2.6652865187148045E-2},{"$f":"((Quarterly!DA204/Quarterly!DA200)-1)","v":2.2881025807498734E-2},null,null,null,null,null,{"$f":"((Quarterly!DG204/Quarterly!DG200)-1)","v":1.6398612425102543E-2},{"$f":"((Quarterly!DH204-Quarterly!DH200)*60)","v":0},{"$f":"Quarterly!DI204-Quarterly!DI200","v":-0.16666666666665719},{"$f":"(Quarterly!DJ204-Quarterly!DJ200)*100","v":0},{"$f":"(Quarterly!DK204-Quarterly!DK200)*100","v":-13.333333333333375},{"$f":"((Quarterly!DL204/Quarterly!DL200)-1)","v":-2.0097556399793604E-2},null,null,null,{"$f":"((Quarterly!DP204/Quarterly!DP200)-1)","v":1.2550602335962946E-2},null,null,null,null,{"$f":"Quarterly!DU204-Quarterly!DU200","v":9.9999999999999645E-2},{"$f":"((Quarterly!DV204/Quarterly!DV200)-1)","v":1.0425878519897624E-2},{"$f":"((Quarterly!DW204/Quarterly!DW200)-1)","v":1.0152757078986774E-2},{"$f":"((Quarterly!DX204/Quarterly!DX200)-1)","v":1.1111852642818887E-2},{"$f":"((Quarterly!DY204/Quarterly!DY200)-1)","v":8.5275724843660861E-3},{"$f":"((Quarterly!DZ204/Quarterly!DZ200)-1)","v":1.1904761904761862E-2},{"$f":"((Quarterly!EA204/Quarterly!EA200)-1)","v":2.0063555361704566E-2},{"$f":"((Quarterly!EB204/Quarterly!EB200)-1)","v":-7.1189888130173129E-3},{"$f":"((Quarterly!EC204/Quarterly!EC200)-1)","v":7.9377311960544539E-3},null,null,null,null,null,{"$f":"((Quarterly!EI204/Quarterly!EI200)-1)","v":7.2079129097739614E-3},{"$f":"((Quarterly!EJ204/Quarterly!EJ200)-1)","v":2.1374947125788024E-2},{"$f":"((Quarterly!EK204/Quarterly!EK200)-1)","v":2.5308692934477683E-2},null,null,null,null,null,{"$f":"((Quarterly!EQ204/Quarterly!EQ200)-1)","v":4.4941555824264512E-2},{"$f":"((Quarterly!ER204/Quarterly!ER200)-1)","v":1.616288832913515E-2},{"$f":"((Quarterly!ES204/Quarterly!ES200)-1)","v":1.7022242396731668E-2},null,null,null,null,null,{"$f":"(Quarterly!EY204-Quarterly!EY200)*100","v":35.000000000000057},{"$f":"(Quarterly!EZ204-Quarterly!EZ200)*100","v":34.333333333333286},{"$f":"(Quarterly!FA204-Quarterly!FA200)*100","v":-31.666666666666643},{"$f":"(Quarterly!FB204-Quarterly!FB200)*100","v":-24.333333333333407},"--",{"$f":"(Quarterly!FD204-Quarterly!FD200)*100","v":-22.999999999999954},{"$f":"(Quarterly!FE204-Quarterly!FE200)*100","v":3.3333333333334103},{"$f":"(Quarterly!FF204-Quarterly!FF200)*100","v":-8.6666666666666892},{"$f":"(Quarterly!FG204-Quarterly!FG200)*100","v":-18.666666666666654},{"$f":"(Quarterly!FH204-Quarterly!FH200)*100","v":-22.666666666666746},{"$f":"(Quarterly!FI204-Quarterly!FI200)*100","v":-22.333333333333361},null,null,null,null,null,null,{"$f":"((Quarterly!FP204/Quarterly!FP200)-1)","v":-2.1557099590236994E-2},{"$f":"((Quarterly!FQ204/Quarterly!FQ200)-1)","v":-4.1457913746899888E-2},{"$f":"((Quarterly!FR204/Quarterly!FR200)-1)","v":-2.6773546137994986E-2},{"$f":"((Quarterly!FS204/Quarterly!FS200)-1)","v":7.2968886766929142E-2},{"$f":"((Quarterly!FT204/Quarterly!FT200)-1)","v":-3.6663052504669391E-2},{"$f":"((Quarterly!FU204/Quarterly!FU200)-1)","v":-3.309418543179099E-2},{"$f":"((Quarterly!FV204/Quarterly!FV200)-1)","v":3.8558581706063633E-2},{"$f":"((Quarterly!FW204/Quarterly!FW200)-1)","v":0.13039943098644757},{"$f":"((Quarterly!FX204/Quarterly!FX200)-1)","v":3.2485496134937453E-2},null,null,null,null,null,{"$f":"((Quarterly!GD204/Quarterly!GD200)-1)","v":-7.8831702821494098E-2},{"$f":"((Quarterly!GE204/Quarterly!GE200)-1)","v":-1.3662511984659842E-2},{"$f":"((Quarterly!GF204/Quarterly!GF200)-1)","v":2.9809954820606777E-2},{"$f":"((Quarterly!GG204/Quarterly!GG200)-1)","v":-9.9730141968790154E-3},{"$f":"((Quarterly!GH204/Quarterly!GH200)-1)","v":{"$error":"#DIV/0!"}},"--",{"$f":"((Quarterly!GJ204/Quarterly!GJ200)-1)","v":0.14644623145697011},{"$f":"((Quarterly!GK204/Quarterly!GK200)-1)","v":4.2405425279843145E-2},"--"]
["07'Q3",{"$f":"((Quarterly!B205/Quarterly!B201)-1)","v":4.753762771508474E-2},{"$f":"((Quarterly!C205/Quarterly!C201)-1)","v":2.2998181218414571E-2},{"$f":"((Quarterly!D205/Quarterly!D201)-1)","v":2.5177193503928663E-2},{"$f":"((Quarterly!E205/Quarterly!E201)-1)","v":2.3490387677795876E-2},{"$f":"((Quarterly!F205/Quarterly!F201)-1)","v":5.1016680871788456E-2},{"$f":"((Quarterly!G205/Quarterly!G201)-1)","v":1.8134165555690362E-2},{"$f":"((Quarterly!H205/Quarterly!H201)-1)","v":2.0215454860474269E-2},{"$f":"((Quarterly!I205/Quarterly!I201)-1)","v":6.0069094433375936E-2},{"$f":"((Quarterly!J205/Quarterly!J201)-1)","v":3.3140897227069477E-2},{"$f":"((Quarterly!K205/Quarterly!K201)-1)","v":-0.18225641786691149},{"$f":"((Quarterly!L205-Quarterly!L201))","v":-31.768000000000001},{"$f":"((Quarterly!M205/Quarterly!M201)-1)","v":2.3101848372469869E-2},{"$f":"((Quarterly!N205/Quarterly!N201)-1)","v":0.11370181682989888},{"$f":"((Quarterly!O205/Quarterly!O201)-1)","v":-0.14219314415237605},{"$f":"((Quarterly!P205/Quarterly!P201)-1)","v":2.0074372236037474E-2},{"$f":"((Quarterly!Q205/Quarterly!Q201)-1)","v":0.22601211893305528},null,null,null,null,null,{"$f":"((Quarterly!W205/Quarterly!W201)-1)","v":6.3694267515923553E-3},{"$f":"((Quarterly!X205/Quarterly!X201)-1)","v":3.7297969332781289E-3},{"$f":"((Quarterly!Y205/Quarterly!Y201)-1)","v":0.14718982042221573},{"$f":"Quarterly!Z205-Quarterly!Z201","v":0.16999999999999998},{"$f":"((Quarterly!AA205/Quarterly!AA201)-1)","v":-8.778930963121101E-2},{"$f":"((Quarterly!AB205/Quarterly!AB201)-1)","v":-9.1728447566376992E-2},{"$f":"Quarterly!AC205-Quarterly!AC201","v":-2.3000000000000007},{"$f":"Quarterly!AD205-Quarterly!AD201","v":-11.8},{"$f":"(Quarterly!AE205-Quarterly!AE201)*100","v":28.000000000000004},{"$f":"(Quarterly!AF205-Quarterly!AF201)*100","v":17},{"$f":"(Quarterly!AG205-Quarterly!AG201)*100","v":14.000000000000002},{"$f":"((Quarterly!AH205/Quarterly!AH201)-1)","v":0.20703639514731376},{"$f":"((Quarterly!AI205/Quarterly!AI201)-1)","v":0.17198105220765503},{"$f":"((Quarterly!AJ205/Quarterly!AJ201)-1)","v":2.4390243902439046E-2},{"$f":"((Quarterly!AK205/Quarterly!AK201)-1)","v":3.0243902439024417E-2},{"$f":"((Quarterly!AL205/Quarterly!AL201)-1)","v":3.3170731707317103E-2},{"$f":"((Quarterly!AM205/Quarterly!AM201)-1)","v":2.6310935029143501E-2},{"$f":"((Quarterly!AN205/Quarterly!AN201)-1)","v":3.5397621961490433E-2},{"$f":"((Quarterly!AO205/Quarterly!AO201)-1)","v":4.6051549382908563E-2},{"$f":"(Quarterly!AP205-Quarterly!AP201)*100","v":-1.0000000000000009},{"$f":"Quarterly!AQ205-Quarterly!AQ201","v":-1.5333333333333314},{"$f":"Quarterly!AR205-Quarterly!AR201","v":1.6666666666666643},{"$f":"Quarterly!AS205-Quarterly!AS201","v":3.5},{"$f":"Quarterly!AT205-Quarterly!AT201","v":-0.46666666666666856},{"$f":"Quarterly!AU205-Quarterly!AU201","v":1.7000000000000099},{"$f":"Quarterly!AV205-Quarterly!AV201","v":-2.5},{"$f":"Quarterly!AW205-Quarterly!AW201","v":-3.8333333333333286},{"$f":"Quarterly!AX205-Quarterly!AX201","v":0.50000000000001421},{"$f":"Quarterly!AY205-Quarterly!AY201","v":-8.4999999999999929},{"$f":"Quarterly!AZ205-Quarterly!AZ201","v":-0.23333333333333428},{"$f":"Quarterly!BA205-Quarterly!BA201","v":-3.5666666666666629},{"$f":"Quarterly!BB205-Quarterly!BB201","v":-0.13333333333333997},{"$f":"((Quarterly!BC205/Quarterly!BC201)-1)","v":6.8331183588232758E-3},{"$f":"((Quarterly!BD205/Quarterly!BD201)-1)","v":6.5073898694217203E-2},{"$f":"((Quarterly!BE205/Quarterly!BE201)-1)","v":-2.0433369447453886E-2},{"$f":"((Quarterly!BF205/Quarterly!BF201)-1)","v":4.5539023356410802E-2},{"$f":"((Quarterly!BG205/Quarterly!BG201)-1)","v":2.6676707998769533E-2},{"$f":"((Quarterly!BH205/Quarterly!BH201)-1)","v":2.1468193934154556E-2},{"$f":"((Quarterly!BI205/Quarterly!BI201)-1)","v":1.8372031067483752E-2},{"$f":"((Quarterly!BJ205/Quarterly!BJ201)-1)","v":-0.19618717278623343},{"$f":"((Quarterly!BK205/Quarterly!BK201)-1)","v":0.70833333333333326},null,{"$f":"((Quarterly!BM205/Quarterly!BM201)-1)","v":3.2599371419721468E-2},{"$f":"((Quarterly!BN205/Quarterly!BN201)-1)","v":2.9911185742828472E-2},null,null,null,null,null,{"$f":"((Quarterly!BT205/Quarterly!BT201)-1)","v":7.1450624750226899E-2},{"$f":"Quarterly!BU205-Quarterly!BU201","v":0.31294000000000111},{"$f":"Quarterly!BV205-Quarterly!BV201","v":0.49454000000000065},{"$f":"((Quarterly!BW205/Quarterly!BW201)-1)","v":0.12803700656513928},{"$f":"((Quarterly!BX205/Quarterly!BX201)-1)","v":-0.24280399451732915},{"$f":"((Quarterly!BY205/Quarterly!BY201)-1)","v":-0.23287937743190668},{"$f":"((Quarterly!BZ205/Quarterly!BZ201)-1)","v":-4.5379605295375436E-2},{"$f":"((Quarterly!CA205/Quarterly!CA201)-1)","v":-3.4703824296721808E-2},{"$f":"((Quarterly!CB205/Quarterly!CB201)-1)","v":-0.12087485520554175},{"$f":"((Quarterly!CC205/Quarterly!CC201)-1)","v":-8.386891914089778E-2},{"$f":"((Quarterly!CD205/Quarterly!CD201)-1)","v":-5.8927519151443564E-2},{"$f":"((Quarterly!CE205/Quarterly!CE201)-1)","v":-0.28282493368700268},null,{"$f":"((Quarterly!CG205/Quarterly!CG201)-1)","v":2.7826086956521667E-2},{"$f":"((Quarterly!CH205/Quarterly!CH201)-1)","v":-0.23011664899257689},null,{"$f":"((Quarterly!CJ205/Quarterly!CJ201)-1)","v":-0.28282493368700268},{"$f":"((Quarterly!CK205/Quarterly!CK201)-1)","v":5.3075506660295702E-2},{"$f":"((Quarterly!CL205/Quarterly!CL201)-1)","v":-3.5773802910787689E-2},{"$f":"((Quarterly!CM205/Quarterly!CM201)-1)","v":-0.29674017257909879},{"$f":"((Quarterly!CN205/Quarterly!CN201)-1)","v":2.4364810585177477E-2},{"$f":"((Quarterly!CO205/Quarterly!CO201)-1)","v":5.7887146701939063E-2},{"$f":"((Quarterly!CP205/Quarterly!CP201)-1)","v":5.6280114212062138E-2},{"$f":"((Quarterly!CQ205/Quarterly!CQ201)-1)","v":1.002881446359094E-2},{"$f":"((Quarterly!CR205/Quarterly!CR201)-1)","v":7.0702227809885887E-2},{"$f":"Quarterly!CS205-Quarterly!CS201","v":1.7000000000000171},{"$f":"Quarterly!CT205-Quarterly!CT201","v":1.2999999999999972},null,null,null,null,null,{"$f":"((Quarterly!CZ205/Quarterly!CZ201)-1)","v":2.3489745693191066E-2},{"$f":"((Quarterly!DA205/Quarterly!DA201)-1)","v":2.1192971142995454E-2},null,null,null,null,null,{"$f":"((Quarterly!DG205/Quarterly!DG201)-1)","v":1.3840830449827202E-2},{"$f":"((Quarterly!DH205-Quarterly!DH201)*60)","v":-1.9999999999998863},{"$f":"Quarterly!DI205-Quarterly!DI201","v":-0.20000000000000284},{"$f":"(Quarterly!DJ205-Quarterly!DJ201)*100","v":10.000000000000142},{"$f":"(Quarterly!DK205-Quarterly!DK201)*100","v":3.3333333333333215},{"$f":"((Quarterly!DL205/Quarterly!DL201)-1)","v":-2.2720851384441576E-2},null,null,null,{"$f":"((Quarterly!DP205/Quarterly!DP201)-1)","v":9.8745565592657236E-3},null,null,null,null,{"$f":"Quarterly!DU205-Quarterly!DU201","v":0.59999999999999964},{"$f":"((Quarterly!DV205/Quarterly!DV201)-1)","v":-7.0455070455071045E-3},{"$f":"((Quarterly!DW205/Quarterly!DW201)-1)","v":-5.8124957261060928E-3},{"$f":"((Quarterly!DX205/Quarterly!DX201)-1)","v":-7.126436781609069E-3},{"$f":"((Quarterly!DY205/Quarterly!DY201)-1)","v":-5.8220127529802213E-3},{"$f":"((Quarterly!DZ205/Quarterly!DZ201)-1)","v":-7.5314167670855747E-3},{"$f":"((Quarterly!EA205/Quarterly!EA201)-1)","v":-2.4010342916950256E-3},{"$f":"((Quarterly!EB205/Quarterly!EB201)-1)","v":-1.9448019448019327E-2},{"$f":"((Quarterly!EC205/Quarterly!EC201)-1)","v":-2.8313836524849201E-3},null,null,null,null,null,{"$f":"((Quarterly!EI205/Quarterly!EI201)-1)","v":1.2234123218525461E-2},{"$f":"((Quarterly!EJ205/Quarterly!EJ201)-1)","v":2.3306479774880096E-2},{"$f":"((Quarterly!EK205/Quarterly!EK201)-1)","v":2.6271234272990274E-2},null,null,null,null,null,{"$f":"((Quarterly!EQ205/Quarterly!EQ201)-1)","v":4.1791641671665491E-2},{"$f":"((Quarterly!ER205/Quarterly!ER201)-1)","v":2.2478991596638576E-2},{"$f":"((Quarterly!ES205/Quarterly!ES201)-1)","v":1.9047619047619202E-2},null,null,null,null,null,{"$f":"(Quarterly!EY205-Quarterly!EY201)*100","v":-7.3333333333332362},{"$f":"(Quarterly!EZ205-Quarterly!EZ201)*100","v":-17.333333333333378},{"$f":"(Quarterly!FA205-Quarterly!FA201)*100","v":7.333333333333325},{"$f":"(Quarterly!FB205-Quarterly!FB201)*100","v":3.6666666666666181},"--",{"$f":"(Quarterly!FD205-Quarterly!FD201)*100","v":-0.99999999999997868},{"$f":"(Quarterly!FE205-Quarterly!FE201)*100","v":-60.333333333333258},{"$f":"(Quarterly!FF205-Quarterly!FF201)*100","v":-56.666666666666643},{"$f":"(Quarterly!FG205-Quarterly!FG201)*100","v":-54.999999999999986},{"$f":"(Quarterly!FH205-Quarterly!FH201)*100","v":-33.999999999999986},{"$f":"(Quarterly!FI205-Quarterly!FI201)*100","v":-16.666666666666607},null,null,null,null,null,null,{"$f":"((Quarterly!FP205/Quarterly!FP201)-1)","v":-6.8050063917709736E-2},{"$f":"((Quarterly!FQ205/Quarterly!FQ201)-1)","v":-5.1273681435261231E-2},{"$f":"((Quarterly!FR205/Quarterly!FR201)-1)","v":1.3700590343213026E-3},{"$f":"((Quarterly!FS205/Quarterly!FS201)-1)","v":7.9789600397770277E-2},{"$f":"((Quarterly!FT205/Quarterly!FT201)-1)","v":-4.8796716457284561E-2},{"$f":"((Quarterly!FU205/Quarterly!FU201)-1)","v":-5.5924007007129073E-2},{"$f":"((Quarterly!FV205/Quarterly!FV201)-1)","v":5.001880254097113E-2},{"$f":"((Quarterly!FW205/Quarterly!FW201)-1)","v":9.5402827567068194E-2},{"$f":"((Quarterly!FX205/Quarterly!FX201)-1)","v":6.7887946000749988E-2},null,null,null,null,null,{"$f":"((Quarterly!GD205/Quarterly!GD201)-1)","v":7.1783466616192726E-2},{"$f":"((Quarterly!GE205/Quarterly!GE201)-1)","v":7.6606339174566607E-2},{"$f":"((Quarterly!GF205/Quarterly!GF201)-1)","v":-8.8700659895830647E-3},{"$f":"((Quarterly!GG205/Quarterly!GG201)-1)","v":-8.2173019858481355E-3},{"$f":"((Quarterly!GH205/Quarterly!GH201)-1)","v":{"$error":"#DIV/0!"}},"--",{"$f":"((Quarterly!GJ205/Quarterly!GJ201)-1)","v":1.6007379673340871E-2},{"$f":"((Quarterly!GK205/Quarterly!GK201)-1)","v":9.507557289127222E-3},"--"]
["07'Q4",{"$f":"((Quarterly!B206/Quarterly!B202)-1)","v":4.4002823756235543E-2},{"$f":"((Quarterly!C206/Quarterly!C202)-1)","v":1.867604181035043E-2},{"$f":"((Quarterly!D206/Quarterly!D202)-1)","v":2.0202630791465115E-2},{"$f":"((Quarterly!E206/Quarterly!E202)-1)","v":1.4425479535674857E-2},{"$f":"((Quarterly!F206/Quarterly!F202)-1)","v":4.130617639990386E-2},{"$f":"((Quarterly!G206/Quarterly!G202)-1)","v":6.2583817612882342E-4},{"$f":"((Quarterly!H206/Quarterly!H202)-1)","v":1.4275235855021773E-2},{"$f":"((Quarterly!I206/Quarterly!I202)-1)","v":7.0989084046408912E-2},{"$f":"((Quarterly!J206/Quarterly!J202)-1)","v":3.8372219485512726E-2},{"$f":"((Quarterly!K206/Quarterly!K202)-1)","v":-0.21344101606115262},{"$f":"((Quarterly!L206-Quarterly!L202))","v":-18.467000000000002},{"$f":"((Quarterly!M206/Quarterly!M202)-1)","v":7.7040049280818756E-3},{"$f":"((Quarterly!N206/Quarterly!N202)-1)","v":9.8964918356647003E-2},{"$f":"((Quarterly!O206/Quarterly!O202)-1)","v":-0.18004822920329633},{"$f":"((Quarterly!P206/Quarterly!P202)-1)","v":1.7557461964601284E-2},{"$f":"((Quarterly!Q206/Quarterly!Q202)-1)","v":0.65473921377049527},null,null,null,null,null,{"$f":"((Quarterly!W206/Quarterly!W202)-1)","v":3.8265306122449161E-3},{"$f":"((Quarterly!X206/Quarterly!X202)-1)","v":8.3194675540765317E-3},{"$f":"((Quarterly!Y206/Quarterly!Y202)-1)","v":0.19130236940365197},{"$f":"Quarterly!Z206-Quarterly!Z202","v":0.22000000000000003},{"$f":"((Quarterly!AA206/Quarterly!AA202)-1)","v":-3.3094494187266066E-2},{"$f":"((Quarterly!AB206/Quarterly!AB202)-1)","v":-8.1186683832359274E-2},{"$f":"Quarterly!AC206-Quarterly!AC202","v":2},{"$f":"Quarterly!AD206-Quarterly!AD202","v":5.3},{"$f":"(Quarterly!AE206-Quarterly!AE202)*100","v":56.000000000000007},{"$f":"(Quarterly!AF206-Quarterly!AF202)*100","v":22.000000000000004},{"$f":"(Quarterly!AG206-Quarterly!AG202)*100","v":19},{"$f":"((Quarterly!AH206/Quarterly!AH202)-1)","v":0.1876430965258653},{"$f":"((Quarterly!AI206/Quarterly!AI202)-1)","v":0.13851936638391793},{"$f":"((Quarterly!AJ206/Quarterly!AJ202)-1)","v":2.4177949709864643E-2},{"$f":"((Quarterly!AK206/Quarterly!AK202)-1)","v":3.0977734753146136E-2},{"$f":"((Quarterly!AL206/Quarterly!AL202)-1)","v":3.2913843175217838E-2},{"$f":"((Quarterly!AM206/Quarterly!AM202)-1)","v":2.5462066660619564E-2},{"$f":"((Quarterly!AN206/Quarterly!AN202)-1)","v":3.216396487538864E-2},{"$f":"((Quarterly!AO206/Quarterly!AO202)-1)","v":5.017633381726605E-2},{"$f":"(Quarterly!AP206-Quarterly!AP202)*100","v":-3.3333333333333215},{"$f":"Quarterly!AQ206-Quarterly!AQ202","v":-0.8333333333333357},{"$f":"Quarterly!AR206-Quarterly!AR202","v":-1.8333333333333357},{"$f":"Quarterly!AS206-Quarterly!AS202","v":0.5},{"$f":"Quarterly!AT206-Quarterly!AT202","v":-0.30000000000001137},{"$f":"Quarterly!AU206-Quarterly!AU202","v":-0.3333333333333357},{"$f":"Quarterly!AV206-Quarterly!AV202","v":-8.6666666666666714},{"$f":"Quarterly!AW206-Quarterly!AW202","v":-2.3333333333333357},{"$f":"Quarterly!AX206-Quarterly!AX202","v":-0.3333333333333286},{"$f":"Quarterly!AY206-Quarterly!AY202","v":16.833333333333336},{"$f":"Quarterly!AZ206-Quarterly!AZ202","v":-1.1666666666666643},{"$f":"Quarterly!BA206-Quarterly!BA202","v":-3.3333333333338544E-2},{"$f":"Quarterly!BB206-Quarterly!BB202","v":-2.7333333333333343},{"$f":"((Quarterly!BC206/Quarterly!BC202)-1)","v":-1.8107103517306378E-4},{"$f":"((Quarterly!BD206/Quarterly!BD202)-1)","v":8.0820107154748966E-2},{"$f":"((Quarterly!BE206/Quarterly!BE202)-1)","v":-4.5615998966697546E-2},{"$f":"((Quarterly!BF206/Quarterly!BF202)-1)","v":3.8900403854783328E-2},{"$f":"((Quarterly!BG206/Quarterly!BG202)-1)","v":2.3511450381679344E-2},{"$f":"((Quarterly!BH206/Quarterly!BH202)-1)","v":-1.1990528490100072E-3},{"$f":"((Quarterly!BI206/Quarterly!BI202)-1)","v":1.5027752128339511E-2},{"$f":"((Quarterly!BJ206/Quarterly!BJ202)-1)","v":-9.1891490169620726E-2},{"$f":"((Quarterly!BK206/Quarterly!BK202)-1)","v":0.73333333333333339},null,{"$f":"((Quarterly!BM206/Quarterly!BM202)-1)","v":4.3515153307772891E-2},{"$f":"((Quarterly!BN206/Quarterly!BN202)-1)","v":4.3147030777324735E-2},null,null,null,null,null,{"$f":"((Quarterly!BT206/Quarterly!BT202)-1)","v":7.5429422968316784E-2},{"$f":"Quarterly!BU206-Quarterly!BU202","v":0.36686000000000085},{"$f":"Quarterly!BV206-Quarterly!BV202","v":0.49260000000000304},{"$f":"((Quarterly!BW206/Quarterly!BW202)-1)","v":0.12485463049927881},{"$f":"((Quarterly!BX206/Quarterly!BX202)-1)","v":-0.25732484076433126},{"$f":"((Quarterly!BY206/Quarterly!BY202)-1)","v":-0.24836601307189543},{"$f":"((Quarterly!BZ206/Quarterly!BZ202)-1)","v":-7.6528774032950109E-2},{"$f":"((Quarterly!CA206/Quarterly!CA202)-1)","v":-2.3174687366123603E-2},{"$f":"((Quarterly!CB206/Quarterly!CB202)-1)","v":0.37990347126428969},{"$f":"((Quarterly!CC206/Quarterly!CC202)-1)","v":0.28284989346209644},{"$f":"((Quarterly!CD206/Quarterly!CD202)-1)","v":-0.52585075671419834},{"$f":"((Quarterly!CE206/Quarterly!CE202)-1)","v":-0.60808973487423523},null,{"$f":"((Quarterly!CG206/Quarterly!CG202)-1)","v":-0.17805939580133123},{"$f":"((Quarterly!CH206/Quarterly!CH202)-1)","v":-0.30771774521774531},null,{"$f":"((Quarterly!CJ206/Quarterly!CJ202)-1)","v":-0.32460910944935406},{"$f":"((Quarterly!CK206/Quarterly!CK202)-1)","v":5.0820562794828827E-2},{"$f":"((Quarterly!CL206/Quarterly!CL202)-1)","v":-7.012035583464149E-2},{"$f":"((Quarterly!CM206/Quarterly!CM202)-1)","v":-0.32924553452412686},{"$f":"((Quarterly!CN206/Quarterly!CN202)-1)","v":1.199723858272117E-2},{"$f":"((Quarterly!CO206/Quarterly!CO202)-1)","v":5.1973313457797987E-2},{"$f":"((Quarterly!CP206/Quarterly!CP202)-1)","v":6.3135750275284952E-2},{"$f":"((Quarterly!CQ206/Quarterly!CQ202)-1)","v":9.8626077316890104E-3},{"$f":"((Quarterly!CR206/Quarterly!CR202)-1)","v":8.2171940770205287E-2},{"$f":"Quarterly!CS206-Quarterly!CS202","v":-14.966666666666654},{"$f":"Quarterly!CT206-Quarterly!CT202","v":-15.599999999999994},null,null,null,null,null,{"$f":"((Quarterly!CZ206/Quarterly!CZ202)-1)","v":4.0311367380560181E-2},{"$f":"((Quarterly!DA206/Quarterly!DA202)-1)","v":2.3103448275862082E-2},null,null,null,null,null,{"$f":"((Quarterly!DG206/Quarterly!DG202)-1)","v":1.2218045112782017E-2},{"$f":"((Quarterly!DH206-Quarterly!DH202)*60)","v":-4.000000000000199},{"$f":"Quarterly!DI206-Quarterly!DI202","v":-0.36666666666666003},{"$f":"(Quarterly!DJ206-Quarterly!DJ202)*100","v":46.666666666666856},{"$f":"(Quarterly!DK206-Quarterly!DK202)*100","v":36.666666666666629},{"$f":"((Quarterly!DL206/Quarterly!DL202)-1)","v":-2.0507464812133613E-2},null,null,null,{"$f":"((Quarterly!DP206/Quarterly!DP202)-1)","v":8.9532568018730885E-3},null,null,null,null,{"$f":"Quarterly!DU206-Quarterly!DU202","v":0.56666666666666554},{"$f":"((Quarterly!DV206/Quarterly!DV202)-1)","v":-8.9883831901800271E-2},{"$f":"((Quarterly!DW206/Quarterly!DW202)-1)","v":-9.5953802562819934E-2},{"$f":"((Quarterly!DX206/Quarterly!DX202)-1)","v":-0.10241604075541966},{"$f":"((Quarterly!DY206/Quarterly!DY202)-1)","v":-9.4397288063207463E-2},{"$f":"((Quarterly!DZ206/Quarterly!DZ202)-1)","v":-0.10485443591507437},{"$f":"((Quarterly!EA206/Quarterly!EA202)-1)","v":-0.10154877343997304},{"$f":"((Quarterly!EB206/Quarterly!EB202)-1)","v":-0.11252104802316953},{"$f":"((Quarterly!EC206/Quarterly!EC202)-1)","v":-8.0868838763575757E-2},null,null,null,null,null,{"$f":"((Quarterly!EI206/Quarterly!EI202)-1)","v":3.6744599266231859E-3},{"$f":"((Quarterly!EJ206/Quarterly!EJ202)-1)","v":1.3440167303730544E-2},{"$f":"((Quarterly!EK206/Quarterly!EK202)-1)","v":1.6582034741516871E-2},null,null,null,null,null,{"$f":"((Quarterly!EQ206/Quarterly!EQ202)-1)","v":8.1031681559707414E-2},{"$f":"((Quarterly!ER206/Quarterly!ER202)-1)","v":2.3620401337792751E-2},{"$f":"((Quarterly!ES206/Quarterly!ES202)-1)","v":1.8038331454340417E-2},null,null,null,null,null,{"$f":"(Quarterly!EY206-Quarterly!EY202)*100","v":-72.666666666666657},{"$f":"(Quarterly!EZ206-Quarterly!EZ202)*100","v":-75},{"$f":"(Quarterly!FA206-Quarterly!FA202)*100","v":14.333333333333442},{"$f":"(Quarterly!FB206-Quarterly!FB202)*100","v":23.000000000000043},"--",{"$f":"(Quarterly!FD206-Quarterly!FD202)*100","v":-1.6666666666667496},{"$f":"(Quarterly!FE206-Quarterly!FE202)*100","v":-151.33333333333331},{"$f":"(Quarterly!FF206-Quarterly!FF202)*100","v":-136.66666666666677},{"$f":"(Quarterly!FG206-Quarterly!FG202)*100","v":-125.99999999999997},{"$f":"(Quarterly!FH206-Quarterly!FH202)*100","v":-81.333333333333385},{"$f":"(Quarterly!FI206-Quarterly!FI202)*100","v":-37.000000000000014},null,null,null,null,null,null,{"$f":"((Quarterly!FP206/Quarterly!FP202)-1)","v":-0.13837195692883897},{"$f":"((Quarterly!FQ206/Quarterly!FQ202)-1)","v":-5.4897205533814608E-2},{"$f":"((Quarterly!FR206/Quarterly!FR202)-1)","v":-3.2002890978859444E-3},{"$f":"((Quarterly!FS206/Quarterly!FS202)-1)","v":0.12309480754327051},{"$f":"((Quarterly!FT206/Quarterly!FT202)-1)","v":-7.5569977844743397E-2},{"$f":"((Quarterly!FU206/Quarterly!FU202)-1)","v":-0.10170062684734338},{"$f":"((Quarterly!FV206/Quarterly!FV202)-1)","v":0.10872740600602038},{"$f":"((Quarterly!FW206/Quarterly!FW202)-1)","v":7.0377702776694528E-2},{"$f":"((Quarterly!FX206/Quarterly!FX202)-1)","v":0.12240262150865178},null,null,null,null,null,{"$f":"((Quarterly!GD206/Quarterly!GD202)-1)","v":0.51181495451519865},{"$f":"((Quarterly!GE206/Quarterly!GE202)-1)","v":0.48391420911528149},{"$f":"((Quarterly!GF206/Quarterly!GF202)-1)","v":0.37902507416903553},{"$f":"((Quarterly!GG206/Quarterly!GG202)-1)","v":0.2786030753192601},{"$f":"((Quarterly!GH206/Quarterly!GH202)-1)","v":{"$error":"#DIV/0!"}},"--",{"$f":"((Quarterly!GJ206/Quarterly!GJ202)-1)","v":1.7898939832025285E-2},{"$f":"((Quarterly!GK206/Quarterly!GK202)-1)","v":-8.0104752368482801E-3},"--"]
["08'Q1",{"$f":"((Quarterly!B207/Quarterly!B203)-1)","v":3.0577677892559274E-2},{"$f":"((Quarterly!C207/Quarterly!C203)-1)","v":1.1097905462860158E-2},{"$f":"((Quarterly!D207/Quarterly!D203)-1)","v":1.4016744981439677E-2},{"$f":"((Quarterly!E207/Quarterly!E203)-1)","v":7.0399039103163918E-3},{"$f":"((Quarterly!F207/Quarterly!F203)-1)","v":4.1591158907938741E-4},{"$f":"((Quarterly!G207/Quarterly!G203)-1)","v":-6.8701949529347273E-3},{"$f":"((Quarterly!H207/Quarterly!H203)-1)","v":1.3084065118385668E-2},{"$f":"((Quarterly!I207/Quarterly!I203)-1)","v":5.3202485600898797E-2},{"$f":"((Quarterly!J207/Quarterly!J203)-1)","v":2.5848431798527916E-2},{"$f":"((Quarterly!K207/Quarterly!K203)-1)","v":-0.24065392306026545},{"$f":"((Quarterly!L207-Quarterly!L203))","v":-39.826999999999998},{"$f":"((Quarterly!M207/Quarterly!M203)-1)","v":1.2502734575718932E-3},{"$f":"((Quarterly!N207/Quarterly!N203)-1)","v":9.464555314041756E-2},{"$f":"((Quarterly!O207/Quarterly!O203)-1)","v":-0.1910694112810033},{"$f":"((Quarterly!P207/Quarterly!P203)-1)","v":2.4020169671673752E-2},{"$f":"((Quarterly!Q207/Quarterly!Q203)-1)","v":0.91286780523391764},null,null,null,null,null,{"$f":"((Quarterly!W207/Quarterly!W203)-1)","v":-1.015228426395931E-2},{"$f":"((Quarterly!X207/Quarterly!X203)-1)","v":3.3195020746887849E-3},{"$f":"((Quarterly!Y207/Quarterly!Y203)-1)","v":0.20690463381048629},{"$f":"Quarterly!Z207-Quarterly!Z203","v":0.33},{"$f":"((Quarterly!AA207/Quarterly!AA203)-1)","v":-5.2974790921080261E-2},{"$f":"((Quarterly!AB207/Quarterly!AB203)-1)","v":-2.7090402911546407E-2},{"$f":"Quarterly!AC207-Quarterly!AC203","v":-9.6999999999999993},{"$f":"Quarterly!AD207-Quarterly!AD203","v":-18.3},{"$f":"(Quarterly!AE207-Quarterly!AE203)*100","v":82},{"$f":"(Quarterly!AF207-Quarterly!AF203)*100","v":33},{"$f":"(Quarterly!AG207-Quarterly!AG203)*100","v":48},{"$f":"((Quarterly!AH207/Quarterly!AH203)-1)","v":0.13532507642368663},{"$f":"((Quarterly!AI207/Quarterly!AI203)-1)","v":0.1114679925124793},{"$f":"((Quarterly!AJ207/Quarterly!AJ203)-1)","v":3.2007759456838203E-2},{"$f":"((Quarterly!AK207/Quarterly!AK203)-1)","v":3.1761308950914335E-2},{"$f":"((Quarterly!AL207/Quarterly!AL203)-1)","v":3.163950143815919E-2},{"$f":"((Quarterly!AM207/Quarterly!AM203)-1)","v":1.18508816406524E-2},{"$f":"((Quarterly!AN207/Quarterly!AN203)-1)","v":1.3574255278353098E-2},{"$f":"((Quarterly!AO207/Quarterly!AO203)-1)","v":6.1564655361939113E-2},{"$f":"(Quarterly!AP207-Quarterly!AP203)*100","v":-1.6666666666666829},{"$f":"Quarterly!AQ207-Quarterly!AQ203","v":-1.9666666666666828},{"$f":"Quarterly!AR207-Quarterly!AR203","v":-1.8333333333333357},{"$f":"Quarterly!AS207-Quarterly!AS203","v":-1.1666666666666643},{"$f":"Quarterly!AT207-Quarterly!AT203","v":-3.3333333333333286},{"$f":"Quarterly!AU207-Quarterly!AU203","v":3},{"$f":"Quarterly!AV207-Quarterly!AV203","v":-9.5},{"$f":"Quarterly!AW207-Quarterly!AW203","v":2},{"$f":"Quarterly!AX207-Quarterly!AX203","v":-5.8333333333333357},{"$f":"Quarterly!AY207-Quarterly!AY203","v":19.166666666666664},{"$f":"Quarterly!AZ207-Quarterly!AZ203","v":-2.9000000000000057},{"$f":"Quarterly!BA207-Quarterly!BA203","v":0.3333333333333357},{"$f":"Quarterly!BB207-Quarterly!BB203","v":-7.0999999999999943},{"$f":"((Quarterly!BC207/Quarterly!BC203)-1)","v":3.0955709523297514E-2},{"$f":"((Quarterly!BD207/Quarterly!BD203)-1)","v":9.563334896295772E-2},{"$f":"((Quarterly!BE207/Quarterly!BE203)-1)","v":-7.3090268510115908E-2},{"$f":"((Quarterly!BF207/Quarterly!BF203)-1)","v":2.425367298207548E-2},{"$f":"((Quarterly!BG207/Quarterly!BG203)-1)","v":1.2611759755969398E-2},{"$f":"((Quarterly!BH207/Quarterly!BH203)-1)","v":-1.6483625603241125E-2},{"$f":"((Quarterly!BI207/Quarterly!BI203)-1)","v":1.1499266426107324E-2},{"$f":"((Quarterly!BJ207/Quarterly!BJ203)-1)","v":-0.1677678904459956},{"$f":"((Quarterly!BK207/Quarterly!BK203)-1)","v":1.064516129032258},null,{"$f":"((Quarterly!BM207/Quarterly!BM203)-1)","v":2.2507269247066697E-2},{"$f":"((Quarterly!BN207/Quarterly!BN203)-1)","v":2.1464481273345548E-2},null,null,null,null,null,{"$f":"((Quarterly!BT207/Quarterly!BT203)-1)","v":8.4127055385843974E-2},{"$f":"Quarterly!BU207-Quarterly!BU203","v":0.1866500000000002},{"$f":"Quarterly!BV207-Quarterly!BV203","v":0.24586000000000041},{"$f":"((Quarterly!BW207/Quarterly!BW203)-1)","v":0.12310446217091831},{"$f":"((Quarterly!BX207/Quarterly!BX203)-1)","v":-0.27189781021897808},{"$f":"((Quarterly!BY207/Quarterly!BY203)-1)","v":-0.36203319502074693},{"$f":"((Quarterly!BZ207/Quarterly!BZ203)-1)","v":-0.12403176782037462},{"$f":"((Quarterly!CA207/Quarterly!CA203)-1)","v":-7.6872964169381164E-2},{"$f":"((Quarterly!CB207/Quarterly!CB203)-1)","v":0.31827758786116012},{"$f":"((Quarterly!CC207/Quarterly!CC203)-1)","v":0.25354710400346114},{"$f":"((Quarterly!CD207/Quarterly!CD203)-1)","v":-0.11862323294406885},{"$f":"((Quarterly!CE207/Quarterly!CE203)-1)","v":-0.31230407523510972},null,{"$f":"((Quarterly!CG207/Quarterly!CG203)-1)","v":3.7336024217961672E-2},{"$f":"((Quarterly!CH207/Quarterly!CH203)-1)","v":-0.26721600941730428},null,{"$f":"((Quarterly!CJ207/Quarterly!CJ203)-1)","v":-0.31230407523510972},{"$f":"((Quarterly!CK207/Quarterly!CK203)-1)","v":4.6265984294153295E-2},{"$f":"((Quarterly!CL207/Quarterly!CL203)-1)","v":0.17401096748922829},{"$f":"((Quarterly!CM207/Quarterly!CM203)-1)","v":-0.39356772962660125},{"$f":"((Quarterly!CN207/Quarterly!CN203)-1)","v":1.2712977122820046E-2},{"$f":"((Quarterly!CO207/Quarterly!CO203)-1)","v":5.2862369525449537E-2},{"$f":"((Quarterly!CP207/Quarterly!CP203)-1)","v":6.6113904070335128E-2},{"$f":"((Quarterly!CQ207/Quarterly!CQ203)-1)","v":9.6709098102054636E-3},{"$f":"((Quarterly!CR207/Quarterly!CR203)-1)","v":8.646701856211747E-2},{"$f":"Quarterly!CS207-Quarterly!CS203","v":-19.300000000000011},{"$f":"Quarterly!CT207-Quarterly!CT203","v":-33.333333333333343},null,null,null,null,null,{"$f":"((Quarterly!CZ207/Quarterly!CZ203)-1)","v":4.1370354237124873E-2},{"$f":"((Quarterly!DA207/Quarterly!DA203)-1)","v":2.3880934955265998E-2},null,null,null,null,null,{"$f":"((Quarterly!DG207/Quarterly!DG203)-1)","v":6.8664169787764351E-3},{"$f":"((Quarterly!DH207-Quarterly!DH203)*60)","v":-4.000000000000199},{"$f":"Quarterly!DI207-Quarterly!DI203","v":-0.20000000000000284},{"$f":"(Quarterly!DJ207-Quarterly!DJ203)*100","v":89.999999999999858},{"$f":"(Quarterly!DK207-Quarterly!DK203)*100","v":50},{"$f":"((Quarterly!DL207/Quarterly!DL203)-1)","v":-2.1322215604526407E-2},null,null,null,{"$f":"((Quarterly!DP207/Quarterly!DP203)-1)","v":5.2266242982326183E-3},null,null,null,null,{"$f":"Quarterly!DU207-Quarterly!DU203","v":0.16666666666666607},{"$f":"((Quarterly!DV207/Quarterly!DV203)-1)","v":-2.5839318906762609E-2},{"$f":"((Quarterly!DW207/Quarterly!DW203)-1)","v":-2.6573328338640012E-2},{"$f":"((Quarterly!DX207/Quarterly!DX203)-1)","v":-2.2226645435243997E-2},{"$f":"((Quarterly!DY207/Quarterly!DY203)-1)","v":-1.9853258523953476E-2},{"$f":"((Quarterly!DZ207/Quarterly!DZ203)-1)","v":-2.2937955417582923E-2},{"$f":"((Quarterly!EA207/Quarterly!EA203)-1)","v":-1.9197742885181501E-2},{"$f":"((Quarterly!EB207/Quarterly!EB203)-1)","v":-3.1789809841776706E-2},{"$f":"((Quarterly!EC207/Quarterly!EC203)-1)","v":-3.6998726925525194E-2},null,null,null,null,null,{"$f":"((Quarterly!EI207/Quarterly!EI203)-1)","v":-1.4910561408864487E-2},{"$f":"((Quarterly!EJ207/Quarterly!EJ203)-1)","v":-1.6839436751993064E-3},{"$f":"((Quarterly!EK207/Quarterly!EK203)-1)","v":6.8724356583116375E-3},null,null,null,null,null,{"$f":"((Quarterly!EQ207/Quarterly!EQ203)-1)","v":0.10297940411917605},{"$f":"((Quarterly!ER207/Quarterly!ER203)-1)","v":2.4896265560165887E-2},{"$f":"((Quarterly!ES207/Quarterly!ES203)-1)","v":1.8132975151108122E-2},null,null,null,null,null,{"$f":"(Quarterly!EY207-Quarterly!EY203)*100","v":-203.66666666666663},{"$f":"(Quarterly!EZ207-Quarterly!EZ203)*100","v":-208.00000000000006},{"$f":"(Quarterly!FA207-Quarterly!FA203)*100","v":9.3333333333332824},{"$f":"(Quarterly!FB207-Quarterly!FB203)*100","v":45.333333333333314},"--",{"$f":"(Quarterly!FD207-Quarterly!FD203)*100","v":-34.000000000000071},{"$f":"(Quarterly!FE207-Quarterly!FE203)*100","v":-294.00000000000006},{"$f":"(Quarterly!FF207-Quarterly!FF203)*100","v":-290.99999999999994},{"$f":"(Quarterly!FG207-Quarterly!FG203)*100","v":-274.33333333333331},{"$f":"(Quarterly!FH207-Quarterly!FH203)*100","v":-190.00000000000009},{"$f":"(Quarterly!FI207-Quarterly!FI203)*100","v":-101.66666666666661},null,null,null,null,null,null,{"$f":"((Quarterly!FP207/Quarterly!FP203)-1)","v":-0.14339354288152451},{"$f":"((Quarterly!FQ207/Quarterly!FQ203)-1)","v":-7.7234078205089762E-2},{"$f":"((Quarterly!FR207/Quarterly!FR203)-1)","v":-1.993019893907233E-2},{"$f":"((Quarterly!FS207/Quarterly!FS203)-1)","v":0.1446628856278136},{"$f":"((Quarterly!FT207/Quarterly!FT203)-1)","v":-9.1147941638714314E-2},{"$f":"((Quarterly!FU207/Quarterly!FU203)-1)","v":-0.12071611149182448},{"$f":"((Quarterly!FV207/Quarterly!FV203)-1)","v":0.11567488083839272},{"$f":"((Quarterly!FW207/Quarterly!FW203)-1)","v":1.8579181401211731E-2},{"$f":"((Quarterly!FX207/Quarterly!FX203)-1)","v":7.6566311069501625E-2},null,null,null,null,null,{"$f":"((Quarterly!GD207/Quarterly!GD203)-1)","v":0.68507368541774194},{"$f":"((Quarterly!GE207/Quarterly!GE203)-1)","v":0.67816954238559624},{"$f":"((Quarterly!GF207/Quarterly!GF203)-1)","v":0.35062887473157778},{"$f":"((Quarterly!GG207/Quarterly!GG203)-1)","v":0.3829842931937173},{"$f":"((Quarterly!GH207/Quarterly!GH203)-1)","v":{"$error":"#DIV/0!"}},"--",{"$f":"((Quarterly!GJ207/Quarterly!GJ203)-1)","v":0.21887475629003794},{"$f":"((Quarterly!GK207/Quarterly!GK203)-1)","v":-8.4442753898821277E-3},"--"]
["08'Q2",{"$f":"((Quarterly!B208/Quarterly!B204)-1)","v":2.7087264019301172E-2},{"$f":"((Quarterly!C208/Quarterly!C204)-1)","v":8.4032497804384931E-3},{"$f":"((Quarterly!D208/Quarterly!D204)-1)","v":1.4024284339193116E-2},{"$f":"((Quarterly!E208/Quarterly!E204)-1)","v":5.3202455293310802E-3},{"$f":"((Quarterly!F208/Quarterly!F204)-1)","v":-1.6955605013470931E-2},{"$f":"((Quarterly!G208/Quarterly!G204)-1)","v":2.0711028995441527E-3},{"$f":"((Quarterly!H208/Quarterly!H204)-1)","v":1.0619673233106308E-2},{"$f":"((Quarterly!I208/Quarterly!I204)-1)","v":2.6962492271617178E-2},{"$f":"((Quarterly!J208/Quarterly!J204)-1)","v":3.4794094837446998E-3},{"$f":"((Quarterly!K208/Quarterly!K204)-1)","v":-0.24367539633597046},{"$f":"((Quarterly!L208-Quarterly!L204))","v":-75.834000000000003},{"$f":"((Quarterly!M208/Quarterly!M204)-1)","v":-1.2230646381157007E-2},{"$f":"((Quarterly!N208/Quarterly!N204)-1)","v":0.10792182222522073},{"$f":"((Quarterly!O208/Quarterly!O204)-1)","v":-0.26978407244021396},{"$f":"((Quarterly!P208/Quarterly!P204)-1)","v":2.3373307639332763E-2},{"$f":"((Quarterly!Q208/Quarterly!Q204)-1)","v":2.0981772135819821},null,null,null,null,null,{"$f":"((Quarterly!W208/Quarterly!W204)-1)","v":-3.5308953341740223E-2},{"$f":"((Quarterly!X208/Quarterly!X204)-1)","v":-1.5257731958762677E-2},{"$f":"((Quarterly!Y208/Quarterly!Y204)-1)","v":0.19935843310978019},{"$f":"Quarterly!Z208-Quarterly!Z204","v":0.37},{"$f":"((Quarterly!AA208/Quarterly!AA204)-1)","v":-8.3535191973156508E-2},{"$f":"((Quarterly!AB208/Quarterly!AB204)-1)","v":-9.3275985790093774E-2},{"$f":"Quarterly!AC208-Quarterly!AC204","v":-18.2},{"$f":"Quarterly!AD208-Quarterly!AD204","v":3.0999999999999979},{"$f":"(Quarterly!AE208-Quarterly!AE204)*100","v":108},{"$f":"(Quarterly!AF208-Quarterly!AF204)*100","v":37},{"$f":"(Quarterly!AG208-Quarterly!AG204)*100","v":61.000000000000007},{"$f":"((Quarterly!AH208/Quarterly!AH204)-1)","v":9.0168094825784584E-2},{"$f":"((Quarterly!AI208/Quarterly!AI204)-1)","v":7.2314334413149606E-2},{"$f":"((Quarterly!AJ208/Quarterly!AJ204)-1)","v":2.5911708253358867E-2},{"$f":"((Quarterly!AK208/Quarterly!AK204)-1)","v":3.0534351145038219E-2},{"$f":"((Quarterly!AL208/Quarterly!AL204)-1)","v":3.1398667935299773E-2},{"$f":"((Quarterly!AM208/Quarterly!AM204)-1)","v":-1.4353160957492617E-2},{"$f":"((Quarterly!AN208/Quarterly!AN204)-1)","v":-2.1179600848483915E-2},{"$f":"((Quarterly!AO208/Quarterly!AO204)-1)","v":5.6965244104790536E-2},{"$f":"(Quarterly!AP208-Quarterly!AP204)*100","v":-2.0000000000000018},{"$f":"Quarterly!AQ208-Quarterly!AQ204","v":-3.4333333333333371},{"$f":"Quarterly!AR208-Quarterly!AR204","v":-5.1666666666666643},{"$f":"Quarterly!AS208-Quarterly!AS204","v":1.6666666666666643},{"$f":"Quarterly!AT208-Quarterly!AT204","v":-6.1666666666666643},{"$f":"Quarterly!AU208-Quarterly!AU204","v":1.1666666666666643},{"$f":"Quarterly!AV208-Quarterly!AV204","v":-8.8333333333333286},{"$f":"Quarterly!AW208-Quarterly!AW204","v":3},{"$f":"Quarterly!AX208-Quarterly!AX204","v":-9.6666666666666714},{"$f":"Quarterly!AY208-Quarterly!AY204","v":17},{"$f":"Quarterly!AZ208-Quarterly!AZ204","v":-7.8333333333333428},{"$f":"Quarterly!BA208-Quarterly!BA204","v":3.8000000000000043},{"$f":"Quarterly!BB208-Quarterly!BB204","v":-6.5666666666666629},{"$f":"((Quarterly!BC208/Quarterly!BC204)-1)","v":5.1586122072464491E-2},{"$f":"((Quarterly!BD208/Quarterly!BD204)-1)","v":7.3282382758010911E-2},{"$f":"((Quarterly!BE208/Quarterly!BE204)-1)","v":-4.8110749185667712E-2},{"$f":"((Quarterly!BF208/Quarterly!BF204)-1)","v":2.5868455927622547E-2},{"$f":"((Quarterly!BG208/Quarterly!BG204)-1)","v":1.6466627634660558E-2},{"$f":"((Quarterly!BH208/Quarterly!BH204)-1)","v":-1.6681070000200915E-2},{"$f":"((Quarterly!BI208/Quarterly!BI204)-1)","v":9.2523280534178021E-3},{"$f":"((Quarterly!BJ208/Quarterly!BJ204)-1)","v":-0.16022399608641869},{"$f":"((Quarterly!BK208/Quarterly!BK204)-1)","v":1.0277777777777777},null,{"$f":"((Quarterly!BM208/Quarterly!BM204)-1)","v":1.8175451739778303E-2},{"$f":"((Quarterly!BN208/Quarterly!BN204)-1)","v":1.6649745172347963E-2},null,null,null,null,null,{"$f":"((Quarterly!BT208/Quarterly!BT204)-1)","v":8.7929276394653755E-2},{"$f":"Quarterly!BU208-Quarterly!BU204","v":-0.28149999999999942},{"$f":"Quarterly!BV208-Quarterly!BV204","v":-0.37782999999999944},{"$f":"((Quarterly!BW208/Quarterly!BW204)-1)","v":0.11286147409701752},{"$f":"((Quarterly!BX208/Quarterly!BX204)-1)","v":-0.30346887204226969},{"$f":"((Quarterly!BY208/Quarterly!BY204)-1)","v":-0.27162471395881016},{"$f":"((Quarterly!BZ208/Quarterly!BZ204)-1)","v":-0.15533175158865775},{"$f":"((Quarterly!CA208/Quarterly!CA204)-1)","v":-0.11662597757272286},{"$f":"((Quarterly!CB208/Quarterly!CB204)-1)","v":0.34577186563818363},{"$f":"((Quarterly!CC208/Quarterly!CC204)-1)","v":0.29673273484556484},{"$f":"((Quarterly!CD208/Quarterly!CD204)-1)","v":-0.17798165137614674},{"$f":"((Quarterly!CE208/Quarterly!CE204)-1)","v":-0.39452815226011095},null,{"$f":"((Quarterly!CG208/Quarterly!CG204)-1)","v":-1.9080659150043422E-2},{"$f":"((Quarterly!CH208/Quarterly!CH204)-1)","v":-0.21301020408163274},null,{"$f":"((Quarterly!CJ208/Quarterly!CJ204)-1)","v":-0.39452815226011095},{"$f":"((Quarterly!CK208/Quarterly!CK204)-1)","v":6.4574168658835918E-2},{"$f":"((Quarterly!CL208/Quarterly!CL204)-1)","v":1.0012623606143487},{"$f":"((Quarterly!CM208/Quarterly!CM204)-1)","v":-0.4193175245806825},{"$f":"((Quarterly!CN208/Quarterly!CN204)-1)","v":3.1953009373458352E-2},{"$f":"((Quarterly!CO208/Quarterly!CO204)-1)","v":5.9702019177333199E-2},{"$f":"((Quarterly!CP208/Quarterly!CP204)-1)","v":6.0288584927642441E-2},{"$f":"((Quarterly!CQ208/Quarterly!CQ204)-1)","v":9.4198187679939149E-3},{"$f":"((Quarterly!CR208/Quarterly!CR204)-1)","v":7.5641152497510911E-2},{"$f":"Quarterly!CS208-Quarterly!CS204","v":-27.29999999999999},{"$f":"Quarterly!CT208-Quarterly!CT204","v":-49.4},null,null,null,null,null,{"$f":"((Quarterly!CZ208/Quarterly!CZ204)-1)","v":4.3104213146462289E-2},{"$f":"((Quarterly!DA208/Quarterly!DA204)-1)","v":2.3362535841966903E-2},null,null,null,null,null,{"$f":"((Quarterly!DG208/Quarterly!DG204)-1)","v":-3.1026993484331022E-3},{"$f":"((Quarterly!DH208-Quarterly!DH204)*60)","v":-7.9999999999999716},{"$f":"Quarterly!DI208-Quarterly!DI204","v":6.6666666666662877E-2},{"$f":"(Quarterly!DJ208-Quarterly!DJ204)*100","v":143.33333333333337},{"$f":"(Quarterly!DK208-Quarterly!DK204)*100","v":83.3333333333333},{"$f":"((Quarterly!DL208/Quarterly!DL204)-1)","v":-2.6756012923297878E-2},null,null,null,{"$f":"((Quarterly!DP208/Quarterly!DP204)-1)","v":-7.6336615485705916E-4},null,null,null,null,{"$f":"Quarterly!DU208-Quarterly!DU204","v":0.60000000000000142},{"$f":"((Quarterly!DV208/Quarterly!DV204)-1)","v":-2.9665115850568968E-2},{"$f":"((Quarterly!DW208/Quarterly!DW204)-1)","v":-2.9806362378976603E-2},{"$f":"((Quarterly!DX208/Quarterly!DX204)-1)","v":-2.6467773340813738E-2},{"$f":"((Quarterly!DY208/Quarterly!DY204)-1)","v":-2.6775648252536532E-2},{"$f":"((Quarterly!DZ208/Quarterly!DZ204)-1)","v":-2.6373626373626502E-2},{"$f":"((Quarterly!EA208/Quarterly!EA204)-1)","v":-2.3211776922606786E-2},{"$f":"((Quarterly!EB208/Quarterly!EB204)-1)","v":-3.3947907521217791E-2},{"$f":"((Quarterly!EC208/Quarterly!EC204)-1)","v":-3.7541096414099084E-2},null,null,null,null,null,{"$f":"((Quarterly!EI208/Quarterly!EI204)-1)","v":-2.7420645044331504E-2},{"$f":"((Quarterly!EJ208/Quarterly!EJ204)-1)","v":-1.4936532832068417E-2},{"$f":"((Quarterly!EK208/Quarterly!EK204)-1)","v":-3.120715288047915E-3},null,null,null,null,null,{"$f":"((Quarterly!EQ208/Quarterly!EQ204)-1)","v":0.13404050144648028},{"$f":"((Quarterly!ER208/Quarterly!ER204)-1)","v":3.0159058045858611E-2},{"$f":"((Quarterly!ES208/Quarterly!ES204)-1)","v":2.3878598527114381E-2},null,null,null,null,null,{"$f":"(Quarterly!EY208-Quarterly!EY204)*100","v":-317},{"$f":"(Quarterly!EZ208-Quarterly!EZ204)*100","v":-316.33333333333337},{"$f":"(Quarterly!FA208-Quarterly!FA204)*100","v":2.3333333333333428},{"$f":"(Quarterly!FB208-Quarterly!FB204)*100","v":49.666666666666615},"--",{"$f":"(Quarterly!FD208-Quarterly!FD204)*100","v":-27.333333333333343},{"$f":"(Quarterly!FE208-Quarterly!FE204)*100","v":-311.00000000000006},{"$f":"(Quarterly!FF208-Quarterly!FF204)*100","v":-286.00000000000006},{"$f":"(Quarterly!FG208-Quarterly!FG204)*100","v":-238.33333333333334},{"$f":"(Quarterly!FH208-Quarterly!FH204)*100","v":-160.33333333333326},{"$f":"(Quarterly!FI208-Quarterly!FI204)*100","v":-96},null,null,null,null,null,null,{"$f":"((Quarterly!FP208/Quarterly!FP204)-1)","v":-8.0602087885409124E-2},{"$f":"((Quarterly!FQ208/Quarterly!FQ204)-1)","v":-9.3934092458096918E-2},{"$f":"((Quarterly!FR208/Quarterly!FR204)-1)","v":-4.1540908157731038E-2},{"$f":"((Quarterly!FS208/Quarterly!FS204)-1)","v":0.15865717393453949},{"$f":"((Quarterly!FT208/Quarterly!FT204)-1)","v":-8.5194710309982269E-2},{"$f":"((Quarterly!FU208/Quarterly!FU204)-1)","v":-0.10831188067918374},{"$f":"((Quarterly!FV208/Quarterly!FV204)-1)","v":0.14778690126593563},{"$f":"((Quarterly!FW208/Quarterly!FW204)-1)","v":6.4144923638860263E-2},{"$f":"((Quarterly!FX208/Quarterly!FX204)-1)","v":9.8194873993324494E-2},null,null,null,null,null,{"$f":"((Quarterly!GD208/Quarterly!GD204)-1)","v":0.90800882458570564},{"$f":"((Quarterly!GE208/Quarterly!GE204)-1)","v":0.77006075334143387},{"$f":"((Quarterly!GF208/Quarterly!GF204)-1)","v":0.27149129836776842},{"$f":"((Quarterly!GG208/Quarterly!GG204)-1)","v":0.56269258118037468},{"$f":"((Quarterly!GH208/Quarterly!GH204)-1)","v":{"$error":"#DIV/0!"}},"--",{"$f":"((Quarterly!GJ208/Quarterly!GJ204)-1)","v":0.50102383130745443},{"$f":"((Quarterly!GK208/Quarterly!GK204)-1)","v":-1.2933061608402574E-2},"--"]
["08'Q3",{"$f":"((Quarterly!B209/Quarterly!B205)-1)","v":1.875868885201637E-2},{"$f":"((Quarterly!C209/Quarterly!C205)-1)","v":-3.1344581743227851E-3},{"$f":"((Quarterly!D209/Quarterly!D205)-1)","v":1.6652711592690661E-3},{"$f":"((Quarterly!E209/Quarterly!E205)-1)","v":-6.3659687163786227E-3},{"$f":"((Quarterly!F209/Quarterly!F205)-1)","v":-5.7547497683040016E-2},{"$f":"((Quarterly!G209/Quarterly!G205)-1)","v":-1.2499070009671875E-2},{"$f":"((Quarterly!H209/Quarterly!H205)-1)","v":5.1897324215921525E-3},{"$f":"((Quarterly!I209/Quarterly!I205)-1)","v":-1.6016851699041545E-2},{"$f":"((Quarterly!J209/Quarterly!J205)-1)","v":-3.5513577495686843E-2},{"$f":"((Quarterly!K209/Quarterly!K205)-1)","v":-0.23199976219754503},{"$f":"((Quarterly!L209-Quarterly!L205))","v":-70.894999999999996},{"$f":"((Quarterly!M209/Quarterly!M205)-1)","v":-3.1948164234402499E-2},{"$f":"((Quarterly!N209/Quarterly!N205)-1)","v":6.037428852758242E-2},{"$f":"((Quarterly!O209/Quarterly!O205)-1)","v":-0.25063286458688872},{"$f":"((Quarterly!P209/Quarterly!P205)-1)","v":3.0092744381239767E-2},{"$f":"((Quarterly!Q209/Quarterly!Q205)-1)","v":1.3130873044642111},null,null,null,null,null,{"$f":"((Quarterly!W209/Quarterly!W205)-1)","v":-6.4556962025316356E-2},{"$f":"((Quarterly!X209/Quarterly!X205)-1)","v":-4.5417010734929653E-2},{"$f":"((Quarterly!Y209/Quarterly!Y205)-1)","v":0.15674684719542453},{"$f":"Quarterly!Z209-Quarterly!Z205","v":0.39000000000000007},{"$f":"((Quarterly!AA209/Quarterly!AA205)-1)","v":-7.5094235399834286E-2},{"$f":"((Quarterly!AB209/Quarterly!AB205)-1)","v":-2.6067726228620192E-2},{"$f":"Quarterly!AC209-Quarterly!AC205","v":-5.6},{"$f":"Quarterly!AD209-Quarterly!AD205","v":-3.5999999999999996},{"$f":"(Quarterly!AE209-Quarterly!AE205)*100","v":127},{"$f":"(Quarterly!AF209-Quarterly!AF205)*100","v":39.000000000000007},{"$f":"(Quarterly!AG209-Quarterly!AG205)*100","v":68},{"$f":"((Quarterly!AH209/Quarterly!AH205)-1)","v":4.1897596416161642E-2},{"$f":"((Quarterly!AI209/Quarterly!AI205)-1)","v":4.516384103328086E-2},{"$f":"((Quarterly!AJ209/Quarterly!AJ205)-1)","v":2.3809523809523725E-2},{"$f":"((Quarterly!AK209/Quarterly!AK205)-1)","v":2.8409090909090828E-2},{"$f":"((Quarterly!AL209/Quarterly!AL205)-1)","v":2.9272898961284266E-2},{"$f":"((Quarterly!AM209/Quarterly!AM205)-1)","v":-4.7828562554997678E-2},{"$f":"((Quarterly!AN209/Quarterly!AN205)-1)","v":-5.9193779707865324E-2},{"$f":"((Quarterly!AO209/Quarterly!AO205)-1)","v":5.5707815520827708E-2},{"$f":"(Quarterly!AP209-Quarterly!AP205)*100","v":0.33333333333331883},{"$f":"Quarterly!AQ209-Quarterly!AQ205","v":-3.4333333333333371},{"$f":"Quarterly!AR209-Quarterly!AR205","v":-10.666666666666664},{"$f":"Quarterly!AS209-Quarterly!AS205","v":1.6666666666666643},{"$f":"Quarterly!AT209-Quarterly!AT205","v":-3.2000000000000028},{"$f":"Quarterly!AU209-Quarterly!AU205","v":-1.6666666666666643},{"$f":"Quarterly!AV209-Quarterly!AV205","v":-7},{"$f":"Quarterly!AW209-Quarterly!AW205","v":1},{"$f":"Quarterly!AX209-Quarterly!AX205","v":-10.63333333333334},{"$f":"Quarterly!AY209-Quarterly!AY205","v":10.666666666666664},{"$f":"Quarterly!AZ209-Quarterly!AZ205","v":-5.7333333333333343},{"$f":"Quarterly!BA209-Quarterly!BA205","v":1.43333333333333},{"$f":"Quarterly!BB209-Quarterly!BB205","v":-4.8333333333333286},{"$f":"((Quarterly!BC209/Quarterly!BC205)-1)","v":4.7786809823746612E-3},{"$f":"((Quarterly!BD209/Quarterly!BD205)-1)","v":3.1458403502862886E-2},{"$f":"((Quarterly!BE209/Quarterly!BE205)-1)","v":1.0839029353861829E-3},{"$f":"((Quarterly!BF209/Quarterly!BF205)-1)","v":3.0707179908315174E-2},{"$f":"((Quarterly!BG209/Quarterly!BG205)-1)","v":6.994379700801634E-3},{"$f":"((Quarterly!BH209/Quarterly!BH205)-1)","v":-2.0684513314458974E-2},{"$f":"((Quarterly!BI209/Quarterly!BI205)-1)","v":2.3554388400897519E-2},{"$f":"((Quarterly!BJ209/Quarterly!BJ205)-1)","v":1.3697501910494569E-2},{"$f":"((Quarterly!BK209/Quarterly!BK205)-1)","v":0.95121951219512213},null,{"$f":"((Quarterly!BM209/Quarterly!BM205)-1)","v":-1.1585560260629624E-4},{"$f":"((Quarterly!BN209/Quarterly!BN205)-1)","v":-3.1251029636559791E-3},null,null,null,null,null,{"$f":"((Quarterly!BT209/Quarterly!BT205)-1)","v":8.2412340900555714E-2},{"$f":"Quarterly!BU209-Quarterly!BU205","v":-0.27226000000000106},{"$f":"Quarterly!BV209-Quarterly!BV205","v":-0.27801999999999794},{"$f":"((Quarterly!BW209/Quarterly!BW205)-1)","v":0.11044011248677643},{"$f":"((Quarterly!BX209/Quarterly!BX205)-1)","v":-0.33100594776312386},{"$f":"((Quarterly!BY209/Quarterly!BY205)-1)","v":-0.34669033730661936},{"$f":"((Quarterly!BZ209/Quarterly!BZ205)-1)","v":-0.16971324019767109},{"$f":"((Quarterly!CA209/Quarterly!CA205)-1)","v":-0.17795562632251571},{"$f":"((Quarterly!CB209/Quarterly!CB205)-1)","v":0.60380938251369787},{"$f":"((Quarterly!CC209/Quarterly!CC205)-1)","v":0.50275861181776449},{"$f":"((Quarterly!CD209/Quarterly!CD205)-1)","v":-0.23418910457107078},{"$f":"((Quarterly!CE209/Quarterly!CE205)-1)","v":-0.37817845584835874},null,{"$f":"((Quarterly!CG209/Quarterly!CG205)-1)","v":-6.5989847715736016E-2},{"$f":"((Quarterly!CH209/Quarterly!CH205)-1)","v":-0.13154269972451793},null,{"$f":"((Quarterly!CJ209/Quarterly!CJ205)-1)","v":-0.37817845584835874},{"$f":"((Quarterly!CK209/Quarterly!CK205)-1)","v":4.0512387776840297E-2},{"$f":"((Quarterly!CL209/Quarterly!CL205)-1)","v":0.58405346238045874},{"$f":"((Quarterly!CM209/Quarterly!CM205)-1)","v":-0.40047716428084523},{"$f":"((Quarterly!CN209/Quarterly!CN205)-1)","v":5.6587700171302213E-3},{"$f":"((Quarterly!CO209/Quarterly!CO205)-1)","v":5.2488082730595798E-2},{"$f":"((Quarterly!CP209/Quarterly!CP205)-1)","v":4.2761571144922739E-2},{"$f":"((Quarterly!CQ209/Quarterly!CQ205)-1)","v":9.1914906756269676E-3},{"$f":"((Quarterly!CR209/Quarterly!CR205)-1)","v":5.0983448686939159E-2},{"$f":"Quarterly!CS209-Quarterly!CS205","v":-20.90000000000002},{"$f":"Quarterly!CT209-Quarterly!CT205","v":-48.4},null,null,null,null,null,{"$f":"((Quarterly!CZ209/Quarterly!CZ205)-1)","v":5.2525019356638447E-2},{"$f":"((Quarterly!DA209/Quarterly!DA205)-1)","v":2.4666664561777907E-2},null,null,null,null,null,{"$f":"((Quarterly!DG209/Quarterly!DG205)-1)","v":-1.3031337263419096E-2},{"$f":"((Quarterly!DH209-Quarterly!DH205)*60)","v":-9.9999999999998579},{"$f":"Quarterly!DI209-Quarterly!DI205","v":0.13333333333332575},{"$f":"(Quarterly!DJ209-Quarterly!DJ205)*100","v":236.66666666666654},{"$f":"(Quarterly!DK209-Quarterly!DK205)*100","v":133.33333333333331},{"$f":"((Quarterly!DL209/Quarterly!DL205)-1)","v":-3.4789312646059667E-2},null,null,null,{"$f":"((Quarterly!DP209/Quarterly!DP205)-1)","v":-6.4896968819034839E-3},null,null,null,null,{"$f":"Quarterly!DU209-Quarterly!DU205","v":1.1333333333333329},{"$f":"((Quarterly!DV209/Quarterly!DV205)-1)","v":-3.6617424683028865E-2},{"$f":"((Quarterly!DW209/Quarterly!DW205)-1)","v":-3.5193506969919297E-2},{"$f":"((Quarterly!DX209/Quarterly!DX205)-1)","v":-2.8048820824926546E-2},{"$f":"((Quarterly!DY209/Quarterly!DY205)-1)","v":-3.0535415504740815E-2},{"$f":"((Quarterly!DZ209/Quarterly!DZ205)-1)","v":-2.7275486752526001E-2},{"$f":"((Quarterly!EA209/Quarterly!EA205)-1)","v":-1.5058010367810404E-2},{"$f":"((Quarterly!EB209/Quarterly!EB205)-1)","v":-5.6147003062563927E-2},{"$f":"((Quarterly!EC209/Quarterly!EC205)-1)","v":-5.1333781663304157E-2},null,null,null,null,null,{"$f":"((Quarterly!EI209/Quarterly!EI205)-1)","v":-4.4722043845088377E-2},{"$f":"((Quarterly!EJ209/Quarterly!EJ205)-1)","v":-2.8805627010250801E-2},{"$f":"((Quarterly!EK209/Quarterly!EK205)-1)","v":-1.3765650724609557E-2},null,null,null,null,null,{"$f":"((Quarterly!EQ209/Quarterly!EQ205)-1)","v":0.15431861804222646},{"$f":"((Quarterly!ER209/Quarterly!ER205)-1)","v":3.6367372097801498E-2},{"$f":"((Quarterly!ES209/Quarterly!ES205)-1)","v":3.1820204717400991E-2},null,null,null,null,null,{"$f":"(Quarterly!EY209-Quarterly!EY205)*100","v":-317.66666666666674},{"$f":"(Quarterly!EZ209-Quarterly!EZ205)*100","v":-313.33333333333326},{"$f":"(Quarterly!FA209-Quarterly!FA205)*100","v":-9.9999999999999645},{"$f":"(Quarterly!FB209-Quarterly!FB205)*100","v":57.666666666666714},"--",{"$f":"(Quarterly!FD209-Quarterly!FD205)*100","v":-23.333333333333339},{"$f":"(Quarterly!FE209-Quarterly!FE205)*100","v":-281.00000000000006},{"$f":"(Quarterly!FF209-Quarterly!FF205)*100","v":-240},{"$f":"(Quarterly!FG209-Quarterly!FG205)*100","v":-202.33333333333329},{"$f":"(Quarterly!FH209-Quarterly!FH205)*100","v":-139.6666666666666},{"$f":"(Quarterly!FI209-Quarterly!FI205)*100","v":-86.666666666666629},null,null,null,null,null,null,{"$f":"((Quarterly!FP209/Quarterly!FP205)-1)","v":-3.2218961337249219E-3},{"$f":"((Quarterly!FQ209/Quarterly!FQ205)-1)","v":-9.5178230356284255E-2},{"$f":"((Quarterly!FR209/Quarterly!FR205)-1)","v":-5.7834680741738365E-2},{"$f":"((Quarterly!FS209/Quarterly!FS205)-1)","v":9.1949008773205332E-2},{"$f":"((Quarterly!FT209/Quarterly!FT205)-1)","v":-4.8987300308801274E-2},{"$f":"((Quarterly!FU209/Quarterly!FU205)-1)","v":-4.7001703408156459E-2},{"$f":"((Quarterly!FV209/Quarterly!FV205)-1)","v":0.17911097247734697},{"$f":"((Quarterly!FW209/Quarterly!FW205)-1)","v":0.11226830563354384},{"$f":"((Quarterly!FX209/Quarterly!FX205)-1)","v":5.322515017009688E-2},null,null,null,null,null,{"$f":"((Quarterly!GD209/Quarterly!GD205)-1)","v":0.56269315673289211},{"$f":"((Quarterly!GE209/Quarterly!GE205)-1)","v":0.52623854843013418},{"$f":"((Quarterly!GF209/Quarterly!GF205)-1)","v":0.35877291432846969},{"$f":"((Quarterly!GG209/Quarterly!GG205)-1)","v":0.49930955120828546},{"$f":"((Quarterly!GH209/Quarterly!GH205)-1)","v":{"$error":"#DIV/0!"}},"--",{"$f":"((Quarterly!GJ209/Quarterly!GJ205)-1)","v":0.43414868617816715},{"$f":"((Quarterly!GK209/Quarterly!GK205)-1)","v":6.0371890847621401E-3},"--"]
["08'Q4",{"$f":"((Quarterly!B210/Quarterly!B206)-1)","v":-9.2187918146885428E-3},{"$f":"((Quarterly!C210/Quarterly!C206)-1)","v":-2.7668421583448621E-2},{"$f":"((Quarterly!D210/Quarterly!D206)-1)","v":-2.1385986628038589E-2},{"$f":"((Quarterly!E210/Quarterly!E206)-1)","v":-1.9546774054897909E-2},{"$f":"((Quarterly!F210/Quarterly!F206)-1)","v":-0.12866745521160883},{"$f":"((Quarterly!G210/Quarterly!G206)-1)","v":-2.6730402668572628E-2},{"$f":"((Quarterly!H210/Quarterly!H206)-1)","v":2.5036532390390054E-3},{"$f":"((Quarterly!I210/Quarterly!I206)-1)","v":-8.882710258384463E-2},{"$f":"((Quarterly!J210/Quarterly!J206)-1)","v":-0.11704150040286665},{"$f":"((Quarterly!K210/Quarterly!K206)-1)","v":-0.24319491696041329},{"$f":"((Quarterly!L210-Quarterly!L206))","v":-90.31},{"$f":"((Quarterly!M210/Quarterly!M206)-1)","v":-5.9745032005656395E-2},{"$f":"((Quarterly!N210/Quarterly!N206)-1)","v":-2.7646776474754997E-2},{"$f":"((Quarterly!O210/Quarterly!O206)-1)","v":-0.14825195717190631},{"$f":"((Quarterly!P210/Quarterly!P206)-1)","v":3.2679662971416557E-2},{"$f":"((Quarterly!Q210/Quarterly!Q206)-1)","v":1.2030258347825806},null,null,null,null,null,{"$f":"((Quarterly!W210/Quarterly!W206)-1)","v":-0.1130876747141043},{"$f":"((Quarterly!X210/Quarterly!X206)-1)","v":-8.8696369636963812E-2},{"$f":"((Quarterly!Y210/Quarterly!Y206)-1)","v":0.12770612899876466},{"$f":"Quarterly!Z210-Quarterly!Z206","v":0.42999999999999994},{"$f":"((Quarterly!AA210/Quarterly!AA206)-1)","v":-0.48888741720846074},{"$f":"((Quarterly!AB210/Quarterly!AB206)-1)","v":-0.2522923547342979},{"$f":"Quarterly!AC210-Quarterly!AC206","v":-6},{"$f":"Quarterly!AD210-Quarterly!AD206","v":0.29999999999999982},{"$f":"(Quarterly!AE210-Quarterly!AE206)*100","v":163},{"$f":"(Quarterly!AF210-Quarterly!AF206)*100","v":42.999999999999993},{"$f":"(Quarterly!AG210-Quarterly!AG206)*100","v":71.000000000000014},{"$f":"((Quarterly!AH210/Quarterly!AH206)-1)","v":-7.6748994188645558E-2},{"$f":"((Quarterly!AI210/Quarterly!AI206)-1)","v":2.9360377642328128E-2},{"$f":"((Quarterly!AJ210/Quarterly!AJ206)-1)","v":1.8885741265344702E-2},{"$f":"((Quarterly!AK210/Quarterly!AK206)-1)","v":2.4413145539906145E-2},{"$f":"((Quarterly!AL210/Quarterly!AL206)-1)","v":2.6241799437675795E-2},{"$f":"((Quarterly!AM210/Quarterly!AM206)-1)","v":-8.9606394972081893E-2},{"$f":"((Quarterly!AN210/Quarterly!AN206)-1)","v":-0.11643091488693846},{"$f":"((Quarterly!AO210/Quarterly!AO206)-1)","v":1.0440404525869251E-2},{"$f":"(Quarterly!AP210-Quarterly!AP206)*100","v":15.333333333333288},{"$f":"Quarterly!AQ210-Quarterly!AQ206","v":-14.033333333333331},{"$f":"Quarterly!AR210-Quarterly!AR206","v":-17},{"$f":"Quarterly!AS210-Quarterly!AS206","v":4.1666666666666643},{"$f":"Quarterly!AT210-Quarterly!AT206","v":-16.566666666666663},{"$f":"Quarterly!AU210-Quarterly!AU206","v":-16.833333333333336},{"$f":"Quarterly!AV210-Quarterly!AV206","v":-8.5},{"$f":"Quarterly!AW210-Quarterly!AW206","v":-5.1666666666666643},{"$f":"Quarterly!AX210-Quarterly!AX206","v":-23.766666666666673},{"$f":"Quarterly!AY210-Quarterly!AY206","v":-39.333333333333343},{"$f":"Quarterly!AZ210-Quarterly!AZ206","v":-20.633333333333333},{"$f":"Quarterly!BA210-Quarterly!BA206","v":-3.9666666666666686},{"$f":"Quarterly!BB210-Quarterly!BB206","v":-15.899999999999999},{"$f":"((Quarterly!BC210/Quarterly!BC206)-1)","v":-0.11299369658065905},{"$f":"((Quarterly!BD210/Quarterly!BD206)-1)","v":-3.6529467228036072E-2},{"$f":"((Quarterly!BE210/Quarterly!BE206)-1)","v":8.5273153787160938E-2},{"$f":"((Quarterly!BF210/Quarterly!BF206)-1)","v":3.0759263258569147E-2},{"$f":"((Quarterly!BG210/Quarterly!BG206)-1)","v":-3.6108139247797988E-3},{"$f":"((Quarterly!BH210/Quarterly!BH206)-1)","v":1.4456348485765602E-2},{"$f":"((Quarterly!BI210/Quarterly!BI206)-1)","v":3.4488963531669858E-2},{"$f":"((Quarterly!BJ210/Quarterly!BJ206)-1)","v":-0.41258196679385795},{"$f":"((Quarterly!BK210/Quarterly!BK206)-1)","v":0.82692307692307687},null,{"$f":"((Quarterly!BM210/Quarterly!BM206)-1)","v":-9.2211905888105239E-2},{"$f":"((Quarterly!BN210/Quarterly!BN206)-1)","v":-0.10308282127004831},null,null,null,null,null,{"$f":"((Quarterly!BT210/Quarterly!BT206)-1)","v":0.10578551113989065},{"$f":"Quarterly!BU210-Quarterly!BU206","v":-0.43250000000000099},{"$f":"Quarterly!BV210-Quarterly!BV206","v":-0.32995999999999981},{"$f":"((Quarterly!BW210/Quarterly!BW206)-1)","v":0.1192744661520786},{"$f":"((Quarterly!BX210/Quarterly!BX206)-1)","v":-0.43138936535162953},{"$f":"((Quarterly!BY210/Quarterly!BY206)-1)","v":-0.46255259467040677},{"$f":"((Quarterly!BZ210/Quarterly!BZ206)-1)","v":-0.18319175725762116},{"$f":"((Quarterly!CA210/Quarterly!CA206)-1)","v":-0.35129377858530164},{"$f":"((Quarterly!CB210/Quarterly!CB206)-1)","v":-4.0918007249956201E-2},{"$f":"((Quarterly!CC210/Quarterly!CC206)-1)","v":8.9027094873021628E-2},{"$f":"((Quarterly!CD210/Quarterly!CD206)-1)","v":0.42712177121771222},{"$f":"((Quarterly!CE210/Quarterly!CE206)-1)","v":5.2038161318299636E-3},null,{"$f":"((Quarterly!CG210/Quarterly!CG206)-1)","v":0.10761563619373926},{"$f":"((Quarterly!CH210/Quarterly!CH206)-1)","v":-8.4071284218261932E-2},null,{"$f":"((Quarterly!CJ210/Quarterly!CJ206)-1)","v":-0.41670860593860093},{"$f":"((Quarterly!CK210/Quarterly!CK206)-1)","v":1.6558610313226474E-2},{"$f":"((Quarterly!CL210/Quarterly!CL206)-1)","v":1.2236353404614517},{"$f":"((Quarterly!CM210/Quarterly!CM206)-1)","v":-0.44197138314785367},{"$f":"((Quarterly!CN210/Quarterly!CN206)-1)","v":1.1304973081934566E-2},{"$f":"((Quarterly!CO210/Quarterly!CO206)-1)","v":5.0235017626321987E-2},{"$f":"((Quarterly!CP210/Quarterly!CP206)-1)","v":2.0947379121082577E-2},{"$f":"((Quarterly!CQ210/Quarterly!CQ206)-1)","v":9.0150338558738774E-3},{"$f":"((Quarterly!CR210/Quarterly!CR206)-1)","v":1.7567047946765335E-2},{"$f":"Quarterly!CS210-Quarterly!CS206","v":-19.833333333333336},{"$f":"Quarterly!CT210-Quarterly!CT206","v":-50.500000000000007},null,null,null,null,null,{"$f":"((Quarterly!CZ210/Quarterly!CZ206)-1)","v":1.5958028026712201E-2},{"$f":"((Quarterly!DA210/Quarterly!DA206)-1)","v":1.9995140342214057E-2},null,null,null,null,null,{"$f":"((Quarterly!DG210/Quarterly!DG206)-1)","v":-3.6830702568864115E-2},{"$f":"((Quarterly!DH210-Quarterly!DH206)*60)","v":-23.999999999999915},{"$f":"Quarterly!DI210-Quarterly!DI206","v":-3.3333333333345649E-2},{"$f":"(Quarterly!DJ210-Quarterly!DJ206)*100","v":413.33333333333326},{"$f":"(Quarterly!DK210-Quarterly!DK206)*100","v":206.66666666666674},{"$f":"((Quarterly!DL210/Quarterly!DL206)-1)","v":-5.4183730341434977E-2},null,null,null,{"$f":"((Quarterly!DP210/Quarterly!DP206)-1)","v":-1.9851589067045095E-2},null,null,null,null,{"$f":"Quarterly!DU210-Quarterly!DU206","v":1.7666666666666675},{"$f":"((Quarterly!DV210/Quarterly!DV206)-1)","v":2.7762812006205007E-2},{"$f":"((Quarterly!DW210/Quarterly!DW206)-1)","v":3.5842099555362328E-2},{"$f":"((Quarterly!DX210/Quarterly!DX206)-1)","v":4.5296475303548744E-2},{"$f":"((Quarterly!DY210/Quarterly!DY206)-1)","v":4.2649767887406931E-2},{"$f":"((Quarterly!DZ210/Quarterly!DZ206)-1)","v":4.6110705590591827E-2},{"$f":"((Quarterly!EA210/Quarterly!EA206)-1)","v":6.761483013866898E-2},{"$f":"((Quarterly!EB210/Quarterly!EB206)-1)","v":-4.3790413162927422E-3},{"$f":"((Quarterly!EC210/Quarterly!EC206)-1)","v":1.4289891956403178E-2},null,null,null,null,null,{"$f":"((Quarterly!EI210/Quarterly!EI206)-1)","v":-8.1684724797982278E-2},{"$f":"((Quarterly!EJ210/Quarterly!EJ206)-1)","v":-5.0841178329781744E-2},{"$f":"((Quarterly!EK210/Quarterly!EK206)-1)","v":-2.737258575897028E-2},null,null,null,null,null,{"$f":"((Quarterly!EQ210/Quarterly!EQ206)-1)","v":3.3815517565283226E-3},{"$f":"((Quarterly!ER210/Quarterly!ER206)-1)","v":4.4925464570144902E-2},{"$f":"((Quarterly!ES210/Quarterly!ES206)-1)","v":4.1638981173864886E-2},null,null,null,null,null,{"$f":"(Quarterly!EY210-Quarterly!EY206)*100","v":-346.66666666666674},{"$f":"(Quarterly!EZ210-Quarterly!EZ206)*100","v":-399},{"$f":"(Quarterly!FA210-Quarterly!FA206)*100","v":28.666666666666529},{"$f":"(Quarterly!FB210-Quarterly!FB206)*100","v":233.00000000000009},"--",{"$f":"(Quarterly!FD210-Quarterly!FD206)*100","v":-35.666666666666735},{"$f":"(Quarterly!FE210-Quarterly!FE206)*100","v":-309.33333333333331},{"$f":"(Quarterly!FF210-Quarterly!FF206)*100","v":-262.66666666666663},{"$f":"(Quarterly!FG210-Quarterly!FG206)*100","v":-226.33333333333331},{"$f":"(Quarterly!FH210-Quarterly!FH206)*100","v":-160.66666666666669},{"$f":"(Quarterly!FI210-Quarterly!FI206)*100","v":-100.66666666666664},null,null,null,null,null,null,{"$f":"((Quarterly!FP210/Quarterly!FP206)-1)","v":0.23459096002988433},{"$f":"((Quarterly!FQ210/Quarterly!FQ206)-1)","v":-7.9551928796694593E-2},{"$f":"((Quarterly!FR210/Quarterly!FR206)-1)","v":0.20417957036818568},{"$f":"((Quarterly!FS210/Quarterly!FS206)-1)","v":-9.0948821161587201E-2},{"$f":"((Quarterly!FT210/Quarterly!FT206)-1)","v":8.9784620997608089E-2},{"$f":"((Quarterly!FU210/Quarterly!FU206)-1)","v":0.11007502256035884},{"$f":"((Quarterly!FV210/Quarterly!FV206)-1)","v":-0.14901234912999473},{"$f":"((Quarterly!FW210/Quarterly!FW206)-1)","v":4.4164625307638872E-3},{"$f":"((Quarterly!FX210/Quarterly!FX206)-1)","v":-0.11616074030503976},null,null,null,null,null,{"$f":"((Quarterly!GD210/Quarterly!GD206)-1)","v":-0.35751238304898181},{"$f":"((Quarterly!GE210/Quarterly!GE206)-1)","v":-0.38279132791327908},{"$f":"((Quarterly!GF210/Quarterly!GF206)-1)","v":-0.2411306086682995},{"$f":"((Quarterly!GG210/Quarterly!GG206)-1)","v":-9.2845495311863147E-2},{"$f":"((Quarterly!GH210/Quarterly!GH206)-1)","v":{"$error":"#DIV/0!"}},"--",{"$f":"((Quarterly!GJ210/Quarterly!GJ206)-1)","v":-0.13336940348978765},{"$f":"((Quarterly!GK210/Quarterly!GK206)-1)","v":-8.5720941066853018E-2},"--"]
["09'Q1",{"$f":"((Quarterly!B211/Quarterly!B207)-1)","v":-1.9399465996566057E-2},{"$f":"((Quarterly!C211/Quarterly!C207)-1)","v":-3.4550100910376136E-2},{"$f":"((Quarterly!D211/Quarterly!D207)-1)","v":-2.5622020203009299E-2},{"$f":"((Quarterly!E211/Quarterly!E207)-1)","v":-2.0889242288705479E-2},{"$f":"((Quarterly!F211/Quarterly!F207)-1)","v":-0.10146993318485542},{"$f":"((Quarterly!G211/Quarterly!G207)-1)","v":-2.0663322602381018E-2},{"$f":"((Quarterly!H211/Quarterly!H207)-1)","v":-7.1480018875891282E-3},{"$f":"((Quarterly!I211/Quarterly!I207)-1)","v":-0.15505922873768641},{"$f":"((Quarterly!J211/Quarterly!J207)-1)","v":-0.17907332970094492},{"$f":"((Quarterly!K211/Quarterly!K207)-1)","v":-0.25748501885143293},{"$f":"((Quarterly!L211-Quarterly!L207))","v":-124.261},{"$f":"((Quarterly!M211/Quarterly!M207)-1)","v":-0.15877361131047873},{"$f":"((Quarterly!N211/Quarterly!N207)-1)","v":-0.11657096891314234},{"$f":"((Quarterly!O211/Quarterly!O207)-1)","v":-0.27637182216977518},{"$f":"((Quarterly!P211/Quarterly!P207)-1)","v":2.9998089423127761E-2},{"$f":"((Quarterly!Q211/Quarterly!Q207)-1)","v":1.5428344416194015},null,null,null,null,null,{"$f":"((Quarterly!W211/Quarterly!W207)-1)","v":-0.16153846153846152},{"$f":"((Quarterly!X211/Quarterly!X207)-1)","v":-0.14019851116625304},{"$f":"((Quarterly!Y211/Quarterly!Y207)-1)","v":5.226016797012023E-2},{"$f":"Quarterly!Z211-Quarterly!Z207","v":1.1099999999999999},{"$f":"((Quarterly!AA211/Quarterly!AA207)-1)","v":-0.13231091881866996},{"$f":"((Quarterly!AB211/Quarterly!AB207)-1)","v":1.5393967688910992E-2},{"$f":"Quarterly!AC211-Quarterly!AC207","v":-9.3999999999999986},{"$f":"Quarterly!AD211-Quarterly!AD207","v":-34.1},{"$f":"(Quarterly!AE211-Quarterly!AE207)*100","v":210.00000000000006},{"$f":"(Quarterly!AF211-Quarterly!AF207)*100","v":110.99999999999999},{"$f":"(Quarterly!AG211-Quarterly!AG207)*100","v":105.99999999999999},{"$f":"((Quarterly!AH211/Quarterly!AH207)-1)","v":-5.2185981956974326E-2},{"$f":"((Quarterly!AI211/Quarterly!AI207)-1)","v":7.3742167699389904E-2},{"$f":"((Quarterly!AJ211/Quarterly!AJ207)-1)","v":1.5977443609022535E-2},{"$f":"((Quarterly!AK211/Quarterly!AK207)-1)","v":1.9589552238805874E-2},{"$f":"((Quarterly!AL211/Quarterly!AL207)-1)","v":2.0446096654275214E-2},{"$f":"((Quarterly!AM211/Quarterly!AM207)-1)","v":-0.13705197039904593},{"$f":"((Quarterly!AN211/Quarterly!AN207)-1)","v":-0.17026864005334041},{"$f":"((Quarterly!AO211/Quarterly!AO207)-1)","v":-5.2807913634007719E-2},{"$f":"(Quarterly!AP211-Quarterly!AP207)*100","v":18.666666666666654},{"$f":"Quarterly!AQ211-Quarterly!AQ207","v":-13.266666666666659},{"$f":"Quarterly!AR211-Quarterly!AR207","v":-13.5},{"$f":"Quarterly!AS211-Quarterly!AS207","v":3.6666666666666643},{"$f":"Quarterly!AT211-Quarterly!AT207","v":-19.400000000000002},{"$f":"Quarterly!AU211-Quarterly!AU207","v":-19},{"$f":"Quarterly!AV211-Quarterly!AV207","v":-14.5},{"$f":"Quarterly!AW211-Quarterly!AW207","v":-11.166666666666664},{"$f":"Quarterly!AX211-Quarterly!AX207","v":-11.899999999999999},{"$f":"Quarterly!AY211-Quarterly!AY207","v":-48.666666666666657},{"$f":"Quarterly!AZ211-Quarterly!AZ207","v":-16.066666666666663},{"$f":"Quarterly!BA211-Quarterly!BA207","v":-7.6666666666666785},{"$f":"Quarterly!BB211-Quarterly!BB207","v":-6.1000000000000014},{"$f":"((Quarterly!BC211/Quarterly!BC207)-1)","v":-0.25865768611789952},{"$f":"((Quarterly!BD211/Quarterly!BD207)-1)","v":-0.1010717245021534},{"$f":"((Quarterly!BE211/Quarterly!BE207)-1)","v":0.13992328868104909},{"$f":"((Quarterly!BF211/Quarterly!BF207)-1)","v":-4.9679829785501672E-3},{"$f":"((Quarterly!BG211/Quarterly!BG207)-1)","v":1.3867392410848778E-2},{"$f":"((Quarterly!BH211/Quarterly!BH207)-1)","v":-3.1601478101084268E-3},{"$f":"((Quarterly!BI211/Quarterly!BI207)-1)","v":-1.8581677055157009E-2},{"$f":"((Quarterly!BJ211/Quarterly!BJ207)-1)","v":-0.29108982063811273},{"$f":"((Quarterly!BK211/Quarterly!BK207)-1)","v":1.734375},null,{"$f":"((Quarterly!BM211/Quarterly!BM207)-1)","v":-0.10459063831307436},{"$f":"((Quarterly!BN211/Quarterly!BN207)-1)","v":-0.11727969101388547},null,null,null,null,null,{"$f":"((Quarterly!BT211/Quarterly!BT207)-1)","v":0.10933554272670309},{"$f":"Quarterly!BU211-Quarterly!BU207","v":-0.39337000000000089},{"$f":"Quarterly!BV211-Quarterly!BV207","v":-0.15235999999999805},{"$f":"((Quarterly!BW211/Quarterly!BW207)-1)","v":0.11607508994349858},{"$f":"((Quarterly!BX211/Quarterly!BX207)-1)","v":-0.50595238095238093},{"$f":"((Quarterly!BY211/Quarterly!BY207)-1)","v":-0.47447154471544717},{"$f":"((Quarterly!BZ211/Quarterly!BZ207)-1)","v":-0.18606820386538325},{"$f":"((Quarterly!CA211/Quarterly!CA207)-1)","v":-0.3792122441778405},{"$f":"((Quarterly!CB211/Quarterly!CB207)-1)","v":-0.11542739159884519},{"$f":"((Quarterly!CC211/Quarterly!CC207)-1)","v":9.7483262186664588E-2},{"$f":"((Quarterly!CD211/Quarterly!CD207)-1)","v":-0.31799163179916323},{"$f":"((Quarterly!CE211/Quarterly!CE207)-1)","v":-0.40341880341880343},null,{"$f":"((Quarterly!CG211/Quarterly!CG207)-1)","v":-9.3385214007782102E-2},{"$f":"((Quarterly!CH211/Quarterly!CH207)-1)","v":-5.7831325301204828E-2},null,{"$f":"((Quarterly!CJ211/Quarterly!CJ207)-1)","v":-0.40341880341880343},{"$f":"((Quarterly!CK211/Quarterly!CK207)-1)","v":-2.4737705934192777E-2},{"$f":"((Quarterly!CL211/Quarterly!CL207)-1)","v":0.66285761948452726},{"$f":"((Quarterly!CM211/Quarterly!CM207)-1)","v":-0.51955056179775283},{"$f":"((Quarterly!CN211/Quarterly!CN207)-1)","v":2.0652837095789245E-3},{"$f":"((Quarterly!CO211/Quarterly!CO207)-1)","v":9.2257113899038234E-2},{"$f":"((Quarterly!CP211/Quarterly!CP207)-1)","v":8.1218670568183882E-4},{"$f":"((Quarterly!CQ211/Quarterly!CQ207)-1)","v":8.8615819581088218E-3},{"$f":"((Quarterly!CR211/Quarterly!CR207)-1)","v":-6.4115840660535217E-2},{"$f":"Quarterly!CS211-Quarterly!CS207","v":-14.633333333333319},{"$f":"Quarterly!CT211-Quarterly!CT207","v":-46.666666666666671},null,null,null,null,null,{"$f":"((Quarterly!CZ211/Quarterly!CZ207)-1)","v":-1.8423678813865862E-3},{"$f":"((Quarterly!DA211/Quarterly!DA207)-1)","v":1.7536947347110532E-2},null,null,null,null,null,{"$f":"((Quarterly!DG211/Quarterly!DG207)-1)","v":-6.137631742095484E-2},{"$f":"((Quarterly!DH211-Quarterly!DH207)*60)","v":-32.000000000000313},{"$f":"Quarterly!DI211-Quarterly!DI207","v":-0.39999999999999147},{"$f":"(Quarterly!DJ211-Quarterly!DJ207)*100","v":596.66666666666686},{"$f":"(Quarterly!DK211-Quarterly!DK207)*100","v":326.66666666666674},{"$f":"((Quarterly!DL211/Quarterly!DL207)-1)","v":-9.5691333982473314E-2},null,null,null,{"$f":"((Quarterly!DP211/Quarterly!DP207)-1)","v":-3.6410597430633906E-2},null,null,null,null,{"$f":"Quarterly!DU211-Quarterly!DU207","v":2.7666666666666693},{"$f":"((Quarterly!DV211/Quarterly!DV207)-1)","v":-7.5805045817530892E-2},{"$f":"((Quarterly!DW211/Quarterly!DW207)-1)","v":-7.8817615508574579E-2},{"$f":"((Quarterly!DX211/Quarterly!DX207)-1)","v":-7.8815226979710995E-2},{"$f":"((Quarterly!DY211/Quarterly!DY207)-1)","v":-8.9094378394246276E-2},{"$f":"((Quarterly!DZ211/Quarterly!DZ207)-1)","v":-7.5724813556330317E-2},{"$f":"((Quarterly!EA211/Quarterly!EA207)-1)","v":-6.7975736351697957E-2},{"$f":"((Quarterly!EB211/Quarterly!EB207)-1)","v":-9.430284857571225E-2},{"$f":"((Quarterly!EC211/Quarterly!EC207)-1)","v":-7.8823432206890698E-2},null,null,null,null,null,{"$f":"((Quarterly!EI211/Quarterly!EI207)-1)","v":-9.7420783217608609E-2},{"$f":"((Quarterly!EJ211/Quarterly!EJ207)-1)","v":-5.5571216445076232E-2},{"$f":"((Quarterly!EK211/Quarterly!EK207)-1)","v":-3.5890684438010023E-2},null,null,null,null,null,{"$f":"((Quarterly!EQ211/Quarterly!EQ207)-1)","v":-7.7955039883973898E-2},{"$f":"((Quarterly!ER211/Quarterly!ER207)-1)","v":3.8259109311741035E-2},{"$f":"((Quarterly!ES211/Quarterly!ES207)-1)","v":3.45206684256818E-2},null,null,null,null,null,{"$f":"(Quarterly!EY211-Quarterly!EY207)*100","v":-296.33333333333337},{"$f":"(Quarterly!EZ211-Quarterly!EZ207)*100","v":-299.33333333333331},{"$f":"(Quarterly!FA211-Quarterly!FA207)*100","v":-18.333333333333268},{"$f":"(Quarterly!FB211-Quarterly!FB207)*100","v":146.33333333333329},"--",{"$f":"(Quarterly!FD211-Quarterly!FD207)*100","v":-81.999999999999943},{"$f":"(Quarterly!FE211-Quarterly!FE207)*100","v":-183},{"$f":"(Quarterly!FF211-Quarterly!FF207)*100","v":-153.33333333333331},{"$f":"(Quarterly!FG211-Quarterly!FG207)*100","v":-111.66666666666667},{"$f":"(Quarterly!FH211-Quarterly!FH207)*100","v":-98.333333333333314},{"$f":"(Quarterly!FI211-Quarterly!FI207)*100","v":-92.666666666666671},null,null,null,null,null,null,{"$f":"((Quarterly!FP211/Quarterly!FP207)-1)","v":0.24012087401208748},{"$f":"((Quarterly!FQ211/Quarterly!FQ207)-1)","v":-4.510851092559065E-2},{"$f":"((Quarterly!FR211/Quarterly!FR207)-1)","v":0.33112903623975543},{"$f":"((Quarterly!FS211/Quarterly!FS207)-1)","v":-0.13144621947697033},{"$f":"((Quarterly!FT211/Quarterly!FT207)-1)","v":0.13971432049558263},{"$f":"((Quarterly!FU211/Quarterly!FU207)-1)","v":0.15052677734741771},{"$f":"((Quarterly!FV211/Quarterly!FV207)-1)","v":-0.37861106428328073},{"$f":"((Quarterly!FW211/Quarterly!FW207)-1)","v":-0.10883401554535954},{"$f":"((Quarterly!FX211/Quarterly!FX207)-1)","v":-0.26054187859127598},null,null,null,null,null,{"$f":"((Quarterly!GD211/Quarterly!GD207)-1)","v":-0.5614238072551555},{"$f":"((Quarterly!GE211/Quarterly!GE207)-1)","v":-0.5416251160551564},{"$f":"((Quarterly!GF211/Quarterly!GF207)-1)","v":-0.38448333236495014},{"$f":"((Quarterly!GG211/Quarterly!GG207)-1)","v":-0.37734241908006805},{"$f":"((Quarterly!GH211/Quarterly!GH207)-1)","v":{"$error":"#DIV/0!"}},"--",{"$f":"((Quarterly!GJ211/Quarterly!GJ207)-1)","v":-0.4876033057851239},{"$f":"((Quarterly!GK211/Quarterly!GK207)-1)","v":-5.9306429338652822E-2},"--"]
["09'Q2",{"$f":"((Quarterly!B212/Quarterly!B208)-1)","v":-3.1901561428515302E-2},{"$f":"((Quarterly!C212/Quarterly!C208)-1)","v":-4.0619160526611742E-2},{"$f":"((Quarterly!D212/Quarterly!D208)-1)","v":-2.9815474734226743E-2},{"$f":"((Quarterly!E212/Quarterly!E208)-1)","v":-2.6946662344792816E-2},{"$f":"((Quarterly!F212/Quarterly!F208)-1)","v":-0.10402454645655212},{"$f":"((Quarterly!G212/Quarterly!G208)-1)","v":-3.4526340832379265E-2},{"$f":"((Quarterly!H212/Quarterly!H208)-1)","v":-1.1312194734543257E-2},{"$f":"((Quarterly!I212/Quarterly!I208)-1)","v":-0.17748951089432363},{"$f":"((Quarterly!J212/Quarterly!J208)-1)","v":-0.17939567141327151},{"$f":"((Quarterly!K212/Quarterly!K208)-1)","v":-0.26995018747482258},{"$f":"((Quarterly!L212-Quarterly!L208))","v":-163.71300000000002},{"$f":"((Quarterly!M212/Quarterly!M208)-1)","v":-0.18573344607773801},{"$f":"((Quarterly!N212/Quarterly!N208)-1)","v":-0.14002173166146659},{"$f":"((Quarterly!O212/Quarterly!O208)-1)","v":-0.33440228786551851},{"$f":"((Quarterly!P212/Quarterly!P208)-1)","v":4.0679251396899652E-2},{"$f":"((Quarterly!Q212/Quarterly!Q208)-1)","v":0.71007393987692491},null,null,null,null,null,{"$f":"((Quarterly!W212/Quarterly!W208)-1)","v":-0.16601307189542491},{"$f":"((Quarterly!X212/Quarterly!X208)-1)","v":-0.1566164154103854},{"$f":"((Quarterly!Y212/Quarterly!Y208)-1)","v":-1.8365800817239486E-2},{"$f":"Quarterly!Z212-Quarterly!Z208","v":1.3199999999999998},{"$f":"((Quarterly!AA212/Quarterly!AA208)-1)","v":-8.8646157874918918E-2},{"$f":"((Quarterly!AB212/Quarterly!AB208)-1)","v":3.6227614824020593E-2},{"$f":"Quarterly!AC212-Quarterly!AC208","v":3.7},{"$f":"Quarterly!AD212-Quarterly!AD208","v":-47.4},{"$f":"(Quarterly!AE212-Quarterly!AE208)*100","v":244},{"$f":"(Quarterly!AF212-Quarterly!AF208)*100","v":131.99999999999997},{"$f":"(Quarterly!AG212-Quarterly!AG208)*100","v":124.99999999999997},{"$f":"((Quarterly!AH212/Quarterly!AH208)-1)","v":-3.3796182181688672E-2},{"$f":"((Quarterly!AI212/Quarterly!AI208)-1)","v":9.5494168409396396E-2},{"$f":"((Quarterly!AJ212/Quarterly!AJ208)-1)","v":1.2160898035547207E-2},{"$f":"((Quarterly!AK212/Quarterly!AK208)-1)","v":1.388888888888884E-2},{"$f":"((Quarterly!AL212/Quarterly!AL208)-1)","v":1.568265682656822E-2},{"$f":"((Quarterly!AM212/Quarterly!AM208)-1)","v":-0.15114794168026835},{"$f":"((Quarterly!AN212/Quarterly!AN208)-1)","v":-0.17839228556123143},{"$f":"((Quarterly!AO212/Quarterly!AO208)-1)","v":-9.7964935714892176E-2},{"$f":"(Quarterly!AP212-Quarterly!AP208)*100","v":16.66666666666665},{"$f":"Quarterly!AQ212-Quarterly!AQ208","v":-6.7999999999999901},{"$f":"Quarterly!AR212-Quarterly!AR208","v":-3},{"$f":"Quarterly!AS212-Quarterly!AS208","v":-2.6666666666666643},{"$f":"Quarterly!AT212-Quarterly!AT208","v":-9.3333333333333357},{"$f":"Quarterly!AU212-Quarterly!AU208","v":-11.333333333333336},{"$f":"Quarterly!AV212-Quarterly!AV208","v":-4.3333333333333357},{"$f":"Quarterly!AW212-Quarterly!AW208","v":-16.166666666666664},{"$f":"Quarterly!AX212-Quarterly!AX208","v":1.1666666666666714},{"$f":"Quarterly!AY212-Quarterly!AY208","v":-45.833333333333336},{"$f":"Quarterly!AZ212-Quarterly!AZ208","v":-3.3333333333333286},{"$f":"Quarterly!BA212-Quarterly!BA208","v":-5.4333333333333371},{"$f":"Quarterly!BB212-Quarterly!BB208","v":-5.4666666666666757},{"$f":"((Quarterly!BC212/Quarterly!BC208)-1)","v":-0.29269576404998154},{"$f":"((Quarterly!BD212/Quarterly!BD208)-1)","v":-0.10266525105713087},{"$f":"((Quarterly!BE212/Quarterly!BE208)-1)","v":0.16453934686149041},{"$f":"((Quarterly!BF212/Quarterly!BF208)-1)","v":1.8462007934086033E-2},{"$f":"((Quarterly!BG212/Quarterly!BG208)-1)","v":2.3101529473478433E-2},{"$f":"((Quarterly!BH212/Quarterly!BH208)-1)","v":2.8103092362090409E-2},{"$f":"((Quarterly!BI212/Quarterly!BI208)-1)","v":-4.5293617357937688E-3},{"$f":"((Quarterly!BJ212/Quarterly!BJ208)-1)","v":-0.28224309011625459},{"$f":"((Quarterly!BK212/Quarterly!BK208)-1)","v":1.8082191780821915},null,{"$f":"((Quarterly!BM212/Quarterly!BM208)-1)","v":-0.10677188165091556},{"$f":"((Quarterly!BN212/Quarterly!BN208)-1)","v":-0.11802011760483233},null,null,null,null,null,{"$f":"((Quarterly!BT212/Quarterly!BT208)-1)","v":6.5595772382162298E-2},{"$f":"Quarterly!BU212-Quarterly!BU208","v":-0.36098999999999926},{"$f":"Quarterly!BV212-Quarterly!BV208","v":-1.6610000000000014E-2},{"$f":"((Quarterly!BW212/Quarterly!BW208)-1)","v":0.11624617020713002},{"$f":"((Quarterly!BX212/Quarterly!BX208)-1)","v":-0.47130606860158308},{"$f":"((Quarterly!BY212/Quarterly!BY208)-1)","v":-0.47282437951617962},{"$f":"((Quarterly!BZ212/Quarterly!BZ208)-1)","v":-0.16794672847630088},{"$f":"((Quarterly!CA212/Quarterly!CA208)-1)","v":-0.3173056655034312},{"$f":"((Quarterly!CB212/Quarterly!CB208)-1)","v":-0.13306770926402844},{"$f":"((Quarterly!CC212/Quarterly!CC208)-1)","v":0.11165726733010639},{"$f":"((Quarterly!CD212/Quarterly!CD208)-1)","v":-0.35193452380952384},{"$f":"((Quarterly!CE212/Quarterly!CE208)-1)","v":-0.27570399476096918},null,{"$f":"((Quarterly!CG212/Quarterly!CG208)-1)","v":-0.13616268788682584},{"$f":"((Quarterly!CH212/Quarterly!CH208)-1)","v":-1.944894651539697E-2},null,{"$f":"((Quarterly!CJ212/Quarterly!CJ208)-1)","v":-0.27570399476096918},{"$f":"((Quarterly!CK212/Quarterly!CK208)-1)","v":-4.7382846481988317E-2},{"$f":"((Quarterly!CL212/Quarterly!CL208)-1)","v":0.23086627417998318},{"$f":"((Quarterly!CM212/Quarterly!CM208)-1)","v":-0.36404382470119523},{"$f":"((Quarterly!CN212/Quarterly!CN208)-1)","v":-1.1554216975466436E-2},{"$f":"((Quarterly!CO212/Quarterly!CO208)-1)","v":0.10499371519424638},{"$f":"((Quarterly!CP212/Quarterly!CP208)-1)","v":-2.0597787984792504E-2},{"$f":"((Quarterly!CQ212/Quarterly!CQ208)-1)","v":8.7415497986846891E-3},{"$f":"((Quarterly!CR212/Quarterly!CR208)-1)","v":-7.7762514375045888E-2},{"$f":"Quarterly!CS212-Quarterly!CS208","v":8.6000000000000014},{"$f":"Quarterly!CT212-Quarterly!CT208","v":-9.0000000000000142},null,null,null,null,null,{"$f":"((Quarterly!CZ212/Quarterly!CZ208)-1)","v":-1.4661010527162177E-2},{"$f":"((Quarterly!DA212/Quarterly!DA208)-1)","v":1.8299944179122951E-2},null,null,null,null,null,{"$f":"((Quarterly!DG212/Quarterly!DG208)-1)","v":-7.7808901338313197E-2},{"$f":"((Quarterly!DH212-Quarterly!DH208)*60)","v":-39.999999999999858},{"$f":"Quarterly!DI212-Quarterly!DI208","v":-0.3333333333333286},{"$f":"(Quarterly!DJ212-Quarterly!DJ208)*100","v":663.33333333333348},{"$f":"(Quarterly!DK212-Quarterly!DK208)*100","v":396.66666666666657},{"$f":"((Quarterly!DL212/Quarterly!DL208)-1)","v":-0.12415472004327832},null,null,null,{"$f":"((Quarterly!DP212/Quarterly!DP208)-1)","v":-4.6625084614640655E-2},null,null,null,null,{"$f":"Quarterly!DU212-Quarterly!DU208","v":6.0666666666666664},{"$f":"((Quarterly!DV212/Quarterly!DV208)-1)","v":-9.6558272015191071E-2},{"$f":"((Quarterly!DW212/Quarterly!DW208)-1)","v":-9.7987502079026623E-2},{"$f":"((Quarterly!DX212/Quarterly!DX208)-1)","v":-0.1011898708430794},{"$f":"((Quarterly!DY212/Quarterly!DY208)-1)","v":-0.10208514335360552},{"$f":"((Quarterly!DZ212/Quarterly!DZ208)-1)","v":-0.10091621298632325},{"$f":"((Quarterly!EA212/Quarterly!EA208)-1)","v":-9.8555437433556548E-2},{"$f":"((Quarterly!EB212/Quarterly!EB208)-1)","v":-0.106634353226295},{"$f":"((Quarterly!EC212/Quarterly!EC208)-1)","v":-9.0482999682236831E-2},null,null,null,null,null,{"$f":"((Quarterly!EI212/Quarterly!EI208)-1)","v":-0.10016459178470427},{"$f":"((Quarterly!EJ212/Quarterly!EJ208)-1)","v":-4.8675515506533595E-2},{"$f":"((Quarterly!EK212/Quarterly!EK208)-1)","v":-3.1601387526221103E-2},null,null,null,null,null,{"$f":"((Quarterly!EQ212/Quarterly!EQ208)-1)","v":-0.12585034013605434},{"$f":"((Quarterly!ER212/Quarterly!ER208)-1)","v":3.1281331461800344E-2},{"$f":"((Quarterly!ES212/Quarterly!ES208)-1)","v":2.4847428073234479E-2},null,null,null,null,null,{"$f":"(Quarterly!EY212-Quarterly!EY208)*100","v":-183},{"$f":"(Quarterly!EZ212-Quarterly!EZ208)*100","v":-190.66666666666666},{"$f":"(Quarterly!FA212-Quarterly!FA208)*100","v":-8.666666666666778},{"$f":"(Quarterly!FB212-Quarterly!FB208)*100","v":99.333333333333499},"--",{"$f":"(Quarterly!FD212-Quarterly!FD208)*100","v":-106.33333333333334},{"$f":"(Quarterly!FE212-Quarterly!FE208)*100","v":-145.33333333333334},{"$f":"(Quarterly!FF212-Quarterly!FF208)*100","v":-155.33333333333331},{"$f":"(Quarterly!FG212-Quarterly!FG208)*100","v":-141},{"$f":"(Quarterly!FH212-Quarterly!FH208)*100","v":-92.666666666666671},{"$f":"(Quarterly!FI212-Quarterly!FI208)*100","v":-57.333333333333279},null,null,null,null,null,null,{"$f":"((Quarterly!FP212/Quarterly!FP208)-1)","v":0.15639028254555054},{"$f":"((Quarterly!FQ212/Quarterly!FQ208)-1)","v":-1.8398294324797004E-2},{"$f":"((Quarterly!FR212/Quarterly!FR208)-1)","v":0.2766915177943452},{"$f":"((Quarterly!FS212/Quarterly!FS208)-1)","v":-0.12824834649029226},{"$f":"((Quarterly!FT212/Quarterly!FT208)-1)","v":0.11657221490199765},{"$f":"((Quarterly!FU212/Quarterly!FU208)-1)","v":0.12336902379306491},{"$f":"((Quarterly!FV212/Quarterly!FV208)-1)","v":-0.43786797314759229},{"$f":"((Quarterly!FW212/Quarterly!FW208)-1)","v":-0.15811832652900992},{"$f":"((Quarterly!FX212/Quarterly!FX208)-1)","v":-0.28471123348785343},null,null,null,null,null,{"$f":"((Quarterly!GD212/Quarterly!GD208)-1)","v":-0.51966979483180509},{"$f":"((Quarterly!GE212/Quarterly!GE208)-1)","v":-0.51648864603640954},{"$f":"((Quarterly!GF212/Quarterly!GF208)-1)","v":-0.38062760997245837},{"$f":"((Quarterly!GG212/Quarterly!GG208)-1)","v":-0.47095404216593351},{"$f":"((Quarterly!GH212/Quarterly!GH208)-1)","v":{"$error":"#DIV/0!"}},"--",{"$f":"((Quarterly!GJ212/Quarterly!GJ208)-1)","v":-0.66824369430818797},{"$f":"((Quarterly!GK212/Quarterly!GK208)-1)","v":-0.12927817041213374},"--"]
["09'Q3",{"$f":"((Quarterly!B213/Quarterly!B209)-1)","v":-3.0912788891559018E-2},{"$f":"((Quarterly!C213/Quarterly!C209)-1)","v":-3.2848356625256092E-2},{"$f":"((Quarterly!D213/Quarterly!D209)-1)","v":-2.0489109363620694E-2},{"$f":"((Quarterly!E213/Quarterly!E209)-1)","v":-1.3912950771608923E-2},{"$f":"((Quarterly!F213/Quarterly!F209)-1)","v":-3.1467994222672879E-2},{"$f":"((Quarterly!G213/Quarterly!G209)-1)","v":-1.79311384012657E-2},{"$f":"((Quarterly!H213/Quarterly!H209)-1)","v":-9.7494558789914532E-3},{"$f":"((Quarterly!I213/Quarterly!I209)-1)","v":-0.16549221999133978},{"$f":"((Quarterly!J213/Quarterly!J209)-1)","v":-0.14309138546585287},{"$f":"((Quarterly!K213/Quarterly!K209)-1)","v":-0.1945629920858839},{"$f":"((Quarterly!L213-Quarterly!L209))","v":-185.39600000000002},{"$f":"((Quarterly!M213/Quarterly!M209)-1)","v":-0.13783124207382702},{"$f":"((Quarterly!N213/Quarterly!N209)-1)","v":-9.7828173331664936E-2},{"$f":"((Quarterly!O213/Quarterly!O209)-1)","v":-0.27191276078486459},{"$f":"((Quarterly!P213/Quarterly!P209)-1)","v":3.2106376284289695E-2},{"$f":"((Quarterly!Q213/Quarterly!Q209)-1)","v":1.0205911692288216},null,null,null,null,null,{"$f":"((Quarterly!W213/Quarterly!W209)-1)","v":-0.11502029769959399},{"$f":"((Quarterly!X213/Quarterly!X209)-1)","v":-0.11591695501730104},{"$f":"((Quarterly!Y213/Quarterly!Y209)-1)","v":-0.10095538173770879},{"$f":"Quarterly!Z213-Quarterly!Z209","v":1.43},{"$f":"((Quarterly!AA213/Quarterly!AA209)-1)","v":7.0965989049673439E-2},{"$f":"((Quarterly!AB213/Quarterly!AB209)-1)","v":0.11290846648204056},{"$f":"Quarterly!AC213-Quarterly!AC209","v":-1.9},{"$f":"Quarterly!AD213-Quarterly!AD209","v":-39.300000000000004},{"$f":"(Quarterly!AE213-Quarterly!AE209)*100","v":275},{"$f":"(Quarterly!AF213-Quarterly!AF209)*100","v":143},{"$f":"(Quarterly!AG213-Quarterly!AG209)*100","v":128.00000000000003},{"$f":"((Quarterly!AH213/Quarterly!AH209)-1)","v":3.0566120941513786E-2},{"$f":"((Quarterly!AI213/Quarterly!AI209)-1)","v":0.12764824844679401},{"$f":"((Quarterly!AJ213/Quarterly!AJ209)-1)","v":1.0232558139534831E-2},{"$f":"((Quarterly!AK213/Quarterly!AK209)-1)","v":1.1970534069981609E-2},{"$f":"((Quarterly!AL213/Quarterly!AL209)-1)","v":1.3761467889908285E-2},{"$f":"((Quarterly!AM213/Quarterly!AM209)-1)","v":-0.11099708676504183},{"$f":"((Quarterly!AN213/Quarterly!AN209)-1)","v":-0.13063563217711927},{"$f":"((Quarterly!AO213/Quarterly!AO209)-1)","v":-0.13706216752655509},{"$f":"(Quarterly!AP213-Quarterly!AP209)*100","v":4.3333333333333446},{"$f":"Quarterly!AQ213-Quarterly!AQ209","v":4.6000000000000014},{"$f":"Quarterly!AR213-Quarterly!AR209","v":11.5},{"$f":"Quarterly!AS213-Quarterly!AS209","v":-11.5},{"$f":"Quarterly!AT213-Quarterly!AT209","v":-0.46666666666666146},{"$f":"Quarterly!AU213-Quarterly!AU209","v":-0.6666666666666714},{"$f":"Quarterly!AV213-Quarterly!AV209","v":4.1666666666666643},{"$f":"Quarterly!AW213-Quarterly!AW209","v":-9.1666666666666714},{"$f":"Quarterly!AX213-Quarterly!AX209","v":16.899999999999999},{"$f":"Quarterly!AY213-Quarterly!AY209","v":-11.833333333333336},{"$f":"Quarterly!AZ213-Quarterly!AZ209","v":10.700000000000003},{"$f":"Quarterly!BA213-Quarterly!BA209","v":3.6000000000000014},{"$f":"Quarterly!BB213-Quarterly!BB209","v":0.13333333333332575},{"$f":"((Quarterly!BC213/Quarterly!BC209)-1)","v":-0.21934054147039928},{"$f":"((Quarterly!BD213/Quarterly!BD209)-1)","v":-6.3460964323033275E-2},{"$f":"((Quarterly!BE213/Quarterly!BE209)-1)","v":0.10549982322785945},{"$f":"((Quarterly!BF213/Quarterly!BF209)-1)","v":1.6550180024810013E-2},{"$f":"((Quarterly!BG213/Quarterly!BG209)-1)","v":3.5180416337502241E-2},{"$f":"((Quarterly!BH213/Quarterly!BH209)-1)","v":3.3148148148148149E-2},{"$f":"((Quarterly!BI213/Quarterly!BI209)-1)","v":-1.7998977665932614E-2},{"$f":"((Quarterly!BJ213/Quarterly!BJ209)-1)","v":-0.22547153602001091},{"$f":"((Quarterly!BK213/Quarterly!BK209)-1)","v":1.7874999999999996},null,{"$f":"((Quarterly!BM213/Quarterly!BM209)-1)","v":-7.9054113530089065E-2},{"$f":"((Quarterly!BN213/Quarterly!BN209)-1)","v":-8.6092562675461726E-2},null,null,null,null,null,{"$f":"((Quarterly!BT213/Quarterly!BT209)-1)","v":2.3651389028939818E-2},{"$f":"Quarterly!BU213-Quarterly!BU209","v":-0.61005999999999894},{"$f":"Quarterly!BV213-Quarterly!BV209","v":-0.33491000000000071},{"$f":"((Quarterly!BW213/Quarterly!BW209)-1)","v":0.11927845810633553},{"$f":"((Quarterly!BX213/Quarterly!BX209)-1)","v":-0.31774255894858905},{"$f":"((Quarterly!BY213/Quarterly!BY209)-1)","v":-0.29347826086956519},{"$f":"((Quarterly!BZ213/Quarterly!BZ209)-1)","v":-0.11500123568663012},{"$f":"((Quarterly!CA213/Quarterly!CA209)-1)","v":-0.10077223029283577},{"$f":"((Quarterly!CB213/Quarterly!CB209)-1)","v":-0.28672152049403377},{"$f":"((Quarterly!CC213/Quarterly!CC209)-1)","v":-4.4207062678275011E-2},{"$f":"((Quarterly!CD213/Quarterly!CD209)-1)","v":-0.35977105478331972},{"$f":"((Quarterly!CE213/Quarterly!CE209)-1)","v":-9.6654275092936781E-2},null,{"$f":"((Quarterly!CG213/Quarterly!CG209)-1)","v":-0.1123188405797102},{"$f":"((Quarterly!CH213/Quarterly!CH209)-1)","v":5.4718477398889798E-2},null,{"$f":"((Quarterly!CJ213/Quarterly!CJ209)-1)","v":-9.6654275092936781E-2},{"$f":"((Quarterly!CK213/Quarterly!CK209)-1)","v":-3.737689051498605E-2},{"$f":"((Quarterly!CL213/Quarterly!CL209)-1)","v":0.33401221995926678},{"$f":"((Quarterly!CM213/Quarterly!CM209)-1)","v":-0.14383172256964194},{"$f":"((Quarterly!CN213/Quarterly!CN209)-1)","v":5.8409964556460636E-4},{"$f":"((Quarterly!CO213/Quarterly!CO209)-1)","v":0.13153596119260147},{"$f":"((Quarterly!CP213/Quarterly!CP209)-1)","v":-3.0564049690410156E-2},{"$f":"((Quarterly!CQ213/Quarterly!CQ209)-1)","v":8.6521146213962563E-3},{"$f":"((Quarterly!CR213/Quarterly!CR209)-1)","v":-6.2901161345979895E-2},{"$f":"Quarterly!CS213-Quarterly!CS209","v":3.5666666666666629},{"$f":"Quarterly!CT213-Quarterly!CT209","v":-5.5},null,null,null,null,null,{"$f":"((Quarterly!CZ213/Quarterly!CZ209)-1)","v":-1.6069560131773408E-2},{"$f":"((Quarterly!DA213/Quarterly!DA209)-1)","v":1.4802694928597981E-2},null,null,null,null,null,{"$f":"((Quarterly!DG213/Quarterly!DG209)-1)","v":-7.4504872681546819E-2},{"$f":"((Quarterly!DH213-Quarterly!DH209)*60)","v":-31.999999999999886},{"$f":"Quarterly!DI213-Quarterly!DI209","v":-0.73333333333333428},{"$f":"(Quarterly!DJ213-Quarterly!DJ209)*100","v":583.33333333333326},{"$f":"(Quarterly!DK213-Quarterly!DK209)*100","v":363.33333333333348},{"$f":"((Quarterly!DL213/Quarterly!DL209)-1)","v":-0.12924643686194248},null,null,null,{"$f":"((Quarterly!DP213/Quarterly!DP209)-1)","v":-4.8788963492723103E-2},null,null,null,null,{"$f":"Quarterly!DU213-Quarterly!DU209","v":6.8333333333333339},{"$f":"((Quarterly!DV213/Quarterly!DV209)-1)","v":-9.1690613605080684E-2},{"$f":"((Quarterly!DW213/Quarterly!DW209)-1)","v":-9.099118366958947E-2},{"$f":"((Quarterly!DX213/Quarterly!DX209)-1)","v":-0.10263740003403099},{"$f":"((Quarterly!DY213/Quarterly!DY209)-1)","v":-0.10901769020566654},{"$f":"((Quarterly!DZ213/Quarterly!DZ209)-1)","v":-0.10065977175463603},{"$f":"((Quarterly!EA213/Quarterly!EA209)-1)","v":-0.10939849624060149},{"$f":"((Quarterly!EB213/Quarterly!EB209)-1)","v":-7.9110012360939397E-2},{"$f":"((Quarterly!EC213/Quarterly!EC209)-1)","v":-6.4035916824196626E-2},null,null,null,null,null,{"$f":"((Quarterly!EI213/Quarterly!EI209)-1)","v":-7.4903044074916214E-2},{"$f":"((Quarterly!EJ213/Quarterly!EJ209)-1)","v":-3.0637775163996461E-2},{"$f":"((Quarterly!EK213/Quarterly!EK209)-1)","v":-2.0591331588248218E-2},null,null,null,null,null,{"$f":"((Quarterly!EQ213/Quarterly!EQ209)-1)","v":-0.13269038909211839},{"$f":"((Quarterly!ER213/Quarterly!ER209)-1)","v":2.0618556701031077E-2},{"$f":"((Quarterly!ES213/Quarterly!ES209)-1)","v":1.3802027172740816E-2},null,null,null,null,null,{"$f":"(Quarterly!EY213-Quarterly!EY209)*100","v":-175},{"$f":"(Quarterly!EZ213-Quarterly!EZ209)*100","v":-178.33333333333334},{"$f":"(Quarterly!FA213-Quarterly!FA209)*100","v":-38.666666666666671},{"$f":"(Quarterly!FB213-Quarterly!FB209)*100","v":-54.666666666666686},"--",{"$f":"(Quarterly!FD213-Quarterly!FD209)*100","v":-116.00000000000001},{"$f":"(Quarterly!FE213-Quarterly!FE209)*100","v":-133.66666666666666},{"$f":"(Quarterly!FF213-Quarterly!FF209)*100","v":-167.66666666666669},{"$f":"(Quarterly!FG213-Quarterly!FG209)*100","v":-132.33333333333334},{"$f":"(Quarterly!FH213-Quarterly!FH209)*100","v":-64.000000000000057},{"$f":"(Quarterly!FI213-Quarterly!FI209)*100","v":-34.666666666666622},null,null,null,null,null,null,{"$f":"((Quarterly!FP213/Quarterly!FP209)-1)","v":5.3445130732550306E-2},{"$f":"((Quarterly!FQ213/Quarterly!FQ209)-1)","v":-1.0091456874865568E-3},{"$f":"((Quarterly!FR213/Quarterly!FR209)-1)","v":0.28354432830667253},{"$f":"((Quarterly!FS213/Quarterly!FS209)-1)","v":-4.7119140625E-2},{"$f":"((Quarterly!FT213/Quarterly!FT209)-1)","v":5.8355046374149566E-2},{"$f":"((Quarterly!FU213/Quarterly!FU209)-1)","v":2.4964464767281758E-2},{"$f":"((Quarterly!FV213/Quarterly!FV209)-1)","v":-0.36959863439020035},{"$f":"((Quarterly!FW213/Quarterly!FW209)-1)","v":-0.17458816824181445},{"$f":"((Quarterly!FX213/Quarterly!FX209)-1)","v":-0.20136539241801488},null,null,null,null,null,{"$f":"((Quarterly!GD213/Quarterly!GD209)-1)","v":-0.42192400056505164},{"$f":"((Quarterly!GE213/Quarterly!GE209)-1)","v":-0.40382878288994428},{"$f":"((Quarterly!GF213/Quarterly!GF209)-1)","v":-0.32191715996696024},{"$f":"((Quarterly!GG213/Quarterly!GG209)-1)","v":-0.40133548238544792},{"$f":"((Quarterly!GH213/Quarterly!GH209)-1)","v":{"$error":"#DIV/0!"}},"--",{"$f":"((Quarterly!GJ213/Quarterly!GJ209)-1)","v":-0.61575987785349873},{"$f":"((Quarterly!GK213/Quarterly!GK209)-1)","v":-0.19187069931188994},"--"]
["09'Q4",{"$f":"((Quarterly!B214/Quarterly!B210)-1)","v":1.1382857768091892E-3},{"$f":"((Quarterly!C214/Quarterly!C210)-1)","v":-2.4068077177825664E-3},{"$f":"((Quarterly!D214/Quarterly!D210)-1)","v":-4.3058764794133841E-3},{"$f":"((Quarterly!E214/Quarterly!E210)-1)","v":-2.0165777528983186E-3},{"$f":"((Quarterly!F214/Quarterly!F210)-1)","v":2.4633314571399945E-2},{"$f":"((Quarterly!G214/Quarterly!G210)-1)","v":2.249185244120655E-3},{"$f":"((Quarterly!H214/Quarterly!H210)-1)","v":-7.6016496773777531E-3},{"$f":"((Quarterly!I214/Quarterly!I210)-1)","v":-0.12180462033439399},{"$f":"((Quarterly!J214/Quarterly!J210)-1)","v":-6.0404292418489769E-2},{"$f":"((Quarterly!K214/Quarterly!K210)-1)","v":-0.10799020668758796},{"$f":"((Quarterly!L214-Quarterly!L210))","v":17.78},{"$f":"((Quarterly!M214/Quarterly!M210)-1)","v":-6.1906402959926665E-2},{"$f":"((Quarterly!N214/Quarterly!N210)-1)","v":8.1899988677420765E-3},{"$f":"((Quarterly!O214/Quarterly!O210)-1)","v":-0.28255667256917572},{"$f":"((Quarterly!P214/Quarterly!P210)-1)","v":2.3367179620288336E-2},{"$f":"((Quarterly!Q214/Quarterly!Q210)-1)","v":0.8741084322174153},null,null,null,null,null,{"$f":"((Quarterly!W214/Quarterly!W210)-1)","v":-4.1547277936962668E-2},{"$f":"((Quarterly!X214/Quarterly!X210)-1)","v":-5.6586690810321527E-2},{"$f":"((Quarterly!Y214/Quarterly!Y210)-1)","v":-0.1816732088309515},{"$f":"Quarterly!Z214-Quarterly!Z210","v":1.41},{"$f":"((Quarterly!AA214/Quarterly!AA210)-1)","v":1.046882539720364},{"$f":"((Quarterly!AB214/Quarterly!AB210)-1)","v":0.54671386677521516},{"$f":"Quarterly!AC214-Quarterly!AC210","v":-8.9},{"$f":"Quarterly!AD214-Quarterly!AD210","v":-28.300000000000004},{"$f":"(Quarterly!AE214-Quarterly!AE210)*100","v":265.99999999999994},{"$f":"(Quarterly!AF214-Quarterly!AF210)*100","v":141},{"$f":"(Quarterly!AG214-Quarterly!AG210)*100","v":137},{"$f":"((Quarterly!AH214/Quarterly!AH210)-1)","v":0.15315478892419421},{"$f":"((Quarterly!AI214/Quarterly!AI210)-1)","v":0.14203206510235522},{"$f":"((Quarterly!AJ214/Quarterly!AJ210)-1)","v":1.1121408711770142E-2},{"$f":"((Quarterly!AK214/Quarterly!AK210)-1)","v":1.1915673693859041E-2},{"$f":"((Quarterly!AL214/Quarterly!AL210)-1)","v":1.3698630136986356E-2},{"$f":"((Quarterly!AM214/Quarterly!AM210)-1)","v":-5.7242523216240127E-2},{"$f":"((Quarterly!AN214/Quarterly!AN210)-1)","v":-6.0216724148570155E-2},{"$f":"((Quarterly!AO214/Quarterly!AO210)-1)","v":-0.10990920955607486},{"$f":"(Quarterly!AP214-Quarterly!AP210)*100","v":-12.999999999999989},{"$f":"Quarterly!AQ214-Quarterly!AQ210","v":19.066666666666663},{"$f":"Quarterly!AR214-Quarterly!AR210","v":25.333333333333336},{"$f":"Quarterly!AS214-Quarterly!AS210","v":-18.833333333333329},{"$f":"Quarterly!AT214-Quarterly!AT210","v":19.100000000000009},{"$f":"Quarterly!AU214-Quarterly!AU210","v":16.166666666666671},{"$f":"Quarterly!AV214-Quarterly!AV210","v":13.333333333333336},{"$f":"Quarterly!AW214-Quarterly!AW210","v":2.5},{"$f":"Quarterly!AX214-Quarterly!AX210","v":33.6},{"$f":"Quarterly!AY214-Quarterly!AY210","v":33.666666666666671},{"$f":"Quarterly!AZ214-Quarterly!AZ210","v":31.600000000000009},{"$f":"Quarterly!BA214-Quarterly!BA210","v":9.0333333333333314},{"$f":"Quarterly!BB214-Quarterly!BB210","v":14.200000000000003},{"$f":"((Quarterly!BC214/Quarterly!BC210)-1)","v":-9.3143148820326704E-2},{"$f":"((Quarterly!BD214/Quarterly!BD210)-1)","v":-2.5773695327792057E-3},{"$f":"((Quarterly!BE214/Quarterly!BE210)-1)","v":2.8504920554094815E-2},{"$f":"((Quarterly!BF214/Quarterly!BF210)-1)","v":1.1842761648209077E-2},{"$f":"((Quarterly!BG214/Quarterly!BG210)-1)","v":5.4255242264369175E-2},{"$f":"((Quarterly!BH214/Quarterly!BH210)-1)","v":-2.9534899909505752E-3},{"$f":"((Quarterly!BI214/Quarterly!BI210)-1)","v":-4.0219555091706827E-2},{"$f":"((Quarterly!BJ214/Quarterly!BJ210)-1)","v":0.56161741496598649},{"$f":"((Quarterly!BK214/Quarterly!BK210)-1)","v":1.4842105263157896},null,{"$f":"((Quarterly!BM214/Quarterly!BM210)-1)","v":7.3386277614990725E-3},{"$f":"((Quarterly!BN214/Quarterly!BN210)-1)","v":9.7394146466827092E-3},null,null,null,null,null,{"$f":"((Quarterly!BT214/Quarterly!BT210)-1)","v":-3.3345986428012342E-2},{"$f":"Quarterly!BU214-Quarterly!BU210","v":-0.82608999999999888},{"$f":"Quarterly!BV214-Quarterly!BV210","v":-0.68012000000000228},{"$f":"((Quarterly!BW214/Quarterly!BW210)-1)","v":0.10843740368498356},{"$f":"((Quarterly!BX214/Quarterly!BX210)-1)","v":-0.14379084967320266},{"$f":"((Quarterly!BY214/Quarterly!BY210)-1)","v":-2.4008350730688854E-2},{"$f":"((Quarterly!BZ214/Quarterly!BZ210)-1)","v":-5.2497883149873026E-2},{"$f":"((Quarterly!CA214/Quarterly!CA210)-1)","v":3.8149507436739505E-2},{"$f":"((Quarterly!CB214/Quarterly!CB210)-1)","v":0.35011543544872636},{"$f":"((Quarterly!CC214/Quarterly!CC210)-1)","v":0.38504837994539121},{"$f":"((Quarterly!CD214/Quarterly!CD210)-1)","v":-0.35384615384615381},{"$f":"((Quarterly!CE214/Quarterly!CE210)-1)","v":-3.106125970664364E-2},null,{"$f":"((Quarterly!CG214/Quarterly!CG210)-1)","v":-0.14763779527559051},{"$f":"((Quarterly!CH214/Quarterly!CH210)-1)","v":0.25442291491154156},null,{"$f":"((Quarterly!CJ214/Quarterly!CJ210)-1)","v":-3.106125970664364E-2},{"$f":"((Quarterly!CK214/Quarterly!CK210)-1)","v":-2.0411568259674717E-2},{"$f":"((Quarterly!CL214/Quarterly!CL210)-1)","v":-6.3623019689224236E-2},{"$f":"((Quarterly!CM214/Quarterly!CM210)-1)","v":3.7749287749287763E-2},{"$f":"((Quarterly!CN214/Quarterly!CN210)-1)","v":-7.1343710784508296E-3},{"$f":"((Quarterly!CO214/Quarterly!CO210)-1)","v":0.17530234471410955},{"$f":"((Quarterly!CP214/Quarterly!CP210)-1)","v":-3.651845371621143E-2},{"$f":"((Quarterly!CQ214/Quarterly!CQ210)-1)","v":8.607458052813266E-3},{"$f":"((Quarterly!CR214/Quarterly!CR210)-1)","v":-8.291114614103523E-2},{"$f":"Quarterly!CS214-Quarterly!CS210","v":12.500000000000007},{"$f":"Quarterly!CT214-Quarterly!CT210","v":10.266666666666673},null,null,null,null,null,{"$f":"((Quarterly!CZ214/Quarterly!CZ210)-1)","v":1.4876563800569231E-2},{"$f":"((Quarterly!DA214/Quarterly!DA210)-1)","v":1.7502228506439677E-2},null,null,null,null,null,{"$f":"((Quarterly!DG214/Quarterly!DG210)-1)","v":-5.7519280205655554E-2},{"$f":"((Quarterly!DH214-Quarterly!DH210)*60)","v":-15.999999999999943},{"$f":"Quarterly!DI214-Quarterly!DI210","v":-1.0333333333333314},{"$f":"(Quarterly!DJ214-Quarterly!DJ210)*100","v":443.33333333333354},{"$f":"(Quarterly!DK214-Quarterly!DK210)*100","v":306.66666666666646},{"$f":"((Quarterly!DL214/Quarterly!DL210)-1)","v":-0.11552355819733029},null,null,null,{"$f":"((Quarterly!DP214/Quarterly!DP210)-1)","v":-4.1323655247705871E-2},null,null,null,null,{"$f":"Quarterly!DU214-Quarterly!DU210","v":9.3666666666666671},{"$f":"((Quarterly!DV214/Quarterly!DV210)-1)","v":-8.0408816648195991E-2},{"$f":"((Quarterly!DW214/Quarterly!DW210)-1)","v":-7.985831195798232E-2},{"$f":"((Quarterly!DX214/Quarterly!DX210)-1)","v":-8.9158221014871253E-2},{"$f":"((Quarterly!DY214/Quarterly!DY210)-1)","v":-8.7859899079845594E-2},{"$f":"((Quarterly!DZ214/Quarterly!DZ210)-1)","v":-8.9556313993174097E-2},{"$f":"((Quarterly!EA214/Quarterly!EA210)-1)","v":-0.10592573753814871},{"$f":"((Quarterly!EB214/Quarterly!EB210)-1)","v":-4.834320473827447E-2},{"$f":"((Quarterly!EC214/Quarterly!EC210)-1)","v":-5.8010145639011523E-2},null,null,null,null,null,{"$f":"((Quarterly!EI214/Quarterly!EI210)-1)","v":-2.659247961622202E-2},{"$f":"((Quarterly!EJ214/Quarterly!EJ210)-1)","v":-3.1550282193637535E-4},{"$f":"((Quarterly!EK214/Quarterly!EK210)-1)","v":8.1749957585097732E-4},null,null,null,null,null,{"$f":"((Quarterly!EQ214/Quarterly!EQ210)-1)","v":-6.3658490919302757E-3},{"$f":"((Quarterly!ER214/Quarterly!ER210)-1)","v":7.8170803205004358E-3},{"$f":"((Quarterly!ES214/Quarterly!ES210)-1)","v":-2.126302360195842E-4},null,null,null,null,null,{"$f":"(Quarterly!EY214-Quarterly!EY210)*100","v":-80.666666666666572},{"$f":"(Quarterly!EZ214-Quarterly!EZ210)*100","v":-38.666666666666657},{"$f":"(Quarterly!FA214-Quarterly!FA210)*100","v":-61.666666666666629},{"$f":"(Quarterly!FB214-Quarterly!FB210)*100","v":-251.33333333333346},"--",{"$f":"(Quarterly!FD214-Quarterly!FD210)*100","v":-95.333333333333229},{"$f":"(Quarterly!FE214-Quarterly!FE210)*100","v":-24.000000000000004},{"$f":"(Quarterly!FF214-Quarterly!FF210)*100","v":-64.333333333333357},{"$f":"(Quarterly!FG214-Quarterly!FG210)*100","v":-34},{"$f":"(Quarterly!FH214-Quarterly!FH210)*100","v":12.000000000000055},{"$f":"(Quarterly!FI214-Quarterly!FI210)*100","v":20.666666666666611},null,null,null,null,null,null,{"$f":"((Quarterly!FP214/Quarterly!FP210)-1)","v":-0.12867556044560591},{"$f":"((Quarterly!FQ214/Quarterly!FQ210)-1)","v":-1.7789431615474749E-3},{"$f":"((Quarterly!FR214/Quarterly!FR210)-1)","v":1.6839054359540917E-4},{"$f":"((Quarterly!FS214/Quarterly!FS210)-1)","v":0.12112547759419034},{"$f":"((Quarterly!FT214/Quarterly!FT210)-1)","v":-6.7831688841105242E-2},{"$f":"((Quarterly!FU214/Quarterly!FU210)-1)","v":-0.10575057625226958},{"$f":"((Quarterly!FV214/Quarterly!FV210)-1)","v":-9.3507302178514218E-2},{"$f":"((Quarterly!FW214/Quarterly!FW210)-1)","v":-4.3573301410326781E-2},{"$f":"((Quarterly!FX214/Quarterly!FX210)-1)","v":4.3020931944882879E-2},null,null,null,null,null,{"$f":"((Quarterly!GD214/Quarterly!GD210)-1)","v":0.30318085774655912},{"$f":"((Quarterly!GE214/Quarterly!GE210)-1)","v":0.36534943285766541},{"$f":"((Quarterly!GF214/Quarterly!GF210)-1)","v":0.18301258327165071},{"$f":"((Quarterly!GG214/Quarterly!GG210)-1)","v":-7.7744073699584471E-2},{"$f":"((Quarterly!GH214/Quarterly!GH210)-1)","v":{"$error":"#DIV/0!"}},"--",{"$f":"((Quarterly!GJ214/Quarterly!GJ210)-1)","v":-0.23250611310545743},{"$f":"((Quarterly!GK214/Quarterly!GK210)-1)","v":-0.1057324840764331},"--"]
["10'Q1",{"$f":"((Quarterly!B215/Quarterly!B211)-1)","v":2.0660482199350128E-2},{"$f":"((Quarterly!C215/Quarterly!C211)-1)","v":1.5987945197703413E-2},{"$f":"((Quarterly!D215/Quarterly!D211)-1)","v":4.4175281735732153E-3},{"$f":"((Quarterly!E215/Quarterly!E211)-1)","v":6.7879198037388289E-3},{"$f":"((Quarterly!F215/Quarterly!F211)-1)","v":3.6221825632890337E-2},{"$f":"((Quarterly!G215/Quarterly!G211)-1)","v":9.8463420227814513E-3},{"$f":"((Quarterly!H215/Quarterly!H211)-1)","v":1.2107506654128741E-3},{"$f":"((Quarterly!I215/Quarterly!I211)-1)","v":-4.3374398869379882E-2},{"$f":"((Quarterly!J215/Quarterly!J211)-1)","v":4.8047687028827779E-2},{"$f":"((Quarterly!K215/Quarterly!K211)-1)","v":-4.4898956772003618E-2},{"$f":"((Quarterly!L215-Quarterly!L211))","v":154.31799999999998},{"$f":"((Quarterly!M215/Quarterly!M211)-1)","v":6.5572103642883572E-2},{"$f":"((Quarterly!N215/Quarterly!N211)-1)","v":0.11255979116080828},{"$f":"((Quarterly!O215/Quarterly!O211)-1)","v":-9.4273736827644394E-2},{"$f":"((Quarterly!P215/Quarterly!P211)-1)","v":1.438493531745344E-2},{"$f":"((Quarterly!Q215/Quarterly!Q211)-1)","v":0.29976608490742884},null,null,null,null,null,{"$f":"((Quarterly!W215/Quarterly!W211)-1)","v":4.587155963302747E-2},{"$f":"((Quarterly!X215/Quarterly!X211)-1)","v":2.8379028379028393E-2},{"$f":"((Quarterly!Y215/Quarterly!Y211)-1)","v":-0.19973919592753964},{"$f":"Quarterly!Z215-Quarterly!Z211","v":-1.49},{"$f":"((Quarterly!AA215/Quarterly!AA211)-1)","v":0.38872747678730102},{"$f":"((Quarterly!AB215/Quarterly!AB211)-1)","v":0.25834780551306236},{"$f":"Quarterly!AC215-Quarterly!AC211","v":-0.10000000000000053},{"$f":"Quarterly!AD215-Quarterly!AD211","v":28.1},{"$f":"(Quarterly!AE215-Quarterly!AE211)*100","v":-240.00000000000003},{"$f":"(Quarterly!AF215-Quarterly!AF211)*100","v":-149},{"$f":"(Quarterly!AG215-Quarterly!AG211)*100","v":-147.99999999999997},{"$f":"((Quarterly!AH215/Quarterly!AH211)-1)","v":0.15071020647239708},{"$f":"((Quarterly!AI215/Quarterly!AI211)-1)","v":9.5947648516718109E-2},{"$f":"((Quarterly!AJ215/Quarterly!AJ211)-1)","v":2.0351526364477346E-2},{"$f":"((Quarterly!AK215/Quarterly!AK211)-1)","v":1.6468435498627532E-2},{"$f":"((Quarterly!AL215/Quarterly!AL211)-1)","v":1.4571948998178597E-2},{"$f":"((Quarterly!AM215/Quarterly!AM211)-1)","v":1.8224250623197102E-2},{"$f":"((Quarterly!AN215/Quarterly!AN211)-1)","v":2.6291229666185911E-2},{"$f":"((Quarterly!AO215/Quarterly!AO211)-1)","v":-6.0810144034856073E-2},{"$f":"(Quarterly!AP215-Quarterly!AP211)*100","v":-19.666666666666679},{"$f":"Quarterly!AQ215-Quarterly!AQ211","v":21.800000000000004},{"$f":"Quarterly!AR215-Quarterly!AR211","v":26.333333333333336},{"$f":"Quarterly!AS215-Quarterly!AS211","v":-17.5},{"$f":"Quarterly!AT215-Quarterly!AT211","v":26.8},{"$f":"Quarterly!AU215-Quarterly!AU211","v":20.833333333333336},{"$f":"Quarterly!AV215-Quarterly!AV211","v":22.666666666666664},{"$f":"Quarterly!AW215-Quarterly!AW211","v":14.166666666666664},{"$f":"Quarterly!AX215-Quarterly!AX211","v":25.06666666666667},{"$f":"Quarterly!AY215-Quarterly!AY211","v":41},{"$f":"Quarterly!AZ215-Quarterly!AZ211","v":27.033333333333346},{"$f":"Quarterly!BA215-Quarterly!BA211","v":15.733333333333341},{"$f":"Quarterly!BB215-Quarterly!BB211","v":11.566666666666663},{"$f":"((Quarterly!BC215/Quarterly!BC211)-1)","v":8.2177554438860989E-2},{"$f":"((Quarterly!BD215/Quarterly!BD211)-1)","v":7.6669063946598115E-2},{"$f":"((Quarterly!BE215/Quarterly!BE211)-1)","v":-5.3442056443056773E-2},{"$f":"((Quarterly!BF215/Quarterly!BF211)-1)","v":3.0253424867762613E-2},{"$f":"((Quarterly!BG215/Quarterly!BG211)-1)","v":5.1534773165034187E-2},{"$f":"((Quarterly!BH215/Quarterly!BH211)-1)","v":6.7049517385271429E-3},{"$f":"((Quarterly!BI215/Quarterly!BI211)-1)","v":-2.0231675654084236E-2},{"$f":"((Quarterly!BJ215/Quarterly!BJ211)-1)","v":0.64391294263023613},{"$f":"((Quarterly!BK215/Quarterly!BK211)-1)","v":-0.85142857142857142},null,{"$f":"((Quarterly!BM215/Quarterly!BM211)-1)","v":4.4972734880501353E-2},{"$f":"((Quarterly!BN215/Quarterly!BN211)-1)","v":4.9968224330601885E-2},null,null,null,null,null,{"$f":"((Quarterly!BT215/Quarterly!BT211)-1)","v":-5.2260105765059683E-2},{"$f":"Quarterly!BU215-Quarterly!BU211","v":-0.95098999999999911},{"$f":"Quarterly!BV215-Quarterly!BV211","v":-0.92504000000000275},{"$f":"((Quarterly!BW215/Quarterly!BW211)-1)","v":0.11940763157608947},{"$f":"((Quarterly!BX215/Quarterly!BX211)-1)","v":0.17564996829422963},{"$f":"((Quarterly!BY215/Quarterly!BY211)-1)","v":0.22091584158415833},{"$f":"((Quarterly!BZ215/Quarterly!BZ211)-1)","v":9.4201237680495709E-3},{"$f":"((Quarterly!CA215/Quarterly!CA211)-1)","v":0.14849550605705342},{"$f":"((Quarterly!CB215/Quarterly!CB211)-1)","v":0.50767150277206441},{"$f":"((Quarterly!CC215/Quarterly!CC211)-1)","v":0.37492961635927524},{"$f":"((Quarterly!CD215/Quarterly!CD211)-1)","v":-0.29345603271983633},{"$f":"((Quarterly!CE215/Quarterly!CE211)-1)","v":1.4326647564469885E-2},null,{"$f":"((Quarterly!CG215/Quarterly!CG211)-1)","v":-5.1502145922746823E-2},{"$f":"((Quarterly!CH215/Quarterly!CH211)-1)","v":0.12702472293265132},null,{"$f":"((Quarterly!CJ215/Quarterly!CJ211)-1)","v":1.4326647564469885E-2},{"$f":"((Quarterly!CK215/Quarterly!CK211)-1)","v":1.4289504081531179E-2},{"$f":"((Quarterly!CL215/Quarterly!CL211)-1)","v":-0.1235955056179775},{"$f":"((Quarterly!CM215/Quarterly!CM211)-1)","v":0.47614593077642664},{"$f":"((Quarterly!CN215/Quarterly!CN211)-1)","v":-4.3077597518240696E-3},{"$f":"((Quarterly!CO215/Quarterly!CO211)-1)","v":0.14288499177343028},{"$f":"((Quarterly!CP215/Quarterly!CP211)-1)","v":-3.8045019999970564E-2},{"$f":"((Quarterly!CQ215/Quarterly!CQ211)-1)","v":8.5661631117561754E-3},{"$f":"((Quarterly!CR215/Quarterly!CR211)-1)","v":-4.763769541542251E-2},{"$f":"Quarterly!CS215-Quarterly!CS211","v":15.599999999999987},{"$f":"Quarterly!CT215-Quarterly!CT211","v":21.866666666666664},null,null,null,null,null,{"$f":"((Quarterly!CZ215/Quarterly!CZ211)-1)","v":2.352570028549783E-2},{"$f":"((Quarterly!DA215/Quarterly!DA211)-1)","v":1.3400857985494063E-2},null,null,null,null,null,{"$f":"((Quarterly!DG215/Quarterly!DG211)-1)","v":-2.8731836195508453E-2},{"$f":"((Quarterly!DH215-Quarterly!DH211)*60)","v":2.0000000000003126},{"$f":"Quarterly!DI215-Quarterly!DI211","v":-0.83333333333334281},{"$f":"(Quarterly!DJ215-Quarterly!DJ211)*100","v":186.66666666666654},{"$f":"(Quarterly!DK215-Quarterly!DK211)*100","v":156.66666666666663},{"$f":"((Quarterly!DL215/Quarterly!DL211)-1)","v":-7.4914533365635583E-2},null,null,null,{"$f":"((Quarterly!DP215/Quarterly!DP211)-1)","v":-2.625696368382624E-2},null,null,null,null,{"$f":"Quarterly!DU215-Quarterly!DU211","v":8.5333333333333297},{"$f":"((Quarterly!DV215/Quarterly!DV211)-1)","v":-5.5361557872199318E-2},{"$f":"((Quarterly!DW215/Quarterly!DW211)-1)","v":-5.597911227154051E-2},{"$f":"((Quarterly!DX215/Quarterly!DX211)-1)","v":-6.4380685794261594E-2},{"$f":"((Quarterly!DY215/Quarterly!DY211)-1)","v":-5.8169513374153992E-2},{"$f":"((Quarterly!DZ215/Quarterly!DZ211)-1)","v":-6.6221055144425889E-2},{"$f":"((Quarterly!EA215/Quarterly!EA211)-1)","v":-8.1588835212023647E-2},{"$f":"((Quarterly!EB215/Quarterly!EB211)-1)","v":-2.8306571759642352E-2},{"$f":"((Quarterly!EC215/Quarterly!EC211)-1)","v":-3.5518880617095627E-2},null,null,null,null,null,{"$f":"((Quarterly!EI215/Quarterly!EI211)-1)","v":1.6007621301888042E-2},{"$f":"((Quarterly!EJ215/Quarterly!EJ211)-1)","v":2.5477707739990807E-2},{"$f":"((Quarterly!EK215/Quarterly!EK211)-1)","v":2.3000990662846332E-2},null,null,null,null,null,{"$f":"((Quarterly!EQ215/Quarterly!EQ211)-1)","v":7.3928430987023397E-2},{"$f":"((Quarterly!ER215/Quarterly!ER211)-1)","v":9.9434587638913552E-3},{"$f":"((Quarterly!ES215/Quarterly!ES211)-1)","v":1.4877789585547863E-3},null,null,null,null,null,{"$f":"(Quarterly!EY215-Quarterly!EY211)*100","v":0},{"$f":"(Quarterly!EZ215-Quarterly!EZ211)*100","v":-5.0000000000000018},{"$f":"(Quarterly!FA215-Quarterly!FA211)*100","v":1.9999999999999574},{"$f":"(Quarterly!FB215-Quarterly!FB211)*100","v":-192.66666666666669},"--",{"$f":"(Quarterly!FD215-Quarterly!FD211)*100","v":-6.6666666666667318},{"$f":"(Quarterly!FE215-Quarterly!FE211)*100","v":-10.66666666666667},{"$f":"(Quarterly!FF215-Quarterly!FF211)*100","v":-20.000000000000007},{"$f":"(Quarterly!FG215-Quarterly!FG211)*100","v":0.99999999999998979},{"$f":"(Quarterly!FH215-Quarterly!FH211)*100","v":65.999999999999986},{"$f":"(Quarterly!FI215-Quarterly!FI211)*100","v":98},null,null,null,null,null,null,{"$f":"((Quarterly!FP215/Quarterly!FP211)-1)","v":-0.1635024769045389},{"$f":"((Quarterly!FQ215/Quarterly!FQ211)-1)","v":-1.3019119088367725E-3},{"$f":"((Quarterly!FR215/Quarterly!FR211)-1)","v":-0.1117506740137838},{"$f":"((Quarterly!FS215/Quarterly!FS211)-1)","v":6.2034739454094545E-2},{"$f":"((Quarterly!FT215/Quarterly!FT211)-1)","v":-8.0757557210132891E-2},{"$f":"((Quarterly!FU215/Quarterly!FU211)-1)","v":-9.7039343425308289E-2},{"$f":"((Quarterly!FV215/Quarterly!FV211)-1)","v":0.27496300512236771},{"$f":"((Quarterly!FW215/Quarterly!FW211)-1)","v":0.12400464716564552},{"$f":"((Quarterly!FX215/Quarterly!FX211)-1)","v":0.3575538436541732},null,null,null,null,null,{"$f":"((Quarterly!GD215/Quarterly!GD211)-1)","v":0.83022967101179379},{"$f":"((Quarterly!GE215/Quarterly!GE211)-1)","v":0.71605401350337594},{"$f":"((Quarterly!GF215/Quarterly!GF211)-1)","v":0.42323370148203465},{"$f":"((Quarterly!GG215/Quarterly!GG211)-1)","v":0.2988296093631253},{"$f":"((Quarterly!GH215/Quarterly!GH211)-1)","v":-0.25616083009079127},{"$f":"((Quarterly!GI215/Quarterly!GI211)-1)","v":-0.35927367055771731},{"$f":"((Quarterly!GJ215/Quarterly!GJ211)-1)","v":0.12345770774490861},{"$f":"((Quarterly!GK215/Quarterly!GK211)-1)","v":-8.8573525813555154E-2},"--"]
["10'Q2",{"$f":"((Quarterly!B216/Quarterly!B212)-1)","v":3.8226433722255093E-2},{"$f":"((Quarterly!C216/Quarterly!C212)-1)","v":2.7193300323122171E-2},{"$f":"((Quarterly!D216/Quarterly!D212)-1)","v":1.0207528162876622E-2},{"$f":"((Quarterly!E216/Quarterly!E212)-1)","v":1.9582516120479454E-2},{"$f":"((Quarterly!F216/Quarterly!F212)-1)","v":7.3544568939721389E-2},{"$f":"((Quarterly!G216/Quarterly!G212)-1)","v":2.2038779627604699E-2},{"$f":"((Quarterly!H216/Quarterly!H212)-1)","v":1.0668474031679143E-2},{"$f":"((Quarterly!I216/Quarterly!I212)-1)","v":1.547441931912541E-2},{"$f":"((Quarterly!J216/Quarterly!J212)-1)","v":9.2060921684823382E-2},{"$f":"((Quarterly!K216/Quarterly!K212)-1)","v":7.044151627134565E-2},{"$f":"((Quarterly!L216-Quarterly!L212))","v":238.87400000000002},{"$f":"((Quarterly!M216/Quarterly!M212)-1)","v":0.16375392439656244},{"$f":"((Quarterly!N216/Quarterly!N212)-1)","v":0.13557004340725509},{"$f":"((Quarterly!O216/Quarterly!O212)-1)","v":0.28218588005994483},{"$f":"((Quarterly!P216/Quarterly!P212)-1)","v":3.2971565577657458E-3},{"$f":"((Quarterly!Q216/Quarterly!Q212)-1)","v":2.7466620114766638E-3},null,null,null,null,null,{"$f":"((Quarterly!W216/Quarterly!W212)-1)","v":0.1081504702194358},{"$f":"((Quarterly!X216/Quarterly!X212)-1)","v":9.036742800397235E-2},{"$f":"((Quarterly!Y216/Quarterly!Y212)-1)","v":-0.18261930024856998},{"$f":"Quarterly!Z216-Quarterly!Z212","v":-1.88},{"$f":"((Quarterly!AA216/Quarterly!AA212)-1)","v":0.28210951457142408},{"$f":"((Quarterly!AB216/Quarterly!AB212)-1)","v":0.23965188858926267},{"$f":"Quarterly!AC216-Quarterly!AC212","v":0},{"$f":"Quarterly!AD216-Quarterly!AD212","v":54.2},{"$f":"(Quarterly!AE216-Quarterly!AE212)*100","v":-274},{"$f":"(Quarterly!AF216-Quarterly!AF212)*100","v":-188},{"$f":"(Quarterly!AG216-Quarterly!AG212)*100","v":-173},{"$f":"((Quarterly!AH216/Quarterly!AH212)-1)","v":0.17089486663454179},{"$f":"((Quarterly!AI216/Quarterly!AI212)-1)","v":0.10053763445366126},{"$f":"((Quarterly!AJ216/Quarterly!AJ212)-1)","v":2.4953789279112737E-2},{"$f":"((Quarterly!AK216/Quarterly!AK212)-1)","v":1.9178082191780854E-2},{"$f":"((Quarterly!AL216/Quarterly!AL212)-1)","v":1.6348773841961872E-2},{"$f":"((Quarterly!AM216/Quarterly!AM212)-1)","v":7.1751079328248979E-2},{"$f":"((Quarterly!AN216/Quarterly!AN212)-1)","v":8.6495709257964792E-2},{"$f":"((Quarterly!AO216/Quarterly!AO212)-1)","v":-9.4406948359183618E-3},{"$f":"(Quarterly!AP216-Quarterly!AP212)*100","v":-16.66666666666665},{"$f":"Quarterly!AQ216-Quarterly!AQ212","v":15.266666666666666},{"$f":"Quarterly!AR216-Quarterly!AR212","v":12.666666666666664},{"$f":"Quarterly!AS216-Quarterly!AS212","v":-12},{"$f":"Quarterly!AT216-Quarterly!AT212","v":20.566666666666663},{"$f":"Quarterly!AU216-Quarterly!AU212","v":12.5},{"$f":"Quarterly!AV216-Quarterly!AV212","v":13.5},{"$f":"Quarterly!AW216-Quarterly!AW212","v":14.666666666666664},{"$f":"Quarterly!AX216-Quarterly!AX212","v":13.899999999999991},{"$f":"Quarterly!AY216-Quarterly!AY212","v":28.999999999999993},{"$f":"Quarterly!AZ216-Quarterly!AZ212","v":17.066666666666656},{"$f":"Quarterly!BA216-Quarterly!BA212","v":10.599999999999994},{"$f":"Quarterly!BB216-Quarterly!BB212","v":14.100000000000001},{"$f":"((Quarterly!BC216/Quarterly!BC212)-1)","v":0.17385073310550125},{"$f":"((Quarterly!BD216/Quarterly!BD212)-1)","v":0.12425413857467804},{"$f":"((Quarterly!BE216/Quarterly!BE212)-1)","v":-0.10002546672674195},{"$f":"((Quarterly!BF216/Quarterly!BF212)-1)","v":1.7348314606741466E-2},{"$f":"((Quarterly!BG216/Quarterly!BG212)-1)","v":3.5528657169570543E-2},{"$f":"((Quarterly!BH216/Quarterly!BH212)-1)","v":-2.7831895352081748E-4},{"$f":"((Quarterly!BI216/Quarterly!BI212)-1)","v":-1.7554142658454119E-2},{"$f":"((Quarterly!BJ216/Quarterly!BJ212)-1)","v":0.58046963708088328},{"$f":"((Quarterly!BK216/Quarterly!BK212)-1)","v":-0.91707317073170724},null,{"$f":"((Quarterly!BM216/Quarterly!BM212)-1)","v":5.970175981407988E-2},{"$f":"((Quarterly!BN216/Quarterly!BN212)-1)","v":6.392987388914495E-2},null,null,null,null,null,{"$f":"((Quarterly!BT216/Quarterly!BT212)-1)","v":0.33517952759119596},{"$f":"Quarterly!BU216-Quarterly!BU212","v":-0.90481000000000122},{"$f":"Quarterly!BV216-Quarterly!BV212","v":-0.92173000000000016},{"$f":"((Quarterly!BW216/Quarterly!BW212)-1)","v":0.1182868372528787},{"$f":"((Quarterly!BX216/Quarterly!BX212)-1)","v":0.1266375545851528},{"$f":"((Quarterly!BY216/Quarterly!BY212)-1)","v":7.2109654350416941E-2},{"$f":"((Quarterly!BZ216/Quarterly!BZ212)-1)","v":4.164404258835197E-2},{"$f":"((Quarterly!CA216/Quarterly!CA212)-1)","v":0.18206456482212063},{"$f":"((Quarterly!CB216/Quarterly!CB212)-1)","v":0.364976111669852},{"$f":"((Quarterly!CC216/Quarterly!CC212)-1)","v":0.22087915805717029},{"$f":"((Quarterly!CD216/Quarterly!CD212)-1)","v":-0.25947187141216987},{"$f":"((Quarterly!CE216/Quarterly!CE212)-1)","v":-8.9511754068716143E-2},null,{"$f":"((Quarterly!CG216/Quarterly!CG212)-1)","v":2.763561924257929E-2},{"$f":"((Quarterly!CH216/Quarterly!CH212)-1)","v":0.17355371900826433},null,{"$f":"((Quarterly!CJ216/Quarterly!CJ212)-1)","v":-8.9511754068716143E-2},{"$f":"((Quarterly!CK216/Quarterly!CK212)-1)","v":2.4334828759493332E-2},{"$f":"((Quarterly!CL216/Quarterly!CL212)-1)","v":-0.1616416125725999},{"$f":"((Quarterly!CM216/Quarterly!CM212)-1)","v":0.14956930305403282},{"$f":"((Quarterly!CN216/Quarterly!CN212)-1)","v":1.5083913716387176E-3},{"$f":"((Quarterly!CO216/Quarterly!CO212)-1)","v":0.1410308563852225},{"$f":"((Quarterly!CP216/Quarterly!CP212)-1)","v":-3.051431600424126E-2},{"$f":"((Quarterly!CQ216/Quarterly!CQ212)-1)","v":7.7667520470110496E-3},{"$f":"((Quarterly!CR216/Quarterly!CR212)-1)","v":-5.877151011327586E-2},{"$f":"Quarterly!CS216-Quarterly!CS212","v":5.7333333333333343},{"$f":"Quarterly!CT216-Quarterly!CT212","v":9.9333333333333371},null,null,null,null,null,{"$f":"((Quarterly!CZ216/Quarterly!CZ212)-1)","v":2.3164708153556646E-2},{"$f":"((Quarterly!DA216/Quarterly!DA212)-1)","v":9.5261008463245478E-3},null,null,null,null,null,{"$f":"((Quarterly!DG216/Quarterly!DG212)-1)","v":-6.7499156260542037E-4},{"$f":"((Quarterly!DH216-Quarterly!DH212)*60)","v":17.999999999999829},{"$f":"Quarterly!DI216-Quarterly!DI212","v":-0.79999999999999716},{"$f":"(Quarterly!DJ216-Quarterly!DJ212)*100","v":39.999999999999858},{"$f":"(Quarterly!DK216-Quarterly!DK212)*100","v":33.333333333333393},{"$f":"((Quarterly!DL216/Quarterly!DL212)-1)","v":-2.9732157897692124E-2},null,null,null,{"$f":"((Quarterly!DP216/Quarterly!DP212)-1)","v":-7.6657013749068525E-3},null,null,null,null,{"$f":"Quarterly!DU216-Quarterly!DU212","v":8.3666666666666689},{"$f":"((Quarterly!DV216/Quarterly!DV212)-1)","v":-2.0860700961588985E-2},{"$f":"((Quarterly!DW216/Quarterly!DW212)-1)","v":-2.0335589916497643E-2},{"$f":"((Quarterly!DX216/Quarterly!DX212)-1)","v":-2.9607000075432044E-2},{"$f":"((Quarterly!DY216/Quarterly!DY212)-1)","v":-2.741493307531051E-2},{"$f":"((Quarterly!DZ216/Quarterly!DZ212)-1)","v":-3.0276177817161298E-2},{"$f":"((Quarterly!EA216/Quarterly!EA212)-1)","v":-4.9115504682622158E-2},{"$f":"((Quarterly!EB216/Quarterly!EB212)-1)","v":1.576805696846395E-2},{"$f":"((Quarterly!EC216/Quarterly!EC212)-1)","v":1.1354703467549854E-3},null,null,null,null,null,{"$f":"((Quarterly!EI216/Quarterly!EI212)-1)","v":4.7574447113442941E-2},{"$f":"((Quarterly!EJ216/Quarterly!EJ212)-1)","v":3.8552250452972281E-2},{"$f":"((Quarterly!EK216/Quarterly!EK212)-1)","v":3.3340322451262061E-2},null,null,null,null,null,{"$f":"((Quarterly!EQ216/Quarterly!EQ212)-1)","v":7.5291828793774274E-2},{"$f":"((Quarterly!ER216/Quarterly!ER212)-1)","v":1.0888586428154712E-2},{"$f":"((Quarterly!ES216/Quarterly!ES212)-1)","v":3.4028073160359273E-3},null,null,null,null,null,{"$f":"(Quarterly!EY216-Quarterly!EY212)*100","v":0},{"$f":"(Quarterly!EZ216-Quarterly!EZ212)*100","v":1.3333333333333393},{"$f":"(Quarterly!FA216-Quarterly!FA212)*100","v":-46.999999999999972},{"$f":"(Quarterly!FB216-Quarterly!FB212)*100","v":-180.66666666666674},"--",{"$f":"(Quarterly!FD216-Quarterly!FD212)*100","v":-12.000000000000099},{"$f":"(Quarterly!FE216-Quarterly!FE212)*100","v":-2.666666666666667},{"$f":"(Quarterly!FF216-Quarterly!FF212)*100","v":-13.999999999999996},{"$f":"(Quarterly!FG216-Quarterly!FG212)*100","v":-14.333333333333332},{"$f":"(Quarterly!FH216-Quarterly!FH212)*100","v":2.0000000000000018},{"$f":"(Quarterly!FI216-Quarterly!FI212)*100","v":17.666666666666586},null,null,null,null,null,null,{"$f":"((Quarterly!FP216/Quarterly!FP212)-1)","v":-0.11996917280356212},{"$f":"((Quarterly!FQ216/Quarterly!FQ212)-1)","v":-7.8096400244054287E-4},{"$f":"((Quarterly!FR216/Quarterly!FR212)-1)","v":-5.6552746504266893E-2},{"$f":"((Quarterly!FS216/Quarterly!FS212)-1)","v":-6.5004038277980403E-2},{"$f":"((Quarterly!FT216/Quarterly!FT212)-1)","v":-3.1706605872592997E-2},{"$f":"((Quarterly!FU216/Quarterly!FU212)-1)","v":-2.3982550224238119E-2},{"$f":"((Quarterly!FV216/Quarterly!FV212)-1)","v":0.3805481264199233},{"$f":"((Quarterly!FW216/Quarterly!FW212)-1)","v":0.27959928600051032},{"$f":"((Quarterly!FX216/Quarterly!FX212)-1)","v":0.41461625983379125},null,null,null,null,null,{"$f":"((Quarterly!GD216/Quarterly!GD212)-1)","v":0.30812293567709803},{"$f":"((Quarterly!GE216/Quarterly!GE212)-1)","v":0.33755465954909414},{"$f":"((Quarterly!GF216/Quarterly!GF212)-1)","v":0.22486274138583884},{"$f":"((Quarterly!GG216/Quarterly!GG212)-1)","v":0.30103211009174324},{"$f":"((Quarterly!GH216/Quarterly!GH212)-1)","v":-8.4507042253521125E-2},{"$f":"((Quarterly!GI216/Quarterly!GI212)-1)","v":8.3769633507853491E-2},{"$f":"((Quarterly!GJ216/Quarterly!GJ212)-1)","v":0.1398075240594927},{"$f":"((Quarterly!GK216/Quarterly!GK212)-1)","v":4.058367533059748E-2},"--"]
["10'Q3",{"$f":"((Quarterly!B217/Quarterly!B213)-1)","v":4.6823429546907436E-2},{"$f":"((Quarterly!C217/Quarterly!C213)-1)","v":3.0757278765312313E-2},{"$f":"((Quarterly!D217/Quarterly!D213)-1)","v":8.1695856946868428E-3},{"$f":"((Quarterly!E217/Quarterly!E213)-1)","v":1.9991485796145403E-2},{"$f":"((Quarterly!F217/Quarterly!F213)-1)","v":4.1120665037916115E-2},{"$f":"((Quarterly!G217/Quarterly!G213)-1)","v":2.4626006904487907E-2},{"$f":"((Quarterly!H217/Quarterly!H213)-1)","v":1.5254917703733328E-2},{"$f":"((Quarterly!I217/Quarterly!I213)-1)","v":4.9408707339269942E-2},{"$f":"((Quarterly!J217/Quarterly!J213)-1)","v":0.11586360528389239},{"$f":"((Quarterly!K217/Quarterly!K213)-1)","v":-6.9003629373901476E-2},{"$f":"((Quarterly!L217-Quarterly!L213))","v":322.33600000000001},{"$f":"((Quarterly!M217/Quarterly!M213)-1)","v":0.16134121469875318},{"$f":"((Quarterly!N217/Quarterly!N213)-1)","v":0.12813766795682802},{"$f":"((Quarterly!O217/Quarterly!O213)-1)","v":0.29924174297458817},{"$f":"((Quarterly!P217/Quarterly!P213)-1)","v":-3.0407976359773103E-3},{"$f":"((Quarterly!Q217/Quarterly!Q213)-1)","v":-1.619096554413979E-2},null,null,null,null,null,{"$f":"((Quarterly!W217/Quarterly!W213)-1)","v":0.10091743119266039},{"$f":"((Quarterly!X217/Quarterly!X213)-1)","v":9.5890410958904049E-2},{"$f":"((Quarterly!Y217/Quarterly!Y213)-1)","v":-0.130294948349719},{"$f":"Quarterly!Z217-Quarterly!Z213","v":-2.02},{"$f":"((Quarterly!AA217/Quarterly!AA213)-1)","v":0.17741435089370072},{"$f":"((Quarterly!AB217/Quarterly!AB213)-1)","v":0.21074573054706391},{"$f":"Quarterly!AC217-Quarterly!AC213","v":5.6},{"$f":"Quarterly!AD217-Quarterly!AD213","v":51.1},{"$f":"(Quarterly!AE217-Quarterly!AE213)*100","v":-310},{"$f":"(Quarterly!AF217-Quarterly!AF213)*100","v":-202},{"$f":"(Quarterly!AG217-Quarterly!AG213)*100","v":-154.00000000000003},{"$f":"((Quarterly!AH217/Quarterly!AH213)-1)","v":0.16356877323420083},{"$f":"((Quarterly!AI217/Quarterly!AI213)-1)","v":0.11476360484148951},{"$f":"((Quarterly!AJ217/Quarterly!AJ213)-1)","v":2.7624309392265234E-2},{"$f":"((Quarterly!AK217/Quarterly!AK213)-1)","v":2.0018198362147244E-2},{"$f":"((Quarterly!AL217/Quarterly!AL213)-1)","v":1.6289592760180938E-2},{"$f":"((Quarterly!AM217/Quarterly!AM213)-1)","v":7.2514239902639943E-2},{"$f":"((Quarterly!AN217/Quarterly!AN213)-1)","v":7.9459775880361017E-2},{"$f":"((Quarterly!AO217/Quarterly!AO213)-1)","v":5.0233870320423479E-2},{"$f":"(Quarterly!AP217-Quarterly!AP213)*100","v":-5.6666666666666643},{"$f":"Quarterly!AQ217-Quarterly!AQ213","v":4.2999999999999972},{"$f":"Quarterly!AR217-Quarterly!AR213","v":-1.1666666666666643},{"$f":"Quarterly!AS217-Quarterly!AS213","v":1.5},{"$f":"Quarterly!AT217-Quarterly!AT213","v":12.29999999999999},{"$f":"Quarterly!AU217-Quarterly!AU213","v":1.8333333333333357},{"$f":"Quarterly!AV217-Quarterly!AV213","v":4.6666666666666643},{"$f":"Quarterly!AW217-Quarterly!AW213","v":16},{"$f":"Quarterly!AX217-Quarterly!AX213","v":-7.0666666666666629},{"$f":"Quarterly!AY217-Quarterly!AY213","v":2},{"$f":"Quarterly!AZ217-Quarterly!AZ213","v":-1.3666666666666742},{"$f":"Quarterly!BA217-Quarterly!BA213","v":1.1000000000000014},{"$f":"Quarterly!BB217-Quarterly!BB213","v":4.5333333333333385},{"$f":"((Quarterly!BC217/Quarterly!BC213)-1)","v":0.133484558799702},{"$f":"((Quarterly!BD217/Quarterly!BD213)-1)","v":0.11572791934809024},{"$f":"((Quarterly!BE217/Quarterly!BE213)-1)","v":-9.5211920728355715E-2},{"$f":"((Quarterly!BF217/Quarterly!BF213)-1)","v":1.5110026390459774E-2},{"$f":"((Quarterly!BG217/Quarterly!BG213)-1)","v":2.598663997304218E-2},{"$f":"((Quarterly!BH217/Quarterly!BH213)-1)","v":3.0570990420426547E-3},{"$f":"((Quarterly!BI217/Quarterly!BI213)-1)","v":-1.0600918946515048E-2},{"$f":"((Quarterly!BJ217/Quarterly!BJ213)-1)","v":0.47152666596733672},{"$f":"((Quarterly!BK217/Quarterly!BK213)-1)","v":-0.905829596412556},null,{"$f":"((Quarterly!BM217/Quarterly!BM213)-1)","v":4.3864654012969684E-2},{"$f":"((Quarterly!BN217/Quarterly!BN213)-1)","v":4.3780733584005693E-2},null,null,null,null,null,{"$f":"((Quarterly!BT217/Quarterly!BT213)-1)","v":0.33080449950275526},{"$f":"Quarterly!BU217-Quarterly!BU213","v":-0.96544000000000096},{"$f":"Quarterly!BV217-Quarterly!BV213","v":-1.0336700000000008},{"$f":"((Quarterly!BW217/Quarterly!BW213)-1)","v":0.11232857260172713},{"$f":"((Quarterly!BX217/Quarterly!BX213)-1)","v":-1.4730878186968943E-2},{"$f":"((Quarterly!BY217/Quarterly!BY213)-1)","v":-5.3846153846153766E-2},{"$f":"((Quarterly!BZ217/Quarterly!BZ213)-1)","v":1.552173508331034E-2},{"$f":"((Quarterly!CA217/Quarterly!CA213)-1)","v":-1.7855624521725399E-3},{"$f":"((Quarterly!CB217/Quarterly!CB213)-1)","v":0.32931832829600372},{"$f":"((Quarterly!CC217/Quarterly!CC213)-1)","v":0.17106522181050887},{"$f":"((Quarterly!CD217/Quarterly!CD213)-1)","v":-0.21328224776500637},{"$f":"((Quarterly!CE217/Quarterly!CE213)-1)","v":-0.27407407407407403},null,{"$f":"((Quarterly!CG217/Quarterly!CG213)-1)","v":5.5102040816326525E-2},{"$f":"((Quarterly!CH217/Quarterly!CH213)-1)","v":-0.19624060150375933},null,{"$f":"((Quarterly!CJ217/Quarterly!CJ213)-1)","v":-0.27407407407407403},{"$f":"((Quarterly!CK217/Quarterly!CK213)-1)","v":3.9457946971392044E-2},{"$f":"((Quarterly!CL217/Quarterly!CL213)-1)","v":6.6739367502726132E-2},{"$f":"((Quarterly!CM217/Quarterly!CM213)-1)","v":-0.14209827357237714},{"$f":"((Quarterly!CN217/Quarterly!CN213)-1)","v":1.764723860753703E-2},{"$f":"((Quarterly!CO217/Quarterly!CO213)-1)","v":0.12860350836261847},{"$f":"((Quarterly!CP217/Quarterly!CP213)-1)","v":-2.3589153746552682E-2},{"$f":"((Quarterly!CQ217/Quarterly!CQ213)-1)","v":7.4663893312532092E-3},{"$f":"((Quarterly!CR217/Quarterly!CR213)-1)","v":-9.1238849057642124E-2},{"$f":"Quarterly!CS217-Quarterly!CS213","v":-9.9999999999994316E-2},{"$f":"Quarterly!CT217-Quarterly!CT213","v":-0.8333333333333357},null,null,null,null,null,{"$f":"((Quarterly!CZ217/Quarterly!CZ213)-1)","v":1.2028815910047896E-2},{"$f":"((Quarterly!DA217/Quarterly!DA213)-1)","v":8.9633949161882498E-3},null,null,null,null,null,{"$f":"((Quarterly!DG217/Quarterly!DG213)-1)","v":1.1888586956521729E-2},{"$f":"((Quarterly!DH217-Quarterly!DH213)*60)","v":22.000000000000028},{"$f":"Quarterly!DI217-Quarterly!DI213","v":-0.69999999999998863},{"$f":"(Quarterly!DJ217-Quarterly!DJ213)*100","v":-3.3333333333331439},{"$f":"(Quarterly!DK217-Quarterly!DK213)*100","v":-16.666666666666785},{"$f":"((Quarterly!DL217/Quarterly!DL213)-1)","v":-5.9624480435718219E-3},null,null,null,{"$f":"((Quarterly!DP217/Quarterly!DP213)-1)","v":-4.5218813070024844E-4},null,null,null,null,{"$f":"Quarterly!DU217-Quarterly!DU213","v":4.5},{"$f":"((Quarterly!DV217/Quarterly!DV213)-1)","v":2.9244430265324972E-3},{"$f":"((Quarterly!DW217/Quarterly!DW213)-1)","v":1.9606817944157751E-3},{"$f":"((Quarterly!DX217/Quarterly!DX213)-1)","v":-2.0478592286398145E-3},{"$f":"((Quarterly!DY217/Quarterly!DY213)-1)","v":-1.2913640032284901E-3},{"$f":"((Quarterly!DZ217/Quarterly!DZ213)-1)","v":-2.280162585506007E-3},{"$f":"((Quarterly!EA217/Quarterly!EA213)-1)","v":-1.639228929224712E-2},{"$f":"((Quarterly!EB217/Quarterly!EB213)-1)","v":3.137583892617446E-2},{"$f":"((Quarterly!EC217/Quarterly!EC213)-1)","v":1.0855844483716348E-2},null,null,null,null,null,{"$f":"((Quarterly!EI217/Quarterly!EI213)-1)","v":4.2369223077080687E-2},{"$f":"((Quarterly!EJ217/Quarterly!EJ213)-1)","v":3.3910841633945976E-2},{"$f":"((Quarterly!EK217/Quarterly!EK213)-1)","v":3.3718382031600713E-2},null,null,null,null,null,{"$f":"((Quarterly!EQ217/Quarterly!EQ213)-1)","v":6.1924846625766694E-2},{"$f":"((Quarterly!ER217/Quarterly!ER213)-1)","v":1.3791763791763945E-2},{"$f":"((Quarterly!ES217/Quarterly!ES213)-1)","v":5.3180174430973448E-3},null,null,null,null,null,{"$f":"(Quarterly!EY217-Quarterly!EY213)*100","v":0},{"$f":"(Quarterly!EZ217-Quarterly!EZ213)*100","v":3.0000000000000027},{"$f":"(Quarterly!FA217-Quarterly!FA213)*100","v":-68.666666666666572},{"$f":"(Quarterly!FB217-Quarterly!FB213)*100","v":-88.333333333333371},"--",{"$f":"(Quarterly!FD217-Quarterly!FD213)*100","v":-71},{"$f":"(Quarterly!FE217-Quarterly!FE213)*100","v":0},{"$f":"(Quarterly!FF217-Quarterly!FF213)*100","v":-17.666666666666657},{"$f":"(Quarterly!FG217-Quarterly!FG213)*100","v":-49.333333333333343},{"$f":"(Quarterly!FH217-Quarterly!FH213)*100","v":-91.999999999999972},{"$f":"(Quarterly!FI217-Quarterly!FI213)*100","v":-73.000000000000043},null,null,null,null,null,null,{"$f":"((Quarterly!FP217/Quarterly!FP213)-1)","v":-5.3498192423367841E-2},{"$f":"((Quarterly!FQ217/Quarterly!FQ213)-1)","v":-9.2037263867809083E-3},{"$f":"((Quarterly!FR217/Quarterly!FR213)-1)","v":-3.5376848541531558E-2},{"$f":"((Quarterly!FS217/Quarterly!FS213)-1)","v":-9.5870309552092969E-2},{"$f":"((Quarterly!FT217/Quarterly!FT213)-1)","v":-1.0927902816732504E-2},{"$f":"((Quarterly!FU217/Quarterly!FU213)-1)","v":7.6959259647673139E-3},{"$f":"((Quarterly!FV217/Quarterly!FV213)-1)","v":0.17082049652542719},{"$f":"((Quarterly!FW217/Quarterly!FW213)-1)","v":0.30840151153369755},{"$f":"((Quarterly!FX217/Quarterly!FX213)-1)","v":0.28940055928362241},null,null,null,null,null,{"$f":"((Quarterly!GD217/Quarterly!GD213)-1)","v":0.11675871169542074},{"$f":"((Quarterly!GE217/Quarterly!GE213)-1)","v":0.12639296187683291},{"$f":"((Quarterly!GF217/Quarterly!GF213)-1)","v":5.5970409658734122E-2},{"$f":"((Quarterly!GG217/Quarterly!GG213)-1)","v":0.13025641025641055},{"$f":"((Quarterly!GH217/Quarterly!GH213)-1)","v":0.32596899224806197},{"$f":"((Quarterly!GI217/Quarterly!GI213)-1)","v":0.61575562700964626},{"$f":"((Quarterly!GJ217/Quarterly!GJ213)-1)","v":0.23163403760418677},{"$f":"((Quarterly!GK217/Quarterly!GK213)-1)","v":8.673267326732681E-2},"--"]
["10'Q4",{"$f":"((Quarterly!B218/Quarterly!B214)-1)","v":4.5563210023319867E-2},{"$f":"((Quarterly!C218/Quarterly!C214)-1)","v":2.7307296343167309E-2},{"$f":"((Quarterly!D218/Quarterly!D214)-1)","v":1.9979642004763543E-2},{"$f":"((Quarterly!E218/Quarterly!E214)-1)","v":3.0546319573973468E-2},{"$f":"((Quarterly!F218/Quarterly!F214)-1)","v":9.2933079135296026E-2},{"$f":"((Quarterly!G218/Quarterly!G214)-1)","v":3.2501831949193649E-2},{"$f":"((Quarterly!H218/Quarterly!H214)-1)","v":2.0493179801585271E-2},{"$f":"((Quarterly!I218/Quarterly!I214)-1)","v":8.1117823261354083E-2},{"$f":"((Quarterly!J218/Quarterly!J214)-1)","v":0.11962300488737077},{"$f":"((Quarterly!K218/Quarterly!K214)-1)","v":-5.1927504694604276E-2},{"$f":"((Quarterly!L218-Quarterly!L214))","v":107.648},{"$f":"((Quarterly!M218/Quarterly!M214)-1)","v":0.11989483122107258},{"$f":"((Quarterly!N218/Quarterly!N214)-1)","v":0.10086089386072383},{"$f":"((Quarterly!O218/Quarterly!O214)-1)","v":0.20409096643956648},{"$f":"((Quarterly!P218/Quarterly!P214)-1)","v":-1.1361449094927312E-2},{"$f":"((Quarterly!Q218/Quarterly!Q214)-1)","v":2.0100577126713981E-2},null,null,null,null,null,{"$f":"((Quarterly!W218/Quarterly!W214)-1)","v":8.5201793721972896E-2},{"$f":"((Quarterly!X218/Quarterly!X214)-1)","v":8.2533589251439832E-2},{"$f":"((Quarterly!Y218/Quarterly!Y214)-1)","v":-7.7309706736904071E-2},{"$f":"Quarterly!Z218-Quarterly!Z214","v":-2.12},{"$f":"((Quarterly!AA218/Quarterly!AA214)-1)","v":8.7380590482745824E-2},{"$f":"((Quarterly!AB218/Quarterly!AB214)-1)","v":0.18014957806405674},{"$f":"Quarterly!AC218-Quarterly!AC214","v":12.7},{"$f":"Quarterly!AD218-Quarterly!AD214","v":14.300000000000004},{"$f":"(Quarterly!AE218-Quarterly!AE214)*100","v":-334},{"$f":"(Quarterly!AF218-Quarterly!AF214)*100","v":-212},{"$f":"(Quarterly!AG218-Quarterly!AG214)*100","v":-160},{"$f":"((Quarterly!AH218/Quarterly!AH214)-1)","v":0.18259591665354535},{"$f":"((Quarterly!AI218/Quarterly!AI214)-1)","v":0.10771566539658006},{"$f":"((Quarterly!AJ218/Quarterly!AJ214)-1)","v":2.7497708524289566E-2},{"$f":"((Quarterly!AK218/Quarterly!AK214)-1)","v":1.9927536231884035E-2},{"$f":"((Quarterly!AL218/Quarterly!AL214)-1)","v":1.7117117117117164E-2},{"$f":"((Quarterly!AM218/Quarterly!AM214)-1)","v":6.0276033055408851E-2},{"$f":"((Quarterly!AN218/Quarterly!AN214)-1)","v":6.565392210069998E-2},{"$f":"((Quarterly!AO218/Quarterly!AO214)-1)","v":7.95012208066741E-2},{"$f":"(Quarterly!AP218-Quarterly!AP214)*100","v":-2.3333333333333206},{"$f":"Quarterly!AQ218-Quarterly!AQ214","v":2.3666666666666742},{"$f":"Quarterly!AR218-Quarterly!AR214","v":-5.5},{"$f":"Quarterly!AS218-Quarterly!AS214","v":6.3333333333333286},{"$f":"Quarterly!AT218-Quarterly!AT214","v":6.86666666666666},{"$f":"Quarterly!AU218-Quarterly!AU214","v":2},{"$f":"Quarterly!AV218-Quarterly!AV214","v":-0.8333333333333357},{"$f":"Quarterly!AW218-Quarterly!AW214","v":9.8333333333333357},{"$f":"Quarterly!AX218-Quarterly!AX214","v":-3.1000000000000014},{"$f":"Quarterly!AY218-Quarterly!AY214","v":10.5},{"$f":"Quarterly!AZ218-Quarterly!AZ214","v":-1.7000000000000099},{"$f":"Quarterly!BA218-Quarterly!BA214","v":-1.3333333333333357},{"$f":"Quarterly!BB218-Quarterly!BB214","v":3.3000000000000043},{"$f":"((Quarterly!BC218/Quarterly!BC214)-1)","v":0.12392977979574349},{"$f":"((Quarterly!BD218/Quarterly!BD214)-1)","v":0.10901496017097356},{"$f":"((Quarterly!BE218/Quarterly!BE214)-1)","v":-9.0581174473588377E-2},{"$f":"((Quarterly!BF218/Quarterly!BF214)-1)","v":1.3409980575248781E-2},{"$f":"((Quarterly!BG218/Quarterly!BG214)-1)","v":1.7931291131306759E-2},{"$f":"((Quarterly!BH218/Quarterly!BH214)-1)","v":1.0572300572500026E-3},{"$f":"((Quarterly!BI218/Quarterly!BI214)-1)","v":-4.4401933145387096E-3},{"$f":"((Quarterly!BJ218/Quarterly!BJ214)-1)","v":0.12591305996364466},{"$f":"((Quarterly!BK218/Quarterly!BK214)-1)","v":-0.89830508474576276},null,{"$f":"((Quarterly!BM218/Quarterly!BM214)-1)","v":6.5856106132285541E-2},{"$f":"((Quarterly!BN218/Quarterly!BN214)-1)","v":6.7598801385693852E-2},null,null,null,null,null,{"$f":"((Quarterly!BT218/Quarterly!BT214)-1)","v":0.32194743583507113},{"$f":"Quarterly!BU218-Quarterly!BU214","v":-0.89852000000000132},{"$f":"Quarterly!BV218-Quarterly!BV214","v":-0.94708999999999932},{"$f":"((Quarterly!BW218/Quarterly!BW214)-1)","v":0.10695817214276238},{"$f":"((Quarterly!BX218/Quarterly!BX214)-1)","v":-4.4627128596594123E-2},{"$f":"((Quarterly!BY218/Quarterly!BY214)-1)","v":-6.4171122994652441E-2},{"$f":"((Quarterly!BZ218/Quarterly!BZ214)-1)","v":-1.5260878531655808E-2},{"$f":"((Quarterly!CA218/Quarterly!CA214)-1)","v":0.13660185443607165},{"$f":"((Quarterly!CB218/Quarterly!CB214)-1)","v":-6.1673953283620575E-2},{"$f":"((Quarterly!CC218/Quarterly!CC214)-1)","v":-5.4848603398496953E-2},{"$f":"((Quarterly!CD218/Quarterly!CD214)-1)","v":-0.18207282913165268},{"$f":"((Quarterly!CE218/Quarterly!CE214)-1)","v":-0.19501335707925205},null,{"$f":"((Quarterly!CG218/Quarterly!CG214)-1)","v":9.2378752886836057E-2},{"$f":"((Quarterly!CH218/Quarterly!CH214)-1)","v":-0.18535930154466074},null,{"$f":"((Quarterly!CJ218/Quarterly!CJ214)-1)","v":-0.19501335707925205},{"$f":"((Quarterly!CK218/Quarterly!CK214)-1)","v":4.8003120724799286E-2},{"$f":"((Quarterly!CL218/Quarterly!CL214)-1)","v":2.3459459459459486E-2},{"$f":"((Quarterly!CM218/Quarterly!CM214)-1)","v":-9.4715168153740592E-2},{"$f":"((Quarterly!CN218/Quarterly!CN214)-1)","v":2.6067822856320921E-2},{"$f":"((Quarterly!CO218/Quarterly!CO214)-1)","v":0.1113973316160104},{"$f":"((Quarterly!CP218/Quarterly!CP214)-1)","v":5.3061893557242445E-3},{"$f":"((Quarterly!CQ218/Quarterly!CQ214)-1)","v":7.2024555790930478E-3},{"$f":"((Quarterly!CR218/Quarterly!CR214)-1)","v":-8.5214516214433544E-2},{"$f":"Quarterly!CS218-Quarterly!CS214","v":1.0999999999999943},{"$f":"Quarterly!CT218-Quarterly!CT214","v":1.5333333333333314},null,null,null,null,null,{"$f":"((Quarterly!CZ218/Quarterly!CZ214)-1)","v":1.2297839008431843E-2},{"$f":"((Quarterly!DA218/Quarterly!DA214)-1)","v":6.4557252646333385E-3},null,null,null,null,null,{"$f":"((Quarterly!DG218/Quarterly!DG214)-1)","v":2.216160927378108E-2},{"$f":"((Quarterly!DH218-Quarterly!DH214)*60)","v":23.999999999999915},{"$f":"Quarterly!DI218-Quarterly!DI214","v":-0.43333333333332291},{"$f":"(Quarterly!DJ218-Quarterly!DJ214)*100","v":-40.000000000000213},{"$f":"(Quarterly!DK218-Quarterly!DK214)*100","v":-43.333333333333002},{"$f":"((Quarterly!DL218/Quarterly!DL214)-1)","v":6.3727478129886883E-3},null,null,null,{"$f":"((Quarterly!DP218/Quarterly!DP214)-1)","v":5.9966246543861068E-3},null,null,null,null,{"$f":"Quarterly!DU218-Quarterly!DU214","v":1.7666666666666622},{"$f":"((Quarterly!DV218/Quarterly!DV214)-1)","v":1.8773433315479426E-2},{"$f":"((Quarterly!DW218/Quarterly!DW214)-1)","v":1.8690596293739814E-2},{"$f":"((Quarterly!DX218/Quarterly!DX214)-1)","v":1.9615340496309974E-2},{"$f":"((Quarterly!DY218/Quarterly!DY214)-1)","v":2.6846729580214834E-2},{"$f":"((Quarterly!DZ218/Quarterly!DZ214)-1)","v":1.7393912130754252E-2},{"$f":"((Quarterly!EA218/Quarterly!EA214)-1)","v":8.1780685535486342E-3},{"$f":"((Quarterly!EB218/Quarterly!EB214)-1)","v":3.9192598822539892E-2},{"$f":"((Quarterly!EC218/Quarterly!EC214)-1)","v":1.6589941804916242E-2},null,null,null,null,null,{"$f":"((Quarterly!EI218/Quarterly!EI214)-1)","v":4.6303717006539458E-2},{"$f":"((Quarterly!EJ218/Quarterly!EJ214)-1)","v":3.2884313796936127E-2},{"$f":"((Quarterly!EK218/Quarterly!EK214)-1)","v":2.9696677215566902E-2},null,null,null,null,null,{"$f":"((Quarterly!EQ218/Quarterly!EQ214)-1)","v":6.2747314867156456E-2},{"$f":"((Quarterly!ER218/Quarterly!ER214)-1)","v":1.4543339150669077E-2},{"$f":"((Quarterly!ES218/Quarterly!ES214)-1)","v":4.6788600595493168E-3},null,null,null,null,null,{"$f":"(Quarterly!EY218-Quarterly!EY214)*100","v":0},{"$f":"(Quarterly!EZ218-Quarterly!EZ214)*100","v":6.6666666666666679},{"$f":"(Quarterly!FA218-Quarterly!FA214)*100","v":-34.333333333333371},{"$f":"(Quarterly!FB218-Quarterly!FB214)*100","v":-41.333333333333314},"--",{"$f":"(Quarterly!FD218-Quarterly!FD214)*100","v":-50.666666666666593},{"$f":"(Quarterly!FE218-Quarterly!FE214)*100","v":8.0000000000000018},{"$f":"(Quarterly!FF218-Quarterly!FF214)*100","v":-9.3333333333333268},{"$f":"(Quarterly!FG218-Quarterly!FG214)*100","v":-39},{"$f":"(Quarterly!FH218-Quarterly!FH214)*100","v":-81.333333333333371},{"$f":"(Quarterly!FI218-Quarterly!FI214)*100","v":-59.666666666666622},null,null,null,null,null,null,{"$f":"((Quarterly!FP218/Quarterly!FP214)-1)","v":-4.0660416074754679E-2},{"$f":"((Quarterly!FQ218/Quarterly!FQ214)-1)","v":-2.4900763135152659E-2},{"$f":"((Quarterly!FR218/Quarterly!FR214)-1)","v":-5.1888717692315733E-2},{"$f":"((Quarterly!FS218/Quarterly!FS214)-1)","v":-7.9714724203304277E-2},{"$f":"((Quarterly!FT218/Quarterly!FT214)-1)","v":-1.7080632574942189E-2},{"$f":"((Quarterly!FU218/Quarterly!FU214)-1)","v":1.675388262766031E-3},{"$f":"((Quarterly!FV218/Quarterly!FV214)-1)","v":0.11270812064380342},{"$f":"((Quarterly!FW218/Quarterly!FW214)-1)","v":0.20195860695755385},{"$f":"((Quarterly!FX218/Quarterly!FX214)-1)","v":0.18128820554193692},null,null,null,null,null,{"$f":"((Quarterly!GD218/Quarterly!GD214)-1)","v":0.11779141104294499},{"$f":"((Quarterly!GE218/Quarterly!GE214)-1)","v":0.15860467193711192},{"$f":"((Quarterly!GF218/Quarterly!GF214)-1)","v":0.10475207257938379},{"$f":"((Quarterly!GG218/Quarterly!GG214)-1)","v":0.14934827628212943},{"$f":"((Quarterly!GH218/Quarterly!GH214)-1)","v":0.90735183795949004},{"$f":"((Quarterly!GI218/Quarterly!GI214)-1)","v":1.1639097744360902},{"$f":"((Quarterly!GJ218/Quarterly!GJ214)-1)","v":-0.1916350325379611},{"$f":"((Quarterly!GK218/Quarterly!GK214)-1)","v":0.10455840455840448},"--"]
["11'Q1",{"$f":"((Quarterly!B219/Quarterly!B215)-1)","v":3.7961011406326683E-2},{"$f":"((Quarterly!C219/Quarterly!C215)-1)","v":1.8929060869868897E-2},{"$f":"((Quarterly!D219/Quarterly!D215)-1)","v":1.8079049969400129E-2},{"$f":"((Quarterly!E219/Quarterly!E215)-1)","v":3.019181194564613E-2},{"$f":"((Quarterly!F219/Quarterly!F215)-1)","v":9.2460292147732437E-2},{"$f":"((Quarterly!G219/Quarterly!G215)-1)","v":2.8811942648639732E-2},{"$f":"((Quarterly!H219/Quarterly!H215)-1)","v":2.1197493478847251E-2},{"$f":"((Quarterly!I219/Quarterly!I215)-1)","v":6.7542223177129657E-2},{"$f":"((Quarterly!J219/Quarterly!J215)-1)","v":0.10018066501933309},{"$f":"((Quarterly!K219/Quarterly!K215)-1)","v":-2.2383304958168426E-2},{"$f":"((Quarterly!L219-Quarterly!L215))","v":15.222999999999999},{"$f":"((Quarterly!M219/Quarterly!M215)-1)","v":9.9929237417439642E-2},{"$f":"((Quarterly!N219/Quarterly!N215)-1)","v":9.0236757403571621E-2},{"$f":"((Quarterly!O219/Quarterly!O215)-1)","v":0.14043143433078265},{"$f":"((Quarterly!P219/Quarterly!P215)-1)","v":-2.3364934441749918E-2},{"$f":"((Quarterly!Q219/Quarterly!Q215)-1)","v":-8.5441825441559094E-2},null,null,null,null,null,{"$f":"((Quarterly!W219/Quarterly!W215)-1)","v":7.4561403508771829E-2},{"$f":"((Quarterly!X219/Quarterly!X215)-1)","v":6.2675397567820479E-2},{"$f":"((Quarterly!Y219/Quarterly!Y215)-1)","v":-1.9066255997200132E-2},{"$f":"Quarterly!Z219-Quarterly!Z215","v":3.999999999999998E-2},{"$f":"((Quarterly!AA219/Quarterly!AA215)-1)","v":-6.8916629372625771E-2},{"$f":"((Quarterly!AB219/Quarterly!AB215)-1)","v":-2.5710590479583462E-2},{"$f":"Quarterly!AC219-Quarterly!AC215","v":11},{"$f":"Quarterly!AD219-Quarterly!AD215","v":35.200000000000003},{"$f":"(Quarterly!AE219-Quarterly!AE215)*100","v":163},{"$f":"(Quarterly!AF219-Quarterly!AF215)*100","v":3.9999999999999982},{"$f":"(Quarterly!AG219-Quarterly!AG215)*100","v":68},{"$f":"((Quarterly!AH219/Quarterly!AH215)-1)","v":0.19386118958540122},{"$f":"((Quarterly!AI219/Quarterly!AI215)-1)","v":0.10893100406990408},{"$f":"((Quarterly!AJ219/Quarterly!AJ215)-1)","v":2.9918404351767958E-2},{"$f":"((Quarterly!AK219/Quarterly!AK215)-1)","v":1.980198019801982E-2},{"$f":"((Quarterly!AL219/Quarterly!AL215)-1)","v":1.6157989228007263E-2},{"$f":"((Quarterly!AM219/Quarterly!AM215)-1)","v":4.5331588417176993E-2},{"$f":"((Quarterly!AN219/Quarterly!AN215)-1)","v":5.4890719676139454E-2},{"$f":"((Quarterly!AO219/Quarterly!AO215)-1)","v":9.8334728487690759E-2},{"$f":"(Quarterly!AP219-Quarterly!AP215)*100","v":-1.9999999999999796},{"$f":"Quarterly!AQ219-Quarterly!AQ215","v":2.1999999999999886},{"$f":"Quarterly!AR219-Quarterly!AR215","v":-1.8333333333333357},{"$f":"Quarterly!AS219-Quarterly!AS215","v":5.6666666666666643},{"$f":"Quarterly!AT219-Quarterly!AT215","v":6.8666666666666671},{"$f":"Quarterly!AU219-Quarterly!AU215","v":1.3333333333333286},{"$f":"Quarterly!AV219-Quarterly!AV215","v":-1},{"$f":"Quarterly!AW219-Quarterly!AW215","v":0},{"$f":"Quarterly!AX219-Quarterly!AX215","v":2.9666666666666686},{"$f":"Quarterly!AY219-Quarterly!AY215","v":12.166666666666657},{"$f":"Quarterly!AZ219-Quarterly!AZ215","v":3.8333333333333357},{"$f":"Quarterly!BA219-Quarterly!BA215","v":-1.0333333333333456},{"$f":"Quarterly!BB219-Quarterly!BB215","v":7.3000000000000043},{"$f":"((Quarterly!BC219/Quarterly!BC215)-1)","v":0.12495433860632121},{"$f":"((Quarterly!BD219/Quarterly!BD215)-1)","v":8.9545779550671778E-2},{"$f":"((Quarterly!BE219/Quarterly!BE215)-1)","v":-4.4610260680202463E-2},{"$f":"((Quarterly!BF219/Quarterly!BF215)-1)","v":3.8958072652882869E-2},{"$f":"((Quarterly!BG219/Quarterly!BG215)-1)","v":4.3260517957013356E-3},{"$f":"((Quarterly!BH219/Quarterly!BH215)-1)","v":1.6982745610946148E-2},{"$f":"((Quarterly!BI219/Quarterly!BI215)-1)","v":3.4480298428358758E-2},{"$f":"((Quarterly!BJ219/Quarterly!BJ215)-1)","v":-6.6211744727608823E-2},{"$f":"((Quarterly!BK219/Quarterly!BK215)-1)","v":0.15384615384615374},null,{"$f":"((Quarterly!BM219/Quarterly!BM215)-1)","v":7.4297643012797288E-2},{"$f":"((Quarterly!BN219/Quarterly!BN215)-1)","v":7.6587438897274485E-2},null,null,null,null,null,{"$f":"((Quarterly!BT219/Quarterly!BT215)-1)","v":0.27822230720666563},{"$f":"Quarterly!BU219-Quarterly!BU215","v":-0.89815000000000111},{"$f":"Quarterly!BV219-Quarterly!BV215","v":-0.94760999999999918},{"$f":"((Quarterly!BW219/Quarterly!BW215)-1)","v":8.833306923905293E-2},{"$f":"((Quarterly!BX219/Quarterly!BX215)-1)","v":-5.7713052858683889E-2},{"$f":"((Quarterly!BY219/Quarterly!BY215)-1)","v":-0.13786112519006588},{"$f":"((Quarterly!BZ219/Quarterly!BZ215)-1)","v":-3.3968347676028854E-2},{"$f":"((Quarterly!CA219/Quarterly!CA215)-1)","v":0.18611772711806762},{"$f":"((Quarterly!CB219/Quarterly!CB215)-1)","v":-8.2434623573556021E-2},{"$f":"((Quarterly!CC219/Quarterly!CC215)-1)","v":-8.2045259573676144E-2},{"$f":"((Quarterly!CD219/Quarterly!CD215)-1)","v":-0.20549927641099863},{"$f":"((Quarterly!CE219/Quarterly!CE215)-1)","v":-0.17419962335216577},null,{"$f":"((Quarterly!CG219/Quarterly!CG215)-1)","v":1.2443438914027327E-2},{"$f":"((Quarterly!CH219/Quarterly!CH215)-1)","v":-1.5128593040847238E-2},null,{"$f":"((Quarterly!CJ219/Quarterly!CJ215)-1)","v":-0.17419962335216577},{"$f":"((Quarterly!CK219/Quarterly!CK215)-1)","v":6.8885286545246505E-2},{"$f":"((Quarterly!CL219/Quarterly!CL215)-1)","v":0.25074404761904767},{"$f":"((Quarterly!CM219/Quarterly!CM215)-1)","v":-0.20785804816223064},{"$f":"((Quarterly!CN219/Quarterly!CN215)-1)","v":3.768704404669454E-2},{"$f":"((Quarterly!CO219/Quarterly!CO215)-1)","v":0.10914462327809127},{"$f":"((Quarterly!CP219/Quarterly!CP215)-1)","v":5.0529475033106008E-2},{"$f":"((Quarterly!CQ219/Quarterly!CQ215)-1)","v":6.9466017741881547E-3},{"$f":"((Quarterly!CR219/Quarterly!CR215)-1)","v":-7.5607456167774201E-2},{"$f":"Quarterly!CS219-Quarterly!CS215","v":-0.79999999999999716},{"$f":"Quarterly!CT219-Quarterly!CT215","v":13.733333333333327},null,null,null,null,null,{"$f":"((Quarterly!CZ219/Quarterly!CZ215)-1)","v":2.1482176647927842E-2},{"$f":"((Quarterly!DA219/Quarterly!DA215)-1)","v":1.105947772926541E-2},null,null,null,null,null,{"$f":"((Quarterly!DG219/Quarterly!DG215)-1)","v":2.1081264875892458E-2},{"$f":"((Quarterly!DH219-Quarterly!DH215)*60)","v":14.000000000000057},{"$f":"Quarterly!DI219-Quarterly!DI215","v":-0.69999999999998863},{"$f":"(Quarterly!DJ219-Quarterly!DJ215)*100","v":-89.999999999999858},{"$f":"(Quarterly!DK219-Quarterly!DK215)*100","v":-80.000000000000071},{"$f":"((Quarterly!DL219/Quarterly!DL215)-1)","v":1.6993540126869489E-2},null,null,null,{"$f":"((Quarterly!DP219/Quarterly!DP215)-1)","v":9.8040474435778791E-3},null,null,null,null,{"$f":"Quarterly!DU219-Quarterly!DU215","v":1.2666666666666657},{"$f":"((Quarterly!DV219/Quarterly!DV215)-1)","v":3.8099349720730702E-2},{"$f":"((Quarterly!DW219/Quarterly!DW215)-1)","v":3.9274256001770036E-2},{"$f":"((Quarterly!DX219/Quarterly!DX215)-1)","v":3.8066370113766013E-2},{"$f":"((Quarterly!DY219/Quarterly!DY215)-1)","v":5.3892215568862367E-2},{"$f":"((Quarterly!DZ219/Quarterly!DZ215)-1)","v":3.3336741998159392E-2},{"$f":"((Quarterly!EA219/Quarterly!EA215)-1)","v":2.9003506721215766E-2},{"$f":"((Quarterly!EB219/Quarterly!EB215)-1)","v":4.3441226575809289E-2},{"$f":"((Quarterly!EC219/Quarterly!EC215)-1)","v":4.2127778294429152E-2},null,null,null,null,null,{"$f":"((Quarterly!EI219/Quarterly!EI215)-1)","v":3.3278261697827771E-2},{"$f":"((Quarterly!EJ219/Quarterly!EJ215)-1)","v":1.9546997433603996E-2},{"$f":"((Quarterly!EK219/Quarterly!EK215)-1)","v":1.8617678763245493E-2},null,null,null,null,null,{"$f":"((Quarterly!EQ219/Quarterly!EQ215)-1)","v":7.59794946905894E-2},{"$f":"((Quarterly!ER219/Quarterly!ER215)-1)","v":1.7953667953667818E-2},{"$f":"((Quarterly!ES219/Quarterly!ES215)-1)","v":8.0645161290322509E-3},null,null,null,null,null,{"$f":"(Quarterly!EY219-Quarterly!EY215)*100","v":0},{"$f":"(Quarterly!EZ219-Quarterly!EZ215)*100","v":2.3333333333333344},{"$f":"(Quarterly!FA219-Quarterly!FA215)*100","v":-16.333333333333311},{"$f":"(Quarterly!FB219-Quarterly!FB215)*100","v":-19.666666666666632},"--",{"$f":"(Quarterly!FD219-Quarterly!FD215)*100","v":-14.666666666666561},{"$f":"(Quarterly!FE219-Quarterly!FE215)*100","v":2.0000000000000031},{"$f":"(Quarterly!FF219-Quarterly!FF215)*100","v":-9.3333333333333321},{"$f":"(Quarterly!FG219-Quarterly!FG215)*100","v":-22.333333333333329},{"$f":"(Quarterly!FH219-Quarterly!FH215)*100","v":-30.333333333333368},{"$f":"(Quarterly!FI219-Quarterly!FI215)*100","v":-25.666666666666636},null,null,null,null,null,null,{"$f":"((Quarterly!FP219/Quarterly!FP215)-1)","v":-5.3074682288165365E-2},{"$f":"((Quarterly!FQ219/Quarterly!FQ215)-1)","v":-3.6354581673306852E-2},{"$f":"((Quarterly!FR219/Quarterly!FR215)-1)","v":-5.5519162762778684E-2},{"$f":"((Quarterly!FS219/Quarterly!FS215)-1)","v":-1.1296849407457454E-2},{"$f":"((Quarterly!FT219/Quarterly!FT215)-1)","v":-4.2161515732193844E-2},{"$f":"((Quarterly!FU219/Quarterly!FU215)-1)","v":-3.9641614657397573E-2},{"$f":"((Quarterly!FV219/Quarterly!FV215)-1)","v":0.13566149281359685},{"$f":"((Quarterly!FW219/Quarterly!FW215)-1)","v":0.18353788354021727},{"$f":"((Quarterly!FX219/Quarterly!FX215)-1)","v":0.17651249472816333},null,null,null,null,null,{"$f":"((Quarterly!GD219/Quarterly!GD215)-1)","v":0.19526878073596743},{"$f":"((Quarterly!GE219/Quarterly!GE215)-1)","v":0.37652459016393425},{"$f":"((Quarterly!GF219/Quarterly!GF215)-1)","v":0.20922772659302491},{"$f":"((Quarterly!GG219/Quarterly!GG215)-1)","v":0.27290813341135123},{"$f":"((Quarterly!GH219/Quarterly!GH215)-1)","v":1.4254577157802966},{"$f":"((Quarterly!GI219/Quarterly!GI215)-1)","v":1.6983805668016196},{"$f":"((Quarterly!GJ219/Quarterly!GJ215)-1)","v":-0.1661263645385378},{"$f":"((Quarterly!GK219/Quarterly!GK215)-1)","v":2.2460850111856834E-2},"--"]
["11'Q2",{"$f":"((Quarterly!B220/Quarterly!B216)-1)","v":3.8440551831602665E-2},{"$f":"((Quarterly!C220/Quarterly!C216)-1)","v":1.652130116147954E-2},{"$f":"((Quarterly!D220/Quarterly!D216)-1)","v":1.5663341796926966E-2},{"$f":"((Quarterly!E220/Quarterly!E216)-1)","v":2.4918987037926055E-2},{"$f":"((Quarterly!F220/Quarterly!F216)-1)","v":5.6141410387438473E-2},{"$f":"((Quarterly!G220/Quarterly!G216)-1)","v":2.4053675296103361E-2},{"$f":"((Quarterly!H220/Quarterly!H216)-1)","v":2.0388952362028645E-2},{"$f":"((Quarterly!I220/Quarterly!I216)-1)","v":6.129013205791467E-2},{"$f":"((Quarterly!J220/Quarterly!J216)-1)","v":8.1309697012939219E-2},{"$f":"((Quarterly!K220/Quarterly!K216)-1)","v":-5.9912665054125847E-2},{"$f":"((Quarterly!L220-Quarterly!L216))","v":8.7609999999999957},{"$f":"((Quarterly!M220/Quarterly!M216)-1)","v":5.7786320878502551E-2},{"$f":"((Quarterly!N220/Quarterly!N216)-1)","v":8.1584401513214333E-2},{"$f":"((Quarterly!O220/Quarterly!O216)-1)","v":-3.0780891066132465E-2},{"$f":"((Quarterly!P220/Quarterly!P216)-1)","v":-3.1296670636135504E-2},{"$f":"((Quarterly!Q220/Quarterly!Q216)-1)","v":-1.8834752838699287E-2},null,null,null,null,null,{"$f":"((Quarterly!W220/Quarterly!W216)-1)","v":4.1018387553040991E-2},{"$f":"((Quarterly!X220/Quarterly!X216)-1)","v":3.8592896174863167E-2},{"$f":"((Quarterly!Y220/Quarterly!Y216)-1)","v":2.7002095849866681E-2},{"$f":"Quarterly!Z220-Quarterly!Z216","v":0.13999999999999999},{"$f":"((Quarterly!AA220/Quarterly!AA216)-1)","v":-9.472735435060331E-3},{"$f":"((Quarterly!AB220/Quarterly!AB216)-1)","v":6.9877923559612087E-2},{"$f":"Quarterly!AC220-Quarterly!AC216","v":3.7},{"$f":"Quarterly!AD220-Quarterly!AD216","v":18.899999999999999},{"$f":"(Quarterly!AE220-Quarterly!AE216)*100","v":210.00000000000006},{"$f":"(Quarterly!AF220-Quarterly!AF216)*100","v":13.999999999999998},{"$f":"(Quarterly!AG220-Quarterly!AG216)*100","v":71.000000000000014},{"$f":"((Quarterly!AH220/Quarterly!AH216)-1)","v":0.17885155417836729},{"$f":"((Quarterly!AI220/Quarterly!AI216)-1)","v":9.5637769850480225E-2},{"$f":"((Quarterly!AJ220/Quarterly!AJ216)-1)","v":3.8773669972948621E-2},{"$f":"((Quarterly!AK220/Quarterly!AK216)-1)","v":2.3297491039426577E-2},{"$f":"((Quarterly!AL220/Quarterly!AL216)-1)","v":1.6085790884718509E-2},{"$f":"((Quarterly!AM220/Quarterly!AM216)-1)","v":2.9091898011768924E-2},{"$f":"((Quarterly!AN220/Quarterly!AN216)-1)","v":2.7092711311599738E-2},{"$f":"((Quarterly!AO220/Quarterly!AO216)-1)","v":0.11799113355143409},{"$f":"(Quarterly!AP220-Quarterly!AP216)*100","v":0.24999999999999467},{"$f":"Quarterly!AQ220-Quarterly!AQ216","v":-1.1000000000000014},{"$f":"Quarterly!AR220-Quarterly!AR216","v":-4.5},{"$f":"Quarterly!AS220-Quarterly!AS216","v":8},{"$f":"Quarterly!AT220-Quarterly!AT216","v":2.9000000000000057},{"$f":"Quarterly!AU220-Quarterly!AU216","v":-2.8333333333333286},{"$f":"Quarterly!AV220-Quarterly!AV216","v":-3.3333333333333357},{"$f":"Quarterly!AW220-Quarterly!AW216","v":4.6666666666666643},{"$f":"Quarterly!AX220-Quarterly!AX216","v":-6.1999999999999886},{"$f":"Quarterly!AY220-Quarterly!AY216","v":5.8333333333333428},{"$f":"Quarterly!AZ220-Quarterly!AZ216","v":-6.0999999999999872},{"$f":"Quarterly!BA220-Quarterly!BA216","v":-2.0333333333333243},{"$f":"Quarterly!BB220-Quarterly!BB216","v":-4.1666666666666643},{"$f":"((Quarterly!BC220/Quarterly!BC216)-1)","v":0.1156232391059353},{"$f":"((Quarterly!BD220/Quarterly!BD216)-1)","v":5.2675031526995264E-2},{"$f":"((Quarterly!BE220/Quarterly!BE216)-1)","v":-3.2955312248318602E-2},{"$f":"((Quarterly!BF220/Quarterly!BF216)-1)","v":2.1362235180931055E-2},{"$f":"((Quarterly!BG220/Quarterly!BG216)-1)","v":4.0484257740065477E-3},{"$f":"((Quarterly!BH220/Quarterly!BH216)-1)","v":-1.1772192173083007E-2},{"$f":"((Quarterly!BI220/Quarterly!BI216)-1)","v":1.724085627900851E-2},{"$f":"((Quarterly!BJ220/Quarterly!BJ216)-1)","v":5.1759361556360517E-3},{"$f":"((Quarterly!BK220/Quarterly!BK216)-1)","v":0.82352941176470584},null,{"$f":"((Quarterly!BM220/Quarterly!BM216)-1)","v":7.4257421094977127E-2},{"$f":"((Quarterly!BN220/Quarterly!BN216)-1)","v":7.5950087353453766E-2},null,null,null,null,null,{"$f":"((Quarterly!BT220/Quarterly!BT216)-1)","v":-6.1228460294393106E-2},{"$f":"Quarterly!BU220-Quarterly!BU216","v":-0.69806999999999952},{"$f":"Quarterly!BV220-Quarterly!BV216","v":-0.66852000000000089},{"$f":"((Quarterly!BW220/Quarterly!BW216)-1)","v":8.2790718876067038E-2},{"$f":"((Quarterly!BX220/Quarterly!BX216)-1)","v":-2.574750830564787E-2},{"$f":"((Quarterly!BY220/Quarterly!BY216)-1)","v":2.3902167871039603E-2},{"$f":"((Quarterly!BZ220/Quarterly!BZ216)-1)","v":-4.5310835618611711E-2},{"$f":"((Quarterly!CA220/Quarterly!CA216)-1)","v":6.6947701416299132E-2},{"$f":"((Quarterly!CB220/Quarterly!CB216)-1)","v":9.149143397723658E-2},{"$f":"((Quarterly!CC220/Quarterly!CC216)-1)","v":3.5013918074700667E-2},{"$f":"((Quarterly!CD220/Quarterly!CD216)-1)","v":-0.21395348837209305},{"$f":"((Quarterly!CE220/Quarterly!CE216)-1)","v":-9.036742800397235E-2},null,{"$f":"((Quarterly!CG220/Quarterly!CG216)-1)","v":-5.4780876494023856E-2},{"$f":"((Quarterly!CH220/Quarterly!CH216)-1)","v":-0.11760563380281674},null,{"$f":"((Quarterly!CJ220/Quarterly!CJ216)-1)","v":-8.4657398212512502E-2},{"$f":"((Quarterly!CK220/Quarterly!CK216)-1)","v":6.5817669172932414E-2},{"$f":"((Quarterly!CL220/Quarterly!CL216)-1)","v":8.482756864143437E-2},{"$f":"((Quarterly!CM220/Quarterly!CM216)-1)","v":-0.13351498637602177},{"$f":"((Quarterly!CN220/Quarterly!CN216)-1)","v":2.4483497577833635E-2},{"$f":"((Quarterly!CO220/Quarterly!CO216)-1)","v":0.11554979698280121},{"$f":"((Quarterly!CP220/Quarterly!CP216)-1)","v":6.7142544332370324E-2},{"$f":"((Quarterly!CQ220/Quarterly!CQ216)-1)","v":7.7788133127900672E-3},{"$f":"((Quarterly!CR220/Quarterly!CR216)-1)","v":-5.7331886593565806E-2},{"$f":"Quarterly!CS220-Quarterly!CS216","v":-4.1083333333333343},{"$f":"Quarterly!CT220-Quarterly!CT216","v":2.7416666666666742},null,null,null,null,null,{"$f":"((Quarterly!CZ220/Quarterly!CZ216)-1)","v":3.4412141888533698E-2},{"$f":"((Quarterly!DA220/Quarterly!DA216)-1)","v":1.5663792765370887E-2},null,null,null,null,null,{"$f":"((Quarterly!DG220/Quarterly!DG216)-1)","v":2.710233029381981E-2},{"$f":"((Quarterly!DH220-Quarterly!DH216)*60)","v":15.499999999999972},{"$f":"Quarterly!DI220-Quarterly!DI216","v":-0.82500000000000284},{"$f":"(Quarterly!DJ220-Quarterly!DJ216)*100","v":-72.499999999999972},{"$f":"(Quarterly!DK220-Quarterly!DK216)*100","v":-58.333333333333215},{"$f":"((Quarterly!DL220/Quarterly!DL216)-1)","v":1.7607569663474099E-2},null,null,null,{"$f":"((Quarterly!DP220/Quarterly!DP216)-1)","v":1.0623998609872398E-2},null,null,null,null,{"$f":"Quarterly!DU220-Quarterly!DU216","v":-1.4750000000000014},{"$f":"((Quarterly!DV220/Quarterly!DV216)-1)","v":4.6125362241064671E-2},{"$f":"((Quarterly!DW220/Quarterly!DW216)-1)","v":4.6597295044500164E-2},{"$f":"((Quarterly!DX220/Quarterly!DX216)-1)","v":4.8155777527304044E-2},{"$f":"((Quarterly!DY220/Quarterly!DY216)-1)","v":6.8479522467252529E-2},{"$f":"((Quarterly!DZ220/Quarterly!DZ216)-1)","v":4.1933191186922514E-2},{"$f":"((Quarterly!EA220/Quarterly!EA216)-1)","v":4.2460056905230914E-2},{"$f":"((Quarterly!EB220/Quarterly!EB216)-1)","v":4.0727758304122785E-2},{"$f":"((Quarterly!EC220/Quarterly!EC216)-1)","v":4.3098935613331113E-2},null,null,null,null,null,{"$f":"((Quarterly!EI220/Quarterly!EI216)-1)","v":1.9022312685819109E-2},{"$f":"((Quarterly!EJ220/Quarterly!EJ216)-1)","v":1.0598362321788013E-2},{"$f":"((Quarterly!EK220/Quarterly!EK216)-1)","v":1.2387720275475411E-2},null,null,null,null,null,{"$f":"((Quarterly!EQ220/Quarterly!EQ216)-1)","v":0.10688438574271752},{"$f":"((Quarterly!ER220/Quarterly!ER216)-1)","v":2.3802654356607222E-2},{"$f":"((Quarterly!ES220/Quarterly!ES216)-1)","v":1.4995760915642142E-2},null,null,null,null,null,{"$f":"(Quarterly!EY220-Quarterly!EY216)*100","v":0},{"$f":"(Quarterly!EZ220-Quarterly!EZ216)*100","v":-10.583333333333336},{"$f":"(Quarterly!FA220-Quarterly!FA216)*100","v":-3.3333333333333215},{"$f":"(Quarterly!FB220-Quarterly!FB216)*100","v":-34.916666666666615},"--",{"$f":"(Quarterly!FD220-Quarterly!FD216)*100","v":-27.499999999999947},{"$f":"(Quarterly!FE220-Quarterly!FE216)*100","v":-10.166666666666666},{"$f":"(Quarterly!FF220-Quarterly!FF216)*100","v":-17.750000000000004},{"$f":"(Quarterly!FG220-Quarterly!FG216)*100","v":-34.250000000000014},{"$f":"(Quarterly!FH220-Quarterly!FH216)*100","v":-47.083333333333343},{"$f":"(Quarterly!FI220-Quarterly!FI216)*100","v":-33.25},null,null,null,null,null,null,{"$f":"((Quarterly!FP220/Quarterly!FP216)-1)","v":-6.1520871849761738E-2},{"$f":"((Quarterly!FQ220/Quarterly!FQ216)-1)","v":-4.9123171238062646E-2},{"$f":"((Quarterly!FR220/Quarterly!FR216)-1)","v":-6.7582147786389379E-2},{"$f":"((Quarterly!FS220/Quarterly!FS216)-1)","v":0.12830798628379991},{"$f":"((Quarterly!FT220/Quarterly!FT216)-1)","v":-8.1763875058916913E-2},{"$f":"((Quarterly!FU220/Quarterly!FU216)-1)","v":-0.10587286899293258},{"$f":"((Quarterly!FV220/Quarterly!FV216)-1)","v":9.575926242245747E-2},{"$f":"((Quarterly!FW220/Quarterly!FW216)-1)","v":0.12646770452208411},{"$f":"((Quarterly!FX220/Quarterly!FX216)-1)","v":0.13846286329386426},null,null,null,null,null,{"$f":"((Quarterly!GD220/Quarterly!GD216)-1)","v":0.29942868147387358},{"$f":"((Quarterly!GE220/Quarterly!GE216)-1)","v":0.49484142147497145},{"$f":"((Quarterly!GF220/Quarterly!GF216)-1)","v":0.33859244403742039},{"$f":"((Quarterly!GG220/Quarterly!GG216)-1)","v":0.32701630674305848},{"$f":"((Quarterly!GH220/Quarterly!GH216)-1)","v":1.0615384615384618},{"$f":"((Quarterly!GI220/Quarterly!GI216)-1)","v":0.82608695652173902},{"$f":"((Quarterly!GJ220/Quarterly!GJ216)-1)","v":7.368744243168468E-3},{"$f":"((Quarterly!GK220/Quarterly!GK216)-1)","v":1.1393514460997789E-3},"--"]
["11'Q3",{"$f":"((Quarterly!B221/Quarterly!B217)-1)","v":3.516250200894433E-2},{"$f":"((Quarterly!C221/Quarterly!C217)-1)","v":1.1834663504487253E-2},{"$f":"((Quarterly!D221/Quarterly!D217)-1)","v":2.1099713979421342E-2},{"$f":"((Quarterly!E221/Quarterly!E217)-1)","v":2.1775927232496661E-2},{"$f":"((Quarterly!F221/Quarterly!F217)-1)","v":5.0163045134550277E-2},{"$f":"((Quarterly!G221/Quarterly!G217)-1)","v":1.5154237795747427E-2},{"$f":"((Quarterly!H221/Quarterly!H217)-1)","v":1.9671807038355027E-2},{"$f":"((Quarterly!I221/Quarterly!I217)-1)","v":8.7449845697245232E-2},{"$f":"((Quarterly!J221/Quarterly!J217)-1)","v":9.3500549524999421E-2},{"$f":"((Quarterly!K221/Quarterly!K217)-1)","v":5.0716920853459246E-2},{"$f":"((Quarterly!L221-Quarterly!L217))","v":-129.25299999999999},{"$f":"((Quarterly!M221/Quarterly!M217)-1)","v":3.0037635787840689E-2},{"$f":"((Quarterly!N221/Quarterly!N217)-1)","v":6.2913210956502041E-2},{"$f":"((Quarterly!O221/Quarterly!O217)-1)","v":-8.8519295007472909E-2},{"$f":"((Quarterly!P221/Quarterly!P217)-1)","v":-3.6579923590308261E-2},{"$f":"((Quarterly!Q221/Quarterly!Q217)-1)","v":-6.6702950678505846E-2},null,null,null,null,null,{"$f":"((Quarterly!W221/Quarterly!W217)-1)","v":3.1944444444444331E-2},{"$f":"((Quarterly!X221/Quarterly!X217)-1)","v":2.4553571428571397E-2},{"$f":"((Quarterly!Y221/Quarterly!Y217)-1)","v":6.027629897428266E-2},{"$f":"Quarterly!Z221-Quarterly!Z217","v":0.15},{"$f":"((Quarterly!AA221/Quarterly!AA217)-1)","v":-4.5818376848061226E-2},{"$f":"((Quarterly!AB221/Quarterly!AB217)-1)","v":3.4401492815614665E-2},{"$f":"Quarterly!AC221-Quarterly!AC217","v":8.9},{"$f":"Quarterly!AD221-Quarterly!AD217","v":9.4},{"$f":"(Quarterly!AE221-Quarterly!AE217)*100","v":244},{"$f":"(Quarterly!AF221-Quarterly!AF217)*100","v":15},{"$f":"(Quarterly!AG221-Quarterly!AG217)*100","v":105.99999999999999},{"$f":"((Quarterly!AH221/Quarterly!AH217)-1)","v":0.14889558002160563},{"$f":"((Quarterly!AI221/Quarterly!AI217)-1)","v":6.3542236378003381E-2},{"$f":"((Quarterly!AJ221/Quarterly!AJ217)-1)","v":3.4050179211469578E-2},{"$f":"((Quarterly!AK221/Quarterly!AK217)-1)","v":2.2301516503122176E-2},{"$f":"((Quarterly!AL221/Quarterly!AL217)-1)","v":1.6918967052537814E-2},{"$f":"((Quarterly!AM221/Quarterly!AM217)-1)","v":2.3004583987001892E-2},{"$f":"((Quarterly!AN221/Quarterly!AN217)-1)","v":2.2134183373244243E-2},{"$f":"((Quarterly!AO221/Quarterly!AO217)-1)","v":0.10288963357819902},{"$f":"(Quarterly!AP221-Quarterly!AP217)*100","v":-1.3333333333333419},{"$f":"Quarterly!AQ221-Quarterly!AQ217","v":-4.1000000000000085},{"$f":"Quarterly!AR221-Quarterly!AR217","v":-6.6666666666666714},{"$f":"Quarterly!AS221-Quarterly!AS217","v":4.8333333333333357},{"$f":"Quarterly!AT221-Quarterly!AT217","v":-4.5999999999999943},{"$f":"Quarterly!AU221-Quarterly!AU217","v":-3.25},{"$f":"Quarterly!AV221-Quarterly!AV217","v":-0.6666666666666643},{"$f":"Quarterly!AW221-Quarterly!AW217","v":-1.1666666666666643},{"$f":"Quarterly!AX221-Quarterly!AX217","v":-3.7666666666666728},{"$f":"Quarterly!AY221-Quarterly!AY217","v":-6.3333333333333286},{"$f":"Quarterly!AZ221-Quarterly!AZ217","v":-7.2999999999999972},{"$f":"Quarterly!BA221-Quarterly!BA217","v":-4.9666666666666686},{"$f":"Quarterly!BB221-Quarterly!BB217","v":0.53333333333333144},{"$f":"((Quarterly!BC221/Quarterly!BC217)-1)","v":0.12074949539999213},{"$f":"((Quarterly!BD221/Quarterly!BD217)-1)","v":5.3161188939186976E-2},{"$f":"((Quarterly!BE221/Quarterly!BE217)-1)","v":-3.0154417125058064E-2},{"$f":"((Quarterly!BF221/Quarterly!BF217)-1)","v":2.3212173930041047E-2},{"$f":"((Quarterly!BG221/Quarterly!BG217)-1)","v":-2.7724111282843023E-3},{"$f":"((Quarterly!BH221/Quarterly!BH217)-1)","v":-1.3442007763404762E-2},{"$f":"((Quarterly!BI221/Quarterly!BI217)-1)","v":2.605273275460851E-2},{"$f":"((Quarterly!BJ221/Quarterly!BJ217)-1)","v":-9.3871025796243179E-2},{"$f":"((Quarterly!BK221/Quarterly!BK217)-1)","v":0.71428571428571419},null,{"$f":"((Quarterly!BM221/Quarterly!BM217)-1)","v":7.8358348407157719E-2},{"$f":"((Quarterly!BN221/Quarterly!BN217)-1)","v":8.0253835460528222E-2},null,null,null,null,null,{"$f":"((Quarterly!BT221/Quarterly!BT217)-1)","v":-4.4063114903276634E-2},{"$f":"Quarterly!BU221-Quarterly!BU217","v":-0.62162999999999968},{"$f":"Quarterly!BV221-Quarterly!BV217","v":-0.57432999999999979},{"$f":"((Quarterly!BW221/Quarterly!BW217)-1)","v":7.5180666927627815E-2},{"$f":"((Quarterly!BX221/Quarterly!BX217)-1)","v":6.8430132259919674E-2},{"$f":"((Quarterly!BY221/Quarterly!BY217)-1)","v":9.0592334494773441E-2},{"$f":"((Quarterly!BZ221/Quarterly!BZ217)-1)","v":-3.8406012970049752E-2},{"$f":"((Quarterly!CA221/Quarterly!CA217)-1)","v":7.10391822827936E-2},{"$f":"((Quarterly!CB221/Quarterly!CB217)-1)","v":0.19176415974446459},{"$f":"((Quarterly!CC221/Quarterly!CC217)-1)","v":9.940842500871816E-2},{"$f":"((Quarterly!CD221/Quarterly!CD217)-1)","v":-0.20779220779220786},{"$f":"((Quarterly!CE221/Quarterly!CE217)-1)","v":1.9274376417233618E-2},null,{"$f":"((Quarterly!CG221/Quarterly!CG217)-1)","v":-0.1228239845261121},{"$f":"((Quarterly!CH221/Quarterly!CH217)-1)","v":0.19176800748362965},null,{"$f":"((Quarterly!CJ221/Quarterly!CJ217)-1)","v":1.9274376417233618E-2},{"$f":"((Quarterly!CK221/Quarterly!CK217)-1)","v":6.4047236896650706E-2},{"$f":"((Quarterly!CL221/Quarterly!CL217)-1)","v":0.10192189736250268},{"$f":"((Quarterly!CM221/Quarterly!CM217)-1)","v":-1.547987616099078E-2},{"$f":"((Quarterly!CN221/Quarterly!CN217)-1)","v":2.3098593241311249E-2},{"$f":"((Quarterly!CO221/Quarterly!CO217)-1)","v":0.1361589694890728},{"$f":"((Quarterly!CP221/Quarterly!CP217)-1)","v":7.816747552862835E-2},{"$f":"((Quarterly!CQ221/Quarterly!CQ217)-1)","v":7.450842077418196E-3},{"$f":"((Quarterly!CR221/Quarterly!CR217)-1)","v":-3.3774758838761021E-2},{"$f":"Quarterly!CS221-Quarterly!CS217","v":-8.6333333333333329},{"$f":"Quarterly!CT221-Quarterly!CT217","v":-0.56666666666666998},null,null,null,null,null,{"$f":"((Quarterly!CZ221/Quarterly!CZ217)-1)","v":3.7159511351278374E-2},{"$f":"((Quarterly!DA221/Quarterly!DA217)-1)","v":1.8981827702484244E-2},null,null,null,null,null,{"$f":"((Quarterly!DG221/Quarterly!DG217)-1)","v":2.5511916750587504E-2},{"$f":"((Quarterly!DH221-Quarterly!DH217)*60)","v":9.9999999999998579},{"$f":"Quarterly!DI221-Quarterly!DI217","v":-0.53333333333333144},{"$f":"(Quarterly!DJ221-Quarterly!DJ217)*100","v":-43.333333333333357},{"$f":"(Quarterly!DK221-Quarterly!DK217)*100","v":-46.666666666666679},{"$f":"((Quarterly!DL221/Quarterly!DL217)-1)","v":1.7360209937422377E-2},null,null,null,{"$f":"((Quarterly!DP221/Quarterly!DP217)-1)","v":1.3428651026317961E-2},null,null,null,null,{"$f":"Quarterly!DU221-Quarterly!DU217","v":0.93333333333333712},{"$f":"((Quarterly!DV221/Quarterly!DV217)-1)","v":3.8357544268900368E-2},{"$f":"((Quarterly!DW221/Quarterly!DW217)-1)","v":3.8380254128943303E-2},{"$f":"((Quarterly!DX221/Quarterly!DX217)-1)","v":3.7317119513585517E-2},{"$f":"((Quarterly!DY221/Quarterly!DY217)-1)","v":6.3843542912558782E-2},{"$f":"((Quarterly!DZ221/Quarterly!DZ217)-1)","v":2.9163354531001495E-2},{"$f":"((Quarterly!EA221/Quarterly!EA217)-1)","v":3.0756026035333672E-2},{"$f":"((Quarterly!EB221/Quarterly!EB217)-1)","v":2.554091426712235E-2},{"$f":"((Quarterly!EC221/Quarterly!EC217)-1)","v":4.0709290709290524E-2},null,null,null,null,null,{"$f":"((Quarterly!EI221/Quarterly!EI217)-1)","v":2.4414251123533237E-2},{"$f":"((Quarterly!EJ221/Quarterly!EJ217)-1)","v":1.4064378292512725E-2},{"$f":"((Quarterly!EK221/Quarterly!EK217)-1)","v":1.154574087524618E-2},null,null,null,null,null,{"$f":"((Quarterly!EQ221/Quarterly!EQ217)-1)","v":0.10398988987181812},{"$f":"((Quarterly!ER221/Quarterly!ER217)-1)","v":2.6633454684805269E-2},{"$f":"((Quarterly!ES221/Quarterly!ES217)-1)","v":1.713922979263649E-2},null,null,null,null,null,{"$f":"(Quarterly!EY221-Quarterly!EY217)*100","v":0},{"$f":"(Quarterly!EZ221-Quarterly!EZ217)*100","v":-10.333333333333334},{"$f":"(Quarterly!FA221-Quarterly!FA217)*100","v":-11.666666666666714},{"$f":"(Quarterly!FB221-Quarterly!FB217)*100","v":-31.333333333333258},"--",{"$f":"(Quarterly!FD221-Quarterly!FD217)*100","v":-13.666666666666671},{"$f":"(Quarterly!FE221-Quarterly!FE217)*100","v":-13.33333333333333},{"$f":"(Quarterly!FF221-Quarterly!FF217)*100","v":-13.666666666666668},{"$f":"(Quarterly!FG221-Quarterly!FG217)*100","v":-25.666666666666671},{"$f":"(Quarterly!FH221-Quarterly!FH217)*100","v":-39.333333333333329},{"$f":"(Quarterly!FI221-Quarterly!FI217)*100","v":-36.000000000000028},null,null,null,null,null,null,{"$f":"((Quarterly!FP221/Quarterly!FP217)-1)","v":-5.6522018230838467E-2},{"$f":"((Quarterly!FQ221/Quarterly!FQ217)-1)","v":-5.1888627845008917E-2},{"$f":"((Quarterly!FR221/Quarterly!FR217)-1)","v":-3.6309376425359918E-2},{"$f":"((Quarterly!FS221/Quarterly!FS217)-1)","v":9.1145632068423632E-2},{"$f":"((Quarterly!FT221/Quarterly!FT217)-1)","v":-6.3334412768360271E-2},{"$f":"((Quarterly!FU221/Quarterly!FU217)-1)","v":-8.0652038454495645E-2},{"$f":"((Quarterly!FV221/Quarterly!FV217)-1)","v":0.17745361220095002},{"$f":"((Quarterly!FW221/Quarterly!FW217)-1)","v":4.9173334052396545E-2},{"$f":"((Quarterly!FX221/Quarterly!FX217)-1)","v":0.14001610305958145},null,null,null,null,null,{"$f":"((Quarterly!GD221/Quarterly!GD217)-1)","v":0.17781181619255992},{"$f":"((Quarterly!GE221/Quarterly!GE217)-1)","v":0.47539703202291039},{"$f":"((Quarterly!GF221/Quarterly!GF217)-1)","v":0.3292097500015021},{"$f":"((Quarterly!GG221/Quarterly!GG217)-1)","v":0.31601633393829398},{"$f":"((Quarterly!GH221/Quarterly!GH217)-1)","v":0.92049108447822281},{"$f":"((Quarterly!GI221/Quarterly!GI217)-1)","v":0.81492537313432845},{"$f":"((Quarterly!GJ221/Quarterly!GJ217)-1)","v":-4.1076487252124538E-2},{"$f":"((Quarterly!GK221/Quarterly!GK217)-1)","v":8.1086005830903751E-3},{"$f":"((Quarterly!GL221/Quarterly!GL217)-1)","v":0.10014878184861442}]
["11'Q4",{"$f":"((Quarterly!B222/Quarterly!B218)-1)","v":3.6447565259778436E-2},{"$f":"((Quarterly!C222/Quarterly!C218)-1)","v":1.681866143525923E-2},{"$f":"((Quarterly!D222/Quarterly!D218)-1)","v":1.4964439242848293E-2},{"$f":"((Quarterly!E222/Quarterly!E218)-1)","v":1.4817170736825425E-2},{"$f":"((Quarterly!F222/Quarterly!F218)-1)","v":4.7985098897200151E-2},{"$f":"((Quarterly!G222/Quarterly!G218)-1)","v":3.5042065264001554E-3},{"$f":"((Quarterly!H222/Quarterly!H218)-1)","v":1.3572793499992519E-2},{"$f":"((Quarterly!I222/Quarterly!I218)-1)","v":8.9715286654796111E-2},{"$f":"((Quarterly!J222/Quarterly!J218)-1)","v":9.2350777893239533E-2},{"$f":"((Quarterly!K222/Quarterly!K218)-1)","v":5.9908669469317832E-2},{"$f":"((Quarterly!L222-Quarterly!L218))","v":22.742000000000004},{"$f":"((Quarterly!M222/Quarterly!M218)-1)","v":3.4886302410271908E-2},{"$f":"((Quarterly!N222/Quarterly!N218)-1)","v":4.1577402205823955E-2},{"$f":"((Quarterly!O222/Quarterly!O218)-1)","v":7.8259047269770843E-3},{"$f":"((Quarterly!P222/Quarterly!P218)-1)","v":-3.0357893996595831E-2},{"$f":"((Quarterly!Q222/Quarterly!Q218)-1)","v":-8.3935477149178483E-2},null,null,null,null,null,{"$f":"((Quarterly!W222/Quarterly!W218)-1)","v":3.0303030303030276E-2},{"$f":"((Quarterly!X222/Quarterly!X218)-1)","v":2.3049645390071039E-2},{"$f":"((Quarterly!Y222/Quarterly!Y218)-1)","v":8.7686539158826404E-2},{"$f":"Quarterly!Z222-Quarterly!Z218","v":0.16999999999999998},{"$f":"((Quarterly!AA222/Quarterly!AA218)-1)","v":8.4398378009449271E-3},{"$f":"((Quarterly!AB222/Quarterly!AB218)-1)","v":9.6357410143466771E-2},{"$f":"Quarterly!AC222-Quarterly!AC218","v":8.7000000000000011},{"$f":"Quarterly!AD222-Quarterly!AD218","v":2.5999999999999979},{"$f":"(Quarterly!AE222-Quarterly!AE218)*100","v":275},{"$f":"(Quarterly!AF222-Quarterly!AF218)*100","v":17},{"$f":"(Quarterly!AG222-Quarterly!AG218)*100","v":124.99999999999997},{"$f":"((Quarterly!AH222/Quarterly!AH218)-1)","v":0.17575004438132424},{"$f":"((Quarterly!AI222/Quarterly!AI218)-1)","v":0.10195973664173885},{"$f":"((Quarterly!AJ222/Quarterly!AJ218)-1)","v":3.5682426404995526E-2},{"$f":"((Quarterly!AK222/Quarterly!AK218)-1)","v":2.2202486678507993E-2},{"$f":"((Quarterly!AL222/Quarterly!AL218)-1)","v":1.5943312666076181E-2},{"$f":"((Quarterly!AM222/Quarterly!AM218)-1)","v":2.8474856395920956E-2},{"$f":"((Quarterly!AN222/Quarterly!AN218)-1)","v":2.6766155126110025E-2},{"$f":"((Quarterly!AO222/Quarterly!AO218)-1)","v":8.4082206330939879E-2},{"$f":"(Quarterly!AP222-Quarterly!AP218)*100","v":-1.0000000000000009},{"$f":"Quarterly!AQ222-Quarterly!AQ218","v":-5.7666666666666657},{"$f":"Quarterly!AR222-Quarterly!AR218","v":0.5},{"$f":"Quarterly!AS222-Quarterly!AS218","v":2.1666666666666714},{"$f":"Quarterly!AT222-Quarterly!AT218","v":-4.9000000000000057},{"$f":"Quarterly!AU222-Quarterly!AU218","v":-5.5},{"$f":"Quarterly!AV222-Quarterly!AV218","v":-0.8333333333333286},{"$f":"Quarterly!AW222-Quarterly!AW218","v":-6.1666666666666714},{"$f":"Quarterly!AX222-Quarterly!AX218","v":-4.1000000000000014},{"$f":"Quarterly!AY222-Quarterly!AY218","v":-26.5},{"$f":"Quarterly!AZ222-Quarterly!AZ218","v":-4.8999999999999915},{"$f":"Quarterly!BA222-Quarterly!BA218","v":-5.3999999999999986},{"$f":"Quarterly!BB222-Quarterly!BB218","v":-0.90000000000000568},{"$f":"((Quarterly!BC222/Quarterly!BC218)-1)","v":0.12057001997629557},{"$f":"((Quarterly!BD222/Quarterly!BD218)-1)","v":3.421453723655854E-2},{"$f":"((Quarterly!BE222/Quarterly!BE218)-1)","v":-3.7552634795071649E-2},{"$f":"((Quarterly!BF222/Quarterly!BF218)-1)","v":5.2832832248459471E-3},{"$f":"((Quarterly!BG222/Quarterly!BG218)-1)","v":4.8103287378697956E-5},{"$f":"((Quarterly!BH222/Quarterly!BH218)-1)","v":-2.7170014347202232E-2},{"$f":"((Quarterly!BI222/Quarterly!BI218)-1)","v":5.2286127489153955E-3},{"$f":"((Quarterly!BJ222/Quarterly!BJ218)-1)","v":-3.0455840949666468E-2},{"$f":"((Quarterly!BK222/Quarterly!BK218)-1)","v":0.70833333333333326},null,{"$f":"((Quarterly!BM222/Quarterly!BM218)-1)","v":6.6572758006470556E-2},{"$f":"((Quarterly!BN222/Quarterly!BN218)-1)","v":6.6962798445308058E-2},null,null,null,null,null,{"$f":"((Quarterly!BT222/Quarterly!BT218)-1)","v":-2.3628060516288518E-2},{"$f":"Quarterly!BU222-Quarterly!BU218","v":-0.54384999999999906},{"$f":"Quarterly!BV222-Quarterly!BV218","v":-0.44317000000000029},{"$f":"((Quarterly!BW222/Quarterly!BW218)-1)","v":6.9293621746227663E-2},{"$f":"((Quarterly!BX222/Quarterly!BX218)-1)","v":0.238475722188076},{"$f":"((Quarterly!BY222/Quarterly!BY218)-1)","v":0.18514285714285705},{"$f":"((Quarterly!BZ222/Quarterly!BZ218)-1)","v":-3.6998254799301966E-2},{"$f":"((Quarterly!CA222/Quarterly!CA218)-1)","v":9.8221106624467813E-2},{"$f":"((Quarterly!CB222/Quarterly!CB218)-1)","v":0.11639785022424376},{"$f":"((Quarterly!CC222/Quarterly!CC218)-1)","v":3.6953777755070139E-2},{"$f":"((Quarterly!CD222/Quarterly!CD218)-1)","v":-0.20547945205479456},{"$f":"((Quarterly!CE222/Quarterly!CE218)-1)","v":8.960176991150437E-2},null,{"$f":"((Quarterly!CG222/Quarterly!CG218)-1)","v":-0.18816067653276958},{"$f":"((Quarterly!CH222/Quarterly!CH218)-1)","v":7.9967023907667079E-2},null,{"$f":"((Quarterly!CJ222/Quarterly!CJ218)-1)","v":8.960176991150437E-2},{"$f":"((Quarterly!CK222/Quarterly!CK218)-1)","v":5.3631530936428584E-2},{"$f":"((Quarterly!CL222/Quarterly!CL218)-1)","v":9.992605894158646E-2},{"$f":"((Quarterly!CM222/Quarterly!CM218)-1)","v":8.1122062168309306E-2},{"$f":"((Quarterly!CN222/Quarterly!CN218)-1)","v":1.6642756374503742E-2},{"$f":"((Quarterly!CO222/Quarterly!CO218)-1)","v":0.13073463834933086},{"$f":"((Quarterly!CP222/Quarterly!CP218)-1)","v":6.8686603823948422E-2},{"$f":"((Quarterly!CQ222/Quarterly!CQ218)-1)","v":7.3720039832430029E-3},{"$f":"((Quarterly!CR222/Quarterly!CR218)-1)","v":-8.6078176453950883E-3},{"$f":"Quarterly!CS222-Quarterly!CS218","v":-6.4666666666666686},{"$f":"Quarterly!CT222-Quarterly!CT218","v":1.1333333333333258},null,null,null,null,null,{"$f":"((Quarterly!CZ222/Quarterly!CZ218)-1)","v":3.3447277107921947E-2},{"$f":"((Quarterly!DA222/Quarterly!DA218)-1)","v":2.1743241255729018E-2},null,null,null,null,null,{"$f":"((Quarterly!DG222/Quarterly!DG218)-1)","v":2.6017344896597905E-2},{"$f":"((Quarterly!DH222-Quarterly!DH218)*60)","v":8.0000000000003979},{"$f":"Quarterly!DI222-Quarterly!DI218","v":-0.36666666666667425},{"$f":"(Quarterly!DJ222-Quarterly!DJ218)*100","v":-119.99999999999993},{"$f":"(Quarterly!DK222-Quarterly!DK218)*100","v":-86.666666666666885},{"$f":"((Quarterly!DL222/Quarterly!DL218)-1)","v":1.7557998963790178E-2},null,null,null,{"$f":"((Quarterly!DP222/Quarterly!DP218)-1)","v":1.5315228032960704E-2},null,null,null,null,{"$f":"Quarterly!DU222-Quarterly!DU218","v":-0.73333333333332718},{"$f":"((Quarterly!DV222/Quarterly!DV218)-1)","v":3.8511080150364085E-2},{"$f":"((Quarterly!DW222/Quarterly!DW218)-1)","v":3.640865259317172E-2},{"$f":"((Quarterly!DX222/Quarterly!DX218)-1)","v":3.1988299707492507E-2},{"$f":"((Quarterly!DY222/Quarterly!DY218)-1)","v":3.818729202978921E-2},{"$f":"((Quarterly!DZ222/Quarterly!DZ218)-1)","v":3.0066322770817999E-2},{"$f":"((Quarterly!EA222/Quarterly!EA218)-1)","v":3.1882626789871082E-2},{"$f":"((Quarterly!EB222/Quarterly!EB218)-1)","v":2.589834898025245E-2},{"$f":"((Quarterly!EC222/Quarterly!EC218)-1)","v":4.6479835953519899E-2},null,null,null,null,null,{"$f":"((Quarterly!EI222/Quarterly!EI218)-1)","v":3.561065814994957E-2},{"$f":"((Quarterly!EJ222/Quarterly!EJ218)-1)","v":1.8883246865756265E-2},{"$f":"((Quarterly!EK222/Quarterly!EK218)-1)","v":1.3580691855603622E-2},null,null,null,null,null,{"$f":"((Quarterly!EQ222/Quarterly!EQ218)-1)","v":6.7907801418439551E-2},{"$f":"((Quarterly!ER222/Quarterly!ER218)-1)","v":3.0198776758409762E-2},{"$f":"((Quarterly!ES222/Quarterly!ES218)-1)","v":2.201524132091448E-2},null,null,null,null,null,{"$f":"(Quarterly!EY222-Quarterly!EY218)*100","v":0},{"$f":"(Quarterly!EZ222-Quarterly!EZ218)*100","v":-11.333333333333332},{"$f":"(Quarterly!FA222-Quarterly!FA218)*100","v":-93.000000000000014},{"$f":"(Quarterly!FB222-Quarterly!FB218)*100","v":-66.000000000000099},"--",{"$f":"(Quarterly!FD222-Quarterly!FD218)*100","v":-40.666666666666714},{"$f":"(Quarterly!FE222-Quarterly!FE218)*100","v":-12.333333333333336},{"$f":"(Quarterly!FF222-Quarterly!FF218)*100","v":-14.333333333333332},{"$f":"(Quarterly!FG222-Quarterly!FG218)*100","v":-22.000000000000004},{"$f":"(Quarterly!FH222-Quarterly!FH218)*100","v":-53.333333333333307},{"$f":"(Quarterly!FI222-Quarterly!FI218)*100","v":-81.666666666666643},null,null,null,null,null,null,{"$f":"((Quarterly!FP222/Quarterly!FP218)-1)","v":9.608740004607208E-3},{"$f":"((Quarterly!FQ222/Quarterly!FQ218)-1)","v":-4.4849358829920805E-2},{"$f":"((Quarterly!FR222/Quarterly!FR218)-1)","v":0.1006508444296168},{"$f":"((Quarterly!FS222/Quarterly!FS218)-1)","v":-8.1175201098683258E-3},{"$f":"((Quarterly!FT222/Quarterly!FT218)-1)","v":4.0209534223607513E-3},{"$f":"((Quarterly!FU222/Quarterly!FU218)-1)","v":-7.9715030071834114E-3},{"$f":"((Quarterly!FV222/Quarterly!FV218)-1)","v":0.12445293352230813},{"$f":"((Quarterly!FW222/Quarterly!FW218)-1)","v":6.9828725937606917E-2},{"$f":"((Quarterly!FX222/Quarterly!FX218)-1)","v":0.10574773029502049},null,null,null,null,null,{"$f":"((Quarterly!GD222/Quarterly!GD218)-1)","v":0.10628038262505846},{"$f":"((Quarterly!GE222/Quarterly!GE218)-1)","v":0.26518889745566709},{"$f":"((Quarterly!GF222/Quarterly!GF218)-1)","v":0.16388113294103657},{"$f":"((Quarterly!GG222/Quarterly!GG218)-1)","v":0.23169051404345531},{"$f":"((Quarterly!GH222/Quarterly!GH218)-1)","v":0.52409046214355959},{"$f":"((Quarterly!GI222/Quarterly!GI218)-1)","v":0.45517720639332859},{"$f":"((Quarterly!GJ222/Quarterly!GJ218)-1)","v":-0.12553459119496846},{"$f":"((Quarterly!GK222/Quarterly!GK218)-1)","v":3.6110394635027188E-2},{"$f":"((Quarterly!GL222/Quarterly!GL218)-1)","v":9.1155724362452561E-2}]
["12'Q1",{"$f":"((Quarterly!B223/Quarterly!B219)-1)","v":4.8266970268672438E-2},{"$f":"((Quarterly!C223/Quarterly!C219)-1)","v":2.7533479767662739E-2},{"$f":"((Quarterly!D223/Quarterly!D219)-1)","v":2.4886756141616617E-2},{"$f":"((Quarterly!E223/Quarterly!E219)-1)","v":1.5845931996581131E-2},{"$f":"((Quarterly!F223/Quarterly!F219)-1)","v":6.3089364435231943E-2},{"$f":"((Quarterly!G223/Quarterly!G219)-1)","v":3.8850953614313344E-3},{"$f":"((Quarterly!H223/Quarterly!H219)-1)","v":1.2629673125856167E-2},{"$f":"((Quarterly!I223/Quarterly!I219)-1)","v":0.12412557499914456},{"$f":"((Quarterly!J223/Quarterly!J219)-1)","v":9.9557969046972561E-2},{"$f":"((Quarterly!K223/Quarterly!K219)-1)","v":0.12840819248274538},{"$f":"((Quarterly!L223-Quarterly!L219))","v":30.949000000000002},{"$f":"((Quarterly!M223/Quarterly!M219)-1)","v":3.2987156439259646E-2},{"$f":"((Quarterly!N223/Quarterly!N219)-1)","v":4.3116016154209236E-2},{"$f":"((Quarterly!O223/Quarterly!O219)-1)","v":-7.4756371452292525E-3},{"$f":"((Quarterly!P223/Quarterly!P219)-1)","v":-1.6101766938360296E-2},{"$f":"((Quarterly!Q223/Quarterly!Q219)-1)","v":-0.10460658490266939},null,null,null,null,null,{"$f":"((Quarterly!W223/Quarterly!W219)-1)","v":2.7210884353741527E-2},{"$f":"((Quarterly!X223/Quarterly!X219)-1)","v":2.0246478873239493E-2},{"$f":"((Quarterly!Y223/Quarterly!Y219)-1)","v":0.11483807159134196},{"$f":"Quarterly!Z223-Quarterly!Z219","v":0.22000000000000003},{"$f":"((Quarterly!AA223/Quarterly!AA219)-1)","v":0.2793137541705395},{"$f":"((Quarterly!AB223/Quarterly!AB219)-1)","v":0.22926729411838243},{"$f":"Quarterly!AC223-Quarterly!AC219","v":6.0000000000000009},{"$f":"Quarterly!AD223-Quarterly!AD219","v":9.5},{"$f":"(Quarterly!AE223-Quarterly!AE219)*100","v":265.99999999999994},{"$f":"(Quarterly!AF223-Quarterly!AF219)*100","v":22.000000000000004},{"$f":"(Quarterly!AG223-Quarterly!AG219)*100","v":128.00000000000003},{"$f":"((Quarterly!AH223/Quarterly!AH219)-1)","v":0.17029078195616942},{"$f":"((Quarterly!AI223/Quarterly!AI219)-1)","v":0.10058851806646785},{"$f":"((Quarterly!AJ223/Quarterly!AJ219)-1)","v":2.8169014084507005E-2},{"$f":"((Quarterly!AK223/Quarterly!AK219)-1)","v":2.118270079435125E-2},{"$f":"((Quarterly!AL223/Quarterly!AL219)-1)","v":1.8551236749116518E-2},{"$f":"((Quarterly!AM223/Quarterly!AM219)-1)","v":3.2934692114820363E-2},{"$f":"((Quarterly!AN223/Quarterly!AN219)-1)","v":3.2378339133818157E-2},{"$f":"((Quarterly!AO223/Quarterly!AO219)-1)","v":7.4358533757766132E-2},{"$f":"(Quarterly!AP223-Quarterly!AP219)*100","v":0},{"$f":"Quarterly!AQ223-Quarterly!AQ219","v":-6.0666666666666629},{"$f":"Quarterly!AR223-Quarterly!AR219","v":-4.1666666666666643},{"$f":"Quarterly!AS223-Quarterly!AS219","v":4.3333333333333357},{"$f":"Quarterly!AT223-Quarterly!AT219","v":-6.7666666666666728},{"$f":"Quarterly!AU223-Quarterly!AU219","v":-4},{"$f":"Quarterly!AV223-Quarterly!AV219","v":-2.1666666666666643},{"$f":"Quarterly!AW223-Quarterly!AW219","v":-0.8333333333333357},{"$f":"Quarterly!AX223-Quarterly!AX219","v":-7.13333333333334},{"$f":"Quarterly!AY223-Quarterly!AY219","v":-23.499999999999993},{"$f":"Quarterly!AZ223-Quarterly!AZ219","v":-8.1666666666666714},{"$f":"Quarterly!BA223-Quarterly!BA219","v":-9.5333333333333314},{"$f":"Quarterly!BB223-Quarterly!BB219","v":-1.8333333333333286},{"$f":"((Quarterly!BC223/Quarterly!BC219)-1)","v":0.13719544076126744},{"$f":"((Quarterly!BD223/Quarterly!BD219)-1)","v":2.7648734996977842E-2},{"$f":"((Quarterly!BE223/Quarterly!BE219)-1)","v":-1.7899641336774574E-2},{"$f":"((Quarterly!BF223/Quarterly!BF219)-1)","v":1.027518375851888E-2},{"$f":"((Quarterly!BG223/Quarterly!BG219)-1)","v":9.8469120471875726E-3},{"$f":"((Quarterly!BH223/Quarterly!BH219)-1)","v":-1.7431219888606408E-2},{"$f":"((Quarterly!BI223/Quarterly!BI219)-1)","v":4.236578421037418E-4},{"$f":"((Quarterly!BJ223/Quarterly!BJ219)-1)","v":0.3153603095836961},{"$f":"((Quarterly!BK223/Quarterly!BK219)-1)","v":0.73333333333333339},null,{"$f":"((Quarterly!BM223/Quarterly!BM219)-1)","v":6.3731409191915667E-2},{"$f":"((Quarterly!BN223/Quarterly!BN219)-1)","v":6.3331810886193551E-2},null,null,null,null,null,{"$f":"((Quarterly!BT223/Quarterly!BT219)-1)","v":1.42244281195123E-2},{"$f":"Quarterly!BU223-Quarterly!BU219","v":-0.5349699999999995},{"$f":"Quarterly!BV223-Quarterly!BV219","v":-0.44967999999999897},{"$f":"((Quarterly!BW223/Quarterly!BW219)-1)","v":6.4456534496513784E-2},{"$f":"((Quarterly!BX223/Quarterly!BX219)-1)","v":0.21465369204350315},{"$f":"((Quarterly!BY223/Quarterly!BY219)-1)","v":0.31981187536743105},{"$f":"((Quarterly!BZ223/Quarterly!BZ219)-1)","v":-3.3470443060289345E-2},{"$f":"((Quarterly!CA223/Quarterly!CA219)-1)","v":0.11907369738695017},{"$f":"((Quarterly!CB223/Quarterly!CB219)-1)","v":-7.6048203238671119E-3},{"$f":"((Quarterly!CC223/Quarterly!CC219)-1)","v":-3.5515678225468306E-2},{"$f":"((Quarterly!CD223/Quarterly!CD219)-1)","v":-0.19672131147540983},{"$f":"((Quarterly!CE223/Quarterly!CE219)-1)","v":0.20296465222348936},null,{"$f":"((Quarterly!CG223/Quarterly!CG219)-1)","v":-0.21229050279329609},{"$f":"((Quarterly!CH223/Quarterly!CH219)-1)","v":3.6098310291858837E-2},null,{"$f":"((Quarterly!CJ223/Quarterly!CJ219)-1)","v":0.20296465222348936},{"$f":"((Quarterly!CK223/Quarterly!CK219)-1)","v":4.4712473459775026E-2},{"$f":"((Quarterly!CL223/Quarterly!CL219)-1)","v":0.13664027822266966},{"$f":"((Quarterly!CM223/Quarterly!CM219)-1)","v":0.16479999999999984},{"$f":"((Quarterly!CN223/Quarterly!CN219)-1)","v":2.0755006069748783E-2},{"$f":"((Quarterly!CO223/Quarterly!CO219)-1)","v":0.13411333382544699},{"$f":"((Quarterly!CP223/Quarterly!CP219)-1)","v":4.3312109959829703E-2},{"$f":"((Quarterly!CQ223/Quarterly!CQ219)-1)","v":7.3175277875379141E-3},{"$f":"((Quarterly!CR223/Quarterly!CR219)-1)","v":8.0322112093005327E-3},{"$f":"Quarterly!CS223-Quarterly!CS219","v":2.4333333333333371},{"$f":"Quarterly!CT223-Quarterly!CT219","v":2.0666666666666771},null,null,null,null,null,{"$f":"((Quarterly!CZ223/Quarterly!CZ219)-1)","v":2.8293233613208235E-2},{"$f":"((Quarterly!DA223/Quarterly!DA219)-1)","v":2.2284792447757162E-2},null,null,null,null,null,{"$f":"((Quarterly!DG223/Quarterly!DG219)-1)","v":3.5298035298035213E-2},{"$f":"((Quarterly!DH223-Quarterly!DH219)*60)","v":15.999999999999943},{"$f":"Quarterly!DI223-Quarterly!DI219","v":-0.39999999999999858},{"$f":"(Quarterly!DJ223-Quarterly!DJ219)*100","v":-113.33333333333346},{"$f":"(Quarterly!DK223-Quarterly!DK219)*100","v":-76.666666666666572},{"$f":"((Quarterly!DL223/Quarterly!DL219)-1)","v":1.8483547925608024E-2},null,null,null,{"$f":"((Quarterly!DP223/Quarterly!DP219)-1)","v":1.8619246329933281E-2},null,null,null,null,{"$f":"Quarterly!DU223-Quarterly!DU219","v":-1.4666666666666615},{"$f":"((Quarterly!DV223/Quarterly!DV219)-1)","v":4.1275699841447189E-2},{"$f":"((Quarterly!DW223/Quarterly!DW219)-1)","v":4.2394081328507749E-2},{"$f":"((Quarterly!DX223/Quarterly!DX219)-1)","v":3.3598786499810407E-2},{"$f":"((Quarterly!DY223/Quarterly!DY219)-1)","v":4.3019480519480346E-2},{"$f":"((Quarterly!DZ223/Quarterly!DZ219)-1)","v":3.0727362691737037E-2},{"$f":"((Quarterly!EA223/Quarterly!EA219)-1)","v":2.7334043308484102E-2},{"$f":"((Quarterly!EB223/Quarterly!EB219)-1)","v":3.8530612244897844E-2},{"$f":"((Quarterly!EC223/Quarterly!EC219)-1)","v":6.3091201142245312E-2},null,null,null,null,null,{"$f":"((Quarterly!EI223/Quarterly!EI219)-1)","v":5.7213399436810919E-2},{"$f":"((Quarterly!EJ223/Quarterly!EJ219)-1)","v":3.2060058357555876E-2},{"$f":"((Quarterly!EK223/Quarterly!EK219)-1)","v":2.0835197886592383E-2},null,null,null,null,null,{"$f":"((Quarterly!EQ223/Quarterly!EQ219)-1)","v":3.1989110090181905E-2},{"$f":"((Quarterly!ER223/Quarterly!ER219)-1)","v":2.9963967380997714E-2},{"$f":"((Quarterly!ES223/Quarterly!ES219)-1)","v":2.2736842105263166E-2},null,null,null,null,null,{"$f":"(Quarterly!EY223-Quarterly!EY219)*100","v":0},{"$f":"(Quarterly!EZ223-Quarterly!EZ219)*100","v":-5.3333333333333339},{"$f":"(Quarterly!FA223-Quarterly!FA219)*100","v":-123.3333333333333},{"$f":"(Quarterly!FB223-Quarterly!FB219)*100","v":-88.999999999999972},"--",{"$f":"(Quarterly!FD223-Quarterly!FD219)*100","v":-93.000000000000014},{"$f":"(Quarterly!FE223-Quarterly!FE219)*100","v":-6.0000000000000009},{"$f":"(Quarterly!FF223-Quarterly!FF219)*100","v":-11.66666666666667},{"$f":"(Quarterly!FG223-Quarterly!FG219)*100","v":-40.666666666666664},{"$f":"(Quarterly!FH223-Quarterly!FH219)*100","v":-122.33333333333331},{"$f":"(Quarterly!FI223-Quarterly!FI219)*100","v":-142.33333333333337},null,null,null,null,null,null,{"$f":"((Quarterly!FP223/Quarterly!FP219)-1)","v":1.5347689395219799E-2},{"$f":"((Quarterly!FQ223/Quarterly!FQ219)-1)","v":-4.0918072655418691E-2},{"$f":"((Quarterly!FR223/Quarterly!FR219)-1)","v":7.541752788124656E-2},{"$f":"((Quarterly!FS223/Quarterly!FS219)-1)","v":-4.1196676980047253E-2},{"$f":"((Quarterly!FT223/Quarterly!FT219)-1)","v":1.1158786875928195E-2},{"$f":"((Quarterly!FU223/Quarterly!FU219)-1)","v":1.4384553618947526E-2},{"$f":"((Quarterly!FV223/Quarterly!FV219)-1)","v":7.7075269718894779E-2},{"$f":"((Quarterly!FW223/Quarterly!FW219)-1)","v":8.9678016464513455E-2},{"$f":"((Quarterly!FX223/Quarterly!FX219)-1)","v":0.11798254466772695},null,null,null,null,null,{"$f":"((Quarterly!GD223/Quarterly!GD219)-1)","v":9.4842874370433261E-2},{"$f":"((Quarterly!GE223/Quarterly!GE219)-1)","v":0.12890625},{"$f":"((Quarterly!GF223/Quarterly!GF219)-1)","v":8.4658036978678242E-2},{"$f":"((Quarterly!GG223/Quarterly!GG219)-1)","v":9.524685115381093E-2},{"$f":"((Quarterly!GH223/Quarterly!GH219)-1)","v":0.44033069734004315},{"$f":"((Quarterly!GI223/Quarterly!GI219)-1)","v":0.41410352588147048},{"$f":"((Quarterly!GJ223/Quarterly!GJ219)-1)","v":-0.40257061250396708},{"$f":"((Quarterly!GK223/Quarterly!GK219)-1)","v":-2.7393663574304172E-2},{"$f":"((Quarterly!GL223/Quarterly!GL219)-1)","v":6.8037550290567683E-2}]
["12'Q2",{"$f":"((Quarterly!B224/Quarterly!B220)-1)","v":4.2748086369471139E-2},{"$f":"((Quarterly!C224/Quarterly!C220)-1)","v":2.4874654384336337E-2},{"$f":"((Quarterly!D224/Quarterly!D220)-1)","v":2.361128755509756E-2},{"$f":"((Quarterly!E224/Quarterly!E220)-1)","v":1.4551445630093696E-2},{"$f":"((Quarterly!F224/Quarterly!F220)-1)","v":7.510611625503083E-2},{"$f":"((Quarterly!G224/Quarterly!G220)-1)","v":4.675664838338367E-3},{"$f":"((Quarterly!H224/Quarterly!H220)-1)","v":8.5899486160909699E-3},{"$f":"((Quarterly!I224/Quarterly!I220)-1)","v":0.12078350044776487},{"$f":"((Quarterly!J224/Quarterly!J220)-1)","v":0.10722951277047277},{"$f":"((Quarterly!K224/Quarterly!K220)-1)","v":0.12389772466645055},{"$f":"((Quarterly!L224-Quarterly!L220))","v":19.130000000000003},{"$f":"((Quarterly!M224/Quarterly!M220)-1)","v":3.0310780666609638E-2},{"$f":"((Quarterly!N224/Quarterly!N220)-1)","v":3.896371785419217E-2},{"$f":"((Quarterly!O224/Quarterly!O220)-1)","v":-5.6254928621477518E-3},{"$f":"((Quarterly!P224/Quarterly!P220)-1)","v":-1.9812927572162686E-2},{"$f":"((Quarterly!Q224/Quarterly!Q220)-1)","v":-0.16081555382437451},null,null,null,null,null,{"$f":"((Quarterly!W224/Quarterly!W220)-1)","v":2.5815217391304435E-2},{"$f":"((Quarterly!X224/Quarterly!X220)-1)","v":1.7647703606270104E-2},{"$f":"((Quarterly!Y224/Quarterly!Y220)-1)","v":0.12304663656709325},{"$f":"Quarterly!Z224-Quarterly!Z220","v":0.33},{"$f":"((Quarterly!AA224/Quarterly!AA220)-1)","v":0.16277118635135568},{"$f":"((Quarterly!AB224/Quarterly!AB220)-1)","v":9.7424894534565709E-2},{"$f":"Quarterly!AC224-Quarterly!AC220","v":13.3},{"$f":"Quarterly!AD224-Quarterly!AD220","v":12.200000000000001},{"$f":"(Quarterly!AE224-Quarterly!AE220)*100","v":189.99999999999994},{"$f":"(Quarterly!AF224-Quarterly!AF220)*100","v":33},{"$f":"(Quarterly!AG224-Quarterly!AG220)*100","v":137},{"$f":"((Quarterly!AH224/Quarterly!AH220)-1)","v":0.15136766880236574},{"$f":"((Quarterly!AI224/Quarterly!AI220)-1)","v":0.10393845544685965},{"$f":"((Quarterly!AJ224/Quarterly!AJ220)-1)","v":1.9965277777777679E-2},{"$f":"((Quarterly!AK224/Quarterly!AK220)-1)","v":1.8388791593695331E-2},{"$f":"((Quarterly!AL224/Quarterly!AL220)-1)","v":1.846965699208436E-2},{"$f":"((Quarterly!AM224/Quarterly!AM220)-1)","v":3.4535804924818114E-2},{"$f":"((Quarterly!AN224/Quarterly!AN220)-1)","v":3.4900627224520697E-2},{"$f":"((Quarterly!AO224/Quarterly!AO220)-1)","v":5.5224130640371127E-2},{"$f":"(Quarterly!AP224-Quarterly!AP220)*100","v":1.0833333333333472},{"$f":"Quarterly!AQ224-Quarterly!AQ220","v":-3.7000000000000099},{"$f":"Quarterly!AR224-Quarterly!AR220","v":-6.5},{"$f":"Quarterly!AS224-Quarterly!AS220","v":3.5},{"$f":"Quarterly!AT224-Quarterly!AT220","v":-3.0333333333333385},{"$f":"Quarterly!AU224-Quarterly!AU220","v":-3.5},{"$f":"Quarterly!AV224-Quarterly!AV220","v":-0.1666666666666643},{"$f":"Quarterly!AW224-Quarterly!AW220","v":-6},{"$f":"Quarterly!AX224-Quarterly!AX220","v":-1.7333333333333272},{"$f":"Quarterly!AY224-Quarterly!AY220","v":-28.166666666666671},{"$f":"Quarterly!AZ224-Quarterly!AZ220","v":-1.2333333333333343},{"$f":"Quarterly!BA224-Quarterly!BA220","v":-7.5},{"$f":"Quarterly!BB224-Quarterly!BB220","v":-0.30000000000000426},{"$f":"((Quarterly!BC224/Quarterly!BC220)-1)","v":6.8157723744058041E-2},{"$f":"((Quarterly!BD224/Quarterly!BD220)-1)","v":2.535573003300895E-2},{"$f":"((Quarterly!BE224/Quarterly!BE220)-1)","v":-8.6208836968511005E-3},{"$f":"((Quarterly!BF224/Quarterly!BF220)-1)","v":2.1588265825948305E-2},{"$f":"((Quarterly!BG224/Quarterly!BG220)-1)","v":1.2367046992844744E-2},{"$f":"((Quarterly!BH224/Quarterly!BH220)-1)","v":2.7466999356084987E-3},{"$f":"((Quarterly!BI224/Quarterly!BI220)-1)","v":9.1055488180680211E-3},{"$f":"((Quarterly!BJ224/Quarterly!BJ220)-1)","v":0.19169139174346173},{"$f":"((Quarterly!BK224/Quarterly!BK220)-1)","v":1.064516129032258},null,{"$f":"((Quarterly!BM224/Quarterly!BM220)-1)","v":4.4534069756263728E-2},{"$f":"((Quarterly!BN224/Quarterly!BN220)-1)","v":4.296363907017553E-2},null,null,null,null,null,{"$f":"((Quarterly!BT224/Quarterly!BT220)-1)","v":1.8210543681697722E-2},{"$f":"Quarterly!BU224-Quarterly!BU220","v":-0.54377000000000031},{"$f":"Quarterly!BV224-Quarterly!BV220","v":-0.52595999999999954},{"$f":"((Quarterly!BW224/Quarterly!BW220)-1)","v":3.5762423869391213E-2},{"$f":"((Quarterly!BX224/Quarterly!BX220)-1)","v":0.26058539357772093},{"$f":"((Quarterly!BY224/Quarterly!BY220)-1)","v":0.27252985884907721},{"$f":"((Quarterly!BZ224/Quarterly!BZ220)-1)","v":-7.0209798510342258E-3},{"$f":"((Quarterly!CA224/Quarterly!CA220)-1)","v":0.1604409354577665},{"$f":"((Quarterly!CB224/Quarterly!CB220)-1)","v":-0.18999209269466932},{"$f":"((Quarterly!CC224/Quarterly!CC220)-1)","v":-0.15760184154179024},{"$f":"((Quarterly!CD224/Quarterly!CD220)-1)","v":-0.145956607495069},{"$f":"((Quarterly!CE224/Quarterly!CE220)-1)","v":0.18340611353711789},null,{"$f":"((Quarterly!CG224/Quarterly!CG220)-1)","v":-0.22655426765015818},{"$f":"((Quarterly!CH224/Quarterly!CH220)-1)","v":7.9808459696727674E-2},null,{"$f":"((Quarterly!CJ224/Quarterly!CJ220)-1)","v":0.1760238676430701},{"$f":"((Quarterly!CK224/Quarterly!CK220)-1)","v":4.4122037587818852E-2},{"$f":"((Quarterly!CL224/Quarterly!CL220)-1)","v":0.27590538240300511},{"$f":"((Quarterly!CM224/Quarterly!CM220)-1)","v":0.21540880503144666},{"$f":"((Quarterly!CN224/Quarterly!CN220)-1)","v":2.8495838940213236E-2},{"$f":"((Quarterly!CO224/Quarterly!CO220)-1)","v":0.11694164680329111},{"$f":"((Quarterly!CP224/Quarterly!CP220)-1)","v":4.75592022042719E-2},{"$f":"((Quarterly!CQ224/Quarterly!CQ220)-1)","v":6.9677144832722693E-3},{"$f":"((Quarterly!CR224/Quarterly!CR220)-1)","v":9.2124938716229288E-3},{"$f":"Quarterly!CS224-Quarterly!CS220","v":6.4749999999999943},{"$f":"Quarterly!CT224-Quarterly!CT220","v":4.8583333333333414},null,null,null,null,null,{"$f":"((Quarterly!CZ224/Quarterly!CZ220)-1)","v":1.7942386831275581E-2},{"$f":"((Quarterly!DA224/Quarterly!DA220)-1)","v":2.1369239685444352E-2},null,null,null,null,null,{"$f":"((Quarterly!DG224/Quarterly!DG220)-1)","v":2.4578709412248267E-2},{"$f":"((Quarterly!DH224-Quarterly!DH220)*60)","v":2.5000000000002842},{"$f":"Quarterly!DI224-Quarterly!DI220","v":-0.34166666666667567},{"$f":"(Quarterly!DJ224-Quarterly!DJ220)*100","v":-127.50000000000021},{"$f":"(Quarterly!DK224-Quarterly!DK220)*100","v":-85.000000000000142},{"$f":"((Quarterly!DL224/Quarterly!DL220)-1)","v":1.7388213549442089E-2},null,null,null,{"$f":"((Quarterly!DP224/Quarterly!DP220)-1)","v":1.5994143951088446E-2},null,null,null,null,{"$f":"Quarterly!DU224-Quarterly!DU220","v":-1.9250000000000007},{"$f":"((Quarterly!DV224/Quarterly!DV220)-1)","v":3.3036653243388781E-2},{"$f":"((Quarterly!DW224/Quarterly!DW220)-1)","v":3.5042647209947431E-2},{"$f":"((Quarterly!DX224/Quarterly!DX220)-1)","v":2.3175615544348993E-2},{"$f":"((Quarterly!DY224/Quarterly!DY220)-1)","v":1.7535692116697588E-2},{"$f":"((Quarterly!DZ224/Quarterly!DZ220)-1)","v":2.4946404209705619E-2},{"$f":"((Quarterly!EA224/Quarterly!EA220)-1)","v":2.1625026243964118E-2},{"$f":"((Quarterly!EB224/Quarterly!EB220)-1)","v":3.2558139534883734E-2},{"$f":"((Quarterly!EC224/Quarterly!EC220)-1)","v":6.1809969889595084E-2},null,null,null,null,null,{"$f":"((Quarterly!EI224/Quarterly!EI220)-1)","v":5.7697590506338603E-2},{"$f":"((Quarterly!EJ224/Quarterly!EJ220)-1)","v":2.965772467404526E-2},{"$f":"((Quarterly!EK224/Quarterly!EK220)-1)","v":1.7424728857736937E-2},null,null,null,null,null,{"$f":"((Quarterly!EQ224/Quarterly!EQ220)-1)","v":-1.0420497732009149E-2},{"$f":"((Quarterly!ER224/Quarterly!ER220)-1)","v":2.5409797567046866E-2},{"$f":"((Quarterly!ES224/Quarterly!ES220)-1)","v":1.884625424171249E-2},null,null,null,null,null,{"$f":"(Quarterly!EY224-Quarterly!EY220)*100","v":0},{"$f":"(Quarterly!EZ224-Quarterly!EZ220)*100","v":6.5833333333333339},{"$f":"(Quarterly!FA224-Quarterly!FA220)*100","v":-120.99999999999996},{"$f":"(Quarterly!FB224-Quarterly!FB220)*100","v":-73.416666666666686},"--",{"$f":"(Quarterly!FD224-Quarterly!FD220)*100","v":-83.833333333333286},{"$f":"(Quarterly!FE224-Quarterly!FE220)*100","v":4.1666666666666661},{"$f":"(Quarterly!FF224-Quarterly!FF220)*100","v":-1.5833333333333339},{"$f":"(Quarterly!FG224-Quarterly!FG220)*100","v":-23.75},{"$f":"(Quarterly!FH224-Quarterly!FH220)*100","v":-99.583333333333329},{"$f":"(Quarterly!FI224-Quarterly!FI220)*100","v":-133.41666666666666},null,null,null,null,null,null,{"$f":"((Quarterly!FP224/Quarterly!FP220)-1)","v":4.7374651148725189E-2},{"$f":"((Quarterly!FQ224/Quarterly!FQ220)-1)","v":-2.435415823845577E-2},{"$f":"((Quarterly!FR224/Quarterly!FR220)-1)","v":0.15557529189982033},{"$f":"((Quarterly!FS224/Quarterly!FS220)-1)","v":-0.10666457872972246},{"$f":"((Quarterly!FT224/Quarterly!FT220)-1)","v":5.8318663379055335E-2},{"$f":"((Quarterly!FU224/Quarterly!FU220)-1)","v":6.5769709354101868E-2},{"$f":"((Quarterly!FV224/Quarterly!FV220)-1)","v":4.8695760174997105E-2},{"$f":"((Quarterly!FW224/Quarterly!FW220)-1)","v":5.0362635846284309E-2},{"$f":"((Quarterly!FX224/Quarterly!FX220)-1)","v":7.5403164805906142E-2},null,null,null,null,null,{"$f":"((Quarterly!GD224/Quarterly!GD220)-1)","v":-7.639866617265656E-2},{"$f":"((Quarterly!GE224/Quarterly!GE220)-1)","v":-7.6204271756418973E-2},{"$f":"((Quarterly!GF224/Quarterly!GF220)-1)","v":-8.5851281562758786E-3},{"$f":"((Quarterly!GG224/Quarterly!GG220)-1)","v":-1.5858518764529927E-2},{"$f":"((Quarterly!GH224/Quarterly!GH220)-1)","v":0.42537313432835799},{"$f":"((Quarterly!GI224/Quarterly!GI220)-1)","v":0.50330687830687815},{"$f":"((Quarterly!GJ224/Quarterly!GJ220)-1)","v":-0.46365437366656514},{"$f":"((Quarterly!GK224/Quarterly!GK220)-1)","v":-3.3966558697364868E-2},{"$f":"((Quarterly!GL224/Quarterly!GL220)-1)","v":4.4533674028107484E-2}]
["12'Q3",{"$f":"((Quarterly!B225/Quarterly!B221)-1)","v":4.1111750884143206E-2},{"$f":"((Quarterly!C225/Quarterly!C221)-1)","v":2.3943108479917319E-2},{"$f":"((Quarterly!D225/Quarterly!D221)-1)","v":1.7794837656060158E-2},{"$f":"((Quarterly!E225/Quarterly!E221)-1)","v":1.3800503781603579E-2},{"$f":"((Quarterly!F225/Quarterly!F221)-1)","v":8.1488145332133888E-2},{"$f":"((Quarterly!G225/Quarterly!G221)-1)","v":9.4406419636536842E-3},{"$f":"((Quarterly!H225/Quarterly!H221)-1)","v":4.8085312651477974E-3},{"$f":"((Quarterly!I225/Quarterly!I221)-1)","v":6.6588114247594365E-2},{"$f":"((Quarterly!J225/Quarterly!J221)-1)","v":5.8690869238373633E-2},{"$f":"((Quarterly!K225/Quarterly!K221)-1)","v":0.13056304635042437},{"$f":"((Quarterly!L225-Quarterly!L221))","v":83.587000000000003},{"$f":"((Quarterly!M225/Quarterly!M221)-1)","v":2.3651560011805906E-2},{"$f":"((Quarterly!N225/Quarterly!N221)-1)","v":3.3212166890418837E-2},{"$f":"((Quarterly!O225/Quarterly!O221)-1)","v":-1.6554301675240302E-2},{"$f":"((Quarterly!P225/Quarterly!P221)-1)","v":-1.6438094104158862E-2},{"$f":"((Quarterly!Q225/Quarterly!Q221)-1)","v":-0.12319346732443925},null,null,null,null,null,{"$f":"((Quarterly!W225/Quarterly!W221)-1)","v":1.0767160161507361E-2},{"$f":"((Quarterly!X225/Quarterly!X221)-1)","v":6.5359477124182774E-3},{"$f":"((Quarterly!Y225/Quarterly!Y221)-1)","v":0.13151907209248082},{"$f":"Quarterly!Z225-Quarterly!Z221","v":0.37},{"$f":"((Quarterly!AA225/Quarterly!AA221)-1)","v":0.17914604868895534},{"$f":"((Quarterly!AB225/Quarterly!AB221)-1)","v":4.909998495570056E-2},{"$f":"Quarterly!AC225-Quarterly!AC221","v":-5.4},{"$f":"Quarterly!AD225-Quarterly!AD221","v":-5.8},{"$f":"(Quarterly!AE225-Quarterly!AE221)*100","v":96.999999999999972},{"$f":"(Quarterly!AF225-Quarterly!AF221)*100","v":37},{"$f":"(Quarterly!AG225-Quarterly!AG221)*100","v":111.00000000000003},{"$f":"((Quarterly!AH225/Quarterly!AH221)-1)","v":0.16348904671401421},{"$f":"((Quarterly!AI225/Quarterly!AI221)-1)","v":0.11517572003074927},{"$f":"((Quarterly!AJ225/Quarterly!AJ221)-1)","v":2.1663778162911651E-2},{"$f":"((Quarterly!AK225/Quarterly!AK221)-1)","v":1.919720767888311E-2},{"$f":"((Quarterly!AL225/Quarterly!AL221)-1)","v":1.8388791593695331E-2},{"$f":"((Quarterly!AM225/Quarterly!AM221)-1)","v":2.6217999392744051E-2},{"$f":"((Quarterly!AN225/Quarterly!AN221)-1)","v":2.5182261655664062E-2},{"$f":"((Quarterly!AO225/Quarterly!AO221)-1)","v":6.1216992950922089E-2},{"$f":"(Quarterly!AP225-Quarterly!AP221)*100","v":3.0000000000000027},{"$f":"Quarterly!AQ225-Quarterly!AQ221","v":-1.9666666666666544},{"$f":"Quarterly!AR225-Quarterly!AR221","v":-1},{"$f":"Quarterly!AS225-Quarterly!AS221","v":2.8333333333333357},{"$f":"Quarterly!AT225-Quarterly!AT221","v":-1.86666666666666},{"$f":"Quarterly!AU225-Quarterly!AU221","v":-4.9166666666666643},{"$f":"Quarterly!AV225-Quarterly!AV221","v":-4.8333333333333357},{"$f":"Quarterly!AW225-Quarterly!AW221","v":-0.6666666666666643},{"$f":"Quarterly!AX225-Quarterly!AX221","v":-2.1000000000000014},{"$f":"Quarterly!AY225-Quarterly!AY221","v":-6.3333333333333357},{"$f":"Quarterly!AZ225-Quarterly!AZ221","v":-2.8333333333333286},{"$f":"Quarterly!BA225-Quarterly!BA221","v":-1.6999999999999957},{"$f":"Quarterly!BB225-Quarterly!BB221","v":0},{"$f":"((Quarterly!BC225/Quarterly!BC221)-1)","v":-1.4412603502900412E-2},{"$f":"((Quarterly!BD225/Quarterly!BD221)-1)","v":6.2821632345086975E-3},{"$f":"((Quarterly!BE225/Quarterly!BE221)-1)","v":3.2344767892122928E-3},{"$f":"((Quarterly!BF225/Quarterly!BF221)-1)","v":1.6190348832766599E-2},{"$f":"((Quarterly!BG225/Quarterly!BG221)-1)","v":1.2486317359758914E-2},{"$f":"((Quarterly!BH225/Quarterly!BH221)-1)","v":-6.6415094339622449E-4},{"$f":"((Quarterly!BI225/Quarterly!BI221)-1)","v":3.6681687752062597E-3},{"$f":"((Quarterly!BJ225/Quarterly!BJ221)-1)","v":0.25186618174314535},{"$f":"((Quarterly!BK225/Quarterly!BK221)-1)","v":1.0277777777777777},null,{"$f":"((Quarterly!BM225/Quarterly!BM221)-1)","v":4.3975933887505425E-2},{"$f":"((Quarterly!BN225/Quarterly!BN221)-1)","v":4.332351020154257E-2},null,null,null,null,null,{"$f":"((Quarterly!BT225/Quarterly!BT221)-1)","v":1.9183448593930175E-2},{"$f":"Quarterly!BU225-Quarterly!BU221","v":-0.42665000000000042},{"$f":"Quarterly!BV225-Quarterly!BV221","v":-0.42331000000000074},{"$f":"((Quarterly!BW225/Quarterly!BW221)-1)","v":2.7439774547951545E-2},{"$f":"((Quarterly!BX225/Quarterly!BX221)-1)","v":0.25995694294940797},{"$f":"((Quarterly!BY225/Quarterly!BY221)-1)","v":0.38072417465388719},{"$f":"((Quarterly!BZ225/Quarterly!BZ221)-1)","v":2.0994685794628598E-2},{"$f":"((Quarterly!CA225/Quarterly!CA221)-1)","v":0.13668416308785347},{"$f":"((Quarterly!CB225/Quarterly!CB221)-1)","v":-0.23577785472974444},{"$f":"((Quarterly!CC225/Quarterly!CC221)-1)","v":-0.19324835721174405},{"$f":"((Quarterly!CD225/Quarterly!CD221)-1)","v":-0.12090163934426224},{"$f":"((Quarterly!CE225/Quarterly!CE221)-1)","v":0.25583982202447153},null,{"$f":"((Quarterly!CG225/Quarterly!CG221)-1)","v":-0.23153252480705622},{"$f":"((Quarterly!CH225/Quarterly!CH221)-1)","v":0.11616954474097319},null,{"$f":"((Quarterly!CJ225/Quarterly!CJ221)-1)","v":0.25583982202447153},{"$f":"((Quarterly!CK225/Quarterly!CK221)-1)","v":3.8949297983606801E-2},{"$f":"((Quarterly!CL225/Quarterly!CL221)-1)","v":0.22256238983208076},{"$f":"((Quarterly!CM225/Quarterly!CM221)-1)","v":0.29481132075471694},{"$f":"((Quarterly!CN225/Quarterly!CN221)-1)","v":2.4267954381999246E-2},{"$f":"((Quarterly!CO225/Quarterly!CO221)-1)","v":9.6859115048273159E-2},{"$f":"((Quarterly!CP225/Quarterly!CP221)-1)","v":5.34865487811087E-2},{"$f":"((Quarterly!CQ225/Quarterly!CQ221)-1)","v":7.2228252806356696E-3},{"$f":"((Quarterly!CR225/Quarterly!CR221)-1)","v":8.8400610984475936E-3},{"$f":"Quarterly!CS225-Quarterly!CS221","v":15.29999999999999},{"$f":"Quarterly!CT225-Quarterly!CT221","v":15.366666666666667},null,null,null,null,null,{"$f":"((Quarterly!CZ225/Quarterly!CZ221)-1)","v":1.6848597105433294E-2},{"$f":"((Quarterly!DA225/Quarterly!DA221)-1)","v":2.0177259826520411E-2},null,null,null,null,null,{"$f":"((Quarterly!DG225/Quarterly!DG221)-1)","v":2.2585924713584227E-2},{"$f":"((Quarterly!DH225-Quarterly!DH221)*60)","v":0},{"$f":"Quarterly!DI225-Quarterly!DI221","v":-0.50000000000000711},{"$f":"(Quarterly!DJ225-Quarterly!DJ221)*100","v":-139.99999999999986},{"$f":"(Quarterly!DK225-Quarterly!DK221)*100","v":-96.666666666666686},{"$f":"((Quarterly!DL225/Quarterly!DL221)-1)","v":1.6978939312338959E-2},null,null,null,{"$f":"((Quarterly!DP225/Quarterly!DP221)-1)","v":1.6544474624659689E-2},null,null,null,null,{"$f":"Quarterly!DU225-Quarterly!DU221","v":-3.9000000000000021},{"$f":"((Quarterly!DV225/Quarterly!DV221)-1)","v":3.7808582880191954E-2},{"$f":"((Quarterly!DW225/Quarterly!DW221)-1)","v":3.8042112668978278E-2},{"$f":"((Quarterly!DX225/Quarterly!DX221)-1)","v":2.8318130197457547E-2},{"$f":"((Quarterly!DY225/Quarterly!DY221)-1)","v":2.0054694621695512E-2},{"$f":"((Quarterly!DZ225/Quarterly!DZ221)-1)","v":3.0943760559980937E-2},{"$f":"((Quarterly!EA225/Quarterly!EA221)-1)","v":2.8589272083825001E-2},{"$f":"((Quarterly!EB225/Quarterly!EB221)-1)","v":3.63261421319796E-2},{"$f":"((Quarterly!EC225/Quarterly!EC221)-1)","v":5.9275257979361395E-2},null,null,null,null,null,{"$f":"((Quarterly!EI225/Quarterly!EI221)-1)","v":4.7932064045109968E-2},{"$f":"((Quarterly!EJ225/Quarterly!EJ221)-1)","v":2.3320466024581821E-2},{"$f":"((Quarterly!EK225/Quarterly!EK221)-1)","v":1.2616684620119001E-2},null,null,null,null,null,{"$f":"((Quarterly!EQ225/Quarterly!EQ221)-1)","v":-7.0318887980377331E-3},{"$f":"((Quarterly!ER225/Quarterly!ER221)-1)","v":2.538260544979476E-2},{"$f":"((Quarterly!ES225/Quarterly!ES221)-1)","v":1.8930726024547706E-2},null,null,null,null,null,{"$f":"(Quarterly!EY225-Quarterly!EY221)*100","v":0},{"$f":"(Quarterly!EZ225-Quarterly!EZ221)*100","v":6.0000000000000009},{"$f":"(Quarterly!FA225-Quarterly!FA221)*100","v":-100.66666666666669},{"$f":"(Quarterly!FB225-Quarterly!FB221)*100","v":-58.999999999999986},"--",{"$f":"(Quarterly!FD225-Quarterly!FD221)*100","v":-75.999999999999929},{"$f":"(Quarterly!FE225-Quarterly!FE221)*100","v":8},{"$f":"(Quarterly!FF225-Quarterly!FF221)*100","v":5.0000000000000018},{"$f":"(Quarterly!FG225-Quarterly!FG221)*100","v":-2.3333333333333317},{"$f":"(Quarterly!FH225-Quarterly!FH221)*100","v":-48.666666666666671},{"$f":"(Quarterly!FI225-Quarterly!FI221)*100","v":-78.3333333333333},null,null,null,null,null,null,{"$f":"((Quarterly!FP225/Quarterly!FP221)-1)","v":1.5444803538016583E-2},{"$f":"((Quarterly!FQ225/Quarterly!FQ221)-1)","v":-1.0317097498129701E-2},{"$f":"((Quarterly!FR225/Quarterly!FR221)-1)","v":6.740339261759476E-2},{"$f":"((Quarterly!FS225/Quarterly!FS221)-1)","v":-0.11299728485420846},{"$f":"((Quarterly!FT225/Quarterly!FT221)-1)","v":4.8900032453160103E-2},{"$f":"((Quarterly!FU225/Quarterly!FU221)-1)","v":6.2070451146601924E-2},{"$f":"((Quarterly!FV225/Quarterly!FV221)-1)","v":-2.2243796114194136E-2},{"$f":"((Quarterly!FW225/Quarterly!FW221)-1)","v":3.8168835805989954E-2},{"$f":"((Quarterly!FX225/Quarterly!FX221)-1)","v":2.8459456657144555E-2},null,null,null,null,null,{"$f":"((Quarterly!GD225/Quarterly!GD221)-1)","v":2.8536395050718921E-2},{"$f":"((Quarterly!GE225/Quarterly!GE221)-1)","v":-3.2880418798894029E-2},{"$f":"((Quarterly!GF225/Quarterly!GF221)-1)","v":1.1408683074558557E-2},{"$f":"((Quarterly!GG225/Quarterly!GG221)-1)","v":1.9134631960006976E-2},{"$f":"((Quarterly!GH225/Quarterly!GH221)-1)","v":0.37260273972602742},{"$f":"((Quarterly!GI225/Quarterly!GI221)-1)","v":0.18201754385964897},{"$f":"((Quarterly!GJ225/Quarterly!GJ221)-1)","v":-0.28664040702445437},{"$f":"((Quarterly!GK225/Quarterly!GK221)-1)","v":-3.3258020786263054E-2},{"$f":"((Quarterly!GL225/Quarterly!GL221)-1)","v":4.7671371819795638E-2}]
["12'Q4",{"$f":"((Quarterly!B226/Quarterly!B222)-1)","v":3.2437559675728922E-2},{"$f":"((Quarterly!C226/Quarterly!C222)-1)","v":1.2771280008136987E-2},{"$f":"((Quarterly!D226/Quarterly!D222)-1)","v":1.7458927348116715E-2},{"$f":"((Quarterly!E226/Quarterly!E222)-1)","v":1.3227658536427711E-2},{"$f":"((Quarterly!F226/Quarterly!F222)-1)","v":7.205326412006996E-2},{"$f":"((Quarterly!G226/Quarterly!G222)-1)","v":7.5143656991307761E-3},{"$f":"((Quarterly!H226/Quarterly!H222)-1)","v":5.9612663086674456E-3},{"$f":"((Quarterly!I226/Quarterly!I222)-1)","v":5.2184002655160988E-2},{"$f":"((Quarterly!J226/Quarterly!J222)-1)","v":5.5152619995709085E-2},{"$f":"((Quarterly!K226/Quarterly!K222)-1)","v":0.15650135565426027},{"$f":"((Quarterly!L226-Quarterly!L222))","v":-65.350000000000009},{"$f":"((Quarterly!M226/Quarterly!M222)-1)","v":2.6901145295457063E-3},{"$f":"((Quarterly!N226/Quarterly!N222)-1)","v":2.1800630056242776E-2},{"$f":"((Quarterly!O226/Quarterly!O222)-1)","v":-7.7185663632090673E-2},{"$f":"((Quarterly!P226/Quarterly!P222)-1)","v":-2.2163806681644083E-2},{"$f":"((Quarterly!Q226/Quarterly!Q222)-1)","v":-0.10382330410814089},null,null,null,null,null,{"$f":"((Quarterly!W226/Quarterly!W222)-1)","v":5.3475935828877219E-3},{"$f":"((Quarterly!X226/Quarterly!X222)-1)","v":1.7331022530329143E-3},{"$f":"((Quarterly!Y226/Quarterly!Y222)-1)","v":0.13011411553450736},{"$f":"Quarterly!Z226-Quarterly!Z222","v":0.39000000000000007},{"$f":"((Quarterly!AA226/Quarterly!AA222)-1)","v":0.10409316602447261},{"$f":"((Quarterly!AB226/Quarterly!AB222)-1)","v":-3.2053179310145063E-2},{"$f":"Quarterly!AC226-Quarterly!AC222","v":-1.3000000000000007},{"$f":"Quarterly!AD226-Quarterly!AD222","v":23.3},{"$f":"(Quarterly!AE226-Quarterly!AE222)*100","v":19.000000000000039},{"$f":"(Quarterly!AF226-Quarterly!AF222)*100","v":39.000000000000007},{"$f":"(Quarterly!AG226-Quarterly!AG222)*100","v":62.000000000000014},{"$f":"((Quarterly!AH226/Quarterly!AH222)-1)","v":0.14070285369168056},{"$f":"((Quarterly!AI226/Quarterly!AI222)-1)","v":9.6364491445583234E-2},{"$f":"((Quarterly!AJ226/Quarterly!AJ222)-1)","v":2.067183462532296E-2},{"$f":"((Quarterly!AK226/Quarterly!AK222)-1)","v":1.8245004344048743E-2},{"$f":"((Quarterly!AL226/Quarterly!AL222)-1)","v":1.7436791630339954E-2},{"$f":"((Quarterly!AM226/Quarterly!AM222)-1)","v":2.2601338831743645E-2},{"$f":"((Quarterly!AN226/Quarterly!AN222)-1)","v":2.1173479939218254E-2},{"$f":"((Quarterly!AO226/Quarterly!AO222)-1)","v":5.9277999332653097E-2},{"$f":"(Quarterly!AP226-Quarterly!AP222)*100","v":2.3333333333333428},{"$f":"Quarterly!AQ226-Quarterly!AQ222","v":-2.13333333333334},{"$f":"Quarterly!AR226-Quarterly!AR222","v":-3.1666666666666714},{"$f":"Quarterly!AS226-Quarterly!AS222","v":0.8333333333333286},{"$f":"Quarterly!AT226-Quarterly!AT222","v":-2.9333333333333229},{"$f":"Quarterly!AU226-Quarterly!AU222","v":-3},{"$f":"Quarterly!AV226-Quarterly!AV222","v":-1.8333333333333357},{"$f":"Quarterly!AW226-Quarterly!AW222","v":-0.1666666666666643},{"$f":"Quarterly!AX226-Quarterly!AX222","v":-3},{"$f":"Quarterly!AY226-Quarterly!AY222","v":9.8333333333333357},{"$f":"Quarterly!AZ226-Quarterly!AZ222","v":-2.8666666666666742},{"$f":"Quarterly!BA226-Quarterly!BA222","v":-0.46666666666665435},{"$f":"Quarterly!BB226-Quarterly!BB222","v":3.8333333333333428},{"$f":"((Quarterly!BC226/Quarterly!BC222)-1)","v":-1.0130051991002142E-2},{"$f":"((Quarterly!BD226/Quarterly!BD222)-1)","v":9.7232103533557712E-3},{"$f":"((Quarterly!BE226/Quarterly!BE222)-1)","v":2.3179840003694219E-2},{"$f":"((Quarterly!BF226/Quarterly!BF222)-1)","v":5.7346109175377524E-2},{"$f":"((Quarterly!BG226/Quarterly!BG222)-1)","v":1.0486012236887721E-3},{"$f":"((Quarterly!BH226/Quarterly!BH222)-1)","v":3.7535461537673731E-2},{"$f":"((Quarterly!BI226/Quarterly!BI222)-1)","v":5.6229626946758371E-2},{"$f":"((Quarterly!BJ226/Quarterly!BJ222)-1)","v":0.2440674503093494},{"$f":"((Quarterly!BK226/Quarterly!BK222)-1)","v":0.95121951219512213},null,{"$f":"((Quarterly!BM226/Quarterly!BM222)-1)","v":4.1744559966053529E-2},{"$f":"((Quarterly!BN226/Quarterly!BN222)-1)","v":4.0441260723097727E-2},null,null,null,null,null,{"$f":"((Quarterly!BT226/Quarterly!BT222)-1)","v":1.7862566396861679E-2},{"$f":"Quarterly!BU226-Quarterly!BU222","v":-0.62721999999999944},{"$f":"Quarterly!BV226-Quarterly!BV222","v":-0.78129999999999988},{"$f":"((Quarterly!BW226/Quarterly!BW222)-1)","v":-8.8539836930374705E-3},{"$f":"((Quarterly!BX226/Quarterly!BX222)-1)","v":0.3518610421836228},{"$f":"((Quarterly!BY226/Quarterly!BY222)-1)","v":0.33220829315332678},{"$f":"((Quarterly!BZ226/Quarterly!BZ222)-1)","v":5.7339615802826982E-2},{"$f":"((Quarterly!CA226/Quarterly!CA222)-1)","v":0.11211865248931741},{"$f":"((Quarterly!CB226/Quarterly!CB222)-1)","v":-0.18991008056586578},{"$f":"((Quarterly!CC226/Quarterly!CC222)-1)","v":-0.15859507573281362},{"$f":"((Quarterly!CD226/Quarterly!CD222)-1)","v":-3.6637931034482651E-2},{"$f":"((Quarterly!CE226/Quarterly!CE222)-1)","v":0.16649746192893411},null,{"$f":"((Quarterly!CG226/Quarterly!CG222)-1)","v":-0.22786458333333326},{"$f":"((Quarterly!CH226/Quarterly!CH222)-1)","v":0.12137404580152666},null,{"$f":"((Quarterly!CJ226/Quarterly!CJ222)-1)","v":0.16649746192893411},{"$f":"((Quarterly!CK226/Quarterly!CK222)-1)","v":6.8550473688400393E-2},{"$f":"((Quarterly!CL226/Quarterly!CL222)-1)","v":0.69197157399404596},{"$f":"((Quarterly!CM226/Quarterly!CM222)-1)","v":0.25876577840112214},{"$f":"((Quarterly!CN226/Quarterly!CN222)-1)","v":5.0533795300724105E-2},{"$f":"((Quarterly!CO226/Quarterly!CO222)-1)","v":0.102507115842009},{"$f":"((Quarterly!CP226/Quarterly!CP222)-1)","v":5.9015918403909406E-2},{"$f":"((Quarterly!CQ226/Quarterly!CQ222)-1)","v":7.2040768065582128E-3},{"$f":"((Quarterly!CR226/Quarterly!CR222)-1)","v":8.4650444136695757E-3},{"$f":"Quarterly!CS226-Quarterly!CS222","v":14.600000000000009},{"$f":"Quarterly!CT226-Quarterly!CT222","v":16.800000000000011},null,null,null,null,null,{"$f":"((Quarterly!CZ226/Quarterly!CZ222)-1)","v":1.9035678316709159E-2},{"$f":"((Quarterly!DA226/Quarterly!DA222)-1)","v":1.9490019241785728E-2},null,null,null,null,null,{"$f":"((Quarterly!DG226/Quarterly!DG222)-1)","v":2.1781534460337815E-2},{"$f":"((Quarterly!DH226-Quarterly!DH222)*60)","v":0},{"$f":"Quarterly!DI226-Quarterly!DI222","v":-0.36666666666665293},{"$f":"(Quarterly!DJ226-Quarterly!DJ222)*100","v":-109.99999999999997},{"$f":"(Quarterly!DK226-Quarterly!DK222)*100","v":-83.3333333333333},{"$f":"((Quarterly!DL226/Quarterly!DL222)-1)","v":1.4680923285811165E-2},null,null,null,{"$f":"((Quarterly!DP226/Quarterly!DP222)-1)","v":1.5983185638486441E-2},null,null,null,null,{"$f":"Quarterly!DU226-Quarterly!DU222","v":-1.9000000000000021},{"$f":"((Quarterly!DV226/Quarterly!DV222)-1)","v":3.5513592871968536E-2},{"$f":"((Quarterly!DW226/Quarterly!DW222)-1)","v":3.4878165312947962E-2},{"$f":"((Quarterly!DX226/Quarterly!DX222)-1)","v":2.6890512009884349E-2},{"$f":"((Quarterly!DY226/Quarterly!DY222)-1)","v":2.1825396825396748E-2},{"$f":"((Quarterly!DZ226/Quarterly!DZ222)-1)","v":2.8473315209614825E-2},{"$f":"((Quarterly!EA226/Quarterly!EA222)-1)","v":2.6864447330644525E-2},{"$f":"((Quarterly!EB226/Quarterly!EB222)-1)","v":3.2186809719154441E-2},{"$f":"((Quarterly!EC226/Quarterly!EC222)-1)","v":5.2824951012410137E-2},null,null,null,null,null,{"$f":"((Quarterly!EI226/Quarterly!EI222)-1)","v":2.987067221784101E-2},{"$f":"((Quarterly!EJ226/Quarterly!EJ222)-1)","v":9.21078395219177E-3},{"$f":"((Quarterly!EK226/Quarterly!EK222)-1)","v":1.4268621657886893E-3},null,null,null,null,null,{"$f":"((Quarterly!EQ226/Quarterly!EQ222)-1)","v":7.4713597874813686E-3},{"$f":"((Quarterly!ER226/Quarterly!ER222)-1)","v":2.0964749536177996E-2},{"$f":"((Quarterly!ES226/Quarterly!ES222)-1)","v":1.4498757249378658E-2},null,null,null,null,null,{"$f":"(Quarterly!EY226-Quarterly!EY222)*100","v":0},{"$f":"(Quarterly!EZ226-Quarterly!EZ222)*100","v":8.6666666666666661},{"$f":"(Quarterly!FA226-Quarterly!FA222)*100","v":-38.666666666666586},{"$f":"(Quarterly!FB226-Quarterly!FB222)*100","v":-67.999999999999972},"--",{"$f":"(Quarterly!FD226-Quarterly!FD222)*100","v":-64.6666666666667},{"$f":"(Quarterly!FE226-Quarterly!FE222)*100","v":7.333333333333333},{"$f":"(Quarterly!FF226-Quarterly!FF222)*100","v":6.0000000000000009},{"$f":"(Quarterly!FG226-Quarterly!FG222)*100","v":0.66666666666666541},{"$f":"(Quarterly!FH226-Quarterly!FH222)*100","v":-26.000000000000011},{"$f":"(Quarterly!FI226-Quarterly!FI222)*100","v":-34.000000000000007},null,null,null,null,null,null,{"$f":"((Quarterly!FP226/Quarterly!FP222)-1)","v":-3.0670447508229892E-2},{"$f":"((Quarterly!FQ226/Quarterly!FQ222)-1)","v":-1.8154081654050414E-2},{"$f":"((Quarterly!FR226/Quarterly!FR222)-1)","v":-5.088002346729259E-2},{"$f":"((Quarterly!FS226/Quarterly!FS222)-1)","v":-3.7458276672023727E-2},{"$f":"((Quarterly!FT226/Quarterly!FT222)-1)","v":-4.2764560772671212E-3},{"$f":"((Quarterly!FU226/Quarterly!FU222)-1)","v":1.1874928348490466E-2},{"$f":"((Quarterly!FV226/Quarterly!FV222)-1)","v":2.3224422159654701E-2},{"$f":"((Quarterly!FW226/Quarterly!FW222)-1)","v":6.6973878037954071E-2},{"$f":"((Quarterly!FX226/Quarterly!FX222)-1)","v":2.1941376822137926E-2},null,null,null,null,null,{"$f":"((Quarterly!GD226/Quarterly!GD222)-1)","v":-6.2759133916864385E-2},{"$f":"((Quarterly!GE226/Quarterly!GE222)-1)","v":6.3073219781224488E-3},{"$f":"((Quarterly!GF226/Quarterly!GF222)-1)","v":4.2646579368671E-2},{"$f":"((Quarterly!GG226/Quarterly!GG222)-1)","v":3.7346183633077956E-2},{"$f":"((Quarterly!GH226/Quarterly!GH222)-1)","v":0.13367741935483868},{"$f":"((Quarterly!GI226/Quarterly!GI222)-1)","v":8.9302769818529137E-2},{"$f":"((Quarterly!GJ226/Quarterly!GJ222)-1)","v":1.9370924434215286E-2},{"$f":"((Quarterly!GK226/Quarterly!GK222)-1)","v":-6.480789975935608E-2},{"$f":"((Quarterly!GL226/Quarterly!GL222)-1)","v":2.1631029338637475E-2}]
["13'Q1",{"$f":"((Quarterly!B227/Quarterly!B223)-1)","v":3.139869390538208E-2},{"$f":"((Quarterly!C227/Quarterly!C223)-1)","v":1.3134689705438518E-2},{"$f":"((Quarterly!D227/Quarterly!D223)-1)","v":1.374716322435332E-2},{"$f":"((Quarterly!E227/Quarterly!E223)-1)","v":1.1876507446101137E-2},{"$f":"((Quarterly!F227/Quarterly!F223)-1)","v":6.8654912945570246E-2},{"$f":"((Quarterly!G227/Quarterly!G223)-1)","v":1.1654157382432251E-2},{"$f":"((Quarterly!H227/Quarterly!H223)-1)","v":2.9815261354686484E-3},{"$f":"((Quarterly!I227/Quarterly!I223)-1)","v":3.53926595677716E-2},{"$f":"((Quarterly!J227/Quarterly!J223)-1)","v":5.0099201449730568E-2},{"$f":"((Quarterly!K227/Quarterly!K223)-1)","v":0.12649745423902936},{"$f":"((Quarterly!L227-Quarterly!L223))","v":-6.3870000000000005},{"$f":"((Quarterly!M227/Quarterly!M223)-1)","v":8.1902737796513136E-5},{"$f":"((Quarterly!N227/Quarterly!N223)-1)","v":2.4984093450207912E-2},{"$f":"((Quarterly!O227/Quarterly!O223)-1)","v":-0.10446816052008234},{"$f":"((Quarterly!P227/Quarterly!P223)-1)","v":-2.8052639357238895E-2},{"$f":"((Quarterly!Q227/Quarterly!Q223)-1)","v":-0.28474492985074085},null,null,null,null,null,{"$f":"((Quarterly!W227/Quarterly!W223)-1)","v":0},{"$f":"((Quarterly!X227/Quarterly!X223)-1)","v":0},{"$f":"((Quarterly!Y227/Quarterly!Y223)-1)","v":0.11420966679527145},{"$f":"Quarterly!Z227-Quarterly!Z223","v":0.42999999999999994},{"$f":"((Quarterly!AA227/Quarterly!AA223)-1)","v":-2.7730323314925864E-2},{"$f":"((Quarterly!AB227/Quarterly!AB223)-1)","v":-1.6646306350511786E-2},{"$f":"Quarterly!AC227-Quarterly!AC223","v":0.19999999999999929},{"$f":"Quarterly!AD227-Quarterly!AD223","v":0.30000000000000071},{"$f":"(Quarterly!AE227-Quarterly!AE223)*100","v":-64.999999999999943},{"$f":"(Quarterly!AF227-Quarterly!AF223)*100","v":42.999999999999993},{"$f":"(Quarterly!AG227-Quarterly!AG223)*100","v":29.999999999999982},{"$f":"((Quarterly!AH227/Quarterly!AH223)-1)","v":0.12986374234916931},{"$f":"((Quarterly!AI227/Quarterly!AI223)-1)","v":8.9912774972326526E-2},{"$f":"((Quarterly!AJ227/Quarterly!AJ223)-1)","v":1.9691780821917693E-2},{"$f":"((Quarterly!AK227/Quarterly!AK223)-1)","v":1.9014693171996555E-2},{"$f":"((Quarterly!AL227/Quarterly!AL223)-1)","v":1.8213356461405095E-2},{"$f":"((Quarterly!AM227/Quarterly!AM223)-1)","v":2.053282463496009E-2},{"$f":"((Quarterly!AN227/Quarterly!AN223)-1)","v":1.5046228176715637E-2},{"$f":"((Quarterly!AO227/Quarterly!AO223)-1)","v":5.3531224666264476E-2},{"$f":"(Quarterly!AP227-Quarterly!AP223)*100","v":3.3333333333333437},{"$f":"Quarterly!AQ227-Quarterly!AQ223","v":-6.6666666666662877E-2},{"$f":"Quarterly!AR227-Quarterly!AR223","v":-1.1666666666666714},{"$f":"Quarterly!AS227-Quarterly!AS223","v":1.5},{"$f":"Quarterly!AT227-Quarterly!AT223","v":-0.93333333333333002},{"$f":"Quarterly!AU227-Quarterly!AU223","v":-2.8333333333333286},{"$f":"Quarterly!AV227-Quarterly!AV223","v":-0.6666666666666714},{"$f":"Quarterly!AW227-Quarterly!AW223","v":1},{"$f":"Quarterly!AX227-Quarterly!AX223","v":-1.5},{"$f":"Quarterly!AY227-Quarterly!AY223","v":-1.8333333333333357},{"$f":"Quarterly!AZ227-Quarterly!AZ223","v":-1.9666666666666686},{"$f":"Quarterly!BA227-Quarterly!BA223","v":1.2666666666666728},{"$f":"Quarterly!BB227-Quarterly!BB223","v":-2.3000000000000114},{"$f":"((Quarterly!BC227/Quarterly!BC223)-1)","v":-2.2785238959467602E-2},{"$f":"((Quarterly!BD227/Quarterly!BD223)-1)","v":2.8316472288509864E-3},{"$f":"((Quarterly!BE227/Quarterly!BE223)-1)","v":-4.5735349329328878E-3},{"$f":"((Quarterly!BF227/Quarterly!BF223)-1)","v":9.6313957008780093E-3},{"$f":"((Quarterly!BG227/Quarterly!BG223)-1)","v":1.8541112274599314E-3},{"$f":"((Quarterly!BH227/Quarterly!BH223)-1)","v":-7.732503700123794E-3},{"$f":"((Quarterly!BI227/Quarterly!BI223)-1)","v":7.7604884774473692E-3},{"$f":"((Quarterly!BJ227/Quarterly!BJ223)-1)","v":5.6379951671422734E-2},{"$f":"((Quarterly!BK227/Quarterly!BK223)-1)","v":0.82692307692307687},null,{"$f":"((Quarterly!BM227/Quarterly!BM223)-1)","v":3.7886166095063789E-2},{"$f":"((Quarterly!BN227/Quarterly!BN223)-1)","v":3.6655196905878373E-2},null,null,null,null,null,{"$f":"((Quarterly!BT227/Quarterly!BT223)-1)","v":1.8558915220151517E-2},{"$f":"Quarterly!BU227-Quarterly!BU223","v":-3.0429999999999069E-2},{"$f":"Quarterly!BV227-Quarterly!BV223","v":6.573999999999991E-2},{"$f":"((Quarterly!BW227/Quarterly!BW223)-1)","v":-3.0113785054066255E-2},{"$f":"((Quarterly!BX227/Quarterly!BX223)-1)","v":0.34637134778510847},{"$f":"((Quarterly!BY227/Quarterly!BY223)-1)","v":0.2610244988864141},{"$f":"((Quarterly!BZ227/Quarterly!BZ223)-1)","v":9.2945210476399032E-2},{"$f":"((Quarterly!CA227/Quarterly!CA223)-1)","v":8.5244220730797959E-2},{"$f":"((Quarterly!CB227/Quarterly!CB223)-1)","v":-0.14628570424123621},{"$f":"((Quarterly!CC227/Quarterly!CC223)-1)","v":-0.11825954691432705},{"$f":"((Quarterly!CD227/Quarterly!CD223)-1)","v":3.4013605442176909E-2},{"$f":"((Quarterly!CE227/Quarterly!CE223)-1)","v":0.26066350710900466},null,{"$f":"((Quarterly!CG227/Quarterly!CG223)-1)","v":-0.20567375886524819},{"$f":"((Quarterly!CH227/Quarterly!CH223)-1)","v":9.5626389918458177E-2},null,{"$f":"((Quarterly!CJ227/Quarterly!CJ223)-1)","v":0.26066350710900466},{"$f":"((Quarterly!CK227/Quarterly!CK223)-1)","v":1.7700691193082818E-2},{"$f":"((Quarterly!CL227/Quarterly!CL223)-1)","v":-0.28692781512943366},{"$f":"((Quarterly!CM227/Quarterly!CM223)-1)","v":0.30219780219780223},{"$f":"((Quarterly!CN227/Quarterly!CN223)-1)","v":-9.5199057823754929E-3},{"$f":"((Quarterly!CO227/Quarterly!CO223)-1)","v":9.5874510484579734E-2},{"$f":"((Quarterly!CP227/Quarterly!CP223)-1)","v":6.255916074894774E-2},{"$f":"((Quarterly!CQ227/Quarterly!CQ223)-1)","v":7.0633800645083511E-3},{"$f":"((Quarterly!CR227/Quarterly!CR223)-1)","v":9.9919903036476132E-3},{"$f":"Quarterly!CS227-Quarterly!CS223","v":1.1666666666666572},{"$f":"Quarterly!CT227-Quarterly!CT223","v":-4.7666666666666586},null,null,null,null,null,{"$f":"((Quarterly!CZ227/Quarterly!CZ223)-1)","v":1.739909894916325E-2},{"$f":"((Quarterly!DA227/Quarterly!DA223)-1)","v":1.9372023805174887E-2},null,null,null,null,null,{"$f":"((Quarterly!DG227/Quarterly!DG223)-1)","v":1.8012222579607773E-2},{"$f":"((Quarterly!DH227-Quarterly!DH223)*60)","v":0},{"$f":"Quarterly!DI227-Quarterly!DI223","v":-0.3333333333333357},{"$f":"(Quarterly!DJ227-Quarterly!DJ223)*100","v":-66.6666666666666},{"$f":"(Quarterly!DK227-Quarterly!DK223)*100","v":-53.333333333333414},{"$f":"((Quarterly!DL227/Quarterly!DL223)-1)","v":1.0815822002472109E-2},null,null,null,{"$f":"((Quarterly!DP227/Quarterly!DP223)-1)","v":1.4928689296030084E-2},null,null,null,null,{"$f":"Quarterly!DU227-Quarterly!DU223","v":-3},{"$f":"((Quarterly!DV227/Quarterly!DV223)-1)","v":2.7557974089513548E-2},{"$f":"((Quarterly!DW227/Quarterly!DW223)-1)","v":2.8517450024253765E-2},{"$f":"((Quarterly!DX227/Quarterly!DX223)-1)","v":2.395802759025556E-2},{"$f":"((Quarterly!DY227/Quarterly!DY223)-1)","v":2.9105058365758829E-2},{"$f":"((Quarterly!DZ227/Quarterly!DZ223)-1)","v":2.2370505496615456E-2},{"$f":"((Quarterly!EA227/Quarterly!EA223)-1)","v":2.2944022114720131E-2},{"$f":"((Quarterly!EB227/Quarterly!EB223)-1)","v":2.1065870146203647E-2},{"$f":"((Quarterly!EC227/Quarterly!EC223)-1)","v":3.8949047259296599E-2},null,null,null,null,null,{"$f":"((Quarterly!EI227/Quarterly!EI223)-1)","v":3.4206205860892736E-2},{"$f":"((Quarterly!EJ227/Quarterly!EJ223)-1)","v":1.8167036863879549E-2},{"$f":"((Quarterly!EK227/Quarterly!EK223)-1)","v":8.8783751915826326E-3},null,null,null,null,null,{"$f":"((Quarterly!EQ227/Quarterly!EQ223)-1)","v":7.0898598516075939E-3},{"$f":"((Quarterly!ER227/Quarterly!ER223)-1)","v":1.7492174553489281E-2},{"$f":"((Quarterly!ES227/Quarterly!ES223)-1)","v":9.6747632770686209E-3},null,null,null,null,null,{"$f":"(Quarterly!EY227-Quarterly!EY223)*100","v":0},{"$f":"(Quarterly!EZ227-Quarterly!EZ223)*100","v":4.0000000000000009},{"$f":"(Quarterly!FA227-Quarterly!FA223)*100","v":-2.0000000000000462},{"$f":"(Quarterly!FB227-Quarterly!FB223)*100","v":-39.000000000000057},"--",{"$f":"(Quarterly!FD227-Quarterly!FD223)*100","v":-41.6666666666667},{"$f":"(Quarterly!FE227-Quarterly!FE223)*100","v":2.0000000000000004},{"$f":"(Quarterly!FF227-Quarterly!FF223)*100","v":-0.33333333333333548},{"$f":"(Quarterly!FG227-Quarterly!FG223)*100","v":-2.0000000000000018},{"$f":"(Quarterly!FH227-Quarterly!FH223)*100","v":-6.9999999999999947},{"$f":"(Quarterly!FI227-Quarterly!FI223)*100","v":-8.6666666666666679},null,null,null,null,null,null,{"$f":"((Quarterly!FP227/Quarterly!FP223)-1)","v":7.5911436657234432E-3},{"$f":"((Quarterly!FQ227/Quarterly!FQ223)-1)","v":-1.3745813390810047E-2},{"$f":"((Quarterly!FR227/Quarterly!FR223)-1)","v":-2.5622775800711706E-2},{"$f":"((Quarterly!FS227/Quarterly!FS223)-1)","v":6.3014533997356459E-3},{"$f":"((Quarterly!FT227/Quarterly!FT223)-1)","v":8.993777349417309E-3},{"$f":"((Quarterly!FU227/Quarterly!FU223)-1)","v":2.6650957193208313E-2},{"$f":"((Quarterly!FV227/Quarterly!FV223)-1)","v":5.2553082262596362E-4},{"$f":"((Quarterly!FW227/Quarterly!FW223)-1)","v":3.4873448708942822E-2},{"$f":"((Quarterly!FX227/Quarterly!FX223)-1)","v":-3.5500266479481235E-2},null,null,null,null,null,{"$f":"((Quarterly!GD227/Quarterly!GD223)-1)","v":-8.2998574575612216E-2},{"$f":"((Quarterly!GE227/Quarterly!GE223)-1)","v":-5.0609052803330723E-2},{"$f":"((Quarterly!GF227/Quarterly!GF223)-1)","v":1.4940742715814359E-3},{"$f":"((Quarterly!GG227/Quarterly!GG223)-1)","v":1.4689834634432852E-2},{"$f":"((Quarterly!GH227/Quarterly!GH223)-1)","v":-7.4868979286246695E-4},{"$f":"((Quarterly!GI227/Quarterly!GI223)-1)","v":-7.6392572944297132E-2},{"$f":"((Quarterly!GJ227/Quarterly!GJ223)-1)","v":0.3851261620185924},{"$f":"((Quarterly!GK227/Quarterly!GK223)-1)","v":-1.8910285251507286E-2},{"$f":"((Quarterly!GL227/Quarterly!GL223)-1)","v":-4.2440984429934492E-3}]
["13'Q2",{"$f":"((Quarterly!B228/Quarterly!B224)-1)","v":2.6023004430446584E-2},{"$f":"((Quarterly!C228/Quarterly!C224)-1)","v":1.0359308741496598E-2},{"$f":"((Quarterly!D228/Quarterly!D224)-1)","v":1.1931969257029218E-2},{"$f":"((Quarterly!E228/Quarterly!E224)-1)","v":1.2241102917601721E-2},{"$f":"((Quarterly!F228/Quarterly!F224)-1)","v":6.6961241578703312E-2},{"$f":"((Quarterly!G228/Quarterly!G224)-1)","v":1.2976741461128372E-2},{"$f":"((Quarterly!H228/Quarterly!H224)-1)","v":3.3304533760660782E-3},{"$f":"((Quarterly!I228/Quarterly!I224)-1)","v":2.2961343490409902E-2},{"$f":"((Quarterly!J228/Quarterly!J224)-1)","v":3.4246504354900731E-2},{"$f":"((Quarterly!K228/Quarterly!K224)-1)","v":0.14827350836329867},{"$f":"((Quarterly!L228-Quarterly!L224))","v":-24.061999999999998},{"$f":"((Quarterly!M228/Quarterly!M224)-1)","v":8.0788965667897283E-3},{"$f":"((Quarterly!N228/Quarterly!N224)-1)","v":2.6022857433756874E-2},{"$f":"((Quarterly!O228/Quarterly!O224)-1)","v":-6.9785370939808633E-2},{"$f":"((Quarterly!P228/Quarterly!P224)-1)","v":-2.8191367807042678E-2},{"$f":"((Quarterly!Q228/Quarterly!Q224)-1)","v":-0.51820749897231466},null,null,null,null,null,{"$f":"((Quarterly!W228/Quarterly!W224)-1)","v":-3.9735099337747659E-3},{"$f":"((Quarterly!X228/Quarterly!X224)-1)","v":-1.7233950883240867E-3},{"$f":"((Quarterly!Y228/Quarterly!Y224)-1)","v":9.5142274755759315E-2},{"$f":"Quarterly!Z228-Quarterly!Z224","v":1.1099999999999999},{"$f":"((Quarterly!AA228/Quarterly!AA224)-1)","v":2.0280494466977661E-3},{"$f":"((Quarterly!AB228/Quarterly!AB224)-1)","v":9.1710491027179319E-3},{"$f":"Quarterly!AC228-Quarterly!AC224","v":-1.3000000000000007},{"$f":"Quarterly!AD228-Quarterly!AD224","v":-14.100000000000001},{"$f":"(Quarterly!AE228-Quarterly!AE224)*100","v":-81.999999999999943},{"$f":"(Quarterly!AF228-Quarterly!AF224)*100","v":110.99999999999999},{"$f":"(Quarterly!AG228-Quarterly!AG224)*100","v":1.0000000000000231},{"$f":"((Quarterly!AH228/Quarterly!AH224)-1)","v":0.14058180391317521},{"$f":"((Quarterly!AI228/Quarterly!AI224)-1)","v":9.5948024326693249E-2},{"$f":"((Quarterly!AJ228/Quarterly!AJ224)-1)","v":1.8723404255319265E-2},{"$f":"((Quarterly!AK228/Quarterly!AK224)-1)","v":1.8916595012897774E-2},{"$f":"((Quarterly!AL228/Quarterly!AL224)-1)","v":1.899827288428324E-2},{"$f":"((Quarterly!AM228/Quarterly!AM224)-1)","v":1.758883510179543E-2},{"$f":"((Quarterly!AN228/Quarterly!AN224)-1)","v":1.0388762060288936E-2},{"$f":"((Quarterly!AO228/Quarterly!AO224)-1)","v":3.9750444074503788E-2},{"$f":"(Quarterly!AP228-Quarterly!AP224)*100","v":1.3333333333333419},{"$f":"Quarterly!AQ228-Quarterly!AQ224","v":-1.8333333333333286},{"$f":"Quarterly!AR228-Quarterly!AR224","v":2.1666666666666643},{"$f":"Quarterly!AS228-Quarterly!AS224","v":-0.6666666666666714},{"$f":"Quarterly!AT228-Quarterly!AT224","v":-7.2666666666666657},{"$f":"Quarterly!AU228-Quarterly!AU224","v":-0.1666666666666714},{"$f":"Quarterly!AV228-Quarterly!AV224","v":1.6666666666666643},{"$f":"Quarterly!AW228-Quarterly!AW224","v":2.5},{"$f":"Quarterly!AX228-Quarterly!AX224","v":-4.3666666666666742},{"$f":"Quarterly!AY228-Quarterly!AY224","v":2.1666666666666643},{"$f":"Quarterly!AZ228-Quarterly!AZ224","v":-4.0333333333333314},{"$f":"Quarterly!BA228-Quarterly!BA224","v":0.93333333333333002},{"$f":"Quarterly!BB228-Quarterly!BB224","v":0.13333333333333997},{"$f":"((Quarterly!BC228/Quarterly!BC224)-1)","v":5.8959417991242269E-3},{"$f":"((Quarterly!BD228/Quarterly!BD224)-1)","v":6.3460843398810418E-3},{"$f":"((Quarterly!BE228/Quarterly!BE224)-1)","v":-2.3272182363091032E-3},{"$f":"((Quarterly!BF228/Quarterly!BF224)-1)","v":1.8234165067178454E-2},{"$f":"((Quarterly!BG228/Quarterly!BG224)-1)","v":-5.5683435371874923E-3},{"$f":"((Quarterly!BH228/Quarterly!BH224)-1)","v":4.0937139417045465E-3},{"$f":"((Quarterly!BI228/Quarterly!BI224)-1)","v":2.3937584963650504E-2},{"$f":"((Quarterly!BJ228/Quarterly!BJ224)-1)","v":4.3673612399266259E-2},{"$f":"((Quarterly!BK228/Quarterly!BK224)-1)","v":1.734375},null,{"$f":"((Quarterly!BM228/Quarterly!BM224)-1)","v":3.9645122399138533E-2},{"$f":"((Quarterly!BN228/Quarterly!BN224)-1)","v":4.0726182807714117E-2},null,null,null,null,null,{"$f":"((Quarterly!BT228/Quarterly!BT224)-1)","v":2.0480339695627015E-2},{"$f":"Quarterly!BU228-Quarterly!BU224","v":1.2719999999999843E-2},{"$f":"Quarterly!BV228-Quarterly!BV224","v":0.14114000000000004},{"$f":"((Quarterly!BW228/Quarterly!BW224)-1)","v":-2.672035498198333E-2},{"$f":"((Quarterly!BX228/Quarterly!BX224)-1)","v":0.17132551848512168},{"$f":"((Quarterly!BY228/Quarterly!BY224)-1)","v":0.27218430034129693},{"$f":"((Quarterly!BZ228/Quarterly!BZ224)-1)","v":0.11827005833413029},{"$f":"((Quarterly!CA228/Quarterly!CA224)-1)","v":8.9543142448606394E-2},{"$f":"((Quarterly!CB228/Quarterly!CB224)-1)","v":-0.11372457708476025},{"$f":"((Quarterly!CC228/Quarterly!CC224)-1)","v":-0.10196639048560208},{"$f":"((Quarterly!CD228/Quarterly!CD224)-1)","v":0.11547344110854496},{"$f":"((Quarterly!CE228/Quarterly!CE224)-1)","v":0.23985239852398532},null,{"$f":"((Quarterly!CG228/Quarterly!CG224)-1)","v":-0.1198910081743868},{"$f":"((Quarterly!CH228/Quarterly!CH224)-1)","v":0.13082039911308208},null,{"$f":"((Quarterly!CJ228/Quarterly!CJ224)-1)","v":0.23985239852398532},{"$f":"((Quarterly!CK228/Quarterly!CK224)-1)","v":1.4699956324817798E-2},{"$f":"((Quarterly!CL228/Quarterly!CL224)-1)","v":-0.29519358162814657},{"$f":"((Quarterly!CM228/Quarterly!CM224)-1)","v":0.15459249676584719},{"$f":"((Quarterly!CN228/Quarterly!CN224)-1)","v":-1.1363538709649568E-2},{"$f":"((Quarterly!CO228/Quarterly!CO224)-1)","v":8.696734949079632E-2},{"$f":"((Quarterly!CP228/Quarterly!CP224)-1)","v":5.9923814145197873E-2},{"$f":"((Quarterly!CQ228/Quarterly!CQ224)-1)","v":6.9383469215928972E-3},{"$f":"((Quarterly!CR228/Quarterly!CR224)-1)","v":1.0353481931041353E-2},{"$f":"Quarterly!CS228-Quarterly!CS224","v":5.3666666666666742},{"$f":"Quarterly!CT228-Quarterly!CT224","v":9.2999999999999972},null,null,null,null,null,{"$f":"((Quarterly!CZ228/Quarterly!CZ224)-1)","v":1.4074391338298131E-2},{"$f":"((Quarterly!DA228/Quarterly!DA224)-1)","v":1.6741499842966689E-2},null,null,null,null,null,{"$f":"((Quarterly!DG228/Quarterly!DG224)-1)","v":1.9897304236200064E-2},{"$f":"((Quarterly!DH228-Quarterly!DH224)*60)","v":1.9999999999998863},{"$f":"Quarterly!DI228-Quarterly!DI224","v":-0.3333333333333286},{"$f":"(Quarterly!DJ228-Quarterly!DJ224)*100","v":-69.999999999999744},{"$f":"(Quarterly!DK228-Quarterly!DK224)*100","v":-66.666666666666515},{"$f":"((Quarterly!DL228/Quarterly!DL224)-1)","v":6.4842505380249271E-3},null,null,null,{"$f":"((Quarterly!DP228/Quarterly!DP224)-1)","v":1.6146774378194895E-2},null,null,null,null,{"$f":"Quarterly!DU228-Quarterly!DU224","v":-2.7333333333333343},{"$f":"((Quarterly!DV228/Quarterly!DV224)-1)","v":2.7585350713842383E-2},{"$f":"((Quarterly!DW228/Quarterly!DW224)-1)","v":2.8668586179507516E-2},{"$f":"((Quarterly!DX228/Quarterly!DX224)-1)","v":2.4317761751168732E-2},{"$f":"((Quarterly!DY228/Quarterly!DY224)-1)","v":2.9434192466067044E-2},{"$f":"((Quarterly!DZ228/Quarterly!DZ224)-1)","v":2.2722951131393998E-2},{"$f":"((Quarterly!EA228/Quarterly!EA224)-1)","v":2.5688450472667324E-2},{"$f":"((Quarterly!EB228/Quarterly!EB224)-1)","v":1.5998757378067774E-2},{"$f":"((Quarterly!EC228/Quarterly!EC224)-1)","v":3.8125246159905535E-2},null,null,null,null,null,{"$f":"((Quarterly!EI228/Quarterly!EI224)-1)","v":3.6475458131112637E-2},{"$f":"((Quarterly!EJ228/Quarterly!EJ224)-1)","v":3.4787542247487258E-2},{"$f":"((Quarterly!EK228/Quarterly!EK224)-1)","v":2.2654941332359568E-2},null,null,null,null,null,{"$f":"((Quarterly!EQ228/Quarterly!EQ224)-1)","v":1.0736703006276826E-2},{"$f":"((Quarterly!ER228/Quarterly!ER224)-1)","v":1.6306339318431728E-2},{"$f":"((Quarterly!ES228/Quarterly!ES224)-1)","v":8.4033613445377853E-3},null,null,null,null,null,{"$f":"(Quarterly!EY228-Quarterly!EY224)*100","v":0},{"$f":"(Quarterly!EZ228-Quarterly!EZ224)*100","v":-3.6666666666666696},{"$f":"(Quarterly!FA228-Quarterly!FA224)*100","v":16.333333333333311},{"$f":"(Quarterly!FB228-Quarterly!FB224)*100","v":-25.666666666666682},"--",{"$f":"(Quarterly!FD228-Quarterly!FD224)*100","v":-10.999999999999988},{"$f":"(Quarterly!FE228-Quarterly!FE224)*100","v":-3.6666666666666661},{"$f":"(Quarterly!FF228-Quarterly!FF224)*100","v":-6},{"$f":"(Quarterly!FG228-Quarterly!FG224)*100","v":-1.9999999999999962},{"$f":"(Quarterly!FH228-Quarterly!FH224)*100","v":13},{"$f":"(Quarterly!FI228-Quarterly!FI224)*100","v":17.333333333333357},null,null,null,null,null,null,{"$f":"((Quarterly!FP228/Quarterly!FP224)-1)","v":1.293515921465116E-2},{"$f":"((Quarterly!FQ228/Quarterly!FQ224)-1)","v":-2.7901515390852838E-2},{"$f":"((Quarterly!FR228/Quarterly!FR224)-1)","v":-7.700683087367699E-2},{"$f":"((Quarterly!FS228/Quarterly!FS224)-1)","v":1.812657438907217E-2},{"$f":"((Quarterly!FT228/Quarterly!FT224)-1)","v":1.7189252611826689E-3},{"$f":"((Quarterly!FU228/Quarterly!FU224)-1)","v":3.357502946699098E-2},{"$f":"((Quarterly!FV228/Quarterly!FV224)-1)","v":1.6743910618576052E-2},{"$f":"((Quarterly!FW228/Quarterly!FW224)-1)","v":1.6669313353255832E-2},{"$f":"((Quarterly!FX228/Quarterly!FX224)-1)","v":9.702291440122579E-3},null,null,null,null,null,{"$f":"((Quarterly!GD228/Quarterly!GD224)-1)","v":7.9517900442163114E-3},{"$f":"((Quarterly!GE228/Quarterly!GE224)-1)","v":-5.3866256725595751E-2},{"$f":"((Quarterly!GF228/Quarterly!GF224)-1)","v":-4.360454112666301E-2},{"$f":"((Quarterly!GG228/Quarterly!GG224)-1)","v":-1.9083776259174901E-2},{"$f":"((Quarterly!GH228/Quarterly!GH224)-1)","v":-5.8200413977839927E-2},{"$f":"((Quarterly!GI228/Quarterly!GI224)-1)","v":-4.3994720633523388E-3},{"$f":"((Quarterly!GJ228/Quarterly!GJ224)-1)","v":0.71047023724960945},{"$f":"((Quarterly!GK228/Quarterly!GK224)-1)","v":5.0983235160851903E-2},{"$f":"((Quarterly!GL228/Quarterly!GL224)-1)","v":0.10515027083697359}]
["13'Q3",{"$f":"((Quarterly!B229/Quarterly!B225)-1)","v":3.2130389447482921E-2},{"$f":"((Quarterly!C229/Quarterly!C225)-1)","v":1.6938908647286421E-2},{"$f":"((Quarterly!D229/Quarterly!D225)-1)","v":1.397570820041838E-2},{"$f":"((Quarterly!E229/Quarterly!E225)-1)","v":1.4293754236962997E-2},{"$f":"((Quarterly!F229/Quarterly!F225)-1)","v":6.0133630289532336E-2},{"$f":"((Quarterly!G229/Quarterly!G225)-1)","v":1.6717325227963542E-2},{"$f":"((Quarterly!H229/Quarterly!H225)-1)","v":6.1410956525096427E-3},{"$f":"((Quarterly!I229/Quarterly!I225)-1)","v":3.3707601922190467E-2},{"$f":"((Quarterly!J229/Quarterly!J225)-1)","v":3.406758897290052E-2},{"$f":"((Quarterly!K229/Quarterly!K225)-1)","v":0.13603525518616677},{"$f":"((Quarterly!L229-Quarterly!L225))","v":38.457999999999998},{"$f":"((Quarterly!M229/Quarterly!M225)-1)","v":1.0826766774672647E-2},{"$f":"((Quarterly!N229/Quarterly!N225)-1)","v":2.8831083305894012E-2},{"$f":"((Quarterly!O229/Quarterly!O225)-1)","v":-6.871947753143437E-2},{"$f":"((Quarterly!P229/Quarterly!P225)-1)","v":-3.0229633820901269E-2},{"$f":"((Quarterly!Q229/Quarterly!Q225)-1)","v":-0.34262148845765861},null,null,null,null,null,{"$f":"((Quarterly!W229/Quarterly!W225)-1)","v":-2.6631158455391324E-3},{"$f":"((Quarterly!X229/Quarterly!X225)-1)","v":2.5974025974027093E-3},{"$f":"((Quarterly!Y229/Quarterly!Y225)-1)","v":7.7572993005110558E-2},{"$f":"Quarterly!Z229-Quarterly!Z225","v":1.3199999999999998},{"$f":"((Quarterly!AA229/Quarterly!AA225)-1)","v":-6.1246245480639505E-4},{"$f":"((Quarterly!AB229/Quarterly!AB225)-1)","v":8.644812724792228E-3},{"$f":"Quarterly!AC229-Quarterly!AC225","v":12.1},{"$f":"Quarterly!AD229-Quarterly!AD225","v":24.3},{"$f":"(Quarterly!AE229-Quarterly!AE225)*100","v":-85.999999999999943},{"$f":"(Quarterly!AF229-Quarterly!AF225)*100","v":131.99999999999997},{"$f":"(Quarterly!AG229-Quarterly!AG225)*100","v":-120.00000000000001},{"$f":"((Quarterly!AH229/Quarterly!AH225)-1)","v":0.13148890073421948},{"$f":"((Quarterly!AI229/Quarterly!AI225)-1)","v":8.6590435461967541E-2},{"$f":"((Quarterly!AJ229/Quarterly!AJ225)-1)","v":2.0356234096692072E-2},{"$f":"((Quarterly!AK229/Quarterly!AK225)-1)","v":1.8835616438356295E-2},{"$f":"((Quarterly!AL229/Quarterly!AL225)-1)","v":1.8056749785038795E-2},{"$f":"((Quarterly!AM229/Quarterly!AM225)-1)","v":1.9370541530198571E-2},{"$f":"((Quarterly!AN229/Quarterly!AN225)-1)","v":9.2151383455261193E-3},{"$f":"((Quarterly!AO229/Quarterly!AO225)-1)","v":3.0200219156344188E-2},{"$f":"(Quarterly!AP229-Quarterly!AP225)*100","v":0},{"$f":"Quarterly!AQ229-Quarterly!AQ225","v":4.1000000000000014},{"$f":"Quarterly!AR229-Quarterly!AR225","v":3.8333333333333357},{"$f":"Quarterly!AS229-Quarterly!AS225","v":-5},{"$f":"Quarterly!AT229-Quarterly!AT225","v":1.5999999999999943},{"$f":"Quarterly!AU229-Quarterly!AU225","v":6.3333333333333286},{"$f":"Quarterly!AV229-Quarterly!AV225","v":7.1666666666666714},{"$f":"Quarterly!AW229-Quarterly!AW225","v":-2.6666666666666714},{"$f":"Quarterly!AX229-Quarterly!AX225","v":11.533333333333339},{"$f":"Quarterly!AY229-Quarterly!AY225","v":2.6666666666666643},{"$f":"Quarterly!AZ229-Quarterly!AZ225","v":14},{"$f":"Quarterly!BA229-Quarterly!BA225","v":2.8999999999999986},{"$f":"Quarterly!BB229-Quarterly!BB225","v":1},{"$f":"((Quarterly!BC229/Quarterly!BC225)-1)","v":2.9510725525923487E-2},{"$f":"((Quarterly!BD229/Quarterly!BD225)-1)","v":1.7102802163546649E-3},{"$f":"((Quarterly!BE229/Quarterly!BE225)-1)","v":6.6410861865409121E-3},{"$f":"((Quarterly!BF229/Quarterly!BF225)-1)","v":2.0011843552313779E-2},{"$f":"((Quarterly!BG229/Quarterly!BG225)-1)","v":1.8177991236290048E-4},{"$f":"((Quarterly!BH229/Quarterly!BH225)-1)","v":5.0247208208722416E-3},{"$f":"((Quarterly!BI229/Quarterly!BI225)-1)","v":1.9826104042835357E-2},{"$f":"((Quarterly!BJ229/Quarterly!BJ225)-1)","v":5.8627425124037735E-2},{"$f":"((Quarterly!BK229/Quarterly!BK225)-1)","v":1.8082191780821915},null,{"$f":"((Quarterly!BM229/Quarterly!BM225)-1)","v":4.0153239788232931E-2},{"$f":"((Quarterly!BN229/Quarterly!BN225)-1)","v":4.1320504770652855E-2},null,null,null,null,null,{"$f":"((Quarterly!BT229/Quarterly!BT225)-1)","v":2.4199381857641811E-2},{"$f":"Quarterly!BU229-Quarterly!BU225","v":-3.0849999999999156E-2},{"$f":"Quarterly!BV229-Quarterly!BV225","v":8.2060000000000244E-2},{"$f":"((Quarterly!BW229/Quarterly!BW225)-1)","v":-3.6188696662519892E-2},{"$f":"((Quarterly!BX229/Quarterly!BX225)-1)","v":0.13156770610850055},{"$f":"((Quarterly!BY229/Quarterly!BY225)-1)","v":0.13690705746239873},{"$f":"((Quarterly!BZ229/Quarterly!BZ225)-1)","v":0.12928298011390171},{"$f":"((Quarterly!CA229/Quarterly!CA225)-1)","v":8.3539344185829423E-2},{"$f":"((Quarterly!CB229/Quarterly!CB225)-1)","v":-9.8058447986315578E-2},{"$f":"((Quarterly!CC229/Quarterly!CC225)-1)","v":-9.7097062145736102E-2},{"$f":"((Quarterly!CD229/Quarterly!CD225)-1)","v":0.22843822843822847},{"$f":"((Quarterly!CE229/Quarterly!CE225)-1)","v":2.3029229406554608E-2},null,{"$f":"((Quarterly!CG229/Quarterly!CG225)-1)","v":-5.0215208034433467E-2},{"$f":"((Quarterly!CH229/Quarterly!CH225)-1)","v":0.12306610407876217},null,{"$f":"((Quarterly!CJ229/Quarterly!CJ225)-1)","v":2.3029229406554608E-2},{"$f":"((Quarterly!CK229/Quarterly!CK225)-1)","v":1.9340695265063435E-2},{"$f":"((Quarterly!CL229/Quarterly!CL225)-1)","v":-0.24749582637729539},{"$f":"((Quarterly!CM229/Quarterly!CM225)-1)","v":9.5324833029751144E-2},{"$f":"((Quarterly!CN229/Quarterly!CN225)-1)","v":-5.0727669794394803E-3},{"$f":"((Quarterly!CO229/Quarterly!CO225)-1)","v":8.359900263854958E-2},{"$f":"((Quarterly!CP229/Quarterly!CP225)-1)","v":6.088314559484731E-2},{"$f":"((Quarterly!CQ229/Quarterly!CQ225)-1)","v":6.9262381074497448E-3},{"$f":"((Quarterly!CR229/Quarterly!CR225)-1)","v":1.0333748959896916E-2},{"$f":"Quarterly!CS229-Quarterly!CS225","v":6.6000000000000085},{"$f":"Quarterly!CT229-Quarterly!CT225","v":15.266666666666666},null,null,null,null,null,{"$f":"((Quarterly!CZ229/Quarterly!CZ225)-1)","v":1.496831867827475E-2},{"$f":"((Quarterly!DA229/Quarterly!DA225)-1)","v":1.733052331724716E-2},null,null,null,null,null,{"$f":"((Quarterly!DG229/Quarterly!DG225)-1)","v":2.0166453265044959E-2},{"$f":"((Quarterly!DH229-Quarterly!DH225)*60)","v":0},{"$f":"Quarterly!DI229-Quarterly!DI225","v":-0.30000000000001137},{"$f":"(Quarterly!DJ229-Quarterly!DJ225)*100","v":-103.33333333333368},{"$f":"(Quarterly!DK229-Quarterly!DK225)*100","v":-76.666666666666657},{"$f":"((Quarterly!DL229/Quarterly!DL225)-1)","v":4.2087072858016938E-3},null,null,null,{"$f":"((Quarterly!DP229/Quarterly!DP225)-1)","v":1.7026945892370415E-2},null,null,null,null,{"$f":"Quarterly!DU229-Quarterly!DU225","v":-1.7333333333333307},{"$f":"((Quarterly!DV229/Quarterly!DV225)-1)","v":2.1351963003050312E-2},{"$f":"((Quarterly!DW229/Quarterly!DW225)-1)","v":2.0575135553834167E-2},{"$f":"((Quarterly!DX229/Quarterly!DX225)-1)","v":1.3573209832561606E-2},{"$f":"((Quarterly!DY229/Quarterly!DY225)-1)","v":1.9362526064939045E-2},{"$f":"((Quarterly!DZ229/Quarterly!DZ225)-1)","v":1.1753137291627302E-2},{"$f":"((Quarterly!EA229/Quarterly!EA225)-1)","v":8.162989948053978E-3},{"$f":"((Quarterly!EB229/Quarterly!EB225)-1)","v":1.9898974437471351E-2},{"$f":"((Quarterly!EC229/Quarterly!EC225)-1)","v":3.5417610632835217E-2},null,null,null,null,null,{"$f":"((Quarterly!EI229/Quarterly!EI225)-1)","v":4.3123254729953819E-2},{"$f":"((Quarterly!EJ229/Quarterly!EJ225)-1)","v":4.0646803031070711E-2},{"$f":"((Quarterly!EK229/Quarterly!EK225)-1)","v":2.8286046915297014E-2},null,null,null,null,null,{"$f":"((Quarterly!EQ229/Quarterly!EQ225)-1)","v":8.7285902503293489E-3},{"$f":"((Quarterly!ER229/Quarterly!ER225)-1)","v":1.2195121951219523E-2},{"$f":"((Quarterly!ES229/Quarterly!ES225)-1)","v":6.5332788893426308E-3},null,null,null,null,null,{"$f":"(Quarterly!EY229-Quarterly!EY225)*100","v":0},{"$f":"(Quarterly!EZ229-Quarterly!EZ225)*100","v":-6.0000000000000009},{"$f":"(Quarterly!FA229-Quarterly!FA225)*100","v":104.99999999999999},{"$f":"(Quarterly!FB229-Quarterly!FB225)*100","v":52.999999999999936},"--",{"$f":"(Quarterly!FD229-Quarterly!FD225)*100","v":89.000000000000014},{"$f":"(Quarterly!FE229-Quarterly!FE225)*100","v":-7.0000000000000009},{"$f":"(Quarterly!FF229-Quarterly!FF225)*100","v":-6.0000000000000009},{"$f":"(Quarterly!FG229-Quarterly!FG225)*100","v":10.666666666666668},{"$f":"(Quarterly!FH229-Quarterly!FH225)*100","v":84},{"$f":"(Quarterly!FI229-Quarterly!FI225)*100","v":106.66666666666671},null,null,null,null,null,null,{"$f":"((Quarterly!FP229/Quarterly!FP225)-1)","v":4.3619551743777185E-2},{"$f":"((Quarterly!FQ229/Quarterly!FQ225)-1)","v":-3.546270536979701E-2},{"$f":"((Quarterly!FR229/Quarterly!FR225)-1)","v":-1.8694288334946463E-2},{"$f":"((Quarterly!FS229/Quarterly!FS225)-1)","v":5.84790651867233E-2},{"$f":"((Quarterly!FT229/Quarterly!FT225)-1)","v":1.3167466562075347E-2},{"$f":"((Quarterly!FU229/Quarterly!FU225)-1)","v":3.2304313822842934E-2},{"$f":"((Quarterly!FV229/Quarterly!FV225)-1)","v":5.2309127224601681E-2},{"$f":"((Quarterly!FW229/Quarterly!FW225)-1)","v":4.4233054414021922E-2},{"$f":"((Quarterly!FX229/Quarterly!FX225)-1)","v":3.5012536308539399E-2},null,null,null,null,null,{"$f":"((Quarterly!GD229/Quarterly!GD225)-1)","v":0.14710451212022702},{"$f":"((Quarterly!GE229/Quarterly!GE225)-1)","v":6.5822284393626251E-3},{"$f":"((Quarterly!GF229/Quarterly!GF225)-1)","v":-2.46515223968643E-2},{"$f":"((Quarterly!GG229/Quarterly!GG225)-1)","v":-5.1885994587280715E-3},{"$f":"((Quarterly!GH229/Quarterly!GH225)-1)","v":0.23242404080727419},{"$f":"((Quarterly!GI229/Quarterly!GI225)-1)","v":0.4744897959183676},{"$f":"((Quarterly!GJ229/Quarterly!GJ225)-1)","v":0.22742436443115177},{"$f":"((Quarterly!GK229/Quarterly!GK225)-1)","v":7.3347667570347053E-2},{"$f":"((Quarterly!GL229/Quarterly!GL225)-1)","v":9.8951189995966082E-2}]
["13'Q4",{"$f":"((Quarterly!B230/Quarterly!B226)-1)","v":4.3107563076669742E-2},{"$f":"((Quarterly!C230/Quarterly!C226)-1)","v":2.6629435525440392E-2},{"$f":"((Quarterly!D230/Quarterly!D226)-1)","v":2.0151735492265566E-2},{"$f":"((Quarterly!E230/Quarterly!E226)-1)","v":1.9990624910315002E-2},{"$f":"((Quarterly!F230/Quarterly!F226)-1)","v":5.228947368421033E-2},{"$f":"((Quarterly!G230/Quarterly!G226)-1)","v":2.6440479672418693E-2},{"$f":"((Quarterly!H230/Quarterly!H226)-1)","v":1.2560102523583527E-2},{"$f":"((Quarterly!I230/Quarterly!I226)-1)","v":4.7894563120711942E-2},{"$f":"((Quarterly!J230/Quarterly!J226)-1)","v":4.525155953869886E-2},{"$f":"((Quarterly!K230/Quarterly!K226)-1)","v":6.8000817714835016E-2},{"$f":"((Quarterly!L230-Quarterly!L226))","v":88.128},{"$f":"((Quarterly!M230/Quarterly!M226)-1)","v":2.4540189450162453E-2},{"$f":"((Quarterly!N230/Quarterly!N226)-1)","v":5.924420954721632E-2},{"$f":"((Quarterly!O230/Quarterly!O226)-1)","v":-0.13607045281707941},{"$f":"((Quarterly!P230/Quarterly!P226)-1)","v":-2.7750870541148442E-2},{"$f":"((Quarterly!Q230/Quarterly!Q226)-1)","v":-0.4933759353802597},null,null,null,null,null,{"$f":"((Quarterly!W230/Quarterly!W226)-1)","v":0},{"$f":"((Quarterly!X230/Quarterly!X226)-1)","v":6.9204152249136008E-3},{"$f":"((Quarterly!Y230/Quarterly!Y226)-1)","v":6.8726520098402188E-2},{"$f":"Quarterly!Z230-Quarterly!Z226","v":1.43},{"$f":"((Quarterly!AA230/Quarterly!AA226)-1)","v":3.9897256466393971E-2},{"$f":"((Quarterly!AB230/Quarterly!AB226)-1)","v":3.7178140975846485E-2},{"$f":"Quarterly!AC230-Quarterly!AC226","v":-9.1999999999999993},{"$f":"Quarterly!AD230-Quarterly!AD226","v":-4.5},{"$f":"(Quarterly!AE230-Quarterly!AE226)*100","v":-84.000000000000071},{"$f":"(Quarterly!AF230-Quarterly!AF226)*100","v":143},{"$f":"(Quarterly!AG230-Quarterly!AG226)*100","v":-118},{"$f":"((Quarterly!AH230/Quarterly!AH226)-1)","v":0.1280630056751435},{"$f":"((Quarterly!AI230/Quarterly!AI226)-1)","v":9.3014323368394214E-2},{"$f":"((Quarterly!AJ230/Quarterly!AJ226)-1)","v":1.940928270042197E-2},{"$f":"((Quarterly!AK230/Quarterly!AK226)-1)","v":2.0477815699658564E-2},{"$f":"((Quarterly!AL230/Quarterly!AL226)-1)","v":2.0565552699228773E-2},{"$f":"((Quarterly!AM230/Quarterly!AM226)-1)","v":2.151317323694335E-2},{"$f":"((Quarterly!AN230/Quarterly!AN226)-1)","v":9.6054533158436151E-3},{"$f":"((Quarterly!AO230/Quarterly!AO226)-1)","v":3.6080457895733886E-2},{"$f":"(Quarterly!AP230-Quarterly!AP226)*100","v":0.66666666666665986},{"$f":"Quarterly!AQ230-Quarterly!AQ226","v":6.0666666666666771},{"$f":"Quarterly!AR230-Quarterly!AR226","v":8.6666666666666714},{"$f":"Quarterly!AS230-Quarterly!AS226","v":0.3333333333333357},{"$f":"Quarterly!AT230-Quarterly!AT226","v":4.36666666666666},{"$f":"Quarterly!AU230-Quarterly!AU226","v":8.3333333333333286},{"$f":"Quarterly!AV230-Quarterly!AV226","v":6.1666666666666643},{"$f":"Quarterly!AW230-Quarterly!AW226","v":4},{"$f":"Quarterly!AX230-Quarterly!AX226","v":11.466666666666676},{"$f":"Quarterly!AY230-Quarterly!AY226","v":-0.5},{"$f":"Quarterly!AZ230-Quarterly!AZ226","v":8.8666666666666742},{"$f":"Quarterly!BA230-Quarterly!BA226","v":2.6666666666666643},{"$f":"Quarterly!BB230-Quarterly!BB226","v":-2.7333333333333414},{"$f":"((Quarterly!BC230/Quarterly!BC226)-1)","v":1.876182019755257E-3},{"$f":"((Quarterly!BD230/Quarterly!BD226)-1)","v":-4.9741645416722102E-3},{"$f":"((Quarterly!BE230/Quarterly!BE226)-1)","v":5.4154679302764741E-4},{"$f":"((Quarterly!BF230/Quarterly!BF226)-1)","v":-6.682228019589953E-4},{"$f":"((Quarterly!BG230/Quarterly!BG226)-1)","v":1.55587802838828E-2},{"$f":"((Quarterly!BH230/Quarterly!BH226)-1)","v":-1.2575760566995053E-2},{"$f":"((Quarterly!BI230/Quarterly!BI226)-1)","v":-1.5964185359813365E-2},{"$f":"((Quarterly!BJ230/Quarterly!BJ226)-1)","v":7.3140338505660596E-2},{"$f":"((Quarterly!BK230/Quarterly!BK226)-1)","v":1.7874999999999996},null,{"$f":"((Quarterly!BM230/Quarterly!BM226)-1)","v":3.3637165202853536E-2},{"$f":"((Quarterly!BN230/Quarterly!BN226)-1)","v":3.206607777905246E-2},null,null,null,null,null,{"$f":"((Quarterly!BT230/Quarterly!BT226)-1)","v":2.4746472676455467E-2},{"$f":"Quarterly!BU230-Quarterly!BU226","v":0.27608999999999995},{"$f":"Quarterly!BV230-Quarterly!BV226","v":0.51402999999999999},{"$f":"((Quarterly!BW230/Quarterly!BW226)-1)","v":-1.6882526229481387E-2},{"$f":"((Quarterly!BX230/Quarterly!BX226)-1)","v":0.11417033773861962},{"$f":"((Quarterly!BY230/Quarterly!BY226)-1)","v":0.11690191820484985},{"$f":"((Quarterly!BZ230/Quarterly!BZ226)-1)","v":0.13714063714063718},{"$f":"((Quarterly!CA230/Quarterly!CA226)-1)","v":4.6442533229084981E-2},{"$f":"((Quarterly!CB230/Quarterly!CB226)-1)","v":-0.15996351348328464},{"$f":"((Quarterly!CC230/Quarterly!CC226)-1)","v":-0.14237324761619807},{"$f":"((Quarterly!CD230/Quarterly!CD226)-1)","v":0.23937360178970901},{"$f":"((Quarterly!CE230/Quarterly!CE226)-1)","v":0.15839860748476942},null,{"$f":"((Quarterly!CG230/Quarterly!CG226)-1)","v":1.5177065767284947E-2},{"$f":"((Quarterly!CH230/Quarterly!CH226)-1)","v":9.5302927161333706E-3},null,{"$f":"((Quarterly!CJ230/Quarterly!CJ226)-1)","v":0.15839860748476942},{"$f":"((Quarterly!CK230/Quarterly!CK226)-1)","v":-5.5086541282310941E-3},{"$f":"((Quarterly!CL230/Quarterly!CL226)-1)","v":-0.49720464284700738},{"$f":"((Quarterly!CM230/Quarterly!CM226)-1)","v":9.0807799442896853E-2},{"$f":"((Quarterly!CN230/Quarterly!CN226)-1)","v":-2.8448473271784125E-2},{"$f":"((Quarterly!CO230/Quarterly!CO226)-1)","v":7.6440393670553552E-2},{"$f":"((Quarterly!CP230/Quarterly!CP226)-1)","v":6.0519210722397521E-2},{"$f":"((Quarterly!CQ230/Quarterly!CQ226)-1)","v":6.9759300799441259E-3},{"$f":"((Quarterly!CR230/Quarterly!CR226)-1)","v":1.0631586262733972E-2},{"$f":"Quarterly!CS230-Quarterly!CS226","v":-2.4666666666666686},{"$f":"Quarterly!CT230-Quarterly!CT226","v":3.5333333333333314},null,null,null,null,null,{"$f":"((Quarterly!CZ230/Quarterly!CZ226)-1)","v":1.2179660802065451E-2},{"$f":"((Quarterly!DA230/Quarterly!DA226)-1)","v":1.711044420015595E-2},null,null,null,null,null,{"$f":"((Quarterly!DG230/Quarterly!DG226)-1)","v":1.9090041361756294E-2},{"$f":"((Quarterly!DH230-Quarterly!DH226)*60)","v":-4.000000000000199},{"$f":"Quarterly!DI230-Quarterly!DI226","v":-0.80000000000001137},{"$f":"(Quarterly!DJ230-Quarterly!DJ226)*100","v":-113.33333333333346},{"$f":"(Quarterly!DK230-Quarterly!DK226)*100","v":-86.666666666666629},{"$f":"((Quarterly!DL230/Quarterly!DL226)-1)","v":9.5341640879820222E-3},null,null,null,{"$f":"((Quarterly!DP230/Quarterly!DP226)-1)","v":1.773126773373912E-2},null,null,null,null,{"$f":"Quarterly!DU230-Quarterly!DU226","v":-1.8666666666666671},{"$f":"((Quarterly!DV230/Quarterly!DV226)-1)","v":5.4095675768168761E-2},{"$f":"((Quarterly!DW230/Quarterly!DW226)-1)","v":4.8076455788950589E-2},{"$f":"((Quarterly!DX230/Quarterly!DX226)-1)","v":4.6591011168667595E-2},{"$f":"((Quarterly!DY230/Quarterly!DY226)-1)","v":6.8949273280863865E-2},{"$f":"((Quarterly!DZ230/Quarterly!DZ226)-1)","v":3.963871409614339E-2},{"$f":"((Quarterly!EA230/Quarterly!EA226)-1)","v":7.6298352160424354E-3},{"$f":"((Quarterly!EB230/Quarterly!EB226)-1)","v":0.11308938692001935},{"$f":"((Quarterly!EC230/Quarterly!EC226)-1)","v":5.1361589166940114E-2},null,null,null,null,null,{"$f":"((Quarterly!EI230/Quarterly!EI226)-1)","v":5.3851251695076652E-2},{"$f":"((Quarterly!EJ230/Quarterly!EJ226)-1)","v":6.1112235997769826E-2},{"$f":"((Quarterly!EK230/Quarterly!EK226)-1)","v":4.78842131569579E-2},null,null,null,null,null,{"$f":"((Quarterly!EQ230/Quarterly!EQ226)-1)","v":-1.8127883981541304E-3},{"$f":"((Quarterly!ER230/Quarterly!ER226)-1)","v":1.3628929674723178E-2},{"$f":"((Quarterly!ES230/Quarterly!ES226)-1)","v":1.0616578195181692E-2},null,null,null,null,null,{"$f":"(Quarterly!EY230-Quarterly!EY226)*100","v":0},{"$f":"(Quarterly!EZ230-Quarterly!EZ226)*100","v":-7.333333333333333},{"$f":"(Quarterly!FA230-Quarterly!FA226)*100","v":105.33333333333333},{"$f":"(Quarterly!FB230-Quarterly!FB226)*100","v":78.333333333333314},"--",{"$f":"(Quarterly!FD230-Quarterly!FD226)*100","v":94.333333333333385},{"$f":"(Quarterly!FE230-Quarterly!FE226)*100","v":-2.333333333333333},{"$f":"(Quarterly!FF230-Quarterly!FF226)*100","v":-5},{"$f":"(Quarterly!FG230-Quarterly!FG226)*100","v":5.6666666666666643},{"$f":"(Quarterly!FH230-Quarterly!FH226)*100","v":74.666666666666686},{"$f":"(Quarterly!FI230-Quarterly!FI226)*100","v":103.99999999999999},null,null,null,null,null,null,{"$f":"((Quarterly!FP230/Quarterly!FP226)-1)","v":5.8776059179556084E-2},{"$f":"((Quarterly!FQ230/Quarterly!FQ226)-1)","v":-2.4528412700955071E-2},{"$f":"((Quarterly!FR230/Quarterly!FR226)-1)","v":6.0422493857303916E-3},{"$f":"((Quarterly!FS230/Quarterly!FS226)-1)","v":4.9190855381453957E-2},{"$f":"((Quarterly!FT230/Quarterly!FT226)-1)","v":2.1922575617097539E-2},{"$f":"((Quarterly!FU230/Quarterly!FU226)-1)","v":3.4164284320010951E-2},{"$f":"((Quarterly!FV230/Quarterly!FV226)-1)","v":3.3579536504686036E-2},{"$f":"((Quarterly!FW230/Quarterly!FW226)-1)","v":4.1859994557747138E-2},{"$f":"((Quarterly!FX230/Quarterly!FX226)-1)","v":3.3913990992299858E-2},null,null,null,null,null,{"$f":"((Quarterly!GD230/Quarterly!GD226)-1)","v":0.1041666666666663},{"$f":"((Quarterly!GE230/Quarterly!GE226)-1)","v":-7.9634227578271322E-3},{"$f":"((Quarterly!GF230/Quarterly!GF226)-1)","v":-5.8539112415817551E-2},{"$f":"((Quarterly!GG230/Quarterly!GG226)-1)","v":-3.7250103691414349E-2},{"$f":"((Quarterly!GH230/Quarterly!GH226)-1)","v":0.40029592533576142},{"$f":"((Quarterly!GI230/Quarterly!GI226)-1)","v":0.30512932924156067},{"$f":"((Quarterly!GJ230/Quarterly!GJ226)-1)","v":8.8428974600188281E-2},{"$f":"((Quarterly!GK230/Quarterly!GK226)-1)","v":3.0266193433895472E-2},{"$f":"((Quarterly!GL230/Quarterly!GL226)-1)","v":9.8134177009815859E-2}]
["14'Q1",{"$f":"((Quarterly!B231/Quarterly!B227)-1)","v":3.3740161112540967E-2},{"$f":"((Quarterly!C231/Quarterly!C227)-1)","v":1.7150406167670607E-2},{"$f":"((Quarterly!D231/Quarterly!D227)-1)","v":1.7693022432521133E-2},{"$f":"((Quarterly!E231/Quarterly!E227)-1)","v":2.0097185061050293E-2},{"$f":"((Quarterly!F231/Quarterly!F227)-1)","v":4.1476075448424687E-2},{"$f":"((Quarterly!G231/Quarterly!G227)-1)","v":1.9344742142557214E-2},{"$f":"((Quarterly!H231/Quarterly!H227)-1)","v":1.6867574364755944E-2},{"$f":"((Quarterly!I231/Quarterly!I227)-1)","v":5.2729354803666473E-2},{"$f":"((Quarterly!J231/Quarterly!J227)-1)","v":3.405699723272404E-2},{"$f":"((Quarterly!K231/Quarterly!K227)-1)","v":2.4571976096220194E-2},{"$f":"((Quarterly!L231-Quarterly!L227))","v":-10.908000000000001},{"$f":"((Quarterly!M231/Quarterly!M227)-1)","v":3.3784398930944981E-2},{"$f":"((Quarterly!N231/Quarterly!N227)-1)","v":4.2504507490721322E-2},{"$f":"((Quarterly!O231/Quarterly!O227)-1)","v":-8.1185638540492988E-3},{"$f":"((Quarterly!P231/Quarterly!P227)-1)","v":-1.8528598813986386E-2},{"$f":"((Quarterly!Q231/Quarterly!Q227)-1)","v":-0.25509575215069791},null,null,null,null,null,{"$f":"((Quarterly!W231/Quarterly!W227)-1)","v":-6.6225165562914245E-3},{"$f":"((Quarterly!X231/Quarterly!X227)-1)","v":9.0595340811043812E-3},{"$f":"((Quarterly!Y231/Quarterly!Y227)-1)","v":8.1170219498164276E-2},{"$f":"Quarterly!Z231-Quarterly!Z227","v":1.41},{"$f":"((Quarterly!AA231/Quarterly!AA227)-1)","v":-1.7283264046261793E-2},{"$f":"((Quarterly!AB231/Quarterly!AB227)-1)","v":-4.3719605049860055E-2},{"$f":"Quarterly!AC231-Quarterly!AC227","v":0},{"$f":"Quarterly!AD231-Quarterly!AD227","v":-1.3000000000000007},{"$f":"(Quarterly!AE231-Quarterly!AE227)*100","v":-69.000000000000043},{"$f":"(Quarterly!AF231-Quarterly!AF227)*100","v":141},{"$f":"(Quarterly!AG231-Quarterly!AG227)*100","v":-108},{"$f":"((Quarterly!AH231/Quarterly!AH227)-1)","v":0.13650947198710206},{"$f":"((Quarterly!AI231/Quarterly!AI227)-1)","v":0.11072699593508539},{"$f":"((Quarterly!AJ231/Quarterly!AJ227)-1)","v":1.8471872376154552E-2},{"$f":"((Quarterly!AK231/Quarterly!AK227)-1)","v":1.6963528413910023E-2},{"$f":"((Quarterly!AL231/Quarterly!AL227)-1)","v":1.7035775127768327E-2},{"$f":"((Quarterly!AM231/Quarterly!AM227)-1)","v":2.1883402940671814E-2},{"$f":"((Quarterly!AN231/Quarterly!AN227)-1)","v":5.4391907696516029E-4},{"$f":"((Quarterly!AO231/Quarterly!AO227)-1)","v":3.8148334114771476E-2},{"$f":"(Quarterly!AP231-Quarterly!AP227)*100","v":1.6666666666666607},{"$f":"Quarterly!AQ231-Quarterly!AQ227","v":0.6666666666666643},{"$f":"Quarterly!AR231-Quarterly!AR227","v":1.3333333333333357},{"$f":"Quarterly!AS231-Quarterly!AS227","v":-3.3333333333333357},{"$f":"Quarterly!AT231-Quarterly!AT227","v":-1.7000000000000028},{"$f":"Quarterly!AU231-Quarterly!AU227","v":1.1666666666666643},{"$f":"Quarterly!AV231-Quarterly!AV227","v":1.1666666666666714},{"$f":"Quarterly!AW231-Quarterly!AW227","v":-1},{"$f":"Quarterly!AX231-Quarterly!AX227","v":-0.56666666666666288},{"$f":"Quarterly!AY231-Quarterly!AY227","v":2.3333333333333357},{"$f":"Quarterly!AZ231-Quarterly!AZ227","v":-1.5},{"$f":"Quarterly!BA231-Quarterly!BA227","v":4.1333333333333329},{"$f":"Quarterly!BB231-Quarterly!BB227","v":-1.36666666666666},{"$f":"((Quarterly!BC231/Quarterly!BC227)-1)","v":4.8732895199512516E-3},{"$f":"((Quarterly!BD231/Quarterly!BD227)-1)","v":-1.8098182640826632E-3},{"$f":"((Quarterly!BE231/Quarterly!BE227)-1)","v":3.6447797016972316E-2},{"$f":"((Quarterly!BF231/Quarterly!BF227)-1)","v":4.0032235695410145E-2},{"$f":"((Quarterly!BG231/Quarterly!BG227)-1)","v":4.679439234412941E-3},{"$f":"((Quarterly!BH231/Quarterly!BH227)-1)","v":2.5214859009872859E-2},{"$f":"((Quarterly!BI231/Quarterly!BI227)-1)","v":3.5190759127511573E-2},{"$f":"((Quarterly!BJ231/Quarterly!BJ227)-1)","v":-3.9688474059874412E-2},{"$f":"((Quarterly!BK231/Quarterly!BK227)-1)","v":1.4842105263157896},null,{"$f":"((Quarterly!BM231/Quarterly!BM227)-1)","v":2.419248400097862E-2},{"$f":"((Quarterly!BN231/Quarterly!BN227)-1)","v":2.3212253007599992E-2},null,null,null,null,null,{"$f":"((Quarterly!BT231/Quarterly!BT227)-1)","v":2.433201920835093E-2},{"$f":"Quarterly!BU231-Quarterly!BU227","v":-0.19596000000000124},{"$f":"Quarterly!BV231-Quarterly!BV227","v":-0.19396000000000058},{"$f":"((Quarterly!BW231/Quarterly!BW227)-1)","v":-1.2300935449589212E-2},{"$f":"((Quarterly!BX231/Quarterly!BX227)-1)","v":-1.1900595029751493E-2},{"$f":"((Quarterly!BY231/Quarterly!BY227)-1)","v":9.8904980572235957E-2},{"$f":"((Quarterly!BZ231/Quarterly!BZ227)-1)","v":0.12662706094386222},{"$f":"((Quarterly!CA231/Quarterly!CA227)-1)","v":2.4887266480566828E-2},{"$f":"((Quarterly!CB231/Quarterly!CB227)-1)","v":-0.14264428504148308},{"$f":"((Quarterly!CC231/Quarterly!CC227)-1)","v":-0.1409303755666419},{"$f":"((Quarterly!CD231/Quarterly!CD227)-1)","v":0.25},{"$f":"((Quarterly!CE231/Quarterly!CE227)-1)","v":-3.7593984962405957E-2},null,{"$f":"((Quarterly!CG231/Quarterly!CG227)-1)","v":2.4999999999999911E-2},{"$f":"((Quarterly!CH231/Quarterly!CH227)-1)","v":-5.0744248985114981E-2},null,{"$f":"((Quarterly!CJ231/Quarterly!CJ227)-1)","v":-3.7593984962405957E-2},{"$f":"((Quarterly!CK231/Quarterly!CK227)-1)","v":4.1833882328121463E-2},{"$f":"((Quarterly!CL231/Quarterly!CL227)-1)","v":0.1409778681120144},{"$f":"((Quarterly!CM231/Quarterly!CM227)-1)","v":-3.5864978902953482E-2},{"$f":"((Quarterly!CN231/Quarterly!CN227)-1)","v":2.471046296782009E-2},{"$f":"((Quarterly!CO231/Quarterly!CO227)-1)","v":7.0302214391067208E-2},{"$f":"((Quarterly!CP231/Quarterly!CP227)-1)","v":6.0680447469307897E-2},{"$f":"((Quarterly!CQ231/Quarterly!CQ227)-1)","v":7.1521724208936099E-3},{"$f":"((Quarterly!CR231/Quarterly!CR227)-1)","v":1.483135857169815E-2},{"$f":"Quarterly!CS231-Quarterly!CS227","v":4.2666666666666799},{"$f":"Quarterly!CT231-Quarterly!CT227","v":17.766666666666659},null,null,null,null,null,{"$f":"((Quarterly!CZ231/Quarterly!CZ227)-1)","v":1.4548799246946631E-2},{"$f":"((Quarterly!DA231/Quarterly!DA227)-1)","v":1.6109866451085031E-2},null,null,null,null,null,{"$f":"((Quarterly!DG231/Quarterly!DG227)-1)","v":1.4533965244865943E-2},{"$f":"((Quarterly!DH231-Quarterly!DH227)*60)","v":-11.999999999999744},{"$f":"Quarterly!DI231-Quarterly!DI227","v":-0.46666666666666856},{"$f":"(Quarterly!DJ231-Quarterly!DJ227)*100","v":-160.00000000000014},{"$f":"(Quarterly!DK231-Quarterly!DK227)*100","v":-106.66666666666664},{"$f":"((Quarterly!DL231/Quarterly!DL227)-1)","v":9.5050165365053729E-3},null,null,null,{"$f":"((Quarterly!DP231/Quarterly!DP227)-1)","v":1.6516992947994247E-2},null,null,null,null,{"$f":"Quarterly!DU231-Quarterly!DU227","v":-1.2333333333333361},{"$f":"((Quarterly!DV231/Quarterly!DV227)-1)","v":5.0376533462893391E-2},{"$f":"((Quarterly!DW231/Quarterly!DW227)-1)","v":7.307542736103545E-2},{"$f":"((Quarterly!DX231/Quarterly!DX227)-1)","v":6.2387282477575967E-2},{"$f":"((Quarterly!DY231/Quarterly!DY227)-1)","v":8.5312058882839326E-2},{"$f":"((Quarterly!DZ231/Quarterly!DZ227)-1)","v":5.5258174077726041E-2},{"$f":"((Quarterly!EA231/Quarterly!EA227)-1)","v":2.3544115660045994E-2},{"$f":"((Quarterly!EB231/Quarterly!EB227)-1)","v":0.12748011290736438},{"$f":"((Quarterly!EC231/Quarterly!EC227)-1)","v":9.7209878538148775E-2},null,null,null,null,null,{"$f":"((Quarterly!EI231/Quarterly!EI227)-1)","v":2.8873718422230077E-2},{"$f":"((Quarterly!EJ231/Quarterly!EJ227)-1)","v":3.6315782932422769E-2},{"$f":"((Quarterly!EK231/Quarterly!EK227)-1)","v":3.0518177581977168E-2},null,null,null,null,null,{"$f":"((Quarterly!EQ231/Quarterly!EQ227)-1)","v":9.3320235756384484E-3},{"$f":"((Quarterly!ER231/Quarterly!ER227)-1)","v":1.8639160332971194E-2},{"$f":"((Quarterly!ES231/Quarterly!ES227)-1)","v":1.4475025484199877E-2},null,null,null,null,null,{"$f":"(Quarterly!EY231-Quarterly!EY227)*100","v":0},{"$f":"(Quarterly!EZ231-Quarterly!EZ227)*100","v":-6.9999999999999991},{"$f":"(Quarterly!FA231-Quarterly!FA227)*100","v":56.333333333333393},{"$f":"(Quarterly!FB231-Quarterly!FB227)*100","v":30.666666666666664},"--",{"$f":"(Quarterly!FD231-Quarterly!FD227)*100","v":85.3333333333333},{"$f":"(Quarterly!FE231-Quarterly!FE227)*100","v":-4},{"$f":"(Quarterly!FF231-Quarterly!FF227)*100","v":-2.9999999999999987},{"$f":"(Quarterly!FG231-Quarterly!FG227)*100","v":10.666666666666668},{"$f":"(Quarterly!FH231-Quarterly!FH227)*100","v":77.666666666666657},{"$f":"(Quarterly!FI231-Quarterly!FI227)*100","v":81.333333333333371},null,null,null,null,null,null,{"$f":"((Quarterly!FP231/Quarterly!FP227)-1)","v":9.3777880580246498E-2},{"$f":"((Quarterly!FQ231/Quarterly!FQ227)-1)","v":-1.9486641098708124E-2},{"$f":"((Quarterly!FR231/Quarterly!FR227)-1)","v":4.7108089648825402E-2},{"$f":"((Quarterly!FS231/Quarterly!FS227)-1)","v":3.8051711948288158E-2},{"$f":"((Quarterly!FT231/Quarterly!FT227)-1)","v":3.1122487661456422E-2},{"$f":"((Quarterly!FU231/Quarterly!FU227)-1)","v":2.6599263347486302E-2},{"$f":"((Quarterly!FV231/Quarterly!FV227)-1)","v":1.9445369854752537E-2},{"$f":"((Quarterly!FW231/Quarterly!FW227)-1)","v":3.3610852561696047E-2},{"$f":"((Quarterly!FX231/Quarterly!FX227)-1)","v":3.9415557771847798E-2},null,null,null,null,null,{"$f":"((Quarterly!GD231/Quarterly!GD227)-1)","v":4.6562566240373027E-2},{"$f":"((Quarterly!GE231/Quarterly!GE227)-1)","v":-3.8461538461538436E-2},{"$f":"((Quarterly!GF231/Quarterly!GF227)-1)","v":-4.2276601897627275E-2},{"$f":"((Quarterly!GG231/Quarterly!GG227)-1)","v":-1.7426373262739769E-2},{"$f":"((Quarterly!GH231/Quarterly!GH227)-1)","v":0.36338661338661327},{"$f":"((Quarterly!GI231/Quarterly!GI227)-1)","v":0.35841470419299259},{"$f":"((Quarterly!GJ231/Quarterly!GJ227)-1)","v":0.36049856184084361},{"$f":"((Quarterly!GK231/Quarterly!GK227)-1)","v":2.6777402238864045E-2},{"$f":"((Quarterly!GL231/Quarterly!GL227)-1)","v":6.9426580245979475E-2}]
["14'Q2",{"$f":"((Quarterly!B232/Quarterly!B228)-1)","v":4.7126087952705342E-2},{"$f":"((Quarterly!C232/Quarterly!C228)-1)","v":2.6689715897739497E-2},{"$f":"((Quarterly!D232/Quarterly!D228)-1)","v":2.5434724995392788E-2},{"$f":"((Quarterly!E232/Quarterly!E228)-1)","v":2.6716880253897513E-2},{"$f":"((Quarterly!F232/Quarterly!F228)-1)","v":6.8715169487192806E-2},{"$f":"((Quarterly!G232/Quarterly!G228)-1)","v":2.453659524016083E-2},{"$f":"((Quarterly!H232/Quarterly!H228)-1)","v":2.0686105191250137E-2},{"$f":"((Quarterly!I232/Quarterly!I228)-1)","v":7.0158094446560515E-2},{"$f":"((Quarterly!J232/Quarterly!J228)-1)","v":5.4449731217983688E-2},{"$f":"((Quarterly!K232/Quarterly!K228)-1)","v":2.7405319279323548E-2},{"$f":"((Quarterly!L232-Quarterly!L228))","v":17.310000000000002},{"$f":"((Quarterly!M232/Quarterly!M228)-1)","v":4.5718870623192798E-2},{"$f":"((Quarterly!N232/Quarterly!N228)-1)","v":5.2758962186449931E-2},{"$f":"((Quarterly!O232/Quarterly!O228)-1)","v":1.2023358038646403E-2},{"$f":"((Quarterly!P232/Quarterly!P228)-1)","v":-1.1012022408521838E-2},{"$f":"((Quarterly!Q232/Quarterly!Q228)-1)","v":0.1433500775053631},null,null,null,null,null,{"$f":"((Quarterly!W232/Quarterly!W228)-1)","v":7.9787234042552058E-3},{"$f":"((Quarterly!X232/Quarterly!X228)-1)","v":2.0716443677168739E-2},{"$f":"((Quarterly!Y232/Quarterly!Y228)-1)","v":9.9737323119655885E-2},{"$f":"Quarterly!Z232-Quarterly!Z228","v":0.27},{"$f":"((Quarterly!AA232/Quarterly!AA228)-1)","v":4.7262970494793111E-2},{"$f":"((Quarterly!AB232/Quarterly!AB228)-1)","v":4.125062025819437E-2},{"$f":"Quarterly!AC232-Quarterly!AC228","v":-1.1999999999999993},{"$f":"Quarterly!AD232-Quarterly!AD228","v":0.79999999999999982},{"$f":"(Quarterly!AE232-Quarterly!AE228)*100","v":-62.000000000000014},{"$f":"(Quarterly!AF232-Quarterly!AF228)*100","v":27},{"$f":"(Quarterly!AG232-Quarterly!AG228)*100","v":-106.00000000000003},{"$f":"((Quarterly!AH232/Quarterly!AH228)-1)","v":0.14904064176140364},{"$f":"((Quarterly!AI232/Quarterly!AI228)-1)","v":9.72301473442998E-2},{"$f":"((Quarterly!AJ232/Quarterly!AJ228)-1)","v":2.4227234753550375E-2},{"$f":"((Quarterly!AK232/Quarterly!AK228)-1)","v":2.0253164556962133E-2},{"$f":"((Quarterly!AL232/Quarterly!AL228)-1)","v":1.8644067796610209E-2},{"$f":"((Quarterly!AM232/Quarterly!AM228)-1)","v":3.3041021501430956E-2},{"$f":"((Quarterly!AN232/Quarterly!AN228)-1)","v":1.3025930477794656E-2},{"$f":"((Quarterly!AO232/Quarterly!AO228)-1)","v":4.8757344330226937E-2},{"$f":"(Quarterly!AP232-Quarterly!AP228)*100","v":1.3333333333333197},{"$f":"Quarterly!AQ232-Quarterly!AQ228","v":4.5333333333333385},{"$f":"Quarterly!AR232-Quarterly!AR228","v":2.8333333333333357},{"$f":"Quarterly!AS232-Quarterly!AS228","v":-0.1666666666666643},{"$f":"Quarterly!AT232-Quarterly!AT228","v":3.7666666666666728},{"$f":"Quarterly!AU232-Quarterly!AU228","v":2.8333333333333357},{"$f":"Quarterly!AV232-Quarterly!AV228","v":1.3333333333333357},{"$f":"Quarterly!AW232-Quarterly!AW228","v":4.3333333333333357},{"$f":"Quarterly!AX232-Quarterly!AX228","v":5.9666666666666686},{"$f":"Quarterly!AY232-Quarterly!AY228","v":7.5},{"$f":"Quarterly!AZ232-Quarterly!AZ228","v":7.0666666666666629},{"$f":"Quarterly!BA232-Quarterly!BA228","v":3.7999999999999972},{"$f":"Quarterly!BB232-Quarterly!BB228","v":4.6666666666666643},{"$f":"((Quarterly!BC232/Quarterly!BC228)-1)","v":-1.3387654369350521E-2},{"$f":"((Quarterly!BD232/Quarterly!BD228)-1)","v":-2.0713963550106351E-3},{"$f":"((Quarterly!BE232/Quarterly!BE228)-1)","v":2.0197307784213248E-2},{"$f":"((Quarterly!BF232/Quarterly!BF228)-1)","v":1.9173550664375094E-2},{"$f":"((Quarterly!BG232/Quarterly!BG228)-1)","v":1.219793307464756E-2},{"$f":"((Quarterly!BH232/Quarterly!BH228)-1)","v":-1.239095460313977E-3},{"$f":"((Quarterly!BI232/Quarterly!BI228)-1)","v":6.8883244824136103E-3},{"$f":"((Quarterly!BJ232/Quarterly!BJ228)-1)","v":4.6180733836249432E-2},{"$f":"((Quarterly!BK232/Quarterly!BK228)-1)","v":0.15428571428571436},null,{"$f":"((Quarterly!BM232/Quarterly!BM228)-1)","v":4.8678833491333506E-2},{"$f":"((Quarterly!BN232/Quarterly!BN228)-1)","v":4.7219350053864462E-2},null,null,null,null,null,{"$f":"((Quarterly!BT232/Quarterly!BT228)-1)","v":2.9645757616928003E-2},{"$f":"Quarterly!BU232-Quarterly!BU228","v":-0.20383999999999958},{"$f":"Quarterly!BV232-Quarterly!BV228","v":-0.21123000000000047},{"$f":"((Quarterly!BW232/Quarterly!BW228)-1)","v":-1.3859448530894158E-2},{"$f":"((Quarterly!BX232/Quarterly!BX228)-1)","v":0.1366435719784449},{"$f":"((Quarterly!BY232/Quarterly!BY228)-1)","v":4.0241448692152959E-2},{"$f":"((Quarterly!BZ232/Quarterly!BZ228)-1)","v":9.2378407268840501E-2},{"$f":"((Quarterly!CA232/Quarterly!CA228)-1)","v":7.4654159764204531E-2},{"$f":"((Quarterly!CB232/Quarterly!CB228)-1)","v":-7.76508212984518E-2},{"$f":"((Quarterly!CC232/Quarterly!CC228)-1)","v":-0.11450470434017768},{"$f":"((Quarterly!CD232/Quarterly!CD228)-1)","v":0.20496894409937894},{"$f":"((Quarterly!CE232/Quarterly!CE228)-1)","v":-5.5803571428571397E-2},null,{"$f":"((Quarterly!CG232/Quarterly!CG228)-1)","v":4.7987616099071095E-2},{"$f":"((Quarterly!CH232/Quarterly!CH228)-1)","v":-4.1830065359477087E-2},null,{"$f":"((Quarterly!CJ232/Quarterly!CJ228)-1)","v":-5.5803571428571397E-2},{"$f":"((Quarterly!CK232/Quarterly!CK228)-1)","v":4.967955958764847E-2},{"$f":"((Quarterly!CL232/Quarterly!CL228)-1)","v":0.15837293091744553},{"$f":"((Quarterly!CM232/Quarterly!CM228)-1)","v":5.5462184873949605E-2},{"$f":"((Quarterly!CN232/Quarterly!CN228)-1)","v":3.190953026668053E-2},{"$f":"((Quarterly!CO232/Quarterly!CO228)-1)","v":7.0401045144999008E-2},{"$f":"((Quarterly!CP232/Quarterly!CP228)-1)","v":6.7259375859602066E-2},{"$f":"((Quarterly!CQ232/Quarterly!CQ228)-1)","v":7.3154632740126679E-3},{"$f":"((Quarterly!CR232/Quarterly!CR228)-1)","v":2.7634306145843501E-2},{"$f":"Quarterly!CS232-Quarterly!CS228","v":1.1666666666666572},{"$f":"Quarterly!CT232-Quarterly!CT228","v":8.2999999999999972},null,null,null,null,null,{"$f":"((Quarterly!CZ232/Quarterly!CZ228)-1)","v":2.0467327984369676E-2},{"$f":"((Quarterly!DA232/Quarterly!DA228)-1)","v":1.8929849299122115E-2},null,null,null,null,null,{"$f":"((Quarterly!DG232/Quarterly!DG228)-1)","v":2.2341095028319824E-2},{"$f":"((Quarterly!DH232-Quarterly!DH228)*60)","v":0},{"$f":"Quarterly!DI232-Quarterly!DI228","v":-0.60000000000000853},{"$f":"(Quarterly!DJ232-Quarterly!DJ228)*100","v":-186.66666666666671},{"$f":"(Quarterly!DK232-Quarterly!DK228)*100","v":-133.3333333333334},{"$f":"((Quarterly!DL232/Quarterly!DL228)-1)","v":1.2551720307683922E-2},null,null,null,{"$f":"((Quarterly!DP232/Quarterly!DP228)-1)","v":1.8226704743057986E-2},null,null,null,null,{"$f":"Quarterly!DU232-Quarterly!DU228","v":-2.4333333333333336},{"$f":"((Quarterly!DV232/Quarterly!DV228)-1)","v":4.7739024615263137E-2},{"$f":"((Quarterly!DW232/Quarterly!DW228)-1)","v":4.8030920892441431E-2},{"$f":"((Quarterly!DX232/Quarterly!DX228)-1)","v":5.3514911355273753E-2},{"$f":"((Quarterly!DY232/Quarterly!DY228)-1)","v":6.9575757575757624E-2},{"$f":"((Quarterly!DZ232/Quarterly!DZ228)-1)","v":4.846315718306049E-2},{"$f":"((Quarterly!EA232/Quarterly!EA228)-1)","v":1.3952387023915991E-2},{"$f":"((Quarterly!EB232/Quarterly!EB228)-1)","v":0.12740337173909988},{"$f":"((Quarterly!EC232/Quarterly!EC228)-1)","v":3.630431333595463E-2},null,null,null,null,null,{"$f":"((Quarterly!EI232/Quarterly!EI228)-1)","v":3.1912973692954427E-2},{"$f":"((Quarterly!EJ232/Quarterly!EJ228)-1)","v":1.4742017202947544E-2},{"$f":"((Quarterly!EK232/Quarterly!EK228)-1)","v":1.2662895430476828E-2},null,null,null,null,null,{"$f":"((Quarterly!EQ232/Quarterly!EQ228)-1)","v":2.0755025330936316E-2},{"$f":"((Quarterly!ER232/Quarterly!ER228)-1)","v":1.8208040382188706E-2},{"$f":"((Quarterly!ES232/Quarterly!ES228)-1)","v":1.3821138211381978E-2},null,null,null,null,null,{"$f":"(Quarterly!EY232-Quarterly!EY228)*100","v":0},{"$f":"(Quarterly!EZ232-Quarterly!EZ228)*100","v":-2.3333333333333317},{"$f":"(Quarterly!FA232-Quarterly!FA228)*100","v":25.333333333333343},{"$f":"(Quarterly!FB232-Quarterly!FB228)*100","v":-1.6666666666666607},"--",{"$f":"(Quarterly!FD232-Quarterly!FD228)*100","v":54.333333333333343},{"$f":"(Quarterly!FE232-Quarterly!FE228)*100","v":-1.6666666666666676},{"$f":"(Quarterly!FF232-Quarterly!FF228)*100","v":-2.333333333333333},{"$f":"(Quarterly!FG232-Quarterly!FG228)*100","v":14.999999999999996},{"$f":"(Quarterly!FH232-Quarterly!FH228)*100","v":73.999999999999986},{"$f":"(Quarterly!FI232-Quarterly!FI228)*100","v":62.666666666666629},null,null,null,null,null,null,{"$f":"((Quarterly!FP232/Quarterly!FP228)-1)","v":6.5771899534156297E-2},{"$f":"((Quarterly!FQ232/Quarterly!FQ228)-1)","v":1.2528504650117345E-2},{"$f":"((Quarterly!FR232/Quarterly!FR228)-1)","v":4.0676292401718772E-2},{"$f":"((Quarterly!FS232/Quarterly!FS228)-1)","v":4.945797729881396E-2},{"$f":"((Quarterly!FT232/Quarterly!FT228)-1)","v":1.5083201021653281E-2},{"$f":"((Quarterly!FU232/Quarterly!FU228)-1)","v":-2.024553484859748E-3},{"$f":"((Quarterly!FV232/Quarterly!FV228)-1)","v":6.5669424238101959E-2},{"$f":"((Quarterly!FW232/Quarterly!FW228)-1)","v":8.1505743807716025E-2},{"$f":"((Quarterly!FX232/Quarterly!FX228)-1)","v":4.7102095407935751E-2},null,null,null,null,null,{"$f":"((Quarterly!GD232/Quarterly!GD228)-1)","v":9.6826688364523905E-2},{"$f":"((Quarterly!GE232/Quarterly!GE228)-1)","v":6.9443993110843927E-2},{"$f":"((Quarterly!GF232/Quarterly!GF228)-1)","v":2.7625596146908293E-2},{"$f":"((Quarterly!GG232/Quarterly!GG228)-1)","v":1.6031926239377992E-2},{"$f":"((Quarterly!GH232/Quarterly!GH228)-1)","v":0.33613445378151252},{"$f":"((Quarterly!GI232/Quarterly!GI228)-1)","v":0.26425099425541299},{"$f":"((Quarterly!GJ232/Quarterly!GJ228)-1)","v":0.14119601328903642},{"$f":"((Quarterly!GK232/Quarterly!GK228)-1)","v":2.4974994826515662E-2},{"$f":"((Quarterly!GL232/Quarterly!GL228)-1)","v":8.0674806613673988E-2}]
["14'Q3",{"$f":"((Quarterly!B233/Quarterly!B229)-1)","v":5.2115935968616078E-2},{"$f":"((Quarterly!C233/Quarterly!C229)-1)","v":3.1850028667627983E-2},{"$f":"((Quarterly!D233/Quarterly!D229)-1)","v":3.3752453265900817E-2},{"$f":"((Quarterly!E233/Quarterly!E229)-1)","v":3.1848017301714382E-2},{"$f":"((Quarterly!F233/Quarterly!F229)-1)","v":7.8009517059836053E-2},{"$f":"((Quarterly!G233/Quarterly!G229)-1)","v":2.5942853857652048E-2},{"$f":"((Quarterly!H233/Quarterly!H229)-1)","v":2.6433006496775491E-2},{"$f":"((Quarterly!I233/Quarterly!I229)-1)","v":9.141363227409216E-2},{"$f":"((Quarterly!J233/Quarterly!J229)-1)","v":9.4247790949495425E-2},{"$f":"((Quarterly!K233/Quarterly!K229)-1)","v":2.3617371208628946E-2},{"$f":"((Quarterly!L233-Quarterly!L229))","v":-23.433999999999997},{"$f":"((Quarterly!M233/Quarterly!M229)-1)","v":3.8702738222407218E-2},{"$f":"((Quarterly!N233/Quarterly!N229)-1)","v":4.6355326830017862E-2},{"$f":"((Quarterly!O233/Quarterly!O229)-1)","v":1.3506433580547927E-3},{"$f":"((Quarterly!P233/Quarterly!P229)-1)","v":-8.5835856456351056E-4},{"$f":"((Quarterly!Q233/Quarterly!Q229)-1)","v":-0.11695842157844982},null,null,null,null,null,{"$f":"((Quarterly!W233/Quarterly!W229)-1)","v":1.6021361815754087E-2},{"$f":"((Quarterly!X233/Quarterly!X229)-1)","v":2.0725388601036343E-2},{"$f":"((Quarterly!Y233/Quarterly!Y229)-1)","v":0.11468189168821596},{"$f":"Quarterly!Z233-Quarterly!Z229","v":-0.12999999999999989},{"$f":"((Quarterly!AA233/Quarterly!AA229)-1)","v":5.9690282575769693E-2},{"$f":"((Quarterly!AB233/Quarterly!AB229)-1)","v":8.747988285465258E-2},{"$f":"Quarterly!AC233-Quarterly!AC229","v":-13.5},{"$f":"Quarterly!AD233-Quarterly!AD229","v":0.69999999999999929},{"$f":"(Quarterly!AE233-Quarterly!AE229)*100","v":-51.000000000000021},{"$f":"(Quarterly!AF233-Quarterly!AF229)*100","v":-12.999999999999989},{"$f":"(Quarterly!AG233-Quarterly!AG229)*100","v":-76},{"$f":"((Quarterly!AH233/Quarterly!AH229)-1)","v":0.1531669807306546},{"$f":"((Quarterly!AI233/Quarterly!AI229)-1)","v":0.10303756645116025},{"$f":"((Quarterly!AJ233/Quarterly!AJ229)-1)","v":2.4106400665004246E-2},{"$f":"((Quarterly!AK233/Quarterly!AK229)-1)","v":2.268907563025202E-2},{"$f":"((Quarterly!AL233/Quarterly!AL229)-1)","v":2.2804054054053946E-2},{"$f":"((Quarterly!AM233/Quarterly!AM229)-1)","v":3.4990310340398123E-2},{"$f":"((Quarterly!AN233/Quarterly!AN229)-1)","v":1.8895453116285044E-2},{"$f":"((Quarterly!AO233/Quarterly!AO229)-1)","v":4.9337046171503252E-2},{"$f":"(Quarterly!AP233-Quarterly!AP229)*100","v":1.3333333333333419},{"$f":"Quarterly!AQ233-Quarterly!AQ229","v":1.5666666666666629},{"$f":"Quarterly!AR233-Quarterly!AR229","v":2.6666666666666643},{"$f":"Quarterly!AS233-Quarterly!AS229","v":1.3333333333333286},{"$f":"Quarterly!AT233-Quarterly!AT229","v":2.6000000000000014},{"$f":"Quarterly!AU233-Quarterly!AU229","v":0.1666666666666714},{"$f":"Quarterly!AV233-Quarterly!AV229","v":-3.1666666666666714},{"$f":"Quarterly!AW233-Quarterly!AW229","v":2.5},{"$f":"Quarterly!AX233-Quarterly!AX229","v":2.7000000000000028},{"$f":"Quarterly!AY233-Quarterly!AY229","v":5.8333333333333357},{"$f":"Quarterly!AZ233-Quarterly!AZ229","v":0.10000000000000142},{"$f":"Quarterly!BA233-Quarterly!BA229","v":1.0666666666666629},{"$f":"Quarterly!BB233-Quarterly!BB229","v":4.2333333333333414},{"$f":"((Quarterly!BC233/Quarterly!BC229)-1)","v":4.2330995298790697E-2},{"$f":"((Quarterly!BD233/Quarterly!BD229)-1)","v":5.6183082836402942E-3},{"$f":"((Quarterly!BE233/Quarterly!BE229)-1)","v":1.6521376292670809E-2},{"$f":"((Quarterly!BF233/Quarterly!BF229)-1)","v":2.4420361974270888E-2},{"$f":"((Quarterly!BG233/Quarterly!BG229)-1)","v":1.9026028065543654E-2},{"$f":"((Quarterly!BH233/Quarterly!BH229)-1)","v":6.6026771401088702E-3},{"$f":"((Quarterly!BI233/Quarterly!BI229)-1)","v":5.2888644836854848E-3},{"$f":"((Quarterly!BJ233/Quarterly!BJ229)-1)","v":9.5131279316452266E-2},{"$f":"((Quarterly!BK233/Quarterly!BK229)-1)","v":-6.3414634146341409E-2},null,{"$f":"((Quarterly!BM233/Quarterly!BM229)-1)","v":4.8383853697069323E-2},{"$f":"((Quarterly!BN233/Quarterly!BN229)-1)","v":4.5446697197065955E-2},null,null,null,null,null,{"$f":"((Quarterly!BT233/Quarterly!BT229)-1)","v":3.8384962826333524E-2},{"$f":"Quarterly!BU233-Quarterly!BU229","v":-0.20955000000000013},{"$f":"Quarterly!BV233-Quarterly!BV229","v":-0.20009999999999906},{"$f":"((Quarterly!BW233/Quarterly!BW229)-1)","v":-1.5300550395099921E-2},{"$f":"((Quarterly!BX233/Quarterly!BX229)-1)","v":0.15817289543223856},{"$f":"((Quarterly!BY233/Quarterly!BY229)-1)","v":7.1913161465400277E-2},{"$f":"((Quarterly!BZ233/Quarterly!BZ229)-1)","v":5.8140255874997493E-2},{"$f":"((Quarterly!CA233/Quarterly!CA229)-1)","v":7.5850193715023551E-2},{"$f":"((Quarterly!CB233/Quarterly!CB229)-1)","v":-0.10313662907667287},{"$f":"((Quarterly!CC233/Quarterly!CC229)-1)","v":-0.12422065386955872},{"$f":"((Quarterly!CD233/Quarterly!CD229)-1)","v":0.1688804554079697},{"$f":"((Quarterly!CE233/Quarterly!CE229)-1)","v":0.14025974025974031},null,{"$f":"((Quarterly!CG233/Quarterly!CG229)-1)","v":5.1359516616314327E-2},{"$f":"((Quarterly!CH233/Quarterly!CH229)-1)","v":-5.0093926111458909E-2},null,{"$f":"((Quarterly!CJ233/Quarterly!CJ229)-1)","v":0.14025974025974031},{"$f":"((Quarterly!CK233/Quarterly!CK229)-1)","v":5.5852945337923954E-2},{"$f":"((Quarterly!CL233/Quarterly!CL229)-1)","v":0.14566631371955818},{"$f":"((Quarterly!CM233/Quarterly!CM229)-1)","v":8.0376940133037644E-2},{"$f":"((Quarterly!CN233/Quarterly!CN229)-1)","v":3.6603562704521586E-2},{"$f":"((Quarterly!CO233/Quarterly!CO229)-1)","v":6.8308808052201631E-2},{"$f":"((Quarterly!CP233/Quarterly!CP229)-1)","v":7.027327551882534E-2},{"$f":"((Quarterly!CQ233/Quarterly!CQ229)-1)","v":7.3795456506777768E-3},{"$f":"((Quarterly!CR233/Quarterly!CR229)-1)","v":3.5364416037741986E-2},{"$f":"Quarterly!CS233-Quarterly!CS229","v":1.4000000000000057},{"$f":"Quarterly!CT233-Quarterly!CT229","v":9.8999999999999915},null,null,null,null,null,{"$f":"((Quarterly!CZ233/Quarterly!CZ229)-1)","v":1.7606780939751987E-2},{"$f":"((Quarterly!DA233/Quarterly!DA229)-1)","v":1.7743851686384371E-2},null,null,null,null,null,{"$f":"((Quarterly!DG233/Quarterly!DG229)-1)","v":2.6043300909946554E-2},{"$f":"((Quarterly!DH233-Quarterly!DH229)*60)","v":6.0000000000000853},{"$f":"Quarterly!DI233-Quarterly!DI229","v":-0.43333333333332291},{"$f":"(Quarterly!DJ233-Quarterly!DJ229)*100","v":-169.99999999999974},{"$f":"(Quarterly!DK233-Quarterly!DK229)*100","v":-116.6666666666666},{"$f":"((Quarterly!DL233/Quarterly!DL229)-1)","v":1.6320186516417312E-2},null,null,null,{"$f":"((Quarterly!DP233/Quarterly!DP229)-1)","v":1.9549679213524129E-2},null,null,null,null,{"$f":"Quarterly!DU233-Quarterly!DU229","v":-3.2000000000000046},{"$f":"((Quarterly!DV233/Quarterly!DV229)-1)","v":4.6856936416184825E-2},{"$f":"((Quarterly!DW233/Quarterly!DW229)-1)","v":3.265025378302755E-2},{"$f":"((Quarterly!DX233/Quarterly!DX229)-1)","v":4.9541316649678313E-2},{"$f":"((Quarterly!DY233/Quarterly!DY229)-1)","v":5.8869082407948747E-2},{"$f":"((Quarterly!DZ233/Quarterly!DZ229)-1)","v":4.6586754292590626E-2},{"$f":"((Quarterly!EA233/Quarterly!EA229)-1)","v":1.6923179871520366E-2},{"$f":"((Quarterly!EB233/Quarterly!EB229)-1)","v":0.1130541797988891},{"$f":"((Quarterly!EC233/Quarterly!EC229)-1)","v":-2.384946393406806E-3},null,null,null,null,null,{"$f":"((Quarterly!EI233/Quarterly!EI229)-1)","v":4.0649243784675493E-2},{"$f":"((Quarterly!EJ233/Quarterly!EJ229)-1)","v":2.1824560697200512E-2},{"$f":"((Quarterly!EK233/Quarterly!EK229)-1)","v":1.8426614689323939E-2},null,null,null,null,null,{"$f":"((Quarterly!EQ233/Quarterly!EQ229)-1)","v":1.4530612244898045E-2},{"$f":"((Quarterly!ER233/Quarterly!ER229)-1)","v":1.9780614997302548E-2},{"$f":"((Quarterly!ES233/Quarterly!ES229)-1)","v":1.4401622718052565E-2},null,null,null,null,null,{"$f":"(Quarterly!EY233-Quarterly!EY229)*100","v":0},{"$f":"(Quarterly!EZ233-Quarterly!EZ229)*100","v":0.66666666666666818},{"$f":"(Quarterly!FA233-Quarterly!FA229)*100","v":-38.999999999999972},{"$f":"(Quarterly!FB233-Quarterly!FB229)*100","v":-66.333333333333229},"--",{"$f":"(Quarterly!FD233-Quarterly!FD229)*100","v":-30.333333333333368},{"$f":"(Quarterly!FE233-Quarterly!FE229)*100","v":-0.66666666666666641},{"$f":"(Quarterly!FF233-Quarterly!FF229)*100","v":-1.3333333333333335},{"$f":"(Quarterly!FG233-Quarterly!FG229)*100","v":14.999999999999991},{"$f":"(Quarterly!FH233-Quarterly!FH229)*100","v":19.333333333333336},{"$f":"(Quarterly!FI233-Quarterly!FI229)*100","v":-21.333333333333382},null,null,null,null,null,null,{"$f":"((Quarterly!FP233/Quarterly!FP229)-1)","v":4.8955089724246337E-2},{"$f":"((Quarterly!FQ233/Quarterly!FQ229)-1)","v":6.2746933400090743E-3},{"$f":"((Quarterly!FR233/Quarterly!FR229)-1)","v":1.6607795748900145E-2},{"$f":"((Quarterly!FS233/Quarterly!FS229)-1)","v":-7.2926620731283975E-4},{"$f":"((Quarterly!FT233/Quarterly!FT229)-1)","v":1.2844955185211226E-2},{"$f":"((Quarterly!FU233/Quarterly!FU229)-1)","v":1.7113327327128225E-2},{"$f":"((Quarterly!FV233/Quarterly!FV229)-1)","v":8.5774603646138869E-2},{"$f":"((Quarterly!FW233/Quarterly!FW229)-1)","v":6.2741043858022261E-2},{"$f":"((Quarterly!FX233/Quarterly!FX229)-1)","v":6.146320804658556E-2},null,null,null,null,null,{"$f":"((Quarterly!GD233/Quarterly!GD229)-1)","v":-7.6181778099707387E-2},{"$f":"((Quarterly!GE233/Quarterly!GE229)-1)","v":-7.7142455767217677E-2},{"$f":"((Quarterly!GF233/Quarterly!GF229)-1)","v":-1.605091572238293E-2},{"$f":"((Quarterly!GG233/Quarterly!GG229)-1)","v":-2.1138944030469564E-2},{"$f":"((Quarterly!GH233/Quarterly!GH229)-1)","v":4.5978045708116033E-2},{"$f":"((Quarterly!GI233/Quarterly!GI229)-1)","v":-7.9584775086505188E-2},{"$f":"((Quarterly!GJ233/Quarterly!GJ229)-1)","v":0.10965323336457344},{"$f":"((Quarterly!GK233/Quarterly!GK229)-1)","v":7.5991151059084938E-3},{"$f":"((Quarterly!GL233/Quarterly!GL229)-1)","v":9.6024666886904697E-3}]
["14'Q4",{"$f":"((Quarterly!B234/Quarterly!B230)-1)","v":4.3297049957035094E-2},{"$f":"((Quarterly!C234/Quarterly!C230)-1)","v":2.699100565736412E-2},{"$f":"((Quarterly!D234/Quarterly!D230)-1)","v":2.9177078644115451E-2},{"$f":"((Quarterly!E234/Quarterly!E230)-1)","v":3.5921292041042108E-2},{"$f":"((Quarterly!F234/Quarterly!F230)-1)","v":8.6528121639533051E-2},{"$f":"((Quarterly!G234/Quarterly!G230)-1)","v":2.8238445318288008E-2},{"$f":"((Quarterly!H234/Quarterly!H230)-1)","v":3.0408861440079038E-2},{"$f":"((Quarterly!I234/Quarterly!I230)-1)","v":6.0754941983112154E-2},{"$f":"((Quarterly!J234/Quarterly!J230)-1)","v":5.3383079646710518E-2},{"$f":"((Quarterly!K234/Quarterly!K230)-1)","v":6.2553198421457568E-2},{"$f":"((Quarterly!L234-Quarterly!L230))","v":-26.688999999999993},{"$f":"((Quarterly!M234/Quarterly!M230)-1)","v":6.1508013236056147E-2},{"$f":"((Quarterly!N234/Quarterly!N230)-1)","v":2.9802959085030611E-2},{"$f":"((Quarterly!O234/Quarterly!O230)-1)","v":0.24141200634658411},{"$f":"((Quarterly!P234/Quarterly!P230)-1)","v":4.7985997285491244E-3},{"$f":"((Quarterly!Q234/Quarterly!Q230)-1)","v":0.13665064191118259},null,null,null,null,null,{"$f":"((Quarterly!W234/Quarterly!W230)-1)","v":1.5957446808510634E-2},{"$f":"((Quarterly!X234/Quarterly!X230)-1)","v":1.6752577319587347E-2},{"$f":"((Quarterly!Y234/Quarterly!Y230)-1)","v":0.12220873847837765},{"$f":"Quarterly!Z234-Quarterly!Z230","v":-0.37999999999999989},{"$f":"((Quarterly!AA234/Quarterly!AA230)-1)","v":4.1328389399515331E-2},{"$f":"((Quarterly!AB234/Quarterly!AB230)-1)","v":9.22920879771576E-2},{"$f":"Quarterly!AC234-Quarterly!AC230","v":-1.9},{"$f":"Quarterly!AD234-Quarterly!AD230","v":5.5},{"$f":"(Quarterly!AE234-Quarterly!AE230)*100","v":-42.999999999999972},{"$f":"(Quarterly!AF234-Quarterly!AF230)*100","v":-37.999999999999986},{"$f":"(Quarterly!AG234-Quarterly!AG230)*100","v":-64.000000000000014},{"$f":"((Quarterly!AH234/Quarterly!AH230)-1)","v":0.14045380542395747},{"$f":"((Quarterly!AI234/Quarterly!AI230)-1)","v":9.428905603515414E-2},{"$f":"((Quarterly!AJ234/Quarterly!AJ230)-1)","v":2.4834437086092676E-2},{"$f":"((Quarterly!AK234/Quarterly!AK230)-1)","v":2.2575250836120331E-2},{"$f":"((Quarterly!AL234/Quarterly!AL230)-1)","v":2.1830394626364491E-2},{"$f":"((Quarterly!AM234/Quarterly!AM230)-1)","v":3.3736375950007114E-2},{"$f":"((Quarterly!AN234/Quarterly!AN230)-1)","v":1.7567086302368695E-2},{"$f":"((Quarterly!AO234/Quarterly!AO230)-1)","v":3.8065884253840832E-2},{"$f":"(Quarterly!AP234-Quarterly!AP230)*100","v":3.6666666666666847},{"$f":"Quarterly!AQ234-Quarterly!AQ230","v":0.79999999999999005},{"$f":"Quarterly!AR234-Quarterly!AR230","v":1.1666666666666643},{"$f":"Quarterly!AS234-Quarterly!AS230","v":1},{"$f":"Quarterly!AT234-Quarterly!AT230","v":0.30000000000000426},{"$f":"Quarterly!AU234-Quarterly!AU230","v":-4.3333333333333286},{"$f":"Quarterly!AV234-Quarterly!AV230","v":0},{"$f":"Quarterly!AW234-Quarterly!AW230","v":-0.1666666666666643},{"$f":"Quarterly!AX234-Quarterly!AX230","v":0.3333333333333357},{"$f":"Quarterly!AY234-Quarterly!AY230","v":-8.3333333333333357},{"$f":"Quarterly!AZ234-Quarterly!AZ230","v":0.53333333333331723},{"$f":"Quarterly!BA234-Quarterly!BA230","v":3.3333333333333215},{"$f":"Quarterly!BB234-Quarterly!BB230","v":4.5333333333333314},{"$f":"((Quarterly!BC234/Quarterly!BC230)-1)","v":-2.0574318403725367E-2},{"$f":"((Quarterly!BD234/Quarterly!BD230)-1)","v":2.5543107154599731E-3},{"$f":"((Quarterly!BE234/Quarterly!BE230)-1)","v":3.4775548865058514E-2},{"$f":"((Quarterly!BF234/Quarterly!BF230)-1)","v":3.106107793207058E-2},{"$f":"((Quarterly!BG234/Quarterly!BG230)-1)","v":3.4161020477687654E-3},{"$f":"((Quarterly!BH234/Quarterly!BH230)-1)","v":1.8714011516314688E-2},{"$f":"((Quarterly!BI234/Quarterly!BI230)-1)","v":2.7538742994317911E-2},{"$f":"((Quarterly!BJ234/Quarterly!BJ230)-1)","v":7.197186358775598E-2},{"$f":"((Quarterly!BK234/Quarterly!BK230)-1)","v":-0.17040358744394613},null,{"$f":"((Quarterly!BM234/Quarterly!BM230)-1)","v":4.5970226258594593E-2},{"$f":"((Quarterly!BN234/Quarterly!BN230)-1)","v":4.2186978965199851E-2},null,null,null,null,null,{"$f":"((Quarterly!BT234/Quarterly!BT230)-1)","v":4.5045167180902457E-2},{"$f":"Quarterly!BU234-Quarterly!BU230","v":-0.28078000000000003},{"$f":"Quarterly!BV234-Quarterly!BV230","v":-0.28393999999999942},{"$f":"((Quarterly!BW234/Quarterly!BW230)-1)","v":-1.7081944829553497E-2},{"$f":"((Quarterly!BX234/Quarterly!BX230)-1)","v":4.4151565074135091E-2},{"$f":"((Quarterly!BY234/Quarterly!BY230)-1)","v":5.832793259883351E-2},{"$f":"((Quarterly!BZ234/Quarterly!BZ230)-1)","v":4.4233204043489627E-2},{"$f":"((Quarterly!CA234/Quarterly!CA230)-1)","v":6.2313209802749681E-2},{"$f":"((Quarterly!CB234/Quarterly!CB230)-1)","v":-0.15481884225996267},{"$f":"((Quarterly!CC234/Quarterly!CC230)-1)","v":-0.16342686988231714},{"$f":"((Quarterly!CD234/Quarterly!CD230)-1)","v":0.13898916967509045},{"$f":"((Quarterly!CE234/Quarterly!CE230)-1)","v":6.0856498873027798E-2},null,{"$f":"((Quarterly!CG234/Quarterly!CG230)-1)","v":2.6578073089700949E-2},{"$f":"((Quarterly!CH234/Quarterly!CH230)-1)","v":2.3600809170600145E-2},null,{"$f":"((Quarterly!CJ234/Quarterly!CJ230)-1)","v":6.0856498873027798E-2},{"$f":"((Quarterly!CK234/Quarterly!CK230)-1)","v":6.3967317507140686E-2},{"$f":"((Quarterly!CL234/Quarterly!CL230)-1)","v":0.32878026753965162},{"$f":"((Quarterly!CM234/Quarterly!CM230)-1)","v":7.1501532175689553E-2},{"$f":"((Quarterly!CN234/Quarterly!CN230)-1)","v":4.9408017844259522E-2},{"$f":"((Quarterly!CO234/Quarterly!CO230)-1)","v":6.1390581145394085E-2},{"$f":"((Quarterly!CP234/Quarterly!CP230)-1)","v":6.911026958305877E-2},{"$f":"((Quarterly!CQ234/Quarterly!CQ230)-1)","v":7.3886736411825638E-3},{"$f":"((Quarterly!CR234/Quarterly!CR230)-1)","v":3.7185580106607885E-2},{"$f":"Quarterly!CS234-Quarterly!CS230","v":12.833333333333314},{"$f":"Quarterly!CT234-Quarterly!CT230","v":18.766666666666666},null,null,null,null,null,{"$f":"((Quarterly!CZ234/Quarterly!CZ230)-1)","v":1.1887918788662022E-2},{"$f":"((Quarterly!DA234/Quarterly!DA230)-1)","v":1.7165400060910274E-2},null,null,null,null,null,{"$f":"((Quarterly!DG234/Quarterly!DG230)-1)","v":2.7474242897284062E-2},{"$f":"((Quarterly!DH234-Quarterly!DH230)*60)","v":9.9999999999998579},{"$f":"Quarterly!DI234-Quarterly!DI230","v":-6.6666666666662877E-2},{"$f":"(Quarterly!DJ234-Quarterly!DJ230)*100","v":-190.00000000000003},{"$f":"(Quarterly!DK234-Quarterly!DK230)*100","v":-123.33333333333334},{"$f":"((Quarterly!DL234/Quarterly!DL230)-1)","v":1.6706707535967702E-2},null,null,null,{"$f":"((Quarterly!DP234/Quarterly!DP230)-1)","v":2.0700876703013904E-2},null,null,null,null,{"$f":"Quarterly!DU234-Quarterly!DU230","v":-3.7666666666666675},{"$f":"((Quarterly!DV234/Quarterly!DV230)-1)","v":-3.4785028523776074E-4},{"$f":"((Quarterly!DW234/Quarterly!DW230)-1)","v":5.0185207312696267E-3},{"$f":"((Quarterly!DX234/Quarterly!DX230)-1)","v":1.3316583568065976E-3},{"$f":"((Quarterly!DY234/Quarterly!DY230)-1)","v":-8.7493013457154989E-3},{"$f":"((Quarterly!DZ234/Quarterly!DZ230)-1)","v":4.5600527030922322E-3},{"$f":"((Quarterly!EA234/Quarterly!EA230)-1)","v":6.8961661991295831E-3},{"$f":"((Quarterly!EB234/Quarterly!EB230)-1)","v":-2.5141606400735927E-4},{"$f":"((Quarterly!EC234/Quarterly!EC230)-1)","v":1.3032993843796969E-2},null,null,null,null,null,{"$f":"((Quarterly!EI234/Quarterly!EI230)-1)","v":3.0573342653072322E-2},{"$f":"((Quarterly!EJ234/Quarterly!EJ230)-1)","v":1.0702640348414283E-2},{"$f":"((Quarterly!EK234/Quarterly!EK230)-1)","v":1.1134056947912807E-2},null,null,null,null,null,{"$f":"((Quarterly!EQ234/Quarterly!EQ230)-1)","v":-7.2643222717518885E-3},{"$f":"((Quarterly!ER234/Quarterly!ER230)-1)","v":1.9899605593402647E-2},{"$f":"((Quarterly!ES234/Quarterly!ES230)-1)","v":1.1717171717171793E-2},null,null,null,null,null,{"$f":"(Quarterly!EY234-Quarterly!EY230)*100","v":0},{"$f":"(Quarterly!EZ234-Quarterly!EZ230)*100","v":1.3333333333333321},{"$f":"(Quarterly!FA234-Quarterly!FA230)*100","v":-71.666666666666728},{"$f":"(Quarterly!FB234-Quarterly!FB230)*100","v":-61.666666666666629},"--",{"$f":"(Quarterly!FD234-Quarterly!FD230)*100","v":-33.666666666666735},{"$f":"(Quarterly!FE234-Quarterly!FE230)*100","v":-4.0000000000000009},{"$f":"(Quarterly!FF234-Quarterly!FF230)*100","v":2.333333333333333},{"$f":"(Quarterly!FG234-Quarterly!FG230)*100","v":21.333333333333336},{"$f":"(Quarterly!FH234-Quarterly!FH230)*100","v":16.333333333333311},{"$f":"(Quarterly!FI234-Quarterly!FI230)*100","v":-46.666666666666679},null,null,null,null,null,null,{"$f":"((Quarterly!FP234/Quarterly!FP230)-1)","v":8.1967733739837456E-2},{"$f":"((Quarterly!FQ234/Quarterly!FQ230)-1)","v":9.2337670156925622E-3},{"$f":"((Quarterly!FR234/Quarterly!FR230)-1)","v":6.5374335657890636E-2},{"$f":"((Quarterly!FS234/Quarterly!FS230)-1)","v":-8.240910760190967E-2},{"$f":"((Quarterly!FT234/Quarterly!FT230)-1)","v":6.5218763354261799E-2},{"$f":"((Quarterly!FU234/Quarterly!FU230)-1)","v":8.9563402392064839E-2},{"$f":"((Quarterly!FV234/Quarterly!FV230)-1)","v":3.1113412986147004E-2},{"$f":"((Quarterly!FW234/Quarterly!FW230)-1)","v":7.3304424986187389E-2},{"$f":"((Quarterly!FX234/Quarterly!FX230)-1)","v":6.7549318970326455E-2},null,null,null,null,null,{"$f":"((Quarterly!GD234/Quarterly!GD230)-1)","v":-0.24843338013217808},{"$f":"((Quarterly!GE234/Quarterly!GE230)-1)","v":-0.30039984128437558},{"$f":"((Quarterly!GF234/Quarterly!GF230)-1)","v":-0.11919256013166513},{"$f":"((Quarterly!GG234/Quarterly!GG230)-1)","v":-7.4698753656529782E-2},{"$f":"((Quarterly!GH234/Quarterly!GH230)-1)","v":-0.14516784524099813},{"$f":"((Quarterly!GI234/Quarterly!GI230)-1)","v":-0.16560295599596908},{"$f":"((Quarterly!GJ234/Quarterly!GJ230)-1)","v":-2.5929127052721768E-3},{"$f":"((Quarterly!GK234/Quarterly!GK230)-1)","v":-8.741635159459471E-3},{"$f":"((Quarterly!GL234/Quarterly!GL230)-1)","v":1.2595388831841969E-3}]
["15'Q1",{"$f":"((Quarterly!B235/Quarterly!B231)-1)","v":4.9519990342500764E-2},{"$f":"((Quarterly!C235/Quarterly!C231)-1)","v":3.7594629121114442E-2},{"$f":"((Quarterly!D235/Quarterly!D231)-1)","v":3.1506015662795539E-2},{"$f":"((Quarterly!E235/Quarterly!E231)-1)","v":4.0317236100696707E-2},{"$f":"((Quarterly!F235/Quarterly!F231)-1)","v":9.2232530596131346E-2},{"$f":"((Quarterly!G235/Quarterly!G231)-1)","v":3.2126915531800027E-2},{"$f":"((Quarterly!H235/Quarterly!H231)-1)","v":3.4729625365419237E-2},{"$f":"((Quarterly!I235/Quarterly!I231)-1)","v":4.8350999170671205E-2},{"$f":"((Quarterly!J235/Quarterly!J231)-1)","v":5.3209178784975109E-2},{"$f":"((Quarterly!K235/Quarterly!K231)-1)","v":9.9415096738733721E-2},{"$f":"((Quarterly!L235-Quarterly!L231))","v":93.496000000000009},{"$f":"((Quarterly!M235/Quarterly!M231)-1)","v":6.5854444161612902E-2},{"$f":"((Quarterly!N235/Quarterly!N231)-1)","v":2.4384298392590376E-2},{"$f":"((Quarterly!O235/Quarterly!O231)-1)","v":0.27530261925327593},{"$f":"((Quarterly!P235/Quarterly!P231)-1)","v":1.0089484263764881E-2},{"$f":"((Quarterly!Q235/Quarterly!Q231)-1)","v":-6.0694219808016259E-2},null,null,null,null,null,{"$f":"((Quarterly!W235/Quarterly!W231)-1)","v":1.3333333333333419E-2},{"$f":"((Quarterly!X235/Quarterly!X231)-1)","v":-1.7101325352715246E-3},{"$f":"((Quarterly!Y235/Quarterly!Y231)-1)","v":0.12165330674825192},{"$f":"Quarterly!Z235-Quarterly!Z231","v":-0.59999999999999987},{"$f":"((Quarterly!AA235/Quarterly!AA231)-1)","v":1.7513309933782084E-2},{"$f":"((Quarterly!AB235/Quarterly!AB231)-1)","v":0.11772351590951491},{"$f":"Quarterly!AC235-Quarterly!AC231","v":-9.6999999999999993},{"$f":"Quarterly!AD235-Quarterly!AD231","v":-8.3999999999999986},{"$f":"(Quarterly!AE235-Quarterly!AE231)*100","v":-62.999999999999986},{"$f":"(Quarterly!AF235-Quarterly!AF231)*100","v":-59.999999999999986},{"$f":"(Quarterly!AG235-Quarterly!AG231)*100","v":-55.000000000000007},{"$f":"((Quarterly!AH235/Quarterly!AH231)-1)","v":0.13976054020314366},{"$f":"((Quarterly!AI235/Quarterly!AI231)-1)","v":0.11304911331023937},{"$f":"((Quarterly!AJ235/Quarterly!AJ231)-1)","v":2.638087386644683E-2},{"$f":"((Quarterly!AK235/Quarterly!AK231)-1)","v":2.7522935779816571E-2},{"$f":"((Quarterly!AL235/Quarterly!AL231)-1)","v":2.6800670016750239E-2},{"$f":"((Quarterly!AM235/Quarterly!AM231)-1)","v":1.7154021315350931E-2},{"$f":"((Quarterly!AN235/Quarterly!AN231)-1)","v":1.3090424885636498E-2},{"$f":"((Quarterly!AO235/Quarterly!AO231)-1)","v":2.7357703037946379E-2},{"$f":"(Quarterly!AP235-Quarterly!AP231)*100","v":7.333333333333325},{"$f":"Quarterly!AQ235-Quarterly!AQ231","v":-0.8333333333333357},{"$f":"Quarterly!AR235-Quarterly!AR231","v":-3.5},{"$f":"Quarterly!AS235-Quarterly!AS231","v":0.6666666666666714},{"$f":"Quarterly!AT235-Quarterly!AT231","v":-6.6666666666662877E-2},{"$f":"Quarterly!AU235-Quarterly!AU231","v":-6},{"$f":"Quarterly!AV235-Quarterly!AV231","v":0.1666666666666643},{"$f":"Quarterly!AW235-Quarterly!AW231","v":2},{"$f":"Quarterly!AX235-Quarterly!AX231","v":-1.2000000000000028},{"$f":"Quarterly!AY235-Quarterly!AY231","v":-23.5},{"$f":"Quarterly!AZ235-Quarterly!AZ231","v":1.6999999999999957},{"$f":"Quarterly!BA235-Quarterly!BA231","v":-3.0333333333333385},{"$f":"Quarterly!BB235-Quarterly!BB231","v":4.2666666666666657},{"$f":"((Quarterly!BC235/Quarterly!BC231)-1)","v":-3.338081133163473E-2},{"$f":"((Quarterly!BD235/Quarterly!BD231)-1)","v":-6.3962126362973049E-3},{"$f":"((Quarterly!BE235/Quarterly!BE231)-1)","v":1.6651228441621591E-2},{"$f":"((Quarterly!BF235/Quarterly!BF231)-1)","v":2.2561404141062669E-2},{"$f":"((Quarterly!BG235/Quarterly!BG231)-1)","v":1.884055204535473E-2},{"$f":"((Quarterly!BH235/Quarterly!BH231)-1)","v":2.3446624042439579E-2},{"$f":"((Quarterly!BI235/Quarterly!BI231)-1)","v":3.6439501930538576E-3},{"$f":"((Quarterly!BJ235/Quarterly!BJ231)-1)","v":5.942473251354663E-4},{"$f":"((Quarterly!BK235/Quarterly!BK231)-1)","v":-0.25423728813559321},null,{"$f":"((Quarterly!BM235/Quarterly!BM231)-1)","v":3.117149666401331E-2},{"$f":"((Quarterly!BN235/Quarterly!BN231)-1)","v":2.3998426101309978E-2},null,null,null,null,null,{"$f":"((Quarterly!BT235/Quarterly!BT231)-1)","v":4.7306496818622312E-2},{"$f":"Quarterly!BU235-Quarterly!BU231","v":-0.14692999999999934},{"$f":"Quarterly!BV235-Quarterly!BV231","v":-7.9530000000000101E-2},{"$f":"((Quarterly!BW235/Quarterly!BW231)-1)","v":-1.1123195822591248E-2},{"$f":"((Quarterly!BX235/Quarterly!BX231)-1)","v":4.9238398866454203E-2},{"$f":"((Quarterly!BY235/Quarterly!BY231)-1)","v":5.271616843458693E-2},{"$f":"((Quarterly!BZ235/Quarterly!BZ231)-1)","v":4.5878263617332271E-2},{"$f":"((Quarterly!CA235/Quarterly!CA231)-1)","v":5.9251189004588367E-2},{"$f":"((Quarterly!CB235/Quarterly!CB231)-1)","v":-0.32994918319765143},{"$f":"((Quarterly!CC235/Quarterly!CC231)-1)","v":-0.27158276720306762},{"$f":"((Quarterly!CD235/Quarterly!CD231)-1)","v":8.0701754385964941E-2},{"$f":"((Quarterly!CE235/Quarterly!CE231)-1)","v":0.21328124999999987},null,{"$f":"((Quarterly!CG235/Quarterly!CG231)-1)","v":5.2264808362370019E-3},{"$f":"((Quarterly!CH235/Quarterly!CH231)-1)","v":7.982893799002122E-2},null,{"$f":"((Quarterly!CJ235/Quarterly!CJ231)-1)","v":0.21328124999999987},{"$f":"((Quarterly!CK235/Quarterly!CK231)-1)","v":5.6273241044143996E-2},{"$f":"((Quarterly!CL235/Quarterly!CL231)-1)","v":0.20193972982334607},{"$f":"((Quarterly!CM235/Quarterly!CM231)-1)","v":4.9781181619255932E-2},{"$f":"((Quarterly!CN235/Quarterly!CN231)-1)","v":4.9250169931145837E-2},{"$f":"((Quarterly!CO235/Quarterly!CO231)-1)","v":6.8172359257512305E-2},{"$f":"((Quarterly!CP235/Quarterly!CP231)-1)","v":6.9941152283753638E-2},{"$f":"((Quarterly!CQ235/Quarterly!CQ231)-1)","v":7.3236607189666181E-3},{"$f":"((Quarterly!CR235/Quarterly!CR231)-1)","v":3.5963946371444067E-2},{"$f":"Quarterly!CS235-Quarterly!CS231","v":14.566666666666663},{"$f":"Quarterly!CT235-Quarterly!CT231","v":20.799999999999997},null,null,null,null,null,{"$f":"((Quarterly!CZ235/Quarterly!CZ231)-1)","v":-9.1084599772295327E-4},{"$f":"((Quarterly!DA235/Quarterly!DA231)-1)","v":1.6988627226380615E-2},null,null,null,null,null,{"$f":"((Quarterly!DG235/Quarterly!DG231)-1)","v":2.8340080971659853E-2},{"$f":"((Quarterly!DH235-Quarterly!DH231)*60)","v":9.9999999999998579},{"$f":"Quarterly!DI235-Quarterly!DI231","v":-0.19999999999999574},{"$f":"(Quarterly!DJ235-Quarterly!DJ231)*100","v":-156.66666666666646},{"$f":"(Quarterly!DK235-Quarterly!DK231)*100","v":-113.33333333333329},{"$f":"((Quarterly!DL235/Quarterly!DL231)-1)","v":1.6545990143985945E-2},null,null,null,{"$f":"((Quarterly!DP235/Quarterly!DP231)-1)","v":2.2053592601375405E-2},null,null,null,null,{"$f":"Quarterly!DU235-Quarterly!DU231","v":-3.0333333333333332},{"$f":"((Quarterly!DV235/Quarterly!DV231)-1)","v":3.775548553091701E-3},{"$f":"((Quarterly!DW235/Quarterly!DW231)-1)","v":-1.6421883764908385E-2},{"$f":"((Quarterly!DX235/Quarterly!DX231)-1)","v":-1.0865593785307603E-2},{"$f":"((Quarterly!DY235/Quarterly!DY231)-1)","v":-2.4537526273617272E-2},{"$f":"((Quarterly!DZ235/Quarterly!DZ231)-1)","v":-6.4890279806885109E-3},{"$f":"((Quarterly!EA235/Quarterly!EA231)-1)","v":-1.0263687667073862E-2},{"$f":"((Quarterly!EB235/Quarterly!EB231)-1)","v":1.3678396099949808E-3},{"$f":"((Quarterly!EC235/Quarterly!EC231)-1)","v":-2.8583350719799672E-2},null,null,null,null,null,{"$f":"((Quarterly!EI235/Quarterly!EI231)-1)","v":4.795459539168867E-2},{"$f":"((Quarterly!EJ235/Quarterly!EJ231)-1)","v":2.5476490631459514E-2},{"$f":"((Quarterly!EK235/Quarterly!EK231)-1)","v":2.3824646313233666E-2},null,null,null,null,null,{"$f":"((Quarterly!EQ235/Quarterly!EQ231)-1)","v":-6.7964314679643145E-2},{"$f":"((Quarterly!ER235/Quarterly!ER231)-1)","v":1.9008704920945307E-2},{"$f":"((Quarterly!ES235/Quarterly!ES231)-1)","v":1.3062700964630247E-2},null,null,null,null,null,{"$f":"(Quarterly!EY235-Quarterly!EY231)*100","v":0},{"$f":"(Quarterly!EZ235-Quarterly!EZ231)*100","v":3.6666666666666652},{"$f":"(Quarterly!FA235-Quarterly!FA231)*100","v":-87.000000000000014},{"$f":"(Quarterly!FB235-Quarterly!FB231)*100","v":-61.666666666666629},"--",{"$f":"(Quarterly!FD235-Quarterly!FD231)*100","v":-62.66666666666665},{"$f":"(Quarterly!FE235-Quarterly!FE231)*100","v":-2},{"$f":"(Quarterly!FF235-Quarterly!FF231)*100","v":10.000000000000002},{"$f":"(Quarterly!FG235-Quarterly!FG231)*100","v":23.000000000000004},{"$f":"(Quarterly!FH235-Quarterly!FH231)*100","v":-15.000000000000014},{"$f":"(Quarterly!FI235-Quarterly!FI231)*100","v":-79.666666666666686},null,null,null,null,null,null,{"$f":"((Quarterly!FP235/Quarterly!FP231)-1)","v":0.12501132896287137},{"$f":"((Quarterly!FQ235/Quarterly!FQ231)-1)","v":2.2020824456171484E-2},{"$f":"((Quarterly!FR235/Quarterly!FR231)-1)","v":0.12954666223427691},{"$f":"((Quarterly!FS235/Quarterly!FS231)-1)","v":-0.17822480601298918},{"$f":"((Quarterly!FT235/Quarterly!FT231)-1)","v":0.11172024606964914},{"$f":"((Quarterly!FU235/Quarterly!FU231)-1)","v":0.16329695203652861},{"$f":"((Quarterly!FV235/Quarterly!FV231)-1)","v":-0.10700684953563178},{"$f":"((Quarterly!FW235/Quarterly!FW231)-1)","v":0.10733891550620145},{"$f":"((Quarterly!FX235/Quarterly!FX231)-1)","v":1.7379265037033464E-2},null,null,null,null,null,{"$f":"((Quarterly!GD235/Quarterly!GD231)-1)","v":-0.5084391034296516},{"$f":"((Quarterly!GE235/Quarterly!GE231)-1)","v":-0.50154083204930666},{"$f":"((Quarterly!GF235/Quarterly!GF231)-1)","v":-0.32371873217632208},{"$f":"((Quarterly!GG235/Quarterly!GG231)-1)","v":-0.2631352953310292},{"$f":"((Quarterly!GH235/Quarterly!GH231)-1)","v":-7.8952189045612742E-2},{"$f":"((Quarterly!GI235/Quarterly!GI231)-1)","v":2.1987315010570718E-2},{"$f":"((Quarterly!GJ235/Quarterly!GJ231)-1)","v":-0.40591966173361516},{"$f":"((Quarterly!GK235/Quarterly!GK231)-1)","v":6.9009718798013431E-2},{"$f":"((Quarterly!GL235/Quarterly!GL231)-1)","v":4.6328358678264125E-2}]
["15'Q2",{"$f":"((Quarterly!B236/Quarterly!B232)-1)","v":4.458787151098953E-2},{"$f":"((Quarterly!C236/Quarterly!C232)-1)","v":3.2948654995897497E-2},{"$f":"((Quarterly!D236/Quarterly!D232)-1)","v":3.0676354405721806E-2},{"$f":"((Quarterly!E236/Quarterly!E232)-1)","v":3.9135840174238767E-2},{"$f":"((Quarterly!F236/Quarterly!F232)-1)","v":8.0945318853752779E-2},{"$f":"((Quarterly!G236/Quarterly!G232)-1)","v":3.0991123216528749E-2},{"$f":"((Quarterly!H236/Quarterly!H232)-1)","v":3.5099378325768482E-2},{"$f":"((Quarterly!I236/Quarterly!I232)-1)","v":3.24284896402951E-2},{"$f":"((Quarterly!J236/Quarterly!J232)-1)","v":3.7885249562837675E-2},{"$f":"((Quarterly!K236/Quarterly!K232)-1)","v":9.576583239885772E-2},{"$f":"((Quarterly!L236-Quarterly!L232))","v":35.661999999999992},{"$f":"((Quarterly!M236/Quarterly!M232)-1)","v":4.8679297414953471E-2},{"$f":"((Quarterly!N236/Quarterly!N232)-1)","v":1.130124300005364E-2},{"$f":"((Quarterly!O236/Quarterly!O232)-1)","v":0.23478036418246706},{"$f":"((Quarterly!P236/Quarterly!P232)-1)","v":1.5951427115979744E-2},{"$f":"((Quarterly!Q236/Quarterly!Q232)-1)","v":-2.6504019504480669E-2},null,null,null,null,null,{"$f":"((Quarterly!W236/Quarterly!W232)-1)","v":1.3192612137205018E-3},{"$f":"((Quarterly!X236/Quarterly!X232)-1)","v":-2.5792811839323471E-2},{"$f":"((Quarterly!Y236/Quarterly!Y232)-1)","v":0.11984621180757316},{"$f":"Quarterly!Z236-Quarterly!Z232","v":-0.94},{"$f":"((Quarterly!AA236/Quarterly!AA232)-1)","v":4.3996114060500524E-3},{"$f":"((Quarterly!AB236/Quarterly!AB232)-1)","v":2.2444022489642945E-2},{"$f":"Quarterly!AC236-Quarterly!AC232","v":-6.7},{"$f":"Quarterly!AD236-Quarterly!AD232","v":-4.4000000000000004},{"$f":"(Quarterly!AE236-Quarterly!AE232)*100","v":-73},{"$f":"(Quarterly!AF236-Quarterly!AF232)*100","v":-94},{"$f":"(Quarterly!AG236-Quarterly!AG232)*100","v":-52.999999999999979},{"$f":"((Quarterly!AH236/Quarterly!AH232)-1)","v":0.13459444746869886},{"$f":"((Quarterly!AI236/Quarterly!AI232)-1)","v":0.11633941602050535},{"$f":"((Quarterly!AJ236/Quarterly!AJ232)-1)","v":1.3050570962479746E-2},{"$f":"((Quarterly!AK236/Quarterly!AK232)-1)","v":1.9023986765922318E-2},{"$f":"((Quarterly!AL236/Quarterly!AL232)-1)","v":2.1630615640598982E-2},{"$f":"((Quarterly!AM236/Quarterly!AM232)-1)","v":-7.5825229663869509E-3},{"$f":"((Quarterly!AN236/Quarterly!AN232)-1)","v":9.6964945121014168E-4},{"$f":"((Quarterly!AO236/Quarterly!AO232)-1)","v":2.5357946595761405E-2},{"$f":"(Quarterly!AP236-Quarterly!AP232)*100","v":7.333333333333325},{"$f":"Quarterly!AQ236-Quarterly!AQ232","v":-2.8999999999999986},{"$f":"Quarterly!AR236-Quarterly!AR232","v":-2},{"$f":"Quarterly!AS236-Quarterly!AS232","v":1},{"$f":"Quarterly!AT236-Quarterly!AT232","v":-1.6000000000000014},{"$f":"Quarterly!AU236-Quarterly!AU232","v":-5.6666666666666643},{"$f":"Quarterly!AV236-Quarterly!AV232","v":-2.3333333333333357},{"$f":"Quarterly!AW236-Quarterly!AW232","v":-1.6666666666666643},{"$f":"Quarterly!AX236-Quarterly!AX232","v":-1.8666666666666671},{"$f":"Quarterly!AY236-Quarterly!AY232","v":-11.666666666666664},{"$f":"Quarterly!AZ236-Quarterly!AZ232","v":-4.0666666666666629},{"$f":"Quarterly!BA236-Quarterly!BA232","v":-3.7999999999999901},{"$f":"Quarterly!BB236-Quarterly!BB232","v":0.39999999999999858},{"$f":"((Quarterly!BC236/Quarterly!BC232)-1)","v":-4.6008616068769603E-2},{"$f":"((Quarterly!BD236/Quarterly!BD232)-1)","v":-1.0177605919081234E-2},{"$f":"((Quarterly!BE236/Quarterly!BE232)-1)","v":3.8044569363581582E-2},{"$f":"((Quarterly!BF236/Quarterly!BF232)-1)","v":3.7970207711905068E-2},{"$f":"((Quarterly!BG236/Quarterly!BG232)-1)","v":1.608373028675536E-2},{"$f":"((Quarterly!BH236/Quarterly!BH232)-1)","v":3.7679216400364313E-2},{"$f":"((Quarterly!BI236/Quarterly!BI232)-1)","v":2.1545958341295801E-2},{"$f":"((Quarterly!BJ236/Quarterly!BJ232)-1)","v":-2.1290572234858862E-2},{"$f":"((Quarterly!BK236/Quarterly!BK232)-1)","v":-0.46534653465346532},null,{"$f":"((Quarterly!BM236/Quarterly!BM232)-1)","v":2.4216044318829733E-2},{"$f":"((Quarterly!BN236/Quarterly!BN232)-1)","v":1.6352581648750419E-2},null,null,null,null,null,{"$f":"((Quarterly!BT236/Quarterly!BT232)-1)","v":4.6237288954009914E-2},{"$f":"Quarterly!BU236-Quarterly!BU232","v":-0.11992000000000047},{"$f":"Quarterly!BV236-Quarterly!BV232","v":-3.0300000000000438E-2},{"$f":"((Quarterly!BW236/Quarterly!BW232)-1)","v":-1.4429518195883007E-2},{"$f":"((Quarterly!BX236/Quarterly!BX232)-1)","v":0.17406027768371146},{"$f":"((Quarterly!BY236/Quarterly!BY232)-1)","v":0.22372662798194698},{"$f":"((Quarterly!BZ236/Quarterly!BZ232)-1)","v":4.7753248786597702E-2},{"$f":"((Quarterly!CA236/Quarterly!CA232)-1)","v":3.9038257492342687E-2},{"$f":"((Quarterly!CB236/Quarterly!CB232)-1)","v":-0.34215468159438633},{"$f":"((Quarterly!CC236/Quarterly!CC232)-1)","v":-0.26866860661731784},{"$f":"((Quarterly!CD236/Quarterly!CD232)-1)","v":8.5910652920962116E-2},{"$f":"((Quarterly!CE236/Quarterly!CE232)-1)","v":0.16627265563435767},null,{"$f":"((Quarterly!CG236/Quarterly!CG232)-1)","v":-2.9542097488921559E-3},{"$f":"((Quarterly!CH236/Quarterly!CH232)-1)","v":8.0491132332878523E-2},null,{"$f":"((Quarterly!CJ236/Quarterly!CJ232)-1)","v":0.16627265563435767},{"$f":"((Quarterly!CK236/Quarterly!CK232)-1)","v":5.4548420275211562E-2},{"$f":"((Quarterly!CL236/Quarterly!CL232)-1)","v":0.14185899747565811},{"$f":"((Quarterly!CM236/Quarterly!CM232)-1)","v":0.13322717622080682},{"$f":"((Quarterly!CN236/Quarterly!CN232)-1)","v":4.5714526386724685E-2},{"$f":"((Quarterly!CO236/Quarterly!CO232)-1)","v":7.2201146729452992E-2},{"$f":"((Quarterly!CP236/Quarterly!CP232)-1)","v":6.954196289029535E-2},{"$f":"((Quarterly!CQ236/Quarterly!CQ232)-1)","v":7.2414009671948332E-3},{"$f":"((Quarterly!CR236/Quarterly!CR232)-1)","v":3.7936415536844015E-2},{"$f":"Quarterly!CS236-Quarterly!CS232","v":11.40000000000002},{"$f":"Quarterly!CT236-Quarterly!CT232","v":12.799999999999997},null,null,null,null,null,{"$f":"((Quarterly!CZ236/Quarterly!CZ232)-1)","v":2.5199484184845744E-4},{"$f":"((Quarterly!DA236/Quarterly!DA232)-1)","v":1.7608346912223682E-2},null,null,null,null,null,{"$f":"((Quarterly!DG236/Quarterly!DG232)-1)","v":1.9082794706063444E-2},{"$f":"((Quarterly!DH236-Quarterly!DH232)*60)","v":-4.000000000000199},{"$f":"Quarterly!DI236-Quarterly!DI232","v":-3.3333333333331439E-2},{"$f":"(Quarterly!DJ236-Quarterly!DJ232)*100","v":-146.66666666666669},{"$f":"(Quarterly!DK236-Quarterly!DK232)*100","v":-80.000000000000071},{"$f":"((Quarterly!DL236/Quarterly!DL232)-1)","v":1.4617557524065461E-2},null,null,null,{"$f":"((Quarterly!DP236/Quarterly!DP232)-1)","v":2.0988877770935943E-2},null,null,null,null,{"$f":"Quarterly!DU236-Quarterly!DU232","v":-3.0999999999999996},{"$f":"((Quarterly!DV236/Quarterly!DV232)-1)","v":4.6647755980868677E-3},{"$f":"((Quarterly!DW236/Quarterly!DW232)-1)","v":2.3128331892607878E-3},{"$f":"((Quarterly!DX236/Quarterly!DX232)-1)","v":-2.2348278999334559E-3},{"$f":"((Quarterly!DY236/Quarterly!DY232)-1)","v":-3.9664551223935751E-3},{"$f":"((Quarterly!DZ236/Quarterly!DZ232)-1)","v":-1.6685273029908299E-3},{"$f":"((Quarterly!EA236/Quarterly!EA232)-1)","v":-9.8083245010510689E-3},{"$f":"((Quarterly!EB236/Quarterly!EB232)-1)","v":1.5140943171535914E-2},{"$f":"((Quarterly!EC236/Quarterly!EC232)-1)","v":1.234091272165716E-2},null,null,null,null,null,{"$f":"((Quarterly!EI236/Quarterly!EI232)-1)","v":4.4376532137096136E-2},{"$f":"((Quarterly!EJ236/Quarterly!EJ232)-1)","v":3.7776078123177292E-2},{"$f":"((Quarterly!EK236/Quarterly!EK232)-1)","v":3.4366369517899509E-2},null,null,null,null,null,{"$f":"((Quarterly!EQ236/Quarterly!EQ232)-1)","v":-7.2846621837976411E-2},{"$f":"((Quarterly!ER236/Quarterly!ER232)-1)","v":2.0538243626062158E-2},{"$f":"((Quarterly!ES236/Quarterly!ES232)-1)","v":1.3632718524458687E-2},null,null,null,null,null,{"$f":"(Quarterly!EY236-Quarterly!EY232)*100","v":0},{"$f":"(Quarterly!EZ236-Quarterly!EZ232)*100","v":3},{"$f":"(Quarterly!FA236-Quarterly!FA232)*100","v":-31.999999999999986},{"$f":"(Quarterly!FB236-Quarterly!FB232)*100","v":1.3333333333332753},"--",{"$f":"(Quarterly!FD236-Quarterly!FD232)*100","v":-40.000000000000036},{"$f":"(Quarterly!FE236-Quarterly!FE232)*100","v":-1.3333333333333333},{"$f":"(Quarterly!FF236-Quarterly!FF232)*100","v":14.666666666666666},{"$f":"(Quarterly!FG236-Quarterly!FG232)*100","v":19.333333333333329},{"$f":"(Quarterly!FH236-Quarterly!FH232)*100","v":-13.333333333333307},{"$f":"(Quarterly!FI236-Quarterly!FI232)*100","v":-45.666666666666657},null,null,null,null,null,null,{"$f":"((Quarterly!FP236/Quarterly!FP232)-1)","v":0.12721604108081652},{"$f":"((Quarterly!FQ236/Quarterly!FQ232)-1)","v":-4.4668649562409346E-3},{"$f":"((Quarterly!FR236/Quarterly!FR232)-1)","v":0.17849311801318701},{"$f":"((Quarterly!FS236/Quarterly!FS232)-1)","v":-0.19271339685008737},{"$f":"((Quarterly!FT236/Quarterly!FT232)-1)","v":0.12146857980653913},{"$f":"((Quarterly!FU236/Quarterly!FU232)-1)","v":0.17727070480455476},{"$f":"((Quarterly!FV236/Quarterly!FV232)-1)","v":-0.14813695320717091},{"$f":"((Quarterly!FW236/Quarterly!FW232)-1)","v":2.0999532585119551E-2},{"$f":"((Quarterly!FX236/Quarterly!FX232)-1)","v":1.2569720903497839E-2},null,null,null,null,null,{"$f":"((Quarterly!GD236/Quarterly!GD232)-1)","v":-0.44026577215843121},{"$f":"((Quarterly!GE236/Quarterly!GE232)-1)","v":-0.43761774536615017},{"$f":"((Quarterly!GF236/Quarterly!GF232)-1)","v":-0.26745917120319962},{"$f":"((Quarterly!GG236/Quarterly!GG232)-1)","v":-0.27682592354315516},{"$f":"((Quarterly!GH236/Quarterly!GH232)-1)","v":7.2181906144170194E-2},{"$f":"((Quarterly!GI236/Quarterly!GI232)-1)","v":9.0877315623907773E-2},{"$f":"((Quarterly!GJ236/Quarterly!GJ232)-1)","v":-0.40174672489082974},{"$f":"((Quarterly!GK236/Quarterly!GK232)-1)","v":2.0736503396496797E-3},{"$f":"((Quarterly!GL236/Quarterly!GL232)-1)","v":7.3372079838771587E-3}]
["15'Q3",{"$f":"((Quarterly!B237/Quarterly!B233)-1)","v":3.4356098654105161E-2},{"$f":"((Quarterly!C237/Quarterly!C233)-1)","v":2.4044963438487832E-2},{"$f":"((Quarterly!D237/Quarterly!D233)-1)","v":2.3307506482273421E-2},{"$f":"((Quarterly!E237/Quarterly!E233)-1)","v":3.617826065701979E-2},{"$f":"((Quarterly!F237/Quarterly!F233)-1)","v":7.4101901854895624E-2},{"$f":"((Quarterly!G237/Quarterly!G233)-1)","v":3.3580364522772133E-2},{"$f":"((Quarterly!H237/Quarterly!H233)-1)","v":3.0932650716094079E-2},{"$f":"((Quarterly!I237/Quarterly!I233)-1)","v":1.0700213444473583E-2},{"$f":"((Quarterly!J237/Quarterly!J233)-1)","v":2.0025790791170506E-2},{"$f":"((Quarterly!K237/Quarterly!K233)-1)","v":0.11155687975063189},{"$f":"((Quarterly!L237-Quarterly!L233))","v":10.628},{"$f":"((Quarterly!M237/Quarterly!M233)-1)","v":5.5734783241599306E-2},{"$f":"((Quarterly!N237/Quarterly!N233)-1)","v":-4.6303485466625549E-4},{"$f":"((Quarterly!O237/Quarterly!O233)-1)","v":0.3423630778092448},{"$f":"((Quarterly!P237/Quarterly!P233)-1)","v":1.3596737962040528E-2},{"$f":"((Quarterly!Q237/Quarterly!Q233)-1)","v":1.0938789057700404E-2},null,null,null,null,null,{"$f":"((Quarterly!W237/Quarterly!W233)-1)","v":-1.3140604467805073E-3},{"$f":"((Quarterly!X237/Quarterly!X233)-1)","v":-2.6649746192893509E-2},{"$f":"((Quarterly!Y237/Quarterly!Y233)-1)","v":0.11205939299316747},{"$f":"Quarterly!Z237-Quarterly!Z233","v":-0.96},{"$f":"((Quarterly!AA237/Quarterly!AA233)-1)","v":-5.604756426298052E-2},{"$f":"((Quarterly!AB237/Quarterly!AB233)-1)","v":-2.8138299971084857E-2},{"$f":"Quarterly!AC237-Quarterly!AC233","v":-7.7},{"$f":"Quarterly!AD237-Quarterly!AD233","v":-17.8},{"$f":"(Quarterly!AE237-Quarterly!AE233)*100","v":-83},{"$f":"(Quarterly!AF237-Quarterly!AF233)*100","v":-96},{"$f":"(Quarterly!AG237-Quarterly!AG233)*100","v":-31.999999999999996},{"$f":"((Quarterly!AH237/Quarterly!AH233)-1)","v":0.14082205500573242},{"$f":"((Quarterly!AI237/Quarterly!AI233)-1)","v":0.11885555092360933},{"$f":"((Quarterly!AJ237/Quarterly!AJ233)-1)","v":1.298701298701288E-2},{"$f":"((Quarterly!AK237/Quarterly!AK233)-1)","v":1.8898931799506968E-2},{"$f":"((Quarterly!AL237/Quarterly!AL233)-1)","v":2.0644095788604488E-2},{"$f":"((Quarterly!AM237/Quarterly!AM233)-1)","v":-1.0806575592342327E-2},{"$f":"((Quarterly!AN237/Quarterly!AN233)-1)","v":2.9301105362322666E-4},{"$f":"((Quarterly!AO237/Quarterly!AO233)-1)","v":2.4875197006280825E-2},{"$f":"(Quarterly!AP237-Quarterly!AP233)*100","v":8.3333333333333037},{"$f":"Quarterly!AQ237-Quarterly!AQ233","v":-5.5333333333333314},{"$f":"Quarterly!AR237-Quarterly!AR233","v":-6.1666666666666643},{"$f":"Quarterly!AS237-Quarterly!AS233","v":4.8333333333333357},{"$f":"Quarterly!AT237-Quarterly!AT233","v":-5.5},{"$f":"Quarterly!AU237-Quarterly!AU233","v":-6.8333333333333357},{"$f":"Quarterly!AV237-Quarterly!AV233","v":-2.3333333333333286},{"$f":"Quarterly!AW237-Quarterly!AW233","v":-1.8333333333333286},{"$f":"Quarterly!AX237-Quarterly!AX233","v":-10.599999999999994},{"$f":"Quarterly!AY237-Quarterly!AY233","v":-18.666666666666664},{"$f":"Quarterly!AZ237-Quarterly!AZ233","v":-9.6333333333333471},{"$f":"Quarterly!BA237-Quarterly!BA233","v":-3.4666666666666615},{"$f":"Quarterly!BB237-Quarterly!BB233","v":0.66666666666665719},{"$f":"((Quarterly!BC237/Quarterly!BC233)-1)","v":-6.2029676224288899E-2},{"$f":"((Quarterly!BD237/Quarterly!BD233)-1)","v":-5.168736670430274E-3},{"$f":"((Quarterly!BE237/Quarterly!BE233)-1)","v":3.1152233242361715E-2},{"$f":"((Quarterly!BF237/Quarterly!BF233)-1)","v":3.2734828994476883E-2},{"$f":"((Quarterly!BG237/Quarterly!BG233)-1)","v":8.410776307143486E-3},{"$f":"((Quarterly!BH237/Quarterly!BH233)-1)","v":3.1254043616311789E-2},{"$f":"((Quarterly!BI237/Quarterly!BI233)-1)","v":2.4120285188592439E-2},{"$f":"((Quarterly!BJ237/Quarterly!BJ233)-1)","v":-7.8214931553715172E-2},{"$f":"((Quarterly!BK237/Quarterly!BK233)-1)","v":-0.5},null,{"$f":"((Quarterly!BM237/Quarterly!BM233)-1)","v":2.6304313246758415E-2},{"$f":"((Quarterly!BN237/Quarterly!BN233)-1)","v":1.9633011664454525E-2},null,null,null,null,null,{"$f":"((Quarterly!BT237/Quarterly!BT233)-1)","v":4.8832888364690463E-2},{"$f":"Quarterly!BU237-Quarterly!BU233","v":-2.8969999999999274E-2},{"$f":"Quarterly!BV237-Quarterly!BV233","v":9.0659999999999741E-2},{"$f":"((Quarterly!BW237/Quarterly!BW233)-1)","v":-1.7680192653437343E-2},{"$f":"((Quarterly!BX237/Quarterly!BX233)-1)","v":0.13526727509778369},{"$f":"((Quarterly!BY237/Quarterly!BY233)-1)","v":8.1645569620253156E-2},{"$f":"((Quarterly!BZ237/Quarterly!BZ233)-1)","v":5.1703258067036684E-2},{"$f":"((Quarterly!CA237/Quarterly!CA233)-1)","v":6.4840749039692946E-2},{"$f":"((Quarterly!CB237/Quarterly!CB233)-1)","v":-0.33356167510843238},{"$f":"((Quarterly!CC237/Quarterly!CC233)-1)","v":-0.27385367599401833},{"$f":"((Quarterly!CD237/Quarterly!CD233)-1)","v":6.4935064935064846E-2},{"$f":"((Quarterly!CE237/Quarterly!CE233)-1)","v":0.11769172361427493},null,{"$f":"((Quarterly!CG237/Quarterly!CG233)-1)","v":-3.4482758620689613E-2},{"$f":"((Quarterly!CH237/Quarterly!CH233)-1)","v":6.8556361239287877E-2},null,{"$f":"((Quarterly!CJ237/Quarterly!CJ233)-1)","v":0.11769172361427493},{"$f":"((Quarterly!CK237/Quarterly!CK233)-1)","v":4.6948597974293405E-2},{"$f":"((Quarterly!CL237/Quarterly!CL233)-1)","v":8.5291787694745214E-2},{"$f":"((Quarterly!CM237/Quarterly!CM233)-1)","v":0.15135967162647512},{"$f":"((Quarterly!CN237/Quarterly!CN233)-1)","v":3.9640525872633336E-2},{"$f":"((Quarterly!CO237/Quarterly!CO233)-1)","v":7.3380650650426649E-2},{"$f":"((Quarterly!CP237/Quarterly!CP233)-1)","v":6.9453041800564108E-2},{"$f":"((Quarterly!CQ237/Quarterly!CQ233)-1)","v":7.1499760762050446E-3},{"$f":"((Quarterly!CR237/Quarterly!CR233)-1)","v":4.2564567003281928E-2},{"$f":"Quarterly!CS237-Quarterly!CS233","v":7.7666666666666657},{"$f":"Quarterly!CT237-Quarterly!CT233","v":7.4000000000000057},null,null,null,null,null,{"$f":"((Quarterly!CZ237/Quarterly!CZ233)-1)","v":1.3873170019349512E-3},{"$f":"((Quarterly!DA237/Quarterly!DA233)-1)","v":1.8421486748328553E-2},null,null,null,null,null,{"$f":"((Quarterly!DG237/Quarterly!DG233)-1)","v":1.9266055045871644E-2},{"$f":"((Quarterly!DH237-Quarterly!DH233)*60)","v":-1.9999999999998863},{"$f":"Quarterly!DI237-Quarterly!DI233","v":-0.3333333333333357},{"$f":"(Quarterly!DJ237-Quarterly!DJ233)*100","v":-183.3333333333334},{"$f":"(Quarterly!DK237-Quarterly!DK233)*100","v":-100},{"$f":"((Quarterly!DL237/Quarterly!DL233)-1)","v":1.1688559958489275E-2},null,null,null,{"$f":"((Quarterly!DP237/Quarterly!DP233)-1)","v":2.023716095936301E-2},null,null,null,null,{"$f":"Quarterly!DU237-Quarterly!DU233","v":-1.7666666666666657},{"$f":"((Quarterly!DV237/Quarterly!DV233)-1)","v":6.568427833569368E-3},{"$f":"((Quarterly!DW237/Quarterly!DW233)-1)","v":1.8590400242543437E-2},{"$f":"((Quarterly!DX237/Quarterly!DX233)-1)","v":1.090068820013057E-2},{"$f":"((Quarterly!DY237/Quarterly!DY233)-1)","v":2.0298334460251644E-2},{"$f":"((Quarterly!DZ237/Quarterly!DZ233)-1)","v":7.8890579120527438E-3},{"$f":"((Quarterly!EA237/Quarterly!EA233)-1)","v":2.5070902618296032E-3},{"$f":"((Quarterly!EB237/Quarterly!EB233)-1)","v":1.8408150717071248E-2},{"$f":"((Quarterly!EC237/Quarterly!EC233)-1)","v":3.5362581607363497E-2},null,null,null,null,null,{"$f":"((Quarterly!EI237/Quarterly!EI233)-1)","v":3.3862731094148391E-2},{"$f":"((Quarterly!EJ237/Quarterly!EJ233)-1)","v":3.1988653581158877E-2},{"$f":"((Quarterly!EK237/Quarterly!EK233)-1)","v":2.9847504422040538E-2},null,null,null,null,null,{"$f":"((Quarterly!EQ237/Quarterly!EQ233)-1)","v":-7.4831026713871873E-2},{"$f":"((Quarterly!ER237/Quarterly!ER233)-1)","v":2.1512960677129156E-2},{"$f":"((Quarterly!ES237/Quarterly!ES233)-1)","v":1.2997400519896063E-2},null,null,null,null,null,{"$f":"(Quarterly!EY237-Quarterly!EY233)*100","v":0},{"$f":"(Quarterly!EZ237-Quarterly!EZ233)*100","v":4.6666666666666679},{"$f":"(Quarterly!FA237-Quarterly!FA233)*100","v":-3.0000000000000249},{"$f":"(Quarterly!FB237-Quarterly!FB233)*100","v":50.333333333333208},"--",{"$f":"(Quarterly!FD237-Quarterly!FD233)*100","v":-18.6666666666667},{"$f":"(Quarterly!FE237-Quarterly!FE233)*100","v":1.3333333333333333},{"$f":"(Quarterly!FF237-Quarterly!FF233)*100","v":23.999999999999993},{"$f":"(Quarterly!FG237-Quarterly!FG233)*100","v":17.666666666666675},{"$f":"(Quarterly!FH237-Quarterly!FH233)*100","v":-14.66666666666665},{"$f":"(Quarterly!FI237-Quarterly!FI233)*100","v":-27.666666666666639},null,null,null,null,null,null,{"$f":"((Quarterly!FP237/Quarterly!FP233)-1)","v":0.2019831068674256},{"$f":"((Quarterly!FQ237/Quarterly!FQ233)-1)","v":2.2914221743903562E-2},{"$f":"((Quarterly!FR237/Quarterly!FR233)-1)","v":0.25277354465102109},{"$f":"((Quarterly!FS237/Quarterly!FS233)-1)","v":-0.16042982610665135},{"$f":"((Quarterly!FT237/Quarterly!FT233)-1)","v":0.15106578521339453},{"$f":"((Quarterly!FU237/Quarterly!FU233)-1)","v":0.17703322845127789},{"$f":"((Quarterly!FV237/Quarterly!FV233)-1)","v":-0.16118047036713923},{"$f":"((Quarterly!FW237/Quarterly!FW233)-1)","v":4.4171987360994258E-2},{"$f":"((Quarterly!FX237/Quarterly!FX233)-1)","v":-5.0737185369602589E-3},null,null,null,null,null,{"$f":"((Quarterly!GD237/Quarterly!GD233)-1)","v":-0.52529147064839421},{"$f":"((Quarterly!GE237/Quarterly!GE233)-1)","v":-0.50666186532229018},{"$f":"((Quarterly!GF237/Quarterly!GF233)-1)","v":-0.24857967774983702},{"$f":"((Quarterly!GG237/Quarterly!GG233)-1)","v":-0.31492096578078854},{"$f":"((Quarterly!GH237/Quarterly!GH233)-1)","v":6.6752688172043051E-2},{"$f":"((Quarterly!GI237/Quarterly!GI233)-1)","v":5.3998632946001379E-2},{"$f":"((Quarterly!GJ237/Quarterly!GJ233)-1)","v":-0.30743243243243235},{"$f":"((Quarterly!GK237/Quarterly!GK233)-1)","v":-3.037466991101101E-2},{"$f":"((Quarterly!GL237/Quarterly!GL233)-1)","v":9.1548322826000561E-3}]
["15'Q4",{"$f":"((Quarterly!B238/Quarterly!B234)-1)","v":3.1083394372317441E-2},{"$f":"((Quarterly!C238/Quarterly!C234)-1)","v":2.0184495625275689E-2},{"$f":"((Quarterly!D238/Quarterly!D234)-1)","v":2.0491042882643029E-2},{"$f":"((Quarterly!E238/Quarterly!E234)-1)","v":3.0245415806564813E-2},{"$f":"((Quarterly!F238/Quarterly!F234)-1)","v":6.3755840449282841E-2},{"$f":"((Quarterly!G238/Quarterly!G234)-1)","v":2.7781626714701524E-2},{"$f":"((Quarterly!H238/Quarterly!H234)-1)","v":2.5628001477650431E-2},{"$f":"((Quarterly!I238/Quarterly!I234)-1)","v":3.4071349146422847E-3},{"$f":"((Quarterly!J238/Quarterly!J234)-1)","v":2.9795715228992048E-2},{"$f":"((Quarterly!K238/Quarterly!K234)-1)","v":0.10255555236151448},{"$f":"((Quarterly!L238-Quarterly!L234))","v":-8.6970000000000027},{"$f":"((Quarterly!M238/Quarterly!M234)-1)","v":2.9038721490954655E-2},{"$f":"((Quarterly!N238/Quarterly!N234)-1)","v":-1.8072843728554333E-2},{"$f":"((Quarterly!O238/Quarterly!O234)-1)","v":0.250796075539087},{"$f":"((Quarterly!P238/Quarterly!P234)-1)","v":1.588730976528252E-2},{"$f":"((Quarterly!Q238/Quarterly!Q234)-1)","v":-7.9418375333617508E-2},null,null,null,null,null,{"$f":"((Quarterly!W238/Quarterly!W234)-1)","v":-7.8534031413614036E-3},{"$f":"((Quarterly!X238/Quarterly!X234)-1)","v":-3.6755386565272441E-2},{"$f":"((Quarterly!Y238/Quarterly!Y234)-1)","v":0.10941844632435083},{"$f":"Quarterly!Z238-Quarterly!Z234","v":-0.95000000000000007},{"$f":"((Quarterly!AA238/Quarterly!AA234)-1)","v":-0.17034955223748061},{"$f":"((Quarterly!AB238/Quarterly!AB234)-1)","v":-0.15138968408152909},{"$f":"Quarterly!AC238-Quarterly!AC234","v":-7.9},{"$f":"Quarterly!AD238-Quarterly!AD234","v":-2.5},{"$f":"(Quarterly!AE238-Quarterly!AE234)*100","v":-108},{"$f":"(Quarterly!AF238-Quarterly!AF234)*100","v":-95},{"$f":"(Quarterly!AG238-Quarterly!AG234)*100","v":-34.999999999999986},{"$f":"((Quarterly!AH238/Quarterly!AH234)-1)","v":0.14420937560285507},{"$f":"((Quarterly!AI238/Quarterly!AI234)-1)","v":0.12494433893769985},{"$f":"((Quarterly!AJ238/Quarterly!AJ234)-1)","v":1.2116316639741553E-2},{"$f":"((Quarterly!AK238/Quarterly!AK234)-1)","v":1.880621422730977E-2},{"$f":"((Quarterly!AL238/Quarterly!AL234)-1)","v":2.1364009860312283E-2},{"$f":"((Quarterly!AM238/Quarterly!AM234)-1)","v":-2.6550985012056771E-2},{"$f":"((Quarterly!AN238/Quarterly!AN234)-1)","v":-5.360342193232337E-3},{"$f":"((Quarterly!AO238/Quarterly!AO234)-1)","v":1.9418763083179691E-2},{"$f":"(Quarterly!AP238-Quarterly!AP234)*100","v":7.6666666666666439},{"$f":"Quarterly!AQ238-Quarterly!AQ234","v":-7.9666666666666615},{"$f":"Quarterly!AR238-Quarterly!AR234","v":-11.333333333333336},{"$f":"Quarterly!AS238-Quarterly!AS234","v":3.5},{"$f":"Quarterly!AT238-Quarterly!AT234","v":-6.5},{"$f":"Quarterly!AU238-Quarterly!AU234","v":-4.1666666666666714},{"$f":"Quarterly!AV238-Quarterly!AV234","v":-8},{"$f":"Quarterly!AW238-Quarterly!AW234","v":-5.5},{"$f":"Quarterly!AX238-Quarterly!AX234","v":-13.000000000000014},{"$f":"Quarterly!AY238-Quarterly!AY234","v":-9.5},{"$f":"Quarterly!AZ238-Quarterly!AZ234","v":-11.633333333333326},{"$f":"Quarterly!BA238-Quarterly!BA234","v":-6.9333333333333229},{"$f":"Quarterly!BB238-Quarterly!BB234","v":-0.76666666666667282},{"$f":"((Quarterly!BC238/Quarterly!BC234)-1)","v":-3.1318057728290549E-2},{"$f":"((Quarterly!BD238/Quarterly!BD234)-1)","v":-3.7838655970939827E-3},{"$f":"((Quarterly!BE238/Quarterly!BE234)-1)","v":3.9349657284208917E-2},{"$f":"((Quarterly!BF238/Quarterly!BF234)-1)","v":3.1084814725975685E-2},{"$f":"((Quarterly!BG238/Quarterly!BG234)-1)","v":6.5543159463206102E-3},{"$f":"((Quarterly!BH238/Quarterly!BH234)-1)","v":2.6868425184487288E-2},{"$f":"((Quarterly!BI238/Quarterly!BI234)-1)","v":2.4379674812065488E-2},{"$f":"((Quarterly!BJ238/Quarterly!BJ234)-1)","v":-0.19182438479445851},{"$f":"((Quarterly!BK238/Quarterly!BK234)-1)","v":-0.5135135135135136},null,{"$f":"((Quarterly!BM238/Quarterly!BM234)-1)","v":2.2738259603200195E-2},{"$f":"((Quarterly!BN238/Quarterly!BN234)-1)","v":1.7125324336800141E-2},null,null,null,null,null,{"$f":"((Quarterly!BT238/Quarterly!BT234)-1)","v":5.8796407796944283E-2},{"$f":"Quarterly!BU238-Quarterly!BU234","v":-6.8300000000000693E-2},{"$f":"Quarterly!BV238-Quarterly!BV234","v":6.7669999999999675E-2},{"$f":"((Quarterly!BW238/Quarterly!BW234)-1)","v":-1.4231546570345976E-2},{"$f":"((Quarterly!BX238/Quarterly!BX234)-1)","v":6.437361943830866E-2},{"$f":"((Quarterly!BY238/Quarterly!BY234)-1)","v":0.11788120024494786},{"$f":"((Quarterly!BZ238/Quarterly!BZ234)-1)","v":5.5658198614318533E-2},{"$f":"((Quarterly!CA238/Quarterly!CA234)-1)","v":6.6495187187267657E-2},{"$f":"((Quarterly!CB238/Quarterly!CB234)-1)","v":-0.21545084165232231},{"$f":"((Quarterly!CC238/Quarterly!CC234)-1)","v":-0.1814741590356197},{"$f":"((Quarterly!CD238/Quarterly!CD234)-1)","v":9.033280507131547E-2},{"$f":"((Quarterly!CE238/Quarterly!CE234)-1)","v":8.0736543909348368E-2},null,{"$f":"((Quarterly!CG238/Quarterly!CG234)-1)","v":-4.3689320388349495E-2},{"$f":"((Quarterly!CH238/Quarterly!CH234)-1)","v":2.7667984189723382E-2},null,{"$f":"((Quarterly!CJ238/Quarterly!CJ234)-1)","v":8.0736543909348368E-2},{"$f":"((Quarterly!CK238/Quarterly!CK234)-1)","v":4.0956029423737217E-2},{"$f":"((Quarterly!CL238/Quarterly!CL234)-1)","v":6.7241525783705569E-2},{"$f":"((Quarterly!CM238/Quarterly!CM234)-1)","v":7.197330791229728E-2},{"$f":"((Quarterly!CN238/Quarterly!CN234)-1)","v":3.2178543255324543E-2},{"$f":"((Quarterly!CO238/Quarterly!CO234)-1)","v":7.9578318047952346E-2},{"$f":"((Quarterly!CP238/Quarterly!CP234)-1)","v":5.8302258884359803E-2},{"$f":"((Quarterly!CQ238/Quarterly!CQ234)-1)","v":7.0279659037832953E-3},{"$f":"((Quarterly!CR238/Quarterly!CR234)-1)","v":4.0200090192846982E-2},{"$f":"Quarterly!CS238-Quarterly!CS234","v":1.5333333333333456},{"$f":"Quarterly!CT238-Quarterly!CT234","v":3.2666666666666657},null,null,null,null,null,{"$f":"((Quarterly!CZ238/Quarterly!CZ234)-1)","v":4.0469030009255835E-3},{"$f":"((Quarterly!DA238/Quarterly!DA234)-1)","v":2.0120516994790227E-2},null,null,null,null,null,{"$f":"((Quarterly!DG238/Quarterly!DG234)-1)","v":1.9446976602856214E-2},{"$f":"((Quarterly!DH238-Quarterly!DH234)*60)","v":-1.9999999999998863},{"$f":"Quarterly!DI238-Quarterly!DI234","v":-0.26666666666667282},{"$f":"(Quarterly!DJ238-Quarterly!DJ234)*100","v":-149.99999999999983},{"$f":"(Quarterly!DK238-Quarterly!DK234)*100","v":-70.000000000000014},{"$f":"((Quarterly!DL238/Quarterly!DL234)-1)","v":6.51855070889229E-3},null,null,null,{"$f":"((Quarterly!DP238/Quarterly!DP234)-1)","v":1.953632457279908E-2},null,null,null,null,{"$f":"Quarterly!DU238-Quarterly!DU234","v":-2.0666666666666682},{"$f":"((Quarterly!DV238/Quarterly!DV234)-1)","v":1.1529449973322059E-2},{"$f":"((Quarterly!DW238/Quarterly!DW234)-1)","v":1.1718840111652362E-2},{"$f":"((Quarterly!DX238/Quarterly!DX234)-1)","v":1.9652203275367208E-2},{"$f":"((Quarterly!DY238/Quarterly!DY234)-1)","v":3.5945869749083759E-2},{"$f":"((Quarterly!DZ238/Quarterly!DZ234)-1)","v":1.451978153723199E-2},{"$f":"((Quarterly!EA238/Quarterly!EA234)-1)","v":3.8711370644970433E-3},{"$f":"((Quarterly!EB238/Quarterly!EB234)-1)","v":3.6813186813186904E-2},{"$f":"((Quarterly!EC238/Quarterly!EC234)-1)","v":-5.3880879568953821E-3},null,null,null,null,null,{"$f":"((Quarterly!EI238/Quarterly!EI234)-1)","v":2.7179769704126056E-2},{"$f":"((Quarterly!EJ238/Quarterly!EJ234)-1)","v":2.9148909807998669E-2},{"$f":"((Quarterly!EK238/Quarterly!EK234)-1)","v":2.6113338771124983E-2},null,null,null,null,null,{"$f":"((Quarterly!EQ238/Quarterly!EQ234)-1)","v":-7.4172625977049544E-2},{"$f":"((Quarterly!ER238/Quarterly!ER234)-1)","v":1.7753559500790939E-2},{"$f":"((Quarterly!ES238/Quarterly!ES234)-1)","v":9.9840255591052696E-3},null,null,null,null,null,{"$f":"(Quarterly!EY238-Quarterly!EY234)*100","v":4.000000000000048},{"$f":"(Quarterly!EZ238-Quarterly!EZ234)*100","v":6.0000000000000009},{"$f":"(Quarterly!FA238-Quarterly!FA234)*100","v":11.666666666666714},{"$f":"(Quarterly!FB238-Quarterly!FB234)*100","v":68.000000000000057},"--",{"$f":"(Quarterly!FD238-Quarterly!FD234)*100","v":-6.666666666666643},{"$f":"(Quarterly!FE238-Quarterly!FE234)*100","v":10},{"$f":"(Quarterly!FF238-Quarterly!FF234)*100","v":31.666666666666671},{"$f":"(Quarterly!FG238-Quarterly!FG234)*100","v":29.333333333333332},{"$f":"(Quarterly!FH238-Quarterly!FH234)*100","v":-1.6666666666666607},{"$f":"(Quarterly!FI238-Quarterly!FI234)*100","v":-8.9999999999999858},null,null,null,null,null,null,{"$f":"((Quarterly!FP238/Quarterly!FP234)-1)","v":0.17596642108661831},{"$f":"((Quarterly!FQ238/Quarterly!FQ234)-1)","v":3.9319688045730272E-2},{"$f":"((Quarterly!FR238/Quarterly!FR234)-1)","v":0.20798129511616059},{"$f":"((Quarterly!FS238/Quarterly!FS234)-1)","v":-0.12366925478267832},{"$f":"((Quarterly!FT238/Quarterly!FT234)-1)","v":0.11798079433371744},{"$f":"((Quarterly!FU238/Quarterly!FU234)-1)","v":0.12568869800340177},{"$f":"((Quarterly!FV238/Quarterly!FV234)-1)","v":-0.18969270011212114},{"$f":"((Quarterly!FW238/Quarterly!FW234)-1)","v":-3.1331016388123523E-2},{"$f":"((Quarterly!FX238/Quarterly!FX234)-1)","v":-1.4455439810244219E-2},null,null,null,null,null,{"$f":"((Quarterly!GD238/Quarterly!GD234)-1)","v":-0.4265992345544013},{"$f":"((Quarterly!GE238/Quarterly!GE234)-1)","v":-0.42973692247284156},{"$f":"((Quarterly!GF238/Quarterly!GF234)-1)","v":-0.23559207564160289},{"$f":"((Quarterly!GG238/Quarterly!GG234)-1)","v":-0.3206071328801563},{"$f":"((Quarterly!GH238/Quarterly!GH234)-1)","v":0.18569934391936882},{"$f":"((Quarterly!GI238/Quarterly!GI234)-1)","v":0.29549114331723048},{"$f":"((Quarterly!GJ238/Quarterly!GJ234)-1)","v":-0.41906412478336219},{"$f":"((Quarterly!GK238/Quarterly!GK234)-1)","v":-8.4581566692152332E-3},{"$f":"((Quarterly!GL238/Quarterly!GL234)-1)","v":2.6166190168772419E-2}]
["16'Q1",{"$f":"((Quarterly!B239/Quarterly!B235)-1)","v":2.5201632585470701E-2},{"$f":"((Quarterly!C239/Quarterly!C235)-1)","v":1.3553725175031062E-2},{"$f":"((Quarterly!D239/Quarterly!D235)-1)","v":1.9156735303667904E-2},{"$f":"((Quarterly!E239/Quarterly!E235)-1)","v":2.5592252638630741E-2},{"$f":"((Quarterly!F239/Quarterly!F235)-1)","v":4.6672389644422108E-2},{"$f":"((Quarterly!G239/Quarterly!G235)-1)","v":2.8275900063355452E-2},{"$f":"((Quarterly!H239/Quarterly!H235)-1)","v":2.1301439175049897E-2},{"$f":"((Quarterly!I239/Quarterly!I235)-1)","v":-1.2280240719268032E-2},{"$f":"((Quarterly!J239/Quarterly!J235)-1)","v":6.6883046218741971E-3},{"$f":"((Quarterly!K239/Quarterly!K235)-1)","v":0.10752373259811554},{"$f":"((Quarterly!L239-Quarterly!L235))","v":-91.615000000000009},{"$f":"((Quarterly!M239/Quarterly!M235)-1)","v":1.1988963679216091E-2},{"$f":"((Quarterly!N239/Quarterly!N235)-1)","v":-1.3308075986489754E-2},{"$f":"((Quarterly!O239/Quarterly!O235)-1)","v":0.1146156678616328},{"$f":"((Quarterly!P239/Quarterly!P235)-1)","v":1.6619591655501864E-2},{"$f":"((Quarterly!Q239/Quarterly!Q235)-1)","v":0.27704758844997301},null,null,null,null,null,{"$f":"((Quarterly!W239/Quarterly!W235)-1)","v":-2.6315789473684292E-3},{"$f":"((Quarterly!X239/Quarterly!X235)-1)","v":-2.6124197002141303E-2},{"$f":"((Quarterly!Y239/Quarterly!Y235)-1)","v":0.10142619034918021},{"$f":"Quarterly!Z239-Quarterly!Z235","v":-0.9},{"$f":"((Quarterly!AA239/Quarterly!AA235)-1)","v":-3.5563463311110599E-2},{"$f":"((Quarterly!AB239/Quarterly!AB235)-1)","v":-4.161730654915774E-2},{"$f":"Quarterly!AC239-Quarterly!AC235","v":-16.899999999999999},{"$f":"Quarterly!AD239-Quarterly!AD235","v":-18.399999999999999},{"$f":"(Quarterly!AE239-Quarterly!AE235)*100","v":-99.000000000000028},{"$f":"(Quarterly!AF239-Quarterly!AF235)*100","v":-90},{"$f":"(Quarterly!AG239-Quarterly!AG235)*100","v":-43.999999999999993},{"$f":"((Quarterly!AH239/Quarterly!AH235)-1)","v":0.1473414318430748},{"$f":"((Quarterly!AI239/Quarterly!AI235)-1)","v":0.11977946705623643},{"$f":"((Quarterly!AJ239/Quarterly!AJ235)-1)","v":1.1244979919678766E-2},{"$f":"((Quarterly!AK239/Quarterly!AK235)-1)","v":1.7857142857142794E-2},{"$f":"((Quarterly!AL239/Quarterly!AL235)-1)","v":2.0391517128874437E-2},{"$f":"((Quarterly!AM239/Quarterly!AM235)-1)","v":-2.1651175782468446E-2},{"$f":"((Quarterly!AN239/Quarterly!AN235)-1)","v":2.8591533045045914E-3},{"$f":"((Quarterly!AO239/Quarterly!AO235)-1)","v":1.579243180877965E-2},{"$f":"(Quarterly!AP239-Quarterly!AP235)*100","v":4.6666666666666634},{"$f":"Quarterly!AQ239-Quarterly!AQ235","v":-3.3333333333333286},{"$f":"Quarterly!AR239-Quarterly!AR235","v":-1.5},{"$f":"Quarterly!AS239-Quarterly!AS235","v":4.3333333333333286},{"$f":"Quarterly!AT239-Quarterly!AT235","v":-4.3333333333333357},{"$f":"Quarterly!AU239-Quarterly!AU235","v":0},{"$f":"Quarterly!AV239-Quarterly!AV235","v":-4.1666666666666643},{"$f":"Quarterly!AW239-Quarterly!AW235","v":-6.5},{"$f":"Quarterly!AX239-Quarterly!AX235","v":1.3666666666666742},{"$f":"Quarterly!AY239-Quarterly!AY235","v":4.8333333333333286},{"$f":"Quarterly!AZ239-Quarterly!AZ235","v":-1.8999999999999915},{"$f":"Quarterly!BA239-Quarterly!BA235","v":-2.5999999999999943},{"$f":"Quarterly!BB239-Quarterly!BB235","v":-2.9666666666666686},{"$f":"((Quarterly!BC239/Quarterly!BC235)-1)","v":-5.4984499918420582E-2},{"$f":"((Quarterly!BD239/Quarterly!BD235)-1)","v":4.0888393272000556E-3},{"$f":"((Quarterly!BE239/Quarterly!BE235)-1)","v":4.1108965876304193E-3},{"$f":"((Quarterly!BF239/Quarterly!BF235)-1)","v":1.2820512820512775E-2},{"$f":"((Quarterly!BG239/Quarterly!BG235)-1)","v":-3.100760669989211E-3},{"$f":"((Quarterly!BH239/Quarterly!BH235)-1)","v":2.0114692428945258E-3},{"$f":"((Quarterly!BI239/Quarterly!BI235)-1)","v":1.5980811738701028E-2},{"$f":"((Quarterly!BJ239/Quarterly!BJ235)-1)","v":1.594401168159254E-2},{"$f":"((Quarterly!BK239/Quarterly!BK235)-1)","v":-0.51136363636363635},null,{"$f":"((Quarterly!BM239/Quarterly!BM235)-1)","v":2.9221058791883303E-2},{"$f":"((Quarterly!BN239/Quarterly!BN235)-1)","v":2.4613743685884204E-2},null,null,null,null,null,{"$f":"((Quarterly!BT239/Quarterly!BT235)-1)","v":7.220853857174081E-2},{"$f":"Quarterly!BU239-Quarterly!BU235","v":-0.11552999999999969},{"$f":"Quarterly!BV239-Quarterly!BV235","v":1.238000000000028E-2},{"$f":"((Quarterly!BW239/Quarterly!BW235)-1)","v":-1.1332294128393872E-2},{"$f":"((Quarterly!BX239/Quarterly!BX235)-1)","v":0.1681296421336933},{"$f":"((Quarterly!BY239/Quarterly!BY235)-1)","v":6.9618320610687068E-2},{"$f":"((Quarterly!BZ239/Quarterly!BZ235)-1)","v":5.3836131200785342E-2},{"$f":"((Quarterly!CA239/Quarterly!CA235)-1)","v":2.6999228593468594E-2},{"$f":"((Quarterly!CB239/Quarterly!CB235)-1)","v":0.10429114077761081},{"$f":"((Quarterly!CC239/Quarterly!CC235)-1)","v":1.5841278959259464E-2},{"$f":"((Quarterly!CD239/Quarterly!CD235)-1)","v":0.16883116883116878},{"$f":"((Quarterly!CE239/Quarterly!CE235)-1)","v":1.6097875080489432E-2},null,{"$f":"((Quarterly!CG239/Quarterly!CG235)-1)","v":-2.0797227036395194E-2},{"$f":"((Quarterly!CH239/Quarterly!CH235)-1)","v":6.0726072607260706E-2},null,{"$f":"((Quarterly!CJ239/Quarterly!CJ235)-1)","v":1.6097875080489432E-2},{"$f":"((Quarterly!CK239/Quarterly!CK235)-1)","v":2.9411956926656435E-2},{"$f":"((Quarterly!CL239/Quarterly!CL235)-1)","v":-2.6924660354055163E-2},{"$f":"((Quarterly!CM239/Quarterly!CM235)-1)","v":0.22980719124544025},{"$f":"((Quarterly!CN239/Quarterly!CN235)-1)","v":2.1958095031577862E-2},{"$f":"((Quarterly!CO239/Quarterly!CO235)-1)","v":7.3575250662372138E-2},{"$f":"((Quarterly!CP239/Quarterly!CP235)-1)","v":3.0282920739965968E-2},{"$f":"((Quarterly!CQ239/Quarterly!CQ235)-1)","v":6.9373391219087477E-3},{"$f":"((Quarterly!CR239/Quarterly!CR235)-1)","v":2.5321195702666666E-2},{"$f":"Quarterly!CS239-Quarterly!CS235","v":-3.9333333333333371},{"$f":"Quarterly!CT239-Quarterly!CT235","v":-5.3666666666666742},null,null,null,null,null,{"$f":"((Quarterly!CZ239/Quarterly!CZ235)-1)","v":1.0760329619148523E-2},{"$f":"((Quarterly!DA239/Quarterly!DA235)-1)","v":2.248487715156422E-2},null,null,null,null,null,{"$f":"((Quarterly!DG239/Quarterly!DG235)-1)","v":1.7867958812840756E-2},{"$f":"((Quarterly!DH239-Quarterly!DH235)*60)","v":-4.000000000000199},{"$f":"Quarterly!DI239-Quarterly!DI235","v":9.9999999999994316E-2},{"$f":"(Quarterly!DJ239-Quarterly!DJ235)*100","v":-123.33333333333343},{"$f":"(Quarterly!DK239-Quarterly!DK235)*100","v":-60.000000000000057},{"$f":"((Quarterly!DL239/Quarterly!DL235)-1)","v":5.2269526595170035E-3},null,null,null,{"$f":"((Quarterly!DP239/Quarterly!DP235)-1)","v":1.8826648989061834E-2},null,null,null,null,{"$f":"Quarterly!DU239-Quarterly!DU235","v":-1.3333333333333339},{"$f":"((Quarterly!DV239/Quarterly!DV235)-1)","v":4.9767291829867499E-3},{"$f":"((Quarterly!DW239/Quarterly!DW235)-1)","v":5.5738476011288896E-3},{"$f":"((Quarterly!DX239/Quarterly!DX235)-1)","v":1.5309601745771895E-2},{"$f":"((Quarterly!DY239/Quarterly!DY235)-1)","v":3.3714285714285808E-2},{"$f":"((Quarterly!DZ239/Quarterly!DZ235)-1)","v":9.5395915442493262E-3},{"$f":"((Quarterly!EA239/Quarterly!EA235)-1)","v":1.0270090030010115E-2},{"$f":"((Quarterly!EB239/Quarterly!EB235)-1)","v":8.0458202645574683E-3},{"$f":"((Quarterly!EC239/Quarterly!EC235)-1)","v":-1.6070345664038754E-2},null,null,null,null,null,{"$f":"((Quarterly!EI239/Quarterly!EI235)-1)","v":1.5895660008289791E-2},{"$f":"((Quarterly!EJ239/Quarterly!EJ235)-1)","v":2.4080136289489795E-2},{"$f":"((Quarterly!EK239/Quarterly!EK235)-1)","v":2.1677111325008935E-2},null,null,null,null,null,{"$f":"((Quarterly!EQ239/Quarterly!EQ235)-1)","v":-4.9773755656108642E-2},null,null,null,null,null,null,null,{"$f":"(Quarterly!EY239-Quarterly!EY235)*100","v":25},{"$f":"(Quarterly!EZ239-Quarterly!EZ235)*100","v":25.000000000000007},{"$f":"(Quarterly!FA239-Quarterly!FA235)*100","v":35.6666666666666},{"$f":"(Quarterly!FB239-Quarterly!FB235)*100","v":80.666666666666572},"--",{"$f":"(Quarterly!FD239-Quarterly!FD235)*100","v":1.0000000000000231},{"$f":"(Quarterly!FE239-Quarterly!FE235)*100","v":26},{"$f":"(Quarterly!FF239-Quarterly!FF235)*100","v":35.333333333333329},{"$f":"(Quarterly!FG239-Quarterly!FG235)*100","v":23.333333333333318},{"$f":"(Quarterly!FH239-Quarterly!FH235)*100","v":-7.9999999999999849},{"$f":"(Quarterly!FI239-Quarterly!FI235)*100","v":-4.6666666666666856},null,null,null,null,null,null,{"$f":"((Quarterly!FP239/Quarterly!FP235)-1)","v":0.10719944144579596},{"$f":"((Quarterly!FQ239/Quarterly!FQ235)-1)","v":4.9009808375871877E-2},{"$f":"((Quarterly!FR239/Quarterly!FR235)-1)","v":0.20682828075635951},{"$f":"((Quarterly!FS239/Quarterly!FS235)-1)","v":-2.0808666824532418E-2},{"$f":"((Quarterly!FT239/Quarterly!FT235)-1)","v":7.8251482664732031E-2},{"$f":"((Quarterly!FU239/Quarterly!FU235)-1)","v":4.1570215833667046E-2},{"$f":"((Quarterly!FV239/Quarterly!FV235)-1)","v":-0.10156518162063544},{"$f":"((Quarterly!FW239/Quarterly!FW235)-1)","v":-7.3681391802555285E-2},{"$f":"((Quarterly!FX239/Quarterly!FX235)-1)","v":-4.1718236222078042E-3},null,null,null,null,null,{"$f":"((Quarterly!GD239/Quarterly!GD235)-1)","v":-0.3163713775580278},{"$f":"((Quarterly!GE239/Quarterly!GE235)-1)","v":-0.37502318392581147},{"$f":"((Quarterly!GF239/Quarterly!GF235)-1)","v":-0.14953933380581141},{"$f":"((Quarterly!GG239/Quarterly!GG235)-1)","v":-0.28804844606946989},{"$f":"((Quarterly!GH239/Quarterly!GH235)-1)","v":0.11107796340493237},{"$f":"((Quarterly!GI239/Quarterly!GI235)-1)","v":6.2060405461314971E-3},{"$f":"((Quarterly!GJ239/Quarterly!GJ235)-1)","v":-0.29181494661921703},{"$f":"((Quarterly!GK239/Quarterly!GK235)-1)","v":-0.11911576079917441},{"$f":"((Quarterly!GL239/Quarterly!GL235)-1)","v":-2.4330415837121033E-2}]
["16'Q2",{"$f":"((Quarterly!B240/Quarterly!B236)-1)","v":2.4584617976320944E-2},{"$f":"((Quarterly!C240/Quarterly!C236)-1)","v":1.2309602476512582E-2},{"$f":"((Quarterly!D240/Quarterly!D236)-1)","v":1.7992203998474121E-2},{"$f":"((Quarterly!E240/Quarterly!E236)-1)","v":2.7591816862061691E-2},{"$f":"((Quarterly!F240/Quarterly!F236)-1)","v":4.6359814118167808E-2},{"$f":"((Quarterly!G240/Quarterly!G236)-1)","v":3.3823831359934164E-2},{"$f":"((Quarterly!H240/Quarterly!H236)-1)","v":2.2571215212006557E-2},{"$f":"((Quarterly!I240/Quarterly!I236)-1)","v":-1.1375816616958856E-2},{"$f":"((Quarterly!J240/Quarterly!J236)-1)","v":1.0460309711697535E-2},{"$f":"((Quarterly!K240/Quarterly!K236)-1)","v":6.4265262500861953E-2},{"$f":"((Quarterly!L240-Quarterly!L236))","v":-93.356999999999999},{"$f":"((Quarterly!M240/Quarterly!M236)-1)","v":4.8315958675073656E-3},{"$f":"((Quarterly!N240/Quarterly!N236)-1)","v":-1.5511368587940777E-2},{"$f":"((Quarterly!O240/Quarterly!O236)-1)","v":8.7785577730733921E-2},{"$f":"((Quarterly!P240/Quarterly!P236)-1)","v":5.7109919319693336E-3},{"$f":"((Quarterly!Q240/Quarterly!Q236)-1)","v":0.16513044228709317},null,null,null,null,null,{"$f":"((Quarterly!W240/Quarterly!W236)-1)","v":-5.2700922266140093E-3},{"$f":"((Quarterly!X240/Quarterly!X236)-1)","v":-1.4756944444444309E-2},{"$f":"((Quarterly!Y240/Quarterly!Y236)-1)","v":0.10097177310562344},{"$f":"Quarterly!Z240-Quarterly!Z236","v":-0.56000000000000005},{"$f":"((Quarterly!AA240/Quarterly!AA236)-1)","v":-5.2761878661152561E-2},{"$f":"((Quarterly!AB240/Quarterly!AB236)-1)","v":-8.0407673022262482E-2},{"$f":"Quarterly!AC240-Quarterly!AC236","v":-30.400000000000002},{"$f":"Quarterly!AD240-Quarterly!AD236","v":-7},{"$f":"(Quarterly!AE240-Quarterly!AE236)*100","v":-97.000000000000014},{"$f":"(Quarterly!AF240-Quarterly!AF236)*100","v":-56.000000000000007},{"$f":"(Quarterly!AG240-Quarterly!AG236)*100","v":-42.000000000000014},{"$f":"((Quarterly!AH240/Quarterly!AH236)-1)","v":0.15166126904162169},{"$f":"((Quarterly!AI240/Quarterly!AI236)-1)","v":0.12613254448895761},{"$f":"((Quarterly!AJ240/Quarterly!AJ236)-1)","v":1.7713365539452575E-2},{"$f":"((Quarterly!AK240/Quarterly!AK236)-1)","v":2.3538961038960915E-2},{"$f":"((Quarterly!AL240/Quarterly!AL236)-1)","v":2.6058631921824116E-2},{"$f":"((Quarterly!AM240/Quarterly!AM236)-1)","v":-1.3387895547828155E-2},{"$f":"((Quarterly!AN240/Quarterly!AN236)-1)","v":1.4153317084073525E-3},{"$f":"((Quarterly!AO240/Quarterly!AO236)-1)","v":1.4038979417911213E-2},{"$f":"(Quarterly!AP240-Quarterly!AP236)*100","v":3.6666666666666847},{"$f":"Quarterly!AQ240-Quarterly!AQ236","v":-0.8333333333333286},{"$f":"Quarterly!AR240-Quarterly!AR236","v":0},{"$f":"Quarterly!AS240-Quarterly!AS236","v":3},{"$f":"Quarterly!AT240-Quarterly!AT236","v":-2.2333333333333343},{"$f":"Quarterly!AU240-Quarterly!AU236","v":2.5},{"$f":"Quarterly!AV240-Quarterly!AV236","v":-3.5},{"$f":"Quarterly!AW240-Quarterly!AW236","v":-5},{"$f":"Quarterly!AX240-Quarterly!AX236","v":1.0666666666666629},{"$f":"Quarterly!AY240-Quarterly!AY236","v":14.5},{"$f":"Quarterly!AZ240-Quarterly!AZ236","v":-1},{"$f":"Quarterly!BA240-Quarterly!BA236","v":2.9999999999999929},{"$f":"Quarterly!BB240-Quarterly!BB236","v":-3.0999999999999943},{"$f":"((Quarterly!BC240/Quarterly!BC236)-1)","v":-5.8310008636207611E-2},{"$f":"((Quarterly!BD240/Quarterly!BD236)-1)","v":3.0018095415265122E-3},{"$f":"((Quarterly!BE240/Quarterly!BE236)-1)","v":1.3978875887782127E-2},{"$f":"((Quarterly!BF240/Quarterly!BF236)-1)","v":1.5801196663318251E-2},{"$f":"((Quarterly!BG240/Quarterly!BG236)-1)","v":-4.1370551264929833E-3},{"$f":"((Quarterly!BH240/Quarterly!BH236)-1)","v":4.9173215060500652E-3},{"$f":"((Quarterly!BI240/Quarterly!BI236)-1)","v":2.0015900481691107E-2},{"$f":"((Quarterly!BJ240/Quarterly!BJ236)-1)","v":-4.6640603603568809E-2},{"$f":"((Quarterly!BK240/Quarterly!BK236)-1)","v":-0.5185185185185186},null,{"$f":"((Quarterly!BM240/Quarterly!BM236)-1)","v":2.6889265347927793E-2},{"$f":"((Quarterly!BN240/Quarterly!BN236)-1)","v":2.266937819850412E-2},null,null,null,null,null,{"$f":"((Quarterly!BT240/Quarterly!BT236)-1)","v":7.7066099990297676E-2},{"$f":"Quarterly!BU240-Quarterly!BU236","v":-5.6239999999998957E-2},{"$f":"Quarterly!BV240-Quarterly!BV236","v":6.2510000000001398E-2},{"$f":"((Quarterly!BW240/Quarterly!BW236)-1)","v":-4.2463662898374332E-3},{"$f":"((Quarterly!BX240/Quarterly!BX236)-1)","v":1.730602826651273E-3},{"$f":"((Quarterly!BY240/Quarterly!BY236)-1)","v":-6.902002107481553E-2},{"$f":"((Quarterly!BZ240/Quarterly!BZ236)-1)","v":5.2170502092049986E-2},{"$f":"((Quarterly!CA240/Quarterly!CA236)-1)","v":-3.7378855898728691E-3},{"$f":"((Quarterly!CB240/Quarterly!CB236)-1)","v":9.4280590160959132E-2},{"$f":"((Quarterly!CC240/Quarterly!CC236)-1)","v":1.5007713787849264E-2},{"$f":"((Quarterly!CD240/Quarterly!CD236)-1)","v":0.14715189873417711},{"$f":"((Quarterly!CE240/Quarterly!CE236)-1)","v":0.13851351351351338},null,{"$f":"((Quarterly!CG240/Quarterly!CG236)-1)","v":-5.6296296296296178E-2},{"$f":"((Quarterly!CH240/Quarterly!CH236)-1)","v":3.7247474747474696E-2},null,{"$f":"((Quarterly!CJ240/Quarterly!CJ236)-1)","v":0.13851351351351338},{"$f":"((Quarterly!CK240/Quarterly!CK236)-1)","v":2.5392924354005642E-2},{"$f":"((Quarterly!CL240/Quarterly!CL236)-1)","v":-0.11748450515179032},{"$f":"((Quarterly!CM240/Quarterly!CM236)-1)","v":6.276346604215477E-2},{"$f":"((Quarterly!CN240/Quarterly!CN236)-1)","v":1.7160456036903637E-2},{"$f":"((Quarterly!CO240/Quarterly!CO236)-1)","v":7.3268630407543611E-2},{"$f":"((Quarterly!CP240/Quarterly!CP236)-1)","v":2.8663991004194811E-2},{"$f":"((Quarterly!CQ240/Quarterly!CQ236)-1)","v":6.9170638227999959E-3},{"$f":"((Quarterly!CR240/Quarterly!CR236)-1)","v":2.7257802998702063E-2},{"$f":"Quarterly!CS240-Quarterly!CS236","v":-1.833333333333357},{"$f":"Quarterly!CT240-Quarterly!CT236","v":-1.4000000000000057},null,null,null,null,null,{"$f":"((Quarterly!CZ240/Quarterly!CZ236)-1)","v":1.0697934303620871E-2},{"$f":"((Quarterly!DA240/Quarterly!DA236)-1)","v":2.1906105656307462E-2},null,null,null,null,null,{"$f":"((Quarterly!DG240/Quarterly!DG236)-1)","v":1.6611295681063121E-2},{"$f":"((Quarterly!DH240-Quarterly!DH236)*60)","v":-1.9999999999998863},{"$f":"Quarterly!DI240-Quarterly!DI236","v":-6.6666666666648666E-2},{"$f":"(Quarterly!DJ240-Quarterly!DJ236)*100","v":-100},{"$f":"(Quarterly!DK240-Quarterly!DK236)*100","v":-53.333333333333321},{"$f":"((Quarterly!DL240/Quarterly!DL236)-1)","v":1.1352578657151113E-3},null,null,null,{"$f":"((Quarterly!DP240/Quarterly!DP236)-1)","v":1.7412302400640733E-2},null,null,null,null,{"$f":"Quarterly!DU240-Quarterly!DU236","v":-0.86666666666666714},{"$f":"((Quarterly!DV240/Quarterly!DV236)-1)","v":-2.1118354604718892E-3},{"$f":"((Quarterly!DW240/Quarterly!DW236)-1)","v":-1.8606146919647459E-3},{"$f":"((Quarterly!DX240/Quarterly!DX236)-1)","v":7.438572871087068E-3},{"$f":"((Quarterly!DY240/Quarterly!DY236)-1)","v":2.4057850090390742E-2},{"$f":"((Quarterly!DZ240/Quarterly!DZ236)-1)","v":2.1315333718192608E-3},{"$f":"((Quarterly!EA240/Quarterly!EA236)-1)","v":8.4480808887115177E-3},{"$f":"((Quarterly!EB240/Quarterly!EB236)-1)","v":-1.0553032327010325E-2},{"$f":"((Quarterly!EC240/Quarterly!EC236)-1)","v":-2.1987559670186618E-2},null,null,null,null,null,{"$f":"((Quarterly!EI240/Quarterly!EI236)-1)","v":1.1531585366705288E-2},{"$f":"((Quarterly!EJ240/Quarterly!EJ236)-1)","v":2.4218063994604133E-2},{"$f":"((Quarterly!EK240/Quarterly!EK236)-1)","v":2.2806253842178714E-2},null,null,null,null,null,{"$f":"((Quarterly!EQ240/Quarterly!EQ236)-1)","v":-3.9716801934035484E-2},null,null,null,null,null,null,null,{"$f":"(Quarterly!EY240-Quarterly!EY236)*100","v":25},{"$f":"(Quarterly!EZ240-Quarterly!EZ236)*100","v":25},{"$f":"(Quarterly!FA240-Quarterly!FA236)*100","v":-30.666666666666707},{"$f":"(Quarterly!FB240-Quarterly!FB236)*100","v":-16.666666666666607},"--",{"$f":"(Quarterly!FD240-Quarterly!FD236)*100","v":-23.666666666666679},{"$f":"(Quarterly!FE240-Quarterly!FE236)*100","v":23.666666666666668},{"$f":"(Quarterly!FF240-Quarterly!FF236)*100","v":31.666666666666664},{"$f":"(Quarterly!FG240-Quarterly!FG236)*100","v":16.000000000000004},{"$f":"(Quarterly!FH240-Quarterly!FH236)*100","v":-28.000000000000004},{"$f":"(Quarterly!FI240-Quarterly!FI236)*100","v":-41.333333333333336},null,null,null,null,null,null,{"$f":"((Quarterly!FP240/Quarterly!FP236)-1)","v":4.8240143174792749E-2},{"$f":"((Quarterly!FQ240/Quarterly!FQ236)-1)","v":5.2703697534081773E-2},{"$f":"((Quarterly!FR240/Quarterly!FR236)-1)","v":0.18097146873660308},{"$f":"((Quarterly!FS240/Quarterly!FS236)-1)","v":2.032214360981488E-2},{"$f":"((Quarterly!FT240/Quarterly!FT236)-1)","v":4.8768577309770578E-2},{"$f":"((Quarterly!FU240/Quarterly!FU236)-1)","v":-4.2549356251830872E-3},{"$f":"((Quarterly!FV240/Quarterly!FV236)-1)","v":-9.0082670598124581E-2},{"$f":"((Quarterly!FW240/Quarterly!FW236)-1)","v":-6.5258113327246514E-2},{"$f":"((Quarterly!FX240/Quarterly!FX236)-1)","v":-1.700754912846647E-2},null,null,null,null,null,{"$f":"((Quarterly!GD240/Quarterly!GD236)-1)","v":-0.21505128500633852},{"$f":"((Quarterly!GE240/Quarterly!GE236)-1)","v":-0.26210287443267766},{"$f":"((Quarterly!GF240/Quarterly!GF236)-1)","v":-0.14413977190002436},{"$f":"((Quarterly!GG240/Quarterly!GG236)-1)","v":-0.19349174762963817},{"$f":"((Quarterly!GH240/Quarterly!GH236)-1)","v":6.2088259182384364E-2},{"$f":"((Quarterly!GI240/Quarterly!GI236)-1)","v":0.11150272348606216},{"$f":"((Quarterly!GJ240/Quarterly!GJ236)-1)","v":-0.18248175182481752},{"$f":"((Quarterly!GK240/Quarterly!GK236)-1)","v":-5.3475935828876109E-3},{"$f":"((Quarterly!GL240/Quarterly!GL236)-1)","v":-2.9567149709339158E-2}]
["16'Q3",{"$f":"((Quarterly!B241/Quarterly!B237)-1)","v":2.750985053563304E-2},{"$f":"((Quarterly!C241/Quarterly!C237)-1)","v":1.5160168268967711E-2},{"$f":"((Quarterly!D241/Quarterly!D237)-1)","v":1.9918007289080553E-2},{"$f":"((Quarterly!E241/Quarterly!E237)-1)","v":2.7738052763337517E-2},{"$f":"((Quarterly!F241/Quarterly!F237)-1)","v":5.707602850522453E-2},{"$f":"((Quarterly!G241/Quarterly!G237)-1)","v":2.3841795657241871E-2},{"$f":"((Quarterly!H241/Quarterly!H237)-1)","v":2.4231989125509612E-2},{"$f":"((Quarterly!I241/Quarterly!I237)-1)","v":-6.6129235420077093E-3},{"$f":"((Quarterly!J241/Quarterly!J237)-1)","v":-3.1594294998771311E-3},{"$f":"((Quarterly!K241/Quarterly!K237)-1)","v":2.5732028803453488E-2},{"$f":"((Quarterly!L241-Quarterly!L237))","v":-78.615000000000009},{"$f":"((Quarterly!M241/Quarterly!M237)-1)","v":7.1304130713059077E-3},{"$f":"((Quarterly!N241/Quarterly!N237)-1)","v":9.956565665125261E-3},{"$f":"((Quarterly!O241/Quarterly!O237)-1)","v":-3.602659710463918E-3},{"$f":"((Quarterly!P241/Quarterly!P237)-1)","v":4.0457010142123107E-3},{"$f":"((Quarterly!Q241/Quarterly!Q237)-1)","v":7.1863102266054746E-2},null,null,null,null,null,{"$f":"((Quarterly!W241/Quarterly!W237)-1)","v":-9.2105263157895578E-3},{"$f":"((Quarterly!X241/Quarterly!X237)-1)","v":-1.2168622338113888E-2},{"$f":"((Quarterly!Y241/Quarterly!Y237)-1)","v":8.8785816930861294E-2},{"$f":"Quarterly!Z241-Quarterly!Z237","v":-0.42999999999999994},{"$f":"((Quarterly!AA241/Quarterly!AA237)-1)","v":3.7607451980958828E-3},{"$f":"((Quarterly!AB241/Quarterly!AB237)-1)","v":-2.1962120734704604E-2},{"$f":"Quarterly!AC241-Quarterly!AC237","v":-34},{"$f":"Quarterly!AD241-Quarterly!AD237","v":-4.3000000000000007},{"$f":"(Quarterly!AE241-Quarterly!AE237)*100","v":-89.000000000000014},{"$f":"(Quarterly!AF241-Quarterly!AF237)*100","v":-42.999999999999993},{"$f":"(Quarterly!AG241-Quarterly!AG237)*100","v":-32.999999999999993},{"$f":"((Quarterly!AH241/Quarterly!AH237)-1)","v":0.15364622439903419},{"$f":"((Quarterly!AI241/Quarterly!AI237)-1)","v":0.12906806029165963},{"$f":"((Quarterly!AJ241/Quarterly!AJ237)-1)","v":1.7628205128205066E-2},{"$f":"((Quarterly!AK241/Quarterly!AK237)-1)","v":2.1774193548387055E-2},{"$f":"((Quarterly!AL241/Quarterly!AL237)-1)","v":2.4271844660194164E-2},{"$f":"((Quarterly!AM241/Quarterly!AM237)-1)","v":-1.2370864792057068E-2},{"$f":"((Quarterly!AN241/Quarterly!AN237)-1)","v":-9.6733445832208886E-4},{"$f":"((Quarterly!AO241/Quarterly!AO237)-1)","v":1.0283083657610881E-2},{"$f":"(Quarterly!AP241-Quarterly!AP237)*100","v":1.3333333333333197},{"$f":"Quarterly!AQ241-Quarterly!AQ237","v":0.19999999999999574},{"$f":"Quarterly!AR241-Quarterly!AR237","v":4.1666666666666643},{"$f":"Quarterly!AS241-Quarterly!AS237","v":0.6666666666666643},{"$f":"Quarterly!AT241-Quarterly!AT237","v":-2.3333333333333428},{"$f":"Quarterly!AU241-Quarterly!AU237","v":5.3333333333333357},{"$f":"Quarterly!AV241-Quarterly!AV237","v":-2},{"$f":"Quarterly!AW241-Quarterly!AW237","v":0.5},{"$f":"Quarterly!AX241-Quarterly!AX237","v":0.93333333333332291},{"$f":"Quarterly!AY241-Quarterly!AY237","v":13.333333333333329},{"$f":"Quarterly!AZ241-Quarterly!AZ237","v":-1.1999999999999886},{"$f":"Quarterly!BA241-Quarterly!BA237","v":1.0666666666666629},{"$f":"Quarterly!BB241-Quarterly!BB237","v":-4.8000000000000043},{"$f":"((Quarterly!BC241/Quarterly!BC237)-1)","v":-4.680500912854535E-2},{"$f":"((Quarterly!BD241/Quarterly!BD237)-1)","v":-4.1278888916912448E-3},{"$f":"((Quarterly!BE241/Quarterly!BE237)-1)","v":2.315322875648218E-2},{"$f":"((Quarterly!BF241/Quarterly!BF237)-1)","v":1.9345847306301955E-2},{"$f":"((Quarterly!BG241/Quarterly!BG237)-1)","v":-1.2194440824381259E-3},{"$f":"((Quarterly!BH241/Quarterly!BH237)-1)","v":7.7987008599804675E-3},{"$f":"((Quarterly!BI241/Quarterly!BI237)-1)","v":2.0585951024151061E-2},{"$f":"((Quarterly!BJ241/Quarterly!BJ237)-1)","v":-5.8228101920627884E-2},{"$f":"((Quarterly!BK241/Quarterly!BK237)-1)","v":-0.44791666666666663},null,{"$f":"((Quarterly!BM241/Quarterly!BM237)-1)","v":2.5773994783799159E-2},{"$f":"((Quarterly!BN241/Quarterly!BN237)-1)","v":2.1768540774261158E-2},null,null,null,null,null,{"$f":"((Quarterly!BT241/Quarterly!BT237)-1)","v":8.3998187240842404E-2},{"$f":"Quarterly!BU241-Quarterly!BU237","v":-4.1230000000000544E-2},{"$f":"Quarterly!BV241-Quarterly!BV237","v":5.5019999999998959E-2},{"$f":"((Quarterly!BW241/Quarterly!BW237)-1)","v":-7.1163269298846199E-4},{"$f":"((Quarterly!BX241/Quarterly!BX237)-1)","v":-9.7616996841802806E-3},{"$f":"((Quarterly!BY241/Quarterly!BY237)-1)","v":6.6413107080163902E-2},{"$f":"((Quarterly!BZ241/Quarterly!BZ237)-1)","v":5.0981557491224461E-2},{"$f":"((Quarterly!CA241/Quarterly!CA237)-1)","v":-1.3038985439173478E-2},{"$f":"((Quarterly!CB241/Quarterly!CB237)-1)","v":0.15322234167136295},{"$f":"((Quarterly!CC241/Quarterly!CC237)-1)","v":7.5231430389467224E-2},{"$f":"((Quarterly!CD241/Quarterly!CD237)-1)","v":9.7560975609756184E-2},{"$f":"((Quarterly!CE241/Quarterly!CE237)-1)","v":0.19836956521739135},null,{"$f":"((Quarterly!CG241/Quarterly!CG237)-1)","v":-8.4821428571428603E-2},{"$f":"((Quarterly!CH241/Quarterly!CH237)-1)","v":-4.3183220234422892E-3},null,{"$f":"((Quarterly!CJ241/Quarterly!CJ237)-1)","v":0.19836956521739135},{"$f":"((Quarterly!CK241/Quarterly!CK237)-1)","v":2.5759120755344922E-2},{"$f":"((Quarterly!CL241/Quarterly!CL237)-1)","v":-0.17562854825628549},{"$f":"((Quarterly!CM241/Quarterly!CM237)-1)","v":1.6934046345810971E-2},{"$f":"((Quarterly!CN241/Quarterly!CN237)-1)","v":1.4310763276346838E-2},{"$f":"((Quarterly!CO241/Quarterly!CO237)-1)","v":7.8038564550984235E-2},{"$f":"((Quarterly!CP241/Quarterly!CP237)-1)","v":2.7332965689560895E-2},{"$f":"((Quarterly!CQ241/Quarterly!CQ237)-1)","v":6.8979824697890102E-3},{"$f":"((Quarterly!CR241/Quarterly!CR237)-1)","v":2.971791287878589E-2},{"$f":"Quarterly!CS241-Quarterly!CS237","v":-0.40000000000000568},{"$f":"Quarterly!CT241-Quarterly!CT237","v":2.3666666666666742},null,null,null,null,null,{"$f":"((Quarterly!CZ241/Quarterly!CZ237)-1)","v":1.1412682253763018E-2},{"$f":"((Quarterly!DA241/Quarterly!DA237)-1)","v":2.2264074796529254E-2},null,null,null,null,null,{"$f":"((Quarterly!DG241/Quarterly!DG237)-1)","v":1.5901590159015822E-2},{"$f":"((Quarterly!DH241-Quarterly!DH237)*60)","v":-4.000000000000199},{"$f":"Quarterly!DI241-Quarterly!DI237","v":0.30000000000000426},{"$f":"(Quarterly!DJ241-Quarterly!DJ237)*100","v":-46.666666666666679},{"$f":"(Quarterly!DK241-Quarterly!DK237)*100","v":-20.000000000000018},{"$f":"((Quarterly!DL241/Quarterly!DL237)-1)","v":-3.779187474693968E-4},null,null,null,{"$f":"((Quarterly!DP241/Quarterly!DP237)-1)","v":1.7753200031894956E-2},null,null,null,null,{"$f":"Quarterly!DU241-Quarterly!DU237","v":-0.63333333333333286},{"$f":"((Quarterly!DV241/Quarterly!DV237)-1)","v":-4.8456035290622701E-3},{"$f":"((Quarterly!DW241/Quarterly!DW237)-1)","v":-6.1784071435014853E-3},{"$f":"((Quarterly!DX241/Quarterly!DX237)-1)","v":-1.4576293646061389E-3},{"$f":"((Quarterly!DY241/Quarterly!DY237)-1)","v":9.4671355152842196E-4},{"$f":"((Quarterly!DZ241/Quarterly!DZ237)-1)","v":-2.2376272376271045E-3},{"$f":"((Quarterly!EA241/Quarterly!EA237)-1)","v":9.8457499179516184E-4},{"$f":"((Quarterly!EB241/Quarterly!EB237)-1)","v":-8.1823959326341456E-3},{"$f":"((Quarterly!EC241/Quarterly!EC237)-1)","v":-1.6240643976839331E-2},null,null,null,null,null,{"$f":"((Quarterly!EI241/Quarterly!EI237)-1)","v":1.2894383071944349E-2},{"$f":"((Quarterly!EJ241/Quarterly!EJ237)-1)","v":2.5316555012327102E-2},{"$f":"((Quarterly!EK241/Quarterly!EK237)-1)","v":2.3990612763027386E-2},null,null,null,null,null,{"$f":"((Quarterly!EQ241/Quarterly!EQ237)-1)","v":-2.3830231344581843E-2},null,null,null,null,null,null,null,{"$f":"(Quarterly!EY241-Quarterly!EY237)*100","v":25},{"$f":"(Quarterly!EZ241-Quarterly!EZ237)*100","v":26},{"$f":"(Quarterly!FA241-Quarterly!FA237)*100","v":-75.000000000000043},{"$f":"(Quarterly!FB241-Quarterly!FB237)*100","v":-98.666666666666629},"--",{"$f":"(Quarterly!FD241-Quarterly!FD237)*100","v":-50.3333333333333},{"$f":"(Quarterly!FE241-Quarterly!FE237)*100","v":25.666666666666664},{"$f":"(Quarterly!FF241-Quarterly!FF237)*100","v":20.666666666666671},{"$f":"(Quarterly!FG241-Quarterly!FG237)*100","v":3.3333333333333326},{"$f":"(Quarterly!FH241-Quarterly!FH237)*100","v":-42.666666666666671},{"$f":"(Quarterly!FI241-Quarterly!FI237)*100","v":-65.6666666666667},null,null,null,null,null,null,{"$f":"((Quarterly!FP241/Quarterly!FP237)-1)","v":-3.0043792646908818E-3},{"$f":"((Quarterly!FQ241/Quarterly!FQ237)-1)","v":5.7072917988410854E-2},{"$f":"((Quarterly!FR241/Quarterly!FR237)-1)","v":0.14210265954642942},{"$f":"((Quarterly!FS241/Quarterly!FS237)-1)","v":3.5369582159343604E-3},{"$f":"((Quarterly!FT241/Quarterly!FT237)-1)","v":2.2481517804634032E-2},{"$f":"((Quarterly!FU241/Quarterly!FU237)-1)","v":-1.4394452990044049E-2},{"$f":"((Quarterly!FV241/Quarterly!FV237)-1)","v":-6.9800861148206494E-2},{"$f":"((Quarterly!FW241/Quarterly!FW237)-1)","v":-4.838681372343312E-2},{"$f":"((Quarterly!FX241/Quarterly!FX237)-1)","v":-1.4582294589352562E-2},null,null,null,null,null,{"$f":"((Quarterly!GD241/Quarterly!GD237)-1)","v":-3.3759183057931352E-2},{"$f":"((Quarterly!GE241/Quarterly!GE237)-1)","v":-8.852023888520244E-2},{"$f":"((Quarterly!GF241/Quarterly!GF237)-1)","v":-0.13782845810609823},{"$f":"((Quarterly!GG241/Quarterly!GG237)-1)","v":-9.3559837728194761E-2},{"$f":"((Quarterly!GH241/Quarterly!GH237)-1)","v":0.14498830739456481},{"$f":"((Quarterly!GI241/Quarterly!GI237)-1)","v":9.2088197146563022E-2},{"$f":"((Quarterly!GJ241/Quarterly!GJ237)-1)","v":2.1951219512194919E-2},{"$f":"((Quarterly!GK241/Quarterly!GK237)-1)","v":-1.2641019126450326E-2},{"$f":"((Quarterly!GL241/Quarterly!GL237)-1)","v":-3.3253591964375051E-3}]
["16'Q4",{"$f":"((Quarterly!B242/Quarterly!B238)-1)","v":3.3811525050327473E-2},{"$f":"((Quarterly!C242/Quarterly!C238)-1)","v":1.8359197175134456E-2},{"$f":"((Quarterly!D242/Quarterly!D238)-1)","v":1.8700426396619951E-2},{"$f":"((Quarterly!E242/Quarterly!E238)-1)","v":2.8373240220517904E-2},{"$f":"((Quarterly!F242/Quarterly!F238)-1)","v":6.9649695999307815E-2},{"$f":"((Quarterly!G242/Quarterly!G238)-1)","v":2.4550050556117364E-2},{"$f":"((Quarterly!H242/Quarterly!H238)-1)","v":2.2979604700373635E-2},{"$f":"((Quarterly!I242/Quarterly!I238)-1)","v":6.7526689626555836E-3},{"$f":"((Quarterly!J242/Quarterly!J238)-1)","v":-2.9268028598061768E-4},{"$f":"((Quarterly!K242/Quarterly!K238)-1)","v":2.5113024252632288E-2},{"$f":"((Quarterly!L242-Quarterly!L238))","v":-5.1490000000000009},{"$f":"((Quarterly!M242/Quarterly!M238)-1)","v":2.6836348730179482E-2},{"$f":"((Quarterly!N242/Quarterly!N238)-1)","v":5.8993572214922629E-3},{"$f":"((Quarterly!O242/Quarterly!O238)-1)","v":0.10420366563142536},{"$f":"((Quarterly!P242/Quarterly!P238)-1)","v":3.7872313629536691E-3},{"$f":"((Quarterly!Q242/Quarterly!Q238)-1)","v":0.25682022214789901},null,null,null,null,null,{"$f":"((Quarterly!W242/Quarterly!W238)-1)","v":-3.9577836411609502E-3},{"$f":"((Quarterly!X242/Quarterly!X238)-1)","v":-3.5087719298245723E-3},{"$f":"((Quarterly!Y242/Quarterly!Y238)-1)","v":8.0594985720875201E-2},{"$f":"Quarterly!Z242-Quarterly!Z238","v":-0.38},{"$f":"((Quarterly!AA242/Quarterly!AA238)-1)","v":0.19565269743073799},{"$f":"((Quarterly!AB242/Quarterly!AB238)-1)","v":0.14074852037771146},{"$f":"Quarterly!AC242-Quarterly!AC238","v":-41.2},{"$f":"Quarterly!AD242-Quarterly!AD238","v":-4.5},{"$f":"(Quarterly!AE242-Quarterly!AE238)*100","v":-75.999999999999972},{"$f":"(Quarterly!AF242-Quarterly!AF238)*100","v":-38},{"$f":"(Quarterly!AG242-Quarterly!AG238)*100","v":-29.000000000000004},{"$f":"((Quarterly!AH242/Quarterly!AH238)-1)","v":0.14205107454365606},{"$f":"((Quarterly!AI242/Quarterly!AI238)-1)","v":9.9987606351529035E-2},{"$f":"((Quarterly!AJ242/Quarterly!AJ238)-1)","v":1.7557861133280062E-2},{"$f":"((Quarterly!AK242/Quarterly!AK238)-1)","v":2.1669341894061001E-2},{"$f":"((Quarterly!AL242/Quarterly!AL238)-1)","v":2.3330651649235756E-2},{"$f":"((Quarterly!AM242/Quarterly!AM238)-1)","v":-1.3837378258302335E-3},{"$f":"((Quarterly!AN242/Quarterly!AN238)-1)","v":5.0594498351910211E-3},{"$f":"((Quarterly!AO242/Quarterly!AO238)-1)","v":1.6499340957557118E-2},{"$f":"(Quarterly!AP242-Quarterly!AP238)*100","v":-2.3333333333333428},{"$f":"Quarterly!AQ242-Quarterly!AQ238","v":4.5999999999999943},{"$f":"Quarterly!AR242-Quarterly!AR238","v":5.6666666666666714},{"$f":"Quarterly!AS242-Quarterly!AS238","v":-1.8333333333333357},{"$f":"Quarterly!AT242-Quarterly!AT238","v":3.6999999999999957},{"$f":"Quarterly!AU242-Quarterly!AU238","v":4.8333333333333357},{"$f":"Quarterly!AV242-Quarterly!AV238","v":3.8333333333333357},{"$f":"Quarterly!AW242-Quarterly!AW238","v":3.5},{"$f":"Quarterly!AX242-Quarterly!AX238","v":4.93333333333333},{"$f":"Quarterly!AY242-Quarterly!AY238","v":22.166666666666664},{"$f":"Quarterly!AZ242-Quarterly!AZ238","v":6},{"$f":"Quarterly!BA242-Quarterly!BA238","v":3.36666666666666},{"$f":"Quarterly!BB242-Quarterly!BB238","v":-0.13333333333332575},{"$f":"((Quarterly!BC242/Quarterly!BC238)-1)","v":-2.2419252691576963E-2},{"$f":"((Quarterly!BD242/Quarterly!BD238)-1)","v":4.7435767581620603E-3},{"$f":"((Quarterly!BE242/Quarterly!BE238)-1)","v":-1.8526284887500188E-2},{"$f":"((Quarterly!BF242/Quarterly!BF238)-1)","v":-3.2482638589719226E-3},{"$f":"((Quarterly!BG242/Quarterly!BG238)-1)","v":8.4135966720384481E-3},{"$f":"((Quarterly!BH242/Quarterly!BH238)-1)","v":-2.0985837426654719E-2},{"$f":"((Quarterly!BI242/Quarterly!BI238)-1)","v":-1.1568667120339993E-2},{"$f":"((Quarterly!BJ242/Quarterly!BJ238)-1)","v":7.4219892883285565E-2},{"$f":"((Quarterly!BK242/Quarterly!BK238)-1)","v":-0.42222222222222217},null,{"$f":"((Quarterly!BM242/Quarterly!BM238)-1)","v":3.8821464315276222E-2},{"$f":"((Quarterly!BN242/Quarterly!BN238)-1)","v":3.8239947385993123E-2},null,null,null,null,null,{"$f":"((Quarterly!BT242/Quarterly!BT238)-1)","v":7.7830228695310977E-2},{"$f":"Quarterly!BU242-Quarterly!BU238","v":0.12937999999999938},{"$f":"Quarterly!BV242-Quarterly!BV238","v":0.2502999999999993},{"$f":"((Quarterly!BW242/Quarterly!BW238)-1)","v":4.6130878997225899E-3},{"$f":"((Quarterly!BX242/Quarterly!BX238)-1)","v":0.11028757782389564},{"$f":"((Quarterly!BY242/Quarterly!BY238)-1)","v":4.245412215831279E-2},{"$f":"((Quarterly!BZ242/Quarterly!BZ238)-1)","v":5.2213228323488625E-2},{"$f":"((Quarterly!CA242/Quarterly!CA238)-1)","v":6.5382876092852094E-3},{"$f":"((Quarterly!CB242/Quarterly!CB238)-1)","v":0.20450314788416146},{"$f":"((Quarterly!CC242/Quarterly!CC238)-1)","v":0.10054510401858829},{"$f":"((Quarterly!CD242/Quarterly!CD238)-1)","v":9.3023255813953432E-2},{"$f":"((Quarterly!CE242/Quarterly!CE238)-1)","v":0.11664482306684132},null,{"$f":"((Quarterly!CG242/Quarterly!CG238)-1)","v":-6.768189509306255E-2},{"$f":"((Quarterly!CH242/Quarterly!CH238)-1)","v":6.6666666666666652E-2},null,{"$f":"((Quarterly!CJ242/Quarterly!CJ238)-1)","v":0.11664482306684132},{"$f":"((Quarterly!CK242/Quarterly!CK238)-1)","v":1.6265885396849589E-2},{"$f":"((Quarterly!CL242/Quarterly!CL238)-1)","v":-0.3892139303482588},{"$f":"((Quarterly!CM242/Quarterly!CM238)-1)","v":0.11249444197421088},{"$f":"((Quarterly!CN242/Quarterly!CN238)-1)","v":2.3644237811675239E-3},{"$f":"((Quarterly!CO242/Quarterly!CO238)-1)","v":7.7742915891831688E-2},{"$f":"((Quarterly!CP242/Quarterly!CP238)-1)","v":4.0825426001608545E-2},{"$f":"((Quarterly!CQ242/Quarterly!CQ238)-1)","v":6.8847065303252464E-3},{"$f":"((Quarterly!CR242/Quarterly!CR238)-1)","v":4.3377158865404386E-2},{"$f":"Quarterly!CS242-Quarterly!CS238","v":1.7666666666666657},{"$f":"Quarterly!CT242-Quarterly!CT238","v":11.833333333333329},null,null,null,null,null,{"$f":"((Quarterly!CZ242/Quarterly!CZ238)-1)","v":1.8104739342468701E-2},{"$f":"((Quarterly!DA242/Quarterly!DA238)-1)","v":2.1797327312118142E-2},null,null,null,null,null,{"$f":"((Quarterly!DG242/Quarterly!DG238)-1)","v":1.2816691505216138E-2},{"$f":"((Quarterly!DH242-Quarterly!DH238)*60)","v":-7.9999999999999716},{"$f":"Quarterly!DI242-Quarterly!DI238","v":0.13333333333334707},{"$f":"(Quarterly!DJ242-Quarterly!DJ238)*100","v":-53.333333333333321},{"$f":"(Quarterly!DK242-Quarterly!DK238)*100","v":-30.000000000000071},{"$f":"((Quarterly!DL242/Quarterly!DL238)-1)","v":-1.7540072319066624E-3},null,null,null,{"$f":"((Quarterly!DP242/Quarterly!DP238)-1)","v":1.6326530612244872E-2},null,null,null,null,{"$f":"Quarterly!DU242-Quarterly!DU238","v":-0.79999999999999893},{"$f":"((Quarterly!DV242/Quarterly!DV238)-1)","v":6.2150261443905119E-3},{"$f":"((Quarterly!DW242/Quarterly!DW238)-1)","v":6.6580021433291225E-3},{"$f":"((Quarterly!DX242/Quarterly!DX238)-1)","v":9.0737490479189109E-3},{"$f":"((Quarterly!DY242/Quarterly!DY238)-1)","v":7.7561573003128714E-3},{"$f":"((Quarterly!DZ242/Quarterly!DZ238)-1)","v":9.4975490196078649E-3},{"$f":"((Quarterly!EA242/Quarterly!EA238)-1)","v":1.6143790849673323E-2},{"$f":"((Quarterly!EB242/Quarterly!EB238)-1)","v":-3.9745627980921627E-3},{"$f":"((Quarterly!EC242/Quarterly!EC238)-1)","v":1.3177159590045395E-3},null,null,null,null,null,{"$f":"((Quarterly!EI242/Quarterly!EI238)-1)","v":2.4258430010496657E-2},{"$f":"((Quarterly!EJ242/Quarterly!EJ238)-1)","v":3.2937962232649109E-2},{"$f":"((Quarterly!EK242/Quarterly!EK238)-1)","v":2.9503924249269398E-2},null,null,null,null,null,{"$f":"((Quarterly!EQ242/Quarterly!EQ238)-1)","v":8.0833483024969066E-3},null,null,null,null,null,null,null,{"$f":"(Quarterly!EY242-Quarterly!EY238)*100","v":25.666666666666636},{"$f":"(Quarterly!EZ242-Quarterly!EZ238)*100","v":29.000000000000004},{"$f":"(Quarterly!FA242-Quarterly!FA238)*100","v":-18.333333333333357},{"$f":"(Quarterly!FB242-Quarterly!FB238)*100","v":-78.000000000000114},"--",{"$f":"(Quarterly!FD242-Quarterly!FD238)*100","v":-8.6666666666666003},{"$f":"(Quarterly!FE242-Quarterly!FE238)*100","v":30.666666666666664},{"$f":"(Quarterly!FF242-Quarterly!FF238)*100","v":29.333333333333332},{"$f":"(Quarterly!FG242-Quarterly!FG238)*100","v":17.333333333333321},{"$f":"(Quarterly!FH242-Quarterly!FH238)*100","v":2.3333333333333428},{"$f":"(Quarterly!FI242-Quarterly!FI238)*100","v":-5.9999999999999609},null,null,null,null,null,null,{"$f":"((Quarterly!FP242/Quarterly!FP238)-1)","v":-9.9840255591077121E-4},{"$f":"((Quarterly!FQ242/Quarterly!FQ238)-1)","v":6.9230207267945154E-2},{"$f":"((Quarterly!FR242/Quarterly!FR238)-1)","v":0.18160171394810809},{"$f":"((Quarterly!FS242/Quarterly!FS238)-1)","v":-1.5010351966873725E-2},{"$f":"((Quarterly!FT242/Quarterly!FT238)-1)","v":3.9118156330747E-2},{"$f":"((Quarterly!FU242/Quarterly!FU238)-1)","v":8.0454315056772696E-3},{"$f":"((Quarterly!FV242/Quarterly!FV238)-1)","v":1.7549034696215715E-2},{"$f":"((Quarterly!FW242/Quarterly!FW238)-1)","v":1.2745002524201077E-2},{"$f":"((Quarterly!FX242/Quarterly!FX238)-1)","v":4.4688887345536443E-3},null,null,null,null,null,{"$f":"((Quarterly!GD242/Quarterly!GD238)-1)","v":0.17131505760826382},{"$f":"((Quarterly!GE242/Quarterly!GE238)-1)","v":0.12875831994491627},{"$f":"((Quarterly!GF242/Quarterly!GF238)-1)","v":3.3721101457811598E-2},{"$f":"((Quarterly!GG242/Quarterly!GG238)-1)","v":1.4665570175438347E-2},{"$f":"((Quarterly!GH242/Quarterly!GH238)-1)","v":-4.7714514835605515E-2},{"$f":"((Quarterly!GI242/Quarterly!GI238)-1)","v":-0.12554381603480425},{"$f":"((Quarterly!GJ242/Quarterly!GJ238)-1)","v":0.42153937947494002},{"$f":"((Quarterly!GK242/Quarterly!GK238)-1)","v":3.9773050888299855E-2},{"$f":"((Quarterly!GL242/Quarterly!GL238)-1)","v":-2.6530729631014327E-2}]
["17'Q1",{"$f":"((Quarterly!B243/Quarterly!B239)-1)","v":3.9973289222096309E-2},{"$f":"((Quarterly!C243/Quarterly!C239)-1)","v":2.0014213496811761E-2},{"$f":"((Quarterly!D243/Quarterly!D239)-1)","v":2.2455054826371557E-2},{"$f":"((Quarterly!E243/Quarterly!E239)-1)","v":2.8651331521422074E-2},{"$f":"((Quarterly!F243/Quarterly!F239)-1)","v":6.6649399982733337E-2},{"$f":"((Quarterly!G243/Quarterly!G239)-1)","v":2.0707483357666145E-2},{"$f":"((Quarterly!H243/Quarterly!H239)-1)","v":2.5062656641603898E-2},{"$f":"((Quarterly!I243/Quarterly!I239)-1)","v":3.4805958768438394E-2},{"$f":"((Quarterly!J243/Quarterly!J239)-1)","v":2.7008446109224815E-2},{"$f":"((Quarterly!K243/Quarterly!K239)-1)","v":1.9857912342223116E-2},{"$f":"((Quarterly!L243-Quarterly!L239))","v":-39.429000000000002},{"$f":"((Quarterly!M243/Quarterly!M239)-1)","v":3.810799545762622E-2},{"$f":"((Quarterly!N243/Quarterly!N239)-1)","v":3.060703119042163E-2},{"$f":"((Quarterly!O243/Quarterly!O239)-1)","v":6.5045924637721297E-2},{"$f":"((Quarterly!P243/Quarterly!P239)-1)","v":-2.2595857586851231E-3},{"$f":"((Quarterly!Q243/Quarterly!Q239)-1)","v":-7.7361215934691807E-2},null,null,null,null,null,{"$f":"((Quarterly!W243/Quarterly!W239)-1)","v":0},{"$f":"((Quarterly!X243/Quarterly!X239)-1)","v":0},{"$f":"((Quarterly!Y243/Quarterly!Y239)-1)","v":5.1167374590993964E-2},{"$f":"Quarterly!Z243-Quarterly!Z239","v":-0.38},{"$f":"((Quarterly!AA243/Quarterly!AA239)-1)","v":0.11784655849448011},{"$f":"((Quarterly!AB243/Quarterly!AB239)-1)","v":3.6508371181480426E-2},{"$f":"Quarterly!AC243-Quarterly!AC239","v":-0.90000000000000036},{"$f":"Quarterly!AD243-Quarterly!AD239","v":14.2},{"$f":"(Quarterly!AE243-Quarterly!AE239)*100","v":-71},{"$f":"(Quarterly!AF243-Quarterly!AF239)*100","v":-38},{"$f":"(Quarterly!AG243-Quarterly!AG239)*100","v":-24},{"$f":"((Quarterly!AH243/Quarterly!AH239)-1)","v":0.1540539367772451},{"$f":"((Quarterly!AI243/Quarterly!AI239)-1)","v":9.7929685461503713E-2},{"$f":"((Quarterly!AJ243/Quarterly!AJ239)-1)","v":1.9062748212867353E-2},{"$f":"((Quarterly!AK243/Quarterly!AK239)-1)","v":2.3125996810207328E-2},{"$f":"((Quarterly!AL243/Quarterly!AL239)-1)","v":2.5579536370903488E-2},{"$f":"((Quarterly!AM243/Quarterly!AM239)-1)","v":5.8206720836015968E-3},{"$f":"((Quarterly!AN243/Quarterly!AN239)-1)","v":8.2898461295146664E-3},{"$f":"((Quarterly!AO243/Quarterly!AO239)-1)","v":2.8530271992327272E-2},{"$f":"(Quarterly!AP243-Quarterly!AP239)*100","v":-4.9999999999999822},{"$f":"Quarterly!AQ243-Quarterly!AQ239","v":7.1333333333333329},{"$f":"Quarterly!AR243-Quarterly!AR239","v":7.1666666666666643},{"$f":"Quarterly!AS243-Quarterly!AS239","v":-1.5},{"$f":"Quarterly!AT243-Quarterly!AT239","v":8.9000000000000057},{"$f":"Quarterly!AU243-Quarterly!AU239","v":7.6666666666666643},{"$f":"Quarterly!AV243-Quarterly!AV239","v":2.6666666666666643},{"$f":"Quarterly!AW243-Quarterly!AW239","v":4.5},{"$f":"Quarterly!AX243-Quarterly!AX239","v":9.5666666666666629},{"$f":"Quarterly!AY243-Quarterly!AY239","v":28.000000000000007},{"$f":"Quarterly!AZ243-Quarterly!AZ239","v":7.86666666666666},{"$f":"Quarterly!BA243-Quarterly!BA239","v":4.8000000000000043},{"$f":"Quarterly!BB243-Quarterly!BB239","v":3.7666666666666728},{"$f":"((Quarterly!BC243/Quarterly!BC239)-1)","v":1.657998100828717E-2},{"$f":"((Quarterly!BD243/Quarterly!BD239)-1)","v":2.0108535610616762E-3},{"$f":"((Quarterly!BE243/Quarterly!BE239)-1)","v":2.1799012671081197E-2},{"$f":"((Quarterly!BF243/Quarterly!BF239)-1)","v":1.8574100656835846E-2},{"$f":"((Quarterly!BG243/Quarterly!BG239)-1)","v":1.1718052566789039E-2},{"$f":"((Quarterly!BH243/Quarterly!BH239)-1)","v":-7.1128697582395484E-3},{"$f":"((Quarterly!BI243/Quarterly!BI239)-1)","v":6.7676412316923784E-3},{"$f":"((Quarterly!BJ243/Quarterly!BJ239)-1)","v":3.4401141940075597E-2},{"$f":"((Quarterly!BK243/Quarterly!BK239)-1)","v":-0.44186046511627908},null,{"$f":"((Quarterly!BM243/Quarterly!BM239)-1)","v":5.0578460508760914E-2},{"$f":"((Quarterly!BN243/Quarterly!BN239)-1)","v":5.1118256532202366E-2},null,null,null,null,null,{"$f":"((Quarterly!BT243/Quarterly!BT239)-1)","v":6.8124939272188323E-2},{"$f":"Quarterly!BU243-Quarterly!BU239","v":0.10524000000000022},{"$f":"Quarterly!BV243-Quarterly!BV239","v":0.15947000000000067},{"$f":"((Quarterly!BW243/Quarterly!BW239)-1)","v":3.2815102100123283E-3},{"$f":"((Quarterly!BX243/Quarterly!BX239)-1)","v":7.3121387283237027E-2},{"$f":"((Quarterly!BY243/Quarterly!BY239)-1)","v":7.8789608906651543E-2},{"$f":"((Quarterly!BZ243/Quarterly!BZ239)-1)","v":5.8038274082569119E-2},{"$f":"((Quarterly!CA243/Quarterly!CA239)-1)","v":-1.0477254343052911E-2},{"$f":"((Quarterly!CB243/Quarterly!CB239)-1)","v":0.20474087199734936},{"$f":"((Quarterly!CC243/Quarterly!CC239)-1)","v":0.11029947377000093},{"$f":"((Quarterly!CD243/Quarterly!CD239)-1)","v":9.7222222222222099E-2},{"$f":"((Quarterly!CE243/Quarterly!CE239)-1)","v":0.17363751584283915},null,{"$f":"((Quarterly!CG243/Quarterly!CG239)-1)","v":-7.7876106194690209E-2},{"$f":"((Quarterly!CH243/Quarterly!CH239)-1)","v":4.9159925326695664E-2},null,{"$f":"((Quarterly!CJ243/Quarterly!CJ239)-1)","v":0.17363751584283915},{"$f":"((Quarterly!CK243/Quarterly!CK239)-1)","v":3.1373536607044672E-2},{"$f":"((Quarterly!CL243/Quarterly!CL239)-1)","v":-0.29611609409375528},{"$f":"((Quarterly!CM243/Quarterly!CM239)-1)","v":6.6101694915254194E-2},{"$f":"((Quarterly!CN243/Quarterly!CN239)-1)","v":8.9674323861963501E-3},{"$f":"((Quarterly!CO243/Quarterly!CO239)-1)","v":7.6315715190154121E-2},{"$f":"((Quarterly!CP243/Quarterly!CP239)-1)","v":6.4909502769978422E-2},{"$f":"((Quarterly!CQ243/Quarterly!CQ239)-1)","v":6.8730049782512737E-3},{"$f":"((Quarterly!CR243/Quarterly!CR239)-1)","v":6.3882947452687633E-2},{"$f":"Quarterly!CS243-Quarterly!CS239","v":5.8999999999999915},{"$f":"Quarterly!CT243-Quarterly!CT239","v":21.566666666666691},null,null,null,null,null,{"$f":"((Quarterly!CZ243/Quarterly!CZ239)-1)","v":2.5734181895595398E-2},{"$f":"((Quarterly!DA243/Quarterly!DA239)-1)","v":2.1618717772360574E-2},null,null,null,null,null,{"$f":"((Quarterly!DG243/Quarterly!DG239)-1)","v":1.6364177328176188E-2},{"$f":"((Quarterly!DH243-Quarterly!DH239)*60)","v":-1.9999999999998863},{"$f":"Quarterly!DI243-Quarterly!DI239","v":0.10000000000000142},{"$f":"(Quarterly!DJ243-Quarterly!DJ239)*100","v":-66.666666666666785},{"$f":"(Quarterly!DK243-Quarterly!DK239)*100","v":-26.666666666666661},{"$f":"((Quarterly!DL243/Quarterly!DL239)-1)","v":8.0825497750458553E-5},null,null,null,{"$f":"((Quarterly!DP243/Quarterly!DP239)-1)","v":1.5813372001152626E-2},null,null,null,null,{"$f":"Quarterly!DU243-Quarterly!DU239","v":-1.1333333333333329},{"$f":"((Quarterly!DV243/Quarterly!DV239)-1)","v":1.0958778485946397E-2},{"$f":"((Quarterly!DW243/Quarterly!DW239)-1)","v":1.1810931543372982E-2},{"$f":"((Quarterly!DX243/Quarterly!DX239)-1)","v":7.3882526782418356E-3},{"$f":"((Quarterly!DY243/Quarterly!DY239)-1)","v":1.7965726920949887E-3},{"$f":"((Quarterly!DZ243/Quarterly!DZ239)-1)","v":9.1832660485338113E-3},{"$f":"((Quarterly!EA243/Quarterly!EA239)-1)","v":9.4395669681166527E-3},{"$f":"((Quarterly!EB243/Quarterly!EB239)-1)","v":8.6580086580088089E-3},{"$f":"((Quarterly!EC243/Quarterly!EC239)-1)","v":2.1956856702619376E-2},null,null,null,null,null,{"$f":"((Quarterly!EI243/Quarterly!EI239)-1)","v":2.9753368555227366E-2},{"$f":"((Quarterly!EJ243/Quarterly!EJ239)-1)","v":3.445308425170257E-2},{"$f":"((Quarterly!EK243/Quarterly!EK239)-1)","v":3.0747580890013948E-2},null,null,null,null,null,{"$f":"((Quarterly!EQ243/Quarterly!EQ239)-1)","v":5.0915750915750735E-2},null,null,null,null,null,null,null,{"$f":"(Quarterly!EY243-Quarterly!EY239)*100","v":29.3333333333333},{"$f":"(Quarterly!EZ243-Quarterly!EZ239)*100","v":34},{"$f":"(Quarterly!FA243-Quarterly!FA239)*100","v":3.3333333333333215},{"$f":"(Quarterly!FB243-Quarterly!FB239)*100","v":-64.666666666666558},"--",{"$f":"(Quarterly!FD243-Quarterly!FD239)*100","v":43.333333333333272},{"$f":"(Quarterly!FE243-Quarterly!FE239)*100","v":30.333333333333329},{"$f":"(Quarterly!FF243-Quarterly!FF239)*100","v":31.000000000000007},{"$f":"(Quarterly!FG243-Quarterly!FG239)*100","v":40.333333333333343},{"$f":"(Quarterly!FH243-Quarterly!FH239)*100","v":57.000000000000007},{"$f":"(Quarterly!FI243-Quarterly!FI239)*100","v":52.333333333333343},null,null,null,null,null,null,{"$f":"((Quarterly!FP243/Quarterly!FP239)-1)","v":-3.7641580364289107E-2},{"$f":"((Quarterly!FQ243/Quarterly!FQ239)-1)","v":5.2416766027698847E-2},{"$f":"((Quarterly!FR243/Quarterly!FR239)-1)","v":0.12643293803795785},{"$f":"((Quarterly!FS243/Quarterly!FS239)-1)","v":-3.3402859647531979E-2},{"$f":"((Quarterly!FT243/Quarterly!FT239)-1)","v":2.2991636530777404E-2},{"$f":"((Quarterly!FU243/Quarterly!FU239)-1)","v":1.296526598514447E-2},{"$f":"((Quarterly!FV243/Quarterly!FV239)-1)","v":9.7690452900758951E-2},{"$f":"((Quarterly!FW243/Quarterly!FW239)-1)","v":5.1007797357939477E-2},{"$f":"((Quarterly!FX243/Quarterly!FX239)-1)","v":7.2859133699269218E-2},null,null,null,null,null,{"$f":"((Quarterly!GD243/Quarterly!GD239)-1)","v":0.56002009040683109},{"$f":"((Quarterly!GE243/Quarterly!GE239)-1)","v":0.5930359085963004},{"$f":"((Quarterly!GF243/Quarterly!GF239)-1)","v":0.21849999999999992},{"$f":"((Quarterly!GG243/Quarterly!GG239)-1)","v":0.23607767613545194},{"$f":"((Quarterly!GH243/Quarterly!GH239)-1)","v":4.6361764969121921E-2},{"$f":"((Quarterly!GI243/Quarterly!GI239)-1)","v":0.19819078947368429},{"$f":"((Quarterly!GJ243/Quarterly!GJ239)-1)","v":0.53936348408710222},{"$f":"((Quarterly!GK243/Quarterly!GK239)-1)","v":0.12125955121729093},{"$f":"((Quarterly!GL243/Quarterly!GL239)-1)","v":1.5469732379019829E-2}]
["17'Q2",{"$f":"((Quarterly!B244/Quarterly!B240)-1)","v":3.8405896114470206E-2},{"$f":"((Quarterly!C244/Quarterly!C240)-1)","v":2.2058309902903916E-2},{"$f":"((Quarterly!D244/Quarterly!D240)-1)","v":2.2488726957902161E-2},{"$f":"((Quarterly!E244/Quarterly!E240)-1)","v":2.7316089480055039E-2},{"$f":"((Quarterly!F244/Quarterly!F240)-1)","v":6.4481336576081238E-2},{"$f":"((Quarterly!G244/Quarterly!G240)-1)","v":1.9476736488097002E-2},{"$f":"((Quarterly!H244/Quarterly!H240)-1)","v":2.3867517466480859E-2},{"$f":"((Quarterly!I244/Quarterly!I240)-1)","v":4.3203234359079801E-2},{"$f":"((Quarterly!J244/Quarterly!J240)-1)","v":3.3405922481585915E-2},{"$f":"((Quarterly!K244/Quarterly!K240)-1)","v":1.2890851433832395E-2},{"$f":"((Quarterly!L244-Quarterly!L240))","v":-6.7039999999999997},{"$f":"((Quarterly!M244/Quarterly!M240)-1)","v":4.092360809786566E-2},{"$f":"((Quarterly!N244/Quarterly!N240)-1)","v":3.2497560943282044E-2},{"$f":"((Quarterly!O244/Quarterly!O240)-1)","v":7.2020307193469302E-2},{"$f":"((Quarterly!P244/Quarterly!P240)-1)","v":-3.8048124317235921E-4},{"$f":"((Quarterly!Q244/Quarterly!Q240)-1)","v":-8.0123740986297043E-2},null,null,null,null,null,{"$f":"((Quarterly!W244/Quarterly!W240)-1)","v":7.9470198675495318E-3},{"$f":"((Quarterly!X244/Quarterly!X240)-1)","v":1.1894273127753152E-2},{"$f":"((Quarterly!Y244/Quarterly!Y240)-1)","v":2.2930389043903876E-2},{"$f":"Quarterly!Z244-Quarterly!Z240","v":-0.18},{"$f":"((Quarterly!AA244/Quarterly!AA240)-1)","v":7.4205329840472789E-2},{"$f":"((Quarterly!AB244/Quarterly!AB240)-1)","v":7.7810365142404025E-2},{"$f":"Quarterly!AC244-Quarterly!AC240","v":16.700000000000003},{"$f":"Quarterly!AD244-Quarterly!AD240","v":-5.7999999999999989},{"$f":"(Quarterly!AE244-Quarterly!AE240)*100","v":-67},{"$f":"(Quarterly!AF244-Quarterly!AF240)*100","v":-18},{"$f":"(Quarterly!AG244-Quarterly!AG240)*100","v":-19.999999999999996},{"$f":"((Quarterly!AH244/Quarterly!AH240)-1)","v":0.16172641489782746},{"$f":"((Quarterly!AI244/Quarterly!AI240)-1)","v":0.11689489743195214},{"$f":"((Quarterly!AJ244/Quarterly!AJ240)-1)","v":2.1360759493670889E-2},{"$f":"((Quarterly!AK244/Quarterly!AK240)-1)","v":2.2997620935765406E-2},{"$f":"((Quarterly!AL244/Quarterly!AL240)-1)","v":2.3809523809523725E-2},{"$f":"((Quarterly!AM244/Quarterly!AM240)-1)","v":2.1238880154740292E-2},{"$f":"((Quarterly!AN244/Quarterly!AN240)-1)","v":1.7598915330698794E-2},{"$f":"((Quarterly!AO244/Quarterly!AO240)-1)","v":2.5202068155733004E-2},{"$f":"(Quarterly!AP244-Quarterly!AP240)*100","v":-3.6666666666666847},{"$f":"Quarterly!AQ244-Quarterly!AQ240","v":4.0666666666666629},{"$f":"Quarterly!AR244-Quarterly!AR240","v":6.3333333333333357},{"$f":"Quarterly!AS244-Quarterly!AS240","v":-0.5},{"$f":"Quarterly!AT244-Quarterly!AT240","v":4.6333333333333258},{"$f":"Quarterly!AU244-Quarterly!AU240","v":6},{"$f":"Quarterly!AV244-Quarterly!AV240","v":3.6666666666666714},{"$f":"Quarterly!AW244-Quarterly!AW240","v":4.1666666666666643},{"$f":"Quarterly!AX244-Quarterly!AX240","v":4},{"$f":"Quarterly!AY244-Quarterly!AY240","v":0.3333333333333357},{"$f":"Quarterly!AZ244-Quarterly!AZ240","v":5.5333333333333314},{"$f":"Quarterly!BA244-Quarterly!BA240","v":2.1999999999999957},{"$f":"Quarterly!BB244-Quarterly!BB240","v":3.4999999999999858},{"$f":"((Quarterly!BC244/Quarterly!BC240)-1)","v":4.9722108659381536E-2},{"$f":"((Quarterly!BD244/Quarterly!BD240)-1)","v":1.1102961632818209E-2},{"$f":"((Quarterly!BE244/Quarterly!BE240)-1)","v":1.4305393663238686E-3},{"$f":"((Quarterly!BF244/Quarterly!BF240)-1)","v":1.1187163568197933E-2},{"$f":"((Quarterly!BG244/Quarterly!BG240)-1)","v":1.3484874059903396E-2},{"$f":"((Quarterly!BH244/Quarterly!BH240)-1)","v":-7.8004317582153204E-3},{"$f":"((Quarterly!BI244/Quarterly!BI240)-1)","v":-2.2649122002659228E-3},{"$f":"((Quarterly!BJ244/Quarterly!BJ240)-1)","v":6.6962908415578726E-2},{"$f":"((Quarterly!BK244/Quarterly!BK240)-1)","v":-0.34615384615384615},null,{"$f":"((Quarterly!BM244/Quarterly!BM240)-1)","v":3.8851640987138669E-2},{"$f":"((Quarterly!BN244/Quarterly!BN240)-1)","v":4.0139423654773188E-2},null,null,null,null,null,{"$f":"((Quarterly!BT244/Quarterly!BT240)-1)","v":5.4310384418717605E-2},{"$f":"Quarterly!BU244-Quarterly!BU240","v":8.3249999999999602E-2},{"$f":"Quarterly!BV244-Quarterly!BV240","v":0.14130999999999894},{"$f":"((Quarterly!BW244/Quarterly!BW240)-1)","v":2.0585837063136214E-3},{"$f":"((Quarterly!BX244/Quarterly!BX240)-1)","v":7.7742585660811603E-3},{"$f":"((Quarterly!BY244/Quarterly!BY240)-1)","v":3.8766270514997148E-2},{"$f":"((Quarterly!BZ244/Quarterly!BZ240)-1)","v":5.7252924781196146E-2},{"$f":"((Quarterly!CA244/Quarterly!CA240)-1)","v":-2.7675169706229519E-2},{"$f":"((Quarterly!CB244/Quarterly!CB240)-1)","v":5.6552477566821135E-2},{"$f":"((Quarterly!CC244/Quarterly!CC240)-1)","v":-1.5275451973809639E-3},{"$f":"((Quarterly!CD244/Quarterly!CD240)-1)","v":0.11586206896551743},{"$f":"((Quarterly!CE244/Quarterly!CE240)-1)","v":7.71513353115727E-2},null,{"$f":"((Quarterly!CG244/Quarterly!CG240)-1)","v":-8.4772370486656312E-2},{"$f":"((Quarterly!CH244/Quarterly!CH240)-1)","v":1.5824710894704719E-2},null,{"$f":"((Quarterly!CJ244/Quarterly!CJ240)-1)","v":7.71513353115727E-2},{"$f":"((Quarterly!CK244/Quarterly!CK240)-1)","v":2.8549938823056342E-2},{"$f":"((Quarterly!CL244/Quarterly!CL240)-1)","v":-0.26781480653097733},{"$f":"((Quarterly!CM244/Quarterly!CM240)-1)","v":9.0788893785808567E-2},{"$f":"((Quarterly!CN244/Quarterly!CN240)-1)","v":1.2359529799349289E-2},{"$f":"((Quarterly!CO244/Quarterly!CO240)-1)","v":6.5164137166828118E-2},{"$f":"((Quarterly!CP244/Quarterly!CP240)-1)","v":5.9569525494142628E-2},{"$f":"((Quarterly!CQ244/Quarterly!CQ240)-1)","v":6.8623221462380535E-3},{"$f":"((Quarterly!CR244/Quarterly!CR240)-1)","v":5.7691155999955779E-2},{"$f":"Quarterly!CS244-Quarterly!CS240","v":4},{"$f":"Quarterly!CT244-Quarterly!CT240","v":23.26666666666668},null,null,null,null,null,{"$f":"((Quarterly!CZ244/Quarterly!CZ240)-1)","v":1.9052738291519988E-2},{"$f":"((Quarterly!DA244/Quarterly!DA240)-1)","v":1.7810001457623459E-2},null,null,null,null,null,{"$f":"((Quarterly!DG244/Quarterly!DG240)-1)","v":2.1687462863933415E-2},{"$f":"((Quarterly!DH244-Quarterly!DH240)*60)","v":6.0000000000000853},{"$f":"Quarterly!DI244-Quarterly!DI240","v":9.9999999999980105E-2},{"$f":"(Quarterly!DJ244-Quarterly!DJ240)*100","v":-113.33333333333329},{"$f":"(Quarterly!DK244-Quarterly!DK240)*100","v":-50},{"$f":"((Quarterly!DL244/Quarterly!DL240)-1)","v":4.697877855175836E-3},null,null,null,{"$f":"((Quarterly!DP244/Quarterly!DP240)-1)","v":1.5581402349367002E-2},null,null,null,null,{"$f":"Quarterly!DU244-Quarterly!DU240","v":-0.59999999999999787},{"$f":"((Quarterly!DV244/Quarterly!DV240)-1)","v":1.6102318733897558E-2},{"$f":"((Quarterly!DW244/Quarterly!DW240)-1)","v":1.6822774031712617E-2},{"$f":"((Quarterly!DX244/Quarterly!DX240)-1)","v":1.1493100798503297E-2},{"$f":"((Quarterly!DY244/Quarterly!DY240)-1)","v":-8.1477457903322836E-4},{"$f":"((Quarterly!DZ244/Quarterly!DZ240)-1)","v":1.5509372091992768E-2},{"$f":"((Quarterly!EA244/Quarterly!EA240)-1)","v":2.0316622691292974E-2},{"$f":"((Quarterly!EB244/Quarterly!EB240)-1)","v":5.6703118671526109E-3},{"$f":"((Quarterly!EC244/Quarterly!EC240)-1)","v":2.8620026623280781E-2},null,null,null,null,null,{"$f":"((Quarterly!EI244/Quarterly!EI240)-1)","v":3.1982434546828697E-2},{"$f":"((Quarterly!EJ244/Quarterly!EJ240)-1)","v":3.0625588025078976E-2},{"$f":"((Quarterly!EK244/Quarterly!EK240)-1)","v":2.7388476993386757E-2},null,null,null,null,null,{"$f":"((Quarterly!EQ244/Quarterly!EQ240)-1)","v":4.2078762812443715E-2},null,null,null,null,null,null,null,{"$f":"(Quarterly!EY244-Quarterly!EY240)*100","v":54.3333333333333},{"$f":"(Quarterly!EZ244-Quarterly!EZ240)*100","v":57.666666666666664},{"$f":"(Quarterly!FA244-Quarterly!FA240)*100","v":21.000000000000043},{"$f":"(Quarterly!FB244-Quarterly!FB240)*100","v":-16.999999999999993},"--",{"$f":"(Quarterly!FD244-Quarterly!FD240)*100","v":39.333333333333307},{"$f":"(Quarterly!FE244-Quarterly!FE240)*100","v":63.333333333333329},{"$f":"(Quarterly!FF244-Quarterly!FF240)*100","v":55.333333333333343},{"$f":"(Quarterly!FG244-Quarterly!FG240)*100","v":51.999999999999993},{"$f":"(Quarterly!FH244-Quarterly!FH240)*100","v":56.666666666666643},{"$f":"(Quarterly!FI244-Quarterly!FI240)*100","v":51},null,null,null,null,null,null,{"$f":"((Quarterly!FP244/Quarterly!FP240)-1)","v":4.3485009183330092E-2},{"$f":"((Quarterly!FQ244/Quarterly!FQ240)-1)","v":5.043260764145896E-2},{"$f":"((Quarterly!FR244/Quarterly!FR240)-1)","v":2.5683028894789572E-2},{"$f":"((Quarterly!FS244/Quarterly!FS240)-1)","v":-2.6349955739156106E-2},{"$f":"((Quarterly!FT244/Quarterly!FT240)-1)","v":2.5592907477864912E-2},{"$f":"((Quarterly!FU244/Quarterly!FU240)-1)","v":3.9125545546955021E-2},{"$f":"((Quarterly!FV244/Quarterly!FV240)-1)","v":0.10120972209631462},{"$f":"((Quarterly!FW244/Quarterly!FW240)-1)","v":0.11494646091761629},{"$f":"((Quarterly!FX244/Quarterly!FX240)-1)","v":6.4529884823920414E-2},null,null,null,null,null,{"$f":"((Quarterly!GD244/Quarterly!GD240)-1)","v":6.2399060343562018E-2},{"$f":"((Quarterly!GE244/Quarterly!GE240)-1)","v":9.1088818920699977E-2},{"$f":"((Quarterly!GF244/Quarterly!GF240)-1)","v":6.1950666288630662E-2},{"$f":"((Quarterly!GG244/Quarterly!GG240)-1)","v":0.11088534107402026},{"$f":"((Quarterly!GH244/Quarterly!GH240)-1)","v":0.11190415498343098},{"$f":"((Quarterly!GI244/Quarterly!GI240)-1)","v":8.1867973479389011E-2},{"$f":"((Quarterly!GJ244/Quarterly!GJ240)-1)","v":0.40178571428571441},{"$f":"((Quarterly!GK244/Quarterly!GK240)-1)","v":4.4888675073006867E-2},{"$f":"((Quarterly!GL244/Quarterly!GL240)-1)","v":7.2512571839080442E-2}]
["17'Q3",{"$f":"((Quarterly!B245/Quarterly!B241)-1)","v":4.0917330383205108E-2},{"$f":"((Quarterly!C245/Quarterly!C241)-1)","v":2.2576866052200772E-2},{"$f":"((Quarterly!D245/Quarterly!D241)-1)","v":2.1543414256631754E-2},{"$f":"((Quarterly!E245/Quarterly!E241)-1)","v":2.6163124311421537E-2},{"$f":"((Quarterly!F245/Quarterly!F241)-1)","v":6.1790433649729914E-2},{"$f":"((Quarterly!G245/Quarterly!G241)-1)","v":2.4729602711254239E-2},{"$f":"((Quarterly!H245/Quarterly!H241)-1)","v":2.0968997734994277E-2},{"$f":"((Quarterly!I245/Quarterly!I241)-1)","v":4.438727999593528E-2},{"$f":"((Quarterly!J245/Quarterly!J241)-1)","v":4.724776138298048E-2},{"$f":"((Quarterly!K245/Quarterly!K241)-1)","v":8.9693214708306268E-3},{"$f":"((Quarterly!L245-Quarterly!L241))","v":18.222999999999999},{"$f":"((Quarterly!M245/Quarterly!M241)-1)","v":3.2037664903282748E-2},{"$f":"((Quarterly!N245/Quarterly!N241)-1)","v":2.2559811679155217E-2},{"$f":"((Quarterly!O245/Quarterly!O241)-1)","v":6.8522180393113752E-2},{"$f":"((Quarterly!P245/Quarterly!P241)-1)","v":-1.9259045716870649E-3},null,null,null,null,null,null,{"$f":"((Quarterly!W245/Quarterly!W241)-1)","v":3.9840637450199168E-3},{"$f":"((Quarterly!X245/Quarterly!X241)-1)","v":4.3994720633524498E-3},{"$f":"((Quarterly!Y245/Quarterly!Y241)-1)","v":2.0726609031046284E-2},{"$f":"Quarterly!Z245-Quarterly!Z241","v":-0.21000000000000002},null,null,{"$f":"Quarterly!AC245-Quarterly!AC241","v":28},{"$f":"Quarterly!AD245-Quarterly!AD241","v":-8.4},{"$f":"(Quarterly!AE245-Quarterly!AE241)*100","v":-56.999999999999986},{"$f":"(Quarterly!AF245-Quarterly!AF241)*100","v":-21.000000000000004},{"$f":"(Quarterly!AG245-Quarterly!AG241)*100","v":-10.000000000000004},null,null,null,null,null,{"$f":"((Quarterly!AM245/Quarterly!AM241)-1)","v":1.5282864559257536E-2},{"$f":"((Quarterly!AN245/Quarterly!AN241)-1)","v":1.1845248068328429E-2},{"$f":"((Quarterly!AO245/Quarterly!AO241)-1)","v":3.2798263039366615E-2},{"$f":"(Quarterly!AP245-Quarterly!AP241)*100","v":-1.9999999999999796},null,null,null,null,null,null,null,null,null,null,null,null,{"$f":"((Quarterly!BC245/Quarterly!BC241)-1)","v":5.3586843922651894E-2},null,null,null,null,null,null,null,{"$f":"((Quarterly!BK245/Quarterly!BK241)-1)","v":-0.39622641509433965},null,{"$f":"((Quarterly!BM245/Quarterly!BM241)-1)","v":3.8951105623218352E-2},{"$f":"((Quarterly!BN245/Quarterly!BN241)-1)","v":4.0671915786292034E-2},null,null,null,null,null,{"$f":"((Quarterly!BT245/Quarterly!BT241)-1)","v":3.9765167191293971E-2},null,null,{"$f":"((Quarterly!BW245/Quarterly!BW241)-1)","v":1.2554727507638974E-2},{"$f":"((Quarterly!BX245/Quarterly!BX241)-1)","v":1.3337199188170334E-2},{"$f":"((Quarterly!BY245/Quarterly!BY241)-1)","v":2.2496570644718661E-2},{"$f":"((Quarterly!BZ245/Quarterly!BZ241)-1)","v":5.695553827666644E-2},{"$f":"((Quarterly!CA245/Quarterly!CA241)-1)","v":-2.5661038244084389E-2},{"$f":"((Quarterly!CB245/Quarterly!CB241)-1)","v":3.6583246108423007E-2},{"$f":"((Quarterly!CC245/Quarterly!CC241)-1)","v":-2.1008757433286562E-2},{"$f":"((Quarterly!CD245/Quarterly!CD241)-1)","v":0.15555555555555545},{"$f":"((Quarterly!CE245/Quarterly!CE241)-1)","v":2.6077097505669E-2},null,{"$f":"((Quarterly!CG245/Quarterly!CG241)-1)","v":-7.4796747967479593E-2},{"$f":"((Quarterly!CH245/Quarterly!CH241)-1)","v":2.4783147459725985E-3},null,{"$f":"((Quarterly!CJ245/Quarterly!CJ241)-1)","v":2.6077097505669E-2},{"$f":"((Quarterly!CK245/Quarterly!CK241)-1)","v":2.8079968222344043E-2},{"$f":"((Quarterly!CL245/Quarterly!CL241)-1)","v":-0.26990998081558371},{"$f":"((Quarterly!CM245/Quarterly!CM241)-1)","v":0.11262050832602988},{"$f":"((Quarterly!CN245/Quarterly!CN241)-1)","v":1.200333089138228E-2},{"$f":"((Quarterly!CO245/Quarterly!CO241)-1)","v":4.870592241726257E-2},{"$f":"((Quarterly!CP245/Quarterly!CP241)-1)","v":5.371271629871166E-2},{"$f":"((Quarterly!CQ245/Quarterly!CQ241)-1)","v":6.8496960956010433E-3},{"$f":"((Quarterly!CR245/Quarterly!CR241)-1)","v":5.1809008524600131E-2},{"$f":"Quarterly!CS245-Quarterly!CS241","v":4.7666666666666515},{"$f":"Quarterly!CT245-Quarterly!CT241","v":19.399999999999991},null,null,null,null,null,{"$f":"((Quarterly!CZ245/Quarterly!CZ241)-1)","v":1.9628639124461333E-2},{"$f":"((Quarterly!DA245/Quarterly!DA241)-1)","v":1.6935633313728049E-2},null,null,null,null,null,{"$f":"((Quarterly!DG245/Quarterly!DG241)-1)","v":1.6538688718251704E-2},{"$f":"((Quarterly!DH245-Quarterly!DH241)*60)","v":0},{"$f":"Quarterly!DI245-Quarterly!DI241","v":0.13333333333333286},{"$f":"(Quarterly!DJ245-Quarterly!DJ241)*100","v":-119.99999999999993},{"$f":"(Quarterly!DK245-Quarterly!DK241)*100","v":-60.000000000000057},{"$f":"((Quarterly!DL245/Quarterly!DL241)-1)","v":7.318192865437112E-3},null,null,null,{"$f":"((Quarterly!DP245/Quarterly!DP241)-1)","v":1.3599955757514159E-2},null,null,null,null,{"$f":"Quarterly!DU245-Quarterly!DU241","v":-0.43333333333333357},{"$f":"((Quarterly!DV245/Quarterly!DV241)-1)","v":1.4148234915822622E-2},{"$f":"((Quarterly!DW245/Quarterly!DW241)-1)","v":1.3636157371693214E-2},{"$f":"((Quarterly!DX245/Quarterly!DX241)-1)","v":9.1732466326057693E-3},{"$f":"((Quarterly!DY245/Quarterly!DY241)-1)","v":-1.6214025131738863E-3},{"$f":"((Quarterly!DZ245/Quarterly!DZ241)-1)","v":1.2686337452179064E-2},{"$f":"((Quarterly!EA245/Quarterly!EA241)-1)","v":1.901639344262307E-2},{"$f":"((Quarterly!EB245/Quarterly!EB241)-1)","v":-2.0024028834608742E-4},{"$f":"((Quarterly!EC245/Quarterly!EC241)-1)","v":2.6916451335055935E-2},null,null,null,null,null,{"$f":"((Quarterly!EI245/Quarterly!EI241)-1)","v":3.2204621078536944E-2},{"$f":"((Quarterly!EJ245/Quarterly!EJ241)-1)","v":2.2647358029846076E-2},{"$f":"((Quarterly!EK245/Quarterly!EK241)-1)","v":1.6101957220306273E-2},null,null,null,null,null,{"$f":"((Quarterly!EQ245/Quarterly!EQ241)-1)","v":3.6350677120456476E-2},null,null,null,null,null,null,null,{"$f":"(Quarterly!EY245-Quarterly!EY241)*100","v":75},{"$f":"(Quarterly!EZ245-Quarterly!EZ241)*100","v":75.666666666666643},{"$f":"(Quarterly!FA245-Quarterly!FA241)*100","v":36.333333333333371},{"$f":"(Quarterly!FB245-Quarterly!FB241)*100","v":13.333333333333286},"--",{"$f":"(Quarterly!FD245-Quarterly!FD241)*100","v":43.999999999999993},{"$f":"(Quarterly!FE245-Quarterly!FE241)*100","v":74.000000000000028},{"$f":"(Quarterly!FF245-Quarterly!FF241)*100","v":68.666666666666671},{"$f":"(Quarterly!FG245-Quarterly!FG241)*100","v":63.666666666666657},{"$f":"(Quarterly!FH245-Quarterly!FH241)*100","v":69},{"$f":"(Quarterly!FI245-Quarterly!FI241)*100","v":68},null,null,null,null,null,null,{"$f":"((Quarterly!FP245/Quarterly!FP241)-1)","v":-4.0374891465345453E-2},{"$f":"((Quarterly!FQ245/Quarterly!FQ241)-1)","v":5.7517542850549219E-4},{"$f":"((Quarterly!FR245/Quarterly!FR241)-1)","v":-5.1440267124418404E-2},{"$f":"((Quarterly!FS245/Quarterly!FS241)-1)","v":5.3046594982079087E-2},{"$f":"((Quarterly!FT245/Quarterly!FT241)-1)","v":-1.8028509895520739E-2},{"$f":"((Quarterly!FU245/Quarterly!FU241)-1)","v":-2.2219744377497519E-2},{"$f":"((Quarterly!FV245/Quarterly!FV241)-1)","v":3.164380510307474E-2},{"$f":"((Quarterly!FW245/Quarterly!FW241)-1)","v":7.5472923510390144E-2},{"$f":"((Quarterly!FX245/Quarterly!FX241)-1)","v":5.213445651731563E-2},null,null,null,null,null,{"$f":"((Quarterly!GD245/Quarterly!GD241)-1)","v":7.3875882571534657E-2},{"$f":"((Quarterly!GE245/Quarterly!GE241)-1)","v":0.13810425160163087},{"$f":"((Quarterly!GF245/Quarterly!GF241)-1)","v":0.1025014376078206},{"$f":"((Quarterly!GG245/Quarterly!GG241)-1)","v":0.10153846153846158},{"$f":"((Quarterly!GH245/Quarterly!GH241)-1)","v":0.15433011714439981},null,{"$f":"((Quarterly!GJ245/Quarterly!GJ241)-1)","v":5.9665871121718173E-2},{"$f":"((Quarterly!GK245/Quarterly!GK241)-1)","v":0.11814205035370384},{"$f":"((Quarterly!GL245/Quarterly!GL241)-1)","v":-4.1931600883456932E-3}]
["17'Q4"]

{"sheet":"Monthly Charts","index":8,"n_rows":764,"n_cols":10,"rows_kept":764,"cut":false,"hidden":false,"merged":[]}
[]
["BUS002M"]
[]
[]
[]
[]
[]
[]
[]
[]
[]
[]
[]
[]
[]
[]
[]
["BUS003M"]
[]
[]
[]
[]
[]
[]
[]
[]
[]
[]
[]
[]
[]
[]
[]
["BUS019M",null,null,null,null,null,null,null,null,"BUS020M"]
[]
[]
[]
[]
[]
[]
[]
[]
[]
[]
[]
[]
[]
[]
[]
["BUS021M",null,null,null,null,null,null,null,null,"BUS022M"]
[]
[]
[]
[]
[]
[]
[]
[]
[]
[]
[]
[]
[]
[]
[]
["BUS023M",null,null,null,null,null,null,null,null,"BUS 034M"]
[]
[]
[]
[]
[]
[]
[]
[]
[]
[]
[]
[]
[]
[]
[]
["BUS035M"]
[]
[]
[]
[]
[]
[]
[]
[]
[]
[]
[]
[]
[]
[]
[]
["BUS045M",null,null,null,null,null,null,null,null,"BUS046M"]
[]
[]
[]
[]
[]
[]
[]
[]
[]
[]
[]
[]
[]
[]
[]
["CON001M"]
[]
[]
[]
[]
[]
[]
[]
[]
[]
[]
[]
[]
[]
[]
[]
["CON005M",null,null,null,null,null,null,null,null,"CON006M"]
[]
[]
[]
[]
[]
[]
[]
[]
[]
[]
[]
[]
[]
[]
[]
["CON007M"]
[]
[]
[]
[]
[]
[]
[]
[]
[]
[]
[]
[]
[]
[]
[]
["CON008M"]
[]
[]
[]
[]
[]
[]
[]
[]
[]
[]
[]
[]
[]
[]
[]
["CON009M",null,null,null,null,null,null,null,null,"CON010M"]
[]
[]
[]
[]
[]
[]
[]
[]
[]
[]
[]
[]
[]
[]
[]
["CON011M",null,null,null,null,null,null,null,null,"CON012M"]
[]
[]
[]
[]
[]
[]
[]
[]
[]
[]
[]
[]
[]
[]
[]
["CON033M",null,null,null,null,null,null,null,null,"CON034M"]
[]
[]
[]
[]
[]
[]
[]
[]
[]
[]
[]
[]
[]
[]
["CON035M",null,null,null,null,null,null,null,null,"CON036M"]
[]
[]
[]
[]
[]
[]
[]
[]
[]
[]
[]
[]
[]
[]
[]
["CON013M",null,null,null,null,null,null,null,null,"CON022M"]
[]
[]
[]
[]
[]
[]
[]
[]
[]
[]
[]
[]
[]
[]
[]
["CON014M",null,null,null,null,null,null,null,null,"CON018M"]
[]
[]
[]
[]
[]
[]
[]
[]
[]
[]
[]
[]
[]
[]
[]
["CON023M",null,null,null,null,null,null,null,null,"CON027M"]
[]
[]
[]
[]
[]
[]
[]
[]
[]
[]
[]
[]
[]
[]
[]
["CON028M",null,null,null,null,null,null,null,null,"CON030M"]
[]
[]
[]
[]
[]
[]
[]
[]
[]
[]
[]
[]
[]
[]
[]
["CON031M",null,null,null,null,null,null,null,null,"CON032M"]
[]
[]
[]
[]
[]
[]
[]
[]
[]
[]
[]
[]
[]
[]
[]
["CPI001M",null,null,null,null,null,null,null,null,"CPI005M"]
[]
[]
[]
[]
[]
[]
[]
[]
[]
[]
[]
[]
[]
[]
[]
[]
[]
[]
[]
[]
[]
[]
[]
[]
[]
[]
[]
[]
[]
[]
["EMP001M",null,null,null,null,null,null,null,null,"EMP002M"]
[]
[]
[]
[]
[]
[]
[]
[]
[]
[]
[]
[]
[]
[]
[]
["EMP003M"]
[]
[]
[]
[]
[]
[]
[]
[]
[]
[]
[]
[]
[]
[]
[]
["EMP005M",null,null,null,null,null,null,null,null,"EMP004M"]
[]
[]
[]
[]
[]
[]
[]
[]
[]
[]
[]
[]
[]
[]
[]
["EMP006M",null,null,null,null,null,null,null,null,"EMP013M"]
[]
[]
[]
[]
[]
[]
[]
[]
[]
[]
[]
[]
[]
[]
[]
["EMP020M",null,null,null,null,null,null,null,null,"EMP021M"]
[]
[]
[]
[]
[]
[]
[]
[]
[]
[]
[]
[]
[]
[]
[]
["EMP022M"]
[]
[]
[]
[]
[]
[]
[]
[]
[]
[]
[]
[]
[]
[]
[]
["PPI001M"]
[]
[]
[]
[]
[]
[]
[]
[]
[]
[]
[]
[]
[]
[]
[]
["PPI004M",null,null,null,null,null,null,null,null,"PPI007M"]
[]
[]
[]
[]
[]
[]
[]
[]
[]
[]
[]
[]
[]
[]
[]
["RAT001M",null,null,null,null,null,null,null,null,"RAT002M"]
[]
[]
[]
[]
[]
[]
[]
[]
[]
[]
[]
[]
[]
[]
[]
["RAT005M"]
[]
[]
[]
[]
[]
[]
[]
[]
[]
[]
[]
[]
[]
[]
[]
["RAT003M"]
["RAT004M"]
[]
[]
[]
[]
[]
[]
[]
[]
[]
[]
[]
[]
[]
[]
["RAT006M",null,null,null,null,null,null,null,null,"RAT007M"]
[]
[]
[]
[]
[]
[]
[]
[]
[]
[]
[]
[]
[]
[]
[]
["RAT008M",null,null,null,null,null,null,null,null,"RAT009M"]
[]
[]
[]
[]
[]
[]
[]
[]
[]
[]
[]
[]
[]
[]
[]
["RAT010M",null,null,null,null,null,null,null,null,"RAT011M"]
[]
[]
[]
[]
[]
[]
[]
[]
[]
[]
[]
[]
[]
[]
[]
[]
[]
[]
[]
[]
[]
[]
[]
[]
[]
[]
[]
[]
[]
[]
["TRA001M",null,null,null,null,null,null,null,null,"TRA002M"]
[]
[]
[]
[]
[]
[]
[]
[]
[]
[]
[]
[]
[]
[]
[]
["TRA003M",null,null,null,null,null,null,null,null,"TRA004M"]
[]
[]
[]
[]
[]
[]
[]
[]
[]
[]
[]
[]
[]
[]
[]
["TRA005M",null,null,null,null,null,null,null,null,"TRA006M"]
[]
[]
[]
[]
[]
[]
[]
[]
[]
[]
[]
[]
[]
[]
[]
["IMPORTS"]
["TRA007A"]
["TRA008A"]
["TRA009A"]
[]
[]
[]
[]
[]
[]
[]
[]
[]
[]
[]
[]
["ENE001M",null,null,null,null,null,null,null,null,"ENE002M"]
[]
[]
[]
[]
[]
[]
[]
[]
[]
[]
[]
[]
[]
[]
[]
[]
[]
[]
[]
[]
[]
[]
[]
[]
[]
[]
[]
[]
[]
[]
["ENE003M",null,null,null,null,null,null,null,null,"ENE004M"]
[]
[]
[]
[]
[]
[]
[]
[]
[]
[]
[]
[]
[]
[]
[]
[]
[]
[]
[]
[]
[]
[]
[]
[]
[]
[]
[]
[]
[]
[]
["ENE007M"]
[]
[]
[]
[]
[]
[]
[]
[]
[]
[]
[]
[]
[]
[]
[]
["ENE005M",null,null,null,null,null,null,null,null,"ENE006M"]
[]
[]
[]
[]
[]
[]
[]
[]
[]
[]
[]
[]
[]
[]
[]
[]
[]
[]
[]
[]
[]
[]
[]
[]
[]
[]
[]
[]
[]
[]
["ENE008M",null,null,null,null,null,null,null,null,"ENE009M"]

{"sheet":"Qtrly Charts","index":9,"n_rows":418,"n_cols":10,"rows_kept":418,"cut":false,"hidden":false,"merged":[]}
[]
["GDP001Q",null,null,null,null,null,null,null,null,"GDP004Q"]
[]
[]
[]
[]
[]
[]
[]
[]
[]
[]
[]
[]
[]
[]
[]
["GDP007Q"]
[]
[]
[]
[]
[]
[]
[]
[]
[]
[]
[]
[]
[]
[]
[]
["GDP010Q",null,null,null,null,null,null,null,null,"GDP 014Q"]
[]
[]
[]
[]
[]
[]
[]
[]
[]
[]
[]
[]
[]
[]
[]
["GDP018Q",null,null,null,null,null,null,null,null,"GDP022Q"]
[]
[]
[]
[]
[]
[]
[]
[]
[]
[]
[]
[]
[]
[]
[]
["GDP026Q",null,null,null,null,null,null,null,null,"GDP029Q"]
[]
[]
[]
[]
[]
[]
[]
[]
[]
[]
[]
[]
[]
[]
[]
["GDP032Q"]
[]
[]
[]
[]
[]
[]
[]
[]
[]
[]
[]
[]
[]
[]
[]
["GDP035Q"]
[]
[]
[]
[]
[]
[]
[]
[]
[]
[]
[]
[]
[]
[]
[]
["GDP036Q",null,null,null,null,null,null,null,null,"GDP039Q"]
[]
[]
[]
[]
[]
[]
[]
[]
[]
[]
[]
[]
[]
[]
[]
["GDP042Q"]
[]
[]
[]
[]
[]
[]
[]
[]
[]
[]
[]
[]
[]
[]
[]
["GDP043Q"]
[]
[]
[]
[]
[]
[]
[]
[]
[]
[]
[]
[]
[]
[]
[]
["GDP046Q"]
[]
[]
[]
[]
[]
[]
[]
[]
[]
[]
[]
[]
[]
[]
[]
["BUS001Q"]
[]
[]
[]
[]
[]
[]
[]
[]
[]
[]
[]
[]
[]
[]
[]
["BUS004Q"]
[]
[]
[]
[]
[]
[]
[]
[]
[]
[]
[]
[]
[]
[]
[]
["BUS005Q",null,null,null,null,null,null,null,null,"BUS006Q"]
[]
[]
[]
[]
[]
[]
[]
[]
[]
[]
[]
[]
[]
[]
[]
["BUS007Q",null,null,null,null,null,null,null,null,"BUS008Q"]
[]
[]
[]
[]
[]
[]
[]
[]
[]
[]
[]
[]
[]
[]
[]
["BUS009Q",null,null,null,null,null,null,null,null,"BUS010Q"]
[]
[]
[]
[]
[]
[]
[]
[]
[]
[]
[]
[]
[]
[]
[]
["BUS011Q"]
[]
[]
[]
[]
[]
[]
[]
[]
[]
[]
[]
[]
[]
[]
[]
["BUS012Q",null,null,null,null,null,null,null,null,"BUS013Q"]
[]
[]
[]
[]
[]
[]
[]
[]
[]
[]
[]
[]
[]
[]
[]
["BUS036Q",null,null,null,null,null,null,null,null,"BUS037Q"]
[]
[]
[]
[]
[]
[]
[]
[]
[]
[]
[]
[]
[]
[]
[]
["BUS038Q",null,null,null,null,null,null,null,null,"BUS039Q"]
[]
[]
[]
[]
[]
[]
[]
[]
[]
[]
[]
[]
[]
[]
[]
["BUS040Q",null,null,null,null,null,null,null,null,"BUS041Q"]
[]
[]
[]
[]
[]
[]
[]
[]
[]
[]
[]
[]
[]
[]
[]
["BUS042Q"]
[]
[]
[]
[]
[]
[]
[]
[]
[]
[]
[]
[]
[]
[]
[]
["BUS043Q"]
[]
[]
[]
[]
[]
[]
[]
[]
[]
[]
[]
[]
[]
[]
[]
["CON002Q",null,null,null,null,null,null,null,null,"CON003Q"]
[]
[]
[]
[]
[]
[]
[]
[]
[]
[]
[]
[]
[]
[]
[]
["CON004Q"]
[]
[]
[]
[]
[]
[]
[]
[]
[]
[]
[]
[]
[]
[]
[]
["EMP009Q",null,null,null,null,null,null,null,null,"EMP016Q"]
[]
[]
[]
[]
[]
[]
[]
[]
[]
[]
[]
[]
[]
[]
[]
["FRE001Q"]

{"sheet":"notes","index":10,"n_rows":0,"n_cols":0,"rows_kept":0,"cut":false,"hidden":false,"merged":[]}